{"text_format":"1","workbook":"xlsx","n_sheets":17,"sheets":["First","Rebalance","Models","Instructions","Transactions","Switch","Waiting","Rebalance Form New","Rebalance Form","Switch Form New","Switch Form Old","Proposal - R","Proposal - S","Funds - R","Funds - S","Sheet1","Money Market"],"not_rendered":{"charts":0,"images":7,"macros":1,"external_links":5,"defined_names":158,"comments":1,"pivot_tables":0},"unopened":[],"bounds":{"document_bytes":16777216,"sheet_cells":100000,"rows_first":2000,"rows_last":500,"rows_between":2000,"halvings":0,"cell_chars":16384,"cell_head_chars":4096},"cells_cut":0,"cells_raw":0,"read":"whole","date_system":"1900"}

{"sheet":"First","index":0,"n_rows":34,"n_cols":30,"rows_kept":34,"cut":false,"hidden":false,"merged":[[12,7,13,21],[25,18,28,30],[17,18,21,30],[33,4,41,30]]}
[]
[]
[]
[]
[]
[]
[]
[]
[]
[null,null,null,null,null,null,null,null,null,null,null,null,null,null,null,null,null,null,null,null,null,null,null,null,null,null,null,null,null,"Rebalance"]
[]
[]
[null,null,null,null,null,null,null,"This tool requires macros to be enabled. Please ensure the macros are enabled by clicking on the \"Enable Content\" button at the top of the page."]
[]
[]
[]
[]
[null,null,null,null,null,null,null,null,null,null,null,null,null,null,null,null,null,null,"Refers to the process of transferring an investment from one portfolio to another by selecting portfolios, amounts or percentages."]
[]
[]
[]
[]
[]
[]
[]
[null,null,null,null,null,null,null,null,null,null,null,null,null,null,null,null,null,null,"The process of aligning the weightings of your investment portfolios. This involves the buying or selling of assets in your investment to obtain the desired level of asset allocation."]
[]
[]
[]
[]
[]
[]
[]
[null,null,null,null,"PLEASE NOTE: The objective of this tool is to assist the user with calculating the Capital Gain/Loss impact for the switch/rebalance instruction. The Capital Gain/Loss implications as well as switch/rebalance instructions set out in the Tool are indicative values only and may change due to changes in the prices of the portfolios transacted on. The proposal, captured instructions and your tax certificate may not have the same values due to changes in prices on different days.                                                                                                                                                                                                                                                                                             STANLIB does not provide tax advice.  No information provided must be construed as tax advice to the client."]

{"sheet":"Rebalance","index":1,"n_rows":67,"n_cols":32,"rows_kept":67,"cut":false,"hidden":false,"merged":[[56,3,56,5],[39,20,39,21],[33,20,33,21],[34,20,34,21],[35,20,35,21],[36,20,36,21],[37,20,37,21],[38,20,38,21],[65,10,65,11],[40,14,40,15],[40,16,40,17],[40,18,40,19],[35,12,35,13],[57,10,57,11],[58,3,58,5],[57,3,57,5],[55,3,55,5],[53,10,53,11],[54,3,54,5],[53,3,53,5],[52,3,52,5],[52,6,52,9],[52,10,52,11],[51,3,51,5],[24,20,24,21],[25,20,25,21],[26,20,26,21],[27,20,27,21],[28,20,28,21],[29,20,29,21],[30,20,30,21],[31,20,31,21],[32,20,32,21],[32,18,32,19],[30,18,30,19],[28,18,28,19],[56,6,56,9],[65,3,65,5],[66,6,66,9],[47,3,47,5],[47,7,47,9],[66,10,66,11],[54,10,54,11],[56,10,56,11],[58,10,58,11],[60,10,60,11],[61,10,61,11],[63,3,63,5],[64,3,64,5],[62,10,62,11],[63,10,63,11],[64,10,64,11],[62,3,62,5],[61,3,61,5],[59,10,59,11],[60,3,60,5],[59,3,59,5],[51,6,51,9],[51,10,51,11],[53,6,53,9],[54,6,54,9],[55,6,55,9],[55,10,55,11],[39,10,39,11],[50,3,50,5],[50,6,50,9],[50,10,50,11],[39,16,39,17],[36,18,36,19],[37,18,37,19],[38,18,38,19],[39,18,39,19],[36,12,36,13],[37,12,37,13],[38,12,38,13],[39,12,39,13],[36,14,36,15],[37,14,37,15],[38,14,38,15],[39,14,39,15],[50,12,50,13],[40,12,40,13],[35,3,35,5],[36,3,36,5],[37,3,37,5],[38,3,38,5],[39,3,39,5],[34,18,34,19],[35,14,35,15],[35,16,35,17],[35,18,35,19],[34,3,34,5],[34,6,34,9],[34,10,34,11],[34,12,34,13],[34,14,34,15],[34,16,34,17],[35,6,35,9],[36,6,36,9],[37,6,37,9],[38,6,38,9],[39,6,39,9],[35,10,35,11],[36,10,36,11],[37,10,37,11],[38,10,38,11],[33,3,33,5],[33,6,33,9],[33,10,33,11],[33,12,33,13],[33,14,33,15],[33,16,33,17],[33,18,33,19],[36,16,36,17],[37,16,37,17],[38,16,38,17],[32,3,32,5],[32,6,32,9],[32,10,32,11],[32,12,32,13],[32,14,32,15],[32,16,32,17],[31,3,31,5],[31,6,31,9],[31,10,31,11],[31,12,31,13],[31,14,31,15],[31,16,31,17],[31,18,31,19],[30,3,30,5],[30,6,30,9],[30,10,30,11],[30,12,30,13],[30,14,30,15],[30,16,30,17],[29,3,29,5],[29,6,29,9],[29,10,29,11],[29,12,29,13],[29,14,29,15],[29,16,29,17],[29,18,29,19],[28,3,28,5],[28,6,28,9],[28,10,28,11],[28,12,28,13],[28,14,28,15],[28,16,28,17],[26,18,26,19],[27,3,27,5],[27,6,27,9],[27,10,27,11],[27,12,27,13],[27,14,27,15],[27,16,27,17],[27,18,27,19],[26,3,26,5],[26,6,26,9],[26,10,26,11],[26,12,26,13],[26,14,26,15],[26,16,26,17],[24,16,24,17],[24,18,24,19],[25,3,25,5],[25,6,25,9],[25,10,25,11],[25,12,25,13],[25,14,25,15],[25,16,25,17],[25,18,25,19],[18,5,18,7],[24,3,24,5],[24,6,24,9],[24,10,24,11],[24,12,24,13],[24,14,24,15],[17,2,17,4],[11,5,11,7],[12,5,12,7],[13,5,13,7],[14,5,14,7],[15,5,15,7],[16,5,16,7],[17,5,17,7],[11,2,11,4],[12,2,12,4],[13,2,13,4],[14,2,14,4],[15,2,15,4],[16,2,16,4],[18,2,18,4],[57,6,57,9],[58,6,58,9],[59,6,59,9],[60,6,60,9],[61,6,61,9],[62,6,62,9],[63,6,63,9],[64,6,64,9],[65,6,65,9],[60,12,60,13],[61,12,61,13],[62,12,62,13],[63,12,63,13],[64,12,64,13],[65,12,65,13],[51,12,51,13],[52,12,52,13],[53,12,53,13],[54,12,54,13],[55,12,55,13],[56,12,56,13],[57,12,57,13],[58,12,58,13],[59,12,59,13]]}
[]
[]
[null,null,null,null,null,null,null,null,null,null,null,null,null,null,null,null,null,null,null,null,null,null,null,null,null,null,null,"LR"]
[null,null,null,null,null,null,null,null,null,null,null,null,null,null,null,null,null,null,null,null,null,null,null,null,null,null,null,"S"]
[null,null,null,null,null,null,null,null,null,null,null,null,null,null,null,null,null,null,null,null,null,null,null,null,null,null,null,"C"]
[null,null,null,null,null,null,null,null,null,null,null,null,null,null,null,null,null,null,null,null,null,null,null,null,null,null,null,"FC"]
[]
[]
[null,null,null,null,null,null,null,null,null,null,null,null,null,null,null,null,null,null,null,null,null,null,null,null,null,null,null,"Classic Investment Plan"]
[null,null,"Investor Details",null,null,null,null,null,null,null,null,null,null,null,null,null,null,null,null,null,null,null,null,null,null,null,null,"Classic Linked Life Annuity "]
[null,null,null,null,null,null,null,null,null,null,null,null,null,null,null,null,null,null,null,null,null,null,null,null,null,null,null,"Classic Preservation Pension  Plan"]
[null,null,"Wrapper/Product Type",null,null,null,null,null,null,null,null,null,null,null,null,null,null,null,null,null,null,null,null,null,null,null,null,"Classic Preservation Provident Plan"]
[null,null,"Investment Account Number",null,null,null,null,null,null,null,null,null,null,null,null,null,null,null,null,null,null,null,null,null,null,null,null,"Classic Retirement Annuity Plan"]
[null,null,"Name and Surname"]
[null,null,"Identity/Passport Number"]
[null,null,"Type of Client"]
[null,null,"Tax Number"]
[null,null,"Cellphone Number"]
[null,null,"Email Address",null,null,"qudsiyya786@gmail.com"]
[]
[null,null,"Rebalance Details"]
[]
[null,null,"Current Portfolio:"]
[null,null,null,"Please Note: Please re-download the tool from stanlib.com for the latest set of funds",null,null,null,null,null,null,"Please ensure that all details are filled in under each of the fields below, if CGT is not required please fill in \"1\" under the Base cost per Unit field to avoid an error."]
[null,null,null,"Manco",null,null,"Portfolio Name",null,null,null,"Units",null,"Current Unit Price",null,"Base Cost per Unit ( c )",null,"Market Value",null,"Percentage",null,"Portfolio Range (eg Classic, LR)"]
[null,null,1,null,null,null,null,null,null,null,null,null,null,null,null,null,{"$f":"IF(D26=\"\",\"\",M26/100*K26)","v":""},null,{"$f":"IF(Q26=\"\",\"\",Q26/FromTotal)","v":""},null,null,null,{"$f":"CONCATENATE(U26,\" \",G26)","v":" "},null,null,{"$f":"IFERROR(VLOOKUP(G26,'Funds - R'!$A$2:$B$678,2,FALSE),0)","v":0},{"$f":"IF(G26=\"\",0,1)","v":0},null,{"$f":"IF($F$12=\"Classic Investment Plan\",\"CGT\",\"No CGT\")","v":"No CGT"}]
[null,null,2,null,null,null,null,null,null,null,null,null,null,null,null,null,{"$f":"IF(D27=\"\",\"\",M27/100*K27)","v":""},null,"",null,null,null,{"$f":"CONCATENATE(U27,\" \",G27)","v":" "},null,null,{"$f":"IFERROR(VLOOKUP(G27,'Funds - R'!$A$2:$B$678,2,FALSE),0)","v":0},{"$f":"IF(G27=\"\",0,1)","v":0},null,{"$f":"IF($F$12=\"Classic Investment Plan\",\"CGT\",\"No CGT\")","v":"No CGT"}]
[null,null,3,null,null,null,null,null,null,null,null,null,null,null,null,null,"",null,"",null,null,null," ",null,null,{"$f":"IFERROR(VLOOKUP(G28,'Funds - R'!$A$2:$B$678,2,FALSE),0)","v":0},0,null,"No CGT"]
[null,null,4,null,null,null,null,null,null,null,null,null,null,null,null,null,"",null,"",null,null,null," ",null,null,{"$f":"IFERROR(VLOOKUP(G29,'Funds - R'!$A$2:$B$678,2,FALSE),0)","v":0},0,null,"No CGT"]
[null,null,5,null,null,null,null,null,null,null,null,null,null,null,null,null,"",null,"",null,null,null," ",null,null,{"$f":"IFERROR(VLOOKUP(G30,'Funds - R'!$A$2:$B$678,2,FALSE),0)","v":0},0,null,"No CGT"]
[null,null,6,null,null,null,null,null,null,null,null,null,null,null,null,null,"",null,"",null,null,null," ",null,null,{"$f":"IFERROR(VLOOKUP(G31,'Funds - R'!$A$2:$B$678,2,FALSE),0)","v":0},0,null,"No CGT"]
[null,null,7,null,null,null,null,null,null,null,null,null,null,null,null,null,"",null,"",null,null,null," ",null,null,{"$f":"IFERROR(VLOOKUP(G32,'Funds - R'!$A$2:$B$678,2,FALSE),0)","v":0},0,null,"No CGT"]
[null,null,8,null,null,null,null,null,null,null,null,null,null,null,null,null,"",null,"",null,null,null," ",null,null,{"$f":"IFERROR(VLOOKUP(G33,'Funds - R'!$A$2:$B$678,2,FALSE),0)","v":0},0,null,"No CGT"]
[null,null,9,null,null,null,null,null,null,null,null,null,null,null,null,null,"",null,"",null,null,null," ",null,null,{"$f":"IFERROR(VLOOKUP(G34,'Funds - R'!$A$2:$B$678,2,FALSE),0)","v":0},0,null,"No CGT"]
[null,null,10,null,null,null,null,null,null,null,null,null,null,null,null,null,"",null,"",null,null,null," ",null,null,{"$f":"IFERROR(VLOOKUP(G35,'Funds - R'!$A$2:$B$678,2,FALSE),0)","v":0},0,null,"No CGT"]
[null,null,11,null,null,null,null,null,null,null,null,null,null,null,null,null,"",null,"",null,null,null," ",null,null,{"$f":"IFERROR(VLOOKUP(G36,'Funds - R'!$A$2:$B$678,2,FALSE),0)","v":0},0,null,"No CGT"]
[null,null,12,null,null,null,null,null,null,null,null,null,null,null,null,null,"",null,"",null,null,null," ",null,null,{"$f":"IFERROR(VLOOKUP(G37,'Funds - R'!$A$2:$B$678,2,FALSE),0)","v":0},0,null,"No CGT"]
[null,null,13,null,null,null,null,null,null,null,null,null,null,null,null,null,"",null,"",null,null,null," ",null,null,{"$f":"IFERROR(VLOOKUP(G38,'Funds - R'!$A$2:$B$678,2,FALSE),0)","v":0},0,null,"No CGT"]
[null,null,14,null,null,null,null,null,null,null,null,null,null,null,null,null,"",null,"",null,null,null," ",null,null,{"$f":"IFERROR(VLOOKUP(G39,'Funds - R'!$A$2:$B$678,2,FALSE),0)","v":0},0,null,"No CGT"]
[null,null,15,null,null,null,null,null,null,null,null,null,null,null,null,null,"",null,"",null,null,null," ",null,null,{"$f":"IFERROR(VLOOKUP(G40,'Funds - R'!$A$2:$B$678,2,FALSE),0)","v":0},0,null,"No CGT"]
[null,null,null,null,null,null,null,null,null,null,null,null,"Total",null,"Total",null,{"$f":"SUM(Q26:R40)","v":0},null,{"$f":"SUM(S26:T40)","v":0},null,null,null,null,null,null,null,{"$f":"SUM(AA26:AA40)","v":0}]
[]
[]
[null,null,"Rebalance To:"]
[null,null,null,null,null,null,null,null,null,true,false]
[]
[]
[null,null,null,"Amount in Solution Portfolio",null,null,null,{"$f":"IF(J45=TRUE,S41,FromTotal)","v":0}]
[]
[null,null,null,"Please note all the funds may not be available to you"]
[null,null,null,"Manco",null,null,"Portfolio Name",null,null,null,{"$f":"IF(J45=TRUE,\"Percentage\",\"Rand Amount\")","v":"Percentage"},null,"Portfolio Range (eg Classic, LR)"]
[null,null,1,null,null,null,null,null,null,null,null,null,null,null,{"$f":"CONCATENATE(M52,\" \",G52)","v":" "},null,null,null,null,null,null,null,null,null,null,{"$f":"IFERROR(VLOOKUP(G52,'Funds - R'!$A$2:$B$678,2,FALSE),0)","v":0},{"$f":"IF(G52=\"\",0,1)","v":0},null,null,null,{"$f":"VLOOKUP($F$12,Models!$C$58:$D$62,2,FALSE)","v":{"$error":"#N/A"}},{"$f":"IF(AND(D52=\"Models\",AE52=\"Voluntary\"),Voluntary_Models_R,IF(AND(D52=\"Models\",AE52=\"Compulsary\"),Compulsary_Models_R,SelectedFunds16))","v":{"$error":"#N/A"}}]
[null,null,2,null,null,null,null,null,null,null,null,null,null,null,{"$f":"CONCATENATE(M53,\" \",G53)","v":" "},null,null,null,null,null,null,null,null,null,null,{"$f":"IFERROR(VLOOKUP(G53,'Funds - R'!$A$2:$B$678,2,FALSE),0)","v":0},{"$f":"IF(G53=\"\",0,1)","v":0},null,null,null,{"$f":"VLOOKUP($F$12,Models!$C$58:$D$62,2,FALSE)","v":{"$error":"#N/A"}},{"$f":"IF(AND(D53=\"Models\",AE53=\"Voluntary\"),Voluntary_Models_R,IF(AND(D53=\"Models\",AE53=\"Compulsary\"),Compulsary_Models_R,SelectedFunds17))","v":{"$error":"#N/A"}}]
[null,null,3,null,null,null,null,null,null,null,null,null,null,null," ",null,null,null,null,null,null,null,null,null,null,{"$f":"IFERROR(VLOOKUP(G54,'Funds - R'!$A$2:$B$678,2,FALSE),0)","v":0},0,null,null,null,{"$f":"VLOOKUP($F$12,Models!$C$58:$D$62,2,FALSE)","v":{"$error":"#N/A"}},{"$f":"IF(AND(D54=\"Models\",AE54=\"Voluntary\"),Voluntary_Models_R,IF(AND(D54=\"Models\",AE54=\"Compulsary\"),Compulsary_Models_R,SelectedFunds18))","v":{"$error":"#N/A"}}]
[null,null,4,null,null,null,null,null,null,null,null,null,null,null," ",null,null,null,null,null,null,null,null,null,null,{"$f":"IFERROR(VLOOKUP(G55,'Funds - R'!$A$2:$B$678,2,FALSE),0)","v":0},0,null,null,null,{"$f":"VLOOKUP($F$12,Models!$C$58:$D$62,2,FALSE)","v":{"$error":"#N/A"}},{"$f":"IF(AND(D55=\"Models\",AE55=\"Voluntary\"),Voluntary_Models_R,IF(AND(D55=\"Models\",AE55=\"Compulsary\"),Compulsary_Models_R,SelectedFunds19))","v":{"$error":"#N/A"}}]
[null,null,5,null,null,null,null,null,null,null,null,null,null,null," ",null,null,null,null,null,null,null,null,null,null,{"$f":"IFERROR(VLOOKUP(G56,'Funds - R'!$A$2:$B$678,2,FALSE),0)","v":0},0,null,null,null,{"$f":"VLOOKUP($F$12,Models!$C$58:$D$62,2,FALSE)","v":{"$error":"#N/A"}},{"$f":"IF(AND(D56=\"Models\",AE56=\"Voluntary\"),Voluntary_Models_R,IF(AND(D56=\"Models\",AE56=\"Compulsary\"),Compulsary_Models_R,SelectedFunds20))","v":{"$error":"#N/A"}}]
[null,null,6,null,null,null,null,null,null,null,null,null,null,null," ",null,null,null,null,null,null,null,null,null,null,{"$f":"IFERROR(VLOOKUP(G57,'Funds - R'!$A$2:$B$678,2,FALSE),0)","v":0},0,null,null,null,{"$f":"VLOOKUP($F$12,Models!$C$58:$D$62,2,FALSE)","v":{"$error":"#N/A"}},{"$f":"IF(AND(D57=\"Models\",AE57=\"Voluntary\"),Voluntary_Models_R,IF(AND(D57=\"Models\",AE57=\"Compulsary\"),Compulsary_Models_R,SelectedFunds21))","v":{"$error":"#N/A"}}]
[null,null,7,null,null,null,null,null,null,null,null,null,null,null," ",null,null,null,null,null,null,null,null,null,null,{"$f":"IFERROR(VLOOKUP(G58,'Funds - R'!$A$2:$B$678,2,FALSE),0)","v":0},0,null,null,null,{"$f":"VLOOKUP($F$12,Models!$C$58:$D$62,2,FALSE)","v":{"$error":"#N/A"}},{"$f":"IF(AND(D58=\"Models\",AE58=\"Voluntary\"),Voluntary_Models_R,IF(AND(D58=\"Models\",AE58=\"Compulsary\"),Compulsary_Models_R,SelectedFunds22))","v":{"$error":"#N/A"}}]
[null,null,8,null,null,null,null,null,null,null,null,null,null,null," ",null,null,null,null,null,null,null,null,null,null,{"$f":"IFERROR(VLOOKUP(G59,'Funds - R'!$A$2:$B$678,2,FALSE),0)","v":0},0,null,null,null,{"$f":"VLOOKUP($F$12,Models!$C$58:$D$62,2,FALSE)","v":{"$error":"#N/A"}},{"$f":"IF(AND(D59=\"Models\",AE59=\"Voluntary\"),Voluntary_Models_R,IF(AND(D59=\"Models\",AE59=\"Compulsary\"),Compulsary_Models_R,SelectedFunds23))","v":{"$error":"#N/A"}}]
[null,null,9,null,null,null,null,null,null,null,null,null,null,null," ",null,null,null,null,null,null,null,null,null,null,{"$f":"IFERROR(VLOOKUP(G60,'Funds - R'!$A$2:$B$678,2,FALSE),0)","v":0},0,null,null,null,{"$f":"VLOOKUP($F$12,Models!$C$58:$D$62,2,FALSE)","v":{"$error":"#N/A"}},{"$f":"IF(AND(D60=\"Models\",AE60=\"Voluntary\"),Voluntary_Models_R,IF(AND(D60=\"Models\",AE60=\"Compulsary\"),Compulsary_Models_R,SelectedFunds24))","v":{"$error":"#N/A"}}]
[null,null,10,null,null,null,null,null,null,null,null,null,null,null," ",null,null,null,null,null,null,null,null,null,null,{"$f":"IFERROR(VLOOKUP(G61,'Funds - R'!$A$2:$B$678,2,FALSE),0)","v":0},0,null,null,null,{"$f":"VLOOKUP($F$12,Models!$C$58:$D$62,2,FALSE)","v":{"$error":"#N/A"}},{"$f":"IF(AND(D61=\"Models\",AE61=\"Voluntary\"),Voluntary_Models_R,IF(AND(D61=\"Models\",AE61=\"Compulsary\"),Compulsary_Models_R,SelectedFunds25))","v":{"$error":"#N/A"}}]
[null,null,11,null,null,null,null,null,null,null,null,null,null,null," ",null,null,null,null,null,null,null,null,null,null,{"$f":"IFERROR(VLOOKUP(G62,'Funds - R'!$A$2:$B$678,2,FALSE),0)","v":0},0,null,null,null,{"$f":"VLOOKUP($F$12,Models!$C$58:$D$62,2,FALSE)","v":{"$error":"#N/A"}},{"$f":"IF(AND(D62=\"Models\",AE62=\"Voluntary\"),Voluntary_Models_R,IF(AND(D62=\"Models\",AE62=\"Compulsary\"),Compulsary_Models_R,SelectedFunds26))","v":{"$error":"#N/A"}}]
[null,null,12,null,null,null,null,null,null,null,null,null,null,null," ",null,null,null,null,null,null,null,null,null,null,{"$f":"IFERROR(VLOOKUP(G63,'Funds - R'!$A$2:$B$678,2,FALSE),0)","v":0},0,null,null,null,{"$f":"VLOOKUP($F$12,Models!$C$58:$D$62,2,FALSE)","v":{"$error":"#N/A"}},{"$f":"IF(AND(D63=\"Models\",AE63=\"Voluntary\"),Voluntary_Models_R,IF(AND(D63=\"Models\",AE63=\"Compulsary\"),Compulsary_Models_R,SelectedFunds27))","v":{"$error":"#N/A"}}]
[null,null,13,null,null,null,null,null,null,null,null,null,null,null," ",null,null,null,null,null,null,null,null,null,null,{"$f":"IFERROR(VLOOKUP(G64,'Funds - R'!$A$2:$B$678,2,FALSE),0)","v":0},0,null,null,null,{"$f":"VLOOKUP($F$12,Models!$C$58:$D$62,2,FALSE)","v":{"$error":"#N/A"}},{"$f":"IF(AND(D64=\"Models\",AE64=\"Voluntary\"),Voluntary_Models_R,IF(AND(D64=\"Models\",AE64=\"Compulsary\"),Compulsary_Models_R,SelectedFunds28))","v":{"$error":"#N/A"}}]
[null,null,14,null,null,null,null,null,null,null,null,null,null,null," ",null,null,null,null,null,null,null,null,null,null,{"$f":"IFERROR(VLOOKUP(G65,'Funds - R'!$A$2:$B$678,2,FALSE),0)","v":0},0,null,null,null,{"$f":"VLOOKUP($F$12,Models!$C$58:$D$62,2,FALSE)","v":{"$error":"#N/A"}},{"$f":"IF(AND(D65=\"Models\",AE65=\"Voluntary\"),Voluntary_Models_R,IF(AND(D65=\"Models\",AE65=\"Compulsary\"),Compulsary_Models_R,SelectedFunds29))","v":{"$error":"#N/A"}}]
[null,null,15,null,null,null,null,null,null,null,null,null,null,null," ",null,null,null,null,null,null,null,null,null,null,{"$f":"IFERROR(VLOOKUP(G66,'Funds - R'!$A$2:$B$678,2,FALSE),0)","v":0},0,null,null,null,{"$f":"VLOOKUP($F$12,Models!$C$58:$D$62,2,FALSE)","v":{"$error":"#N/A"}},{"$f":"IF(AND(D66=\"Models\",AE66=\"Voluntary\"),Voluntary_Models_R,IF(AND(D66=\"Models\",AE66=\"Compulsary\"),Compulsary_Models_R,SelectedFunds30))","v":{"$error":"#N/A"}}]
[null,null,null,null,null,null,"Total",null,null,null,{"$f":"SUM(K52:L66)","v":0},null,null,null,null,null,null,null,null,null,null,null,null,null,null,null,{"$f":"SUM(AA52:AA66)","v":0}]

{"sheet":"Models","index":2,"n_rows":101,"n_cols":25,"rows_kept":101,"cut":false,"hidden":true,"merged":[[1,20,1,24]]}
[null,null,"Model","Rebalance"]
[null,null,"IFA Cash-In Fund",{"$f":"IFERROR(VLOOKUP(C2,Rebalance!$G$52:$L$66,5,FALSE),0)","v":0},null,null,null,null,null,null,null,null,null,null,null,null,null,null,null,null,"REBALANCE"]
[null,null,"IFA CPI+3% Targeted Solution",{"$f":"IFERROR(VLOOKUP(C3,Rebalance!$G$52:$L$66,5,FALSE),0)","v":0},null,null,null,null,null,null,null,null,null,null,null,null,null,null,null,null,"Manco","Portfolio Name",{"$f":"IF(Rebalance!J45=TRUE,\"Percentage\",\"Rand Amount\")","v":"Percentage"},"Portfolio Range (eg Classic, LR)","JSE Code"]
[null,null,"IFA CPI+5% Targeted Solution",{"$f":"IFERROR(VLOOKUP(C4,Rebalance!$G$52:$L$66,5,FALSE),0)","v":0},null,null,null,null,null,null,null,null,null,null,null,null,null,null,null,1,{"$f":"Rebalance!D52","v":"00:00:00"},{"$f":"Rebalance!G52","v":"00:00:00"},{"$f":"Rebalance!K52","v":0},{"$f":"Rebalance!M52","v":"00:00:00"},{"$f":"Rebalance!Z52","v":0}]
[null,null,"IFA CPI+7% Targeted Solution",{"$f":"IFERROR(VLOOKUP(C5,Rebalance!$G$52:$L$66,5,FALSE),0)","v":0},null,null,null,null,null,null,null,null,null,null,null,null,null,null,null,2,{"$f":"Rebalance!D53","v":"00:00:00"},{"$f":"Rebalance!G53","v":"00:00:00"},{"$f":"Rebalance!K53","v":0},{"$f":"Rebalance!M53","v":"00:00:00"},{"$f":"Rebalance!Z53","v":0}]
[null,null,null,null,null,null,null,null,null,null,null,null,null,null,null,null,null,null,null,3,{"$f":"Rebalance!D54","v":"00:00:00"},{"$f":"Rebalance!G54","v":"00:00:00"},{"$f":"Rebalance!K54","v":0},{"$f":"Rebalance!M54","v":"00:00:00"},{"$f":"Rebalance!Z54","v":0}]
[null,null,null,null,null,null,null,null,null,null,null,null,null,null,null,null,null,null,null,4,{"$f":"Rebalance!D55","v":"00:00:00"},{"$f":"Rebalance!G55","v":"00:00:00"},{"$f":"Rebalance!K55","v":0},{"$f":"Rebalance!M55","v":"00:00:00"},{"$f":"Rebalance!Z55","v":0}]
[null,null,null,null,null,null,null,null,null,null,null,null,null,null,null,null,null,null,null,5,{"$f":"Rebalance!D56","v":"00:00:00"},{"$f":"Rebalance!G56","v":"00:00:00"},{"$f":"Rebalance!K56","v":0},{"$f":"Rebalance!M56","v":"00:00:00"},{"$f":"Rebalance!Z56","v":0}]
[null,null,null,null,null,null,null,null,null,null,null,null,null,null,null,null,null,null,null,6,{"$f":"Rebalance!D57","v":"00:00:00"},{"$f":"Rebalance!G57","v":"00:00:00"},{"$f":"Rebalance!K57","v":0},{"$f":"Rebalance!M57","v":"00:00:00"},{"$f":"Rebalance!Z57","v":0}]
[null,null,null,null,null,null,null,null,null,null,null,null,null,null,null,null,null,null,null,7,{"$f":"Rebalance!D58","v":"00:00:00"},{"$f":"Rebalance!G58","v":"00:00:00"},{"$f":"Rebalance!K58","v":0},{"$f":"Rebalance!M58","v":"00:00:00"},{"$f":"Rebalance!Z58","v":0}]
[null,null,null,null,null,null,null,null,null,null,null,null,null,null,null,null,null,null,null,8,{"$f":"Rebalance!D59","v":"00:00:00"},{"$f":"Rebalance!G59","v":"00:00:00"},{"$f":"Rebalance!K59","v":0},{"$f":"Rebalance!M59","v":"00:00:00"},{"$f":"Rebalance!Z59","v":0}]
[null,null,"Voluntary",null,null,null,null,null,null,null,null,null,null,null,null,null,null,null,null,9,{"$f":"Rebalance!D60","v":"00:00:00"},{"$f":"Rebalance!G60","v":"00:00:00"},{"$f":"Rebalance!K60","v":0},{"$f":"Rebalance!M60","v":"00:00:00"},{"$f":"Rebalance!Z60","v":0}]
[null,null,"IFA Cash-In Fund","IFA CPI+3% Targeted Solution","IFA CPI+5% Targeted Solution","IFA CPI+7% Targeted Solution",null,null,null,null,null,null,null,null,"IFA Cash-In Fund","IFA CPI+3% Targeted Solution","IFA CPI+5% Targeted Solution","IFA CPI+7% Targeted Solution",null,10,{"$f":"Rebalance!D61","v":"00:00:00"},{"$f":"Rebalance!G61","v":"00:00:00"},{"$f":"Rebalance!K61","v":0},{"$f":"Rebalance!M61","v":"00:00:00"},{"$f":"Rebalance!Z61","v":0}]
[null,1,"Coronation Strategic Income B4","ABSA Absolute Fund C1","Prudential Inflation Plus Fund B","Prudential Balanced Fund B",null,null,null,null,null,null,null,null,0.5,0.4,0.4,0.4,null,11,{"$f":"Rebalance!D62","v":"00:00:00"},{"$f":"Rebalance!G62","v":"00:00:00"},{"$f":"Rebalance!K62","v":0},{"$f":"Rebalance!M62","v":"00:00:00"},{"$f":"Rebalance!Z62","v":0}]
[null,2,"STANLIB Income Fund B6","STANLIB Flexible Income Fund B1","Coronation Capital Plus Fund B5","Coronation Balanced Plus Fund B4",null,null,null,null,null,null,null,null,0.3,0.3,0.3,0.3,null,12,{"$f":"Rebalance!D63","v":0},{"$f":"Rebalance!G63","v":0},{"$f":"Rebalance!K63","v":0},{"$f":"Rebalance!M63","v":0},{"$f":"Rebalance!Z63","v":0}]
[null,3,"STANLIB Money Market Fund R","Coronation Capital Plus Fund B5","Investec Opportunity Fund H","Foord Balanced Fund B2",null,null,null,null,null,null,null,null,0.2,0.3,0.3,0.3,null,13,{"$f":"Rebalance!D64","v":0},{"$f":"Rebalance!G64","v":0},{"$f":"Rebalance!K64","v":0},{"$f":"Rebalance!M64","v":0},{"$f":"Rebalance!Z64","v":0}]
[null,4," "," "," "," ",null,null,null,null,null,null,null,null,null,null,null,null,null,14,{"$f":"Rebalance!D65","v":0},{"$f":"Rebalance!G65","v":0},{"$f":"Rebalance!K65","v":0},{"$f":"Rebalance!M65","v":0},{"$f":"Rebalance!Z65","v":0}]
[null,5," "," "," "," ",null,null,null,null,null,null,null,null,null,null,null,null,null,15,{"$f":"Rebalance!D66","v":0},{"$f":"Rebalance!G66","v":0},{"$f":"Rebalance!K66","v":0},{"$f":"Rebalance!M66","v":0},{"$f":"Rebalance!Z66","v":0}]
[null,6," "," "," "," ",null,null,null,null,null,null,null,null,null,null,null,null,null,16,{"$f":"IFERROR(VLOOKUP(V19,'Funds - R'!$A$2:$C$1170,3,FALSE),\"\")","v":""}]
[null,7," "," "," "," ",null,null,null,null,null,null,null,null,null,null,null,null,null,17,{"$f":"IFERROR(VLOOKUP(V20,'Funds - R'!$A$2:$C$1170,3,FALSE),\"\")","v":""}]
[null,8," "," "," "," ",null,null,null,null,null,null,null,null,null,null,null,null,null,18,{"$f":"IFERROR(VLOOKUP(V21,'Funds - R'!$A$2:$C$1170,3,FALSE),\"\")","v":""}]
[null,9,null,null,null,null,null,null,null,null,null,null,null,null,null,null,null,null,null,19,{"$f":"IFERROR(VLOOKUP(V22,'Funds - R'!$A$2:$C$1170,3,FALSE),\"\")","v":""}]
[null,10,null,null,null,null,null,null,null,null,null,null,null,null,null,null,null,null,null,20,{"$f":"IFERROR(VLOOKUP(V23,'Funds - R'!$A$2:$C$1170,3,FALSE),\"\")","v":""}]
[null,11,null,null,null,null,null,null,null,null,null,null,null,null,null,null,null,null,null,null,{"$f":"IFERROR(VLOOKUP(V24,'Funds - R'!$A$2:$C$1170,3,FALSE),\"\")","v":""}]
[null,12,null,null,null,null,null,null,null,null,null,null,null,null,null,null,null,null,null,null,{"$f":"IFERROR(VLOOKUP(V25,'Funds - R'!$A$2:$C$1170,3,FALSE),\"\")","v":""}]
[null,13,null,null,null,null,null,null,null,null,null,null,null,null,null,null,null,null,null,null,{"$f":"IFERROR(VLOOKUP(V26,'Funds - R'!$A$2:$C$1170,3,FALSE),\"\")","v":""}]
[null,14,null,null,null,null,null,null,null,null,null,null,null,null,null,null,null,null,null,null,{"$f":"IFERROR(VLOOKUP(V27,'Funds - R'!$A$2:$C$1170,3,FALSE),\"\")","v":""}]
[null,15,null,null,null,null,null,null,null,null,null,null,null,null,null,null,null,null,null,null,{"$f":"IFERROR(VLOOKUP(V28,'Funds - R'!$A$2:$C$1170,3,FALSE),\"\")","v":""}]
[null,16,null,null,null,null,null,null,null,null,null,null,null,null,null,null,null,null,null,null,{"$f":"IFERROR(VLOOKUP(V29,'Funds - R'!$A$2:$C$1170,3,FALSE),\"\")","v":""}]
[null,17,null,null,null,null,null,null,null,null,null,null,null,null,null,null,null,null,null,null,{"$f":"IFERROR(VLOOKUP(V30,'Funds - R'!$A$2:$C$1170,3,FALSE),\"\")","v":""}]
[null,18,null,null,null,null,null,null,null,null,null,null,null,null,null,null,null,null,null,null,{"$f":"IFERROR(VLOOKUP(V31,'Funds - R'!$A$2:$C$1170,3,FALSE),\"\")","v":""}]
[null,19,null,null,null,null,null,null,null,null,null,null,null,null,null,null,null,null,null,null,{"$f":"IFERROR(VLOOKUP(V32,'Funds - R'!$A$2:$C$1170,3,FALSE),\"\")","v":""}]
[null,20,null,null,null,null,null,null,null,null,null,null,null,null,null,null,null,null,null,null,{"$f":"IFERROR(VLOOKUP(V33,'Funds - R'!$A$2:$C$1170,3,FALSE),\"\")","v":""}]
[null,null,null,null,null,null,null,null,null,null,null,null,null,null,null,null,null,null,null,null,{"$f":"IFERROR(VLOOKUP(V34,'Funds - R'!$A$2:$C$1170,3,FALSE),\"\")","v":""}]
[null,null,"Compulsory",null," "," ",null,null,null,null,null,null,null,null,null,null,null,null,null,null,{"$f":"IFERROR(VLOOKUP(V35,'Funds - R'!$A$2:$C$1170,3,FALSE),\"\")","v":""}]
[null,null,"IFA Cash-In Fund","IFA CPI+3% Targeted Solution","IFA CPI+5% Targeted Solution","IFA CPI+7% Targeted Solution",null,null,null,null,null,null,null,null,"IFA Cash-In Fund","IFA CPI+3% Targeted Solution","IFA CPI+5% Targeted Solution","IFA CPI+7% Targeted Solution",null,null,{"$f":"IFERROR(VLOOKUP(V36,'Funds - R'!$A$2:$C$1170,3,FALSE),\"\")","v":""}]
[null,1,"Coronation Strategic Income B4","ABSA Absolute Fund C1","Prudential Inflation Plus Fund B","Prudential Balanced Fund B",null,null,null,null,null,null,null,null,{"$f":"50%*#REF!","v":{"$error":"#REF!"}},{"$f":"40%*$D$3","v":0},{"$f":"40%*$D$4","v":0},{"$f":"40%*$D$5","v":0},null,null,{"$f":"IFERROR(VLOOKUP(V37,'Funds - R'!$A$2:$C$1170,3,FALSE),\"\")","v":""}]
[null,2,"STANLIB Income Fund B6","STANLIB Flexible Income Fund B1","Coronation Capital Plus Fund B5","Coronation Balanced Plus Fund B4",null,null,null,null,null,null,null,null,{"$f":"30%*#REF!","v":{"$error":"#REF!"}},{"$f":"30%*$D$3","v":0},{"$f":"30%*$D$4","v":0},{"$f":"30%*$D$5","v":0},null,null,{"$f":"IFERROR(VLOOKUP(V38,'Funds - R'!$A$2:$C$1170,3,FALSE),\"\")","v":""}]
[null,3,"STANLIB Institutional Money Market Fund B13","Coronation Capital Plus Fund B5","Investec Opportunity Fund H","Foord Balanced Fund B2",null,null,null,null,null,null,null,null,{"$f":"20%*#REF!","v":{"$error":"#REF!"}},{"$f":"30%*$D$3","v":0},{"$f":"30%*$D$4","v":0},{"$f":"30%*$D$5","v":0},null,null,{"$f":"IFERROR(VLOOKUP(V39,'Funds - R'!$A$2:$C$1170,3,FALSE),\"\")","v":""}]
[null,4," "," "," "," ",null,null,null,null,null,null,null,null,null,null,null,null,null,null,{"$f":"IFERROR(VLOOKUP(V40,'Funds - R'!$A$2:$C$1170,3,FALSE),\"\")","v":""}]
[null,5," "," "," "," ",null,null,null,null,null,null,null,null,null,null,null,null,null,null,{"$f":"IFERROR(VLOOKUP(V41,'Funds - R'!$A$2:$C$1170,3,FALSE),\"\")","v":""}]
[null,6," "," "," "," ",null,null,null,null,null,null,null,null,null,null,null,null,null,null,{"$f":"IFERROR(VLOOKUP(V42,'Funds - R'!$A$2:$C$1170,3,FALSE),\"\")","v":""}]
[null,7," "," "," "," ",null,null,null,null,null,null,null,null,null,null,null,null,null,null,{"$f":"IFERROR(VLOOKUP(V43,'Funds - R'!$A$2:$C$1170,3,FALSE),\"\")","v":""}]
[null,8," "," "," "," ",null,null,null,null,null,null,null,null,null,null,null,null,null,null,{"$f":"IFERROR(VLOOKUP(V44,'Funds - R'!$A$2:$C$1170,3,FALSE),\"\")","v":""}]
[null,9,null," "," "," ",null,null,null,null,null,null,null,null,null,null,null,null,null,null,{"$f":"IFERROR(VLOOKUP(V45,'Funds - R'!$A$2:$C$1170,3,FALSE),\"\")","v":""}]
[null,10,null,null,null,null,null,null,null,null,null,null,null,null,null,null,null,null,null,null,{"$f":"IFERROR(VLOOKUP(V46,'Funds - R'!$A$2:$C$1170,3,FALSE),\"\")","v":""}]
[null,11,null,null,null,null,null,null,null,null,null,null,null,null,null,null,null,null,null,null,{"$f":"IFERROR(VLOOKUP(V47,'Funds - R'!$A$2:$C$1170,3,FALSE),\"\")","v":""}]
[null,12,null,null,null,null,null,null,null,null,null,null,null,null,null,null,null,null,null,null,{"$f":"IFERROR(VLOOKUP(V48,'Funds - R'!$A$2:$C$1170,3,FALSE),\"\")","v":""}]
[null,13,null,null,null,null,null,null,null,null,null,null,null,null,null,null,null,null,null,null,{"$f":"IFERROR(VLOOKUP(V49,'Funds - R'!$A$2:$C$1170,3,FALSE),\"\")","v":""}]
[null,14,null,null,null,null,null,null,null,null,null,null,null,null,null,null,null,null,null,null,{"$f":"IFERROR(VLOOKUP(V50,'Funds - R'!$A$2:$C$1170,3,FALSE),\"\")","v":""}]
[null,15,null,null,null,null,null,null,null,null,null,null,null,null,null,null,null,null,null,null,{"$f":"IFERROR(VLOOKUP(V51,'Funds - R'!$A$2:$C$1170,3,FALSE),\"\")","v":""}]
[null,16,null," "," "," ",null,null,null,null,null,null,null,null,null,null,null,null,null,null,{"$f":"IFERROR(VLOOKUP(V52,'Funds - R'!$A$2:$C$1170,3,FALSE),\"\")","v":""}]
[null,17,null,null,null,null,null,null,null,null,null,null,null,null,null,null,null,null,null,null,{"$f":"IFERROR(VLOOKUP(V53,'Funds - R'!$A$2:$C$1170,3,FALSE),\"\")","v":""}]
[null,18,null,null,null,null,null,null,null,null,null,null,null,null,null,null,null,null,null,null,{"$f":"IFERROR(VLOOKUP(V54,'Funds - R'!$A$2:$C$1170,3,FALSE),\"\")","v":""}]
[null,19,null,null,null,null,null,null,null,null,null,null,null,null,null,null,null,null,null,null,{"$f":"IFERROR(VLOOKUP(V55,'Funds - R'!$A$2:$C$1170,3,FALSE),\"\")","v":""}]
[null,20,null," "," "," ",null,null,null,null,null,null,null,null,null,null,null,null,null,null,{"$f":"IFERROR(VLOOKUP(V56,'Funds - R'!$A$2:$C$1170,3,FALSE),\"\")","v":""}]
[null,null,null,null,null,null,null,null,null,null,null,null,null,null,null,null,null,null,null,null,{"$f":"IFERROR(VLOOKUP(V57,'Funds - R'!$A$2:$C$1170,3,FALSE),\"\")","v":""}]
[null,null,"Classic Investment Plan","Voluntary",null,null,null,null,null,null,null,null,null,null,null,null,null,null,null,null,{"$f":"IFERROR(VLOOKUP(V58,'Funds - R'!$A$2:$C$1170,3,FALSE),\"\")","v":""}]
[null,null,"Classic Retirement Annuity Fund","Compulsory",null,null,null,null,null,null,null,null,null,null,null,null,null,null,null,null,{"$f":"IFERROR(VLOOKUP(V59,'Funds - R'!$A$2:$C$1170,3,FALSE),\"\")","v":""}]
[null,null,"Classic Preservation Pension Plan","Compulsory",null,null,null,null,null,null,null,null,null,null,null,null,null,null,null,null,{"$f":"IFERROR(VLOOKUP(V60,'Funds - R'!$A$2:$C$1170,3,FALSE),\"\")","v":""}]
[null,null,"Classic Preservation Provident Plan","Compulsory",null,null,null,null,null,null,null,null,null,null,null,null,null,null,null,null,{"$f":"IFERROR(VLOOKUP(V61,'Funds - R'!$A$2:$C$1170,3,FALSE),\"\")","v":""}]
[null,null,"Classic Linked Life Annuity","Voluntary",null,null,null,null,null,null,null,null,null,null,null,null,null,null,null,null,{"$f":"IFERROR(VLOOKUP(V62,'Funds - R'!$A$2:$C$1170,3,FALSE),\"\")","v":""}]
[null,null,null,null,null,null,null,null,null,null,null,null,null,null,null,null,null,null,null,null,{"$f":"IFERROR(VLOOKUP(V63,'Funds - R'!$A$2:$C$1170,3,FALSE),\"\")","v":""}]
[null,null,null,null,null,null,null,null,null,null,null,null,null,null,null,null,null,null,null,null,{"$f":"IFERROR(VLOOKUP(V64,'Funds - R'!$A$2:$C$1170,3,FALSE),\"\")","v":""}]
[null,null,null,null,null,null,null,null,null,null,null,null,null,null,null,null,null,null,null,null,{"$f":"IFERROR(VLOOKUP(V65,'Funds - R'!$A$2:$C$1170,3,FALSE),\"\")","v":""}]
[null,null,null,null,null,null,null,null,null,null,null,null,null,null,null,null,null,null,null,null,{"$f":"IFERROR(VLOOKUP(V66,'Funds - R'!$A$2:$C$1170,3,FALSE),\"\")","v":""}]
[null,null,null,null,null,null,null,null,null,null,null,null,null,null,null,null,null,null,null,null,{"$f":"IFERROR(VLOOKUP(V67,'Funds - R'!$A$2:$C$1170,3,FALSE),\"\")","v":""}]
[null,null,null,null,null,null,null,null,null,null,null,null,null,null,null,null,null,null,null,null,{"$f":"IFERROR(VLOOKUP(V68,'Funds - R'!$A$2:$C$1170,3,FALSE),\"\")","v":""}]
[null,null,null,null,null,null,null,null,null,null,null,null,null,null,null,null,null,null,null,null,{"$f":"IFERROR(VLOOKUP(V69,'Funds - R'!$A$2:$C$1170,3,FALSE),\"\")","v":""}]
[null,null,null,null,null,null,null,null,null,null,null,null,null,null,null,null,null,null,null,null,{"$f":"IFERROR(VLOOKUP(V70,'Funds - R'!$A$2:$C$1170,3,FALSE),\"\")","v":""}]
[null,null,null,null,null,null,null,null,null,null,null,null,null,null,null,null,null,null,null,null,{"$f":"IFERROR(VLOOKUP(V71,'Funds - R'!$A$2:$C$1170,3,FALSE),\"\")","v":""}]
[null,null,null,null,null,null,null,null,null,null,null,null,null,null,null,null,null,null,null,null,{"$f":"IFERROR(VLOOKUP(V72,'Funds - R'!$A$2:$C$1170,3,FALSE),\"\")","v":""}]
[null,null,null,null,null,null,null,null,null,null,null,null,null,null,null,null,null,null,null,null,{"$f":"IFERROR(VLOOKUP(V73,'Funds - R'!$A$2:$C$1170,3,FALSE),\"\")","v":""}]
[null,null,null,null,null,null,null,null,null,null,null,null,null,null,null,null,null,null,null,null,{"$f":"IFERROR(VLOOKUP(V74,'Funds - R'!$A$2:$C$1170,3,FALSE),\"\")","v":""}]
[null,null,null,null,null,null,null,null,null,null,null,null,null,null,null,null,null,null,null,null,{"$f":"IFERROR(VLOOKUP(V75,'Funds - R'!$A$2:$C$1170,3,FALSE),\"\")","v":""}]
[null,null,null,null,null,null,null,null,null,null,null,null,null,null,null,null,null,null,null,null,{"$f":"IFERROR(VLOOKUP(V76,'Funds - R'!$A$2:$C$1170,3,FALSE),\"\")","v":""}]
[null,null,null,null,null,null,null,null,null,null,null,null,null,null,null,null,null,null,null,null,{"$f":"IFERROR(VLOOKUP(V77,'Funds - R'!$A$2:$C$1170,3,FALSE),\"\")","v":""}]
[null,null,null,null,null,null,null,null,null,null,null,null,null,null,null,null,null,null,null,null,{"$f":"IFERROR(VLOOKUP(V78,'Funds - R'!$A$2:$C$1170,3,FALSE),\"\")","v":""}]
[null,null,null,null,null,null,null,null,null,null,null,null,null,null,null,null,null,null,null,null,{"$f":"IFERROR(VLOOKUP(V79,'Funds - R'!$A$2:$C$1170,3,FALSE),\"\")","v":""}]
[null,null,null,null,null,null,null,null,null,null,null,null,null,null,null,null,null,null,null,null,{"$f":"IFERROR(VLOOKUP(V80,'Funds - R'!$A$2:$C$1170,3,FALSE),\"\")","v":""}]
[null,null,null,null,null,null,null,null,null,null,null,null,null,null,null,null,null,null,null,null,{"$f":"IFERROR(VLOOKUP(V81,'Funds - R'!$A$2:$C$1170,3,FALSE),\"\")","v":""}]
[null,null,null,null,null,null,null,null,null,null,null,null,null,null,null,null,null,null,null,null,{"$f":"IFERROR(VLOOKUP(V82,'Funds - R'!$A$2:$C$1170,3,FALSE),\"\")","v":""}]
[null,null,null,null,null,null,null,null,null,null,null,null,null,null,null,null,null,null,null,null,{"$f":"IFERROR(VLOOKUP(V83,'Funds - R'!$A$2:$C$1170,3,FALSE),\"\")","v":""}]
[null,null,null,null,null,null,null,null,null,null,null,null,null,null,null,null,null,null,null,null,{"$f":"IFERROR(VLOOKUP(V84,'Funds - R'!$A$2:$C$1170,3,FALSE),\"\")","v":""}]
[null,null,null,null,null,null,null,null,null,null,null,null,null,null,null,null,null,null,null,null,{"$f":"IFERROR(VLOOKUP(V85,'Funds - R'!$A$2:$C$1170,3,FALSE),\"\")","v":""}]
[null,null,null,null,null,null,null,null,null,null,null,null,null,null,null,null,null,null,null,null,{"$f":"IFERROR(VLOOKUP(V86,'Funds - R'!$A$2:$C$1170,3,FALSE),\"\")","v":""}]
[null,null,null,null,null,null,null,null,null,null,null,null,null,null,null,null,null,null,null,null,{"$f":"IFERROR(VLOOKUP(V87,'Funds - R'!$A$2:$C$1170,3,FALSE),\"\")","v":""}]
[null,null,null,null,null,null,null,null,null,null,null,null,null,null,null,null,null,null,null,null,{"$f":"IFERROR(VLOOKUP(V88,'Funds - R'!$A$2:$C$1170,3,FALSE),\"\")","v":""}]
[null,null,null,null,null,null,null,null,null,null,null,null,null,null,null,null,null,null,null,null,{"$f":"IFERROR(VLOOKUP(V89,'Funds - R'!$A$2:$C$1170,3,FALSE),\"\")","v":""}]
[null,null,null,null,null,null,null,null,null,null,null,null,null,null,null,null,null,null,null,null,{"$f":"IFERROR(VLOOKUP(V90,'Funds - R'!$A$2:$C$1170,3,FALSE),\"\")","v":""}]
[null,null,null,null,null,null,null,null,null,null,null,null,null,null,null,null,null,null,null,null,{"$f":"IFERROR(VLOOKUP(V91,'Funds - R'!$A$2:$C$1170,3,FALSE),\"\")","v":""}]
[null,null,null,null,null,null,null,null,null,null,null,null,null,null,null,null,null,null,null,null,{"$f":"IFERROR(VLOOKUP(V92,'Funds - R'!$A$2:$C$1170,3,FALSE),\"\")","v":""}]
[null,null,null,null,null,null,null,null,null,null,null,null,null,null,null,null,null,null,null,null,{"$f":"IFERROR(VLOOKUP(V93,'Funds - R'!$A$2:$C$1170,3,FALSE),\"\")","v":""}]
[null,null,null,null,null,null,null,null,null,null,null,null,null,null,null,null,null,null,null,null,{"$f":"IFERROR(VLOOKUP(V94,'Funds - R'!$A$2:$C$1170,3,FALSE),\"\")","v":""}]
[null,null,null,null,null,null,null,null,null,null,null,null,null,null,null,null,null,null,null,null,{"$f":"IFERROR(VLOOKUP(V95,'Funds - R'!$A$2:$C$1170,3,FALSE),\"\")","v":""}]
[null,null,null,null,null,null,null,null,null,null,null,null,null,null,null,null,null,null,null,null,{"$f":"IFERROR(VLOOKUP(V96,'Funds - R'!$A$2:$C$1170,3,FALSE),\"\")","v":""}]
[null,null,null,null,null,null,null,null,null,null,null,null,null,null,null,null,null,null,null,null,{"$f":"IFERROR(VLOOKUP(V97,'Funds - R'!$A$2:$C$1170,3,FALSE),\"\")","v":""}]
[null,null,null,null,null,null,null,null,null,null,null,null,null,null,null,null,null,null,null,null,{"$f":"IFERROR(VLOOKUP(V98,'Funds - R'!$A$2:$C$1170,3,FALSE),\"\")","v":""}]
[null,null,null,null,null,null,null,null,null,null,null,null,null,null,null,null,null,null,null,null,{"$f":"IFERROR(VLOOKUP(V99,'Funds - R'!$A$2:$C$1170,3,FALSE),\"\")","v":""}]
[null,null,null,null,null,null,null,null,null,null,null,null,null,null,null,null,null,null,null,null,{"$f":"IFERROR(VLOOKUP(V100,'Funds - R'!$A$2:$C$1170,3,FALSE),\"\")","v":""}]
[null,null,null,null,null,null,null,null,null,null,null,null,null,null,null,null,null,null,null,null,{"$f":"IFERROR(VLOOKUP(V101,'Funds - R'!$A$2:$C$1170,3,FALSE),\"\")","v":""}]

{"sheet":"Instructions","index":3,"n_rows":77,"n_cols":18,"rows_kept":77,"cut":false,"hidden":false,"merged":[[62,2,62,4],[62,11,62,12],[63,2,63,4],[63,11,63,12],[60,2,60,4],[60,11,60,12],[61,2,61,4],[61,11,61,12],[14,17,14,18],[15,2,15,4],[15,5,15,6],[15,7,15,8],[15,9,15,12],[15,13,15,14],[15,15,15,16],[15,17,15,18],[14,2,14,4],[14,5,14,6],[14,7,14,8],[14,9,14,12],[14,13,14,14],[14,15,14,16],[16,17,16,18],[17,2,17,4],[66,2,66,4],[66,11,66,12],[67,2,67,4],[67,11,67,12],[69,5,69,10],[64,2,64,4],[64,11,64,12],[65,2,65,4],[65,11,65,12],[70,2,70,4],[70,11,70,12],[71,2,71,4],[71,11,71,12],[70,5,70,10],[71,5,71,10],[72,5,72,10],[73,5,73,10],[68,2,68,4],[68,11,68,12],[69,2,69,4],[69,11,69,12],[76,9,76,10],[76,11,76,12],[74,2,74,4],[74,11,74,12],[75,2,75,4],[75,11,75,12],[74,5,74,10],[75,5,75,10],[72,2,72,4],[72,11,72,12],[73,2,73,4],[73,11,73,12],[17,5,17,6],[17,7,17,8],[17,9,17,12],[17,13,17,14],[17,15,17,16],[17,17,17,18],[16,2,16,4],[16,5,16,6],[16,7,16,8],[16,9,16,12],[16,13,16,14],[16,15,16,16],[18,17,18,18],[19,2,19,4],[19,5,19,6],[19,7,19,8],[19,9,19,12],[19,13,19,14],[19,15,19,16],[19,17,19,18],[18,2,18,4],[18,5,18,6],[18,7,18,8],[18,9,18,12],[18,13,18,14],[18,15,18,16],[20,17,20,18],[21,2,21,4],[21,5,21,6],[21,7,21,8],[21,9,21,12],[21,13,21,14],[21,15,21,16],[21,17,21,18],[20,2,20,4],[20,5,20,6],[20,7,20,8],[20,9,20,12],[20,13,20,14],[20,15,20,16],[22,17,22,18],[23,2,23,4],[23,5,23,6],[23,7,23,8],[23,9,23,12],[23,13,23,14],[23,15,23,16],[23,17,23,18],[22,2,22,4],[22,5,22,6],[22,7,22,8],[22,9,22,12],[22,13,22,14],[22,15,22,16],[24,17,24,18],[25,2,25,4],[25,5,25,6],[25,7,25,8],[25,9,25,12],[25,13,25,14],[25,15,25,16],[25,17,25,18],[24,2,24,4],[24,5,24,6],[24,7,24,8],[24,9,24,12],[24,13,24,14],[24,15,24,16],[26,17,26,18],[27,2,27,4],[27,5,27,6],[27,7,27,8],[27,9,27,12],[27,13,27,14],[27,15,27,16],[27,17,27,18],[26,2,26,4],[26,5,26,6],[26,7,26,8],[26,9,26,12],[26,13,26,14],[26,15,26,16],[28,17,28,18],[29,2,29,4],[29,5,29,6],[29,7,29,8],[29,9,29,12],[29,13,29,14],[29,15,29,16],[29,17,29,18],[28,2,28,4],[28,5,28,6],[28,7,28,8],[28,9,28,12],[28,13,28,14],[28,15,28,16],[30,17,30,18],[31,2,31,4],[31,5,31,6],[31,7,31,8],[31,9,31,12],[31,13,31,14],[31,15,31,16],[31,17,31,18],[30,2,30,4],[30,5,30,6],[30,7,30,8],[30,9,30,12],[30,13,30,14],[30,15,30,16],[32,17,32,18],[33,2,33,4],[33,5,33,6],[33,7,33,8],[33,9,33,12],[33,13,33,14],[33,15,33,16],[33,17,33,18],[32,2,32,4],[32,5,32,6],[32,7,32,8],[32,9,32,12],[32,13,32,14],[32,15,32,16],[34,17,34,18],[35,2,35,4],[35,5,35,6],[35,7,35,8],[35,9,35,12],[35,13,35,14],[35,15,35,16],[35,17,35,18],[34,2,34,4],[34,5,34,6],[34,7,34,8],[34,9,34,12],[34,13,34,14],[34,15,34,16],[36,17,36,18],[49,2,49,4],[49,5,49,6],[49,7,49,8],[49,9,49,12],[49,13,49,14],[49,15,49,16],[49,17,49,18],[37,2,37,4],[37,5,37,6],[36,2,36,4],[36,5,36,6],[36,7,36,8],[36,9,36,12],[36,13,36,14],[36,15,36,16],[37,7,37,8],[37,9,37,12],[37,13,37,14],[37,15,37,16],[37,17,37,18],[38,2,38,4],[38,5,38,6],[38,7,38,8],[50,17,50,18],[51,2,51,4],[51,5,51,6],[51,7,51,8],[51,9,51,12],[51,13,51,14],[51,15,51,16],[51,17,51,18],[50,2,50,4],[50,5,50,6],[50,7,50,8],[50,9,50,12],[50,13,50,14],[50,15,50,16],[52,17,52,18],[53,2,53,4],[53,5,53,6],[53,7,53,8],[53,9,53,12],[53,13,53,14],[53,15,53,16],[53,17,53,18],[52,2,52,4],[52,5,52,6],[52,7,52,8],[52,9,52,12],[52,13,52,14],[52,15,52,16],[54,17,54,18],[55,2,55,4],[55,5,55,6],[55,7,55,8],[55,9,55,12],[55,13,55,14],[55,15,55,16],[55,17,55,18],[54,2,54,4],[54,5,54,6],[54,7,54,8],[54,9,54,12],[54,13,54,14],[54,15,54,16],[38,9,38,12],[38,13,38,14],[38,15,38,16],[38,17,38,18],[39,2,39,4],[39,5,39,6],[39,7,39,8],[39,9,39,12],[39,13,39,14],[39,15,39,16],[39,17,39,18],[40,17,40,18],[41,2,41,4],[41,5,41,6],[41,7,41,8],[41,9,41,12],[41,13,41,14],[41,15,41,16],[41,17,41,18],[40,2,40,4],[40,5,40,6],[40,7,40,8],[40,9,40,12],[40,13,40,14],[40,15,40,16],[42,17,42,18],[43,2,43,4],[43,5,43,6],[43,7,43,8],[43,9,43,12],[43,13,43,14],[43,15,43,16],[43,17,43,18],[42,2,42,4],[42,5,42,6],[42,7,42,8],[42,9,42,12],[42,13,42,14],[42,15,42,16],[44,17,44,18],[45,2,45,4],[45,5,45,6],[45,7,45,8],[45,9,45,12],[45,13,45,14],[45,15,45,16],[45,17,45,18],[44,2,44,4],[44,5,44,6],[44,7,44,8],[44,9,44,12],[44,13,44,14],[44,15,44,16],[48,17,48,18],[48,2,48,4],[48,5,48,6],[48,7,48,8],[48,9,48,12],[48,13,48,14],[48,15,48,16],[46,17,46,18],[47,2,47,4],[47,5,47,6],[47,7,47,8],[47,9,47,12],[47,13,47,14],[47,15,47,16],[47,17,47,18],[46,2,46,4],[46,5,46,6],[46,7,46,8],[46,9,46,12],[46,13,46,14],[46,15,46,16],[60,5,60,10],[61,5,61,10],[62,5,62,10],[63,5,63,10],[64,5,64,10],[65,5,65,10],[66,5,66,10],[67,5,67,10],[68,5,68,10]]}
[]
[]
[]
[]
[]
[]
[]
[]
[]
[]
[null,"Rebalance Instructions"]
[]
[]
[]
[null,null,"Fund Sold",null,null,"Total Amount Sold",null,"% Sold",null,"Fund Purchased",null,null,null,"Amount Bought",null,"% Bought",null,"Capital Gain/Loss"]
[null,null," Allan Gray Balanced Fund C",null,null,40.783399999999801,null,1.419999999999999E-2,null," Laurium Flexible Prescient Fund A1",null,null,null,40.78,null,1,null,0]
[null,null," Coronation Balanced Plus Fund P",null,null,38.313400000000001,null,1.3299999999999979E-2,null," Laurium Flexible Prescient Fund A1",null,null,null,38.31,null,1,null,0]
[null,null," Investec Global Franchise Feeder Fund H",null,null,56.426699999999983,null,3.8200000000000012E-2,null," Laurium Flexible Prescient Fund A1",null,null,null,56.43,null,1,null,0]
[null,null," Investec Managed Fund H",null,null,54.733399999999619,null,1.8900000000000028E-2,null," Laurium Flexible Prescient Fund A1",null,null,null,54.73,null,1,null,0]
[null,null," PSG Flexible Fund E",null,null,2782.93,null,1,null," Laurium Flexible Prescient Fund A1",null,null,null,2649.25,null,0.95196429662262438,null,0]
[null,null,null,null,null,null,null,null,null," Satrix Equally Weighted TOP 40 Index Fund B1",null,null,null,53.94,null,1.9382449432792059E-2,null,0]
[null,null,null,null,null,null,null,null,null," Satrix Property Index Fund B1",null,null,null,79.739999999999995,null,2.8653253944583585E-2,null,0]
[null,null," PSG Global Flexible Feeder Fund B",null,null,6.6866999999999734,null,4.7000000000000375E-3,null," Satrix Property Index Fund B1",null,null,null,6.69,null,1,null,0]
[null,null," Reitway BCI Global Property Fund C",null,null,22.066699999999855,null,1.529999999999998E-2,null," Satrix Property Index Fund B1",null,null,null,10.01,null,0.45355686452197552,null,0]
[null,null,null,null,null,null,null,null,null," STANLIB Income Fund B6",null,null,null,4.92,null,0.22292705029451743,null,0]
[null,null,null,null,null,null,null,null,null," Sygnia 4th Industrial Revolution Global Equity Fund A",null,null,null,7.13,null,0.32306298142274581,null,0]
[null,null," Satrix MSCI World Equity Index Feeder Fund B2",null,null,47.258399999999938,null,2.5900000000000034E-2,null," Satrix Equally Weighted TOP 40 Index Fund B1",null,null,null,47.26,null,1,null,0]
[null,null," STANLIB S&P500  Index Feeder Fund B1",null,null,41.198399999999992,null,2.2700000000000053E-2,null," STANLIB Absolute Plus Fund B1",null,null,null,4.07,null,9.8786407766990297E-2,null,0]
[null,null,null,null,null,null,null,null,null," STANLIB Income Fund B6",null,null,null,37.130000000000003,null,0.90121359223300967,null,0]
[]
[]
[]
[]
[]
[]
[]
[]
[]
[]
[]
[]
[]
[]
[]
[]
[]
[]
[]
[]
[]
[]
[]
[]
[]
[]
[null,null,"Total Capital Gains/Loss",null,null,null,null,null,null,null,null,null,null,null,null,null,null,{"$f":"SUM(R16:S55)","v":0}]
[]
[null,"Rebalanced Portfolio"]
[]
[]
[null,null,"Manco",null,null,"Fund",null,null,null,null,null,"Percentage"]
[null,1,{"$f":"IF(Transactions!C60=\"\",\"\",Transactions!C60)","v":"Allan Gray Unit Trust Management Limited"},null,null,{"$f":"IF(Transactions!F60=\"\",\"\",Transactions!F60)","v":" Allan Gray Balanced Fund C"},null,null,null,null,null,{"$f":"IF(Transactions!L60=\"\",\"\",Transactions!L60)","v":0.08}]
[null,2,{"$f":"IF(Transactions!C61=\"\",\"\",Transactions!C61)","v":"Coronation Management Company"},null,null,{"$f":"IF(Transactions!F61=\"\",\"\",Transactions!F61)","v":" Coronation Balanced Plus Fund P"},null,null,null,null,null,{"$f":"IF(Transactions!L61=\"\",\"\",Transactions!L61)","v":0.08}]
[null,3,{"$f":"IF(Transactions!C62=\"\",\"\",Transactions!C62)","v":"Investec Fund Managers"},null,null,{"$f":"IF(Transactions!F62=\"\",\"\",Transactions!F62)","v":" Investec Global Franchise Feeder Fund H"},null,null,null,null,null,{"$f":"IF(Transactions!L62=\"\",\"\",Transactions!L62)","v":0.04}]
[null,4,{"$f":"IF(Transactions!C63=\"\",\"\",Transactions!C63)","v":"Investec Fund Managers"},null,null,{"$f":"IF(Transactions!F63=\"\",\"\",Transactions!F63)","v":" Investec Managed Fund H"},null,null,null,null,null,{"$f":"IF(Transactions!L63=\"\",\"\",Transactions!L63)","v":0.08}]
[null,5,{"$f":"IF(Transactions!C64=\"\",\"\",Transactions!C64)","v":"Prescient Management Company Ltd"},null,null,{"$f":"IF(Transactions!F64=\"\",\"\",Transactions!F64)","v":" Laurium Flexible Prescient Fund A1"},null,null,null,null,null,{"$f":"IF(Transactions!L64=\"\",\"\",Transactions!L64)","v":0.08}]
[null,6,{"$f":"IF(Transactions!C65=\"\",\"\",Transactions!C65)","v":"PSG Collective Investments Ltd"},null,null,{"$f":"IF(Transactions!F65=\"\",\"\",Transactions!F65)","v":" PSG Global Flexible Feeder Fund B"},null,null,null,null,null,{"$f":"IF(Transactions!L65=\"\",\"\",Transactions!L65)","v":0.04}]
[null,7,{"$f":"IF(Transactions!C66=\"\",\"\",Transactions!C66)","v":"Boutique Collective Investments (Pty) Ltd"},null,null,{"$f":"IF(Transactions!F66=\"\",\"\",Transactions!F66)","v":" Reitway BCI Global Property Fund C"},null,null,null,null,null,{"$f":"IF(Transactions!L66=\"\",\"\",Transactions!L66)","v":0.04}]
[null,8,{"$f":"IF(Transactions!C67=\"\",\"\",Transactions!C67)","v":"Satrix Managers (RF) (Pty) Ltd"},null,null,{"$f":"IF(Transactions!F67=\"\",\"\",Transactions!F67)","v":" Satrix Equally Weighted TOP 40 Index Fund B1"},null,null,null,null,null,{"$f":"IF(Transactions!L67=\"\",\"\",Transactions!L67)","v":0.09}]
[null,9,{"$f":"IF(Transactions!C68=\"\",\"\",Transactions!C68)","v":"Satrix Managers (RF) (Pty) Ltd"},null,null,{"$f":"IF(Transactions!F68=\"\",\"\",Transactions!F68)","v":" Satrix MSCI World Equity Index Feeder Fund B2"},null,null,null,null,null,{"$f":"IF(Transactions!L68=\"\",\"\",Transactions!L68)","v":0.05}]
[null,10,{"$f":"IF(Transactions!C69=\"\",\"\",Transactions!C69)","v":"Satrix Managers (RF) (Pty) Ltd"},null,null,{"$f":"IF(Transactions!F69=\"\",\"\",Transactions!F69)","v":" Satrix Property Index Fund B1"},null,null,null,null,null,{"$f":"IF(Transactions!L69=\"\",\"\",Transactions!L69)","v":0.05}]
[null,11,{"$f":"IF(Transactions!C70=\"\",\"\",Transactions!C70)","v":"STANLIB Collective Investments"},null,null,{"$f":"IF(Transactions!F70=\"\",\"\",Transactions!F70)","v":" STANLIB Absolute Plus Fund B1"},null,null,null,null,null,{"$f":"IF(Transactions!L70=\"\",\"\",Transactions!L70)","v":0.08}]
[null,12,{"$f":"IF(Transactions!C71=\"\",\"\",Transactions!C71)","v":"STANLIB Collective Investments"},null,null,{"$f":"IF(Transactions!F71=\"\",\"\",Transactions!F71)","v":" STANLIB Income Fund B6"},null,null,null,null,null,{"$f":"IF(Transactions!L71=\"\",\"\",Transactions!L71)","v":0.2}]
[null,13,{"$f":"IF(Transactions!C72=\"\",\"\",Transactions!C72)","v":"STANLIB Collective Investments"},null,null,{"$f":"IF(Transactions!F72=\"\",\"\",Transactions!F72)","v":" STANLIB S&P500  Index Feeder Fund B1"},null,null,null,null,null,{"$f":"IF(Transactions!L72=\"\",\"\",Transactions!L72)","v":0.05}]
[null,14,{"$f":"IF(Transactions!C73=\"\",\"\",Transactions!C73)","v":"Sygnia Asset Management (Pty) Limited"},null,null,{"$f":"IF(Transactions!F73=\"\",\"\",Transactions!F73)","v":" Sygnia 4th Industrial Revolution Global Equity Fund A"},null,null,null,null,null,{"$f":"IF(Transactions!L73=\"\",\"\",Transactions!L73)","v":0.04}]
[null,15,{"$f":"IF(Transactions!C74=\"\",\"\",Transactions!C74)","v":""},null,null,{"$f":"IF(Transactions!F74=\"\",\"\",Transactions!F74)","v":" "},null,null,null,null,null,{"$f":"IF(Transactions!L74=\"\",\"\",Transactions!L74)","v":""}]
[null,null,null,null,null,null,null,null,null,"Total",null,{"$f":"SUM(L62:M76)","v":1.0000000000000002}]

{"sheet":"Transactions","index":4,"n_rows":75,"n_cols":51,"rows_kept":75,"cut":false,"hidden":false,"merged":[[38,15,38,16],[39,15,39,16],[40,15,40,16],[38,9,38,12],[39,9,39,12],[40,9,40,12],[38,7,38,8],[39,7,39,8],[40,7,40,8],[38,13,38,14],[39,13,39,14],[40,13,40,14],[52,26,52,28],[52,29,52,30],[52,31,52,32],[52,33,52,36],[52,37,52,38],[52,39,52,40],[52,41,52,42],[12,46,12,49],[50,26,50,28],[50,29,50,30],[50,31,50,32],[50,33,50,36],[50,37,50,38],[50,39,50,40],[50,41,50,42],[51,26,51,28],[51,29,51,30],[51,31,51,32],[51,33,51,36],[51,37,51,38],[51,39,51,40],[51,41,51,42],[48,26,48,28],[48,29,48,30],[48,31,48,32],[48,33,48,36],[48,37,48,38],[48,39,48,40],[48,41,48,42],[49,26,49,28],[49,29,49,30],[49,31,49,32],[49,33,49,36],[49,37,49,38],[49,39,49,40],[49,41,49,42],[46,26,46,28],[46,29,46,30],[46,31,46,32],[46,33,46,36],[46,37,46,38],[46,39,46,40],[46,41,46,42],[47,26,47,28],[47,29,47,30],[47,31,47,32],[47,33,47,36],[47,37,47,38],[47,39,47,40],[47,41,47,42],[44,26,44,28],[44,29,44,30],[44,31,44,32],[44,33,44,36],[44,37,44,38],[44,39,44,40],[44,41,44,42],[45,26,45,28],[45,29,45,30],[45,31,45,32],[45,33,45,36],[45,37,45,38],[45,39,45,40],[45,41,45,42],[42,26,42,28],[42,29,42,30],[42,31,42,32],[42,33,42,36],[42,37,42,38],[42,39,42,40],[42,41,42,42],[43,26,43,28],[43,29,43,30],[43,31,43,32],[43,33,43,36],[43,37,43,38],[43,39,43,40],[43,41,43,42],[40,26,40,28],[40,29,40,30],[40,31,40,32],[40,33,40,36],[40,37,40,38],[40,39,40,40],[40,41,40,42],[41,26,41,28],[41,29,41,30],[41,31,41,32],[41,33,41,36],[41,37,41,38],[41,39,41,40],[41,41,41,42],[38,26,38,28],[38,29,38,30],[38,31,38,32],[38,33,38,36],[38,37,38,38],[38,39,38,40],[38,41,38,42],[39,26,39,28],[39,29,39,30],[39,31,39,32],[39,33,39,36],[39,37,39,38],[39,39,39,40],[39,41,39,42],[36,26,36,28],[36,29,36,30],[36,31,36,32],[36,33,36,36],[36,37,36,38],[36,39,36,40],[36,41,36,42],[37,26,37,28],[37,29,37,30],[37,31,37,32],[37,33,37,36],[37,37,37,38],[37,39,37,40],[37,41,37,42],[34,26,34,28],[34,29,34,30],[34,31,34,32],[34,33,34,36],[34,37,34,38],[34,39,34,40],[34,41,34,42],[35,26,35,28],[35,29,35,30],[35,31,35,32],[35,33,35,36],[35,37,35,38],[35,39,35,40],[35,41,35,42],[32,26,32,28],[32,29,32,30],[32,31,32,32],[32,33,32,36],[32,37,32,38],[32,39,32,40],[32,41,32,42],[33,26,33,28],[33,29,33,30],[33,31,33,32],[33,33,33,36],[33,37,33,38],[33,39,33,40],[33,41,33,42],[30,26,30,28],[30,29,30,30],[30,31,30,32],[30,33,30,36],[30,37,30,38],[30,39,30,40],[30,41,30,42],[31,26,31,28],[31,29,31,30],[31,31,31,32],[31,33,31,36],[31,37,31,38],[31,39,31,40],[31,41,31,42],[28,26,28,28],[28,29,28,30],[28,31,28,32],[28,33,28,36],[28,37,28,38],[28,39,28,40],[28,41,28,42],[29,26,29,28],[29,29,29,30],[29,31,29,32],[29,33,29,36],[29,37,29,38],[29,39,29,40],[29,41,29,42],[26,26,26,28],[26,29,26,30],[26,31,26,32],[26,33,26,36],[26,37,26,38],[26,39,26,40],[26,41,26,42],[27,26,27,28],[27,29,27,30],[27,31,27,32],[27,33,27,36],[27,37,27,38],[27,39,27,40],[27,41,27,42],[24,26,24,28],[24,29,24,30],[24,31,24,32],[24,33,24,36],[24,37,24,38],[24,39,24,40],[24,41,24,42],[25,26,25,28],[25,29,25,30],[25,31,25,32],[25,33,25,36],[25,37,25,38],[25,39,25,40],[25,41,25,42],[22,26,22,28],[22,29,22,30],[22,31,22,32],[22,33,22,36],[22,37,22,38],[22,39,22,40],[22,41,22,42],[23,26,23,28],[23,29,23,30],[23,31,23,32],[23,33,23,36],[23,37,23,38],[23,39,23,40],[23,41,23,42],[20,26,20,28],[20,29,20,30],[20,31,20,32],[20,33,20,36],[20,37,20,38],[20,39,20,40],[20,41,20,42],[21,26,21,28],[21,29,21,30],[21,31,21,32],[21,33,21,36],[21,37,21,38],[21,39,21,40],[21,41,21,42],[18,26,18,28],[18,29,18,30],[18,31,18,32],[18,33,18,36],[18,37,18,38],[18,39,18,40],[18,41,18,42],[19,26,19,28],[19,29,19,30],[19,31,19,32],[19,33,19,36],[19,37,19,38],[19,39,19,40],[19,41,19,42],[16,26,16,28],[16,29,16,30],[16,31,16,32],[16,33,16,36],[16,37,16,38],[16,39,16,40],[16,41,16,42],[17,26,17,28],[17,29,17,30],[17,31,17,32],[17,33,17,36],[17,37,17,38],[17,39,17,40],[17,41,17,42],[14,26,14,28],[14,29,14,30],[14,31,14,32],[14,33,14,36],[14,37,14,38],[14,39,14,40],[14,41,14,42],[15,26,15,28],[15,29,15,30],[15,31,15,32],[15,33,15,36],[15,37,15,38],[15,39,15,40],[15,41,15,42],[12,26,12,28],[12,29,12,30],[12,31,12,32],[12,33,12,36],[12,37,12,38],[12,39,12,40],[12,41,12,42],[12,43,12,45],[13,26,13,28],[13,29,13,30],[13,31,13,32],[13,33,13,36],[13,37,13,38],[13,39,13,40],[13,41,13,42],[48,17,48,18],[49,17,49,18],[50,17,50,18],[51,17,51,18],[52,17,52,18],[42,17,42,18],[43,17,43,18],[44,17,44,18],[45,17,45,18],[46,17,46,18],[47,17,47,18],[24,17,24,18],[25,17,25,18],[26,17,26,18],[27,17,27,18],[28,17,28,18],[41,17,41,18],[18,17,18,18],[19,17,19,18],[20,17,20,18],[21,17,21,18],[22,17,22,18],[23,17,23,18],[29,17,29,18],[30,17,30,18],[31,17,31,18],[32,17,32,18],[33,17,33,18],[34,17,34,18],[35,17,35,18],[36,17,36,18],[37,17,37,18],[38,17,38,18],[39,17,39,18],[40,17,40,18],[12,17,12,18],[13,17,13,18],[14,17,14,18],[15,17,15,18],[16,17,16,18],[17,17,17,18],[35,2,35,4],[36,2,36,4],[37,2,37,4],[28,2,28,4],[28,5,28,6],[28,7,28,8],[28,9,28,12],[28,13,28,14],[28,15,28,16],[27,2,27,4],[27,5,27,6],[27,7,27,8],[27,9,27,12],[27,13,27,14],[27,15,27,16],[26,2,26,4],[26,5,26,6],[26,7,26,8],[38,2,38,4],[39,2,39,4],[40,2,40,4],[29,2,29,4],[30,2,30,4],[31,2,31,4],[32,2,32,4],[33,2,33,4],[34,2,34,4],[74,7,74,8],[74,9,74,10],[74,11,74,12],[67,2,67,4],[67,5,67,8],[67,9,67,10],[67,11,67,12],[68,2,68,4],[68,5,68,8],[68,9,68,10],[71,2,71,4],[71,5,71,8],[71,9,71,10],[71,11,71,12],[72,2,72,4],[72,5,72,8],[72,9,72,10],[72,11,72,12],[69,5,69,8],[69,9,69,10],[69,11,69,12],[70,2,70,4],[70,5,70,8],[70,9,70,10],[66,2,66,4],[66,5,66,8],[66,9,66,10],[66,11,66,12],[73,2,73,4],[73,5,73,8],[73,9,73,10],[73,11,73,12],[68,11,68,12],[69,2,69,4],[70,11,70,12],[64,2,64,4],[64,5,64,8],[64,9,64,10],[64,11,64,12],[65,2,65,4],[65,5,65,8],[65,9,65,10],[65,11,65,12],[62,2,62,4],[62,5,62,8],[62,9,62,10],[62,11,62,12],[63,2,63,4],[63,5,63,8],[63,9,63,10],[63,11,63,12],[60,2,60,4],[60,5,60,8],[60,9,60,10],[60,11,60,12],[61,2,61,4],[61,5,61,8],[61,9,61,10],[61,11,61,12],[58,2,58,4],[58,5,58,8],[58,9,58,10],[58,11,58,12],[59,2,59,4],[59,5,59,8],[59,9,59,10],[59,11,59,12],[52,2,52,4],[52,5,52,6],[52,7,52,8],[52,9,52,12],[52,13,52,14],[52,15,52,16],[51,2,51,4],[51,5,51,6],[51,7,51,8],[51,9,51,12],[51,13,51,14],[51,15,51,16],[50,2,50,4],[50,5,50,6],[50,7,50,8],[50,9,50,12],[50,13,50,14],[50,15,50,16],[49,2,49,4],[49,5,49,6],[49,7,49,8],[49,9,49,12],[49,13,49,14],[49,15,49,16],[48,2,48,4],[48,5,48,6],[48,7,48,8],[48,9,48,12],[48,13,48,14],[48,15,48,16],[47,2,47,4],[47,5,47,6],[47,7,47,8],[47,9,47,12],[47,13,47,14],[47,15,47,16],[46,2,46,4],[46,5,46,6],[46,7,46,8],[46,9,46,12],[46,13,46,14],[46,15,46,16],[45,2,45,4],[45,5,45,6],[45,7,45,8],[45,9,45,12],[45,13,45,14],[45,15,45,16],[44,2,44,4],[44,5,44,6],[44,7,44,8],[44,9,44,12],[44,13,44,14],[44,15,44,16],[43,2,43,4],[43,5,43,6],[43,7,43,8],[43,9,43,12],[43,13,43,14],[43,15,43,16],[42,2,42,4],[42,5,42,6],[42,7,42,8],[42,9,42,12],[42,13,42,14],[42,15,42,16],[41,2,41,4],[41,5,41,6],[41,7,41,8],[41,9,41,12],[41,13,41,14],[41,15,41,16],[26,9,26,12],[26,13,26,14],[26,15,26,16],[25,2,25,4],[25,5,25,6],[25,7,25,8],[25,9,25,12],[25,13,25,14],[25,15,25,16],[24,2,24,4],[24,5,24,6],[24,7,24,8],[24,9,24,12],[24,13,24,14],[24,15,24,16],[23,2,23,4],[23,5,23,6],[23,7,23,8],[23,9,23,12],[23,13,23,14],[23,15,23,16],[22,2,22,4],[22,5,22,6],[22,7,22,8],[22,9,22,12],[22,13,22,14],[22,15,22,16],[21,2,21,4],[21,5,21,6],[21,7,21,8],[21,9,21,12],[21,13,21,14],[21,15,21,16],[20,2,20,4],[20,5,20,6],[20,7,20,8],[20,9,20,12],[20,13,20,14],[20,15,20,16],[19,2,19,4],[19,5,19,6],[19,7,19,8],[19,9,19,12],[19,13,19,14],[19,15,19,16],[18,2,18,4],[18,5,18,6],[18,7,18,8],[18,9,18,12],[18,13,18,14],[18,15,18,16],[17,2,17,4],[17,5,17,6],[17,7,17,8],[17,9,17,12],[17,13,17,14],[17,15,17,16],[16,2,16,4],[16,5,16,6],[16,7,16,8],[16,9,16,12],[16,13,16,14],[16,15,16,16],[15,2,15,4],[15,5,15,6],[15,7,15,8],[15,9,15,12],[15,13,15,14],[15,15,15,16],[12,2,12,4],[12,5,12,6],[12,7,12,8],[12,9,12,12],[12,13,12,14],[12,15,12,16],[14,2,14,4],[14,5,14,6],[14,7,14,8],[14,9,14,12],[14,13,14,14],[14,15,14,16],[13,2,13,4],[13,5,13,6],[13,7,13,8],[13,9,13,12],[13,13,13,14],[13,15,13,16],[33,9,33,12],[34,9,34,12],[35,9,35,12],[36,9,36,12],[29,15,29,16],[30,15,30,16],[31,15,31,16],[32,15,32,16],[33,15,33,16],[34,15,34,16],[35,15,35,16],[36,15,36,16],[37,15,37,16],[29,7,29,8],[30,7,30,8],[31,7,31,8],[32,7,32,8],[33,7,33,8],[34,7,34,8],[35,7,35,8],[36,7,36,8],[37,7,37,8],[37,9,37,12],[29,13,29,14],[30,13,30,14],[31,13,31,14],[32,13,32,14],[33,13,33,14],[34,13,34,14],[35,13,35,14],[36,13,36,14],[37,13,37,14],[29,9,29,12],[30,9,30,12],[31,9,31,12],[32,9,32,12],[38,5,38,6],[39,5,39,6],[40,5,40,6],[29,5,29,6],[30,5,30,6],[31,5,31,6],[32,5,32,6],[33,5,33,6],[34,5,34,6],[35,5,35,6],[36,5,36,6],[37,5,37,6]]}
[]
[]
[]
[]
[]
[]
[]
[]
[]
[]
[null,"Switch Instructions"]
[null,null,3,4,5,6,7,8,9,10,11,12,13,14,15,16,17,18,19,20,21,22,23,24,25,26,27,28,29,30,31,32,33,34,35,36,37,38,39,40,41,42,43,44,45,46,47,48,49,50,51]
[null,null,"Fund",null,null,"Total Amount Sold",null,"% Sold",null,"Proceeds Split",null,null,null,"Proceeds",null,"Proceeds %",null,"Capital Gain/Loss",null,null,null,null,"Check Fund","Check Amount","Type of Switch",null,"Fund From",null,null,"Total Amount Sold",null,"% Sold",null,"Fund To",null,null,null,"Amount Bought",null,"% Bought",null,"CGT",null,"From Side",null,null,"To Side",null,null,null,"CGT"]
[null,null," Allan Gray Balanced Fund C",null,null,2880.29,null,1,null," Allan Gray Balanced Fund C",null,null,null,2839.5066160000001,null,0.98580000000000001,null,0,null,"Inter Platform Switch",null,null,{"$f":"IF(C14=J14,\"Same Fund\",\"Cont\")","v":"Same Fund"},{"$f":"IF(W14=\"Same Fund\",IF(F14=N14,\"Skip\",\"Cont\"),\"Cont\")","v":"Cont"},{"$f":"IF(X14=\"Skip\",\"\",IF(F14=F13,\"Same Switch\",\"New Switch\"))","v":"New Switch"},{"$f":"IF(AH14=\"\",\"\",1)","v":1}," Allan Gray Balanced Fund C",null,null,2880.29,null,1,null," Allan Gray Balanced Fund C",null,null,null,2839.5066000000002,null,0.98580000000000001,null,0,null,{"$f":"IF(AA14=AH14,\"Same Fund\",\"Cont\")","v":"Same Fund"},{"$f":"IF(AR14=\"Same Fund\",AD14-AL14,\"Cont\")","v":40.783399999999801},{"$f":"IF(AS14=\"Cont\",\"Cont\",AF14-AN14)","v":1.419999999999999E-2},{"$f":"IF(AT14=\"Cont\",\"Cont\",\"Skip\")","v":"Skip"},{"$f":"ROUND(IF(AS14=\"Cont\",AL14,AS14),2)","v":40.78},{"$f":"ROUND(IF(AS14=\"Cont\",AD14,AS14),2)","v":40.78},{"$f":"AV14/AW14","v":1},{"$f":"IF(IFERROR(VLOOKUP(AA14,'Money Market'!$B$15:$C$62,2,FALSE),AP14)=\"No CGT\",0,AP14)","v":0}]
[null,null," Allan Gray Balanced Fund C",null,null,2880.29,null,1,null," Laurium Flexible Prescient Fund A1",null,null,null,40.78,null,1.419999999999999E-2,null,0,null,"Inter manco switch",null,null,{"$f":"IF(C15=J15,\"Same Fund\",\"Cont\")","v":"Cont"},{"$f":"IF(W15=\"Same Fund\",IF(F15=N15,\"Skip\",\"Cont\"),\"Cont\")","v":"Cont"},{"$f":"IF(X15=\"Skip\",\"\",IF(F15=F14,\"Same Switch\",\"New Switch\"))","v":"Same Switch"},{"$f":"IF(AH15=\"\",\"\",1)","v":1},null,null,null,null,null,null,null," Laurium Flexible Prescient Fund A1",null,null,null,40.78,null,1.419999999999999E-2,null,0,null,{"$f":"IF(AA15=AH15,\"Same Fund\",\"Cont\")","v":"Cont"},{"$f":"IF(AR15=\"Same Fund\",AD15-AL15,\"Cont\")","v":"Cont"},{"$f":"IF(AS15=\"Cont\",\"Cont\",AF15-AN15)","v":"Cont"},{"$f":"IF(AT15=\"Cont\",\"Cont\",\"Skip\")","v":"Cont"},{"$f":"ROUND(IF(AS15=\"Cont\",AL15,AS15),2)","v":40.78},{"$f":"ROUND(IF(AS15=\"Cont\",IF(AD15=\"\",AW14,AD15),AS15),2)","v":40.78},{"$f":"AV15/AW15","v":1},{"$f":"IF(IFERROR(VLOOKUP(AA15,'Money Market'!$B$15:$C$62,2,FALSE),AP15)=\"No CGT\",0,AP15)","v":0}]
[null,null," Coronation Balanced Plus Fund P",null,null,2877.82,null,1,null," Coronation Balanced Plus Fund P",null,null,null,2839.5066160000001,null,0.98670000000000002,null,0,null,"Inter Platform Switch",null,null,"Same Fund","Cont","New Switch",1," Coronation Balanced Plus Fund P",null,null,2877.82,null,1,null," Coronation Balanced Plus Fund P",null,null,null,2839.5066000000002,null,0.98670000000000002,null,0,null,"Same Fund",38.313400000000001,1.3299999999999979E-2,"Skip",38.31,{"$f":"ROUND(IF(AS16=\"Cont\",IF(AD16=\"\",AW15,AD16),AS16),2)","v":38.31},{"$f":"AV16/AW16","v":1},{"$f":"IF(IFERROR(VLOOKUP(AA16,'Money Market'!$B$15:$C$62,2,FALSE),AP16)=\"No CGT\",0,AP16)","v":0}]
[null,null," Coronation Balanced Plus Fund P",null,null,2877.82,null,1,null," Laurium Flexible Prescient Fund A1",null,null,null,38.31,null,1.3299999999999979E-2,null,0,null,"Inter manco switch",null,null,"Cont","Cont","Same Switch",1,null,null,null,null,null,null,null," Laurium Flexible Prescient Fund A1",null,null,null,38.31,null,1.3299999999999979E-2,null,0,null,"Cont",{"$f":"IF(AR17=\"Same Fund\",AD17-AL17,\"Cont\")","v":"Cont"},"Cont","Cont",38.31,38.31,1,{"$f":"IF(IFERROR(VLOOKUP(AA17,'Money Market'!$B$15:$C$62,2,FALSE),AP17)=\"No CGT\",0,AP17)","v":0}]
[null,null," Investec Global Franchise Feeder Fund H",null,null,1476.18,null,1,null," Investec Global Franchise Feeder Fund H",null,null,null,1419.7533080000001,null,0.96179999999999999,null,0,null,"Inter Platform Switch",null,null,"Same Fund","Cont","New Switch",1," Investec Global Franchise Feeder Fund H",null,null,1476.18,null,1,null," Investec Global Franchise Feeder Fund H",null,null,null,1419.7533000000001,null,0.96179999999999999,null,0,null,"Same Fund",56.426699999999983,3.8200000000000012E-2,"Skip",56.43,56.43,1,{"$f":"IF(IFERROR(VLOOKUP(AA18,'Money Market'!$B$15:$C$62,2,FALSE),AP18)=\"No CGT\",0,AP18)","v":0}]
[null,null," Investec Global Franchise Feeder Fund H",null,null,1476.18,null,1,null," Laurium Flexible Prescient Fund A1",null,null,null,56.43,null,3.8200000000000012E-2,null,0,null,"Inter manco switch",null,null,"Cont","Cont","Same Switch",1,null,null,null,null,null,null,null," Laurium Flexible Prescient Fund A1",null,null,null,56.43,null,3.8200000000000012E-2,null,0,null,{"$f":"IF(AA19=AH19,\"Same Fund\",\"Cont\")","v":"Cont"},"Cont","Cont","Cont",56.43,56.43,1,{"$f":"IF(IFERROR(VLOOKUP(AA19,'Money Market'!$B$15:$C$62,2,FALSE),AP19)=\"No CGT\",0,AP19)","v":0}]
[null,null," Investec Managed Fund H",null,null,2894.24,null,1,null," Investec Managed Fund H",null,null,null,2839.5066160000001,null,0.98109999999999997,null,0,null,"Inter Platform Switch",null,null,"Same Fund","Cont","New Switch",1," Investec Managed Fund H",null,null,2894.24,null,1,null," Investec Managed Fund H",null,null,null,2839.5066000000002,null,0.98109999999999997,null,0,null,"Same Fund",54.733399999999619,1.8900000000000028E-2,"Skip",54.73,54.73,1,{"$f":"IF(IFERROR(VLOOKUP(AA20,'Money Market'!$B$15:$C$62,2,FALSE),AP20)=\"No CGT\",0,AP20)","v":0}]
[null,null," Investec Managed Fund H",null,null,2894.24,null,1,null," Laurium Flexible Prescient Fund A1",null,null,null,54.73,null,1.8900000000000028E-2,null,0,null,"Inter manco switch",null,null,"Cont","Cont","Same Switch",1,null,null,null,null,null,null,null," Laurium Flexible Prescient Fund A1",null,null,null,54.73,null,1.8900000000000028E-2,null,0,null,"Cont","Cont","Cont","Cont",54.73,54.73,1,{"$f":"IF(IFERROR(VLOOKUP(AA21,'Money Market'!$B$15:$C$62,2,FALSE),AP21)=\"No CGT\",0,AP21)","v":0}]
[null,null," PSG Flexible Fund E",null,null,2782.93,null,1,null," Laurium Flexible Prescient Fund A1",null,null,null,2649.25,null,0.95199999999999996,null,0,null,"Inter manco switch",null,null,"Cont","Cont","New Switch",1," PSG Flexible Fund E",null,null,2782.93,null,1,null," Laurium Flexible Prescient Fund A1",null,null,null,2649.25,null,0.95199999999999996,null,0,null,"Cont","Cont","Cont","Cont",2649.25,{"$f":"ROUND(IF(AS22=\"Cont\",IF(AD22=\"\",AW21,AD22),AS22),2)","v":2782.93},0.95196429662262438,{"$f":"IF(IFERROR(VLOOKUP(AA22,'Money Market'!$B$15:$C$62,2,FALSE),AP22)=\"No CGT\",0,AP22)","v":0}]
[null,null," PSG Flexible Fund E",null,null,2782.93,null,1,null," Satrix Equally Weighted TOP 40 Index Fund B1",null,null,null,53.94,null,1.9400000000000001E-2,null,0,null,"Inter manco switch",null,null,"Cont","Cont","Same Switch",1,null,null,null,null,null,null,null," Satrix Equally Weighted TOP 40 Index Fund B1",null,null,null,53.94,null,1.9400000000000001E-2,null,0,null,"Cont","Cont","Cont","Cont",53.94,2782.93,1.9382449432792059E-2,{"$f":"IF(IFERROR(VLOOKUP(AA23,'Money Market'!$B$15:$C$62,2,FALSE),AP23)=\"No CGT\",0,AP23)","v":0}]
[null,null," PSG Flexible Fund E",null,null,2782.93,null,1,null," Satrix Property Index Fund B1",null,null,null,79.739999999999995,null,2.860000000000007E-2,null,0,null,"Inter manco switch",null,null,"Cont","Cont","Same Switch",1,null,null,null,null,null,null,null," Satrix Property Index Fund B1",null,null,null,79.739999999999995,null,2.860000000000007E-2,null,0,null,"Cont","Cont","Cont","Cont",79.739999999999995,2782.93,2.8653253944583585E-2,{"$f":"IF(IFERROR(VLOOKUP(AA24,'Money Market'!$B$15:$C$62,2,FALSE),AP24)=\"No CGT\",0,AP24)","v":0}]
[null,null," PSG Global Flexible Feeder Fund B",null,null,1426.44,null,1,null," PSG Global Flexible Feeder Fund B",null,null,null,1419.7533080000001,null,0.99529999999999996,null,0,null,"Inter Platform Switch",null,null,"Same Fund","Cont","New Switch",1," PSG Global Flexible Feeder Fund B",null,null,1426.44,null,1,null," PSG Global Flexible Feeder Fund B",null,null,null,1419.7533000000001,null,0.99529999999999996,null,0,null,"Same Fund",6.6866999999999734,4.7000000000000375E-3,"Skip",6.69,6.69,1,{"$f":"IF(IFERROR(VLOOKUP(AA25,'Money Market'!$B$15:$C$62,2,FALSE),AP25)=\"No CGT\",0,AP25)","v":0}]
[null,null," PSG Global Flexible Feeder Fund B",null,null,1426.44,null,1,null," Satrix Property Index Fund B1",null,null,null,6.69,null,4.7000000000000375E-3,null,0,null,"Inter manco switch",null,null,"Cont","Cont","Same Switch",1,null,null,null,null,null,null,null," Satrix Property Index Fund B1",null,null,null,6.69,null,4.7000000000000375E-3,null,0,null,"Cont","Cont","Cont","Cont",6.69,6.69,1,{"$f":"IF(IFERROR(VLOOKUP(AA26,'Money Market'!$B$15:$C$62,2,FALSE),AP26)=\"No CGT\",0,AP26)","v":0}]
[null,null," Reitway BCI Global Property Fund C",null,null,1441.82,null,1,null," Reitway BCI Global Property Fund C",null,null,null,1419.7533080000001,null,0.98470000000000002,null,0,null,"Inter Platform Switch",null,null,"Same Fund","Cont","New Switch",1," Reitway BCI Global Property Fund C",null,null,1441.82,null,1,null," Reitway BCI Global Property Fund C",null,null,null,1419.7533000000001,null,0.98470000000000002,null,0,null,"Same Fund",{"$f":"IF(AR27=\"Same Fund\",AD27-AL27,\"Cont\")","v":22.066699999999855},1.529999999999998E-2,"Skip",{"$f":"ROUND(IF(AS27=\"Cont\",AL27,AS27),2)","v":22.07},22.07,1,{"$f":"IF(IFERROR(VLOOKUP(AA27,'Money Market'!$B$15:$C$62,2,FALSE),AP27)=\"No CGT\",0,AP27)","v":0}]
[null,null," Reitway BCI Global Property Fund C",null,null,1441.82,null,1,null," Satrix Property Index Fund B1",null,null,null,10.01,null,6.8999999999999999E-3,null,0,null,"Inter manco switch",null,null,"Cont","Cont","Same Switch",1,null,null,null,null,null,null,null," Satrix Property Index Fund B1",null,null,null,10.01,null,6.8999999999999999E-3,null,0,null,"Cont","Cont","Cont","Cont",{"$f":"ROUND(IF(AS28=\"Cont\",AL28,AS28),2)","v":10.01},{"$f":"ROUND(IF(AS28=\"Cont\",IF(AD28=\"\",AW27,AD28),AS28),2)","v":22.07},{"$f":"AV28/AW28","v":0.45355686452197552},{"$f":"IF(IFERROR(VLOOKUP(AA28,'Money Market'!$B$15:$C$62,2,FALSE),AP28)=\"No CGT\",0,AP28)","v":0}]
[null,null," Reitway BCI Global Property Fund C",null,null,1441.82,null,1,null," STANLIB Income Fund B6",null,null,null,4.92,null,3.3999999999999998E-3,null,0,null,"Inter manco switch",null,null,"Cont","Cont","Same Switch",1,null,null,null,null,null,null,null," STANLIB Income Fund B6",null,null,null,4.92,null,3.3999999999999998E-3,null,0,null,"Cont","Cont","Cont","Cont",4.92,22.07,{"$f":"AV29/AW29","v":0.22292705029451743},{"$f":"IF(IFERROR(VLOOKUP(AA29,'Money Market'!$B$15:$C$62,2,FALSE),AP29)=\"No CGT\",0,AP29)","v":0}]
[null,null," Reitway BCI Global Property Fund C",null,null,1441.82,null,1,null," Sygnia 4th Industrial Revolution Global Equity Fund A",null,null,null,7.13,null,5.0000000000000044E-3,null,0,null,"Inter manco switch",null,null,"Cont","Cont","Same Switch",1,null,null,null,null,null,null,null," Sygnia 4th Industrial Revolution Global Equity Fund A",null,null,null,7.13,null,5.0000000000000044E-3,null,0,null,"Cont","Cont","Cont","Cont",7.13,22.07,{"$f":"AV30/AW30","v":0.32306298142274581},{"$f":"IF(IFERROR(VLOOKUP(AA30,'Money Market'!$B$15:$C$62,2,FALSE),AP30)=\"No CGT\",0,AP30)","v":0}]
[null,null," Satrix Equally Weighted TOP 40 Index Fund B1",null,null,3093.25,null,1,null," Satrix Equally Weighted TOP 40 Index Fund B1",null,null,null,3093.25,null,1,null,0,null,"Inter Platform Switch",null,null,"Same Fund","Skip","",1," Satrix MSCI World Equity Index Feeder Fund B2",null,null,1821.95,null,1,null," Satrix MSCI World Equity Index Feeder Fund B2",null,null,null,1774.6916000000001,null,0.97409999999999997,null,0,null,"Same Fund",47.258399999999938,2.5900000000000034E-2,"Skip",47.26,47.26,1,{"$f":"IF(IFERROR(VLOOKUP(AA31,'Money Market'!$B$15:$C$62,2,FALSE),AP31)=\"No CGT\",0,AP31)","v":0}]
[null,null," Satrix MSCI World Equity Index Feeder Fund B2",null,null,1821.95,null,1,null," Satrix MSCI World Equity Index Feeder Fund B2",null,null,null,1774.6916350000001,null,0.97409999999999997,null,0,null,"Inter Platform Switch",null,null,"Same Fund","Cont","New Switch",1,null,null,null,null,null,null,null," Satrix Equally Weighted TOP 40 Index Fund B1",null,null,null,47.26,null,2.5900000000000034E-2,null,0,null,"Cont","Cont","Cont","Cont",47.26,47.26,1,{"$f":"IF(IFERROR(VLOOKUP(AA32,'Money Market'!$B$15:$C$62,2,FALSE),AP32)=\"No CGT\",0,AP32)","v":0}]
[null,null," Satrix MSCI World Equity Index Feeder Fund B2",null,null,1821.95,null,1,null," Satrix Equally Weighted TOP 40 Index Fund B1",null,null,null,47.26,null,2.5900000000000034E-2,null,0,null,"Intra manco switch",null,null,"Cont","Cont","Same Switch",1," STANLIB S&P500  Index Feeder Fund B1",null,null,1815.89,null,1,null," STANLIB S&P500  Index Feeder Fund B1",null,null,null,1774.6916000000001,null,0.97729999999999995,null,0,null,"Same Fund",41.198399999999992,2.2700000000000053E-2,"Skip",41.2,41.2,1,{"$f":"IF(IFERROR(VLOOKUP(AA33,'Money Market'!$B$15:$C$62,2,FALSE),AP33)=\"No CGT\",0,AP33)","v":0}]
[null,null," Satrix Property Index Fund B1",null,null,1678.25,null,1,null," Satrix Property Index Fund B1",null,null,null,1678.25,null,1,null,0,null,"Inter Platform Switch",null,null,"Same Fund","Skip","",1,null,null,null,null,null,null,null," STANLIB Absolute Plus Fund B1",null,null,null,4.07,null,2.2000000000000001E-3,null,0,null,"Cont","Cont","Cont","Cont",4.07,41.2,9.8786407766990297E-2,{"$f":"IF(IFERROR(VLOOKUP(AA34,'Money Market'!$B$15:$C$62,2,FALSE),AP34)=\"No CGT\",0,AP34)","v":0}]
[null,null," STANLIB Absolute Plus Fund B1",null,null,2835.44,null,1,null," STANLIB Absolute Plus Fund B1",null,null,null,2835.44,null,1,null,0,null,"Inter Platform Switch",null,null,"Same Fund","Skip","",1,null,null,null,null,null,null,null," STANLIB Income Fund B6",null,null,null,37.130000000000003,null,2.0500000000000074E-2,null,0,null,"Cont","Cont","Cont","Cont",37.130000000000003,41.2,0.90121359223300967,{"$f":"IF(IFERROR(VLOOKUP(AA35,'Money Market'!$B$15:$C$62,2,FALSE),AP35)=\"No CGT\",0,AP35)","v":0}]
[null,null," STANLIB Income Fund B6",null,null,7056.71,null,1,null," STANLIB Income Fund B6",null,null,null,7056.71,null,1,null,0,null,"Inter Platform Switch",null,null,"Same Fund","Skip","","",null,null,null,null,null,null,null,null,null,null,null,null,null,null,null,null,null,"Same Fund",0,0,"Skip",0,0,{"$error":"#DIV/0!"},{"$f":"IF(IFERROR(VLOOKUP(AA36,'Money Market'!$B$15:$C$62,2,FALSE),AP36)=\"No CGT\",0,AP36)","v":0}]
[null,null," STANLIB S&P500  Index Feeder Fund B1",null,null,1815.89,null,1,null," STANLIB S&P500  Index Feeder Fund B1",null,null,null,1774.6916350000001,null,0.97729999999999995,null,0,null,"Inter Platform Switch",null,null,"Same Fund","Cont","New Switch","",null,null,null,null,null,null,null,null,null,null,null,null,null,null,null,null,null,"Same Fund",0,0,"Skip",0,0,{"$error":"#DIV/0!"},{"$f":"IF(IFERROR(VLOOKUP(AA37,'Money Market'!$B$15:$C$62,2,FALSE),AP37)=\"No CGT\",0,AP37)","v":0}]
[null,null," STANLIB S&P500  Index Feeder Fund B1",null,null,1815.89,null,1,null," STANLIB Absolute Plus Fund B1",null,null,null,4.07,null,2.2000000000000001E-3,null,0,null,"Intra manco switch",null,null,"Cont","Cont","Same Switch","",null,null,null,null,null,null,null,null,null,null,null,null,null,null,null,null,null,"Same Fund",0,0,"Skip",0,0,{"$error":"#DIV/0!"},{"$f":"IF(IFERROR(VLOOKUP(AA38,'Money Market'!$B$15:$C$62,2,FALSE),AP38)=\"No CGT\",0,AP38)","v":0}]
[null,null," STANLIB S&P500  Index Feeder Fund B1",null,null,1815.89,null,1,null," STANLIB Income Fund B6",null,null,null,37.130000000000003,null,2.0500000000000074E-2,null,0,null,"Intra manco switch",null,null,"Cont","Cont","Same Switch","",null,null,null,null,null,null,null,null,null,null,null,null,null,null,null,null,null,"Same Fund",0,0,"Skip",0,0,{"$error":"#DIV/0!"},{"$f":"IF(IFERROR(VLOOKUP(AA39,'Money Market'!$B$15:$C$62,2,FALSE),AP39)=\"No CGT\",0,AP39)","v":0}]
[null,null," Sygnia 4th Industrial Revolution Global Equity Fund A",null,null,1412.62,null,1,null," Sygnia 4th Industrial Revolution Global Equity Fund A",null,null,null,1412.62,null,1,null,0,null,"Inter Platform Switch",null,null,"Same Fund","Skip","","",null,null,null,null,null,null,null,null,null,null,null,null,null,null,null,null,null,"Same Fund",0,0,"Skip",0,0,{"$error":"#DIV/0!"},{"$f":"IF(IFERROR(VLOOKUP(AA40,'Money Market'!$B$15:$C$62,2,FALSE),AP40)=\"No CGT\",0,AP40)","v":0}]
[null,null,null,null,null,null,null,null,null,null,null,null,null,null,null,null,null,null,null,null,null,null,"Same Fund","Skip","","",null,null,null,null,null,null,null,null,null,null,null,null,null,null,null,null,null,"Same Fund",0,0,"Skip",0,0,{"$error":"#DIV/0!"},{"$f":"IF(IFERROR(VLOOKUP(AA41,'Money Market'!$B$15:$C$62,2,FALSE),AP41)=\"No CGT\",0,AP41)","v":0}]
[null,null,null,null,null,null,null,null,null,null,null,null,null,null,null,null,null,null,null,null,null,null,"Same Fund","Skip","","",null,null,null,null,null,null,null,null,null,null,null,null,null,null,null,null,null,"Same Fund",0,0,"Skip",0,0,{"$error":"#DIV/0!"},{"$f":"IF(IFERROR(VLOOKUP(AA42,'Money Market'!$B$15:$C$62,2,FALSE),AP42)=\"No CGT\",0,AP42)","v":0}]
[null,null,null,null,null,null,null,null,null,null,null,null,null,null,null,null,null,null,null,null,null,null,"Same Fund","Skip","","",null,null,null,null,null,null,null,null,null,null,null,null,null,null,null,null,null,"Same Fund",0,0,"Skip",0,0,{"$error":"#DIV/0!"},{"$f":"IF(IFERROR(VLOOKUP(AA43,'Money Market'!$B$15:$C$62,2,FALSE),AP43)=\"No CGT\",0,AP43)","v":0}]
[null,null,null,null,null,null,null,null,null,null,null,null,null,null,null,null,null,null,null,null,null,null,"Same Fund","Skip","","",null,null,null,null,null,null,null,null,null,null,null,null,null,null,null,null,null,"Same Fund",0,0,"Skip",0,0,{"$error":"#DIV/0!"},{"$f":"IF(IFERROR(VLOOKUP(AA44,'Money Market'!$B$15:$C$62,2,FALSE),AP44)=\"No CGT\",0,AP44)","v":0}]
[null,null,null,null,null,null,null,null,null,null,null,null,null,null,null,null,null,null,null,null,null,null,"Same Fund","Skip","","",null,null,null,null,null,null,null,null,null,null,null,null,null,null,null,null,null,"Same Fund",0,0,"Skip",0,0,{"$error":"#DIV/0!"},{"$f":"IF(IFERROR(VLOOKUP(AA45,'Money Market'!$B$15:$C$62,2,FALSE),AP45)=\"No CGT\",0,AP45)","v":0}]
[null,null,null,null,null,null,null,null,null,null,null,null,null,null,null,null,null,null,null,null,null,null,"Same Fund","Skip","","",null,null,null,null,null,null,null,null,null,null,null,null,null,null,null,null,null,"Same Fund",0,0,"Skip",0,0,{"$error":"#DIV/0!"},{"$f":"IF(IFERROR(VLOOKUP(AA46,'Money Market'!$B$15:$C$62,2,FALSE),AP46)=\"No CGT\",0,AP46)","v":0}]
[null,null,null,null,null,null,null,null,null,null,null,null,null,null,null,null,null,null,null,null,null,null,"Same Fund","Skip","","",null,null,null,null,null,null,null,null,null,null,null,null,null,null,null,null,null,"Same Fund",0,0,"Skip",0,0,{"$error":"#DIV/0!"},{"$f":"IF(IFERROR(VLOOKUP(AA47,'Money Market'!$B$15:$C$62,2,FALSE),AP47)=\"No CGT\",0,AP47)","v":0}]
[null,null,null,null,null,null,null,null,null,null,null,null,null,null,null,null,null,null,null,null,null,null,"Same Fund","Skip","","",null,null,null,null,null,null,null,null,null,null,null,null,null,null,null,null,null,"Same Fund",0,0,"Skip",0,0,{"$error":"#DIV/0!"},{"$f":"IF(IFERROR(VLOOKUP(AA48,'Money Market'!$B$15:$C$62,2,FALSE),AP48)=\"No CGT\",0,AP48)","v":0}]
[null,null,null,null,null,null,null,null,null,null,null,null,null,null,null,null,null,null,null,null,null,null,"Same Fund","Skip","","",null,null,null,null,null,null,null,null,null,null,null,null,null,null,null,null,null,"Same Fund",0,0,"Skip",0,0,{"$error":"#DIV/0!"},{"$f":"IF(IFERROR(VLOOKUP(AA49,'Money Market'!$B$15:$C$62,2,FALSE),AP49)=\"No CGT\",0,AP49)","v":0}]
[null,null,null,null,null,null,null,null,null,null,null,null,null,null,null,null,null,null,null,null,null,null,"Same Fund","Skip","","",null,null,null,null,null,null,null,null,null,null,null,null,null,null,null,null,null,"Same Fund",0,0,"Skip",0,0,{"$error":"#DIV/0!"},{"$f":"IF(IFERROR(VLOOKUP(AA50,'Money Market'!$B$15:$C$62,2,FALSE),AP50)=\"No CGT\",0,AP50)","v":0}]
[null,null,null,null,null,null,null,null,null,null,null,null,null,null,null,null,null,null,null,null,null,null,"Same Fund","Skip","","",null,null,null,null,null,null,null,null,null,null,null,null,null,null,null,null,null,"Same Fund",0,0,"Skip",0,0,{"$error":"#DIV/0!"},{"$f":"IF(IFERROR(VLOOKUP(AA51,'Money Market'!$B$15:$C$62,2,FALSE),AP51)=\"No CGT\",0,AP51)","v":0}]
[null,null,null,null,null,null,null,null,null,null,null,null,null,null,null,null,null,null,null,null,null,null,"Same Fund","Skip","","",null,null,null,null,null,null,null,null,null,null,null,null,null,null,null,null,null,"Same Fund",0,0,"Skip",0,0,{"$error":"#DIV/0!"},{"$f":"IF(IFERROR(VLOOKUP(AA52,'Money Market'!$B$15:$C$62,2,FALSE),AP52)=\"No CGT\",0,AP52)","v":0}]
[null,null,null,null,null,null,null,null,null,null,null,null,null,null,null,null,null,null,null,null,null,null,"Same Fund","Skip","","",null,null,null,null,null,null,null,null,null,null,null,null,null,null,null,null,null,"Same Fund",0,0,"Skip",0,0,{"$error":"#DIV/0!"},{"$f":"IF(IFERROR(VLOOKUP(AA53,'Money Market'!$B$15:$C$62,2,FALSE),AP53)=\"No CGT\",0,AP53)","v":0}]
[]
[]
[null,"Switched Funds"]
[]
[]
[null,null,"Manco",null,null,"Fund",null,null,null,"Rand Amount",null,"Percentage"]
[null,1,"Allan Gray Unit Trust Management Limited",null,null," Allan Gray Balanced Fund C",null,null,null,2839.5066160000001,null,{"$f":"IF(C60=\"\",\"\",J60/$J$75)","v":0.08}]
[null,2,"Coronation Management Company",null,null," Coronation Balanced Plus Fund P",null,null,null,2839.5066160000001,null,{"$f":"IF(C61=\"\",\"\",J61/$J$75)","v":0.08}]
[null,3,"Investec Fund Managers",null,null," Investec Global Franchise Feeder Fund H",null,null,null,1419.7533080000001,null,{"$f":"IF(C62=\"\",\"\",J62/$J$75)","v":0.04}]
[null,4,"Investec Fund Managers",null,null," Investec Managed Fund H",null,null,null,2839.5066160000001,null,0.08]
[null,5,"Prescient Management Company Ltd",null,null," Laurium Flexible Prescient Fund A1",null,null,null,2839.5066160000001,null,0.08]
[null,6,"PSG Collective Investments Ltd",null,null," PSG Global Flexible Feeder Fund B",null,null,null,1419.7533080000001,null,0.04]
[null,7,"Boutique Collective Investments (Pty) Ltd",null,null," Reitway BCI Global Property Fund C",null,null,null,1419.7533080000001,null,0.04]
[null,8,"Satrix Managers (RF) (Pty) Ltd",null,null," Satrix Equally Weighted TOP 40 Index Fund B1",null,null,null,3194.444943,null,0.09]
[null,9,"Satrix Managers (RF) (Pty) Ltd",null,null," Satrix MSCI World Equity Index Feeder Fund B2",null,null,null,1774.6916350000001,null,{"$f":"IF(C68=\"\",\"\",J68/$J$75)","v":0.05}]
[null,10,"Satrix Managers (RF) (Pty) Ltd",null,null," Satrix Property Index Fund B1",null,null,null,1774.6916350000001,null,0.05]
[null,11,"STANLIB Collective Investments",null,null," STANLIB Absolute Plus Fund B1",null,null,null,2839.5066160000001,null,0.08]
[null,12,"STANLIB Collective Investments",null,null," STANLIB Income Fund B6",null,null,null,7098.7665400000005,null,0.2]
[null,13,"STANLIB Collective Investments",null,null," STANLIB S&P500  Index Feeder Fund B1",null,null,null,1774.6916350000001,null,0.05]
[null,14,"Sygnia Asset Management (Pty) Limited",null,null," Sygnia 4th Industrial Revolution Global Equity Fund A",null,null,null,1419.7533080000001,null,0.04]
[null,15,null,null,null," ",null,null,null,0,null,""]
[null,null,null,null,null,null,null,"Total",null,{"$f":"SUM(J60:K74)","v":35493.832699999999},null,{"$f":"SUM(L60:M74)","v":1.0000000000000002}]

{"sheet":"Switch","index":5,"n_rows":67,"n_cols":29,"rows_kept":67,"cut":false,"hidden":false,"merged":[[66,6,66,9],[66,10,66,11],[63,3,63,5],[63,6,63,9],[63,10,63,11],[64,3,64,5],[64,6,64,9],[64,10,64,11],[62,6,62,9],[62,10,62,11],[59,3,59,5],[59,6,59,9],[59,10,59,11],[60,3,60,5],[60,6,60,9],[60,10,60,11],[65,3,65,5],[65,6,65,9],[65,10,65,11],[61,3,61,5],[61,6,61,9],[61,10,61,11],[62,3,62,5],[40,16,40,17],[40,18,40,19],[47,3,47,5],[47,7,47,9],[50,3,50,5],[50,6,50,9],[50,10,50,11],[38,18,38,19],[54,3,54,5],[54,6,54,9],[54,10,54,11],[51,3,51,5],[51,6,51,9],[51,10,51,11],[52,3,52,5],[52,6,52,9],[52,10,52,11],[38,22,38,23],[39,3,39,5],[39,6,39,9],[39,10,39,11],[39,12,39,13],[39,14,39,15],[39,16,39,17],[39,18,39,19],[39,22,39,23],[38,3,38,5],[38,6,38,9],[38,10,38,11],[38,12,38,13],[38,14,38,15],[38,16,38,17],[36,18,36,19],[36,22,36,23],[37,3,37,5],[37,6,37,9],[37,10,37,11],[37,12,37,13],[37,14,37,15],[37,16,37,17],[37,18,37,19],[37,22,37,23],[36,3,36,5],[36,6,36,9],[36,10,36,11],[36,12,36,13],[36,14,36,15],[36,16,36,17],[34,18,34,19],[34,22,34,23],[35,3,35,5],[35,6,35,9],[35,10,35,11],[35,12,35,13],[35,14,35,15],[35,16,35,17],[35,18,35,19],[35,22,35,23],[34,3,34,5],[34,6,34,9],[34,10,34,11],[34,12,34,13],[34,14,34,15],[34,16,34,17],[32,18,32,19],[32,22,32,23],[33,3,33,5],[33,6,33,9],[33,10,33,11],[33,12,33,13],[33,14,33,15],[33,16,33,17],[33,18,33,19],[33,22,33,23],[32,3,32,5],[32,6,32,9],[32,10,32,11],[32,12,32,13],[32,14,32,15],[32,16,32,17],[30,18,30,19],[30,22,30,23],[31,3,31,5],[31,6,31,9],[31,10,31,11],[31,12,31,13],[31,14,31,15],[31,16,31,17],[31,18,31,19],[31,22,31,23],[30,3,30,5],[30,6,30,9],[30,10,30,11],[30,12,30,13],[30,14,30,15],[30,16,30,17],[28,18,28,19],[28,22,28,23],[29,3,29,5],[29,6,29,9],[29,10,29,11],[29,12,29,13],[29,14,29,15],[29,16,29,17],[29,18,29,19],[29,22,29,23],[28,3,28,5],[28,6,28,9],[28,10,28,11],[28,12,28,13],[28,14,28,15],[28,16,28,17],[26,14,26,15],[26,16,26,17],[26,18,26,19],[26,22,26,23],[27,3,27,5],[27,6,27,9],[27,10,27,11],[27,12,27,13],[27,14,27,15],[27,16,27,17],[27,18,27,19],[27,22,27,23],[24,14,24,15],[24,16,24,17],[24,18,24,19],[24,22,24,23],[25,3,25,5],[25,6,25,9],[25,10,25,11],[25,12,25,13],[25,14,25,15],[25,16,25,17],[25,18,25,19],[25,22,25,23],[24,3,24,5],[24,6,24,9],[24,10,24,11],[14,2,14,4],[14,5,14,7],[15,2,15,4],[15,5,15,7],[16,2,16,4],[16,5,16,7],[11,2,11,4],[11,5,11,7],[12,2,12,4],[12,5,12,7],[13,2,13,4],[13,5,13,7],[17,2,17,4],[17,5,17,7],[18,5,18,7],[50,12,50,13],[51,12,51,13],[52,12,52,13],[53,12,53,13],[54,12,54,13],[55,12,55,13],[24,12,24,13],[26,3,26,5],[26,6,26,9],[26,10,26,11],[26,12,26,13],[53,3,53,5],[53,6,53,9],[53,10,53,11],[55,3,55,5],[55,6,55,9],[55,10,55,11],[18,2,18,4],[63,12,63,13],[64,12,64,13],[65,12,65,13],[56,12,56,13],[57,12,57,13],[58,12,58,13],[59,12,59,13],[60,12,60,13],[61,12,61,13],[62,12,62,13],[57,3,57,5],[57,6,57,9],[57,10,57,11],[58,3,58,5],[58,6,58,9],[58,10,58,11],[56,3,56,5],[56,6,56,9],[56,10,56,11]]}
[]
[null,null,null,null,null,null,null,null,null,null,null,null,null,null,null,null,null,null,null,null,null,null,null,null,null,null,null,"LR"]
[null,null,null,null,null,null,null,null,null,null,null,null,null,null,null,null,null,null,null,null,null,null,null,null,null,null,null,"S"]
[null,null,null,null,null,null,null,null,null,null,null,null,null,null,null,null,null,null,null,null,null,null,null,null,null,null,null,"C"]
[null,null,null,null,null,null,null,null,null,null,null,null,null,null,null,null,null,null,null,null,null,null,null,null,null,null,null,"FC"]
[]
[null,null,null,null,null,null,null,null,null,null,null,null,null,null,null,null,null,null,null,null,null,null,null,null,null,null,null,"Classic Investment Plan"]
[null,null,null,null,null,null,null,null,null,null,null,null,null,null,null,null,null,null,null,null,null,null,null,null,null,null,null,"Classic Linked Life Annuity "]
[null,null,null,null,null,null,null,null,null,null,null,null,null,null,null,null,null,null,null,null,null,null,null,null,null,null,null,"Classic Preservation Pension  Plan"]
[null,null,"Investor Details",null,null,null,null,null,null,null,null,null,null,null,null,null,null,null,null,null,null,null,null,null,null,null,null,"Classic Preservation Provident Plan"]
[null,null,null,null,null,null,null,null,null,null,null,null,null,null,null,null,null,null,null,null,null,null,null,null,null,null,null,"Classic Retirement Annuity Plan"]
[null,null,"Wrapper/Product Type"]
[null,null,"Investment Account Number"]
[null,null,"Name and Surname"]
[null,null,"Identity/Passport Number"]
[null,null,"Type of Client"]
[null,null,"Tax Number"]
[null,null,"Cellphone Number"]
[null,null,"Email Address"]
[]
[null,null,"Switch Details"]
[]
[null,null,"Switch From:"]
[null,null,null,"Please Note: Please re-download the tool from stanlib.com for the latest set of funds",null,null,null,null,null,null,"Please ensure that all details are filled in under each of the fields below, if CGT is not required please fill in \"1\" under the Base cost per Unit field to avoid an error."]
[null,null,null,"Manco",null,null,"Portfolio Name",null,null,null,"Units",null,"Current Unit Price",null,"Base Cost per Unit ( c )",null,"Current Market Value",null,"Percentage",null,"Switch Percentage","Switch Market Value","Portfolio Range (eg Classic, LR)"]
[null,null,1,null,null,null,null,null,null,null,null,null,null,null,null,null,{"$f":"IF(D26=\"\",\"\",M26/100*K26)","v":""},null,null,null,null,{"$f":"IF(U26=\"\",0,Q26*U26)","v":0},null,null,{"$f":"CONCATENATE(W26,\" \",G26)","v":" "},{"$f":"IFERROR(VLOOKUP(G26,'Funds - S'!$A$2:$B$629,2,FALSE),0)","v":0},{"$f":"IF(G26=\"\",0,1)","v":0},null,{"$f":"IF($F$12=\"Classic Investment Plan\",\"CGT\",\"No CGT\")","v":"No CGT"}]
[null,null,2,null,null,null,null,null,null,null,null,null,null,null,null,null,{"$f":"IF(D27=\"\",\"\",M27/100*K27)","v":""},null,null,null,null,{"$f":"IF(U27=\"\",0,Q27*U27)","v":0},null,null,{"$f":"CONCATENATE(W27,\" \",G27)","v":" "},{"$f":"IFERROR(VLOOKUP(G27,'Funds - S'!$A$2:$B$629,2,FALSE),0)","v":0},{"$f":"IF(G27=\"\",0,1)","v":0},null,{"$f":"IF($F$12=\"Classic Investment Plan\",\"CGT\",\"No CGT\")","v":"No CGT"}]
[null,null,3,null,null,null,null,null,null,null,null,null,null,null,null,null,"",null,null,null,null,{"$f":"IF(U28=\"\",0,Q28*U28)","v":0},null,null," ",{"$f":"IFERROR(VLOOKUP(G28,'Funds - S'!$A$2:$B$629,2,FALSE),0)","v":0},0,null,"No CGT"]
[null,null,4,null,null,null,null,null,null,null,null,null,null,null,null,null,"",null,null,null,null,{"$f":"IF(U29=\"\",0,Q29*U29)","v":0},null,null," ",{"$f":"IFERROR(VLOOKUP(G29,'Funds - S'!$A$2:$B$629,2,FALSE),0)","v":0},0,null,"No CGT"]
[null,null,5,null,null,null,null,null,null,null,null,null,null,null,null,null,"",null,null,null,null,0,null,null," ",{"$f":"IFERROR(VLOOKUP(G30,'Funds - S'!$A$2:$B$629,2,FALSE),0)","v":0},0,null,"No CGT"]
[null,null,6,null,null,null,null,null,null,null,null,null,null,null,null,null,"",null,{"$f":"IF(Q31=\"\",\"\",Q31/FromTotal)","v":""},null,null,0,null,null," ",{"$f":"IFERROR(VLOOKUP(G31,'Funds - S'!$A$2:$B$629,2,FALSE),0)","v":0},0,null,"No CGT"]
[null,null,7,null,null,null,null,null,null,null,null,null,null,null,null,null,"",null,"",null,null,0,null,null," ",{"$f":"IFERROR(VLOOKUP(G32,'Funds - S'!$A$2:$B$629,2,FALSE),0)","v":0},0,null,"No CGT"]
[null,null,8,null,null,null,null,null,null,null,null,null,null,null,null,null,"",null,"",null,null,0,null,null," ",{"$f":"IFERROR(VLOOKUP(G33,'Funds - S'!$A$2:$B$629,2,FALSE),0)","v":0},0,null,"No CGT"]
[null,null,9,null,null,null,null,null,null,null,null,null,null,null,null,null,"",null,"",null,null,0,null,null," ",{"$f":"IFERROR(VLOOKUP(G34,'Funds - S'!$A$2:$B$629,2,FALSE),0)","v":0},0,null,"No CGT"]
[null,null,10,null,null,null,null,null,null,null,null,null,null,null,null,null,"",null,"",null,null,0,null,null," ",{"$f":"IFERROR(VLOOKUP(G35,'Funds - S'!$A$2:$B$629,2,FALSE),0)","v":0},0,null,"No CGT"]
[null,null,11,null,null,null,null,null,null,null,null,null,null,null,null,null,"",null,"",null,null,0,null,null," ",{"$f":"IFERROR(VLOOKUP(G36,'Funds - S'!$A$2:$B$629,2,FALSE),0)","v":0},0,null,"No CGT"]
[null,null,12,null,null,null,null,null,null,null,null,null,null,null,null,null,"",null,"",null,null,0,null,null," ",{"$f":"IFERROR(VLOOKUP(G37,'Funds - S'!$A$2:$B$629,2,FALSE),0)","v":0},0,null,"No CGT"]
[null,null,13,null,null,null,null,null,null,null,null,null,null,null,null,null,"",null,"",null,null,0,null,null," ",{"$f":"IFERROR(VLOOKUP(G38,'Funds - S'!$A$2:$B$629,2,FALSE),0)","v":0},0,null,"No CGT"]
[null,null,14,null,null,null,null,null,null,null,null,null,null,null,null,null,"",null,"",null,null,0,null,null," ",{"$f":"IFERROR(VLOOKUP(G39,'Funds - S'!$A$2:$B$629,2,FALSE),0)","v":0},0,null,"No CGT"]
[null,null,15,null,null,null,null,null,null,null,null,null,null,null,null,null,"",null,"",null,null,0,null,null," ",{"$f":"IFERROR(VLOOKUP(G40,'Funds - S'!$A$2:$B$629,2,FALSE),0)","v":0},0,null,"No CGT"]
[null,null,null,null,null,null,null,null,null,null,null,null,null,null,null,null,"Total",null,null,null,{"$f":"SUM(U26:U40)","v":0},{"$f":"SUM(V26:V40)","v":0},null,null,null,null,{"$f":"SUM(AA26:AA40)","v":0}]
[]
[]
[null,null,"Switch To:"]
[null,null,null,null,null,null,null,null,null,true,false]
[]
[]
[null,null,null,"Amount in Solution Portfolio",null,null,null,{"$f":"IF(J45=TRUE,1,V41)","v":1}]
[]
[null,null,null,"Please note all the funds may not be available to you"]
[null,null,null,"Manco",null,null,"Portfolio Name",null,null,null,{"$f":"IF(J45=TRUE,\"Percentage\",\"Rand Amount\")","v":"Percentage"},null,"Portfolio Range (eg Classic, LR)"]
[null,null,1,null,null,null,null,null,null,null,null,null,null,null,{"$f":"CONCATENATE(M52,\" \",G52)","v":" "},null,null,null,null,null,null,null,null,null,null,{"$f":"IFERROR(VLOOKUP(G52,'Funds - S'!$A$2:$B$629,2,FALSE),0)","v":0},{"$f":"IF(G52=\"\",0,1)","v":0}]
[null,null,2,null,null,null,null,null,null,null,null,null,null,null,{"$f":"CONCATENATE(M53,\" \",G53)","v":" "},null,null,null,null,null,null,null,null,null,null,{"$f":"IFERROR(VLOOKUP(G53,'Funds - S'!$A$2:$B$629,2,FALSE),0)","v":0},{"$f":"IF(G53=\"\",0,1)","v":0}]
[null,null,3,null,null,null,null,null,null,null,null,null,null,null," ",null,null,null,null,null,null,null,null,null,null,{"$f":"IFERROR(VLOOKUP(G54,'Funds - S'!$A$2:$B$629,2,FALSE),0)","v":0},0]
[null,null,4,null,null,null,null,null,null,null,null,null,null,null," ",null,null,null,null,null,null,null,null,null,null,{"$f":"IFERROR(VLOOKUP(G55,'Funds - S'!$A$2:$B$629,2,FALSE),0)","v":0},0]
[null,null,5,null,null,null,null,null,null,null,null,null,null,null," ",null,null,null,null,null,null,null,null,null,null,{"$f":"IFERROR(VLOOKUP(G56,'Funds - S'!$A$2:$B$629,2,FALSE),0)","v":0},0]
[null,null,6,null,null,null,null,null,null,null,null,null,null,null," ",null,null,null,null,null,null,null,null,null,null,{"$f":"IFERROR(VLOOKUP(G57,'Funds - S'!$A$2:$B$629,2,FALSE),0)","v":0},0]
[null,null,7,null,null,null,null,null,null,null,null,null,null,null," ",null,null,null,null,null,null,null,null,null,null,{"$f":"IFERROR(VLOOKUP(G58,'Funds - S'!$A$2:$B$629,2,FALSE),0)","v":0},0]
[null,null,8,null,null,null,null,null,null,null,null,null,null,null," ",null,null,null,null,null,null,null,null,null,null,{"$f":"IFERROR(VLOOKUP(G59,'Funds - S'!$A$2:$B$629,2,FALSE),0)","v":0},0]
[null,null,9,null,null,null,null,null,null,null,null,null,null,null," ",null,null,null,null,null,null,null,null,null,null,{"$f":"IFERROR(VLOOKUP(G60,'Funds - S'!$A$2:$B$629,2,FALSE),0)","v":0},0]
[null,null,10,null,null,null,null,null,null,null,null,null,null,null," ",null,null,null,null,null,null,null,null,null,null,{"$f":"IFERROR(VLOOKUP(G61,'Funds - S'!$A$2:$B$629,2,FALSE),0)","v":0},0]
[null,null,11,null,null,null,null,null,null,null,null,null,null,null," ",null,null,null,null,null,null,null,null,null,null,{"$f":"IFERROR(VLOOKUP(G62,'Funds - S'!$A$2:$B$629,2,FALSE),0)","v":0},0]
[null,null,12,null,null,null,null,null,null,null,null,null,null,null," ",null,null,null,null,null,null,null,null,null,null,{"$f":"IFERROR(VLOOKUP(G63,'Funds - S'!$A$2:$B$629,2,FALSE),0)","v":0},0]
[null,null,13,null,null,null,null,null,null,null,null,null,null,null," ",null,null,null,null,null,null,null,null,null,null,{"$f":"IFERROR(VLOOKUP(G64,'Funds - S'!$A$2:$B$629,2,FALSE),0)","v":0},0]
[null,null,14,null,null,null,null,null,null,null,null,null,null,null," ",null,null,null,null,null,null,null,null,null,null,{"$f":"IFERROR(VLOOKUP(G65,'Funds - S'!$A$2:$B$629,2,FALSE),0)","v":0},0]
[null,null,15,null,null,null,null,null,null,null,null,null,null,null," ",null,null,null,null,null,null,null,null,null,null,{"$f":"IFERROR(VLOOKUP(G66,'Funds - S'!$A$2:$B$629,2,FALSE),0)","v":0},0]
[null,null,null,null,null,null,"Total",null,null,null,{"$f":"SUM(K52:L66)","v":0},null,null,null,null,null,null,null,null,null,null,null,null,null,null,null,{"$f":"SUM(AA52:AA66)","v":0}]

{"sheet":"Waiting","index":6,"n_rows":23,"n_cols":11,"rows_kept":23,"cut":false,"hidden":false,"merged":[[14,10,19,17],[22,3,30,29]]}
[]
[]
[]
[]
[]
[]
[]
[]
[]
[]
[]
[]
[]
[]
[null,null,null,null,null,null,null,null,null,null,"Please wait while your Switch/Rebalance Instructions are being created."]
[]
[]
[]
[]
[]
[]
[]
[null,null,null,"PLEASE NOTE: The objective of this tool is to assist the user with calculating the CGT impact for the switch/rebalance instruction. The CGT implications as well as switch/rebalance instructions set out in the Tool are indicative values only and may change due to changes in the prices of the portfolios transacted on. The proposal, captured instructions and your tax certificate may not have the same values due to changes in prices on different days.                                                                                                                                                                                                                                                                                               STANLIB does not provide tax advice.  No information provided must be construed as tax advice to the client."]

{"sheet":"Rebalance Form New","index":7,"n_rows":204,"n_cols":27,"rows_kept":204,"cut":false,"hidden":false,"merged":[[195,1,198,1],[195,2,198,9],[195,11,195,16],[198,11,198,16],[198,17,198,26],[200,1,203,1],[200,2,203,9],[200,11,200,16],[203,11,203,16],[203,17,203,26],[184,1,184,26],[185,1,185,26],[186,1,187,26],[188,1,188,26],[190,1,190,27],[192,1,193,26],[182,2,182,5],[182,6,182,9],[182,10,182,13],[182,14,182,17],[182,18,182,21],[182,22,182,26],[180,22,180,26],[181,2,181,5],[181,6,181,9],[181,10,181,13],[181,14,181,17],[181,18,181,21],[181,22,181,26],[176,2,176,7],[176,8,176,13],[176,14,176,19],[176,20,176,26],[178,1,178,26],[180,2,180,5],[180,6,180,9],[180,10,180,13],[180,14,180,17],[180,18,180,21],[172,1,172,26],[174,2,174,7],[174,8,174,13],[174,14,174,19],[174,20,174,26],[175,2,175,7],[175,8,175,13],[175,14,175,19],[175,20,175,26],[150,1,150,26],[151,1,151,26],[154,1,154,26],[162,2,162,26],[166,1,166,26],[170,1,170,27],[141,1,141,26],[142,1,142,26],[143,1,143,26],[144,1,144,26],[146,1,146,26],[148,1,148,26],[133,1,133,26],[134,1,134,26],[136,1,136,27],[138,1,138,26],[139,1,139,26],[140,1,140,26],[126,1,126,27],[128,1,128,26],[129,1,129,26],[130,1,130,26],[131,1,131,26],[132,1,132,26],[123,1,123,7],[123,8,123,15],[123,16,123,19],[123,20,123,26],[124,1,124,7],[124,8,124,15],[124,16,124,19],[124,20,124,26],[121,1,121,7],[121,8,121,15],[121,16,121,19],[121,20,121,26],[122,1,122,7],[122,8,122,15],[122,16,122,19],[122,20,122,26],[119,1,119,7],[119,8,119,15],[119,16,119,19],[119,20,119,26],[120,1,120,7],[120,8,120,15],[120,16,120,19],[120,20,120,26],[117,1,117,7],[117,8,117,15],[117,16,117,19],[117,20,117,26],[118,1,118,7],[118,8,118,15],[118,16,118,19],[118,20,118,26],[115,1,115,7],[115,8,115,15],[115,16,115,19],[115,20,115,26],[116,1,116,7],[116,8,116,15],[116,16,116,19],[116,20,116,26],[113,1,113,7],[113,8,113,15],[113,16,113,19],[113,20,113,26],[114,1,114,7],[114,8,114,15],[114,16,114,19],[114,20,114,26],[104,1,104,27],[106,1,107,26],[112,1,112,7],[112,8,112,15],[112,16,112,19],[112,20,112,26],[101,1,101,7],[101,8,101,15],[101,16,101,19],[101,20,101,26],[102,1,102,7],[102,8,102,15],[102,16,102,19],[102,20,102,26],[99,1,99,7],[99,8,99,15],[99,16,99,19],[99,20,99,26],[100,1,100,7],[100,8,100,15],[100,16,100,19],[100,20,100,26],[97,1,97,7],[97,8,97,15],[97,16,97,19],[97,20,97,26],[98,1,98,7],[98,8,98,15],[98,16,98,19],[98,20,98,26],[95,1,95,7],[95,8,95,15],[95,16,95,19],[95,20,95,26],[96,1,96,7],[96,8,96,15],[96,16,96,19],[96,20,96,26],[93,1,93,7],[93,8,93,15],[93,16,93,19],[93,20,93,26],[94,1,94,7],[94,8,94,15],[94,16,94,19],[94,20,94,26],[91,1,91,7],[91,8,91,15],[91,16,91,19],[91,20,91,26],[92,1,92,7],[92,8,92,15],[92,16,92,19],[92,20,92,26],[82,1,82,27],[84,1,85,26],[90,1,90,7],[90,8,90,15],[90,16,90,19],[90,20,90,26],[79,1,79,7],[79,8,79,15],[79,16,79,19],[79,20,79,26],[80,1,80,15],[80,16,80,19],[80,20,80,26],[77,1,77,7],[77,8,77,15],[77,16,77,19],[77,20,77,26],[78,1,78,7],[78,8,78,15],[78,16,78,19],[78,20,78,26],[75,1,75,7],[75,8,75,15],[75,16,75,19],[75,20,75,26],[76,1,76,7],[76,8,76,15],[76,16,76,19],[76,20,76,26],[73,1,73,7],[73,8,73,15],[73,16,73,19],[73,20,73,26],[74,1,74,7],[74,8,74,15],[74,16,74,19],[74,20,74,26],[71,1,71,7],[71,8,71,15],[71,16,71,19],[71,20,71,26],[72,1,72,7],[72,8,72,15],[72,16,72,19],[72,20,72,26],[69,1,69,7],[69,8,69,15],[69,16,69,19],[69,20,69,26],[70,1,70,7],[70,8,70,15],[70,16,70,19],[70,20,70,26],[67,1,67,7],[67,8,67,15],[67,16,67,19],[67,20,67,26],[68,1,68,7],[68,8,68,15],[68,16,68,19],[68,20,68,26],[62,1,62,15],[62,16,62,19],[62,20,62,26],[64,1,64,27],[65,1,65,26],[66,1,66,26],[60,1,60,7],[60,8,60,15],[60,16,60,19],[60,20,60,26],[61,1,61,7],[61,8,61,15],[61,16,61,19],[61,20,61,26],[58,1,58,7],[58,8,58,15],[58,16,58,19],[58,20,58,26],[59,1,59,7],[59,8,59,15],[59,16,59,19],[59,20,59,26],[56,1,56,7],[56,8,56,15],[56,16,56,19],[56,20,56,26],[57,1,57,7],[57,8,57,15],[57,16,57,19],[57,20,57,26],[54,1,54,7],[54,8,54,15],[54,16,54,19],[54,20,54,26],[55,1,55,7],[55,8,55,15],[55,16,55,19],[55,20,55,26],[52,1,52,7],[52,8,52,15],[52,16,52,19],[52,20,52,26],[53,1,53,7],[53,8,53,15],[53,16,53,19],[53,20,53,26],[50,1,50,7],[50,8,50,15],[50,16,50,19],[50,20,50,26],[51,1,51,7],[51,8,51,15],[51,16,51,19],[51,20,51,26],[45,1,45,15],[45,16,45,26],[47,1,47,27],[49,1,49,7],[49,8,49,15],[49,16,49,19],[49,20,49,26],[43,1,43,7],[43,8,43,15],[43,16,43,19],[43,20,43,26],[44,1,44,7],[44,8,44,15],[44,16,44,19],[44,20,44,26],[41,1,41,7],[41,8,41,15],[41,16,41,26],[42,1,42,7],[42,8,42,15],[42,16,42,19],[42,20,42,26],[39,1,39,7],[39,8,39,15],[39,16,39,26],[40,1,40,7],[40,8,40,15],[40,16,40,26],[37,1,37,7],[37,8,37,15],[37,16,37,26],[38,1,38,7],[38,8,38,15],[38,16,38,26],[35,1,35,7],[35,8,35,15],[35,16,35,26],[36,1,36,7],[36,8,36,15],[36,16,36,26],[33,1,33,7],[33,8,33,15],[33,16,33,26],[34,1,34,7],[34,8,34,15],[34,16,34,26],[31,1,31,7],[31,8,31,15],[31,16,31,26],[32,1,32,7],[32,8,32,15],[32,16,32,26],[26,1,27,26],[29,1,29,7],[29,8,29,15],[29,16,29,26],[30,1,30,7],[30,8,30,15],[30,16,30,26],[5,1,5,27],[6,1,6,19],[6,20,6,27],[8,1,8,27],[19,1,19,27],[24,1,24,27]]}
[]
[]
[]
[]
[]
[null,"E-mail lispinstructions@stanlib.com\nFacsimile 0867 277 516"]
[null,"Switch Form\nLinked Investments"]
[]
[null,"CLIENT DETAILS"]
[]
[null,"INVESTMENT NUMBER",{"$f":"LEFT('Proposal - R'!$J$41,1)","v":"0"},{"$f":"MID('Proposal - R'!$J$41,2,1)","v":""},{"$f":"MID('Proposal - R'!$J$41,3,1)","v":""},{"$f":"MID('Proposal - R'!$J$41,4,1)","v":""},{"$f":"MID('Proposal - R'!$J$41,5,1)","v":""},{"$f":"MID('Proposal - R'!$J$41,6,1)","v":""},{"$f":"MID('Proposal - R'!$J$41,7,1)","v":""},{"$f":"MID('Proposal - R'!$J$41,8,1)","v":""},{"$f":"MID('Proposal - R'!$J$41,9,1)","v":""},{"$f":"MID('Proposal - R'!$J$41,10,1)","v":""},{"$f":"MID('Proposal - R'!$J$41,11,1)","v":""},{"$f":"MID('Proposal - R'!$J$41,12,1)","v":""},{"$f":"MID('Proposal - R'!$J$41,13,1)","v":""},{"$f":"MID('Proposal - R'!$J$41,14,1)","v":""},{"$f":"MID('Proposal - R'!$J$41,15,1)","v":""},{"$f":"MID('Proposal - R'!$J$41,16,1)","v":""},{"$f":"MID('Proposal - R'!$J$41,17,1)","v":""},{"$f":"MID('Proposal - R'!$J$41,18,1)","v":""},{"$f":"MID('Proposal - R'!$J$41,19,1)","v":""},{"$f":"MID('Proposal - R'!$J$41,20,1)","v":""},{"$f":"MID('Proposal - R'!$J$41,21,1)","v":""},{"$f":"MID('Proposal - R'!$J$41,22,1)","v":""},{"$f":"MID('Proposal - R'!$J$41,23,1)","v":""},{"$f":"MID('Proposal - R'!$J$41,24,1)","v":""},{"$f":"MID('Proposal - R'!$J$41,25,1)","v":""}]
[]
[null,"NAME & SURNAME / ENTITY NAME",{"$f":"LEFT('Proposal - R'!$J$42,1)","v":"0"},{"$f":"MID('Proposal - R'!$J$42,2,1)","v":""},{"$f":"MID('Proposal - R'!$J$42,3,1)","v":""},{"$f":"MID('Proposal - R'!$J$42,4,1)","v":""},{"$f":"MID('Proposal - R'!$J$42,5,1)","v":""},{"$f":"MID('Proposal - R'!$J$42,6,1)","v":""},{"$f":"MID('Proposal - R'!$J$42,7,1)","v":""},{"$f":"MID('Proposal - R'!$J$42,8,1)","v":""},{"$f":"MID('Proposal - R'!$J$42,9,1)","v":""},{"$f":"MID('Proposal - R'!$J$42,10,1)","v":""},{"$f":"MID('Proposal - R'!$J$42,11,1)","v":""},{"$f":"MID('Proposal - R'!$J$42,12,1)","v":""},{"$f":"MID('Proposal - R'!$J$42,13,1)","v":""},{"$f":"MID('Proposal - R'!$J$42,14,1)","v":""},{"$f":"MID('Proposal - R'!$J$42,15,1)","v":""},{"$f":"MID('Proposal - R'!$J$42,16,1)","v":""},{"$f":"MID('Proposal - R'!$J$42,17,1)","v":""},{"$f":"MID('Proposal - R'!$J$42,18,1)","v":""},{"$f":"MID('Proposal - R'!$J$42,19,1)","v":""},{"$f":"MID('Proposal - R'!$J$42,20,1)","v":""},{"$f":"MID('Proposal - R'!$J$42,21,1)","v":""},{"$f":"MID('Proposal - R'!$J$42,22,1)","v":""},{"$f":"MID('Proposal - R'!$J$42,23,1)","v":""},{"$f":"MID('Proposal - R'!$J$42,24,1)","v":""},{"$f":"MID('Proposal - R'!$J$42,25,1)","v":""}]
[]
[null,"IDENTITY / PASSPORT NUMBER",{"$f":"LEFT('Proposal - R'!$J$43,1)","v":"0"},{"$f":"MID('Proposal - R'!$J$43,2,1)","v":""},{"$f":"MID('Proposal - R'!$J$43,3,1)","v":""},{"$f":"MID('Proposal - R'!$J$43,4,1)","v":""},{"$f":"MID('Proposal - R'!$J$43,5,1)","v":""},{"$f":"MID('Proposal - R'!$J$43,6,1)","v":""},{"$f":"MID('Proposal - R'!$J$43,7,1)","v":""},{"$f":"MID('Proposal - R'!$J$43,8,1)","v":""},{"$f":"MID('Proposal - R'!$J$43,9,1)","v":""},{"$f":"MID('Proposal - R'!$J$43,10,1)","v":""},{"$f":"MID('Proposal - R'!$J$43,11,1)","v":""},{"$f":"MID('Proposal - R'!$J$43,12,1)","v":""},{"$f":"MID('Proposal - R'!$J$43,13,1)","v":""},{"$f":"MID('Proposal - R'!$J$43,14,1)","v":""},{"$f":"MID('Proposal - R'!$J$43,15,1)","v":""},{"$f":"MID('Proposal - R'!$J$43,16,1)","v":""},{"$f":"MID('Proposal - R'!$J$43,17,1)","v":""},{"$f":"MID('Proposal - R'!$J$43,18,1)","v":""},{"$f":"MID('Proposal - R'!$J$43,19,1)","v":""},{"$f":"MID('Proposal - R'!$J$43,20,1)","v":""},{"$f":"MID('Proposal - R'!$J$43,21,1)","v":""},{"$f":"MID('Proposal - R'!$J$43,22,1)","v":""},{"$f":"MID('Proposal - R'!$J$43,23,1)","v":""},{"$f":"MID('Proposal - R'!$J$43,24,1)","v":""},{"$f":"MID('Proposal - R'!$J$43,25,1)","v":""}]
[]
[null,"CELL PHONE NUMBER",{"$f":"LEFT('Proposal - R'!$J$46,1)","v":"0"},{"$f":"MID('Proposal - R'!$J$46,2,1)","v":""},{"$f":"MID('Proposal - R'!$J$46,3,1)","v":""},null,{"$f":"MID('Proposal - R'!$J$46,4,1)","v":""},{"$f":"MID('Proposal - R'!$J$46,5,1)","v":""},{"$f":"MID('Proposal - R'!$J$46,6,1)","v":""},{"$f":"MID('Proposal - R'!$J$46,7,1)","v":""},{"$f":"MID('Proposal - R'!$J$46,8,1)","v":""},{"$f":"MID('Proposal - R'!$J$46,9,1)","v":""},{"$f":"MID('Proposal - R'!$J$46,10,1)","v":""}]
[]
[]
[null,"INSTRUCTION"]
[]
[null,"INSTRUCTION TYPE",null,"SWITCH",null,null,null,null,null,"X","REBALANCE"]
[]
[]
[null,"REBALANCE INSTRUCTION:"]
[]
[null,"Rebalance refers to the process of re-aligning the weightings of your investment portfolios. This involves the buying or selling of assets in your investment to obtain the desired level of asset allocation. Please indicate your new portfolio selection and the weighting for each portfolio."]
[]
[]
[null,"Portfolio Name",null,null,null,null,null,null,null,null,null,null,null,null,null,null,"Percentage"]
[null,{"$f":"CONCATENATE(\"1. \",TEXT(Rebalance!G52,\"\"))","v":"1. "},null,null,null,null,null,null,{"$f":"IF(Rebalance!M52=\"\",\"\",Rebalance!M52)","v":""},null,null,null,null,null,null,null,{"$f":"IF(Rebalance!K52=\"\",\"\",Rebalance!K52)","v":""}]
[null,{"$f":"CONCATENATE(\"2. \",TEXT(Rebalance!G53,\"\"))","v":"2. "},null,null,null,null,null,null,{"$f":"IF(Rebalance!M53=\"\",\"\",Rebalance!M53)","v":""},null,null,null,null,null,null,null,{"$f":"IF(Rebalance!K53=\"\",\"\",Rebalance!K53)","v":""}]
[null,{"$f":"CONCATENATE(\"3. \",TEXT(Rebalance!G54,\"\"))","v":"3. "},null,null,null,null,null,null,{"$f":"IF(Rebalance!M54=\"\",\"\",Rebalance!M54)","v":""},null,null,null,null,null,null,null,{"$f":"IF(Rebalance!K54=\"\",\"\",Rebalance!K54)","v":""}]
[null,{"$f":"CONCATENATE(\"4. \",TEXT(Rebalance!G55,\"\"))","v":"4. "},null,null,null,null,null,null,{"$f":"IF(Rebalance!M55=\"\",\"\",Rebalance!M55)","v":""},null,null,null,null,null,null,null,{"$f":"IF(Rebalance!K55=\"\",\"\",Rebalance!K55)","v":""}]
[null,{"$f":"CONCATENATE(\"5. \",TEXT(Rebalance!G56,\"\"))","v":"5. "},null,null,null,null,null,null,{"$f":"IF(Rebalance!M56=\"\",\"\",Rebalance!M56)","v":""},null,null,null,null,null,null,null,{"$f":"IF(Rebalance!K56=\"\",\"\",Rebalance!K56)","v":""}]
[null,{"$f":"CONCATENATE(\"6. \",TEXT(Rebalance!G57,\"\"))","v":"6. "},null,null,null,null,null,null,{"$f":"IF(Rebalance!M57=\"\",\"\",Rebalance!M57)","v":""},null,null,null,null,null,null,null,{"$f":"IF(Rebalance!K57=\"\",\"\",Rebalance!K57)","v":""}]
[null,{"$f":"CONCATENATE(\"7. \",TEXT(Rebalance!G58,\"\"))","v":"7. "},null,null,null,null,null,null,{"$f":"IF(Rebalance!M58=\"\",\"\",Rebalance!M58)","v":""},null,null,null,null,null,null,null,{"$f":"IF(Rebalance!K58=\"\",\"\",Rebalance!K58)","v":""}]
[null,{"$f":"CONCATENATE(\"8. \",TEXT(Rebalance!G59,\"\"))","v":"8. "},null,null,null,null,null,null,{"$f":"IF(Rebalance!M59=\"\",\"\",Rebalance!M59)","v":""},null,null,null,null,null,null,null,{"$f":"IF(Rebalance!K59=\"\",\"\",Rebalance!K59)","v":""}]
[null,{"$f":"CONCATENATE(\"9. \",TEXT(Rebalance!G60,\"\"))","v":"9. "},null,null,null,null,null,null,{"$f":"IF(Rebalance!M60=\"\",\"\",Rebalance!M60)","v":""},null,null,null,null,null,null,null,{"$f":"IF(Rebalance!K60=\"\",\"\",Rebalance!K60)","v":""}]
[null,{"$f":"CONCATENATE(\"10. \",TEXT(Rebalance!G61,\"\"))","v":"10. "},null,null,null,null,null,null,{"$f":"IF(Rebalance!M61=\"\",\"\",Rebalance!M61)","v":""},null,null,null,null,null,null,null,{"$f":"IF(Rebalance!K61=\"\",\"\",Rebalance!K61)","v":""}]
[null,{"$f":"CONCATENATE(\"11. \",TEXT(Rebalance!G62,\"\"))","v":"11. "},null,null,null,null,null,null,{"$f":"IF(Rebalance!M62=\"\",\"\",Rebalance!M62)","v":""},null,null,null,null,null,null,null,{"$f":"IF(Rebalance!K62=\"\",\"\",Rebalance!K62)","v":""}]
[null,{"$f":"CONCATENATE(\"12. \",TEXT(Rebalance!G63,\"\"))","v":"12. "},null,null,null,null,null,null,{"$f":"IF(Rebalance!M63=\"\",\"\",Rebalance!M63)","v":""},null,null,null,null,null,null,null,{"$f":"IF(Rebalance!K63=\"\",\"\",Rebalance!K63)","v":""}]
[null,{"$f":"CONCATENATE(\"13. \",TEXT(Rebalance!G64,\"\"))","v":"13. "},null,null,null,null,null,null,{"$f":"IF(Rebalance!M64=\"\",\"\",Rebalance!M64)","v":""},null,null,null,null,null,null,null,{"$f":"IF(Rebalance!K64=\"\",\"\",Rebalance!K64)","v":""},null,null,null,{"$f":"IF(Instructions!J74=\"\",\"\",Instructions!J74)","v":""}]
[null,{"$f":"CONCATENATE(\"14. \",TEXT(Rebalance!G65,\"\"))","v":"14. "},null,null,null,null,null,null,{"$f":"IF(Rebalance!M65=\"\",\"\",Rebalance!M65)","v":""},null,null,null,null,null,null,null,{"$f":"IF(Rebalance!K65=\"\",\"\",Rebalance!K65)","v":""},null,null,null,{"$f":"IF(Instructions!J75=\"\",\"\",Instructions!J75)","v":""}]
[null,{"$f":"CONCATENATE(\"15. \",TEXT(Rebalance!G66,\"\"))","v":"15. "},null,null,null,null,null,null,{"$f":"IF(Rebalance!M66=\"\",\"\",Rebalance!M66)","v":""},null,null,null,null,null,null,null,{"$f":"IF(Rebalance!K66=\"\",\"\",Rebalance!K66)","v":""},null,null,null,{"$f":"IF(Instructions!J76=\"\",\"\",Instructions!J76)","v":""}]
[null,"TOTAL",null,null,null,null,null,null,null,null,null,null,null,null,null,null,{"$f":"SUM(Q31:T45)","v":0}]
[]
[null,"SWITCH FROM:"]
[]
[null,"Portfolio Name",null,null,null,null,null,null,null,null,null,null,null,null,null,null,"Percentage",null,null,null,"Amount"]
[null,"1.",null,null,null,null,null,null,null,null,null,null,null,null,null,null,"%",null,null,null,"R"]
[null,"2.",null,null,null,null,null,null,null,null,null,null,null,null,null,null,"%",null,null,null,"R"]
[null,"3.",null,null,null,null,null,null,null,null,null,null,null,null,null,null,"%",null,null,null,"R"]
[null,"4.",null,null,null,null,null,null,null,null,null,null,null,null,null,null,"%",null,null,null,"R"]
[null,"5.",null,null,null,null,null,null,null,null,null,null,null,null,null,null,"%",null,null,null,"R"]
[null,"6.",null,null,null,null,null,null,null,null,null,null,null,null,null,null,"%",null,null,null,"R"]
[null,"7.",null,null,null,null,null,null,null,null,null,null,null,null,null,null,"%",null,null,null,"R"]
[null,"8.",null,null,null,null,null,null,null,null,null,null,null,null,null,null,"%",null,null,null,"R"]
[null,"9.",null,null,null,null,null,null,null,null,null,null,null,null,null,null,"%",null,null,null,"R"]
[null,"10.",null,null,null,null,null,null,null,null,null,null,null,null,null,null,"%",null,null,null,"R"]
[null,"11.",null,null,null,null,null,null,null,null,null,null,null,null,null,null,"%",null,null,null,"R"]
[null,"12.",null,null,null,null,null,null,null,null,null,null,null,null,null,null,"%",null,null,null,"R"]
[null,"TOTAL",null,null,null,null,null,null,null,null,null,null,null,null,null,null,null,null,null,null,"R"]
[]
[null,"SWITCH TO:"]
[]
[null,"Where the Client has chosen a portfolio but the Portfolio Range was left blank, the Linked Range will be applied. If the Portfolio Range selected is not offered on the Linked Range, then the Select Portfolio Range will apply. Visit www.stanlib.com for a complete list of our portfolio ranges."]
[null,"Portfolio Name",null,null,null,null,null,null,null,null,null,null,null,null,null,null,"Percentage",null,null,null,"Amount"]
[null,"1.",null,null,null,null,null,null,null,null,null,null,null,null,null,null,"%",null,null,null,"R"]
[null,"2.",null,null,null,null,null,null,null,null,null,null,null,null,null,null,"%",null,null,null,"R"]
[null,"3.",null,null,null,null,null,null,null,null,null,null,null,null,null,null,"%",null,null,null,"R"]
[null,"4.",null,null,null,null,null,null,null,null,null,null,null,null,null,null,"%",null,null,null,"R"]
[null,"5.",null,null,null,null,null,null,null,null,null,null,null,null,null,null,"%",null,null,null,"R"]
[null,"6.",null,null,null,null,null,null,null,null,null,null,null,null,null,null,"%",null,null,null,"R"]
[null,"7.",null,null,null,null,null,null,null,null,null,null,null,null,null,null,"%",null,null,null,"R"]
[null,"8.",null,null,null,null,null,null,null,null,null,null,null,null,null,null,"%",null,null,null,"R"]
[null,"9.",null,null,null,null,null,null,null,null,null,null,null,null,null,null,"%",null,null,null,"R"]
[null,"10.",null,null,null,null,null,null,null,null,null,null,null,null,null,null,"%",null,null,null,"R"]
[null,"11.",null,null,null,null,null,null,null,null,null,null,null,null,null,null,"%",null,null,null,"R"]
[null,"12.",null,null,null,null,null,null,null,null,null,null,null,null,null,null,"%",null,null,null,"R"]
[null,"TOTAL",null,null,null,null,null,null,null,null,null,null,null,null,null,null,null,null,null,null,"R"]
[]
[null,"DEBIT ORDER INSTRUCTION"]
[]
[null,"Change the portfolio selection for the existing Unit trust funds as indicated below. If the table is left blank, the existing portfolio on record will remain unchanged. "]
[]
[]
[null,"CHANGE DEBIT ORDERS AS PER SWITCH / REBALANCE INSTRUCTION",null,null,null,null,null,null,null,"YES",null,null,null,null,null,null,null,"NO"]
[]
[]
[null,"Portfolio Name",null,null,null,null,null,null,null,null,null,null,null,null,null,null,"Percentage",null,null,null,"Amount"]
[null,"1.",null,null,null,null,null,null,null,null,null,null,null,null,null,null,"%",null,null,null,"R"]
[null,"2.",null,null,null,null,null,null,null,null,null,null,null,null,null,null,"%",null,null,null,"R"]
[null,"3.",null,null,null,null,null,null,null,null,null,null,null,null,null,null,"%",null,null,null,"R"]
[null,"4.",null,null,null,null,null,null,null,null,null,null,null,null,null,null,"%",null,null,null,"R"]
[null,"5.",null,null,null,null,null,null,null,null,null,null,null,null,null,null,"%",null,null,null,"R"]
[null,"6.",null,null,null,null,null,null,null,null,null,null,null,null,null,null,"%",null,null,null,"R"]
[null,"7.",null,null,null,null,null,null,null,null,null,null,null,null,null,null,"%",null,null,null,"R"]
[null,"8.",null,null,null,null,null,null,null,null,null,null,null,null,null,null,"%",null,null,null,"R"]
[null,"9.",null,null,null,null,null,null,null,null,null,null,null,null,null,null,"%",null,null,null,"R"]
[null,"10.",null,null,null,null,null,null,null,null,null,null,null,null,null,null,"%",null,null,null,"R"]
[null,"11.",null,null,null,null,null,null,null,null,null,null,null,null,null,null,"%",null,null,null,"R"]
[null,"12.",null,null,null,null,null,null,null,null,null,null,null,null,null,null,"%",null,null,null,"R"]
[]
[null,"PHASE-IN INSTRUCTION"]
[]
[null,"Change the portfolio selection for the existing Unit trust funds as indicated below.  If the table is left blank, the existing portfolio on record will remain unchanged. Phase-in's are only available for Unit Trust funds and at inception stage."]
[]
[]
[null,"CHANGE PHASE-IN AS PER SWITCH / REBALANCE INSTRUCTION",null,null,null,null,null,null,null,"YES",null,null,null,null,null,null,null,"NO"]
[]
[]
[null,"Portfolio Name",null,null,null,null,null,null,null,null,null,null,null,null,null,null,"Percentage",null,null,null,"Amount"]
[null,"1.",null,null,null,null,null,null,null,null,null,null,null,null,null,null,"%",null,null,null,"R"]
[null,"2.",null,null,null,null,null,null,null,null,null,null,null,null,null,null,"%",null,null,null,"R"]
[null,"3.",null,null,null,null,null,null,null,null,null,null,null,null,null,null,"%",null,null,null,"R"]
[null,"4.",null,null,null,null,null,null,null,null,null,null,null,null,null,null,"%",null,null,null,"R"]
[null,"5.",null,null,null,null,null,null,null,null,null,null,null,null,null,null,"%",null,null,null,"R"]
[null,"6.",null,null,null,null,null,null,null,null,null,null,null,null,null,null,"%",null,null,null,"R"]
[null,"7.",null,null,null,null,null,null,null,null,null,null,null,null,null,null,"%",null,null,null,"R"]
[null,"8.",null,null,null,null,null,null,null,null,null,null,null,null,null,null,"%",null,null,null,"R"]
[null,"9.",null,null,null,null,null,null,null,null,null,null,null,null,null,null,"%",null,null,null,"R"]
[null,"10.",null,null,null,null,null,null,null,null,null,null,null,null,null,null,"%",null,null,null,"R"]
[null,"11.",null,null,null,null,null,null,null,null,null,null,null,null,null,null,"%",null,null,null,"R"]
[null,"12.",null,null,null,null,null,null,null,null,null,null,null,null,null,null,"%",null,null,null,"R"]
[]
[null,"PORTFOLIO NOMINATION FOR FEE DEDUCTION"]
[]
[null,"STANLIB allows you to select a specific portfolio/s for the deduction of fees. If you have not selected a specific portfolio/s, STANLIB will deduct fees from Call accounts and Money Market portfolios first. Thereafter, fees will be deducted proportionately from Unit Trust portfolios, then Model Portfolios and lastly Personal Share Portfolios.\n\nIf a portfolio/s is selected below, all fees will be deducted from this portfolio until the portfolio is depleted. If multiple portfolios are selected, the fees\nwill be deducted proportionately across these portfolios until the portfolios are depleted. Thereafter the default fee deduction rules will apply."]
[null,"Portfolio Name "]
[]
[]
[]
[]
[]
[]
[null,"PORTFOLIO NOMINATION FOR INCOME DEDUCTION"]
[]
[null,"STANLIB allows you to select a specific portfolio/s from which to pay your regular income. If you have not selected a specific portfolio/s, STANLIB will pay your income from Call accounts and Money Market portfolios first. Thereafter, income will be paid proportionately from other portfolios in your investment.\n\nIf a portfolio/s is selected below, all income will be paid from this portfolio/s until the portfolio/s is depleted. Thereafter the default fee deduction rules will apply"]
[null,"Portfolio Name "]
[]
[]
[]
[]
[]
[]
[null,"APPOINTMENT OF MODEL PORTFOLIO FINANCIAL SERVICES PROVIDER"]
[]
[null,"Complete one of the sections below to indicate the appointment of a discretionary Financial Service Provider to manage your Model portfolio\nselection"]
[]
[null,"A. APPOINTMENT OF STANLIB AS THE MODEL MANAGER\n"]
[null,"1. The Client hereby appoints STANLIB as his/her discretionary financial service provider with effect from the date of client’s signature of this form on the terms and conditions set out herein and subject to applicable legislation. STANLIB hereby agrees to act as a discretionary financial services provider to the Client. In terms of this clause, the Client hereby confers on STANLIB complete discretion to take such action as STANLIB considers necessary to attain the investment objectives of the Client, namely to maximize the income on the investments of the Client over an extended period. STANLIB may vote on behalf of the Client in respect of the Client’s investment. STANLIB as the Client’s representative is authorised to enter into any agreements of the Client with an other person, financial exchange, member or regulatory body in the execution of its obligations in terms of the agreement. STANLIB may sub-contract its responsibilities in terms if this clause to another party.\n2. Model portfolio manager charge: STANLIB will levy a Model portfolio manager charge of ___________% \nThis will be calculated on the last business day prior to the 10th day of each month on the market value of the model portfolio/portfolios selected by the Client. \n3. Discretionary Financial Services Provider: STANLIB is an authorised Financial Services Provider in terms of section 8(5)(a)(i) of the FAIS Act and is licensed to carry on the business:\n3.1. in respect of financial advisory services, financial intermediary services in the following products: Long-term Insurance: Category B1, c, B2, Retail Pension Fund Benefits, Securities and Instruments: Shares in a company other than a “share block company” as defined in the Share Blocks Control Act, 1980, Money Market instruments, Debentures and securities debt, Warrants, certificates and other instruments acknowledging, conferring or creating rights to subscribe to, acquire, dispose of, or convert securities, Bonds, Derivative instruments, Deposits as defined in the Banks Act, Participatory interests in one or more collective investment scheme, Foreign currency denominated investments instrument, including foreign currency deposit;\n3.2. in respect of discretionary services in the following products: Long-term Insurance: Category B1, C, B2, Pension Fund Benefits: (Retail), Securities and Instruments: Shares in a company other than a “share block company” as defined in the Share Blocks Control Act, 1980, Money-market Instruments, Debentures and securitised debt, Warrants, certificates and other instruments acknowledging, conferring or creating rights to subscribe to, acquire, dispose of, or convert securities, Bonds, Derivative instruments, Participatory interests in one or more collective investment scheme, Foreign currency denominated investment instruments, including a foreign currency deposit, Long-term Deposits, Short-term Deposits.\n3.3. in respect of administrative services in the following products: Long-term Insurance: Category B1, C, B2, Pension Fund Benefits: (Retail), Securities and Instruments: Shares in a company other than a “share block company” as defined in the Share Blocks Control Act, 1980, Money-market instruments, Debentures and securitised debt, Warrants, certificates and other instruments acknowledging, conferring or creating rights to subscribe to, acquire, dispose of, or convert securities, Bonds, Derivative instruments, Participatory interests in one or more collective investment schemes, Foreign currency denominated investment instruments, including foreign currency deposit."]
[null,"ACCEPTANCE OF APPOINTMENT",null,null,null,null,null,null,null,"YES",null,null,null,null,null,null,null,"NO"]
[]
[null,"B. OR APPOINTMENT OF EXTERNAL MODEL MANAGER"]
[]
[null,"NAME OF FSP / ENTITY"]
[]
[null,"FSP / ENTITY LICENCE NO"]
[]
[null,"STANLIB ID"]
[]
[null,"NAME OF SOLE PROPRIETOR OR\nREPRESENTATIVE"]
[]
[null,"MODEL PORTFOLIO MANAGER\nCHARGE ",null,null,null,"%"]
[]
[null,"1.The Client hereby appoints the FSP as the discretionary financial service provider with effect from the date of client’s signature of this form on the terms and conditions set out herein and subject to applicable legislation"]
[null,"ACCEPTANCE OF APPOINTMENT",null,null,null,null,null,null,null,"YES",null,null,null,null,null,null,null,"NO"]
[]
[]
[null,"TERMS AND CONDITIONS"]
[]
[null,"General\n1. The terms and conditions signed and agreed to in the Investment Application form will remain in force and apply to this transaction. Refer to your Investment application form for the detail for the detailed terms and conditions. Alternatively you can request a copy of the terms and conditions from your Financial adviser or the Contact Centre on 0860 123 003\n2. Where the terms and conditions contained in this form contradict the terms and conditions in the application form signed by the client, the terms and conditions contained in this switch form will apply.\n3. Some of the terms and conditions are set out in the Investment Application Form and the remainder is set out in this Switch form. The Client agrees to be bound by the terms and conditions as set out in the Investment Application Form as well as those set out in this form. In the event of a conflict between the terms and conditions in the Investment Application Form and the terms and conditions contained in this Switch Form, the terms and conditions in this form will apply.\n4. Where a fully completed and accurate instruction is received by STANLIB head office before close of business on business day 1.\nThe following switching turnaround times and prices will apply:\n  4.1. Intra-Manco Switch: Funds will be switched out and priced on day 2; the switch into the new fund will also be priced on day 2  "]
[]
[null,"Business Cut-off to Receive an Instruction","Process the instruction",null,null,null,null,null,"The Administrator Sell or Buys Units",null,null,null,null,null,"Transaction Complete",null,null,null,null,null,"Reflect on Client Statement"]
[null,"Before 15:30","Day 1",null,null,null,null,null,"Day 2",null,null,null,null,null,"Day 3",null,null,null,null,null,"Day 4"]
[null,"After 15:30","Day 2",null,null,null,null,null,"Day 3",null,null,null,null,null,"Day 4",null,null,null,null,null,"Day 5"]
[]
[null,"4.2. Inter-Manco Switch: For switches from the money market fund or call account to an external Manco, the fund will be switched out and priced on day 2, the switch into the external manager's fund will be priced on day 3. For switches from all other funds, the fund will be switched out and priced on day 2 and the switch into the external manager's fund will be priced on day 4."]
[]
[null,"Business Cut-off to Receive an Instruction","Process the instruction",null,null,null,"The Administrator Sell Units",null,null,null,"The Administrator Buys Units",null,null,null,"The Administrator received money and pay new manger ",null,null,null,"Transaction Complete",null,null,null,"Reflect on Client Statement"]
[null,"Before 15:30","Day 1",null,null,null,"Day 2",null,null,null,"Day 3",null,null,null,"Day 4",null,null,null,"Day 5",null,null,null,"Day 6"]
[null,"After 15:30","Day 2",null,null,null,"Day 3",null,null,null,"Day 4",null,null,null,"Day 5",null,null,null,"Day 6",null,null,null,"Day 7"]
[]
[null,"5. Please note: The monthly expense run takes place on the 10th of the month. In the event of the 10th being a weekend or public holiday, the expense run will take place on the next business day. The monthly annuity run takes place on the 20th of the month. In the event of the 20th being a weekend or public holiday, the annuity run will take place on the preceding business day. Switch requests received during the monthly expense run or monthly annuity run will only be processed once the run has been priced up. This will generally add up to 2 business days to the above service levels. STANLIB will not be responsible for any losses caused or damages suffered due to STANLIB being unable to meet these service levels due to unforeseeable circumstances beyond STANLIB's control.\n6. Any values previously advised are only guides to the actual values of the assets being switched.\n7. This instruction must be signed and dated by the legal owner, including the cessionary if ceded collaterally or a person holding a Power of Attorney or the Client's FSB licensed Financial Services Provider (\"Financial adviser\"). STANLIB will only accept an instruction from the Financial adviser, if the Client explicitly authorised STANLIB in writing to accept instructions from the Financial adviser. The Client understands that by authorising his/her Financial adviser to sign this instruction on his/her behalf, STANLIB will implement the instruction, whether in written or electronic format, as if it were the Client's own instruction.\n8. A maximum of 12 portfolios is allowed after completion of the switch.\n9. The Client confirms that neither STANLIB nor any of its representatives provided him/her with any advice and that he/she has taken particular care to consider on his/her own or with the assistance of his/her authorised I whether the switch is appropriate considering his/her unique objectives, financial situation and particular needs.\n10. The Client understands that all material facts must be accurately and properly disclosed and the accuracy and completeness of all information provided by or on behalf of the Client, is the Client's own responsibility. The Client understands that no Financial adviser may request the Client to sign any written or printed form or document unless all details required to be inserted thereon by the Client or on behalf of the Client have already been inserted.\n11. Multiple transactions cannot be processed simultaneously.\n12. The Client understands that STANLIB is prohibited from processing any transactions on the Client's behalf (including but not limited to switches) until all documentation has been received in terms of the Financial Intelligence Centre Act, No. 38 of 2001.\n13. Any capital gain realised on the disposal of a participatory interest in a collective investment scheme is subject to Capital Gains Tax (CGT).\n14. The Client understands that where he/she changes FSP the consequences of such change may result in different or new fund and fees structures. This may result in an increase to the platform service charges. It is the Client's and where applicable the Client's Financial adviser's responsibility to determine the relevant fund and or charge implications. STANLIB will deduct the charges from the Client's portfolios. For further details please refer to the Fee Comparison Tool on STANLIB online.\n"]
[null,"Model Portfolios\n1. The Intermediary will determine the Investment Strategy applicable to the Client and the Client will be invested in a pre-determined selection of Collective Investment Portfolios selected by the Intermediary. The Client will not be entitled to alter the selection of portfolios in any way however the Client may repurchase the entire investment or a portion thereof. Any partial repurchase will result in a proportionate repurchase out of each Collective Investment Portfolio comprising the Investment Strategy\n2. The Client hereby appoints Model Portfolio FSP as his/her discretionary financial service provider with effect from the date of client's signature of this form on the terms and conditions set out herein and subject to applicable legislation. Model Portfolio FSP hereby agrees to act as a discretionary financial services provider to the Client. In terms of this clause, the Client hereby confers on Model Portfolio FSP complete discretion to take such action as Model Portfolio FSP considers necessary to attain the investment objectives of the Client, namely to maximize the income on the investments of the Client over an extended period. Model Portfolio FSP may vote on behalf of the Client in respect of the Client's investment. Model Portfolio FSP as the Client's representative is authorised to enter into any agreements of the Client with any other person, financial exchange, member or regulatory body in the execution of its obligations in terms of the agreement. Model Portfolio FSP may sub-contract its responsibilities in terms if this clause to another party.\n3. Where the Client terminated his mandate with the Financial Service Provider, STANLIB has the right to terminate the Client's Model Portfolio investment.\n4. The Client may switch between model portfolios. The Client may switch in full or partially from the selected model investment into other funds offered on the STANLIB platform and vice versa.\n5. All redemptions will be applied proportionately across the underlying funds in the selected model investment.\n6. Additional investments into Model portfolios will be applied proportionately across the underlying funds in the selected model investment.\n"]
[null,"Personal Share Portfolio\n(Available to the Classic Retirement Annuity Fund, Preservation Pension Plan, Preservation Provident Plan and Linked Life Annuity)\n1. STANLIB has entered into an Investment Management agreement with SBG Securities (Pty) Ltd (a member of the JSE Ltd) to manage the Personal Share Portfolio. SBG Securities (Pty) Ltd and is hereby referred to as the Investment Manager.\n2. New Business instruction: Where a fully completed and accurate instruction is received by STANLIB head office before close of business (15h30) on business day 1 (and where the relevant funds have been credited to the appropriate Nominee bank account), the instruction request to create the BDA account number will be forwarded to the Investment Manager. The purchase instruction will be forwarded to the Investment Manager within 2 business days of receiving the BDA account number. The Investment Manager has the authority to decline the opening of the account. The Client will be informed in writing of any rejections by STANLIB. The Client hereby indemnifies STANLIB and the Investment Manager against any loss of any nature which may arise should any funds, credited to a Nominee bank account, as contemplated above, be reversed for any reason.\n3. Withdrawal instruction: Any withdrawals applicable to the Classic Linked Life Annuity policy will be in the form of a Death Claim and the Standard Death Claim process for Living Annuities will be followed. A payment, as determined by a court order, will be processed according to the standard payment process. Commutation thresholds are set by SARS and these thresholds will be applied when an instruction is received by STANLIB from the Client. Due to the nature of the investment, the turnaround time for claims from Personal Share Portfolios will be determined by the Investment Manager. The maximum period for settling a claim is 60 days from the point when all requirements have been met.\n4. Switch instruction: Where a fully completed and accurate instruction is received by STANLIB head office before close of business on business day 1, the switch into the new portfolio will be completed and the process as followed in the New Business Process will apply.\n5. Income payment: The Client must draw an income within the specified limits and the income will be paid from the nominated fund. Payments will be received from STANLIB by the 1st business day of the month according to the selected payment frequency. The payment frequency option is monthly, quarterly, bi-annually and annually. The Client has one opportunity at anniversary date to review the income level and frequency of payments. The business cut off is 5 business days before the Client's anniversary date.\n6. This contract will become effective once STANLIB and the Investment Manager have accepted the application and the Investment Manager has the Client approved, and have received the investment funds. STANLIB will transfer the net investment amount to the Investment Manager as indicated on the Application Form. The Investment Manager will then invest the funds in accordance with the portfolio selected by the Client. The Investment Manager will contact the Client to verify the Personal Share Portfolio choice and disclose the Investment Manager fees. In the case of script transfers, the Client acknowledges that they are aware of the share transfer process and further acknowledge that only once the Investment Manager has received the shares in\ndematerialised form and provided the Administrator with a value, can the Administrator calculate the value of the investment.\n7. The fees and charges levied by the Investment Manager will be:\n7.1. The investment Management fee at a maximum fee of 1% per annum but may vary at the discretion of the Investment Manager.\n7.2. The Investment Manager fee shall be calculated and charged as a percentage of the market value of the portfolio on a monthly basis. The fee will be firstly be deducted from the cash portion of the Personal Share Portfolio otherwise securities will be sold at the discretion of the Investment Manager.\n7.3. The Investment Manager shall charge a Brokerage fee at a maximum rate of 1% per trade with the discretion of the Investment Manager to vary the charger per trade.\n7.4. The Brokerage fee will be charged upon execution of the trade.\n7.5. The Investment Manager undertakes to deduct from the Portfolios all Taxes, STRATE, JSE and other applicable charges.\n8. The Client understands that where he/she switches to other portfolios, different or new cost structures may apply and that it is the Client's responsibility, or where applicable, that of the Client's Financial Service Provider, to determine the relevant cost structures prior to conducting a switch.\n9. Reporting to the Client: The Client can obtain detailed information regarding the underlying investment of the Personal Share Portfolio directly from the Investment Manager.\n10. Notional unit prices are calculated for the Personal Share Portfolio based on the values of the portfolio as received by the Investment Manager on a daily basis.\n11. Unless otherwise specified through Portfolio nomination for fee deduction, STANLIB will deduct all charges from call accounts and money market portfolios first. Thereafter charges will be deducted proportionately from other portfolios. If a charger is deducted from a Personal Share Portfolio the charge will be firstly be deducted from the cash portion of the Personal Share Portfolio otherwise securities will be sold at the discretion of the Investment Manager.\n12. The Client acknowledge that an investment in the Personal Share Portfolio is subject to the Investment Manager's standard business rules, procedures and service level agreement. STANLIB or the Investment Manager can provide the Investment Management agreement to the client on request. The Investment Manager will provide the Client with statements for the investment in the Personal Share Portfolio on a monthly basis. Please note that depending on expense runs and timing of the instructions there may be differences in the value provided by STANLIB or the Investment Manager.The Client acknowledges and understands that if the total investment value in the Personal Share Portfolio is less than the Investment Manager's minimum investment amount at any time during the duration of the contract, the Client may be obliged to switch 100% of the Personal Share Portfolio value if required by Investment Manager into Collective Investment Scheme Portfolios.\n13. The Client agrees to pay Investment Manager the charges specified in this document. Such charges shall be calculated and charged as indicated. Investment Manager shall be entitled to increase the charges charged to the Client by giving the Client three months prior notice of such an increase.\n"]
[]
[null,"STANLIB Linked Investments Tax-Free Savings Plan\n1. The STANLIB Linked Investments Tax-Free Savings Plan is governed by the Regulations in terms of section 12T of the Income Tax Act of 1962.\n2. Only natural persons residing in South Africa may invest in the STANLIB Linked Investments Tax-Free Savings Plan.\n3. All interest, dividends and capital gains earned in this may be automatically re-invested tax-free to accrue further interest and dividends. The plan allows a client to invest a maximum of R30 000 per year, with a maximum lifetime contribution of R500 000. The thresholds apply to the total capital contributions only per client.\n4. Capital contributions in excess of the thresholds will be subject to 40% tax payable by the Client to SARS.\n5. The legislated annual and lifetime contribution thresholds apply to a Client’s tax-free savings plan across all financial services providers. It is the Client’s responsibility to monitor their total contribution limits for tax-free savings plan with STANLIB Linked investments and other financial services providers.\n6. Any funds withdrawn from the plan will still be regarded in the annual and lifetime contributions thresholds, as the investment limit is on gross contributions for both annual and lifetime limits. Any withdrawals made from a minor’s STANLIB Linked Investments Tax-Free Savings Plan can only be transferred into the minor’s bank account."]
[]
[null,"DECLARATION"]
[]
[null,"I/We hereby agree to provide all documentation and information required in terms of STANLIB’s business rules and the Financial Intelligence Centre Act, No. 38 of 2001, and understand that STANLIB is prohibited from processing any transaction on my behalf until all such documentation has been provided. \nI/We confirm that all information provided herein is true and correct and that I have read and understood the contents of this form."]
[]
[]
[null,"SIGNATURE OF CLIENT/AUTHORISED SIGNATORY",null,null,null,null,null,null,null,null,null,"DATE",null,null,null,null,null,null,null,"-",null,null,"-"]
[null,null,null,null,null,null,null,null,null,null,null,null,null,null,null,null,null,"D","D",null,"M","M",null,"Y","Y","Y","Y"]
[]
[null,null,null,null,null,null,null,null,null,null,null,"SIGNED AT"]
[]
[null,"SIGNATURE OF FINANCIAL ADVISER",null,null,null,null,null,null,null,null,null,"DATE",null,null,null,null,null,null,null,"-",null,null,"-"]
[null,null,null,null,null,null,null,null,null,null,null,null,null,null,null,null,null,"D","D",null,"M","M",null,"Y","Y","Y","Y"]
[]
[null,null,null,null,null,null,null,null,null,null,null,"SIGNED AT"]

{"sheet":"Rebalance Form","index":8,"n_rows":143,"n_cols":27,"rows_kept":143,"cut":false,"hidden":true,"merged":[[34,8,34,15],[31,1,31,7],[31,8,31,15],[32,1,32,7],[32,8,32,15],[5,1,5,27],[6,1,6,19],[6,20,6,27],[8,1,8,27],[19,1,19,27],[24,1,24,27],[26,1,27,26],[29,1,29,7],[29,8,29,15],[30,1,30,7],[30,8,30,15],[33,1,33,7],[33,8,33,15],[34,1,34,7],[37,1,37,7],[37,8,37,15],[38,1,38,7],[38,8,38,15],[35,1,35,7],[35,8,35,15],[36,1,36,7],[36,8,36,15],[38,16,38,26],[41,1,41,7],[41,8,41,15],[45,1,45,15],[39,1,39,7],[39,8,39,15],[40,1,40,7],[40,8,40,15],[43,1,43,7],[43,8,43,15],[44,1,44,7],[44,8,44,15],[42,1,42,7],[42,8,42,15],[47,1,47,27],[49,1,49,7],[49,8,49,15],[49,16,49,19],[49,20,49,26],[50,1,50,7],[50,8,50,15],[50,16,50,19],[50,20,50,26],[53,1,53,7],[53,8,53,15],[53,16,53,19],[53,20,53,26],[54,1,54,7],[54,8,54,15],[54,16,54,19],[54,20,54,26],[51,1,51,7],[51,8,51,15],[51,16,51,19],[51,20,51,26],[52,1,52,7],[52,8,52,15],[52,16,52,19],[52,20,52,26],[57,1,57,7],[57,8,57,15],[57,16,57,19],[57,20,57,26],[58,1,58,7],[58,8,58,15],[58,16,58,19],[58,20,58,26],[55,1,55,7],[55,8,55,15],[55,16,55,19],[55,20,55,26],[56,1,56,7],[56,8,56,15],[56,16,56,19],[56,20,56,26],[61,1,61,7],[61,8,61,15],[61,16,61,19],[61,20,61,26],[62,1,62,15],[62,16,62,19],[62,20,62,26],[59,1,59,7],[59,8,59,15],[59,16,59,19],[59,20,59,26],[60,1,60,7],[60,8,60,15],[60,16,60,19],[60,20,60,26],[64,1,64,27],[66,1,66,7],[66,8,66,15],[66,16,66,19],[66,20,66,26],[67,1,67,7],[67,8,67,15],[67,16,67,19],[67,20,67,26],[70,1,70,7],[70,8,70,15],[70,16,70,19],[70,20,70,26],[71,1,71,7],[71,8,71,15],[71,16,71,19],[71,20,71,26],[68,1,68,7],[68,8,68,15],[68,16,68,19],[68,20,68,26],[69,1,69,7],[69,8,69,15],[69,16,69,19],[69,20,69,26],[74,1,74,7],[74,8,74,15],[74,16,74,19],[74,20,74,26],[75,1,75,7],[75,8,75,15],[75,16,75,19],[75,20,75,26],[72,1,72,7],[72,8,72,15],[72,16,72,19],[72,20,72,26],[73,1,73,7],[73,8,73,15],[73,16,73,19],[73,20,73,26],[78,1,78,7],[78,8,78,15],[78,16,78,19],[78,20,78,26],[79,1,79,15],[79,16,79,19],[79,20,79,26],[76,1,76,7],[76,8,76,15],[76,16,76,19],[76,20,76,26],[77,1,77,7],[77,8,77,15],[77,16,77,19],[77,20,77,26],[90,1,90,7],[90,8,90,15],[90,16,90,19],[90,20,90,26],[91,1,91,7],[91,8,91,15],[91,16,91,19],[91,20,91,26],[81,1,81,27],[83,1,84,26],[89,1,89,7],[89,8,89,15],[89,16,89,19],[89,20,89,26],[94,1,94,7],[94,8,94,15],[94,16,94,19],[94,20,94,26],[95,1,95,7],[95,8,95,15],[95,16,95,19],[95,20,95,26],[92,1,92,7],[92,8,92,15],[92,16,92,19],[92,20,92,26],[93,1,93,7],[93,8,93,15],[93,16,93,19],[93,20,93,26],[98,1,98,7],[98,8,98,15],[98,16,98,19],[98,20,98,26],[99,1,99,7],[99,8,99,15],[99,16,99,19],[99,20,99,26],[96,1,96,7],[96,8,96,15],[96,16,96,19],[96,20,96,26],[97,1,97,7],[97,8,97,15],[97,16,97,19],[97,20,97,26],[103,1,103,27],[105,1,106,26],[111,1,111,7],[111,8,111,15],[111,16,111,19],[111,20,111,26],[100,1,100,7],[100,8,100,15],[100,16,100,19],[100,20,100,26],[101,1,101,7],[101,8,101,15],[101,16,101,19],[101,20,101,26],[114,1,114,7],[114,8,114,15],[114,16,114,19],[114,20,114,26],[115,1,115,7],[115,8,115,15],[115,16,115,19],[115,20,115,26],[112,1,112,7],[112,8,112,15],[112,16,112,19],[112,20,112,26],[113,1,113,7],[113,8,113,15],[113,16,113,19],[113,20,113,26],[118,1,118,7],[118,8,118,15],[118,16,118,19],[118,20,118,26],[119,1,119,7],[119,8,119,15],[119,16,119,19],[119,20,119,26],[116,1,116,7],[116,8,116,15],[116,16,116,19],[116,20,116,26],[117,1,117,7],[117,8,117,15],[117,16,117,19],[117,20,117,26],[122,1,122,7],[122,8,122,15],[122,16,122,19],[122,20,122,26],[123,1,123,7],[123,8,123,15],[123,16,123,19],[123,20,123,26],[120,1,120,7],[120,8,120,15],[120,16,120,19],[120,20,120,26],[121,1,121,7],[121,8,121,15],[121,16,121,19],[121,20,121,26],[139,1,142,1],[139,2,142,9],[139,11,139,16],[142,11,142,16],[142,17,142,26],[125,1,125,27],[127,1,127,10],[127,12,127,26],[129,1,129,27],[131,1,132,26],[134,1,137,1],[134,2,137,9],[134,11,134,16],[137,11,137,16],[137,17,137,26],[40,16,40,26],[41,16,41,26],[45,16,45,26],[30,16,30,26],[31,16,31,26],[32,16,32,26],[29,16,29,26],[33,16,33,26],[34,16,34,26],[35,16,35,26],[36,16,36,26],[37,16,37,26],[43,16,43,19],[43,20,43,26],[44,16,44,19],[44,20,44,26],[39,16,39,26],[42,16,42,19],[42,20,42,26]]}
[]
[]
[]
[]
[]
[null,"E-mail instructions@stanlib.com\nFacsimile 0867 277 501 or 011 448 6666"]
[null,"Switch Form\nClassic Range"]
[]
[null,"CLIENT DETAILS"]
[]
[null,"ENTITY / INVESTMENT ACCOUNT NUMBER",{"$f":"LEFT('Proposal - R'!$J$41,1)","v":"0"},{"$f":"MID('Proposal - R'!$J$41,2,1)","v":""},{"$f":"MID('Proposal - R'!$J$41,3,1)","v":""},{"$f":"MID('Proposal - R'!$J$41,4,1)","v":""},{"$f":"MID('Proposal - R'!$J$41,5,1)","v":""},{"$f":"MID('Proposal - R'!$J$41,6,1)","v":""},{"$f":"MID('Proposal - R'!$J$41,7,1)","v":""},{"$f":"MID('Proposal - R'!$J$41,8,1)","v":""},{"$f":"MID('Proposal - R'!$J$41,9,1)","v":""},{"$f":"MID('Proposal - R'!$J$41,10,1)","v":""},{"$f":"MID('Proposal - R'!$J$41,11,1)","v":""},{"$f":"MID('Proposal - R'!$J$41,12,1)","v":""},{"$f":"MID('Proposal - R'!$J$41,13,1)","v":""},{"$f":"MID('Proposal - R'!$J$41,14,1)","v":""},{"$f":"MID('Proposal - R'!$J$41,15,1)","v":""},{"$f":"MID('Proposal - R'!$J$41,16,1)","v":""},{"$f":"MID('Proposal - R'!$J$41,17,1)","v":""},{"$f":"MID('Proposal - R'!$J$41,18,1)","v":""},{"$f":"MID('Proposal - R'!$J$41,19,1)","v":""},{"$f":"MID('Proposal - R'!$J$41,20,1)","v":""},{"$f":"MID('Proposal - R'!$J$41,21,1)","v":""},{"$f":"MID('Proposal - R'!$J$41,22,1)","v":""},{"$f":"MID('Proposal - R'!$J$41,23,1)","v":""},{"$f":"MID('Proposal - R'!$J$41,24,1)","v":""},{"$f":"MID('Proposal - R'!$J$41,25,1)","v":""}]
[]
[null,"NAME & SURNAME / ENTITY NAME",{"$f":"LEFT('Proposal - R'!$J$42,1)","v":"0"},{"$f":"MID('Proposal - R'!$J$42,2,1)","v":""},{"$f":"MID('Proposal - R'!$J$42,3,1)","v":""},{"$f":"MID('Proposal - R'!$J$42,4,1)","v":""},{"$f":"MID('Proposal - R'!$J$42,5,1)","v":""},{"$f":"MID('Proposal - R'!$J$42,6,1)","v":""},{"$f":"MID('Proposal - R'!$J$42,7,1)","v":""},{"$f":"MID('Proposal - R'!$J$42,8,1)","v":""},{"$f":"MID('Proposal - R'!$J$42,9,1)","v":""},{"$f":"MID('Proposal - R'!$J$42,10,1)","v":""},{"$f":"MID('Proposal - R'!$J$42,11,1)","v":""},{"$f":"MID('Proposal - R'!$J$42,12,1)","v":""},{"$f":"MID('Proposal - R'!$J$42,13,1)","v":""},{"$f":"MID('Proposal - R'!$J$42,14,1)","v":""},{"$f":"MID('Proposal - R'!$J$42,15,1)","v":""},{"$f":"MID('Proposal - R'!$J$42,16,1)","v":""},{"$f":"MID('Proposal - R'!$J$42,17,1)","v":""},{"$f":"MID('Proposal - R'!$J$42,18,1)","v":""},{"$f":"MID('Proposal - R'!$J$42,19,1)","v":""},{"$f":"MID('Proposal - R'!$J$42,20,1)","v":""},{"$f":"MID('Proposal - R'!$J$42,21,1)","v":""},{"$f":"MID('Proposal - R'!$J$42,22,1)","v":""},{"$f":"MID('Proposal - R'!$J$42,23,1)","v":""},{"$f":"MID('Proposal - R'!$J$42,24,1)","v":""},{"$f":"MID('Proposal - R'!$J$42,25,1)","v":""}]
[]
[null,"IDENTITY / PASSPORT NUMBER",{"$f":"LEFT('Proposal - R'!$J$43,1)","v":"0"},{"$f":"MID('Proposal - R'!$J$43,2,1)","v":""},{"$f":"MID('Proposal - R'!$J$43,3,1)","v":""},{"$f":"MID('Proposal - R'!$J$43,4,1)","v":""},{"$f":"MID('Proposal - R'!$J$43,5,1)","v":""},{"$f":"MID('Proposal - R'!$J$43,6,1)","v":""},{"$f":"MID('Proposal - R'!$J$43,7,1)","v":""},{"$f":"MID('Proposal - R'!$J$43,8,1)","v":""},{"$f":"MID('Proposal - R'!$J$43,9,1)","v":""},{"$f":"MID('Proposal - R'!$J$43,10,1)","v":""},{"$f":"MID('Proposal - R'!$J$43,11,1)","v":""},{"$f":"MID('Proposal - R'!$J$43,12,1)","v":""},{"$f":"MID('Proposal - R'!$J$43,13,1)","v":""},{"$f":"MID('Proposal - R'!$J$43,14,1)","v":""},{"$f":"MID('Proposal - R'!$J$43,15,1)","v":""},{"$f":"MID('Proposal - R'!$J$43,16,1)","v":""},{"$f":"MID('Proposal - R'!$J$43,17,1)","v":""},{"$f":"MID('Proposal - R'!$J$43,18,1)","v":""},{"$f":"MID('Proposal - R'!$J$43,19,1)","v":""},{"$f":"MID('Proposal - R'!$J$43,20,1)","v":""},{"$f":"MID('Proposal - R'!$J$43,21,1)","v":""},{"$f":"MID('Proposal - R'!$J$43,22,1)","v":""},{"$f":"MID('Proposal - R'!$J$43,23,1)","v":""},{"$f":"MID('Proposal - R'!$J$43,24,1)","v":""},{"$f":"MID('Proposal - R'!$J$43,25,1)","v":""}]
[]
[null,"CELL PHONE NUMBER",{"$f":"LEFT('Proposal - R'!$J$46,1)","v":"0"},{"$f":"MID('Proposal - R'!$J$46,2,1)","v":""},{"$f":"MID('Proposal - R'!$J$46,3,1)","v":""},null,{"$f":"MID('Proposal - R'!$J$46,4,1)","v":""},{"$f":"MID('Proposal - R'!$J$46,5,1)","v":""},{"$f":"MID('Proposal - R'!$J$46,6,1)","v":""},{"$f":"MID('Proposal - R'!$J$46,7,1)","v":""},{"$f":"MID('Proposal - R'!$J$46,8,1)","v":""},{"$f":"MID('Proposal - R'!$J$46,9,1)","v":""},{"$f":"MID('Proposal - R'!$J$46,10,1)","v":""}]
[]
[]
[null,"CLIENT DETAILS"]
[]
[null,"INSTRUCTION TYPE",null,"SWITCH",null,null,null,null,null,"X","REBALANCE"]
[]
[]
[null,"REBALANCE INSTRUCTION:"]
[]
[null,"Rebalance refers to the process of re-aligning the weightings of your investment portfolios. This involves the buying or selling of assets in your investment to obtain the desired level of asset allocation. Please indicate your new portfolio selection and the weighting for each portfolio."]
[]
[]
[null,"Portfolio Name",null,null,null,null,null,null,"Portfolio Range\n(e.g. Linked Range, Select)",null,null,null,null,null,null,null,"Percentage"]
[null,{"$f":"CONCATENATE(\"1. \",TEXT(Rebalance!G52,\"\"))","v":"1. "},null,null,null,null,null,null,{"$f":"IF(Rebalance!M52=\"\",\"\",Rebalance!M52)","v":""},null,null,null,null,null,null,null,{"$f":"IF(Rebalance!K52=\"\",\"\",Rebalance!K52)","v":""}]
[null,{"$f":"CONCATENATE(\"2. \",TEXT(Rebalance!G53,\"\"))","v":"2. "},null,null,null,null,null,null,{"$f":"IF(Rebalance!M53=\"\",\"\",Rebalance!M53)","v":""},null,null,null,null,null,null,null,{"$f":"IF(Rebalance!K53=\"\",\"\",Rebalance!K53)","v":""}]
[null,{"$f":"CONCATENATE(\"3. \",TEXT(Rebalance!G54,\"\"))","v":"3. "},null,null,null,null,null,null,{"$f":"IF(Rebalance!M54=\"\",\"\",Rebalance!M54)","v":""},null,null,null,null,null,null,null,{"$f":"IF(Rebalance!K54=\"\",\"\",Rebalance!K54)","v":""}]
[null,{"$f":"CONCATENATE(\"4. \",TEXT(Rebalance!G55,\"\"))","v":"4. "},null,null,null,null,null,null,{"$f":"IF(Rebalance!M55=\"\",\"\",Rebalance!M55)","v":""},null,null,null,null,null,null,null,{"$f":"IF(Rebalance!K55=\"\",\"\",Rebalance!K55)","v":""}]
[null,{"$f":"CONCATENATE(\"5. \",TEXT(Rebalance!G56,\"\"))","v":"5. "},null,null,null,null,null,null,{"$f":"IF(Rebalance!M56=\"\",\"\",Rebalance!M56)","v":""},null,null,null,null,null,null,null,{"$f":"IF(Rebalance!K56=\"\",\"\",Rebalance!K56)","v":""}]
[null,{"$f":"CONCATENATE(\"6. \",TEXT(Rebalance!G57,\"\"))","v":"6. "},null,null,null,null,null,null,{"$f":"IF(Rebalance!M57=\"\",\"\",Rebalance!M57)","v":""},null,null,null,null,null,null,null,{"$f":"IF(Rebalance!K57=\"\",\"\",Rebalance!K57)","v":""}]
[null,{"$f":"CONCATENATE(\"7. \",TEXT(Rebalance!G58,\"\"))","v":"7. "},null,null,null,null,null,null,{"$f":"IF(Rebalance!M58=\"\",\"\",Rebalance!M58)","v":""},null,null,null,null,null,null,null,{"$f":"IF(Rebalance!K58=\"\",\"\",Rebalance!K58)","v":""}]
[null,{"$f":"CONCATENATE(\"8. \",TEXT(Rebalance!G59,\"\"))","v":"8. "},null,null,null,null,null,null,{"$f":"IF(Rebalance!M59=\"\",\"\",Rebalance!M59)","v":""},null,null,null,null,null,null,null,{"$f":"IF(Rebalance!K59=\"\",\"\",Rebalance!K59)","v":""}]
[null,{"$f":"CONCATENATE(\"9. \",TEXT(Rebalance!G60,\"\"))","v":"9. "},null,null,null,null,null,null,{"$f":"IF(Rebalance!M60=\"\",\"\",Rebalance!M60)","v":""},null,null,null,null,null,null,null,{"$f":"IF(Rebalance!K60=\"\",\"\",Rebalance!K60)","v":""}]
[null,{"$f":"CONCATENATE(\"10. \",TEXT(Rebalance!G61,\"\"))","v":"10. "},null,null,null,null,null,null,{"$f":"IF(Rebalance!M61=\"\",\"\",Rebalance!M61)","v":""},null,null,null,null,null,null,null,{"$f":"IF(Rebalance!K61=\"\",\"\",Rebalance!K61)","v":""}]
[null,{"$f":"CONCATENATE(\"11. \",TEXT(Rebalance!G62,\"\"))","v":"11. "},null,null,null,null,null,null,{"$f":"IF(Rebalance!M62=\"\",\"\",Rebalance!M62)","v":""},null,null,null,null,null,null,null,{"$f":"IF(Rebalance!K62=\"\",\"\",Rebalance!K62)","v":""}]
[null,{"$f":"CONCATENATE(\"12. \",TEXT(Rebalance!G63,\"\"))","v":"12. "},null,null,null,null,null,null,{"$f":"IF(Rebalance!M63=\"\",\"\",Rebalance!M63)","v":""},null,null,null,null,null,null,null,{"$f":"IF(Rebalance!K63=\"\",\"\",Rebalance!K63)","v":""}]
[null,{"$f":"CONCATENATE(\"13. \",TEXT(Rebalance!G64,\"\"))","v":"13. "},null,null,null,null,null,null,{"$f":"IF(Rebalance!M64=\"\",\"\",Rebalance!M64)","v":""},null,null,null,null,null,null,null,{"$f":"IF(Rebalance!K64=\"\",\"\",Rebalance!K64)","v":""},null,null,null,{"$f":"IF(Instructions!J74=\"\",\"\",Instructions!J74)","v":""}]
[null,{"$f":"CONCATENATE(\"14. \",TEXT(Rebalance!G65,\"\"))","v":"14. "},null,null,null,null,null,null,{"$f":"IF(Rebalance!M65=\"\",\"\",Rebalance!M65)","v":""},null,null,null,null,null,null,null,{"$f":"IF(Rebalance!K65=\"\",\"\",Rebalance!K65)","v":""},null,null,null,{"$f":"IF(Instructions!J75=\"\",\"\",Instructions!J75)","v":""}]
[null,{"$f":"CONCATENATE(\"15. \",TEXT(Rebalance!G66,\"\"))","v":"15. "},null,null,null,null,null,null,{"$f":"IF(Rebalance!M66=\"\",\"\",Rebalance!M66)","v":""},null,null,null,null,null,null,null,{"$f":"IF(Rebalance!K66=\"\",\"\",Rebalance!K66)","v":""},null,null,null,{"$f":"IF(Instructions!J76=\"\",\"\",Instructions!J76)","v":""}]
[null,"TOTAL",null,null,null,null,null,null,null,null,null,null,null,null,null,null,{"$f":"SUM(Q31:T45)","v":0}]
[]
[null,"SWITCH FROM:"]
[]
[null,"Portfolio Name",null,null,null,null,null,null,"Portfolio Range\n(e.g. Linked Range, Select)",null,null,null,null,null,null,null,"Percentage",null,null,null,"Amount"]
[null,"1.",null,null,null,null,null,null,null,null,null,null,null,null,null,null,"%",null,null,null,"R"]
[null,"2.",null,null,null,null,null,null,null,null,null,null,null,null,null,null,"%",null,null,null,"R"]
[null,"3.",null,null,null,null,null,null,null,null,null,null,null,null,null,null,"%",null,null,null,"R"]
[null,"4.",null,null,null,null,null,null,null,null,null,null,null,null,null,null,"%",null,null,null,"R"]
[null,"5.",null,null,null,null,null,null,null,null,null,null,null,null,null,null,"%",null,null,null,"R"]
[null,"6.",null,null,null,null,null,null,null,null,null,null,null,null,null,null,"%",null,null,null,"R"]
[null,"7.",null,null,null,null,null,null,null,null,null,null,null,null,null,null,"%",null,null,null,"R"]
[null,"8.",null,null,null,null,null,null,null,null,null,null,null,null,null,null,"%",null,null,null,"R"]
[null,"9.",null,null,null,null,null,null,null,null,null,null,null,null,null,null,"%",null,null,null,"R"]
[null,"10.",null,null,null,null,null,null,null,null,null,null,null,null,null,null,"%",null,null,null,"R"]
[null,"11.",null,null,null,null,null,null,null,null,null,null,null,null,null,null,"%",null,null,null,"R"]
[null,"12.",null,null,null,null,null,null,null,null,null,null,null,null,null,null,"%",null,null,null,"R"]
[null,"TOTAL",null,null,null,null,null,null,null,null,null,null,null,null,null,null,"%",null,null,null,"R"]
[]
[null,"SWITCH TO:"]
[]
[null,"Portfolio Name",null,null,null,null,null,null,"Portfolio Range\n(e.g. Linked Range, Select)",null,null,null,null,null,null,null,"Percentage",null,null,null,"Amount"]
[null,"1.",null,null,null,null,null,null,null,null,null,null,null,null,null,null,"%",null,null,null,"R"]
[null,"2.",null,null,null,null,null,null,null,null,null,null,null,null,null,null,"%",null,null,null,"R"]
[null,"3.",null,null,null,null,null,null,null,null,null,null,null,null,null,null,"%",null,null,null,"R"]
[null,"4.",null,null,null,null,null,null,null,null,null,null,null,null,null,null,"%",null,null,null,"R"]
[null,"5.",null,null,null,null,null,null,null,null,null,null,null,null,null,null,"%",null,null,null,"R"]
[null,"6.",null,null,null,null,null,null,null,null,null,null,null,null,null,null,"%",null,null,null,"R"]
[null,"7.",null,null,null,null,null,null,null,null,null,null,null,null,null,null,"%",null,null,null,"R"]
[null,"8.",null,null,null,null,null,null,null,null,null,null,null,null,null,null,"%",null,null,null,"R"]
[null,"9.",null,null,null,null,null,null,null,null,null,null,null,null,null,null,"%",null,null,null,"R"]
[null,"10.",null,null,null,null,null,null,null,null,null,null,null,null,null,null,"%",null,null,null,"R"]
[null,"11.",null,null,null,null,null,null,null,null,null,null,null,null,null,null,"%",null,null,null,"R"]
[null,"12.",null,null,null,null,null,null,null,null,null,null,null,null,null,null,"%",null,null,null,"R"]
[null,"TOTAL",null,null,null,null,null,null,null,null,null,null,null,null,null,null,"%",null,null,null,"R"]
[]
[null,"PHASE-IN INSTRUCTION"]
[]
[null,"Change the portfolio selection for the existing Unit trust funds as indicated below.  If the table is left blank, the existing portfolio on record will remain unchanged. Phase-in's are only available for Unit Trust funds and at inception stage."]
[]
[]
[null,"CHANGE PHASE-IN",null,"YES",null,null,null,null,null,null,"NO"]
[]
[]
[null,"Portfolio Name",null,null,null,null,null,null,"Portfolio Range\n(e.g. Linked Range, Select)",null,null,null,null,null,null,null,"Percentage",null,null,null,"Amount"]
[null,"1.",null,null,null,null,null,null,null,null,null,null,null,null,null,null,"%",null,null,null,"R"]
[null,"2.",null,null,null,null,null,null,null,null,null,null,null,null,null,null,"%",null,null,null,"R"]
[null,"3.",null,null,null,null,null,null,null,null,null,null,null,null,null,null,"%",null,null,null,"R"]
[null,"4.",null,null,null,null,null,null,null,null,null,null,null,null,null,null,"%",null,null,null,"R"]
[null,"5.",null,null,null,null,null,null,null,null,null,null,null,null,null,null,"%",null,null,null,"R"]
[null,"6.",null,null,null,null,null,null,null,null,null,null,null,null,null,null,"%",null,null,null,"R"]
[null,"7.",null,null,null,null,null,null,null,null,null,null,null,null,null,null,"%",null,null,null,"R"]
[null,"8.",null,null,null,null,null,null,null,null,null,null,null,null,null,null,"%",null,null,null,"R"]
[null,"9.",null,null,null,null,null,null,null,null,null,null,null,null,null,null,"%",null,null,null,"R"]
[null,"10.",null,null,null,null,null,null,null,null,null,null,null,null,null,null,"%",null,null,null,"R"]
[null,"11.",null,null,null,null,null,null,null,null,null,null,null,null,null,null,"%",null,null,null,"R"]
[null,"12.",null,null,null,null,null,null,null,null,null,null,null,null,null,null,"%",null,null,null,"R"]
[]
[null,"DEBIT ORDER INSTRUCTION"]
[]
[null,"Change the portfolio selection for the existing Unit trust funds as indicated below.  If the table is left blank, the existing portfolio on record will remain unchanged. The product minimum recurring debit order amounts must be met: R1 000 for the Classic Investment Plan with a minimum of R500 per portfolio; R500 per portfolio on the Classic Retirement Annuity Plan. "]
[]
[]
[null,"CHANGE DEBIT ORDERS",null,"YES",null,null,null,null,null,null,"NO"]
[]
[]
[null,"Portfolio Name",null,null,null,null,null,null,"Portfolio Range\n(e.g. Linked Range, Select)",null,null,null,null,null,null,null,"Percentage",null,null,null,"Amount"]
[null,"1.",null,null,null,null,null,null,null,null,null,null,null,null,null,null,"%",null,null,null,"R"]
[null,"2.",null,null,null,null,null,null,null,null,null,null,null,null,null,null,"%",null,null,null,"R"]
[null,"3.",null,null,null,null,null,null,null,null,null,null,null,null,null,null,"%",null,null,null,"R"]
[null,"4.",null,null,null,null,null,null,null,null,null,null,null,null,null,null,"%",null,null,null,"R"]
[null,"5.",null,null,null,null,null,null,null,null,null,null,null,null,null,null,"%",null,null,null,"R"]
[null,"6.",null,null,null,null,null,null,null,null,null,null,null,null,null,null,"%",null,null,null,"R"]
[null,"7.",null,null,null,null,null,null,null,null,null,null,null,null,null,null,"%",null,null,null,"R"]
[null,"8.",null,null,null,null,null,null,null,null,null,null,null,null,null,null,"%",null,null,null,"R"]
[null,"9.",null,null,null,null,null,null,null,null,null,null,null,null,null,null,"%",null,null,null,"R"]
[null,"10.",null,null,null,null,null,null,null,null,null,null,null,null,null,null,"%",null,null,null,"R"]
[null,"11.",null,null,null,null,null,null,null,null,null,null,null,null,null,null,"%",null,null,null,"R"]
[null,"12.",null,null,null,null,null,null,null,null,null,null,null,null,null,null,"%",null,null,null,"R"]
[]
[null,"TERMS AND CONDITIONS"]
[]
[null,"1. The terms and conditions signed and agreed to in the Investment Application form will remain in force and apply to this transaction. Refer to your Investment application form for the detail for the detailed terms and conditions. Alternatively you can request a copy of the terms and conditions from your Financial adviser or the Contact Centre on 0860 123 0032.                     \n\"2. Where the terms and conditions contained in this form contradict the terms and conditions in the application form signed by the client, the terms and conditions contained in this switch form will apply.\n3. Some of the terms and conditions are set out in the Investment Application Form and the remainder is set out in this Switch form.   The Client agrees to be bound by the terms and conditions as set out in the Investment Application Form as well as those set out in this form.   In the event of a conflict between the terms and conditions in the Investment Application Form and the terms and conditions contained in this Switch Form, the terms and conditions in this form will apply.\n4. Where a fully completed and accurate instruction is received by STANLIB head office before close of business on business day 1.\nThe following switching turnaround times and prices will apply:\n4.1. Intra-Manco Switch: Funds will be switched out and priced on day 2; the switch into the new fund will also be priced on day 2.\n4.2. Inter-Manco Switch: For switches from the money market fund or call account to an external Manco, the fund will be switched out and priced on day 2, the switch into the external manager’s fund will be priced on day 3.  For switches from all other funds, the fund will be switched out and priced on day 2 and the switch into the external manager’s fund will be priced on day 4.\n5. Please note: The monthly expense run takes place on the 10th of the month. In the event of the 10th being a weekend or public holiday, the expense run will take place on the next business day. The monthly annuity run takes place on the 22nd of the month. In the event of the 22nd being a weekend or public holiday, the annuity run will take place on the preceding business day. Switch requests received during the monthly expense run or monthly annuity run will only be processed once the run has been priced up. This will generally add up to 2 business days to the above service levels. STANLIB will not be responsible for any losses caused or damages suffered due to STANLIB being unable to meet these service levels due to unforeseeable circumstances beyond STANLIB's control.\n6. Any values previously advised are only guides to the actual values of the assets being switched.\n7. This instruction must be signed and dated by the legal owner, including the cessionary if ceded collaterally or a person holding a Power of Attorney or the Client's FSB licensed Financial Services Provider (“Financial adviser”). STANLIB will only accept an instruction from the Financial adviser, if the Client explicitly authorised STANLIB in writing to accept instructions from the Financial adviser.\"",null,null,null,null,null,null,null,null,null,null,"\"The Client understands that by authorising his/her Financial adviser to sign this instruction on his/her behalf, STANLIB will implement the instruction, whether in written or electronic format, as if it were the Client's own instruction.\n 8. The Client understands that where he/she switches to other portfolios and / or platform,different or new charge structures could apply and that it is the Client's responsibility, or where applicable that of the Client's Financial adviser, to determine the relevant charge structures prior to conducting the switch. A Collective Investment Manager Charge (usually 0,25%) may be charged when switching between Collective Investment Scheme Managers and/or different asset classes. Should the Client switch into an offshore STANLIB Funds Limited portfolio, a service charge of 1% and an annual foreign currency charge of 0,48% will be levied (no VAT is payable).  Please refer to www.stanlib.com for a complete list of the underlying portfolio and / or platform charges.\n9. A maximum of 12 portfolios is allowed after completion of the switch.\n10. The Client confirms that neither STANLIB nor any of its representatives provided him/her with any advice and that he/she has taken particular care to consider on his/her own or with the assistance of his/her authorised I whether the switch is appropriate considering his/her unique objectives, financial situation and particular needs.\n11. The Client understands that all material facts must be accurately and properly disclosed and the accuracy and completeness of all information provided by or on behalf of the Client, is the Client's own responsibility. The Client understands that no Financial adviser may request the Client to sign any written or printed form or document unless all details required to be inserted thereon by the Client or on behalf of the Client have already been inserted.\n12. Multiple transactions cannot be processed simultaneously.\n13. The Client understands that STANLIB is prohibited from processing any transactions on the Client’s behalf (including but not limited to switches) until all documentation has been received in terms of the Financial Intelligence Centre Act, No. 38 of 2001.\n14. Any capital gain realised on the disposal of a participatory interest in a collective investment scheme is subject to Capital Gains Tax (CGT).\n15. The Client understands that where he/she changes FSP the consequences of such change may result in different or new fund and fees structures. This may result in an increase to the platform service charges. It is the Client’s and where applicable the Client’s Financial adviser’s responsibility to determine the relevant fund and or charge implications. STANLIB will deduct the charges from the Client’s portfolios. For further details please refer to the Fee Comparison Tool on STANLIB online.\"             "]
[]
[null,"DECLARATION"]
[]
[null,"I/We hereby agree to provide all documentation and information required in terms of STANLIB’s business rules and the Financial Intelligence Centre Act, No. 38 of 2001, and understand that STANLIB is prohibited from processing any transaction on my behalf until all such documentation has been provided. \nI/We confirm that all information provided herein is true and correct and that I have read and understood the contents of this form."]
[]
[]
[null,"SIGNATURE OF CLIENT/AUTHORISED SIGNATORY",null,null,null,null,null,null,null,null,null,"DATE",null,null,null,null,null,null,null,"-",null,null,"-"]
[null,null,null,null,null,null,null,null,null,null,null,null,null,null,null,null,null,"D","D",null,"M","M",null,"Y","Y","Y","Y"]
[]
[null,null,null,null,null,null,null,null,null,null,null,"SIGNED AT"]
[]
[null,"SIGNATURE OF FINANCIAL ADVISER",null,null,null,null,null,null,null,null,null,"DATE",null,null,null,null,null,null,null,"-",null,null,"-"]
[null,null,null,null,null,null,null,null,null,null,null,null,null,null,null,null,null,"D","D",null,"M","M",null,"Y","Y","Y","Y"]
[]
[null,null,null,null,null,null,null,null,null,null,null,"SIGNED AT"]

{"sheet":"Switch Form New","index":9,"n_rows":204,"n_cols":27,"rows_kept":204,"cut":false,"hidden":false,"merged":[[195,1,198,1],[195,2,198,9],[195,11,195,16],[198,11,198,16],[198,17,198,26],[200,1,203,1],[200,2,203,9],[200,11,200,16],[203,11,203,16],[203,17,203,26],[185,1,185,26],[186,1,186,26],[187,1,188,26],[189,1,189,26],[190,1,190,27],[192,1,193,26],[183,2,183,5],[183,6,183,9],[183,10,183,13],[183,14,183,17],[183,18,183,21],[183,22,183,26],[181,22,181,26],[182,2,182,5],[182,6,182,9],[182,10,182,13],[182,14,182,17],[182,18,182,21],[182,22,182,26],[177,2,177,7],[177,8,177,13],[177,14,177,19],[177,20,177,26],[179,1,179,26],[181,2,181,5],[181,6,181,9],[181,10,181,13],[181,14,181,17],[181,18,181,21],[173,1,173,26],[175,2,175,7],[175,8,175,13],[175,14,175,19],[175,20,175,26],[176,2,176,7],[176,8,176,13],[176,14,176,19],[176,20,176,26],[153,1,153,26],[154,1,154,26],[157,1,157,26],[165,2,165,26],[169,1,169,26],[171,1,171,27],[144,1,144,26],[145,1,145,26],[146,1,146,26],[147,1,147,26],[149,1,149,26],[151,1,151,26],[136,1,136,26],[137,1,137,26],[139,1,139,27],[141,1,141,26],[142,1,142,26],[143,1,143,26],[129,1,129,27],[131,1,131,26],[132,1,132,26],[133,1,133,26],[134,1,134,26],[135,1,135,26],[126,1,126,7],[126,8,126,15],[126,16,126,19],[126,20,126,26],[127,1,127,7],[127,8,127,15],[127,16,127,19],[127,20,127,26],[124,1,124,7],[124,8,124,15],[124,16,124,19],[124,20,124,26],[125,1,125,7],[125,8,125,15],[125,16,125,19],[125,20,125,26],[122,1,122,7],[122,8,122,15],[122,16,122,19],[122,20,122,26],[123,1,123,7],[123,8,123,15],[123,16,123,19],[123,20,123,26],[120,1,120,7],[120,8,120,15],[120,16,120,19],[120,20,120,26],[121,1,121,7],[121,8,121,15],[121,16,121,19],[121,20,121,26],[118,1,118,7],[118,8,118,15],[118,16,118,19],[118,20,118,26],[119,1,119,7],[119,8,119,15],[119,16,119,19],[119,20,119,26],[116,1,116,7],[116,8,116,15],[116,16,116,19],[116,20,116,26],[117,1,117,7],[117,8,117,15],[117,16,117,19],[117,20,117,26],[107,1,107,27],[109,1,110,26],[115,1,115,7],[115,8,115,15],[115,16,115,19],[115,20,115,26],[104,1,104,7],[104,8,104,15],[104,16,104,19],[104,20,104,26],[105,1,105,7],[105,8,105,15],[105,16,105,19],[105,20,105,26],[102,1,102,7],[102,8,102,15],[102,16,102,19],[102,20,102,26],[103,1,103,7],[103,8,103,15],[103,16,103,19],[103,20,103,26],[100,1,100,7],[100,8,100,15],[100,16,100,19],[100,20,100,26],[101,1,101,7],[101,8,101,15],[101,16,101,19],[101,20,101,26],[98,1,98,7],[98,8,98,15],[98,16,98,19],[98,20,98,26],[99,1,99,7],[99,8,99,15],[99,16,99,19],[99,20,99,26],[96,1,96,7],[96,8,96,15],[96,16,96,19],[96,20,96,26],[97,1,97,7],[97,8,97,15],[97,16,97,19],[97,20,97,26],[94,1,94,7],[94,8,94,15],[94,16,94,19],[94,20,94,26],[95,1,95,7],[95,8,95,15],[95,16,95,19],[95,20,95,26],[85,1,85,27],[87,1,88,26],[93,1,93,7],[93,8,93,15],[93,16,93,19],[93,20,93,26],[82,1,82,7],[82,8,82,15],[82,16,82,19],[82,20,82,26],[83,1,83,15],[83,16,83,19],[83,20,83,26],[80,1,80,7],[80,8,80,15],[80,16,80,19],[80,20,80,26],[81,1,81,7],[81,8,81,15],[81,16,81,19],[81,20,81,26],[78,1,78,7],[78,8,78,15],[78,16,78,19],[78,20,78,26],[79,1,79,7],[79,8,79,15],[79,16,79,19],[79,20,79,26],[76,1,76,7],[76,8,76,15],[76,16,76,19],[76,20,76,26],[77,1,77,7],[77,8,77,15],[77,16,77,19],[77,20,77,26],[74,1,74,7],[74,8,74,15],[74,16,74,19],[74,20,74,26],[75,1,75,7],[75,8,75,15],[75,16,75,19],[75,20,75,26],[72,1,72,7],[72,8,72,15],[72,16,72,19],[72,20,72,26],[73,1,73,7],[73,8,73,15],[73,16,73,19],[73,20,73,26],[70,1,70,7],[70,8,70,15],[70,16,70,19],[70,20,70,26],[71,1,71,7],[71,8,71,15],[71,16,71,19],[71,20,71,26],[68,1,68,7],[68,8,68,15],[68,16,68,19],[68,20,68,26],[69,1,69,7],[69,8,69,15],[69,16,69,19],[69,20,69,26],[62,1,62,15],[62,16,62,19],[62,20,62,26],[64,1,64,27],[66,1,66,26],[67,1,67,7],[67,8,67,15],[67,16,67,19],[67,20,67,26],[60,1,60,7],[60,8,60,15],[60,16,60,19],[60,20,60,26],[61,1,61,7],[61,8,61,15],[61,16,61,19],[61,20,61,26],[58,1,58,7],[58,8,58,15],[58,16,58,19],[58,20,58,26],[59,1,59,7],[59,8,59,15],[59,16,59,19],[59,20,59,26],[56,1,56,7],[56,8,56,15],[56,16,56,19],[56,20,56,26],[57,1,57,7],[57,8,57,15],[57,16,57,19],[57,20,57,26],[54,1,54,7],[54,8,54,15],[54,16,54,19],[54,20,54,26],[55,1,55,7],[55,8,55,15],[55,16,55,19],[55,20,55,26],[52,1,52,7],[52,8,52,15],[52,16,52,19],[52,20,52,26],[53,1,53,7],[53,8,53,15],[53,16,53,19],[53,20,53,26],[50,1,50,7],[50,8,50,15],[50,16,50,19],[50,20,50,26],[51,1,51,7],[51,8,51,15],[51,16,51,19],[51,20,51,26],[48,1,48,7],[48,8,48,15],[48,16,48,19],[48,20,48,26],[49,1,49,7],[49,8,49,15],[49,16,49,19],[49,20,49,26],[46,1,46,7],[46,8,46,15],[46,16,46,19],[46,20,46,26],[47,1,47,7],[47,8,47,15],[47,16,47,19],[47,20,47,26],[41,1,41,7],[41,8,41,15],[41,16,41,26],[42,1,42,15],[42,16,42,26],[44,1,44,27],[39,1,39,7],[39,8,39,15],[39,16,39,26],[40,1,40,7],[40,8,40,15],[40,16,40,26],[37,1,37,7],[37,8,37,15],[37,16,37,26],[38,1,38,7],[38,8,38,15],[38,16,38,26],[35,1,35,7],[35,8,35,15],[35,16,35,26],[36,1,36,7],[36,8,36,15],[36,16,36,26],[33,1,33,7],[33,8,33,15],[33,16,33,26],[34,1,34,7],[34,8,34,15],[34,16,34,26],[31,1,31,7],[31,8,31,15],[31,16,31,26],[32,1,32,7],[32,8,32,15],[32,16,32,26],[26,1,27,26],[29,1,29,7],[29,8,29,15],[29,16,29,26],[30,1,30,7],[30,8,30,15],[30,16,30,26],[5,1,5,27],[6,1,6,19],[6,20,6,27],[8,1,8,27],[19,1,19,27],[24,1,24,27]]}
[]
[]
[]
[]
[]
[null,"E-mail lispinstructions@stanlib.com\nFacsimile 0867 277 516"]
[null,"Switch Form\nLinked Investments"]
[]
[null,"CLIENT DETAILS"]
[]
[null,"INVESTMENT NUMBER",{"$f":"LEFT('Proposal - S'!$J$41,1)","v":"0"},{"$f":"MID('Proposal - S'!$J$41,2,1)","v":""},{"$f":"MID('Proposal - S'!$J$41,3,1)","v":""},{"$f":"MID('Proposal - S'!$J$41,4,1)","v":""},{"$f":"MID('Proposal - S'!$J$41,5,1)","v":""},{"$f":"MID('Proposal - S'!$J$41,6,1)","v":""},{"$f":"MID('Proposal - S'!$J$41,7,1)","v":""},{"$f":"MID('Proposal - S'!$J$41,8,1)","v":""},{"$f":"MID('Proposal - S'!$J$41,9,1)","v":""},{"$f":"MID('Proposal - S'!$J$41,10,1)","v":""},{"$f":"MID('Proposal - S'!$J$41,11,1)","v":""},{"$f":"MID('Proposal - S'!$J$41,12,1)","v":""},{"$f":"MID('Proposal - S'!$J$41,13,1)","v":""},{"$f":"MID('Proposal - S'!$J$41,14,1)","v":""},{"$f":"MID('Proposal - S'!$J$41,15,1)","v":""},{"$f":"MID('Proposal - S'!$J$41,16,1)","v":""},{"$f":"MID('Proposal - S'!$J$41,17,1)","v":""},{"$f":"MID('Proposal - S'!$J$41,18,1)","v":""},{"$f":"MID('Proposal - S'!$J$41,19,1)","v":""},{"$f":"MID('Proposal - S'!$J$41,20,1)","v":""},{"$f":"MID('Proposal - S'!$J$41,21,1)","v":""},{"$f":"MID('Proposal - S'!$J$41,22,1)","v":""},{"$f":"MID('Proposal - S'!$J$41,23,1)","v":""},{"$f":"MID('Proposal - S'!$J$41,24,1)","v":""},{"$f":"MID('Proposal - S'!$J$41,25,1)","v":""}]
[]
[null,"NAME & SURNAME / ENTITY NAME",{"$f":"LEFT('Proposal - S'!$J$42,1)","v":"0"},{"$f":"MID('Proposal - S'!$J$42,2,1)","v":""},{"$f":"MID('Proposal - S'!$J$42,3,1)","v":""},{"$f":"MID('Proposal - S'!$J$42,4,1)","v":""},{"$f":"MID('Proposal - S'!$J$42,5,1)","v":""},{"$f":"MID('Proposal - S'!$J$42,6,1)","v":""},{"$f":"MID('Proposal - S'!$J$42,7,1)","v":""},{"$f":"MID('Proposal - S'!$J$42,8,1)","v":""},{"$f":"MID('Proposal - S'!$J$42,9,1)","v":""},{"$f":"MID('Proposal - S'!$J$42,10,1)","v":""},{"$f":"MID('Proposal - S'!$J$42,11,1)","v":""},{"$f":"MID('Proposal - S'!$J$42,12,1)","v":""},{"$f":"MID('Proposal - S'!$J$42,13,1)","v":""},{"$f":"MID('Proposal - S'!$J$42,14,1)","v":""},{"$f":"MID('Proposal - S'!$J$42,15,1)","v":""},{"$f":"MID('Proposal - S'!$J$42,16,1)","v":""},{"$f":"MID('Proposal - S'!$J$42,17,1)","v":""},{"$f":"MID('Proposal - S'!$J$42,18,1)","v":""},{"$f":"MID('Proposal - S'!$J$42,19,1)","v":""},{"$f":"MID('Proposal - S'!$J$42,20,1)","v":""},{"$f":"MID('Proposal - S'!$J$42,21,1)","v":""},{"$f":"MID('Proposal - S'!$J$42,22,1)","v":""},{"$f":"MID('Proposal - S'!$J$42,23,1)","v":""},{"$f":"MID('Proposal - S'!$J$42,24,1)","v":""},{"$f":"MID('Proposal - S'!$J$42,25,1)","v":""}]
[]
[null,"IDENTITY / PASSPORT NUMBER",{"$f":"LEFT('Proposal - S'!$J$43,1)","v":"0"},{"$f":"MID('Proposal - S'!$J$43,2,1)","v":""},{"$f":"MID('Proposal - S'!$J$43,3,1)","v":""},{"$f":"MID('Proposal - S'!$J$43,4,1)","v":""},{"$f":"MID('Proposal - S'!$J$43,5,1)","v":""},{"$f":"MID('Proposal - S'!$J$43,6,1)","v":""},{"$f":"MID('Proposal - S'!$J$43,7,1)","v":""},{"$f":"MID('Proposal - S'!$J$43,8,1)","v":""},{"$f":"MID('Proposal - S'!$J$43,9,1)","v":""},{"$f":"MID('Proposal - S'!$J$43,10,1)","v":""},{"$f":"MID('Proposal - S'!$J$43,11,1)","v":""},{"$f":"MID('Proposal - S'!$J$43,12,1)","v":""},{"$f":"MID('Proposal - S'!$J$43,13,1)","v":""},{"$f":"MID('Proposal - S'!$J$43,14,1)","v":""},{"$f":"MID('Proposal - S'!$J$43,15,1)","v":""},{"$f":"MID('Proposal - S'!$J$43,16,1)","v":""},{"$f":"MID('Proposal - S'!$J$43,17,1)","v":""},{"$f":"MID('Proposal - S'!$J$43,18,1)","v":""},{"$f":"MID('Proposal - S'!$J$43,19,1)","v":""},{"$f":"MID('Proposal - S'!$J$43,20,1)","v":""},{"$f":"MID('Proposal - S'!$J$43,21,1)","v":""},{"$f":"MID('Proposal - S'!$J$43,22,1)","v":""},{"$f":"MID('Proposal - S'!$J$43,23,1)","v":""},{"$f":"MID('Proposal - S'!$J$43,24,1)","v":""},{"$f":"MID('Proposal - S'!$J$43,25,1)","v":""}]
[]
[null,"CELL PHONE NUMBER",{"$f":"LEFT('Proposal - S'!$J$46,1)","v":"0"},{"$f":"MID('Proposal - S'!$J$46,2,1)","v":""},{"$f":"MID('Proposal - S'!$J$46,3,1)","v":""},null,{"$f":"MID('Proposal - S'!$J$46,4,1)","v":""},{"$f":"MID('Proposal - S'!$J$46,5,1)","v":""},{"$f":"MID('Proposal - S'!$J$46,6,1)","v":""},{"$f":"MID('Proposal - S'!$J$46,7,1)","v":""},{"$f":"MID('Proposal - S'!$J$46,8,1)","v":""},{"$f":"MID('Proposal - S'!$J$46,9,1)","v":""},{"$f":"MID('Proposal - S'!$J$46,10,1)","v":""}]
[]
[]
[null,"INSTRUCTION"]
[]
[null,"INSTRUCTION TYPE","X","SWITCH",null,null,null,null,null,null,"REBALANCE"]
[]
[]
[null,"REBALANCE INSTRUCTION:"]
[]
[null,"Rebalance refers to the process of re-aligning the weightings of your investment portfolios. This involves the buying or selling of assets in your investment to obtain the desired level of asset allocation. Please indicate your new portfolio selection and the weighting for each portfolio."]
[]
[]
[null,"Portfolio Name",null,null,null,null,null,null,null,null,null,null,null,null,null,null,"Percentage"]
[null,"1.",null,null,null,null,null,null,null,null,null,null,null,null,null,null,"%"]
[null,"2.",null,null,null,null,null,null,null,null,null,null,null,null,null,null,"%"]
[null,"3.",null,null,null,null,null,null,null,null,null,null,null,null,null,null,"%"]
[null,"4.",null,null,null,null,null,null,null,null,null,null,null,null,null,null,"%"]
[null,"5.",null,null,null,null,null,null,null,null,null,null,null,null,null,null,"%"]
[null,"6.",null,null,null,null,null,null,null,null,null,null,null,null,null,null,"%"]
[null,"7.",null,null,null,null,null,null,null,null,null,null,null,null,null,null,"%"]
[null,"8.",null,null,null,null,null,null,null,null,null,null,null,null,null,null,"%"]
[null,"9.",null,null,null,null,null,null,null,null,null,null,null,null,null,null,"%"]
[null,"10.",null,null,null,null,null,null,null,null,null,null,null,null,null,null,"%"]
[null,"11.",null,null,null,null,null,null,null,null,null,null,null,null,null,null,"%"]
[null,"12.",null,null,null,null,null,null,null,null,null,null,null,null,null,null,"%"]
[null,"TOTAL",null,null,null,null,null,null,null,null,null,null,null,null,null,null,"%"]
[]
[null,"SWITCH FROM:"]
[]
[null,"Portfolio Name",null,null,null,null,null,null,null,null,null,null,null,null,null,null,"Percentage",null,null,null,"Amount"]
[null,{"$f":"CONCATENATE(\"1. \",TEXT(Switch!G26,\"\"))","v":"1. "},null,null,null,null,null,null,{"$f":"IF(Switch!W26=\"\",\"\",Switch!W26)","v":""},null,null,null,null,null,null,null,{"$f":"IF(Switch!U26=\"\",\"\",Switch!U26)","v":""},null,null,null,{"$f":"IF(Switch!V26=\"\",\"\",Switch!V26)","v":0}]
[null,{"$f":"CONCATENATE(\"2. \",TEXT(Switch!G27,\"\"))","v":"2. "},null,null,null,null,null,null,{"$f":"IF(Switch!W27=\"\",\"\",Switch!W27)","v":""},null,null,null,null,null,null,null,{"$f":"IF(Switch!U27=\"\",\"\",Switch!U27)","v":""},null,null,null,{"$f":"IF(Switch!V27=\"\",\"\",Switch!V27)","v":0}]
[null,{"$f":"CONCATENATE(\"3. \",TEXT(Switch!G28,\"\"))","v":"3. "},null,null,null,null,null,null,{"$f":"IF(Switch!W28=\"\",\"\",Switch!W28)","v":""},null,null,null,null,null,null,null,{"$f":"IF(Switch!U28=\"\",\"\",Switch!U28)","v":""},null,null,null,{"$f":"IF(Switch!V28=\"\",\"\",Switch!V28)","v":0}]
[null,{"$f":"CONCATENATE(\"4. \",TEXT(Switch!G29,\"\"))","v":"4. "},null,null,null,null,null,null,{"$f":"IF(Switch!W29=\"\",\"\",Switch!W29)","v":""},null,null,null,null,null,null,null,{"$f":"IF(Switch!U29=\"\",\"\",Switch!U29)","v":""},null,null,null,{"$f":"IF(Switch!V29=\"\",\"\",Switch!V29)","v":0}]
[null,{"$f":"CONCATENATE(\"5. \",TEXT(Switch!G30,\"\"))","v":"5. "},null,null,null,null,null,null,{"$f":"IF(Switch!W30=\"\",\"\",Switch!W30)","v":""},null,null,null,null,null,null,null,{"$f":"IF(Switch!U30=\"\",\"\",Switch!U30)","v":""},null,null,null,{"$f":"IF(Switch!V30=\"\",\"\",Switch!V30)","v":0}]
[null,{"$f":"CONCATENATE(\"6. \",TEXT(Switch!G31,\"\"))","v":"6. "},null,null,null,null,null,null,{"$f":"IF(Switch!W31=\"\",\"\",Switch!W31)","v":""},null,null,null,null,null,null,null,{"$f":"IF(Switch!U31=\"\",\"\",Switch!U31)","v":""},null,null,null,{"$f":"IF(Switch!V31=\"\",\"\",Switch!V31)","v":0}]
[null,{"$f":"CONCATENATE(\"7. \",TEXT(Switch!G32,\"\"))","v":"7. "},null,null,null,null,null,null,{"$f":"IF(Switch!W32=\"\",\"\",Switch!W32)","v":""},null,null,null,null,null,null,null,{"$f":"IF(Switch!U32=\"\",\"\",Switch!U32)","v":""},null,null,null,{"$f":"IF(Switch!V32=\"\",\"\",Switch!V32)","v":0}]
[null,{"$f":"CONCATENATE(\"8. \",TEXT(Switch!G33,\"\"))","v":"8. "},null,null,null,null,null,null,{"$f":"IF(Switch!W33=\"\",\"\",Switch!W33)","v":""},null,null,null,null,null,null,null,{"$f":"IF(Switch!U33=\"\",\"\",Switch!U33)","v":""},null,null,null,{"$f":"IF(Switch!V33=\"\",\"\",Switch!V33)","v":0}]
[null,{"$f":"CONCATENATE(\"9. \",TEXT(Switch!G34,\"\"))","v":"9. "},null,null,null,null,null,null,{"$f":"IF(Switch!W34=\"\",\"\",Switch!W34)","v":""},null,null,null,null,null,null,null,{"$f":"IF(Switch!U34=\"\",\"\",Switch!U34)","v":""},null,null,null,{"$f":"IF(Switch!V34=\"\",\"\",Switch!V34)","v":0}]
[null,{"$f":"CONCATENATE(\"10. \",TEXT(Switch!G35,\"\"))","v":"10. "},null,null,null,null,null,null,{"$f":"IF(Switch!W35=\"\",\"\",Switch!W35)","v":""},null,null,null,null,null,null,null,{"$f":"IF(Switch!U35=\"\",\"\",Switch!U35)","v":""},null,null,null,{"$f":"IF(Switch!V35=\"\",\"\",Switch!V35)","v":0}]
[null,{"$f":"CONCATENATE(\"11. \",TEXT(Switch!G36,\"\"))","v":"11. "},null,null,null,null,null,null,{"$f":"IF(Switch!W36=\"\",\"\",Switch!W36)","v":""},null,null,null,null,null,null,null,{"$f":"IF(Switch!U36=\"\",\"\",Switch!U36)","v":""},null,null,null,{"$f":"IF(Switch!V36=\"\",\"\",Switch!V36)","v":0}]
[null,{"$f":"CONCATENATE(\"12. \",TEXT(Switch!G37,\"\"))","v":"12. "},null,null,null,null,null,null,{"$f":"IF(Switch!W37=\"\",\"\",Switch!W37)","v":""},null,null,null,null,null,null,null,{"$f":"IF(Switch!U37=\"\",\"\",Switch!U37)","v":""},null,null,null,{"$f":"IF(Switch!V37=\"\",\"\",Switch!V37)","v":0}]
[null,{"$f":"CONCATENATE(\"13. \",TEXT(Switch!G38,\"\"))","v":"13. "},null,null,null,null,null,null,{"$f":"IF(Switch!W38=\"\",\"\",Switch!W38)","v":""},null,null,null,null,null,null,null,{"$f":"IF(Switch!U38=\"\",\"\",Switch!U38)","v":""},null,null,null,{"$f":"IF(Switch!V38=\"\",\"\",Switch!V38)","v":0}]
[null,{"$f":"CONCATENATE(\"14. \",TEXT(Switch!G39,\"\"))","v":"14. "},null,null,null,null,null,null,{"$f":"IF(Switch!W39=\"\",\"\",Switch!W39)","v":""},null,null,null,null,null,null,null,{"$f":"IF(Switch!U39=\"\",\"\",Switch!U39)","v":""},null,null,null,{"$f":"IF(Switch!V39=\"\",\"\",Switch!V39)","v":0}]
[null,{"$f":"CONCATENATE(\"15. \",TEXT(Switch!G40,\"\"))","v":"15. "},null,null,null,null,null,null,{"$f":"IF(Switch!W40=\"\",\"\",Switch!W40)","v":""},null,null,null,null,null,null,null,{"$f":"IF(Switch!U40=\"\",\"\",Switch!U40)","v":""},null,null,null,{"$f":"IF(Switch!V40=\"\",\"\",Switch!V40)","v":0}]
[null,"TOTAL",null,null,null,null,null,null,null,null,null,null,null,null,null,null,null,null,null,null,{"$f":"SUM(U48:AA62)","v":0}]
[]
[null,"SWITCH TO:"]
[]
[null,"Where the Client has chosen a portfolio but the Portfolio Range was left blank, the Linked Range will be applied. If the Portfolio Range selected is not offered on the Linked Range, then the Select Portfolio Range will apply. Visit www.stanlib.com for a complete list of our portfolio ranges.\n"]
[null,"Portfolio Name",null,null,null,null,null,null,null,null,null,null,null,null,null,null,"Percentage",null,null,null,"Amount"]
[null,{"$f":"CONCATENATE(\"1. \",TEXT(Switch!G52,\"\"))","v":"1. "},null,null,null,null,null,null,{"$f":"IF(Switch!M52=\"\",\"\",Switch!M52)","v":""},null,null,null,null,null,null,null,{"$f":"IF(Switch!K52=\"\",\"\",Switch!K52)","v":""},null,null,null,{"$f":"IF(Instructions!J62=\"\",\"\",Instructions!J62)","v":""}]
[null,{"$f":"CONCATENATE(\"2. \",TEXT(Switch!G53,\"\"))","v":"2. "},null,null,null,null,null,null,{"$f":"IF(Switch!M53=\"\",\"\",Switch!M53)","v":""},null,null,null,null,null,null,null,{"$f":"IF(Switch!K53=\"\",\"\",Switch!K53)","v":""},null,null,null,{"$f":"IF(Instructions!J63=\"\",\"\",Instructions!J63)","v":""}]
[null,{"$f":"CONCATENATE(\"3. \",TEXT(Switch!G54,\"\"))","v":"3. "},null,null,null,null,null,null,{"$f":"IF(Switch!M54=\"\",\"\",Switch!M54)","v":""},null,null,null,null,null,null,null,{"$f":"IF(Switch!K54=\"\",\"\",Switch!K54)","v":""},null,null,null,{"$f":"IF(Instructions!J64=\"\",\"\",Instructions!J64)","v":""}]
[null,{"$f":"CONCATENATE(\"4. \",TEXT(Switch!G55,\"\"))","v":"4. "},null,null,null,null,null,null,{"$f":"IF(Switch!M55=\"\",\"\",Switch!M55)","v":""},null,null,null,null,null,null,null,{"$f":"IF(Switch!K55=\"\",\"\",Switch!K55)","v":""},null,null,null,{"$f":"IF(Instructions!J65=\"\",\"\",Instructions!J65)","v":""}]
[null,{"$f":"CONCATENATE(\"5. \",TEXT(Switch!G56,\"\"))","v":"5. "},null,null,null,null,null,null,{"$f":"IF(Switch!M56=\"\",\"\",Switch!M56)","v":""},null,null,null,null,null,null,null,{"$f":"IF(Switch!K56=\"\",\"\",Switch!K56)","v":""},null,null,null,{"$f":"IF(Instructions!J66=\"\",\"\",Instructions!J66)","v":""}]
[null,{"$f":"CONCATENATE(\"6. \",TEXT(Switch!G57,\"\"))","v":"6. "},null,null,null,null,null,null,{"$f":"IF(Switch!M57=\"\",\"\",Switch!M57)","v":""},null,null,null,null,null,null,null,{"$f":"IF(Switch!K57=\"\",\"\",Switch!K57)","v":""},null,null,null,{"$f":"IF(Instructions!J67=\"\",\"\",Instructions!J67)","v":""}]
[null,{"$f":"CONCATENATE(\"7. \",TEXT(Switch!G58,\"\"))","v":"7. "},null,null,null,null,null,null,{"$f":"IF(Switch!M58=\"\",\"\",Switch!M58)","v":""},null,null,null,null,null,null,null,{"$f":"IF(Switch!K58=\"\",\"\",Switch!K58)","v":""},null,null,null,{"$f":"IF(Instructions!J68=\"\",\"\",Instructions!J68)","v":""}]
[null,{"$f":"CONCATENATE(\"8. \",TEXT(Switch!G59,\"\"))","v":"8. "},null,null,null,null,null,null,{"$f":"IF(Switch!M59=\"\",\"\",Switch!M59)","v":""},null,null,null,null,null,null,null,{"$f":"IF(Switch!K59=\"\",\"\",Switch!K59)","v":""},null,null,null,{"$f":"IF(Instructions!J69=\"\",\"\",Instructions!J69)","v":""}]
[null,{"$f":"CONCATENATE(\"9. \",TEXT(Switch!G60,\"\"))","v":"9. "},null,null,null,null,null,null,{"$f":"IF(Switch!M60=\"\",\"\",Switch!M60)","v":""},null,null,null,null,null,null,null,{"$f":"IF(Switch!K60=\"\",\"\",Switch!K60)","v":""},null,null,null,{"$f":"IF(Instructions!J70=\"\",\"\",Instructions!J70)","v":""}]
[null,{"$f":"CONCATENATE(\"10. \",TEXT(Switch!G61,\"\"))","v":"10. "},null,null,null,null,null,null,{"$f":"IF(Switch!M61=\"\",\"\",Switch!M61)","v":""},null,null,null,null,null,null,null,{"$f":"IF(Switch!K61=\"\",\"\",Switch!K61)","v":""},null,null,null,{"$f":"IF(Instructions!J71=\"\",\"\",Instructions!J71)","v":""}]
[null,{"$f":"CONCATENATE(\"11. \",TEXT(Switch!G62,\"\"))","v":"11. "},null,null,null,null,null,null,{"$f":"IF(Switch!M62=\"\",\"\",Switch!M62)","v":""},null,null,null,null,null,null,null,{"$f":"IF(Switch!K62=\"\",\"\",Switch!K62)","v":""},null,null,null,{"$f":"IF(Instructions!J72=\"\",\"\",Instructions!J72)","v":""}]
[null,{"$f":"CONCATENATE(\"12. \",TEXT(Switch!G63,\"\"))","v":"12. "},null,null,null,null,null,null,{"$f":"IF(Switch!M63=\"\",\"\",Switch!M63)","v":""},null,null,null,null,null,null,null,{"$f":"IF(Switch!K63=\"\",\"\",Switch!K63)","v":""},null,null,null,{"$f":"IF(Instructions!J73=\"\",\"\",Instructions!J73)","v":""}]
[null,{"$f":"CONCATENATE(\"13. \",TEXT(Switch!G64,\"\"))","v":"13. "},null,null,null,null,null,null,{"$f":"IF(Switch!M64=\"\",\"\",Switch!M64)","v":""},null,null,null,null,null,null,null,{"$f":"IF(Switch!K64=\"\",\"\",Switch!K64)","v":""},null,null,null,{"$f":"IF(Instructions!J74=\"\",\"\",Instructions!J74)","v":""}]
[null,{"$f":"CONCATENATE(\"14. \",TEXT(Switch!G65,\"\"))","v":"14. "},null,null,null,null,null,null,{"$f":"IF(Switch!M65=\"\",\"\",Switch!M65)","v":""},null,null,null,null,null,null,null,{"$f":"IF(Switch!K65=\"\",\"\",Switch!K65)","v":""},null,null,null,{"$f":"IF(Instructions!J75=\"\",\"\",Instructions!J75)","v":""}]
[null,{"$f":"CONCATENATE(\"15. \",TEXT(Switch!G66,\"\"))","v":"15. "},null,null,null,null,null,null,{"$f":"IF(Switch!M66=\"\",\"\",Switch!M66)","v":""},null,null,null,null,null,null,null,{"$f":"IF(Switch!K66=\"\",\"\",Switch!K66)","v":""},null,null,null,{"$f":"IF(Instructions!J76=\"\",\"\",Instructions!J76)","v":""}]
[null,"TOTAL",null,null,null,null,null,null,null,null,null,null,null,null,null,null,{"$f":"SUM(Q69:T83)","v":0},null,null,null,{"$f":"SUM(U69:AA83)","v":0}]
[]
[null,"DEBIT ORDER INSTRUCTION"]
[]
[null,"Change the portfolio selection for the existing Unit trust funds as indicated below. If the table is left blank, the existing portfolio on record will remain unchanged. "]
[]
[]
[null,"CHANGE DEBIT ORDERS AS PER SWITCH / REBALANCE INSTRUCTION",null,null,null,null,null,null,null,"YES",null,null,null,null,null,null,null,"NO"]
[]
[]
[null,"Portfolio Name",null,null,null,null,null,null,null,null,null,null,null,null,null,null,"Percentage",null,null,null,"Amount"]
[null,"1.",null,null,null,null,null,null,null,null,null,null,null,null,null,null,"%",null,null,null,"R"]
[null,"2.",null,null,null,null,null,null,null,null,null,null,null,null,null,null,"%",null,null,null,"R"]
[null,"3.",null,null,null,null,null,null,null,null,null,null,null,null,null,null,"%",null,null,null,"R"]
[null,"4.",null,null,null,null,null,null,null,null,null,null,null,null,null,null,"%",null,null,null,"R"]
[null,"5.",null,null,null,null,null,null,null,null,null,null,null,null,null,null,"%",null,null,null,"R"]
[null,"6.",null,null,null,null,null,null,null,null,null,null,null,null,null,null,"%",null,null,null,"R"]
[null,"7.",null,null,null,null,null,null,null,null,null,null,null,null,null,null,"%",null,null,null,"R"]
[null,"8.",null,null,null,null,null,null,null,null,null,null,null,null,null,null,"%",null,null,null,"R"]
[null,"9.",null,null,null,null,null,null,null,null,null,null,null,null,null,null,"%",null,null,null,"R"]
[null,"10.",null,null,null,null,null,null,null,null,null,null,null,null,null,null,"%",null,null,null,"R"]
[null,"11.",null,null,null,null,null,null,null,null,null,null,null,null,null,null,"%",null,null,null,"R"]
[null,"12.",null,null,null,null,null,null,null,null,null,null,null,null,null,null,"%",null,null,null,"R"]
[]
[null,"PHASE-IN INSTRUCTION"]
[]
[null,"Change the portfolio selection for the existing Unit trust funds as indicated below.  If the table is left blank, the existing portfolio on record will remain unchanged. Phase-in's are only available for Unit Trust funds and at inception stage."]
[]
[]
[null,"CHANGE PHASE-IN AS PER SWITCH / REBALANCE INSTRUCTION",null,null,null,null,null,null,null,"YES",null,null,null,null,null,null,null,"NO"]
[]
[]
[null,"Portfolio Name",null,null,null,null,null,null,null,null,null,null,null,null,null,null,"Percentage",null,null,null,"Amount"]
[null,"1.",null,null,null,null,null,null,null,null,null,null,null,null,null,null,"%",null,null,null,"R"]
[null,"2.",null,null,null,null,null,null,null,null,null,null,null,null,null,null,"%",null,null,null,"R"]
[null,"3.",null,null,null,null,null,null,null,null,null,null,null,null,null,null,"%",null,null,null,"R"]
[null,"4.",null,null,null,null,null,null,null,null,null,null,null,null,null,null,"%",null,null,null,"R"]
[null,"5.",null,null,null,null,null,null,null,null,null,null,null,null,null,null,"%",null,null,null,"R"]
[null,"6.",null,null,null,null,null,null,null,null,null,null,null,null,null,null,"%",null,null,null,"R"]
[null,"7.",null,null,null,null,null,null,null,null,null,null,null,null,null,null,"%",null,null,null,"R"]
[null,"8.",null,null,null,null,null,null,null,null,null,null,null,null,null,null,"%",null,null,null,"R"]
[null,"9.",null,null,null,null,null,null,null,null,null,null,null,null,null,null,"%",null,null,null,"R"]
[null,"10.",null,null,null,null,null,null,null,null,null,null,null,null,null,null,"%",null,null,null,"R"]
[null,"11.",null,null,null,null,null,null,null,null,null,null,null,null,null,null,"%",null,null,null,"R"]
[null,"12.",null,null,null,null,null,null,null,null,null,null,null,null,null,null,"%",null,null,null,"R"]
[]
[null,"PORTFOLIO NOMINATION FOR FEE DEDUCTION"]
[]
[null,"STANLIB allows you to select a specific portfolio/s for the deduction of fees. If you have not selected a specific portfolio/s, STANLIB will deduct fees from Call accounts and Money Market portfolios first. Thereafter, fees will be deducted proportionately from Unit Trust portfolios, then Model Portfolios and lastly Personal Share Portfolios.\n\nIf a portfolio/s is selected below, all fees will be deducted from this portfolio until the portfolio is depleted. If multiple portfolios are selected, the fees\nwill be deducted proportionately across these portfolios until the portfolios are depleted. Thereafter the default fee deduction rules will apply."]
[null,"Portfolio Name "]
[]
[]
[]
[]
[]
[]
[null,"PORTFOLIO NOMINATION FOR INCOME DEDUCTION"]
[]
[null,"STANLIB allows you to select a specific portfolio/s from which to pay your regular income. If you have not selected a specific portfolio/s, STANLIB will pay your income from Call accounts and Money Market portfolios first. Thereafter, income will be paid proportionately from other portfolios in your investment.\n\nIf a portfolio/s is selected below, all income will be paid from this portfolio/s until the portfolio/s is depleted. Thereafter the default fee deduction rules will apply"]
[null,"Portfolio Name "]
[]
[]
[]
[]
[]
[]
[null,"APPOINTMENT OF MODEL PORTFOLIO FINANCIAL SERVICES PROVIDER"]
[]
[null,"Complete one of the sections below to indicate the appointment of a discretionary Financial Service Provider to manage your Model portfolio\nselection"]
[]
[null,"A. APPOINTMENT OF STANLIB AS THE MODEL MANAGER\n"]
[null,"1. The Client hereby appoints STANLIB as his/her discretionary financial service provider with effect from the date of client’s signature of this form on the terms and conditions set out herein and subject to applicable legislation. STANLIB hereby agrees to act as a discretionary financial services provider to the Client. In terms of this clause, the Client hereby confers on STANLIB complete discretion to take such action as STANLIB considers necessary to attain the investment objectives of the Client, namely to maximize the income on the investments of the Client over an extended period. STANLIB may vote on behalf of the Client in respect of the Client’s investment. STANLIB as the Client’s representative is authorised to enter into any agreements of the Client with an other person, financial exchange, member or regulatory body in the execution of its obligations in terms of the agreement. STANLIB may sub-contract its responsibilities in terms if this clause to another party.\n2. Model portfolio manager charge: STANLIB will levy a Model portfolio manager charge of ___________% \nThis will be calculated on the last business day prior to the 10th day of each month on the market value of the model portfolio/portfolios selected by the Client. \n3. Discretionary Financial Services Provider: STANLIB is an authorised Financial Services Provider in terms of section 8(5)(a)(i) of the FAIS Act and is licensed to carry on the business:\n3.1. in respect of financial advisory services, financial intermediary services in the following products: Long-term Insurance: Category B1, c, B2, Retail Pension Fund Benefits, Securities and Instruments: Shares in a company other than a “share block company” as defined in the Share Blocks Control Act, 1980, Money Market instruments, Debentures and securities debt, Warrants, certificates and other instruments acknowledging, conferring or creating rights to subscribe to, acquire, dispose of, or convert securities, Bonds, Derivative instruments, Deposits as defined in the Banks Act, Participatory interests in one or more collective investment scheme, Foreign currency denominated investments instrument, including foreign currency deposit;\n3.2. in respect of discretionary services in the following products: Long-term Insurance: Category B1, C, B2, Pension Fund Benefits: (Retail), Securities and Instruments: Shares in a company other than a “share block company” as defined in the Share Blocks Control Act, 1980, Money-market Instruments, Debentures and securitised debt, Warrants, certificates and other instruments acknowledging, conferring or creating rights to subscribe to, acquire, dispose of, or convert securities, Bonds, Derivative instruments, Participatory interests in one or more collective investment scheme, Foreign currency denominated investment instruments, including a foreign currency deposit, Long-term Deposits, Short-term Deposits.\n3.3. in respect of administrative services in the following products: Long-term Insurance: Category B1, C, B2, Pension Fund Benefits: (Retail), Securities and Instruments: Shares in a company other than a “share block company” as defined in the Share Blocks Control Act, 1980, Money-market instruments, Debentures and securitised debt, Warrants, certificates and other instruments acknowledging, conferring or creating rights to subscribe to, acquire, dispose of, or convert securities, Bonds, Derivative instruments, Participatory interests in one or more collective investment schemes, Foreign currency denominated investment instruments, including foreign currency deposit."]
[null,"ACCEPTANCE OF APPOINTMENT",null,null,null,null,null,null,null,"YES",null,null,null,null,null,null,null,"NO"]
[]
[null,"B. OR APPOINTMENT OF EXTERNAL MODEL MANAGER"]
[]
[null,"NAME OF FSP / ENTITY"]
[]
[null,"FSP / ENTITY LICENCE NO"]
[]
[null,"STANLIB ID"]
[]
[null,"NAME OF SOLE PROPRIETOR OR\nREPRESENTATIVE"]
[]
[null,"MODEL PORTFOLIO MANAGER\nCHARGE ",null,null,null,"%"]
[]
[null,"1.The Client hereby appoints the FSP as the discretionary financial service provider with effect from the date of client’s signature of this form on the terms and conditions set out herein and subject to applicable legislation"]
[null,"ACCEPTANCE OF APPOINTMENT",null,null,null,null,null,null,null,"YES",null,null,null,null,null,null,null,"NO"]
[null,"TERMS AND CONDITIONS"]
[]
[null,"General\n1. The terms and conditions signed and agreed to in the Investment Application form will remain in force and apply to this transaction. Refer to your Investment application form for the detail for the detailed terms and conditions. Alternatively you can request a copy of the terms and conditions from your Financial adviser or the Contact Centre on 0860 123 003\n2. Where the terms and conditions contained in this form contradict the terms and conditions in the application form signed by the client, the terms and conditions contained in this switch form will apply.\n3. Some of the terms and conditions are set out in the Investment Application Form and the remainder is set out in this Switch form. The Client agrees to be bound by the terms and conditions as set out in the Investment Application Form as well as those set out in this form. In the event of a conflict between the terms and conditions in the Investment Application Form and the terms and conditions contained in this Switch Form, the terms and conditions in this form will apply.\n4. Where a fully completed and accurate instruction is received by STANLIB head office before close of business on business day 1.\nThe following switching turnaround times and prices will apply:\n  4.1. Intra-Manco Switch: Funds will be switched out and priced on day 2; the switch into the new fund will also be priced on day 2  "]
[]
[null,"Business Cut-off to Receive an Instruction","Process the instruction",null,null,null,null,null,"The Administrator Sell or Buys Units",null,null,null,null,null,"Transaction Complete",null,null,null,null,null,"Reflect on Client Statement"]
[null,"Before 15:30","Day 1",null,null,null,null,null,"Day 2",null,null,null,null,null,"Day 3",null,null,null,null,null,"Day 4"]
[null,"After 15:30","Day 2",null,null,null,null,null,"Day 3",null,null,null,null,null,"Day 4",null,null,null,null,null,"Day 5"]
[]
[null,"4.2. Inter-Manco Switch: For switches from the money market fund or call account to an external Manco, the fund will be switched out and priced on day 2, the switch into the external manager's fund will be priced on day 3. For switches from all other funds, the fund will be switched out and priced on day 2 and the switch into the external manager's fund will be priced on day 4."]
[]
[null,"Business Cut-off to Receive an Instruction","Process the instruction",null,null,null,"The Administrator Sell Units",null,null,null,"The Administrator Buys Units",null,null,null,"The Administrator received money and pay new manger ",null,null,null,"Transaction Complete",null,null,null,"Reflect on Client Statement"]
[null,"Before 15:30","Day 1",null,null,null,"Day 2",null,null,null,"Day 3",null,null,null,"Day 4",null,null,null,"Day 5",null,null,null,"Day 6"]
[null,"After 15:30","Day 2",null,null,null,"Day 3",null,null,null,"Day 4",null,null,null,"Day 5",null,null,null,"Day 6",null,null,null,"Day 7"]
[]
[null,"5. Please note: The monthly expense run takes place on the 10th of the month. In the event of the 10th being a weekend or public holiday, the expense run will take place on the next business day. The monthly annuity run takes place on the 20th of the month. In the event of the 20th being a weekend or public holiday, the annuity run will take place on the preceding business day. Switch requests received during the monthly expense run or monthly annuity run will only be processed once the run has been priced up. This will generally add up to 2 business days to the above service levels. STANLIB will not be responsible for any losses caused or damages suffered due to STANLIB being unable to meet these service levels due to unforeseeable circumstances beyond STANLIB's control.\n6. Any values previously advised are only guides to the actual values of the assets being switched.\n7. This instruction must be signed and dated by the legal owner, including the cessionary if ceded collaterally or a person holding a Power of Attorney or the Client's FSB licensed Financial Services Provider (\"Financial adviser\"). STANLIB will only accept an instruction from the Financial adviser, if the Client explicitly authorised STANLIB in writing to accept instructions from the Financial adviser. The Client understands that by authorising his/her Financial adviser to sign this instruction on his/her behalf, STANLIB will implement the instruction, whether in written or electronic format, as if it were the Client's own instruction.\n8. A maximum of 12 portfolios is allowed after completion of the switch.\n9. The Client confirms that neither STANLIB nor any of its representatives provided him/her with any advice and that he/she has taken particular care to consider on his/her own or with the assistance of his/her authorised I whether the switch is appropriate considering his/her unique objectives, financial situation and particular needs.\n10. The Client understands that all material facts must be accurately and properly disclosed and the accuracy and completeness of all information provided by or on behalf of the Client, is the Client's own responsibility. The Client understands that no Financial adviser may request the Client to sign any written or printed form or document unless all details required to be inserted thereon by the Client or on behalf of the Client have already been inserted.\n11. Multiple transactions cannot be processed simultaneously.\n12. The Client understands that STANLIB is prohibited from processing any transactions on the Client's behalf (including but not limited to switches) until all documentation has been received in terms of the Financial Intelligence Centre Act, No. 38 of 2001.\n13. Any capital gain realised on the disposal of a participatory interest in a collective investment scheme is subject to Capital Gains Tax (CGT).\n14. The Client understands that where he/she changes FSP the consequences of such change may result in different or new fund and fees structures. This may result in an increase to the platform service charges. It is the Client's and where applicable the Client's Financial adviser's responsibility to determine the relevant fund and or charge implications. STANLIB will deduct the charges from the Client's portfolios. For further details please refer to the Fee Comparison Tool on STANLIB online.\n"]
[null,"Model Portfolios\n1. The Intermediary will determine the Investment Strategy applicable to the Client and the Client will be invested in a pre-determined selection of Collective Investment Portfolios selected by the Intermediary. The Client will not be entitled to alter the selection of portfolios in any way however the Client may repurchase the entire investment or a portion thereof. Any partial repurchase will result in a proportionate repurchase out of each Collective Investment Portfolio comprising the Investment Strategy\n2. The Client hereby appoints Model Portfolio FSP as his/her discretionary financial service provider with effect from the date of client's signature of this form on the terms and conditions set out herein and subject to applicable legislation. Model Portfolio FSP hereby agrees to act as a discretionary financial services provider to the Client. In terms of this clause, the Client hereby confers on Model Portfolio FSP complete discretion to take such action as Model Portfolio FSP considers necessary to attain the investment objectives of the Client, namely to maximize the income on the investments of the Client over an extended period. Model Portfolio FSP may vote on behalf of the Client in respect of the Client's investment. Model Portfolio FSP as the Client's representative is authorised to enter into any agreements of the Client with any other person, financial exchange, member or regulatory body in the execution of its obligations in terms of the agreement. Model Portfolio FSP may sub-contract its responsibilities in terms if this clause to another party.\n3. Where the Client terminated his mandate with the Financial Service Provider, STANLIB has the right to terminate the Client's Model Portfolio investment.\n4. The Client may switch between model portfolios. The Client may switch in full or partially from the selected model investment into other funds offered on the STANLIB platform and vice versa.\n5. All redemptions will be applied proportionately across the underlying funds in the selected model investment.\n6. Additional investments into Model portfolios will be applied proportionately across the underlying funds in the selected model investment.\n"]
[null,"Personal Share Portfolio\n(Available to the Classic Retirement Annuity Fund, Preservation Pension Plan, Preservation Provident Plan and Linked Life Annuity)\n1. STANLIB has entered into an Investment Management agreement with SBG Securities (Pty) Ltd (a member of the JSE Ltd) to manage the Personal Share Portfolio. SBG Securities (Pty) Ltd and is hereby referred to as the Investment Manager.\n2. New Business instruction: Where a fully completed and accurate instruction is received by STANLIB head office before close of business (15h30) on business day 1 (and where the relevant funds have been credited to the appropriate Nominee bank account), the instruction request to create the BDA account number will be forwarded to the Investment Manager. The purchase instruction will be forwarded to the Investment Manager within 2 business days of receiving the BDA account number. The Investment Manager has the authority to decline the opening of the account. The Client will be informed in writing of any rejections by STANLIB. The Client hereby indemnifies STANLIB and the Investment Manager against any loss of any nature which may arise should any funds, credited to a Nominee bank account, as contemplated above, be reversed for any reason.\n3. Withdrawal instruction: Any withdrawals applicable to the Classic Linked Life Annuity policy will be in the form of a Death Claim and the Standard Death Claim process for Living Annuities will be followed. A payment, as determined by a court order, will be processed according to the standard payment process. Commutation thresholds are set by SARS and these thresholds will be applied when an instruction is received by STANLIB from the Client. Due to the nature of the investment, the turnaround time for claims from Personal Share Portfolios will be determined by the Investment Manager. The maximum period for settling a claim is 60 days from the point when all requirements have been met.\n4. Switch instruction: Where a fully completed and accurate instruction is received by STANLIB head office before close of business on business day 1, the switch into the new portfolio will be completed and the process as followed in the New Business Process will apply.\n5. Income payment: The Client must draw an income within the specified limits and the income will be paid from the nominated fund. Payments will be received from STANLIB by the 1st business day of the month according to the selected payment frequency. The payment frequency option is monthly, quarterly, bi-annually and annually. The Client has one opportunity at anniversary date to review the income level and frequency of payments. The business cut off is 5 business days before the Client's anniversary date.\n6. This contract will become effective once STANLIB and the Investment Manager have accepted the application and the Investment Manager has the Client approved, and have received the investment funds. STANLIB will transfer the net investment amount to the Investment Manager as indicated on the Application Form. The Investment Manager will then invest the funds in accordance with the portfolio selected by the Client. The Investment Manager will contact the Client to verify the Personal Share Portfolio choice and disclose the Investment Manager fees. In the case of script transfers, the Client acknowledges that they are aware of the share transfer process and further acknowledge that only once the Investment Manager has received the shares in\ndematerialised form and provided the Administrator with a value, can the Administrator calculate the value of the investment.\n7. The fees and charges levied by the Investment Manager will be:\n7.1. The investment Management fee at a maximum fee of 1% per annum but may vary at the discretion of the Investment Manager.\n7.2. The Investment Manager fee shall be calculated and charged as a percentage of the market value of the portfolio on a monthly basis. The fee will be firstly be deducted from the cash portion of the Personal Share Portfolio otherwise securities will be sold at the discretion of the Investment Manager.\n7.3. The Investment Manager shall charge a Brokerage fee at a maximum rate of 1% per trade with the discretion of the Investment Manager to vary the charger per trade.\n7.4. The Brokerage fee will be charged upon execution of the trade.\n7.5. The Investment Manager undertakes to deduct from the Portfolios all Taxes, STRATE, JSE and other applicable charges.\n8. The Client understands that where he/she switches to other portfolios, different or new cost structures may apply and that it is the Client's responsibility, or where applicable, that of the Client's Financial Service Provider, to determine the relevant cost structures prior to conducting a switch.\n9. Reporting to the Client: The Client can obtain detailed information regarding the underlying investment of the Personal Share Portfolio directly from the Investment Manager.\n10. Notional unit prices are calculated for the Personal Share Portfolio based on the values of the portfolio as received by the Investment Manager on a daily basis.\n11. Unless otherwise specified through Portfolio nomination for fee deduction, STANLIB will deduct all charges from call accounts and money market portfolios first. Thereafter charges will be deducted proportionately from other portfolios. If a charger is deducted from a Personal Share Portfolio the charge will be firstly be deducted from the cash portion of the Personal Share Portfolio otherwise securities will be sold at the discretion of the Investment Manager.\n12. The Client acknowledge that an investment in the Personal Share Portfolio is subject to the Investment Manager's standard business rules, procedures and service level agreement. STANLIB or the Investment Manager can provide the Investment Management agreement to the client on request. The Investment Manager will provide the Client with statements for the investment in the Personal Share Portfolio on a monthly basis. Please note that depending on expense runs and timing of the instructions there may be differences in the value provided by STANLIB or the Investment Manager.The Client acknowledges and understands that if the total investment value in the Personal Share Portfolio is less than the Investment Manager's minimum investment amount at any time during the duration of the contract, the Client may be obliged to switch 100% of the Personal Share Portfolio value if required by Investment Manager into Collective Investment Scheme Portfolios.\n13. The Client agrees to pay Investment Manager the charges specified in this document. Such charges shall be calculated and charged as indicated. Investment Manager shall be entitled to increase the charges charged to the Client by giving the Client three months prior notice of such an increase.\n"]
[]
[null,"STANLIB Linked Investments Tax-Free Savings Plan\n1. The STANLIB Linked Investments Tax-Free Savings Plan is governed by the Regulations in terms of section 12T of the Income Tax Act of 1962.\n2. Only natural persons residing in South Africa may invest in the STANLIB Linked Investments Tax-Free Savings Plan.\n3. All interest, dividends and capital gains earned in this may be automatically re-invested tax-free to accrue further interest and dividends. The plan allows a client to invest a maximum of R30 000 per year, with a maximum lifetime contribution of R500 000. The thresholds apply to the total capital contributions only per client.\n4. Capital contributions in excess of the thresholds will be subject to 40% tax payable by the Client to SARS.\n5. The legislated annual and lifetime contribution thresholds apply to a Client’s tax-free savings plan across all financial services providers. It is the Client’s responsibility to monitor their total contribution limits for tax-free savings plan with STANLIB Linked investments and other financial services providers.\n6. Any funds withdrawn from the plan will still be regarded in the annual and lifetime contributions thresholds, as the investment limit is on gross contributions for both annual and lifetime limits. Any withdrawals made from a minor’s STANLIB Linked Investments Tax-Free Savings Plan can only be transferred into the minor’s bank account."]
[null,"DECLARATION"]
[]
[null,"I/We hereby agree to provide all documentation and information required in terms of STANLIB’s business rules and the Financial Intelligence Centre Act, No. 38 of 2001, and understand that STANLIB is prohibited from processing any transaction on my behalf until all such documentation has been provided. \nI/We confirm that all information provided herein is true and correct and that I have read and understood the contents of this form."]
[]
[]
[null,"SIGNATURE OF CLIENT/AUTHORISED SIGNATORY",null,null,null,null,null,null,null,null,null,"DATE",null,null,null,null,null,null,null,"-",null,null,"-"]
[null,null,null,null,null,null,null,null,null,null,null,null,null,null,null,null,null,"D","D",null,"M","M",null,"Y","Y","Y","Y"]
[]
[null,null,null,null,null,null,null,null,null,null,null,"SIGNED AT"]
[]
[null,"SIGNATURE OF FINANCIAL ADVISER",null,null,null,null,null,null,null,null,null,"DATE",null,null,null,null,null,null,null,"-",null,null,"-"]
[null,null,null,null,null,null,null,null,null,null,null,null,null,null,null,null,null,"D","D",null,"M","M",null,"Y","Y","Y","Y"]
[]
[null,null,null,null,null,null,null,null,null,null,null,"SIGNED AT"]

{"sheet":"Switch Form Old","index":10,"n_rows":146,"n_cols":27,"rows_kept":146,"cut":false,"hidden":true,"merged":[[71,1,71,7],[72,1,72,7],[69,1,69,7],[70,1,70,7],[68,1,68,7],[142,1,145,1],[142,2,145,9],[142,11,142,16],[145,11,145,16],[126,8,126,15],[126,16,126,19],[121,1,121,7],[121,8,121,15],[121,16,121,19],[117,1,117,7],[117,8,117,15],[117,16,117,19],[106,1,106,27],[108,1,109,26],[114,1,114,7],[114,8,114,15],[114,16,114,19],[114,20,114,26],[103,1,103,7],[145,17,145,26],[59,1,59,7],[59,8,59,15],[59,16,59,19],[59,20,59,26],[60,1,60,7],[128,1,128,27],[130,1,130,10],[130,12,130,26],[132,1,132,27],[134,1,135,26],[137,1,140,1],[137,2,140,9],[137,11,137,16],[140,11,140,16],[140,17,140,26],[125,1,125,7],[75,1,75,7],[76,1,76,7],[73,1,73,7],[125,8,125,15],[125,16,125,19],[125,20,125,26],[126,1,126,7],[126,20,126,26],[123,1,123,7],[123,8,123,15],[123,16,123,19],[123,20,123,26],[124,1,124,7],[124,8,124,15],[124,16,124,19],[124,20,124,26],[121,20,121,26],[122,1,122,7],[122,8,122,15],[122,16,122,19],[122,20,122,26],[119,1,119,7],[119,8,119,15],[119,16,119,19],[119,20,119,26],[120,1,120,7],[120,8,120,15],[120,16,120,19],[120,20,120,26],[117,20,117,26],[118,1,118,7],[118,8,118,15],[118,16,118,19],[118,20,118,26],[115,1,115,7],[115,8,115,15],[115,16,115,19],[115,20,115,26],[116,1,116,7],[116,8,116,15],[116,16,116,19],[116,20,116,26],[103,8,103,15],[103,16,103,19],[103,20,103,26],[104,1,104,7],[104,8,104,15],[104,16,104,19],[104,20,104,26],[101,1,101,7],[101,8,101,15],[101,16,101,19],[101,20,101,26],[102,1,102,7],[102,8,102,15],[102,16,102,19],[102,20,102,26],[99,1,99,7],[99,8,99,15],[99,16,99,19],[99,20,99,26],[100,1,100,7],[100,8,100,15],[100,16,100,19],[100,20,100,26],[97,1,97,7],[97,8,97,15],[97,16,97,19],[97,20,97,26],[98,1,98,7],[98,8,98,15],[98,16,98,19],[98,20,98,26],[95,1,95,7],[95,8,95,15],[95,16,95,19],[95,20,95,26],[96,1,96,7],[96,8,96,15],[96,16,96,19],[96,20,96,26],[93,1,93,7],[93,8,93,15],[93,16,93,19],[93,20,93,26],[94,1,94,7],[94,8,94,15],[94,16,94,19],[94,20,94,26],[84,1,84,27],[86,1,87,26],[92,1,92,7],[92,8,92,15],[92,16,92,19],[92,20,92,26],[78,1,78,7],[78,8,78,15],[78,16,78,19],[78,20,78,26],[82,1,82,15],[82,16,82,19],[82,20,82,26],[79,1,79,7],[79,8,79,15],[79,16,79,19],[79,20,79,26],[80,1,80,7],[80,8,80,15],[80,16,80,19],[80,20,80,26],[81,1,81,7],[81,8,81,15],[81,16,81,19],[81,20,81,26],[76,8,76,15],[76,16,76,19],[76,20,76,26],[77,1,77,7],[77,8,77,15],[77,16,77,19],[77,20,77,26],[74,8,74,15],[74,16,74,19],[74,20,74,26],[75,8,75,15],[75,16,75,19],[75,20,75,26],[74,1,74,7],[72,8,72,15],[72,16,72,19],[72,20,72,26],[73,8,73,15],[73,16,73,19],[73,20,73,26],[70,8,70,15],[70,16,70,19],[70,20,70,26],[71,8,71,15],[71,16,71,19],[71,20,71,26],[69,8,69,15],[69,16,69,19],[69,20,69,26],[64,1,64,27],[66,1,66,7],[66,8,66,15],[66,16,66,19],[66,20,66,26],[67,1,67,7],[67,8,67,15],[67,16,67,19],[67,20,67,26],[68,8,68,15],[68,16,68,19],[68,20,68,26],[58,1,58,7],[58,8,58,15],[58,16,58,19],[58,20,58,26],[62,1,62,15],[62,16,62,19],[62,20,62,26],[60,8,60,15],[60,16,60,19],[60,20,60,26],[61,1,61,7],[61,8,61,15],[61,16,61,19],[61,20,61,26],[56,1,56,7],[56,8,56,15],[56,16,56,19],[56,20,56,26],[57,1,57,7],[57,8,57,15],[57,16,57,19],[57,20,57,26],[54,1,54,7],[54,8,54,15],[54,16,54,19],[54,20,54,26],[55,1,55,7],[55,8,55,15],[55,16,55,19],[55,20,55,26],[52,1,52,7],[52,8,52,15],[52,16,52,19],[52,20,52,26],[53,1,53,7],[53,8,53,15],[53,16,53,19],[53,20,53,26],[50,1,50,7],[50,8,50,15],[50,16,50,19],[50,20,50,26],[51,1,51,7],[51,8,51,15],[51,16,51,19],[51,20,51,26],[48,1,48,7],[48,8,48,15],[48,16,48,19],[48,20,48,26],[49,1,49,7],[49,8,49,15],[49,16,49,19],[49,20,49,26],[44,1,44,27],[46,1,46,7],[46,8,46,15],[46,16,46,19],[46,20,46,26],[47,1,47,7],[47,8,47,15],[47,16,47,19],[47,20,47,26],[31,8,31,15],[32,1,32,7],[32,8,32,15],[34,16,34,26],[35,16,35,26],[41,1,41,7],[41,8,41,15],[42,1,42,15],[39,1,39,7],[39,8,39,15],[40,1,40,7],[40,8,40,15],[38,8,38,15],[35,1,35,7],[35,8,35,15],[36,1,36,7],[36,8,36,15],[36,16,36,26],[37,16,37,26],[38,16,38,26],[39,16,39,26],[40,16,40,26],[41,16,41,26],[42,16,42,26],[30,16,30,26],[31,16,31,26],[32,16,32,26],[33,16,33,26],[37,1,37,7],[37,8,37,15],[38,1,38,7],[5,1,5,27],[6,1,6,19],[6,20,6,27],[8,1,8,27],[19,1,19,27],[24,1,24,27],[26,1,27,26],[29,1,29,7],[29,8,29,15],[29,16,29,26],[30,1,30,7],[30,8,30,15],[33,1,33,7],[33,8,33,15],[34,1,34,7],[34,8,34,15],[31,1,31,7]]}
[]
[]
[]
[]
[]
[null,"E-mail instructions@stanlib.com\nFacsimile 0867 277 501 or 011 448 6666"]
[null,"Switch Form\nClassic Range"]
[]
[null,"CLIENT DETAILS"]
[]
[null,"ENTITY / INVESTMENT ACCOUNT NUMBER",{"$f":"LEFT('Proposal - S'!$J$41,1)","v":"0"},{"$f":"MID('Proposal - S'!$J$41,2,1)","v":""},{"$f":"MID('Proposal - S'!$J$41,3,1)","v":""},{"$f":"MID('Proposal - S'!$J$41,4,1)","v":""},{"$f":"MID('Proposal - S'!$J$41,5,1)","v":""},{"$f":"MID('Proposal - S'!$J$41,6,1)","v":""},{"$f":"MID('Proposal - S'!$J$41,7,1)","v":""},{"$f":"MID('Proposal - S'!$J$41,8,1)","v":""},{"$f":"MID('Proposal - S'!$J$41,9,1)","v":""},{"$f":"MID('Proposal - S'!$J$41,10,1)","v":""},{"$f":"MID('Proposal - S'!$J$41,11,1)","v":""},{"$f":"MID('Proposal - S'!$J$41,12,1)","v":""},{"$f":"MID('Proposal - S'!$J$41,13,1)","v":""},{"$f":"MID('Proposal - S'!$J$41,14,1)","v":""},{"$f":"MID('Proposal - S'!$J$41,15,1)","v":""},{"$f":"MID('Proposal - S'!$J$41,16,1)","v":""},{"$f":"MID('Proposal - S'!$J$41,17,1)","v":""},{"$f":"MID('Proposal - S'!$J$41,18,1)","v":""},{"$f":"MID('Proposal - S'!$J$41,19,1)","v":""},{"$f":"MID('Proposal - S'!$J$41,20,1)","v":""},{"$f":"MID('Proposal - S'!$J$41,21,1)","v":""},{"$f":"MID('Proposal - S'!$J$41,22,1)","v":""},{"$f":"MID('Proposal - S'!$J$41,23,1)","v":""},{"$f":"MID('Proposal - S'!$J$41,24,1)","v":""},{"$f":"MID('Proposal - S'!$J$41,25,1)","v":""}]
[]
[null,"NAME & SURNAME / ENTITY NAME",{"$f":"LEFT('Proposal - S'!$J$42,1)","v":"0"},{"$f":"MID('Proposal - S'!$J$42,2,1)","v":""},{"$f":"MID('Proposal - S'!$J$42,3,1)","v":""},{"$f":"MID('Proposal - S'!$J$42,4,1)","v":""},{"$f":"MID('Proposal - S'!$J$42,5,1)","v":""},{"$f":"MID('Proposal - S'!$J$42,6,1)","v":""},{"$f":"MID('Proposal - S'!$J$42,7,1)","v":""},{"$f":"MID('Proposal - S'!$J$42,8,1)","v":""},{"$f":"MID('Proposal - S'!$J$42,9,1)","v":""},{"$f":"MID('Proposal - S'!$J$42,10,1)","v":""},{"$f":"MID('Proposal - S'!$J$42,11,1)","v":""},{"$f":"MID('Proposal - S'!$J$42,12,1)","v":""},{"$f":"MID('Proposal - S'!$J$42,13,1)","v":""},{"$f":"MID('Proposal - S'!$J$42,14,1)","v":""},{"$f":"MID('Proposal - S'!$J$42,15,1)","v":""},{"$f":"MID('Proposal - S'!$J$42,16,1)","v":""},{"$f":"MID('Proposal - S'!$J$42,17,1)","v":""},{"$f":"MID('Proposal - S'!$J$42,18,1)","v":""},{"$f":"MID('Proposal - S'!$J$42,19,1)","v":""},{"$f":"MID('Proposal - S'!$J$42,20,1)","v":""},{"$f":"MID('Proposal - S'!$J$42,21,1)","v":""},{"$f":"MID('Proposal - S'!$J$42,22,1)","v":""},{"$f":"MID('Proposal - S'!$J$42,23,1)","v":""},{"$f":"MID('Proposal - S'!$J$42,24,1)","v":""},{"$f":"MID('Proposal - S'!$J$42,25,1)","v":""}]
[]
[null,"IDENTITY / PASSPORT NUMBER",{"$f":"LEFT('Proposal - S'!$J$43,1)","v":"0"},{"$f":"MID('Proposal - S'!$J$43,2,1)","v":""},{"$f":"MID('Proposal - S'!$J$43,3,1)","v":""},{"$f":"MID('Proposal - S'!$J$43,4,1)","v":""},{"$f":"MID('Proposal - S'!$J$43,5,1)","v":""},{"$f":"MID('Proposal - S'!$J$43,6,1)","v":""},{"$f":"MID('Proposal - S'!$J$43,7,1)","v":""},{"$f":"MID('Proposal - S'!$J$43,8,1)","v":""},{"$f":"MID('Proposal - S'!$J$43,9,1)","v":""},{"$f":"MID('Proposal - S'!$J$43,10,1)","v":""},{"$f":"MID('Proposal - S'!$J$43,11,1)","v":""},{"$f":"MID('Proposal - S'!$J$43,12,1)","v":""},{"$f":"MID('Proposal - S'!$J$43,13,1)","v":""},{"$f":"MID('Proposal - S'!$J$43,14,1)","v":""},{"$f":"MID('Proposal - S'!$J$43,15,1)","v":""},{"$f":"MID('Proposal - S'!$J$43,16,1)","v":""},{"$f":"MID('Proposal - S'!$J$43,17,1)","v":""},{"$f":"MID('Proposal - S'!$J$43,18,1)","v":""},{"$f":"MID('Proposal - S'!$J$43,19,1)","v":""},{"$f":"MID('Proposal - S'!$J$43,20,1)","v":""},{"$f":"MID('Proposal - S'!$J$43,21,1)","v":""},{"$f":"MID('Proposal - S'!$J$43,22,1)","v":""},{"$f":"MID('Proposal - S'!$J$43,23,1)","v":""},{"$f":"MID('Proposal - S'!$J$43,24,1)","v":""},{"$f":"MID('Proposal - S'!$J$43,25,1)","v":""}]
[]
[null,"CELL PHONE NUMBER",{"$f":"LEFT('Proposal - S'!$J$46,1)","v":"0"},{"$f":"MID('Proposal - S'!$J$46,2,1)","v":""},{"$f":"MID('Proposal - S'!$J$46,3,1)","v":""},null,{"$f":"MID('Proposal - S'!$J$46,4,1)","v":""},{"$f":"MID('Proposal - S'!$J$46,5,1)","v":""},{"$f":"MID('Proposal - S'!$J$46,6,1)","v":""},{"$f":"MID('Proposal - S'!$J$46,7,1)","v":""},{"$f":"MID('Proposal - S'!$J$46,8,1)","v":""},{"$f":"MID('Proposal - S'!$J$46,9,1)","v":""},{"$f":"MID('Proposal - S'!$J$46,10,1)","v":""}]
[]
[]
[null,"CLIENT DETAILS"]
[]
[null,"INSTRUCTION TYPE","X","SWITCH",null,null,null,null,null,null,"REBALANCE"]
[]
[]
[null,"REBALANCE INSTRUCTION:"]
[]
[null,"Rebalance refers to the process of re-aligning the weightings of your investment portfolios. This involves the buying or selling of assets in your investment to obtain the desired level of asset allocation. Please indicate your new portfolio selection and the weighting for each portfolio."]
[]
[]
[null,"Portfolio Name",null,null,null,null,null,null,"Portfolio Range\n(e.g. Linked Range, Select)",null,null,null,null,null,null,null,"Percentage"]
[null,"1.",null,null,null,null,null,null,null,null,null,null,null,null,null,null,"%"]
[null,"2.",null,null,null,null,null,null,null,null,null,null,null,null,null,null,"%"]
[null,"3.",null,null,null,null,null,null,null,null,null,null,null,null,null,null,"%"]
[null,"4.",null,null,null,null,null,null,null,null,null,null,null,null,null,null,"%"]
[null,"5.",null,null,null,null,null,null,null,null,null,null,null,null,null,null,"%"]
[null,"6.",null,null,null,null,null,null,null,null,null,null,null,null,null,null,"%"]
[null,"7.",null,null,null,null,null,null,null,null,null,null,null,null,null,null,"%"]
[null,"8.",null,null,null,null,null,null,null,null,null,null,null,null,null,null,"%"]
[null,"9.",null,null,null,null,null,null,null,null,null,null,null,null,null,null,"%"]
[null,"10.",null,null,null,null,null,null,null,null,null,null,null,null,null,null,"%"]
[null,"11.",null,null,null,null,null,null,null,null,null,null,null,null,null,null,"%"]
[null,"12.",null,null,null,null,null,null,null,null,null,null,null,null,null,null,"%"]
[null,"TOTAL",null,null,null,null,null,null,null,null,null,null,null,null,null,null,"%"]
[]
[null,"SWITCH FROM:"]
[]
[null,"Portfolio Name",null,null,null,null,null,null,"Portfolio Range\n(e.g. Linked Range, Select)",null,null,null,null,null,null,null,"Percentage",null,null,null,"Amount"]
[null,{"$f":"CONCATENATE(\"1. \",TEXT(Switch!G26,\"\"))","v":"1. "},null,null,null,null,null,null,{"$f":"IF(Switch!W26=\"\",\"\",Switch!W26)","v":""},null,null,null,null,null,null,null,{"$f":"IF(Switch!U26=\"\",\"\",Switch!U26)","v":""},null,null,null,{"$f":"IF(Switch!V26=\"\",\"\",Switch!V26)","v":0}]
[null,{"$f":"CONCATENATE(\"2. \",TEXT(Switch!G27,\"\"))","v":"2. "},null,null,null,null,null,null,{"$f":"IF(Switch!W27=\"\",\"\",Switch!W27)","v":""},null,null,null,null,null,null,null,{"$f":"IF(Switch!U27=\"\",\"\",Switch!U27)","v":""},null,null,null,{"$f":"IF(Switch!V27=\"\",\"\",Switch!V27)","v":0}]
[null,{"$f":"CONCATENATE(\"3. \",TEXT(Switch!G28,\"\"))","v":"3. "},null,null,null,null,null,null,{"$f":"IF(Switch!W28=\"\",\"\",Switch!W28)","v":""},null,null,null,null,null,null,null,{"$f":"IF(Switch!U28=\"\",\"\",Switch!U28)","v":""},null,null,null,{"$f":"IF(Switch!V28=\"\",\"\",Switch!V28)","v":0}]
[null,{"$f":"CONCATENATE(\"4. \",TEXT(Switch!G29,\"\"))","v":"4. "},null,null,null,null,null,null,{"$f":"IF(Switch!W29=\"\",\"\",Switch!W29)","v":""},null,null,null,null,null,null,null,{"$f":"IF(Switch!U29=\"\",\"\",Switch!U29)","v":""},null,null,null,{"$f":"IF(Switch!V29=\"\",\"\",Switch!V29)","v":0}]
[null,{"$f":"CONCATENATE(\"5. \",TEXT(Switch!G30,\"\"))","v":"5. "},null,null,null,null,null,null,{"$f":"IF(Switch!W30=\"\",\"\",Switch!W30)","v":""},null,null,null,null,null,null,null,{"$f":"IF(Switch!U30=\"\",\"\",Switch!U30)","v":""},null,null,null,{"$f":"IF(Switch!V30=\"\",\"\",Switch!V30)","v":0}]
[null,{"$f":"CONCATENATE(\"6. \",TEXT(Switch!G31,\"\"))","v":"6. "},null,null,null,null,null,null,{"$f":"IF(Switch!W31=\"\",\"\",Switch!W31)","v":""},null,null,null,null,null,null,null,{"$f":"IF(Switch!U31=\"\",\"\",Switch!U31)","v":""},null,null,null,{"$f":"IF(Switch!V31=\"\",\"\",Switch!V31)","v":0}]
[null,{"$f":"CONCATENATE(\"7. \",TEXT(Switch!G32,\"\"))","v":"7. "},null,null,null,null,null,null,{"$f":"IF(Switch!W32=\"\",\"\",Switch!W32)","v":""},null,null,null,null,null,null,null,{"$f":"IF(Switch!U32=\"\",\"\",Switch!U32)","v":""},null,null,null,{"$f":"IF(Switch!V32=\"\",\"\",Switch!V32)","v":0}]
[null,{"$f":"CONCATENATE(\"8. \",TEXT(Switch!G33,\"\"))","v":"8. "},null,null,null,null,null,null,{"$f":"IF(Switch!W33=\"\",\"\",Switch!W33)","v":""},null,null,null,null,null,null,null,{"$f":"IF(Switch!U33=\"\",\"\",Switch!U33)","v":""},null,null,null,{"$f":"IF(Switch!V33=\"\",\"\",Switch!V33)","v":0}]
[null,{"$f":"CONCATENATE(\"9. \",TEXT(Switch!G34,\"\"))","v":"9. "},null,null,null,null,null,null,{"$f":"IF(Switch!W34=\"\",\"\",Switch!W34)","v":""},null,null,null,null,null,null,null,{"$f":"IF(Switch!U34=\"\",\"\",Switch!U34)","v":""},null,null,null,{"$f":"IF(Switch!V34=\"\",\"\",Switch!V34)","v":0}]
[null,{"$f":"CONCATENATE(\"10. \",TEXT(Switch!G35,\"\"))","v":"10. "},null,null,null,null,null,null,{"$f":"IF(Switch!W35=\"\",\"\",Switch!W35)","v":""},null,null,null,null,null,null,null,{"$f":"IF(Switch!U35=\"\",\"\",Switch!U35)","v":""},null,null,null,{"$f":"IF(Switch!V35=\"\",\"\",Switch!V35)","v":0}]
[null,{"$f":"CONCATENATE(\"11. \",TEXT(Switch!G36,\"\"))","v":"11. "},null,null,null,null,null,null,{"$f":"IF(Switch!W36=\"\",\"\",Switch!W36)","v":""},null,null,null,null,null,null,null,{"$f":"IF(Switch!U36=\"\",\"\",Switch!U36)","v":""},null,null,null,{"$f":"IF(Switch!V36=\"\",\"\",Switch!V36)","v":0}]
[null,{"$f":"CONCATENATE(\"12. \",TEXT(Switch!G37,\"\"))","v":"12. "},null,null,null,null,null,null,{"$f":"IF(Switch!W37=\"\",\"\",Switch!W37)","v":""},null,null,null,null,null,null,null,{"$f":"IF(Switch!U37=\"\",\"\",Switch!U37)","v":""},null,null,null,{"$f":"IF(Switch!V37=\"\",\"\",Switch!V37)","v":0}]
[null,{"$f":"CONCATENATE(\"13. \",TEXT(Switch!G38,\"\"))","v":"13. "},null,null,null,null,null,null,{"$f":"IF(Switch!W38=\"\",\"\",Switch!W38)","v":""},null,null,null,null,null,null,null,{"$f":"IF(Switch!U38=\"\",\"\",Switch!U38)","v":""},null,null,null,{"$f":"IF(Switch!V38=\"\",\"\",Switch!V38)","v":0}]
[null,{"$f":"CONCATENATE(\"14. \",TEXT(Switch!G39,\"\"))","v":"14. "},null,null,null,null,null,null,{"$f":"IF(Switch!W39=\"\",\"\",Switch!W39)","v":""},null,null,null,null,null,null,null,{"$f":"IF(Switch!U39=\"\",\"\",Switch!U39)","v":""},null,null,null,{"$f":"IF(Switch!V39=\"\",\"\",Switch!V39)","v":0}]
[null,{"$f":"CONCATENATE(\"15. \",TEXT(Switch!G40,\"\"))","v":"15. "},null,null,null,null,null,null,{"$f":"IF(Switch!W40=\"\",\"\",Switch!W40)","v":""},null,null,null,null,null,null,null,{"$f":"IF(Switch!U40=\"\",\"\",Switch!U40)","v":""},null,null,null,{"$f":"IF(Switch!V40=\"\",\"\",Switch!V40)","v":0}]
[null,"TOTAL",null,null,null,null,null,null,null,null,null,null,null,null,null,null,{"$f":"SUM(Q48:T62)","v":0},null,null,null,{"$f":"SUM(U48:AA62)","v":0}]
[]
[null,"SWITCH TO:"]
[]
[null,"Portfolio Name",null,null,null,null,null,null,"Portfolio Range\n(e.g. Linked Range, Select)",null,null,null,null,null,null,null,"Percentage",null,null,null,"Amount"]
[null,{"$f":"CONCATENATE(\"1. \",TEXT(Switch!G52,\"\"))","v":"1. "},null,null,null,null,null,null,{"$f":"IF(Switch!M52=\"\",\"\",Switch!M52)","v":""},null,null,null,null,null,null,null,{"$f":"IF(Switch!K52=\"\",\"\",Switch!K52)","v":""},null,null,null,{"$f":"IF(Instructions!J62=\"\",\"\",Instructions!J62)","v":""}]
[null,{"$f":"CONCATENATE(\"2. \",TEXT(Switch!G53,\"\"))","v":"2. "},null,null,null,null,null,null,{"$f":"IF(Switch!M53=\"\",\"\",Switch!M53)","v":""},null,null,null,null,null,null,null,{"$f":"IF(Switch!K53=\"\",\"\",Switch!K53)","v":""},null,null,null,{"$f":"IF(Instructions!J63=\"\",\"\",Instructions!J63)","v":""}]
[null,{"$f":"CONCATENATE(\"3. \",TEXT(Switch!G54,\"\"))","v":"3. "},null,null,null,null,null,null,{"$f":"IF(Switch!M54=\"\",\"\",Switch!M54)","v":""},null,null,null,null,null,null,null,{"$f":"IF(Switch!K54=\"\",\"\",Switch!K54)","v":""},null,null,null,{"$f":"IF(Instructions!J64=\"\",\"\",Instructions!J64)","v":""}]
[null,{"$f":"CONCATENATE(\"4. \",TEXT(Switch!G55,\"\"))","v":"4. "},null,null,null,null,null,null,{"$f":"IF(Switch!M55=\"\",\"\",Switch!M55)","v":""},null,null,null,null,null,null,null,{"$f":"IF(Switch!K55=\"\",\"\",Switch!K55)","v":""},null,null,null,{"$f":"IF(Instructions!J65=\"\",\"\",Instructions!J65)","v":""}]
[null,{"$f":"CONCATENATE(\"5. \",TEXT(Switch!G56,\"\"))","v":"5. "},null,null,null,null,null,null,{"$f":"IF(Switch!M56=\"\",\"\",Switch!M56)","v":""},null,null,null,null,null,null,null,{"$f":"IF(Switch!K56=\"\",\"\",Switch!K56)","v":""},null,null,null,{"$f":"IF(Instructions!J66=\"\",\"\",Instructions!J66)","v":""}]
[null,{"$f":"CONCATENATE(\"6. \",TEXT(Switch!G57,\"\"))","v":"6. "},null,null,null,null,null,null,{"$f":"IF(Switch!M57=\"\",\"\",Switch!M57)","v":""},null,null,null,null,null,null,null,{"$f":"IF(Switch!K57=\"\",\"\",Switch!K57)","v":""},null,null,null,{"$f":"IF(Instructions!J67=\"\",\"\",Instructions!J67)","v":""}]
[null,{"$f":"CONCATENATE(\"7. \",TEXT(Switch!G58,\"\"))","v":"7. "},null,null,null,null,null,null,{"$f":"IF(Switch!M58=\"\",\"\",Switch!M58)","v":""},null,null,null,null,null,null,null,{"$f":"IF(Switch!K58=\"\",\"\",Switch!K58)","v":""},null,null,null,{"$f":"IF(Instructions!J68=\"\",\"\",Instructions!J68)","v":""}]
[null,{"$f":"CONCATENATE(\"8. \",TEXT(Switch!G59,\"\"))","v":"8. "},null,null,null,null,null,null,{"$f":"IF(Switch!M59=\"\",\"\",Switch!M59)","v":""},null,null,null,null,null,null,null,{"$f":"IF(Switch!K59=\"\",\"\",Switch!K59)","v":""},null,null,null,{"$f":"IF(Instructions!J69=\"\",\"\",Instructions!J69)","v":""}]
[null,{"$f":"CONCATENATE(\"9. \",TEXT(Switch!G60,\"\"))","v":"9. "},null,null,null,null,null,null,{"$f":"IF(Switch!M60=\"\",\"\",Switch!M60)","v":""},null,null,null,null,null,null,null,{"$f":"IF(Switch!K60=\"\",\"\",Switch!K60)","v":""},null,null,null,{"$f":"IF(Instructions!J70=\"\",\"\",Instructions!J70)","v":""}]
[null,{"$f":"CONCATENATE(\"10. \",TEXT(Switch!G61,\"\"))","v":"10. "},null,null,null,null,null,null,{"$f":"IF(Switch!M61=\"\",\"\",Switch!M61)","v":""},null,null,null,null,null,null,null,{"$f":"IF(Switch!K61=\"\",\"\",Switch!K61)","v":""},null,null,null,{"$f":"IF(Instructions!J71=\"\",\"\",Instructions!J71)","v":""}]
[null,{"$f":"CONCATENATE(\"11. \",TEXT(Switch!G62,\"\"))","v":"11. "},null,null,null,null,null,null,{"$f":"IF(Switch!M62=\"\",\"\",Switch!M62)","v":""},null,null,null,null,null,null,null,{"$f":"IF(Switch!K62=\"\",\"\",Switch!K62)","v":""},null,null,null,{"$f":"IF(Instructions!J72=\"\",\"\",Instructions!J72)","v":""}]
[null,{"$f":"CONCATENATE(\"12. \",TEXT(Switch!G63,\"\"))","v":"12. "},null,null,null,null,null,null,{"$f":"IF(Switch!M63=\"\",\"\",Switch!M63)","v":""},null,null,null,null,null,null,null,{"$f":"IF(Switch!K63=\"\",\"\",Switch!K63)","v":""},null,null,null,{"$f":"IF(Instructions!J73=\"\",\"\",Instructions!J73)","v":""}]
[null,{"$f":"CONCATENATE(\"13. \",TEXT(Switch!G64,\"\"))","v":"13. "},null,null,null,null,null,null,{"$f":"IF(Switch!M64=\"\",\"\",Switch!M64)","v":""},null,null,null,null,null,null,null,{"$f":"IF(Switch!K64=\"\",\"\",Switch!K64)","v":""},null,null,null,{"$f":"IF(Instructions!J74=\"\",\"\",Instructions!J74)","v":""}]
[null,{"$f":"CONCATENATE(\"14. \",TEXT(Switch!G65,\"\"))","v":"14. "},null,null,null,null,null,null,{"$f":"IF(Switch!M65=\"\",\"\",Switch!M65)","v":""},null,null,null,null,null,null,null,{"$f":"IF(Switch!K65=\"\",\"\",Switch!K65)","v":""},null,null,null,{"$f":"IF(Instructions!J75=\"\",\"\",Instructions!J75)","v":""}]
[null,{"$f":"CONCATENATE(\"15. \",TEXT(Switch!G66,\"\"))","v":"15. "},null,null,null,null,null,null,{"$f":"IF(Switch!M66=\"\",\"\",Switch!M66)","v":""},null,null,null,null,null,null,null,{"$f":"IF(Switch!K66=\"\",\"\",Switch!K66)","v":""},null,null,null,{"$f":"IF(Instructions!J76=\"\",\"\",Instructions!J76)","v":""}]
[null,"TOTAL",null,null,null,null,null,null,null,null,null,null,null,null,null,null,{"$f":"SUM(Q68:T82)","v":0},null,null,null,{"$f":"SUM(U68:AA82)","v":0}]
[]
[null,"PHASE-IN INSTRUCTION"]
[]
[null,"Change the portfolio selection for the existing Unit trust funds as indicated below.  If the table is left blank, the existing portfolio on record will remain unchanged. Phase-in's are only available for Unit Trust funds and at inception stage."]
[]
[]
[null,"CHANGE PHASE-IN",null,"YES",null,null,null,null,null,null,"NO"]
[]
[]
[null,"Portfolio Name",null,null,null,null,null,null,"Portfolio Range\n(e.g. Linked Range, Select)",null,null,null,null,null,null,null,"Percentage",null,null,null,"Amount"]
[null,"1.",null,null,null,null,null,null,null,null,null,null,null,null,null,null,"%",null,null,null,"R"]
[null,"2.",null,null,null,null,null,null,null,null,null,null,null,null,null,null,"%",null,null,null,"R"]
[null,"3.",null,null,null,null,null,null,null,null,null,null,null,null,null,null,"%",null,null,null,"R"]
[null,"4.",null,null,null,null,null,null,null,null,null,null,null,null,null,null,"%",null,null,null,"R"]
[null,"5.",null,null,null,null,null,null,null,null,null,null,null,null,null,null,"%",null,null,null,"R"]
[null,"6.",null,null,null,null,null,null,null,null,null,null,null,null,null,null,"%",null,null,null,"R"]
[null,"7.",null,null,null,null,null,null,null,null,null,null,null,null,null,null,"%",null,null,null,"R"]
[null,"8.",null,null,null,null,null,null,null,null,null,null,null,null,null,null,"%",null,null,null,"R"]
[null,"9.",null,null,null,null,null,null,null,null,null,null,null,null,null,null,"%",null,null,null,"R"]
[null,"10.",null,null,null,null,null,null,null,null,null,null,null,null,null,null,"%",null,null,null,"R"]
[null,"11.",null,null,null,null,null,null,null,null,null,null,null,null,null,null,"%",null,null,null,"R"]
[null,"12.",null,null,null,null,null,null,null,null,null,null,null,null,null,null,"%",null,null,null,"R"]
[]
[null,"DEBIT ORDER INSTRUCTION"]
[]
[null,"Change the portfolio selection for the existing Unit trust funds as indicated below.  If the table is left blank, the existing portfolio on record will remain unchanged. The product minimum recurring debit order amounts must be met: R1 000 for the Classic Investment Plan with a minimum of R500 per portfolio; R500 per portfolio on the Classic Retirement Annuity Plan. "]
[]
[]
[null,"CHANGE DEBIT ORDERS",null,"YES",null,null,null,null,null,null,"NO"]
[]
[]
[null,"Portfolio Name",null,null,null,null,null,null,"Portfolio Range\n(e.g. Linked Range, Select)",null,null,null,null,null,null,null,"Percentage",null,null,null,"Amount"]
[null,"1.",null,null,null,null,null,null,null,null,null,null,null,null,null,null,"%",null,null,null,"R"]
[null,"2.",null,null,null,null,null,null,null,null,null,null,null,null,null,null,"%",null,null,null,"R"]
[null,"3.",null,null,null,null,null,null,null,null,null,null,null,null,null,null,"%",null,null,null,"R"]
[null,"4.",null,null,null,null,null,null,null,null,null,null,null,null,null,null,"%",null,null,null,"R"]
[null,"5.",null,null,null,null,null,null,null,null,null,null,null,null,null,null,"%",null,null,null,"R"]
[null,"6.",null,null,null,null,null,null,null,null,null,null,null,null,null,null,"%",null,null,null,"R"]
[null,"7.",null,null,null,null,null,null,null,null,null,null,null,null,null,null,"%",null,null,null,"R"]
[null,"8.",null,null,null,null,null,null,null,null,null,null,null,null,null,null,"%",null,null,null,"R"]
[null,"9.",null,null,null,null,null,null,null,null,null,null,null,null,null,null,"%",null,null,null,"R"]
[null,"10.",null,null,null,null,null,null,null,null,null,null,null,null,null,null,"%",null,null,null,"R"]
[null,"11.",null,null,null,null,null,null,null,null,null,null,null,null,null,null,"%",null,null,null,"R"]
[null,"12.",null,null,null,null,null,null,null,null,null,null,null,null,null,null,"%",null,null,null,"R"]
[]
[null,"TERMS AND CONDITIONS"]
[]
[null,"1. The terms and conditions signed and agreed to in the Investment Application form will remain in force and apply to this transaction. Refer to your Investment application form for the detail for the detailed terms and conditions. Alternatively you can request a copy of the terms and conditions from your Financial adviser or the Contact Centre on 0860 123 0032.                     \n\"2. Where the terms and conditions contained in this form contradict the terms and conditions in the application form signed by the client, the terms and conditions contained in this switch form will apply.\n3. Some of the terms and conditions are set out in the Investment Application Form and the remainder is set out in this Switch form.   The Client agrees to be bound by the terms and conditions as set out in the Investment Application Form as well as those set out in this form.   In the event of a conflict between the terms and conditions in the Investment Application Form and the terms and conditions contained in this Switch Form, the terms and conditions in this form will apply.\n4. Where a fully completed and accurate instruction is received by STANLIB head office before close of business on business day 1.\nThe following switching turnaround times and prices will apply:\n4.1. Intra-Manco Switch: Funds will be switched out and priced on day 2; the switch into the new fund will also be priced on day 2.\n4.2. Inter-Manco Switch: For switches from the money market fund or call account to an external Manco, the fund will be switched out and priced on day 2, the switch into the external manager’s fund will be priced on day 3.  For switches from all other funds, the fund will be switched out and priced on day 2 and the switch into the external manager’s fund will be priced on day 4.\n5. Please note: The monthly expense run takes place on the 10th of the month. In the event of the 10th being a weekend or public holiday, the expense run will take place on the next business day. The monthly annuity run takes place on the 22nd of the month. In the event of the 22nd being a weekend or public holiday, the annuity run will take place on the preceding business day. Switch requests received during the monthly expense run or monthly annuity run will only be processed once the run has been priced up. This will generally add up to 2 business days to the above service levels. STANLIB will not be responsible for any losses caused or damages suffered due to STANLIB being unable to meet these service levels due to unforeseeable circumstances beyond STANLIB's control.\n6. Any values previously advised are only guides to the actual values of the assets being switched.\n7. This instruction must be signed and dated by the legal owner, including the cessionary if ceded collaterally or a person holding a Power of Attorney or the Client's FSB licensed Financial Services Provider (“Financial adviser”). STANLIB will only accept an instruction from the Financial adviser, if the Client explicitly authorised STANLIB in writing to accept instructions from the Financial adviser.\"",null,null,null,null,null,null,null,null,null,null,"\"The Client understands that by authorising his/her Financial adviser to sign this instruction on his/her behalf, STANLIB will implement the instruction, whether in written or electronic format, as if it were the Client's own instruction.\n 8. The Client understands that where he/she switches to other portfolios and / or platform,different or new charge structures could apply and that it is the Client's responsibility, or where applicable that of the Client's Financial adviser, to determine the relevant charge structures prior to conducting the switch. A Collective Investment Manager Charge (usually 0,25%) may be charged when switching between Collective Investment Scheme Managers and/or different asset classes. Should the Client switch into an offshore STANLIB Funds Limited portfolio, a service charge of 1% and an annual foreign currency charge of 0,48% will be levied (no VAT is payable).  Please refer to www.stanlib.com for a complete list of the underlying portfolio and / or platform charges.\n9. A maximum of 12 portfolios is allowed after completion of the switch.\n10. The Client confirms that neither STANLIB nor any of its representatives provided him/her with any advice and that he/she has taken particular care to consider on his/her own or with the assistance of his/her authorised I whether the switch is appropriate considering his/her unique objectives, financial situation and particular needs.\n11. The Client understands that all material facts must be accurately and properly disclosed and the accuracy and completeness of all information provided by or on behalf of the Client, is the Client's own responsibility. The Client understands that no Financial adviser may request the Client to sign any written or printed form or document unless all details required to be inserted thereon by the Client or on behalf of the Client have already been inserted.\n12. Multiple transactions cannot be processed simultaneously.\n13. The Client understands that STANLIB is prohibited from processing any transactions on the Client’s behalf (including but not limited to switches) until all documentation has been received in terms of the Financial Intelligence Centre Act, No. 38 of 2001.\n14. Any capital gain realised on the disposal of a participatory interest in a collective investment scheme is subject to Capital Gains Tax (CGT).\n15. The Client understands that where he/she changes FSP the consequences of such change may result in different or new fund and fees structures. This may result in an increase to the platform service charges. It is the Client’s and where applicable the Client’s Financial adviser’s responsibility to determine the relevant fund and or charge implications. STANLIB will deduct the charges from the Client’s portfolios. For further details please refer to the Fee Comparison Tool on STANLIB online.\"             "]
[]
[null,"DECLARATION"]
[]
[null,"I/We hereby agree to provide all documentation and information required in terms of STANLIB’s business rules and the Financial Intelligence Centre Act, No. 38 of 2001, and understand that STANLIB is prohibited from processing any transaction on my behalf until all such documentation has been provided. \nI/We confirm that all information provided herein is true and correct and that I have read and understood the contents of this form."]
[]
[]
[null,"SIGNATURE OF CLIENT/AUTHORISED SIGNATORY",null,null,null,null,null,null,null,null,null,"DATE",null,null,null,null,null,null,null,"-",null,null,"-"]
[null,null,null,null,null,null,null,null,null,null,null,null,null,null,null,null,null,"D","D",null,"M","M",null,"Y","Y","Y","Y"]
[]
[null,null,null,null,null,null,null,null,null,null,null,"SIGNED AT"]
[]
[null,"SIGNATURE OF FINANCIAL ADVISER",null,null,null,null,null,null,null,null,null,"DATE",null,null,null,null,null,null,null,"-",null,null,"-"]
[null,null,null,null,null,null,null,null,null,null,null,null,null,null,null,null,null,"D","D",null,"M","M",null,"Y","Y","Y","Y"]
[]
[null,null,null,null,null,null,null,null,null,null,null,"SIGNED AT"]

{"sheet":"Proposal - R","index":11,"n_rows":211,"n_cols":28,"rows_kept":211,"cut":false,"hidden":false,"merged":[[157,18,157,19],[158,18,158,19],[159,18,159,19],[160,18,160,19],[163,12,163,17],[164,12,164,17],[161,18,161,19],[158,12,158,17],[159,12,159,17],[160,12,160,17],[161,12,161,17],[162,12,162,17],[173,12,173,17],[165,12,165,17],[166,12,166,17],[167,12,167,17],[168,12,168,17],[169,12,169,17],[170,12,170,17],[171,12,171,17],[154,12,154,17],[170,5,170,7],[175,20,175,21],[171,20,171,21],[172,10,172,11],[160,8,160,9],[173,8,173,9],[167,5,167,7],[167,8,167,9],[163,8,163,9],[174,20,174,21],[172,20,172,21],[173,20,173,21],[172,18,172,19],[170,8,170,9],[170,10,170,11],[170,18,170,19],[170,20,170,21],[171,5,171,7],[171,8,171,9],[161,10,161,11],[163,20,163,21],[168,20,168,21],[164,20,164,21],[172,12,172,17],[134,5,134,6],[180,7,180,14],[180,16,180,18],[185,7,185,14],[182,7,182,14],[167,10,167,11],[167,18,167,19],[169,8,169,9],[169,10,169,11],[175,18,175,19],[174,5,174,7],[174,8,174,9],[174,18,174,19],[172,5,172,7],[172,8,172,9],[173,5,173,7],[173,10,173,11],[173,18,173,19],[174,10,174,11],[168,18,168,19],[171,10,171,11],[171,18,171,19],[174,12,174,17],[175,12,175,17],[132,5,132,6],[132,7,132,8],[132,9,132,10],[132,11,132,13],[116,5,116,8],[116,9,116,12],[101,5,101,8],[100,5,100,8],[101,9,101,12],[100,9,100,12],[112,5,112,8],[112,9,112,12],[112,13,112,15],[110,5,110,8],[123,5,123,8],[110,13,110,15],[80,4,80,23],[31,19,31,22],[32,19,32,22],[35,4,35,23],[85,9,85,12],[85,5,85,8],[86,5,86,8],[87,5,87,8],[88,5,88,8],[85,16,85,20],[86,16,86,20],[87,16,87,20],[88,16,88,20],[85,13,85,15],[86,13,86,15],[87,13,87,15],[88,13,88,15],[86,9,86,12],[87,9,87,12],[88,9,88,12],[28,18,28,22],[29,18,29,22],[30,18,30,22],[135,12,135,17],[136,12,136,17],[137,12,137,17],[138,12,138,17],[139,12,139,17],[140,12,140,17],[113,21,113,22],[140,20,140,21],[130,21,130,22],[128,21,128,22],[129,21,129,22],[126,21,126,22],[127,21,127,22],[124,21,124,22],[94,9,94,12],[110,21,110,22],[111,21,111,22],[108,21,108,22],[109,21,109,22],[120,21,120,22],[121,21,121,22],[169,18,169,19],[169,20,169,21],[166,10,166,11],[165,18,165,19],[165,20,165,21],[167,20,167,21],[152,20,152,21],[153,20,153,21],[154,20,154,21],[155,20,155,21],[156,20,156,21],[159,20,159,21],[160,20,160,21],[157,20,157,21],[158,20,158,21],[158,10,158,11],[152,18,152,19],[153,18,153,19],[161,20,161,21],[162,20,162,21],[155,12,155,17],[156,12,156,17],[157,12,157,17],[152,12,152,17],[89,9,89,12],[90,9,90,12],[91,9,91,12],[92,9,92,12],[93,9,93,12],[124,9,124,12],[97,9,97,12],[95,9,95,12],[96,9,96,12],[123,9,123,12],[113,9,113,12],[117,9,117,12],[118,9,118,12],[120,9,120,12],[119,9,119,12],[114,9,114,12],[115,9,115,12],[110,9,110,12],[111,9,111,12],[89,5,89,8],[92,5,92,8],[93,5,93,8],[90,5,90,8],[91,5,91,8],[96,5,96,8],[94,5,94,8],[95,5,95,8],[124,5,124,8],[113,5,113,8],[118,5,118,8],[119,5,119,8],[120,5,120,8],[117,5,117,8],[114,5,114,8],[115,5,115,8],[111,5,111,8],[131,21,131,22],[118,13,118,15],[118,16,118,20],[120,16,120,20],[123,16,123,20],[132,21,132,22],[116,13,116,15],[116,16,116,20],[113,13,113,15],[113,16,113,20],[125,21,125,22],[122,21,122,22],[123,21,123,22],[124,13,124,15],[123,13,123,15],[118,21,118,22],[117,13,117,15],[115,13,115,15],[119,13,119,15],[119,16,119,20],[120,13,120,15],[114,13,114,15],[134,14,134,16],[134,17,134,18],[134,19,134,20],[134,21,134,22],[133,7,133,8],[133,17,133,18],[133,11,133,13],[133,14,133,16],[132,14,132,16],[132,17,132,18],[132,19,132,20],[133,9,133,10],[134,7,134,8],[134,9,134,10],[134,11,134,13],[136,18,136,19],[136,20,136,21],[137,5,137,7],[137,8,137,9],[137,10,137,11],[135,5,135,7],[135,8,135,9],[135,10,135,11],[135,18,135,19],[135,20,135,21],[137,18,137,19],[137,20,137,21],[136,5,136,7],[136,8,136,9],[136,10,136,11],[140,18,140,19],[138,5,138,7],[138,8,138,9],[138,10,138,11],[138,18,138,19],[138,20,138,21],[145,5,145,7],[145,8,145,9],[145,10,145,11],[143,12,143,17],[144,12,144,17],[145,20,145,21],[145,18,145,19],[139,5,139,7],[139,8,139,9],[139,10,139,11],[139,18,139,19],[139,20,139,21],[140,5,140,7],[142,5,142,7],[142,8,142,9],[142,10,142,11],[142,18,142,19],[142,20,142,21],[149,5,149,7],[149,8,149,9],[149,10,149,11],[149,18,149,19],[149,20,149,21],[148,8,148,9],[148,10,148,11],[148,20,148,21],[148,18,148,19],[148,5,148,7],[141,18,141,19],[141,20,141,21],[154,8,154,9],[155,8,155,9],[156,8,156,9],[157,8,157,9],[145,12,145,17],[146,12,146,17],[147,12,147,17],[148,12,148,17],[149,12,149,17],[150,12,150,17],[151,12,151,17],[153,12,153,17],[152,8,152,9],[153,8,153,9],[150,18,150,19],[150,20,150,21],[147,20,147,21],[147,18,147,19],[147,10,147,11],[147,8,147,9],[143,8,143,9],[143,10,143,11],[166,18,166,19],[166,20,166,21],[168,10,168,11],[151,5,151,7],[151,8,151,9],[151,10,151,11],[151,18,151,19],[151,20,151,21],[152,5,152,7],[153,5,153,7],[160,5,160,7],[155,5,155,7],[156,5,156,7],[157,5,157,7],[156,10,156,11],[160,10,160,11],[152,10,152,11],[153,10,153,11],[158,5,158,7],[159,5,159,7],[154,5,154,7],[154,18,154,19],[155,18,155,19],[156,18,156,19],[150,5,150,7],[150,8,150,9],[150,10,150,11],[158,8,158,9],[159,8,159,9],[97,5,97,8],[98,5,98,8],[108,16,108,20],[109,5,109,8],[98,13,98,15],[99,5,99,8],[98,9,98,12],[99,9,99,12],[101,13,101,15],[108,5,108,8],[108,9,108,12],[108,13,108,15],[109,13,109,15],[109,16,109,20],[99,13,99,15],[100,13,100,15],[98,16,98,20],[99,16,99,20],[141,8,141,9],[141,10,141,11],[140,8,140,9],[147,5,147,7],[143,5,143,7],[144,5,144,7],[140,10,140,11],[141,12,141,17],[142,12,142,17],[141,5,141,7],[110,16,110,20],[109,9,109,12],[111,13,111,15],[90,16,90,20],[91,16,91,20],[94,13,94,15],[92,16,92,20],[93,16,93,20],[97,13,97,15],[91,13,91,15],[92,13,92,15],[93,13,93,15],[94,16,94,20],[90,13,90,15],[95,16,95,20],[96,16,96,20],[97,16,97,20],[95,13,95,15],[96,13,96,15],[89,13,89,15],[89,16,89,20],[111,16,111,20],[100,16,100,20],[101,16,101,20],[143,18,143,19],[143,20,143,21],[146,18,146,19],[146,20,146,21],[144,18,144,19],[144,20,144,21],[133,19,133,20],[133,21,133,22],[119,21,119,22],[116,21,116,22],[114,16,114,20],[117,16,117,20],[115,16,115,20],[117,21,117,22],[114,21,114,22],[115,21,115,22],[112,21,112,22],[124,16,124,20],[112,16,112,20],[210,3,218,21],[121,13,121,15],[121,16,121,20],[122,5,122,8],[122,9,122,12],[122,13,122,15],[122,16,122,20],[121,5,121,8],[121,9,121,12],[192,4,194,23],[175,5,175,7],[175,8,175,9],[175,10,175,11],[165,5,165,7],[165,8,165,9],[165,10,165,11],[200,4,200,23],[201,4,203,23],[204,4,207,23],[161,5,161,7],[162,5,162,7],[162,18,162,19],[163,18,163,19],[163,5,163,7],[196,4,198,23],[164,5,164,7],[164,8,164,9],[164,10,164,11],[164,18,164,19],[146,5,146,7],[146,8,146,9],[146,10,146,11],[144,8,144,9],[144,10,144,11],[162,10,162,11],[163,10,163,11],[161,8,161,9],[162,8,162,9],[191,4,191,23],[169,5,169,7],[166,5,166,7],[166,8,166,9],[168,5,168,7],[168,8,168,9],[157,10,157,11],[154,10,154,11],[155,10,155,11],[159,10,159,11]]}
[]
[]
[]
[]
[]
[]
[]
[]
[]
[]
[]
[]
[]
[]
[]
[]
[]
[]
[]
[]
[]
[]
[]
[]
[]
[]
[]
[]
[null,null,null,null,null,null,null,null,null,null,null,null,null,"Name",null,null,null,null,{"$f":"CONCATENATE(Rebalance!F13,\" \",Rebalance!F14)","v":" "}]
[null,null,null,null,null,null,null,null,null,null,null,null,null,"Date",null,null,null,null,{"$f":"TODAY()","v":"2019-12-24"}]
[null,null,null,null,null,null,null,null,null,null,null,null,null,"Product Type",null,null,null,null,{"$f":"Rebalance!F12","v":0}]
[null,null,null,null,null,null,null,null,null,null,null,null,null,null,null,"Financial Adviser Name",null,null,null,0]
[null,null,null,null,null,null,null,null,null,null,null,null,null,null,null,"Financial Adviser Code",null,null,null,0]
[]
[]
[null,null,null,null,"Investor Details"]
[]
[]
[]
[null,null,null,null,null,"Entity/Investment Number:",null,null,null,{"$f":"Rebalance!F12","v":0}]
[null,null,null,null,null,"Names:",null,null,null,{"$f":"Rebalance!F13","v":0}]
[null,null,null,null,null,"Surname:",null,null,null,{"$f":"Rebalance!F14","v":0}]
[null,null,null,null,null,"Identity/Passport Number:",null,null,null,{"$f":"Rebalance!F15","v":0}]
[null,null,null,null,null,"Type of Client:",null,null,null,{"$f":"Rebalance!F16","v":0}]
[null,null,null,null,null,"Tax Number:",null,null,null,{"$f":"Rebalance!F17","v":0}]
[null,null,null,null,null,"Cellphone Number:",null,null,null,{"$f":"Rebalance!F18","v":0}]
[null,null,null,null,null,"Email Address:",null,null,null,{"$f":"Rebalance!F19","v":"qudsiyya786@gmail.com"}]
[]
[]
[]
[]
[]
[]
[]
[]
[]
[]
[]
[]
[]
[]
[]
[]
[]
[]
[]
[]
[]
[]
[]
[]
[]
[]
[]
[]
[]
[]
[]
[]
[]
[null,null,null,null,"Rebalance Details"]
[]
[]
[null,null,null,null,null,"Current Portfolio"]
[]
[null,null,null,null,null,"Manco",null,null,null,"Portfolio Name",null,null,null,"Percentage",null,null,"Market Value"]
[null,null,null,null,null,{"$f":"IF(Rebalance!D26=\"\",\"\",Rebalance!D26)","v":""},null,null,null,{"$f":"IF(Rebalance!G26=\"\",\"\",Rebalance!G26)","v":""},null,null,null,{"$f":"IF(Rebalance!S26=\"\",\"\",Rebalance!S26)","v":""},null,null,{"$f":"IF(Rebalance!Q26=\"\",\"\",Rebalance!Q26)","v":""}]
[null,null,null,null,null,{"$f":"IF(Rebalance!D27=\"\",\"\",Rebalance!D27)","v":""},null,null,null,{"$f":"IF(Rebalance!G27=\"\",\"\",Rebalance!G27)","v":""},null,null,null,{"$f":"IF(Rebalance!S27=\"\",\"\",Rebalance!S27)","v":""},null,null,{"$f":"IF(Rebalance!Q27=\"\",\"\",Rebalance!Q27)","v":""}]
[null,null,null,null,null,{"$f":"IF(Rebalance!D28=\"\",\"\",Rebalance!D28)","v":""},null,null,null,{"$f":"IF(Rebalance!G28=\"\",\"\",Rebalance!G28)","v":""},null,null,null,{"$f":"IF(Rebalance!S28=\"\",\"\",Rebalance!S28)","v":""},null,null,{"$f":"IF(Rebalance!Q28=\"\",\"\",Rebalance!Q28)","v":""}]
[null,null,null,null,null,{"$f":"IF(Rebalance!D29=\"\",\"\",Rebalance!D29)","v":""},null,null,null,{"$f":"IF(Rebalance!G29=\"\",\"\",Rebalance!G29)","v":""},null,null,null,{"$f":"IF(Rebalance!S29=\"\",\"\",Rebalance!S29)","v":""},null,null,{"$f":"IF(Rebalance!Q29=\"\",\"\",Rebalance!Q29)","v":""}]
[null,null,null,null,null,{"$f":"IF(Rebalance!D30=\"\",\"\",Rebalance!D30)","v":""},null,null,null,{"$f":"IF(Rebalance!G30=\"\",\"\",Rebalance!G30)","v":""},null,null,null,{"$f":"IF(Rebalance!S30=\"\",\"\",Rebalance!S30)","v":""},null,null,{"$f":"IF(Rebalance!Q30=\"\",\"\",Rebalance!Q30)","v":""}]
[null,null,null,null,null,{"$f":"IF(Rebalance!D31=\"\",\"\",Rebalance!D31)","v":""},null,null,null,{"$f":"IF(Rebalance!G31=\"\",\"\",Rebalance!G31)","v":""},null,null,null,{"$f":"IF(Rebalance!S31=\"\",\"\",Rebalance!S31)","v":""},null,null,{"$f":"IF(Rebalance!Q31=\"\",\"\",Rebalance!Q31)","v":""}]
[null,null,null,null,null,{"$f":"IF(Rebalance!D32=\"\",\"\",Rebalance!D32)","v":""},null,null,null,{"$f":"IF(Rebalance!G32=\"\",\"\",Rebalance!G32)","v":""},null,null,null,{"$f":"IF(Rebalance!S32=\"\",\"\",Rebalance!S32)","v":""},null,null,{"$f":"IF(Rebalance!Q32=\"\",\"\",Rebalance!Q32)","v":""}]
[null,null,null,null,null,{"$f":"IF(Rebalance!D33=\"\",\"\",Rebalance!D33)","v":""},null,null,null,{"$f":"IF(Rebalance!G33=\"\",\"\",Rebalance!G33)","v":""},null,null,null,{"$f":"IF(Rebalance!S33=\"\",\"\",Rebalance!S33)","v":""},null,null,{"$f":"IF(Rebalance!Q33=\"\",\"\",Rebalance!Q33)","v":""}]
[null,null,null,null,null,{"$f":"IF(Rebalance!D34=\"\",\"\",Rebalance!D34)","v":""},null,null,null,{"$f":"IF(Rebalance!G34=\"\",\"\",Rebalance!G34)","v":""},null,null,null,{"$f":"IF(Rebalance!S34=\"\",\"\",Rebalance!S34)","v":""},null,null,{"$f":"IF(Rebalance!Q34=\"\",\"\",Rebalance!Q34)","v":""}]
[null,null,null,null,null,{"$f":"IF(Rebalance!D35=\"\",\"\",Rebalance!D35)","v":""},null,null,null,{"$f":"IF(Rebalance!G35=\"\",\"\",Rebalance!G35)","v":""},null,null,null,{"$f":"IF(Rebalance!S35=\"\",\"\",Rebalance!S35)","v":""},null,null,{"$f":"IF(Rebalance!Q35=\"\",\"\",Rebalance!Q35)","v":""}]
[null,null,null,null,null,{"$f":"IF(Rebalance!D36=\"\",\"\",Rebalance!D36)","v":""},null,null,null,{"$f":"IF(Rebalance!G36=\"\",\"\",Rebalance!G36)","v":""},null,null,null,{"$f":"IF(Rebalance!S36=\"\",\"\",Rebalance!S36)","v":""},null,null,{"$f":"IF(Rebalance!Q36=\"\",\"\",Rebalance!Q36)","v":""}]
[null,null,null,null,null,{"$f":"IF(Rebalance!D37=\"\",\"\",Rebalance!D37)","v":""},null,null,null,{"$f":"IF(Rebalance!G37=\"\",\"\",Rebalance!G37)","v":""},null,null,null,{"$f":"IF(Rebalance!S37=\"\",\"\",Rebalance!S37)","v":""},null,null,{"$f":"IF(Rebalance!Q37=\"\",\"\",Rebalance!Q37)","v":""}]
[null,null,null,null,null,{"$f":"IF(Rebalance!D38=\"\",\"\",Rebalance!D38)","v":""},null,null,null,{"$f":"IF(Rebalance!G38=\"\",\"\",Rebalance!G38)","v":""},null,null,null,{"$f":"IF(Rebalance!S38=\"\",\"\",Rebalance!S38)","v":""},null,null,{"$f":"IF(Rebalance!Q38=\"\",\"\",Rebalance!Q38)","v":""}]
[null,null,null,null,null,{"$f":"IF(Rebalance!D39=\"\",\"\",Rebalance!D39)","v":""},null,null,null,{"$f":"IF(Rebalance!G39=\"\",\"\",Rebalance!G39)","v":""},null,null,null,{"$f":"IF(Rebalance!S39=\"\",\"\",Rebalance!S39)","v":""},null,null,{"$f":"IF(Rebalance!Q39=\"\",\"\",Rebalance!Q39)","v":""}]
[null,null,null,null,null,{"$f":"IF(Rebalance!D40=\"\",\"\",Rebalance!D40)","v":""},null,null,null,{"$f":"IF(Rebalance!G40=\"\",\"\",Rebalance!G40)","v":""},null,null,null,{"$f":"IF(Rebalance!S40=\"\",\"\",Rebalance!S40)","v":""},null,null,{"$f":"IF(Rebalance!Q40=\"\",\"\",Rebalance!Q40)","v":""}]
[null,null,null,null,null,null,null,null,null,"Total",null,null,null,{"$f":"SUM(N87:O101)","v":0},null,null,{"$f":"SUM(Q87:U101)","v":0},null,null,{"$f":"SUM(T87:U101)","v":0}]
[]
[]
[]
[null,null,null,null,null,"Rebalanced Portfolio"]
[]
[]
[null,null,null,null,null,"Manco",null,null,null,"Portfolio Name",null,null,null,"Percentage",null,null,"Rand Amount"]
[null,null,null,null,null,{"$f":"IF(Instructions!C62=\"\",\"\",Instructions!C62)","v":"Allan Gray Unit Trust Management Limited"},null,null,null,{"$f":"IF(Instructions!F62=\"\",\"\",Instructions!F62)","v":" Allan Gray Balanced Fund C"},null,null,null,{"$f":"IF(Instructions!L62=\"\",\"\",Instructions!L62)","v":0.08},null,null,{"$f":"IF(Instructions!J62=0,\"\",Instructions!J62)","v":""}]
[null,null,null,null,null,{"$f":"IF(Instructions!C63=\"\",\"\",Instructions!C63)","v":"Coronation Management Company"},null,null,null,{"$f":"IF(Instructions!F63=\"\",\"\",Instructions!F63)","v":" Coronation Balanced Plus Fund P"},null,null,null,{"$f":"IF(Instructions!L63=\"\",\"\",Instructions!L63)","v":0.08},null,null,{"$f":"IF(Instructions!J63=0,\"\",Instructions!J63)","v":""}]
[null,null,null,null,null,{"$f":"IF(Instructions!C64=\"\",\"\",Instructions!C64)","v":"Investec Fund Managers"},null,null,null,{"$f":"IF(Instructions!F64=\"\",\"\",Instructions!F64)","v":" Investec Global Franchise Feeder Fund H"},null,null,null,{"$f":"IF(Instructions!L64=\"\",\"\",Instructions!L64)","v":0.04},null,null,{"$f":"IF(Instructions!J64=0,\"\",Instructions!J64)","v":""}]
[null,null,null,null,null,{"$f":"IF(Instructions!C65=\"\",\"\",Instructions!C65)","v":"Investec Fund Managers"},null,null,null,{"$f":"IF(Instructions!F65=\"\",\"\",Instructions!F65)","v":" Investec Managed Fund H"},null,null,null,{"$f":"IF(Instructions!L65=\"\",\"\",Instructions!L65)","v":0.08},null,null,{"$f":"IF(Instructions!J65=0,\"\",Instructions!J65)","v":""}]
[null,null,null,null,null,{"$f":"IF(Instructions!C66=\"\",\"\",Instructions!C66)","v":"Prescient Management Company Ltd"},null,null,null,{"$f":"IF(Instructions!F66=\"\",\"\",Instructions!F66)","v":" Laurium Flexible Prescient Fund A1"},null,null,null,{"$f":"IF(Instructions!L66=\"\",\"\",Instructions!L66)","v":0.08},null,null,{"$f":"IF(Instructions!J66=0,\"\",Instructions!J66)","v":""}]
[null,null,null,null,null,{"$f":"IF(Instructions!C67=\"\",\"\",Instructions!C67)","v":"PSG Collective Investments Ltd"},null,null,null,{"$f":"IF(Instructions!F67=\"\",\"\",Instructions!F67)","v":" PSG Global Flexible Feeder Fund B"},null,null,null,{"$f":"IF(Instructions!L67=\"\",\"\",Instructions!L67)","v":0.04},null,null,{"$f":"IF(Instructions!J67=0,\"\",Instructions!J67)","v":""}]
[null,null,null,null,null,{"$f":"IF(Instructions!C68=\"\",\"\",Instructions!C68)","v":"Boutique Collective Investments (Pty) Ltd"},null,null,null,{"$f":"IF(Instructions!F68=\"\",\"\",Instructions!F68)","v":" Reitway BCI Global Property Fund C"},null,null,null,{"$f":"IF(Instructions!L68=\"\",\"\",Instructions!L68)","v":0.04},null,null,{"$f":"IF(Instructions!J68=0,\"\",Instructions!J68)","v":""}]
[null,null,null,null,null,{"$f":"IF(Instructions!C69=\"\",\"\",Instructions!C69)","v":"Satrix Managers (RF) (Pty) Ltd"},null,null,null,{"$f":"IF(Instructions!F69=\"\",\"\",Instructions!F69)","v":" Satrix Equally Weighted TOP 40 Index Fund B1"},null,null,null,{"$f":"IF(Instructions!L69=\"\",\"\",Instructions!L69)","v":0.09},null,null,{"$f":"IF(Instructions!J69=0,\"\",Instructions!J69)","v":""}]
[null,null,null,null,null,{"$f":"IF(Instructions!C70=\"\",\"\",Instructions!C70)","v":"Satrix Managers (RF) (Pty) Ltd"},null,null,null,{"$f":"IF(Instructions!F70=\"\",\"\",Instructions!F70)","v":" Satrix MSCI World Equity Index Feeder Fund B2"},null,null,null,{"$f":"IF(Instructions!L70=\"\",\"\",Instructions!L70)","v":0.05},null,null,{"$f":"IF(Instructions!J70=0,\"\",Instructions!J70)","v":""}]
[null,null,null,null,null,{"$f":"IF(Instructions!C71=\"\",\"\",Instructions!C71)","v":"Satrix Managers (RF) (Pty) Ltd"},null,null,null,{"$f":"IF(Instructions!F71=\"\",\"\",Instructions!F71)","v":" Satrix Property Index Fund B1"},null,null,null,{"$f":"IF(Instructions!L71=\"\",\"\",Instructions!L71)","v":0.05},null,null,{"$f":"IF(Instructions!J71=0,\"\",Instructions!J71)","v":""}]
[null,null,null,null,null,{"$f":"IF(Instructions!C72=\"\",\"\",Instructions!C72)","v":"STANLIB Collective Investments"},null,null,null,{"$f":"IF(Instructions!F72=\"\",\"\",Instructions!F72)","v":" STANLIB Absolute Plus Fund B1"},null,null,null,{"$f":"IF(Instructions!L72=\"\",\"\",Instructions!L72)","v":0.08},null,null,{"$f":"IF(Instructions!J72=0,\"\",Instructions!J72)","v":""}]
[null,null,null,null,null,{"$f":"IF(Instructions!C73=\"\",\"\",Instructions!C73)","v":"STANLIB Collective Investments"},null,null,null,{"$f":"IF(Instructions!F73=\"\",\"\",Instructions!F73)","v":" STANLIB Income Fund B6"},null,null,null,{"$f":"IF(Instructions!L73=\"\",\"\",Instructions!L73)","v":0.2},null,null,{"$f":"IF(Instructions!J73=0,\"\",Instructions!J73)","v":""}]
[null,null,null,null,null,{"$f":"IF(Instructions!C74=\"\",\"\",Instructions!C74)","v":"STANLIB Collective Investments"},null,null,null,{"$f":"IF(Instructions!F74=\"\",\"\",Instructions!F74)","v":" STANLIB S&P500  Index Feeder Fund B1"},null,null,null,{"$f":"IF(Instructions!L74=\"\",\"\",Instructions!L74)","v":0.05},null,null,{"$f":"IF(Instructions!J74=0,\"\",Instructions!J74)","v":""}]
[null,null,null,null,null,{"$f":"IF(Instructions!C75=\"\",\"\",Instructions!C75)","v":"Sygnia Asset Management (Pty) Limited"},null,null,null,{"$f":"IF(Instructions!F75=\"\",\"\",Instructions!F75)","v":" Sygnia 4th Industrial Revolution Global Equity Fund A"},null,null,null,{"$f":"IF(Instructions!L75=\"\",\"\",Instructions!L75)","v":0.04},null,null,{"$f":"IF(Instructions!J75=0,\"\",Instructions!J75)","v":""}]
[null,null,null,null,null,{"$f":"IF(Instructions!C76=\"\",\"\",Instructions!C76)","v":""},null,null,null,{"$f":"IF(Instructions!F76=\"\",\"\",Instructions!F76)","v":" "},null,null,null,{"$f":"IF(Instructions!L76=\"\",\"\",Instructions!L76)","v":""},null,null,{"$f":"IF(Instructions!J76=0,\"\",Instructions!J76)","v":""}]
[null,null,null,null,null,null,null,null,null,"Total",null,null,null,{"$f":"SUM(N110:O124)","v":1.0000000000000002},null,null,{"$f":"SUM(Q110:U124)","v":0},null,null,{"$f":"SUM(T110:U124)","v":0}]
[]
[]
[]
[null,null,null,null,null,"CGT:"]
[]
[null,null,null,null,null,"Total CGT incurred:",null,null,{"$f":"SUM(Instructions!R16:S55)","v":0}]
[]
[]
[null,null,null,null,null,"Instructions:"]
[]
[null,null,null,null,null,"Fund Sold",null,null,"Total Amount Sold",null,"% Sold",null,"Funds Purchased",null,null,null,null,null,"Amount Bought",null,"% Bought"]
[null,null,null,null,null,{"$f":"IF(Instructions!C16=\"\",\"\",Instructions!C16)","v":" Allan Gray Balanced Fund C"},null,null,{"$f":"IF(Instructions!F16=\"\",\"\",Instructions!F16)","v":40.783399999999801},null,{"$f":"IF(Instructions!H16=\"\",\"\",Instructions!H16)","v":1.419999999999999E-2},null,{"$f":"IF(Instructions!J16=\"\",\"\",Instructions!J16)","v":" Laurium Flexible Prescient Fund A1"},null,null,null,null,null,{"$f":"IF(Instructions!N16=\"\",\"\",Instructions!N16)","v":40.78},null,{"$f":"IF(Instructions!P16=\"\",\"\",Instructions!P16)","v":1},null,null,null,null,null,null,{"$f":"IF(U137=0,0,1)","v":1}]
[null,null,null,null,null,{"$f":"IF(Instructions!C17=\"\",\"\",Instructions!C17)","v":" Coronation Balanced Plus Fund P"},null,null,{"$f":"IF(Instructions!F17=\"\",\"\",Instructions!F17)","v":38.313400000000001},null,{"$f":"IF(Instructions!H17=\"\",\"\",Instructions!H17)","v":1.3299999999999979E-2},null,{"$f":"IF(Instructions!J17=\"\",\"\",Instructions!J17)","v":" Laurium Flexible Prescient Fund A1"},null,null,null,null,null,{"$f":"IF(Instructions!N17=\"\",\"\",Instructions!N17)","v":38.31},null,{"$f":"IF(Instructions!P17=\"\",\"\",Instructions!P17)","v":1},null,null,null,null,null,null,{"$f":"IF(U138=0,0,1)","v":1}]
[null,null,null,null,null,{"$f":"IF(Instructions!C18=\"\",\"\",Instructions!C18)","v":" Investec Global Franchise Feeder Fund H"},null,null,{"$f":"IF(Instructions!F18=\"\",\"\",Instructions!F18)","v":56.426699999999983},null,{"$f":"IF(Instructions!H18=\"\",\"\",Instructions!H18)","v":3.8200000000000012E-2},null,{"$f":"IF(Instructions!J18=\"\",\"\",Instructions!J18)","v":" Laurium Flexible Prescient Fund A1"},null,null,null,null,null,{"$f":"IF(Instructions!N18=\"\",\"\",Instructions!N18)","v":56.43},null,{"$f":"IF(Instructions!P18=\"\",\"\",Instructions!P18)","v":1},null,null,null,null,null,null,1]
[null,null,null,null,null,{"$f":"IF(Instructions!C19=\"\",\"\",Instructions!C19)","v":" Investec Managed Fund H"},null,null,{"$f":"IF(Instructions!F19=\"\",\"\",Instructions!F19)","v":54.733399999999619},null,{"$f":"IF(Instructions!H19=\"\",\"\",Instructions!H19)","v":1.8900000000000028E-2},null,{"$f":"IF(Instructions!J19=\"\",\"\",Instructions!J19)","v":" Laurium Flexible Prescient Fund A1"},null,null,null,null,null,{"$f":"IF(Instructions!N19=\"\",\"\",Instructions!N19)","v":54.73},null,{"$f":"IF(Instructions!P19=\"\",\"\",Instructions!P19)","v":1},null,null,null,null,null,null,1]
[null,null,null,null,null,{"$f":"IF(Instructions!C20=\"\",\"\",Instructions!C20)","v":" PSG Flexible Fund E"},null,null,{"$f":"IF(Instructions!F20=\"\",\"\",Instructions!F20)","v":2782.93},null,{"$f":"IF(Instructions!H20=\"\",\"\",Instructions!H20)","v":1},null,{"$f":"IF(Instructions!J20=\"\",\"\",Instructions!J20)","v":" Laurium Flexible Prescient Fund A1"},null,null,null,null,null,{"$f":"IF(Instructions!N20=\"\",\"\",Instructions!N20)","v":2649.25},null,{"$f":"IF(Instructions!P20=\"\",\"\",Instructions!P20)","v":0.95196429662262438},null,null,null,null,null,null,1]
[null,null,null,null,null,{"$f":"IF(Instructions!C21=\"\",\"\",Instructions!C21)","v":""},null,null,{"$f":"IF(Instructions!F21=\"\",\"\",Instructions!F21)","v":""},null,{"$f":"IF(Instructions!H21=\"\",\"\",Instructions!H21)","v":""},null,{"$f":"IF(Instructions!J21=\"\",\"\",Instructions!J21)","v":" Satrix Equally Weighted TOP 40 Index Fund B1"},null,null,null,null,null,{"$f":"IF(Instructions!N21=\"\",\"\",Instructions!N21)","v":53.94},null,{"$f":"IF(Instructions!P21=\"\",\"\",Instructions!P21)","v":1.9382449432792059E-2},null,null,null,null,null,null,1]
[null,null,null,null,null,{"$f":"IF(Instructions!C22=\"\",\"\",Instructions!C22)","v":""},null,null,{"$f":"IF(Instructions!F22=\"\",\"\",Instructions!F22)","v":""},null,{"$f":"IF(Instructions!H22=\"\",\"\",Instructions!H22)","v":""},null,{"$f":"IF(Instructions!J22=\"\",\"\",Instructions!J22)","v":" Satrix Property Index Fund B1"},null,null,null,null,null,{"$f":"IF(Instructions!N22=\"\",\"\",Instructions!N22)","v":79.739999999999995},null,{"$f":"IF(Instructions!P22=\"\",\"\",Instructions!P22)","v":2.8653253944583585E-2},null,null,null,null,null,null,1]
[null,null,null,null,null,{"$f":"IF(Instructions!C23=\"\",\"\",Instructions!C23)","v":" PSG Global Flexible Feeder Fund B"},null,null,{"$f":"IF(Instructions!F23=\"\",\"\",Instructions!F23)","v":6.6866999999999734},null,{"$f":"IF(Instructions!H23=\"\",\"\",Instructions!H23)","v":4.7000000000000375E-3},null,{"$f":"IF(Instructions!J23=\"\",\"\",Instructions!J23)","v":" Satrix Property Index Fund B1"},null,null,null,null,null,{"$f":"IF(Instructions!N23=\"\",\"\",Instructions!N23)","v":6.69},null,{"$f":"IF(Instructions!P23=\"\",\"\",Instructions!P23)","v":1},null,null,null,null,null,null,1]
[null,null,null,null,null,{"$f":"IF(Instructions!C24=\"\",\"\",Instructions!C24)","v":" Reitway BCI Global Property Fund C"},null,null,{"$f":"IF(Instructions!F24=\"\",\"\",Instructions!F24)","v":22.066699999999855},null,{"$f":"IF(Instructions!H24=\"\",\"\",Instructions!H24)","v":1.529999999999998E-2},null,{"$f":"IF(Instructions!J24=\"\",\"\",Instructions!J24)","v":" Satrix Property Index Fund B1"},null,null,null,null,null,{"$f":"IF(Instructions!N24=\"\",\"\",Instructions!N24)","v":10.01},null,{"$f":"IF(Instructions!P24=\"\",\"\",Instructions!P24)","v":0.45355686452197552},null,null,null,null,null,null,1]
[null,null,null,null,null,{"$f":"IF(Instructions!C25=\"\",\"\",Instructions!C25)","v":""},null,null,{"$f":"IF(Instructions!F25=\"\",\"\",Instructions!F25)","v":""},null,{"$f":"IF(Instructions!H25=\"\",\"\",Instructions!H25)","v":""},null,{"$f":"IF(Instructions!J25=\"\",\"\",Instructions!J25)","v":" STANLIB Income Fund B6"},null,null,null,null,null,{"$f":"IF(Instructions!N25=\"\",\"\",Instructions!N25)","v":4.92},null,{"$f":"IF(Instructions!P25=\"\",\"\",Instructions!P25)","v":0.22292705029451743},null,null,null,null,null,null,1]
[null,null,null,null,null,{"$f":"IF(Instructions!C26=\"\",\"\",Instructions!C26)","v":""},null,null,{"$f":"IF(Instructions!F26=\"\",\"\",Instructions!F26)","v":""},null,{"$f":"IF(Instructions!H26=\"\",\"\",Instructions!H26)","v":""},null,{"$f":"IF(Instructions!J26=\"\",\"\",Instructions!J26)","v":" Sygnia 4th Industrial Revolution Global Equity Fund A"},null,null,null,null,null,{"$f":"IF(Instructions!N26=\"\",\"\",Instructions!N26)","v":7.13},null,{"$f":"IF(Instructions!P26=\"\",\"\",Instructions!P26)","v":0.32306298142274581},null,null,null,null,null,null,1]
[null,null,null,null,null,{"$f":"IF(Instructions!C27=\"\",\"\",Instructions!C27)","v":" Satrix MSCI World Equity Index Feeder Fund B2"},null,null,{"$f":"IF(Instructions!F27=\"\",\"\",Instructions!F27)","v":47.258399999999938},null,{"$f":"IF(Instructions!H27=\"\",\"\",Instructions!H27)","v":2.5900000000000034E-2},null,{"$f":"IF(Instructions!J27=\"\",\"\",Instructions!J27)","v":" Satrix Equally Weighted TOP 40 Index Fund B1"},null,null,null,null,null,{"$f":"IF(Instructions!N27=\"\",\"\",Instructions!N27)","v":47.26},null,{"$f":"IF(Instructions!P27=\"\",\"\",Instructions!P27)","v":1},null,null,null,null,null,null,1]
[null,null,null,null,null,{"$f":"IF(Instructions!C28=\"\",\"\",Instructions!C28)","v":" STANLIB S&P500  Index Feeder Fund B1"},null,null,{"$f":"IF(Instructions!F28=\"\",\"\",Instructions!F28)","v":41.198399999999992},null,{"$f":"IF(Instructions!H28=\"\",\"\",Instructions!H28)","v":2.2700000000000053E-2},null,{"$f":"IF(Instructions!J28=\"\",\"\",Instructions!J28)","v":" STANLIB Absolute Plus Fund B1"},null,null,null,null,null,{"$f":"IF(Instructions!N28=\"\",\"\",Instructions!N28)","v":4.07},null,{"$f":"IF(Instructions!P28=\"\",\"\",Instructions!P28)","v":9.8786407766990297E-2},null,null,null,null,null,null,1]
[null,null,null,null,null,{"$f":"IF(Instructions!C29=\"\",\"\",Instructions!C29)","v":""},null,null,{"$f":"IF(Instructions!F29=\"\",\"\",Instructions!F29)","v":""},null,{"$f":"IF(Instructions!H29=\"\",\"\",Instructions!H29)","v":""},null,{"$f":"IF(Instructions!J29=\"\",\"\",Instructions!J29)","v":" STANLIB Income Fund B6"},null,null,null,null,null,{"$f":"IF(Instructions!N29=\"\",\"\",Instructions!N29)","v":37.130000000000003},null,{"$f":"IF(Instructions!P29=\"\",\"\",Instructions!P29)","v":0.90121359223300967},null,null,null,null,null,null,1]
[null,null,null,null,null,{"$f":"IF(Instructions!C30=\"\",\"\",Instructions!C30)","v":""},null,null,{"$f":"IF(Instructions!F30=\"\",\"\",Instructions!F30)","v":""},null,{"$f":"IF(Instructions!H30=\"\",\"\",Instructions!H30)","v":""},null,{"$f":"IF(Instructions!J30=\"\",\"\",Instructions!J30)","v":""},null,null,null,null,null,{"$f":"IF(Instructions!N30=\"\",\"\",Instructions!N30)","v":""},null,{"$f":"IF(Instructions!P30=\"\",\"\",Instructions!P30)","v":""},null,null,null,null,null,null,1]
[null,null,null,null,null,{"$f":"IF(Instructions!C31=\"\",\"\",Instructions!C31)","v":""},null,null,{"$f":"IF(Instructions!F31=\"\",\"\",Instructions!F31)","v":""},null,{"$f":"IF(Instructions!H31=\"\",\"\",Instructions!H31)","v":""},null,{"$f":"IF(Instructions!J31=\"\",\"\",Instructions!J31)","v":""},null,null,null,null,null,{"$f":"IF(Instructions!N31=\"\",\"\",Instructions!N31)","v":""},null,{"$f":"IF(Instructions!P31=\"\",\"\",Instructions!P31)","v":""},null,null,null,null,null,null,1]
[null,null,null,null,null,{"$f":"IF(Instructions!C32=\"\",\"\",Instructions!C32)","v":""},null,null,{"$f":"IF(Instructions!F32=\"\",\"\",Instructions!F32)","v":""},null,{"$f":"IF(Instructions!H32=\"\",\"\",Instructions!H32)","v":""},null,{"$f":"IF(Instructions!J32=\"\",\"\",Instructions!J32)","v":""},null,null,null,null,null,{"$f":"IF(Instructions!N32=\"\",\"\",Instructions!N32)","v":""},null,{"$f":"IF(Instructions!P32=\"\",\"\",Instructions!P32)","v":""},null,null,null,null,null,null,1]
[null,null,null,null,null,{"$f":"IF(Instructions!C33=\"\",\"\",Instructions!C33)","v":""},null,null,{"$f":"IF(Instructions!F33=\"\",\"\",Instructions!F33)","v":""},null,{"$f":"IF(Instructions!H33=\"\",\"\",Instructions!H33)","v":""},null,{"$f":"IF(Instructions!J33=\"\",\"\",Instructions!J33)","v":""},null,null,null,null,null,{"$f":"IF(Instructions!N33=\"\",\"\",Instructions!N33)","v":""},null,{"$f":"IF(Instructions!P33=\"\",\"\",Instructions!P33)","v":""},null,null,null,null,null,null,1]
[null,null,null,null,null,{"$f":"IF(Instructions!C34=\"\",\"\",Instructions!C34)","v":""},null,null,{"$f":"IF(Instructions!F34=\"\",\"\",Instructions!F34)","v":""},null,{"$f":"IF(Instructions!H34=\"\",\"\",Instructions!H34)","v":""},null,{"$f":"IF(Instructions!J34=\"\",\"\",Instructions!J34)","v":""},null,null,null,null,null,{"$f":"IF(Instructions!N34=\"\",\"\",Instructions!N34)","v":""},null,{"$f":"IF(Instructions!P34=\"\",\"\",Instructions!P34)","v":""},null,null,null,null,null,null,1]
[null,null,null,null,null,{"$f":"IF(Instructions!C35=\"\",\"\",Instructions!C35)","v":""},null,null,{"$f":"IF(Instructions!F35=\"\",\"\",Instructions!F35)","v":""},null,{"$f":"IF(Instructions!H35=\"\",\"\",Instructions!H35)","v":""},null,{"$f":"IF(Instructions!J35=\"\",\"\",Instructions!J35)","v":""},null,null,null,null,null,{"$f":"IF(Instructions!N35=\"\",\"\",Instructions!N35)","v":""},null,{"$f":"IF(Instructions!P35=\"\",\"\",Instructions!P35)","v":""},null,null,null,null,null,null,1]
[null,null,null,null,null,{"$f":"IF(Instructions!C36=\"\",\"\",Instructions!C36)","v":""},null,null,{"$f":"IF(Instructions!F36=\"\",\"\",Instructions!F36)","v":""},null,{"$f":"IF(Instructions!H36=\"\",\"\",Instructions!H36)","v":""},null,{"$f":"IF(Instructions!J36=\"\",\"\",Instructions!J36)","v":""},null,null,null,null,null,{"$f":"IF(Instructions!N36=\"\",\"\",Instructions!N36)","v":""},null,{"$f":"IF(Instructions!P36=\"\",\"\",Instructions!P36)","v":""},null,null,null,null,null,null,1]
[null,null,null,null,null,{"$f":"IF(Instructions!C37=\"\",\"\",Instructions!C37)","v":""},null,null,{"$f":"IF(Instructions!F37=\"\",\"\",Instructions!F37)","v":""},null,{"$f":"IF(Instructions!H37=\"\",\"\",Instructions!H37)","v":""},null,{"$f":"IF(Instructions!J37=\"\",\"\",Instructions!J37)","v":""},null,null,null,null,null,{"$f":"IF(Instructions!N37=\"\",\"\",Instructions!N37)","v":""},null,{"$f":"IF(Instructions!P37=\"\",\"\",Instructions!P37)","v":""},null,null,null,null,null,null,1]
[null,null,null,null,null,{"$f":"IF(Instructions!C38=\"\",\"\",Instructions!C38)","v":""},null,null,{"$f":"IF(Instructions!F38=\"\",\"\",Instructions!F38)","v":""},null,{"$f":"IF(Instructions!H38=\"\",\"\",Instructions!H38)","v":""},null,{"$f":"IF(Instructions!J38=\"\",\"\",Instructions!J38)","v":""},null,null,null,null,null,{"$f":"IF(Instructions!N38=\"\",\"\",Instructions!N38)","v":""},null,{"$f":"IF(Instructions!P38=\"\",\"\",Instructions!P38)","v":""},null,null,null,null,null,null,1]
[null,null,null,null,null,{"$f":"IF(Instructions!C39=\"\",\"\",Instructions!C39)","v":""},null,null,{"$f":"IF(Instructions!F39=\"\",\"\",Instructions!F39)","v":""},null,{"$f":"IF(Instructions!H39=\"\",\"\",Instructions!H39)","v":""},null,{"$f":"IF(Instructions!J39=\"\",\"\",Instructions!J39)","v":""},null,null,null,null,null,{"$f":"IF(Instructions!N39=\"\",\"\",Instructions!N39)","v":""},null,{"$f":"IF(Instructions!P39=\"\",\"\",Instructions!P39)","v":""},null,null,null,null,null,null,1]
[null,null,null,null,null,{"$f":"IF(Instructions!C40=\"\",\"\",Instructions!C40)","v":""},null,null,{"$f":"IF(Instructions!F40=\"\",\"\",Instructions!F40)","v":""},null,{"$f":"IF(Instructions!H40=\"\",\"\",Instructions!H40)","v":""},null,{"$f":"IF(Instructions!J40=\"\",\"\",Instructions!J40)","v":""},null,null,null,null,null,{"$f":"IF(Instructions!N40=\"\",\"\",Instructions!N40)","v":""},null,{"$f":"IF(Instructions!P40=\"\",\"\",Instructions!P40)","v":""},null,null,null,null,null,null,1]
[null,null,null,null,null,{"$f":"IF(Instructions!C41=\"\",\"\",Instructions!C41)","v":""},null,null,{"$f":"IF(Instructions!F41=\"\",\"\",Instructions!F41)","v":""},null,{"$f":"IF(Instructions!H41=\"\",\"\",Instructions!H41)","v":""},null,{"$f":"IF(Instructions!J41=\"\",\"\",Instructions!J41)","v":""},null,null,null,null,null,{"$f":"IF(Instructions!N41=\"\",\"\",Instructions!N41)","v":""},null,{"$f":"IF(Instructions!P41=\"\",\"\",Instructions!P41)","v":""},null,null,null,null,null,null,1]
[null,null,null,null,null,{"$f":"IF(Instructions!C42=\"\",\"\",Instructions!C42)","v":""},null,null,{"$f":"IF(Instructions!F42=\"\",\"\",Instructions!F42)","v":""},null,{"$f":"IF(Instructions!H42=\"\",\"\",Instructions!H42)","v":""},null,{"$f":"IF(Instructions!J42=\"\",\"\",Instructions!J42)","v":""},null,null,null,null,null,{"$f":"IF(Instructions!N42=\"\",\"\",Instructions!N42)","v":""},null,{"$f":"IF(Instructions!P42=\"\",\"\",Instructions!P42)","v":""},null,null,null,null,null,null,1]
[null,null,null,null,null,{"$f":"IF(Instructions!C43=\"\",\"\",Instructions!C43)","v":""},null,null,{"$f":"IF(Instructions!F43=\"\",\"\",Instructions!F43)","v":""},null,{"$f":"IF(Instructions!H43=\"\",\"\",Instructions!H43)","v":""},null,{"$f":"IF(Instructions!J43=\"\",\"\",Instructions!J43)","v":""},null,null,null,null,null,{"$f":"IF(Instructions!N43=\"\",\"\",Instructions!N43)","v":""},null,{"$f":"IF(Instructions!P43=\"\",\"\",Instructions!P43)","v":""},null,null,null,null,null,null,1]
[null,null,null,null,null,{"$f":"IF(Instructions!C44=\"\",\"\",Instructions!C44)","v":""},null,null,{"$f":"IF(Instructions!F44=\"\",\"\",Instructions!F44)","v":""},null,{"$f":"IF(Instructions!H44=\"\",\"\",Instructions!H44)","v":""},null,{"$f":"IF(Instructions!J44=\"\",\"\",Instructions!J44)","v":""},null,null,null,null,null,{"$f":"IF(Instructions!N44=\"\",\"\",Instructions!N44)","v":""},null,{"$f":"IF(Instructions!P44=\"\",\"\",Instructions!P44)","v":""},null,null,null,null,null,null,1]
[null,null,null,null,null,{"$f":"IF(Instructions!C45=\"\",\"\",Instructions!C45)","v":""},null,null,{"$f":"IF(Instructions!F45=\"\",\"\",Instructions!F45)","v":""},null,{"$f":"IF(Instructions!H45=\"\",\"\",Instructions!H45)","v":""},null,{"$f":"IF(Instructions!J45=\"\",\"\",Instructions!J45)","v":""},null,null,null,null,null,{"$f":"IF(Instructions!N45=\"\",\"\",Instructions!N45)","v":""},null,{"$f":"IF(Instructions!P45=\"\",\"\",Instructions!P45)","v":""},null,null,null,null,null,null,1]
[null,null,null,null,null,{"$f":"IF(Instructions!C46=\"\",\"\",Instructions!C46)","v":""},null,null,{"$f":"IF(Instructions!F46=\"\",\"\",Instructions!F46)","v":""},null,{"$f":"IF(Instructions!H46=\"\",\"\",Instructions!H46)","v":""},null,{"$f":"IF(Instructions!J46=\"\",\"\",Instructions!J46)","v":""},null,null,null,null,null,{"$f":"IF(Instructions!N46=\"\",\"\",Instructions!N46)","v":""},null,{"$f":"IF(Instructions!P46=\"\",\"\",Instructions!P46)","v":""},null,null,null,null,null,null,1]
[null,null,null,null,null,{"$f":"IF(Instructions!C47=\"\",\"\",Instructions!C47)","v":""},null,null,{"$f":"IF(Instructions!F47=\"\",\"\",Instructions!F47)","v":""},null,{"$f":"IF(Instructions!H47=\"\",\"\",Instructions!H47)","v":""},null,{"$f":"IF(Instructions!J47=\"\",\"\",Instructions!J47)","v":""},null,null,null,null,null,{"$f":"IF(Instructions!N47=\"\",\"\",Instructions!N47)","v":""},null,{"$f":"IF(Instructions!P47=\"\",\"\",Instructions!P47)","v":""},null,null,null,null,null,null,1]
[null,null,null,null,null,{"$f":"IF(Instructions!C48=\"\",\"\",Instructions!C48)","v":""},null,null,{"$f":"IF(Instructions!F48=\"\",\"\",Instructions!F48)","v":""},null,{"$f":"IF(Instructions!H48=\"\",\"\",Instructions!H48)","v":""},null,{"$f":"IF(Instructions!J48=\"\",\"\",Instructions!J48)","v":""},null,null,null,null,null,{"$f":"IF(Instructions!N48=\"\",\"\",Instructions!N48)","v":""},null,{"$f":"IF(Instructions!P48=\"\",\"\",Instructions!P48)","v":""},null,null,null,null,null,null,1]
[null,null,null,null,null,{"$f":"IF(Instructions!C49=\"\",\"\",Instructions!C49)","v":""},null,null,{"$f":"IF(Instructions!F49=\"\",\"\",Instructions!F49)","v":""},null,{"$f":"IF(Instructions!H49=\"\",\"\",Instructions!H49)","v":""},null,{"$f":"IF(Instructions!J49=\"\",\"\",Instructions!J49)","v":""},null,null,null,null,null,{"$f":"IF(Instructions!N49=\"\",\"\",Instructions!N49)","v":""},null,{"$f":"IF(Instructions!P49=\"\",\"\",Instructions!P49)","v":""},null,null,null,null,null,null,1]
[null,null,null,null,null,{"$f":"IF(Instructions!C50=\"\",\"\",Instructions!C50)","v":""},null,null,{"$f":"IF(Instructions!F50=\"\",\"\",Instructions!F50)","v":""},null,{"$f":"IF(Instructions!H50=\"\",\"\",Instructions!H50)","v":""},null,{"$f":"IF(Instructions!J50=\"\",\"\",Instructions!J50)","v":""},null,null,null,null,null,{"$f":"IF(Instructions!N50=\"\",\"\",Instructions!N50)","v":""},null,{"$f":"IF(Instructions!P50=\"\",\"\",Instructions!P50)","v":""},null,null,null,null,null,null,1]
[null,null,null,null,null,{"$f":"IF(Instructions!C51=\"\",\"\",Instructions!C51)","v":""},null,null,{"$f":"IF(Instructions!F51=\"\",\"\",Instructions!F51)","v":""},null,{"$f":"IF(Instructions!H51=\"\",\"\",Instructions!H51)","v":""},null,{"$f":"IF(Instructions!J51=\"\",\"\",Instructions!J51)","v":""},null,null,null,null,null,{"$f":"IF(Instructions!N51=\"\",\"\",Instructions!N51)","v":""},null,{"$f":"IF(Instructions!P51=\"\",\"\",Instructions!P51)","v":""},null,null,null,null,null,null,1]
[null,null,null,null,null,{"$f":"IF(Instructions!C52=\"\",\"\",Instructions!C52)","v":""},null,null,{"$f":"IF(Instructions!F52=\"\",\"\",Instructions!F52)","v":""},null,{"$f":"IF(Instructions!H52=\"\",\"\",Instructions!H52)","v":""},null,{"$f":"IF(Instructions!J52=\"\",\"\",Instructions!J52)","v":""},null,null,null,null,null,{"$f":"IF(Instructions!N52=\"\",\"\",Instructions!N52)","v":""},null,{"$f":"IF(Instructions!P52=\"\",\"\",Instructions!P52)","v":""},null,null,null,null,null,null,1]
[null,null,null,null,null,{"$f":"IF(Instructions!C53=\"\",\"\",Instructions!C53)","v":""},null,null,{"$f":"IF(Instructions!F53=\"\",\"\",Instructions!F53)","v":""},null,{"$f":"IF(Instructions!H53=\"\",\"\",Instructions!H53)","v":""},null,{"$f":"IF(Instructions!J53=\"\",\"\",Instructions!J53)","v":""},null,null,null,null,null,{"$f":"IF(Instructions!N53=\"\",\"\",Instructions!N53)","v":""},null,{"$f":"IF(Instructions!P53=\"\",\"\",Instructions!P53)","v":""},null,null,null,null,null,null,1]
[null,null,null,null,null,{"$f":"IF(Instructions!C54=\"\",\"\",Instructions!C54)","v":""},null,null,{"$f":"IF(Instructions!F54=\"\",\"\",Instructions!F54)","v":""},null,{"$f":"IF(Instructions!H54=\"\",\"\",Instructions!H54)","v":""},null,{"$f":"IF(Instructions!J54=\"\",\"\",Instructions!J54)","v":""},null,null,null,null,null,{"$f":"IF(Instructions!N54=\"\",\"\",Instructions!N54)","v":""},null,{"$f":"IF(Instructions!P54=\"\",\"\",Instructions!P54)","v":""},null,null,null,null,null,null,1]
[null,null,null,null,null,{"$f":"IF(Instructions!C55=\"\",\"\",Instructions!C55)","v":""},null,null,{"$f":"IF(Instructions!F55=\"\",\"\",Instructions!F55)","v":""},null,{"$f":"IF(Instructions!H55=\"\",\"\",Instructions!H55)","v":""},null,{"$f":"IF(Instructions!J55=\"\",\"\",Instructions!J55)","v":""},null,null,null,null,null,{"$f":"IF(Instructions!N55=\"\",\"\",Instructions!N55)","v":""},null,{"$f":"IF(Instructions!P55=\"\",\"\",Instructions!P55)","v":""},null,null,null,null,null,null,1]
[]
[]
[]
[]
[null,null,null,null,"Signed at",null,null,"  ",null,null,null,null,null,null,null,"On"]
[]
[null,null,null,null,"Full Name"]
[]
[]
[null,null,null,null,"Signature"]
[]
[]
[]
[null,null,null,null,"Introduction to STANLIB"]
[]
[null,null,null,null,"STANLIB is wholly owned by the Liberty Group of which the Standard Bank Group is a major shareholder, together with a diversified spread of BEE organisations dedicated to the advancement of the previously disadvantaged. STANLIB has over 400 000 clients and over R300 billion of assets under management, making us the third largest manager of investments in South Africa and the largest unit trust company in the country. We have a presence in eight African countries."]
[null,null,null,null,"STANLIB provides access to one of the most comprehensive ranges of unit trusts in the country. We also offer our clients the opportunity to\ninvest in a wide range of linked products, retirement vehicles and funds from other companies in order to meet clients' diverse needs."]
[]
[]
[]
[null,null,null,null,"STANLIB stands behind one of the most innovative financial services industry projects, FundiSA, which aims to encourage savings for tertiary education by offering a bonus to investors. STANLIB also has an investment academy for previously disadvantaged students and provides financial aid to learners through bursaries."]
[]
[]
[]
[]
[null,null,null,null,"The information provided herein is the possession of STANLIB and are protected by copyright and intellectual property laws. The information may not be reproduced or distributed without the explicit consent of STANLIB."]
[]
[]
[null,null,null,null,"STANLIB has taken care to ensure that all information provided herein is true and accurate. STANLIB will therefore not be held responsible for any inaccuracies in the information herein. STANLIB shall not be responsible and disclaims all loss, liability or expense of any nature whatsoever which may be attributable (directly, indirectly or consequentially) to the use of the information provided."]
[]
[]
[]
[null,null,null,null,"STANLIB Wealth Management Limited is an authorised Financial Services Provider in terms of the Financial Advisory and Intermediary Services Act No. 37 of 2002 (Licence No. 26/10/590)."]
[]
[null,null,null,"PLEASE NOTE:  The objective of this is to assist the user with calculating the switch/rebalance instruction.  The user is still required to provide STANLIB with the relevant form duly completed, sign and submit a switch instruction via our website, www.stanlib.com or STANLIB Online. "]

{"sheet":"Proposal - S","index":12,"n_rows":212,"n_cols":21,"rows_kept":212,"cut":false,"hidden":false,"merged":[[174,12,174,17],[175,12,175,17],[202,4,204,23],[205,4,208,23],[174,20,174,21],[175,5,175,7],[175,8,175,9],[175,10,175,11],[175,18,175,19],[175,20,175,21],[174,5,174,7],[174,8,174,9],[174,10,174,11],[174,18,174,19],[180,7,180,14],[180,16,180,18],[182,7,182,14],[185,7,185,14],[192,4,192,23],[193,4,195,23],[197,4,199,23],[201,4,201,23],[172,20,172,21],[173,5,173,7],[173,8,173,9],[173,10,173,11],[173,18,173,19],[173,20,173,21],[172,5,172,7],[172,8,172,9],[172,10,172,11],[172,18,172,19],[172,12,172,17],[173,12,173,17],[170,20,170,21],[171,5,171,7],[171,8,171,9],[171,10,171,11],[171,18,171,19],[171,20,171,21],[170,5,170,7],[170,8,170,9],[170,10,170,11],[170,18,170,19],[170,12,170,17],[171,12,171,17],[168,20,168,21],[169,5,169,7],[169,8,169,9],[169,10,169,11],[169,18,169,19],[169,20,169,21],[168,5,168,7],[168,8,168,9],[168,10,168,11],[168,18,168,19],[168,12,168,17],[169,12,169,17],[166,20,166,21],[167,5,167,7],[167,8,167,9],[167,10,167,11],[167,18,167,19],[167,20,167,21],[166,5,166,7],[166,8,166,9],[166,10,166,11],[166,18,166,19],[166,12,166,17],[167,12,167,17],[164,20,164,21],[165,5,165,7],[165,8,165,9],[165,10,165,11],[165,18,165,19],[165,20,165,21],[164,5,164,7],[164,8,164,9],[164,10,164,11],[164,18,164,19],[164,12,164,17],[165,12,165,17],[162,20,162,21],[163,5,163,7],[163,8,163,9],[163,10,163,11],[163,18,163,19],[163,20,163,21],[162,5,162,7],[162,8,162,9],[162,10,162,11],[162,18,162,19],[162,12,162,17],[163,12,163,17],[160,20,160,21],[161,5,161,7],[161,8,161,9],[161,10,161,11],[161,18,161,19],[161,20,161,21],[160,5,160,7],[160,8,160,9],[160,10,160,11],[160,18,160,19],[160,12,160,17],[161,12,161,17],[158,20,158,21],[159,5,159,7],[159,8,159,9],[159,10,159,11],[159,18,159,19],[159,20,159,21],[158,5,158,7],[158,8,158,9],[158,10,158,11],[158,18,158,19],[158,12,158,17],[159,12,159,17],[156,20,156,21],[157,5,157,7],[157,8,157,9],[157,10,157,11],[157,18,157,19],[157,20,157,21],[156,5,156,7],[156,8,156,9],[156,10,156,11],[156,18,156,19],[156,12,156,17],[157,12,157,17],[154,20,154,21],[155,5,155,7],[155,8,155,9],[155,10,155,11],[155,18,155,19],[155,20,155,21],[154,5,154,7],[154,8,154,9],[154,10,154,11],[154,18,154,19],[154,12,154,17],[155,12,155,17],[152,20,152,21],[153,5,153,7],[153,8,153,9],[153,10,153,11],[153,18,153,19],[153,20,153,21],[152,5,152,7],[152,8,152,9],[152,10,152,11],[152,18,152,19],[152,12,152,17],[153,12,153,17],[150,20,150,21],[151,5,151,7],[151,8,151,9],[151,10,151,11],[151,18,151,19],[151,20,151,21],[150,5,150,7],[150,8,150,9],[150,10,150,11],[150,18,150,19],[150,12,150,17],[151,12,151,17],[148,20,148,21],[149,5,149,7],[149,8,149,9],[149,10,149,11],[149,18,149,19],[149,20,149,21],[148,5,148,7],[148,8,148,9],[148,10,148,11],[148,18,148,19],[148,12,148,17],[149,12,149,17],[146,20,146,21],[147,5,147,7],[147,8,147,9],[147,10,147,11],[147,18,147,19],[147,20,147,21],[146,5,146,7],[146,8,146,9],[146,10,146,11],[146,18,146,19],[146,12,146,17],[147,12,147,17],[144,20,144,21],[145,5,145,7],[145,8,145,9],[145,10,145,11],[145,18,145,19],[145,20,145,21],[144,5,144,7],[144,8,144,9],[144,10,144,11],[144,18,144,19],[144,12,144,17],[145,12,145,17],[142,20,142,21],[143,5,143,7],[143,8,143,9],[143,10,143,11],[143,18,143,19],[143,20,143,21],[142,5,142,7],[142,8,142,9],[142,10,142,11],[142,18,142,19],[142,12,142,17],[143,12,143,17],[140,20,140,21],[141,5,141,7],[141,8,141,9],[141,10,141,11],[141,18,141,19],[141,20,141,21],[140,5,140,7],[140,8,140,9],[140,10,140,11],[140,18,140,19],[140,12,140,17],[141,12,141,17],[138,20,138,21],[139,5,139,7],[139,8,139,9],[139,10,139,11],[139,18,139,19],[139,20,139,21],[138,5,138,7],[138,8,138,9],[138,10,138,11],[138,18,138,19],[138,12,138,17],[139,12,139,17],[136,20,136,21],[137,5,137,7],[137,8,137,9],[137,10,137,11],[137,18,137,19],[137,20,137,21],[136,5,136,7],[136,8,136,9],[136,10,136,11],[136,18,136,19],[136,12,136,17],[137,12,137,17],[135,5,135,7],[135,8,135,9],[135,10,135,11],[135,18,135,19],[135,20,135,21],[134,5,134,6],[134,7,134,8],[134,9,134,10],[134,11,134,13],[134,14,134,16],[134,17,134,18],[135,12,135,17],[133,7,133,8],[133,9,133,10],[133,11,133,13],[133,14,133,16],[133,17,133,18],[133,19,133,20],[133,21,133,22],[134,19,134,20],[134,21,134,22],[132,5,132,6],[132,7,132,8],[132,9,132,10],[132,11,132,13],[132,14,132,16],[132,17,132,18],[126,21,126,22],[127,21,127,22],[128,21,128,22],[129,21,129,22],[130,21,130,22],[131,21,131,22],[132,19,132,20],[132,21,132,22],[124,5,124,8],[124,9,124,12],[124,13,124,15],[124,16,124,20],[124,21,124,22],[125,21,125,22],[122,5,122,8],[122,9,122,12],[122,13,122,15],[122,16,122,20],[122,21,122,22],[123,5,123,8],[123,9,123,12],[123,13,123,15],[123,16,123,20],[123,21,123,22],[120,5,120,8],[120,9,120,12],[120,13,120,15],[120,16,120,20],[120,21,120,22],[121,5,121,8],[121,9,121,12],[121,13,121,15],[121,16,121,20],[121,21,121,22],[118,5,118,8],[118,9,118,12],[118,13,118,15],[118,16,118,20],[118,21,118,22],[119,5,119,8],[119,9,119,12],[119,13,119,15],[119,16,119,20],[119,21,119,22],[116,5,116,8],[116,9,116,12],[116,13,116,15],[116,16,116,20],[116,21,116,22],[117,5,117,8],[117,9,117,12],[117,13,117,15],[117,16,117,20],[117,21,117,22],[114,5,114,8],[114,9,114,12],[114,13,114,15],[114,16,114,20],[114,21,114,22],[115,5,115,8],[115,9,115,12],[115,13,115,15],[115,16,115,20],[115,21,115,22],[112,5,112,8],[112,9,112,12],[112,13,112,15],[112,16,112,20],[112,21,112,22],[113,5,113,8],[113,9,113,12],[113,13,113,15],[113,16,113,20],[113,21,113,22],[110,5,110,8],[110,9,110,12],[110,13,110,15],[110,16,110,20],[110,21,110,22],[111,5,111,8],[111,9,111,12],[111,13,111,15],[111,16,111,20],[111,21,111,22],[108,5,108,8],[108,9,108,12],[108,13,108,15],[108,16,108,20],[108,21,108,22],[109,5,109,8],[109,9,109,12],[109,13,109,15],[109,16,109,20],[109,21,109,22],[100,5,100,8],[100,9,100,12],[100,13,100,15],[100,16,100,20],[101,5,101,8],[101,9,101,12],[101,13,101,15],[101,16,101,20],[98,5,98,8],[98,9,98,12],[98,13,98,15],[98,16,98,20],[99,5,99,8],[99,9,99,12],[99,13,99,15],[99,16,99,20],[96,5,96,8],[96,9,96,12],[96,13,96,15],[96,16,96,20],[97,5,97,8],[97,9,97,12],[97,13,97,15],[97,16,97,20],[94,5,94,8],[94,9,94,12],[94,13,94,15],[94,16,94,20],[95,5,95,8],[95,9,95,12],[95,13,95,15],[95,16,95,20],[87,5,87,8],[87,9,87,12],[87,13,87,15],[87,16,87,20],[92,5,92,8],[92,9,92,12],[92,13,92,15],[92,16,92,20],[93,5,93,8],[93,9,93,12],[93,13,93,15],[93,16,93,20],[90,5,90,8],[90,9,90,12],[90,13,90,15],[90,16,90,20],[91,5,91,8],[91,9,91,12],[91,13,91,15],[91,16,91,20],[211,4,219,22],[80,4,80,23],[85,5,85,8],[85,9,85,12],[85,13,85,15],[85,16,85,20],[28,18,28,22],[29,18,29,22],[30,18,30,22],[31,19,31,22],[32,19,32,22],[35,4,35,23],[88,5,88,8],[88,9,88,12],[88,13,88,15],[88,16,88,20],[89,5,89,8],[89,9,89,12],[89,13,89,15],[89,16,89,20],[86,5,86,8],[86,9,86,12],[86,13,86,15],[86,16,86,20]]}
[]
[]
[]
[]
[]
[]
[]
[]
[]
[]
[]
[]
[]
[]
[]
[]
[]
[]
[]
[]
[]
[]
[]
[]
[]
[]
[]
[]
[null,null,null,null,null,null,null,null,null,null,null,null,null,"Name",null,null,null,null,{"$f":"CONCATENATE(Switch!F13,\" \",Switch!F14)","v":" "}]
[null,null,null,null,null,null,null,null,null,null,null,null,null,"Date",null,null,null,null,{"$f":"TODAY()","v":"2019-12-24"}]
[null,null,null,null,null,null,null,null,null,null,null,null,null,"Product Type",null,null,null,null,{"$f":"Switch!F12","v":0}]
[null,null,null,null,null,null,null,null,null,null,null,null,null,null,null,"Financial Adviser Name",null,null,null,0]
[null,null,null,null,null,null,null,null,null,null,null,null,null,null,null,"Financial Adviser Code",null,null,null,0]
[]
[]
[null,null,null,null,"Investor Details"]
[]
[]
[]
[null,null,null,null,null,"Entity/Investment Number:",null,null,null,{"$f":"Switch!F12","v":0}]
[null,null,null,null,null,"Names:",null,null,null,{"$f":"Switch!F13","v":0}]
[null,null,null,null,null,"Surname:",null,null,null,{"$f":"Switch!F14","v":0}]
[null,null,null,null,null,"Identity/Passport Number:",null,null,null,{"$f":"Switch!F15","v":0}]
[null,null,null,null,null,"Type of Client:",null,null,null,{"$f":"Switch!F16","v":0}]
[null,null,null,null,null,"Tax Number:",null,null,null,{"$f":"Switch!F17","v":0}]
[null,null,null,null,null,"Cellphone Number:",null,null,null,{"$f":"Switch!F18","v":0}]
[null,null,null,null,null,"Email Address:",null,null,null,{"$f":"Switch!F19","v":0}]
[]
[]
[]
[]
[]
[]
[]
[]
[]
[]
[]
[]
[]
[]
[]
[]
[]
[]
[]
[]
[]
[]
[]
[]
[]
[]
[]
[]
[]
[]
[]
[]
[]
[null,null,null,null,"Switch Details"]
[]
[]
[null,null,null,null,null,"Switch From:"]
[]
[null,null,null,null,null,"Manco",null,null,null,"Portfolio Name",null,null,null,"Percentage",null,null,"Market Value"]
[null,null,null,null,null,{"$f":"IF(Switch!D26=\"\",\"\",Switch!D26)","v":""},null,null,null,{"$f":"IF(Switch!G26=\"\",\"\",Switch!G26)","v":""},null,null,null,{"$f":"IF(Switch!U26=\"\",\"\",Switch!U26)","v":""},null,null,{"$f":"IF(Switch!V26=\"\",\"\",Switch!V26)","v":0}]
[null,null,null,null,null,{"$f":"IF(Switch!D27=\"\",\"\",Switch!D27)","v":""},null,null,null,{"$f":"IF(Switch!G27=\"\",\"\",Switch!G27)","v":""},null,null,null,{"$f":"IF(Switch!U27=\"\",\"\",Switch!U27)","v":""},null,null,{"$f":"IF(Switch!V27=\"\",\"\",Switch!V27)","v":0}]
[null,null,null,null,null,{"$f":"IF(Switch!D28=\"\",\"\",Switch!D28)","v":""},null,null,null,{"$f":"IF(Switch!G28=\"\",\"\",Switch!G28)","v":""},null,null,null,{"$f":"IF(Switch!U28=\"\",\"\",Switch!U28)","v":""},null,null,{"$f":"IF(Switch!V28=\"\",\"\",Switch!V28)","v":0}]
[null,null,null,null,null,{"$f":"IF(Switch!D29=\"\",\"\",Switch!D29)","v":""},null,null,null,{"$f":"IF(Switch!G29=\"\",\"\",Switch!G29)","v":""},null,null,null,{"$f":"IF(Switch!U29=\"\",\"\",Switch!U29)","v":""},null,null,{"$f":"IF(Switch!V29=\"\",\"\",Switch!V29)","v":0}]
[null,null,null,null,null,{"$f":"IF(Switch!D30=\"\",\"\",Switch!D30)","v":""},null,null,null,{"$f":"IF(Switch!G30=\"\",\"\",Switch!G30)","v":""},null,null,null,{"$f":"IF(Switch!U30=\"\",\"\",Switch!U30)","v":""},null,null,{"$f":"IF(Switch!V30=\"\",\"\",Switch!V30)","v":0}]
[null,null,null,null,null,{"$f":"IF(Switch!D31=\"\",\"\",Switch!D31)","v":""},null,null,null,{"$f":"IF(Switch!G31=\"\",\"\",Switch!G31)","v":""},null,null,null,{"$f":"IF(Switch!U31=\"\",\"\",Switch!U31)","v":""},null,null,{"$f":"IF(Switch!V31=\"\",\"\",Switch!V31)","v":0}]
[null,null,null,null,null,{"$f":"IF(Switch!D32=\"\",\"\",Switch!D32)","v":""},null,null,null,{"$f":"IF(Switch!G32=\"\",\"\",Switch!G32)","v":""},null,null,null,{"$f":"IF(Switch!U32=\"\",\"\",Switch!U32)","v":""},null,null,{"$f":"IF(Switch!V32=\"\",\"\",Switch!V32)","v":0}]
[null,null,null,null,null,{"$f":"IF(Switch!D33=\"\",\"\",Switch!D33)","v":""},null,null,null,{"$f":"IF(Switch!G33=\"\",\"\",Switch!G33)","v":""},null,null,null,{"$f":"IF(Switch!U33=\"\",\"\",Switch!U33)","v":""},null,null,{"$f":"IF(Switch!V33=\"\",\"\",Switch!V33)","v":0}]
[null,null,null,null,null,{"$f":"IF(Switch!D34=\"\",\"\",Switch!D34)","v":""},null,null,null,{"$f":"IF(Switch!G34=\"\",\"\",Switch!G34)","v":""},null,null,null,{"$f":"IF(Switch!U34=\"\",\"\",Switch!U34)","v":""},null,null,{"$f":"IF(Switch!V34=\"\",\"\",Switch!V34)","v":0}]
[null,null,null,null,null,{"$f":"IF(Switch!D35=\"\",\"\",Switch!D35)","v":""},null,null,null,{"$f":"IF(Switch!G35=\"\",\"\",Switch!G35)","v":""},null,null,null,{"$f":"IF(Switch!U35=\"\",\"\",Switch!U35)","v":""},null,null,{"$f":"IF(Switch!V35=\"\",\"\",Switch!V35)","v":0}]
[null,null,null,null,null,{"$f":"IF(Switch!D36=\"\",\"\",Switch!D36)","v":""},null,null,null,{"$f":"IF(Switch!G36=\"\",\"\",Switch!G36)","v":""},null,null,null,{"$f":"IF(Switch!U36=\"\",\"\",Switch!U36)","v":""},null,null,{"$f":"IF(Switch!V36=\"\",\"\",Switch!V36)","v":0}]
[null,null,null,null,null,{"$f":"IF(Switch!D37=\"\",\"\",Switch!D37)","v":""},null,null,null,{"$f":"IF(Switch!G37=\"\",\"\",Switch!G37)","v":""},null,null,null,{"$f":"IF(Switch!U37=\"\",\"\",Switch!U37)","v":""},null,null,{"$f":"IF(Switch!V37=\"\",\"\",Switch!V37)","v":0}]
[null,null,null,null,null,{"$f":"IF(Switch!D38=\"\",\"\",Switch!D38)","v":""},null,null,null,{"$f":"IF(Switch!G38=\"\",\"\",Switch!G38)","v":""},null,null,null,{"$f":"IF(Switch!U38=\"\",\"\",Switch!U38)","v":""},null,null,{"$f":"IF(Switch!V38=\"\",\"\",Switch!V38)","v":0}]
[null,null,null,null,null,{"$f":"IF(Switch!D39=\"\",\"\",Switch!D39)","v":""},null,null,null,{"$f":"IF(Switch!G39=\"\",\"\",Switch!G39)","v":""},null,null,null,{"$f":"IF(Switch!U39=\"\",\"\",Switch!U39)","v":""},null,null,{"$f":"IF(Switch!V39=\"\",\"\",Switch!V39)","v":0}]
[null,null,null,null,null,{"$f":"IF(Switch!D40=\"\",\"\",Switch!D40)","v":""},null,null,null,{"$f":"IF(Switch!G40=\"\",\"\",Switch!G40)","v":""},null,null,null,{"$f":"IF(Switch!U40=\"\",\"\",Switch!U40)","v":""},null,null,{"$f":"IF(Switch!V40=\"\",\"\",Switch!V40)","v":0}]
[null,null,null,null,null,null,null,null,null,"Total",null,null,null,{"$f":"SUM(N87:O101)","v":0},null,null,{"$f":"SUM(Q87:U101)","v":0},null,null,{"$f":"SUM(T87:U101)","v":0}]
[]
[]
[]
[null,null,null,null,null,"Switch To:"]
[]
[]
[null,null,null,null,null,"Manco",null,null,null,"Portfolio Name",null,null,null,"Percentage",null,null,"Rand Amount"]
[null,null,null,null,null,{"$f":"IF(Instructions!C62=\"\",\"\",Instructions!C62)","v":"Allan Gray Unit Trust Management Limited"},null,null,null,{"$f":"IF(Instructions!F62=\"\",\"\",Instructions!F62)","v":" Allan Gray Balanced Fund C"},null,null,null,{"$f":"IF(Instructions!L62=\"\",\"\",Instructions!L62)","v":0.08},null,null,{"$f":"IF(Instructions!J62=0,\"\",Instructions!J62)","v":""}]
[null,null,null,null,null,{"$f":"IF(Instructions!C63=\"\",\"\",Instructions!C63)","v":"Coronation Management Company"},null,null,null,{"$f":"IF(Instructions!F63=\"\",\"\",Instructions!F63)","v":" Coronation Balanced Plus Fund P"},null,null,null,{"$f":"IF(Instructions!L63=\"\",\"\",Instructions!L63)","v":0.08},null,null,{"$f":"IF(Instructions!J63=0,\"\",Instructions!J63)","v":""}]
[null,null,null,null,null,{"$f":"IF(Instructions!C64=\"\",\"\",Instructions!C64)","v":"Investec Fund Managers"},null,null,null,{"$f":"IF(Instructions!F64=\"\",\"\",Instructions!F64)","v":" Investec Global Franchise Feeder Fund H"},null,null,null,{"$f":"IF(Instructions!L64=\"\",\"\",Instructions!L64)","v":0.04},null,null,{"$f":"IF(Instructions!J64=0,\"\",Instructions!J64)","v":""}]
[null,null,null,null,null,{"$f":"IF(Instructions!C65=\"\",\"\",Instructions!C65)","v":"Investec Fund Managers"},null,null,null,{"$f":"IF(Instructions!F65=\"\",\"\",Instructions!F65)","v":" Investec Managed Fund H"},null,null,null,{"$f":"IF(Instructions!L65=\"\",\"\",Instructions!L65)","v":0.08},null,null,{"$f":"IF(Instructions!J65=0,\"\",Instructions!J65)","v":""}]
[null,null,null,null,null,{"$f":"IF(Instructions!C66=\"\",\"\",Instructions!C66)","v":"Prescient Management Company Ltd"},null,null,null,{"$f":"IF(Instructions!F66=\"\",\"\",Instructions!F66)","v":" Laurium Flexible Prescient Fund A1"},null,null,null,{"$f":"IF(Instructions!L66=\"\",\"\",Instructions!L66)","v":0.08},null,null,{"$f":"IF(Instructions!J66=0,\"\",Instructions!J66)","v":""}]
[null,null,null,null,null,{"$f":"IF(Instructions!C67=\"\",\"\",Instructions!C67)","v":"PSG Collective Investments Ltd"},null,null,null,{"$f":"IF(Instructions!F67=\"\",\"\",Instructions!F67)","v":" PSG Global Flexible Feeder Fund B"},null,null,null,{"$f":"IF(Instructions!L67=\"\",\"\",Instructions!L67)","v":0.04},null,null,{"$f":"IF(Instructions!J67=0,\"\",Instructions!J67)","v":""}]
[null,null,null,null,null,{"$f":"IF(Instructions!C68=\"\",\"\",Instructions!C68)","v":"Boutique Collective Investments (Pty) Ltd"},null,null,null,{"$f":"IF(Instructions!F68=\"\",\"\",Instructions!F68)","v":" Reitway BCI Global Property Fund C"},null,null,null,{"$f":"IF(Instructions!L68=\"\",\"\",Instructions!L68)","v":0.04},null,null,{"$f":"IF(Instructions!J68=0,\"\",Instructions!J68)","v":""}]
[null,null,null,null,null,{"$f":"IF(Instructions!C69=\"\",\"\",Instructions!C69)","v":"Satrix Managers (RF) (Pty) Ltd"},null,null,null,{"$f":"IF(Instructions!F69=\"\",\"\",Instructions!F69)","v":" Satrix Equally Weighted TOP 40 Index Fund B1"},null,null,null,{"$f":"IF(Instructions!L69=\"\",\"\",Instructions!L69)","v":0.09},null,null,{"$f":"IF(Instructions!J69=0,\"\",Instructions!J69)","v":""}]
[null,null,null,null,null,{"$f":"IF(Instructions!C70=\"\",\"\",Instructions!C70)","v":"Satrix Managers (RF) (Pty) Ltd"},null,null,null,{"$f":"IF(Instructions!F70=\"\",\"\",Instructions!F70)","v":" Satrix MSCI World Equity Index Feeder Fund B2"},null,null,null,{"$f":"IF(Instructions!L70=\"\",\"\",Instructions!L70)","v":0.05},null,null,{"$f":"IF(Instructions!J70=0,\"\",Instructions!J70)","v":""}]
[null,null,null,null,null,{"$f":"IF(Instructions!C71=\"\",\"\",Instructions!C71)","v":"Satrix Managers (RF) (Pty) Ltd"},null,null,null,{"$f":"IF(Instructions!F71=\"\",\"\",Instructions!F71)","v":" Satrix Property Index Fund B1"},null,null,null,{"$f":"IF(Instructions!L71=\"\",\"\",Instructions!L71)","v":0.05},null,null,{"$f":"IF(Instructions!J71=0,\"\",Instructions!J71)","v":""}]
[null,null,null,null,null,{"$f":"IF(Instructions!C72=\"\",\"\",Instructions!C72)","v":"STANLIB Collective Investments"},null,null,null,{"$f":"IF(Instructions!F72=\"\",\"\",Instructions!F72)","v":" STANLIB Absolute Plus Fund B1"},null,null,null,{"$f":"IF(Instructions!L72=\"\",\"\",Instructions!L72)","v":0.08},null,null,{"$f":"IF(Instructions!J72=0,\"\",Instructions!J72)","v":""}]
[null,null,null,null,null,{"$f":"IF(Instructions!C73=\"\",\"\",Instructions!C73)","v":"STANLIB Collective Investments"},null,null,null,{"$f":"IF(Instructions!F73=\"\",\"\",Instructions!F73)","v":" STANLIB Income Fund B6"},null,null,null,{"$f":"IF(Instructions!L73=\"\",\"\",Instructions!L73)","v":0.2},null,null,{"$f":"IF(Instructions!J73=0,\"\",Instructions!J73)","v":""}]
[null,null,null,null,null,{"$f":"IF(Instructions!C74=\"\",\"\",Instructions!C74)","v":"STANLIB Collective Investments"},null,null,null,{"$f":"IF(Instructions!F74=\"\",\"\",Instructions!F74)","v":" STANLIB S&P500  Index Feeder Fund B1"},null,null,null,{"$f":"IF(Instructions!L74=\"\",\"\",Instructions!L74)","v":0.05},null,null,{"$f":"IF(Instructions!J74=0,\"\",Instructions!J74)","v":""}]
[null,null,null,null,null,{"$f":"IF(Instructions!C75=\"\",\"\",Instructions!C75)","v":"Sygnia Asset Management (Pty) Limited"},null,null,null,{"$f":"IF(Instructions!F75=\"\",\"\",Instructions!F75)","v":" Sygnia 4th Industrial Revolution Global Equity Fund A"},null,null,null,{"$f":"IF(Instructions!L75=\"\",\"\",Instructions!L75)","v":0.04},null,null,{"$f":"IF(Instructions!J75=0,\"\",Instructions!J75)","v":""}]
[null,null,null,null,null,{"$f":"IF(Instructions!C76=\"\",\"\",Instructions!C76)","v":""},null,null,null,{"$f":"IF(Instructions!F76=\"\",\"\",Instructions!F76)","v":" "},null,null,null,{"$f":"IF(Instructions!L76=\"\",\"\",Instructions!L76)","v":""},null,null,{"$f":"IF(Instructions!J76=0,\"\",Instructions!J76)","v":""}]
[null,null,null,null,null,null,null,null,null,"Total",null,null,null,{"$f":"SUM(N110:O124)","v":1.0000000000000002},null,null,{"$f":"SUM(Q110:U124)","v":0},null,null,{"$f":"SUM(T110:U124)","v":0}]
[]
[]
[]
[null,null,null,null,null,"CGT:"]
[]
[null,null,null,null,null,"Total CGT incurred:",null,null,{"$f":"SUM(Instructions!R16:S55)","v":0}]
[]
[]
[null,null,null,null,null,"Instructions:"]
[]
[null,null,null,null,null,"Fund",null,null,"Total Amount Sold",null,"% Sold",null,"Funds Purchased",null,null,null,null,null,"Amount Bought",null,"% Bought"]
[null,null,null,null,null,{"$f":"IF(Instructions!C16=\"\",\"\",Instructions!C16)","v":" Allan Gray Balanced Fund C"},null,null,{"$f":"IF(Instructions!F16=\"\",\"\",Instructions!F16)","v":40.783399999999801},null,{"$f":"IF(Instructions!H16=\"\",\"\",Instructions!H16)","v":1.419999999999999E-2},null,{"$f":"IF(Instructions!J16=\"\",\"\",Instructions!J16)","v":" Laurium Flexible Prescient Fund A1"},null,null,null,null,null,{"$f":"IF(Instructions!N16=\"\",\"\",Instructions!N16)","v":40.78},null,{"$f":"IF(Instructions!P16=\"\",\"\",Instructions!P16)","v":1}]
[null,null,null,null,null,{"$f":"IF(Instructions!C17=\"\",\"\",Instructions!C17)","v":" Coronation Balanced Plus Fund P"},null,null,{"$f":"IF(Instructions!F17=\"\",\"\",Instructions!F17)","v":38.313400000000001},null,{"$f":"IF(Instructions!H17=\"\",\"\",Instructions!H17)","v":1.3299999999999979E-2},null,{"$f":"IF(Instructions!J17=\"\",\"\",Instructions!J17)","v":" Laurium Flexible Prescient Fund A1"},null,null,null,null,null,{"$f":"IF(Instructions!N17=\"\",\"\",Instructions!N17)","v":38.31},null,{"$f":"IF(Instructions!P17=\"\",\"\",Instructions!P17)","v":1}]
[null,null,null,null,null,{"$f":"IF(Instructions!C18=\"\",\"\",Instructions!C18)","v":" Investec Global Franchise Feeder Fund H"},null,null,{"$f":"IF(Instructions!F18=\"\",\"\",Instructions!F18)","v":56.426699999999983},null,{"$f":"IF(Instructions!H18=\"\",\"\",Instructions!H18)","v":3.8200000000000012E-2},null,{"$f":"IF(Instructions!J18=\"\",\"\",Instructions!J18)","v":" Laurium Flexible Prescient Fund A1"},null,null,null,null,null,{"$f":"IF(Instructions!N18=\"\",\"\",Instructions!N18)","v":56.43},null,{"$f":"IF(Instructions!P18=\"\",\"\",Instructions!P18)","v":1}]
[null,null,null,null,null,{"$f":"IF(Instructions!C19=\"\",\"\",Instructions!C19)","v":" Investec Managed Fund H"},null,null,{"$f":"IF(Instructions!F19=\"\",\"\",Instructions!F19)","v":54.733399999999619},null,{"$f":"IF(Instructions!H19=\"\",\"\",Instructions!H19)","v":1.8900000000000028E-2},null,{"$f":"IF(Instructions!J19=\"\",\"\",Instructions!J19)","v":" Laurium Flexible Prescient Fund A1"},null,null,null,null,null,{"$f":"IF(Instructions!N19=\"\",\"\",Instructions!N19)","v":54.73},null,{"$f":"IF(Instructions!P19=\"\",\"\",Instructions!P19)","v":1}]
[null,null,null,null,null,{"$f":"IF(Instructions!C20=\"\",\"\",Instructions!C20)","v":" PSG Flexible Fund E"},null,null,{"$f":"IF(Instructions!F20=\"\",\"\",Instructions!F20)","v":2782.93},null,{"$f":"IF(Instructions!H20=\"\",\"\",Instructions!H20)","v":1},null,{"$f":"IF(Instructions!J20=\"\",\"\",Instructions!J20)","v":" Laurium Flexible Prescient Fund A1"},null,null,null,null,null,{"$f":"IF(Instructions!N20=\"\",\"\",Instructions!N20)","v":2649.25},null,{"$f":"IF(Instructions!P20=\"\",\"\",Instructions!P20)","v":0.95196429662262438}]
[null,null,null,null,null,{"$f":"IF(Instructions!C21=\"\",\"\",Instructions!C21)","v":""},null,null,{"$f":"IF(Instructions!F21=\"\",\"\",Instructions!F21)","v":""},null,{"$f":"IF(Instructions!H21=\"\",\"\",Instructions!H21)","v":""},null,{"$f":"IF(Instructions!J21=\"\",\"\",Instructions!J21)","v":" Satrix Equally Weighted TOP 40 Index Fund B1"},null,null,null,null,null,{"$f":"IF(Instructions!N21=\"\",\"\",Instructions!N21)","v":53.94},null,{"$f":"IF(Instructions!P21=\"\",\"\",Instructions!P21)","v":1.9382449432792059E-2}]
[null,null,null,null,null,{"$f":"IF(Instructions!C22=\"\",\"\",Instructions!C22)","v":""},null,null,{"$f":"IF(Instructions!F22=\"\",\"\",Instructions!F22)","v":""},null,{"$f":"IF(Instructions!H22=\"\",\"\",Instructions!H22)","v":""},null,{"$f":"IF(Instructions!J22=\"\",\"\",Instructions!J22)","v":" Satrix Property Index Fund B1"},null,null,null,null,null,{"$f":"IF(Instructions!N22=\"\",\"\",Instructions!N22)","v":79.739999999999995},null,{"$f":"IF(Instructions!P22=\"\",\"\",Instructions!P22)","v":2.8653253944583585E-2}]
[null,null,null,null,null,{"$f":"IF(Instructions!C23=\"\",\"\",Instructions!C23)","v":" PSG Global Flexible Feeder Fund B"},null,null,{"$f":"IF(Instructions!F23=\"\",\"\",Instructions!F23)","v":6.6866999999999734},null,{"$f":"IF(Instructions!H23=\"\",\"\",Instructions!H23)","v":4.7000000000000375E-3},null,{"$f":"IF(Instructions!J23=\"\",\"\",Instructions!J23)","v":" Satrix Property Index Fund B1"},null,null,null,null,null,{"$f":"IF(Instructions!N23=\"\",\"\",Instructions!N23)","v":6.69},null,{"$f":"IF(Instructions!P23=\"\",\"\",Instructions!P23)","v":1}]
[null,null,null,null,null,{"$f":"IF(Instructions!C24=\"\",\"\",Instructions!C24)","v":" Reitway BCI Global Property Fund C"},null,null,{"$f":"IF(Instructions!F24=\"\",\"\",Instructions!F24)","v":22.066699999999855},null,{"$f":"IF(Instructions!H24=\"\",\"\",Instructions!H24)","v":1.529999999999998E-2},null,{"$f":"IF(Instructions!J24=\"\",\"\",Instructions!J24)","v":" Satrix Property Index Fund B1"},null,null,null,null,null,{"$f":"IF(Instructions!N24=\"\",\"\",Instructions!N24)","v":10.01},null,{"$f":"IF(Instructions!P24=\"\",\"\",Instructions!P24)","v":0.45355686452197552}]
[null,null,null,null,null,{"$f":"IF(Instructions!C25=\"\",\"\",Instructions!C25)","v":""},null,null,{"$f":"IF(Instructions!F25=\"\",\"\",Instructions!F25)","v":""},null,{"$f":"IF(Instructions!H25=\"\",\"\",Instructions!H25)","v":""},null,{"$f":"IF(Instructions!J25=\"\",\"\",Instructions!J25)","v":" STANLIB Income Fund B6"},null,null,null,null,null,{"$f":"IF(Instructions!N25=\"\",\"\",Instructions!N25)","v":4.92},null,{"$f":"IF(Instructions!P25=\"\",\"\",Instructions!P25)","v":0.22292705029451743}]
[null,null,null,null,null,{"$f":"IF(Instructions!C26=\"\",\"\",Instructions!C26)","v":""},null,null,{"$f":"IF(Instructions!F26=\"\",\"\",Instructions!F26)","v":""},null,{"$f":"IF(Instructions!H26=\"\",\"\",Instructions!H26)","v":""},null,{"$f":"IF(Instructions!J26=\"\",\"\",Instructions!J26)","v":" Sygnia 4th Industrial Revolution Global Equity Fund A"},null,null,null,null,null,{"$f":"IF(Instructions!N26=\"\",\"\",Instructions!N26)","v":7.13},null,{"$f":"IF(Instructions!P26=\"\",\"\",Instructions!P26)","v":0.32306298142274581}]
[null,null,null,null,null,{"$f":"IF(Instructions!C27=\"\",\"\",Instructions!C27)","v":" Satrix MSCI World Equity Index Feeder Fund B2"},null,null,{"$f":"IF(Instructions!F27=\"\",\"\",Instructions!F27)","v":47.258399999999938},null,{"$f":"IF(Instructions!H27=\"\",\"\",Instructions!H27)","v":2.5900000000000034E-2},null,{"$f":"IF(Instructions!J27=\"\",\"\",Instructions!J27)","v":" Satrix Equally Weighted TOP 40 Index Fund B1"},null,null,null,null,null,{"$f":"IF(Instructions!N27=\"\",\"\",Instructions!N27)","v":47.26},null,{"$f":"IF(Instructions!P27=\"\",\"\",Instructions!P27)","v":1}]
[null,null,null,null,null,{"$f":"IF(Instructions!C28=\"\",\"\",Instructions!C28)","v":" STANLIB S&P500  Index Feeder Fund B1"},null,null,{"$f":"IF(Instructions!F28=\"\",\"\",Instructions!F28)","v":41.198399999999992},null,{"$f":"IF(Instructions!H28=\"\",\"\",Instructions!H28)","v":2.2700000000000053E-2},null,{"$f":"IF(Instructions!J28=\"\",\"\",Instructions!J28)","v":" STANLIB Absolute Plus Fund B1"},null,null,null,null,null,{"$f":"IF(Instructions!N28=\"\",\"\",Instructions!N28)","v":4.07},null,{"$f":"IF(Instructions!P28=\"\",\"\",Instructions!P28)","v":9.8786407766990297E-2}]
[null,null,null,null,null,{"$f":"IF(Instructions!C29=\"\",\"\",Instructions!C29)","v":""},null,null,{"$f":"IF(Instructions!F29=\"\",\"\",Instructions!F29)","v":""},null,{"$f":"IF(Instructions!H29=\"\",\"\",Instructions!H29)","v":""},null,{"$f":"IF(Instructions!J29=\"\",\"\",Instructions!J29)","v":" STANLIB Income Fund B6"},null,null,null,null,null,{"$f":"IF(Instructions!N29=\"\",\"\",Instructions!N29)","v":37.130000000000003},null,{"$f":"IF(Instructions!P29=\"\",\"\",Instructions!P29)","v":0.90121359223300967}]
[null,null,null,null,null,{"$f":"IF(Instructions!C30=\"\",\"\",Instructions!C30)","v":""},null,null,{"$f":"IF(Instructions!F30=\"\",\"\",Instructions!F30)","v":""},null,{"$f":"IF(Instructions!H30=\"\",\"\",Instructions!H30)","v":""},null,{"$f":"IF(Instructions!J30=\"\",\"\",Instructions!J30)","v":""},null,null,null,null,null,{"$f":"IF(Instructions!N30=\"\",\"\",Instructions!N30)","v":""},null,{"$f":"IF(Instructions!P30=\"\",\"\",Instructions!P30)","v":""}]
[null,null,null,null,null,{"$f":"IF(Instructions!C31=\"\",\"\",Instructions!C31)","v":""},null,null,{"$f":"IF(Instructions!F31=\"\",\"\",Instructions!F31)","v":""},null,{"$f":"IF(Instructions!H31=\"\",\"\",Instructions!H31)","v":""},null,{"$f":"IF(Instructions!J31=\"\",\"\",Instructions!J31)","v":""},null,null,null,null,null,{"$f":"IF(Instructions!N31=\"\",\"\",Instructions!N31)","v":""},null,{"$f":"IF(Instructions!P31=\"\",\"\",Instructions!P31)","v":""}]
[null,null,null,null,null,{"$f":"IF(Instructions!C32=\"\",\"\",Instructions!C32)","v":""},null,null,{"$f":"IF(Instructions!F32=\"\",\"\",Instructions!F32)","v":""},null,{"$f":"IF(Instructions!H32=\"\",\"\",Instructions!H32)","v":""},null,{"$f":"IF(Instructions!J32=\"\",\"\",Instructions!J32)","v":""},null,null,null,null,null,{"$f":"IF(Instructions!N32=\"\",\"\",Instructions!N32)","v":""},null,{"$f":"IF(Instructions!P32=\"\",\"\",Instructions!P32)","v":""}]
[null,null,null,null,null,{"$f":"IF(Instructions!C33=\"\",\"\",Instructions!C33)","v":""},null,null,{"$f":"IF(Instructions!F33=\"\",\"\",Instructions!F33)","v":""},null,{"$f":"IF(Instructions!H33=\"\",\"\",Instructions!H33)","v":""},null,{"$f":"IF(Instructions!J33=\"\",\"\",Instructions!J33)","v":""},null,null,null,null,null,{"$f":"IF(Instructions!N33=\"\",\"\",Instructions!N33)","v":""},null,{"$f":"IF(Instructions!P33=\"\",\"\",Instructions!P33)","v":""}]
[null,null,null,null,null,{"$f":"IF(Instructions!C34=\"\",\"\",Instructions!C34)","v":""},null,null,{"$f":"IF(Instructions!F34=\"\",\"\",Instructions!F34)","v":""},null,{"$f":"IF(Instructions!H34=\"\",\"\",Instructions!H34)","v":""},null,{"$f":"IF(Instructions!J34=\"\",\"\",Instructions!J34)","v":""},null,null,null,null,null,{"$f":"IF(Instructions!N34=\"\",\"\",Instructions!N34)","v":""},null,{"$f":"IF(Instructions!P34=\"\",\"\",Instructions!P34)","v":""}]
[null,null,null,null,null,{"$f":"IF(Instructions!C35=\"\",\"\",Instructions!C35)","v":""},null,null,{"$f":"IF(Instructions!F35=\"\",\"\",Instructions!F35)","v":""},null,{"$f":"IF(Instructions!H35=\"\",\"\",Instructions!H35)","v":""},null,{"$f":"IF(Instructions!J35=\"\",\"\",Instructions!J35)","v":""},null,null,null,null,null,{"$f":"IF(Instructions!N35=\"\",\"\",Instructions!N35)","v":""},null,{"$f":"IF(Instructions!P35=\"\",\"\",Instructions!P35)","v":""}]
[null,null,null,null,null,{"$f":"IF(Instructions!C36=\"\",\"\",Instructions!C36)","v":""},null,null,{"$f":"IF(Instructions!F36=\"\",\"\",Instructions!F36)","v":""},null,{"$f":"IF(Instructions!H36=\"\",\"\",Instructions!H36)","v":""},null,{"$f":"IF(Instructions!J36=\"\",\"\",Instructions!J36)","v":""},null,null,null,null,null,{"$f":"IF(Instructions!N36=\"\",\"\",Instructions!N36)","v":""},null,{"$f":"IF(Instructions!P36=\"\",\"\",Instructions!P36)","v":""}]
[null,null,null,null,null,{"$f":"IF(Instructions!C37=\"\",\"\",Instructions!C37)","v":""},null,null,{"$f":"IF(Instructions!F37=\"\",\"\",Instructions!F37)","v":""},null,{"$f":"IF(Instructions!H37=\"\",\"\",Instructions!H37)","v":""},null,{"$f":"IF(Instructions!J37=\"\",\"\",Instructions!J37)","v":""},null,null,null,null,null,{"$f":"IF(Instructions!N37=\"\",\"\",Instructions!N37)","v":""},null,{"$f":"IF(Instructions!P37=\"\",\"\",Instructions!P37)","v":""}]
[null,null,null,null,null,{"$f":"IF(Instructions!C38=\"\",\"\",Instructions!C38)","v":""},null,null,{"$f":"IF(Instructions!F38=\"\",\"\",Instructions!F38)","v":""},null,{"$f":"IF(Instructions!H38=\"\",\"\",Instructions!H38)","v":""},null,{"$f":"IF(Instructions!J38=\"\",\"\",Instructions!J38)","v":""},null,null,null,null,null,{"$f":"IF(Instructions!N38=\"\",\"\",Instructions!N38)","v":""},null,{"$f":"IF(Instructions!P38=\"\",\"\",Instructions!P38)","v":""}]
[null,null,null,null,null,{"$f":"IF(Instructions!C39=\"\",\"\",Instructions!C39)","v":""},null,null,{"$f":"IF(Instructions!F39=\"\",\"\",Instructions!F39)","v":""},null,{"$f":"IF(Instructions!H39=\"\",\"\",Instructions!H39)","v":""},null,{"$f":"IF(Instructions!J39=\"\",\"\",Instructions!J39)","v":""},null,null,null,null,null,{"$f":"IF(Instructions!N39=\"\",\"\",Instructions!N39)","v":""},null,{"$f":"IF(Instructions!P39=\"\",\"\",Instructions!P39)","v":""}]
[null,null,null,null,null,{"$f":"IF(Instructions!C40=\"\",\"\",Instructions!C40)","v":""},null,null,{"$f":"IF(Instructions!F40=\"\",\"\",Instructions!F40)","v":""},null,{"$f":"IF(Instructions!H40=\"\",\"\",Instructions!H40)","v":""},null,{"$f":"IF(Instructions!J40=\"\",\"\",Instructions!J40)","v":""},null,null,null,null,null,{"$f":"IF(Instructions!N40=\"\",\"\",Instructions!N40)","v":""},null,{"$f":"IF(Instructions!P40=\"\",\"\",Instructions!P40)","v":""}]
[null,null,null,null,null,{"$f":"IF(Instructions!C41=\"\",\"\",Instructions!C41)","v":""},null,null,{"$f":"IF(Instructions!F41=\"\",\"\",Instructions!F41)","v":""},null,{"$f":"IF(Instructions!H41=\"\",\"\",Instructions!H41)","v":""},null,{"$f":"IF(Instructions!J41=\"\",\"\",Instructions!J41)","v":""},null,null,null,null,null,{"$f":"IF(Instructions!N41=\"\",\"\",Instructions!N41)","v":""},null,{"$f":"IF(Instructions!P41=\"\",\"\",Instructions!P41)","v":""}]
[null,null,null,null,null,{"$f":"IF(Instructions!C42=\"\",\"\",Instructions!C42)","v":""},null,null,{"$f":"IF(Instructions!F42=\"\",\"\",Instructions!F42)","v":""},null,{"$f":"IF(Instructions!H42=\"\",\"\",Instructions!H42)","v":""},null,{"$f":"IF(Instructions!J42=\"\",\"\",Instructions!J42)","v":""},null,null,null,null,null,{"$f":"IF(Instructions!N42=\"\",\"\",Instructions!N42)","v":""},null,{"$f":"IF(Instructions!P42=\"\",\"\",Instructions!P42)","v":""}]
[null,null,null,null,null,{"$f":"IF(Instructions!C43=\"\",\"\",Instructions!C43)","v":""},null,null,{"$f":"IF(Instructions!F43=\"\",\"\",Instructions!F43)","v":""},null,{"$f":"IF(Instructions!H43=\"\",\"\",Instructions!H43)","v":""},null,{"$f":"IF(Instructions!J43=\"\",\"\",Instructions!J43)","v":""},null,null,null,null,null,{"$f":"IF(Instructions!N43=\"\",\"\",Instructions!N43)","v":""},null,{"$f":"IF(Instructions!P43=\"\",\"\",Instructions!P43)","v":""}]
[null,null,null,null,null,{"$f":"IF(Instructions!C44=\"\",\"\",Instructions!C44)","v":""},null,null,{"$f":"IF(Instructions!F44=\"\",\"\",Instructions!F44)","v":""},null,{"$f":"IF(Instructions!H44=\"\",\"\",Instructions!H44)","v":""},null,{"$f":"IF(Instructions!J44=\"\",\"\",Instructions!J44)","v":""},null,null,null,null,null,{"$f":"IF(Instructions!N44=\"\",\"\",Instructions!N44)","v":""},null,{"$f":"IF(Instructions!P44=\"\",\"\",Instructions!P44)","v":""}]
[null,null,null,null,null,{"$f":"IF(Instructions!C45=\"\",\"\",Instructions!C45)","v":""},null,null,{"$f":"IF(Instructions!F45=\"\",\"\",Instructions!F45)","v":""},null,{"$f":"IF(Instructions!H45=\"\",\"\",Instructions!H45)","v":""},null,{"$f":"IF(Instructions!J45=\"\",\"\",Instructions!J45)","v":""},null,null,null,null,null,{"$f":"IF(Instructions!N45=\"\",\"\",Instructions!N45)","v":""},null,{"$f":"IF(Instructions!P45=\"\",\"\",Instructions!P45)","v":""}]
[null,null,null,null,null,{"$f":"IF(Instructions!C46=\"\",\"\",Instructions!C46)","v":""},null,null,{"$f":"IF(Instructions!F46=\"\",\"\",Instructions!F46)","v":""},null,{"$f":"IF(Instructions!H46=\"\",\"\",Instructions!H46)","v":""},null,{"$f":"IF(Instructions!J46=\"\",\"\",Instructions!J46)","v":""},null,null,null,null,null,{"$f":"IF(Instructions!N46=\"\",\"\",Instructions!N46)","v":""},null,{"$f":"IF(Instructions!P46=\"\",\"\",Instructions!P46)","v":""}]
[null,null,null,null,null,{"$f":"IF(Instructions!C47=\"\",\"\",Instructions!C47)","v":""},null,null,{"$f":"IF(Instructions!F47=\"\",\"\",Instructions!F47)","v":""},null,{"$f":"IF(Instructions!H47=\"\",\"\",Instructions!H47)","v":""},null,{"$f":"IF(Instructions!J47=\"\",\"\",Instructions!J47)","v":""},null,null,null,null,null,{"$f":"IF(Instructions!N47=\"\",\"\",Instructions!N47)","v":""},null,{"$f":"IF(Instructions!P47=\"\",\"\",Instructions!P47)","v":""}]
[null,null,null,null,null,{"$f":"IF(Instructions!C48=\"\",\"\",Instructions!C48)","v":""},null,null,{"$f":"IF(Instructions!F48=\"\",\"\",Instructions!F48)","v":""},null,{"$f":"IF(Instructions!H48=\"\",\"\",Instructions!H48)","v":""},null,{"$f":"IF(Instructions!J48=\"\",\"\",Instructions!J48)","v":""},null,null,null,null,null,{"$f":"IF(Instructions!N48=\"\",\"\",Instructions!N48)","v":""},null,{"$f":"IF(Instructions!P48=\"\",\"\",Instructions!P48)","v":""}]
[null,null,null,null,null,{"$f":"IF(Instructions!C49=\"\",\"\",Instructions!C49)","v":""},null,null,{"$f":"IF(Instructions!F49=\"\",\"\",Instructions!F49)","v":""},null,{"$f":"IF(Instructions!H49=\"\",\"\",Instructions!H49)","v":""},null,{"$f":"IF(Instructions!J49=\"\",\"\",Instructions!J49)","v":""},null,null,null,null,null,{"$f":"IF(Instructions!N49=\"\",\"\",Instructions!N49)","v":""},null,{"$f":"IF(Instructions!P49=\"\",\"\",Instructions!P49)","v":""}]
[null,null,null,null,null,{"$f":"IF(Instructions!C50=\"\",\"\",Instructions!C50)","v":""},null,null,{"$f":"IF(Instructions!F50=\"\",\"\",Instructions!F50)","v":""},null,{"$f":"IF(Instructions!H50=\"\",\"\",Instructions!H50)","v":""},null,{"$f":"IF(Instructions!J50=\"\",\"\",Instructions!J50)","v":""},null,null,null,null,null,{"$f":"IF(Instructions!N50=\"\",\"\",Instructions!N50)","v":""},null,{"$f":"IF(Instructions!P50=\"\",\"\",Instructions!P50)","v":""}]
[null,null,null,null,null,{"$f":"IF(Instructions!C51=\"\",\"\",Instructions!C51)","v":""},null,null,{"$f":"IF(Instructions!F51=\"\",\"\",Instructions!F51)","v":""},null,{"$f":"IF(Instructions!H51=\"\",\"\",Instructions!H51)","v":""},null,{"$f":"IF(Instructions!J51=\"\",\"\",Instructions!J51)","v":""},null,null,null,null,null,{"$f":"IF(Instructions!N51=\"\",\"\",Instructions!N51)","v":""},null,{"$f":"IF(Instructions!P51=\"\",\"\",Instructions!P51)","v":""}]
[null,null,null,null,null,{"$f":"IF(Instructions!C52=\"\",\"\",Instructions!C52)","v":""},null,null,{"$f":"IF(Instructions!F52=\"\",\"\",Instructions!F52)","v":""},null,{"$f":"IF(Instructions!H52=\"\",\"\",Instructions!H52)","v":""},null,{"$f":"IF(Instructions!J52=\"\",\"\",Instructions!J52)","v":""},null,null,null,null,null,{"$f":"IF(Instructions!N52=\"\",\"\",Instructions!N52)","v":""},null,{"$f":"IF(Instructions!P52=\"\",\"\",Instructions!P52)","v":""}]
[null,null,null,null,null,{"$f":"IF(Instructions!C53=\"\",\"\",Instructions!C53)","v":""},null,null,{"$f":"IF(Instructions!F53=\"\",\"\",Instructions!F53)","v":""},null,{"$f":"IF(Instructions!H53=\"\",\"\",Instructions!H53)","v":""},null,{"$f":"IF(Instructions!J53=\"\",\"\",Instructions!J53)","v":""},null,null,null,null,null,{"$f":"IF(Instructions!N53=\"\",\"\",Instructions!N53)","v":""},null,{"$f":"IF(Instructions!P53=\"\",\"\",Instructions!P53)","v":""}]
[null,null,null,null,null,{"$f":"IF(Instructions!C54=\"\",\"\",Instructions!C54)","v":""},null,null,{"$f":"IF(Instructions!F54=\"\",\"\",Instructions!F54)","v":""},null,{"$f":"IF(Instructions!H54=\"\",\"\",Instructions!H54)","v":""},null,{"$f":"IF(Instructions!J54=\"\",\"\",Instructions!J54)","v":""},null,null,null,null,null,{"$f":"IF(Instructions!N54=\"\",\"\",Instructions!N54)","v":""},null,{"$f":"IF(Instructions!P54=\"\",\"\",Instructions!P54)","v":""}]
[null,null,null,null,null,{"$f":"IF(Instructions!C55=\"\",\"\",Instructions!C55)","v":""},null,null,{"$f":"IF(Instructions!F55=\"\",\"\",Instructions!F55)","v":""},null,{"$f":"IF(Instructions!H55=\"\",\"\",Instructions!H55)","v":""},null,{"$f":"IF(Instructions!J55=\"\",\"\",Instructions!J55)","v":""},null,null,null,null,null,{"$f":"IF(Instructions!N55=\"\",\"\",Instructions!N55)","v":""},null,{"$f":"IF(Instructions!P55=\"\",\"\",Instructions!P55)","v":""}]
[]
[]
[]
[]
[null,null,null,null,"Signed at",null,null,"  ",null,null,null,null,null,null,null,"On"]
[]
[null,null,null,null,"Full Name"]
[]
[]
[null,null,null,null,"Signature"]
[]
[]
[]
[]
[null,null,null,null,"Introduction to STANLIB"]
[]
[null,null,null,null,"STANLIB is wholly owned by the Liberty Group of which the Standard Bank Group is a major shareholder, together with a diversified spread of BEE organisations dedicated to the advancement of the previously disadvantaged. STANLIB has over 400 000 clients and over R300 billion of assets under management, making us the third largest manager of investments in South Africa and the largest unit trust company in the country. We have a presence in eight African countries."]
[null,null,null,null,"STANLIB provides access to one of the most comprehensive ranges of unit trusts in the country. We also offer our clients the opportunity to\ninvest in a wide range of linked products, retirement vehicles and funds from other companies in order to meet clients' diverse needs."]
[]
[]
[]
[null,null,null,null,"STANLIB stands behind one of the most innovative financial services industry projects, FundiSA, which aims to encourage savings for tertiary education by offering a bonus to investors. STANLIB also has an investment academy for previously disadvantaged students and provides financial aid to learners through bursaries."]
[]
[]
[]
[]
[null,null,null,null,"The information provided herein is the possession of STANLIB and are protected by copyright and intellectual property laws. The information may not be reproduced or distributed without the explicit consent of STANLIB."]
[]
[]
[null,null,null,null,"STANLIB has taken care to ensure that all information provided herein is true and accurate. STANLIB will therefore not be held responsible for any inaccuracies in the information herein. STANLIB shall not be responsible and disclaims all loss, liability or expense of any nature whatsoever which may be attributable (directly, indirectly or consequentially) to the use of the information provided."]
[]
[]
[]
[null,null,null,null,"STANLIB Wealth Management Limited is an authorised Financial Services Provider in terms of the Financial Advisory and Intermediary Services Act No. 37 of 2002 (Licence No. 26/10/590)."]
[]
[null,null,null,null,"PLEASE NOTE:  The objective of this is to assist the user with calculating the switch/rebalance instruction.  The user is still required to provide STANLIB with the relevant form duly completed, sign and submit a switch instruction via our website, www.stanlib.com or STANLIB Online. "]

{"sheet":"Funds - R","index":13,"n_rows":687,"n_cols":37,"rows_kept":687,"cut":false,"hidden":false,"merged":[]}
["Fund List Complete","Retail JSE Code","INVESTMENT_MANAGER",null,"Portfolio Range","INVESTMENT_MANAGER","Start Row","Selected Funds1","Selected Funds2","Selected Funds3","Selected Funds4","Selected Funds5","Selected Funds6","Selected Funds7","Selected Funds8","Selected Funds9","Selected Funds10","Selected Funds11","Selected Funds12","Selected Funds13","Selected Funds14","Selected Funds15","Selected Funds16","Selected Funds17","Selected Funds18","Selected Funds19","Selected Funds20","Selected Funds21","Selected Funds22","Selected Funds23","Selected Funds24","Selected Funds25","Selected Funds26","Selected Funds27","Selected Funds28","Selected Funds29","Selected Funds30"]
["Noble PP STANLIB All Weather FoF A","NSWA1","STANLIB Collective Investments",{"$f":"ROW()","v":2},null,"STANLIB Collective Investments",{"$f":"VLOOKUP(F2,$C$2:$D$599,2,FALSE)","v":2},{"$f":"IF(INDIRECT(\"c\" & (VLOOKUP(Rebalance!$D$26,$F$2:$G$48,2,FALSE)+ROW()-2))=Rebalance!$D$26,INDIRECT(\"a\" & (VLOOKUP(Rebalance!$D$26,$F$2:$G$48,2,FALSE)+ROW()-2)),\"\")","v":{"$error":"#N/A"}},{"$f":"IF(INDIRECT(\"c\" & (VLOOKUP(Rebalance!$D$27,$F$2:$G$48,2,FALSE)+ROW()-2))=Rebalance!$D$27,INDIRECT(\"a\" & (VLOOKUP(Rebalance!$D$27,$F$2:$G$48,2,FALSE)+ROW()-2)),\"\")","v":{"$error":"#N/A"}},{"$f":"IF(INDIRECT(\"c\" & (VLOOKUP(Rebalance!$D$28,$F$2:$G$48,2,FALSE)+ROW()-2))=Rebalance!$D$28,INDIRECT(\"a\" & (VLOOKUP(Rebalance!$D$28,$F$2:$G$48,2,FALSE)+ROW()-2)),\"\")","v":{"$error":"#N/A"}},{"$f":"IF(INDIRECT(\"c\" & (VLOOKUP(Rebalance!$D$29,$F$2:$G$48,2,FALSE)+ROW()-2))=Rebalance!$D$29,INDIRECT(\"a\" & (VLOOKUP(Rebalance!$D$29,$F$2:$G$48,2,FALSE)+ROW()-2)),\"\")","v":{"$error":"#N/A"}},{"$f":"IF(INDIRECT(\"c\" & (VLOOKUP(Rebalance!$D$30,$F$2:$G$48,2,FALSE)+ROW()-2))=Rebalance!$D$30,INDIRECT(\"a\" & (VLOOKUP(Rebalance!$D$30,$F$2:$G$48,2,FALSE)+ROW()-2)),\"\")","v":{"$error":"#N/A"}},{"$f":"IF(INDIRECT(\"c\" & (VLOOKUP(Rebalance!$D$31,$F$2:$G$48,2,FALSE)+ROW()-2))=Rebalance!$D$31,INDIRECT(\"a\" & (VLOOKUP(Rebalance!$D$31,$F$2:$G$48,2,FALSE)+ROW()-2)),\"\")","v":{"$error":"#N/A"}},{"$f":"IF(INDIRECT(\"c\" & (VLOOKUP(Rebalance!$D$32,$F$2:$G$48,2,FALSE)+ROW()-2))=Rebalance!$D$32,INDIRECT(\"a\" & (VLOOKUP(Rebalance!$D$32,$F$2:$G$48,2,FALSE)+ROW()-2)),\"\")","v":{"$error":"#N/A"}},{"$f":"IF(INDIRECT(\"c\" & (VLOOKUP(Rebalance!$D$33,$F$2:$G$48,2,FALSE)+ROW()-2))=Rebalance!$D$33,INDIRECT(\"a\" & (VLOOKUP(Rebalance!$D$33,$F$2:$G$48,2,FALSE)+ROW()-2)),\"\")","v":{"$error":"#N/A"}},{"$f":"IF(INDIRECT(\"c\" & (VLOOKUP(Rebalance!$D$34,$F$2:$G$48,2,FALSE)+ROW()-2))=Rebalance!$D$34,INDIRECT(\"a\" & (VLOOKUP(Rebalance!$D$34,$F$2:$G$48,2,FALSE)+ROW()-2)),\"\")","v":{"$error":"#N/A"}},{"$f":"IF(INDIRECT(\"c\" & (VLOOKUP(Rebalance!$D$35,$F$2:$G$48,2,FALSE)+ROW()-2))=Rebalance!$D$35,INDIRECT(\"a\" & (VLOOKUP(Rebalance!$D$35,$F$2:$G$48,2,FALSE)+ROW()-2)),\"\")","v":{"$error":"#N/A"}},{"$f":"IF(INDIRECT(\"c\" & (VLOOKUP(Rebalance!$D$36,$F$2:$G$48,2,FALSE)+ROW()-2))=Rebalance!$D$36,INDIRECT(\"a\" & (VLOOKUP(Rebalance!$D$36,$F$2:$G$48,2,FALSE)+ROW()-2)),\"\")","v":{"$error":"#N/A"}},{"$f":"IF(INDIRECT(\"c\" & (VLOOKUP(Rebalance!$D$37,$F$2:$G$48,2,FALSE)+ROW()-2))=Rebalance!$D$37,INDIRECT(\"a\" & (VLOOKUP(Rebalance!$D$37,$F$2:$G$48,2,FALSE)+ROW()-2)),\"\")","v":{"$error":"#N/A"}},{"$f":"IF(INDIRECT(\"c\" & (VLOOKUP(Rebalance!$D$38,$F$2:$G$48,2,FALSE)+ROW()-2))=Rebalance!$D$38,INDIRECT(\"a\" & (VLOOKUP(Rebalance!$D$38,$F$2:$G$48,2,FALSE)+ROW()-2)),\"\")","v":{"$error":"#N/A"}},{"$f":"IF(INDIRECT(\"c\" & (VLOOKUP(Rebalance!$D$39,$F$2:$G$48,2,FALSE)+ROW()-2))=Rebalance!$D$39,INDIRECT(\"a\" & (VLOOKUP(Rebalance!$D$39,$F$2:$G$48,2,FALSE)+ROW()-2)),\"\")","v":{"$error":"#N/A"}},{"$f":"IF(INDIRECT(\"c\" & (VLOOKUP(Rebalance!$D$40,$F$2:$G$48,2,FALSE)+ROW()-2))=Rebalance!$D$40,INDIRECT(\"a\" & (VLOOKUP(Rebalance!$D$40,$F$2:$G$48,2,FALSE)+ROW()-2)),\"\")","v":{"$error":"#N/A"}},{"$f":"IF(INDIRECT(\"c\" & (VLOOKUP(Rebalance!$D$52,$F$2:$G$48,2,FALSE)+ROW()-2))=Rebalance!$D$52,INDIRECT(\"a\" & (VLOOKUP(Rebalance!$D$52,$F$2:$G$48,2,FALSE)+ROW()-2)),\"\")","v":{"$error":"#N/A"}},{"$f":"IF(INDIRECT(\"c\" & (VLOOKUP(Rebalance!$D$53,$F$2:$G$48,2,FALSE)+ROW()-2))=Rebalance!$D$53,INDIRECT(\"a\" & (VLOOKUP(Rebalance!$D$53,$F$2:$G$48,2,FALSE)+ROW()-2)),\"\")","v":{"$error":"#N/A"}},{"$f":"IF(INDIRECT(\"c\" & (VLOOKUP(Rebalance!$D$54,$F$2:$G$48,2,FALSE)+ROW()-2))=Rebalance!$D$54,INDIRECT(\"a\" & (VLOOKUP(Rebalance!$D$54,$F$2:$G$48,2,FALSE)+ROW()-2)),\"\")","v":{"$error":"#N/A"}},{"$f":"IF(INDIRECT(\"c\" & (VLOOKUP(Rebalance!$D$55,$F$2:$G$48,2,FALSE)+ROW()-2))=Rebalance!$D$55,INDIRECT(\"a\" & (VLOOKUP(Rebalance!$D$55,$F$2:$G$48,2,FALSE)+ROW()-2)),\"\")","v":{"$error":"#N/A"}},{"$f":"IF(INDIRECT(\"c\" & (VLOOKUP(Rebalance!$D$56,$F$2:$G$48,2,FALSE)+ROW()-2))=Rebalance!$D$56,INDIRECT(\"a\" & (VLOOKUP(Rebalance!$D$56,$F$2:$G$48,2,FALSE)+ROW()-2)),\"\")","v":{"$error":"#N/A"}},{"$f":"IF(INDIRECT(\"c\" & (VLOOKUP(Rebalance!$D$57,$F$2:$G$48,2,FALSE)+ROW()-2))=Rebalance!$D$57,INDIRECT(\"a\" & (VLOOKUP(Rebalance!$D$57,$F$2:$G$48,2,FALSE)+ROW()-2)),\"\")","v":{"$error":"#N/A"}},{"$f":"IF(INDIRECT(\"c\" & (VLOOKUP(Rebalance!$D$58,$F$2:$G$48,2,FALSE)+ROW()-2))=Rebalance!$D$58,INDIRECT(\"a\" & (VLOOKUP(Rebalance!$D$58,$F$2:$G$48,2,FALSE)+ROW()-2)),\"\")","v":{"$error":"#N/A"}},{"$f":"IF(INDIRECT(\"c\" & (VLOOKUP(Rebalance!$D$59,$F$2:$G$48,2,FALSE)+ROW()-2))=Rebalance!$D$59,INDIRECT(\"a\" & (VLOOKUP(Rebalance!$D$59,$F$2:$G$48,2,FALSE)+ROW()-2)),\"\")","v":{"$error":"#N/A"}},{"$f":"IF(INDIRECT(\"c\" & (VLOOKUP(Rebalance!$D$60,$F$2:$G$48,2,FALSE)+ROW()-2))=Rebalance!$D$60,INDIRECT(\"a\" & (VLOOKUP(Rebalance!$D$60,$F$2:$G$48,2,FALSE)+ROW()-2)),\"\")","v":{"$error":"#N/A"}},{"$f":"IF(INDIRECT(\"c\" & (VLOOKUP(Rebalance!$D$61,$F$2:$G$48,2,FALSE)+ROW()-2))=Rebalance!$D$61,INDIRECT(\"a\" & (VLOOKUP(Rebalance!$D$61,$F$2:$G$48,2,FALSE)+ROW()-2)),\"\")","v":{"$error":"#N/A"}},{"$f":"IF(INDIRECT(\"c\" & (VLOOKUP(Rebalance!$D$62,$F$2:$G$48,2,FALSE)+ROW()-2))=Rebalance!$D$62,INDIRECT(\"a\" & (VLOOKUP(Rebalance!$D$62,$F$2:$G$48,2,FALSE)+ROW()-2)),\"\")","v":{"$error":"#N/A"}},{"$f":"IF(INDIRECT(\"c\" & (VLOOKUP(Rebalance!$D$63,$F$2:$G$48,2,FALSE)+ROW()-2))=Rebalance!$D$63,INDIRECT(\"a\" & (VLOOKUP(Rebalance!$D$63,$F$2:$G$48,2,FALSE)+ROW()-2)),\"\")","v":{"$error":"#N/A"}},{"$f":"IF(INDIRECT(\"c\" & (VLOOKUP(Rebalance!$D$64,$F$2:$G$48,2,FALSE)+ROW()-2))=Rebalance!$D$64,INDIRECT(\"a\" & (VLOOKUP(Rebalance!$D$64,$F$2:$G$48,2,FALSE)+ROW()-2)),\"\")","v":{"$error":"#N/A"}},{"$f":"IF(INDIRECT(\"c\" & (VLOOKUP(Rebalance!$D$65,$F$2:$G$48,2,FALSE)+ROW()-2))=Rebalance!$D$65,INDIRECT(\"a\" & (VLOOKUP(Rebalance!$D$65,$F$2:$G$48,2,FALSE)+ROW()-2)),\"\")","v":{"$error":"#N/A"}},{"$f":"IF(INDIRECT(\"c\" & (VLOOKUP(Rebalance!$D$66,$F$2:$G$48,2,FALSE)+ROW()-2))=Rebalance!$D$66,INDIRECT(\"a\" & (VLOOKUP(Rebalance!$D$66,$F$2:$G$48,2,FALSE)+ROW()-2)),\"\")","v":{"$error":"#N/A"}}]
["Noble PP STANLIB All Weather FoF A1","NSWA1","STANLIB Collective Investments",{"$f":"ROW()","v":3},null,"ABSA Fund Managers",{"$f":"VLOOKUP(F3,$C$2:$D$599,2,FALSE)","v":81},{"$f":"IF(INDIRECT(\"c\" & (VLOOKUP(Rebalance!$D$26,$F$2:$G$48,2,FALSE)+ROW()-2))=Rebalance!$D$26,INDIRECT(\"a\" & (VLOOKUP(Rebalance!$D$26,$F$2:$G$48,2,FALSE)+ROW()-2)),\"\")","v":{"$error":"#N/A"}},{"$f":"IF(INDIRECT(\"c\" & (VLOOKUP(Rebalance!$D$27,$F$2:$G$48,2,FALSE)+ROW()-2))=Rebalance!$D$27,INDIRECT(\"a\" & (VLOOKUP(Rebalance!$D$27,$F$2:$G$48,2,FALSE)+ROW()-2)),\"\")","v":{"$error":"#N/A"}},{"$f":"IF(INDIRECT(\"c\" & (VLOOKUP(Rebalance!$D$28,$F$2:$G$48,2,FALSE)+ROW()-2))=Rebalance!$D$28,INDIRECT(\"a\" & (VLOOKUP(Rebalance!$D$28,$F$2:$G$48,2,FALSE)+ROW()-2)),\"\")","v":{"$error":"#N/A"}},{"$f":"IF(INDIRECT(\"c\" & (VLOOKUP(Rebalance!$D$29,$F$2:$G$48,2,FALSE)+ROW()-2))=Rebalance!$D$29,INDIRECT(\"a\" & (VLOOKUP(Rebalance!$D$29,$F$2:$G$48,2,FALSE)+ROW()-2)),\"\")","v":{"$error":"#N/A"}},{"$f":"IF(INDIRECT(\"c\" & (VLOOKUP(Rebalance!$D$30,$F$2:$G$48,2,FALSE)+ROW()-2))=Rebalance!$D$30,INDIRECT(\"a\" & (VLOOKUP(Rebalance!$D$30,$F$2:$G$48,2,FALSE)+ROW()-2)),\"\")","v":{"$error":"#N/A"}},{"$f":"IF(INDIRECT(\"c\" & (VLOOKUP(Rebalance!$D$31,$F$2:$G$48,2,FALSE)+ROW()-2))=Rebalance!$D$31,INDIRECT(\"a\" & (VLOOKUP(Rebalance!$D$31,$F$2:$G$48,2,FALSE)+ROW()-2)),\"\")","v":{"$error":"#N/A"}},{"$f":"IF(INDIRECT(\"c\" & (VLOOKUP(Rebalance!$D$32,$F$2:$G$48,2,FALSE)+ROW()-2))=Rebalance!$D$32,INDIRECT(\"a\" & (VLOOKUP(Rebalance!$D$32,$F$2:$G$48,2,FALSE)+ROW()-2)),\"\")","v":{"$error":"#N/A"}},{"$f":"IF(INDIRECT(\"c\" & (VLOOKUP(Rebalance!$D$33,$F$2:$G$48,2,FALSE)+ROW()-2))=Rebalance!$D$33,INDIRECT(\"a\" & (VLOOKUP(Rebalance!$D$33,$F$2:$G$48,2,FALSE)+ROW()-2)),\"\")","v":{"$error":"#N/A"}},{"$f":"IF(INDIRECT(\"c\" & (VLOOKUP(Rebalance!$D$34,$F$2:$G$48,2,FALSE)+ROW()-2))=Rebalance!$D$34,INDIRECT(\"a\" & (VLOOKUP(Rebalance!$D$34,$F$2:$G$48,2,FALSE)+ROW()-2)),\"\")","v":{"$error":"#N/A"}},{"$f":"IF(INDIRECT(\"c\" & (VLOOKUP(Rebalance!$D$35,$F$2:$G$48,2,FALSE)+ROW()-2))=Rebalance!$D$35,INDIRECT(\"a\" & (VLOOKUP(Rebalance!$D$35,$F$2:$G$48,2,FALSE)+ROW()-2)),\"\")","v":{"$error":"#N/A"}},{"$f":"IF(INDIRECT(\"c\" & (VLOOKUP(Rebalance!$D$36,$F$2:$G$48,2,FALSE)+ROW()-2))=Rebalance!$D$36,INDIRECT(\"a\" & (VLOOKUP(Rebalance!$D$36,$F$2:$G$48,2,FALSE)+ROW()-2)),\"\")","v":{"$error":"#N/A"}},{"$f":"IF(INDIRECT(\"c\" & (VLOOKUP(Rebalance!$D$37,$F$2:$G$48,2,FALSE)+ROW()-2))=Rebalance!$D$37,INDIRECT(\"a\" & (VLOOKUP(Rebalance!$D$37,$F$2:$G$48,2,FALSE)+ROW()-2)),\"\")","v":{"$error":"#N/A"}},{"$f":"IF(INDIRECT(\"c\" & (VLOOKUP(Rebalance!$D$38,$F$2:$G$48,2,FALSE)+ROW()-2))=Rebalance!$D$38,INDIRECT(\"a\" & (VLOOKUP(Rebalance!$D$38,$F$2:$G$48,2,FALSE)+ROW()-2)),\"\")","v":{"$error":"#N/A"}},{"$f":"IF(INDIRECT(\"c\" & (VLOOKUP(Rebalance!$D$39,$F$2:$G$48,2,FALSE)+ROW()-2))=Rebalance!$D$39,INDIRECT(\"a\" & (VLOOKUP(Rebalance!$D$39,$F$2:$G$48,2,FALSE)+ROW()-2)),\"\")","v":{"$error":"#N/A"}},{"$f":"IF(INDIRECT(\"c\" & (VLOOKUP(Rebalance!$D$40,$F$2:$G$48,2,FALSE)+ROW()-2))=Rebalance!$D$40,INDIRECT(\"a\" & (VLOOKUP(Rebalance!$D$40,$F$2:$G$48,2,FALSE)+ROW()-2)),\"\")","v":{"$error":"#N/A"}},{"$f":"IF(INDIRECT(\"c\" & (VLOOKUP(Rebalance!$D$52,$F$2:$G$48,2,FALSE)+ROW()-2))=Rebalance!$D$52,INDIRECT(\"a\" & (VLOOKUP(Rebalance!$D$52,$F$2:$G$48,2,FALSE)+ROW()-2)),\"\")","v":{"$error":"#N/A"}},{"$f":"IF(INDIRECT(\"c\" & (VLOOKUP(Rebalance!$D$53,$F$2:$G$48,2,FALSE)+ROW()-2))=Rebalance!$D$53,INDIRECT(\"a\" & (VLOOKUP(Rebalance!$D$53,$F$2:$G$48,2,FALSE)+ROW()-2)),\"\")","v":{"$error":"#N/A"}},{"$f":"IF(INDIRECT(\"c\" & (VLOOKUP(Rebalance!$D$54,$F$2:$G$48,2,FALSE)+ROW()-2))=Rebalance!$D$54,INDIRECT(\"a\" & (VLOOKUP(Rebalance!$D$54,$F$2:$G$48,2,FALSE)+ROW()-2)),\"\")","v":{"$error":"#N/A"}},{"$f":"IF(INDIRECT(\"c\" & (VLOOKUP(Rebalance!$D$55,$F$2:$G$48,2,FALSE)+ROW()-2))=Rebalance!$D$55,INDIRECT(\"a\" & (VLOOKUP(Rebalance!$D$55,$F$2:$G$48,2,FALSE)+ROW()-2)),\"\")","v":{"$error":"#N/A"}},{"$f":"IF(INDIRECT(\"c\" & (VLOOKUP(Rebalance!$D$56,$F$2:$G$48,2,FALSE)+ROW()-2))=Rebalance!$D$56,INDIRECT(\"a\" & (VLOOKUP(Rebalance!$D$56,$F$2:$G$48,2,FALSE)+ROW()-2)),\"\")","v":{"$error":"#N/A"}},{"$f":"IF(INDIRECT(\"c\" & (VLOOKUP(Rebalance!$D$57,$F$2:$G$48,2,FALSE)+ROW()-2))=Rebalance!$D$57,INDIRECT(\"a\" & (VLOOKUP(Rebalance!$D$57,$F$2:$G$48,2,FALSE)+ROW()-2)),\"\")","v":{"$error":"#N/A"}},{"$f":"IF(INDIRECT(\"c\" & (VLOOKUP(Rebalance!$D$58,$F$2:$G$48,2,FALSE)+ROW()-2))=Rebalance!$D$58,INDIRECT(\"a\" & (VLOOKUP(Rebalance!$D$58,$F$2:$G$48,2,FALSE)+ROW()-2)),\"\")","v":{"$error":"#N/A"}},{"$f":"IF(INDIRECT(\"c\" & (VLOOKUP(Rebalance!$D$59,$F$2:$G$48,2,FALSE)+ROW()-2))=Rebalance!$D$59,INDIRECT(\"a\" & (VLOOKUP(Rebalance!$D$59,$F$2:$G$48,2,FALSE)+ROW()-2)),\"\")","v":{"$error":"#N/A"}},{"$f":"IF(INDIRECT(\"c\" & (VLOOKUP(Rebalance!$D$60,$F$2:$G$48,2,FALSE)+ROW()-2))=Rebalance!$D$60,INDIRECT(\"a\" & (VLOOKUP(Rebalance!$D$60,$F$2:$G$48,2,FALSE)+ROW()-2)),\"\")","v":{"$error":"#N/A"}},{"$f":"IF(INDIRECT(\"c\" & (VLOOKUP(Rebalance!$D$61,$F$2:$G$48,2,FALSE)+ROW()-2))=Rebalance!$D$61,INDIRECT(\"a\" & (VLOOKUP(Rebalance!$D$61,$F$2:$G$48,2,FALSE)+ROW()-2)),\"\")","v":{"$error":"#N/A"}},{"$f":"IF(INDIRECT(\"c\" & (VLOOKUP(Rebalance!$D$62,$F$2:$G$48,2,FALSE)+ROW()-2))=Rebalance!$D$62,INDIRECT(\"a\" & (VLOOKUP(Rebalance!$D$62,$F$2:$G$48,2,FALSE)+ROW()-2)),\"\")","v":{"$error":"#N/A"}},{"$f":"IF(INDIRECT(\"c\" & (VLOOKUP(Rebalance!$D$63,$F$2:$G$48,2,FALSE)+ROW()-2))=Rebalance!$D$63,INDIRECT(\"a\" & (VLOOKUP(Rebalance!$D$63,$F$2:$G$48,2,FALSE)+ROW()-2)),\"\")","v":{"$error":"#N/A"}},{"$f":"IF(INDIRECT(\"c\" & (VLOOKUP(Rebalance!$D$64,$F$2:$G$48,2,FALSE)+ROW()-2))=Rebalance!$D$64,INDIRECT(\"a\" & (VLOOKUP(Rebalance!$D$64,$F$2:$G$48,2,FALSE)+ROW()-2)),\"\")","v":{"$error":"#N/A"}},{"$f":"IF(INDIRECT(\"c\" & (VLOOKUP(Rebalance!$D$65,$F$2:$G$48,2,FALSE)+ROW()-2))=Rebalance!$D$65,INDIRECT(\"a\" & (VLOOKUP(Rebalance!$D$65,$F$2:$G$48,2,FALSE)+ROW()-2)),\"\")","v":{"$error":"#N/A"}},{"$f":"IF(INDIRECT(\"c\" & (VLOOKUP(Rebalance!$D$66,$F$2:$G$48,2,FALSE)+ROW()-2))=Rebalance!$D$66,INDIRECT(\"a\" & (VLOOKUP(Rebalance!$D$66,$F$2:$G$48,2,FALSE)+ROW()-2)),\"\")","v":{"$error":"#N/A"}}]
["Noble PP STANLIB Balanced FoF A1","NPBA1","STANLIB Collective Investments",{"$f":"ROW()","v":4},null,"Allan Gray Unit Trust Management Limited",{"$f":"VLOOKUP(F4,$C$2:$D$599,2,FALSE)","v":87},{"$f":"IF(INDIRECT(\"c\" & (VLOOKUP(Rebalance!$D$26,$F$2:$G$48,2,FALSE)+ROW()-2))=Rebalance!$D$26,INDIRECT(\"a\" & (VLOOKUP(Rebalance!$D$26,$F$2:$G$48,2,FALSE)+ROW()-2)),\"\")","v":{"$error":"#N/A"}},{"$f":"IF(INDIRECT(\"c\" & (VLOOKUP(Rebalance!$D$27,$F$2:$G$48,2,FALSE)+ROW()-2))=Rebalance!$D$27,INDIRECT(\"a\" & (VLOOKUP(Rebalance!$D$27,$F$2:$G$48,2,FALSE)+ROW()-2)),\"\")","v":{"$error":"#N/A"}},{"$f":"IF(INDIRECT(\"c\" & (VLOOKUP(Rebalance!$D$28,$F$2:$G$48,2,FALSE)+ROW()-2))=Rebalance!$D$28,INDIRECT(\"a\" & (VLOOKUP(Rebalance!$D$28,$F$2:$G$48,2,FALSE)+ROW()-2)),\"\")","v":{"$error":"#N/A"}},{"$f":"IF(INDIRECT(\"c\" & (VLOOKUP(Rebalance!$D$29,$F$2:$G$48,2,FALSE)+ROW()-2))=Rebalance!$D$29,INDIRECT(\"a\" & (VLOOKUP(Rebalance!$D$29,$F$2:$G$48,2,FALSE)+ROW()-2)),\"\")","v":{"$error":"#N/A"}},{"$f":"IF(INDIRECT(\"c\" & (VLOOKUP(Rebalance!$D$30,$F$2:$G$48,2,FALSE)+ROW()-2))=Rebalance!$D$30,INDIRECT(\"a\" & (VLOOKUP(Rebalance!$D$30,$F$2:$G$48,2,FALSE)+ROW()-2)),\"\")","v":{"$error":"#N/A"}},{"$f":"IF(INDIRECT(\"c\" & (VLOOKUP(Rebalance!$D$31,$F$2:$G$48,2,FALSE)+ROW()-2))=Rebalance!$D$31,INDIRECT(\"a\" & (VLOOKUP(Rebalance!$D$31,$F$2:$G$48,2,FALSE)+ROW()-2)),\"\")","v":{"$error":"#N/A"}},{"$f":"IF(INDIRECT(\"c\" & (VLOOKUP(Rebalance!$D$32,$F$2:$G$48,2,FALSE)+ROW()-2))=Rebalance!$D$32,INDIRECT(\"a\" & (VLOOKUP(Rebalance!$D$32,$F$2:$G$48,2,FALSE)+ROW()-2)),\"\")","v":{"$error":"#N/A"}},{"$f":"IF(INDIRECT(\"c\" & (VLOOKUP(Rebalance!$D$33,$F$2:$G$48,2,FALSE)+ROW()-2))=Rebalance!$D$33,INDIRECT(\"a\" & (VLOOKUP(Rebalance!$D$33,$F$2:$G$48,2,FALSE)+ROW()-2)),\"\")","v":{"$error":"#N/A"}},{"$f":"IF(INDIRECT(\"c\" & (VLOOKUP(Rebalance!$D$34,$F$2:$G$48,2,FALSE)+ROW()-2))=Rebalance!$D$34,INDIRECT(\"a\" & (VLOOKUP(Rebalance!$D$34,$F$2:$G$48,2,FALSE)+ROW()-2)),\"\")","v":{"$error":"#N/A"}},{"$f":"IF(INDIRECT(\"c\" & (VLOOKUP(Rebalance!$D$35,$F$2:$G$48,2,FALSE)+ROW()-2))=Rebalance!$D$35,INDIRECT(\"a\" & (VLOOKUP(Rebalance!$D$35,$F$2:$G$48,2,FALSE)+ROW()-2)),\"\")","v":{"$error":"#N/A"}},{"$f":"IF(INDIRECT(\"c\" & (VLOOKUP(Rebalance!$D$36,$F$2:$G$48,2,FALSE)+ROW()-2))=Rebalance!$D$36,INDIRECT(\"a\" & (VLOOKUP(Rebalance!$D$36,$F$2:$G$48,2,FALSE)+ROW()-2)),\"\")","v":{"$error":"#N/A"}},{"$f":"IF(INDIRECT(\"c\" & (VLOOKUP(Rebalance!$D$37,$F$2:$G$48,2,FALSE)+ROW()-2))=Rebalance!$D$37,INDIRECT(\"a\" & (VLOOKUP(Rebalance!$D$37,$F$2:$G$48,2,FALSE)+ROW()-2)),\"\")","v":{"$error":"#N/A"}},{"$f":"IF(INDIRECT(\"c\" & (VLOOKUP(Rebalance!$D$38,$F$2:$G$48,2,FALSE)+ROW()-2))=Rebalance!$D$38,INDIRECT(\"a\" & (VLOOKUP(Rebalance!$D$38,$F$2:$G$48,2,FALSE)+ROW()-2)),\"\")","v":{"$error":"#N/A"}},{"$f":"IF(INDIRECT(\"c\" & (VLOOKUP(Rebalance!$D$39,$F$2:$G$48,2,FALSE)+ROW()-2))=Rebalance!$D$39,INDIRECT(\"a\" & (VLOOKUP(Rebalance!$D$39,$F$2:$G$48,2,FALSE)+ROW()-2)),\"\")","v":{"$error":"#N/A"}},{"$f":"IF(INDIRECT(\"c\" & (VLOOKUP(Rebalance!$D$40,$F$2:$G$48,2,FALSE)+ROW()-2))=Rebalance!$D$40,INDIRECT(\"a\" & (VLOOKUP(Rebalance!$D$40,$F$2:$G$48,2,FALSE)+ROW()-2)),\"\")","v":{"$error":"#N/A"}},{"$f":"IF(INDIRECT(\"c\" & (VLOOKUP(Rebalance!$D$52,$F$2:$G$48,2,FALSE)+ROW()-2))=Rebalance!$D$52,INDIRECT(\"a\" & (VLOOKUP(Rebalance!$D$52,$F$2:$G$48,2,FALSE)+ROW()-2)),\"\")","v":{"$error":"#N/A"}},{"$f":"IF(INDIRECT(\"c\" & (VLOOKUP(Rebalance!$D$53,$F$2:$G$48,2,FALSE)+ROW()-2))=Rebalance!$D$53,INDIRECT(\"a\" & (VLOOKUP(Rebalance!$D$53,$F$2:$G$48,2,FALSE)+ROW()-2)),\"\")","v":{"$error":"#N/A"}},{"$f":"IF(INDIRECT(\"c\" & (VLOOKUP(Rebalance!$D$54,$F$2:$G$48,2,FALSE)+ROW()-2))=Rebalance!$D$54,INDIRECT(\"a\" & (VLOOKUP(Rebalance!$D$54,$F$2:$G$48,2,FALSE)+ROW()-2)),\"\")","v":{"$error":"#N/A"}},{"$f":"IF(INDIRECT(\"c\" & (VLOOKUP(Rebalance!$D$55,$F$2:$G$48,2,FALSE)+ROW()-2))=Rebalance!$D$55,INDIRECT(\"a\" & (VLOOKUP(Rebalance!$D$55,$F$2:$G$48,2,FALSE)+ROW()-2)),\"\")","v":{"$error":"#N/A"}},{"$f":"IF(INDIRECT(\"c\" & (VLOOKUP(Rebalance!$D$56,$F$2:$G$48,2,FALSE)+ROW()-2))=Rebalance!$D$56,INDIRECT(\"a\" & (VLOOKUP(Rebalance!$D$56,$F$2:$G$48,2,FALSE)+ROW()-2)),\"\")","v":{"$error":"#N/A"}},{"$f":"IF(INDIRECT(\"c\" & (VLOOKUP(Rebalance!$D$57,$F$2:$G$48,2,FALSE)+ROW()-2))=Rebalance!$D$57,INDIRECT(\"a\" & (VLOOKUP(Rebalance!$D$57,$F$2:$G$48,2,FALSE)+ROW()-2)),\"\")","v":{"$error":"#N/A"}},{"$f":"IF(INDIRECT(\"c\" & (VLOOKUP(Rebalance!$D$58,$F$2:$G$48,2,FALSE)+ROW()-2))=Rebalance!$D$58,INDIRECT(\"a\" & (VLOOKUP(Rebalance!$D$58,$F$2:$G$48,2,FALSE)+ROW()-2)),\"\")","v":{"$error":"#N/A"}},{"$f":"IF(INDIRECT(\"c\" & (VLOOKUP(Rebalance!$D$59,$F$2:$G$48,2,FALSE)+ROW()-2))=Rebalance!$D$59,INDIRECT(\"a\" & (VLOOKUP(Rebalance!$D$59,$F$2:$G$48,2,FALSE)+ROW()-2)),\"\")","v":{"$error":"#N/A"}},{"$f":"IF(INDIRECT(\"c\" & (VLOOKUP(Rebalance!$D$60,$F$2:$G$48,2,FALSE)+ROW()-2))=Rebalance!$D$60,INDIRECT(\"a\" & (VLOOKUP(Rebalance!$D$60,$F$2:$G$48,2,FALSE)+ROW()-2)),\"\")","v":{"$error":"#N/A"}},{"$f":"IF(INDIRECT(\"c\" & (VLOOKUP(Rebalance!$D$61,$F$2:$G$48,2,FALSE)+ROW()-2))=Rebalance!$D$61,INDIRECT(\"a\" & (VLOOKUP(Rebalance!$D$61,$F$2:$G$48,2,FALSE)+ROW()-2)),\"\")","v":{"$error":"#N/A"}},{"$f":"IF(INDIRECT(\"c\" & (VLOOKUP(Rebalance!$D$62,$F$2:$G$48,2,FALSE)+ROW()-2))=Rebalance!$D$62,INDIRECT(\"a\" & (VLOOKUP(Rebalance!$D$62,$F$2:$G$48,2,FALSE)+ROW()-2)),\"\")","v":{"$error":"#N/A"}},{"$f":"IF(INDIRECT(\"c\" & (VLOOKUP(Rebalance!$D$63,$F$2:$G$48,2,FALSE)+ROW()-2))=Rebalance!$D$63,INDIRECT(\"a\" & (VLOOKUP(Rebalance!$D$63,$F$2:$G$48,2,FALSE)+ROW()-2)),\"\")","v":{"$error":"#N/A"}},{"$f":"IF(INDIRECT(\"c\" & (VLOOKUP(Rebalance!$D$64,$F$2:$G$48,2,FALSE)+ROW()-2))=Rebalance!$D$64,INDIRECT(\"a\" & (VLOOKUP(Rebalance!$D$64,$F$2:$G$48,2,FALSE)+ROW()-2)),\"\")","v":{"$error":"#N/A"}},{"$f":"IF(INDIRECT(\"c\" & (VLOOKUP(Rebalance!$D$65,$F$2:$G$48,2,FALSE)+ROW()-2))=Rebalance!$D$65,INDIRECT(\"a\" & (VLOOKUP(Rebalance!$D$65,$F$2:$G$48,2,FALSE)+ROW()-2)),\"\")","v":{"$error":"#N/A"}},{"$f":"IF(INDIRECT(\"c\" & (VLOOKUP(Rebalance!$D$66,$F$2:$G$48,2,FALSE)+ROW()-2))=Rebalance!$D$66,INDIRECT(\"a\" & (VLOOKUP(Rebalance!$D$66,$F$2:$G$48,2,FALSE)+ROW()-2)),\"\")","v":{"$error":"#N/A"}}]
["Noble PP STANLIB Flexible Fund A1","NSFA1","STANLIB Collective Investments",{"$f":"ROW()","v":5},null,"Ashburton Management Company (RF) PTY LTD",{"$f":"VLOOKUP(F5,$C$2:$D$599,2,FALSE)","v":94},{"$f":"IF(INDIRECT(\"c\" & (VLOOKUP(Rebalance!$D$26,$F$2:$G$48,2,FALSE)+ROW()-2))=Rebalance!$D$26,INDIRECT(\"a\" & (VLOOKUP(Rebalance!$D$26,$F$2:$G$48,2,FALSE)+ROW()-2)),\"\")","v":{"$error":"#N/A"}},{"$f":"IF(INDIRECT(\"c\" & (VLOOKUP(Rebalance!$D$27,$F$2:$G$48,2,FALSE)+ROW()-2))=Rebalance!$D$27,INDIRECT(\"a\" & (VLOOKUP(Rebalance!$D$27,$F$2:$G$48,2,FALSE)+ROW()-2)),\"\")","v":{"$error":"#N/A"}},{"$f":"IF(INDIRECT(\"c\" & (VLOOKUP(Rebalance!$D$28,$F$2:$G$48,2,FALSE)+ROW()-2))=Rebalance!$D$28,INDIRECT(\"a\" & (VLOOKUP(Rebalance!$D$28,$F$2:$G$48,2,FALSE)+ROW()-2)),\"\")","v":{"$error":"#N/A"}},{"$f":"IF(INDIRECT(\"c\" & (VLOOKUP(Rebalance!$D$29,$F$2:$G$48,2,FALSE)+ROW()-2))=Rebalance!$D$29,INDIRECT(\"a\" & (VLOOKUP(Rebalance!$D$29,$F$2:$G$48,2,FALSE)+ROW()-2)),\"\")","v":{"$error":"#N/A"}},{"$f":"IF(INDIRECT(\"c\" & (VLOOKUP(Rebalance!$D$30,$F$2:$G$48,2,FALSE)+ROW()-2))=Rebalance!$D$30,INDIRECT(\"a\" & (VLOOKUP(Rebalance!$D$30,$F$2:$G$48,2,FALSE)+ROW()-2)),\"\")","v":{"$error":"#N/A"}},{"$f":"IF(INDIRECT(\"c\" & (VLOOKUP(Rebalance!$D$31,$F$2:$G$48,2,FALSE)+ROW()-2))=Rebalance!$D$31,INDIRECT(\"a\" & (VLOOKUP(Rebalance!$D$31,$F$2:$G$48,2,FALSE)+ROW()-2)),\"\")","v":{"$error":"#N/A"}},{"$f":"IF(INDIRECT(\"c\" & (VLOOKUP(Rebalance!$D$32,$F$2:$G$48,2,FALSE)+ROW()-2))=Rebalance!$D$32,INDIRECT(\"a\" & (VLOOKUP(Rebalance!$D$32,$F$2:$G$48,2,FALSE)+ROW()-2)),\"\")","v":{"$error":"#N/A"}},{"$f":"IF(INDIRECT(\"c\" & (VLOOKUP(Rebalance!$D$33,$F$2:$G$48,2,FALSE)+ROW()-2))=Rebalance!$D$33,INDIRECT(\"a\" & (VLOOKUP(Rebalance!$D$33,$F$2:$G$48,2,FALSE)+ROW()-2)),\"\")","v":{"$error":"#N/A"}},{"$f":"IF(INDIRECT(\"c\" & (VLOOKUP(Rebalance!$D$34,$F$2:$G$48,2,FALSE)+ROW()-2))=Rebalance!$D$34,INDIRECT(\"a\" & (VLOOKUP(Rebalance!$D$34,$F$2:$G$48,2,FALSE)+ROW()-2)),\"\")","v":{"$error":"#N/A"}},{"$f":"IF(INDIRECT(\"c\" & (VLOOKUP(Rebalance!$D$35,$F$2:$G$48,2,FALSE)+ROW()-2))=Rebalance!$D$35,INDIRECT(\"a\" & (VLOOKUP(Rebalance!$D$35,$F$2:$G$48,2,FALSE)+ROW()-2)),\"\")","v":{"$error":"#N/A"}},{"$f":"IF(INDIRECT(\"c\" & (VLOOKUP(Rebalance!$D$36,$F$2:$G$48,2,FALSE)+ROW()-2))=Rebalance!$D$36,INDIRECT(\"a\" & (VLOOKUP(Rebalance!$D$36,$F$2:$G$48,2,FALSE)+ROW()-2)),\"\")","v":{"$error":"#N/A"}},{"$f":"IF(INDIRECT(\"c\" & (VLOOKUP(Rebalance!$D$37,$F$2:$G$48,2,FALSE)+ROW()-2))=Rebalance!$D$37,INDIRECT(\"a\" & (VLOOKUP(Rebalance!$D$37,$F$2:$G$48,2,FALSE)+ROW()-2)),\"\")","v":{"$error":"#N/A"}},{"$f":"IF(INDIRECT(\"c\" & (VLOOKUP(Rebalance!$D$38,$F$2:$G$48,2,FALSE)+ROW()-2))=Rebalance!$D$38,INDIRECT(\"a\" & (VLOOKUP(Rebalance!$D$38,$F$2:$G$48,2,FALSE)+ROW()-2)),\"\")","v":{"$error":"#N/A"}},{"$f":"IF(INDIRECT(\"c\" & (VLOOKUP(Rebalance!$D$39,$F$2:$G$48,2,FALSE)+ROW()-2))=Rebalance!$D$39,INDIRECT(\"a\" & (VLOOKUP(Rebalance!$D$39,$F$2:$G$48,2,FALSE)+ROW()-2)),\"\")","v":{"$error":"#N/A"}},{"$f":"IF(INDIRECT(\"c\" & (VLOOKUP(Rebalance!$D$40,$F$2:$G$48,2,FALSE)+ROW()-2))=Rebalance!$D$40,INDIRECT(\"a\" & (VLOOKUP(Rebalance!$D$40,$F$2:$G$48,2,FALSE)+ROW()-2)),\"\")","v":{"$error":"#N/A"}},{"$f":"IF(INDIRECT(\"c\" & (VLOOKUP(Rebalance!$D$52,$F$2:$G$48,2,FALSE)+ROW()-2))=Rebalance!$D$52,INDIRECT(\"a\" & (VLOOKUP(Rebalance!$D$52,$F$2:$G$48,2,FALSE)+ROW()-2)),\"\")","v":{"$error":"#N/A"}},{"$f":"IF(INDIRECT(\"c\" & (VLOOKUP(Rebalance!$D$53,$F$2:$G$48,2,FALSE)+ROW()-2))=Rebalance!$D$53,INDIRECT(\"a\" & (VLOOKUP(Rebalance!$D$53,$F$2:$G$48,2,FALSE)+ROW()-2)),\"\")","v":{"$error":"#N/A"}},{"$f":"IF(INDIRECT(\"c\" & (VLOOKUP(Rebalance!$D$54,$F$2:$G$48,2,FALSE)+ROW()-2))=Rebalance!$D$54,INDIRECT(\"a\" & (VLOOKUP(Rebalance!$D$54,$F$2:$G$48,2,FALSE)+ROW()-2)),\"\")","v":{"$error":"#N/A"}},{"$f":"IF(INDIRECT(\"c\" & (VLOOKUP(Rebalance!$D$55,$F$2:$G$48,2,FALSE)+ROW()-2))=Rebalance!$D$55,INDIRECT(\"a\" & (VLOOKUP(Rebalance!$D$55,$F$2:$G$48,2,FALSE)+ROW()-2)),\"\")","v":{"$error":"#N/A"}},{"$f":"IF(INDIRECT(\"c\" & (VLOOKUP(Rebalance!$D$56,$F$2:$G$48,2,FALSE)+ROW()-2))=Rebalance!$D$56,INDIRECT(\"a\" & (VLOOKUP(Rebalance!$D$56,$F$2:$G$48,2,FALSE)+ROW()-2)),\"\")","v":{"$error":"#N/A"}},{"$f":"IF(INDIRECT(\"c\" & (VLOOKUP(Rebalance!$D$57,$F$2:$G$48,2,FALSE)+ROW()-2))=Rebalance!$D$57,INDIRECT(\"a\" & (VLOOKUP(Rebalance!$D$57,$F$2:$G$48,2,FALSE)+ROW()-2)),\"\")","v":{"$error":"#N/A"}},{"$f":"IF(INDIRECT(\"c\" & (VLOOKUP(Rebalance!$D$58,$F$2:$G$48,2,FALSE)+ROW()-2))=Rebalance!$D$58,INDIRECT(\"a\" & (VLOOKUP(Rebalance!$D$58,$F$2:$G$48,2,FALSE)+ROW()-2)),\"\")","v":{"$error":"#N/A"}},{"$f":"IF(INDIRECT(\"c\" & (VLOOKUP(Rebalance!$D$59,$F$2:$G$48,2,FALSE)+ROW()-2))=Rebalance!$D$59,INDIRECT(\"a\" & (VLOOKUP(Rebalance!$D$59,$F$2:$G$48,2,FALSE)+ROW()-2)),\"\")","v":{"$error":"#N/A"}},{"$f":"IF(INDIRECT(\"c\" & (VLOOKUP(Rebalance!$D$60,$F$2:$G$48,2,FALSE)+ROW()-2))=Rebalance!$D$60,INDIRECT(\"a\" & (VLOOKUP(Rebalance!$D$60,$F$2:$G$48,2,FALSE)+ROW()-2)),\"\")","v":{"$error":"#N/A"}},{"$f":"IF(INDIRECT(\"c\" & (VLOOKUP(Rebalance!$D$61,$F$2:$G$48,2,FALSE)+ROW()-2))=Rebalance!$D$61,INDIRECT(\"a\" & (VLOOKUP(Rebalance!$D$61,$F$2:$G$48,2,FALSE)+ROW()-2)),\"\")","v":{"$error":"#N/A"}},{"$f":"IF(INDIRECT(\"c\" & (VLOOKUP(Rebalance!$D$62,$F$2:$G$48,2,FALSE)+ROW()-2))=Rebalance!$D$62,INDIRECT(\"a\" & (VLOOKUP(Rebalance!$D$62,$F$2:$G$48,2,FALSE)+ROW()-2)),\"\")","v":{"$error":"#N/A"}},{"$f":"IF(INDIRECT(\"c\" & (VLOOKUP(Rebalance!$D$63,$F$2:$G$48,2,FALSE)+ROW()-2))=Rebalance!$D$63,INDIRECT(\"a\" & (VLOOKUP(Rebalance!$D$63,$F$2:$G$48,2,FALSE)+ROW()-2)),\"\")","v":{"$error":"#N/A"}},{"$f":"IF(INDIRECT(\"c\" & (VLOOKUP(Rebalance!$D$64,$F$2:$G$48,2,FALSE)+ROW()-2))=Rebalance!$D$64,INDIRECT(\"a\" & (VLOOKUP(Rebalance!$D$64,$F$2:$G$48,2,FALSE)+ROW()-2)),\"\")","v":{"$error":"#N/A"}},{"$f":"IF(INDIRECT(\"c\" & (VLOOKUP(Rebalance!$D$65,$F$2:$G$48,2,FALSE)+ROW()-2))=Rebalance!$D$65,INDIRECT(\"a\" & (VLOOKUP(Rebalance!$D$65,$F$2:$G$48,2,FALSE)+ROW()-2)),\"\")","v":{"$error":"#N/A"}},{"$f":"IF(INDIRECT(\"c\" & (VLOOKUP(Rebalance!$D$66,$F$2:$G$48,2,FALSE)+ROW()-2))=Rebalance!$D$66,INDIRECT(\"a\" & (VLOOKUP(Rebalance!$D$66,$F$2:$G$48,2,FALSE)+ROW()-2)),\"\")","v":{"$error":"#N/A"}}]
["Noble PP STANLIB Strategic Income FoF A","NPSA1","STANLIB Collective Investments",{"$f":"ROW()","v":6},null,"Boutique Collective Investments (Pty) Ltd",{"$f":"VLOOKUP(F6,$C$2:$D$599,2,FALSE)","v":96},{"$f":"IF(INDIRECT(\"c\" & (VLOOKUP(Rebalance!$D$26,$F$2:$G$48,2,FALSE)+ROW()-2))=Rebalance!$D$26,INDIRECT(\"a\" & (VLOOKUP(Rebalance!$D$26,$F$2:$G$48,2,FALSE)+ROW()-2)),\"\")","v":{"$error":"#N/A"}},{"$f":"IF(INDIRECT(\"c\" & (VLOOKUP(Rebalance!$D$27,$F$2:$G$48,2,FALSE)+ROW()-2))=Rebalance!$D$27,INDIRECT(\"a\" & (VLOOKUP(Rebalance!$D$27,$F$2:$G$48,2,FALSE)+ROW()-2)),\"\")","v":{"$error":"#N/A"}},{"$f":"IF(INDIRECT(\"c\" & (VLOOKUP(Rebalance!$D$28,$F$2:$G$48,2,FALSE)+ROW()-2))=Rebalance!$D$28,INDIRECT(\"a\" & (VLOOKUP(Rebalance!$D$28,$F$2:$G$48,2,FALSE)+ROW()-2)),\"\")","v":{"$error":"#N/A"}},{"$f":"IF(INDIRECT(\"c\" & (VLOOKUP(Rebalance!$D$29,$F$2:$G$48,2,FALSE)+ROW()-2))=Rebalance!$D$29,INDIRECT(\"a\" & (VLOOKUP(Rebalance!$D$29,$F$2:$G$48,2,FALSE)+ROW()-2)),\"\")","v":{"$error":"#N/A"}},{"$f":"IF(INDIRECT(\"c\" & (VLOOKUP(Rebalance!$D$30,$F$2:$G$48,2,FALSE)+ROW()-2))=Rebalance!$D$30,INDIRECT(\"a\" & (VLOOKUP(Rebalance!$D$30,$F$2:$G$48,2,FALSE)+ROW()-2)),\"\")","v":{"$error":"#N/A"}},{"$f":"IF(INDIRECT(\"c\" & (VLOOKUP(Rebalance!$D$31,$F$2:$G$48,2,FALSE)+ROW()-2))=Rebalance!$D$31,INDIRECT(\"a\" & (VLOOKUP(Rebalance!$D$31,$F$2:$G$48,2,FALSE)+ROW()-2)),\"\")","v":{"$error":"#N/A"}},{"$f":"IF(INDIRECT(\"c\" & (VLOOKUP(Rebalance!$D$32,$F$2:$G$48,2,FALSE)+ROW()-2))=Rebalance!$D$32,INDIRECT(\"a\" & (VLOOKUP(Rebalance!$D$32,$F$2:$G$48,2,FALSE)+ROW()-2)),\"\")","v":{"$error":"#N/A"}},{"$f":"IF(INDIRECT(\"c\" & (VLOOKUP(Rebalance!$D$33,$F$2:$G$48,2,FALSE)+ROW()-2))=Rebalance!$D$33,INDIRECT(\"a\" & (VLOOKUP(Rebalance!$D$33,$F$2:$G$48,2,FALSE)+ROW()-2)),\"\")","v":{"$error":"#N/A"}},{"$f":"IF(INDIRECT(\"c\" & (VLOOKUP(Rebalance!$D$34,$F$2:$G$48,2,FALSE)+ROW()-2))=Rebalance!$D$34,INDIRECT(\"a\" & (VLOOKUP(Rebalance!$D$34,$F$2:$G$48,2,FALSE)+ROW()-2)),\"\")","v":{"$error":"#N/A"}},{"$f":"IF(INDIRECT(\"c\" & (VLOOKUP(Rebalance!$D$35,$F$2:$G$48,2,FALSE)+ROW()-2))=Rebalance!$D$35,INDIRECT(\"a\" & (VLOOKUP(Rebalance!$D$35,$F$2:$G$48,2,FALSE)+ROW()-2)),\"\")","v":{"$error":"#N/A"}},{"$f":"IF(INDIRECT(\"c\" & (VLOOKUP(Rebalance!$D$36,$F$2:$G$48,2,FALSE)+ROW()-2))=Rebalance!$D$36,INDIRECT(\"a\" & (VLOOKUP(Rebalance!$D$36,$F$2:$G$48,2,FALSE)+ROW()-2)),\"\")","v":{"$error":"#N/A"}},{"$f":"IF(INDIRECT(\"c\" & (VLOOKUP(Rebalance!$D$37,$F$2:$G$48,2,FALSE)+ROW()-2))=Rebalance!$D$37,INDIRECT(\"a\" & (VLOOKUP(Rebalance!$D$37,$F$2:$G$48,2,FALSE)+ROW()-2)),\"\")","v":{"$error":"#N/A"}},{"$f":"IF(INDIRECT(\"c\" & (VLOOKUP(Rebalance!$D$38,$F$2:$G$48,2,FALSE)+ROW()-2))=Rebalance!$D$38,INDIRECT(\"a\" & (VLOOKUP(Rebalance!$D$38,$F$2:$G$48,2,FALSE)+ROW()-2)),\"\")","v":{"$error":"#N/A"}},{"$f":"IF(INDIRECT(\"c\" & (VLOOKUP(Rebalance!$D$39,$F$2:$G$48,2,FALSE)+ROW()-2))=Rebalance!$D$39,INDIRECT(\"a\" & (VLOOKUP(Rebalance!$D$39,$F$2:$G$48,2,FALSE)+ROW()-2)),\"\")","v":{"$error":"#N/A"}},{"$f":"IF(INDIRECT(\"c\" & (VLOOKUP(Rebalance!$D$40,$F$2:$G$48,2,FALSE)+ROW()-2))=Rebalance!$D$40,INDIRECT(\"a\" & (VLOOKUP(Rebalance!$D$40,$F$2:$G$48,2,FALSE)+ROW()-2)),\"\")","v":{"$error":"#N/A"}},{"$f":"IF(INDIRECT(\"c\" & (VLOOKUP(Rebalance!$D$52,$F$2:$G$48,2,FALSE)+ROW()-2))=Rebalance!$D$52,INDIRECT(\"a\" & (VLOOKUP(Rebalance!$D$52,$F$2:$G$48,2,FALSE)+ROW()-2)),\"\")","v":{"$error":"#N/A"}},{"$f":"IF(INDIRECT(\"c\" & (VLOOKUP(Rebalance!$D$53,$F$2:$G$48,2,FALSE)+ROW()-2))=Rebalance!$D$53,INDIRECT(\"a\" & (VLOOKUP(Rebalance!$D$53,$F$2:$G$48,2,FALSE)+ROW()-2)),\"\")","v":{"$error":"#N/A"}},{"$f":"IF(INDIRECT(\"c\" & (VLOOKUP(Rebalance!$D$54,$F$2:$G$48,2,FALSE)+ROW()-2))=Rebalance!$D$54,INDIRECT(\"a\" & (VLOOKUP(Rebalance!$D$54,$F$2:$G$48,2,FALSE)+ROW()-2)),\"\")","v":{"$error":"#N/A"}},{"$f":"IF(INDIRECT(\"c\" & (VLOOKUP(Rebalance!$D$55,$F$2:$G$48,2,FALSE)+ROW()-2))=Rebalance!$D$55,INDIRECT(\"a\" & (VLOOKUP(Rebalance!$D$55,$F$2:$G$48,2,FALSE)+ROW()-2)),\"\")","v":{"$error":"#N/A"}},{"$f":"IF(INDIRECT(\"c\" & (VLOOKUP(Rebalance!$D$56,$F$2:$G$48,2,FALSE)+ROW()-2))=Rebalance!$D$56,INDIRECT(\"a\" & (VLOOKUP(Rebalance!$D$56,$F$2:$G$48,2,FALSE)+ROW()-2)),\"\")","v":{"$error":"#N/A"}},{"$f":"IF(INDIRECT(\"c\" & (VLOOKUP(Rebalance!$D$57,$F$2:$G$48,2,FALSE)+ROW()-2))=Rebalance!$D$57,INDIRECT(\"a\" & (VLOOKUP(Rebalance!$D$57,$F$2:$G$48,2,FALSE)+ROW()-2)),\"\")","v":{"$error":"#N/A"}},{"$f":"IF(INDIRECT(\"c\" & (VLOOKUP(Rebalance!$D$58,$F$2:$G$48,2,FALSE)+ROW()-2))=Rebalance!$D$58,INDIRECT(\"a\" & (VLOOKUP(Rebalance!$D$58,$F$2:$G$48,2,FALSE)+ROW()-2)),\"\")","v":{"$error":"#N/A"}},{"$f":"IF(INDIRECT(\"c\" & (VLOOKUP(Rebalance!$D$59,$F$2:$G$48,2,FALSE)+ROW()-2))=Rebalance!$D$59,INDIRECT(\"a\" & (VLOOKUP(Rebalance!$D$59,$F$2:$G$48,2,FALSE)+ROW()-2)),\"\")","v":{"$error":"#N/A"}},{"$f":"IF(INDIRECT(\"c\" & (VLOOKUP(Rebalance!$D$60,$F$2:$G$48,2,FALSE)+ROW()-2))=Rebalance!$D$60,INDIRECT(\"a\" & (VLOOKUP(Rebalance!$D$60,$F$2:$G$48,2,FALSE)+ROW()-2)),\"\")","v":{"$error":"#N/A"}},{"$f":"IF(INDIRECT(\"c\" & (VLOOKUP(Rebalance!$D$61,$F$2:$G$48,2,FALSE)+ROW()-2))=Rebalance!$D$61,INDIRECT(\"a\" & (VLOOKUP(Rebalance!$D$61,$F$2:$G$48,2,FALSE)+ROW()-2)),\"\")","v":{"$error":"#N/A"}},{"$f":"IF(INDIRECT(\"c\" & (VLOOKUP(Rebalance!$D$62,$F$2:$G$48,2,FALSE)+ROW()-2))=Rebalance!$D$62,INDIRECT(\"a\" & (VLOOKUP(Rebalance!$D$62,$F$2:$G$48,2,FALSE)+ROW()-2)),\"\")","v":{"$error":"#N/A"}},{"$f":"IF(INDIRECT(\"c\" & (VLOOKUP(Rebalance!$D$63,$F$2:$G$48,2,FALSE)+ROW()-2))=Rebalance!$D$63,INDIRECT(\"a\" & (VLOOKUP(Rebalance!$D$63,$F$2:$G$48,2,FALSE)+ROW()-2)),\"\")","v":{"$error":"#N/A"}},{"$f":"IF(INDIRECT(\"c\" & (VLOOKUP(Rebalance!$D$64,$F$2:$G$48,2,FALSE)+ROW()-2))=Rebalance!$D$64,INDIRECT(\"a\" & (VLOOKUP(Rebalance!$D$64,$F$2:$G$48,2,FALSE)+ROW()-2)),\"\")","v":{"$error":"#N/A"}},{"$f":"IF(INDIRECT(\"c\" & (VLOOKUP(Rebalance!$D$65,$F$2:$G$48,2,FALSE)+ROW()-2))=Rebalance!$D$65,INDIRECT(\"a\" & (VLOOKUP(Rebalance!$D$65,$F$2:$G$48,2,FALSE)+ROW()-2)),\"\")","v":{"$error":"#N/A"}},{"$f":"IF(INDIRECT(\"c\" & (VLOOKUP(Rebalance!$D$66,$F$2:$G$48,2,FALSE)+ROW()-2))=Rebalance!$D$66,INDIRECT(\"a\" & (VLOOKUP(Rebalance!$D$66,$F$2:$G$48,2,FALSE)+ROW()-2)),\"\")","v":{"$error":"#N/A"}}]
["Noble PP STANLIB Strategic Income FoF A1","NPSA1","STANLIB Collective Investments",{"$f":"ROW()","v":7},null,"Bridge Collective Investments (Pty) Ltd",{"$f":"VLOOKUP(F7,$C$2:$D$599,2,FALSE)","v":201},{"$f":"IF(INDIRECT(\"c\" & (VLOOKUP(Rebalance!$D$26,$F$2:$G$48,2,FALSE)+ROW()-2))=Rebalance!$D$26,INDIRECT(\"a\" & (VLOOKUP(Rebalance!$D$26,$F$2:$G$48,2,FALSE)+ROW()-2)),\"\")","v":{"$error":"#N/A"}},{"$f":"IF(INDIRECT(\"c\" & (VLOOKUP(Rebalance!$D$27,$F$2:$G$48,2,FALSE)+ROW()-2))=Rebalance!$D$27,INDIRECT(\"a\" & (VLOOKUP(Rebalance!$D$27,$F$2:$G$48,2,FALSE)+ROW()-2)),\"\")","v":{"$error":"#N/A"}},{"$f":"IF(INDIRECT(\"c\" & (VLOOKUP(Rebalance!$D$28,$F$2:$G$48,2,FALSE)+ROW()-2))=Rebalance!$D$28,INDIRECT(\"a\" & (VLOOKUP(Rebalance!$D$28,$F$2:$G$48,2,FALSE)+ROW()-2)),\"\")","v":{"$error":"#N/A"}},{"$f":"IF(INDIRECT(\"c\" & (VLOOKUP(Rebalance!$D$29,$F$2:$G$48,2,FALSE)+ROW()-2))=Rebalance!$D$29,INDIRECT(\"a\" & (VLOOKUP(Rebalance!$D$29,$F$2:$G$48,2,FALSE)+ROW()-2)),\"\")","v":{"$error":"#N/A"}},{"$f":"IF(INDIRECT(\"c\" & (VLOOKUP(Rebalance!$D$30,$F$2:$G$48,2,FALSE)+ROW()-2))=Rebalance!$D$30,INDIRECT(\"a\" & (VLOOKUP(Rebalance!$D$30,$F$2:$G$48,2,FALSE)+ROW()-2)),\"\")","v":{"$error":"#N/A"}},{"$f":"IF(INDIRECT(\"c\" & (VLOOKUP(Rebalance!$D$31,$F$2:$G$48,2,FALSE)+ROW()-2))=Rebalance!$D$31,INDIRECT(\"a\" & (VLOOKUP(Rebalance!$D$31,$F$2:$G$48,2,FALSE)+ROW()-2)),\"\")","v":{"$error":"#N/A"}},{"$f":"IF(INDIRECT(\"c\" & (VLOOKUP(Rebalance!$D$32,$F$2:$G$48,2,FALSE)+ROW()-2))=Rebalance!$D$32,INDIRECT(\"a\" & (VLOOKUP(Rebalance!$D$32,$F$2:$G$48,2,FALSE)+ROW()-2)),\"\")","v":{"$error":"#N/A"}},{"$f":"IF(INDIRECT(\"c\" & (VLOOKUP(Rebalance!$D$33,$F$2:$G$48,2,FALSE)+ROW()-2))=Rebalance!$D$33,INDIRECT(\"a\" & (VLOOKUP(Rebalance!$D$33,$F$2:$G$48,2,FALSE)+ROW()-2)),\"\")","v":{"$error":"#N/A"}},{"$f":"IF(INDIRECT(\"c\" & (VLOOKUP(Rebalance!$D$34,$F$2:$G$48,2,FALSE)+ROW()-2))=Rebalance!$D$34,INDIRECT(\"a\" & (VLOOKUP(Rebalance!$D$34,$F$2:$G$48,2,FALSE)+ROW()-2)),\"\")","v":{"$error":"#N/A"}},{"$f":"IF(INDIRECT(\"c\" & (VLOOKUP(Rebalance!$D$35,$F$2:$G$48,2,FALSE)+ROW()-2))=Rebalance!$D$35,INDIRECT(\"a\" & (VLOOKUP(Rebalance!$D$35,$F$2:$G$48,2,FALSE)+ROW()-2)),\"\")","v":{"$error":"#N/A"}},{"$f":"IF(INDIRECT(\"c\" & (VLOOKUP(Rebalance!$D$36,$F$2:$G$48,2,FALSE)+ROW()-2))=Rebalance!$D$36,INDIRECT(\"a\" & (VLOOKUP(Rebalance!$D$36,$F$2:$G$48,2,FALSE)+ROW()-2)),\"\")","v":{"$error":"#N/A"}},{"$f":"IF(INDIRECT(\"c\" & (VLOOKUP(Rebalance!$D$37,$F$2:$G$48,2,FALSE)+ROW()-2))=Rebalance!$D$37,INDIRECT(\"a\" & (VLOOKUP(Rebalance!$D$37,$F$2:$G$48,2,FALSE)+ROW()-2)),\"\")","v":{"$error":"#N/A"}},{"$f":"IF(INDIRECT(\"c\" & (VLOOKUP(Rebalance!$D$38,$F$2:$G$48,2,FALSE)+ROW()-2))=Rebalance!$D$38,INDIRECT(\"a\" & (VLOOKUP(Rebalance!$D$38,$F$2:$G$48,2,FALSE)+ROW()-2)),\"\")","v":{"$error":"#N/A"}},{"$f":"IF(INDIRECT(\"c\" & (VLOOKUP(Rebalance!$D$39,$F$2:$G$48,2,FALSE)+ROW()-2))=Rebalance!$D$39,INDIRECT(\"a\" & (VLOOKUP(Rebalance!$D$39,$F$2:$G$48,2,FALSE)+ROW()-2)),\"\")","v":{"$error":"#N/A"}},{"$f":"IF(INDIRECT(\"c\" & (VLOOKUP(Rebalance!$D$40,$F$2:$G$48,2,FALSE)+ROW()-2))=Rebalance!$D$40,INDIRECT(\"a\" & (VLOOKUP(Rebalance!$D$40,$F$2:$G$48,2,FALSE)+ROW()-2)),\"\")","v":{"$error":"#N/A"}},{"$f":"IF(INDIRECT(\"c\" & (VLOOKUP(Rebalance!$D$52,$F$2:$G$48,2,FALSE)+ROW()-2))=Rebalance!$D$52,INDIRECT(\"a\" & (VLOOKUP(Rebalance!$D$52,$F$2:$G$48,2,FALSE)+ROW()-2)),\"\")","v":{"$error":"#N/A"}},{"$f":"IF(INDIRECT(\"c\" & (VLOOKUP(Rebalance!$D$53,$F$2:$G$48,2,FALSE)+ROW()-2))=Rebalance!$D$53,INDIRECT(\"a\" & (VLOOKUP(Rebalance!$D$53,$F$2:$G$48,2,FALSE)+ROW()-2)),\"\")","v":{"$error":"#N/A"}},{"$f":"IF(INDIRECT(\"c\" & (VLOOKUP(Rebalance!$D$54,$F$2:$G$48,2,FALSE)+ROW()-2))=Rebalance!$D$54,INDIRECT(\"a\" & (VLOOKUP(Rebalance!$D$54,$F$2:$G$48,2,FALSE)+ROW()-2)),\"\")","v":{"$error":"#N/A"}},{"$f":"IF(INDIRECT(\"c\" & (VLOOKUP(Rebalance!$D$55,$F$2:$G$48,2,FALSE)+ROW()-2))=Rebalance!$D$55,INDIRECT(\"a\" & (VLOOKUP(Rebalance!$D$55,$F$2:$G$48,2,FALSE)+ROW()-2)),\"\")","v":{"$error":"#N/A"}},{"$f":"IF(INDIRECT(\"c\" & (VLOOKUP(Rebalance!$D$56,$F$2:$G$48,2,FALSE)+ROW()-2))=Rebalance!$D$56,INDIRECT(\"a\" & (VLOOKUP(Rebalance!$D$56,$F$2:$G$48,2,FALSE)+ROW()-2)),\"\")","v":{"$error":"#N/A"}},{"$f":"IF(INDIRECT(\"c\" & (VLOOKUP(Rebalance!$D$57,$F$2:$G$48,2,FALSE)+ROW()-2))=Rebalance!$D$57,INDIRECT(\"a\" & (VLOOKUP(Rebalance!$D$57,$F$2:$G$48,2,FALSE)+ROW()-2)),\"\")","v":{"$error":"#N/A"}},{"$f":"IF(INDIRECT(\"c\" & (VLOOKUP(Rebalance!$D$58,$F$2:$G$48,2,FALSE)+ROW()-2))=Rebalance!$D$58,INDIRECT(\"a\" & (VLOOKUP(Rebalance!$D$58,$F$2:$G$48,2,FALSE)+ROW()-2)),\"\")","v":{"$error":"#N/A"}},{"$f":"IF(INDIRECT(\"c\" & (VLOOKUP(Rebalance!$D$59,$F$2:$G$48,2,FALSE)+ROW()-2))=Rebalance!$D$59,INDIRECT(\"a\" & (VLOOKUP(Rebalance!$D$59,$F$2:$G$48,2,FALSE)+ROW()-2)),\"\")","v":{"$error":"#N/A"}},{"$f":"IF(INDIRECT(\"c\" & (VLOOKUP(Rebalance!$D$60,$F$2:$G$48,2,FALSE)+ROW()-2))=Rebalance!$D$60,INDIRECT(\"a\" & (VLOOKUP(Rebalance!$D$60,$F$2:$G$48,2,FALSE)+ROW()-2)),\"\")","v":{"$error":"#N/A"}},{"$f":"IF(INDIRECT(\"c\" & (VLOOKUP(Rebalance!$D$61,$F$2:$G$48,2,FALSE)+ROW()-2))=Rebalance!$D$61,INDIRECT(\"a\" & (VLOOKUP(Rebalance!$D$61,$F$2:$G$48,2,FALSE)+ROW()-2)),\"\")","v":{"$error":"#N/A"}},{"$f":"IF(INDIRECT(\"c\" & (VLOOKUP(Rebalance!$D$62,$F$2:$G$48,2,FALSE)+ROW()-2))=Rebalance!$D$62,INDIRECT(\"a\" & (VLOOKUP(Rebalance!$D$62,$F$2:$G$48,2,FALSE)+ROW()-2)),\"\")","v":{"$error":"#N/A"}},{"$f":"IF(INDIRECT(\"c\" & (VLOOKUP(Rebalance!$D$63,$F$2:$G$48,2,FALSE)+ROW()-2))=Rebalance!$D$63,INDIRECT(\"a\" & (VLOOKUP(Rebalance!$D$63,$F$2:$G$48,2,FALSE)+ROW()-2)),\"\")","v":{"$error":"#N/A"}},{"$f":"IF(INDIRECT(\"c\" & (VLOOKUP(Rebalance!$D$64,$F$2:$G$48,2,FALSE)+ROW()-2))=Rebalance!$D$64,INDIRECT(\"a\" & (VLOOKUP(Rebalance!$D$64,$F$2:$G$48,2,FALSE)+ROW()-2)),\"\")","v":{"$error":"#N/A"}},{"$f":"IF(INDIRECT(\"c\" & (VLOOKUP(Rebalance!$D$65,$F$2:$G$48,2,FALSE)+ROW()-2))=Rebalance!$D$65,INDIRECT(\"a\" & (VLOOKUP(Rebalance!$D$65,$F$2:$G$48,2,FALSE)+ROW()-2)),\"\")","v":{"$error":"#N/A"}},{"$f":"IF(INDIRECT(\"c\" & (VLOOKUP(Rebalance!$D$66,$F$2:$G$48,2,FALSE)+ROW()-2))=Rebalance!$D$66,INDIRECT(\"a\" & (VLOOKUP(Rebalance!$D$66,$F$2:$G$48,2,FALSE)+ROW()-2)),\"\")","v":{"$error":"#N/A"}}]
["Noble PP STANLIB Wealth Creator FoF A1","NPPA1","STANLIB Collective Investments",{"$f":"ROW()","v":8},null,"Cadiz Collective Investments",{"$f":"VLOOKUP(F8,$C$2:$D$599,2,FALSE)","v":209},{"$f":"IF(INDIRECT(\"c\" & (VLOOKUP(Rebalance!$D$26,$F$2:$G$48,2,FALSE)+ROW()-2))=Rebalance!$D$26,INDIRECT(\"a\" & (VLOOKUP(Rebalance!$D$26,$F$2:$G$48,2,FALSE)+ROW()-2)),\"\")","v":{"$error":"#N/A"}},{"$f":"IF(INDIRECT(\"c\" & (VLOOKUP(Rebalance!$D$27,$F$2:$G$48,2,FALSE)+ROW()-2))=Rebalance!$D$27,INDIRECT(\"a\" & (VLOOKUP(Rebalance!$D$27,$F$2:$G$48,2,FALSE)+ROW()-2)),\"\")","v":{"$error":"#N/A"}},{"$f":"IF(INDIRECT(\"c\" & (VLOOKUP(Rebalance!$D$28,$F$2:$G$48,2,FALSE)+ROW()-2))=Rebalance!$D$28,INDIRECT(\"a\" & (VLOOKUP(Rebalance!$D$28,$F$2:$G$48,2,FALSE)+ROW()-2)),\"\")","v":{"$error":"#N/A"}},{"$f":"IF(INDIRECT(\"c\" & (VLOOKUP(Rebalance!$D$29,$F$2:$G$48,2,FALSE)+ROW()-2))=Rebalance!$D$29,INDIRECT(\"a\" & (VLOOKUP(Rebalance!$D$29,$F$2:$G$48,2,FALSE)+ROW()-2)),\"\")","v":{"$error":"#N/A"}},{"$f":"IF(INDIRECT(\"c\" & (VLOOKUP(Rebalance!$D$30,$F$2:$G$48,2,FALSE)+ROW()-2))=Rebalance!$D$30,INDIRECT(\"a\" & (VLOOKUP(Rebalance!$D$30,$F$2:$G$48,2,FALSE)+ROW()-2)),\"\")","v":{"$error":"#N/A"}},{"$f":"IF(INDIRECT(\"c\" & (VLOOKUP(Rebalance!$D$31,$F$2:$G$48,2,FALSE)+ROW()-2))=Rebalance!$D$31,INDIRECT(\"a\" & (VLOOKUP(Rebalance!$D$31,$F$2:$G$48,2,FALSE)+ROW()-2)),\"\")","v":{"$error":"#N/A"}},{"$f":"IF(INDIRECT(\"c\" & (VLOOKUP(Rebalance!$D$32,$F$2:$G$48,2,FALSE)+ROW()-2))=Rebalance!$D$32,INDIRECT(\"a\" & (VLOOKUP(Rebalance!$D$32,$F$2:$G$48,2,FALSE)+ROW()-2)),\"\")","v":{"$error":"#N/A"}},{"$f":"IF(INDIRECT(\"c\" & (VLOOKUP(Rebalance!$D$33,$F$2:$G$48,2,FALSE)+ROW()-2))=Rebalance!$D$33,INDIRECT(\"a\" & (VLOOKUP(Rebalance!$D$33,$F$2:$G$48,2,FALSE)+ROW()-2)),\"\")","v":{"$error":"#N/A"}},{"$f":"IF(INDIRECT(\"c\" & (VLOOKUP(Rebalance!$D$34,$F$2:$G$48,2,FALSE)+ROW()-2))=Rebalance!$D$34,INDIRECT(\"a\" & (VLOOKUP(Rebalance!$D$34,$F$2:$G$48,2,FALSE)+ROW()-2)),\"\")","v":{"$error":"#N/A"}},{"$f":"IF(INDIRECT(\"c\" & (VLOOKUP(Rebalance!$D$35,$F$2:$G$48,2,FALSE)+ROW()-2))=Rebalance!$D$35,INDIRECT(\"a\" & (VLOOKUP(Rebalance!$D$35,$F$2:$G$48,2,FALSE)+ROW()-2)),\"\")","v":{"$error":"#N/A"}},{"$f":"IF(INDIRECT(\"c\" & (VLOOKUP(Rebalance!$D$36,$F$2:$G$48,2,FALSE)+ROW()-2))=Rebalance!$D$36,INDIRECT(\"a\" & (VLOOKUP(Rebalance!$D$36,$F$2:$G$48,2,FALSE)+ROW()-2)),\"\")","v":{"$error":"#N/A"}},{"$f":"IF(INDIRECT(\"c\" & (VLOOKUP(Rebalance!$D$37,$F$2:$G$48,2,FALSE)+ROW()-2))=Rebalance!$D$37,INDIRECT(\"a\" & (VLOOKUP(Rebalance!$D$37,$F$2:$G$48,2,FALSE)+ROW()-2)),\"\")","v":{"$error":"#N/A"}},{"$f":"IF(INDIRECT(\"c\" & (VLOOKUP(Rebalance!$D$38,$F$2:$G$48,2,FALSE)+ROW()-2))=Rebalance!$D$38,INDIRECT(\"a\" & (VLOOKUP(Rebalance!$D$38,$F$2:$G$48,2,FALSE)+ROW()-2)),\"\")","v":{"$error":"#N/A"}},{"$f":"IF(INDIRECT(\"c\" & (VLOOKUP(Rebalance!$D$39,$F$2:$G$48,2,FALSE)+ROW()-2))=Rebalance!$D$39,INDIRECT(\"a\" & (VLOOKUP(Rebalance!$D$39,$F$2:$G$48,2,FALSE)+ROW()-2)),\"\")","v":{"$error":"#N/A"}},{"$f":"IF(INDIRECT(\"c\" & (VLOOKUP(Rebalance!$D$40,$F$2:$G$48,2,FALSE)+ROW()-2))=Rebalance!$D$40,INDIRECT(\"a\" & (VLOOKUP(Rebalance!$D$40,$F$2:$G$48,2,FALSE)+ROW()-2)),\"\")","v":{"$error":"#N/A"}},{"$f":"IF(INDIRECT(\"c\" & (VLOOKUP(Rebalance!$D$52,$F$2:$G$48,2,FALSE)+ROW()-2))=Rebalance!$D$52,INDIRECT(\"a\" & (VLOOKUP(Rebalance!$D$52,$F$2:$G$48,2,FALSE)+ROW()-2)),\"\")","v":{"$error":"#N/A"}},{"$f":"IF(INDIRECT(\"c\" & (VLOOKUP(Rebalance!$D$53,$F$2:$G$48,2,FALSE)+ROW()-2))=Rebalance!$D$53,INDIRECT(\"a\" & (VLOOKUP(Rebalance!$D$53,$F$2:$G$48,2,FALSE)+ROW()-2)),\"\")","v":{"$error":"#N/A"}},{"$f":"IF(INDIRECT(\"c\" & (VLOOKUP(Rebalance!$D$54,$F$2:$G$48,2,FALSE)+ROW()-2))=Rebalance!$D$54,INDIRECT(\"a\" & (VLOOKUP(Rebalance!$D$54,$F$2:$G$48,2,FALSE)+ROW()-2)),\"\")","v":{"$error":"#N/A"}},{"$f":"IF(INDIRECT(\"c\" & (VLOOKUP(Rebalance!$D$55,$F$2:$G$48,2,FALSE)+ROW()-2))=Rebalance!$D$55,INDIRECT(\"a\" & (VLOOKUP(Rebalance!$D$55,$F$2:$G$48,2,FALSE)+ROW()-2)),\"\")","v":{"$error":"#N/A"}},{"$f":"IF(INDIRECT(\"c\" & (VLOOKUP(Rebalance!$D$56,$F$2:$G$48,2,FALSE)+ROW()-2))=Rebalance!$D$56,INDIRECT(\"a\" & (VLOOKUP(Rebalance!$D$56,$F$2:$G$48,2,FALSE)+ROW()-2)),\"\")","v":{"$error":"#N/A"}},{"$f":"IF(INDIRECT(\"c\" & (VLOOKUP(Rebalance!$D$57,$F$2:$G$48,2,FALSE)+ROW()-2))=Rebalance!$D$57,INDIRECT(\"a\" & (VLOOKUP(Rebalance!$D$57,$F$2:$G$48,2,FALSE)+ROW()-2)),\"\")","v":{"$error":"#N/A"}},{"$f":"IF(INDIRECT(\"c\" & (VLOOKUP(Rebalance!$D$58,$F$2:$G$48,2,FALSE)+ROW()-2))=Rebalance!$D$58,INDIRECT(\"a\" & (VLOOKUP(Rebalance!$D$58,$F$2:$G$48,2,FALSE)+ROW()-2)),\"\")","v":{"$error":"#N/A"}},{"$f":"IF(INDIRECT(\"c\" & (VLOOKUP(Rebalance!$D$59,$F$2:$G$48,2,FALSE)+ROW()-2))=Rebalance!$D$59,INDIRECT(\"a\" & (VLOOKUP(Rebalance!$D$59,$F$2:$G$48,2,FALSE)+ROW()-2)),\"\")","v":{"$error":"#N/A"}},{"$f":"IF(INDIRECT(\"c\" & (VLOOKUP(Rebalance!$D$60,$F$2:$G$48,2,FALSE)+ROW()-2))=Rebalance!$D$60,INDIRECT(\"a\" & (VLOOKUP(Rebalance!$D$60,$F$2:$G$48,2,FALSE)+ROW()-2)),\"\")","v":{"$error":"#N/A"}},{"$f":"IF(INDIRECT(\"c\" & (VLOOKUP(Rebalance!$D$61,$F$2:$G$48,2,FALSE)+ROW()-2))=Rebalance!$D$61,INDIRECT(\"a\" & (VLOOKUP(Rebalance!$D$61,$F$2:$G$48,2,FALSE)+ROW()-2)),\"\")","v":{"$error":"#N/A"}},{"$f":"IF(INDIRECT(\"c\" & (VLOOKUP(Rebalance!$D$62,$F$2:$G$48,2,FALSE)+ROW()-2))=Rebalance!$D$62,INDIRECT(\"a\" & (VLOOKUP(Rebalance!$D$62,$F$2:$G$48,2,FALSE)+ROW()-2)),\"\")","v":{"$error":"#N/A"}},{"$f":"IF(INDIRECT(\"c\" & (VLOOKUP(Rebalance!$D$63,$F$2:$G$48,2,FALSE)+ROW()-2))=Rebalance!$D$63,INDIRECT(\"a\" & (VLOOKUP(Rebalance!$D$63,$F$2:$G$48,2,FALSE)+ROW()-2)),\"\")","v":{"$error":"#N/A"}},{"$f":"IF(INDIRECT(\"c\" & (VLOOKUP(Rebalance!$D$64,$F$2:$G$48,2,FALSE)+ROW()-2))=Rebalance!$D$64,INDIRECT(\"a\" & (VLOOKUP(Rebalance!$D$64,$F$2:$G$48,2,FALSE)+ROW()-2)),\"\")","v":{"$error":"#N/A"}},{"$f":"IF(INDIRECT(\"c\" & (VLOOKUP(Rebalance!$D$65,$F$2:$G$48,2,FALSE)+ROW()-2))=Rebalance!$D$65,INDIRECT(\"a\" & (VLOOKUP(Rebalance!$D$65,$F$2:$G$48,2,FALSE)+ROW()-2)),\"\")","v":{"$error":"#N/A"}},{"$f":"IF(INDIRECT(\"c\" & (VLOOKUP(Rebalance!$D$66,$F$2:$G$48,2,FALSE)+ROW()-2))=Rebalance!$D$66,INDIRECT(\"a\" & (VLOOKUP(Rebalance!$D$66,$F$2:$G$48,2,FALSE)+ROW()-2)),\"\")","v":{"$error":"#N/A"}}]
["Melville Douglas STANLIB Bond Fund A","MDBFA","STANLIB Collective Investments",{"$f":"ROW()","v":9},null,"Ci Collective Investments (RF) (PTY) Ltd",{"$f":"VLOOKUP(F9,$C$2:$D$599,2,FALSE)","v":214},{"$f":"IF(INDIRECT(\"c\" & (VLOOKUP(Rebalance!$D$26,$F$2:$G$48,2,FALSE)+ROW()-2))=Rebalance!$D$26,INDIRECT(\"a\" & (VLOOKUP(Rebalance!$D$26,$F$2:$G$48,2,FALSE)+ROW()-2)),\"\")","v":{"$error":"#N/A"}},{"$f":"IF(INDIRECT(\"c\" & (VLOOKUP(Rebalance!$D$27,$F$2:$G$48,2,FALSE)+ROW()-2))=Rebalance!$D$27,INDIRECT(\"a\" & (VLOOKUP(Rebalance!$D$27,$F$2:$G$48,2,FALSE)+ROW()-2)),\"\")","v":{"$error":"#N/A"}},{"$f":"IF(INDIRECT(\"c\" & (VLOOKUP(Rebalance!$D$28,$F$2:$G$48,2,FALSE)+ROW()-2))=Rebalance!$D$28,INDIRECT(\"a\" & (VLOOKUP(Rebalance!$D$28,$F$2:$G$48,2,FALSE)+ROW()-2)),\"\")","v":{"$error":"#N/A"}},{"$f":"IF(INDIRECT(\"c\" & (VLOOKUP(Rebalance!$D$29,$F$2:$G$48,2,FALSE)+ROW()-2))=Rebalance!$D$29,INDIRECT(\"a\" & (VLOOKUP(Rebalance!$D$29,$F$2:$G$48,2,FALSE)+ROW()-2)),\"\")","v":{"$error":"#N/A"}},{"$f":"IF(INDIRECT(\"c\" & (VLOOKUP(Rebalance!$D$30,$F$2:$G$48,2,FALSE)+ROW()-2))=Rebalance!$D$30,INDIRECT(\"a\" & (VLOOKUP(Rebalance!$D$30,$F$2:$G$48,2,FALSE)+ROW()-2)),\"\")","v":{"$error":"#N/A"}},{"$f":"IF(INDIRECT(\"c\" & (VLOOKUP(Rebalance!$D$31,$F$2:$G$48,2,FALSE)+ROW()-2))=Rebalance!$D$31,INDIRECT(\"a\" & (VLOOKUP(Rebalance!$D$31,$F$2:$G$48,2,FALSE)+ROW()-2)),\"\")","v":{"$error":"#N/A"}},{"$f":"IF(INDIRECT(\"c\" & (VLOOKUP(Rebalance!$D$32,$F$2:$G$48,2,FALSE)+ROW()-2))=Rebalance!$D$32,INDIRECT(\"a\" & (VLOOKUP(Rebalance!$D$32,$F$2:$G$48,2,FALSE)+ROW()-2)),\"\")","v":{"$error":"#N/A"}},{"$f":"IF(INDIRECT(\"c\" & (VLOOKUP(Rebalance!$D$33,$F$2:$G$48,2,FALSE)+ROW()-2))=Rebalance!$D$33,INDIRECT(\"a\" & (VLOOKUP(Rebalance!$D$33,$F$2:$G$48,2,FALSE)+ROW()-2)),\"\")","v":{"$error":"#N/A"}},{"$f":"IF(INDIRECT(\"c\" & (VLOOKUP(Rebalance!$D$34,$F$2:$G$48,2,FALSE)+ROW()-2))=Rebalance!$D$34,INDIRECT(\"a\" & (VLOOKUP(Rebalance!$D$34,$F$2:$G$48,2,FALSE)+ROW()-2)),\"\")","v":{"$error":"#N/A"}},{"$f":"IF(INDIRECT(\"c\" & (VLOOKUP(Rebalance!$D$35,$F$2:$G$48,2,FALSE)+ROW()-2))=Rebalance!$D$35,INDIRECT(\"a\" & (VLOOKUP(Rebalance!$D$35,$F$2:$G$48,2,FALSE)+ROW()-2)),\"\")","v":{"$error":"#N/A"}},{"$f":"IF(INDIRECT(\"c\" & (VLOOKUP(Rebalance!$D$36,$F$2:$G$48,2,FALSE)+ROW()-2))=Rebalance!$D$36,INDIRECT(\"a\" & (VLOOKUP(Rebalance!$D$36,$F$2:$G$48,2,FALSE)+ROW()-2)),\"\")","v":{"$error":"#N/A"}},{"$f":"IF(INDIRECT(\"c\" & (VLOOKUP(Rebalance!$D$37,$F$2:$G$48,2,FALSE)+ROW()-2))=Rebalance!$D$37,INDIRECT(\"a\" & (VLOOKUP(Rebalance!$D$37,$F$2:$G$48,2,FALSE)+ROW()-2)),\"\")","v":{"$error":"#N/A"}},{"$f":"IF(INDIRECT(\"c\" & (VLOOKUP(Rebalance!$D$38,$F$2:$G$48,2,FALSE)+ROW()-2))=Rebalance!$D$38,INDIRECT(\"a\" & (VLOOKUP(Rebalance!$D$38,$F$2:$G$48,2,FALSE)+ROW()-2)),\"\")","v":{"$error":"#N/A"}},{"$f":"IF(INDIRECT(\"c\" & (VLOOKUP(Rebalance!$D$39,$F$2:$G$48,2,FALSE)+ROW()-2))=Rebalance!$D$39,INDIRECT(\"a\" & (VLOOKUP(Rebalance!$D$39,$F$2:$G$48,2,FALSE)+ROW()-2)),\"\")","v":{"$error":"#N/A"}},{"$f":"IF(INDIRECT(\"c\" & (VLOOKUP(Rebalance!$D$40,$F$2:$G$48,2,FALSE)+ROW()-2))=Rebalance!$D$40,INDIRECT(\"a\" & (VLOOKUP(Rebalance!$D$40,$F$2:$G$48,2,FALSE)+ROW()-2)),\"\")","v":{"$error":"#N/A"}},{"$f":"IF(INDIRECT(\"c\" & (VLOOKUP(Rebalance!$D$52,$F$2:$G$48,2,FALSE)+ROW()-2))=Rebalance!$D$52,INDIRECT(\"a\" & (VLOOKUP(Rebalance!$D$52,$F$2:$G$48,2,FALSE)+ROW()-2)),\"\")","v":{"$error":"#N/A"}},{"$f":"IF(INDIRECT(\"c\" & (VLOOKUP(Rebalance!$D$53,$F$2:$G$48,2,FALSE)+ROW()-2))=Rebalance!$D$53,INDIRECT(\"a\" & (VLOOKUP(Rebalance!$D$53,$F$2:$G$48,2,FALSE)+ROW()-2)),\"\")","v":{"$error":"#N/A"}},{"$f":"IF(INDIRECT(\"c\" & (VLOOKUP(Rebalance!$D$54,$F$2:$G$48,2,FALSE)+ROW()-2))=Rebalance!$D$54,INDIRECT(\"a\" & (VLOOKUP(Rebalance!$D$54,$F$2:$G$48,2,FALSE)+ROW()-2)),\"\")","v":{"$error":"#N/A"}},{"$f":"IF(INDIRECT(\"c\" & (VLOOKUP(Rebalance!$D$55,$F$2:$G$48,2,FALSE)+ROW()-2))=Rebalance!$D$55,INDIRECT(\"a\" & (VLOOKUP(Rebalance!$D$55,$F$2:$G$48,2,FALSE)+ROW()-2)),\"\")","v":{"$error":"#N/A"}},{"$f":"IF(INDIRECT(\"c\" & (VLOOKUP(Rebalance!$D$56,$F$2:$G$48,2,FALSE)+ROW()-2))=Rebalance!$D$56,INDIRECT(\"a\" & (VLOOKUP(Rebalance!$D$56,$F$2:$G$48,2,FALSE)+ROW()-2)),\"\")","v":{"$error":"#N/A"}},{"$f":"IF(INDIRECT(\"c\" & (VLOOKUP(Rebalance!$D$57,$F$2:$G$48,2,FALSE)+ROW()-2))=Rebalance!$D$57,INDIRECT(\"a\" & (VLOOKUP(Rebalance!$D$57,$F$2:$G$48,2,FALSE)+ROW()-2)),\"\")","v":{"$error":"#N/A"}},{"$f":"IF(INDIRECT(\"c\" & (VLOOKUP(Rebalance!$D$58,$F$2:$G$48,2,FALSE)+ROW()-2))=Rebalance!$D$58,INDIRECT(\"a\" & (VLOOKUP(Rebalance!$D$58,$F$2:$G$48,2,FALSE)+ROW()-2)),\"\")","v":{"$error":"#N/A"}},{"$f":"IF(INDIRECT(\"c\" & (VLOOKUP(Rebalance!$D$59,$F$2:$G$48,2,FALSE)+ROW()-2))=Rebalance!$D$59,INDIRECT(\"a\" & (VLOOKUP(Rebalance!$D$59,$F$2:$G$48,2,FALSE)+ROW()-2)),\"\")","v":{"$error":"#N/A"}},{"$f":"IF(INDIRECT(\"c\" & (VLOOKUP(Rebalance!$D$60,$F$2:$G$48,2,FALSE)+ROW()-2))=Rebalance!$D$60,INDIRECT(\"a\" & (VLOOKUP(Rebalance!$D$60,$F$2:$G$48,2,FALSE)+ROW()-2)),\"\")","v":{"$error":"#N/A"}},{"$f":"IF(INDIRECT(\"c\" & (VLOOKUP(Rebalance!$D$61,$F$2:$G$48,2,FALSE)+ROW()-2))=Rebalance!$D$61,INDIRECT(\"a\" & (VLOOKUP(Rebalance!$D$61,$F$2:$G$48,2,FALSE)+ROW()-2)),\"\")","v":{"$error":"#N/A"}},{"$f":"IF(INDIRECT(\"c\" & (VLOOKUP(Rebalance!$D$62,$F$2:$G$48,2,FALSE)+ROW()-2))=Rebalance!$D$62,INDIRECT(\"a\" & (VLOOKUP(Rebalance!$D$62,$F$2:$G$48,2,FALSE)+ROW()-2)),\"\")","v":{"$error":"#N/A"}},{"$f":"IF(INDIRECT(\"c\" & (VLOOKUP(Rebalance!$D$63,$F$2:$G$48,2,FALSE)+ROW()-2))=Rebalance!$D$63,INDIRECT(\"a\" & (VLOOKUP(Rebalance!$D$63,$F$2:$G$48,2,FALSE)+ROW()-2)),\"\")","v":{"$error":"#N/A"}},{"$f":"IF(INDIRECT(\"c\" & (VLOOKUP(Rebalance!$D$64,$F$2:$G$48,2,FALSE)+ROW()-2))=Rebalance!$D$64,INDIRECT(\"a\" & (VLOOKUP(Rebalance!$D$64,$F$2:$G$48,2,FALSE)+ROW()-2)),\"\")","v":{"$error":"#N/A"}},{"$f":"IF(INDIRECT(\"c\" & (VLOOKUP(Rebalance!$D$65,$F$2:$G$48,2,FALSE)+ROW()-2))=Rebalance!$D$65,INDIRECT(\"a\" & (VLOOKUP(Rebalance!$D$65,$F$2:$G$48,2,FALSE)+ROW()-2)),\"\")","v":{"$error":"#N/A"}},{"$f":"IF(INDIRECT(\"c\" & (VLOOKUP(Rebalance!$D$66,$F$2:$G$48,2,FALSE)+ROW()-2))=Rebalance!$D$66,INDIRECT(\"a\" & (VLOOKUP(Rebalance!$D$66,$F$2:$G$48,2,FALSE)+ROW()-2)),\"\")","v":{"$error":"#N/A"}}]
["Melville Douglas STANLIB Balanced Fund A","MDDB1","STANLIB Collective Investments",{"$f":"ROW()","v":10},null,"Coronation Management Company",{"$f":"VLOOKUP(F10,$C$2:$D$599,2,FALSE)","v":222},{"$f":"IF(INDIRECT(\"c\" & (VLOOKUP(Rebalance!$D$26,$F$2:$G$48,2,FALSE)+ROW()-2))=Rebalance!$D$26,INDIRECT(\"a\" & (VLOOKUP(Rebalance!$D$26,$F$2:$G$48,2,FALSE)+ROW()-2)),\"\")","v":{"$error":"#N/A"}},{"$f":"IF(INDIRECT(\"c\" & (VLOOKUP(Rebalance!$D$27,$F$2:$G$48,2,FALSE)+ROW()-2))=Rebalance!$D$27,INDIRECT(\"a\" & (VLOOKUP(Rebalance!$D$27,$F$2:$G$48,2,FALSE)+ROW()-2)),\"\")","v":{"$error":"#N/A"}},{"$f":"IF(INDIRECT(\"c\" & (VLOOKUP(Rebalance!$D$28,$F$2:$G$48,2,FALSE)+ROW()-2))=Rebalance!$D$28,INDIRECT(\"a\" & (VLOOKUP(Rebalance!$D$28,$F$2:$G$48,2,FALSE)+ROW()-2)),\"\")","v":{"$error":"#N/A"}},{"$f":"IF(INDIRECT(\"c\" & (VLOOKUP(Rebalance!$D$29,$F$2:$G$48,2,FALSE)+ROW()-2))=Rebalance!$D$29,INDIRECT(\"a\" & (VLOOKUP(Rebalance!$D$29,$F$2:$G$48,2,FALSE)+ROW()-2)),\"\")","v":{"$error":"#N/A"}},{"$f":"IF(INDIRECT(\"c\" & (VLOOKUP(Rebalance!$D$30,$F$2:$G$48,2,FALSE)+ROW()-2))=Rebalance!$D$30,INDIRECT(\"a\" & (VLOOKUP(Rebalance!$D$30,$F$2:$G$48,2,FALSE)+ROW()-2)),\"\")","v":{"$error":"#N/A"}},{"$f":"IF(INDIRECT(\"c\" & (VLOOKUP(Rebalance!$D$31,$F$2:$G$48,2,FALSE)+ROW()-2))=Rebalance!$D$31,INDIRECT(\"a\" & (VLOOKUP(Rebalance!$D$31,$F$2:$G$48,2,FALSE)+ROW()-2)),\"\")","v":{"$error":"#N/A"}},{"$f":"IF(INDIRECT(\"c\" & (VLOOKUP(Rebalance!$D$32,$F$2:$G$48,2,FALSE)+ROW()-2))=Rebalance!$D$32,INDIRECT(\"a\" & (VLOOKUP(Rebalance!$D$32,$F$2:$G$48,2,FALSE)+ROW()-2)),\"\")","v":{"$error":"#N/A"}},{"$f":"IF(INDIRECT(\"c\" & (VLOOKUP(Rebalance!$D$33,$F$2:$G$48,2,FALSE)+ROW()-2))=Rebalance!$D$33,INDIRECT(\"a\" & (VLOOKUP(Rebalance!$D$33,$F$2:$G$48,2,FALSE)+ROW()-2)),\"\")","v":{"$error":"#N/A"}},{"$f":"IF(INDIRECT(\"c\" & (VLOOKUP(Rebalance!$D$34,$F$2:$G$48,2,FALSE)+ROW()-2))=Rebalance!$D$34,INDIRECT(\"a\" & (VLOOKUP(Rebalance!$D$34,$F$2:$G$48,2,FALSE)+ROW()-2)),\"\")","v":{"$error":"#N/A"}},{"$f":"IF(INDIRECT(\"c\" & (VLOOKUP(Rebalance!$D$35,$F$2:$G$48,2,FALSE)+ROW()-2))=Rebalance!$D$35,INDIRECT(\"a\" & (VLOOKUP(Rebalance!$D$35,$F$2:$G$48,2,FALSE)+ROW()-2)),\"\")","v":{"$error":"#N/A"}},{"$f":"IF(INDIRECT(\"c\" & (VLOOKUP(Rebalance!$D$36,$F$2:$G$48,2,FALSE)+ROW()-2))=Rebalance!$D$36,INDIRECT(\"a\" & (VLOOKUP(Rebalance!$D$36,$F$2:$G$48,2,FALSE)+ROW()-2)),\"\")","v":{"$error":"#N/A"}},{"$f":"IF(INDIRECT(\"c\" & (VLOOKUP(Rebalance!$D$37,$F$2:$G$48,2,FALSE)+ROW()-2))=Rebalance!$D$37,INDIRECT(\"a\" & (VLOOKUP(Rebalance!$D$37,$F$2:$G$48,2,FALSE)+ROW()-2)),\"\")","v":{"$error":"#N/A"}},{"$f":"IF(INDIRECT(\"c\" & (VLOOKUP(Rebalance!$D$38,$F$2:$G$48,2,FALSE)+ROW()-2))=Rebalance!$D$38,INDIRECT(\"a\" & (VLOOKUP(Rebalance!$D$38,$F$2:$G$48,2,FALSE)+ROW()-2)),\"\")","v":{"$error":"#N/A"}},{"$f":"IF(INDIRECT(\"c\" & (VLOOKUP(Rebalance!$D$39,$F$2:$G$48,2,FALSE)+ROW()-2))=Rebalance!$D$39,INDIRECT(\"a\" & (VLOOKUP(Rebalance!$D$39,$F$2:$G$48,2,FALSE)+ROW()-2)),\"\")","v":{"$error":"#N/A"}},{"$f":"IF(INDIRECT(\"c\" & (VLOOKUP(Rebalance!$D$40,$F$2:$G$48,2,FALSE)+ROW()-2))=Rebalance!$D$40,INDIRECT(\"a\" & (VLOOKUP(Rebalance!$D$40,$F$2:$G$48,2,FALSE)+ROW()-2)),\"\")","v":{"$error":"#N/A"}},{"$f":"IF(INDIRECT(\"c\" & (VLOOKUP(Rebalance!$D$52,$F$2:$G$48,2,FALSE)+ROW()-2))=Rebalance!$D$52,INDIRECT(\"a\" & (VLOOKUP(Rebalance!$D$52,$F$2:$G$48,2,FALSE)+ROW()-2)),\"\")","v":{"$error":"#N/A"}},{"$f":"IF(INDIRECT(\"c\" & (VLOOKUP(Rebalance!$D$53,$F$2:$G$48,2,FALSE)+ROW()-2))=Rebalance!$D$53,INDIRECT(\"a\" & (VLOOKUP(Rebalance!$D$53,$F$2:$G$48,2,FALSE)+ROW()-2)),\"\")","v":{"$error":"#N/A"}},{"$f":"IF(INDIRECT(\"c\" & (VLOOKUP(Rebalance!$D$54,$F$2:$G$48,2,FALSE)+ROW()-2))=Rebalance!$D$54,INDIRECT(\"a\" & (VLOOKUP(Rebalance!$D$54,$F$2:$G$48,2,FALSE)+ROW()-2)),\"\")","v":{"$error":"#N/A"}},{"$f":"IF(INDIRECT(\"c\" & (VLOOKUP(Rebalance!$D$55,$F$2:$G$48,2,FALSE)+ROW()-2))=Rebalance!$D$55,INDIRECT(\"a\" & (VLOOKUP(Rebalance!$D$55,$F$2:$G$48,2,FALSE)+ROW()-2)),\"\")","v":{"$error":"#N/A"}},{"$f":"IF(INDIRECT(\"c\" & (VLOOKUP(Rebalance!$D$56,$F$2:$G$48,2,FALSE)+ROW()-2))=Rebalance!$D$56,INDIRECT(\"a\" & (VLOOKUP(Rebalance!$D$56,$F$2:$G$48,2,FALSE)+ROW()-2)),\"\")","v":{"$error":"#N/A"}},{"$f":"IF(INDIRECT(\"c\" & (VLOOKUP(Rebalance!$D$57,$F$2:$G$48,2,FALSE)+ROW()-2))=Rebalance!$D$57,INDIRECT(\"a\" & (VLOOKUP(Rebalance!$D$57,$F$2:$G$48,2,FALSE)+ROW()-2)),\"\")","v":{"$error":"#N/A"}},{"$f":"IF(INDIRECT(\"c\" & (VLOOKUP(Rebalance!$D$58,$F$2:$G$48,2,FALSE)+ROW()-2))=Rebalance!$D$58,INDIRECT(\"a\" & (VLOOKUP(Rebalance!$D$58,$F$2:$G$48,2,FALSE)+ROW()-2)),\"\")","v":{"$error":"#N/A"}},{"$f":"IF(INDIRECT(\"c\" & (VLOOKUP(Rebalance!$D$59,$F$2:$G$48,2,FALSE)+ROW()-2))=Rebalance!$D$59,INDIRECT(\"a\" & (VLOOKUP(Rebalance!$D$59,$F$2:$G$48,2,FALSE)+ROW()-2)),\"\")","v":{"$error":"#N/A"}},{"$f":"IF(INDIRECT(\"c\" & (VLOOKUP(Rebalance!$D$60,$F$2:$G$48,2,FALSE)+ROW()-2))=Rebalance!$D$60,INDIRECT(\"a\" & (VLOOKUP(Rebalance!$D$60,$F$2:$G$48,2,FALSE)+ROW()-2)),\"\")","v":{"$error":"#N/A"}},{"$f":"IF(INDIRECT(\"c\" & (VLOOKUP(Rebalance!$D$61,$F$2:$G$48,2,FALSE)+ROW()-2))=Rebalance!$D$61,INDIRECT(\"a\" & (VLOOKUP(Rebalance!$D$61,$F$2:$G$48,2,FALSE)+ROW()-2)),\"\")","v":{"$error":"#N/A"}},{"$f":"IF(INDIRECT(\"c\" & (VLOOKUP(Rebalance!$D$62,$F$2:$G$48,2,FALSE)+ROW()-2))=Rebalance!$D$62,INDIRECT(\"a\" & (VLOOKUP(Rebalance!$D$62,$F$2:$G$48,2,FALSE)+ROW()-2)),\"\")","v":{"$error":"#N/A"}},{"$f":"IF(INDIRECT(\"c\" & (VLOOKUP(Rebalance!$D$63,$F$2:$G$48,2,FALSE)+ROW()-2))=Rebalance!$D$63,INDIRECT(\"a\" & (VLOOKUP(Rebalance!$D$63,$F$2:$G$48,2,FALSE)+ROW()-2)),\"\")","v":{"$error":"#N/A"}},{"$f":"IF(INDIRECT(\"c\" & (VLOOKUP(Rebalance!$D$64,$F$2:$G$48,2,FALSE)+ROW()-2))=Rebalance!$D$64,INDIRECT(\"a\" & (VLOOKUP(Rebalance!$D$64,$F$2:$G$48,2,FALSE)+ROW()-2)),\"\")","v":{"$error":"#N/A"}},{"$f":"IF(INDIRECT(\"c\" & (VLOOKUP(Rebalance!$D$65,$F$2:$G$48,2,FALSE)+ROW()-2))=Rebalance!$D$65,INDIRECT(\"a\" & (VLOOKUP(Rebalance!$D$65,$F$2:$G$48,2,FALSE)+ROW()-2)),\"\")","v":{"$error":"#N/A"}},{"$f":"IF(INDIRECT(\"c\" & (VLOOKUP(Rebalance!$D$66,$F$2:$G$48,2,FALSE)+ROW()-2))=Rebalance!$D$66,INDIRECT(\"a\" & (VLOOKUP(Rebalance!$D$66,$F$2:$G$48,2,FALSE)+ROW()-2)),\"\")","v":{"$error":"#N/A"}}]
["Melville Douglas STANLIB Medium Equity Fund of Fund A","MDSFA","STANLIB Collective Investments",{"$f":"ROW()","v":11},null,"DISCOVERY LIFE COLLECTIVE INVESTMENTS (PTY) LTD",{"$f":"VLOOKUP(F11,$C$2:$D$599,2,FALSE)","v":241},{"$f":"IF(INDIRECT(\"c\" & (VLOOKUP(Rebalance!$D$26,$F$2:$G$48,2,FALSE)+ROW()-2))=Rebalance!$D$26,INDIRECT(\"a\" & (VLOOKUP(Rebalance!$D$26,$F$2:$G$48,2,FALSE)+ROW()-2)),\"\")","v":{"$error":"#N/A"}},{"$f":"IF(INDIRECT(\"c\" & (VLOOKUP(Rebalance!$D$27,$F$2:$G$48,2,FALSE)+ROW()-2))=Rebalance!$D$27,INDIRECT(\"a\" & (VLOOKUP(Rebalance!$D$27,$F$2:$G$48,2,FALSE)+ROW()-2)),\"\")","v":{"$error":"#N/A"}},{"$f":"IF(INDIRECT(\"c\" & (VLOOKUP(Rebalance!$D$28,$F$2:$G$48,2,FALSE)+ROW()-2))=Rebalance!$D$28,INDIRECT(\"a\" & (VLOOKUP(Rebalance!$D$28,$F$2:$G$48,2,FALSE)+ROW()-2)),\"\")","v":{"$error":"#N/A"}},{"$f":"IF(INDIRECT(\"c\" & (VLOOKUP(Rebalance!$D$29,$F$2:$G$48,2,FALSE)+ROW()-2))=Rebalance!$D$29,INDIRECT(\"a\" & (VLOOKUP(Rebalance!$D$29,$F$2:$G$48,2,FALSE)+ROW()-2)),\"\")","v":{"$error":"#N/A"}},{"$f":"IF(INDIRECT(\"c\" & (VLOOKUP(Rebalance!$D$30,$F$2:$G$48,2,FALSE)+ROW()-2))=Rebalance!$D$30,INDIRECT(\"a\" & (VLOOKUP(Rebalance!$D$30,$F$2:$G$48,2,FALSE)+ROW()-2)),\"\")","v":{"$error":"#N/A"}},{"$f":"IF(INDIRECT(\"c\" & (VLOOKUP(Rebalance!$D$31,$F$2:$G$48,2,FALSE)+ROW()-2))=Rebalance!$D$31,INDIRECT(\"a\" & (VLOOKUP(Rebalance!$D$31,$F$2:$G$48,2,FALSE)+ROW()-2)),\"\")","v":{"$error":"#N/A"}},{"$f":"IF(INDIRECT(\"c\" & (VLOOKUP(Rebalance!$D$32,$F$2:$G$48,2,FALSE)+ROW()-2))=Rebalance!$D$32,INDIRECT(\"a\" & (VLOOKUP(Rebalance!$D$32,$F$2:$G$48,2,FALSE)+ROW()-2)),\"\")","v":{"$error":"#N/A"}},{"$f":"IF(INDIRECT(\"c\" & (VLOOKUP(Rebalance!$D$33,$F$2:$G$48,2,FALSE)+ROW()-2))=Rebalance!$D$33,INDIRECT(\"a\" & (VLOOKUP(Rebalance!$D$33,$F$2:$G$48,2,FALSE)+ROW()-2)),\"\")","v":{"$error":"#N/A"}},{"$f":"IF(INDIRECT(\"c\" & (VLOOKUP(Rebalance!$D$34,$F$2:$G$48,2,FALSE)+ROW()-2))=Rebalance!$D$34,INDIRECT(\"a\" & (VLOOKUP(Rebalance!$D$34,$F$2:$G$48,2,FALSE)+ROW()-2)),\"\")","v":{"$error":"#N/A"}},{"$f":"IF(INDIRECT(\"c\" & (VLOOKUP(Rebalance!$D$35,$F$2:$G$48,2,FALSE)+ROW()-2))=Rebalance!$D$35,INDIRECT(\"a\" & (VLOOKUP(Rebalance!$D$35,$F$2:$G$48,2,FALSE)+ROW()-2)),\"\")","v":{"$error":"#N/A"}},{"$f":"IF(INDIRECT(\"c\" & (VLOOKUP(Rebalance!$D$36,$F$2:$G$48,2,FALSE)+ROW()-2))=Rebalance!$D$36,INDIRECT(\"a\" & (VLOOKUP(Rebalance!$D$36,$F$2:$G$48,2,FALSE)+ROW()-2)),\"\")","v":{"$error":"#N/A"}},{"$f":"IF(INDIRECT(\"c\" & (VLOOKUP(Rebalance!$D$37,$F$2:$G$48,2,FALSE)+ROW()-2))=Rebalance!$D$37,INDIRECT(\"a\" & (VLOOKUP(Rebalance!$D$37,$F$2:$G$48,2,FALSE)+ROW()-2)),\"\")","v":{"$error":"#N/A"}},{"$f":"IF(INDIRECT(\"c\" & (VLOOKUP(Rebalance!$D$38,$F$2:$G$48,2,FALSE)+ROW()-2))=Rebalance!$D$38,INDIRECT(\"a\" & (VLOOKUP(Rebalance!$D$38,$F$2:$G$48,2,FALSE)+ROW()-2)),\"\")","v":{"$error":"#N/A"}},{"$f":"IF(INDIRECT(\"c\" & (VLOOKUP(Rebalance!$D$39,$F$2:$G$48,2,FALSE)+ROW()-2))=Rebalance!$D$39,INDIRECT(\"a\" & (VLOOKUP(Rebalance!$D$39,$F$2:$G$48,2,FALSE)+ROW()-2)),\"\")","v":{"$error":"#N/A"}},{"$f":"IF(INDIRECT(\"c\" & (VLOOKUP(Rebalance!$D$40,$F$2:$G$48,2,FALSE)+ROW()-2))=Rebalance!$D$40,INDIRECT(\"a\" & (VLOOKUP(Rebalance!$D$40,$F$2:$G$48,2,FALSE)+ROW()-2)),\"\")","v":{"$error":"#N/A"}},{"$f":"IF(INDIRECT(\"c\" & (VLOOKUP(Rebalance!$D$52,$F$2:$G$48,2,FALSE)+ROW()-2))=Rebalance!$D$52,INDIRECT(\"a\" & (VLOOKUP(Rebalance!$D$52,$F$2:$G$48,2,FALSE)+ROW()-2)),\"\")","v":{"$error":"#N/A"}},{"$f":"IF(INDIRECT(\"c\" & (VLOOKUP(Rebalance!$D$53,$F$2:$G$48,2,FALSE)+ROW()-2))=Rebalance!$D$53,INDIRECT(\"a\" & (VLOOKUP(Rebalance!$D$53,$F$2:$G$48,2,FALSE)+ROW()-2)),\"\")","v":{"$error":"#N/A"}},{"$f":"IF(INDIRECT(\"c\" & (VLOOKUP(Rebalance!$D$54,$F$2:$G$48,2,FALSE)+ROW()-2))=Rebalance!$D$54,INDIRECT(\"a\" & (VLOOKUP(Rebalance!$D$54,$F$2:$G$48,2,FALSE)+ROW()-2)),\"\")","v":{"$error":"#N/A"}},{"$f":"IF(INDIRECT(\"c\" & (VLOOKUP(Rebalance!$D$55,$F$2:$G$48,2,FALSE)+ROW()-2))=Rebalance!$D$55,INDIRECT(\"a\" & (VLOOKUP(Rebalance!$D$55,$F$2:$G$48,2,FALSE)+ROW()-2)),\"\")","v":{"$error":"#N/A"}},{"$f":"IF(INDIRECT(\"c\" & (VLOOKUP(Rebalance!$D$56,$F$2:$G$48,2,FALSE)+ROW()-2))=Rebalance!$D$56,INDIRECT(\"a\" & (VLOOKUP(Rebalance!$D$56,$F$2:$G$48,2,FALSE)+ROW()-2)),\"\")","v":{"$error":"#N/A"}},{"$f":"IF(INDIRECT(\"c\" & (VLOOKUP(Rebalance!$D$57,$F$2:$G$48,2,FALSE)+ROW()-2))=Rebalance!$D$57,INDIRECT(\"a\" & (VLOOKUP(Rebalance!$D$57,$F$2:$G$48,2,FALSE)+ROW()-2)),\"\")","v":{"$error":"#N/A"}},{"$f":"IF(INDIRECT(\"c\" & (VLOOKUP(Rebalance!$D$58,$F$2:$G$48,2,FALSE)+ROW()-2))=Rebalance!$D$58,INDIRECT(\"a\" & (VLOOKUP(Rebalance!$D$58,$F$2:$G$48,2,FALSE)+ROW()-2)),\"\")","v":{"$error":"#N/A"}},{"$f":"IF(INDIRECT(\"c\" & (VLOOKUP(Rebalance!$D$59,$F$2:$G$48,2,FALSE)+ROW()-2))=Rebalance!$D$59,INDIRECT(\"a\" & (VLOOKUP(Rebalance!$D$59,$F$2:$G$48,2,FALSE)+ROW()-2)),\"\")","v":{"$error":"#N/A"}},{"$f":"IF(INDIRECT(\"c\" & (VLOOKUP(Rebalance!$D$60,$F$2:$G$48,2,FALSE)+ROW()-2))=Rebalance!$D$60,INDIRECT(\"a\" & (VLOOKUP(Rebalance!$D$60,$F$2:$G$48,2,FALSE)+ROW()-2)),\"\")","v":{"$error":"#N/A"}},{"$f":"IF(INDIRECT(\"c\" & (VLOOKUP(Rebalance!$D$61,$F$2:$G$48,2,FALSE)+ROW()-2))=Rebalance!$D$61,INDIRECT(\"a\" & (VLOOKUP(Rebalance!$D$61,$F$2:$G$48,2,FALSE)+ROW()-2)),\"\")","v":{"$error":"#N/A"}},{"$f":"IF(INDIRECT(\"c\" & (VLOOKUP(Rebalance!$D$62,$F$2:$G$48,2,FALSE)+ROW()-2))=Rebalance!$D$62,INDIRECT(\"a\" & (VLOOKUP(Rebalance!$D$62,$F$2:$G$48,2,FALSE)+ROW()-2)),\"\")","v":{"$error":"#N/A"}},{"$f":"IF(INDIRECT(\"c\" & (VLOOKUP(Rebalance!$D$63,$F$2:$G$48,2,FALSE)+ROW()-2))=Rebalance!$D$63,INDIRECT(\"a\" & (VLOOKUP(Rebalance!$D$63,$F$2:$G$48,2,FALSE)+ROW()-2)),\"\")","v":{"$error":"#N/A"}},{"$f":"IF(INDIRECT(\"c\" & (VLOOKUP(Rebalance!$D$64,$F$2:$G$48,2,FALSE)+ROW()-2))=Rebalance!$D$64,INDIRECT(\"a\" & (VLOOKUP(Rebalance!$D$64,$F$2:$G$48,2,FALSE)+ROW()-2)),\"\")","v":{"$error":"#N/A"}},{"$f":"IF(INDIRECT(\"c\" & (VLOOKUP(Rebalance!$D$65,$F$2:$G$48,2,FALSE)+ROW()-2))=Rebalance!$D$65,INDIRECT(\"a\" & (VLOOKUP(Rebalance!$D$65,$F$2:$G$48,2,FALSE)+ROW()-2)),\"\")","v":{"$error":"#N/A"}},{"$f":"IF(INDIRECT(\"c\" & (VLOOKUP(Rebalance!$D$66,$F$2:$G$48,2,FALSE)+ROW()-2))=Rebalance!$D$66,INDIRECT(\"a\" & (VLOOKUP(Rebalance!$D$66,$F$2:$G$48,2,FALSE)+ROW()-2)),\"\")","v":{"$error":"#N/A"}}]
["Melville Douglas STANLIB Balanced Fund B1","MDDB1","STANLIB Collective Investments",{"$f":"ROW()","v":12},null,"Foord Unit Trusts Ltd",{"$f":"VLOOKUP(F12,$C$2:$D$599,2,FALSE)","v":248},{"$f":"IF(INDIRECT(\"c\" & (VLOOKUP(Rebalance!$D$26,$F$2:$G$48,2,FALSE)+ROW()-2))=Rebalance!$D$26,INDIRECT(\"a\" & (VLOOKUP(Rebalance!$D$26,$F$2:$G$48,2,FALSE)+ROW()-2)),\"\")","v":{"$error":"#N/A"}},{"$f":"IF(INDIRECT(\"c\" & (VLOOKUP(Rebalance!$D$27,$F$2:$G$48,2,FALSE)+ROW()-2))=Rebalance!$D$27,INDIRECT(\"a\" & (VLOOKUP(Rebalance!$D$27,$F$2:$G$48,2,FALSE)+ROW()-2)),\"\")","v":{"$error":"#N/A"}},{"$f":"IF(INDIRECT(\"c\" & (VLOOKUP(Rebalance!$D$28,$F$2:$G$48,2,FALSE)+ROW()-2))=Rebalance!$D$28,INDIRECT(\"a\" & (VLOOKUP(Rebalance!$D$28,$F$2:$G$48,2,FALSE)+ROW()-2)),\"\")","v":{"$error":"#N/A"}},{"$f":"IF(INDIRECT(\"c\" & (VLOOKUP(Rebalance!$D$29,$F$2:$G$48,2,FALSE)+ROW()-2))=Rebalance!$D$29,INDIRECT(\"a\" & (VLOOKUP(Rebalance!$D$29,$F$2:$G$48,2,FALSE)+ROW()-2)),\"\")","v":{"$error":"#N/A"}},{"$f":"IF(INDIRECT(\"c\" & (VLOOKUP(Rebalance!$D$30,$F$2:$G$48,2,FALSE)+ROW()-2))=Rebalance!$D$30,INDIRECT(\"a\" & (VLOOKUP(Rebalance!$D$30,$F$2:$G$48,2,FALSE)+ROW()-2)),\"\")","v":{"$error":"#N/A"}},{"$f":"IF(INDIRECT(\"c\" & (VLOOKUP(Rebalance!$D$31,$F$2:$G$48,2,FALSE)+ROW()-2))=Rebalance!$D$31,INDIRECT(\"a\" & (VLOOKUP(Rebalance!$D$31,$F$2:$G$48,2,FALSE)+ROW()-2)),\"\")","v":{"$error":"#N/A"}},{"$f":"IF(INDIRECT(\"c\" & (VLOOKUP(Rebalance!$D$32,$F$2:$G$48,2,FALSE)+ROW()-2))=Rebalance!$D$32,INDIRECT(\"a\" & (VLOOKUP(Rebalance!$D$32,$F$2:$G$48,2,FALSE)+ROW()-2)),\"\")","v":{"$error":"#N/A"}},{"$f":"IF(INDIRECT(\"c\" & (VLOOKUP(Rebalance!$D$33,$F$2:$G$48,2,FALSE)+ROW()-2))=Rebalance!$D$33,INDIRECT(\"a\" & (VLOOKUP(Rebalance!$D$33,$F$2:$G$48,2,FALSE)+ROW()-2)),\"\")","v":{"$error":"#N/A"}},{"$f":"IF(INDIRECT(\"c\" & (VLOOKUP(Rebalance!$D$34,$F$2:$G$48,2,FALSE)+ROW()-2))=Rebalance!$D$34,INDIRECT(\"a\" & (VLOOKUP(Rebalance!$D$34,$F$2:$G$48,2,FALSE)+ROW()-2)),\"\")","v":{"$error":"#N/A"}},{"$f":"IF(INDIRECT(\"c\" & (VLOOKUP(Rebalance!$D$35,$F$2:$G$48,2,FALSE)+ROW()-2))=Rebalance!$D$35,INDIRECT(\"a\" & (VLOOKUP(Rebalance!$D$35,$F$2:$G$48,2,FALSE)+ROW()-2)),\"\")","v":{"$error":"#N/A"}},{"$f":"IF(INDIRECT(\"c\" & (VLOOKUP(Rebalance!$D$36,$F$2:$G$48,2,FALSE)+ROW()-2))=Rebalance!$D$36,INDIRECT(\"a\" & (VLOOKUP(Rebalance!$D$36,$F$2:$G$48,2,FALSE)+ROW()-2)),\"\")","v":{"$error":"#N/A"}},{"$f":"IF(INDIRECT(\"c\" & (VLOOKUP(Rebalance!$D$37,$F$2:$G$48,2,FALSE)+ROW()-2))=Rebalance!$D$37,INDIRECT(\"a\" & (VLOOKUP(Rebalance!$D$37,$F$2:$G$48,2,FALSE)+ROW()-2)),\"\")","v":{"$error":"#N/A"}},{"$f":"IF(INDIRECT(\"c\" & (VLOOKUP(Rebalance!$D$38,$F$2:$G$48,2,FALSE)+ROW()-2))=Rebalance!$D$38,INDIRECT(\"a\" & (VLOOKUP(Rebalance!$D$38,$F$2:$G$48,2,FALSE)+ROW()-2)),\"\")","v":{"$error":"#N/A"}},{"$f":"IF(INDIRECT(\"c\" & (VLOOKUP(Rebalance!$D$39,$F$2:$G$48,2,FALSE)+ROW()-2))=Rebalance!$D$39,INDIRECT(\"a\" & (VLOOKUP(Rebalance!$D$39,$F$2:$G$48,2,FALSE)+ROW()-2)),\"\")","v":{"$error":"#N/A"}},{"$f":"IF(INDIRECT(\"c\" & (VLOOKUP(Rebalance!$D$40,$F$2:$G$48,2,FALSE)+ROW()-2))=Rebalance!$D$40,INDIRECT(\"a\" & (VLOOKUP(Rebalance!$D$40,$F$2:$G$48,2,FALSE)+ROW()-2)),\"\")","v":{"$error":"#N/A"}},{"$f":"IF(INDIRECT(\"c\" & (VLOOKUP(Rebalance!$D$52,$F$2:$G$48,2,FALSE)+ROW()-2))=Rebalance!$D$52,INDIRECT(\"a\" & (VLOOKUP(Rebalance!$D$52,$F$2:$G$48,2,FALSE)+ROW()-2)),\"\")","v":{"$error":"#N/A"}},{"$f":"IF(INDIRECT(\"c\" & (VLOOKUP(Rebalance!$D$53,$F$2:$G$48,2,FALSE)+ROW()-2))=Rebalance!$D$53,INDIRECT(\"a\" & (VLOOKUP(Rebalance!$D$53,$F$2:$G$48,2,FALSE)+ROW()-2)),\"\")","v":{"$error":"#N/A"}},{"$f":"IF(INDIRECT(\"c\" & (VLOOKUP(Rebalance!$D$54,$F$2:$G$48,2,FALSE)+ROW()-2))=Rebalance!$D$54,INDIRECT(\"a\" & (VLOOKUP(Rebalance!$D$54,$F$2:$G$48,2,FALSE)+ROW()-2)),\"\")","v":{"$error":"#N/A"}},{"$f":"IF(INDIRECT(\"c\" & (VLOOKUP(Rebalance!$D$55,$F$2:$G$48,2,FALSE)+ROW()-2))=Rebalance!$D$55,INDIRECT(\"a\" & (VLOOKUP(Rebalance!$D$55,$F$2:$G$48,2,FALSE)+ROW()-2)),\"\")","v":{"$error":"#N/A"}},{"$f":"IF(INDIRECT(\"c\" & (VLOOKUP(Rebalance!$D$56,$F$2:$G$48,2,FALSE)+ROW()-2))=Rebalance!$D$56,INDIRECT(\"a\" & (VLOOKUP(Rebalance!$D$56,$F$2:$G$48,2,FALSE)+ROW()-2)),\"\")","v":{"$error":"#N/A"}},{"$f":"IF(INDIRECT(\"c\" & (VLOOKUP(Rebalance!$D$57,$F$2:$G$48,2,FALSE)+ROW()-2))=Rebalance!$D$57,INDIRECT(\"a\" & (VLOOKUP(Rebalance!$D$57,$F$2:$G$48,2,FALSE)+ROW()-2)),\"\")","v":{"$error":"#N/A"}},{"$f":"IF(INDIRECT(\"c\" & (VLOOKUP(Rebalance!$D$58,$F$2:$G$48,2,FALSE)+ROW()-2))=Rebalance!$D$58,INDIRECT(\"a\" & (VLOOKUP(Rebalance!$D$58,$F$2:$G$48,2,FALSE)+ROW()-2)),\"\")","v":{"$error":"#N/A"}},{"$f":"IF(INDIRECT(\"c\" & (VLOOKUP(Rebalance!$D$59,$F$2:$G$48,2,FALSE)+ROW()-2))=Rebalance!$D$59,INDIRECT(\"a\" & (VLOOKUP(Rebalance!$D$59,$F$2:$G$48,2,FALSE)+ROW()-2)),\"\")","v":{"$error":"#N/A"}},{"$f":"IF(INDIRECT(\"c\" & (VLOOKUP(Rebalance!$D$60,$F$2:$G$48,2,FALSE)+ROW()-2))=Rebalance!$D$60,INDIRECT(\"a\" & (VLOOKUP(Rebalance!$D$60,$F$2:$G$48,2,FALSE)+ROW()-2)),\"\")","v":{"$error":"#N/A"}},{"$f":"IF(INDIRECT(\"c\" & (VLOOKUP(Rebalance!$D$61,$F$2:$G$48,2,FALSE)+ROW()-2))=Rebalance!$D$61,INDIRECT(\"a\" & (VLOOKUP(Rebalance!$D$61,$F$2:$G$48,2,FALSE)+ROW()-2)),\"\")","v":{"$error":"#N/A"}},{"$f":"IF(INDIRECT(\"c\" & (VLOOKUP(Rebalance!$D$62,$F$2:$G$48,2,FALSE)+ROW()-2))=Rebalance!$D$62,INDIRECT(\"a\" & (VLOOKUP(Rebalance!$D$62,$F$2:$G$48,2,FALSE)+ROW()-2)),\"\")","v":{"$error":"#N/A"}},{"$f":"IF(INDIRECT(\"c\" & (VLOOKUP(Rebalance!$D$63,$F$2:$G$48,2,FALSE)+ROW()-2))=Rebalance!$D$63,INDIRECT(\"a\" & (VLOOKUP(Rebalance!$D$63,$F$2:$G$48,2,FALSE)+ROW()-2)),\"\")","v":{"$error":"#N/A"}},{"$f":"IF(INDIRECT(\"c\" & (VLOOKUP(Rebalance!$D$64,$F$2:$G$48,2,FALSE)+ROW()-2))=Rebalance!$D$64,INDIRECT(\"a\" & (VLOOKUP(Rebalance!$D$64,$F$2:$G$48,2,FALSE)+ROW()-2)),\"\")","v":{"$error":"#N/A"}},{"$f":"IF(INDIRECT(\"c\" & (VLOOKUP(Rebalance!$D$65,$F$2:$G$48,2,FALSE)+ROW()-2))=Rebalance!$D$65,INDIRECT(\"a\" & (VLOOKUP(Rebalance!$D$65,$F$2:$G$48,2,FALSE)+ROW()-2)),\"\")","v":{"$error":"#N/A"}},{"$f":"IF(INDIRECT(\"c\" & (VLOOKUP(Rebalance!$D$66,$F$2:$G$48,2,FALSE)+ROW()-2))=Rebalance!$D$66,INDIRECT(\"a\" & (VLOOKUP(Rebalance!$D$66,$F$2:$G$48,2,FALSE)+ROW()-2)),\"\")","v":{"$error":"#N/A"}}]
["Melville Douglas STANLIB High Alpha Fund","MDHFA","STANLIB Collective Investments",{"$f":"ROW()","v":13},null,"Grant Thornton Capital (Pty) Ltd",{"$f":"VLOOKUP(F13,$C$2:$D$599,2,FALSE)","v":253},{"$f":"IF(INDIRECT(\"c\" & (VLOOKUP(Rebalance!$D$26,$F$2:$G$48,2,FALSE)+ROW()-2))=Rebalance!$D$26,INDIRECT(\"a\" & (VLOOKUP(Rebalance!$D$26,$F$2:$G$48,2,FALSE)+ROW()-2)),\"\")","v":{"$error":"#N/A"}},{"$f":"IF(INDIRECT(\"c\" & (VLOOKUP(Rebalance!$D$27,$F$2:$G$48,2,FALSE)+ROW()-2))=Rebalance!$D$27,INDIRECT(\"a\" & (VLOOKUP(Rebalance!$D$27,$F$2:$G$48,2,FALSE)+ROW()-2)),\"\")","v":{"$error":"#N/A"}},{"$f":"IF(INDIRECT(\"c\" & (VLOOKUP(Rebalance!$D$28,$F$2:$G$48,2,FALSE)+ROW()-2))=Rebalance!$D$28,INDIRECT(\"a\" & (VLOOKUP(Rebalance!$D$28,$F$2:$G$48,2,FALSE)+ROW()-2)),\"\")","v":{"$error":"#N/A"}},{"$f":"IF(INDIRECT(\"c\" & (VLOOKUP(Rebalance!$D$29,$F$2:$G$48,2,FALSE)+ROW()-2))=Rebalance!$D$29,INDIRECT(\"a\" & (VLOOKUP(Rebalance!$D$29,$F$2:$G$48,2,FALSE)+ROW()-2)),\"\")","v":{"$error":"#N/A"}},{"$f":"IF(INDIRECT(\"c\" & (VLOOKUP(Rebalance!$D$30,$F$2:$G$48,2,FALSE)+ROW()-2))=Rebalance!$D$30,INDIRECT(\"a\" & (VLOOKUP(Rebalance!$D$30,$F$2:$G$48,2,FALSE)+ROW()-2)),\"\")","v":{"$error":"#N/A"}},{"$f":"IF(INDIRECT(\"c\" & (VLOOKUP(Rebalance!$D$31,$F$2:$G$48,2,FALSE)+ROW()-2))=Rebalance!$D$31,INDIRECT(\"a\" & (VLOOKUP(Rebalance!$D$31,$F$2:$G$48,2,FALSE)+ROW()-2)),\"\")","v":{"$error":"#N/A"}},{"$f":"IF(INDIRECT(\"c\" & (VLOOKUP(Rebalance!$D$32,$F$2:$G$48,2,FALSE)+ROW()-2))=Rebalance!$D$32,INDIRECT(\"a\" & (VLOOKUP(Rebalance!$D$32,$F$2:$G$48,2,FALSE)+ROW()-2)),\"\")","v":{"$error":"#N/A"}},{"$f":"IF(INDIRECT(\"c\" & (VLOOKUP(Rebalance!$D$33,$F$2:$G$48,2,FALSE)+ROW()-2))=Rebalance!$D$33,INDIRECT(\"a\" & (VLOOKUP(Rebalance!$D$33,$F$2:$G$48,2,FALSE)+ROW()-2)),\"\")","v":{"$error":"#N/A"}},{"$f":"IF(INDIRECT(\"c\" & (VLOOKUP(Rebalance!$D$34,$F$2:$G$48,2,FALSE)+ROW()-2))=Rebalance!$D$34,INDIRECT(\"a\" & (VLOOKUP(Rebalance!$D$34,$F$2:$G$48,2,FALSE)+ROW()-2)),\"\")","v":{"$error":"#N/A"}},{"$f":"IF(INDIRECT(\"c\" & (VLOOKUP(Rebalance!$D$35,$F$2:$G$48,2,FALSE)+ROW()-2))=Rebalance!$D$35,INDIRECT(\"a\" & (VLOOKUP(Rebalance!$D$35,$F$2:$G$48,2,FALSE)+ROW()-2)),\"\")","v":{"$error":"#N/A"}},{"$f":"IF(INDIRECT(\"c\" & (VLOOKUP(Rebalance!$D$36,$F$2:$G$48,2,FALSE)+ROW()-2))=Rebalance!$D$36,INDIRECT(\"a\" & (VLOOKUP(Rebalance!$D$36,$F$2:$G$48,2,FALSE)+ROW()-2)),\"\")","v":{"$error":"#N/A"}},{"$f":"IF(INDIRECT(\"c\" & (VLOOKUP(Rebalance!$D$37,$F$2:$G$48,2,FALSE)+ROW()-2))=Rebalance!$D$37,INDIRECT(\"a\" & (VLOOKUP(Rebalance!$D$37,$F$2:$G$48,2,FALSE)+ROW()-2)),\"\")","v":{"$error":"#N/A"}},{"$f":"IF(INDIRECT(\"c\" & (VLOOKUP(Rebalance!$D$38,$F$2:$G$48,2,FALSE)+ROW()-2))=Rebalance!$D$38,INDIRECT(\"a\" & (VLOOKUP(Rebalance!$D$38,$F$2:$G$48,2,FALSE)+ROW()-2)),\"\")","v":{"$error":"#N/A"}},{"$f":"IF(INDIRECT(\"c\" & (VLOOKUP(Rebalance!$D$39,$F$2:$G$48,2,FALSE)+ROW()-2))=Rebalance!$D$39,INDIRECT(\"a\" & (VLOOKUP(Rebalance!$D$39,$F$2:$G$48,2,FALSE)+ROW()-2)),\"\")","v":{"$error":"#N/A"}},{"$f":"IF(INDIRECT(\"c\" & (VLOOKUP(Rebalance!$D$40,$F$2:$G$48,2,FALSE)+ROW()-2))=Rebalance!$D$40,INDIRECT(\"a\" & (VLOOKUP(Rebalance!$D$40,$F$2:$G$48,2,FALSE)+ROW()-2)),\"\")","v":{"$error":"#N/A"}},{"$f":"IF(INDIRECT(\"c\" & (VLOOKUP(Rebalance!$D$52,$F$2:$G$48,2,FALSE)+ROW()-2))=Rebalance!$D$52,INDIRECT(\"a\" & (VLOOKUP(Rebalance!$D$52,$F$2:$G$48,2,FALSE)+ROW()-2)),\"\")","v":{"$error":"#N/A"}},{"$f":"IF(INDIRECT(\"c\" & (VLOOKUP(Rebalance!$D$53,$F$2:$G$48,2,FALSE)+ROW()-2))=Rebalance!$D$53,INDIRECT(\"a\" & (VLOOKUP(Rebalance!$D$53,$F$2:$G$48,2,FALSE)+ROW()-2)),\"\")","v":{"$error":"#N/A"}},{"$f":"IF(INDIRECT(\"c\" & (VLOOKUP(Rebalance!$D$54,$F$2:$G$48,2,FALSE)+ROW()-2))=Rebalance!$D$54,INDIRECT(\"a\" & (VLOOKUP(Rebalance!$D$54,$F$2:$G$48,2,FALSE)+ROW()-2)),\"\")","v":{"$error":"#N/A"}},{"$f":"IF(INDIRECT(\"c\" & (VLOOKUP(Rebalance!$D$55,$F$2:$G$48,2,FALSE)+ROW()-2))=Rebalance!$D$55,INDIRECT(\"a\" & (VLOOKUP(Rebalance!$D$55,$F$2:$G$48,2,FALSE)+ROW()-2)),\"\")","v":{"$error":"#N/A"}},{"$f":"IF(INDIRECT(\"c\" & (VLOOKUP(Rebalance!$D$56,$F$2:$G$48,2,FALSE)+ROW()-2))=Rebalance!$D$56,INDIRECT(\"a\" & (VLOOKUP(Rebalance!$D$56,$F$2:$G$48,2,FALSE)+ROW()-2)),\"\")","v":{"$error":"#N/A"}},{"$f":"IF(INDIRECT(\"c\" & (VLOOKUP(Rebalance!$D$57,$F$2:$G$48,2,FALSE)+ROW()-2))=Rebalance!$D$57,INDIRECT(\"a\" & (VLOOKUP(Rebalance!$D$57,$F$2:$G$48,2,FALSE)+ROW()-2)),\"\")","v":{"$error":"#N/A"}},{"$f":"IF(INDIRECT(\"c\" & (VLOOKUP(Rebalance!$D$58,$F$2:$G$48,2,FALSE)+ROW()-2))=Rebalance!$D$58,INDIRECT(\"a\" & (VLOOKUP(Rebalance!$D$58,$F$2:$G$48,2,FALSE)+ROW()-2)),\"\")","v":{"$error":"#N/A"}},{"$f":"IF(INDIRECT(\"c\" & (VLOOKUP(Rebalance!$D$59,$F$2:$G$48,2,FALSE)+ROW()-2))=Rebalance!$D$59,INDIRECT(\"a\" & (VLOOKUP(Rebalance!$D$59,$F$2:$G$48,2,FALSE)+ROW()-2)),\"\")","v":{"$error":"#N/A"}},{"$f":"IF(INDIRECT(\"c\" & (VLOOKUP(Rebalance!$D$60,$F$2:$G$48,2,FALSE)+ROW()-2))=Rebalance!$D$60,INDIRECT(\"a\" & (VLOOKUP(Rebalance!$D$60,$F$2:$G$48,2,FALSE)+ROW()-2)),\"\")","v":{"$error":"#N/A"}},{"$f":"IF(INDIRECT(\"c\" & (VLOOKUP(Rebalance!$D$61,$F$2:$G$48,2,FALSE)+ROW()-2))=Rebalance!$D$61,INDIRECT(\"a\" & (VLOOKUP(Rebalance!$D$61,$F$2:$G$48,2,FALSE)+ROW()-2)),\"\")","v":{"$error":"#N/A"}},{"$f":"IF(INDIRECT(\"c\" & (VLOOKUP(Rebalance!$D$62,$F$2:$G$48,2,FALSE)+ROW()-2))=Rebalance!$D$62,INDIRECT(\"a\" & (VLOOKUP(Rebalance!$D$62,$F$2:$G$48,2,FALSE)+ROW()-2)),\"\")","v":{"$error":"#N/A"}},{"$f":"IF(INDIRECT(\"c\" & (VLOOKUP(Rebalance!$D$63,$F$2:$G$48,2,FALSE)+ROW()-2))=Rebalance!$D$63,INDIRECT(\"a\" & (VLOOKUP(Rebalance!$D$63,$F$2:$G$48,2,FALSE)+ROW()-2)),\"\")","v":{"$error":"#N/A"}},{"$f":"IF(INDIRECT(\"c\" & (VLOOKUP(Rebalance!$D$64,$F$2:$G$48,2,FALSE)+ROW()-2))=Rebalance!$D$64,INDIRECT(\"a\" & (VLOOKUP(Rebalance!$D$64,$F$2:$G$48,2,FALSE)+ROW()-2)),\"\")","v":{"$error":"#N/A"}},{"$f":"IF(INDIRECT(\"c\" & (VLOOKUP(Rebalance!$D$65,$F$2:$G$48,2,FALSE)+ROW()-2))=Rebalance!$D$65,INDIRECT(\"a\" & (VLOOKUP(Rebalance!$D$65,$F$2:$G$48,2,FALSE)+ROW()-2)),\"\")","v":{"$error":"#N/A"}},{"$f":"IF(INDIRECT(\"c\" & (VLOOKUP(Rebalance!$D$66,$F$2:$G$48,2,FALSE)+ROW()-2))=Rebalance!$D$66,INDIRECT(\"a\" & (VLOOKUP(Rebalance!$D$66,$F$2:$G$48,2,FALSE)+ROW()-2)),\"\")","v":{"$error":"#N/A"}}]
["Melville Douglas STANLIB High Alpha Fund B1","MDHFA","STANLIB Collective Investments",{"$f":"ROW()","v":14},null,"Gryphon Collective Investments (RF) (Pty) Ltd",{"$f":"VLOOKUP(F14,$C$2:$D$599,2,FALSE)","v":256},{"$f":"IF(INDIRECT(\"c\" & (VLOOKUP(Rebalance!$D$26,$F$2:$G$48,2,FALSE)+ROW()-2))=Rebalance!$D$26,INDIRECT(\"a\" & (VLOOKUP(Rebalance!$D$26,$F$2:$G$48,2,FALSE)+ROW()-2)),\"\")","v":{"$error":"#N/A"}},{"$f":"IF(INDIRECT(\"c\" & (VLOOKUP(Rebalance!$D$27,$F$2:$G$48,2,FALSE)+ROW()-2))=Rebalance!$D$27,INDIRECT(\"a\" & (VLOOKUP(Rebalance!$D$27,$F$2:$G$48,2,FALSE)+ROW()-2)),\"\")","v":{"$error":"#N/A"}},{"$f":"IF(INDIRECT(\"c\" & (VLOOKUP(Rebalance!$D$28,$F$2:$G$48,2,FALSE)+ROW()-2))=Rebalance!$D$28,INDIRECT(\"a\" & (VLOOKUP(Rebalance!$D$28,$F$2:$G$48,2,FALSE)+ROW()-2)),\"\")","v":{"$error":"#N/A"}},{"$f":"IF(INDIRECT(\"c\" & (VLOOKUP(Rebalance!$D$29,$F$2:$G$48,2,FALSE)+ROW()-2))=Rebalance!$D$29,INDIRECT(\"a\" & (VLOOKUP(Rebalance!$D$29,$F$2:$G$48,2,FALSE)+ROW()-2)),\"\")","v":{"$error":"#N/A"}},{"$f":"IF(INDIRECT(\"c\" & (VLOOKUP(Rebalance!$D$30,$F$2:$G$48,2,FALSE)+ROW()-2))=Rebalance!$D$30,INDIRECT(\"a\" & (VLOOKUP(Rebalance!$D$30,$F$2:$G$48,2,FALSE)+ROW()-2)),\"\")","v":{"$error":"#N/A"}},{"$f":"IF(INDIRECT(\"c\" & (VLOOKUP(Rebalance!$D$31,$F$2:$G$48,2,FALSE)+ROW()-2))=Rebalance!$D$31,INDIRECT(\"a\" & (VLOOKUP(Rebalance!$D$31,$F$2:$G$48,2,FALSE)+ROW()-2)),\"\")","v":{"$error":"#N/A"}},{"$f":"IF(INDIRECT(\"c\" & (VLOOKUP(Rebalance!$D$32,$F$2:$G$48,2,FALSE)+ROW()-2))=Rebalance!$D$32,INDIRECT(\"a\" & (VLOOKUP(Rebalance!$D$32,$F$2:$G$48,2,FALSE)+ROW()-2)),\"\")","v":{"$error":"#N/A"}},{"$f":"IF(INDIRECT(\"c\" & (VLOOKUP(Rebalance!$D$33,$F$2:$G$48,2,FALSE)+ROW()-2))=Rebalance!$D$33,INDIRECT(\"a\" & (VLOOKUP(Rebalance!$D$33,$F$2:$G$48,2,FALSE)+ROW()-2)),\"\")","v":{"$error":"#N/A"}},{"$f":"IF(INDIRECT(\"c\" & (VLOOKUP(Rebalance!$D$34,$F$2:$G$48,2,FALSE)+ROW()-2))=Rebalance!$D$34,INDIRECT(\"a\" & (VLOOKUP(Rebalance!$D$34,$F$2:$G$48,2,FALSE)+ROW()-2)),\"\")","v":{"$error":"#N/A"}},{"$f":"IF(INDIRECT(\"c\" & (VLOOKUP(Rebalance!$D$35,$F$2:$G$48,2,FALSE)+ROW()-2))=Rebalance!$D$35,INDIRECT(\"a\" & (VLOOKUP(Rebalance!$D$35,$F$2:$G$48,2,FALSE)+ROW()-2)),\"\")","v":{"$error":"#N/A"}},{"$f":"IF(INDIRECT(\"c\" & (VLOOKUP(Rebalance!$D$36,$F$2:$G$48,2,FALSE)+ROW()-2))=Rebalance!$D$36,INDIRECT(\"a\" & (VLOOKUP(Rebalance!$D$36,$F$2:$G$48,2,FALSE)+ROW()-2)),\"\")","v":{"$error":"#N/A"}},{"$f":"IF(INDIRECT(\"c\" & (VLOOKUP(Rebalance!$D$37,$F$2:$G$48,2,FALSE)+ROW()-2))=Rebalance!$D$37,INDIRECT(\"a\" & (VLOOKUP(Rebalance!$D$37,$F$2:$G$48,2,FALSE)+ROW()-2)),\"\")","v":{"$error":"#N/A"}},{"$f":"IF(INDIRECT(\"c\" & (VLOOKUP(Rebalance!$D$38,$F$2:$G$48,2,FALSE)+ROW()-2))=Rebalance!$D$38,INDIRECT(\"a\" & (VLOOKUP(Rebalance!$D$38,$F$2:$G$48,2,FALSE)+ROW()-2)),\"\")","v":{"$error":"#N/A"}},{"$f":"IF(INDIRECT(\"c\" & (VLOOKUP(Rebalance!$D$39,$F$2:$G$48,2,FALSE)+ROW()-2))=Rebalance!$D$39,INDIRECT(\"a\" & (VLOOKUP(Rebalance!$D$39,$F$2:$G$48,2,FALSE)+ROW()-2)),\"\")","v":{"$error":"#N/A"}},{"$f":"IF(INDIRECT(\"c\" & (VLOOKUP(Rebalance!$D$40,$F$2:$G$48,2,FALSE)+ROW()-2))=Rebalance!$D$40,INDIRECT(\"a\" & (VLOOKUP(Rebalance!$D$40,$F$2:$G$48,2,FALSE)+ROW()-2)),\"\")","v":{"$error":"#N/A"}},{"$f":"IF(INDIRECT(\"c\" & (VLOOKUP(Rebalance!$D$52,$F$2:$G$48,2,FALSE)+ROW()-2))=Rebalance!$D$52,INDIRECT(\"a\" & (VLOOKUP(Rebalance!$D$52,$F$2:$G$48,2,FALSE)+ROW()-2)),\"\")","v":{"$error":"#N/A"}},{"$f":"IF(INDIRECT(\"c\" & (VLOOKUP(Rebalance!$D$53,$F$2:$G$48,2,FALSE)+ROW()-2))=Rebalance!$D$53,INDIRECT(\"a\" & (VLOOKUP(Rebalance!$D$53,$F$2:$G$48,2,FALSE)+ROW()-2)),\"\")","v":{"$error":"#N/A"}},{"$f":"IF(INDIRECT(\"c\" & (VLOOKUP(Rebalance!$D$54,$F$2:$G$48,2,FALSE)+ROW()-2))=Rebalance!$D$54,INDIRECT(\"a\" & (VLOOKUP(Rebalance!$D$54,$F$2:$G$48,2,FALSE)+ROW()-2)),\"\")","v":{"$error":"#N/A"}},{"$f":"IF(INDIRECT(\"c\" & (VLOOKUP(Rebalance!$D$55,$F$2:$G$48,2,FALSE)+ROW()-2))=Rebalance!$D$55,INDIRECT(\"a\" & (VLOOKUP(Rebalance!$D$55,$F$2:$G$48,2,FALSE)+ROW()-2)),\"\")","v":{"$error":"#N/A"}},{"$f":"IF(INDIRECT(\"c\" & (VLOOKUP(Rebalance!$D$56,$F$2:$G$48,2,FALSE)+ROW()-2))=Rebalance!$D$56,INDIRECT(\"a\" & (VLOOKUP(Rebalance!$D$56,$F$2:$G$48,2,FALSE)+ROW()-2)),\"\")","v":{"$error":"#N/A"}},{"$f":"IF(INDIRECT(\"c\" & (VLOOKUP(Rebalance!$D$57,$F$2:$G$48,2,FALSE)+ROW()-2))=Rebalance!$D$57,INDIRECT(\"a\" & (VLOOKUP(Rebalance!$D$57,$F$2:$G$48,2,FALSE)+ROW()-2)),\"\")","v":{"$error":"#N/A"}},{"$f":"IF(INDIRECT(\"c\" & (VLOOKUP(Rebalance!$D$58,$F$2:$G$48,2,FALSE)+ROW()-2))=Rebalance!$D$58,INDIRECT(\"a\" & (VLOOKUP(Rebalance!$D$58,$F$2:$G$48,2,FALSE)+ROW()-2)),\"\")","v":{"$error":"#N/A"}},{"$f":"IF(INDIRECT(\"c\" & (VLOOKUP(Rebalance!$D$59,$F$2:$G$48,2,FALSE)+ROW()-2))=Rebalance!$D$59,INDIRECT(\"a\" & (VLOOKUP(Rebalance!$D$59,$F$2:$G$48,2,FALSE)+ROW()-2)),\"\")","v":{"$error":"#N/A"}},{"$f":"IF(INDIRECT(\"c\" & (VLOOKUP(Rebalance!$D$60,$F$2:$G$48,2,FALSE)+ROW()-2))=Rebalance!$D$60,INDIRECT(\"a\" & (VLOOKUP(Rebalance!$D$60,$F$2:$G$48,2,FALSE)+ROW()-2)),\"\")","v":{"$error":"#N/A"}},{"$f":"IF(INDIRECT(\"c\" & (VLOOKUP(Rebalance!$D$61,$F$2:$G$48,2,FALSE)+ROW()-2))=Rebalance!$D$61,INDIRECT(\"a\" & (VLOOKUP(Rebalance!$D$61,$F$2:$G$48,2,FALSE)+ROW()-2)),\"\")","v":{"$error":"#N/A"}},{"$f":"IF(INDIRECT(\"c\" & (VLOOKUP(Rebalance!$D$62,$F$2:$G$48,2,FALSE)+ROW()-2))=Rebalance!$D$62,INDIRECT(\"a\" & (VLOOKUP(Rebalance!$D$62,$F$2:$G$48,2,FALSE)+ROW()-2)),\"\")","v":{"$error":"#N/A"}},{"$f":"IF(INDIRECT(\"c\" & (VLOOKUP(Rebalance!$D$63,$F$2:$G$48,2,FALSE)+ROW()-2))=Rebalance!$D$63,INDIRECT(\"a\" & (VLOOKUP(Rebalance!$D$63,$F$2:$G$48,2,FALSE)+ROW()-2)),\"\")","v":{"$error":"#N/A"}},{"$f":"IF(INDIRECT(\"c\" & (VLOOKUP(Rebalance!$D$64,$F$2:$G$48,2,FALSE)+ROW()-2))=Rebalance!$D$64,INDIRECT(\"a\" & (VLOOKUP(Rebalance!$D$64,$F$2:$G$48,2,FALSE)+ROW()-2)),\"\")","v":{"$error":"#N/A"}},{"$f":"IF(INDIRECT(\"c\" & (VLOOKUP(Rebalance!$D$65,$F$2:$G$48,2,FALSE)+ROW()-2))=Rebalance!$D$65,INDIRECT(\"a\" & (VLOOKUP(Rebalance!$D$65,$F$2:$G$48,2,FALSE)+ROW()-2)),\"\")","v":{"$error":"#N/A"}},{"$f":"IF(INDIRECT(\"c\" & (VLOOKUP(Rebalance!$D$66,$F$2:$G$48,2,FALSE)+ROW()-2))=Rebalance!$D$66,INDIRECT(\"a\" & (VLOOKUP(Rebalance!$D$66,$F$2:$G$48,2,FALSE)+ROW()-2)),\"\")","v":{"$error":"#N/A"}}]
["1NVEST ALBI (NON TR) Index Tracker Fund B1","SITB1","STANLIB Collective Investments",{"$f":"ROW()","v":15},null,"Investec Fund Managers",{"$f":"VLOOKUP(F15,$C$2:$D$599,2,FALSE)","v":258},{"$f":"IF(INDIRECT(\"c\" & (VLOOKUP(Rebalance!$D$26,$F$2:$G$48,2,FALSE)+ROW()-2))=Rebalance!$D$26,INDIRECT(\"a\" & (VLOOKUP(Rebalance!$D$26,$F$2:$G$48,2,FALSE)+ROW()-2)),\"\")","v":{"$error":"#N/A"}},{"$f":"IF(INDIRECT(\"c\" & (VLOOKUP(Rebalance!$D$27,$F$2:$G$48,2,FALSE)+ROW()-2))=Rebalance!$D$27,INDIRECT(\"a\" & (VLOOKUP(Rebalance!$D$27,$F$2:$G$48,2,FALSE)+ROW()-2)),\"\")","v":{"$error":"#N/A"}},{"$f":"IF(INDIRECT(\"c\" & (VLOOKUP(Rebalance!$D$28,$F$2:$G$48,2,FALSE)+ROW()-2))=Rebalance!$D$28,INDIRECT(\"a\" & (VLOOKUP(Rebalance!$D$28,$F$2:$G$48,2,FALSE)+ROW()-2)),\"\")","v":{"$error":"#N/A"}},{"$f":"IF(INDIRECT(\"c\" & (VLOOKUP(Rebalance!$D$29,$F$2:$G$48,2,FALSE)+ROW()-2))=Rebalance!$D$29,INDIRECT(\"a\" & (VLOOKUP(Rebalance!$D$29,$F$2:$G$48,2,FALSE)+ROW()-2)),\"\")","v":{"$error":"#N/A"}},{"$f":"IF(INDIRECT(\"c\" & (VLOOKUP(Rebalance!$D$30,$F$2:$G$48,2,FALSE)+ROW()-2))=Rebalance!$D$30,INDIRECT(\"a\" & (VLOOKUP(Rebalance!$D$30,$F$2:$G$48,2,FALSE)+ROW()-2)),\"\")","v":{"$error":"#N/A"}},{"$f":"IF(INDIRECT(\"c\" & (VLOOKUP(Rebalance!$D$31,$F$2:$G$48,2,FALSE)+ROW()-2))=Rebalance!$D$31,INDIRECT(\"a\" & (VLOOKUP(Rebalance!$D$31,$F$2:$G$48,2,FALSE)+ROW()-2)),\"\")","v":{"$error":"#N/A"}},{"$f":"IF(INDIRECT(\"c\" & (VLOOKUP(Rebalance!$D$32,$F$2:$G$48,2,FALSE)+ROW()-2))=Rebalance!$D$32,INDIRECT(\"a\" & (VLOOKUP(Rebalance!$D$32,$F$2:$G$48,2,FALSE)+ROW()-2)),\"\")","v":{"$error":"#N/A"}},{"$f":"IF(INDIRECT(\"c\" & (VLOOKUP(Rebalance!$D$33,$F$2:$G$48,2,FALSE)+ROW()-2))=Rebalance!$D$33,INDIRECT(\"a\" & (VLOOKUP(Rebalance!$D$33,$F$2:$G$48,2,FALSE)+ROW()-2)),\"\")","v":{"$error":"#N/A"}},{"$f":"IF(INDIRECT(\"c\" & (VLOOKUP(Rebalance!$D$34,$F$2:$G$48,2,FALSE)+ROW()-2))=Rebalance!$D$34,INDIRECT(\"a\" & (VLOOKUP(Rebalance!$D$34,$F$2:$G$48,2,FALSE)+ROW()-2)),\"\")","v":{"$error":"#N/A"}},{"$f":"IF(INDIRECT(\"c\" & (VLOOKUP(Rebalance!$D$35,$F$2:$G$48,2,FALSE)+ROW()-2))=Rebalance!$D$35,INDIRECT(\"a\" & (VLOOKUP(Rebalance!$D$35,$F$2:$G$48,2,FALSE)+ROW()-2)),\"\")","v":{"$error":"#N/A"}},{"$f":"IF(INDIRECT(\"c\" & (VLOOKUP(Rebalance!$D$36,$F$2:$G$48,2,FALSE)+ROW()-2))=Rebalance!$D$36,INDIRECT(\"a\" & (VLOOKUP(Rebalance!$D$36,$F$2:$G$48,2,FALSE)+ROW()-2)),\"\")","v":{"$error":"#N/A"}},{"$f":"IF(INDIRECT(\"c\" & (VLOOKUP(Rebalance!$D$37,$F$2:$G$48,2,FALSE)+ROW()-2))=Rebalance!$D$37,INDIRECT(\"a\" & (VLOOKUP(Rebalance!$D$37,$F$2:$G$48,2,FALSE)+ROW()-2)),\"\")","v":{"$error":"#N/A"}},{"$f":"IF(INDIRECT(\"c\" & (VLOOKUP(Rebalance!$D$38,$F$2:$G$48,2,FALSE)+ROW()-2))=Rebalance!$D$38,INDIRECT(\"a\" & (VLOOKUP(Rebalance!$D$38,$F$2:$G$48,2,FALSE)+ROW()-2)),\"\")","v":{"$error":"#N/A"}},{"$f":"IF(INDIRECT(\"c\" & (VLOOKUP(Rebalance!$D$39,$F$2:$G$48,2,FALSE)+ROW()-2))=Rebalance!$D$39,INDIRECT(\"a\" & (VLOOKUP(Rebalance!$D$39,$F$2:$G$48,2,FALSE)+ROW()-2)),\"\")","v":{"$error":"#N/A"}},{"$f":"IF(INDIRECT(\"c\" & (VLOOKUP(Rebalance!$D$40,$F$2:$G$48,2,FALSE)+ROW()-2))=Rebalance!$D$40,INDIRECT(\"a\" & (VLOOKUP(Rebalance!$D$40,$F$2:$G$48,2,FALSE)+ROW()-2)),\"\")","v":{"$error":"#N/A"}},{"$f":"IF(INDIRECT(\"c\" & (VLOOKUP(Rebalance!$D$52,$F$2:$G$48,2,FALSE)+ROW()-2))=Rebalance!$D$52,INDIRECT(\"a\" & (VLOOKUP(Rebalance!$D$52,$F$2:$G$48,2,FALSE)+ROW()-2)),\"\")","v":{"$error":"#N/A"}},{"$f":"IF(INDIRECT(\"c\" & (VLOOKUP(Rebalance!$D$53,$F$2:$G$48,2,FALSE)+ROW()-2))=Rebalance!$D$53,INDIRECT(\"a\" & (VLOOKUP(Rebalance!$D$53,$F$2:$G$48,2,FALSE)+ROW()-2)),\"\")","v":{"$error":"#N/A"}},{"$f":"IF(INDIRECT(\"c\" & (VLOOKUP(Rebalance!$D$54,$F$2:$G$48,2,FALSE)+ROW()-2))=Rebalance!$D$54,INDIRECT(\"a\" & (VLOOKUP(Rebalance!$D$54,$F$2:$G$48,2,FALSE)+ROW()-2)),\"\")","v":{"$error":"#N/A"}},{"$f":"IF(INDIRECT(\"c\" & (VLOOKUP(Rebalance!$D$55,$F$2:$G$48,2,FALSE)+ROW()-2))=Rebalance!$D$55,INDIRECT(\"a\" & (VLOOKUP(Rebalance!$D$55,$F$2:$G$48,2,FALSE)+ROW()-2)),\"\")","v":{"$error":"#N/A"}},{"$f":"IF(INDIRECT(\"c\" & (VLOOKUP(Rebalance!$D$56,$F$2:$G$48,2,FALSE)+ROW()-2))=Rebalance!$D$56,INDIRECT(\"a\" & (VLOOKUP(Rebalance!$D$56,$F$2:$G$48,2,FALSE)+ROW()-2)),\"\")","v":{"$error":"#N/A"}},{"$f":"IF(INDIRECT(\"c\" & (VLOOKUP(Rebalance!$D$57,$F$2:$G$48,2,FALSE)+ROW()-2))=Rebalance!$D$57,INDIRECT(\"a\" & (VLOOKUP(Rebalance!$D$57,$F$2:$G$48,2,FALSE)+ROW()-2)),\"\")","v":{"$error":"#N/A"}},{"$f":"IF(INDIRECT(\"c\" & (VLOOKUP(Rebalance!$D$58,$F$2:$G$48,2,FALSE)+ROW()-2))=Rebalance!$D$58,INDIRECT(\"a\" & (VLOOKUP(Rebalance!$D$58,$F$2:$G$48,2,FALSE)+ROW()-2)),\"\")","v":{"$error":"#N/A"}},{"$f":"IF(INDIRECT(\"c\" & (VLOOKUP(Rebalance!$D$59,$F$2:$G$48,2,FALSE)+ROW()-2))=Rebalance!$D$59,INDIRECT(\"a\" & (VLOOKUP(Rebalance!$D$59,$F$2:$G$48,2,FALSE)+ROW()-2)),\"\")","v":{"$error":"#N/A"}},{"$f":"IF(INDIRECT(\"c\" & (VLOOKUP(Rebalance!$D$60,$F$2:$G$48,2,FALSE)+ROW()-2))=Rebalance!$D$60,INDIRECT(\"a\" & (VLOOKUP(Rebalance!$D$60,$F$2:$G$48,2,FALSE)+ROW()-2)),\"\")","v":{"$error":"#N/A"}},{"$f":"IF(INDIRECT(\"c\" & (VLOOKUP(Rebalance!$D$61,$F$2:$G$48,2,FALSE)+ROW()-2))=Rebalance!$D$61,INDIRECT(\"a\" & (VLOOKUP(Rebalance!$D$61,$F$2:$G$48,2,FALSE)+ROW()-2)),\"\")","v":{"$error":"#N/A"}},{"$f":"IF(INDIRECT(\"c\" & (VLOOKUP(Rebalance!$D$62,$F$2:$G$48,2,FALSE)+ROW()-2))=Rebalance!$D$62,INDIRECT(\"a\" & (VLOOKUP(Rebalance!$D$62,$F$2:$G$48,2,FALSE)+ROW()-2)),\"\")","v":{"$error":"#N/A"}},{"$f":"IF(INDIRECT(\"c\" & (VLOOKUP(Rebalance!$D$63,$F$2:$G$48,2,FALSE)+ROW()-2))=Rebalance!$D$63,INDIRECT(\"a\" & (VLOOKUP(Rebalance!$D$63,$F$2:$G$48,2,FALSE)+ROW()-2)),\"\")","v":{"$error":"#N/A"}},{"$f":"IF(INDIRECT(\"c\" & (VLOOKUP(Rebalance!$D$64,$F$2:$G$48,2,FALSE)+ROW()-2))=Rebalance!$D$64,INDIRECT(\"a\" & (VLOOKUP(Rebalance!$D$64,$F$2:$G$48,2,FALSE)+ROW()-2)),\"\")","v":{"$error":"#N/A"}},{"$f":"IF(INDIRECT(\"c\" & (VLOOKUP(Rebalance!$D$65,$F$2:$G$48,2,FALSE)+ROW()-2))=Rebalance!$D$65,INDIRECT(\"a\" & (VLOOKUP(Rebalance!$D$65,$F$2:$G$48,2,FALSE)+ROW()-2)),\"\")","v":{"$error":"#N/A"}},{"$f":"IF(INDIRECT(\"c\" & (VLOOKUP(Rebalance!$D$66,$F$2:$G$48,2,FALSE)+ROW()-2))=Rebalance!$D$66,INDIRECT(\"a\" & (VLOOKUP(Rebalance!$D$66,$F$2:$G$48,2,FALSE)+ROW()-2)),\"\")","v":{"$error":"#N/A"}}]
["1NVEST ALSI 40 Fund A","SLAFB1","STANLIB Collective Investments",{"$f":"ROW()","v":16},null,"IP Management Company (Pty) Ltd",{"$f":"VLOOKUP(F16,$C$2:$D$599,2,FALSE)","v":279},{"$f":"IF(INDIRECT(\"c\" & (VLOOKUP(Rebalance!$D$26,$F$2:$G$48,2,FALSE)+ROW()-2))=Rebalance!$D$26,INDIRECT(\"a\" & (VLOOKUP(Rebalance!$D$26,$F$2:$G$48,2,FALSE)+ROW()-2)),\"\")","v":{"$error":"#N/A"}},{"$f":"IF(INDIRECT(\"c\" & (VLOOKUP(Rebalance!$D$27,$F$2:$G$48,2,FALSE)+ROW()-2))=Rebalance!$D$27,INDIRECT(\"a\" & (VLOOKUP(Rebalance!$D$27,$F$2:$G$48,2,FALSE)+ROW()-2)),\"\")","v":{"$error":"#N/A"}},{"$f":"IF(INDIRECT(\"c\" & (VLOOKUP(Rebalance!$D$28,$F$2:$G$48,2,FALSE)+ROW()-2))=Rebalance!$D$28,INDIRECT(\"a\" & (VLOOKUP(Rebalance!$D$28,$F$2:$G$48,2,FALSE)+ROW()-2)),\"\")","v":{"$error":"#N/A"}},{"$f":"IF(INDIRECT(\"c\" & (VLOOKUP(Rebalance!$D$29,$F$2:$G$48,2,FALSE)+ROW()-2))=Rebalance!$D$29,INDIRECT(\"a\" & (VLOOKUP(Rebalance!$D$29,$F$2:$G$48,2,FALSE)+ROW()-2)),\"\")","v":{"$error":"#N/A"}},{"$f":"IF(INDIRECT(\"c\" & (VLOOKUP(Rebalance!$D$30,$F$2:$G$48,2,FALSE)+ROW()-2))=Rebalance!$D$30,INDIRECT(\"a\" & (VLOOKUP(Rebalance!$D$30,$F$2:$G$48,2,FALSE)+ROW()-2)),\"\")","v":{"$error":"#N/A"}},{"$f":"IF(INDIRECT(\"c\" & (VLOOKUP(Rebalance!$D$31,$F$2:$G$48,2,FALSE)+ROW()-2))=Rebalance!$D$31,INDIRECT(\"a\" & (VLOOKUP(Rebalance!$D$31,$F$2:$G$48,2,FALSE)+ROW()-2)),\"\")","v":{"$error":"#N/A"}},{"$f":"IF(INDIRECT(\"c\" & (VLOOKUP(Rebalance!$D$32,$F$2:$G$48,2,FALSE)+ROW()-2))=Rebalance!$D$32,INDIRECT(\"a\" & (VLOOKUP(Rebalance!$D$32,$F$2:$G$48,2,FALSE)+ROW()-2)),\"\")","v":{"$error":"#N/A"}},{"$f":"IF(INDIRECT(\"c\" & (VLOOKUP(Rebalance!$D$33,$F$2:$G$48,2,FALSE)+ROW()-2))=Rebalance!$D$33,INDIRECT(\"a\" & (VLOOKUP(Rebalance!$D$33,$F$2:$G$48,2,FALSE)+ROW()-2)),\"\")","v":{"$error":"#N/A"}},{"$f":"IF(INDIRECT(\"c\" & (VLOOKUP(Rebalance!$D$34,$F$2:$G$48,2,FALSE)+ROW()-2))=Rebalance!$D$34,INDIRECT(\"a\" & (VLOOKUP(Rebalance!$D$34,$F$2:$G$48,2,FALSE)+ROW()-2)),\"\")","v":{"$error":"#N/A"}},{"$f":"IF(INDIRECT(\"c\" & (VLOOKUP(Rebalance!$D$35,$F$2:$G$48,2,FALSE)+ROW()-2))=Rebalance!$D$35,INDIRECT(\"a\" & (VLOOKUP(Rebalance!$D$35,$F$2:$G$48,2,FALSE)+ROW()-2)),\"\")","v":{"$error":"#N/A"}},{"$f":"IF(INDIRECT(\"c\" & (VLOOKUP(Rebalance!$D$36,$F$2:$G$48,2,FALSE)+ROW()-2))=Rebalance!$D$36,INDIRECT(\"a\" & (VLOOKUP(Rebalance!$D$36,$F$2:$G$48,2,FALSE)+ROW()-2)),\"\")","v":{"$error":"#N/A"}},{"$f":"IF(INDIRECT(\"c\" & (VLOOKUP(Rebalance!$D$37,$F$2:$G$48,2,FALSE)+ROW()-2))=Rebalance!$D$37,INDIRECT(\"a\" & (VLOOKUP(Rebalance!$D$37,$F$2:$G$48,2,FALSE)+ROW()-2)),\"\")","v":{"$error":"#N/A"}},{"$f":"IF(INDIRECT(\"c\" & (VLOOKUP(Rebalance!$D$38,$F$2:$G$48,2,FALSE)+ROW()-2))=Rebalance!$D$38,INDIRECT(\"a\" & (VLOOKUP(Rebalance!$D$38,$F$2:$G$48,2,FALSE)+ROW()-2)),\"\")","v":{"$error":"#N/A"}},{"$f":"IF(INDIRECT(\"c\" & (VLOOKUP(Rebalance!$D$39,$F$2:$G$48,2,FALSE)+ROW()-2))=Rebalance!$D$39,INDIRECT(\"a\" & (VLOOKUP(Rebalance!$D$39,$F$2:$G$48,2,FALSE)+ROW()-2)),\"\")","v":{"$error":"#N/A"}},{"$f":"IF(INDIRECT(\"c\" & (VLOOKUP(Rebalance!$D$40,$F$2:$G$48,2,FALSE)+ROW()-2))=Rebalance!$D$40,INDIRECT(\"a\" & (VLOOKUP(Rebalance!$D$40,$F$2:$G$48,2,FALSE)+ROW()-2)),\"\")","v":{"$error":"#N/A"}},{"$f":"IF(INDIRECT(\"c\" & (VLOOKUP(Rebalance!$D$52,$F$2:$G$48,2,FALSE)+ROW()-2))=Rebalance!$D$52,INDIRECT(\"a\" & (VLOOKUP(Rebalance!$D$52,$F$2:$G$48,2,FALSE)+ROW()-2)),\"\")","v":{"$error":"#N/A"}},{"$f":"IF(INDIRECT(\"c\" & (VLOOKUP(Rebalance!$D$53,$F$2:$G$48,2,FALSE)+ROW()-2))=Rebalance!$D$53,INDIRECT(\"a\" & (VLOOKUP(Rebalance!$D$53,$F$2:$G$48,2,FALSE)+ROW()-2)),\"\")","v":{"$error":"#N/A"}},{"$f":"IF(INDIRECT(\"c\" & (VLOOKUP(Rebalance!$D$54,$F$2:$G$48,2,FALSE)+ROW()-2))=Rebalance!$D$54,INDIRECT(\"a\" & (VLOOKUP(Rebalance!$D$54,$F$2:$G$48,2,FALSE)+ROW()-2)),\"\")","v":{"$error":"#N/A"}},{"$f":"IF(INDIRECT(\"c\" & (VLOOKUP(Rebalance!$D$55,$F$2:$G$48,2,FALSE)+ROW()-2))=Rebalance!$D$55,INDIRECT(\"a\" & (VLOOKUP(Rebalance!$D$55,$F$2:$G$48,2,FALSE)+ROW()-2)),\"\")","v":{"$error":"#N/A"}},{"$f":"IF(INDIRECT(\"c\" & (VLOOKUP(Rebalance!$D$56,$F$2:$G$48,2,FALSE)+ROW()-2))=Rebalance!$D$56,INDIRECT(\"a\" & (VLOOKUP(Rebalance!$D$56,$F$2:$G$48,2,FALSE)+ROW()-2)),\"\")","v":{"$error":"#N/A"}},{"$f":"IF(INDIRECT(\"c\" & (VLOOKUP(Rebalance!$D$57,$F$2:$G$48,2,FALSE)+ROW()-2))=Rebalance!$D$57,INDIRECT(\"a\" & (VLOOKUP(Rebalance!$D$57,$F$2:$G$48,2,FALSE)+ROW()-2)),\"\")","v":{"$error":"#N/A"}},{"$f":"IF(INDIRECT(\"c\" & (VLOOKUP(Rebalance!$D$58,$F$2:$G$48,2,FALSE)+ROW()-2))=Rebalance!$D$58,INDIRECT(\"a\" & (VLOOKUP(Rebalance!$D$58,$F$2:$G$48,2,FALSE)+ROW()-2)),\"\")","v":{"$error":"#N/A"}},{"$f":"IF(INDIRECT(\"c\" & (VLOOKUP(Rebalance!$D$59,$F$2:$G$48,2,FALSE)+ROW()-2))=Rebalance!$D$59,INDIRECT(\"a\" & (VLOOKUP(Rebalance!$D$59,$F$2:$G$48,2,FALSE)+ROW()-2)),\"\")","v":{"$error":"#N/A"}},{"$f":"IF(INDIRECT(\"c\" & (VLOOKUP(Rebalance!$D$60,$F$2:$G$48,2,FALSE)+ROW()-2))=Rebalance!$D$60,INDIRECT(\"a\" & (VLOOKUP(Rebalance!$D$60,$F$2:$G$48,2,FALSE)+ROW()-2)),\"\")","v":{"$error":"#N/A"}},{"$f":"IF(INDIRECT(\"c\" & (VLOOKUP(Rebalance!$D$61,$F$2:$G$48,2,FALSE)+ROW()-2))=Rebalance!$D$61,INDIRECT(\"a\" & (VLOOKUP(Rebalance!$D$61,$F$2:$G$48,2,FALSE)+ROW()-2)),\"\")","v":{"$error":"#N/A"}},{"$f":"IF(INDIRECT(\"c\" & (VLOOKUP(Rebalance!$D$62,$F$2:$G$48,2,FALSE)+ROW()-2))=Rebalance!$D$62,INDIRECT(\"a\" & (VLOOKUP(Rebalance!$D$62,$F$2:$G$48,2,FALSE)+ROW()-2)),\"\")","v":{"$error":"#N/A"}},{"$f":"IF(INDIRECT(\"c\" & (VLOOKUP(Rebalance!$D$63,$F$2:$G$48,2,FALSE)+ROW()-2))=Rebalance!$D$63,INDIRECT(\"a\" & (VLOOKUP(Rebalance!$D$63,$F$2:$G$48,2,FALSE)+ROW()-2)),\"\")","v":{"$error":"#N/A"}},{"$f":"IF(INDIRECT(\"c\" & (VLOOKUP(Rebalance!$D$64,$F$2:$G$48,2,FALSE)+ROW()-2))=Rebalance!$D$64,INDIRECT(\"a\" & (VLOOKUP(Rebalance!$D$64,$F$2:$G$48,2,FALSE)+ROW()-2)),\"\")","v":{"$error":"#N/A"}},{"$f":"IF(INDIRECT(\"c\" & (VLOOKUP(Rebalance!$D$65,$F$2:$G$48,2,FALSE)+ROW()-2))=Rebalance!$D$65,INDIRECT(\"a\" & (VLOOKUP(Rebalance!$D$65,$F$2:$G$48,2,FALSE)+ROW()-2)),\"\")","v":{"$error":"#N/A"}},{"$f":"IF(INDIRECT(\"c\" & (VLOOKUP(Rebalance!$D$66,$F$2:$G$48,2,FALSE)+ROW()-2))=Rebalance!$D$66,INDIRECT(\"a\" & (VLOOKUP(Rebalance!$D$66,$F$2:$G$48,2,FALSE)+ROW()-2)),\"\")","v":{"$error":"#N/A"}}]
["1NVEST ALSI 40 Fund B1","SLAFB1","STANLIB Collective Investments",{"$f":"ROW()","v":17},null,"Kagiso Collective Investments Ltd",{"$f":"VLOOKUP(F17,$C$2:$D$599,2,FALSE)","v":296},{"$f":"IF(INDIRECT(\"c\" & (VLOOKUP(Rebalance!$D$26,$F$2:$G$48,2,FALSE)+ROW()-2))=Rebalance!$D$26,INDIRECT(\"a\" & (VLOOKUP(Rebalance!$D$26,$F$2:$G$48,2,FALSE)+ROW()-2)),\"\")","v":{"$error":"#N/A"}},{"$f":"IF(INDIRECT(\"c\" & (VLOOKUP(Rebalance!$D$27,$F$2:$G$48,2,FALSE)+ROW()-2))=Rebalance!$D$27,INDIRECT(\"a\" & (VLOOKUP(Rebalance!$D$27,$F$2:$G$48,2,FALSE)+ROW()-2)),\"\")","v":{"$error":"#N/A"}},{"$f":"IF(INDIRECT(\"c\" & (VLOOKUP(Rebalance!$D$28,$F$2:$G$48,2,FALSE)+ROW()-2))=Rebalance!$D$28,INDIRECT(\"a\" & (VLOOKUP(Rebalance!$D$28,$F$2:$G$48,2,FALSE)+ROW()-2)),\"\")","v":{"$error":"#N/A"}},{"$f":"IF(INDIRECT(\"c\" & (VLOOKUP(Rebalance!$D$29,$F$2:$G$48,2,FALSE)+ROW()-2))=Rebalance!$D$29,INDIRECT(\"a\" & (VLOOKUP(Rebalance!$D$29,$F$2:$G$48,2,FALSE)+ROW()-2)),\"\")","v":{"$error":"#N/A"}},{"$f":"IF(INDIRECT(\"c\" & (VLOOKUP(Rebalance!$D$30,$F$2:$G$48,2,FALSE)+ROW()-2))=Rebalance!$D$30,INDIRECT(\"a\" & (VLOOKUP(Rebalance!$D$30,$F$2:$G$48,2,FALSE)+ROW()-2)),\"\")","v":{"$error":"#N/A"}},{"$f":"IF(INDIRECT(\"c\" & (VLOOKUP(Rebalance!$D$31,$F$2:$G$48,2,FALSE)+ROW()-2))=Rebalance!$D$31,INDIRECT(\"a\" & (VLOOKUP(Rebalance!$D$31,$F$2:$G$48,2,FALSE)+ROW()-2)),\"\")","v":{"$error":"#N/A"}},{"$f":"IF(INDIRECT(\"c\" & (VLOOKUP(Rebalance!$D$32,$F$2:$G$48,2,FALSE)+ROW()-2))=Rebalance!$D$32,INDIRECT(\"a\" & (VLOOKUP(Rebalance!$D$32,$F$2:$G$48,2,FALSE)+ROW()-2)),\"\")","v":{"$error":"#N/A"}},{"$f":"IF(INDIRECT(\"c\" & (VLOOKUP(Rebalance!$D$33,$F$2:$G$48,2,FALSE)+ROW()-2))=Rebalance!$D$33,INDIRECT(\"a\" & (VLOOKUP(Rebalance!$D$33,$F$2:$G$48,2,FALSE)+ROW()-2)),\"\")","v":{"$error":"#N/A"}},{"$f":"IF(INDIRECT(\"c\" & (VLOOKUP(Rebalance!$D$34,$F$2:$G$48,2,FALSE)+ROW()-2))=Rebalance!$D$34,INDIRECT(\"a\" & (VLOOKUP(Rebalance!$D$34,$F$2:$G$48,2,FALSE)+ROW()-2)),\"\")","v":{"$error":"#N/A"}},{"$f":"IF(INDIRECT(\"c\" & (VLOOKUP(Rebalance!$D$35,$F$2:$G$48,2,FALSE)+ROW()-2))=Rebalance!$D$35,INDIRECT(\"a\" & (VLOOKUP(Rebalance!$D$35,$F$2:$G$48,2,FALSE)+ROW()-2)),\"\")","v":{"$error":"#N/A"}},{"$f":"IF(INDIRECT(\"c\" & (VLOOKUP(Rebalance!$D$36,$F$2:$G$48,2,FALSE)+ROW()-2))=Rebalance!$D$36,INDIRECT(\"a\" & (VLOOKUP(Rebalance!$D$36,$F$2:$G$48,2,FALSE)+ROW()-2)),\"\")","v":{"$error":"#N/A"}},{"$f":"IF(INDIRECT(\"c\" & (VLOOKUP(Rebalance!$D$37,$F$2:$G$48,2,FALSE)+ROW()-2))=Rebalance!$D$37,INDIRECT(\"a\" & (VLOOKUP(Rebalance!$D$37,$F$2:$G$48,2,FALSE)+ROW()-2)),\"\")","v":{"$error":"#N/A"}},{"$f":"IF(INDIRECT(\"c\" & (VLOOKUP(Rebalance!$D$38,$F$2:$G$48,2,FALSE)+ROW()-2))=Rebalance!$D$38,INDIRECT(\"a\" & (VLOOKUP(Rebalance!$D$38,$F$2:$G$48,2,FALSE)+ROW()-2)),\"\")","v":{"$error":"#N/A"}},{"$f":"IF(INDIRECT(\"c\" & (VLOOKUP(Rebalance!$D$39,$F$2:$G$48,2,FALSE)+ROW()-2))=Rebalance!$D$39,INDIRECT(\"a\" & (VLOOKUP(Rebalance!$D$39,$F$2:$G$48,2,FALSE)+ROW()-2)),\"\")","v":{"$error":"#N/A"}},{"$f":"IF(INDIRECT(\"c\" & (VLOOKUP(Rebalance!$D$40,$F$2:$G$48,2,FALSE)+ROW()-2))=Rebalance!$D$40,INDIRECT(\"a\" & (VLOOKUP(Rebalance!$D$40,$F$2:$G$48,2,FALSE)+ROW()-2)),\"\")","v":{"$error":"#N/A"}},{"$f":"IF(INDIRECT(\"c\" & (VLOOKUP(Rebalance!$D$52,$F$2:$G$48,2,FALSE)+ROW()-2))=Rebalance!$D$52,INDIRECT(\"a\" & (VLOOKUP(Rebalance!$D$52,$F$2:$G$48,2,FALSE)+ROW()-2)),\"\")","v":{"$error":"#N/A"}},{"$f":"IF(INDIRECT(\"c\" & (VLOOKUP(Rebalance!$D$53,$F$2:$G$48,2,FALSE)+ROW()-2))=Rebalance!$D$53,INDIRECT(\"a\" & (VLOOKUP(Rebalance!$D$53,$F$2:$G$48,2,FALSE)+ROW()-2)),\"\")","v":{"$error":"#N/A"}},{"$f":"IF(INDIRECT(\"c\" & (VLOOKUP(Rebalance!$D$54,$F$2:$G$48,2,FALSE)+ROW()-2))=Rebalance!$D$54,INDIRECT(\"a\" & (VLOOKUP(Rebalance!$D$54,$F$2:$G$48,2,FALSE)+ROW()-2)),\"\")","v":{"$error":"#N/A"}},{"$f":"IF(INDIRECT(\"c\" & (VLOOKUP(Rebalance!$D$55,$F$2:$G$48,2,FALSE)+ROW()-2))=Rebalance!$D$55,INDIRECT(\"a\" & (VLOOKUP(Rebalance!$D$55,$F$2:$G$48,2,FALSE)+ROW()-2)),\"\")","v":{"$error":"#N/A"}},{"$f":"IF(INDIRECT(\"c\" & (VLOOKUP(Rebalance!$D$56,$F$2:$G$48,2,FALSE)+ROW()-2))=Rebalance!$D$56,INDIRECT(\"a\" & (VLOOKUP(Rebalance!$D$56,$F$2:$G$48,2,FALSE)+ROW()-2)),\"\")","v":{"$error":"#N/A"}},{"$f":"IF(INDIRECT(\"c\" & (VLOOKUP(Rebalance!$D$57,$F$2:$G$48,2,FALSE)+ROW()-2))=Rebalance!$D$57,INDIRECT(\"a\" & (VLOOKUP(Rebalance!$D$57,$F$2:$G$48,2,FALSE)+ROW()-2)),\"\")","v":{"$error":"#N/A"}},{"$f":"IF(INDIRECT(\"c\" & (VLOOKUP(Rebalance!$D$58,$F$2:$G$48,2,FALSE)+ROW()-2))=Rebalance!$D$58,INDIRECT(\"a\" & (VLOOKUP(Rebalance!$D$58,$F$2:$G$48,2,FALSE)+ROW()-2)),\"\")","v":{"$error":"#N/A"}},{"$f":"IF(INDIRECT(\"c\" & (VLOOKUP(Rebalance!$D$59,$F$2:$G$48,2,FALSE)+ROW()-2))=Rebalance!$D$59,INDIRECT(\"a\" & (VLOOKUP(Rebalance!$D$59,$F$2:$G$48,2,FALSE)+ROW()-2)),\"\")","v":{"$error":"#N/A"}},{"$f":"IF(INDIRECT(\"c\" & (VLOOKUP(Rebalance!$D$60,$F$2:$G$48,2,FALSE)+ROW()-2))=Rebalance!$D$60,INDIRECT(\"a\" & (VLOOKUP(Rebalance!$D$60,$F$2:$G$48,2,FALSE)+ROW()-2)),\"\")","v":{"$error":"#N/A"}},{"$f":"IF(INDIRECT(\"c\" & (VLOOKUP(Rebalance!$D$61,$F$2:$G$48,2,FALSE)+ROW()-2))=Rebalance!$D$61,INDIRECT(\"a\" & (VLOOKUP(Rebalance!$D$61,$F$2:$G$48,2,FALSE)+ROW()-2)),\"\")","v":{"$error":"#N/A"}},{"$f":"IF(INDIRECT(\"c\" & (VLOOKUP(Rebalance!$D$62,$F$2:$G$48,2,FALSE)+ROW()-2))=Rebalance!$D$62,INDIRECT(\"a\" & (VLOOKUP(Rebalance!$D$62,$F$2:$G$48,2,FALSE)+ROW()-2)),\"\")","v":{"$error":"#N/A"}},{"$f":"IF(INDIRECT(\"c\" & (VLOOKUP(Rebalance!$D$63,$F$2:$G$48,2,FALSE)+ROW()-2))=Rebalance!$D$63,INDIRECT(\"a\" & (VLOOKUP(Rebalance!$D$63,$F$2:$G$48,2,FALSE)+ROW()-2)),\"\")","v":{"$error":"#N/A"}},{"$f":"IF(INDIRECT(\"c\" & (VLOOKUP(Rebalance!$D$64,$F$2:$G$48,2,FALSE)+ROW()-2))=Rebalance!$D$64,INDIRECT(\"a\" & (VLOOKUP(Rebalance!$D$64,$F$2:$G$48,2,FALSE)+ROW()-2)),\"\")","v":{"$error":"#N/A"}},{"$f":"IF(INDIRECT(\"c\" & (VLOOKUP(Rebalance!$D$65,$F$2:$G$48,2,FALSE)+ROW()-2))=Rebalance!$D$65,INDIRECT(\"a\" & (VLOOKUP(Rebalance!$D$65,$F$2:$G$48,2,FALSE)+ROW()-2)),\"\")","v":{"$error":"#N/A"}},{"$f":"IF(INDIRECT(\"c\" & (VLOOKUP(Rebalance!$D$66,$F$2:$G$48,2,FALSE)+ROW()-2))=Rebalance!$D$66,INDIRECT(\"a\" & (VLOOKUP(Rebalance!$D$66,$F$2:$G$48,2,FALSE)+ROW()-2)),\"\")","v":{"$error":"#N/A"}}]
["1NVEST Capped Property Index Tracker Fund B1","SCPB1","STANLIB Collective Investments",{"$f":"ROW()","v":18},null,"LibertyGroup",{"$f":"VLOOKUP(F18,$C$2:$D$599,2,FALSE)","v":302},{"$f":"IF(INDIRECT(\"c\" & (VLOOKUP(Rebalance!$D$26,$F$2:$G$48,2,FALSE)+ROW()-2))=Rebalance!$D$26,INDIRECT(\"a\" & (VLOOKUP(Rebalance!$D$26,$F$2:$G$48,2,FALSE)+ROW()-2)),\"\")","v":{"$error":"#N/A"}},{"$f":"IF(INDIRECT(\"c\" & (VLOOKUP(Rebalance!$D$27,$F$2:$G$48,2,FALSE)+ROW()-2))=Rebalance!$D$27,INDIRECT(\"a\" & (VLOOKUP(Rebalance!$D$27,$F$2:$G$48,2,FALSE)+ROW()-2)),\"\")","v":{"$error":"#N/A"}},{"$f":"IF(INDIRECT(\"c\" & (VLOOKUP(Rebalance!$D$28,$F$2:$G$48,2,FALSE)+ROW()-2))=Rebalance!$D$28,INDIRECT(\"a\" & (VLOOKUP(Rebalance!$D$28,$F$2:$G$48,2,FALSE)+ROW()-2)),\"\")","v":{"$error":"#N/A"}},{"$f":"IF(INDIRECT(\"c\" & (VLOOKUP(Rebalance!$D$29,$F$2:$G$48,2,FALSE)+ROW()-2))=Rebalance!$D$29,INDIRECT(\"a\" & (VLOOKUP(Rebalance!$D$29,$F$2:$G$48,2,FALSE)+ROW()-2)),\"\")","v":{"$error":"#N/A"}},{"$f":"IF(INDIRECT(\"c\" & (VLOOKUP(Rebalance!$D$30,$F$2:$G$48,2,FALSE)+ROW()-2))=Rebalance!$D$30,INDIRECT(\"a\" & (VLOOKUP(Rebalance!$D$30,$F$2:$G$48,2,FALSE)+ROW()-2)),\"\")","v":{"$error":"#N/A"}},{"$f":"IF(INDIRECT(\"c\" & (VLOOKUP(Rebalance!$D$31,$F$2:$G$48,2,FALSE)+ROW()-2))=Rebalance!$D$31,INDIRECT(\"a\" & (VLOOKUP(Rebalance!$D$31,$F$2:$G$48,2,FALSE)+ROW()-2)),\"\")","v":{"$error":"#N/A"}},{"$f":"IF(INDIRECT(\"c\" & (VLOOKUP(Rebalance!$D$32,$F$2:$G$48,2,FALSE)+ROW()-2))=Rebalance!$D$32,INDIRECT(\"a\" & (VLOOKUP(Rebalance!$D$32,$F$2:$G$48,2,FALSE)+ROW()-2)),\"\")","v":{"$error":"#N/A"}},{"$f":"IF(INDIRECT(\"c\" & (VLOOKUP(Rebalance!$D$33,$F$2:$G$48,2,FALSE)+ROW()-2))=Rebalance!$D$33,INDIRECT(\"a\" & (VLOOKUP(Rebalance!$D$33,$F$2:$G$48,2,FALSE)+ROW()-2)),\"\")","v":{"$error":"#N/A"}},{"$f":"IF(INDIRECT(\"c\" & (VLOOKUP(Rebalance!$D$34,$F$2:$G$48,2,FALSE)+ROW()-2))=Rebalance!$D$34,INDIRECT(\"a\" & (VLOOKUP(Rebalance!$D$34,$F$2:$G$48,2,FALSE)+ROW()-2)),\"\")","v":{"$error":"#N/A"}},{"$f":"IF(INDIRECT(\"c\" & (VLOOKUP(Rebalance!$D$35,$F$2:$G$48,2,FALSE)+ROW()-2))=Rebalance!$D$35,INDIRECT(\"a\" & (VLOOKUP(Rebalance!$D$35,$F$2:$G$48,2,FALSE)+ROW()-2)),\"\")","v":{"$error":"#N/A"}},{"$f":"IF(INDIRECT(\"c\" & (VLOOKUP(Rebalance!$D$36,$F$2:$G$48,2,FALSE)+ROW()-2))=Rebalance!$D$36,INDIRECT(\"a\" & (VLOOKUP(Rebalance!$D$36,$F$2:$G$48,2,FALSE)+ROW()-2)),\"\")","v":{"$error":"#N/A"}},{"$f":"IF(INDIRECT(\"c\" & (VLOOKUP(Rebalance!$D$37,$F$2:$G$48,2,FALSE)+ROW()-2))=Rebalance!$D$37,INDIRECT(\"a\" & (VLOOKUP(Rebalance!$D$37,$F$2:$G$48,2,FALSE)+ROW()-2)),\"\")","v":{"$error":"#N/A"}},{"$f":"IF(INDIRECT(\"c\" & (VLOOKUP(Rebalance!$D$38,$F$2:$G$48,2,FALSE)+ROW()-2))=Rebalance!$D$38,INDIRECT(\"a\" & (VLOOKUP(Rebalance!$D$38,$F$2:$G$48,2,FALSE)+ROW()-2)),\"\")","v":{"$error":"#N/A"}},{"$f":"IF(INDIRECT(\"c\" & (VLOOKUP(Rebalance!$D$39,$F$2:$G$48,2,FALSE)+ROW()-2))=Rebalance!$D$39,INDIRECT(\"a\" & (VLOOKUP(Rebalance!$D$39,$F$2:$G$48,2,FALSE)+ROW()-2)),\"\")","v":{"$error":"#N/A"}},{"$f":"IF(INDIRECT(\"c\" & (VLOOKUP(Rebalance!$D$40,$F$2:$G$48,2,FALSE)+ROW()-2))=Rebalance!$D$40,INDIRECT(\"a\" & (VLOOKUP(Rebalance!$D$40,$F$2:$G$48,2,FALSE)+ROW()-2)),\"\")","v":{"$error":"#N/A"}},{"$f":"IF(INDIRECT(\"c\" & (VLOOKUP(Rebalance!$D$52,$F$2:$G$48,2,FALSE)+ROW()-2))=Rebalance!$D$52,INDIRECT(\"a\" & (VLOOKUP(Rebalance!$D$52,$F$2:$G$48,2,FALSE)+ROW()-2)),\"\")","v":{"$error":"#N/A"}},{"$f":"IF(INDIRECT(\"c\" & (VLOOKUP(Rebalance!$D$53,$F$2:$G$48,2,FALSE)+ROW()-2))=Rebalance!$D$53,INDIRECT(\"a\" & (VLOOKUP(Rebalance!$D$53,$F$2:$G$48,2,FALSE)+ROW()-2)),\"\")","v":{"$error":"#N/A"}},{"$f":"IF(INDIRECT(\"c\" & (VLOOKUP(Rebalance!$D$54,$F$2:$G$48,2,FALSE)+ROW()-2))=Rebalance!$D$54,INDIRECT(\"a\" & (VLOOKUP(Rebalance!$D$54,$F$2:$G$48,2,FALSE)+ROW()-2)),\"\")","v":{"$error":"#N/A"}},{"$f":"IF(INDIRECT(\"c\" & (VLOOKUP(Rebalance!$D$55,$F$2:$G$48,2,FALSE)+ROW()-2))=Rebalance!$D$55,INDIRECT(\"a\" & (VLOOKUP(Rebalance!$D$55,$F$2:$G$48,2,FALSE)+ROW()-2)),\"\")","v":{"$error":"#N/A"}},{"$f":"IF(INDIRECT(\"c\" & (VLOOKUP(Rebalance!$D$56,$F$2:$G$48,2,FALSE)+ROW()-2))=Rebalance!$D$56,INDIRECT(\"a\" & (VLOOKUP(Rebalance!$D$56,$F$2:$G$48,2,FALSE)+ROW()-2)),\"\")","v":{"$error":"#N/A"}},{"$f":"IF(INDIRECT(\"c\" & (VLOOKUP(Rebalance!$D$57,$F$2:$G$48,2,FALSE)+ROW()-2))=Rebalance!$D$57,INDIRECT(\"a\" & (VLOOKUP(Rebalance!$D$57,$F$2:$G$48,2,FALSE)+ROW()-2)),\"\")","v":{"$error":"#N/A"}},{"$f":"IF(INDIRECT(\"c\" & (VLOOKUP(Rebalance!$D$58,$F$2:$G$48,2,FALSE)+ROW()-2))=Rebalance!$D$58,INDIRECT(\"a\" & (VLOOKUP(Rebalance!$D$58,$F$2:$G$48,2,FALSE)+ROW()-2)),\"\")","v":{"$error":"#N/A"}},{"$f":"IF(INDIRECT(\"c\" & (VLOOKUP(Rebalance!$D$59,$F$2:$G$48,2,FALSE)+ROW()-2))=Rebalance!$D$59,INDIRECT(\"a\" & (VLOOKUP(Rebalance!$D$59,$F$2:$G$48,2,FALSE)+ROW()-2)),\"\")","v":{"$error":"#N/A"}},{"$f":"IF(INDIRECT(\"c\" & (VLOOKUP(Rebalance!$D$60,$F$2:$G$48,2,FALSE)+ROW()-2))=Rebalance!$D$60,INDIRECT(\"a\" & (VLOOKUP(Rebalance!$D$60,$F$2:$G$48,2,FALSE)+ROW()-2)),\"\")","v":{"$error":"#N/A"}},{"$f":"IF(INDIRECT(\"c\" & (VLOOKUP(Rebalance!$D$61,$F$2:$G$48,2,FALSE)+ROW()-2))=Rebalance!$D$61,INDIRECT(\"a\" & (VLOOKUP(Rebalance!$D$61,$F$2:$G$48,2,FALSE)+ROW()-2)),\"\")","v":{"$error":"#N/A"}},{"$f":"IF(INDIRECT(\"c\" & (VLOOKUP(Rebalance!$D$62,$F$2:$G$48,2,FALSE)+ROW()-2))=Rebalance!$D$62,INDIRECT(\"a\" & (VLOOKUP(Rebalance!$D$62,$F$2:$G$48,2,FALSE)+ROW()-2)),\"\")","v":{"$error":"#N/A"}},{"$f":"IF(INDIRECT(\"c\" & (VLOOKUP(Rebalance!$D$63,$F$2:$G$48,2,FALSE)+ROW()-2))=Rebalance!$D$63,INDIRECT(\"a\" & (VLOOKUP(Rebalance!$D$63,$F$2:$G$48,2,FALSE)+ROW()-2)),\"\")","v":{"$error":"#N/A"}},{"$f":"IF(INDIRECT(\"c\" & (VLOOKUP(Rebalance!$D$64,$F$2:$G$48,2,FALSE)+ROW()-2))=Rebalance!$D$64,INDIRECT(\"a\" & (VLOOKUP(Rebalance!$D$64,$F$2:$G$48,2,FALSE)+ROW()-2)),\"\")","v":{"$error":"#N/A"}},{"$f":"IF(INDIRECT(\"c\" & (VLOOKUP(Rebalance!$D$65,$F$2:$G$48,2,FALSE)+ROW()-2))=Rebalance!$D$65,INDIRECT(\"a\" & (VLOOKUP(Rebalance!$D$65,$F$2:$G$48,2,FALSE)+ROW()-2)),\"\")","v":{"$error":"#N/A"}},{"$f":"IF(INDIRECT(\"c\" & (VLOOKUP(Rebalance!$D$66,$F$2:$G$48,2,FALSE)+ROW()-2))=Rebalance!$D$66,INDIRECT(\"a\" & (VLOOKUP(Rebalance!$D$66,$F$2:$G$48,2,FALSE)+ROW()-2)),\"\")","v":{"$error":"#N/A"}}]
["1NVEST Global Government Bond Index Feeder Fund B1","SLGIB1","STANLIB Collective Investments",{"$f":"ROW()","v":19},null,"Marriott Unit Trust Management Company Ltd",{"$f":"VLOOKUP(F19,$C$2:$D$599,2,FALSE)","v":304},{"$f":"IF(INDIRECT(\"c\" & (VLOOKUP(Rebalance!$D$26,$F$2:$G$48,2,FALSE)+ROW()-2))=Rebalance!$D$26,INDIRECT(\"a\" & (VLOOKUP(Rebalance!$D$26,$F$2:$G$48,2,FALSE)+ROW()-2)),\"\")","v":{"$error":"#N/A"}},{"$f":"IF(INDIRECT(\"c\" & (VLOOKUP(Rebalance!$D$27,$F$2:$G$48,2,FALSE)+ROW()-2))=Rebalance!$D$27,INDIRECT(\"a\" & (VLOOKUP(Rebalance!$D$27,$F$2:$G$48,2,FALSE)+ROW()-2)),\"\")","v":{"$error":"#N/A"}},{"$f":"IF(INDIRECT(\"c\" & (VLOOKUP(Rebalance!$D$28,$F$2:$G$48,2,FALSE)+ROW()-2))=Rebalance!$D$28,INDIRECT(\"a\" & (VLOOKUP(Rebalance!$D$28,$F$2:$G$48,2,FALSE)+ROW()-2)),\"\")","v":{"$error":"#N/A"}},{"$f":"IF(INDIRECT(\"c\" & (VLOOKUP(Rebalance!$D$29,$F$2:$G$48,2,FALSE)+ROW()-2))=Rebalance!$D$29,INDIRECT(\"a\" & (VLOOKUP(Rebalance!$D$29,$F$2:$G$48,2,FALSE)+ROW()-2)),\"\")","v":{"$error":"#N/A"}},{"$f":"IF(INDIRECT(\"c\" & (VLOOKUP(Rebalance!$D$30,$F$2:$G$48,2,FALSE)+ROW()-2))=Rebalance!$D$30,INDIRECT(\"a\" & (VLOOKUP(Rebalance!$D$30,$F$2:$G$48,2,FALSE)+ROW()-2)),\"\")","v":{"$error":"#N/A"}},{"$f":"IF(INDIRECT(\"c\" & (VLOOKUP(Rebalance!$D$31,$F$2:$G$48,2,FALSE)+ROW()-2))=Rebalance!$D$31,INDIRECT(\"a\" & (VLOOKUP(Rebalance!$D$31,$F$2:$G$48,2,FALSE)+ROW()-2)),\"\")","v":{"$error":"#N/A"}},{"$f":"IF(INDIRECT(\"c\" & (VLOOKUP(Rebalance!$D$32,$F$2:$G$48,2,FALSE)+ROW()-2))=Rebalance!$D$32,INDIRECT(\"a\" & (VLOOKUP(Rebalance!$D$32,$F$2:$G$48,2,FALSE)+ROW()-2)),\"\")","v":{"$error":"#N/A"}},{"$f":"IF(INDIRECT(\"c\" & (VLOOKUP(Rebalance!$D$33,$F$2:$G$48,2,FALSE)+ROW()-2))=Rebalance!$D$33,INDIRECT(\"a\" & (VLOOKUP(Rebalance!$D$33,$F$2:$G$48,2,FALSE)+ROW()-2)),\"\")","v":{"$error":"#N/A"}},{"$f":"IF(INDIRECT(\"c\" & (VLOOKUP(Rebalance!$D$34,$F$2:$G$48,2,FALSE)+ROW()-2))=Rebalance!$D$34,INDIRECT(\"a\" & (VLOOKUP(Rebalance!$D$34,$F$2:$G$48,2,FALSE)+ROW()-2)),\"\")","v":{"$error":"#N/A"}},{"$f":"IF(INDIRECT(\"c\" & (VLOOKUP(Rebalance!$D$35,$F$2:$G$48,2,FALSE)+ROW()-2))=Rebalance!$D$35,INDIRECT(\"a\" & (VLOOKUP(Rebalance!$D$35,$F$2:$G$48,2,FALSE)+ROW()-2)),\"\")","v":{"$error":"#N/A"}},{"$f":"IF(INDIRECT(\"c\" & (VLOOKUP(Rebalance!$D$36,$F$2:$G$48,2,FALSE)+ROW()-2))=Rebalance!$D$36,INDIRECT(\"a\" & (VLOOKUP(Rebalance!$D$36,$F$2:$G$48,2,FALSE)+ROW()-2)),\"\")","v":{"$error":"#N/A"}},{"$f":"IF(INDIRECT(\"c\" & (VLOOKUP(Rebalance!$D$37,$F$2:$G$48,2,FALSE)+ROW()-2))=Rebalance!$D$37,INDIRECT(\"a\" & (VLOOKUP(Rebalance!$D$37,$F$2:$G$48,2,FALSE)+ROW()-2)),\"\")","v":{"$error":"#N/A"}},{"$f":"IF(INDIRECT(\"c\" & (VLOOKUP(Rebalance!$D$38,$F$2:$G$48,2,FALSE)+ROW()-2))=Rebalance!$D$38,INDIRECT(\"a\" & (VLOOKUP(Rebalance!$D$38,$F$2:$G$48,2,FALSE)+ROW()-2)),\"\")","v":{"$error":"#N/A"}},{"$f":"IF(INDIRECT(\"c\" & (VLOOKUP(Rebalance!$D$39,$F$2:$G$48,2,FALSE)+ROW()-2))=Rebalance!$D$39,INDIRECT(\"a\" & (VLOOKUP(Rebalance!$D$39,$F$2:$G$48,2,FALSE)+ROW()-2)),\"\")","v":{"$error":"#N/A"}},{"$f":"IF(INDIRECT(\"c\" & (VLOOKUP(Rebalance!$D$40,$F$2:$G$48,2,FALSE)+ROW()-2))=Rebalance!$D$40,INDIRECT(\"a\" & (VLOOKUP(Rebalance!$D$40,$F$2:$G$48,2,FALSE)+ROW()-2)),\"\")","v":{"$error":"#N/A"}},{"$f":"IF(INDIRECT(\"c\" & (VLOOKUP(Rebalance!$D$52,$F$2:$G$48,2,FALSE)+ROW()-2))=Rebalance!$D$52,INDIRECT(\"a\" & (VLOOKUP(Rebalance!$D$52,$F$2:$G$48,2,FALSE)+ROW()-2)),\"\")","v":{"$error":"#N/A"}},{"$f":"IF(INDIRECT(\"c\" & (VLOOKUP(Rebalance!$D$53,$F$2:$G$48,2,FALSE)+ROW()-2))=Rebalance!$D$53,INDIRECT(\"a\" & (VLOOKUP(Rebalance!$D$53,$F$2:$G$48,2,FALSE)+ROW()-2)),\"\")","v":{"$error":"#N/A"}},{"$f":"IF(INDIRECT(\"c\" & (VLOOKUP(Rebalance!$D$54,$F$2:$G$48,2,FALSE)+ROW()-2))=Rebalance!$D$54,INDIRECT(\"a\" & (VLOOKUP(Rebalance!$D$54,$F$2:$G$48,2,FALSE)+ROW()-2)),\"\")","v":{"$error":"#N/A"}},{"$f":"IF(INDIRECT(\"c\" & (VLOOKUP(Rebalance!$D$55,$F$2:$G$48,2,FALSE)+ROW()-2))=Rebalance!$D$55,INDIRECT(\"a\" & (VLOOKUP(Rebalance!$D$55,$F$2:$G$48,2,FALSE)+ROW()-2)),\"\")","v":{"$error":"#N/A"}},{"$f":"IF(INDIRECT(\"c\" & (VLOOKUP(Rebalance!$D$56,$F$2:$G$48,2,FALSE)+ROW()-2))=Rebalance!$D$56,INDIRECT(\"a\" & (VLOOKUP(Rebalance!$D$56,$F$2:$G$48,2,FALSE)+ROW()-2)),\"\")","v":{"$error":"#N/A"}},{"$f":"IF(INDIRECT(\"c\" & (VLOOKUP(Rebalance!$D$57,$F$2:$G$48,2,FALSE)+ROW()-2))=Rebalance!$D$57,INDIRECT(\"a\" & (VLOOKUP(Rebalance!$D$57,$F$2:$G$48,2,FALSE)+ROW()-2)),\"\")","v":{"$error":"#N/A"}},{"$f":"IF(INDIRECT(\"c\" & (VLOOKUP(Rebalance!$D$58,$F$2:$G$48,2,FALSE)+ROW()-2))=Rebalance!$D$58,INDIRECT(\"a\" & (VLOOKUP(Rebalance!$D$58,$F$2:$G$48,2,FALSE)+ROW()-2)),\"\")","v":{"$error":"#N/A"}},{"$f":"IF(INDIRECT(\"c\" & (VLOOKUP(Rebalance!$D$59,$F$2:$G$48,2,FALSE)+ROW()-2))=Rebalance!$D$59,INDIRECT(\"a\" & (VLOOKUP(Rebalance!$D$59,$F$2:$G$48,2,FALSE)+ROW()-2)),\"\")","v":{"$error":"#N/A"}},{"$f":"IF(INDIRECT(\"c\" & (VLOOKUP(Rebalance!$D$60,$F$2:$G$48,2,FALSE)+ROW()-2))=Rebalance!$D$60,INDIRECT(\"a\" & (VLOOKUP(Rebalance!$D$60,$F$2:$G$48,2,FALSE)+ROW()-2)),\"\")","v":{"$error":"#N/A"}},{"$f":"IF(INDIRECT(\"c\" & (VLOOKUP(Rebalance!$D$61,$F$2:$G$48,2,FALSE)+ROW()-2))=Rebalance!$D$61,INDIRECT(\"a\" & (VLOOKUP(Rebalance!$D$61,$F$2:$G$48,2,FALSE)+ROW()-2)),\"\")","v":{"$error":"#N/A"}},{"$f":"IF(INDIRECT(\"c\" & (VLOOKUP(Rebalance!$D$62,$F$2:$G$48,2,FALSE)+ROW()-2))=Rebalance!$D$62,INDIRECT(\"a\" & (VLOOKUP(Rebalance!$D$62,$F$2:$G$48,2,FALSE)+ROW()-2)),\"\")","v":{"$error":"#N/A"}},{"$f":"IF(INDIRECT(\"c\" & (VLOOKUP(Rebalance!$D$63,$F$2:$G$48,2,FALSE)+ROW()-2))=Rebalance!$D$63,INDIRECT(\"a\" & (VLOOKUP(Rebalance!$D$63,$F$2:$G$48,2,FALSE)+ROW()-2)),\"\")","v":{"$error":"#N/A"}},{"$f":"IF(INDIRECT(\"c\" & (VLOOKUP(Rebalance!$D$64,$F$2:$G$48,2,FALSE)+ROW()-2))=Rebalance!$D$64,INDIRECT(\"a\" & (VLOOKUP(Rebalance!$D$64,$F$2:$G$48,2,FALSE)+ROW()-2)),\"\")","v":{"$error":"#N/A"}},{"$f":"IF(INDIRECT(\"c\" & (VLOOKUP(Rebalance!$D$65,$F$2:$G$48,2,FALSE)+ROW()-2))=Rebalance!$D$65,INDIRECT(\"a\" & (VLOOKUP(Rebalance!$D$65,$F$2:$G$48,2,FALSE)+ROW()-2)),\"\")","v":{"$error":"#N/A"}},{"$f":"IF(INDIRECT(\"c\" & (VLOOKUP(Rebalance!$D$66,$F$2:$G$48,2,FALSE)+ROW()-2))=Rebalance!$D$66,INDIRECT(\"a\" & (VLOOKUP(Rebalance!$D$66,$F$2:$G$48,2,FALSE)+ROW()-2)),\"\")","v":{"$error":"#N/A"}}]
["1NVEST Global REIT Index Feeder Fund B1","SLIFB1","STANLIB Collective Investments",{"$f":"ROW()","v":20},null,"Metropolitan Collective Investments",{"$f":"VLOOKUP(F20,$C$2:$D$599,2,FALSE)","v":313},{"$f":"IF(INDIRECT(\"c\" & (VLOOKUP(Rebalance!$D$26,$F$2:$G$48,2,FALSE)+ROW()-2))=Rebalance!$D$26,INDIRECT(\"a\" & (VLOOKUP(Rebalance!$D$26,$F$2:$G$48,2,FALSE)+ROW()-2)),\"\")","v":{"$error":"#N/A"}},{"$f":"IF(INDIRECT(\"c\" & (VLOOKUP(Rebalance!$D$27,$F$2:$G$48,2,FALSE)+ROW()-2))=Rebalance!$D$27,INDIRECT(\"a\" & (VLOOKUP(Rebalance!$D$27,$F$2:$G$48,2,FALSE)+ROW()-2)),\"\")","v":{"$error":"#N/A"}},{"$f":"IF(INDIRECT(\"c\" & (VLOOKUP(Rebalance!$D$28,$F$2:$G$48,2,FALSE)+ROW()-2))=Rebalance!$D$28,INDIRECT(\"a\" & (VLOOKUP(Rebalance!$D$28,$F$2:$G$48,2,FALSE)+ROW()-2)),\"\")","v":{"$error":"#N/A"}},{"$f":"IF(INDIRECT(\"c\" & (VLOOKUP(Rebalance!$D$29,$F$2:$G$48,2,FALSE)+ROW()-2))=Rebalance!$D$29,INDIRECT(\"a\" & (VLOOKUP(Rebalance!$D$29,$F$2:$G$48,2,FALSE)+ROW()-2)),\"\")","v":{"$error":"#N/A"}},{"$f":"IF(INDIRECT(\"c\" & (VLOOKUP(Rebalance!$D$30,$F$2:$G$48,2,FALSE)+ROW()-2))=Rebalance!$D$30,INDIRECT(\"a\" & (VLOOKUP(Rebalance!$D$30,$F$2:$G$48,2,FALSE)+ROW()-2)),\"\")","v":{"$error":"#N/A"}},{"$f":"IF(INDIRECT(\"c\" & (VLOOKUP(Rebalance!$D$31,$F$2:$G$48,2,FALSE)+ROW()-2))=Rebalance!$D$31,INDIRECT(\"a\" & (VLOOKUP(Rebalance!$D$31,$F$2:$G$48,2,FALSE)+ROW()-2)),\"\")","v":{"$error":"#N/A"}},{"$f":"IF(INDIRECT(\"c\" & (VLOOKUP(Rebalance!$D$32,$F$2:$G$48,2,FALSE)+ROW()-2))=Rebalance!$D$32,INDIRECT(\"a\" & (VLOOKUP(Rebalance!$D$32,$F$2:$G$48,2,FALSE)+ROW()-2)),\"\")","v":{"$error":"#N/A"}},{"$f":"IF(INDIRECT(\"c\" & (VLOOKUP(Rebalance!$D$33,$F$2:$G$48,2,FALSE)+ROW()-2))=Rebalance!$D$33,INDIRECT(\"a\" & (VLOOKUP(Rebalance!$D$33,$F$2:$G$48,2,FALSE)+ROW()-2)),\"\")","v":{"$error":"#N/A"}},{"$f":"IF(INDIRECT(\"c\" & (VLOOKUP(Rebalance!$D$34,$F$2:$G$48,2,FALSE)+ROW()-2))=Rebalance!$D$34,INDIRECT(\"a\" & (VLOOKUP(Rebalance!$D$34,$F$2:$G$48,2,FALSE)+ROW()-2)),\"\")","v":{"$error":"#N/A"}},{"$f":"IF(INDIRECT(\"c\" & (VLOOKUP(Rebalance!$D$35,$F$2:$G$48,2,FALSE)+ROW()-2))=Rebalance!$D$35,INDIRECT(\"a\" & (VLOOKUP(Rebalance!$D$35,$F$2:$G$48,2,FALSE)+ROW()-2)),\"\")","v":{"$error":"#N/A"}},{"$f":"IF(INDIRECT(\"c\" & (VLOOKUP(Rebalance!$D$36,$F$2:$G$48,2,FALSE)+ROW()-2))=Rebalance!$D$36,INDIRECT(\"a\" & (VLOOKUP(Rebalance!$D$36,$F$2:$G$48,2,FALSE)+ROW()-2)),\"\")","v":{"$error":"#N/A"}},{"$f":"IF(INDIRECT(\"c\" & (VLOOKUP(Rebalance!$D$37,$F$2:$G$48,2,FALSE)+ROW()-2))=Rebalance!$D$37,INDIRECT(\"a\" & (VLOOKUP(Rebalance!$D$37,$F$2:$G$48,2,FALSE)+ROW()-2)),\"\")","v":{"$error":"#N/A"}},{"$f":"IF(INDIRECT(\"c\" & (VLOOKUP(Rebalance!$D$38,$F$2:$G$48,2,FALSE)+ROW()-2))=Rebalance!$D$38,INDIRECT(\"a\" & (VLOOKUP(Rebalance!$D$38,$F$2:$G$48,2,FALSE)+ROW()-2)),\"\")","v":{"$error":"#N/A"}},{"$f":"IF(INDIRECT(\"c\" & (VLOOKUP(Rebalance!$D$39,$F$2:$G$48,2,FALSE)+ROW()-2))=Rebalance!$D$39,INDIRECT(\"a\" & (VLOOKUP(Rebalance!$D$39,$F$2:$G$48,2,FALSE)+ROW()-2)),\"\")","v":{"$error":"#N/A"}},{"$f":"IF(INDIRECT(\"c\" & (VLOOKUP(Rebalance!$D$40,$F$2:$G$48,2,FALSE)+ROW()-2))=Rebalance!$D$40,INDIRECT(\"a\" & (VLOOKUP(Rebalance!$D$40,$F$2:$G$48,2,FALSE)+ROW()-2)),\"\")","v":{"$error":"#N/A"}},{"$f":"IF(INDIRECT(\"c\" & (VLOOKUP(Rebalance!$D$52,$F$2:$G$48,2,FALSE)+ROW()-2))=Rebalance!$D$52,INDIRECT(\"a\" & (VLOOKUP(Rebalance!$D$52,$F$2:$G$48,2,FALSE)+ROW()-2)),\"\")","v":{"$error":"#N/A"}},{"$f":"IF(INDIRECT(\"c\" & (VLOOKUP(Rebalance!$D$53,$F$2:$G$48,2,FALSE)+ROW()-2))=Rebalance!$D$53,INDIRECT(\"a\" & (VLOOKUP(Rebalance!$D$53,$F$2:$G$48,2,FALSE)+ROW()-2)),\"\")","v":{"$error":"#N/A"}},{"$f":"IF(INDIRECT(\"c\" & (VLOOKUP(Rebalance!$D$54,$F$2:$G$48,2,FALSE)+ROW()-2))=Rebalance!$D$54,INDIRECT(\"a\" & (VLOOKUP(Rebalance!$D$54,$F$2:$G$48,2,FALSE)+ROW()-2)),\"\")","v":{"$error":"#N/A"}},{"$f":"IF(INDIRECT(\"c\" & (VLOOKUP(Rebalance!$D$55,$F$2:$G$48,2,FALSE)+ROW()-2))=Rebalance!$D$55,INDIRECT(\"a\" & (VLOOKUP(Rebalance!$D$55,$F$2:$G$48,2,FALSE)+ROW()-2)),\"\")","v":{"$error":"#N/A"}},{"$f":"IF(INDIRECT(\"c\" & (VLOOKUP(Rebalance!$D$56,$F$2:$G$48,2,FALSE)+ROW()-2))=Rebalance!$D$56,INDIRECT(\"a\" & (VLOOKUP(Rebalance!$D$56,$F$2:$G$48,2,FALSE)+ROW()-2)),\"\")","v":{"$error":"#N/A"}},{"$f":"IF(INDIRECT(\"c\" & (VLOOKUP(Rebalance!$D$57,$F$2:$G$48,2,FALSE)+ROW()-2))=Rebalance!$D$57,INDIRECT(\"a\" & (VLOOKUP(Rebalance!$D$57,$F$2:$G$48,2,FALSE)+ROW()-2)),\"\")","v":{"$error":"#N/A"}},{"$f":"IF(INDIRECT(\"c\" & (VLOOKUP(Rebalance!$D$58,$F$2:$G$48,2,FALSE)+ROW()-2))=Rebalance!$D$58,INDIRECT(\"a\" & (VLOOKUP(Rebalance!$D$58,$F$2:$G$48,2,FALSE)+ROW()-2)),\"\")","v":{"$error":"#N/A"}},{"$f":"IF(INDIRECT(\"c\" & (VLOOKUP(Rebalance!$D$59,$F$2:$G$48,2,FALSE)+ROW()-2))=Rebalance!$D$59,INDIRECT(\"a\" & (VLOOKUP(Rebalance!$D$59,$F$2:$G$48,2,FALSE)+ROW()-2)),\"\")","v":{"$error":"#N/A"}},{"$f":"IF(INDIRECT(\"c\" & (VLOOKUP(Rebalance!$D$60,$F$2:$G$48,2,FALSE)+ROW()-2))=Rebalance!$D$60,INDIRECT(\"a\" & (VLOOKUP(Rebalance!$D$60,$F$2:$G$48,2,FALSE)+ROW()-2)),\"\")","v":{"$error":"#N/A"}},{"$f":"IF(INDIRECT(\"c\" & (VLOOKUP(Rebalance!$D$61,$F$2:$G$48,2,FALSE)+ROW()-2))=Rebalance!$D$61,INDIRECT(\"a\" & (VLOOKUP(Rebalance!$D$61,$F$2:$G$48,2,FALSE)+ROW()-2)),\"\")","v":{"$error":"#N/A"}},{"$f":"IF(INDIRECT(\"c\" & (VLOOKUP(Rebalance!$D$62,$F$2:$G$48,2,FALSE)+ROW()-2))=Rebalance!$D$62,INDIRECT(\"a\" & (VLOOKUP(Rebalance!$D$62,$F$2:$G$48,2,FALSE)+ROW()-2)),\"\")","v":{"$error":"#N/A"}},{"$f":"IF(INDIRECT(\"c\" & (VLOOKUP(Rebalance!$D$63,$F$2:$G$48,2,FALSE)+ROW()-2))=Rebalance!$D$63,INDIRECT(\"a\" & (VLOOKUP(Rebalance!$D$63,$F$2:$G$48,2,FALSE)+ROW()-2)),\"\")","v":{"$error":"#N/A"}},{"$f":"IF(INDIRECT(\"c\" & (VLOOKUP(Rebalance!$D$64,$F$2:$G$48,2,FALSE)+ROW()-2))=Rebalance!$D$64,INDIRECT(\"a\" & (VLOOKUP(Rebalance!$D$64,$F$2:$G$48,2,FALSE)+ROW()-2)),\"\")","v":{"$error":"#N/A"}},{"$f":"IF(INDIRECT(\"c\" & (VLOOKUP(Rebalance!$D$65,$F$2:$G$48,2,FALSE)+ROW()-2))=Rebalance!$D$65,INDIRECT(\"a\" & (VLOOKUP(Rebalance!$D$65,$F$2:$G$48,2,FALSE)+ROW()-2)),\"\")","v":{"$error":"#N/A"}},{"$f":"IF(INDIRECT(\"c\" & (VLOOKUP(Rebalance!$D$66,$F$2:$G$48,2,FALSE)+ROW()-2))=Rebalance!$D$66,INDIRECT(\"a\" & (VLOOKUP(Rebalance!$D$66,$F$2:$G$48,2,FALSE)+ROW()-2)),\"\")","v":{"$error":"#N/A"}}]
["1NVEST High Equity Balanced Passive FoF B1","SHFB1","STANLIB Collective Investments",{"$f":"ROW()","v":21},null,"Momentum Collective Investments Ltd",{"$f":"VLOOKUP(F21,$C$2:$D$599,2,FALSE)","v":321},{"$f":"IF(INDIRECT(\"c\" & (VLOOKUP(Rebalance!$D$26,$F$2:$G$48,2,FALSE)+ROW()-2))=Rebalance!$D$26,INDIRECT(\"a\" & (VLOOKUP(Rebalance!$D$26,$F$2:$G$48,2,FALSE)+ROW()-2)),\"\")","v":{"$error":"#N/A"}},{"$f":"IF(INDIRECT(\"c\" & (VLOOKUP(Rebalance!$D$27,$F$2:$G$48,2,FALSE)+ROW()-2))=Rebalance!$D$27,INDIRECT(\"a\" & (VLOOKUP(Rebalance!$D$27,$F$2:$G$48,2,FALSE)+ROW()-2)),\"\")","v":{"$error":"#N/A"}},{"$f":"IF(INDIRECT(\"c\" & (VLOOKUP(Rebalance!$D$28,$F$2:$G$48,2,FALSE)+ROW()-2))=Rebalance!$D$28,INDIRECT(\"a\" & (VLOOKUP(Rebalance!$D$28,$F$2:$G$48,2,FALSE)+ROW()-2)),\"\")","v":{"$error":"#N/A"}},{"$f":"IF(INDIRECT(\"c\" & (VLOOKUP(Rebalance!$D$29,$F$2:$G$48,2,FALSE)+ROW()-2))=Rebalance!$D$29,INDIRECT(\"a\" & (VLOOKUP(Rebalance!$D$29,$F$2:$G$48,2,FALSE)+ROW()-2)),\"\")","v":{"$error":"#N/A"}},{"$f":"IF(INDIRECT(\"c\" & (VLOOKUP(Rebalance!$D$30,$F$2:$G$48,2,FALSE)+ROW()-2))=Rebalance!$D$30,INDIRECT(\"a\" & (VLOOKUP(Rebalance!$D$30,$F$2:$G$48,2,FALSE)+ROW()-2)),\"\")","v":{"$error":"#N/A"}},{"$f":"IF(INDIRECT(\"c\" & (VLOOKUP(Rebalance!$D$31,$F$2:$G$48,2,FALSE)+ROW()-2))=Rebalance!$D$31,INDIRECT(\"a\" & (VLOOKUP(Rebalance!$D$31,$F$2:$G$48,2,FALSE)+ROW()-2)),\"\")","v":{"$error":"#N/A"}},{"$f":"IF(INDIRECT(\"c\" & (VLOOKUP(Rebalance!$D$32,$F$2:$G$48,2,FALSE)+ROW()-2))=Rebalance!$D$32,INDIRECT(\"a\" & (VLOOKUP(Rebalance!$D$32,$F$2:$G$48,2,FALSE)+ROW()-2)),\"\")","v":{"$error":"#N/A"}},{"$f":"IF(INDIRECT(\"c\" & (VLOOKUP(Rebalance!$D$33,$F$2:$G$48,2,FALSE)+ROW()-2))=Rebalance!$D$33,INDIRECT(\"a\" & (VLOOKUP(Rebalance!$D$33,$F$2:$G$48,2,FALSE)+ROW()-2)),\"\")","v":{"$error":"#N/A"}},{"$f":"IF(INDIRECT(\"c\" & (VLOOKUP(Rebalance!$D$34,$F$2:$G$48,2,FALSE)+ROW()-2))=Rebalance!$D$34,INDIRECT(\"a\" & (VLOOKUP(Rebalance!$D$34,$F$2:$G$48,2,FALSE)+ROW()-2)),\"\")","v":{"$error":"#N/A"}},{"$f":"IF(INDIRECT(\"c\" & (VLOOKUP(Rebalance!$D$35,$F$2:$G$48,2,FALSE)+ROW()-2))=Rebalance!$D$35,INDIRECT(\"a\" & (VLOOKUP(Rebalance!$D$35,$F$2:$G$48,2,FALSE)+ROW()-2)),\"\")","v":{"$error":"#N/A"}},{"$f":"IF(INDIRECT(\"c\" & (VLOOKUP(Rebalance!$D$36,$F$2:$G$48,2,FALSE)+ROW()-2))=Rebalance!$D$36,INDIRECT(\"a\" & (VLOOKUP(Rebalance!$D$36,$F$2:$G$48,2,FALSE)+ROW()-2)),\"\")","v":{"$error":"#N/A"}},{"$f":"IF(INDIRECT(\"c\" & (VLOOKUP(Rebalance!$D$37,$F$2:$G$48,2,FALSE)+ROW()-2))=Rebalance!$D$37,INDIRECT(\"a\" & (VLOOKUP(Rebalance!$D$37,$F$2:$G$48,2,FALSE)+ROW()-2)),\"\")","v":{"$error":"#N/A"}},{"$f":"IF(INDIRECT(\"c\" & (VLOOKUP(Rebalance!$D$38,$F$2:$G$48,2,FALSE)+ROW()-2))=Rebalance!$D$38,INDIRECT(\"a\" & (VLOOKUP(Rebalance!$D$38,$F$2:$G$48,2,FALSE)+ROW()-2)),\"\")","v":{"$error":"#N/A"}},{"$f":"IF(INDIRECT(\"c\" & (VLOOKUP(Rebalance!$D$39,$F$2:$G$48,2,FALSE)+ROW()-2))=Rebalance!$D$39,INDIRECT(\"a\" & (VLOOKUP(Rebalance!$D$39,$F$2:$G$48,2,FALSE)+ROW()-2)),\"\")","v":{"$error":"#N/A"}},{"$f":"IF(INDIRECT(\"c\" & (VLOOKUP(Rebalance!$D$40,$F$2:$G$48,2,FALSE)+ROW()-2))=Rebalance!$D$40,INDIRECT(\"a\" & (VLOOKUP(Rebalance!$D$40,$F$2:$G$48,2,FALSE)+ROW()-2)),\"\")","v":{"$error":"#N/A"}},{"$f":"IF(INDIRECT(\"c\" & (VLOOKUP(Rebalance!$D$52,$F$2:$G$48,2,FALSE)+ROW()-2))=Rebalance!$D$52,INDIRECT(\"a\" & (VLOOKUP(Rebalance!$D$52,$F$2:$G$48,2,FALSE)+ROW()-2)),\"\")","v":{"$error":"#N/A"}},{"$f":"IF(INDIRECT(\"c\" & (VLOOKUP(Rebalance!$D$53,$F$2:$G$48,2,FALSE)+ROW()-2))=Rebalance!$D$53,INDIRECT(\"a\" & (VLOOKUP(Rebalance!$D$53,$F$2:$G$48,2,FALSE)+ROW()-2)),\"\")","v":{"$error":"#N/A"}},{"$f":"IF(INDIRECT(\"c\" & (VLOOKUP(Rebalance!$D$54,$F$2:$G$48,2,FALSE)+ROW()-2))=Rebalance!$D$54,INDIRECT(\"a\" & (VLOOKUP(Rebalance!$D$54,$F$2:$G$48,2,FALSE)+ROW()-2)),\"\")","v":{"$error":"#N/A"}},{"$f":"IF(INDIRECT(\"c\" & (VLOOKUP(Rebalance!$D$55,$F$2:$G$48,2,FALSE)+ROW()-2))=Rebalance!$D$55,INDIRECT(\"a\" & (VLOOKUP(Rebalance!$D$55,$F$2:$G$48,2,FALSE)+ROW()-2)),\"\")","v":{"$error":"#N/A"}},{"$f":"IF(INDIRECT(\"c\" & (VLOOKUP(Rebalance!$D$56,$F$2:$G$48,2,FALSE)+ROW()-2))=Rebalance!$D$56,INDIRECT(\"a\" & (VLOOKUP(Rebalance!$D$56,$F$2:$G$48,2,FALSE)+ROW()-2)),\"\")","v":{"$error":"#N/A"}},{"$f":"IF(INDIRECT(\"c\" & (VLOOKUP(Rebalance!$D$57,$F$2:$G$48,2,FALSE)+ROW()-2))=Rebalance!$D$57,INDIRECT(\"a\" & (VLOOKUP(Rebalance!$D$57,$F$2:$G$48,2,FALSE)+ROW()-2)),\"\")","v":{"$error":"#N/A"}},{"$f":"IF(INDIRECT(\"c\" & (VLOOKUP(Rebalance!$D$58,$F$2:$G$48,2,FALSE)+ROW()-2))=Rebalance!$D$58,INDIRECT(\"a\" & (VLOOKUP(Rebalance!$D$58,$F$2:$G$48,2,FALSE)+ROW()-2)),\"\")","v":{"$error":"#N/A"}},{"$f":"IF(INDIRECT(\"c\" & (VLOOKUP(Rebalance!$D$59,$F$2:$G$48,2,FALSE)+ROW()-2))=Rebalance!$D$59,INDIRECT(\"a\" & (VLOOKUP(Rebalance!$D$59,$F$2:$G$48,2,FALSE)+ROW()-2)),\"\")","v":{"$error":"#N/A"}},{"$f":"IF(INDIRECT(\"c\" & (VLOOKUP(Rebalance!$D$60,$F$2:$G$48,2,FALSE)+ROW()-2))=Rebalance!$D$60,INDIRECT(\"a\" & (VLOOKUP(Rebalance!$D$60,$F$2:$G$48,2,FALSE)+ROW()-2)),\"\")","v":{"$error":"#N/A"}},{"$f":"IF(INDIRECT(\"c\" & (VLOOKUP(Rebalance!$D$61,$F$2:$G$48,2,FALSE)+ROW()-2))=Rebalance!$D$61,INDIRECT(\"a\" & (VLOOKUP(Rebalance!$D$61,$F$2:$G$48,2,FALSE)+ROW()-2)),\"\")","v":{"$error":"#N/A"}},{"$f":"IF(INDIRECT(\"c\" & (VLOOKUP(Rebalance!$D$62,$F$2:$G$48,2,FALSE)+ROW()-2))=Rebalance!$D$62,INDIRECT(\"a\" & (VLOOKUP(Rebalance!$D$62,$F$2:$G$48,2,FALSE)+ROW()-2)),\"\")","v":{"$error":"#N/A"}},{"$f":"IF(INDIRECT(\"c\" & (VLOOKUP(Rebalance!$D$63,$F$2:$G$48,2,FALSE)+ROW()-2))=Rebalance!$D$63,INDIRECT(\"a\" & (VLOOKUP(Rebalance!$D$63,$F$2:$G$48,2,FALSE)+ROW()-2)),\"\")","v":{"$error":"#N/A"}},{"$f":"IF(INDIRECT(\"c\" & (VLOOKUP(Rebalance!$D$64,$F$2:$G$48,2,FALSE)+ROW()-2))=Rebalance!$D$64,INDIRECT(\"a\" & (VLOOKUP(Rebalance!$D$64,$F$2:$G$48,2,FALSE)+ROW()-2)),\"\")","v":{"$error":"#N/A"}},{"$f":"IF(INDIRECT(\"c\" & (VLOOKUP(Rebalance!$D$65,$F$2:$G$48,2,FALSE)+ROW()-2))=Rebalance!$D$65,INDIRECT(\"a\" & (VLOOKUP(Rebalance!$D$65,$F$2:$G$48,2,FALSE)+ROW()-2)),\"\")","v":{"$error":"#N/A"}},{"$f":"IF(INDIRECT(\"c\" & (VLOOKUP(Rebalance!$D$66,$F$2:$G$48,2,FALSE)+ROW()-2))=Rebalance!$D$66,INDIRECT(\"a\" & (VLOOKUP(Rebalance!$D$66,$F$2:$G$48,2,FALSE)+ROW()-2)),\"\")","v":{"$error":"#N/A"}}]
["1NVEST Index Fund  R","STIFB1","STANLIB Collective Investments",{"$f":"ROW()","v":22},null,"Nedgroup Collective Investments Ltd",{"$f":"VLOOKUP(F22,$C$2:$D$599,2,FALSE)","v":354},{"$f":"IF(INDIRECT(\"c\" & (VLOOKUP(Rebalance!$D$26,$F$2:$G$48,2,FALSE)+ROW()-2))=Rebalance!$D$26,INDIRECT(\"a\" & (VLOOKUP(Rebalance!$D$26,$F$2:$G$48,2,FALSE)+ROW()-2)),\"\")","v":{"$error":"#N/A"}},{"$f":"IF(INDIRECT(\"c\" & (VLOOKUP(Rebalance!$D$27,$F$2:$G$48,2,FALSE)+ROW()-2))=Rebalance!$D$27,INDIRECT(\"a\" & (VLOOKUP(Rebalance!$D$27,$F$2:$G$48,2,FALSE)+ROW()-2)),\"\")","v":{"$error":"#N/A"}},{"$f":"IF(INDIRECT(\"c\" & (VLOOKUP(Rebalance!$D$28,$F$2:$G$48,2,FALSE)+ROW()-2))=Rebalance!$D$28,INDIRECT(\"a\" & (VLOOKUP(Rebalance!$D$28,$F$2:$G$48,2,FALSE)+ROW()-2)),\"\")","v":{"$error":"#N/A"}},{"$f":"IF(INDIRECT(\"c\" & (VLOOKUP(Rebalance!$D$29,$F$2:$G$48,2,FALSE)+ROW()-2))=Rebalance!$D$29,INDIRECT(\"a\" & (VLOOKUP(Rebalance!$D$29,$F$2:$G$48,2,FALSE)+ROW()-2)),\"\")","v":{"$error":"#N/A"}},{"$f":"IF(INDIRECT(\"c\" & (VLOOKUP(Rebalance!$D$30,$F$2:$G$48,2,FALSE)+ROW()-2))=Rebalance!$D$30,INDIRECT(\"a\" & (VLOOKUP(Rebalance!$D$30,$F$2:$G$48,2,FALSE)+ROW()-2)),\"\")","v":{"$error":"#N/A"}},{"$f":"IF(INDIRECT(\"c\" & (VLOOKUP(Rebalance!$D$31,$F$2:$G$48,2,FALSE)+ROW()-2))=Rebalance!$D$31,INDIRECT(\"a\" & (VLOOKUP(Rebalance!$D$31,$F$2:$G$48,2,FALSE)+ROW()-2)),\"\")","v":{"$error":"#N/A"}},{"$f":"IF(INDIRECT(\"c\" & (VLOOKUP(Rebalance!$D$32,$F$2:$G$48,2,FALSE)+ROW()-2))=Rebalance!$D$32,INDIRECT(\"a\" & (VLOOKUP(Rebalance!$D$32,$F$2:$G$48,2,FALSE)+ROW()-2)),\"\")","v":{"$error":"#N/A"}},{"$f":"IF(INDIRECT(\"c\" & (VLOOKUP(Rebalance!$D$33,$F$2:$G$48,2,FALSE)+ROW()-2))=Rebalance!$D$33,INDIRECT(\"a\" & (VLOOKUP(Rebalance!$D$33,$F$2:$G$48,2,FALSE)+ROW()-2)),\"\")","v":{"$error":"#N/A"}},{"$f":"IF(INDIRECT(\"c\" & (VLOOKUP(Rebalance!$D$34,$F$2:$G$48,2,FALSE)+ROW()-2))=Rebalance!$D$34,INDIRECT(\"a\" & (VLOOKUP(Rebalance!$D$34,$F$2:$G$48,2,FALSE)+ROW()-2)),\"\")","v":{"$error":"#N/A"}},{"$f":"IF(INDIRECT(\"c\" & (VLOOKUP(Rebalance!$D$35,$F$2:$G$48,2,FALSE)+ROW()-2))=Rebalance!$D$35,INDIRECT(\"a\" & (VLOOKUP(Rebalance!$D$35,$F$2:$G$48,2,FALSE)+ROW()-2)),\"\")","v":{"$error":"#N/A"}},{"$f":"IF(INDIRECT(\"c\" & (VLOOKUP(Rebalance!$D$36,$F$2:$G$48,2,FALSE)+ROW()-2))=Rebalance!$D$36,INDIRECT(\"a\" & (VLOOKUP(Rebalance!$D$36,$F$2:$G$48,2,FALSE)+ROW()-2)),\"\")","v":{"$error":"#N/A"}},{"$f":"IF(INDIRECT(\"c\" & (VLOOKUP(Rebalance!$D$37,$F$2:$G$48,2,FALSE)+ROW()-2))=Rebalance!$D$37,INDIRECT(\"a\" & (VLOOKUP(Rebalance!$D$37,$F$2:$G$48,2,FALSE)+ROW()-2)),\"\")","v":{"$error":"#N/A"}},{"$f":"IF(INDIRECT(\"c\" & (VLOOKUP(Rebalance!$D$38,$F$2:$G$48,2,FALSE)+ROW()-2))=Rebalance!$D$38,INDIRECT(\"a\" & (VLOOKUP(Rebalance!$D$38,$F$2:$G$48,2,FALSE)+ROW()-2)),\"\")","v":{"$error":"#N/A"}},{"$f":"IF(INDIRECT(\"c\" & (VLOOKUP(Rebalance!$D$39,$F$2:$G$48,2,FALSE)+ROW()-2))=Rebalance!$D$39,INDIRECT(\"a\" & (VLOOKUP(Rebalance!$D$39,$F$2:$G$48,2,FALSE)+ROW()-2)),\"\")","v":{"$error":"#N/A"}},{"$f":"IF(INDIRECT(\"c\" & (VLOOKUP(Rebalance!$D$40,$F$2:$G$48,2,FALSE)+ROW()-2))=Rebalance!$D$40,INDIRECT(\"a\" & (VLOOKUP(Rebalance!$D$40,$F$2:$G$48,2,FALSE)+ROW()-2)),\"\")","v":{"$error":"#N/A"}},{"$f":"IF(INDIRECT(\"c\" & (VLOOKUP(Rebalance!$D$52,$F$2:$G$48,2,FALSE)+ROW()-2))=Rebalance!$D$52,INDIRECT(\"a\" & (VLOOKUP(Rebalance!$D$52,$F$2:$G$48,2,FALSE)+ROW()-2)),\"\")","v":{"$error":"#N/A"}},{"$f":"IF(INDIRECT(\"c\" & (VLOOKUP(Rebalance!$D$53,$F$2:$G$48,2,FALSE)+ROW()-2))=Rebalance!$D$53,INDIRECT(\"a\" & (VLOOKUP(Rebalance!$D$53,$F$2:$G$48,2,FALSE)+ROW()-2)),\"\")","v":{"$error":"#N/A"}},{"$f":"IF(INDIRECT(\"c\" & (VLOOKUP(Rebalance!$D$54,$F$2:$G$48,2,FALSE)+ROW()-2))=Rebalance!$D$54,INDIRECT(\"a\" & (VLOOKUP(Rebalance!$D$54,$F$2:$G$48,2,FALSE)+ROW()-2)),\"\")","v":{"$error":"#N/A"}},{"$f":"IF(INDIRECT(\"c\" & (VLOOKUP(Rebalance!$D$55,$F$2:$G$48,2,FALSE)+ROW()-2))=Rebalance!$D$55,INDIRECT(\"a\" & (VLOOKUP(Rebalance!$D$55,$F$2:$G$48,2,FALSE)+ROW()-2)),\"\")","v":{"$error":"#N/A"}},{"$f":"IF(INDIRECT(\"c\" & (VLOOKUP(Rebalance!$D$56,$F$2:$G$48,2,FALSE)+ROW()-2))=Rebalance!$D$56,INDIRECT(\"a\" & (VLOOKUP(Rebalance!$D$56,$F$2:$G$48,2,FALSE)+ROW()-2)),\"\")","v":{"$error":"#N/A"}},{"$f":"IF(INDIRECT(\"c\" & (VLOOKUP(Rebalance!$D$57,$F$2:$G$48,2,FALSE)+ROW()-2))=Rebalance!$D$57,INDIRECT(\"a\" & (VLOOKUP(Rebalance!$D$57,$F$2:$G$48,2,FALSE)+ROW()-2)),\"\")","v":{"$error":"#N/A"}},{"$f":"IF(INDIRECT(\"c\" & (VLOOKUP(Rebalance!$D$58,$F$2:$G$48,2,FALSE)+ROW()-2))=Rebalance!$D$58,INDIRECT(\"a\" & (VLOOKUP(Rebalance!$D$58,$F$2:$G$48,2,FALSE)+ROW()-2)),\"\")","v":{"$error":"#N/A"}},{"$f":"IF(INDIRECT(\"c\" & (VLOOKUP(Rebalance!$D$59,$F$2:$G$48,2,FALSE)+ROW()-2))=Rebalance!$D$59,INDIRECT(\"a\" & (VLOOKUP(Rebalance!$D$59,$F$2:$G$48,2,FALSE)+ROW()-2)),\"\")","v":{"$error":"#N/A"}},{"$f":"IF(INDIRECT(\"c\" & (VLOOKUP(Rebalance!$D$60,$F$2:$G$48,2,FALSE)+ROW()-2))=Rebalance!$D$60,INDIRECT(\"a\" & (VLOOKUP(Rebalance!$D$60,$F$2:$G$48,2,FALSE)+ROW()-2)),\"\")","v":{"$error":"#N/A"}},{"$f":"IF(INDIRECT(\"c\" & (VLOOKUP(Rebalance!$D$61,$F$2:$G$48,2,FALSE)+ROW()-2))=Rebalance!$D$61,INDIRECT(\"a\" & (VLOOKUP(Rebalance!$D$61,$F$2:$G$48,2,FALSE)+ROW()-2)),\"\")","v":{"$error":"#N/A"}},{"$f":"IF(INDIRECT(\"c\" & (VLOOKUP(Rebalance!$D$62,$F$2:$G$48,2,FALSE)+ROW()-2))=Rebalance!$D$62,INDIRECT(\"a\" & (VLOOKUP(Rebalance!$D$62,$F$2:$G$48,2,FALSE)+ROW()-2)),\"\")","v":{"$error":"#N/A"}},{"$f":"IF(INDIRECT(\"c\" & (VLOOKUP(Rebalance!$D$63,$F$2:$G$48,2,FALSE)+ROW()-2))=Rebalance!$D$63,INDIRECT(\"a\" & (VLOOKUP(Rebalance!$D$63,$F$2:$G$48,2,FALSE)+ROW()-2)),\"\")","v":{"$error":"#N/A"}},{"$f":"IF(INDIRECT(\"c\" & (VLOOKUP(Rebalance!$D$64,$F$2:$G$48,2,FALSE)+ROW()-2))=Rebalance!$D$64,INDIRECT(\"a\" & (VLOOKUP(Rebalance!$D$64,$F$2:$G$48,2,FALSE)+ROW()-2)),\"\")","v":{"$error":"#N/A"}},{"$f":"IF(INDIRECT(\"c\" & (VLOOKUP(Rebalance!$D$65,$F$2:$G$48,2,FALSE)+ROW()-2))=Rebalance!$D$65,INDIRECT(\"a\" & (VLOOKUP(Rebalance!$D$65,$F$2:$G$48,2,FALSE)+ROW()-2)),\"\")","v":{"$error":"#N/A"}},{"$f":"IF(INDIRECT(\"c\" & (VLOOKUP(Rebalance!$D$66,$F$2:$G$48,2,FALSE)+ROW()-2))=Rebalance!$D$66,INDIRECT(\"a\" & (VLOOKUP(Rebalance!$D$66,$F$2:$G$48,2,FALSE)+ROW()-2)),\"\")","v":{"$error":"#N/A"}}]
["1NVEST Index Fund B1","STIFB1","STANLIB Collective Investments",{"$f":"ROW()","v":23},null,"Oasis Crescent Management Company Ltd",{"$f":"VLOOKUP(F23,$C$2:$D$599,2,FALSE)","v":388},{"$f":"IF(INDIRECT(\"c\" & (VLOOKUP(Rebalance!$D$26,$F$2:$G$48,2,FALSE)+ROW()-2))=Rebalance!$D$26,INDIRECT(\"a\" & (VLOOKUP(Rebalance!$D$26,$F$2:$G$48,2,FALSE)+ROW()-2)),\"\")","v":{"$error":"#N/A"}},{"$f":"IF(INDIRECT(\"c\" & (VLOOKUP(Rebalance!$D$27,$F$2:$G$48,2,FALSE)+ROW()-2))=Rebalance!$D$27,INDIRECT(\"a\" & (VLOOKUP(Rebalance!$D$27,$F$2:$G$48,2,FALSE)+ROW()-2)),\"\")","v":{"$error":"#N/A"}},{"$f":"IF(INDIRECT(\"c\" & (VLOOKUP(Rebalance!$D$28,$F$2:$G$48,2,FALSE)+ROW()-2))=Rebalance!$D$28,INDIRECT(\"a\" & (VLOOKUP(Rebalance!$D$28,$F$2:$G$48,2,FALSE)+ROW()-2)),\"\")","v":{"$error":"#N/A"}},{"$f":"IF(INDIRECT(\"c\" & (VLOOKUP(Rebalance!$D$29,$F$2:$G$48,2,FALSE)+ROW()-2))=Rebalance!$D$29,INDIRECT(\"a\" & (VLOOKUP(Rebalance!$D$29,$F$2:$G$48,2,FALSE)+ROW()-2)),\"\")","v":{"$error":"#N/A"}},{"$f":"IF(INDIRECT(\"c\" & (VLOOKUP(Rebalance!$D$30,$F$2:$G$48,2,FALSE)+ROW()-2))=Rebalance!$D$30,INDIRECT(\"a\" & (VLOOKUP(Rebalance!$D$30,$F$2:$G$48,2,FALSE)+ROW()-2)),\"\")","v":{"$error":"#N/A"}},{"$f":"IF(INDIRECT(\"c\" & (VLOOKUP(Rebalance!$D$31,$F$2:$G$48,2,FALSE)+ROW()-2))=Rebalance!$D$31,INDIRECT(\"a\" & (VLOOKUP(Rebalance!$D$31,$F$2:$G$48,2,FALSE)+ROW()-2)),\"\")","v":{"$error":"#N/A"}},{"$f":"IF(INDIRECT(\"c\" & (VLOOKUP(Rebalance!$D$32,$F$2:$G$48,2,FALSE)+ROW()-2))=Rebalance!$D$32,INDIRECT(\"a\" & (VLOOKUP(Rebalance!$D$32,$F$2:$G$48,2,FALSE)+ROW()-2)),\"\")","v":{"$error":"#N/A"}},{"$f":"IF(INDIRECT(\"c\" & (VLOOKUP(Rebalance!$D$33,$F$2:$G$48,2,FALSE)+ROW()-2))=Rebalance!$D$33,INDIRECT(\"a\" & (VLOOKUP(Rebalance!$D$33,$F$2:$G$48,2,FALSE)+ROW()-2)),\"\")","v":{"$error":"#N/A"}},{"$f":"IF(INDIRECT(\"c\" & (VLOOKUP(Rebalance!$D$34,$F$2:$G$48,2,FALSE)+ROW()-2))=Rebalance!$D$34,INDIRECT(\"a\" & (VLOOKUP(Rebalance!$D$34,$F$2:$G$48,2,FALSE)+ROW()-2)),\"\")","v":{"$error":"#N/A"}},{"$f":"IF(INDIRECT(\"c\" & (VLOOKUP(Rebalance!$D$35,$F$2:$G$48,2,FALSE)+ROW()-2))=Rebalance!$D$35,INDIRECT(\"a\" & (VLOOKUP(Rebalance!$D$35,$F$2:$G$48,2,FALSE)+ROW()-2)),\"\")","v":{"$error":"#N/A"}},{"$f":"IF(INDIRECT(\"c\" & (VLOOKUP(Rebalance!$D$36,$F$2:$G$48,2,FALSE)+ROW()-2))=Rebalance!$D$36,INDIRECT(\"a\" & (VLOOKUP(Rebalance!$D$36,$F$2:$G$48,2,FALSE)+ROW()-2)),\"\")","v":{"$error":"#N/A"}},{"$f":"IF(INDIRECT(\"c\" & (VLOOKUP(Rebalance!$D$37,$F$2:$G$48,2,FALSE)+ROW()-2))=Rebalance!$D$37,INDIRECT(\"a\" & (VLOOKUP(Rebalance!$D$37,$F$2:$G$48,2,FALSE)+ROW()-2)),\"\")","v":{"$error":"#N/A"}},{"$f":"IF(INDIRECT(\"c\" & (VLOOKUP(Rebalance!$D$38,$F$2:$G$48,2,FALSE)+ROW()-2))=Rebalance!$D$38,INDIRECT(\"a\" & (VLOOKUP(Rebalance!$D$38,$F$2:$G$48,2,FALSE)+ROW()-2)),\"\")","v":{"$error":"#N/A"}},{"$f":"IF(INDIRECT(\"c\" & (VLOOKUP(Rebalance!$D$39,$F$2:$G$48,2,FALSE)+ROW()-2))=Rebalance!$D$39,INDIRECT(\"a\" & (VLOOKUP(Rebalance!$D$39,$F$2:$G$48,2,FALSE)+ROW()-2)),\"\")","v":{"$error":"#N/A"}},{"$f":"IF(INDIRECT(\"c\" & (VLOOKUP(Rebalance!$D$40,$F$2:$G$48,2,FALSE)+ROW()-2))=Rebalance!$D$40,INDIRECT(\"a\" & (VLOOKUP(Rebalance!$D$40,$F$2:$G$48,2,FALSE)+ROW()-2)),\"\")","v":{"$error":"#N/A"}},{"$f":"IF(INDIRECT(\"c\" & (VLOOKUP(Rebalance!$D$52,$F$2:$G$48,2,FALSE)+ROW()-2))=Rebalance!$D$52,INDIRECT(\"a\" & (VLOOKUP(Rebalance!$D$52,$F$2:$G$48,2,FALSE)+ROW()-2)),\"\")","v":{"$error":"#N/A"}},{"$f":"IF(INDIRECT(\"c\" & (VLOOKUP(Rebalance!$D$53,$F$2:$G$48,2,FALSE)+ROW()-2))=Rebalance!$D$53,INDIRECT(\"a\" & (VLOOKUP(Rebalance!$D$53,$F$2:$G$48,2,FALSE)+ROW()-2)),\"\")","v":{"$error":"#N/A"}},{"$f":"IF(INDIRECT(\"c\" & (VLOOKUP(Rebalance!$D$54,$F$2:$G$48,2,FALSE)+ROW()-2))=Rebalance!$D$54,INDIRECT(\"a\" & (VLOOKUP(Rebalance!$D$54,$F$2:$G$48,2,FALSE)+ROW()-2)),\"\")","v":{"$error":"#N/A"}},{"$f":"IF(INDIRECT(\"c\" & (VLOOKUP(Rebalance!$D$55,$F$2:$G$48,2,FALSE)+ROW()-2))=Rebalance!$D$55,INDIRECT(\"a\" & (VLOOKUP(Rebalance!$D$55,$F$2:$G$48,2,FALSE)+ROW()-2)),\"\")","v":{"$error":"#N/A"}},{"$f":"IF(INDIRECT(\"c\" & (VLOOKUP(Rebalance!$D$56,$F$2:$G$48,2,FALSE)+ROW()-2))=Rebalance!$D$56,INDIRECT(\"a\" & (VLOOKUP(Rebalance!$D$56,$F$2:$G$48,2,FALSE)+ROW()-2)),\"\")","v":{"$error":"#N/A"}},{"$f":"IF(INDIRECT(\"c\" & (VLOOKUP(Rebalance!$D$57,$F$2:$G$48,2,FALSE)+ROW()-2))=Rebalance!$D$57,INDIRECT(\"a\" & (VLOOKUP(Rebalance!$D$57,$F$2:$G$48,2,FALSE)+ROW()-2)),\"\")","v":{"$error":"#N/A"}},{"$f":"IF(INDIRECT(\"c\" & (VLOOKUP(Rebalance!$D$58,$F$2:$G$48,2,FALSE)+ROW()-2))=Rebalance!$D$58,INDIRECT(\"a\" & (VLOOKUP(Rebalance!$D$58,$F$2:$G$48,2,FALSE)+ROW()-2)),\"\")","v":{"$error":"#N/A"}},{"$f":"IF(INDIRECT(\"c\" & (VLOOKUP(Rebalance!$D$59,$F$2:$G$48,2,FALSE)+ROW()-2))=Rebalance!$D$59,INDIRECT(\"a\" & (VLOOKUP(Rebalance!$D$59,$F$2:$G$48,2,FALSE)+ROW()-2)),\"\")","v":{"$error":"#N/A"}},{"$f":"IF(INDIRECT(\"c\" & (VLOOKUP(Rebalance!$D$60,$F$2:$G$48,2,FALSE)+ROW()-2))=Rebalance!$D$60,INDIRECT(\"a\" & (VLOOKUP(Rebalance!$D$60,$F$2:$G$48,2,FALSE)+ROW()-2)),\"\")","v":{"$error":"#N/A"}},{"$f":"IF(INDIRECT(\"c\" & (VLOOKUP(Rebalance!$D$61,$F$2:$G$48,2,FALSE)+ROW()-2))=Rebalance!$D$61,INDIRECT(\"a\" & (VLOOKUP(Rebalance!$D$61,$F$2:$G$48,2,FALSE)+ROW()-2)),\"\")","v":{"$error":"#N/A"}},{"$f":"IF(INDIRECT(\"c\" & (VLOOKUP(Rebalance!$D$62,$F$2:$G$48,2,FALSE)+ROW()-2))=Rebalance!$D$62,INDIRECT(\"a\" & (VLOOKUP(Rebalance!$D$62,$F$2:$G$48,2,FALSE)+ROW()-2)),\"\")","v":{"$error":"#N/A"}},{"$f":"IF(INDIRECT(\"c\" & (VLOOKUP(Rebalance!$D$63,$F$2:$G$48,2,FALSE)+ROW()-2))=Rebalance!$D$63,INDIRECT(\"a\" & (VLOOKUP(Rebalance!$D$63,$F$2:$G$48,2,FALSE)+ROW()-2)),\"\")","v":{"$error":"#N/A"}},{"$f":"IF(INDIRECT(\"c\" & (VLOOKUP(Rebalance!$D$64,$F$2:$G$48,2,FALSE)+ROW()-2))=Rebalance!$D$64,INDIRECT(\"a\" & (VLOOKUP(Rebalance!$D$64,$F$2:$G$48,2,FALSE)+ROW()-2)),\"\")","v":{"$error":"#N/A"}},{"$f":"IF(INDIRECT(\"c\" & (VLOOKUP(Rebalance!$D$65,$F$2:$G$48,2,FALSE)+ROW()-2))=Rebalance!$D$65,INDIRECT(\"a\" & (VLOOKUP(Rebalance!$D$65,$F$2:$G$48,2,FALSE)+ROW()-2)),\"\")","v":{"$error":"#N/A"}},{"$f":"IF(INDIRECT(\"c\" & (VLOOKUP(Rebalance!$D$66,$F$2:$G$48,2,FALSE)+ROW()-2))=Rebalance!$D$66,INDIRECT(\"a\" & (VLOOKUP(Rebalance!$D$66,$F$2:$G$48,2,FALSE)+ROW()-2)),\"\")","v":{"$error":"#N/A"}}]
["1NVEST Inflation Linked Bond Index Tracker Fund B1","SLIB1","STANLIB Collective Investments",{"$f":"ROW()","v":24},null,"Old Mutual Unit Trust Managers Limited",{"$f":"VLOOKUP(F24,$C$2:$D$599,2,FALSE)","v":396},{"$f":"IF(INDIRECT(\"c\" & (VLOOKUP(Rebalance!$D$26,$F$2:$G$48,2,FALSE)+ROW()-2))=Rebalance!$D$26,INDIRECT(\"a\" & (VLOOKUP(Rebalance!$D$26,$F$2:$G$48,2,FALSE)+ROW()-2)),\"\")","v":{"$error":"#N/A"}},{"$f":"IF(INDIRECT(\"c\" & (VLOOKUP(Rebalance!$D$27,$F$2:$G$48,2,FALSE)+ROW()-2))=Rebalance!$D$27,INDIRECT(\"a\" & (VLOOKUP(Rebalance!$D$27,$F$2:$G$48,2,FALSE)+ROW()-2)),\"\")","v":{"$error":"#N/A"}},{"$f":"IF(INDIRECT(\"c\" & (VLOOKUP(Rebalance!$D$28,$F$2:$G$48,2,FALSE)+ROW()-2))=Rebalance!$D$28,INDIRECT(\"a\" & (VLOOKUP(Rebalance!$D$28,$F$2:$G$48,2,FALSE)+ROW()-2)),\"\")","v":{"$error":"#N/A"}},{"$f":"IF(INDIRECT(\"c\" & (VLOOKUP(Rebalance!$D$29,$F$2:$G$48,2,FALSE)+ROW()-2))=Rebalance!$D$29,INDIRECT(\"a\" & (VLOOKUP(Rebalance!$D$29,$F$2:$G$48,2,FALSE)+ROW()-2)),\"\")","v":{"$error":"#N/A"}},{"$f":"IF(INDIRECT(\"c\" & (VLOOKUP(Rebalance!$D$30,$F$2:$G$48,2,FALSE)+ROW()-2))=Rebalance!$D$30,INDIRECT(\"a\" & (VLOOKUP(Rebalance!$D$30,$F$2:$G$48,2,FALSE)+ROW()-2)),\"\")","v":{"$error":"#N/A"}},{"$f":"IF(INDIRECT(\"c\" & (VLOOKUP(Rebalance!$D$31,$F$2:$G$48,2,FALSE)+ROW()-2))=Rebalance!$D$31,INDIRECT(\"a\" & (VLOOKUP(Rebalance!$D$31,$F$2:$G$48,2,FALSE)+ROW()-2)),\"\")","v":{"$error":"#N/A"}},{"$f":"IF(INDIRECT(\"c\" & (VLOOKUP(Rebalance!$D$32,$F$2:$G$48,2,FALSE)+ROW()-2))=Rebalance!$D$32,INDIRECT(\"a\" & (VLOOKUP(Rebalance!$D$32,$F$2:$G$48,2,FALSE)+ROW()-2)),\"\")","v":{"$error":"#N/A"}},{"$f":"IF(INDIRECT(\"c\" & (VLOOKUP(Rebalance!$D$33,$F$2:$G$48,2,FALSE)+ROW()-2))=Rebalance!$D$33,INDIRECT(\"a\" & (VLOOKUP(Rebalance!$D$33,$F$2:$G$48,2,FALSE)+ROW()-2)),\"\")","v":{"$error":"#N/A"}},{"$f":"IF(INDIRECT(\"c\" & (VLOOKUP(Rebalance!$D$34,$F$2:$G$48,2,FALSE)+ROW()-2))=Rebalance!$D$34,INDIRECT(\"a\" & (VLOOKUP(Rebalance!$D$34,$F$2:$G$48,2,FALSE)+ROW()-2)),\"\")","v":{"$error":"#N/A"}},{"$f":"IF(INDIRECT(\"c\" & (VLOOKUP(Rebalance!$D$35,$F$2:$G$48,2,FALSE)+ROW()-2))=Rebalance!$D$35,INDIRECT(\"a\" & (VLOOKUP(Rebalance!$D$35,$F$2:$G$48,2,FALSE)+ROW()-2)),\"\")","v":{"$error":"#N/A"}},{"$f":"IF(INDIRECT(\"c\" & (VLOOKUP(Rebalance!$D$36,$F$2:$G$48,2,FALSE)+ROW()-2))=Rebalance!$D$36,INDIRECT(\"a\" & (VLOOKUP(Rebalance!$D$36,$F$2:$G$48,2,FALSE)+ROW()-2)),\"\")","v":{"$error":"#N/A"}},{"$f":"IF(INDIRECT(\"c\" & (VLOOKUP(Rebalance!$D$37,$F$2:$G$48,2,FALSE)+ROW()-2))=Rebalance!$D$37,INDIRECT(\"a\" & (VLOOKUP(Rebalance!$D$37,$F$2:$G$48,2,FALSE)+ROW()-2)),\"\")","v":{"$error":"#N/A"}},{"$f":"IF(INDIRECT(\"c\" & (VLOOKUP(Rebalance!$D$38,$F$2:$G$48,2,FALSE)+ROW()-2))=Rebalance!$D$38,INDIRECT(\"a\" & (VLOOKUP(Rebalance!$D$38,$F$2:$G$48,2,FALSE)+ROW()-2)),\"\")","v":{"$error":"#N/A"}},{"$f":"IF(INDIRECT(\"c\" & (VLOOKUP(Rebalance!$D$39,$F$2:$G$48,2,FALSE)+ROW()-2))=Rebalance!$D$39,INDIRECT(\"a\" & (VLOOKUP(Rebalance!$D$39,$F$2:$G$48,2,FALSE)+ROW()-2)),\"\")","v":{"$error":"#N/A"}},{"$f":"IF(INDIRECT(\"c\" & (VLOOKUP(Rebalance!$D$40,$F$2:$G$48,2,FALSE)+ROW()-2))=Rebalance!$D$40,INDIRECT(\"a\" & (VLOOKUP(Rebalance!$D$40,$F$2:$G$48,2,FALSE)+ROW()-2)),\"\")","v":{"$error":"#N/A"}},{"$f":"IF(INDIRECT(\"c\" & (VLOOKUP(Rebalance!$D$52,$F$2:$G$48,2,FALSE)+ROW()-2))=Rebalance!$D$52,INDIRECT(\"a\" & (VLOOKUP(Rebalance!$D$52,$F$2:$G$48,2,FALSE)+ROW()-2)),\"\")","v":{"$error":"#N/A"}},{"$f":"IF(INDIRECT(\"c\" & (VLOOKUP(Rebalance!$D$53,$F$2:$G$48,2,FALSE)+ROW()-2))=Rebalance!$D$53,INDIRECT(\"a\" & (VLOOKUP(Rebalance!$D$53,$F$2:$G$48,2,FALSE)+ROW()-2)),\"\")","v":{"$error":"#N/A"}},{"$f":"IF(INDIRECT(\"c\" & (VLOOKUP(Rebalance!$D$54,$F$2:$G$48,2,FALSE)+ROW()-2))=Rebalance!$D$54,INDIRECT(\"a\" & (VLOOKUP(Rebalance!$D$54,$F$2:$G$48,2,FALSE)+ROW()-2)),\"\")","v":{"$error":"#N/A"}},{"$f":"IF(INDIRECT(\"c\" & (VLOOKUP(Rebalance!$D$55,$F$2:$G$48,2,FALSE)+ROW()-2))=Rebalance!$D$55,INDIRECT(\"a\" & (VLOOKUP(Rebalance!$D$55,$F$2:$G$48,2,FALSE)+ROW()-2)),\"\")","v":{"$error":"#N/A"}},{"$f":"IF(INDIRECT(\"c\" & (VLOOKUP(Rebalance!$D$56,$F$2:$G$48,2,FALSE)+ROW()-2))=Rebalance!$D$56,INDIRECT(\"a\" & (VLOOKUP(Rebalance!$D$56,$F$2:$G$48,2,FALSE)+ROW()-2)),\"\")","v":{"$error":"#N/A"}},{"$f":"IF(INDIRECT(\"c\" & (VLOOKUP(Rebalance!$D$57,$F$2:$G$48,2,FALSE)+ROW()-2))=Rebalance!$D$57,INDIRECT(\"a\" & (VLOOKUP(Rebalance!$D$57,$F$2:$G$48,2,FALSE)+ROW()-2)),\"\")","v":{"$error":"#N/A"}},{"$f":"IF(INDIRECT(\"c\" & (VLOOKUP(Rebalance!$D$58,$F$2:$G$48,2,FALSE)+ROW()-2))=Rebalance!$D$58,INDIRECT(\"a\" & (VLOOKUP(Rebalance!$D$58,$F$2:$G$48,2,FALSE)+ROW()-2)),\"\")","v":{"$error":"#N/A"}},{"$f":"IF(INDIRECT(\"c\" & (VLOOKUP(Rebalance!$D$59,$F$2:$G$48,2,FALSE)+ROW()-2))=Rebalance!$D$59,INDIRECT(\"a\" & (VLOOKUP(Rebalance!$D$59,$F$2:$G$48,2,FALSE)+ROW()-2)),\"\")","v":{"$error":"#N/A"}},{"$f":"IF(INDIRECT(\"c\" & (VLOOKUP(Rebalance!$D$60,$F$2:$G$48,2,FALSE)+ROW()-2))=Rebalance!$D$60,INDIRECT(\"a\" & (VLOOKUP(Rebalance!$D$60,$F$2:$G$48,2,FALSE)+ROW()-2)),\"\")","v":{"$error":"#N/A"}},{"$f":"IF(INDIRECT(\"c\" & (VLOOKUP(Rebalance!$D$61,$F$2:$G$48,2,FALSE)+ROW()-2))=Rebalance!$D$61,INDIRECT(\"a\" & (VLOOKUP(Rebalance!$D$61,$F$2:$G$48,2,FALSE)+ROW()-2)),\"\")","v":{"$error":"#N/A"}},{"$f":"IF(INDIRECT(\"c\" & (VLOOKUP(Rebalance!$D$62,$F$2:$G$48,2,FALSE)+ROW()-2))=Rebalance!$D$62,INDIRECT(\"a\" & (VLOOKUP(Rebalance!$D$62,$F$2:$G$48,2,FALSE)+ROW()-2)),\"\")","v":{"$error":"#N/A"}},{"$f":"IF(INDIRECT(\"c\" & (VLOOKUP(Rebalance!$D$63,$F$2:$G$48,2,FALSE)+ROW()-2))=Rebalance!$D$63,INDIRECT(\"a\" & (VLOOKUP(Rebalance!$D$63,$F$2:$G$48,2,FALSE)+ROW()-2)),\"\")","v":{"$error":"#N/A"}},{"$f":"IF(INDIRECT(\"c\" & (VLOOKUP(Rebalance!$D$64,$F$2:$G$48,2,FALSE)+ROW()-2))=Rebalance!$D$64,INDIRECT(\"a\" & (VLOOKUP(Rebalance!$D$64,$F$2:$G$48,2,FALSE)+ROW()-2)),\"\")","v":{"$error":"#N/A"}},{"$f":"IF(INDIRECT(\"c\" & (VLOOKUP(Rebalance!$D$65,$F$2:$G$48,2,FALSE)+ROW()-2))=Rebalance!$D$65,INDIRECT(\"a\" & (VLOOKUP(Rebalance!$D$65,$F$2:$G$48,2,FALSE)+ROW()-2)),\"\")","v":{"$error":"#N/A"}},{"$f":"IF(INDIRECT(\"c\" & (VLOOKUP(Rebalance!$D$66,$F$2:$G$48,2,FALSE)+ROW()-2))=Rebalance!$D$66,INDIRECT(\"a\" & (VLOOKUP(Rebalance!$D$66,$F$2:$G$48,2,FALSE)+ROW()-2)),\"\")","v":{"$error":"#N/A"}}]
["1NVEST Low Equity Balanced Passive FoF B1","SBFB1","STANLIB Collective Investments",{"$f":"ROW()","v":25},null,"Prescient Management Company Ltd",{"$f":"VLOOKUP(F25,$C$2:$D$599,2,FALSE)","v":436},{"$f":"IF(INDIRECT(\"c\" & (VLOOKUP(Rebalance!$D$26,$F$2:$G$48,2,FALSE)+ROW()-2))=Rebalance!$D$26,INDIRECT(\"a\" & (VLOOKUP(Rebalance!$D$26,$F$2:$G$48,2,FALSE)+ROW()-2)),\"\")","v":{"$error":"#N/A"}},{"$f":"IF(INDIRECT(\"c\" & (VLOOKUP(Rebalance!$D$27,$F$2:$G$48,2,FALSE)+ROW()-2))=Rebalance!$D$27,INDIRECT(\"a\" & (VLOOKUP(Rebalance!$D$27,$F$2:$G$48,2,FALSE)+ROW()-2)),\"\")","v":{"$error":"#N/A"}},{"$f":"IF(INDIRECT(\"c\" & (VLOOKUP(Rebalance!$D$28,$F$2:$G$48,2,FALSE)+ROW()-2))=Rebalance!$D$28,INDIRECT(\"a\" & (VLOOKUP(Rebalance!$D$28,$F$2:$G$48,2,FALSE)+ROW()-2)),\"\")","v":{"$error":"#N/A"}},{"$f":"IF(INDIRECT(\"c\" & (VLOOKUP(Rebalance!$D$29,$F$2:$G$48,2,FALSE)+ROW()-2))=Rebalance!$D$29,INDIRECT(\"a\" & (VLOOKUP(Rebalance!$D$29,$F$2:$G$48,2,FALSE)+ROW()-2)),\"\")","v":{"$error":"#N/A"}},{"$f":"IF(INDIRECT(\"c\" & (VLOOKUP(Rebalance!$D$30,$F$2:$G$48,2,FALSE)+ROW()-2))=Rebalance!$D$30,INDIRECT(\"a\" & (VLOOKUP(Rebalance!$D$30,$F$2:$G$48,2,FALSE)+ROW()-2)),\"\")","v":{"$error":"#N/A"}},{"$f":"IF(INDIRECT(\"c\" & (VLOOKUP(Rebalance!$D$31,$F$2:$G$48,2,FALSE)+ROW()-2))=Rebalance!$D$31,INDIRECT(\"a\" & (VLOOKUP(Rebalance!$D$31,$F$2:$G$48,2,FALSE)+ROW()-2)),\"\")","v":{"$error":"#N/A"}},{"$f":"IF(INDIRECT(\"c\" & (VLOOKUP(Rebalance!$D$32,$F$2:$G$48,2,FALSE)+ROW()-2))=Rebalance!$D$32,INDIRECT(\"a\" & (VLOOKUP(Rebalance!$D$32,$F$2:$G$48,2,FALSE)+ROW()-2)),\"\")","v":{"$error":"#N/A"}},{"$f":"IF(INDIRECT(\"c\" & (VLOOKUP(Rebalance!$D$33,$F$2:$G$48,2,FALSE)+ROW()-2))=Rebalance!$D$33,INDIRECT(\"a\" & (VLOOKUP(Rebalance!$D$33,$F$2:$G$48,2,FALSE)+ROW()-2)),\"\")","v":{"$error":"#N/A"}},{"$f":"IF(INDIRECT(\"c\" & (VLOOKUP(Rebalance!$D$34,$F$2:$G$48,2,FALSE)+ROW()-2))=Rebalance!$D$34,INDIRECT(\"a\" & (VLOOKUP(Rebalance!$D$34,$F$2:$G$48,2,FALSE)+ROW()-2)),\"\")","v":{"$error":"#N/A"}},{"$f":"IF(INDIRECT(\"c\" & (VLOOKUP(Rebalance!$D$35,$F$2:$G$48,2,FALSE)+ROW()-2))=Rebalance!$D$35,INDIRECT(\"a\" & (VLOOKUP(Rebalance!$D$35,$F$2:$G$48,2,FALSE)+ROW()-2)),\"\")","v":{"$error":"#N/A"}},{"$f":"IF(INDIRECT(\"c\" & (VLOOKUP(Rebalance!$D$36,$F$2:$G$48,2,FALSE)+ROW()-2))=Rebalance!$D$36,INDIRECT(\"a\" & (VLOOKUP(Rebalance!$D$36,$F$2:$G$48,2,FALSE)+ROW()-2)),\"\")","v":{"$error":"#N/A"}},{"$f":"IF(INDIRECT(\"c\" & (VLOOKUP(Rebalance!$D$37,$F$2:$G$48,2,FALSE)+ROW()-2))=Rebalance!$D$37,INDIRECT(\"a\" & (VLOOKUP(Rebalance!$D$37,$F$2:$G$48,2,FALSE)+ROW()-2)),\"\")","v":{"$error":"#N/A"}},{"$f":"IF(INDIRECT(\"c\" & (VLOOKUP(Rebalance!$D$38,$F$2:$G$48,2,FALSE)+ROW()-2))=Rebalance!$D$38,INDIRECT(\"a\" & (VLOOKUP(Rebalance!$D$38,$F$2:$G$48,2,FALSE)+ROW()-2)),\"\")","v":{"$error":"#N/A"}},{"$f":"IF(INDIRECT(\"c\" & (VLOOKUP(Rebalance!$D$39,$F$2:$G$48,2,FALSE)+ROW()-2))=Rebalance!$D$39,INDIRECT(\"a\" & (VLOOKUP(Rebalance!$D$39,$F$2:$G$48,2,FALSE)+ROW()-2)),\"\")","v":{"$error":"#N/A"}},{"$f":"IF(INDIRECT(\"c\" & (VLOOKUP(Rebalance!$D$40,$F$2:$G$48,2,FALSE)+ROW()-2))=Rebalance!$D$40,INDIRECT(\"a\" & (VLOOKUP(Rebalance!$D$40,$F$2:$G$48,2,FALSE)+ROW()-2)),\"\")","v":{"$error":"#N/A"}},{"$f":"IF(INDIRECT(\"c\" & (VLOOKUP(Rebalance!$D$52,$F$2:$G$48,2,FALSE)+ROW()-2))=Rebalance!$D$52,INDIRECT(\"a\" & (VLOOKUP(Rebalance!$D$52,$F$2:$G$48,2,FALSE)+ROW()-2)),\"\")","v":{"$error":"#N/A"}},{"$f":"IF(INDIRECT(\"c\" & (VLOOKUP(Rebalance!$D$53,$F$2:$G$48,2,FALSE)+ROW()-2))=Rebalance!$D$53,INDIRECT(\"a\" & (VLOOKUP(Rebalance!$D$53,$F$2:$G$48,2,FALSE)+ROW()-2)),\"\")","v":{"$error":"#N/A"}},{"$f":"IF(INDIRECT(\"c\" & (VLOOKUP(Rebalance!$D$54,$F$2:$G$48,2,FALSE)+ROW()-2))=Rebalance!$D$54,INDIRECT(\"a\" & (VLOOKUP(Rebalance!$D$54,$F$2:$G$48,2,FALSE)+ROW()-2)),\"\")","v":{"$error":"#N/A"}},{"$f":"IF(INDIRECT(\"c\" & (VLOOKUP(Rebalance!$D$55,$F$2:$G$48,2,FALSE)+ROW()-2))=Rebalance!$D$55,INDIRECT(\"a\" & (VLOOKUP(Rebalance!$D$55,$F$2:$G$48,2,FALSE)+ROW()-2)),\"\")","v":{"$error":"#N/A"}},{"$f":"IF(INDIRECT(\"c\" & (VLOOKUP(Rebalance!$D$56,$F$2:$G$48,2,FALSE)+ROW()-2))=Rebalance!$D$56,INDIRECT(\"a\" & (VLOOKUP(Rebalance!$D$56,$F$2:$G$48,2,FALSE)+ROW()-2)),\"\")","v":{"$error":"#N/A"}},{"$f":"IF(INDIRECT(\"c\" & (VLOOKUP(Rebalance!$D$57,$F$2:$G$48,2,FALSE)+ROW()-2))=Rebalance!$D$57,INDIRECT(\"a\" & (VLOOKUP(Rebalance!$D$57,$F$2:$G$48,2,FALSE)+ROW()-2)),\"\")","v":{"$error":"#N/A"}},{"$f":"IF(INDIRECT(\"c\" & (VLOOKUP(Rebalance!$D$58,$F$2:$G$48,2,FALSE)+ROW()-2))=Rebalance!$D$58,INDIRECT(\"a\" & (VLOOKUP(Rebalance!$D$58,$F$2:$G$48,2,FALSE)+ROW()-2)),\"\")","v":{"$error":"#N/A"}},{"$f":"IF(INDIRECT(\"c\" & (VLOOKUP(Rebalance!$D$59,$F$2:$G$48,2,FALSE)+ROW()-2))=Rebalance!$D$59,INDIRECT(\"a\" & (VLOOKUP(Rebalance!$D$59,$F$2:$G$48,2,FALSE)+ROW()-2)),\"\")","v":{"$error":"#N/A"}},{"$f":"IF(INDIRECT(\"c\" & (VLOOKUP(Rebalance!$D$60,$F$2:$G$48,2,FALSE)+ROW()-2))=Rebalance!$D$60,INDIRECT(\"a\" & (VLOOKUP(Rebalance!$D$60,$F$2:$G$48,2,FALSE)+ROW()-2)),\"\")","v":{"$error":"#N/A"}},{"$f":"IF(INDIRECT(\"c\" & (VLOOKUP(Rebalance!$D$61,$F$2:$G$48,2,FALSE)+ROW()-2))=Rebalance!$D$61,INDIRECT(\"a\" & (VLOOKUP(Rebalance!$D$61,$F$2:$G$48,2,FALSE)+ROW()-2)),\"\")","v":{"$error":"#N/A"}},{"$f":"IF(INDIRECT(\"c\" & (VLOOKUP(Rebalance!$D$62,$F$2:$G$48,2,FALSE)+ROW()-2))=Rebalance!$D$62,INDIRECT(\"a\" & (VLOOKUP(Rebalance!$D$62,$F$2:$G$48,2,FALSE)+ROW()-2)),\"\")","v":{"$error":"#N/A"}},{"$f":"IF(INDIRECT(\"c\" & (VLOOKUP(Rebalance!$D$63,$F$2:$G$48,2,FALSE)+ROW()-2))=Rebalance!$D$63,INDIRECT(\"a\" & (VLOOKUP(Rebalance!$D$63,$F$2:$G$48,2,FALSE)+ROW()-2)),\"\")","v":{"$error":"#N/A"}},{"$f":"IF(INDIRECT(\"c\" & (VLOOKUP(Rebalance!$D$64,$F$2:$G$48,2,FALSE)+ROW()-2))=Rebalance!$D$64,INDIRECT(\"a\" & (VLOOKUP(Rebalance!$D$64,$F$2:$G$48,2,FALSE)+ROW()-2)),\"\")","v":{"$error":"#N/A"}},{"$f":"IF(INDIRECT(\"c\" & (VLOOKUP(Rebalance!$D$65,$F$2:$G$48,2,FALSE)+ROW()-2))=Rebalance!$D$65,INDIRECT(\"a\" & (VLOOKUP(Rebalance!$D$65,$F$2:$G$48,2,FALSE)+ROW()-2)),\"\")","v":{"$error":"#N/A"}},{"$f":"IF(INDIRECT(\"c\" & (VLOOKUP(Rebalance!$D$66,$F$2:$G$48,2,FALSE)+ROW()-2))=Rebalance!$D$66,INDIRECT(\"a\" & (VLOOKUP(Rebalance!$D$66,$F$2:$G$48,2,FALSE)+ROW()-2)),\"\")","v":{"$error":"#N/A"}}]
["1NVEST MSCI World Index Feeder Fund B1","SMWB1","STANLIB Collective Investments",{"$f":"ROW()","v":26},null,"Prudential Management",{"$f":"VLOOKUP(F26,$C$2:$D$599,2,FALSE)","v":472},{"$f":"IF(INDIRECT(\"c\" & (VLOOKUP(Rebalance!$D$26,$F$2:$G$48,2,FALSE)+ROW()-2))=Rebalance!$D$26,INDIRECT(\"a\" & (VLOOKUP(Rebalance!$D$26,$F$2:$G$48,2,FALSE)+ROW()-2)),\"\")","v":{"$error":"#N/A"}},{"$f":"IF(INDIRECT(\"c\" & (VLOOKUP(Rebalance!$D$27,$F$2:$G$48,2,FALSE)+ROW()-2))=Rebalance!$D$27,INDIRECT(\"a\" & (VLOOKUP(Rebalance!$D$27,$F$2:$G$48,2,FALSE)+ROW()-2)),\"\")","v":{"$error":"#N/A"}},{"$f":"IF(INDIRECT(\"c\" & (VLOOKUP(Rebalance!$D$28,$F$2:$G$48,2,FALSE)+ROW()-2))=Rebalance!$D$28,INDIRECT(\"a\" & (VLOOKUP(Rebalance!$D$28,$F$2:$G$48,2,FALSE)+ROW()-2)),\"\")","v":{"$error":"#N/A"}},{"$f":"IF(INDIRECT(\"c\" & (VLOOKUP(Rebalance!$D$29,$F$2:$G$48,2,FALSE)+ROW()-2))=Rebalance!$D$29,INDIRECT(\"a\" & (VLOOKUP(Rebalance!$D$29,$F$2:$G$48,2,FALSE)+ROW()-2)),\"\")","v":{"$error":"#N/A"}},{"$f":"IF(INDIRECT(\"c\" & (VLOOKUP(Rebalance!$D$30,$F$2:$G$48,2,FALSE)+ROW()-2))=Rebalance!$D$30,INDIRECT(\"a\" & (VLOOKUP(Rebalance!$D$30,$F$2:$G$48,2,FALSE)+ROW()-2)),\"\")","v":{"$error":"#N/A"}},{"$f":"IF(INDIRECT(\"c\" & (VLOOKUP(Rebalance!$D$31,$F$2:$G$48,2,FALSE)+ROW()-2))=Rebalance!$D$31,INDIRECT(\"a\" & (VLOOKUP(Rebalance!$D$31,$F$2:$G$48,2,FALSE)+ROW()-2)),\"\")","v":{"$error":"#N/A"}},{"$f":"IF(INDIRECT(\"c\" & (VLOOKUP(Rebalance!$D$32,$F$2:$G$48,2,FALSE)+ROW()-2))=Rebalance!$D$32,INDIRECT(\"a\" & (VLOOKUP(Rebalance!$D$32,$F$2:$G$48,2,FALSE)+ROW()-2)),\"\")","v":{"$error":"#N/A"}},{"$f":"IF(INDIRECT(\"c\" & (VLOOKUP(Rebalance!$D$33,$F$2:$G$48,2,FALSE)+ROW()-2))=Rebalance!$D$33,INDIRECT(\"a\" & (VLOOKUP(Rebalance!$D$33,$F$2:$G$48,2,FALSE)+ROW()-2)),\"\")","v":{"$error":"#N/A"}},{"$f":"IF(INDIRECT(\"c\" & (VLOOKUP(Rebalance!$D$34,$F$2:$G$48,2,FALSE)+ROW()-2))=Rebalance!$D$34,INDIRECT(\"a\" & (VLOOKUP(Rebalance!$D$34,$F$2:$G$48,2,FALSE)+ROW()-2)),\"\")","v":{"$error":"#N/A"}},{"$f":"IF(INDIRECT(\"c\" & (VLOOKUP(Rebalance!$D$35,$F$2:$G$48,2,FALSE)+ROW()-2))=Rebalance!$D$35,INDIRECT(\"a\" & (VLOOKUP(Rebalance!$D$35,$F$2:$G$48,2,FALSE)+ROW()-2)),\"\")","v":{"$error":"#N/A"}},{"$f":"IF(INDIRECT(\"c\" & (VLOOKUP(Rebalance!$D$36,$F$2:$G$48,2,FALSE)+ROW()-2))=Rebalance!$D$36,INDIRECT(\"a\" & (VLOOKUP(Rebalance!$D$36,$F$2:$G$48,2,FALSE)+ROW()-2)),\"\")","v":{"$error":"#N/A"}},{"$f":"IF(INDIRECT(\"c\" & (VLOOKUP(Rebalance!$D$37,$F$2:$G$48,2,FALSE)+ROW()-2))=Rebalance!$D$37,INDIRECT(\"a\" & (VLOOKUP(Rebalance!$D$37,$F$2:$G$48,2,FALSE)+ROW()-2)),\"\")","v":{"$error":"#N/A"}},{"$f":"IF(INDIRECT(\"c\" & (VLOOKUP(Rebalance!$D$38,$F$2:$G$48,2,FALSE)+ROW()-2))=Rebalance!$D$38,INDIRECT(\"a\" & (VLOOKUP(Rebalance!$D$38,$F$2:$G$48,2,FALSE)+ROW()-2)),\"\")","v":{"$error":"#N/A"}},{"$f":"IF(INDIRECT(\"c\" & (VLOOKUP(Rebalance!$D$39,$F$2:$G$48,2,FALSE)+ROW()-2))=Rebalance!$D$39,INDIRECT(\"a\" & (VLOOKUP(Rebalance!$D$39,$F$2:$G$48,2,FALSE)+ROW()-2)),\"\")","v":{"$error":"#N/A"}},{"$f":"IF(INDIRECT(\"c\" & (VLOOKUP(Rebalance!$D$40,$F$2:$G$48,2,FALSE)+ROW()-2))=Rebalance!$D$40,INDIRECT(\"a\" & (VLOOKUP(Rebalance!$D$40,$F$2:$G$48,2,FALSE)+ROW()-2)),\"\")","v":{"$error":"#N/A"}},{"$f":"IF(INDIRECT(\"c\" & (VLOOKUP(Rebalance!$D$52,$F$2:$G$48,2,FALSE)+ROW()-2))=Rebalance!$D$52,INDIRECT(\"a\" & (VLOOKUP(Rebalance!$D$52,$F$2:$G$48,2,FALSE)+ROW()-2)),\"\")","v":{"$error":"#N/A"}},{"$f":"IF(INDIRECT(\"c\" & (VLOOKUP(Rebalance!$D$53,$F$2:$G$48,2,FALSE)+ROW()-2))=Rebalance!$D$53,INDIRECT(\"a\" & (VLOOKUP(Rebalance!$D$53,$F$2:$G$48,2,FALSE)+ROW()-2)),\"\")","v":{"$error":"#N/A"}},{"$f":"IF(INDIRECT(\"c\" & (VLOOKUP(Rebalance!$D$54,$F$2:$G$48,2,FALSE)+ROW()-2))=Rebalance!$D$54,INDIRECT(\"a\" & (VLOOKUP(Rebalance!$D$54,$F$2:$G$48,2,FALSE)+ROW()-2)),\"\")","v":{"$error":"#N/A"}},{"$f":"IF(INDIRECT(\"c\" & (VLOOKUP(Rebalance!$D$55,$F$2:$G$48,2,FALSE)+ROW()-2))=Rebalance!$D$55,INDIRECT(\"a\" & (VLOOKUP(Rebalance!$D$55,$F$2:$G$48,2,FALSE)+ROW()-2)),\"\")","v":{"$error":"#N/A"}},{"$f":"IF(INDIRECT(\"c\" & (VLOOKUP(Rebalance!$D$56,$F$2:$G$48,2,FALSE)+ROW()-2))=Rebalance!$D$56,INDIRECT(\"a\" & (VLOOKUP(Rebalance!$D$56,$F$2:$G$48,2,FALSE)+ROW()-2)),\"\")","v":{"$error":"#N/A"}},{"$f":"IF(INDIRECT(\"c\" & (VLOOKUP(Rebalance!$D$57,$F$2:$G$48,2,FALSE)+ROW()-2))=Rebalance!$D$57,INDIRECT(\"a\" & (VLOOKUP(Rebalance!$D$57,$F$2:$G$48,2,FALSE)+ROW()-2)),\"\")","v":{"$error":"#N/A"}},{"$f":"IF(INDIRECT(\"c\" & (VLOOKUP(Rebalance!$D$58,$F$2:$G$48,2,FALSE)+ROW()-2))=Rebalance!$D$58,INDIRECT(\"a\" & (VLOOKUP(Rebalance!$D$58,$F$2:$G$48,2,FALSE)+ROW()-2)),\"\")","v":{"$error":"#N/A"}},{"$f":"IF(INDIRECT(\"c\" & (VLOOKUP(Rebalance!$D$59,$F$2:$G$48,2,FALSE)+ROW()-2))=Rebalance!$D$59,INDIRECT(\"a\" & (VLOOKUP(Rebalance!$D$59,$F$2:$G$48,2,FALSE)+ROW()-2)),\"\")","v":{"$error":"#N/A"}},{"$f":"IF(INDIRECT(\"c\" & (VLOOKUP(Rebalance!$D$60,$F$2:$G$48,2,FALSE)+ROW()-2))=Rebalance!$D$60,INDIRECT(\"a\" & (VLOOKUP(Rebalance!$D$60,$F$2:$G$48,2,FALSE)+ROW()-2)),\"\")","v":{"$error":"#N/A"}},{"$f":"IF(INDIRECT(\"c\" & (VLOOKUP(Rebalance!$D$61,$F$2:$G$48,2,FALSE)+ROW()-2))=Rebalance!$D$61,INDIRECT(\"a\" & (VLOOKUP(Rebalance!$D$61,$F$2:$G$48,2,FALSE)+ROW()-2)),\"\")","v":{"$error":"#N/A"}},{"$f":"IF(INDIRECT(\"c\" & (VLOOKUP(Rebalance!$D$62,$F$2:$G$48,2,FALSE)+ROW()-2))=Rebalance!$D$62,INDIRECT(\"a\" & (VLOOKUP(Rebalance!$D$62,$F$2:$G$48,2,FALSE)+ROW()-2)),\"\")","v":{"$error":"#N/A"}},{"$f":"IF(INDIRECT(\"c\" & (VLOOKUP(Rebalance!$D$63,$F$2:$G$48,2,FALSE)+ROW()-2))=Rebalance!$D$63,INDIRECT(\"a\" & (VLOOKUP(Rebalance!$D$63,$F$2:$G$48,2,FALSE)+ROW()-2)),\"\")","v":{"$error":"#N/A"}},{"$f":"IF(INDIRECT(\"c\" & (VLOOKUP(Rebalance!$D$64,$F$2:$G$48,2,FALSE)+ROW()-2))=Rebalance!$D$64,INDIRECT(\"a\" & (VLOOKUP(Rebalance!$D$64,$F$2:$G$48,2,FALSE)+ROW()-2)),\"\")","v":{"$error":"#N/A"}},{"$f":"IF(INDIRECT(\"c\" & (VLOOKUP(Rebalance!$D$65,$F$2:$G$48,2,FALSE)+ROW()-2))=Rebalance!$D$65,INDIRECT(\"a\" & (VLOOKUP(Rebalance!$D$65,$F$2:$G$48,2,FALSE)+ROW()-2)),\"\")","v":{"$error":"#N/A"}},{"$f":"IF(INDIRECT(\"c\" & (VLOOKUP(Rebalance!$D$66,$F$2:$G$48,2,FALSE)+ROW()-2))=Rebalance!$D$66,INDIRECT(\"a\" & (VLOOKUP(Rebalance!$D$66,$F$2:$G$48,2,FALSE)+ROW()-2)),\"\")","v":{"$error":"#N/A"}}]
["1NVEST S&P500 Index Feeder Fund B1","SLSIB1","STANLIB Collective Investments",{"$f":"ROW()","v":27},null,"PSG Collective Investments Ltd",{"$f":"VLOOKUP(F27,$C$2:$D$599,2,FALSE)","v":480},{"$f":"IF(INDIRECT(\"c\" & (VLOOKUP(Rebalance!$D$26,$F$2:$G$48,2,FALSE)+ROW()-2))=Rebalance!$D$26,INDIRECT(\"a\" & (VLOOKUP(Rebalance!$D$26,$F$2:$G$48,2,FALSE)+ROW()-2)),\"\")","v":{"$error":"#N/A"}},{"$f":"IF(INDIRECT(\"c\" & (VLOOKUP(Rebalance!$D$27,$F$2:$G$48,2,FALSE)+ROW()-2))=Rebalance!$D$27,INDIRECT(\"a\" & (VLOOKUP(Rebalance!$D$27,$F$2:$G$48,2,FALSE)+ROW()-2)),\"\")","v":{"$error":"#N/A"}},{"$f":"IF(INDIRECT(\"c\" & (VLOOKUP(Rebalance!$D$28,$F$2:$G$48,2,FALSE)+ROW()-2))=Rebalance!$D$28,INDIRECT(\"a\" & (VLOOKUP(Rebalance!$D$28,$F$2:$G$48,2,FALSE)+ROW()-2)),\"\")","v":{"$error":"#N/A"}},{"$f":"IF(INDIRECT(\"c\" & (VLOOKUP(Rebalance!$D$29,$F$2:$G$48,2,FALSE)+ROW()-2))=Rebalance!$D$29,INDIRECT(\"a\" & (VLOOKUP(Rebalance!$D$29,$F$2:$G$48,2,FALSE)+ROW()-2)),\"\")","v":{"$error":"#N/A"}},{"$f":"IF(INDIRECT(\"c\" & (VLOOKUP(Rebalance!$D$30,$F$2:$G$48,2,FALSE)+ROW()-2))=Rebalance!$D$30,INDIRECT(\"a\" & (VLOOKUP(Rebalance!$D$30,$F$2:$G$48,2,FALSE)+ROW()-2)),\"\")","v":{"$error":"#N/A"}},{"$f":"IF(INDIRECT(\"c\" & (VLOOKUP(Rebalance!$D$31,$F$2:$G$48,2,FALSE)+ROW()-2))=Rebalance!$D$31,INDIRECT(\"a\" & (VLOOKUP(Rebalance!$D$31,$F$2:$G$48,2,FALSE)+ROW()-2)),\"\")","v":{"$error":"#N/A"}},{"$f":"IF(INDIRECT(\"c\" & (VLOOKUP(Rebalance!$D$32,$F$2:$G$48,2,FALSE)+ROW()-2))=Rebalance!$D$32,INDIRECT(\"a\" & (VLOOKUP(Rebalance!$D$32,$F$2:$G$48,2,FALSE)+ROW()-2)),\"\")","v":{"$error":"#N/A"}},{"$f":"IF(INDIRECT(\"c\" & (VLOOKUP(Rebalance!$D$33,$F$2:$G$48,2,FALSE)+ROW()-2))=Rebalance!$D$33,INDIRECT(\"a\" & (VLOOKUP(Rebalance!$D$33,$F$2:$G$48,2,FALSE)+ROW()-2)),\"\")","v":{"$error":"#N/A"}},{"$f":"IF(INDIRECT(\"c\" & (VLOOKUP(Rebalance!$D$34,$F$2:$G$48,2,FALSE)+ROW()-2))=Rebalance!$D$34,INDIRECT(\"a\" & (VLOOKUP(Rebalance!$D$34,$F$2:$G$48,2,FALSE)+ROW()-2)),\"\")","v":{"$error":"#N/A"}},{"$f":"IF(INDIRECT(\"c\" & (VLOOKUP(Rebalance!$D$35,$F$2:$G$48,2,FALSE)+ROW()-2))=Rebalance!$D$35,INDIRECT(\"a\" & (VLOOKUP(Rebalance!$D$35,$F$2:$G$48,2,FALSE)+ROW()-2)),\"\")","v":{"$error":"#N/A"}},{"$f":"IF(INDIRECT(\"c\" & (VLOOKUP(Rebalance!$D$36,$F$2:$G$48,2,FALSE)+ROW()-2))=Rebalance!$D$36,INDIRECT(\"a\" & (VLOOKUP(Rebalance!$D$36,$F$2:$G$48,2,FALSE)+ROW()-2)),\"\")","v":{"$error":"#N/A"}},{"$f":"IF(INDIRECT(\"c\" & (VLOOKUP(Rebalance!$D$37,$F$2:$G$48,2,FALSE)+ROW()-2))=Rebalance!$D$37,INDIRECT(\"a\" & (VLOOKUP(Rebalance!$D$37,$F$2:$G$48,2,FALSE)+ROW()-2)),\"\")","v":{"$error":"#N/A"}},{"$f":"IF(INDIRECT(\"c\" & (VLOOKUP(Rebalance!$D$38,$F$2:$G$48,2,FALSE)+ROW()-2))=Rebalance!$D$38,INDIRECT(\"a\" & (VLOOKUP(Rebalance!$D$38,$F$2:$G$48,2,FALSE)+ROW()-2)),\"\")","v":{"$error":"#N/A"}},{"$f":"IF(INDIRECT(\"c\" & (VLOOKUP(Rebalance!$D$39,$F$2:$G$48,2,FALSE)+ROW()-2))=Rebalance!$D$39,INDIRECT(\"a\" & (VLOOKUP(Rebalance!$D$39,$F$2:$G$48,2,FALSE)+ROW()-2)),\"\")","v":{"$error":"#N/A"}},{"$f":"IF(INDIRECT(\"c\" & (VLOOKUP(Rebalance!$D$40,$F$2:$G$48,2,FALSE)+ROW()-2))=Rebalance!$D$40,INDIRECT(\"a\" & (VLOOKUP(Rebalance!$D$40,$F$2:$G$48,2,FALSE)+ROW()-2)),\"\")","v":{"$error":"#N/A"}},{"$f":"IF(INDIRECT(\"c\" & (VLOOKUP(Rebalance!$D$52,$F$2:$G$48,2,FALSE)+ROW()-2))=Rebalance!$D$52,INDIRECT(\"a\" & (VLOOKUP(Rebalance!$D$52,$F$2:$G$48,2,FALSE)+ROW()-2)),\"\")","v":{"$error":"#N/A"}},{"$f":"IF(INDIRECT(\"c\" & (VLOOKUP(Rebalance!$D$53,$F$2:$G$48,2,FALSE)+ROW()-2))=Rebalance!$D$53,INDIRECT(\"a\" & (VLOOKUP(Rebalance!$D$53,$F$2:$G$48,2,FALSE)+ROW()-2)),\"\")","v":{"$error":"#N/A"}},{"$f":"IF(INDIRECT(\"c\" & (VLOOKUP(Rebalance!$D$54,$F$2:$G$48,2,FALSE)+ROW()-2))=Rebalance!$D$54,INDIRECT(\"a\" & (VLOOKUP(Rebalance!$D$54,$F$2:$G$48,2,FALSE)+ROW()-2)),\"\")","v":{"$error":"#N/A"}},{"$f":"IF(INDIRECT(\"c\" & (VLOOKUP(Rebalance!$D$55,$F$2:$G$48,2,FALSE)+ROW()-2))=Rebalance!$D$55,INDIRECT(\"a\" & (VLOOKUP(Rebalance!$D$55,$F$2:$G$48,2,FALSE)+ROW()-2)),\"\")","v":{"$error":"#N/A"}},{"$f":"IF(INDIRECT(\"c\" & (VLOOKUP(Rebalance!$D$56,$F$2:$G$48,2,FALSE)+ROW()-2))=Rebalance!$D$56,INDIRECT(\"a\" & (VLOOKUP(Rebalance!$D$56,$F$2:$G$48,2,FALSE)+ROW()-2)),\"\")","v":{"$error":"#N/A"}},{"$f":"IF(INDIRECT(\"c\" & (VLOOKUP(Rebalance!$D$57,$F$2:$G$48,2,FALSE)+ROW()-2))=Rebalance!$D$57,INDIRECT(\"a\" & (VLOOKUP(Rebalance!$D$57,$F$2:$G$48,2,FALSE)+ROW()-2)),\"\")","v":{"$error":"#N/A"}},{"$f":"IF(INDIRECT(\"c\" & (VLOOKUP(Rebalance!$D$58,$F$2:$G$48,2,FALSE)+ROW()-2))=Rebalance!$D$58,INDIRECT(\"a\" & (VLOOKUP(Rebalance!$D$58,$F$2:$G$48,2,FALSE)+ROW()-2)),\"\")","v":{"$error":"#N/A"}},{"$f":"IF(INDIRECT(\"c\" & (VLOOKUP(Rebalance!$D$59,$F$2:$G$48,2,FALSE)+ROW()-2))=Rebalance!$D$59,INDIRECT(\"a\" & (VLOOKUP(Rebalance!$D$59,$F$2:$G$48,2,FALSE)+ROW()-2)),\"\")","v":{"$error":"#N/A"}},{"$f":"IF(INDIRECT(\"c\" & (VLOOKUP(Rebalance!$D$60,$F$2:$G$48,2,FALSE)+ROW()-2))=Rebalance!$D$60,INDIRECT(\"a\" & (VLOOKUP(Rebalance!$D$60,$F$2:$G$48,2,FALSE)+ROW()-2)),\"\")","v":{"$error":"#N/A"}},{"$f":"IF(INDIRECT(\"c\" & (VLOOKUP(Rebalance!$D$61,$F$2:$G$48,2,FALSE)+ROW()-2))=Rebalance!$D$61,INDIRECT(\"a\" & (VLOOKUP(Rebalance!$D$61,$F$2:$G$48,2,FALSE)+ROW()-2)),\"\")","v":{"$error":"#N/A"}},{"$f":"IF(INDIRECT(\"c\" & (VLOOKUP(Rebalance!$D$62,$F$2:$G$48,2,FALSE)+ROW()-2))=Rebalance!$D$62,INDIRECT(\"a\" & (VLOOKUP(Rebalance!$D$62,$F$2:$G$48,2,FALSE)+ROW()-2)),\"\")","v":{"$error":"#N/A"}},{"$f":"IF(INDIRECT(\"c\" & (VLOOKUP(Rebalance!$D$63,$F$2:$G$48,2,FALSE)+ROW()-2))=Rebalance!$D$63,INDIRECT(\"a\" & (VLOOKUP(Rebalance!$D$63,$F$2:$G$48,2,FALSE)+ROW()-2)),\"\")","v":{"$error":"#N/A"}},{"$f":"IF(INDIRECT(\"c\" & (VLOOKUP(Rebalance!$D$64,$F$2:$G$48,2,FALSE)+ROW()-2))=Rebalance!$D$64,INDIRECT(\"a\" & (VLOOKUP(Rebalance!$D$64,$F$2:$G$48,2,FALSE)+ROW()-2)),\"\")","v":{"$error":"#N/A"}},{"$f":"IF(INDIRECT(\"c\" & (VLOOKUP(Rebalance!$D$65,$F$2:$G$48,2,FALSE)+ROW()-2))=Rebalance!$D$65,INDIRECT(\"a\" & (VLOOKUP(Rebalance!$D$65,$F$2:$G$48,2,FALSE)+ROW()-2)),\"\")","v":{"$error":"#N/A"}},{"$f":"IF(INDIRECT(\"c\" & (VLOOKUP(Rebalance!$D$66,$F$2:$G$48,2,FALSE)+ROW()-2))=Rebalance!$D$66,INDIRECT(\"a\" & (VLOOKUP(Rebalance!$D$66,$F$2:$G$48,2,FALSE)+ROW()-2)),\"\")","v":{"$error":"#N/A"}}]
["1NVEST S&P500 Info Tech Index Feeder Fund B1","SLITB1","STANLIB Collective Investments",{"$f":"ROW()","v":28},null,"Rezco Collective Investments Ltd",{"$f":"VLOOKUP(F28,$C$2:$D$599,2,FALSE)","v":500},{"$f":"IF(INDIRECT(\"c\" & (VLOOKUP(Rebalance!$D$26,$F$2:$G$48,2,FALSE)+ROW()-2))=Rebalance!$D$26,INDIRECT(\"a\" & (VLOOKUP(Rebalance!$D$26,$F$2:$G$48,2,FALSE)+ROW()-2)),\"\")","v":{"$error":"#N/A"}},{"$f":"IF(INDIRECT(\"c\" & (VLOOKUP(Rebalance!$D$27,$F$2:$G$48,2,FALSE)+ROW()-2))=Rebalance!$D$27,INDIRECT(\"a\" & (VLOOKUP(Rebalance!$D$27,$F$2:$G$48,2,FALSE)+ROW()-2)),\"\")","v":{"$error":"#N/A"}},{"$f":"IF(INDIRECT(\"c\" & (VLOOKUP(Rebalance!$D$28,$F$2:$G$48,2,FALSE)+ROW()-2))=Rebalance!$D$28,INDIRECT(\"a\" & (VLOOKUP(Rebalance!$D$28,$F$2:$G$48,2,FALSE)+ROW()-2)),\"\")","v":{"$error":"#N/A"}},{"$f":"IF(INDIRECT(\"c\" & (VLOOKUP(Rebalance!$D$29,$F$2:$G$48,2,FALSE)+ROW()-2))=Rebalance!$D$29,INDIRECT(\"a\" & (VLOOKUP(Rebalance!$D$29,$F$2:$G$48,2,FALSE)+ROW()-2)),\"\")","v":{"$error":"#N/A"}},{"$f":"IF(INDIRECT(\"c\" & (VLOOKUP(Rebalance!$D$30,$F$2:$G$48,2,FALSE)+ROW()-2))=Rebalance!$D$30,INDIRECT(\"a\" & (VLOOKUP(Rebalance!$D$30,$F$2:$G$48,2,FALSE)+ROW()-2)),\"\")","v":{"$error":"#N/A"}},{"$f":"IF(INDIRECT(\"c\" & (VLOOKUP(Rebalance!$D$31,$F$2:$G$48,2,FALSE)+ROW()-2))=Rebalance!$D$31,INDIRECT(\"a\" & (VLOOKUP(Rebalance!$D$31,$F$2:$G$48,2,FALSE)+ROW()-2)),\"\")","v":{"$error":"#N/A"}},{"$f":"IF(INDIRECT(\"c\" & (VLOOKUP(Rebalance!$D$32,$F$2:$G$48,2,FALSE)+ROW()-2))=Rebalance!$D$32,INDIRECT(\"a\" & (VLOOKUP(Rebalance!$D$32,$F$2:$G$48,2,FALSE)+ROW()-2)),\"\")","v":{"$error":"#N/A"}},{"$f":"IF(INDIRECT(\"c\" & (VLOOKUP(Rebalance!$D$33,$F$2:$G$48,2,FALSE)+ROW()-2))=Rebalance!$D$33,INDIRECT(\"a\" & (VLOOKUP(Rebalance!$D$33,$F$2:$G$48,2,FALSE)+ROW()-2)),\"\")","v":{"$error":"#N/A"}},{"$f":"IF(INDIRECT(\"c\" & (VLOOKUP(Rebalance!$D$34,$F$2:$G$48,2,FALSE)+ROW()-2))=Rebalance!$D$34,INDIRECT(\"a\" & (VLOOKUP(Rebalance!$D$34,$F$2:$G$48,2,FALSE)+ROW()-2)),\"\")","v":{"$error":"#N/A"}},{"$f":"IF(INDIRECT(\"c\" & (VLOOKUP(Rebalance!$D$35,$F$2:$G$48,2,FALSE)+ROW()-2))=Rebalance!$D$35,INDIRECT(\"a\" & (VLOOKUP(Rebalance!$D$35,$F$2:$G$48,2,FALSE)+ROW()-2)),\"\")","v":{"$error":"#N/A"}},{"$f":"IF(INDIRECT(\"c\" & (VLOOKUP(Rebalance!$D$36,$F$2:$G$48,2,FALSE)+ROW()-2))=Rebalance!$D$36,INDIRECT(\"a\" & (VLOOKUP(Rebalance!$D$36,$F$2:$G$48,2,FALSE)+ROW()-2)),\"\")","v":{"$error":"#N/A"}},{"$f":"IF(INDIRECT(\"c\" & (VLOOKUP(Rebalance!$D$37,$F$2:$G$48,2,FALSE)+ROW()-2))=Rebalance!$D$37,INDIRECT(\"a\" & (VLOOKUP(Rebalance!$D$37,$F$2:$G$48,2,FALSE)+ROW()-2)),\"\")","v":{"$error":"#N/A"}},{"$f":"IF(INDIRECT(\"c\" & (VLOOKUP(Rebalance!$D$38,$F$2:$G$48,2,FALSE)+ROW()-2))=Rebalance!$D$38,INDIRECT(\"a\" & (VLOOKUP(Rebalance!$D$38,$F$2:$G$48,2,FALSE)+ROW()-2)),\"\")","v":{"$error":"#N/A"}},{"$f":"IF(INDIRECT(\"c\" & (VLOOKUP(Rebalance!$D$39,$F$2:$G$48,2,FALSE)+ROW()-2))=Rebalance!$D$39,INDIRECT(\"a\" & (VLOOKUP(Rebalance!$D$39,$F$2:$G$48,2,FALSE)+ROW()-2)),\"\")","v":{"$error":"#N/A"}},{"$f":"IF(INDIRECT(\"c\" & (VLOOKUP(Rebalance!$D$40,$F$2:$G$48,2,FALSE)+ROW()-2))=Rebalance!$D$40,INDIRECT(\"a\" & (VLOOKUP(Rebalance!$D$40,$F$2:$G$48,2,FALSE)+ROW()-2)),\"\")","v":{"$error":"#N/A"}},{"$f":"IF(INDIRECT(\"c\" & (VLOOKUP(Rebalance!$D$52,$F$2:$G$48,2,FALSE)+ROW()-2))=Rebalance!$D$52,INDIRECT(\"a\" & (VLOOKUP(Rebalance!$D$52,$F$2:$G$48,2,FALSE)+ROW()-2)),\"\")","v":{"$error":"#N/A"}},{"$f":"IF(INDIRECT(\"c\" & (VLOOKUP(Rebalance!$D$53,$F$2:$G$48,2,FALSE)+ROW()-2))=Rebalance!$D$53,INDIRECT(\"a\" & (VLOOKUP(Rebalance!$D$53,$F$2:$G$48,2,FALSE)+ROW()-2)),\"\")","v":{"$error":"#N/A"}},{"$f":"IF(INDIRECT(\"c\" & (VLOOKUP(Rebalance!$D$54,$F$2:$G$48,2,FALSE)+ROW()-2))=Rebalance!$D$54,INDIRECT(\"a\" & (VLOOKUP(Rebalance!$D$54,$F$2:$G$48,2,FALSE)+ROW()-2)),\"\")","v":{"$error":"#N/A"}},{"$f":"IF(INDIRECT(\"c\" & (VLOOKUP(Rebalance!$D$55,$F$2:$G$48,2,FALSE)+ROW()-2))=Rebalance!$D$55,INDIRECT(\"a\" & (VLOOKUP(Rebalance!$D$55,$F$2:$G$48,2,FALSE)+ROW()-2)),\"\")","v":{"$error":"#N/A"}},{"$f":"IF(INDIRECT(\"c\" & (VLOOKUP(Rebalance!$D$56,$F$2:$G$48,2,FALSE)+ROW()-2))=Rebalance!$D$56,INDIRECT(\"a\" & (VLOOKUP(Rebalance!$D$56,$F$2:$G$48,2,FALSE)+ROW()-2)),\"\")","v":{"$error":"#N/A"}},{"$f":"IF(INDIRECT(\"c\" & (VLOOKUP(Rebalance!$D$57,$F$2:$G$48,2,FALSE)+ROW()-2))=Rebalance!$D$57,INDIRECT(\"a\" & (VLOOKUP(Rebalance!$D$57,$F$2:$G$48,2,FALSE)+ROW()-2)),\"\")","v":{"$error":"#N/A"}},{"$f":"IF(INDIRECT(\"c\" & (VLOOKUP(Rebalance!$D$58,$F$2:$G$48,2,FALSE)+ROW()-2))=Rebalance!$D$58,INDIRECT(\"a\" & (VLOOKUP(Rebalance!$D$58,$F$2:$G$48,2,FALSE)+ROW()-2)),\"\")","v":{"$error":"#N/A"}},{"$f":"IF(INDIRECT(\"c\" & (VLOOKUP(Rebalance!$D$59,$F$2:$G$48,2,FALSE)+ROW()-2))=Rebalance!$D$59,INDIRECT(\"a\" & (VLOOKUP(Rebalance!$D$59,$F$2:$G$48,2,FALSE)+ROW()-2)),\"\")","v":{"$error":"#N/A"}},{"$f":"IF(INDIRECT(\"c\" & (VLOOKUP(Rebalance!$D$60,$F$2:$G$48,2,FALSE)+ROW()-2))=Rebalance!$D$60,INDIRECT(\"a\" & (VLOOKUP(Rebalance!$D$60,$F$2:$G$48,2,FALSE)+ROW()-2)),\"\")","v":{"$error":"#N/A"}},{"$f":"IF(INDIRECT(\"c\" & (VLOOKUP(Rebalance!$D$61,$F$2:$G$48,2,FALSE)+ROW()-2))=Rebalance!$D$61,INDIRECT(\"a\" & (VLOOKUP(Rebalance!$D$61,$F$2:$G$48,2,FALSE)+ROW()-2)),\"\")","v":{"$error":"#N/A"}},{"$f":"IF(INDIRECT(\"c\" & (VLOOKUP(Rebalance!$D$62,$F$2:$G$48,2,FALSE)+ROW()-2))=Rebalance!$D$62,INDIRECT(\"a\" & (VLOOKUP(Rebalance!$D$62,$F$2:$G$48,2,FALSE)+ROW()-2)),\"\")","v":{"$error":"#N/A"}},{"$f":"IF(INDIRECT(\"c\" & (VLOOKUP(Rebalance!$D$63,$F$2:$G$48,2,FALSE)+ROW()-2))=Rebalance!$D$63,INDIRECT(\"a\" & (VLOOKUP(Rebalance!$D$63,$F$2:$G$48,2,FALSE)+ROW()-2)),\"\")","v":{"$error":"#N/A"}},{"$f":"IF(INDIRECT(\"c\" & (VLOOKUP(Rebalance!$D$64,$F$2:$G$48,2,FALSE)+ROW()-2))=Rebalance!$D$64,INDIRECT(\"a\" & (VLOOKUP(Rebalance!$D$64,$F$2:$G$48,2,FALSE)+ROW()-2)),\"\")","v":{"$error":"#N/A"}},{"$f":"IF(INDIRECT(\"c\" & (VLOOKUP(Rebalance!$D$65,$F$2:$G$48,2,FALSE)+ROW()-2))=Rebalance!$D$65,INDIRECT(\"a\" & (VLOOKUP(Rebalance!$D$65,$F$2:$G$48,2,FALSE)+ROW()-2)),\"\")","v":{"$error":"#N/A"}},{"$f":"IF(INDIRECT(\"c\" & (VLOOKUP(Rebalance!$D$66,$F$2:$G$48,2,FALSE)+ROW()-2))=Rebalance!$D$66,INDIRECT(\"a\" & (VLOOKUP(Rebalance!$D$66,$F$2:$G$48,2,FALSE)+ROW()-2)),\"\")","v":{"$error":"#N/A"}}]
["1NVEST Sector Neutral Growth & Quality Index Tracker Fund B1","SSQB1","STANLIB Collective Investments",{"$f":"ROW()","v":29},null,"Sanlam Collective Investments",{"$f":"VLOOKUP(F29,$C$2:$D$599,2,FALSE)","v":504},{"$f":"IF(INDIRECT(\"c\" & (VLOOKUP(Rebalance!$D$26,$F$2:$G$48,2,FALSE)+ROW()-2))=Rebalance!$D$26,INDIRECT(\"a\" & (VLOOKUP(Rebalance!$D$26,$F$2:$G$48,2,FALSE)+ROW()-2)),\"\")","v":{"$error":"#N/A"}},{"$f":"IF(INDIRECT(\"c\" & (VLOOKUP(Rebalance!$D$27,$F$2:$G$48,2,FALSE)+ROW()-2))=Rebalance!$D$27,INDIRECT(\"a\" & (VLOOKUP(Rebalance!$D$27,$F$2:$G$48,2,FALSE)+ROW()-2)),\"\")","v":{"$error":"#N/A"}},{"$f":"IF(INDIRECT(\"c\" & (VLOOKUP(Rebalance!$D$28,$F$2:$G$48,2,FALSE)+ROW()-2))=Rebalance!$D$28,INDIRECT(\"a\" & (VLOOKUP(Rebalance!$D$28,$F$2:$G$48,2,FALSE)+ROW()-2)),\"\")","v":{"$error":"#N/A"}},{"$f":"IF(INDIRECT(\"c\" & (VLOOKUP(Rebalance!$D$29,$F$2:$G$48,2,FALSE)+ROW()-2))=Rebalance!$D$29,INDIRECT(\"a\" & (VLOOKUP(Rebalance!$D$29,$F$2:$G$48,2,FALSE)+ROW()-2)),\"\")","v":{"$error":"#N/A"}},{"$f":"IF(INDIRECT(\"c\" & (VLOOKUP(Rebalance!$D$30,$F$2:$G$48,2,FALSE)+ROW()-2))=Rebalance!$D$30,INDIRECT(\"a\" & (VLOOKUP(Rebalance!$D$30,$F$2:$G$48,2,FALSE)+ROW()-2)),\"\")","v":{"$error":"#N/A"}},{"$f":"IF(INDIRECT(\"c\" & (VLOOKUP(Rebalance!$D$31,$F$2:$G$48,2,FALSE)+ROW()-2))=Rebalance!$D$31,INDIRECT(\"a\" & (VLOOKUP(Rebalance!$D$31,$F$2:$G$48,2,FALSE)+ROW()-2)),\"\")","v":{"$error":"#N/A"}},{"$f":"IF(INDIRECT(\"c\" & (VLOOKUP(Rebalance!$D$32,$F$2:$G$48,2,FALSE)+ROW()-2))=Rebalance!$D$32,INDIRECT(\"a\" & (VLOOKUP(Rebalance!$D$32,$F$2:$G$48,2,FALSE)+ROW()-2)),\"\")","v":{"$error":"#N/A"}},{"$f":"IF(INDIRECT(\"c\" & (VLOOKUP(Rebalance!$D$33,$F$2:$G$48,2,FALSE)+ROW()-2))=Rebalance!$D$33,INDIRECT(\"a\" & (VLOOKUP(Rebalance!$D$33,$F$2:$G$48,2,FALSE)+ROW()-2)),\"\")","v":{"$error":"#N/A"}},{"$f":"IF(INDIRECT(\"c\" & (VLOOKUP(Rebalance!$D$34,$F$2:$G$48,2,FALSE)+ROW()-2))=Rebalance!$D$34,INDIRECT(\"a\" & (VLOOKUP(Rebalance!$D$34,$F$2:$G$48,2,FALSE)+ROW()-2)),\"\")","v":{"$error":"#N/A"}},{"$f":"IF(INDIRECT(\"c\" & (VLOOKUP(Rebalance!$D$35,$F$2:$G$48,2,FALSE)+ROW()-2))=Rebalance!$D$35,INDIRECT(\"a\" & (VLOOKUP(Rebalance!$D$35,$F$2:$G$48,2,FALSE)+ROW()-2)),\"\")","v":{"$error":"#N/A"}},{"$f":"IF(INDIRECT(\"c\" & (VLOOKUP(Rebalance!$D$36,$F$2:$G$48,2,FALSE)+ROW()-2))=Rebalance!$D$36,INDIRECT(\"a\" & (VLOOKUP(Rebalance!$D$36,$F$2:$G$48,2,FALSE)+ROW()-2)),\"\")","v":{"$error":"#N/A"}},{"$f":"IF(INDIRECT(\"c\" & (VLOOKUP(Rebalance!$D$37,$F$2:$G$48,2,FALSE)+ROW()-2))=Rebalance!$D$37,INDIRECT(\"a\" & (VLOOKUP(Rebalance!$D$37,$F$2:$G$48,2,FALSE)+ROW()-2)),\"\")","v":{"$error":"#N/A"}},{"$f":"IF(INDIRECT(\"c\" & (VLOOKUP(Rebalance!$D$38,$F$2:$G$48,2,FALSE)+ROW()-2))=Rebalance!$D$38,INDIRECT(\"a\" & (VLOOKUP(Rebalance!$D$38,$F$2:$G$48,2,FALSE)+ROW()-2)),\"\")","v":{"$error":"#N/A"}},{"$f":"IF(INDIRECT(\"c\" & (VLOOKUP(Rebalance!$D$39,$F$2:$G$48,2,FALSE)+ROW()-2))=Rebalance!$D$39,INDIRECT(\"a\" & (VLOOKUP(Rebalance!$D$39,$F$2:$G$48,2,FALSE)+ROW()-2)),\"\")","v":{"$error":"#N/A"}},{"$f":"IF(INDIRECT(\"c\" & (VLOOKUP(Rebalance!$D$40,$F$2:$G$48,2,FALSE)+ROW()-2))=Rebalance!$D$40,INDIRECT(\"a\" & (VLOOKUP(Rebalance!$D$40,$F$2:$G$48,2,FALSE)+ROW()-2)),\"\")","v":{"$error":"#N/A"}},{"$f":"IF(INDIRECT(\"c\" & (VLOOKUP(Rebalance!$D$52,$F$2:$G$48,2,FALSE)+ROW()-2))=Rebalance!$D$52,INDIRECT(\"a\" & (VLOOKUP(Rebalance!$D$52,$F$2:$G$48,2,FALSE)+ROW()-2)),\"\")","v":{"$error":"#N/A"}},{"$f":"IF(INDIRECT(\"c\" & (VLOOKUP(Rebalance!$D$53,$F$2:$G$48,2,FALSE)+ROW()-2))=Rebalance!$D$53,INDIRECT(\"a\" & (VLOOKUP(Rebalance!$D$53,$F$2:$G$48,2,FALSE)+ROW()-2)),\"\")","v":{"$error":"#N/A"}},{"$f":"IF(INDIRECT(\"c\" & (VLOOKUP(Rebalance!$D$54,$F$2:$G$48,2,FALSE)+ROW()-2))=Rebalance!$D$54,INDIRECT(\"a\" & (VLOOKUP(Rebalance!$D$54,$F$2:$G$48,2,FALSE)+ROW()-2)),\"\")","v":{"$error":"#N/A"}},{"$f":"IF(INDIRECT(\"c\" & (VLOOKUP(Rebalance!$D$55,$F$2:$G$48,2,FALSE)+ROW()-2))=Rebalance!$D$55,INDIRECT(\"a\" & (VLOOKUP(Rebalance!$D$55,$F$2:$G$48,2,FALSE)+ROW()-2)),\"\")","v":{"$error":"#N/A"}},{"$f":"IF(INDIRECT(\"c\" & (VLOOKUP(Rebalance!$D$56,$F$2:$G$48,2,FALSE)+ROW()-2))=Rebalance!$D$56,INDIRECT(\"a\" & (VLOOKUP(Rebalance!$D$56,$F$2:$G$48,2,FALSE)+ROW()-2)),\"\")","v":{"$error":"#N/A"}},{"$f":"IF(INDIRECT(\"c\" & (VLOOKUP(Rebalance!$D$57,$F$2:$G$48,2,FALSE)+ROW()-2))=Rebalance!$D$57,INDIRECT(\"a\" & (VLOOKUP(Rebalance!$D$57,$F$2:$G$48,2,FALSE)+ROW()-2)),\"\")","v":{"$error":"#N/A"}},{"$f":"IF(INDIRECT(\"c\" & (VLOOKUP(Rebalance!$D$58,$F$2:$G$48,2,FALSE)+ROW()-2))=Rebalance!$D$58,INDIRECT(\"a\" & (VLOOKUP(Rebalance!$D$58,$F$2:$G$48,2,FALSE)+ROW()-2)),\"\")","v":{"$error":"#N/A"}},{"$f":"IF(INDIRECT(\"c\" & (VLOOKUP(Rebalance!$D$59,$F$2:$G$48,2,FALSE)+ROW()-2))=Rebalance!$D$59,INDIRECT(\"a\" & (VLOOKUP(Rebalance!$D$59,$F$2:$G$48,2,FALSE)+ROW()-2)),\"\")","v":{"$error":"#N/A"}},{"$f":"IF(INDIRECT(\"c\" & (VLOOKUP(Rebalance!$D$60,$F$2:$G$48,2,FALSE)+ROW()-2))=Rebalance!$D$60,INDIRECT(\"a\" & (VLOOKUP(Rebalance!$D$60,$F$2:$G$48,2,FALSE)+ROW()-2)),\"\")","v":{"$error":"#N/A"}},{"$f":"IF(INDIRECT(\"c\" & (VLOOKUP(Rebalance!$D$61,$F$2:$G$48,2,FALSE)+ROW()-2))=Rebalance!$D$61,INDIRECT(\"a\" & (VLOOKUP(Rebalance!$D$61,$F$2:$G$48,2,FALSE)+ROW()-2)),\"\")","v":{"$error":"#N/A"}},{"$f":"IF(INDIRECT(\"c\" & (VLOOKUP(Rebalance!$D$62,$F$2:$G$48,2,FALSE)+ROW()-2))=Rebalance!$D$62,INDIRECT(\"a\" & (VLOOKUP(Rebalance!$D$62,$F$2:$G$48,2,FALSE)+ROW()-2)),\"\")","v":{"$error":"#N/A"}},{"$f":"IF(INDIRECT(\"c\" & (VLOOKUP(Rebalance!$D$63,$F$2:$G$48,2,FALSE)+ROW()-2))=Rebalance!$D$63,INDIRECT(\"a\" & (VLOOKUP(Rebalance!$D$63,$F$2:$G$48,2,FALSE)+ROW()-2)),\"\")","v":{"$error":"#N/A"}},{"$f":"IF(INDIRECT(\"c\" & (VLOOKUP(Rebalance!$D$64,$F$2:$G$48,2,FALSE)+ROW()-2))=Rebalance!$D$64,INDIRECT(\"a\" & (VLOOKUP(Rebalance!$D$64,$F$2:$G$48,2,FALSE)+ROW()-2)),\"\")","v":{"$error":"#N/A"}},{"$f":"IF(INDIRECT(\"c\" & (VLOOKUP(Rebalance!$D$65,$F$2:$G$48,2,FALSE)+ROW()-2))=Rebalance!$D$65,INDIRECT(\"a\" & (VLOOKUP(Rebalance!$D$65,$F$2:$G$48,2,FALSE)+ROW()-2)),\"\")","v":{"$error":"#N/A"}},{"$f":"IF(INDIRECT(\"c\" & (VLOOKUP(Rebalance!$D$66,$F$2:$G$48,2,FALSE)+ROW()-2))=Rebalance!$D$66,INDIRECT(\"a\" & (VLOOKUP(Rebalance!$D$66,$F$2:$G$48,2,FALSE)+ROW()-2)),\"\")","v":{"$error":"#N/A"}}]
["1NVEST Sector Neutral Momentum Index Tracker Fund B1","SSNB1","STANLIB Collective Investments",{"$f":"ROW()","v":30},null,"Satrix Managers (RF) (Pty) Ltd",{"$f":"VLOOKUP(F30,$C$2:$D$599,2,FALSE)","v":544},{"$f":"IF(INDIRECT(\"c\" & (VLOOKUP(Rebalance!$D$26,$F$2:$G$48,2,FALSE)+ROW()-2))=Rebalance!$D$26,INDIRECT(\"a\" & (VLOOKUP(Rebalance!$D$26,$F$2:$G$48,2,FALSE)+ROW()-2)),\"\")","v":{"$error":"#N/A"}},{"$f":"IF(INDIRECT(\"c\" & (VLOOKUP(Rebalance!$D$27,$F$2:$G$48,2,FALSE)+ROW()-2))=Rebalance!$D$27,INDIRECT(\"a\" & (VLOOKUP(Rebalance!$D$27,$F$2:$G$48,2,FALSE)+ROW()-2)),\"\")","v":{"$error":"#N/A"}},{"$f":"IF(INDIRECT(\"c\" & (VLOOKUP(Rebalance!$D$28,$F$2:$G$48,2,FALSE)+ROW()-2))=Rebalance!$D$28,INDIRECT(\"a\" & (VLOOKUP(Rebalance!$D$28,$F$2:$G$48,2,FALSE)+ROW()-2)),\"\")","v":{"$error":"#N/A"}},{"$f":"IF(INDIRECT(\"c\" & (VLOOKUP(Rebalance!$D$29,$F$2:$G$48,2,FALSE)+ROW()-2))=Rebalance!$D$29,INDIRECT(\"a\" & (VLOOKUP(Rebalance!$D$29,$F$2:$G$48,2,FALSE)+ROW()-2)),\"\")","v":{"$error":"#N/A"}},{"$f":"IF(INDIRECT(\"c\" & (VLOOKUP(Rebalance!$D$30,$F$2:$G$48,2,FALSE)+ROW()-2))=Rebalance!$D$30,INDIRECT(\"a\" & (VLOOKUP(Rebalance!$D$30,$F$2:$G$48,2,FALSE)+ROW()-2)),\"\")","v":{"$error":"#N/A"}},{"$f":"IF(INDIRECT(\"c\" & (VLOOKUP(Rebalance!$D$31,$F$2:$G$48,2,FALSE)+ROW()-2))=Rebalance!$D$31,INDIRECT(\"a\" & (VLOOKUP(Rebalance!$D$31,$F$2:$G$48,2,FALSE)+ROW()-2)),\"\")","v":{"$error":"#N/A"}},{"$f":"IF(INDIRECT(\"c\" & (VLOOKUP(Rebalance!$D$32,$F$2:$G$48,2,FALSE)+ROW()-2))=Rebalance!$D$32,INDIRECT(\"a\" & (VLOOKUP(Rebalance!$D$32,$F$2:$G$48,2,FALSE)+ROW()-2)),\"\")","v":{"$error":"#N/A"}},{"$f":"IF(INDIRECT(\"c\" & (VLOOKUP(Rebalance!$D$33,$F$2:$G$48,2,FALSE)+ROW()-2))=Rebalance!$D$33,INDIRECT(\"a\" & (VLOOKUP(Rebalance!$D$33,$F$2:$G$48,2,FALSE)+ROW()-2)),\"\")","v":{"$error":"#N/A"}},{"$f":"IF(INDIRECT(\"c\" & (VLOOKUP(Rebalance!$D$34,$F$2:$G$48,2,FALSE)+ROW()-2))=Rebalance!$D$34,INDIRECT(\"a\" & (VLOOKUP(Rebalance!$D$34,$F$2:$G$48,2,FALSE)+ROW()-2)),\"\")","v":{"$error":"#N/A"}},{"$f":"IF(INDIRECT(\"c\" & (VLOOKUP(Rebalance!$D$35,$F$2:$G$48,2,FALSE)+ROW()-2))=Rebalance!$D$35,INDIRECT(\"a\" & (VLOOKUP(Rebalance!$D$35,$F$2:$G$48,2,FALSE)+ROW()-2)),\"\")","v":{"$error":"#N/A"}},{"$f":"IF(INDIRECT(\"c\" & (VLOOKUP(Rebalance!$D$36,$F$2:$G$48,2,FALSE)+ROW()-2))=Rebalance!$D$36,INDIRECT(\"a\" & (VLOOKUP(Rebalance!$D$36,$F$2:$G$48,2,FALSE)+ROW()-2)),\"\")","v":{"$error":"#N/A"}},{"$f":"IF(INDIRECT(\"c\" & (VLOOKUP(Rebalance!$D$37,$F$2:$G$48,2,FALSE)+ROW()-2))=Rebalance!$D$37,INDIRECT(\"a\" & (VLOOKUP(Rebalance!$D$37,$F$2:$G$48,2,FALSE)+ROW()-2)),\"\")","v":{"$error":"#N/A"}},{"$f":"IF(INDIRECT(\"c\" & (VLOOKUP(Rebalance!$D$38,$F$2:$G$48,2,FALSE)+ROW()-2))=Rebalance!$D$38,INDIRECT(\"a\" & (VLOOKUP(Rebalance!$D$38,$F$2:$G$48,2,FALSE)+ROW()-2)),\"\")","v":{"$error":"#N/A"}},{"$f":"IF(INDIRECT(\"c\" & (VLOOKUP(Rebalance!$D$39,$F$2:$G$48,2,FALSE)+ROW()-2))=Rebalance!$D$39,INDIRECT(\"a\" & (VLOOKUP(Rebalance!$D$39,$F$2:$G$48,2,FALSE)+ROW()-2)),\"\")","v":{"$error":"#N/A"}},{"$f":"IF(INDIRECT(\"c\" & (VLOOKUP(Rebalance!$D$40,$F$2:$G$48,2,FALSE)+ROW()-2))=Rebalance!$D$40,INDIRECT(\"a\" & (VLOOKUP(Rebalance!$D$40,$F$2:$G$48,2,FALSE)+ROW()-2)),\"\")","v":{"$error":"#N/A"}},{"$f":"IF(INDIRECT(\"c\" & (VLOOKUP(Rebalance!$D$52,$F$2:$G$48,2,FALSE)+ROW()-2))=Rebalance!$D$52,INDIRECT(\"a\" & (VLOOKUP(Rebalance!$D$52,$F$2:$G$48,2,FALSE)+ROW()-2)),\"\")","v":{"$error":"#N/A"}},{"$f":"IF(INDIRECT(\"c\" & (VLOOKUP(Rebalance!$D$53,$F$2:$G$48,2,FALSE)+ROW()-2))=Rebalance!$D$53,INDIRECT(\"a\" & (VLOOKUP(Rebalance!$D$53,$F$2:$G$48,2,FALSE)+ROW()-2)),\"\")","v":{"$error":"#N/A"}},{"$f":"IF(INDIRECT(\"c\" & (VLOOKUP(Rebalance!$D$54,$F$2:$G$48,2,FALSE)+ROW()-2))=Rebalance!$D$54,INDIRECT(\"a\" & (VLOOKUP(Rebalance!$D$54,$F$2:$G$48,2,FALSE)+ROW()-2)),\"\")","v":{"$error":"#N/A"}},{"$f":"IF(INDIRECT(\"c\" & (VLOOKUP(Rebalance!$D$55,$F$2:$G$48,2,FALSE)+ROW()-2))=Rebalance!$D$55,INDIRECT(\"a\" & (VLOOKUP(Rebalance!$D$55,$F$2:$G$48,2,FALSE)+ROW()-2)),\"\")","v":{"$error":"#N/A"}},{"$f":"IF(INDIRECT(\"c\" & (VLOOKUP(Rebalance!$D$56,$F$2:$G$48,2,FALSE)+ROW()-2))=Rebalance!$D$56,INDIRECT(\"a\" & (VLOOKUP(Rebalance!$D$56,$F$2:$G$48,2,FALSE)+ROW()-2)),\"\")","v":{"$error":"#N/A"}},{"$f":"IF(INDIRECT(\"c\" & (VLOOKUP(Rebalance!$D$57,$F$2:$G$48,2,FALSE)+ROW()-2))=Rebalance!$D$57,INDIRECT(\"a\" & (VLOOKUP(Rebalance!$D$57,$F$2:$G$48,2,FALSE)+ROW()-2)),\"\")","v":{"$error":"#N/A"}},{"$f":"IF(INDIRECT(\"c\" & (VLOOKUP(Rebalance!$D$58,$F$2:$G$48,2,FALSE)+ROW()-2))=Rebalance!$D$58,INDIRECT(\"a\" & (VLOOKUP(Rebalance!$D$58,$F$2:$G$48,2,FALSE)+ROW()-2)),\"\")","v":{"$error":"#N/A"}},{"$f":"IF(INDIRECT(\"c\" & (VLOOKUP(Rebalance!$D$59,$F$2:$G$48,2,FALSE)+ROW()-2))=Rebalance!$D$59,INDIRECT(\"a\" & (VLOOKUP(Rebalance!$D$59,$F$2:$G$48,2,FALSE)+ROW()-2)),\"\")","v":{"$error":"#N/A"}},{"$f":"IF(INDIRECT(\"c\" & (VLOOKUP(Rebalance!$D$60,$F$2:$G$48,2,FALSE)+ROW()-2))=Rebalance!$D$60,INDIRECT(\"a\" & (VLOOKUP(Rebalance!$D$60,$F$2:$G$48,2,FALSE)+ROW()-2)),\"\")","v":{"$error":"#N/A"}},{"$f":"IF(INDIRECT(\"c\" & (VLOOKUP(Rebalance!$D$61,$F$2:$G$48,2,FALSE)+ROW()-2))=Rebalance!$D$61,INDIRECT(\"a\" & (VLOOKUP(Rebalance!$D$61,$F$2:$G$48,2,FALSE)+ROW()-2)),\"\")","v":{"$error":"#N/A"}},{"$f":"IF(INDIRECT(\"c\" & (VLOOKUP(Rebalance!$D$62,$F$2:$G$48,2,FALSE)+ROW()-2))=Rebalance!$D$62,INDIRECT(\"a\" & (VLOOKUP(Rebalance!$D$62,$F$2:$G$48,2,FALSE)+ROW()-2)),\"\")","v":{"$error":"#N/A"}},{"$f":"IF(INDIRECT(\"c\" & (VLOOKUP(Rebalance!$D$63,$F$2:$G$48,2,FALSE)+ROW()-2))=Rebalance!$D$63,INDIRECT(\"a\" & (VLOOKUP(Rebalance!$D$63,$F$2:$G$48,2,FALSE)+ROW()-2)),\"\")","v":{"$error":"#N/A"}},{"$f":"IF(INDIRECT(\"c\" & (VLOOKUP(Rebalance!$D$64,$F$2:$G$48,2,FALSE)+ROW()-2))=Rebalance!$D$64,INDIRECT(\"a\" & (VLOOKUP(Rebalance!$D$64,$F$2:$G$48,2,FALSE)+ROW()-2)),\"\")","v":{"$error":"#N/A"}},{"$f":"IF(INDIRECT(\"c\" & (VLOOKUP(Rebalance!$D$65,$F$2:$G$48,2,FALSE)+ROW()-2))=Rebalance!$D$65,INDIRECT(\"a\" & (VLOOKUP(Rebalance!$D$65,$F$2:$G$48,2,FALSE)+ROW()-2)),\"\")","v":{"$error":"#N/A"}},{"$f":"IF(INDIRECT(\"c\" & (VLOOKUP(Rebalance!$D$66,$F$2:$G$48,2,FALSE)+ROW()-2))=Rebalance!$D$66,INDIRECT(\"a\" & (VLOOKUP(Rebalance!$D$66,$F$2:$G$48,2,FALSE)+ROW()-2)),\"\")","v":{"$error":"#N/A"}}]
["1NVEST Sector Neutral Value Index Tracker Fund B1","SSVB1","STANLIB Collective Investments",{"$f":"ROW()","v":31},null,"Sygnia Asset Management (Pty) Limited",{"$f":"VLOOKUP(F31,$C$2:$D$599,2,FALSE)","v":554},{"$f":"IF(INDIRECT(\"c\" & (VLOOKUP(Rebalance!$D$26,$F$2:$G$48,2,FALSE)+ROW()-2))=Rebalance!$D$26,INDIRECT(\"a\" & (VLOOKUP(Rebalance!$D$26,$F$2:$G$48,2,FALSE)+ROW()-2)),\"\")","v":{"$error":"#N/A"}},{"$f":"IF(INDIRECT(\"c\" & (VLOOKUP(Rebalance!$D$27,$F$2:$G$48,2,FALSE)+ROW()-2))=Rebalance!$D$27,INDIRECT(\"a\" & (VLOOKUP(Rebalance!$D$27,$F$2:$G$48,2,FALSE)+ROW()-2)),\"\")","v":{"$error":"#N/A"}},{"$f":"IF(INDIRECT(\"c\" & (VLOOKUP(Rebalance!$D$28,$F$2:$G$48,2,FALSE)+ROW()-2))=Rebalance!$D$28,INDIRECT(\"a\" & (VLOOKUP(Rebalance!$D$28,$F$2:$G$48,2,FALSE)+ROW()-2)),\"\")","v":{"$error":"#N/A"}},{"$f":"IF(INDIRECT(\"c\" & (VLOOKUP(Rebalance!$D$29,$F$2:$G$48,2,FALSE)+ROW()-2))=Rebalance!$D$29,INDIRECT(\"a\" & (VLOOKUP(Rebalance!$D$29,$F$2:$G$48,2,FALSE)+ROW()-2)),\"\")","v":{"$error":"#N/A"}},{"$f":"IF(INDIRECT(\"c\" & (VLOOKUP(Rebalance!$D$30,$F$2:$G$48,2,FALSE)+ROW()-2))=Rebalance!$D$30,INDIRECT(\"a\" & (VLOOKUP(Rebalance!$D$30,$F$2:$G$48,2,FALSE)+ROW()-2)),\"\")","v":{"$error":"#N/A"}},{"$f":"IF(INDIRECT(\"c\" & (VLOOKUP(Rebalance!$D$31,$F$2:$G$48,2,FALSE)+ROW()-2))=Rebalance!$D$31,INDIRECT(\"a\" & (VLOOKUP(Rebalance!$D$31,$F$2:$G$48,2,FALSE)+ROW()-2)),\"\")","v":{"$error":"#N/A"}},{"$f":"IF(INDIRECT(\"c\" & (VLOOKUP(Rebalance!$D$32,$F$2:$G$48,2,FALSE)+ROW()-2))=Rebalance!$D$32,INDIRECT(\"a\" & (VLOOKUP(Rebalance!$D$32,$F$2:$G$48,2,FALSE)+ROW()-2)),\"\")","v":{"$error":"#N/A"}},{"$f":"IF(INDIRECT(\"c\" & (VLOOKUP(Rebalance!$D$33,$F$2:$G$48,2,FALSE)+ROW()-2))=Rebalance!$D$33,INDIRECT(\"a\" & (VLOOKUP(Rebalance!$D$33,$F$2:$G$48,2,FALSE)+ROW()-2)),\"\")","v":{"$error":"#N/A"}},{"$f":"IF(INDIRECT(\"c\" & (VLOOKUP(Rebalance!$D$34,$F$2:$G$48,2,FALSE)+ROW()-2))=Rebalance!$D$34,INDIRECT(\"a\" & (VLOOKUP(Rebalance!$D$34,$F$2:$G$48,2,FALSE)+ROW()-2)),\"\")","v":{"$error":"#N/A"}},{"$f":"IF(INDIRECT(\"c\" & (VLOOKUP(Rebalance!$D$35,$F$2:$G$48,2,FALSE)+ROW()-2))=Rebalance!$D$35,INDIRECT(\"a\" & (VLOOKUP(Rebalance!$D$35,$F$2:$G$48,2,FALSE)+ROW()-2)),\"\")","v":{"$error":"#N/A"}},{"$f":"IF(INDIRECT(\"c\" & (VLOOKUP(Rebalance!$D$36,$F$2:$G$48,2,FALSE)+ROW()-2))=Rebalance!$D$36,INDIRECT(\"a\" & (VLOOKUP(Rebalance!$D$36,$F$2:$G$48,2,FALSE)+ROW()-2)),\"\")","v":{"$error":"#N/A"}},{"$f":"IF(INDIRECT(\"c\" & (VLOOKUP(Rebalance!$D$37,$F$2:$G$48,2,FALSE)+ROW()-2))=Rebalance!$D$37,INDIRECT(\"a\" & (VLOOKUP(Rebalance!$D$37,$F$2:$G$48,2,FALSE)+ROW()-2)),\"\")","v":{"$error":"#N/A"}},{"$f":"IF(INDIRECT(\"c\" & (VLOOKUP(Rebalance!$D$38,$F$2:$G$48,2,FALSE)+ROW()-2))=Rebalance!$D$38,INDIRECT(\"a\" & (VLOOKUP(Rebalance!$D$38,$F$2:$G$48,2,FALSE)+ROW()-2)),\"\")","v":{"$error":"#N/A"}},{"$f":"IF(INDIRECT(\"c\" & (VLOOKUP(Rebalance!$D$39,$F$2:$G$48,2,FALSE)+ROW()-2))=Rebalance!$D$39,INDIRECT(\"a\" & (VLOOKUP(Rebalance!$D$39,$F$2:$G$48,2,FALSE)+ROW()-2)),\"\")","v":{"$error":"#N/A"}},{"$f":"IF(INDIRECT(\"c\" & (VLOOKUP(Rebalance!$D$40,$F$2:$G$48,2,FALSE)+ROW()-2))=Rebalance!$D$40,INDIRECT(\"a\" & (VLOOKUP(Rebalance!$D$40,$F$2:$G$48,2,FALSE)+ROW()-2)),\"\")","v":{"$error":"#N/A"}},{"$f":"IF(INDIRECT(\"c\" & (VLOOKUP(Rebalance!$D$52,$F$2:$G$48,2,FALSE)+ROW()-2))=Rebalance!$D$52,INDIRECT(\"a\" & (VLOOKUP(Rebalance!$D$52,$F$2:$G$48,2,FALSE)+ROW()-2)),\"\")","v":{"$error":"#N/A"}},{"$f":"IF(INDIRECT(\"c\" & (VLOOKUP(Rebalance!$D$53,$F$2:$G$48,2,FALSE)+ROW()-2))=Rebalance!$D$53,INDIRECT(\"a\" & (VLOOKUP(Rebalance!$D$53,$F$2:$G$48,2,FALSE)+ROW()-2)),\"\")","v":{"$error":"#N/A"}},{"$f":"IF(INDIRECT(\"c\" & (VLOOKUP(Rebalance!$D$54,$F$2:$G$48,2,FALSE)+ROW()-2))=Rebalance!$D$54,INDIRECT(\"a\" & (VLOOKUP(Rebalance!$D$54,$F$2:$G$48,2,FALSE)+ROW()-2)),\"\")","v":{"$error":"#N/A"}},{"$f":"IF(INDIRECT(\"c\" & (VLOOKUP(Rebalance!$D$55,$F$2:$G$48,2,FALSE)+ROW()-2))=Rebalance!$D$55,INDIRECT(\"a\" & (VLOOKUP(Rebalance!$D$55,$F$2:$G$48,2,FALSE)+ROW()-2)),\"\")","v":{"$error":"#N/A"}},{"$f":"IF(INDIRECT(\"c\" & (VLOOKUP(Rebalance!$D$56,$F$2:$G$48,2,FALSE)+ROW()-2))=Rebalance!$D$56,INDIRECT(\"a\" & (VLOOKUP(Rebalance!$D$56,$F$2:$G$48,2,FALSE)+ROW()-2)),\"\")","v":{"$error":"#N/A"}},{"$f":"IF(INDIRECT(\"c\" & (VLOOKUP(Rebalance!$D$57,$F$2:$G$48,2,FALSE)+ROW()-2))=Rebalance!$D$57,INDIRECT(\"a\" & (VLOOKUP(Rebalance!$D$57,$F$2:$G$48,2,FALSE)+ROW()-2)),\"\")","v":{"$error":"#N/A"}},{"$f":"IF(INDIRECT(\"c\" & (VLOOKUP(Rebalance!$D$58,$F$2:$G$48,2,FALSE)+ROW()-2))=Rebalance!$D$58,INDIRECT(\"a\" & (VLOOKUP(Rebalance!$D$58,$F$2:$G$48,2,FALSE)+ROW()-2)),\"\")","v":{"$error":"#N/A"}},{"$f":"IF(INDIRECT(\"c\" & (VLOOKUP(Rebalance!$D$59,$F$2:$G$48,2,FALSE)+ROW()-2))=Rebalance!$D$59,INDIRECT(\"a\" & (VLOOKUP(Rebalance!$D$59,$F$2:$G$48,2,FALSE)+ROW()-2)),\"\")","v":{"$error":"#N/A"}},{"$f":"IF(INDIRECT(\"c\" & (VLOOKUP(Rebalance!$D$60,$F$2:$G$48,2,FALSE)+ROW()-2))=Rebalance!$D$60,INDIRECT(\"a\" & (VLOOKUP(Rebalance!$D$60,$F$2:$G$48,2,FALSE)+ROW()-2)),\"\")","v":{"$error":"#N/A"}},{"$f":"IF(INDIRECT(\"c\" & (VLOOKUP(Rebalance!$D$61,$F$2:$G$48,2,FALSE)+ROW()-2))=Rebalance!$D$61,INDIRECT(\"a\" & (VLOOKUP(Rebalance!$D$61,$F$2:$G$48,2,FALSE)+ROW()-2)),\"\")","v":{"$error":"#N/A"}},{"$f":"IF(INDIRECT(\"c\" & (VLOOKUP(Rebalance!$D$62,$F$2:$G$48,2,FALSE)+ROW()-2))=Rebalance!$D$62,INDIRECT(\"a\" & (VLOOKUP(Rebalance!$D$62,$F$2:$G$48,2,FALSE)+ROW()-2)),\"\")","v":{"$error":"#N/A"}},{"$f":"IF(INDIRECT(\"c\" & (VLOOKUP(Rebalance!$D$63,$F$2:$G$48,2,FALSE)+ROW()-2))=Rebalance!$D$63,INDIRECT(\"a\" & (VLOOKUP(Rebalance!$D$63,$F$2:$G$48,2,FALSE)+ROW()-2)),\"\")","v":{"$error":"#N/A"}},{"$f":"IF(INDIRECT(\"c\" & (VLOOKUP(Rebalance!$D$64,$F$2:$G$48,2,FALSE)+ROW()-2))=Rebalance!$D$64,INDIRECT(\"a\" & (VLOOKUP(Rebalance!$D$64,$F$2:$G$48,2,FALSE)+ROW()-2)),\"\")","v":{"$error":"#N/A"}},{"$f":"IF(INDIRECT(\"c\" & (VLOOKUP(Rebalance!$D$65,$F$2:$G$48,2,FALSE)+ROW()-2))=Rebalance!$D$65,INDIRECT(\"a\" & (VLOOKUP(Rebalance!$D$65,$F$2:$G$48,2,FALSE)+ROW()-2)),\"\")","v":{"$error":"#N/A"}},{"$f":"IF(INDIRECT(\"c\" & (VLOOKUP(Rebalance!$D$66,$F$2:$G$48,2,FALSE)+ROW()-2))=Rebalance!$D$66,INDIRECT(\"a\" & (VLOOKUP(Rebalance!$D$66,$F$2:$G$48,2,FALSE)+ROW()-2)),\"\")","v":{"$error":"#N/A"}}]
["STANLIB Absolute Plus Fund A","SBAA","STANLIB Collective Investments",{"$f":"ROW()","v":32},null,"SBG Securities",{"$f":"VLOOKUP(F32,$C$2:$D$599,2,FALSE)","v":555},{"$f":"IF(INDIRECT(\"c\" & (VLOOKUP(Rebalance!$D$26,$F$2:$G$48,2,FALSE)+ROW()-2))=Rebalance!$D$26,INDIRECT(\"a\" & (VLOOKUP(Rebalance!$D$26,$F$2:$G$48,2,FALSE)+ROW()-2)),\"\")","v":{"$error":"#N/A"}},{"$f":"IF(INDIRECT(\"c\" & (VLOOKUP(Rebalance!$D$27,$F$2:$G$48,2,FALSE)+ROW()-2))=Rebalance!$D$27,INDIRECT(\"a\" & (VLOOKUP(Rebalance!$D$27,$F$2:$G$48,2,FALSE)+ROW()-2)),\"\")","v":{"$error":"#N/A"}},{"$f":"IF(INDIRECT(\"c\" & (VLOOKUP(Rebalance!$D$28,$F$2:$G$48,2,FALSE)+ROW()-2))=Rebalance!$D$28,INDIRECT(\"a\" & (VLOOKUP(Rebalance!$D$28,$F$2:$G$48,2,FALSE)+ROW()-2)),\"\")","v":{"$error":"#N/A"}},{"$f":"IF(INDIRECT(\"c\" & (VLOOKUP(Rebalance!$D$29,$F$2:$G$48,2,FALSE)+ROW()-2))=Rebalance!$D$29,INDIRECT(\"a\" & (VLOOKUP(Rebalance!$D$29,$F$2:$G$48,2,FALSE)+ROW()-2)),\"\")","v":{"$error":"#N/A"}},{"$f":"IF(INDIRECT(\"c\" & (VLOOKUP(Rebalance!$D$30,$F$2:$G$48,2,FALSE)+ROW()-2))=Rebalance!$D$30,INDIRECT(\"a\" & (VLOOKUP(Rebalance!$D$30,$F$2:$G$48,2,FALSE)+ROW()-2)),\"\")","v":{"$error":"#N/A"}},{"$f":"IF(INDIRECT(\"c\" & (VLOOKUP(Rebalance!$D$31,$F$2:$G$48,2,FALSE)+ROW()-2))=Rebalance!$D$31,INDIRECT(\"a\" & (VLOOKUP(Rebalance!$D$31,$F$2:$G$48,2,FALSE)+ROW()-2)),\"\")","v":{"$error":"#N/A"}},{"$f":"IF(INDIRECT(\"c\" & (VLOOKUP(Rebalance!$D$32,$F$2:$G$48,2,FALSE)+ROW()-2))=Rebalance!$D$32,INDIRECT(\"a\" & (VLOOKUP(Rebalance!$D$32,$F$2:$G$48,2,FALSE)+ROW()-2)),\"\")","v":{"$error":"#N/A"}},{"$f":"IF(INDIRECT(\"c\" & (VLOOKUP(Rebalance!$D$33,$F$2:$G$48,2,FALSE)+ROW()-2))=Rebalance!$D$33,INDIRECT(\"a\" & (VLOOKUP(Rebalance!$D$33,$F$2:$G$48,2,FALSE)+ROW()-2)),\"\")","v":{"$error":"#N/A"}},{"$f":"IF(INDIRECT(\"c\" & (VLOOKUP(Rebalance!$D$34,$F$2:$G$48,2,FALSE)+ROW()-2))=Rebalance!$D$34,INDIRECT(\"a\" & (VLOOKUP(Rebalance!$D$34,$F$2:$G$48,2,FALSE)+ROW()-2)),\"\")","v":{"$error":"#N/A"}},{"$f":"IF(INDIRECT(\"c\" & (VLOOKUP(Rebalance!$D$35,$F$2:$G$48,2,FALSE)+ROW()-2))=Rebalance!$D$35,INDIRECT(\"a\" & (VLOOKUP(Rebalance!$D$35,$F$2:$G$48,2,FALSE)+ROW()-2)),\"\")","v":{"$error":"#N/A"}},{"$f":"IF(INDIRECT(\"c\" & (VLOOKUP(Rebalance!$D$36,$F$2:$G$48,2,FALSE)+ROW()-2))=Rebalance!$D$36,INDIRECT(\"a\" & (VLOOKUP(Rebalance!$D$36,$F$2:$G$48,2,FALSE)+ROW()-2)),\"\")","v":{"$error":"#N/A"}},{"$f":"IF(INDIRECT(\"c\" & (VLOOKUP(Rebalance!$D$37,$F$2:$G$48,2,FALSE)+ROW()-2))=Rebalance!$D$37,INDIRECT(\"a\" & (VLOOKUP(Rebalance!$D$37,$F$2:$G$48,2,FALSE)+ROW()-2)),\"\")","v":{"$error":"#N/A"}},{"$f":"IF(INDIRECT(\"c\" & (VLOOKUP(Rebalance!$D$38,$F$2:$G$48,2,FALSE)+ROW()-2))=Rebalance!$D$38,INDIRECT(\"a\" & (VLOOKUP(Rebalance!$D$38,$F$2:$G$48,2,FALSE)+ROW()-2)),\"\")","v":{"$error":"#N/A"}},{"$f":"IF(INDIRECT(\"c\" & (VLOOKUP(Rebalance!$D$39,$F$2:$G$48,2,FALSE)+ROW()-2))=Rebalance!$D$39,INDIRECT(\"a\" & (VLOOKUP(Rebalance!$D$39,$F$2:$G$48,2,FALSE)+ROW()-2)),\"\")","v":{"$error":"#N/A"}},{"$f":"IF(INDIRECT(\"c\" & (VLOOKUP(Rebalance!$D$40,$F$2:$G$48,2,FALSE)+ROW()-2))=Rebalance!$D$40,INDIRECT(\"a\" & (VLOOKUP(Rebalance!$D$40,$F$2:$G$48,2,FALSE)+ROW()-2)),\"\")","v":{"$error":"#N/A"}},{"$f":"IF(INDIRECT(\"c\" & (VLOOKUP(Rebalance!$D$52,$F$2:$G$48,2,FALSE)+ROW()-2))=Rebalance!$D$52,INDIRECT(\"a\" & (VLOOKUP(Rebalance!$D$52,$F$2:$G$48,2,FALSE)+ROW()-2)),\"\")","v":{"$error":"#N/A"}},{"$f":"IF(INDIRECT(\"c\" & (VLOOKUP(Rebalance!$D$53,$F$2:$G$48,2,FALSE)+ROW()-2))=Rebalance!$D$53,INDIRECT(\"a\" & (VLOOKUP(Rebalance!$D$53,$F$2:$G$48,2,FALSE)+ROW()-2)),\"\")","v":{"$error":"#N/A"}},{"$f":"IF(INDIRECT(\"c\" & (VLOOKUP(Rebalance!$D$54,$F$2:$G$48,2,FALSE)+ROW()-2))=Rebalance!$D$54,INDIRECT(\"a\" & (VLOOKUP(Rebalance!$D$54,$F$2:$G$48,2,FALSE)+ROW()-2)),\"\")","v":{"$error":"#N/A"}},{"$f":"IF(INDIRECT(\"c\" & (VLOOKUP(Rebalance!$D$55,$F$2:$G$48,2,FALSE)+ROW()-2))=Rebalance!$D$55,INDIRECT(\"a\" & (VLOOKUP(Rebalance!$D$55,$F$2:$G$48,2,FALSE)+ROW()-2)),\"\")","v":{"$error":"#N/A"}},{"$f":"IF(INDIRECT(\"c\" & (VLOOKUP(Rebalance!$D$56,$F$2:$G$48,2,FALSE)+ROW()-2))=Rebalance!$D$56,INDIRECT(\"a\" & (VLOOKUP(Rebalance!$D$56,$F$2:$G$48,2,FALSE)+ROW()-2)),\"\")","v":{"$error":"#N/A"}},{"$f":"IF(INDIRECT(\"c\" & (VLOOKUP(Rebalance!$D$57,$F$2:$G$48,2,FALSE)+ROW()-2))=Rebalance!$D$57,INDIRECT(\"a\" & (VLOOKUP(Rebalance!$D$57,$F$2:$G$48,2,FALSE)+ROW()-2)),\"\")","v":{"$error":"#N/A"}},{"$f":"IF(INDIRECT(\"c\" & (VLOOKUP(Rebalance!$D$58,$F$2:$G$48,2,FALSE)+ROW()-2))=Rebalance!$D$58,INDIRECT(\"a\" & (VLOOKUP(Rebalance!$D$58,$F$2:$G$48,2,FALSE)+ROW()-2)),\"\")","v":{"$error":"#N/A"}},{"$f":"IF(INDIRECT(\"c\" & (VLOOKUP(Rebalance!$D$59,$F$2:$G$48,2,FALSE)+ROW()-2))=Rebalance!$D$59,INDIRECT(\"a\" & (VLOOKUP(Rebalance!$D$59,$F$2:$G$48,2,FALSE)+ROW()-2)),\"\")","v":{"$error":"#N/A"}},{"$f":"IF(INDIRECT(\"c\" & (VLOOKUP(Rebalance!$D$60,$F$2:$G$48,2,FALSE)+ROW()-2))=Rebalance!$D$60,INDIRECT(\"a\" & (VLOOKUP(Rebalance!$D$60,$F$2:$G$48,2,FALSE)+ROW()-2)),\"\")","v":{"$error":"#N/A"}},{"$f":"IF(INDIRECT(\"c\" & (VLOOKUP(Rebalance!$D$61,$F$2:$G$48,2,FALSE)+ROW()-2))=Rebalance!$D$61,INDIRECT(\"a\" & (VLOOKUP(Rebalance!$D$61,$F$2:$G$48,2,FALSE)+ROW()-2)),\"\")","v":{"$error":"#N/A"}},{"$f":"IF(INDIRECT(\"c\" & (VLOOKUP(Rebalance!$D$62,$F$2:$G$48,2,FALSE)+ROW()-2))=Rebalance!$D$62,INDIRECT(\"a\" & (VLOOKUP(Rebalance!$D$62,$F$2:$G$48,2,FALSE)+ROW()-2)),\"\")","v":{"$error":"#N/A"}},{"$f":"IF(INDIRECT(\"c\" & (VLOOKUP(Rebalance!$D$63,$F$2:$G$48,2,FALSE)+ROW()-2))=Rebalance!$D$63,INDIRECT(\"a\" & (VLOOKUP(Rebalance!$D$63,$F$2:$G$48,2,FALSE)+ROW()-2)),\"\")","v":{"$error":"#N/A"}},{"$f":"IF(INDIRECT(\"c\" & (VLOOKUP(Rebalance!$D$64,$F$2:$G$48,2,FALSE)+ROW()-2))=Rebalance!$D$64,INDIRECT(\"a\" & (VLOOKUP(Rebalance!$D$64,$F$2:$G$48,2,FALSE)+ROW()-2)),\"\")","v":{"$error":"#N/A"}},{"$f":"IF(INDIRECT(\"c\" & (VLOOKUP(Rebalance!$D$65,$F$2:$G$48,2,FALSE)+ROW()-2))=Rebalance!$D$65,INDIRECT(\"a\" & (VLOOKUP(Rebalance!$D$65,$F$2:$G$48,2,FALSE)+ROW()-2)),\"\")","v":{"$error":"#N/A"}},{"$f":"IF(INDIRECT(\"c\" & (VLOOKUP(Rebalance!$D$66,$F$2:$G$48,2,FALSE)+ROW()-2))=Rebalance!$D$66,INDIRECT(\"a\" & (VLOOKUP(Rebalance!$D$66,$F$2:$G$48,2,FALSE)+ROW()-2)),\"\")","v":{"$error":"#N/A"}}]
["STANLIB Absolute Plus Fund B1","SBAA","STANLIB Collective Investments",{"$f":"ROW()","v":33},null,"Withdrawal",{"$f":"VLOOKUP(F33,$C$2:$D$599,2,FALSE)","v":560},{"$f":"IF(INDIRECT(\"c\" & (VLOOKUP(Rebalance!$D$26,$F$2:$G$48,2,FALSE)+ROW()-2))=Rebalance!$D$26,INDIRECT(\"a\" & (VLOOKUP(Rebalance!$D$26,$F$2:$G$48,2,FALSE)+ROW()-2)),\"\")","v":{"$error":"#N/A"}},{"$f":"IF(INDIRECT(\"c\" & (VLOOKUP(Rebalance!$D$27,$F$2:$G$48,2,FALSE)+ROW()-2))=Rebalance!$D$27,INDIRECT(\"a\" & (VLOOKUP(Rebalance!$D$27,$F$2:$G$48,2,FALSE)+ROW()-2)),\"\")","v":{"$error":"#N/A"}},{"$f":"IF(INDIRECT(\"c\" & (VLOOKUP(Rebalance!$D$28,$F$2:$G$48,2,FALSE)+ROW()-2))=Rebalance!$D$28,INDIRECT(\"a\" & (VLOOKUP(Rebalance!$D$28,$F$2:$G$48,2,FALSE)+ROW()-2)),\"\")","v":{"$error":"#N/A"}},{"$f":"IF(INDIRECT(\"c\" & (VLOOKUP(Rebalance!$D$29,$F$2:$G$48,2,FALSE)+ROW()-2))=Rebalance!$D$29,INDIRECT(\"a\" & (VLOOKUP(Rebalance!$D$29,$F$2:$G$48,2,FALSE)+ROW()-2)),\"\")","v":{"$error":"#N/A"}},{"$f":"IF(INDIRECT(\"c\" & (VLOOKUP(Rebalance!$D$30,$F$2:$G$48,2,FALSE)+ROW()-2))=Rebalance!$D$30,INDIRECT(\"a\" & (VLOOKUP(Rebalance!$D$30,$F$2:$G$48,2,FALSE)+ROW()-2)),\"\")","v":{"$error":"#N/A"}},{"$f":"IF(INDIRECT(\"c\" & (VLOOKUP(Rebalance!$D$31,$F$2:$G$48,2,FALSE)+ROW()-2))=Rebalance!$D$31,INDIRECT(\"a\" & (VLOOKUP(Rebalance!$D$31,$F$2:$G$48,2,FALSE)+ROW()-2)),\"\")","v":{"$error":"#N/A"}},{"$f":"IF(INDIRECT(\"c\" & (VLOOKUP(Rebalance!$D$32,$F$2:$G$48,2,FALSE)+ROW()-2))=Rebalance!$D$32,INDIRECT(\"a\" & (VLOOKUP(Rebalance!$D$32,$F$2:$G$48,2,FALSE)+ROW()-2)),\"\")","v":{"$error":"#N/A"}},{"$f":"IF(INDIRECT(\"c\" & (VLOOKUP(Rebalance!$D$33,$F$2:$G$48,2,FALSE)+ROW()-2))=Rebalance!$D$33,INDIRECT(\"a\" & (VLOOKUP(Rebalance!$D$33,$F$2:$G$48,2,FALSE)+ROW()-2)),\"\")","v":{"$error":"#N/A"}},{"$f":"IF(INDIRECT(\"c\" & (VLOOKUP(Rebalance!$D$34,$F$2:$G$48,2,FALSE)+ROW()-2))=Rebalance!$D$34,INDIRECT(\"a\" & (VLOOKUP(Rebalance!$D$34,$F$2:$G$48,2,FALSE)+ROW()-2)),\"\")","v":{"$error":"#N/A"}},{"$f":"IF(INDIRECT(\"c\" & (VLOOKUP(Rebalance!$D$35,$F$2:$G$48,2,FALSE)+ROW()-2))=Rebalance!$D$35,INDIRECT(\"a\" & (VLOOKUP(Rebalance!$D$35,$F$2:$G$48,2,FALSE)+ROW()-2)),\"\")","v":{"$error":"#N/A"}},{"$f":"IF(INDIRECT(\"c\" & (VLOOKUP(Rebalance!$D$36,$F$2:$G$48,2,FALSE)+ROW()-2))=Rebalance!$D$36,INDIRECT(\"a\" & (VLOOKUP(Rebalance!$D$36,$F$2:$G$48,2,FALSE)+ROW()-2)),\"\")","v":{"$error":"#N/A"}},{"$f":"IF(INDIRECT(\"c\" & (VLOOKUP(Rebalance!$D$37,$F$2:$G$48,2,FALSE)+ROW()-2))=Rebalance!$D$37,INDIRECT(\"a\" & (VLOOKUP(Rebalance!$D$37,$F$2:$G$48,2,FALSE)+ROW()-2)),\"\")","v":{"$error":"#N/A"}},{"$f":"IF(INDIRECT(\"c\" & (VLOOKUP(Rebalance!$D$38,$F$2:$G$48,2,FALSE)+ROW()-2))=Rebalance!$D$38,INDIRECT(\"a\" & (VLOOKUP(Rebalance!$D$38,$F$2:$G$48,2,FALSE)+ROW()-2)),\"\")","v":{"$error":"#N/A"}},{"$f":"IF(INDIRECT(\"c\" & (VLOOKUP(Rebalance!$D$39,$F$2:$G$48,2,FALSE)+ROW()-2))=Rebalance!$D$39,INDIRECT(\"a\" & (VLOOKUP(Rebalance!$D$39,$F$2:$G$48,2,FALSE)+ROW()-2)),\"\")","v":{"$error":"#N/A"}},{"$f":"IF(INDIRECT(\"c\" & (VLOOKUP(Rebalance!$D$40,$F$2:$G$48,2,FALSE)+ROW()-2))=Rebalance!$D$40,INDIRECT(\"a\" & (VLOOKUP(Rebalance!$D$40,$F$2:$G$48,2,FALSE)+ROW()-2)),\"\")","v":{"$error":"#N/A"}},{"$f":"IF(INDIRECT(\"c\" & (VLOOKUP(Rebalance!$D$52,$F$2:$G$48,2,FALSE)+ROW()-2))=Rebalance!$D$52,INDIRECT(\"a\" & (VLOOKUP(Rebalance!$D$52,$F$2:$G$48,2,FALSE)+ROW()-2)),\"\")","v":{"$error":"#N/A"}},{"$f":"IF(INDIRECT(\"c\" & (VLOOKUP(Rebalance!$D$53,$F$2:$G$48,2,FALSE)+ROW()-2))=Rebalance!$D$53,INDIRECT(\"a\" & (VLOOKUP(Rebalance!$D$53,$F$2:$G$48,2,FALSE)+ROW()-2)),\"\")","v":{"$error":"#N/A"}},{"$f":"IF(INDIRECT(\"c\" & (VLOOKUP(Rebalance!$D$54,$F$2:$G$48,2,FALSE)+ROW()-2))=Rebalance!$D$54,INDIRECT(\"a\" & (VLOOKUP(Rebalance!$D$54,$F$2:$G$48,2,FALSE)+ROW()-2)),\"\")","v":{"$error":"#N/A"}},{"$f":"IF(INDIRECT(\"c\" & (VLOOKUP(Rebalance!$D$55,$F$2:$G$48,2,FALSE)+ROW()-2))=Rebalance!$D$55,INDIRECT(\"a\" & (VLOOKUP(Rebalance!$D$55,$F$2:$G$48,2,FALSE)+ROW()-2)),\"\")","v":{"$error":"#N/A"}},{"$f":"IF(INDIRECT(\"c\" & (VLOOKUP(Rebalance!$D$56,$F$2:$G$48,2,FALSE)+ROW()-2))=Rebalance!$D$56,INDIRECT(\"a\" & (VLOOKUP(Rebalance!$D$56,$F$2:$G$48,2,FALSE)+ROW()-2)),\"\")","v":{"$error":"#N/A"}},{"$f":"IF(INDIRECT(\"c\" & (VLOOKUP(Rebalance!$D$57,$F$2:$G$48,2,FALSE)+ROW()-2))=Rebalance!$D$57,INDIRECT(\"a\" & (VLOOKUP(Rebalance!$D$57,$F$2:$G$48,2,FALSE)+ROW()-2)),\"\")","v":{"$error":"#N/A"}},{"$f":"IF(INDIRECT(\"c\" & (VLOOKUP(Rebalance!$D$58,$F$2:$G$48,2,FALSE)+ROW()-2))=Rebalance!$D$58,INDIRECT(\"a\" & (VLOOKUP(Rebalance!$D$58,$F$2:$G$48,2,FALSE)+ROW()-2)),\"\")","v":{"$error":"#N/A"}},{"$f":"IF(INDIRECT(\"c\" & (VLOOKUP(Rebalance!$D$59,$F$2:$G$48,2,FALSE)+ROW()-2))=Rebalance!$D$59,INDIRECT(\"a\" & (VLOOKUP(Rebalance!$D$59,$F$2:$G$48,2,FALSE)+ROW()-2)),\"\")","v":{"$error":"#N/A"}},{"$f":"IF(INDIRECT(\"c\" & (VLOOKUP(Rebalance!$D$60,$F$2:$G$48,2,FALSE)+ROW()-2))=Rebalance!$D$60,INDIRECT(\"a\" & (VLOOKUP(Rebalance!$D$60,$F$2:$G$48,2,FALSE)+ROW()-2)),\"\")","v":{"$error":"#N/A"}},{"$f":"IF(INDIRECT(\"c\" & (VLOOKUP(Rebalance!$D$61,$F$2:$G$48,2,FALSE)+ROW()-2))=Rebalance!$D$61,INDIRECT(\"a\" & (VLOOKUP(Rebalance!$D$61,$F$2:$G$48,2,FALSE)+ROW()-2)),\"\")","v":{"$error":"#N/A"}},{"$f":"IF(INDIRECT(\"c\" & (VLOOKUP(Rebalance!$D$62,$F$2:$G$48,2,FALSE)+ROW()-2))=Rebalance!$D$62,INDIRECT(\"a\" & (VLOOKUP(Rebalance!$D$62,$F$2:$G$48,2,FALSE)+ROW()-2)),\"\")","v":{"$error":"#N/A"}},{"$f":"IF(INDIRECT(\"c\" & (VLOOKUP(Rebalance!$D$63,$F$2:$G$48,2,FALSE)+ROW()-2))=Rebalance!$D$63,INDIRECT(\"a\" & (VLOOKUP(Rebalance!$D$63,$F$2:$G$48,2,FALSE)+ROW()-2)),\"\")","v":{"$error":"#N/A"}},{"$f":"IF(INDIRECT(\"c\" & (VLOOKUP(Rebalance!$D$64,$F$2:$G$48,2,FALSE)+ROW()-2))=Rebalance!$D$64,INDIRECT(\"a\" & (VLOOKUP(Rebalance!$D$64,$F$2:$G$48,2,FALSE)+ROW()-2)),\"\")","v":{"$error":"#N/A"}},{"$f":"IF(INDIRECT(\"c\" & (VLOOKUP(Rebalance!$D$65,$F$2:$G$48,2,FALSE)+ROW()-2))=Rebalance!$D$65,INDIRECT(\"a\" & (VLOOKUP(Rebalance!$D$65,$F$2:$G$48,2,FALSE)+ROW()-2)),\"\")","v":{"$error":"#N/A"}},{"$f":"IF(INDIRECT(\"c\" & (VLOOKUP(Rebalance!$D$66,$F$2:$G$48,2,FALSE)+ROW()-2))=Rebalance!$D$66,INDIRECT(\"a\" & (VLOOKUP(Rebalance!$D$66,$F$2:$G$48,2,FALSE)+ROW()-2)),\"\")","v":{"$error":"#N/A"}}]
["STANLIB Africa Property Fund B2","STAB2","STANLIB Collective Investments",{"$f":"ROW()","v":34},null,null,{"$f":"VLOOKUP(F34,$C$2:$D$599,2,FALSE)","v":{"$error":"#N/A"}},{"$f":"IF(INDIRECT(\"c\" & (VLOOKUP(Rebalance!$D$26,$F$2:$G$48,2,FALSE)+ROW()-2))=Rebalance!$D$26,INDIRECT(\"a\" & (VLOOKUP(Rebalance!$D$26,$F$2:$G$48,2,FALSE)+ROW()-2)),\"\")","v":{"$error":"#N/A"}},{"$f":"IF(INDIRECT(\"c\" & (VLOOKUP(Rebalance!$D$27,$F$2:$G$48,2,FALSE)+ROW()-2))=Rebalance!$D$27,INDIRECT(\"a\" & (VLOOKUP(Rebalance!$D$27,$F$2:$G$48,2,FALSE)+ROW()-2)),\"\")","v":{"$error":"#N/A"}},{"$f":"IF(INDIRECT(\"c\" & (VLOOKUP(Rebalance!$D$28,$F$2:$G$48,2,FALSE)+ROW()-2))=Rebalance!$D$28,INDIRECT(\"a\" & (VLOOKUP(Rebalance!$D$28,$F$2:$G$48,2,FALSE)+ROW()-2)),\"\")","v":{"$error":"#N/A"}},{"$f":"IF(INDIRECT(\"c\" & (VLOOKUP(Rebalance!$D$29,$F$2:$G$48,2,FALSE)+ROW()-2))=Rebalance!$D$29,INDIRECT(\"a\" & (VLOOKUP(Rebalance!$D$29,$F$2:$G$48,2,FALSE)+ROW()-2)),\"\")","v":{"$error":"#N/A"}},{"$f":"IF(INDIRECT(\"c\" & (VLOOKUP(Rebalance!$D$30,$F$2:$G$48,2,FALSE)+ROW()-2))=Rebalance!$D$30,INDIRECT(\"a\" & (VLOOKUP(Rebalance!$D$30,$F$2:$G$48,2,FALSE)+ROW()-2)),\"\")","v":{"$error":"#N/A"}},{"$f":"IF(INDIRECT(\"c\" & (VLOOKUP(Rebalance!$D$31,$F$2:$G$48,2,FALSE)+ROW()-2))=Rebalance!$D$31,INDIRECT(\"a\" & (VLOOKUP(Rebalance!$D$31,$F$2:$G$48,2,FALSE)+ROW()-2)),\"\")","v":{"$error":"#N/A"}},{"$f":"IF(INDIRECT(\"c\" & (VLOOKUP(Rebalance!$D$32,$F$2:$G$48,2,FALSE)+ROW()-2))=Rebalance!$D$32,INDIRECT(\"a\" & (VLOOKUP(Rebalance!$D$32,$F$2:$G$48,2,FALSE)+ROW()-2)),\"\")","v":{"$error":"#N/A"}},{"$f":"IF(INDIRECT(\"c\" & (VLOOKUP(Rebalance!$D$33,$F$2:$G$48,2,FALSE)+ROW()-2))=Rebalance!$D$33,INDIRECT(\"a\" & (VLOOKUP(Rebalance!$D$33,$F$2:$G$48,2,FALSE)+ROW()-2)),\"\")","v":{"$error":"#N/A"}},{"$f":"IF(INDIRECT(\"c\" & (VLOOKUP(Rebalance!$D$34,$F$2:$G$48,2,FALSE)+ROW()-2))=Rebalance!$D$34,INDIRECT(\"a\" & (VLOOKUP(Rebalance!$D$34,$F$2:$G$48,2,FALSE)+ROW()-2)),\"\")","v":{"$error":"#N/A"}},{"$f":"IF(INDIRECT(\"c\" & (VLOOKUP(Rebalance!$D$35,$F$2:$G$48,2,FALSE)+ROW()-2))=Rebalance!$D$35,INDIRECT(\"a\" & (VLOOKUP(Rebalance!$D$35,$F$2:$G$48,2,FALSE)+ROW()-2)),\"\")","v":{"$error":"#N/A"}},{"$f":"IF(INDIRECT(\"c\" & (VLOOKUP(Rebalance!$D$36,$F$2:$G$48,2,FALSE)+ROW()-2))=Rebalance!$D$36,INDIRECT(\"a\" & (VLOOKUP(Rebalance!$D$36,$F$2:$G$48,2,FALSE)+ROW()-2)),\"\")","v":{"$error":"#N/A"}},{"$f":"IF(INDIRECT(\"c\" & (VLOOKUP(Rebalance!$D$37,$F$2:$G$48,2,FALSE)+ROW()-2))=Rebalance!$D$37,INDIRECT(\"a\" & (VLOOKUP(Rebalance!$D$37,$F$2:$G$48,2,FALSE)+ROW()-2)),\"\")","v":{"$error":"#N/A"}},{"$f":"IF(INDIRECT(\"c\" & (VLOOKUP(Rebalance!$D$38,$F$2:$G$48,2,FALSE)+ROW()-2))=Rebalance!$D$38,INDIRECT(\"a\" & (VLOOKUP(Rebalance!$D$38,$F$2:$G$48,2,FALSE)+ROW()-2)),\"\")","v":{"$error":"#N/A"}},{"$f":"IF(INDIRECT(\"c\" & (VLOOKUP(Rebalance!$D$39,$F$2:$G$48,2,FALSE)+ROW()-2))=Rebalance!$D$39,INDIRECT(\"a\" & (VLOOKUP(Rebalance!$D$39,$F$2:$G$48,2,FALSE)+ROW()-2)),\"\")","v":{"$error":"#N/A"}},{"$f":"IF(INDIRECT(\"c\" & (VLOOKUP(Rebalance!$D$40,$F$2:$G$48,2,FALSE)+ROW()-2))=Rebalance!$D$40,INDIRECT(\"a\" & (VLOOKUP(Rebalance!$D$40,$F$2:$G$48,2,FALSE)+ROW()-2)),\"\")","v":{"$error":"#N/A"}},{"$f":"IF(INDIRECT(\"c\" & (VLOOKUP(Rebalance!$D$52,$F$2:$G$48,2,FALSE)+ROW()-2))=Rebalance!$D$52,INDIRECT(\"a\" & (VLOOKUP(Rebalance!$D$52,$F$2:$G$48,2,FALSE)+ROW()-2)),\"\")","v":{"$error":"#N/A"}},{"$f":"IF(INDIRECT(\"c\" & (VLOOKUP(Rebalance!$D$53,$F$2:$G$48,2,FALSE)+ROW()-2))=Rebalance!$D$53,INDIRECT(\"a\" & (VLOOKUP(Rebalance!$D$53,$F$2:$G$48,2,FALSE)+ROW()-2)),\"\")","v":{"$error":"#N/A"}},{"$f":"IF(INDIRECT(\"c\" & (VLOOKUP(Rebalance!$D$54,$F$2:$G$48,2,FALSE)+ROW()-2))=Rebalance!$D$54,INDIRECT(\"a\" & (VLOOKUP(Rebalance!$D$54,$F$2:$G$48,2,FALSE)+ROW()-2)),\"\")","v":{"$error":"#N/A"}},{"$f":"IF(INDIRECT(\"c\" & (VLOOKUP(Rebalance!$D$55,$F$2:$G$48,2,FALSE)+ROW()-2))=Rebalance!$D$55,INDIRECT(\"a\" & (VLOOKUP(Rebalance!$D$55,$F$2:$G$48,2,FALSE)+ROW()-2)),\"\")","v":{"$error":"#N/A"}},{"$f":"IF(INDIRECT(\"c\" & (VLOOKUP(Rebalance!$D$56,$F$2:$G$48,2,FALSE)+ROW()-2))=Rebalance!$D$56,INDIRECT(\"a\" & (VLOOKUP(Rebalance!$D$56,$F$2:$G$48,2,FALSE)+ROW()-2)),\"\")","v":{"$error":"#N/A"}},{"$f":"IF(INDIRECT(\"c\" & (VLOOKUP(Rebalance!$D$57,$F$2:$G$48,2,FALSE)+ROW()-2))=Rebalance!$D$57,INDIRECT(\"a\" & (VLOOKUP(Rebalance!$D$57,$F$2:$G$48,2,FALSE)+ROW()-2)),\"\")","v":{"$error":"#N/A"}},{"$f":"IF(INDIRECT(\"c\" & (VLOOKUP(Rebalance!$D$58,$F$2:$G$48,2,FALSE)+ROW()-2))=Rebalance!$D$58,INDIRECT(\"a\" & (VLOOKUP(Rebalance!$D$58,$F$2:$G$48,2,FALSE)+ROW()-2)),\"\")","v":{"$error":"#N/A"}},{"$f":"IF(INDIRECT(\"c\" & (VLOOKUP(Rebalance!$D$59,$F$2:$G$48,2,FALSE)+ROW()-2))=Rebalance!$D$59,INDIRECT(\"a\" & (VLOOKUP(Rebalance!$D$59,$F$2:$G$48,2,FALSE)+ROW()-2)),\"\")","v":{"$error":"#N/A"}},{"$f":"IF(INDIRECT(\"c\" & (VLOOKUP(Rebalance!$D$60,$F$2:$G$48,2,FALSE)+ROW()-2))=Rebalance!$D$60,INDIRECT(\"a\" & (VLOOKUP(Rebalance!$D$60,$F$2:$G$48,2,FALSE)+ROW()-2)),\"\")","v":{"$error":"#N/A"}},{"$f":"IF(INDIRECT(\"c\" & (VLOOKUP(Rebalance!$D$61,$F$2:$G$48,2,FALSE)+ROW()-2))=Rebalance!$D$61,INDIRECT(\"a\" & (VLOOKUP(Rebalance!$D$61,$F$2:$G$48,2,FALSE)+ROW()-2)),\"\")","v":{"$error":"#N/A"}},{"$f":"IF(INDIRECT(\"c\" & (VLOOKUP(Rebalance!$D$62,$F$2:$G$48,2,FALSE)+ROW()-2))=Rebalance!$D$62,INDIRECT(\"a\" & (VLOOKUP(Rebalance!$D$62,$F$2:$G$48,2,FALSE)+ROW()-2)),\"\")","v":{"$error":"#N/A"}},{"$f":"IF(INDIRECT(\"c\" & (VLOOKUP(Rebalance!$D$63,$F$2:$G$48,2,FALSE)+ROW()-2))=Rebalance!$D$63,INDIRECT(\"a\" & (VLOOKUP(Rebalance!$D$63,$F$2:$G$48,2,FALSE)+ROW()-2)),\"\")","v":{"$error":"#N/A"}},{"$f":"IF(INDIRECT(\"c\" & (VLOOKUP(Rebalance!$D$64,$F$2:$G$48,2,FALSE)+ROW()-2))=Rebalance!$D$64,INDIRECT(\"a\" & (VLOOKUP(Rebalance!$D$64,$F$2:$G$48,2,FALSE)+ROW()-2)),\"\")","v":{"$error":"#N/A"}},{"$f":"IF(INDIRECT(\"c\" & (VLOOKUP(Rebalance!$D$65,$F$2:$G$48,2,FALSE)+ROW()-2))=Rebalance!$D$65,INDIRECT(\"a\" & (VLOOKUP(Rebalance!$D$65,$F$2:$G$48,2,FALSE)+ROW()-2)),\"\")","v":{"$error":"#N/A"}},{"$f":"IF(INDIRECT(\"c\" & (VLOOKUP(Rebalance!$D$66,$F$2:$G$48,2,FALSE)+ROW()-2))=Rebalance!$D$66,INDIRECT(\"a\" & (VLOOKUP(Rebalance!$D$66,$F$2:$G$48,2,FALSE)+ROW()-2)),\"\")","v":{"$error":"#N/A"}}]
["STANLIB Balanced Cautious Fund A","SBCFA","STANLIB Collective Investments",{"$f":"ROW()","v":35},null,null,{"$f":"VLOOKUP(F35,$C$2:$D$599,2,FALSE)","v":{"$error":"#N/A"}},{"$f":"IF(INDIRECT(\"c\" & (VLOOKUP(Rebalance!$D$26,$F$2:$G$48,2,FALSE)+ROW()-2))=Rebalance!$D$26,INDIRECT(\"a\" & (VLOOKUP(Rebalance!$D$26,$F$2:$G$48,2,FALSE)+ROW()-2)),\"\")","v":{"$error":"#N/A"}},{"$f":"IF(INDIRECT(\"c\" & (VLOOKUP(Rebalance!$D$27,$F$2:$G$48,2,FALSE)+ROW()-2))=Rebalance!$D$27,INDIRECT(\"a\" & (VLOOKUP(Rebalance!$D$27,$F$2:$G$48,2,FALSE)+ROW()-2)),\"\")","v":{"$error":"#N/A"}},{"$f":"IF(INDIRECT(\"c\" & (VLOOKUP(Rebalance!$D$28,$F$2:$G$48,2,FALSE)+ROW()-2))=Rebalance!$D$28,INDIRECT(\"a\" & (VLOOKUP(Rebalance!$D$28,$F$2:$G$48,2,FALSE)+ROW()-2)),\"\")","v":{"$error":"#N/A"}},{"$f":"IF(INDIRECT(\"c\" & (VLOOKUP(Rebalance!$D$29,$F$2:$G$48,2,FALSE)+ROW()-2))=Rebalance!$D$29,INDIRECT(\"a\" & (VLOOKUP(Rebalance!$D$29,$F$2:$G$48,2,FALSE)+ROW()-2)),\"\")","v":{"$error":"#N/A"}},{"$f":"IF(INDIRECT(\"c\" & (VLOOKUP(Rebalance!$D$30,$F$2:$G$48,2,FALSE)+ROW()-2))=Rebalance!$D$30,INDIRECT(\"a\" & (VLOOKUP(Rebalance!$D$30,$F$2:$G$48,2,FALSE)+ROW()-2)),\"\")","v":{"$error":"#N/A"}},{"$f":"IF(INDIRECT(\"c\" & (VLOOKUP(Rebalance!$D$31,$F$2:$G$48,2,FALSE)+ROW()-2))=Rebalance!$D$31,INDIRECT(\"a\" & (VLOOKUP(Rebalance!$D$31,$F$2:$G$48,2,FALSE)+ROW()-2)),\"\")","v":{"$error":"#N/A"}},{"$f":"IF(INDIRECT(\"c\" & (VLOOKUP(Rebalance!$D$32,$F$2:$G$48,2,FALSE)+ROW()-2))=Rebalance!$D$32,INDIRECT(\"a\" & (VLOOKUP(Rebalance!$D$32,$F$2:$G$48,2,FALSE)+ROW()-2)),\"\")","v":{"$error":"#N/A"}},{"$f":"IF(INDIRECT(\"c\" & (VLOOKUP(Rebalance!$D$33,$F$2:$G$48,2,FALSE)+ROW()-2))=Rebalance!$D$33,INDIRECT(\"a\" & (VLOOKUP(Rebalance!$D$33,$F$2:$G$48,2,FALSE)+ROW()-2)),\"\")","v":{"$error":"#N/A"}},{"$f":"IF(INDIRECT(\"c\" & (VLOOKUP(Rebalance!$D$34,$F$2:$G$48,2,FALSE)+ROW()-2))=Rebalance!$D$34,INDIRECT(\"a\" & (VLOOKUP(Rebalance!$D$34,$F$2:$G$48,2,FALSE)+ROW()-2)),\"\")","v":{"$error":"#N/A"}},{"$f":"IF(INDIRECT(\"c\" & (VLOOKUP(Rebalance!$D$35,$F$2:$G$48,2,FALSE)+ROW()-2))=Rebalance!$D$35,INDIRECT(\"a\" & (VLOOKUP(Rebalance!$D$35,$F$2:$G$48,2,FALSE)+ROW()-2)),\"\")","v":{"$error":"#N/A"}},{"$f":"IF(INDIRECT(\"c\" & (VLOOKUP(Rebalance!$D$36,$F$2:$G$48,2,FALSE)+ROW()-2))=Rebalance!$D$36,INDIRECT(\"a\" & (VLOOKUP(Rebalance!$D$36,$F$2:$G$48,2,FALSE)+ROW()-2)),\"\")","v":{"$error":"#N/A"}},{"$f":"IF(INDIRECT(\"c\" & (VLOOKUP(Rebalance!$D$37,$F$2:$G$48,2,FALSE)+ROW()-2))=Rebalance!$D$37,INDIRECT(\"a\" & (VLOOKUP(Rebalance!$D$37,$F$2:$G$48,2,FALSE)+ROW()-2)),\"\")","v":{"$error":"#N/A"}},{"$f":"IF(INDIRECT(\"c\" & (VLOOKUP(Rebalance!$D$38,$F$2:$G$48,2,FALSE)+ROW()-2))=Rebalance!$D$38,INDIRECT(\"a\" & (VLOOKUP(Rebalance!$D$38,$F$2:$G$48,2,FALSE)+ROW()-2)),\"\")","v":{"$error":"#N/A"}},{"$f":"IF(INDIRECT(\"c\" & (VLOOKUP(Rebalance!$D$39,$F$2:$G$48,2,FALSE)+ROW()-2))=Rebalance!$D$39,INDIRECT(\"a\" & (VLOOKUP(Rebalance!$D$39,$F$2:$G$48,2,FALSE)+ROW()-2)),\"\")","v":{"$error":"#N/A"}},{"$f":"IF(INDIRECT(\"c\" & (VLOOKUP(Rebalance!$D$40,$F$2:$G$48,2,FALSE)+ROW()-2))=Rebalance!$D$40,INDIRECT(\"a\" & (VLOOKUP(Rebalance!$D$40,$F$2:$G$48,2,FALSE)+ROW()-2)),\"\")","v":{"$error":"#N/A"}},{"$f":"IF(INDIRECT(\"c\" & (VLOOKUP(Rebalance!$D$52,$F$2:$G$48,2,FALSE)+ROW()-2))=Rebalance!$D$52,INDIRECT(\"a\" & (VLOOKUP(Rebalance!$D$52,$F$2:$G$48,2,FALSE)+ROW()-2)),\"\")","v":{"$error":"#N/A"}},{"$f":"IF(INDIRECT(\"c\" & (VLOOKUP(Rebalance!$D$53,$F$2:$G$48,2,FALSE)+ROW()-2))=Rebalance!$D$53,INDIRECT(\"a\" & (VLOOKUP(Rebalance!$D$53,$F$2:$G$48,2,FALSE)+ROW()-2)),\"\")","v":{"$error":"#N/A"}},{"$f":"IF(INDIRECT(\"c\" & (VLOOKUP(Rebalance!$D$54,$F$2:$G$48,2,FALSE)+ROW()-2))=Rebalance!$D$54,INDIRECT(\"a\" & (VLOOKUP(Rebalance!$D$54,$F$2:$G$48,2,FALSE)+ROW()-2)),\"\")","v":{"$error":"#N/A"}},{"$f":"IF(INDIRECT(\"c\" & (VLOOKUP(Rebalance!$D$55,$F$2:$G$48,2,FALSE)+ROW()-2))=Rebalance!$D$55,INDIRECT(\"a\" & (VLOOKUP(Rebalance!$D$55,$F$2:$G$48,2,FALSE)+ROW()-2)),\"\")","v":{"$error":"#N/A"}},{"$f":"IF(INDIRECT(\"c\" & (VLOOKUP(Rebalance!$D$56,$F$2:$G$48,2,FALSE)+ROW()-2))=Rebalance!$D$56,INDIRECT(\"a\" & (VLOOKUP(Rebalance!$D$56,$F$2:$G$48,2,FALSE)+ROW()-2)),\"\")","v":{"$error":"#N/A"}},{"$f":"IF(INDIRECT(\"c\" & (VLOOKUP(Rebalance!$D$57,$F$2:$G$48,2,FALSE)+ROW()-2))=Rebalance!$D$57,INDIRECT(\"a\" & (VLOOKUP(Rebalance!$D$57,$F$2:$G$48,2,FALSE)+ROW()-2)),\"\")","v":{"$error":"#N/A"}},{"$f":"IF(INDIRECT(\"c\" & (VLOOKUP(Rebalance!$D$58,$F$2:$G$48,2,FALSE)+ROW()-2))=Rebalance!$D$58,INDIRECT(\"a\" & (VLOOKUP(Rebalance!$D$58,$F$2:$G$48,2,FALSE)+ROW()-2)),\"\")","v":{"$error":"#N/A"}},{"$f":"IF(INDIRECT(\"c\" & (VLOOKUP(Rebalance!$D$59,$F$2:$G$48,2,FALSE)+ROW()-2))=Rebalance!$D$59,INDIRECT(\"a\" & (VLOOKUP(Rebalance!$D$59,$F$2:$G$48,2,FALSE)+ROW()-2)),\"\")","v":{"$error":"#N/A"}},{"$f":"IF(INDIRECT(\"c\" & (VLOOKUP(Rebalance!$D$60,$F$2:$G$48,2,FALSE)+ROW()-2))=Rebalance!$D$60,INDIRECT(\"a\" & (VLOOKUP(Rebalance!$D$60,$F$2:$G$48,2,FALSE)+ROW()-2)),\"\")","v":{"$error":"#N/A"}},{"$f":"IF(INDIRECT(\"c\" & (VLOOKUP(Rebalance!$D$61,$F$2:$G$48,2,FALSE)+ROW()-2))=Rebalance!$D$61,INDIRECT(\"a\" & (VLOOKUP(Rebalance!$D$61,$F$2:$G$48,2,FALSE)+ROW()-2)),\"\")","v":{"$error":"#N/A"}},{"$f":"IF(INDIRECT(\"c\" & (VLOOKUP(Rebalance!$D$62,$F$2:$G$48,2,FALSE)+ROW()-2))=Rebalance!$D$62,INDIRECT(\"a\" & (VLOOKUP(Rebalance!$D$62,$F$2:$G$48,2,FALSE)+ROW()-2)),\"\")","v":{"$error":"#N/A"}},{"$f":"IF(INDIRECT(\"c\" & (VLOOKUP(Rebalance!$D$63,$F$2:$G$48,2,FALSE)+ROW()-2))=Rebalance!$D$63,INDIRECT(\"a\" & (VLOOKUP(Rebalance!$D$63,$F$2:$G$48,2,FALSE)+ROW()-2)),\"\")","v":{"$error":"#N/A"}},{"$f":"IF(INDIRECT(\"c\" & (VLOOKUP(Rebalance!$D$64,$F$2:$G$48,2,FALSE)+ROW()-2))=Rebalance!$D$64,INDIRECT(\"a\" & (VLOOKUP(Rebalance!$D$64,$F$2:$G$48,2,FALSE)+ROW()-2)),\"\")","v":{"$error":"#N/A"}},{"$f":"IF(INDIRECT(\"c\" & (VLOOKUP(Rebalance!$D$65,$F$2:$G$48,2,FALSE)+ROW()-2))=Rebalance!$D$65,INDIRECT(\"a\" & (VLOOKUP(Rebalance!$D$65,$F$2:$G$48,2,FALSE)+ROW()-2)),\"\")","v":{"$error":"#N/A"}},{"$f":"IF(INDIRECT(\"c\" & (VLOOKUP(Rebalance!$D$66,$F$2:$G$48,2,FALSE)+ROW()-2))=Rebalance!$D$66,INDIRECT(\"a\" & (VLOOKUP(Rebalance!$D$66,$F$2:$G$48,2,FALSE)+ROW()-2)),\"\")","v":{"$error":"#N/A"}}]
["STANLIB Balanced Cautious Fund B1","SBCFA","STANLIB Collective Investments",{"$f":"ROW()","v":36},null,null,{"$f":"VLOOKUP(F36,$C$2:$D$599,2,FALSE)","v":{"$error":"#N/A"}},{"$f":"IF(INDIRECT(\"c\" & (VLOOKUP(Rebalance!$D$26,$F$2:$G$48,2,FALSE)+ROW()-2))=Rebalance!$D$26,INDIRECT(\"a\" & (VLOOKUP(Rebalance!$D$26,$F$2:$G$48,2,FALSE)+ROW()-2)),\"\")","v":{"$error":"#N/A"}},{"$f":"IF(INDIRECT(\"c\" & (VLOOKUP(Rebalance!$D$27,$F$2:$G$48,2,FALSE)+ROW()-2))=Rebalance!$D$27,INDIRECT(\"a\" & (VLOOKUP(Rebalance!$D$27,$F$2:$G$48,2,FALSE)+ROW()-2)),\"\")","v":{"$error":"#N/A"}},{"$f":"IF(INDIRECT(\"c\" & (VLOOKUP(Rebalance!$D$28,$F$2:$G$48,2,FALSE)+ROW()-2))=Rebalance!$D$28,INDIRECT(\"a\" & (VLOOKUP(Rebalance!$D$28,$F$2:$G$48,2,FALSE)+ROW()-2)),\"\")","v":{"$error":"#N/A"}},{"$f":"IF(INDIRECT(\"c\" & (VLOOKUP(Rebalance!$D$29,$F$2:$G$48,2,FALSE)+ROW()-2))=Rebalance!$D$29,INDIRECT(\"a\" & (VLOOKUP(Rebalance!$D$29,$F$2:$G$48,2,FALSE)+ROW()-2)),\"\")","v":{"$error":"#N/A"}},{"$f":"IF(INDIRECT(\"c\" & (VLOOKUP(Rebalance!$D$30,$F$2:$G$48,2,FALSE)+ROW()-2))=Rebalance!$D$30,INDIRECT(\"a\" & (VLOOKUP(Rebalance!$D$30,$F$2:$G$48,2,FALSE)+ROW()-2)),\"\")","v":{"$error":"#N/A"}},{"$f":"IF(INDIRECT(\"c\" & (VLOOKUP(Rebalance!$D$31,$F$2:$G$48,2,FALSE)+ROW()-2))=Rebalance!$D$31,INDIRECT(\"a\" & (VLOOKUP(Rebalance!$D$31,$F$2:$G$48,2,FALSE)+ROW()-2)),\"\")","v":{"$error":"#N/A"}},{"$f":"IF(INDIRECT(\"c\" & (VLOOKUP(Rebalance!$D$32,$F$2:$G$48,2,FALSE)+ROW()-2))=Rebalance!$D$32,INDIRECT(\"a\" & (VLOOKUP(Rebalance!$D$32,$F$2:$G$48,2,FALSE)+ROW()-2)),\"\")","v":{"$error":"#N/A"}},{"$f":"IF(INDIRECT(\"c\" & (VLOOKUP(Rebalance!$D$33,$F$2:$G$48,2,FALSE)+ROW()-2))=Rebalance!$D$33,INDIRECT(\"a\" & (VLOOKUP(Rebalance!$D$33,$F$2:$G$48,2,FALSE)+ROW()-2)),\"\")","v":{"$error":"#N/A"}},{"$f":"IF(INDIRECT(\"c\" & (VLOOKUP(Rebalance!$D$34,$F$2:$G$48,2,FALSE)+ROW()-2))=Rebalance!$D$34,INDIRECT(\"a\" & (VLOOKUP(Rebalance!$D$34,$F$2:$G$48,2,FALSE)+ROW()-2)),\"\")","v":{"$error":"#N/A"}},{"$f":"IF(INDIRECT(\"c\" & (VLOOKUP(Rebalance!$D$35,$F$2:$G$48,2,FALSE)+ROW()-2))=Rebalance!$D$35,INDIRECT(\"a\" & (VLOOKUP(Rebalance!$D$35,$F$2:$G$48,2,FALSE)+ROW()-2)),\"\")","v":{"$error":"#N/A"}},{"$f":"IF(INDIRECT(\"c\" & (VLOOKUP(Rebalance!$D$36,$F$2:$G$48,2,FALSE)+ROW()-2))=Rebalance!$D$36,INDIRECT(\"a\" & (VLOOKUP(Rebalance!$D$36,$F$2:$G$48,2,FALSE)+ROW()-2)),\"\")","v":{"$error":"#N/A"}},{"$f":"IF(INDIRECT(\"c\" & (VLOOKUP(Rebalance!$D$37,$F$2:$G$48,2,FALSE)+ROW()-2))=Rebalance!$D$37,INDIRECT(\"a\" & (VLOOKUP(Rebalance!$D$37,$F$2:$G$48,2,FALSE)+ROW()-2)),\"\")","v":{"$error":"#N/A"}},{"$f":"IF(INDIRECT(\"c\" & (VLOOKUP(Rebalance!$D$38,$F$2:$G$48,2,FALSE)+ROW()-2))=Rebalance!$D$38,INDIRECT(\"a\" & (VLOOKUP(Rebalance!$D$38,$F$2:$G$48,2,FALSE)+ROW()-2)),\"\")","v":{"$error":"#N/A"}},{"$f":"IF(INDIRECT(\"c\" & (VLOOKUP(Rebalance!$D$39,$F$2:$G$48,2,FALSE)+ROW()-2))=Rebalance!$D$39,INDIRECT(\"a\" & (VLOOKUP(Rebalance!$D$39,$F$2:$G$48,2,FALSE)+ROW()-2)),\"\")","v":{"$error":"#N/A"}},{"$f":"IF(INDIRECT(\"c\" & (VLOOKUP(Rebalance!$D$40,$F$2:$G$48,2,FALSE)+ROW()-2))=Rebalance!$D$40,INDIRECT(\"a\" & (VLOOKUP(Rebalance!$D$40,$F$2:$G$48,2,FALSE)+ROW()-2)),\"\")","v":{"$error":"#N/A"}},{"$f":"IF(INDIRECT(\"c\" & (VLOOKUP(Rebalance!$D$52,$F$2:$G$48,2,FALSE)+ROW()-2))=Rebalance!$D$52,INDIRECT(\"a\" & (VLOOKUP(Rebalance!$D$52,$F$2:$G$48,2,FALSE)+ROW()-2)),\"\")","v":{"$error":"#N/A"}},{"$f":"IF(INDIRECT(\"c\" & (VLOOKUP(Rebalance!$D$53,$F$2:$G$48,2,FALSE)+ROW()-2))=Rebalance!$D$53,INDIRECT(\"a\" & (VLOOKUP(Rebalance!$D$53,$F$2:$G$48,2,FALSE)+ROW()-2)),\"\")","v":{"$error":"#N/A"}},{"$f":"IF(INDIRECT(\"c\" & (VLOOKUP(Rebalance!$D$54,$F$2:$G$48,2,FALSE)+ROW()-2))=Rebalance!$D$54,INDIRECT(\"a\" & (VLOOKUP(Rebalance!$D$54,$F$2:$G$48,2,FALSE)+ROW()-2)),\"\")","v":{"$error":"#N/A"}},{"$f":"IF(INDIRECT(\"c\" & (VLOOKUP(Rebalance!$D$55,$F$2:$G$48,2,FALSE)+ROW()-2))=Rebalance!$D$55,INDIRECT(\"a\" & (VLOOKUP(Rebalance!$D$55,$F$2:$G$48,2,FALSE)+ROW()-2)),\"\")","v":{"$error":"#N/A"}},{"$f":"IF(INDIRECT(\"c\" & (VLOOKUP(Rebalance!$D$56,$F$2:$G$48,2,FALSE)+ROW()-2))=Rebalance!$D$56,INDIRECT(\"a\" & (VLOOKUP(Rebalance!$D$56,$F$2:$G$48,2,FALSE)+ROW()-2)),\"\")","v":{"$error":"#N/A"}},{"$f":"IF(INDIRECT(\"c\" & (VLOOKUP(Rebalance!$D$57,$F$2:$G$48,2,FALSE)+ROW()-2))=Rebalance!$D$57,INDIRECT(\"a\" & (VLOOKUP(Rebalance!$D$57,$F$2:$G$48,2,FALSE)+ROW()-2)),\"\")","v":{"$error":"#N/A"}},{"$f":"IF(INDIRECT(\"c\" & (VLOOKUP(Rebalance!$D$58,$F$2:$G$48,2,FALSE)+ROW()-2))=Rebalance!$D$58,INDIRECT(\"a\" & (VLOOKUP(Rebalance!$D$58,$F$2:$G$48,2,FALSE)+ROW()-2)),\"\")","v":{"$error":"#N/A"}},{"$f":"IF(INDIRECT(\"c\" & (VLOOKUP(Rebalance!$D$59,$F$2:$G$48,2,FALSE)+ROW()-2))=Rebalance!$D$59,INDIRECT(\"a\" & (VLOOKUP(Rebalance!$D$59,$F$2:$G$48,2,FALSE)+ROW()-2)),\"\")","v":{"$error":"#N/A"}},{"$f":"IF(INDIRECT(\"c\" & (VLOOKUP(Rebalance!$D$60,$F$2:$G$48,2,FALSE)+ROW()-2))=Rebalance!$D$60,INDIRECT(\"a\" & (VLOOKUP(Rebalance!$D$60,$F$2:$G$48,2,FALSE)+ROW()-2)),\"\")","v":{"$error":"#N/A"}},{"$f":"IF(INDIRECT(\"c\" & (VLOOKUP(Rebalance!$D$61,$F$2:$G$48,2,FALSE)+ROW()-2))=Rebalance!$D$61,INDIRECT(\"a\" & (VLOOKUP(Rebalance!$D$61,$F$2:$G$48,2,FALSE)+ROW()-2)),\"\")","v":{"$error":"#N/A"}},{"$f":"IF(INDIRECT(\"c\" & (VLOOKUP(Rebalance!$D$62,$F$2:$G$48,2,FALSE)+ROW()-2))=Rebalance!$D$62,INDIRECT(\"a\" & (VLOOKUP(Rebalance!$D$62,$F$2:$G$48,2,FALSE)+ROW()-2)),\"\")","v":{"$error":"#N/A"}},{"$f":"IF(INDIRECT(\"c\" & (VLOOKUP(Rebalance!$D$63,$F$2:$G$48,2,FALSE)+ROW()-2))=Rebalance!$D$63,INDIRECT(\"a\" & (VLOOKUP(Rebalance!$D$63,$F$2:$G$48,2,FALSE)+ROW()-2)),\"\")","v":{"$error":"#N/A"}},{"$f":"IF(INDIRECT(\"c\" & (VLOOKUP(Rebalance!$D$64,$F$2:$G$48,2,FALSE)+ROW()-2))=Rebalance!$D$64,INDIRECT(\"a\" & (VLOOKUP(Rebalance!$D$64,$F$2:$G$48,2,FALSE)+ROW()-2)),\"\")","v":{"$error":"#N/A"}},{"$f":"IF(INDIRECT(\"c\" & (VLOOKUP(Rebalance!$D$65,$F$2:$G$48,2,FALSE)+ROW()-2))=Rebalance!$D$65,INDIRECT(\"a\" & (VLOOKUP(Rebalance!$D$65,$F$2:$G$48,2,FALSE)+ROW()-2)),\"\")","v":{"$error":"#N/A"}},{"$f":"IF(INDIRECT(\"c\" & (VLOOKUP(Rebalance!$D$66,$F$2:$G$48,2,FALSE)+ROW()-2))=Rebalance!$D$66,INDIRECT(\"a\" & (VLOOKUP(Rebalance!$D$66,$F$2:$G$48,2,FALSE)+ROW()-2)),\"\")","v":{"$error":"#N/A"}}]
["STANLIB Balanced Fund A","LISA","STANLIB Collective Investments",{"$f":"ROW()","v":37},null,null,{"$f":"VLOOKUP(F37,$C$2:$D$599,2,FALSE)","v":{"$error":"#N/A"}},{"$f":"IF(INDIRECT(\"c\" & (VLOOKUP(Rebalance!$D$26,$F$2:$G$48,2,FALSE)+ROW()-2))=Rebalance!$D$26,INDIRECT(\"a\" & (VLOOKUP(Rebalance!$D$26,$F$2:$G$48,2,FALSE)+ROW()-2)),\"\")","v":{"$error":"#N/A"}},{"$f":"IF(INDIRECT(\"c\" & (VLOOKUP(Rebalance!$D$27,$F$2:$G$48,2,FALSE)+ROW()-2))=Rebalance!$D$27,INDIRECT(\"a\" & (VLOOKUP(Rebalance!$D$27,$F$2:$G$48,2,FALSE)+ROW()-2)),\"\")","v":{"$error":"#N/A"}},{"$f":"IF(INDIRECT(\"c\" & (VLOOKUP(Rebalance!$D$28,$F$2:$G$48,2,FALSE)+ROW()-2))=Rebalance!$D$28,INDIRECT(\"a\" & (VLOOKUP(Rebalance!$D$28,$F$2:$G$48,2,FALSE)+ROW()-2)),\"\")","v":{"$error":"#N/A"}},{"$f":"IF(INDIRECT(\"c\" & (VLOOKUP(Rebalance!$D$29,$F$2:$G$48,2,FALSE)+ROW()-2))=Rebalance!$D$29,INDIRECT(\"a\" & (VLOOKUP(Rebalance!$D$29,$F$2:$G$48,2,FALSE)+ROW()-2)),\"\")","v":{"$error":"#N/A"}},{"$f":"IF(INDIRECT(\"c\" & (VLOOKUP(Rebalance!$D$30,$F$2:$G$48,2,FALSE)+ROW()-2))=Rebalance!$D$30,INDIRECT(\"a\" & (VLOOKUP(Rebalance!$D$30,$F$2:$G$48,2,FALSE)+ROW()-2)),\"\")","v":{"$error":"#N/A"}},{"$f":"IF(INDIRECT(\"c\" & (VLOOKUP(Rebalance!$D$31,$F$2:$G$48,2,FALSE)+ROW()-2))=Rebalance!$D$31,INDIRECT(\"a\" & (VLOOKUP(Rebalance!$D$31,$F$2:$G$48,2,FALSE)+ROW()-2)),\"\")","v":{"$error":"#N/A"}},{"$f":"IF(INDIRECT(\"c\" & (VLOOKUP(Rebalance!$D$32,$F$2:$G$48,2,FALSE)+ROW()-2))=Rebalance!$D$32,INDIRECT(\"a\" & (VLOOKUP(Rebalance!$D$32,$F$2:$G$48,2,FALSE)+ROW()-2)),\"\")","v":{"$error":"#N/A"}},{"$f":"IF(INDIRECT(\"c\" & (VLOOKUP(Rebalance!$D$33,$F$2:$G$48,2,FALSE)+ROW()-2))=Rebalance!$D$33,INDIRECT(\"a\" & (VLOOKUP(Rebalance!$D$33,$F$2:$G$48,2,FALSE)+ROW()-2)),\"\")","v":{"$error":"#N/A"}},{"$f":"IF(INDIRECT(\"c\" & (VLOOKUP(Rebalance!$D$34,$F$2:$G$48,2,FALSE)+ROW()-2))=Rebalance!$D$34,INDIRECT(\"a\" & (VLOOKUP(Rebalance!$D$34,$F$2:$G$48,2,FALSE)+ROW()-2)),\"\")","v":{"$error":"#N/A"}},{"$f":"IF(INDIRECT(\"c\" & (VLOOKUP(Rebalance!$D$35,$F$2:$G$48,2,FALSE)+ROW()-2))=Rebalance!$D$35,INDIRECT(\"a\" & (VLOOKUP(Rebalance!$D$35,$F$2:$G$48,2,FALSE)+ROW()-2)),\"\")","v":{"$error":"#N/A"}},{"$f":"IF(INDIRECT(\"c\" & (VLOOKUP(Rebalance!$D$36,$F$2:$G$48,2,FALSE)+ROW()-2))=Rebalance!$D$36,INDIRECT(\"a\" & (VLOOKUP(Rebalance!$D$36,$F$2:$G$48,2,FALSE)+ROW()-2)),\"\")","v":{"$error":"#N/A"}},{"$f":"IF(INDIRECT(\"c\" & (VLOOKUP(Rebalance!$D$37,$F$2:$G$48,2,FALSE)+ROW()-2))=Rebalance!$D$37,INDIRECT(\"a\" & (VLOOKUP(Rebalance!$D$37,$F$2:$G$48,2,FALSE)+ROW()-2)),\"\")","v":{"$error":"#N/A"}},{"$f":"IF(INDIRECT(\"c\" & (VLOOKUP(Rebalance!$D$38,$F$2:$G$48,2,FALSE)+ROW()-2))=Rebalance!$D$38,INDIRECT(\"a\" & (VLOOKUP(Rebalance!$D$38,$F$2:$G$48,2,FALSE)+ROW()-2)),\"\")","v":{"$error":"#N/A"}},{"$f":"IF(INDIRECT(\"c\" & (VLOOKUP(Rebalance!$D$39,$F$2:$G$48,2,FALSE)+ROW()-2))=Rebalance!$D$39,INDIRECT(\"a\" & (VLOOKUP(Rebalance!$D$39,$F$2:$G$48,2,FALSE)+ROW()-2)),\"\")","v":{"$error":"#N/A"}},{"$f":"IF(INDIRECT(\"c\" & (VLOOKUP(Rebalance!$D$40,$F$2:$G$48,2,FALSE)+ROW()-2))=Rebalance!$D$40,INDIRECT(\"a\" & (VLOOKUP(Rebalance!$D$40,$F$2:$G$48,2,FALSE)+ROW()-2)),\"\")","v":{"$error":"#N/A"}},{"$f":"IF(INDIRECT(\"c\" & (VLOOKUP(Rebalance!$D$52,$F$2:$G$48,2,FALSE)+ROW()-2))=Rebalance!$D$52,INDIRECT(\"a\" & (VLOOKUP(Rebalance!$D$52,$F$2:$G$48,2,FALSE)+ROW()-2)),\"\")","v":{"$error":"#N/A"}},{"$f":"IF(INDIRECT(\"c\" & (VLOOKUP(Rebalance!$D$53,$F$2:$G$48,2,FALSE)+ROW()-2))=Rebalance!$D$53,INDIRECT(\"a\" & (VLOOKUP(Rebalance!$D$53,$F$2:$G$48,2,FALSE)+ROW()-2)),\"\")","v":{"$error":"#N/A"}},{"$f":"IF(INDIRECT(\"c\" & (VLOOKUP(Rebalance!$D$54,$F$2:$G$48,2,FALSE)+ROW()-2))=Rebalance!$D$54,INDIRECT(\"a\" & (VLOOKUP(Rebalance!$D$54,$F$2:$G$48,2,FALSE)+ROW()-2)),\"\")","v":{"$error":"#N/A"}},{"$f":"IF(INDIRECT(\"c\" & (VLOOKUP(Rebalance!$D$55,$F$2:$G$48,2,FALSE)+ROW()-2))=Rebalance!$D$55,INDIRECT(\"a\" & (VLOOKUP(Rebalance!$D$55,$F$2:$G$48,2,FALSE)+ROW()-2)),\"\")","v":{"$error":"#N/A"}},{"$f":"IF(INDIRECT(\"c\" & (VLOOKUP(Rebalance!$D$56,$F$2:$G$48,2,FALSE)+ROW()-2))=Rebalance!$D$56,INDIRECT(\"a\" & (VLOOKUP(Rebalance!$D$56,$F$2:$G$48,2,FALSE)+ROW()-2)),\"\")","v":{"$error":"#N/A"}},{"$f":"IF(INDIRECT(\"c\" & (VLOOKUP(Rebalance!$D$57,$F$2:$G$48,2,FALSE)+ROW()-2))=Rebalance!$D$57,INDIRECT(\"a\" & (VLOOKUP(Rebalance!$D$57,$F$2:$G$48,2,FALSE)+ROW()-2)),\"\")","v":{"$error":"#N/A"}},{"$f":"IF(INDIRECT(\"c\" & (VLOOKUP(Rebalance!$D$58,$F$2:$G$48,2,FALSE)+ROW()-2))=Rebalance!$D$58,INDIRECT(\"a\" & (VLOOKUP(Rebalance!$D$58,$F$2:$G$48,2,FALSE)+ROW()-2)),\"\")","v":{"$error":"#N/A"}},{"$f":"IF(INDIRECT(\"c\" & (VLOOKUP(Rebalance!$D$59,$F$2:$G$48,2,FALSE)+ROW()-2))=Rebalance!$D$59,INDIRECT(\"a\" & (VLOOKUP(Rebalance!$D$59,$F$2:$G$48,2,FALSE)+ROW()-2)),\"\")","v":{"$error":"#N/A"}},{"$f":"IF(INDIRECT(\"c\" & (VLOOKUP(Rebalance!$D$60,$F$2:$G$48,2,FALSE)+ROW()-2))=Rebalance!$D$60,INDIRECT(\"a\" & (VLOOKUP(Rebalance!$D$60,$F$2:$G$48,2,FALSE)+ROW()-2)),\"\")","v":{"$error":"#N/A"}},{"$f":"IF(INDIRECT(\"c\" & (VLOOKUP(Rebalance!$D$61,$F$2:$G$48,2,FALSE)+ROW()-2))=Rebalance!$D$61,INDIRECT(\"a\" & (VLOOKUP(Rebalance!$D$61,$F$2:$G$48,2,FALSE)+ROW()-2)),\"\")","v":{"$error":"#N/A"}},{"$f":"IF(INDIRECT(\"c\" & (VLOOKUP(Rebalance!$D$62,$F$2:$G$48,2,FALSE)+ROW()-2))=Rebalance!$D$62,INDIRECT(\"a\" & (VLOOKUP(Rebalance!$D$62,$F$2:$G$48,2,FALSE)+ROW()-2)),\"\")","v":{"$error":"#N/A"}},{"$f":"IF(INDIRECT(\"c\" & (VLOOKUP(Rebalance!$D$63,$F$2:$G$48,2,FALSE)+ROW()-2))=Rebalance!$D$63,INDIRECT(\"a\" & (VLOOKUP(Rebalance!$D$63,$F$2:$G$48,2,FALSE)+ROW()-2)),\"\")","v":{"$error":"#N/A"}},{"$f":"IF(INDIRECT(\"c\" & (VLOOKUP(Rebalance!$D$64,$F$2:$G$48,2,FALSE)+ROW()-2))=Rebalance!$D$64,INDIRECT(\"a\" & (VLOOKUP(Rebalance!$D$64,$F$2:$G$48,2,FALSE)+ROW()-2)),\"\")","v":{"$error":"#N/A"}},{"$f":"IF(INDIRECT(\"c\" & (VLOOKUP(Rebalance!$D$65,$F$2:$G$48,2,FALSE)+ROW()-2))=Rebalance!$D$65,INDIRECT(\"a\" & (VLOOKUP(Rebalance!$D$65,$F$2:$G$48,2,FALSE)+ROW()-2)),\"\")","v":{"$error":"#N/A"}},{"$f":"IF(INDIRECT(\"c\" & (VLOOKUP(Rebalance!$D$66,$F$2:$G$48,2,FALSE)+ROW()-2))=Rebalance!$D$66,INDIRECT(\"a\" & (VLOOKUP(Rebalance!$D$66,$F$2:$G$48,2,FALSE)+ROW()-2)),\"\")","v":{"$error":"#N/A"}}]
["STANLIB Balanced Fund B1","LISA","STANLIB Collective Investments",{"$f":"ROW()","v":38},null,null,{"$f":"VLOOKUP(F38,$C$2:$D$599,2,FALSE)","v":{"$error":"#N/A"}},{"$f":"IF(INDIRECT(\"c\" & (VLOOKUP(Rebalance!$D$26,$F$2:$G$48,2,FALSE)+ROW()-2))=Rebalance!$D$26,INDIRECT(\"a\" & (VLOOKUP(Rebalance!$D$26,$F$2:$G$48,2,FALSE)+ROW()-2)),\"\")","v":{"$error":"#N/A"}},{"$f":"IF(INDIRECT(\"c\" & (VLOOKUP(Rebalance!$D$27,$F$2:$G$48,2,FALSE)+ROW()-2))=Rebalance!$D$27,INDIRECT(\"a\" & (VLOOKUP(Rebalance!$D$27,$F$2:$G$48,2,FALSE)+ROW()-2)),\"\")","v":{"$error":"#N/A"}},{"$f":"IF(INDIRECT(\"c\" & (VLOOKUP(Rebalance!$D$28,$F$2:$G$48,2,FALSE)+ROW()-2))=Rebalance!$D$28,INDIRECT(\"a\" & (VLOOKUP(Rebalance!$D$28,$F$2:$G$48,2,FALSE)+ROW()-2)),\"\")","v":{"$error":"#N/A"}},{"$f":"IF(INDIRECT(\"c\" & (VLOOKUP(Rebalance!$D$29,$F$2:$G$48,2,FALSE)+ROW()-2))=Rebalance!$D$29,INDIRECT(\"a\" & (VLOOKUP(Rebalance!$D$29,$F$2:$G$48,2,FALSE)+ROW()-2)),\"\")","v":{"$error":"#N/A"}},{"$f":"IF(INDIRECT(\"c\" & (VLOOKUP(Rebalance!$D$30,$F$2:$G$48,2,FALSE)+ROW()-2))=Rebalance!$D$30,INDIRECT(\"a\" & (VLOOKUP(Rebalance!$D$30,$F$2:$G$48,2,FALSE)+ROW()-2)),\"\")","v":{"$error":"#N/A"}},{"$f":"IF(INDIRECT(\"c\" & (VLOOKUP(Rebalance!$D$31,$F$2:$G$48,2,FALSE)+ROW()-2))=Rebalance!$D$31,INDIRECT(\"a\" & (VLOOKUP(Rebalance!$D$31,$F$2:$G$48,2,FALSE)+ROW()-2)),\"\")","v":{"$error":"#N/A"}},{"$f":"IF(INDIRECT(\"c\" & (VLOOKUP(Rebalance!$D$32,$F$2:$G$48,2,FALSE)+ROW()-2))=Rebalance!$D$32,INDIRECT(\"a\" & (VLOOKUP(Rebalance!$D$32,$F$2:$G$48,2,FALSE)+ROW()-2)),\"\")","v":{"$error":"#N/A"}},{"$f":"IF(INDIRECT(\"c\" & (VLOOKUP(Rebalance!$D$33,$F$2:$G$48,2,FALSE)+ROW()-2))=Rebalance!$D$33,INDIRECT(\"a\" & (VLOOKUP(Rebalance!$D$33,$F$2:$G$48,2,FALSE)+ROW()-2)),\"\")","v":{"$error":"#N/A"}},{"$f":"IF(INDIRECT(\"c\" & (VLOOKUP(Rebalance!$D$34,$F$2:$G$48,2,FALSE)+ROW()-2))=Rebalance!$D$34,INDIRECT(\"a\" & (VLOOKUP(Rebalance!$D$34,$F$2:$G$48,2,FALSE)+ROW()-2)),\"\")","v":{"$error":"#N/A"}},{"$f":"IF(INDIRECT(\"c\" & (VLOOKUP(Rebalance!$D$35,$F$2:$G$48,2,FALSE)+ROW()-2))=Rebalance!$D$35,INDIRECT(\"a\" & (VLOOKUP(Rebalance!$D$35,$F$2:$G$48,2,FALSE)+ROW()-2)),\"\")","v":{"$error":"#N/A"}},{"$f":"IF(INDIRECT(\"c\" & (VLOOKUP(Rebalance!$D$36,$F$2:$G$48,2,FALSE)+ROW()-2))=Rebalance!$D$36,INDIRECT(\"a\" & (VLOOKUP(Rebalance!$D$36,$F$2:$G$48,2,FALSE)+ROW()-2)),\"\")","v":{"$error":"#N/A"}},{"$f":"IF(INDIRECT(\"c\" & (VLOOKUP(Rebalance!$D$37,$F$2:$G$48,2,FALSE)+ROW()-2))=Rebalance!$D$37,INDIRECT(\"a\" & (VLOOKUP(Rebalance!$D$37,$F$2:$G$48,2,FALSE)+ROW()-2)),\"\")","v":{"$error":"#N/A"}},{"$f":"IF(INDIRECT(\"c\" & (VLOOKUP(Rebalance!$D$38,$F$2:$G$48,2,FALSE)+ROW()-2))=Rebalance!$D$38,INDIRECT(\"a\" & (VLOOKUP(Rebalance!$D$38,$F$2:$G$48,2,FALSE)+ROW()-2)),\"\")","v":{"$error":"#N/A"}},{"$f":"IF(INDIRECT(\"c\" & (VLOOKUP(Rebalance!$D$39,$F$2:$G$48,2,FALSE)+ROW()-2))=Rebalance!$D$39,INDIRECT(\"a\" & (VLOOKUP(Rebalance!$D$39,$F$2:$G$48,2,FALSE)+ROW()-2)),\"\")","v":{"$error":"#N/A"}},{"$f":"IF(INDIRECT(\"c\" & (VLOOKUP(Rebalance!$D$40,$F$2:$G$48,2,FALSE)+ROW()-2))=Rebalance!$D$40,INDIRECT(\"a\" & (VLOOKUP(Rebalance!$D$40,$F$2:$G$48,2,FALSE)+ROW()-2)),\"\")","v":{"$error":"#N/A"}},{"$f":"IF(INDIRECT(\"c\" & (VLOOKUP(Rebalance!$D$52,$F$2:$G$48,2,FALSE)+ROW()-2))=Rebalance!$D$52,INDIRECT(\"a\" & (VLOOKUP(Rebalance!$D$52,$F$2:$G$48,2,FALSE)+ROW()-2)),\"\")","v":{"$error":"#N/A"}},{"$f":"IF(INDIRECT(\"c\" & (VLOOKUP(Rebalance!$D$53,$F$2:$G$48,2,FALSE)+ROW()-2))=Rebalance!$D$53,INDIRECT(\"a\" & (VLOOKUP(Rebalance!$D$53,$F$2:$G$48,2,FALSE)+ROW()-2)),\"\")","v":{"$error":"#N/A"}},{"$f":"IF(INDIRECT(\"c\" & (VLOOKUP(Rebalance!$D$54,$F$2:$G$48,2,FALSE)+ROW()-2))=Rebalance!$D$54,INDIRECT(\"a\" & (VLOOKUP(Rebalance!$D$54,$F$2:$G$48,2,FALSE)+ROW()-2)),\"\")","v":{"$error":"#N/A"}},{"$f":"IF(INDIRECT(\"c\" & (VLOOKUP(Rebalance!$D$55,$F$2:$G$48,2,FALSE)+ROW()-2))=Rebalance!$D$55,INDIRECT(\"a\" & (VLOOKUP(Rebalance!$D$55,$F$2:$G$48,2,FALSE)+ROW()-2)),\"\")","v":{"$error":"#N/A"}},{"$f":"IF(INDIRECT(\"c\" & (VLOOKUP(Rebalance!$D$56,$F$2:$G$48,2,FALSE)+ROW()-2))=Rebalance!$D$56,INDIRECT(\"a\" & (VLOOKUP(Rebalance!$D$56,$F$2:$G$48,2,FALSE)+ROW()-2)),\"\")","v":{"$error":"#N/A"}},{"$f":"IF(INDIRECT(\"c\" & (VLOOKUP(Rebalance!$D$57,$F$2:$G$48,2,FALSE)+ROW()-2))=Rebalance!$D$57,INDIRECT(\"a\" & (VLOOKUP(Rebalance!$D$57,$F$2:$G$48,2,FALSE)+ROW()-2)),\"\")","v":{"$error":"#N/A"}},{"$f":"IF(INDIRECT(\"c\" & (VLOOKUP(Rebalance!$D$58,$F$2:$G$48,2,FALSE)+ROW()-2))=Rebalance!$D$58,INDIRECT(\"a\" & (VLOOKUP(Rebalance!$D$58,$F$2:$G$48,2,FALSE)+ROW()-2)),\"\")","v":{"$error":"#N/A"}},{"$f":"IF(INDIRECT(\"c\" & (VLOOKUP(Rebalance!$D$59,$F$2:$G$48,2,FALSE)+ROW()-2))=Rebalance!$D$59,INDIRECT(\"a\" & (VLOOKUP(Rebalance!$D$59,$F$2:$G$48,2,FALSE)+ROW()-2)),\"\")","v":{"$error":"#N/A"}},{"$f":"IF(INDIRECT(\"c\" & (VLOOKUP(Rebalance!$D$60,$F$2:$G$48,2,FALSE)+ROW()-2))=Rebalance!$D$60,INDIRECT(\"a\" & (VLOOKUP(Rebalance!$D$60,$F$2:$G$48,2,FALSE)+ROW()-2)),\"\")","v":{"$error":"#N/A"}},{"$f":"IF(INDIRECT(\"c\" & (VLOOKUP(Rebalance!$D$61,$F$2:$G$48,2,FALSE)+ROW()-2))=Rebalance!$D$61,INDIRECT(\"a\" & (VLOOKUP(Rebalance!$D$61,$F$2:$G$48,2,FALSE)+ROW()-2)),\"\")","v":{"$error":"#N/A"}},{"$f":"IF(INDIRECT(\"c\" & (VLOOKUP(Rebalance!$D$62,$F$2:$G$48,2,FALSE)+ROW()-2))=Rebalance!$D$62,INDIRECT(\"a\" & (VLOOKUP(Rebalance!$D$62,$F$2:$G$48,2,FALSE)+ROW()-2)),\"\")","v":{"$error":"#N/A"}},{"$f":"IF(INDIRECT(\"c\" & (VLOOKUP(Rebalance!$D$63,$F$2:$G$48,2,FALSE)+ROW()-2))=Rebalance!$D$63,INDIRECT(\"a\" & (VLOOKUP(Rebalance!$D$63,$F$2:$G$48,2,FALSE)+ROW()-2)),\"\")","v":{"$error":"#N/A"}},{"$f":"IF(INDIRECT(\"c\" & (VLOOKUP(Rebalance!$D$64,$F$2:$G$48,2,FALSE)+ROW()-2))=Rebalance!$D$64,INDIRECT(\"a\" & (VLOOKUP(Rebalance!$D$64,$F$2:$G$48,2,FALSE)+ROW()-2)),\"\")","v":{"$error":"#N/A"}},{"$f":"IF(INDIRECT(\"c\" & (VLOOKUP(Rebalance!$D$65,$F$2:$G$48,2,FALSE)+ROW()-2))=Rebalance!$D$65,INDIRECT(\"a\" & (VLOOKUP(Rebalance!$D$65,$F$2:$G$48,2,FALSE)+ROW()-2)),\"\")","v":{"$error":"#N/A"}},{"$f":"IF(INDIRECT(\"c\" & (VLOOKUP(Rebalance!$D$66,$F$2:$G$48,2,FALSE)+ROW()-2))=Rebalance!$D$66,INDIRECT(\"a\" & (VLOOKUP(Rebalance!$D$66,$F$2:$G$48,2,FALSE)+ROW()-2)),\"\")","v":{"$error":"#N/A"}}]
["STANLIB Balanced Trustees FOF A","SBTF","STANLIB Collective Investments",{"$f":"ROW()","v":39},null,null,{"$f":"VLOOKUP(F39,$C$2:$D$599,2,FALSE)","v":{"$error":"#N/A"}},{"$f":"IF(INDIRECT(\"c\" & (VLOOKUP(Rebalance!$D$26,$F$2:$G$48,2,FALSE)+ROW()-2))=Rebalance!$D$26,INDIRECT(\"a\" & (VLOOKUP(Rebalance!$D$26,$F$2:$G$48,2,FALSE)+ROW()-2)),\"\")","v":{"$error":"#N/A"}},{"$f":"IF(INDIRECT(\"c\" & (VLOOKUP(Rebalance!$D$27,$F$2:$G$48,2,FALSE)+ROW()-2))=Rebalance!$D$27,INDIRECT(\"a\" & (VLOOKUP(Rebalance!$D$27,$F$2:$G$48,2,FALSE)+ROW()-2)),\"\")","v":{"$error":"#N/A"}},{"$f":"IF(INDIRECT(\"c\" & (VLOOKUP(Rebalance!$D$28,$F$2:$G$48,2,FALSE)+ROW()-2))=Rebalance!$D$28,INDIRECT(\"a\" & (VLOOKUP(Rebalance!$D$28,$F$2:$G$48,2,FALSE)+ROW()-2)),\"\")","v":{"$error":"#N/A"}},{"$f":"IF(INDIRECT(\"c\" & (VLOOKUP(Rebalance!$D$29,$F$2:$G$48,2,FALSE)+ROW()-2))=Rebalance!$D$29,INDIRECT(\"a\" & (VLOOKUP(Rebalance!$D$29,$F$2:$G$48,2,FALSE)+ROW()-2)),\"\")","v":{"$error":"#N/A"}},{"$f":"IF(INDIRECT(\"c\" & (VLOOKUP(Rebalance!$D$30,$F$2:$G$48,2,FALSE)+ROW()-2))=Rebalance!$D$30,INDIRECT(\"a\" & (VLOOKUP(Rebalance!$D$30,$F$2:$G$48,2,FALSE)+ROW()-2)),\"\")","v":{"$error":"#N/A"}},{"$f":"IF(INDIRECT(\"c\" & (VLOOKUP(Rebalance!$D$31,$F$2:$G$48,2,FALSE)+ROW()-2))=Rebalance!$D$31,INDIRECT(\"a\" & (VLOOKUP(Rebalance!$D$31,$F$2:$G$48,2,FALSE)+ROW()-2)),\"\")","v":{"$error":"#N/A"}},{"$f":"IF(INDIRECT(\"c\" & (VLOOKUP(Rebalance!$D$32,$F$2:$G$48,2,FALSE)+ROW()-2))=Rebalance!$D$32,INDIRECT(\"a\" & (VLOOKUP(Rebalance!$D$32,$F$2:$G$48,2,FALSE)+ROW()-2)),\"\")","v":{"$error":"#N/A"}},{"$f":"IF(INDIRECT(\"c\" & (VLOOKUP(Rebalance!$D$33,$F$2:$G$48,2,FALSE)+ROW()-2))=Rebalance!$D$33,INDIRECT(\"a\" & (VLOOKUP(Rebalance!$D$33,$F$2:$G$48,2,FALSE)+ROW()-2)),\"\")","v":{"$error":"#N/A"}},{"$f":"IF(INDIRECT(\"c\" & (VLOOKUP(Rebalance!$D$34,$F$2:$G$48,2,FALSE)+ROW()-2))=Rebalance!$D$34,INDIRECT(\"a\" & (VLOOKUP(Rebalance!$D$34,$F$2:$G$48,2,FALSE)+ROW()-2)),\"\")","v":{"$error":"#N/A"}},{"$f":"IF(INDIRECT(\"c\" & (VLOOKUP(Rebalance!$D$35,$F$2:$G$48,2,FALSE)+ROW()-2))=Rebalance!$D$35,INDIRECT(\"a\" & (VLOOKUP(Rebalance!$D$35,$F$2:$G$48,2,FALSE)+ROW()-2)),\"\")","v":{"$error":"#N/A"}},{"$f":"IF(INDIRECT(\"c\" & (VLOOKUP(Rebalance!$D$36,$F$2:$G$48,2,FALSE)+ROW()-2))=Rebalance!$D$36,INDIRECT(\"a\" & (VLOOKUP(Rebalance!$D$36,$F$2:$G$48,2,FALSE)+ROW()-2)),\"\")","v":{"$error":"#N/A"}},{"$f":"IF(INDIRECT(\"c\" & (VLOOKUP(Rebalance!$D$37,$F$2:$G$48,2,FALSE)+ROW()-2))=Rebalance!$D$37,INDIRECT(\"a\" & (VLOOKUP(Rebalance!$D$37,$F$2:$G$48,2,FALSE)+ROW()-2)),\"\")","v":{"$error":"#N/A"}},{"$f":"IF(INDIRECT(\"c\" & (VLOOKUP(Rebalance!$D$38,$F$2:$G$48,2,FALSE)+ROW()-2))=Rebalance!$D$38,INDIRECT(\"a\" & (VLOOKUP(Rebalance!$D$38,$F$2:$G$48,2,FALSE)+ROW()-2)),\"\")","v":{"$error":"#N/A"}},{"$f":"IF(INDIRECT(\"c\" & (VLOOKUP(Rebalance!$D$39,$F$2:$G$48,2,FALSE)+ROW()-2))=Rebalance!$D$39,INDIRECT(\"a\" & (VLOOKUP(Rebalance!$D$39,$F$2:$G$48,2,FALSE)+ROW()-2)),\"\")","v":{"$error":"#N/A"}},{"$f":"IF(INDIRECT(\"c\" & (VLOOKUP(Rebalance!$D$40,$F$2:$G$48,2,FALSE)+ROW()-2))=Rebalance!$D$40,INDIRECT(\"a\" & (VLOOKUP(Rebalance!$D$40,$F$2:$G$48,2,FALSE)+ROW()-2)),\"\")","v":{"$error":"#N/A"}},{"$f":"IF(INDIRECT(\"c\" & (VLOOKUP(Rebalance!$D$52,$F$2:$G$48,2,FALSE)+ROW()-2))=Rebalance!$D$52,INDIRECT(\"a\" & (VLOOKUP(Rebalance!$D$52,$F$2:$G$48,2,FALSE)+ROW()-2)),\"\")","v":{"$error":"#N/A"}},{"$f":"IF(INDIRECT(\"c\" & (VLOOKUP(Rebalance!$D$53,$F$2:$G$48,2,FALSE)+ROW()-2))=Rebalance!$D$53,INDIRECT(\"a\" & (VLOOKUP(Rebalance!$D$53,$F$2:$G$48,2,FALSE)+ROW()-2)),\"\")","v":{"$error":"#N/A"}},{"$f":"IF(INDIRECT(\"c\" & (VLOOKUP(Rebalance!$D$54,$F$2:$G$48,2,FALSE)+ROW()-2))=Rebalance!$D$54,INDIRECT(\"a\" & (VLOOKUP(Rebalance!$D$54,$F$2:$G$48,2,FALSE)+ROW()-2)),\"\")","v":{"$error":"#N/A"}},{"$f":"IF(INDIRECT(\"c\" & (VLOOKUP(Rebalance!$D$55,$F$2:$G$48,2,FALSE)+ROW()-2))=Rebalance!$D$55,INDIRECT(\"a\" & (VLOOKUP(Rebalance!$D$55,$F$2:$G$48,2,FALSE)+ROW()-2)),\"\")","v":{"$error":"#N/A"}},{"$f":"IF(INDIRECT(\"c\" & (VLOOKUP(Rebalance!$D$56,$F$2:$G$48,2,FALSE)+ROW()-2))=Rebalance!$D$56,INDIRECT(\"a\" & (VLOOKUP(Rebalance!$D$56,$F$2:$G$48,2,FALSE)+ROW()-2)),\"\")","v":{"$error":"#N/A"}},{"$f":"IF(INDIRECT(\"c\" & (VLOOKUP(Rebalance!$D$57,$F$2:$G$48,2,FALSE)+ROW()-2))=Rebalance!$D$57,INDIRECT(\"a\" & (VLOOKUP(Rebalance!$D$57,$F$2:$G$48,2,FALSE)+ROW()-2)),\"\")","v":{"$error":"#N/A"}},{"$f":"IF(INDIRECT(\"c\" & (VLOOKUP(Rebalance!$D$58,$F$2:$G$48,2,FALSE)+ROW()-2))=Rebalance!$D$58,INDIRECT(\"a\" & (VLOOKUP(Rebalance!$D$58,$F$2:$G$48,2,FALSE)+ROW()-2)),\"\")","v":{"$error":"#N/A"}},{"$f":"IF(INDIRECT(\"c\" & (VLOOKUP(Rebalance!$D$59,$F$2:$G$48,2,FALSE)+ROW()-2))=Rebalance!$D$59,INDIRECT(\"a\" & (VLOOKUP(Rebalance!$D$59,$F$2:$G$48,2,FALSE)+ROW()-2)),\"\")","v":{"$error":"#N/A"}},{"$f":"IF(INDIRECT(\"c\" & (VLOOKUP(Rebalance!$D$60,$F$2:$G$48,2,FALSE)+ROW()-2))=Rebalance!$D$60,INDIRECT(\"a\" & (VLOOKUP(Rebalance!$D$60,$F$2:$G$48,2,FALSE)+ROW()-2)),\"\")","v":{"$error":"#N/A"}},{"$f":"IF(INDIRECT(\"c\" & (VLOOKUP(Rebalance!$D$61,$F$2:$G$48,2,FALSE)+ROW()-2))=Rebalance!$D$61,INDIRECT(\"a\" & (VLOOKUP(Rebalance!$D$61,$F$2:$G$48,2,FALSE)+ROW()-2)),\"\")","v":{"$error":"#N/A"}},{"$f":"IF(INDIRECT(\"c\" & (VLOOKUP(Rebalance!$D$62,$F$2:$G$48,2,FALSE)+ROW()-2))=Rebalance!$D$62,INDIRECT(\"a\" & (VLOOKUP(Rebalance!$D$62,$F$2:$G$48,2,FALSE)+ROW()-2)),\"\")","v":{"$error":"#N/A"}},{"$f":"IF(INDIRECT(\"c\" & (VLOOKUP(Rebalance!$D$63,$F$2:$G$48,2,FALSE)+ROW()-2))=Rebalance!$D$63,INDIRECT(\"a\" & (VLOOKUP(Rebalance!$D$63,$F$2:$G$48,2,FALSE)+ROW()-2)),\"\")","v":{"$error":"#N/A"}},{"$f":"IF(INDIRECT(\"c\" & (VLOOKUP(Rebalance!$D$64,$F$2:$G$48,2,FALSE)+ROW()-2))=Rebalance!$D$64,INDIRECT(\"a\" & (VLOOKUP(Rebalance!$D$64,$F$2:$G$48,2,FALSE)+ROW()-2)),\"\")","v":{"$error":"#N/A"}},{"$f":"IF(INDIRECT(\"c\" & (VLOOKUP(Rebalance!$D$65,$F$2:$G$48,2,FALSE)+ROW()-2))=Rebalance!$D$65,INDIRECT(\"a\" & (VLOOKUP(Rebalance!$D$65,$F$2:$G$48,2,FALSE)+ROW()-2)),\"\")","v":{"$error":"#N/A"}},{"$f":"IF(INDIRECT(\"c\" & (VLOOKUP(Rebalance!$D$66,$F$2:$G$48,2,FALSE)+ROW()-2))=Rebalance!$D$66,INDIRECT(\"a\" & (VLOOKUP(Rebalance!$D$66,$F$2:$G$48,2,FALSE)+ROW()-2)),\"\")","v":{"$error":"#N/A"}}]
["STANLIB Bond Fund A","LBBF","STANLIB Collective Investments",{"$f":"ROW()","v":40},null,null,{"$f":"VLOOKUP(F40,$C$2:$D$599,2,FALSE)","v":{"$error":"#N/A"}},{"$f":"IF(INDIRECT(\"c\" & (VLOOKUP(Rebalance!$D$26,$F$2:$G$48,2,FALSE)+ROW()-2))=Rebalance!$D$26,INDIRECT(\"a\" & (VLOOKUP(Rebalance!$D$26,$F$2:$G$48,2,FALSE)+ROW()-2)),\"\")","v":{"$error":"#N/A"}},{"$f":"IF(INDIRECT(\"c\" & (VLOOKUP(Rebalance!$D$27,$F$2:$G$48,2,FALSE)+ROW()-2))=Rebalance!$D$27,INDIRECT(\"a\" & (VLOOKUP(Rebalance!$D$27,$F$2:$G$48,2,FALSE)+ROW()-2)),\"\")","v":{"$error":"#N/A"}},{"$f":"IF(INDIRECT(\"c\" & (VLOOKUP(Rebalance!$D$28,$F$2:$G$48,2,FALSE)+ROW()-2))=Rebalance!$D$28,INDIRECT(\"a\" & (VLOOKUP(Rebalance!$D$28,$F$2:$G$48,2,FALSE)+ROW()-2)),\"\")","v":{"$error":"#N/A"}},{"$f":"IF(INDIRECT(\"c\" & (VLOOKUP(Rebalance!$D$29,$F$2:$G$48,2,FALSE)+ROW()-2))=Rebalance!$D$29,INDIRECT(\"a\" & (VLOOKUP(Rebalance!$D$29,$F$2:$G$48,2,FALSE)+ROW()-2)),\"\")","v":{"$error":"#N/A"}},{"$f":"IF(INDIRECT(\"c\" & (VLOOKUP(Rebalance!$D$30,$F$2:$G$48,2,FALSE)+ROW()-2))=Rebalance!$D$30,INDIRECT(\"a\" & (VLOOKUP(Rebalance!$D$30,$F$2:$G$48,2,FALSE)+ROW()-2)),\"\")","v":{"$error":"#N/A"}},{"$f":"IF(INDIRECT(\"c\" & (VLOOKUP(Rebalance!$D$31,$F$2:$G$48,2,FALSE)+ROW()-2))=Rebalance!$D$31,INDIRECT(\"a\" & (VLOOKUP(Rebalance!$D$31,$F$2:$G$48,2,FALSE)+ROW()-2)),\"\")","v":{"$error":"#N/A"}},{"$f":"IF(INDIRECT(\"c\" & (VLOOKUP(Rebalance!$D$32,$F$2:$G$48,2,FALSE)+ROW()-2))=Rebalance!$D$32,INDIRECT(\"a\" & (VLOOKUP(Rebalance!$D$32,$F$2:$G$48,2,FALSE)+ROW()-2)),\"\")","v":{"$error":"#N/A"}},{"$f":"IF(INDIRECT(\"c\" & (VLOOKUP(Rebalance!$D$33,$F$2:$G$48,2,FALSE)+ROW()-2))=Rebalance!$D$33,INDIRECT(\"a\" & (VLOOKUP(Rebalance!$D$33,$F$2:$G$48,2,FALSE)+ROW()-2)),\"\")","v":{"$error":"#N/A"}},{"$f":"IF(INDIRECT(\"c\" & (VLOOKUP(Rebalance!$D$34,$F$2:$G$48,2,FALSE)+ROW()-2))=Rebalance!$D$34,INDIRECT(\"a\" & (VLOOKUP(Rebalance!$D$34,$F$2:$G$48,2,FALSE)+ROW()-2)),\"\")","v":{"$error":"#N/A"}},{"$f":"IF(INDIRECT(\"c\" & (VLOOKUP(Rebalance!$D$35,$F$2:$G$48,2,FALSE)+ROW()-2))=Rebalance!$D$35,INDIRECT(\"a\" & (VLOOKUP(Rebalance!$D$35,$F$2:$G$48,2,FALSE)+ROW()-2)),\"\")","v":{"$error":"#N/A"}},{"$f":"IF(INDIRECT(\"c\" & (VLOOKUP(Rebalance!$D$36,$F$2:$G$48,2,FALSE)+ROW()-2))=Rebalance!$D$36,INDIRECT(\"a\" & (VLOOKUP(Rebalance!$D$36,$F$2:$G$48,2,FALSE)+ROW()-2)),\"\")","v":{"$error":"#N/A"}},{"$f":"IF(INDIRECT(\"c\" & (VLOOKUP(Rebalance!$D$37,$F$2:$G$48,2,FALSE)+ROW()-2))=Rebalance!$D$37,INDIRECT(\"a\" & (VLOOKUP(Rebalance!$D$37,$F$2:$G$48,2,FALSE)+ROW()-2)),\"\")","v":{"$error":"#N/A"}},{"$f":"IF(INDIRECT(\"c\" & (VLOOKUP(Rebalance!$D$38,$F$2:$G$48,2,FALSE)+ROW()-2))=Rebalance!$D$38,INDIRECT(\"a\" & (VLOOKUP(Rebalance!$D$38,$F$2:$G$48,2,FALSE)+ROW()-2)),\"\")","v":{"$error":"#N/A"}},{"$f":"IF(INDIRECT(\"c\" & (VLOOKUP(Rebalance!$D$39,$F$2:$G$48,2,FALSE)+ROW()-2))=Rebalance!$D$39,INDIRECT(\"a\" & (VLOOKUP(Rebalance!$D$39,$F$2:$G$48,2,FALSE)+ROW()-2)),\"\")","v":{"$error":"#N/A"}},{"$f":"IF(INDIRECT(\"c\" & (VLOOKUP(Rebalance!$D$40,$F$2:$G$48,2,FALSE)+ROW()-2))=Rebalance!$D$40,INDIRECT(\"a\" & (VLOOKUP(Rebalance!$D$40,$F$2:$G$48,2,FALSE)+ROW()-2)),\"\")","v":{"$error":"#N/A"}},{"$f":"IF(INDIRECT(\"c\" & (VLOOKUP(Rebalance!$D$52,$F$2:$G$48,2,FALSE)+ROW()-2))=Rebalance!$D$52,INDIRECT(\"a\" & (VLOOKUP(Rebalance!$D$52,$F$2:$G$48,2,FALSE)+ROW()-2)),\"\")","v":{"$error":"#N/A"}},{"$f":"IF(INDIRECT(\"c\" & (VLOOKUP(Rebalance!$D$53,$F$2:$G$48,2,FALSE)+ROW()-2))=Rebalance!$D$53,INDIRECT(\"a\" & (VLOOKUP(Rebalance!$D$53,$F$2:$G$48,2,FALSE)+ROW()-2)),\"\")","v":{"$error":"#N/A"}},{"$f":"IF(INDIRECT(\"c\" & (VLOOKUP(Rebalance!$D$54,$F$2:$G$48,2,FALSE)+ROW()-2))=Rebalance!$D$54,INDIRECT(\"a\" & (VLOOKUP(Rebalance!$D$54,$F$2:$G$48,2,FALSE)+ROW()-2)),\"\")","v":{"$error":"#N/A"}},{"$f":"IF(INDIRECT(\"c\" & (VLOOKUP(Rebalance!$D$55,$F$2:$G$48,2,FALSE)+ROW()-2))=Rebalance!$D$55,INDIRECT(\"a\" & (VLOOKUP(Rebalance!$D$55,$F$2:$G$48,2,FALSE)+ROW()-2)),\"\")","v":{"$error":"#N/A"}},{"$f":"IF(INDIRECT(\"c\" & (VLOOKUP(Rebalance!$D$56,$F$2:$G$48,2,FALSE)+ROW()-2))=Rebalance!$D$56,INDIRECT(\"a\" & (VLOOKUP(Rebalance!$D$56,$F$2:$G$48,2,FALSE)+ROW()-2)),\"\")","v":{"$error":"#N/A"}},{"$f":"IF(INDIRECT(\"c\" & (VLOOKUP(Rebalance!$D$57,$F$2:$G$48,2,FALSE)+ROW()-2))=Rebalance!$D$57,INDIRECT(\"a\" & (VLOOKUP(Rebalance!$D$57,$F$2:$G$48,2,FALSE)+ROW()-2)),\"\")","v":{"$error":"#N/A"}},{"$f":"IF(INDIRECT(\"c\" & (VLOOKUP(Rebalance!$D$58,$F$2:$G$48,2,FALSE)+ROW()-2))=Rebalance!$D$58,INDIRECT(\"a\" & (VLOOKUP(Rebalance!$D$58,$F$2:$G$48,2,FALSE)+ROW()-2)),\"\")","v":{"$error":"#N/A"}},{"$f":"IF(INDIRECT(\"c\" & (VLOOKUP(Rebalance!$D$59,$F$2:$G$48,2,FALSE)+ROW()-2))=Rebalance!$D$59,INDIRECT(\"a\" & (VLOOKUP(Rebalance!$D$59,$F$2:$G$48,2,FALSE)+ROW()-2)),\"\")","v":{"$error":"#N/A"}},{"$f":"IF(INDIRECT(\"c\" & (VLOOKUP(Rebalance!$D$60,$F$2:$G$48,2,FALSE)+ROW()-2))=Rebalance!$D$60,INDIRECT(\"a\" & (VLOOKUP(Rebalance!$D$60,$F$2:$G$48,2,FALSE)+ROW()-2)),\"\")","v":{"$error":"#N/A"}},{"$f":"IF(INDIRECT(\"c\" & (VLOOKUP(Rebalance!$D$61,$F$2:$G$48,2,FALSE)+ROW()-2))=Rebalance!$D$61,INDIRECT(\"a\" & (VLOOKUP(Rebalance!$D$61,$F$2:$G$48,2,FALSE)+ROW()-2)),\"\")","v":{"$error":"#N/A"}},{"$f":"IF(INDIRECT(\"c\" & (VLOOKUP(Rebalance!$D$62,$F$2:$G$48,2,FALSE)+ROW()-2))=Rebalance!$D$62,INDIRECT(\"a\" & (VLOOKUP(Rebalance!$D$62,$F$2:$G$48,2,FALSE)+ROW()-2)),\"\")","v":{"$error":"#N/A"}},{"$f":"IF(INDIRECT(\"c\" & (VLOOKUP(Rebalance!$D$63,$F$2:$G$48,2,FALSE)+ROW()-2))=Rebalance!$D$63,INDIRECT(\"a\" & (VLOOKUP(Rebalance!$D$63,$F$2:$G$48,2,FALSE)+ROW()-2)),\"\")","v":{"$error":"#N/A"}},{"$f":"IF(INDIRECT(\"c\" & (VLOOKUP(Rebalance!$D$64,$F$2:$G$48,2,FALSE)+ROW()-2))=Rebalance!$D$64,INDIRECT(\"a\" & (VLOOKUP(Rebalance!$D$64,$F$2:$G$48,2,FALSE)+ROW()-2)),\"\")","v":{"$error":"#N/A"}},{"$f":"IF(INDIRECT(\"c\" & (VLOOKUP(Rebalance!$D$65,$F$2:$G$48,2,FALSE)+ROW()-2))=Rebalance!$D$65,INDIRECT(\"a\" & (VLOOKUP(Rebalance!$D$65,$F$2:$G$48,2,FALSE)+ROW()-2)),\"\")","v":{"$error":"#N/A"}},{"$f":"IF(INDIRECT(\"c\" & (VLOOKUP(Rebalance!$D$66,$F$2:$G$48,2,FALSE)+ROW()-2))=Rebalance!$D$66,INDIRECT(\"a\" & (VLOOKUP(Rebalance!$D$66,$F$2:$G$48,2,FALSE)+ROW()-2)),\"\")","v":{"$error":"#N/A"}}]
["STANLIB Bond Fund R","LBBF","STANLIB Collective Investments",{"$f":"ROW()","v":41},null,null,{"$f":"VLOOKUP(F41,$C$2:$D$599,2,FALSE)","v":{"$error":"#N/A"}},{"$f":"IF(INDIRECT(\"c\" & (VLOOKUP(Rebalance!$D$26,$F$2:$G$48,2,FALSE)+ROW()-2))=Rebalance!$D$26,INDIRECT(\"a\" & (VLOOKUP(Rebalance!$D$26,$F$2:$G$48,2,FALSE)+ROW()-2)),\"\")","v":{"$error":"#N/A"}},{"$f":"IF(INDIRECT(\"c\" & (VLOOKUP(Rebalance!$D$27,$F$2:$G$48,2,FALSE)+ROW()-2))=Rebalance!$D$27,INDIRECT(\"a\" & (VLOOKUP(Rebalance!$D$27,$F$2:$G$48,2,FALSE)+ROW()-2)),\"\")","v":{"$error":"#N/A"}},{"$f":"IF(INDIRECT(\"c\" & (VLOOKUP(Rebalance!$D$28,$F$2:$G$48,2,FALSE)+ROW()-2))=Rebalance!$D$28,INDIRECT(\"a\" & (VLOOKUP(Rebalance!$D$28,$F$2:$G$48,2,FALSE)+ROW()-2)),\"\")","v":{"$error":"#N/A"}},{"$f":"IF(INDIRECT(\"c\" & (VLOOKUP(Rebalance!$D$29,$F$2:$G$48,2,FALSE)+ROW()-2))=Rebalance!$D$29,INDIRECT(\"a\" & (VLOOKUP(Rebalance!$D$29,$F$2:$G$48,2,FALSE)+ROW()-2)),\"\")","v":{"$error":"#N/A"}},{"$f":"IF(INDIRECT(\"c\" & (VLOOKUP(Rebalance!$D$30,$F$2:$G$48,2,FALSE)+ROW()-2))=Rebalance!$D$30,INDIRECT(\"a\" & (VLOOKUP(Rebalance!$D$30,$F$2:$G$48,2,FALSE)+ROW()-2)),\"\")","v":{"$error":"#N/A"}},{"$f":"IF(INDIRECT(\"c\" & (VLOOKUP(Rebalance!$D$31,$F$2:$G$48,2,FALSE)+ROW()-2))=Rebalance!$D$31,INDIRECT(\"a\" & (VLOOKUP(Rebalance!$D$31,$F$2:$G$48,2,FALSE)+ROW()-2)),\"\")","v":{"$error":"#N/A"}},{"$f":"IF(INDIRECT(\"c\" & (VLOOKUP(Rebalance!$D$32,$F$2:$G$48,2,FALSE)+ROW()-2))=Rebalance!$D$32,INDIRECT(\"a\" & (VLOOKUP(Rebalance!$D$32,$F$2:$G$48,2,FALSE)+ROW()-2)),\"\")","v":{"$error":"#N/A"}},{"$f":"IF(INDIRECT(\"c\" & (VLOOKUP(Rebalance!$D$33,$F$2:$G$48,2,FALSE)+ROW()-2))=Rebalance!$D$33,INDIRECT(\"a\" & (VLOOKUP(Rebalance!$D$33,$F$2:$G$48,2,FALSE)+ROW()-2)),\"\")","v":{"$error":"#N/A"}},{"$f":"IF(INDIRECT(\"c\" & (VLOOKUP(Rebalance!$D$34,$F$2:$G$48,2,FALSE)+ROW()-2))=Rebalance!$D$34,INDIRECT(\"a\" & (VLOOKUP(Rebalance!$D$34,$F$2:$G$48,2,FALSE)+ROW()-2)),\"\")","v":{"$error":"#N/A"}},{"$f":"IF(INDIRECT(\"c\" & (VLOOKUP(Rebalance!$D$35,$F$2:$G$48,2,FALSE)+ROW()-2))=Rebalance!$D$35,INDIRECT(\"a\" & (VLOOKUP(Rebalance!$D$35,$F$2:$G$48,2,FALSE)+ROW()-2)),\"\")","v":{"$error":"#N/A"}},{"$f":"IF(INDIRECT(\"c\" & (VLOOKUP(Rebalance!$D$36,$F$2:$G$48,2,FALSE)+ROW()-2))=Rebalance!$D$36,INDIRECT(\"a\" & (VLOOKUP(Rebalance!$D$36,$F$2:$G$48,2,FALSE)+ROW()-2)),\"\")","v":{"$error":"#N/A"}},{"$f":"IF(INDIRECT(\"c\" & (VLOOKUP(Rebalance!$D$37,$F$2:$G$48,2,FALSE)+ROW()-2))=Rebalance!$D$37,INDIRECT(\"a\" & (VLOOKUP(Rebalance!$D$37,$F$2:$G$48,2,FALSE)+ROW()-2)),\"\")","v":{"$error":"#N/A"}},{"$f":"IF(INDIRECT(\"c\" & (VLOOKUP(Rebalance!$D$38,$F$2:$G$48,2,FALSE)+ROW()-2))=Rebalance!$D$38,INDIRECT(\"a\" & (VLOOKUP(Rebalance!$D$38,$F$2:$G$48,2,FALSE)+ROW()-2)),\"\")","v":{"$error":"#N/A"}},{"$f":"IF(INDIRECT(\"c\" & (VLOOKUP(Rebalance!$D$39,$F$2:$G$48,2,FALSE)+ROW()-2))=Rebalance!$D$39,INDIRECT(\"a\" & (VLOOKUP(Rebalance!$D$39,$F$2:$G$48,2,FALSE)+ROW()-2)),\"\")","v":{"$error":"#N/A"}},{"$f":"IF(INDIRECT(\"c\" & (VLOOKUP(Rebalance!$D$40,$F$2:$G$48,2,FALSE)+ROW()-2))=Rebalance!$D$40,INDIRECT(\"a\" & (VLOOKUP(Rebalance!$D$40,$F$2:$G$48,2,FALSE)+ROW()-2)),\"\")","v":{"$error":"#N/A"}},{"$f":"IF(INDIRECT(\"c\" & (VLOOKUP(Rebalance!$D$52,$F$2:$G$48,2,FALSE)+ROW()-2))=Rebalance!$D$52,INDIRECT(\"a\" & (VLOOKUP(Rebalance!$D$52,$F$2:$G$48,2,FALSE)+ROW()-2)),\"\")","v":{"$error":"#N/A"}},{"$f":"IF(INDIRECT(\"c\" & (VLOOKUP(Rebalance!$D$53,$F$2:$G$48,2,FALSE)+ROW()-2))=Rebalance!$D$53,INDIRECT(\"a\" & (VLOOKUP(Rebalance!$D$53,$F$2:$G$48,2,FALSE)+ROW()-2)),\"\")","v":{"$error":"#N/A"}},{"$f":"IF(INDIRECT(\"c\" & (VLOOKUP(Rebalance!$D$54,$F$2:$G$48,2,FALSE)+ROW()-2))=Rebalance!$D$54,INDIRECT(\"a\" & (VLOOKUP(Rebalance!$D$54,$F$2:$G$48,2,FALSE)+ROW()-2)),\"\")","v":{"$error":"#N/A"}},{"$f":"IF(INDIRECT(\"c\" & (VLOOKUP(Rebalance!$D$55,$F$2:$G$48,2,FALSE)+ROW()-2))=Rebalance!$D$55,INDIRECT(\"a\" & (VLOOKUP(Rebalance!$D$55,$F$2:$G$48,2,FALSE)+ROW()-2)),\"\")","v":{"$error":"#N/A"}},{"$f":"IF(INDIRECT(\"c\" & (VLOOKUP(Rebalance!$D$56,$F$2:$G$48,2,FALSE)+ROW()-2))=Rebalance!$D$56,INDIRECT(\"a\" & (VLOOKUP(Rebalance!$D$56,$F$2:$G$48,2,FALSE)+ROW()-2)),\"\")","v":{"$error":"#N/A"}},{"$f":"IF(INDIRECT(\"c\" & (VLOOKUP(Rebalance!$D$57,$F$2:$G$48,2,FALSE)+ROW()-2))=Rebalance!$D$57,INDIRECT(\"a\" & (VLOOKUP(Rebalance!$D$57,$F$2:$G$48,2,FALSE)+ROW()-2)),\"\")","v":{"$error":"#N/A"}},{"$f":"IF(INDIRECT(\"c\" & (VLOOKUP(Rebalance!$D$58,$F$2:$G$48,2,FALSE)+ROW()-2))=Rebalance!$D$58,INDIRECT(\"a\" & (VLOOKUP(Rebalance!$D$58,$F$2:$G$48,2,FALSE)+ROW()-2)),\"\")","v":{"$error":"#N/A"}},{"$f":"IF(INDIRECT(\"c\" & (VLOOKUP(Rebalance!$D$59,$F$2:$G$48,2,FALSE)+ROW()-2))=Rebalance!$D$59,INDIRECT(\"a\" & (VLOOKUP(Rebalance!$D$59,$F$2:$G$48,2,FALSE)+ROW()-2)),\"\")","v":{"$error":"#N/A"}},{"$f":"IF(INDIRECT(\"c\" & (VLOOKUP(Rebalance!$D$60,$F$2:$G$48,2,FALSE)+ROW()-2))=Rebalance!$D$60,INDIRECT(\"a\" & (VLOOKUP(Rebalance!$D$60,$F$2:$G$48,2,FALSE)+ROW()-2)),\"\")","v":{"$error":"#N/A"}},{"$f":"IF(INDIRECT(\"c\" & (VLOOKUP(Rebalance!$D$61,$F$2:$G$48,2,FALSE)+ROW()-2))=Rebalance!$D$61,INDIRECT(\"a\" & (VLOOKUP(Rebalance!$D$61,$F$2:$G$48,2,FALSE)+ROW()-2)),\"\")","v":{"$error":"#N/A"}},{"$f":"IF(INDIRECT(\"c\" & (VLOOKUP(Rebalance!$D$62,$F$2:$G$48,2,FALSE)+ROW()-2))=Rebalance!$D$62,INDIRECT(\"a\" & (VLOOKUP(Rebalance!$D$62,$F$2:$G$48,2,FALSE)+ROW()-2)),\"\")","v":{"$error":"#N/A"}},{"$f":"IF(INDIRECT(\"c\" & (VLOOKUP(Rebalance!$D$63,$F$2:$G$48,2,FALSE)+ROW()-2))=Rebalance!$D$63,INDIRECT(\"a\" & (VLOOKUP(Rebalance!$D$63,$F$2:$G$48,2,FALSE)+ROW()-2)),\"\")","v":{"$error":"#N/A"}},{"$f":"IF(INDIRECT(\"c\" & (VLOOKUP(Rebalance!$D$64,$F$2:$G$48,2,FALSE)+ROW()-2))=Rebalance!$D$64,INDIRECT(\"a\" & (VLOOKUP(Rebalance!$D$64,$F$2:$G$48,2,FALSE)+ROW()-2)),\"\")","v":{"$error":"#N/A"}},{"$f":"IF(INDIRECT(\"c\" & (VLOOKUP(Rebalance!$D$65,$F$2:$G$48,2,FALSE)+ROW()-2))=Rebalance!$D$65,INDIRECT(\"a\" & (VLOOKUP(Rebalance!$D$65,$F$2:$G$48,2,FALSE)+ROW()-2)),\"\")","v":{"$error":"#N/A"}},{"$f":"IF(INDIRECT(\"c\" & (VLOOKUP(Rebalance!$D$66,$F$2:$G$48,2,FALSE)+ROW()-2))=Rebalance!$D$66,INDIRECT(\"a\" & (VLOOKUP(Rebalance!$D$66,$F$2:$G$48,2,FALSE)+ROW()-2)),\"\")","v":{"$error":"#N/A"}}]
["STANLIB Corporate Money Market Fund B3","SBC3","STANLIB Collective Investments",{"$f":"ROW()","v":42},null,null,{"$f":"VLOOKUP(F42,$C$2:$D$599,2,FALSE)","v":{"$error":"#N/A"}},{"$f":"IF(INDIRECT(\"c\" & (VLOOKUP(Rebalance!$D$26,$F$2:$G$48,2,FALSE)+ROW()-2))=Rebalance!$D$26,INDIRECT(\"a\" & (VLOOKUP(Rebalance!$D$26,$F$2:$G$48,2,FALSE)+ROW()-2)),\"\")","v":{"$error":"#N/A"}},{"$f":"IF(INDIRECT(\"c\" & (VLOOKUP(Rebalance!$D$27,$F$2:$G$48,2,FALSE)+ROW()-2))=Rebalance!$D$27,INDIRECT(\"a\" & (VLOOKUP(Rebalance!$D$27,$F$2:$G$48,2,FALSE)+ROW()-2)),\"\")","v":{"$error":"#N/A"}},{"$f":"IF(INDIRECT(\"c\" & (VLOOKUP(Rebalance!$D$28,$F$2:$G$48,2,FALSE)+ROW()-2))=Rebalance!$D$28,INDIRECT(\"a\" & (VLOOKUP(Rebalance!$D$28,$F$2:$G$48,2,FALSE)+ROW()-2)),\"\")","v":{"$error":"#N/A"}},{"$f":"IF(INDIRECT(\"c\" & (VLOOKUP(Rebalance!$D$29,$F$2:$G$48,2,FALSE)+ROW()-2))=Rebalance!$D$29,INDIRECT(\"a\" & (VLOOKUP(Rebalance!$D$29,$F$2:$G$48,2,FALSE)+ROW()-2)),\"\")","v":{"$error":"#N/A"}},{"$f":"IF(INDIRECT(\"c\" & (VLOOKUP(Rebalance!$D$30,$F$2:$G$48,2,FALSE)+ROW()-2))=Rebalance!$D$30,INDIRECT(\"a\" & (VLOOKUP(Rebalance!$D$30,$F$2:$G$48,2,FALSE)+ROW()-2)),\"\")","v":{"$error":"#N/A"}},{"$f":"IF(INDIRECT(\"c\" & (VLOOKUP(Rebalance!$D$31,$F$2:$G$48,2,FALSE)+ROW()-2))=Rebalance!$D$31,INDIRECT(\"a\" & (VLOOKUP(Rebalance!$D$31,$F$2:$G$48,2,FALSE)+ROW()-2)),\"\")","v":{"$error":"#N/A"}},{"$f":"IF(INDIRECT(\"c\" & (VLOOKUP(Rebalance!$D$32,$F$2:$G$48,2,FALSE)+ROW()-2))=Rebalance!$D$32,INDIRECT(\"a\" & (VLOOKUP(Rebalance!$D$32,$F$2:$G$48,2,FALSE)+ROW()-2)),\"\")","v":{"$error":"#N/A"}},{"$f":"IF(INDIRECT(\"c\" & (VLOOKUP(Rebalance!$D$33,$F$2:$G$48,2,FALSE)+ROW()-2))=Rebalance!$D$33,INDIRECT(\"a\" & (VLOOKUP(Rebalance!$D$33,$F$2:$G$48,2,FALSE)+ROW()-2)),\"\")","v":{"$error":"#N/A"}},{"$f":"IF(INDIRECT(\"c\" & (VLOOKUP(Rebalance!$D$34,$F$2:$G$48,2,FALSE)+ROW()-2))=Rebalance!$D$34,INDIRECT(\"a\" & (VLOOKUP(Rebalance!$D$34,$F$2:$G$48,2,FALSE)+ROW()-2)),\"\")","v":{"$error":"#N/A"}},{"$f":"IF(INDIRECT(\"c\" & (VLOOKUP(Rebalance!$D$35,$F$2:$G$48,2,FALSE)+ROW()-2))=Rebalance!$D$35,INDIRECT(\"a\" & (VLOOKUP(Rebalance!$D$35,$F$2:$G$48,2,FALSE)+ROW()-2)),\"\")","v":{"$error":"#N/A"}},{"$f":"IF(INDIRECT(\"c\" & (VLOOKUP(Rebalance!$D$36,$F$2:$G$48,2,FALSE)+ROW()-2))=Rebalance!$D$36,INDIRECT(\"a\" & (VLOOKUP(Rebalance!$D$36,$F$2:$G$48,2,FALSE)+ROW()-2)),\"\")","v":{"$error":"#N/A"}},{"$f":"IF(INDIRECT(\"c\" & (VLOOKUP(Rebalance!$D$37,$F$2:$G$48,2,FALSE)+ROW()-2))=Rebalance!$D$37,INDIRECT(\"a\" & (VLOOKUP(Rebalance!$D$37,$F$2:$G$48,2,FALSE)+ROW()-2)),\"\")","v":{"$error":"#N/A"}},{"$f":"IF(INDIRECT(\"c\" & (VLOOKUP(Rebalance!$D$38,$F$2:$G$48,2,FALSE)+ROW()-2))=Rebalance!$D$38,INDIRECT(\"a\" & (VLOOKUP(Rebalance!$D$38,$F$2:$G$48,2,FALSE)+ROW()-2)),\"\")","v":{"$error":"#N/A"}},{"$f":"IF(INDIRECT(\"c\" & (VLOOKUP(Rebalance!$D$39,$F$2:$G$48,2,FALSE)+ROW()-2))=Rebalance!$D$39,INDIRECT(\"a\" & (VLOOKUP(Rebalance!$D$39,$F$2:$G$48,2,FALSE)+ROW()-2)),\"\")","v":{"$error":"#N/A"}},{"$f":"IF(INDIRECT(\"c\" & (VLOOKUP(Rebalance!$D$40,$F$2:$G$48,2,FALSE)+ROW()-2))=Rebalance!$D$40,INDIRECT(\"a\" & (VLOOKUP(Rebalance!$D$40,$F$2:$G$48,2,FALSE)+ROW()-2)),\"\")","v":{"$error":"#N/A"}},{"$f":"IF(INDIRECT(\"c\" & (VLOOKUP(Rebalance!$D$52,$F$2:$G$48,2,FALSE)+ROW()-2))=Rebalance!$D$52,INDIRECT(\"a\" & (VLOOKUP(Rebalance!$D$52,$F$2:$G$48,2,FALSE)+ROW()-2)),\"\")","v":{"$error":"#N/A"}},{"$f":"IF(INDIRECT(\"c\" & (VLOOKUP(Rebalance!$D$53,$F$2:$G$48,2,FALSE)+ROW()-2))=Rebalance!$D$53,INDIRECT(\"a\" & (VLOOKUP(Rebalance!$D$53,$F$2:$G$48,2,FALSE)+ROW()-2)),\"\")","v":{"$error":"#N/A"}},{"$f":"IF(INDIRECT(\"c\" & (VLOOKUP(Rebalance!$D$54,$F$2:$G$48,2,FALSE)+ROW()-2))=Rebalance!$D$54,INDIRECT(\"a\" & (VLOOKUP(Rebalance!$D$54,$F$2:$G$48,2,FALSE)+ROW()-2)),\"\")","v":{"$error":"#N/A"}},{"$f":"IF(INDIRECT(\"c\" & (VLOOKUP(Rebalance!$D$55,$F$2:$G$48,2,FALSE)+ROW()-2))=Rebalance!$D$55,INDIRECT(\"a\" & (VLOOKUP(Rebalance!$D$55,$F$2:$G$48,2,FALSE)+ROW()-2)),\"\")","v":{"$error":"#N/A"}},{"$f":"IF(INDIRECT(\"c\" & (VLOOKUP(Rebalance!$D$56,$F$2:$G$48,2,FALSE)+ROW()-2))=Rebalance!$D$56,INDIRECT(\"a\" & (VLOOKUP(Rebalance!$D$56,$F$2:$G$48,2,FALSE)+ROW()-2)),\"\")","v":{"$error":"#N/A"}},{"$f":"IF(INDIRECT(\"c\" & (VLOOKUP(Rebalance!$D$57,$F$2:$G$48,2,FALSE)+ROW()-2))=Rebalance!$D$57,INDIRECT(\"a\" & (VLOOKUP(Rebalance!$D$57,$F$2:$G$48,2,FALSE)+ROW()-2)),\"\")","v":{"$error":"#N/A"}},{"$f":"IF(INDIRECT(\"c\" & (VLOOKUP(Rebalance!$D$58,$F$2:$G$48,2,FALSE)+ROW()-2))=Rebalance!$D$58,INDIRECT(\"a\" & (VLOOKUP(Rebalance!$D$58,$F$2:$G$48,2,FALSE)+ROW()-2)),\"\")","v":{"$error":"#N/A"}},{"$f":"IF(INDIRECT(\"c\" & (VLOOKUP(Rebalance!$D$59,$F$2:$G$48,2,FALSE)+ROW()-2))=Rebalance!$D$59,INDIRECT(\"a\" & (VLOOKUP(Rebalance!$D$59,$F$2:$G$48,2,FALSE)+ROW()-2)),\"\")","v":{"$error":"#N/A"}},{"$f":"IF(INDIRECT(\"c\" & (VLOOKUP(Rebalance!$D$60,$F$2:$G$48,2,FALSE)+ROW()-2))=Rebalance!$D$60,INDIRECT(\"a\" & (VLOOKUP(Rebalance!$D$60,$F$2:$G$48,2,FALSE)+ROW()-2)),\"\")","v":{"$error":"#N/A"}},{"$f":"IF(INDIRECT(\"c\" & (VLOOKUP(Rebalance!$D$61,$F$2:$G$48,2,FALSE)+ROW()-2))=Rebalance!$D$61,INDIRECT(\"a\" & (VLOOKUP(Rebalance!$D$61,$F$2:$G$48,2,FALSE)+ROW()-2)),\"\")","v":{"$error":"#N/A"}},{"$f":"IF(INDIRECT(\"c\" & (VLOOKUP(Rebalance!$D$62,$F$2:$G$48,2,FALSE)+ROW()-2))=Rebalance!$D$62,INDIRECT(\"a\" & (VLOOKUP(Rebalance!$D$62,$F$2:$G$48,2,FALSE)+ROW()-2)),\"\")","v":{"$error":"#N/A"}},{"$f":"IF(INDIRECT(\"c\" & (VLOOKUP(Rebalance!$D$63,$F$2:$G$48,2,FALSE)+ROW()-2))=Rebalance!$D$63,INDIRECT(\"a\" & (VLOOKUP(Rebalance!$D$63,$F$2:$G$48,2,FALSE)+ROW()-2)),\"\")","v":{"$error":"#N/A"}},{"$f":"IF(INDIRECT(\"c\" & (VLOOKUP(Rebalance!$D$64,$F$2:$G$48,2,FALSE)+ROW()-2))=Rebalance!$D$64,INDIRECT(\"a\" & (VLOOKUP(Rebalance!$D$64,$F$2:$G$48,2,FALSE)+ROW()-2)),\"\")","v":{"$error":"#N/A"}},{"$f":"IF(INDIRECT(\"c\" & (VLOOKUP(Rebalance!$D$65,$F$2:$G$48,2,FALSE)+ROW()-2))=Rebalance!$D$65,INDIRECT(\"a\" & (VLOOKUP(Rebalance!$D$65,$F$2:$G$48,2,FALSE)+ROW()-2)),\"\")","v":{"$error":"#N/A"}},{"$f":"IF(INDIRECT(\"c\" & (VLOOKUP(Rebalance!$D$66,$F$2:$G$48,2,FALSE)+ROW()-2))=Rebalance!$D$66,INDIRECT(\"a\" & (VLOOKUP(Rebalance!$D$66,$F$2:$G$48,2,FALSE)+ROW()-2)),\"\")","v":{"$error":"#N/A"}}]
["STANLIB Enhanced Yield Fund A","SCPA","STANLIB Collective Investments",{"$f":"ROW()","v":43},null,null,{"$f":"VLOOKUP(F43,$C$2:$D$599,2,FALSE)","v":{"$error":"#N/A"}},{"$f":"IF(INDIRECT(\"c\" & (VLOOKUP(Rebalance!$D$26,$F$2:$G$48,2,FALSE)+ROW()-2))=Rebalance!$D$26,INDIRECT(\"a\" & (VLOOKUP(Rebalance!$D$26,$F$2:$G$48,2,FALSE)+ROW()-2)),\"\")","v":{"$error":"#N/A"}},{"$f":"IF(INDIRECT(\"c\" & (VLOOKUP(Rebalance!$D$27,$F$2:$G$48,2,FALSE)+ROW()-2))=Rebalance!$D$27,INDIRECT(\"a\" & (VLOOKUP(Rebalance!$D$27,$F$2:$G$48,2,FALSE)+ROW()-2)),\"\")","v":{"$error":"#N/A"}},{"$f":"IF(INDIRECT(\"c\" & (VLOOKUP(Rebalance!$D$28,$F$2:$G$48,2,FALSE)+ROW()-2))=Rebalance!$D$28,INDIRECT(\"a\" & (VLOOKUP(Rebalance!$D$28,$F$2:$G$48,2,FALSE)+ROW()-2)),\"\")","v":{"$error":"#N/A"}},{"$f":"IF(INDIRECT(\"c\" & (VLOOKUP(Rebalance!$D$29,$F$2:$G$48,2,FALSE)+ROW()-2))=Rebalance!$D$29,INDIRECT(\"a\" & (VLOOKUP(Rebalance!$D$29,$F$2:$G$48,2,FALSE)+ROW()-2)),\"\")","v":{"$error":"#N/A"}},{"$f":"IF(INDIRECT(\"c\" & (VLOOKUP(Rebalance!$D$30,$F$2:$G$48,2,FALSE)+ROW()-2))=Rebalance!$D$30,INDIRECT(\"a\" & (VLOOKUP(Rebalance!$D$30,$F$2:$G$48,2,FALSE)+ROW()-2)),\"\")","v":{"$error":"#N/A"}},{"$f":"IF(INDIRECT(\"c\" & (VLOOKUP(Rebalance!$D$31,$F$2:$G$48,2,FALSE)+ROW()-2))=Rebalance!$D$31,INDIRECT(\"a\" & (VLOOKUP(Rebalance!$D$31,$F$2:$G$48,2,FALSE)+ROW()-2)),\"\")","v":{"$error":"#N/A"}},{"$f":"IF(INDIRECT(\"c\" & (VLOOKUP(Rebalance!$D$32,$F$2:$G$48,2,FALSE)+ROW()-2))=Rebalance!$D$32,INDIRECT(\"a\" & (VLOOKUP(Rebalance!$D$32,$F$2:$G$48,2,FALSE)+ROW()-2)),\"\")","v":{"$error":"#N/A"}},{"$f":"IF(INDIRECT(\"c\" & (VLOOKUP(Rebalance!$D$33,$F$2:$G$48,2,FALSE)+ROW()-2))=Rebalance!$D$33,INDIRECT(\"a\" & (VLOOKUP(Rebalance!$D$33,$F$2:$G$48,2,FALSE)+ROW()-2)),\"\")","v":{"$error":"#N/A"}},{"$f":"IF(INDIRECT(\"c\" & (VLOOKUP(Rebalance!$D$34,$F$2:$G$48,2,FALSE)+ROW()-2))=Rebalance!$D$34,INDIRECT(\"a\" & (VLOOKUP(Rebalance!$D$34,$F$2:$G$48,2,FALSE)+ROW()-2)),\"\")","v":{"$error":"#N/A"}},{"$f":"IF(INDIRECT(\"c\" & (VLOOKUP(Rebalance!$D$35,$F$2:$G$48,2,FALSE)+ROW()-2))=Rebalance!$D$35,INDIRECT(\"a\" & (VLOOKUP(Rebalance!$D$35,$F$2:$G$48,2,FALSE)+ROW()-2)),\"\")","v":{"$error":"#N/A"}},{"$f":"IF(INDIRECT(\"c\" & (VLOOKUP(Rebalance!$D$36,$F$2:$G$48,2,FALSE)+ROW()-2))=Rebalance!$D$36,INDIRECT(\"a\" & (VLOOKUP(Rebalance!$D$36,$F$2:$G$48,2,FALSE)+ROW()-2)),\"\")","v":{"$error":"#N/A"}},{"$f":"IF(INDIRECT(\"c\" & (VLOOKUP(Rebalance!$D$37,$F$2:$G$48,2,FALSE)+ROW()-2))=Rebalance!$D$37,INDIRECT(\"a\" & (VLOOKUP(Rebalance!$D$37,$F$2:$G$48,2,FALSE)+ROW()-2)),\"\")","v":{"$error":"#N/A"}},{"$f":"IF(INDIRECT(\"c\" & (VLOOKUP(Rebalance!$D$38,$F$2:$G$48,2,FALSE)+ROW()-2))=Rebalance!$D$38,INDIRECT(\"a\" & (VLOOKUP(Rebalance!$D$38,$F$2:$G$48,2,FALSE)+ROW()-2)),\"\")","v":{"$error":"#N/A"}},{"$f":"IF(INDIRECT(\"c\" & (VLOOKUP(Rebalance!$D$39,$F$2:$G$48,2,FALSE)+ROW()-2))=Rebalance!$D$39,INDIRECT(\"a\" & (VLOOKUP(Rebalance!$D$39,$F$2:$G$48,2,FALSE)+ROW()-2)),\"\")","v":{"$error":"#N/A"}},{"$f":"IF(INDIRECT(\"c\" & (VLOOKUP(Rebalance!$D$40,$F$2:$G$48,2,FALSE)+ROW()-2))=Rebalance!$D$40,INDIRECT(\"a\" & (VLOOKUP(Rebalance!$D$40,$F$2:$G$48,2,FALSE)+ROW()-2)),\"\")","v":{"$error":"#N/A"}},{"$f":"IF(INDIRECT(\"c\" & (VLOOKUP(Rebalance!$D$52,$F$2:$G$48,2,FALSE)+ROW()-2))=Rebalance!$D$52,INDIRECT(\"a\" & (VLOOKUP(Rebalance!$D$52,$F$2:$G$48,2,FALSE)+ROW()-2)),\"\")","v":{"$error":"#N/A"}},{"$f":"IF(INDIRECT(\"c\" & (VLOOKUP(Rebalance!$D$53,$F$2:$G$48,2,FALSE)+ROW()-2))=Rebalance!$D$53,INDIRECT(\"a\" & (VLOOKUP(Rebalance!$D$53,$F$2:$G$48,2,FALSE)+ROW()-2)),\"\")","v":{"$error":"#N/A"}},{"$f":"IF(INDIRECT(\"c\" & (VLOOKUP(Rebalance!$D$54,$F$2:$G$48,2,FALSE)+ROW()-2))=Rebalance!$D$54,INDIRECT(\"a\" & (VLOOKUP(Rebalance!$D$54,$F$2:$G$48,2,FALSE)+ROW()-2)),\"\")","v":{"$error":"#N/A"}},{"$f":"IF(INDIRECT(\"c\" & (VLOOKUP(Rebalance!$D$55,$F$2:$G$48,2,FALSE)+ROW()-2))=Rebalance!$D$55,INDIRECT(\"a\" & (VLOOKUP(Rebalance!$D$55,$F$2:$G$48,2,FALSE)+ROW()-2)),\"\")","v":{"$error":"#N/A"}},{"$f":"IF(INDIRECT(\"c\" & (VLOOKUP(Rebalance!$D$56,$F$2:$G$48,2,FALSE)+ROW()-2))=Rebalance!$D$56,INDIRECT(\"a\" & (VLOOKUP(Rebalance!$D$56,$F$2:$G$48,2,FALSE)+ROW()-2)),\"\")","v":{"$error":"#N/A"}},{"$f":"IF(INDIRECT(\"c\" & (VLOOKUP(Rebalance!$D$57,$F$2:$G$48,2,FALSE)+ROW()-2))=Rebalance!$D$57,INDIRECT(\"a\" & (VLOOKUP(Rebalance!$D$57,$F$2:$G$48,2,FALSE)+ROW()-2)),\"\")","v":{"$error":"#N/A"}},{"$f":"IF(INDIRECT(\"c\" & (VLOOKUP(Rebalance!$D$58,$F$2:$G$48,2,FALSE)+ROW()-2))=Rebalance!$D$58,INDIRECT(\"a\" & (VLOOKUP(Rebalance!$D$58,$F$2:$G$48,2,FALSE)+ROW()-2)),\"\")","v":{"$error":"#N/A"}},{"$f":"IF(INDIRECT(\"c\" & (VLOOKUP(Rebalance!$D$59,$F$2:$G$48,2,FALSE)+ROW()-2))=Rebalance!$D$59,INDIRECT(\"a\" & (VLOOKUP(Rebalance!$D$59,$F$2:$G$48,2,FALSE)+ROW()-2)),\"\")","v":{"$error":"#N/A"}},{"$f":"IF(INDIRECT(\"c\" & (VLOOKUP(Rebalance!$D$60,$F$2:$G$48,2,FALSE)+ROW()-2))=Rebalance!$D$60,INDIRECT(\"a\" & (VLOOKUP(Rebalance!$D$60,$F$2:$G$48,2,FALSE)+ROW()-2)),\"\")","v":{"$error":"#N/A"}},{"$f":"IF(INDIRECT(\"c\" & (VLOOKUP(Rebalance!$D$61,$F$2:$G$48,2,FALSE)+ROW()-2))=Rebalance!$D$61,INDIRECT(\"a\" & (VLOOKUP(Rebalance!$D$61,$F$2:$G$48,2,FALSE)+ROW()-2)),\"\")","v":{"$error":"#N/A"}},{"$f":"IF(INDIRECT(\"c\" & (VLOOKUP(Rebalance!$D$62,$F$2:$G$48,2,FALSE)+ROW()-2))=Rebalance!$D$62,INDIRECT(\"a\" & (VLOOKUP(Rebalance!$D$62,$F$2:$G$48,2,FALSE)+ROW()-2)),\"\")","v":{"$error":"#N/A"}},{"$f":"IF(INDIRECT(\"c\" & (VLOOKUP(Rebalance!$D$63,$F$2:$G$48,2,FALSE)+ROW()-2))=Rebalance!$D$63,INDIRECT(\"a\" & (VLOOKUP(Rebalance!$D$63,$F$2:$G$48,2,FALSE)+ROW()-2)),\"\")","v":{"$error":"#N/A"}},{"$f":"IF(INDIRECT(\"c\" & (VLOOKUP(Rebalance!$D$64,$F$2:$G$48,2,FALSE)+ROW()-2))=Rebalance!$D$64,INDIRECT(\"a\" & (VLOOKUP(Rebalance!$D$64,$F$2:$G$48,2,FALSE)+ROW()-2)),\"\")","v":{"$error":"#N/A"}},{"$f":"IF(INDIRECT(\"c\" & (VLOOKUP(Rebalance!$D$65,$F$2:$G$48,2,FALSE)+ROW()-2))=Rebalance!$D$65,INDIRECT(\"a\" & (VLOOKUP(Rebalance!$D$65,$F$2:$G$48,2,FALSE)+ROW()-2)),\"\")","v":{"$error":"#N/A"}},{"$f":"IF(INDIRECT(\"c\" & (VLOOKUP(Rebalance!$D$66,$F$2:$G$48,2,FALSE)+ROW()-2))=Rebalance!$D$66,INDIRECT(\"a\" & (VLOOKUP(Rebalance!$D$66,$F$2:$G$48,2,FALSE)+ROW()-2)),\"\")","v":{"$error":"#N/A"}}]
["STANLIB Equity Fund A","LIWA","STANLIB Collective Investments",{"$f":"ROW()","v":44},null,null,{"$f":"VLOOKUP(F44,$C$2:$D$599,2,FALSE)","v":{"$error":"#N/A"}},{"$f":"IF(INDIRECT(\"c\" & (VLOOKUP(Rebalance!$D$26,$F$2:$G$48,2,FALSE)+ROW()-2))=Rebalance!$D$26,INDIRECT(\"a\" & (VLOOKUP(Rebalance!$D$26,$F$2:$G$48,2,FALSE)+ROW()-2)),\"\")","v":{"$error":"#N/A"}},{"$f":"IF(INDIRECT(\"c\" & (VLOOKUP(Rebalance!$D$27,$F$2:$G$48,2,FALSE)+ROW()-2))=Rebalance!$D$27,INDIRECT(\"a\" & (VLOOKUP(Rebalance!$D$27,$F$2:$G$48,2,FALSE)+ROW()-2)),\"\")","v":{"$error":"#N/A"}},{"$f":"IF(INDIRECT(\"c\" & (VLOOKUP(Rebalance!$D$28,$F$2:$G$48,2,FALSE)+ROW()-2))=Rebalance!$D$28,INDIRECT(\"a\" & (VLOOKUP(Rebalance!$D$28,$F$2:$G$48,2,FALSE)+ROW()-2)),\"\")","v":{"$error":"#N/A"}},{"$f":"IF(INDIRECT(\"c\" & (VLOOKUP(Rebalance!$D$29,$F$2:$G$48,2,FALSE)+ROW()-2))=Rebalance!$D$29,INDIRECT(\"a\" & (VLOOKUP(Rebalance!$D$29,$F$2:$G$48,2,FALSE)+ROW()-2)),\"\")","v":{"$error":"#N/A"}},{"$f":"IF(INDIRECT(\"c\" & (VLOOKUP(Rebalance!$D$30,$F$2:$G$48,2,FALSE)+ROW()-2))=Rebalance!$D$30,INDIRECT(\"a\" & (VLOOKUP(Rebalance!$D$30,$F$2:$G$48,2,FALSE)+ROW()-2)),\"\")","v":{"$error":"#N/A"}},{"$f":"IF(INDIRECT(\"c\" & (VLOOKUP(Rebalance!$D$31,$F$2:$G$48,2,FALSE)+ROW()-2))=Rebalance!$D$31,INDIRECT(\"a\" & (VLOOKUP(Rebalance!$D$31,$F$2:$G$48,2,FALSE)+ROW()-2)),\"\")","v":{"$error":"#N/A"}},{"$f":"IF(INDIRECT(\"c\" & (VLOOKUP(Rebalance!$D$32,$F$2:$G$48,2,FALSE)+ROW()-2))=Rebalance!$D$32,INDIRECT(\"a\" & (VLOOKUP(Rebalance!$D$32,$F$2:$G$48,2,FALSE)+ROW()-2)),\"\")","v":{"$error":"#N/A"}},{"$f":"IF(INDIRECT(\"c\" & (VLOOKUP(Rebalance!$D$33,$F$2:$G$48,2,FALSE)+ROW()-2))=Rebalance!$D$33,INDIRECT(\"a\" & (VLOOKUP(Rebalance!$D$33,$F$2:$G$48,2,FALSE)+ROW()-2)),\"\")","v":{"$error":"#N/A"}},{"$f":"IF(INDIRECT(\"c\" & (VLOOKUP(Rebalance!$D$34,$F$2:$G$48,2,FALSE)+ROW()-2))=Rebalance!$D$34,INDIRECT(\"a\" & (VLOOKUP(Rebalance!$D$34,$F$2:$G$48,2,FALSE)+ROW()-2)),\"\")","v":{"$error":"#N/A"}},{"$f":"IF(INDIRECT(\"c\" & (VLOOKUP(Rebalance!$D$35,$F$2:$G$48,2,FALSE)+ROW()-2))=Rebalance!$D$35,INDIRECT(\"a\" & (VLOOKUP(Rebalance!$D$35,$F$2:$G$48,2,FALSE)+ROW()-2)),\"\")","v":{"$error":"#N/A"}},{"$f":"IF(INDIRECT(\"c\" & (VLOOKUP(Rebalance!$D$36,$F$2:$G$48,2,FALSE)+ROW()-2))=Rebalance!$D$36,INDIRECT(\"a\" & (VLOOKUP(Rebalance!$D$36,$F$2:$G$48,2,FALSE)+ROW()-2)),\"\")","v":{"$error":"#N/A"}},{"$f":"IF(INDIRECT(\"c\" & (VLOOKUP(Rebalance!$D$37,$F$2:$G$48,2,FALSE)+ROW()-2))=Rebalance!$D$37,INDIRECT(\"a\" & (VLOOKUP(Rebalance!$D$37,$F$2:$G$48,2,FALSE)+ROW()-2)),\"\")","v":{"$error":"#N/A"}},{"$f":"IF(INDIRECT(\"c\" & (VLOOKUP(Rebalance!$D$38,$F$2:$G$48,2,FALSE)+ROW()-2))=Rebalance!$D$38,INDIRECT(\"a\" & (VLOOKUP(Rebalance!$D$38,$F$2:$G$48,2,FALSE)+ROW()-2)),\"\")","v":{"$error":"#N/A"}},{"$f":"IF(INDIRECT(\"c\" & (VLOOKUP(Rebalance!$D$39,$F$2:$G$48,2,FALSE)+ROW()-2))=Rebalance!$D$39,INDIRECT(\"a\" & (VLOOKUP(Rebalance!$D$39,$F$2:$G$48,2,FALSE)+ROW()-2)),\"\")","v":{"$error":"#N/A"}},{"$f":"IF(INDIRECT(\"c\" & (VLOOKUP(Rebalance!$D$40,$F$2:$G$48,2,FALSE)+ROW()-2))=Rebalance!$D$40,INDIRECT(\"a\" & (VLOOKUP(Rebalance!$D$40,$F$2:$G$48,2,FALSE)+ROW()-2)),\"\")","v":{"$error":"#N/A"}},{"$f":"IF(INDIRECT(\"c\" & (VLOOKUP(Rebalance!$D$52,$F$2:$G$48,2,FALSE)+ROW()-2))=Rebalance!$D$52,INDIRECT(\"a\" & (VLOOKUP(Rebalance!$D$52,$F$2:$G$48,2,FALSE)+ROW()-2)),\"\")","v":{"$error":"#N/A"}},{"$f":"IF(INDIRECT(\"c\" & (VLOOKUP(Rebalance!$D$53,$F$2:$G$48,2,FALSE)+ROW()-2))=Rebalance!$D$53,INDIRECT(\"a\" & (VLOOKUP(Rebalance!$D$53,$F$2:$G$48,2,FALSE)+ROW()-2)),\"\")","v":{"$error":"#N/A"}},{"$f":"IF(INDIRECT(\"c\" & (VLOOKUP(Rebalance!$D$54,$F$2:$G$48,2,FALSE)+ROW()-2))=Rebalance!$D$54,INDIRECT(\"a\" & (VLOOKUP(Rebalance!$D$54,$F$2:$G$48,2,FALSE)+ROW()-2)),\"\")","v":{"$error":"#N/A"}},{"$f":"IF(INDIRECT(\"c\" & (VLOOKUP(Rebalance!$D$55,$F$2:$G$48,2,FALSE)+ROW()-2))=Rebalance!$D$55,INDIRECT(\"a\" & (VLOOKUP(Rebalance!$D$55,$F$2:$G$48,2,FALSE)+ROW()-2)),\"\")","v":{"$error":"#N/A"}},{"$f":"IF(INDIRECT(\"c\" & (VLOOKUP(Rebalance!$D$56,$F$2:$G$48,2,FALSE)+ROW()-2))=Rebalance!$D$56,INDIRECT(\"a\" & (VLOOKUP(Rebalance!$D$56,$F$2:$G$48,2,FALSE)+ROW()-2)),\"\")","v":{"$error":"#N/A"}},{"$f":"IF(INDIRECT(\"c\" & (VLOOKUP(Rebalance!$D$57,$F$2:$G$48,2,FALSE)+ROW()-2))=Rebalance!$D$57,INDIRECT(\"a\" & (VLOOKUP(Rebalance!$D$57,$F$2:$G$48,2,FALSE)+ROW()-2)),\"\")","v":{"$error":"#N/A"}},{"$f":"IF(INDIRECT(\"c\" & (VLOOKUP(Rebalance!$D$58,$F$2:$G$48,2,FALSE)+ROW()-2))=Rebalance!$D$58,INDIRECT(\"a\" & (VLOOKUP(Rebalance!$D$58,$F$2:$G$48,2,FALSE)+ROW()-2)),\"\")","v":{"$error":"#N/A"}},{"$f":"IF(INDIRECT(\"c\" & (VLOOKUP(Rebalance!$D$59,$F$2:$G$48,2,FALSE)+ROW()-2))=Rebalance!$D$59,INDIRECT(\"a\" & (VLOOKUP(Rebalance!$D$59,$F$2:$G$48,2,FALSE)+ROW()-2)),\"\")","v":{"$error":"#N/A"}},{"$f":"IF(INDIRECT(\"c\" & (VLOOKUP(Rebalance!$D$60,$F$2:$G$48,2,FALSE)+ROW()-2))=Rebalance!$D$60,INDIRECT(\"a\" & (VLOOKUP(Rebalance!$D$60,$F$2:$G$48,2,FALSE)+ROW()-2)),\"\")","v":{"$error":"#N/A"}},{"$f":"IF(INDIRECT(\"c\" & (VLOOKUP(Rebalance!$D$61,$F$2:$G$48,2,FALSE)+ROW()-2))=Rebalance!$D$61,INDIRECT(\"a\" & (VLOOKUP(Rebalance!$D$61,$F$2:$G$48,2,FALSE)+ROW()-2)),\"\")","v":{"$error":"#N/A"}},{"$f":"IF(INDIRECT(\"c\" & (VLOOKUP(Rebalance!$D$62,$F$2:$G$48,2,FALSE)+ROW()-2))=Rebalance!$D$62,INDIRECT(\"a\" & (VLOOKUP(Rebalance!$D$62,$F$2:$G$48,2,FALSE)+ROW()-2)),\"\")","v":{"$error":"#N/A"}},{"$f":"IF(INDIRECT(\"c\" & (VLOOKUP(Rebalance!$D$63,$F$2:$G$48,2,FALSE)+ROW()-2))=Rebalance!$D$63,INDIRECT(\"a\" & (VLOOKUP(Rebalance!$D$63,$F$2:$G$48,2,FALSE)+ROW()-2)),\"\")","v":{"$error":"#N/A"}},{"$f":"IF(INDIRECT(\"c\" & (VLOOKUP(Rebalance!$D$64,$F$2:$G$48,2,FALSE)+ROW()-2))=Rebalance!$D$64,INDIRECT(\"a\" & (VLOOKUP(Rebalance!$D$64,$F$2:$G$48,2,FALSE)+ROW()-2)),\"\")","v":{"$error":"#N/A"}},{"$f":"IF(INDIRECT(\"c\" & (VLOOKUP(Rebalance!$D$65,$F$2:$G$48,2,FALSE)+ROW()-2))=Rebalance!$D$65,INDIRECT(\"a\" & (VLOOKUP(Rebalance!$D$65,$F$2:$G$48,2,FALSE)+ROW()-2)),\"\")","v":{"$error":"#N/A"}},{"$f":"IF(INDIRECT(\"c\" & (VLOOKUP(Rebalance!$D$66,$F$2:$G$48,2,FALSE)+ROW()-2))=Rebalance!$D$66,INDIRECT(\"a\" & (VLOOKUP(Rebalance!$D$66,$F$2:$G$48,2,FALSE)+ROW()-2)),\"\")","v":{"$error":"#N/A"}}]
["STANLIB Equity Fund R","LIWA","STANLIB Collective Investments",{"$f":"ROW()","v":45},null,null,{"$f":"VLOOKUP(F45,$C$2:$D$599,2,FALSE)","v":{"$error":"#N/A"}},{"$f":"IF(INDIRECT(\"c\" & (VLOOKUP(Rebalance!$D$26,$F$2:$G$48,2,FALSE)+ROW()-2))=Rebalance!$D$26,INDIRECT(\"a\" & (VLOOKUP(Rebalance!$D$26,$F$2:$G$48,2,FALSE)+ROW()-2)),\"\")","v":{"$error":"#N/A"}},{"$f":"IF(INDIRECT(\"c\" & (VLOOKUP(Rebalance!$D$27,$F$2:$G$48,2,FALSE)+ROW()-2))=Rebalance!$D$27,INDIRECT(\"a\" & (VLOOKUP(Rebalance!$D$27,$F$2:$G$48,2,FALSE)+ROW()-2)),\"\")","v":{"$error":"#N/A"}},{"$f":"IF(INDIRECT(\"c\" & (VLOOKUP(Rebalance!$D$28,$F$2:$G$48,2,FALSE)+ROW()-2))=Rebalance!$D$28,INDIRECT(\"a\" & (VLOOKUP(Rebalance!$D$28,$F$2:$G$48,2,FALSE)+ROW()-2)),\"\")","v":{"$error":"#N/A"}},{"$f":"IF(INDIRECT(\"c\" & (VLOOKUP(Rebalance!$D$29,$F$2:$G$48,2,FALSE)+ROW()-2))=Rebalance!$D$29,INDIRECT(\"a\" & (VLOOKUP(Rebalance!$D$29,$F$2:$G$48,2,FALSE)+ROW()-2)),\"\")","v":{"$error":"#N/A"}},{"$f":"IF(INDIRECT(\"c\" & (VLOOKUP(Rebalance!$D$30,$F$2:$G$48,2,FALSE)+ROW()-2))=Rebalance!$D$30,INDIRECT(\"a\" & (VLOOKUP(Rebalance!$D$30,$F$2:$G$48,2,FALSE)+ROW()-2)),\"\")","v":{"$error":"#N/A"}},{"$f":"IF(INDIRECT(\"c\" & (VLOOKUP(Rebalance!$D$31,$F$2:$G$48,2,FALSE)+ROW()-2))=Rebalance!$D$31,INDIRECT(\"a\" & (VLOOKUP(Rebalance!$D$31,$F$2:$G$48,2,FALSE)+ROW()-2)),\"\")","v":{"$error":"#N/A"}},{"$f":"IF(INDIRECT(\"c\" & (VLOOKUP(Rebalance!$D$32,$F$2:$G$48,2,FALSE)+ROW()-2))=Rebalance!$D$32,INDIRECT(\"a\" & (VLOOKUP(Rebalance!$D$32,$F$2:$G$48,2,FALSE)+ROW()-2)),\"\")","v":{"$error":"#N/A"}},{"$f":"IF(INDIRECT(\"c\" & (VLOOKUP(Rebalance!$D$33,$F$2:$G$48,2,FALSE)+ROW()-2))=Rebalance!$D$33,INDIRECT(\"a\" & (VLOOKUP(Rebalance!$D$33,$F$2:$G$48,2,FALSE)+ROW()-2)),\"\")","v":{"$error":"#N/A"}},{"$f":"IF(INDIRECT(\"c\" & (VLOOKUP(Rebalance!$D$34,$F$2:$G$48,2,FALSE)+ROW()-2))=Rebalance!$D$34,INDIRECT(\"a\" & (VLOOKUP(Rebalance!$D$34,$F$2:$G$48,2,FALSE)+ROW()-2)),\"\")","v":{"$error":"#N/A"}},{"$f":"IF(INDIRECT(\"c\" & (VLOOKUP(Rebalance!$D$35,$F$2:$G$48,2,FALSE)+ROW()-2))=Rebalance!$D$35,INDIRECT(\"a\" & (VLOOKUP(Rebalance!$D$35,$F$2:$G$48,2,FALSE)+ROW()-2)),\"\")","v":{"$error":"#N/A"}},{"$f":"IF(INDIRECT(\"c\" & (VLOOKUP(Rebalance!$D$36,$F$2:$G$48,2,FALSE)+ROW()-2))=Rebalance!$D$36,INDIRECT(\"a\" & (VLOOKUP(Rebalance!$D$36,$F$2:$G$48,2,FALSE)+ROW()-2)),\"\")","v":{"$error":"#N/A"}},{"$f":"IF(INDIRECT(\"c\" & (VLOOKUP(Rebalance!$D$37,$F$2:$G$48,2,FALSE)+ROW()-2))=Rebalance!$D$37,INDIRECT(\"a\" & (VLOOKUP(Rebalance!$D$37,$F$2:$G$48,2,FALSE)+ROW()-2)),\"\")","v":{"$error":"#N/A"}},{"$f":"IF(INDIRECT(\"c\" & (VLOOKUP(Rebalance!$D$38,$F$2:$G$48,2,FALSE)+ROW()-2))=Rebalance!$D$38,INDIRECT(\"a\" & (VLOOKUP(Rebalance!$D$38,$F$2:$G$48,2,FALSE)+ROW()-2)),\"\")","v":{"$error":"#N/A"}},{"$f":"IF(INDIRECT(\"c\" & (VLOOKUP(Rebalance!$D$39,$F$2:$G$48,2,FALSE)+ROW()-2))=Rebalance!$D$39,INDIRECT(\"a\" & (VLOOKUP(Rebalance!$D$39,$F$2:$G$48,2,FALSE)+ROW()-2)),\"\")","v":{"$error":"#N/A"}},{"$f":"IF(INDIRECT(\"c\" & (VLOOKUP(Rebalance!$D$40,$F$2:$G$48,2,FALSE)+ROW()-2))=Rebalance!$D$40,INDIRECT(\"a\" & (VLOOKUP(Rebalance!$D$40,$F$2:$G$48,2,FALSE)+ROW()-2)),\"\")","v":{"$error":"#N/A"}},{"$f":"IF(INDIRECT(\"c\" & (VLOOKUP(Rebalance!$D$52,$F$2:$G$48,2,FALSE)+ROW()-2))=Rebalance!$D$52,INDIRECT(\"a\" & (VLOOKUP(Rebalance!$D$52,$F$2:$G$48,2,FALSE)+ROW()-2)),\"\")","v":{"$error":"#N/A"}},{"$f":"IF(INDIRECT(\"c\" & (VLOOKUP(Rebalance!$D$53,$F$2:$G$48,2,FALSE)+ROW()-2))=Rebalance!$D$53,INDIRECT(\"a\" & (VLOOKUP(Rebalance!$D$53,$F$2:$G$48,2,FALSE)+ROW()-2)),\"\")","v":{"$error":"#N/A"}},{"$f":"IF(INDIRECT(\"c\" & (VLOOKUP(Rebalance!$D$54,$F$2:$G$48,2,FALSE)+ROW()-2))=Rebalance!$D$54,INDIRECT(\"a\" & (VLOOKUP(Rebalance!$D$54,$F$2:$G$48,2,FALSE)+ROW()-2)),\"\")","v":{"$error":"#N/A"}},{"$f":"IF(INDIRECT(\"c\" & (VLOOKUP(Rebalance!$D$55,$F$2:$G$48,2,FALSE)+ROW()-2))=Rebalance!$D$55,INDIRECT(\"a\" & (VLOOKUP(Rebalance!$D$55,$F$2:$G$48,2,FALSE)+ROW()-2)),\"\")","v":{"$error":"#N/A"}},{"$f":"IF(INDIRECT(\"c\" & (VLOOKUP(Rebalance!$D$56,$F$2:$G$48,2,FALSE)+ROW()-2))=Rebalance!$D$56,INDIRECT(\"a\" & (VLOOKUP(Rebalance!$D$56,$F$2:$G$48,2,FALSE)+ROW()-2)),\"\")","v":{"$error":"#N/A"}},{"$f":"IF(INDIRECT(\"c\" & (VLOOKUP(Rebalance!$D$57,$F$2:$G$48,2,FALSE)+ROW()-2))=Rebalance!$D$57,INDIRECT(\"a\" & (VLOOKUP(Rebalance!$D$57,$F$2:$G$48,2,FALSE)+ROW()-2)),\"\")","v":{"$error":"#N/A"}},{"$f":"IF(INDIRECT(\"c\" & (VLOOKUP(Rebalance!$D$58,$F$2:$G$48,2,FALSE)+ROW()-2))=Rebalance!$D$58,INDIRECT(\"a\" & (VLOOKUP(Rebalance!$D$58,$F$2:$G$48,2,FALSE)+ROW()-2)),\"\")","v":{"$error":"#N/A"}},{"$f":"IF(INDIRECT(\"c\" & (VLOOKUP(Rebalance!$D$59,$F$2:$G$48,2,FALSE)+ROW()-2))=Rebalance!$D$59,INDIRECT(\"a\" & (VLOOKUP(Rebalance!$D$59,$F$2:$G$48,2,FALSE)+ROW()-2)),\"\")","v":{"$error":"#N/A"}},{"$f":"IF(INDIRECT(\"c\" & (VLOOKUP(Rebalance!$D$60,$F$2:$G$48,2,FALSE)+ROW()-2))=Rebalance!$D$60,INDIRECT(\"a\" & (VLOOKUP(Rebalance!$D$60,$F$2:$G$48,2,FALSE)+ROW()-2)),\"\")","v":{"$error":"#N/A"}},{"$f":"IF(INDIRECT(\"c\" & (VLOOKUP(Rebalance!$D$61,$F$2:$G$48,2,FALSE)+ROW()-2))=Rebalance!$D$61,INDIRECT(\"a\" & (VLOOKUP(Rebalance!$D$61,$F$2:$G$48,2,FALSE)+ROW()-2)),\"\")","v":{"$error":"#N/A"}},{"$f":"IF(INDIRECT(\"c\" & (VLOOKUP(Rebalance!$D$62,$F$2:$G$48,2,FALSE)+ROW()-2))=Rebalance!$D$62,INDIRECT(\"a\" & (VLOOKUP(Rebalance!$D$62,$F$2:$G$48,2,FALSE)+ROW()-2)),\"\")","v":{"$error":"#N/A"}},{"$f":"IF(INDIRECT(\"c\" & (VLOOKUP(Rebalance!$D$63,$F$2:$G$48,2,FALSE)+ROW()-2))=Rebalance!$D$63,INDIRECT(\"a\" & (VLOOKUP(Rebalance!$D$63,$F$2:$G$48,2,FALSE)+ROW()-2)),\"\")","v":{"$error":"#N/A"}},{"$f":"IF(INDIRECT(\"c\" & (VLOOKUP(Rebalance!$D$64,$F$2:$G$48,2,FALSE)+ROW()-2))=Rebalance!$D$64,INDIRECT(\"a\" & (VLOOKUP(Rebalance!$D$64,$F$2:$G$48,2,FALSE)+ROW()-2)),\"\")","v":{"$error":"#N/A"}},{"$f":"IF(INDIRECT(\"c\" & (VLOOKUP(Rebalance!$D$65,$F$2:$G$48,2,FALSE)+ROW()-2))=Rebalance!$D$65,INDIRECT(\"a\" & (VLOOKUP(Rebalance!$D$65,$F$2:$G$48,2,FALSE)+ROW()-2)),\"\")","v":{"$error":"#N/A"}},{"$f":"IF(INDIRECT(\"c\" & (VLOOKUP(Rebalance!$D$66,$F$2:$G$48,2,FALSE)+ROW()-2))=Rebalance!$D$66,INDIRECT(\"a\" & (VLOOKUP(Rebalance!$D$66,$F$2:$G$48,2,FALSE)+ROW()-2)),\"\")","v":{"$error":"#N/A"}}]
["STANLIB European Equity Feeder Fund B3","SEEFB3","STANLIB Collective Investments",{"$f":"ROW()","v":46},null,null,{"$f":"VLOOKUP(F46,$C$2:$D$599,2,FALSE)","v":{"$error":"#N/A"}},{"$f":"IF(INDIRECT(\"c\" & (VLOOKUP(Rebalance!$D$26,$F$2:$G$48,2,FALSE)+ROW()-2))=Rebalance!$D$26,INDIRECT(\"a\" & (VLOOKUP(Rebalance!$D$26,$F$2:$G$48,2,FALSE)+ROW()-2)),\"\")","v":{"$error":"#N/A"}},{"$f":"IF(INDIRECT(\"c\" & (VLOOKUP(Rebalance!$D$27,$F$2:$G$48,2,FALSE)+ROW()-2))=Rebalance!$D$27,INDIRECT(\"a\" & (VLOOKUP(Rebalance!$D$27,$F$2:$G$48,2,FALSE)+ROW()-2)),\"\")","v":{"$error":"#N/A"}},{"$f":"IF(INDIRECT(\"c\" & (VLOOKUP(Rebalance!$D$28,$F$2:$G$48,2,FALSE)+ROW()-2))=Rebalance!$D$28,INDIRECT(\"a\" & (VLOOKUP(Rebalance!$D$28,$F$2:$G$48,2,FALSE)+ROW()-2)),\"\")","v":{"$error":"#N/A"}},{"$f":"IF(INDIRECT(\"c\" & (VLOOKUP(Rebalance!$D$29,$F$2:$G$48,2,FALSE)+ROW()-2))=Rebalance!$D$29,INDIRECT(\"a\" & (VLOOKUP(Rebalance!$D$29,$F$2:$G$48,2,FALSE)+ROW()-2)),\"\")","v":{"$error":"#N/A"}},{"$f":"IF(INDIRECT(\"c\" & (VLOOKUP(Rebalance!$D$30,$F$2:$G$48,2,FALSE)+ROW()-2))=Rebalance!$D$30,INDIRECT(\"a\" & (VLOOKUP(Rebalance!$D$30,$F$2:$G$48,2,FALSE)+ROW()-2)),\"\")","v":{"$error":"#N/A"}},{"$f":"IF(INDIRECT(\"c\" & (VLOOKUP(Rebalance!$D$31,$F$2:$G$48,2,FALSE)+ROW()-2))=Rebalance!$D$31,INDIRECT(\"a\" & (VLOOKUP(Rebalance!$D$31,$F$2:$G$48,2,FALSE)+ROW()-2)),\"\")","v":{"$error":"#N/A"}},{"$f":"IF(INDIRECT(\"c\" & (VLOOKUP(Rebalance!$D$32,$F$2:$G$48,2,FALSE)+ROW()-2))=Rebalance!$D$32,INDIRECT(\"a\" & (VLOOKUP(Rebalance!$D$32,$F$2:$G$48,2,FALSE)+ROW()-2)),\"\")","v":{"$error":"#N/A"}},{"$f":"IF(INDIRECT(\"c\" & (VLOOKUP(Rebalance!$D$33,$F$2:$G$48,2,FALSE)+ROW()-2))=Rebalance!$D$33,INDIRECT(\"a\" & (VLOOKUP(Rebalance!$D$33,$F$2:$G$48,2,FALSE)+ROW()-2)),\"\")","v":{"$error":"#N/A"}},{"$f":"IF(INDIRECT(\"c\" & (VLOOKUP(Rebalance!$D$34,$F$2:$G$48,2,FALSE)+ROW()-2))=Rebalance!$D$34,INDIRECT(\"a\" & (VLOOKUP(Rebalance!$D$34,$F$2:$G$48,2,FALSE)+ROW()-2)),\"\")","v":{"$error":"#N/A"}},{"$f":"IF(INDIRECT(\"c\" & (VLOOKUP(Rebalance!$D$35,$F$2:$G$48,2,FALSE)+ROW()-2))=Rebalance!$D$35,INDIRECT(\"a\" & (VLOOKUP(Rebalance!$D$35,$F$2:$G$48,2,FALSE)+ROW()-2)),\"\")","v":{"$error":"#N/A"}},{"$f":"IF(INDIRECT(\"c\" & (VLOOKUP(Rebalance!$D$36,$F$2:$G$48,2,FALSE)+ROW()-2))=Rebalance!$D$36,INDIRECT(\"a\" & (VLOOKUP(Rebalance!$D$36,$F$2:$G$48,2,FALSE)+ROW()-2)),\"\")","v":{"$error":"#N/A"}},{"$f":"IF(INDIRECT(\"c\" & (VLOOKUP(Rebalance!$D$37,$F$2:$G$48,2,FALSE)+ROW()-2))=Rebalance!$D$37,INDIRECT(\"a\" & (VLOOKUP(Rebalance!$D$37,$F$2:$G$48,2,FALSE)+ROW()-2)),\"\")","v":{"$error":"#N/A"}},{"$f":"IF(INDIRECT(\"c\" & (VLOOKUP(Rebalance!$D$38,$F$2:$G$48,2,FALSE)+ROW()-2))=Rebalance!$D$38,INDIRECT(\"a\" & (VLOOKUP(Rebalance!$D$38,$F$2:$G$48,2,FALSE)+ROW()-2)),\"\")","v":{"$error":"#N/A"}},{"$f":"IF(INDIRECT(\"c\" & (VLOOKUP(Rebalance!$D$39,$F$2:$G$48,2,FALSE)+ROW()-2))=Rebalance!$D$39,INDIRECT(\"a\" & (VLOOKUP(Rebalance!$D$39,$F$2:$G$48,2,FALSE)+ROW()-2)),\"\")","v":{"$error":"#N/A"}},{"$f":"IF(INDIRECT(\"c\" & (VLOOKUP(Rebalance!$D$40,$F$2:$G$48,2,FALSE)+ROW()-2))=Rebalance!$D$40,INDIRECT(\"a\" & (VLOOKUP(Rebalance!$D$40,$F$2:$G$48,2,FALSE)+ROW()-2)),\"\")","v":{"$error":"#N/A"}},{"$f":"IF(INDIRECT(\"c\" & (VLOOKUP(Rebalance!$D$52,$F$2:$G$48,2,FALSE)+ROW()-2))=Rebalance!$D$52,INDIRECT(\"a\" & (VLOOKUP(Rebalance!$D$52,$F$2:$G$48,2,FALSE)+ROW()-2)),\"\")","v":{"$error":"#N/A"}},{"$f":"IF(INDIRECT(\"c\" & (VLOOKUP(Rebalance!$D$53,$F$2:$G$48,2,FALSE)+ROW()-2))=Rebalance!$D$53,INDIRECT(\"a\" & (VLOOKUP(Rebalance!$D$53,$F$2:$G$48,2,FALSE)+ROW()-2)),\"\")","v":{"$error":"#N/A"}},{"$f":"IF(INDIRECT(\"c\" & (VLOOKUP(Rebalance!$D$54,$F$2:$G$48,2,FALSE)+ROW()-2))=Rebalance!$D$54,INDIRECT(\"a\" & (VLOOKUP(Rebalance!$D$54,$F$2:$G$48,2,FALSE)+ROW()-2)),\"\")","v":{"$error":"#N/A"}},{"$f":"IF(INDIRECT(\"c\" & (VLOOKUP(Rebalance!$D$55,$F$2:$G$48,2,FALSE)+ROW()-2))=Rebalance!$D$55,INDIRECT(\"a\" & (VLOOKUP(Rebalance!$D$55,$F$2:$G$48,2,FALSE)+ROW()-2)),\"\")","v":{"$error":"#N/A"}},{"$f":"IF(INDIRECT(\"c\" & (VLOOKUP(Rebalance!$D$56,$F$2:$G$48,2,FALSE)+ROW()-2))=Rebalance!$D$56,INDIRECT(\"a\" & (VLOOKUP(Rebalance!$D$56,$F$2:$G$48,2,FALSE)+ROW()-2)),\"\")","v":{"$error":"#N/A"}},{"$f":"IF(INDIRECT(\"c\" & (VLOOKUP(Rebalance!$D$57,$F$2:$G$48,2,FALSE)+ROW()-2))=Rebalance!$D$57,INDIRECT(\"a\" & (VLOOKUP(Rebalance!$D$57,$F$2:$G$48,2,FALSE)+ROW()-2)),\"\")","v":{"$error":"#N/A"}},{"$f":"IF(INDIRECT(\"c\" & (VLOOKUP(Rebalance!$D$58,$F$2:$G$48,2,FALSE)+ROW()-2))=Rebalance!$D$58,INDIRECT(\"a\" & (VLOOKUP(Rebalance!$D$58,$F$2:$G$48,2,FALSE)+ROW()-2)),\"\")","v":{"$error":"#N/A"}},{"$f":"IF(INDIRECT(\"c\" & (VLOOKUP(Rebalance!$D$59,$F$2:$G$48,2,FALSE)+ROW()-2))=Rebalance!$D$59,INDIRECT(\"a\" & (VLOOKUP(Rebalance!$D$59,$F$2:$G$48,2,FALSE)+ROW()-2)),\"\")","v":{"$error":"#N/A"}},{"$f":"IF(INDIRECT(\"c\" & (VLOOKUP(Rebalance!$D$60,$F$2:$G$48,2,FALSE)+ROW()-2))=Rebalance!$D$60,INDIRECT(\"a\" & (VLOOKUP(Rebalance!$D$60,$F$2:$G$48,2,FALSE)+ROW()-2)),\"\")","v":{"$error":"#N/A"}},{"$f":"IF(INDIRECT(\"c\" & (VLOOKUP(Rebalance!$D$61,$F$2:$G$48,2,FALSE)+ROW()-2))=Rebalance!$D$61,INDIRECT(\"a\" & (VLOOKUP(Rebalance!$D$61,$F$2:$G$48,2,FALSE)+ROW()-2)),\"\")","v":{"$error":"#N/A"}},{"$f":"IF(INDIRECT(\"c\" & (VLOOKUP(Rebalance!$D$62,$F$2:$G$48,2,FALSE)+ROW()-2))=Rebalance!$D$62,INDIRECT(\"a\" & (VLOOKUP(Rebalance!$D$62,$F$2:$G$48,2,FALSE)+ROW()-2)),\"\")","v":{"$error":"#N/A"}},{"$f":"IF(INDIRECT(\"c\" & (VLOOKUP(Rebalance!$D$63,$F$2:$G$48,2,FALSE)+ROW()-2))=Rebalance!$D$63,INDIRECT(\"a\" & (VLOOKUP(Rebalance!$D$63,$F$2:$G$48,2,FALSE)+ROW()-2)),\"\")","v":{"$error":"#N/A"}},{"$f":"IF(INDIRECT(\"c\" & (VLOOKUP(Rebalance!$D$64,$F$2:$G$48,2,FALSE)+ROW()-2))=Rebalance!$D$64,INDIRECT(\"a\" & (VLOOKUP(Rebalance!$D$64,$F$2:$G$48,2,FALSE)+ROW()-2)),\"\")","v":{"$error":"#N/A"}},{"$f":"IF(INDIRECT(\"c\" & (VLOOKUP(Rebalance!$D$65,$F$2:$G$48,2,FALSE)+ROW()-2))=Rebalance!$D$65,INDIRECT(\"a\" & (VLOOKUP(Rebalance!$D$65,$F$2:$G$48,2,FALSE)+ROW()-2)),\"\")","v":{"$error":"#N/A"}},{"$f":"IF(INDIRECT(\"c\" & (VLOOKUP(Rebalance!$D$66,$F$2:$G$48,2,FALSE)+ROW()-2))=Rebalance!$D$66,INDIRECT(\"a\" & (VLOOKUP(Rebalance!$D$66,$F$2:$G$48,2,FALSE)+ROW()-2)),\"\")","v":{"$error":"#N/A"}}]
["STANLIB Extra Income Fund  R","STDI","STANLIB Collective Investments",{"$f":"ROW()","v":47},null,null,{"$f":"VLOOKUP(F47,$C$2:$D$599,2,FALSE)","v":{"$error":"#N/A"}},{"$f":"IF(INDIRECT(\"c\" & (VLOOKUP(Rebalance!$D$26,$F$2:$G$48,2,FALSE)+ROW()-2))=Rebalance!$D$26,INDIRECT(\"a\" & (VLOOKUP(Rebalance!$D$26,$F$2:$G$48,2,FALSE)+ROW()-2)),\"\")","v":{"$error":"#N/A"}},{"$f":"IF(INDIRECT(\"c\" & (VLOOKUP(Rebalance!$D$27,$F$2:$G$48,2,FALSE)+ROW()-2))=Rebalance!$D$27,INDIRECT(\"a\" & (VLOOKUP(Rebalance!$D$27,$F$2:$G$48,2,FALSE)+ROW()-2)),\"\")","v":{"$error":"#N/A"}},{"$f":"IF(INDIRECT(\"c\" & (VLOOKUP(Rebalance!$D$28,$F$2:$G$48,2,FALSE)+ROW()-2))=Rebalance!$D$28,INDIRECT(\"a\" & (VLOOKUP(Rebalance!$D$28,$F$2:$G$48,2,FALSE)+ROW()-2)),\"\")","v":{"$error":"#N/A"}},{"$f":"IF(INDIRECT(\"c\" & (VLOOKUP(Rebalance!$D$29,$F$2:$G$48,2,FALSE)+ROW()-2))=Rebalance!$D$29,INDIRECT(\"a\" & (VLOOKUP(Rebalance!$D$29,$F$2:$G$48,2,FALSE)+ROW()-2)),\"\")","v":{"$error":"#N/A"}},{"$f":"IF(INDIRECT(\"c\" & (VLOOKUP(Rebalance!$D$30,$F$2:$G$48,2,FALSE)+ROW()-2))=Rebalance!$D$30,INDIRECT(\"a\" & (VLOOKUP(Rebalance!$D$30,$F$2:$G$48,2,FALSE)+ROW()-2)),\"\")","v":{"$error":"#N/A"}},{"$f":"IF(INDIRECT(\"c\" & (VLOOKUP(Rebalance!$D$31,$F$2:$G$48,2,FALSE)+ROW()-2))=Rebalance!$D$31,INDIRECT(\"a\" & (VLOOKUP(Rebalance!$D$31,$F$2:$G$48,2,FALSE)+ROW()-2)),\"\")","v":{"$error":"#N/A"}},{"$f":"IF(INDIRECT(\"c\" & (VLOOKUP(Rebalance!$D$32,$F$2:$G$48,2,FALSE)+ROW()-2))=Rebalance!$D$32,INDIRECT(\"a\" & (VLOOKUP(Rebalance!$D$32,$F$2:$G$48,2,FALSE)+ROW()-2)),\"\")","v":{"$error":"#N/A"}},{"$f":"IF(INDIRECT(\"c\" & (VLOOKUP(Rebalance!$D$33,$F$2:$G$48,2,FALSE)+ROW()-2))=Rebalance!$D$33,INDIRECT(\"a\" & (VLOOKUP(Rebalance!$D$33,$F$2:$G$48,2,FALSE)+ROW()-2)),\"\")","v":{"$error":"#N/A"}},{"$f":"IF(INDIRECT(\"c\" & (VLOOKUP(Rebalance!$D$34,$F$2:$G$48,2,FALSE)+ROW()-2))=Rebalance!$D$34,INDIRECT(\"a\" & (VLOOKUP(Rebalance!$D$34,$F$2:$G$48,2,FALSE)+ROW()-2)),\"\")","v":{"$error":"#N/A"}},{"$f":"IF(INDIRECT(\"c\" & (VLOOKUP(Rebalance!$D$35,$F$2:$G$48,2,FALSE)+ROW()-2))=Rebalance!$D$35,INDIRECT(\"a\" & (VLOOKUP(Rebalance!$D$35,$F$2:$G$48,2,FALSE)+ROW()-2)),\"\")","v":{"$error":"#N/A"}},{"$f":"IF(INDIRECT(\"c\" & (VLOOKUP(Rebalance!$D$36,$F$2:$G$48,2,FALSE)+ROW()-2))=Rebalance!$D$36,INDIRECT(\"a\" & (VLOOKUP(Rebalance!$D$36,$F$2:$G$48,2,FALSE)+ROW()-2)),\"\")","v":{"$error":"#N/A"}},{"$f":"IF(INDIRECT(\"c\" & (VLOOKUP(Rebalance!$D$37,$F$2:$G$48,2,FALSE)+ROW()-2))=Rebalance!$D$37,INDIRECT(\"a\" & (VLOOKUP(Rebalance!$D$37,$F$2:$G$48,2,FALSE)+ROW()-2)),\"\")","v":{"$error":"#N/A"}},{"$f":"IF(INDIRECT(\"c\" & (VLOOKUP(Rebalance!$D$38,$F$2:$G$48,2,FALSE)+ROW()-2))=Rebalance!$D$38,INDIRECT(\"a\" & (VLOOKUP(Rebalance!$D$38,$F$2:$G$48,2,FALSE)+ROW()-2)),\"\")","v":{"$error":"#N/A"}},{"$f":"IF(INDIRECT(\"c\" & (VLOOKUP(Rebalance!$D$39,$F$2:$G$48,2,FALSE)+ROW()-2))=Rebalance!$D$39,INDIRECT(\"a\" & (VLOOKUP(Rebalance!$D$39,$F$2:$G$48,2,FALSE)+ROW()-2)),\"\")","v":{"$error":"#N/A"}},{"$f":"IF(INDIRECT(\"c\" & (VLOOKUP(Rebalance!$D$40,$F$2:$G$48,2,FALSE)+ROW()-2))=Rebalance!$D$40,INDIRECT(\"a\" & (VLOOKUP(Rebalance!$D$40,$F$2:$G$48,2,FALSE)+ROW()-2)),\"\")","v":{"$error":"#N/A"}},{"$f":"IF(INDIRECT(\"c\" & (VLOOKUP(Rebalance!$D$52,$F$2:$G$48,2,FALSE)+ROW()-2))=Rebalance!$D$52,INDIRECT(\"a\" & (VLOOKUP(Rebalance!$D$52,$F$2:$G$48,2,FALSE)+ROW()-2)),\"\")","v":{"$error":"#N/A"}},{"$f":"IF(INDIRECT(\"c\" & (VLOOKUP(Rebalance!$D$53,$F$2:$G$48,2,FALSE)+ROW()-2))=Rebalance!$D$53,INDIRECT(\"a\" & (VLOOKUP(Rebalance!$D$53,$F$2:$G$48,2,FALSE)+ROW()-2)),\"\")","v":{"$error":"#N/A"}},{"$f":"IF(INDIRECT(\"c\" & (VLOOKUP(Rebalance!$D$54,$F$2:$G$48,2,FALSE)+ROW()-2))=Rebalance!$D$54,INDIRECT(\"a\" & (VLOOKUP(Rebalance!$D$54,$F$2:$G$48,2,FALSE)+ROW()-2)),\"\")","v":{"$error":"#N/A"}},{"$f":"IF(INDIRECT(\"c\" & (VLOOKUP(Rebalance!$D$55,$F$2:$G$48,2,FALSE)+ROW()-2))=Rebalance!$D$55,INDIRECT(\"a\" & (VLOOKUP(Rebalance!$D$55,$F$2:$G$48,2,FALSE)+ROW()-2)),\"\")","v":{"$error":"#N/A"}},{"$f":"IF(INDIRECT(\"c\" & (VLOOKUP(Rebalance!$D$56,$F$2:$G$48,2,FALSE)+ROW()-2))=Rebalance!$D$56,INDIRECT(\"a\" & (VLOOKUP(Rebalance!$D$56,$F$2:$G$48,2,FALSE)+ROW()-2)),\"\")","v":{"$error":"#N/A"}},{"$f":"IF(INDIRECT(\"c\" & (VLOOKUP(Rebalance!$D$57,$F$2:$G$48,2,FALSE)+ROW()-2))=Rebalance!$D$57,INDIRECT(\"a\" & (VLOOKUP(Rebalance!$D$57,$F$2:$G$48,2,FALSE)+ROW()-2)),\"\")","v":{"$error":"#N/A"}},{"$f":"IF(INDIRECT(\"c\" & (VLOOKUP(Rebalance!$D$58,$F$2:$G$48,2,FALSE)+ROW()-2))=Rebalance!$D$58,INDIRECT(\"a\" & (VLOOKUP(Rebalance!$D$58,$F$2:$G$48,2,FALSE)+ROW()-2)),\"\")","v":{"$error":"#N/A"}},{"$f":"IF(INDIRECT(\"c\" & (VLOOKUP(Rebalance!$D$59,$F$2:$G$48,2,FALSE)+ROW()-2))=Rebalance!$D$59,INDIRECT(\"a\" & (VLOOKUP(Rebalance!$D$59,$F$2:$G$48,2,FALSE)+ROW()-2)),\"\")","v":{"$error":"#N/A"}},{"$f":"IF(INDIRECT(\"c\" & (VLOOKUP(Rebalance!$D$60,$F$2:$G$48,2,FALSE)+ROW()-2))=Rebalance!$D$60,INDIRECT(\"a\" & (VLOOKUP(Rebalance!$D$60,$F$2:$G$48,2,FALSE)+ROW()-2)),\"\")","v":{"$error":"#N/A"}},{"$f":"IF(INDIRECT(\"c\" & (VLOOKUP(Rebalance!$D$61,$F$2:$G$48,2,FALSE)+ROW()-2))=Rebalance!$D$61,INDIRECT(\"a\" & (VLOOKUP(Rebalance!$D$61,$F$2:$G$48,2,FALSE)+ROW()-2)),\"\")","v":{"$error":"#N/A"}},{"$f":"IF(INDIRECT(\"c\" & (VLOOKUP(Rebalance!$D$62,$F$2:$G$48,2,FALSE)+ROW()-2))=Rebalance!$D$62,INDIRECT(\"a\" & (VLOOKUP(Rebalance!$D$62,$F$2:$G$48,2,FALSE)+ROW()-2)),\"\")","v":{"$error":"#N/A"}},{"$f":"IF(INDIRECT(\"c\" & (VLOOKUP(Rebalance!$D$63,$F$2:$G$48,2,FALSE)+ROW()-2))=Rebalance!$D$63,INDIRECT(\"a\" & (VLOOKUP(Rebalance!$D$63,$F$2:$G$48,2,FALSE)+ROW()-2)),\"\")","v":{"$error":"#N/A"}},{"$f":"IF(INDIRECT(\"c\" & (VLOOKUP(Rebalance!$D$64,$F$2:$G$48,2,FALSE)+ROW()-2))=Rebalance!$D$64,INDIRECT(\"a\" & (VLOOKUP(Rebalance!$D$64,$F$2:$G$48,2,FALSE)+ROW()-2)),\"\")","v":{"$error":"#N/A"}},{"$f":"IF(INDIRECT(\"c\" & (VLOOKUP(Rebalance!$D$65,$F$2:$G$48,2,FALSE)+ROW()-2))=Rebalance!$D$65,INDIRECT(\"a\" & (VLOOKUP(Rebalance!$D$65,$F$2:$G$48,2,FALSE)+ROW()-2)),\"\")","v":{"$error":"#N/A"}},{"$f":"IF(INDIRECT(\"c\" & (VLOOKUP(Rebalance!$D$66,$F$2:$G$48,2,FALSE)+ROW()-2))=Rebalance!$D$66,INDIRECT(\"a\" & (VLOOKUP(Rebalance!$D$66,$F$2:$G$48,2,FALSE)+ROW()-2)),\"\")","v":{"$error":"#N/A"}}]
["STANLIB Flexible Income A","STFA","STANLIB Collective Investments",{"$f":"ROW()","v":48},null,null,{"$f":"VLOOKUP(F48,$C$2:$D$599,2,FALSE)","v":{"$error":"#N/A"}},{"$f":"IF(INDIRECT(\"c\" & (VLOOKUP(Rebalance!$D$26,$F$2:$G$48,2,FALSE)+ROW()-2))=Rebalance!$D$26,INDIRECT(\"a\" & (VLOOKUP(Rebalance!$D$26,$F$2:$G$48,2,FALSE)+ROW()-2)),\"\")","v":{"$error":"#N/A"}},{"$f":"IF(INDIRECT(\"c\" & (VLOOKUP(Rebalance!$D$27,$F$2:$G$48,2,FALSE)+ROW()-2))=Rebalance!$D$27,INDIRECT(\"a\" & (VLOOKUP(Rebalance!$D$27,$F$2:$G$48,2,FALSE)+ROW()-2)),\"\")","v":{"$error":"#N/A"}},{"$f":"IF(INDIRECT(\"c\" & (VLOOKUP(Rebalance!$D$28,$F$2:$G$48,2,FALSE)+ROW()-2))=Rebalance!$D$28,INDIRECT(\"a\" & (VLOOKUP(Rebalance!$D$28,$F$2:$G$48,2,FALSE)+ROW()-2)),\"\")","v":{"$error":"#N/A"}},{"$f":"IF(INDIRECT(\"c\" & (VLOOKUP(Rebalance!$D$29,$F$2:$G$48,2,FALSE)+ROW()-2))=Rebalance!$D$29,INDIRECT(\"a\" & (VLOOKUP(Rebalance!$D$29,$F$2:$G$48,2,FALSE)+ROW()-2)),\"\")","v":{"$error":"#N/A"}},{"$f":"IF(INDIRECT(\"c\" & (VLOOKUP(Rebalance!$D$30,$F$2:$G$48,2,FALSE)+ROW()-2))=Rebalance!$D$30,INDIRECT(\"a\" & (VLOOKUP(Rebalance!$D$30,$F$2:$G$48,2,FALSE)+ROW()-2)),\"\")","v":{"$error":"#N/A"}},{"$f":"IF(INDIRECT(\"c\" & (VLOOKUP(Rebalance!$D$31,$F$2:$G$48,2,FALSE)+ROW()-2))=Rebalance!$D$31,INDIRECT(\"a\" & (VLOOKUP(Rebalance!$D$31,$F$2:$G$48,2,FALSE)+ROW()-2)),\"\")","v":{"$error":"#N/A"}},{"$f":"IF(INDIRECT(\"c\" & (VLOOKUP(Rebalance!$D$32,$F$2:$G$48,2,FALSE)+ROW()-2))=Rebalance!$D$32,INDIRECT(\"a\" & (VLOOKUP(Rebalance!$D$32,$F$2:$G$48,2,FALSE)+ROW()-2)),\"\")","v":{"$error":"#N/A"}},{"$f":"IF(INDIRECT(\"c\" & (VLOOKUP(Rebalance!$D$33,$F$2:$G$48,2,FALSE)+ROW()-2))=Rebalance!$D$33,INDIRECT(\"a\" & (VLOOKUP(Rebalance!$D$33,$F$2:$G$48,2,FALSE)+ROW()-2)),\"\")","v":{"$error":"#N/A"}},{"$f":"IF(INDIRECT(\"c\" & (VLOOKUP(Rebalance!$D$34,$F$2:$G$48,2,FALSE)+ROW()-2))=Rebalance!$D$34,INDIRECT(\"a\" & (VLOOKUP(Rebalance!$D$34,$F$2:$G$48,2,FALSE)+ROW()-2)),\"\")","v":{"$error":"#N/A"}},{"$f":"IF(INDIRECT(\"c\" & (VLOOKUP(Rebalance!$D$35,$F$2:$G$48,2,FALSE)+ROW()-2))=Rebalance!$D$35,INDIRECT(\"a\" & (VLOOKUP(Rebalance!$D$35,$F$2:$G$48,2,FALSE)+ROW()-2)),\"\")","v":{"$error":"#N/A"}},{"$f":"IF(INDIRECT(\"c\" & (VLOOKUP(Rebalance!$D$36,$F$2:$G$48,2,FALSE)+ROW()-2))=Rebalance!$D$36,INDIRECT(\"a\" & (VLOOKUP(Rebalance!$D$36,$F$2:$G$48,2,FALSE)+ROW()-2)),\"\")","v":{"$error":"#N/A"}},{"$f":"IF(INDIRECT(\"c\" & (VLOOKUP(Rebalance!$D$37,$F$2:$G$48,2,FALSE)+ROW()-2))=Rebalance!$D$37,INDIRECT(\"a\" & (VLOOKUP(Rebalance!$D$37,$F$2:$G$48,2,FALSE)+ROW()-2)),\"\")","v":{"$error":"#N/A"}},{"$f":"IF(INDIRECT(\"c\" & (VLOOKUP(Rebalance!$D$38,$F$2:$G$48,2,FALSE)+ROW()-2))=Rebalance!$D$38,INDIRECT(\"a\" & (VLOOKUP(Rebalance!$D$38,$F$2:$G$48,2,FALSE)+ROW()-2)),\"\")","v":{"$error":"#N/A"}},{"$f":"IF(INDIRECT(\"c\" & (VLOOKUP(Rebalance!$D$39,$F$2:$G$48,2,FALSE)+ROW()-2))=Rebalance!$D$39,INDIRECT(\"a\" & (VLOOKUP(Rebalance!$D$39,$F$2:$G$48,2,FALSE)+ROW()-2)),\"\")","v":{"$error":"#N/A"}},{"$f":"IF(INDIRECT(\"c\" & (VLOOKUP(Rebalance!$D$40,$F$2:$G$48,2,FALSE)+ROW()-2))=Rebalance!$D$40,INDIRECT(\"a\" & (VLOOKUP(Rebalance!$D$40,$F$2:$G$48,2,FALSE)+ROW()-2)),\"\")","v":{"$error":"#N/A"}},{"$f":"IF(INDIRECT(\"c\" & (VLOOKUP(Rebalance!$D$52,$F$2:$G$48,2,FALSE)+ROW()-2))=Rebalance!$D$52,INDIRECT(\"a\" & (VLOOKUP(Rebalance!$D$52,$F$2:$G$48,2,FALSE)+ROW()-2)),\"\")","v":{"$error":"#N/A"}},{"$f":"IF(INDIRECT(\"c\" & (VLOOKUP(Rebalance!$D$53,$F$2:$G$48,2,FALSE)+ROW()-2))=Rebalance!$D$53,INDIRECT(\"a\" & (VLOOKUP(Rebalance!$D$53,$F$2:$G$48,2,FALSE)+ROW()-2)),\"\")","v":{"$error":"#N/A"}},{"$f":"IF(INDIRECT(\"c\" & (VLOOKUP(Rebalance!$D$54,$F$2:$G$48,2,FALSE)+ROW()-2))=Rebalance!$D$54,INDIRECT(\"a\" & (VLOOKUP(Rebalance!$D$54,$F$2:$G$48,2,FALSE)+ROW()-2)),\"\")","v":{"$error":"#N/A"}},{"$f":"IF(INDIRECT(\"c\" & (VLOOKUP(Rebalance!$D$55,$F$2:$G$48,2,FALSE)+ROW()-2))=Rebalance!$D$55,INDIRECT(\"a\" & (VLOOKUP(Rebalance!$D$55,$F$2:$G$48,2,FALSE)+ROW()-2)),\"\")","v":{"$error":"#N/A"}},{"$f":"IF(INDIRECT(\"c\" & (VLOOKUP(Rebalance!$D$56,$F$2:$G$48,2,FALSE)+ROW()-2))=Rebalance!$D$56,INDIRECT(\"a\" & (VLOOKUP(Rebalance!$D$56,$F$2:$G$48,2,FALSE)+ROW()-2)),\"\")","v":{"$error":"#N/A"}},{"$f":"IF(INDIRECT(\"c\" & (VLOOKUP(Rebalance!$D$57,$F$2:$G$48,2,FALSE)+ROW()-2))=Rebalance!$D$57,INDIRECT(\"a\" & (VLOOKUP(Rebalance!$D$57,$F$2:$G$48,2,FALSE)+ROW()-2)),\"\")","v":{"$error":"#N/A"}},{"$f":"IF(INDIRECT(\"c\" & (VLOOKUP(Rebalance!$D$58,$F$2:$G$48,2,FALSE)+ROW()-2))=Rebalance!$D$58,INDIRECT(\"a\" & (VLOOKUP(Rebalance!$D$58,$F$2:$G$48,2,FALSE)+ROW()-2)),\"\")","v":{"$error":"#N/A"}},{"$f":"IF(INDIRECT(\"c\" & (VLOOKUP(Rebalance!$D$59,$F$2:$G$48,2,FALSE)+ROW()-2))=Rebalance!$D$59,INDIRECT(\"a\" & (VLOOKUP(Rebalance!$D$59,$F$2:$G$48,2,FALSE)+ROW()-2)),\"\")","v":{"$error":"#N/A"}},{"$f":"IF(INDIRECT(\"c\" & (VLOOKUP(Rebalance!$D$60,$F$2:$G$48,2,FALSE)+ROW()-2))=Rebalance!$D$60,INDIRECT(\"a\" & (VLOOKUP(Rebalance!$D$60,$F$2:$G$48,2,FALSE)+ROW()-2)),\"\")","v":{"$error":"#N/A"}},{"$f":"IF(INDIRECT(\"c\" & (VLOOKUP(Rebalance!$D$61,$F$2:$G$48,2,FALSE)+ROW()-2))=Rebalance!$D$61,INDIRECT(\"a\" & (VLOOKUP(Rebalance!$D$61,$F$2:$G$48,2,FALSE)+ROW()-2)),\"\")","v":{"$error":"#N/A"}},{"$f":"IF(INDIRECT(\"c\" & (VLOOKUP(Rebalance!$D$62,$F$2:$G$48,2,FALSE)+ROW()-2))=Rebalance!$D$62,INDIRECT(\"a\" & (VLOOKUP(Rebalance!$D$62,$F$2:$G$48,2,FALSE)+ROW()-2)),\"\")","v":{"$error":"#N/A"}},{"$f":"IF(INDIRECT(\"c\" & (VLOOKUP(Rebalance!$D$63,$F$2:$G$48,2,FALSE)+ROW()-2))=Rebalance!$D$63,INDIRECT(\"a\" & (VLOOKUP(Rebalance!$D$63,$F$2:$G$48,2,FALSE)+ROW()-2)),\"\")","v":{"$error":"#N/A"}},{"$f":"IF(INDIRECT(\"c\" & (VLOOKUP(Rebalance!$D$64,$F$2:$G$48,2,FALSE)+ROW()-2))=Rebalance!$D$64,INDIRECT(\"a\" & (VLOOKUP(Rebalance!$D$64,$F$2:$G$48,2,FALSE)+ROW()-2)),\"\")","v":{"$error":"#N/A"}},{"$f":"IF(INDIRECT(\"c\" & (VLOOKUP(Rebalance!$D$65,$F$2:$G$48,2,FALSE)+ROW()-2))=Rebalance!$D$65,INDIRECT(\"a\" & (VLOOKUP(Rebalance!$D$65,$F$2:$G$48,2,FALSE)+ROW()-2)),\"\")","v":{"$error":"#N/A"}},{"$f":"IF(INDIRECT(\"c\" & (VLOOKUP(Rebalance!$D$66,$F$2:$G$48,2,FALSE)+ROW()-2))=Rebalance!$D$66,INDIRECT(\"a\" & (VLOOKUP(Rebalance!$D$66,$F$2:$G$48,2,FALSE)+ROW()-2)),\"\")","v":{"$error":"#N/A"}}]
["STANLIB Flexible Income Fund B1","STFA","STANLIB Collective Investments",{"$f":"ROW()","v":49},null,null,{"$f":"VLOOKUP(F49,$C$2:$D$599,2,FALSE)","v":{"$error":"#N/A"}},{"$f":"IF(INDIRECT(\"c\" & (VLOOKUP(Rebalance!$D$26,$F$2:$G$48,2,FALSE)+ROW()-2))=Rebalance!$D$26,INDIRECT(\"a\" & (VLOOKUP(Rebalance!$D$26,$F$2:$G$48,2,FALSE)+ROW()-2)),\"\")","v":{"$error":"#N/A"}},{"$f":"IF(INDIRECT(\"c\" & (VLOOKUP(Rebalance!$D$27,$F$2:$G$48,2,FALSE)+ROW()-2))=Rebalance!$D$27,INDIRECT(\"a\" & (VLOOKUP(Rebalance!$D$27,$F$2:$G$48,2,FALSE)+ROW()-2)),\"\")","v":{"$error":"#N/A"}},{"$f":"IF(INDIRECT(\"c\" & (VLOOKUP(Rebalance!$D$28,$F$2:$G$48,2,FALSE)+ROW()-2))=Rebalance!$D$28,INDIRECT(\"a\" & (VLOOKUP(Rebalance!$D$28,$F$2:$G$48,2,FALSE)+ROW()-2)),\"\")","v":{"$error":"#N/A"}},{"$f":"IF(INDIRECT(\"c\" & (VLOOKUP(Rebalance!$D$29,$F$2:$G$48,2,FALSE)+ROW()-2))=Rebalance!$D$29,INDIRECT(\"a\" & (VLOOKUP(Rebalance!$D$29,$F$2:$G$48,2,FALSE)+ROW()-2)),\"\")","v":{"$error":"#N/A"}},{"$f":"IF(INDIRECT(\"c\" & (VLOOKUP(Rebalance!$D$30,$F$2:$G$48,2,FALSE)+ROW()-2))=Rebalance!$D$30,INDIRECT(\"a\" & (VLOOKUP(Rebalance!$D$30,$F$2:$G$48,2,FALSE)+ROW()-2)),\"\")","v":{"$error":"#N/A"}},{"$f":"IF(INDIRECT(\"c\" & (VLOOKUP(Rebalance!$D$31,$F$2:$G$48,2,FALSE)+ROW()-2))=Rebalance!$D$31,INDIRECT(\"a\" & (VLOOKUP(Rebalance!$D$31,$F$2:$G$48,2,FALSE)+ROW()-2)),\"\")","v":{"$error":"#N/A"}},{"$f":"IF(INDIRECT(\"c\" & (VLOOKUP(Rebalance!$D$32,$F$2:$G$48,2,FALSE)+ROW()-2))=Rebalance!$D$32,INDIRECT(\"a\" & (VLOOKUP(Rebalance!$D$32,$F$2:$G$48,2,FALSE)+ROW()-2)),\"\")","v":{"$error":"#N/A"}},{"$f":"IF(INDIRECT(\"c\" & (VLOOKUP(Rebalance!$D$33,$F$2:$G$48,2,FALSE)+ROW()-2))=Rebalance!$D$33,INDIRECT(\"a\" & (VLOOKUP(Rebalance!$D$33,$F$2:$G$48,2,FALSE)+ROW()-2)),\"\")","v":{"$error":"#N/A"}},{"$f":"IF(INDIRECT(\"c\" & (VLOOKUP(Rebalance!$D$34,$F$2:$G$48,2,FALSE)+ROW()-2))=Rebalance!$D$34,INDIRECT(\"a\" & (VLOOKUP(Rebalance!$D$34,$F$2:$G$48,2,FALSE)+ROW()-2)),\"\")","v":{"$error":"#N/A"}},{"$f":"IF(INDIRECT(\"c\" & (VLOOKUP(Rebalance!$D$35,$F$2:$G$48,2,FALSE)+ROW()-2))=Rebalance!$D$35,INDIRECT(\"a\" & (VLOOKUP(Rebalance!$D$35,$F$2:$G$48,2,FALSE)+ROW()-2)),\"\")","v":{"$error":"#N/A"}},{"$f":"IF(INDIRECT(\"c\" & (VLOOKUP(Rebalance!$D$36,$F$2:$G$48,2,FALSE)+ROW()-2))=Rebalance!$D$36,INDIRECT(\"a\" & (VLOOKUP(Rebalance!$D$36,$F$2:$G$48,2,FALSE)+ROW()-2)),\"\")","v":{"$error":"#N/A"}},{"$f":"IF(INDIRECT(\"c\" & (VLOOKUP(Rebalance!$D$37,$F$2:$G$48,2,FALSE)+ROW()-2))=Rebalance!$D$37,INDIRECT(\"a\" & (VLOOKUP(Rebalance!$D$37,$F$2:$G$48,2,FALSE)+ROW()-2)),\"\")","v":{"$error":"#N/A"}},{"$f":"IF(INDIRECT(\"c\" & (VLOOKUP(Rebalance!$D$38,$F$2:$G$48,2,FALSE)+ROW()-2))=Rebalance!$D$38,INDIRECT(\"a\" & (VLOOKUP(Rebalance!$D$38,$F$2:$G$48,2,FALSE)+ROW()-2)),\"\")","v":{"$error":"#N/A"}},{"$f":"IF(INDIRECT(\"c\" & (VLOOKUP(Rebalance!$D$39,$F$2:$G$48,2,FALSE)+ROW()-2))=Rebalance!$D$39,INDIRECT(\"a\" & (VLOOKUP(Rebalance!$D$39,$F$2:$G$48,2,FALSE)+ROW()-2)),\"\")","v":{"$error":"#N/A"}},{"$f":"IF(INDIRECT(\"c\" & (VLOOKUP(Rebalance!$D$40,$F$2:$G$48,2,FALSE)+ROW()-2))=Rebalance!$D$40,INDIRECT(\"a\" & (VLOOKUP(Rebalance!$D$40,$F$2:$G$48,2,FALSE)+ROW()-2)),\"\")","v":{"$error":"#N/A"}},{"$f":"IF(INDIRECT(\"c\" & (VLOOKUP(Rebalance!$D$52,$F$2:$G$48,2,FALSE)+ROW()-2))=Rebalance!$D$52,INDIRECT(\"a\" & (VLOOKUP(Rebalance!$D$52,$F$2:$G$48,2,FALSE)+ROW()-2)),\"\")","v":{"$error":"#N/A"}},{"$f":"IF(INDIRECT(\"c\" & (VLOOKUP(Rebalance!$D$53,$F$2:$G$48,2,FALSE)+ROW()-2))=Rebalance!$D$53,INDIRECT(\"a\" & (VLOOKUP(Rebalance!$D$53,$F$2:$G$48,2,FALSE)+ROW()-2)),\"\")","v":{"$error":"#N/A"}},{"$f":"IF(INDIRECT(\"c\" & (VLOOKUP(Rebalance!$D$54,$F$2:$G$48,2,FALSE)+ROW()-2))=Rebalance!$D$54,INDIRECT(\"a\" & (VLOOKUP(Rebalance!$D$54,$F$2:$G$48,2,FALSE)+ROW()-2)),\"\")","v":{"$error":"#N/A"}},{"$f":"IF(INDIRECT(\"c\" & (VLOOKUP(Rebalance!$D$55,$F$2:$G$48,2,FALSE)+ROW()-2))=Rebalance!$D$55,INDIRECT(\"a\" & (VLOOKUP(Rebalance!$D$55,$F$2:$G$48,2,FALSE)+ROW()-2)),\"\")","v":{"$error":"#N/A"}},{"$f":"IF(INDIRECT(\"c\" & (VLOOKUP(Rebalance!$D$56,$F$2:$G$48,2,FALSE)+ROW()-2))=Rebalance!$D$56,INDIRECT(\"a\" & (VLOOKUP(Rebalance!$D$56,$F$2:$G$48,2,FALSE)+ROW()-2)),\"\")","v":{"$error":"#N/A"}},{"$f":"IF(INDIRECT(\"c\" & (VLOOKUP(Rebalance!$D$57,$F$2:$G$48,2,FALSE)+ROW()-2))=Rebalance!$D$57,INDIRECT(\"a\" & (VLOOKUP(Rebalance!$D$57,$F$2:$G$48,2,FALSE)+ROW()-2)),\"\")","v":{"$error":"#N/A"}},{"$f":"IF(INDIRECT(\"c\" & (VLOOKUP(Rebalance!$D$58,$F$2:$G$48,2,FALSE)+ROW()-2))=Rebalance!$D$58,INDIRECT(\"a\" & (VLOOKUP(Rebalance!$D$58,$F$2:$G$48,2,FALSE)+ROW()-2)),\"\")","v":{"$error":"#N/A"}},{"$f":"IF(INDIRECT(\"c\" & (VLOOKUP(Rebalance!$D$59,$F$2:$G$48,2,FALSE)+ROW()-2))=Rebalance!$D$59,INDIRECT(\"a\" & (VLOOKUP(Rebalance!$D$59,$F$2:$G$48,2,FALSE)+ROW()-2)),\"\")","v":{"$error":"#N/A"}},{"$f":"IF(INDIRECT(\"c\" & (VLOOKUP(Rebalance!$D$60,$F$2:$G$48,2,FALSE)+ROW()-2))=Rebalance!$D$60,INDIRECT(\"a\" & (VLOOKUP(Rebalance!$D$60,$F$2:$G$48,2,FALSE)+ROW()-2)),\"\")","v":{"$error":"#N/A"}},{"$f":"IF(INDIRECT(\"c\" & (VLOOKUP(Rebalance!$D$61,$F$2:$G$48,2,FALSE)+ROW()-2))=Rebalance!$D$61,INDIRECT(\"a\" & (VLOOKUP(Rebalance!$D$61,$F$2:$G$48,2,FALSE)+ROW()-2)),\"\")","v":{"$error":"#N/A"}},{"$f":"IF(INDIRECT(\"c\" & (VLOOKUP(Rebalance!$D$62,$F$2:$G$48,2,FALSE)+ROW()-2))=Rebalance!$D$62,INDIRECT(\"a\" & (VLOOKUP(Rebalance!$D$62,$F$2:$G$48,2,FALSE)+ROW()-2)),\"\")","v":{"$error":"#N/A"}},{"$f":"IF(INDIRECT(\"c\" & (VLOOKUP(Rebalance!$D$63,$F$2:$G$48,2,FALSE)+ROW()-2))=Rebalance!$D$63,INDIRECT(\"a\" & (VLOOKUP(Rebalance!$D$63,$F$2:$G$48,2,FALSE)+ROW()-2)),\"\")","v":{"$error":"#N/A"}},{"$f":"IF(INDIRECT(\"c\" & (VLOOKUP(Rebalance!$D$64,$F$2:$G$48,2,FALSE)+ROW()-2))=Rebalance!$D$64,INDIRECT(\"a\" & (VLOOKUP(Rebalance!$D$64,$F$2:$G$48,2,FALSE)+ROW()-2)),\"\")","v":{"$error":"#N/A"}},{"$f":"IF(INDIRECT(\"c\" & (VLOOKUP(Rebalance!$D$65,$F$2:$G$48,2,FALSE)+ROW()-2))=Rebalance!$D$65,INDIRECT(\"a\" & (VLOOKUP(Rebalance!$D$65,$F$2:$G$48,2,FALSE)+ROW()-2)),\"\")","v":{"$error":"#N/A"}},{"$f":"IF(INDIRECT(\"c\" & (VLOOKUP(Rebalance!$D$66,$F$2:$G$48,2,FALSE)+ROW()-2))=Rebalance!$D$66,INDIRECT(\"a\" & (VLOOKUP(Rebalance!$D$66,$F$2:$G$48,2,FALSE)+ROW()-2)),\"\")","v":{"$error":"#N/A"}}]
["STANLIB Global Balanced Cautious Feeder Fund B3","SGCB3","STANLIB Collective Investments",{"$f":"ROW()","v":50},null,null,{"$f":"VLOOKUP(F50,$C$2:$D$599,2,FALSE)","v":{"$error":"#N/A"}},{"$f":"IF(INDIRECT(\"c\" & (VLOOKUP(Rebalance!$D$26,$F$2:$G$48,2,FALSE)+ROW()-2))=Rebalance!$D$26,INDIRECT(\"a\" & (VLOOKUP(Rebalance!$D$26,$F$2:$G$48,2,FALSE)+ROW()-2)),\"\")","v":{"$error":"#N/A"}},{"$f":"IF(INDIRECT(\"c\" & (VLOOKUP(Rebalance!$D$27,$F$2:$G$48,2,FALSE)+ROW()-2))=Rebalance!$D$27,INDIRECT(\"a\" & (VLOOKUP(Rebalance!$D$27,$F$2:$G$48,2,FALSE)+ROW()-2)),\"\")","v":{"$error":"#N/A"}},{"$f":"IF(INDIRECT(\"c\" & (VLOOKUP(Rebalance!$D$28,$F$2:$G$48,2,FALSE)+ROW()-2))=Rebalance!$D$28,INDIRECT(\"a\" & (VLOOKUP(Rebalance!$D$28,$F$2:$G$48,2,FALSE)+ROW()-2)),\"\")","v":{"$error":"#N/A"}},{"$f":"IF(INDIRECT(\"c\" & (VLOOKUP(Rebalance!$D$29,$F$2:$G$48,2,FALSE)+ROW()-2))=Rebalance!$D$29,INDIRECT(\"a\" & (VLOOKUP(Rebalance!$D$29,$F$2:$G$48,2,FALSE)+ROW()-2)),\"\")","v":{"$error":"#N/A"}},{"$f":"IF(INDIRECT(\"c\" & (VLOOKUP(Rebalance!$D$30,$F$2:$G$48,2,FALSE)+ROW()-2))=Rebalance!$D$30,INDIRECT(\"a\" & (VLOOKUP(Rebalance!$D$30,$F$2:$G$48,2,FALSE)+ROW()-2)),\"\")","v":{"$error":"#N/A"}},{"$f":"IF(INDIRECT(\"c\" & (VLOOKUP(Rebalance!$D$31,$F$2:$G$48,2,FALSE)+ROW()-2))=Rebalance!$D$31,INDIRECT(\"a\" & (VLOOKUP(Rebalance!$D$31,$F$2:$G$48,2,FALSE)+ROW()-2)),\"\")","v":{"$error":"#N/A"}},{"$f":"IF(INDIRECT(\"c\" & (VLOOKUP(Rebalance!$D$32,$F$2:$G$48,2,FALSE)+ROW()-2))=Rebalance!$D$32,INDIRECT(\"a\" & (VLOOKUP(Rebalance!$D$32,$F$2:$G$48,2,FALSE)+ROW()-2)),\"\")","v":{"$error":"#N/A"}},{"$f":"IF(INDIRECT(\"c\" & (VLOOKUP(Rebalance!$D$33,$F$2:$G$48,2,FALSE)+ROW()-2))=Rebalance!$D$33,INDIRECT(\"a\" & (VLOOKUP(Rebalance!$D$33,$F$2:$G$48,2,FALSE)+ROW()-2)),\"\")","v":{"$error":"#N/A"}},{"$f":"IF(INDIRECT(\"c\" & (VLOOKUP(Rebalance!$D$34,$F$2:$G$48,2,FALSE)+ROW()-2))=Rebalance!$D$34,INDIRECT(\"a\" & (VLOOKUP(Rebalance!$D$34,$F$2:$G$48,2,FALSE)+ROW()-2)),\"\")","v":{"$error":"#N/A"}},{"$f":"IF(INDIRECT(\"c\" & (VLOOKUP(Rebalance!$D$35,$F$2:$G$48,2,FALSE)+ROW()-2))=Rebalance!$D$35,INDIRECT(\"a\" & (VLOOKUP(Rebalance!$D$35,$F$2:$G$48,2,FALSE)+ROW()-2)),\"\")","v":{"$error":"#N/A"}},{"$f":"IF(INDIRECT(\"c\" & (VLOOKUP(Rebalance!$D$36,$F$2:$G$48,2,FALSE)+ROW()-2))=Rebalance!$D$36,INDIRECT(\"a\" & (VLOOKUP(Rebalance!$D$36,$F$2:$G$48,2,FALSE)+ROW()-2)),\"\")","v":{"$error":"#N/A"}},{"$f":"IF(INDIRECT(\"c\" & (VLOOKUP(Rebalance!$D$37,$F$2:$G$48,2,FALSE)+ROW()-2))=Rebalance!$D$37,INDIRECT(\"a\" & (VLOOKUP(Rebalance!$D$37,$F$2:$G$48,2,FALSE)+ROW()-2)),\"\")","v":{"$error":"#N/A"}},{"$f":"IF(INDIRECT(\"c\" & (VLOOKUP(Rebalance!$D$38,$F$2:$G$48,2,FALSE)+ROW()-2))=Rebalance!$D$38,INDIRECT(\"a\" & (VLOOKUP(Rebalance!$D$38,$F$2:$G$48,2,FALSE)+ROW()-2)),\"\")","v":{"$error":"#N/A"}},{"$f":"IF(INDIRECT(\"c\" & (VLOOKUP(Rebalance!$D$39,$F$2:$G$48,2,FALSE)+ROW()-2))=Rebalance!$D$39,INDIRECT(\"a\" & (VLOOKUP(Rebalance!$D$39,$F$2:$G$48,2,FALSE)+ROW()-2)),\"\")","v":{"$error":"#N/A"}},{"$f":"IF(INDIRECT(\"c\" & (VLOOKUP(Rebalance!$D$40,$F$2:$G$48,2,FALSE)+ROW()-2))=Rebalance!$D$40,INDIRECT(\"a\" & (VLOOKUP(Rebalance!$D$40,$F$2:$G$48,2,FALSE)+ROW()-2)),\"\")","v":{"$error":"#N/A"}},{"$f":"IF(INDIRECT(\"c\" & (VLOOKUP(Rebalance!$D$52,$F$2:$G$48,2,FALSE)+ROW()-2))=Rebalance!$D$52,INDIRECT(\"a\" & (VLOOKUP(Rebalance!$D$52,$F$2:$G$48,2,FALSE)+ROW()-2)),\"\")","v":{"$error":"#N/A"}},{"$f":"IF(INDIRECT(\"c\" & (VLOOKUP(Rebalance!$D$53,$F$2:$G$48,2,FALSE)+ROW()-2))=Rebalance!$D$53,INDIRECT(\"a\" & (VLOOKUP(Rebalance!$D$53,$F$2:$G$48,2,FALSE)+ROW()-2)),\"\")","v":{"$error":"#N/A"}},{"$f":"IF(INDIRECT(\"c\" & (VLOOKUP(Rebalance!$D$54,$F$2:$G$48,2,FALSE)+ROW()-2))=Rebalance!$D$54,INDIRECT(\"a\" & (VLOOKUP(Rebalance!$D$54,$F$2:$G$48,2,FALSE)+ROW()-2)),\"\")","v":{"$error":"#N/A"}},{"$f":"IF(INDIRECT(\"c\" & (VLOOKUP(Rebalance!$D$55,$F$2:$G$48,2,FALSE)+ROW()-2))=Rebalance!$D$55,INDIRECT(\"a\" & (VLOOKUP(Rebalance!$D$55,$F$2:$G$48,2,FALSE)+ROW()-2)),\"\")","v":{"$error":"#N/A"}},{"$f":"IF(INDIRECT(\"c\" & (VLOOKUP(Rebalance!$D$56,$F$2:$G$48,2,FALSE)+ROW()-2))=Rebalance!$D$56,INDIRECT(\"a\" & (VLOOKUP(Rebalance!$D$56,$F$2:$G$48,2,FALSE)+ROW()-2)),\"\")","v":{"$error":"#N/A"}},{"$f":"IF(INDIRECT(\"c\" & (VLOOKUP(Rebalance!$D$57,$F$2:$G$48,2,FALSE)+ROW()-2))=Rebalance!$D$57,INDIRECT(\"a\" & (VLOOKUP(Rebalance!$D$57,$F$2:$G$48,2,FALSE)+ROW()-2)),\"\")","v":{"$error":"#N/A"}},{"$f":"IF(INDIRECT(\"c\" & (VLOOKUP(Rebalance!$D$58,$F$2:$G$48,2,FALSE)+ROW()-2))=Rebalance!$D$58,INDIRECT(\"a\" & (VLOOKUP(Rebalance!$D$58,$F$2:$G$48,2,FALSE)+ROW()-2)),\"\")","v":{"$error":"#N/A"}},{"$f":"IF(INDIRECT(\"c\" & (VLOOKUP(Rebalance!$D$59,$F$2:$G$48,2,FALSE)+ROW()-2))=Rebalance!$D$59,INDIRECT(\"a\" & (VLOOKUP(Rebalance!$D$59,$F$2:$G$48,2,FALSE)+ROW()-2)),\"\")","v":{"$error":"#N/A"}},{"$f":"IF(INDIRECT(\"c\" & (VLOOKUP(Rebalance!$D$60,$F$2:$G$48,2,FALSE)+ROW()-2))=Rebalance!$D$60,INDIRECT(\"a\" & (VLOOKUP(Rebalance!$D$60,$F$2:$G$48,2,FALSE)+ROW()-2)),\"\")","v":{"$error":"#N/A"}},{"$f":"IF(INDIRECT(\"c\" & (VLOOKUP(Rebalance!$D$61,$F$2:$G$48,2,FALSE)+ROW()-2))=Rebalance!$D$61,INDIRECT(\"a\" & (VLOOKUP(Rebalance!$D$61,$F$2:$G$48,2,FALSE)+ROW()-2)),\"\")","v":{"$error":"#N/A"}},{"$f":"IF(INDIRECT(\"c\" & (VLOOKUP(Rebalance!$D$62,$F$2:$G$48,2,FALSE)+ROW()-2))=Rebalance!$D$62,INDIRECT(\"a\" & (VLOOKUP(Rebalance!$D$62,$F$2:$G$48,2,FALSE)+ROW()-2)),\"\")","v":{"$error":"#N/A"}},{"$f":"IF(INDIRECT(\"c\" & (VLOOKUP(Rebalance!$D$63,$F$2:$G$48,2,FALSE)+ROW()-2))=Rebalance!$D$63,INDIRECT(\"a\" & (VLOOKUP(Rebalance!$D$63,$F$2:$G$48,2,FALSE)+ROW()-2)),\"\")","v":{"$error":"#N/A"}},{"$f":"IF(INDIRECT(\"c\" & (VLOOKUP(Rebalance!$D$64,$F$2:$G$48,2,FALSE)+ROW()-2))=Rebalance!$D$64,INDIRECT(\"a\" & (VLOOKUP(Rebalance!$D$64,$F$2:$G$48,2,FALSE)+ROW()-2)),\"\")","v":{"$error":"#N/A"}},{"$f":"IF(INDIRECT(\"c\" & (VLOOKUP(Rebalance!$D$65,$F$2:$G$48,2,FALSE)+ROW()-2))=Rebalance!$D$65,INDIRECT(\"a\" & (VLOOKUP(Rebalance!$D$65,$F$2:$G$48,2,FALSE)+ROW()-2)),\"\")","v":{"$error":"#N/A"}},{"$f":"IF(INDIRECT(\"c\" & (VLOOKUP(Rebalance!$D$66,$F$2:$G$48,2,FALSE)+ROW()-2))=Rebalance!$D$66,INDIRECT(\"a\" & (VLOOKUP(Rebalance!$D$66,$F$2:$G$48,2,FALSE)+ROW()-2)),\"\")","v":{"$error":"#N/A"}}]
["STANLIB Global Balanced Feeder Fund B3","SGBB3","STANLIB Collective Investments",{"$f":"ROW()","v":51},null,null,{"$f":"VLOOKUP(F51,$C$2:$D$599,2,FALSE)","v":{"$error":"#N/A"}},{"$f":"IF(INDIRECT(\"c\" & (VLOOKUP(Rebalance!$D$26,$F$2:$G$48,2,FALSE)+ROW()-2))=Rebalance!$D$26,INDIRECT(\"a\" & (VLOOKUP(Rebalance!$D$26,$F$2:$G$48,2,FALSE)+ROW()-2)),\"\")","v":{"$error":"#N/A"}},{"$f":"IF(INDIRECT(\"c\" & (VLOOKUP(Rebalance!$D$27,$F$2:$G$48,2,FALSE)+ROW()-2))=Rebalance!$D$27,INDIRECT(\"a\" & (VLOOKUP(Rebalance!$D$27,$F$2:$G$48,2,FALSE)+ROW()-2)),\"\")","v":{"$error":"#N/A"}},{"$f":"IF(INDIRECT(\"c\" & (VLOOKUP(Rebalance!$D$28,$F$2:$G$48,2,FALSE)+ROW()-2))=Rebalance!$D$28,INDIRECT(\"a\" & (VLOOKUP(Rebalance!$D$28,$F$2:$G$48,2,FALSE)+ROW()-2)),\"\")","v":{"$error":"#N/A"}},{"$f":"IF(INDIRECT(\"c\" & (VLOOKUP(Rebalance!$D$29,$F$2:$G$48,2,FALSE)+ROW()-2))=Rebalance!$D$29,INDIRECT(\"a\" & (VLOOKUP(Rebalance!$D$29,$F$2:$G$48,2,FALSE)+ROW()-2)),\"\")","v":{"$error":"#N/A"}},{"$f":"IF(INDIRECT(\"c\" & (VLOOKUP(Rebalance!$D$30,$F$2:$G$48,2,FALSE)+ROW()-2))=Rebalance!$D$30,INDIRECT(\"a\" & (VLOOKUP(Rebalance!$D$30,$F$2:$G$48,2,FALSE)+ROW()-2)),\"\")","v":{"$error":"#N/A"}},{"$f":"IF(INDIRECT(\"c\" & (VLOOKUP(Rebalance!$D$31,$F$2:$G$48,2,FALSE)+ROW()-2))=Rebalance!$D$31,INDIRECT(\"a\" & (VLOOKUP(Rebalance!$D$31,$F$2:$G$48,2,FALSE)+ROW()-2)),\"\")","v":{"$error":"#N/A"}},{"$f":"IF(INDIRECT(\"c\" & (VLOOKUP(Rebalance!$D$32,$F$2:$G$48,2,FALSE)+ROW()-2))=Rebalance!$D$32,INDIRECT(\"a\" & (VLOOKUP(Rebalance!$D$32,$F$2:$G$48,2,FALSE)+ROW()-2)),\"\")","v":{"$error":"#N/A"}},{"$f":"IF(INDIRECT(\"c\" & (VLOOKUP(Rebalance!$D$33,$F$2:$G$48,2,FALSE)+ROW()-2))=Rebalance!$D$33,INDIRECT(\"a\" & (VLOOKUP(Rebalance!$D$33,$F$2:$G$48,2,FALSE)+ROW()-2)),\"\")","v":{"$error":"#N/A"}},{"$f":"IF(INDIRECT(\"c\" & (VLOOKUP(Rebalance!$D$34,$F$2:$G$48,2,FALSE)+ROW()-2))=Rebalance!$D$34,INDIRECT(\"a\" & (VLOOKUP(Rebalance!$D$34,$F$2:$G$48,2,FALSE)+ROW()-2)),\"\")","v":{"$error":"#N/A"}},{"$f":"IF(INDIRECT(\"c\" & (VLOOKUP(Rebalance!$D$35,$F$2:$G$48,2,FALSE)+ROW()-2))=Rebalance!$D$35,INDIRECT(\"a\" & (VLOOKUP(Rebalance!$D$35,$F$2:$G$48,2,FALSE)+ROW()-2)),\"\")","v":{"$error":"#N/A"}},{"$f":"IF(INDIRECT(\"c\" & (VLOOKUP(Rebalance!$D$36,$F$2:$G$48,2,FALSE)+ROW()-2))=Rebalance!$D$36,INDIRECT(\"a\" & (VLOOKUP(Rebalance!$D$36,$F$2:$G$48,2,FALSE)+ROW()-2)),\"\")","v":{"$error":"#N/A"}},{"$f":"IF(INDIRECT(\"c\" & (VLOOKUP(Rebalance!$D$37,$F$2:$G$48,2,FALSE)+ROW()-2))=Rebalance!$D$37,INDIRECT(\"a\" & (VLOOKUP(Rebalance!$D$37,$F$2:$G$48,2,FALSE)+ROW()-2)),\"\")","v":{"$error":"#N/A"}},{"$f":"IF(INDIRECT(\"c\" & (VLOOKUP(Rebalance!$D$38,$F$2:$G$48,2,FALSE)+ROW()-2))=Rebalance!$D$38,INDIRECT(\"a\" & (VLOOKUP(Rebalance!$D$38,$F$2:$G$48,2,FALSE)+ROW()-2)),\"\")","v":{"$error":"#N/A"}},{"$f":"IF(INDIRECT(\"c\" & (VLOOKUP(Rebalance!$D$39,$F$2:$G$48,2,FALSE)+ROW()-2))=Rebalance!$D$39,INDIRECT(\"a\" & (VLOOKUP(Rebalance!$D$39,$F$2:$G$48,2,FALSE)+ROW()-2)),\"\")","v":{"$error":"#N/A"}},{"$f":"IF(INDIRECT(\"c\" & (VLOOKUP(Rebalance!$D$40,$F$2:$G$48,2,FALSE)+ROW()-2))=Rebalance!$D$40,INDIRECT(\"a\" & (VLOOKUP(Rebalance!$D$40,$F$2:$G$48,2,FALSE)+ROW()-2)),\"\")","v":{"$error":"#N/A"}},{"$f":"IF(INDIRECT(\"c\" & (VLOOKUP(Rebalance!$D$52,$F$2:$G$48,2,FALSE)+ROW()-2))=Rebalance!$D$52,INDIRECT(\"a\" & (VLOOKUP(Rebalance!$D$52,$F$2:$G$48,2,FALSE)+ROW()-2)),\"\")","v":{"$error":"#N/A"}},{"$f":"IF(INDIRECT(\"c\" & (VLOOKUP(Rebalance!$D$53,$F$2:$G$48,2,FALSE)+ROW()-2))=Rebalance!$D$53,INDIRECT(\"a\" & (VLOOKUP(Rebalance!$D$53,$F$2:$G$48,2,FALSE)+ROW()-2)),\"\")","v":{"$error":"#N/A"}},{"$f":"IF(INDIRECT(\"c\" & (VLOOKUP(Rebalance!$D$54,$F$2:$G$48,2,FALSE)+ROW()-2))=Rebalance!$D$54,INDIRECT(\"a\" & (VLOOKUP(Rebalance!$D$54,$F$2:$G$48,2,FALSE)+ROW()-2)),\"\")","v":{"$error":"#N/A"}},{"$f":"IF(INDIRECT(\"c\" & (VLOOKUP(Rebalance!$D$55,$F$2:$G$48,2,FALSE)+ROW()-2))=Rebalance!$D$55,INDIRECT(\"a\" & (VLOOKUP(Rebalance!$D$55,$F$2:$G$48,2,FALSE)+ROW()-2)),\"\")","v":{"$error":"#N/A"}},{"$f":"IF(INDIRECT(\"c\" & (VLOOKUP(Rebalance!$D$56,$F$2:$G$48,2,FALSE)+ROW()-2))=Rebalance!$D$56,INDIRECT(\"a\" & (VLOOKUP(Rebalance!$D$56,$F$2:$G$48,2,FALSE)+ROW()-2)),\"\")","v":{"$error":"#N/A"}},{"$f":"IF(INDIRECT(\"c\" & (VLOOKUP(Rebalance!$D$57,$F$2:$G$48,2,FALSE)+ROW()-2))=Rebalance!$D$57,INDIRECT(\"a\" & (VLOOKUP(Rebalance!$D$57,$F$2:$G$48,2,FALSE)+ROW()-2)),\"\")","v":{"$error":"#N/A"}},{"$f":"IF(INDIRECT(\"c\" & (VLOOKUP(Rebalance!$D$58,$F$2:$G$48,2,FALSE)+ROW()-2))=Rebalance!$D$58,INDIRECT(\"a\" & (VLOOKUP(Rebalance!$D$58,$F$2:$G$48,2,FALSE)+ROW()-2)),\"\")","v":{"$error":"#N/A"}},{"$f":"IF(INDIRECT(\"c\" & (VLOOKUP(Rebalance!$D$59,$F$2:$G$48,2,FALSE)+ROW()-2))=Rebalance!$D$59,INDIRECT(\"a\" & (VLOOKUP(Rebalance!$D$59,$F$2:$G$48,2,FALSE)+ROW()-2)),\"\")","v":{"$error":"#N/A"}},{"$f":"IF(INDIRECT(\"c\" & (VLOOKUP(Rebalance!$D$60,$F$2:$G$48,2,FALSE)+ROW()-2))=Rebalance!$D$60,INDIRECT(\"a\" & (VLOOKUP(Rebalance!$D$60,$F$2:$G$48,2,FALSE)+ROW()-2)),\"\")","v":{"$error":"#N/A"}},{"$f":"IF(INDIRECT(\"c\" & (VLOOKUP(Rebalance!$D$61,$F$2:$G$48,2,FALSE)+ROW()-2))=Rebalance!$D$61,INDIRECT(\"a\" & (VLOOKUP(Rebalance!$D$61,$F$2:$G$48,2,FALSE)+ROW()-2)),\"\")","v":{"$error":"#N/A"}},{"$f":"IF(INDIRECT(\"c\" & (VLOOKUP(Rebalance!$D$62,$F$2:$G$48,2,FALSE)+ROW()-2))=Rebalance!$D$62,INDIRECT(\"a\" & (VLOOKUP(Rebalance!$D$62,$F$2:$G$48,2,FALSE)+ROW()-2)),\"\")","v":{"$error":"#N/A"}},{"$f":"IF(INDIRECT(\"c\" & (VLOOKUP(Rebalance!$D$63,$F$2:$G$48,2,FALSE)+ROW()-2))=Rebalance!$D$63,INDIRECT(\"a\" & (VLOOKUP(Rebalance!$D$63,$F$2:$G$48,2,FALSE)+ROW()-2)),\"\")","v":{"$error":"#N/A"}},{"$f":"IF(INDIRECT(\"c\" & (VLOOKUP(Rebalance!$D$64,$F$2:$G$48,2,FALSE)+ROW()-2))=Rebalance!$D$64,INDIRECT(\"a\" & (VLOOKUP(Rebalance!$D$64,$F$2:$G$48,2,FALSE)+ROW()-2)),\"\")","v":{"$error":"#N/A"}},{"$f":"IF(INDIRECT(\"c\" & (VLOOKUP(Rebalance!$D$65,$F$2:$G$48,2,FALSE)+ROW()-2))=Rebalance!$D$65,INDIRECT(\"a\" & (VLOOKUP(Rebalance!$D$65,$F$2:$G$48,2,FALSE)+ROW()-2)),\"\")","v":{"$error":"#N/A"}},{"$f":"IF(INDIRECT(\"c\" & (VLOOKUP(Rebalance!$D$66,$F$2:$G$48,2,FALSE)+ROW()-2))=Rebalance!$D$66,INDIRECT(\"a\" & (VLOOKUP(Rebalance!$D$66,$F$2:$G$48,2,FALSE)+ROW()-2)),\"\")","v":{"$error":"#N/A"}}]
["STANLIB Global Bond Feeder fund B3","SGBFB3","STANLIB Collective Investments",{"$f":"ROW()","v":52},null,null,{"$f":"VLOOKUP(F52,$C$2:$D$599,2,FALSE)","v":{"$error":"#N/A"}},{"$f":"IF(INDIRECT(\"c\" & (VLOOKUP(Rebalance!$D$26,$F$2:$G$48,2,FALSE)+ROW()-2))=Rebalance!$D$26,INDIRECT(\"a\" & (VLOOKUP(Rebalance!$D$26,$F$2:$G$48,2,FALSE)+ROW()-2)),\"\")","v":{"$error":"#N/A"}},{"$f":"IF(INDIRECT(\"c\" & (VLOOKUP(Rebalance!$D$27,$F$2:$G$48,2,FALSE)+ROW()-2))=Rebalance!$D$27,INDIRECT(\"a\" & (VLOOKUP(Rebalance!$D$27,$F$2:$G$48,2,FALSE)+ROW()-2)),\"\")","v":{"$error":"#N/A"}},{"$f":"IF(INDIRECT(\"c\" & (VLOOKUP(Rebalance!$D$28,$F$2:$G$48,2,FALSE)+ROW()-2))=Rebalance!$D$28,INDIRECT(\"a\" & (VLOOKUP(Rebalance!$D$28,$F$2:$G$48,2,FALSE)+ROW()-2)),\"\")","v":{"$error":"#N/A"}},{"$f":"IF(INDIRECT(\"c\" & (VLOOKUP(Rebalance!$D$29,$F$2:$G$48,2,FALSE)+ROW()-2))=Rebalance!$D$29,INDIRECT(\"a\" & (VLOOKUP(Rebalance!$D$29,$F$2:$G$48,2,FALSE)+ROW()-2)),\"\")","v":{"$error":"#N/A"}},{"$f":"IF(INDIRECT(\"c\" & (VLOOKUP(Rebalance!$D$30,$F$2:$G$48,2,FALSE)+ROW()-2))=Rebalance!$D$30,INDIRECT(\"a\" & (VLOOKUP(Rebalance!$D$30,$F$2:$G$48,2,FALSE)+ROW()-2)),\"\")","v":{"$error":"#N/A"}},{"$f":"IF(INDIRECT(\"c\" & (VLOOKUP(Rebalance!$D$31,$F$2:$G$48,2,FALSE)+ROW()-2))=Rebalance!$D$31,INDIRECT(\"a\" & (VLOOKUP(Rebalance!$D$31,$F$2:$G$48,2,FALSE)+ROW()-2)),\"\")","v":{"$error":"#N/A"}},{"$f":"IF(INDIRECT(\"c\" & (VLOOKUP(Rebalance!$D$32,$F$2:$G$48,2,FALSE)+ROW()-2))=Rebalance!$D$32,INDIRECT(\"a\" & (VLOOKUP(Rebalance!$D$32,$F$2:$G$48,2,FALSE)+ROW()-2)),\"\")","v":{"$error":"#N/A"}},{"$f":"IF(INDIRECT(\"c\" & (VLOOKUP(Rebalance!$D$33,$F$2:$G$48,2,FALSE)+ROW()-2))=Rebalance!$D$33,INDIRECT(\"a\" & (VLOOKUP(Rebalance!$D$33,$F$2:$G$48,2,FALSE)+ROW()-2)),\"\")","v":{"$error":"#N/A"}},{"$f":"IF(INDIRECT(\"c\" & (VLOOKUP(Rebalance!$D$34,$F$2:$G$48,2,FALSE)+ROW()-2))=Rebalance!$D$34,INDIRECT(\"a\" & (VLOOKUP(Rebalance!$D$34,$F$2:$G$48,2,FALSE)+ROW()-2)),\"\")","v":{"$error":"#N/A"}},{"$f":"IF(INDIRECT(\"c\" & (VLOOKUP(Rebalance!$D$35,$F$2:$G$48,2,FALSE)+ROW()-2))=Rebalance!$D$35,INDIRECT(\"a\" & (VLOOKUP(Rebalance!$D$35,$F$2:$G$48,2,FALSE)+ROW()-2)),\"\")","v":{"$error":"#N/A"}},{"$f":"IF(INDIRECT(\"c\" & (VLOOKUP(Rebalance!$D$36,$F$2:$G$48,2,FALSE)+ROW()-2))=Rebalance!$D$36,INDIRECT(\"a\" & (VLOOKUP(Rebalance!$D$36,$F$2:$G$48,2,FALSE)+ROW()-2)),\"\")","v":{"$error":"#N/A"}},{"$f":"IF(INDIRECT(\"c\" & (VLOOKUP(Rebalance!$D$37,$F$2:$G$48,2,FALSE)+ROW()-2))=Rebalance!$D$37,INDIRECT(\"a\" & (VLOOKUP(Rebalance!$D$37,$F$2:$G$48,2,FALSE)+ROW()-2)),\"\")","v":{"$error":"#N/A"}},{"$f":"IF(INDIRECT(\"c\" & (VLOOKUP(Rebalance!$D$38,$F$2:$G$48,2,FALSE)+ROW()-2))=Rebalance!$D$38,INDIRECT(\"a\" & (VLOOKUP(Rebalance!$D$38,$F$2:$G$48,2,FALSE)+ROW()-2)),\"\")","v":{"$error":"#N/A"}},{"$f":"IF(INDIRECT(\"c\" & (VLOOKUP(Rebalance!$D$39,$F$2:$G$48,2,FALSE)+ROW()-2))=Rebalance!$D$39,INDIRECT(\"a\" & (VLOOKUP(Rebalance!$D$39,$F$2:$G$48,2,FALSE)+ROW()-2)),\"\")","v":{"$error":"#N/A"}},{"$f":"IF(INDIRECT(\"c\" & (VLOOKUP(Rebalance!$D$40,$F$2:$G$48,2,FALSE)+ROW()-2))=Rebalance!$D$40,INDIRECT(\"a\" & (VLOOKUP(Rebalance!$D$40,$F$2:$G$48,2,FALSE)+ROW()-2)),\"\")","v":{"$error":"#N/A"}},{"$f":"IF(INDIRECT(\"c\" & (VLOOKUP(Rebalance!$D$52,$F$2:$G$48,2,FALSE)+ROW()-2))=Rebalance!$D$52,INDIRECT(\"a\" & (VLOOKUP(Rebalance!$D$52,$F$2:$G$48,2,FALSE)+ROW()-2)),\"\")","v":{"$error":"#N/A"}},{"$f":"IF(INDIRECT(\"c\" & (VLOOKUP(Rebalance!$D$53,$F$2:$G$48,2,FALSE)+ROW()-2))=Rebalance!$D$53,INDIRECT(\"a\" & (VLOOKUP(Rebalance!$D$53,$F$2:$G$48,2,FALSE)+ROW()-2)),\"\")","v":{"$error":"#N/A"}},{"$f":"IF(INDIRECT(\"c\" & (VLOOKUP(Rebalance!$D$54,$F$2:$G$48,2,FALSE)+ROW()-2))=Rebalance!$D$54,INDIRECT(\"a\" & (VLOOKUP(Rebalance!$D$54,$F$2:$G$48,2,FALSE)+ROW()-2)),\"\")","v":{"$error":"#N/A"}},{"$f":"IF(INDIRECT(\"c\" & (VLOOKUP(Rebalance!$D$55,$F$2:$G$48,2,FALSE)+ROW()-2))=Rebalance!$D$55,INDIRECT(\"a\" & (VLOOKUP(Rebalance!$D$55,$F$2:$G$48,2,FALSE)+ROW()-2)),\"\")","v":{"$error":"#N/A"}},{"$f":"IF(INDIRECT(\"c\" & (VLOOKUP(Rebalance!$D$56,$F$2:$G$48,2,FALSE)+ROW()-2))=Rebalance!$D$56,INDIRECT(\"a\" & (VLOOKUP(Rebalance!$D$56,$F$2:$G$48,2,FALSE)+ROW()-2)),\"\")","v":{"$error":"#N/A"}},{"$f":"IF(INDIRECT(\"c\" & (VLOOKUP(Rebalance!$D$57,$F$2:$G$48,2,FALSE)+ROW()-2))=Rebalance!$D$57,INDIRECT(\"a\" & (VLOOKUP(Rebalance!$D$57,$F$2:$G$48,2,FALSE)+ROW()-2)),\"\")","v":{"$error":"#N/A"}},{"$f":"IF(INDIRECT(\"c\" & (VLOOKUP(Rebalance!$D$58,$F$2:$G$48,2,FALSE)+ROW()-2))=Rebalance!$D$58,INDIRECT(\"a\" & (VLOOKUP(Rebalance!$D$58,$F$2:$G$48,2,FALSE)+ROW()-2)),\"\")","v":{"$error":"#N/A"}},{"$f":"IF(INDIRECT(\"c\" & (VLOOKUP(Rebalance!$D$59,$F$2:$G$48,2,FALSE)+ROW()-2))=Rebalance!$D$59,INDIRECT(\"a\" & (VLOOKUP(Rebalance!$D$59,$F$2:$G$48,2,FALSE)+ROW()-2)),\"\")","v":{"$error":"#N/A"}},{"$f":"IF(INDIRECT(\"c\" & (VLOOKUP(Rebalance!$D$60,$F$2:$G$48,2,FALSE)+ROW()-2))=Rebalance!$D$60,INDIRECT(\"a\" & (VLOOKUP(Rebalance!$D$60,$F$2:$G$48,2,FALSE)+ROW()-2)),\"\")","v":{"$error":"#N/A"}},{"$f":"IF(INDIRECT(\"c\" & (VLOOKUP(Rebalance!$D$61,$F$2:$G$48,2,FALSE)+ROW()-2))=Rebalance!$D$61,INDIRECT(\"a\" & (VLOOKUP(Rebalance!$D$61,$F$2:$G$48,2,FALSE)+ROW()-2)),\"\")","v":{"$error":"#N/A"}},{"$f":"IF(INDIRECT(\"c\" & (VLOOKUP(Rebalance!$D$62,$F$2:$G$48,2,FALSE)+ROW()-2))=Rebalance!$D$62,INDIRECT(\"a\" & (VLOOKUP(Rebalance!$D$62,$F$2:$G$48,2,FALSE)+ROW()-2)),\"\")","v":{"$error":"#N/A"}},{"$f":"IF(INDIRECT(\"c\" & (VLOOKUP(Rebalance!$D$63,$F$2:$G$48,2,FALSE)+ROW()-2))=Rebalance!$D$63,INDIRECT(\"a\" & (VLOOKUP(Rebalance!$D$63,$F$2:$G$48,2,FALSE)+ROW()-2)),\"\")","v":{"$error":"#N/A"}},{"$f":"IF(INDIRECT(\"c\" & (VLOOKUP(Rebalance!$D$64,$F$2:$G$48,2,FALSE)+ROW()-2))=Rebalance!$D$64,INDIRECT(\"a\" & (VLOOKUP(Rebalance!$D$64,$F$2:$G$48,2,FALSE)+ROW()-2)),\"\")","v":{"$error":"#N/A"}},{"$f":"IF(INDIRECT(\"c\" & (VLOOKUP(Rebalance!$D$65,$F$2:$G$48,2,FALSE)+ROW()-2))=Rebalance!$D$65,INDIRECT(\"a\" & (VLOOKUP(Rebalance!$D$65,$F$2:$G$48,2,FALSE)+ROW()-2)),\"\")","v":{"$error":"#N/A"}},{"$f":"IF(INDIRECT(\"c\" & (VLOOKUP(Rebalance!$D$66,$F$2:$G$48,2,FALSE)+ROW()-2))=Rebalance!$D$66,INDIRECT(\"a\" & (VLOOKUP(Rebalance!$D$66,$F$2:$G$48,2,FALSE)+ROW()-2)),\"\")","v":{"$error":"#N/A"}}]
["STANLIB Global Emerging Markets Property Feeder Fund B1","SGEB1","STANLIB Collective Investments",{"$f":"ROW()","v":53},null,null,{"$f":"VLOOKUP(F53,$C$2:$D$599,2,FALSE)","v":{"$error":"#N/A"}},{"$f":"IF(INDIRECT(\"c\" & (VLOOKUP(Rebalance!$D$26,$F$2:$G$48,2,FALSE)+ROW()-2))=Rebalance!$D$26,INDIRECT(\"a\" & (VLOOKUP(Rebalance!$D$26,$F$2:$G$48,2,FALSE)+ROW()-2)),\"\")","v":{"$error":"#N/A"}},{"$f":"IF(INDIRECT(\"c\" & (VLOOKUP(Rebalance!$D$27,$F$2:$G$48,2,FALSE)+ROW()-2))=Rebalance!$D$27,INDIRECT(\"a\" & (VLOOKUP(Rebalance!$D$27,$F$2:$G$48,2,FALSE)+ROW()-2)),\"\")","v":{"$error":"#N/A"}},{"$f":"IF(INDIRECT(\"c\" & (VLOOKUP(Rebalance!$D$28,$F$2:$G$48,2,FALSE)+ROW()-2))=Rebalance!$D$28,INDIRECT(\"a\" & (VLOOKUP(Rebalance!$D$28,$F$2:$G$48,2,FALSE)+ROW()-2)),\"\")","v":{"$error":"#N/A"}},{"$f":"IF(INDIRECT(\"c\" & (VLOOKUP(Rebalance!$D$29,$F$2:$G$48,2,FALSE)+ROW()-2))=Rebalance!$D$29,INDIRECT(\"a\" & (VLOOKUP(Rebalance!$D$29,$F$2:$G$48,2,FALSE)+ROW()-2)),\"\")","v":{"$error":"#N/A"}},{"$f":"IF(INDIRECT(\"c\" & (VLOOKUP(Rebalance!$D$30,$F$2:$G$48,2,FALSE)+ROW()-2))=Rebalance!$D$30,INDIRECT(\"a\" & (VLOOKUP(Rebalance!$D$30,$F$2:$G$48,2,FALSE)+ROW()-2)),\"\")","v":{"$error":"#N/A"}},{"$f":"IF(INDIRECT(\"c\" & (VLOOKUP(Rebalance!$D$31,$F$2:$G$48,2,FALSE)+ROW()-2))=Rebalance!$D$31,INDIRECT(\"a\" & (VLOOKUP(Rebalance!$D$31,$F$2:$G$48,2,FALSE)+ROW()-2)),\"\")","v":{"$error":"#N/A"}},{"$f":"IF(INDIRECT(\"c\" & (VLOOKUP(Rebalance!$D$32,$F$2:$G$48,2,FALSE)+ROW()-2))=Rebalance!$D$32,INDIRECT(\"a\" & (VLOOKUP(Rebalance!$D$32,$F$2:$G$48,2,FALSE)+ROW()-2)),\"\")","v":{"$error":"#N/A"}},{"$f":"IF(INDIRECT(\"c\" & (VLOOKUP(Rebalance!$D$33,$F$2:$G$48,2,FALSE)+ROW()-2))=Rebalance!$D$33,INDIRECT(\"a\" & (VLOOKUP(Rebalance!$D$33,$F$2:$G$48,2,FALSE)+ROW()-2)),\"\")","v":{"$error":"#N/A"}},{"$f":"IF(INDIRECT(\"c\" & (VLOOKUP(Rebalance!$D$34,$F$2:$G$48,2,FALSE)+ROW()-2))=Rebalance!$D$34,INDIRECT(\"a\" & (VLOOKUP(Rebalance!$D$34,$F$2:$G$48,2,FALSE)+ROW()-2)),\"\")","v":{"$error":"#N/A"}},{"$f":"IF(INDIRECT(\"c\" & (VLOOKUP(Rebalance!$D$35,$F$2:$G$48,2,FALSE)+ROW()-2))=Rebalance!$D$35,INDIRECT(\"a\" & (VLOOKUP(Rebalance!$D$35,$F$2:$G$48,2,FALSE)+ROW()-2)),\"\")","v":{"$error":"#N/A"}},{"$f":"IF(INDIRECT(\"c\" & (VLOOKUP(Rebalance!$D$36,$F$2:$G$48,2,FALSE)+ROW()-2))=Rebalance!$D$36,INDIRECT(\"a\" & (VLOOKUP(Rebalance!$D$36,$F$2:$G$48,2,FALSE)+ROW()-2)),\"\")","v":{"$error":"#N/A"}},{"$f":"IF(INDIRECT(\"c\" & (VLOOKUP(Rebalance!$D$37,$F$2:$G$48,2,FALSE)+ROW()-2))=Rebalance!$D$37,INDIRECT(\"a\" & (VLOOKUP(Rebalance!$D$37,$F$2:$G$48,2,FALSE)+ROW()-2)),\"\")","v":{"$error":"#N/A"}},{"$f":"IF(INDIRECT(\"c\" & (VLOOKUP(Rebalance!$D$38,$F$2:$G$48,2,FALSE)+ROW()-2))=Rebalance!$D$38,INDIRECT(\"a\" & (VLOOKUP(Rebalance!$D$38,$F$2:$G$48,2,FALSE)+ROW()-2)),\"\")","v":{"$error":"#N/A"}},{"$f":"IF(INDIRECT(\"c\" & (VLOOKUP(Rebalance!$D$39,$F$2:$G$48,2,FALSE)+ROW()-2))=Rebalance!$D$39,INDIRECT(\"a\" & (VLOOKUP(Rebalance!$D$39,$F$2:$G$48,2,FALSE)+ROW()-2)),\"\")","v":{"$error":"#N/A"}},{"$f":"IF(INDIRECT(\"c\" & (VLOOKUP(Rebalance!$D$40,$F$2:$G$48,2,FALSE)+ROW()-2))=Rebalance!$D$40,INDIRECT(\"a\" & (VLOOKUP(Rebalance!$D$40,$F$2:$G$48,2,FALSE)+ROW()-2)),\"\")","v":{"$error":"#N/A"}},{"$f":"IF(INDIRECT(\"c\" & (VLOOKUP(Rebalance!$D$52,$F$2:$G$48,2,FALSE)+ROW()-2))=Rebalance!$D$52,INDIRECT(\"a\" & (VLOOKUP(Rebalance!$D$52,$F$2:$G$48,2,FALSE)+ROW()-2)),\"\")","v":{"$error":"#N/A"}},{"$f":"IF(INDIRECT(\"c\" & (VLOOKUP(Rebalance!$D$53,$F$2:$G$48,2,FALSE)+ROW()-2))=Rebalance!$D$53,INDIRECT(\"a\" & (VLOOKUP(Rebalance!$D$53,$F$2:$G$48,2,FALSE)+ROW()-2)),\"\")","v":{"$error":"#N/A"}},{"$f":"IF(INDIRECT(\"c\" & (VLOOKUP(Rebalance!$D$54,$F$2:$G$48,2,FALSE)+ROW()-2))=Rebalance!$D$54,INDIRECT(\"a\" & (VLOOKUP(Rebalance!$D$54,$F$2:$G$48,2,FALSE)+ROW()-2)),\"\")","v":{"$error":"#N/A"}},{"$f":"IF(INDIRECT(\"c\" & (VLOOKUP(Rebalance!$D$55,$F$2:$G$48,2,FALSE)+ROW()-2))=Rebalance!$D$55,INDIRECT(\"a\" & (VLOOKUP(Rebalance!$D$55,$F$2:$G$48,2,FALSE)+ROW()-2)),\"\")","v":{"$error":"#N/A"}},{"$f":"IF(INDIRECT(\"c\" & (VLOOKUP(Rebalance!$D$56,$F$2:$G$48,2,FALSE)+ROW()-2))=Rebalance!$D$56,INDIRECT(\"a\" & (VLOOKUP(Rebalance!$D$56,$F$2:$G$48,2,FALSE)+ROW()-2)),\"\")","v":{"$error":"#N/A"}},{"$f":"IF(INDIRECT(\"c\" & (VLOOKUP(Rebalance!$D$57,$F$2:$G$48,2,FALSE)+ROW()-2))=Rebalance!$D$57,INDIRECT(\"a\" & (VLOOKUP(Rebalance!$D$57,$F$2:$G$48,2,FALSE)+ROW()-2)),\"\")","v":{"$error":"#N/A"}},{"$f":"IF(INDIRECT(\"c\" & (VLOOKUP(Rebalance!$D$58,$F$2:$G$48,2,FALSE)+ROW()-2))=Rebalance!$D$58,INDIRECT(\"a\" & (VLOOKUP(Rebalance!$D$58,$F$2:$G$48,2,FALSE)+ROW()-2)),\"\")","v":{"$error":"#N/A"}},{"$f":"IF(INDIRECT(\"c\" & (VLOOKUP(Rebalance!$D$59,$F$2:$G$48,2,FALSE)+ROW()-2))=Rebalance!$D$59,INDIRECT(\"a\" & (VLOOKUP(Rebalance!$D$59,$F$2:$G$48,2,FALSE)+ROW()-2)),\"\")","v":{"$error":"#N/A"}},{"$f":"IF(INDIRECT(\"c\" & (VLOOKUP(Rebalance!$D$60,$F$2:$G$48,2,FALSE)+ROW()-2))=Rebalance!$D$60,INDIRECT(\"a\" & (VLOOKUP(Rebalance!$D$60,$F$2:$G$48,2,FALSE)+ROW()-2)),\"\")","v":{"$error":"#N/A"}},{"$f":"IF(INDIRECT(\"c\" & (VLOOKUP(Rebalance!$D$61,$F$2:$G$48,2,FALSE)+ROW()-2))=Rebalance!$D$61,INDIRECT(\"a\" & (VLOOKUP(Rebalance!$D$61,$F$2:$G$48,2,FALSE)+ROW()-2)),\"\")","v":{"$error":"#N/A"}},{"$f":"IF(INDIRECT(\"c\" & (VLOOKUP(Rebalance!$D$62,$F$2:$G$48,2,FALSE)+ROW()-2))=Rebalance!$D$62,INDIRECT(\"a\" & (VLOOKUP(Rebalance!$D$62,$F$2:$G$48,2,FALSE)+ROW()-2)),\"\")","v":{"$error":"#N/A"}},{"$f":"IF(INDIRECT(\"c\" & (VLOOKUP(Rebalance!$D$63,$F$2:$G$48,2,FALSE)+ROW()-2))=Rebalance!$D$63,INDIRECT(\"a\" & (VLOOKUP(Rebalance!$D$63,$F$2:$G$48,2,FALSE)+ROW()-2)),\"\")","v":{"$error":"#N/A"}},{"$f":"IF(INDIRECT(\"c\" & (VLOOKUP(Rebalance!$D$64,$F$2:$G$48,2,FALSE)+ROW()-2))=Rebalance!$D$64,INDIRECT(\"a\" & (VLOOKUP(Rebalance!$D$64,$F$2:$G$48,2,FALSE)+ROW()-2)),\"\")","v":{"$error":"#N/A"}},{"$f":"IF(INDIRECT(\"c\" & (VLOOKUP(Rebalance!$D$65,$F$2:$G$48,2,FALSE)+ROW()-2))=Rebalance!$D$65,INDIRECT(\"a\" & (VLOOKUP(Rebalance!$D$65,$F$2:$G$48,2,FALSE)+ROW()-2)),\"\")","v":{"$error":"#N/A"}},{"$f":"IF(INDIRECT(\"c\" & (VLOOKUP(Rebalance!$D$66,$F$2:$G$48,2,FALSE)+ROW()-2))=Rebalance!$D$66,INDIRECT(\"a\" & (VLOOKUP(Rebalance!$D$66,$F$2:$G$48,2,FALSE)+ROW()-2)),\"\")","v":{"$error":"#N/A"}}]
["STANLIB Global Equity Feeder Fund B3","SGFB3","STANLIB Collective Investments",{"$f":"ROW()","v":54},null,null,{"$f":"VLOOKUP(F54,$C$2:$D$599,2,FALSE)","v":{"$error":"#N/A"}},{"$f":"IF(INDIRECT(\"c\" & (VLOOKUP(Rebalance!$D$26,$F$2:$G$48,2,FALSE)+ROW()-2))=Rebalance!$D$26,INDIRECT(\"a\" & (VLOOKUP(Rebalance!$D$26,$F$2:$G$48,2,FALSE)+ROW()-2)),\"\")","v":{"$error":"#N/A"}},{"$f":"IF(INDIRECT(\"c\" & (VLOOKUP(Rebalance!$D$27,$F$2:$G$48,2,FALSE)+ROW()-2))=Rebalance!$D$27,INDIRECT(\"a\" & (VLOOKUP(Rebalance!$D$27,$F$2:$G$48,2,FALSE)+ROW()-2)),\"\")","v":{"$error":"#N/A"}},{"$f":"IF(INDIRECT(\"c\" & (VLOOKUP(Rebalance!$D$28,$F$2:$G$48,2,FALSE)+ROW()-2))=Rebalance!$D$28,INDIRECT(\"a\" & (VLOOKUP(Rebalance!$D$28,$F$2:$G$48,2,FALSE)+ROW()-2)),\"\")","v":{"$error":"#N/A"}},{"$f":"IF(INDIRECT(\"c\" & (VLOOKUP(Rebalance!$D$29,$F$2:$G$48,2,FALSE)+ROW()-2))=Rebalance!$D$29,INDIRECT(\"a\" & (VLOOKUP(Rebalance!$D$29,$F$2:$G$48,2,FALSE)+ROW()-2)),\"\")","v":{"$error":"#N/A"}},{"$f":"IF(INDIRECT(\"c\" & (VLOOKUP(Rebalance!$D$30,$F$2:$G$48,2,FALSE)+ROW()-2))=Rebalance!$D$30,INDIRECT(\"a\" & (VLOOKUP(Rebalance!$D$30,$F$2:$G$48,2,FALSE)+ROW()-2)),\"\")","v":{"$error":"#N/A"}},{"$f":"IF(INDIRECT(\"c\" & (VLOOKUP(Rebalance!$D$31,$F$2:$G$48,2,FALSE)+ROW()-2))=Rebalance!$D$31,INDIRECT(\"a\" & (VLOOKUP(Rebalance!$D$31,$F$2:$G$48,2,FALSE)+ROW()-2)),\"\")","v":{"$error":"#N/A"}},{"$f":"IF(INDIRECT(\"c\" & (VLOOKUP(Rebalance!$D$32,$F$2:$G$48,2,FALSE)+ROW()-2))=Rebalance!$D$32,INDIRECT(\"a\" & (VLOOKUP(Rebalance!$D$32,$F$2:$G$48,2,FALSE)+ROW()-2)),\"\")","v":{"$error":"#N/A"}},{"$f":"IF(INDIRECT(\"c\" & (VLOOKUP(Rebalance!$D$33,$F$2:$G$48,2,FALSE)+ROW()-2))=Rebalance!$D$33,INDIRECT(\"a\" & (VLOOKUP(Rebalance!$D$33,$F$2:$G$48,2,FALSE)+ROW()-2)),\"\")","v":{"$error":"#N/A"}},{"$f":"IF(INDIRECT(\"c\" & (VLOOKUP(Rebalance!$D$34,$F$2:$G$48,2,FALSE)+ROW()-2))=Rebalance!$D$34,INDIRECT(\"a\" & (VLOOKUP(Rebalance!$D$34,$F$2:$G$48,2,FALSE)+ROW()-2)),\"\")","v":{"$error":"#N/A"}},{"$f":"IF(INDIRECT(\"c\" & (VLOOKUP(Rebalance!$D$35,$F$2:$G$48,2,FALSE)+ROW()-2))=Rebalance!$D$35,INDIRECT(\"a\" & (VLOOKUP(Rebalance!$D$35,$F$2:$G$48,2,FALSE)+ROW()-2)),\"\")","v":{"$error":"#N/A"}},{"$f":"IF(INDIRECT(\"c\" & (VLOOKUP(Rebalance!$D$36,$F$2:$G$48,2,FALSE)+ROW()-2))=Rebalance!$D$36,INDIRECT(\"a\" & (VLOOKUP(Rebalance!$D$36,$F$2:$G$48,2,FALSE)+ROW()-2)),\"\")","v":{"$error":"#N/A"}},{"$f":"IF(INDIRECT(\"c\" & (VLOOKUP(Rebalance!$D$37,$F$2:$G$48,2,FALSE)+ROW()-2))=Rebalance!$D$37,INDIRECT(\"a\" & (VLOOKUP(Rebalance!$D$37,$F$2:$G$48,2,FALSE)+ROW()-2)),\"\")","v":{"$error":"#N/A"}},{"$f":"IF(INDIRECT(\"c\" & (VLOOKUP(Rebalance!$D$38,$F$2:$G$48,2,FALSE)+ROW()-2))=Rebalance!$D$38,INDIRECT(\"a\" & (VLOOKUP(Rebalance!$D$38,$F$2:$G$48,2,FALSE)+ROW()-2)),\"\")","v":{"$error":"#N/A"}},{"$f":"IF(INDIRECT(\"c\" & (VLOOKUP(Rebalance!$D$39,$F$2:$G$48,2,FALSE)+ROW()-2))=Rebalance!$D$39,INDIRECT(\"a\" & (VLOOKUP(Rebalance!$D$39,$F$2:$G$48,2,FALSE)+ROW()-2)),\"\")","v":{"$error":"#N/A"}},{"$f":"IF(INDIRECT(\"c\" & (VLOOKUP(Rebalance!$D$40,$F$2:$G$48,2,FALSE)+ROW()-2))=Rebalance!$D$40,INDIRECT(\"a\" & (VLOOKUP(Rebalance!$D$40,$F$2:$G$48,2,FALSE)+ROW()-2)),\"\")","v":{"$error":"#N/A"}},{"$f":"IF(INDIRECT(\"c\" & (VLOOKUP(Rebalance!$D$52,$F$2:$G$48,2,FALSE)+ROW()-2))=Rebalance!$D$52,INDIRECT(\"a\" & (VLOOKUP(Rebalance!$D$52,$F$2:$G$48,2,FALSE)+ROW()-2)),\"\")","v":{"$error":"#N/A"}},{"$f":"IF(INDIRECT(\"c\" & (VLOOKUP(Rebalance!$D$53,$F$2:$G$48,2,FALSE)+ROW()-2))=Rebalance!$D$53,INDIRECT(\"a\" & (VLOOKUP(Rebalance!$D$53,$F$2:$G$48,2,FALSE)+ROW()-2)),\"\")","v":{"$error":"#N/A"}},{"$f":"IF(INDIRECT(\"c\" & (VLOOKUP(Rebalance!$D$54,$F$2:$G$48,2,FALSE)+ROW()-2))=Rebalance!$D$54,INDIRECT(\"a\" & (VLOOKUP(Rebalance!$D$54,$F$2:$G$48,2,FALSE)+ROW()-2)),\"\")","v":{"$error":"#N/A"}},{"$f":"IF(INDIRECT(\"c\" & (VLOOKUP(Rebalance!$D$55,$F$2:$G$48,2,FALSE)+ROW()-2))=Rebalance!$D$55,INDIRECT(\"a\" & (VLOOKUP(Rebalance!$D$55,$F$2:$G$48,2,FALSE)+ROW()-2)),\"\")","v":{"$error":"#N/A"}},{"$f":"IF(INDIRECT(\"c\" & (VLOOKUP(Rebalance!$D$56,$F$2:$G$48,2,FALSE)+ROW()-2))=Rebalance!$D$56,INDIRECT(\"a\" & (VLOOKUP(Rebalance!$D$56,$F$2:$G$48,2,FALSE)+ROW()-2)),\"\")","v":{"$error":"#N/A"}},{"$f":"IF(INDIRECT(\"c\" & (VLOOKUP(Rebalance!$D$57,$F$2:$G$48,2,FALSE)+ROW()-2))=Rebalance!$D$57,INDIRECT(\"a\" & (VLOOKUP(Rebalance!$D$57,$F$2:$G$48,2,FALSE)+ROW()-2)),\"\")","v":{"$error":"#N/A"}},{"$f":"IF(INDIRECT(\"c\" & (VLOOKUP(Rebalance!$D$58,$F$2:$G$48,2,FALSE)+ROW()-2))=Rebalance!$D$58,INDIRECT(\"a\" & (VLOOKUP(Rebalance!$D$58,$F$2:$G$48,2,FALSE)+ROW()-2)),\"\")","v":{"$error":"#N/A"}},{"$f":"IF(INDIRECT(\"c\" & (VLOOKUP(Rebalance!$D$59,$F$2:$G$48,2,FALSE)+ROW()-2))=Rebalance!$D$59,INDIRECT(\"a\" & (VLOOKUP(Rebalance!$D$59,$F$2:$G$48,2,FALSE)+ROW()-2)),\"\")","v":{"$error":"#N/A"}},{"$f":"IF(INDIRECT(\"c\" & (VLOOKUP(Rebalance!$D$60,$F$2:$G$48,2,FALSE)+ROW()-2))=Rebalance!$D$60,INDIRECT(\"a\" & (VLOOKUP(Rebalance!$D$60,$F$2:$G$48,2,FALSE)+ROW()-2)),\"\")","v":{"$error":"#N/A"}},{"$f":"IF(INDIRECT(\"c\" & (VLOOKUP(Rebalance!$D$61,$F$2:$G$48,2,FALSE)+ROW()-2))=Rebalance!$D$61,INDIRECT(\"a\" & (VLOOKUP(Rebalance!$D$61,$F$2:$G$48,2,FALSE)+ROW()-2)),\"\")","v":{"$error":"#N/A"}},{"$f":"IF(INDIRECT(\"c\" & (VLOOKUP(Rebalance!$D$62,$F$2:$G$48,2,FALSE)+ROW()-2))=Rebalance!$D$62,INDIRECT(\"a\" & (VLOOKUP(Rebalance!$D$62,$F$2:$G$48,2,FALSE)+ROW()-2)),\"\")","v":{"$error":"#N/A"}},{"$f":"IF(INDIRECT(\"c\" & (VLOOKUP(Rebalance!$D$63,$F$2:$G$48,2,FALSE)+ROW()-2))=Rebalance!$D$63,INDIRECT(\"a\" & (VLOOKUP(Rebalance!$D$63,$F$2:$G$48,2,FALSE)+ROW()-2)),\"\")","v":{"$error":"#N/A"}},{"$f":"IF(INDIRECT(\"c\" & (VLOOKUP(Rebalance!$D$64,$F$2:$G$48,2,FALSE)+ROW()-2))=Rebalance!$D$64,INDIRECT(\"a\" & (VLOOKUP(Rebalance!$D$64,$F$2:$G$48,2,FALSE)+ROW()-2)),\"\")","v":{"$error":"#N/A"}},{"$f":"IF(INDIRECT(\"c\" & (VLOOKUP(Rebalance!$D$65,$F$2:$G$48,2,FALSE)+ROW()-2))=Rebalance!$D$65,INDIRECT(\"a\" & (VLOOKUP(Rebalance!$D$65,$F$2:$G$48,2,FALSE)+ROW()-2)),\"\")","v":{"$error":"#N/A"}},{"$f":"IF(INDIRECT(\"c\" & (VLOOKUP(Rebalance!$D$66,$F$2:$G$48,2,FALSE)+ROW()-2))=Rebalance!$D$66,INDIRECT(\"a\" & (VLOOKUP(Rebalance!$D$66,$F$2:$G$48,2,FALSE)+ROW()-2)),\"\")","v":{"$error":"#N/A"}}]
["STANLIB Global Property Feeder Fund B3","SGPB3","STANLIB Collective Investments",{"$f":"ROW()","v":55},null,null,{"$f":"VLOOKUP(F55,$C$2:$D$599,2,FALSE)","v":{"$error":"#N/A"}},{"$f":"IF(INDIRECT(\"c\" & (VLOOKUP(Rebalance!$D$26,$F$2:$G$48,2,FALSE)+ROW()-2))=Rebalance!$D$26,INDIRECT(\"a\" & (VLOOKUP(Rebalance!$D$26,$F$2:$G$48,2,FALSE)+ROW()-2)),\"\")","v":{"$error":"#N/A"}},{"$f":"IF(INDIRECT(\"c\" & (VLOOKUP(Rebalance!$D$27,$F$2:$G$48,2,FALSE)+ROW()-2))=Rebalance!$D$27,INDIRECT(\"a\" & (VLOOKUP(Rebalance!$D$27,$F$2:$G$48,2,FALSE)+ROW()-2)),\"\")","v":{"$error":"#N/A"}},{"$f":"IF(INDIRECT(\"c\" & (VLOOKUP(Rebalance!$D$28,$F$2:$G$48,2,FALSE)+ROW()-2))=Rebalance!$D$28,INDIRECT(\"a\" & (VLOOKUP(Rebalance!$D$28,$F$2:$G$48,2,FALSE)+ROW()-2)),\"\")","v":{"$error":"#N/A"}},{"$f":"IF(INDIRECT(\"c\" & (VLOOKUP(Rebalance!$D$29,$F$2:$G$48,2,FALSE)+ROW()-2))=Rebalance!$D$29,INDIRECT(\"a\" & (VLOOKUP(Rebalance!$D$29,$F$2:$G$48,2,FALSE)+ROW()-2)),\"\")","v":{"$error":"#N/A"}},{"$f":"IF(INDIRECT(\"c\" & (VLOOKUP(Rebalance!$D$30,$F$2:$G$48,2,FALSE)+ROW()-2))=Rebalance!$D$30,INDIRECT(\"a\" & (VLOOKUP(Rebalance!$D$30,$F$2:$G$48,2,FALSE)+ROW()-2)),\"\")","v":{"$error":"#N/A"}},{"$f":"IF(INDIRECT(\"c\" & (VLOOKUP(Rebalance!$D$31,$F$2:$G$48,2,FALSE)+ROW()-2))=Rebalance!$D$31,INDIRECT(\"a\" & (VLOOKUP(Rebalance!$D$31,$F$2:$G$48,2,FALSE)+ROW()-2)),\"\")","v":{"$error":"#N/A"}},{"$f":"IF(INDIRECT(\"c\" & (VLOOKUP(Rebalance!$D$32,$F$2:$G$48,2,FALSE)+ROW()-2))=Rebalance!$D$32,INDIRECT(\"a\" & (VLOOKUP(Rebalance!$D$32,$F$2:$G$48,2,FALSE)+ROW()-2)),\"\")","v":{"$error":"#N/A"}},{"$f":"IF(INDIRECT(\"c\" & (VLOOKUP(Rebalance!$D$33,$F$2:$G$48,2,FALSE)+ROW()-2))=Rebalance!$D$33,INDIRECT(\"a\" & (VLOOKUP(Rebalance!$D$33,$F$2:$G$48,2,FALSE)+ROW()-2)),\"\")","v":{"$error":"#N/A"}},{"$f":"IF(INDIRECT(\"c\" & (VLOOKUP(Rebalance!$D$34,$F$2:$G$48,2,FALSE)+ROW()-2))=Rebalance!$D$34,INDIRECT(\"a\" & (VLOOKUP(Rebalance!$D$34,$F$2:$G$48,2,FALSE)+ROW()-2)),\"\")","v":{"$error":"#N/A"}},{"$f":"IF(INDIRECT(\"c\" & (VLOOKUP(Rebalance!$D$35,$F$2:$G$48,2,FALSE)+ROW()-2))=Rebalance!$D$35,INDIRECT(\"a\" & (VLOOKUP(Rebalance!$D$35,$F$2:$G$48,2,FALSE)+ROW()-2)),\"\")","v":{"$error":"#N/A"}},{"$f":"IF(INDIRECT(\"c\" & (VLOOKUP(Rebalance!$D$36,$F$2:$G$48,2,FALSE)+ROW()-2))=Rebalance!$D$36,INDIRECT(\"a\" & (VLOOKUP(Rebalance!$D$36,$F$2:$G$48,2,FALSE)+ROW()-2)),\"\")","v":{"$error":"#N/A"}},{"$f":"IF(INDIRECT(\"c\" & (VLOOKUP(Rebalance!$D$37,$F$2:$G$48,2,FALSE)+ROW()-2))=Rebalance!$D$37,INDIRECT(\"a\" & (VLOOKUP(Rebalance!$D$37,$F$2:$G$48,2,FALSE)+ROW()-2)),\"\")","v":{"$error":"#N/A"}},{"$f":"IF(INDIRECT(\"c\" & (VLOOKUP(Rebalance!$D$38,$F$2:$G$48,2,FALSE)+ROW()-2))=Rebalance!$D$38,INDIRECT(\"a\" & (VLOOKUP(Rebalance!$D$38,$F$2:$G$48,2,FALSE)+ROW()-2)),\"\")","v":{"$error":"#N/A"}},{"$f":"IF(INDIRECT(\"c\" & (VLOOKUP(Rebalance!$D$39,$F$2:$G$48,2,FALSE)+ROW()-2))=Rebalance!$D$39,INDIRECT(\"a\" & (VLOOKUP(Rebalance!$D$39,$F$2:$G$48,2,FALSE)+ROW()-2)),\"\")","v":{"$error":"#N/A"}},{"$f":"IF(INDIRECT(\"c\" & (VLOOKUP(Rebalance!$D$40,$F$2:$G$48,2,FALSE)+ROW()-2))=Rebalance!$D$40,INDIRECT(\"a\" & (VLOOKUP(Rebalance!$D$40,$F$2:$G$48,2,FALSE)+ROW()-2)),\"\")","v":{"$error":"#N/A"}},{"$f":"IF(INDIRECT(\"c\" & (VLOOKUP(Rebalance!$D$52,$F$2:$G$48,2,FALSE)+ROW()-2))=Rebalance!$D$52,INDIRECT(\"a\" & (VLOOKUP(Rebalance!$D$52,$F$2:$G$48,2,FALSE)+ROW()-2)),\"\")","v":{"$error":"#N/A"}},{"$f":"IF(INDIRECT(\"c\" & (VLOOKUP(Rebalance!$D$53,$F$2:$G$48,2,FALSE)+ROW()-2))=Rebalance!$D$53,INDIRECT(\"a\" & (VLOOKUP(Rebalance!$D$53,$F$2:$G$48,2,FALSE)+ROW()-2)),\"\")","v":{"$error":"#N/A"}},{"$f":"IF(INDIRECT(\"c\" & (VLOOKUP(Rebalance!$D$54,$F$2:$G$48,2,FALSE)+ROW()-2))=Rebalance!$D$54,INDIRECT(\"a\" & (VLOOKUP(Rebalance!$D$54,$F$2:$G$48,2,FALSE)+ROW()-2)),\"\")","v":{"$error":"#N/A"}},{"$f":"IF(INDIRECT(\"c\" & (VLOOKUP(Rebalance!$D$55,$F$2:$G$48,2,FALSE)+ROW()-2))=Rebalance!$D$55,INDIRECT(\"a\" & (VLOOKUP(Rebalance!$D$55,$F$2:$G$48,2,FALSE)+ROW()-2)),\"\")","v":{"$error":"#N/A"}},{"$f":"IF(INDIRECT(\"c\" & (VLOOKUP(Rebalance!$D$56,$F$2:$G$48,2,FALSE)+ROW()-2))=Rebalance!$D$56,INDIRECT(\"a\" & (VLOOKUP(Rebalance!$D$56,$F$2:$G$48,2,FALSE)+ROW()-2)),\"\")","v":{"$error":"#N/A"}},{"$f":"IF(INDIRECT(\"c\" & (VLOOKUP(Rebalance!$D$57,$F$2:$G$48,2,FALSE)+ROW()-2))=Rebalance!$D$57,INDIRECT(\"a\" & (VLOOKUP(Rebalance!$D$57,$F$2:$G$48,2,FALSE)+ROW()-2)),\"\")","v":{"$error":"#N/A"}},{"$f":"IF(INDIRECT(\"c\" & (VLOOKUP(Rebalance!$D$58,$F$2:$G$48,2,FALSE)+ROW()-2))=Rebalance!$D$58,INDIRECT(\"a\" & (VLOOKUP(Rebalance!$D$58,$F$2:$G$48,2,FALSE)+ROW()-2)),\"\")","v":{"$error":"#N/A"}},{"$f":"IF(INDIRECT(\"c\" & (VLOOKUP(Rebalance!$D$59,$F$2:$G$48,2,FALSE)+ROW()-2))=Rebalance!$D$59,INDIRECT(\"a\" & (VLOOKUP(Rebalance!$D$59,$F$2:$G$48,2,FALSE)+ROW()-2)),\"\")","v":{"$error":"#N/A"}},{"$f":"IF(INDIRECT(\"c\" & (VLOOKUP(Rebalance!$D$60,$F$2:$G$48,2,FALSE)+ROW()-2))=Rebalance!$D$60,INDIRECT(\"a\" & (VLOOKUP(Rebalance!$D$60,$F$2:$G$48,2,FALSE)+ROW()-2)),\"\")","v":{"$error":"#N/A"}},{"$f":"IF(INDIRECT(\"c\" & (VLOOKUP(Rebalance!$D$61,$F$2:$G$48,2,FALSE)+ROW()-2))=Rebalance!$D$61,INDIRECT(\"a\" & (VLOOKUP(Rebalance!$D$61,$F$2:$G$48,2,FALSE)+ROW()-2)),\"\")","v":{"$error":"#N/A"}},{"$f":"IF(INDIRECT(\"c\" & (VLOOKUP(Rebalance!$D$62,$F$2:$G$48,2,FALSE)+ROW()-2))=Rebalance!$D$62,INDIRECT(\"a\" & (VLOOKUP(Rebalance!$D$62,$F$2:$G$48,2,FALSE)+ROW()-2)),\"\")","v":{"$error":"#N/A"}},{"$f":"IF(INDIRECT(\"c\" & (VLOOKUP(Rebalance!$D$63,$F$2:$G$48,2,FALSE)+ROW()-2))=Rebalance!$D$63,INDIRECT(\"a\" & (VLOOKUP(Rebalance!$D$63,$F$2:$G$48,2,FALSE)+ROW()-2)),\"\")","v":{"$error":"#N/A"}},{"$f":"IF(INDIRECT(\"c\" & (VLOOKUP(Rebalance!$D$64,$F$2:$G$48,2,FALSE)+ROW()-2))=Rebalance!$D$64,INDIRECT(\"a\" & (VLOOKUP(Rebalance!$D$64,$F$2:$G$48,2,FALSE)+ROW()-2)),\"\")","v":{"$error":"#N/A"}},{"$f":"IF(INDIRECT(\"c\" & (VLOOKUP(Rebalance!$D$65,$F$2:$G$48,2,FALSE)+ROW()-2))=Rebalance!$D$65,INDIRECT(\"a\" & (VLOOKUP(Rebalance!$D$65,$F$2:$G$48,2,FALSE)+ROW()-2)),\"\")","v":{"$error":"#N/A"}},{"$f":"IF(INDIRECT(\"c\" & (VLOOKUP(Rebalance!$D$66,$F$2:$G$48,2,FALSE)+ROW()-2))=Rebalance!$D$66,INDIRECT(\"a\" & (VLOOKUP(Rebalance!$D$66,$F$2:$G$48,2,FALSE)+ROW()-2)),\"\")","v":{"$error":"#N/A"}}]
["STANLIB Income Fund B2","GDBI","STANLIB Collective Investments",{"$f":"ROW()","v":56},null,null,{"$f":"VLOOKUP(F56,$C$2:$D$599,2,FALSE)","v":{"$error":"#N/A"}},{"$f":"IF(INDIRECT(\"c\" & (VLOOKUP(Rebalance!$D$26,$F$2:$G$48,2,FALSE)+ROW()-2))=Rebalance!$D$26,INDIRECT(\"a\" & (VLOOKUP(Rebalance!$D$26,$F$2:$G$48,2,FALSE)+ROW()-2)),\"\")","v":{"$error":"#N/A"}},{"$f":"IF(INDIRECT(\"c\" & (VLOOKUP(Rebalance!$D$27,$F$2:$G$48,2,FALSE)+ROW()-2))=Rebalance!$D$27,INDIRECT(\"a\" & (VLOOKUP(Rebalance!$D$27,$F$2:$G$48,2,FALSE)+ROW()-2)),\"\")","v":{"$error":"#N/A"}},{"$f":"IF(INDIRECT(\"c\" & (VLOOKUP(Rebalance!$D$28,$F$2:$G$48,2,FALSE)+ROW()-2))=Rebalance!$D$28,INDIRECT(\"a\" & (VLOOKUP(Rebalance!$D$28,$F$2:$G$48,2,FALSE)+ROW()-2)),\"\")","v":{"$error":"#N/A"}},{"$f":"IF(INDIRECT(\"c\" & (VLOOKUP(Rebalance!$D$29,$F$2:$G$48,2,FALSE)+ROW()-2))=Rebalance!$D$29,INDIRECT(\"a\" & (VLOOKUP(Rebalance!$D$29,$F$2:$G$48,2,FALSE)+ROW()-2)),\"\")","v":{"$error":"#N/A"}},{"$f":"IF(INDIRECT(\"c\" & (VLOOKUP(Rebalance!$D$30,$F$2:$G$48,2,FALSE)+ROW()-2))=Rebalance!$D$30,INDIRECT(\"a\" & (VLOOKUP(Rebalance!$D$30,$F$2:$G$48,2,FALSE)+ROW()-2)),\"\")","v":{"$error":"#N/A"}},{"$f":"IF(INDIRECT(\"c\" & (VLOOKUP(Rebalance!$D$31,$F$2:$G$48,2,FALSE)+ROW()-2))=Rebalance!$D$31,INDIRECT(\"a\" & (VLOOKUP(Rebalance!$D$31,$F$2:$G$48,2,FALSE)+ROW()-2)),\"\")","v":{"$error":"#N/A"}},{"$f":"IF(INDIRECT(\"c\" & (VLOOKUP(Rebalance!$D$32,$F$2:$G$48,2,FALSE)+ROW()-2))=Rebalance!$D$32,INDIRECT(\"a\" & (VLOOKUP(Rebalance!$D$32,$F$2:$G$48,2,FALSE)+ROW()-2)),\"\")","v":{"$error":"#N/A"}},{"$f":"IF(INDIRECT(\"c\" & (VLOOKUP(Rebalance!$D$33,$F$2:$G$48,2,FALSE)+ROW()-2))=Rebalance!$D$33,INDIRECT(\"a\" & (VLOOKUP(Rebalance!$D$33,$F$2:$G$48,2,FALSE)+ROW()-2)),\"\")","v":{"$error":"#N/A"}},{"$f":"IF(INDIRECT(\"c\" & (VLOOKUP(Rebalance!$D$34,$F$2:$G$48,2,FALSE)+ROW()-2))=Rebalance!$D$34,INDIRECT(\"a\" & (VLOOKUP(Rebalance!$D$34,$F$2:$G$48,2,FALSE)+ROW()-2)),\"\")","v":{"$error":"#N/A"}},{"$f":"IF(INDIRECT(\"c\" & (VLOOKUP(Rebalance!$D$35,$F$2:$G$48,2,FALSE)+ROW()-2))=Rebalance!$D$35,INDIRECT(\"a\" & (VLOOKUP(Rebalance!$D$35,$F$2:$G$48,2,FALSE)+ROW()-2)),\"\")","v":{"$error":"#N/A"}},{"$f":"IF(INDIRECT(\"c\" & (VLOOKUP(Rebalance!$D$36,$F$2:$G$48,2,FALSE)+ROW()-2))=Rebalance!$D$36,INDIRECT(\"a\" & (VLOOKUP(Rebalance!$D$36,$F$2:$G$48,2,FALSE)+ROW()-2)),\"\")","v":{"$error":"#N/A"}},{"$f":"IF(INDIRECT(\"c\" & (VLOOKUP(Rebalance!$D$37,$F$2:$G$48,2,FALSE)+ROW()-2))=Rebalance!$D$37,INDIRECT(\"a\" & (VLOOKUP(Rebalance!$D$37,$F$2:$G$48,2,FALSE)+ROW()-2)),\"\")","v":{"$error":"#N/A"}},{"$f":"IF(INDIRECT(\"c\" & (VLOOKUP(Rebalance!$D$38,$F$2:$G$48,2,FALSE)+ROW()-2))=Rebalance!$D$38,INDIRECT(\"a\" & (VLOOKUP(Rebalance!$D$38,$F$2:$G$48,2,FALSE)+ROW()-2)),\"\")","v":{"$error":"#N/A"}},{"$f":"IF(INDIRECT(\"c\" & (VLOOKUP(Rebalance!$D$39,$F$2:$G$48,2,FALSE)+ROW()-2))=Rebalance!$D$39,INDIRECT(\"a\" & (VLOOKUP(Rebalance!$D$39,$F$2:$G$48,2,FALSE)+ROW()-2)),\"\")","v":{"$error":"#N/A"}},{"$f":"IF(INDIRECT(\"c\" & (VLOOKUP(Rebalance!$D$40,$F$2:$G$48,2,FALSE)+ROW()-2))=Rebalance!$D$40,INDIRECT(\"a\" & (VLOOKUP(Rebalance!$D$40,$F$2:$G$48,2,FALSE)+ROW()-2)),\"\")","v":{"$error":"#N/A"}},{"$f":"IF(INDIRECT(\"c\" & (VLOOKUP(Rebalance!$D$52,$F$2:$G$48,2,FALSE)+ROW()-2))=Rebalance!$D$52,INDIRECT(\"a\" & (VLOOKUP(Rebalance!$D$52,$F$2:$G$48,2,FALSE)+ROW()-2)),\"\")","v":{"$error":"#N/A"}},{"$f":"IF(INDIRECT(\"c\" & (VLOOKUP(Rebalance!$D$53,$F$2:$G$48,2,FALSE)+ROW()-2))=Rebalance!$D$53,INDIRECT(\"a\" & (VLOOKUP(Rebalance!$D$53,$F$2:$G$48,2,FALSE)+ROW()-2)),\"\")","v":{"$error":"#N/A"}},{"$f":"IF(INDIRECT(\"c\" & (VLOOKUP(Rebalance!$D$54,$F$2:$G$48,2,FALSE)+ROW()-2))=Rebalance!$D$54,INDIRECT(\"a\" & (VLOOKUP(Rebalance!$D$54,$F$2:$G$48,2,FALSE)+ROW()-2)),\"\")","v":{"$error":"#N/A"}},{"$f":"IF(INDIRECT(\"c\" & (VLOOKUP(Rebalance!$D$55,$F$2:$G$48,2,FALSE)+ROW()-2))=Rebalance!$D$55,INDIRECT(\"a\" & (VLOOKUP(Rebalance!$D$55,$F$2:$G$48,2,FALSE)+ROW()-2)),\"\")","v":{"$error":"#N/A"}},{"$f":"IF(INDIRECT(\"c\" & (VLOOKUP(Rebalance!$D$56,$F$2:$G$48,2,FALSE)+ROW()-2))=Rebalance!$D$56,INDIRECT(\"a\" & (VLOOKUP(Rebalance!$D$56,$F$2:$G$48,2,FALSE)+ROW()-2)),\"\")","v":{"$error":"#N/A"}},{"$f":"IF(INDIRECT(\"c\" & (VLOOKUP(Rebalance!$D$57,$F$2:$G$48,2,FALSE)+ROW()-2))=Rebalance!$D$57,INDIRECT(\"a\" & (VLOOKUP(Rebalance!$D$57,$F$2:$G$48,2,FALSE)+ROW()-2)),\"\")","v":{"$error":"#N/A"}},{"$f":"IF(INDIRECT(\"c\" & (VLOOKUP(Rebalance!$D$58,$F$2:$G$48,2,FALSE)+ROW()-2))=Rebalance!$D$58,INDIRECT(\"a\" & (VLOOKUP(Rebalance!$D$58,$F$2:$G$48,2,FALSE)+ROW()-2)),\"\")","v":{"$error":"#N/A"}},{"$f":"IF(INDIRECT(\"c\" & (VLOOKUP(Rebalance!$D$59,$F$2:$G$48,2,FALSE)+ROW()-2))=Rebalance!$D$59,INDIRECT(\"a\" & (VLOOKUP(Rebalance!$D$59,$F$2:$G$48,2,FALSE)+ROW()-2)),\"\")","v":{"$error":"#N/A"}},{"$f":"IF(INDIRECT(\"c\" & (VLOOKUP(Rebalance!$D$60,$F$2:$G$48,2,FALSE)+ROW()-2))=Rebalance!$D$60,INDIRECT(\"a\" & (VLOOKUP(Rebalance!$D$60,$F$2:$G$48,2,FALSE)+ROW()-2)),\"\")","v":{"$error":"#N/A"}},{"$f":"IF(INDIRECT(\"c\" & (VLOOKUP(Rebalance!$D$61,$F$2:$G$48,2,FALSE)+ROW()-2))=Rebalance!$D$61,INDIRECT(\"a\" & (VLOOKUP(Rebalance!$D$61,$F$2:$G$48,2,FALSE)+ROW()-2)),\"\")","v":{"$error":"#N/A"}},{"$f":"IF(INDIRECT(\"c\" & (VLOOKUP(Rebalance!$D$62,$F$2:$G$48,2,FALSE)+ROW()-2))=Rebalance!$D$62,INDIRECT(\"a\" & (VLOOKUP(Rebalance!$D$62,$F$2:$G$48,2,FALSE)+ROW()-2)),\"\")","v":{"$error":"#N/A"}},{"$f":"IF(INDIRECT(\"c\" & (VLOOKUP(Rebalance!$D$63,$F$2:$G$48,2,FALSE)+ROW()-2))=Rebalance!$D$63,INDIRECT(\"a\" & (VLOOKUP(Rebalance!$D$63,$F$2:$G$48,2,FALSE)+ROW()-2)),\"\")","v":{"$error":"#N/A"}},{"$f":"IF(INDIRECT(\"c\" & (VLOOKUP(Rebalance!$D$64,$F$2:$G$48,2,FALSE)+ROW()-2))=Rebalance!$D$64,INDIRECT(\"a\" & (VLOOKUP(Rebalance!$D$64,$F$2:$G$48,2,FALSE)+ROW()-2)),\"\")","v":{"$error":"#N/A"}},{"$f":"IF(INDIRECT(\"c\" & (VLOOKUP(Rebalance!$D$65,$F$2:$G$48,2,FALSE)+ROW()-2))=Rebalance!$D$65,INDIRECT(\"a\" & (VLOOKUP(Rebalance!$D$65,$F$2:$G$48,2,FALSE)+ROW()-2)),\"\")","v":{"$error":"#N/A"}},{"$f":"IF(INDIRECT(\"c\" & (VLOOKUP(Rebalance!$D$66,$F$2:$G$48,2,FALSE)+ROW()-2))=Rebalance!$D$66,INDIRECT(\"a\" & (VLOOKUP(Rebalance!$D$66,$F$2:$G$48,2,FALSE)+ROW()-2)),\"\")","v":{"$error":"#N/A"}}]
["STANLIB Income Fund B6","GDBI","STANLIB Collective Investments",{"$f":"ROW()","v":57},null,null,{"$f":"VLOOKUP(F57,$C$2:$D$599,2,FALSE)","v":{"$error":"#N/A"}},{"$f":"IF(INDIRECT(\"c\" & (VLOOKUP(Rebalance!$D$26,$F$2:$G$48,2,FALSE)+ROW()-2))=Rebalance!$D$26,INDIRECT(\"a\" & (VLOOKUP(Rebalance!$D$26,$F$2:$G$48,2,FALSE)+ROW()-2)),\"\")","v":{"$error":"#N/A"}},{"$f":"IF(INDIRECT(\"c\" & (VLOOKUP(Rebalance!$D$27,$F$2:$G$48,2,FALSE)+ROW()-2))=Rebalance!$D$27,INDIRECT(\"a\" & (VLOOKUP(Rebalance!$D$27,$F$2:$G$48,2,FALSE)+ROW()-2)),\"\")","v":{"$error":"#N/A"}},{"$f":"IF(INDIRECT(\"c\" & (VLOOKUP(Rebalance!$D$28,$F$2:$G$48,2,FALSE)+ROW()-2))=Rebalance!$D$28,INDIRECT(\"a\" & (VLOOKUP(Rebalance!$D$28,$F$2:$G$48,2,FALSE)+ROW()-2)),\"\")","v":{"$error":"#N/A"}},{"$f":"IF(INDIRECT(\"c\" & (VLOOKUP(Rebalance!$D$29,$F$2:$G$48,2,FALSE)+ROW()-2))=Rebalance!$D$29,INDIRECT(\"a\" & (VLOOKUP(Rebalance!$D$29,$F$2:$G$48,2,FALSE)+ROW()-2)),\"\")","v":{"$error":"#N/A"}},{"$f":"IF(INDIRECT(\"c\" & (VLOOKUP(Rebalance!$D$30,$F$2:$G$48,2,FALSE)+ROW()-2))=Rebalance!$D$30,INDIRECT(\"a\" & (VLOOKUP(Rebalance!$D$30,$F$2:$G$48,2,FALSE)+ROW()-2)),\"\")","v":{"$error":"#N/A"}},{"$f":"IF(INDIRECT(\"c\" & (VLOOKUP(Rebalance!$D$31,$F$2:$G$48,2,FALSE)+ROW()-2))=Rebalance!$D$31,INDIRECT(\"a\" & (VLOOKUP(Rebalance!$D$31,$F$2:$G$48,2,FALSE)+ROW()-2)),\"\")","v":{"$error":"#N/A"}},{"$f":"IF(INDIRECT(\"c\" & (VLOOKUP(Rebalance!$D$32,$F$2:$G$48,2,FALSE)+ROW()-2))=Rebalance!$D$32,INDIRECT(\"a\" & (VLOOKUP(Rebalance!$D$32,$F$2:$G$48,2,FALSE)+ROW()-2)),\"\")","v":{"$error":"#N/A"}},{"$f":"IF(INDIRECT(\"c\" & (VLOOKUP(Rebalance!$D$33,$F$2:$G$48,2,FALSE)+ROW()-2))=Rebalance!$D$33,INDIRECT(\"a\" & (VLOOKUP(Rebalance!$D$33,$F$2:$G$48,2,FALSE)+ROW()-2)),\"\")","v":{"$error":"#N/A"}},{"$f":"IF(INDIRECT(\"c\" & (VLOOKUP(Rebalance!$D$34,$F$2:$G$48,2,FALSE)+ROW()-2))=Rebalance!$D$34,INDIRECT(\"a\" & (VLOOKUP(Rebalance!$D$34,$F$2:$G$48,2,FALSE)+ROW()-2)),\"\")","v":{"$error":"#N/A"}},{"$f":"IF(INDIRECT(\"c\" & (VLOOKUP(Rebalance!$D$35,$F$2:$G$48,2,FALSE)+ROW()-2))=Rebalance!$D$35,INDIRECT(\"a\" & (VLOOKUP(Rebalance!$D$35,$F$2:$G$48,2,FALSE)+ROW()-2)),\"\")","v":{"$error":"#N/A"}},{"$f":"IF(INDIRECT(\"c\" & (VLOOKUP(Rebalance!$D$36,$F$2:$G$48,2,FALSE)+ROW()-2))=Rebalance!$D$36,INDIRECT(\"a\" & (VLOOKUP(Rebalance!$D$36,$F$2:$G$48,2,FALSE)+ROW()-2)),\"\")","v":{"$error":"#N/A"}},{"$f":"IF(INDIRECT(\"c\" & (VLOOKUP(Rebalance!$D$37,$F$2:$G$48,2,FALSE)+ROW()-2))=Rebalance!$D$37,INDIRECT(\"a\" & (VLOOKUP(Rebalance!$D$37,$F$2:$G$48,2,FALSE)+ROW()-2)),\"\")","v":{"$error":"#N/A"}},{"$f":"IF(INDIRECT(\"c\" & (VLOOKUP(Rebalance!$D$38,$F$2:$G$48,2,FALSE)+ROW()-2))=Rebalance!$D$38,INDIRECT(\"a\" & (VLOOKUP(Rebalance!$D$38,$F$2:$G$48,2,FALSE)+ROW()-2)),\"\")","v":{"$error":"#N/A"}},{"$f":"IF(INDIRECT(\"c\" & (VLOOKUP(Rebalance!$D$39,$F$2:$G$48,2,FALSE)+ROW()-2))=Rebalance!$D$39,INDIRECT(\"a\" & (VLOOKUP(Rebalance!$D$39,$F$2:$G$48,2,FALSE)+ROW()-2)),\"\")","v":{"$error":"#N/A"}},{"$f":"IF(INDIRECT(\"c\" & (VLOOKUP(Rebalance!$D$40,$F$2:$G$48,2,FALSE)+ROW()-2))=Rebalance!$D$40,INDIRECT(\"a\" & (VLOOKUP(Rebalance!$D$40,$F$2:$G$48,2,FALSE)+ROW()-2)),\"\")","v":{"$error":"#N/A"}},{"$f":"IF(INDIRECT(\"c\" & (VLOOKUP(Rebalance!$D$52,$F$2:$G$48,2,FALSE)+ROW()-2))=Rebalance!$D$52,INDIRECT(\"a\" & (VLOOKUP(Rebalance!$D$52,$F$2:$G$48,2,FALSE)+ROW()-2)),\"\")","v":{"$error":"#N/A"}},{"$f":"IF(INDIRECT(\"c\" & (VLOOKUP(Rebalance!$D$53,$F$2:$G$48,2,FALSE)+ROW()-2))=Rebalance!$D$53,INDIRECT(\"a\" & (VLOOKUP(Rebalance!$D$53,$F$2:$G$48,2,FALSE)+ROW()-2)),\"\")","v":{"$error":"#N/A"}},{"$f":"IF(INDIRECT(\"c\" & (VLOOKUP(Rebalance!$D$54,$F$2:$G$48,2,FALSE)+ROW()-2))=Rebalance!$D$54,INDIRECT(\"a\" & (VLOOKUP(Rebalance!$D$54,$F$2:$G$48,2,FALSE)+ROW()-2)),\"\")","v":{"$error":"#N/A"}},{"$f":"IF(INDIRECT(\"c\" & (VLOOKUP(Rebalance!$D$55,$F$2:$G$48,2,FALSE)+ROW()-2))=Rebalance!$D$55,INDIRECT(\"a\" & (VLOOKUP(Rebalance!$D$55,$F$2:$G$48,2,FALSE)+ROW()-2)),\"\")","v":{"$error":"#N/A"}},{"$f":"IF(INDIRECT(\"c\" & (VLOOKUP(Rebalance!$D$56,$F$2:$G$48,2,FALSE)+ROW()-2))=Rebalance!$D$56,INDIRECT(\"a\" & (VLOOKUP(Rebalance!$D$56,$F$2:$G$48,2,FALSE)+ROW()-2)),\"\")","v":{"$error":"#N/A"}},{"$f":"IF(INDIRECT(\"c\" & (VLOOKUP(Rebalance!$D$57,$F$2:$G$48,2,FALSE)+ROW()-2))=Rebalance!$D$57,INDIRECT(\"a\" & (VLOOKUP(Rebalance!$D$57,$F$2:$G$48,2,FALSE)+ROW()-2)),\"\")","v":{"$error":"#N/A"}},{"$f":"IF(INDIRECT(\"c\" & (VLOOKUP(Rebalance!$D$58,$F$2:$G$48,2,FALSE)+ROW()-2))=Rebalance!$D$58,INDIRECT(\"a\" & (VLOOKUP(Rebalance!$D$58,$F$2:$G$48,2,FALSE)+ROW()-2)),\"\")","v":{"$error":"#N/A"}},{"$f":"IF(INDIRECT(\"c\" & (VLOOKUP(Rebalance!$D$59,$F$2:$G$48,2,FALSE)+ROW()-2))=Rebalance!$D$59,INDIRECT(\"a\" & (VLOOKUP(Rebalance!$D$59,$F$2:$G$48,2,FALSE)+ROW()-2)),\"\")","v":{"$error":"#N/A"}},{"$f":"IF(INDIRECT(\"c\" & (VLOOKUP(Rebalance!$D$60,$F$2:$G$48,2,FALSE)+ROW()-2))=Rebalance!$D$60,INDIRECT(\"a\" & (VLOOKUP(Rebalance!$D$60,$F$2:$G$48,2,FALSE)+ROW()-2)),\"\")","v":{"$error":"#N/A"}},{"$f":"IF(INDIRECT(\"c\" & (VLOOKUP(Rebalance!$D$61,$F$2:$G$48,2,FALSE)+ROW()-2))=Rebalance!$D$61,INDIRECT(\"a\" & (VLOOKUP(Rebalance!$D$61,$F$2:$G$48,2,FALSE)+ROW()-2)),\"\")","v":{"$error":"#N/A"}},{"$f":"IF(INDIRECT(\"c\" & (VLOOKUP(Rebalance!$D$62,$F$2:$G$48,2,FALSE)+ROW()-2))=Rebalance!$D$62,INDIRECT(\"a\" & (VLOOKUP(Rebalance!$D$62,$F$2:$G$48,2,FALSE)+ROW()-2)),\"\")","v":{"$error":"#N/A"}},{"$f":"IF(INDIRECT(\"c\" & (VLOOKUP(Rebalance!$D$63,$F$2:$G$48,2,FALSE)+ROW()-2))=Rebalance!$D$63,INDIRECT(\"a\" & (VLOOKUP(Rebalance!$D$63,$F$2:$G$48,2,FALSE)+ROW()-2)),\"\")","v":{"$error":"#N/A"}},{"$f":"IF(INDIRECT(\"c\" & (VLOOKUP(Rebalance!$D$64,$F$2:$G$48,2,FALSE)+ROW()-2))=Rebalance!$D$64,INDIRECT(\"a\" & (VLOOKUP(Rebalance!$D$64,$F$2:$G$48,2,FALSE)+ROW()-2)),\"\")","v":{"$error":"#N/A"}},{"$f":"IF(INDIRECT(\"c\" & (VLOOKUP(Rebalance!$D$65,$F$2:$G$48,2,FALSE)+ROW()-2))=Rebalance!$D$65,INDIRECT(\"a\" & (VLOOKUP(Rebalance!$D$65,$F$2:$G$48,2,FALSE)+ROW()-2)),\"\")","v":{"$error":"#N/A"}},{"$f":"IF(INDIRECT(\"c\" & (VLOOKUP(Rebalance!$D$66,$F$2:$G$48,2,FALSE)+ROW()-2))=Rebalance!$D$66,INDIRECT(\"a\" & (VLOOKUP(Rebalance!$D$66,$F$2:$G$48,2,FALSE)+ROW()-2)),\"\")","v":{"$error":"#N/A"}}]
["STANLIB Income Fund R","GDBI","STANLIB Collective Investments",{"$f":"ROW()","v":58},null,null,{"$f":"VLOOKUP(F58,$C$2:$D$599,2,FALSE)","v":{"$error":"#N/A"}},{"$f":"IF(INDIRECT(\"c\" & (VLOOKUP(Rebalance!$D$26,$F$2:$G$48,2,FALSE)+ROW()-2))=Rebalance!$D$26,INDIRECT(\"a\" & (VLOOKUP(Rebalance!$D$26,$F$2:$G$48,2,FALSE)+ROW()-2)),\"\")","v":{"$error":"#N/A"}},{"$f":"IF(INDIRECT(\"c\" & (VLOOKUP(Rebalance!$D$27,$F$2:$G$48,2,FALSE)+ROW()-2))=Rebalance!$D$27,INDIRECT(\"a\" & (VLOOKUP(Rebalance!$D$27,$F$2:$G$48,2,FALSE)+ROW()-2)),\"\")","v":{"$error":"#N/A"}},{"$f":"IF(INDIRECT(\"c\" & (VLOOKUP(Rebalance!$D$28,$F$2:$G$48,2,FALSE)+ROW()-2))=Rebalance!$D$28,INDIRECT(\"a\" & (VLOOKUP(Rebalance!$D$28,$F$2:$G$48,2,FALSE)+ROW()-2)),\"\")","v":{"$error":"#N/A"}},{"$f":"IF(INDIRECT(\"c\" & (VLOOKUP(Rebalance!$D$29,$F$2:$G$48,2,FALSE)+ROW()-2))=Rebalance!$D$29,INDIRECT(\"a\" & (VLOOKUP(Rebalance!$D$29,$F$2:$G$48,2,FALSE)+ROW()-2)),\"\")","v":{"$error":"#N/A"}},{"$f":"IF(INDIRECT(\"c\" & (VLOOKUP(Rebalance!$D$30,$F$2:$G$48,2,FALSE)+ROW()-2))=Rebalance!$D$30,INDIRECT(\"a\" & (VLOOKUP(Rebalance!$D$30,$F$2:$G$48,2,FALSE)+ROW()-2)),\"\")","v":{"$error":"#N/A"}},{"$f":"IF(INDIRECT(\"c\" & (VLOOKUP(Rebalance!$D$31,$F$2:$G$48,2,FALSE)+ROW()-2))=Rebalance!$D$31,INDIRECT(\"a\" & (VLOOKUP(Rebalance!$D$31,$F$2:$G$48,2,FALSE)+ROW()-2)),\"\")","v":{"$error":"#N/A"}},{"$f":"IF(INDIRECT(\"c\" & (VLOOKUP(Rebalance!$D$32,$F$2:$G$48,2,FALSE)+ROW()-2))=Rebalance!$D$32,INDIRECT(\"a\" & (VLOOKUP(Rebalance!$D$32,$F$2:$G$48,2,FALSE)+ROW()-2)),\"\")","v":{"$error":"#N/A"}},{"$f":"IF(INDIRECT(\"c\" & (VLOOKUP(Rebalance!$D$33,$F$2:$G$48,2,FALSE)+ROW()-2))=Rebalance!$D$33,INDIRECT(\"a\" & (VLOOKUP(Rebalance!$D$33,$F$2:$G$48,2,FALSE)+ROW()-2)),\"\")","v":{"$error":"#N/A"}},{"$f":"IF(INDIRECT(\"c\" & (VLOOKUP(Rebalance!$D$34,$F$2:$G$48,2,FALSE)+ROW()-2))=Rebalance!$D$34,INDIRECT(\"a\" & (VLOOKUP(Rebalance!$D$34,$F$2:$G$48,2,FALSE)+ROW()-2)),\"\")","v":{"$error":"#N/A"}},{"$f":"IF(INDIRECT(\"c\" & (VLOOKUP(Rebalance!$D$35,$F$2:$G$48,2,FALSE)+ROW()-2))=Rebalance!$D$35,INDIRECT(\"a\" & (VLOOKUP(Rebalance!$D$35,$F$2:$G$48,2,FALSE)+ROW()-2)),\"\")","v":{"$error":"#N/A"}},{"$f":"IF(INDIRECT(\"c\" & (VLOOKUP(Rebalance!$D$36,$F$2:$G$48,2,FALSE)+ROW()-2))=Rebalance!$D$36,INDIRECT(\"a\" & (VLOOKUP(Rebalance!$D$36,$F$2:$G$48,2,FALSE)+ROW()-2)),\"\")","v":{"$error":"#N/A"}},{"$f":"IF(INDIRECT(\"c\" & (VLOOKUP(Rebalance!$D$37,$F$2:$G$48,2,FALSE)+ROW()-2))=Rebalance!$D$37,INDIRECT(\"a\" & (VLOOKUP(Rebalance!$D$37,$F$2:$G$48,2,FALSE)+ROW()-2)),\"\")","v":{"$error":"#N/A"}},{"$f":"IF(INDIRECT(\"c\" & (VLOOKUP(Rebalance!$D$38,$F$2:$G$48,2,FALSE)+ROW()-2))=Rebalance!$D$38,INDIRECT(\"a\" & (VLOOKUP(Rebalance!$D$38,$F$2:$G$48,2,FALSE)+ROW()-2)),\"\")","v":{"$error":"#N/A"}},{"$f":"IF(INDIRECT(\"c\" & (VLOOKUP(Rebalance!$D$39,$F$2:$G$48,2,FALSE)+ROW()-2))=Rebalance!$D$39,INDIRECT(\"a\" & (VLOOKUP(Rebalance!$D$39,$F$2:$G$48,2,FALSE)+ROW()-2)),\"\")","v":{"$error":"#N/A"}},{"$f":"IF(INDIRECT(\"c\" & (VLOOKUP(Rebalance!$D$40,$F$2:$G$48,2,FALSE)+ROW()-2))=Rebalance!$D$40,INDIRECT(\"a\" & (VLOOKUP(Rebalance!$D$40,$F$2:$G$48,2,FALSE)+ROW()-2)),\"\")","v":{"$error":"#N/A"}},{"$f":"IF(INDIRECT(\"c\" & (VLOOKUP(Rebalance!$D$52,$F$2:$G$48,2,FALSE)+ROW()-2))=Rebalance!$D$52,INDIRECT(\"a\" & (VLOOKUP(Rebalance!$D$52,$F$2:$G$48,2,FALSE)+ROW()-2)),\"\")","v":{"$error":"#N/A"}},{"$f":"IF(INDIRECT(\"c\" & (VLOOKUP(Rebalance!$D$53,$F$2:$G$48,2,FALSE)+ROW()-2))=Rebalance!$D$53,INDIRECT(\"a\" & (VLOOKUP(Rebalance!$D$53,$F$2:$G$48,2,FALSE)+ROW()-2)),\"\")","v":{"$error":"#N/A"}},{"$f":"IF(INDIRECT(\"c\" & (VLOOKUP(Rebalance!$D$54,$F$2:$G$48,2,FALSE)+ROW()-2))=Rebalance!$D$54,INDIRECT(\"a\" & (VLOOKUP(Rebalance!$D$54,$F$2:$G$48,2,FALSE)+ROW()-2)),\"\")","v":{"$error":"#N/A"}},{"$f":"IF(INDIRECT(\"c\" & (VLOOKUP(Rebalance!$D$55,$F$2:$G$48,2,FALSE)+ROW()-2))=Rebalance!$D$55,INDIRECT(\"a\" & (VLOOKUP(Rebalance!$D$55,$F$2:$G$48,2,FALSE)+ROW()-2)),\"\")","v":{"$error":"#N/A"}},{"$f":"IF(INDIRECT(\"c\" & (VLOOKUP(Rebalance!$D$56,$F$2:$G$48,2,FALSE)+ROW()-2))=Rebalance!$D$56,INDIRECT(\"a\" & (VLOOKUP(Rebalance!$D$56,$F$2:$G$48,2,FALSE)+ROW()-2)),\"\")","v":{"$error":"#N/A"}},{"$f":"IF(INDIRECT(\"c\" & (VLOOKUP(Rebalance!$D$57,$F$2:$G$48,2,FALSE)+ROW()-2))=Rebalance!$D$57,INDIRECT(\"a\" & (VLOOKUP(Rebalance!$D$57,$F$2:$G$48,2,FALSE)+ROW()-2)),\"\")","v":{"$error":"#N/A"}},{"$f":"IF(INDIRECT(\"c\" & (VLOOKUP(Rebalance!$D$58,$F$2:$G$48,2,FALSE)+ROW()-2))=Rebalance!$D$58,INDIRECT(\"a\" & (VLOOKUP(Rebalance!$D$58,$F$2:$G$48,2,FALSE)+ROW()-2)),\"\")","v":{"$error":"#N/A"}},{"$f":"IF(INDIRECT(\"c\" & (VLOOKUP(Rebalance!$D$59,$F$2:$G$48,2,FALSE)+ROW()-2))=Rebalance!$D$59,INDIRECT(\"a\" & (VLOOKUP(Rebalance!$D$59,$F$2:$G$48,2,FALSE)+ROW()-2)),\"\")","v":{"$error":"#N/A"}},{"$f":"IF(INDIRECT(\"c\" & (VLOOKUP(Rebalance!$D$60,$F$2:$G$48,2,FALSE)+ROW()-2))=Rebalance!$D$60,INDIRECT(\"a\" & (VLOOKUP(Rebalance!$D$60,$F$2:$G$48,2,FALSE)+ROW()-2)),\"\")","v":{"$error":"#N/A"}},{"$f":"IF(INDIRECT(\"c\" & (VLOOKUP(Rebalance!$D$61,$F$2:$G$48,2,FALSE)+ROW()-2))=Rebalance!$D$61,INDIRECT(\"a\" & (VLOOKUP(Rebalance!$D$61,$F$2:$G$48,2,FALSE)+ROW()-2)),\"\")","v":{"$error":"#N/A"}},{"$f":"IF(INDIRECT(\"c\" & (VLOOKUP(Rebalance!$D$62,$F$2:$G$48,2,FALSE)+ROW()-2))=Rebalance!$D$62,INDIRECT(\"a\" & (VLOOKUP(Rebalance!$D$62,$F$2:$G$48,2,FALSE)+ROW()-2)),\"\")","v":{"$error":"#N/A"}},{"$f":"IF(INDIRECT(\"c\" & (VLOOKUP(Rebalance!$D$63,$F$2:$G$48,2,FALSE)+ROW()-2))=Rebalance!$D$63,INDIRECT(\"a\" & (VLOOKUP(Rebalance!$D$63,$F$2:$G$48,2,FALSE)+ROW()-2)),\"\")","v":{"$error":"#N/A"}},{"$f":"IF(INDIRECT(\"c\" & (VLOOKUP(Rebalance!$D$64,$F$2:$G$48,2,FALSE)+ROW()-2))=Rebalance!$D$64,INDIRECT(\"a\" & (VLOOKUP(Rebalance!$D$64,$F$2:$G$48,2,FALSE)+ROW()-2)),\"\")","v":{"$error":"#N/A"}},{"$f":"IF(INDIRECT(\"c\" & (VLOOKUP(Rebalance!$D$65,$F$2:$G$48,2,FALSE)+ROW()-2))=Rebalance!$D$65,INDIRECT(\"a\" & (VLOOKUP(Rebalance!$D$65,$F$2:$G$48,2,FALSE)+ROW()-2)),\"\")","v":{"$error":"#N/A"}},{"$f":"IF(INDIRECT(\"c\" & (VLOOKUP(Rebalance!$D$66,$F$2:$G$48,2,FALSE)+ROW()-2))=Rebalance!$D$66,INDIRECT(\"a\" & (VLOOKUP(Rebalance!$D$66,$F$2:$G$48,2,FALSE)+ROW()-2)),\"\")","v":{"$error":"#N/A"}}]
["STANLIB Institutional Money Market Fund B1","STMM","STANLIB Collective Investments",{"$f":"ROW()","v":59},null,null,{"$f":"VLOOKUP(F59,$C$2:$D$599,2,FALSE)","v":{"$error":"#N/A"}},{"$f":"IF(INDIRECT(\"c\" & (VLOOKUP(Rebalance!$D$26,$F$2:$G$48,2,FALSE)+ROW()-2))=Rebalance!$D$26,INDIRECT(\"a\" & (VLOOKUP(Rebalance!$D$26,$F$2:$G$48,2,FALSE)+ROW()-2)),\"\")","v":{"$error":"#N/A"}},{"$f":"IF(INDIRECT(\"c\" & (VLOOKUP(Rebalance!$D$27,$F$2:$G$48,2,FALSE)+ROW()-2))=Rebalance!$D$27,INDIRECT(\"a\" & (VLOOKUP(Rebalance!$D$27,$F$2:$G$48,2,FALSE)+ROW()-2)),\"\")","v":{"$error":"#N/A"}},{"$f":"IF(INDIRECT(\"c\" & (VLOOKUP(Rebalance!$D$28,$F$2:$G$48,2,FALSE)+ROW()-2))=Rebalance!$D$28,INDIRECT(\"a\" & (VLOOKUP(Rebalance!$D$28,$F$2:$G$48,2,FALSE)+ROW()-2)),\"\")","v":{"$error":"#N/A"}},{"$f":"IF(INDIRECT(\"c\" & (VLOOKUP(Rebalance!$D$29,$F$2:$G$48,2,FALSE)+ROW()-2))=Rebalance!$D$29,INDIRECT(\"a\" & (VLOOKUP(Rebalance!$D$29,$F$2:$G$48,2,FALSE)+ROW()-2)),\"\")","v":{"$error":"#N/A"}},{"$f":"IF(INDIRECT(\"c\" & (VLOOKUP(Rebalance!$D$30,$F$2:$G$48,2,FALSE)+ROW()-2))=Rebalance!$D$30,INDIRECT(\"a\" & (VLOOKUP(Rebalance!$D$30,$F$2:$G$48,2,FALSE)+ROW()-2)),\"\")","v":{"$error":"#N/A"}},{"$f":"IF(INDIRECT(\"c\" & (VLOOKUP(Rebalance!$D$31,$F$2:$G$48,2,FALSE)+ROW()-2))=Rebalance!$D$31,INDIRECT(\"a\" & (VLOOKUP(Rebalance!$D$31,$F$2:$G$48,2,FALSE)+ROW()-2)),\"\")","v":{"$error":"#N/A"}},{"$f":"IF(INDIRECT(\"c\" & (VLOOKUP(Rebalance!$D$32,$F$2:$G$48,2,FALSE)+ROW()-2))=Rebalance!$D$32,INDIRECT(\"a\" & (VLOOKUP(Rebalance!$D$32,$F$2:$G$48,2,FALSE)+ROW()-2)),\"\")","v":{"$error":"#N/A"}},{"$f":"IF(INDIRECT(\"c\" & (VLOOKUP(Rebalance!$D$33,$F$2:$G$48,2,FALSE)+ROW()-2))=Rebalance!$D$33,INDIRECT(\"a\" & (VLOOKUP(Rebalance!$D$33,$F$2:$G$48,2,FALSE)+ROW()-2)),\"\")","v":{"$error":"#N/A"}},{"$f":"IF(INDIRECT(\"c\" & (VLOOKUP(Rebalance!$D$34,$F$2:$G$48,2,FALSE)+ROW()-2))=Rebalance!$D$34,INDIRECT(\"a\" & (VLOOKUP(Rebalance!$D$34,$F$2:$G$48,2,FALSE)+ROW()-2)),\"\")","v":{"$error":"#N/A"}},{"$f":"IF(INDIRECT(\"c\" & (VLOOKUP(Rebalance!$D$35,$F$2:$G$48,2,FALSE)+ROW()-2))=Rebalance!$D$35,INDIRECT(\"a\" & (VLOOKUP(Rebalance!$D$35,$F$2:$G$48,2,FALSE)+ROW()-2)),\"\")","v":{"$error":"#N/A"}},{"$f":"IF(INDIRECT(\"c\" & (VLOOKUP(Rebalance!$D$36,$F$2:$G$48,2,FALSE)+ROW()-2))=Rebalance!$D$36,INDIRECT(\"a\" & (VLOOKUP(Rebalance!$D$36,$F$2:$G$48,2,FALSE)+ROW()-2)),\"\")","v":{"$error":"#N/A"}},{"$f":"IF(INDIRECT(\"c\" & (VLOOKUP(Rebalance!$D$37,$F$2:$G$48,2,FALSE)+ROW()-2))=Rebalance!$D$37,INDIRECT(\"a\" & (VLOOKUP(Rebalance!$D$37,$F$2:$G$48,2,FALSE)+ROW()-2)),\"\")","v":{"$error":"#N/A"}},{"$f":"IF(INDIRECT(\"c\" & (VLOOKUP(Rebalance!$D$38,$F$2:$G$48,2,FALSE)+ROW()-2))=Rebalance!$D$38,INDIRECT(\"a\" & (VLOOKUP(Rebalance!$D$38,$F$2:$G$48,2,FALSE)+ROW()-2)),\"\")","v":{"$error":"#N/A"}},{"$f":"IF(INDIRECT(\"c\" & (VLOOKUP(Rebalance!$D$39,$F$2:$G$48,2,FALSE)+ROW()-2))=Rebalance!$D$39,INDIRECT(\"a\" & (VLOOKUP(Rebalance!$D$39,$F$2:$G$48,2,FALSE)+ROW()-2)),\"\")","v":{"$error":"#N/A"}},{"$f":"IF(INDIRECT(\"c\" & (VLOOKUP(Rebalance!$D$40,$F$2:$G$48,2,FALSE)+ROW()-2))=Rebalance!$D$40,INDIRECT(\"a\" & (VLOOKUP(Rebalance!$D$40,$F$2:$G$48,2,FALSE)+ROW()-2)),\"\")","v":{"$error":"#N/A"}},{"$f":"IF(INDIRECT(\"c\" & (VLOOKUP(Rebalance!$D$52,$F$2:$G$48,2,FALSE)+ROW()-2))=Rebalance!$D$52,INDIRECT(\"a\" & (VLOOKUP(Rebalance!$D$52,$F$2:$G$48,2,FALSE)+ROW()-2)),\"\")","v":{"$error":"#N/A"}},{"$f":"IF(INDIRECT(\"c\" & (VLOOKUP(Rebalance!$D$53,$F$2:$G$48,2,FALSE)+ROW()-2))=Rebalance!$D$53,INDIRECT(\"a\" & (VLOOKUP(Rebalance!$D$53,$F$2:$G$48,2,FALSE)+ROW()-2)),\"\")","v":{"$error":"#N/A"}},{"$f":"IF(INDIRECT(\"c\" & (VLOOKUP(Rebalance!$D$54,$F$2:$G$48,2,FALSE)+ROW()-2))=Rebalance!$D$54,INDIRECT(\"a\" & (VLOOKUP(Rebalance!$D$54,$F$2:$G$48,2,FALSE)+ROW()-2)),\"\")","v":{"$error":"#N/A"}},{"$f":"IF(INDIRECT(\"c\" & (VLOOKUP(Rebalance!$D$55,$F$2:$G$48,2,FALSE)+ROW()-2))=Rebalance!$D$55,INDIRECT(\"a\" & (VLOOKUP(Rebalance!$D$55,$F$2:$G$48,2,FALSE)+ROW()-2)),\"\")","v":{"$error":"#N/A"}},{"$f":"IF(INDIRECT(\"c\" & (VLOOKUP(Rebalance!$D$56,$F$2:$G$48,2,FALSE)+ROW()-2))=Rebalance!$D$56,INDIRECT(\"a\" & (VLOOKUP(Rebalance!$D$56,$F$2:$G$48,2,FALSE)+ROW()-2)),\"\")","v":{"$error":"#N/A"}},{"$f":"IF(INDIRECT(\"c\" & (VLOOKUP(Rebalance!$D$57,$F$2:$G$48,2,FALSE)+ROW()-2))=Rebalance!$D$57,INDIRECT(\"a\" & (VLOOKUP(Rebalance!$D$57,$F$2:$G$48,2,FALSE)+ROW()-2)),\"\")","v":{"$error":"#N/A"}},{"$f":"IF(INDIRECT(\"c\" & (VLOOKUP(Rebalance!$D$58,$F$2:$G$48,2,FALSE)+ROW()-2))=Rebalance!$D$58,INDIRECT(\"a\" & (VLOOKUP(Rebalance!$D$58,$F$2:$G$48,2,FALSE)+ROW()-2)),\"\")","v":{"$error":"#N/A"}},{"$f":"IF(INDIRECT(\"c\" & (VLOOKUP(Rebalance!$D$59,$F$2:$G$48,2,FALSE)+ROW()-2))=Rebalance!$D$59,INDIRECT(\"a\" & (VLOOKUP(Rebalance!$D$59,$F$2:$G$48,2,FALSE)+ROW()-2)),\"\")","v":{"$error":"#N/A"}},{"$f":"IF(INDIRECT(\"c\" & (VLOOKUP(Rebalance!$D$60,$F$2:$G$48,2,FALSE)+ROW()-2))=Rebalance!$D$60,INDIRECT(\"a\" & (VLOOKUP(Rebalance!$D$60,$F$2:$G$48,2,FALSE)+ROW()-2)),\"\")","v":{"$error":"#N/A"}},{"$f":"IF(INDIRECT(\"c\" & (VLOOKUP(Rebalance!$D$61,$F$2:$G$48,2,FALSE)+ROW()-2))=Rebalance!$D$61,INDIRECT(\"a\" & (VLOOKUP(Rebalance!$D$61,$F$2:$G$48,2,FALSE)+ROW()-2)),\"\")","v":{"$error":"#N/A"}},{"$f":"IF(INDIRECT(\"c\" & (VLOOKUP(Rebalance!$D$62,$F$2:$G$48,2,FALSE)+ROW()-2))=Rebalance!$D$62,INDIRECT(\"a\" & (VLOOKUP(Rebalance!$D$62,$F$2:$G$48,2,FALSE)+ROW()-2)),\"\")","v":{"$error":"#N/A"}},{"$f":"IF(INDIRECT(\"c\" & (VLOOKUP(Rebalance!$D$63,$F$2:$G$48,2,FALSE)+ROW()-2))=Rebalance!$D$63,INDIRECT(\"a\" & (VLOOKUP(Rebalance!$D$63,$F$2:$G$48,2,FALSE)+ROW()-2)),\"\")","v":{"$error":"#N/A"}},{"$f":"IF(INDIRECT(\"c\" & (VLOOKUP(Rebalance!$D$64,$F$2:$G$48,2,FALSE)+ROW()-2))=Rebalance!$D$64,INDIRECT(\"a\" & (VLOOKUP(Rebalance!$D$64,$F$2:$G$48,2,FALSE)+ROW()-2)),\"\")","v":{"$error":"#N/A"}},{"$f":"IF(INDIRECT(\"c\" & (VLOOKUP(Rebalance!$D$65,$F$2:$G$48,2,FALSE)+ROW()-2))=Rebalance!$D$65,INDIRECT(\"a\" & (VLOOKUP(Rebalance!$D$65,$F$2:$G$48,2,FALSE)+ROW()-2)),\"\")","v":{"$error":"#N/A"}},{"$f":"IF(INDIRECT(\"c\" & (VLOOKUP(Rebalance!$D$66,$F$2:$G$48,2,FALSE)+ROW()-2))=Rebalance!$D$66,INDIRECT(\"a\" & (VLOOKUP(Rebalance!$D$66,$F$2:$G$48,2,FALSE)+ROW()-2)),\"\")","v":{"$error":"#N/A"}}]
["STANLIB Institutional Money Market Fund B13","STMM","STANLIB Collective Investments",{"$f":"ROW()","v":60},null,null,{"$f":"VLOOKUP(F60,$C$2:$D$599,2,FALSE)","v":{"$error":"#N/A"}},{"$f":"IF(INDIRECT(\"c\" & (VLOOKUP(Rebalance!$D$26,$F$2:$G$48,2,FALSE)+ROW()-2))=Rebalance!$D$26,INDIRECT(\"a\" & (VLOOKUP(Rebalance!$D$26,$F$2:$G$48,2,FALSE)+ROW()-2)),\"\")","v":{"$error":"#N/A"}},{"$f":"IF(INDIRECT(\"c\" & (VLOOKUP(Rebalance!$D$27,$F$2:$G$48,2,FALSE)+ROW()-2))=Rebalance!$D$27,INDIRECT(\"a\" & (VLOOKUP(Rebalance!$D$27,$F$2:$G$48,2,FALSE)+ROW()-2)),\"\")","v":{"$error":"#N/A"}},{"$f":"IF(INDIRECT(\"c\" & (VLOOKUP(Rebalance!$D$28,$F$2:$G$48,2,FALSE)+ROW()-2))=Rebalance!$D$28,INDIRECT(\"a\" & (VLOOKUP(Rebalance!$D$28,$F$2:$G$48,2,FALSE)+ROW()-2)),\"\")","v":{"$error":"#N/A"}},{"$f":"IF(INDIRECT(\"c\" & (VLOOKUP(Rebalance!$D$29,$F$2:$G$48,2,FALSE)+ROW()-2))=Rebalance!$D$29,INDIRECT(\"a\" & (VLOOKUP(Rebalance!$D$29,$F$2:$G$48,2,FALSE)+ROW()-2)),\"\")","v":{"$error":"#N/A"}},{"$f":"IF(INDIRECT(\"c\" & (VLOOKUP(Rebalance!$D$30,$F$2:$G$48,2,FALSE)+ROW()-2))=Rebalance!$D$30,INDIRECT(\"a\" & (VLOOKUP(Rebalance!$D$30,$F$2:$G$48,2,FALSE)+ROW()-2)),\"\")","v":{"$error":"#N/A"}},{"$f":"IF(INDIRECT(\"c\" & (VLOOKUP(Rebalance!$D$31,$F$2:$G$48,2,FALSE)+ROW()-2))=Rebalance!$D$31,INDIRECT(\"a\" & (VLOOKUP(Rebalance!$D$31,$F$2:$G$48,2,FALSE)+ROW()-2)),\"\")","v":{"$error":"#N/A"}},{"$f":"IF(INDIRECT(\"c\" & (VLOOKUP(Rebalance!$D$32,$F$2:$G$48,2,FALSE)+ROW()-2))=Rebalance!$D$32,INDIRECT(\"a\" & (VLOOKUP(Rebalance!$D$32,$F$2:$G$48,2,FALSE)+ROW()-2)),\"\")","v":{"$error":"#N/A"}},{"$f":"IF(INDIRECT(\"c\" & (VLOOKUP(Rebalance!$D$33,$F$2:$G$48,2,FALSE)+ROW()-2))=Rebalance!$D$33,INDIRECT(\"a\" & (VLOOKUP(Rebalance!$D$33,$F$2:$G$48,2,FALSE)+ROW()-2)),\"\")","v":{"$error":"#N/A"}},{"$f":"IF(INDIRECT(\"c\" & (VLOOKUP(Rebalance!$D$34,$F$2:$G$48,2,FALSE)+ROW()-2))=Rebalance!$D$34,INDIRECT(\"a\" & (VLOOKUP(Rebalance!$D$34,$F$2:$G$48,2,FALSE)+ROW()-2)),\"\")","v":{"$error":"#N/A"}},{"$f":"IF(INDIRECT(\"c\" & (VLOOKUP(Rebalance!$D$35,$F$2:$G$48,2,FALSE)+ROW()-2))=Rebalance!$D$35,INDIRECT(\"a\" & (VLOOKUP(Rebalance!$D$35,$F$2:$G$48,2,FALSE)+ROW()-2)),\"\")","v":{"$error":"#N/A"}},{"$f":"IF(INDIRECT(\"c\" & (VLOOKUP(Rebalance!$D$36,$F$2:$G$48,2,FALSE)+ROW()-2))=Rebalance!$D$36,INDIRECT(\"a\" & (VLOOKUP(Rebalance!$D$36,$F$2:$G$48,2,FALSE)+ROW()-2)),\"\")","v":{"$error":"#N/A"}},{"$f":"IF(INDIRECT(\"c\" & (VLOOKUP(Rebalance!$D$37,$F$2:$G$48,2,FALSE)+ROW()-2))=Rebalance!$D$37,INDIRECT(\"a\" & (VLOOKUP(Rebalance!$D$37,$F$2:$G$48,2,FALSE)+ROW()-2)),\"\")","v":{"$error":"#N/A"}},{"$f":"IF(INDIRECT(\"c\" & (VLOOKUP(Rebalance!$D$38,$F$2:$G$48,2,FALSE)+ROW()-2))=Rebalance!$D$38,INDIRECT(\"a\" & (VLOOKUP(Rebalance!$D$38,$F$2:$G$48,2,FALSE)+ROW()-2)),\"\")","v":{"$error":"#N/A"}},{"$f":"IF(INDIRECT(\"c\" & (VLOOKUP(Rebalance!$D$39,$F$2:$G$48,2,FALSE)+ROW()-2))=Rebalance!$D$39,INDIRECT(\"a\" & (VLOOKUP(Rebalance!$D$39,$F$2:$G$48,2,FALSE)+ROW()-2)),\"\")","v":{"$error":"#N/A"}},{"$f":"IF(INDIRECT(\"c\" & (VLOOKUP(Rebalance!$D$40,$F$2:$G$48,2,FALSE)+ROW()-2))=Rebalance!$D$40,INDIRECT(\"a\" & (VLOOKUP(Rebalance!$D$40,$F$2:$G$48,2,FALSE)+ROW()-2)),\"\")","v":{"$error":"#N/A"}},{"$f":"IF(INDIRECT(\"c\" & (VLOOKUP(Rebalance!$D$52,$F$2:$G$48,2,FALSE)+ROW()-2))=Rebalance!$D$52,INDIRECT(\"a\" & (VLOOKUP(Rebalance!$D$52,$F$2:$G$48,2,FALSE)+ROW()-2)),\"\")","v":{"$error":"#N/A"}},{"$f":"IF(INDIRECT(\"c\" & (VLOOKUP(Rebalance!$D$53,$F$2:$G$48,2,FALSE)+ROW()-2))=Rebalance!$D$53,INDIRECT(\"a\" & (VLOOKUP(Rebalance!$D$53,$F$2:$G$48,2,FALSE)+ROW()-2)),\"\")","v":{"$error":"#N/A"}},{"$f":"IF(INDIRECT(\"c\" & (VLOOKUP(Rebalance!$D$54,$F$2:$G$48,2,FALSE)+ROW()-2))=Rebalance!$D$54,INDIRECT(\"a\" & (VLOOKUP(Rebalance!$D$54,$F$2:$G$48,2,FALSE)+ROW()-2)),\"\")","v":{"$error":"#N/A"}},{"$f":"IF(INDIRECT(\"c\" & (VLOOKUP(Rebalance!$D$55,$F$2:$G$48,2,FALSE)+ROW()-2))=Rebalance!$D$55,INDIRECT(\"a\" & (VLOOKUP(Rebalance!$D$55,$F$2:$G$48,2,FALSE)+ROW()-2)),\"\")","v":{"$error":"#N/A"}},{"$f":"IF(INDIRECT(\"c\" & (VLOOKUP(Rebalance!$D$56,$F$2:$G$48,2,FALSE)+ROW()-2))=Rebalance!$D$56,INDIRECT(\"a\" & (VLOOKUP(Rebalance!$D$56,$F$2:$G$48,2,FALSE)+ROW()-2)),\"\")","v":{"$error":"#N/A"}},{"$f":"IF(INDIRECT(\"c\" & (VLOOKUP(Rebalance!$D$57,$F$2:$G$48,2,FALSE)+ROW()-2))=Rebalance!$D$57,INDIRECT(\"a\" & (VLOOKUP(Rebalance!$D$57,$F$2:$G$48,2,FALSE)+ROW()-2)),\"\")","v":{"$error":"#N/A"}},{"$f":"IF(INDIRECT(\"c\" & (VLOOKUP(Rebalance!$D$58,$F$2:$G$48,2,FALSE)+ROW()-2))=Rebalance!$D$58,INDIRECT(\"a\" & (VLOOKUP(Rebalance!$D$58,$F$2:$G$48,2,FALSE)+ROW()-2)),\"\")","v":{"$error":"#N/A"}},{"$f":"IF(INDIRECT(\"c\" & (VLOOKUP(Rebalance!$D$59,$F$2:$G$48,2,FALSE)+ROW()-2))=Rebalance!$D$59,INDIRECT(\"a\" & (VLOOKUP(Rebalance!$D$59,$F$2:$G$48,2,FALSE)+ROW()-2)),\"\")","v":{"$error":"#N/A"}},{"$f":"IF(INDIRECT(\"c\" & (VLOOKUP(Rebalance!$D$60,$F$2:$G$48,2,FALSE)+ROW()-2))=Rebalance!$D$60,INDIRECT(\"a\" & (VLOOKUP(Rebalance!$D$60,$F$2:$G$48,2,FALSE)+ROW()-2)),\"\")","v":{"$error":"#N/A"}},{"$f":"IF(INDIRECT(\"c\" & (VLOOKUP(Rebalance!$D$61,$F$2:$G$48,2,FALSE)+ROW()-2))=Rebalance!$D$61,INDIRECT(\"a\" & (VLOOKUP(Rebalance!$D$61,$F$2:$G$48,2,FALSE)+ROW()-2)),\"\")","v":{"$error":"#N/A"}},{"$f":"IF(INDIRECT(\"c\" & (VLOOKUP(Rebalance!$D$62,$F$2:$G$48,2,FALSE)+ROW()-2))=Rebalance!$D$62,INDIRECT(\"a\" & (VLOOKUP(Rebalance!$D$62,$F$2:$G$48,2,FALSE)+ROW()-2)),\"\")","v":{"$error":"#N/A"}},{"$f":"IF(INDIRECT(\"c\" & (VLOOKUP(Rebalance!$D$63,$F$2:$G$48,2,FALSE)+ROW()-2))=Rebalance!$D$63,INDIRECT(\"a\" & (VLOOKUP(Rebalance!$D$63,$F$2:$G$48,2,FALSE)+ROW()-2)),\"\")","v":{"$error":"#N/A"}},{"$f":"IF(INDIRECT(\"c\" & (VLOOKUP(Rebalance!$D$64,$F$2:$G$48,2,FALSE)+ROW()-2))=Rebalance!$D$64,INDIRECT(\"a\" & (VLOOKUP(Rebalance!$D$64,$F$2:$G$48,2,FALSE)+ROW()-2)),\"\")","v":{"$error":"#N/A"}},{"$f":"IF(INDIRECT(\"c\" & (VLOOKUP(Rebalance!$D$65,$F$2:$G$48,2,FALSE)+ROW()-2))=Rebalance!$D$65,INDIRECT(\"a\" & (VLOOKUP(Rebalance!$D$65,$F$2:$G$48,2,FALSE)+ROW()-2)),\"\")","v":{"$error":"#N/A"}},{"$f":"IF(INDIRECT(\"c\" & (VLOOKUP(Rebalance!$D$66,$F$2:$G$48,2,FALSE)+ROW()-2))=Rebalance!$D$66,INDIRECT(\"a\" & (VLOOKUP(Rebalance!$D$66,$F$2:$G$48,2,FALSE)+ROW()-2)),\"\")","v":{"$error":"#N/A"}}]
["STANLIB MM Absolute Income B1","STI1","STANLIB Collective Investments",{"$f":"ROW()","v":61},null,null,{"$f":"VLOOKUP(F61,$C$2:$D$599,2,FALSE)","v":{"$error":"#N/A"}},{"$f":"IF(INDIRECT(\"c\" & (VLOOKUP(Rebalance!$D$26,$F$2:$G$48,2,FALSE)+ROW()-2))=Rebalance!$D$26,INDIRECT(\"a\" & (VLOOKUP(Rebalance!$D$26,$F$2:$G$48,2,FALSE)+ROW()-2)),\"\")","v":{"$error":"#N/A"}},{"$f":"IF(INDIRECT(\"c\" & (VLOOKUP(Rebalance!$D$27,$F$2:$G$48,2,FALSE)+ROW()-2))=Rebalance!$D$27,INDIRECT(\"a\" & (VLOOKUP(Rebalance!$D$27,$F$2:$G$48,2,FALSE)+ROW()-2)),\"\")","v":{"$error":"#N/A"}},{"$f":"IF(INDIRECT(\"c\" & (VLOOKUP(Rebalance!$D$28,$F$2:$G$48,2,FALSE)+ROW()-2))=Rebalance!$D$28,INDIRECT(\"a\" & (VLOOKUP(Rebalance!$D$28,$F$2:$G$48,2,FALSE)+ROW()-2)),\"\")","v":{"$error":"#N/A"}},{"$f":"IF(INDIRECT(\"c\" & (VLOOKUP(Rebalance!$D$29,$F$2:$G$48,2,FALSE)+ROW()-2))=Rebalance!$D$29,INDIRECT(\"a\" & (VLOOKUP(Rebalance!$D$29,$F$2:$G$48,2,FALSE)+ROW()-2)),\"\")","v":{"$error":"#N/A"}},{"$f":"IF(INDIRECT(\"c\" & (VLOOKUP(Rebalance!$D$30,$F$2:$G$48,2,FALSE)+ROW()-2))=Rebalance!$D$30,INDIRECT(\"a\" & (VLOOKUP(Rebalance!$D$30,$F$2:$G$48,2,FALSE)+ROW()-2)),\"\")","v":{"$error":"#N/A"}},{"$f":"IF(INDIRECT(\"c\" & (VLOOKUP(Rebalance!$D$31,$F$2:$G$48,2,FALSE)+ROW()-2))=Rebalance!$D$31,INDIRECT(\"a\" & (VLOOKUP(Rebalance!$D$31,$F$2:$G$48,2,FALSE)+ROW()-2)),\"\")","v":{"$error":"#N/A"}},{"$f":"IF(INDIRECT(\"c\" & (VLOOKUP(Rebalance!$D$32,$F$2:$G$48,2,FALSE)+ROW()-2))=Rebalance!$D$32,INDIRECT(\"a\" & (VLOOKUP(Rebalance!$D$32,$F$2:$G$48,2,FALSE)+ROW()-2)),\"\")","v":{"$error":"#N/A"}},{"$f":"IF(INDIRECT(\"c\" & (VLOOKUP(Rebalance!$D$33,$F$2:$G$48,2,FALSE)+ROW()-2))=Rebalance!$D$33,INDIRECT(\"a\" & (VLOOKUP(Rebalance!$D$33,$F$2:$G$48,2,FALSE)+ROW()-2)),\"\")","v":{"$error":"#N/A"}},{"$f":"IF(INDIRECT(\"c\" & (VLOOKUP(Rebalance!$D$34,$F$2:$G$48,2,FALSE)+ROW()-2))=Rebalance!$D$34,INDIRECT(\"a\" & (VLOOKUP(Rebalance!$D$34,$F$2:$G$48,2,FALSE)+ROW()-2)),\"\")","v":{"$error":"#N/A"}},{"$f":"IF(INDIRECT(\"c\" & (VLOOKUP(Rebalance!$D$35,$F$2:$G$48,2,FALSE)+ROW()-2))=Rebalance!$D$35,INDIRECT(\"a\" & (VLOOKUP(Rebalance!$D$35,$F$2:$G$48,2,FALSE)+ROW()-2)),\"\")","v":{"$error":"#N/A"}},{"$f":"IF(INDIRECT(\"c\" & (VLOOKUP(Rebalance!$D$36,$F$2:$G$48,2,FALSE)+ROW()-2))=Rebalance!$D$36,INDIRECT(\"a\" & (VLOOKUP(Rebalance!$D$36,$F$2:$G$48,2,FALSE)+ROW()-2)),\"\")","v":{"$error":"#N/A"}},{"$f":"IF(INDIRECT(\"c\" & (VLOOKUP(Rebalance!$D$37,$F$2:$G$48,2,FALSE)+ROW()-2))=Rebalance!$D$37,INDIRECT(\"a\" & (VLOOKUP(Rebalance!$D$37,$F$2:$G$48,2,FALSE)+ROW()-2)),\"\")","v":{"$error":"#N/A"}},{"$f":"IF(INDIRECT(\"c\" & (VLOOKUP(Rebalance!$D$38,$F$2:$G$48,2,FALSE)+ROW()-2))=Rebalance!$D$38,INDIRECT(\"a\" & (VLOOKUP(Rebalance!$D$38,$F$2:$G$48,2,FALSE)+ROW()-2)),\"\")","v":{"$error":"#N/A"}},{"$f":"IF(INDIRECT(\"c\" & (VLOOKUP(Rebalance!$D$39,$F$2:$G$48,2,FALSE)+ROW()-2))=Rebalance!$D$39,INDIRECT(\"a\" & (VLOOKUP(Rebalance!$D$39,$F$2:$G$48,2,FALSE)+ROW()-2)),\"\")","v":{"$error":"#N/A"}},{"$f":"IF(INDIRECT(\"c\" & (VLOOKUP(Rebalance!$D$40,$F$2:$G$48,2,FALSE)+ROW()-2))=Rebalance!$D$40,INDIRECT(\"a\" & (VLOOKUP(Rebalance!$D$40,$F$2:$G$48,2,FALSE)+ROW()-2)),\"\")","v":{"$error":"#N/A"}},{"$f":"IF(INDIRECT(\"c\" & (VLOOKUP(Rebalance!$D$52,$F$2:$G$48,2,FALSE)+ROW()-2))=Rebalance!$D$52,INDIRECT(\"a\" & (VLOOKUP(Rebalance!$D$52,$F$2:$G$48,2,FALSE)+ROW()-2)),\"\")","v":{"$error":"#N/A"}},{"$f":"IF(INDIRECT(\"c\" & (VLOOKUP(Rebalance!$D$53,$F$2:$G$48,2,FALSE)+ROW()-2))=Rebalance!$D$53,INDIRECT(\"a\" & (VLOOKUP(Rebalance!$D$53,$F$2:$G$48,2,FALSE)+ROW()-2)),\"\")","v":{"$error":"#N/A"}},{"$f":"IF(INDIRECT(\"c\" & (VLOOKUP(Rebalance!$D$54,$F$2:$G$48,2,FALSE)+ROW()-2))=Rebalance!$D$54,INDIRECT(\"a\" & (VLOOKUP(Rebalance!$D$54,$F$2:$G$48,2,FALSE)+ROW()-2)),\"\")","v":{"$error":"#N/A"}},{"$f":"IF(INDIRECT(\"c\" & (VLOOKUP(Rebalance!$D$55,$F$2:$G$48,2,FALSE)+ROW()-2))=Rebalance!$D$55,INDIRECT(\"a\" & (VLOOKUP(Rebalance!$D$55,$F$2:$G$48,2,FALSE)+ROW()-2)),\"\")","v":{"$error":"#N/A"}},{"$f":"IF(INDIRECT(\"c\" & (VLOOKUP(Rebalance!$D$56,$F$2:$G$48,2,FALSE)+ROW()-2))=Rebalance!$D$56,INDIRECT(\"a\" & (VLOOKUP(Rebalance!$D$56,$F$2:$G$48,2,FALSE)+ROW()-2)),\"\")","v":{"$error":"#N/A"}},{"$f":"IF(INDIRECT(\"c\" & (VLOOKUP(Rebalance!$D$57,$F$2:$G$48,2,FALSE)+ROW()-2))=Rebalance!$D$57,INDIRECT(\"a\" & (VLOOKUP(Rebalance!$D$57,$F$2:$G$48,2,FALSE)+ROW()-2)),\"\")","v":{"$error":"#N/A"}},{"$f":"IF(INDIRECT(\"c\" & (VLOOKUP(Rebalance!$D$58,$F$2:$G$48,2,FALSE)+ROW()-2))=Rebalance!$D$58,INDIRECT(\"a\" & (VLOOKUP(Rebalance!$D$58,$F$2:$G$48,2,FALSE)+ROW()-2)),\"\")","v":{"$error":"#N/A"}},{"$f":"IF(INDIRECT(\"c\" & (VLOOKUP(Rebalance!$D$59,$F$2:$G$48,2,FALSE)+ROW()-2))=Rebalance!$D$59,INDIRECT(\"a\" & (VLOOKUP(Rebalance!$D$59,$F$2:$G$48,2,FALSE)+ROW()-2)),\"\")","v":{"$error":"#N/A"}},{"$f":"IF(INDIRECT(\"c\" & (VLOOKUP(Rebalance!$D$60,$F$2:$G$48,2,FALSE)+ROW()-2))=Rebalance!$D$60,INDIRECT(\"a\" & (VLOOKUP(Rebalance!$D$60,$F$2:$G$48,2,FALSE)+ROW()-2)),\"\")","v":{"$error":"#N/A"}},{"$f":"IF(INDIRECT(\"c\" & (VLOOKUP(Rebalance!$D$61,$F$2:$G$48,2,FALSE)+ROW()-2))=Rebalance!$D$61,INDIRECT(\"a\" & (VLOOKUP(Rebalance!$D$61,$F$2:$G$48,2,FALSE)+ROW()-2)),\"\")","v":{"$error":"#N/A"}},{"$f":"IF(INDIRECT(\"c\" & (VLOOKUP(Rebalance!$D$62,$F$2:$G$48,2,FALSE)+ROW()-2))=Rebalance!$D$62,INDIRECT(\"a\" & (VLOOKUP(Rebalance!$D$62,$F$2:$G$48,2,FALSE)+ROW()-2)),\"\")","v":{"$error":"#N/A"}},{"$f":"IF(INDIRECT(\"c\" & (VLOOKUP(Rebalance!$D$63,$F$2:$G$48,2,FALSE)+ROW()-2))=Rebalance!$D$63,INDIRECT(\"a\" & (VLOOKUP(Rebalance!$D$63,$F$2:$G$48,2,FALSE)+ROW()-2)),\"\")","v":{"$error":"#N/A"}},{"$f":"IF(INDIRECT(\"c\" & (VLOOKUP(Rebalance!$D$64,$F$2:$G$48,2,FALSE)+ROW()-2))=Rebalance!$D$64,INDIRECT(\"a\" & (VLOOKUP(Rebalance!$D$64,$F$2:$G$48,2,FALSE)+ROW()-2)),\"\")","v":{"$error":"#N/A"}},{"$f":"IF(INDIRECT(\"c\" & (VLOOKUP(Rebalance!$D$65,$F$2:$G$48,2,FALSE)+ROW()-2))=Rebalance!$D$65,INDIRECT(\"a\" & (VLOOKUP(Rebalance!$D$65,$F$2:$G$48,2,FALSE)+ROW()-2)),\"\")","v":{"$error":"#N/A"}},{"$f":"IF(INDIRECT(\"c\" & (VLOOKUP(Rebalance!$D$66,$F$2:$G$48,2,FALSE)+ROW()-2))=Rebalance!$D$66,INDIRECT(\"a\" & (VLOOKUP(Rebalance!$D$66,$F$2:$G$48,2,FALSE)+ROW()-2)),\"\")","v":{"$error":"#N/A"}}]
["STANLIB MM Balanced Fund B1","STH1","STANLIB Collective Investments",{"$f":"ROW()","v":62},null,null,{"$f":"VLOOKUP(F62,$C$2:$D$599,2,FALSE)","v":{"$error":"#N/A"}},{"$f":"IF(INDIRECT(\"c\" & (VLOOKUP(Rebalance!$D$26,$F$2:$G$48,2,FALSE)+ROW()-2))=Rebalance!$D$26,INDIRECT(\"a\" & (VLOOKUP(Rebalance!$D$26,$F$2:$G$48,2,FALSE)+ROW()-2)),\"\")","v":{"$error":"#N/A"}},{"$f":"IF(INDIRECT(\"c\" & (VLOOKUP(Rebalance!$D$27,$F$2:$G$48,2,FALSE)+ROW()-2))=Rebalance!$D$27,INDIRECT(\"a\" & (VLOOKUP(Rebalance!$D$27,$F$2:$G$48,2,FALSE)+ROW()-2)),\"\")","v":{"$error":"#N/A"}},{"$f":"IF(INDIRECT(\"c\" & (VLOOKUP(Rebalance!$D$28,$F$2:$G$48,2,FALSE)+ROW()-2))=Rebalance!$D$28,INDIRECT(\"a\" & (VLOOKUP(Rebalance!$D$28,$F$2:$G$48,2,FALSE)+ROW()-2)),\"\")","v":{"$error":"#N/A"}},{"$f":"IF(INDIRECT(\"c\" & (VLOOKUP(Rebalance!$D$29,$F$2:$G$48,2,FALSE)+ROW()-2))=Rebalance!$D$29,INDIRECT(\"a\" & (VLOOKUP(Rebalance!$D$29,$F$2:$G$48,2,FALSE)+ROW()-2)),\"\")","v":{"$error":"#N/A"}},{"$f":"IF(INDIRECT(\"c\" & (VLOOKUP(Rebalance!$D$30,$F$2:$G$48,2,FALSE)+ROW()-2))=Rebalance!$D$30,INDIRECT(\"a\" & (VLOOKUP(Rebalance!$D$30,$F$2:$G$48,2,FALSE)+ROW()-2)),\"\")","v":{"$error":"#N/A"}},{"$f":"IF(INDIRECT(\"c\" & (VLOOKUP(Rebalance!$D$31,$F$2:$G$48,2,FALSE)+ROW()-2))=Rebalance!$D$31,INDIRECT(\"a\" & (VLOOKUP(Rebalance!$D$31,$F$2:$G$48,2,FALSE)+ROW()-2)),\"\")","v":{"$error":"#N/A"}},{"$f":"IF(INDIRECT(\"c\" & (VLOOKUP(Rebalance!$D$32,$F$2:$G$48,2,FALSE)+ROW()-2))=Rebalance!$D$32,INDIRECT(\"a\" & (VLOOKUP(Rebalance!$D$32,$F$2:$G$48,2,FALSE)+ROW()-2)),\"\")","v":{"$error":"#N/A"}},{"$f":"IF(INDIRECT(\"c\" & (VLOOKUP(Rebalance!$D$33,$F$2:$G$48,2,FALSE)+ROW()-2))=Rebalance!$D$33,INDIRECT(\"a\" & (VLOOKUP(Rebalance!$D$33,$F$2:$G$48,2,FALSE)+ROW()-2)),\"\")","v":{"$error":"#N/A"}},{"$f":"IF(INDIRECT(\"c\" & (VLOOKUP(Rebalance!$D$34,$F$2:$G$48,2,FALSE)+ROW()-2))=Rebalance!$D$34,INDIRECT(\"a\" & (VLOOKUP(Rebalance!$D$34,$F$2:$G$48,2,FALSE)+ROW()-2)),\"\")","v":{"$error":"#N/A"}},{"$f":"IF(INDIRECT(\"c\" & (VLOOKUP(Rebalance!$D$35,$F$2:$G$48,2,FALSE)+ROW()-2))=Rebalance!$D$35,INDIRECT(\"a\" & (VLOOKUP(Rebalance!$D$35,$F$2:$G$48,2,FALSE)+ROW()-2)),\"\")","v":{"$error":"#N/A"}},{"$f":"IF(INDIRECT(\"c\" & (VLOOKUP(Rebalance!$D$36,$F$2:$G$48,2,FALSE)+ROW()-2))=Rebalance!$D$36,INDIRECT(\"a\" & (VLOOKUP(Rebalance!$D$36,$F$2:$G$48,2,FALSE)+ROW()-2)),\"\")","v":{"$error":"#N/A"}},{"$f":"IF(INDIRECT(\"c\" & (VLOOKUP(Rebalance!$D$37,$F$2:$G$48,2,FALSE)+ROW()-2))=Rebalance!$D$37,INDIRECT(\"a\" & (VLOOKUP(Rebalance!$D$37,$F$2:$G$48,2,FALSE)+ROW()-2)),\"\")","v":{"$error":"#N/A"}},{"$f":"IF(INDIRECT(\"c\" & (VLOOKUP(Rebalance!$D$38,$F$2:$G$48,2,FALSE)+ROW()-2))=Rebalance!$D$38,INDIRECT(\"a\" & (VLOOKUP(Rebalance!$D$38,$F$2:$G$48,2,FALSE)+ROW()-2)),\"\")","v":{"$error":"#N/A"}},{"$f":"IF(INDIRECT(\"c\" & (VLOOKUP(Rebalance!$D$39,$F$2:$G$48,2,FALSE)+ROW()-2))=Rebalance!$D$39,INDIRECT(\"a\" & (VLOOKUP(Rebalance!$D$39,$F$2:$G$48,2,FALSE)+ROW()-2)),\"\")","v":{"$error":"#N/A"}},{"$f":"IF(INDIRECT(\"c\" & (VLOOKUP(Rebalance!$D$40,$F$2:$G$48,2,FALSE)+ROW()-2))=Rebalance!$D$40,INDIRECT(\"a\" & (VLOOKUP(Rebalance!$D$40,$F$2:$G$48,2,FALSE)+ROW()-2)),\"\")","v":{"$error":"#N/A"}},{"$f":"IF(INDIRECT(\"c\" & (VLOOKUP(Rebalance!$D$52,$F$2:$G$48,2,FALSE)+ROW()-2))=Rebalance!$D$52,INDIRECT(\"a\" & (VLOOKUP(Rebalance!$D$52,$F$2:$G$48,2,FALSE)+ROW()-2)),\"\")","v":{"$error":"#N/A"}},{"$f":"IF(INDIRECT(\"c\" & (VLOOKUP(Rebalance!$D$53,$F$2:$G$48,2,FALSE)+ROW()-2))=Rebalance!$D$53,INDIRECT(\"a\" & (VLOOKUP(Rebalance!$D$53,$F$2:$G$48,2,FALSE)+ROW()-2)),\"\")","v":{"$error":"#N/A"}},{"$f":"IF(INDIRECT(\"c\" & (VLOOKUP(Rebalance!$D$54,$F$2:$G$48,2,FALSE)+ROW()-2))=Rebalance!$D$54,INDIRECT(\"a\" & (VLOOKUP(Rebalance!$D$54,$F$2:$G$48,2,FALSE)+ROW()-2)),\"\")","v":{"$error":"#N/A"}},{"$f":"IF(INDIRECT(\"c\" & (VLOOKUP(Rebalance!$D$55,$F$2:$G$48,2,FALSE)+ROW()-2))=Rebalance!$D$55,INDIRECT(\"a\" & (VLOOKUP(Rebalance!$D$55,$F$2:$G$48,2,FALSE)+ROW()-2)),\"\")","v":{"$error":"#N/A"}},{"$f":"IF(INDIRECT(\"c\" & (VLOOKUP(Rebalance!$D$56,$F$2:$G$48,2,FALSE)+ROW()-2))=Rebalance!$D$56,INDIRECT(\"a\" & (VLOOKUP(Rebalance!$D$56,$F$2:$G$48,2,FALSE)+ROW()-2)),\"\")","v":{"$error":"#N/A"}},{"$f":"IF(INDIRECT(\"c\" & (VLOOKUP(Rebalance!$D$57,$F$2:$G$48,2,FALSE)+ROW()-2))=Rebalance!$D$57,INDIRECT(\"a\" & (VLOOKUP(Rebalance!$D$57,$F$2:$G$48,2,FALSE)+ROW()-2)),\"\")","v":{"$error":"#N/A"}},{"$f":"IF(INDIRECT(\"c\" & (VLOOKUP(Rebalance!$D$58,$F$2:$G$48,2,FALSE)+ROW()-2))=Rebalance!$D$58,INDIRECT(\"a\" & (VLOOKUP(Rebalance!$D$58,$F$2:$G$48,2,FALSE)+ROW()-2)),\"\")","v":{"$error":"#N/A"}},{"$f":"IF(INDIRECT(\"c\" & (VLOOKUP(Rebalance!$D$59,$F$2:$G$48,2,FALSE)+ROW()-2))=Rebalance!$D$59,INDIRECT(\"a\" & (VLOOKUP(Rebalance!$D$59,$F$2:$G$48,2,FALSE)+ROW()-2)),\"\")","v":{"$error":"#N/A"}},{"$f":"IF(INDIRECT(\"c\" & (VLOOKUP(Rebalance!$D$60,$F$2:$G$48,2,FALSE)+ROW()-2))=Rebalance!$D$60,INDIRECT(\"a\" & (VLOOKUP(Rebalance!$D$60,$F$2:$G$48,2,FALSE)+ROW()-2)),\"\")","v":{"$error":"#N/A"}},{"$f":"IF(INDIRECT(\"c\" & (VLOOKUP(Rebalance!$D$61,$F$2:$G$48,2,FALSE)+ROW()-2))=Rebalance!$D$61,INDIRECT(\"a\" & (VLOOKUP(Rebalance!$D$61,$F$2:$G$48,2,FALSE)+ROW()-2)),\"\")","v":{"$error":"#N/A"}},{"$f":"IF(INDIRECT(\"c\" & (VLOOKUP(Rebalance!$D$62,$F$2:$G$48,2,FALSE)+ROW()-2))=Rebalance!$D$62,INDIRECT(\"a\" & (VLOOKUP(Rebalance!$D$62,$F$2:$G$48,2,FALSE)+ROW()-2)),\"\")","v":{"$error":"#N/A"}},{"$f":"IF(INDIRECT(\"c\" & (VLOOKUP(Rebalance!$D$63,$F$2:$G$48,2,FALSE)+ROW()-2))=Rebalance!$D$63,INDIRECT(\"a\" & (VLOOKUP(Rebalance!$D$63,$F$2:$G$48,2,FALSE)+ROW()-2)),\"\")","v":{"$error":"#N/A"}},{"$f":"IF(INDIRECT(\"c\" & (VLOOKUP(Rebalance!$D$64,$F$2:$G$48,2,FALSE)+ROW()-2))=Rebalance!$D$64,INDIRECT(\"a\" & (VLOOKUP(Rebalance!$D$64,$F$2:$G$48,2,FALSE)+ROW()-2)),\"\")","v":{"$error":"#N/A"}},{"$f":"IF(INDIRECT(\"c\" & (VLOOKUP(Rebalance!$D$65,$F$2:$G$48,2,FALSE)+ROW()-2))=Rebalance!$D$65,INDIRECT(\"a\" & (VLOOKUP(Rebalance!$D$65,$F$2:$G$48,2,FALSE)+ROW()-2)),\"\")","v":{"$error":"#N/A"}},{"$f":"IF(INDIRECT(\"c\" & (VLOOKUP(Rebalance!$D$66,$F$2:$G$48,2,FALSE)+ROW()-2))=Rebalance!$D$66,INDIRECT(\"a\" & (VLOOKUP(Rebalance!$D$66,$F$2:$G$48,2,FALSE)+ROW()-2)),\"\")","v":{"$error":"#N/A"}}]
["STANLIB MM Equity Fund B1","GDSE","STANLIB Collective Investments",{"$f":"ROW()","v":63},null,null,{"$f":"VLOOKUP(F63,$C$2:$D$599,2,FALSE)","v":{"$error":"#N/A"}},{"$f":"IF(INDIRECT(\"c\" & (VLOOKUP(Rebalance!$D$26,$F$2:$G$48,2,FALSE)+ROW()-2))=Rebalance!$D$26,INDIRECT(\"a\" & (VLOOKUP(Rebalance!$D$26,$F$2:$G$48,2,FALSE)+ROW()-2)),\"\")","v":{"$error":"#N/A"}},{"$f":"IF(INDIRECT(\"c\" & (VLOOKUP(Rebalance!$D$27,$F$2:$G$48,2,FALSE)+ROW()-2))=Rebalance!$D$27,INDIRECT(\"a\" & (VLOOKUP(Rebalance!$D$27,$F$2:$G$48,2,FALSE)+ROW()-2)),\"\")","v":{"$error":"#N/A"}},{"$f":"IF(INDIRECT(\"c\" & (VLOOKUP(Rebalance!$D$28,$F$2:$G$48,2,FALSE)+ROW()-2))=Rebalance!$D$28,INDIRECT(\"a\" & (VLOOKUP(Rebalance!$D$28,$F$2:$G$48,2,FALSE)+ROW()-2)),\"\")","v":{"$error":"#N/A"}},{"$f":"IF(INDIRECT(\"c\" & (VLOOKUP(Rebalance!$D$29,$F$2:$G$48,2,FALSE)+ROW()-2))=Rebalance!$D$29,INDIRECT(\"a\" & (VLOOKUP(Rebalance!$D$29,$F$2:$G$48,2,FALSE)+ROW()-2)),\"\")","v":{"$error":"#N/A"}},{"$f":"IF(INDIRECT(\"c\" & (VLOOKUP(Rebalance!$D$30,$F$2:$G$48,2,FALSE)+ROW()-2))=Rebalance!$D$30,INDIRECT(\"a\" & (VLOOKUP(Rebalance!$D$30,$F$2:$G$48,2,FALSE)+ROW()-2)),\"\")","v":{"$error":"#N/A"}},{"$f":"IF(INDIRECT(\"c\" & (VLOOKUP(Rebalance!$D$31,$F$2:$G$48,2,FALSE)+ROW()-2))=Rebalance!$D$31,INDIRECT(\"a\" & (VLOOKUP(Rebalance!$D$31,$F$2:$G$48,2,FALSE)+ROW()-2)),\"\")","v":{"$error":"#N/A"}},{"$f":"IF(INDIRECT(\"c\" & (VLOOKUP(Rebalance!$D$32,$F$2:$G$48,2,FALSE)+ROW()-2))=Rebalance!$D$32,INDIRECT(\"a\" & (VLOOKUP(Rebalance!$D$32,$F$2:$G$48,2,FALSE)+ROW()-2)),\"\")","v":{"$error":"#N/A"}},{"$f":"IF(INDIRECT(\"c\" & (VLOOKUP(Rebalance!$D$33,$F$2:$G$48,2,FALSE)+ROW()-2))=Rebalance!$D$33,INDIRECT(\"a\" & (VLOOKUP(Rebalance!$D$33,$F$2:$G$48,2,FALSE)+ROW()-2)),\"\")","v":{"$error":"#N/A"}},{"$f":"IF(INDIRECT(\"c\" & (VLOOKUP(Rebalance!$D$34,$F$2:$G$48,2,FALSE)+ROW()-2))=Rebalance!$D$34,INDIRECT(\"a\" & (VLOOKUP(Rebalance!$D$34,$F$2:$G$48,2,FALSE)+ROW()-2)),\"\")","v":{"$error":"#N/A"}},{"$f":"IF(INDIRECT(\"c\" & (VLOOKUP(Rebalance!$D$35,$F$2:$G$48,2,FALSE)+ROW()-2))=Rebalance!$D$35,INDIRECT(\"a\" & (VLOOKUP(Rebalance!$D$35,$F$2:$G$48,2,FALSE)+ROW()-2)),\"\")","v":{"$error":"#N/A"}},{"$f":"IF(INDIRECT(\"c\" & (VLOOKUP(Rebalance!$D$36,$F$2:$G$48,2,FALSE)+ROW()-2))=Rebalance!$D$36,INDIRECT(\"a\" & (VLOOKUP(Rebalance!$D$36,$F$2:$G$48,2,FALSE)+ROW()-2)),\"\")","v":{"$error":"#N/A"}},{"$f":"IF(INDIRECT(\"c\" & (VLOOKUP(Rebalance!$D$37,$F$2:$G$48,2,FALSE)+ROW()-2))=Rebalance!$D$37,INDIRECT(\"a\" & (VLOOKUP(Rebalance!$D$37,$F$2:$G$48,2,FALSE)+ROW()-2)),\"\")","v":{"$error":"#N/A"}},{"$f":"IF(INDIRECT(\"c\" & (VLOOKUP(Rebalance!$D$38,$F$2:$G$48,2,FALSE)+ROW()-2))=Rebalance!$D$38,INDIRECT(\"a\" & (VLOOKUP(Rebalance!$D$38,$F$2:$G$48,2,FALSE)+ROW()-2)),\"\")","v":{"$error":"#N/A"}},{"$f":"IF(INDIRECT(\"c\" & (VLOOKUP(Rebalance!$D$39,$F$2:$G$48,2,FALSE)+ROW()-2))=Rebalance!$D$39,INDIRECT(\"a\" & (VLOOKUP(Rebalance!$D$39,$F$2:$G$48,2,FALSE)+ROW()-2)),\"\")","v":{"$error":"#N/A"}},{"$f":"IF(INDIRECT(\"c\" & (VLOOKUP(Rebalance!$D$40,$F$2:$G$48,2,FALSE)+ROW()-2))=Rebalance!$D$40,INDIRECT(\"a\" & (VLOOKUP(Rebalance!$D$40,$F$2:$G$48,2,FALSE)+ROW()-2)),\"\")","v":{"$error":"#N/A"}},{"$f":"IF(INDIRECT(\"c\" & (VLOOKUP(Rebalance!$D$52,$F$2:$G$48,2,FALSE)+ROW()-2))=Rebalance!$D$52,INDIRECT(\"a\" & (VLOOKUP(Rebalance!$D$52,$F$2:$G$48,2,FALSE)+ROW()-2)),\"\")","v":{"$error":"#N/A"}},{"$f":"IF(INDIRECT(\"c\" & (VLOOKUP(Rebalance!$D$53,$F$2:$G$48,2,FALSE)+ROW()-2))=Rebalance!$D$53,INDIRECT(\"a\" & (VLOOKUP(Rebalance!$D$53,$F$2:$G$48,2,FALSE)+ROW()-2)),\"\")","v":{"$error":"#N/A"}},{"$f":"IF(INDIRECT(\"c\" & (VLOOKUP(Rebalance!$D$54,$F$2:$G$48,2,FALSE)+ROW()-2))=Rebalance!$D$54,INDIRECT(\"a\" & (VLOOKUP(Rebalance!$D$54,$F$2:$G$48,2,FALSE)+ROW()-2)),\"\")","v":{"$error":"#N/A"}},{"$f":"IF(INDIRECT(\"c\" & (VLOOKUP(Rebalance!$D$55,$F$2:$G$48,2,FALSE)+ROW()-2))=Rebalance!$D$55,INDIRECT(\"a\" & (VLOOKUP(Rebalance!$D$55,$F$2:$G$48,2,FALSE)+ROW()-2)),\"\")","v":{"$error":"#N/A"}},{"$f":"IF(INDIRECT(\"c\" & (VLOOKUP(Rebalance!$D$56,$F$2:$G$48,2,FALSE)+ROW()-2))=Rebalance!$D$56,INDIRECT(\"a\" & (VLOOKUP(Rebalance!$D$56,$F$2:$G$48,2,FALSE)+ROW()-2)),\"\")","v":{"$error":"#N/A"}},{"$f":"IF(INDIRECT(\"c\" & (VLOOKUP(Rebalance!$D$57,$F$2:$G$48,2,FALSE)+ROW()-2))=Rebalance!$D$57,INDIRECT(\"a\" & (VLOOKUP(Rebalance!$D$57,$F$2:$G$48,2,FALSE)+ROW()-2)),\"\")","v":{"$error":"#N/A"}},{"$f":"IF(INDIRECT(\"c\" & (VLOOKUP(Rebalance!$D$58,$F$2:$G$48,2,FALSE)+ROW()-2))=Rebalance!$D$58,INDIRECT(\"a\" & (VLOOKUP(Rebalance!$D$58,$F$2:$G$48,2,FALSE)+ROW()-2)),\"\")","v":{"$error":"#N/A"}},{"$f":"IF(INDIRECT(\"c\" & (VLOOKUP(Rebalance!$D$59,$F$2:$G$48,2,FALSE)+ROW()-2))=Rebalance!$D$59,INDIRECT(\"a\" & (VLOOKUP(Rebalance!$D$59,$F$2:$G$48,2,FALSE)+ROW()-2)),\"\")","v":{"$error":"#N/A"}},{"$f":"IF(INDIRECT(\"c\" & (VLOOKUP(Rebalance!$D$60,$F$2:$G$48,2,FALSE)+ROW()-2))=Rebalance!$D$60,INDIRECT(\"a\" & (VLOOKUP(Rebalance!$D$60,$F$2:$G$48,2,FALSE)+ROW()-2)),\"\")","v":{"$error":"#N/A"}},{"$f":"IF(INDIRECT(\"c\" & (VLOOKUP(Rebalance!$D$61,$F$2:$G$48,2,FALSE)+ROW()-2))=Rebalance!$D$61,INDIRECT(\"a\" & (VLOOKUP(Rebalance!$D$61,$F$2:$G$48,2,FALSE)+ROW()-2)),\"\")","v":{"$error":"#N/A"}},{"$f":"IF(INDIRECT(\"c\" & (VLOOKUP(Rebalance!$D$62,$F$2:$G$48,2,FALSE)+ROW()-2))=Rebalance!$D$62,INDIRECT(\"a\" & (VLOOKUP(Rebalance!$D$62,$F$2:$G$48,2,FALSE)+ROW()-2)),\"\")","v":{"$error":"#N/A"}},{"$f":"IF(INDIRECT(\"c\" & (VLOOKUP(Rebalance!$D$63,$F$2:$G$48,2,FALSE)+ROW()-2))=Rebalance!$D$63,INDIRECT(\"a\" & (VLOOKUP(Rebalance!$D$63,$F$2:$G$48,2,FALSE)+ROW()-2)),\"\")","v":{"$error":"#N/A"}},{"$f":"IF(INDIRECT(\"c\" & (VLOOKUP(Rebalance!$D$64,$F$2:$G$48,2,FALSE)+ROW()-2))=Rebalance!$D$64,INDIRECT(\"a\" & (VLOOKUP(Rebalance!$D$64,$F$2:$G$48,2,FALSE)+ROW()-2)),\"\")","v":{"$error":"#N/A"}},{"$f":"IF(INDIRECT(\"c\" & (VLOOKUP(Rebalance!$D$65,$F$2:$G$48,2,FALSE)+ROW()-2))=Rebalance!$D$65,INDIRECT(\"a\" & (VLOOKUP(Rebalance!$D$65,$F$2:$G$48,2,FALSE)+ROW()-2)),\"\")","v":{"$error":"#N/A"}},{"$f":"IF(INDIRECT(\"c\" & (VLOOKUP(Rebalance!$D$66,$F$2:$G$48,2,FALSE)+ROW()-2))=Rebalance!$D$66,INDIRECT(\"a\" & (VLOOKUP(Rebalance!$D$66,$F$2:$G$48,2,FALSE)+ROW()-2)),\"\")","v":{"$error":"#N/A"}}]
["STANLIB MM Flexible Property Fund B1","SMCB","STANLIB Collective Investments",{"$f":"ROW()","v":64},null,null,{"$f":"VLOOKUP(F64,$C$2:$D$599,2,FALSE)","v":{"$error":"#N/A"}},{"$f":"IF(INDIRECT(\"c\" & (VLOOKUP(Rebalance!$D$26,$F$2:$G$48,2,FALSE)+ROW()-2))=Rebalance!$D$26,INDIRECT(\"a\" & (VLOOKUP(Rebalance!$D$26,$F$2:$G$48,2,FALSE)+ROW()-2)),\"\")","v":{"$error":"#N/A"}},{"$f":"IF(INDIRECT(\"c\" & (VLOOKUP(Rebalance!$D$27,$F$2:$G$48,2,FALSE)+ROW()-2))=Rebalance!$D$27,INDIRECT(\"a\" & (VLOOKUP(Rebalance!$D$27,$F$2:$G$48,2,FALSE)+ROW()-2)),\"\")","v":{"$error":"#N/A"}},{"$f":"IF(INDIRECT(\"c\" & (VLOOKUP(Rebalance!$D$28,$F$2:$G$48,2,FALSE)+ROW()-2))=Rebalance!$D$28,INDIRECT(\"a\" & (VLOOKUP(Rebalance!$D$28,$F$2:$G$48,2,FALSE)+ROW()-2)),\"\")","v":{"$error":"#N/A"}},{"$f":"IF(INDIRECT(\"c\" & (VLOOKUP(Rebalance!$D$29,$F$2:$G$48,2,FALSE)+ROW()-2))=Rebalance!$D$29,INDIRECT(\"a\" & (VLOOKUP(Rebalance!$D$29,$F$2:$G$48,2,FALSE)+ROW()-2)),\"\")","v":{"$error":"#N/A"}},{"$f":"IF(INDIRECT(\"c\" & (VLOOKUP(Rebalance!$D$30,$F$2:$G$48,2,FALSE)+ROW()-2))=Rebalance!$D$30,INDIRECT(\"a\" & (VLOOKUP(Rebalance!$D$30,$F$2:$G$48,2,FALSE)+ROW()-2)),\"\")","v":{"$error":"#N/A"}},{"$f":"IF(INDIRECT(\"c\" & (VLOOKUP(Rebalance!$D$31,$F$2:$G$48,2,FALSE)+ROW()-2))=Rebalance!$D$31,INDIRECT(\"a\" & (VLOOKUP(Rebalance!$D$31,$F$2:$G$48,2,FALSE)+ROW()-2)),\"\")","v":{"$error":"#N/A"}},{"$f":"IF(INDIRECT(\"c\" & (VLOOKUP(Rebalance!$D$32,$F$2:$G$48,2,FALSE)+ROW()-2))=Rebalance!$D$32,INDIRECT(\"a\" & (VLOOKUP(Rebalance!$D$32,$F$2:$G$48,2,FALSE)+ROW()-2)),\"\")","v":{"$error":"#N/A"}},{"$f":"IF(INDIRECT(\"c\" & (VLOOKUP(Rebalance!$D$33,$F$2:$G$48,2,FALSE)+ROW()-2))=Rebalance!$D$33,INDIRECT(\"a\" & (VLOOKUP(Rebalance!$D$33,$F$2:$G$48,2,FALSE)+ROW()-2)),\"\")","v":{"$error":"#N/A"}},{"$f":"IF(INDIRECT(\"c\" & (VLOOKUP(Rebalance!$D$34,$F$2:$G$48,2,FALSE)+ROW()-2))=Rebalance!$D$34,INDIRECT(\"a\" & (VLOOKUP(Rebalance!$D$34,$F$2:$G$48,2,FALSE)+ROW()-2)),\"\")","v":{"$error":"#N/A"}},{"$f":"IF(INDIRECT(\"c\" & (VLOOKUP(Rebalance!$D$35,$F$2:$G$48,2,FALSE)+ROW()-2))=Rebalance!$D$35,INDIRECT(\"a\" & (VLOOKUP(Rebalance!$D$35,$F$2:$G$48,2,FALSE)+ROW()-2)),\"\")","v":{"$error":"#N/A"}},{"$f":"IF(INDIRECT(\"c\" & (VLOOKUP(Rebalance!$D$36,$F$2:$G$48,2,FALSE)+ROW()-2))=Rebalance!$D$36,INDIRECT(\"a\" & (VLOOKUP(Rebalance!$D$36,$F$2:$G$48,2,FALSE)+ROW()-2)),\"\")","v":{"$error":"#N/A"}},{"$f":"IF(INDIRECT(\"c\" & (VLOOKUP(Rebalance!$D$37,$F$2:$G$48,2,FALSE)+ROW()-2))=Rebalance!$D$37,INDIRECT(\"a\" & (VLOOKUP(Rebalance!$D$37,$F$2:$G$48,2,FALSE)+ROW()-2)),\"\")","v":{"$error":"#N/A"}},{"$f":"IF(INDIRECT(\"c\" & (VLOOKUP(Rebalance!$D$38,$F$2:$G$48,2,FALSE)+ROW()-2))=Rebalance!$D$38,INDIRECT(\"a\" & (VLOOKUP(Rebalance!$D$38,$F$2:$G$48,2,FALSE)+ROW()-2)),\"\")","v":{"$error":"#N/A"}},{"$f":"IF(INDIRECT(\"c\" & (VLOOKUP(Rebalance!$D$39,$F$2:$G$48,2,FALSE)+ROW()-2))=Rebalance!$D$39,INDIRECT(\"a\" & (VLOOKUP(Rebalance!$D$39,$F$2:$G$48,2,FALSE)+ROW()-2)),\"\")","v":{"$error":"#N/A"}},{"$f":"IF(INDIRECT(\"c\" & (VLOOKUP(Rebalance!$D$40,$F$2:$G$48,2,FALSE)+ROW()-2))=Rebalance!$D$40,INDIRECT(\"a\" & (VLOOKUP(Rebalance!$D$40,$F$2:$G$48,2,FALSE)+ROW()-2)),\"\")","v":{"$error":"#N/A"}},{"$f":"IF(INDIRECT(\"c\" & (VLOOKUP(Rebalance!$D$52,$F$2:$G$48,2,FALSE)+ROW()-2))=Rebalance!$D$52,INDIRECT(\"a\" & (VLOOKUP(Rebalance!$D$52,$F$2:$G$48,2,FALSE)+ROW()-2)),\"\")","v":{"$error":"#N/A"}},{"$f":"IF(INDIRECT(\"c\" & (VLOOKUP(Rebalance!$D$53,$F$2:$G$48,2,FALSE)+ROW()-2))=Rebalance!$D$53,INDIRECT(\"a\" & (VLOOKUP(Rebalance!$D$53,$F$2:$G$48,2,FALSE)+ROW()-2)),\"\")","v":{"$error":"#N/A"}},{"$f":"IF(INDIRECT(\"c\" & (VLOOKUP(Rebalance!$D$54,$F$2:$G$48,2,FALSE)+ROW()-2))=Rebalance!$D$54,INDIRECT(\"a\" & (VLOOKUP(Rebalance!$D$54,$F$2:$G$48,2,FALSE)+ROW()-2)),\"\")","v":{"$error":"#N/A"}},{"$f":"IF(INDIRECT(\"c\" & (VLOOKUP(Rebalance!$D$55,$F$2:$G$48,2,FALSE)+ROW()-2))=Rebalance!$D$55,INDIRECT(\"a\" & (VLOOKUP(Rebalance!$D$55,$F$2:$G$48,2,FALSE)+ROW()-2)),\"\")","v":{"$error":"#N/A"}},{"$f":"IF(INDIRECT(\"c\" & (VLOOKUP(Rebalance!$D$56,$F$2:$G$48,2,FALSE)+ROW()-2))=Rebalance!$D$56,INDIRECT(\"a\" & (VLOOKUP(Rebalance!$D$56,$F$2:$G$48,2,FALSE)+ROW()-2)),\"\")","v":{"$error":"#N/A"}},{"$f":"IF(INDIRECT(\"c\" & (VLOOKUP(Rebalance!$D$57,$F$2:$G$48,2,FALSE)+ROW()-2))=Rebalance!$D$57,INDIRECT(\"a\" & (VLOOKUP(Rebalance!$D$57,$F$2:$G$48,2,FALSE)+ROW()-2)),\"\")","v":{"$error":"#N/A"}},{"$f":"IF(INDIRECT(\"c\" & (VLOOKUP(Rebalance!$D$58,$F$2:$G$48,2,FALSE)+ROW()-2))=Rebalance!$D$58,INDIRECT(\"a\" & (VLOOKUP(Rebalance!$D$58,$F$2:$G$48,2,FALSE)+ROW()-2)),\"\")","v":{"$error":"#N/A"}},{"$f":"IF(INDIRECT(\"c\" & (VLOOKUP(Rebalance!$D$59,$F$2:$G$48,2,FALSE)+ROW()-2))=Rebalance!$D$59,INDIRECT(\"a\" & (VLOOKUP(Rebalance!$D$59,$F$2:$G$48,2,FALSE)+ROW()-2)),\"\")","v":{"$error":"#N/A"}},{"$f":"IF(INDIRECT(\"c\" & (VLOOKUP(Rebalance!$D$60,$F$2:$G$48,2,FALSE)+ROW()-2))=Rebalance!$D$60,INDIRECT(\"a\" & (VLOOKUP(Rebalance!$D$60,$F$2:$G$48,2,FALSE)+ROW()-2)),\"\")","v":{"$error":"#N/A"}},{"$f":"IF(INDIRECT(\"c\" & (VLOOKUP(Rebalance!$D$61,$F$2:$G$48,2,FALSE)+ROW()-2))=Rebalance!$D$61,INDIRECT(\"a\" & (VLOOKUP(Rebalance!$D$61,$F$2:$G$48,2,FALSE)+ROW()-2)),\"\")","v":{"$error":"#N/A"}},{"$f":"IF(INDIRECT(\"c\" & (VLOOKUP(Rebalance!$D$62,$F$2:$G$48,2,FALSE)+ROW()-2))=Rebalance!$D$62,INDIRECT(\"a\" & (VLOOKUP(Rebalance!$D$62,$F$2:$G$48,2,FALSE)+ROW()-2)),\"\")","v":{"$error":"#N/A"}},{"$f":"IF(INDIRECT(\"c\" & (VLOOKUP(Rebalance!$D$63,$F$2:$G$48,2,FALSE)+ROW()-2))=Rebalance!$D$63,INDIRECT(\"a\" & (VLOOKUP(Rebalance!$D$63,$F$2:$G$48,2,FALSE)+ROW()-2)),\"\")","v":{"$error":"#N/A"}},{"$f":"IF(INDIRECT(\"c\" & (VLOOKUP(Rebalance!$D$64,$F$2:$G$48,2,FALSE)+ROW()-2))=Rebalance!$D$64,INDIRECT(\"a\" & (VLOOKUP(Rebalance!$D$64,$F$2:$G$48,2,FALSE)+ROW()-2)),\"\")","v":{"$error":"#N/A"}},{"$f":"IF(INDIRECT(\"c\" & (VLOOKUP(Rebalance!$D$65,$F$2:$G$48,2,FALSE)+ROW()-2))=Rebalance!$D$65,INDIRECT(\"a\" & (VLOOKUP(Rebalance!$D$65,$F$2:$G$48,2,FALSE)+ROW()-2)),\"\")","v":{"$error":"#N/A"}},{"$f":"IF(INDIRECT(\"c\" & (VLOOKUP(Rebalance!$D$66,$F$2:$G$48,2,FALSE)+ROW()-2))=Rebalance!$D$66,INDIRECT(\"a\" & (VLOOKUP(Rebalance!$D$66,$F$2:$G$48,2,FALSE)+ROW()-2)),\"\")","v":{"$error":"#N/A"}}]
["STANLIB MM Global Equity Feeder Fund B1","LIMC","STANLIB Collective Investments",{"$f":"ROW()","v":65},null,null,{"$f":"VLOOKUP(F65,$C$2:$D$599,2,FALSE)","v":{"$error":"#N/A"}},{"$f":"IF(INDIRECT(\"c\" & (VLOOKUP(Rebalance!$D$26,$F$2:$G$48,2,FALSE)+ROW()-2))=Rebalance!$D$26,INDIRECT(\"a\" & (VLOOKUP(Rebalance!$D$26,$F$2:$G$48,2,FALSE)+ROW()-2)),\"\")","v":{"$error":"#N/A"}},{"$f":"IF(INDIRECT(\"c\" & (VLOOKUP(Rebalance!$D$27,$F$2:$G$48,2,FALSE)+ROW()-2))=Rebalance!$D$27,INDIRECT(\"a\" & (VLOOKUP(Rebalance!$D$27,$F$2:$G$48,2,FALSE)+ROW()-2)),\"\")","v":{"$error":"#N/A"}},{"$f":"IF(INDIRECT(\"c\" & (VLOOKUP(Rebalance!$D$28,$F$2:$G$48,2,FALSE)+ROW()-2))=Rebalance!$D$28,INDIRECT(\"a\" & (VLOOKUP(Rebalance!$D$28,$F$2:$G$48,2,FALSE)+ROW()-2)),\"\")","v":{"$error":"#N/A"}},{"$f":"IF(INDIRECT(\"c\" & (VLOOKUP(Rebalance!$D$29,$F$2:$G$48,2,FALSE)+ROW()-2))=Rebalance!$D$29,INDIRECT(\"a\" & (VLOOKUP(Rebalance!$D$29,$F$2:$G$48,2,FALSE)+ROW()-2)),\"\")","v":{"$error":"#N/A"}},{"$f":"IF(INDIRECT(\"c\" & (VLOOKUP(Rebalance!$D$30,$F$2:$G$48,2,FALSE)+ROW()-2))=Rebalance!$D$30,INDIRECT(\"a\" & (VLOOKUP(Rebalance!$D$30,$F$2:$G$48,2,FALSE)+ROW()-2)),\"\")","v":{"$error":"#N/A"}},{"$f":"IF(INDIRECT(\"c\" & (VLOOKUP(Rebalance!$D$31,$F$2:$G$48,2,FALSE)+ROW()-2))=Rebalance!$D$31,INDIRECT(\"a\" & (VLOOKUP(Rebalance!$D$31,$F$2:$G$48,2,FALSE)+ROW()-2)),\"\")","v":{"$error":"#N/A"}},{"$f":"IF(INDIRECT(\"c\" & (VLOOKUP(Rebalance!$D$32,$F$2:$G$48,2,FALSE)+ROW()-2))=Rebalance!$D$32,INDIRECT(\"a\" & (VLOOKUP(Rebalance!$D$32,$F$2:$G$48,2,FALSE)+ROW()-2)),\"\")","v":{"$error":"#N/A"}},{"$f":"IF(INDIRECT(\"c\" & (VLOOKUP(Rebalance!$D$33,$F$2:$G$48,2,FALSE)+ROW()-2))=Rebalance!$D$33,INDIRECT(\"a\" & (VLOOKUP(Rebalance!$D$33,$F$2:$G$48,2,FALSE)+ROW()-2)),\"\")","v":{"$error":"#N/A"}},{"$f":"IF(INDIRECT(\"c\" & (VLOOKUP(Rebalance!$D$34,$F$2:$G$48,2,FALSE)+ROW()-2))=Rebalance!$D$34,INDIRECT(\"a\" & (VLOOKUP(Rebalance!$D$34,$F$2:$G$48,2,FALSE)+ROW()-2)),\"\")","v":{"$error":"#N/A"}},{"$f":"IF(INDIRECT(\"c\" & (VLOOKUP(Rebalance!$D$35,$F$2:$G$48,2,FALSE)+ROW()-2))=Rebalance!$D$35,INDIRECT(\"a\" & (VLOOKUP(Rebalance!$D$35,$F$2:$G$48,2,FALSE)+ROW()-2)),\"\")","v":{"$error":"#N/A"}},{"$f":"IF(INDIRECT(\"c\" & (VLOOKUP(Rebalance!$D$36,$F$2:$G$48,2,FALSE)+ROW()-2))=Rebalance!$D$36,INDIRECT(\"a\" & (VLOOKUP(Rebalance!$D$36,$F$2:$G$48,2,FALSE)+ROW()-2)),\"\")","v":{"$error":"#N/A"}},{"$f":"IF(INDIRECT(\"c\" & (VLOOKUP(Rebalance!$D$37,$F$2:$G$48,2,FALSE)+ROW()-2))=Rebalance!$D$37,INDIRECT(\"a\" & (VLOOKUP(Rebalance!$D$37,$F$2:$G$48,2,FALSE)+ROW()-2)),\"\")","v":{"$error":"#N/A"}},{"$f":"IF(INDIRECT(\"c\" & (VLOOKUP(Rebalance!$D$38,$F$2:$G$48,2,FALSE)+ROW()-2))=Rebalance!$D$38,INDIRECT(\"a\" & (VLOOKUP(Rebalance!$D$38,$F$2:$G$48,2,FALSE)+ROW()-2)),\"\")","v":{"$error":"#N/A"}},{"$f":"IF(INDIRECT(\"c\" & (VLOOKUP(Rebalance!$D$39,$F$2:$G$48,2,FALSE)+ROW()-2))=Rebalance!$D$39,INDIRECT(\"a\" & (VLOOKUP(Rebalance!$D$39,$F$2:$G$48,2,FALSE)+ROW()-2)),\"\")","v":{"$error":"#N/A"}},{"$f":"IF(INDIRECT(\"c\" & (VLOOKUP(Rebalance!$D$40,$F$2:$G$48,2,FALSE)+ROW()-2))=Rebalance!$D$40,INDIRECT(\"a\" & (VLOOKUP(Rebalance!$D$40,$F$2:$G$48,2,FALSE)+ROW()-2)),\"\")","v":{"$error":"#N/A"}},{"$f":"IF(INDIRECT(\"c\" & (VLOOKUP(Rebalance!$D$52,$F$2:$G$48,2,FALSE)+ROW()-2))=Rebalance!$D$52,INDIRECT(\"a\" & (VLOOKUP(Rebalance!$D$52,$F$2:$G$48,2,FALSE)+ROW()-2)),\"\")","v":{"$error":"#N/A"}},{"$f":"IF(INDIRECT(\"c\" & (VLOOKUP(Rebalance!$D$53,$F$2:$G$48,2,FALSE)+ROW()-2))=Rebalance!$D$53,INDIRECT(\"a\" & (VLOOKUP(Rebalance!$D$53,$F$2:$G$48,2,FALSE)+ROW()-2)),\"\")","v":{"$error":"#N/A"}},{"$f":"IF(INDIRECT(\"c\" & (VLOOKUP(Rebalance!$D$54,$F$2:$G$48,2,FALSE)+ROW()-2))=Rebalance!$D$54,INDIRECT(\"a\" & (VLOOKUP(Rebalance!$D$54,$F$2:$G$48,2,FALSE)+ROW()-2)),\"\")","v":{"$error":"#N/A"}},{"$f":"IF(INDIRECT(\"c\" & (VLOOKUP(Rebalance!$D$55,$F$2:$G$48,2,FALSE)+ROW()-2))=Rebalance!$D$55,INDIRECT(\"a\" & (VLOOKUP(Rebalance!$D$55,$F$2:$G$48,2,FALSE)+ROW()-2)),\"\")","v":{"$error":"#N/A"}},{"$f":"IF(INDIRECT(\"c\" & (VLOOKUP(Rebalance!$D$56,$F$2:$G$48,2,FALSE)+ROW()-2))=Rebalance!$D$56,INDIRECT(\"a\" & (VLOOKUP(Rebalance!$D$56,$F$2:$G$48,2,FALSE)+ROW()-2)),\"\")","v":{"$error":"#N/A"}},{"$f":"IF(INDIRECT(\"c\" & (VLOOKUP(Rebalance!$D$57,$F$2:$G$48,2,FALSE)+ROW()-2))=Rebalance!$D$57,INDIRECT(\"a\" & (VLOOKUP(Rebalance!$D$57,$F$2:$G$48,2,FALSE)+ROW()-2)),\"\")","v":{"$error":"#N/A"}},{"$f":"IF(INDIRECT(\"c\" & (VLOOKUP(Rebalance!$D$58,$F$2:$G$48,2,FALSE)+ROW()-2))=Rebalance!$D$58,INDIRECT(\"a\" & (VLOOKUP(Rebalance!$D$58,$F$2:$G$48,2,FALSE)+ROW()-2)),\"\")","v":{"$error":"#N/A"}},{"$f":"IF(INDIRECT(\"c\" & (VLOOKUP(Rebalance!$D$59,$F$2:$G$48,2,FALSE)+ROW()-2))=Rebalance!$D$59,INDIRECT(\"a\" & (VLOOKUP(Rebalance!$D$59,$F$2:$G$48,2,FALSE)+ROW()-2)),\"\")","v":{"$error":"#N/A"}},{"$f":"IF(INDIRECT(\"c\" & (VLOOKUP(Rebalance!$D$60,$F$2:$G$48,2,FALSE)+ROW()-2))=Rebalance!$D$60,INDIRECT(\"a\" & (VLOOKUP(Rebalance!$D$60,$F$2:$G$48,2,FALSE)+ROW()-2)),\"\")","v":{"$error":"#N/A"}},{"$f":"IF(INDIRECT(\"c\" & (VLOOKUP(Rebalance!$D$61,$F$2:$G$48,2,FALSE)+ROW()-2))=Rebalance!$D$61,INDIRECT(\"a\" & (VLOOKUP(Rebalance!$D$61,$F$2:$G$48,2,FALSE)+ROW()-2)),\"\")","v":{"$error":"#N/A"}},{"$f":"IF(INDIRECT(\"c\" & (VLOOKUP(Rebalance!$D$62,$F$2:$G$48,2,FALSE)+ROW()-2))=Rebalance!$D$62,INDIRECT(\"a\" & (VLOOKUP(Rebalance!$D$62,$F$2:$G$48,2,FALSE)+ROW()-2)),\"\")","v":{"$error":"#N/A"}},{"$f":"IF(INDIRECT(\"c\" & (VLOOKUP(Rebalance!$D$63,$F$2:$G$48,2,FALSE)+ROW()-2))=Rebalance!$D$63,INDIRECT(\"a\" & (VLOOKUP(Rebalance!$D$63,$F$2:$G$48,2,FALSE)+ROW()-2)),\"\")","v":{"$error":"#N/A"}},{"$f":"IF(INDIRECT(\"c\" & (VLOOKUP(Rebalance!$D$64,$F$2:$G$48,2,FALSE)+ROW()-2))=Rebalance!$D$64,INDIRECT(\"a\" & (VLOOKUP(Rebalance!$D$64,$F$2:$G$48,2,FALSE)+ROW()-2)),\"\")","v":{"$error":"#N/A"}},{"$f":"IF(INDIRECT(\"c\" & (VLOOKUP(Rebalance!$D$65,$F$2:$G$48,2,FALSE)+ROW()-2))=Rebalance!$D$65,INDIRECT(\"a\" & (VLOOKUP(Rebalance!$D$65,$F$2:$G$48,2,FALSE)+ROW()-2)),\"\")","v":{"$error":"#N/A"}},{"$f":"IF(INDIRECT(\"c\" & (VLOOKUP(Rebalance!$D$66,$F$2:$G$48,2,FALSE)+ROW()-2))=Rebalance!$D$66,INDIRECT(\"a\" & (VLOOKUP(Rebalance!$D$66,$F$2:$G$48,2,FALSE)+ROW()-2)),\"\")","v":{"$error":"#N/A"}}]
["STANLIB MM Low Equity FOF B1","STL1","STANLIB Collective Investments",{"$f":"ROW()","v":66},null,null,{"$f":"VLOOKUP(F66,$C$2:$D$599,2,FALSE)","v":{"$error":"#N/A"}},{"$f":"IF(INDIRECT(\"c\" & (VLOOKUP(Rebalance!$D$26,$F$2:$G$48,2,FALSE)+ROW()-2))=Rebalance!$D$26,INDIRECT(\"a\" & (VLOOKUP(Rebalance!$D$26,$F$2:$G$48,2,FALSE)+ROW()-2)),\"\")","v":{"$error":"#N/A"}},{"$f":"IF(INDIRECT(\"c\" & (VLOOKUP(Rebalance!$D$27,$F$2:$G$48,2,FALSE)+ROW()-2))=Rebalance!$D$27,INDIRECT(\"a\" & (VLOOKUP(Rebalance!$D$27,$F$2:$G$48,2,FALSE)+ROW()-2)),\"\")","v":{"$error":"#N/A"}},{"$f":"IF(INDIRECT(\"c\" & (VLOOKUP(Rebalance!$D$28,$F$2:$G$48,2,FALSE)+ROW()-2))=Rebalance!$D$28,INDIRECT(\"a\" & (VLOOKUP(Rebalance!$D$28,$F$2:$G$48,2,FALSE)+ROW()-2)),\"\")","v":{"$error":"#N/A"}},{"$f":"IF(INDIRECT(\"c\" & (VLOOKUP(Rebalance!$D$29,$F$2:$G$48,2,FALSE)+ROW()-2))=Rebalance!$D$29,INDIRECT(\"a\" & (VLOOKUP(Rebalance!$D$29,$F$2:$G$48,2,FALSE)+ROW()-2)),\"\")","v":{"$error":"#N/A"}},{"$f":"IF(INDIRECT(\"c\" & (VLOOKUP(Rebalance!$D$30,$F$2:$G$48,2,FALSE)+ROW()-2))=Rebalance!$D$30,INDIRECT(\"a\" & (VLOOKUP(Rebalance!$D$30,$F$2:$G$48,2,FALSE)+ROW()-2)),\"\")","v":{"$error":"#N/A"}},{"$f":"IF(INDIRECT(\"c\" & (VLOOKUP(Rebalance!$D$31,$F$2:$G$48,2,FALSE)+ROW()-2))=Rebalance!$D$31,INDIRECT(\"a\" & (VLOOKUP(Rebalance!$D$31,$F$2:$G$48,2,FALSE)+ROW()-2)),\"\")","v":{"$error":"#N/A"}},{"$f":"IF(INDIRECT(\"c\" & (VLOOKUP(Rebalance!$D$32,$F$2:$G$48,2,FALSE)+ROW()-2))=Rebalance!$D$32,INDIRECT(\"a\" & (VLOOKUP(Rebalance!$D$32,$F$2:$G$48,2,FALSE)+ROW()-2)),\"\")","v":{"$error":"#N/A"}},{"$f":"IF(INDIRECT(\"c\" & (VLOOKUP(Rebalance!$D$33,$F$2:$G$48,2,FALSE)+ROW()-2))=Rebalance!$D$33,INDIRECT(\"a\" & (VLOOKUP(Rebalance!$D$33,$F$2:$G$48,2,FALSE)+ROW()-2)),\"\")","v":{"$error":"#N/A"}},{"$f":"IF(INDIRECT(\"c\" & (VLOOKUP(Rebalance!$D$34,$F$2:$G$48,2,FALSE)+ROW()-2))=Rebalance!$D$34,INDIRECT(\"a\" & (VLOOKUP(Rebalance!$D$34,$F$2:$G$48,2,FALSE)+ROW()-2)),\"\")","v":{"$error":"#N/A"}},{"$f":"IF(INDIRECT(\"c\" & (VLOOKUP(Rebalance!$D$35,$F$2:$G$48,2,FALSE)+ROW()-2))=Rebalance!$D$35,INDIRECT(\"a\" & (VLOOKUP(Rebalance!$D$35,$F$2:$G$48,2,FALSE)+ROW()-2)),\"\")","v":{"$error":"#N/A"}},{"$f":"IF(INDIRECT(\"c\" & (VLOOKUP(Rebalance!$D$36,$F$2:$G$48,2,FALSE)+ROW()-2))=Rebalance!$D$36,INDIRECT(\"a\" & (VLOOKUP(Rebalance!$D$36,$F$2:$G$48,2,FALSE)+ROW()-2)),\"\")","v":{"$error":"#N/A"}},{"$f":"IF(INDIRECT(\"c\" & (VLOOKUP(Rebalance!$D$37,$F$2:$G$48,2,FALSE)+ROW()-2))=Rebalance!$D$37,INDIRECT(\"a\" & (VLOOKUP(Rebalance!$D$37,$F$2:$G$48,2,FALSE)+ROW()-2)),\"\")","v":{"$error":"#N/A"}},{"$f":"IF(INDIRECT(\"c\" & (VLOOKUP(Rebalance!$D$38,$F$2:$G$48,2,FALSE)+ROW()-2))=Rebalance!$D$38,INDIRECT(\"a\" & (VLOOKUP(Rebalance!$D$38,$F$2:$G$48,2,FALSE)+ROW()-2)),\"\")","v":{"$error":"#N/A"}},{"$f":"IF(INDIRECT(\"c\" & (VLOOKUP(Rebalance!$D$39,$F$2:$G$48,2,FALSE)+ROW()-2))=Rebalance!$D$39,INDIRECT(\"a\" & (VLOOKUP(Rebalance!$D$39,$F$2:$G$48,2,FALSE)+ROW()-2)),\"\")","v":{"$error":"#N/A"}},{"$f":"IF(INDIRECT(\"c\" & (VLOOKUP(Rebalance!$D$40,$F$2:$G$48,2,FALSE)+ROW()-2))=Rebalance!$D$40,INDIRECT(\"a\" & (VLOOKUP(Rebalance!$D$40,$F$2:$G$48,2,FALSE)+ROW()-2)),\"\")","v":{"$error":"#N/A"}},{"$f":"IF(INDIRECT(\"c\" & (VLOOKUP(Rebalance!$D$52,$F$2:$G$48,2,FALSE)+ROW()-2))=Rebalance!$D$52,INDIRECT(\"a\" & (VLOOKUP(Rebalance!$D$52,$F$2:$G$48,2,FALSE)+ROW()-2)),\"\")","v":{"$error":"#N/A"}},{"$f":"IF(INDIRECT(\"c\" & (VLOOKUP(Rebalance!$D$53,$F$2:$G$48,2,FALSE)+ROW()-2))=Rebalance!$D$53,INDIRECT(\"a\" & (VLOOKUP(Rebalance!$D$53,$F$2:$G$48,2,FALSE)+ROW()-2)),\"\")","v":{"$error":"#N/A"}},{"$f":"IF(INDIRECT(\"c\" & (VLOOKUP(Rebalance!$D$54,$F$2:$G$48,2,FALSE)+ROW()-2))=Rebalance!$D$54,INDIRECT(\"a\" & (VLOOKUP(Rebalance!$D$54,$F$2:$G$48,2,FALSE)+ROW()-2)),\"\")","v":{"$error":"#N/A"}},{"$f":"IF(INDIRECT(\"c\" & (VLOOKUP(Rebalance!$D$55,$F$2:$G$48,2,FALSE)+ROW()-2))=Rebalance!$D$55,INDIRECT(\"a\" & (VLOOKUP(Rebalance!$D$55,$F$2:$G$48,2,FALSE)+ROW()-2)),\"\")","v":{"$error":"#N/A"}},{"$f":"IF(INDIRECT(\"c\" & (VLOOKUP(Rebalance!$D$56,$F$2:$G$48,2,FALSE)+ROW()-2))=Rebalance!$D$56,INDIRECT(\"a\" & (VLOOKUP(Rebalance!$D$56,$F$2:$G$48,2,FALSE)+ROW()-2)),\"\")","v":{"$error":"#N/A"}},{"$f":"IF(INDIRECT(\"c\" & (VLOOKUP(Rebalance!$D$57,$F$2:$G$48,2,FALSE)+ROW()-2))=Rebalance!$D$57,INDIRECT(\"a\" & (VLOOKUP(Rebalance!$D$57,$F$2:$G$48,2,FALSE)+ROW()-2)),\"\")","v":{"$error":"#N/A"}},{"$f":"IF(INDIRECT(\"c\" & (VLOOKUP(Rebalance!$D$58,$F$2:$G$48,2,FALSE)+ROW()-2))=Rebalance!$D$58,INDIRECT(\"a\" & (VLOOKUP(Rebalance!$D$58,$F$2:$G$48,2,FALSE)+ROW()-2)),\"\")","v":{"$error":"#N/A"}},{"$f":"IF(INDIRECT(\"c\" & (VLOOKUP(Rebalance!$D$59,$F$2:$G$48,2,FALSE)+ROW()-2))=Rebalance!$D$59,INDIRECT(\"a\" & (VLOOKUP(Rebalance!$D$59,$F$2:$G$48,2,FALSE)+ROW()-2)),\"\")","v":{"$error":"#N/A"}},{"$f":"IF(INDIRECT(\"c\" & (VLOOKUP(Rebalance!$D$60,$F$2:$G$48,2,FALSE)+ROW()-2))=Rebalance!$D$60,INDIRECT(\"a\" & (VLOOKUP(Rebalance!$D$60,$F$2:$G$48,2,FALSE)+ROW()-2)),\"\")","v":{"$error":"#N/A"}},{"$f":"IF(INDIRECT(\"c\" & (VLOOKUP(Rebalance!$D$61,$F$2:$G$48,2,FALSE)+ROW()-2))=Rebalance!$D$61,INDIRECT(\"a\" & (VLOOKUP(Rebalance!$D$61,$F$2:$G$48,2,FALSE)+ROW()-2)),\"\")","v":{"$error":"#N/A"}},{"$f":"IF(INDIRECT(\"c\" & (VLOOKUP(Rebalance!$D$62,$F$2:$G$48,2,FALSE)+ROW()-2))=Rebalance!$D$62,INDIRECT(\"a\" & (VLOOKUP(Rebalance!$D$62,$F$2:$G$48,2,FALSE)+ROW()-2)),\"\")","v":{"$error":"#N/A"}},{"$f":"IF(INDIRECT(\"c\" & (VLOOKUP(Rebalance!$D$63,$F$2:$G$48,2,FALSE)+ROW()-2))=Rebalance!$D$63,INDIRECT(\"a\" & (VLOOKUP(Rebalance!$D$63,$F$2:$G$48,2,FALSE)+ROW()-2)),\"\")","v":{"$error":"#N/A"}},{"$f":"IF(INDIRECT(\"c\" & (VLOOKUP(Rebalance!$D$64,$F$2:$G$48,2,FALSE)+ROW()-2))=Rebalance!$D$64,INDIRECT(\"a\" & (VLOOKUP(Rebalance!$D$64,$F$2:$G$48,2,FALSE)+ROW()-2)),\"\")","v":{"$error":"#N/A"}},{"$f":"IF(INDIRECT(\"c\" & (VLOOKUP(Rebalance!$D$65,$F$2:$G$48,2,FALSE)+ROW()-2))=Rebalance!$D$65,INDIRECT(\"a\" & (VLOOKUP(Rebalance!$D$65,$F$2:$G$48,2,FALSE)+ROW()-2)),\"\")","v":{"$error":"#N/A"}},{"$f":"IF(INDIRECT(\"c\" & (VLOOKUP(Rebalance!$D$66,$F$2:$G$48,2,FALSE)+ROW()-2))=Rebalance!$D$66,INDIRECT(\"a\" & (VLOOKUP(Rebalance!$D$66,$F$2:$G$48,2,FALSE)+ROW()-2)),\"\")","v":{"$error":"#N/A"}}]
["STANLIB MM Medium Equity FOF B1","STM1","STANLIB Collective Investments",{"$f":"ROW()","v":67},null,null,{"$f":"VLOOKUP(F67,$C$2:$D$599,2,FALSE)","v":{"$error":"#N/A"}},{"$f":"IF(INDIRECT(\"c\" & (VLOOKUP(Rebalance!$D$26,$F$2:$G$48,2,FALSE)+ROW()-2))=Rebalance!$D$26,INDIRECT(\"a\" & (VLOOKUP(Rebalance!$D$26,$F$2:$G$48,2,FALSE)+ROW()-2)),\"\")","v":{"$error":"#N/A"}},{"$f":"IF(INDIRECT(\"c\" & (VLOOKUP(Rebalance!$D$27,$F$2:$G$48,2,FALSE)+ROW()-2))=Rebalance!$D$27,INDIRECT(\"a\" & (VLOOKUP(Rebalance!$D$27,$F$2:$G$48,2,FALSE)+ROW()-2)),\"\")","v":{"$error":"#N/A"}},{"$f":"IF(INDIRECT(\"c\" & (VLOOKUP(Rebalance!$D$28,$F$2:$G$48,2,FALSE)+ROW()-2))=Rebalance!$D$28,INDIRECT(\"a\" & (VLOOKUP(Rebalance!$D$28,$F$2:$G$48,2,FALSE)+ROW()-2)),\"\")","v":{"$error":"#N/A"}},{"$f":"IF(INDIRECT(\"c\" & (VLOOKUP(Rebalance!$D$29,$F$2:$G$48,2,FALSE)+ROW()-2))=Rebalance!$D$29,INDIRECT(\"a\" & (VLOOKUP(Rebalance!$D$29,$F$2:$G$48,2,FALSE)+ROW()-2)),\"\")","v":{"$error":"#N/A"}},{"$f":"IF(INDIRECT(\"c\" & (VLOOKUP(Rebalance!$D$30,$F$2:$G$48,2,FALSE)+ROW()-2))=Rebalance!$D$30,INDIRECT(\"a\" & (VLOOKUP(Rebalance!$D$30,$F$2:$G$48,2,FALSE)+ROW()-2)),\"\")","v":{"$error":"#N/A"}},{"$f":"IF(INDIRECT(\"c\" & (VLOOKUP(Rebalance!$D$31,$F$2:$G$48,2,FALSE)+ROW()-2))=Rebalance!$D$31,INDIRECT(\"a\" & (VLOOKUP(Rebalance!$D$31,$F$2:$G$48,2,FALSE)+ROW()-2)),\"\")","v":{"$error":"#N/A"}},{"$f":"IF(INDIRECT(\"c\" & (VLOOKUP(Rebalance!$D$32,$F$2:$G$48,2,FALSE)+ROW()-2))=Rebalance!$D$32,INDIRECT(\"a\" & (VLOOKUP(Rebalance!$D$32,$F$2:$G$48,2,FALSE)+ROW()-2)),\"\")","v":{"$error":"#N/A"}},{"$f":"IF(INDIRECT(\"c\" & (VLOOKUP(Rebalance!$D$33,$F$2:$G$48,2,FALSE)+ROW()-2))=Rebalance!$D$33,INDIRECT(\"a\" & (VLOOKUP(Rebalance!$D$33,$F$2:$G$48,2,FALSE)+ROW()-2)),\"\")","v":{"$error":"#N/A"}},{"$f":"IF(INDIRECT(\"c\" & (VLOOKUP(Rebalance!$D$34,$F$2:$G$48,2,FALSE)+ROW()-2))=Rebalance!$D$34,INDIRECT(\"a\" & (VLOOKUP(Rebalance!$D$34,$F$2:$G$48,2,FALSE)+ROW()-2)),\"\")","v":{"$error":"#N/A"}},{"$f":"IF(INDIRECT(\"c\" & (VLOOKUP(Rebalance!$D$35,$F$2:$G$48,2,FALSE)+ROW()-2))=Rebalance!$D$35,INDIRECT(\"a\" & (VLOOKUP(Rebalance!$D$35,$F$2:$G$48,2,FALSE)+ROW()-2)),\"\")","v":{"$error":"#N/A"}},{"$f":"IF(INDIRECT(\"c\" & (VLOOKUP(Rebalance!$D$36,$F$2:$G$48,2,FALSE)+ROW()-2))=Rebalance!$D$36,INDIRECT(\"a\" & (VLOOKUP(Rebalance!$D$36,$F$2:$G$48,2,FALSE)+ROW()-2)),\"\")","v":{"$error":"#N/A"}},{"$f":"IF(INDIRECT(\"c\" & (VLOOKUP(Rebalance!$D$37,$F$2:$G$48,2,FALSE)+ROW()-2))=Rebalance!$D$37,INDIRECT(\"a\" & (VLOOKUP(Rebalance!$D$37,$F$2:$G$48,2,FALSE)+ROW()-2)),\"\")","v":{"$error":"#N/A"}},{"$f":"IF(INDIRECT(\"c\" & (VLOOKUP(Rebalance!$D$38,$F$2:$G$48,2,FALSE)+ROW()-2))=Rebalance!$D$38,INDIRECT(\"a\" & (VLOOKUP(Rebalance!$D$38,$F$2:$G$48,2,FALSE)+ROW()-2)),\"\")","v":{"$error":"#N/A"}},{"$f":"IF(INDIRECT(\"c\" & (VLOOKUP(Rebalance!$D$39,$F$2:$G$48,2,FALSE)+ROW()-2))=Rebalance!$D$39,INDIRECT(\"a\" & (VLOOKUP(Rebalance!$D$39,$F$2:$G$48,2,FALSE)+ROW()-2)),\"\")","v":{"$error":"#N/A"}},{"$f":"IF(INDIRECT(\"c\" & (VLOOKUP(Rebalance!$D$40,$F$2:$G$48,2,FALSE)+ROW()-2))=Rebalance!$D$40,INDIRECT(\"a\" & (VLOOKUP(Rebalance!$D$40,$F$2:$G$48,2,FALSE)+ROW()-2)),\"\")","v":{"$error":"#N/A"}},{"$f":"IF(INDIRECT(\"c\" & (VLOOKUP(Rebalance!$D$52,$F$2:$G$48,2,FALSE)+ROW()-2))=Rebalance!$D$52,INDIRECT(\"a\" & (VLOOKUP(Rebalance!$D$52,$F$2:$G$48,2,FALSE)+ROW()-2)),\"\")","v":{"$error":"#N/A"}},{"$f":"IF(INDIRECT(\"c\" & (VLOOKUP(Rebalance!$D$53,$F$2:$G$48,2,FALSE)+ROW()-2))=Rebalance!$D$53,INDIRECT(\"a\" & (VLOOKUP(Rebalance!$D$53,$F$2:$G$48,2,FALSE)+ROW()-2)),\"\")","v":{"$error":"#N/A"}},{"$f":"IF(INDIRECT(\"c\" & (VLOOKUP(Rebalance!$D$54,$F$2:$G$48,2,FALSE)+ROW()-2))=Rebalance!$D$54,INDIRECT(\"a\" & (VLOOKUP(Rebalance!$D$54,$F$2:$G$48,2,FALSE)+ROW()-2)),\"\")","v":{"$error":"#N/A"}},{"$f":"IF(INDIRECT(\"c\" & (VLOOKUP(Rebalance!$D$55,$F$2:$G$48,2,FALSE)+ROW()-2))=Rebalance!$D$55,INDIRECT(\"a\" & (VLOOKUP(Rebalance!$D$55,$F$2:$G$48,2,FALSE)+ROW()-2)),\"\")","v":{"$error":"#N/A"}},{"$f":"IF(INDIRECT(\"c\" & (VLOOKUP(Rebalance!$D$56,$F$2:$G$48,2,FALSE)+ROW()-2))=Rebalance!$D$56,INDIRECT(\"a\" & (VLOOKUP(Rebalance!$D$56,$F$2:$G$48,2,FALSE)+ROW()-2)),\"\")","v":{"$error":"#N/A"}},{"$f":"IF(INDIRECT(\"c\" & (VLOOKUP(Rebalance!$D$57,$F$2:$G$48,2,FALSE)+ROW()-2))=Rebalance!$D$57,INDIRECT(\"a\" & (VLOOKUP(Rebalance!$D$57,$F$2:$G$48,2,FALSE)+ROW()-2)),\"\")","v":{"$error":"#N/A"}},{"$f":"IF(INDIRECT(\"c\" & (VLOOKUP(Rebalance!$D$58,$F$2:$G$48,2,FALSE)+ROW()-2))=Rebalance!$D$58,INDIRECT(\"a\" & (VLOOKUP(Rebalance!$D$58,$F$2:$G$48,2,FALSE)+ROW()-2)),\"\")","v":{"$error":"#N/A"}},{"$f":"IF(INDIRECT(\"c\" & (VLOOKUP(Rebalance!$D$59,$F$2:$G$48,2,FALSE)+ROW()-2))=Rebalance!$D$59,INDIRECT(\"a\" & (VLOOKUP(Rebalance!$D$59,$F$2:$G$48,2,FALSE)+ROW()-2)),\"\")","v":{"$error":"#N/A"}},{"$f":"IF(INDIRECT(\"c\" & (VLOOKUP(Rebalance!$D$60,$F$2:$G$48,2,FALSE)+ROW()-2))=Rebalance!$D$60,INDIRECT(\"a\" & (VLOOKUP(Rebalance!$D$60,$F$2:$G$48,2,FALSE)+ROW()-2)),\"\")","v":{"$error":"#N/A"}},{"$f":"IF(INDIRECT(\"c\" & (VLOOKUP(Rebalance!$D$61,$F$2:$G$48,2,FALSE)+ROW()-2))=Rebalance!$D$61,INDIRECT(\"a\" & (VLOOKUP(Rebalance!$D$61,$F$2:$G$48,2,FALSE)+ROW()-2)),\"\")","v":{"$error":"#N/A"}},{"$f":"IF(INDIRECT(\"c\" & (VLOOKUP(Rebalance!$D$62,$F$2:$G$48,2,FALSE)+ROW()-2))=Rebalance!$D$62,INDIRECT(\"a\" & (VLOOKUP(Rebalance!$D$62,$F$2:$G$48,2,FALSE)+ROW()-2)),\"\")","v":{"$error":"#N/A"}},{"$f":"IF(INDIRECT(\"c\" & (VLOOKUP(Rebalance!$D$63,$F$2:$G$48,2,FALSE)+ROW()-2))=Rebalance!$D$63,INDIRECT(\"a\" & (VLOOKUP(Rebalance!$D$63,$F$2:$G$48,2,FALSE)+ROW()-2)),\"\")","v":{"$error":"#N/A"}},{"$f":"IF(INDIRECT(\"c\" & (VLOOKUP(Rebalance!$D$64,$F$2:$G$48,2,FALSE)+ROW()-2))=Rebalance!$D$64,INDIRECT(\"a\" & (VLOOKUP(Rebalance!$D$64,$F$2:$G$48,2,FALSE)+ROW()-2)),\"\")","v":{"$error":"#N/A"}},{"$f":"IF(INDIRECT(\"c\" & (VLOOKUP(Rebalance!$D$65,$F$2:$G$48,2,FALSE)+ROW()-2))=Rebalance!$D$65,INDIRECT(\"a\" & (VLOOKUP(Rebalance!$D$65,$F$2:$G$48,2,FALSE)+ROW()-2)),\"\")","v":{"$error":"#N/A"}},{"$f":"IF(INDIRECT(\"c\" & (VLOOKUP(Rebalance!$D$66,$F$2:$G$48,2,FALSE)+ROW()-2))=Rebalance!$D$66,INDIRECT(\"a\" & (VLOOKUP(Rebalance!$D$66,$F$2:$G$48,2,FALSE)+ROW()-2)),\"\")","v":{"$error":"#N/A"}}]
["STANLIB MM Property Fund B1","STP1","STANLIB Collective Investments",{"$f":"ROW()","v":68},null,null,{"$f":"VLOOKUP(F68,$C$2:$D$599,2,FALSE)","v":{"$error":"#N/A"}},{"$f":"IF(INDIRECT(\"c\" & (VLOOKUP(Rebalance!$D$26,$F$2:$G$48,2,FALSE)+ROW()-2))=Rebalance!$D$26,INDIRECT(\"a\" & (VLOOKUP(Rebalance!$D$26,$F$2:$G$48,2,FALSE)+ROW()-2)),\"\")","v":{"$error":"#N/A"}},{"$f":"IF(INDIRECT(\"c\" & (VLOOKUP(Rebalance!$D$27,$F$2:$G$48,2,FALSE)+ROW()-2))=Rebalance!$D$27,INDIRECT(\"a\" & (VLOOKUP(Rebalance!$D$27,$F$2:$G$48,2,FALSE)+ROW()-2)),\"\")","v":{"$error":"#N/A"}},{"$f":"IF(INDIRECT(\"c\" & (VLOOKUP(Rebalance!$D$28,$F$2:$G$48,2,FALSE)+ROW()-2))=Rebalance!$D$28,INDIRECT(\"a\" & (VLOOKUP(Rebalance!$D$28,$F$2:$G$48,2,FALSE)+ROW()-2)),\"\")","v":{"$error":"#N/A"}},{"$f":"IF(INDIRECT(\"c\" & (VLOOKUP(Rebalance!$D$29,$F$2:$G$48,2,FALSE)+ROW()-2))=Rebalance!$D$29,INDIRECT(\"a\" & (VLOOKUP(Rebalance!$D$29,$F$2:$G$48,2,FALSE)+ROW()-2)),\"\")","v":{"$error":"#N/A"}},{"$f":"IF(INDIRECT(\"c\" & (VLOOKUP(Rebalance!$D$30,$F$2:$G$48,2,FALSE)+ROW()-2))=Rebalance!$D$30,INDIRECT(\"a\" & (VLOOKUP(Rebalance!$D$30,$F$2:$G$48,2,FALSE)+ROW()-2)),\"\")","v":{"$error":"#N/A"}},{"$f":"IF(INDIRECT(\"c\" & (VLOOKUP(Rebalance!$D$31,$F$2:$G$48,2,FALSE)+ROW()-2))=Rebalance!$D$31,INDIRECT(\"a\" & (VLOOKUP(Rebalance!$D$31,$F$2:$G$48,2,FALSE)+ROW()-2)),\"\")","v":{"$error":"#N/A"}},{"$f":"IF(INDIRECT(\"c\" & (VLOOKUP(Rebalance!$D$32,$F$2:$G$48,2,FALSE)+ROW()-2))=Rebalance!$D$32,INDIRECT(\"a\" & (VLOOKUP(Rebalance!$D$32,$F$2:$G$48,2,FALSE)+ROW()-2)),\"\")","v":{"$error":"#N/A"}},{"$f":"IF(INDIRECT(\"c\" & (VLOOKUP(Rebalance!$D$33,$F$2:$G$48,2,FALSE)+ROW()-2))=Rebalance!$D$33,INDIRECT(\"a\" & (VLOOKUP(Rebalance!$D$33,$F$2:$G$48,2,FALSE)+ROW()-2)),\"\")","v":{"$error":"#N/A"}},{"$f":"IF(INDIRECT(\"c\" & (VLOOKUP(Rebalance!$D$34,$F$2:$G$48,2,FALSE)+ROW()-2))=Rebalance!$D$34,INDIRECT(\"a\" & (VLOOKUP(Rebalance!$D$34,$F$2:$G$48,2,FALSE)+ROW()-2)),\"\")","v":{"$error":"#N/A"}},{"$f":"IF(INDIRECT(\"c\" & (VLOOKUP(Rebalance!$D$35,$F$2:$G$48,2,FALSE)+ROW()-2))=Rebalance!$D$35,INDIRECT(\"a\" & (VLOOKUP(Rebalance!$D$35,$F$2:$G$48,2,FALSE)+ROW()-2)),\"\")","v":{"$error":"#N/A"}},{"$f":"IF(INDIRECT(\"c\" & (VLOOKUP(Rebalance!$D$36,$F$2:$G$48,2,FALSE)+ROW()-2))=Rebalance!$D$36,INDIRECT(\"a\" & (VLOOKUP(Rebalance!$D$36,$F$2:$G$48,2,FALSE)+ROW()-2)),\"\")","v":{"$error":"#N/A"}},{"$f":"IF(INDIRECT(\"c\" & (VLOOKUP(Rebalance!$D$37,$F$2:$G$48,2,FALSE)+ROW()-2))=Rebalance!$D$37,INDIRECT(\"a\" & (VLOOKUP(Rebalance!$D$37,$F$2:$G$48,2,FALSE)+ROW()-2)),\"\")","v":{"$error":"#N/A"}},{"$f":"IF(INDIRECT(\"c\" & (VLOOKUP(Rebalance!$D$38,$F$2:$G$48,2,FALSE)+ROW()-2))=Rebalance!$D$38,INDIRECT(\"a\" & (VLOOKUP(Rebalance!$D$38,$F$2:$G$48,2,FALSE)+ROW()-2)),\"\")","v":{"$error":"#N/A"}},{"$f":"IF(INDIRECT(\"c\" & (VLOOKUP(Rebalance!$D$39,$F$2:$G$48,2,FALSE)+ROW()-2))=Rebalance!$D$39,INDIRECT(\"a\" & (VLOOKUP(Rebalance!$D$39,$F$2:$G$48,2,FALSE)+ROW()-2)),\"\")","v":{"$error":"#N/A"}},{"$f":"IF(INDIRECT(\"c\" & (VLOOKUP(Rebalance!$D$40,$F$2:$G$48,2,FALSE)+ROW()-2))=Rebalance!$D$40,INDIRECT(\"a\" & (VLOOKUP(Rebalance!$D$40,$F$2:$G$48,2,FALSE)+ROW()-2)),\"\")","v":{"$error":"#N/A"}},{"$f":"IF(INDIRECT(\"c\" & (VLOOKUP(Rebalance!$D$52,$F$2:$G$48,2,FALSE)+ROW()-2))=Rebalance!$D$52,INDIRECT(\"a\" & (VLOOKUP(Rebalance!$D$52,$F$2:$G$48,2,FALSE)+ROW()-2)),\"\")","v":{"$error":"#N/A"}},{"$f":"IF(INDIRECT(\"c\" & (VLOOKUP(Rebalance!$D$53,$F$2:$G$48,2,FALSE)+ROW()-2))=Rebalance!$D$53,INDIRECT(\"a\" & (VLOOKUP(Rebalance!$D$53,$F$2:$G$48,2,FALSE)+ROW()-2)),\"\")","v":{"$error":"#N/A"}},{"$f":"IF(INDIRECT(\"c\" & (VLOOKUP(Rebalance!$D$54,$F$2:$G$48,2,FALSE)+ROW()-2))=Rebalance!$D$54,INDIRECT(\"a\" & (VLOOKUP(Rebalance!$D$54,$F$2:$G$48,2,FALSE)+ROW()-2)),\"\")","v":{"$error":"#N/A"}},{"$f":"IF(INDIRECT(\"c\" & (VLOOKUP(Rebalance!$D$55,$F$2:$G$48,2,FALSE)+ROW()-2))=Rebalance!$D$55,INDIRECT(\"a\" & (VLOOKUP(Rebalance!$D$55,$F$2:$G$48,2,FALSE)+ROW()-2)),\"\")","v":{"$error":"#N/A"}},{"$f":"IF(INDIRECT(\"c\" & (VLOOKUP(Rebalance!$D$56,$F$2:$G$48,2,FALSE)+ROW()-2))=Rebalance!$D$56,INDIRECT(\"a\" & (VLOOKUP(Rebalance!$D$56,$F$2:$G$48,2,FALSE)+ROW()-2)),\"\")","v":{"$error":"#N/A"}},{"$f":"IF(INDIRECT(\"c\" & (VLOOKUP(Rebalance!$D$57,$F$2:$G$48,2,FALSE)+ROW()-2))=Rebalance!$D$57,INDIRECT(\"a\" & (VLOOKUP(Rebalance!$D$57,$F$2:$G$48,2,FALSE)+ROW()-2)),\"\")","v":{"$error":"#N/A"}},{"$f":"IF(INDIRECT(\"c\" & (VLOOKUP(Rebalance!$D$58,$F$2:$G$48,2,FALSE)+ROW()-2))=Rebalance!$D$58,INDIRECT(\"a\" & (VLOOKUP(Rebalance!$D$58,$F$2:$G$48,2,FALSE)+ROW()-2)),\"\")","v":{"$error":"#N/A"}},{"$f":"IF(INDIRECT(\"c\" & (VLOOKUP(Rebalance!$D$59,$F$2:$G$48,2,FALSE)+ROW()-2))=Rebalance!$D$59,INDIRECT(\"a\" & (VLOOKUP(Rebalance!$D$59,$F$2:$G$48,2,FALSE)+ROW()-2)),\"\")","v":{"$error":"#N/A"}},{"$f":"IF(INDIRECT(\"c\" & (VLOOKUP(Rebalance!$D$60,$F$2:$G$48,2,FALSE)+ROW()-2))=Rebalance!$D$60,INDIRECT(\"a\" & (VLOOKUP(Rebalance!$D$60,$F$2:$G$48,2,FALSE)+ROW()-2)),\"\")","v":{"$error":"#N/A"}},{"$f":"IF(INDIRECT(\"c\" & (VLOOKUP(Rebalance!$D$61,$F$2:$G$48,2,FALSE)+ROW()-2))=Rebalance!$D$61,INDIRECT(\"a\" & (VLOOKUP(Rebalance!$D$61,$F$2:$G$48,2,FALSE)+ROW()-2)),\"\")","v":{"$error":"#N/A"}},{"$f":"IF(INDIRECT(\"c\" & (VLOOKUP(Rebalance!$D$62,$F$2:$G$48,2,FALSE)+ROW()-2))=Rebalance!$D$62,INDIRECT(\"a\" & (VLOOKUP(Rebalance!$D$62,$F$2:$G$48,2,FALSE)+ROW()-2)),\"\")","v":{"$error":"#N/A"}},{"$f":"IF(INDIRECT(\"c\" & (VLOOKUP(Rebalance!$D$63,$F$2:$G$48,2,FALSE)+ROW()-2))=Rebalance!$D$63,INDIRECT(\"a\" & (VLOOKUP(Rebalance!$D$63,$F$2:$G$48,2,FALSE)+ROW()-2)),\"\")","v":{"$error":"#N/A"}},{"$f":"IF(INDIRECT(\"c\" & (VLOOKUP(Rebalance!$D$64,$F$2:$G$48,2,FALSE)+ROW()-2))=Rebalance!$D$64,INDIRECT(\"a\" & (VLOOKUP(Rebalance!$D$64,$F$2:$G$48,2,FALSE)+ROW()-2)),\"\")","v":{"$error":"#N/A"}},{"$f":"IF(INDIRECT(\"c\" & (VLOOKUP(Rebalance!$D$65,$F$2:$G$48,2,FALSE)+ROW()-2))=Rebalance!$D$65,INDIRECT(\"a\" & (VLOOKUP(Rebalance!$D$65,$F$2:$G$48,2,FALSE)+ROW()-2)),\"\")","v":{"$error":"#N/A"}},{"$f":"IF(INDIRECT(\"c\" & (VLOOKUP(Rebalance!$D$66,$F$2:$G$48,2,FALSE)+ROW()-2))=Rebalance!$D$66,INDIRECT(\"a\" & (VLOOKUP(Rebalance!$D$66,$F$2:$G$48,2,FALSE)+ROW()-2)),\"\")","v":{"$error":"#N/A"}}]
["STANLIB MM Real Return Fund B1","SMB1","STANLIB Collective Investments",{"$f":"ROW()","v":69},null,null,{"$f":"VLOOKUP(F69,$C$2:$D$599,2,FALSE)","v":{"$error":"#N/A"}},{"$f":"IF(INDIRECT(\"c\" & (VLOOKUP(Rebalance!$D$26,$F$2:$G$48,2,FALSE)+ROW()-2))=Rebalance!$D$26,INDIRECT(\"a\" & (VLOOKUP(Rebalance!$D$26,$F$2:$G$48,2,FALSE)+ROW()-2)),\"\")","v":{"$error":"#N/A"}},{"$f":"IF(INDIRECT(\"c\" & (VLOOKUP(Rebalance!$D$27,$F$2:$G$48,2,FALSE)+ROW()-2))=Rebalance!$D$27,INDIRECT(\"a\" & (VLOOKUP(Rebalance!$D$27,$F$2:$G$48,2,FALSE)+ROW()-2)),\"\")","v":{"$error":"#N/A"}},{"$f":"IF(INDIRECT(\"c\" & (VLOOKUP(Rebalance!$D$28,$F$2:$G$48,2,FALSE)+ROW()-2))=Rebalance!$D$28,INDIRECT(\"a\" & (VLOOKUP(Rebalance!$D$28,$F$2:$G$48,2,FALSE)+ROW()-2)),\"\")","v":{"$error":"#N/A"}},{"$f":"IF(INDIRECT(\"c\" & (VLOOKUP(Rebalance!$D$29,$F$2:$G$48,2,FALSE)+ROW()-2))=Rebalance!$D$29,INDIRECT(\"a\" & (VLOOKUP(Rebalance!$D$29,$F$2:$G$48,2,FALSE)+ROW()-2)),\"\")","v":{"$error":"#N/A"}},{"$f":"IF(INDIRECT(\"c\" & (VLOOKUP(Rebalance!$D$30,$F$2:$G$48,2,FALSE)+ROW()-2))=Rebalance!$D$30,INDIRECT(\"a\" & (VLOOKUP(Rebalance!$D$30,$F$2:$G$48,2,FALSE)+ROW()-2)),\"\")","v":{"$error":"#N/A"}},{"$f":"IF(INDIRECT(\"c\" & (VLOOKUP(Rebalance!$D$31,$F$2:$G$48,2,FALSE)+ROW()-2))=Rebalance!$D$31,INDIRECT(\"a\" & (VLOOKUP(Rebalance!$D$31,$F$2:$G$48,2,FALSE)+ROW()-2)),\"\")","v":{"$error":"#N/A"}},{"$f":"IF(INDIRECT(\"c\" & (VLOOKUP(Rebalance!$D$32,$F$2:$G$48,2,FALSE)+ROW()-2))=Rebalance!$D$32,INDIRECT(\"a\" & (VLOOKUP(Rebalance!$D$32,$F$2:$G$48,2,FALSE)+ROW()-2)),\"\")","v":{"$error":"#N/A"}},{"$f":"IF(INDIRECT(\"c\" & (VLOOKUP(Rebalance!$D$33,$F$2:$G$48,2,FALSE)+ROW()-2))=Rebalance!$D$33,INDIRECT(\"a\" & (VLOOKUP(Rebalance!$D$33,$F$2:$G$48,2,FALSE)+ROW()-2)),\"\")","v":{"$error":"#N/A"}},{"$f":"IF(INDIRECT(\"c\" & (VLOOKUP(Rebalance!$D$34,$F$2:$G$48,2,FALSE)+ROW()-2))=Rebalance!$D$34,INDIRECT(\"a\" & (VLOOKUP(Rebalance!$D$34,$F$2:$G$48,2,FALSE)+ROW()-2)),\"\")","v":{"$error":"#N/A"}},{"$f":"IF(INDIRECT(\"c\" & (VLOOKUP(Rebalance!$D$35,$F$2:$G$48,2,FALSE)+ROW()-2))=Rebalance!$D$35,INDIRECT(\"a\" & (VLOOKUP(Rebalance!$D$35,$F$2:$G$48,2,FALSE)+ROW()-2)),\"\")","v":{"$error":"#N/A"}},{"$f":"IF(INDIRECT(\"c\" & (VLOOKUP(Rebalance!$D$36,$F$2:$G$48,2,FALSE)+ROW()-2))=Rebalance!$D$36,INDIRECT(\"a\" & (VLOOKUP(Rebalance!$D$36,$F$2:$G$48,2,FALSE)+ROW()-2)),\"\")","v":{"$error":"#N/A"}},{"$f":"IF(INDIRECT(\"c\" & (VLOOKUP(Rebalance!$D$37,$F$2:$G$48,2,FALSE)+ROW()-2))=Rebalance!$D$37,INDIRECT(\"a\" & (VLOOKUP(Rebalance!$D$37,$F$2:$G$48,2,FALSE)+ROW()-2)),\"\")","v":{"$error":"#N/A"}},{"$f":"IF(INDIRECT(\"c\" & (VLOOKUP(Rebalance!$D$38,$F$2:$G$48,2,FALSE)+ROW()-2))=Rebalance!$D$38,INDIRECT(\"a\" & (VLOOKUP(Rebalance!$D$38,$F$2:$G$48,2,FALSE)+ROW()-2)),\"\")","v":{"$error":"#N/A"}},{"$f":"IF(INDIRECT(\"c\" & (VLOOKUP(Rebalance!$D$39,$F$2:$G$48,2,FALSE)+ROW()-2))=Rebalance!$D$39,INDIRECT(\"a\" & (VLOOKUP(Rebalance!$D$39,$F$2:$G$48,2,FALSE)+ROW()-2)),\"\")","v":{"$error":"#N/A"}},{"$f":"IF(INDIRECT(\"c\" & (VLOOKUP(Rebalance!$D$40,$F$2:$G$48,2,FALSE)+ROW()-2))=Rebalance!$D$40,INDIRECT(\"a\" & (VLOOKUP(Rebalance!$D$40,$F$2:$G$48,2,FALSE)+ROW()-2)),\"\")","v":{"$error":"#N/A"}},{"$f":"IF(INDIRECT(\"c\" & (VLOOKUP(Rebalance!$D$52,$F$2:$G$48,2,FALSE)+ROW()-2))=Rebalance!$D$52,INDIRECT(\"a\" & (VLOOKUP(Rebalance!$D$52,$F$2:$G$48,2,FALSE)+ROW()-2)),\"\")","v":{"$error":"#N/A"}},{"$f":"IF(INDIRECT(\"c\" & (VLOOKUP(Rebalance!$D$53,$F$2:$G$48,2,FALSE)+ROW()-2))=Rebalance!$D$53,INDIRECT(\"a\" & (VLOOKUP(Rebalance!$D$53,$F$2:$G$48,2,FALSE)+ROW()-2)),\"\")","v":{"$error":"#N/A"}},{"$f":"IF(INDIRECT(\"c\" & (VLOOKUP(Rebalance!$D$54,$F$2:$G$48,2,FALSE)+ROW()-2))=Rebalance!$D$54,INDIRECT(\"a\" & (VLOOKUP(Rebalance!$D$54,$F$2:$G$48,2,FALSE)+ROW()-2)),\"\")","v":{"$error":"#N/A"}},{"$f":"IF(INDIRECT(\"c\" & (VLOOKUP(Rebalance!$D$55,$F$2:$G$48,2,FALSE)+ROW()-2))=Rebalance!$D$55,INDIRECT(\"a\" & (VLOOKUP(Rebalance!$D$55,$F$2:$G$48,2,FALSE)+ROW()-2)),\"\")","v":{"$error":"#N/A"}},{"$f":"IF(INDIRECT(\"c\" & (VLOOKUP(Rebalance!$D$56,$F$2:$G$48,2,FALSE)+ROW()-2))=Rebalance!$D$56,INDIRECT(\"a\" & (VLOOKUP(Rebalance!$D$56,$F$2:$G$48,2,FALSE)+ROW()-2)),\"\")","v":{"$error":"#N/A"}},{"$f":"IF(INDIRECT(\"c\" & (VLOOKUP(Rebalance!$D$57,$F$2:$G$48,2,FALSE)+ROW()-2))=Rebalance!$D$57,INDIRECT(\"a\" & (VLOOKUP(Rebalance!$D$57,$F$2:$G$48,2,FALSE)+ROW()-2)),\"\")","v":{"$error":"#N/A"}},{"$f":"IF(INDIRECT(\"c\" & (VLOOKUP(Rebalance!$D$58,$F$2:$G$48,2,FALSE)+ROW()-2))=Rebalance!$D$58,INDIRECT(\"a\" & (VLOOKUP(Rebalance!$D$58,$F$2:$G$48,2,FALSE)+ROW()-2)),\"\")","v":{"$error":"#N/A"}},{"$f":"IF(INDIRECT(\"c\" & (VLOOKUP(Rebalance!$D$59,$F$2:$G$48,2,FALSE)+ROW()-2))=Rebalance!$D$59,INDIRECT(\"a\" & (VLOOKUP(Rebalance!$D$59,$F$2:$G$48,2,FALSE)+ROW()-2)),\"\")","v":{"$error":"#N/A"}},{"$f":"IF(INDIRECT(\"c\" & (VLOOKUP(Rebalance!$D$60,$F$2:$G$48,2,FALSE)+ROW()-2))=Rebalance!$D$60,INDIRECT(\"a\" & (VLOOKUP(Rebalance!$D$60,$F$2:$G$48,2,FALSE)+ROW()-2)),\"\")","v":{"$error":"#N/A"}},{"$f":"IF(INDIRECT(\"c\" & (VLOOKUP(Rebalance!$D$61,$F$2:$G$48,2,FALSE)+ROW()-2))=Rebalance!$D$61,INDIRECT(\"a\" & (VLOOKUP(Rebalance!$D$61,$F$2:$G$48,2,FALSE)+ROW()-2)),\"\")","v":{"$error":"#N/A"}},{"$f":"IF(INDIRECT(\"c\" & (VLOOKUP(Rebalance!$D$62,$F$2:$G$48,2,FALSE)+ROW()-2))=Rebalance!$D$62,INDIRECT(\"a\" & (VLOOKUP(Rebalance!$D$62,$F$2:$G$48,2,FALSE)+ROW()-2)),\"\")","v":{"$error":"#N/A"}},{"$f":"IF(INDIRECT(\"c\" & (VLOOKUP(Rebalance!$D$63,$F$2:$G$48,2,FALSE)+ROW()-2))=Rebalance!$D$63,INDIRECT(\"a\" & (VLOOKUP(Rebalance!$D$63,$F$2:$G$48,2,FALSE)+ROW()-2)),\"\")","v":{"$error":"#N/A"}},{"$f":"IF(INDIRECT(\"c\" & (VLOOKUP(Rebalance!$D$64,$F$2:$G$48,2,FALSE)+ROW()-2))=Rebalance!$D$64,INDIRECT(\"a\" & (VLOOKUP(Rebalance!$D$64,$F$2:$G$48,2,FALSE)+ROW()-2)),\"\")","v":{"$error":"#N/A"}},{"$f":"IF(INDIRECT(\"c\" & (VLOOKUP(Rebalance!$D$65,$F$2:$G$48,2,FALSE)+ROW()-2))=Rebalance!$D$65,INDIRECT(\"a\" & (VLOOKUP(Rebalance!$D$65,$F$2:$G$48,2,FALSE)+ROW()-2)),\"\")","v":{"$error":"#N/A"}},{"$f":"IF(INDIRECT(\"c\" & (VLOOKUP(Rebalance!$D$66,$F$2:$G$48,2,FALSE)+ROW()-2))=Rebalance!$D$66,INDIRECT(\"a\" & (VLOOKUP(Rebalance!$D$66,$F$2:$G$48,2,FALSE)+ROW()-2)),\"\")","v":{"$error":"#N/A"}}]
["STANLIB Money Market Fund B5","STMM","STANLIB Collective Investments",{"$f":"ROW()","v":70},null,null,{"$f":"VLOOKUP(F70,$C$2:$D$599,2,FALSE)","v":{"$error":"#N/A"}},{"$f":"IF(INDIRECT(\"c\" & (VLOOKUP(Rebalance!$D$26,$F$2:$G$48,2,FALSE)+ROW()-2))=Rebalance!$D$26,INDIRECT(\"a\" & (VLOOKUP(Rebalance!$D$26,$F$2:$G$48,2,FALSE)+ROW()-2)),\"\")","v":{"$error":"#N/A"}},{"$f":"IF(INDIRECT(\"c\" & (VLOOKUP(Rebalance!$D$27,$F$2:$G$48,2,FALSE)+ROW()-2))=Rebalance!$D$27,INDIRECT(\"a\" & (VLOOKUP(Rebalance!$D$27,$F$2:$G$48,2,FALSE)+ROW()-2)),\"\")","v":{"$error":"#N/A"}},{"$f":"IF(INDIRECT(\"c\" & (VLOOKUP(Rebalance!$D$28,$F$2:$G$48,2,FALSE)+ROW()-2))=Rebalance!$D$28,INDIRECT(\"a\" & (VLOOKUP(Rebalance!$D$28,$F$2:$G$48,2,FALSE)+ROW()-2)),\"\")","v":{"$error":"#N/A"}},{"$f":"IF(INDIRECT(\"c\" & (VLOOKUP(Rebalance!$D$29,$F$2:$G$48,2,FALSE)+ROW()-2))=Rebalance!$D$29,INDIRECT(\"a\" & (VLOOKUP(Rebalance!$D$29,$F$2:$G$48,2,FALSE)+ROW()-2)),\"\")","v":{"$error":"#N/A"}},{"$f":"IF(INDIRECT(\"c\" & (VLOOKUP(Rebalance!$D$30,$F$2:$G$48,2,FALSE)+ROW()-2))=Rebalance!$D$30,INDIRECT(\"a\" & (VLOOKUP(Rebalance!$D$30,$F$2:$G$48,2,FALSE)+ROW()-2)),\"\")","v":{"$error":"#N/A"}},{"$f":"IF(INDIRECT(\"c\" & (VLOOKUP(Rebalance!$D$31,$F$2:$G$48,2,FALSE)+ROW()-2))=Rebalance!$D$31,INDIRECT(\"a\" & (VLOOKUP(Rebalance!$D$31,$F$2:$G$48,2,FALSE)+ROW()-2)),\"\")","v":{"$error":"#N/A"}},{"$f":"IF(INDIRECT(\"c\" & (VLOOKUP(Rebalance!$D$32,$F$2:$G$48,2,FALSE)+ROW()-2))=Rebalance!$D$32,INDIRECT(\"a\" & (VLOOKUP(Rebalance!$D$32,$F$2:$G$48,2,FALSE)+ROW()-2)),\"\")","v":{"$error":"#N/A"}},{"$f":"IF(INDIRECT(\"c\" & (VLOOKUP(Rebalance!$D$33,$F$2:$G$48,2,FALSE)+ROW()-2))=Rebalance!$D$33,INDIRECT(\"a\" & (VLOOKUP(Rebalance!$D$33,$F$2:$G$48,2,FALSE)+ROW()-2)),\"\")","v":{"$error":"#N/A"}},{"$f":"IF(INDIRECT(\"c\" & (VLOOKUP(Rebalance!$D$34,$F$2:$G$48,2,FALSE)+ROW()-2))=Rebalance!$D$34,INDIRECT(\"a\" & (VLOOKUP(Rebalance!$D$34,$F$2:$G$48,2,FALSE)+ROW()-2)),\"\")","v":{"$error":"#N/A"}},{"$f":"IF(INDIRECT(\"c\" & (VLOOKUP(Rebalance!$D$35,$F$2:$G$48,2,FALSE)+ROW()-2))=Rebalance!$D$35,INDIRECT(\"a\" & (VLOOKUP(Rebalance!$D$35,$F$2:$G$48,2,FALSE)+ROW()-2)),\"\")","v":{"$error":"#N/A"}},{"$f":"IF(INDIRECT(\"c\" & (VLOOKUP(Rebalance!$D$36,$F$2:$G$48,2,FALSE)+ROW()-2))=Rebalance!$D$36,INDIRECT(\"a\" & (VLOOKUP(Rebalance!$D$36,$F$2:$G$48,2,FALSE)+ROW()-2)),\"\")","v":{"$error":"#N/A"}},{"$f":"IF(INDIRECT(\"c\" & (VLOOKUP(Rebalance!$D$37,$F$2:$G$48,2,FALSE)+ROW()-2))=Rebalance!$D$37,INDIRECT(\"a\" & (VLOOKUP(Rebalance!$D$37,$F$2:$G$48,2,FALSE)+ROW()-2)),\"\")","v":{"$error":"#N/A"}},{"$f":"IF(INDIRECT(\"c\" & (VLOOKUP(Rebalance!$D$38,$F$2:$G$48,2,FALSE)+ROW()-2))=Rebalance!$D$38,INDIRECT(\"a\" & (VLOOKUP(Rebalance!$D$38,$F$2:$G$48,2,FALSE)+ROW()-2)),\"\")","v":{"$error":"#N/A"}},{"$f":"IF(INDIRECT(\"c\" & (VLOOKUP(Rebalance!$D$39,$F$2:$G$48,2,FALSE)+ROW()-2))=Rebalance!$D$39,INDIRECT(\"a\" & (VLOOKUP(Rebalance!$D$39,$F$2:$G$48,2,FALSE)+ROW()-2)),\"\")","v":{"$error":"#N/A"}},{"$f":"IF(INDIRECT(\"c\" & (VLOOKUP(Rebalance!$D$40,$F$2:$G$48,2,FALSE)+ROW()-2))=Rebalance!$D$40,INDIRECT(\"a\" & (VLOOKUP(Rebalance!$D$40,$F$2:$G$48,2,FALSE)+ROW()-2)),\"\")","v":{"$error":"#N/A"}},{"$f":"IF(INDIRECT(\"c\" & (VLOOKUP(Rebalance!$D$52,$F$2:$G$48,2,FALSE)+ROW()-2))=Rebalance!$D$52,INDIRECT(\"a\" & (VLOOKUP(Rebalance!$D$52,$F$2:$G$48,2,FALSE)+ROW()-2)),\"\")","v":{"$error":"#N/A"}},{"$f":"IF(INDIRECT(\"c\" & (VLOOKUP(Rebalance!$D$53,$F$2:$G$48,2,FALSE)+ROW()-2))=Rebalance!$D$53,INDIRECT(\"a\" & (VLOOKUP(Rebalance!$D$53,$F$2:$G$48,2,FALSE)+ROW()-2)),\"\")","v":{"$error":"#N/A"}},{"$f":"IF(INDIRECT(\"c\" & (VLOOKUP(Rebalance!$D$54,$F$2:$G$48,2,FALSE)+ROW()-2))=Rebalance!$D$54,INDIRECT(\"a\" & (VLOOKUP(Rebalance!$D$54,$F$2:$G$48,2,FALSE)+ROW()-2)),\"\")","v":{"$error":"#N/A"}},{"$f":"IF(INDIRECT(\"c\" & (VLOOKUP(Rebalance!$D$55,$F$2:$G$48,2,FALSE)+ROW()-2))=Rebalance!$D$55,INDIRECT(\"a\" & (VLOOKUP(Rebalance!$D$55,$F$2:$G$48,2,FALSE)+ROW()-2)),\"\")","v":{"$error":"#N/A"}},{"$f":"IF(INDIRECT(\"c\" & (VLOOKUP(Rebalance!$D$56,$F$2:$G$48,2,FALSE)+ROW()-2))=Rebalance!$D$56,INDIRECT(\"a\" & (VLOOKUP(Rebalance!$D$56,$F$2:$G$48,2,FALSE)+ROW()-2)),\"\")","v":{"$error":"#N/A"}},{"$f":"IF(INDIRECT(\"c\" & (VLOOKUP(Rebalance!$D$57,$F$2:$G$48,2,FALSE)+ROW()-2))=Rebalance!$D$57,INDIRECT(\"a\" & (VLOOKUP(Rebalance!$D$57,$F$2:$G$48,2,FALSE)+ROW()-2)),\"\")","v":{"$error":"#N/A"}},{"$f":"IF(INDIRECT(\"c\" & (VLOOKUP(Rebalance!$D$58,$F$2:$G$48,2,FALSE)+ROW()-2))=Rebalance!$D$58,INDIRECT(\"a\" & (VLOOKUP(Rebalance!$D$58,$F$2:$G$48,2,FALSE)+ROW()-2)),\"\")","v":{"$error":"#N/A"}},{"$f":"IF(INDIRECT(\"c\" & (VLOOKUP(Rebalance!$D$59,$F$2:$G$48,2,FALSE)+ROW()-2))=Rebalance!$D$59,INDIRECT(\"a\" & (VLOOKUP(Rebalance!$D$59,$F$2:$G$48,2,FALSE)+ROW()-2)),\"\")","v":{"$error":"#N/A"}},{"$f":"IF(INDIRECT(\"c\" & (VLOOKUP(Rebalance!$D$60,$F$2:$G$48,2,FALSE)+ROW()-2))=Rebalance!$D$60,INDIRECT(\"a\" & (VLOOKUP(Rebalance!$D$60,$F$2:$G$48,2,FALSE)+ROW()-2)),\"\")","v":{"$error":"#N/A"}},{"$f":"IF(INDIRECT(\"c\" & (VLOOKUP(Rebalance!$D$61,$F$2:$G$48,2,FALSE)+ROW()-2))=Rebalance!$D$61,INDIRECT(\"a\" & (VLOOKUP(Rebalance!$D$61,$F$2:$G$48,2,FALSE)+ROW()-2)),\"\")","v":{"$error":"#N/A"}},{"$f":"IF(INDIRECT(\"c\" & (VLOOKUP(Rebalance!$D$62,$F$2:$G$48,2,FALSE)+ROW()-2))=Rebalance!$D$62,INDIRECT(\"a\" & (VLOOKUP(Rebalance!$D$62,$F$2:$G$48,2,FALSE)+ROW()-2)),\"\")","v":{"$error":"#N/A"}},{"$f":"IF(INDIRECT(\"c\" & (VLOOKUP(Rebalance!$D$63,$F$2:$G$48,2,FALSE)+ROW()-2))=Rebalance!$D$63,INDIRECT(\"a\" & (VLOOKUP(Rebalance!$D$63,$F$2:$G$48,2,FALSE)+ROW()-2)),\"\")","v":{"$error":"#N/A"}},{"$f":"IF(INDIRECT(\"c\" & (VLOOKUP(Rebalance!$D$64,$F$2:$G$48,2,FALSE)+ROW()-2))=Rebalance!$D$64,INDIRECT(\"a\" & (VLOOKUP(Rebalance!$D$64,$F$2:$G$48,2,FALSE)+ROW()-2)),\"\")","v":{"$error":"#N/A"}},{"$f":"IF(INDIRECT(\"c\" & (VLOOKUP(Rebalance!$D$65,$F$2:$G$48,2,FALSE)+ROW()-2))=Rebalance!$D$65,INDIRECT(\"a\" & (VLOOKUP(Rebalance!$D$65,$F$2:$G$48,2,FALSE)+ROW()-2)),\"\")","v":{"$error":"#N/A"}},{"$f":"IF(INDIRECT(\"c\" & (VLOOKUP(Rebalance!$D$66,$F$2:$G$48,2,FALSE)+ROW()-2))=Rebalance!$D$66,INDIRECT(\"a\" & (VLOOKUP(Rebalance!$D$66,$F$2:$G$48,2,FALSE)+ROW()-2)),\"\")","v":{"$error":"#N/A"}}]
["STANLIB Money Market Fund R","STMM","STANLIB Collective Investments",{"$f":"ROW()","v":71},null,null,{"$f":"VLOOKUP(F71,$C$2:$D$599,2,FALSE)","v":{"$error":"#N/A"}},{"$f":"IF(INDIRECT(\"c\" & (VLOOKUP(Rebalance!$D$26,$F$2:$G$48,2,FALSE)+ROW()-2))=Rebalance!$D$26,INDIRECT(\"a\" & (VLOOKUP(Rebalance!$D$26,$F$2:$G$48,2,FALSE)+ROW()-2)),\"\")","v":{"$error":"#N/A"}},{"$f":"IF(INDIRECT(\"c\" & (VLOOKUP(Rebalance!$D$27,$F$2:$G$48,2,FALSE)+ROW()-2))=Rebalance!$D$27,INDIRECT(\"a\" & (VLOOKUP(Rebalance!$D$27,$F$2:$G$48,2,FALSE)+ROW()-2)),\"\")","v":{"$error":"#N/A"}},{"$f":"IF(INDIRECT(\"c\" & (VLOOKUP(Rebalance!$D$28,$F$2:$G$48,2,FALSE)+ROW()-2))=Rebalance!$D$28,INDIRECT(\"a\" & (VLOOKUP(Rebalance!$D$28,$F$2:$G$48,2,FALSE)+ROW()-2)),\"\")","v":{"$error":"#N/A"}},{"$f":"IF(INDIRECT(\"c\" & (VLOOKUP(Rebalance!$D$29,$F$2:$G$48,2,FALSE)+ROW()-2))=Rebalance!$D$29,INDIRECT(\"a\" & (VLOOKUP(Rebalance!$D$29,$F$2:$G$48,2,FALSE)+ROW()-2)),\"\")","v":{"$error":"#N/A"}},{"$f":"IF(INDIRECT(\"c\" & (VLOOKUP(Rebalance!$D$30,$F$2:$G$48,2,FALSE)+ROW()-2))=Rebalance!$D$30,INDIRECT(\"a\" & (VLOOKUP(Rebalance!$D$30,$F$2:$G$48,2,FALSE)+ROW()-2)),\"\")","v":{"$error":"#N/A"}},{"$f":"IF(INDIRECT(\"c\" & (VLOOKUP(Rebalance!$D$31,$F$2:$G$48,2,FALSE)+ROW()-2))=Rebalance!$D$31,INDIRECT(\"a\" & (VLOOKUP(Rebalance!$D$31,$F$2:$G$48,2,FALSE)+ROW()-2)),\"\")","v":{"$error":"#N/A"}},{"$f":"IF(INDIRECT(\"c\" & (VLOOKUP(Rebalance!$D$32,$F$2:$G$48,2,FALSE)+ROW()-2))=Rebalance!$D$32,INDIRECT(\"a\" & (VLOOKUP(Rebalance!$D$32,$F$2:$G$48,2,FALSE)+ROW()-2)),\"\")","v":{"$error":"#N/A"}},{"$f":"IF(INDIRECT(\"c\" & (VLOOKUP(Rebalance!$D$33,$F$2:$G$48,2,FALSE)+ROW()-2))=Rebalance!$D$33,INDIRECT(\"a\" & (VLOOKUP(Rebalance!$D$33,$F$2:$G$48,2,FALSE)+ROW()-2)),\"\")","v":{"$error":"#N/A"}},{"$f":"IF(INDIRECT(\"c\" & (VLOOKUP(Rebalance!$D$34,$F$2:$G$48,2,FALSE)+ROW()-2))=Rebalance!$D$34,INDIRECT(\"a\" & (VLOOKUP(Rebalance!$D$34,$F$2:$G$48,2,FALSE)+ROW()-2)),\"\")","v":{"$error":"#N/A"}},{"$f":"IF(INDIRECT(\"c\" & (VLOOKUP(Rebalance!$D$35,$F$2:$G$48,2,FALSE)+ROW()-2))=Rebalance!$D$35,INDIRECT(\"a\" & (VLOOKUP(Rebalance!$D$35,$F$2:$G$48,2,FALSE)+ROW()-2)),\"\")","v":{"$error":"#N/A"}},{"$f":"IF(INDIRECT(\"c\" & (VLOOKUP(Rebalance!$D$36,$F$2:$G$48,2,FALSE)+ROW()-2))=Rebalance!$D$36,INDIRECT(\"a\" & (VLOOKUP(Rebalance!$D$36,$F$2:$G$48,2,FALSE)+ROW()-2)),\"\")","v":{"$error":"#N/A"}},{"$f":"IF(INDIRECT(\"c\" & (VLOOKUP(Rebalance!$D$37,$F$2:$G$48,2,FALSE)+ROW()-2))=Rebalance!$D$37,INDIRECT(\"a\" & (VLOOKUP(Rebalance!$D$37,$F$2:$G$48,2,FALSE)+ROW()-2)),\"\")","v":{"$error":"#N/A"}},{"$f":"IF(INDIRECT(\"c\" & (VLOOKUP(Rebalance!$D$38,$F$2:$G$48,2,FALSE)+ROW()-2))=Rebalance!$D$38,INDIRECT(\"a\" & (VLOOKUP(Rebalance!$D$38,$F$2:$G$48,2,FALSE)+ROW()-2)),\"\")","v":{"$error":"#N/A"}},{"$f":"IF(INDIRECT(\"c\" & (VLOOKUP(Rebalance!$D$39,$F$2:$G$48,2,FALSE)+ROW()-2))=Rebalance!$D$39,INDIRECT(\"a\" & (VLOOKUP(Rebalance!$D$39,$F$2:$G$48,2,FALSE)+ROW()-2)),\"\")","v":{"$error":"#N/A"}},{"$f":"IF(INDIRECT(\"c\" & (VLOOKUP(Rebalance!$D$40,$F$2:$G$48,2,FALSE)+ROW()-2))=Rebalance!$D$40,INDIRECT(\"a\" & (VLOOKUP(Rebalance!$D$40,$F$2:$G$48,2,FALSE)+ROW()-2)),\"\")","v":{"$error":"#N/A"}},{"$f":"IF(INDIRECT(\"c\" & (VLOOKUP(Rebalance!$D$52,$F$2:$G$48,2,FALSE)+ROW()-2))=Rebalance!$D$52,INDIRECT(\"a\" & (VLOOKUP(Rebalance!$D$52,$F$2:$G$48,2,FALSE)+ROW()-2)),\"\")","v":{"$error":"#N/A"}},{"$f":"IF(INDIRECT(\"c\" & (VLOOKUP(Rebalance!$D$53,$F$2:$G$48,2,FALSE)+ROW()-2))=Rebalance!$D$53,INDIRECT(\"a\" & (VLOOKUP(Rebalance!$D$53,$F$2:$G$48,2,FALSE)+ROW()-2)),\"\")","v":{"$error":"#N/A"}},{"$f":"IF(INDIRECT(\"c\" & (VLOOKUP(Rebalance!$D$54,$F$2:$G$48,2,FALSE)+ROW()-2))=Rebalance!$D$54,INDIRECT(\"a\" & (VLOOKUP(Rebalance!$D$54,$F$2:$G$48,2,FALSE)+ROW()-2)),\"\")","v":{"$error":"#N/A"}},{"$f":"IF(INDIRECT(\"c\" & (VLOOKUP(Rebalance!$D$55,$F$2:$G$48,2,FALSE)+ROW()-2))=Rebalance!$D$55,INDIRECT(\"a\" & (VLOOKUP(Rebalance!$D$55,$F$2:$G$48,2,FALSE)+ROW()-2)),\"\")","v":{"$error":"#N/A"}},{"$f":"IF(INDIRECT(\"c\" & (VLOOKUP(Rebalance!$D$56,$F$2:$G$48,2,FALSE)+ROW()-2))=Rebalance!$D$56,INDIRECT(\"a\" & (VLOOKUP(Rebalance!$D$56,$F$2:$G$48,2,FALSE)+ROW()-2)),\"\")","v":{"$error":"#N/A"}},{"$f":"IF(INDIRECT(\"c\" & (VLOOKUP(Rebalance!$D$57,$F$2:$G$48,2,FALSE)+ROW()-2))=Rebalance!$D$57,INDIRECT(\"a\" & (VLOOKUP(Rebalance!$D$57,$F$2:$G$48,2,FALSE)+ROW()-2)),\"\")","v":{"$error":"#N/A"}},{"$f":"IF(INDIRECT(\"c\" & (VLOOKUP(Rebalance!$D$58,$F$2:$G$48,2,FALSE)+ROW()-2))=Rebalance!$D$58,INDIRECT(\"a\" & (VLOOKUP(Rebalance!$D$58,$F$2:$G$48,2,FALSE)+ROW()-2)),\"\")","v":{"$error":"#N/A"}},{"$f":"IF(INDIRECT(\"c\" & (VLOOKUP(Rebalance!$D$59,$F$2:$G$48,2,FALSE)+ROW()-2))=Rebalance!$D$59,INDIRECT(\"a\" & (VLOOKUP(Rebalance!$D$59,$F$2:$G$48,2,FALSE)+ROW()-2)),\"\")","v":{"$error":"#N/A"}},{"$f":"IF(INDIRECT(\"c\" & (VLOOKUP(Rebalance!$D$60,$F$2:$G$48,2,FALSE)+ROW()-2))=Rebalance!$D$60,INDIRECT(\"a\" & (VLOOKUP(Rebalance!$D$60,$F$2:$G$48,2,FALSE)+ROW()-2)),\"\")","v":{"$error":"#N/A"}},{"$f":"IF(INDIRECT(\"c\" & (VLOOKUP(Rebalance!$D$61,$F$2:$G$48,2,FALSE)+ROW()-2))=Rebalance!$D$61,INDIRECT(\"a\" & (VLOOKUP(Rebalance!$D$61,$F$2:$G$48,2,FALSE)+ROW()-2)),\"\")","v":{"$error":"#N/A"}},{"$f":"IF(INDIRECT(\"c\" & (VLOOKUP(Rebalance!$D$62,$F$2:$G$48,2,FALSE)+ROW()-2))=Rebalance!$D$62,INDIRECT(\"a\" & (VLOOKUP(Rebalance!$D$62,$F$2:$G$48,2,FALSE)+ROW()-2)),\"\")","v":{"$error":"#N/A"}},{"$f":"IF(INDIRECT(\"c\" & (VLOOKUP(Rebalance!$D$63,$F$2:$G$48,2,FALSE)+ROW()-2))=Rebalance!$D$63,INDIRECT(\"a\" & (VLOOKUP(Rebalance!$D$63,$F$2:$G$48,2,FALSE)+ROW()-2)),\"\")","v":{"$error":"#N/A"}},{"$f":"IF(INDIRECT(\"c\" & (VLOOKUP(Rebalance!$D$64,$F$2:$G$48,2,FALSE)+ROW()-2))=Rebalance!$D$64,INDIRECT(\"a\" & (VLOOKUP(Rebalance!$D$64,$F$2:$G$48,2,FALSE)+ROW()-2)),\"\")","v":{"$error":"#N/A"}},{"$f":"IF(INDIRECT(\"c\" & (VLOOKUP(Rebalance!$D$65,$F$2:$G$48,2,FALSE)+ROW()-2))=Rebalance!$D$65,INDIRECT(\"a\" & (VLOOKUP(Rebalance!$D$65,$F$2:$G$48,2,FALSE)+ROW()-2)),\"\")","v":{"$error":"#N/A"}},{"$f":"IF(INDIRECT(\"c\" & (VLOOKUP(Rebalance!$D$66,$F$2:$G$48,2,FALSE)+ROW()-2))=Rebalance!$D$66,INDIRECT(\"a\" & (VLOOKUP(Rebalance!$D$66,$F$2:$G$48,2,FALSE)+ROW()-2)),\"\")","v":{"$error":"#N/A"}}]
["STANLIB Multi-Manager Defensive Balanced Fund B1","SMDB1","STANLIB Collective Investments",{"$f":"ROW()","v":72},null,null,{"$f":"VLOOKUP(F72,$C$2:$D$599,2,FALSE)","v":{"$error":"#N/A"}},{"$f":"IF(INDIRECT(\"c\" & (VLOOKUP(Rebalance!$D$26,$F$2:$G$48,2,FALSE)+ROW()-2))=Rebalance!$D$26,INDIRECT(\"a\" & (VLOOKUP(Rebalance!$D$26,$F$2:$G$48,2,FALSE)+ROW()-2)),\"\")","v":{"$error":"#N/A"}},{"$f":"IF(INDIRECT(\"c\" & (VLOOKUP(Rebalance!$D$27,$F$2:$G$48,2,FALSE)+ROW()-2))=Rebalance!$D$27,INDIRECT(\"a\" & (VLOOKUP(Rebalance!$D$27,$F$2:$G$48,2,FALSE)+ROW()-2)),\"\")","v":{"$error":"#N/A"}},{"$f":"IF(INDIRECT(\"c\" & (VLOOKUP(Rebalance!$D$28,$F$2:$G$48,2,FALSE)+ROW()-2))=Rebalance!$D$28,INDIRECT(\"a\" & (VLOOKUP(Rebalance!$D$28,$F$2:$G$48,2,FALSE)+ROW()-2)),\"\")","v":{"$error":"#N/A"}},{"$f":"IF(INDIRECT(\"c\" & (VLOOKUP(Rebalance!$D$29,$F$2:$G$48,2,FALSE)+ROW()-2))=Rebalance!$D$29,INDIRECT(\"a\" & (VLOOKUP(Rebalance!$D$29,$F$2:$G$48,2,FALSE)+ROW()-2)),\"\")","v":{"$error":"#N/A"}},{"$f":"IF(INDIRECT(\"c\" & (VLOOKUP(Rebalance!$D$30,$F$2:$G$48,2,FALSE)+ROW()-2))=Rebalance!$D$30,INDIRECT(\"a\" & (VLOOKUP(Rebalance!$D$30,$F$2:$G$48,2,FALSE)+ROW()-2)),\"\")","v":{"$error":"#N/A"}},{"$f":"IF(INDIRECT(\"c\" & (VLOOKUP(Rebalance!$D$31,$F$2:$G$48,2,FALSE)+ROW()-2))=Rebalance!$D$31,INDIRECT(\"a\" & (VLOOKUP(Rebalance!$D$31,$F$2:$G$48,2,FALSE)+ROW()-2)),\"\")","v":{"$error":"#N/A"}},{"$f":"IF(INDIRECT(\"c\" & (VLOOKUP(Rebalance!$D$32,$F$2:$G$48,2,FALSE)+ROW()-2))=Rebalance!$D$32,INDIRECT(\"a\" & (VLOOKUP(Rebalance!$D$32,$F$2:$G$48,2,FALSE)+ROW()-2)),\"\")","v":{"$error":"#N/A"}},{"$f":"IF(INDIRECT(\"c\" & (VLOOKUP(Rebalance!$D$33,$F$2:$G$48,2,FALSE)+ROW()-2))=Rebalance!$D$33,INDIRECT(\"a\" & (VLOOKUP(Rebalance!$D$33,$F$2:$G$48,2,FALSE)+ROW()-2)),\"\")","v":{"$error":"#N/A"}},{"$f":"IF(INDIRECT(\"c\" & (VLOOKUP(Rebalance!$D$34,$F$2:$G$48,2,FALSE)+ROW()-2))=Rebalance!$D$34,INDIRECT(\"a\" & (VLOOKUP(Rebalance!$D$34,$F$2:$G$48,2,FALSE)+ROW()-2)),\"\")","v":{"$error":"#N/A"}},{"$f":"IF(INDIRECT(\"c\" & (VLOOKUP(Rebalance!$D$35,$F$2:$G$48,2,FALSE)+ROW()-2))=Rebalance!$D$35,INDIRECT(\"a\" & (VLOOKUP(Rebalance!$D$35,$F$2:$G$48,2,FALSE)+ROW()-2)),\"\")","v":{"$error":"#N/A"}},{"$f":"IF(INDIRECT(\"c\" & (VLOOKUP(Rebalance!$D$36,$F$2:$G$48,2,FALSE)+ROW()-2))=Rebalance!$D$36,INDIRECT(\"a\" & (VLOOKUP(Rebalance!$D$36,$F$2:$G$48,2,FALSE)+ROW()-2)),\"\")","v":{"$error":"#N/A"}},{"$f":"IF(INDIRECT(\"c\" & (VLOOKUP(Rebalance!$D$37,$F$2:$G$48,2,FALSE)+ROW()-2))=Rebalance!$D$37,INDIRECT(\"a\" & (VLOOKUP(Rebalance!$D$37,$F$2:$G$48,2,FALSE)+ROW()-2)),\"\")","v":{"$error":"#N/A"}},{"$f":"IF(INDIRECT(\"c\" & (VLOOKUP(Rebalance!$D$38,$F$2:$G$48,2,FALSE)+ROW()-2))=Rebalance!$D$38,INDIRECT(\"a\" & (VLOOKUP(Rebalance!$D$38,$F$2:$G$48,2,FALSE)+ROW()-2)),\"\")","v":{"$error":"#N/A"}},{"$f":"IF(INDIRECT(\"c\" & (VLOOKUP(Rebalance!$D$39,$F$2:$G$48,2,FALSE)+ROW()-2))=Rebalance!$D$39,INDIRECT(\"a\" & (VLOOKUP(Rebalance!$D$39,$F$2:$G$48,2,FALSE)+ROW()-2)),\"\")","v":{"$error":"#N/A"}},{"$f":"IF(INDIRECT(\"c\" & (VLOOKUP(Rebalance!$D$40,$F$2:$G$48,2,FALSE)+ROW()-2))=Rebalance!$D$40,INDIRECT(\"a\" & (VLOOKUP(Rebalance!$D$40,$F$2:$G$48,2,FALSE)+ROW()-2)),\"\")","v":{"$error":"#N/A"}},{"$f":"IF(INDIRECT(\"c\" & (VLOOKUP(Rebalance!$D$52,$F$2:$G$48,2,FALSE)+ROW()-2))=Rebalance!$D$52,INDIRECT(\"a\" & (VLOOKUP(Rebalance!$D$52,$F$2:$G$48,2,FALSE)+ROW()-2)),\"\")","v":{"$error":"#N/A"}},{"$f":"IF(INDIRECT(\"c\" & (VLOOKUP(Rebalance!$D$53,$F$2:$G$48,2,FALSE)+ROW()-2))=Rebalance!$D$53,INDIRECT(\"a\" & (VLOOKUP(Rebalance!$D$53,$F$2:$G$48,2,FALSE)+ROW()-2)),\"\")","v":{"$error":"#N/A"}},{"$f":"IF(INDIRECT(\"c\" & (VLOOKUP(Rebalance!$D$54,$F$2:$G$48,2,FALSE)+ROW()-2))=Rebalance!$D$54,INDIRECT(\"a\" & (VLOOKUP(Rebalance!$D$54,$F$2:$G$48,2,FALSE)+ROW()-2)),\"\")","v":{"$error":"#N/A"}},{"$f":"IF(INDIRECT(\"c\" & (VLOOKUP(Rebalance!$D$55,$F$2:$G$48,2,FALSE)+ROW()-2))=Rebalance!$D$55,INDIRECT(\"a\" & (VLOOKUP(Rebalance!$D$55,$F$2:$G$48,2,FALSE)+ROW()-2)),\"\")","v":{"$error":"#N/A"}},{"$f":"IF(INDIRECT(\"c\" & (VLOOKUP(Rebalance!$D$56,$F$2:$G$48,2,FALSE)+ROW()-2))=Rebalance!$D$56,INDIRECT(\"a\" & (VLOOKUP(Rebalance!$D$56,$F$2:$G$48,2,FALSE)+ROW()-2)),\"\")","v":{"$error":"#N/A"}},{"$f":"IF(INDIRECT(\"c\" & (VLOOKUP(Rebalance!$D$57,$F$2:$G$48,2,FALSE)+ROW()-2))=Rebalance!$D$57,INDIRECT(\"a\" & (VLOOKUP(Rebalance!$D$57,$F$2:$G$48,2,FALSE)+ROW()-2)),\"\")","v":{"$error":"#N/A"}},{"$f":"IF(INDIRECT(\"c\" & (VLOOKUP(Rebalance!$D$58,$F$2:$G$48,2,FALSE)+ROW()-2))=Rebalance!$D$58,INDIRECT(\"a\" & (VLOOKUP(Rebalance!$D$58,$F$2:$G$48,2,FALSE)+ROW()-2)),\"\")","v":{"$error":"#N/A"}},{"$f":"IF(INDIRECT(\"c\" & (VLOOKUP(Rebalance!$D$59,$F$2:$G$48,2,FALSE)+ROW()-2))=Rebalance!$D$59,INDIRECT(\"a\" & (VLOOKUP(Rebalance!$D$59,$F$2:$G$48,2,FALSE)+ROW()-2)),\"\")","v":{"$error":"#N/A"}},{"$f":"IF(INDIRECT(\"c\" & (VLOOKUP(Rebalance!$D$60,$F$2:$G$48,2,FALSE)+ROW()-2))=Rebalance!$D$60,INDIRECT(\"a\" & (VLOOKUP(Rebalance!$D$60,$F$2:$G$48,2,FALSE)+ROW()-2)),\"\")","v":{"$error":"#N/A"}},{"$f":"IF(INDIRECT(\"c\" & (VLOOKUP(Rebalance!$D$61,$F$2:$G$48,2,FALSE)+ROW()-2))=Rebalance!$D$61,INDIRECT(\"a\" & (VLOOKUP(Rebalance!$D$61,$F$2:$G$48,2,FALSE)+ROW()-2)),\"\")","v":{"$error":"#N/A"}},{"$f":"IF(INDIRECT(\"c\" & (VLOOKUP(Rebalance!$D$62,$F$2:$G$48,2,FALSE)+ROW()-2))=Rebalance!$D$62,INDIRECT(\"a\" & (VLOOKUP(Rebalance!$D$62,$F$2:$G$48,2,FALSE)+ROW()-2)),\"\")","v":{"$error":"#N/A"}},{"$f":"IF(INDIRECT(\"c\" & (VLOOKUP(Rebalance!$D$63,$F$2:$G$48,2,FALSE)+ROW()-2))=Rebalance!$D$63,INDIRECT(\"a\" & (VLOOKUP(Rebalance!$D$63,$F$2:$G$48,2,FALSE)+ROW()-2)),\"\")","v":{"$error":"#N/A"}},{"$f":"IF(INDIRECT(\"c\" & (VLOOKUP(Rebalance!$D$64,$F$2:$G$48,2,FALSE)+ROW()-2))=Rebalance!$D$64,INDIRECT(\"a\" & (VLOOKUP(Rebalance!$D$64,$F$2:$G$48,2,FALSE)+ROW()-2)),\"\")","v":{"$error":"#N/A"}},{"$f":"IF(INDIRECT(\"c\" & (VLOOKUP(Rebalance!$D$65,$F$2:$G$48,2,FALSE)+ROW()-2))=Rebalance!$D$65,INDIRECT(\"a\" & (VLOOKUP(Rebalance!$D$65,$F$2:$G$48,2,FALSE)+ROW()-2)),\"\")","v":{"$error":"#N/A"}},{"$f":"IF(INDIRECT(\"c\" & (VLOOKUP(Rebalance!$D$66,$F$2:$G$48,2,FALSE)+ROW()-2))=Rebalance!$D$66,INDIRECT(\"a\" & (VLOOKUP(Rebalance!$D$66,$F$2:$G$48,2,FALSE)+ROW()-2)),\"\")","v":{"$error":"#N/A"}}]
["STANLIB Multi-Manager High Equity FoF B1","SBIA","STANLIB Collective Investments",{"$f":"ROW()","v":73},null,null,{"$f":"VLOOKUP(F73,$C$2:$D$599,2,FALSE)","v":{"$error":"#N/A"}},{"$f":"IF(INDIRECT(\"c\" & (VLOOKUP(Rebalance!$D$26,$F$2:$G$48,2,FALSE)+ROW()-2))=Rebalance!$D$26,INDIRECT(\"a\" & (VLOOKUP(Rebalance!$D$26,$F$2:$G$48,2,FALSE)+ROW()-2)),\"\")","v":{"$error":"#N/A"}},{"$f":"IF(INDIRECT(\"c\" & (VLOOKUP(Rebalance!$D$27,$F$2:$G$48,2,FALSE)+ROW()-2))=Rebalance!$D$27,INDIRECT(\"a\" & (VLOOKUP(Rebalance!$D$27,$F$2:$G$48,2,FALSE)+ROW()-2)),\"\")","v":{"$error":"#N/A"}},{"$f":"IF(INDIRECT(\"c\" & (VLOOKUP(Rebalance!$D$28,$F$2:$G$48,2,FALSE)+ROW()-2))=Rebalance!$D$28,INDIRECT(\"a\" & (VLOOKUP(Rebalance!$D$28,$F$2:$G$48,2,FALSE)+ROW()-2)),\"\")","v":{"$error":"#N/A"}},{"$f":"IF(INDIRECT(\"c\" & (VLOOKUP(Rebalance!$D$29,$F$2:$G$48,2,FALSE)+ROW()-2))=Rebalance!$D$29,INDIRECT(\"a\" & (VLOOKUP(Rebalance!$D$29,$F$2:$G$48,2,FALSE)+ROW()-2)),\"\")","v":{"$error":"#N/A"}},{"$f":"IF(INDIRECT(\"c\" & (VLOOKUP(Rebalance!$D$30,$F$2:$G$48,2,FALSE)+ROW()-2))=Rebalance!$D$30,INDIRECT(\"a\" & (VLOOKUP(Rebalance!$D$30,$F$2:$G$48,2,FALSE)+ROW()-2)),\"\")","v":{"$error":"#N/A"}},{"$f":"IF(INDIRECT(\"c\" & (VLOOKUP(Rebalance!$D$31,$F$2:$G$48,2,FALSE)+ROW()-2))=Rebalance!$D$31,INDIRECT(\"a\" & (VLOOKUP(Rebalance!$D$31,$F$2:$G$48,2,FALSE)+ROW()-2)),\"\")","v":{"$error":"#N/A"}},{"$f":"IF(INDIRECT(\"c\" & (VLOOKUP(Rebalance!$D$32,$F$2:$G$48,2,FALSE)+ROW()-2))=Rebalance!$D$32,INDIRECT(\"a\" & (VLOOKUP(Rebalance!$D$32,$F$2:$G$48,2,FALSE)+ROW()-2)),\"\")","v":{"$error":"#N/A"}},{"$f":"IF(INDIRECT(\"c\" & (VLOOKUP(Rebalance!$D$33,$F$2:$G$48,2,FALSE)+ROW()-2))=Rebalance!$D$33,INDIRECT(\"a\" & (VLOOKUP(Rebalance!$D$33,$F$2:$G$48,2,FALSE)+ROW()-2)),\"\")","v":{"$error":"#N/A"}},{"$f":"IF(INDIRECT(\"c\" & (VLOOKUP(Rebalance!$D$34,$F$2:$G$48,2,FALSE)+ROW()-2))=Rebalance!$D$34,INDIRECT(\"a\" & (VLOOKUP(Rebalance!$D$34,$F$2:$G$48,2,FALSE)+ROW()-2)),\"\")","v":{"$error":"#N/A"}},{"$f":"IF(INDIRECT(\"c\" & (VLOOKUP(Rebalance!$D$35,$F$2:$G$48,2,FALSE)+ROW()-2))=Rebalance!$D$35,INDIRECT(\"a\" & (VLOOKUP(Rebalance!$D$35,$F$2:$G$48,2,FALSE)+ROW()-2)),\"\")","v":{"$error":"#N/A"}},{"$f":"IF(INDIRECT(\"c\" & (VLOOKUP(Rebalance!$D$36,$F$2:$G$48,2,FALSE)+ROW()-2))=Rebalance!$D$36,INDIRECT(\"a\" & (VLOOKUP(Rebalance!$D$36,$F$2:$G$48,2,FALSE)+ROW()-2)),\"\")","v":{"$error":"#N/A"}},{"$f":"IF(INDIRECT(\"c\" & (VLOOKUP(Rebalance!$D$37,$F$2:$G$48,2,FALSE)+ROW()-2))=Rebalance!$D$37,INDIRECT(\"a\" & (VLOOKUP(Rebalance!$D$37,$F$2:$G$48,2,FALSE)+ROW()-2)),\"\")","v":{"$error":"#N/A"}},{"$f":"IF(INDIRECT(\"c\" & (VLOOKUP(Rebalance!$D$38,$F$2:$G$48,2,FALSE)+ROW()-2))=Rebalance!$D$38,INDIRECT(\"a\" & (VLOOKUP(Rebalance!$D$38,$F$2:$G$48,2,FALSE)+ROW()-2)),\"\")","v":{"$error":"#N/A"}},{"$f":"IF(INDIRECT(\"c\" & (VLOOKUP(Rebalance!$D$39,$F$2:$G$48,2,FALSE)+ROW()-2))=Rebalance!$D$39,INDIRECT(\"a\" & (VLOOKUP(Rebalance!$D$39,$F$2:$G$48,2,FALSE)+ROW()-2)),\"\")","v":{"$error":"#N/A"}},{"$f":"IF(INDIRECT(\"c\" & (VLOOKUP(Rebalance!$D$40,$F$2:$G$48,2,FALSE)+ROW()-2))=Rebalance!$D$40,INDIRECT(\"a\" & (VLOOKUP(Rebalance!$D$40,$F$2:$G$48,2,FALSE)+ROW()-2)),\"\")","v":{"$error":"#N/A"}},{"$f":"IF(INDIRECT(\"c\" & (VLOOKUP(Rebalance!$D$52,$F$2:$G$48,2,FALSE)+ROW()-2))=Rebalance!$D$52,INDIRECT(\"a\" & (VLOOKUP(Rebalance!$D$52,$F$2:$G$48,2,FALSE)+ROW()-2)),\"\")","v":{"$error":"#N/A"}},{"$f":"IF(INDIRECT(\"c\" & (VLOOKUP(Rebalance!$D$53,$F$2:$G$48,2,FALSE)+ROW()-2))=Rebalance!$D$53,INDIRECT(\"a\" & (VLOOKUP(Rebalance!$D$53,$F$2:$G$48,2,FALSE)+ROW()-2)),\"\")","v":{"$error":"#N/A"}},{"$f":"IF(INDIRECT(\"c\" & (VLOOKUP(Rebalance!$D$54,$F$2:$G$48,2,FALSE)+ROW()-2))=Rebalance!$D$54,INDIRECT(\"a\" & (VLOOKUP(Rebalance!$D$54,$F$2:$G$48,2,FALSE)+ROW()-2)),\"\")","v":{"$error":"#N/A"}},{"$f":"IF(INDIRECT(\"c\" & (VLOOKUP(Rebalance!$D$55,$F$2:$G$48,2,FALSE)+ROW()-2))=Rebalance!$D$55,INDIRECT(\"a\" & (VLOOKUP(Rebalance!$D$55,$F$2:$G$48,2,FALSE)+ROW()-2)),\"\")","v":{"$error":"#N/A"}},{"$f":"IF(INDIRECT(\"c\" & (VLOOKUP(Rebalance!$D$56,$F$2:$G$48,2,FALSE)+ROW()-2))=Rebalance!$D$56,INDIRECT(\"a\" & (VLOOKUP(Rebalance!$D$56,$F$2:$G$48,2,FALSE)+ROW()-2)),\"\")","v":{"$error":"#N/A"}},{"$f":"IF(INDIRECT(\"c\" & (VLOOKUP(Rebalance!$D$57,$F$2:$G$48,2,FALSE)+ROW()-2))=Rebalance!$D$57,INDIRECT(\"a\" & (VLOOKUP(Rebalance!$D$57,$F$2:$G$48,2,FALSE)+ROW()-2)),\"\")","v":{"$error":"#N/A"}},{"$f":"IF(INDIRECT(\"c\" & (VLOOKUP(Rebalance!$D$58,$F$2:$G$48,2,FALSE)+ROW()-2))=Rebalance!$D$58,INDIRECT(\"a\" & (VLOOKUP(Rebalance!$D$58,$F$2:$G$48,2,FALSE)+ROW()-2)),\"\")","v":{"$error":"#N/A"}},{"$f":"IF(INDIRECT(\"c\" & (VLOOKUP(Rebalance!$D$59,$F$2:$G$48,2,FALSE)+ROW()-2))=Rebalance!$D$59,INDIRECT(\"a\" & (VLOOKUP(Rebalance!$D$59,$F$2:$G$48,2,FALSE)+ROW()-2)),\"\")","v":{"$error":"#N/A"}},{"$f":"IF(INDIRECT(\"c\" & (VLOOKUP(Rebalance!$D$60,$F$2:$G$48,2,FALSE)+ROW()-2))=Rebalance!$D$60,INDIRECT(\"a\" & (VLOOKUP(Rebalance!$D$60,$F$2:$G$48,2,FALSE)+ROW()-2)),\"\")","v":{"$error":"#N/A"}},{"$f":"IF(INDIRECT(\"c\" & (VLOOKUP(Rebalance!$D$61,$F$2:$G$48,2,FALSE)+ROW()-2))=Rebalance!$D$61,INDIRECT(\"a\" & (VLOOKUP(Rebalance!$D$61,$F$2:$G$48,2,FALSE)+ROW()-2)),\"\")","v":{"$error":"#N/A"}},{"$f":"IF(INDIRECT(\"c\" & (VLOOKUP(Rebalance!$D$62,$F$2:$G$48,2,FALSE)+ROW()-2))=Rebalance!$D$62,INDIRECT(\"a\" & (VLOOKUP(Rebalance!$D$62,$F$2:$G$48,2,FALSE)+ROW()-2)),\"\")","v":{"$error":"#N/A"}},{"$f":"IF(INDIRECT(\"c\" & (VLOOKUP(Rebalance!$D$63,$F$2:$G$48,2,FALSE)+ROW()-2))=Rebalance!$D$63,INDIRECT(\"a\" & (VLOOKUP(Rebalance!$D$63,$F$2:$G$48,2,FALSE)+ROW()-2)),\"\")","v":{"$error":"#N/A"}},{"$f":"IF(INDIRECT(\"c\" & (VLOOKUP(Rebalance!$D$64,$F$2:$G$48,2,FALSE)+ROW()-2))=Rebalance!$D$64,INDIRECT(\"a\" & (VLOOKUP(Rebalance!$D$64,$F$2:$G$48,2,FALSE)+ROW()-2)),\"\")","v":{"$error":"#N/A"}},{"$f":"IF(INDIRECT(\"c\" & (VLOOKUP(Rebalance!$D$65,$F$2:$G$48,2,FALSE)+ROW()-2))=Rebalance!$D$65,INDIRECT(\"a\" & (VLOOKUP(Rebalance!$D$65,$F$2:$G$48,2,FALSE)+ROW()-2)),\"\")","v":{"$error":"#N/A"}},{"$f":"IF(INDIRECT(\"c\" & (VLOOKUP(Rebalance!$D$66,$F$2:$G$48,2,FALSE)+ROW()-2))=Rebalance!$D$66,INDIRECT(\"a\" & (VLOOKUP(Rebalance!$D$66,$F$2:$G$48,2,FALSE)+ROW()-2)),\"\")","v":{"$error":"#N/A"}}]
["STANLIB Multi-Manager Medium-High Equity FoF B1","SBMF","STANLIB Collective Investments",{"$f":"ROW()","v":74},null,null,{"$f":"VLOOKUP(F74,$C$2:$D$599,2,FALSE)","v":{"$error":"#N/A"}},{"$f":"IF(INDIRECT(\"c\" & (VLOOKUP(Rebalance!$D$26,$F$2:$G$48,2,FALSE)+ROW()-2))=Rebalance!$D$26,INDIRECT(\"a\" & (VLOOKUP(Rebalance!$D$26,$F$2:$G$48,2,FALSE)+ROW()-2)),\"\")","v":{"$error":"#N/A"}},{"$f":"IF(INDIRECT(\"c\" & (VLOOKUP(Rebalance!$D$27,$F$2:$G$48,2,FALSE)+ROW()-2))=Rebalance!$D$27,INDIRECT(\"a\" & (VLOOKUP(Rebalance!$D$27,$F$2:$G$48,2,FALSE)+ROW()-2)),\"\")","v":{"$error":"#N/A"}},{"$f":"IF(INDIRECT(\"c\" & (VLOOKUP(Rebalance!$D$28,$F$2:$G$48,2,FALSE)+ROW()-2))=Rebalance!$D$28,INDIRECT(\"a\" & (VLOOKUP(Rebalance!$D$28,$F$2:$G$48,2,FALSE)+ROW()-2)),\"\")","v":{"$error":"#N/A"}},{"$f":"IF(INDIRECT(\"c\" & (VLOOKUP(Rebalance!$D$29,$F$2:$G$48,2,FALSE)+ROW()-2))=Rebalance!$D$29,INDIRECT(\"a\" & (VLOOKUP(Rebalance!$D$29,$F$2:$G$48,2,FALSE)+ROW()-2)),\"\")","v":{"$error":"#N/A"}},{"$f":"IF(INDIRECT(\"c\" & (VLOOKUP(Rebalance!$D$30,$F$2:$G$48,2,FALSE)+ROW()-2))=Rebalance!$D$30,INDIRECT(\"a\" & (VLOOKUP(Rebalance!$D$30,$F$2:$G$48,2,FALSE)+ROW()-2)),\"\")","v":{"$error":"#N/A"}},{"$f":"IF(INDIRECT(\"c\" & (VLOOKUP(Rebalance!$D$31,$F$2:$G$48,2,FALSE)+ROW()-2))=Rebalance!$D$31,INDIRECT(\"a\" & (VLOOKUP(Rebalance!$D$31,$F$2:$G$48,2,FALSE)+ROW()-2)),\"\")","v":{"$error":"#N/A"}},{"$f":"IF(INDIRECT(\"c\" & (VLOOKUP(Rebalance!$D$32,$F$2:$G$48,2,FALSE)+ROW()-2))=Rebalance!$D$32,INDIRECT(\"a\" & (VLOOKUP(Rebalance!$D$32,$F$2:$G$48,2,FALSE)+ROW()-2)),\"\")","v":{"$error":"#N/A"}},{"$f":"IF(INDIRECT(\"c\" & (VLOOKUP(Rebalance!$D$33,$F$2:$G$48,2,FALSE)+ROW()-2))=Rebalance!$D$33,INDIRECT(\"a\" & (VLOOKUP(Rebalance!$D$33,$F$2:$G$48,2,FALSE)+ROW()-2)),\"\")","v":{"$error":"#N/A"}},{"$f":"IF(INDIRECT(\"c\" & (VLOOKUP(Rebalance!$D$34,$F$2:$G$48,2,FALSE)+ROW()-2))=Rebalance!$D$34,INDIRECT(\"a\" & (VLOOKUP(Rebalance!$D$34,$F$2:$G$48,2,FALSE)+ROW()-2)),\"\")","v":{"$error":"#N/A"}},{"$f":"IF(INDIRECT(\"c\" & (VLOOKUP(Rebalance!$D$35,$F$2:$G$48,2,FALSE)+ROW()-2))=Rebalance!$D$35,INDIRECT(\"a\" & (VLOOKUP(Rebalance!$D$35,$F$2:$G$48,2,FALSE)+ROW()-2)),\"\")","v":{"$error":"#N/A"}},{"$f":"IF(INDIRECT(\"c\" & (VLOOKUP(Rebalance!$D$36,$F$2:$G$48,2,FALSE)+ROW()-2))=Rebalance!$D$36,INDIRECT(\"a\" & (VLOOKUP(Rebalance!$D$36,$F$2:$G$48,2,FALSE)+ROW()-2)),\"\")","v":{"$error":"#N/A"}},{"$f":"IF(INDIRECT(\"c\" & (VLOOKUP(Rebalance!$D$37,$F$2:$G$48,2,FALSE)+ROW()-2))=Rebalance!$D$37,INDIRECT(\"a\" & (VLOOKUP(Rebalance!$D$37,$F$2:$G$48,2,FALSE)+ROW()-2)),\"\")","v":{"$error":"#N/A"}},{"$f":"IF(INDIRECT(\"c\" & (VLOOKUP(Rebalance!$D$38,$F$2:$G$48,2,FALSE)+ROW()-2))=Rebalance!$D$38,INDIRECT(\"a\" & (VLOOKUP(Rebalance!$D$38,$F$2:$G$48,2,FALSE)+ROW()-2)),\"\")","v":{"$error":"#N/A"}},{"$f":"IF(INDIRECT(\"c\" & (VLOOKUP(Rebalance!$D$39,$F$2:$G$48,2,FALSE)+ROW()-2))=Rebalance!$D$39,INDIRECT(\"a\" & (VLOOKUP(Rebalance!$D$39,$F$2:$G$48,2,FALSE)+ROW()-2)),\"\")","v":{"$error":"#N/A"}},{"$f":"IF(INDIRECT(\"c\" & (VLOOKUP(Rebalance!$D$40,$F$2:$G$48,2,FALSE)+ROW()-2))=Rebalance!$D$40,INDIRECT(\"a\" & (VLOOKUP(Rebalance!$D$40,$F$2:$G$48,2,FALSE)+ROW()-2)),\"\")","v":{"$error":"#N/A"}},{"$f":"IF(INDIRECT(\"c\" & (VLOOKUP(Rebalance!$D$52,$F$2:$G$48,2,FALSE)+ROW()-2))=Rebalance!$D$52,INDIRECT(\"a\" & (VLOOKUP(Rebalance!$D$52,$F$2:$G$48,2,FALSE)+ROW()-2)),\"\")","v":{"$error":"#N/A"}},{"$f":"IF(INDIRECT(\"c\" & (VLOOKUP(Rebalance!$D$53,$F$2:$G$48,2,FALSE)+ROW()-2))=Rebalance!$D$53,INDIRECT(\"a\" & (VLOOKUP(Rebalance!$D$53,$F$2:$G$48,2,FALSE)+ROW()-2)),\"\")","v":{"$error":"#N/A"}},{"$f":"IF(INDIRECT(\"c\" & (VLOOKUP(Rebalance!$D$54,$F$2:$G$48,2,FALSE)+ROW()-2))=Rebalance!$D$54,INDIRECT(\"a\" & (VLOOKUP(Rebalance!$D$54,$F$2:$G$48,2,FALSE)+ROW()-2)),\"\")","v":{"$error":"#N/A"}},{"$f":"IF(INDIRECT(\"c\" & (VLOOKUP(Rebalance!$D$55,$F$2:$G$48,2,FALSE)+ROW()-2))=Rebalance!$D$55,INDIRECT(\"a\" & (VLOOKUP(Rebalance!$D$55,$F$2:$G$48,2,FALSE)+ROW()-2)),\"\")","v":{"$error":"#N/A"}},{"$f":"IF(INDIRECT(\"c\" & (VLOOKUP(Rebalance!$D$56,$F$2:$G$48,2,FALSE)+ROW()-2))=Rebalance!$D$56,INDIRECT(\"a\" & (VLOOKUP(Rebalance!$D$56,$F$2:$G$48,2,FALSE)+ROW()-2)),\"\")","v":{"$error":"#N/A"}},{"$f":"IF(INDIRECT(\"c\" & (VLOOKUP(Rebalance!$D$57,$F$2:$G$48,2,FALSE)+ROW()-2))=Rebalance!$D$57,INDIRECT(\"a\" & (VLOOKUP(Rebalance!$D$57,$F$2:$G$48,2,FALSE)+ROW()-2)),\"\")","v":{"$error":"#N/A"}},{"$f":"IF(INDIRECT(\"c\" & (VLOOKUP(Rebalance!$D$58,$F$2:$G$48,2,FALSE)+ROW()-2))=Rebalance!$D$58,INDIRECT(\"a\" & (VLOOKUP(Rebalance!$D$58,$F$2:$G$48,2,FALSE)+ROW()-2)),\"\")","v":{"$error":"#N/A"}},{"$f":"IF(INDIRECT(\"c\" & (VLOOKUP(Rebalance!$D$59,$F$2:$G$48,2,FALSE)+ROW()-2))=Rebalance!$D$59,INDIRECT(\"a\" & (VLOOKUP(Rebalance!$D$59,$F$2:$G$48,2,FALSE)+ROW()-2)),\"\")","v":{"$error":"#N/A"}},{"$f":"IF(INDIRECT(\"c\" & (VLOOKUP(Rebalance!$D$60,$F$2:$G$48,2,FALSE)+ROW()-2))=Rebalance!$D$60,INDIRECT(\"a\" & (VLOOKUP(Rebalance!$D$60,$F$2:$G$48,2,FALSE)+ROW()-2)),\"\")","v":{"$error":"#N/A"}},{"$f":"IF(INDIRECT(\"c\" & (VLOOKUP(Rebalance!$D$61,$F$2:$G$48,2,FALSE)+ROW()-2))=Rebalance!$D$61,INDIRECT(\"a\" & (VLOOKUP(Rebalance!$D$61,$F$2:$G$48,2,FALSE)+ROW()-2)),\"\")","v":{"$error":"#N/A"}},{"$f":"IF(INDIRECT(\"c\" & (VLOOKUP(Rebalance!$D$62,$F$2:$G$48,2,FALSE)+ROW()-2))=Rebalance!$D$62,INDIRECT(\"a\" & (VLOOKUP(Rebalance!$D$62,$F$2:$G$48,2,FALSE)+ROW()-2)),\"\")","v":{"$error":"#N/A"}},{"$f":"IF(INDIRECT(\"c\" & (VLOOKUP(Rebalance!$D$63,$F$2:$G$48,2,FALSE)+ROW()-2))=Rebalance!$D$63,INDIRECT(\"a\" & (VLOOKUP(Rebalance!$D$63,$F$2:$G$48,2,FALSE)+ROW()-2)),\"\")","v":{"$error":"#N/A"}},{"$f":"IF(INDIRECT(\"c\" & (VLOOKUP(Rebalance!$D$64,$F$2:$G$48,2,FALSE)+ROW()-2))=Rebalance!$D$64,INDIRECT(\"a\" & (VLOOKUP(Rebalance!$D$64,$F$2:$G$48,2,FALSE)+ROW()-2)),\"\")","v":{"$error":"#N/A"}},{"$f":"IF(INDIRECT(\"c\" & (VLOOKUP(Rebalance!$D$65,$F$2:$G$48,2,FALSE)+ROW()-2))=Rebalance!$D$65,INDIRECT(\"a\" & (VLOOKUP(Rebalance!$D$65,$F$2:$G$48,2,FALSE)+ROW()-2)),\"\")","v":{"$error":"#N/A"}},{"$f":"IF(INDIRECT(\"c\" & (VLOOKUP(Rebalance!$D$66,$F$2:$G$48,2,FALSE)+ROW()-2))=Rebalance!$D$66,INDIRECT(\"a\" & (VLOOKUP(Rebalance!$D$66,$F$2:$G$48,2,FALSE)+ROW()-2)),\"\")","v":{"$error":"#N/A"}}]
["STANLIB Multi-Manager Shari'ah Balanced Fund of Funds B1","STSB4","STANLIB Collective Investments",{"$f":"ROW()","v":75},null,null,{"$f":"VLOOKUP(F75,$C$2:$D$599,2,FALSE)","v":{"$error":"#N/A"}},{"$f":"IF(INDIRECT(\"c\" & (VLOOKUP(Rebalance!$D$26,$F$2:$G$48,2,FALSE)+ROW()-2))=Rebalance!$D$26,INDIRECT(\"a\" & (VLOOKUP(Rebalance!$D$26,$F$2:$G$48,2,FALSE)+ROW()-2)),\"\")","v":{"$error":"#N/A"}},{"$f":"IF(INDIRECT(\"c\" & (VLOOKUP(Rebalance!$D$27,$F$2:$G$48,2,FALSE)+ROW()-2))=Rebalance!$D$27,INDIRECT(\"a\" & (VLOOKUP(Rebalance!$D$27,$F$2:$G$48,2,FALSE)+ROW()-2)),\"\")","v":{"$error":"#N/A"}},{"$f":"IF(INDIRECT(\"c\" & (VLOOKUP(Rebalance!$D$28,$F$2:$G$48,2,FALSE)+ROW()-2))=Rebalance!$D$28,INDIRECT(\"a\" & (VLOOKUP(Rebalance!$D$28,$F$2:$G$48,2,FALSE)+ROW()-2)),\"\")","v":{"$error":"#N/A"}},{"$f":"IF(INDIRECT(\"c\" & (VLOOKUP(Rebalance!$D$29,$F$2:$G$48,2,FALSE)+ROW()-2))=Rebalance!$D$29,INDIRECT(\"a\" & (VLOOKUP(Rebalance!$D$29,$F$2:$G$48,2,FALSE)+ROW()-2)),\"\")","v":{"$error":"#N/A"}},{"$f":"IF(INDIRECT(\"c\" & (VLOOKUP(Rebalance!$D$30,$F$2:$G$48,2,FALSE)+ROW()-2))=Rebalance!$D$30,INDIRECT(\"a\" & (VLOOKUP(Rebalance!$D$30,$F$2:$G$48,2,FALSE)+ROW()-2)),\"\")","v":{"$error":"#N/A"}},{"$f":"IF(INDIRECT(\"c\" & (VLOOKUP(Rebalance!$D$31,$F$2:$G$48,2,FALSE)+ROW()-2))=Rebalance!$D$31,INDIRECT(\"a\" & (VLOOKUP(Rebalance!$D$31,$F$2:$G$48,2,FALSE)+ROW()-2)),\"\")","v":{"$error":"#N/A"}},{"$f":"IF(INDIRECT(\"c\" & (VLOOKUP(Rebalance!$D$32,$F$2:$G$48,2,FALSE)+ROW()-2))=Rebalance!$D$32,INDIRECT(\"a\" & (VLOOKUP(Rebalance!$D$32,$F$2:$G$48,2,FALSE)+ROW()-2)),\"\")","v":{"$error":"#N/A"}},{"$f":"IF(INDIRECT(\"c\" & (VLOOKUP(Rebalance!$D$33,$F$2:$G$48,2,FALSE)+ROW()-2))=Rebalance!$D$33,INDIRECT(\"a\" & (VLOOKUP(Rebalance!$D$33,$F$2:$G$48,2,FALSE)+ROW()-2)),\"\")","v":{"$error":"#N/A"}},{"$f":"IF(INDIRECT(\"c\" & (VLOOKUP(Rebalance!$D$34,$F$2:$G$48,2,FALSE)+ROW()-2))=Rebalance!$D$34,INDIRECT(\"a\" & (VLOOKUP(Rebalance!$D$34,$F$2:$G$48,2,FALSE)+ROW()-2)),\"\")","v":{"$error":"#N/A"}},{"$f":"IF(INDIRECT(\"c\" & (VLOOKUP(Rebalance!$D$35,$F$2:$G$48,2,FALSE)+ROW()-2))=Rebalance!$D$35,INDIRECT(\"a\" & (VLOOKUP(Rebalance!$D$35,$F$2:$G$48,2,FALSE)+ROW()-2)),\"\")","v":{"$error":"#N/A"}},{"$f":"IF(INDIRECT(\"c\" & (VLOOKUP(Rebalance!$D$36,$F$2:$G$48,2,FALSE)+ROW()-2))=Rebalance!$D$36,INDIRECT(\"a\" & (VLOOKUP(Rebalance!$D$36,$F$2:$G$48,2,FALSE)+ROW()-2)),\"\")","v":{"$error":"#N/A"}},{"$f":"IF(INDIRECT(\"c\" & (VLOOKUP(Rebalance!$D$37,$F$2:$G$48,2,FALSE)+ROW()-2))=Rebalance!$D$37,INDIRECT(\"a\" & (VLOOKUP(Rebalance!$D$37,$F$2:$G$48,2,FALSE)+ROW()-2)),\"\")","v":{"$error":"#N/A"}},{"$f":"IF(INDIRECT(\"c\" & (VLOOKUP(Rebalance!$D$38,$F$2:$G$48,2,FALSE)+ROW()-2))=Rebalance!$D$38,INDIRECT(\"a\" & (VLOOKUP(Rebalance!$D$38,$F$2:$G$48,2,FALSE)+ROW()-2)),\"\")","v":{"$error":"#N/A"}},{"$f":"IF(INDIRECT(\"c\" & (VLOOKUP(Rebalance!$D$39,$F$2:$G$48,2,FALSE)+ROW()-2))=Rebalance!$D$39,INDIRECT(\"a\" & (VLOOKUP(Rebalance!$D$39,$F$2:$G$48,2,FALSE)+ROW()-2)),\"\")","v":{"$error":"#N/A"}},{"$f":"IF(INDIRECT(\"c\" & (VLOOKUP(Rebalance!$D$40,$F$2:$G$48,2,FALSE)+ROW()-2))=Rebalance!$D$40,INDIRECT(\"a\" & (VLOOKUP(Rebalance!$D$40,$F$2:$G$48,2,FALSE)+ROW()-2)),\"\")","v":{"$error":"#N/A"}},{"$f":"IF(INDIRECT(\"c\" & (VLOOKUP(Rebalance!$D$52,$F$2:$G$48,2,FALSE)+ROW()-2))=Rebalance!$D$52,INDIRECT(\"a\" & (VLOOKUP(Rebalance!$D$52,$F$2:$G$48,2,FALSE)+ROW()-2)),\"\")","v":{"$error":"#N/A"}},{"$f":"IF(INDIRECT(\"c\" & (VLOOKUP(Rebalance!$D$53,$F$2:$G$48,2,FALSE)+ROW()-2))=Rebalance!$D$53,INDIRECT(\"a\" & (VLOOKUP(Rebalance!$D$53,$F$2:$G$48,2,FALSE)+ROW()-2)),\"\")","v":{"$error":"#N/A"}},{"$f":"IF(INDIRECT(\"c\" & (VLOOKUP(Rebalance!$D$54,$F$2:$G$48,2,FALSE)+ROW()-2))=Rebalance!$D$54,INDIRECT(\"a\" & (VLOOKUP(Rebalance!$D$54,$F$2:$G$48,2,FALSE)+ROW()-2)),\"\")","v":{"$error":"#N/A"}},{"$f":"IF(INDIRECT(\"c\" & (VLOOKUP(Rebalance!$D$55,$F$2:$G$48,2,FALSE)+ROW()-2))=Rebalance!$D$55,INDIRECT(\"a\" & (VLOOKUP(Rebalance!$D$55,$F$2:$G$48,2,FALSE)+ROW()-2)),\"\")","v":{"$error":"#N/A"}},{"$f":"IF(INDIRECT(\"c\" & (VLOOKUP(Rebalance!$D$56,$F$2:$G$48,2,FALSE)+ROW()-2))=Rebalance!$D$56,INDIRECT(\"a\" & (VLOOKUP(Rebalance!$D$56,$F$2:$G$48,2,FALSE)+ROW()-2)),\"\")","v":{"$error":"#N/A"}},{"$f":"IF(INDIRECT(\"c\" & (VLOOKUP(Rebalance!$D$57,$F$2:$G$48,2,FALSE)+ROW()-2))=Rebalance!$D$57,INDIRECT(\"a\" & (VLOOKUP(Rebalance!$D$57,$F$2:$G$48,2,FALSE)+ROW()-2)),\"\")","v":{"$error":"#N/A"}},{"$f":"IF(INDIRECT(\"c\" & (VLOOKUP(Rebalance!$D$58,$F$2:$G$48,2,FALSE)+ROW()-2))=Rebalance!$D$58,INDIRECT(\"a\" & (VLOOKUP(Rebalance!$D$58,$F$2:$G$48,2,FALSE)+ROW()-2)),\"\")","v":{"$error":"#N/A"}},{"$f":"IF(INDIRECT(\"c\" & (VLOOKUP(Rebalance!$D$59,$F$2:$G$48,2,FALSE)+ROW()-2))=Rebalance!$D$59,INDIRECT(\"a\" & (VLOOKUP(Rebalance!$D$59,$F$2:$G$48,2,FALSE)+ROW()-2)),\"\")","v":{"$error":"#N/A"}},{"$f":"IF(INDIRECT(\"c\" & (VLOOKUP(Rebalance!$D$60,$F$2:$G$48,2,FALSE)+ROW()-2))=Rebalance!$D$60,INDIRECT(\"a\" & (VLOOKUP(Rebalance!$D$60,$F$2:$G$48,2,FALSE)+ROW()-2)),\"\")","v":{"$error":"#N/A"}},{"$f":"IF(INDIRECT(\"c\" & (VLOOKUP(Rebalance!$D$61,$F$2:$G$48,2,FALSE)+ROW()-2))=Rebalance!$D$61,INDIRECT(\"a\" & (VLOOKUP(Rebalance!$D$61,$F$2:$G$48,2,FALSE)+ROW()-2)),\"\")","v":{"$error":"#N/A"}},{"$f":"IF(INDIRECT(\"c\" & (VLOOKUP(Rebalance!$D$62,$F$2:$G$48,2,FALSE)+ROW()-2))=Rebalance!$D$62,INDIRECT(\"a\" & (VLOOKUP(Rebalance!$D$62,$F$2:$G$48,2,FALSE)+ROW()-2)),\"\")","v":{"$error":"#N/A"}},{"$f":"IF(INDIRECT(\"c\" & (VLOOKUP(Rebalance!$D$63,$F$2:$G$48,2,FALSE)+ROW()-2))=Rebalance!$D$63,INDIRECT(\"a\" & (VLOOKUP(Rebalance!$D$63,$F$2:$G$48,2,FALSE)+ROW()-2)),\"\")","v":{"$error":"#N/A"}},{"$f":"IF(INDIRECT(\"c\" & (VLOOKUP(Rebalance!$D$64,$F$2:$G$48,2,FALSE)+ROW()-2))=Rebalance!$D$64,INDIRECT(\"a\" & (VLOOKUP(Rebalance!$D$64,$F$2:$G$48,2,FALSE)+ROW()-2)),\"\")","v":{"$error":"#N/A"}},{"$f":"IF(INDIRECT(\"c\" & (VLOOKUP(Rebalance!$D$65,$F$2:$G$48,2,FALSE)+ROW()-2))=Rebalance!$D$65,INDIRECT(\"a\" & (VLOOKUP(Rebalance!$D$65,$F$2:$G$48,2,FALSE)+ROW()-2)),\"\")","v":{"$error":"#N/A"}},{"$f":"IF(INDIRECT(\"c\" & (VLOOKUP(Rebalance!$D$66,$F$2:$G$48,2,FALSE)+ROW()-2))=Rebalance!$D$66,INDIRECT(\"a\" & (VLOOKUP(Rebalance!$D$66,$F$2:$G$48,2,FALSE)+ROW()-2)),\"\")","v":{"$error":"#N/A"}}]
["STANLIB Property Income Fund  A","STPI","STANLIB Collective Investments",{"$f":"ROW()","v":76},null,null,{"$f":"VLOOKUP(F76,$C$2:$D$599,2,FALSE)","v":{"$error":"#N/A"}},{"$f":"IF(INDIRECT(\"c\" & (VLOOKUP(Rebalance!$D$26,$F$2:$G$48,2,FALSE)+ROW()-2))=Rebalance!$D$26,INDIRECT(\"a\" & (VLOOKUP(Rebalance!$D$26,$F$2:$G$48,2,FALSE)+ROW()-2)),\"\")","v":{"$error":"#N/A"}},{"$f":"IF(INDIRECT(\"c\" & (VLOOKUP(Rebalance!$D$27,$F$2:$G$48,2,FALSE)+ROW()-2))=Rebalance!$D$27,INDIRECT(\"a\" & (VLOOKUP(Rebalance!$D$27,$F$2:$G$48,2,FALSE)+ROW()-2)),\"\")","v":{"$error":"#N/A"}},{"$f":"IF(INDIRECT(\"c\" & (VLOOKUP(Rebalance!$D$28,$F$2:$G$48,2,FALSE)+ROW()-2))=Rebalance!$D$28,INDIRECT(\"a\" & (VLOOKUP(Rebalance!$D$28,$F$2:$G$48,2,FALSE)+ROW()-2)),\"\")","v":{"$error":"#N/A"}},{"$f":"IF(INDIRECT(\"c\" & (VLOOKUP(Rebalance!$D$29,$F$2:$G$48,2,FALSE)+ROW()-2))=Rebalance!$D$29,INDIRECT(\"a\" & (VLOOKUP(Rebalance!$D$29,$F$2:$G$48,2,FALSE)+ROW()-2)),\"\")","v":{"$error":"#N/A"}},{"$f":"IF(INDIRECT(\"c\" & (VLOOKUP(Rebalance!$D$30,$F$2:$G$48,2,FALSE)+ROW()-2))=Rebalance!$D$30,INDIRECT(\"a\" & (VLOOKUP(Rebalance!$D$30,$F$2:$G$48,2,FALSE)+ROW()-2)),\"\")","v":{"$error":"#N/A"}},{"$f":"IF(INDIRECT(\"c\" & (VLOOKUP(Rebalance!$D$31,$F$2:$G$48,2,FALSE)+ROW()-2))=Rebalance!$D$31,INDIRECT(\"a\" & (VLOOKUP(Rebalance!$D$31,$F$2:$G$48,2,FALSE)+ROW()-2)),\"\")","v":{"$error":"#N/A"}},{"$f":"IF(INDIRECT(\"c\" & (VLOOKUP(Rebalance!$D$32,$F$2:$G$48,2,FALSE)+ROW()-2))=Rebalance!$D$32,INDIRECT(\"a\" & (VLOOKUP(Rebalance!$D$32,$F$2:$G$48,2,FALSE)+ROW()-2)),\"\")","v":{"$error":"#N/A"}},{"$f":"IF(INDIRECT(\"c\" & (VLOOKUP(Rebalance!$D$33,$F$2:$G$48,2,FALSE)+ROW()-2))=Rebalance!$D$33,INDIRECT(\"a\" & (VLOOKUP(Rebalance!$D$33,$F$2:$G$48,2,FALSE)+ROW()-2)),\"\")","v":{"$error":"#N/A"}},{"$f":"IF(INDIRECT(\"c\" & (VLOOKUP(Rebalance!$D$34,$F$2:$G$48,2,FALSE)+ROW()-2))=Rebalance!$D$34,INDIRECT(\"a\" & (VLOOKUP(Rebalance!$D$34,$F$2:$G$48,2,FALSE)+ROW()-2)),\"\")","v":{"$error":"#N/A"}},{"$f":"IF(INDIRECT(\"c\" & (VLOOKUP(Rebalance!$D$35,$F$2:$G$48,2,FALSE)+ROW()-2))=Rebalance!$D$35,INDIRECT(\"a\" & (VLOOKUP(Rebalance!$D$35,$F$2:$G$48,2,FALSE)+ROW()-2)),\"\")","v":{"$error":"#N/A"}},{"$f":"IF(INDIRECT(\"c\" & (VLOOKUP(Rebalance!$D$36,$F$2:$G$48,2,FALSE)+ROW()-2))=Rebalance!$D$36,INDIRECT(\"a\" & (VLOOKUP(Rebalance!$D$36,$F$2:$G$48,2,FALSE)+ROW()-2)),\"\")","v":{"$error":"#N/A"}},{"$f":"IF(INDIRECT(\"c\" & (VLOOKUP(Rebalance!$D$37,$F$2:$G$48,2,FALSE)+ROW()-2))=Rebalance!$D$37,INDIRECT(\"a\" & (VLOOKUP(Rebalance!$D$37,$F$2:$G$48,2,FALSE)+ROW()-2)),\"\")","v":{"$error":"#N/A"}},{"$f":"IF(INDIRECT(\"c\" & (VLOOKUP(Rebalance!$D$38,$F$2:$G$48,2,FALSE)+ROW()-2))=Rebalance!$D$38,INDIRECT(\"a\" & (VLOOKUP(Rebalance!$D$38,$F$2:$G$48,2,FALSE)+ROW()-2)),\"\")","v":{"$error":"#N/A"}},{"$f":"IF(INDIRECT(\"c\" & (VLOOKUP(Rebalance!$D$39,$F$2:$G$48,2,FALSE)+ROW()-2))=Rebalance!$D$39,INDIRECT(\"a\" & (VLOOKUP(Rebalance!$D$39,$F$2:$G$48,2,FALSE)+ROW()-2)),\"\")","v":{"$error":"#N/A"}},{"$f":"IF(INDIRECT(\"c\" & (VLOOKUP(Rebalance!$D$40,$F$2:$G$48,2,FALSE)+ROW()-2))=Rebalance!$D$40,INDIRECT(\"a\" & (VLOOKUP(Rebalance!$D$40,$F$2:$G$48,2,FALSE)+ROW()-2)),\"\")","v":{"$error":"#N/A"}},{"$f":"IF(INDIRECT(\"c\" & (VLOOKUP(Rebalance!$D$52,$F$2:$G$48,2,FALSE)+ROW()-2))=Rebalance!$D$52,INDIRECT(\"a\" & (VLOOKUP(Rebalance!$D$52,$F$2:$G$48,2,FALSE)+ROW()-2)),\"\")","v":{"$error":"#N/A"}},{"$f":"IF(INDIRECT(\"c\" & (VLOOKUP(Rebalance!$D$53,$F$2:$G$48,2,FALSE)+ROW()-2))=Rebalance!$D$53,INDIRECT(\"a\" & (VLOOKUP(Rebalance!$D$53,$F$2:$G$48,2,FALSE)+ROW()-2)),\"\")","v":{"$error":"#N/A"}},{"$f":"IF(INDIRECT(\"c\" & (VLOOKUP(Rebalance!$D$54,$F$2:$G$48,2,FALSE)+ROW()-2))=Rebalance!$D$54,INDIRECT(\"a\" & (VLOOKUP(Rebalance!$D$54,$F$2:$G$48,2,FALSE)+ROW()-2)),\"\")","v":{"$error":"#N/A"}},{"$f":"IF(INDIRECT(\"c\" & (VLOOKUP(Rebalance!$D$55,$F$2:$G$48,2,FALSE)+ROW()-2))=Rebalance!$D$55,INDIRECT(\"a\" & (VLOOKUP(Rebalance!$D$55,$F$2:$G$48,2,FALSE)+ROW()-2)),\"\")","v":{"$error":"#N/A"}},{"$f":"IF(INDIRECT(\"c\" & (VLOOKUP(Rebalance!$D$56,$F$2:$G$48,2,FALSE)+ROW()-2))=Rebalance!$D$56,INDIRECT(\"a\" & (VLOOKUP(Rebalance!$D$56,$F$2:$G$48,2,FALSE)+ROW()-2)),\"\")","v":{"$error":"#N/A"}},{"$f":"IF(INDIRECT(\"c\" & (VLOOKUP(Rebalance!$D$57,$F$2:$G$48,2,FALSE)+ROW()-2))=Rebalance!$D$57,INDIRECT(\"a\" & (VLOOKUP(Rebalance!$D$57,$F$2:$G$48,2,FALSE)+ROW()-2)),\"\")","v":{"$error":"#N/A"}},{"$f":"IF(INDIRECT(\"c\" & (VLOOKUP(Rebalance!$D$58,$F$2:$G$48,2,FALSE)+ROW()-2))=Rebalance!$D$58,INDIRECT(\"a\" & (VLOOKUP(Rebalance!$D$58,$F$2:$G$48,2,FALSE)+ROW()-2)),\"\")","v":{"$error":"#N/A"}},{"$f":"IF(INDIRECT(\"c\" & (VLOOKUP(Rebalance!$D$59,$F$2:$G$48,2,FALSE)+ROW()-2))=Rebalance!$D$59,INDIRECT(\"a\" & (VLOOKUP(Rebalance!$D$59,$F$2:$G$48,2,FALSE)+ROW()-2)),\"\")","v":{"$error":"#N/A"}},{"$f":"IF(INDIRECT(\"c\" & (VLOOKUP(Rebalance!$D$60,$F$2:$G$48,2,FALSE)+ROW()-2))=Rebalance!$D$60,INDIRECT(\"a\" & (VLOOKUP(Rebalance!$D$60,$F$2:$G$48,2,FALSE)+ROW()-2)),\"\")","v":{"$error":"#N/A"}},{"$f":"IF(INDIRECT(\"c\" & (VLOOKUP(Rebalance!$D$61,$F$2:$G$48,2,FALSE)+ROW()-2))=Rebalance!$D$61,INDIRECT(\"a\" & (VLOOKUP(Rebalance!$D$61,$F$2:$G$48,2,FALSE)+ROW()-2)),\"\")","v":{"$error":"#N/A"}},{"$f":"IF(INDIRECT(\"c\" & (VLOOKUP(Rebalance!$D$62,$F$2:$G$48,2,FALSE)+ROW()-2))=Rebalance!$D$62,INDIRECT(\"a\" & (VLOOKUP(Rebalance!$D$62,$F$2:$G$48,2,FALSE)+ROW()-2)),\"\")","v":{"$error":"#N/A"}},{"$f":"IF(INDIRECT(\"c\" & (VLOOKUP(Rebalance!$D$63,$F$2:$G$48,2,FALSE)+ROW()-2))=Rebalance!$D$63,INDIRECT(\"a\" & (VLOOKUP(Rebalance!$D$63,$F$2:$G$48,2,FALSE)+ROW()-2)),\"\")","v":{"$error":"#N/A"}},{"$f":"IF(INDIRECT(\"c\" & (VLOOKUP(Rebalance!$D$64,$F$2:$G$48,2,FALSE)+ROW()-2))=Rebalance!$D$64,INDIRECT(\"a\" & (VLOOKUP(Rebalance!$D$64,$F$2:$G$48,2,FALSE)+ROW()-2)),\"\")","v":{"$error":"#N/A"}},{"$f":"IF(INDIRECT(\"c\" & (VLOOKUP(Rebalance!$D$65,$F$2:$G$48,2,FALSE)+ROW()-2))=Rebalance!$D$65,INDIRECT(\"a\" & (VLOOKUP(Rebalance!$D$65,$F$2:$G$48,2,FALSE)+ROW()-2)),\"\")","v":{"$error":"#N/A"}},{"$f":"IF(INDIRECT(\"c\" & (VLOOKUP(Rebalance!$D$66,$F$2:$G$48,2,FALSE)+ROW()-2))=Rebalance!$D$66,INDIRECT(\"a\" & (VLOOKUP(Rebalance!$D$66,$F$2:$G$48,2,FALSE)+ROW()-2)),\"\")","v":{"$error":"#N/A"}}]
["STANLIB Property Income Fund B1","STPI","STANLIB Collective Investments",{"$f":"ROW()","v":77},null,null,{"$f":"VLOOKUP(F77,$C$2:$D$599,2,FALSE)","v":{"$error":"#N/A"}},{"$f":"IF(INDIRECT(\"c\" & (VLOOKUP(Rebalance!$D$26,$F$2:$G$48,2,FALSE)+ROW()-2))=Rebalance!$D$26,INDIRECT(\"a\" & (VLOOKUP(Rebalance!$D$26,$F$2:$G$48,2,FALSE)+ROW()-2)),\"\")","v":{"$error":"#N/A"}},{"$f":"IF(INDIRECT(\"c\" & (VLOOKUP(Rebalance!$D$27,$F$2:$G$48,2,FALSE)+ROW()-2))=Rebalance!$D$27,INDIRECT(\"a\" & (VLOOKUP(Rebalance!$D$27,$F$2:$G$48,2,FALSE)+ROW()-2)),\"\")","v":{"$error":"#N/A"}},{"$f":"IF(INDIRECT(\"c\" & (VLOOKUP(Rebalance!$D$28,$F$2:$G$48,2,FALSE)+ROW()-2))=Rebalance!$D$28,INDIRECT(\"a\" & (VLOOKUP(Rebalance!$D$28,$F$2:$G$48,2,FALSE)+ROW()-2)),\"\")","v":{"$error":"#N/A"}},{"$f":"IF(INDIRECT(\"c\" & (VLOOKUP(Rebalance!$D$29,$F$2:$G$48,2,FALSE)+ROW()-2))=Rebalance!$D$29,INDIRECT(\"a\" & (VLOOKUP(Rebalance!$D$29,$F$2:$G$48,2,FALSE)+ROW()-2)),\"\")","v":{"$error":"#N/A"}},{"$f":"IF(INDIRECT(\"c\" & (VLOOKUP(Rebalance!$D$30,$F$2:$G$48,2,FALSE)+ROW()-2))=Rebalance!$D$30,INDIRECT(\"a\" & (VLOOKUP(Rebalance!$D$30,$F$2:$G$48,2,FALSE)+ROW()-2)),\"\")","v":{"$error":"#N/A"}},{"$f":"IF(INDIRECT(\"c\" & (VLOOKUP(Rebalance!$D$31,$F$2:$G$48,2,FALSE)+ROW()-2))=Rebalance!$D$31,INDIRECT(\"a\" & (VLOOKUP(Rebalance!$D$31,$F$2:$G$48,2,FALSE)+ROW()-2)),\"\")","v":{"$error":"#N/A"}},{"$f":"IF(INDIRECT(\"c\" & (VLOOKUP(Rebalance!$D$32,$F$2:$G$48,2,FALSE)+ROW()-2))=Rebalance!$D$32,INDIRECT(\"a\" & (VLOOKUP(Rebalance!$D$32,$F$2:$G$48,2,FALSE)+ROW()-2)),\"\")","v":{"$error":"#N/A"}},{"$f":"IF(INDIRECT(\"c\" & (VLOOKUP(Rebalance!$D$33,$F$2:$G$48,2,FALSE)+ROW()-2))=Rebalance!$D$33,INDIRECT(\"a\" & (VLOOKUP(Rebalance!$D$33,$F$2:$G$48,2,FALSE)+ROW()-2)),\"\")","v":{"$error":"#N/A"}},{"$f":"IF(INDIRECT(\"c\" & (VLOOKUP(Rebalance!$D$34,$F$2:$G$48,2,FALSE)+ROW()-2))=Rebalance!$D$34,INDIRECT(\"a\" & (VLOOKUP(Rebalance!$D$34,$F$2:$G$48,2,FALSE)+ROW()-2)),\"\")","v":{"$error":"#N/A"}},{"$f":"IF(INDIRECT(\"c\" & (VLOOKUP(Rebalance!$D$35,$F$2:$G$48,2,FALSE)+ROW()-2))=Rebalance!$D$35,INDIRECT(\"a\" & (VLOOKUP(Rebalance!$D$35,$F$2:$G$48,2,FALSE)+ROW()-2)),\"\")","v":{"$error":"#N/A"}},{"$f":"IF(INDIRECT(\"c\" & (VLOOKUP(Rebalance!$D$36,$F$2:$G$48,2,FALSE)+ROW()-2))=Rebalance!$D$36,INDIRECT(\"a\" & (VLOOKUP(Rebalance!$D$36,$F$2:$G$48,2,FALSE)+ROW()-2)),\"\")","v":{"$error":"#N/A"}},{"$f":"IF(INDIRECT(\"c\" & (VLOOKUP(Rebalance!$D$37,$F$2:$G$48,2,FALSE)+ROW()-2))=Rebalance!$D$37,INDIRECT(\"a\" & (VLOOKUP(Rebalance!$D$37,$F$2:$G$48,2,FALSE)+ROW()-2)),\"\")","v":{"$error":"#N/A"}},{"$f":"IF(INDIRECT(\"c\" & (VLOOKUP(Rebalance!$D$38,$F$2:$G$48,2,FALSE)+ROW()-2))=Rebalance!$D$38,INDIRECT(\"a\" & (VLOOKUP(Rebalance!$D$38,$F$2:$G$48,2,FALSE)+ROW()-2)),\"\")","v":{"$error":"#N/A"}},{"$f":"IF(INDIRECT(\"c\" & (VLOOKUP(Rebalance!$D$39,$F$2:$G$48,2,FALSE)+ROW()-2))=Rebalance!$D$39,INDIRECT(\"a\" & (VLOOKUP(Rebalance!$D$39,$F$2:$G$48,2,FALSE)+ROW()-2)),\"\")","v":{"$error":"#N/A"}},{"$f":"IF(INDIRECT(\"c\" & (VLOOKUP(Rebalance!$D$40,$F$2:$G$48,2,FALSE)+ROW()-2))=Rebalance!$D$40,INDIRECT(\"a\" & (VLOOKUP(Rebalance!$D$40,$F$2:$G$48,2,FALSE)+ROW()-2)),\"\")","v":{"$error":"#N/A"}},{"$f":"IF(INDIRECT(\"c\" & (VLOOKUP(Rebalance!$D$52,$F$2:$G$48,2,FALSE)+ROW()-2))=Rebalance!$D$52,INDIRECT(\"a\" & (VLOOKUP(Rebalance!$D$52,$F$2:$G$48,2,FALSE)+ROW()-2)),\"\")","v":{"$error":"#N/A"}},{"$f":"IF(INDIRECT(\"c\" & (VLOOKUP(Rebalance!$D$53,$F$2:$G$48,2,FALSE)+ROW()-2))=Rebalance!$D$53,INDIRECT(\"a\" & (VLOOKUP(Rebalance!$D$53,$F$2:$G$48,2,FALSE)+ROW()-2)),\"\")","v":{"$error":"#N/A"}},{"$f":"IF(INDIRECT(\"c\" & (VLOOKUP(Rebalance!$D$54,$F$2:$G$48,2,FALSE)+ROW()-2))=Rebalance!$D$54,INDIRECT(\"a\" & (VLOOKUP(Rebalance!$D$54,$F$2:$G$48,2,FALSE)+ROW()-2)),\"\")","v":{"$error":"#N/A"}},{"$f":"IF(INDIRECT(\"c\" & (VLOOKUP(Rebalance!$D$55,$F$2:$G$48,2,FALSE)+ROW()-2))=Rebalance!$D$55,INDIRECT(\"a\" & (VLOOKUP(Rebalance!$D$55,$F$2:$G$48,2,FALSE)+ROW()-2)),\"\")","v":{"$error":"#N/A"}},{"$f":"IF(INDIRECT(\"c\" & (VLOOKUP(Rebalance!$D$56,$F$2:$G$48,2,FALSE)+ROW()-2))=Rebalance!$D$56,INDIRECT(\"a\" & (VLOOKUP(Rebalance!$D$56,$F$2:$G$48,2,FALSE)+ROW()-2)),\"\")","v":{"$error":"#N/A"}},{"$f":"IF(INDIRECT(\"c\" & (VLOOKUP(Rebalance!$D$57,$F$2:$G$48,2,FALSE)+ROW()-2))=Rebalance!$D$57,INDIRECT(\"a\" & (VLOOKUP(Rebalance!$D$57,$F$2:$G$48,2,FALSE)+ROW()-2)),\"\")","v":{"$error":"#N/A"}},{"$f":"IF(INDIRECT(\"c\" & (VLOOKUP(Rebalance!$D$58,$F$2:$G$48,2,FALSE)+ROW()-2))=Rebalance!$D$58,INDIRECT(\"a\" & (VLOOKUP(Rebalance!$D$58,$F$2:$G$48,2,FALSE)+ROW()-2)),\"\")","v":{"$error":"#N/A"}},{"$f":"IF(INDIRECT(\"c\" & (VLOOKUP(Rebalance!$D$59,$F$2:$G$48,2,FALSE)+ROW()-2))=Rebalance!$D$59,INDIRECT(\"a\" & (VLOOKUP(Rebalance!$D$59,$F$2:$G$48,2,FALSE)+ROW()-2)),\"\")","v":{"$error":"#N/A"}},{"$f":"IF(INDIRECT(\"c\" & (VLOOKUP(Rebalance!$D$60,$F$2:$G$48,2,FALSE)+ROW()-2))=Rebalance!$D$60,INDIRECT(\"a\" & (VLOOKUP(Rebalance!$D$60,$F$2:$G$48,2,FALSE)+ROW()-2)),\"\")","v":{"$error":"#N/A"}},{"$f":"IF(INDIRECT(\"c\" & (VLOOKUP(Rebalance!$D$61,$F$2:$G$48,2,FALSE)+ROW()-2))=Rebalance!$D$61,INDIRECT(\"a\" & (VLOOKUP(Rebalance!$D$61,$F$2:$G$48,2,FALSE)+ROW()-2)),\"\")","v":{"$error":"#N/A"}},{"$f":"IF(INDIRECT(\"c\" & (VLOOKUP(Rebalance!$D$62,$F$2:$G$48,2,FALSE)+ROW()-2))=Rebalance!$D$62,INDIRECT(\"a\" & (VLOOKUP(Rebalance!$D$62,$F$2:$G$48,2,FALSE)+ROW()-2)),\"\")","v":{"$error":"#N/A"}},{"$f":"IF(INDIRECT(\"c\" & (VLOOKUP(Rebalance!$D$63,$F$2:$G$48,2,FALSE)+ROW()-2))=Rebalance!$D$63,INDIRECT(\"a\" & (VLOOKUP(Rebalance!$D$63,$F$2:$G$48,2,FALSE)+ROW()-2)),\"\")","v":{"$error":"#N/A"}},{"$f":"IF(INDIRECT(\"c\" & (VLOOKUP(Rebalance!$D$64,$F$2:$G$48,2,FALSE)+ROW()-2))=Rebalance!$D$64,INDIRECT(\"a\" & (VLOOKUP(Rebalance!$D$64,$F$2:$G$48,2,FALSE)+ROW()-2)),\"\")","v":{"$error":"#N/A"}},{"$f":"IF(INDIRECT(\"c\" & (VLOOKUP(Rebalance!$D$65,$F$2:$G$48,2,FALSE)+ROW()-2))=Rebalance!$D$65,INDIRECT(\"a\" & (VLOOKUP(Rebalance!$D$65,$F$2:$G$48,2,FALSE)+ROW()-2)),\"\")","v":{"$error":"#N/A"}},{"$f":"IF(INDIRECT(\"c\" & (VLOOKUP(Rebalance!$D$66,$F$2:$G$48,2,FALSE)+ROW()-2))=Rebalance!$D$66,INDIRECT(\"a\" & (VLOOKUP(Rebalance!$D$66,$F$2:$G$48,2,FALSE)+ROW()-2)),\"\")","v":{"$error":"#N/A"}}]
["STANLIB SA Equity Fund A","LIPA","STANLIB Collective Investments",{"$f":"ROW()","v":78},null,null,{"$f":"VLOOKUP(F78,$C$2:$D$599,2,FALSE)","v":{"$error":"#N/A"}},{"$f":"IF(INDIRECT(\"c\" & (VLOOKUP(Rebalance!$D$26,$F$2:$G$48,2,FALSE)+ROW()-2))=Rebalance!$D$26,INDIRECT(\"a\" & (VLOOKUP(Rebalance!$D$26,$F$2:$G$48,2,FALSE)+ROW()-2)),\"\")","v":{"$error":"#N/A"}},{"$f":"IF(INDIRECT(\"c\" & (VLOOKUP(Rebalance!$D$27,$F$2:$G$48,2,FALSE)+ROW()-2))=Rebalance!$D$27,INDIRECT(\"a\" & (VLOOKUP(Rebalance!$D$27,$F$2:$G$48,2,FALSE)+ROW()-2)),\"\")","v":{"$error":"#N/A"}},{"$f":"IF(INDIRECT(\"c\" & (VLOOKUP(Rebalance!$D$28,$F$2:$G$48,2,FALSE)+ROW()-2))=Rebalance!$D$28,INDIRECT(\"a\" & (VLOOKUP(Rebalance!$D$28,$F$2:$G$48,2,FALSE)+ROW()-2)),\"\")","v":{"$error":"#N/A"}},{"$f":"IF(INDIRECT(\"c\" & (VLOOKUP(Rebalance!$D$29,$F$2:$G$48,2,FALSE)+ROW()-2))=Rebalance!$D$29,INDIRECT(\"a\" & (VLOOKUP(Rebalance!$D$29,$F$2:$G$48,2,FALSE)+ROW()-2)),\"\")","v":{"$error":"#N/A"}},{"$f":"IF(INDIRECT(\"c\" & (VLOOKUP(Rebalance!$D$30,$F$2:$G$48,2,FALSE)+ROW()-2))=Rebalance!$D$30,INDIRECT(\"a\" & (VLOOKUP(Rebalance!$D$30,$F$2:$G$48,2,FALSE)+ROW()-2)),\"\")","v":{"$error":"#N/A"}},{"$f":"IF(INDIRECT(\"c\" & (VLOOKUP(Rebalance!$D$31,$F$2:$G$48,2,FALSE)+ROW()-2))=Rebalance!$D$31,INDIRECT(\"a\" & (VLOOKUP(Rebalance!$D$31,$F$2:$G$48,2,FALSE)+ROW()-2)),\"\")","v":{"$error":"#N/A"}},{"$f":"IF(INDIRECT(\"c\" & (VLOOKUP(Rebalance!$D$32,$F$2:$G$48,2,FALSE)+ROW()-2))=Rebalance!$D$32,INDIRECT(\"a\" & (VLOOKUP(Rebalance!$D$32,$F$2:$G$48,2,FALSE)+ROW()-2)),\"\")","v":{"$error":"#N/A"}},{"$f":"IF(INDIRECT(\"c\" & (VLOOKUP(Rebalance!$D$33,$F$2:$G$48,2,FALSE)+ROW()-2))=Rebalance!$D$33,INDIRECT(\"a\" & (VLOOKUP(Rebalance!$D$33,$F$2:$G$48,2,FALSE)+ROW()-2)),\"\")","v":{"$error":"#N/A"}},{"$f":"IF(INDIRECT(\"c\" & (VLOOKUP(Rebalance!$D$34,$F$2:$G$48,2,FALSE)+ROW()-2))=Rebalance!$D$34,INDIRECT(\"a\" & (VLOOKUP(Rebalance!$D$34,$F$2:$G$48,2,FALSE)+ROW()-2)),\"\")","v":{"$error":"#N/A"}},{"$f":"IF(INDIRECT(\"c\" & (VLOOKUP(Rebalance!$D$35,$F$2:$G$48,2,FALSE)+ROW()-2))=Rebalance!$D$35,INDIRECT(\"a\" & (VLOOKUP(Rebalance!$D$35,$F$2:$G$48,2,FALSE)+ROW()-2)),\"\")","v":{"$error":"#N/A"}},{"$f":"IF(INDIRECT(\"c\" & (VLOOKUP(Rebalance!$D$36,$F$2:$G$48,2,FALSE)+ROW()-2))=Rebalance!$D$36,INDIRECT(\"a\" & (VLOOKUP(Rebalance!$D$36,$F$2:$G$48,2,FALSE)+ROW()-2)),\"\")","v":{"$error":"#N/A"}},{"$f":"IF(INDIRECT(\"c\" & (VLOOKUP(Rebalance!$D$37,$F$2:$G$48,2,FALSE)+ROW()-2))=Rebalance!$D$37,INDIRECT(\"a\" & (VLOOKUP(Rebalance!$D$37,$F$2:$G$48,2,FALSE)+ROW()-2)),\"\")","v":{"$error":"#N/A"}},{"$f":"IF(INDIRECT(\"c\" & (VLOOKUP(Rebalance!$D$38,$F$2:$G$48,2,FALSE)+ROW()-2))=Rebalance!$D$38,INDIRECT(\"a\" & (VLOOKUP(Rebalance!$D$38,$F$2:$G$48,2,FALSE)+ROW()-2)),\"\")","v":{"$error":"#N/A"}},{"$f":"IF(INDIRECT(\"c\" & (VLOOKUP(Rebalance!$D$39,$F$2:$G$48,2,FALSE)+ROW()-2))=Rebalance!$D$39,INDIRECT(\"a\" & (VLOOKUP(Rebalance!$D$39,$F$2:$G$48,2,FALSE)+ROW()-2)),\"\")","v":{"$error":"#N/A"}},{"$f":"IF(INDIRECT(\"c\" & (VLOOKUP(Rebalance!$D$40,$F$2:$G$48,2,FALSE)+ROW()-2))=Rebalance!$D$40,INDIRECT(\"a\" & (VLOOKUP(Rebalance!$D$40,$F$2:$G$48,2,FALSE)+ROW()-2)),\"\")","v":{"$error":"#N/A"}},{"$f":"IF(INDIRECT(\"c\" & (VLOOKUP(Rebalance!$D$52,$F$2:$G$48,2,FALSE)+ROW()-2))=Rebalance!$D$52,INDIRECT(\"a\" & (VLOOKUP(Rebalance!$D$52,$F$2:$G$48,2,FALSE)+ROW()-2)),\"\")","v":{"$error":"#N/A"}},{"$f":"IF(INDIRECT(\"c\" & (VLOOKUP(Rebalance!$D$53,$F$2:$G$48,2,FALSE)+ROW()-2))=Rebalance!$D$53,INDIRECT(\"a\" & (VLOOKUP(Rebalance!$D$53,$F$2:$G$48,2,FALSE)+ROW()-2)),\"\")","v":{"$error":"#N/A"}},{"$f":"IF(INDIRECT(\"c\" & (VLOOKUP(Rebalance!$D$54,$F$2:$G$48,2,FALSE)+ROW()-2))=Rebalance!$D$54,INDIRECT(\"a\" & (VLOOKUP(Rebalance!$D$54,$F$2:$G$48,2,FALSE)+ROW()-2)),\"\")","v":{"$error":"#N/A"}},{"$f":"IF(INDIRECT(\"c\" & (VLOOKUP(Rebalance!$D$55,$F$2:$G$48,2,FALSE)+ROW()-2))=Rebalance!$D$55,INDIRECT(\"a\" & (VLOOKUP(Rebalance!$D$55,$F$2:$G$48,2,FALSE)+ROW()-2)),\"\")","v":{"$error":"#N/A"}},{"$f":"IF(INDIRECT(\"c\" & (VLOOKUP(Rebalance!$D$56,$F$2:$G$48,2,FALSE)+ROW()-2))=Rebalance!$D$56,INDIRECT(\"a\" & (VLOOKUP(Rebalance!$D$56,$F$2:$G$48,2,FALSE)+ROW()-2)),\"\")","v":{"$error":"#N/A"}},{"$f":"IF(INDIRECT(\"c\" & (VLOOKUP(Rebalance!$D$57,$F$2:$G$48,2,FALSE)+ROW()-2))=Rebalance!$D$57,INDIRECT(\"a\" & (VLOOKUP(Rebalance!$D$57,$F$2:$G$48,2,FALSE)+ROW()-2)),\"\")","v":{"$error":"#N/A"}},{"$f":"IF(INDIRECT(\"c\" & (VLOOKUP(Rebalance!$D$58,$F$2:$G$48,2,FALSE)+ROW()-2))=Rebalance!$D$58,INDIRECT(\"a\" & (VLOOKUP(Rebalance!$D$58,$F$2:$G$48,2,FALSE)+ROW()-2)),\"\")","v":{"$error":"#N/A"}},{"$f":"IF(INDIRECT(\"c\" & (VLOOKUP(Rebalance!$D$59,$F$2:$G$48,2,FALSE)+ROW()-2))=Rebalance!$D$59,INDIRECT(\"a\" & (VLOOKUP(Rebalance!$D$59,$F$2:$G$48,2,FALSE)+ROW()-2)),\"\")","v":{"$error":"#N/A"}},{"$f":"IF(INDIRECT(\"c\" & (VLOOKUP(Rebalance!$D$60,$F$2:$G$48,2,FALSE)+ROW()-2))=Rebalance!$D$60,INDIRECT(\"a\" & (VLOOKUP(Rebalance!$D$60,$F$2:$G$48,2,FALSE)+ROW()-2)),\"\")","v":{"$error":"#N/A"}},{"$f":"IF(INDIRECT(\"c\" & (VLOOKUP(Rebalance!$D$61,$F$2:$G$48,2,FALSE)+ROW()-2))=Rebalance!$D$61,INDIRECT(\"a\" & (VLOOKUP(Rebalance!$D$61,$F$2:$G$48,2,FALSE)+ROW()-2)),\"\")","v":{"$error":"#N/A"}},{"$f":"IF(INDIRECT(\"c\" & (VLOOKUP(Rebalance!$D$62,$F$2:$G$48,2,FALSE)+ROW()-2))=Rebalance!$D$62,INDIRECT(\"a\" & (VLOOKUP(Rebalance!$D$62,$F$2:$G$48,2,FALSE)+ROW()-2)),\"\")","v":{"$error":"#N/A"}},{"$f":"IF(INDIRECT(\"c\" & (VLOOKUP(Rebalance!$D$63,$F$2:$G$48,2,FALSE)+ROW()-2))=Rebalance!$D$63,INDIRECT(\"a\" & (VLOOKUP(Rebalance!$D$63,$F$2:$G$48,2,FALSE)+ROW()-2)),\"\")","v":{"$error":"#N/A"}},{"$f":"IF(INDIRECT(\"c\" & (VLOOKUP(Rebalance!$D$64,$F$2:$G$48,2,FALSE)+ROW()-2))=Rebalance!$D$64,INDIRECT(\"a\" & (VLOOKUP(Rebalance!$D$64,$F$2:$G$48,2,FALSE)+ROW()-2)),\"\")","v":{"$error":"#N/A"}},{"$f":"IF(INDIRECT(\"c\" & (VLOOKUP(Rebalance!$D$65,$F$2:$G$48,2,FALSE)+ROW()-2))=Rebalance!$D$65,INDIRECT(\"a\" & (VLOOKUP(Rebalance!$D$65,$F$2:$G$48,2,FALSE)+ROW()-2)),\"\")","v":{"$error":"#N/A"}},{"$f":"IF(INDIRECT(\"c\" & (VLOOKUP(Rebalance!$D$66,$F$2:$G$48,2,FALSE)+ROW()-2))=Rebalance!$D$66,INDIRECT(\"a\" & (VLOOKUP(Rebalance!$D$66,$F$2:$G$48,2,FALSE)+ROW()-2)),\"\")","v":{"$error":"#N/A"}}]
["STANLIB SA Equity Fund R","LIPA","STANLIB Collective Investments",{"$f":"ROW()","v":79},null,null,{"$f":"VLOOKUP(F79,$C$2:$D$599,2,FALSE)","v":{"$error":"#N/A"}},{"$f":"IF(INDIRECT(\"c\" & (VLOOKUP(Rebalance!$D$26,$F$2:$G$48,2,FALSE)+ROW()-2))=Rebalance!$D$26,INDIRECT(\"a\" & (VLOOKUP(Rebalance!$D$26,$F$2:$G$48,2,FALSE)+ROW()-2)),\"\")","v":{"$error":"#N/A"}},{"$f":"IF(INDIRECT(\"c\" & (VLOOKUP(Rebalance!$D$27,$F$2:$G$48,2,FALSE)+ROW()-2))=Rebalance!$D$27,INDIRECT(\"a\" & (VLOOKUP(Rebalance!$D$27,$F$2:$G$48,2,FALSE)+ROW()-2)),\"\")","v":{"$error":"#N/A"}},{"$f":"IF(INDIRECT(\"c\" & (VLOOKUP(Rebalance!$D$28,$F$2:$G$48,2,FALSE)+ROW()-2))=Rebalance!$D$28,INDIRECT(\"a\" & (VLOOKUP(Rebalance!$D$28,$F$2:$G$48,2,FALSE)+ROW()-2)),\"\")","v":{"$error":"#N/A"}},{"$f":"IF(INDIRECT(\"c\" & (VLOOKUP(Rebalance!$D$29,$F$2:$G$48,2,FALSE)+ROW()-2))=Rebalance!$D$29,INDIRECT(\"a\" & (VLOOKUP(Rebalance!$D$29,$F$2:$G$48,2,FALSE)+ROW()-2)),\"\")","v":{"$error":"#N/A"}},{"$f":"IF(INDIRECT(\"c\" & (VLOOKUP(Rebalance!$D$30,$F$2:$G$48,2,FALSE)+ROW()-2))=Rebalance!$D$30,INDIRECT(\"a\" & (VLOOKUP(Rebalance!$D$30,$F$2:$G$48,2,FALSE)+ROW()-2)),\"\")","v":{"$error":"#N/A"}},{"$f":"IF(INDIRECT(\"c\" & (VLOOKUP(Rebalance!$D$31,$F$2:$G$48,2,FALSE)+ROW()-2))=Rebalance!$D$31,INDIRECT(\"a\" & (VLOOKUP(Rebalance!$D$31,$F$2:$G$48,2,FALSE)+ROW()-2)),\"\")","v":{"$error":"#N/A"}},{"$f":"IF(INDIRECT(\"c\" & (VLOOKUP(Rebalance!$D$32,$F$2:$G$48,2,FALSE)+ROW()-2))=Rebalance!$D$32,INDIRECT(\"a\" & (VLOOKUP(Rebalance!$D$32,$F$2:$G$48,2,FALSE)+ROW()-2)),\"\")","v":{"$error":"#N/A"}},{"$f":"IF(INDIRECT(\"c\" & (VLOOKUP(Rebalance!$D$33,$F$2:$G$48,2,FALSE)+ROW()-2))=Rebalance!$D$33,INDIRECT(\"a\" & (VLOOKUP(Rebalance!$D$33,$F$2:$G$48,2,FALSE)+ROW()-2)),\"\")","v":{"$error":"#N/A"}},{"$f":"IF(INDIRECT(\"c\" & (VLOOKUP(Rebalance!$D$34,$F$2:$G$48,2,FALSE)+ROW()-2))=Rebalance!$D$34,INDIRECT(\"a\" & (VLOOKUP(Rebalance!$D$34,$F$2:$G$48,2,FALSE)+ROW()-2)),\"\")","v":{"$error":"#N/A"}},{"$f":"IF(INDIRECT(\"c\" & (VLOOKUP(Rebalance!$D$35,$F$2:$G$48,2,FALSE)+ROW()-2))=Rebalance!$D$35,INDIRECT(\"a\" & (VLOOKUP(Rebalance!$D$35,$F$2:$G$48,2,FALSE)+ROW()-2)),\"\")","v":{"$error":"#N/A"}},{"$f":"IF(INDIRECT(\"c\" & (VLOOKUP(Rebalance!$D$36,$F$2:$G$48,2,FALSE)+ROW()-2))=Rebalance!$D$36,INDIRECT(\"a\" & (VLOOKUP(Rebalance!$D$36,$F$2:$G$48,2,FALSE)+ROW()-2)),\"\")","v":{"$error":"#N/A"}},{"$f":"IF(INDIRECT(\"c\" & (VLOOKUP(Rebalance!$D$37,$F$2:$G$48,2,FALSE)+ROW()-2))=Rebalance!$D$37,INDIRECT(\"a\" & (VLOOKUP(Rebalance!$D$37,$F$2:$G$48,2,FALSE)+ROW()-2)),\"\")","v":{"$error":"#N/A"}},{"$f":"IF(INDIRECT(\"c\" & (VLOOKUP(Rebalance!$D$38,$F$2:$G$48,2,FALSE)+ROW()-2))=Rebalance!$D$38,INDIRECT(\"a\" & (VLOOKUP(Rebalance!$D$38,$F$2:$G$48,2,FALSE)+ROW()-2)),\"\")","v":{"$error":"#N/A"}},{"$f":"IF(INDIRECT(\"c\" & (VLOOKUP(Rebalance!$D$39,$F$2:$G$48,2,FALSE)+ROW()-2))=Rebalance!$D$39,INDIRECT(\"a\" & (VLOOKUP(Rebalance!$D$39,$F$2:$G$48,2,FALSE)+ROW()-2)),\"\")","v":{"$error":"#N/A"}},{"$f":"IF(INDIRECT(\"c\" & (VLOOKUP(Rebalance!$D$40,$F$2:$G$48,2,FALSE)+ROW()-2))=Rebalance!$D$40,INDIRECT(\"a\" & (VLOOKUP(Rebalance!$D$40,$F$2:$G$48,2,FALSE)+ROW()-2)),\"\")","v":{"$error":"#N/A"}},{"$f":"IF(INDIRECT(\"c\" & (VLOOKUP(Rebalance!$D$52,$F$2:$G$48,2,FALSE)+ROW()-2))=Rebalance!$D$52,INDIRECT(\"a\" & (VLOOKUP(Rebalance!$D$52,$F$2:$G$48,2,FALSE)+ROW()-2)),\"\")","v":{"$error":"#N/A"}},{"$f":"IF(INDIRECT(\"c\" & (VLOOKUP(Rebalance!$D$53,$F$2:$G$48,2,FALSE)+ROW()-2))=Rebalance!$D$53,INDIRECT(\"a\" & (VLOOKUP(Rebalance!$D$53,$F$2:$G$48,2,FALSE)+ROW()-2)),\"\")","v":{"$error":"#N/A"}},{"$f":"IF(INDIRECT(\"c\" & (VLOOKUP(Rebalance!$D$54,$F$2:$G$48,2,FALSE)+ROW()-2))=Rebalance!$D$54,INDIRECT(\"a\" & (VLOOKUP(Rebalance!$D$54,$F$2:$G$48,2,FALSE)+ROW()-2)),\"\")","v":{"$error":"#N/A"}},{"$f":"IF(INDIRECT(\"c\" & (VLOOKUP(Rebalance!$D$55,$F$2:$G$48,2,FALSE)+ROW()-2))=Rebalance!$D$55,INDIRECT(\"a\" & (VLOOKUP(Rebalance!$D$55,$F$2:$G$48,2,FALSE)+ROW()-2)),\"\")","v":{"$error":"#N/A"}},{"$f":"IF(INDIRECT(\"c\" & (VLOOKUP(Rebalance!$D$56,$F$2:$G$48,2,FALSE)+ROW()-2))=Rebalance!$D$56,INDIRECT(\"a\" & (VLOOKUP(Rebalance!$D$56,$F$2:$G$48,2,FALSE)+ROW()-2)),\"\")","v":{"$error":"#N/A"}},{"$f":"IF(INDIRECT(\"c\" & (VLOOKUP(Rebalance!$D$57,$F$2:$G$48,2,FALSE)+ROW()-2))=Rebalance!$D$57,INDIRECT(\"a\" & (VLOOKUP(Rebalance!$D$57,$F$2:$G$48,2,FALSE)+ROW()-2)),\"\")","v":{"$error":"#N/A"}},{"$f":"IF(INDIRECT(\"c\" & (VLOOKUP(Rebalance!$D$58,$F$2:$G$48,2,FALSE)+ROW()-2))=Rebalance!$D$58,INDIRECT(\"a\" & (VLOOKUP(Rebalance!$D$58,$F$2:$G$48,2,FALSE)+ROW()-2)),\"\")","v":{"$error":"#N/A"}},{"$f":"IF(INDIRECT(\"c\" & (VLOOKUP(Rebalance!$D$59,$F$2:$G$48,2,FALSE)+ROW()-2))=Rebalance!$D$59,INDIRECT(\"a\" & (VLOOKUP(Rebalance!$D$59,$F$2:$G$48,2,FALSE)+ROW()-2)),\"\")","v":{"$error":"#N/A"}},{"$f":"IF(INDIRECT(\"c\" & (VLOOKUP(Rebalance!$D$60,$F$2:$G$48,2,FALSE)+ROW()-2))=Rebalance!$D$60,INDIRECT(\"a\" & (VLOOKUP(Rebalance!$D$60,$F$2:$G$48,2,FALSE)+ROW()-2)),\"\")","v":{"$error":"#N/A"}},{"$f":"IF(INDIRECT(\"c\" & (VLOOKUP(Rebalance!$D$61,$F$2:$G$48,2,FALSE)+ROW()-2))=Rebalance!$D$61,INDIRECT(\"a\" & (VLOOKUP(Rebalance!$D$61,$F$2:$G$48,2,FALSE)+ROW()-2)),\"\")","v":{"$error":"#N/A"}},{"$f":"IF(INDIRECT(\"c\" & (VLOOKUP(Rebalance!$D$62,$F$2:$G$48,2,FALSE)+ROW()-2))=Rebalance!$D$62,INDIRECT(\"a\" & (VLOOKUP(Rebalance!$D$62,$F$2:$G$48,2,FALSE)+ROW()-2)),\"\")","v":{"$error":"#N/A"}},{"$f":"IF(INDIRECT(\"c\" & (VLOOKUP(Rebalance!$D$63,$F$2:$G$48,2,FALSE)+ROW()-2))=Rebalance!$D$63,INDIRECT(\"a\" & (VLOOKUP(Rebalance!$D$63,$F$2:$G$48,2,FALSE)+ROW()-2)),\"\")","v":{"$error":"#N/A"}},{"$f":"IF(INDIRECT(\"c\" & (VLOOKUP(Rebalance!$D$64,$F$2:$G$48,2,FALSE)+ROW()-2))=Rebalance!$D$64,INDIRECT(\"a\" & (VLOOKUP(Rebalance!$D$64,$F$2:$G$48,2,FALSE)+ROW()-2)),\"\")","v":{"$error":"#N/A"}},{"$f":"IF(INDIRECT(\"c\" & (VLOOKUP(Rebalance!$D$65,$F$2:$G$48,2,FALSE)+ROW()-2))=Rebalance!$D$65,INDIRECT(\"a\" & (VLOOKUP(Rebalance!$D$65,$F$2:$G$48,2,FALSE)+ROW()-2)),\"\")","v":{"$error":"#N/A"}},{"$f":"IF(INDIRECT(\"c\" & (VLOOKUP(Rebalance!$D$66,$F$2:$G$48,2,FALSE)+ROW()-2))=Rebalance!$D$66,INDIRECT(\"a\" & (VLOOKUP(Rebalance!$D$66,$F$2:$G$48,2,FALSE)+ROW()-2)),\"\")","v":{"$error":"#N/A"}}]
["STANLIB US Dollar Currency FoF A","STCF","STANLIB Collective Investments",{"$f":"ROW()","v":80},null,null,{"$f":"VLOOKUP(F80,$C$2:$D$599,2,FALSE)","v":{"$error":"#N/A"}},{"$f":"IF(INDIRECT(\"c\" & (VLOOKUP(Rebalance!$D$26,$F$2:$G$48,2,FALSE)+ROW()-2))=Rebalance!$D$26,INDIRECT(\"a\" & (VLOOKUP(Rebalance!$D$26,$F$2:$G$48,2,FALSE)+ROW()-2)),\"\")","v":{"$error":"#N/A"}},{"$f":"IF(INDIRECT(\"c\" & (VLOOKUP(Rebalance!$D$27,$F$2:$G$48,2,FALSE)+ROW()-2))=Rebalance!$D$27,INDIRECT(\"a\" & (VLOOKUP(Rebalance!$D$27,$F$2:$G$48,2,FALSE)+ROW()-2)),\"\")","v":{"$error":"#N/A"}},{"$f":"IF(INDIRECT(\"c\" & (VLOOKUP(Rebalance!$D$28,$F$2:$G$48,2,FALSE)+ROW()-2))=Rebalance!$D$28,INDIRECT(\"a\" & (VLOOKUP(Rebalance!$D$28,$F$2:$G$48,2,FALSE)+ROW()-2)),\"\")","v":{"$error":"#N/A"}},{"$f":"IF(INDIRECT(\"c\" & (VLOOKUP(Rebalance!$D$29,$F$2:$G$48,2,FALSE)+ROW()-2))=Rebalance!$D$29,INDIRECT(\"a\" & (VLOOKUP(Rebalance!$D$29,$F$2:$G$48,2,FALSE)+ROW()-2)),\"\")","v":{"$error":"#N/A"}},{"$f":"IF(INDIRECT(\"c\" & (VLOOKUP(Rebalance!$D$30,$F$2:$G$48,2,FALSE)+ROW()-2))=Rebalance!$D$30,INDIRECT(\"a\" & (VLOOKUP(Rebalance!$D$30,$F$2:$G$48,2,FALSE)+ROW()-2)),\"\")","v":{"$error":"#N/A"}},{"$f":"IF(INDIRECT(\"c\" & (VLOOKUP(Rebalance!$D$31,$F$2:$G$48,2,FALSE)+ROW()-2))=Rebalance!$D$31,INDIRECT(\"a\" & (VLOOKUP(Rebalance!$D$31,$F$2:$G$48,2,FALSE)+ROW()-2)),\"\")","v":{"$error":"#N/A"}},{"$f":"IF(INDIRECT(\"c\" & (VLOOKUP(Rebalance!$D$32,$F$2:$G$48,2,FALSE)+ROW()-2))=Rebalance!$D$32,INDIRECT(\"a\" & (VLOOKUP(Rebalance!$D$32,$F$2:$G$48,2,FALSE)+ROW()-2)),\"\")","v":{"$error":"#N/A"}},{"$f":"IF(INDIRECT(\"c\" & (VLOOKUP(Rebalance!$D$33,$F$2:$G$48,2,FALSE)+ROW()-2))=Rebalance!$D$33,INDIRECT(\"a\" & (VLOOKUP(Rebalance!$D$33,$F$2:$G$48,2,FALSE)+ROW()-2)),\"\")","v":{"$error":"#N/A"}},{"$f":"IF(INDIRECT(\"c\" & (VLOOKUP(Rebalance!$D$34,$F$2:$G$48,2,FALSE)+ROW()-2))=Rebalance!$D$34,INDIRECT(\"a\" & (VLOOKUP(Rebalance!$D$34,$F$2:$G$48,2,FALSE)+ROW()-2)),\"\")","v":{"$error":"#N/A"}},{"$f":"IF(INDIRECT(\"c\" & (VLOOKUP(Rebalance!$D$35,$F$2:$G$48,2,FALSE)+ROW()-2))=Rebalance!$D$35,INDIRECT(\"a\" & (VLOOKUP(Rebalance!$D$35,$F$2:$G$48,2,FALSE)+ROW()-2)),\"\")","v":{"$error":"#N/A"}},{"$f":"IF(INDIRECT(\"c\" & (VLOOKUP(Rebalance!$D$36,$F$2:$G$48,2,FALSE)+ROW()-2))=Rebalance!$D$36,INDIRECT(\"a\" & (VLOOKUP(Rebalance!$D$36,$F$2:$G$48,2,FALSE)+ROW()-2)),\"\")","v":{"$error":"#N/A"}},{"$f":"IF(INDIRECT(\"c\" & (VLOOKUP(Rebalance!$D$37,$F$2:$G$48,2,FALSE)+ROW()-2))=Rebalance!$D$37,INDIRECT(\"a\" & (VLOOKUP(Rebalance!$D$37,$F$2:$G$48,2,FALSE)+ROW()-2)),\"\")","v":{"$error":"#N/A"}},{"$f":"IF(INDIRECT(\"c\" & (VLOOKUP(Rebalance!$D$38,$F$2:$G$48,2,FALSE)+ROW()-2))=Rebalance!$D$38,INDIRECT(\"a\" & (VLOOKUP(Rebalance!$D$38,$F$2:$G$48,2,FALSE)+ROW()-2)),\"\")","v":{"$error":"#N/A"}},{"$f":"IF(INDIRECT(\"c\" & (VLOOKUP(Rebalance!$D$39,$F$2:$G$48,2,FALSE)+ROW()-2))=Rebalance!$D$39,INDIRECT(\"a\" & (VLOOKUP(Rebalance!$D$39,$F$2:$G$48,2,FALSE)+ROW()-2)),\"\")","v":{"$error":"#N/A"}},{"$f":"IF(INDIRECT(\"c\" & (VLOOKUP(Rebalance!$D$40,$F$2:$G$48,2,FALSE)+ROW()-2))=Rebalance!$D$40,INDIRECT(\"a\" & (VLOOKUP(Rebalance!$D$40,$F$2:$G$48,2,FALSE)+ROW()-2)),\"\")","v":{"$error":"#N/A"}},{"$f":"IF(INDIRECT(\"c\" & (VLOOKUP(Rebalance!$D$52,$F$2:$G$48,2,FALSE)+ROW()-2))=Rebalance!$D$52,INDIRECT(\"a\" & (VLOOKUP(Rebalance!$D$52,$F$2:$G$48,2,FALSE)+ROW()-2)),\"\")","v":{"$error":"#N/A"}},{"$f":"IF(INDIRECT(\"c\" & (VLOOKUP(Rebalance!$D$53,$F$2:$G$48,2,FALSE)+ROW()-2))=Rebalance!$D$53,INDIRECT(\"a\" & (VLOOKUP(Rebalance!$D$53,$F$2:$G$48,2,FALSE)+ROW()-2)),\"\")","v":{"$error":"#N/A"}},{"$f":"IF(INDIRECT(\"c\" & (VLOOKUP(Rebalance!$D$54,$F$2:$G$48,2,FALSE)+ROW()-2))=Rebalance!$D$54,INDIRECT(\"a\" & (VLOOKUP(Rebalance!$D$54,$F$2:$G$48,2,FALSE)+ROW()-2)),\"\")","v":{"$error":"#N/A"}},{"$f":"IF(INDIRECT(\"c\" & (VLOOKUP(Rebalance!$D$55,$F$2:$G$48,2,FALSE)+ROW()-2))=Rebalance!$D$55,INDIRECT(\"a\" & (VLOOKUP(Rebalance!$D$55,$F$2:$G$48,2,FALSE)+ROW()-2)),\"\")","v":{"$error":"#N/A"}},{"$f":"IF(INDIRECT(\"c\" & (VLOOKUP(Rebalance!$D$56,$F$2:$G$48,2,FALSE)+ROW()-2))=Rebalance!$D$56,INDIRECT(\"a\" & (VLOOKUP(Rebalance!$D$56,$F$2:$G$48,2,FALSE)+ROW()-2)),\"\")","v":{"$error":"#N/A"}},{"$f":"IF(INDIRECT(\"c\" & (VLOOKUP(Rebalance!$D$57,$F$2:$G$48,2,FALSE)+ROW()-2))=Rebalance!$D$57,INDIRECT(\"a\" & (VLOOKUP(Rebalance!$D$57,$F$2:$G$48,2,FALSE)+ROW()-2)),\"\")","v":{"$error":"#N/A"}},{"$f":"IF(INDIRECT(\"c\" & (VLOOKUP(Rebalance!$D$58,$F$2:$G$48,2,FALSE)+ROW()-2))=Rebalance!$D$58,INDIRECT(\"a\" & (VLOOKUP(Rebalance!$D$58,$F$2:$G$48,2,FALSE)+ROW()-2)),\"\")","v":{"$error":"#N/A"}},{"$f":"IF(INDIRECT(\"c\" & (VLOOKUP(Rebalance!$D$59,$F$2:$G$48,2,FALSE)+ROW()-2))=Rebalance!$D$59,INDIRECT(\"a\" & (VLOOKUP(Rebalance!$D$59,$F$2:$G$48,2,FALSE)+ROW()-2)),\"\")","v":{"$error":"#N/A"}},{"$f":"IF(INDIRECT(\"c\" & (VLOOKUP(Rebalance!$D$60,$F$2:$G$48,2,FALSE)+ROW()-2))=Rebalance!$D$60,INDIRECT(\"a\" & (VLOOKUP(Rebalance!$D$60,$F$2:$G$48,2,FALSE)+ROW()-2)),\"\")","v":{"$error":"#N/A"}},{"$f":"IF(INDIRECT(\"c\" & (VLOOKUP(Rebalance!$D$61,$F$2:$G$48,2,FALSE)+ROW()-2))=Rebalance!$D$61,INDIRECT(\"a\" & (VLOOKUP(Rebalance!$D$61,$F$2:$G$48,2,FALSE)+ROW()-2)),\"\")","v":{"$error":"#N/A"}},{"$f":"IF(INDIRECT(\"c\" & (VLOOKUP(Rebalance!$D$62,$F$2:$G$48,2,FALSE)+ROW()-2))=Rebalance!$D$62,INDIRECT(\"a\" & (VLOOKUP(Rebalance!$D$62,$F$2:$G$48,2,FALSE)+ROW()-2)),\"\")","v":{"$error":"#N/A"}},{"$f":"IF(INDIRECT(\"c\" & (VLOOKUP(Rebalance!$D$63,$F$2:$G$48,2,FALSE)+ROW()-2))=Rebalance!$D$63,INDIRECT(\"a\" & (VLOOKUP(Rebalance!$D$63,$F$2:$G$48,2,FALSE)+ROW()-2)),\"\")","v":{"$error":"#N/A"}},{"$f":"IF(INDIRECT(\"c\" & (VLOOKUP(Rebalance!$D$64,$F$2:$G$48,2,FALSE)+ROW()-2))=Rebalance!$D$64,INDIRECT(\"a\" & (VLOOKUP(Rebalance!$D$64,$F$2:$G$48,2,FALSE)+ROW()-2)),\"\")","v":{"$error":"#N/A"}},{"$f":"IF(INDIRECT(\"c\" & (VLOOKUP(Rebalance!$D$65,$F$2:$G$48,2,FALSE)+ROW()-2))=Rebalance!$D$65,INDIRECT(\"a\" & (VLOOKUP(Rebalance!$D$65,$F$2:$G$48,2,FALSE)+ROW()-2)),\"\")","v":{"$error":"#N/A"}},{"$f":"IF(INDIRECT(\"c\" & (VLOOKUP(Rebalance!$D$66,$F$2:$G$48,2,FALSE)+ROW()-2))=Rebalance!$D$66,INDIRECT(\"a\" & (VLOOKUP(Rebalance!$D$66,$F$2:$G$48,2,FALSE)+ROW()-2)),\"\")","v":{"$error":"#N/A"}}]
["ABSA Absolute Fund C1","AAFC1","ABSA Fund Managers",{"$f":"ROW()","v":81},null,null,{"$f":"VLOOKUP(F81,$C$2:$D$599,2,FALSE)","v":{"$error":"#N/A"}},{"$f":"IF(INDIRECT(\"c\" & (VLOOKUP(Rebalance!$D$26,$F$2:$G$48,2,FALSE)+ROW()-2))=Rebalance!$D$26,INDIRECT(\"a\" & (VLOOKUP(Rebalance!$D$26,$F$2:$G$48,2,FALSE)+ROW()-2)),\"\")","v":{"$error":"#N/A"}},{"$f":"IF(INDIRECT(\"c\" & (VLOOKUP(Rebalance!$D$27,$F$2:$G$48,2,FALSE)+ROW()-2))=Rebalance!$D$27,INDIRECT(\"a\" & (VLOOKUP(Rebalance!$D$27,$F$2:$G$48,2,FALSE)+ROW()-2)),\"\")","v":{"$error":"#N/A"}},{"$f":"IF(INDIRECT(\"c\" & (VLOOKUP(Rebalance!$D$28,$F$2:$G$48,2,FALSE)+ROW()-2))=Rebalance!$D$28,INDIRECT(\"a\" & (VLOOKUP(Rebalance!$D$28,$F$2:$G$48,2,FALSE)+ROW()-2)),\"\")","v":{"$error":"#N/A"}},{"$f":"IF(INDIRECT(\"c\" & (VLOOKUP(Rebalance!$D$29,$F$2:$G$48,2,FALSE)+ROW()-2))=Rebalance!$D$29,INDIRECT(\"a\" & (VLOOKUP(Rebalance!$D$29,$F$2:$G$48,2,FALSE)+ROW()-2)),\"\")","v":{"$error":"#N/A"}},{"$f":"IF(INDIRECT(\"c\" & (VLOOKUP(Rebalance!$D$30,$F$2:$G$48,2,FALSE)+ROW()-2))=Rebalance!$D$30,INDIRECT(\"a\" & (VLOOKUP(Rebalance!$D$30,$F$2:$G$48,2,FALSE)+ROW()-2)),\"\")","v":{"$error":"#N/A"}},{"$f":"IF(INDIRECT(\"c\" & (VLOOKUP(Rebalance!$D$31,$F$2:$G$48,2,FALSE)+ROW()-2))=Rebalance!$D$31,INDIRECT(\"a\" & (VLOOKUP(Rebalance!$D$31,$F$2:$G$48,2,FALSE)+ROW()-2)),\"\")","v":{"$error":"#N/A"}},{"$f":"IF(INDIRECT(\"c\" & (VLOOKUP(Rebalance!$D$32,$F$2:$G$48,2,FALSE)+ROW()-2))=Rebalance!$D$32,INDIRECT(\"a\" & (VLOOKUP(Rebalance!$D$32,$F$2:$G$48,2,FALSE)+ROW()-2)),\"\")","v":{"$error":"#N/A"}},{"$f":"IF(INDIRECT(\"c\" & (VLOOKUP(Rebalance!$D$33,$F$2:$G$48,2,FALSE)+ROW()-2))=Rebalance!$D$33,INDIRECT(\"a\" & (VLOOKUP(Rebalance!$D$33,$F$2:$G$48,2,FALSE)+ROW()-2)),\"\")","v":{"$error":"#N/A"}},{"$f":"IF(INDIRECT(\"c\" & (VLOOKUP(Rebalance!$D$34,$F$2:$G$48,2,FALSE)+ROW()-2))=Rebalance!$D$34,INDIRECT(\"a\" & (VLOOKUP(Rebalance!$D$34,$F$2:$G$48,2,FALSE)+ROW()-2)),\"\")","v":{"$error":"#N/A"}},{"$f":"IF(INDIRECT(\"c\" & (VLOOKUP(Rebalance!$D$35,$F$2:$G$48,2,FALSE)+ROW()-2))=Rebalance!$D$35,INDIRECT(\"a\" & (VLOOKUP(Rebalance!$D$35,$F$2:$G$48,2,FALSE)+ROW()-2)),\"\")","v":{"$error":"#N/A"}},{"$f":"IF(INDIRECT(\"c\" & (VLOOKUP(Rebalance!$D$36,$F$2:$G$48,2,FALSE)+ROW()-2))=Rebalance!$D$36,INDIRECT(\"a\" & (VLOOKUP(Rebalance!$D$36,$F$2:$G$48,2,FALSE)+ROW()-2)),\"\")","v":{"$error":"#N/A"}},{"$f":"IF(INDIRECT(\"c\" & (VLOOKUP(Rebalance!$D$37,$F$2:$G$48,2,FALSE)+ROW()-2))=Rebalance!$D$37,INDIRECT(\"a\" & (VLOOKUP(Rebalance!$D$37,$F$2:$G$48,2,FALSE)+ROW()-2)),\"\")","v":{"$error":"#N/A"}},{"$f":"IF(INDIRECT(\"c\" & (VLOOKUP(Rebalance!$D$38,$F$2:$G$48,2,FALSE)+ROW()-2))=Rebalance!$D$38,INDIRECT(\"a\" & (VLOOKUP(Rebalance!$D$38,$F$2:$G$48,2,FALSE)+ROW()-2)),\"\")","v":{"$error":"#N/A"}},{"$f":"IF(INDIRECT(\"c\" & (VLOOKUP(Rebalance!$D$39,$F$2:$G$48,2,FALSE)+ROW()-2))=Rebalance!$D$39,INDIRECT(\"a\" & (VLOOKUP(Rebalance!$D$39,$F$2:$G$48,2,FALSE)+ROW()-2)),\"\")","v":{"$error":"#N/A"}},{"$f":"IF(INDIRECT(\"c\" & (VLOOKUP(Rebalance!$D$40,$F$2:$G$48,2,FALSE)+ROW()-2))=Rebalance!$D$40,INDIRECT(\"a\" & (VLOOKUP(Rebalance!$D$40,$F$2:$G$48,2,FALSE)+ROW()-2)),\"\")","v":{"$error":"#N/A"}},{"$f":"IF(INDIRECT(\"c\" & (VLOOKUP(Rebalance!$D$52,$F$2:$G$48,2,FALSE)+ROW()-2))=Rebalance!$D$52,INDIRECT(\"a\" & (VLOOKUP(Rebalance!$D$52,$F$2:$G$48,2,FALSE)+ROW()-2)),\"\")","v":{"$error":"#N/A"}},{"$f":"IF(INDIRECT(\"c\" & (VLOOKUP(Rebalance!$D$53,$F$2:$G$48,2,FALSE)+ROW()-2))=Rebalance!$D$53,INDIRECT(\"a\" & (VLOOKUP(Rebalance!$D$53,$F$2:$G$48,2,FALSE)+ROW()-2)),\"\")","v":{"$error":"#N/A"}},{"$f":"IF(INDIRECT(\"c\" & (VLOOKUP(Rebalance!$D$54,$F$2:$G$48,2,FALSE)+ROW()-2))=Rebalance!$D$54,INDIRECT(\"a\" & (VLOOKUP(Rebalance!$D$54,$F$2:$G$48,2,FALSE)+ROW()-2)),\"\")","v":{"$error":"#N/A"}},{"$f":"IF(INDIRECT(\"c\" & (VLOOKUP(Rebalance!$D$55,$F$2:$G$48,2,FALSE)+ROW()-2))=Rebalance!$D$55,INDIRECT(\"a\" & (VLOOKUP(Rebalance!$D$55,$F$2:$G$48,2,FALSE)+ROW()-2)),\"\")","v":{"$error":"#N/A"}},{"$f":"IF(INDIRECT(\"c\" & (VLOOKUP(Rebalance!$D$56,$F$2:$G$48,2,FALSE)+ROW()-2))=Rebalance!$D$56,INDIRECT(\"a\" & (VLOOKUP(Rebalance!$D$56,$F$2:$G$48,2,FALSE)+ROW()-2)),\"\")","v":{"$error":"#N/A"}},{"$f":"IF(INDIRECT(\"c\" & (VLOOKUP(Rebalance!$D$57,$F$2:$G$48,2,FALSE)+ROW()-2))=Rebalance!$D$57,INDIRECT(\"a\" & (VLOOKUP(Rebalance!$D$57,$F$2:$G$48,2,FALSE)+ROW()-2)),\"\")","v":{"$error":"#N/A"}},{"$f":"IF(INDIRECT(\"c\" & (VLOOKUP(Rebalance!$D$58,$F$2:$G$48,2,FALSE)+ROW()-2))=Rebalance!$D$58,INDIRECT(\"a\" & (VLOOKUP(Rebalance!$D$58,$F$2:$G$48,2,FALSE)+ROW()-2)),\"\")","v":{"$error":"#N/A"}},{"$f":"IF(INDIRECT(\"c\" & (VLOOKUP(Rebalance!$D$59,$F$2:$G$48,2,FALSE)+ROW()-2))=Rebalance!$D$59,INDIRECT(\"a\" & (VLOOKUP(Rebalance!$D$59,$F$2:$G$48,2,FALSE)+ROW()-2)),\"\")","v":{"$error":"#N/A"}},{"$f":"IF(INDIRECT(\"c\" & (VLOOKUP(Rebalance!$D$60,$F$2:$G$48,2,FALSE)+ROW()-2))=Rebalance!$D$60,INDIRECT(\"a\" & (VLOOKUP(Rebalance!$D$60,$F$2:$G$48,2,FALSE)+ROW()-2)),\"\")","v":{"$error":"#N/A"}},{"$f":"IF(INDIRECT(\"c\" & (VLOOKUP(Rebalance!$D$61,$F$2:$G$48,2,FALSE)+ROW()-2))=Rebalance!$D$61,INDIRECT(\"a\" & (VLOOKUP(Rebalance!$D$61,$F$2:$G$48,2,FALSE)+ROW()-2)),\"\")","v":{"$error":"#N/A"}},{"$f":"IF(INDIRECT(\"c\" & (VLOOKUP(Rebalance!$D$62,$F$2:$G$48,2,FALSE)+ROW()-2))=Rebalance!$D$62,INDIRECT(\"a\" & (VLOOKUP(Rebalance!$D$62,$F$2:$G$48,2,FALSE)+ROW()-2)),\"\")","v":{"$error":"#N/A"}},{"$f":"IF(INDIRECT(\"c\" & (VLOOKUP(Rebalance!$D$63,$F$2:$G$48,2,FALSE)+ROW()-2))=Rebalance!$D$63,INDIRECT(\"a\" & (VLOOKUP(Rebalance!$D$63,$F$2:$G$48,2,FALSE)+ROW()-2)),\"\")","v":{"$error":"#N/A"}},{"$f":"IF(INDIRECT(\"c\" & (VLOOKUP(Rebalance!$D$64,$F$2:$G$48,2,FALSE)+ROW()-2))=Rebalance!$D$64,INDIRECT(\"a\" & (VLOOKUP(Rebalance!$D$64,$F$2:$G$48,2,FALSE)+ROW()-2)),\"\")","v":{"$error":"#N/A"}},{"$f":"IF(INDIRECT(\"c\" & (VLOOKUP(Rebalance!$D$65,$F$2:$G$48,2,FALSE)+ROW()-2))=Rebalance!$D$65,INDIRECT(\"a\" & (VLOOKUP(Rebalance!$D$65,$F$2:$G$48,2,FALSE)+ROW()-2)),\"\")","v":{"$error":"#N/A"}},{"$f":"IF(INDIRECT(\"c\" & (VLOOKUP(Rebalance!$D$66,$F$2:$G$48,2,FALSE)+ROW()-2))=Rebalance!$D$66,INDIRECT(\"a\" & (VLOOKUP(Rebalance!$D$66,$F$2:$G$48,2,FALSE)+ROW()-2)),\"\")","v":{"$error":"#N/A"}}]
["ABSA Balanced Fund C1","ABFC1","ABSA Fund Managers",{"$f":"ROW()","v":82},null,null,{"$f":"VLOOKUP(F82,$C$2:$D$599,2,FALSE)","v":{"$error":"#N/A"}},{"$f":"IF(INDIRECT(\"c\" & (VLOOKUP(Rebalance!$D$26,$F$2:$G$48,2,FALSE)+ROW()-2))=Rebalance!$D$26,INDIRECT(\"a\" & (VLOOKUP(Rebalance!$D$26,$F$2:$G$48,2,FALSE)+ROW()-2)),\"\")","v":{"$error":"#N/A"}},{"$f":"IF(INDIRECT(\"c\" & (VLOOKUP(Rebalance!$D$27,$F$2:$G$48,2,FALSE)+ROW()-2))=Rebalance!$D$27,INDIRECT(\"a\" & (VLOOKUP(Rebalance!$D$27,$F$2:$G$48,2,FALSE)+ROW()-2)),\"\")","v":{"$error":"#N/A"}},{"$f":"IF(INDIRECT(\"c\" & (VLOOKUP(Rebalance!$D$28,$F$2:$G$48,2,FALSE)+ROW()-2))=Rebalance!$D$28,INDIRECT(\"a\" & (VLOOKUP(Rebalance!$D$28,$F$2:$G$48,2,FALSE)+ROW()-2)),\"\")","v":{"$error":"#N/A"}},{"$f":"IF(INDIRECT(\"c\" & (VLOOKUP(Rebalance!$D$29,$F$2:$G$48,2,FALSE)+ROW()-2))=Rebalance!$D$29,INDIRECT(\"a\" & (VLOOKUP(Rebalance!$D$29,$F$2:$G$48,2,FALSE)+ROW()-2)),\"\")","v":{"$error":"#N/A"}},{"$f":"IF(INDIRECT(\"c\" & (VLOOKUP(Rebalance!$D$30,$F$2:$G$48,2,FALSE)+ROW()-2))=Rebalance!$D$30,INDIRECT(\"a\" & (VLOOKUP(Rebalance!$D$30,$F$2:$G$48,2,FALSE)+ROW()-2)),\"\")","v":{"$error":"#N/A"}},{"$f":"IF(INDIRECT(\"c\" & (VLOOKUP(Rebalance!$D$31,$F$2:$G$48,2,FALSE)+ROW()-2))=Rebalance!$D$31,INDIRECT(\"a\" & (VLOOKUP(Rebalance!$D$31,$F$2:$G$48,2,FALSE)+ROW()-2)),\"\")","v":{"$error":"#N/A"}},{"$f":"IF(INDIRECT(\"c\" & (VLOOKUP(Rebalance!$D$32,$F$2:$G$48,2,FALSE)+ROW()-2))=Rebalance!$D$32,INDIRECT(\"a\" & (VLOOKUP(Rebalance!$D$32,$F$2:$G$48,2,FALSE)+ROW()-2)),\"\")","v":{"$error":"#N/A"}},{"$f":"IF(INDIRECT(\"c\" & (VLOOKUP(Rebalance!$D$33,$F$2:$G$48,2,FALSE)+ROW()-2))=Rebalance!$D$33,INDIRECT(\"a\" & (VLOOKUP(Rebalance!$D$33,$F$2:$G$48,2,FALSE)+ROW()-2)),\"\")","v":{"$error":"#N/A"}},{"$f":"IF(INDIRECT(\"c\" & (VLOOKUP(Rebalance!$D$34,$F$2:$G$48,2,FALSE)+ROW()-2))=Rebalance!$D$34,INDIRECT(\"a\" & (VLOOKUP(Rebalance!$D$34,$F$2:$G$48,2,FALSE)+ROW()-2)),\"\")","v":{"$error":"#N/A"}},{"$f":"IF(INDIRECT(\"c\" & (VLOOKUP(Rebalance!$D$35,$F$2:$G$48,2,FALSE)+ROW()-2))=Rebalance!$D$35,INDIRECT(\"a\" & (VLOOKUP(Rebalance!$D$35,$F$2:$G$48,2,FALSE)+ROW()-2)),\"\")","v":{"$error":"#N/A"}},{"$f":"IF(INDIRECT(\"c\" & (VLOOKUP(Rebalance!$D$36,$F$2:$G$48,2,FALSE)+ROW()-2))=Rebalance!$D$36,INDIRECT(\"a\" & (VLOOKUP(Rebalance!$D$36,$F$2:$G$48,2,FALSE)+ROW()-2)),\"\")","v":{"$error":"#N/A"}},{"$f":"IF(INDIRECT(\"c\" & (VLOOKUP(Rebalance!$D$37,$F$2:$G$48,2,FALSE)+ROW()-2))=Rebalance!$D$37,INDIRECT(\"a\" & (VLOOKUP(Rebalance!$D$37,$F$2:$G$48,2,FALSE)+ROW()-2)),\"\")","v":{"$error":"#N/A"}},{"$f":"IF(INDIRECT(\"c\" & (VLOOKUP(Rebalance!$D$38,$F$2:$G$48,2,FALSE)+ROW()-2))=Rebalance!$D$38,INDIRECT(\"a\" & (VLOOKUP(Rebalance!$D$38,$F$2:$G$48,2,FALSE)+ROW()-2)),\"\")","v":{"$error":"#N/A"}},{"$f":"IF(INDIRECT(\"c\" & (VLOOKUP(Rebalance!$D$39,$F$2:$G$48,2,FALSE)+ROW()-2))=Rebalance!$D$39,INDIRECT(\"a\" & (VLOOKUP(Rebalance!$D$39,$F$2:$G$48,2,FALSE)+ROW()-2)),\"\")","v":{"$error":"#N/A"}},{"$f":"IF(INDIRECT(\"c\" & (VLOOKUP(Rebalance!$D$40,$F$2:$G$48,2,FALSE)+ROW()-2))=Rebalance!$D$40,INDIRECT(\"a\" & (VLOOKUP(Rebalance!$D$40,$F$2:$G$48,2,FALSE)+ROW()-2)),\"\")","v":{"$error":"#N/A"}},{"$f":"IF(INDIRECT(\"c\" & (VLOOKUP(Rebalance!$D$52,$F$2:$G$48,2,FALSE)+ROW()-2))=Rebalance!$D$52,INDIRECT(\"a\" & (VLOOKUP(Rebalance!$D$52,$F$2:$G$48,2,FALSE)+ROW()-2)),\"\")","v":{"$error":"#N/A"}},{"$f":"IF(INDIRECT(\"c\" & (VLOOKUP(Rebalance!$D$53,$F$2:$G$48,2,FALSE)+ROW()-2))=Rebalance!$D$53,INDIRECT(\"a\" & (VLOOKUP(Rebalance!$D$53,$F$2:$G$48,2,FALSE)+ROW()-2)),\"\")","v":{"$error":"#N/A"}},{"$f":"IF(INDIRECT(\"c\" & (VLOOKUP(Rebalance!$D$54,$F$2:$G$48,2,FALSE)+ROW()-2))=Rebalance!$D$54,INDIRECT(\"a\" & (VLOOKUP(Rebalance!$D$54,$F$2:$G$48,2,FALSE)+ROW()-2)),\"\")","v":{"$error":"#N/A"}},{"$f":"IF(INDIRECT(\"c\" & (VLOOKUP(Rebalance!$D$55,$F$2:$G$48,2,FALSE)+ROW()-2))=Rebalance!$D$55,INDIRECT(\"a\" & (VLOOKUP(Rebalance!$D$55,$F$2:$G$48,2,FALSE)+ROW()-2)),\"\")","v":{"$error":"#N/A"}},{"$f":"IF(INDIRECT(\"c\" & (VLOOKUP(Rebalance!$D$56,$F$2:$G$48,2,FALSE)+ROW()-2))=Rebalance!$D$56,INDIRECT(\"a\" & (VLOOKUP(Rebalance!$D$56,$F$2:$G$48,2,FALSE)+ROW()-2)),\"\")","v":{"$error":"#N/A"}},{"$f":"IF(INDIRECT(\"c\" & (VLOOKUP(Rebalance!$D$57,$F$2:$G$48,2,FALSE)+ROW()-2))=Rebalance!$D$57,INDIRECT(\"a\" & (VLOOKUP(Rebalance!$D$57,$F$2:$G$48,2,FALSE)+ROW()-2)),\"\")","v":{"$error":"#N/A"}},{"$f":"IF(INDIRECT(\"c\" & (VLOOKUP(Rebalance!$D$58,$F$2:$G$48,2,FALSE)+ROW()-2))=Rebalance!$D$58,INDIRECT(\"a\" & (VLOOKUP(Rebalance!$D$58,$F$2:$G$48,2,FALSE)+ROW()-2)),\"\")","v":{"$error":"#N/A"}},{"$f":"IF(INDIRECT(\"c\" & (VLOOKUP(Rebalance!$D$59,$F$2:$G$48,2,FALSE)+ROW()-2))=Rebalance!$D$59,INDIRECT(\"a\" & (VLOOKUP(Rebalance!$D$59,$F$2:$G$48,2,FALSE)+ROW()-2)),\"\")","v":{"$error":"#N/A"}},{"$f":"IF(INDIRECT(\"c\" & (VLOOKUP(Rebalance!$D$60,$F$2:$G$48,2,FALSE)+ROW()-2))=Rebalance!$D$60,INDIRECT(\"a\" & (VLOOKUP(Rebalance!$D$60,$F$2:$G$48,2,FALSE)+ROW()-2)),\"\")","v":{"$error":"#N/A"}},{"$f":"IF(INDIRECT(\"c\" & (VLOOKUP(Rebalance!$D$61,$F$2:$G$48,2,FALSE)+ROW()-2))=Rebalance!$D$61,INDIRECT(\"a\" & (VLOOKUP(Rebalance!$D$61,$F$2:$G$48,2,FALSE)+ROW()-2)),\"\")","v":{"$error":"#N/A"}},{"$f":"IF(INDIRECT(\"c\" & (VLOOKUP(Rebalance!$D$62,$F$2:$G$48,2,FALSE)+ROW()-2))=Rebalance!$D$62,INDIRECT(\"a\" & (VLOOKUP(Rebalance!$D$62,$F$2:$G$48,2,FALSE)+ROW()-2)),\"\")","v":{"$error":"#N/A"}},{"$f":"IF(INDIRECT(\"c\" & (VLOOKUP(Rebalance!$D$63,$F$2:$G$48,2,FALSE)+ROW()-2))=Rebalance!$D$63,INDIRECT(\"a\" & (VLOOKUP(Rebalance!$D$63,$F$2:$G$48,2,FALSE)+ROW()-2)),\"\")","v":{"$error":"#N/A"}},{"$f":"IF(INDIRECT(\"c\" & (VLOOKUP(Rebalance!$D$64,$F$2:$G$48,2,FALSE)+ROW()-2))=Rebalance!$D$64,INDIRECT(\"a\" & (VLOOKUP(Rebalance!$D$64,$F$2:$G$48,2,FALSE)+ROW()-2)),\"\")","v":{"$error":"#N/A"}},{"$f":"IF(INDIRECT(\"c\" & (VLOOKUP(Rebalance!$D$65,$F$2:$G$48,2,FALSE)+ROW()-2))=Rebalance!$D$65,INDIRECT(\"a\" & (VLOOKUP(Rebalance!$D$65,$F$2:$G$48,2,FALSE)+ROW()-2)),\"\")","v":{"$error":"#N/A"}},{"$f":"IF(INDIRECT(\"c\" & (VLOOKUP(Rebalance!$D$66,$F$2:$G$48,2,FALSE)+ROW()-2))=Rebalance!$D$66,INDIRECT(\"a\" & (VLOOKUP(Rebalance!$D$66,$F$2:$G$48,2,FALSE)+ROW()-2)),\"\")","v":{"$error":"#N/A"}}]
["Absa Bond Fund C","ABBCC","ABSA Fund Managers",{"$f":"ROW()","v":83},null,null,{"$f":"VLOOKUP(F83,$C$2:$D$599,2,FALSE)","v":{"$error":"#N/A"}},{"$f":"IF(INDIRECT(\"c\" & (VLOOKUP(Rebalance!$D$26,$F$2:$G$48,2,FALSE)+ROW()-2))=Rebalance!$D$26,INDIRECT(\"a\" & (VLOOKUP(Rebalance!$D$26,$F$2:$G$48,2,FALSE)+ROW()-2)),\"\")","v":{"$error":"#N/A"}},{"$f":"IF(INDIRECT(\"c\" & (VLOOKUP(Rebalance!$D$27,$F$2:$G$48,2,FALSE)+ROW()-2))=Rebalance!$D$27,INDIRECT(\"a\" & (VLOOKUP(Rebalance!$D$27,$F$2:$G$48,2,FALSE)+ROW()-2)),\"\")","v":{"$error":"#N/A"}},{"$f":"IF(INDIRECT(\"c\" & (VLOOKUP(Rebalance!$D$28,$F$2:$G$48,2,FALSE)+ROW()-2))=Rebalance!$D$28,INDIRECT(\"a\" & (VLOOKUP(Rebalance!$D$28,$F$2:$G$48,2,FALSE)+ROW()-2)),\"\")","v":{"$error":"#N/A"}},{"$f":"IF(INDIRECT(\"c\" & (VLOOKUP(Rebalance!$D$29,$F$2:$G$48,2,FALSE)+ROW()-2))=Rebalance!$D$29,INDIRECT(\"a\" & (VLOOKUP(Rebalance!$D$29,$F$2:$G$48,2,FALSE)+ROW()-2)),\"\")","v":{"$error":"#N/A"}},{"$f":"IF(INDIRECT(\"c\" & (VLOOKUP(Rebalance!$D$30,$F$2:$G$48,2,FALSE)+ROW()-2))=Rebalance!$D$30,INDIRECT(\"a\" & (VLOOKUP(Rebalance!$D$30,$F$2:$G$48,2,FALSE)+ROW()-2)),\"\")","v":{"$error":"#N/A"}},{"$f":"IF(INDIRECT(\"c\" & (VLOOKUP(Rebalance!$D$31,$F$2:$G$48,2,FALSE)+ROW()-2))=Rebalance!$D$31,INDIRECT(\"a\" & (VLOOKUP(Rebalance!$D$31,$F$2:$G$48,2,FALSE)+ROW()-2)),\"\")","v":{"$error":"#N/A"}},{"$f":"IF(INDIRECT(\"c\" & (VLOOKUP(Rebalance!$D$32,$F$2:$G$48,2,FALSE)+ROW()-2))=Rebalance!$D$32,INDIRECT(\"a\" & (VLOOKUP(Rebalance!$D$32,$F$2:$G$48,2,FALSE)+ROW()-2)),\"\")","v":{"$error":"#N/A"}},{"$f":"IF(INDIRECT(\"c\" & (VLOOKUP(Rebalance!$D$33,$F$2:$G$48,2,FALSE)+ROW()-2))=Rebalance!$D$33,INDIRECT(\"a\" & (VLOOKUP(Rebalance!$D$33,$F$2:$G$48,2,FALSE)+ROW()-2)),\"\")","v":{"$error":"#N/A"}},{"$f":"IF(INDIRECT(\"c\" & (VLOOKUP(Rebalance!$D$34,$F$2:$G$48,2,FALSE)+ROW()-2))=Rebalance!$D$34,INDIRECT(\"a\" & (VLOOKUP(Rebalance!$D$34,$F$2:$G$48,2,FALSE)+ROW()-2)),\"\")","v":{"$error":"#N/A"}},{"$f":"IF(INDIRECT(\"c\" & (VLOOKUP(Rebalance!$D$35,$F$2:$G$48,2,FALSE)+ROW()-2))=Rebalance!$D$35,INDIRECT(\"a\" & (VLOOKUP(Rebalance!$D$35,$F$2:$G$48,2,FALSE)+ROW()-2)),\"\")","v":{"$error":"#N/A"}},{"$f":"IF(INDIRECT(\"c\" & (VLOOKUP(Rebalance!$D$36,$F$2:$G$48,2,FALSE)+ROW()-2))=Rebalance!$D$36,INDIRECT(\"a\" & (VLOOKUP(Rebalance!$D$36,$F$2:$G$48,2,FALSE)+ROW()-2)),\"\")","v":{"$error":"#N/A"}},{"$f":"IF(INDIRECT(\"c\" & (VLOOKUP(Rebalance!$D$37,$F$2:$G$48,2,FALSE)+ROW()-2))=Rebalance!$D$37,INDIRECT(\"a\" & (VLOOKUP(Rebalance!$D$37,$F$2:$G$48,2,FALSE)+ROW()-2)),\"\")","v":{"$error":"#N/A"}},{"$f":"IF(INDIRECT(\"c\" & (VLOOKUP(Rebalance!$D$38,$F$2:$G$48,2,FALSE)+ROW()-2))=Rebalance!$D$38,INDIRECT(\"a\" & (VLOOKUP(Rebalance!$D$38,$F$2:$G$48,2,FALSE)+ROW()-2)),\"\")","v":{"$error":"#N/A"}},{"$f":"IF(INDIRECT(\"c\" & (VLOOKUP(Rebalance!$D$39,$F$2:$G$48,2,FALSE)+ROW()-2))=Rebalance!$D$39,INDIRECT(\"a\" & (VLOOKUP(Rebalance!$D$39,$F$2:$G$48,2,FALSE)+ROW()-2)),\"\")","v":{"$error":"#N/A"}},{"$f":"IF(INDIRECT(\"c\" & (VLOOKUP(Rebalance!$D$40,$F$2:$G$48,2,FALSE)+ROW()-2))=Rebalance!$D$40,INDIRECT(\"a\" & (VLOOKUP(Rebalance!$D$40,$F$2:$G$48,2,FALSE)+ROW()-2)),\"\")","v":{"$error":"#N/A"}},{"$f":"IF(INDIRECT(\"c\" & (VLOOKUP(Rebalance!$D$52,$F$2:$G$48,2,FALSE)+ROW()-2))=Rebalance!$D$52,INDIRECT(\"a\" & (VLOOKUP(Rebalance!$D$52,$F$2:$G$48,2,FALSE)+ROW()-2)),\"\")","v":{"$error":"#N/A"}},{"$f":"IF(INDIRECT(\"c\" & (VLOOKUP(Rebalance!$D$53,$F$2:$G$48,2,FALSE)+ROW()-2))=Rebalance!$D$53,INDIRECT(\"a\" & (VLOOKUP(Rebalance!$D$53,$F$2:$G$48,2,FALSE)+ROW()-2)),\"\")","v":{"$error":"#N/A"}},{"$f":"IF(INDIRECT(\"c\" & (VLOOKUP(Rebalance!$D$54,$F$2:$G$48,2,FALSE)+ROW()-2))=Rebalance!$D$54,INDIRECT(\"a\" & (VLOOKUP(Rebalance!$D$54,$F$2:$G$48,2,FALSE)+ROW()-2)),\"\")","v":{"$error":"#N/A"}},{"$f":"IF(INDIRECT(\"c\" & (VLOOKUP(Rebalance!$D$55,$F$2:$G$48,2,FALSE)+ROW()-2))=Rebalance!$D$55,INDIRECT(\"a\" & (VLOOKUP(Rebalance!$D$55,$F$2:$G$48,2,FALSE)+ROW()-2)),\"\")","v":{"$error":"#N/A"}},{"$f":"IF(INDIRECT(\"c\" & (VLOOKUP(Rebalance!$D$56,$F$2:$G$48,2,FALSE)+ROW()-2))=Rebalance!$D$56,INDIRECT(\"a\" & (VLOOKUP(Rebalance!$D$56,$F$2:$G$48,2,FALSE)+ROW()-2)),\"\")","v":{"$error":"#N/A"}},{"$f":"IF(INDIRECT(\"c\" & (VLOOKUP(Rebalance!$D$57,$F$2:$G$48,2,FALSE)+ROW()-2))=Rebalance!$D$57,INDIRECT(\"a\" & (VLOOKUP(Rebalance!$D$57,$F$2:$G$48,2,FALSE)+ROW()-2)),\"\")","v":{"$error":"#N/A"}},{"$f":"IF(INDIRECT(\"c\" & (VLOOKUP(Rebalance!$D$58,$F$2:$G$48,2,FALSE)+ROW()-2))=Rebalance!$D$58,INDIRECT(\"a\" & (VLOOKUP(Rebalance!$D$58,$F$2:$G$48,2,FALSE)+ROW()-2)),\"\")","v":{"$error":"#N/A"}},{"$f":"IF(INDIRECT(\"c\" & (VLOOKUP(Rebalance!$D$59,$F$2:$G$48,2,FALSE)+ROW()-2))=Rebalance!$D$59,INDIRECT(\"a\" & (VLOOKUP(Rebalance!$D$59,$F$2:$G$48,2,FALSE)+ROW()-2)),\"\")","v":{"$error":"#N/A"}},{"$f":"IF(INDIRECT(\"c\" & (VLOOKUP(Rebalance!$D$60,$F$2:$G$48,2,FALSE)+ROW()-2))=Rebalance!$D$60,INDIRECT(\"a\" & (VLOOKUP(Rebalance!$D$60,$F$2:$G$48,2,FALSE)+ROW()-2)),\"\")","v":{"$error":"#N/A"}},{"$f":"IF(INDIRECT(\"c\" & (VLOOKUP(Rebalance!$D$61,$F$2:$G$48,2,FALSE)+ROW()-2))=Rebalance!$D$61,INDIRECT(\"a\" & (VLOOKUP(Rebalance!$D$61,$F$2:$G$48,2,FALSE)+ROW()-2)),\"\")","v":{"$error":"#N/A"}},{"$f":"IF(INDIRECT(\"c\" & (VLOOKUP(Rebalance!$D$62,$F$2:$G$48,2,FALSE)+ROW()-2))=Rebalance!$D$62,INDIRECT(\"a\" & (VLOOKUP(Rebalance!$D$62,$F$2:$G$48,2,FALSE)+ROW()-2)),\"\")","v":{"$error":"#N/A"}},{"$f":"IF(INDIRECT(\"c\" & (VLOOKUP(Rebalance!$D$63,$F$2:$G$48,2,FALSE)+ROW()-2))=Rebalance!$D$63,INDIRECT(\"a\" & (VLOOKUP(Rebalance!$D$63,$F$2:$G$48,2,FALSE)+ROW()-2)),\"\")","v":{"$error":"#N/A"}},{"$f":"IF(INDIRECT(\"c\" & (VLOOKUP(Rebalance!$D$64,$F$2:$G$48,2,FALSE)+ROW()-2))=Rebalance!$D$64,INDIRECT(\"a\" & (VLOOKUP(Rebalance!$D$64,$F$2:$G$48,2,FALSE)+ROW()-2)),\"\")","v":{"$error":"#N/A"}},{"$f":"IF(INDIRECT(\"c\" & (VLOOKUP(Rebalance!$D$65,$F$2:$G$48,2,FALSE)+ROW()-2))=Rebalance!$D$65,INDIRECT(\"a\" & (VLOOKUP(Rebalance!$D$65,$F$2:$G$48,2,FALSE)+ROW()-2)),\"\")","v":{"$error":"#N/A"}},{"$f":"IF(INDIRECT(\"c\" & (VLOOKUP(Rebalance!$D$66,$F$2:$G$48,2,FALSE)+ROW()-2))=Rebalance!$D$66,INDIRECT(\"a\" & (VLOOKUP(Rebalance!$D$66,$F$2:$G$48,2,FALSE)+ROW()-2)),\"\")","v":{"$error":"#N/A"}}]
["ABSA Global Value Feeder fund R","ABST","ABSA Fund Managers",{"$f":"ROW()","v":84},null,null,{"$f":"VLOOKUP(F84,$C$2:$D$599,2,FALSE)","v":{"$error":"#N/A"}},{"$f":"IF(INDIRECT(\"c\" & (VLOOKUP(Rebalance!$D$26,$F$2:$G$48,2,FALSE)+ROW()-2))=Rebalance!$D$26,INDIRECT(\"a\" & (VLOOKUP(Rebalance!$D$26,$F$2:$G$48,2,FALSE)+ROW()-2)),\"\")","v":{"$error":"#N/A"}},{"$f":"IF(INDIRECT(\"c\" & (VLOOKUP(Rebalance!$D$27,$F$2:$G$48,2,FALSE)+ROW()-2))=Rebalance!$D$27,INDIRECT(\"a\" & (VLOOKUP(Rebalance!$D$27,$F$2:$G$48,2,FALSE)+ROW()-2)),\"\")","v":{"$error":"#N/A"}},{"$f":"IF(INDIRECT(\"c\" & (VLOOKUP(Rebalance!$D$28,$F$2:$G$48,2,FALSE)+ROW()-2))=Rebalance!$D$28,INDIRECT(\"a\" & (VLOOKUP(Rebalance!$D$28,$F$2:$G$48,2,FALSE)+ROW()-2)),\"\")","v":{"$error":"#N/A"}},{"$f":"IF(INDIRECT(\"c\" & (VLOOKUP(Rebalance!$D$29,$F$2:$G$48,2,FALSE)+ROW()-2))=Rebalance!$D$29,INDIRECT(\"a\" & (VLOOKUP(Rebalance!$D$29,$F$2:$G$48,2,FALSE)+ROW()-2)),\"\")","v":{"$error":"#N/A"}},{"$f":"IF(INDIRECT(\"c\" & (VLOOKUP(Rebalance!$D$30,$F$2:$G$48,2,FALSE)+ROW()-2))=Rebalance!$D$30,INDIRECT(\"a\" & (VLOOKUP(Rebalance!$D$30,$F$2:$G$48,2,FALSE)+ROW()-2)),\"\")","v":{"$error":"#N/A"}},{"$f":"IF(INDIRECT(\"c\" & (VLOOKUP(Rebalance!$D$31,$F$2:$G$48,2,FALSE)+ROW()-2))=Rebalance!$D$31,INDIRECT(\"a\" & (VLOOKUP(Rebalance!$D$31,$F$2:$G$48,2,FALSE)+ROW()-2)),\"\")","v":{"$error":"#N/A"}},{"$f":"IF(INDIRECT(\"c\" & (VLOOKUP(Rebalance!$D$32,$F$2:$G$48,2,FALSE)+ROW()-2))=Rebalance!$D$32,INDIRECT(\"a\" & (VLOOKUP(Rebalance!$D$32,$F$2:$G$48,2,FALSE)+ROW()-2)),\"\")","v":{"$error":"#N/A"}},{"$f":"IF(INDIRECT(\"c\" & (VLOOKUP(Rebalance!$D$33,$F$2:$G$48,2,FALSE)+ROW()-2))=Rebalance!$D$33,INDIRECT(\"a\" & (VLOOKUP(Rebalance!$D$33,$F$2:$G$48,2,FALSE)+ROW()-2)),\"\")","v":{"$error":"#N/A"}},{"$f":"IF(INDIRECT(\"c\" & (VLOOKUP(Rebalance!$D$34,$F$2:$G$48,2,FALSE)+ROW()-2))=Rebalance!$D$34,INDIRECT(\"a\" & (VLOOKUP(Rebalance!$D$34,$F$2:$G$48,2,FALSE)+ROW()-2)),\"\")","v":{"$error":"#N/A"}},{"$f":"IF(INDIRECT(\"c\" & (VLOOKUP(Rebalance!$D$35,$F$2:$G$48,2,FALSE)+ROW()-2))=Rebalance!$D$35,INDIRECT(\"a\" & (VLOOKUP(Rebalance!$D$35,$F$2:$G$48,2,FALSE)+ROW()-2)),\"\")","v":{"$error":"#N/A"}},{"$f":"IF(INDIRECT(\"c\" & (VLOOKUP(Rebalance!$D$36,$F$2:$G$48,2,FALSE)+ROW()-2))=Rebalance!$D$36,INDIRECT(\"a\" & (VLOOKUP(Rebalance!$D$36,$F$2:$G$48,2,FALSE)+ROW()-2)),\"\")","v":{"$error":"#N/A"}},{"$f":"IF(INDIRECT(\"c\" & (VLOOKUP(Rebalance!$D$37,$F$2:$G$48,2,FALSE)+ROW()-2))=Rebalance!$D$37,INDIRECT(\"a\" & (VLOOKUP(Rebalance!$D$37,$F$2:$G$48,2,FALSE)+ROW()-2)),\"\")","v":{"$error":"#N/A"}},{"$f":"IF(INDIRECT(\"c\" & (VLOOKUP(Rebalance!$D$38,$F$2:$G$48,2,FALSE)+ROW()-2))=Rebalance!$D$38,INDIRECT(\"a\" & (VLOOKUP(Rebalance!$D$38,$F$2:$G$48,2,FALSE)+ROW()-2)),\"\")","v":{"$error":"#N/A"}},{"$f":"IF(INDIRECT(\"c\" & (VLOOKUP(Rebalance!$D$39,$F$2:$G$48,2,FALSE)+ROW()-2))=Rebalance!$D$39,INDIRECT(\"a\" & (VLOOKUP(Rebalance!$D$39,$F$2:$G$48,2,FALSE)+ROW()-2)),\"\")","v":{"$error":"#N/A"}},{"$f":"IF(INDIRECT(\"c\" & (VLOOKUP(Rebalance!$D$40,$F$2:$G$48,2,FALSE)+ROW()-2))=Rebalance!$D$40,INDIRECT(\"a\" & (VLOOKUP(Rebalance!$D$40,$F$2:$G$48,2,FALSE)+ROW()-2)),\"\")","v":{"$error":"#N/A"}},{"$f":"IF(INDIRECT(\"c\" & (VLOOKUP(Rebalance!$D$52,$F$2:$G$48,2,FALSE)+ROW()-2))=Rebalance!$D$52,INDIRECT(\"a\" & (VLOOKUP(Rebalance!$D$52,$F$2:$G$48,2,FALSE)+ROW()-2)),\"\")","v":{"$error":"#N/A"}},{"$f":"IF(INDIRECT(\"c\" & (VLOOKUP(Rebalance!$D$53,$F$2:$G$48,2,FALSE)+ROW()-2))=Rebalance!$D$53,INDIRECT(\"a\" & (VLOOKUP(Rebalance!$D$53,$F$2:$G$48,2,FALSE)+ROW()-2)),\"\")","v":{"$error":"#N/A"}},{"$f":"IF(INDIRECT(\"c\" & (VLOOKUP(Rebalance!$D$54,$F$2:$G$48,2,FALSE)+ROW()-2))=Rebalance!$D$54,INDIRECT(\"a\" & (VLOOKUP(Rebalance!$D$54,$F$2:$G$48,2,FALSE)+ROW()-2)),\"\")","v":{"$error":"#N/A"}},{"$f":"IF(INDIRECT(\"c\" & (VLOOKUP(Rebalance!$D$55,$F$2:$G$48,2,FALSE)+ROW()-2))=Rebalance!$D$55,INDIRECT(\"a\" & (VLOOKUP(Rebalance!$D$55,$F$2:$G$48,2,FALSE)+ROW()-2)),\"\")","v":{"$error":"#N/A"}},{"$f":"IF(INDIRECT(\"c\" & (VLOOKUP(Rebalance!$D$56,$F$2:$G$48,2,FALSE)+ROW()-2))=Rebalance!$D$56,INDIRECT(\"a\" & (VLOOKUP(Rebalance!$D$56,$F$2:$G$48,2,FALSE)+ROW()-2)),\"\")","v":{"$error":"#N/A"}},{"$f":"IF(INDIRECT(\"c\" & (VLOOKUP(Rebalance!$D$57,$F$2:$G$48,2,FALSE)+ROW()-2))=Rebalance!$D$57,INDIRECT(\"a\" & (VLOOKUP(Rebalance!$D$57,$F$2:$G$48,2,FALSE)+ROW()-2)),\"\")","v":{"$error":"#N/A"}},{"$f":"IF(INDIRECT(\"c\" & (VLOOKUP(Rebalance!$D$58,$F$2:$G$48,2,FALSE)+ROW()-2))=Rebalance!$D$58,INDIRECT(\"a\" & (VLOOKUP(Rebalance!$D$58,$F$2:$G$48,2,FALSE)+ROW()-2)),\"\")","v":{"$error":"#N/A"}},{"$f":"IF(INDIRECT(\"c\" & (VLOOKUP(Rebalance!$D$59,$F$2:$G$48,2,FALSE)+ROW()-2))=Rebalance!$D$59,INDIRECT(\"a\" & (VLOOKUP(Rebalance!$D$59,$F$2:$G$48,2,FALSE)+ROW()-2)),\"\")","v":{"$error":"#N/A"}},{"$f":"IF(INDIRECT(\"c\" & (VLOOKUP(Rebalance!$D$60,$F$2:$G$48,2,FALSE)+ROW()-2))=Rebalance!$D$60,INDIRECT(\"a\" & (VLOOKUP(Rebalance!$D$60,$F$2:$G$48,2,FALSE)+ROW()-2)),\"\")","v":{"$error":"#N/A"}},{"$f":"IF(INDIRECT(\"c\" & (VLOOKUP(Rebalance!$D$61,$F$2:$G$48,2,FALSE)+ROW()-2))=Rebalance!$D$61,INDIRECT(\"a\" & (VLOOKUP(Rebalance!$D$61,$F$2:$G$48,2,FALSE)+ROW()-2)),\"\")","v":{"$error":"#N/A"}},{"$f":"IF(INDIRECT(\"c\" & (VLOOKUP(Rebalance!$D$62,$F$2:$G$48,2,FALSE)+ROW()-2))=Rebalance!$D$62,INDIRECT(\"a\" & (VLOOKUP(Rebalance!$D$62,$F$2:$G$48,2,FALSE)+ROW()-2)),\"\")","v":{"$error":"#N/A"}},{"$f":"IF(INDIRECT(\"c\" & (VLOOKUP(Rebalance!$D$63,$F$2:$G$48,2,FALSE)+ROW()-2))=Rebalance!$D$63,INDIRECT(\"a\" & (VLOOKUP(Rebalance!$D$63,$F$2:$G$48,2,FALSE)+ROW()-2)),\"\")","v":{"$error":"#N/A"}},{"$f":"IF(INDIRECT(\"c\" & (VLOOKUP(Rebalance!$D$64,$F$2:$G$48,2,FALSE)+ROW()-2))=Rebalance!$D$64,INDIRECT(\"a\" & (VLOOKUP(Rebalance!$D$64,$F$2:$G$48,2,FALSE)+ROW()-2)),\"\")","v":{"$error":"#N/A"}},{"$f":"IF(INDIRECT(\"c\" & (VLOOKUP(Rebalance!$D$65,$F$2:$G$48,2,FALSE)+ROW()-2))=Rebalance!$D$65,INDIRECT(\"a\" & (VLOOKUP(Rebalance!$D$65,$F$2:$G$48,2,FALSE)+ROW()-2)),\"\")","v":{"$error":"#N/A"}},{"$f":"IF(INDIRECT(\"c\" & (VLOOKUP(Rebalance!$D$66,$F$2:$G$48,2,FALSE)+ROW()-2))=Rebalance!$D$66,INDIRECT(\"a\" & (VLOOKUP(Rebalance!$D$66,$F$2:$G$48,2,FALSE)+ROW()-2)),\"\")","v":{"$error":"#N/A"}}]
["ABSA Property Equity Fund C1","ABPC1","ABSA Fund Managers",{"$f":"ROW()","v":85},null,null,{"$f":"VLOOKUP(F85,$C$2:$D$599,2,FALSE)","v":{"$error":"#N/A"}},{"$f":"IF(INDIRECT(\"c\" & (VLOOKUP(Rebalance!$D$26,$F$2:$G$48,2,FALSE)+ROW()-2))=Rebalance!$D$26,INDIRECT(\"a\" & (VLOOKUP(Rebalance!$D$26,$F$2:$G$48,2,FALSE)+ROW()-2)),\"\")","v":{"$error":"#N/A"}},{"$f":"IF(INDIRECT(\"c\" & (VLOOKUP(Rebalance!$D$27,$F$2:$G$48,2,FALSE)+ROW()-2))=Rebalance!$D$27,INDIRECT(\"a\" & (VLOOKUP(Rebalance!$D$27,$F$2:$G$48,2,FALSE)+ROW()-2)),\"\")","v":{"$error":"#N/A"}},{"$f":"IF(INDIRECT(\"c\" & (VLOOKUP(Rebalance!$D$28,$F$2:$G$48,2,FALSE)+ROW()-2))=Rebalance!$D$28,INDIRECT(\"a\" & (VLOOKUP(Rebalance!$D$28,$F$2:$G$48,2,FALSE)+ROW()-2)),\"\")","v":{"$error":"#N/A"}},{"$f":"IF(INDIRECT(\"c\" & (VLOOKUP(Rebalance!$D$29,$F$2:$G$48,2,FALSE)+ROW()-2))=Rebalance!$D$29,INDIRECT(\"a\" & (VLOOKUP(Rebalance!$D$29,$F$2:$G$48,2,FALSE)+ROW()-2)),\"\")","v":{"$error":"#N/A"}},{"$f":"IF(INDIRECT(\"c\" & (VLOOKUP(Rebalance!$D$30,$F$2:$G$48,2,FALSE)+ROW()-2))=Rebalance!$D$30,INDIRECT(\"a\" & (VLOOKUP(Rebalance!$D$30,$F$2:$G$48,2,FALSE)+ROW()-2)),\"\")","v":{"$error":"#N/A"}},{"$f":"IF(INDIRECT(\"c\" & (VLOOKUP(Rebalance!$D$31,$F$2:$G$48,2,FALSE)+ROW()-2))=Rebalance!$D$31,INDIRECT(\"a\" & (VLOOKUP(Rebalance!$D$31,$F$2:$G$48,2,FALSE)+ROW()-2)),\"\")","v":{"$error":"#N/A"}},{"$f":"IF(INDIRECT(\"c\" & (VLOOKUP(Rebalance!$D$32,$F$2:$G$48,2,FALSE)+ROW()-2))=Rebalance!$D$32,INDIRECT(\"a\" & (VLOOKUP(Rebalance!$D$32,$F$2:$G$48,2,FALSE)+ROW()-2)),\"\")","v":{"$error":"#N/A"}},{"$f":"IF(INDIRECT(\"c\" & (VLOOKUP(Rebalance!$D$33,$F$2:$G$48,2,FALSE)+ROW()-2))=Rebalance!$D$33,INDIRECT(\"a\" & (VLOOKUP(Rebalance!$D$33,$F$2:$G$48,2,FALSE)+ROW()-2)),\"\")","v":{"$error":"#N/A"}},{"$f":"IF(INDIRECT(\"c\" & (VLOOKUP(Rebalance!$D$34,$F$2:$G$48,2,FALSE)+ROW()-2))=Rebalance!$D$34,INDIRECT(\"a\" & (VLOOKUP(Rebalance!$D$34,$F$2:$G$48,2,FALSE)+ROW()-2)),\"\")","v":{"$error":"#N/A"}},{"$f":"IF(INDIRECT(\"c\" & (VLOOKUP(Rebalance!$D$35,$F$2:$G$48,2,FALSE)+ROW()-2))=Rebalance!$D$35,INDIRECT(\"a\" & (VLOOKUP(Rebalance!$D$35,$F$2:$G$48,2,FALSE)+ROW()-2)),\"\")","v":{"$error":"#N/A"}},{"$f":"IF(INDIRECT(\"c\" & (VLOOKUP(Rebalance!$D$36,$F$2:$G$48,2,FALSE)+ROW()-2))=Rebalance!$D$36,INDIRECT(\"a\" & (VLOOKUP(Rebalance!$D$36,$F$2:$G$48,2,FALSE)+ROW()-2)),\"\")","v":{"$error":"#N/A"}},{"$f":"IF(INDIRECT(\"c\" & (VLOOKUP(Rebalance!$D$37,$F$2:$G$48,2,FALSE)+ROW()-2))=Rebalance!$D$37,INDIRECT(\"a\" & (VLOOKUP(Rebalance!$D$37,$F$2:$G$48,2,FALSE)+ROW()-2)),\"\")","v":{"$error":"#N/A"}},{"$f":"IF(INDIRECT(\"c\" & (VLOOKUP(Rebalance!$D$38,$F$2:$G$48,2,FALSE)+ROW()-2))=Rebalance!$D$38,INDIRECT(\"a\" & (VLOOKUP(Rebalance!$D$38,$F$2:$G$48,2,FALSE)+ROW()-2)),\"\")","v":{"$error":"#N/A"}},{"$f":"IF(INDIRECT(\"c\" & (VLOOKUP(Rebalance!$D$39,$F$2:$G$48,2,FALSE)+ROW()-2))=Rebalance!$D$39,INDIRECT(\"a\" & (VLOOKUP(Rebalance!$D$39,$F$2:$G$48,2,FALSE)+ROW()-2)),\"\")","v":{"$error":"#N/A"}},{"$f":"IF(INDIRECT(\"c\" & (VLOOKUP(Rebalance!$D$40,$F$2:$G$48,2,FALSE)+ROW()-2))=Rebalance!$D$40,INDIRECT(\"a\" & (VLOOKUP(Rebalance!$D$40,$F$2:$G$48,2,FALSE)+ROW()-2)),\"\")","v":{"$error":"#N/A"}},{"$f":"IF(INDIRECT(\"c\" & (VLOOKUP(Rebalance!$D$52,$F$2:$G$48,2,FALSE)+ROW()-2))=Rebalance!$D$52,INDIRECT(\"a\" & (VLOOKUP(Rebalance!$D$52,$F$2:$G$48,2,FALSE)+ROW()-2)),\"\")","v":{"$error":"#N/A"}},{"$f":"IF(INDIRECT(\"c\" & (VLOOKUP(Rebalance!$D$53,$F$2:$G$48,2,FALSE)+ROW()-2))=Rebalance!$D$53,INDIRECT(\"a\" & (VLOOKUP(Rebalance!$D$53,$F$2:$G$48,2,FALSE)+ROW()-2)),\"\")","v":{"$error":"#N/A"}},{"$f":"IF(INDIRECT(\"c\" & (VLOOKUP(Rebalance!$D$54,$F$2:$G$48,2,FALSE)+ROW()-2))=Rebalance!$D$54,INDIRECT(\"a\" & (VLOOKUP(Rebalance!$D$54,$F$2:$G$48,2,FALSE)+ROW()-2)),\"\")","v":{"$error":"#N/A"}},{"$f":"IF(INDIRECT(\"c\" & (VLOOKUP(Rebalance!$D$55,$F$2:$G$48,2,FALSE)+ROW()-2))=Rebalance!$D$55,INDIRECT(\"a\" & (VLOOKUP(Rebalance!$D$55,$F$2:$G$48,2,FALSE)+ROW()-2)),\"\")","v":{"$error":"#N/A"}},{"$f":"IF(INDIRECT(\"c\" & (VLOOKUP(Rebalance!$D$56,$F$2:$G$48,2,FALSE)+ROW()-2))=Rebalance!$D$56,INDIRECT(\"a\" & (VLOOKUP(Rebalance!$D$56,$F$2:$G$48,2,FALSE)+ROW()-2)),\"\")","v":{"$error":"#N/A"}},{"$f":"IF(INDIRECT(\"c\" & (VLOOKUP(Rebalance!$D$57,$F$2:$G$48,2,FALSE)+ROW()-2))=Rebalance!$D$57,INDIRECT(\"a\" & (VLOOKUP(Rebalance!$D$57,$F$2:$G$48,2,FALSE)+ROW()-2)),\"\")","v":{"$error":"#N/A"}},{"$f":"IF(INDIRECT(\"c\" & (VLOOKUP(Rebalance!$D$58,$F$2:$G$48,2,FALSE)+ROW()-2))=Rebalance!$D$58,INDIRECT(\"a\" & (VLOOKUP(Rebalance!$D$58,$F$2:$G$48,2,FALSE)+ROW()-2)),\"\")","v":{"$error":"#N/A"}},{"$f":"IF(INDIRECT(\"c\" & (VLOOKUP(Rebalance!$D$59,$F$2:$G$48,2,FALSE)+ROW()-2))=Rebalance!$D$59,INDIRECT(\"a\" & (VLOOKUP(Rebalance!$D$59,$F$2:$G$48,2,FALSE)+ROW()-2)),\"\")","v":{"$error":"#N/A"}},{"$f":"IF(INDIRECT(\"c\" & (VLOOKUP(Rebalance!$D$60,$F$2:$G$48,2,FALSE)+ROW()-2))=Rebalance!$D$60,INDIRECT(\"a\" & (VLOOKUP(Rebalance!$D$60,$F$2:$G$48,2,FALSE)+ROW()-2)),\"\")","v":{"$error":"#N/A"}},{"$f":"IF(INDIRECT(\"c\" & (VLOOKUP(Rebalance!$D$61,$F$2:$G$48,2,FALSE)+ROW()-2))=Rebalance!$D$61,INDIRECT(\"a\" & (VLOOKUP(Rebalance!$D$61,$F$2:$G$48,2,FALSE)+ROW()-2)),\"\")","v":{"$error":"#N/A"}},{"$f":"IF(INDIRECT(\"c\" & (VLOOKUP(Rebalance!$D$62,$F$2:$G$48,2,FALSE)+ROW()-2))=Rebalance!$D$62,INDIRECT(\"a\" & (VLOOKUP(Rebalance!$D$62,$F$2:$G$48,2,FALSE)+ROW()-2)),\"\")","v":{"$error":"#N/A"}},{"$f":"IF(INDIRECT(\"c\" & (VLOOKUP(Rebalance!$D$63,$F$2:$G$48,2,FALSE)+ROW()-2))=Rebalance!$D$63,INDIRECT(\"a\" & (VLOOKUP(Rebalance!$D$63,$F$2:$G$48,2,FALSE)+ROW()-2)),\"\")","v":{"$error":"#N/A"}},{"$f":"IF(INDIRECT(\"c\" & (VLOOKUP(Rebalance!$D$64,$F$2:$G$48,2,FALSE)+ROW()-2))=Rebalance!$D$64,INDIRECT(\"a\" & (VLOOKUP(Rebalance!$D$64,$F$2:$G$48,2,FALSE)+ROW()-2)),\"\")","v":{"$error":"#N/A"}},{"$f":"IF(INDIRECT(\"c\" & (VLOOKUP(Rebalance!$D$65,$F$2:$G$48,2,FALSE)+ROW()-2))=Rebalance!$D$65,INDIRECT(\"a\" & (VLOOKUP(Rebalance!$D$65,$F$2:$G$48,2,FALSE)+ROW()-2)),\"\")","v":{"$error":"#N/A"}},{"$f":"IF(INDIRECT(\"c\" & (VLOOKUP(Rebalance!$D$66,$F$2:$G$48,2,FALSE)+ROW()-2))=Rebalance!$D$66,INDIRECT(\"a\" & (VLOOKUP(Rebalance!$D$66,$F$2:$G$48,2,FALSE)+ROW()-2)),\"\")","v":{"$error":"#N/A"}}]
["ABSA Select Equity Fund C1","ASEC1","ABSA Fund Managers",{"$f":"ROW()","v":86},null,null,{"$f":"VLOOKUP(F86,$C$2:$D$599,2,FALSE)","v":{"$error":"#N/A"}},{"$f":"IF(INDIRECT(\"c\" & (VLOOKUP(Rebalance!$D$26,$F$2:$G$48,2,FALSE)+ROW()-2))=Rebalance!$D$26,INDIRECT(\"a\" & (VLOOKUP(Rebalance!$D$26,$F$2:$G$48,2,FALSE)+ROW()-2)),\"\")","v":{"$error":"#N/A"}},{"$f":"IF(INDIRECT(\"c\" & (VLOOKUP(Rebalance!$D$27,$F$2:$G$48,2,FALSE)+ROW()-2))=Rebalance!$D$27,INDIRECT(\"a\" & (VLOOKUP(Rebalance!$D$27,$F$2:$G$48,2,FALSE)+ROW()-2)),\"\")","v":{"$error":"#N/A"}},{"$f":"IF(INDIRECT(\"c\" & (VLOOKUP(Rebalance!$D$28,$F$2:$G$48,2,FALSE)+ROW()-2))=Rebalance!$D$28,INDIRECT(\"a\" & (VLOOKUP(Rebalance!$D$28,$F$2:$G$48,2,FALSE)+ROW()-2)),\"\")","v":{"$error":"#N/A"}},{"$f":"IF(INDIRECT(\"c\" & (VLOOKUP(Rebalance!$D$29,$F$2:$G$48,2,FALSE)+ROW()-2))=Rebalance!$D$29,INDIRECT(\"a\" & (VLOOKUP(Rebalance!$D$29,$F$2:$G$48,2,FALSE)+ROW()-2)),\"\")","v":{"$error":"#N/A"}},{"$f":"IF(INDIRECT(\"c\" & (VLOOKUP(Rebalance!$D$30,$F$2:$G$48,2,FALSE)+ROW()-2))=Rebalance!$D$30,INDIRECT(\"a\" & (VLOOKUP(Rebalance!$D$30,$F$2:$G$48,2,FALSE)+ROW()-2)),\"\")","v":{"$error":"#N/A"}},{"$f":"IF(INDIRECT(\"c\" & (VLOOKUP(Rebalance!$D$31,$F$2:$G$48,2,FALSE)+ROW()-2))=Rebalance!$D$31,INDIRECT(\"a\" & (VLOOKUP(Rebalance!$D$31,$F$2:$G$48,2,FALSE)+ROW()-2)),\"\")","v":{"$error":"#N/A"}},{"$f":"IF(INDIRECT(\"c\" & (VLOOKUP(Rebalance!$D$32,$F$2:$G$48,2,FALSE)+ROW()-2))=Rebalance!$D$32,INDIRECT(\"a\" & (VLOOKUP(Rebalance!$D$32,$F$2:$G$48,2,FALSE)+ROW()-2)),\"\")","v":{"$error":"#N/A"}},{"$f":"IF(INDIRECT(\"c\" & (VLOOKUP(Rebalance!$D$33,$F$2:$G$48,2,FALSE)+ROW()-2))=Rebalance!$D$33,INDIRECT(\"a\" & (VLOOKUP(Rebalance!$D$33,$F$2:$G$48,2,FALSE)+ROW()-2)),\"\")","v":{"$error":"#N/A"}},{"$f":"IF(INDIRECT(\"c\" & (VLOOKUP(Rebalance!$D$34,$F$2:$G$48,2,FALSE)+ROW()-2))=Rebalance!$D$34,INDIRECT(\"a\" & (VLOOKUP(Rebalance!$D$34,$F$2:$G$48,2,FALSE)+ROW()-2)),\"\")","v":{"$error":"#N/A"}},{"$f":"IF(INDIRECT(\"c\" & (VLOOKUP(Rebalance!$D$35,$F$2:$G$48,2,FALSE)+ROW()-2))=Rebalance!$D$35,INDIRECT(\"a\" & (VLOOKUP(Rebalance!$D$35,$F$2:$G$48,2,FALSE)+ROW()-2)),\"\")","v":{"$error":"#N/A"}},{"$f":"IF(INDIRECT(\"c\" & (VLOOKUP(Rebalance!$D$36,$F$2:$G$48,2,FALSE)+ROW()-2))=Rebalance!$D$36,INDIRECT(\"a\" & (VLOOKUP(Rebalance!$D$36,$F$2:$G$48,2,FALSE)+ROW()-2)),\"\")","v":{"$error":"#N/A"}},{"$f":"IF(INDIRECT(\"c\" & (VLOOKUP(Rebalance!$D$37,$F$2:$G$48,2,FALSE)+ROW()-2))=Rebalance!$D$37,INDIRECT(\"a\" & (VLOOKUP(Rebalance!$D$37,$F$2:$G$48,2,FALSE)+ROW()-2)),\"\")","v":{"$error":"#N/A"}},{"$f":"IF(INDIRECT(\"c\" & (VLOOKUP(Rebalance!$D$38,$F$2:$G$48,2,FALSE)+ROW()-2))=Rebalance!$D$38,INDIRECT(\"a\" & (VLOOKUP(Rebalance!$D$38,$F$2:$G$48,2,FALSE)+ROW()-2)),\"\")","v":{"$error":"#N/A"}},{"$f":"IF(INDIRECT(\"c\" & (VLOOKUP(Rebalance!$D$39,$F$2:$G$48,2,FALSE)+ROW()-2))=Rebalance!$D$39,INDIRECT(\"a\" & (VLOOKUP(Rebalance!$D$39,$F$2:$G$48,2,FALSE)+ROW()-2)),\"\")","v":{"$error":"#N/A"}},{"$f":"IF(INDIRECT(\"c\" & (VLOOKUP(Rebalance!$D$40,$F$2:$G$48,2,FALSE)+ROW()-2))=Rebalance!$D$40,INDIRECT(\"a\" & (VLOOKUP(Rebalance!$D$40,$F$2:$G$48,2,FALSE)+ROW()-2)),\"\")","v":{"$error":"#N/A"}},{"$f":"IF(INDIRECT(\"c\" & (VLOOKUP(Rebalance!$D$52,$F$2:$G$48,2,FALSE)+ROW()-2))=Rebalance!$D$52,INDIRECT(\"a\" & (VLOOKUP(Rebalance!$D$52,$F$2:$G$48,2,FALSE)+ROW()-2)),\"\")","v":{"$error":"#N/A"}},{"$f":"IF(INDIRECT(\"c\" & (VLOOKUP(Rebalance!$D$53,$F$2:$G$48,2,FALSE)+ROW()-2))=Rebalance!$D$53,INDIRECT(\"a\" & (VLOOKUP(Rebalance!$D$53,$F$2:$G$48,2,FALSE)+ROW()-2)),\"\")","v":{"$error":"#N/A"}},{"$f":"IF(INDIRECT(\"c\" & (VLOOKUP(Rebalance!$D$54,$F$2:$G$48,2,FALSE)+ROW()-2))=Rebalance!$D$54,INDIRECT(\"a\" & (VLOOKUP(Rebalance!$D$54,$F$2:$G$48,2,FALSE)+ROW()-2)),\"\")","v":{"$error":"#N/A"}},{"$f":"IF(INDIRECT(\"c\" & (VLOOKUP(Rebalance!$D$55,$F$2:$G$48,2,FALSE)+ROW()-2))=Rebalance!$D$55,INDIRECT(\"a\" & (VLOOKUP(Rebalance!$D$55,$F$2:$G$48,2,FALSE)+ROW()-2)),\"\")","v":{"$error":"#N/A"}},{"$f":"IF(INDIRECT(\"c\" & (VLOOKUP(Rebalance!$D$56,$F$2:$G$48,2,FALSE)+ROW()-2))=Rebalance!$D$56,INDIRECT(\"a\" & (VLOOKUP(Rebalance!$D$56,$F$2:$G$48,2,FALSE)+ROW()-2)),\"\")","v":{"$error":"#N/A"}},{"$f":"IF(INDIRECT(\"c\" & (VLOOKUP(Rebalance!$D$57,$F$2:$G$48,2,FALSE)+ROW()-2))=Rebalance!$D$57,INDIRECT(\"a\" & (VLOOKUP(Rebalance!$D$57,$F$2:$G$48,2,FALSE)+ROW()-2)),\"\")","v":{"$error":"#N/A"}},{"$f":"IF(INDIRECT(\"c\" & (VLOOKUP(Rebalance!$D$58,$F$2:$G$48,2,FALSE)+ROW()-2))=Rebalance!$D$58,INDIRECT(\"a\" & (VLOOKUP(Rebalance!$D$58,$F$2:$G$48,2,FALSE)+ROW()-2)),\"\")","v":{"$error":"#N/A"}},{"$f":"IF(INDIRECT(\"c\" & (VLOOKUP(Rebalance!$D$59,$F$2:$G$48,2,FALSE)+ROW()-2))=Rebalance!$D$59,INDIRECT(\"a\" & (VLOOKUP(Rebalance!$D$59,$F$2:$G$48,2,FALSE)+ROW()-2)),\"\")","v":{"$error":"#N/A"}},{"$f":"IF(INDIRECT(\"c\" & (VLOOKUP(Rebalance!$D$60,$F$2:$G$48,2,FALSE)+ROW()-2))=Rebalance!$D$60,INDIRECT(\"a\" & (VLOOKUP(Rebalance!$D$60,$F$2:$G$48,2,FALSE)+ROW()-2)),\"\")","v":{"$error":"#N/A"}},{"$f":"IF(INDIRECT(\"c\" & (VLOOKUP(Rebalance!$D$61,$F$2:$G$48,2,FALSE)+ROW()-2))=Rebalance!$D$61,INDIRECT(\"a\" & (VLOOKUP(Rebalance!$D$61,$F$2:$G$48,2,FALSE)+ROW()-2)),\"\")","v":{"$error":"#N/A"}},{"$f":"IF(INDIRECT(\"c\" & (VLOOKUP(Rebalance!$D$62,$F$2:$G$48,2,FALSE)+ROW()-2))=Rebalance!$D$62,INDIRECT(\"a\" & (VLOOKUP(Rebalance!$D$62,$F$2:$G$48,2,FALSE)+ROW()-2)),\"\")","v":{"$error":"#N/A"}},{"$f":"IF(INDIRECT(\"c\" & (VLOOKUP(Rebalance!$D$63,$F$2:$G$48,2,FALSE)+ROW()-2))=Rebalance!$D$63,INDIRECT(\"a\" & (VLOOKUP(Rebalance!$D$63,$F$2:$G$48,2,FALSE)+ROW()-2)),\"\")","v":{"$error":"#N/A"}},{"$f":"IF(INDIRECT(\"c\" & (VLOOKUP(Rebalance!$D$64,$F$2:$G$48,2,FALSE)+ROW()-2))=Rebalance!$D$64,INDIRECT(\"a\" & (VLOOKUP(Rebalance!$D$64,$F$2:$G$48,2,FALSE)+ROW()-2)),\"\")","v":{"$error":"#N/A"}},{"$f":"IF(INDIRECT(\"c\" & (VLOOKUP(Rebalance!$D$65,$F$2:$G$48,2,FALSE)+ROW()-2))=Rebalance!$D$65,INDIRECT(\"a\" & (VLOOKUP(Rebalance!$D$65,$F$2:$G$48,2,FALSE)+ROW()-2)),\"\")","v":{"$error":"#N/A"}},{"$f":"IF(INDIRECT(\"c\" & (VLOOKUP(Rebalance!$D$66,$F$2:$G$48,2,FALSE)+ROW()-2))=Rebalance!$D$66,INDIRECT(\"a\" & (VLOOKUP(Rebalance!$D$66,$F$2:$G$48,2,FALSE)+ROW()-2)),\"\")","v":{"$error":"#N/A"}}]
["Allan Gray Balanced Fund C","AGBC","Allan Gray Unit Trust Management Limited",{"$f":"ROW()","v":87},null,null,{"$f":"VLOOKUP(F87,$C$2:$D$599,2,FALSE)","v":{"$error":"#N/A"}},{"$f":"IF(INDIRECT(\"c\" & (VLOOKUP(Rebalance!$D$26,$F$2:$G$48,2,FALSE)+ROW()-2))=Rebalance!$D$26,INDIRECT(\"a\" & (VLOOKUP(Rebalance!$D$26,$F$2:$G$48,2,FALSE)+ROW()-2)),\"\")","v":{"$error":"#N/A"}},{"$f":"IF(INDIRECT(\"c\" & (VLOOKUP(Rebalance!$D$27,$F$2:$G$48,2,FALSE)+ROW()-2))=Rebalance!$D$27,INDIRECT(\"a\" & (VLOOKUP(Rebalance!$D$27,$F$2:$G$48,2,FALSE)+ROW()-2)),\"\")","v":{"$error":"#N/A"}},{"$f":"IF(INDIRECT(\"c\" & (VLOOKUP(Rebalance!$D$28,$F$2:$G$48,2,FALSE)+ROW()-2))=Rebalance!$D$28,INDIRECT(\"a\" & (VLOOKUP(Rebalance!$D$28,$F$2:$G$48,2,FALSE)+ROW()-2)),\"\")","v":{"$error":"#N/A"}},{"$f":"IF(INDIRECT(\"c\" & (VLOOKUP(Rebalance!$D$29,$F$2:$G$48,2,FALSE)+ROW()-2))=Rebalance!$D$29,INDIRECT(\"a\" & (VLOOKUP(Rebalance!$D$29,$F$2:$G$48,2,FALSE)+ROW()-2)),\"\")","v":{"$error":"#N/A"}},{"$f":"IF(INDIRECT(\"c\" & (VLOOKUP(Rebalance!$D$30,$F$2:$G$48,2,FALSE)+ROW()-2))=Rebalance!$D$30,INDIRECT(\"a\" & (VLOOKUP(Rebalance!$D$30,$F$2:$G$48,2,FALSE)+ROW()-2)),\"\")","v":{"$error":"#N/A"}},{"$f":"IF(INDIRECT(\"c\" & (VLOOKUP(Rebalance!$D$31,$F$2:$G$48,2,FALSE)+ROW()-2))=Rebalance!$D$31,INDIRECT(\"a\" & (VLOOKUP(Rebalance!$D$31,$F$2:$G$48,2,FALSE)+ROW()-2)),\"\")","v":{"$error":"#N/A"}},{"$f":"IF(INDIRECT(\"c\" & (VLOOKUP(Rebalance!$D$32,$F$2:$G$48,2,FALSE)+ROW()-2))=Rebalance!$D$32,INDIRECT(\"a\" & (VLOOKUP(Rebalance!$D$32,$F$2:$G$48,2,FALSE)+ROW()-2)),\"\")","v":{"$error":"#N/A"}},{"$f":"IF(INDIRECT(\"c\" & (VLOOKUP(Rebalance!$D$33,$F$2:$G$48,2,FALSE)+ROW()-2))=Rebalance!$D$33,INDIRECT(\"a\" & (VLOOKUP(Rebalance!$D$33,$F$2:$G$48,2,FALSE)+ROW()-2)),\"\")","v":{"$error":"#N/A"}},{"$f":"IF(INDIRECT(\"c\" & (VLOOKUP(Rebalance!$D$34,$F$2:$G$48,2,FALSE)+ROW()-2))=Rebalance!$D$34,INDIRECT(\"a\" & (VLOOKUP(Rebalance!$D$34,$F$2:$G$48,2,FALSE)+ROW()-2)),\"\")","v":{"$error":"#N/A"}},{"$f":"IF(INDIRECT(\"c\" & (VLOOKUP(Rebalance!$D$35,$F$2:$G$48,2,FALSE)+ROW()-2))=Rebalance!$D$35,INDIRECT(\"a\" & (VLOOKUP(Rebalance!$D$35,$F$2:$G$48,2,FALSE)+ROW()-2)),\"\")","v":{"$error":"#N/A"}},{"$f":"IF(INDIRECT(\"c\" & (VLOOKUP(Rebalance!$D$36,$F$2:$G$48,2,FALSE)+ROW()-2))=Rebalance!$D$36,INDIRECT(\"a\" & (VLOOKUP(Rebalance!$D$36,$F$2:$G$48,2,FALSE)+ROW()-2)),\"\")","v":{"$error":"#N/A"}},{"$f":"IF(INDIRECT(\"c\" & (VLOOKUP(Rebalance!$D$37,$F$2:$G$48,2,FALSE)+ROW()-2))=Rebalance!$D$37,INDIRECT(\"a\" & (VLOOKUP(Rebalance!$D$37,$F$2:$G$48,2,FALSE)+ROW()-2)),\"\")","v":{"$error":"#N/A"}},{"$f":"IF(INDIRECT(\"c\" & (VLOOKUP(Rebalance!$D$38,$F$2:$G$48,2,FALSE)+ROW()-2))=Rebalance!$D$38,INDIRECT(\"a\" & (VLOOKUP(Rebalance!$D$38,$F$2:$G$48,2,FALSE)+ROW()-2)),\"\")","v":{"$error":"#N/A"}},{"$f":"IF(INDIRECT(\"c\" & (VLOOKUP(Rebalance!$D$39,$F$2:$G$48,2,FALSE)+ROW()-2))=Rebalance!$D$39,INDIRECT(\"a\" & (VLOOKUP(Rebalance!$D$39,$F$2:$G$48,2,FALSE)+ROW()-2)),\"\")","v":{"$error":"#N/A"}},{"$f":"IF(INDIRECT(\"c\" & (VLOOKUP(Rebalance!$D$40,$F$2:$G$48,2,FALSE)+ROW()-2))=Rebalance!$D$40,INDIRECT(\"a\" & (VLOOKUP(Rebalance!$D$40,$F$2:$G$48,2,FALSE)+ROW()-2)),\"\")","v":{"$error":"#N/A"}},{"$f":"IF(INDIRECT(\"c\" & (VLOOKUP(Rebalance!$D$52,$F$2:$G$48,2,FALSE)+ROW()-2))=Rebalance!$D$52,INDIRECT(\"a\" & (VLOOKUP(Rebalance!$D$52,$F$2:$G$48,2,FALSE)+ROW()-2)),\"\")","v":{"$error":"#N/A"}},{"$f":"IF(INDIRECT(\"c\" & (VLOOKUP(Rebalance!$D$53,$F$2:$G$48,2,FALSE)+ROW()-2))=Rebalance!$D$53,INDIRECT(\"a\" & (VLOOKUP(Rebalance!$D$53,$F$2:$G$48,2,FALSE)+ROW()-2)),\"\")","v":{"$error":"#N/A"}},{"$f":"IF(INDIRECT(\"c\" & (VLOOKUP(Rebalance!$D$54,$F$2:$G$48,2,FALSE)+ROW()-2))=Rebalance!$D$54,INDIRECT(\"a\" & (VLOOKUP(Rebalance!$D$54,$F$2:$G$48,2,FALSE)+ROW()-2)),\"\")","v":{"$error":"#N/A"}},{"$f":"IF(INDIRECT(\"c\" & (VLOOKUP(Rebalance!$D$55,$F$2:$G$48,2,FALSE)+ROW()-2))=Rebalance!$D$55,INDIRECT(\"a\" & (VLOOKUP(Rebalance!$D$55,$F$2:$G$48,2,FALSE)+ROW()-2)),\"\")","v":{"$error":"#N/A"}},{"$f":"IF(INDIRECT(\"c\" & (VLOOKUP(Rebalance!$D$56,$F$2:$G$48,2,FALSE)+ROW()-2))=Rebalance!$D$56,INDIRECT(\"a\" & (VLOOKUP(Rebalance!$D$56,$F$2:$G$48,2,FALSE)+ROW()-2)),\"\")","v":{"$error":"#N/A"}},{"$f":"IF(INDIRECT(\"c\" & (VLOOKUP(Rebalance!$D$57,$F$2:$G$48,2,FALSE)+ROW()-2))=Rebalance!$D$57,INDIRECT(\"a\" & (VLOOKUP(Rebalance!$D$57,$F$2:$G$48,2,FALSE)+ROW()-2)),\"\")","v":{"$error":"#N/A"}},{"$f":"IF(INDIRECT(\"c\" & (VLOOKUP(Rebalance!$D$58,$F$2:$G$48,2,FALSE)+ROW()-2))=Rebalance!$D$58,INDIRECT(\"a\" & (VLOOKUP(Rebalance!$D$58,$F$2:$G$48,2,FALSE)+ROW()-2)),\"\")","v":{"$error":"#N/A"}},{"$f":"IF(INDIRECT(\"c\" & (VLOOKUP(Rebalance!$D$59,$F$2:$G$48,2,FALSE)+ROW()-2))=Rebalance!$D$59,INDIRECT(\"a\" & (VLOOKUP(Rebalance!$D$59,$F$2:$G$48,2,FALSE)+ROW()-2)),\"\")","v":{"$error":"#N/A"}},{"$f":"IF(INDIRECT(\"c\" & (VLOOKUP(Rebalance!$D$60,$F$2:$G$48,2,FALSE)+ROW()-2))=Rebalance!$D$60,INDIRECT(\"a\" & (VLOOKUP(Rebalance!$D$60,$F$2:$G$48,2,FALSE)+ROW()-2)),\"\")","v":{"$error":"#N/A"}},{"$f":"IF(INDIRECT(\"c\" & (VLOOKUP(Rebalance!$D$61,$F$2:$G$48,2,FALSE)+ROW()-2))=Rebalance!$D$61,INDIRECT(\"a\" & (VLOOKUP(Rebalance!$D$61,$F$2:$G$48,2,FALSE)+ROW()-2)),\"\")","v":{"$error":"#N/A"}},{"$f":"IF(INDIRECT(\"c\" & (VLOOKUP(Rebalance!$D$62,$F$2:$G$48,2,FALSE)+ROW()-2))=Rebalance!$D$62,INDIRECT(\"a\" & (VLOOKUP(Rebalance!$D$62,$F$2:$G$48,2,FALSE)+ROW()-2)),\"\")","v":{"$error":"#N/A"}},{"$f":"IF(INDIRECT(\"c\" & (VLOOKUP(Rebalance!$D$63,$F$2:$G$48,2,FALSE)+ROW()-2))=Rebalance!$D$63,INDIRECT(\"a\" & (VLOOKUP(Rebalance!$D$63,$F$2:$G$48,2,FALSE)+ROW()-2)),\"\")","v":{"$error":"#N/A"}},{"$f":"IF(INDIRECT(\"c\" & (VLOOKUP(Rebalance!$D$64,$F$2:$G$48,2,FALSE)+ROW()-2))=Rebalance!$D$64,INDIRECT(\"a\" & (VLOOKUP(Rebalance!$D$64,$F$2:$G$48,2,FALSE)+ROW()-2)),\"\")","v":{"$error":"#N/A"}},{"$f":"IF(INDIRECT(\"c\" & (VLOOKUP(Rebalance!$D$65,$F$2:$G$48,2,FALSE)+ROW()-2))=Rebalance!$D$65,INDIRECT(\"a\" & (VLOOKUP(Rebalance!$D$65,$F$2:$G$48,2,FALSE)+ROW()-2)),\"\")","v":{"$error":"#N/A"}},{"$f":"IF(INDIRECT(\"c\" & (VLOOKUP(Rebalance!$D$66,$F$2:$G$48,2,FALSE)+ROW()-2))=Rebalance!$D$66,INDIRECT(\"a\" & (VLOOKUP(Rebalance!$D$66,$F$2:$G$48,2,FALSE)+ROW()-2)),\"\")","v":{"$error":"#N/A"}}]
["Allan Gray Bond Fund A","AGBD","Allan Gray Unit Trust Management Limited",{"$f":"ROW()","v":88},null,null,{"$f":"VLOOKUP(F88,$C$2:$D$599,2,FALSE)","v":{"$error":"#N/A"}},{"$f":"IF(INDIRECT(\"c\" & (VLOOKUP(Rebalance!$D$26,$F$2:$G$48,2,FALSE)+ROW()-2))=Rebalance!$D$26,INDIRECT(\"a\" & (VLOOKUP(Rebalance!$D$26,$F$2:$G$48,2,FALSE)+ROW()-2)),\"\")","v":{"$error":"#N/A"}},{"$f":"IF(INDIRECT(\"c\" & (VLOOKUP(Rebalance!$D$27,$F$2:$G$48,2,FALSE)+ROW()-2))=Rebalance!$D$27,INDIRECT(\"a\" & (VLOOKUP(Rebalance!$D$27,$F$2:$G$48,2,FALSE)+ROW()-2)),\"\")","v":{"$error":"#N/A"}},{"$f":"IF(INDIRECT(\"c\" & (VLOOKUP(Rebalance!$D$28,$F$2:$G$48,2,FALSE)+ROW()-2))=Rebalance!$D$28,INDIRECT(\"a\" & (VLOOKUP(Rebalance!$D$28,$F$2:$G$48,2,FALSE)+ROW()-2)),\"\")","v":{"$error":"#N/A"}},{"$f":"IF(INDIRECT(\"c\" & (VLOOKUP(Rebalance!$D$29,$F$2:$G$48,2,FALSE)+ROW()-2))=Rebalance!$D$29,INDIRECT(\"a\" & (VLOOKUP(Rebalance!$D$29,$F$2:$G$48,2,FALSE)+ROW()-2)),\"\")","v":{"$error":"#N/A"}},{"$f":"IF(INDIRECT(\"c\" & (VLOOKUP(Rebalance!$D$30,$F$2:$G$48,2,FALSE)+ROW()-2))=Rebalance!$D$30,INDIRECT(\"a\" & (VLOOKUP(Rebalance!$D$30,$F$2:$G$48,2,FALSE)+ROW()-2)),\"\")","v":{"$error":"#N/A"}},{"$f":"IF(INDIRECT(\"c\" & (VLOOKUP(Rebalance!$D$31,$F$2:$G$48,2,FALSE)+ROW()-2))=Rebalance!$D$31,INDIRECT(\"a\" & (VLOOKUP(Rebalance!$D$31,$F$2:$G$48,2,FALSE)+ROW()-2)),\"\")","v":{"$error":"#N/A"}},{"$f":"IF(INDIRECT(\"c\" & (VLOOKUP(Rebalance!$D$32,$F$2:$G$48,2,FALSE)+ROW()-2))=Rebalance!$D$32,INDIRECT(\"a\" & (VLOOKUP(Rebalance!$D$32,$F$2:$G$48,2,FALSE)+ROW()-2)),\"\")","v":{"$error":"#N/A"}},{"$f":"IF(INDIRECT(\"c\" & (VLOOKUP(Rebalance!$D$33,$F$2:$G$48,2,FALSE)+ROW()-2))=Rebalance!$D$33,INDIRECT(\"a\" & (VLOOKUP(Rebalance!$D$33,$F$2:$G$48,2,FALSE)+ROW()-2)),\"\")","v":{"$error":"#N/A"}},{"$f":"IF(INDIRECT(\"c\" & (VLOOKUP(Rebalance!$D$34,$F$2:$G$48,2,FALSE)+ROW()-2))=Rebalance!$D$34,INDIRECT(\"a\" & (VLOOKUP(Rebalance!$D$34,$F$2:$G$48,2,FALSE)+ROW()-2)),\"\")","v":{"$error":"#N/A"}},{"$f":"IF(INDIRECT(\"c\" & (VLOOKUP(Rebalance!$D$35,$F$2:$G$48,2,FALSE)+ROW()-2))=Rebalance!$D$35,INDIRECT(\"a\" & (VLOOKUP(Rebalance!$D$35,$F$2:$G$48,2,FALSE)+ROW()-2)),\"\")","v":{"$error":"#N/A"}},{"$f":"IF(INDIRECT(\"c\" & (VLOOKUP(Rebalance!$D$36,$F$2:$G$48,2,FALSE)+ROW()-2))=Rebalance!$D$36,INDIRECT(\"a\" & (VLOOKUP(Rebalance!$D$36,$F$2:$G$48,2,FALSE)+ROW()-2)),\"\")","v":{"$error":"#N/A"}},{"$f":"IF(INDIRECT(\"c\" & (VLOOKUP(Rebalance!$D$37,$F$2:$G$48,2,FALSE)+ROW()-2))=Rebalance!$D$37,INDIRECT(\"a\" & (VLOOKUP(Rebalance!$D$37,$F$2:$G$48,2,FALSE)+ROW()-2)),\"\")","v":{"$error":"#N/A"}},{"$f":"IF(INDIRECT(\"c\" & (VLOOKUP(Rebalance!$D$38,$F$2:$G$48,2,FALSE)+ROW()-2))=Rebalance!$D$38,INDIRECT(\"a\" & (VLOOKUP(Rebalance!$D$38,$F$2:$G$48,2,FALSE)+ROW()-2)),\"\")","v":{"$error":"#N/A"}},{"$f":"IF(INDIRECT(\"c\" & (VLOOKUP(Rebalance!$D$39,$F$2:$G$48,2,FALSE)+ROW()-2))=Rebalance!$D$39,INDIRECT(\"a\" & (VLOOKUP(Rebalance!$D$39,$F$2:$G$48,2,FALSE)+ROW()-2)),\"\")","v":{"$error":"#N/A"}},{"$f":"IF(INDIRECT(\"c\" & (VLOOKUP(Rebalance!$D$40,$F$2:$G$48,2,FALSE)+ROW()-2))=Rebalance!$D$40,INDIRECT(\"a\" & (VLOOKUP(Rebalance!$D$40,$F$2:$G$48,2,FALSE)+ROW()-2)),\"\")","v":{"$error":"#N/A"}},{"$f":"IF(INDIRECT(\"c\" & (VLOOKUP(Rebalance!$D$52,$F$2:$G$48,2,FALSE)+ROW()-2))=Rebalance!$D$52,INDIRECT(\"a\" & (VLOOKUP(Rebalance!$D$52,$F$2:$G$48,2,FALSE)+ROW()-2)),\"\")","v":{"$error":"#N/A"}},{"$f":"IF(INDIRECT(\"c\" & (VLOOKUP(Rebalance!$D$53,$F$2:$G$48,2,FALSE)+ROW()-2))=Rebalance!$D$53,INDIRECT(\"a\" & (VLOOKUP(Rebalance!$D$53,$F$2:$G$48,2,FALSE)+ROW()-2)),\"\")","v":{"$error":"#N/A"}},{"$f":"IF(INDIRECT(\"c\" & (VLOOKUP(Rebalance!$D$54,$F$2:$G$48,2,FALSE)+ROW()-2))=Rebalance!$D$54,INDIRECT(\"a\" & (VLOOKUP(Rebalance!$D$54,$F$2:$G$48,2,FALSE)+ROW()-2)),\"\")","v":{"$error":"#N/A"}},{"$f":"IF(INDIRECT(\"c\" & (VLOOKUP(Rebalance!$D$55,$F$2:$G$48,2,FALSE)+ROW()-2))=Rebalance!$D$55,INDIRECT(\"a\" & (VLOOKUP(Rebalance!$D$55,$F$2:$G$48,2,FALSE)+ROW()-2)),\"\")","v":{"$error":"#N/A"}},{"$f":"IF(INDIRECT(\"c\" & (VLOOKUP(Rebalance!$D$56,$F$2:$G$48,2,FALSE)+ROW()-2))=Rebalance!$D$56,INDIRECT(\"a\" & (VLOOKUP(Rebalance!$D$56,$F$2:$G$48,2,FALSE)+ROW()-2)),\"\")","v":{"$error":"#N/A"}},{"$f":"IF(INDIRECT(\"c\" & (VLOOKUP(Rebalance!$D$57,$F$2:$G$48,2,FALSE)+ROW()-2))=Rebalance!$D$57,INDIRECT(\"a\" & (VLOOKUP(Rebalance!$D$57,$F$2:$G$48,2,FALSE)+ROW()-2)),\"\")","v":{"$error":"#N/A"}},{"$f":"IF(INDIRECT(\"c\" & (VLOOKUP(Rebalance!$D$58,$F$2:$G$48,2,FALSE)+ROW()-2))=Rebalance!$D$58,INDIRECT(\"a\" & (VLOOKUP(Rebalance!$D$58,$F$2:$G$48,2,FALSE)+ROW()-2)),\"\")","v":{"$error":"#N/A"}},{"$f":"IF(INDIRECT(\"c\" & (VLOOKUP(Rebalance!$D$59,$F$2:$G$48,2,FALSE)+ROW()-2))=Rebalance!$D$59,INDIRECT(\"a\" & (VLOOKUP(Rebalance!$D$59,$F$2:$G$48,2,FALSE)+ROW()-2)),\"\")","v":{"$error":"#N/A"}},{"$f":"IF(INDIRECT(\"c\" & (VLOOKUP(Rebalance!$D$60,$F$2:$G$48,2,FALSE)+ROW()-2))=Rebalance!$D$60,INDIRECT(\"a\" & (VLOOKUP(Rebalance!$D$60,$F$2:$G$48,2,FALSE)+ROW()-2)),\"\")","v":{"$error":"#N/A"}},{"$f":"IF(INDIRECT(\"c\" & (VLOOKUP(Rebalance!$D$61,$F$2:$G$48,2,FALSE)+ROW()-2))=Rebalance!$D$61,INDIRECT(\"a\" & (VLOOKUP(Rebalance!$D$61,$F$2:$G$48,2,FALSE)+ROW()-2)),\"\")","v":{"$error":"#N/A"}},{"$f":"IF(INDIRECT(\"c\" & (VLOOKUP(Rebalance!$D$62,$F$2:$G$48,2,FALSE)+ROW()-2))=Rebalance!$D$62,INDIRECT(\"a\" & (VLOOKUP(Rebalance!$D$62,$F$2:$G$48,2,FALSE)+ROW()-2)),\"\")","v":{"$error":"#N/A"}},{"$f":"IF(INDIRECT(\"c\" & (VLOOKUP(Rebalance!$D$63,$F$2:$G$48,2,FALSE)+ROW()-2))=Rebalance!$D$63,INDIRECT(\"a\" & (VLOOKUP(Rebalance!$D$63,$F$2:$G$48,2,FALSE)+ROW()-2)),\"\")","v":{"$error":"#N/A"}},{"$f":"IF(INDIRECT(\"c\" & (VLOOKUP(Rebalance!$D$64,$F$2:$G$48,2,FALSE)+ROW()-2))=Rebalance!$D$64,INDIRECT(\"a\" & (VLOOKUP(Rebalance!$D$64,$F$2:$G$48,2,FALSE)+ROW()-2)),\"\")","v":{"$error":"#N/A"}},{"$f":"IF(INDIRECT(\"c\" & (VLOOKUP(Rebalance!$D$65,$F$2:$G$48,2,FALSE)+ROW()-2))=Rebalance!$D$65,INDIRECT(\"a\" & (VLOOKUP(Rebalance!$D$65,$F$2:$G$48,2,FALSE)+ROW()-2)),\"\")","v":{"$error":"#N/A"}},{"$f":"IF(INDIRECT(\"c\" & (VLOOKUP(Rebalance!$D$66,$F$2:$G$48,2,FALSE)+ROW()-2))=Rebalance!$D$66,INDIRECT(\"a\" & (VLOOKUP(Rebalance!$D$66,$F$2:$G$48,2,FALSE)+ROW()-2)),\"\")","v":{"$error":"#N/A"}}]
["Allan Gray Equity Fund C","AGEC","Allan Gray Unit Trust Management Limited",{"$f":"ROW()","v":89},null,null,{"$f":"VLOOKUP(F89,$C$2:$D$599,2,FALSE)","v":{"$error":"#N/A"}},{"$f":"IF(INDIRECT(\"c\" & (VLOOKUP(Rebalance!$D$26,$F$2:$G$48,2,FALSE)+ROW()-2))=Rebalance!$D$26,INDIRECT(\"a\" & (VLOOKUP(Rebalance!$D$26,$F$2:$G$48,2,FALSE)+ROW()-2)),\"\")","v":{"$error":"#N/A"}},{"$f":"IF(INDIRECT(\"c\" & (VLOOKUP(Rebalance!$D$27,$F$2:$G$48,2,FALSE)+ROW()-2))=Rebalance!$D$27,INDIRECT(\"a\" & (VLOOKUP(Rebalance!$D$27,$F$2:$G$48,2,FALSE)+ROW()-2)),\"\")","v":{"$error":"#N/A"}},{"$f":"IF(INDIRECT(\"c\" & (VLOOKUP(Rebalance!$D$28,$F$2:$G$48,2,FALSE)+ROW()-2))=Rebalance!$D$28,INDIRECT(\"a\" & (VLOOKUP(Rebalance!$D$28,$F$2:$G$48,2,FALSE)+ROW()-2)),\"\")","v":{"$error":"#N/A"}},{"$f":"IF(INDIRECT(\"c\" & (VLOOKUP(Rebalance!$D$29,$F$2:$G$48,2,FALSE)+ROW()-2))=Rebalance!$D$29,INDIRECT(\"a\" & (VLOOKUP(Rebalance!$D$29,$F$2:$G$48,2,FALSE)+ROW()-2)),\"\")","v":{"$error":"#N/A"}},{"$f":"IF(INDIRECT(\"c\" & (VLOOKUP(Rebalance!$D$30,$F$2:$G$48,2,FALSE)+ROW()-2))=Rebalance!$D$30,INDIRECT(\"a\" & (VLOOKUP(Rebalance!$D$30,$F$2:$G$48,2,FALSE)+ROW()-2)),\"\")","v":{"$error":"#N/A"}},{"$f":"IF(INDIRECT(\"c\" & (VLOOKUP(Rebalance!$D$31,$F$2:$G$48,2,FALSE)+ROW()-2))=Rebalance!$D$31,INDIRECT(\"a\" & (VLOOKUP(Rebalance!$D$31,$F$2:$G$48,2,FALSE)+ROW()-2)),\"\")","v":{"$error":"#N/A"}},{"$f":"IF(INDIRECT(\"c\" & (VLOOKUP(Rebalance!$D$32,$F$2:$G$48,2,FALSE)+ROW()-2))=Rebalance!$D$32,INDIRECT(\"a\" & (VLOOKUP(Rebalance!$D$32,$F$2:$G$48,2,FALSE)+ROW()-2)),\"\")","v":{"$error":"#N/A"}},{"$f":"IF(INDIRECT(\"c\" & (VLOOKUP(Rebalance!$D$33,$F$2:$G$48,2,FALSE)+ROW()-2))=Rebalance!$D$33,INDIRECT(\"a\" & (VLOOKUP(Rebalance!$D$33,$F$2:$G$48,2,FALSE)+ROW()-2)),\"\")","v":{"$error":"#N/A"}},{"$f":"IF(INDIRECT(\"c\" & (VLOOKUP(Rebalance!$D$34,$F$2:$G$48,2,FALSE)+ROW()-2))=Rebalance!$D$34,INDIRECT(\"a\" & (VLOOKUP(Rebalance!$D$34,$F$2:$G$48,2,FALSE)+ROW()-2)),\"\")","v":{"$error":"#N/A"}},{"$f":"IF(INDIRECT(\"c\" & (VLOOKUP(Rebalance!$D$35,$F$2:$G$48,2,FALSE)+ROW()-2))=Rebalance!$D$35,INDIRECT(\"a\" & (VLOOKUP(Rebalance!$D$35,$F$2:$G$48,2,FALSE)+ROW()-2)),\"\")","v":{"$error":"#N/A"}},{"$f":"IF(INDIRECT(\"c\" & (VLOOKUP(Rebalance!$D$36,$F$2:$G$48,2,FALSE)+ROW()-2))=Rebalance!$D$36,INDIRECT(\"a\" & (VLOOKUP(Rebalance!$D$36,$F$2:$G$48,2,FALSE)+ROW()-2)),\"\")","v":{"$error":"#N/A"}},{"$f":"IF(INDIRECT(\"c\" & (VLOOKUP(Rebalance!$D$37,$F$2:$G$48,2,FALSE)+ROW()-2))=Rebalance!$D$37,INDIRECT(\"a\" & (VLOOKUP(Rebalance!$D$37,$F$2:$G$48,2,FALSE)+ROW()-2)),\"\")","v":{"$error":"#N/A"}},{"$f":"IF(INDIRECT(\"c\" & (VLOOKUP(Rebalance!$D$38,$F$2:$G$48,2,FALSE)+ROW()-2))=Rebalance!$D$38,INDIRECT(\"a\" & (VLOOKUP(Rebalance!$D$38,$F$2:$G$48,2,FALSE)+ROW()-2)),\"\")","v":{"$error":"#N/A"}},{"$f":"IF(INDIRECT(\"c\" & (VLOOKUP(Rebalance!$D$39,$F$2:$G$48,2,FALSE)+ROW()-2))=Rebalance!$D$39,INDIRECT(\"a\" & (VLOOKUP(Rebalance!$D$39,$F$2:$G$48,2,FALSE)+ROW()-2)),\"\")","v":{"$error":"#N/A"}},{"$f":"IF(INDIRECT(\"c\" & (VLOOKUP(Rebalance!$D$40,$F$2:$G$48,2,FALSE)+ROW()-2))=Rebalance!$D$40,INDIRECT(\"a\" & (VLOOKUP(Rebalance!$D$40,$F$2:$G$48,2,FALSE)+ROW()-2)),\"\")","v":{"$error":"#N/A"}},{"$f":"IF(INDIRECT(\"c\" & (VLOOKUP(Rebalance!$D$52,$F$2:$G$48,2,FALSE)+ROW()-2))=Rebalance!$D$52,INDIRECT(\"a\" & (VLOOKUP(Rebalance!$D$52,$F$2:$G$48,2,FALSE)+ROW()-2)),\"\")","v":{"$error":"#N/A"}},{"$f":"IF(INDIRECT(\"c\" & (VLOOKUP(Rebalance!$D$53,$F$2:$G$48,2,FALSE)+ROW()-2))=Rebalance!$D$53,INDIRECT(\"a\" & (VLOOKUP(Rebalance!$D$53,$F$2:$G$48,2,FALSE)+ROW()-2)),\"\")","v":{"$error":"#N/A"}},{"$f":"IF(INDIRECT(\"c\" & (VLOOKUP(Rebalance!$D$54,$F$2:$G$48,2,FALSE)+ROW()-2))=Rebalance!$D$54,INDIRECT(\"a\" & (VLOOKUP(Rebalance!$D$54,$F$2:$G$48,2,FALSE)+ROW()-2)),\"\")","v":{"$error":"#N/A"}},{"$f":"IF(INDIRECT(\"c\" & (VLOOKUP(Rebalance!$D$55,$F$2:$G$48,2,FALSE)+ROW()-2))=Rebalance!$D$55,INDIRECT(\"a\" & (VLOOKUP(Rebalance!$D$55,$F$2:$G$48,2,FALSE)+ROW()-2)),\"\")","v":{"$error":"#N/A"}},{"$f":"IF(INDIRECT(\"c\" & (VLOOKUP(Rebalance!$D$56,$F$2:$G$48,2,FALSE)+ROW()-2))=Rebalance!$D$56,INDIRECT(\"a\" & (VLOOKUP(Rebalance!$D$56,$F$2:$G$48,2,FALSE)+ROW()-2)),\"\")","v":{"$error":"#N/A"}},{"$f":"IF(INDIRECT(\"c\" & (VLOOKUP(Rebalance!$D$57,$F$2:$G$48,2,FALSE)+ROW()-2))=Rebalance!$D$57,INDIRECT(\"a\" & (VLOOKUP(Rebalance!$D$57,$F$2:$G$48,2,FALSE)+ROW()-2)),\"\")","v":{"$error":"#N/A"}},{"$f":"IF(INDIRECT(\"c\" & (VLOOKUP(Rebalance!$D$58,$F$2:$G$48,2,FALSE)+ROW()-2))=Rebalance!$D$58,INDIRECT(\"a\" & (VLOOKUP(Rebalance!$D$58,$F$2:$G$48,2,FALSE)+ROW()-2)),\"\")","v":{"$error":"#N/A"}},{"$f":"IF(INDIRECT(\"c\" & (VLOOKUP(Rebalance!$D$59,$F$2:$G$48,2,FALSE)+ROW()-2))=Rebalance!$D$59,INDIRECT(\"a\" & (VLOOKUP(Rebalance!$D$59,$F$2:$G$48,2,FALSE)+ROW()-2)),\"\")","v":{"$error":"#N/A"}},{"$f":"IF(INDIRECT(\"c\" & (VLOOKUP(Rebalance!$D$60,$F$2:$G$48,2,FALSE)+ROW()-2))=Rebalance!$D$60,INDIRECT(\"a\" & (VLOOKUP(Rebalance!$D$60,$F$2:$G$48,2,FALSE)+ROW()-2)),\"\")","v":{"$error":"#N/A"}},{"$f":"IF(INDIRECT(\"c\" & (VLOOKUP(Rebalance!$D$61,$F$2:$G$48,2,FALSE)+ROW()-2))=Rebalance!$D$61,INDIRECT(\"a\" & (VLOOKUP(Rebalance!$D$61,$F$2:$G$48,2,FALSE)+ROW()-2)),\"\")","v":{"$error":"#N/A"}},{"$f":"IF(INDIRECT(\"c\" & (VLOOKUP(Rebalance!$D$62,$F$2:$G$48,2,FALSE)+ROW()-2))=Rebalance!$D$62,INDIRECT(\"a\" & (VLOOKUP(Rebalance!$D$62,$F$2:$G$48,2,FALSE)+ROW()-2)),\"\")","v":{"$error":"#N/A"}},{"$f":"IF(INDIRECT(\"c\" & (VLOOKUP(Rebalance!$D$63,$F$2:$G$48,2,FALSE)+ROW()-2))=Rebalance!$D$63,INDIRECT(\"a\" & (VLOOKUP(Rebalance!$D$63,$F$2:$G$48,2,FALSE)+ROW()-2)),\"\")","v":{"$error":"#N/A"}},{"$f":"IF(INDIRECT(\"c\" & (VLOOKUP(Rebalance!$D$64,$F$2:$G$48,2,FALSE)+ROW()-2))=Rebalance!$D$64,INDIRECT(\"a\" & (VLOOKUP(Rebalance!$D$64,$F$2:$G$48,2,FALSE)+ROW()-2)),\"\")","v":{"$error":"#N/A"}},{"$f":"IF(INDIRECT(\"c\" & (VLOOKUP(Rebalance!$D$65,$F$2:$G$48,2,FALSE)+ROW()-2))=Rebalance!$D$65,INDIRECT(\"a\" & (VLOOKUP(Rebalance!$D$65,$F$2:$G$48,2,FALSE)+ROW()-2)),\"\")","v":{"$error":"#N/A"}},{"$f":"IF(INDIRECT(\"c\" & (VLOOKUP(Rebalance!$D$66,$F$2:$G$48,2,FALSE)+ROW()-2))=Rebalance!$D$66,INDIRECT(\"a\" & (VLOOKUP(Rebalance!$D$66,$F$2:$G$48,2,FALSE)+ROW()-2)),\"\")","v":{"$error":"#N/A"}}]
["Allan Gray Optimal C","AGOC","Allan Gray Unit Trust Management Limited",{"$f":"ROW()","v":90},null,null,{"$f":"VLOOKUP(F90,$C$2:$D$599,2,FALSE)","v":{"$error":"#N/A"}},{"$f":"IF(INDIRECT(\"c\" & (VLOOKUP(Rebalance!$D$26,$F$2:$G$48,2,FALSE)+ROW()-2))=Rebalance!$D$26,INDIRECT(\"a\" & (VLOOKUP(Rebalance!$D$26,$F$2:$G$48,2,FALSE)+ROW()-2)),\"\")","v":{"$error":"#N/A"}},{"$f":"IF(INDIRECT(\"c\" & (VLOOKUP(Rebalance!$D$27,$F$2:$G$48,2,FALSE)+ROW()-2))=Rebalance!$D$27,INDIRECT(\"a\" & (VLOOKUP(Rebalance!$D$27,$F$2:$G$48,2,FALSE)+ROW()-2)),\"\")","v":{"$error":"#N/A"}},{"$f":"IF(INDIRECT(\"c\" & (VLOOKUP(Rebalance!$D$28,$F$2:$G$48,2,FALSE)+ROW()-2))=Rebalance!$D$28,INDIRECT(\"a\" & (VLOOKUP(Rebalance!$D$28,$F$2:$G$48,2,FALSE)+ROW()-2)),\"\")","v":{"$error":"#N/A"}},{"$f":"IF(INDIRECT(\"c\" & (VLOOKUP(Rebalance!$D$29,$F$2:$G$48,2,FALSE)+ROW()-2))=Rebalance!$D$29,INDIRECT(\"a\" & (VLOOKUP(Rebalance!$D$29,$F$2:$G$48,2,FALSE)+ROW()-2)),\"\")","v":{"$error":"#N/A"}},{"$f":"IF(INDIRECT(\"c\" & (VLOOKUP(Rebalance!$D$30,$F$2:$G$48,2,FALSE)+ROW()-2))=Rebalance!$D$30,INDIRECT(\"a\" & (VLOOKUP(Rebalance!$D$30,$F$2:$G$48,2,FALSE)+ROW()-2)),\"\")","v":{"$error":"#N/A"}},{"$f":"IF(INDIRECT(\"c\" & (VLOOKUP(Rebalance!$D$31,$F$2:$G$48,2,FALSE)+ROW()-2))=Rebalance!$D$31,INDIRECT(\"a\" & (VLOOKUP(Rebalance!$D$31,$F$2:$G$48,2,FALSE)+ROW()-2)),\"\")","v":{"$error":"#N/A"}},{"$f":"IF(INDIRECT(\"c\" & (VLOOKUP(Rebalance!$D$32,$F$2:$G$48,2,FALSE)+ROW()-2))=Rebalance!$D$32,INDIRECT(\"a\" & (VLOOKUP(Rebalance!$D$32,$F$2:$G$48,2,FALSE)+ROW()-2)),\"\")","v":{"$error":"#N/A"}},{"$f":"IF(INDIRECT(\"c\" & (VLOOKUP(Rebalance!$D$33,$F$2:$G$48,2,FALSE)+ROW()-2))=Rebalance!$D$33,INDIRECT(\"a\" & (VLOOKUP(Rebalance!$D$33,$F$2:$G$48,2,FALSE)+ROW()-2)),\"\")","v":{"$error":"#N/A"}},{"$f":"IF(INDIRECT(\"c\" & (VLOOKUP(Rebalance!$D$34,$F$2:$G$48,2,FALSE)+ROW()-2))=Rebalance!$D$34,INDIRECT(\"a\" & (VLOOKUP(Rebalance!$D$34,$F$2:$G$48,2,FALSE)+ROW()-2)),\"\")","v":{"$error":"#N/A"}},{"$f":"IF(INDIRECT(\"c\" & (VLOOKUP(Rebalance!$D$35,$F$2:$G$48,2,FALSE)+ROW()-2))=Rebalance!$D$35,INDIRECT(\"a\" & (VLOOKUP(Rebalance!$D$35,$F$2:$G$48,2,FALSE)+ROW()-2)),\"\")","v":{"$error":"#N/A"}},{"$f":"IF(INDIRECT(\"c\" & (VLOOKUP(Rebalance!$D$36,$F$2:$G$48,2,FALSE)+ROW()-2))=Rebalance!$D$36,INDIRECT(\"a\" & (VLOOKUP(Rebalance!$D$36,$F$2:$G$48,2,FALSE)+ROW()-2)),\"\")","v":{"$error":"#N/A"}},{"$f":"IF(INDIRECT(\"c\" & (VLOOKUP(Rebalance!$D$37,$F$2:$G$48,2,FALSE)+ROW()-2))=Rebalance!$D$37,INDIRECT(\"a\" & (VLOOKUP(Rebalance!$D$37,$F$2:$G$48,2,FALSE)+ROW()-2)),\"\")","v":{"$error":"#N/A"}},{"$f":"IF(INDIRECT(\"c\" & (VLOOKUP(Rebalance!$D$38,$F$2:$G$48,2,FALSE)+ROW()-2))=Rebalance!$D$38,INDIRECT(\"a\" & (VLOOKUP(Rebalance!$D$38,$F$2:$G$48,2,FALSE)+ROW()-2)),\"\")","v":{"$error":"#N/A"}},{"$f":"IF(INDIRECT(\"c\" & (VLOOKUP(Rebalance!$D$39,$F$2:$G$48,2,FALSE)+ROW()-2))=Rebalance!$D$39,INDIRECT(\"a\" & (VLOOKUP(Rebalance!$D$39,$F$2:$G$48,2,FALSE)+ROW()-2)),\"\")","v":{"$error":"#N/A"}},{"$f":"IF(INDIRECT(\"c\" & (VLOOKUP(Rebalance!$D$40,$F$2:$G$48,2,FALSE)+ROW()-2))=Rebalance!$D$40,INDIRECT(\"a\" & (VLOOKUP(Rebalance!$D$40,$F$2:$G$48,2,FALSE)+ROW()-2)),\"\")","v":{"$error":"#N/A"}},{"$f":"IF(INDIRECT(\"c\" & (VLOOKUP(Rebalance!$D$52,$F$2:$G$48,2,FALSE)+ROW()-2))=Rebalance!$D$52,INDIRECT(\"a\" & (VLOOKUP(Rebalance!$D$52,$F$2:$G$48,2,FALSE)+ROW()-2)),\"\")","v":{"$error":"#N/A"}},{"$f":"IF(INDIRECT(\"c\" & (VLOOKUP(Rebalance!$D$53,$F$2:$G$48,2,FALSE)+ROW()-2))=Rebalance!$D$53,INDIRECT(\"a\" & (VLOOKUP(Rebalance!$D$53,$F$2:$G$48,2,FALSE)+ROW()-2)),\"\")","v":{"$error":"#N/A"}},{"$f":"IF(INDIRECT(\"c\" & (VLOOKUP(Rebalance!$D$54,$F$2:$G$48,2,FALSE)+ROW()-2))=Rebalance!$D$54,INDIRECT(\"a\" & (VLOOKUP(Rebalance!$D$54,$F$2:$G$48,2,FALSE)+ROW()-2)),\"\")","v":{"$error":"#N/A"}},{"$f":"IF(INDIRECT(\"c\" & (VLOOKUP(Rebalance!$D$55,$F$2:$G$48,2,FALSE)+ROW()-2))=Rebalance!$D$55,INDIRECT(\"a\" & (VLOOKUP(Rebalance!$D$55,$F$2:$G$48,2,FALSE)+ROW()-2)),\"\")","v":{"$error":"#N/A"}},{"$f":"IF(INDIRECT(\"c\" & (VLOOKUP(Rebalance!$D$56,$F$2:$G$48,2,FALSE)+ROW()-2))=Rebalance!$D$56,INDIRECT(\"a\" & (VLOOKUP(Rebalance!$D$56,$F$2:$G$48,2,FALSE)+ROW()-2)),\"\")","v":{"$error":"#N/A"}},{"$f":"IF(INDIRECT(\"c\" & (VLOOKUP(Rebalance!$D$57,$F$2:$G$48,2,FALSE)+ROW()-2))=Rebalance!$D$57,INDIRECT(\"a\" & (VLOOKUP(Rebalance!$D$57,$F$2:$G$48,2,FALSE)+ROW()-2)),\"\")","v":{"$error":"#N/A"}},{"$f":"IF(INDIRECT(\"c\" & (VLOOKUP(Rebalance!$D$58,$F$2:$G$48,2,FALSE)+ROW()-2))=Rebalance!$D$58,INDIRECT(\"a\" & (VLOOKUP(Rebalance!$D$58,$F$2:$G$48,2,FALSE)+ROW()-2)),\"\")","v":{"$error":"#N/A"}},{"$f":"IF(INDIRECT(\"c\" & (VLOOKUP(Rebalance!$D$59,$F$2:$G$48,2,FALSE)+ROW()-2))=Rebalance!$D$59,INDIRECT(\"a\" & (VLOOKUP(Rebalance!$D$59,$F$2:$G$48,2,FALSE)+ROW()-2)),\"\")","v":{"$error":"#N/A"}},{"$f":"IF(INDIRECT(\"c\" & (VLOOKUP(Rebalance!$D$60,$F$2:$G$48,2,FALSE)+ROW()-2))=Rebalance!$D$60,INDIRECT(\"a\" & (VLOOKUP(Rebalance!$D$60,$F$2:$G$48,2,FALSE)+ROW()-2)),\"\")","v":{"$error":"#N/A"}},{"$f":"IF(INDIRECT(\"c\" & (VLOOKUP(Rebalance!$D$61,$F$2:$G$48,2,FALSE)+ROW()-2))=Rebalance!$D$61,INDIRECT(\"a\" & (VLOOKUP(Rebalance!$D$61,$F$2:$G$48,2,FALSE)+ROW()-2)),\"\")","v":{"$error":"#N/A"}},{"$f":"IF(INDIRECT(\"c\" & (VLOOKUP(Rebalance!$D$62,$F$2:$G$48,2,FALSE)+ROW()-2))=Rebalance!$D$62,INDIRECT(\"a\" & (VLOOKUP(Rebalance!$D$62,$F$2:$G$48,2,FALSE)+ROW()-2)),\"\")","v":{"$error":"#N/A"}},{"$f":"IF(INDIRECT(\"c\" & (VLOOKUP(Rebalance!$D$63,$F$2:$G$48,2,FALSE)+ROW()-2))=Rebalance!$D$63,INDIRECT(\"a\" & (VLOOKUP(Rebalance!$D$63,$F$2:$G$48,2,FALSE)+ROW()-2)),\"\")","v":{"$error":"#N/A"}},{"$f":"IF(INDIRECT(\"c\" & (VLOOKUP(Rebalance!$D$64,$F$2:$G$48,2,FALSE)+ROW()-2))=Rebalance!$D$64,INDIRECT(\"a\" & (VLOOKUP(Rebalance!$D$64,$F$2:$G$48,2,FALSE)+ROW()-2)),\"\")","v":{"$error":"#N/A"}},{"$f":"IF(INDIRECT(\"c\" & (VLOOKUP(Rebalance!$D$65,$F$2:$G$48,2,FALSE)+ROW()-2))=Rebalance!$D$65,INDIRECT(\"a\" & (VLOOKUP(Rebalance!$D$65,$F$2:$G$48,2,FALSE)+ROW()-2)),\"\")","v":{"$error":"#N/A"}},{"$f":"IF(INDIRECT(\"c\" & (VLOOKUP(Rebalance!$D$66,$F$2:$G$48,2,FALSE)+ROW()-2))=Rebalance!$D$66,INDIRECT(\"a\" & (VLOOKUP(Rebalance!$D$66,$F$2:$G$48,2,FALSE)+ROW()-2)),\"\")","v":{"$error":"#N/A"}}]
["Allan Gray Orbis Global Equity Feeder Fund A","AGOE","Allan Gray Unit Trust Management Limited",{"$f":"ROW()","v":91},null,null,{"$f":"VLOOKUP(F91,$C$2:$D$599,2,FALSE)","v":{"$error":"#N/A"}},{"$f":"IF(INDIRECT(\"c\" & (VLOOKUP(Rebalance!$D$26,$F$2:$G$48,2,FALSE)+ROW()-2))=Rebalance!$D$26,INDIRECT(\"a\" & (VLOOKUP(Rebalance!$D$26,$F$2:$G$48,2,FALSE)+ROW()-2)),\"\")","v":{"$error":"#N/A"}},{"$f":"IF(INDIRECT(\"c\" & (VLOOKUP(Rebalance!$D$27,$F$2:$G$48,2,FALSE)+ROW()-2))=Rebalance!$D$27,INDIRECT(\"a\" & (VLOOKUP(Rebalance!$D$27,$F$2:$G$48,2,FALSE)+ROW()-2)),\"\")","v":{"$error":"#N/A"}},{"$f":"IF(INDIRECT(\"c\" & (VLOOKUP(Rebalance!$D$28,$F$2:$G$48,2,FALSE)+ROW()-2))=Rebalance!$D$28,INDIRECT(\"a\" & (VLOOKUP(Rebalance!$D$28,$F$2:$G$48,2,FALSE)+ROW()-2)),\"\")","v":{"$error":"#N/A"}},{"$f":"IF(INDIRECT(\"c\" & (VLOOKUP(Rebalance!$D$29,$F$2:$G$48,2,FALSE)+ROW()-2))=Rebalance!$D$29,INDIRECT(\"a\" & (VLOOKUP(Rebalance!$D$29,$F$2:$G$48,2,FALSE)+ROW()-2)),\"\")","v":{"$error":"#N/A"}},{"$f":"IF(INDIRECT(\"c\" & (VLOOKUP(Rebalance!$D$30,$F$2:$G$48,2,FALSE)+ROW()-2))=Rebalance!$D$30,INDIRECT(\"a\" & (VLOOKUP(Rebalance!$D$30,$F$2:$G$48,2,FALSE)+ROW()-2)),\"\")","v":{"$error":"#N/A"}},{"$f":"IF(INDIRECT(\"c\" & (VLOOKUP(Rebalance!$D$31,$F$2:$G$48,2,FALSE)+ROW()-2))=Rebalance!$D$31,INDIRECT(\"a\" & (VLOOKUP(Rebalance!$D$31,$F$2:$G$48,2,FALSE)+ROW()-2)),\"\")","v":{"$error":"#N/A"}},{"$f":"IF(INDIRECT(\"c\" & (VLOOKUP(Rebalance!$D$32,$F$2:$G$48,2,FALSE)+ROW()-2))=Rebalance!$D$32,INDIRECT(\"a\" & (VLOOKUP(Rebalance!$D$32,$F$2:$G$48,2,FALSE)+ROW()-2)),\"\")","v":{"$error":"#N/A"}},{"$f":"IF(INDIRECT(\"c\" & (VLOOKUP(Rebalance!$D$33,$F$2:$G$48,2,FALSE)+ROW()-2))=Rebalance!$D$33,INDIRECT(\"a\" & (VLOOKUP(Rebalance!$D$33,$F$2:$G$48,2,FALSE)+ROW()-2)),\"\")","v":{"$error":"#N/A"}},{"$f":"IF(INDIRECT(\"c\" & (VLOOKUP(Rebalance!$D$34,$F$2:$G$48,2,FALSE)+ROW()-2))=Rebalance!$D$34,INDIRECT(\"a\" & (VLOOKUP(Rebalance!$D$34,$F$2:$G$48,2,FALSE)+ROW()-2)),\"\")","v":{"$error":"#N/A"}},{"$f":"IF(INDIRECT(\"c\" & (VLOOKUP(Rebalance!$D$35,$F$2:$G$48,2,FALSE)+ROW()-2))=Rebalance!$D$35,INDIRECT(\"a\" & (VLOOKUP(Rebalance!$D$35,$F$2:$G$48,2,FALSE)+ROW()-2)),\"\")","v":{"$error":"#N/A"}},{"$f":"IF(INDIRECT(\"c\" & (VLOOKUP(Rebalance!$D$36,$F$2:$G$48,2,FALSE)+ROW()-2))=Rebalance!$D$36,INDIRECT(\"a\" & (VLOOKUP(Rebalance!$D$36,$F$2:$G$48,2,FALSE)+ROW()-2)),\"\")","v":{"$error":"#N/A"}},{"$f":"IF(INDIRECT(\"c\" & (VLOOKUP(Rebalance!$D$37,$F$2:$G$48,2,FALSE)+ROW()-2))=Rebalance!$D$37,INDIRECT(\"a\" & (VLOOKUP(Rebalance!$D$37,$F$2:$G$48,2,FALSE)+ROW()-2)),\"\")","v":{"$error":"#N/A"}},{"$f":"IF(INDIRECT(\"c\" & (VLOOKUP(Rebalance!$D$38,$F$2:$G$48,2,FALSE)+ROW()-2))=Rebalance!$D$38,INDIRECT(\"a\" & (VLOOKUP(Rebalance!$D$38,$F$2:$G$48,2,FALSE)+ROW()-2)),\"\")","v":{"$error":"#N/A"}},{"$f":"IF(INDIRECT(\"c\" & (VLOOKUP(Rebalance!$D$39,$F$2:$G$48,2,FALSE)+ROW()-2))=Rebalance!$D$39,INDIRECT(\"a\" & (VLOOKUP(Rebalance!$D$39,$F$2:$G$48,2,FALSE)+ROW()-2)),\"\")","v":{"$error":"#N/A"}},{"$f":"IF(INDIRECT(\"c\" & (VLOOKUP(Rebalance!$D$40,$F$2:$G$48,2,FALSE)+ROW()-2))=Rebalance!$D$40,INDIRECT(\"a\" & (VLOOKUP(Rebalance!$D$40,$F$2:$G$48,2,FALSE)+ROW()-2)),\"\")","v":{"$error":"#N/A"}},{"$f":"IF(INDIRECT(\"c\" & (VLOOKUP(Rebalance!$D$52,$F$2:$G$48,2,FALSE)+ROW()-2))=Rebalance!$D$52,INDIRECT(\"a\" & (VLOOKUP(Rebalance!$D$52,$F$2:$G$48,2,FALSE)+ROW()-2)),\"\")","v":{"$error":"#N/A"}},{"$f":"IF(INDIRECT(\"c\" & (VLOOKUP(Rebalance!$D$53,$F$2:$G$48,2,FALSE)+ROW()-2))=Rebalance!$D$53,INDIRECT(\"a\" & (VLOOKUP(Rebalance!$D$53,$F$2:$G$48,2,FALSE)+ROW()-2)),\"\")","v":{"$error":"#N/A"}},{"$f":"IF(INDIRECT(\"c\" & (VLOOKUP(Rebalance!$D$54,$F$2:$G$48,2,FALSE)+ROW()-2))=Rebalance!$D$54,INDIRECT(\"a\" & (VLOOKUP(Rebalance!$D$54,$F$2:$G$48,2,FALSE)+ROW()-2)),\"\")","v":{"$error":"#N/A"}},{"$f":"IF(INDIRECT(\"c\" & (VLOOKUP(Rebalance!$D$55,$F$2:$G$48,2,FALSE)+ROW()-2))=Rebalance!$D$55,INDIRECT(\"a\" & (VLOOKUP(Rebalance!$D$55,$F$2:$G$48,2,FALSE)+ROW()-2)),\"\")","v":{"$error":"#N/A"}},{"$f":"IF(INDIRECT(\"c\" & (VLOOKUP(Rebalance!$D$56,$F$2:$G$48,2,FALSE)+ROW()-2))=Rebalance!$D$56,INDIRECT(\"a\" & (VLOOKUP(Rebalance!$D$56,$F$2:$G$48,2,FALSE)+ROW()-2)),\"\")","v":{"$error":"#N/A"}},{"$f":"IF(INDIRECT(\"c\" & (VLOOKUP(Rebalance!$D$57,$F$2:$G$48,2,FALSE)+ROW()-2))=Rebalance!$D$57,INDIRECT(\"a\" & (VLOOKUP(Rebalance!$D$57,$F$2:$G$48,2,FALSE)+ROW()-2)),\"\")","v":{"$error":"#N/A"}},{"$f":"IF(INDIRECT(\"c\" & (VLOOKUP(Rebalance!$D$58,$F$2:$G$48,2,FALSE)+ROW()-2))=Rebalance!$D$58,INDIRECT(\"a\" & (VLOOKUP(Rebalance!$D$58,$F$2:$G$48,2,FALSE)+ROW()-2)),\"\")","v":{"$error":"#N/A"}},{"$f":"IF(INDIRECT(\"c\" & (VLOOKUP(Rebalance!$D$59,$F$2:$G$48,2,FALSE)+ROW()-2))=Rebalance!$D$59,INDIRECT(\"a\" & (VLOOKUP(Rebalance!$D$59,$F$2:$G$48,2,FALSE)+ROW()-2)),\"\")","v":{"$error":"#N/A"}},{"$f":"IF(INDIRECT(\"c\" & (VLOOKUP(Rebalance!$D$60,$F$2:$G$48,2,FALSE)+ROW()-2))=Rebalance!$D$60,INDIRECT(\"a\" & (VLOOKUP(Rebalance!$D$60,$F$2:$G$48,2,FALSE)+ROW()-2)),\"\")","v":{"$error":"#N/A"}},{"$f":"IF(INDIRECT(\"c\" & (VLOOKUP(Rebalance!$D$61,$F$2:$G$48,2,FALSE)+ROW()-2))=Rebalance!$D$61,INDIRECT(\"a\" & (VLOOKUP(Rebalance!$D$61,$F$2:$G$48,2,FALSE)+ROW()-2)),\"\")","v":{"$error":"#N/A"}},{"$f":"IF(INDIRECT(\"c\" & (VLOOKUP(Rebalance!$D$62,$F$2:$G$48,2,FALSE)+ROW()-2))=Rebalance!$D$62,INDIRECT(\"a\" & (VLOOKUP(Rebalance!$D$62,$F$2:$G$48,2,FALSE)+ROW()-2)),\"\")","v":{"$error":"#N/A"}},{"$f":"IF(INDIRECT(\"c\" & (VLOOKUP(Rebalance!$D$63,$F$2:$G$48,2,FALSE)+ROW()-2))=Rebalance!$D$63,INDIRECT(\"a\" & (VLOOKUP(Rebalance!$D$63,$F$2:$G$48,2,FALSE)+ROW()-2)),\"\")","v":{"$error":"#N/A"}},{"$f":"IF(INDIRECT(\"c\" & (VLOOKUP(Rebalance!$D$64,$F$2:$G$48,2,FALSE)+ROW()-2))=Rebalance!$D$64,INDIRECT(\"a\" & (VLOOKUP(Rebalance!$D$64,$F$2:$G$48,2,FALSE)+ROW()-2)),\"\")","v":{"$error":"#N/A"}},{"$f":"IF(INDIRECT(\"c\" & (VLOOKUP(Rebalance!$D$65,$F$2:$G$48,2,FALSE)+ROW()-2))=Rebalance!$D$65,INDIRECT(\"a\" & (VLOOKUP(Rebalance!$D$65,$F$2:$G$48,2,FALSE)+ROW()-2)),\"\")","v":{"$error":"#N/A"}},{"$f":"IF(INDIRECT(\"c\" & (VLOOKUP(Rebalance!$D$66,$F$2:$G$48,2,FALSE)+ROW()-2))=Rebalance!$D$66,INDIRECT(\"a\" & (VLOOKUP(Rebalance!$D$66,$F$2:$G$48,2,FALSE)+ROW()-2)),\"\")","v":{"$error":"#N/A"}}]
["Allan Gray Orbis Global FoF A","AGGF","Allan Gray Unit Trust Management Limited",{"$f":"ROW()","v":92},null,null,{"$f":"VLOOKUP(F92,$C$2:$D$599,2,FALSE)","v":{"$error":"#N/A"}},{"$f":"IF(INDIRECT(\"c\" & (VLOOKUP(Rebalance!$D$26,$F$2:$G$48,2,FALSE)+ROW()-2))=Rebalance!$D$26,INDIRECT(\"a\" & (VLOOKUP(Rebalance!$D$26,$F$2:$G$48,2,FALSE)+ROW()-2)),\"\")","v":{"$error":"#N/A"}},{"$f":"IF(INDIRECT(\"c\" & (VLOOKUP(Rebalance!$D$27,$F$2:$G$48,2,FALSE)+ROW()-2))=Rebalance!$D$27,INDIRECT(\"a\" & (VLOOKUP(Rebalance!$D$27,$F$2:$G$48,2,FALSE)+ROW()-2)),\"\")","v":{"$error":"#N/A"}},{"$f":"IF(INDIRECT(\"c\" & (VLOOKUP(Rebalance!$D$28,$F$2:$G$48,2,FALSE)+ROW()-2))=Rebalance!$D$28,INDIRECT(\"a\" & (VLOOKUP(Rebalance!$D$28,$F$2:$G$48,2,FALSE)+ROW()-2)),\"\")","v":{"$error":"#N/A"}},{"$f":"IF(INDIRECT(\"c\" & (VLOOKUP(Rebalance!$D$29,$F$2:$G$48,2,FALSE)+ROW()-2))=Rebalance!$D$29,INDIRECT(\"a\" & (VLOOKUP(Rebalance!$D$29,$F$2:$G$48,2,FALSE)+ROW()-2)),\"\")","v":{"$error":"#N/A"}},{"$f":"IF(INDIRECT(\"c\" & (VLOOKUP(Rebalance!$D$30,$F$2:$G$48,2,FALSE)+ROW()-2))=Rebalance!$D$30,INDIRECT(\"a\" & (VLOOKUP(Rebalance!$D$30,$F$2:$G$48,2,FALSE)+ROW()-2)),\"\")","v":{"$error":"#N/A"}},{"$f":"IF(INDIRECT(\"c\" & (VLOOKUP(Rebalance!$D$31,$F$2:$G$48,2,FALSE)+ROW()-2))=Rebalance!$D$31,INDIRECT(\"a\" & (VLOOKUP(Rebalance!$D$31,$F$2:$G$48,2,FALSE)+ROW()-2)),\"\")","v":{"$error":"#N/A"}},{"$f":"IF(INDIRECT(\"c\" & (VLOOKUP(Rebalance!$D$32,$F$2:$G$48,2,FALSE)+ROW()-2))=Rebalance!$D$32,INDIRECT(\"a\" & (VLOOKUP(Rebalance!$D$32,$F$2:$G$48,2,FALSE)+ROW()-2)),\"\")","v":{"$error":"#N/A"}},{"$f":"IF(INDIRECT(\"c\" & (VLOOKUP(Rebalance!$D$33,$F$2:$G$48,2,FALSE)+ROW()-2))=Rebalance!$D$33,INDIRECT(\"a\" & (VLOOKUP(Rebalance!$D$33,$F$2:$G$48,2,FALSE)+ROW()-2)),\"\")","v":{"$error":"#N/A"}},{"$f":"IF(INDIRECT(\"c\" & (VLOOKUP(Rebalance!$D$34,$F$2:$G$48,2,FALSE)+ROW()-2))=Rebalance!$D$34,INDIRECT(\"a\" & (VLOOKUP(Rebalance!$D$34,$F$2:$G$48,2,FALSE)+ROW()-2)),\"\")","v":{"$error":"#N/A"}},{"$f":"IF(INDIRECT(\"c\" & (VLOOKUP(Rebalance!$D$35,$F$2:$G$48,2,FALSE)+ROW()-2))=Rebalance!$D$35,INDIRECT(\"a\" & (VLOOKUP(Rebalance!$D$35,$F$2:$G$48,2,FALSE)+ROW()-2)),\"\")","v":{"$error":"#N/A"}},{"$f":"IF(INDIRECT(\"c\" & (VLOOKUP(Rebalance!$D$36,$F$2:$G$48,2,FALSE)+ROW()-2))=Rebalance!$D$36,INDIRECT(\"a\" & (VLOOKUP(Rebalance!$D$36,$F$2:$G$48,2,FALSE)+ROW()-2)),\"\")","v":{"$error":"#N/A"}},{"$f":"IF(INDIRECT(\"c\" & (VLOOKUP(Rebalance!$D$37,$F$2:$G$48,2,FALSE)+ROW()-2))=Rebalance!$D$37,INDIRECT(\"a\" & (VLOOKUP(Rebalance!$D$37,$F$2:$G$48,2,FALSE)+ROW()-2)),\"\")","v":{"$error":"#N/A"}},{"$f":"IF(INDIRECT(\"c\" & (VLOOKUP(Rebalance!$D$38,$F$2:$G$48,2,FALSE)+ROW()-2))=Rebalance!$D$38,INDIRECT(\"a\" & (VLOOKUP(Rebalance!$D$38,$F$2:$G$48,2,FALSE)+ROW()-2)),\"\")","v":{"$error":"#N/A"}},{"$f":"IF(INDIRECT(\"c\" & (VLOOKUP(Rebalance!$D$39,$F$2:$G$48,2,FALSE)+ROW()-2))=Rebalance!$D$39,INDIRECT(\"a\" & (VLOOKUP(Rebalance!$D$39,$F$2:$G$48,2,FALSE)+ROW()-2)),\"\")","v":{"$error":"#N/A"}},{"$f":"IF(INDIRECT(\"c\" & (VLOOKUP(Rebalance!$D$40,$F$2:$G$48,2,FALSE)+ROW()-2))=Rebalance!$D$40,INDIRECT(\"a\" & (VLOOKUP(Rebalance!$D$40,$F$2:$G$48,2,FALSE)+ROW()-2)),\"\")","v":{"$error":"#N/A"}},{"$f":"IF(INDIRECT(\"c\" & (VLOOKUP(Rebalance!$D$52,$F$2:$G$48,2,FALSE)+ROW()-2))=Rebalance!$D$52,INDIRECT(\"a\" & (VLOOKUP(Rebalance!$D$52,$F$2:$G$48,2,FALSE)+ROW()-2)),\"\")","v":{"$error":"#N/A"}},{"$f":"IF(INDIRECT(\"c\" & (VLOOKUP(Rebalance!$D$53,$F$2:$G$48,2,FALSE)+ROW()-2))=Rebalance!$D$53,INDIRECT(\"a\" & (VLOOKUP(Rebalance!$D$53,$F$2:$G$48,2,FALSE)+ROW()-2)),\"\")","v":{"$error":"#N/A"}},{"$f":"IF(INDIRECT(\"c\" & (VLOOKUP(Rebalance!$D$54,$F$2:$G$48,2,FALSE)+ROW()-2))=Rebalance!$D$54,INDIRECT(\"a\" & (VLOOKUP(Rebalance!$D$54,$F$2:$G$48,2,FALSE)+ROW()-2)),\"\")","v":{"$error":"#N/A"}},{"$f":"IF(INDIRECT(\"c\" & (VLOOKUP(Rebalance!$D$55,$F$2:$G$48,2,FALSE)+ROW()-2))=Rebalance!$D$55,INDIRECT(\"a\" & (VLOOKUP(Rebalance!$D$55,$F$2:$G$48,2,FALSE)+ROW()-2)),\"\")","v":{"$error":"#N/A"}},{"$f":"IF(INDIRECT(\"c\" & (VLOOKUP(Rebalance!$D$56,$F$2:$G$48,2,FALSE)+ROW()-2))=Rebalance!$D$56,INDIRECT(\"a\" & (VLOOKUP(Rebalance!$D$56,$F$2:$G$48,2,FALSE)+ROW()-2)),\"\")","v":{"$error":"#N/A"}},{"$f":"IF(INDIRECT(\"c\" & (VLOOKUP(Rebalance!$D$57,$F$2:$G$48,2,FALSE)+ROW()-2))=Rebalance!$D$57,INDIRECT(\"a\" & (VLOOKUP(Rebalance!$D$57,$F$2:$G$48,2,FALSE)+ROW()-2)),\"\")","v":{"$error":"#N/A"}},{"$f":"IF(INDIRECT(\"c\" & (VLOOKUP(Rebalance!$D$58,$F$2:$G$48,2,FALSE)+ROW()-2))=Rebalance!$D$58,INDIRECT(\"a\" & (VLOOKUP(Rebalance!$D$58,$F$2:$G$48,2,FALSE)+ROW()-2)),\"\")","v":{"$error":"#N/A"}},{"$f":"IF(INDIRECT(\"c\" & (VLOOKUP(Rebalance!$D$59,$F$2:$G$48,2,FALSE)+ROW()-2))=Rebalance!$D$59,INDIRECT(\"a\" & (VLOOKUP(Rebalance!$D$59,$F$2:$G$48,2,FALSE)+ROW()-2)),\"\")","v":{"$error":"#N/A"}},{"$f":"IF(INDIRECT(\"c\" & (VLOOKUP(Rebalance!$D$60,$F$2:$G$48,2,FALSE)+ROW()-2))=Rebalance!$D$60,INDIRECT(\"a\" & (VLOOKUP(Rebalance!$D$60,$F$2:$G$48,2,FALSE)+ROW()-2)),\"\")","v":{"$error":"#N/A"}},{"$f":"IF(INDIRECT(\"c\" & (VLOOKUP(Rebalance!$D$61,$F$2:$G$48,2,FALSE)+ROW()-2))=Rebalance!$D$61,INDIRECT(\"a\" & (VLOOKUP(Rebalance!$D$61,$F$2:$G$48,2,FALSE)+ROW()-2)),\"\")","v":{"$error":"#N/A"}},{"$f":"IF(INDIRECT(\"c\" & (VLOOKUP(Rebalance!$D$62,$F$2:$G$48,2,FALSE)+ROW()-2))=Rebalance!$D$62,INDIRECT(\"a\" & (VLOOKUP(Rebalance!$D$62,$F$2:$G$48,2,FALSE)+ROW()-2)),\"\")","v":{"$error":"#N/A"}},{"$f":"IF(INDIRECT(\"c\" & (VLOOKUP(Rebalance!$D$63,$F$2:$G$48,2,FALSE)+ROW()-2))=Rebalance!$D$63,INDIRECT(\"a\" & (VLOOKUP(Rebalance!$D$63,$F$2:$G$48,2,FALSE)+ROW()-2)),\"\")","v":{"$error":"#N/A"}},{"$f":"IF(INDIRECT(\"c\" & (VLOOKUP(Rebalance!$D$64,$F$2:$G$48,2,FALSE)+ROW()-2))=Rebalance!$D$64,INDIRECT(\"a\" & (VLOOKUP(Rebalance!$D$64,$F$2:$G$48,2,FALSE)+ROW()-2)),\"\")","v":{"$error":"#N/A"}},{"$f":"IF(INDIRECT(\"c\" & (VLOOKUP(Rebalance!$D$65,$F$2:$G$48,2,FALSE)+ROW()-2))=Rebalance!$D$65,INDIRECT(\"a\" & (VLOOKUP(Rebalance!$D$65,$F$2:$G$48,2,FALSE)+ROW()-2)),\"\")","v":{"$error":"#N/A"}},{"$f":"IF(INDIRECT(\"c\" & (VLOOKUP(Rebalance!$D$66,$F$2:$G$48,2,FALSE)+ROW()-2))=Rebalance!$D$66,INDIRECT(\"a\" & (VLOOKUP(Rebalance!$D$66,$F$2:$G$48,2,FALSE)+ROW()-2)),\"\")","v":{"$error":"#N/A"}}]
["Allan Gray Stable Fund C","AGSC","Allan Gray Unit Trust Management Limited",{"$f":"ROW()","v":93},null,null,{"$f":"VLOOKUP(F93,$C$2:$D$599,2,FALSE)","v":{"$error":"#N/A"}},{"$f":"IF(INDIRECT(\"c\" & (VLOOKUP(Rebalance!$D$26,$F$2:$G$48,2,FALSE)+ROW()-2))=Rebalance!$D$26,INDIRECT(\"a\" & (VLOOKUP(Rebalance!$D$26,$F$2:$G$48,2,FALSE)+ROW()-2)),\"\")","v":{"$error":"#N/A"}},{"$f":"IF(INDIRECT(\"c\" & (VLOOKUP(Rebalance!$D$27,$F$2:$G$48,2,FALSE)+ROW()-2))=Rebalance!$D$27,INDIRECT(\"a\" & (VLOOKUP(Rebalance!$D$27,$F$2:$G$48,2,FALSE)+ROW()-2)),\"\")","v":{"$error":"#N/A"}},{"$f":"IF(INDIRECT(\"c\" & (VLOOKUP(Rebalance!$D$28,$F$2:$G$48,2,FALSE)+ROW()-2))=Rebalance!$D$28,INDIRECT(\"a\" & (VLOOKUP(Rebalance!$D$28,$F$2:$G$48,2,FALSE)+ROW()-2)),\"\")","v":{"$error":"#N/A"}},{"$f":"IF(INDIRECT(\"c\" & (VLOOKUP(Rebalance!$D$29,$F$2:$G$48,2,FALSE)+ROW()-2))=Rebalance!$D$29,INDIRECT(\"a\" & (VLOOKUP(Rebalance!$D$29,$F$2:$G$48,2,FALSE)+ROW()-2)),\"\")","v":{"$error":"#N/A"}},{"$f":"IF(INDIRECT(\"c\" & (VLOOKUP(Rebalance!$D$30,$F$2:$G$48,2,FALSE)+ROW()-2))=Rebalance!$D$30,INDIRECT(\"a\" & (VLOOKUP(Rebalance!$D$30,$F$2:$G$48,2,FALSE)+ROW()-2)),\"\")","v":{"$error":"#N/A"}},{"$f":"IF(INDIRECT(\"c\" & (VLOOKUP(Rebalance!$D$31,$F$2:$G$48,2,FALSE)+ROW()-2))=Rebalance!$D$31,INDIRECT(\"a\" & (VLOOKUP(Rebalance!$D$31,$F$2:$G$48,2,FALSE)+ROW()-2)),\"\")","v":{"$error":"#N/A"}},{"$f":"IF(INDIRECT(\"c\" & (VLOOKUP(Rebalance!$D$32,$F$2:$G$48,2,FALSE)+ROW()-2))=Rebalance!$D$32,INDIRECT(\"a\" & (VLOOKUP(Rebalance!$D$32,$F$2:$G$48,2,FALSE)+ROW()-2)),\"\")","v":{"$error":"#N/A"}},{"$f":"IF(INDIRECT(\"c\" & (VLOOKUP(Rebalance!$D$33,$F$2:$G$48,2,FALSE)+ROW()-2))=Rebalance!$D$33,INDIRECT(\"a\" & (VLOOKUP(Rebalance!$D$33,$F$2:$G$48,2,FALSE)+ROW()-2)),\"\")","v":{"$error":"#N/A"}},{"$f":"IF(INDIRECT(\"c\" & (VLOOKUP(Rebalance!$D$34,$F$2:$G$48,2,FALSE)+ROW()-2))=Rebalance!$D$34,INDIRECT(\"a\" & (VLOOKUP(Rebalance!$D$34,$F$2:$G$48,2,FALSE)+ROW()-2)),\"\")","v":{"$error":"#N/A"}},{"$f":"IF(INDIRECT(\"c\" & (VLOOKUP(Rebalance!$D$35,$F$2:$G$48,2,FALSE)+ROW()-2))=Rebalance!$D$35,INDIRECT(\"a\" & (VLOOKUP(Rebalance!$D$35,$F$2:$G$48,2,FALSE)+ROW()-2)),\"\")","v":{"$error":"#N/A"}},{"$f":"IF(INDIRECT(\"c\" & (VLOOKUP(Rebalance!$D$36,$F$2:$G$48,2,FALSE)+ROW()-2))=Rebalance!$D$36,INDIRECT(\"a\" & (VLOOKUP(Rebalance!$D$36,$F$2:$G$48,2,FALSE)+ROW()-2)),\"\")","v":{"$error":"#N/A"}},{"$f":"IF(INDIRECT(\"c\" & (VLOOKUP(Rebalance!$D$37,$F$2:$G$48,2,FALSE)+ROW()-2))=Rebalance!$D$37,INDIRECT(\"a\" & (VLOOKUP(Rebalance!$D$37,$F$2:$G$48,2,FALSE)+ROW()-2)),\"\")","v":{"$error":"#N/A"}},{"$f":"IF(INDIRECT(\"c\" & (VLOOKUP(Rebalance!$D$38,$F$2:$G$48,2,FALSE)+ROW()-2))=Rebalance!$D$38,INDIRECT(\"a\" & (VLOOKUP(Rebalance!$D$38,$F$2:$G$48,2,FALSE)+ROW()-2)),\"\")","v":{"$error":"#N/A"}},{"$f":"IF(INDIRECT(\"c\" & (VLOOKUP(Rebalance!$D$39,$F$2:$G$48,2,FALSE)+ROW()-2))=Rebalance!$D$39,INDIRECT(\"a\" & (VLOOKUP(Rebalance!$D$39,$F$2:$G$48,2,FALSE)+ROW()-2)),\"\")","v":{"$error":"#N/A"}},{"$f":"IF(INDIRECT(\"c\" & (VLOOKUP(Rebalance!$D$40,$F$2:$G$48,2,FALSE)+ROW()-2))=Rebalance!$D$40,INDIRECT(\"a\" & (VLOOKUP(Rebalance!$D$40,$F$2:$G$48,2,FALSE)+ROW()-2)),\"\")","v":{"$error":"#N/A"}},{"$f":"IF(INDIRECT(\"c\" & (VLOOKUP(Rebalance!$D$52,$F$2:$G$48,2,FALSE)+ROW()-2))=Rebalance!$D$52,INDIRECT(\"a\" & (VLOOKUP(Rebalance!$D$52,$F$2:$G$48,2,FALSE)+ROW()-2)),\"\")","v":{"$error":"#N/A"}},{"$f":"IF(INDIRECT(\"c\" & (VLOOKUP(Rebalance!$D$53,$F$2:$G$48,2,FALSE)+ROW()-2))=Rebalance!$D$53,INDIRECT(\"a\" & (VLOOKUP(Rebalance!$D$53,$F$2:$G$48,2,FALSE)+ROW()-2)),\"\")","v":{"$error":"#N/A"}},{"$f":"IF(INDIRECT(\"c\" & (VLOOKUP(Rebalance!$D$54,$F$2:$G$48,2,FALSE)+ROW()-2))=Rebalance!$D$54,INDIRECT(\"a\" & (VLOOKUP(Rebalance!$D$54,$F$2:$G$48,2,FALSE)+ROW()-2)),\"\")","v":{"$error":"#N/A"}},{"$f":"IF(INDIRECT(\"c\" & (VLOOKUP(Rebalance!$D$55,$F$2:$G$48,2,FALSE)+ROW()-2))=Rebalance!$D$55,INDIRECT(\"a\" & (VLOOKUP(Rebalance!$D$55,$F$2:$G$48,2,FALSE)+ROW()-2)),\"\")","v":{"$error":"#N/A"}},{"$f":"IF(INDIRECT(\"c\" & (VLOOKUP(Rebalance!$D$56,$F$2:$G$48,2,FALSE)+ROW()-2))=Rebalance!$D$56,INDIRECT(\"a\" & (VLOOKUP(Rebalance!$D$56,$F$2:$G$48,2,FALSE)+ROW()-2)),\"\")","v":{"$error":"#N/A"}},{"$f":"IF(INDIRECT(\"c\" & (VLOOKUP(Rebalance!$D$57,$F$2:$G$48,2,FALSE)+ROW()-2))=Rebalance!$D$57,INDIRECT(\"a\" & (VLOOKUP(Rebalance!$D$57,$F$2:$G$48,2,FALSE)+ROW()-2)),\"\")","v":{"$error":"#N/A"}},{"$f":"IF(INDIRECT(\"c\" & (VLOOKUP(Rebalance!$D$58,$F$2:$G$48,2,FALSE)+ROW()-2))=Rebalance!$D$58,INDIRECT(\"a\" & (VLOOKUP(Rebalance!$D$58,$F$2:$G$48,2,FALSE)+ROW()-2)),\"\")","v":{"$error":"#N/A"}},{"$f":"IF(INDIRECT(\"c\" & (VLOOKUP(Rebalance!$D$59,$F$2:$G$48,2,FALSE)+ROW()-2))=Rebalance!$D$59,INDIRECT(\"a\" & (VLOOKUP(Rebalance!$D$59,$F$2:$G$48,2,FALSE)+ROW()-2)),\"\")","v":{"$error":"#N/A"}},{"$f":"IF(INDIRECT(\"c\" & (VLOOKUP(Rebalance!$D$60,$F$2:$G$48,2,FALSE)+ROW()-2))=Rebalance!$D$60,INDIRECT(\"a\" & (VLOOKUP(Rebalance!$D$60,$F$2:$G$48,2,FALSE)+ROW()-2)),\"\")","v":{"$error":"#N/A"}},{"$f":"IF(INDIRECT(\"c\" & (VLOOKUP(Rebalance!$D$61,$F$2:$G$48,2,FALSE)+ROW()-2))=Rebalance!$D$61,INDIRECT(\"a\" & (VLOOKUP(Rebalance!$D$61,$F$2:$G$48,2,FALSE)+ROW()-2)),\"\")","v":{"$error":"#N/A"}},{"$f":"IF(INDIRECT(\"c\" & (VLOOKUP(Rebalance!$D$62,$F$2:$G$48,2,FALSE)+ROW()-2))=Rebalance!$D$62,INDIRECT(\"a\" & (VLOOKUP(Rebalance!$D$62,$F$2:$G$48,2,FALSE)+ROW()-2)),\"\")","v":{"$error":"#N/A"}},{"$f":"IF(INDIRECT(\"c\" & (VLOOKUP(Rebalance!$D$63,$F$2:$G$48,2,FALSE)+ROW()-2))=Rebalance!$D$63,INDIRECT(\"a\" & (VLOOKUP(Rebalance!$D$63,$F$2:$G$48,2,FALSE)+ROW()-2)),\"\")","v":{"$error":"#N/A"}},{"$f":"IF(INDIRECT(\"c\" & (VLOOKUP(Rebalance!$D$64,$F$2:$G$48,2,FALSE)+ROW()-2))=Rebalance!$D$64,INDIRECT(\"a\" & (VLOOKUP(Rebalance!$D$64,$F$2:$G$48,2,FALSE)+ROW()-2)),\"\")","v":{"$error":"#N/A"}},{"$f":"IF(INDIRECT(\"c\" & (VLOOKUP(Rebalance!$D$65,$F$2:$G$48,2,FALSE)+ROW()-2))=Rebalance!$D$65,INDIRECT(\"a\" & (VLOOKUP(Rebalance!$D$65,$F$2:$G$48,2,FALSE)+ROW()-2)),\"\")","v":{"$error":"#N/A"}},{"$f":"IF(INDIRECT(\"c\" & (VLOOKUP(Rebalance!$D$66,$F$2:$G$48,2,FALSE)+ROW()-2))=Rebalance!$D$66,INDIRECT(\"a\" & (VLOOKUP(Rebalance!$D$66,$F$2:$G$48,2,FALSE)+ROW()-2)),\"\")","v":{"$error":"#N/A"}}]
["Ashburton Diversified Income Fund A","ASIFA","Ashburton Management Company (RF) PTY LTD",{"$f":"ROW()","v":94},null,null,{"$f":"VLOOKUP(F94,$C$2:$D$599,2,FALSE)","v":{"$error":"#N/A"}},{"$f":"IF(INDIRECT(\"c\" & (VLOOKUP(Rebalance!$D$26,$F$2:$G$48,2,FALSE)+ROW()-2))=Rebalance!$D$26,INDIRECT(\"a\" & (VLOOKUP(Rebalance!$D$26,$F$2:$G$48,2,FALSE)+ROW()-2)),\"\")","v":{"$error":"#N/A"}},{"$f":"IF(INDIRECT(\"c\" & (VLOOKUP(Rebalance!$D$27,$F$2:$G$48,2,FALSE)+ROW()-2))=Rebalance!$D$27,INDIRECT(\"a\" & (VLOOKUP(Rebalance!$D$27,$F$2:$G$48,2,FALSE)+ROW()-2)),\"\")","v":{"$error":"#N/A"}},{"$f":"IF(INDIRECT(\"c\" & (VLOOKUP(Rebalance!$D$28,$F$2:$G$48,2,FALSE)+ROW()-2))=Rebalance!$D$28,INDIRECT(\"a\" & (VLOOKUP(Rebalance!$D$28,$F$2:$G$48,2,FALSE)+ROW()-2)),\"\")","v":{"$error":"#N/A"}},{"$f":"IF(INDIRECT(\"c\" & (VLOOKUP(Rebalance!$D$29,$F$2:$G$48,2,FALSE)+ROW()-2))=Rebalance!$D$29,INDIRECT(\"a\" & (VLOOKUP(Rebalance!$D$29,$F$2:$G$48,2,FALSE)+ROW()-2)),\"\")","v":{"$error":"#N/A"}},{"$f":"IF(INDIRECT(\"c\" & (VLOOKUP(Rebalance!$D$30,$F$2:$G$48,2,FALSE)+ROW()-2))=Rebalance!$D$30,INDIRECT(\"a\" & (VLOOKUP(Rebalance!$D$30,$F$2:$G$48,2,FALSE)+ROW()-2)),\"\")","v":{"$error":"#N/A"}},{"$f":"IF(INDIRECT(\"c\" & (VLOOKUP(Rebalance!$D$31,$F$2:$G$48,2,FALSE)+ROW()-2))=Rebalance!$D$31,INDIRECT(\"a\" & (VLOOKUP(Rebalance!$D$31,$F$2:$G$48,2,FALSE)+ROW()-2)),\"\")","v":{"$error":"#N/A"}},{"$f":"IF(INDIRECT(\"c\" & (VLOOKUP(Rebalance!$D$32,$F$2:$G$48,2,FALSE)+ROW()-2))=Rebalance!$D$32,INDIRECT(\"a\" & (VLOOKUP(Rebalance!$D$32,$F$2:$G$48,2,FALSE)+ROW()-2)),\"\")","v":{"$error":"#N/A"}},{"$f":"IF(INDIRECT(\"c\" & (VLOOKUP(Rebalance!$D$33,$F$2:$G$48,2,FALSE)+ROW()-2))=Rebalance!$D$33,INDIRECT(\"a\" & (VLOOKUP(Rebalance!$D$33,$F$2:$G$48,2,FALSE)+ROW()-2)),\"\")","v":{"$error":"#N/A"}},{"$f":"IF(INDIRECT(\"c\" & (VLOOKUP(Rebalance!$D$34,$F$2:$G$48,2,FALSE)+ROW()-2))=Rebalance!$D$34,INDIRECT(\"a\" & (VLOOKUP(Rebalance!$D$34,$F$2:$G$48,2,FALSE)+ROW()-2)),\"\")","v":{"$error":"#N/A"}},{"$f":"IF(INDIRECT(\"c\" & (VLOOKUP(Rebalance!$D$35,$F$2:$G$48,2,FALSE)+ROW()-2))=Rebalance!$D$35,INDIRECT(\"a\" & (VLOOKUP(Rebalance!$D$35,$F$2:$G$48,2,FALSE)+ROW()-2)),\"\")","v":{"$error":"#N/A"}},{"$f":"IF(INDIRECT(\"c\" & (VLOOKUP(Rebalance!$D$36,$F$2:$G$48,2,FALSE)+ROW()-2))=Rebalance!$D$36,INDIRECT(\"a\" & (VLOOKUP(Rebalance!$D$36,$F$2:$G$48,2,FALSE)+ROW()-2)),\"\")","v":{"$error":"#N/A"}},{"$f":"IF(INDIRECT(\"c\" & (VLOOKUP(Rebalance!$D$37,$F$2:$G$48,2,FALSE)+ROW()-2))=Rebalance!$D$37,INDIRECT(\"a\" & (VLOOKUP(Rebalance!$D$37,$F$2:$G$48,2,FALSE)+ROW()-2)),\"\")","v":{"$error":"#N/A"}},{"$f":"IF(INDIRECT(\"c\" & (VLOOKUP(Rebalance!$D$38,$F$2:$G$48,2,FALSE)+ROW()-2))=Rebalance!$D$38,INDIRECT(\"a\" & (VLOOKUP(Rebalance!$D$38,$F$2:$G$48,2,FALSE)+ROW()-2)),\"\")","v":{"$error":"#N/A"}},{"$f":"IF(INDIRECT(\"c\" & (VLOOKUP(Rebalance!$D$39,$F$2:$G$48,2,FALSE)+ROW()-2))=Rebalance!$D$39,INDIRECT(\"a\" & (VLOOKUP(Rebalance!$D$39,$F$2:$G$48,2,FALSE)+ROW()-2)),\"\")","v":{"$error":"#N/A"}},{"$f":"IF(INDIRECT(\"c\" & (VLOOKUP(Rebalance!$D$40,$F$2:$G$48,2,FALSE)+ROW()-2))=Rebalance!$D$40,INDIRECT(\"a\" & (VLOOKUP(Rebalance!$D$40,$F$2:$G$48,2,FALSE)+ROW()-2)),\"\")","v":{"$error":"#N/A"}},{"$f":"IF(INDIRECT(\"c\" & (VLOOKUP(Rebalance!$D$52,$F$2:$G$48,2,FALSE)+ROW()-2))=Rebalance!$D$52,INDIRECT(\"a\" & (VLOOKUP(Rebalance!$D$52,$F$2:$G$48,2,FALSE)+ROW()-2)),\"\")","v":{"$error":"#N/A"}},{"$f":"IF(INDIRECT(\"c\" & (VLOOKUP(Rebalance!$D$53,$F$2:$G$48,2,FALSE)+ROW()-2))=Rebalance!$D$53,INDIRECT(\"a\" & (VLOOKUP(Rebalance!$D$53,$F$2:$G$48,2,FALSE)+ROW()-2)),\"\")","v":{"$error":"#N/A"}},{"$f":"IF(INDIRECT(\"c\" & (VLOOKUP(Rebalance!$D$54,$F$2:$G$48,2,FALSE)+ROW()-2))=Rebalance!$D$54,INDIRECT(\"a\" & (VLOOKUP(Rebalance!$D$54,$F$2:$G$48,2,FALSE)+ROW()-2)),\"\")","v":{"$error":"#N/A"}},{"$f":"IF(INDIRECT(\"c\" & (VLOOKUP(Rebalance!$D$55,$F$2:$G$48,2,FALSE)+ROW()-2))=Rebalance!$D$55,INDIRECT(\"a\" & (VLOOKUP(Rebalance!$D$55,$F$2:$G$48,2,FALSE)+ROW()-2)),\"\")","v":{"$error":"#N/A"}},{"$f":"IF(INDIRECT(\"c\" & (VLOOKUP(Rebalance!$D$56,$F$2:$G$48,2,FALSE)+ROW()-2))=Rebalance!$D$56,INDIRECT(\"a\" & (VLOOKUP(Rebalance!$D$56,$F$2:$G$48,2,FALSE)+ROW()-2)),\"\")","v":{"$error":"#N/A"}},{"$f":"IF(INDIRECT(\"c\" & (VLOOKUP(Rebalance!$D$57,$F$2:$G$48,2,FALSE)+ROW()-2))=Rebalance!$D$57,INDIRECT(\"a\" & (VLOOKUP(Rebalance!$D$57,$F$2:$G$48,2,FALSE)+ROW()-2)),\"\")","v":{"$error":"#N/A"}},{"$f":"IF(INDIRECT(\"c\" & (VLOOKUP(Rebalance!$D$58,$F$2:$G$48,2,FALSE)+ROW()-2))=Rebalance!$D$58,INDIRECT(\"a\" & (VLOOKUP(Rebalance!$D$58,$F$2:$G$48,2,FALSE)+ROW()-2)),\"\")","v":{"$error":"#N/A"}},{"$f":"IF(INDIRECT(\"c\" & (VLOOKUP(Rebalance!$D$59,$F$2:$G$48,2,FALSE)+ROW()-2))=Rebalance!$D$59,INDIRECT(\"a\" & (VLOOKUP(Rebalance!$D$59,$F$2:$G$48,2,FALSE)+ROW()-2)),\"\")","v":{"$error":"#N/A"}},{"$f":"IF(INDIRECT(\"c\" & (VLOOKUP(Rebalance!$D$60,$F$2:$G$48,2,FALSE)+ROW()-2))=Rebalance!$D$60,INDIRECT(\"a\" & (VLOOKUP(Rebalance!$D$60,$F$2:$G$48,2,FALSE)+ROW()-2)),\"\")","v":{"$error":"#N/A"}},{"$f":"IF(INDIRECT(\"c\" & (VLOOKUP(Rebalance!$D$61,$F$2:$G$48,2,FALSE)+ROW()-2))=Rebalance!$D$61,INDIRECT(\"a\" & (VLOOKUP(Rebalance!$D$61,$F$2:$G$48,2,FALSE)+ROW()-2)),\"\")","v":{"$error":"#N/A"}},{"$f":"IF(INDIRECT(\"c\" & (VLOOKUP(Rebalance!$D$62,$F$2:$G$48,2,FALSE)+ROW()-2))=Rebalance!$D$62,INDIRECT(\"a\" & (VLOOKUP(Rebalance!$D$62,$F$2:$G$48,2,FALSE)+ROW()-2)),\"\")","v":{"$error":"#N/A"}},{"$f":"IF(INDIRECT(\"c\" & (VLOOKUP(Rebalance!$D$63,$F$2:$G$48,2,FALSE)+ROW()-2))=Rebalance!$D$63,INDIRECT(\"a\" & (VLOOKUP(Rebalance!$D$63,$F$2:$G$48,2,FALSE)+ROW()-2)),\"\")","v":{"$error":"#N/A"}},{"$f":"IF(INDIRECT(\"c\" & (VLOOKUP(Rebalance!$D$64,$F$2:$G$48,2,FALSE)+ROW()-2))=Rebalance!$D$64,INDIRECT(\"a\" & (VLOOKUP(Rebalance!$D$64,$F$2:$G$48,2,FALSE)+ROW()-2)),\"\")","v":{"$error":"#N/A"}},{"$f":"IF(INDIRECT(\"c\" & (VLOOKUP(Rebalance!$D$65,$F$2:$G$48,2,FALSE)+ROW()-2))=Rebalance!$D$65,INDIRECT(\"a\" & (VLOOKUP(Rebalance!$D$65,$F$2:$G$48,2,FALSE)+ROW()-2)),\"\")","v":{"$error":"#N/A"}},{"$f":"IF(INDIRECT(\"c\" & (VLOOKUP(Rebalance!$D$66,$F$2:$G$48,2,FALSE)+ROW()-2))=Rebalance!$D$66,INDIRECT(\"a\" & (VLOOKUP(Rebalance!$D$66,$F$2:$G$48,2,FALSE)+ROW()-2)),\"\")","v":{"$error":"#N/A"}}]
["Ashburton Stable Income Fund L","ASILC","Ashburton Management Company (RF) PTY LTD",{"$f":"ROW()","v":95},null,null,{"$f":"VLOOKUP(F95,$C$2:$D$599,2,FALSE)","v":{"$error":"#N/A"}},{"$f":"IF(INDIRECT(\"c\" & (VLOOKUP(Rebalance!$D$26,$F$2:$G$48,2,FALSE)+ROW()-2))=Rebalance!$D$26,INDIRECT(\"a\" & (VLOOKUP(Rebalance!$D$26,$F$2:$G$48,2,FALSE)+ROW()-2)),\"\")","v":{"$error":"#N/A"}},{"$f":"IF(INDIRECT(\"c\" & (VLOOKUP(Rebalance!$D$27,$F$2:$G$48,2,FALSE)+ROW()-2))=Rebalance!$D$27,INDIRECT(\"a\" & (VLOOKUP(Rebalance!$D$27,$F$2:$G$48,2,FALSE)+ROW()-2)),\"\")","v":{"$error":"#N/A"}},{"$f":"IF(INDIRECT(\"c\" & (VLOOKUP(Rebalance!$D$28,$F$2:$G$48,2,FALSE)+ROW()-2))=Rebalance!$D$28,INDIRECT(\"a\" & (VLOOKUP(Rebalance!$D$28,$F$2:$G$48,2,FALSE)+ROW()-2)),\"\")","v":{"$error":"#N/A"}},{"$f":"IF(INDIRECT(\"c\" & (VLOOKUP(Rebalance!$D$29,$F$2:$G$48,2,FALSE)+ROW()-2))=Rebalance!$D$29,INDIRECT(\"a\" & (VLOOKUP(Rebalance!$D$29,$F$2:$G$48,2,FALSE)+ROW()-2)),\"\")","v":{"$error":"#N/A"}},{"$f":"IF(INDIRECT(\"c\" & (VLOOKUP(Rebalance!$D$30,$F$2:$G$48,2,FALSE)+ROW()-2))=Rebalance!$D$30,INDIRECT(\"a\" & (VLOOKUP(Rebalance!$D$30,$F$2:$G$48,2,FALSE)+ROW()-2)),\"\")","v":{"$error":"#N/A"}},{"$f":"IF(INDIRECT(\"c\" & (VLOOKUP(Rebalance!$D$31,$F$2:$G$48,2,FALSE)+ROW()-2))=Rebalance!$D$31,INDIRECT(\"a\" & (VLOOKUP(Rebalance!$D$31,$F$2:$G$48,2,FALSE)+ROW()-2)),\"\")","v":{"$error":"#N/A"}},{"$f":"IF(INDIRECT(\"c\" & (VLOOKUP(Rebalance!$D$32,$F$2:$G$48,2,FALSE)+ROW()-2))=Rebalance!$D$32,INDIRECT(\"a\" & (VLOOKUP(Rebalance!$D$32,$F$2:$G$48,2,FALSE)+ROW()-2)),\"\")","v":{"$error":"#N/A"}},{"$f":"IF(INDIRECT(\"c\" & (VLOOKUP(Rebalance!$D$33,$F$2:$G$48,2,FALSE)+ROW()-2))=Rebalance!$D$33,INDIRECT(\"a\" & (VLOOKUP(Rebalance!$D$33,$F$2:$G$48,2,FALSE)+ROW()-2)),\"\")","v":{"$error":"#N/A"}},{"$f":"IF(INDIRECT(\"c\" & (VLOOKUP(Rebalance!$D$34,$F$2:$G$48,2,FALSE)+ROW()-2))=Rebalance!$D$34,INDIRECT(\"a\" & (VLOOKUP(Rebalance!$D$34,$F$2:$G$48,2,FALSE)+ROW()-2)),\"\")","v":{"$error":"#N/A"}},{"$f":"IF(INDIRECT(\"c\" & (VLOOKUP(Rebalance!$D$35,$F$2:$G$48,2,FALSE)+ROW()-2))=Rebalance!$D$35,INDIRECT(\"a\" & (VLOOKUP(Rebalance!$D$35,$F$2:$G$48,2,FALSE)+ROW()-2)),\"\")","v":{"$error":"#N/A"}},{"$f":"IF(INDIRECT(\"c\" & (VLOOKUP(Rebalance!$D$36,$F$2:$G$48,2,FALSE)+ROW()-2))=Rebalance!$D$36,INDIRECT(\"a\" & (VLOOKUP(Rebalance!$D$36,$F$2:$G$48,2,FALSE)+ROW()-2)),\"\")","v":{"$error":"#N/A"}},{"$f":"IF(INDIRECT(\"c\" & (VLOOKUP(Rebalance!$D$37,$F$2:$G$48,2,FALSE)+ROW()-2))=Rebalance!$D$37,INDIRECT(\"a\" & (VLOOKUP(Rebalance!$D$37,$F$2:$G$48,2,FALSE)+ROW()-2)),\"\")","v":{"$error":"#N/A"}},{"$f":"IF(INDIRECT(\"c\" & (VLOOKUP(Rebalance!$D$38,$F$2:$G$48,2,FALSE)+ROW()-2))=Rebalance!$D$38,INDIRECT(\"a\" & (VLOOKUP(Rebalance!$D$38,$F$2:$G$48,2,FALSE)+ROW()-2)),\"\")","v":{"$error":"#N/A"}},{"$f":"IF(INDIRECT(\"c\" & (VLOOKUP(Rebalance!$D$39,$F$2:$G$48,2,FALSE)+ROW()-2))=Rebalance!$D$39,INDIRECT(\"a\" & (VLOOKUP(Rebalance!$D$39,$F$2:$G$48,2,FALSE)+ROW()-2)),\"\")","v":{"$error":"#N/A"}},{"$f":"IF(INDIRECT(\"c\" & (VLOOKUP(Rebalance!$D$40,$F$2:$G$48,2,FALSE)+ROW()-2))=Rebalance!$D$40,INDIRECT(\"a\" & (VLOOKUP(Rebalance!$D$40,$F$2:$G$48,2,FALSE)+ROW()-2)),\"\")","v":{"$error":"#N/A"}},{"$f":"IF(INDIRECT(\"c\" & (VLOOKUP(Rebalance!$D$52,$F$2:$G$48,2,FALSE)+ROW()-2))=Rebalance!$D$52,INDIRECT(\"a\" & (VLOOKUP(Rebalance!$D$52,$F$2:$G$48,2,FALSE)+ROW()-2)),\"\")","v":{"$error":"#N/A"}},{"$f":"IF(INDIRECT(\"c\" & (VLOOKUP(Rebalance!$D$53,$F$2:$G$48,2,FALSE)+ROW()-2))=Rebalance!$D$53,INDIRECT(\"a\" & (VLOOKUP(Rebalance!$D$53,$F$2:$G$48,2,FALSE)+ROW()-2)),\"\")","v":{"$error":"#N/A"}},{"$f":"IF(INDIRECT(\"c\" & (VLOOKUP(Rebalance!$D$54,$F$2:$G$48,2,FALSE)+ROW()-2))=Rebalance!$D$54,INDIRECT(\"a\" & (VLOOKUP(Rebalance!$D$54,$F$2:$G$48,2,FALSE)+ROW()-2)),\"\")","v":{"$error":"#N/A"}},{"$f":"IF(INDIRECT(\"c\" & (VLOOKUP(Rebalance!$D$55,$F$2:$G$48,2,FALSE)+ROW()-2))=Rebalance!$D$55,INDIRECT(\"a\" & (VLOOKUP(Rebalance!$D$55,$F$2:$G$48,2,FALSE)+ROW()-2)),\"\")","v":{"$error":"#N/A"}},{"$f":"IF(INDIRECT(\"c\" & (VLOOKUP(Rebalance!$D$56,$F$2:$G$48,2,FALSE)+ROW()-2))=Rebalance!$D$56,INDIRECT(\"a\" & (VLOOKUP(Rebalance!$D$56,$F$2:$G$48,2,FALSE)+ROW()-2)),\"\")","v":{"$error":"#N/A"}},{"$f":"IF(INDIRECT(\"c\" & (VLOOKUP(Rebalance!$D$57,$F$2:$G$48,2,FALSE)+ROW()-2))=Rebalance!$D$57,INDIRECT(\"a\" & (VLOOKUP(Rebalance!$D$57,$F$2:$G$48,2,FALSE)+ROW()-2)),\"\")","v":{"$error":"#N/A"}},{"$f":"IF(INDIRECT(\"c\" & (VLOOKUP(Rebalance!$D$58,$F$2:$G$48,2,FALSE)+ROW()-2))=Rebalance!$D$58,INDIRECT(\"a\" & (VLOOKUP(Rebalance!$D$58,$F$2:$G$48,2,FALSE)+ROW()-2)),\"\")","v":{"$error":"#N/A"}},{"$f":"IF(INDIRECT(\"c\" & (VLOOKUP(Rebalance!$D$59,$F$2:$G$48,2,FALSE)+ROW()-2))=Rebalance!$D$59,INDIRECT(\"a\" & (VLOOKUP(Rebalance!$D$59,$F$2:$G$48,2,FALSE)+ROW()-2)),\"\")","v":{"$error":"#N/A"}},{"$f":"IF(INDIRECT(\"c\" & (VLOOKUP(Rebalance!$D$60,$F$2:$G$48,2,FALSE)+ROW()-2))=Rebalance!$D$60,INDIRECT(\"a\" & (VLOOKUP(Rebalance!$D$60,$F$2:$G$48,2,FALSE)+ROW()-2)),\"\")","v":{"$error":"#N/A"}},{"$f":"IF(INDIRECT(\"c\" & (VLOOKUP(Rebalance!$D$61,$F$2:$G$48,2,FALSE)+ROW()-2))=Rebalance!$D$61,INDIRECT(\"a\" & (VLOOKUP(Rebalance!$D$61,$F$2:$G$48,2,FALSE)+ROW()-2)),\"\")","v":{"$error":"#N/A"}},{"$f":"IF(INDIRECT(\"c\" & (VLOOKUP(Rebalance!$D$62,$F$2:$G$48,2,FALSE)+ROW()-2))=Rebalance!$D$62,INDIRECT(\"a\" & (VLOOKUP(Rebalance!$D$62,$F$2:$G$48,2,FALSE)+ROW()-2)),\"\")","v":{"$error":"#N/A"}},{"$f":"IF(INDIRECT(\"c\" & (VLOOKUP(Rebalance!$D$63,$F$2:$G$48,2,FALSE)+ROW()-2))=Rebalance!$D$63,INDIRECT(\"a\" & (VLOOKUP(Rebalance!$D$63,$F$2:$G$48,2,FALSE)+ROW()-2)),\"\")","v":{"$error":"#N/A"}},{"$f":"IF(INDIRECT(\"c\" & (VLOOKUP(Rebalance!$D$64,$F$2:$G$48,2,FALSE)+ROW()-2))=Rebalance!$D$64,INDIRECT(\"a\" & (VLOOKUP(Rebalance!$D$64,$F$2:$G$48,2,FALSE)+ROW()-2)),\"\")","v":{"$error":"#N/A"}},{"$f":"IF(INDIRECT(\"c\" & (VLOOKUP(Rebalance!$D$65,$F$2:$G$48,2,FALSE)+ROW()-2))=Rebalance!$D$65,INDIRECT(\"a\" & (VLOOKUP(Rebalance!$D$65,$F$2:$G$48,2,FALSE)+ROW()-2)),\"\")","v":{"$error":"#N/A"}},{"$f":"IF(INDIRECT(\"c\" & (VLOOKUP(Rebalance!$D$66,$F$2:$G$48,2,FALSE)+ROW()-2))=Rebalance!$D$66,INDIRECT(\"a\" & (VLOOKUP(Rebalance!$D$66,$F$2:$G$48,2,FALSE)+ROW()-2)),\"\")","v":{"$error":"#N/A"}}]
["36One BCI Flexible Opportunity Fund C","TSFCC","Boutique Collective Investments (Pty) Ltd",{"$f":"ROW()","v":96},null,null,{"$f":"VLOOKUP(F96,$C$2:$D$599,2,FALSE)","v":{"$error":"#N/A"}},{"$f":"IF(INDIRECT(\"c\" & (VLOOKUP(Rebalance!$D$26,$F$2:$G$48,2,FALSE)+ROW()-2))=Rebalance!$D$26,INDIRECT(\"a\" & (VLOOKUP(Rebalance!$D$26,$F$2:$G$48,2,FALSE)+ROW()-2)),\"\")","v":{"$error":"#N/A"}},{"$f":"IF(INDIRECT(\"c\" & (VLOOKUP(Rebalance!$D$27,$F$2:$G$48,2,FALSE)+ROW()-2))=Rebalance!$D$27,INDIRECT(\"a\" & (VLOOKUP(Rebalance!$D$27,$F$2:$G$48,2,FALSE)+ROW()-2)),\"\")","v":{"$error":"#N/A"}},{"$f":"IF(INDIRECT(\"c\" & (VLOOKUP(Rebalance!$D$28,$F$2:$G$48,2,FALSE)+ROW()-2))=Rebalance!$D$28,INDIRECT(\"a\" & (VLOOKUP(Rebalance!$D$28,$F$2:$G$48,2,FALSE)+ROW()-2)),\"\")","v":{"$error":"#N/A"}},{"$f":"IF(INDIRECT(\"c\" & (VLOOKUP(Rebalance!$D$29,$F$2:$G$48,2,FALSE)+ROW()-2))=Rebalance!$D$29,INDIRECT(\"a\" & (VLOOKUP(Rebalance!$D$29,$F$2:$G$48,2,FALSE)+ROW()-2)),\"\")","v":{"$error":"#N/A"}},{"$f":"IF(INDIRECT(\"c\" & (VLOOKUP(Rebalance!$D$30,$F$2:$G$48,2,FALSE)+ROW()-2))=Rebalance!$D$30,INDIRECT(\"a\" & (VLOOKUP(Rebalance!$D$30,$F$2:$G$48,2,FALSE)+ROW()-2)),\"\")","v":{"$error":"#N/A"}},{"$f":"IF(INDIRECT(\"c\" & (VLOOKUP(Rebalance!$D$31,$F$2:$G$48,2,FALSE)+ROW()-2))=Rebalance!$D$31,INDIRECT(\"a\" & (VLOOKUP(Rebalance!$D$31,$F$2:$G$48,2,FALSE)+ROW()-2)),\"\")","v":{"$error":"#N/A"}},{"$f":"IF(INDIRECT(\"c\" & (VLOOKUP(Rebalance!$D$32,$F$2:$G$48,2,FALSE)+ROW()-2))=Rebalance!$D$32,INDIRECT(\"a\" & (VLOOKUP(Rebalance!$D$32,$F$2:$G$48,2,FALSE)+ROW()-2)),\"\")","v":{"$error":"#N/A"}},{"$f":"IF(INDIRECT(\"c\" & (VLOOKUP(Rebalance!$D$33,$F$2:$G$48,2,FALSE)+ROW()-2))=Rebalance!$D$33,INDIRECT(\"a\" & (VLOOKUP(Rebalance!$D$33,$F$2:$G$48,2,FALSE)+ROW()-2)),\"\")","v":{"$error":"#N/A"}},{"$f":"IF(INDIRECT(\"c\" & (VLOOKUP(Rebalance!$D$34,$F$2:$G$48,2,FALSE)+ROW()-2))=Rebalance!$D$34,INDIRECT(\"a\" & (VLOOKUP(Rebalance!$D$34,$F$2:$G$48,2,FALSE)+ROW()-2)),\"\")","v":{"$error":"#N/A"}},{"$f":"IF(INDIRECT(\"c\" & (VLOOKUP(Rebalance!$D$35,$F$2:$G$48,2,FALSE)+ROW()-2))=Rebalance!$D$35,INDIRECT(\"a\" & (VLOOKUP(Rebalance!$D$35,$F$2:$G$48,2,FALSE)+ROW()-2)),\"\")","v":{"$error":"#N/A"}},{"$f":"IF(INDIRECT(\"c\" & (VLOOKUP(Rebalance!$D$36,$F$2:$G$48,2,FALSE)+ROW()-2))=Rebalance!$D$36,INDIRECT(\"a\" & (VLOOKUP(Rebalance!$D$36,$F$2:$G$48,2,FALSE)+ROW()-2)),\"\")","v":{"$error":"#N/A"}},{"$f":"IF(INDIRECT(\"c\" & (VLOOKUP(Rebalance!$D$37,$F$2:$G$48,2,FALSE)+ROW()-2))=Rebalance!$D$37,INDIRECT(\"a\" & (VLOOKUP(Rebalance!$D$37,$F$2:$G$48,2,FALSE)+ROW()-2)),\"\")","v":{"$error":"#N/A"}},{"$f":"IF(INDIRECT(\"c\" & (VLOOKUP(Rebalance!$D$38,$F$2:$G$48,2,FALSE)+ROW()-2))=Rebalance!$D$38,INDIRECT(\"a\" & (VLOOKUP(Rebalance!$D$38,$F$2:$G$48,2,FALSE)+ROW()-2)),\"\")","v":{"$error":"#N/A"}},{"$f":"IF(INDIRECT(\"c\" & (VLOOKUP(Rebalance!$D$39,$F$2:$G$48,2,FALSE)+ROW()-2))=Rebalance!$D$39,INDIRECT(\"a\" & (VLOOKUP(Rebalance!$D$39,$F$2:$G$48,2,FALSE)+ROW()-2)),\"\")","v":{"$error":"#N/A"}},{"$f":"IF(INDIRECT(\"c\" & (VLOOKUP(Rebalance!$D$40,$F$2:$G$48,2,FALSE)+ROW()-2))=Rebalance!$D$40,INDIRECT(\"a\" & (VLOOKUP(Rebalance!$D$40,$F$2:$G$48,2,FALSE)+ROW()-2)),\"\")","v":{"$error":"#N/A"}},{"$f":"IF(INDIRECT(\"c\" & (VLOOKUP(Rebalance!$D$52,$F$2:$G$48,2,FALSE)+ROW()-2))=Rebalance!$D$52,INDIRECT(\"a\" & (VLOOKUP(Rebalance!$D$52,$F$2:$G$48,2,FALSE)+ROW()-2)),\"\")","v":{"$error":"#N/A"}},{"$f":"IF(INDIRECT(\"c\" & (VLOOKUP(Rebalance!$D$53,$F$2:$G$48,2,FALSE)+ROW()-2))=Rebalance!$D$53,INDIRECT(\"a\" & (VLOOKUP(Rebalance!$D$53,$F$2:$G$48,2,FALSE)+ROW()-2)),\"\")","v":{"$error":"#N/A"}},{"$f":"IF(INDIRECT(\"c\" & (VLOOKUP(Rebalance!$D$54,$F$2:$G$48,2,FALSE)+ROW()-2))=Rebalance!$D$54,INDIRECT(\"a\" & (VLOOKUP(Rebalance!$D$54,$F$2:$G$48,2,FALSE)+ROW()-2)),\"\")","v":{"$error":"#N/A"}},{"$f":"IF(INDIRECT(\"c\" & (VLOOKUP(Rebalance!$D$55,$F$2:$G$48,2,FALSE)+ROW()-2))=Rebalance!$D$55,INDIRECT(\"a\" & (VLOOKUP(Rebalance!$D$55,$F$2:$G$48,2,FALSE)+ROW()-2)),\"\")","v":{"$error":"#N/A"}},{"$f":"IF(INDIRECT(\"c\" & (VLOOKUP(Rebalance!$D$56,$F$2:$G$48,2,FALSE)+ROW()-2))=Rebalance!$D$56,INDIRECT(\"a\" & (VLOOKUP(Rebalance!$D$56,$F$2:$G$48,2,FALSE)+ROW()-2)),\"\")","v":{"$error":"#N/A"}},{"$f":"IF(INDIRECT(\"c\" & (VLOOKUP(Rebalance!$D$57,$F$2:$G$48,2,FALSE)+ROW()-2))=Rebalance!$D$57,INDIRECT(\"a\" & (VLOOKUP(Rebalance!$D$57,$F$2:$G$48,2,FALSE)+ROW()-2)),\"\")","v":{"$error":"#N/A"}},{"$f":"IF(INDIRECT(\"c\" & (VLOOKUP(Rebalance!$D$58,$F$2:$G$48,2,FALSE)+ROW()-2))=Rebalance!$D$58,INDIRECT(\"a\" & (VLOOKUP(Rebalance!$D$58,$F$2:$G$48,2,FALSE)+ROW()-2)),\"\")","v":{"$error":"#N/A"}},{"$f":"IF(INDIRECT(\"c\" & (VLOOKUP(Rebalance!$D$59,$F$2:$G$48,2,FALSE)+ROW()-2))=Rebalance!$D$59,INDIRECT(\"a\" & (VLOOKUP(Rebalance!$D$59,$F$2:$G$48,2,FALSE)+ROW()-2)),\"\")","v":{"$error":"#N/A"}},{"$f":"IF(INDIRECT(\"c\" & (VLOOKUP(Rebalance!$D$60,$F$2:$G$48,2,FALSE)+ROW()-2))=Rebalance!$D$60,INDIRECT(\"a\" & (VLOOKUP(Rebalance!$D$60,$F$2:$G$48,2,FALSE)+ROW()-2)),\"\")","v":{"$error":"#N/A"}},{"$f":"IF(INDIRECT(\"c\" & (VLOOKUP(Rebalance!$D$61,$F$2:$G$48,2,FALSE)+ROW()-2))=Rebalance!$D$61,INDIRECT(\"a\" & (VLOOKUP(Rebalance!$D$61,$F$2:$G$48,2,FALSE)+ROW()-2)),\"\")","v":{"$error":"#N/A"}},{"$f":"IF(INDIRECT(\"c\" & (VLOOKUP(Rebalance!$D$62,$F$2:$G$48,2,FALSE)+ROW()-2))=Rebalance!$D$62,INDIRECT(\"a\" & (VLOOKUP(Rebalance!$D$62,$F$2:$G$48,2,FALSE)+ROW()-2)),\"\")","v":{"$error":"#N/A"}},{"$f":"IF(INDIRECT(\"c\" & (VLOOKUP(Rebalance!$D$63,$F$2:$G$48,2,FALSE)+ROW()-2))=Rebalance!$D$63,INDIRECT(\"a\" & (VLOOKUP(Rebalance!$D$63,$F$2:$G$48,2,FALSE)+ROW()-2)),\"\")","v":{"$error":"#N/A"}},{"$f":"IF(INDIRECT(\"c\" & (VLOOKUP(Rebalance!$D$64,$F$2:$G$48,2,FALSE)+ROW()-2))=Rebalance!$D$64,INDIRECT(\"a\" & (VLOOKUP(Rebalance!$D$64,$F$2:$G$48,2,FALSE)+ROW()-2)),\"\")","v":{"$error":"#N/A"}},{"$f":"IF(INDIRECT(\"c\" & (VLOOKUP(Rebalance!$D$65,$F$2:$G$48,2,FALSE)+ROW()-2))=Rebalance!$D$65,INDIRECT(\"a\" & (VLOOKUP(Rebalance!$D$65,$F$2:$G$48,2,FALSE)+ROW()-2)),\"\")","v":{"$error":"#N/A"}},{"$f":"IF(INDIRECT(\"c\" & (VLOOKUP(Rebalance!$D$66,$F$2:$G$48,2,FALSE)+ROW()-2))=Rebalance!$D$66,INDIRECT(\"a\" & (VLOOKUP(Rebalance!$D$66,$F$2:$G$48,2,FALSE)+ROW()-2)),\"\")","v":{"$error":"#N/A"}}]
["Amity BCI Flexible Growth FoF A","MAFG","Boutique Collective Investments (Pty) Ltd",{"$f":"ROW()","v":97},null,null,{"$f":"VLOOKUP(F97,$C$2:$D$599,2,FALSE)","v":{"$error":"#N/A"}},{"$f":"IF(INDIRECT(\"c\" & (VLOOKUP(Rebalance!$D$26,$F$2:$G$48,2,FALSE)+ROW()-2))=Rebalance!$D$26,INDIRECT(\"a\" & (VLOOKUP(Rebalance!$D$26,$F$2:$G$48,2,FALSE)+ROW()-2)),\"\")","v":{"$error":"#N/A"}},{"$f":"IF(INDIRECT(\"c\" & (VLOOKUP(Rebalance!$D$27,$F$2:$G$48,2,FALSE)+ROW()-2))=Rebalance!$D$27,INDIRECT(\"a\" & (VLOOKUP(Rebalance!$D$27,$F$2:$G$48,2,FALSE)+ROW()-2)),\"\")","v":{"$error":"#N/A"}},{"$f":"IF(INDIRECT(\"c\" & (VLOOKUP(Rebalance!$D$28,$F$2:$G$48,2,FALSE)+ROW()-2))=Rebalance!$D$28,INDIRECT(\"a\" & (VLOOKUP(Rebalance!$D$28,$F$2:$G$48,2,FALSE)+ROW()-2)),\"\")","v":{"$error":"#N/A"}},{"$f":"IF(INDIRECT(\"c\" & (VLOOKUP(Rebalance!$D$29,$F$2:$G$48,2,FALSE)+ROW()-2))=Rebalance!$D$29,INDIRECT(\"a\" & (VLOOKUP(Rebalance!$D$29,$F$2:$G$48,2,FALSE)+ROW()-2)),\"\")","v":{"$error":"#N/A"}},{"$f":"IF(INDIRECT(\"c\" & (VLOOKUP(Rebalance!$D$30,$F$2:$G$48,2,FALSE)+ROW()-2))=Rebalance!$D$30,INDIRECT(\"a\" & (VLOOKUP(Rebalance!$D$30,$F$2:$G$48,2,FALSE)+ROW()-2)),\"\")","v":{"$error":"#N/A"}},{"$f":"IF(INDIRECT(\"c\" & (VLOOKUP(Rebalance!$D$31,$F$2:$G$48,2,FALSE)+ROW()-2))=Rebalance!$D$31,INDIRECT(\"a\" & (VLOOKUP(Rebalance!$D$31,$F$2:$G$48,2,FALSE)+ROW()-2)),\"\")","v":{"$error":"#N/A"}},{"$f":"IF(INDIRECT(\"c\" & (VLOOKUP(Rebalance!$D$32,$F$2:$G$48,2,FALSE)+ROW()-2))=Rebalance!$D$32,INDIRECT(\"a\" & (VLOOKUP(Rebalance!$D$32,$F$2:$G$48,2,FALSE)+ROW()-2)),\"\")","v":{"$error":"#N/A"}},{"$f":"IF(INDIRECT(\"c\" & (VLOOKUP(Rebalance!$D$33,$F$2:$G$48,2,FALSE)+ROW()-2))=Rebalance!$D$33,INDIRECT(\"a\" & (VLOOKUP(Rebalance!$D$33,$F$2:$G$48,2,FALSE)+ROW()-2)),\"\")","v":{"$error":"#N/A"}},{"$f":"IF(INDIRECT(\"c\" & (VLOOKUP(Rebalance!$D$34,$F$2:$G$48,2,FALSE)+ROW()-2))=Rebalance!$D$34,INDIRECT(\"a\" & (VLOOKUP(Rebalance!$D$34,$F$2:$G$48,2,FALSE)+ROW()-2)),\"\")","v":{"$error":"#N/A"}},{"$f":"IF(INDIRECT(\"c\" & (VLOOKUP(Rebalance!$D$35,$F$2:$G$48,2,FALSE)+ROW()-2))=Rebalance!$D$35,INDIRECT(\"a\" & (VLOOKUP(Rebalance!$D$35,$F$2:$G$48,2,FALSE)+ROW()-2)),\"\")","v":{"$error":"#N/A"}},{"$f":"IF(INDIRECT(\"c\" & (VLOOKUP(Rebalance!$D$36,$F$2:$G$48,2,FALSE)+ROW()-2))=Rebalance!$D$36,INDIRECT(\"a\" & (VLOOKUP(Rebalance!$D$36,$F$2:$G$48,2,FALSE)+ROW()-2)),\"\")","v":{"$error":"#N/A"}},{"$f":"IF(INDIRECT(\"c\" & (VLOOKUP(Rebalance!$D$37,$F$2:$G$48,2,FALSE)+ROW()-2))=Rebalance!$D$37,INDIRECT(\"a\" & (VLOOKUP(Rebalance!$D$37,$F$2:$G$48,2,FALSE)+ROW()-2)),\"\")","v":{"$error":"#N/A"}},{"$f":"IF(INDIRECT(\"c\" & (VLOOKUP(Rebalance!$D$38,$F$2:$G$48,2,FALSE)+ROW()-2))=Rebalance!$D$38,INDIRECT(\"a\" & (VLOOKUP(Rebalance!$D$38,$F$2:$G$48,2,FALSE)+ROW()-2)),\"\")","v":{"$error":"#N/A"}},{"$f":"IF(INDIRECT(\"c\" & (VLOOKUP(Rebalance!$D$39,$F$2:$G$48,2,FALSE)+ROW()-2))=Rebalance!$D$39,INDIRECT(\"a\" & (VLOOKUP(Rebalance!$D$39,$F$2:$G$48,2,FALSE)+ROW()-2)),\"\")","v":{"$error":"#N/A"}},{"$f":"IF(INDIRECT(\"c\" & (VLOOKUP(Rebalance!$D$40,$F$2:$G$48,2,FALSE)+ROW()-2))=Rebalance!$D$40,INDIRECT(\"a\" & (VLOOKUP(Rebalance!$D$40,$F$2:$G$48,2,FALSE)+ROW()-2)),\"\")","v":{"$error":"#N/A"}},{"$f":"IF(INDIRECT(\"c\" & (VLOOKUP(Rebalance!$D$52,$F$2:$G$48,2,FALSE)+ROW()-2))=Rebalance!$D$52,INDIRECT(\"a\" & (VLOOKUP(Rebalance!$D$52,$F$2:$G$48,2,FALSE)+ROW()-2)),\"\")","v":{"$error":"#N/A"}},{"$f":"IF(INDIRECT(\"c\" & (VLOOKUP(Rebalance!$D$53,$F$2:$G$48,2,FALSE)+ROW()-2))=Rebalance!$D$53,INDIRECT(\"a\" & (VLOOKUP(Rebalance!$D$53,$F$2:$G$48,2,FALSE)+ROW()-2)),\"\")","v":{"$error":"#N/A"}},{"$f":"IF(INDIRECT(\"c\" & (VLOOKUP(Rebalance!$D$54,$F$2:$G$48,2,FALSE)+ROW()-2))=Rebalance!$D$54,INDIRECT(\"a\" & (VLOOKUP(Rebalance!$D$54,$F$2:$G$48,2,FALSE)+ROW()-2)),\"\")","v":{"$error":"#N/A"}},{"$f":"IF(INDIRECT(\"c\" & (VLOOKUP(Rebalance!$D$55,$F$2:$G$48,2,FALSE)+ROW()-2))=Rebalance!$D$55,INDIRECT(\"a\" & (VLOOKUP(Rebalance!$D$55,$F$2:$G$48,2,FALSE)+ROW()-2)),\"\")","v":{"$error":"#N/A"}},{"$f":"IF(INDIRECT(\"c\" & (VLOOKUP(Rebalance!$D$56,$F$2:$G$48,2,FALSE)+ROW()-2))=Rebalance!$D$56,INDIRECT(\"a\" & (VLOOKUP(Rebalance!$D$56,$F$2:$G$48,2,FALSE)+ROW()-2)),\"\")","v":{"$error":"#N/A"}},{"$f":"IF(INDIRECT(\"c\" & (VLOOKUP(Rebalance!$D$57,$F$2:$G$48,2,FALSE)+ROW()-2))=Rebalance!$D$57,INDIRECT(\"a\" & (VLOOKUP(Rebalance!$D$57,$F$2:$G$48,2,FALSE)+ROW()-2)),\"\")","v":{"$error":"#N/A"}},{"$f":"IF(INDIRECT(\"c\" & (VLOOKUP(Rebalance!$D$58,$F$2:$G$48,2,FALSE)+ROW()-2))=Rebalance!$D$58,INDIRECT(\"a\" & (VLOOKUP(Rebalance!$D$58,$F$2:$G$48,2,FALSE)+ROW()-2)),\"\")","v":{"$error":"#N/A"}},{"$f":"IF(INDIRECT(\"c\" & (VLOOKUP(Rebalance!$D$59,$F$2:$G$48,2,FALSE)+ROW()-2))=Rebalance!$D$59,INDIRECT(\"a\" & (VLOOKUP(Rebalance!$D$59,$F$2:$G$48,2,FALSE)+ROW()-2)),\"\")","v":{"$error":"#N/A"}},{"$f":"IF(INDIRECT(\"c\" & (VLOOKUP(Rebalance!$D$60,$F$2:$G$48,2,FALSE)+ROW()-2))=Rebalance!$D$60,INDIRECT(\"a\" & (VLOOKUP(Rebalance!$D$60,$F$2:$G$48,2,FALSE)+ROW()-2)),\"\")","v":{"$error":"#N/A"}},{"$f":"IF(INDIRECT(\"c\" & (VLOOKUP(Rebalance!$D$61,$F$2:$G$48,2,FALSE)+ROW()-2))=Rebalance!$D$61,INDIRECT(\"a\" & (VLOOKUP(Rebalance!$D$61,$F$2:$G$48,2,FALSE)+ROW()-2)),\"\")","v":{"$error":"#N/A"}},{"$f":"IF(INDIRECT(\"c\" & (VLOOKUP(Rebalance!$D$62,$F$2:$G$48,2,FALSE)+ROW()-2))=Rebalance!$D$62,INDIRECT(\"a\" & (VLOOKUP(Rebalance!$D$62,$F$2:$G$48,2,FALSE)+ROW()-2)),\"\")","v":{"$error":"#N/A"}},{"$f":"IF(INDIRECT(\"c\" & (VLOOKUP(Rebalance!$D$63,$F$2:$G$48,2,FALSE)+ROW()-2))=Rebalance!$D$63,INDIRECT(\"a\" & (VLOOKUP(Rebalance!$D$63,$F$2:$G$48,2,FALSE)+ROW()-2)),\"\")","v":{"$error":"#N/A"}},{"$f":"IF(INDIRECT(\"c\" & (VLOOKUP(Rebalance!$D$64,$F$2:$G$48,2,FALSE)+ROW()-2))=Rebalance!$D$64,INDIRECT(\"a\" & (VLOOKUP(Rebalance!$D$64,$F$2:$G$48,2,FALSE)+ROW()-2)),\"\")","v":{"$error":"#N/A"}},{"$f":"IF(INDIRECT(\"c\" & (VLOOKUP(Rebalance!$D$65,$F$2:$G$48,2,FALSE)+ROW()-2))=Rebalance!$D$65,INDIRECT(\"a\" & (VLOOKUP(Rebalance!$D$65,$F$2:$G$48,2,FALSE)+ROW()-2)),\"\")","v":{"$error":"#N/A"}},{"$f":"IF(INDIRECT(\"c\" & (VLOOKUP(Rebalance!$D$66,$F$2:$G$48,2,FALSE)+ROW()-2))=Rebalance!$D$66,INDIRECT(\"a\" & (VLOOKUP(Rebalance!$D$66,$F$2:$G$48,2,FALSE)+ROW()-2)),\"\")","v":{"$error":"#N/A"}}]
["Amity BCI Global Diversified Fund of Funds A","AGDFA","Boutique Collective Investments (Pty) Ltd",{"$f":"ROW()","v":98},null,null,{"$f":"VLOOKUP(F98,$C$2:$D$599,2,FALSE)","v":{"$error":"#N/A"}},{"$f":"IF(INDIRECT(\"c\" & (VLOOKUP(Rebalance!$D$26,$F$2:$G$48,2,FALSE)+ROW()-2))=Rebalance!$D$26,INDIRECT(\"a\" & (VLOOKUP(Rebalance!$D$26,$F$2:$G$48,2,FALSE)+ROW()-2)),\"\")","v":{"$error":"#N/A"}},{"$f":"IF(INDIRECT(\"c\" & (VLOOKUP(Rebalance!$D$27,$F$2:$G$48,2,FALSE)+ROW()-2))=Rebalance!$D$27,INDIRECT(\"a\" & (VLOOKUP(Rebalance!$D$27,$F$2:$G$48,2,FALSE)+ROW()-2)),\"\")","v":{"$error":"#N/A"}},{"$f":"IF(INDIRECT(\"c\" & (VLOOKUP(Rebalance!$D$28,$F$2:$G$48,2,FALSE)+ROW()-2))=Rebalance!$D$28,INDIRECT(\"a\" & (VLOOKUP(Rebalance!$D$28,$F$2:$G$48,2,FALSE)+ROW()-2)),\"\")","v":{"$error":"#N/A"}},{"$f":"IF(INDIRECT(\"c\" & (VLOOKUP(Rebalance!$D$29,$F$2:$G$48,2,FALSE)+ROW()-2))=Rebalance!$D$29,INDIRECT(\"a\" & (VLOOKUP(Rebalance!$D$29,$F$2:$G$48,2,FALSE)+ROW()-2)),\"\")","v":{"$error":"#N/A"}},{"$f":"IF(INDIRECT(\"c\" & (VLOOKUP(Rebalance!$D$30,$F$2:$G$48,2,FALSE)+ROW()-2))=Rebalance!$D$30,INDIRECT(\"a\" & (VLOOKUP(Rebalance!$D$30,$F$2:$G$48,2,FALSE)+ROW()-2)),\"\")","v":{"$error":"#N/A"}},{"$f":"IF(INDIRECT(\"c\" & (VLOOKUP(Rebalance!$D$31,$F$2:$G$48,2,FALSE)+ROW()-2))=Rebalance!$D$31,INDIRECT(\"a\" & (VLOOKUP(Rebalance!$D$31,$F$2:$G$48,2,FALSE)+ROW()-2)),\"\")","v":{"$error":"#N/A"}},{"$f":"IF(INDIRECT(\"c\" & (VLOOKUP(Rebalance!$D$32,$F$2:$G$48,2,FALSE)+ROW()-2))=Rebalance!$D$32,INDIRECT(\"a\" & (VLOOKUP(Rebalance!$D$32,$F$2:$G$48,2,FALSE)+ROW()-2)),\"\")","v":{"$error":"#N/A"}},{"$f":"IF(INDIRECT(\"c\" & (VLOOKUP(Rebalance!$D$33,$F$2:$G$48,2,FALSE)+ROW()-2))=Rebalance!$D$33,INDIRECT(\"a\" & (VLOOKUP(Rebalance!$D$33,$F$2:$G$48,2,FALSE)+ROW()-2)),\"\")","v":{"$error":"#N/A"}},{"$f":"IF(INDIRECT(\"c\" & (VLOOKUP(Rebalance!$D$34,$F$2:$G$48,2,FALSE)+ROW()-2))=Rebalance!$D$34,INDIRECT(\"a\" & (VLOOKUP(Rebalance!$D$34,$F$2:$G$48,2,FALSE)+ROW()-2)),\"\")","v":{"$error":"#N/A"}},{"$f":"IF(INDIRECT(\"c\" & (VLOOKUP(Rebalance!$D$35,$F$2:$G$48,2,FALSE)+ROW()-2))=Rebalance!$D$35,INDIRECT(\"a\" & (VLOOKUP(Rebalance!$D$35,$F$2:$G$48,2,FALSE)+ROW()-2)),\"\")","v":{"$error":"#N/A"}},{"$f":"IF(INDIRECT(\"c\" & (VLOOKUP(Rebalance!$D$36,$F$2:$G$48,2,FALSE)+ROW()-2))=Rebalance!$D$36,INDIRECT(\"a\" & (VLOOKUP(Rebalance!$D$36,$F$2:$G$48,2,FALSE)+ROW()-2)),\"\")","v":{"$error":"#N/A"}},{"$f":"IF(INDIRECT(\"c\" & (VLOOKUP(Rebalance!$D$37,$F$2:$G$48,2,FALSE)+ROW()-2))=Rebalance!$D$37,INDIRECT(\"a\" & (VLOOKUP(Rebalance!$D$37,$F$2:$G$48,2,FALSE)+ROW()-2)),\"\")","v":{"$error":"#N/A"}},{"$f":"IF(INDIRECT(\"c\" & (VLOOKUP(Rebalance!$D$38,$F$2:$G$48,2,FALSE)+ROW()-2))=Rebalance!$D$38,INDIRECT(\"a\" & (VLOOKUP(Rebalance!$D$38,$F$2:$G$48,2,FALSE)+ROW()-2)),\"\")","v":{"$error":"#N/A"}},{"$f":"IF(INDIRECT(\"c\" & (VLOOKUP(Rebalance!$D$39,$F$2:$G$48,2,FALSE)+ROW()-2))=Rebalance!$D$39,INDIRECT(\"a\" & (VLOOKUP(Rebalance!$D$39,$F$2:$G$48,2,FALSE)+ROW()-2)),\"\")","v":{"$error":"#N/A"}},{"$f":"IF(INDIRECT(\"c\" & (VLOOKUP(Rebalance!$D$40,$F$2:$G$48,2,FALSE)+ROW()-2))=Rebalance!$D$40,INDIRECT(\"a\" & (VLOOKUP(Rebalance!$D$40,$F$2:$G$48,2,FALSE)+ROW()-2)),\"\")","v":{"$error":"#N/A"}},{"$f":"IF(INDIRECT(\"c\" & (VLOOKUP(Rebalance!$D$52,$F$2:$G$48,2,FALSE)+ROW()-2))=Rebalance!$D$52,INDIRECT(\"a\" & (VLOOKUP(Rebalance!$D$52,$F$2:$G$48,2,FALSE)+ROW()-2)),\"\")","v":{"$error":"#N/A"}},{"$f":"IF(INDIRECT(\"c\" & (VLOOKUP(Rebalance!$D$53,$F$2:$G$48,2,FALSE)+ROW()-2))=Rebalance!$D$53,INDIRECT(\"a\" & (VLOOKUP(Rebalance!$D$53,$F$2:$G$48,2,FALSE)+ROW()-2)),\"\")","v":{"$error":"#N/A"}},{"$f":"IF(INDIRECT(\"c\" & (VLOOKUP(Rebalance!$D$54,$F$2:$G$48,2,FALSE)+ROW()-2))=Rebalance!$D$54,INDIRECT(\"a\" & (VLOOKUP(Rebalance!$D$54,$F$2:$G$48,2,FALSE)+ROW()-2)),\"\")","v":{"$error":"#N/A"}},{"$f":"IF(INDIRECT(\"c\" & (VLOOKUP(Rebalance!$D$55,$F$2:$G$48,2,FALSE)+ROW()-2))=Rebalance!$D$55,INDIRECT(\"a\" & (VLOOKUP(Rebalance!$D$55,$F$2:$G$48,2,FALSE)+ROW()-2)),\"\")","v":{"$error":"#N/A"}},{"$f":"IF(INDIRECT(\"c\" & (VLOOKUP(Rebalance!$D$56,$F$2:$G$48,2,FALSE)+ROW()-2))=Rebalance!$D$56,INDIRECT(\"a\" & (VLOOKUP(Rebalance!$D$56,$F$2:$G$48,2,FALSE)+ROW()-2)),\"\")","v":{"$error":"#N/A"}},{"$f":"IF(INDIRECT(\"c\" & (VLOOKUP(Rebalance!$D$57,$F$2:$G$48,2,FALSE)+ROW()-2))=Rebalance!$D$57,INDIRECT(\"a\" & (VLOOKUP(Rebalance!$D$57,$F$2:$G$48,2,FALSE)+ROW()-2)),\"\")","v":{"$error":"#N/A"}},{"$f":"IF(INDIRECT(\"c\" & (VLOOKUP(Rebalance!$D$58,$F$2:$G$48,2,FALSE)+ROW()-2))=Rebalance!$D$58,INDIRECT(\"a\" & (VLOOKUP(Rebalance!$D$58,$F$2:$G$48,2,FALSE)+ROW()-2)),\"\")","v":{"$error":"#N/A"}},{"$f":"IF(INDIRECT(\"c\" & (VLOOKUP(Rebalance!$D$59,$F$2:$G$48,2,FALSE)+ROW()-2))=Rebalance!$D$59,INDIRECT(\"a\" & (VLOOKUP(Rebalance!$D$59,$F$2:$G$48,2,FALSE)+ROW()-2)),\"\")","v":{"$error":"#N/A"}},{"$f":"IF(INDIRECT(\"c\" & (VLOOKUP(Rebalance!$D$60,$F$2:$G$48,2,FALSE)+ROW()-2))=Rebalance!$D$60,INDIRECT(\"a\" & (VLOOKUP(Rebalance!$D$60,$F$2:$G$48,2,FALSE)+ROW()-2)),\"\")","v":{"$error":"#N/A"}},{"$f":"IF(INDIRECT(\"c\" & (VLOOKUP(Rebalance!$D$61,$F$2:$G$48,2,FALSE)+ROW()-2))=Rebalance!$D$61,INDIRECT(\"a\" & (VLOOKUP(Rebalance!$D$61,$F$2:$G$48,2,FALSE)+ROW()-2)),\"\")","v":{"$error":"#N/A"}},{"$f":"IF(INDIRECT(\"c\" & (VLOOKUP(Rebalance!$D$62,$F$2:$G$48,2,FALSE)+ROW()-2))=Rebalance!$D$62,INDIRECT(\"a\" & (VLOOKUP(Rebalance!$D$62,$F$2:$G$48,2,FALSE)+ROW()-2)),\"\")","v":{"$error":"#N/A"}},{"$f":"IF(INDIRECT(\"c\" & (VLOOKUP(Rebalance!$D$63,$F$2:$G$48,2,FALSE)+ROW()-2))=Rebalance!$D$63,INDIRECT(\"a\" & (VLOOKUP(Rebalance!$D$63,$F$2:$G$48,2,FALSE)+ROW()-2)),\"\")","v":{"$error":"#N/A"}},{"$f":"IF(INDIRECT(\"c\" & (VLOOKUP(Rebalance!$D$64,$F$2:$G$48,2,FALSE)+ROW()-2))=Rebalance!$D$64,INDIRECT(\"a\" & (VLOOKUP(Rebalance!$D$64,$F$2:$G$48,2,FALSE)+ROW()-2)),\"\")","v":{"$error":"#N/A"}},{"$f":"IF(INDIRECT(\"c\" & (VLOOKUP(Rebalance!$D$65,$F$2:$G$48,2,FALSE)+ROW()-2))=Rebalance!$D$65,INDIRECT(\"a\" & (VLOOKUP(Rebalance!$D$65,$F$2:$G$48,2,FALSE)+ROW()-2)),\"\")","v":{"$error":"#N/A"}},{"$f":"IF(INDIRECT(\"c\" & (VLOOKUP(Rebalance!$D$66,$F$2:$G$48,2,FALSE)+ROW()-2))=Rebalance!$D$66,INDIRECT(\"a\" & (VLOOKUP(Rebalance!$D$66,$F$2:$G$48,2,FALSE)+ROW()-2)),\"\")","v":{"$error":"#N/A"}}]
["Amity BCI Prudent FoF A","MAPF","Boutique Collective Investments (Pty) Ltd",{"$f":"ROW()","v":99},null,null,{"$f":"VLOOKUP(F99,$C$2:$D$599,2,FALSE)","v":{"$error":"#N/A"}},{"$f":"IF(INDIRECT(\"c\" & (VLOOKUP(Rebalance!$D$26,$F$2:$G$48,2,FALSE)+ROW()-2))=Rebalance!$D$26,INDIRECT(\"a\" & (VLOOKUP(Rebalance!$D$26,$F$2:$G$48,2,FALSE)+ROW()-2)),\"\")","v":{"$error":"#N/A"}},{"$f":"IF(INDIRECT(\"c\" & (VLOOKUP(Rebalance!$D$27,$F$2:$G$48,2,FALSE)+ROW()-2))=Rebalance!$D$27,INDIRECT(\"a\" & (VLOOKUP(Rebalance!$D$27,$F$2:$G$48,2,FALSE)+ROW()-2)),\"\")","v":{"$error":"#N/A"}},{"$f":"IF(INDIRECT(\"c\" & (VLOOKUP(Rebalance!$D$28,$F$2:$G$48,2,FALSE)+ROW()-2))=Rebalance!$D$28,INDIRECT(\"a\" & (VLOOKUP(Rebalance!$D$28,$F$2:$G$48,2,FALSE)+ROW()-2)),\"\")","v":{"$error":"#N/A"}},{"$f":"IF(INDIRECT(\"c\" & (VLOOKUP(Rebalance!$D$29,$F$2:$G$48,2,FALSE)+ROW()-2))=Rebalance!$D$29,INDIRECT(\"a\" & (VLOOKUP(Rebalance!$D$29,$F$2:$G$48,2,FALSE)+ROW()-2)),\"\")","v":{"$error":"#N/A"}},{"$f":"IF(INDIRECT(\"c\" & (VLOOKUP(Rebalance!$D$30,$F$2:$G$48,2,FALSE)+ROW()-2))=Rebalance!$D$30,INDIRECT(\"a\" & (VLOOKUP(Rebalance!$D$30,$F$2:$G$48,2,FALSE)+ROW()-2)),\"\")","v":{"$error":"#N/A"}},{"$f":"IF(INDIRECT(\"c\" & (VLOOKUP(Rebalance!$D$31,$F$2:$G$48,2,FALSE)+ROW()-2))=Rebalance!$D$31,INDIRECT(\"a\" & (VLOOKUP(Rebalance!$D$31,$F$2:$G$48,2,FALSE)+ROW()-2)),\"\")","v":{"$error":"#N/A"}},{"$f":"IF(INDIRECT(\"c\" & (VLOOKUP(Rebalance!$D$32,$F$2:$G$48,2,FALSE)+ROW()-2))=Rebalance!$D$32,INDIRECT(\"a\" & (VLOOKUP(Rebalance!$D$32,$F$2:$G$48,2,FALSE)+ROW()-2)),\"\")","v":{"$error":"#N/A"}},{"$f":"IF(INDIRECT(\"c\" & (VLOOKUP(Rebalance!$D$33,$F$2:$G$48,2,FALSE)+ROW()-2))=Rebalance!$D$33,INDIRECT(\"a\" & (VLOOKUP(Rebalance!$D$33,$F$2:$G$48,2,FALSE)+ROW()-2)),\"\")","v":{"$error":"#N/A"}},{"$f":"IF(INDIRECT(\"c\" & (VLOOKUP(Rebalance!$D$34,$F$2:$G$48,2,FALSE)+ROW()-2))=Rebalance!$D$34,INDIRECT(\"a\" & (VLOOKUP(Rebalance!$D$34,$F$2:$G$48,2,FALSE)+ROW()-2)),\"\")","v":{"$error":"#N/A"}},{"$f":"IF(INDIRECT(\"c\" & (VLOOKUP(Rebalance!$D$35,$F$2:$G$48,2,FALSE)+ROW()-2))=Rebalance!$D$35,INDIRECT(\"a\" & (VLOOKUP(Rebalance!$D$35,$F$2:$G$48,2,FALSE)+ROW()-2)),\"\")","v":{"$error":"#N/A"}},{"$f":"IF(INDIRECT(\"c\" & (VLOOKUP(Rebalance!$D$36,$F$2:$G$48,2,FALSE)+ROW()-2))=Rebalance!$D$36,INDIRECT(\"a\" & (VLOOKUP(Rebalance!$D$36,$F$2:$G$48,2,FALSE)+ROW()-2)),\"\")","v":{"$error":"#N/A"}},{"$f":"IF(INDIRECT(\"c\" & (VLOOKUP(Rebalance!$D$37,$F$2:$G$48,2,FALSE)+ROW()-2))=Rebalance!$D$37,INDIRECT(\"a\" & (VLOOKUP(Rebalance!$D$37,$F$2:$G$48,2,FALSE)+ROW()-2)),\"\")","v":{"$error":"#N/A"}},{"$f":"IF(INDIRECT(\"c\" & (VLOOKUP(Rebalance!$D$38,$F$2:$G$48,2,FALSE)+ROW()-2))=Rebalance!$D$38,INDIRECT(\"a\" & (VLOOKUP(Rebalance!$D$38,$F$2:$G$48,2,FALSE)+ROW()-2)),\"\")","v":{"$error":"#N/A"}},{"$f":"IF(INDIRECT(\"c\" & (VLOOKUP(Rebalance!$D$39,$F$2:$G$48,2,FALSE)+ROW()-2))=Rebalance!$D$39,INDIRECT(\"a\" & (VLOOKUP(Rebalance!$D$39,$F$2:$G$48,2,FALSE)+ROW()-2)),\"\")","v":{"$error":"#N/A"}},{"$f":"IF(INDIRECT(\"c\" & (VLOOKUP(Rebalance!$D$40,$F$2:$G$48,2,FALSE)+ROW()-2))=Rebalance!$D$40,INDIRECT(\"a\" & (VLOOKUP(Rebalance!$D$40,$F$2:$G$48,2,FALSE)+ROW()-2)),\"\")","v":{"$error":"#N/A"}},{"$f":"IF(INDIRECT(\"c\" & (VLOOKUP(Rebalance!$D$52,$F$2:$G$48,2,FALSE)+ROW()-2))=Rebalance!$D$52,INDIRECT(\"a\" & (VLOOKUP(Rebalance!$D$52,$F$2:$G$48,2,FALSE)+ROW()-2)),\"\")","v":{"$error":"#N/A"}},{"$f":"IF(INDIRECT(\"c\" & (VLOOKUP(Rebalance!$D$53,$F$2:$G$48,2,FALSE)+ROW()-2))=Rebalance!$D$53,INDIRECT(\"a\" & (VLOOKUP(Rebalance!$D$53,$F$2:$G$48,2,FALSE)+ROW()-2)),\"\")","v":{"$error":"#N/A"}},{"$f":"IF(INDIRECT(\"c\" & (VLOOKUP(Rebalance!$D$54,$F$2:$G$48,2,FALSE)+ROW()-2))=Rebalance!$D$54,INDIRECT(\"a\" & (VLOOKUP(Rebalance!$D$54,$F$2:$G$48,2,FALSE)+ROW()-2)),\"\")","v":{"$error":"#N/A"}},{"$f":"IF(INDIRECT(\"c\" & (VLOOKUP(Rebalance!$D$55,$F$2:$G$48,2,FALSE)+ROW()-2))=Rebalance!$D$55,INDIRECT(\"a\" & (VLOOKUP(Rebalance!$D$55,$F$2:$G$48,2,FALSE)+ROW()-2)),\"\")","v":{"$error":"#N/A"}},{"$f":"IF(INDIRECT(\"c\" & (VLOOKUP(Rebalance!$D$56,$F$2:$G$48,2,FALSE)+ROW()-2))=Rebalance!$D$56,INDIRECT(\"a\" & (VLOOKUP(Rebalance!$D$56,$F$2:$G$48,2,FALSE)+ROW()-2)),\"\")","v":{"$error":"#N/A"}},{"$f":"IF(INDIRECT(\"c\" & (VLOOKUP(Rebalance!$D$57,$F$2:$G$48,2,FALSE)+ROW()-2))=Rebalance!$D$57,INDIRECT(\"a\" & (VLOOKUP(Rebalance!$D$57,$F$2:$G$48,2,FALSE)+ROW()-2)),\"\")","v":{"$error":"#N/A"}},{"$f":"IF(INDIRECT(\"c\" & (VLOOKUP(Rebalance!$D$58,$F$2:$G$48,2,FALSE)+ROW()-2))=Rebalance!$D$58,INDIRECT(\"a\" & (VLOOKUP(Rebalance!$D$58,$F$2:$G$48,2,FALSE)+ROW()-2)),\"\")","v":{"$error":"#N/A"}},{"$f":"IF(INDIRECT(\"c\" & (VLOOKUP(Rebalance!$D$59,$F$2:$G$48,2,FALSE)+ROW()-2))=Rebalance!$D$59,INDIRECT(\"a\" & (VLOOKUP(Rebalance!$D$59,$F$2:$G$48,2,FALSE)+ROW()-2)),\"\")","v":{"$error":"#N/A"}},{"$f":"IF(INDIRECT(\"c\" & (VLOOKUP(Rebalance!$D$60,$F$2:$G$48,2,FALSE)+ROW()-2))=Rebalance!$D$60,INDIRECT(\"a\" & (VLOOKUP(Rebalance!$D$60,$F$2:$G$48,2,FALSE)+ROW()-2)),\"\")","v":{"$error":"#N/A"}},{"$f":"IF(INDIRECT(\"c\" & (VLOOKUP(Rebalance!$D$61,$F$2:$G$48,2,FALSE)+ROW()-2))=Rebalance!$D$61,INDIRECT(\"a\" & (VLOOKUP(Rebalance!$D$61,$F$2:$G$48,2,FALSE)+ROW()-2)),\"\")","v":{"$error":"#N/A"}},{"$f":"IF(INDIRECT(\"c\" & (VLOOKUP(Rebalance!$D$62,$F$2:$G$48,2,FALSE)+ROW()-2))=Rebalance!$D$62,INDIRECT(\"a\" & (VLOOKUP(Rebalance!$D$62,$F$2:$G$48,2,FALSE)+ROW()-2)),\"\")","v":{"$error":"#N/A"}},{"$f":"IF(INDIRECT(\"c\" & (VLOOKUP(Rebalance!$D$63,$F$2:$G$48,2,FALSE)+ROW()-2))=Rebalance!$D$63,INDIRECT(\"a\" & (VLOOKUP(Rebalance!$D$63,$F$2:$G$48,2,FALSE)+ROW()-2)),\"\")","v":{"$error":"#N/A"}},{"$f":"IF(INDIRECT(\"c\" & (VLOOKUP(Rebalance!$D$64,$F$2:$G$48,2,FALSE)+ROW()-2))=Rebalance!$D$64,INDIRECT(\"a\" & (VLOOKUP(Rebalance!$D$64,$F$2:$G$48,2,FALSE)+ROW()-2)),\"\")","v":{"$error":"#N/A"}},{"$f":"IF(INDIRECT(\"c\" & (VLOOKUP(Rebalance!$D$65,$F$2:$G$48,2,FALSE)+ROW()-2))=Rebalance!$D$65,INDIRECT(\"a\" & (VLOOKUP(Rebalance!$D$65,$F$2:$G$48,2,FALSE)+ROW()-2)),\"\")","v":{"$error":"#N/A"}},{"$f":"IF(INDIRECT(\"c\" & (VLOOKUP(Rebalance!$D$66,$F$2:$G$48,2,FALSE)+ROW()-2))=Rebalance!$D$66,INDIRECT(\"a\" & (VLOOKUP(Rebalance!$D$66,$F$2:$G$48,2,FALSE)+ROW()-2)),\"\")","v":{"$error":"#N/A"}}]
["Amity BCI Managed Select A","ABMSA","Boutique Collective Investments (Pty) Ltd",{"$f":"ROW()","v":100},null,null,{"$f":"VLOOKUP(F100,$C$2:$D$599,2,FALSE)","v":{"$error":"#N/A"}},{"$f":"IF(INDIRECT(\"c\" & (VLOOKUP(Rebalance!$D$26,$F$2:$G$48,2,FALSE)+ROW()-2))=Rebalance!$D$26,INDIRECT(\"a\" & (VLOOKUP(Rebalance!$D$26,$F$2:$G$48,2,FALSE)+ROW()-2)),\"\")","v":{"$error":"#N/A"}},{"$f":"IF(INDIRECT(\"c\" & (VLOOKUP(Rebalance!$D$27,$F$2:$G$48,2,FALSE)+ROW()-2))=Rebalance!$D$27,INDIRECT(\"a\" & (VLOOKUP(Rebalance!$D$27,$F$2:$G$48,2,FALSE)+ROW()-2)),\"\")","v":{"$error":"#N/A"}},{"$f":"IF(INDIRECT(\"c\" & (VLOOKUP(Rebalance!$D$28,$F$2:$G$48,2,FALSE)+ROW()-2))=Rebalance!$D$28,INDIRECT(\"a\" & (VLOOKUP(Rebalance!$D$28,$F$2:$G$48,2,FALSE)+ROW()-2)),\"\")","v":{"$error":"#N/A"}},{"$f":"IF(INDIRECT(\"c\" & (VLOOKUP(Rebalance!$D$29,$F$2:$G$48,2,FALSE)+ROW()-2))=Rebalance!$D$29,INDIRECT(\"a\" & (VLOOKUP(Rebalance!$D$29,$F$2:$G$48,2,FALSE)+ROW()-2)),\"\")","v":{"$error":"#N/A"}},{"$f":"IF(INDIRECT(\"c\" & (VLOOKUP(Rebalance!$D$30,$F$2:$G$48,2,FALSE)+ROW()-2))=Rebalance!$D$30,INDIRECT(\"a\" & (VLOOKUP(Rebalance!$D$30,$F$2:$G$48,2,FALSE)+ROW()-2)),\"\")","v":{"$error":"#N/A"}},{"$f":"IF(INDIRECT(\"c\" & (VLOOKUP(Rebalance!$D$31,$F$2:$G$48,2,FALSE)+ROW()-2))=Rebalance!$D$31,INDIRECT(\"a\" & (VLOOKUP(Rebalance!$D$31,$F$2:$G$48,2,FALSE)+ROW()-2)),\"\")","v":{"$error":"#N/A"}},{"$f":"IF(INDIRECT(\"c\" & (VLOOKUP(Rebalance!$D$32,$F$2:$G$48,2,FALSE)+ROW()-2))=Rebalance!$D$32,INDIRECT(\"a\" & (VLOOKUP(Rebalance!$D$32,$F$2:$G$48,2,FALSE)+ROW()-2)),\"\")","v":{"$error":"#N/A"}},{"$f":"IF(INDIRECT(\"c\" & (VLOOKUP(Rebalance!$D$33,$F$2:$G$48,2,FALSE)+ROW()-2))=Rebalance!$D$33,INDIRECT(\"a\" & (VLOOKUP(Rebalance!$D$33,$F$2:$G$48,2,FALSE)+ROW()-2)),\"\")","v":{"$error":"#N/A"}},{"$f":"IF(INDIRECT(\"c\" & (VLOOKUP(Rebalance!$D$34,$F$2:$G$48,2,FALSE)+ROW()-2))=Rebalance!$D$34,INDIRECT(\"a\" & (VLOOKUP(Rebalance!$D$34,$F$2:$G$48,2,FALSE)+ROW()-2)),\"\")","v":{"$error":"#N/A"}},{"$f":"IF(INDIRECT(\"c\" & (VLOOKUP(Rebalance!$D$35,$F$2:$G$48,2,FALSE)+ROW()-2))=Rebalance!$D$35,INDIRECT(\"a\" & (VLOOKUP(Rebalance!$D$35,$F$2:$G$48,2,FALSE)+ROW()-2)),\"\")","v":{"$error":"#N/A"}},{"$f":"IF(INDIRECT(\"c\" & (VLOOKUP(Rebalance!$D$36,$F$2:$G$48,2,FALSE)+ROW()-2))=Rebalance!$D$36,INDIRECT(\"a\" & (VLOOKUP(Rebalance!$D$36,$F$2:$G$48,2,FALSE)+ROW()-2)),\"\")","v":{"$error":"#N/A"}},{"$f":"IF(INDIRECT(\"c\" & (VLOOKUP(Rebalance!$D$37,$F$2:$G$48,2,FALSE)+ROW()-2))=Rebalance!$D$37,INDIRECT(\"a\" & (VLOOKUP(Rebalance!$D$37,$F$2:$G$48,2,FALSE)+ROW()-2)),\"\")","v":{"$error":"#N/A"}},{"$f":"IF(INDIRECT(\"c\" & (VLOOKUP(Rebalance!$D$38,$F$2:$G$48,2,FALSE)+ROW()-2))=Rebalance!$D$38,INDIRECT(\"a\" & (VLOOKUP(Rebalance!$D$38,$F$2:$G$48,2,FALSE)+ROW()-2)),\"\")","v":{"$error":"#N/A"}},{"$f":"IF(INDIRECT(\"c\" & (VLOOKUP(Rebalance!$D$39,$F$2:$G$48,2,FALSE)+ROW()-2))=Rebalance!$D$39,INDIRECT(\"a\" & (VLOOKUP(Rebalance!$D$39,$F$2:$G$48,2,FALSE)+ROW()-2)),\"\")","v":{"$error":"#N/A"}},{"$f":"IF(INDIRECT(\"c\" & (VLOOKUP(Rebalance!$D$40,$F$2:$G$48,2,FALSE)+ROW()-2))=Rebalance!$D$40,INDIRECT(\"a\" & (VLOOKUP(Rebalance!$D$40,$F$2:$G$48,2,FALSE)+ROW()-2)),\"\")","v":{"$error":"#N/A"}},{"$f":"IF(INDIRECT(\"c\" & (VLOOKUP(Rebalance!$D$52,$F$2:$G$48,2,FALSE)+ROW()-2))=Rebalance!$D$52,INDIRECT(\"a\" & (VLOOKUP(Rebalance!$D$52,$F$2:$G$48,2,FALSE)+ROW()-2)),\"\")","v":{"$error":"#N/A"}},{"$f":"IF(INDIRECT(\"c\" & (VLOOKUP(Rebalance!$D$53,$F$2:$G$48,2,FALSE)+ROW()-2))=Rebalance!$D$53,INDIRECT(\"a\" & (VLOOKUP(Rebalance!$D$53,$F$2:$G$48,2,FALSE)+ROW()-2)),\"\")","v":{"$error":"#N/A"}},{"$f":"IF(INDIRECT(\"c\" & (VLOOKUP(Rebalance!$D$54,$F$2:$G$48,2,FALSE)+ROW()-2))=Rebalance!$D$54,INDIRECT(\"a\" & (VLOOKUP(Rebalance!$D$54,$F$2:$G$48,2,FALSE)+ROW()-2)),\"\")","v":{"$error":"#N/A"}},{"$f":"IF(INDIRECT(\"c\" & (VLOOKUP(Rebalance!$D$55,$F$2:$G$48,2,FALSE)+ROW()-2))=Rebalance!$D$55,INDIRECT(\"a\" & (VLOOKUP(Rebalance!$D$55,$F$2:$G$48,2,FALSE)+ROW()-2)),\"\")","v":{"$error":"#N/A"}},{"$f":"IF(INDIRECT(\"c\" & (VLOOKUP(Rebalance!$D$56,$F$2:$G$48,2,FALSE)+ROW()-2))=Rebalance!$D$56,INDIRECT(\"a\" & (VLOOKUP(Rebalance!$D$56,$F$2:$G$48,2,FALSE)+ROW()-2)),\"\")","v":{"$error":"#N/A"}},{"$f":"IF(INDIRECT(\"c\" & (VLOOKUP(Rebalance!$D$57,$F$2:$G$48,2,FALSE)+ROW()-2))=Rebalance!$D$57,INDIRECT(\"a\" & (VLOOKUP(Rebalance!$D$57,$F$2:$G$48,2,FALSE)+ROW()-2)),\"\")","v":{"$error":"#N/A"}},{"$f":"IF(INDIRECT(\"c\" & (VLOOKUP(Rebalance!$D$58,$F$2:$G$48,2,FALSE)+ROW()-2))=Rebalance!$D$58,INDIRECT(\"a\" & (VLOOKUP(Rebalance!$D$58,$F$2:$G$48,2,FALSE)+ROW()-2)),\"\")","v":{"$error":"#N/A"}},{"$f":"IF(INDIRECT(\"c\" & (VLOOKUP(Rebalance!$D$59,$F$2:$G$48,2,FALSE)+ROW()-2))=Rebalance!$D$59,INDIRECT(\"a\" & (VLOOKUP(Rebalance!$D$59,$F$2:$G$48,2,FALSE)+ROW()-2)),\"\")","v":{"$error":"#N/A"}},{"$f":"IF(INDIRECT(\"c\" & (VLOOKUP(Rebalance!$D$60,$F$2:$G$48,2,FALSE)+ROW()-2))=Rebalance!$D$60,INDIRECT(\"a\" & (VLOOKUP(Rebalance!$D$60,$F$2:$G$48,2,FALSE)+ROW()-2)),\"\")","v":{"$error":"#N/A"}},{"$f":"IF(INDIRECT(\"c\" & (VLOOKUP(Rebalance!$D$61,$F$2:$G$48,2,FALSE)+ROW()-2))=Rebalance!$D$61,INDIRECT(\"a\" & (VLOOKUP(Rebalance!$D$61,$F$2:$G$48,2,FALSE)+ROW()-2)),\"\")","v":{"$error":"#N/A"}},{"$f":"IF(INDIRECT(\"c\" & (VLOOKUP(Rebalance!$D$62,$F$2:$G$48,2,FALSE)+ROW()-2))=Rebalance!$D$62,INDIRECT(\"a\" & (VLOOKUP(Rebalance!$D$62,$F$2:$G$48,2,FALSE)+ROW()-2)),\"\")","v":{"$error":"#N/A"}},{"$f":"IF(INDIRECT(\"c\" & (VLOOKUP(Rebalance!$D$63,$F$2:$G$48,2,FALSE)+ROW()-2))=Rebalance!$D$63,INDIRECT(\"a\" & (VLOOKUP(Rebalance!$D$63,$F$2:$G$48,2,FALSE)+ROW()-2)),\"\")","v":{"$error":"#N/A"}},{"$f":"IF(INDIRECT(\"c\" & (VLOOKUP(Rebalance!$D$64,$F$2:$G$48,2,FALSE)+ROW()-2))=Rebalance!$D$64,INDIRECT(\"a\" & (VLOOKUP(Rebalance!$D$64,$F$2:$G$48,2,FALSE)+ROW()-2)),\"\")","v":{"$error":"#N/A"}},{"$f":"IF(INDIRECT(\"c\" & (VLOOKUP(Rebalance!$D$65,$F$2:$G$48,2,FALSE)+ROW()-2))=Rebalance!$D$65,INDIRECT(\"a\" & (VLOOKUP(Rebalance!$D$65,$F$2:$G$48,2,FALSE)+ROW()-2)),\"\")","v":{"$error":"#N/A"}},{"$f":"IF(INDIRECT(\"c\" & (VLOOKUP(Rebalance!$D$66,$F$2:$G$48,2,FALSE)+ROW()-2))=Rebalance!$D$66,INDIRECT(\"a\" & (VLOOKUP(Rebalance!$D$66,$F$2:$G$48,2,FALSE)+ROW()-2)),\"\")","v":{"$error":"#N/A"}}]
["Amity BCI Steady Growth Fund A","ABSSA","Boutique Collective Investments (Pty) Ltd",{"$f":"ROW()","v":101},null,null,{"$f":"VLOOKUP(F101,$C$2:$D$599,2,FALSE)","v":{"$error":"#N/A"}},{"$f":"IF(INDIRECT(\"c\" & (VLOOKUP(Rebalance!$D$26,$F$2:$G$48,2,FALSE)+ROW()-2))=Rebalance!$D$26,INDIRECT(\"a\" & (VLOOKUP(Rebalance!$D$26,$F$2:$G$48,2,FALSE)+ROW()-2)),\"\")","v":{"$error":"#N/A"}},{"$f":"IF(INDIRECT(\"c\" & (VLOOKUP(Rebalance!$D$27,$F$2:$G$48,2,FALSE)+ROW()-2))=Rebalance!$D$27,INDIRECT(\"a\" & (VLOOKUP(Rebalance!$D$27,$F$2:$G$48,2,FALSE)+ROW()-2)),\"\")","v":{"$error":"#N/A"}},{"$f":"IF(INDIRECT(\"c\" & (VLOOKUP(Rebalance!$D$28,$F$2:$G$48,2,FALSE)+ROW()-2))=Rebalance!$D$28,INDIRECT(\"a\" & (VLOOKUP(Rebalance!$D$28,$F$2:$G$48,2,FALSE)+ROW()-2)),\"\")","v":{"$error":"#N/A"}},{"$f":"IF(INDIRECT(\"c\" & (VLOOKUP(Rebalance!$D$29,$F$2:$G$48,2,FALSE)+ROW()-2))=Rebalance!$D$29,INDIRECT(\"a\" & (VLOOKUP(Rebalance!$D$29,$F$2:$G$48,2,FALSE)+ROW()-2)),\"\")","v":{"$error":"#N/A"}},{"$f":"IF(INDIRECT(\"c\" & (VLOOKUP(Rebalance!$D$30,$F$2:$G$48,2,FALSE)+ROW()-2))=Rebalance!$D$30,INDIRECT(\"a\" & (VLOOKUP(Rebalance!$D$30,$F$2:$G$48,2,FALSE)+ROW()-2)),\"\")","v":{"$error":"#N/A"}},{"$f":"IF(INDIRECT(\"c\" & (VLOOKUP(Rebalance!$D$31,$F$2:$G$48,2,FALSE)+ROW()-2))=Rebalance!$D$31,INDIRECT(\"a\" & (VLOOKUP(Rebalance!$D$31,$F$2:$G$48,2,FALSE)+ROW()-2)),\"\")","v":{"$error":"#N/A"}},{"$f":"IF(INDIRECT(\"c\" & (VLOOKUP(Rebalance!$D$32,$F$2:$G$48,2,FALSE)+ROW()-2))=Rebalance!$D$32,INDIRECT(\"a\" & (VLOOKUP(Rebalance!$D$32,$F$2:$G$48,2,FALSE)+ROW()-2)),\"\")","v":{"$error":"#N/A"}},{"$f":"IF(INDIRECT(\"c\" & (VLOOKUP(Rebalance!$D$33,$F$2:$G$48,2,FALSE)+ROW()-2))=Rebalance!$D$33,INDIRECT(\"a\" & (VLOOKUP(Rebalance!$D$33,$F$2:$G$48,2,FALSE)+ROW()-2)),\"\")","v":{"$error":"#N/A"}},{"$f":"IF(INDIRECT(\"c\" & (VLOOKUP(Rebalance!$D$34,$F$2:$G$48,2,FALSE)+ROW()-2))=Rebalance!$D$34,INDIRECT(\"a\" & (VLOOKUP(Rebalance!$D$34,$F$2:$G$48,2,FALSE)+ROW()-2)),\"\")","v":{"$error":"#N/A"}},{"$f":"IF(INDIRECT(\"c\" & (VLOOKUP(Rebalance!$D$35,$F$2:$G$48,2,FALSE)+ROW()-2))=Rebalance!$D$35,INDIRECT(\"a\" & (VLOOKUP(Rebalance!$D$35,$F$2:$G$48,2,FALSE)+ROW()-2)),\"\")","v":{"$error":"#N/A"}},{"$f":"IF(INDIRECT(\"c\" & (VLOOKUP(Rebalance!$D$36,$F$2:$G$48,2,FALSE)+ROW()-2))=Rebalance!$D$36,INDIRECT(\"a\" & (VLOOKUP(Rebalance!$D$36,$F$2:$G$48,2,FALSE)+ROW()-2)),\"\")","v":{"$error":"#N/A"}},{"$f":"IF(INDIRECT(\"c\" & (VLOOKUP(Rebalance!$D$37,$F$2:$G$48,2,FALSE)+ROW()-2))=Rebalance!$D$37,INDIRECT(\"a\" & (VLOOKUP(Rebalance!$D$37,$F$2:$G$48,2,FALSE)+ROW()-2)),\"\")","v":{"$error":"#N/A"}},{"$f":"IF(INDIRECT(\"c\" & (VLOOKUP(Rebalance!$D$38,$F$2:$G$48,2,FALSE)+ROW()-2))=Rebalance!$D$38,INDIRECT(\"a\" & (VLOOKUP(Rebalance!$D$38,$F$2:$G$48,2,FALSE)+ROW()-2)),\"\")","v":{"$error":"#N/A"}},{"$f":"IF(INDIRECT(\"c\" & (VLOOKUP(Rebalance!$D$39,$F$2:$G$48,2,FALSE)+ROW()-2))=Rebalance!$D$39,INDIRECT(\"a\" & (VLOOKUP(Rebalance!$D$39,$F$2:$G$48,2,FALSE)+ROW()-2)),\"\")","v":{"$error":"#N/A"}},{"$f":"IF(INDIRECT(\"c\" & (VLOOKUP(Rebalance!$D$40,$F$2:$G$48,2,FALSE)+ROW()-2))=Rebalance!$D$40,INDIRECT(\"a\" & (VLOOKUP(Rebalance!$D$40,$F$2:$G$48,2,FALSE)+ROW()-2)),\"\")","v":{"$error":"#N/A"}},{"$f":"IF(INDIRECT(\"c\" & (VLOOKUP(Rebalance!$D$52,$F$2:$G$48,2,FALSE)+ROW()-2))=Rebalance!$D$52,INDIRECT(\"a\" & (VLOOKUP(Rebalance!$D$52,$F$2:$G$48,2,FALSE)+ROW()-2)),\"\")","v":{"$error":"#N/A"}},{"$f":"IF(INDIRECT(\"c\" & (VLOOKUP(Rebalance!$D$53,$F$2:$G$48,2,FALSE)+ROW()-2))=Rebalance!$D$53,INDIRECT(\"a\" & (VLOOKUP(Rebalance!$D$53,$F$2:$G$48,2,FALSE)+ROW()-2)),\"\")","v":{"$error":"#N/A"}},{"$f":"IF(INDIRECT(\"c\" & (VLOOKUP(Rebalance!$D$54,$F$2:$G$48,2,FALSE)+ROW()-2))=Rebalance!$D$54,INDIRECT(\"a\" & (VLOOKUP(Rebalance!$D$54,$F$2:$G$48,2,FALSE)+ROW()-2)),\"\")","v":{"$error":"#N/A"}},{"$f":"IF(INDIRECT(\"c\" & (VLOOKUP(Rebalance!$D$55,$F$2:$G$48,2,FALSE)+ROW()-2))=Rebalance!$D$55,INDIRECT(\"a\" & (VLOOKUP(Rebalance!$D$55,$F$2:$G$48,2,FALSE)+ROW()-2)),\"\")","v":{"$error":"#N/A"}},{"$f":"IF(INDIRECT(\"c\" & (VLOOKUP(Rebalance!$D$56,$F$2:$G$48,2,FALSE)+ROW()-2))=Rebalance!$D$56,INDIRECT(\"a\" & (VLOOKUP(Rebalance!$D$56,$F$2:$G$48,2,FALSE)+ROW()-2)),\"\")","v":{"$error":"#N/A"}},{"$f":"IF(INDIRECT(\"c\" & (VLOOKUP(Rebalance!$D$57,$F$2:$G$48,2,FALSE)+ROW()-2))=Rebalance!$D$57,INDIRECT(\"a\" & (VLOOKUP(Rebalance!$D$57,$F$2:$G$48,2,FALSE)+ROW()-2)),\"\")","v":{"$error":"#N/A"}},{"$f":"IF(INDIRECT(\"c\" & (VLOOKUP(Rebalance!$D$58,$F$2:$G$48,2,FALSE)+ROW()-2))=Rebalance!$D$58,INDIRECT(\"a\" & (VLOOKUP(Rebalance!$D$58,$F$2:$G$48,2,FALSE)+ROW()-2)),\"\")","v":{"$error":"#N/A"}},{"$f":"IF(INDIRECT(\"c\" & (VLOOKUP(Rebalance!$D$59,$F$2:$G$48,2,FALSE)+ROW()-2))=Rebalance!$D$59,INDIRECT(\"a\" & (VLOOKUP(Rebalance!$D$59,$F$2:$G$48,2,FALSE)+ROW()-2)),\"\")","v":{"$error":"#N/A"}},{"$f":"IF(INDIRECT(\"c\" & (VLOOKUP(Rebalance!$D$60,$F$2:$G$48,2,FALSE)+ROW()-2))=Rebalance!$D$60,INDIRECT(\"a\" & (VLOOKUP(Rebalance!$D$60,$F$2:$G$48,2,FALSE)+ROW()-2)),\"\")","v":{"$error":"#N/A"}},{"$f":"IF(INDIRECT(\"c\" & (VLOOKUP(Rebalance!$D$61,$F$2:$G$48,2,FALSE)+ROW()-2))=Rebalance!$D$61,INDIRECT(\"a\" & (VLOOKUP(Rebalance!$D$61,$F$2:$G$48,2,FALSE)+ROW()-2)),\"\")","v":{"$error":"#N/A"}},{"$f":"IF(INDIRECT(\"c\" & (VLOOKUP(Rebalance!$D$62,$F$2:$G$48,2,FALSE)+ROW()-2))=Rebalance!$D$62,INDIRECT(\"a\" & (VLOOKUP(Rebalance!$D$62,$F$2:$G$48,2,FALSE)+ROW()-2)),\"\")","v":{"$error":"#N/A"}},{"$f":"IF(INDIRECT(\"c\" & (VLOOKUP(Rebalance!$D$63,$F$2:$G$48,2,FALSE)+ROW()-2))=Rebalance!$D$63,INDIRECT(\"a\" & (VLOOKUP(Rebalance!$D$63,$F$2:$G$48,2,FALSE)+ROW()-2)),\"\")","v":{"$error":"#N/A"}},{"$f":"IF(INDIRECT(\"c\" & (VLOOKUP(Rebalance!$D$64,$F$2:$G$48,2,FALSE)+ROW()-2))=Rebalance!$D$64,INDIRECT(\"a\" & (VLOOKUP(Rebalance!$D$64,$F$2:$G$48,2,FALSE)+ROW()-2)),\"\")","v":{"$error":"#N/A"}},{"$f":"IF(INDIRECT(\"c\" & (VLOOKUP(Rebalance!$D$65,$F$2:$G$48,2,FALSE)+ROW()-2))=Rebalance!$D$65,INDIRECT(\"a\" & (VLOOKUP(Rebalance!$D$65,$F$2:$G$48,2,FALSE)+ROW()-2)),\"\")","v":{"$error":"#N/A"}},{"$f":"IF(INDIRECT(\"c\" & (VLOOKUP(Rebalance!$D$66,$F$2:$G$48,2,FALSE)+ROW()-2))=Rebalance!$D$66,INDIRECT(\"a\" & (VLOOKUP(Rebalance!$D$66,$F$2:$G$48,2,FALSE)+ROW()-2)),\"\")","v":{"$error":"#N/A"}}]
["Analytics Ci Balanced FoF B","ANABB","Boutique Collective Investments (Pty) Ltd",{"$f":"ROW()","v":102},null,null,{"$f":"VLOOKUP(F102,$C$2:$D$599,2,FALSE)","v":{"$error":"#N/A"}},{"$f":"IF(INDIRECT(\"c\" & (VLOOKUP(Rebalance!$D$26,$F$2:$G$48,2,FALSE)+ROW()-2))=Rebalance!$D$26,INDIRECT(\"a\" & (VLOOKUP(Rebalance!$D$26,$F$2:$G$48,2,FALSE)+ROW()-2)),\"\")","v":{"$error":"#N/A"}},{"$f":"IF(INDIRECT(\"c\" & (VLOOKUP(Rebalance!$D$27,$F$2:$G$48,2,FALSE)+ROW()-2))=Rebalance!$D$27,INDIRECT(\"a\" & (VLOOKUP(Rebalance!$D$27,$F$2:$G$48,2,FALSE)+ROW()-2)),\"\")","v":{"$error":"#N/A"}},{"$f":"IF(INDIRECT(\"c\" & (VLOOKUP(Rebalance!$D$28,$F$2:$G$48,2,FALSE)+ROW()-2))=Rebalance!$D$28,INDIRECT(\"a\" & (VLOOKUP(Rebalance!$D$28,$F$2:$G$48,2,FALSE)+ROW()-2)),\"\")","v":{"$error":"#N/A"}},{"$f":"IF(INDIRECT(\"c\" & (VLOOKUP(Rebalance!$D$29,$F$2:$G$48,2,FALSE)+ROW()-2))=Rebalance!$D$29,INDIRECT(\"a\" & (VLOOKUP(Rebalance!$D$29,$F$2:$G$48,2,FALSE)+ROW()-2)),\"\")","v":{"$error":"#N/A"}},{"$f":"IF(INDIRECT(\"c\" & (VLOOKUP(Rebalance!$D$30,$F$2:$G$48,2,FALSE)+ROW()-2))=Rebalance!$D$30,INDIRECT(\"a\" & (VLOOKUP(Rebalance!$D$30,$F$2:$G$48,2,FALSE)+ROW()-2)),\"\")","v":{"$error":"#N/A"}},{"$f":"IF(INDIRECT(\"c\" & (VLOOKUP(Rebalance!$D$31,$F$2:$G$48,2,FALSE)+ROW()-2))=Rebalance!$D$31,INDIRECT(\"a\" & (VLOOKUP(Rebalance!$D$31,$F$2:$G$48,2,FALSE)+ROW()-2)),\"\")","v":{"$error":"#N/A"}},{"$f":"IF(INDIRECT(\"c\" & (VLOOKUP(Rebalance!$D$32,$F$2:$G$48,2,FALSE)+ROW()-2))=Rebalance!$D$32,INDIRECT(\"a\" & (VLOOKUP(Rebalance!$D$32,$F$2:$G$48,2,FALSE)+ROW()-2)),\"\")","v":{"$error":"#N/A"}},{"$f":"IF(INDIRECT(\"c\" & (VLOOKUP(Rebalance!$D$33,$F$2:$G$48,2,FALSE)+ROW()-2))=Rebalance!$D$33,INDIRECT(\"a\" & (VLOOKUP(Rebalance!$D$33,$F$2:$G$48,2,FALSE)+ROW()-2)),\"\")","v":{"$error":"#N/A"}},{"$f":"IF(INDIRECT(\"c\" & (VLOOKUP(Rebalance!$D$34,$F$2:$G$48,2,FALSE)+ROW()-2))=Rebalance!$D$34,INDIRECT(\"a\" & (VLOOKUP(Rebalance!$D$34,$F$2:$G$48,2,FALSE)+ROW()-2)),\"\")","v":{"$error":"#N/A"}},{"$f":"IF(INDIRECT(\"c\" & (VLOOKUP(Rebalance!$D$35,$F$2:$G$48,2,FALSE)+ROW()-2))=Rebalance!$D$35,INDIRECT(\"a\" & (VLOOKUP(Rebalance!$D$35,$F$2:$G$48,2,FALSE)+ROW()-2)),\"\")","v":{"$error":"#N/A"}},{"$f":"IF(INDIRECT(\"c\" & (VLOOKUP(Rebalance!$D$36,$F$2:$G$48,2,FALSE)+ROW()-2))=Rebalance!$D$36,INDIRECT(\"a\" & (VLOOKUP(Rebalance!$D$36,$F$2:$G$48,2,FALSE)+ROW()-2)),\"\")","v":{"$error":"#N/A"}},{"$f":"IF(INDIRECT(\"c\" & (VLOOKUP(Rebalance!$D$37,$F$2:$G$48,2,FALSE)+ROW()-2))=Rebalance!$D$37,INDIRECT(\"a\" & (VLOOKUP(Rebalance!$D$37,$F$2:$G$48,2,FALSE)+ROW()-2)),\"\")","v":{"$error":"#N/A"}},{"$f":"IF(INDIRECT(\"c\" & (VLOOKUP(Rebalance!$D$38,$F$2:$G$48,2,FALSE)+ROW()-2))=Rebalance!$D$38,INDIRECT(\"a\" & (VLOOKUP(Rebalance!$D$38,$F$2:$G$48,2,FALSE)+ROW()-2)),\"\")","v":{"$error":"#N/A"}},{"$f":"IF(INDIRECT(\"c\" & (VLOOKUP(Rebalance!$D$39,$F$2:$G$48,2,FALSE)+ROW()-2))=Rebalance!$D$39,INDIRECT(\"a\" & (VLOOKUP(Rebalance!$D$39,$F$2:$G$48,2,FALSE)+ROW()-2)),\"\")","v":{"$error":"#N/A"}},{"$f":"IF(INDIRECT(\"c\" & (VLOOKUP(Rebalance!$D$40,$F$2:$G$48,2,FALSE)+ROW()-2))=Rebalance!$D$40,INDIRECT(\"a\" & (VLOOKUP(Rebalance!$D$40,$F$2:$G$48,2,FALSE)+ROW()-2)),\"\")","v":{"$error":"#N/A"}},{"$f":"IF(INDIRECT(\"c\" & (VLOOKUP(Rebalance!$D$52,$F$2:$G$48,2,FALSE)+ROW()-2))=Rebalance!$D$52,INDIRECT(\"a\" & (VLOOKUP(Rebalance!$D$52,$F$2:$G$48,2,FALSE)+ROW()-2)),\"\")","v":{"$error":"#N/A"}},{"$f":"IF(INDIRECT(\"c\" & (VLOOKUP(Rebalance!$D$53,$F$2:$G$48,2,FALSE)+ROW()-2))=Rebalance!$D$53,INDIRECT(\"a\" & (VLOOKUP(Rebalance!$D$53,$F$2:$G$48,2,FALSE)+ROW()-2)),\"\")","v":{"$error":"#N/A"}},{"$f":"IF(INDIRECT(\"c\" & (VLOOKUP(Rebalance!$D$54,$F$2:$G$48,2,FALSE)+ROW()-2))=Rebalance!$D$54,INDIRECT(\"a\" & (VLOOKUP(Rebalance!$D$54,$F$2:$G$48,2,FALSE)+ROW()-2)),\"\")","v":{"$error":"#N/A"}},{"$f":"IF(INDIRECT(\"c\" & (VLOOKUP(Rebalance!$D$55,$F$2:$G$48,2,FALSE)+ROW()-2))=Rebalance!$D$55,INDIRECT(\"a\" & (VLOOKUP(Rebalance!$D$55,$F$2:$G$48,2,FALSE)+ROW()-2)),\"\")","v":{"$error":"#N/A"}},{"$f":"IF(INDIRECT(\"c\" & (VLOOKUP(Rebalance!$D$56,$F$2:$G$48,2,FALSE)+ROW()-2))=Rebalance!$D$56,INDIRECT(\"a\" & (VLOOKUP(Rebalance!$D$56,$F$2:$G$48,2,FALSE)+ROW()-2)),\"\")","v":{"$error":"#N/A"}},{"$f":"IF(INDIRECT(\"c\" & (VLOOKUP(Rebalance!$D$57,$F$2:$G$48,2,FALSE)+ROW()-2))=Rebalance!$D$57,INDIRECT(\"a\" & (VLOOKUP(Rebalance!$D$57,$F$2:$G$48,2,FALSE)+ROW()-2)),\"\")","v":{"$error":"#N/A"}},{"$f":"IF(INDIRECT(\"c\" & (VLOOKUP(Rebalance!$D$58,$F$2:$G$48,2,FALSE)+ROW()-2))=Rebalance!$D$58,INDIRECT(\"a\" & (VLOOKUP(Rebalance!$D$58,$F$2:$G$48,2,FALSE)+ROW()-2)),\"\")","v":{"$error":"#N/A"}},{"$f":"IF(INDIRECT(\"c\" & (VLOOKUP(Rebalance!$D$59,$F$2:$G$48,2,FALSE)+ROW()-2))=Rebalance!$D$59,INDIRECT(\"a\" & (VLOOKUP(Rebalance!$D$59,$F$2:$G$48,2,FALSE)+ROW()-2)),\"\")","v":{"$error":"#N/A"}},{"$f":"IF(INDIRECT(\"c\" & (VLOOKUP(Rebalance!$D$60,$F$2:$G$48,2,FALSE)+ROW()-2))=Rebalance!$D$60,INDIRECT(\"a\" & (VLOOKUP(Rebalance!$D$60,$F$2:$G$48,2,FALSE)+ROW()-2)),\"\")","v":{"$error":"#N/A"}},{"$f":"IF(INDIRECT(\"c\" & (VLOOKUP(Rebalance!$D$61,$F$2:$G$48,2,FALSE)+ROW()-2))=Rebalance!$D$61,INDIRECT(\"a\" & (VLOOKUP(Rebalance!$D$61,$F$2:$G$48,2,FALSE)+ROW()-2)),\"\")","v":{"$error":"#N/A"}},{"$f":"IF(INDIRECT(\"c\" & (VLOOKUP(Rebalance!$D$62,$F$2:$G$48,2,FALSE)+ROW()-2))=Rebalance!$D$62,INDIRECT(\"a\" & (VLOOKUP(Rebalance!$D$62,$F$2:$G$48,2,FALSE)+ROW()-2)),\"\")","v":{"$error":"#N/A"}},{"$f":"IF(INDIRECT(\"c\" & (VLOOKUP(Rebalance!$D$63,$F$2:$G$48,2,FALSE)+ROW()-2))=Rebalance!$D$63,INDIRECT(\"a\" & (VLOOKUP(Rebalance!$D$63,$F$2:$G$48,2,FALSE)+ROW()-2)),\"\")","v":{"$error":"#N/A"}},{"$f":"IF(INDIRECT(\"c\" & (VLOOKUP(Rebalance!$D$64,$F$2:$G$48,2,FALSE)+ROW()-2))=Rebalance!$D$64,INDIRECT(\"a\" & (VLOOKUP(Rebalance!$D$64,$F$2:$G$48,2,FALSE)+ROW()-2)),\"\")","v":{"$error":"#N/A"}},{"$f":"IF(INDIRECT(\"c\" & (VLOOKUP(Rebalance!$D$65,$F$2:$G$48,2,FALSE)+ROW()-2))=Rebalance!$D$65,INDIRECT(\"a\" & (VLOOKUP(Rebalance!$D$65,$F$2:$G$48,2,FALSE)+ROW()-2)),\"\")","v":{"$error":"#N/A"}},{"$f":"IF(INDIRECT(\"c\" & (VLOOKUP(Rebalance!$D$66,$F$2:$G$48,2,FALSE)+ROW()-2))=Rebalance!$D$66,INDIRECT(\"a\" & (VLOOKUP(Rebalance!$D$66,$F$2:$G$48,2,FALSE)+ROW()-2)),\"\")","v":{"$error":"#N/A"}}]
["Analytics Ci Cautious FoF B","ANCCB","Boutique Collective Investments (Pty) Ltd",{"$f":"ROW()","v":103},null,null,{"$f":"VLOOKUP(F103,$C$2:$D$599,2,FALSE)","v":{"$error":"#N/A"}},{"$f":"IF(INDIRECT(\"c\" & (VLOOKUP(Rebalance!$D$26,$F$2:$G$48,2,FALSE)+ROW()-2))=Rebalance!$D$26,INDIRECT(\"a\" & (VLOOKUP(Rebalance!$D$26,$F$2:$G$48,2,FALSE)+ROW()-2)),\"\")","v":{"$error":"#N/A"}},{"$f":"IF(INDIRECT(\"c\" & (VLOOKUP(Rebalance!$D$27,$F$2:$G$48,2,FALSE)+ROW()-2))=Rebalance!$D$27,INDIRECT(\"a\" & (VLOOKUP(Rebalance!$D$27,$F$2:$G$48,2,FALSE)+ROW()-2)),\"\")","v":{"$error":"#N/A"}},{"$f":"IF(INDIRECT(\"c\" & (VLOOKUP(Rebalance!$D$28,$F$2:$G$48,2,FALSE)+ROW()-2))=Rebalance!$D$28,INDIRECT(\"a\" & (VLOOKUP(Rebalance!$D$28,$F$2:$G$48,2,FALSE)+ROW()-2)),\"\")","v":{"$error":"#N/A"}},{"$f":"IF(INDIRECT(\"c\" & (VLOOKUP(Rebalance!$D$29,$F$2:$G$48,2,FALSE)+ROW()-2))=Rebalance!$D$29,INDIRECT(\"a\" & (VLOOKUP(Rebalance!$D$29,$F$2:$G$48,2,FALSE)+ROW()-2)),\"\")","v":{"$error":"#N/A"}},{"$f":"IF(INDIRECT(\"c\" & (VLOOKUP(Rebalance!$D$30,$F$2:$G$48,2,FALSE)+ROW()-2))=Rebalance!$D$30,INDIRECT(\"a\" & (VLOOKUP(Rebalance!$D$30,$F$2:$G$48,2,FALSE)+ROW()-2)),\"\")","v":{"$error":"#N/A"}},{"$f":"IF(INDIRECT(\"c\" & (VLOOKUP(Rebalance!$D$31,$F$2:$G$48,2,FALSE)+ROW()-2))=Rebalance!$D$31,INDIRECT(\"a\" & (VLOOKUP(Rebalance!$D$31,$F$2:$G$48,2,FALSE)+ROW()-2)),\"\")","v":{"$error":"#N/A"}},{"$f":"IF(INDIRECT(\"c\" & (VLOOKUP(Rebalance!$D$32,$F$2:$G$48,2,FALSE)+ROW()-2))=Rebalance!$D$32,INDIRECT(\"a\" & (VLOOKUP(Rebalance!$D$32,$F$2:$G$48,2,FALSE)+ROW()-2)),\"\")","v":{"$error":"#N/A"}},{"$f":"IF(INDIRECT(\"c\" & (VLOOKUP(Rebalance!$D$33,$F$2:$G$48,2,FALSE)+ROW()-2))=Rebalance!$D$33,INDIRECT(\"a\" & (VLOOKUP(Rebalance!$D$33,$F$2:$G$48,2,FALSE)+ROW()-2)),\"\")","v":{"$error":"#N/A"}},{"$f":"IF(INDIRECT(\"c\" & (VLOOKUP(Rebalance!$D$34,$F$2:$G$48,2,FALSE)+ROW()-2))=Rebalance!$D$34,INDIRECT(\"a\" & (VLOOKUP(Rebalance!$D$34,$F$2:$G$48,2,FALSE)+ROW()-2)),\"\")","v":{"$error":"#N/A"}},{"$f":"IF(INDIRECT(\"c\" & (VLOOKUP(Rebalance!$D$35,$F$2:$G$48,2,FALSE)+ROW()-2))=Rebalance!$D$35,INDIRECT(\"a\" & (VLOOKUP(Rebalance!$D$35,$F$2:$G$48,2,FALSE)+ROW()-2)),\"\")","v":{"$error":"#N/A"}},{"$f":"IF(INDIRECT(\"c\" & (VLOOKUP(Rebalance!$D$36,$F$2:$G$48,2,FALSE)+ROW()-2))=Rebalance!$D$36,INDIRECT(\"a\" & (VLOOKUP(Rebalance!$D$36,$F$2:$G$48,2,FALSE)+ROW()-2)),\"\")","v":{"$error":"#N/A"}},{"$f":"IF(INDIRECT(\"c\" & (VLOOKUP(Rebalance!$D$37,$F$2:$G$48,2,FALSE)+ROW()-2))=Rebalance!$D$37,INDIRECT(\"a\" & (VLOOKUP(Rebalance!$D$37,$F$2:$G$48,2,FALSE)+ROW()-2)),\"\")","v":{"$error":"#N/A"}},{"$f":"IF(INDIRECT(\"c\" & (VLOOKUP(Rebalance!$D$38,$F$2:$G$48,2,FALSE)+ROW()-2))=Rebalance!$D$38,INDIRECT(\"a\" & (VLOOKUP(Rebalance!$D$38,$F$2:$G$48,2,FALSE)+ROW()-2)),\"\")","v":{"$error":"#N/A"}},{"$f":"IF(INDIRECT(\"c\" & (VLOOKUP(Rebalance!$D$39,$F$2:$G$48,2,FALSE)+ROW()-2))=Rebalance!$D$39,INDIRECT(\"a\" & (VLOOKUP(Rebalance!$D$39,$F$2:$G$48,2,FALSE)+ROW()-2)),\"\")","v":{"$error":"#N/A"}},{"$f":"IF(INDIRECT(\"c\" & (VLOOKUP(Rebalance!$D$40,$F$2:$G$48,2,FALSE)+ROW()-2))=Rebalance!$D$40,INDIRECT(\"a\" & (VLOOKUP(Rebalance!$D$40,$F$2:$G$48,2,FALSE)+ROW()-2)),\"\")","v":{"$error":"#N/A"}},{"$f":"IF(INDIRECT(\"c\" & (VLOOKUP(Rebalance!$D$52,$F$2:$G$48,2,FALSE)+ROW()-2))=Rebalance!$D$52,INDIRECT(\"a\" & (VLOOKUP(Rebalance!$D$52,$F$2:$G$48,2,FALSE)+ROW()-2)),\"\")","v":{"$error":"#N/A"}},{"$f":"IF(INDIRECT(\"c\" & (VLOOKUP(Rebalance!$D$53,$F$2:$G$48,2,FALSE)+ROW()-2))=Rebalance!$D$53,INDIRECT(\"a\" & (VLOOKUP(Rebalance!$D$53,$F$2:$G$48,2,FALSE)+ROW()-2)),\"\")","v":{"$error":"#N/A"}},{"$f":"IF(INDIRECT(\"c\" & (VLOOKUP(Rebalance!$D$54,$F$2:$G$48,2,FALSE)+ROW()-2))=Rebalance!$D$54,INDIRECT(\"a\" & (VLOOKUP(Rebalance!$D$54,$F$2:$G$48,2,FALSE)+ROW()-2)),\"\")","v":{"$error":"#N/A"}},{"$f":"IF(INDIRECT(\"c\" & (VLOOKUP(Rebalance!$D$55,$F$2:$G$48,2,FALSE)+ROW()-2))=Rebalance!$D$55,INDIRECT(\"a\" & (VLOOKUP(Rebalance!$D$55,$F$2:$G$48,2,FALSE)+ROW()-2)),\"\")","v":{"$error":"#N/A"}},{"$f":"IF(INDIRECT(\"c\" & (VLOOKUP(Rebalance!$D$56,$F$2:$G$48,2,FALSE)+ROW()-2))=Rebalance!$D$56,INDIRECT(\"a\" & (VLOOKUP(Rebalance!$D$56,$F$2:$G$48,2,FALSE)+ROW()-2)),\"\")","v":{"$error":"#N/A"}},{"$f":"IF(INDIRECT(\"c\" & (VLOOKUP(Rebalance!$D$57,$F$2:$G$48,2,FALSE)+ROW()-2))=Rebalance!$D$57,INDIRECT(\"a\" & (VLOOKUP(Rebalance!$D$57,$F$2:$G$48,2,FALSE)+ROW()-2)),\"\")","v":{"$error":"#N/A"}},{"$f":"IF(INDIRECT(\"c\" & (VLOOKUP(Rebalance!$D$58,$F$2:$G$48,2,FALSE)+ROW()-2))=Rebalance!$D$58,INDIRECT(\"a\" & (VLOOKUP(Rebalance!$D$58,$F$2:$G$48,2,FALSE)+ROW()-2)),\"\")","v":{"$error":"#N/A"}},{"$f":"IF(INDIRECT(\"c\" & (VLOOKUP(Rebalance!$D$59,$F$2:$G$48,2,FALSE)+ROW()-2))=Rebalance!$D$59,INDIRECT(\"a\" & (VLOOKUP(Rebalance!$D$59,$F$2:$G$48,2,FALSE)+ROW()-2)),\"\")","v":{"$error":"#N/A"}},{"$f":"IF(INDIRECT(\"c\" & (VLOOKUP(Rebalance!$D$60,$F$2:$G$48,2,FALSE)+ROW()-2))=Rebalance!$D$60,INDIRECT(\"a\" & (VLOOKUP(Rebalance!$D$60,$F$2:$G$48,2,FALSE)+ROW()-2)),\"\")","v":{"$error":"#N/A"}},{"$f":"IF(INDIRECT(\"c\" & (VLOOKUP(Rebalance!$D$61,$F$2:$G$48,2,FALSE)+ROW()-2))=Rebalance!$D$61,INDIRECT(\"a\" & (VLOOKUP(Rebalance!$D$61,$F$2:$G$48,2,FALSE)+ROW()-2)),\"\")","v":{"$error":"#N/A"}},{"$f":"IF(INDIRECT(\"c\" & (VLOOKUP(Rebalance!$D$62,$F$2:$G$48,2,FALSE)+ROW()-2))=Rebalance!$D$62,INDIRECT(\"a\" & (VLOOKUP(Rebalance!$D$62,$F$2:$G$48,2,FALSE)+ROW()-2)),\"\")","v":{"$error":"#N/A"}},{"$f":"IF(INDIRECT(\"c\" & (VLOOKUP(Rebalance!$D$63,$F$2:$G$48,2,FALSE)+ROW()-2))=Rebalance!$D$63,INDIRECT(\"a\" & (VLOOKUP(Rebalance!$D$63,$F$2:$G$48,2,FALSE)+ROW()-2)),\"\")","v":{"$error":"#N/A"}},{"$f":"IF(INDIRECT(\"c\" & (VLOOKUP(Rebalance!$D$64,$F$2:$G$48,2,FALSE)+ROW()-2))=Rebalance!$D$64,INDIRECT(\"a\" & (VLOOKUP(Rebalance!$D$64,$F$2:$G$48,2,FALSE)+ROW()-2)),\"\")","v":{"$error":"#N/A"}},{"$f":"IF(INDIRECT(\"c\" & (VLOOKUP(Rebalance!$D$65,$F$2:$G$48,2,FALSE)+ROW()-2))=Rebalance!$D$65,INDIRECT(\"a\" & (VLOOKUP(Rebalance!$D$65,$F$2:$G$48,2,FALSE)+ROW()-2)),\"\")","v":{"$error":"#N/A"}},{"$f":"IF(INDIRECT(\"c\" & (VLOOKUP(Rebalance!$D$66,$F$2:$G$48,2,FALSE)+ROW()-2))=Rebalance!$D$66,INDIRECT(\"a\" & (VLOOKUP(Rebalance!$D$66,$F$2:$G$48,2,FALSE)+ROW()-2)),\"\")","v":{"$error":"#N/A"}}]
["Analytics Ci Managed Equity Fund B","AAMEB","Boutique Collective Investments (Pty) Ltd",{"$f":"ROW()","v":104},null,null,{"$f":"VLOOKUP(F104,$C$2:$D$599,2,FALSE)","v":{"$error":"#N/A"}},{"$f":"IF(INDIRECT(\"c\" & (VLOOKUP(Rebalance!$D$26,$F$2:$G$48,2,FALSE)+ROW()-2))=Rebalance!$D$26,INDIRECT(\"a\" & (VLOOKUP(Rebalance!$D$26,$F$2:$G$48,2,FALSE)+ROW()-2)),\"\")","v":{"$error":"#N/A"}},{"$f":"IF(INDIRECT(\"c\" & (VLOOKUP(Rebalance!$D$27,$F$2:$G$48,2,FALSE)+ROW()-2))=Rebalance!$D$27,INDIRECT(\"a\" & (VLOOKUP(Rebalance!$D$27,$F$2:$G$48,2,FALSE)+ROW()-2)),\"\")","v":{"$error":"#N/A"}},{"$f":"IF(INDIRECT(\"c\" & (VLOOKUP(Rebalance!$D$28,$F$2:$G$48,2,FALSE)+ROW()-2))=Rebalance!$D$28,INDIRECT(\"a\" & (VLOOKUP(Rebalance!$D$28,$F$2:$G$48,2,FALSE)+ROW()-2)),\"\")","v":{"$error":"#N/A"}},{"$f":"IF(INDIRECT(\"c\" & (VLOOKUP(Rebalance!$D$29,$F$2:$G$48,2,FALSE)+ROW()-2))=Rebalance!$D$29,INDIRECT(\"a\" & (VLOOKUP(Rebalance!$D$29,$F$2:$G$48,2,FALSE)+ROW()-2)),\"\")","v":{"$error":"#N/A"}},{"$f":"IF(INDIRECT(\"c\" & (VLOOKUP(Rebalance!$D$30,$F$2:$G$48,2,FALSE)+ROW()-2))=Rebalance!$D$30,INDIRECT(\"a\" & (VLOOKUP(Rebalance!$D$30,$F$2:$G$48,2,FALSE)+ROW()-2)),\"\")","v":{"$error":"#N/A"}},{"$f":"IF(INDIRECT(\"c\" & (VLOOKUP(Rebalance!$D$31,$F$2:$G$48,2,FALSE)+ROW()-2))=Rebalance!$D$31,INDIRECT(\"a\" & (VLOOKUP(Rebalance!$D$31,$F$2:$G$48,2,FALSE)+ROW()-2)),\"\")","v":{"$error":"#N/A"}},{"$f":"IF(INDIRECT(\"c\" & (VLOOKUP(Rebalance!$D$32,$F$2:$G$48,2,FALSE)+ROW()-2))=Rebalance!$D$32,INDIRECT(\"a\" & (VLOOKUP(Rebalance!$D$32,$F$2:$G$48,2,FALSE)+ROW()-2)),\"\")","v":{"$error":"#N/A"}},{"$f":"IF(INDIRECT(\"c\" & (VLOOKUP(Rebalance!$D$33,$F$2:$G$48,2,FALSE)+ROW()-2))=Rebalance!$D$33,INDIRECT(\"a\" & (VLOOKUP(Rebalance!$D$33,$F$2:$G$48,2,FALSE)+ROW()-2)),\"\")","v":{"$error":"#N/A"}},{"$f":"IF(INDIRECT(\"c\" & (VLOOKUP(Rebalance!$D$34,$F$2:$G$48,2,FALSE)+ROW()-2))=Rebalance!$D$34,INDIRECT(\"a\" & (VLOOKUP(Rebalance!$D$34,$F$2:$G$48,2,FALSE)+ROW()-2)),\"\")","v":{"$error":"#N/A"}},{"$f":"IF(INDIRECT(\"c\" & (VLOOKUP(Rebalance!$D$35,$F$2:$G$48,2,FALSE)+ROW()-2))=Rebalance!$D$35,INDIRECT(\"a\" & (VLOOKUP(Rebalance!$D$35,$F$2:$G$48,2,FALSE)+ROW()-2)),\"\")","v":{"$error":"#N/A"}},{"$f":"IF(INDIRECT(\"c\" & (VLOOKUP(Rebalance!$D$36,$F$2:$G$48,2,FALSE)+ROW()-2))=Rebalance!$D$36,INDIRECT(\"a\" & (VLOOKUP(Rebalance!$D$36,$F$2:$G$48,2,FALSE)+ROW()-2)),\"\")","v":{"$error":"#N/A"}},{"$f":"IF(INDIRECT(\"c\" & (VLOOKUP(Rebalance!$D$37,$F$2:$G$48,2,FALSE)+ROW()-2))=Rebalance!$D$37,INDIRECT(\"a\" & (VLOOKUP(Rebalance!$D$37,$F$2:$G$48,2,FALSE)+ROW()-2)),\"\")","v":{"$error":"#N/A"}},{"$f":"IF(INDIRECT(\"c\" & (VLOOKUP(Rebalance!$D$38,$F$2:$G$48,2,FALSE)+ROW()-2))=Rebalance!$D$38,INDIRECT(\"a\" & (VLOOKUP(Rebalance!$D$38,$F$2:$G$48,2,FALSE)+ROW()-2)),\"\")","v":{"$error":"#N/A"}},{"$f":"IF(INDIRECT(\"c\" & (VLOOKUP(Rebalance!$D$39,$F$2:$G$48,2,FALSE)+ROW()-2))=Rebalance!$D$39,INDIRECT(\"a\" & (VLOOKUP(Rebalance!$D$39,$F$2:$G$48,2,FALSE)+ROW()-2)),\"\")","v":{"$error":"#N/A"}},{"$f":"IF(INDIRECT(\"c\" & (VLOOKUP(Rebalance!$D$40,$F$2:$G$48,2,FALSE)+ROW()-2))=Rebalance!$D$40,INDIRECT(\"a\" & (VLOOKUP(Rebalance!$D$40,$F$2:$G$48,2,FALSE)+ROW()-2)),\"\")","v":{"$error":"#N/A"}},{"$f":"IF(INDIRECT(\"c\" & (VLOOKUP(Rebalance!$D$52,$F$2:$G$48,2,FALSE)+ROW()-2))=Rebalance!$D$52,INDIRECT(\"a\" & (VLOOKUP(Rebalance!$D$52,$F$2:$G$48,2,FALSE)+ROW()-2)),\"\")","v":{"$error":"#N/A"}},{"$f":"IF(INDIRECT(\"c\" & (VLOOKUP(Rebalance!$D$53,$F$2:$G$48,2,FALSE)+ROW()-2))=Rebalance!$D$53,INDIRECT(\"a\" & (VLOOKUP(Rebalance!$D$53,$F$2:$G$48,2,FALSE)+ROW()-2)),\"\")","v":{"$error":"#N/A"}},{"$f":"IF(INDIRECT(\"c\" & (VLOOKUP(Rebalance!$D$54,$F$2:$G$48,2,FALSE)+ROW()-2))=Rebalance!$D$54,INDIRECT(\"a\" & (VLOOKUP(Rebalance!$D$54,$F$2:$G$48,2,FALSE)+ROW()-2)),\"\")","v":{"$error":"#N/A"}},{"$f":"IF(INDIRECT(\"c\" & (VLOOKUP(Rebalance!$D$55,$F$2:$G$48,2,FALSE)+ROW()-2))=Rebalance!$D$55,INDIRECT(\"a\" & (VLOOKUP(Rebalance!$D$55,$F$2:$G$48,2,FALSE)+ROW()-2)),\"\")","v":{"$error":"#N/A"}},{"$f":"IF(INDIRECT(\"c\" & (VLOOKUP(Rebalance!$D$56,$F$2:$G$48,2,FALSE)+ROW()-2))=Rebalance!$D$56,INDIRECT(\"a\" & (VLOOKUP(Rebalance!$D$56,$F$2:$G$48,2,FALSE)+ROW()-2)),\"\")","v":{"$error":"#N/A"}},{"$f":"IF(INDIRECT(\"c\" & (VLOOKUP(Rebalance!$D$57,$F$2:$G$48,2,FALSE)+ROW()-2))=Rebalance!$D$57,INDIRECT(\"a\" & (VLOOKUP(Rebalance!$D$57,$F$2:$G$48,2,FALSE)+ROW()-2)),\"\")","v":{"$error":"#N/A"}},{"$f":"IF(INDIRECT(\"c\" & (VLOOKUP(Rebalance!$D$58,$F$2:$G$48,2,FALSE)+ROW()-2))=Rebalance!$D$58,INDIRECT(\"a\" & (VLOOKUP(Rebalance!$D$58,$F$2:$G$48,2,FALSE)+ROW()-2)),\"\")","v":{"$error":"#N/A"}},{"$f":"IF(INDIRECT(\"c\" & (VLOOKUP(Rebalance!$D$59,$F$2:$G$48,2,FALSE)+ROW()-2))=Rebalance!$D$59,INDIRECT(\"a\" & (VLOOKUP(Rebalance!$D$59,$F$2:$G$48,2,FALSE)+ROW()-2)),\"\")","v":{"$error":"#N/A"}},{"$f":"IF(INDIRECT(\"c\" & (VLOOKUP(Rebalance!$D$60,$F$2:$G$48,2,FALSE)+ROW()-2))=Rebalance!$D$60,INDIRECT(\"a\" & (VLOOKUP(Rebalance!$D$60,$F$2:$G$48,2,FALSE)+ROW()-2)),\"\")","v":{"$error":"#N/A"}},{"$f":"IF(INDIRECT(\"c\" & (VLOOKUP(Rebalance!$D$61,$F$2:$G$48,2,FALSE)+ROW()-2))=Rebalance!$D$61,INDIRECT(\"a\" & (VLOOKUP(Rebalance!$D$61,$F$2:$G$48,2,FALSE)+ROW()-2)),\"\")","v":{"$error":"#N/A"}},{"$f":"IF(INDIRECT(\"c\" & (VLOOKUP(Rebalance!$D$62,$F$2:$G$48,2,FALSE)+ROW()-2))=Rebalance!$D$62,INDIRECT(\"a\" & (VLOOKUP(Rebalance!$D$62,$F$2:$G$48,2,FALSE)+ROW()-2)),\"\")","v":{"$error":"#N/A"}},{"$f":"IF(INDIRECT(\"c\" & (VLOOKUP(Rebalance!$D$63,$F$2:$G$48,2,FALSE)+ROW()-2))=Rebalance!$D$63,INDIRECT(\"a\" & (VLOOKUP(Rebalance!$D$63,$F$2:$G$48,2,FALSE)+ROW()-2)),\"\")","v":{"$error":"#N/A"}},{"$f":"IF(INDIRECT(\"c\" & (VLOOKUP(Rebalance!$D$64,$F$2:$G$48,2,FALSE)+ROW()-2))=Rebalance!$D$64,INDIRECT(\"a\" & (VLOOKUP(Rebalance!$D$64,$F$2:$G$48,2,FALSE)+ROW()-2)),\"\")","v":{"$error":"#N/A"}},{"$f":"IF(INDIRECT(\"c\" & (VLOOKUP(Rebalance!$D$65,$F$2:$G$48,2,FALSE)+ROW()-2))=Rebalance!$D$65,INDIRECT(\"a\" & (VLOOKUP(Rebalance!$D$65,$F$2:$G$48,2,FALSE)+ROW()-2)),\"\")","v":{"$error":"#N/A"}},{"$f":"IF(INDIRECT(\"c\" & (VLOOKUP(Rebalance!$D$66,$F$2:$G$48,2,FALSE)+ROW()-2))=Rebalance!$D$66,INDIRECT(\"a\" & (VLOOKUP(Rebalance!$D$66,$F$2:$G$48,2,FALSE)+ROW()-2)),\"\")","v":{"$error":"#N/A"}}]
["Analytics Ci Moderate FoF B","ANAMB","Boutique Collective Investments (Pty) Ltd",{"$f":"ROW()","v":105},null,null,{"$f":"VLOOKUP(F105,$C$2:$D$599,2,FALSE)","v":{"$error":"#N/A"}},{"$f":"IF(INDIRECT(\"c\" & (VLOOKUP(Rebalance!$D$26,$F$2:$G$48,2,FALSE)+ROW()-2))=Rebalance!$D$26,INDIRECT(\"a\" & (VLOOKUP(Rebalance!$D$26,$F$2:$G$48,2,FALSE)+ROW()-2)),\"\")","v":{"$error":"#N/A"}},{"$f":"IF(INDIRECT(\"c\" & (VLOOKUP(Rebalance!$D$27,$F$2:$G$48,2,FALSE)+ROW()-2))=Rebalance!$D$27,INDIRECT(\"a\" & (VLOOKUP(Rebalance!$D$27,$F$2:$G$48,2,FALSE)+ROW()-2)),\"\")","v":{"$error":"#N/A"}},{"$f":"IF(INDIRECT(\"c\" & (VLOOKUP(Rebalance!$D$28,$F$2:$G$48,2,FALSE)+ROW()-2))=Rebalance!$D$28,INDIRECT(\"a\" & (VLOOKUP(Rebalance!$D$28,$F$2:$G$48,2,FALSE)+ROW()-2)),\"\")","v":{"$error":"#N/A"}},{"$f":"IF(INDIRECT(\"c\" & (VLOOKUP(Rebalance!$D$29,$F$2:$G$48,2,FALSE)+ROW()-2))=Rebalance!$D$29,INDIRECT(\"a\" & (VLOOKUP(Rebalance!$D$29,$F$2:$G$48,2,FALSE)+ROW()-2)),\"\")","v":{"$error":"#N/A"}},{"$f":"IF(INDIRECT(\"c\" & (VLOOKUP(Rebalance!$D$30,$F$2:$G$48,2,FALSE)+ROW()-2))=Rebalance!$D$30,INDIRECT(\"a\" & (VLOOKUP(Rebalance!$D$30,$F$2:$G$48,2,FALSE)+ROW()-2)),\"\")","v":{"$error":"#N/A"}},{"$f":"IF(INDIRECT(\"c\" & (VLOOKUP(Rebalance!$D$31,$F$2:$G$48,2,FALSE)+ROW()-2))=Rebalance!$D$31,INDIRECT(\"a\" & (VLOOKUP(Rebalance!$D$31,$F$2:$G$48,2,FALSE)+ROW()-2)),\"\")","v":{"$error":"#N/A"}},{"$f":"IF(INDIRECT(\"c\" & (VLOOKUP(Rebalance!$D$32,$F$2:$G$48,2,FALSE)+ROW()-2))=Rebalance!$D$32,INDIRECT(\"a\" & (VLOOKUP(Rebalance!$D$32,$F$2:$G$48,2,FALSE)+ROW()-2)),\"\")","v":{"$error":"#N/A"}},{"$f":"IF(INDIRECT(\"c\" & (VLOOKUP(Rebalance!$D$33,$F$2:$G$48,2,FALSE)+ROW()-2))=Rebalance!$D$33,INDIRECT(\"a\" & (VLOOKUP(Rebalance!$D$33,$F$2:$G$48,2,FALSE)+ROW()-2)),\"\")","v":{"$error":"#N/A"}},{"$f":"IF(INDIRECT(\"c\" & (VLOOKUP(Rebalance!$D$34,$F$2:$G$48,2,FALSE)+ROW()-2))=Rebalance!$D$34,INDIRECT(\"a\" & (VLOOKUP(Rebalance!$D$34,$F$2:$G$48,2,FALSE)+ROW()-2)),\"\")","v":{"$error":"#N/A"}},{"$f":"IF(INDIRECT(\"c\" & (VLOOKUP(Rebalance!$D$35,$F$2:$G$48,2,FALSE)+ROW()-2))=Rebalance!$D$35,INDIRECT(\"a\" & (VLOOKUP(Rebalance!$D$35,$F$2:$G$48,2,FALSE)+ROW()-2)),\"\")","v":{"$error":"#N/A"}},{"$f":"IF(INDIRECT(\"c\" & (VLOOKUP(Rebalance!$D$36,$F$2:$G$48,2,FALSE)+ROW()-2))=Rebalance!$D$36,INDIRECT(\"a\" & (VLOOKUP(Rebalance!$D$36,$F$2:$G$48,2,FALSE)+ROW()-2)),\"\")","v":{"$error":"#N/A"}},{"$f":"IF(INDIRECT(\"c\" & (VLOOKUP(Rebalance!$D$37,$F$2:$G$48,2,FALSE)+ROW()-2))=Rebalance!$D$37,INDIRECT(\"a\" & (VLOOKUP(Rebalance!$D$37,$F$2:$G$48,2,FALSE)+ROW()-2)),\"\")","v":{"$error":"#N/A"}},{"$f":"IF(INDIRECT(\"c\" & (VLOOKUP(Rebalance!$D$38,$F$2:$G$48,2,FALSE)+ROW()-2))=Rebalance!$D$38,INDIRECT(\"a\" & (VLOOKUP(Rebalance!$D$38,$F$2:$G$48,2,FALSE)+ROW()-2)),\"\")","v":{"$error":"#N/A"}},{"$f":"IF(INDIRECT(\"c\" & (VLOOKUP(Rebalance!$D$39,$F$2:$G$48,2,FALSE)+ROW()-2))=Rebalance!$D$39,INDIRECT(\"a\" & (VLOOKUP(Rebalance!$D$39,$F$2:$G$48,2,FALSE)+ROW()-2)),\"\")","v":{"$error":"#N/A"}},{"$f":"IF(INDIRECT(\"c\" & (VLOOKUP(Rebalance!$D$40,$F$2:$G$48,2,FALSE)+ROW()-2))=Rebalance!$D$40,INDIRECT(\"a\" & (VLOOKUP(Rebalance!$D$40,$F$2:$G$48,2,FALSE)+ROW()-2)),\"\")","v":{"$error":"#N/A"}},{"$f":"IF(INDIRECT(\"c\" & (VLOOKUP(Rebalance!$D$52,$F$2:$G$48,2,FALSE)+ROW()-2))=Rebalance!$D$52,INDIRECT(\"a\" & (VLOOKUP(Rebalance!$D$52,$F$2:$G$48,2,FALSE)+ROW()-2)),\"\")","v":{"$error":"#N/A"}},{"$f":"IF(INDIRECT(\"c\" & (VLOOKUP(Rebalance!$D$53,$F$2:$G$48,2,FALSE)+ROW()-2))=Rebalance!$D$53,INDIRECT(\"a\" & (VLOOKUP(Rebalance!$D$53,$F$2:$G$48,2,FALSE)+ROW()-2)),\"\")","v":{"$error":"#N/A"}},{"$f":"IF(INDIRECT(\"c\" & (VLOOKUP(Rebalance!$D$54,$F$2:$G$48,2,FALSE)+ROW()-2))=Rebalance!$D$54,INDIRECT(\"a\" & (VLOOKUP(Rebalance!$D$54,$F$2:$G$48,2,FALSE)+ROW()-2)),\"\")","v":{"$error":"#N/A"}},{"$f":"IF(INDIRECT(\"c\" & (VLOOKUP(Rebalance!$D$55,$F$2:$G$48,2,FALSE)+ROW()-2))=Rebalance!$D$55,INDIRECT(\"a\" & (VLOOKUP(Rebalance!$D$55,$F$2:$G$48,2,FALSE)+ROW()-2)),\"\")","v":{"$error":"#N/A"}},{"$f":"IF(INDIRECT(\"c\" & (VLOOKUP(Rebalance!$D$56,$F$2:$G$48,2,FALSE)+ROW()-2))=Rebalance!$D$56,INDIRECT(\"a\" & (VLOOKUP(Rebalance!$D$56,$F$2:$G$48,2,FALSE)+ROW()-2)),\"\")","v":{"$error":"#N/A"}},{"$f":"IF(INDIRECT(\"c\" & (VLOOKUP(Rebalance!$D$57,$F$2:$G$48,2,FALSE)+ROW()-2))=Rebalance!$D$57,INDIRECT(\"a\" & (VLOOKUP(Rebalance!$D$57,$F$2:$G$48,2,FALSE)+ROW()-2)),\"\")","v":{"$error":"#N/A"}},{"$f":"IF(INDIRECT(\"c\" & (VLOOKUP(Rebalance!$D$58,$F$2:$G$48,2,FALSE)+ROW()-2))=Rebalance!$D$58,INDIRECT(\"a\" & (VLOOKUP(Rebalance!$D$58,$F$2:$G$48,2,FALSE)+ROW()-2)),\"\")","v":{"$error":"#N/A"}},{"$f":"IF(INDIRECT(\"c\" & (VLOOKUP(Rebalance!$D$59,$F$2:$G$48,2,FALSE)+ROW()-2))=Rebalance!$D$59,INDIRECT(\"a\" & (VLOOKUP(Rebalance!$D$59,$F$2:$G$48,2,FALSE)+ROW()-2)),\"\")","v":{"$error":"#N/A"}},{"$f":"IF(INDIRECT(\"c\" & (VLOOKUP(Rebalance!$D$60,$F$2:$G$48,2,FALSE)+ROW()-2))=Rebalance!$D$60,INDIRECT(\"a\" & (VLOOKUP(Rebalance!$D$60,$F$2:$G$48,2,FALSE)+ROW()-2)),\"\")","v":{"$error":"#N/A"}},{"$f":"IF(INDIRECT(\"c\" & (VLOOKUP(Rebalance!$D$61,$F$2:$G$48,2,FALSE)+ROW()-2))=Rebalance!$D$61,INDIRECT(\"a\" & (VLOOKUP(Rebalance!$D$61,$F$2:$G$48,2,FALSE)+ROW()-2)),\"\")","v":{"$error":"#N/A"}},{"$f":"IF(INDIRECT(\"c\" & (VLOOKUP(Rebalance!$D$62,$F$2:$G$48,2,FALSE)+ROW()-2))=Rebalance!$D$62,INDIRECT(\"a\" & (VLOOKUP(Rebalance!$D$62,$F$2:$G$48,2,FALSE)+ROW()-2)),\"\")","v":{"$error":"#N/A"}},{"$f":"IF(INDIRECT(\"c\" & (VLOOKUP(Rebalance!$D$63,$F$2:$G$48,2,FALSE)+ROW()-2))=Rebalance!$D$63,INDIRECT(\"a\" & (VLOOKUP(Rebalance!$D$63,$F$2:$G$48,2,FALSE)+ROW()-2)),\"\")","v":{"$error":"#N/A"}},{"$f":"IF(INDIRECT(\"c\" & (VLOOKUP(Rebalance!$D$64,$F$2:$G$48,2,FALSE)+ROW()-2))=Rebalance!$D$64,INDIRECT(\"a\" & (VLOOKUP(Rebalance!$D$64,$F$2:$G$48,2,FALSE)+ROW()-2)),\"\")","v":{"$error":"#N/A"}},{"$f":"IF(INDIRECT(\"c\" & (VLOOKUP(Rebalance!$D$65,$F$2:$G$48,2,FALSE)+ROW()-2))=Rebalance!$D$65,INDIRECT(\"a\" & (VLOOKUP(Rebalance!$D$65,$F$2:$G$48,2,FALSE)+ROW()-2)),\"\")","v":{"$error":"#N/A"}},{"$f":"IF(INDIRECT(\"c\" & (VLOOKUP(Rebalance!$D$66,$F$2:$G$48,2,FALSE)+ROW()-2))=Rebalance!$D$66,INDIRECT(\"a\" & (VLOOKUP(Rebalance!$D$66,$F$2:$G$48,2,FALSE)+ROW()-2)),\"\")","v":{"$error":"#N/A"}}]
["Analytics Ci Worldwide Flexible FoF B","AWWFB","Boutique Collective Investments (Pty) Ltd",{"$f":"ROW()","v":106},null,null,{"$f":"VLOOKUP(F106,$C$2:$D$599,2,FALSE)","v":{"$error":"#N/A"}},{"$f":"IF(INDIRECT(\"c\" & (VLOOKUP(Rebalance!$D$26,$F$2:$G$48,2,FALSE)+ROW()-2))=Rebalance!$D$26,INDIRECT(\"a\" & (VLOOKUP(Rebalance!$D$26,$F$2:$G$48,2,FALSE)+ROW()-2)),\"\")","v":{"$error":"#N/A"}},{"$f":"IF(INDIRECT(\"c\" & (VLOOKUP(Rebalance!$D$27,$F$2:$G$48,2,FALSE)+ROW()-2))=Rebalance!$D$27,INDIRECT(\"a\" & (VLOOKUP(Rebalance!$D$27,$F$2:$G$48,2,FALSE)+ROW()-2)),\"\")","v":{"$error":"#N/A"}},{"$f":"IF(INDIRECT(\"c\" & (VLOOKUP(Rebalance!$D$28,$F$2:$G$48,2,FALSE)+ROW()-2))=Rebalance!$D$28,INDIRECT(\"a\" & (VLOOKUP(Rebalance!$D$28,$F$2:$G$48,2,FALSE)+ROW()-2)),\"\")","v":{"$error":"#N/A"}},{"$f":"IF(INDIRECT(\"c\" & (VLOOKUP(Rebalance!$D$29,$F$2:$G$48,2,FALSE)+ROW()-2))=Rebalance!$D$29,INDIRECT(\"a\" & (VLOOKUP(Rebalance!$D$29,$F$2:$G$48,2,FALSE)+ROW()-2)),\"\")","v":{"$error":"#N/A"}},{"$f":"IF(INDIRECT(\"c\" & (VLOOKUP(Rebalance!$D$30,$F$2:$G$48,2,FALSE)+ROW()-2))=Rebalance!$D$30,INDIRECT(\"a\" & (VLOOKUP(Rebalance!$D$30,$F$2:$G$48,2,FALSE)+ROW()-2)),\"\")","v":{"$error":"#N/A"}},{"$f":"IF(INDIRECT(\"c\" & (VLOOKUP(Rebalance!$D$31,$F$2:$G$48,2,FALSE)+ROW()-2))=Rebalance!$D$31,INDIRECT(\"a\" & (VLOOKUP(Rebalance!$D$31,$F$2:$G$48,2,FALSE)+ROW()-2)),\"\")","v":{"$error":"#N/A"}},{"$f":"IF(INDIRECT(\"c\" & (VLOOKUP(Rebalance!$D$32,$F$2:$G$48,2,FALSE)+ROW()-2))=Rebalance!$D$32,INDIRECT(\"a\" & (VLOOKUP(Rebalance!$D$32,$F$2:$G$48,2,FALSE)+ROW()-2)),\"\")","v":{"$error":"#N/A"}},{"$f":"IF(INDIRECT(\"c\" & (VLOOKUP(Rebalance!$D$33,$F$2:$G$48,2,FALSE)+ROW()-2))=Rebalance!$D$33,INDIRECT(\"a\" & (VLOOKUP(Rebalance!$D$33,$F$2:$G$48,2,FALSE)+ROW()-2)),\"\")","v":{"$error":"#N/A"}},{"$f":"IF(INDIRECT(\"c\" & (VLOOKUP(Rebalance!$D$34,$F$2:$G$48,2,FALSE)+ROW()-2))=Rebalance!$D$34,INDIRECT(\"a\" & (VLOOKUP(Rebalance!$D$34,$F$2:$G$48,2,FALSE)+ROW()-2)),\"\")","v":{"$error":"#N/A"}},{"$f":"IF(INDIRECT(\"c\" & (VLOOKUP(Rebalance!$D$35,$F$2:$G$48,2,FALSE)+ROW()-2))=Rebalance!$D$35,INDIRECT(\"a\" & (VLOOKUP(Rebalance!$D$35,$F$2:$G$48,2,FALSE)+ROW()-2)),\"\")","v":{"$error":"#N/A"}},{"$f":"IF(INDIRECT(\"c\" & (VLOOKUP(Rebalance!$D$36,$F$2:$G$48,2,FALSE)+ROW()-2))=Rebalance!$D$36,INDIRECT(\"a\" & (VLOOKUP(Rebalance!$D$36,$F$2:$G$48,2,FALSE)+ROW()-2)),\"\")","v":{"$error":"#N/A"}},{"$f":"IF(INDIRECT(\"c\" & (VLOOKUP(Rebalance!$D$37,$F$2:$G$48,2,FALSE)+ROW()-2))=Rebalance!$D$37,INDIRECT(\"a\" & (VLOOKUP(Rebalance!$D$37,$F$2:$G$48,2,FALSE)+ROW()-2)),\"\")","v":{"$error":"#N/A"}},{"$f":"IF(INDIRECT(\"c\" & (VLOOKUP(Rebalance!$D$38,$F$2:$G$48,2,FALSE)+ROW()-2))=Rebalance!$D$38,INDIRECT(\"a\" & (VLOOKUP(Rebalance!$D$38,$F$2:$G$48,2,FALSE)+ROW()-2)),\"\")","v":{"$error":"#N/A"}},{"$f":"IF(INDIRECT(\"c\" & (VLOOKUP(Rebalance!$D$39,$F$2:$G$48,2,FALSE)+ROW()-2))=Rebalance!$D$39,INDIRECT(\"a\" & (VLOOKUP(Rebalance!$D$39,$F$2:$G$48,2,FALSE)+ROW()-2)),\"\")","v":{"$error":"#N/A"}},{"$f":"IF(INDIRECT(\"c\" & (VLOOKUP(Rebalance!$D$40,$F$2:$G$48,2,FALSE)+ROW()-2))=Rebalance!$D$40,INDIRECT(\"a\" & (VLOOKUP(Rebalance!$D$40,$F$2:$G$48,2,FALSE)+ROW()-2)),\"\")","v":{"$error":"#N/A"}},{"$f":"IF(INDIRECT(\"c\" & (VLOOKUP(Rebalance!$D$52,$F$2:$G$48,2,FALSE)+ROW()-2))=Rebalance!$D$52,INDIRECT(\"a\" & (VLOOKUP(Rebalance!$D$52,$F$2:$G$48,2,FALSE)+ROW()-2)),\"\")","v":{"$error":"#N/A"}},{"$f":"IF(INDIRECT(\"c\" & (VLOOKUP(Rebalance!$D$53,$F$2:$G$48,2,FALSE)+ROW()-2))=Rebalance!$D$53,INDIRECT(\"a\" & (VLOOKUP(Rebalance!$D$53,$F$2:$G$48,2,FALSE)+ROW()-2)),\"\")","v":{"$error":"#N/A"}},{"$f":"IF(INDIRECT(\"c\" & (VLOOKUP(Rebalance!$D$54,$F$2:$G$48,2,FALSE)+ROW()-2))=Rebalance!$D$54,INDIRECT(\"a\" & (VLOOKUP(Rebalance!$D$54,$F$2:$G$48,2,FALSE)+ROW()-2)),\"\")","v":{"$error":"#N/A"}},{"$f":"IF(INDIRECT(\"c\" & (VLOOKUP(Rebalance!$D$55,$F$2:$G$48,2,FALSE)+ROW()-2))=Rebalance!$D$55,INDIRECT(\"a\" & (VLOOKUP(Rebalance!$D$55,$F$2:$G$48,2,FALSE)+ROW()-2)),\"\")","v":{"$error":"#N/A"}},{"$f":"IF(INDIRECT(\"c\" & (VLOOKUP(Rebalance!$D$56,$F$2:$G$48,2,FALSE)+ROW()-2))=Rebalance!$D$56,INDIRECT(\"a\" & (VLOOKUP(Rebalance!$D$56,$F$2:$G$48,2,FALSE)+ROW()-2)),\"\")","v":{"$error":"#N/A"}},{"$f":"IF(INDIRECT(\"c\" & (VLOOKUP(Rebalance!$D$57,$F$2:$G$48,2,FALSE)+ROW()-2))=Rebalance!$D$57,INDIRECT(\"a\" & (VLOOKUP(Rebalance!$D$57,$F$2:$G$48,2,FALSE)+ROW()-2)),\"\")","v":{"$error":"#N/A"}},{"$f":"IF(INDIRECT(\"c\" & (VLOOKUP(Rebalance!$D$58,$F$2:$G$48,2,FALSE)+ROW()-2))=Rebalance!$D$58,INDIRECT(\"a\" & (VLOOKUP(Rebalance!$D$58,$F$2:$G$48,2,FALSE)+ROW()-2)),\"\")","v":{"$error":"#N/A"}},{"$f":"IF(INDIRECT(\"c\" & (VLOOKUP(Rebalance!$D$59,$F$2:$G$48,2,FALSE)+ROW()-2))=Rebalance!$D$59,INDIRECT(\"a\" & (VLOOKUP(Rebalance!$D$59,$F$2:$G$48,2,FALSE)+ROW()-2)),\"\")","v":{"$error":"#N/A"}},{"$f":"IF(INDIRECT(\"c\" & (VLOOKUP(Rebalance!$D$60,$F$2:$G$48,2,FALSE)+ROW()-2))=Rebalance!$D$60,INDIRECT(\"a\" & (VLOOKUP(Rebalance!$D$60,$F$2:$G$48,2,FALSE)+ROW()-2)),\"\")","v":{"$error":"#N/A"}},{"$f":"IF(INDIRECT(\"c\" & (VLOOKUP(Rebalance!$D$61,$F$2:$G$48,2,FALSE)+ROW()-2))=Rebalance!$D$61,INDIRECT(\"a\" & (VLOOKUP(Rebalance!$D$61,$F$2:$G$48,2,FALSE)+ROW()-2)),\"\")","v":{"$error":"#N/A"}},{"$f":"IF(INDIRECT(\"c\" & (VLOOKUP(Rebalance!$D$62,$F$2:$G$48,2,FALSE)+ROW()-2))=Rebalance!$D$62,INDIRECT(\"a\" & (VLOOKUP(Rebalance!$D$62,$F$2:$G$48,2,FALSE)+ROW()-2)),\"\")","v":{"$error":"#N/A"}},{"$f":"IF(INDIRECT(\"c\" & (VLOOKUP(Rebalance!$D$63,$F$2:$G$48,2,FALSE)+ROW()-2))=Rebalance!$D$63,INDIRECT(\"a\" & (VLOOKUP(Rebalance!$D$63,$F$2:$G$48,2,FALSE)+ROW()-2)),\"\")","v":{"$error":"#N/A"}},{"$f":"IF(INDIRECT(\"c\" & (VLOOKUP(Rebalance!$D$64,$F$2:$G$48,2,FALSE)+ROW()-2))=Rebalance!$D$64,INDIRECT(\"a\" & (VLOOKUP(Rebalance!$D$64,$F$2:$G$48,2,FALSE)+ROW()-2)),\"\")","v":{"$error":"#N/A"}},{"$f":"IF(INDIRECT(\"c\" & (VLOOKUP(Rebalance!$D$65,$F$2:$G$48,2,FALSE)+ROW()-2))=Rebalance!$D$65,INDIRECT(\"a\" & (VLOOKUP(Rebalance!$D$65,$F$2:$G$48,2,FALSE)+ROW()-2)),\"\")","v":{"$error":"#N/A"}},{"$f":"IF(INDIRECT(\"c\" & (VLOOKUP(Rebalance!$D$66,$F$2:$G$48,2,FALSE)+ROW()-2))=Rebalance!$D$66,INDIRECT(\"a\" & (VLOOKUP(Rebalance!$D$66,$F$2:$G$48,2,FALSE)+ROW()-2)),\"\")","v":{"$error":"#N/A"}}]
["Anchor BCI Africa Flexible Income Fund A","ABAIA","Boutique Collective Investments (Pty) Ltd",{"$f":"ROW()","v":107},null,null,{"$f":"VLOOKUP(F107,$C$2:$D$599,2,FALSE)","v":{"$error":"#N/A"}},{"$f":"IF(INDIRECT(\"c\" & (VLOOKUP(Rebalance!$D$26,$F$2:$G$48,2,FALSE)+ROW()-2))=Rebalance!$D$26,INDIRECT(\"a\" & (VLOOKUP(Rebalance!$D$26,$F$2:$G$48,2,FALSE)+ROW()-2)),\"\")","v":{"$error":"#N/A"}},{"$f":"IF(INDIRECT(\"c\" & (VLOOKUP(Rebalance!$D$27,$F$2:$G$48,2,FALSE)+ROW()-2))=Rebalance!$D$27,INDIRECT(\"a\" & (VLOOKUP(Rebalance!$D$27,$F$2:$G$48,2,FALSE)+ROW()-2)),\"\")","v":{"$error":"#N/A"}},{"$f":"IF(INDIRECT(\"c\" & (VLOOKUP(Rebalance!$D$28,$F$2:$G$48,2,FALSE)+ROW()-2))=Rebalance!$D$28,INDIRECT(\"a\" & (VLOOKUP(Rebalance!$D$28,$F$2:$G$48,2,FALSE)+ROW()-2)),\"\")","v":{"$error":"#N/A"}},{"$f":"IF(INDIRECT(\"c\" & (VLOOKUP(Rebalance!$D$29,$F$2:$G$48,2,FALSE)+ROW()-2))=Rebalance!$D$29,INDIRECT(\"a\" & (VLOOKUP(Rebalance!$D$29,$F$2:$G$48,2,FALSE)+ROW()-2)),\"\")","v":{"$error":"#N/A"}},{"$f":"IF(INDIRECT(\"c\" & (VLOOKUP(Rebalance!$D$30,$F$2:$G$48,2,FALSE)+ROW()-2))=Rebalance!$D$30,INDIRECT(\"a\" & (VLOOKUP(Rebalance!$D$30,$F$2:$G$48,2,FALSE)+ROW()-2)),\"\")","v":{"$error":"#N/A"}},{"$f":"IF(INDIRECT(\"c\" & (VLOOKUP(Rebalance!$D$31,$F$2:$G$48,2,FALSE)+ROW()-2))=Rebalance!$D$31,INDIRECT(\"a\" & (VLOOKUP(Rebalance!$D$31,$F$2:$G$48,2,FALSE)+ROW()-2)),\"\")","v":{"$error":"#N/A"}},{"$f":"IF(INDIRECT(\"c\" & (VLOOKUP(Rebalance!$D$32,$F$2:$G$48,2,FALSE)+ROW()-2))=Rebalance!$D$32,INDIRECT(\"a\" & (VLOOKUP(Rebalance!$D$32,$F$2:$G$48,2,FALSE)+ROW()-2)),\"\")","v":{"$error":"#N/A"}},{"$f":"IF(INDIRECT(\"c\" & (VLOOKUP(Rebalance!$D$33,$F$2:$G$48,2,FALSE)+ROW()-2))=Rebalance!$D$33,INDIRECT(\"a\" & (VLOOKUP(Rebalance!$D$33,$F$2:$G$48,2,FALSE)+ROW()-2)),\"\")","v":{"$error":"#N/A"}},{"$f":"IF(INDIRECT(\"c\" & (VLOOKUP(Rebalance!$D$34,$F$2:$G$48,2,FALSE)+ROW()-2))=Rebalance!$D$34,INDIRECT(\"a\" & (VLOOKUP(Rebalance!$D$34,$F$2:$G$48,2,FALSE)+ROW()-2)),\"\")","v":{"$error":"#N/A"}},{"$f":"IF(INDIRECT(\"c\" & (VLOOKUP(Rebalance!$D$35,$F$2:$G$48,2,FALSE)+ROW()-2))=Rebalance!$D$35,INDIRECT(\"a\" & (VLOOKUP(Rebalance!$D$35,$F$2:$G$48,2,FALSE)+ROW()-2)),\"\")","v":{"$error":"#N/A"}},{"$f":"IF(INDIRECT(\"c\" & (VLOOKUP(Rebalance!$D$36,$F$2:$G$48,2,FALSE)+ROW()-2))=Rebalance!$D$36,INDIRECT(\"a\" & (VLOOKUP(Rebalance!$D$36,$F$2:$G$48,2,FALSE)+ROW()-2)),\"\")","v":{"$error":"#N/A"}},{"$f":"IF(INDIRECT(\"c\" & (VLOOKUP(Rebalance!$D$37,$F$2:$G$48,2,FALSE)+ROW()-2))=Rebalance!$D$37,INDIRECT(\"a\" & (VLOOKUP(Rebalance!$D$37,$F$2:$G$48,2,FALSE)+ROW()-2)),\"\")","v":{"$error":"#N/A"}},{"$f":"IF(INDIRECT(\"c\" & (VLOOKUP(Rebalance!$D$38,$F$2:$G$48,2,FALSE)+ROW()-2))=Rebalance!$D$38,INDIRECT(\"a\" & (VLOOKUP(Rebalance!$D$38,$F$2:$G$48,2,FALSE)+ROW()-2)),\"\")","v":{"$error":"#N/A"}},{"$f":"IF(INDIRECT(\"c\" & (VLOOKUP(Rebalance!$D$39,$F$2:$G$48,2,FALSE)+ROW()-2))=Rebalance!$D$39,INDIRECT(\"a\" & (VLOOKUP(Rebalance!$D$39,$F$2:$G$48,2,FALSE)+ROW()-2)),\"\")","v":{"$error":"#N/A"}},{"$f":"IF(INDIRECT(\"c\" & (VLOOKUP(Rebalance!$D$40,$F$2:$G$48,2,FALSE)+ROW()-2))=Rebalance!$D$40,INDIRECT(\"a\" & (VLOOKUP(Rebalance!$D$40,$F$2:$G$48,2,FALSE)+ROW()-2)),\"\")","v":{"$error":"#N/A"}},{"$f":"IF(INDIRECT(\"c\" & (VLOOKUP(Rebalance!$D$52,$F$2:$G$48,2,FALSE)+ROW()-2))=Rebalance!$D$52,INDIRECT(\"a\" & (VLOOKUP(Rebalance!$D$52,$F$2:$G$48,2,FALSE)+ROW()-2)),\"\")","v":{"$error":"#N/A"}},{"$f":"IF(INDIRECT(\"c\" & (VLOOKUP(Rebalance!$D$53,$F$2:$G$48,2,FALSE)+ROW()-2))=Rebalance!$D$53,INDIRECT(\"a\" & (VLOOKUP(Rebalance!$D$53,$F$2:$G$48,2,FALSE)+ROW()-2)),\"\")","v":{"$error":"#N/A"}},{"$f":"IF(INDIRECT(\"c\" & (VLOOKUP(Rebalance!$D$54,$F$2:$G$48,2,FALSE)+ROW()-2))=Rebalance!$D$54,INDIRECT(\"a\" & (VLOOKUP(Rebalance!$D$54,$F$2:$G$48,2,FALSE)+ROW()-2)),\"\")","v":{"$error":"#N/A"}},{"$f":"IF(INDIRECT(\"c\" & (VLOOKUP(Rebalance!$D$55,$F$2:$G$48,2,FALSE)+ROW()-2))=Rebalance!$D$55,INDIRECT(\"a\" & (VLOOKUP(Rebalance!$D$55,$F$2:$G$48,2,FALSE)+ROW()-2)),\"\")","v":{"$error":"#N/A"}},{"$f":"IF(INDIRECT(\"c\" & (VLOOKUP(Rebalance!$D$56,$F$2:$G$48,2,FALSE)+ROW()-2))=Rebalance!$D$56,INDIRECT(\"a\" & (VLOOKUP(Rebalance!$D$56,$F$2:$G$48,2,FALSE)+ROW()-2)),\"\")","v":{"$error":"#N/A"}},{"$f":"IF(INDIRECT(\"c\" & (VLOOKUP(Rebalance!$D$57,$F$2:$G$48,2,FALSE)+ROW()-2))=Rebalance!$D$57,INDIRECT(\"a\" & (VLOOKUP(Rebalance!$D$57,$F$2:$G$48,2,FALSE)+ROW()-2)),\"\")","v":{"$error":"#N/A"}},{"$f":"IF(INDIRECT(\"c\" & (VLOOKUP(Rebalance!$D$58,$F$2:$G$48,2,FALSE)+ROW()-2))=Rebalance!$D$58,INDIRECT(\"a\" & (VLOOKUP(Rebalance!$D$58,$F$2:$G$48,2,FALSE)+ROW()-2)),\"\")","v":{"$error":"#N/A"}},{"$f":"IF(INDIRECT(\"c\" & (VLOOKUP(Rebalance!$D$59,$F$2:$G$48,2,FALSE)+ROW()-2))=Rebalance!$D$59,INDIRECT(\"a\" & (VLOOKUP(Rebalance!$D$59,$F$2:$G$48,2,FALSE)+ROW()-2)),\"\")","v":{"$error":"#N/A"}},{"$f":"IF(INDIRECT(\"c\" & (VLOOKUP(Rebalance!$D$60,$F$2:$G$48,2,FALSE)+ROW()-2))=Rebalance!$D$60,INDIRECT(\"a\" & (VLOOKUP(Rebalance!$D$60,$F$2:$G$48,2,FALSE)+ROW()-2)),\"\")","v":{"$error":"#N/A"}},{"$f":"IF(INDIRECT(\"c\" & (VLOOKUP(Rebalance!$D$61,$F$2:$G$48,2,FALSE)+ROW()-2))=Rebalance!$D$61,INDIRECT(\"a\" & (VLOOKUP(Rebalance!$D$61,$F$2:$G$48,2,FALSE)+ROW()-2)),\"\")","v":{"$error":"#N/A"}},{"$f":"IF(INDIRECT(\"c\" & (VLOOKUP(Rebalance!$D$62,$F$2:$G$48,2,FALSE)+ROW()-2))=Rebalance!$D$62,INDIRECT(\"a\" & (VLOOKUP(Rebalance!$D$62,$F$2:$G$48,2,FALSE)+ROW()-2)),\"\")","v":{"$error":"#N/A"}},{"$f":"IF(INDIRECT(\"c\" & (VLOOKUP(Rebalance!$D$63,$F$2:$G$48,2,FALSE)+ROW()-2))=Rebalance!$D$63,INDIRECT(\"a\" & (VLOOKUP(Rebalance!$D$63,$F$2:$G$48,2,FALSE)+ROW()-2)),\"\")","v":{"$error":"#N/A"}},{"$f":"IF(INDIRECT(\"c\" & (VLOOKUP(Rebalance!$D$64,$F$2:$G$48,2,FALSE)+ROW()-2))=Rebalance!$D$64,INDIRECT(\"a\" & (VLOOKUP(Rebalance!$D$64,$F$2:$G$48,2,FALSE)+ROW()-2)),\"\")","v":{"$error":"#N/A"}},{"$f":"IF(INDIRECT(\"c\" & (VLOOKUP(Rebalance!$D$65,$F$2:$G$48,2,FALSE)+ROW()-2))=Rebalance!$D$65,INDIRECT(\"a\" & (VLOOKUP(Rebalance!$D$65,$F$2:$G$48,2,FALSE)+ROW()-2)),\"\")","v":{"$error":"#N/A"}},{"$f":"IF(INDIRECT(\"c\" & (VLOOKUP(Rebalance!$D$66,$F$2:$G$48,2,FALSE)+ROW()-2))=Rebalance!$D$66,INDIRECT(\"a\" & (VLOOKUP(Rebalance!$D$66,$F$2:$G$48,2,FALSE)+ROW()-2)),\"\")","v":{"$error":"#N/A"}}]
["Anchor BCI Diversified Growth Fund B","ABDGB","Boutique Collective Investments (Pty) Ltd",{"$f":"ROW()","v":108},null,null,{"$f":"VLOOKUP(F108,$C$2:$D$599,2,FALSE)","v":{"$error":"#N/A"}},{"$f":"IF(INDIRECT(\"c\" & (VLOOKUP(Rebalance!$D$26,$F$2:$G$48,2,FALSE)+ROW()-2))=Rebalance!$D$26,INDIRECT(\"a\" & (VLOOKUP(Rebalance!$D$26,$F$2:$G$48,2,FALSE)+ROW()-2)),\"\")","v":{"$error":"#N/A"}},{"$f":"IF(INDIRECT(\"c\" & (VLOOKUP(Rebalance!$D$27,$F$2:$G$48,2,FALSE)+ROW()-2))=Rebalance!$D$27,INDIRECT(\"a\" & (VLOOKUP(Rebalance!$D$27,$F$2:$G$48,2,FALSE)+ROW()-2)),\"\")","v":{"$error":"#N/A"}},{"$f":"IF(INDIRECT(\"c\" & (VLOOKUP(Rebalance!$D$28,$F$2:$G$48,2,FALSE)+ROW()-2))=Rebalance!$D$28,INDIRECT(\"a\" & (VLOOKUP(Rebalance!$D$28,$F$2:$G$48,2,FALSE)+ROW()-2)),\"\")","v":{"$error":"#N/A"}},{"$f":"IF(INDIRECT(\"c\" & (VLOOKUP(Rebalance!$D$29,$F$2:$G$48,2,FALSE)+ROW()-2))=Rebalance!$D$29,INDIRECT(\"a\" & (VLOOKUP(Rebalance!$D$29,$F$2:$G$48,2,FALSE)+ROW()-2)),\"\")","v":{"$error":"#N/A"}},{"$f":"IF(INDIRECT(\"c\" & (VLOOKUP(Rebalance!$D$30,$F$2:$G$48,2,FALSE)+ROW()-2))=Rebalance!$D$30,INDIRECT(\"a\" & (VLOOKUP(Rebalance!$D$30,$F$2:$G$48,2,FALSE)+ROW()-2)),\"\")","v":{"$error":"#N/A"}},{"$f":"IF(INDIRECT(\"c\" & (VLOOKUP(Rebalance!$D$31,$F$2:$G$48,2,FALSE)+ROW()-2))=Rebalance!$D$31,INDIRECT(\"a\" & (VLOOKUP(Rebalance!$D$31,$F$2:$G$48,2,FALSE)+ROW()-2)),\"\")","v":{"$error":"#N/A"}},{"$f":"IF(INDIRECT(\"c\" & (VLOOKUP(Rebalance!$D$32,$F$2:$G$48,2,FALSE)+ROW()-2))=Rebalance!$D$32,INDIRECT(\"a\" & (VLOOKUP(Rebalance!$D$32,$F$2:$G$48,2,FALSE)+ROW()-2)),\"\")","v":{"$error":"#N/A"}},{"$f":"IF(INDIRECT(\"c\" & (VLOOKUP(Rebalance!$D$33,$F$2:$G$48,2,FALSE)+ROW()-2))=Rebalance!$D$33,INDIRECT(\"a\" & (VLOOKUP(Rebalance!$D$33,$F$2:$G$48,2,FALSE)+ROW()-2)),\"\")","v":{"$error":"#N/A"}},{"$f":"IF(INDIRECT(\"c\" & (VLOOKUP(Rebalance!$D$34,$F$2:$G$48,2,FALSE)+ROW()-2))=Rebalance!$D$34,INDIRECT(\"a\" & (VLOOKUP(Rebalance!$D$34,$F$2:$G$48,2,FALSE)+ROW()-2)),\"\")","v":{"$error":"#N/A"}},{"$f":"IF(INDIRECT(\"c\" & (VLOOKUP(Rebalance!$D$35,$F$2:$G$48,2,FALSE)+ROW()-2))=Rebalance!$D$35,INDIRECT(\"a\" & (VLOOKUP(Rebalance!$D$35,$F$2:$G$48,2,FALSE)+ROW()-2)),\"\")","v":{"$error":"#N/A"}},{"$f":"IF(INDIRECT(\"c\" & (VLOOKUP(Rebalance!$D$36,$F$2:$G$48,2,FALSE)+ROW()-2))=Rebalance!$D$36,INDIRECT(\"a\" & (VLOOKUP(Rebalance!$D$36,$F$2:$G$48,2,FALSE)+ROW()-2)),\"\")","v":{"$error":"#N/A"}},{"$f":"IF(INDIRECT(\"c\" & (VLOOKUP(Rebalance!$D$37,$F$2:$G$48,2,FALSE)+ROW()-2))=Rebalance!$D$37,INDIRECT(\"a\" & (VLOOKUP(Rebalance!$D$37,$F$2:$G$48,2,FALSE)+ROW()-2)),\"\")","v":{"$error":"#N/A"}},{"$f":"IF(INDIRECT(\"c\" & (VLOOKUP(Rebalance!$D$38,$F$2:$G$48,2,FALSE)+ROW()-2))=Rebalance!$D$38,INDIRECT(\"a\" & (VLOOKUP(Rebalance!$D$38,$F$2:$G$48,2,FALSE)+ROW()-2)),\"\")","v":{"$error":"#N/A"}},{"$f":"IF(INDIRECT(\"c\" & (VLOOKUP(Rebalance!$D$39,$F$2:$G$48,2,FALSE)+ROW()-2))=Rebalance!$D$39,INDIRECT(\"a\" & (VLOOKUP(Rebalance!$D$39,$F$2:$G$48,2,FALSE)+ROW()-2)),\"\")","v":{"$error":"#N/A"}},{"$f":"IF(INDIRECT(\"c\" & (VLOOKUP(Rebalance!$D$40,$F$2:$G$48,2,FALSE)+ROW()-2))=Rebalance!$D$40,INDIRECT(\"a\" & (VLOOKUP(Rebalance!$D$40,$F$2:$G$48,2,FALSE)+ROW()-2)),\"\")","v":{"$error":"#N/A"}},{"$f":"IF(INDIRECT(\"c\" & (VLOOKUP(Rebalance!$D$52,$F$2:$G$48,2,FALSE)+ROW()-2))=Rebalance!$D$52,INDIRECT(\"a\" & (VLOOKUP(Rebalance!$D$52,$F$2:$G$48,2,FALSE)+ROW()-2)),\"\")","v":{"$error":"#N/A"}},{"$f":"IF(INDIRECT(\"c\" & (VLOOKUP(Rebalance!$D$53,$F$2:$G$48,2,FALSE)+ROW()-2))=Rebalance!$D$53,INDIRECT(\"a\" & (VLOOKUP(Rebalance!$D$53,$F$2:$G$48,2,FALSE)+ROW()-2)),\"\")","v":{"$error":"#N/A"}},{"$f":"IF(INDIRECT(\"c\" & (VLOOKUP(Rebalance!$D$54,$F$2:$G$48,2,FALSE)+ROW()-2))=Rebalance!$D$54,INDIRECT(\"a\" & (VLOOKUP(Rebalance!$D$54,$F$2:$G$48,2,FALSE)+ROW()-2)),\"\")","v":{"$error":"#N/A"}},{"$f":"IF(INDIRECT(\"c\" & (VLOOKUP(Rebalance!$D$55,$F$2:$G$48,2,FALSE)+ROW()-2))=Rebalance!$D$55,INDIRECT(\"a\" & (VLOOKUP(Rebalance!$D$55,$F$2:$G$48,2,FALSE)+ROW()-2)),\"\")","v":{"$error":"#N/A"}},{"$f":"IF(INDIRECT(\"c\" & (VLOOKUP(Rebalance!$D$56,$F$2:$G$48,2,FALSE)+ROW()-2))=Rebalance!$D$56,INDIRECT(\"a\" & (VLOOKUP(Rebalance!$D$56,$F$2:$G$48,2,FALSE)+ROW()-2)),\"\")","v":{"$error":"#N/A"}},{"$f":"IF(INDIRECT(\"c\" & (VLOOKUP(Rebalance!$D$57,$F$2:$G$48,2,FALSE)+ROW()-2))=Rebalance!$D$57,INDIRECT(\"a\" & (VLOOKUP(Rebalance!$D$57,$F$2:$G$48,2,FALSE)+ROW()-2)),\"\")","v":{"$error":"#N/A"}},{"$f":"IF(INDIRECT(\"c\" & (VLOOKUP(Rebalance!$D$58,$F$2:$G$48,2,FALSE)+ROW()-2))=Rebalance!$D$58,INDIRECT(\"a\" & (VLOOKUP(Rebalance!$D$58,$F$2:$G$48,2,FALSE)+ROW()-2)),\"\")","v":{"$error":"#N/A"}},{"$f":"IF(INDIRECT(\"c\" & (VLOOKUP(Rebalance!$D$59,$F$2:$G$48,2,FALSE)+ROW()-2))=Rebalance!$D$59,INDIRECT(\"a\" & (VLOOKUP(Rebalance!$D$59,$F$2:$G$48,2,FALSE)+ROW()-2)),\"\")","v":{"$error":"#N/A"}},{"$f":"IF(INDIRECT(\"c\" & (VLOOKUP(Rebalance!$D$60,$F$2:$G$48,2,FALSE)+ROW()-2))=Rebalance!$D$60,INDIRECT(\"a\" & (VLOOKUP(Rebalance!$D$60,$F$2:$G$48,2,FALSE)+ROW()-2)),\"\")","v":{"$error":"#N/A"}},{"$f":"IF(INDIRECT(\"c\" & (VLOOKUP(Rebalance!$D$61,$F$2:$G$48,2,FALSE)+ROW()-2))=Rebalance!$D$61,INDIRECT(\"a\" & (VLOOKUP(Rebalance!$D$61,$F$2:$G$48,2,FALSE)+ROW()-2)),\"\")","v":{"$error":"#N/A"}},{"$f":"IF(INDIRECT(\"c\" & (VLOOKUP(Rebalance!$D$62,$F$2:$G$48,2,FALSE)+ROW()-2))=Rebalance!$D$62,INDIRECT(\"a\" & (VLOOKUP(Rebalance!$D$62,$F$2:$G$48,2,FALSE)+ROW()-2)),\"\")","v":{"$error":"#N/A"}},{"$f":"IF(INDIRECT(\"c\" & (VLOOKUP(Rebalance!$D$63,$F$2:$G$48,2,FALSE)+ROW()-2))=Rebalance!$D$63,INDIRECT(\"a\" & (VLOOKUP(Rebalance!$D$63,$F$2:$G$48,2,FALSE)+ROW()-2)),\"\")","v":{"$error":"#N/A"}},{"$f":"IF(INDIRECT(\"c\" & (VLOOKUP(Rebalance!$D$64,$F$2:$G$48,2,FALSE)+ROW()-2))=Rebalance!$D$64,INDIRECT(\"a\" & (VLOOKUP(Rebalance!$D$64,$F$2:$G$48,2,FALSE)+ROW()-2)),\"\")","v":{"$error":"#N/A"}},{"$f":"IF(INDIRECT(\"c\" & (VLOOKUP(Rebalance!$D$65,$F$2:$G$48,2,FALSE)+ROW()-2))=Rebalance!$D$65,INDIRECT(\"a\" & (VLOOKUP(Rebalance!$D$65,$F$2:$G$48,2,FALSE)+ROW()-2)),\"\")","v":{"$error":"#N/A"}},{"$f":"IF(INDIRECT(\"c\" & (VLOOKUP(Rebalance!$D$66,$F$2:$G$48,2,FALSE)+ROW()-2))=Rebalance!$D$66,INDIRECT(\"a\" & (VLOOKUP(Rebalance!$D$66,$F$2:$G$48,2,FALSE)+ROW()-2)),\"\")","v":{"$error":"#N/A"}}]
["Anchor BCI Equity Fund B","AMEFB","Boutique Collective Investments (Pty) Ltd",{"$f":"ROW()","v":109},null,null,{"$f":"VLOOKUP(F109,$C$2:$D$599,2,FALSE)","v":{"$error":"#N/A"}},{"$f":"IF(INDIRECT(\"c\" & (VLOOKUP(Rebalance!$D$26,$F$2:$G$48,2,FALSE)+ROW()-2))=Rebalance!$D$26,INDIRECT(\"a\" & (VLOOKUP(Rebalance!$D$26,$F$2:$G$48,2,FALSE)+ROW()-2)),\"\")","v":{"$error":"#N/A"}},{"$f":"IF(INDIRECT(\"c\" & (VLOOKUP(Rebalance!$D$27,$F$2:$G$48,2,FALSE)+ROW()-2))=Rebalance!$D$27,INDIRECT(\"a\" & (VLOOKUP(Rebalance!$D$27,$F$2:$G$48,2,FALSE)+ROW()-2)),\"\")","v":{"$error":"#N/A"}},{"$f":"IF(INDIRECT(\"c\" & (VLOOKUP(Rebalance!$D$28,$F$2:$G$48,2,FALSE)+ROW()-2))=Rebalance!$D$28,INDIRECT(\"a\" & (VLOOKUP(Rebalance!$D$28,$F$2:$G$48,2,FALSE)+ROW()-2)),\"\")","v":{"$error":"#N/A"}},{"$f":"IF(INDIRECT(\"c\" & (VLOOKUP(Rebalance!$D$29,$F$2:$G$48,2,FALSE)+ROW()-2))=Rebalance!$D$29,INDIRECT(\"a\" & (VLOOKUP(Rebalance!$D$29,$F$2:$G$48,2,FALSE)+ROW()-2)),\"\")","v":{"$error":"#N/A"}},{"$f":"IF(INDIRECT(\"c\" & (VLOOKUP(Rebalance!$D$30,$F$2:$G$48,2,FALSE)+ROW()-2))=Rebalance!$D$30,INDIRECT(\"a\" & (VLOOKUP(Rebalance!$D$30,$F$2:$G$48,2,FALSE)+ROW()-2)),\"\")","v":{"$error":"#N/A"}},{"$f":"IF(INDIRECT(\"c\" & (VLOOKUP(Rebalance!$D$31,$F$2:$G$48,2,FALSE)+ROW()-2))=Rebalance!$D$31,INDIRECT(\"a\" & (VLOOKUP(Rebalance!$D$31,$F$2:$G$48,2,FALSE)+ROW()-2)),\"\")","v":{"$error":"#N/A"}},{"$f":"IF(INDIRECT(\"c\" & (VLOOKUP(Rebalance!$D$32,$F$2:$G$48,2,FALSE)+ROW()-2))=Rebalance!$D$32,INDIRECT(\"a\" & (VLOOKUP(Rebalance!$D$32,$F$2:$G$48,2,FALSE)+ROW()-2)),\"\")","v":{"$error":"#N/A"}},{"$f":"IF(INDIRECT(\"c\" & (VLOOKUP(Rebalance!$D$33,$F$2:$G$48,2,FALSE)+ROW()-2))=Rebalance!$D$33,INDIRECT(\"a\" & (VLOOKUP(Rebalance!$D$33,$F$2:$G$48,2,FALSE)+ROW()-2)),\"\")","v":{"$error":"#N/A"}},{"$f":"IF(INDIRECT(\"c\" & (VLOOKUP(Rebalance!$D$34,$F$2:$G$48,2,FALSE)+ROW()-2))=Rebalance!$D$34,INDIRECT(\"a\" & (VLOOKUP(Rebalance!$D$34,$F$2:$G$48,2,FALSE)+ROW()-2)),\"\")","v":{"$error":"#N/A"}},{"$f":"IF(INDIRECT(\"c\" & (VLOOKUP(Rebalance!$D$35,$F$2:$G$48,2,FALSE)+ROW()-2))=Rebalance!$D$35,INDIRECT(\"a\" & (VLOOKUP(Rebalance!$D$35,$F$2:$G$48,2,FALSE)+ROW()-2)),\"\")","v":{"$error":"#N/A"}},{"$f":"IF(INDIRECT(\"c\" & (VLOOKUP(Rebalance!$D$36,$F$2:$G$48,2,FALSE)+ROW()-2))=Rebalance!$D$36,INDIRECT(\"a\" & (VLOOKUP(Rebalance!$D$36,$F$2:$G$48,2,FALSE)+ROW()-2)),\"\")","v":{"$error":"#N/A"}},{"$f":"IF(INDIRECT(\"c\" & (VLOOKUP(Rebalance!$D$37,$F$2:$G$48,2,FALSE)+ROW()-2))=Rebalance!$D$37,INDIRECT(\"a\" & (VLOOKUP(Rebalance!$D$37,$F$2:$G$48,2,FALSE)+ROW()-2)),\"\")","v":{"$error":"#N/A"}},{"$f":"IF(INDIRECT(\"c\" & (VLOOKUP(Rebalance!$D$38,$F$2:$G$48,2,FALSE)+ROW()-2))=Rebalance!$D$38,INDIRECT(\"a\" & (VLOOKUP(Rebalance!$D$38,$F$2:$G$48,2,FALSE)+ROW()-2)),\"\")","v":{"$error":"#N/A"}},{"$f":"IF(INDIRECT(\"c\" & (VLOOKUP(Rebalance!$D$39,$F$2:$G$48,2,FALSE)+ROW()-2))=Rebalance!$D$39,INDIRECT(\"a\" & (VLOOKUP(Rebalance!$D$39,$F$2:$G$48,2,FALSE)+ROW()-2)),\"\")","v":{"$error":"#N/A"}},{"$f":"IF(INDIRECT(\"c\" & (VLOOKUP(Rebalance!$D$40,$F$2:$G$48,2,FALSE)+ROW()-2))=Rebalance!$D$40,INDIRECT(\"a\" & (VLOOKUP(Rebalance!$D$40,$F$2:$G$48,2,FALSE)+ROW()-2)),\"\")","v":{"$error":"#N/A"}},{"$f":"IF(INDIRECT(\"c\" & (VLOOKUP(Rebalance!$D$52,$F$2:$G$48,2,FALSE)+ROW()-2))=Rebalance!$D$52,INDIRECT(\"a\" & (VLOOKUP(Rebalance!$D$52,$F$2:$G$48,2,FALSE)+ROW()-2)),\"\")","v":{"$error":"#N/A"}},{"$f":"IF(INDIRECT(\"c\" & (VLOOKUP(Rebalance!$D$53,$F$2:$G$48,2,FALSE)+ROW()-2))=Rebalance!$D$53,INDIRECT(\"a\" & (VLOOKUP(Rebalance!$D$53,$F$2:$G$48,2,FALSE)+ROW()-2)),\"\")","v":{"$error":"#N/A"}},{"$f":"IF(INDIRECT(\"c\" & (VLOOKUP(Rebalance!$D$54,$F$2:$G$48,2,FALSE)+ROW()-2))=Rebalance!$D$54,INDIRECT(\"a\" & (VLOOKUP(Rebalance!$D$54,$F$2:$G$48,2,FALSE)+ROW()-2)),\"\")","v":{"$error":"#N/A"}},{"$f":"IF(INDIRECT(\"c\" & (VLOOKUP(Rebalance!$D$55,$F$2:$G$48,2,FALSE)+ROW()-2))=Rebalance!$D$55,INDIRECT(\"a\" & (VLOOKUP(Rebalance!$D$55,$F$2:$G$48,2,FALSE)+ROW()-2)),\"\")","v":{"$error":"#N/A"}},{"$f":"IF(INDIRECT(\"c\" & (VLOOKUP(Rebalance!$D$56,$F$2:$G$48,2,FALSE)+ROW()-2))=Rebalance!$D$56,INDIRECT(\"a\" & (VLOOKUP(Rebalance!$D$56,$F$2:$G$48,2,FALSE)+ROW()-2)),\"\")","v":{"$error":"#N/A"}},{"$f":"IF(INDIRECT(\"c\" & (VLOOKUP(Rebalance!$D$57,$F$2:$G$48,2,FALSE)+ROW()-2))=Rebalance!$D$57,INDIRECT(\"a\" & (VLOOKUP(Rebalance!$D$57,$F$2:$G$48,2,FALSE)+ROW()-2)),\"\")","v":{"$error":"#N/A"}},{"$f":"IF(INDIRECT(\"c\" & (VLOOKUP(Rebalance!$D$58,$F$2:$G$48,2,FALSE)+ROW()-2))=Rebalance!$D$58,INDIRECT(\"a\" & (VLOOKUP(Rebalance!$D$58,$F$2:$G$48,2,FALSE)+ROW()-2)),\"\")","v":{"$error":"#N/A"}},{"$f":"IF(INDIRECT(\"c\" & (VLOOKUP(Rebalance!$D$59,$F$2:$G$48,2,FALSE)+ROW()-2))=Rebalance!$D$59,INDIRECT(\"a\" & (VLOOKUP(Rebalance!$D$59,$F$2:$G$48,2,FALSE)+ROW()-2)),\"\")","v":{"$error":"#N/A"}},{"$f":"IF(INDIRECT(\"c\" & (VLOOKUP(Rebalance!$D$60,$F$2:$G$48,2,FALSE)+ROW()-2))=Rebalance!$D$60,INDIRECT(\"a\" & (VLOOKUP(Rebalance!$D$60,$F$2:$G$48,2,FALSE)+ROW()-2)),\"\")","v":{"$error":"#N/A"}},{"$f":"IF(INDIRECT(\"c\" & (VLOOKUP(Rebalance!$D$61,$F$2:$G$48,2,FALSE)+ROW()-2))=Rebalance!$D$61,INDIRECT(\"a\" & (VLOOKUP(Rebalance!$D$61,$F$2:$G$48,2,FALSE)+ROW()-2)),\"\")","v":{"$error":"#N/A"}},{"$f":"IF(INDIRECT(\"c\" & (VLOOKUP(Rebalance!$D$62,$F$2:$G$48,2,FALSE)+ROW()-2))=Rebalance!$D$62,INDIRECT(\"a\" & (VLOOKUP(Rebalance!$D$62,$F$2:$G$48,2,FALSE)+ROW()-2)),\"\")","v":{"$error":"#N/A"}},{"$f":"IF(INDIRECT(\"c\" & (VLOOKUP(Rebalance!$D$63,$F$2:$G$48,2,FALSE)+ROW()-2))=Rebalance!$D$63,INDIRECT(\"a\" & (VLOOKUP(Rebalance!$D$63,$F$2:$G$48,2,FALSE)+ROW()-2)),\"\")","v":{"$error":"#N/A"}},{"$f":"IF(INDIRECT(\"c\" & (VLOOKUP(Rebalance!$D$64,$F$2:$G$48,2,FALSE)+ROW()-2))=Rebalance!$D$64,INDIRECT(\"a\" & (VLOOKUP(Rebalance!$D$64,$F$2:$G$48,2,FALSE)+ROW()-2)),\"\")","v":{"$error":"#N/A"}},{"$f":"IF(INDIRECT(\"c\" & (VLOOKUP(Rebalance!$D$65,$F$2:$G$48,2,FALSE)+ROW()-2))=Rebalance!$D$65,INDIRECT(\"a\" & (VLOOKUP(Rebalance!$D$65,$F$2:$G$48,2,FALSE)+ROW()-2)),\"\")","v":{"$error":"#N/A"}},{"$f":"IF(INDIRECT(\"c\" & (VLOOKUP(Rebalance!$D$66,$F$2:$G$48,2,FALSE)+ROW()-2))=Rebalance!$D$66,INDIRECT(\"a\" & (VLOOKUP(Rebalance!$D$66,$F$2:$G$48,2,FALSE)+ROW()-2)),\"\")","v":{"$error":"#N/A"}}]
["Anchor BCI Flexible Income Fund C","ABFIC","Boutique Collective Investments (Pty) Ltd",{"$f":"ROW()","v":110},null,null,{"$f":"VLOOKUP(F110,$C$2:$D$599,2,FALSE)","v":{"$error":"#N/A"}},{"$f":"IF(INDIRECT(\"c\" & (VLOOKUP(Rebalance!$D$26,$F$2:$G$48,2,FALSE)+ROW()-2))=Rebalance!$D$26,INDIRECT(\"a\" & (VLOOKUP(Rebalance!$D$26,$F$2:$G$48,2,FALSE)+ROW()-2)),\"\")","v":{"$error":"#N/A"}},{"$f":"IF(INDIRECT(\"c\" & (VLOOKUP(Rebalance!$D$27,$F$2:$G$48,2,FALSE)+ROW()-2))=Rebalance!$D$27,INDIRECT(\"a\" & (VLOOKUP(Rebalance!$D$27,$F$2:$G$48,2,FALSE)+ROW()-2)),\"\")","v":{"$error":"#N/A"}},{"$f":"IF(INDIRECT(\"c\" & (VLOOKUP(Rebalance!$D$28,$F$2:$G$48,2,FALSE)+ROW()-2))=Rebalance!$D$28,INDIRECT(\"a\" & (VLOOKUP(Rebalance!$D$28,$F$2:$G$48,2,FALSE)+ROW()-2)),\"\")","v":{"$error":"#N/A"}},{"$f":"IF(INDIRECT(\"c\" & (VLOOKUP(Rebalance!$D$29,$F$2:$G$48,2,FALSE)+ROW()-2))=Rebalance!$D$29,INDIRECT(\"a\" & (VLOOKUP(Rebalance!$D$29,$F$2:$G$48,2,FALSE)+ROW()-2)),\"\")","v":{"$error":"#N/A"}},{"$f":"IF(INDIRECT(\"c\" & (VLOOKUP(Rebalance!$D$30,$F$2:$G$48,2,FALSE)+ROW()-2))=Rebalance!$D$30,INDIRECT(\"a\" & (VLOOKUP(Rebalance!$D$30,$F$2:$G$48,2,FALSE)+ROW()-2)),\"\")","v":{"$error":"#N/A"}},{"$f":"IF(INDIRECT(\"c\" & (VLOOKUP(Rebalance!$D$31,$F$2:$G$48,2,FALSE)+ROW()-2))=Rebalance!$D$31,INDIRECT(\"a\" & (VLOOKUP(Rebalance!$D$31,$F$2:$G$48,2,FALSE)+ROW()-2)),\"\")","v":{"$error":"#N/A"}},{"$f":"IF(INDIRECT(\"c\" & (VLOOKUP(Rebalance!$D$32,$F$2:$G$48,2,FALSE)+ROW()-2))=Rebalance!$D$32,INDIRECT(\"a\" & (VLOOKUP(Rebalance!$D$32,$F$2:$G$48,2,FALSE)+ROW()-2)),\"\")","v":{"$error":"#N/A"}},{"$f":"IF(INDIRECT(\"c\" & (VLOOKUP(Rebalance!$D$33,$F$2:$G$48,2,FALSE)+ROW()-2))=Rebalance!$D$33,INDIRECT(\"a\" & (VLOOKUP(Rebalance!$D$33,$F$2:$G$48,2,FALSE)+ROW()-2)),\"\")","v":{"$error":"#N/A"}},{"$f":"IF(INDIRECT(\"c\" & (VLOOKUP(Rebalance!$D$34,$F$2:$G$48,2,FALSE)+ROW()-2))=Rebalance!$D$34,INDIRECT(\"a\" & (VLOOKUP(Rebalance!$D$34,$F$2:$G$48,2,FALSE)+ROW()-2)),\"\")","v":{"$error":"#N/A"}},{"$f":"IF(INDIRECT(\"c\" & (VLOOKUP(Rebalance!$D$35,$F$2:$G$48,2,FALSE)+ROW()-2))=Rebalance!$D$35,INDIRECT(\"a\" & (VLOOKUP(Rebalance!$D$35,$F$2:$G$48,2,FALSE)+ROW()-2)),\"\")","v":{"$error":"#N/A"}},{"$f":"IF(INDIRECT(\"c\" & (VLOOKUP(Rebalance!$D$36,$F$2:$G$48,2,FALSE)+ROW()-2))=Rebalance!$D$36,INDIRECT(\"a\" & (VLOOKUP(Rebalance!$D$36,$F$2:$G$48,2,FALSE)+ROW()-2)),\"\")","v":{"$error":"#N/A"}},{"$f":"IF(INDIRECT(\"c\" & (VLOOKUP(Rebalance!$D$37,$F$2:$G$48,2,FALSE)+ROW()-2))=Rebalance!$D$37,INDIRECT(\"a\" & (VLOOKUP(Rebalance!$D$37,$F$2:$G$48,2,FALSE)+ROW()-2)),\"\")","v":{"$error":"#N/A"}},{"$f":"IF(INDIRECT(\"c\" & (VLOOKUP(Rebalance!$D$38,$F$2:$G$48,2,FALSE)+ROW()-2))=Rebalance!$D$38,INDIRECT(\"a\" & (VLOOKUP(Rebalance!$D$38,$F$2:$G$48,2,FALSE)+ROW()-2)),\"\")","v":{"$error":"#N/A"}},{"$f":"IF(INDIRECT(\"c\" & (VLOOKUP(Rebalance!$D$39,$F$2:$G$48,2,FALSE)+ROW()-2))=Rebalance!$D$39,INDIRECT(\"a\" & (VLOOKUP(Rebalance!$D$39,$F$2:$G$48,2,FALSE)+ROW()-2)),\"\")","v":{"$error":"#N/A"}},{"$f":"IF(INDIRECT(\"c\" & (VLOOKUP(Rebalance!$D$40,$F$2:$G$48,2,FALSE)+ROW()-2))=Rebalance!$D$40,INDIRECT(\"a\" & (VLOOKUP(Rebalance!$D$40,$F$2:$G$48,2,FALSE)+ROW()-2)),\"\")","v":{"$error":"#N/A"}},{"$f":"IF(INDIRECT(\"c\" & (VLOOKUP(Rebalance!$D$52,$F$2:$G$48,2,FALSE)+ROW()-2))=Rebalance!$D$52,INDIRECT(\"a\" & (VLOOKUP(Rebalance!$D$52,$F$2:$G$48,2,FALSE)+ROW()-2)),\"\")","v":{"$error":"#N/A"}},{"$f":"IF(INDIRECT(\"c\" & (VLOOKUP(Rebalance!$D$53,$F$2:$G$48,2,FALSE)+ROW()-2))=Rebalance!$D$53,INDIRECT(\"a\" & (VLOOKUP(Rebalance!$D$53,$F$2:$G$48,2,FALSE)+ROW()-2)),\"\")","v":{"$error":"#N/A"}},{"$f":"IF(INDIRECT(\"c\" & (VLOOKUP(Rebalance!$D$54,$F$2:$G$48,2,FALSE)+ROW()-2))=Rebalance!$D$54,INDIRECT(\"a\" & (VLOOKUP(Rebalance!$D$54,$F$2:$G$48,2,FALSE)+ROW()-2)),\"\")","v":{"$error":"#N/A"}},{"$f":"IF(INDIRECT(\"c\" & (VLOOKUP(Rebalance!$D$55,$F$2:$G$48,2,FALSE)+ROW()-2))=Rebalance!$D$55,INDIRECT(\"a\" & (VLOOKUP(Rebalance!$D$55,$F$2:$G$48,2,FALSE)+ROW()-2)),\"\")","v":{"$error":"#N/A"}},{"$f":"IF(INDIRECT(\"c\" & (VLOOKUP(Rebalance!$D$56,$F$2:$G$48,2,FALSE)+ROW()-2))=Rebalance!$D$56,INDIRECT(\"a\" & (VLOOKUP(Rebalance!$D$56,$F$2:$G$48,2,FALSE)+ROW()-2)),\"\")","v":{"$error":"#N/A"}},{"$f":"IF(INDIRECT(\"c\" & (VLOOKUP(Rebalance!$D$57,$F$2:$G$48,2,FALSE)+ROW()-2))=Rebalance!$D$57,INDIRECT(\"a\" & (VLOOKUP(Rebalance!$D$57,$F$2:$G$48,2,FALSE)+ROW()-2)),\"\")","v":{"$error":"#N/A"}},{"$f":"IF(INDIRECT(\"c\" & (VLOOKUP(Rebalance!$D$58,$F$2:$G$48,2,FALSE)+ROW()-2))=Rebalance!$D$58,INDIRECT(\"a\" & (VLOOKUP(Rebalance!$D$58,$F$2:$G$48,2,FALSE)+ROW()-2)),\"\")","v":{"$error":"#N/A"}},{"$f":"IF(INDIRECT(\"c\" & (VLOOKUP(Rebalance!$D$59,$F$2:$G$48,2,FALSE)+ROW()-2))=Rebalance!$D$59,INDIRECT(\"a\" & (VLOOKUP(Rebalance!$D$59,$F$2:$G$48,2,FALSE)+ROW()-2)),\"\")","v":{"$error":"#N/A"}},{"$f":"IF(INDIRECT(\"c\" & (VLOOKUP(Rebalance!$D$60,$F$2:$G$48,2,FALSE)+ROW()-2))=Rebalance!$D$60,INDIRECT(\"a\" & (VLOOKUP(Rebalance!$D$60,$F$2:$G$48,2,FALSE)+ROW()-2)),\"\")","v":{"$error":"#N/A"}},{"$f":"IF(INDIRECT(\"c\" & (VLOOKUP(Rebalance!$D$61,$F$2:$G$48,2,FALSE)+ROW()-2))=Rebalance!$D$61,INDIRECT(\"a\" & (VLOOKUP(Rebalance!$D$61,$F$2:$G$48,2,FALSE)+ROW()-2)),\"\")","v":{"$error":"#N/A"}},{"$f":"IF(INDIRECT(\"c\" & (VLOOKUP(Rebalance!$D$62,$F$2:$G$48,2,FALSE)+ROW()-2))=Rebalance!$D$62,INDIRECT(\"a\" & (VLOOKUP(Rebalance!$D$62,$F$2:$G$48,2,FALSE)+ROW()-2)),\"\")","v":{"$error":"#N/A"}},{"$f":"IF(INDIRECT(\"c\" & (VLOOKUP(Rebalance!$D$63,$F$2:$G$48,2,FALSE)+ROW()-2))=Rebalance!$D$63,INDIRECT(\"a\" & (VLOOKUP(Rebalance!$D$63,$F$2:$G$48,2,FALSE)+ROW()-2)),\"\")","v":{"$error":"#N/A"}},{"$f":"IF(INDIRECT(\"c\" & (VLOOKUP(Rebalance!$D$64,$F$2:$G$48,2,FALSE)+ROW()-2))=Rebalance!$D$64,INDIRECT(\"a\" & (VLOOKUP(Rebalance!$D$64,$F$2:$G$48,2,FALSE)+ROW()-2)),\"\")","v":{"$error":"#N/A"}},{"$f":"IF(INDIRECT(\"c\" & (VLOOKUP(Rebalance!$D$65,$F$2:$G$48,2,FALSE)+ROW()-2))=Rebalance!$D$65,INDIRECT(\"a\" & (VLOOKUP(Rebalance!$D$65,$F$2:$G$48,2,FALSE)+ROW()-2)),\"\")","v":{"$error":"#N/A"}},{"$f":"IF(INDIRECT(\"c\" & (VLOOKUP(Rebalance!$D$66,$F$2:$G$48,2,FALSE)+ROW()-2))=Rebalance!$D$66,INDIRECT(\"a\" & (VLOOKUP(Rebalance!$D$66,$F$2:$G$48,2,FALSE)+ROW()-2)),\"\")","v":{"$error":"#N/A"}}]
["Anchor BCI Equity Fund A","AMEFA","Boutique Collective Investments (Pty) Ltd",{"$f":"ROW()","v":111},null,null,{"$f":"VLOOKUP(F111,$C$2:$D$599,2,FALSE)","v":{"$error":"#N/A"}},{"$f":"IF(INDIRECT(\"c\" & (VLOOKUP(Rebalance!$D$26,$F$2:$G$48,2,FALSE)+ROW()-2))=Rebalance!$D$26,INDIRECT(\"a\" & (VLOOKUP(Rebalance!$D$26,$F$2:$G$48,2,FALSE)+ROW()-2)),\"\")","v":{"$error":"#N/A"}},{"$f":"IF(INDIRECT(\"c\" & (VLOOKUP(Rebalance!$D$27,$F$2:$G$48,2,FALSE)+ROW()-2))=Rebalance!$D$27,INDIRECT(\"a\" & (VLOOKUP(Rebalance!$D$27,$F$2:$G$48,2,FALSE)+ROW()-2)),\"\")","v":{"$error":"#N/A"}},{"$f":"IF(INDIRECT(\"c\" & (VLOOKUP(Rebalance!$D$28,$F$2:$G$48,2,FALSE)+ROW()-2))=Rebalance!$D$28,INDIRECT(\"a\" & (VLOOKUP(Rebalance!$D$28,$F$2:$G$48,2,FALSE)+ROW()-2)),\"\")","v":{"$error":"#N/A"}},{"$f":"IF(INDIRECT(\"c\" & (VLOOKUP(Rebalance!$D$29,$F$2:$G$48,2,FALSE)+ROW()-2))=Rebalance!$D$29,INDIRECT(\"a\" & (VLOOKUP(Rebalance!$D$29,$F$2:$G$48,2,FALSE)+ROW()-2)),\"\")","v":{"$error":"#N/A"}},{"$f":"IF(INDIRECT(\"c\" & (VLOOKUP(Rebalance!$D$30,$F$2:$G$48,2,FALSE)+ROW()-2))=Rebalance!$D$30,INDIRECT(\"a\" & (VLOOKUP(Rebalance!$D$30,$F$2:$G$48,2,FALSE)+ROW()-2)),\"\")","v":{"$error":"#N/A"}},{"$f":"IF(INDIRECT(\"c\" & (VLOOKUP(Rebalance!$D$31,$F$2:$G$48,2,FALSE)+ROW()-2))=Rebalance!$D$31,INDIRECT(\"a\" & (VLOOKUP(Rebalance!$D$31,$F$2:$G$48,2,FALSE)+ROW()-2)),\"\")","v":{"$error":"#N/A"}},{"$f":"IF(INDIRECT(\"c\" & (VLOOKUP(Rebalance!$D$32,$F$2:$G$48,2,FALSE)+ROW()-2))=Rebalance!$D$32,INDIRECT(\"a\" & (VLOOKUP(Rebalance!$D$32,$F$2:$G$48,2,FALSE)+ROW()-2)),\"\")","v":{"$error":"#N/A"}},{"$f":"IF(INDIRECT(\"c\" & (VLOOKUP(Rebalance!$D$33,$F$2:$G$48,2,FALSE)+ROW()-2))=Rebalance!$D$33,INDIRECT(\"a\" & (VLOOKUP(Rebalance!$D$33,$F$2:$G$48,2,FALSE)+ROW()-2)),\"\")","v":{"$error":"#N/A"}},{"$f":"IF(INDIRECT(\"c\" & (VLOOKUP(Rebalance!$D$34,$F$2:$G$48,2,FALSE)+ROW()-2))=Rebalance!$D$34,INDIRECT(\"a\" & (VLOOKUP(Rebalance!$D$34,$F$2:$G$48,2,FALSE)+ROW()-2)),\"\")","v":{"$error":"#N/A"}},{"$f":"IF(INDIRECT(\"c\" & (VLOOKUP(Rebalance!$D$35,$F$2:$G$48,2,FALSE)+ROW()-2))=Rebalance!$D$35,INDIRECT(\"a\" & (VLOOKUP(Rebalance!$D$35,$F$2:$G$48,2,FALSE)+ROW()-2)),\"\")","v":{"$error":"#N/A"}},{"$f":"IF(INDIRECT(\"c\" & (VLOOKUP(Rebalance!$D$36,$F$2:$G$48,2,FALSE)+ROW()-2))=Rebalance!$D$36,INDIRECT(\"a\" & (VLOOKUP(Rebalance!$D$36,$F$2:$G$48,2,FALSE)+ROW()-2)),\"\")","v":{"$error":"#N/A"}},{"$f":"IF(INDIRECT(\"c\" & (VLOOKUP(Rebalance!$D$37,$F$2:$G$48,2,FALSE)+ROW()-2))=Rebalance!$D$37,INDIRECT(\"a\" & (VLOOKUP(Rebalance!$D$37,$F$2:$G$48,2,FALSE)+ROW()-2)),\"\")","v":{"$error":"#N/A"}},{"$f":"IF(INDIRECT(\"c\" & (VLOOKUP(Rebalance!$D$38,$F$2:$G$48,2,FALSE)+ROW()-2))=Rebalance!$D$38,INDIRECT(\"a\" & (VLOOKUP(Rebalance!$D$38,$F$2:$G$48,2,FALSE)+ROW()-2)),\"\")","v":{"$error":"#N/A"}},{"$f":"IF(INDIRECT(\"c\" & (VLOOKUP(Rebalance!$D$39,$F$2:$G$48,2,FALSE)+ROW()-2))=Rebalance!$D$39,INDIRECT(\"a\" & (VLOOKUP(Rebalance!$D$39,$F$2:$G$48,2,FALSE)+ROW()-2)),\"\")","v":{"$error":"#N/A"}},{"$f":"IF(INDIRECT(\"c\" & (VLOOKUP(Rebalance!$D$40,$F$2:$G$48,2,FALSE)+ROW()-2))=Rebalance!$D$40,INDIRECT(\"a\" & (VLOOKUP(Rebalance!$D$40,$F$2:$G$48,2,FALSE)+ROW()-2)),\"\")","v":{"$error":"#N/A"}},{"$f":"IF(INDIRECT(\"c\" & (VLOOKUP(Rebalance!$D$52,$F$2:$G$48,2,FALSE)+ROW()-2))=Rebalance!$D$52,INDIRECT(\"a\" & (VLOOKUP(Rebalance!$D$52,$F$2:$G$48,2,FALSE)+ROW()-2)),\"\")","v":{"$error":"#N/A"}},{"$f":"IF(INDIRECT(\"c\" & (VLOOKUP(Rebalance!$D$53,$F$2:$G$48,2,FALSE)+ROW()-2))=Rebalance!$D$53,INDIRECT(\"a\" & (VLOOKUP(Rebalance!$D$53,$F$2:$G$48,2,FALSE)+ROW()-2)),\"\")","v":{"$error":"#N/A"}},{"$f":"IF(INDIRECT(\"c\" & (VLOOKUP(Rebalance!$D$54,$F$2:$G$48,2,FALSE)+ROW()-2))=Rebalance!$D$54,INDIRECT(\"a\" & (VLOOKUP(Rebalance!$D$54,$F$2:$G$48,2,FALSE)+ROW()-2)),\"\")","v":{"$error":"#N/A"}},{"$f":"IF(INDIRECT(\"c\" & (VLOOKUP(Rebalance!$D$55,$F$2:$G$48,2,FALSE)+ROW()-2))=Rebalance!$D$55,INDIRECT(\"a\" & (VLOOKUP(Rebalance!$D$55,$F$2:$G$48,2,FALSE)+ROW()-2)),\"\")","v":{"$error":"#N/A"}},{"$f":"IF(INDIRECT(\"c\" & (VLOOKUP(Rebalance!$D$56,$F$2:$G$48,2,FALSE)+ROW()-2))=Rebalance!$D$56,INDIRECT(\"a\" & (VLOOKUP(Rebalance!$D$56,$F$2:$G$48,2,FALSE)+ROW()-2)),\"\")","v":{"$error":"#N/A"}},{"$f":"IF(INDIRECT(\"c\" & (VLOOKUP(Rebalance!$D$57,$F$2:$G$48,2,FALSE)+ROW()-2))=Rebalance!$D$57,INDIRECT(\"a\" & (VLOOKUP(Rebalance!$D$57,$F$2:$G$48,2,FALSE)+ROW()-2)),\"\")","v":{"$error":"#N/A"}},{"$f":"IF(INDIRECT(\"c\" & (VLOOKUP(Rebalance!$D$58,$F$2:$G$48,2,FALSE)+ROW()-2))=Rebalance!$D$58,INDIRECT(\"a\" & (VLOOKUP(Rebalance!$D$58,$F$2:$G$48,2,FALSE)+ROW()-2)),\"\")","v":{"$error":"#N/A"}},{"$f":"IF(INDIRECT(\"c\" & (VLOOKUP(Rebalance!$D$59,$F$2:$G$48,2,FALSE)+ROW()-2))=Rebalance!$D$59,INDIRECT(\"a\" & (VLOOKUP(Rebalance!$D$59,$F$2:$G$48,2,FALSE)+ROW()-2)),\"\")","v":{"$error":"#N/A"}},{"$f":"IF(INDIRECT(\"c\" & (VLOOKUP(Rebalance!$D$60,$F$2:$G$48,2,FALSE)+ROW()-2))=Rebalance!$D$60,INDIRECT(\"a\" & (VLOOKUP(Rebalance!$D$60,$F$2:$G$48,2,FALSE)+ROW()-2)),\"\")","v":{"$error":"#N/A"}},{"$f":"IF(INDIRECT(\"c\" & (VLOOKUP(Rebalance!$D$61,$F$2:$G$48,2,FALSE)+ROW()-2))=Rebalance!$D$61,INDIRECT(\"a\" & (VLOOKUP(Rebalance!$D$61,$F$2:$G$48,2,FALSE)+ROW()-2)),\"\")","v":{"$error":"#N/A"}},{"$f":"IF(INDIRECT(\"c\" & (VLOOKUP(Rebalance!$D$62,$F$2:$G$48,2,FALSE)+ROW()-2))=Rebalance!$D$62,INDIRECT(\"a\" & (VLOOKUP(Rebalance!$D$62,$F$2:$G$48,2,FALSE)+ROW()-2)),\"\")","v":{"$error":"#N/A"}},{"$f":"IF(INDIRECT(\"c\" & (VLOOKUP(Rebalance!$D$63,$F$2:$G$48,2,FALSE)+ROW()-2))=Rebalance!$D$63,INDIRECT(\"a\" & (VLOOKUP(Rebalance!$D$63,$F$2:$G$48,2,FALSE)+ROW()-2)),\"\")","v":{"$error":"#N/A"}},{"$f":"IF(INDIRECT(\"c\" & (VLOOKUP(Rebalance!$D$64,$F$2:$G$48,2,FALSE)+ROW()-2))=Rebalance!$D$64,INDIRECT(\"a\" & (VLOOKUP(Rebalance!$D$64,$F$2:$G$48,2,FALSE)+ROW()-2)),\"\")","v":{"$error":"#N/A"}},{"$f":"IF(INDIRECT(\"c\" & (VLOOKUP(Rebalance!$D$65,$F$2:$G$48,2,FALSE)+ROW()-2))=Rebalance!$D$65,INDIRECT(\"a\" & (VLOOKUP(Rebalance!$D$65,$F$2:$G$48,2,FALSE)+ROW()-2)),\"\")","v":{"$error":"#N/A"}},{"$f":"IF(INDIRECT(\"c\" & (VLOOKUP(Rebalance!$D$66,$F$2:$G$48,2,FALSE)+ROW()-2))=Rebalance!$D$66,INDIRECT(\"a\" & (VLOOKUP(Rebalance!$D$66,$F$2:$G$48,2,FALSE)+ROW()-2)),\"\")","v":{"$error":"#N/A"}}]
["Anchor BCI Flexible Income Fund A","ABFIA","Boutique Collective Investments (Pty) Ltd",{"$f":"ROW()","v":112},null,null,{"$f":"VLOOKUP(F112,$C$2:$D$599,2,FALSE)","v":{"$error":"#N/A"}},{"$f":"IF(INDIRECT(\"c\" & (VLOOKUP(Rebalance!$D$26,$F$2:$G$48,2,FALSE)+ROW()-2))=Rebalance!$D$26,INDIRECT(\"a\" & (VLOOKUP(Rebalance!$D$26,$F$2:$G$48,2,FALSE)+ROW()-2)),\"\")","v":{"$error":"#N/A"}},{"$f":"IF(INDIRECT(\"c\" & (VLOOKUP(Rebalance!$D$27,$F$2:$G$48,2,FALSE)+ROW()-2))=Rebalance!$D$27,INDIRECT(\"a\" & (VLOOKUP(Rebalance!$D$27,$F$2:$G$48,2,FALSE)+ROW()-2)),\"\")","v":{"$error":"#N/A"}},{"$f":"IF(INDIRECT(\"c\" & (VLOOKUP(Rebalance!$D$28,$F$2:$G$48,2,FALSE)+ROW()-2))=Rebalance!$D$28,INDIRECT(\"a\" & (VLOOKUP(Rebalance!$D$28,$F$2:$G$48,2,FALSE)+ROW()-2)),\"\")","v":{"$error":"#N/A"}},{"$f":"IF(INDIRECT(\"c\" & (VLOOKUP(Rebalance!$D$29,$F$2:$G$48,2,FALSE)+ROW()-2))=Rebalance!$D$29,INDIRECT(\"a\" & (VLOOKUP(Rebalance!$D$29,$F$2:$G$48,2,FALSE)+ROW()-2)),\"\")","v":{"$error":"#N/A"}},{"$f":"IF(INDIRECT(\"c\" & (VLOOKUP(Rebalance!$D$30,$F$2:$G$48,2,FALSE)+ROW()-2))=Rebalance!$D$30,INDIRECT(\"a\" & (VLOOKUP(Rebalance!$D$30,$F$2:$G$48,2,FALSE)+ROW()-2)),\"\")","v":{"$error":"#N/A"}},{"$f":"IF(INDIRECT(\"c\" & (VLOOKUP(Rebalance!$D$31,$F$2:$G$48,2,FALSE)+ROW()-2))=Rebalance!$D$31,INDIRECT(\"a\" & (VLOOKUP(Rebalance!$D$31,$F$2:$G$48,2,FALSE)+ROW()-2)),\"\")","v":{"$error":"#N/A"}},{"$f":"IF(INDIRECT(\"c\" & (VLOOKUP(Rebalance!$D$32,$F$2:$G$48,2,FALSE)+ROW()-2))=Rebalance!$D$32,INDIRECT(\"a\" & (VLOOKUP(Rebalance!$D$32,$F$2:$G$48,2,FALSE)+ROW()-2)),\"\")","v":{"$error":"#N/A"}},{"$f":"IF(INDIRECT(\"c\" & (VLOOKUP(Rebalance!$D$33,$F$2:$G$48,2,FALSE)+ROW()-2))=Rebalance!$D$33,INDIRECT(\"a\" & (VLOOKUP(Rebalance!$D$33,$F$2:$G$48,2,FALSE)+ROW()-2)),\"\")","v":{"$error":"#N/A"}},{"$f":"IF(INDIRECT(\"c\" & (VLOOKUP(Rebalance!$D$34,$F$2:$G$48,2,FALSE)+ROW()-2))=Rebalance!$D$34,INDIRECT(\"a\" & (VLOOKUP(Rebalance!$D$34,$F$2:$G$48,2,FALSE)+ROW()-2)),\"\")","v":{"$error":"#N/A"}},{"$f":"IF(INDIRECT(\"c\" & (VLOOKUP(Rebalance!$D$35,$F$2:$G$48,2,FALSE)+ROW()-2))=Rebalance!$D$35,INDIRECT(\"a\" & (VLOOKUP(Rebalance!$D$35,$F$2:$G$48,2,FALSE)+ROW()-2)),\"\")","v":{"$error":"#N/A"}},{"$f":"IF(INDIRECT(\"c\" & (VLOOKUP(Rebalance!$D$36,$F$2:$G$48,2,FALSE)+ROW()-2))=Rebalance!$D$36,INDIRECT(\"a\" & (VLOOKUP(Rebalance!$D$36,$F$2:$G$48,2,FALSE)+ROW()-2)),\"\")","v":{"$error":"#N/A"}},{"$f":"IF(INDIRECT(\"c\" & (VLOOKUP(Rebalance!$D$37,$F$2:$G$48,2,FALSE)+ROW()-2))=Rebalance!$D$37,INDIRECT(\"a\" & (VLOOKUP(Rebalance!$D$37,$F$2:$G$48,2,FALSE)+ROW()-2)),\"\")","v":{"$error":"#N/A"}},{"$f":"IF(INDIRECT(\"c\" & (VLOOKUP(Rebalance!$D$38,$F$2:$G$48,2,FALSE)+ROW()-2))=Rebalance!$D$38,INDIRECT(\"a\" & (VLOOKUP(Rebalance!$D$38,$F$2:$G$48,2,FALSE)+ROW()-2)),\"\")","v":{"$error":"#N/A"}},{"$f":"IF(INDIRECT(\"c\" & (VLOOKUP(Rebalance!$D$39,$F$2:$G$48,2,FALSE)+ROW()-2))=Rebalance!$D$39,INDIRECT(\"a\" & (VLOOKUP(Rebalance!$D$39,$F$2:$G$48,2,FALSE)+ROW()-2)),\"\")","v":{"$error":"#N/A"}},{"$f":"IF(INDIRECT(\"c\" & (VLOOKUP(Rebalance!$D$40,$F$2:$G$48,2,FALSE)+ROW()-2))=Rebalance!$D$40,INDIRECT(\"a\" & (VLOOKUP(Rebalance!$D$40,$F$2:$G$48,2,FALSE)+ROW()-2)),\"\")","v":{"$error":"#N/A"}},{"$f":"IF(INDIRECT(\"c\" & (VLOOKUP(Rebalance!$D$52,$F$2:$G$48,2,FALSE)+ROW()-2))=Rebalance!$D$52,INDIRECT(\"a\" & (VLOOKUP(Rebalance!$D$52,$F$2:$G$48,2,FALSE)+ROW()-2)),\"\")","v":{"$error":"#N/A"}},{"$f":"IF(INDIRECT(\"c\" & (VLOOKUP(Rebalance!$D$53,$F$2:$G$48,2,FALSE)+ROW()-2))=Rebalance!$D$53,INDIRECT(\"a\" & (VLOOKUP(Rebalance!$D$53,$F$2:$G$48,2,FALSE)+ROW()-2)),\"\")","v":{"$error":"#N/A"}},{"$f":"IF(INDIRECT(\"c\" & (VLOOKUP(Rebalance!$D$54,$F$2:$G$48,2,FALSE)+ROW()-2))=Rebalance!$D$54,INDIRECT(\"a\" & (VLOOKUP(Rebalance!$D$54,$F$2:$G$48,2,FALSE)+ROW()-2)),\"\")","v":{"$error":"#N/A"}},{"$f":"IF(INDIRECT(\"c\" & (VLOOKUP(Rebalance!$D$55,$F$2:$G$48,2,FALSE)+ROW()-2))=Rebalance!$D$55,INDIRECT(\"a\" & (VLOOKUP(Rebalance!$D$55,$F$2:$G$48,2,FALSE)+ROW()-2)),\"\")","v":{"$error":"#N/A"}},{"$f":"IF(INDIRECT(\"c\" & (VLOOKUP(Rebalance!$D$56,$F$2:$G$48,2,FALSE)+ROW()-2))=Rebalance!$D$56,INDIRECT(\"a\" & (VLOOKUP(Rebalance!$D$56,$F$2:$G$48,2,FALSE)+ROW()-2)),\"\")","v":{"$error":"#N/A"}},{"$f":"IF(INDIRECT(\"c\" & (VLOOKUP(Rebalance!$D$57,$F$2:$G$48,2,FALSE)+ROW()-2))=Rebalance!$D$57,INDIRECT(\"a\" & (VLOOKUP(Rebalance!$D$57,$F$2:$G$48,2,FALSE)+ROW()-2)),\"\")","v":{"$error":"#N/A"}},{"$f":"IF(INDIRECT(\"c\" & (VLOOKUP(Rebalance!$D$58,$F$2:$G$48,2,FALSE)+ROW()-2))=Rebalance!$D$58,INDIRECT(\"a\" & (VLOOKUP(Rebalance!$D$58,$F$2:$G$48,2,FALSE)+ROW()-2)),\"\")","v":{"$error":"#N/A"}},{"$f":"IF(INDIRECT(\"c\" & (VLOOKUP(Rebalance!$D$59,$F$2:$G$48,2,FALSE)+ROW()-2))=Rebalance!$D$59,INDIRECT(\"a\" & (VLOOKUP(Rebalance!$D$59,$F$2:$G$48,2,FALSE)+ROW()-2)),\"\")","v":{"$error":"#N/A"}},{"$f":"IF(INDIRECT(\"c\" & (VLOOKUP(Rebalance!$D$60,$F$2:$G$48,2,FALSE)+ROW()-2))=Rebalance!$D$60,INDIRECT(\"a\" & (VLOOKUP(Rebalance!$D$60,$F$2:$G$48,2,FALSE)+ROW()-2)),\"\")","v":{"$error":"#N/A"}},{"$f":"IF(INDIRECT(\"c\" & (VLOOKUP(Rebalance!$D$61,$F$2:$G$48,2,FALSE)+ROW()-2))=Rebalance!$D$61,INDIRECT(\"a\" & (VLOOKUP(Rebalance!$D$61,$F$2:$G$48,2,FALSE)+ROW()-2)),\"\")","v":{"$error":"#N/A"}},{"$f":"IF(INDIRECT(\"c\" & (VLOOKUP(Rebalance!$D$62,$F$2:$G$48,2,FALSE)+ROW()-2))=Rebalance!$D$62,INDIRECT(\"a\" & (VLOOKUP(Rebalance!$D$62,$F$2:$G$48,2,FALSE)+ROW()-2)),\"\")","v":{"$error":"#N/A"}},{"$f":"IF(INDIRECT(\"c\" & (VLOOKUP(Rebalance!$D$63,$F$2:$G$48,2,FALSE)+ROW()-2))=Rebalance!$D$63,INDIRECT(\"a\" & (VLOOKUP(Rebalance!$D$63,$F$2:$G$48,2,FALSE)+ROW()-2)),\"\")","v":{"$error":"#N/A"}},{"$f":"IF(INDIRECT(\"c\" & (VLOOKUP(Rebalance!$D$64,$F$2:$G$48,2,FALSE)+ROW()-2))=Rebalance!$D$64,INDIRECT(\"a\" & (VLOOKUP(Rebalance!$D$64,$F$2:$G$48,2,FALSE)+ROW()-2)),\"\")","v":{"$error":"#N/A"}},{"$f":"IF(INDIRECT(\"c\" & (VLOOKUP(Rebalance!$D$65,$F$2:$G$48,2,FALSE)+ROW()-2))=Rebalance!$D$65,INDIRECT(\"a\" & (VLOOKUP(Rebalance!$D$65,$F$2:$G$48,2,FALSE)+ROW()-2)),\"\")","v":{"$error":"#N/A"}},{"$f":"IF(INDIRECT(\"c\" & (VLOOKUP(Rebalance!$D$66,$F$2:$G$48,2,FALSE)+ROW()-2))=Rebalance!$D$66,INDIRECT(\"a\" & (VLOOKUP(Rebalance!$D$66,$F$2:$G$48,2,FALSE)+ROW()-2)),\"\")","v":{"$error":"#N/A"}}]
["Atlantic BCI Enhanced Income Fund A","AEIF","Boutique Collective Investments (Pty) Ltd",{"$f":"ROW()","v":113},null,null,{"$f":"VLOOKUP(F113,$C$2:$D$599,2,FALSE)","v":{"$error":"#N/A"}},{"$f":"IF(INDIRECT(\"c\" & (VLOOKUP(Rebalance!$D$26,$F$2:$G$48,2,FALSE)+ROW()-2))=Rebalance!$D$26,INDIRECT(\"a\" & (VLOOKUP(Rebalance!$D$26,$F$2:$G$48,2,FALSE)+ROW()-2)),\"\")","v":{"$error":"#N/A"}},{"$f":"IF(INDIRECT(\"c\" & (VLOOKUP(Rebalance!$D$27,$F$2:$G$48,2,FALSE)+ROW()-2))=Rebalance!$D$27,INDIRECT(\"a\" & (VLOOKUP(Rebalance!$D$27,$F$2:$G$48,2,FALSE)+ROW()-2)),\"\")","v":{"$error":"#N/A"}},{"$f":"IF(INDIRECT(\"c\" & (VLOOKUP(Rebalance!$D$28,$F$2:$G$48,2,FALSE)+ROW()-2))=Rebalance!$D$28,INDIRECT(\"a\" & (VLOOKUP(Rebalance!$D$28,$F$2:$G$48,2,FALSE)+ROW()-2)),\"\")","v":{"$error":"#N/A"}},{"$f":"IF(INDIRECT(\"c\" & (VLOOKUP(Rebalance!$D$29,$F$2:$G$48,2,FALSE)+ROW()-2))=Rebalance!$D$29,INDIRECT(\"a\" & (VLOOKUP(Rebalance!$D$29,$F$2:$G$48,2,FALSE)+ROW()-2)),\"\")","v":{"$error":"#N/A"}},{"$f":"IF(INDIRECT(\"c\" & (VLOOKUP(Rebalance!$D$30,$F$2:$G$48,2,FALSE)+ROW()-2))=Rebalance!$D$30,INDIRECT(\"a\" & (VLOOKUP(Rebalance!$D$30,$F$2:$G$48,2,FALSE)+ROW()-2)),\"\")","v":{"$error":"#N/A"}},{"$f":"IF(INDIRECT(\"c\" & (VLOOKUP(Rebalance!$D$31,$F$2:$G$48,2,FALSE)+ROW()-2))=Rebalance!$D$31,INDIRECT(\"a\" & (VLOOKUP(Rebalance!$D$31,$F$2:$G$48,2,FALSE)+ROW()-2)),\"\")","v":{"$error":"#N/A"}},{"$f":"IF(INDIRECT(\"c\" & (VLOOKUP(Rebalance!$D$32,$F$2:$G$48,2,FALSE)+ROW()-2))=Rebalance!$D$32,INDIRECT(\"a\" & (VLOOKUP(Rebalance!$D$32,$F$2:$G$48,2,FALSE)+ROW()-2)),\"\")","v":{"$error":"#N/A"}},{"$f":"IF(INDIRECT(\"c\" & (VLOOKUP(Rebalance!$D$33,$F$2:$G$48,2,FALSE)+ROW()-2))=Rebalance!$D$33,INDIRECT(\"a\" & (VLOOKUP(Rebalance!$D$33,$F$2:$G$48,2,FALSE)+ROW()-2)),\"\")","v":{"$error":"#N/A"}},{"$f":"IF(INDIRECT(\"c\" & (VLOOKUP(Rebalance!$D$34,$F$2:$G$48,2,FALSE)+ROW()-2))=Rebalance!$D$34,INDIRECT(\"a\" & (VLOOKUP(Rebalance!$D$34,$F$2:$G$48,2,FALSE)+ROW()-2)),\"\")","v":{"$error":"#N/A"}},{"$f":"IF(INDIRECT(\"c\" & (VLOOKUP(Rebalance!$D$35,$F$2:$G$48,2,FALSE)+ROW()-2))=Rebalance!$D$35,INDIRECT(\"a\" & (VLOOKUP(Rebalance!$D$35,$F$2:$G$48,2,FALSE)+ROW()-2)),\"\")","v":{"$error":"#N/A"}},{"$f":"IF(INDIRECT(\"c\" & (VLOOKUP(Rebalance!$D$36,$F$2:$G$48,2,FALSE)+ROW()-2))=Rebalance!$D$36,INDIRECT(\"a\" & (VLOOKUP(Rebalance!$D$36,$F$2:$G$48,2,FALSE)+ROW()-2)),\"\")","v":{"$error":"#N/A"}},{"$f":"IF(INDIRECT(\"c\" & (VLOOKUP(Rebalance!$D$37,$F$2:$G$48,2,FALSE)+ROW()-2))=Rebalance!$D$37,INDIRECT(\"a\" & (VLOOKUP(Rebalance!$D$37,$F$2:$G$48,2,FALSE)+ROW()-2)),\"\")","v":{"$error":"#N/A"}},{"$f":"IF(INDIRECT(\"c\" & (VLOOKUP(Rebalance!$D$38,$F$2:$G$48,2,FALSE)+ROW()-2))=Rebalance!$D$38,INDIRECT(\"a\" & (VLOOKUP(Rebalance!$D$38,$F$2:$G$48,2,FALSE)+ROW()-2)),\"\")","v":{"$error":"#N/A"}},{"$f":"IF(INDIRECT(\"c\" & (VLOOKUP(Rebalance!$D$39,$F$2:$G$48,2,FALSE)+ROW()-2))=Rebalance!$D$39,INDIRECT(\"a\" & (VLOOKUP(Rebalance!$D$39,$F$2:$G$48,2,FALSE)+ROW()-2)),\"\")","v":{"$error":"#N/A"}},{"$f":"IF(INDIRECT(\"c\" & (VLOOKUP(Rebalance!$D$40,$F$2:$G$48,2,FALSE)+ROW()-2))=Rebalance!$D$40,INDIRECT(\"a\" & (VLOOKUP(Rebalance!$D$40,$F$2:$G$48,2,FALSE)+ROW()-2)),\"\")","v":{"$error":"#N/A"}},{"$f":"IF(INDIRECT(\"c\" & (VLOOKUP(Rebalance!$D$52,$F$2:$G$48,2,FALSE)+ROW()-2))=Rebalance!$D$52,INDIRECT(\"a\" & (VLOOKUP(Rebalance!$D$52,$F$2:$G$48,2,FALSE)+ROW()-2)),\"\")","v":{"$error":"#N/A"}},{"$f":"IF(INDIRECT(\"c\" & (VLOOKUP(Rebalance!$D$53,$F$2:$G$48,2,FALSE)+ROW()-2))=Rebalance!$D$53,INDIRECT(\"a\" & (VLOOKUP(Rebalance!$D$53,$F$2:$G$48,2,FALSE)+ROW()-2)),\"\")","v":{"$error":"#N/A"}},{"$f":"IF(INDIRECT(\"c\" & (VLOOKUP(Rebalance!$D$54,$F$2:$G$48,2,FALSE)+ROW()-2))=Rebalance!$D$54,INDIRECT(\"a\" & (VLOOKUP(Rebalance!$D$54,$F$2:$G$48,2,FALSE)+ROW()-2)),\"\")","v":{"$error":"#N/A"}},{"$f":"IF(INDIRECT(\"c\" & (VLOOKUP(Rebalance!$D$55,$F$2:$G$48,2,FALSE)+ROW()-2))=Rebalance!$D$55,INDIRECT(\"a\" & (VLOOKUP(Rebalance!$D$55,$F$2:$G$48,2,FALSE)+ROW()-2)),\"\")","v":{"$error":"#N/A"}},{"$f":"IF(INDIRECT(\"c\" & (VLOOKUP(Rebalance!$D$56,$F$2:$G$48,2,FALSE)+ROW()-2))=Rebalance!$D$56,INDIRECT(\"a\" & (VLOOKUP(Rebalance!$D$56,$F$2:$G$48,2,FALSE)+ROW()-2)),\"\")","v":{"$error":"#N/A"}},{"$f":"IF(INDIRECT(\"c\" & (VLOOKUP(Rebalance!$D$57,$F$2:$G$48,2,FALSE)+ROW()-2))=Rebalance!$D$57,INDIRECT(\"a\" & (VLOOKUP(Rebalance!$D$57,$F$2:$G$48,2,FALSE)+ROW()-2)),\"\")","v":{"$error":"#N/A"}},{"$f":"IF(INDIRECT(\"c\" & (VLOOKUP(Rebalance!$D$58,$F$2:$G$48,2,FALSE)+ROW()-2))=Rebalance!$D$58,INDIRECT(\"a\" & (VLOOKUP(Rebalance!$D$58,$F$2:$G$48,2,FALSE)+ROW()-2)),\"\")","v":{"$error":"#N/A"}},{"$f":"IF(INDIRECT(\"c\" & (VLOOKUP(Rebalance!$D$59,$F$2:$G$48,2,FALSE)+ROW()-2))=Rebalance!$D$59,INDIRECT(\"a\" & (VLOOKUP(Rebalance!$D$59,$F$2:$G$48,2,FALSE)+ROW()-2)),\"\")","v":{"$error":"#N/A"}},{"$f":"IF(INDIRECT(\"c\" & (VLOOKUP(Rebalance!$D$60,$F$2:$G$48,2,FALSE)+ROW()-2))=Rebalance!$D$60,INDIRECT(\"a\" & (VLOOKUP(Rebalance!$D$60,$F$2:$G$48,2,FALSE)+ROW()-2)),\"\")","v":{"$error":"#N/A"}},{"$f":"IF(INDIRECT(\"c\" & (VLOOKUP(Rebalance!$D$61,$F$2:$G$48,2,FALSE)+ROW()-2))=Rebalance!$D$61,INDIRECT(\"a\" & (VLOOKUP(Rebalance!$D$61,$F$2:$G$48,2,FALSE)+ROW()-2)),\"\")","v":{"$error":"#N/A"}},{"$f":"IF(INDIRECT(\"c\" & (VLOOKUP(Rebalance!$D$62,$F$2:$G$48,2,FALSE)+ROW()-2))=Rebalance!$D$62,INDIRECT(\"a\" & (VLOOKUP(Rebalance!$D$62,$F$2:$G$48,2,FALSE)+ROW()-2)),\"\")","v":{"$error":"#N/A"}},{"$f":"IF(INDIRECT(\"c\" & (VLOOKUP(Rebalance!$D$63,$F$2:$G$48,2,FALSE)+ROW()-2))=Rebalance!$D$63,INDIRECT(\"a\" & (VLOOKUP(Rebalance!$D$63,$F$2:$G$48,2,FALSE)+ROW()-2)),\"\")","v":{"$error":"#N/A"}},{"$f":"IF(INDIRECT(\"c\" & (VLOOKUP(Rebalance!$D$64,$F$2:$G$48,2,FALSE)+ROW()-2))=Rebalance!$D$64,INDIRECT(\"a\" & (VLOOKUP(Rebalance!$D$64,$F$2:$G$48,2,FALSE)+ROW()-2)),\"\")","v":{"$error":"#N/A"}},{"$f":"IF(INDIRECT(\"c\" & (VLOOKUP(Rebalance!$D$65,$F$2:$G$48,2,FALSE)+ROW()-2))=Rebalance!$D$65,INDIRECT(\"a\" & (VLOOKUP(Rebalance!$D$65,$F$2:$G$48,2,FALSE)+ROW()-2)),\"\")","v":{"$error":"#N/A"}},{"$f":"IF(INDIRECT(\"c\" & (VLOOKUP(Rebalance!$D$66,$F$2:$G$48,2,FALSE)+ROW()-2))=Rebalance!$D$66,INDIRECT(\"a\" & (VLOOKUP(Rebalance!$D$66,$F$2:$G$48,2,FALSE)+ROW()-2)),\"\")","v":{"$error":"#N/A"}}]
["Atlantic BCI Global Capital Plus Feeder Fund A","ABGCPF","Boutique Collective Investments (Pty) Ltd",{"$f":"ROW()","v":114},null,null,{"$f":"VLOOKUP(F114,$C$2:$D$599,2,FALSE)","v":{"$error":"#N/A"}},{"$f":"IF(INDIRECT(\"c\" & (VLOOKUP(Rebalance!$D$26,$F$2:$G$48,2,FALSE)+ROW()-2))=Rebalance!$D$26,INDIRECT(\"a\" & (VLOOKUP(Rebalance!$D$26,$F$2:$G$48,2,FALSE)+ROW()-2)),\"\")","v":{"$error":"#N/A"}},{"$f":"IF(INDIRECT(\"c\" & (VLOOKUP(Rebalance!$D$27,$F$2:$G$48,2,FALSE)+ROW()-2))=Rebalance!$D$27,INDIRECT(\"a\" & (VLOOKUP(Rebalance!$D$27,$F$2:$G$48,2,FALSE)+ROW()-2)),\"\")","v":{"$error":"#N/A"}},{"$f":"IF(INDIRECT(\"c\" & (VLOOKUP(Rebalance!$D$28,$F$2:$G$48,2,FALSE)+ROW()-2))=Rebalance!$D$28,INDIRECT(\"a\" & (VLOOKUP(Rebalance!$D$28,$F$2:$G$48,2,FALSE)+ROW()-2)),\"\")","v":{"$error":"#N/A"}},{"$f":"IF(INDIRECT(\"c\" & (VLOOKUP(Rebalance!$D$29,$F$2:$G$48,2,FALSE)+ROW()-2))=Rebalance!$D$29,INDIRECT(\"a\" & (VLOOKUP(Rebalance!$D$29,$F$2:$G$48,2,FALSE)+ROW()-2)),\"\")","v":{"$error":"#N/A"}},{"$f":"IF(INDIRECT(\"c\" & (VLOOKUP(Rebalance!$D$30,$F$2:$G$48,2,FALSE)+ROW()-2))=Rebalance!$D$30,INDIRECT(\"a\" & (VLOOKUP(Rebalance!$D$30,$F$2:$G$48,2,FALSE)+ROW()-2)),\"\")","v":{"$error":"#N/A"}},{"$f":"IF(INDIRECT(\"c\" & (VLOOKUP(Rebalance!$D$31,$F$2:$G$48,2,FALSE)+ROW()-2))=Rebalance!$D$31,INDIRECT(\"a\" & (VLOOKUP(Rebalance!$D$31,$F$2:$G$48,2,FALSE)+ROW()-2)),\"\")","v":{"$error":"#N/A"}},{"$f":"IF(INDIRECT(\"c\" & (VLOOKUP(Rebalance!$D$32,$F$2:$G$48,2,FALSE)+ROW()-2))=Rebalance!$D$32,INDIRECT(\"a\" & (VLOOKUP(Rebalance!$D$32,$F$2:$G$48,2,FALSE)+ROW()-2)),\"\")","v":{"$error":"#N/A"}},{"$f":"IF(INDIRECT(\"c\" & (VLOOKUP(Rebalance!$D$33,$F$2:$G$48,2,FALSE)+ROW()-2))=Rebalance!$D$33,INDIRECT(\"a\" & (VLOOKUP(Rebalance!$D$33,$F$2:$G$48,2,FALSE)+ROW()-2)),\"\")","v":{"$error":"#N/A"}},{"$f":"IF(INDIRECT(\"c\" & (VLOOKUP(Rebalance!$D$34,$F$2:$G$48,2,FALSE)+ROW()-2))=Rebalance!$D$34,INDIRECT(\"a\" & (VLOOKUP(Rebalance!$D$34,$F$2:$G$48,2,FALSE)+ROW()-2)),\"\")","v":{"$error":"#N/A"}},{"$f":"IF(INDIRECT(\"c\" & (VLOOKUP(Rebalance!$D$35,$F$2:$G$48,2,FALSE)+ROW()-2))=Rebalance!$D$35,INDIRECT(\"a\" & (VLOOKUP(Rebalance!$D$35,$F$2:$G$48,2,FALSE)+ROW()-2)),\"\")","v":{"$error":"#N/A"}},{"$f":"IF(INDIRECT(\"c\" & (VLOOKUP(Rebalance!$D$36,$F$2:$G$48,2,FALSE)+ROW()-2))=Rebalance!$D$36,INDIRECT(\"a\" & (VLOOKUP(Rebalance!$D$36,$F$2:$G$48,2,FALSE)+ROW()-2)),\"\")","v":{"$error":"#N/A"}},{"$f":"IF(INDIRECT(\"c\" & (VLOOKUP(Rebalance!$D$37,$F$2:$G$48,2,FALSE)+ROW()-2))=Rebalance!$D$37,INDIRECT(\"a\" & (VLOOKUP(Rebalance!$D$37,$F$2:$G$48,2,FALSE)+ROW()-2)),\"\")","v":{"$error":"#N/A"}},{"$f":"IF(INDIRECT(\"c\" & (VLOOKUP(Rebalance!$D$38,$F$2:$G$48,2,FALSE)+ROW()-2))=Rebalance!$D$38,INDIRECT(\"a\" & (VLOOKUP(Rebalance!$D$38,$F$2:$G$48,2,FALSE)+ROW()-2)),\"\")","v":{"$error":"#N/A"}},{"$f":"IF(INDIRECT(\"c\" & (VLOOKUP(Rebalance!$D$39,$F$2:$G$48,2,FALSE)+ROW()-2))=Rebalance!$D$39,INDIRECT(\"a\" & (VLOOKUP(Rebalance!$D$39,$F$2:$G$48,2,FALSE)+ROW()-2)),\"\")","v":{"$error":"#N/A"}},{"$f":"IF(INDIRECT(\"c\" & (VLOOKUP(Rebalance!$D$40,$F$2:$G$48,2,FALSE)+ROW()-2))=Rebalance!$D$40,INDIRECT(\"a\" & (VLOOKUP(Rebalance!$D$40,$F$2:$G$48,2,FALSE)+ROW()-2)),\"\")","v":{"$error":"#N/A"}},{"$f":"IF(INDIRECT(\"c\" & (VLOOKUP(Rebalance!$D$52,$F$2:$G$48,2,FALSE)+ROW()-2))=Rebalance!$D$52,INDIRECT(\"a\" & (VLOOKUP(Rebalance!$D$52,$F$2:$G$48,2,FALSE)+ROW()-2)),\"\")","v":{"$error":"#N/A"}},{"$f":"IF(INDIRECT(\"c\" & (VLOOKUP(Rebalance!$D$53,$F$2:$G$48,2,FALSE)+ROW()-2))=Rebalance!$D$53,INDIRECT(\"a\" & (VLOOKUP(Rebalance!$D$53,$F$2:$G$48,2,FALSE)+ROW()-2)),\"\")","v":{"$error":"#N/A"}},{"$f":"IF(INDIRECT(\"c\" & (VLOOKUP(Rebalance!$D$54,$F$2:$G$48,2,FALSE)+ROW()-2))=Rebalance!$D$54,INDIRECT(\"a\" & (VLOOKUP(Rebalance!$D$54,$F$2:$G$48,2,FALSE)+ROW()-2)),\"\")","v":{"$error":"#N/A"}},{"$f":"IF(INDIRECT(\"c\" & (VLOOKUP(Rebalance!$D$55,$F$2:$G$48,2,FALSE)+ROW()-2))=Rebalance!$D$55,INDIRECT(\"a\" & (VLOOKUP(Rebalance!$D$55,$F$2:$G$48,2,FALSE)+ROW()-2)),\"\")","v":{"$error":"#N/A"}},{"$f":"IF(INDIRECT(\"c\" & (VLOOKUP(Rebalance!$D$56,$F$2:$G$48,2,FALSE)+ROW()-2))=Rebalance!$D$56,INDIRECT(\"a\" & (VLOOKUP(Rebalance!$D$56,$F$2:$G$48,2,FALSE)+ROW()-2)),\"\")","v":{"$error":"#N/A"}},{"$f":"IF(INDIRECT(\"c\" & (VLOOKUP(Rebalance!$D$57,$F$2:$G$48,2,FALSE)+ROW()-2))=Rebalance!$D$57,INDIRECT(\"a\" & (VLOOKUP(Rebalance!$D$57,$F$2:$G$48,2,FALSE)+ROW()-2)),\"\")","v":{"$error":"#N/A"}},{"$f":"IF(INDIRECT(\"c\" & (VLOOKUP(Rebalance!$D$58,$F$2:$G$48,2,FALSE)+ROW()-2))=Rebalance!$D$58,INDIRECT(\"a\" & (VLOOKUP(Rebalance!$D$58,$F$2:$G$48,2,FALSE)+ROW()-2)),\"\")","v":{"$error":"#N/A"}},{"$f":"IF(INDIRECT(\"c\" & (VLOOKUP(Rebalance!$D$59,$F$2:$G$48,2,FALSE)+ROW()-2))=Rebalance!$D$59,INDIRECT(\"a\" & (VLOOKUP(Rebalance!$D$59,$F$2:$G$48,2,FALSE)+ROW()-2)),\"\")","v":{"$error":"#N/A"}},{"$f":"IF(INDIRECT(\"c\" & (VLOOKUP(Rebalance!$D$60,$F$2:$G$48,2,FALSE)+ROW()-2))=Rebalance!$D$60,INDIRECT(\"a\" & (VLOOKUP(Rebalance!$D$60,$F$2:$G$48,2,FALSE)+ROW()-2)),\"\")","v":{"$error":"#N/A"}},{"$f":"IF(INDIRECT(\"c\" & (VLOOKUP(Rebalance!$D$61,$F$2:$G$48,2,FALSE)+ROW()-2))=Rebalance!$D$61,INDIRECT(\"a\" & (VLOOKUP(Rebalance!$D$61,$F$2:$G$48,2,FALSE)+ROW()-2)),\"\")","v":{"$error":"#N/A"}},{"$f":"IF(INDIRECT(\"c\" & (VLOOKUP(Rebalance!$D$62,$F$2:$G$48,2,FALSE)+ROW()-2))=Rebalance!$D$62,INDIRECT(\"a\" & (VLOOKUP(Rebalance!$D$62,$F$2:$G$48,2,FALSE)+ROW()-2)),\"\")","v":{"$error":"#N/A"}},{"$f":"IF(INDIRECT(\"c\" & (VLOOKUP(Rebalance!$D$63,$F$2:$G$48,2,FALSE)+ROW()-2))=Rebalance!$D$63,INDIRECT(\"a\" & (VLOOKUP(Rebalance!$D$63,$F$2:$G$48,2,FALSE)+ROW()-2)),\"\")","v":{"$error":"#N/A"}},{"$f":"IF(INDIRECT(\"c\" & (VLOOKUP(Rebalance!$D$64,$F$2:$G$48,2,FALSE)+ROW()-2))=Rebalance!$D$64,INDIRECT(\"a\" & (VLOOKUP(Rebalance!$D$64,$F$2:$G$48,2,FALSE)+ROW()-2)),\"\")","v":{"$error":"#N/A"}},{"$f":"IF(INDIRECT(\"c\" & (VLOOKUP(Rebalance!$D$65,$F$2:$G$48,2,FALSE)+ROW()-2))=Rebalance!$D$65,INDIRECT(\"a\" & (VLOOKUP(Rebalance!$D$65,$F$2:$G$48,2,FALSE)+ROW()-2)),\"\")","v":{"$error":"#N/A"}},{"$f":"IF(INDIRECT(\"c\" & (VLOOKUP(Rebalance!$D$66,$F$2:$G$48,2,FALSE)+ROW()-2))=Rebalance!$D$66,INDIRECT(\"a\" & (VLOOKUP(Rebalance!$D$66,$F$2:$G$48,2,FALSE)+ROW()-2)),\"\")","v":{"$error":"#N/A"}}]
["Anchor BCI Global Equity Feeder Fund A","ABGEFF","Boutique Collective Investments (Pty) Ltd",{"$f":"ROW()","v":115},null,null,{"$f":"VLOOKUP(F115,$C$2:$D$599,2,FALSE)","v":{"$error":"#N/A"}},{"$f":"IF(INDIRECT(\"c\" & (VLOOKUP(Rebalance!$D$26,$F$2:$G$48,2,FALSE)+ROW()-2))=Rebalance!$D$26,INDIRECT(\"a\" & (VLOOKUP(Rebalance!$D$26,$F$2:$G$48,2,FALSE)+ROW()-2)),\"\")","v":{"$error":"#N/A"}},{"$f":"IF(INDIRECT(\"c\" & (VLOOKUP(Rebalance!$D$27,$F$2:$G$48,2,FALSE)+ROW()-2))=Rebalance!$D$27,INDIRECT(\"a\" & (VLOOKUP(Rebalance!$D$27,$F$2:$G$48,2,FALSE)+ROW()-2)),\"\")","v":{"$error":"#N/A"}},{"$f":"IF(INDIRECT(\"c\" & (VLOOKUP(Rebalance!$D$28,$F$2:$G$48,2,FALSE)+ROW()-2))=Rebalance!$D$28,INDIRECT(\"a\" & (VLOOKUP(Rebalance!$D$28,$F$2:$G$48,2,FALSE)+ROW()-2)),\"\")","v":{"$error":"#N/A"}},{"$f":"IF(INDIRECT(\"c\" & (VLOOKUP(Rebalance!$D$29,$F$2:$G$48,2,FALSE)+ROW()-2))=Rebalance!$D$29,INDIRECT(\"a\" & (VLOOKUP(Rebalance!$D$29,$F$2:$G$48,2,FALSE)+ROW()-2)),\"\")","v":{"$error":"#N/A"}},{"$f":"IF(INDIRECT(\"c\" & (VLOOKUP(Rebalance!$D$30,$F$2:$G$48,2,FALSE)+ROW()-2))=Rebalance!$D$30,INDIRECT(\"a\" & (VLOOKUP(Rebalance!$D$30,$F$2:$G$48,2,FALSE)+ROW()-2)),\"\")","v":{"$error":"#N/A"}},{"$f":"IF(INDIRECT(\"c\" & (VLOOKUP(Rebalance!$D$31,$F$2:$G$48,2,FALSE)+ROW()-2))=Rebalance!$D$31,INDIRECT(\"a\" & (VLOOKUP(Rebalance!$D$31,$F$2:$G$48,2,FALSE)+ROW()-2)),\"\")","v":{"$error":"#N/A"}},{"$f":"IF(INDIRECT(\"c\" & (VLOOKUP(Rebalance!$D$32,$F$2:$G$48,2,FALSE)+ROW()-2))=Rebalance!$D$32,INDIRECT(\"a\" & (VLOOKUP(Rebalance!$D$32,$F$2:$G$48,2,FALSE)+ROW()-2)),\"\")","v":{"$error":"#N/A"}},{"$f":"IF(INDIRECT(\"c\" & (VLOOKUP(Rebalance!$D$33,$F$2:$G$48,2,FALSE)+ROW()-2))=Rebalance!$D$33,INDIRECT(\"a\" & (VLOOKUP(Rebalance!$D$33,$F$2:$G$48,2,FALSE)+ROW()-2)),\"\")","v":{"$error":"#N/A"}},{"$f":"IF(INDIRECT(\"c\" & (VLOOKUP(Rebalance!$D$34,$F$2:$G$48,2,FALSE)+ROW()-2))=Rebalance!$D$34,INDIRECT(\"a\" & (VLOOKUP(Rebalance!$D$34,$F$2:$G$48,2,FALSE)+ROW()-2)),\"\")","v":{"$error":"#N/A"}},{"$f":"IF(INDIRECT(\"c\" & (VLOOKUP(Rebalance!$D$35,$F$2:$G$48,2,FALSE)+ROW()-2))=Rebalance!$D$35,INDIRECT(\"a\" & (VLOOKUP(Rebalance!$D$35,$F$2:$G$48,2,FALSE)+ROW()-2)),\"\")","v":{"$error":"#N/A"}},{"$f":"IF(INDIRECT(\"c\" & (VLOOKUP(Rebalance!$D$36,$F$2:$G$48,2,FALSE)+ROW()-2))=Rebalance!$D$36,INDIRECT(\"a\" & (VLOOKUP(Rebalance!$D$36,$F$2:$G$48,2,FALSE)+ROW()-2)),\"\")","v":{"$error":"#N/A"}},{"$f":"IF(INDIRECT(\"c\" & (VLOOKUP(Rebalance!$D$37,$F$2:$G$48,2,FALSE)+ROW()-2))=Rebalance!$D$37,INDIRECT(\"a\" & (VLOOKUP(Rebalance!$D$37,$F$2:$G$48,2,FALSE)+ROW()-2)),\"\")","v":{"$error":"#N/A"}},{"$f":"IF(INDIRECT(\"c\" & (VLOOKUP(Rebalance!$D$38,$F$2:$G$48,2,FALSE)+ROW()-2))=Rebalance!$D$38,INDIRECT(\"a\" & (VLOOKUP(Rebalance!$D$38,$F$2:$G$48,2,FALSE)+ROW()-2)),\"\")","v":{"$error":"#N/A"}},{"$f":"IF(INDIRECT(\"c\" & (VLOOKUP(Rebalance!$D$39,$F$2:$G$48,2,FALSE)+ROW()-2))=Rebalance!$D$39,INDIRECT(\"a\" & (VLOOKUP(Rebalance!$D$39,$F$2:$G$48,2,FALSE)+ROW()-2)),\"\")","v":{"$error":"#N/A"}},{"$f":"IF(INDIRECT(\"c\" & (VLOOKUP(Rebalance!$D$40,$F$2:$G$48,2,FALSE)+ROW()-2))=Rebalance!$D$40,INDIRECT(\"a\" & (VLOOKUP(Rebalance!$D$40,$F$2:$G$48,2,FALSE)+ROW()-2)),\"\")","v":{"$error":"#N/A"}},{"$f":"IF(INDIRECT(\"c\" & (VLOOKUP(Rebalance!$D$52,$F$2:$G$48,2,FALSE)+ROW()-2))=Rebalance!$D$52,INDIRECT(\"a\" & (VLOOKUP(Rebalance!$D$52,$F$2:$G$48,2,FALSE)+ROW()-2)),\"\")","v":{"$error":"#N/A"}},{"$f":"IF(INDIRECT(\"c\" & (VLOOKUP(Rebalance!$D$53,$F$2:$G$48,2,FALSE)+ROW()-2))=Rebalance!$D$53,INDIRECT(\"a\" & (VLOOKUP(Rebalance!$D$53,$F$2:$G$48,2,FALSE)+ROW()-2)),\"\")","v":{"$error":"#N/A"}},{"$f":"IF(INDIRECT(\"c\" & (VLOOKUP(Rebalance!$D$54,$F$2:$G$48,2,FALSE)+ROW()-2))=Rebalance!$D$54,INDIRECT(\"a\" & (VLOOKUP(Rebalance!$D$54,$F$2:$G$48,2,FALSE)+ROW()-2)),\"\")","v":{"$error":"#N/A"}},{"$f":"IF(INDIRECT(\"c\" & (VLOOKUP(Rebalance!$D$55,$F$2:$G$48,2,FALSE)+ROW()-2))=Rebalance!$D$55,INDIRECT(\"a\" & (VLOOKUP(Rebalance!$D$55,$F$2:$G$48,2,FALSE)+ROW()-2)),\"\")","v":{"$error":"#N/A"}},{"$f":"IF(INDIRECT(\"c\" & (VLOOKUP(Rebalance!$D$56,$F$2:$G$48,2,FALSE)+ROW()-2))=Rebalance!$D$56,INDIRECT(\"a\" & (VLOOKUP(Rebalance!$D$56,$F$2:$G$48,2,FALSE)+ROW()-2)),\"\")","v":{"$error":"#N/A"}},{"$f":"IF(INDIRECT(\"c\" & (VLOOKUP(Rebalance!$D$57,$F$2:$G$48,2,FALSE)+ROW()-2))=Rebalance!$D$57,INDIRECT(\"a\" & (VLOOKUP(Rebalance!$D$57,$F$2:$G$48,2,FALSE)+ROW()-2)),\"\")","v":{"$error":"#N/A"}},{"$f":"IF(INDIRECT(\"c\" & (VLOOKUP(Rebalance!$D$58,$F$2:$G$48,2,FALSE)+ROW()-2))=Rebalance!$D$58,INDIRECT(\"a\" & (VLOOKUP(Rebalance!$D$58,$F$2:$G$48,2,FALSE)+ROW()-2)),\"\")","v":{"$error":"#N/A"}},{"$f":"IF(INDIRECT(\"c\" & (VLOOKUP(Rebalance!$D$59,$F$2:$G$48,2,FALSE)+ROW()-2))=Rebalance!$D$59,INDIRECT(\"a\" & (VLOOKUP(Rebalance!$D$59,$F$2:$G$48,2,FALSE)+ROW()-2)),\"\")","v":{"$error":"#N/A"}},{"$f":"IF(INDIRECT(\"c\" & (VLOOKUP(Rebalance!$D$60,$F$2:$G$48,2,FALSE)+ROW()-2))=Rebalance!$D$60,INDIRECT(\"a\" & (VLOOKUP(Rebalance!$D$60,$F$2:$G$48,2,FALSE)+ROW()-2)),\"\")","v":{"$error":"#N/A"}},{"$f":"IF(INDIRECT(\"c\" & (VLOOKUP(Rebalance!$D$61,$F$2:$G$48,2,FALSE)+ROW()-2))=Rebalance!$D$61,INDIRECT(\"a\" & (VLOOKUP(Rebalance!$D$61,$F$2:$G$48,2,FALSE)+ROW()-2)),\"\")","v":{"$error":"#N/A"}},{"$f":"IF(INDIRECT(\"c\" & (VLOOKUP(Rebalance!$D$62,$F$2:$G$48,2,FALSE)+ROW()-2))=Rebalance!$D$62,INDIRECT(\"a\" & (VLOOKUP(Rebalance!$D$62,$F$2:$G$48,2,FALSE)+ROW()-2)),\"\")","v":{"$error":"#N/A"}},{"$f":"IF(INDIRECT(\"c\" & (VLOOKUP(Rebalance!$D$63,$F$2:$G$48,2,FALSE)+ROW()-2))=Rebalance!$D$63,INDIRECT(\"a\" & (VLOOKUP(Rebalance!$D$63,$F$2:$G$48,2,FALSE)+ROW()-2)),\"\")","v":{"$error":"#N/A"}},{"$f":"IF(INDIRECT(\"c\" & (VLOOKUP(Rebalance!$D$64,$F$2:$G$48,2,FALSE)+ROW()-2))=Rebalance!$D$64,INDIRECT(\"a\" & (VLOOKUP(Rebalance!$D$64,$F$2:$G$48,2,FALSE)+ROW()-2)),\"\")","v":{"$error":"#N/A"}},{"$f":"IF(INDIRECT(\"c\" & (VLOOKUP(Rebalance!$D$65,$F$2:$G$48,2,FALSE)+ROW()-2))=Rebalance!$D$65,INDIRECT(\"a\" & (VLOOKUP(Rebalance!$D$65,$F$2:$G$48,2,FALSE)+ROW()-2)),\"\")","v":{"$error":"#N/A"}},{"$f":"IF(INDIRECT(\"c\" & (VLOOKUP(Rebalance!$D$66,$F$2:$G$48,2,FALSE)+ROW()-2))=Rebalance!$D$66,INDIRECT(\"a\" & (VLOOKUP(Rebalance!$D$66,$F$2:$G$48,2,FALSE)+ROW()-2)),\"\")","v":{"$error":"#N/A"}}]
["Anchor BCI Managed Fund A","ABMF","Boutique Collective Investments (Pty) Ltd",{"$f":"ROW()","v":116},null,null,{"$f":"VLOOKUP(F116,$C$2:$D$599,2,FALSE)","v":{"$error":"#N/A"}},{"$f":"IF(INDIRECT(\"c\" & (VLOOKUP(Rebalance!$D$26,$F$2:$G$48,2,FALSE)+ROW()-2))=Rebalance!$D$26,INDIRECT(\"a\" & (VLOOKUP(Rebalance!$D$26,$F$2:$G$48,2,FALSE)+ROW()-2)),\"\")","v":{"$error":"#N/A"}},{"$f":"IF(INDIRECT(\"c\" & (VLOOKUP(Rebalance!$D$27,$F$2:$G$48,2,FALSE)+ROW()-2))=Rebalance!$D$27,INDIRECT(\"a\" & (VLOOKUP(Rebalance!$D$27,$F$2:$G$48,2,FALSE)+ROW()-2)),\"\")","v":{"$error":"#N/A"}},{"$f":"IF(INDIRECT(\"c\" & (VLOOKUP(Rebalance!$D$28,$F$2:$G$48,2,FALSE)+ROW()-2))=Rebalance!$D$28,INDIRECT(\"a\" & (VLOOKUP(Rebalance!$D$28,$F$2:$G$48,2,FALSE)+ROW()-2)),\"\")","v":{"$error":"#N/A"}},{"$f":"IF(INDIRECT(\"c\" & (VLOOKUP(Rebalance!$D$29,$F$2:$G$48,2,FALSE)+ROW()-2))=Rebalance!$D$29,INDIRECT(\"a\" & (VLOOKUP(Rebalance!$D$29,$F$2:$G$48,2,FALSE)+ROW()-2)),\"\")","v":{"$error":"#N/A"}},{"$f":"IF(INDIRECT(\"c\" & (VLOOKUP(Rebalance!$D$30,$F$2:$G$48,2,FALSE)+ROW()-2))=Rebalance!$D$30,INDIRECT(\"a\" & (VLOOKUP(Rebalance!$D$30,$F$2:$G$48,2,FALSE)+ROW()-2)),\"\")","v":{"$error":"#N/A"}},{"$f":"IF(INDIRECT(\"c\" & (VLOOKUP(Rebalance!$D$31,$F$2:$G$48,2,FALSE)+ROW()-2))=Rebalance!$D$31,INDIRECT(\"a\" & (VLOOKUP(Rebalance!$D$31,$F$2:$G$48,2,FALSE)+ROW()-2)),\"\")","v":{"$error":"#N/A"}},{"$f":"IF(INDIRECT(\"c\" & (VLOOKUP(Rebalance!$D$32,$F$2:$G$48,2,FALSE)+ROW()-2))=Rebalance!$D$32,INDIRECT(\"a\" & (VLOOKUP(Rebalance!$D$32,$F$2:$G$48,2,FALSE)+ROW()-2)),\"\")","v":{"$error":"#N/A"}},{"$f":"IF(INDIRECT(\"c\" & (VLOOKUP(Rebalance!$D$33,$F$2:$G$48,2,FALSE)+ROW()-2))=Rebalance!$D$33,INDIRECT(\"a\" & (VLOOKUP(Rebalance!$D$33,$F$2:$G$48,2,FALSE)+ROW()-2)),\"\")","v":{"$error":"#N/A"}},{"$f":"IF(INDIRECT(\"c\" & (VLOOKUP(Rebalance!$D$34,$F$2:$G$48,2,FALSE)+ROW()-2))=Rebalance!$D$34,INDIRECT(\"a\" & (VLOOKUP(Rebalance!$D$34,$F$2:$G$48,2,FALSE)+ROW()-2)),\"\")","v":{"$error":"#N/A"}},{"$f":"IF(INDIRECT(\"c\" & (VLOOKUP(Rebalance!$D$35,$F$2:$G$48,2,FALSE)+ROW()-2))=Rebalance!$D$35,INDIRECT(\"a\" & (VLOOKUP(Rebalance!$D$35,$F$2:$G$48,2,FALSE)+ROW()-2)),\"\")","v":{"$error":"#N/A"}},{"$f":"IF(INDIRECT(\"c\" & (VLOOKUP(Rebalance!$D$36,$F$2:$G$48,2,FALSE)+ROW()-2))=Rebalance!$D$36,INDIRECT(\"a\" & (VLOOKUP(Rebalance!$D$36,$F$2:$G$48,2,FALSE)+ROW()-2)),\"\")","v":{"$error":"#N/A"}},{"$f":"IF(INDIRECT(\"c\" & (VLOOKUP(Rebalance!$D$37,$F$2:$G$48,2,FALSE)+ROW()-2))=Rebalance!$D$37,INDIRECT(\"a\" & (VLOOKUP(Rebalance!$D$37,$F$2:$G$48,2,FALSE)+ROW()-2)),\"\")","v":{"$error":"#N/A"}},{"$f":"IF(INDIRECT(\"c\" & (VLOOKUP(Rebalance!$D$38,$F$2:$G$48,2,FALSE)+ROW()-2))=Rebalance!$D$38,INDIRECT(\"a\" & (VLOOKUP(Rebalance!$D$38,$F$2:$G$48,2,FALSE)+ROW()-2)),\"\")","v":{"$error":"#N/A"}},{"$f":"IF(INDIRECT(\"c\" & (VLOOKUP(Rebalance!$D$39,$F$2:$G$48,2,FALSE)+ROW()-2))=Rebalance!$D$39,INDIRECT(\"a\" & (VLOOKUP(Rebalance!$D$39,$F$2:$G$48,2,FALSE)+ROW()-2)),\"\")","v":{"$error":"#N/A"}},{"$f":"IF(INDIRECT(\"c\" & (VLOOKUP(Rebalance!$D$40,$F$2:$G$48,2,FALSE)+ROW()-2))=Rebalance!$D$40,INDIRECT(\"a\" & (VLOOKUP(Rebalance!$D$40,$F$2:$G$48,2,FALSE)+ROW()-2)),\"\")","v":{"$error":"#N/A"}},{"$f":"IF(INDIRECT(\"c\" & (VLOOKUP(Rebalance!$D$52,$F$2:$G$48,2,FALSE)+ROW()-2))=Rebalance!$D$52,INDIRECT(\"a\" & (VLOOKUP(Rebalance!$D$52,$F$2:$G$48,2,FALSE)+ROW()-2)),\"\")","v":{"$error":"#N/A"}},{"$f":"IF(INDIRECT(\"c\" & (VLOOKUP(Rebalance!$D$53,$F$2:$G$48,2,FALSE)+ROW()-2))=Rebalance!$D$53,INDIRECT(\"a\" & (VLOOKUP(Rebalance!$D$53,$F$2:$G$48,2,FALSE)+ROW()-2)),\"\")","v":{"$error":"#N/A"}},{"$f":"IF(INDIRECT(\"c\" & (VLOOKUP(Rebalance!$D$54,$F$2:$G$48,2,FALSE)+ROW()-2))=Rebalance!$D$54,INDIRECT(\"a\" & (VLOOKUP(Rebalance!$D$54,$F$2:$G$48,2,FALSE)+ROW()-2)),\"\")","v":{"$error":"#N/A"}},{"$f":"IF(INDIRECT(\"c\" & (VLOOKUP(Rebalance!$D$55,$F$2:$G$48,2,FALSE)+ROW()-2))=Rebalance!$D$55,INDIRECT(\"a\" & (VLOOKUP(Rebalance!$D$55,$F$2:$G$48,2,FALSE)+ROW()-2)),\"\")","v":{"$error":"#N/A"}},{"$f":"IF(INDIRECT(\"c\" & (VLOOKUP(Rebalance!$D$56,$F$2:$G$48,2,FALSE)+ROW()-2))=Rebalance!$D$56,INDIRECT(\"a\" & (VLOOKUP(Rebalance!$D$56,$F$2:$G$48,2,FALSE)+ROW()-2)),\"\")","v":{"$error":"#N/A"}},{"$f":"IF(INDIRECT(\"c\" & (VLOOKUP(Rebalance!$D$57,$F$2:$G$48,2,FALSE)+ROW()-2))=Rebalance!$D$57,INDIRECT(\"a\" & (VLOOKUP(Rebalance!$D$57,$F$2:$G$48,2,FALSE)+ROW()-2)),\"\")","v":{"$error":"#N/A"}},{"$f":"IF(INDIRECT(\"c\" & (VLOOKUP(Rebalance!$D$58,$F$2:$G$48,2,FALSE)+ROW()-2))=Rebalance!$D$58,INDIRECT(\"a\" & (VLOOKUP(Rebalance!$D$58,$F$2:$G$48,2,FALSE)+ROW()-2)),\"\")","v":{"$error":"#N/A"}},{"$f":"IF(INDIRECT(\"c\" & (VLOOKUP(Rebalance!$D$59,$F$2:$G$48,2,FALSE)+ROW()-2))=Rebalance!$D$59,INDIRECT(\"a\" & (VLOOKUP(Rebalance!$D$59,$F$2:$G$48,2,FALSE)+ROW()-2)),\"\")","v":{"$error":"#N/A"}},{"$f":"IF(INDIRECT(\"c\" & (VLOOKUP(Rebalance!$D$60,$F$2:$G$48,2,FALSE)+ROW()-2))=Rebalance!$D$60,INDIRECT(\"a\" & (VLOOKUP(Rebalance!$D$60,$F$2:$G$48,2,FALSE)+ROW()-2)),\"\")","v":{"$error":"#N/A"}},{"$f":"IF(INDIRECT(\"c\" & (VLOOKUP(Rebalance!$D$61,$F$2:$G$48,2,FALSE)+ROW()-2))=Rebalance!$D$61,INDIRECT(\"a\" & (VLOOKUP(Rebalance!$D$61,$F$2:$G$48,2,FALSE)+ROW()-2)),\"\")","v":{"$error":"#N/A"}},{"$f":"IF(INDIRECT(\"c\" & (VLOOKUP(Rebalance!$D$62,$F$2:$G$48,2,FALSE)+ROW()-2))=Rebalance!$D$62,INDIRECT(\"a\" & (VLOOKUP(Rebalance!$D$62,$F$2:$G$48,2,FALSE)+ROW()-2)),\"\")","v":{"$error":"#N/A"}},{"$f":"IF(INDIRECT(\"c\" & (VLOOKUP(Rebalance!$D$63,$F$2:$G$48,2,FALSE)+ROW()-2))=Rebalance!$D$63,INDIRECT(\"a\" & (VLOOKUP(Rebalance!$D$63,$F$2:$G$48,2,FALSE)+ROW()-2)),\"\")","v":{"$error":"#N/A"}},{"$f":"IF(INDIRECT(\"c\" & (VLOOKUP(Rebalance!$D$64,$F$2:$G$48,2,FALSE)+ROW()-2))=Rebalance!$D$64,INDIRECT(\"a\" & (VLOOKUP(Rebalance!$D$64,$F$2:$G$48,2,FALSE)+ROW()-2)),\"\")","v":{"$error":"#N/A"}},{"$f":"IF(INDIRECT(\"c\" & (VLOOKUP(Rebalance!$D$65,$F$2:$G$48,2,FALSE)+ROW()-2))=Rebalance!$D$65,INDIRECT(\"a\" & (VLOOKUP(Rebalance!$D$65,$F$2:$G$48,2,FALSE)+ROW()-2)),\"\")","v":{"$error":"#N/A"}},{"$f":"IF(INDIRECT(\"c\" & (VLOOKUP(Rebalance!$D$66,$F$2:$G$48,2,FALSE)+ROW()-2))=Rebalance!$D$66,INDIRECT(\"a\" & (VLOOKUP(Rebalance!$D$66,$F$2:$G$48,2,FALSE)+ROW()-2)),\"\")","v":{"$error":"#N/A"}}]
["Anchor BCI Property Fund A","ABPFA","Boutique Collective Investments (Pty) Ltd",{"$f":"ROW()","v":117},null,null,{"$f":"VLOOKUP(F117,$C$2:$D$599,2,FALSE)","v":{"$error":"#N/A"}},{"$f":"IF(INDIRECT(\"c\" & (VLOOKUP(Rebalance!$D$26,$F$2:$G$48,2,FALSE)+ROW()-2))=Rebalance!$D$26,INDIRECT(\"a\" & (VLOOKUP(Rebalance!$D$26,$F$2:$G$48,2,FALSE)+ROW()-2)),\"\")","v":{"$error":"#N/A"}},{"$f":"IF(INDIRECT(\"c\" & (VLOOKUP(Rebalance!$D$27,$F$2:$G$48,2,FALSE)+ROW()-2))=Rebalance!$D$27,INDIRECT(\"a\" & (VLOOKUP(Rebalance!$D$27,$F$2:$G$48,2,FALSE)+ROW()-2)),\"\")","v":{"$error":"#N/A"}},{"$f":"IF(INDIRECT(\"c\" & (VLOOKUP(Rebalance!$D$28,$F$2:$G$48,2,FALSE)+ROW()-2))=Rebalance!$D$28,INDIRECT(\"a\" & (VLOOKUP(Rebalance!$D$28,$F$2:$G$48,2,FALSE)+ROW()-2)),\"\")","v":{"$error":"#N/A"}},{"$f":"IF(INDIRECT(\"c\" & (VLOOKUP(Rebalance!$D$29,$F$2:$G$48,2,FALSE)+ROW()-2))=Rebalance!$D$29,INDIRECT(\"a\" & (VLOOKUP(Rebalance!$D$29,$F$2:$G$48,2,FALSE)+ROW()-2)),\"\")","v":{"$error":"#N/A"}},{"$f":"IF(INDIRECT(\"c\" & (VLOOKUP(Rebalance!$D$30,$F$2:$G$48,2,FALSE)+ROW()-2))=Rebalance!$D$30,INDIRECT(\"a\" & (VLOOKUP(Rebalance!$D$30,$F$2:$G$48,2,FALSE)+ROW()-2)),\"\")","v":{"$error":"#N/A"}},{"$f":"IF(INDIRECT(\"c\" & (VLOOKUP(Rebalance!$D$31,$F$2:$G$48,2,FALSE)+ROW()-2))=Rebalance!$D$31,INDIRECT(\"a\" & (VLOOKUP(Rebalance!$D$31,$F$2:$G$48,2,FALSE)+ROW()-2)),\"\")","v":{"$error":"#N/A"}},{"$f":"IF(INDIRECT(\"c\" & (VLOOKUP(Rebalance!$D$32,$F$2:$G$48,2,FALSE)+ROW()-2))=Rebalance!$D$32,INDIRECT(\"a\" & (VLOOKUP(Rebalance!$D$32,$F$2:$G$48,2,FALSE)+ROW()-2)),\"\")","v":{"$error":"#N/A"}},{"$f":"IF(INDIRECT(\"c\" & (VLOOKUP(Rebalance!$D$33,$F$2:$G$48,2,FALSE)+ROW()-2))=Rebalance!$D$33,INDIRECT(\"a\" & (VLOOKUP(Rebalance!$D$33,$F$2:$G$48,2,FALSE)+ROW()-2)),\"\")","v":{"$error":"#N/A"}},{"$f":"IF(INDIRECT(\"c\" & (VLOOKUP(Rebalance!$D$34,$F$2:$G$48,2,FALSE)+ROW()-2))=Rebalance!$D$34,INDIRECT(\"a\" & (VLOOKUP(Rebalance!$D$34,$F$2:$G$48,2,FALSE)+ROW()-2)),\"\")","v":{"$error":"#N/A"}},{"$f":"IF(INDIRECT(\"c\" & (VLOOKUP(Rebalance!$D$35,$F$2:$G$48,2,FALSE)+ROW()-2))=Rebalance!$D$35,INDIRECT(\"a\" & (VLOOKUP(Rebalance!$D$35,$F$2:$G$48,2,FALSE)+ROW()-2)),\"\")","v":{"$error":"#N/A"}},{"$f":"IF(INDIRECT(\"c\" & (VLOOKUP(Rebalance!$D$36,$F$2:$G$48,2,FALSE)+ROW()-2))=Rebalance!$D$36,INDIRECT(\"a\" & (VLOOKUP(Rebalance!$D$36,$F$2:$G$48,2,FALSE)+ROW()-2)),\"\")","v":{"$error":"#N/A"}},{"$f":"IF(INDIRECT(\"c\" & (VLOOKUP(Rebalance!$D$37,$F$2:$G$48,2,FALSE)+ROW()-2))=Rebalance!$D$37,INDIRECT(\"a\" & (VLOOKUP(Rebalance!$D$37,$F$2:$G$48,2,FALSE)+ROW()-2)),\"\")","v":{"$error":"#N/A"}},{"$f":"IF(INDIRECT(\"c\" & (VLOOKUP(Rebalance!$D$38,$F$2:$G$48,2,FALSE)+ROW()-2))=Rebalance!$D$38,INDIRECT(\"a\" & (VLOOKUP(Rebalance!$D$38,$F$2:$G$48,2,FALSE)+ROW()-2)),\"\")","v":{"$error":"#N/A"}},{"$f":"IF(INDIRECT(\"c\" & (VLOOKUP(Rebalance!$D$39,$F$2:$G$48,2,FALSE)+ROW()-2))=Rebalance!$D$39,INDIRECT(\"a\" & (VLOOKUP(Rebalance!$D$39,$F$2:$G$48,2,FALSE)+ROW()-2)),\"\")","v":{"$error":"#N/A"}},{"$f":"IF(INDIRECT(\"c\" & (VLOOKUP(Rebalance!$D$40,$F$2:$G$48,2,FALSE)+ROW()-2))=Rebalance!$D$40,INDIRECT(\"a\" & (VLOOKUP(Rebalance!$D$40,$F$2:$G$48,2,FALSE)+ROW()-2)),\"\")","v":{"$error":"#N/A"}},{"$f":"IF(INDIRECT(\"c\" & (VLOOKUP(Rebalance!$D$52,$F$2:$G$48,2,FALSE)+ROW()-2))=Rebalance!$D$52,INDIRECT(\"a\" & (VLOOKUP(Rebalance!$D$52,$F$2:$G$48,2,FALSE)+ROW()-2)),\"\")","v":{"$error":"#N/A"}},{"$f":"IF(INDIRECT(\"c\" & (VLOOKUP(Rebalance!$D$53,$F$2:$G$48,2,FALSE)+ROW()-2))=Rebalance!$D$53,INDIRECT(\"a\" & (VLOOKUP(Rebalance!$D$53,$F$2:$G$48,2,FALSE)+ROW()-2)),\"\")","v":{"$error":"#N/A"}},{"$f":"IF(INDIRECT(\"c\" & (VLOOKUP(Rebalance!$D$54,$F$2:$G$48,2,FALSE)+ROW()-2))=Rebalance!$D$54,INDIRECT(\"a\" & (VLOOKUP(Rebalance!$D$54,$F$2:$G$48,2,FALSE)+ROW()-2)),\"\")","v":{"$error":"#N/A"}},{"$f":"IF(INDIRECT(\"c\" & (VLOOKUP(Rebalance!$D$55,$F$2:$G$48,2,FALSE)+ROW()-2))=Rebalance!$D$55,INDIRECT(\"a\" & (VLOOKUP(Rebalance!$D$55,$F$2:$G$48,2,FALSE)+ROW()-2)),\"\")","v":{"$error":"#N/A"}},{"$f":"IF(INDIRECT(\"c\" & (VLOOKUP(Rebalance!$D$56,$F$2:$G$48,2,FALSE)+ROW()-2))=Rebalance!$D$56,INDIRECT(\"a\" & (VLOOKUP(Rebalance!$D$56,$F$2:$G$48,2,FALSE)+ROW()-2)),\"\")","v":{"$error":"#N/A"}},{"$f":"IF(INDIRECT(\"c\" & (VLOOKUP(Rebalance!$D$57,$F$2:$G$48,2,FALSE)+ROW()-2))=Rebalance!$D$57,INDIRECT(\"a\" & (VLOOKUP(Rebalance!$D$57,$F$2:$G$48,2,FALSE)+ROW()-2)),\"\")","v":{"$error":"#N/A"}},{"$f":"IF(INDIRECT(\"c\" & (VLOOKUP(Rebalance!$D$58,$F$2:$G$48,2,FALSE)+ROW()-2))=Rebalance!$D$58,INDIRECT(\"a\" & (VLOOKUP(Rebalance!$D$58,$F$2:$G$48,2,FALSE)+ROW()-2)),\"\")","v":{"$error":"#N/A"}},{"$f":"IF(INDIRECT(\"c\" & (VLOOKUP(Rebalance!$D$59,$F$2:$G$48,2,FALSE)+ROW()-2))=Rebalance!$D$59,INDIRECT(\"a\" & (VLOOKUP(Rebalance!$D$59,$F$2:$G$48,2,FALSE)+ROW()-2)),\"\")","v":{"$error":"#N/A"}},{"$f":"IF(INDIRECT(\"c\" & (VLOOKUP(Rebalance!$D$60,$F$2:$G$48,2,FALSE)+ROW()-2))=Rebalance!$D$60,INDIRECT(\"a\" & (VLOOKUP(Rebalance!$D$60,$F$2:$G$48,2,FALSE)+ROW()-2)),\"\")","v":{"$error":"#N/A"}},{"$f":"IF(INDIRECT(\"c\" & (VLOOKUP(Rebalance!$D$61,$F$2:$G$48,2,FALSE)+ROW()-2))=Rebalance!$D$61,INDIRECT(\"a\" & (VLOOKUP(Rebalance!$D$61,$F$2:$G$48,2,FALSE)+ROW()-2)),\"\")","v":{"$error":"#N/A"}},{"$f":"IF(INDIRECT(\"c\" & (VLOOKUP(Rebalance!$D$62,$F$2:$G$48,2,FALSE)+ROW()-2))=Rebalance!$D$62,INDIRECT(\"a\" & (VLOOKUP(Rebalance!$D$62,$F$2:$G$48,2,FALSE)+ROW()-2)),\"\")","v":{"$error":"#N/A"}},{"$f":"IF(INDIRECT(\"c\" & (VLOOKUP(Rebalance!$D$63,$F$2:$G$48,2,FALSE)+ROW()-2))=Rebalance!$D$63,INDIRECT(\"a\" & (VLOOKUP(Rebalance!$D$63,$F$2:$G$48,2,FALSE)+ROW()-2)),\"\")","v":{"$error":"#N/A"}},{"$f":"IF(INDIRECT(\"c\" & (VLOOKUP(Rebalance!$D$64,$F$2:$G$48,2,FALSE)+ROW()-2))=Rebalance!$D$64,INDIRECT(\"a\" & (VLOOKUP(Rebalance!$D$64,$F$2:$G$48,2,FALSE)+ROW()-2)),\"\")","v":{"$error":"#N/A"}},{"$f":"IF(INDIRECT(\"c\" & (VLOOKUP(Rebalance!$D$65,$F$2:$G$48,2,FALSE)+ROW()-2))=Rebalance!$D$65,INDIRECT(\"a\" & (VLOOKUP(Rebalance!$D$65,$F$2:$G$48,2,FALSE)+ROW()-2)),\"\")","v":{"$error":"#N/A"}},{"$f":"IF(INDIRECT(\"c\" & (VLOOKUP(Rebalance!$D$66,$F$2:$G$48,2,FALSE)+ROW()-2))=Rebalance!$D$66,INDIRECT(\"a\" & (VLOOKUP(Rebalance!$D$66,$F$2:$G$48,2,FALSE)+ROW()-2)),\"\")","v":{"$error":"#N/A"}}]
["Anchor BCI SA Equity Fund A","ABEFA","Boutique Collective Investments (Pty) Ltd",{"$f":"ROW()","v":118},null,null,{"$f":"VLOOKUP(F118,$C$2:$D$599,2,FALSE)","v":{"$error":"#N/A"}},{"$f":"IF(INDIRECT(\"c\" & (VLOOKUP(Rebalance!$D$26,$F$2:$G$48,2,FALSE)+ROW()-2))=Rebalance!$D$26,INDIRECT(\"a\" & (VLOOKUP(Rebalance!$D$26,$F$2:$G$48,2,FALSE)+ROW()-2)),\"\")","v":{"$error":"#N/A"}},{"$f":"IF(INDIRECT(\"c\" & (VLOOKUP(Rebalance!$D$27,$F$2:$G$48,2,FALSE)+ROW()-2))=Rebalance!$D$27,INDIRECT(\"a\" & (VLOOKUP(Rebalance!$D$27,$F$2:$G$48,2,FALSE)+ROW()-2)),\"\")","v":{"$error":"#N/A"}},{"$f":"IF(INDIRECT(\"c\" & (VLOOKUP(Rebalance!$D$28,$F$2:$G$48,2,FALSE)+ROW()-2))=Rebalance!$D$28,INDIRECT(\"a\" & (VLOOKUP(Rebalance!$D$28,$F$2:$G$48,2,FALSE)+ROW()-2)),\"\")","v":{"$error":"#N/A"}},{"$f":"IF(INDIRECT(\"c\" & (VLOOKUP(Rebalance!$D$29,$F$2:$G$48,2,FALSE)+ROW()-2))=Rebalance!$D$29,INDIRECT(\"a\" & (VLOOKUP(Rebalance!$D$29,$F$2:$G$48,2,FALSE)+ROW()-2)),\"\")","v":{"$error":"#N/A"}},{"$f":"IF(INDIRECT(\"c\" & (VLOOKUP(Rebalance!$D$30,$F$2:$G$48,2,FALSE)+ROW()-2))=Rebalance!$D$30,INDIRECT(\"a\" & (VLOOKUP(Rebalance!$D$30,$F$2:$G$48,2,FALSE)+ROW()-2)),\"\")","v":{"$error":"#N/A"}},{"$f":"IF(INDIRECT(\"c\" & (VLOOKUP(Rebalance!$D$31,$F$2:$G$48,2,FALSE)+ROW()-2))=Rebalance!$D$31,INDIRECT(\"a\" & (VLOOKUP(Rebalance!$D$31,$F$2:$G$48,2,FALSE)+ROW()-2)),\"\")","v":{"$error":"#N/A"}},{"$f":"IF(INDIRECT(\"c\" & (VLOOKUP(Rebalance!$D$32,$F$2:$G$48,2,FALSE)+ROW()-2))=Rebalance!$D$32,INDIRECT(\"a\" & (VLOOKUP(Rebalance!$D$32,$F$2:$G$48,2,FALSE)+ROW()-2)),\"\")","v":{"$error":"#N/A"}},{"$f":"IF(INDIRECT(\"c\" & (VLOOKUP(Rebalance!$D$33,$F$2:$G$48,2,FALSE)+ROW()-2))=Rebalance!$D$33,INDIRECT(\"a\" & (VLOOKUP(Rebalance!$D$33,$F$2:$G$48,2,FALSE)+ROW()-2)),\"\")","v":{"$error":"#N/A"}},{"$f":"IF(INDIRECT(\"c\" & (VLOOKUP(Rebalance!$D$34,$F$2:$G$48,2,FALSE)+ROW()-2))=Rebalance!$D$34,INDIRECT(\"a\" & (VLOOKUP(Rebalance!$D$34,$F$2:$G$48,2,FALSE)+ROW()-2)),\"\")","v":{"$error":"#N/A"}},{"$f":"IF(INDIRECT(\"c\" & (VLOOKUP(Rebalance!$D$35,$F$2:$G$48,2,FALSE)+ROW()-2))=Rebalance!$D$35,INDIRECT(\"a\" & (VLOOKUP(Rebalance!$D$35,$F$2:$G$48,2,FALSE)+ROW()-2)),\"\")","v":{"$error":"#N/A"}},{"$f":"IF(INDIRECT(\"c\" & (VLOOKUP(Rebalance!$D$36,$F$2:$G$48,2,FALSE)+ROW()-2))=Rebalance!$D$36,INDIRECT(\"a\" & (VLOOKUP(Rebalance!$D$36,$F$2:$G$48,2,FALSE)+ROW()-2)),\"\")","v":{"$error":"#N/A"}},{"$f":"IF(INDIRECT(\"c\" & (VLOOKUP(Rebalance!$D$37,$F$2:$G$48,2,FALSE)+ROW()-2))=Rebalance!$D$37,INDIRECT(\"a\" & (VLOOKUP(Rebalance!$D$37,$F$2:$G$48,2,FALSE)+ROW()-2)),\"\")","v":{"$error":"#N/A"}},{"$f":"IF(INDIRECT(\"c\" & (VLOOKUP(Rebalance!$D$38,$F$2:$G$48,2,FALSE)+ROW()-2))=Rebalance!$D$38,INDIRECT(\"a\" & (VLOOKUP(Rebalance!$D$38,$F$2:$G$48,2,FALSE)+ROW()-2)),\"\")","v":{"$error":"#N/A"}},{"$f":"IF(INDIRECT(\"c\" & (VLOOKUP(Rebalance!$D$39,$F$2:$G$48,2,FALSE)+ROW()-2))=Rebalance!$D$39,INDIRECT(\"a\" & (VLOOKUP(Rebalance!$D$39,$F$2:$G$48,2,FALSE)+ROW()-2)),\"\")","v":{"$error":"#N/A"}},{"$f":"IF(INDIRECT(\"c\" & (VLOOKUP(Rebalance!$D$40,$F$2:$G$48,2,FALSE)+ROW()-2))=Rebalance!$D$40,INDIRECT(\"a\" & (VLOOKUP(Rebalance!$D$40,$F$2:$G$48,2,FALSE)+ROW()-2)),\"\")","v":{"$error":"#N/A"}},{"$f":"IF(INDIRECT(\"c\" & (VLOOKUP(Rebalance!$D$52,$F$2:$G$48,2,FALSE)+ROW()-2))=Rebalance!$D$52,INDIRECT(\"a\" & (VLOOKUP(Rebalance!$D$52,$F$2:$G$48,2,FALSE)+ROW()-2)),\"\")","v":{"$error":"#N/A"}},{"$f":"IF(INDIRECT(\"c\" & (VLOOKUP(Rebalance!$D$53,$F$2:$G$48,2,FALSE)+ROW()-2))=Rebalance!$D$53,INDIRECT(\"a\" & (VLOOKUP(Rebalance!$D$53,$F$2:$G$48,2,FALSE)+ROW()-2)),\"\")","v":{"$error":"#N/A"}},{"$f":"IF(INDIRECT(\"c\" & (VLOOKUP(Rebalance!$D$54,$F$2:$G$48,2,FALSE)+ROW()-2))=Rebalance!$D$54,INDIRECT(\"a\" & (VLOOKUP(Rebalance!$D$54,$F$2:$G$48,2,FALSE)+ROW()-2)),\"\")","v":{"$error":"#N/A"}},{"$f":"IF(INDIRECT(\"c\" & (VLOOKUP(Rebalance!$D$55,$F$2:$G$48,2,FALSE)+ROW()-2))=Rebalance!$D$55,INDIRECT(\"a\" & (VLOOKUP(Rebalance!$D$55,$F$2:$G$48,2,FALSE)+ROW()-2)),\"\")","v":{"$error":"#N/A"}},{"$f":"IF(INDIRECT(\"c\" & (VLOOKUP(Rebalance!$D$56,$F$2:$G$48,2,FALSE)+ROW()-2))=Rebalance!$D$56,INDIRECT(\"a\" & (VLOOKUP(Rebalance!$D$56,$F$2:$G$48,2,FALSE)+ROW()-2)),\"\")","v":{"$error":"#N/A"}},{"$f":"IF(INDIRECT(\"c\" & (VLOOKUP(Rebalance!$D$57,$F$2:$G$48,2,FALSE)+ROW()-2))=Rebalance!$D$57,INDIRECT(\"a\" & (VLOOKUP(Rebalance!$D$57,$F$2:$G$48,2,FALSE)+ROW()-2)),\"\")","v":{"$error":"#N/A"}},{"$f":"IF(INDIRECT(\"c\" & (VLOOKUP(Rebalance!$D$58,$F$2:$G$48,2,FALSE)+ROW()-2))=Rebalance!$D$58,INDIRECT(\"a\" & (VLOOKUP(Rebalance!$D$58,$F$2:$G$48,2,FALSE)+ROW()-2)),\"\")","v":{"$error":"#N/A"}},{"$f":"IF(INDIRECT(\"c\" & (VLOOKUP(Rebalance!$D$59,$F$2:$G$48,2,FALSE)+ROW()-2))=Rebalance!$D$59,INDIRECT(\"a\" & (VLOOKUP(Rebalance!$D$59,$F$2:$G$48,2,FALSE)+ROW()-2)),\"\")","v":{"$error":"#N/A"}},{"$f":"IF(INDIRECT(\"c\" & (VLOOKUP(Rebalance!$D$60,$F$2:$G$48,2,FALSE)+ROW()-2))=Rebalance!$D$60,INDIRECT(\"a\" & (VLOOKUP(Rebalance!$D$60,$F$2:$G$48,2,FALSE)+ROW()-2)),\"\")","v":{"$error":"#N/A"}},{"$f":"IF(INDIRECT(\"c\" & (VLOOKUP(Rebalance!$D$61,$F$2:$G$48,2,FALSE)+ROW()-2))=Rebalance!$D$61,INDIRECT(\"a\" & (VLOOKUP(Rebalance!$D$61,$F$2:$G$48,2,FALSE)+ROW()-2)),\"\")","v":{"$error":"#N/A"}},{"$f":"IF(INDIRECT(\"c\" & (VLOOKUP(Rebalance!$D$62,$F$2:$G$48,2,FALSE)+ROW()-2))=Rebalance!$D$62,INDIRECT(\"a\" & (VLOOKUP(Rebalance!$D$62,$F$2:$G$48,2,FALSE)+ROW()-2)),\"\")","v":{"$error":"#N/A"}},{"$f":"IF(INDIRECT(\"c\" & (VLOOKUP(Rebalance!$D$63,$F$2:$G$48,2,FALSE)+ROW()-2))=Rebalance!$D$63,INDIRECT(\"a\" & (VLOOKUP(Rebalance!$D$63,$F$2:$G$48,2,FALSE)+ROW()-2)),\"\")","v":{"$error":"#N/A"}},{"$f":"IF(INDIRECT(\"c\" & (VLOOKUP(Rebalance!$D$64,$F$2:$G$48,2,FALSE)+ROW()-2))=Rebalance!$D$64,INDIRECT(\"a\" & (VLOOKUP(Rebalance!$D$64,$F$2:$G$48,2,FALSE)+ROW()-2)),\"\")","v":{"$error":"#N/A"}},{"$f":"IF(INDIRECT(\"c\" & (VLOOKUP(Rebalance!$D$65,$F$2:$G$48,2,FALSE)+ROW()-2))=Rebalance!$D$65,INDIRECT(\"a\" & (VLOOKUP(Rebalance!$D$65,$F$2:$G$48,2,FALSE)+ROW()-2)),\"\")","v":{"$error":"#N/A"}},{"$f":"IF(INDIRECT(\"c\" & (VLOOKUP(Rebalance!$D$66,$F$2:$G$48,2,FALSE)+ROW()-2))=Rebalance!$D$66,INDIRECT(\"a\" & (VLOOKUP(Rebalance!$D$66,$F$2:$G$48,2,FALSE)+ROW()-2)),\"\")","v":{"$error":"#N/A"}}]
["Anchor BCI Worldwide Flexible Fund A","AMWFA","Boutique Collective Investments (Pty) Ltd",{"$f":"ROW()","v":119},null,null,{"$f":"VLOOKUP(F119,$C$2:$D$599,2,FALSE)","v":{"$error":"#N/A"}},{"$f":"IF(INDIRECT(\"c\" & (VLOOKUP(Rebalance!$D$26,$F$2:$G$48,2,FALSE)+ROW()-2))=Rebalance!$D$26,INDIRECT(\"a\" & (VLOOKUP(Rebalance!$D$26,$F$2:$G$48,2,FALSE)+ROW()-2)),\"\")","v":{"$error":"#N/A"}},{"$f":"IF(INDIRECT(\"c\" & (VLOOKUP(Rebalance!$D$27,$F$2:$G$48,2,FALSE)+ROW()-2))=Rebalance!$D$27,INDIRECT(\"a\" & (VLOOKUP(Rebalance!$D$27,$F$2:$G$48,2,FALSE)+ROW()-2)),\"\")","v":{"$error":"#N/A"}},{"$f":"IF(INDIRECT(\"c\" & (VLOOKUP(Rebalance!$D$28,$F$2:$G$48,2,FALSE)+ROW()-2))=Rebalance!$D$28,INDIRECT(\"a\" & (VLOOKUP(Rebalance!$D$28,$F$2:$G$48,2,FALSE)+ROW()-2)),\"\")","v":{"$error":"#N/A"}},{"$f":"IF(INDIRECT(\"c\" & (VLOOKUP(Rebalance!$D$29,$F$2:$G$48,2,FALSE)+ROW()-2))=Rebalance!$D$29,INDIRECT(\"a\" & (VLOOKUP(Rebalance!$D$29,$F$2:$G$48,2,FALSE)+ROW()-2)),\"\")","v":{"$error":"#N/A"}},{"$f":"IF(INDIRECT(\"c\" & (VLOOKUP(Rebalance!$D$30,$F$2:$G$48,2,FALSE)+ROW()-2))=Rebalance!$D$30,INDIRECT(\"a\" & (VLOOKUP(Rebalance!$D$30,$F$2:$G$48,2,FALSE)+ROW()-2)),\"\")","v":{"$error":"#N/A"}},{"$f":"IF(INDIRECT(\"c\" & (VLOOKUP(Rebalance!$D$31,$F$2:$G$48,2,FALSE)+ROW()-2))=Rebalance!$D$31,INDIRECT(\"a\" & (VLOOKUP(Rebalance!$D$31,$F$2:$G$48,2,FALSE)+ROW()-2)),\"\")","v":{"$error":"#N/A"}},{"$f":"IF(INDIRECT(\"c\" & (VLOOKUP(Rebalance!$D$32,$F$2:$G$48,2,FALSE)+ROW()-2))=Rebalance!$D$32,INDIRECT(\"a\" & (VLOOKUP(Rebalance!$D$32,$F$2:$G$48,2,FALSE)+ROW()-2)),\"\")","v":{"$error":"#N/A"}},{"$f":"IF(INDIRECT(\"c\" & (VLOOKUP(Rebalance!$D$33,$F$2:$G$48,2,FALSE)+ROW()-2))=Rebalance!$D$33,INDIRECT(\"a\" & (VLOOKUP(Rebalance!$D$33,$F$2:$G$48,2,FALSE)+ROW()-2)),\"\")","v":{"$error":"#N/A"}},{"$f":"IF(INDIRECT(\"c\" & (VLOOKUP(Rebalance!$D$34,$F$2:$G$48,2,FALSE)+ROW()-2))=Rebalance!$D$34,INDIRECT(\"a\" & (VLOOKUP(Rebalance!$D$34,$F$2:$G$48,2,FALSE)+ROW()-2)),\"\")","v":{"$error":"#N/A"}},{"$f":"IF(INDIRECT(\"c\" & (VLOOKUP(Rebalance!$D$35,$F$2:$G$48,2,FALSE)+ROW()-2))=Rebalance!$D$35,INDIRECT(\"a\" & (VLOOKUP(Rebalance!$D$35,$F$2:$G$48,2,FALSE)+ROW()-2)),\"\")","v":{"$error":"#N/A"}},{"$f":"IF(INDIRECT(\"c\" & (VLOOKUP(Rebalance!$D$36,$F$2:$G$48,2,FALSE)+ROW()-2))=Rebalance!$D$36,INDIRECT(\"a\" & (VLOOKUP(Rebalance!$D$36,$F$2:$G$48,2,FALSE)+ROW()-2)),\"\")","v":{"$error":"#N/A"}},{"$f":"IF(INDIRECT(\"c\" & (VLOOKUP(Rebalance!$D$37,$F$2:$G$48,2,FALSE)+ROW()-2))=Rebalance!$D$37,INDIRECT(\"a\" & (VLOOKUP(Rebalance!$D$37,$F$2:$G$48,2,FALSE)+ROW()-2)),\"\")","v":{"$error":"#N/A"}},{"$f":"IF(INDIRECT(\"c\" & (VLOOKUP(Rebalance!$D$38,$F$2:$G$48,2,FALSE)+ROW()-2))=Rebalance!$D$38,INDIRECT(\"a\" & (VLOOKUP(Rebalance!$D$38,$F$2:$G$48,2,FALSE)+ROW()-2)),\"\")","v":{"$error":"#N/A"}},{"$f":"IF(INDIRECT(\"c\" & (VLOOKUP(Rebalance!$D$39,$F$2:$G$48,2,FALSE)+ROW()-2))=Rebalance!$D$39,INDIRECT(\"a\" & (VLOOKUP(Rebalance!$D$39,$F$2:$G$48,2,FALSE)+ROW()-2)),\"\")","v":{"$error":"#N/A"}},{"$f":"IF(INDIRECT(\"c\" & (VLOOKUP(Rebalance!$D$40,$F$2:$G$48,2,FALSE)+ROW()-2))=Rebalance!$D$40,INDIRECT(\"a\" & (VLOOKUP(Rebalance!$D$40,$F$2:$G$48,2,FALSE)+ROW()-2)),\"\")","v":{"$error":"#N/A"}},{"$f":"IF(INDIRECT(\"c\" & (VLOOKUP(Rebalance!$D$52,$F$2:$G$48,2,FALSE)+ROW()-2))=Rebalance!$D$52,INDIRECT(\"a\" & (VLOOKUP(Rebalance!$D$52,$F$2:$G$48,2,FALSE)+ROW()-2)),\"\")","v":{"$error":"#N/A"}},{"$f":"IF(INDIRECT(\"c\" & (VLOOKUP(Rebalance!$D$53,$F$2:$G$48,2,FALSE)+ROW()-2))=Rebalance!$D$53,INDIRECT(\"a\" & (VLOOKUP(Rebalance!$D$53,$F$2:$G$48,2,FALSE)+ROW()-2)),\"\")","v":{"$error":"#N/A"}},{"$f":"IF(INDIRECT(\"c\" & (VLOOKUP(Rebalance!$D$54,$F$2:$G$48,2,FALSE)+ROW()-2))=Rebalance!$D$54,INDIRECT(\"a\" & (VLOOKUP(Rebalance!$D$54,$F$2:$G$48,2,FALSE)+ROW()-2)),\"\")","v":{"$error":"#N/A"}},{"$f":"IF(INDIRECT(\"c\" & (VLOOKUP(Rebalance!$D$55,$F$2:$G$48,2,FALSE)+ROW()-2))=Rebalance!$D$55,INDIRECT(\"a\" & (VLOOKUP(Rebalance!$D$55,$F$2:$G$48,2,FALSE)+ROW()-2)),\"\")","v":{"$error":"#N/A"}},{"$f":"IF(INDIRECT(\"c\" & (VLOOKUP(Rebalance!$D$56,$F$2:$G$48,2,FALSE)+ROW()-2))=Rebalance!$D$56,INDIRECT(\"a\" & (VLOOKUP(Rebalance!$D$56,$F$2:$G$48,2,FALSE)+ROW()-2)),\"\")","v":{"$error":"#N/A"}},{"$f":"IF(INDIRECT(\"c\" & (VLOOKUP(Rebalance!$D$57,$F$2:$G$48,2,FALSE)+ROW()-2))=Rebalance!$D$57,INDIRECT(\"a\" & (VLOOKUP(Rebalance!$D$57,$F$2:$G$48,2,FALSE)+ROW()-2)),\"\")","v":{"$error":"#N/A"}},{"$f":"IF(INDIRECT(\"c\" & (VLOOKUP(Rebalance!$D$58,$F$2:$G$48,2,FALSE)+ROW()-2))=Rebalance!$D$58,INDIRECT(\"a\" & (VLOOKUP(Rebalance!$D$58,$F$2:$G$48,2,FALSE)+ROW()-2)),\"\")","v":{"$error":"#N/A"}},{"$f":"IF(INDIRECT(\"c\" & (VLOOKUP(Rebalance!$D$59,$F$2:$G$48,2,FALSE)+ROW()-2))=Rebalance!$D$59,INDIRECT(\"a\" & (VLOOKUP(Rebalance!$D$59,$F$2:$G$48,2,FALSE)+ROW()-2)),\"\")","v":{"$error":"#N/A"}},{"$f":"IF(INDIRECT(\"c\" & (VLOOKUP(Rebalance!$D$60,$F$2:$G$48,2,FALSE)+ROW()-2))=Rebalance!$D$60,INDIRECT(\"a\" & (VLOOKUP(Rebalance!$D$60,$F$2:$G$48,2,FALSE)+ROW()-2)),\"\")","v":{"$error":"#N/A"}},{"$f":"IF(INDIRECT(\"c\" & (VLOOKUP(Rebalance!$D$61,$F$2:$G$48,2,FALSE)+ROW()-2))=Rebalance!$D$61,INDIRECT(\"a\" & (VLOOKUP(Rebalance!$D$61,$F$2:$G$48,2,FALSE)+ROW()-2)),\"\")","v":{"$error":"#N/A"}},{"$f":"IF(INDIRECT(\"c\" & (VLOOKUP(Rebalance!$D$62,$F$2:$G$48,2,FALSE)+ROW()-2))=Rebalance!$D$62,INDIRECT(\"a\" & (VLOOKUP(Rebalance!$D$62,$F$2:$G$48,2,FALSE)+ROW()-2)),\"\")","v":{"$error":"#N/A"}},{"$f":"IF(INDIRECT(\"c\" & (VLOOKUP(Rebalance!$D$63,$F$2:$G$48,2,FALSE)+ROW()-2))=Rebalance!$D$63,INDIRECT(\"a\" & (VLOOKUP(Rebalance!$D$63,$F$2:$G$48,2,FALSE)+ROW()-2)),\"\")","v":{"$error":"#N/A"}},{"$f":"IF(INDIRECT(\"c\" & (VLOOKUP(Rebalance!$D$64,$F$2:$G$48,2,FALSE)+ROW()-2))=Rebalance!$D$64,INDIRECT(\"a\" & (VLOOKUP(Rebalance!$D$64,$F$2:$G$48,2,FALSE)+ROW()-2)),\"\")","v":{"$error":"#N/A"}},{"$f":"IF(INDIRECT(\"c\" & (VLOOKUP(Rebalance!$D$65,$F$2:$G$48,2,FALSE)+ROW()-2))=Rebalance!$D$65,INDIRECT(\"a\" & (VLOOKUP(Rebalance!$D$65,$F$2:$G$48,2,FALSE)+ROW()-2)),\"\")","v":{"$error":"#N/A"}},{"$f":"IF(INDIRECT(\"c\" & (VLOOKUP(Rebalance!$D$66,$F$2:$G$48,2,FALSE)+ROW()-2))=Rebalance!$D$66,INDIRECT(\"a\" & (VLOOKUP(Rebalance!$D$66,$F$2:$G$48,2,FALSE)+ROW()-2)),\"\")","v":{"$error":"#N/A"}}]
["Baroque BCI Moderato FoF","MICF","Boutique Collective Investments (Pty) Ltd",{"$f":"ROW()","v":120},null,null,{"$f":"VLOOKUP(F120,$C$2:$D$599,2,FALSE)","v":{"$error":"#N/A"}},{"$f":"IF(INDIRECT(\"c\" & (VLOOKUP(Rebalance!$D$26,$F$2:$G$48,2,FALSE)+ROW()-2))=Rebalance!$D$26,INDIRECT(\"a\" & (VLOOKUP(Rebalance!$D$26,$F$2:$G$48,2,FALSE)+ROW()-2)),\"\")","v":{"$error":"#N/A"}},{"$f":"IF(INDIRECT(\"c\" & (VLOOKUP(Rebalance!$D$27,$F$2:$G$48,2,FALSE)+ROW()-2))=Rebalance!$D$27,INDIRECT(\"a\" & (VLOOKUP(Rebalance!$D$27,$F$2:$G$48,2,FALSE)+ROW()-2)),\"\")","v":{"$error":"#N/A"}},{"$f":"IF(INDIRECT(\"c\" & (VLOOKUP(Rebalance!$D$28,$F$2:$G$48,2,FALSE)+ROW()-2))=Rebalance!$D$28,INDIRECT(\"a\" & (VLOOKUP(Rebalance!$D$28,$F$2:$G$48,2,FALSE)+ROW()-2)),\"\")","v":{"$error":"#N/A"}},{"$f":"IF(INDIRECT(\"c\" & (VLOOKUP(Rebalance!$D$29,$F$2:$G$48,2,FALSE)+ROW()-2))=Rebalance!$D$29,INDIRECT(\"a\" & (VLOOKUP(Rebalance!$D$29,$F$2:$G$48,2,FALSE)+ROW()-2)),\"\")","v":{"$error":"#N/A"}},{"$f":"IF(INDIRECT(\"c\" & (VLOOKUP(Rebalance!$D$30,$F$2:$G$48,2,FALSE)+ROW()-2))=Rebalance!$D$30,INDIRECT(\"a\" & (VLOOKUP(Rebalance!$D$30,$F$2:$G$48,2,FALSE)+ROW()-2)),\"\")","v":{"$error":"#N/A"}},{"$f":"IF(INDIRECT(\"c\" & (VLOOKUP(Rebalance!$D$31,$F$2:$G$48,2,FALSE)+ROW()-2))=Rebalance!$D$31,INDIRECT(\"a\" & (VLOOKUP(Rebalance!$D$31,$F$2:$G$48,2,FALSE)+ROW()-2)),\"\")","v":{"$error":"#N/A"}},{"$f":"IF(INDIRECT(\"c\" & (VLOOKUP(Rebalance!$D$32,$F$2:$G$48,2,FALSE)+ROW()-2))=Rebalance!$D$32,INDIRECT(\"a\" & (VLOOKUP(Rebalance!$D$32,$F$2:$G$48,2,FALSE)+ROW()-2)),\"\")","v":{"$error":"#N/A"}},{"$f":"IF(INDIRECT(\"c\" & (VLOOKUP(Rebalance!$D$33,$F$2:$G$48,2,FALSE)+ROW()-2))=Rebalance!$D$33,INDIRECT(\"a\" & (VLOOKUP(Rebalance!$D$33,$F$2:$G$48,2,FALSE)+ROW()-2)),\"\")","v":{"$error":"#N/A"}},{"$f":"IF(INDIRECT(\"c\" & (VLOOKUP(Rebalance!$D$34,$F$2:$G$48,2,FALSE)+ROW()-2))=Rebalance!$D$34,INDIRECT(\"a\" & (VLOOKUP(Rebalance!$D$34,$F$2:$G$48,2,FALSE)+ROW()-2)),\"\")","v":{"$error":"#N/A"}},{"$f":"IF(INDIRECT(\"c\" & (VLOOKUP(Rebalance!$D$35,$F$2:$G$48,2,FALSE)+ROW()-2))=Rebalance!$D$35,INDIRECT(\"a\" & (VLOOKUP(Rebalance!$D$35,$F$2:$G$48,2,FALSE)+ROW()-2)),\"\")","v":{"$error":"#N/A"}},{"$f":"IF(INDIRECT(\"c\" & (VLOOKUP(Rebalance!$D$36,$F$2:$G$48,2,FALSE)+ROW()-2))=Rebalance!$D$36,INDIRECT(\"a\" & (VLOOKUP(Rebalance!$D$36,$F$2:$G$48,2,FALSE)+ROW()-2)),\"\")","v":{"$error":"#N/A"}},{"$f":"IF(INDIRECT(\"c\" & (VLOOKUP(Rebalance!$D$37,$F$2:$G$48,2,FALSE)+ROW()-2))=Rebalance!$D$37,INDIRECT(\"a\" & (VLOOKUP(Rebalance!$D$37,$F$2:$G$48,2,FALSE)+ROW()-2)),\"\")","v":{"$error":"#N/A"}},{"$f":"IF(INDIRECT(\"c\" & (VLOOKUP(Rebalance!$D$38,$F$2:$G$48,2,FALSE)+ROW()-2))=Rebalance!$D$38,INDIRECT(\"a\" & (VLOOKUP(Rebalance!$D$38,$F$2:$G$48,2,FALSE)+ROW()-2)),\"\")","v":{"$error":"#N/A"}},{"$f":"IF(INDIRECT(\"c\" & (VLOOKUP(Rebalance!$D$39,$F$2:$G$48,2,FALSE)+ROW()-2))=Rebalance!$D$39,INDIRECT(\"a\" & (VLOOKUP(Rebalance!$D$39,$F$2:$G$48,2,FALSE)+ROW()-2)),\"\")","v":{"$error":"#N/A"}},{"$f":"IF(INDIRECT(\"c\" & (VLOOKUP(Rebalance!$D$40,$F$2:$G$48,2,FALSE)+ROW()-2))=Rebalance!$D$40,INDIRECT(\"a\" & (VLOOKUP(Rebalance!$D$40,$F$2:$G$48,2,FALSE)+ROW()-2)),\"\")","v":{"$error":"#N/A"}},{"$f":"IF(INDIRECT(\"c\" & (VLOOKUP(Rebalance!$D$52,$F$2:$G$48,2,FALSE)+ROW()-2))=Rebalance!$D$52,INDIRECT(\"a\" & (VLOOKUP(Rebalance!$D$52,$F$2:$G$48,2,FALSE)+ROW()-2)),\"\")","v":{"$error":"#N/A"}},{"$f":"IF(INDIRECT(\"c\" & (VLOOKUP(Rebalance!$D$53,$F$2:$G$48,2,FALSE)+ROW()-2))=Rebalance!$D$53,INDIRECT(\"a\" & (VLOOKUP(Rebalance!$D$53,$F$2:$G$48,2,FALSE)+ROW()-2)),\"\")","v":{"$error":"#N/A"}},{"$f":"IF(INDIRECT(\"c\" & (VLOOKUP(Rebalance!$D$54,$F$2:$G$48,2,FALSE)+ROW()-2))=Rebalance!$D$54,INDIRECT(\"a\" & (VLOOKUP(Rebalance!$D$54,$F$2:$G$48,2,FALSE)+ROW()-2)),\"\")","v":{"$error":"#N/A"}},{"$f":"IF(INDIRECT(\"c\" & (VLOOKUP(Rebalance!$D$55,$F$2:$G$48,2,FALSE)+ROW()-2))=Rebalance!$D$55,INDIRECT(\"a\" & (VLOOKUP(Rebalance!$D$55,$F$2:$G$48,2,FALSE)+ROW()-2)),\"\")","v":{"$error":"#N/A"}},{"$f":"IF(INDIRECT(\"c\" & (VLOOKUP(Rebalance!$D$56,$F$2:$G$48,2,FALSE)+ROW()-2))=Rebalance!$D$56,INDIRECT(\"a\" & (VLOOKUP(Rebalance!$D$56,$F$2:$G$48,2,FALSE)+ROW()-2)),\"\")","v":{"$error":"#N/A"}},{"$f":"IF(INDIRECT(\"c\" & (VLOOKUP(Rebalance!$D$57,$F$2:$G$48,2,FALSE)+ROW()-2))=Rebalance!$D$57,INDIRECT(\"a\" & (VLOOKUP(Rebalance!$D$57,$F$2:$G$48,2,FALSE)+ROW()-2)),\"\")","v":{"$error":"#N/A"}},{"$f":"IF(INDIRECT(\"c\" & (VLOOKUP(Rebalance!$D$58,$F$2:$G$48,2,FALSE)+ROW()-2))=Rebalance!$D$58,INDIRECT(\"a\" & (VLOOKUP(Rebalance!$D$58,$F$2:$G$48,2,FALSE)+ROW()-2)),\"\")","v":{"$error":"#N/A"}},{"$f":"IF(INDIRECT(\"c\" & (VLOOKUP(Rebalance!$D$59,$F$2:$G$48,2,FALSE)+ROW()-2))=Rebalance!$D$59,INDIRECT(\"a\" & (VLOOKUP(Rebalance!$D$59,$F$2:$G$48,2,FALSE)+ROW()-2)),\"\")","v":{"$error":"#N/A"}},{"$f":"IF(INDIRECT(\"c\" & (VLOOKUP(Rebalance!$D$60,$F$2:$G$48,2,FALSE)+ROW()-2))=Rebalance!$D$60,INDIRECT(\"a\" & (VLOOKUP(Rebalance!$D$60,$F$2:$G$48,2,FALSE)+ROW()-2)),\"\")","v":{"$error":"#N/A"}},{"$f":"IF(INDIRECT(\"c\" & (VLOOKUP(Rebalance!$D$61,$F$2:$G$48,2,FALSE)+ROW()-2))=Rebalance!$D$61,INDIRECT(\"a\" & (VLOOKUP(Rebalance!$D$61,$F$2:$G$48,2,FALSE)+ROW()-2)),\"\")","v":{"$error":"#N/A"}},{"$f":"IF(INDIRECT(\"c\" & (VLOOKUP(Rebalance!$D$62,$F$2:$G$48,2,FALSE)+ROW()-2))=Rebalance!$D$62,INDIRECT(\"a\" & (VLOOKUP(Rebalance!$D$62,$F$2:$G$48,2,FALSE)+ROW()-2)),\"\")","v":{"$error":"#N/A"}},{"$f":"IF(INDIRECT(\"c\" & (VLOOKUP(Rebalance!$D$63,$F$2:$G$48,2,FALSE)+ROW()-2))=Rebalance!$D$63,INDIRECT(\"a\" & (VLOOKUP(Rebalance!$D$63,$F$2:$G$48,2,FALSE)+ROW()-2)),\"\")","v":{"$error":"#N/A"}},{"$f":"IF(INDIRECT(\"c\" & (VLOOKUP(Rebalance!$D$64,$F$2:$G$48,2,FALSE)+ROW()-2))=Rebalance!$D$64,INDIRECT(\"a\" & (VLOOKUP(Rebalance!$D$64,$F$2:$G$48,2,FALSE)+ROW()-2)),\"\")","v":{"$error":"#N/A"}},{"$f":"IF(INDIRECT(\"c\" & (VLOOKUP(Rebalance!$D$65,$F$2:$G$48,2,FALSE)+ROW()-2))=Rebalance!$D$65,INDIRECT(\"a\" & (VLOOKUP(Rebalance!$D$65,$F$2:$G$48,2,FALSE)+ROW()-2)),\"\")","v":{"$error":"#N/A"}},{"$f":"IF(INDIRECT(\"c\" & (VLOOKUP(Rebalance!$D$66,$F$2:$G$48,2,FALSE)+ROW()-2))=Rebalance!$D$66,INDIRECT(\"a\" & (VLOOKUP(Rebalance!$D$66,$F$2:$G$48,2,FALSE)+ROW()-2)),\"\")","v":{"$error":"#N/A"}}]
["Centaur BCI Balanced Fund A","CMBFA","Boutique Collective Investments (Pty) Ltd",{"$f":"ROW()","v":121},null,null,{"$f":"VLOOKUP(F121,$C$2:$D$599,2,FALSE)","v":{"$error":"#N/A"}},{"$f":"IF(INDIRECT(\"c\" & (VLOOKUP(Rebalance!$D$26,$F$2:$G$48,2,FALSE)+ROW()-2))=Rebalance!$D$26,INDIRECT(\"a\" & (VLOOKUP(Rebalance!$D$26,$F$2:$G$48,2,FALSE)+ROW()-2)),\"\")","v":{"$error":"#N/A"}},{"$f":"IF(INDIRECT(\"c\" & (VLOOKUP(Rebalance!$D$27,$F$2:$G$48,2,FALSE)+ROW()-2))=Rebalance!$D$27,INDIRECT(\"a\" & (VLOOKUP(Rebalance!$D$27,$F$2:$G$48,2,FALSE)+ROW()-2)),\"\")","v":{"$error":"#N/A"}},{"$f":"IF(INDIRECT(\"c\" & (VLOOKUP(Rebalance!$D$28,$F$2:$G$48,2,FALSE)+ROW()-2))=Rebalance!$D$28,INDIRECT(\"a\" & (VLOOKUP(Rebalance!$D$28,$F$2:$G$48,2,FALSE)+ROW()-2)),\"\")","v":{"$error":"#N/A"}},{"$f":"IF(INDIRECT(\"c\" & (VLOOKUP(Rebalance!$D$29,$F$2:$G$48,2,FALSE)+ROW()-2))=Rebalance!$D$29,INDIRECT(\"a\" & (VLOOKUP(Rebalance!$D$29,$F$2:$G$48,2,FALSE)+ROW()-2)),\"\")","v":{"$error":"#N/A"}},{"$f":"IF(INDIRECT(\"c\" & (VLOOKUP(Rebalance!$D$30,$F$2:$G$48,2,FALSE)+ROW()-2))=Rebalance!$D$30,INDIRECT(\"a\" & (VLOOKUP(Rebalance!$D$30,$F$2:$G$48,2,FALSE)+ROW()-2)),\"\")","v":{"$error":"#N/A"}},{"$f":"IF(INDIRECT(\"c\" & (VLOOKUP(Rebalance!$D$31,$F$2:$G$48,2,FALSE)+ROW()-2))=Rebalance!$D$31,INDIRECT(\"a\" & (VLOOKUP(Rebalance!$D$31,$F$2:$G$48,2,FALSE)+ROW()-2)),\"\")","v":{"$error":"#N/A"}},{"$f":"IF(INDIRECT(\"c\" & (VLOOKUP(Rebalance!$D$32,$F$2:$G$48,2,FALSE)+ROW()-2))=Rebalance!$D$32,INDIRECT(\"a\" & (VLOOKUP(Rebalance!$D$32,$F$2:$G$48,2,FALSE)+ROW()-2)),\"\")","v":{"$error":"#N/A"}},{"$f":"IF(INDIRECT(\"c\" & (VLOOKUP(Rebalance!$D$33,$F$2:$G$48,2,FALSE)+ROW()-2))=Rebalance!$D$33,INDIRECT(\"a\" & (VLOOKUP(Rebalance!$D$33,$F$2:$G$48,2,FALSE)+ROW()-2)),\"\")","v":{"$error":"#N/A"}},{"$f":"IF(INDIRECT(\"c\" & (VLOOKUP(Rebalance!$D$34,$F$2:$G$48,2,FALSE)+ROW()-2))=Rebalance!$D$34,INDIRECT(\"a\" & (VLOOKUP(Rebalance!$D$34,$F$2:$G$48,2,FALSE)+ROW()-2)),\"\")","v":{"$error":"#N/A"}},{"$f":"IF(INDIRECT(\"c\" & (VLOOKUP(Rebalance!$D$35,$F$2:$G$48,2,FALSE)+ROW()-2))=Rebalance!$D$35,INDIRECT(\"a\" & (VLOOKUP(Rebalance!$D$35,$F$2:$G$48,2,FALSE)+ROW()-2)),\"\")","v":{"$error":"#N/A"}},{"$f":"IF(INDIRECT(\"c\" & (VLOOKUP(Rebalance!$D$36,$F$2:$G$48,2,FALSE)+ROW()-2))=Rebalance!$D$36,INDIRECT(\"a\" & (VLOOKUP(Rebalance!$D$36,$F$2:$G$48,2,FALSE)+ROW()-2)),\"\")","v":{"$error":"#N/A"}},{"$f":"IF(INDIRECT(\"c\" & (VLOOKUP(Rebalance!$D$37,$F$2:$G$48,2,FALSE)+ROW()-2))=Rebalance!$D$37,INDIRECT(\"a\" & (VLOOKUP(Rebalance!$D$37,$F$2:$G$48,2,FALSE)+ROW()-2)),\"\")","v":{"$error":"#N/A"}},{"$f":"IF(INDIRECT(\"c\" & (VLOOKUP(Rebalance!$D$38,$F$2:$G$48,2,FALSE)+ROW()-2))=Rebalance!$D$38,INDIRECT(\"a\" & (VLOOKUP(Rebalance!$D$38,$F$2:$G$48,2,FALSE)+ROW()-2)),\"\")","v":{"$error":"#N/A"}},{"$f":"IF(INDIRECT(\"c\" & (VLOOKUP(Rebalance!$D$39,$F$2:$G$48,2,FALSE)+ROW()-2))=Rebalance!$D$39,INDIRECT(\"a\" & (VLOOKUP(Rebalance!$D$39,$F$2:$G$48,2,FALSE)+ROW()-2)),\"\")","v":{"$error":"#N/A"}},{"$f":"IF(INDIRECT(\"c\" & (VLOOKUP(Rebalance!$D$40,$F$2:$G$48,2,FALSE)+ROW()-2))=Rebalance!$D$40,INDIRECT(\"a\" & (VLOOKUP(Rebalance!$D$40,$F$2:$G$48,2,FALSE)+ROW()-2)),\"\")","v":{"$error":"#N/A"}},{"$f":"IF(INDIRECT(\"c\" & (VLOOKUP(Rebalance!$D$52,$F$2:$G$48,2,FALSE)+ROW()-2))=Rebalance!$D$52,INDIRECT(\"a\" & (VLOOKUP(Rebalance!$D$52,$F$2:$G$48,2,FALSE)+ROW()-2)),\"\")","v":{"$error":"#N/A"}},{"$f":"IF(INDIRECT(\"c\" & (VLOOKUP(Rebalance!$D$53,$F$2:$G$48,2,FALSE)+ROW()-2))=Rebalance!$D$53,INDIRECT(\"a\" & (VLOOKUP(Rebalance!$D$53,$F$2:$G$48,2,FALSE)+ROW()-2)),\"\")","v":{"$error":"#N/A"}},{"$f":"IF(INDIRECT(\"c\" & (VLOOKUP(Rebalance!$D$54,$F$2:$G$48,2,FALSE)+ROW()-2))=Rebalance!$D$54,INDIRECT(\"a\" & (VLOOKUP(Rebalance!$D$54,$F$2:$G$48,2,FALSE)+ROW()-2)),\"\")","v":{"$error":"#N/A"}},{"$f":"IF(INDIRECT(\"c\" & (VLOOKUP(Rebalance!$D$55,$F$2:$G$48,2,FALSE)+ROW()-2))=Rebalance!$D$55,INDIRECT(\"a\" & (VLOOKUP(Rebalance!$D$55,$F$2:$G$48,2,FALSE)+ROW()-2)),\"\")","v":{"$error":"#N/A"}},{"$f":"IF(INDIRECT(\"c\" & (VLOOKUP(Rebalance!$D$56,$F$2:$G$48,2,FALSE)+ROW()-2))=Rebalance!$D$56,INDIRECT(\"a\" & (VLOOKUP(Rebalance!$D$56,$F$2:$G$48,2,FALSE)+ROW()-2)),\"\")","v":{"$error":"#N/A"}},{"$f":"IF(INDIRECT(\"c\" & (VLOOKUP(Rebalance!$D$57,$F$2:$G$48,2,FALSE)+ROW()-2))=Rebalance!$D$57,INDIRECT(\"a\" & (VLOOKUP(Rebalance!$D$57,$F$2:$G$48,2,FALSE)+ROW()-2)),\"\")","v":{"$error":"#N/A"}},{"$f":"IF(INDIRECT(\"c\" & (VLOOKUP(Rebalance!$D$58,$F$2:$G$48,2,FALSE)+ROW()-2))=Rebalance!$D$58,INDIRECT(\"a\" & (VLOOKUP(Rebalance!$D$58,$F$2:$G$48,2,FALSE)+ROW()-2)),\"\")","v":{"$error":"#N/A"}},{"$f":"IF(INDIRECT(\"c\" & (VLOOKUP(Rebalance!$D$59,$F$2:$G$48,2,FALSE)+ROW()-2))=Rebalance!$D$59,INDIRECT(\"a\" & (VLOOKUP(Rebalance!$D$59,$F$2:$G$48,2,FALSE)+ROW()-2)),\"\")","v":{"$error":"#N/A"}},{"$f":"IF(INDIRECT(\"c\" & (VLOOKUP(Rebalance!$D$60,$F$2:$G$48,2,FALSE)+ROW()-2))=Rebalance!$D$60,INDIRECT(\"a\" & (VLOOKUP(Rebalance!$D$60,$F$2:$G$48,2,FALSE)+ROW()-2)),\"\")","v":{"$error":"#N/A"}},{"$f":"IF(INDIRECT(\"c\" & (VLOOKUP(Rebalance!$D$61,$F$2:$G$48,2,FALSE)+ROW()-2))=Rebalance!$D$61,INDIRECT(\"a\" & (VLOOKUP(Rebalance!$D$61,$F$2:$G$48,2,FALSE)+ROW()-2)),\"\")","v":{"$error":"#N/A"}},{"$f":"IF(INDIRECT(\"c\" & (VLOOKUP(Rebalance!$D$62,$F$2:$G$48,2,FALSE)+ROW()-2))=Rebalance!$D$62,INDIRECT(\"a\" & (VLOOKUP(Rebalance!$D$62,$F$2:$G$48,2,FALSE)+ROW()-2)),\"\")","v":{"$error":"#N/A"}},{"$f":"IF(INDIRECT(\"c\" & (VLOOKUP(Rebalance!$D$63,$F$2:$G$48,2,FALSE)+ROW()-2))=Rebalance!$D$63,INDIRECT(\"a\" & (VLOOKUP(Rebalance!$D$63,$F$2:$G$48,2,FALSE)+ROW()-2)),\"\")","v":{"$error":"#N/A"}},{"$f":"IF(INDIRECT(\"c\" & (VLOOKUP(Rebalance!$D$64,$F$2:$G$48,2,FALSE)+ROW()-2))=Rebalance!$D$64,INDIRECT(\"a\" & (VLOOKUP(Rebalance!$D$64,$F$2:$G$48,2,FALSE)+ROW()-2)),\"\")","v":{"$error":"#N/A"}},{"$f":"IF(INDIRECT(\"c\" & (VLOOKUP(Rebalance!$D$65,$F$2:$G$48,2,FALSE)+ROW()-2))=Rebalance!$D$65,INDIRECT(\"a\" & (VLOOKUP(Rebalance!$D$65,$F$2:$G$48,2,FALSE)+ROW()-2)),\"\")","v":{"$error":"#N/A"}},{"$f":"IF(INDIRECT(\"c\" & (VLOOKUP(Rebalance!$D$66,$F$2:$G$48,2,FALSE)+ROW()-2))=Rebalance!$D$66,INDIRECT(\"a\" & (VLOOKUP(Rebalance!$D$66,$F$2:$G$48,2,FALSE)+ROW()-2)),\"\")","v":{"$error":"#N/A"}}]
["Centaur BCI Flexible Fund C","CMFCC","Boutique Collective Investments (Pty) Ltd",{"$f":"ROW()","v":122},null,null,{"$f":"VLOOKUP(F122,$C$2:$D$599,2,FALSE)","v":{"$error":"#N/A"}},{"$f":"IF(INDIRECT(\"c\" & (VLOOKUP(Rebalance!$D$26,$F$2:$G$48,2,FALSE)+ROW()-2))=Rebalance!$D$26,INDIRECT(\"a\" & (VLOOKUP(Rebalance!$D$26,$F$2:$G$48,2,FALSE)+ROW()-2)),\"\")","v":{"$error":"#N/A"}},{"$f":"IF(INDIRECT(\"c\" & (VLOOKUP(Rebalance!$D$27,$F$2:$G$48,2,FALSE)+ROW()-2))=Rebalance!$D$27,INDIRECT(\"a\" & (VLOOKUP(Rebalance!$D$27,$F$2:$G$48,2,FALSE)+ROW()-2)),\"\")","v":{"$error":"#N/A"}},{"$f":"IF(INDIRECT(\"c\" & (VLOOKUP(Rebalance!$D$28,$F$2:$G$48,2,FALSE)+ROW()-2))=Rebalance!$D$28,INDIRECT(\"a\" & (VLOOKUP(Rebalance!$D$28,$F$2:$G$48,2,FALSE)+ROW()-2)),\"\")","v":{"$error":"#N/A"}},{"$f":"IF(INDIRECT(\"c\" & (VLOOKUP(Rebalance!$D$29,$F$2:$G$48,2,FALSE)+ROW()-2))=Rebalance!$D$29,INDIRECT(\"a\" & (VLOOKUP(Rebalance!$D$29,$F$2:$G$48,2,FALSE)+ROW()-2)),\"\")","v":{"$error":"#N/A"}},{"$f":"IF(INDIRECT(\"c\" & (VLOOKUP(Rebalance!$D$30,$F$2:$G$48,2,FALSE)+ROW()-2))=Rebalance!$D$30,INDIRECT(\"a\" & (VLOOKUP(Rebalance!$D$30,$F$2:$G$48,2,FALSE)+ROW()-2)),\"\")","v":{"$error":"#N/A"}},{"$f":"IF(INDIRECT(\"c\" & (VLOOKUP(Rebalance!$D$31,$F$2:$G$48,2,FALSE)+ROW()-2))=Rebalance!$D$31,INDIRECT(\"a\" & (VLOOKUP(Rebalance!$D$31,$F$2:$G$48,2,FALSE)+ROW()-2)),\"\")","v":{"$error":"#N/A"}},{"$f":"IF(INDIRECT(\"c\" & (VLOOKUP(Rebalance!$D$32,$F$2:$G$48,2,FALSE)+ROW()-2))=Rebalance!$D$32,INDIRECT(\"a\" & (VLOOKUP(Rebalance!$D$32,$F$2:$G$48,2,FALSE)+ROW()-2)),\"\")","v":{"$error":"#N/A"}},{"$f":"IF(INDIRECT(\"c\" & (VLOOKUP(Rebalance!$D$33,$F$2:$G$48,2,FALSE)+ROW()-2))=Rebalance!$D$33,INDIRECT(\"a\" & (VLOOKUP(Rebalance!$D$33,$F$2:$G$48,2,FALSE)+ROW()-2)),\"\")","v":{"$error":"#N/A"}},{"$f":"IF(INDIRECT(\"c\" & (VLOOKUP(Rebalance!$D$34,$F$2:$G$48,2,FALSE)+ROW()-2))=Rebalance!$D$34,INDIRECT(\"a\" & (VLOOKUP(Rebalance!$D$34,$F$2:$G$48,2,FALSE)+ROW()-2)),\"\")","v":{"$error":"#N/A"}},{"$f":"IF(INDIRECT(\"c\" & (VLOOKUP(Rebalance!$D$35,$F$2:$G$48,2,FALSE)+ROW()-2))=Rebalance!$D$35,INDIRECT(\"a\" & (VLOOKUP(Rebalance!$D$35,$F$2:$G$48,2,FALSE)+ROW()-2)),\"\")","v":{"$error":"#N/A"}},{"$f":"IF(INDIRECT(\"c\" & (VLOOKUP(Rebalance!$D$36,$F$2:$G$48,2,FALSE)+ROW()-2))=Rebalance!$D$36,INDIRECT(\"a\" & (VLOOKUP(Rebalance!$D$36,$F$2:$G$48,2,FALSE)+ROW()-2)),\"\")","v":{"$error":"#N/A"}},{"$f":"IF(INDIRECT(\"c\" & (VLOOKUP(Rebalance!$D$37,$F$2:$G$48,2,FALSE)+ROW()-2))=Rebalance!$D$37,INDIRECT(\"a\" & (VLOOKUP(Rebalance!$D$37,$F$2:$G$48,2,FALSE)+ROW()-2)),\"\")","v":{"$error":"#N/A"}},{"$f":"IF(INDIRECT(\"c\" & (VLOOKUP(Rebalance!$D$38,$F$2:$G$48,2,FALSE)+ROW()-2))=Rebalance!$D$38,INDIRECT(\"a\" & (VLOOKUP(Rebalance!$D$38,$F$2:$G$48,2,FALSE)+ROW()-2)),\"\")","v":{"$error":"#N/A"}},{"$f":"IF(INDIRECT(\"c\" & (VLOOKUP(Rebalance!$D$39,$F$2:$G$48,2,FALSE)+ROW()-2))=Rebalance!$D$39,INDIRECT(\"a\" & (VLOOKUP(Rebalance!$D$39,$F$2:$G$48,2,FALSE)+ROW()-2)),\"\")","v":{"$error":"#N/A"}},{"$f":"IF(INDIRECT(\"c\" & (VLOOKUP(Rebalance!$D$40,$F$2:$G$48,2,FALSE)+ROW()-2))=Rebalance!$D$40,INDIRECT(\"a\" & (VLOOKUP(Rebalance!$D$40,$F$2:$G$48,2,FALSE)+ROW()-2)),\"\")","v":{"$error":"#N/A"}},{"$f":"IF(INDIRECT(\"c\" & (VLOOKUP(Rebalance!$D$52,$F$2:$G$48,2,FALSE)+ROW()-2))=Rebalance!$D$52,INDIRECT(\"a\" & (VLOOKUP(Rebalance!$D$52,$F$2:$G$48,2,FALSE)+ROW()-2)),\"\")","v":{"$error":"#N/A"}},{"$f":"IF(INDIRECT(\"c\" & (VLOOKUP(Rebalance!$D$53,$F$2:$G$48,2,FALSE)+ROW()-2))=Rebalance!$D$53,INDIRECT(\"a\" & (VLOOKUP(Rebalance!$D$53,$F$2:$G$48,2,FALSE)+ROW()-2)),\"\")","v":{"$error":"#N/A"}},{"$f":"IF(INDIRECT(\"c\" & (VLOOKUP(Rebalance!$D$54,$F$2:$G$48,2,FALSE)+ROW()-2))=Rebalance!$D$54,INDIRECT(\"a\" & (VLOOKUP(Rebalance!$D$54,$F$2:$G$48,2,FALSE)+ROW()-2)),\"\")","v":{"$error":"#N/A"}},{"$f":"IF(INDIRECT(\"c\" & (VLOOKUP(Rebalance!$D$55,$F$2:$G$48,2,FALSE)+ROW()-2))=Rebalance!$D$55,INDIRECT(\"a\" & (VLOOKUP(Rebalance!$D$55,$F$2:$G$48,2,FALSE)+ROW()-2)),\"\")","v":{"$error":"#N/A"}},{"$f":"IF(INDIRECT(\"c\" & (VLOOKUP(Rebalance!$D$56,$F$2:$G$48,2,FALSE)+ROW()-2))=Rebalance!$D$56,INDIRECT(\"a\" & (VLOOKUP(Rebalance!$D$56,$F$2:$G$48,2,FALSE)+ROW()-2)),\"\")","v":{"$error":"#N/A"}},{"$f":"IF(INDIRECT(\"c\" & (VLOOKUP(Rebalance!$D$57,$F$2:$G$48,2,FALSE)+ROW()-2))=Rebalance!$D$57,INDIRECT(\"a\" & (VLOOKUP(Rebalance!$D$57,$F$2:$G$48,2,FALSE)+ROW()-2)),\"\")","v":{"$error":"#N/A"}},{"$f":"IF(INDIRECT(\"c\" & (VLOOKUP(Rebalance!$D$58,$F$2:$G$48,2,FALSE)+ROW()-2))=Rebalance!$D$58,INDIRECT(\"a\" & (VLOOKUP(Rebalance!$D$58,$F$2:$G$48,2,FALSE)+ROW()-2)),\"\")","v":{"$error":"#N/A"}},{"$f":"IF(INDIRECT(\"c\" & (VLOOKUP(Rebalance!$D$59,$F$2:$G$48,2,FALSE)+ROW()-2))=Rebalance!$D$59,INDIRECT(\"a\" & (VLOOKUP(Rebalance!$D$59,$F$2:$G$48,2,FALSE)+ROW()-2)),\"\")","v":{"$error":"#N/A"}},{"$f":"IF(INDIRECT(\"c\" & (VLOOKUP(Rebalance!$D$60,$F$2:$G$48,2,FALSE)+ROW()-2))=Rebalance!$D$60,INDIRECT(\"a\" & (VLOOKUP(Rebalance!$D$60,$F$2:$G$48,2,FALSE)+ROW()-2)),\"\")","v":{"$error":"#N/A"}},{"$f":"IF(INDIRECT(\"c\" & (VLOOKUP(Rebalance!$D$61,$F$2:$G$48,2,FALSE)+ROW()-2))=Rebalance!$D$61,INDIRECT(\"a\" & (VLOOKUP(Rebalance!$D$61,$F$2:$G$48,2,FALSE)+ROW()-2)),\"\")","v":{"$error":"#N/A"}},{"$f":"IF(INDIRECT(\"c\" & (VLOOKUP(Rebalance!$D$62,$F$2:$G$48,2,FALSE)+ROW()-2))=Rebalance!$D$62,INDIRECT(\"a\" & (VLOOKUP(Rebalance!$D$62,$F$2:$G$48,2,FALSE)+ROW()-2)),\"\")","v":{"$error":"#N/A"}},{"$f":"IF(INDIRECT(\"c\" & (VLOOKUP(Rebalance!$D$63,$F$2:$G$48,2,FALSE)+ROW()-2))=Rebalance!$D$63,INDIRECT(\"a\" & (VLOOKUP(Rebalance!$D$63,$F$2:$G$48,2,FALSE)+ROW()-2)),\"\")","v":{"$error":"#N/A"}},{"$f":"IF(INDIRECT(\"c\" & (VLOOKUP(Rebalance!$D$64,$F$2:$G$48,2,FALSE)+ROW()-2))=Rebalance!$D$64,INDIRECT(\"a\" & (VLOOKUP(Rebalance!$D$64,$F$2:$G$48,2,FALSE)+ROW()-2)),\"\")","v":{"$error":"#N/A"}},{"$f":"IF(INDIRECT(\"c\" & (VLOOKUP(Rebalance!$D$65,$F$2:$G$48,2,FALSE)+ROW()-2))=Rebalance!$D$65,INDIRECT(\"a\" & (VLOOKUP(Rebalance!$D$65,$F$2:$G$48,2,FALSE)+ROW()-2)),\"\")","v":{"$error":"#N/A"}},{"$f":"IF(INDIRECT(\"c\" & (VLOOKUP(Rebalance!$D$66,$F$2:$G$48,2,FALSE)+ROW()-2))=Rebalance!$D$66,INDIRECT(\"a\" & (VLOOKUP(Rebalance!$D$66,$F$2:$G$48,2,FALSE)+ROW()-2)),\"\")","v":{"$error":"#N/A"}}]
["Cinnabar BCI Balanced Fund of Funds A","CBCBFA","Boutique Collective Investments (Pty) Ltd",{"$f":"ROW()","v":123},null,null,{"$f":"VLOOKUP(F123,$C$2:$D$599,2,FALSE)","v":{"$error":"#N/A"}},{"$f":"IF(INDIRECT(\"c\" & (VLOOKUP(Rebalance!$D$26,$F$2:$G$48,2,FALSE)+ROW()-2))=Rebalance!$D$26,INDIRECT(\"a\" & (VLOOKUP(Rebalance!$D$26,$F$2:$G$48,2,FALSE)+ROW()-2)),\"\")","v":{"$error":"#N/A"}},{"$f":"IF(INDIRECT(\"c\" & (VLOOKUP(Rebalance!$D$27,$F$2:$G$48,2,FALSE)+ROW()-2))=Rebalance!$D$27,INDIRECT(\"a\" & (VLOOKUP(Rebalance!$D$27,$F$2:$G$48,2,FALSE)+ROW()-2)),\"\")","v":{"$error":"#N/A"}},{"$f":"IF(INDIRECT(\"c\" & (VLOOKUP(Rebalance!$D$28,$F$2:$G$48,2,FALSE)+ROW()-2))=Rebalance!$D$28,INDIRECT(\"a\" & (VLOOKUP(Rebalance!$D$28,$F$2:$G$48,2,FALSE)+ROW()-2)),\"\")","v":{"$error":"#N/A"}},{"$f":"IF(INDIRECT(\"c\" & (VLOOKUP(Rebalance!$D$29,$F$2:$G$48,2,FALSE)+ROW()-2))=Rebalance!$D$29,INDIRECT(\"a\" & (VLOOKUP(Rebalance!$D$29,$F$2:$G$48,2,FALSE)+ROW()-2)),\"\")","v":{"$error":"#N/A"}},{"$f":"IF(INDIRECT(\"c\" & (VLOOKUP(Rebalance!$D$30,$F$2:$G$48,2,FALSE)+ROW()-2))=Rebalance!$D$30,INDIRECT(\"a\" & (VLOOKUP(Rebalance!$D$30,$F$2:$G$48,2,FALSE)+ROW()-2)),\"\")","v":{"$error":"#N/A"}},{"$f":"IF(INDIRECT(\"c\" & (VLOOKUP(Rebalance!$D$31,$F$2:$G$48,2,FALSE)+ROW()-2))=Rebalance!$D$31,INDIRECT(\"a\" & (VLOOKUP(Rebalance!$D$31,$F$2:$G$48,2,FALSE)+ROW()-2)),\"\")","v":{"$error":"#N/A"}},{"$f":"IF(INDIRECT(\"c\" & (VLOOKUP(Rebalance!$D$32,$F$2:$G$48,2,FALSE)+ROW()-2))=Rebalance!$D$32,INDIRECT(\"a\" & (VLOOKUP(Rebalance!$D$32,$F$2:$G$48,2,FALSE)+ROW()-2)),\"\")","v":{"$error":"#N/A"}},{"$f":"IF(INDIRECT(\"c\" & (VLOOKUP(Rebalance!$D$33,$F$2:$G$48,2,FALSE)+ROW()-2))=Rebalance!$D$33,INDIRECT(\"a\" & (VLOOKUP(Rebalance!$D$33,$F$2:$G$48,2,FALSE)+ROW()-2)),\"\")","v":{"$error":"#N/A"}},{"$f":"IF(INDIRECT(\"c\" & (VLOOKUP(Rebalance!$D$34,$F$2:$G$48,2,FALSE)+ROW()-2))=Rebalance!$D$34,INDIRECT(\"a\" & (VLOOKUP(Rebalance!$D$34,$F$2:$G$48,2,FALSE)+ROW()-2)),\"\")","v":{"$error":"#N/A"}},{"$f":"IF(INDIRECT(\"c\" & (VLOOKUP(Rebalance!$D$35,$F$2:$G$48,2,FALSE)+ROW()-2))=Rebalance!$D$35,INDIRECT(\"a\" & (VLOOKUP(Rebalance!$D$35,$F$2:$G$48,2,FALSE)+ROW()-2)),\"\")","v":{"$error":"#N/A"}},{"$f":"IF(INDIRECT(\"c\" & (VLOOKUP(Rebalance!$D$36,$F$2:$G$48,2,FALSE)+ROW()-2))=Rebalance!$D$36,INDIRECT(\"a\" & (VLOOKUP(Rebalance!$D$36,$F$2:$G$48,2,FALSE)+ROW()-2)),\"\")","v":{"$error":"#N/A"}},{"$f":"IF(INDIRECT(\"c\" & (VLOOKUP(Rebalance!$D$37,$F$2:$G$48,2,FALSE)+ROW()-2))=Rebalance!$D$37,INDIRECT(\"a\" & (VLOOKUP(Rebalance!$D$37,$F$2:$G$48,2,FALSE)+ROW()-2)),\"\")","v":{"$error":"#N/A"}},{"$f":"IF(INDIRECT(\"c\" & (VLOOKUP(Rebalance!$D$38,$F$2:$G$48,2,FALSE)+ROW()-2))=Rebalance!$D$38,INDIRECT(\"a\" & (VLOOKUP(Rebalance!$D$38,$F$2:$G$48,2,FALSE)+ROW()-2)),\"\")","v":{"$error":"#N/A"}},{"$f":"IF(INDIRECT(\"c\" & (VLOOKUP(Rebalance!$D$39,$F$2:$G$48,2,FALSE)+ROW()-2))=Rebalance!$D$39,INDIRECT(\"a\" & (VLOOKUP(Rebalance!$D$39,$F$2:$G$48,2,FALSE)+ROW()-2)),\"\")","v":{"$error":"#N/A"}},{"$f":"IF(INDIRECT(\"c\" & (VLOOKUP(Rebalance!$D$40,$F$2:$G$48,2,FALSE)+ROW()-2))=Rebalance!$D$40,INDIRECT(\"a\" & (VLOOKUP(Rebalance!$D$40,$F$2:$G$48,2,FALSE)+ROW()-2)),\"\")","v":{"$error":"#N/A"}},{"$f":"IF(INDIRECT(\"c\" & (VLOOKUP(Rebalance!$D$52,$F$2:$G$48,2,FALSE)+ROW()-2))=Rebalance!$D$52,INDIRECT(\"a\" & (VLOOKUP(Rebalance!$D$52,$F$2:$G$48,2,FALSE)+ROW()-2)),\"\")","v":{"$error":"#N/A"}},{"$f":"IF(INDIRECT(\"c\" & (VLOOKUP(Rebalance!$D$53,$F$2:$G$48,2,FALSE)+ROW()-2))=Rebalance!$D$53,INDIRECT(\"a\" & (VLOOKUP(Rebalance!$D$53,$F$2:$G$48,2,FALSE)+ROW()-2)),\"\")","v":{"$error":"#N/A"}},{"$f":"IF(INDIRECT(\"c\" & (VLOOKUP(Rebalance!$D$54,$F$2:$G$48,2,FALSE)+ROW()-2))=Rebalance!$D$54,INDIRECT(\"a\" & (VLOOKUP(Rebalance!$D$54,$F$2:$G$48,2,FALSE)+ROW()-2)),\"\")","v":{"$error":"#N/A"}},{"$f":"IF(INDIRECT(\"c\" & (VLOOKUP(Rebalance!$D$55,$F$2:$G$48,2,FALSE)+ROW()-2))=Rebalance!$D$55,INDIRECT(\"a\" & (VLOOKUP(Rebalance!$D$55,$F$2:$G$48,2,FALSE)+ROW()-2)),\"\")","v":{"$error":"#N/A"}},{"$f":"IF(INDIRECT(\"c\" & (VLOOKUP(Rebalance!$D$56,$F$2:$G$48,2,FALSE)+ROW()-2))=Rebalance!$D$56,INDIRECT(\"a\" & (VLOOKUP(Rebalance!$D$56,$F$2:$G$48,2,FALSE)+ROW()-2)),\"\")","v":{"$error":"#N/A"}},{"$f":"IF(INDIRECT(\"c\" & (VLOOKUP(Rebalance!$D$57,$F$2:$G$48,2,FALSE)+ROW()-2))=Rebalance!$D$57,INDIRECT(\"a\" & (VLOOKUP(Rebalance!$D$57,$F$2:$G$48,2,FALSE)+ROW()-2)),\"\")","v":{"$error":"#N/A"}},{"$f":"IF(INDIRECT(\"c\" & (VLOOKUP(Rebalance!$D$58,$F$2:$G$48,2,FALSE)+ROW()-2))=Rebalance!$D$58,INDIRECT(\"a\" & (VLOOKUP(Rebalance!$D$58,$F$2:$G$48,2,FALSE)+ROW()-2)),\"\")","v":{"$error":"#N/A"}},{"$f":"IF(INDIRECT(\"c\" & (VLOOKUP(Rebalance!$D$59,$F$2:$G$48,2,FALSE)+ROW()-2))=Rebalance!$D$59,INDIRECT(\"a\" & (VLOOKUP(Rebalance!$D$59,$F$2:$G$48,2,FALSE)+ROW()-2)),\"\")","v":{"$error":"#N/A"}},{"$f":"IF(INDIRECT(\"c\" & (VLOOKUP(Rebalance!$D$60,$F$2:$G$48,2,FALSE)+ROW()-2))=Rebalance!$D$60,INDIRECT(\"a\" & (VLOOKUP(Rebalance!$D$60,$F$2:$G$48,2,FALSE)+ROW()-2)),\"\")","v":{"$error":"#N/A"}},{"$f":"IF(INDIRECT(\"c\" & (VLOOKUP(Rebalance!$D$61,$F$2:$G$48,2,FALSE)+ROW()-2))=Rebalance!$D$61,INDIRECT(\"a\" & (VLOOKUP(Rebalance!$D$61,$F$2:$G$48,2,FALSE)+ROW()-2)),\"\")","v":{"$error":"#N/A"}},{"$f":"IF(INDIRECT(\"c\" & (VLOOKUP(Rebalance!$D$62,$F$2:$G$48,2,FALSE)+ROW()-2))=Rebalance!$D$62,INDIRECT(\"a\" & (VLOOKUP(Rebalance!$D$62,$F$2:$G$48,2,FALSE)+ROW()-2)),\"\")","v":{"$error":"#N/A"}},{"$f":"IF(INDIRECT(\"c\" & (VLOOKUP(Rebalance!$D$63,$F$2:$G$48,2,FALSE)+ROW()-2))=Rebalance!$D$63,INDIRECT(\"a\" & (VLOOKUP(Rebalance!$D$63,$F$2:$G$48,2,FALSE)+ROW()-2)),\"\")","v":{"$error":"#N/A"}},{"$f":"IF(INDIRECT(\"c\" & (VLOOKUP(Rebalance!$D$64,$F$2:$G$48,2,FALSE)+ROW()-2))=Rebalance!$D$64,INDIRECT(\"a\" & (VLOOKUP(Rebalance!$D$64,$F$2:$G$48,2,FALSE)+ROW()-2)),\"\")","v":{"$error":"#N/A"}},{"$f":"IF(INDIRECT(\"c\" & (VLOOKUP(Rebalance!$D$65,$F$2:$G$48,2,FALSE)+ROW()-2))=Rebalance!$D$65,INDIRECT(\"a\" & (VLOOKUP(Rebalance!$D$65,$F$2:$G$48,2,FALSE)+ROW()-2)),\"\")","v":{"$error":"#N/A"}},{"$f":"IF(INDIRECT(\"c\" & (VLOOKUP(Rebalance!$D$66,$F$2:$G$48,2,FALSE)+ROW()-2))=Rebalance!$D$66,INDIRECT(\"a\" & (VLOOKUP(Rebalance!$D$66,$F$2:$G$48,2,FALSE)+ROW()-2)),\"\")","v":{"$error":"#N/A"}}]
["BCI Africa Equity Fund B","BAEFC","Boutique Collective Investments (Pty) Ltd",{"$f":"ROW()","v":124},null,null,{"$f":"VLOOKUP(F124,$C$2:$D$599,2,FALSE)","v":{"$error":"#N/A"}},{"$f":"IF(INDIRECT(\"c\" & (VLOOKUP(Rebalance!$D$26,$F$2:$G$48,2,FALSE)+ROW()-2))=Rebalance!$D$26,INDIRECT(\"a\" & (VLOOKUP(Rebalance!$D$26,$F$2:$G$48,2,FALSE)+ROW()-2)),\"\")","v":{"$error":"#N/A"}},{"$f":"IF(INDIRECT(\"c\" & (VLOOKUP(Rebalance!$D$27,$F$2:$G$48,2,FALSE)+ROW()-2))=Rebalance!$D$27,INDIRECT(\"a\" & (VLOOKUP(Rebalance!$D$27,$F$2:$G$48,2,FALSE)+ROW()-2)),\"\")","v":{"$error":"#N/A"}},{"$f":"IF(INDIRECT(\"c\" & (VLOOKUP(Rebalance!$D$28,$F$2:$G$48,2,FALSE)+ROW()-2))=Rebalance!$D$28,INDIRECT(\"a\" & (VLOOKUP(Rebalance!$D$28,$F$2:$G$48,2,FALSE)+ROW()-2)),\"\")","v":{"$error":"#N/A"}},{"$f":"IF(INDIRECT(\"c\" & (VLOOKUP(Rebalance!$D$29,$F$2:$G$48,2,FALSE)+ROW()-2))=Rebalance!$D$29,INDIRECT(\"a\" & (VLOOKUP(Rebalance!$D$29,$F$2:$G$48,2,FALSE)+ROW()-2)),\"\")","v":{"$error":"#N/A"}},{"$f":"IF(INDIRECT(\"c\" & (VLOOKUP(Rebalance!$D$30,$F$2:$G$48,2,FALSE)+ROW()-2))=Rebalance!$D$30,INDIRECT(\"a\" & (VLOOKUP(Rebalance!$D$30,$F$2:$G$48,2,FALSE)+ROW()-2)),\"\")","v":{"$error":"#N/A"}},{"$f":"IF(INDIRECT(\"c\" & (VLOOKUP(Rebalance!$D$31,$F$2:$G$48,2,FALSE)+ROW()-2))=Rebalance!$D$31,INDIRECT(\"a\" & (VLOOKUP(Rebalance!$D$31,$F$2:$G$48,2,FALSE)+ROW()-2)),\"\")","v":{"$error":"#N/A"}},{"$f":"IF(INDIRECT(\"c\" & (VLOOKUP(Rebalance!$D$32,$F$2:$G$48,2,FALSE)+ROW()-2))=Rebalance!$D$32,INDIRECT(\"a\" & (VLOOKUP(Rebalance!$D$32,$F$2:$G$48,2,FALSE)+ROW()-2)),\"\")","v":{"$error":"#N/A"}},{"$f":"IF(INDIRECT(\"c\" & (VLOOKUP(Rebalance!$D$33,$F$2:$G$48,2,FALSE)+ROW()-2))=Rebalance!$D$33,INDIRECT(\"a\" & (VLOOKUP(Rebalance!$D$33,$F$2:$G$48,2,FALSE)+ROW()-2)),\"\")","v":{"$error":"#N/A"}},{"$f":"IF(INDIRECT(\"c\" & (VLOOKUP(Rebalance!$D$34,$F$2:$G$48,2,FALSE)+ROW()-2))=Rebalance!$D$34,INDIRECT(\"a\" & (VLOOKUP(Rebalance!$D$34,$F$2:$G$48,2,FALSE)+ROW()-2)),\"\")","v":{"$error":"#N/A"}},{"$f":"IF(INDIRECT(\"c\" & (VLOOKUP(Rebalance!$D$35,$F$2:$G$48,2,FALSE)+ROW()-2))=Rebalance!$D$35,INDIRECT(\"a\" & (VLOOKUP(Rebalance!$D$35,$F$2:$G$48,2,FALSE)+ROW()-2)),\"\")","v":{"$error":"#N/A"}},{"$f":"IF(INDIRECT(\"c\" & (VLOOKUP(Rebalance!$D$36,$F$2:$G$48,2,FALSE)+ROW()-2))=Rebalance!$D$36,INDIRECT(\"a\" & (VLOOKUP(Rebalance!$D$36,$F$2:$G$48,2,FALSE)+ROW()-2)),\"\")","v":{"$error":"#N/A"}},{"$f":"IF(INDIRECT(\"c\" & (VLOOKUP(Rebalance!$D$37,$F$2:$G$48,2,FALSE)+ROW()-2))=Rebalance!$D$37,INDIRECT(\"a\" & (VLOOKUP(Rebalance!$D$37,$F$2:$G$48,2,FALSE)+ROW()-2)),\"\")","v":{"$error":"#N/A"}},{"$f":"IF(INDIRECT(\"c\" & (VLOOKUP(Rebalance!$D$38,$F$2:$G$48,2,FALSE)+ROW()-2))=Rebalance!$D$38,INDIRECT(\"a\" & (VLOOKUP(Rebalance!$D$38,$F$2:$G$48,2,FALSE)+ROW()-2)),\"\")","v":{"$error":"#N/A"}},{"$f":"IF(INDIRECT(\"c\" & (VLOOKUP(Rebalance!$D$39,$F$2:$G$48,2,FALSE)+ROW()-2))=Rebalance!$D$39,INDIRECT(\"a\" & (VLOOKUP(Rebalance!$D$39,$F$2:$G$48,2,FALSE)+ROW()-2)),\"\")","v":{"$error":"#N/A"}},{"$f":"IF(INDIRECT(\"c\" & (VLOOKUP(Rebalance!$D$40,$F$2:$G$48,2,FALSE)+ROW()-2))=Rebalance!$D$40,INDIRECT(\"a\" & (VLOOKUP(Rebalance!$D$40,$F$2:$G$48,2,FALSE)+ROW()-2)),\"\")","v":{"$error":"#N/A"}},{"$f":"IF(INDIRECT(\"c\" & (VLOOKUP(Rebalance!$D$52,$F$2:$G$48,2,FALSE)+ROW()-2))=Rebalance!$D$52,INDIRECT(\"a\" & (VLOOKUP(Rebalance!$D$52,$F$2:$G$48,2,FALSE)+ROW()-2)),\"\")","v":{"$error":"#N/A"}},{"$f":"IF(INDIRECT(\"c\" & (VLOOKUP(Rebalance!$D$53,$F$2:$G$48,2,FALSE)+ROW()-2))=Rebalance!$D$53,INDIRECT(\"a\" & (VLOOKUP(Rebalance!$D$53,$F$2:$G$48,2,FALSE)+ROW()-2)),\"\")","v":{"$error":"#N/A"}},{"$f":"IF(INDIRECT(\"c\" & (VLOOKUP(Rebalance!$D$54,$F$2:$G$48,2,FALSE)+ROW()-2))=Rebalance!$D$54,INDIRECT(\"a\" & (VLOOKUP(Rebalance!$D$54,$F$2:$G$48,2,FALSE)+ROW()-2)),\"\")","v":{"$error":"#N/A"}},{"$f":"IF(INDIRECT(\"c\" & (VLOOKUP(Rebalance!$D$55,$F$2:$G$48,2,FALSE)+ROW()-2))=Rebalance!$D$55,INDIRECT(\"a\" & (VLOOKUP(Rebalance!$D$55,$F$2:$G$48,2,FALSE)+ROW()-2)),\"\")","v":{"$error":"#N/A"}},{"$f":"IF(INDIRECT(\"c\" & (VLOOKUP(Rebalance!$D$56,$F$2:$G$48,2,FALSE)+ROW()-2))=Rebalance!$D$56,INDIRECT(\"a\" & (VLOOKUP(Rebalance!$D$56,$F$2:$G$48,2,FALSE)+ROW()-2)),\"\")","v":{"$error":"#N/A"}},{"$f":"IF(INDIRECT(\"c\" & (VLOOKUP(Rebalance!$D$57,$F$2:$G$48,2,FALSE)+ROW()-2))=Rebalance!$D$57,INDIRECT(\"a\" & (VLOOKUP(Rebalance!$D$57,$F$2:$G$48,2,FALSE)+ROW()-2)),\"\")","v":{"$error":"#N/A"}},{"$f":"IF(INDIRECT(\"c\" & (VLOOKUP(Rebalance!$D$58,$F$2:$G$48,2,FALSE)+ROW()-2))=Rebalance!$D$58,INDIRECT(\"a\" & (VLOOKUP(Rebalance!$D$58,$F$2:$G$48,2,FALSE)+ROW()-2)),\"\")","v":{"$error":"#N/A"}},{"$f":"IF(INDIRECT(\"c\" & (VLOOKUP(Rebalance!$D$59,$F$2:$G$48,2,FALSE)+ROW()-2))=Rebalance!$D$59,INDIRECT(\"a\" & (VLOOKUP(Rebalance!$D$59,$F$2:$G$48,2,FALSE)+ROW()-2)),\"\")","v":{"$error":"#N/A"}},{"$f":"IF(INDIRECT(\"c\" & (VLOOKUP(Rebalance!$D$60,$F$2:$G$48,2,FALSE)+ROW()-2))=Rebalance!$D$60,INDIRECT(\"a\" & (VLOOKUP(Rebalance!$D$60,$F$2:$G$48,2,FALSE)+ROW()-2)),\"\")","v":{"$error":"#N/A"}},{"$f":"IF(INDIRECT(\"c\" & (VLOOKUP(Rebalance!$D$61,$F$2:$G$48,2,FALSE)+ROW()-2))=Rebalance!$D$61,INDIRECT(\"a\" & (VLOOKUP(Rebalance!$D$61,$F$2:$G$48,2,FALSE)+ROW()-2)),\"\")","v":{"$error":"#N/A"}},{"$f":"IF(INDIRECT(\"c\" & (VLOOKUP(Rebalance!$D$62,$F$2:$G$48,2,FALSE)+ROW()-2))=Rebalance!$D$62,INDIRECT(\"a\" & (VLOOKUP(Rebalance!$D$62,$F$2:$G$48,2,FALSE)+ROW()-2)),\"\")","v":{"$error":"#N/A"}},{"$f":"IF(INDIRECT(\"c\" & (VLOOKUP(Rebalance!$D$63,$F$2:$G$48,2,FALSE)+ROW()-2))=Rebalance!$D$63,INDIRECT(\"a\" & (VLOOKUP(Rebalance!$D$63,$F$2:$G$48,2,FALSE)+ROW()-2)),\"\")","v":{"$error":"#N/A"}},{"$f":"IF(INDIRECT(\"c\" & (VLOOKUP(Rebalance!$D$64,$F$2:$G$48,2,FALSE)+ROW()-2))=Rebalance!$D$64,INDIRECT(\"a\" & (VLOOKUP(Rebalance!$D$64,$F$2:$G$48,2,FALSE)+ROW()-2)),\"\")","v":{"$error":"#N/A"}},{"$f":"IF(INDIRECT(\"c\" & (VLOOKUP(Rebalance!$D$65,$F$2:$G$48,2,FALSE)+ROW()-2))=Rebalance!$D$65,INDIRECT(\"a\" & (VLOOKUP(Rebalance!$D$65,$F$2:$G$48,2,FALSE)+ROW()-2)),\"\")","v":{"$error":"#N/A"}},{"$f":"IF(INDIRECT(\"c\" & (VLOOKUP(Rebalance!$D$66,$F$2:$G$48,2,FALSE)+ROW()-2))=Rebalance!$D$66,INDIRECT(\"a\" & (VLOOKUP(Rebalance!$D$66,$F$2:$G$48,2,FALSE)+ROW()-2)),\"\")","v":{"$error":"#N/A"}}]
["BCI Best Blend Balanced Fund C","BBBCF","Boutique Collective Investments (Pty) Ltd",{"$f":"ROW()","v":125},null,null,{"$f":"VLOOKUP(F125,$C$2:$D$599,2,FALSE)","v":{"$error":"#N/A"}},{"$f":"IF(INDIRECT(\"c\" & (VLOOKUP(Rebalance!$D$26,$F$2:$G$48,2,FALSE)+ROW()-2))=Rebalance!$D$26,INDIRECT(\"a\" & (VLOOKUP(Rebalance!$D$26,$F$2:$G$48,2,FALSE)+ROW()-2)),\"\")","v":{"$error":"#N/A"}},{"$f":"IF(INDIRECT(\"c\" & (VLOOKUP(Rebalance!$D$27,$F$2:$G$48,2,FALSE)+ROW()-2))=Rebalance!$D$27,INDIRECT(\"a\" & (VLOOKUP(Rebalance!$D$27,$F$2:$G$48,2,FALSE)+ROW()-2)),\"\")","v":{"$error":"#N/A"}},{"$f":"IF(INDIRECT(\"c\" & (VLOOKUP(Rebalance!$D$28,$F$2:$G$48,2,FALSE)+ROW()-2))=Rebalance!$D$28,INDIRECT(\"a\" & (VLOOKUP(Rebalance!$D$28,$F$2:$G$48,2,FALSE)+ROW()-2)),\"\")","v":{"$error":"#N/A"}},{"$f":"IF(INDIRECT(\"c\" & (VLOOKUP(Rebalance!$D$29,$F$2:$G$48,2,FALSE)+ROW()-2))=Rebalance!$D$29,INDIRECT(\"a\" & (VLOOKUP(Rebalance!$D$29,$F$2:$G$48,2,FALSE)+ROW()-2)),\"\")","v":{"$error":"#N/A"}},{"$f":"IF(INDIRECT(\"c\" & (VLOOKUP(Rebalance!$D$30,$F$2:$G$48,2,FALSE)+ROW()-2))=Rebalance!$D$30,INDIRECT(\"a\" & (VLOOKUP(Rebalance!$D$30,$F$2:$G$48,2,FALSE)+ROW()-2)),\"\")","v":{"$error":"#N/A"}},{"$f":"IF(INDIRECT(\"c\" & (VLOOKUP(Rebalance!$D$31,$F$2:$G$48,2,FALSE)+ROW()-2))=Rebalance!$D$31,INDIRECT(\"a\" & (VLOOKUP(Rebalance!$D$31,$F$2:$G$48,2,FALSE)+ROW()-2)),\"\")","v":{"$error":"#N/A"}},{"$f":"IF(INDIRECT(\"c\" & (VLOOKUP(Rebalance!$D$32,$F$2:$G$48,2,FALSE)+ROW()-2))=Rebalance!$D$32,INDIRECT(\"a\" & (VLOOKUP(Rebalance!$D$32,$F$2:$G$48,2,FALSE)+ROW()-2)),\"\")","v":{"$error":"#N/A"}},{"$f":"IF(INDIRECT(\"c\" & (VLOOKUP(Rebalance!$D$33,$F$2:$G$48,2,FALSE)+ROW()-2))=Rebalance!$D$33,INDIRECT(\"a\" & (VLOOKUP(Rebalance!$D$33,$F$2:$G$48,2,FALSE)+ROW()-2)),\"\")","v":{"$error":"#N/A"}},{"$f":"IF(INDIRECT(\"c\" & (VLOOKUP(Rebalance!$D$34,$F$2:$G$48,2,FALSE)+ROW()-2))=Rebalance!$D$34,INDIRECT(\"a\" & (VLOOKUP(Rebalance!$D$34,$F$2:$G$48,2,FALSE)+ROW()-2)),\"\")","v":{"$error":"#N/A"}},{"$f":"IF(INDIRECT(\"c\" & (VLOOKUP(Rebalance!$D$35,$F$2:$G$48,2,FALSE)+ROW()-2))=Rebalance!$D$35,INDIRECT(\"a\" & (VLOOKUP(Rebalance!$D$35,$F$2:$G$48,2,FALSE)+ROW()-2)),\"\")","v":{"$error":"#N/A"}},{"$f":"IF(INDIRECT(\"c\" & (VLOOKUP(Rebalance!$D$36,$F$2:$G$48,2,FALSE)+ROW()-2))=Rebalance!$D$36,INDIRECT(\"a\" & (VLOOKUP(Rebalance!$D$36,$F$2:$G$48,2,FALSE)+ROW()-2)),\"\")","v":{"$error":"#N/A"}},{"$f":"IF(INDIRECT(\"c\" & (VLOOKUP(Rebalance!$D$37,$F$2:$G$48,2,FALSE)+ROW()-2))=Rebalance!$D$37,INDIRECT(\"a\" & (VLOOKUP(Rebalance!$D$37,$F$2:$G$48,2,FALSE)+ROW()-2)),\"\")","v":{"$error":"#N/A"}},{"$f":"IF(INDIRECT(\"c\" & (VLOOKUP(Rebalance!$D$38,$F$2:$G$48,2,FALSE)+ROW()-2))=Rebalance!$D$38,INDIRECT(\"a\" & (VLOOKUP(Rebalance!$D$38,$F$2:$G$48,2,FALSE)+ROW()-2)),\"\")","v":{"$error":"#N/A"}},{"$f":"IF(INDIRECT(\"c\" & (VLOOKUP(Rebalance!$D$39,$F$2:$G$48,2,FALSE)+ROW()-2))=Rebalance!$D$39,INDIRECT(\"a\" & (VLOOKUP(Rebalance!$D$39,$F$2:$G$48,2,FALSE)+ROW()-2)),\"\")","v":{"$error":"#N/A"}},{"$f":"IF(INDIRECT(\"c\" & (VLOOKUP(Rebalance!$D$40,$F$2:$G$48,2,FALSE)+ROW()-2))=Rebalance!$D$40,INDIRECT(\"a\" & (VLOOKUP(Rebalance!$D$40,$F$2:$G$48,2,FALSE)+ROW()-2)),\"\")","v":{"$error":"#N/A"}},{"$f":"IF(INDIRECT(\"c\" & (VLOOKUP(Rebalance!$D$52,$F$2:$G$48,2,FALSE)+ROW()-2))=Rebalance!$D$52,INDIRECT(\"a\" & (VLOOKUP(Rebalance!$D$52,$F$2:$G$48,2,FALSE)+ROW()-2)),\"\")","v":{"$error":"#N/A"}},{"$f":"IF(INDIRECT(\"c\" & (VLOOKUP(Rebalance!$D$53,$F$2:$G$48,2,FALSE)+ROW()-2))=Rebalance!$D$53,INDIRECT(\"a\" & (VLOOKUP(Rebalance!$D$53,$F$2:$G$48,2,FALSE)+ROW()-2)),\"\")","v":{"$error":"#N/A"}},{"$f":"IF(INDIRECT(\"c\" & (VLOOKUP(Rebalance!$D$54,$F$2:$G$48,2,FALSE)+ROW()-2))=Rebalance!$D$54,INDIRECT(\"a\" & (VLOOKUP(Rebalance!$D$54,$F$2:$G$48,2,FALSE)+ROW()-2)),\"\")","v":{"$error":"#N/A"}},{"$f":"IF(INDIRECT(\"c\" & (VLOOKUP(Rebalance!$D$55,$F$2:$G$48,2,FALSE)+ROW()-2))=Rebalance!$D$55,INDIRECT(\"a\" & (VLOOKUP(Rebalance!$D$55,$F$2:$G$48,2,FALSE)+ROW()-2)),\"\")","v":{"$error":"#N/A"}},{"$f":"IF(INDIRECT(\"c\" & (VLOOKUP(Rebalance!$D$56,$F$2:$G$48,2,FALSE)+ROW()-2))=Rebalance!$D$56,INDIRECT(\"a\" & (VLOOKUP(Rebalance!$D$56,$F$2:$G$48,2,FALSE)+ROW()-2)),\"\")","v":{"$error":"#N/A"}},{"$f":"IF(INDIRECT(\"c\" & (VLOOKUP(Rebalance!$D$57,$F$2:$G$48,2,FALSE)+ROW()-2))=Rebalance!$D$57,INDIRECT(\"a\" & (VLOOKUP(Rebalance!$D$57,$F$2:$G$48,2,FALSE)+ROW()-2)),\"\")","v":{"$error":"#N/A"}},{"$f":"IF(INDIRECT(\"c\" & (VLOOKUP(Rebalance!$D$58,$F$2:$G$48,2,FALSE)+ROW()-2))=Rebalance!$D$58,INDIRECT(\"a\" & (VLOOKUP(Rebalance!$D$58,$F$2:$G$48,2,FALSE)+ROW()-2)),\"\")","v":{"$error":"#N/A"}},{"$f":"IF(INDIRECT(\"c\" & (VLOOKUP(Rebalance!$D$59,$F$2:$G$48,2,FALSE)+ROW()-2))=Rebalance!$D$59,INDIRECT(\"a\" & (VLOOKUP(Rebalance!$D$59,$F$2:$G$48,2,FALSE)+ROW()-2)),\"\")","v":{"$error":"#N/A"}},{"$f":"IF(INDIRECT(\"c\" & (VLOOKUP(Rebalance!$D$60,$F$2:$G$48,2,FALSE)+ROW()-2))=Rebalance!$D$60,INDIRECT(\"a\" & (VLOOKUP(Rebalance!$D$60,$F$2:$G$48,2,FALSE)+ROW()-2)),\"\")","v":{"$error":"#N/A"}},{"$f":"IF(INDIRECT(\"c\" & (VLOOKUP(Rebalance!$D$61,$F$2:$G$48,2,FALSE)+ROW()-2))=Rebalance!$D$61,INDIRECT(\"a\" & (VLOOKUP(Rebalance!$D$61,$F$2:$G$48,2,FALSE)+ROW()-2)),\"\")","v":{"$error":"#N/A"}},{"$f":"IF(INDIRECT(\"c\" & (VLOOKUP(Rebalance!$D$62,$F$2:$G$48,2,FALSE)+ROW()-2))=Rebalance!$D$62,INDIRECT(\"a\" & (VLOOKUP(Rebalance!$D$62,$F$2:$G$48,2,FALSE)+ROW()-2)),\"\")","v":{"$error":"#N/A"}},{"$f":"IF(INDIRECT(\"c\" & (VLOOKUP(Rebalance!$D$63,$F$2:$G$48,2,FALSE)+ROW()-2))=Rebalance!$D$63,INDIRECT(\"a\" & (VLOOKUP(Rebalance!$D$63,$F$2:$G$48,2,FALSE)+ROW()-2)),\"\")","v":{"$error":"#N/A"}},{"$f":"IF(INDIRECT(\"c\" & (VLOOKUP(Rebalance!$D$64,$F$2:$G$48,2,FALSE)+ROW()-2))=Rebalance!$D$64,INDIRECT(\"a\" & (VLOOKUP(Rebalance!$D$64,$F$2:$G$48,2,FALSE)+ROW()-2)),\"\")","v":{"$error":"#N/A"}},{"$f":"IF(INDIRECT(\"c\" & (VLOOKUP(Rebalance!$D$65,$F$2:$G$48,2,FALSE)+ROW()-2))=Rebalance!$D$65,INDIRECT(\"a\" & (VLOOKUP(Rebalance!$D$65,$F$2:$G$48,2,FALSE)+ROW()-2)),\"\")","v":{"$error":"#N/A"}},{"$f":"IF(INDIRECT(\"c\" & (VLOOKUP(Rebalance!$D$66,$F$2:$G$48,2,FALSE)+ROW()-2))=Rebalance!$D$66,INDIRECT(\"a\" & (VLOOKUP(Rebalance!$D$66,$F$2:$G$48,2,FALSE)+ROW()-2)),\"\")","v":{"$error":"#N/A"}}]
["BCI Best Blend Balanced Fund E","BBBCF","Boutique Collective Investments (Pty) Ltd",{"$f":"ROW()","v":126},null,null,{"$f":"VLOOKUP(F126,$C$2:$D$599,2,FALSE)","v":{"$error":"#N/A"}},{"$f":"IF(INDIRECT(\"c\" & (VLOOKUP(Rebalance!$D$26,$F$2:$G$48,2,FALSE)+ROW()-2))=Rebalance!$D$26,INDIRECT(\"a\" & (VLOOKUP(Rebalance!$D$26,$F$2:$G$48,2,FALSE)+ROW()-2)),\"\")","v":{"$error":"#N/A"}},{"$f":"IF(INDIRECT(\"c\" & (VLOOKUP(Rebalance!$D$27,$F$2:$G$48,2,FALSE)+ROW()-2))=Rebalance!$D$27,INDIRECT(\"a\" & (VLOOKUP(Rebalance!$D$27,$F$2:$G$48,2,FALSE)+ROW()-2)),\"\")","v":{"$error":"#N/A"}},{"$f":"IF(INDIRECT(\"c\" & (VLOOKUP(Rebalance!$D$28,$F$2:$G$48,2,FALSE)+ROW()-2))=Rebalance!$D$28,INDIRECT(\"a\" & (VLOOKUP(Rebalance!$D$28,$F$2:$G$48,2,FALSE)+ROW()-2)),\"\")","v":{"$error":"#N/A"}},{"$f":"IF(INDIRECT(\"c\" & (VLOOKUP(Rebalance!$D$29,$F$2:$G$48,2,FALSE)+ROW()-2))=Rebalance!$D$29,INDIRECT(\"a\" & (VLOOKUP(Rebalance!$D$29,$F$2:$G$48,2,FALSE)+ROW()-2)),\"\")","v":{"$error":"#N/A"}},{"$f":"IF(INDIRECT(\"c\" & (VLOOKUP(Rebalance!$D$30,$F$2:$G$48,2,FALSE)+ROW()-2))=Rebalance!$D$30,INDIRECT(\"a\" & (VLOOKUP(Rebalance!$D$30,$F$2:$G$48,2,FALSE)+ROW()-2)),\"\")","v":{"$error":"#N/A"}},{"$f":"IF(INDIRECT(\"c\" & (VLOOKUP(Rebalance!$D$31,$F$2:$G$48,2,FALSE)+ROW()-2))=Rebalance!$D$31,INDIRECT(\"a\" & (VLOOKUP(Rebalance!$D$31,$F$2:$G$48,2,FALSE)+ROW()-2)),\"\")","v":{"$error":"#N/A"}},{"$f":"IF(INDIRECT(\"c\" & (VLOOKUP(Rebalance!$D$32,$F$2:$G$48,2,FALSE)+ROW()-2))=Rebalance!$D$32,INDIRECT(\"a\" & (VLOOKUP(Rebalance!$D$32,$F$2:$G$48,2,FALSE)+ROW()-2)),\"\")","v":{"$error":"#N/A"}},{"$f":"IF(INDIRECT(\"c\" & (VLOOKUP(Rebalance!$D$33,$F$2:$G$48,2,FALSE)+ROW()-2))=Rebalance!$D$33,INDIRECT(\"a\" & (VLOOKUP(Rebalance!$D$33,$F$2:$G$48,2,FALSE)+ROW()-2)),\"\")","v":{"$error":"#N/A"}},{"$f":"IF(INDIRECT(\"c\" & (VLOOKUP(Rebalance!$D$34,$F$2:$G$48,2,FALSE)+ROW()-2))=Rebalance!$D$34,INDIRECT(\"a\" & (VLOOKUP(Rebalance!$D$34,$F$2:$G$48,2,FALSE)+ROW()-2)),\"\")","v":{"$error":"#N/A"}},{"$f":"IF(INDIRECT(\"c\" & (VLOOKUP(Rebalance!$D$35,$F$2:$G$48,2,FALSE)+ROW()-2))=Rebalance!$D$35,INDIRECT(\"a\" & (VLOOKUP(Rebalance!$D$35,$F$2:$G$48,2,FALSE)+ROW()-2)),\"\")","v":{"$error":"#N/A"}},{"$f":"IF(INDIRECT(\"c\" & (VLOOKUP(Rebalance!$D$36,$F$2:$G$48,2,FALSE)+ROW()-2))=Rebalance!$D$36,INDIRECT(\"a\" & (VLOOKUP(Rebalance!$D$36,$F$2:$G$48,2,FALSE)+ROW()-2)),\"\")","v":{"$error":"#N/A"}},{"$f":"IF(INDIRECT(\"c\" & (VLOOKUP(Rebalance!$D$37,$F$2:$G$48,2,FALSE)+ROW()-2))=Rebalance!$D$37,INDIRECT(\"a\" & (VLOOKUP(Rebalance!$D$37,$F$2:$G$48,2,FALSE)+ROW()-2)),\"\")","v":{"$error":"#N/A"}},{"$f":"IF(INDIRECT(\"c\" & (VLOOKUP(Rebalance!$D$38,$F$2:$G$48,2,FALSE)+ROW()-2))=Rebalance!$D$38,INDIRECT(\"a\" & (VLOOKUP(Rebalance!$D$38,$F$2:$G$48,2,FALSE)+ROW()-2)),\"\")","v":{"$error":"#N/A"}},{"$f":"IF(INDIRECT(\"c\" & (VLOOKUP(Rebalance!$D$39,$F$2:$G$48,2,FALSE)+ROW()-2))=Rebalance!$D$39,INDIRECT(\"a\" & (VLOOKUP(Rebalance!$D$39,$F$2:$G$48,2,FALSE)+ROW()-2)),\"\")","v":{"$error":"#N/A"}},{"$f":"IF(INDIRECT(\"c\" & (VLOOKUP(Rebalance!$D$40,$F$2:$G$48,2,FALSE)+ROW()-2))=Rebalance!$D$40,INDIRECT(\"a\" & (VLOOKUP(Rebalance!$D$40,$F$2:$G$48,2,FALSE)+ROW()-2)),\"\")","v":{"$error":"#N/A"}},{"$f":"IF(INDIRECT(\"c\" & (VLOOKUP(Rebalance!$D$52,$F$2:$G$48,2,FALSE)+ROW()-2))=Rebalance!$D$52,INDIRECT(\"a\" & (VLOOKUP(Rebalance!$D$52,$F$2:$G$48,2,FALSE)+ROW()-2)),\"\")","v":{"$error":"#N/A"}},{"$f":"IF(INDIRECT(\"c\" & (VLOOKUP(Rebalance!$D$53,$F$2:$G$48,2,FALSE)+ROW()-2))=Rebalance!$D$53,INDIRECT(\"a\" & (VLOOKUP(Rebalance!$D$53,$F$2:$G$48,2,FALSE)+ROW()-2)),\"\")","v":{"$error":"#N/A"}},{"$f":"IF(INDIRECT(\"c\" & (VLOOKUP(Rebalance!$D$54,$F$2:$G$48,2,FALSE)+ROW()-2))=Rebalance!$D$54,INDIRECT(\"a\" & (VLOOKUP(Rebalance!$D$54,$F$2:$G$48,2,FALSE)+ROW()-2)),\"\")","v":{"$error":"#N/A"}},{"$f":"IF(INDIRECT(\"c\" & (VLOOKUP(Rebalance!$D$55,$F$2:$G$48,2,FALSE)+ROW()-2))=Rebalance!$D$55,INDIRECT(\"a\" & (VLOOKUP(Rebalance!$D$55,$F$2:$G$48,2,FALSE)+ROW()-2)),\"\")","v":{"$error":"#N/A"}},{"$f":"IF(INDIRECT(\"c\" & (VLOOKUP(Rebalance!$D$56,$F$2:$G$48,2,FALSE)+ROW()-2))=Rebalance!$D$56,INDIRECT(\"a\" & (VLOOKUP(Rebalance!$D$56,$F$2:$G$48,2,FALSE)+ROW()-2)),\"\")","v":{"$error":"#N/A"}},{"$f":"IF(INDIRECT(\"c\" & (VLOOKUP(Rebalance!$D$57,$F$2:$G$48,2,FALSE)+ROW()-2))=Rebalance!$D$57,INDIRECT(\"a\" & (VLOOKUP(Rebalance!$D$57,$F$2:$G$48,2,FALSE)+ROW()-2)),\"\")","v":{"$error":"#N/A"}},{"$f":"IF(INDIRECT(\"c\" & (VLOOKUP(Rebalance!$D$58,$F$2:$G$48,2,FALSE)+ROW()-2))=Rebalance!$D$58,INDIRECT(\"a\" & (VLOOKUP(Rebalance!$D$58,$F$2:$G$48,2,FALSE)+ROW()-2)),\"\")","v":{"$error":"#N/A"}},{"$f":"IF(INDIRECT(\"c\" & (VLOOKUP(Rebalance!$D$59,$F$2:$G$48,2,FALSE)+ROW()-2))=Rebalance!$D$59,INDIRECT(\"a\" & (VLOOKUP(Rebalance!$D$59,$F$2:$G$48,2,FALSE)+ROW()-2)),\"\")","v":{"$error":"#N/A"}},{"$f":"IF(INDIRECT(\"c\" & (VLOOKUP(Rebalance!$D$60,$F$2:$G$48,2,FALSE)+ROW()-2))=Rebalance!$D$60,INDIRECT(\"a\" & (VLOOKUP(Rebalance!$D$60,$F$2:$G$48,2,FALSE)+ROW()-2)),\"\")","v":{"$error":"#N/A"}},{"$f":"IF(INDIRECT(\"c\" & (VLOOKUP(Rebalance!$D$61,$F$2:$G$48,2,FALSE)+ROW()-2))=Rebalance!$D$61,INDIRECT(\"a\" & (VLOOKUP(Rebalance!$D$61,$F$2:$G$48,2,FALSE)+ROW()-2)),\"\")","v":{"$error":"#N/A"}},{"$f":"IF(INDIRECT(\"c\" & (VLOOKUP(Rebalance!$D$62,$F$2:$G$48,2,FALSE)+ROW()-2))=Rebalance!$D$62,INDIRECT(\"a\" & (VLOOKUP(Rebalance!$D$62,$F$2:$G$48,2,FALSE)+ROW()-2)),\"\")","v":{"$error":"#N/A"}},{"$f":"IF(INDIRECT(\"c\" & (VLOOKUP(Rebalance!$D$63,$F$2:$G$48,2,FALSE)+ROW()-2))=Rebalance!$D$63,INDIRECT(\"a\" & (VLOOKUP(Rebalance!$D$63,$F$2:$G$48,2,FALSE)+ROW()-2)),\"\")","v":{"$error":"#N/A"}},{"$f":"IF(INDIRECT(\"c\" & (VLOOKUP(Rebalance!$D$64,$F$2:$G$48,2,FALSE)+ROW()-2))=Rebalance!$D$64,INDIRECT(\"a\" & (VLOOKUP(Rebalance!$D$64,$F$2:$G$48,2,FALSE)+ROW()-2)),\"\")","v":{"$error":"#N/A"}},{"$f":"IF(INDIRECT(\"c\" & (VLOOKUP(Rebalance!$D$65,$F$2:$G$48,2,FALSE)+ROW()-2))=Rebalance!$D$65,INDIRECT(\"a\" & (VLOOKUP(Rebalance!$D$65,$F$2:$G$48,2,FALSE)+ROW()-2)),\"\")","v":{"$error":"#N/A"}},{"$f":"IF(INDIRECT(\"c\" & (VLOOKUP(Rebalance!$D$66,$F$2:$G$48,2,FALSE)+ROW()-2))=Rebalance!$D$66,INDIRECT(\"a\" & (VLOOKUP(Rebalance!$D$66,$F$2:$G$48,2,FALSE)+ROW()-2)),\"\")","v":{"$error":"#N/A"}}]
["BCI Best Blend Cautious Fund C","BBCCF","Boutique Collective Investments (Pty) Ltd",{"$f":"ROW()","v":127},null,null,{"$f":"VLOOKUP(F127,$C$2:$D$599,2,FALSE)","v":{"$error":"#N/A"}},{"$f":"IF(INDIRECT(\"c\" & (VLOOKUP(Rebalance!$D$26,$F$2:$G$48,2,FALSE)+ROW()-2))=Rebalance!$D$26,INDIRECT(\"a\" & (VLOOKUP(Rebalance!$D$26,$F$2:$G$48,2,FALSE)+ROW()-2)),\"\")","v":{"$error":"#N/A"}},{"$f":"IF(INDIRECT(\"c\" & (VLOOKUP(Rebalance!$D$27,$F$2:$G$48,2,FALSE)+ROW()-2))=Rebalance!$D$27,INDIRECT(\"a\" & (VLOOKUP(Rebalance!$D$27,$F$2:$G$48,2,FALSE)+ROW()-2)),\"\")","v":{"$error":"#N/A"}},{"$f":"IF(INDIRECT(\"c\" & (VLOOKUP(Rebalance!$D$28,$F$2:$G$48,2,FALSE)+ROW()-2))=Rebalance!$D$28,INDIRECT(\"a\" & (VLOOKUP(Rebalance!$D$28,$F$2:$G$48,2,FALSE)+ROW()-2)),\"\")","v":{"$error":"#N/A"}},{"$f":"IF(INDIRECT(\"c\" & (VLOOKUP(Rebalance!$D$29,$F$2:$G$48,2,FALSE)+ROW()-2))=Rebalance!$D$29,INDIRECT(\"a\" & (VLOOKUP(Rebalance!$D$29,$F$2:$G$48,2,FALSE)+ROW()-2)),\"\")","v":{"$error":"#N/A"}},{"$f":"IF(INDIRECT(\"c\" & (VLOOKUP(Rebalance!$D$30,$F$2:$G$48,2,FALSE)+ROW()-2))=Rebalance!$D$30,INDIRECT(\"a\" & (VLOOKUP(Rebalance!$D$30,$F$2:$G$48,2,FALSE)+ROW()-2)),\"\")","v":{"$error":"#N/A"}},{"$f":"IF(INDIRECT(\"c\" & (VLOOKUP(Rebalance!$D$31,$F$2:$G$48,2,FALSE)+ROW()-2))=Rebalance!$D$31,INDIRECT(\"a\" & (VLOOKUP(Rebalance!$D$31,$F$2:$G$48,2,FALSE)+ROW()-2)),\"\")","v":{"$error":"#N/A"}},{"$f":"IF(INDIRECT(\"c\" & (VLOOKUP(Rebalance!$D$32,$F$2:$G$48,2,FALSE)+ROW()-2))=Rebalance!$D$32,INDIRECT(\"a\" & (VLOOKUP(Rebalance!$D$32,$F$2:$G$48,2,FALSE)+ROW()-2)),\"\")","v":{"$error":"#N/A"}},{"$f":"IF(INDIRECT(\"c\" & (VLOOKUP(Rebalance!$D$33,$F$2:$G$48,2,FALSE)+ROW()-2))=Rebalance!$D$33,INDIRECT(\"a\" & (VLOOKUP(Rebalance!$D$33,$F$2:$G$48,2,FALSE)+ROW()-2)),\"\")","v":{"$error":"#N/A"}},{"$f":"IF(INDIRECT(\"c\" & (VLOOKUP(Rebalance!$D$34,$F$2:$G$48,2,FALSE)+ROW()-2))=Rebalance!$D$34,INDIRECT(\"a\" & (VLOOKUP(Rebalance!$D$34,$F$2:$G$48,2,FALSE)+ROW()-2)),\"\")","v":{"$error":"#N/A"}},{"$f":"IF(INDIRECT(\"c\" & (VLOOKUP(Rebalance!$D$35,$F$2:$G$48,2,FALSE)+ROW()-2))=Rebalance!$D$35,INDIRECT(\"a\" & (VLOOKUP(Rebalance!$D$35,$F$2:$G$48,2,FALSE)+ROW()-2)),\"\")","v":{"$error":"#N/A"}},{"$f":"IF(INDIRECT(\"c\" & (VLOOKUP(Rebalance!$D$36,$F$2:$G$48,2,FALSE)+ROW()-2))=Rebalance!$D$36,INDIRECT(\"a\" & (VLOOKUP(Rebalance!$D$36,$F$2:$G$48,2,FALSE)+ROW()-2)),\"\")","v":{"$error":"#N/A"}},{"$f":"IF(INDIRECT(\"c\" & (VLOOKUP(Rebalance!$D$37,$F$2:$G$48,2,FALSE)+ROW()-2))=Rebalance!$D$37,INDIRECT(\"a\" & (VLOOKUP(Rebalance!$D$37,$F$2:$G$48,2,FALSE)+ROW()-2)),\"\")","v":{"$error":"#N/A"}},{"$f":"IF(INDIRECT(\"c\" & (VLOOKUP(Rebalance!$D$38,$F$2:$G$48,2,FALSE)+ROW()-2))=Rebalance!$D$38,INDIRECT(\"a\" & (VLOOKUP(Rebalance!$D$38,$F$2:$G$48,2,FALSE)+ROW()-2)),\"\")","v":{"$error":"#N/A"}},{"$f":"IF(INDIRECT(\"c\" & (VLOOKUP(Rebalance!$D$39,$F$2:$G$48,2,FALSE)+ROW()-2))=Rebalance!$D$39,INDIRECT(\"a\" & (VLOOKUP(Rebalance!$D$39,$F$2:$G$48,2,FALSE)+ROW()-2)),\"\")","v":{"$error":"#N/A"}},{"$f":"IF(INDIRECT(\"c\" & (VLOOKUP(Rebalance!$D$40,$F$2:$G$48,2,FALSE)+ROW()-2))=Rebalance!$D$40,INDIRECT(\"a\" & (VLOOKUP(Rebalance!$D$40,$F$2:$G$48,2,FALSE)+ROW()-2)),\"\")","v":{"$error":"#N/A"}},{"$f":"IF(INDIRECT(\"c\" & (VLOOKUP(Rebalance!$D$52,$F$2:$G$48,2,FALSE)+ROW()-2))=Rebalance!$D$52,INDIRECT(\"a\" & (VLOOKUP(Rebalance!$D$52,$F$2:$G$48,2,FALSE)+ROW()-2)),\"\")","v":{"$error":"#N/A"}},{"$f":"IF(INDIRECT(\"c\" & (VLOOKUP(Rebalance!$D$53,$F$2:$G$48,2,FALSE)+ROW()-2))=Rebalance!$D$53,INDIRECT(\"a\" & (VLOOKUP(Rebalance!$D$53,$F$2:$G$48,2,FALSE)+ROW()-2)),\"\")","v":{"$error":"#N/A"}},{"$f":"IF(INDIRECT(\"c\" & (VLOOKUP(Rebalance!$D$54,$F$2:$G$48,2,FALSE)+ROW()-2))=Rebalance!$D$54,INDIRECT(\"a\" & (VLOOKUP(Rebalance!$D$54,$F$2:$G$48,2,FALSE)+ROW()-2)),\"\")","v":{"$error":"#N/A"}},{"$f":"IF(INDIRECT(\"c\" & (VLOOKUP(Rebalance!$D$55,$F$2:$G$48,2,FALSE)+ROW()-2))=Rebalance!$D$55,INDIRECT(\"a\" & (VLOOKUP(Rebalance!$D$55,$F$2:$G$48,2,FALSE)+ROW()-2)),\"\")","v":{"$error":"#N/A"}},{"$f":"IF(INDIRECT(\"c\" & (VLOOKUP(Rebalance!$D$56,$F$2:$G$48,2,FALSE)+ROW()-2))=Rebalance!$D$56,INDIRECT(\"a\" & (VLOOKUP(Rebalance!$D$56,$F$2:$G$48,2,FALSE)+ROW()-2)),\"\")","v":{"$error":"#N/A"}},{"$f":"IF(INDIRECT(\"c\" & (VLOOKUP(Rebalance!$D$57,$F$2:$G$48,2,FALSE)+ROW()-2))=Rebalance!$D$57,INDIRECT(\"a\" & (VLOOKUP(Rebalance!$D$57,$F$2:$G$48,2,FALSE)+ROW()-2)),\"\")","v":{"$error":"#N/A"}},{"$f":"IF(INDIRECT(\"c\" & (VLOOKUP(Rebalance!$D$58,$F$2:$G$48,2,FALSE)+ROW()-2))=Rebalance!$D$58,INDIRECT(\"a\" & (VLOOKUP(Rebalance!$D$58,$F$2:$G$48,2,FALSE)+ROW()-2)),\"\")","v":{"$error":"#N/A"}},{"$f":"IF(INDIRECT(\"c\" & (VLOOKUP(Rebalance!$D$59,$F$2:$G$48,2,FALSE)+ROW()-2))=Rebalance!$D$59,INDIRECT(\"a\" & (VLOOKUP(Rebalance!$D$59,$F$2:$G$48,2,FALSE)+ROW()-2)),\"\")","v":{"$error":"#N/A"}},{"$f":"IF(INDIRECT(\"c\" & (VLOOKUP(Rebalance!$D$60,$F$2:$G$48,2,FALSE)+ROW()-2))=Rebalance!$D$60,INDIRECT(\"a\" & (VLOOKUP(Rebalance!$D$60,$F$2:$G$48,2,FALSE)+ROW()-2)),\"\")","v":{"$error":"#N/A"}},{"$f":"IF(INDIRECT(\"c\" & (VLOOKUP(Rebalance!$D$61,$F$2:$G$48,2,FALSE)+ROW()-2))=Rebalance!$D$61,INDIRECT(\"a\" & (VLOOKUP(Rebalance!$D$61,$F$2:$G$48,2,FALSE)+ROW()-2)),\"\")","v":{"$error":"#N/A"}},{"$f":"IF(INDIRECT(\"c\" & (VLOOKUP(Rebalance!$D$62,$F$2:$G$48,2,FALSE)+ROW()-2))=Rebalance!$D$62,INDIRECT(\"a\" & (VLOOKUP(Rebalance!$D$62,$F$2:$G$48,2,FALSE)+ROW()-2)),\"\")","v":{"$error":"#N/A"}},{"$f":"IF(INDIRECT(\"c\" & (VLOOKUP(Rebalance!$D$63,$F$2:$G$48,2,FALSE)+ROW()-2))=Rebalance!$D$63,INDIRECT(\"a\" & (VLOOKUP(Rebalance!$D$63,$F$2:$G$48,2,FALSE)+ROW()-2)),\"\")","v":{"$error":"#N/A"}},{"$f":"IF(INDIRECT(\"c\" & (VLOOKUP(Rebalance!$D$64,$F$2:$G$48,2,FALSE)+ROW()-2))=Rebalance!$D$64,INDIRECT(\"a\" & (VLOOKUP(Rebalance!$D$64,$F$2:$G$48,2,FALSE)+ROW()-2)),\"\")","v":{"$error":"#N/A"}},{"$f":"IF(INDIRECT(\"c\" & (VLOOKUP(Rebalance!$D$65,$F$2:$G$48,2,FALSE)+ROW()-2))=Rebalance!$D$65,INDIRECT(\"a\" & (VLOOKUP(Rebalance!$D$65,$F$2:$G$48,2,FALSE)+ROW()-2)),\"\")","v":{"$error":"#N/A"}},{"$f":"IF(INDIRECT(\"c\" & (VLOOKUP(Rebalance!$D$66,$F$2:$G$48,2,FALSE)+ROW()-2))=Rebalance!$D$66,INDIRECT(\"a\" & (VLOOKUP(Rebalance!$D$66,$F$2:$G$48,2,FALSE)+ROW()-2)),\"\")","v":{"$error":"#N/A"}}]
["BCI Best Blend Cautious Fund E","BBCCF","Boutique Collective Investments (Pty) Ltd",{"$f":"ROW()","v":128},null,null,{"$f":"VLOOKUP(F128,$C$2:$D$599,2,FALSE)","v":{"$error":"#N/A"}},{"$f":"IF(INDIRECT(\"c\" & (VLOOKUP(Rebalance!$D$26,$F$2:$G$48,2,FALSE)+ROW()-2))=Rebalance!$D$26,INDIRECT(\"a\" & (VLOOKUP(Rebalance!$D$26,$F$2:$G$48,2,FALSE)+ROW()-2)),\"\")","v":{"$error":"#N/A"}},{"$f":"IF(INDIRECT(\"c\" & (VLOOKUP(Rebalance!$D$27,$F$2:$G$48,2,FALSE)+ROW()-2))=Rebalance!$D$27,INDIRECT(\"a\" & (VLOOKUP(Rebalance!$D$27,$F$2:$G$48,2,FALSE)+ROW()-2)),\"\")","v":{"$error":"#N/A"}},{"$f":"IF(INDIRECT(\"c\" & (VLOOKUP(Rebalance!$D$28,$F$2:$G$48,2,FALSE)+ROW()-2))=Rebalance!$D$28,INDIRECT(\"a\" & (VLOOKUP(Rebalance!$D$28,$F$2:$G$48,2,FALSE)+ROW()-2)),\"\")","v":{"$error":"#N/A"}},{"$f":"IF(INDIRECT(\"c\" & (VLOOKUP(Rebalance!$D$29,$F$2:$G$48,2,FALSE)+ROW()-2))=Rebalance!$D$29,INDIRECT(\"a\" & (VLOOKUP(Rebalance!$D$29,$F$2:$G$48,2,FALSE)+ROW()-2)),\"\")","v":{"$error":"#N/A"}},{"$f":"IF(INDIRECT(\"c\" & (VLOOKUP(Rebalance!$D$30,$F$2:$G$48,2,FALSE)+ROW()-2))=Rebalance!$D$30,INDIRECT(\"a\" & (VLOOKUP(Rebalance!$D$30,$F$2:$G$48,2,FALSE)+ROW()-2)),\"\")","v":{"$error":"#N/A"}},{"$f":"IF(INDIRECT(\"c\" & (VLOOKUP(Rebalance!$D$31,$F$2:$G$48,2,FALSE)+ROW()-2))=Rebalance!$D$31,INDIRECT(\"a\" & (VLOOKUP(Rebalance!$D$31,$F$2:$G$48,2,FALSE)+ROW()-2)),\"\")","v":{"$error":"#N/A"}},{"$f":"IF(INDIRECT(\"c\" & (VLOOKUP(Rebalance!$D$32,$F$2:$G$48,2,FALSE)+ROW()-2))=Rebalance!$D$32,INDIRECT(\"a\" & (VLOOKUP(Rebalance!$D$32,$F$2:$G$48,2,FALSE)+ROW()-2)),\"\")","v":{"$error":"#N/A"}},{"$f":"IF(INDIRECT(\"c\" & (VLOOKUP(Rebalance!$D$33,$F$2:$G$48,2,FALSE)+ROW()-2))=Rebalance!$D$33,INDIRECT(\"a\" & (VLOOKUP(Rebalance!$D$33,$F$2:$G$48,2,FALSE)+ROW()-2)),\"\")","v":{"$error":"#N/A"}},{"$f":"IF(INDIRECT(\"c\" & (VLOOKUP(Rebalance!$D$34,$F$2:$G$48,2,FALSE)+ROW()-2))=Rebalance!$D$34,INDIRECT(\"a\" & (VLOOKUP(Rebalance!$D$34,$F$2:$G$48,2,FALSE)+ROW()-2)),\"\")","v":{"$error":"#N/A"}},{"$f":"IF(INDIRECT(\"c\" & (VLOOKUP(Rebalance!$D$35,$F$2:$G$48,2,FALSE)+ROW()-2))=Rebalance!$D$35,INDIRECT(\"a\" & (VLOOKUP(Rebalance!$D$35,$F$2:$G$48,2,FALSE)+ROW()-2)),\"\")","v":{"$error":"#N/A"}},{"$f":"IF(INDIRECT(\"c\" & (VLOOKUP(Rebalance!$D$36,$F$2:$G$48,2,FALSE)+ROW()-2))=Rebalance!$D$36,INDIRECT(\"a\" & (VLOOKUP(Rebalance!$D$36,$F$2:$G$48,2,FALSE)+ROW()-2)),\"\")","v":{"$error":"#N/A"}},{"$f":"IF(INDIRECT(\"c\" & (VLOOKUP(Rebalance!$D$37,$F$2:$G$48,2,FALSE)+ROW()-2))=Rebalance!$D$37,INDIRECT(\"a\" & (VLOOKUP(Rebalance!$D$37,$F$2:$G$48,2,FALSE)+ROW()-2)),\"\")","v":{"$error":"#N/A"}},{"$f":"IF(INDIRECT(\"c\" & (VLOOKUP(Rebalance!$D$38,$F$2:$G$48,2,FALSE)+ROW()-2))=Rebalance!$D$38,INDIRECT(\"a\" & (VLOOKUP(Rebalance!$D$38,$F$2:$G$48,2,FALSE)+ROW()-2)),\"\")","v":{"$error":"#N/A"}},{"$f":"IF(INDIRECT(\"c\" & (VLOOKUP(Rebalance!$D$39,$F$2:$G$48,2,FALSE)+ROW()-2))=Rebalance!$D$39,INDIRECT(\"a\" & (VLOOKUP(Rebalance!$D$39,$F$2:$G$48,2,FALSE)+ROW()-2)),\"\")","v":{"$error":"#N/A"}},{"$f":"IF(INDIRECT(\"c\" & (VLOOKUP(Rebalance!$D$40,$F$2:$G$48,2,FALSE)+ROW()-2))=Rebalance!$D$40,INDIRECT(\"a\" & (VLOOKUP(Rebalance!$D$40,$F$2:$G$48,2,FALSE)+ROW()-2)),\"\")","v":{"$error":"#N/A"}},{"$f":"IF(INDIRECT(\"c\" & (VLOOKUP(Rebalance!$D$52,$F$2:$G$48,2,FALSE)+ROW()-2))=Rebalance!$D$52,INDIRECT(\"a\" & (VLOOKUP(Rebalance!$D$52,$F$2:$G$48,2,FALSE)+ROW()-2)),\"\")","v":{"$error":"#N/A"}},{"$f":"IF(INDIRECT(\"c\" & (VLOOKUP(Rebalance!$D$53,$F$2:$G$48,2,FALSE)+ROW()-2))=Rebalance!$D$53,INDIRECT(\"a\" & (VLOOKUP(Rebalance!$D$53,$F$2:$G$48,2,FALSE)+ROW()-2)),\"\")","v":{"$error":"#N/A"}},{"$f":"IF(INDIRECT(\"c\" & (VLOOKUP(Rebalance!$D$54,$F$2:$G$48,2,FALSE)+ROW()-2))=Rebalance!$D$54,INDIRECT(\"a\" & (VLOOKUP(Rebalance!$D$54,$F$2:$G$48,2,FALSE)+ROW()-2)),\"\")","v":{"$error":"#N/A"}},{"$f":"IF(INDIRECT(\"c\" & (VLOOKUP(Rebalance!$D$55,$F$2:$G$48,2,FALSE)+ROW()-2))=Rebalance!$D$55,INDIRECT(\"a\" & (VLOOKUP(Rebalance!$D$55,$F$2:$G$48,2,FALSE)+ROW()-2)),\"\")","v":{"$error":"#N/A"}},{"$f":"IF(INDIRECT(\"c\" & (VLOOKUP(Rebalance!$D$56,$F$2:$G$48,2,FALSE)+ROW()-2))=Rebalance!$D$56,INDIRECT(\"a\" & (VLOOKUP(Rebalance!$D$56,$F$2:$G$48,2,FALSE)+ROW()-2)),\"\")","v":{"$error":"#N/A"}},{"$f":"IF(INDIRECT(\"c\" & (VLOOKUP(Rebalance!$D$57,$F$2:$G$48,2,FALSE)+ROW()-2))=Rebalance!$D$57,INDIRECT(\"a\" & (VLOOKUP(Rebalance!$D$57,$F$2:$G$48,2,FALSE)+ROW()-2)),\"\")","v":{"$error":"#N/A"}},{"$f":"IF(INDIRECT(\"c\" & (VLOOKUP(Rebalance!$D$58,$F$2:$G$48,2,FALSE)+ROW()-2))=Rebalance!$D$58,INDIRECT(\"a\" & (VLOOKUP(Rebalance!$D$58,$F$2:$G$48,2,FALSE)+ROW()-2)),\"\")","v":{"$error":"#N/A"}},{"$f":"IF(INDIRECT(\"c\" & (VLOOKUP(Rebalance!$D$59,$F$2:$G$48,2,FALSE)+ROW()-2))=Rebalance!$D$59,INDIRECT(\"a\" & (VLOOKUP(Rebalance!$D$59,$F$2:$G$48,2,FALSE)+ROW()-2)),\"\")","v":{"$error":"#N/A"}},{"$f":"IF(INDIRECT(\"c\" & (VLOOKUP(Rebalance!$D$60,$F$2:$G$48,2,FALSE)+ROW()-2))=Rebalance!$D$60,INDIRECT(\"a\" & (VLOOKUP(Rebalance!$D$60,$F$2:$G$48,2,FALSE)+ROW()-2)),\"\")","v":{"$error":"#N/A"}},{"$f":"IF(INDIRECT(\"c\" & (VLOOKUP(Rebalance!$D$61,$F$2:$G$48,2,FALSE)+ROW()-2))=Rebalance!$D$61,INDIRECT(\"a\" & (VLOOKUP(Rebalance!$D$61,$F$2:$G$48,2,FALSE)+ROW()-2)),\"\")","v":{"$error":"#N/A"}},{"$f":"IF(INDIRECT(\"c\" & (VLOOKUP(Rebalance!$D$62,$F$2:$G$48,2,FALSE)+ROW()-2))=Rebalance!$D$62,INDIRECT(\"a\" & (VLOOKUP(Rebalance!$D$62,$F$2:$G$48,2,FALSE)+ROW()-2)),\"\")","v":{"$error":"#N/A"}},{"$f":"IF(INDIRECT(\"c\" & (VLOOKUP(Rebalance!$D$63,$F$2:$G$48,2,FALSE)+ROW()-2))=Rebalance!$D$63,INDIRECT(\"a\" & (VLOOKUP(Rebalance!$D$63,$F$2:$G$48,2,FALSE)+ROW()-2)),\"\")","v":{"$error":"#N/A"}},{"$f":"IF(INDIRECT(\"c\" & (VLOOKUP(Rebalance!$D$64,$F$2:$G$48,2,FALSE)+ROW()-2))=Rebalance!$D$64,INDIRECT(\"a\" & (VLOOKUP(Rebalance!$D$64,$F$2:$G$48,2,FALSE)+ROW()-2)),\"\")","v":{"$error":"#N/A"}},{"$f":"IF(INDIRECT(\"c\" & (VLOOKUP(Rebalance!$D$65,$F$2:$G$48,2,FALSE)+ROW()-2))=Rebalance!$D$65,INDIRECT(\"a\" & (VLOOKUP(Rebalance!$D$65,$F$2:$G$48,2,FALSE)+ROW()-2)),\"\")","v":{"$error":"#N/A"}},{"$f":"IF(INDIRECT(\"c\" & (VLOOKUP(Rebalance!$D$66,$F$2:$G$48,2,FALSE)+ROW()-2))=Rebalance!$D$66,INDIRECT(\"a\" & (VLOOKUP(Rebalance!$D$66,$F$2:$G$48,2,FALSE)+ROW()-2)),\"\")","v":{"$error":"#N/A"}}]
["BCI Best Blend Flexible Income Fund B","BBBFC","Boutique Collective Investments (Pty) Ltd",{"$f":"ROW()","v":129},null,null,{"$f":"VLOOKUP(F129,$C$2:$D$599,2,FALSE)","v":{"$error":"#N/A"}},{"$f":"IF(INDIRECT(\"c\" & (VLOOKUP(Rebalance!$D$26,$F$2:$G$48,2,FALSE)+ROW()-2))=Rebalance!$D$26,INDIRECT(\"a\" & (VLOOKUP(Rebalance!$D$26,$F$2:$G$48,2,FALSE)+ROW()-2)),\"\")","v":{"$error":"#N/A"}},{"$f":"IF(INDIRECT(\"c\" & (VLOOKUP(Rebalance!$D$27,$F$2:$G$48,2,FALSE)+ROW()-2))=Rebalance!$D$27,INDIRECT(\"a\" & (VLOOKUP(Rebalance!$D$27,$F$2:$G$48,2,FALSE)+ROW()-2)),\"\")","v":{"$error":"#N/A"}},{"$f":"IF(INDIRECT(\"c\" & (VLOOKUP(Rebalance!$D$28,$F$2:$G$48,2,FALSE)+ROW()-2))=Rebalance!$D$28,INDIRECT(\"a\" & (VLOOKUP(Rebalance!$D$28,$F$2:$G$48,2,FALSE)+ROW()-2)),\"\")","v":{"$error":"#N/A"}},{"$f":"IF(INDIRECT(\"c\" & (VLOOKUP(Rebalance!$D$29,$F$2:$G$48,2,FALSE)+ROW()-2))=Rebalance!$D$29,INDIRECT(\"a\" & (VLOOKUP(Rebalance!$D$29,$F$2:$G$48,2,FALSE)+ROW()-2)),\"\")","v":{"$error":"#N/A"}},{"$f":"IF(INDIRECT(\"c\" & (VLOOKUP(Rebalance!$D$30,$F$2:$G$48,2,FALSE)+ROW()-2))=Rebalance!$D$30,INDIRECT(\"a\" & (VLOOKUP(Rebalance!$D$30,$F$2:$G$48,2,FALSE)+ROW()-2)),\"\")","v":{"$error":"#N/A"}},{"$f":"IF(INDIRECT(\"c\" & (VLOOKUP(Rebalance!$D$31,$F$2:$G$48,2,FALSE)+ROW()-2))=Rebalance!$D$31,INDIRECT(\"a\" & (VLOOKUP(Rebalance!$D$31,$F$2:$G$48,2,FALSE)+ROW()-2)),\"\")","v":{"$error":"#N/A"}},{"$f":"IF(INDIRECT(\"c\" & (VLOOKUP(Rebalance!$D$32,$F$2:$G$48,2,FALSE)+ROW()-2))=Rebalance!$D$32,INDIRECT(\"a\" & (VLOOKUP(Rebalance!$D$32,$F$2:$G$48,2,FALSE)+ROW()-2)),\"\")","v":{"$error":"#N/A"}},{"$f":"IF(INDIRECT(\"c\" & (VLOOKUP(Rebalance!$D$33,$F$2:$G$48,2,FALSE)+ROW()-2))=Rebalance!$D$33,INDIRECT(\"a\" & (VLOOKUP(Rebalance!$D$33,$F$2:$G$48,2,FALSE)+ROW()-2)),\"\")","v":{"$error":"#N/A"}},{"$f":"IF(INDIRECT(\"c\" & (VLOOKUP(Rebalance!$D$34,$F$2:$G$48,2,FALSE)+ROW()-2))=Rebalance!$D$34,INDIRECT(\"a\" & (VLOOKUP(Rebalance!$D$34,$F$2:$G$48,2,FALSE)+ROW()-2)),\"\")","v":{"$error":"#N/A"}},{"$f":"IF(INDIRECT(\"c\" & (VLOOKUP(Rebalance!$D$35,$F$2:$G$48,2,FALSE)+ROW()-2))=Rebalance!$D$35,INDIRECT(\"a\" & (VLOOKUP(Rebalance!$D$35,$F$2:$G$48,2,FALSE)+ROW()-2)),\"\")","v":{"$error":"#N/A"}},{"$f":"IF(INDIRECT(\"c\" & (VLOOKUP(Rebalance!$D$36,$F$2:$G$48,2,FALSE)+ROW()-2))=Rebalance!$D$36,INDIRECT(\"a\" & (VLOOKUP(Rebalance!$D$36,$F$2:$G$48,2,FALSE)+ROW()-2)),\"\")","v":{"$error":"#N/A"}},{"$f":"IF(INDIRECT(\"c\" & (VLOOKUP(Rebalance!$D$37,$F$2:$G$48,2,FALSE)+ROW()-2))=Rebalance!$D$37,INDIRECT(\"a\" & (VLOOKUP(Rebalance!$D$37,$F$2:$G$48,2,FALSE)+ROW()-2)),\"\")","v":{"$error":"#N/A"}},{"$f":"IF(INDIRECT(\"c\" & (VLOOKUP(Rebalance!$D$38,$F$2:$G$48,2,FALSE)+ROW()-2))=Rebalance!$D$38,INDIRECT(\"a\" & (VLOOKUP(Rebalance!$D$38,$F$2:$G$48,2,FALSE)+ROW()-2)),\"\")","v":{"$error":"#N/A"}},{"$f":"IF(INDIRECT(\"c\" & (VLOOKUP(Rebalance!$D$39,$F$2:$G$48,2,FALSE)+ROW()-2))=Rebalance!$D$39,INDIRECT(\"a\" & (VLOOKUP(Rebalance!$D$39,$F$2:$G$48,2,FALSE)+ROW()-2)),\"\")","v":{"$error":"#N/A"}},{"$f":"IF(INDIRECT(\"c\" & (VLOOKUP(Rebalance!$D$40,$F$2:$G$48,2,FALSE)+ROW()-2))=Rebalance!$D$40,INDIRECT(\"a\" & (VLOOKUP(Rebalance!$D$40,$F$2:$G$48,2,FALSE)+ROW()-2)),\"\")","v":{"$error":"#N/A"}},{"$f":"IF(INDIRECT(\"c\" & (VLOOKUP(Rebalance!$D$52,$F$2:$G$48,2,FALSE)+ROW()-2))=Rebalance!$D$52,INDIRECT(\"a\" & (VLOOKUP(Rebalance!$D$52,$F$2:$G$48,2,FALSE)+ROW()-2)),\"\")","v":{"$error":"#N/A"}},{"$f":"IF(INDIRECT(\"c\" & (VLOOKUP(Rebalance!$D$53,$F$2:$G$48,2,FALSE)+ROW()-2))=Rebalance!$D$53,INDIRECT(\"a\" & (VLOOKUP(Rebalance!$D$53,$F$2:$G$48,2,FALSE)+ROW()-2)),\"\")","v":{"$error":"#N/A"}},{"$f":"IF(INDIRECT(\"c\" & (VLOOKUP(Rebalance!$D$54,$F$2:$G$48,2,FALSE)+ROW()-2))=Rebalance!$D$54,INDIRECT(\"a\" & (VLOOKUP(Rebalance!$D$54,$F$2:$G$48,2,FALSE)+ROW()-2)),\"\")","v":{"$error":"#N/A"}},{"$f":"IF(INDIRECT(\"c\" & (VLOOKUP(Rebalance!$D$55,$F$2:$G$48,2,FALSE)+ROW()-2))=Rebalance!$D$55,INDIRECT(\"a\" & (VLOOKUP(Rebalance!$D$55,$F$2:$G$48,2,FALSE)+ROW()-2)),\"\")","v":{"$error":"#N/A"}},{"$f":"IF(INDIRECT(\"c\" & (VLOOKUP(Rebalance!$D$56,$F$2:$G$48,2,FALSE)+ROW()-2))=Rebalance!$D$56,INDIRECT(\"a\" & (VLOOKUP(Rebalance!$D$56,$F$2:$G$48,2,FALSE)+ROW()-2)),\"\")","v":{"$error":"#N/A"}},{"$f":"IF(INDIRECT(\"c\" & (VLOOKUP(Rebalance!$D$57,$F$2:$G$48,2,FALSE)+ROW()-2))=Rebalance!$D$57,INDIRECT(\"a\" & (VLOOKUP(Rebalance!$D$57,$F$2:$G$48,2,FALSE)+ROW()-2)),\"\")","v":{"$error":"#N/A"}},{"$f":"IF(INDIRECT(\"c\" & (VLOOKUP(Rebalance!$D$58,$F$2:$G$48,2,FALSE)+ROW()-2))=Rebalance!$D$58,INDIRECT(\"a\" & (VLOOKUP(Rebalance!$D$58,$F$2:$G$48,2,FALSE)+ROW()-2)),\"\")","v":{"$error":"#N/A"}},{"$f":"IF(INDIRECT(\"c\" & (VLOOKUP(Rebalance!$D$59,$F$2:$G$48,2,FALSE)+ROW()-2))=Rebalance!$D$59,INDIRECT(\"a\" & (VLOOKUP(Rebalance!$D$59,$F$2:$G$48,2,FALSE)+ROW()-2)),\"\")","v":{"$error":"#N/A"}},{"$f":"IF(INDIRECT(\"c\" & (VLOOKUP(Rebalance!$D$60,$F$2:$G$48,2,FALSE)+ROW()-2))=Rebalance!$D$60,INDIRECT(\"a\" & (VLOOKUP(Rebalance!$D$60,$F$2:$G$48,2,FALSE)+ROW()-2)),\"\")","v":{"$error":"#N/A"}},{"$f":"IF(INDIRECT(\"c\" & (VLOOKUP(Rebalance!$D$61,$F$2:$G$48,2,FALSE)+ROW()-2))=Rebalance!$D$61,INDIRECT(\"a\" & (VLOOKUP(Rebalance!$D$61,$F$2:$G$48,2,FALSE)+ROW()-2)),\"\")","v":{"$error":"#N/A"}},{"$f":"IF(INDIRECT(\"c\" & (VLOOKUP(Rebalance!$D$62,$F$2:$G$48,2,FALSE)+ROW()-2))=Rebalance!$D$62,INDIRECT(\"a\" & (VLOOKUP(Rebalance!$D$62,$F$2:$G$48,2,FALSE)+ROW()-2)),\"\")","v":{"$error":"#N/A"}},{"$f":"IF(INDIRECT(\"c\" & (VLOOKUP(Rebalance!$D$63,$F$2:$G$48,2,FALSE)+ROW()-2))=Rebalance!$D$63,INDIRECT(\"a\" & (VLOOKUP(Rebalance!$D$63,$F$2:$G$48,2,FALSE)+ROW()-2)),\"\")","v":{"$error":"#N/A"}},{"$f":"IF(INDIRECT(\"c\" & (VLOOKUP(Rebalance!$D$64,$F$2:$G$48,2,FALSE)+ROW()-2))=Rebalance!$D$64,INDIRECT(\"a\" & (VLOOKUP(Rebalance!$D$64,$F$2:$G$48,2,FALSE)+ROW()-2)),\"\")","v":{"$error":"#N/A"}},{"$f":"IF(INDIRECT(\"c\" & (VLOOKUP(Rebalance!$D$65,$F$2:$G$48,2,FALSE)+ROW()-2))=Rebalance!$D$65,INDIRECT(\"a\" & (VLOOKUP(Rebalance!$D$65,$F$2:$G$48,2,FALSE)+ROW()-2)),\"\")","v":{"$error":"#N/A"}},{"$f":"IF(INDIRECT(\"c\" & (VLOOKUP(Rebalance!$D$66,$F$2:$G$48,2,FALSE)+ROW()-2))=Rebalance!$D$66,INDIRECT(\"a\" & (VLOOKUP(Rebalance!$D$66,$F$2:$G$48,2,FALSE)+ROW()-2)),\"\")","v":{"$error":"#N/A"}}]
["BCI Best Blend Flexible Income Fund E","BBBFC","Boutique Collective Investments (Pty) Ltd",{"$f":"ROW()","v":130},null,null,{"$f":"VLOOKUP(F130,$C$2:$D$599,2,FALSE)","v":{"$error":"#N/A"}},{"$f":"IF(INDIRECT(\"c\" & (VLOOKUP(Rebalance!$D$26,$F$2:$G$48,2,FALSE)+ROW()-2))=Rebalance!$D$26,INDIRECT(\"a\" & (VLOOKUP(Rebalance!$D$26,$F$2:$G$48,2,FALSE)+ROW()-2)),\"\")","v":{"$error":"#N/A"}},{"$f":"IF(INDIRECT(\"c\" & (VLOOKUP(Rebalance!$D$27,$F$2:$G$48,2,FALSE)+ROW()-2))=Rebalance!$D$27,INDIRECT(\"a\" & (VLOOKUP(Rebalance!$D$27,$F$2:$G$48,2,FALSE)+ROW()-2)),\"\")","v":{"$error":"#N/A"}},{"$f":"IF(INDIRECT(\"c\" & (VLOOKUP(Rebalance!$D$28,$F$2:$G$48,2,FALSE)+ROW()-2))=Rebalance!$D$28,INDIRECT(\"a\" & (VLOOKUP(Rebalance!$D$28,$F$2:$G$48,2,FALSE)+ROW()-2)),\"\")","v":{"$error":"#N/A"}},{"$f":"IF(INDIRECT(\"c\" & (VLOOKUP(Rebalance!$D$29,$F$2:$G$48,2,FALSE)+ROW()-2))=Rebalance!$D$29,INDIRECT(\"a\" & (VLOOKUP(Rebalance!$D$29,$F$2:$G$48,2,FALSE)+ROW()-2)),\"\")","v":{"$error":"#N/A"}},{"$f":"IF(INDIRECT(\"c\" & (VLOOKUP(Rebalance!$D$30,$F$2:$G$48,2,FALSE)+ROW()-2))=Rebalance!$D$30,INDIRECT(\"a\" & (VLOOKUP(Rebalance!$D$30,$F$2:$G$48,2,FALSE)+ROW()-2)),\"\")","v":{"$error":"#N/A"}},{"$f":"IF(INDIRECT(\"c\" & (VLOOKUP(Rebalance!$D$31,$F$2:$G$48,2,FALSE)+ROW()-2))=Rebalance!$D$31,INDIRECT(\"a\" & (VLOOKUP(Rebalance!$D$31,$F$2:$G$48,2,FALSE)+ROW()-2)),\"\")","v":{"$error":"#N/A"}},{"$f":"IF(INDIRECT(\"c\" & (VLOOKUP(Rebalance!$D$32,$F$2:$G$48,2,FALSE)+ROW()-2))=Rebalance!$D$32,INDIRECT(\"a\" & (VLOOKUP(Rebalance!$D$32,$F$2:$G$48,2,FALSE)+ROW()-2)),\"\")","v":{"$error":"#N/A"}},{"$f":"IF(INDIRECT(\"c\" & (VLOOKUP(Rebalance!$D$33,$F$2:$G$48,2,FALSE)+ROW()-2))=Rebalance!$D$33,INDIRECT(\"a\" & (VLOOKUP(Rebalance!$D$33,$F$2:$G$48,2,FALSE)+ROW()-2)),\"\")","v":{"$error":"#N/A"}},{"$f":"IF(INDIRECT(\"c\" & (VLOOKUP(Rebalance!$D$34,$F$2:$G$48,2,FALSE)+ROW()-2))=Rebalance!$D$34,INDIRECT(\"a\" & (VLOOKUP(Rebalance!$D$34,$F$2:$G$48,2,FALSE)+ROW()-2)),\"\")","v":{"$error":"#N/A"}},{"$f":"IF(INDIRECT(\"c\" & (VLOOKUP(Rebalance!$D$35,$F$2:$G$48,2,FALSE)+ROW()-2))=Rebalance!$D$35,INDIRECT(\"a\" & (VLOOKUP(Rebalance!$D$35,$F$2:$G$48,2,FALSE)+ROW()-2)),\"\")","v":{"$error":"#N/A"}},{"$f":"IF(INDIRECT(\"c\" & (VLOOKUP(Rebalance!$D$36,$F$2:$G$48,2,FALSE)+ROW()-2))=Rebalance!$D$36,INDIRECT(\"a\" & (VLOOKUP(Rebalance!$D$36,$F$2:$G$48,2,FALSE)+ROW()-2)),\"\")","v":{"$error":"#N/A"}},{"$f":"IF(INDIRECT(\"c\" & (VLOOKUP(Rebalance!$D$37,$F$2:$G$48,2,FALSE)+ROW()-2))=Rebalance!$D$37,INDIRECT(\"a\" & (VLOOKUP(Rebalance!$D$37,$F$2:$G$48,2,FALSE)+ROW()-2)),\"\")","v":{"$error":"#N/A"}},{"$f":"IF(INDIRECT(\"c\" & (VLOOKUP(Rebalance!$D$38,$F$2:$G$48,2,FALSE)+ROW()-2))=Rebalance!$D$38,INDIRECT(\"a\" & (VLOOKUP(Rebalance!$D$38,$F$2:$G$48,2,FALSE)+ROW()-2)),\"\")","v":{"$error":"#N/A"}},{"$f":"IF(INDIRECT(\"c\" & (VLOOKUP(Rebalance!$D$39,$F$2:$G$48,2,FALSE)+ROW()-2))=Rebalance!$D$39,INDIRECT(\"a\" & (VLOOKUP(Rebalance!$D$39,$F$2:$G$48,2,FALSE)+ROW()-2)),\"\")","v":{"$error":"#N/A"}},{"$f":"IF(INDIRECT(\"c\" & (VLOOKUP(Rebalance!$D$40,$F$2:$G$48,2,FALSE)+ROW()-2))=Rebalance!$D$40,INDIRECT(\"a\" & (VLOOKUP(Rebalance!$D$40,$F$2:$G$48,2,FALSE)+ROW()-2)),\"\")","v":{"$error":"#N/A"}},{"$f":"IF(INDIRECT(\"c\" & (VLOOKUP(Rebalance!$D$52,$F$2:$G$48,2,FALSE)+ROW()-2))=Rebalance!$D$52,INDIRECT(\"a\" & (VLOOKUP(Rebalance!$D$52,$F$2:$G$48,2,FALSE)+ROW()-2)),\"\")","v":{"$error":"#N/A"}},{"$f":"IF(INDIRECT(\"c\" & (VLOOKUP(Rebalance!$D$53,$F$2:$G$48,2,FALSE)+ROW()-2))=Rebalance!$D$53,INDIRECT(\"a\" & (VLOOKUP(Rebalance!$D$53,$F$2:$G$48,2,FALSE)+ROW()-2)),\"\")","v":{"$error":"#N/A"}},{"$f":"IF(INDIRECT(\"c\" & (VLOOKUP(Rebalance!$D$54,$F$2:$G$48,2,FALSE)+ROW()-2))=Rebalance!$D$54,INDIRECT(\"a\" & (VLOOKUP(Rebalance!$D$54,$F$2:$G$48,2,FALSE)+ROW()-2)),\"\")","v":{"$error":"#N/A"}},{"$f":"IF(INDIRECT(\"c\" & (VLOOKUP(Rebalance!$D$55,$F$2:$G$48,2,FALSE)+ROW()-2))=Rebalance!$D$55,INDIRECT(\"a\" & (VLOOKUP(Rebalance!$D$55,$F$2:$G$48,2,FALSE)+ROW()-2)),\"\")","v":{"$error":"#N/A"}},{"$f":"IF(INDIRECT(\"c\" & (VLOOKUP(Rebalance!$D$56,$F$2:$G$48,2,FALSE)+ROW()-2))=Rebalance!$D$56,INDIRECT(\"a\" & (VLOOKUP(Rebalance!$D$56,$F$2:$G$48,2,FALSE)+ROW()-2)),\"\")","v":{"$error":"#N/A"}},{"$f":"IF(INDIRECT(\"c\" & (VLOOKUP(Rebalance!$D$57,$F$2:$G$48,2,FALSE)+ROW()-2))=Rebalance!$D$57,INDIRECT(\"a\" & (VLOOKUP(Rebalance!$D$57,$F$2:$G$48,2,FALSE)+ROW()-2)),\"\")","v":{"$error":"#N/A"}},{"$f":"IF(INDIRECT(\"c\" & (VLOOKUP(Rebalance!$D$58,$F$2:$G$48,2,FALSE)+ROW()-2))=Rebalance!$D$58,INDIRECT(\"a\" & (VLOOKUP(Rebalance!$D$58,$F$2:$G$48,2,FALSE)+ROW()-2)),\"\")","v":{"$error":"#N/A"}},{"$f":"IF(INDIRECT(\"c\" & (VLOOKUP(Rebalance!$D$59,$F$2:$G$48,2,FALSE)+ROW()-2))=Rebalance!$D$59,INDIRECT(\"a\" & (VLOOKUP(Rebalance!$D$59,$F$2:$G$48,2,FALSE)+ROW()-2)),\"\")","v":{"$error":"#N/A"}},{"$f":"IF(INDIRECT(\"c\" & (VLOOKUP(Rebalance!$D$60,$F$2:$G$48,2,FALSE)+ROW()-2))=Rebalance!$D$60,INDIRECT(\"a\" & (VLOOKUP(Rebalance!$D$60,$F$2:$G$48,2,FALSE)+ROW()-2)),\"\")","v":{"$error":"#N/A"}},{"$f":"IF(INDIRECT(\"c\" & (VLOOKUP(Rebalance!$D$61,$F$2:$G$48,2,FALSE)+ROW()-2))=Rebalance!$D$61,INDIRECT(\"a\" & (VLOOKUP(Rebalance!$D$61,$F$2:$G$48,2,FALSE)+ROW()-2)),\"\")","v":{"$error":"#N/A"}},{"$f":"IF(INDIRECT(\"c\" & (VLOOKUP(Rebalance!$D$62,$F$2:$G$48,2,FALSE)+ROW()-2))=Rebalance!$D$62,INDIRECT(\"a\" & (VLOOKUP(Rebalance!$D$62,$F$2:$G$48,2,FALSE)+ROW()-2)),\"\")","v":{"$error":"#N/A"}},{"$f":"IF(INDIRECT(\"c\" & (VLOOKUP(Rebalance!$D$63,$F$2:$G$48,2,FALSE)+ROW()-2))=Rebalance!$D$63,INDIRECT(\"a\" & (VLOOKUP(Rebalance!$D$63,$F$2:$G$48,2,FALSE)+ROW()-2)),\"\")","v":{"$error":"#N/A"}},{"$f":"IF(INDIRECT(\"c\" & (VLOOKUP(Rebalance!$D$64,$F$2:$G$48,2,FALSE)+ROW()-2))=Rebalance!$D$64,INDIRECT(\"a\" & (VLOOKUP(Rebalance!$D$64,$F$2:$G$48,2,FALSE)+ROW()-2)),\"\")","v":{"$error":"#N/A"}},{"$f":"IF(INDIRECT(\"c\" & (VLOOKUP(Rebalance!$D$65,$F$2:$G$48,2,FALSE)+ROW()-2))=Rebalance!$D$65,INDIRECT(\"a\" & (VLOOKUP(Rebalance!$D$65,$F$2:$G$48,2,FALSE)+ROW()-2)),\"\")","v":{"$error":"#N/A"}},{"$f":"IF(INDIRECT(\"c\" & (VLOOKUP(Rebalance!$D$66,$F$2:$G$48,2,FALSE)+ROW()-2))=Rebalance!$D$66,INDIRECT(\"a\" & (VLOOKUP(Rebalance!$D$66,$F$2:$G$48,2,FALSE)+ROW()-2)),\"\")","v":{"$error":"#N/A"}}]
["BCI Best Blend Specialist Equity Fund B","BBBEC","Boutique Collective Investments (Pty) Ltd",{"$f":"ROW()","v":131},null,null,{"$f":"VLOOKUP(F131,$C$2:$D$599,2,FALSE)","v":{"$error":"#N/A"}},{"$f":"IF(INDIRECT(\"c\" & (VLOOKUP(Rebalance!$D$26,$F$2:$G$48,2,FALSE)+ROW()-2))=Rebalance!$D$26,INDIRECT(\"a\" & (VLOOKUP(Rebalance!$D$26,$F$2:$G$48,2,FALSE)+ROW()-2)),\"\")","v":{"$error":"#N/A"}},{"$f":"IF(INDIRECT(\"c\" & (VLOOKUP(Rebalance!$D$27,$F$2:$G$48,2,FALSE)+ROW()-2))=Rebalance!$D$27,INDIRECT(\"a\" & (VLOOKUP(Rebalance!$D$27,$F$2:$G$48,2,FALSE)+ROW()-2)),\"\")","v":{"$error":"#N/A"}},{"$f":"IF(INDIRECT(\"c\" & (VLOOKUP(Rebalance!$D$28,$F$2:$G$48,2,FALSE)+ROW()-2))=Rebalance!$D$28,INDIRECT(\"a\" & (VLOOKUP(Rebalance!$D$28,$F$2:$G$48,2,FALSE)+ROW()-2)),\"\")","v":{"$error":"#N/A"}},{"$f":"IF(INDIRECT(\"c\" & (VLOOKUP(Rebalance!$D$29,$F$2:$G$48,2,FALSE)+ROW()-2))=Rebalance!$D$29,INDIRECT(\"a\" & (VLOOKUP(Rebalance!$D$29,$F$2:$G$48,2,FALSE)+ROW()-2)),\"\")","v":{"$error":"#N/A"}},{"$f":"IF(INDIRECT(\"c\" & (VLOOKUP(Rebalance!$D$30,$F$2:$G$48,2,FALSE)+ROW()-2))=Rebalance!$D$30,INDIRECT(\"a\" & (VLOOKUP(Rebalance!$D$30,$F$2:$G$48,2,FALSE)+ROW()-2)),\"\")","v":{"$error":"#N/A"}},{"$f":"IF(INDIRECT(\"c\" & (VLOOKUP(Rebalance!$D$31,$F$2:$G$48,2,FALSE)+ROW()-2))=Rebalance!$D$31,INDIRECT(\"a\" & (VLOOKUP(Rebalance!$D$31,$F$2:$G$48,2,FALSE)+ROW()-2)),\"\")","v":{"$error":"#N/A"}},{"$f":"IF(INDIRECT(\"c\" & (VLOOKUP(Rebalance!$D$32,$F$2:$G$48,2,FALSE)+ROW()-2))=Rebalance!$D$32,INDIRECT(\"a\" & (VLOOKUP(Rebalance!$D$32,$F$2:$G$48,2,FALSE)+ROW()-2)),\"\")","v":{"$error":"#N/A"}},{"$f":"IF(INDIRECT(\"c\" & (VLOOKUP(Rebalance!$D$33,$F$2:$G$48,2,FALSE)+ROW()-2))=Rebalance!$D$33,INDIRECT(\"a\" & (VLOOKUP(Rebalance!$D$33,$F$2:$G$48,2,FALSE)+ROW()-2)),\"\")","v":{"$error":"#N/A"}},{"$f":"IF(INDIRECT(\"c\" & (VLOOKUP(Rebalance!$D$34,$F$2:$G$48,2,FALSE)+ROW()-2))=Rebalance!$D$34,INDIRECT(\"a\" & (VLOOKUP(Rebalance!$D$34,$F$2:$G$48,2,FALSE)+ROW()-2)),\"\")","v":{"$error":"#N/A"}},{"$f":"IF(INDIRECT(\"c\" & (VLOOKUP(Rebalance!$D$35,$F$2:$G$48,2,FALSE)+ROW()-2))=Rebalance!$D$35,INDIRECT(\"a\" & (VLOOKUP(Rebalance!$D$35,$F$2:$G$48,2,FALSE)+ROW()-2)),\"\")","v":{"$error":"#N/A"}},{"$f":"IF(INDIRECT(\"c\" & (VLOOKUP(Rebalance!$D$36,$F$2:$G$48,2,FALSE)+ROW()-2))=Rebalance!$D$36,INDIRECT(\"a\" & (VLOOKUP(Rebalance!$D$36,$F$2:$G$48,2,FALSE)+ROW()-2)),\"\")","v":{"$error":"#N/A"}},{"$f":"IF(INDIRECT(\"c\" & (VLOOKUP(Rebalance!$D$37,$F$2:$G$48,2,FALSE)+ROW()-2))=Rebalance!$D$37,INDIRECT(\"a\" & (VLOOKUP(Rebalance!$D$37,$F$2:$G$48,2,FALSE)+ROW()-2)),\"\")","v":{"$error":"#N/A"}},{"$f":"IF(INDIRECT(\"c\" & (VLOOKUP(Rebalance!$D$38,$F$2:$G$48,2,FALSE)+ROW()-2))=Rebalance!$D$38,INDIRECT(\"a\" & (VLOOKUP(Rebalance!$D$38,$F$2:$G$48,2,FALSE)+ROW()-2)),\"\")","v":{"$error":"#N/A"}},{"$f":"IF(INDIRECT(\"c\" & (VLOOKUP(Rebalance!$D$39,$F$2:$G$48,2,FALSE)+ROW()-2))=Rebalance!$D$39,INDIRECT(\"a\" & (VLOOKUP(Rebalance!$D$39,$F$2:$G$48,2,FALSE)+ROW()-2)),\"\")","v":{"$error":"#N/A"}},{"$f":"IF(INDIRECT(\"c\" & (VLOOKUP(Rebalance!$D$40,$F$2:$G$48,2,FALSE)+ROW()-2))=Rebalance!$D$40,INDIRECT(\"a\" & (VLOOKUP(Rebalance!$D$40,$F$2:$G$48,2,FALSE)+ROW()-2)),\"\")","v":{"$error":"#N/A"}},{"$f":"IF(INDIRECT(\"c\" & (VLOOKUP(Rebalance!$D$52,$F$2:$G$48,2,FALSE)+ROW()-2))=Rebalance!$D$52,INDIRECT(\"a\" & (VLOOKUP(Rebalance!$D$52,$F$2:$G$48,2,FALSE)+ROW()-2)),\"\")","v":{"$error":"#N/A"}},{"$f":"IF(INDIRECT(\"c\" & (VLOOKUP(Rebalance!$D$53,$F$2:$G$48,2,FALSE)+ROW()-2))=Rebalance!$D$53,INDIRECT(\"a\" & (VLOOKUP(Rebalance!$D$53,$F$2:$G$48,2,FALSE)+ROW()-2)),\"\")","v":{"$error":"#N/A"}},{"$f":"IF(INDIRECT(\"c\" & (VLOOKUP(Rebalance!$D$54,$F$2:$G$48,2,FALSE)+ROW()-2))=Rebalance!$D$54,INDIRECT(\"a\" & (VLOOKUP(Rebalance!$D$54,$F$2:$G$48,2,FALSE)+ROW()-2)),\"\")","v":{"$error":"#N/A"}},{"$f":"IF(INDIRECT(\"c\" & (VLOOKUP(Rebalance!$D$55,$F$2:$G$48,2,FALSE)+ROW()-2))=Rebalance!$D$55,INDIRECT(\"a\" & (VLOOKUP(Rebalance!$D$55,$F$2:$G$48,2,FALSE)+ROW()-2)),\"\")","v":{"$error":"#N/A"}},{"$f":"IF(INDIRECT(\"c\" & (VLOOKUP(Rebalance!$D$56,$F$2:$G$48,2,FALSE)+ROW()-2))=Rebalance!$D$56,INDIRECT(\"a\" & (VLOOKUP(Rebalance!$D$56,$F$2:$G$48,2,FALSE)+ROW()-2)),\"\")","v":{"$error":"#N/A"}},{"$f":"IF(INDIRECT(\"c\" & (VLOOKUP(Rebalance!$D$57,$F$2:$G$48,2,FALSE)+ROW()-2))=Rebalance!$D$57,INDIRECT(\"a\" & (VLOOKUP(Rebalance!$D$57,$F$2:$G$48,2,FALSE)+ROW()-2)),\"\")","v":{"$error":"#N/A"}},{"$f":"IF(INDIRECT(\"c\" & (VLOOKUP(Rebalance!$D$58,$F$2:$G$48,2,FALSE)+ROW()-2))=Rebalance!$D$58,INDIRECT(\"a\" & (VLOOKUP(Rebalance!$D$58,$F$2:$G$48,2,FALSE)+ROW()-2)),\"\")","v":{"$error":"#N/A"}},{"$f":"IF(INDIRECT(\"c\" & (VLOOKUP(Rebalance!$D$59,$F$2:$G$48,2,FALSE)+ROW()-2))=Rebalance!$D$59,INDIRECT(\"a\" & (VLOOKUP(Rebalance!$D$59,$F$2:$G$48,2,FALSE)+ROW()-2)),\"\")","v":{"$error":"#N/A"}},{"$f":"IF(INDIRECT(\"c\" & (VLOOKUP(Rebalance!$D$60,$F$2:$G$48,2,FALSE)+ROW()-2))=Rebalance!$D$60,INDIRECT(\"a\" & (VLOOKUP(Rebalance!$D$60,$F$2:$G$48,2,FALSE)+ROW()-2)),\"\")","v":{"$error":"#N/A"}},{"$f":"IF(INDIRECT(\"c\" & (VLOOKUP(Rebalance!$D$61,$F$2:$G$48,2,FALSE)+ROW()-2))=Rebalance!$D$61,INDIRECT(\"a\" & (VLOOKUP(Rebalance!$D$61,$F$2:$G$48,2,FALSE)+ROW()-2)),\"\")","v":{"$error":"#N/A"}},{"$f":"IF(INDIRECT(\"c\" & (VLOOKUP(Rebalance!$D$62,$F$2:$G$48,2,FALSE)+ROW()-2))=Rebalance!$D$62,INDIRECT(\"a\" & (VLOOKUP(Rebalance!$D$62,$F$2:$G$48,2,FALSE)+ROW()-2)),\"\")","v":{"$error":"#N/A"}},{"$f":"IF(INDIRECT(\"c\" & (VLOOKUP(Rebalance!$D$63,$F$2:$G$48,2,FALSE)+ROW()-2))=Rebalance!$D$63,INDIRECT(\"a\" & (VLOOKUP(Rebalance!$D$63,$F$2:$G$48,2,FALSE)+ROW()-2)),\"\")","v":{"$error":"#N/A"}},{"$f":"IF(INDIRECT(\"c\" & (VLOOKUP(Rebalance!$D$64,$F$2:$G$48,2,FALSE)+ROW()-2))=Rebalance!$D$64,INDIRECT(\"a\" & (VLOOKUP(Rebalance!$D$64,$F$2:$G$48,2,FALSE)+ROW()-2)),\"\")","v":{"$error":"#N/A"}},{"$f":"IF(INDIRECT(\"c\" & (VLOOKUP(Rebalance!$D$65,$F$2:$G$48,2,FALSE)+ROW()-2))=Rebalance!$D$65,INDIRECT(\"a\" & (VLOOKUP(Rebalance!$D$65,$F$2:$G$48,2,FALSE)+ROW()-2)),\"\")","v":{"$error":"#N/A"}},{"$f":"IF(INDIRECT(\"c\" & (VLOOKUP(Rebalance!$D$66,$F$2:$G$48,2,FALSE)+ROW()-2))=Rebalance!$D$66,INDIRECT(\"a\" & (VLOOKUP(Rebalance!$D$66,$F$2:$G$48,2,FALSE)+ROW()-2)),\"\")","v":{"$error":"#N/A"}}]
["BCI Best Blend Specialist Equity Fund E","BBBEC","Boutique Collective Investments (Pty) Ltd",{"$f":"ROW()","v":132},null,null,{"$f":"VLOOKUP(F132,$C$2:$D$599,2,FALSE)","v":{"$error":"#N/A"}},{"$f":"IF(INDIRECT(\"c\" & (VLOOKUP(Rebalance!$D$26,$F$2:$G$48,2,FALSE)+ROW()-2))=Rebalance!$D$26,INDIRECT(\"a\" & (VLOOKUP(Rebalance!$D$26,$F$2:$G$48,2,FALSE)+ROW()-2)),\"\")","v":{"$error":"#N/A"}},{"$f":"IF(INDIRECT(\"c\" & (VLOOKUP(Rebalance!$D$27,$F$2:$G$48,2,FALSE)+ROW()-2))=Rebalance!$D$27,INDIRECT(\"a\" & (VLOOKUP(Rebalance!$D$27,$F$2:$G$48,2,FALSE)+ROW()-2)),\"\")","v":{"$error":"#N/A"}},{"$f":"IF(INDIRECT(\"c\" & (VLOOKUP(Rebalance!$D$28,$F$2:$G$48,2,FALSE)+ROW()-2))=Rebalance!$D$28,INDIRECT(\"a\" & (VLOOKUP(Rebalance!$D$28,$F$2:$G$48,2,FALSE)+ROW()-2)),\"\")","v":{"$error":"#N/A"}},{"$f":"IF(INDIRECT(\"c\" & (VLOOKUP(Rebalance!$D$29,$F$2:$G$48,2,FALSE)+ROW()-2))=Rebalance!$D$29,INDIRECT(\"a\" & (VLOOKUP(Rebalance!$D$29,$F$2:$G$48,2,FALSE)+ROW()-2)),\"\")","v":{"$error":"#N/A"}},{"$f":"IF(INDIRECT(\"c\" & (VLOOKUP(Rebalance!$D$30,$F$2:$G$48,2,FALSE)+ROW()-2))=Rebalance!$D$30,INDIRECT(\"a\" & (VLOOKUP(Rebalance!$D$30,$F$2:$G$48,2,FALSE)+ROW()-2)),\"\")","v":{"$error":"#N/A"}},{"$f":"IF(INDIRECT(\"c\" & (VLOOKUP(Rebalance!$D$31,$F$2:$G$48,2,FALSE)+ROW()-2))=Rebalance!$D$31,INDIRECT(\"a\" & (VLOOKUP(Rebalance!$D$31,$F$2:$G$48,2,FALSE)+ROW()-2)),\"\")","v":{"$error":"#N/A"}},{"$f":"IF(INDIRECT(\"c\" & (VLOOKUP(Rebalance!$D$32,$F$2:$G$48,2,FALSE)+ROW()-2))=Rebalance!$D$32,INDIRECT(\"a\" & (VLOOKUP(Rebalance!$D$32,$F$2:$G$48,2,FALSE)+ROW()-2)),\"\")","v":{"$error":"#N/A"}},{"$f":"IF(INDIRECT(\"c\" & (VLOOKUP(Rebalance!$D$33,$F$2:$G$48,2,FALSE)+ROW()-2))=Rebalance!$D$33,INDIRECT(\"a\" & (VLOOKUP(Rebalance!$D$33,$F$2:$G$48,2,FALSE)+ROW()-2)),\"\")","v":{"$error":"#N/A"}},{"$f":"IF(INDIRECT(\"c\" & (VLOOKUP(Rebalance!$D$34,$F$2:$G$48,2,FALSE)+ROW()-2))=Rebalance!$D$34,INDIRECT(\"a\" & (VLOOKUP(Rebalance!$D$34,$F$2:$G$48,2,FALSE)+ROW()-2)),\"\")","v":{"$error":"#N/A"}},{"$f":"IF(INDIRECT(\"c\" & (VLOOKUP(Rebalance!$D$35,$F$2:$G$48,2,FALSE)+ROW()-2))=Rebalance!$D$35,INDIRECT(\"a\" & (VLOOKUP(Rebalance!$D$35,$F$2:$G$48,2,FALSE)+ROW()-2)),\"\")","v":{"$error":"#N/A"}},{"$f":"IF(INDIRECT(\"c\" & (VLOOKUP(Rebalance!$D$36,$F$2:$G$48,2,FALSE)+ROW()-2))=Rebalance!$D$36,INDIRECT(\"a\" & (VLOOKUP(Rebalance!$D$36,$F$2:$G$48,2,FALSE)+ROW()-2)),\"\")","v":{"$error":"#N/A"}},{"$f":"IF(INDIRECT(\"c\" & (VLOOKUP(Rebalance!$D$37,$F$2:$G$48,2,FALSE)+ROW()-2))=Rebalance!$D$37,INDIRECT(\"a\" & (VLOOKUP(Rebalance!$D$37,$F$2:$G$48,2,FALSE)+ROW()-2)),\"\")","v":{"$error":"#N/A"}},{"$f":"IF(INDIRECT(\"c\" & (VLOOKUP(Rebalance!$D$38,$F$2:$G$48,2,FALSE)+ROW()-2))=Rebalance!$D$38,INDIRECT(\"a\" & (VLOOKUP(Rebalance!$D$38,$F$2:$G$48,2,FALSE)+ROW()-2)),\"\")","v":{"$error":"#N/A"}},{"$f":"IF(INDIRECT(\"c\" & (VLOOKUP(Rebalance!$D$39,$F$2:$G$48,2,FALSE)+ROW()-2))=Rebalance!$D$39,INDIRECT(\"a\" & (VLOOKUP(Rebalance!$D$39,$F$2:$G$48,2,FALSE)+ROW()-2)),\"\")","v":{"$error":"#N/A"}},{"$f":"IF(INDIRECT(\"c\" & (VLOOKUP(Rebalance!$D$40,$F$2:$G$48,2,FALSE)+ROW()-2))=Rebalance!$D$40,INDIRECT(\"a\" & (VLOOKUP(Rebalance!$D$40,$F$2:$G$48,2,FALSE)+ROW()-2)),\"\")","v":{"$error":"#N/A"}},{"$f":"IF(INDIRECT(\"c\" & (VLOOKUP(Rebalance!$D$52,$F$2:$G$48,2,FALSE)+ROW()-2))=Rebalance!$D$52,INDIRECT(\"a\" & (VLOOKUP(Rebalance!$D$52,$F$2:$G$48,2,FALSE)+ROW()-2)),\"\")","v":{"$error":"#N/A"}},{"$f":"IF(INDIRECT(\"c\" & (VLOOKUP(Rebalance!$D$53,$F$2:$G$48,2,FALSE)+ROW()-2))=Rebalance!$D$53,INDIRECT(\"a\" & (VLOOKUP(Rebalance!$D$53,$F$2:$G$48,2,FALSE)+ROW()-2)),\"\")","v":{"$error":"#N/A"}},{"$f":"IF(INDIRECT(\"c\" & (VLOOKUP(Rebalance!$D$54,$F$2:$G$48,2,FALSE)+ROW()-2))=Rebalance!$D$54,INDIRECT(\"a\" & (VLOOKUP(Rebalance!$D$54,$F$2:$G$48,2,FALSE)+ROW()-2)),\"\")","v":{"$error":"#N/A"}},{"$f":"IF(INDIRECT(\"c\" & (VLOOKUP(Rebalance!$D$55,$F$2:$G$48,2,FALSE)+ROW()-2))=Rebalance!$D$55,INDIRECT(\"a\" & (VLOOKUP(Rebalance!$D$55,$F$2:$G$48,2,FALSE)+ROW()-2)),\"\")","v":{"$error":"#N/A"}},{"$f":"IF(INDIRECT(\"c\" & (VLOOKUP(Rebalance!$D$56,$F$2:$G$48,2,FALSE)+ROW()-2))=Rebalance!$D$56,INDIRECT(\"a\" & (VLOOKUP(Rebalance!$D$56,$F$2:$G$48,2,FALSE)+ROW()-2)),\"\")","v":{"$error":"#N/A"}},{"$f":"IF(INDIRECT(\"c\" & (VLOOKUP(Rebalance!$D$57,$F$2:$G$48,2,FALSE)+ROW()-2))=Rebalance!$D$57,INDIRECT(\"a\" & (VLOOKUP(Rebalance!$D$57,$F$2:$G$48,2,FALSE)+ROW()-2)),\"\")","v":{"$error":"#N/A"}},{"$f":"IF(INDIRECT(\"c\" & (VLOOKUP(Rebalance!$D$58,$F$2:$G$48,2,FALSE)+ROW()-2))=Rebalance!$D$58,INDIRECT(\"a\" & (VLOOKUP(Rebalance!$D$58,$F$2:$G$48,2,FALSE)+ROW()-2)),\"\")","v":{"$error":"#N/A"}},{"$f":"IF(INDIRECT(\"c\" & (VLOOKUP(Rebalance!$D$59,$F$2:$G$48,2,FALSE)+ROW()-2))=Rebalance!$D$59,INDIRECT(\"a\" & (VLOOKUP(Rebalance!$D$59,$F$2:$G$48,2,FALSE)+ROW()-2)),\"\")","v":{"$error":"#N/A"}},{"$f":"IF(INDIRECT(\"c\" & (VLOOKUP(Rebalance!$D$60,$F$2:$G$48,2,FALSE)+ROW()-2))=Rebalance!$D$60,INDIRECT(\"a\" & (VLOOKUP(Rebalance!$D$60,$F$2:$G$48,2,FALSE)+ROW()-2)),\"\")","v":{"$error":"#N/A"}},{"$f":"IF(INDIRECT(\"c\" & (VLOOKUP(Rebalance!$D$61,$F$2:$G$48,2,FALSE)+ROW()-2))=Rebalance!$D$61,INDIRECT(\"a\" & (VLOOKUP(Rebalance!$D$61,$F$2:$G$48,2,FALSE)+ROW()-2)),\"\")","v":{"$error":"#N/A"}},{"$f":"IF(INDIRECT(\"c\" & (VLOOKUP(Rebalance!$D$62,$F$2:$G$48,2,FALSE)+ROW()-2))=Rebalance!$D$62,INDIRECT(\"a\" & (VLOOKUP(Rebalance!$D$62,$F$2:$G$48,2,FALSE)+ROW()-2)),\"\")","v":{"$error":"#N/A"}},{"$f":"IF(INDIRECT(\"c\" & (VLOOKUP(Rebalance!$D$63,$F$2:$G$48,2,FALSE)+ROW()-2))=Rebalance!$D$63,INDIRECT(\"a\" & (VLOOKUP(Rebalance!$D$63,$F$2:$G$48,2,FALSE)+ROW()-2)),\"\")","v":{"$error":"#N/A"}},{"$f":"IF(INDIRECT(\"c\" & (VLOOKUP(Rebalance!$D$64,$F$2:$G$48,2,FALSE)+ROW()-2))=Rebalance!$D$64,INDIRECT(\"a\" & (VLOOKUP(Rebalance!$D$64,$F$2:$G$48,2,FALSE)+ROW()-2)),\"\")","v":{"$error":"#N/A"}},{"$f":"IF(INDIRECT(\"c\" & (VLOOKUP(Rebalance!$D$65,$F$2:$G$48,2,FALSE)+ROW()-2))=Rebalance!$D$65,INDIRECT(\"a\" & (VLOOKUP(Rebalance!$D$65,$F$2:$G$48,2,FALSE)+ROW()-2)),\"\")","v":{"$error":"#N/A"}},{"$f":"IF(INDIRECT(\"c\" & (VLOOKUP(Rebalance!$D$66,$F$2:$G$48,2,FALSE)+ROW()-2))=Rebalance!$D$66,INDIRECT(\"a\" & (VLOOKUP(Rebalance!$D$66,$F$2:$G$48,2,FALSE)+ROW()-2)),\"\")","v":{"$error":"#N/A"}}]
["Efficient BCI African Flexible Income Fund A","EWWM","Boutique Collective Investments (Pty) Ltd",{"$f":"ROW()","v":133},null,null,{"$f":"VLOOKUP(F133,$C$2:$D$599,2,FALSE)","v":{"$error":"#N/A"}},{"$f":"IF(INDIRECT(\"c\" & (VLOOKUP(Rebalance!$D$26,$F$2:$G$48,2,FALSE)+ROW()-2))=Rebalance!$D$26,INDIRECT(\"a\" & (VLOOKUP(Rebalance!$D$26,$F$2:$G$48,2,FALSE)+ROW()-2)),\"\")","v":{"$error":"#N/A"}},{"$f":"IF(INDIRECT(\"c\" & (VLOOKUP(Rebalance!$D$27,$F$2:$G$48,2,FALSE)+ROW()-2))=Rebalance!$D$27,INDIRECT(\"a\" & (VLOOKUP(Rebalance!$D$27,$F$2:$G$48,2,FALSE)+ROW()-2)),\"\")","v":{"$error":"#N/A"}},{"$f":"IF(INDIRECT(\"c\" & (VLOOKUP(Rebalance!$D$28,$F$2:$G$48,2,FALSE)+ROW()-2))=Rebalance!$D$28,INDIRECT(\"a\" & (VLOOKUP(Rebalance!$D$28,$F$2:$G$48,2,FALSE)+ROW()-2)),\"\")","v":{"$error":"#N/A"}},{"$f":"IF(INDIRECT(\"c\" & (VLOOKUP(Rebalance!$D$29,$F$2:$G$48,2,FALSE)+ROW()-2))=Rebalance!$D$29,INDIRECT(\"a\" & (VLOOKUP(Rebalance!$D$29,$F$2:$G$48,2,FALSE)+ROW()-2)),\"\")","v":{"$error":"#N/A"}},{"$f":"IF(INDIRECT(\"c\" & (VLOOKUP(Rebalance!$D$30,$F$2:$G$48,2,FALSE)+ROW()-2))=Rebalance!$D$30,INDIRECT(\"a\" & (VLOOKUP(Rebalance!$D$30,$F$2:$G$48,2,FALSE)+ROW()-2)),\"\")","v":{"$error":"#N/A"}},{"$f":"IF(INDIRECT(\"c\" & (VLOOKUP(Rebalance!$D$31,$F$2:$G$48,2,FALSE)+ROW()-2))=Rebalance!$D$31,INDIRECT(\"a\" & (VLOOKUP(Rebalance!$D$31,$F$2:$G$48,2,FALSE)+ROW()-2)),\"\")","v":{"$error":"#N/A"}},{"$f":"IF(INDIRECT(\"c\" & (VLOOKUP(Rebalance!$D$32,$F$2:$G$48,2,FALSE)+ROW()-2))=Rebalance!$D$32,INDIRECT(\"a\" & (VLOOKUP(Rebalance!$D$32,$F$2:$G$48,2,FALSE)+ROW()-2)),\"\")","v":{"$error":"#N/A"}},{"$f":"IF(INDIRECT(\"c\" & (VLOOKUP(Rebalance!$D$33,$F$2:$G$48,2,FALSE)+ROW()-2))=Rebalance!$D$33,INDIRECT(\"a\" & (VLOOKUP(Rebalance!$D$33,$F$2:$G$48,2,FALSE)+ROW()-2)),\"\")","v":{"$error":"#N/A"}},{"$f":"IF(INDIRECT(\"c\" & (VLOOKUP(Rebalance!$D$34,$F$2:$G$48,2,FALSE)+ROW()-2))=Rebalance!$D$34,INDIRECT(\"a\" & (VLOOKUP(Rebalance!$D$34,$F$2:$G$48,2,FALSE)+ROW()-2)),\"\")","v":{"$error":"#N/A"}},{"$f":"IF(INDIRECT(\"c\" & (VLOOKUP(Rebalance!$D$35,$F$2:$G$48,2,FALSE)+ROW()-2))=Rebalance!$D$35,INDIRECT(\"a\" & (VLOOKUP(Rebalance!$D$35,$F$2:$G$48,2,FALSE)+ROW()-2)),\"\")","v":{"$error":"#N/A"}},{"$f":"IF(INDIRECT(\"c\" & (VLOOKUP(Rebalance!$D$36,$F$2:$G$48,2,FALSE)+ROW()-2))=Rebalance!$D$36,INDIRECT(\"a\" & (VLOOKUP(Rebalance!$D$36,$F$2:$G$48,2,FALSE)+ROW()-2)),\"\")","v":{"$error":"#N/A"}},{"$f":"IF(INDIRECT(\"c\" & (VLOOKUP(Rebalance!$D$37,$F$2:$G$48,2,FALSE)+ROW()-2))=Rebalance!$D$37,INDIRECT(\"a\" & (VLOOKUP(Rebalance!$D$37,$F$2:$G$48,2,FALSE)+ROW()-2)),\"\")","v":{"$error":"#N/A"}},{"$f":"IF(INDIRECT(\"c\" & (VLOOKUP(Rebalance!$D$38,$F$2:$G$48,2,FALSE)+ROW()-2))=Rebalance!$D$38,INDIRECT(\"a\" & (VLOOKUP(Rebalance!$D$38,$F$2:$G$48,2,FALSE)+ROW()-2)),\"\")","v":{"$error":"#N/A"}},{"$f":"IF(INDIRECT(\"c\" & (VLOOKUP(Rebalance!$D$39,$F$2:$G$48,2,FALSE)+ROW()-2))=Rebalance!$D$39,INDIRECT(\"a\" & (VLOOKUP(Rebalance!$D$39,$F$2:$G$48,2,FALSE)+ROW()-2)),\"\")","v":{"$error":"#N/A"}},{"$f":"IF(INDIRECT(\"c\" & (VLOOKUP(Rebalance!$D$40,$F$2:$G$48,2,FALSE)+ROW()-2))=Rebalance!$D$40,INDIRECT(\"a\" & (VLOOKUP(Rebalance!$D$40,$F$2:$G$48,2,FALSE)+ROW()-2)),\"\")","v":{"$error":"#N/A"}},{"$f":"IF(INDIRECT(\"c\" & (VLOOKUP(Rebalance!$D$52,$F$2:$G$48,2,FALSE)+ROW()-2))=Rebalance!$D$52,INDIRECT(\"a\" & (VLOOKUP(Rebalance!$D$52,$F$2:$G$48,2,FALSE)+ROW()-2)),\"\")","v":{"$error":"#N/A"}},{"$f":"IF(INDIRECT(\"c\" & (VLOOKUP(Rebalance!$D$53,$F$2:$G$48,2,FALSE)+ROW()-2))=Rebalance!$D$53,INDIRECT(\"a\" & (VLOOKUP(Rebalance!$D$53,$F$2:$G$48,2,FALSE)+ROW()-2)),\"\")","v":{"$error":"#N/A"}},{"$f":"IF(INDIRECT(\"c\" & (VLOOKUP(Rebalance!$D$54,$F$2:$G$48,2,FALSE)+ROW()-2))=Rebalance!$D$54,INDIRECT(\"a\" & (VLOOKUP(Rebalance!$D$54,$F$2:$G$48,2,FALSE)+ROW()-2)),\"\")","v":{"$error":"#N/A"}},{"$f":"IF(INDIRECT(\"c\" & (VLOOKUP(Rebalance!$D$55,$F$2:$G$48,2,FALSE)+ROW()-2))=Rebalance!$D$55,INDIRECT(\"a\" & (VLOOKUP(Rebalance!$D$55,$F$2:$G$48,2,FALSE)+ROW()-2)),\"\")","v":{"$error":"#N/A"}},{"$f":"IF(INDIRECT(\"c\" & (VLOOKUP(Rebalance!$D$56,$F$2:$G$48,2,FALSE)+ROW()-2))=Rebalance!$D$56,INDIRECT(\"a\" & (VLOOKUP(Rebalance!$D$56,$F$2:$G$48,2,FALSE)+ROW()-2)),\"\")","v":{"$error":"#N/A"}},{"$f":"IF(INDIRECT(\"c\" & (VLOOKUP(Rebalance!$D$57,$F$2:$G$48,2,FALSE)+ROW()-2))=Rebalance!$D$57,INDIRECT(\"a\" & (VLOOKUP(Rebalance!$D$57,$F$2:$G$48,2,FALSE)+ROW()-2)),\"\")","v":{"$error":"#N/A"}},{"$f":"IF(INDIRECT(\"c\" & (VLOOKUP(Rebalance!$D$58,$F$2:$G$48,2,FALSE)+ROW()-2))=Rebalance!$D$58,INDIRECT(\"a\" & (VLOOKUP(Rebalance!$D$58,$F$2:$G$48,2,FALSE)+ROW()-2)),\"\")","v":{"$error":"#N/A"}},{"$f":"IF(INDIRECT(\"c\" & (VLOOKUP(Rebalance!$D$59,$F$2:$G$48,2,FALSE)+ROW()-2))=Rebalance!$D$59,INDIRECT(\"a\" & (VLOOKUP(Rebalance!$D$59,$F$2:$G$48,2,FALSE)+ROW()-2)),\"\")","v":{"$error":"#N/A"}},{"$f":"IF(INDIRECT(\"c\" & (VLOOKUP(Rebalance!$D$60,$F$2:$G$48,2,FALSE)+ROW()-2))=Rebalance!$D$60,INDIRECT(\"a\" & (VLOOKUP(Rebalance!$D$60,$F$2:$G$48,2,FALSE)+ROW()-2)),\"\")","v":{"$error":"#N/A"}},{"$f":"IF(INDIRECT(\"c\" & (VLOOKUP(Rebalance!$D$61,$F$2:$G$48,2,FALSE)+ROW()-2))=Rebalance!$D$61,INDIRECT(\"a\" & (VLOOKUP(Rebalance!$D$61,$F$2:$G$48,2,FALSE)+ROW()-2)),\"\")","v":{"$error":"#N/A"}},{"$f":"IF(INDIRECT(\"c\" & (VLOOKUP(Rebalance!$D$62,$F$2:$G$48,2,FALSE)+ROW()-2))=Rebalance!$D$62,INDIRECT(\"a\" & (VLOOKUP(Rebalance!$D$62,$F$2:$G$48,2,FALSE)+ROW()-2)),\"\")","v":{"$error":"#N/A"}},{"$f":"IF(INDIRECT(\"c\" & (VLOOKUP(Rebalance!$D$63,$F$2:$G$48,2,FALSE)+ROW()-2))=Rebalance!$D$63,INDIRECT(\"a\" & (VLOOKUP(Rebalance!$D$63,$F$2:$G$48,2,FALSE)+ROW()-2)),\"\")","v":{"$error":"#N/A"}},{"$f":"IF(INDIRECT(\"c\" & (VLOOKUP(Rebalance!$D$64,$F$2:$G$48,2,FALSE)+ROW()-2))=Rebalance!$D$64,INDIRECT(\"a\" & (VLOOKUP(Rebalance!$D$64,$F$2:$G$48,2,FALSE)+ROW()-2)),\"\")","v":{"$error":"#N/A"}},{"$f":"IF(INDIRECT(\"c\" & (VLOOKUP(Rebalance!$D$65,$F$2:$G$48,2,FALSE)+ROW()-2))=Rebalance!$D$65,INDIRECT(\"a\" & (VLOOKUP(Rebalance!$D$65,$F$2:$G$48,2,FALSE)+ROW()-2)),\"\")","v":{"$error":"#N/A"}},{"$f":"IF(INDIRECT(\"c\" & (VLOOKUP(Rebalance!$D$66,$F$2:$G$48,2,FALSE)+ROW()-2))=Rebalance!$D$66,INDIRECT(\"a\" & (VLOOKUP(Rebalance!$D$66,$F$2:$G$48,2,FALSE)+ROW()-2)),\"\")","v":{"$error":"#N/A"}}]
["Efficient BCI Balanced Fund A","EFFP","Boutique Collective Investments (Pty) Ltd",{"$f":"ROW()","v":134},null,null,{"$f":"VLOOKUP(F134,$C$2:$D$599,2,FALSE)","v":{"$error":"#N/A"}},{"$f":"IF(INDIRECT(\"c\" & (VLOOKUP(Rebalance!$D$26,$F$2:$G$48,2,FALSE)+ROW()-2))=Rebalance!$D$26,INDIRECT(\"a\" & (VLOOKUP(Rebalance!$D$26,$F$2:$G$48,2,FALSE)+ROW()-2)),\"\")","v":{"$error":"#N/A"}},{"$f":"IF(INDIRECT(\"c\" & (VLOOKUP(Rebalance!$D$27,$F$2:$G$48,2,FALSE)+ROW()-2))=Rebalance!$D$27,INDIRECT(\"a\" & (VLOOKUP(Rebalance!$D$27,$F$2:$G$48,2,FALSE)+ROW()-2)),\"\")","v":{"$error":"#N/A"}},{"$f":"IF(INDIRECT(\"c\" & (VLOOKUP(Rebalance!$D$28,$F$2:$G$48,2,FALSE)+ROW()-2))=Rebalance!$D$28,INDIRECT(\"a\" & (VLOOKUP(Rebalance!$D$28,$F$2:$G$48,2,FALSE)+ROW()-2)),\"\")","v":{"$error":"#N/A"}},{"$f":"IF(INDIRECT(\"c\" & (VLOOKUP(Rebalance!$D$29,$F$2:$G$48,2,FALSE)+ROW()-2))=Rebalance!$D$29,INDIRECT(\"a\" & (VLOOKUP(Rebalance!$D$29,$F$2:$G$48,2,FALSE)+ROW()-2)),\"\")","v":{"$error":"#N/A"}},{"$f":"IF(INDIRECT(\"c\" & (VLOOKUP(Rebalance!$D$30,$F$2:$G$48,2,FALSE)+ROW()-2))=Rebalance!$D$30,INDIRECT(\"a\" & (VLOOKUP(Rebalance!$D$30,$F$2:$G$48,2,FALSE)+ROW()-2)),\"\")","v":{"$error":"#N/A"}},{"$f":"IF(INDIRECT(\"c\" & (VLOOKUP(Rebalance!$D$31,$F$2:$G$48,2,FALSE)+ROW()-2))=Rebalance!$D$31,INDIRECT(\"a\" & (VLOOKUP(Rebalance!$D$31,$F$2:$G$48,2,FALSE)+ROW()-2)),\"\")","v":{"$error":"#N/A"}},{"$f":"IF(INDIRECT(\"c\" & (VLOOKUP(Rebalance!$D$32,$F$2:$G$48,2,FALSE)+ROW()-2))=Rebalance!$D$32,INDIRECT(\"a\" & (VLOOKUP(Rebalance!$D$32,$F$2:$G$48,2,FALSE)+ROW()-2)),\"\")","v":{"$error":"#N/A"}},{"$f":"IF(INDIRECT(\"c\" & (VLOOKUP(Rebalance!$D$33,$F$2:$G$48,2,FALSE)+ROW()-2))=Rebalance!$D$33,INDIRECT(\"a\" & (VLOOKUP(Rebalance!$D$33,$F$2:$G$48,2,FALSE)+ROW()-2)),\"\")","v":{"$error":"#N/A"}},{"$f":"IF(INDIRECT(\"c\" & (VLOOKUP(Rebalance!$D$34,$F$2:$G$48,2,FALSE)+ROW()-2))=Rebalance!$D$34,INDIRECT(\"a\" & (VLOOKUP(Rebalance!$D$34,$F$2:$G$48,2,FALSE)+ROW()-2)),\"\")","v":{"$error":"#N/A"}},{"$f":"IF(INDIRECT(\"c\" & (VLOOKUP(Rebalance!$D$35,$F$2:$G$48,2,FALSE)+ROW()-2))=Rebalance!$D$35,INDIRECT(\"a\" & (VLOOKUP(Rebalance!$D$35,$F$2:$G$48,2,FALSE)+ROW()-2)),\"\")","v":{"$error":"#N/A"}},{"$f":"IF(INDIRECT(\"c\" & (VLOOKUP(Rebalance!$D$36,$F$2:$G$48,2,FALSE)+ROW()-2))=Rebalance!$D$36,INDIRECT(\"a\" & (VLOOKUP(Rebalance!$D$36,$F$2:$G$48,2,FALSE)+ROW()-2)),\"\")","v":{"$error":"#N/A"}},{"$f":"IF(INDIRECT(\"c\" & (VLOOKUP(Rebalance!$D$37,$F$2:$G$48,2,FALSE)+ROW()-2))=Rebalance!$D$37,INDIRECT(\"a\" & (VLOOKUP(Rebalance!$D$37,$F$2:$G$48,2,FALSE)+ROW()-2)),\"\")","v":{"$error":"#N/A"}},{"$f":"IF(INDIRECT(\"c\" & (VLOOKUP(Rebalance!$D$38,$F$2:$G$48,2,FALSE)+ROW()-2))=Rebalance!$D$38,INDIRECT(\"a\" & (VLOOKUP(Rebalance!$D$38,$F$2:$G$48,2,FALSE)+ROW()-2)),\"\")","v":{"$error":"#N/A"}},{"$f":"IF(INDIRECT(\"c\" & (VLOOKUP(Rebalance!$D$39,$F$2:$G$48,2,FALSE)+ROW()-2))=Rebalance!$D$39,INDIRECT(\"a\" & (VLOOKUP(Rebalance!$D$39,$F$2:$G$48,2,FALSE)+ROW()-2)),\"\")","v":{"$error":"#N/A"}},{"$f":"IF(INDIRECT(\"c\" & (VLOOKUP(Rebalance!$D$40,$F$2:$G$48,2,FALSE)+ROW()-2))=Rebalance!$D$40,INDIRECT(\"a\" & (VLOOKUP(Rebalance!$D$40,$F$2:$G$48,2,FALSE)+ROW()-2)),\"\")","v":{"$error":"#N/A"}},{"$f":"IF(INDIRECT(\"c\" & (VLOOKUP(Rebalance!$D$52,$F$2:$G$48,2,FALSE)+ROW()-2))=Rebalance!$D$52,INDIRECT(\"a\" & (VLOOKUP(Rebalance!$D$52,$F$2:$G$48,2,FALSE)+ROW()-2)),\"\")","v":{"$error":"#N/A"}},{"$f":"IF(INDIRECT(\"c\" & (VLOOKUP(Rebalance!$D$53,$F$2:$G$48,2,FALSE)+ROW()-2))=Rebalance!$D$53,INDIRECT(\"a\" & (VLOOKUP(Rebalance!$D$53,$F$2:$G$48,2,FALSE)+ROW()-2)),\"\")","v":{"$error":"#N/A"}},{"$f":"IF(INDIRECT(\"c\" & (VLOOKUP(Rebalance!$D$54,$F$2:$G$48,2,FALSE)+ROW()-2))=Rebalance!$D$54,INDIRECT(\"a\" & (VLOOKUP(Rebalance!$D$54,$F$2:$G$48,2,FALSE)+ROW()-2)),\"\")","v":{"$error":"#N/A"}},{"$f":"IF(INDIRECT(\"c\" & (VLOOKUP(Rebalance!$D$55,$F$2:$G$48,2,FALSE)+ROW()-2))=Rebalance!$D$55,INDIRECT(\"a\" & (VLOOKUP(Rebalance!$D$55,$F$2:$G$48,2,FALSE)+ROW()-2)),\"\")","v":{"$error":"#N/A"}},{"$f":"IF(INDIRECT(\"c\" & (VLOOKUP(Rebalance!$D$56,$F$2:$G$48,2,FALSE)+ROW()-2))=Rebalance!$D$56,INDIRECT(\"a\" & (VLOOKUP(Rebalance!$D$56,$F$2:$G$48,2,FALSE)+ROW()-2)),\"\")","v":{"$error":"#N/A"}},{"$f":"IF(INDIRECT(\"c\" & (VLOOKUP(Rebalance!$D$57,$F$2:$G$48,2,FALSE)+ROW()-2))=Rebalance!$D$57,INDIRECT(\"a\" & (VLOOKUP(Rebalance!$D$57,$F$2:$G$48,2,FALSE)+ROW()-2)),\"\")","v":{"$error":"#N/A"}},{"$f":"IF(INDIRECT(\"c\" & (VLOOKUP(Rebalance!$D$58,$F$2:$G$48,2,FALSE)+ROW()-2))=Rebalance!$D$58,INDIRECT(\"a\" & (VLOOKUP(Rebalance!$D$58,$F$2:$G$48,2,FALSE)+ROW()-2)),\"\")","v":{"$error":"#N/A"}},{"$f":"IF(INDIRECT(\"c\" & (VLOOKUP(Rebalance!$D$59,$F$2:$G$48,2,FALSE)+ROW()-2))=Rebalance!$D$59,INDIRECT(\"a\" & (VLOOKUP(Rebalance!$D$59,$F$2:$G$48,2,FALSE)+ROW()-2)),\"\")","v":{"$error":"#N/A"}},{"$f":"IF(INDIRECT(\"c\" & (VLOOKUP(Rebalance!$D$60,$F$2:$G$48,2,FALSE)+ROW()-2))=Rebalance!$D$60,INDIRECT(\"a\" & (VLOOKUP(Rebalance!$D$60,$F$2:$G$48,2,FALSE)+ROW()-2)),\"\")","v":{"$error":"#N/A"}},{"$f":"IF(INDIRECT(\"c\" & (VLOOKUP(Rebalance!$D$61,$F$2:$G$48,2,FALSE)+ROW()-2))=Rebalance!$D$61,INDIRECT(\"a\" & (VLOOKUP(Rebalance!$D$61,$F$2:$G$48,2,FALSE)+ROW()-2)),\"\")","v":{"$error":"#N/A"}},{"$f":"IF(INDIRECT(\"c\" & (VLOOKUP(Rebalance!$D$62,$F$2:$G$48,2,FALSE)+ROW()-2))=Rebalance!$D$62,INDIRECT(\"a\" & (VLOOKUP(Rebalance!$D$62,$F$2:$G$48,2,FALSE)+ROW()-2)),\"\")","v":{"$error":"#N/A"}},{"$f":"IF(INDIRECT(\"c\" & (VLOOKUP(Rebalance!$D$63,$F$2:$G$48,2,FALSE)+ROW()-2))=Rebalance!$D$63,INDIRECT(\"a\" & (VLOOKUP(Rebalance!$D$63,$F$2:$G$48,2,FALSE)+ROW()-2)),\"\")","v":{"$error":"#N/A"}},{"$f":"IF(INDIRECT(\"c\" & (VLOOKUP(Rebalance!$D$64,$F$2:$G$48,2,FALSE)+ROW()-2))=Rebalance!$D$64,INDIRECT(\"a\" & (VLOOKUP(Rebalance!$D$64,$F$2:$G$48,2,FALSE)+ROW()-2)),\"\")","v":{"$error":"#N/A"}},{"$f":"IF(INDIRECT(\"c\" & (VLOOKUP(Rebalance!$D$65,$F$2:$G$48,2,FALSE)+ROW()-2))=Rebalance!$D$65,INDIRECT(\"a\" & (VLOOKUP(Rebalance!$D$65,$F$2:$G$48,2,FALSE)+ROW()-2)),\"\")","v":{"$error":"#N/A"}},{"$f":"IF(INDIRECT(\"c\" & (VLOOKUP(Rebalance!$D$66,$F$2:$G$48,2,FALSE)+ROW()-2))=Rebalance!$D$66,INDIRECT(\"a\" & (VLOOKUP(Rebalance!$D$66,$F$2:$G$48,2,FALSE)+ROW()-2)),\"\")","v":{"$error":"#N/A"}}]
["Efficient BCI Cautious Fund A","EBCC","Boutique Collective Investments (Pty) Ltd",{"$f":"ROW()","v":135},null,null,{"$f":"VLOOKUP(F135,$C$2:$D$599,2,FALSE)","v":{"$error":"#N/A"}},{"$f":"IF(INDIRECT(\"c\" & (VLOOKUP(Rebalance!$D$26,$F$2:$G$48,2,FALSE)+ROW()-2))=Rebalance!$D$26,INDIRECT(\"a\" & (VLOOKUP(Rebalance!$D$26,$F$2:$G$48,2,FALSE)+ROW()-2)),\"\")","v":{"$error":"#N/A"}},{"$f":"IF(INDIRECT(\"c\" & (VLOOKUP(Rebalance!$D$27,$F$2:$G$48,2,FALSE)+ROW()-2))=Rebalance!$D$27,INDIRECT(\"a\" & (VLOOKUP(Rebalance!$D$27,$F$2:$G$48,2,FALSE)+ROW()-2)),\"\")","v":{"$error":"#N/A"}},{"$f":"IF(INDIRECT(\"c\" & (VLOOKUP(Rebalance!$D$28,$F$2:$G$48,2,FALSE)+ROW()-2))=Rebalance!$D$28,INDIRECT(\"a\" & (VLOOKUP(Rebalance!$D$28,$F$2:$G$48,2,FALSE)+ROW()-2)),\"\")","v":{"$error":"#N/A"}},{"$f":"IF(INDIRECT(\"c\" & (VLOOKUP(Rebalance!$D$29,$F$2:$G$48,2,FALSE)+ROW()-2))=Rebalance!$D$29,INDIRECT(\"a\" & (VLOOKUP(Rebalance!$D$29,$F$2:$G$48,2,FALSE)+ROW()-2)),\"\")","v":{"$error":"#N/A"}},{"$f":"IF(INDIRECT(\"c\" & (VLOOKUP(Rebalance!$D$30,$F$2:$G$48,2,FALSE)+ROW()-2))=Rebalance!$D$30,INDIRECT(\"a\" & (VLOOKUP(Rebalance!$D$30,$F$2:$G$48,2,FALSE)+ROW()-2)),\"\")","v":{"$error":"#N/A"}},{"$f":"IF(INDIRECT(\"c\" & (VLOOKUP(Rebalance!$D$31,$F$2:$G$48,2,FALSE)+ROW()-2))=Rebalance!$D$31,INDIRECT(\"a\" & (VLOOKUP(Rebalance!$D$31,$F$2:$G$48,2,FALSE)+ROW()-2)),\"\")","v":{"$error":"#N/A"}},{"$f":"IF(INDIRECT(\"c\" & (VLOOKUP(Rebalance!$D$32,$F$2:$G$48,2,FALSE)+ROW()-2))=Rebalance!$D$32,INDIRECT(\"a\" & (VLOOKUP(Rebalance!$D$32,$F$2:$G$48,2,FALSE)+ROW()-2)),\"\")","v":{"$error":"#N/A"}},{"$f":"IF(INDIRECT(\"c\" & (VLOOKUP(Rebalance!$D$33,$F$2:$G$48,2,FALSE)+ROW()-2))=Rebalance!$D$33,INDIRECT(\"a\" & (VLOOKUP(Rebalance!$D$33,$F$2:$G$48,2,FALSE)+ROW()-2)),\"\")","v":{"$error":"#N/A"}},{"$f":"IF(INDIRECT(\"c\" & (VLOOKUP(Rebalance!$D$34,$F$2:$G$48,2,FALSE)+ROW()-2))=Rebalance!$D$34,INDIRECT(\"a\" & (VLOOKUP(Rebalance!$D$34,$F$2:$G$48,2,FALSE)+ROW()-2)),\"\")","v":{"$error":"#N/A"}},{"$f":"IF(INDIRECT(\"c\" & (VLOOKUP(Rebalance!$D$35,$F$2:$G$48,2,FALSE)+ROW()-2))=Rebalance!$D$35,INDIRECT(\"a\" & (VLOOKUP(Rebalance!$D$35,$F$2:$G$48,2,FALSE)+ROW()-2)),\"\")","v":{"$error":"#N/A"}},{"$f":"IF(INDIRECT(\"c\" & (VLOOKUP(Rebalance!$D$36,$F$2:$G$48,2,FALSE)+ROW()-2))=Rebalance!$D$36,INDIRECT(\"a\" & (VLOOKUP(Rebalance!$D$36,$F$2:$G$48,2,FALSE)+ROW()-2)),\"\")","v":{"$error":"#N/A"}},{"$f":"IF(INDIRECT(\"c\" & (VLOOKUP(Rebalance!$D$37,$F$2:$G$48,2,FALSE)+ROW()-2))=Rebalance!$D$37,INDIRECT(\"a\" & (VLOOKUP(Rebalance!$D$37,$F$2:$G$48,2,FALSE)+ROW()-2)),\"\")","v":{"$error":"#N/A"}},{"$f":"IF(INDIRECT(\"c\" & (VLOOKUP(Rebalance!$D$38,$F$2:$G$48,2,FALSE)+ROW()-2))=Rebalance!$D$38,INDIRECT(\"a\" & (VLOOKUP(Rebalance!$D$38,$F$2:$G$48,2,FALSE)+ROW()-2)),\"\")","v":{"$error":"#N/A"}},{"$f":"IF(INDIRECT(\"c\" & (VLOOKUP(Rebalance!$D$39,$F$2:$G$48,2,FALSE)+ROW()-2))=Rebalance!$D$39,INDIRECT(\"a\" & (VLOOKUP(Rebalance!$D$39,$F$2:$G$48,2,FALSE)+ROW()-2)),\"\")","v":{"$error":"#N/A"}},{"$f":"IF(INDIRECT(\"c\" & (VLOOKUP(Rebalance!$D$40,$F$2:$G$48,2,FALSE)+ROW()-2))=Rebalance!$D$40,INDIRECT(\"a\" & (VLOOKUP(Rebalance!$D$40,$F$2:$G$48,2,FALSE)+ROW()-2)),\"\")","v":{"$error":"#N/A"}},{"$f":"IF(INDIRECT(\"c\" & (VLOOKUP(Rebalance!$D$52,$F$2:$G$48,2,FALSE)+ROW()-2))=Rebalance!$D$52,INDIRECT(\"a\" & (VLOOKUP(Rebalance!$D$52,$F$2:$G$48,2,FALSE)+ROW()-2)),\"\")","v":{"$error":"#N/A"}},{"$f":"IF(INDIRECT(\"c\" & (VLOOKUP(Rebalance!$D$53,$F$2:$G$48,2,FALSE)+ROW()-2))=Rebalance!$D$53,INDIRECT(\"a\" & (VLOOKUP(Rebalance!$D$53,$F$2:$G$48,2,FALSE)+ROW()-2)),\"\")","v":{"$error":"#N/A"}},{"$f":"IF(INDIRECT(\"c\" & (VLOOKUP(Rebalance!$D$54,$F$2:$G$48,2,FALSE)+ROW()-2))=Rebalance!$D$54,INDIRECT(\"a\" & (VLOOKUP(Rebalance!$D$54,$F$2:$G$48,2,FALSE)+ROW()-2)),\"\")","v":{"$error":"#N/A"}},{"$f":"IF(INDIRECT(\"c\" & (VLOOKUP(Rebalance!$D$55,$F$2:$G$48,2,FALSE)+ROW()-2))=Rebalance!$D$55,INDIRECT(\"a\" & (VLOOKUP(Rebalance!$D$55,$F$2:$G$48,2,FALSE)+ROW()-2)),\"\")","v":{"$error":"#N/A"}},{"$f":"IF(INDIRECT(\"c\" & (VLOOKUP(Rebalance!$D$56,$F$2:$G$48,2,FALSE)+ROW()-2))=Rebalance!$D$56,INDIRECT(\"a\" & (VLOOKUP(Rebalance!$D$56,$F$2:$G$48,2,FALSE)+ROW()-2)),\"\")","v":{"$error":"#N/A"}},{"$f":"IF(INDIRECT(\"c\" & (VLOOKUP(Rebalance!$D$57,$F$2:$G$48,2,FALSE)+ROW()-2))=Rebalance!$D$57,INDIRECT(\"a\" & (VLOOKUP(Rebalance!$D$57,$F$2:$G$48,2,FALSE)+ROW()-2)),\"\")","v":{"$error":"#N/A"}},{"$f":"IF(INDIRECT(\"c\" & (VLOOKUP(Rebalance!$D$58,$F$2:$G$48,2,FALSE)+ROW()-2))=Rebalance!$D$58,INDIRECT(\"a\" & (VLOOKUP(Rebalance!$D$58,$F$2:$G$48,2,FALSE)+ROW()-2)),\"\")","v":{"$error":"#N/A"}},{"$f":"IF(INDIRECT(\"c\" & (VLOOKUP(Rebalance!$D$59,$F$2:$G$48,2,FALSE)+ROW()-2))=Rebalance!$D$59,INDIRECT(\"a\" & (VLOOKUP(Rebalance!$D$59,$F$2:$G$48,2,FALSE)+ROW()-2)),\"\")","v":{"$error":"#N/A"}},{"$f":"IF(INDIRECT(\"c\" & (VLOOKUP(Rebalance!$D$60,$F$2:$G$48,2,FALSE)+ROW()-2))=Rebalance!$D$60,INDIRECT(\"a\" & (VLOOKUP(Rebalance!$D$60,$F$2:$G$48,2,FALSE)+ROW()-2)),\"\")","v":{"$error":"#N/A"}},{"$f":"IF(INDIRECT(\"c\" & (VLOOKUP(Rebalance!$D$61,$F$2:$G$48,2,FALSE)+ROW()-2))=Rebalance!$D$61,INDIRECT(\"a\" & (VLOOKUP(Rebalance!$D$61,$F$2:$G$48,2,FALSE)+ROW()-2)),\"\")","v":{"$error":"#N/A"}},{"$f":"IF(INDIRECT(\"c\" & (VLOOKUP(Rebalance!$D$62,$F$2:$G$48,2,FALSE)+ROW()-2))=Rebalance!$D$62,INDIRECT(\"a\" & (VLOOKUP(Rebalance!$D$62,$F$2:$G$48,2,FALSE)+ROW()-2)),\"\")","v":{"$error":"#N/A"}},{"$f":"IF(INDIRECT(\"c\" & (VLOOKUP(Rebalance!$D$63,$F$2:$G$48,2,FALSE)+ROW()-2))=Rebalance!$D$63,INDIRECT(\"a\" & (VLOOKUP(Rebalance!$D$63,$F$2:$G$48,2,FALSE)+ROW()-2)),\"\")","v":{"$error":"#N/A"}},{"$f":"IF(INDIRECT(\"c\" & (VLOOKUP(Rebalance!$D$64,$F$2:$G$48,2,FALSE)+ROW()-2))=Rebalance!$D$64,INDIRECT(\"a\" & (VLOOKUP(Rebalance!$D$64,$F$2:$G$48,2,FALSE)+ROW()-2)),\"\")","v":{"$error":"#N/A"}},{"$f":"IF(INDIRECT(\"c\" & (VLOOKUP(Rebalance!$D$65,$F$2:$G$48,2,FALSE)+ROW()-2))=Rebalance!$D$65,INDIRECT(\"a\" & (VLOOKUP(Rebalance!$D$65,$F$2:$G$48,2,FALSE)+ROW()-2)),\"\")","v":{"$error":"#N/A"}},{"$f":"IF(INDIRECT(\"c\" & (VLOOKUP(Rebalance!$D$66,$F$2:$G$48,2,FALSE)+ROW()-2))=Rebalance!$D$66,INDIRECT(\"a\" & (VLOOKUP(Rebalance!$D$66,$F$2:$G$48,2,FALSE)+ROW()-2)),\"\")","v":{"$error":"#N/A"}}]
["Efficient BCI Equity FoF A","EIPS","Boutique Collective Investments (Pty) Ltd",{"$f":"ROW()","v":136},null,null,{"$f":"VLOOKUP(F136,$C$2:$D$599,2,FALSE)","v":{"$error":"#N/A"}},{"$f":"IF(INDIRECT(\"c\" & (VLOOKUP(Rebalance!$D$26,$F$2:$G$48,2,FALSE)+ROW()-2))=Rebalance!$D$26,INDIRECT(\"a\" & (VLOOKUP(Rebalance!$D$26,$F$2:$G$48,2,FALSE)+ROW()-2)),\"\")","v":{"$error":"#N/A"}},{"$f":"IF(INDIRECT(\"c\" & (VLOOKUP(Rebalance!$D$27,$F$2:$G$48,2,FALSE)+ROW()-2))=Rebalance!$D$27,INDIRECT(\"a\" & (VLOOKUP(Rebalance!$D$27,$F$2:$G$48,2,FALSE)+ROW()-2)),\"\")","v":{"$error":"#N/A"}},{"$f":"IF(INDIRECT(\"c\" & (VLOOKUP(Rebalance!$D$28,$F$2:$G$48,2,FALSE)+ROW()-2))=Rebalance!$D$28,INDIRECT(\"a\" & (VLOOKUP(Rebalance!$D$28,$F$2:$G$48,2,FALSE)+ROW()-2)),\"\")","v":{"$error":"#N/A"}},{"$f":"IF(INDIRECT(\"c\" & (VLOOKUP(Rebalance!$D$29,$F$2:$G$48,2,FALSE)+ROW()-2))=Rebalance!$D$29,INDIRECT(\"a\" & (VLOOKUP(Rebalance!$D$29,$F$2:$G$48,2,FALSE)+ROW()-2)),\"\")","v":{"$error":"#N/A"}},{"$f":"IF(INDIRECT(\"c\" & (VLOOKUP(Rebalance!$D$30,$F$2:$G$48,2,FALSE)+ROW()-2))=Rebalance!$D$30,INDIRECT(\"a\" & (VLOOKUP(Rebalance!$D$30,$F$2:$G$48,2,FALSE)+ROW()-2)),\"\")","v":{"$error":"#N/A"}},{"$f":"IF(INDIRECT(\"c\" & (VLOOKUP(Rebalance!$D$31,$F$2:$G$48,2,FALSE)+ROW()-2))=Rebalance!$D$31,INDIRECT(\"a\" & (VLOOKUP(Rebalance!$D$31,$F$2:$G$48,2,FALSE)+ROW()-2)),\"\")","v":{"$error":"#N/A"}},{"$f":"IF(INDIRECT(\"c\" & (VLOOKUP(Rebalance!$D$32,$F$2:$G$48,2,FALSE)+ROW()-2))=Rebalance!$D$32,INDIRECT(\"a\" & (VLOOKUP(Rebalance!$D$32,$F$2:$G$48,2,FALSE)+ROW()-2)),\"\")","v":{"$error":"#N/A"}},{"$f":"IF(INDIRECT(\"c\" & (VLOOKUP(Rebalance!$D$33,$F$2:$G$48,2,FALSE)+ROW()-2))=Rebalance!$D$33,INDIRECT(\"a\" & (VLOOKUP(Rebalance!$D$33,$F$2:$G$48,2,FALSE)+ROW()-2)),\"\")","v":{"$error":"#N/A"}},{"$f":"IF(INDIRECT(\"c\" & (VLOOKUP(Rebalance!$D$34,$F$2:$G$48,2,FALSE)+ROW()-2))=Rebalance!$D$34,INDIRECT(\"a\" & (VLOOKUP(Rebalance!$D$34,$F$2:$G$48,2,FALSE)+ROW()-2)),\"\")","v":{"$error":"#N/A"}},{"$f":"IF(INDIRECT(\"c\" & (VLOOKUP(Rebalance!$D$35,$F$2:$G$48,2,FALSE)+ROW()-2))=Rebalance!$D$35,INDIRECT(\"a\" & (VLOOKUP(Rebalance!$D$35,$F$2:$G$48,2,FALSE)+ROW()-2)),\"\")","v":{"$error":"#N/A"}},{"$f":"IF(INDIRECT(\"c\" & (VLOOKUP(Rebalance!$D$36,$F$2:$G$48,2,FALSE)+ROW()-2))=Rebalance!$D$36,INDIRECT(\"a\" & (VLOOKUP(Rebalance!$D$36,$F$2:$G$48,2,FALSE)+ROW()-2)),\"\")","v":{"$error":"#N/A"}},{"$f":"IF(INDIRECT(\"c\" & (VLOOKUP(Rebalance!$D$37,$F$2:$G$48,2,FALSE)+ROW()-2))=Rebalance!$D$37,INDIRECT(\"a\" & (VLOOKUP(Rebalance!$D$37,$F$2:$G$48,2,FALSE)+ROW()-2)),\"\")","v":{"$error":"#N/A"}},{"$f":"IF(INDIRECT(\"c\" & (VLOOKUP(Rebalance!$D$38,$F$2:$G$48,2,FALSE)+ROW()-2))=Rebalance!$D$38,INDIRECT(\"a\" & (VLOOKUP(Rebalance!$D$38,$F$2:$G$48,2,FALSE)+ROW()-2)),\"\")","v":{"$error":"#N/A"}},{"$f":"IF(INDIRECT(\"c\" & (VLOOKUP(Rebalance!$D$39,$F$2:$G$48,2,FALSE)+ROW()-2))=Rebalance!$D$39,INDIRECT(\"a\" & (VLOOKUP(Rebalance!$D$39,$F$2:$G$48,2,FALSE)+ROW()-2)),\"\")","v":{"$error":"#N/A"}},{"$f":"IF(INDIRECT(\"c\" & (VLOOKUP(Rebalance!$D$40,$F$2:$G$48,2,FALSE)+ROW()-2))=Rebalance!$D$40,INDIRECT(\"a\" & (VLOOKUP(Rebalance!$D$40,$F$2:$G$48,2,FALSE)+ROW()-2)),\"\")","v":{"$error":"#N/A"}},{"$f":"IF(INDIRECT(\"c\" & (VLOOKUP(Rebalance!$D$52,$F$2:$G$48,2,FALSE)+ROW()-2))=Rebalance!$D$52,INDIRECT(\"a\" & (VLOOKUP(Rebalance!$D$52,$F$2:$G$48,2,FALSE)+ROW()-2)),\"\")","v":{"$error":"#N/A"}},{"$f":"IF(INDIRECT(\"c\" & (VLOOKUP(Rebalance!$D$53,$F$2:$G$48,2,FALSE)+ROW()-2))=Rebalance!$D$53,INDIRECT(\"a\" & (VLOOKUP(Rebalance!$D$53,$F$2:$G$48,2,FALSE)+ROW()-2)),\"\")","v":{"$error":"#N/A"}},{"$f":"IF(INDIRECT(\"c\" & (VLOOKUP(Rebalance!$D$54,$F$2:$G$48,2,FALSE)+ROW()-2))=Rebalance!$D$54,INDIRECT(\"a\" & (VLOOKUP(Rebalance!$D$54,$F$2:$G$48,2,FALSE)+ROW()-2)),\"\")","v":{"$error":"#N/A"}},{"$f":"IF(INDIRECT(\"c\" & (VLOOKUP(Rebalance!$D$55,$F$2:$G$48,2,FALSE)+ROW()-2))=Rebalance!$D$55,INDIRECT(\"a\" & (VLOOKUP(Rebalance!$D$55,$F$2:$G$48,2,FALSE)+ROW()-2)),\"\")","v":{"$error":"#N/A"}},{"$f":"IF(INDIRECT(\"c\" & (VLOOKUP(Rebalance!$D$56,$F$2:$G$48,2,FALSE)+ROW()-2))=Rebalance!$D$56,INDIRECT(\"a\" & (VLOOKUP(Rebalance!$D$56,$F$2:$G$48,2,FALSE)+ROW()-2)),\"\")","v":{"$error":"#N/A"}},{"$f":"IF(INDIRECT(\"c\" & (VLOOKUP(Rebalance!$D$57,$F$2:$G$48,2,FALSE)+ROW()-2))=Rebalance!$D$57,INDIRECT(\"a\" & (VLOOKUP(Rebalance!$D$57,$F$2:$G$48,2,FALSE)+ROW()-2)),\"\")","v":{"$error":"#N/A"}},{"$f":"IF(INDIRECT(\"c\" & (VLOOKUP(Rebalance!$D$58,$F$2:$G$48,2,FALSE)+ROW()-2))=Rebalance!$D$58,INDIRECT(\"a\" & (VLOOKUP(Rebalance!$D$58,$F$2:$G$48,2,FALSE)+ROW()-2)),\"\")","v":{"$error":"#N/A"}},{"$f":"IF(INDIRECT(\"c\" & (VLOOKUP(Rebalance!$D$59,$F$2:$G$48,2,FALSE)+ROW()-2))=Rebalance!$D$59,INDIRECT(\"a\" & (VLOOKUP(Rebalance!$D$59,$F$2:$G$48,2,FALSE)+ROW()-2)),\"\")","v":{"$error":"#N/A"}},{"$f":"IF(INDIRECT(\"c\" & (VLOOKUP(Rebalance!$D$60,$F$2:$G$48,2,FALSE)+ROW()-2))=Rebalance!$D$60,INDIRECT(\"a\" & (VLOOKUP(Rebalance!$D$60,$F$2:$G$48,2,FALSE)+ROW()-2)),\"\")","v":{"$error":"#N/A"}},{"$f":"IF(INDIRECT(\"c\" & (VLOOKUP(Rebalance!$D$61,$F$2:$G$48,2,FALSE)+ROW()-2))=Rebalance!$D$61,INDIRECT(\"a\" & (VLOOKUP(Rebalance!$D$61,$F$2:$G$48,2,FALSE)+ROW()-2)),\"\")","v":{"$error":"#N/A"}},{"$f":"IF(INDIRECT(\"c\" & (VLOOKUP(Rebalance!$D$62,$F$2:$G$48,2,FALSE)+ROW()-2))=Rebalance!$D$62,INDIRECT(\"a\" & (VLOOKUP(Rebalance!$D$62,$F$2:$G$48,2,FALSE)+ROW()-2)),\"\")","v":{"$error":"#N/A"}},{"$f":"IF(INDIRECT(\"c\" & (VLOOKUP(Rebalance!$D$63,$F$2:$G$48,2,FALSE)+ROW()-2))=Rebalance!$D$63,INDIRECT(\"a\" & (VLOOKUP(Rebalance!$D$63,$F$2:$G$48,2,FALSE)+ROW()-2)),\"\")","v":{"$error":"#N/A"}},{"$f":"IF(INDIRECT(\"c\" & (VLOOKUP(Rebalance!$D$64,$F$2:$G$48,2,FALSE)+ROW()-2))=Rebalance!$D$64,INDIRECT(\"a\" & (VLOOKUP(Rebalance!$D$64,$F$2:$G$48,2,FALSE)+ROW()-2)),\"\")","v":{"$error":"#N/A"}},{"$f":"IF(INDIRECT(\"c\" & (VLOOKUP(Rebalance!$D$65,$F$2:$G$48,2,FALSE)+ROW()-2))=Rebalance!$D$65,INDIRECT(\"a\" & (VLOOKUP(Rebalance!$D$65,$F$2:$G$48,2,FALSE)+ROW()-2)),\"\")","v":{"$error":"#N/A"}},{"$f":"IF(INDIRECT(\"c\" & (VLOOKUP(Rebalance!$D$66,$F$2:$G$48,2,FALSE)+ROW()-2))=Rebalance!$D$66,INDIRECT(\"a\" & (VLOOKUP(Rebalance!$D$66,$F$2:$G$48,2,FALSE)+ROW()-2)),\"\")","v":{"$error":"#N/A"}}]
["Efficient BCI Fixed Income Fund A","EFIF","Boutique Collective Investments (Pty) Ltd",{"$f":"ROW()","v":137},null,null,{"$f":"VLOOKUP(F137,$C$2:$D$599,2,FALSE)","v":{"$error":"#N/A"}},{"$f":"IF(INDIRECT(\"c\" & (VLOOKUP(Rebalance!$D$26,$F$2:$G$48,2,FALSE)+ROW()-2))=Rebalance!$D$26,INDIRECT(\"a\" & (VLOOKUP(Rebalance!$D$26,$F$2:$G$48,2,FALSE)+ROW()-2)),\"\")","v":{"$error":"#N/A"}},{"$f":"IF(INDIRECT(\"c\" & (VLOOKUP(Rebalance!$D$27,$F$2:$G$48,2,FALSE)+ROW()-2))=Rebalance!$D$27,INDIRECT(\"a\" & (VLOOKUP(Rebalance!$D$27,$F$2:$G$48,2,FALSE)+ROW()-2)),\"\")","v":{"$error":"#N/A"}},{"$f":"IF(INDIRECT(\"c\" & (VLOOKUP(Rebalance!$D$28,$F$2:$G$48,2,FALSE)+ROW()-2))=Rebalance!$D$28,INDIRECT(\"a\" & (VLOOKUP(Rebalance!$D$28,$F$2:$G$48,2,FALSE)+ROW()-2)),\"\")","v":{"$error":"#N/A"}},{"$f":"IF(INDIRECT(\"c\" & (VLOOKUP(Rebalance!$D$29,$F$2:$G$48,2,FALSE)+ROW()-2))=Rebalance!$D$29,INDIRECT(\"a\" & (VLOOKUP(Rebalance!$D$29,$F$2:$G$48,2,FALSE)+ROW()-2)),\"\")","v":{"$error":"#N/A"}},{"$f":"IF(INDIRECT(\"c\" & (VLOOKUP(Rebalance!$D$30,$F$2:$G$48,2,FALSE)+ROW()-2))=Rebalance!$D$30,INDIRECT(\"a\" & (VLOOKUP(Rebalance!$D$30,$F$2:$G$48,2,FALSE)+ROW()-2)),\"\")","v":{"$error":"#N/A"}},{"$f":"IF(INDIRECT(\"c\" & (VLOOKUP(Rebalance!$D$31,$F$2:$G$48,2,FALSE)+ROW()-2))=Rebalance!$D$31,INDIRECT(\"a\" & (VLOOKUP(Rebalance!$D$31,$F$2:$G$48,2,FALSE)+ROW()-2)),\"\")","v":{"$error":"#N/A"}},{"$f":"IF(INDIRECT(\"c\" & (VLOOKUP(Rebalance!$D$32,$F$2:$G$48,2,FALSE)+ROW()-2))=Rebalance!$D$32,INDIRECT(\"a\" & (VLOOKUP(Rebalance!$D$32,$F$2:$G$48,2,FALSE)+ROW()-2)),\"\")","v":{"$error":"#N/A"}},{"$f":"IF(INDIRECT(\"c\" & (VLOOKUP(Rebalance!$D$33,$F$2:$G$48,2,FALSE)+ROW()-2))=Rebalance!$D$33,INDIRECT(\"a\" & (VLOOKUP(Rebalance!$D$33,$F$2:$G$48,2,FALSE)+ROW()-2)),\"\")","v":{"$error":"#N/A"}},{"$f":"IF(INDIRECT(\"c\" & (VLOOKUP(Rebalance!$D$34,$F$2:$G$48,2,FALSE)+ROW()-2))=Rebalance!$D$34,INDIRECT(\"a\" & (VLOOKUP(Rebalance!$D$34,$F$2:$G$48,2,FALSE)+ROW()-2)),\"\")","v":{"$error":"#N/A"}},{"$f":"IF(INDIRECT(\"c\" & (VLOOKUP(Rebalance!$D$35,$F$2:$G$48,2,FALSE)+ROW()-2))=Rebalance!$D$35,INDIRECT(\"a\" & (VLOOKUP(Rebalance!$D$35,$F$2:$G$48,2,FALSE)+ROW()-2)),\"\")","v":{"$error":"#N/A"}},{"$f":"IF(INDIRECT(\"c\" & (VLOOKUP(Rebalance!$D$36,$F$2:$G$48,2,FALSE)+ROW()-2))=Rebalance!$D$36,INDIRECT(\"a\" & (VLOOKUP(Rebalance!$D$36,$F$2:$G$48,2,FALSE)+ROW()-2)),\"\")","v":{"$error":"#N/A"}},{"$f":"IF(INDIRECT(\"c\" & (VLOOKUP(Rebalance!$D$37,$F$2:$G$48,2,FALSE)+ROW()-2))=Rebalance!$D$37,INDIRECT(\"a\" & (VLOOKUP(Rebalance!$D$37,$F$2:$G$48,2,FALSE)+ROW()-2)),\"\")","v":{"$error":"#N/A"}},{"$f":"IF(INDIRECT(\"c\" & (VLOOKUP(Rebalance!$D$38,$F$2:$G$48,2,FALSE)+ROW()-2))=Rebalance!$D$38,INDIRECT(\"a\" & (VLOOKUP(Rebalance!$D$38,$F$2:$G$48,2,FALSE)+ROW()-2)),\"\")","v":{"$error":"#N/A"}},{"$f":"IF(INDIRECT(\"c\" & (VLOOKUP(Rebalance!$D$39,$F$2:$G$48,2,FALSE)+ROW()-2))=Rebalance!$D$39,INDIRECT(\"a\" & (VLOOKUP(Rebalance!$D$39,$F$2:$G$48,2,FALSE)+ROW()-2)),\"\")","v":{"$error":"#N/A"}},{"$f":"IF(INDIRECT(\"c\" & (VLOOKUP(Rebalance!$D$40,$F$2:$G$48,2,FALSE)+ROW()-2))=Rebalance!$D$40,INDIRECT(\"a\" & (VLOOKUP(Rebalance!$D$40,$F$2:$G$48,2,FALSE)+ROW()-2)),\"\")","v":{"$error":"#N/A"}},{"$f":"IF(INDIRECT(\"c\" & (VLOOKUP(Rebalance!$D$52,$F$2:$G$48,2,FALSE)+ROW()-2))=Rebalance!$D$52,INDIRECT(\"a\" & (VLOOKUP(Rebalance!$D$52,$F$2:$G$48,2,FALSE)+ROW()-2)),\"\")","v":{"$error":"#N/A"}},{"$f":"IF(INDIRECT(\"c\" & (VLOOKUP(Rebalance!$D$53,$F$2:$G$48,2,FALSE)+ROW()-2))=Rebalance!$D$53,INDIRECT(\"a\" & (VLOOKUP(Rebalance!$D$53,$F$2:$G$48,2,FALSE)+ROW()-2)),\"\")","v":{"$error":"#N/A"}},{"$f":"IF(INDIRECT(\"c\" & (VLOOKUP(Rebalance!$D$54,$F$2:$G$48,2,FALSE)+ROW()-2))=Rebalance!$D$54,INDIRECT(\"a\" & (VLOOKUP(Rebalance!$D$54,$F$2:$G$48,2,FALSE)+ROW()-2)),\"\")","v":{"$error":"#N/A"}},{"$f":"IF(INDIRECT(\"c\" & (VLOOKUP(Rebalance!$D$55,$F$2:$G$48,2,FALSE)+ROW()-2))=Rebalance!$D$55,INDIRECT(\"a\" & (VLOOKUP(Rebalance!$D$55,$F$2:$G$48,2,FALSE)+ROW()-2)),\"\")","v":{"$error":"#N/A"}},{"$f":"IF(INDIRECT(\"c\" & (VLOOKUP(Rebalance!$D$56,$F$2:$G$48,2,FALSE)+ROW()-2))=Rebalance!$D$56,INDIRECT(\"a\" & (VLOOKUP(Rebalance!$D$56,$F$2:$G$48,2,FALSE)+ROW()-2)),\"\")","v":{"$error":"#N/A"}},{"$f":"IF(INDIRECT(\"c\" & (VLOOKUP(Rebalance!$D$57,$F$2:$G$48,2,FALSE)+ROW()-2))=Rebalance!$D$57,INDIRECT(\"a\" & (VLOOKUP(Rebalance!$D$57,$F$2:$G$48,2,FALSE)+ROW()-2)),\"\")","v":{"$error":"#N/A"}},{"$f":"IF(INDIRECT(\"c\" & (VLOOKUP(Rebalance!$D$58,$F$2:$G$48,2,FALSE)+ROW()-2))=Rebalance!$D$58,INDIRECT(\"a\" & (VLOOKUP(Rebalance!$D$58,$F$2:$G$48,2,FALSE)+ROW()-2)),\"\")","v":{"$error":"#N/A"}},{"$f":"IF(INDIRECT(\"c\" & (VLOOKUP(Rebalance!$D$59,$F$2:$G$48,2,FALSE)+ROW()-2))=Rebalance!$D$59,INDIRECT(\"a\" & (VLOOKUP(Rebalance!$D$59,$F$2:$G$48,2,FALSE)+ROW()-2)),\"\")","v":{"$error":"#N/A"}},{"$f":"IF(INDIRECT(\"c\" & (VLOOKUP(Rebalance!$D$60,$F$2:$G$48,2,FALSE)+ROW()-2))=Rebalance!$D$60,INDIRECT(\"a\" & (VLOOKUP(Rebalance!$D$60,$F$2:$G$48,2,FALSE)+ROW()-2)),\"\")","v":{"$error":"#N/A"}},{"$f":"IF(INDIRECT(\"c\" & (VLOOKUP(Rebalance!$D$61,$F$2:$G$48,2,FALSE)+ROW()-2))=Rebalance!$D$61,INDIRECT(\"a\" & (VLOOKUP(Rebalance!$D$61,$F$2:$G$48,2,FALSE)+ROW()-2)),\"\")","v":{"$error":"#N/A"}},{"$f":"IF(INDIRECT(\"c\" & (VLOOKUP(Rebalance!$D$62,$F$2:$G$48,2,FALSE)+ROW()-2))=Rebalance!$D$62,INDIRECT(\"a\" & (VLOOKUP(Rebalance!$D$62,$F$2:$G$48,2,FALSE)+ROW()-2)),\"\")","v":{"$error":"#N/A"}},{"$f":"IF(INDIRECT(\"c\" & (VLOOKUP(Rebalance!$D$63,$F$2:$G$48,2,FALSE)+ROW()-2))=Rebalance!$D$63,INDIRECT(\"a\" & (VLOOKUP(Rebalance!$D$63,$F$2:$G$48,2,FALSE)+ROW()-2)),\"\")","v":{"$error":"#N/A"}},{"$f":"IF(INDIRECT(\"c\" & (VLOOKUP(Rebalance!$D$64,$F$2:$G$48,2,FALSE)+ROW()-2))=Rebalance!$D$64,INDIRECT(\"a\" & (VLOOKUP(Rebalance!$D$64,$F$2:$G$48,2,FALSE)+ROW()-2)),\"\")","v":{"$error":"#N/A"}},{"$f":"IF(INDIRECT(\"c\" & (VLOOKUP(Rebalance!$D$65,$F$2:$G$48,2,FALSE)+ROW()-2))=Rebalance!$D$65,INDIRECT(\"a\" & (VLOOKUP(Rebalance!$D$65,$F$2:$G$48,2,FALSE)+ROW()-2)),\"\")","v":{"$error":"#N/A"}},{"$f":"IF(INDIRECT(\"c\" & (VLOOKUP(Rebalance!$D$66,$F$2:$G$48,2,FALSE)+ROW()-2))=Rebalance!$D$66,INDIRECT(\"a\" & (VLOOKUP(Rebalance!$D$66,$F$2:$G$48,2,FALSE)+ROW()-2)),\"\")","v":{"$error":"#N/A"}}]
["Efficient BCI Fixed Income Fund B","EFIF","Boutique Collective Investments (Pty) Ltd",{"$f":"ROW()","v":138},null,null,{"$f":"VLOOKUP(F138,$C$2:$D$599,2,FALSE)","v":{"$error":"#N/A"}},{"$f":"IF(INDIRECT(\"c\" & (VLOOKUP(Rebalance!$D$26,$F$2:$G$48,2,FALSE)+ROW()-2))=Rebalance!$D$26,INDIRECT(\"a\" & (VLOOKUP(Rebalance!$D$26,$F$2:$G$48,2,FALSE)+ROW()-2)),\"\")","v":{"$error":"#N/A"}},{"$f":"IF(INDIRECT(\"c\" & (VLOOKUP(Rebalance!$D$27,$F$2:$G$48,2,FALSE)+ROW()-2))=Rebalance!$D$27,INDIRECT(\"a\" & (VLOOKUP(Rebalance!$D$27,$F$2:$G$48,2,FALSE)+ROW()-2)),\"\")","v":{"$error":"#N/A"}},{"$f":"IF(INDIRECT(\"c\" & (VLOOKUP(Rebalance!$D$28,$F$2:$G$48,2,FALSE)+ROW()-2))=Rebalance!$D$28,INDIRECT(\"a\" & (VLOOKUP(Rebalance!$D$28,$F$2:$G$48,2,FALSE)+ROW()-2)),\"\")","v":{"$error":"#N/A"}},{"$f":"IF(INDIRECT(\"c\" & (VLOOKUP(Rebalance!$D$29,$F$2:$G$48,2,FALSE)+ROW()-2))=Rebalance!$D$29,INDIRECT(\"a\" & (VLOOKUP(Rebalance!$D$29,$F$2:$G$48,2,FALSE)+ROW()-2)),\"\")","v":{"$error":"#N/A"}},{"$f":"IF(INDIRECT(\"c\" & (VLOOKUP(Rebalance!$D$30,$F$2:$G$48,2,FALSE)+ROW()-2))=Rebalance!$D$30,INDIRECT(\"a\" & (VLOOKUP(Rebalance!$D$30,$F$2:$G$48,2,FALSE)+ROW()-2)),\"\")","v":{"$error":"#N/A"}},{"$f":"IF(INDIRECT(\"c\" & (VLOOKUP(Rebalance!$D$31,$F$2:$G$48,2,FALSE)+ROW()-2))=Rebalance!$D$31,INDIRECT(\"a\" & (VLOOKUP(Rebalance!$D$31,$F$2:$G$48,2,FALSE)+ROW()-2)),\"\")","v":{"$error":"#N/A"}},{"$f":"IF(INDIRECT(\"c\" & (VLOOKUP(Rebalance!$D$32,$F$2:$G$48,2,FALSE)+ROW()-2))=Rebalance!$D$32,INDIRECT(\"a\" & (VLOOKUP(Rebalance!$D$32,$F$2:$G$48,2,FALSE)+ROW()-2)),\"\")","v":{"$error":"#N/A"}},{"$f":"IF(INDIRECT(\"c\" & (VLOOKUP(Rebalance!$D$33,$F$2:$G$48,2,FALSE)+ROW()-2))=Rebalance!$D$33,INDIRECT(\"a\" & (VLOOKUP(Rebalance!$D$33,$F$2:$G$48,2,FALSE)+ROW()-2)),\"\")","v":{"$error":"#N/A"}},{"$f":"IF(INDIRECT(\"c\" & (VLOOKUP(Rebalance!$D$34,$F$2:$G$48,2,FALSE)+ROW()-2))=Rebalance!$D$34,INDIRECT(\"a\" & (VLOOKUP(Rebalance!$D$34,$F$2:$G$48,2,FALSE)+ROW()-2)),\"\")","v":{"$error":"#N/A"}},{"$f":"IF(INDIRECT(\"c\" & (VLOOKUP(Rebalance!$D$35,$F$2:$G$48,2,FALSE)+ROW()-2))=Rebalance!$D$35,INDIRECT(\"a\" & (VLOOKUP(Rebalance!$D$35,$F$2:$G$48,2,FALSE)+ROW()-2)),\"\")","v":{"$error":"#N/A"}},{"$f":"IF(INDIRECT(\"c\" & (VLOOKUP(Rebalance!$D$36,$F$2:$G$48,2,FALSE)+ROW()-2))=Rebalance!$D$36,INDIRECT(\"a\" & (VLOOKUP(Rebalance!$D$36,$F$2:$G$48,2,FALSE)+ROW()-2)),\"\")","v":{"$error":"#N/A"}},{"$f":"IF(INDIRECT(\"c\" & (VLOOKUP(Rebalance!$D$37,$F$2:$G$48,2,FALSE)+ROW()-2))=Rebalance!$D$37,INDIRECT(\"a\" & (VLOOKUP(Rebalance!$D$37,$F$2:$G$48,2,FALSE)+ROW()-2)),\"\")","v":{"$error":"#N/A"}},{"$f":"IF(INDIRECT(\"c\" & (VLOOKUP(Rebalance!$D$38,$F$2:$G$48,2,FALSE)+ROW()-2))=Rebalance!$D$38,INDIRECT(\"a\" & (VLOOKUP(Rebalance!$D$38,$F$2:$G$48,2,FALSE)+ROW()-2)),\"\")","v":{"$error":"#N/A"}},{"$f":"IF(INDIRECT(\"c\" & (VLOOKUP(Rebalance!$D$39,$F$2:$G$48,2,FALSE)+ROW()-2))=Rebalance!$D$39,INDIRECT(\"a\" & (VLOOKUP(Rebalance!$D$39,$F$2:$G$48,2,FALSE)+ROW()-2)),\"\")","v":{"$error":"#N/A"}},{"$f":"IF(INDIRECT(\"c\" & (VLOOKUP(Rebalance!$D$40,$F$2:$G$48,2,FALSE)+ROW()-2))=Rebalance!$D$40,INDIRECT(\"a\" & (VLOOKUP(Rebalance!$D$40,$F$2:$G$48,2,FALSE)+ROW()-2)),\"\")","v":{"$error":"#N/A"}},{"$f":"IF(INDIRECT(\"c\" & (VLOOKUP(Rebalance!$D$52,$F$2:$G$48,2,FALSE)+ROW()-2))=Rebalance!$D$52,INDIRECT(\"a\" & (VLOOKUP(Rebalance!$D$52,$F$2:$G$48,2,FALSE)+ROW()-2)),\"\")","v":{"$error":"#N/A"}},{"$f":"IF(INDIRECT(\"c\" & (VLOOKUP(Rebalance!$D$53,$F$2:$G$48,2,FALSE)+ROW()-2))=Rebalance!$D$53,INDIRECT(\"a\" & (VLOOKUP(Rebalance!$D$53,$F$2:$G$48,2,FALSE)+ROW()-2)),\"\")","v":{"$error":"#N/A"}},{"$f":"IF(INDIRECT(\"c\" & (VLOOKUP(Rebalance!$D$54,$F$2:$G$48,2,FALSE)+ROW()-2))=Rebalance!$D$54,INDIRECT(\"a\" & (VLOOKUP(Rebalance!$D$54,$F$2:$G$48,2,FALSE)+ROW()-2)),\"\")","v":{"$error":"#N/A"}},{"$f":"IF(INDIRECT(\"c\" & (VLOOKUP(Rebalance!$D$55,$F$2:$G$48,2,FALSE)+ROW()-2))=Rebalance!$D$55,INDIRECT(\"a\" & (VLOOKUP(Rebalance!$D$55,$F$2:$G$48,2,FALSE)+ROW()-2)),\"\")","v":{"$error":"#N/A"}},{"$f":"IF(INDIRECT(\"c\" & (VLOOKUP(Rebalance!$D$56,$F$2:$G$48,2,FALSE)+ROW()-2))=Rebalance!$D$56,INDIRECT(\"a\" & (VLOOKUP(Rebalance!$D$56,$F$2:$G$48,2,FALSE)+ROW()-2)),\"\")","v":{"$error":"#N/A"}},{"$f":"IF(INDIRECT(\"c\" & (VLOOKUP(Rebalance!$D$57,$F$2:$G$48,2,FALSE)+ROW()-2))=Rebalance!$D$57,INDIRECT(\"a\" & (VLOOKUP(Rebalance!$D$57,$F$2:$G$48,2,FALSE)+ROW()-2)),\"\")","v":{"$error":"#N/A"}},{"$f":"IF(INDIRECT(\"c\" & (VLOOKUP(Rebalance!$D$58,$F$2:$G$48,2,FALSE)+ROW()-2))=Rebalance!$D$58,INDIRECT(\"a\" & (VLOOKUP(Rebalance!$D$58,$F$2:$G$48,2,FALSE)+ROW()-2)),\"\")","v":{"$error":"#N/A"}},{"$f":"IF(INDIRECT(\"c\" & (VLOOKUP(Rebalance!$D$59,$F$2:$G$48,2,FALSE)+ROW()-2))=Rebalance!$D$59,INDIRECT(\"a\" & (VLOOKUP(Rebalance!$D$59,$F$2:$G$48,2,FALSE)+ROW()-2)),\"\")","v":{"$error":"#N/A"}},{"$f":"IF(INDIRECT(\"c\" & (VLOOKUP(Rebalance!$D$60,$F$2:$G$48,2,FALSE)+ROW()-2))=Rebalance!$D$60,INDIRECT(\"a\" & (VLOOKUP(Rebalance!$D$60,$F$2:$G$48,2,FALSE)+ROW()-2)),\"\")","v":{"$error":"#N/A"}},{"$f":"IF(INDIRECT(\"c\" & (VLOOKUP(Rebalance!$D$61,$F$2:$G$48,2,FALSE)+ROW()-2))=Rebalance!$D$61,INDIRECT(\"a\" & (VLOOKUP(Rebalance!$D$61,$F$2:$G$48,2,FALSE)+ROW()-2)),\"\")","v":{"$error":"#N/A"}},{"$f":"IF(INDIRECT(\"c\" & (VLOOKUP(Rebalance!$D$62,$F$2:$G$48,2,FALSE)+ROW()-2))=Rebalance!$D$62,INDIRECT(\"a\" & (VLOOKUP(Rebalance!$D$62,$F$2:$G$48,2,FALSE)+ROW()-2)),\"\")","v":{"$error":"#N/A"}},{"$f":"IF(INDIRECT(\"c\" & (VLOOKUP(Rebalance!$D$63,$F$2:$G$48,2,FALSE)+ROW()-2))=Rebalance!$D$63,INDIRECT(\"a\" & (VLOOKUP(Rebalance!$D$63,$F$2:$G$48,2,FALSE)+ROW()-2)),\"\")","v":{"$error":"#N/A"}},{"$f":"IF(INDIRECT(\"c\" & (VLOOKUP(Rebalance!$D$64,$F$2:$G$48,2,FALSE)+ROW()-2))=Rebalance!$D$64,INDIRECT(\"a\" & (VLOOKUP(Rebalance!$D$64,$F$2:$G$48,2,FALSE)+ROW()-2)),\"\")","v":{"$error":"#N/A"}},{"$f":"IF(INDIRECT(\"c\" & (VLOOKUP(Rebalance!$D$65,$F$2:$G$48,2,FALSE)+ROW()-2))=Rebalance!$D$65,INDIRECT(\"a\" & (VLOOKUP(Rebalance!$D$65,$F$2:$G$48,2,FALSE)+ROW()-2)),\"\")","v":{"$error":"#N/A"}},{"$f":"IF(INDIRECT(\"c\" & (VLOOKUP(Rebalance!$D$66,$F$2:$G$48,2,FALSE)+ROW()-2))=Rebalance!$D$66,INDIRECT(\"a\" & (VLOOKUP(Rebalance!$D$66,$F$2:$G$48,2,FALSE)+ROW()-2)),\"\")","v":{"$error":"#N/A"}}]
["Efficient BCI Flexible FoF A","EFOF","Boutique Collective Investments (Pty) Ltd",{"$f":"ROW()","v":139},null,null,{"$f":"VLOOKUP(F139,$C$2:$D$599,2,FALSE)","v":{"$error":"#N/A"}},{"$f":"IF(INDIRECT(\"c\" & (VLOOKUP(Rebalance!$D$26,$F$2:$G$48,2,FALSE)+ROW()-2))=Rebalance!$D$26,INDIRECT(\"a\" & (VLOOKUP(Rebalance!$D$26,$F$2:$G$48,2,FALSE)+ROW()-2)),\"\")","v":{"$error":"#N/A"}},{"$f":"IF(INDIRECT(\"c\" & (VLOOKUP(Rebalance!$D$27,$F$2:$G$48,2,FALSE)+ROW()-2))=Rebalance!$D$27,INDIRECT(\"a\" & (VLOOKUP(Rebalance!$D$27,$F$2:$G$48,2,FALSE)+ROW()-2)),\"\")","v":{"$error":"#N/A"}},{"$f":"IF(INDIRECT(\"c\" & (VLOOKUP(Rebalance!$D$28,$F$2:$G$48,2,FALSE)+ROW()-2))=Rebalance!$D$28,INDIRECT(\"a\" & (VLOOKUP(Rebalance!$D$28,$F$2:$G$48,2,FALSE)+ROW()-2)),\"\")","v":{"$error":"#N/A"}},{"$f":"IF(INDIRECT(\"c\" & (VLOOKUP(Rebalance!$D$29,$F$2:$G$48,2,FALSE)+ROW()-2))=Rebalance!$D$29,INDIRECT(\"a\" & (VLOOKUP(Rebalance!$D$29,$F$2:$G$48,2,FALSE)+ROW()-2)),\"\")","v":{"$error":"#N/A"}},{"$f":"IF(INDIRECT(\"c\" & (VLOOKUP(Rebalance!$D$30,$F$2:$G$48,2,FALSE)+ROW()-2))=Rebalance!$D$30,INDIRECT(\"a\" & (VLOOKUP(Rebalance!$D$30,$F$2:$G$48,2,FALSE)+ROW()-2)),\"\")","v":{"$error":"#N/A"}},{"$f":"IF(INDIRECT(\"c\" & (VLOOKUP(Rebalance!$D$31,$F$2:$G$48,2,FALSE)+ROW()-2))=Rebalance!$D$31,INDIRECT(\"a\" & (VLOOKUP(Rebalance!$D$31,$F$2:$G$48,2,FALSE)+ROW()-2)),\"\")","v":{"$error":"#N/A"}},{"$f":"IF(INDIRECT(\"c\" & (VLOOKUP(Rebalance!$D$32,$F$2:$G$48,2,FALSE)+ROW()-2))=Rebalance!$D$32,INDIRECT(\"a\" & (VLOOKUP(Rebalance!$D$32,$F$2:$G$48,2,FALSE)+ROW()-2)),\"\")","v":{"$error":"#N/A"}},{"$f":"IF(INDIRECT(\"c\" & (VLOOKUP(Rebalance!$D$33,$F$2:$G$48,2,FALSE)+ROW()-2))=Rebalance!$D$33,INDIRECT(\"a\" & (VLOOKUP(Rebalance!$D$33,$F$2:$G$48,2,FALSE)+ROW()-2)),\"\")","v":{"$error":"#N/A"}},{"$f":"IF(INDIRECT(\"c\" & (VLOOKUP(Rebalance!$D$34,$F$2:$G$48,2,FALSE)+ROW()-2))=Rebalance!$D$34,INDIRECT(\"a\" & (VLOOKUP(Rebalance!$D$34,$F$2:$G$48,2,FALSE)+ROW()-2)),\"\")","v":{"$error":"#N/A"}},{"$f":"IF(INDIRECT(\"c\" & (VLOOKUP(Rebalance!$D$35,$F$2:$G$48,2,FALSE)+ROW()-2))=Rebalance!$D$35,INDIRECT(\"a\" & (VLOOKUP(Rebalance!$D$35,$F$2:$G$48,2,FALSE)+ROW()-2)),\"\")","v":{"$error":"#N/A"}},{"$f":"IF(INDIRECT(\"c\" & (VLOOKUP(Rebalance!$D$36,$F$2:$G$48,2,FALSE)+ROW()-2))=Rebalance!$D$36,INDIRECT(\"a\" & (VLOOKUP(Rebalance!$D$36,$F$2:$G$48,2,FALSE)+ROW()-2)),\"\")","v":{"$error":"#N/A"}},{"$f":"IF(INDIRECT(\"c\" & (VLOOKUP(Rebalance!$D$37,$F$2:$G$48,2,FALSE)+ROW()-2))=Rebalance!$D$37,INDIRECT(\"a\" & (VLOOKUP(Rebalance!$D$37,$F$2:$G$48,2,FALSE)+ROW()-2)),\"\")","v":{"$error":"#N/A"}},{"$f":"IF(INDIRECT(\"c\" & (VLOOKUP(Rebalance!$D$38,$F$2:$G$48,2,FALSE)+ROW()-2))=Rebalance!$D$38,INDIRECT(\"a\" & (VLOOKUP(Rebalance!$D$38,$F$2:$G$48,2,FALSE)+ROW()-2)),\"\")","v":{"$error":"#N/A"}},{"$f":"IF(INDIRECT(\"c\" & (VLOOKUP(Rebalance!$D$39,$F$2:$G$48,2,FALSE)+ROW()-2))=Rebalance!$D$39,INDIRECT(\"a\" & (VLOOKUP(Rebalance!$D$39,$F$2:$G$48,2,FALSE)+ROW()-2)),\"\")","v":{"$error":"#N/A"}},{"$f":"IF(INDIRECT(\"c\" & (VLOOKUP(Rebalance!$D$40,$F$2:$G$48,2,FALSE)+ROW()-2))=Rebalance!$D$40,INDIRECT(\"a\" & (VLOOKUP(Rebalance!$D$40,$F$2:$G$48,2,FALSE)+ROW()-2)),\"\")","v":{"$error":"#N/A"}},{"$f":"IF(INDIRECT(\"c\" & (VLOOKUP(Rebalance!$D$52,$F$2:$G$48,2,FALSE)+ROW()-2))=Rebalance!$D$52,INDIRECT(\"a\" & (VLOOKUP(Rebalance!$D$52,$F$2:$G$48,2,FALSE)+ROW()-2)),\"\")","v":{"$error":"#N/A"}},{"$f":"IF(INDIRECT(\"c\" & (VLOOKUP(Rebalance!$D$53,$F$2:$G$48,2,FALSE)+ROW()-2))=Rebalance!$D$53,INDIRECT(\"a\" & (VLOOKUP(Rebalance!$D$53,$F$2:$G$48,2,FALSE)+ROW()-2)),\"\")","v":{"$error":"#N/A"}},{"$f":"IF(INDIRECT(\"c\" & (VLOOKUP(Rebalance!$D$54,$F$2:$G$48,2,FALSE)+ROW()-2))=Rebalance!$D$54,INDIRECT(\"a\" & (VLOOKUP(Rebalance!$D$54,$F$2:$G$48,2,FALSE)+ROW()-2)),\"\")","v":{"$error":"#N/A"}},{"$f":"IF(INDIRECT(\"c\" & (VLOOKUP(Rebalance!$D$55,$F$2:$G$48,2,FALSE)+ROW()-2))=Rebalance!$D$55,INDIRECT(\"a\" & (VLOOKUP(Rebalance!$D$55,$F$2:$G$48,2,FALSE)+ROW()-2)),\"\")","v":{"$error":"#N/A"}},{"$f":"IF(INDIRECT(\"c\" & (VLOOKUP(Rebalance!$D$56,$F$2:$G$48,2,FALSE)+ROW()-2))=Rebalance!$D$56,INDIRECT(\"a\" & (VLOOKUP(Rebalance!$D$56,$F$2:$G$48,2,FALSE)+ROW()-2)),\"\")","v":{"$error":"#N/A"}},{"$f":"IF(INDIRECT(\"c\" & (VLOOKUP(Rebalance!$D$57,$F$2:$G$48,2,FALSE)+ROW()-2))=Rebalance!$D$57,INDIRECT(\"a\" & (VLOOKUP(Rebalance!$D$57,$F$2:$G$48,2,FALSE)+ROW()-2)),\"\")","v":{"$error":"#N/A"}},{"$f":"IF(INDIRECT(\"c\" & (VLOOKUP(Rebalance!$D$58,$F$2:$G$48,2,FALSE)+ROW()-2))=Rebalance!$D$58,INDIRECT(\"a\" & (VLOOKUP(Rebalance!$D$58,$F$2:$G$48,2,FALSE)+ROW()-2)),\"\")","v":{"$error":"#N/A"}},{"$f":"IF(INDIRECT(\"c\" & (VLOOKUP(Rebalance!$D$59,$F$2:$G$48,2,FALSE)+ROW()-2))=Rebalance!$D$59,INDIRECT(\"a\" & (VLOOKUP(Rebalance!$D$59,$F$2:$G$48,2,FALSE)+ROW()-2)),\"\")","v":{"$error":"#N/A"}},{"$f":"IF(INDIRECT(\"c\" & (VLOOKUP(Rebalance!$D$60,$F$2:$G$48,2,FALSE)+ROW()-2))=Rebalance!$D$60,INDIRECT(\"a\" & (VLOOKUP(Rebalance!$D$60,$F$2:$G$48,2,FALSE)+ROW()-2)),\"\")","v":{"$error":"#N/A"}},{"$f":"IF(INDIRECT(\"c\" & (VLOOKUP(Rebalance!$D$61,$F$2:$G$48,2,FALSE)+ROW()-2))=Rebalance!$D$61,INDIRECT(\"a\" & (VLOOKUP(Rebalance!$D$61,$F$2:$G$48,2,FALSE)+ROW()-2)),\"\")","v":{"$error":"#N/A"}},{"$f":"IF(INDIRECT(\"c\" & (VLOOKUP(Rebalance!$D$62,$F$2:$G$48,2,FALSE)+ROW()-2))=Rebalance!$D$62,INDIRECT(\"a\" & (VLOOKUP(Rebalance!$D$62,$F$2:$G$48,2,FALSE)+ROW()-2)),\"\")","v":{"$error":"#N/A"}},{"$f":"IF(INDIRECT(\"c\" & (VLOOKUP(Rebalance!$D$63,$F$2:$G$48,2,FALSE)+ROW()-2))=Rebalance!$D$63,INDIRECT(\"a\" & (VLOOKUP(Rebalance!$D$63,$F$2:$G$48,2,FALSE)+ROW()-2)),\"\")","v":{"$error":"#N/A"}},{"$f":"IF(INDIRECT(\"c\" & (VLOOKUP(Rebalance!$D$64,$F$2:$G$48,2,FALSE)+ROW()-2))=Rebalance!$D$64,INDIRECT(\"a\" & (VLOOKUP(Rebalance!$D$64,$F$2:$G$48,2,FALSE)+ROW()-2)),\"\")","v":{"$error":"#N/A"}},{"$f":"IF(INDIRECT(\"c\" & (VLOOKUP(Rebalance!$D$65,$F$2:$G$48,2,FALSE)+ROW()-2))=Rebalance!$D$65,INDIRECT(\"a\" & (VLOOKUP(Rebalance!$D$65,$F$2:$G$48,2,FALSE)+ROW()-2)),\"\")","v":{"$error":"#N/A"}},{"$f":"IF(INDIRECT(\"c\" & (VLOOKUP(Rebalance!$D$66,$F$2:$G$48,2,FALSE)+ROW()-2))=Rebalance!$D$66,INDIRECT(\"a\" & (VLOOKUP(Rebalance!$D$66,$F$2:$G$48,2,FALSE)+ROW()-2)),\"\")","v":{"$error":"#N/A"}}]
["Efficient BCI Prudential High FoF A","EIPF","Boutique Collective Investments (Pty) Ltd",{"$f":"ROW()","v":140},null,null,{"$f":"VLOOKUP(F140,$C$2:$D$599,2,FALSE)","v":{"$error":"#N/A"}},{"$f":"IF(INDIRECT(\"c\" & (VLOOKUP(Rebalance!$D$26,$F$2:$G$48,2,FALSE)+ROW()-2))=Rebalance!$D$26,INDIRECT(\"a\" & (VLOOKUP(Rebalance!$D$26,$F$2:$G$48,2,FALSE)+ROW()-2)),\"\")","v":{"$error":"#N/A"}},{"$f":"IF(INDIRECT(\"c\" & (VLOOKUP(Rebalance!$D$27,$F$2:$G$48,2,FALSE)+ROW()-2))=Rebalance!$D$27,INDIRECT(\"a\" & (VLOOKUP(Rebalance!$D$27,$F$2:$G$48,2,FALSE)+ROW()-2)),\"\")","v":{"$error":"#N/A"}},{"$f":"IF(INDIRECT(\"c\" & (VLOOKUP(Rebalance!$D$28,$F$2:$G$48,2,FALSE)+ROW()-2))=Rebalance!$D$28,INDIRECT(\"a\" & (VLOOKUP(Rebalance!$D$28,$F$2:$G$48,2,FALSE)+ROW()-2)),\"\")","v":{"$error":"#N/A"}},{"$f":"IF(INDIRECT(\"c\" & (VLOOKUP(Rebalance!$D$29,$F$2:$G$48,2,FALSE)+ROW()-2))=Rebalance!$D$29,INDIRECT(\"a\" & (VLOOKUP(Rebalance!$D$29,$F$2:$G$48,2,FALSE)+ROW()-2)),\"\")","v":{"$error":"#N/A"}},{"$f":"IF(INDIRECT(\"c\" & (VLOOKUP(Rebalance!$D$30,$F$2:$G$48,2,FALSE)+ROW()-2))=Rebalance!$D$30,INDIRECT(\"a\" & (VLOOKUP(Rebalance!$D$30,$F$2:$G$48,2,FALSE)+ROW()-2)),\"\")","v":{"$error":"#N/A"}},{"$f":"IF(INDIRECT(\"c\" & (VLOOKUP(Rebalance!$D$31,$F$2:$G$48,2,FALSE)+ROW()-2))=Rebalance!$D$31,INDIRECT(\"a\" & (VLOOKUP(Rebalance!$D$31,$F$2:$G$48,2,FALSE)+ROW()-2)),\"\")","v":{"$error":"#N/A"}},{"$f":"IF(INDIRECT(\"c\" & (VLOOKUP(Rebalance!$D$32,$F$2:$G$48,2,FALSE)+ROW()-2))=Rebalance!$D$32,INDIRECT(\"a\" & (VLOOKUP(Rebalance!$D$32,$F$2:$G$48,2,FALSE)+ROW()-2)),\"\")","v":{"$error":"#N/A"}},{"$f":"IF(INDIRECT(\"c\" & (VLOOKUP(Rebalance!$D$33,$F$2:$G$48,2,FALSE)+ROW()-2))=Rebalance!$D$33,INDIRECT(\"a\" & (VLOOKUP(Rebalance!$D$33,$F$2:$G$48,2,FALSE)+ROW()-2)),\"\")","v":{"$error":"#N/A"}},{"$f":"IF(INDIRECT(\"c\" & (VLOOKUP(Rebalance!$D$34,$F$2:$G$48,2,FALSE)+ROW()-2))=Rebalance!$D$34,INDIRECT(\"a\" & (VLOOKUP(Rebalance!$D$34,$F$2:$G$48,2,FALSE)+ROW()-2)),\"\")","v":{"$error":"#N/A"}},{"$f":"IF(INDIRECT(\"c\" & (VLOOKUP(Rebalance!$D$35,$F$2:$G$48,2,FALSE)+ROW()-2))=Rebalance!$D$35,INDIRECT(\"a\" & (VLOOKUP(Rebalance!$D$35,$F$2:$G$48,2,FALSE)+ROW()-2)),\"\")","v":{"$error":"#N/A"}},{"$f":"IF(INDIRECT(\"c\" & (VLOOKUP(Rebalance!$D$36,$F$2:$G$48,2,FALSE)+ROW()-2))=Rebalance!$D$36,INDIRECT(\"a\" & (VLOOKUP(Rebalance!$D$36,$F$2:$G$48,2,FALSE)+ROW()-2)),\"\")","v":{"$error":"#N/A"}},{"$f":"IF(INDIRECT(\"c\" & (VLOOKUP(Rebalance!$D$37,$F$2:$G$48,2,FALSE)+ROW()-2))=Rebalance!$D$37,INDIRECT(\"a\" & (VLOOKUP(Rebalance!$D$37,$F$2:$G$48,2,FALSE)+ROW()-2)),\"\")","v":{"$error":"#N/A"}},{"$f":"IF(INDIRECT(\"c\" & (VLOOKUP(Rebalance!$D$38,$F$2:$G$48,2,FALSE)+ROW()-2))=Rebalance!$D$38,INDIRECT(\"a\" & (VLOOKUP(Rebalance!$D$38,$F$2:$G$48,2,FALSE)+ROW()-2)),\"\")","v":{"$error":"#N/A"}},{"$f":"IF(INDIRECT(\"c\" & (VLOOKUP(Rebalance!$D$39,$F$2:$G$48,2,FALSE)+ROW()-2))=Rebalance!$D$39,INDIRECT(\"a\" & (VLOOKUP(Rebalance!$D$39,$F$2:$G$48,2,FALSE)+ROW()-2)),\"\")","v":{"$error":"#N/A"}},{"$f":"IF(INDIRECT(\"c\" & (VLOOKUP(Rebalance!$D$40,$F$2:$G$48,2,FALSE)+ROW()-2))=Rebalance!$D$40,INDIRECT(\"a\" & (VLOOKUP(Rebalance!$D$40,$F$2:$G$48,2,FALSE)+ROW()-2)),\"\")","v":{"$error":"#N/A"}},{"$f":"IF(INDIRECT(\"c\" & (VLOOKUP(Rebalance!$D$52,$F$2:$G$48,2,FALSE)+ROW()-2))=Rebalance!$D$52,INDIRECT(\"a\" & (VLOOKUP(Rebalance!$D$52,$F$2:$G$48,2,FALSE)+ROW()-2)),\"\")","v":{"$error":"#N/A"}},{"$f":"IF(INDIRECT(\"c\" & (VLOOKUP(Rebalance!$D$53,$F$2:$G$48,2,FALSE)+ROW()-2))=Rebalance!$D$53,INDIRECT(\"a\" & (VLOOKUP(Rebalance!$D$53,$F$2:$G$48,2,FALSE)+ROW()-2)),\"\")","v":{"$error":"#N/A"}},{"$f":"IF(INDIRECT(\"c\" & (VLOOKUP(Rebalance!$D$54,$F$2:$G$48,2,FALSE)+ROW()-2))=Rebalance!$D$54,INDIRECT(\"a\" & (VLOOKUP(Rebalance!$D$54,$F$2:$G$48,2,FALSE)+ROW()-2)),\"\")","v":{"$error":"#N/A"}},{"$f":"IF(INDIRECT(\"c\" & (VLOOKUP(Rebalance!$D$55,$F$2:$G$48,2,FALSE)+ROW()-2))=Rebalance!$D$55,INDIRECT(\"a\" & (VLOOKUP(Rebalance!$D$55,$F$2:$G$48,2,FALSE)+ROW()-2)),\"\")","v":{"$error":"#N/A"}},{"$f":"IF(INDIRECT(\"c\" & (VLOOKUP(Rebalance!$D$56,$F$2:$G$48,2,FALSE)+ROW()-2))=Rebalance!$D$56,INDIRECT(\"a\" & (VLOOKUP(Rebalance!$D$56,$F$2:$G$48,2,FALSE)+ROW()-2)),\"\")","v":{"$error":"#N/A"}},{"$f":"IF(INDIRECT(\"c\" & (VLOOKUP(Rebalance!$D$57,$F$2:$G$48,2,FALSE)+ROW()-2))=Rebalance!$D$57,INDIRECT(\"a\" & (VLOOKUP(Rebalance!$D$57,$F$2:$G$48,2,FALSE)+ROW()-2)),\"\")","v":{"$error":"#N/A"}},{"$f":"IF(INDIRECT(\"c\" & (VLOOKUP(Rebalance!$D$58,$F$2:$G$48,2,FALSE)+ROW()-2))=Rebalance!$D$58,INDIRECT(\"a\" & (VLOOKUP(Rebalance!$D$58,$F$2:$G$48,2,FALSE)+ROW()-2)),\"\")","v":{"$error":"#N/A"}},{"$f":"IF(INDIRECT(\"c\" & (VLOOKUP(Rebalance!$D$59,$F$2:$G$48,2,FALSE)+ROW()-2))=Rebalance!$D$59,INDIRECT(\"a\" & (VLOOKUP(Rebalance!$D$59,$F$2:$G$48,2,FALSE)+ROW()-2)),\"\")","v":{"$error":"#N/A"}},{"$f":"IF(INDIRECT(\"c\" & (VLOOKUP(Rebalance!$D$60,$F$2:$G$48,2,FALSE)+ROW()-2))=Rebalance!$D$60,INDIRECT(\"a\" & (VLOOKUP(Rebalance!$D$60,$F$2:$G$48,2,FALSE)+ROW()-2)),\"\")","v":{"$error":"#N/A"}},{"$f":"IF(INDIRECT(\"c\" & (VLOOKUP(Rebalance!$D$61,$F$2:$G$48,2,FALSE)+ROW()-2))=Rebalance!$D$61,INDIRECT(\"a\" & (VLOOKUP(Rebalance!$D$61,$F$2:$G$48,2,FALSE)+ROW()-2)),\"\")","v":{"$error":"#N/A"}},{"$f":"IF(INDIRECT(\"c\" & (VLOOKUP(Rebalance!$D$62,$F$2:$G$48,2,FALSE)+ROW()-2))=Rebalance!$D$62,INDIRECT(\"a\" & (VLOOKUP(Rebalance!$D$62,$F$2:$G$48,2,FALSE)+ROW()-2)),\"\")","v":{"$error":"#N/A"}},{"$f":"IF(INDIRECT(\"c\" & (VLOOKUP(Rebalance!$D$63,$F$2:$G$48,2,FALSE)+ROW()-2))=Rebalance!$D$63,INDIRECT(\"a\" & (VLOOKUP(Rebalance!$D$63,$F$2:$G$48,2,FALSE)+ROW()-2)),\"\")","v":{"$error":"#N/A"}},{"$f":"IF(INDIRECT(\"c\" & (VLOOKUP(Rebalance!$D$64,$F$2:$G$48,2,FALSE)+ROW()-2))=Rebalance!$D$64,INDIRECT(\"a\" & (VLOOKUP(Rebalance!$D$64,$F$2:$G$48,2,FALSE)+ROW()-2)),\"\")","v":{"$error":"#N/A"}},{"$f":"IF(INDIRECT(\"c\" & (VLOOKUP(Rebalance!$D$65,$F$2:$G$48,2,FALSE)+ROW()-2))=Rebalance!$D$65,INDIRECT(\"a\" & (VLOOKUP(Rebalance!$D$65,$F$2:$G$48,2,FALSE)+ROW()-2)),\"\")","v":{"$error":"#N/A"}},{"$f":"IF(INDIRECT(\"c\" & (VLOOKUP(Rebalance!$D$66,$F$2:$G$48,2,FALSE)+ROW()-2))=Rebalance!$D$66,INDIRECT(\"a\" & (VLOOKUP(Rebalance!$D$66,$F$2:$G$48,2,FALSE)+ROW()-2)),\"\")","v":{"$error":"#N/A"}}]
["Efficient BCI Prudential Low FoF A","EIPT","Boutique Collective Investments (Pty) Ltd",{"$f":"ROW()","v":141},null,null,{"$f":"VLOOKUP(F141,$C$2:$D$599,2,FALSE)","v":{"$error":"#N/A"}},{"$f":"IF(INDIRECT(\"c\" & (VLOOKUP(Rebalance!$D$26,$F$2:$G$48,2,FALSE)+ROW()-2))=Rebalance!$D$26,INDIRECT(\"a\" & (VLOOKUP(Rebalance!$D$26,$F$2:$G$48,2,FALSE)+ROW()-2)),\"\")","v":{"$error":"#N/A"}},{"$f":"IF(INDIRECT(\"c\" & (VLOOKUP(Rebalance!$D$27,$F$2:$G$48,2,FALSE)+ROW()-2))=Rebalance!$D$27,INDIRECT(\"a\" & (VLOOKUP(Rebalance!$D$27,$F$2:$G$48,2,FALSE)+ROW()-2)),\"\")","v":{"$error":"#N/A"}},{"$f":"IF(INDIRECT(\"c\" & (VLOOKUP(Rebalance!$D$28,$F$2:$G$48,2,FALSE)+ROW()-2))=Rebalance!$D$28,INDIRECT(\"a\" & (VLOOKUP(Rebalance!$D$28,$F$2:$G$48,2,FALSE)+ROW()-2)),\"\")","v":{"$error":"#N/A"}},{"$f":"IF(INDIRECT(\"c\" & (VLOOKUP(Rebalance!$D$29,$F$2:$G$48,2,FALSE)+ROW()-2))=Rebalance!$D$29,INDIRECT(\"a\" & (VLOOKUP(Rebalance!$D$29,$F$2:$G$48,2,FALSE)+ROW()-2)),\"\")","v":{"$error":"#N/A"}},{"$f":"IF(INDIRECT(\"c\" & (VLOOKUP(Rebalance!$D$30,$F$2:$G$48,2,FALSE)+ROW()-2))=Rebalance!$D$30,INDIRECT(\"a\" & (VLOOKUP(Rebalance!$D$30,$F$2:$G$48,2,FALSE)+ROW()-2)),\"\")","v":{"$error":"#N/A"}},{"$f":"IF(INDIRECT(\"c\" & (VLOOKUP(Rebalance!$D$31,$F$2:$G$48,2,FALSE)+ROW()-2))=Rebalance!$D$31,INDIRECT(\"a\" & (VLOOKUP(Rebalance!$D$31,$F$2:$G$48,2,FALSE)+ROW()-2)),\"\")","v":{"$error":"#N/A"}},{"$f":"IF(INDIRECT(\"c\" & (VLOOKUP(Rebalance!$D$32,$F$2:$G$48,2,FALSE)+ROW()-2))=Rebalance!$D$32,INDIRECT(\"a\" & (VLOOKUP(Rebalance!$D$32,$F$2:$G$48,2,FALSE)+ROW()-2)),\"\")","v":{"$error":"#N/A"}},{"$f":"IF(INDIRECT(\"c\" & (VLOOKUP(Rebalance!$D$33,$F$2:$G$48,2,FALSE)+ROW()-2))=Rebalance!$D$33,INDIRECT(\"a\" & (VLOOKUP(Rebalance!$D$33,$F$2:$G$48,2,FALSE)+ROW()-2)),\"\")","v":{"$error":"#N/A"}},{"$f":"IF(INDIRECT(\"c\" & (VLOOKUP(Rebalance!$D$34,$F$2:$G$48,2,FALSE)+ROW()-2))=Rebalance!$D$34,INDIRECT(\"a\" & (VLOOKUP(Rebalance!$D$34,$F$2:$G$48,2,FALSE)+ROW()-2)),\"\")","v":{"$error":"#N/A"}},{"$f":"IF(INDIRECT(\"c\" & (VLOOKUP(Rebalance!$D$35,$F$2:$G$48,2,FALSE)+ROW()-2))=Rebalance!$D$35,INDIRECT(\"a\" & (VLOOKUP(Rebalance!$D$35,$F$2:$G$48,2,FALSE)+ROW()-2)),\"\")","v":{"$error":"#N/A"}},{"$f":"IF(INDIRECT(\"c\" & (VLOOKUP(Rebalance!$D$36,$F$2:$G$48,2,FALSE)+ROW()-2))=Rebalance!$D$36,INDIRECT(\"a\" & (VLOOKUP(Rebalance!$D$36,$F$2:$G$48,2,FALSE)+ROW()-2)),\"\")","v":{"$error":"#N/A"}},{"$f":"IF(INDIRECT(\"c\" & (VLOOKUP(Rebalance!$D$37,$F$2:$G$48,2,FALSE)+ROW()-2))=Rebalance!$D$37,INDIRECT(\"a\" & (VLOOKUP(Rebalance!$D$37,$F$2:$G$48,2,FALSE)+ROW()-2)),\"\")","v":{"$error":"#N/A"}},{"$f":"IF(INDIRECT(\"c\" & (VLOOKUP(Rebalance!$D$38,$F$2:$G$48,2,FALSE)+ROW()-2))=Rebalance!$D$38,INDIRECT(\"a\" & (VLOOKUP(Rebalance!$D$38,$F$2:$G$48,2,FALSE)+ROW()-2)),\"\")","v":{"$error":"#N/A"}},{"$f":"IF(INDIRECT(\"c\" & (VLOOKUP(Rebalance!$D$39,$F$2:$G$48,2,FALSE)+ROW()-2))=Rebalance!$D$39,INDIRECT(\"a\" & (VLOOKUP(Rebalance!$D$39,$F$2:$G$48,2,FALSE)+ROW()-2)),\"\")","v":{"$error":"#N/A"}},{"$f":"IF(INDIRECT(\"c\" & (VLOOKUP(Rebalance!$D$40,$F$2:$G$48,2,FALSE)+ROW()-2))=Rebalance!$D$40,INDIRECT(\"a\" & (VLOOKUP(Rebalance!$D$40,$F$2:$G$48,2,FALSE)+ROW()-2)),\"\")","v":{"$error":"#N/A"}},{"$f":"IF(INDIRECT(\"c\" & (VLOOKUP(Rebalance!$D$52,$F$2:$G$48,2,FALSE)+ROW()-2))=Rebalance!$D$52,INDIRECT(\"a\" & (VLOOKUP(Rebalance!$D$52,$F$2:$G$48,2,FALSE)+ROW()-2)),\"\")","v":{"$error":"#N/A"}},{"$f":"IF(INDIRECT(\"c\" & (VLOOKUP(Rebalance!$D$53,$F$2:$G$48,2,FALSE)+ROW()-2))=Rebalance!$D$53,INDIRECT(\"a\" & (VLOOKUP(Rebalance!$D$53,$F$2:$G$48,2,FALSE)+ROW()-2)),\"\")","v":{"$error":"#N/A"}},{"$f":"IF(INDIRECT(\"c\" & (VLOOKUP(Rebalance!$D$54,$F$2:$G$48,2,FALSE)+ROW()-2))=Rebalance!$D$54,INDIRECT(\"a\" & (VLOOKUP(Rebalance!$D$54,$F$2:$G$48,2,FALSE)+ROW()-2)),\"\")","v":{"$error":"#N/A"}},{"$f":"IF(INDIRECT(\"c\" & (VLOOKUP(Rebalance!$D$55,$F$2:$G$48,2,FALSE)+ROW()-2))=Rebalance!$D$55,INDIRECT(\"a\" & (VLOOKUP(Rebalance!$D$55,$F$2:$G$48,2,FALSE)+ROW()-2)),\"\")","v":{"$error":"#N/A"}},{"$f":"IF(INDIRECT(\"c\" & (VLOOKUP(Rebalance!$D$56,$F$2:$G$48,2,FALSE)+ROW()-2))=Rebalance!$D$56,INDIRECT(\"a\" & (VLOOKUP(Rebalance!$D$56,$F$2:$G$48,2,FALSE)+ROW()-2)),\"\")","v":{"$error":"#N/A"}},{"$f":"IF(INDIRECT(\"c\" & (VLOOKUP(Rebalance!$D$57,$F$2:$G$48,2,FALSE)+ROW()-2))=Rebalance!$D$57,INDIRECT(\"a\" & (VLOOKUP(Rebalance!$D$57,$F$2:$G$48,2,FALSE)+ROW()-2)),\"\")","v":{"$error":"#N/A"}},{"$f":"IF(INDIRECT(\"c\" & (VLOOKUP(Rebalance!$D$58,$F$2:$G$48,2,FALSE)+ROW()-2))=Rebalance!$D$58,INDIRECT(\"a\" & (VLOOKUP(Rebalance!$D$58,$F$2:$G$48,2,FALSE)+ROW()-2)),\"\")","v":{"$error":"#N/A"}},{"$f":"IF(INDIRECT(\"c\" & (VLOOKUP(Rebalance!$D$59,$F$2:$G$48,2,FALSE)+ROW()-2))=Rebalance!$D$59,INDIRECT(\"a\" & (VLOOKUP(Rebalance!$D$59,$F$2:$G$48,2,FALSE)+ROW()-2)),\"\")","v":{"$error":"#N/A"}},{"$f":"IF(INDIRECT(\"c\" & (VLOOKUP(Rebalance!$D$60,$F$2:$G$48,2,FALSE)+ROW()-2))=Rebalance!$D$60,INDIRECT(\"a\" & (VLOOKUP(Rebalance!$D$60,$F$2:$G$48,2,FALSE)+ROW()-2)),\"\")","v":{"$error":"#N/A"}},{"$f":"IF(INDIRECT(\"c\" & (VLOOKUP(Rebalance!$D$61,$F$2:$G$48,2,FALSE)+ROW()-2))=Rebalance!$D$61,INDIRECT(\"a\" & (VLOOKUP(Rebalance!$D$61,$F$2:$G$48,2,FALSE)+ROW()-2)),\"\")","v":{"$error":"#N/A"}},{"$f":"IF(INDIRECT(\"c\" & (VLOOKUP(Rebalance!$D$62,$F$2:$G$48,2,FALSE)+ROW()-2))=Rebalance!$D$62,INDIRECT(\"a\" & (VLOOKUP(Rebalance!$D$62,$F$2:$G$48,2,FALSE)+ROW()-2)),\"\")","v":{"$error":"#N/A"}},{"$f":"IF(INDIRECT(\"c\" & (VLOOKUP(Rebalance!$D$63,$F$2:$G$48,2,FALSE)+ROW()-2))=Rebalance!$D$63,INDIRECT(\"a\" & (VLOOKUP(Rebalance!$D$63,$F$2:$G$48,2,FALSE)+ROW()-2)),\"\")","v":{"$error":"#N/A"}},{"$f":"IF(INDIRECT(\"c\" & (VLOOKUP(Rebalance!$D$64,$F$2:$G$48,2,FALSE)+ROW()-2))=Rebalance!$D$64,INDIRECT(\"a\" & (VLOOKUP(Rebalance!$D$64,$F$2:$G$48,2,FALSE)+ROW()-2)),\"\")","v":{"$error":"#N/A"}},{"$f":"IF(INDIRECT(\"c\" & (VLOOKUP(Rebalance!$D$65,$F$2:$G$48,2,FALSE)+ROW()-2))=Rebalance!$D$65,INDIRECT(\"a\" & (VLOOKUP(Rebalance!$D$65,$F$2:$G$48,2,FALSE)+ROW()-2)),\"\")","v":{"$error":"#N/A"}},{"$f":"IF(INDIRECT(\"c\" & (VLOOKUP(Rebalance!$D$66,$F$2:$G$48,2,FALSE)+ROW()-2))=Rebalance!$D$66,INDIRECT(\"a\" & (VLOOKUP(Rebalance!$D$66,$F$2:$G$48,2,FALSE)+ROW()-2)),\"\")","v":{"$error":"#N/A"}}]
["Efficient BCI Prudential Medium FoF C","EPFF","Boutique Collective Investments (Pty) Ltd",{"$f":"ROW()","v":142},null,null,{"$f":"VLOOKUP(F142,$C$2:$D$599,2,FALSE)","v":{"$error":"#N/A"}},{"$f":"IF(INDIRECT(\"c\" & (VLOOKUP(Rebalance!$D$26,$F$2:$G$48,2,FALSE)+ROW()-2))=Rebalance!$D$26,INDIRECT(\"a\" & (VLOOKUP(Rebalance!$D$26,$F$2:$G$48,2,FALSE)+ROW()-2)),\"\")","v":{"$error":"#N/A"}},{"$f":"IF(INDIRECT(\"c\" & (VLOOKUP(Rebalance!$D$27,$F$2:$G$48,2,FALSE)+ROW()-2))=Rebalance!$D$27,INDIRECT(\"a\" & (VLOOKUP(Rebalance!$D$27,$F$2:$G$48,2,FALSE)+ROW()-2)),\"\")","v":{"$error":"#N/A"}},{"$f":"IF(INDIRECT(\"c\" & (VLOOKUP(Rebalance!$D$28,$F$2:$G$48,2,FALSE)+ROW()-2))=Rebalance!$D$28,INDIRECT(\"a\" & (VLOOKUP(Rebalance!$D$28,$F$2:$G$48,2,FALSE)+ROW()-2)),\"\")","v":{"$error":"#N/A"}},{"$f":"IF(INDIRECT(\"c\" & (VLOOKUP(Rebalance!$D$29,$F$2:$G$48,2,FALSE)+ROW()-2))=Rebalance!$D$29,INDIRECT(\"a\" & (VLOOKUP(Rebalance!$D$29,$F$2:$G$48,2,FALSE)+ROW()-2)),\"\")","v":{"$error":"#N/A"}},{"$f":"IF(INDIRECT(\"c\" & (VLOOKUP(Rebalance!$D$30,$F$2:$G$48,2,FALSE)+ROW()-2))=Rebalance!$D$30,INDIRECT(\"a\" & (VLOOKUP(Rebalance!$D$30,$F$2:$G$48,2,FALSE)+ROW()-2)),\"\")","v":{"$error":"#N/A"}},{"$f":"IF(INDIRECT(\"c\" & (VLOOKUP(Rebalance!$D$31,$F$2:$G$48,2,FALSE)+ROW()-2))=Rebalance!$D$31,INDIRECT(\"a\" & (VLOOKUP(Rebalance!$D$31,$F$2:$G$48,2,FALSE)+ROW()-2)),\"\")","v":{"$error":"#N/A"}},{"$f":"IF(INDIRECT(\"c\" & (VLOOKUP(Rebalance!$D$32,$F$2:$G$48,2,FALSE)+ROW()-2))=Rebalance!$D$32,INDIRECT(\"a\" & (VLOOKUP(Rebalance!$D$32,$F$2:$G$48,2,FALSE)+ROW()-2)),\"\")","v":{"$error":"#N/A"}},{"$f":"IF(INDIRECT(\"c\" & (VLOOKUP(Rebalance!$D$33,$F$2:$G$48,2,FALSE)+ROW()-2))=Rebalance!$D$33,INDIRECT(\"a\" & (VLOOKUP(Rebalance!$D$33,$F$2:$G$48,2,FALSE)+ROW()-2)),\"\")","v":{"$error":"#N/A"}},{"$f":"IF(INDIRECT(\"c\" & (VLOOKUP(Rebalance!$D$34,$F$2:$G$48,2,FALSE)+ROW()-2))=Rebalance!$D$34,INDIRECT(\"a\" & (VLOOKUP(Rebalance!$D$34,$F$2:$G$48,2,FALSE)+ROW()-2)),\"\")","v":{"$error":"#N/A"}},{"$f":"IF(INDIRECT(\"c\" & (VLOOKUP(Rebalance!$D$35,$F$2:$G$48,2,FALSE)+ROW()-2))=Rebalance!$D$35,INDIRECT(\"a\" & (VLOOKUP(Rebalance!$D$35,$F$2:$G$48,2,FALSE)+ROW()-2)),\"\")","v":{"$error":"#N/A"}},{"$f":"IF(INDIRECT(\"c\" & (VLOOKUP(Rebalance!$D$36,$F$2:$G$48,2,FALSE)+ROW()-2))=Rebalance!$D$36,INDIRECT(\"a\" & (VLOOKUP(Rebalance!$D$36,$F$2:$G$48,2,FALSE)+ROW()-2)),\"\")","v":{"$error":"#N/A"}},{"$f":"IF(INDIRECT(\"c\" & (VLOOKUP(Rebalance!$D$37,$F$2:$G$48,2,FALSE)+ROW()-2))=Rebalance!$D$37,INDIRECT(\"a\" & (VLOOKUP(Rebalance!$D$37,$F$2:$G$48,2,FALSE)+ROW()-2)),\"\")","v":{"$error":"#N/A"}},{"$f":"IF(INDIRECT(\"c\" & (VLOOKUP(Rebalance!$D$38,$F$2:$G$48,2,FALSE)+ROW()-2))=Rebalance!$D$38,INDIRECT(\"a\" & (VLOOKUP(Rebalance!$D$38,$F$2:$G$48,2,FALSE)+ROW()-2)),\"\")","v":{"$error":"#N/A"}},{"$f":"IF(INDIRECT(\"c\" & (VLOOKUP(Rebalance!$D$39,$F$2:$G$48,2,FALSE)+ROW()-2))=Rebalance!$D$39,INDIRECT(\"a\" & (VLOOKUP(Rebalance!$D$39,$F$2:$G$48,2,FALSE)+ROW()-2)),\"\")","v":{"$error":"#N/A"}},{"$f":"IF(INDIRECT(\"c\" & (VLOOKUP(Rebalance!$D$40,$F$2:$G$48,2,FALSE)+ROW()-2))=Rebalance!$D$40,INDIRECT(\"a\" & (VLOOKUP(Rebalance!$D$40,$F$2:$G$48,2,FALSE)+ROW()-2)),\"\")","v":{"$error":"#N/A"}},{"$f":"IF(INDIRECT(\"c\" & (VLOOKUP(Rebalance!$D$52,$F$2:$G$48,2,FALSE)+ROW()-2))=Rebalance!$D$52,INDIRECT(\"a\" & (VLOOKUP(Rebalance!$D$52,$F$2:$G$48,2,FALSE)+ROW()-2)),\"\")","v":{"$error":"#N/A"}},{"$f":"IF(INDIRECT(\"c\" & (VLOOKUP(Rebalance!$D$53,$F$2:$G$48,2,FALSE)+ROW()-2))=Rebalance!$D$53,INDIRECT(\"a\" & (VLOOKUP(Rebalance!$D$53,$F$2:$G$48,2,FALSE)+ROW()-2)),\"\")","v":{"$error":"#N/A"}},{"$f":"IF(INDIRECT(\"c\" & (VLOOKUP(Rebalance!$D$54,$F$2:$G$48,2,FALSE)+ROW()-2))=Rebalance!$D$54,INDIRECT(\"a\" & (VLOOKUP(Rebalance!$D$54,$F$2:$G$48,2,FALSE)+ROW()-2)),\"\")","v":{"$error":"#N/A"}},{"$f":"IF(INDIRECT(\"c\" & (VLOOKUP(Rebalance!$D$55,$F$2:$G$48,2,FALSE)+ROW()-2))=Rebalance!$D$55,INDIRECT(\"a\" & (VLOOKUP(Rebalance!$D$55,$F$2:$G$48,2,FALSE)+ROW()-2)),\"\")","v":{"$error":"#N/A"}},{"$f":"IF(INDIRECT(\"c\" & (VLOOKUP(Rebalance!$D$56,$F$2:$G$48,2,FALSE)+ROW()-2))=Rebalance!$D$56,INDIRECT(\"a\" & (VLOOKUP(Rebalance!$D$56,$F$2:$G$48,2,FALSE)+ROW()-2)),\"\")","v":{"$error":"#N/A"}},{"$f":"IF(INDIRECT(\"c\" & (VLOOKUP(Rebalance!$D$57,$F$2:$G$48,2,FALSE)+ROW()-2))=Rebalance!$D$57,INDIRECT(\"a\" & (VLOOKUP(Rebalance!$D$57,$F$2:$G$48,2,FALSE)+ROW()-2)),\"\")","v":{"$error":"#N/A"}},{"$f":"IF(INDIRECT(\"c\" & (VLOOKUP(Rebalance!$D$58,$F$2:$G$48,2,FALSE)+ROW()-2))=Rebalance!$D$58,INDIRECT(\"a\" & (VLOOKUP(Rebalance!$D$58,$F$2:$G$48,2,FALSE)+ROW()-2)),\"\")","v":{"$error":"#N/A"}},{"$f":"IF(INDIRECT(\"c\" & (VLOOKUP(Rebalance!$D$59,$F$2:$G$48,2,FALSE)+ROW()-2))=Rebalance!$D$59,INDIRECT(\"a\" & (VLOOKUP(Rebalance!$D$59,$F$2:$G$48,2,FALSE)+ROW()-2)),\"\")","v":{"$error":"#N/A"}},{"$f":"IF(INDIRECT(\"c\" & (VLOOKUP(Rebalance!$D$60,$F$2:$G$48,2,FALSE)+ROW()-2))=Rebalance!$D$60,INDIRECT(\"a\" & (VLOOKUP(Rebalance!$D$60,$F$2:$G$48,2,FALSE)+ROW()-2)),\"\")","v":{"$error":"#N/A"}},{"$f":"IF(INDIRECT(\"c\" & (VLOOKUP(Rebalance!$D$61,$F$2:$G$48,2,FALSE)+ROW()-2))=Rebalance!$D$61,INDIRECT(\"a\" & (VLOOKUP(Rebalance!$D$61,$F$2:$G$48,2,FALSE)+ROW()-2)),\"\")","v":{"$error":"#N/A"}},{"$f":"IF(INDIRECT(\"c\" & (VLOOKUP(Rebalance!$D$62,$F$2:$G$48,2,FALSE)+ROW()-2))=Rebalance!$D$62,INDIRECT(\"a\" & (VLOOKUP(Rebalance!$D$62,$F$2:$G$48,2,FALSE)+ROW()-2)),\"\")","v":{"$error":"#N/A"}},{"$f":"IF(INDIRECT(\"c\" & (VLOOKUP(Rebalance!$D$63,$F$2:$G$48,2,FALSE)+ROW()-2))=Rebalance!$D$63,INDIRECT(\"a\" & (VLOOKUP(Rebalance!$D$63,$F$2:$G$48,2,FALSE)+ROW()-2)),\"\")","v":{"$error":"#N/A"}},{"$f":"IF(INDIRECT(\"c\" & (VLOOKUP(Rebalance!$D$64,$F$2:$G$48,2,FALSE)+ROW()-2))=Rebalance!$D$64,INDIRECT(\"a\" & (VLOOKUP(Rebalance!$D$64,$F$2:$G$48,2,FALSE)+ROW()-2)),\"\")","v":{"$error":"#N/A"}},{"$f":"IF(INDIRECT(\"c\" & (VLOOKUP(Rebalance!$D$65,$F$2:$G$48,2,FALSE)+ROW()-2))=Rebalance!$D$65,INDIRECT(\"a\" & (VLOOKUP(Rebalance!$D$65,$F$2:$G$48,2,FALSE)+ROW()-2)),\"\")","v":{"$error":"#N/A"}},{"$f":"IF(INDIRECT(\"c\" & (VLOOKUP(Rebalance!$D$66,$F$2:$G$48,2,FALSE)+ROW()-2))=Rebalance!$D$66,INDIRECT(\"a\" & (VLOOKUP(Rebalance!$D$66,$F$2:$G$48,2,FALSE)+ROW()-2)),\"\")","v":{"$error":"#N/A"}}]
["Efficient BCI Worldwide Flexible Fund A","VAAF","Boutique Collective Investments (Pty) Ltd",{"$f":"ROW()","v":143},null,null,{"$f":"VLOOKUP(F143,$C$2:$D$599,2,FALSE)","v":{"$error":"#N/A"}},{"$f":"IF(INDIRECT(\"c\" & (VLOOKUP(Rebalance!$D$26,$F$2:$G$48,2,FALSE)+ROW()-2))=Rebalance!$D$26,INDIRECT(\"a\" & (VLOOKUP(Rebalance!$D$26,$F$2:$G$48,2,FALSE)+ROW()-2)),\"\")","v":{"$error":"#N/A"}},{"$f":"IF(INDIRECT(\"c\" & (VLOOKUP(Rebalance!$D$27,$F$2:$G$48,2,FALSE)+ROW()-2))=Rebalance!$D$27,INDIRECT(\"a\" & (VLOOKUP(Rebalance!$D$27,$F$2:$G$48,2,FALSE)+ROW()-2)),\"\")","v":{"$error":"#N/A"}},{"$f":"IF(INDIRECT(\"c\" & (VLOOKUP(Rebalance!$D$28,$F$2:$G$48,2,FALSE)+ROW()-2))=Rebalance!$D$28,INDIRECT(\"a\" & (VLOOKUP(Rebalance!$D$28,$F$2:$G$48,2,FALSE)+ROW()-2)),\"\")","v":{"$error":"#N/A"}},{"$f":"IF(INDIRECT(\"c\" & (VLOOKUP(Rebalance!$D$29,$F$2:$G$48,2,FALSE)+ROW()-2))=Rebalance!$D$29,INDIRECT(\"a\" & (VLOOKUP(Rebalance!$D$29,$F$2:$G$48,2,FALSE)+ROW()-2)),\"\")","v":{"$error":"#N/A"}},{"$f":"IF(INDIRECT(\"c\" & (VLOOKUP(Rebalance!$D$30,$F$2:$G$48,2,FALSE)+ROW()-2))=Rebalance!$D$30,INDIRECT(\"a\" & (VLOOKUP(Rebalance!$D$30,$F$2:$G$48,2,FALSE)+ROW()-2)),\"\")","v":{"$error":"#N/A"}},{"$f":"IF(INDIRECT(\"c\" & (VLOOKUP(Rebalance!$D$31,$F$2:$G$48,2,FALSE)+ROW()-2))=Rebalance!$D$31,INDIRECT(\"a\" & (VLOOKUP(Rebalance!$D$31,$F$2:$G$48,2,FALSE)+ROW()-2)),\"\")","v":{"$error":"#N/A"}},{"$f":"IF(INDIRECT(\"c\" & (VLOOKUP(Rebalance!$D$32,$F$2:$G$48,2,FALSE)+ROW()-2))=Rebalance!$D$32,INDIRECT(\"a\" & (VLOOKUP(Rebalance!$D$32,$F$2:$G$48,2,FALSE)+ROW()-2)),\"\")","v":{"$error":"#N/A"}},{"$f":"IF(INDIRECT(\"c\" & (VLOOKUP(Rebalance!$D$33,$F$2:$G$48,2,FALSE)+ROW()-2))=Rebalance!$D$33,INDIRECT(\"a\" & (VLOOKUP(Rebalance!$D$33,$F$2:$G$48,2,FALSE)+ROW()-2)),\"\")","v":{"$error":"#N/A"}},{"$f":"IF(INDIRECT(\"c\" & (VLOOKUP(Rebalance!$D$34,$F$2:$G$48,2,FALSE)+ROW()-2))=Rebalance!$D$34,INDIRECT(\"a\" & (VLOOKUP(Rebalance!$D$34,$F$2:$G$48,2,FALSE)+ROW()-2)),\"\")","v":{"$error":"#N/A"}},{"$f":"IF(INDIRECT(\"c\" & (VLOOKUP(Rebalance!$D$35,$F$2:$G$48,2,FALSE)+ROW()-2))=Rebalance!$D$35,INDIRECT(\"a\" & (VLOOKUP(Rebalance!$D$35,$F$2:$G$48,2,FALSE)+ROW()-2)),\"\")","v":{"$error":"#N/A"}},{"$f":"IF(INDIRECT(\"c\" & (VLOOKUP(Rebalance!$D$36,$F$2:$G$48,2,FALSE)+ROW()-2))=Rebalance!$D$36,INDIRECT(\"a\" & (VLOOKUP(Rebalance!$D$36,$F$2:$G$48,2,FALSE)+ROW()-2)),\"\")","v":{"$error":"#N/A"}},{"$f":"IF(INDIRECT(\"c\" & (VLOOKUP(Rebalance!$D$37,$F$2:$G$48,2,FALSE)+ROW()-2))=Rebalance!$D$37,INDIRECT(\"a\" & (VLOOKUP(Rebalance!$D$37,$F$2:$G$48,2,FALSE)+ROW()-2)),\"\")","v":{"$error":"#N/A"}},{"$f":"IF(INDIRECT(\"c\" & (VLOOKUP(Rebalance!$D$38,$F$2:$G$48,2,FALSE)+ROW()-2))=Rebalance!$D$38,INDIRECT(\"a\" & (VLOOKUP(Rebalance!$D$38,$F$2:$G$48,2,FALSE)+ROW()-2)),\"\")","v":{"$error":"#N/A"}},{"$f":"IF(INDIRECT(\"c\" & (VLOOKUP(Rebalance!$D$39,$F$2:$G$48,2,FALSE)+ROW()-2))=Rebalance!$D$39,INDIRECT(\"a\" & (VLOOKUP(Rebalance!$D$39,$F$2:$G$48,2,FALSE)+ROW()-2)),\"\")","v":{"$error":"#N/A"}},{"$f":"IF(INDIRECT(\"c\" & (VLOOKUP(Rebalance!$D$40,$F$2:$G$48,2,FALSE)+ROW()-2))=Rebalance!$D$40,INDIRECT(\"a\" & (VLOOKUP(Rebalance!$D$40,$F$2:$G$48,2,FALSE)+ROW()-2)),\"\")","v":{"$error":"#N/A"}},{"$f":"IF(INDIRECT(\"c\" & (VLOOKUP(Rebalance!$D$52,$F$2:$G$48,2,FALSE)+ROW()-2))=Rebalance!$D$52,INDIRECT(\"a\" & (VLOOKUP(Rebalance!$D$52,$F$2:$G$48,2,FALSE)+ROW()-2)),\"\")","v":{"$error":"#N/A"}},{"$f":"IF(INDIRECT(\"c\" & (VLOOKUP(Rebalance!$D$53,$F$2:$G$48,2,FALSE)+ROW()-2))=Rebalance!$D$53,INDIRECT(\"a\" & (VLOOKUP(Rebalance!$D$53,$F$2:$G$48,2,FALSE)+ROW()-2)),\"\")","v":{"$error":"#N/A"}},{"$f":"IF(INDIRECT(\"c\" & (VLOOKUP(Rebalance!$D$54,$F$2:$G$48,2,FALSE)+ROW()-2))=Rebalance!$D$54,INDIRECT(\"a\" & (VLOOKUP(Rebalance!$D$54,$F$2:$G$48,2,FALSE)+ROW()-2)),\"\")","v":{"$error":"#N/A"}},{"$f":"IF(INDIRECT(\"c\" & (VLOOKUP(Rebalance!$D$55,$F$2:$G$48,2,FALSE)+ROW()-2))=Rebalance!$D$55,INDIRECT(\"a\" & (VLOOKUP(Rebalance!$D$55,$F$2:$G$48,2,FALSE)+ROW()-2)),\"\")","v":{"$error":"#N/A"}},{"$f":"IF(INDIRECT(\"c\" & (VLOOKUP(Rebalance!$D$56,$F$2:$G$48,2,FALSE)+ROW()-2))=Rebalance!$D$56,INDIRECT(\"a\" & (VLOOKUP(Rebalance!$D$56,$F$2:$G$48,2,FALSE)+ROW()-2)),\"\")","v":{"$error":"#N/A"}},{"$f":"IF(INDIRECT(\"c\" & (VLOOKUP(Rebalance!$D$57,$F$2:$G$48,2,FALSE)+ROW()-2))=Rebalance!$D$57,INDIRECT(\"a\" & (VLOOKUP(Rebalance!$D$57,$F$2:$G$48,2,FALSE)+ROW()-2)),\"\")","v":{"$error":"#N/A"}},{"$f":"IF(INDIRECT(\"c\" & (VLOOKUP(Rebalance!$D$58,$F$2:$G$48,2,FALSE)+ROW()-2))=Rebalance!$D$58,INDIRECT(\"a\" & (VLOOKUP(Rebalance!$D$58,$F$2:$G$48,2,FALSE)+ROW()-2)),\"\")","v":{"$error":"#N/A"}},{"$f":"IF(INDIRECT(\"c\" & (VLOOKUP(Rebalance!$D$59,$F$2:$G$48,2,FALSE)+ROW()-2))=Rebalance!$D$59,INDIRECT(\"a\" & (VLOOKUP(Rebalance!$D$59,$F$2:$G$48,2,FALSE)+ROW()-2)),\"\")","v":{"$error":"#N/A"}},{"$f":"IF(INDIRECT(\"c\" & (VLOOKUP(Rebalance!$D$60,$F$2:$G$48,2,FALSE)+ROW()-2))=Rebalance!$D$60,INDIRECT(\"a\" & (VLOOKUP(Rebalance!$D$60,$F$2:$G$48,2,FALSE)+ROW()-2)),\"\")","v":{"$error":"#N/A"}},{"$f":"IF(INDIRECT(\"c\" & (VLOOKUP(Rebalance!$D$61,$F$2:$G$48,2,FALSE)+ROW()-2))=Rebalance!$D$61,INDIRECT(\"a\" & (VLOOKUP(Rebalance!$D$61,$F$2:$G$48,2,FALSE)+ROW()-2)),\"\")","v":{"$error":"#N/A"}},{"$f":"IF(INDIRECT(\"c\" & (VLOOKUP(Rebalance!$D$62,$F$2:$G$48,2,FALSE)+ROW()-2))=Rebalance!$D$62,INDIRECT(\"a\" & (VLOOKUP(Rebalance!$D$62,$F$2:$G$48,2,FALSE)+ROW()-2)),\"\")","v":{"$error":"#N/A"}},{"$f":"IF(INDIRECT(\"c\" & (VLOOKUP(Rebalance!$D$63,$F$2:$G$48,2,FALSE)+ROW()-2))=Rebalance!$D$63,INDIRECT(\"a\" & (VLOOKUP(Rebalance!$D$63,$F$2:$G$48,2,FALSE)+ROW()-2)),\"\")","v":{"$error":"#N/A"}},{"$f":"IF(INDIRECT(\"c\" & (VLOOKUP(Rebalance!$D$64,$F$2:$G$48,2,FALSE)+ROW()-2))=Rebalance!$D$64,INDIRECT(\"a\" & (VLOOKUP(Rebalance!$D$64,$F$2:$G$48,2,FALSE)+ROW()-2)),\"\")","v":{"$error":"#N/A"}},{"$f":"IF(INDIRECT(\"c\" & (VLOOKUP(Rebalance!$D$65,$F$2:$G$48,2,FALSE)+ROW()-2))=Rebalance!$D$65,INDIRECT(\"a\" & (VLOOKUP(Rebalance!$D$65,$F$2:$G$48,2,FALSE)+ROW()-2)),\"\")","v":{"$error":"#N/A"}},{"$f":"IF(INDIRECT(\"c\" & (VLOOKUP(Rebalance!$D$66,$F$2:$G$48,2,FALSE)+ROW()-2))=Rebalance!$D$66,INDIRECT(\"a\" & (VLOOKUP(Rebalance!$D$66,$F$2:$G$48,2,FALSE)+ROW()-2)),\"\")","v":{"$error":"#N/A"}}]
["Foster BCI Moderate FoF A","MBMO","Boutique Collective Investments (Pty) Ltd",{"$f":"ROW()","v":144},null,null,{"$f":"VLOOKUP(F144,$C$2:$D$599,2,FALSE)","v":{"$error":"#N/A"}},{"$f":"IF(INDIRECT(\"c\" & (VLOOKUP(Rebalance!$D$26,$F$2:$G$48,2,FALSE)+ROW()-2))=Rebalance!$D$26,INDIRECT(\"a\" & (VLOOKUP(Rebalance!$D$26,$F$2:$G$48,2,FALSE)+ROW()-2)),\"\")","v":{"$error":"#N/A"}},{"$f":"IF(INDIRECT(\"c\" & (VLOOKUP(Rebalance!$D$27,$F$2:$G$48,2,FALSE)+ROW()-2))=Rebalance!$D$27,INDIRECT(\"a\" & (VLOOKUP(Rebalance!$D$27,$F$2:$G$48,2,FALSE)+ROW()-2)),\"\")","v":{"$error":"#N/A"}},{"$f":"IF(INDIRECT(\"c\" & (VLOOKUP(Rebalance!$D$28,$F$2:$G$48,2,FALSE)+ROW()-2))=Rebalance!$D$28,INDIRECT(\"a\" & (VLOOKUP(Rebalance!$D$28,$F$2:$G$48,2,FALSE)+ROW()-2)),\"\")","v":{"$error":"#N/A"}},{"$f":"IF(INDIRECT(\"c\" & (VLOOKUP(Rebalance!$D$29,$F$2:$G$48,2,FALSE)+ROW()-2))=Rebalance!$D$29,INDIRECT(\"a\" & (VLOOKUP(Rebalance!$D$29,$F$2:$G$48,2,FALSE)+ROW()-2)),\"\")","v":{"$error":"#N/A"}},{"$f":"IF(INDIRECT(\"c\" & (VLOOKUP(Rebalance!$D$30,$F$2:$G$48,2,FALSE)+ROW()-2))=Rebalance!$D$30,INDIRECT(\"a\" & (VLOOKUP(Rebalance!$D$30,$F$2:$G$48,2,FALSE)+ROW()-2)),\"\")","v":{"$error":"#N/A"}},{"$f":"IF(INDIRECT(\"c\" & (VLOOKUP(Rebalance!$D$31,$F$2:$G$48,2,FALSE)+ROW()-2))=Rebalance!$D$31,INDIRECT(\"a\" & (VLOOKUP(Rebalance!$D$31,$F$2:$G$48,2,FALSE)+ROW()-2)),\"\")","v":{"$error":"#N/A"}},{"$f":"IF(INDIRECT(\"c\" & (VLOOKUP(Rebalance!$D$32,$F$2:$G$48,2,FALSE)+ROW()-2))=Rebalance!$D$32,INDIRECT(\"a\" & (VLOOKUP(Rebalance!$D$32,$F$2:$G$48,2,FALSE)+ROW()-2)),\"\")","v":{"$error":"#N/A"}},{"$f":"IF(INDIRECT(\"c\" & (VLOOKUP(Rebalance!$D$33,$F$2:$G$48,2,FALSE)+ROW()-2))=Rebalance!$D$33,INDIRECT(\"a\" & (VLOOKUP(Rebalance!$D$33,$F$2:$G$48,2,FALSE)+ROW()-2)),\"\")","v":{"$error":"#N/A"}},{"$f":"IF(INDIRECT(\"c\" & (VLOOKUP(Rebalance!$D$34,$F$2:$G$48,2,FALSE)+ROW()-2))=Rebalance!$D$34,INDIRECT(\"a\" & (VLOOKUP(Rebalance!$D$34,$F$2:$G$48,2,FALSE)+ROW()-2)),\"\")","v":{"$error":"#N/A"}},{"$f":"IF(INDIRECT(\"c\" & (VLOOKUP(Rebalance!$D$35,$F$2:$G$48,2,FALSE)+ROW()-2))=Rebalance!$D$35,INDIRECT(\"a\" & (VLOOKUP(Rebalance!$D$35,$F$2:$G$48,2,FALSE)+ROW()-2)),\"\")","v":{"$error":"#N/A"}},{"$f":"IF(INDIRECT(\"c\" & (VLOOKUP(Rebalance!$D$36,$F$2:$G$48,2,FALSE)+ROW()-2))=Rebalance!$D$36,INDIRECT(\"a\" & (VLOOKUP(Rebalance!$D$36,$F$2:$G$48,2,FALSE)+ROW()-2)),\"\")","v":{"$error":"#N/A"}},{"$f":"IF(INDIRECT(\"c\" & (VLOOKUP(Rebalance!$D$37,$F$2:$G$48,2,FALSE)+ROW()-2))=Rebalance!$D$37,INDIRECT(\"a\" & (VLOOKUP(Rebalance!$D$37,$F$2:$G$48,2,FALSE)+ROW()-2)),\"\")","v":{"$error":"#N/A"}},{"$f":"IF(INDIRECT(\"c\" & (VLOOKUP(Rebalance!$D$38,$F$2:$G$48,2,FALSE)+ROW()-2))=Rebalance!$D$38,INDIRECT(\"a\" & (VLOOKUP(Rebalance!$D$38,$F$2:$G$48,2,FALSE)+ROW()-2)),\"\")","v":{"$error":"#N/A"}},{"$f":"IF(INDIRECT(\"c\" & (VLOOKUP(Rebalance!$D$39,$F$2:$G$48,2,FALSE)+ROW()-2))=Rebalance!$D$39,INDIRECT(\"a\" & (VLOOKUP(Rebalance!$D$39,$F$2:$G$48,2,FALSE)+ROW()-2)),\"\")","v":{"$error":"#N/A"}},{"$f":"IF(INDIRECT(\"c\" & (VLOOKUP(Rebalance!$D$40,$F$2:$G$48,2,FALSE)+ROW()-2))=Rebalance!$D$40,INDIRECT(\"a\" & (VLOOKUP(Rebalance!$D$40,$F$2:$G$48,2,FALSE)+ROW()-2)),\"\")","v":{"$error":"#N/A"}},{"$f":"IF(INDIRECT(\"c\" & (VLOOKUP(Rebalance!$D$52,$F$2:$G$48,2,FALSE)+ROW()-2))=Rebalance!$D$52,INDIRECT(\"a\" & (VLOOKUP(Rebalance!$D$52,$F$2:$G$48,2,FALSE)+ROW()-2)),\"\")","v":{"$error":"#N/A"}},{"$f":"IF(INDIRECT(\"c\" & (VLOOKUP(Rebalance!$D$53,$F$2:$G$48,2,FALSE)+ROW()-2))=Rebalance!$D$53,INDIRECT(\"a\" & (VLOOKUP(Rebalance!$D$53,$F$2:$G$48,2,FALSE)+ROW()-2)),\"\")","v":{"$error":"#N/A"}},{"$f":"IF(INDIRECT(\"c\" & (VLOOKUP(Rebalance!$D$54,$F$2:$G$48,2,FALSE)+ROW()-2))=Rebalance!$D$54,INDIRECT(\"a\" & (VLOOKUP(Rebalance!$D$54,$F$2:$G$48,2,FALSE)+ROW()-2)),\"\")","v":{"$error":"#N/A"}},{"$f":"IF(INDIRECT(\"c\" & (VLOOKUP(Rebalance!$D$55,$F$2:$G$48,2,FALSE)+ROW()-2))=Rebalance!$D$55,INDIRECT(\"a\" & (VLOOKUP(Rebalance!$D$55,$F$2:$G$48,2,FALSE)+ROW()-2)),\"\")","v":{"$error":"#N/A"}},{"$f":"IF(INDIRECT(\"c\" & (VLOOKUP(Rebalance!$D$56,$F$2:$G$48,2,FALSE)+ROW()-2))=Rebalance!$D$56,INDIRECT(\"a\" & (VLOOKUP(Rebalance!$D$56,$F$2:$G$48,2,FALSE)+ROW()-2)),\"\")","v":{"$error":"#N/A"}},{"$f":"IF(INDIRECT(\"c\" & (VLOOKUP(Rebalance!$D$57,$F$2:$G$48,2,FALSE)+ROW()-2))=Rebalance!$D$57,INDIRECT(\"a\" & (VLOOKUP(Rebalance!$D$57,$F$2:$G$48,2,FALSE)+ROW()-2)),\"\")","v":{"$error":"#N/A"}},{"$f":"IF(INDIRECT(\"c\" & (VLOOKUP(Rebalance!$D$58,$F$2:$G$48,2,FALSE)+ROW()-2))=Rebalance!$D$58,INDIRECT(\"a\" & (VLOOKUP(Rebalance!$D$58,$F$2:$G$48,2,FALSE)+ROW()-2)),\"\")","v":{"$error":"#N/A"}},{"$f":"IF(INDIRECT(\"c\" & (VLOOKUP(Rebalance!$D$59,$F$2:$G$48,2,FALSE)+ROW()-2))=Rebalance!$D$59,INDIRECT(\"a\" & (VLOOKUP(Rebalance!$D$59,$F$2:$G$48,2,FALSE)+ROW()-2)),\"\")","v":{"$error":"#N/A"}},{"$f":"IF(INDIRECT(\"c\" & (VLOOKUP(Rebalance!$D$60,$F$2:$G$48,2,FALSE)+ROW()-2))=Rebalance!$D$60,INDIRECT(\"a\" & (VLOOKUP(Rebalance!$D$60,$F$2:$G$48,2,FALSE)+ROW()-2)),\"\")","v":{"$error":"#N/A"}},{"$f":"IF(INDIRECT(\"c\" & (VLOOKUP(Rebalance!$D$61,$F$2:$G$48,2,FALSE)+ROW()-2))=Rebalance!$D$61,INDIRECT(\"a\" & (VLOOKUP(Rebalance!$D$61,$F$2:$G$48,2,FALSE)+ROW()-2)),\"\")","v":{"$error":"#N/A"}},{"$f":"IF(INDIRECT(\"c\" & (VLOOKUP(Rebalance!$D$62,$F$2:$G$48,2,FALSE)+ROW()-2))=Rebalance!$D$62,INDIRECT(\"a\" & (VLOOKUP(Rebalance!$D$62,$F$2:$G$48,2,FALSE)+ROW()-2)),\"\")","v":{"$error":"#N/A"}},{"$f":"IF(INDIRECT(\"c\" & (VLOOKUP(Rebalance!$D$63,$F$2:$G$48,2,FALSE)+ROW()-2))=Rebalance!$D$63,INDIRECT(\"a\" & (VLOOKUP(Rebalance!$D$63,$F$2:$G$48,2,FALSE)+ROW()-2)),\"\")","v":{"$error":"#N/A"}},{"$f":"IF(INDIRECT(\"c\" & (VLOOKUP(Rebalance!$D$64,$F$2:$G$48,2,FALSE)+ROW()-2))=Rebalance!$D$64,INDIRECT(\"a\" & (VLOOKUP(Rebalance!$D$64,$F$2:$G$48,2,FALSE)+ROW()-2)),\"\")","v":{"$error":"#N/A"}},{"$f":"IF(INDIRECT(\"c\" & (VLOOKUP(Rebalance!$D$65,$F$2:$G$48,2,FALSE)+ROW()-2))=Rebalance!$D$65,INDIRECT(\"a\" & (VLOOKUP(Rebalance!$D$65,$F$2:$G$48,2,FALSE)+ROW()-2)),\"\")","v":{"$error":"#N/A"}},{"$f":"IF(INDIRECT(\"c\" & (VLOOKUP(Rebalance!$D$66,$F$2:$G$48,2,FALSE)+ROW()-2))=Rebalance!$D$66,INDIRECT(\"a\" & (VLOOKUP(Rebalance!$D$66,$F$2:$G$48,2,FALSE)+ROW()-2)),\"\")","v":{"$error":"#N/A"}}]
["Optimun BCI Balanced Fund A","OBBFA","Boutique Collective Investments (Pty) Ltd",{"$f":"ROW()","v":145},null,null,{"$f":"VLOOKUP(F145,$C$2:$D$599,2,FALSE)","v":{"$error":"#N/A"}},{"$f":"IF(INDIRECT(\"c\" & (VLOOKUP(Rebalance!$D$26,$F$2:$G$48,2,FALSE)+ROW()-2))=Rebalance!$D$26,INDIRECT(\"a\" & (VLOOKUP(Rebalance!$D$26,$F$2:$G$48,2,FALSE)+ROW()-2)),\"\")","v":{"$error":"#N/A"}},{"$f":"IF(INDIRECT(\"c\" & (VLOOKUP(Rebalance!$D$27,$F$2:$G$48,2,FALSE)+ROW()-2))=Rebalance!$D$27,INDIRECT(\"a\" & (VLOOKUP(Rebalance!$D$27,$F$2:$G$48,2,FALSE)+ROW()-2)),\"\")","v":{"$error":"#N/A"}},{"$f":"IF(INDIRECT(\"c\" & (VLOOKUP(Rebalance!$D$28,$F$2:$G$48,2,FALSE)+ROW()-2))=Rebalance!$D$28,INDIRECT(\"a\" & (VLOOKUP(Rebalance!$D$28,$F$2:$G$48,2,FALSE)+ROW()-2)),\"\")","v":{"$error":"#N/A"}},{"$f":"IF(INDIRECT(\"c\" & (VLOOKUP(Rebalance!$D$29,$F$2:$G$48,2,FALSE)+ROW()-2))=Rebalance!$D$29,INDIRECT(\"a\" & (VLOOKUP(Rebalance!$D$29,$F$2:$G$48,2,FALSE)+ROW()-2)),\"\")","v":{"$error":"#N/A"}},{"$f":"IF(INDIRECT(\"c\" & (VLOOKUP(Rebalance!$D$30,$F$2:$G$48,2,FALSE)+ROW()-2))=Rebalance!$D$30,INDIRECT(\"a\" & (VLOOKUP(Rebalance!$D$30,$F$2:$G$48,2,FALSE)+ROW()-2)),\"\")","v":{"$error":"#N/A"}},{"$f":"IF(INDIRECT(\"c\" & (VLOOKUP(Rebalance!$D$31,$F$2:$G$48,2,FALSE)+ROW()-2))=Rebalance!$D$31,INDIRECT(\"a\" & (VLOOKUP(Rebalance!$D$31,$F$2:$G$48,2,FALSE)+ROW()-2)),\"\")","v":{"$error":"#N/A"}},{"$f":"IF(INDIRECT(\"c\" & (VLOOKUP(Rebalance!$D$32,$F$2:$G$48,2,FALSE)+ROW()-2))=Rebalance!$D$32,INDIRECT(\"a\" & (VLOOKUP(Rebalance!$D$32,$F$2:$G$48,2,FALSE)+ROW()-2)),\"\")","v":{"$error":"#N/A"}},{"$f":"IF(INDIRECT(\"c\" & (VLOOKUP(Rebalance!$D$33,$F$2:$G$48,2,FALSE)+ROW()-2))=Rebalance!$D$33,INDIRECT(\"a\" & (VLOOKUP(Rebalance!$D$33,$F$2:$G$48,2,FALSE)+ROW()-2)),\"\")","v":{"$error":"#N/A"}},{"$f":"IF(INDIRECT(\"c\" & (VLOOKUP(Rebalance!$D$34,$F$2:$G$48,2,FALSE)+ROW()-2))=Rebalance!$D$34,INDIRECT(\"a\" & (VLOOKUP(Rebalance!$D$34,$F$2:$G$48,2,FALSE)+ROW()-2)),\"\")","v":{"$error":"#N/A"}},{"$f":"IF(INDIRECT(\"c\" & (VLOOKUP(Rebalance!$D$35,$F$2:$G$48,2,FALSE)+ROW()-2))=Rebalance!$D$35,INDIRECT(\"a\" & (VLOOKUP(Rebalance!$D$35,$F$2:$G$48,2,FALSE)+ROW()-2)),\"\")","v":{"$error":"#N/A"}},{"$f":"IF(INDIRECT(\"c\" & (VLOOKUP(Rebalance!$D$36,$F$2:$G$48,2,FALSE)+ROW()-2))=Rebalance!$D$36,INDIRECT(\"a\" & (VLOOKUP(Rebalance!$D$36,$F$2:$G$48,2,FALSE)+ROW()-2)),\"\")","v":{"$error":"#N/A"}},{"$f":"IF(INDIRECT(\"c\" & (VLOOKUP(Rebalance!$D$37,$F$2:$G$48,2,FALSE)+ROW()-2))=Rebalance!$D$37,INDIRECT(\"a\" & (VLOOKUP(Rebalance!$D$37,$F$2:$G$48,2,FALSE)+ROW()-2)),\"\")","v":{"$error":"#N/A"}},{"$f":"IF(INDIRECT(\"c\" & (VLOOKUP(Rebalance!$D$38,$F$2:$G$48,2,FALSE)+ROW()-2))=Rebalance!$D$38,INDIRECT(\"a\" & (VLOOKUP(Rebalance!$D$38,$F$2:$G$48,2,FALSE)+ROW()-2)),\"\")","v":{"$error":"#N/A"}},{"$f":"IF(INDIRECT(\"c\" & (VLOOKUP(Rebalance!$D$39,$F$2:$G$48,2,FALSE)+ROW()-2))=Rebalance!$D$39,INDIRECT(\"a\" & (VLOOKUP(Rebalance!$D$39,$F$2:$G$48,2,FALSE)+ROW()-2)),\"\")","v":{"$error":"#N/A"}},{"$f":"IF(INDIRECT(\"c\" & (VLOOKUP(Rebalance!$D$40,$F$2:$G$48,2,FALSE)+ROW()-2))=Rebalance!$D$40,INDIRECT(\"a\" & (VLOOKUP(Rebalance!$D$40,$F$2:$G$48,2,FALSE)+ROW()-2)),\"\")","v":{"$error":"#N/A"}},{"$f":"IF(INDIRECT(\"c\" & (VLOOKUP(Rebalance!$D$52,$F$2:$G$48,2,FALSE)+ROW()-2))=Rebalance!$D$52,INDIRECT(\"a\" & (VLOOKUP(Rebalance!$D$52,$F$2:$G$48,2,FALSE)+ROW()-2)),\"\")","v":{"$error":"#N/A"}},{"$f":"IF(INDIRECT(\"c\" & (VLOOKUP(Rebalance!$D$53,$F$2:$G$48,2,FALSE)+ROW()-2))=Rebalance!$D$53,INDIRECT(\"a\" & (VLOOKUP(Rebalance!$D$53,$F$2:$G$48,2,FALSE)+ROW()-2)),\"\")","v":{"$error":"#N/A"}},{"$f":"IF(INDIRECT(\"c\" & (VLOOKUP(Rebalance!$D$54,$F$2:$G$48,2,FALSE)+ROW()-2))=Rebalance!$D$54,INDIRECT(\"a\" & (VLOOKUP(Rebalance!$D$54,$F$2:$G$48,2,FALSE)+ROW()-2)),\"\")","v":{"$error":"#N/A"}},{"$f":"IF(INDIRECT(\"c\" & (VLOOKUP(Rebalance!$D$55,$F$2:$G$48,2,FALSE)+ROW()-2))=Rebalance!$D$55,INDIRECT(\"a\" & (VLOOKUP(Rebalance!$D$55,$F$2:$G$48,2,FALSE)+ROW()-2)),\"\")","v":{"$error":"#N/A"}},{"$f":"IF(INDIRECT(\"c\" & (VLOOKUP(Rebalance!$D$56,$F$2:$G$48,2,FALSE)+ROW()-2))=Rebalance!$D$56,INDIRECT(\"a\" & (VLOOKUP(Rebalance!$D$56,$F$2:$G$48,2,FALSE)+ROW()-2)),\"\")","v":{"$error":"#N/A"}},{"$f":"IF(INDIRECT(\"c\" & (VLOOKUP(Rebalance!$D$57,$F$2:$G$48,2,FALSE)+ROW()-2))=Rebalance!$D$57,INDIRECT(\"a\" & (VLOOKUP(Rebalance!$D$57,$F$2:$G$48,2,FALSE)+ROW()-2)),\"\")","v":{"$error":"#N/A"}},{"$f":"IF(INDIRECT(\"c\" & (VLOOKUP(Rebalance!$D$58,$F$2:$G$48,2,FALSE)+ROW()-2))=Rebalance!$D$58,INDIRECT(\"a\" & (VLOOKUP(Rebalance!$D$58,$F$2:$G$48,2,FALSE)+ROW()-2)),\"\")","v":{"$error":"#N/A"}},{"$f":"IF(INDIRECT(\"c\" & (VLOOKUP(Rebalance!$D$59,$F$2:$G$48,2,FALSE)+ROW()-2))=Rebalance!$D$59,INDIRECT(\"a\" & (VLOOKUP(Rebalance!$D$59,$F$2:$G$48,2,FALSE)+ROW()-2)),\"\")","v":{"$error":"#N/A"}},{"$f":"IF(INDIRECT(\"c\" & (VLOOKUP(Rebalance!$D$60,$F$2:$G$48,2,FALSE)+ROW()-2))=Rebalance!$D$60,INDIRECT(\"a\" & (VLOOKUP(Rebalance!$D$60,$F$2:$G$48,2,FALSE)+ROW()-2)),\"\")","v":{"$error":"#N/A"}},{"$f":"IF(INDIRECT(\"c\" & (VLOOKUP(Rebalance!$D$61,$F$2:$G$48,2,FALSE)+ROW()-2))=Rebalance!$D$61,INDIRECT(\"a\" & (VLOOKUP(Rebalance!$D$61,$F$2:$G$48,2,FALSE)+ROW()-2)),\"\")","v":{"$error":"#N/A"}},{"$f":"IF(INDIRECT(\"c\" & (VLOOKUP(Rebalance!$D$62,$F$2:$G$48,2,FALSE)+ROW()-2))=Rebalance!$D$62,INDIRECT(\"a\" & (VLOOKUP(Rebalance!$D$62,$F$2:$G$48,2,FALSE)+ROW()-2)),\"\")","v":{"$error":"#N/A"}},{"$f":"IF(INDIRECT(\"c\" & (VLOOKUP(Rebalance!$D$63,$F$2:$G$48,2,FALSE)+ROW()-2))=Rebalance!$D$63,INDIRECT(\"a\" & (VLOOKUP(Rebalance!$D$63,$F$2:$G$48,2,FALSE)+ROW()-2)),\"\")","v":{"$error":"#N/A"}},{"$f":"IF(INDIRECT(\"c\" & (VLOOKUP(Rebalance!$D$64,$F$2:$G$48,2,FALSE)+ROW()-2))=Rebalance!$D$64,INDIRECT(\"a\" & (VLOOKUP(Rebalance!$D$64,$F$2:$G$48,2,FALSE)+ROW()-2)),\"\")","v":{"$error":"#N/A"}},{"$f":"IF(INDIRECT(\"c\" & (VLOOKUP(Rebalance!$D$65,$F$2:$G$48,2,FALSE)+ROW()-2))=Rebalance!$D$65,INDIRECT(\"a\" & (VLOOKUP(Rebalance!$D$65,$F$2:$G$48,2,FALSE)+ROW()-2)),\"\")","v":{"$error":"#N/A"}},{"$f":"IF(INDIRECT(\"c\" & (VLOOKUP(Rebalance!$D$66,$F$2:$G$48,2,FALSE)+ROW()-2))=Rebalance!$D$66,INDIRECT(\"a\" & (VLOOKUP(Rebalance!$D$66,$F$2:$G$48,2,FALSE)+ROW()-2)),\"\")","v":{"$error":"#N/A"}}]
["Optimum BCI Equity Fund A","OBEFA","Boutique Collective Investments (Pty) Ltd",{"$f":"ROW()","v":146},null,null,{"$f":"VLOOKUP(F146,$C$2:$D$599,2,FALSE)","v":{"$error":"#N/A"}},{"$f":"IF(INDIRECT(\"c\" & (VLOOKUP(Rebalance!$D$26,$F$2:$G$48,2,FALSE)+ROW()-2))=Rebalance!$D$26,INDIRECT(\"a\" & (VLOOKUP(Rebalance!$D$26,$F$2:$G$48,2,FALSE)+ROW()-2)),\"\")","v":{"$error":"#N/A"}},{"$f":"IF(INDIRECT(\"c\" & (VLOOKUP(Rebalance!$D$27,$F$2:$G$48,2,FALSE)+ROW()-2))=Rebalance!$D$27,INDIRECT(\"a\" & (VLOOKUP(Rebalance!$D$27,$F$2:$G$48,2,FALSE)+ROW()-2)),\"\")","v":{"$error":"#N/A"}},{"$f":"IF(INDIRECT(\"c\" & (VLOOKUP(Rebalance!$D$28,$F$2:$G$48,2,FALSE)+ROW()-2))=Rebalance!$D$28,INDIRECT(\"a\" & (VLOOKUP(Rebalance!$D$28,$F$2:$G$48,2,FALSE)+ROW()-2)),\"\")","v":{"$error":"#N/A"}},{"$f":"IF(INDIRECT(\"c\" & (VLOOKUP(Rebalance!$D$29,$F$2:$G$48,2,FALSE)+ROW()-2))=Rebalance!$D$29,INDIRECT(\"a\" & (VLOOKUP(Rebalance!$D$29,$F$2:$G$48,2,FALSE)+ROW()-2)),\"\")","v":{"$error":"#N/A"}},{"$f":"IF(INDIRECT(\"c\" & (VLOOKUP(Rebalance!$D$30,$F$2:$G$48,2,FALSE)+ROW()-2))=Rebalance!$D$30,INDIRECT(\"a\" & (VLOOKUP(Rebalance!$D$30,$F$2:$G$48,2,FALSE)+ROW()-2)),\"\")","v":{"$error":"#N/A"}},{"$f":"IF(INDIRECT(\"c\" & (VLOOKUP(Rebalance!$D$31,$F$2:$G$48,2,FALSE)+ROW()-2))=Rebalance!$D$31,INDIRECT(\"a\" & (VLOOKUP(Rebalance!$D$31,$F$2:$G$48,2,FALSE)+ROW()-2)),\"\")","v":{"$error":"#N/A"}},{"$f":"IF(INDIRECT(\"c\" & (VLOOKUP(Rebalance!$D$32,$F$2:$G$48,2,FALSE)+ROW()-2))=Rebalance!$D$32,INDIRECT(\"a\" & (VLOOKUP(Rebalance!$D$32,$F$2:$G$48,2,FALSE)+ROW()-2)),\"\")","v":{"$error":"#N/A"}},{"$f":"IF(INDIRECT(\"c\" & (VLOOKUP(Rebalance!$D$33,$F$2:$G$48,2,FALSE)+ROW()-2))=Rebalance!$D$33,INDIRECT(\"a\" & (VLOOKUP(Rebalance!$D$33,$F$2:$G$48,2,FALSE)+ROW()-2)),\"\")","v":{"$error":"#N/A"}},{"$f":"IF(INDIRECT(\"c\" & (VLOOKUP(Rebalance!$D$34,$F$2:$G$48,2,FALSE)+ROW()-2))=Rebalance!$D$34,INDIRECT(\"a\" & (VLOOKUP(Rebalance!$D$34,$F$2:$G$48,2,FALSE)+ROW()-2)),\"\")","v":{"$error":"#N/A"}},{"$f":"IF(INDIRECT(\"c\" & (VLOOKUP(Rebalance!$D$35,$F$2:$G$48,2,FALSE)+ROW()-2))=Rebalance!$D$35,INDIRECT(\"a\" & (VLOOKUP(Rebalance!$D$35,$F$2:$G$48,2,FALSE)+ROW()-2)),\"\")","v":{"$error":"#N/A"}},{"$f":"IF(INDIRECT(\"c\" & (VLOOKUP(Rebalance!$D$36,$F$2:$G$48,2,FALSE)+ROW()-2))=Rebalance!$D$36,INDIRECT(\"a\" & (VLOOKUP(Rebalance!$D$36,$F$2:$G$48,2,FALSE)+ROW()-2)),\"\")","v":{"$error":"#N/A"}},{"$f":"IF(INDIRECT(\"c\" & (VLOOKUP(Rebalance!$D$37,$F$2:$G$48,2,FALSE)+ROW()-2))=Rebalance!$D$37,INDIRECT(\"a\" & (VLOOKUP(Rebalance!$D$37,$F$2:$G$48,2,FALSE)+ROW()-2)),\"\")","v":{"$error":"#N/A"}},{"$f":"IF(INDIRECT(\"c\" & (VLOOKUP(Rebalance!$D$38,$F$2:$G$48,2,FALSE)+ROW()-2))=Rebalance!$D$38,INDIRECT(\"a\" & (VLOOKUP(Rebalance!$D$38,$F$2:$G$48,2,FALSE)+ROW()-2)),\"\")","v":{"$error":"#N/A"}},{"$f":"IF(INDIRECT(\"c\" & (VLOOKUP(Rebalance!$D$39,$F$2:$G$48,2,FALSE)+ROW()-2))=Rebalance!$D$39,INDIRECT(\"a\" & (VLOOKUP(Rebalance!$D$39,$F$2:$G$48,2,FALSE)+ROW()-2)),\"\")","v":{"$error":"#N/A"}},{"$f":"IF(INDIRECT(\"c\" & (VLOOKUP(Rebalance!$D$40,$F$2:$G$48,2,FALSE)+ROW()-2))=Rebalance!$D$40,INDIRECT(\"a\" & (VLOOKUP(Rebalance!$D$40,$F$2:$G$48,2,FALSE)+ROW()-2)),\"\")","v":{"$error":"#N/A"}},{"$f":"IF(INDIRECT(\"c\" & (VLOOKUP(Rebalance!$D$52,$F$2:$G$48,2,FALSE)+ROW()-2))=Rebalance!$D$52,INDIRECT(\"a\" & (VLOOKUP(Rebalance!$D$52,$F$2:$G$48,2,FALSE)+ROW()-2)),\"\")","v":{"$error":"#N/A"}},{"$f":"IF(INDIRECT(\"c\" & (VLOOKUP(Rebalance!$D$53,$F$2:$G$48,2,FALSE)+ROW()-2))=Rebalance!$D$53,INDIRECT(\"a\" & (VLOOKUP(Rebalance!$D$53,$F$2:$G$48,2,FALSE)+ROW()-2)),\"\")","v":{"$error":"#N/A"}},{"$f":"IF(INDIRECT(\"c\" & (VLOOKUP(Rebalance!$D$54,$F$2:$G$48,2,FALSE)+ROW()-2))=Rebalance!$D$54,INDIRECT(\"a\" & (VLOOKUP(Rebalance!$D$54,$F$2:$G$48,2,FALSE)+ROW()-2)),\"\")","v":{"$error":"#N/A"}},{"$f":"IF(INDIRECT(\"c\" & (VLOOKUP(Rebalance!$D$55,$F$2:$G$48,2,FALSE)+ROW()-2))=Rebalance!$D$55,INDIRECT(\"a\" & (VLOOKUP(Rebalance!$D$55,$F$2:$G$48,2,FALSE)+ROW()-2)),\"\")","v":{"$error":"#N/A"}},{"$f":"IF(INDIRECT(\"c\" & (VLOOKUP(Rebalance!$D$56,$F$2:$G$48,2,FALSE)+ROW()-2))=Rebalance!$D$56,INDIRECT(\"a\" & (VLOOKUP(Rebalance!$D$56,$F$2:$G$48,2,FALSE)+ROW()-2)),\"\")","v":{"$error":"#N/A"}},{"$f":"IF(INDIRECT(\"c\" & (VLOOKUP(Rebalance!$D$57,$F$2:$G$48,2,FALSE)+ROW()-2))=Rebalance!$D$57,INDIRECT(\"a\" & (VLOOKUP(Rebalance!$D$57,$F$2:$G$48,2,FALSE)+ROW()-2)),\"\")","v":{"$error":"#N/A"}},{"$f":"IF(INDIRECT(\"c\" & (VLOOKUP(Rebalance!$D$58,$F$2:$G$48,2,FALSE)+ROW()-2))=Rebalance!$D$58,INDIRECT(\"a\" & (VLOOKUP(Rebalance!$D$58,$F$2:$G$48,2,FALSE)+ROW()-2)),\"\")","v":{"$error":"#N/A"}},{"$f":"IF(INDIRECT(\"c\" & (VLOOKUP(Rebalance!$D$59,$F$2:$G$48,2,FALSE)+ROW()-2))=Rebalance!$D$59,INDIRECT(\"a\" & (VLOOKUP(Rebalance!$D$59,$F$2:$G$48,2,FALSE)+ROW()-2)),\"\")","v":{"$error":"#N/A"}},{"$f":"IF(INDIRECT(\"c\" & (VLOOKUP(Rebalance!$D$60,$F$2:$G$48,2,FALSE)+ROW()-2))=Rebalance!$D$60,INDIRECT(\"a\" & (VLOOKUP(Rebalance!$D$60,$F$2:$G$48,2,FALSE)+ROW()-2)),\"\")","v":{"$error":"#N/A"}},{"$f":"IF(INDIRECT(\"c\" & (VLOOKUP(Rebalance!$D$61,$F$2:$G$48,2,FALSE)+ROW()-2))=Rebalance!$D$61,INDIRECT(\"a\" & (VLOOKUP(Rebalance!$D$61,$F$2:$G$48,2,FALSE)+ROW()-2)),\"\")","v":{"$error":"#N/A"}},{"$f":"IF(INDIRECT(\"c\" & (VLOOKUP(Rebalance!$D$62,$F$2:$G$48,2,FALSE)+ROW()-2))=Rebalance!$D$62,INDIRECT(\"a\" & (VLOOKUP(Rebalance!$D$62,$F$2:$G$48,2,FALSE)+ROW()-2)),\"\")","v":{"$error":"#N/A"}},{"$f":"IF(INDIRECT(\"c\" & (VLOOKUP(Rebalance!$D$63,$F$2:$G$48,2,FALSE)+ROW()-2))=Rebalance!$D$63,INDIRECT(\"a\" & (VLOOKUP(Rebalance!$D$63,$F$2:$G$48,2,FALSE)+ROW()-2)),\"\")","v":{"$error":"#N/A"}},{"$f":"IF(INDIRECT(\"c\" & (VLOOKUP(Rebalance!$D$64,$F$2:$G$48,2,FALSE)+ROW()-2))=Rebalance!$D$64,INDIRECT(\"a\" & (VLOOKUP(Rebalance!$D$64,$F$2:$G$48,2,FALSE)+ROW()-2)),\"\")","v":{"$error":"#N/A"}},{"$f":"IF(INDIRECT(\"c\" & (VLOOKUP(Rebalance!$D$65,$F$2:$G$48,2,FALSE)+ROW()-2))=Rebalance!$D$65,INDIRECT(\"a\" & (VLOOKUP(Rebalance!$D$65,$F$2:$G$48,2,FALSE)+ROW()-2)),\"\")","v":{"$error":"#N/A"}},{"$f":"IF(INDIRECT(\"c\" & (VLOOKUP(Rebalance!$D$66,$F$2:$G$48,2,FALSE)+ROW()-2))=Rebalance!$D$66,INDIRECT(\"a\" & (VLOOKUP(Rebalance!$D$66,$F$2:$G$48,2,FALSE)+ROW()-2)),\"\")","v":{"$error":"#N/A"}}]
["Optimum BCI Managed Growth Fund A","OBGFA","Boutique Collective Investments (Pty) Ltd",{"$f":"ROW()","v":147},null,null,{"$f":"VLOOKUP(F147,$C$2:$D$599,2,FALSE)","v":{"$error":"#N/A"}},{"$f":"IF(INDIRECT(\"c\" & (VLOOKUP(Rebalance!$D$26,$F$2:$G$48,2,FALSE)+ROW()-2))=Rebalance!$D$26,INDIRECT(\"a\" & (VLOOKUP(Rebalance!$D$26,$F$2:$G$48,2,FALSE)+ROW()-2)),\"\")","v":{"$error":"#N/A"}},{"$f":"IF(INDIRECT(\"c\" & (VLOOKUP(Rebalance!$D$27,$F$2:$G$48,2,FALSE)+ROW()-2))=Rebalance!$D$27,INDIRECT(\"a\" & (VLOOKUP(Rebalance!$D$27,$F$2:$G$48,2,FALSE)+ROW()-2)),\"\")","v":{"$error":"#N/A"}},{"$f":"IF(INDIRECT(\"c\" & (VLOOKUP(Rebalance!$D$28,$F$2:$G$48,2,FALSE)+ROW()-2))=Rebalance!$D$28,INDIRECT(\"a\" & (VLOOKUP(Rebalance!$D$28,$F$2:$G$48,2,FALSE)+ROW()-2)),\"\")","v":{"$error":"#N/A"}},{"$f":"IF(INDIRECT(\"c\" & (VLOOKUP(Rebalance!$D$29,$F$2:$G$48,2,FALSE)+ROW()-2))=Rebalance!$D$29,INDIRECT(\"a\" & (VLOOKUP(Rebalance!$D$29,$F$2:$G$48,2,FALSE)+ROW()-2)),\"\")","v":{"$error":"#N/A"}},{"$f":"IF(INDIRECT(\"c\" & (VLOOKUP(Rebalance!$D$30,$F$2:$G$48,2,FALSE)+ROW()-2))=Rebalance!$D$30,INDIRECT(\"a\" & (VLOOKUP(Rebalance!$D$30,$F$2:$G$48,2,FALSE)+ROW()-2)),\"\")","v":{"$error":"#N/A"}},{"$f":"IF(INDIRECT(\"c\" & (VLOOKUP(Rebalance!$D$31,$F$2:$G$48,2,FALSE)+ROW()-2))=Rebalance!$D$31,INDIRECT(\"a\" & (VLOOKUP(Rebalance!$D$31,$F$2:$G$48,2,FALSE)+ROW()-2)),\"\")","v":{"$error":"#N/A"}},{"$f":"IF(INDIRECT(\"c\" & (VLOOKUP(Rebalance!$D$32,$F$2:$G$48,2,FALSE)+ROW()-2))=Rebalance!$D$32,INDIRECT(\"a\" & (VLOOKUP(Rebalance!$D$32,$F$2:$G$48,2,FALSE)+ROW()-2)),\"\")","v":{"$error":"#N/A"}},{"$f":"IF(INDIRECT(\"c\" & (VLOOKUP(Rebalance!$D$33,$F$2:$G$48,2,FALSE)+ROW()-2))=Rebalance!$D$33,INDIRECT(\"a\" & (VLOOKUP(Rebalance!$D$33,$F$2:$G$48,2,FALSE)+ROW()-2)),\"\")","v":{"$error":"#N/A"}},{"$f":"IF(INDIRECT(\"c\" & (VLOOKUP(Rebalance!$D$34,$F$2:$G$48,2,FALSE)+ROW()-2))=Rebalance!$D$34,INDIRECT(\"a\" & (VLOOKUP(Rebalance!$D$34,$F$2:$G$48,2,FALSE)+ROW()-2)),\"\")","v":{"$error":"#N/A"}},{"$f":"IF(INDIRECT(\"c\" & (VLOOKUP(Rebalance!$D$35,$F$2:$G$48,2,FALSE)+ROW()-2))=Rebalance!$D$35,INDIRECT(\"a\" & (VLOOKUP(Rebalance!$D$35,$F$2:$G$48,2,FALSE)+ROW()-2)),\"\")","v":{"$error":"#N/A"}},{"$f":"IF(INDIRECT(\"c\" & (VLOOKUP(Rebalance!$D$36,$F$2:$G$48,2,FALSE)+ROW()-2))=Rebalance!$D$36,INDIRECT(\"a\" & (VLOOKUP(Rebalance!$D$36,$F$2:$G$48,2,FALSE)+ROW()-2)),\"\")","v":{"$error":"#N/A"}},{"$f":"IF(INDIRECT(\"c\" & (VLOOKUP(Rebalance!$D$37,$F$2:$G$48,2,FALSE)+ROW()-2))=Rebalance!$D$37,INDIRECT(\"a\" & (VLOOKUP(Rebalance!$D$37,$F$2:$G$48,2,FALSE)+ROW()-2)),\"\")","v":{"$error":"#N/A"}},{"$f":"IF(INDIRECT(\"c\" & (VLOOKUP(Rebalance!$D$38,$F$2:$G$48,2,FALSE)+ROW()-2))=Rebalance!$D$38,INDIRECT(\"a\" & (VLOOKUP(Rebalance!$D$38,$F$2:$G$48,2,FALSE)+ROW()-2)),\"\")","v":{"$error":"#N/A"}},{"$f":"IF(INDIRECT(\"c\" & (VLOOKUP(Rebalance!$D$39,$F$2:$G$48,2,FALSE)+ROW()-2))=Rebalance!$D$39,INDIRECT(\"a\" & (VLOOKUP(Rebalance!$D$39,$F$2:$G$48,2,FALSE)+ROW()-2)),\"\")","v":{"$error":"#N/A"}},{"$f":"IF(INDIRECT(\"c\" & (VLOOKUP(Rebalance!$D$40,$F$2:$G$48,2,FALSE)+ROW()-2))=Rebalance!$D$40,INDIRECT(\"a\" & (VLOOKUP(Rebalance!$D$40,$F$2:$G$48,2,FALSE)+ROW()-2)),\"\")","v":{"$error":"#N/A"}},{"$f":"IF(INDIRECT(\"c\" & (VLOOKUP(Rebalance!$D$52,$F$2:$G$48,2,FALSE)+ROW()-2))=Rebalance!$D$52,INDIRECT(\"a\" & (VLOOKUP(Rebalance!$D$52,$F$2:$G$48,2,FALSE)+ROW()-2)),\"\")","v":{"$error":"#N/A"}},{"$f":"IF(INDIRECT(\"c\" & (VLOOKUP(Rebalance!$D$53,$F$2:$G$48,2,FALSE)+ROW()-2))=Rebalance!$D$53,INDIRECT(\"a\" & (VLOOKUP(Rebalance!$D$53,$F$2:$G$48,2,FALSE)+ROW()-2)),\"\")","v":{"$error":"#N/A"}},{"$f":"IF(INDIRECT(\"c\" & (VLOOKUP(Rebalance!$D$54,$F$2:$G$48,2,FALSE)+ROW()-2))=Rebalance!$D$54,INDIRECT(\"a\" & (VLOOKUP(Rebalance!$D$54,$F$2:$G$48,2,FALSE)+ROW()-2)),\"\")","v":{"$error":"#N/A"}},{"$f":"IF(INDIRECT(\"c\" & (VLOOKUP(Rebalance!$D$55,$F$2:$G$48,2,FALSE)+ROW()-2))=Rebalance!$D$55,INDIRECT(\"a\" & (VLOOKUP(Rebalance!$D$55,$F$2:$G$48,2,FALSE)+ROW()-2)),\"\")","v":{"$error":"#N/A"}},{"$f":"IF(INDIRECT(\"c\" & (VLOOKUP(Rebalance!$D$56,$F$2:$G$48,2,FALSE)+ROW()-2))=Rebalance!$D$56,INDIRECT(\"a\" & (VLOOKUP(Rebalance!$D$56,$F$2:$G$48,2,FALSE)+ROW()-2)),\"\")","v":{"$error":"#N/A"}},{"$f":"IF(INDIRECT(\"c\" & (VLOOKUP(Rebalance!$D$57,$F$2:$G$48,2,FALSE)+ROW()-2))=Rebalance!$D$57,INDIRECT(\"a\" & (VLOOKUP(Rebalance!$D$57,$F$2:$G$48,2,FALSE)+ROW()-2)),\"\")","v":{"$error":"#N/A"}},{"$f":"IF(INDIRECT(\"c\" & (VLOOKUP(Rebalance!$D$58,$F$2:$G$48,2,FALSE)+ROW()-2))=Rebalance!$D$58,INDIRECT(\"a\" & (VLOOKUP(Rebalance!$D$58,$F$2:$G$48,2,FALSE)+ROW()-2)),\"\")","v":{"$error":"#N/A"}},{"$f":"IF(INDIRECT(\"c\" & (VLOOKUP(Rebalance!$D$59,$F$2:$G$48,2,FALSE)+ROW()-2))=Rebalance!$D$59,INDIRECT(\"a\" & (VLOOKUP(Rebalance!$D$59,$F$2:$G$48,2,FALSE)+ROW()-2)),\"\")","v":{"$error":"#N/A"}},{"$f":"IF(INDIRECT(\"c\" & (VLOOKUP(Rebalance!$D$60,$F$2:$G$48,2,FALSE)+ROW()-2))=Rebalance!$D$60,INDIRECT(\"a\" & (VLOOKUP(Rebalance!$D$60,$F$2:$G$48,2,FALSE)+ROW()-2)),\"\")","v":{"$error":"#N/A"}},{"$f":"IF(INDIRECT(\"c\" & (VLOOKUP(Rebalance!$D$61,$F$2:$G$48,2,FALSE)+ROW()-2))=Rebalance!$D$61,INDIRECT(\"a\" & (VLOOKUP(Rebalance!$D$61,$F$2:$G$48,2,FALSE)+ROW()-2)),\"\")","v":{"$error":"#N/A"}},{"$f":"IF(INDIRECT(\"c\" & (VLOOKUP(Rebalance!$D$62,$F$2:$G$48,2,FALSE)+ROW()-2))=Rebalance!$D$62,INDIRECT(\"a\" & (VLOOKUP(Rebalance!$D$62,$F$2:$G$48,2,FALSE)+ROW()-2)),\"\")","v":{"$error":"#N/A"}},{"$f":"IF(INDIRECT(\"c\" & (VLOOKUP(Rebalance!$D$63,$F$2:$G$48,2,FALSE)+ROW()-2))=Rebalance!$D$63,INDIRECT(\"a\" & (VLOOKUP(Rebalance!$D$63,$F$2:$G$48,2,FALSE)+ROW()-2)),\"\")","v":{"$error":"#N/A"}},{"$f":"IF(INDIRECT(\"c\" & (VLOOKUP(Rebalance!$D$64,$F$2:$G$48,2,FALSE)+ROW()-2))=Rebalance!$D$64,INDIRECT(\"a\" & (VLOOKUP(Rebalance!$D$64,$F$2:$G$48,2,FALSE)+ROW()-2)),\"\")","v":{"$error":"#N/A"}},{"$f":"IF(INDIRECT(\"c\" & (VLOOKUP(Rebalance!$D$65,$F$2:$G$48,2,FALSE)+ROW()-2))=Rebalance!$D$65,INDIRECT(\"a\" & (VLOOKUP(Rebalance!$D$65,$F$2:$G$48,2,FALSE)+ROW()-2)),\"\")","v":{"$error":"#N/A"}},{"$f":"IF(INDIRECT(\"c\" & (VLOOKUP(Rebalance!$D$66,$F$2:$G$48,2,FALSE)+ROW()-2))=Rebalance!$D$66,INDIRECT(\"a\" & (VLOOKUP(Rebalance!$D$66,$F$2:$G$48,2,FALSE)+ROW()-2)),\"\")","v":{"$error":"#N/A"}}]
["Optimum BCI Stable Fund A","OBSFA","Boutique Collective Investments (Pty) Ltd",{"$f":"ROW()","v":148},null,null,{"$f":"VLOOKUP(F148,$C$2:$D$599,2,FALSE)","v":{"$error":"#N/A"}},{"$f":"IF(INDIRECT(\"c\" & (VLOOKUP(Rebalance!$D$26,$F$2:$G$48,2,FALSE)+ROW()-2))=Rebalance!$D$26,INDIRECT(\"a\" & (VLOOKUP(Rebalance!$D$26,$F$2:$G$48,2,FALSE)+ROW()-2)),\"\")","v":{"$error":"#N/A"}},{"$f":"IF(INDIRECT(\"c\" & (VLOOKUP(Rebalance!$D$27,$F$2:$G$48,2,FALSE)+ROW()-2))=Rebalance!$D$27,INDIRECT(\"a\" & (VLOOKUP(Rebalance!$D$27,$F$2:$G$48,2,FALSE)+ROW()-2)),\"\")","v":{"$error":"#N/A"}},{"$f":"IF(INDIRECT(\"c\" & (VLOOKUP(Rebalance!$D$28,$F$2:$G$48,2,FALSE)+ROW()-2))=Rebalance!$D$28,INDIRECT(\"a\" & (VLOOKUP(Rebalance!$D$28,$F$2:$G$48,2,FALSE)+ROW()-2)),\"\")","v":{"$error":"#N/A"}},{"$f":"IF(INDIRECT(\"c\" & (VLOOKUP(Rebalance!$D$29,$F$2:$G$48,2,FALSE)+ROW()-2))=Rebalance!$D$29,INDIRECT(\"a\" & (VLOOKUP(Rebalance!$D$29,$F$2:$G$48,2,FALSE)+ROW()-2)),\"\")","v":{"$error":"#N/A"}},{"$f":"IF(INDIRECT(\"c\" & (VLOOKUP(Rebalance!$D$30,$F$2:$G$48,2,FALSE)+ROW()-2))=Rebalance!$D$30,INDIRECT(\"a\" & (VLOOKUP(Rebalance!$D$30,$F$2:$G$48,2,FALSE)+ROW()-2)),\"\")","v":{"$error":"#N/A"}},{"$f":"IF(INDIRECT(\"c\" & (VLOOKUP(Rebalance!$D$31,$F$2:$G$48,2,FALSE)+ROW()-2))=Rebalance!$D$31,INDIRECT(\"a\" & (VLOOKUP(Rebalance!$D$31,$F$2:$G$48,2,FALSE)+ROW()-2)),\"\")","v":{"$error":"#N/A"}},{"$f":"IF(INDIRECT(\"c\" & (VLOOKUP(Rebalance!$D$32,$F$2:$G$48,2,FALSE)+ROW()-2))=Rebalance!$D$32,INDIRECT(\"a\" & (VLOOKUP(Rebalance!$D$32,$F$2:$G$48,2,FALSE)+ROW()-2)),\"\")","v":{"$error":"#N/A"}},{"$f":"IF(INDIRECT(\"c\" & (VLOOKUP(Rebalance!$D$33,$F$2:$G$48,2,FALSE)+ROW()-2))=Rebalance!$D$33,INDIRECT(\"a\" & (VLOOKUP(Rebalance!$D$33,$F$2:$G$48,2,FALSE)+ROW()-2)),\"\")","v":{"$error":"#N/A"}},{"$f":"IF(INDIRECT(\"c\" & (VLOOKUP(Rebalance!$D$34,$F$2:$G$48,2,FALSE)+ROW()-2))=Rebalance!$D$34,INDIRECT(\"a\" & (VLOOKUP(Rebalance!$D$34,$F$2:$G$48,2,FALSE)+ROW()-2)),\"\")","v":{"$error":"#N/A"}},{"$f":"IF(INDIRECT(\"c\" & (VLOOKUP(Rebalance!$D$35,$F$2:$G$48,2,FALSE)+ROW()-2))=Rebalance!$D$35,INDIRECT(\"a\" & (VLOOKUP(Rebalance!$D$35,$F$2:$G$48,2,FALSE)+ROW()-2)),\"\")","v":{"$error":"#N/A"}},{"$f":"IF(INDIRECT(\"c\" & (VLOOKUP(Rebalance!$D$36,$F$2:$G$48,2,FALSE)+ROW()-2))=Rebalance!$D$36,INDIRECT(\"a\" & (VLOOKUP(Rebalance!$D$36,$F$2:$G$48,2,FALSE)+ROW()-2)),\"\")","v":{"$error":"#N/A"}},{"$f":"IF(INDIRECT(\"c\" & (VLOOKUP(Rebalance!$D$37,$F$2:$G$48,2,FALSE)+ROW()-2))=Rebalance!$D$37,INDIRECT(\"a\" & (VLOOKUP(Rebalance!$D$37,$F$2:$G$48,2,FALSE)+ROW()-2)),\"\")","v":{"$error":"#N/A"}},{"$f":"IF(INDIRECT(\"c\" & (VLOOKUP(Rebalance!$D$38,$F$2:$G$48,2,FALSE)+ROW()-2))=Rebalance!$D$38,INDIRECT(\"a\" & (VLOOKUP(Rebalance!$D$38,$F$2:$G$48,2,FALSE)+ROW()-2)),\"\")","v":{"$error":"#N/A"}},{"$f":"IF(INDIRECT(\"c\" & (VLOOKUP(Rebalance!$D$39,$F$2:$G$48,2,FALSE)+ROW()-2))=Rebalance!$D$39,INDIRECT(\"a\" & (VLOOKUP(Rebalance!$D$39,$F$2:$G$48,2,FALSE)+ROW()-2)),\"\")","v":{"$error":"#N/A"}},{"$f":"IF(INDIRECT(\"c\" & (VLOOKUP(Rebalance!$D$40,$F$2:$G$48,2,FALSE)+ROW()-2))=Rebalance!$D$40,INDIRECT(\"a\" & (VLOOKUP(Rebalance!$D$40,$F$2:$G$48,2,FALSE)+ROW()-2)),\"\")","v":{"$error":"#N/A"}},{"$f":"IF(INDIRECT(\"c\" & (VLOOKUP(Rebalance!$D$52,$F$2:$G$48,2,FALSE)+ROW()-2))=Rebalance!$D$52,INDIRECT(\"a\" & (VLOOKUP(Rebalance!$D$52,$F$2:$G$48,2,FALSE)+ROW()-2)),\"\")","v":{"$error":"#N/A"}},{"$f":"IF(INDIRECT(\"c\" & (VLOOKUP(Rebalance!$D$53,$F$2:$G$48,2,FALSE)+ROW()-2))=Rebalance!$D$53,INDIRECT(\"a\" & (VLOOKUP(Rebalance!$D$53,$F$2:$G$48,2,FALSE)+ROW()-2)),\"\")","v":{"$error":"#N/A"}},{"$f":"IF(INDIRECT(\"c\" & (VLOOKUP(Rebalance!$D$54,$F$2:$G$48,2,FALSE)+ROW()-2))=Rebalance!$D$54,INDIRECT(\"a\" & (VLOOKUP(Rebalance!$D$54,$F$2:$G$48,2,FALSE)+ROW()-2)),\"\")","v":{"$error":"#N/A"}},{"$f":"IF(INDIRECT(\"c\" & (VLOOKUP(Rebalance!$D$55,$F$2:$G$48,2,FALSE)+ROW()-2))=Rebalance!$D$55,INDIRECT(\"a\" & (VLOOKUP(Rebalance!$D$55,$F$2:$G$48,2,FALSE)+ROW()-2)),\"\")","v":{"$error":"#N/A"}},{"$f":"IF(INDIRECT(\"c\" & (VLOOKUP(Rebalance!$D$56,$F$2:$G$48,2,FALSE)+ROW()-2))=Rebalance!$D$56,INDIRECT(\"a\" & (VLOOKUP(Rebalance!$D$56,$F$2:$G$48,2,FALSE)+ROW()-2)),\"\")","v":{"$error":"#N/A"}},{"$f":"IF(INDIRECT(\"c\" & (VLOOKUP(Rebalance!$D$57,$F$2:$G$48,2,FALSE)+ROW()-2))=Rebalance!$D$57,INDIRECT(\"a\" & (VLOOKUP(Rebalance!$D$57,$F$2:$G$48,2,FALSE)+ROW()-2)),\"\")","v":{"$error":"#N/A"}},{"$f":"IF(INDIRECT(\"c\" & (VLOOKUP(Rebalance!$D$58,$F$2:$G$48,2,FALSE)+ROW()-2))=Rebalance!$D$58,INDIRECT(\"a\" & (VLOOKUP(Rebalance!$D$58,$F$2:$G$48,2,FALSE)+ROW()-2)),\"\")","v":{"$error":"#N/A"}},{"$f":"IF(INDIRECT(\"c\" & (VLOOKUP(Rebalance!$D$59,$F$2:$G$48,2,FALSE)+ROW()-2))=Rebalance!$D$59,INDIRECT(\"a\" & (VLOOKUP(Rebalance!$D$59,$F$2:$G$48,2,FALSE)+ROW()-2)),\"\")","v":{"$error":"#N/A"}},{"$f":"IF(INDIRECT(\"c\" & (VLOOKUP(Rebalance!$D$60,$F$2:$G$48,2,FALSE)+ROW()-2))=Rebalance!$D$60,INDIRECT(\"a\" & (VLOOKUP(Rebalance!$D$60,$F$2:$G$48,2,FALSE)+ROW()-2)),\"\")","v":{"$error":"#N/A"}},{"$f":"IF(INDIRECT(\"c\" & (VLOOKUP(Rebalance!$D$61,$F$2:$G$48,2,FALSE)+ROW()-2))=Rebalance!$D$61,INDIRECT(\"a\" & (VLOOKUP(Rebalance!$D$61,$F$2:$G$48,2,FALSE)+ROW()-2)),\"\")","v":{"$error":"#N/A"}},{"$f":"IF(INDIRECT(\"c\" & (VLOOKUP(Rebalance!$D$62,$F$2:$G$48,2,FALSE)+ROW()-2))=Rebalance!$D$62,INDIRECT(\"a\" & (VLOOKUP(Rebalance!$D$62,$F$2:$G$48,2,FALSE)+ROW()-2)),\"\")","v":{"$error":"#N/A"}},{"$f":"IF(INDIRECT(\"c\" & (VLOOKUP(Rebalance!$D$63,$F$2:$G$48,2,FALSE)+ROW()-2))=Rebalance!$D$63,INDIRECT(\"a\" & (VLOOKUP(Rebalance!$D$63,$F$2:$G$48,2,FALSE)+ROW()-2)),\"\")","v":{"$error":"#N/A"}},{"$f":"IF(INDIRECT(\"c\" & (VLOOKUP(Rebalance!$D$64,$F$2:$G$48,2,FALSE)+ROW()-2))=Rebalance!$D$64,INDIRECT(\"a\" & (VLOOKUP(Rebalance!$D$64,$F$2:$G$48,2,FALSE)+ROW()-2)),\"\")","v":{"$error":"#N/A"}},{"$f":"IF(INDIRECT(\"c\" & (VLOOKUP(Rebalance!$D$65,$F$2:$G$48,2,FALSE)+ROW()-2))=Rebalance!$D$65,INDIRECT(\"a\" & (VLOOKUP(Rebalance!$D$65,$F$2:$G$48,2,FALSE)+ROW()-2)),\"\")","v":{"$error":"#N/A"}},{"$f":"IF(INDIRECT(\"c\" & (VLOOKUP(Rebalance!$D$66,$F$2:$G$48,2,FALSE)+ROW()-2))=Rebalance!$D$66,INDIRECT(\"a\" & (VLOOKUP(Rebalance!$D$66,$F$2:$G$48,2,FALSE)+ROW()-2)),\"\")","v":{"$error":"#N/A"}}]
["Platinum Balanced Prudential FOF","MPBP","Boutique Collective Investments (Pty) Ltd",{"$f":"ROW()","v":149},null,null,{"$f":"VLOOKUP(F149,$C$2:$D$599,2,FALSE)","v":{"$error":"#N/A"}},{"$f":"IF(INDIRECT(\"c\" & (VLOOKUP(Rebalance!$D$26,$F$2:$G$48,2,FALSE)+ROW()-2))=Rebalance!$D$26,INDIRECT(\"a\" & (VLOOKUP(Rebalance!$D$26,$F$2:$G$48,2,FALSE)+ROW()-2)),\"\")","v":{"$error":"#N/A"}},{"$f":"IF(INDIRECT(\"c\" & (VLOOKUP(Rebalance!$D$27,$F$2:$G$48,2,FALSE)+ROW()-2))=Rebalance!$D$27,INDIRECT(\"a\" & (VLOOKUP(Rebalance!$D$27,$F$2:$G$48,2,FALSE)+ROW()-2)),\"\")","v":{"$error":"#N/A"}},{"$f":"IF(INDIRECT(\"c\" & (VLOOKUP(Rebalance!$D$28,$F$2:$G$48,2,FALSE)+ROW()-2))=Rebalance!$D$28,INDIRECT(\"a\" & (VLOOKUP(Rebalance!$D$28,$F$2:$G$48,2,FALSE)+ROW()-2)),\"\")","v":{"$error":"#N/A"}},{"$f":"IF(INDIRECT(\"c\" & (VLOOKUP(Rebalance!$D$29,$F$2:$G$48,2,FALSE)+ROW()-2))=Rebalance!$D$29,INDIRECT(\"a\" & (VLOOKUP(Rebalance!$D$29,$F$2:$G$48,2,FALSE)+ROW()-2)),\"\")","v":{"$error":"#N/A"}},{"$f":"IF(INDIRECT(\"c\" & (VLOOKUP(Rebalance!$D$30,$F$2:$G$48,2,FALSE)+ROW()-2))=Rebalance!$D$30,INDIRECT(\"a\" & (VLOOKUP(Rebalance!$D$30,$F$2:$G$48,2,FALSE)+ROW()-2)),\"\")","v":{"$error":"#N/A"}},{"$f":"IF(INDIRECT(\"c\" & (VLOOKUP(Rebalance!$D$31,$F$2:$G$48,2,FALSE)+ROW()-2))=Rebalance!$D$31,INDIRECT(\"a\" & (VLOOKUP(Rebalance!$D$31,$F$2:$G$48,2,FALSE)+ROW()-2)),\"\")","v":{"$error":"#N/A"}},{"$f":"IF(INDIRECT(\"c\" & (VLOOKUP(Rebalance!$D$32,$F$2:$G$48,2,FALSE)+ROW()-2))=Rebalance!$D$32,INDIRECT(\"a\" & (VLOOKUP(Rebalance!$D$32,$F$2:$G$48,2,FALSE)+ROW()-2)),\"\")","v":{"$error":"#N/A"}},{"$f":"IF(INDIRECT(\"c\" & (VLOOKUP(Rebalance!$D$33,$F$2:$G$48,2,FALSE)+ROW()-2))=Rebalance!$D$33,INDIRECT(\"a\" & (VLOOKUP(Rebalance!$D$33,$F$2:$G$48,2,FALSE)+ROW()-2)),\"\")","v":{"$error":"#N/A"}},{"$f":"IF(INDIRECT(\"c\" & (VLOOKUP(Rebalance!$D$34,$F$2:$G$48,2,FALSE)+ROW()-2))=Rebalance!$D$34,INDIRECT(\"a\" & (VLOOKUP(Rebalance!$D$34,$F$2:$G$48,2,FALSE)+ROW()-2)),\"\")","v":{"$error":"#N/A"}},{"$f":"IF(INDIRECT(\"c\" & (VLOOKUP(Rebalance!$D$35,$F$2:$G$48,2,FALSE)+ROW()-2))=Rebalance!$D$35,INDIRECT(\"a\" & (VLOOKUP(Rebalance!$D$35,$F$2:$G$48,2,FALSE)+ROW()-2)),\"\")","v":{"$error":"#N/A"}},{"$f":"IF(INDIRECT(\"c\" & (VLOOKUP(Rebalance!$D$36,$F$2:$G$48,2,FALSE)+ROW()-2))=Rebalance!$D$36,INDIRECT(\"a\" & (VLOOKUP(Rebalance!$D$36,$F$2:$G$48,2,FALSE)+ROW()-2)),\"\")","v":{"$error":"#N/A"}},{"$f":"IF(INDIRECT(\"c\" & (VLOOKUP(Rebalance!$D$37,$F$2:$G$48,2,FALSE)+ROW()-2))=Rebalance!$D$37,INDIRECT(\"a\" & (VLOOKUP(Rebalance!$D$37,$F$2:$G$48,2,FALSE)+ROW()-2)),\"\")","v":{"$error":"#N/A"}},{"$f":"IF(INDIRECT(\"c\" & (VLOOKUP(Rebalance!$D$38,$F$2:$G$48,2,FALSE)+ROW()-2))=Rebalance!$D$38,INDIRECT(\"a\" & (VLOOKUP(Rebalance!$D$38,$F$2:$G$48,2,FALSE)+ROW()-2)),\"\")","v":{"$error":"#N/A"}},{"$f":"IF(INDIRECT(\"c\" & (VLOOKUP(Rebalance!$D$39,$F$2:$G$48,2,FALSE)+ROW()-2))=Rebalance!$D$39,INDIRECT(\"a\" & (VLOOKUP(Rebalance!$D$39,$F$2:$G$48,2,FALSE)+ROW()-2)),\"\")","v":{"$error":"#N/A"}},{"$f":"IF(INDIRECT(\"c\" & (VLOOKUP(Rebalance!$D$40,$F$2:$G$48,2,FALSE)+ROW()-2))=Rebalance!$D$40,INDIRECT(\"a\" & (VLOOKUP(Rebalance!$D$40,$F$2:$G$48,2,FALSE)+ROW()-2)),\"\")","v":{"$error":"#N/A"}},{"$f":"IF(INDIRECT(\"c\" & (VLOOKUP(Rebalance!$D$52,$F$2:$G$48,2,FALSE)+ROW()-2))=Rebalance!$D$52,INDIRECT(\"a\" & (VLOOKUP(Rebalance!$D$52,$F$2:$G$48,2,FALSE)+ROW()-2)),\"\")","v":{"$error":"#N/A"}},{"$f":"IF(INDIRECT(\"c\" & (VLOOKUP(Rebalance!$D$53,$F$2:$G$48,2,FALSE)+ROW()-2))=Rebalance!$D$53,INDIRECT(\"a\" & (VLOOKUP(Rebalance!$D$53,$F$2:$G$48,2,FALSE)+ROW()-2)),\"\")","v":{"$error":"#N/A"}},{"$f":"IF(INDIRECT(\"c\" & (VLOOKUP(Rebalance!$D$54,$F$2:$G$48,2,FALSE)+ROW()-2))=Rebalance!$D$54,INDIRECT(\"a\" & (VLOOKUP(Rebalance!$D$54,$F$2:$G$48,2,FALSE)+ROW()-2)),\"\")","v":{"$error":"#N/A"}},{"$f":"IF(INDIRECT(\"c\" & (VLOOKUP(Rebalance!$D$55,$F$2:$G$48,2,FALSE)+ROW()-2))=Rebalance!$D$55,INDIRECT(\"a\" & (VLOOKUP(Rebalance!$D$55,$F$2:$G$48,2,FALSE)+ROW()-2)),\"\")","v":{"$error":"#N/A"}},{"$f":"IF(INDIRECT(\"c\" & (VLOOKUP(Rebalance!$D$56,$F$2:$G$48,2,FALSE)+ROW()-2))=Rebalance!$D$56,INDIRECT(\"a\" & (VLOOKUP(Rebalance!$D$56,$F$2:$G$48,2,FALSE)+ROW()-2)),\"\")","v":{"$error":"#N/A"}},{"$f":"IF(INDIRECT(\"c\" & (VLOOKUP(Rebalance!$D$57,$F$2:$G$48,2,FALSE)+ROW()-2))=Rebalance!$D$57,INDIRECT(\"a\" & (VLOOKUP(Rebalance!$D$57,$F$2:$G$48,2,FALSE)+ROW()-2)),\"\")","v":{"$error":"#N/A"}},{"$f":"IF(INDIRECT(\"c\" & (VLOOKUP(Rebalance!$D$58,$F$2:$G$48,2,FALSE)+ROW()-2))=Rebalance!$D$58,INDIRECT(\"a\" & (VLOOKUP(Rebalance!$D$58,$F$2:$G$48,2,FALSE)+ROW()-2)),\"\")","v":{"$error":"#N/A"}},{"$f":"IF(INDIRECT(\"c\" & (VLOOKUP(Rebalance!$D$59,$F$2:$G$48,2,FALSE)+ROW()-2))=Rebalance!$D$59,INDIRECT(\"a\" & (VLOOKUP(Rebalance!$D$59,$F$2:$G$48,2,FALSE)+ROW()-2)),\"\")","v":{"$error":"#N/A"}},{"$f":"IF(INDIRECT(\"c\" & (VLOOKUP(Rebalance!$D$60,$F$2:$G$48,2,FALSE)+ROW()-2))=Rebalance!$D$60,INDIRECT(\"a\" & (VLOOKUP(Rebalance!$D$60,$F$2:$G$48,2,FALSE)+ROW()-2)),\"\")","v":{"$error":"#N/A"}},{"$f":"IF(INDIRECT(\"c\" & (VLOOKUP(Rebalance!$D$61,$F$2:$G$48,2,FALSE)+ROW()-2))=Rebalance!$D$61,INDIRECT(\"a\" & (VLOOKUP(Rebalance!$D$61,$F$2:$G$48,2,FALSE)+ROW()-2)),\"\")","v":{"$error":"#N/A"}},{"$f":"IF(INDIRECT(\"c\" & (VLOOKUP(Rebalance!$D$62,$F$2:$G$48,2,FALSE)+ROW()-2))=Rebalance!$D$62,INDIRECT(\"a\" & (VLOOKUP(Rebalance!$D$62,$F$2:$G$48,2,FALSE)+ROW()-2)),\"\")","v":{"$error":"#N/A"}},{"$f":"IF(INDIRECT(\"c\" & (VLOOKUP(Rebalance!$D$63,$F$2:$G$48,2,FALSE)+ROW()-2))=Rebalance!$D$63,INDIRECT(\"a\" & (VLOOKUP(Rebalance!$D$63,$F$2:$G$48,2,FALSE)+ROW()-2)),\"\")","v":{"$error":"#N/A"}},{"$f":"IF(INDIRECT(\"c\" & (VLOOKUP(Rebalance!$D$64,$F$2:$G$48,2,FALSE)+ROW()-2))=Rebalance!$D$64,INDIRECT(\"a\" & (VLOOKUP(Rebalance!$D$64,$F$2:$G$48,2,FALSE)+ROW()-2)),\"\")","v":{"$error":"#N/A"}},{"$f":"IF(INDIRECT(\"c\" & (VLOOKUP(Rebalance!$D$65,$F$2:$G$48,2,FALSE)+ROW()-2))=Rebalance!$D$65,INDIRECT(\"a\" & (VLOOKUP(Rebalance!$D$65,$F$2:$G$48,2,FALSE)+ROW()-2)),\"\")","v":{"$error":"#N/A"}},{"$f":"IF(INDIRECT(\"c\" & (VLOOKUP(Rebalance!$D$66,$F$2:$G$48,2,FALSE)+ROW()-2))=Rebalance!$D$66,INDIRECT(\"a\" & (VLOOKUP(Rebalance!$D$66,$F$2:$G$48,2,FALSE)+ROW()-2)),\"\")","v":{"$error":"#N/A"}}]
["Platinum Flexible Growth FOF","MPFG","Boutique Collective Investments (Pty) Ltd",{"$f":"ROW()","v":150},null,null,{"$f":"VLOOKUP(F150,$C$2:$D$599,2,FALSE)","v":{"$error":"#N/A"}},{"$f":"IF(INDIRECT(\"c\" & (VLOOKUP(Rebalance!$D$26,$F$2:$G$48,2,FALSE)+ROW()-2))=Rebalance!$D$26,INDIRECT(\"a\" & (VLOOKUP(Rebalance!$D$26,$F$2:$G$48,2,FALSE)+ROW()-2)),\"\")","v":{"$error":"#N/A"}},{"$f":"IF(INDIRECT(\"c\" & (VLOOKUP(Rebalance!$D$27,$F$2:$G$48,2,FALSE)+ROW()-2))=Rebalance!$D$27,INDIRECT(\"a\" & (VLOOKUP(Rebalance!$D$27,$F$2:$G$48,2,FALSE)+ROW()-2)),\"\")","v":{"$error":"#N/A"}},{"$f":"IF(INDIRECT(\"c\" & (VLOOKUP(Rebalance!$D$28,$F$2:$G$48,2,FALSE)+ROW()-2))=Rebalance!$D$28,INDIRECT(\"a\" & (VLOOKUP(Rebalance!$D$28,$F$2:$G$48,2,FALSE)+ROW()-2)),\"\")","v":{"$error":"#N/A"}},{"$f":"IF(INDIRECT(\"c\" & (VLOOKUP(Rebalance!$D$29,$F$2:$G$48,2,FALSE)+ROW()-2))=Rebalance!$D$29,INDIRECT(\"a\" & (VLOOKUP(Rebalance!$D$29,$F$2:$G$48,2,FALSE)+ROW()-2)),\"\")","v":{"$error":"#N/A"}},{"$f":"IF(INDIRECT(\"c\" & (VLOOKUP(Rebalance!$D$30,$F$2:$G$48,2,FALSE)+ROW()-2))=Rebalance!$D$30,INDIRECT(\"a\" & (VLOOKUP(Rebalance!$D$30,$F$2:$G$48,2,FALSE)+ROW()-2)),\"\")","v":{"$error":"#N/A"}},{"$f":"IF(INDIRECT(\"c\" & (VLOOKUP(Rebalance!$D$31,$F$2:$G$48,2,FALSE)+ROW()-2))=Rebalance!$D$31,INDIRECT(\"a\" & (VLOOKUP(Rebalance!$D$31,$F$2:$G$48,2,FALSE)+ROW()-2)),\"\")","v":{"$error":"#N/A"}},{"$f":"IF(INDIRECT(\"c\" & (VLOOKUP(Rebalance!$D$32,$F$2:$G$48,2,FALSE)+ROW()-2))=Rebalance!$D$32,INDIRECT(\"a\" & (VLOOKUP(Rebalance!$D$32,$F$2:$G$48,2,FALSE)+ROW()-2)),\"\")","v":{"$error":"#N/A"}},{"$f":"IF(INDIRECT(\"c\" & (VLOOKUP(Rebalance!$D$33,$F$2:$G$48,2,FALSE)+ROW()-2))=Rebalance!$D$33,INDIRECT(\"a\" & (VLOOKUP(Rebalance!$D$33,$F$2:$G$48,2,FALSE)+ROW()-2)),\"\")","v":{"$error":"#N/A"}},{"$f":"IF(INDIRECT(\"c\" & (VLOOKUP(Rebalance!$D$34,$F$2:$G$48,2,FALSE)+ROW()-2))=Rebalance!$D$34,INDIRECT(\"a\" & (VLOOKUP(Rebalance!$D$34,$F$2:$G$48,2,FALSE)+ROW()-2)),\"\")","v":{"$error":"#N/A"}},{"$f":"IF(INDIRECT(\"c\" & (VLOOKUP(Rebalance!$D$35,$F$2:$G$48,2,FALSE)+ROW()-2))=Rebalance!$D$35,INDIRECT(\"a\" & (VLOOKUP(Rebalance!$D$35,$F$2:$G$48,2,FALSE)+ROW()-2)),\"\")","v":{"$error":"#N/A"}},{"$f":"IF(INDIRECT(\"c\" & (VLOOKUP(Rebalance!$D$36,$F$2:$G$48,2,FALSE)+ROW()-2))=Rebalance!$D$36,INDIRECT(\"a\" & (VLOOKUP(Rebalance!$D$36,$F$2:$G$48,2,FALSE)+ROW()-2)),\"\")","v":{"$error":"#N/A"}},{"$f":"IF(INDIRECT(\"c\" & (VLOOKUP(Rebalance!$D$37,$F$2:$G$48,2,FALSE)+ROW()-2))=Rebalance!$D$37,INDIRECT(\"a\" & (VLOOKUP(Rebalance!$D$37,$F$2:$G$48,2,FALSE)+ROW()-2)),\"\")","v":{"$error":"#N/A"}},{"$f":"IF(INDIRECT(\"c\" & (VLOOKUP(Rebalance!$D$38,$F$2:$G$48,2,FALSE)+ROW()-2))=Rebalance!$D$38,INDIRECT(\"a\" & (VLOOKUP(Rebalance!$D$38,$F$2:$G$48,2,FALSE)+ROW()-2)),\"\")","v":{"$error":"#N/A"}},{"$f":"IF(INDIRECT(\"c\" & (VLOOKUP(Rebalance!$D$39,$F$2:$G$48,2,FALSE)+ROW()-2))=Rebalance!$D$39,INDIRECT(\"a\" & (VLOOKUP(Rebalance!$D$39,$F$2:$G$48,2,FALSE)+ROW()-2)),\"\")","v":{"$error":"#N/A"}},{"$f":"IF(INDIRECT(\"c\" & (VLOOKUP(Rebalance!$D$40,$F$2:$G$48,2,FALSE)+ROW()-2))=Rebalance!$D$40,INDIRECT(\"a\" & (VLOOKUP(Rebalance!$D$40,$F$2:$G$48,2,FALSE)+ROW()-2)),\"\")","v":{"$error":"#N/A"}},{"$f":"IF(INDIRECT(\"c\" & (VLOOKUP(Rebalance!$D$52,$F$2:$G$48,2,FALSE)+ROW()-2))=Rebalance!$D$52,INDIRECT(\"a\" & (VLOOKUP(Rebalance!$D$52,$F$2:$G$48,2,FALSE)+ROW()-2)),\"\")","v":{"$error":"#N/A"}},{"$f":"IF(INDIRECT(\"c\" & (VLOOKUP(Rebalance!$D$53,$F$2:$G$48,2,FALSE)+ROW()-2))=Rebalance!$D$53,INDIRECT(\"a\" & (VLOOKUP(Rebalance!$D$53,$F$2:$G$48,2,FALSE)+ROW()-2)),\"\")","v":{"$error":"#N/A"}},{"$f":"IF(INDIRECT(\"c\" & (VLOOKUP(Rebalance!$D$54,$F$2:$G$48,2,FALSE)+ROW()-2))=Rebalance!$D$54,INDIRECT(\"a\" & (VLOOKUP(Rebalance!$D$54,$F$2:$G$48,2,FALSE)+ROW()-2)),\"\")","v":{"$error":"#N/A"}},{"$f":"IF(INDIRECT(\"c\" & (VLOOKUP(Rebalance!$D$55,$F$2:$G$48,2,FALSE)+ROW()-2))=Rebalance!$D$55,INDIRECT(\"a\" & (VLOOKUP(Rebalance!$D$55,$F$2:$G$48,2,FALSE)+ROW()-2)),\"\")","v":{"$error":"#N/A"}},{"$f":"IF(INDIRECT(\"c\" & (VLOOKUP(Rebalance!$D$56,$F$2:$G$48,2,FALSE)+ROW()-2))=Rebalance!$D$56,INDIRECT(\"a\" & (VLOOKUP(Rebalance!$D$56,$F$2:$G$48,2,FALSE)+ROW()-2)),\"\")","v":{"$error":"#N/A"}},{"$f":"IF(INDIRECT(\"c\" & (VLOOKUP(Rebalance!$D$57,$F$2:$G$48,2,FALSE)+ROW()-2))=Rebalance!$D$57,INDIRECT(\"a\" & (VLOOKUP(Rebalance!$D$57,$F$2:$G$48,2,FALSE)+ROW()-2)),\"\")","v":{"$error":"#N/A"}},{"$f":"IF(INDIRECT(\"c\" & (VLOOKUP(Rebalance!$D$58,$F$2:$G$48,2,FALSE)+ROW()-2))=Rebalance!$D$58,INDIRECT(\"a\" & (VLOOKUP(Rebalance!$D$58,$F$2:$G$48,2,FALSE)+ROW()-2)),\"\")","v":{"$error":"#N/A"}},{"$f":"IF(INDIRECT(\"c\" & (VLOOKUP(Rebalance!$D$59,$F$2:$G$48,2,FALSE)+ROW()-2))=Rebalance!$D$59,INDIRECT(\"a\" & (VLOOKUP(Rebalance!$D$59,$F$2:$G$48,2,FALSE)+ROW()-2)),\"\")","v":{"$error":"#N/A"}},{"$f":"IF(INDIRECT(\"c\" & (VLOOKUP(Rebalance!$D$60,$F$2:$G$48,2,FALSE)+ROW()-2))=Rebalance!$D$60,INDIRECT(\"a\" & (VLOOKUP(Rebalance!$D$60,$F$2:$G$48,2,FALSE)+ROW()-2)),\"\")","v":{"$error":"#N/A"}},{"$f":"IF(INDIRECT(\"c\" & (VLOOKUP(Rebalance!$D$61,$F$2:$G$48,2,FALSE)+ROW()-2))=Rebalance!$D$61,INDIRECT(\"a\" & (VLOOKUP(Rebalance!$D$61,$F$2:$G$48,2,FALSE)+ROW()-2)),\"\")","v":{"$error":"#N/A"}},{"$f":"IF(INDIRECT(\"c\" & (VLOOKUP(Rebalance!$D$62,$F$2:$G$48,2,FALSE)+ROW()-2))=Rebalance!$D$62,INDIRECT(\"a\" & (VLOOKUP(Rebalance!$D$62,$F$2:$G$48,2,FALSE)+ROW()-2)),\"\")","v":{"$error":"#N/A"}},{"$f":"IF(INDIRECT(\"c\" & (VLOOKUP(Rebalance!$D$63,$F$2:$G$48,2,FALSE)+ROW()-2))=Rebalance!$D$63,INDIRECT(\"a\" & (VLOOKUP(Rebalance!$D$63,$F$2:$G$48,2,FALSE)+ROW()-2)),\"\")","v":{"$error":"#N/A"}},{"$f":"IF(INDIRECT(\"c\" & (VLOOKUP(Rebalance!$D$64,$F$2:$G$48,2,FALSE)+ROW()-2))=Rebalance!$D$64,INDIRECT(\"a\" & (VLOOKUP(Rebalance!$D$64,$F$2:$G$48,2,FALSE)+ROW()-2)),\"\")","v":{"$error":"#N/A"}},{"$f":"IF(INDIRECT(\"c\" & (VLOOKUP(Rebalance!$D$65,$F$2:$G$48,2,FALSE)+ROW()-2))=Rebalance!$D$65,INDIRECT(\"a\" & (VLOOKUP(Rebalance!$D$65,$F$2:$G$48,2,FALSE)+ROW()-2)),\"\")","v":{"$error":"#N/A"}},{"$f":"IF(INDIRECT(\"c\" & (VLOOKUP(Rebalance!$D$66,$F$2:$G$48,2,FALSE)+ROW()-2))=Rebalance!$D$66,INDIRECT(\"a\" & (VLOOKUP(Rebalance!$D$66,$F$2:$G$48,2,FALSE)+ROW()-2)),\"\")","v":{"$error":"#N/A"}}]
["Platinum Income Provider FOF","MPIP","Boutique Collective Investments (Pty) Ltd",{"$f":"ROW()","v":151},null,null,{"$f":"VLOOKUP(F151,$C$2:$D$599,2,FALSE)","v":{"$error":"#N/A"}},{"$f":"IF(INDIRECT(\"c\" & (VLOOKUP(Rebalance!$D$26,$F$2:$G$48,2,FALSE)+ROW()-2))=Rebalance!$D$26,INDIRECT(\"a\" & (VLOOKUP(Rebalance!$D$26,$F$2:$G$48,2,FALSE)+ROW()-2)),\"\")","v":{"$error":"#N/A"}},{"$f":"IF(INDIRECT(\"c\" & (VLOOKUP(Rebalance!$D$27,$F$2:$G$48,2,FALSE)+ROW()-2))=Rebalance!$D$27,INDIRECT(\"a\" & (VLOOKUP(Rebalance!$D$27,$F$2:$G$48,2,FALSE)+ROW()-2)),\"\")","v":{"$error":"#N/A"}},{"$f":"IF(INDIRECT(\"c\" & (VLOOKUP(Rebalance!$D$28,$F$2:$G$48,2,FALSE)+ROW()-2))=Rebalance!$D$28,INDIRECT(\"a\" & (VLOOKUP(Rebalance!$D$28,$F$2:$G$48,2,FALSE)+ROW()-2)),\"\")","v":{"$error":"#N/A"}},{"$f":"IF(INDIRECT(\"c\" & (VLOOKUP(Rebalance!$D$29,$F$2:$G$48,2,FALSE)+ROW()-2))=Rebalance!$D$29,INDIRECT(\"a\" & (VLOOKUP(Rebalance!$D$29,$F$2:$G$48,2,FALSE)+ROW()-2)),\"\")","v":{"$error":"#N/A"}},{"$f":"IF(INDIRECT(\"c\" & (VLOOKUP(Rebalance!$D$30,$F$2:$G$48,2,FALSE)+ROW()-2))=Rebalance!$D$30,INDIRECT(\"a\" & (VLOOKUP(Rebalance!$D$30,$F$2:$G$48,2,FALSE)+ROW()-2)),\"\")","v":{"$error":"#N/A"}},{"$f":"IF(INDIRECT(\"c\" & (VLOOKUP(Rebalance!$D$31,$F$2:$G$48,2,FALSE)+ROW()-2))=Rebalance!$D$31,INDIRECT(\"a\" & (VLOOKUP(Rebalance!$D$31,$F$2:$G$48,2,FALSE)+ROW()-2)),\"\")","v":{"$error":"#N/A"}},{"$f":"IF(INDIRECT(\"c\" & (VLOOKUP(Rebalance!$D$32,$F$2:$G$48,2,FALSE)+ROW()-2))=Rebalance!$D$32,INDIRECT(\"a\" & (VLOOKUP(Rebalance!$D$32,$F$2:$G$48,2,FALSE)+ROW()-2)),\"\")","v":{"$error":"#N/A"}},{"$f":"IF(INDIRECT(\"c\" & (VLOOKUP(Rebalance!$D$33,$F$2:$G$48,2,FALSE)+ROW()-2))=Rebalance!$D$33,INDIRECT(\"a\" & (VLOOKUP(Rebalance!$D$33,$F$2:$G$48,2,FALSE)+ROW()-2)),\"\")","v":{"$error":"#N/A"}},{"$f":"IF(INDIRECT(\"c\" & (VLOOKUP(Rebalance!$D$34,$F$2:$G$48,2,FALSE)+ROW()-2))=Rebalance!$D$34,INDIRECT(\"a\" & (VLOOKUP(Rebalance!$D$34,$F$2:$G$48,2,FALSE)+ROW()-2)),\"\")","v":{"$error":"#N/A"}},{"$f":"IF(INDIRECT(\"c\" & (VLOOKUP(Rebalance!$D$35,$F$2:$G$48,2,FALSE)+ROW()-2))=Rebalance!$D$35,INDIRECT(\"a\" & (VLOOKUP(Rebalance!$D$35,$F$2:$G$48,2,FALSE)+ROW()-2)),\"\")","v":{"$error":"#N/A"}},{"$f":"IF(INDIRECT(\"c\" & (VLOOKUP(Rebalance!$D$36,$F$2:$G$48,2,FALSE)+ROW()-2))=Rebalance!$D$36,INDIRECT(\"a\" & (VLOOKUP(Rebalance!$D$36,$F$2:$G$48,2,FALSE)+ROW()-2)),\"\")","v":{"$error":"#N/A"}},{"$f":"IF(INDIRECT(\"c\" & (VLOOKUP(Rebalance!$D$37,$F$2:$G$48,2,FALSE)+ROW()-2))=Rebalance!$D$37,INDIRECT(\"a\" & (VLOOKUP(Rebalance!$D$37,$F$2:$G$48,2,FALSE)+ROW()-2)),\"\")","v":{"$error":"#N/A"}},{"$f":"IF(INDIRECT(\"c\" & (VLOOKUP(Rebalance!$D$38,$F$2:$G$48,2,FALSE)+ROW()-2))=Rebalance!$D$38,INDIRECT(\"a\" & (VLOOKUP(Rebalance!$D$38,$F$2:$G$48,2,FALSE)+ROW()-2)),\"\")","v":{"$error":"#N/A"}},{"$f":"IF(INDIRECT(\"c\" & (VLOOKUP(Rebalance!$D$39,$F$2:$G$48,2,FALSE)+ROW()-2))=Rebalance!$D$39,INDIRECT(\"a\" & (VLOOKUP(Rebalance!$D$39,$F$2:$G$48,2,FALSE)+ROW()-2)),\"\")","v":{"$error":"#N/A"}},{"$f":"IF(INDIRECT(\"c\" & (VLOOKUP(Rebalance!$D$40,$F$2:$G$48,2,FALSE)+ROW()-2))=Rebalance!$D$40,INDIRECT(\"a\" & (VLOOKUP(Rebalance!$D$40,$F$2:$G$48,2,FALSE)+ROW()-2)),\"\")","v":{"$error":"#N/A"}},{"$f":"IF(INDIRECT(\"c\" & (VLOOKUP(Rebalance!$D$52,$F$2:$G$48,2,FALSE)+ROW()-2))=Rebalance!$D$52,INDIRECT(\"a\" & (VLOOKUP(Rebalance!$D$52,$F$2:$G$48,2,FALSE)+ROW()-2)),\"\")","v":{"$error":"#N/A"}},{"$f":"IF(INDIRECT(\"c\" & (VLOOKUP(Rebalance!$D$53,$F$2:$G$48,2,FALSE)+ROW()-2))=Rebalance!$D$53,INDIRECT(\"a\" & (VLOOKUP(Rebalance!$D$53,$F$2:$G$48,2,FALSE)+ROW()-2)),\"\")","v":{"$error":"#N/A"}},{"$f":"IF(INDIRECT(\"c\" & (VLOOKUP(Rebalance!$D$54,$F$2:$G$48,2,FALSE)+ROW()-2))=Rebalance!$D$54,INDIRECT(\"a\" & (VLOOKUP(Rebalance!$D$54,$F$2:$G$48,2,FALSE)+ROW()-2)),\"\")","v":{"$error":"#N/A"}},{"$f":"IF(INDIRECT(\"c\" & (VLOOKUP(Rebalance!$D$55,$F$2:$G$48,2,FALSE)+ROW()-2))=Rebalance!$D$55,INDIRECT(\"a\" & (VLOOKUP(Rebalance!$D$55,$F$2:$G$48,2,FALSE)+ROW()-2)),\"\")","v":{"$error":"#N/A"}},{"$f":"IF(INDIRECT(\"c\" & (VLOOKUP(Rebalance!$D$56,$F$2:$G$48,2,FALSE)+ROW()-2))=Rebalance!$D$56,INDIRECT(\"a\" & (VLOOKUP(Rebalance!$D$56,$F$2:$G$48,2,FALSE)+ROW()-2)),\"\")","v":{"$error":"#N/A"}},{"$f":"IF(INDIRECT(\"c\" & (VLOOKUP(Rebalance!$D$57,$F$2:$G$48,2,FALSE)+ROW()-2))=Rebalance!$D$57,INDIRECT(\"a\" & (VLOOKUP(Rebalance!$D$57,$F$2:$G$48,2,FALSE)+ROW()-2)),\"\")","v":{"$error":"#N/A"}},{"$f":"IF(INDIRECT(\"c\" & (VLOOKUP(Rebalance!$D$58,$F$2:$G$48,2,FALSE)+ROW()-2))=Rebalance!$D$58,INDIRECT(\"a\" & (VLOOKUP(Rebalance!$D$58,$F$2:$G$48,2,FALSE)+ROW()-2)),\"\")","v":{"$error":"#N/A"}},{"$f":"IF(INDIRECT(\"c\" & (VLOOKUP(Rebalance!$D$59,$F$2:$G$48,2,FALSE)+ROW()-2))=Rebalance!$D$59,INDIRECT(\"a\" & (VLOOKUP(Rebalance!$D$59,$F$2:$G$48,2,FALSE)+ROW()-2)),\"\")","v":{"$error":"#N/A"}},{"$f":"IF(INDIRECT(\"c\" & (VLOOKUP(Rebalance!$D$60,$F$2:$G$48,2,FALSE)+ROW()-2))=Rebalance!$D$60,INDIRECT(\"a\" & (VLOOKUP(Rebalance!$D$60,$F$2:$G$48,2,FALSE)+ROW()-2)),\"\")","v":{"$error":"#N/A"}},{"$f":"IF(INDIRECT(\"c\" & (VLOOKUP(Rebalance!$D$61,$F$2:$G$48,2,FALSE)+ROW()-2))=Rebalance!$D$61,INDIRECT(\"a\" & (VLOOKUP(Rebalance!$D$61,$F$2:$G$48,2,FALSE)+ROW()-2)),\"\")","v":{"$error":"#N/A"}},{"$f":"IF(INDIRECT(\"c\" & (VLOOKUP(Rebalance!$D$62,$F$2:$G$48,2,FALSE)+ROW()-2))=Rebalance!$D$62,INDIRECT(\"a\" & (VLOOKUP(Rebalance!$D$62,$F$2:$G$48,2,FALSE)+ROW()-2)),\"\")","v":{"$error":"#N/A"}},{"$f":"IF(INDIRECT(\"c\" & (VLOOKUP(Rebalance!$D$63,$F$2:$G$48,2,FALSE)+ROW()-2))=Rebalance!$D$63,INDIRECT(\"a\" & (VLOOKUP(Rebalance!$D$63,$F$2:$G$48,2,FALSE)+ROW()-2)),\"\")","v":{"$error":"#N/A"}},{"$f":"IF(INDIRECT(\"c\" & (VLOOKUP(Rebalance!$D$64,$F$2:$G$48,2,FALSE)+ROW()-2))=Rebalance!$D$64,INDIRECT(\"a\" & (VLOOKUP(Rebalance!$D$64,$F$2:$G$48,2,FALSE)+ROW()-2)),\"\")","v":{"$error":"#N/A"}},{"$f":"IF(INDIRECT(\"c\" & (VLOOKUP(Rebalance!$D$65,$F$2:$G$48,2,FALSE)+ROW()-2))=Rebalance!$D$65,INDIRECT(\"a\" & (VLOOKUP(Rebalance!$D$65,$F$2:$G$48,2,FALSE)+ROW()-2)),\"\")","v":{"$error":"#N/A"}},{"$f":"IF(INDIRECT(\"c\" & (VLOOKUP(Rebalance!$D$66,$F$2:$G$48,2,FALSE)+ROW()-2))=Rebalance!$D$66,INDIRECT(\"a\" & (VLOOKUP(Rebalance!$D$66,$F$2:$G$48,2,FALSE)+ROW()-2)),\"\")","v":{"$error":"#N/A"}}]
["Plexus Wealth BCI Balannced Fund A","MXBA","Boutique Collective Investments (Pty) Ltd",{"$f":"ROW()","v":152},null,null,{"$f":"VLOOKUP(F152,$C$2:$D$599,2,FALSE)","v":{"$error":"#N/A"}},{"$f":"IF(INDIRECT(\"c\" & (VLOOKUP(Rebalance!$D$26,$F$2:$G$48,2,FALSE)+ROW()-2))=Rebalance!$D$26,INDIRECT(\"a\" & (VLOOKUP(Rebalance!$D$26,$F$2:$G$48,2,FALSE)+ROW()-2)),\"\")","v":{"$error":"#N/A"}},{"$f":"IF(INDIRECT(\"c\" & (VLOOKUP(Rebalance!$D$27,$F$2:$G$48,2,FALSE)+ROW()-2))=Rebalance!$D$27,INDIRECT(\"a\" & (VLOOKUP(Rebalance!$D$27,$F$2:$G$48,2,FALSE)+ROW()-2)),\"\")","v":{"$error":"#N/A"}},{"$f":"IF(INDIRECT(\"c\" & (VLOOKUP(Rebalance!$D$28,$F$2:$G$48,2,FALSE)+ROW()-2))=Rebalance!$D$28,INDIRECT(\"a\" & (VLOOKUP(Rebalance!$D$28,$F$2:$G$48,2,FALSE)+ROW()-2)),\"\")","v":{"$error":"#N/A"}},{"$f":"IF(INDIRECT(\"c\" & (VLOOKUP(Rebalance!$D$29,$F$2:$G$48,2,FALSE)+ROW()-2))=Rebalance!$D$29,INDIRECT(\"a\" & (VLOOKUP(Rebalance!$D$29,$F$2:$G$48,2,FALSE)+ROW()-2)),\"\")","v":{"$error":"#N/A"}},{"$f":"IF(INDIRECT(\"c\" & (VLOOKUP(Rebalance!$D$30,$F$2:$G$48,2,FALSE)+ROW()-2))=Rebalance!$D$30,INDIRECT(\"a\" & (VLOOKUP(Rebalance!$D$30,$F$2:$G$48,2,FALSE)+ROW()-2)),\"\")","v":{"$error":"#N/A"}},{"$f":"IF(INDIRECT(\"c\" & (VLOOKUP(Rebalance!$D$31,$F$2:$G$48,2,FALSE)+ROW()-2))=Rebalance!$D$31,INDIRECT(\"a\" & (VLOOKUP(Rebalance!$D$31,$F$2:$G$48,2,FALSE)+ROW()-2)),\"\")","v":{"$error":"#N/A"}},{"$f":"IF(INDIRECT(\"c\" & (VLOOKUP(Rebalance!$D$32,$F$2:$G$48,2,FALSE)+ROW()-2))=Rebalance!$D$32,INDIRECT(\"a\" & (VLOOKUP(Rebalance!$D$32,$F$2:$G$48,2,FALSE)+ROW()-2)),\"\")","v":{"$error":"#N/A"}},{"$f":"IF(INDIRECT(\"c\" & (VLOOKUP(Rebalance!$D$33,$F$2:$G$48,2,FALSE)+ROW()-2))=Rebalance!$D$33,INDIRECT(\"a\" & (VLOOKUP(Rebalance!$D$33,$F$2:$G$48,2,FALSE)+ROW()-2)),\"\")","v":{"$error":"#N/A"}},{"$f":"IF(INDIRECT(\"c\" & (VLOOKUP(Rebalance!$D$34,$F$2:$G$48,2,FALSE)+ROW()-2))=Rebalance!$D$34,INDIRECT(\"a\" & (VLOOKUP(Rebalance!$D$34,$F$2:$G$48,2,FALSE)+ROW()-2)),\"\")","v":{"$error":"#N/A"}},{"$f":"IF(INDIRECT(\"c\" & (VLOOKUP(Rebalance!$D$35,$F$2:$G$48,2,FALSE)+ROW()-2))=Rebalance!$D$35,INDIRECT(\"a\" & (VLOOKUP(Rebalance!$D$35,$F$2:$G$48,2,FALSE)+ROW()-2)),\"\")","v":{"$error":"#N/A"}},{"$f":"IF(INDIRECT(\"c\" & (VLOOKUP(Rebalance!$D$36,$F$2:$G$48,2,FALSE)+ROW()-2))=Rebalance!$D$36,INDIRECT(\"a\" & (VLOOKUP(Rebalance!$D$36,$F$2:$G$48,2,FALSE)+ROW()-2)),\"\")","v":{"$error":"#N/A"}},{"$f":"IF(INDIRECT(\"c\" & (VLOOKUP(Rebalance!$D$37,$F$2:$G$48,2,FALSE)+ROW()-2))=Rebalance!$D$37,INDIRECT(\"a\" & (VLOOKUP(Rebalance!$D$37,$F$2:$G$48,2,FALSE)+ROW()-2)),\"\")","v":{"$error":"#N/A"}},{"$f":"IF(INDIRECT(\"c\" & (VLOOKUP(Rebalance!$D$38,$F$2:$G$48,2,FALSE)+ROW()-2))=Rebalance!$D$38,INDIRECT(\"a\" & (VLOOKUP(Rebalance!$D$38,$F$2:$G$48,2,FALSE)+ROW()-2)),\"\")","v":{"$error":"#N/A"}},{"$f":"IF(INDIRECT(\"c\" & (VLOOKUP(Rebalance!$D$39,$F$2:$G$48,2,FALSE)+ROW()-2))=Rebalance!$D$39,INDIRECT(\"a\" & (VLOOKUP(Rebalance!$D$39,$F$2:$G$48,2,FALSE)+ROW()-2)),\"\")","v":{"$error":"#N/A"}},{"$f":"IF(INDIRECT(\"c\" & (VLOOKUP(Rebalance!$D$40,$F$2:$G$48,2,FALSE)+ROW()-2))=Rebalance!$D$40,INDIRECT(\"a\" & (VLOOKUP(Rebalance!$D$40,$F$2:$G$48,2,FALSE)+ROW()-2)),\"\")","v":{"$error":"#N/A"}},{"$f":"IF(INDIRECT(\"c\" & (VLOOKUP(Rebalance!$D$52,$F$2:$G$48,2,FALSE)+ROW()-2))=Rebalance!$D$52,INDIRECT(\"a\" & (VLOOKUP(Rebalance!$D$52,$F$2:$G$48,2,FALSE)+ROW()-2)),\"\")","v":{"$error":"#N/A"}},{"$f":"IF(INDIRECT(\"c\" & (VLOOKUP(Rebalance!$D$53,$F$2:$G$48,2,FALSE)+ROW()-2))=Rebalance!$D$53,INDIRECT(\"a\" & (VLOOKUP(Rebalance!$D$53,$F$2:$G$48,2,FALSE)+ROW()-2)),\"\")","v":{"$error":"#N/A"}},{"$f":"IF(INDIRECT(\"c\" & (VLOOKUP(Rebalance!$D$54,$F$2:$G$48,2,FALSE)+ROW()-2))=Rebalance!$D$54,INDIRECT(\"a\" & (VLOOKUP(Rebalance!$D$54,$F$2:$G$48,2,FALSE)+ROW()-2)),\"\")","v":{"$error":"#N/A"}},{"$f":"IF(INDIRECT(\"c\" & (VLOOKUP(Rebalance!$D$55,$F$2:$G$48,2,FALSE)+ROW()-2))=Rebalance!$D$55,INDIRECT(\"a\" & (VLOOKUP(Rebalance!$D$55,$F$2:$G$48,2,FALSE)+ROW()-2)),\"\")","v":{"$error":"#N/A"}},{"$f":"IF(INDIRECT(\"c\" & (VLOOKUP(Rebalance!$D$56,$F$2:$G$48,2,FALSE)+ROW()-2))=Rebalance!$D$56,INDIRECT(\"a\" & (VLOOKUP(Rebalance!$D$56,$F$2:$G$48,2,FALSE)+ROW()-2)),\"\")","v":{"$error":"#N/A"}},{"$f":"IF(INDIRECT(\"c\" & (VLOOKUP(Rebalance!$D$57,$F$2:$G$48,2,FALSE)+ROW()-2))=Rebalance!$D$57,INDIRECT(\"a\" & (VLOOKUP(Rebalance!$D$57,$F$2:$G$48,2,FALSE)+ROW()-2)),\"\")","v":{"$error":"#N/A"}},{"$f":"IF(INDIRECT(\"c\" & (VLOOKUP(Rebalance!$D$58,$F$2:$G$48,2,FALSE)+ROW()-2))=Rebalance!$D$58,INDIRECT(\"a\" & (VLOOKUP(Rebalance!$D$58,$F$2:$G$48,2,FALSE)+ROW()-2)),\"\")","v":{"$error":"#N/A"}},{"$f":"IF(INDIRECT(\"c\" & (VLOOKUP(Rebalance!$D$59,$F$2:$G$48,2,FALSE)+ROW()-2))=Rebalance!$D$59,INDIRECT(\"a\" & (VLOOKUP(Rebalance!$D$59,$F$2:$G$48,2,FALSE)+ROW()-2)),\"\")","v":{"$error":"#N/A"}},{"$f":"IF(INDIRECT(\"c\" & (VLOOKUP(Rebalance!$D$60,$F$2:$G$48,2,FALSE)+ROW()-2))=Rebalance!$D$60,INDIRECT(\"a\" & (VLOOKUP(Rebalance!$D$60,$F$2:$G$48,2,FALSE)+ROW()-2)),\"\")","v":{"$error":"#N/A"}},{"$f":"IF(INDIRECT(\"c\" & (VLOOKUP(Rebalance!$D$61,$F$2:$G$48,2,FALSE)+ROW()-2))=Rebalance!$D$61,INDIRECT(\"a\" & (VLOOKUP(Rebalance!$D$61,$F$2:$G$48,2,FALSE)+ROW()-2)),\"\")","v":{"$error":"#N/A"}},{"$f":"IF(INDIRECT(\"c\" & (VLOOKUP(Rebalance!$D$62,$F$2:$G$48,2,FALSE)+ROW()-2))=Rebalance!$D$62,INDIRECT(\"a\" & (VLOOKUP(Rebalance!$D$62,$F$2:$G$48,2,FALSE)+ROW()-2)),\"\")","v":{"$error":"#N/A"}},{"$f":"IF(INDIRECT(\"c\" & (VLOOKUP(Rebalance!$D$63,$F$2:$G$48,2,FALSE)+ROW()-2))=Rebalance!$D$63,INDIRECT(\"a\" & (VLOOKUP(Rebalance!$D$63,$F$2:$G$48,2,FALSE)+ROW()-2)),\"\")","v":{"$error":"#N/A"}},{"$f":"IF(INDIRECT(\"c\" & (VLOOKUP(Rebalance!$D$64,$F$2:$G$48,2,FALSE)+ROW()-2))=Rebalance!$D$64,INDIRECT(\"a\" & (VLOOKUP(Rebalance!$D$64,$F$2:$G$48,2,FALSE)+ROW()-2)),\"\")","v":{"$error":"#N/A"}},{"$f":"IF(INDIRECT(\"c\" & (VLOOKUP(Rebalance!$D$65,$F$2:$G$48,2,FALSE)+ROW()-2))=Rebalance!$D$65,INDIRECT(\"a\" & (VLOOKUP(Rebalance!$D$65,$F$2:$G$48,2,FALSE)+ROW()-2)),\"\")","v":{"$error":"#N/A"}},{"$f":"IF(INDIRECT(\"c\" & (VLOOKUP(Rebalance!$D$66,$F$2:$G$48,2,FALSE)+ROW()-2))=Rebalance!$D$66,INDIRECT(\"a\" & (VLOOKUP(Rebalance!$D$66,$F$2:$G$48,2,FALSE)+ROW()-2)),\"\")","v":{"$error":"#N/A"}}]
["Plexus Wealth BCI Conservative Fund A","MXCO","Boutique Collective Investments (Pty) Ltd",{"$f":"ROW()","v":153},null,null,{"$f":"VLOOKUP(F153,$C$2:$D$599,2,FALSE)","v":{"$error":"#N/A"}},{"$f":"IF(INDIRECT(\"c\" & (VLOOKUP(Rebalance!$D$26,$F$2:$G$48,2,FALSE)+ROW()-2))=Rebalance!$D$26,INDIRECT(\"a\" & (VLOOKUP(Rebalance!$D$26,$F$2:$G$48,2,FALSE)+ROW()-2)),\"\")","v":{"$error":"#N/A"}},{"$f":"IF(INDIRECT(\"c\" & (VLOOKUP(Rebalance!$D$27,$F$2:$G$48,2,FALSE)+ROW()-2))=Rebalance!$D$27,INDIRECT(\"a\" & (VLOOKUP(Rebalance!$D$27,$F$2:$G$48,2,FALSE)+ROW()-2)),\"\")","v":{"$error":"#N/A"}},{"$f":"IF(INDIRECT(\"c\" & (VLOOKUP(Rebalance!$D$28,$F$2:$G$48,2,FALSE)+ROW()-2))=Rebalance!$D$28,INDIRECT(\"a\" & (VLOOKUP(Rebalance!$D$28,$F$2:$G$48,2,FALSE)+ROW()-2)),\"\")","v":{"$error":"#N/A"}},{"$f":"IF(INDIRECT(\"c\" & (VLOOKUP(Rebalance!$D$29,$F$2:$G$48,2,FALSE)+ROW()-2))=Rebalance!$D$29,INDIRECT(\"a\" & (VLOOKUP(Rebalance!$D$29,$F$2:$G$48,2,FALSE)+ROW()-2)),\"\")","v":{"$error":"#N/A"}},{"$f":"IF(INDIRECT(\"c\" & (VLOOKUP(Rebalance!$D$30,$F$2:$G$48,2,FALSE)+ROW()-2))=Rebalance!$D$30,INDIRECT(\"a\" & (VLOOKUP(Rebalance!$D$30,$F$2:$G$48,2,FALSE)+ROW()-2)),\"\")","v":{"$error":"#N/A"}},{"$f":"IF(INDIRECT(\"c\" & (VLOOKUP(Rebalance!$D$31,$F$2:$G$48,2,FALSE)+ROW()-2))=Rebalance!$D$31,INDIRECT(\"a\" & (VLOOKUP(Rebalance!$D$31,$F$2:$G$48,2,FALSE)+ROW()-2)),\"\")","v":{"$error":"#N/A"}},{"$f":"IF(INDIRECT(\"c\" & (VLOOKUP(Rebalance!$D$32,$F$2:$G$48,2,FALSE)+ROW()-2))=Rebalance!$D$32,INDIRECT(\"a\" & (VLOOKUP(Rebalance!$D$32,$F$2:$G$48,2,FALSE)+ROW()-2)),\"\")","v":{"$error":"#N/A"}},{"$f":"IF(INDIRECT(\"c\" & (VLOOKUP(Rebalance!$D$33,$F$2:$G$48,2,FALSE)+ROW()-2))=Rebalance!$D$33,INDIRECT(\"a\" & (VLOOKUP(Rebalance!$D$33,$F$2:$G$48,2,FALSE)+ROW()-2)),\"\")","v":{"$error":"#N/A"}},{"$f":"IF(INDIRECT(\"c\" & (VLOOKUP(Rebalance!$D$34,$F$2:$G$48,2,FALSE)+ROW()-2))=Rebalance!$D$34,INDIRECT(\"a\" & (VLOOKUP(Rebalance!$D$34,$F$2:$G$48,2,FALSE)+ROW()-2)),\"\")","v":{"$error":"#N/A"}},{"$f":"IF(INDIRECT(\"c\" & (VLOOKUP(Rebalance!$D$35,$F$2:$G$48,2,FALSE)+ROW()-2))=Rebalance!$D$35,INDIRECT(\"a\" & (VLOOKUP(Rebalance!$D$35,$F$2:$G$48,2,FALSE)+ROW()-2)),\"\")","v":{"$error":"#N/A"}},{"$f":"IF(INDIRECT(\"c\" & (VLOOKUP(Rebalance!$D$36,$F$2:$G$48,2,FALSE)+ROW()-2))=Rebalance!$D$36,INDIRECT(\"a\" & (VLOOKUP(Rebalance!$D$36,$F$2:$G$48,2,FALSE)+ROW()-2)),\"\")","v":{"$error":"#N/A"}},{"$f":"IF(INDIRECT(\"c\" & (VLOOKUP(Rebalance!$D$37,$F$2:$G$48,2,FALSE)+ROW()-2))=Rebalance!$D$37,INDIRECT(\"a\" & (VLOOKUP(Rebalance!$D$37,$F$2:$G$48,2,FALSE)+ROW()-2)),\"\")","v":{"$error":"#N/A"}},{"$f":"IF(INDIRECT(\"c\" & (VLOOKUP(Rebalance!$D$38,$F$2:$G$48,2,FALSE)+ROW()-2))=Rebalance!$D$38,INDIRECT(\"a\" & (VLOOKUP(Rebalance!$D$38,$F$2:$G$48,2,FALSE)+ROW()-2)),\"\")","v":{"$error":"#N/A"}},{"$f":"IF(INDIRECT(\"c\" & (VLOOKUP(Rebalance!$D$39,$F$2:$G$48,2,FALSE)+ROW()-2))=Rebalance!$D$39,INDIRECT(\"a\" & (VLOOKUP(Rebalance!$D$39,$F$2:$G$48,2,FALSE)+ROW()-2)),\"\")","v":{"$error":"#N/A"}},{"$f":"IF(INDIRECT(\"c\" & (VLOOKUP(Rebalance!$D$40,$F$2:$G$48,2,FALSE)+ROW()-2))=Rebalance!$D$40,INDIRECT(\"a\" & (VLOOKUP(Rebalance!$D$40,$F$2:$G$48,2,FALSE)+ROW()-2)),\"\")","v":{"$error":"#N/A"}},{"$f":"IF(INDIRECT(\"c\" & (VLOOKUP(Rebalance!$D$52,$F$2:$G$48,2,FALSE)+ROW()-2))=Rebalance!$D$52,INDIRECT(\"a\" & (VLOOKUP(Rebalance!$D$52,$F$2:$G$48,2,FALSE)+ROW()-2)),\"\")","v":{"$error":"#N/A"}},{"$f":"IF(INDIRECT(\"c\" & (VLOOKUP(Rebalance!$D$53,$F$2:$G$48,2,FALSE)+ROW()-2))=Rebalance!$D$53,INDIRECT(\"a\" & (VLOOKUP(Rebalance!$D$53,$F$2:$G$48,2,FALSE)+ROW()-2)),\"\")","v":{"$error":"#N/A"}},{"$f":"IF(INDIRECT(\"c\" & (VLOOKUP(Rebalance!$D$54,$F$2:$G$48,2,FALSE)+ROW()-2))=Rebalance!$D$54,INDIRECT(\"a\" & (VLOOKUP(Rebalance!$D$54,$F$2:$G$48,2,FALSE)+ROW()-2)),\"\")","v":{"$error":"#N/A"}},{"$f":"IF(INDIRECT(\"c\" & (VLOOKUP(Rebalance!$D$55,$F$2:$G$48,2,FALSE)+ROW()-2))=Rebalance!$D$55,INDIRECT(\"a\" & (VLOOKUP(Rebalance!$D$55,$F$2:$G$48,2,FALSE)+ROW()-2)),\"\")","v":{"$error":"#N/A"}},{"$f":"IF(INDIRECT(\"c\" & (VLOOKUP(Rebalance!$D$56,$F$2:$G$48,2,FALSE)+ROW()-2))=Rebalance!$D$56,INDIRECT(\"a\" & (VLOOKUP(Rebalance!$D$56,$F$2:$G$48,2,FALSE)+ROW()-2)),\"\")","v":{"$error":"#N/A"}},{"$f":"IF(INDIRECT(\"c\" & (VLOOKUP(Rebalance!$D$57,$F$2:$G$48,2,FALSE)+ROW()-2))=Rebalance!$D$57,INDIRECT(\"a\" & (VLOOKUP(Rebalance!$D$57,$F$2:$G$48,2,FALSE)+ROW()-2)),\"\")","v":{"$error":"#N/A"}},{"$f":"IF(INDIRECT(\"c\" & (VLOOKUP(Rebalance!$D$58,$F$2:$G$48,2,FALSE)+ROW()-2))=Rebalance!$D$58,INDIRECT(\"a\" & (VLOOKUP(Rebalance!$D$58,$F$2:$G$48,2,FALSE)+ROW()-2)),\"\")","v":{"$error":"#N/A"}},{"$f":"IF(INDIRECT(\"c\" & (VLOOKUP(Rebalance!$D$59,$F$2:$G$48,2,FALSE)+ROW()-2))=Rebalance!$D$59,INDIRECT(\"a\" & (VLOOKUP(Rebalance!$D$59,$F$2:$G$48,2,FALSE)+ROW()-2)),\"\")","v":{"$error":"#N/A"}},{"$f":"IF(INDIRECT(\"c\" & (VLOOKUP(Rebalance!$D$60,$F$2:$G$48,2,FALSE)+ROW()-2))=Rebalance!$D$60,INDIRECT(\"a\" & (VLOOKUP(Rebalance!$D$60,$F$2:$G$48,2,FALSE)+ROW()-2)),\"\")","v":{"$error":"#N/A"}},{"$f":"IF(INDIRECT(\"c\" & (VLOOKUP(Rebalance!$D$61,$F$2:$G$48,2,FALSE)+ROW()-2))=Rebalance!$D$61,INDIRECT(\"a\" & (VLOOKUP(Rebalance!$D$61,$F$2:$G$48,2,FALSE)+ROW()-2)),\"\")","v":{"$error":"#N/A"}},{"$f":"IF(INDIRECT(\"c\" & (VLOOKUP(Rebalance!$D$62,$F$2:$G$48,2,FALSE)+ROW()-2))=Rebalance!$D$62,INDIRECT(\"a\" & (VLOOKUP(Rebalance!$D$62,$F$2:$G$48,2,FALSE)+ROW()-2)),\"\")","v":{"$error":"#N/A"}},{"$f":"IF(INDIRECT(\"c\" & (VLOOKUP(Rebalance!$D$63,$F$2:$G$48,2,FALSE)+ROW()-2))=Rebalance!$D$63,INDIRECT(\"a\" & (VLOOKUP(Rebalance!$D$63,$F$2:$G$48,2,FALSE)+ROW()-2)),\"\")","v":{"$error":"#N/A"}},{"$f":"IF(INDIRECT(\"c\" & (VLOOKUP(Rebalance!$D$64,$F$2:$G$48,2,FALSE)+ROW()-2))=Rebalance!$D$64,INDIRECT(\"a\" & (VLOOKUP(Rebalance!$D$64,$F$2:$G$48,2,FALSE)+ROW()-2)),\"\")","v":{"$error":"#N/A"}},{"$f":"IF(INDIRECT(\"c\" & (VLOOKUP(Rebalance!$D$65,$F$2:$G$48,2,FALSE)+ROW()-2))=Rebalance!$D$65,INDIRECT(\"a\" & (VLOOKUP(Rebalance!$D$65,$F$2:$G$48,2,FALSE)+ROW()-2)),\"\")","v":{"$error":"#N/A"}},{"$f":"IF(INDIRECT(\"c\" & (VLOOKUP(Rebalance!$D$66,$F$2:$G$48,2,FALSE)+ROW()-2))=Rebalance!$D$66,INDIRECT(\"a\" & (VLOOKUP(Rebalance!$D$66,$F$2:$G$48,2,FALSE)+ROW()-2)),\"\")","v":{"$error":"#N/A"}}]
["Plexus Wealth BCI Property Fund A","MXPR","Boutique Collective Investments (Pty) Ltd",{"$f":"ROW()","v":154},null,null,{"$f":"VLOOKUP(F154,$C$2:$D$599,2,FALSE)","v":{"$error":"#N/A"}},{"$f":"IF(INDIRECT(\"c\" & (VLOOKUP(Rebalance!$D$26,$F$2:$G$48,2,FALSE)+ROW()-2))=Rebalance!$D$26,INDIRECT(\"a\" & (VLOOKUP(Rebalance!$D$26,$F$2:$G$48,2,FALSE)+ROW()-2)),\"\")","v":{"$error":"#N/A"}},{"$f":"IF(INDIRECT(\"c\" & (VLOOKUP(Rebalance!$D$27,$F$2:$G$48,2,FALSE)+ROW()-2))=Rebalance!$D$27,INDIRECT(\"a\" & (VLOOKUP(Rebalance!$D$27,$F$2:$G$48,2,FALSE)+ROW()-2)),\"\")","v":{"$error":"#N/A"}},{"$f":"IF(INDIRECT(\"c\" & (VLOOKUP(Rebalance!$D$28,$F$2:$G$48,2,FALSE)+ROW()-2))=Rebalance!$D$28,INDIRECT(\"a\" & (VLOOKUP(Rebalance!$D$28,$F$2:$G$48,2,FALSE)+ROW()-2)),\"\")","v":{"$error":"#N/A"}},{"$f":"IF(INDIRECT(\"c\" & (VLOOKUP(Rebalance!$D$29,$F$2:$G$48,2,FALSE)+ROW()-2))=Rebalance!$D$29,INDIRECT(\"a\" & (VLOOKUP(Rebalance!$D$29,$F$2:$G$48,2,FALSE)+ROW()-2)),\"\")","v":{"$error":"#N/A"}},{"$f":"IF(INDIRECT(\"c\" & (VLOOKUP(Rebalance!$D$30,$F$2:$G$48,2,FALSE)+ROW()-2))=Rebalance!$D$30,INDIRECT(\"a\" & (VLOOKUP(Rebalance!$D$30,$F$2:$G$48,2,FALSE)+ROW()-2)),\"\")","v":{"$error":"#N/A"}},{"$f":"IF(INDIRECT(\"c\" & (VLOOKUP(Rebalance!$D$31,$F$2:$G$48,2,FALSE)+ROW()-2))=Rebalance!$D$31,INDIRECT(\"a\" & (VLOOKUP(Rebalance!$D$31,$F$2:$G$48,2,FALSE)+ROW()-2)),\"\")","v":{"$error":"#N/A"}},{"$f":"IF(INDIRECT(\"c\" & (VLOOKUP(Rebalance!$D$32,$F$2:$G$48,2,FALSE)+ROW()-2))=Rebalance!$D$32,INDIRECT(\"a\" & (VLOOKUP(Rebalance!$D$32,$F$2:$G$48,2,FALSE)+ROW()-2)),\"\")","v":{"$error":"#N/A"}},{"$f":"IF(INDIRECT(\"c\" & (VLOOKUP(Rebalance!$D$33,$F$2:$G$48,2,FALSE)+ROW()-2))=Rebalance!$D$33,INDIRECT(\"a\" & (VLOOKUP(Rebalance!$D$33,$F$2:$G$48,2,FALSE)+ROW()-2)),\"\")","v":{"$error":"#N/A"}},{"$f":"IF(INDIRECT(\"c\" & (VLOOKUP(Rebalance!$D$34,$F$2:$G$48,2,FALSE)+ROW()-2))=Rebalance!$D$34,INDIRECT(\"a\" & (VLOOKUP(Rebalance!$D$34,$F$2:$G$48,2,FALSE)+ROW()-2)),\"\")","v":{"$error":"#N/A"}},{"$f":"IF(INDIRECT(\"c\" & (VLOOKUP(Rebalance!$D$35,$F$2:$G$48,2,FALSE)+ROW()-2))=Rebalance!$D$35,INDIRECT(\"a\" & (VLOOKUP(Rebalance!$D$35,$F$2:$G$48,2,FALSE)+ROW()-2)),\"\")","v":{"$error":"#N/A"}},{"$f":"IF(INDIRECT(\"c\" & (VLOOKUP(Rebalance!$D$36,$F$2:$G$48,2,FALSE)+ROW()-2))=Rebalance!$D$36,INDIRECT(\"a\" & (VLOOKUP(Rebalance!$D$36,$F$2:$G$48,2,FALSE)+ROW()-2)),\"\")","v":{"$error":"#N/A"}},{"$f":"IF(INDIRECT(\"c\" & (VLOOKUP(Rebalance!$D$37,$F$2:$G$48,2,FALSE)+ROW()-2))=Rebalance!$D$37,INDIRECT(\"a\" & (VLOOKUP(Rebalance!$D$37,$F$2:$G$48,2,FALSE)+ROW()-2)),\"\")","v":{"$error":"#N/A"}},{"$f":"IF(INDIRECT(\"c\" & (VLOOKUP(Rebalance!$D$38,$F$2:$G$48,2,FALSE)+ROW()-2))=Rebalance!$D$38,INDIRECT(\"a\" & (VLOOKUP(Rebalance!$D$38,$F$2:$G$48,2,FALSE)+ROW()-2)),\"\")","v":{"$error":"#N/A"}},{"$f":"IF(INDIRECT(\"c\" & (VLOOKUP(Rebalance!$D$39,$F$2:$G$48,2,FALSE)+ROW()-2))=Rebalance!$D$39,INDIRECT(\"a\" & (VLOOKUP(Rebalance!$D$39,$F$2:$G$48,2,FALSE)+ROW()-2)),\"\")","v":{"$error":"#N/A"}},{"$f":"IF(INDIRECT(\"c\" & (VLOOKUP(Rebalance!$D$40,$F$2:$G$48,2,FALSE)+ROW()-2))=Rebalance!$D$40,INDIRECT(\"a\" & (VLOOKUP(Rebalance!$D$40,$F$2:$G$48,2,FALSE)+ROW()-2)),\"\")","v":{"$error":"#N/A"}},{"$f":"IF(INDIRECT(\"c\" & (VLOOKUP(Rebalance!$D$52,$F$2:$G$48,2,FALSE)+ROW()-2))=Rebalance!$D$52,INDIRECT(\"a\" & (VLOOKUP(Rebalance!$D$52,$F$2:$G$48,2,FALSE)+ROW()-2)),\"\")","v":{"$error":"#N/A"}},{"$f":"IF(INDIRECT(\"c\" & (VLOOKUP(Rebalance!$D$53,$F$2:$G$48,2,FALSE)+ROW()-2))=Rebalance!$D$53,INDIRECT(\"a\" & (VLOOKUP(Rebalance!$D$53,$F$2:$G$48,2,FALSE)+ROW()-2)),\"\")","v":{"$error":"#N/A"}},{"$f":"IF(INDIRECT(\"c\" & (VLOOKUP(Rebalance!$D$54,$F$2:$G$48,2,FALSE)+ROW()-2))=Rebalance!$D$54,INDIRECT(\"a\" & (VLOOKUP(Rebalance!$D$54,$F$2:$G$48,2,FALSE)+ROW()-2)),\"\")","v":{"$error":"#N/A"}},{"$f":"IF(INDIRECT(\"c\" & (VLOOKUP(Rebalance!$D$55,$F$2:$G$48,2,FALSE)+ROW()-2))=Rebalance!$D$55,INDIRECT(\"a\" & (VLOOKUP(Rebalance!$D$55,$F$2:$G$48,2,FALSE)+ROW()-2)),\"\")","v":{"$error":"#N/A"}},{"$f":"IF(INDIRECT(\"c\" & (VLOOKUP(Rebalance!$D$56,$F$2:$G$48,2,FALSE)+ROW()-2))=Rebalance!$D$56,INDIRECT(\"a\" & (VLOOKUP(Rebalance!$D$56,$F$2:$G$48,2,FALSE)+ROW()-2)),\"\")","v":{"$error":"#N/A"}},{"$f":"IF(INDIRECT(\"c\" & (VLOOKUP(Rebalance!$D$57,$F$2:$G$48,2,FALSE)+ROW()-2))=Rebalance!$D$57,INDIRECT(\"a\" & (VLOOKUP(Rebalance!$D$57,$F$2:$G$48,2,FALSE)+ROW()-2)),\"\")","v":{"$error":"#N/A"}},{"$f":"IF(INDIRECT(\"c\" & (VLOOKUP(Rebalance!$D$58,$F$2:$G$48,2,FALSE)+ROW()-2))=Rebalance!$D$58,INDIRECT(\"a\" & (VLOOKUP(Rebalance!$D$58,$F$2:$G$48,2,FALSE)+ROW()-2)),\"\")","v":{"$error":"#N/A"}},{"$f":"IF(INDIRECT(\"c\" & (VLOOKUP(Rebalance!$D$59,$F$2:$G$48,2,FALSE)+ROW()-2))=Rebalance!$D$59,INDIRECT(\"a\" & (VLOOKUP(Rebalance!$D$59,$F$2:$G$48,2,FALSE)+ROW()-2)),\"\")","v":{"$error":"#N/A"}},{"$f":"IF(INDIRECT(\"c\" & (VLOOKUP(Rebalance!$D$60,$F$2:$G$48,2,FALSE)+ROW()-2))=Rebalance!$D$60,INDIRECT(\"a\" & (VLOOKUP(Rebalance!$D$60,$F$2:$G$48,2,FALSE)+ROW()-2)),\"\")","v":{"$error":"#N/A"}},{"$f":"IF(INDIRECT(\"c\" & (VLOOKUP(Rebalance!$D$61,$F$2:$G$48,2,FALSE)+ROW()-2))=Rebalance!$D$61,INDIRECT(\"a\" & (VLOOKUP(Rebalance!$D$61,$F$2:$G$48,2,FALSE)+ROW()-2)),\"\")","v":{"$error":"#N/A"}},{"$f":"IF(INDIRECT(\"c\" & (VLOOKUP(Rebalance!$D$62,$F$2:$G$48,2,FALSE)+ROW()-2))=Rebalance!$D$62,INDIRECT(\"a\" & (VLOOKUP(Rebalance!$D$62,$F$2:$G$48,2,FALSE)+ROW()-2)),\"\")","v":{"$error":"#N/A"}},{"$f":"IF(INDIRECT(\"c\" & (VLOOKUP(Rebalance!$D$63,$F$2:$G$48,2,FALSE)+ROW()-2))=Rebalance!$D$63,INDIRECT(\"a\" & (VLOOKUP(Rebalance!$D$63,$F$2:$G$48,2,FALSE)+ROW()-2)),\"\")","v":{"$error":"#N/A"}},{"$f":"IF(INDIRECT(\"c\" & (VLOOKUP(Rebalance!$D$64,$F$2:$G$48,2,FALSE)+ROW()-2))=Rebalance!$D$64,INDIRECT(\"a\" & (VLOOKUP(Rebalance!$D$64,$F$2:$G$48,2,FALSE)+ROW()-2)),\"\")","v":{"$error":"#N/A"}},{"$f":"IF(INDIRECT(\"c\" & (VLOOKUP(Rebalance!$D$65,$F$2:$G$48,2,FALSE)+ROW()-2))=Rebalance!$D$65,INDIRECT(\"a\" & (VLOOKUP(Rebalance!$D$65,$F$2:$G$48,2,FALSE)+ROW()-2)),\"\")","v":{"$error":"#N/A"}},{"$f":"IF(INDIRECT(\"c\" & (VLOOKUP(Rebalance!$D$66,$F$2:$G$48,2,FALSE)+ROW()-2))=Rebalance!$D$66,INDIRECT(\"a\" & (VLOOKUP(Rebalance!$D$66,$F$2:$G$48,2,FALSE)+ROW()-2)),\"\")","v":{"$error":"#N/A"}}]
["PortfolioMetrix BCI Bond Fund of Funds A","PMBFA","Boutique Collective Investments (Pty) Ltd",{"$f":"ROW()","v":155},null,null,{"$f":"VLOOKUP(F155,$C$2:$D$599,2,FALSE)","v":{"$error":"#N/A"}},{"$f":"IF(INDIRECT(\"c\" & (VLOOKUP(Rebalance!$D$26,$F$2:$G$48,2,FALSE)+ROW()-2))=Rebalance!$D$26,INDIRECT(\"a\" & (VLOOKUP(Rebalance!$D$26,$F$2:$G$48,2,FALSE)+ROW()-2)),\"\")","v":{"$error":"#N/A"}},{"$f":"IF(INDIRECT(\"c\" & (VLOOKUP(Rebalance!$D$27,$F$2:$G$48,2,FALSE)+ROW()-2))=Rebalance!$D$27,INDIRECT(\"a\" & (VLOOKUP(Rebalance!$D$27,$F$2:$G$48,2,FALSE)+ROW()-2)),\"\")","v":{"$error":"#N/A"}},{"$f":"IF(INDIRECT(\"c\" & (VLOOKUP(Rebalance!$D$28,$F$2:$G$48,2,FALSE)+ROW()-2))=Rebalance!$D$28,INDIRECT(\"a\" & (VLOOKUP(Rebalance!$D$28,$F$2:$G$48,2,FALSE)+ROW()-2)),\"\")","v":{"$error":"#N/A"}},{"$f":"IF(INDIRECT(\"c\" & (VLOOKUP(Rebalance!$D$29,$F$2:$G$48,2,FALSE)+ROW()-2))=Rebalance!$D$29,INDIRECT(\"a\" & (VLOOKUP(Rebalance!$D$29,$F$2:$G$48,2,FALSE)+ROW()-2)),\"\")","v":{"$error":"#N/A"}},{"$f":"IF(INDIRECT(\"c\" & (VLOOKUP(Rebalance!$D$30,$F$2:$G$48,2,FALSE)+ROW()-2))=Rebalance!$D$30,INDIRECT(\"a\" & (VLOOKUP(Rebalance!$D$30,$F$2:$G$48,2,FALSE)+ROW()-2)),\"\")","v":{"$error":"#N/A"}},{"$f":"IF(INDIRECT(\"c\" & (VLOOKUP(Rebalance!$D$31,$F$2:$G$48,2,FALSE)+ROW()-2))=Rebalance!$D$31,INDIRECT(\"a\" & (VLOOKUP(Rebalance!$D$31,$F$2:$G$48,2,FALSE)+ROW()-2)),\"\")","v":{"$error":"#N/A"}},{"$f":"IF(INDIRECT(\"c\" & (VLOOKUP(Rebalance!$D$32,$F$2:$G$48,2,FALSE)+ROW()-2))=Rebalance!$D$32,INDIRECT(\"a\" & (VLOOKUP(Rebalance!$D$32,$F$2:$G$48,2,FALSE)+ROW()-2)),\"\")","v":{"$error":"#N/A"}},{"$f":"IF(INDIRECT(\"c\" & (VLOOKUP(Rebalance!$D$33,$F$2:$G$48,2,FALSE)+ROW()-2))=Rebalance!$D$33,INDIRECT(\"a\" & (VLOOKUP(Rebalance!$D$33,$F$2:$G$48,2,FALSE)+ROW()-2)),\"\")","v":{"$error":"#N/A"}},{"$f":"IF(INDIRECT(\"c\" & (VLOOKUP(Rebalance!$D$34,$F$2:$G$48,2,FALSE)+ROW()-2))=Rebalance!$D$34,INDIRECT(\"a\" & (VLOOKUP(Rebalance!$D$34,$F$2:$G$48,2,FALSE)+ROW()-2)),\"\")","v":{"$error":"#N/A"}},{"$f":"IF(INDIRECT(\"c\" & (VLOOKUP(Rebalance!$D$35,$F$2:$G$48,2,FALSE)+ROW()-2))=Rebalance!$D$35,INDIRECT(\"a\" & (VLOOKUP(Rebalance!$D$35,$F$2:$G$48,2,FALSE)+ROW()-2)),\"\")","v":{"$error":"#N/A"}},{"$f":"IF(INDIRECT(\"c\" & (VLOOKUP(Rebalance!$D$36,$F$2:$G$48,2,FALSE)+ROW()-2))=Rebalance!$D$36,INDIRECT(\"a\" & (VLOOKUP(Rebalance!$D$36,$F$2:$G$48,2,FALSE)+ROW()-2)),\"\")","v":{"$error":"#N/A"}},{"$f":"IF(INDIRECT(\"c\" & (VLOOKUP(Rebalance!$D$37,$F$2:$G$48,2,FALSE)+ROW()-2))=Rebalance!$D$37,INDIRECT(\"a\" & (VLOOKUP(Rebalance!$D$37,$F$2:$G$48,2,FALSE)+ROW()-2)),\"\")","v":{"$error":"#N/A"}},{"$f":"IF(INDIRECT(\"c\" & (VLOOKUP(Rebalance!$D$38,$F$2:$G$48,2,FALSE)+ROW()-2))=Rebalance!$D$38,INDIRECT(\"a\" & (VLOOKUP(Rebalance!$D$38,$F$2:$G$48,2,FALSE)+ROW()-2)),\"\")","v":{"$error":"#N/A"}},{"$f":"IF(INDIRECT(\"c\" & (VLOOKUP(Rebalance!$D$39,$F$2:$G$48,2,FALSE)+ROW()-2))=Rebalance!$D$39,INDIRECT(\"a\" & (VLOOKUP(Rebalance!$D$39,$F$2:$G$48,2,FALSE)+ROW()-2)),\"\")","v":{"$error":"#N/A"}},{"$f":"IF(INDIRECT(\"c\" & (VLOOKUP(Rebalance!$D$40,$F$2:$G$48,2,FALSE)+ROW()-2))=Rebalance!$D$40,INDIRECT(\"a\" & (VLOOKUP(Rebalance!$D$40,$F$2:$G$48,2,FALSE)+ROW()-2)),\"\")","v":{"$error":"#N/A"}},{"$f":"IF(INDIRECT(\"c\" & (VLOOKUP(Rebalance!$D$52,$F$2:$G$48,2,FALSE)+ROW()-2))=Rebalance!$D$52,INDIRECT(\"a\" & (VLOOKUP(Rebalance!$D$52,$F$2:$G$48,2,FALSE)+ROW()-2)),\"\")","v":{"$error":"#N/A"}},{"$f":"IF(INDIRECT(\"c\" & (VLOOKUP(Rebalance!$D$53,$F$2:$G$48,2,FALSE)+ROW()-2))=Rebalance!$D$53,INDIRECT(\"a\" & (VLOOKUP(Rebalance!$D$53,$F$2:$G$48,2,FALSE)+ROW()-2)),\"\")","v":{"$error":"#N/A"}},{"$f":"IF(INDIRECT(\"c\" & (VLOOKUP(Rebalance!$D$54,$F$2:$G$48,2,FALSE)+ROW()-2))=Rebalance!$D$54,INDIRECT(\"a\" & (VLOOKUP(Rebalance!$D$54,$F$2:$G$48,2,FALSE)+ROW()-2)),\"\")","v":{"$error":"#N/A"}},{"$f":"IF(INDIRECT(\"c\" & (VLOOKUP(Rebalance!$D$55,$F$2:$G$48,2,FALSE)+ROW()-2))=Rebalance!$D$55,INDIRECT(\"a\" & (VLOOKUP(Rebalance!$D$55,$F$2:$G$48,2,FALSE)+ROW()-2)),\"\")","v":{"$error":"#N/A"}},{"$f":"IF(INDIRECT(\"c\" & (VLOOKUP(Rebalance!$D$56,$F$2:$G$48,2,FALSE)+ROW()-2))=Rebalance!$D$56,INDIRECT(\"a\" & (VLOOKUP(Rebalance!$D$56,$F$2:$G$48,2,FALSE)+ROW()-2)),\"\")","v":{"$error":"#N/A"}},{"$f":"IF(INDIRECT(\"c\" & (VLOOKUP(Rebalance!$D$57,$F$2:$G$48,2,FALSE)+ROW()-2))=Rebalance!$D$57,INDIRECT(\"a\" & (VLOOKUP(Rebalance!$D$57,$F$2:$G$48,2,FALSE)+ROW()-2)),\"\")","v":{"$error":"#N/A"}},{"$f":"IF(INDIRECT(\"c\" & (VLOOKUP(Rebalance!$D$58,$F$2:$G$48,2,FALSE)+ROW()-2))=Rebalance!$D$58,INDIRECT(\"a\" & (VLOOKUP(Rebalance!$D$58,$F$2:$G$48,2,FALSE)+ROW()-2)),\"\")","v":{"$error":"#N/A"}},{"$f":"IF(INDIRECT(\"c\" & (VLOOKUP(Rebalance!$D$59,$F$2:$G$48,2,FALSE)+ROW()-2))=Rebalance!$D$59,INDIRECT(\"a\" & (VLOOKUP(Rebalance!$D$59,$F$2:$G$48,2,FALSE)+ROW()-2)),\"\")","v":{"$error":"#N/A"}},{"$f":"IF(INDIRECT(\"c\" & (VLOOKUP(Rebalance!$D$60,$F$2:$G$48,2,FALSE)+ROW()-2))=Rebalance!$D$60,INDIRECT(\"a\" & (VLOOKUP(Rebalance!$D$60,$F$2:$G$48,2,FALSE)+ROW()-2)),\"\")","v":{"$error":"#N/A"}},{"$f":"IF(INDIRECT(\"c\" & (VLOOKUP(Rebalance!$D$61,$F$2:$G$48,2,FALSE)+ROW()-2))=Rebalance!$D$61,INDIRECT(\"a\" & (VLOOKUP(Rebalance!$D$61,$F$2:$G$48,2,FALSE)+ROW()-2)),\"\")","v":{"$error":"#N/A"}},{"$f":"IF(INDIRECT(\"c\" & (VLOOKUP(Rebalance!$D$62,$F$2:$G$48,2,FALSE)+ROW()-2))=Rebalance!$D$62,INDIRECT(\"a\" & (VLOOKUP(Rebalance!$D$62,$F$2:$G$48,2,FALSE)+ROW()-2)),\"\")","v":{"$error":"#N/A"}},{"$f":"IF(INDIRECT(\"c\" & (VLOOKUP(Rebalance!$D$63,$F$2:$G$48,2,FALSE)+ROW()-2))=Rebalance!$D$63,INDIRECT(\"a\" & (VLOOKUP(Rebalance!$D$63,$F$2:$G$48,2,FALSE)+ROW()-2)),\"\")","v":{"$error":"#N/A"}},{"$f":"IF(INDIRECT(\"c\" & (VLOOKUP(Rebalance!$D$64,$F$2:$G$48,2,FALSE)+ROW()-2))=Rebalance!$D$64,INDIRECT(\"a\" & (VLOOKUP(Rebalance!$D$64,$F$2:$G$48,2,FALSE)+ROW()-2)),\"\")","v":{"$error":"#N/A"}},{"$f":"IF(INDIRECT(\"c\" & (VLOOKUP(Rebalance!$D$65,$F$2:$G$48,2,FALSE)+ROW()-2))=Rebalance!$D$65,INDIRECT(\"a\" & (VLOOKUP(Rebalance!$D$65,$F$2:$G$48,2,FALSE)+ROW()-2)),\"\")","v":{"$error":"#N/A"}},{"$f":"IF(INDIRECT(\"c\" & (VLOOKUP(Rebalance!$D$66,$F$2:$G$48,2,FALSE)+ROW()-2))=Rebalance!$D$66,INDIRECT(\"a\" & (VLOOKUP(Rebalance!$D$66,$F$2:$G$48,2,FALSE)+ROW()-2)),\"\")","v":{"$error":"#N/A"}}]
["PortfolioMetrix BCI Equity Fund of Funds B1","PBCE","Boutique Collective Investments (Pty) Ltd",{"$f":"ROW()","v":156},null,null,{"$f":"VLOOKUP(F156,$C$2:$D$599,2,FALSE)","v":{"$error":"#N/A"}},{"$f":"IF(INDIRECT(\"c\" & (VLOOKUP(Rebalance!$D$26,$F$2:$G$48,2,FALSE)+ROW()-2))=Rebalance!$D$26,INDIRECT(\"a\" & (VLOOKUP(Rebalance!$D$26,$F$2:$G$48,2,FALSE)+ROW()-2)),\"\")","v":{"$error":"#N/A"}},{"$f":"IF(INDIRECT(\"c\" & (VLOOKUP(Rebalance!$D$27,$F$2:$G$48,2,FALSE)+ROW()-2))=Rebalance!$D$27,INDIRECT(\"a\" & (VLOOKUP(Rebalance!$D$27,$F$2:$G$48,2,FALSE)+ROW()-2)),\"\")","v":{"$error":"#N/A"}},{"$f":"IF(INDIRECT(\"c\" & (VLOOKUP(Rebalance!$D$28,$F$2:$G$48,2,FALSE)+ROW()-2))=Rebalance!$D$28,INDIRECT(\"a\" & (VLOOKUP(Rebalance!$D$28,$F$2:$G$48,2,FALSE)+ROW()-2)),\"\")","v":{"$error":"#N/A"}},{"$f":"IF(INDIRECT(\"c\" & (VLOOKUP(Rebalance!$D$29,$F$2:$G$48,2,FALSE)+ROW()-2))=Rebalance!$D$29,INDIRECT(\"a\" & (VLOOKUP(Rebalance!$D$29,$F$2:$G$48,2,FALSE)+ROW()-2)),\"\")","v":{"$error":"#N/A"}},{"$f":"IF(INDIRECT(\"c\" & (VLOOKUP(Rebalance!$D$30,$F$2:$G$48,2,FALSE)+ROW()-2))=Rebalance!$D$30,INDIRECT(\"a\" & (VLOOKUP(Rebalance!$D$30,$F$2:$G$48,2,FALSE)+ROW()-2)),\"\")","v":{"$error":"#N/A"}},{"$f":"IF(INDIRECT(\"c\" & (VLOOKUP(Rebalance!$D$31,$F$2:$G$48,2,FALSE)+ROW()-2))=Rebalance!$D$31,INDIRECT(\"a\" & (VLOOKUP(Rebalance!$D$31,$F$2:$G$48,2,FALSE)+ROW()-2)),\"\")","v":{"$error":"#N/A"}},{"$f":"IF(INDIRECT(\"c\" & (VLOOKUP(Rebalance!$D$32,$F$2:$G$48,2,FALSE)+ROW()-2))=Rebalance!$D$32,INDIRECT(\"a\" & (VLOOKUP(Rebalance!$D$32,$F$2:$G$48,2,FALSE)+ROW()-2)),\"\")","v":{"$error":"#N/A"}},{"$f":"IF(INDIRECT(\"c\" & (VLOOKUP(Rebalance!$D$33,$F$2:$G$48,2,FALSE)+ROW()-2))=Rebalance!$D$33,INDIRECT(\"a\" & (VLOOKUP(Rebalance!$D$33,$F$2:$G$48,2,FALSE)+ROW()-2)),\"\")","v":{"$error":"#N/A"}},{"$f":"IF(INDIRECT(\"c\" & (VLOOKUP(Rebalance!$D$34,$F$2:$G$48,2,FALSE)+ROW()-2))=Rebalance!$D$34,INDIRECT(\"a\" & (VLOOKUP(Rebalance!$D$34,$F$2:$G$48,2,FALSE)+ROW()-2)),\"\")","v":{"$error":"#N/A"}},{"$f":"IF(INDIRECT(\"c\" & (VLOOKUP(Rebalance!$D$35,$F$2:$G$48,2,FALSE)+ROW()-2))=Rebalance!$D$35,INDIRECT(\"a\" & (VLOOKUP(Rebalance!$D$35,$F$2:$G$48,2,FALSE)+ROW()-2)),\"\")","v":{"$error":"#N/A"}},{"$f":"IF(INDIRECT(\"c\" & (VLOOKUP(Rebalance!$D$36,$F$2:$G$48,2,FALSE)+ROW()-2))=Rebalance!$D$36,INDIRECT(\"a\" & (VLOOKUP(Rebalance!$D$36,$F$2:$G$48,2,FALSE)+ROW()-2)),\"\")","v":{"$error":"#N/A"}},{"$f":"IF(INDIRECT(\"c\" & (VLOOKUP(Rebalance!$D$37,$F$2:$G$48,2,FALSE)+ROW()-2))=Rebalance!$D$37,INDIRECT(\"a\" & (VLOOKUP(Rebalance!$D$37,$F$2:$G$48,2,FALSE)+ROW()-2)),\"\")","v":{"$error":"#N/A"}},{"$f":"IF(INDIRECT(\"c\" & (VLOOKUP(Rebalance!$D$38,$F$2:$G$48,2,FALSE)+ROW()-2))=Rebalance!$D$38,INDIRECT(\"a\" & (VLOOKUP(Rebalance!$D$38,$F$2:$G$48,2,FALSE)+ROW()-2)),\"\")","v":{"$error":"#N/A"}},{"$f":"IF(INDIRECT(\"c\" & (VLOOKUP(Rebalance!$D$39,$F$2:$G$48,2,FALSE)+ROW()-2))=Rebalance!$D$39,INDIRECT(\"a\" & (VLOOKUP(Rebalance!$D$39,$F$2:$G$48,2,FALSE)+ROW()-2)),\"\")","v":{"$error":"#N/A"}},{"$f":"IF(INDIRECT(\"c\" & (VLOOKUP(Rebalance!$D$40,$F$2:$G$48,2,FALSE)+ROW()-2))=Rebalance!$D$40,INDIRECT(\"a\" & (VLOOKUP(Rebalance!$D$40,$F$2:$G$48,2,FALSE)+ROW()-2)),\"\")","v":{"$error":"#N/A"}},{"$f":"IF(INDIRECT(\"c\" & (VLOOKUP(Rebalance!$D$52,$F$2:$G$48,2,FALSE)+ROW()-2))=Rebalance!$D$52,INDIRECT(\"a\" & (VLOOKUP(Rebalance!$D$52,$F$2:$G$48,2,FALSE)+ROW()-2)),\"\")","v":{"$error":"#N/A"}},{"$f":"IF(INDIRECT(\"c\" & (VLOOKUP(Rebalance!$D$53,$F$2:$G$48,2,FALSE)+ROW()-2))=Rebalance!$D$53,INDIRECT(\"a\" & (VLOOKUP(Rebalance!$D$53,$F$2:$G$48,2,FALSE)+ROW()-2)),\"\")","v":{"$error":"#N/A"}},{"$f":"IF(INDIRECT(\"c\" & (VLOOKUP(Rebalance!$D$54,$F$2:$G$48,2,FALSE)+ROW()-2))=Rebalance!$D$54,INDIRECT(\"a\" & (VLOOKUP(Rebalance!$D$54,$F$2:$G$48,2,FALSE)+ROW()-2)),\"\")","v":{"$error":"#N/A"}},{"$f":"IF(INDIRECT(\"c\" & (VLOOKUP(Rebalance!$D$55,$F$2:$G$48,2,FALSE)+ROW()-2))=Rebalance!$D$55,INDIRECT(\"a\" & (VLOOKUP(Rebalance!$D$55,$F$2:$G$48,2,FALSE)+ROW()-2)),\"\")","v":{"$error":"#N/A"}},{"$f":"IF(INDIRECT(\"c\" & (VLOOKUP(Rebalance!$D$56,$F$2:$G$48,2,FALSE)+ROW()-2))=Rebalance!$D$56,INDIRECT(\"a\" & (VLOOKUP(Rebalance!$D$56,$F$2:$G$48,2,FALSE)+ROW()-2)),\"\")","v":{"$error":"#N/A"}},{"$f":"IF(INDIRECT(\"c\" & (VLOOKUP(Rebalance!$D$57,$F$2:$G$48,2,FALSE)+ROW()-2))=Rebalance!$D$57,INDIRECT(\"a\" & (VLOOKUP(Rebalance!$D$57,$F$2:$G$48,2,FALSE)+ROW()-2)),\"\")","v":{"$error":"#N/A"}},{"$f":"IF(INDIRECT(\"c\" & (VLOOKUP(Rebalance!$D$58,$F$2:$G$48,2,FALSE)+ROW()-2))=Rebalance!$D$58,INDIRECT(\"a\" & (VLOOKUP(Rebalance!$D$58,$F$2:$G$48,2,FALSE)+ROW()-2)),\"\")","v":{"$error":"#N/A"}},{"$f":"IF(INDIRECT(\"c\" & (VLOOKUP(Rebalance!$D$59,$F$2:$G$48,2,FALSE)+ROW()-2))=Rebalance!$D$59,INDIRECT(\"a\" & (VLOOKUP(Rebalance!$D$59,$F$2:$G$48,2,FALSE)+ROW()-2)),\"\")","v":{"$error":"#N/A"}},{"$f":"IF(INDIRECT(\"c\" & (VLOOKUP(Rebalance!$D$60,$F$2:$G$48,2,FALSE)+ROW()-2))=Rebalance!$D$60,INDIRECT(\"a\" & (VLOOKUP(Rebalance!$D$60,$F$2:$G$48,2,FALSE)+ROW()-2)),\"\")","v":{"$error":"#N/A"}},{"$f":"IF(INDIRECT(\"c\" & (VLOOKUP(Rebalance!$D$61,$F$2:$G$48,2,FALSE)+ROW()-2))=Rebalance!$D$61,INDIRECT(\"a\" & (VLOOKUP(Rebalance!$D$61,$F$2:$G$48,2,FALSE)+ROW()-2)),\"\")","v":{"$error":"#N/A"}},{"$f":"IF(INDIRECT(\"c\" & (VLOOKUP(Rebalance!$D$62,$F$2:$G$48,2,FALSE)+ROW()-2))=Rebalance!$D$62,INDIRECT(\"a\" & (VLOOKUP(Rebalance!$D$62,$F$2:$G$48,2,FALSE)+ROW()-2)),\"\")","v":{"$error":"#N/A"}},{"$f":"IF(INDIRECT(\"c\" & (VLOOKUP(Rebalance!$D$63,$F$2:$G$48,2,FALSE)+ROW()-2))=Rebalance!$D$63,INDIRECT(\"a\" & (VLOOKUP(Rebalance!$D$63,$F$2:$G$48,2,FALSE)+ROW()-2)),\"\")","v":{"$error":"#N/A"}},{"$f":"IF(INDIRECT(\"c\" & (VLOOKUP(Rebalance!$D$64,$F$2:$G$48,2,FALSE)+ROW()-2))=Rebalance!$D$64,INDIRECT(\"a\" & (VLOOKUP(Rebalance!$D$64,$F$2:$G$48,2,FALSE)+ROW()-2)),\"\")","v":{"$error":"#N/A"}},{"$f":"IF(INDIRECT(\"c\" & (VLOOKUP(Rebalance!$D$65,$F$2:$G$48,2,FALSE)+ROW()-2))=Rebalance!$D$65,INDIRECT(\"a\" & (VLOOKUP(Rebalance!$D$65,$F$2:$G$48,2,FALSE)+ROW()-2)),\"\")","v":{"$error":"#N/A"}},{"$f":"IF(INDIRECT(\"c\" & (VLOOKUP(Rebalance!$D$66,$F$2:$G$48,2,FALSE)+ROW()-2))=Rebalance!$D$66,INDIRECT(\"a\" & (VLOOKUP(Rebalance!$D$66,$F$2:$G$48,2,FALSE)+ROW()-2)),\"\")","v":{"$error":"#N/A"}}]
["PortfolioMetrix BCI Global Equity Fund B1","PBGE","Boutique Collective Investments (Pty) Ltd",{"$f":"ROW()","v":157},null,null,{"$f":"VLOOKUP(F157,$C$2:$D$599,2,FALSE)","v":{"$error":"#N/A"}},{"$f":"IF(INDIRECT(\"c\" & (VLOOKUP(Rebalance!$D$26,$F$2:$G$48,2,FALSE)+ROW()-2))=Rebalance!$D$26,INDIRECT(\"a\" & (VLOOKUP(Rebalance!$D$26,$F$2:$G$48,2,FALSE)+ROW()-2)),\"\")","v":{"$error":"#N/A"}},{"$f":"IF(INDIRECT(\"c\" & (VLOOKUP(Rebalance!$D$27,$F$2:$G$48,2,FALSE)+ROW()-2))=Rebalance!$D$27,INDIRECT(\"a\" & (VLOOKUP(Rebalance!$D$27,$F$2:$G$48,2,FALSE)+ROW()-2)),\"\")","v":{"$error":"#N/A"}},{"$f":"IF(INDIRECT(\"c\" & (VLOOKUP(Rebalance!$D$28,$F$2:$G$48,2,FALSE)+ROW()-2))=Rebalance!$D$28,INDIRECT(\"a\" & (VLOOKUP(Rebalance!$D$28,$F$2:$G$48,2,FALSE)+ROW()-2)),\"\")","v":{"$error":"#N/A"}},{"$f":"IF(INDIRECT(\"c\" & (VLOOKUP(Rebalance!$D$29,$F$2:$G$48,2,FALSE)+ROW()-2))=Rebalance!$D$29,INDIRECT(\"a\" & (VLOOKUP(Rebalance!$D$29,$F$2:$G$48,2,FALSE)+ROW()-2)),\"\")","v":{"$error":"#N/A"}},{"$f":"IF(INDIRECT(\"c\" & (VLOOKUP(Rebalance!$D$30,$F$2:$G$48,2,FALSE)+ROW()-2))=Rebalance!$D$30,INDIRECT(\"a\" & (VLOOKUP(Rebalance!$D$30,$F$2:$G$48,2,FALSE)+ROW()-2)),\"\")","v":{"$error":"#N/A"}},{"$f":"IF(INDIRECT(\"c\" & (VLOOKUP(Rebalance!$D$31,$F$2:$G$48,2,FALSE)+ROW()-2))=Rebalance!$D$31,INDIRECT(\"a\" & (VLOOKUP(Rebalance!$D$31,$F$2:$G$48,2,FALSE)+ROW()-2)),\"\")","v":{"$error":"#N/A"}},{"$f":"IF(INDIRECT(\"c\" & (VLOOKUP(Rebalance!$D$32,$F$2:$G$48,2,FALSE)+ROW()-2))=Rebalance!$D$32,INDIRECT(\"a\" & (VLOOKUP(Rebalance!$D$32,$F$2:$G$48,2,FALSE)+ROW()-2)),\"\")","v":{"$error":"#N/A"}},{"$f":"IF(INDIRECT(\"c\" & (VLOOKUP(Rebalance!$D$33,$F$2:$G$48,2,FALSE)+ROW()-2))=Rebalance!$D$33,INDIRECT(\"a\" & (VLOOKUP(Rebalance!$D$33,$F$2:$G$48,2,FALSE)+ROW()-2)),\"\")","v":{"$error":"#N/A"}},{"$f":"IF(INDIRECT(\"c\" & (VLOOKUP(Rebalance!$D$34,$F$2:$G$48,2,FALSE)+ROW()-2))=Rebalance!$D$34,INDIRECT(\"a\" & (VLOOKUP(Rebalance!$D$34,$F$2:$G$48,2,FALSE)+ROW()-2)),\"\")","v":{"$error":"#N/A"}},{"$f":"IF(INDIRECT(\"c\" & (VLOOKUP(Rebalance!$D$35,$F$2:$G$48,2,FALSE)+ROW()-2))=Rebalance!$D$35,INDIRECT(\"a\" & (VLOOKUP(Rebalance!$D$35,$F$2:$G$48,2,FALSE)+ROW()-2)),\"\")","v":{"$error":"#N/A"}},{"$f":"IF(INDIRECT(\"c\" & (VLOOKUP(Rebalance!$D$36,$F$2:$G$48,2,FALSE)+ROW()-2))=Rebalance!$D$36,INDIRECT(\"a\" & (VLOOKUP(Rebalance!$D$36,$F$2:$G$48,2,FALSE)+ROW()-2)),\"\")","v":{"$error":"#N/A"}},{"$f":"IF(INDIRECT(\"c\" & (VLOOKUP(Rebalance!$D$37,$F$2:$G$48,2,FALSE)+ROW()-2))=Rebalance!$D$37,INDIRECT(\"a\" & (VLOOKUP(Rebalance!$D$37,$F$2:$G$48,2,FALSE)+ROW()-2)),\"\")","v":{"$error":"#N/A"}},{"$f":"IF(INDIRECT(\"c\" & (VLOOKUP(Rebalance!$D$38,$F$2:$G$48,2,FALSE)+ROW()-2))=Rebalance!$D$38,INDIRECT(\"a\" & (VLOOKUP(Rebalance!$D$38,$F$2:$G$48,2,FALSE)+ROW()-2)),\"\")","v":{"$error":"#N/A"}},{"$f":"IF(INDIRECT(\"c\" & (VLOOKUP(Rebalance!$D$39,$F$2:$G$48,2,FALSE)+ROW()-2))=Rebalance!$D$39,INDIRECT(\"a\" & (VLOOKUP(Rebalance!$D$39,$F$2:$G$48,2,FALSE)+ROW()-2)),\"\")","v":{"$error":"#N/A"}},{"$f":"IF(INDIRECT(\"c\" & (VLOOKUP(Rebalance!$D$40,$F$2:$G$48,2,FALSE)+ROW()-2))=Rebalance!$D$40,INDIRECT(\"a\" & (VLOOKUP(Rebalance!$D$40,$F$2:$G$48,2,FALSE)+ROW()-2)),\"\")","v":{"$error":"#N/A"}},{"$f":"IF(INDIRECT(\"c\" & (VLOOKUP(Rebalance!$D$52,$F$2:$G$48,2,FALSE)+ROW()-2))=Rebalance!$D$52,INDIRECT(\"a\" & (VLOOKUP(Rebalance!$D$52,$F$2:$G$48,2,FALSE)+ROW()-2)),\"\")","v":{"$error":"#N/A"}},{"$f":"IF(INDIRECT(\"c\" & (VLOOKUP(Rebalance!$D$53,$F$2:$G$48,2,FALSE)+ROW()-2))=Rebalance!$D$53,INDIRECT(\"a\" & (VLOOKUP(Rebalance!$D$53,$F$2:$G$48,2,FALSE)+ROW()-2)),\"\")","v":{"$error":"#N/A"}},{"$f":"IF(INDIRECT(\"c\" & (VLOOKUP(Rebalance!$D$54,$F$2:$G$48,2,FALSE)+ROW()-2))=Rebalance!$D$54,INDIRECT(\"a\" & (VLOOKUP(Rebalance!$D$54,$F$2:$G$48,2,FALSE)+ROW()-2)),\"\")","v":{"$error":"#N/A"}},{"$f":"IF(INDIRECT(\"c\" & (VLOOKUP(Rebalance!$D$55,$F$2:$G$48,2,FALSE)+ROW()-2))=Rebalance!$D$55,INDIRECT(\"a\" & (VLOOKUP(Rebalance!$D$55,$F$2:$G$48,2,FALSE)+ROW()-2)),\"\")","v":{"$error":"#N/A"}},{"$f":"IF(INDIRECT(\"c\" & (VLOOKUP(Rebalance!$D$56,$F$2:$G$48,2,FALSE)+ROW()-2))=Rebalance!$D$56,INDIRECT(\"a\" & (VLOOKUP(Rebalance!$D$56,$F$2:$G$48,2,FALSE)+ROW()-2)),\"\")","v":{"$error":"#N/A"}},{"$f":"IF(INDIRECT(\"c\" & (VLOOKUP(Rebalance!$D$57,$F$2:$G$48,2,FALSE)+ROW()-2))=Rebalance!$D$57,INDIRECT(\"a\" & (VLOOKUP(Rebalance!$D$57,$F$2:$G$48,2,FALSE)+ROW()-2)),\"\")","v":{"$error":"#N/A"}},{"$f":"IF(INDIRECT(\"c\" & (VLOOKUP(Rebalance!$D$58,$F$2:$G$48,2,FALSE)+ROW()-2))=Rebalance!$D$58,INDIRECT(\"a\" & (VLOOKUP(Rebalance!$D$58,$F$2:$G$48,2,FALSE)+ROW()-2)),\"\")","v":{"$error":"#N/A"}},{"$f":"IF(INDIRECT(\"c\" & (VLOOKUP(Rebalance!$D$59,$F$2:$G$48,2,FALSE)+ROW()-2))=Rebalance!$D$59,INDIRECT(\"a\" & (VLOOKUP(Rebalance!$D$59,$F$2:$G$48,2,FALSE)+ROW()-2)),\"\")","v":{"$error":"#N/A"}},{"$f":"IF(INDIRECT(\"c\" & (VLOOKUP(Rebalance!$D$60,$F$2:$G$48,2,FALSE)+ROW()-2))=Rebalance!$D$60,INDIRECT(\"a\" & (VLOOKUP(Rebalance!$D$60,$F$2:$G$48,2,FALSE)+ROW()-2)),\"\")","v":{"$error":"#N/A"}},{"$f":"IF(INDIRECT(\"c\" & (VLOOKUP(Rebalance!$D$61,$F$2:$G$48,2,FALSE)+ROW()-2))=Rebalance!$D$61,INDIRECT(\"a\" & (VLOOKUP(Rebalance!$D$61,$F$2:$G$48,2,FALSE)+ROW()-2)),\"\")","v":{"$error":"#N/A"}},{"$f":"IF(INDIRECT(\"c\" & (VLOOKUP(Rebalance!$D$62,$F$2:$G$48,2,FALSE)+ROW()-2))=Rebalance!$D$62,INDIRECT(\"a\" & (VLOOKUP(Rebalance!$D$62,$F$2:$G$48,2,FALSE)+ROW()-2)),\"\")","v":{"$error":"#N/A"}},{"$f":"IF(INDIRECT(\"c\" & (VLOOKUP(Rebalance!$D$63,$F$2:$G$48,2,FALSE)+ROW()-2))=Rebalance!$D$63,INDIRECT(\"a\" & (VLOOKUP(Rebalance!$D$63,$F$2:$G$48,2,FALSE)+ROW()-2)),\"\")","v":{"$error":"#N/A"}},{"$f":"IF(INDIRECT(\"c\" & (VLOOKUP(Rebalance!$D$64,$F$2:$G$48,2,FALSE)+ROW()-2))=Rebalance!$D$64,INDIRECT(\"a\" & (VLOOKUP(Rebalance!$D$64,$F$2:$G$48,2,FALSE)+ROW()-2)),\"\")","v":{"$error":"#N/A"}},{"$f":"IF(INDIRECT(\"c\" & (VLOOKUP(Rebalance!$D$65,$F$2:$G$48,2,FALSE)+ROW()-2))=Rebalance!$D$65,INDIRECT(\"a\" & (VLOOKUP(Rebalance!$D$65,$F$2:$G$48,2,FALSE)+ROW()-2)),\"\")","v":{"$error":"#N/A"}},{"$f":"IF(INDIRECT(\"c\" & (VLOOKUP(Rebalance!$D$66,$F$2:$G$48,2,FALSE)+ROW()-2))=Rebalance!$D$66,INDIRECT(\"a\" & (VLOOKUP(Rebalance!$D$66,$F$2:$G$48,2,FALSE)+ROW()-2)),\"\")","v":{"$error":"#N/A"}}]
["PortfolioMetrix BCI Income Fund of Funds A","PMIFA","Boutique Collective Investments (Pty) Ltd",{"$f":"ROW()","v":158},null,null,{"$f":"VLOOKUP(F158,$C$2:$D$599,2,FALSE)","v":{"$error":"#N/A"}},{"$f":"IF(INDIRECT(\"c\" & (VLOOKUP(Rebalance!$D$26,$F$2:$G$48,2,FALSE)+ROW()-2))=Rebalance!$D$26,INDIRECT(\"a\" & (VLOOKUP(Rebalance!$D$26,$F$2:$G$48,2,FALSE)+ROW()-2)),\"\")","v":{"$error":"#N/A"}},{"$f":"IF(INDIRECT(\"c\" & (VLOOKUP(Rebalance!$D$27,$F$2:$G$48,2,FALSE)+ROW()-2))=Rebalance!$D$27,INDIRECT(\"a\" & (VLOOKUP(Rebalance!$D$27,$F$2:$G$48,2,FALSE)+ROW()-2)),\"\")","v":{"$error":"#N/A"}},{"$f":"IF(INDIRECT(\"c\" & (VLOOKUP(Rebalance!$D$28,$F$2:$G$48,2,FALSE)+ROW()-2))=Rebalance!$D$28,INDIRECT(\"a\" & (VLOOKUP(Rebalance!$D$28,$F$2:$G$48,2,FALSE)+ROW()-2)),\"\")","v":{"$error":"#N/A"}},{"$f":"IF(INDIRECT(\"c\" & (VLOOKUP(Rebalance!$D$29,$F$2:$G$48,2,FALSE)+ROW()-2))=Rebalance!$D$29,INDIRECT(\"a\" & (VLOOKUP(Rebalance!$D$29,$F$2:$G$48,2,FALSE)+ROW()-2)),\"\")","v":{"$error":"#N/A"}},{"$f":"IF(INDIRECT(\"c\" & (VLOOKUP(Rebalance!$D$30,$F$2:$G$48,2,FALSE)+ROW()-2))=Rebalance!$D$30,INDIRECT(\"a\" & (VLOOKUP(Rebalance!$D$30,$F$2:$G$48,2,FALSE)+ROW()-2)),\"\")","v":{"$error":"#N/A"}},{"$f":"IF(INDIRECT(\"c\" & (VLOOKUP(Rebalance!$D$31,$F$2:$G$48,2,FALSE)+ROW()-2))=Rebalance!$D$31,INDIRECT(\"a\" & (VLOOKUP(Rebalance!$D$31,$F$2:$G$48,2,FALSE)+ROW()-2)),\"\")","v":{"$error":"#N/A"}},{"$f":"IF(INDIRECT(\"c\" & (VLOOKUP(Rebalance!$D$32,$F$2:$G$48,2,FALSE)+ROW()-2))=Rebalance!$D$32,INDIRECT(\"a\" & (VLOOKUP(Rebalance!$D$32,$F$2:$G$48,2,FALSE)+ROW()-2)),\"\")","v":{"$error":"#N/A"}},{"$f":"IF(INDIRECT(\"c\" & (VLOOKUP(Rebalance!$D$33,$F$2:$G$48,2,FALSE)+ROW()-2))=Rebalance!$D$33,INDIRECT(\"a\" & (VLOOKUP(Rebalance!$D$33,$F$2:$G$48,2,FALSE)+ROW()-2)),\"\")","v":{"$error":"#N/A"}},{"$f":"IF(INDIRECT(\"c\" & (VLOOKUP(Rebalance!$D$34,$F$2:$G$48,2,FALSE)+ROW()-2))=Rebalance!$D$34,INDIRECT(\"a\" & (VLOOKUP(Rebalance!$D$34,$F$2:$G$48,2,FALSE)+ROW()-2)),\"\")","v":{"$error":"#N/A"}},{"$f":"IF(INDIRECT(\"c\" & (VLOOKUP(Rebalance!$D$35,$F$2:$G$48,2,FALSE)+ROW()-2))=Rebalance!$D$35,INDIRECT(\"a\" & (VLOOKUP(Rebalance!$D$35,$F$2:$G$48,2,FALSE)+ROW()-2)),\"\")","v":{"$error":"#N/A"}},{"$f":"IF(INDIRECT(\"c\" & (VLOOKUP(Rebalance!$D$36,$F$2:$G$48,2,FALSE)+ROW()-2))=Rebalance!$D$36,INDIRECT(\"a\" & (VLOOKUP(Rebalance!$D$36,$F$2:$G$48,2,FALSE)+ROW()-2)),\"\")","v":{"$error":"#N/A"}},{"$f":"IF(INDIRECT(\"c\" & (VLOOKUP(Rebalance!$D$37,$F$2:$G$48,2,FALSE)+ROW()-2))=Rebalance!$D$37,INDIRECT(\"a\" & (VLOOKUP(Rebalance!$D$37,$F$2:$G$48,2,FALSE)+ROW()-2)),\"\")","v":{"$error":"#N/A"}},{"$f":"IF(INDIRECT(\"c\" & (VLOOKUP(Rebalance!$D$38,$F$2:$G$48,2,FALSE)+ROW()-2))=Rebalance!$D$38,INDIRECT(\"a\" & (VLOOKUP(Rebalance!$D$38,$F$2:$G$48,2,FALSE)+ROW()-2)),\"\")","v":{"$error":"#N/A"}},{"$f":"IF(INDIRECT(\"c\" & (VLOOKUP(Rebalance!$D$39,$F$2:$G$48,2,FALSE)+ROW()-2))=Rebalance!$D$39,INDIRECT(\"a\" & (VLOOKUP(Rebalance!$D$39,$F$2:$G$48,2,FALSE)+ROW()-2)),\"\")","v":{"$error":"#N/A"}},{"$f":"IF(INDIRECT(\"c\" & (VLOOKUP(Rebalance!$D$40,$F$2:$G$48,2,FALSE)+ROW()-2))=Rebalance!$D$40,INDIRECT(\"a\" & (VLOOKUP(Rebalance!$D$40,$F$2:$G$48,2,FALSE)+ROW()-2)),\"\")","v":{"$error":"#N/A"}},{"$f":"IF(INDIRECT(\"c\" & (VLOOKUP(Rebalance!$D$52,$F$2:$G$48,2,FALSE)+ROW()-2))=Rebalance!$D$52,INDIRECT(\"a\" & (VLOOKUP(Rebalance!$D$52,$F$2:$G$48,2,FALSE)+ROW()-2)),\"\")","v":{"$error":"#N/A"}},{"$f":"IF(INDIRECT(\"c\" & (VLOOKUP(Rebalance!$D$53,$F$2:$G$48,2,FALSE)+ROW()-2))=Rebalance!$D$53,INDIRECT(\"a\" & (VLOOKUP(Rebalance!$D$53,$F$2:$G$48,2,FALSE)+ROW()-2)),\"\")","v":{"$error":"#N/A"}},{"$f":"IF(INDIRECT(\"c\" & (VLOOKUP(Rebalance!$D$54,$F$2:$G$48,2,FALSE)+ROW()-2))=Rebalance!$D$54,INDIRECT(\"a\" & (VLOOKUP(Rebalance!$D$54,$F$2:$G$48,2,FALSE)+ROW()-2)),\"\")","v":{"$error":"#N/A"}},{"$f":"IF(INDIRECT(\"c\" & (VLOOKUP(Rebalance!$D$55,$F$2:$G$48,2,FALSE)+ROW()-2))=Rebalance!$D$55,INDIRECT(\"a\" & (VLOOKUP(Rebalance!$D$55,$F$2:$G$48,2,FALSE)+ROW()-2)),\"\")","v":{"$error":"#N/A"}},{"$f":"IF(INDIRECT(\"c\" & (VLOOKUP(Rebalance!$D$56,$F$2:$G$48,2,FALSE)+ROW()-2))=Rebalance!$D$56,INDIRECT(\"a\" & (VLOOKUP(Rebalance!$D$56,$F$2:$G$48,2,FALSE)+ROW()-2)),\"\")","v":{"$error":"#N/A"}},{"$f":"IF(INDIRECT(\"c\" & (VLOOKUP(Rebalance!$D$57,$F$2:$G$48,2,FALSE)+ROW()-2))=Rebalance!$D$57,INDIRECT(\"a\" & (VLOOKUP(Rebalance!$D$57,$F$2:$G$48,2,FALSE)+ROW()-2)),\"\")","v":{"$error":"#N/A"}},{"$f":"IF(INDIRECT(\"c\" & (VLOOKUP(Rebalance!$D$58,$F$2:$G$48,2,FALSE)+ROW()-2))=Rebalance!$D$58,INDIRECT(\"a\" & (VLOOKUP(Rebalance!$D$58,$F$2:$G$48,2,FALSE)+ROW()-2)),\"\")","v":{"$error":"#N/A"}},{"$f":"IF(INDIRECT(\"c\" & (VLOOKUP(Rebalance!$D$59,$F$2:$G$48,2,FALSE)+ROW()-2))=Rebalance!$D$59,INDIRECT(\"a\" & (VLOOKUP(Rebalance!$D$59,$F$2:$G$48,2,FALSE)+ROW()-2)),\"\")","v":{"$error":"#N/A"}},{"$f":"IF(INDIRECT(\"c\" & (VLOOKUP(Rebalance!$D$60,$F$2:$G$48,2,FALSE)+ROW()-2))=Rebalance!$D$60,INDIRECT(\"a\" & (VLOOKUP(Rebalance!$D$60,$F$2:$G$48,2,FALSE)+ROW()-2)),\"\")","v":{"$error":"#N/A"}},{"$f":"IF(INDIRECT(\"c\" & (VLOOKUP(Rebalance!$D$61,$F$2:$G$48,2,FALSE)+ROW()-2))=Rebalance!$D$61,INDIRECT(\"a\" & (VLOOKUP(Rebalance!$D$61,$F$2:$G$48,2,FALSE)+ROW()-2)),\"\")","v":{"$error":"#N/A"}},{"$f":"IF(INDIRECT(\"c\" & (VLOOKUP(Rebalance!$D$62,$F$2:$G$48,2,FALSE)+ROW()-2))=Rebalance!$D$62,INDIRECT(\"a\" & (VLOOKUP(Rebalance!$D$62,$F$2:$G$48,2,FALSE)+ROW()-2)),\"\")","v":{"$error":"#N/A"}},{"$f":"IF(INDIRECT(\"c\" & (VLOOKUP(Rebalance!$D$63,$F$2:$G$48,2,FALSE)+ROW()-2))=Rebalance!$D$63,INDIRECT(\"a\" & (VLOOKUP(Rebalance!$D$63,$F$2:$G$48,2,FALSE)+ROW()-2)),\"\")","v":{"$error":"#N/A"}},{"$f":"IF(INDIRECT(\"c\" & (VLOOKUP(Rebalance!$D$64,$F$2:$G$48,2,FALSE)+ROW()-2))=Rebalance!$D$64,INDIRECT(\"a\" & (VLOOKUP(Rebalance!$D$64,$F$2:$G$48,2,FALSE)+ROW()-2)),\"\")","v":{"$error":"#N/A"}},{"$f":"IF(INDIRECT(\"c\" & (VLOOKUP(Rebalance!$D$65,$F$2:$G$48,2,FALSE)+ROW()-2))=Rebalance!$D$65,INDIRECT(\"a\" & (VLOOKUP(Rebalance!$D$65,$F$2:$G$48,2,FALSE)+ROW()-2)),\"\")","v":{"$error":"#N/A"}},{"$f":"IF(INDIRECT(\"c\" & (VLOOKUP(Rebalance!$D$66,$F$2:$G$48,2,FALSE)+ROW()-2))=Rebalance!$D$66,INDIRECT(\"a\" & (VLOOKUP(Rebalance!$D$66,$F$2:$G$48,2,FALSE)+ROW()-2)),\"\")","v":{"$error":"#N/A"}}]
["PortfolioMetrix BCI SA Property Fund A","PMPFA","Boutique Collective Investments (Pty) Ltd",{"$f":"ROW()","v":159},null,null,{"$f":"VLOOKUP(F159,$C$2:$D$599,2,FALSE)","v":{"$error":"#N/A"}},{"$f":"IF(INDIRECT(\"c\" & (VLOOKUP(Rebalance!$D$26,$F$2:$G$48,2,FALSE)+ROW()-2))=Rebalance!$D$26,INDIRECT(\"a\" & (VLOOKUP(Rebalance!$D$26,$F$2:$G$48,2,FALSE)+ROW()-2)),\"\")","v":{"$error":"#N/A"}},{"$f":"IF(INDIRECT(\"c\" & (VLOOKUP(Rebalance!$D$27,$F$2:$G$48,2,FALSE)+ROW()-2))=Rebalance!$D$27,INDIRECT(\"a\" & (VLOOKUP(Rebalance!$D$27,$F$2:$G$48,2,FALSE)+ROW()-2)),\"\")","v":{"$error":"#N/A"}},{"$f":"IF(INDIRECT(\"c\" & (VLOOKUP(Rebalance!$D$28,$F$2:$G$48,2,FALSE)+ROW()-2))=Rebalance!$D$28,INDIRECT(\"a\" & (VLOOKUP(Rebalance!$D$28,$F$2:$G$48,2,FALSE)+ROW()-2)),\"\")","v":{"$error":"#N/A"}},{"$f":"IF(INDIRECT(\"c\" & (VLOOKUP(Rebalance!$D$29,$F$2:$G$48,2,FALSE)+ROW()-2))=Rebalance!$D$29,INDIRECT(\"a\" & (VLOOKUP(Rebalance!$D$29,$F$2:$G$48,2,FALSE)+ROW()-2)),\"\")","v":{"$error":"#N/A"}},{"$f":"IF(INDIRECT(\"c\" & (VLOOKUP(Rebalance!$D$30,$F$2:$G$48,2,FALSE)+ROW()-2))=Rebalance!$D$30,INDIRECT(\"a\" & (VLOOKUP(Rebalance!$D$30,$F$2:$G$48,2,FALSE)+ROW()-2)),\"\")","v":{"$error":"#N/A"}},{"$f":"IF(INDIRECT(\"c\" & (VLOOKUP(Rebalance!$D$31,$F$2:$G$48,2,FALSE)+ROW()-2))=Rebalance!$D$31,INDIRECT(\"a\" & (VLOOKUP(Rebalance!$D$31,$F$2:$G$48,2,FALSE)+ROW()-2)),\"\")","v":{"$error":"#N/A"}},{"$f":"IF(INDIRECT(\"c\" & (VLOOKUP(Rebalance!$D$32,$F$2:$G$48,2,FALSE)+ROW()-2))=Rebalance!$D$32,INDIRECT(\"a\" & (VLOOKUP(Rebalance!$D$32,$F$2:$G$48,2,FALSE)+ROW()-2)),\"\")","v":{"$error":"#N/A"}},{"$f":"IF(INDIRECT(\"c\" & (VLOOKUP(Rebalance!$D$33,$F$2:$G$48,2,FALSE)+ROW()-2))=Rebalance!$D$33,INDIRECT(\"a\" & (VLOOKUP(Rebalance!$D$33,$F$2:$G$48,2,FALSE)+ROW()-2)),\"\")","v":{"$error":"#N/A"}},{"$f":"IF(INDIRECT(\"c\" & (VLOOKUP(Rebalance!$D$34,$F$2:$G$48,2,FALSE)+ROW()-2))=Rebalance!$D$34,INDIRECT(\"a\" & (VLOOKUP(Rebalance!$D$34,$F$2:$G$48,2,FALSE)+ROW()-2)),\"\")","v":{"$error":"#N/A"}},{"$f":"IF(INDIRECT(\"c\" & (VLOOKUP(Rebalance!$D$35,$F$2:$G$48,2,FALSE)+ROW()-2))=Rebalance!$D$35,INDIRECT(\"a\" & (VLOOKUP(Rebalance!$D$35,$F$2:$G$48,2,FALSE)+ROW()-2)),\"\")","v":{"$error":"#N/A"}},{"$f":"IF(INDIRECT(\"c\" & (VLOOKUP(Rebalance!$D$36,$F$2:$G$48,2,FALSE)+ROW()-2))=Rebalance!$D$36,INDIRECT(\"a\" & (VLOOKUP(Rebalance!$D$36,$F$2:$G$48,2,FALSE)+ROW()-2)),\"\")","v":{"$error":"#N/A"}},{"$f":"IF(INDIRECT(\"c\" & (VLOOKUP(Rebalance!$D$37,$F$2:$G$48,2,FALSE)+ROW()-2))=Rebalance!$D$37,INDIRECT(\"a\" & (VLOOKUP(Rebalance!$D$37,$F$2:$G$48,2,FALSE)+ROW()-2)),\"\")","v":{"$error":"#N/A"}},{"$f":"IF(INDIRECT(\"c\" & (VLOOKUP(Rebalance!$D$38,$F$2:$G$48,2,FALSE)+ROW()-2))=Rebalance!$D$38,INDIRECT(\"a\" & (VLOOKUP(Rebalance!$D$38,$F$2:$G$48,2,FALSE)+ROW()-2)),\"\")","v":{"$error":"#N/A"}},{"$f":"IF(INDIRECT(\"c\" & (VLOOKUP(Rebalance!$D$39,$F$2:$G$48,2,FALSE)+ROW()-2))=Rebalance!$D$39,INDIRECT(\"a\" & (VLOOKUP(Rebalance!$D$39,$F$2:$G$48,2,FALSE)+ROW()-2)),\"\")","v":{"$error":"#N/A"}},{"$f":"IF(INDIRECT(\"c\" & (VLOOKUP(Rebalance!$D$40,$F$2:$G$48,2,FALSE)+ROW()-2))=Rebalance!$D$40,INDIRECT(\"a\" & (VLOOKUP(Rebalance!$D$40,$F$2:$G$48,2,FALSE)+ROW()-2)),\"\")","v":{"$error":"#N/A"}},{"$f":"IF(INDIRECT(\"c\" & (VLOOKUP(Rebalance!$D$52,$F$2:$G$48,2,FALSE)+ROW()-2))=Rebalance!$D$52,INDIRECT(\"a\" & (VLOOKUP(Rebalance!$D$52,$F$2:$G$48,2,FALSE)+ROW()-2)),\"\")","v":{"$error":"#N/A"}},{"$f":"IF(INDIRECT(\"c\" & (VLOOKUP(Rebalance!$D$53,$F$2:$G$48,2,FALSE)+ROW()-2))=Rebalance!$D$53,INDIRECT(\"a\" & (VLOOKUP(Rebalance!$D$53,$F$2:$G$48,2,FALSE)+ROW()-2)),\"\")","v":{"$error":"#N/A"}},{"$f":"IF(INDIRECT(\"c\" & (VLOOKUP(Rebalance!$D$54,$F$2:$G$48,2,FALSE)+ROW()-2))=Rebalance!$D$54,INDIRECT(\"a\" & (VLOOKUP(Rebalance!$D$54,$F$2:$G$48,2,FALSE)+ROW()-2)),\"\")","v":{"$error":"#N/A"}},{"$f":"IF(INDIRECT(\"c\" & (VLOOKUP(Rebalance!$D$55,$F$2:$G$48,2,FALSE)+ROW()-2))=Rebalance!$D$55,INDIRECT(\"a\" & (VLOOKUP(Rebalance!$D$55,$F$2:$G$48,2,FALSE)+ROW()-2)),\"\")","v":{"$error":"#N/A"}},{"$f":"IF(INDIRECT(\"c\" & (VLOOKUP(Rebalance!$D$56,$F$2:$G$48,2,FALSE)+ROW()-2))=Rebalance!$D$56,INDIRECT(\"a\" & (VLOOKUP(Rebalance!$D$56,$F$2:$G$48,2,FALSE)+ROW()-2)),\"\")","v":{"$error":"#N/A"}},{"$f":"IF(INDIRECT(\"c\" & (VLOOKUP(Rebalance!$D$57,$F$2:$G$48,2,FALSE)+ROW()-2))=Rebalance!$D$57,INDIRECT(\"a\" & (VLOOKUP(Rebalance!$D$57,$F$2:$G$48,2,FALSE)+ROW()-2)),\"\")","v":{"$error":"#N/A"}},{"$f":"IF(INDIRECT(\"c\" & (VLOOKUP(Rebalance!$D$58,$F$2:$G$48,2,FALSE)+ROW()-2))=Rebalance!$D$58,INDIRECT(\"a\" & (VLOOKUP(Rebalance!$D$58,$F$2:$G$48,2,FALSE)+ROW()-2)),\"\")","v":{"$error":"#N/A"}},{"$f":"IF(INDIRECT(\"c\" & (VLOOKUP(Rebalance!$D$59,$F$2:$G$48,2,FALSE)+ROW()-2))=Rebalance!$D$59,INDIRECT(\"a\" & (VLOOKUP(Rebalance!$D$59,$F$2:$G$48,2,FALSE)+ROW()-2)),\"\")","v":{"$error":"#N/A"}},{"$f":"IF(INDIRECT(\"c\" & (VLOOKUP(Rebalance!$D$60,$F$2:$G$48,2,FALSE)+ROW()-2))=Rebalance!$D$60,INDIRECT(\"a\" & (VLOOKUP(Rebalance!$D$60,$F$2:$G$48,2,FALSE)+ROW()-2)),\"\")","v":{"$error":"#N/A"}},{"$f":"IF(INDIRECT(\"c\" & (VLOOKUP(Rebalance!$D$61,$F$2:$G$48,2,FALSE)+ROW()-2))=Rebalance!$D$61,INDIRECT(\"a\" & (VLOOKUP(Rebalance!$D$61,$F$2:$G$48,2,FALSE)+ROW()-2)),\"\")","v":{"$error":"#N/A"}},{"$f":"IF(INDIRECT(\"c\" & (VLOOKUP(Rebalance!$D$62,$F$2:$G$48,2,FALSE)+ROW()-2))=Rebalance!$D$62,INDIRECT(\"a\" & (VLOOKUP(Rebalance!$D$62,$F$2:$G$48,2,FALSE)+ROW()-2)),\"\")","v":{"$error":"#N/A"}},{"$f":"IF(INDIRECT(\"c\" & (VLOOKUP(Rebalance!$D$63,$F$2:$G$48,2,FALSE)+ROW()-2))=Rebalance!$D$63,INDIRECT(\"a\" & (VLOOKUP(Rebalance!$D$63,$F$2:$G$48,2,FALSE)+ROW()-2)),\"\")","v":{"$error":"#N/A"}},{"$f":"IF(INDIRECT(\"c\" & (VLOOKUP(Rebalance!$D$64,$F$2:$G$48,2,FALSE)+ROW()-2))=Rebalance!$D$64,INDIRECT(\"a\" & (VLOOKUP(Rebalance!$D$64,$F$2:$G$48,2,FALSE)+ROW()-2)),\"\")","v":{"$error":"#N/A"}},{"$f":"IF(INDIRECT(\"c\" & (VLOOKUP(Rebalance!$D$65,$F$2:$G$48,2,FALSE)+ROW()-2))=Rebalance!$D$65,INDIRECT(\"a\" & (VLOOKUP(Rebalance!$D$65,$F$2:$G$48,2,FALSE)+ROW()-2)),\"\")","v":{"$error":"#N/A"}},{"$f":"IF(INDIRECT(\"c\" & (VLOOKUP(Rebalance!$D$66,$F$2:$G$48,2,FALSE)+ROW()-2))=Rebalance!$D$66,INDIRECT(\"a\" & (VLOOKUP(Rebalance!$D$66,$F$2:$G$48,2,FALSE)+ROW()-2)),\"\")","v":{"$error":"#N/A"}}]
["Rebalance BCI Inflation Plus 3 Fund A","RBIP3","Boutique Collective Investments (Pty) Ltd",{"$f":"ROW()","v":160},null,null,{"$f":"VLOOKUP(F160,$C$2:$D$599,2,FALSE)","v":{"$error":"#N/A"}},{"$f":"IF(INDIRECT(\"c\" & (VLOOKUP(Rebalance!$D$26,$F$2:$G$48,2,FALSE)+ROW()-2))=Rebalance!$D$26,INDIRECT(\"a\" & (VLOOKUP(Rebalance!$D$26,$F$2:$G$48,2,FALSE)+ROW()-2)),\"\")","v":{"$error":"#N/A"}},{"$f":"IF(INDIRECT(\"c\" & (VLOOKUP(Rebalance!$D$27,$F$2:$G$48,2,FALSE)+ROW()-2))=Rebalance!$D$27,INDIRECT(\"a\" & (VLOOKUP(Rebalance!$D$27,$F$2:$G$48,2,FALSE)+ROW()-2)),\"\")","v":{"$error":"#N/A"}},{"$f":"IF(INDIRECT(\"c\" & (VLOOKUP(Rebalance!$D$28,$F$2:$G$48,2,FALSE)+ROW()-2))=Rebalance!$D$28,INDIRECT(\"a\" & (VLOOKUP(Rebalance!$D$28,$F$2:$G$48,2,FALSE)+ROW()-2)),\"\")","v":{"$error":"#N/A"}},{"$f":"IF(INDIRECT(\"c\" & (VLOOKUP(Rebalance!$D$29,$F$2:$G$48,2,FALSE)+ROW()-2))=Rebalance!$D$29,INDIRECT(\"a\" & (VLOOKUP(Rebalance!$D$29,$F$2:$G$48,2,FALSE)+ROW()-2)),\"\")","v":{"$error":"#N/A"}},{"$f":"IF(INDIRECT(\"c\" & (VLOOKUP(Rebalance!$D$30,$F$2:$G$48,2,FALSE)+ROW()-2))=Rebalance!$D$30,INDIRECT(\"a\" & (VLOOKUP(Rebalance!$D$30,$F$2:$G$48,2,FALSE)+ROW()-2)),\"\")","v":{"$error":"#N/A"}},{"$f":"IF(INDIRECT(\"c\" & (VLOOKUP(Rebalance!$D$31,$F$2:$G$48,2,FALSE)+ROW()-2))=Rebalance!$D$31,INDIRECT(\"a\" & (VLOOKUP(Rebalance!$D$31,$F$2:$G$48,2,FALSE)+ROW()-2)),\"\")","v":{"$error":"#N/A"}},{"$f":"IF(INDIRECT(\"c\" & (VLOOKUP(Rebalance!$D$32,$F$2:$G$48,2,FALSE)+ROW()-2))=Rebalance!$D$32,INDIRECT(\"a\" & (VLOOKUP(Rebalance!$D$32,$F$2:$G$48,2,FALSE)+ROW()-2)),\"\")","v":{"$error":"#N/A"}},{"$f":"IF(INDIRECT(\"c\" & (VLOOKUP(Rebalance!$D$33,$F$2:$G$48,2,FALSE)+ROW()-2))=Rebalance!$D$33,INDIRECT(\"a\" & (VLOOKUP(Rebalance!$D$33,$F$2:$G$48,2,FALSE)+ROW()-2)),\"\")","v":{"$error":"#N/A"}},{"$f":"IF(INDIRECT(\"c\" & (VLOOKUP(Rebalance!$D$34,$F$2:$G$48,2,FALSE)+ROW()-2))=Rebalance!$D$34,INDIRECT(\"a\" & (VLOOKUP(Rebalance!$D$34,$F$2:$G$48,2,FALSE)+ROW()-2)),\"\")","v":{"$error":"#N/A"}},{"$f":"IF(INDIRECT(\"c\" & (VLOOKUP(Rebalance!$D$35,$F$2:$G$48,2,FALSE)+ROW()-2))=Rebalance!$D$35,INDIRECT(\"a\" & (VLOOKUP(Rebalance!$D$35,$F$2:$G$48,2,FALSE)+ROW()-2)),\"\")","v":{"$error":"#N/A"}},{"$f":"IF(INDIRECT(\"c\" & (VLOOKUP(Rebalance!$D$36,$F$2:$G$48,2,FALSE)+ROW()-2))=Rebalance!$D$36,INDIRECT(\"a\" & (VLOOKUP(Rebalance!$D$36,$F$2:$G$48,2,FALSE)+ROW()-2)),\"\")","v":{"$error":"#N/A"}},{"$f":"IF(INDIRECT(\"c\" & (VLOOKUP(Rebalance!$D$37,$F$2:$G$48,2,FALSE)+ROW()-2))=Rebalance!$D$37,INDIRECT(\"a\" & (VLOOKUP(Rebalance!$D$37,$F$2:$G$48,2,FALSE)+ROW()-2)),\"\")","v":{"$error":"#N/A"}},{"$f":"IF(INDIRECT(\"c\" & (VLOOKUP(Rebalance!$D$38,$F$2:$G$48,2,FALSE)+ROW()-2))=Rebalance!$D$38,INDIRECT(\"a\" & (VLOOKUP(Rebalance!$D$38,$F$2:$G$48,2,FALSE)+ROW()-2)),\"\")","v":{"$error":"#N/A"}},{"$f":"IF(INDIRECT(\"c\" & (VLOOKUP(Rebalance!$D$39,$F$2:$G$48,2,FALSE)+ROW()-2))=Rebalance!$D$39,INDIRECT(\"a\" & (VLOOKUP(Rebalance!$D$39,$F$2:$G$48,2,FALSE)+ROW()-2)),\"\")","v":{"$error":"#N/A"}},{"$f":"IF(INDIRECT(\"c\" & (VLOOKUP(Rebalance!$D$40,$F$2:$G$48,2,FALSE)+ROW()-2))=Rebalance!$D$40,INDIRECT(\"a\" & (VLOOKUP(Rebalance!$D$40,$F$2:$G$48,2,FALSE)+ROW()-2)),\"\")","v":{"$error":"#N/A"}},{"$f":"IF(INDIRECT(\"c\" & (VLOOKUP(Rebalance!$D$52,$F$2:$G$48,2,FALSE)+ROW()-2))=Rebalance!$D$52,INDIRECT(\"a\" & (VLOOKUP(Rebalance!$D$52,$F$2:$G$48,2,FALSE)+ROW()-2)),\"\")","v":{"$error":"#N/A"}},{"$f":"IF(INDIRECT(\"c\" & (VLOOKUP(Rebalance!$D$53,$F$2:$G$48,2,FALSE)+ROW()-2))=Rebalance!$D$53,INDIRECT(\"a\" & (VLOOKUP(Rebalance!$D$53,$F$2:$G$48,2,FALSE)+ROW()-2)),\"\")","v":{"$error":"#N/A"}},{"$f":"IF(INDIRECT(\"c\" & (VLOOKUP(Rebalance!$D$54,$F$2:$G$48,2,FALSE)+ROW()-2))=Rebalance!$D$54,INDIRECT(\"a\" & (VLOOKUP(Rebalance!$D$54,$F$2:$G$48,2,FALSE)+ROW()-2)),\"\")","v":{"$error":"#N/A"}},{"$f":"IF(INDIRECT(\"c\" & (VLOOKUP(Rebalance!$D$55,$F$2:$G$48,2,FALSE)+ROW()-2))=Rebalance!$D$55,INDIRECT(\"a\" & (VLOOKUP(Rebalance!$D$55,$F$2:$G$48,2,FALSE)+ROW()-2)),\"\")","v":{"$error":"#N/A"}},{"$f":"IF(INDIRECT(\"c\" & (VLOOKUP(Rebalance!$D$56,$F$2:$G$48,2,FALSE)+ROW()-2))=Rebalance!$D$56,INDIRECT(\"a\" & (VLOOKUP(Rebalance!$D$56,$F$2:$G$48,2,FALSE)+ROW()-2)),\"\")","v":{"$error":"#N/A"}},{"$f":"IF(INDIRECT(\"c\" & (VLOOKUP(Rebalance!$D$57,$F$2:$G$48,2,FALSE)+ROW()-2))=Rebalance!$D$57,INDIRECT(\"a\" & (VLOOKUP(Rebalance!$D$57,$F$2:$G$48,2,FALSE)+ROW()-2)),\"\")","v":{"$error":"#N/A"}},{"$f":"IF(INDIRECT(\"c\" & (VLOOKUP(Rebalance!$D$58,$F$2:$G$48,2,FALSE)+ROW()-2))=Rebalance!$D$58,INDIRECT(\"a\" & (VLOOKUP(Rebalance!$D$58,$F$2:$G$48,2,FALSE)+ROW()-2)),\"\")","v":{"$error":"#N/A"}},{"$f":"IF(INDIRECT(\"c\" & (VLOOKUP(Rebalance!$D$59,$F$2:$G$48,2,FALSE)+ROW()-2))=Rebalance!$D$59,INDIRECT(\"a\" & (VLOOKUP(Rebalance!$D$59,$F$2:$G$48,2,FALSE)+ROW()-2)),\"\")","v":{"$error":"#N/A"}},{"$f":"IF(INDIRECT(\"c\" & (VLOOKUP(Rebalance!$D$60,$F$2:$G$48,2,FALSE)+ROW()-2))=Rebalance!$D$60,INDIRECT(\"a\" & (VLOOKUP(Rebalance!$D$60,$F$2:$G$48,2,FALSE)+ROW()-2)),\"\")","v":{"$error":"#N/A"}},{"$f":"IF(INDIRECT(\"c\" & (VLOOKUP(Rebalance!$D$61,$F$2:$G$48,2,FALSE)+ROW()-2))=Rebalance!$D$61,INDIRECT(\"a\" & (VLOOKUP(Rebalance!$D$61,$F$2:$G$48,2,FALSE)+ROW()-2)),\"\")","v":{"$error":"#N/A"}},{"$f":"IF(INDIRECT(\"c\" & (VLOOKUP(Rebalance!$D$62,$F$2:$G$48,2,FALSE)+ROW()-2))=Rebalance!$D$62,INDIRECT(\"a\" & (VLOOKUP(Rebalance!$D$62,$F$2:$G$48,2,FALSE)+ROW()-2)),\"\")","v":{"$error":"#N/A"}},{"$f":"IF(INDIRECT(\"c\" & (VLOOKUP(Rebalance!$D$63,$F$2:$G$48,2,FALSE)+ROW()-2))=Rebalance!$D$63,INDIRECT(\"a\" & (VLOOKUP(Rebalance!$D$63,$F$2:$G$48,2,FALSE)+ROW()-2)),\"\")","v":{"$error":"#N/A"}},{"$f":"IF(INDIRECT(\"c\" & (VLOOKUP(Rebalance!$D$64,$F$2:$G$48,2,FALSE)+ROW()-2))=Rebalance!$D$64,INDIRECT(\"a\" & (VLOOKUP(Rebalance!$D$64,$F$2:$G$48,2,FALSE)+ROW()-2)),\"\")","v":{"$error":"#N/A"}},{"$f":"IF(INDIRECT(\"c\" & (VLOOKUP(Rebalance!$D$65,$F$2:$G$48,2,FALSE)+ROW()-2))=Rebalance!$D$65,INDIRECT(\"a\" & (VLOOKUP(Rebalance!$D$65,$F$2:$G$48,2,FALSE)+ROW()-2)),\"\")","v":{"$error":"#N/A"}},{"$f":"IF(INDIRECT(\"c\" & (VLOOKUP(Rebalance!$D$66,$F$2:$G$48,2,FALSE)+ROW()-2))=Rebalance!$D$66,INDIRECT(\"a\" & (VLOOKUP(Rebalance!$D$66,$F$2:$G$48,2,FALSE)+ROW()-2)),\"\")","v":{"$error":"#N/A"}}]
["Rebalance BCI Inflation Plus 5 Fund A","RBIP5","Boutique Collective Investments (Pty) Ltd",{"$f":"ROW()","v":161},null,null,{"$f":"VLOOKUP(F161,$C$2:$D$599,2,FALSE)","v":{"$error":"#N/A"}},{"$f":"IF(INDIRECT(\"c\" & (VLOOKUP(Rebalance!$D$26,$F$2:$G$48,2,FALSE)+ROW()-2))=Rebalance!$D$26,INDIRECT(\"a\" & (VLOOKUP(Rebalance!$D$26,$F$2:$G$48,2,FALSE)+ROW()-2)),\"\")","v":{"$error":"#N/A"}},{"$f":"IF(INDIRECT(\"c\" & (VLOOKUP(Rebalance!$D$27,$F$2:$G$48,2,FALSE)+ROW()-2))=Rebalance!$D$27,INDIRECT(\"a\" & (VLOOKUP(Rebalance!$D$27,$F$2:$G$48,2,FALSE)+ROW()-2)),\"\")","v":{"$error":"#N/A"}},{"$f":"IF(INDIRECT(\"c\" & (VLOOKUP(Rebalance!$D$28,$F$2:$G$48,2,FALSE)+ROW()-2))=Rebalance!$D$28,INDIRECT(\"a\" & (VLOOKUP(Rebalance!$D$28,$F$2:$G$48,2,FALSE)+ROW()-2)),\"\")","v":{"$error":"#N/A"}},{"$f":"IF(INDIRECT(\"c\" & (VLOOKUP(Rebalance!$D$29,$F$2:$G$48,2,FALSE)+ROW()-2))=Rebalance!$D$29,INDIRECT(\"a\" & (VLOOKUP(Rebalance!$D$29,$F$2:$G$48,2,FALSE)+ROW()-2)),\"\")","v":{"$error":"#N/A"}},{"$f":"IF(INDIRECT(\"c\" & (VLOOKUP(Rebalance!$D$30,$F$2:$G$48,2,FALSE)+ROW()-2))=Rebalance!$D$30,INDIRECT(\"a\" & (VLOOKUP(Rebalance!$D$30,$F$2:$G$48,2,FALSE)+ROW()-2)),\"\")","v":{"$error":"#N/A"}},{"$f":"IF(INDIRECT(\"c\" & (VLOOKUP(Rebalance!$D$31,$F$2:$G$48,2,FALSE)+ROW()-2))=Rebalance!$D$31,INDIRECT(\"a\" & (VLOOKUP(Rebalance!$D$31,$F$2:$G$48,2,FALSE)+ROW()-2)),\"\")","v":{"$error":"#N/A"}},{"$f":"IF(INDIRECT(\"c\" & (VLOOKUP(Rebalance!$D$32,$F$2:$G$48,2,FALSE)+ROW()-2))=Rebalance!$D$32,INDIRECT(\"a\" & (VLOOKUP(Rebalance!$D$32,$F$2:$G$48,2,FALSE)+ROW()-2)),\"\")","v":{"$error":"#N/A"}},{"$f":"IF(INDIRECT(\"c\" & (VLOOKUP(Rebalance!$D$33,$F$2:$G$48,2,FALSE)+ROW()-2))=Rebalance!$D$33,INDIRECT(\"a\" & (VLOOKUP(Rebalance!$D$33,$F$2:$G$48,2,FALSE)+ROW()-2)),\"\")","v":{"$error":"#N/A"}},{"$f":"IF(INDIRECT(\"c\" & (VLOOKUP(Rebalance!$D$34,$F$2:$G$48,2,FALSE)+ROW()-2))=Rebalance!$D$34,INDIRECT(\"a\" & (VLOOKUP(Rebalance!$D$34,$F$2:$G$48,2,FALSE)+ROW()-2)),\"\")","v":{"$error":"#N/A"}},{"$f":"IF(INDIRECT(\"c\" & (VLOOKUP(Rebalance!$D$35,$F$2:$G$48,2,FALSE)+ROW()-2))=Rebalance!$D$35,INDIRECT(\"a\" & (VLOOKUP(Rebalance!$D$35,$F$2:$G$48,2,FALSE)+ROW()-2)),\"\")","v":{"$error":"#N/A"}},{"$f":"IF(INDIRECT(\"c\" & (VLOOKUP(Rebalance!$D$36,$F$2:$G$48,2,FALSE)+ROW()-2))=Rebalance!$D$36,INDIRECT(\"a\" & (VLOOKUP(Rebalance!$D$36,$F$2:$G$48,2,FALSE)+ROW()-2)),\"\")","v":{"$error":"#N/A"}},{"$f":"IF(INDIRECT(\"c\" & (VLOOKUP(Rebalance!$D$37,$F$2:$G$48,2,FALSE)+ROW()-2))=Rebalance!$D$37,INDIRECT(\"a\" & (VLOOKUP(Rebalance!$D$37,$F$2:$G$48,2,FALSE)+ROW()-2)),\"\")","v":{"$error":"#N/A"}},{"$f":"IF(INDIRECT(\"c\" & (VLOOKUP(Rebalance!$D$38,$F$2:$G$48,2,FALSE)+ROW()-2))=Rebalance!$D$38,INDIRECT(\"a\" & (VLOOKUP(Rebalance!$D$38,$F$2:$G$48,2,FALSE)+ROW()-2)),\"\")","v":{"$error":"#N/A"}},{"$f":"IF(INDIRECT(\"c\" & (VLOOKUP(Rebalance!$D$39,$F$2:$G$48,2,FALSE)+ROW()-2))=Rebalance!$D$39,INDIRECT(\"a\" & (VLOOKUP(Rebalance!$D$39,$F$2:$G$48,2,FALSE)+ROW()-2)),\"\")","v":{"$error":"#N/A"}},{"$f":"IF(INDIRECT(\"c\" & (VLOOKUP(Rebalance!$D$40,$F$2:$G$48,2,FALSE)+ROW()-2))=Rebalance!$D$40,INDIRECT(\"a\" & (VLOOKUP(Rebalance!$D$40,$F$2:$G$48,2,FALSE)+ROW()-2)),\"\")","v":{"$error":"#N/A"}},{"$f":"IF(INDIRECT(\"c\" & (VLOOKUP(Rebalance!$D$52,$F$2:$G$48,2,FALSE)+ROW()-2))=Rebalance!$D$52,INDIRECT(\"a\" & (VLOOKUP(Rebalance!$D$52,$F$2:$G$48,2,FALSE)+ROW()-2)),\"\")","v":{"$error":"#N/A"}},{"$f":"IF(INDIRECT(\"c\" & (VLOOKUP(Rebalance!$D$53,$F$2:$G$48,2,FALSE)+ROW()-2))=Rebalance!$D$53,INDIRECT(\"a\" & (VLOOKUP(Rebalance!$D$53,$F$2:$G$48,2,FALSE)+ROW()-2)),\"\")","v":{"$error":"#N/A"}},{"$f":"IF(INDIRECT(\"c\" & (VLOOKUP(Rebalance!$D$54,$F$2:$G$48,2,FALSE)+ROW()-2))=Rebalance!$D$54,INDIRECT(\"a\" & (VLOOKUP(Rebalance!$D$54,$F$2:$G$48,2,FALSE)+ROW()-2)),\"\")","v":{"$error":"#N/A"}},{"$f":"IF(INDIRECT(\"c\" & (VLOOKUP(Rebalance!$D$55,$F$2:$G$48,2,FALSE)+ROW()-2))=Rebalance!$D$55,INDIRECT(\"a\" & (VLOOKUP(Rebalance!$D$55,$F$2:$G$48,2,FALSE)+ROW()-2)),\"\")","v":{"$error":"#N/A"}},{"$f":"IF(INDIRECT(\"c\" & (VLOOKUP(Rebalance!$D$56,$F$2:$G$48,2,FALSE)+ROW()-2))=Rebalance!$D$56,INDIRECT(\"a\" & (VLOOKUP(Rebalance!$D$56,$F$2:$G$48,2,FALSE)+ROW()-2)),\"\")","v":{"$error":"#N/A"}},{"$f":"IF(INDIRECT(\"c\" & (VLOOKUP(Rebalance!$D$57,$F$2:$G$48,2,FALSE)+ROW()-2))=Rebalance!$D$57,INDIRECT(\"a\" & (VLOOKUP(Rebalance!$D$57,$F$2:$G$48,2,FALSE)+ROW()-2)),\"\")","v":{"$error":"#N/A"}},{"$f":"IF(INDIRECT(\"c\" & (VLOOKUP(Rebalance!$D$58,$F$2:$G$48,2,FALSE)+ROW()-2))=Rebalance!$D$58,INDIRECT(\"a\" & (VLOOKUP(Rebalance!$D$58,$F$2:$G$48,2,FALSE)+ROW()-2)),\"\")","v":{"$error":"#N/A"}},{"$f":"IF(INDIRECT(\"c\" & (VLOOKUP(Rebalance!$D$59,$F$2:$G$48,2,FALSE)+ROW()-2))=Rebalance!$D$59,INDIRECT(\"a\" & (VLOOKUP(Rebalance!$D$59,$F$2:$G$48,2,FALSE)+ROW()-2)),\"\")","v":{"$error":"#N/A"}},{"$f":"IF(INDIRECT(\"c\" & (VLOOKUP(Rebalance!$D$60,$F$2:$G$48,2,FALSE)+ROW()-2))=Rebalance!$D$60,INDIRECT(\"a\" & (VLOOKUP(Rebalance!$D$60,$F$2:$G$48,2,FALSE)+ROW()-2)),\"\")","v":{"$error":"#N/A"}},{"$f":"IF(INDIRECT(\"c\" & (VLOOKUP(Rebalance!$D$61,$F$2:$G$48,2,FALSE)+ROW()-2))=Rebalance!$D$61,INDIRECT(\"a\" & (VLOOKUP(Rebalance!$D$61,$F$2:$G$48,2,FALSE)+ROW()-2)),\"\")","v":{"$error":"#N/A"}},{"$f":"IF(INDIRECT(\"c\" & (VLOOKUP(Rebalance!$D$62,$F$2:$G$48,2,FALSE)+ROW()-2))=Rebalance!$D$62,INDIRECT(\"a\" & (VLOOKUP(Rebalance!$D$62,$F$2:$G$48,2,FALSE)+ROW()-2)),\"\")","v":{"$error":"#N/A"}},{"$f":"IF(INDIRECT(\"c\" & (VLOOKUP(Rebalance!$D$63,$F$2:$G$48,2,FALSE)+ROW()-2))=Rebalance!$D$63,INDIRECT(\"a\" & (VLOOKUP(Rebalance!$D$63,$F$2:$G$48,2,FALSE)+ROW()-2)),\"\")","v":{"$error":"#N/A"}},{"$f":"IF(INDIRECT(\"c\" & (VLOOKUP(Rebalance!$D$64,$F$2:$G$48,2,FALSE)+ROW()-2))=Rebalance!$D$64,INDIRECT(\"a\" & (VLOOKUP(Rebalance!$D$64,$F$2:$G$48,2,FALSE)+ROW()-2)),\"\")","v":{"$error":"#N/A"}},{"$f":"IF(INDIRECT(\"c\" & (VLOOKUP(Rebalance!$D$65,$F$2:$G$48,2,FALSE)+ROW()-2))=Rebalance!$D$65,INDIRECT(\"a\" & (VLOOKUP(Rebalance!$D$65,$F$2:$G$48,2,FALSE)+ROW()-2)),\"\")","v":{"$error":"#N/A"}},{"$f":"IF(INDIRECT(\"c\" & (VLOOKUP(Rebalance!$D$66,$F$2:$G$48,2,FALSE)+ROW()-2))=Rebalance!$D$66,INDIRECT(\"a\" & (VLOOKUP(Rebalance!$D$66,$F$2:$G$48,2,FALSE)+ROW()-2)),\"\")","v":{"$error":"#N/A"}}]
["Rebalance BCI Inflation Plus 7 Fund A","RBIP7","Boutique Collective Investments (Pty) Ltd",{"$f":"ROW()","v":162},null,null,{"$f":"VLOOKUP(F162,$C$2:$D$599,2,FALSE)","v":{"$error":"#N/A"}},{"$f":"IF(INDIRECT(\"c\" & (VLOOKUP(Rebalance!$D$26,$F$2:$G$48,2,FALSE)+ROW()-2))=Rebalance!$D$26,INDIRECT(\"a\" & (VLOOKUP(Rebalance!$D$26,$F$2:$G$48,2,FALSE)+ROW()-2)),\"\")","v":{"$error":"#N/A"}},{"$f":"IF(INDIRECT(\"c\" & (VLOOKUP(Rebalance!$D$27,$F$2:$G$48,2,FALSE)+ROW()-2))=Rebalance!$D$27,INDIRECT(\"a\" & (VLOOKUP(Rebalance!$D$27,$F$2:$G$48,2,FALSE)+ROW()-2)),\"\")","v":{"$error":"#N/A"}},{"$f":"IF(INDIRECT(\"c\" & (VLOOKUP(Rebalance!$D$28,$F$2:$G$48,2,FALSE)+ROW()-2))=Rebalance!$D$28,INDIRECT(\"a\" & (VLOOKUP(Rebalance!$D$28,$F$2:$G$48,2,FALSE)+ROW()-2)),\"\")","v":{"$error":"#N/A"}},{"$f":"IF(INDIRECT(\"c\" & (VLOOKUP(Rebalance!$D$29,$F$2:$G$48,2,FALSE)+ROW()-2))=Rebalance!$D$29,INDIRECT(\"a\" & (VLOOKUP(Rebalance!$D$29,$F$2:$G$48,2,FALSE)+ROW()-2)),\"\")","v":{"$error":"#N/A"}},{"$f":"IF(INDIRECT(\"c\" & (VLOOKUP(Rebalance!$D$30,$F$2:$G$48,2,FALSE)+ROW()-2))=Rebalance!$D$30,INDIRECT(\"a\" & (VLOOKUP(Rebalance!$D$30,$F$2:$G$48,2,FALSE)+ROW()-2)),\"\")","v":{"$error":"#N/A"}},{"$f":"IF(INDIRECT(\"c\" & (VLOOKUP(Rebalance!$D$31,$F$2:$G$48,2,FALSE)+ROW()-2))=Rebalance!$D$31,INDIRECT(\"a\" & (VLOOKUP(Rebalance!$D$31,$F$2:$G$48,2,FALSE)+ROW()-2)),\"\")","v":{"$error":"#N/A"}},{"$f":"IF(INDIRECT(\"c\" & (VLOOKUP(Rebalance!$D$32,$F$2:$G$48,2,FALSE)+ROW()-2))=Rebalance!$D$32,INDIRECT(\"a\" & (VLOOKUP(Rebalance!$D$32,$F$2:$G$48,2,FALSE)+ROW()-2)),\"\")","v":{"$error":"#N/A"}},{"$f":"IF(INDIRECT(\"c\" & (VLOOKUP(Rebalance!$D$33,$F$2:$G$48,2,FALSE)+ROW()-2))=Rebalance!$D$33,INDIRECT(\"a\" & (VLOOKUP(Rebalance!$D$33,$F$2:$G$48,2,FALSE)+ROW()-2)),\"\")","v":{"$error":"#N/A"}},{"$f":"IF(INDIRECT(\"c\" & (VLOOKUP(Rebalance!$D$34,$F$2:$G$48,2,FALSE)+ROW()-2))=Rebalance!$D$34,INDIRECT(\"a\" & (VLOOKUP(Rebalance!$D$34,$F$2:$G$48,2,FALSE)+ROW()-2)),\"\")","v":{"$error":"#N/A"}},{"$f":"IF(INDIRECT(\"c\" & (VLOOKUP(Rebalance!$D$35,$F$2:$G$48,2,FALSE)+ROW()-2))=Rebalance!$D$35,INDIRECT(\"a\" & (VLOOKUP(Rebalance!$D$35,$F$2:$G$48,2,FALSE)+ROW()-2)),\"\")","v":{"$error":"#N/A"}},{"$f":"IF(INDIRECT(\"c\" & (VLOOKUP(Rebalance!$D$36,$F$2:$G$48,2,FALSE)+ROW()-2))=Rebalance!$D$36,INDIRECT(\"a\" & (VLOOKUP(Rebalance!$D$36,$F$2:$G$48,2,FALSE)+ROW()-2)),\"\")","v":{"$error":"#N/A"}},{"$f":"IF(INDIRECT(\"c\" & (VLOOKUP(Rebalance!$D$37,$F$2:$G$48,2,FALSE)+ROW()-2))=Rebalance!$D$37,INDIRECT(\"a\" & (VLOOKUP(Rebalance!$D$37,$F$2:$G$48,2,FALSE)+ROW()-2)),\"\")","v":{"$error":"#N/A"}},{"$f":"IF(INDIRECT(\"c\" & (VLOOKUP(Rebalance!$D$38,$F$2:$G$48,2,FALSE)+ROW()-2))=Rebalance!$D$38,INDIRECT(\"a\" & (VLOOKUP(Rebalance!$D$38,$F$2:$G$48,2,FALSE)+ROW()-2)),\"\")","v":{"$error":"#N/A"}},{"$f":"IF(INDIRECT(\"c\" & (VLOOKUP(Rebalance!$D$39,$F$2:$G$48,2,FALSE)+ROW()-2))=Rebalance!$D$39,INDIRECT(\"a\" & (VLOOKUP(Rebalance!$D$39,$F$2:$G$48,2,FALSE)+ROW()-2)),\"\")","v":{"$error":"#N/A"}},{"$f":"IF(INDIRECT(\"c\" & (VLOOKUP(Rebalance!$D$40,$F$2:$G$48,2,FALSE)+ROW()-2))=Rebalance!$D$40,INDIRECT(\"a\" & (VLOOKUP(Rebalance!$D$40,$F$2:$G$48,2,FALSE)+ROW()-2)),\"\")","v":{"$error":"#N/A"}},{"$f":"IF(INDIRECT(\"c\" & (VLOOKUP(Rebalance!$D$52,$F$2:$G$48,2,FALSE)+ROW()-2))=Rebalance!$D$52,INDIRECT(\"a\" & (VLOOKUP(Rebalance!$D$52,$F$2:$G$48,2,FALSE)+ROW()-2)),\"\")","v":{"$error":"#N/A"}},{"$f":"IF(INDIRECT(\"c\" & (VLOOKUP(Rebalance!$D$53,$F$2:$G$48,2,FALSE)+ROW()-2))=Rebalance!$D$53,INDIRECT(\"a\" & (VLOOKUP(Rebalance!$D$53,$F$2:$G$48,2,FALSE)+ROW()-2)),\"\")","v":{"$error":"#N/A"}},{"$f":"IF(INDIRECT(\"c\" & (VLOOKUP(Rebalance!$D$54,$F$2:$G$48,2,FALSE)+ROW()-2))=Rebalance!$D$54,INDIRECT(\"a\" & (VLOOKUP(Rebalance!$D$54,$F$2:$G$48,2,FALSE)+ROW()-2)),\"\")","v":{"$error":"#N/A"}},{"$f":"IF(INDIRECT(\"c\" & (VLOOKUP(Rebalance!$D$55,$F$2:$G$48,2,FALSE)+ROW()-2))=Rebalance!$D$55,INDIRECT(\"a\" & (VLOOKUP(Rebalance!$D$55,$F$2:$G$48,2,FALSE)+ROW()-2)),\"\")","v":{"$error":"#N/A"}},{"$f":"IF(INDIRECT(\"c\" & (VLOOKUP(Rebalance!$D$56,$F$2:$G$48,2,FALSE)+ROW()-2))=Rebalance!$D$56,INDIRECT(\"a\" & (VLOOKUP(Rebalance!$D$56,$F$2:$G$48,2,FALSE)+ROW()-2)),\"\")","v":{"$error":"#N/A"}},{"$f":"IF(INDIRECT(\"c\" & (VLOOKUP(Rebalance!$D$57,$F$2:$G$48,2,FALSE)+ROW()-2))=Rebalance!$D$57,INDIRECT(\"a\" & (VLOOKUP(Rebalance!$D$57,$F$2:$G$48,2,FALSE)+ROW()-2)),\"\")","v":{"$error":"#N/A"}},{"$f":"IF(INDIRECT(\"c\" & (VLOOKUP(Rebalance!$D$58,$F$2:$G$48,2,FALSE)+ROW()-2))=Rebalance!$D$58,INDIRECT(\"a\" & (VLOOKUP(Rebalance!$D$58,$F$2:$G$48,2,FALSE)+ROW()-2)),\"\")","v":{"$error":"#N/A"}},{"$f":"IF(INDIRECT(\"c\" & (VLOOKUP(Rebalance!$D$59,$F$2:$G$48,2,FALSE)+ROW()-2))=Rebalance!$D$59,INDIRECT(\"a\" & (VLOOKUP(Rebalance!$D$59,$F$2:$G$48,2,FALSE)+ROW()-2)),\"\")","v":{"$error":"#N/A"}},{"$f":"IF(INDIRECT(\"c\" & (VLOOKUP(Rebalance!$D$60,$F$2:$G$48,2,FALSE)+ROW()-2))=Rebalance!$D$60,INDIRECT(\"a\" & (VLOOKUP(Rebalance!$D$60,$F$2:$G$48,2,FALSE)+ROW()-2)),\"\")","v":{"$error":"#N/A"}},{"$f":"IF(INDIRECT(\"c\" & (VLOOKUP(Rebalance!$D$61,$F$2:$G$48,2,FALSE)+ROW()-2))=Rebalance!$D$61,INDIRECT(\"a\" & (VLOOKUP(Rebalance!$D$61,$F$2:$G$48,2,FALSE)+ROW()-2)),\"\")","v":{"$error":"#N/A"}},{"$f":"IF(INDIRECT(\"c\" & (VLOOKUP(Rebalance!$D$62,$F$2:$G$48,2,FALSE)+ROW()-2))=Rebalance!$D$62,INDIRECT(\"a\" & (VLOOKUP(Rebalance!$D$62,$F$2:$G$48,2,FALSE)+ROW()-2)),\"\")","v":{"$error":"#N/A"}},{"$f":"IF(INDIRECT(\"c\" & (VLOOKUP(Rebalance!$D$63,$F$2:$G$48,2,FALSE)+ROW()-2))=Rebalance!$D$63,INDIRECT(\"a\" & (VLOOKUP(Rebalance!$D$63,$F$2:$G$48,2,FALSE)+ROW()-2)),\"\")","v":{"$error":"#N/A"}},{"$f":"IF(INDIRECT(\"c\" & (VLOOKUP(Rebalance!$D$64,$F$2:$G$48,2,FALSE)+ROW()-2))=Rebalance!$D$64,INDIRECT(\"a\" & (VLOOKUP(Rebalance!$D$64,$F$2:$G$48,2,FALSE)+ROW()-2)),\"\")","v":{"$error":"#N/A"}},{"$f":"IF(INDIRECT(\"c\" & (VLOOKUP(Rebalance!$D$65,$F$2:$G$48,2,FALSE)+ROW()-2))=Rebalance!$D$65,INDIRECT(\"a\" & (VLOOKUP(Rebalance!$D$65,$F$2:$G$48,2,FALSE)+ROW()-2)),\"\")","v":{"$error":"#N/A"}},{"$f":"IF(INDIRECT(\"c\" & (VLOOKUP(Rebalance!$D$66,$F$2:$G$48,2,FALSE)+ROW()-2))=Rebalance!$D$66,INDIRECT(\"a\" & (VLOOKUP(Rebalance!$D$66,$F$2:$G$48,2,FALSE)+ROW()-2)),\"\")","v":{"$error":"#N/A"}}]
["Reitway BCI Global Property Fund C","MGPC","Boutique Collective Investments (Pty) Ltd",{"$f":"ROW()","v":163},null,null,{"$f":"VLOOKUP(F163,$C$2:$D$599,2,FALSE)","v":{"$error":"#N/A"}},{"$f":"IF(INDIRECT(\"c\" & (VLOOKUP(Rebalance!$D$26,$F$2:$G$48,2,FALSE)+ROW()-2))=Rebalance!$D$26,INDIRECT(\"a\" & (VLOOKUP(Rebalance!$D$26,$F$2:$G$48,2,FALSE)+ROW()-2)),\"\")","v":{"$error":"#N/A"}},{"$f":"IF(INDIRECT(\"c\" & (VLOOKUP(Rebalance!$D$27,$F$2:$G$48,2,FALSE)+ROW()-2))=Rebalance!$D$27,INDIRECT(\"a\" & (VLOOKUP(Rebalance!$D$27,$F$2:$G$48,2,FALSE)+ROW()-2)),\"\")","v":{"$error":"#N/A"}},{"$f":"IF(INDIRECT(\"c\" & (VLOOKUP(Rebalance!$D$28,$F$2:$G$48,2,FALSE)+ROW()-2))=Rebalance!$D$28,INDIRECT(\"a\" & (VLOOKUP(Rebalance!$D$28,$F$2:$G$48,2,FALSE)+ROW()-2)),\"\")","v":{"$error":"#N/A"}},{"$f":"IF(INDIRECT(\"c\" & (VLOOKUP(Rebalance!$D$29,$F$2:$G$48,2,FALSE)+ROW()-2))=Rebalance!$D$29,INDIRECT(\"a\" & (VLOOKUP(Rebalance!$D$29,$F$2:$G$48,2,FALSE)+ROW()-2)),\"\")","v":{"$error":"#N/A"}},{"$f":"IF(INDIRECT(\"c\" & (VLOOKUP(Rebalance!$D$30,$F$2:$G$48,2,FALSE)+ROW()-2))=Rebalance!$D$30,INDIRECT(\"a\" & (VLOOKUP(Rebalance!$D$30,$F$2:$G$48,2,FALSE)+ROW()-2)),\"\")","v":{"$error":"#N/A"}},{"$f":"IF(INDIRECT(\"c\" & (VLOOKUP(Rebalance!$D$31,$F$2:$G$48,2,FALSE)+ROW()-2))=Rebalance!$D$31,INDIRECT(\"a\" & (VLOOKUP(Rebalance!$D$31,$F$2:$G$48,2,FALSE)+ROW()-2)),\"\")","v":{"$error":"#N/A"}},{"$f":"IF(INDIRECT(\"c\" & (VLOOKUP(Rebalance!$D$32,$F$2:$G$48,2,FALSE)+ROW()-2))=Rebalance!$D$32,INDIRECT(\"a\" & (VLOOKUP(Rebalance!$D$32,$F$2:$G$48,2,FALSE)+ROW()-2)),\"\")","v":{"$error":"#N/A"}},{"$f":"IF(INDIRECT(\"c\" & (VLOOKUP(Rebalance!$D$33,$F$2:$G$48,2,FALSE)+ROW()-2))=Rebalance!$D$33,INDIRECT(\"a\" & (VLOOKUP(Rebalance!$D$33,$F$2:$G$48,2,FALSE)+ROW()-2)),\"\")","v":{"$error":"#N/A"}},{"$f":"IF(INDIRECT(\"c\" & (VLOOKUP(Rebalance!$D$34,$F$2:$G$48,2,FALSE)+ROW()-2))=Rebalance!$D$34,INDIRECT(\"a\" & (VLOOKUP(Rebalance!$D$34,$F$2:$G$48,2,FALSE)+ROW()-2)),\"\")","v":{"$error":"#N/A"}},{"$f":"IF(INDIRECT(\"c\" & (VLOOKUP(Rebalance!$D$35,$F$2:$G$48,2,FALSE)+ROW()-2))=Rebalance!$D$35,INDIRECT(\"a\" & (VLOOKUP(Rebalance!$D$35,$F$2:$G$48,2,FALSE)+ROW()-2)),\"\")","v":{"$error":"#N/A"}},{"$f":"IF(INDIRECT(\"c\" & (VLOOKUP(Rebalance!$D$36,$F$2:$G$48,2,FALSE)+ROW()-2))=Rebalance!$D$36,INDIRECT(\"a\" & (VLOOKUP(Rebalance!$D$36,$F$2:$G$48,2,FALSE)+ROW()-2)),\"\")","v":{"$error":"#N/A"}},{"$f":"IF(INDIRECT(\"c\" & (VLOOKUP(Rebalance!$D$37,$F$2:$G$48,2,FALSE)+ROW()-2))=Rebalance!$D$37,INDIRECT(\"a\" & (VLOOKUP(Rebalance!$D$37,$F$2:$G$48,2,FALSE)+ROW()-2)),\"\")","v":{"$error":"#N/A"}},{"$f":"IF(INDIRECT(\"c\" & (VLOOKUP(Rebalance!$D$38,$F$2:$G$48,2,FALSE)+ROW()-2))=Rebalance!$D$38,INDIRECT(\"a\" & (VLOOKUP(Rebalance!$D$38,$F$2:$G$48,2,FALSE)+ROW()-2)),\"\")","v":{"$error":"#N/A"}},{"$f":"IF(INDIRECT(\"c\" & (VLOOKUP(Rebalance!$D$39,$F$2:$G$48,2,FALSE)+ROW()-2))=Rebalance!$D$39,INDIRECT(\"a\" & (VLOOKUP(Rebalance!$D$39,$F$2:$G$48,2,FALSE)+ROW()-2)),\"\")","v":{"$error":"#N/A"}},{"$f":"IF(INDIRECT(\"c\" & (VLOOKUP(Rebalance!$D$40,$F$2:$G$48,2,FALSE)+ROW()-2))=Rebalance!$D$40,INDIRECT(\"a\" & (VLOOKUP(Rebalance!$D$40,$F$2:$G$48,2,FALSE)+ROW()-2)),\"\")","v":{"$error":"#N/A"}},{"$f":"IF(INDIRECT(\"c\" & (VLOOKUP(Rebalance!$D$52,$F$2:$G$48,2,FALSE)+ROW()-2))=Rebalance!$D$52,INDIRECT(\"a\" & (VLOOKUP(Rebalance!$D$52,$F$2:$G$48,2,FALSE)+ROW()-2)),\"\")","v":{"$error":"#N/A"}},{"$f":"IF(INDIRECT(\"c\" & (VLOOKUP(Rebalance!$D$53,$F$2:$G$48,2,FALSE)+ROW()-2))=Rebalance!$D$53,INDIRECT(\"a\" & (VLOOKUP(Rebalance!$D$53,$F$2:$G$48,2,FALSE)+ROW()-2)),\"\")","v":{"$error":"#N/A"}},{"$f":"IF(INDIRECT(\"c\" & (VLOOKUP(Rebalance!$D$54,$F$2:$G$48,2,FALSE)+ROW()-2))=Rebalance!$D$54,INDIRECT(\"a\" & (VLOOKUP(Rebalance!$D$54,$F$2:$G$48,2,FALSE)+ROW()-2)),\"\")","v":{"$error":"#N/A"}},{"$f":"IF(INDIRECT(\"c\" & (VLOOKUP(Rebalance!$D$55,$F$2:$G$48,2,FALSE)+ROW()-2))=Rebalance!$D$55,INDIRECT(\"a\" & (VLOOKUP(Rebalance!$D$55,$F$2:$G$48,2,FALSE)+ROW()-2)),\"\")","v":{"$error":"#N/A"}},{"$f":"IF(INDIRECT(\"c\" & (VLOOKUP(Rebalance!$D$56,$F$2:$G$48,2,FALSE)+ROW()-2))=Rebalance!$D$56,INDIRECT(\"a\" & (VLOOKUP(Rebalance!$D$56,$F$2:$G$48,2,FALSE)+ROW()-2)),\"\")","v":{"$error":"#N/A"}},{"$f":"IF(INDIRECT(\"c\" & (VLOOKUP(Rebalance!$D$57,$F$2:$G$48,2,FALSE)+ROW()-2))=Rebalance!$D$57,INDIRECT(\"a\" & (VLOOKUP(Rebalance!$D$57,$F$2:$G$48,2,FALSE)+ROW()-2)),\"\")","v":{"$error":"#N/A"}},{"$f":"IF(INDIRECT(\"c\" & (VLOOKUP(Rebalance!$D$58,$F$2:$G$48,2,FALSE)+ROW()-2))=Rebalance!$D$58,INDIRECT(\"a\" & (VLOOKUP(Rebalance!$D$58,$F$2:$G$48,2,FALSE)+ROW()-2)),\"\")","v":{"$error":"#N/A"}},{"$f":"IF(INDIRECT(\"c\" & (VLOOKUP(Rebalance!$D$59,$F$2:$G$48,2,FALSE)+ROW()-2))=Rebalance!$D$59,INDIRECT(\"a\" & (VLOOKUP(Rebalance!$D$59,$F$2:$G$48,2,FALSE)+ROW()-2)),\"\")","v":{"$error":"#N/A"}},{"$f":"IF(INDIRECT(\"c\" & (VLOOKUP(Rebalance!$D$60,$F$2:$G$48,2,FALSE)+ROW()-2))=Rebalance!$D$60,INDIRECT(\"a\" & (VLOOKUP(Rebalance!$D$60,$F$2:$G$48,2,FALSE)+ROW()-2)),\"\")","v":{"$error":"#N/A"}},{"$f":"IF(INDIRECT(\"c\" & (VLOOKUP(Rebalance!$D$61,$F$2:$G$48,2,FALSE)+ROW()-2))=Rebalance!$D$61,INDIRECT(\"a\" & (VLOOKUP(Rebalance!$D$61,$F$2:$G$48,2,FALSE)+ROW()-2)),\"\")","v":{"$error":"#N/A"}},{"$f":"IF(INDIRECT(\"c\" & (VLOOKUP(Rebalance!$D$62,$F$2:$G$48,2,FALSE)+ROW()-2))=Rebalance!$D$62,INDIRECT(\"a\" & (VLOOKUP(Rebalance!$D$62,$F$2:$G$48,2,FALSE)+ROW()-2)),\"\")","v":{"$error":"#N/A"}},{"$f":"IF(INDIRECT(\"c\" & (VLOOKUP(Rebalance!$D$63,$F$2:$G$48,2,FALSE)+ROW()-2))=Rebalance!$D$63,INDIRECT(\"a\" & (VLOOKUP(Rebalance!$D$63,$F$2:$G$48,2,FALSE)+ROW()-2)),\"\")","v":{"$error":"#N/A"}},{"$f":"IF(INDIRECT(\"c\" & (VLOOKUP(Rebalance!$D$64,$F$2:$G$48,2,FALSE)+ROW()-2))=Rebalance!$D$64,INDIRECT(\"a\" & (VLOOKUP(Rebalance!$D$64,$F$2:$G$48,2,FALSE)+ROW()-2)),\"\")","v":{"$error":"#N/A"}},{"$f":"IF(INDIRECT(\"c\" & (VLOOKUP(Rebalance!$D$65,$F$2:$G$48,2,FALSE)+ROW()-2))=Rebalance!$D$65,INDIRECT(\"a\" & (VLOOKUP(Rebalance!$D$65,$F$2:$G$48,2,FALSE)+ROW()-2)),\"\")","v":{"$error":"#N/A"}},{"$f":"IF(INDIRECT(\"c\" & (VLOOKUP(Rebalance!$D$66,$F$2:$G$48,2,FALSE)+ROW()-2))=Rebalance!$D$66,INDIRECT(\"a\" & (VLOOKUP(Rebalance!$D$66,$F$2:$G$48,2,FALSE)+ROW()-2)),\"\")","v":{"$error":"#N/A"}}]
["SA Asset Management BCI Cautious Fund A","SACFA","Boutique Collective Investments (Pty) Ltd",{"$f":"ROW()","v":164},null,null,{"$f":"VLOOKUP(F164,$C$2:$D$599,2,FALSE)","v":{"$error":"#N/A"}},{"$f":"IF(INDIRECT(\"c\" & (VLOOKUP(Rebalance!$D$26,$F$2:$G$48,2,FALSE)+ROW()-2))=Rebalance!$D$26,INDIRECT(\"a\" & (VLOOKUP(Rebalance!$D$26,$F$2:$G$48,2,FALSE)+ROW()-2)),\"\")","v":{"$error":"#N/A"}},{"$f":"IF(INDIRECT(\"c\" & (VLOOKUP(Rebalance!$D$27,$F$2:$G$48,2,FALSE)+ROW()-2))=Rebalance!$D$27,INDIRECT(\"a\" & (VLOOKUP(Rebalance!$D$27,$F$2:$G$48,2,FALSE)+ROW()-2)),\"\")","v":{"$error":"#N/A"}},{"$f":"IF(INDIRECT(\"c\" & (VLOOKUP(Rebalance!$D$28,$F$2:$G$48,2,FALSE)+ROW()-2))=Rebalance!$D$28,INDIRECT(\"a\" & (VLOOKUP(Rebalance!$D$28,$F$2:$G$48,2,FALSE)+ROW()-2)),\"\")","v":{"$error":"#N/A"}},{"$f":"IF(INDIRECT(\"c\" & (VLOOKUP(Rebalance!$D$29,$F$2:$G$48,2,FALSE)+ROW()-2))=Rebalance!$D$29,INDIRECT(\"a\" & (VLOOKUP(Rebalance!$D$29,$F$2:$G$48,2,FALSE)+ROW()-2)),\"\")","v":{"$error":"#N/A"}},{"$f":"IF(INDIRECT(\"c\" & (VLOOKUP(Rebalance!$D$30,$F$2:$G$48,2,FALSE)+ROW()-2))=Rebalance!$D$30,INDIRECT(\"a\" & (VLOOKUP(Rebalance!$D$30,$F$2:$G$48,2,FALSE)+ROW()-2)),\"\")","v":{"$error":"#N/A"}},{"$f":"IF(INDIRECT(\"c\" & (VLOOKUP(Rebalance!$D$31,$F$2:$G$48,2,FALSE)+ROW()-2))=Rebalance!$D$31,INDIRECT(\"a\" & (VLOOKUP(Rebalance!$D$31,$F$2:$G$48,2,FALSE)+ROW()-2)),\"\")","v":{"$error":"#N/A"}},{"$f":"IF(INDIRECT(\"c\" & (VLOOKUP(Rebalance!$D$32,$F$2:$G$48,2,FALSE)+ROW()-2))=Rebalance!$D$32,INDIRECT(\"a\" & (VLOOKUP(Rebalance!$D$32,$F$2:$G$48,2,FALSE)+ROW()-2)),\"\")","v":{"$error":"#N/A"}},{"$f":"IF(INDIRECT(\"c\" & (VLOOKUP(Rebalance!$D$33,$F$2:$G$48,2,FALSE)+ROW()-2))=Rebalance!$D$33,INDIRECT(\"a\" & (VLOOKUP(Rebalance!$D$33,$F$2:$G$48,2,FALSE)+ROW()-2)),\"\")","v":{"$error":"#N/A"}},{"$f":"IF(INDIRECT(\"c\" & (VLOOKUP(Rebalance!$D$34,$F$2:$G$48,2,FALSE)+ROW()-2))=Rebalance!$D$34,INDIRECT(\"a\" & (VLOOKUP(Rebalance!$D$34,$F$2:$G$48,2,FALSE)+ROW()-2)),\"\")","v":{"$error":"#N/A"}},{"$f":"IF(INDIRECT(\"c\" & (VLOOKUP(Rebalance!$D$35,$F$2:$G$48,2,FALSE)+ROW()-2))=Rebalance!$D$35,INDIRECT(\"a\" & (VLOOKUP(Rebalance!$D$35,$F$2:$G$48,2,FALSE)+ROW()-2)),\"\")","v":{"$error":"#N/A"}},{"$f":"IF(INDIRECT(\"c\" & (VLOOKUP(Rebalance!$D$36,$F$2:$G$48,2,FALSE)+ROW()-2))=Rebalance!$D$36,INDIRECT(\"a\" & (VLOOKUP(Rebalance!$D$36,$F$2:$G$48,2,FALSE)+ROW()-2)),\"\")","v":{"$error":"#N/A"}},{"$f":"IF(INDIRECT(\"c\" & (VLOOKUP(Rebalance!$D$37,$F$2:$G$48,2,FALSE)+ROW()-2))=Rebalance!$D$37,INDIRECT(\"a\" & (VLOOKUP(Rebalance!$D$37,$F$2:$G$48,2,FALSE)+ROW()-2)),\"\")","v":{"$error":"#N/A"}},{"$f":"IF(INDIRECT(\"c\" & (VLOOKUP(Rebalance!$D$38,$F$2:$G$48,2,FALSE)+ROW()-2))=Rebalance!$D$38,INDIRECT(\"a\" & (VLOOKUP(Rebalance!$D$38,$F$2:$G$48,2,FALSE)+ROW()-2)),\"\")","v":{"$error":"#N/A"}},{"$f":"IF(INDIRECT(\"c\" & (VLOOKUP(Rebalance!$D$39,$F$2:$G$48,2,FALSE)+ROW()-2))=Rebalance!$D$39,INDIRECT(\"a\" & (VLOOKUP(Rebalance!$D$39,$F$2:$G$48,2,FALSE)+ROW()-2)),\"\")","v":{"$error":"#N/A"}},{"$f":"IF(INDIRECT(\"c\" & (VLOOKUP(Rebalance!$D$40,$F$2:$G$48,2,FALSE)+ROW()-2))=Rebalance!$D$40,INDIRECT(\"a\" & (VLOOKUP(Rebalance!$D$40,$F$2:$G$48,2,FALSE)+ROW()-2)),\"\")","v":{"$error":"#N/A"}},{"$f":"IF(INDIRECT(\"c\" & (VLOOKUP(Rebalance!$D$52,$F$2:$G$48,2,FALSE)+ROW()-2))=Rebalance!$D$52,INDIRECT(\"a\" & (VLOOKUP(Rebalance!$D$52,$F$2:$G$48,2,FALSE)+ROW()-2)),\"\")","v":{"$error":"#N/A"}},{"$f":"IF(INDIRECT(\"c\" & (VLOOKUP(Rebalance!$D$53,$F$2:$G$48,2,FALSE)+ROW()-2))=Rebalance!$D$53,INDIRECT(\"a\" & (VLOOKUP(Rebalance!$D$53,$F$2:$G$48,2,FALSE)+ROW()-2)),\"\")","v":{"$error":"#N/A"}},{"$f":"IF(INDIRECT(\"c\" & (VLOOKUP(Rebalance!$D$54,$F$2:$G$48,2,FALSE)+ROW()-2))=Rebalance!$D$54,INDIRECT(\"a\" & (VLOOKUP(Rebalance!$D$54,$F$2:$G$48,2,FALSE)+ROW()-2)),\"\")","v":{"$error":"#N/A"}},{"$f":"IF(INDIRECT(\"c\" & (VLOOKUP(Rebalance!$D$55,$F$2:$G$48,2,FALSE)+ROW()-2))=Rebalance!$D$55,INDIRECT(\"a\" & (VLOOKUP(Rebalance!$D$55,$F$2:$G$48,2,FALSE)+ROW()-2)),\"\")","v":{"$error":"#N/A"}},{"$f":"IF(INDIRECT(\"c\" & (VLOOKUP(Rebalance!$D$56,$F$2:$G$48,2,FALSE)+ROW()-2))=Rebalance!$D$56,INDIRECT(\"a\" & (VLOOKUP(Rebalance!$D$56,$F$2:$G$48,2,FALSE)+ROW()-2)),\"\")","v":{"$error":"#N/A"}},{"$f":"IF(INDIRECT(\"c\" & (VLOOKUP(Rebalance!$D$57,$F$2:$G$48,2,FALSE)+ROW()-2))=Rebalance!$D$57,INDIRECT(\"a\" & (VLOOKUP(Rebalance!$D$57,$F$2:$G$48,2,FALSE)+ROW()-2)),\"\")","v":{"$error":"#N/A"}},{"$f":"IF(INDIRECT(\"c\" & (VLOOKUP(Rebalance!$D$58,$F$2:$G$48,2,FALSE)+ROW()-2))=Rebalance!$D$58,INDIRECT(\"a\" & (VLOOKUP(Rebalance!$D$58,$F$2:$G$48,2,FALSE)+ROW()-2)),\"\")","v":{"$error":"#N/A"}},{"$f":"IF(INDIRECT(\"c\" & (VLOOKUP(Rebalance!$D$59,$F$2:$G$48,2,FALSE)+ROW()-2))=Rebalance!$D$59,INDIRECT(\"a\" & (VLOOKUP(Rebalance!$D$59,$F$2:$G$48,2,FALSE)+ROW()-2)),\"\")","v":{"$error":"#N/A"}},{"$f":"IF(INDIRECT(\"c\" & (VLOOKUP(Rebalance!$D$60,$F$2:$G$48,2,FALSE)+ROW()-2))=Rebalance!$D$60,INDIRECT(\"a\" & (VLOOKUP(Rebalance!$D$60,$F$2:$G$48,2,FALSE)+ROW()-2)),\"\")","v":{"$error":"#N/A"}},{"$f":"IF(INDIRECT(\"c\" & (VLOOKUP(Rebalance!$D$61,$F$2:$G$48,2,FALSE)+ROW()-2))=Rebalance!$D$61,INDIRECT(\"a\" & (VLOOKUP(Rebalance!$D$61,$F$2:$G$48,2,FALSE)+ROW()-2)),\"\")","v":{"$error":"#N/A"}},{"$f":"IF(INDIRECT(\"c\" & (VLOOKUP(Rebalance!$D$62,$F$2:$G$48,2,FALSE)+ROW()-2))=Rebalance!$D$62,INDIRECT(\"a\" & (VLOOKUP(Rebalance!$D$62,$F$2:$G$48,2,FALSE)+ROW()-2)),\"\")","v":{"$error":"#N/A"}},{"$f":"IF(INDIRECT(\"c\" & (VLOOKUP(Rebalance!$D$63,$F$2:$G$48,2,FALSE)+ROW()-2))=Rebalance!$D$63,INDIRECT(\"a\" & (VLOOKUP(Rebalance!$D$63,$F$2:$G$48,2,FALSE)+ROW()-2)),\"\")","v":{"$error":"#N/A"}},{"$f":"IF(INDIRECT(\"c\" & (VLOOKUP(Rebalance!$D$64,$F$2:$G$48,2,FALSE)+ROW()-2))=Rebalance!$D$64,INDIRECT(\"a\" & (VLOOKUP(Rebalance!$D$64,$F$2:$G$48,2,FALSE)+ROW()-2)),\"\")","v":{"$error":"#N/A"}},{"$f":"IF(INDIRECT(\"c\" & (VLOOKUP(Rebalance!$D$65,$F$2:$G$48,2,FALSE)+ROW()-2))=Rebalance!$D$65,INDIRECT(\"a\" & (VLOOKUP(Rebalance!$D$65,$F$2:$G$48,2,FALSE)+ROW()-2)),\"\")","v":{"$error":"#N/A"}},{"$f":"IF(INDIRECT(\"c\" & (VLOOKUP(Rebalance!$D$66,$F$2:$G$48,2,FALSE)+ROW()-2))=Rebalance!$D$66,INDIRECT(\"a\" & (VLOOKUP(Rebalance!$D$66,$F$2:$G$48,2,FALSE)+ROW()-2)),\"\")","v":{"$error":"#N/A"}}]
["SA Asset Management BCI Managed Fund A","SAMFA","Boutique Collective Investments (Pty) Ltd",{"$f":"ROW()","v":165},null,null,{"$f":"VLOOKUP(F165,$C$2:$D$599,2,FALSE)","v":{"$error":"#N/A"}},{"$f":"IF(INDIRECT(\"c\" & (VLOOKUP(Rebalance!$D$26,$F$2:$G$48,2,FALSE)+ROW()-2))=Rebalance!$D$26,INDIRECT(\"a\" & (VLOOKUP(Rebalance!$D$26,$F$2:$G$48,2,FALSE)+ROW()-2)),\"\")","v":{"$error":"#N/A"}},{"$f":"IF(INDIRECT(\"c\" & (VLOOKUP(Rebalance!$D$27,$F$2:$G$48,2,FALSE)+ROW()-2))=Rebalance!$D$27,INDIRECT(\"a\" & (VLOOKUP(Rebalance!$D$27,$F$2:$G$48,2,FALSE)+ROW()-2)),\"\")","v":{"$error":"#N/A"}},{"$f":"IF(INDIRECT(\"c\" & (VLOOKUP(Rebalance!$D$28,$F$2:$G$48,2,FALSE)+ROW()-2))=Rebalance!$D$28,INDIRECT(\"a\" & (VLOOKUP(Rebalance!$D$28,$F$2:$G$48,2,FALSE)+ROW()-2)),\"\")","v":{"$error":"#N/A"}},{"$f":"IF(INDIRECT(\"c\" & (VLOOKUP(Rebalance!$D$29,$F$2:$G$48,2,FALSE)+ROW()-2))=Rebalance!$D$29,INDIRECT(\"a\" & (VLOOKUP(Rebalance!$D$29,$F$2:$G$48,2,FALSE)+ROW()-2)),\"\")","v":{"$error":"#N/A"}},{"$f":"IF(INDIRECT(\"c\" & (VLOOKUP(Rebalance!$D$30,$F$2:$G$48,2,FALSE)+ROW()-2))=Rebalance!$D$30,INDIRECT(\"a\" & (VLOOKUP(Rebalance!$D$30,$F$2:$G$48,2,FALSE)+ROW()-2)),\"\")","v":{"$error":"#N/A"}},{"$f":"IF(INDIRECT(\"c\" & (VLOOKUP(Rebalance!$D$31,$F$2:$G$48,2,FALSE)+ROW()-2))=Rebalance!$D$31,INDIRECT(\"a\" & (VLOOKUP(Rebalance!$D$31,$F$2:$G$48,2,FALSE)+ROW()-2)),\"\")","v":{"$error":"#N/A"}},{"$f":"IF(INDIRECT(\"c\" & (VLOOKUP(Rebalance!$D$32,$F$2:$G$48,2,FALSE)+ROW()-2))=Rebalance!$D$32,INDIRECT(\"a\" & (VLOOKUP(Rebalance!$D$32,$F$2:$G$48,2,FALSE)+ROW()-2)),\"\")","v":{"$error":"#N/A"}},{"$f":"IF(INDIRECT(\"c\" & (VLOOKUP(Rebalance!$D$33,$F$2:$G$48,2,FALSE)+ROW()-2))=Rebalance!$D$33,INDIRECT(\"a\" & (VLOOKUP(Rebalance!$D$33,$F$2:$G$48,2,FALSE)+ROW()-2)),\"\")","v":{"$error":"#N/A"}},{"$f":"IF(INDIRECT(\"c\" & (VLOOKUP(Rebalance!$D$34,$F$2:$G$48,2,FALSE)+ROW()-2))=Rebalance!$D$34,INDIRECT(\"a\" & (VLOOKUP(Rebalance!$D$34,$F$2:$G$48,2,FALSE)+ROW()-2)),\"\")","v":{"$error":"#N/A"}},{"$f":"IF(INDIRECT(\"c\" & (VLOOKUP(Rebalance!$D$35,$F$2:$G$48,2,FALSE)+ROW()-2))=Rebalance!$D$35,INDIRECT(\"a\" & (VLOOKUP(Rebalance!$D$35,$F$2:$G$48,2,FALSE)+ROW()-2)),\"\")","v":{"$error":"#N/A"}},{"$f":"IF(INDIRECT(\"c\" & (VLOOKUP(Rebalance!$D$36,$F$2:$G$48,2,FALSE)+ROW()-2))=Rebalance!$D$36,INDIRECT(\"a\" & (VLOOKUP(Rebalance!$D$36,$F$2:$G$48,2,FALSE)+ROW()-2)),\"\")","v":{"$error":"#N/A"}},{"$f":"IF(INDIRECT(\"c\" & (VLOOKUP(Rebalance!$D$37,$F$2:$G$48,2,FALSE)+ROW()-2))=Rebalance!$D$37,INDIRECT(\"a\" & (VLOOKUP(Rebalance!$D$37,$F$2:$G$48,2,FALSE)+ROW()-2)),\"\")","v":{"$error":"#N/A"}},{"$f":"IF(INDIRECT(\"c\" & (VLOOKUP(Rebalance!$D$38,$F$2:$G$48,2,FALSE)+ROW()-2))=Rebalance!$D$38,INDIRECT(\"a\" & (VLOOKUP(Rebalance!$D$38,$F$2:$G$48,2,FALSE)+ROW()-2)),\"\")","v":{"$error":"#N/A"}},{"$f":"IF(INDIRECT(\"c\" & (VLOOKUP(Rebalance!$D$39,$F$2:$G$48,2,FALSE)+ROW()-2))=Rebalance!$D$39,INDIRECT(\"a\" & (VLOOKUP(Rebalance!$D$39,$F$2:$G$48,2,FALSE)+ROW()-2)),\"\")","v":{"$error":"#N/A"}},{"$f":"IF(INDIRECT(\"c\" & (VLOOKUP(Rebalance!$D$40,$F$2:$G$48,2,FALSE)+ROW()-2))=Rebalance!$D$40,INDIRECT(\"a\" & (VLOOKUP(Rebalance!$D$40,$F$2:$G$48,2,FALSE)+ROW()-2)),\"\")","v":{"$error":"#N/A"}},{"$f":"IF(INDIRECT(\"c\" & (VLOOKUP(Rebalance!$D$52,$F$2:$G$48,2,FALSE)+ROW()-2))=Rebalance!$D$52,INDIRECT(\"a\" & (VLOOKUP(Rebalance!$D$52,$F$2:$G$48,2,FALSE)+ROW()-2)),\"\")","v":{"$error":"#N/A"}},{"$f":"IF(INDIRECT(\"c\" & (VLOOKUP(Rebalance!$D$53,$F$2:$G$48,2,FALSE)+ROW()-2))=Rebalance!$D$53,INDIRECT(\"a\" & (VLOOKUP(Rebalance!$D$53,$F$2:$G$48,2,FALSE)+ROW()-2)),\"\")","v":{"$error":"#N/A"}},{"$f":"IF(INDIRECT(\"c\" & (VLOOKUP(Rebalance!$D$54,$F$2:$G$48,2,FALSE)+ROW()-2))=Rebalance!$D$54,INDIRECT(\"a\" & (VLOOKUP(Rebalance!$D$54,$F$2:$G$48,2,FALSE)+ROW()-2)),\"\")","v":{"$error":"#N/A"}},{"$f":"IF(INDIRECT(\"c\" & (VLOOKUP(Rebalance!$D$55,$F$2:$G$48,2,FALSE)+ROW()-2))=Rebalance!$D$55,INDIRECT(\"a\" & (VLOOKUP(Rebalance!$D$55,$F$2:$G$48,2,FALSE)+ROW()-2)),\"\")","v":{"$error":"#N/A"}},{"$f":"IF(INDIRECT(\"c\" & (VLOOKUP(Rebalance!$D$56,$F$2:$G$48,2,FALSE)+ROW()-2))=Rebalance!$D$56,INDIRECT(\"a\" & (VLOOKUP(Rebalance!$D$56,$F$2:$G$48,2,FALSE)+ROW()-2)),\"\")","v":{"$error":"#N/A"}},{"$f":"IF(INDIRECT(\"c\" & (VLOOKUP(Rebalance!$D$57,$F$2:$G$48,2,FALSE)+ROW()-2))=Rebalance!$D$57,INDIRECT(\"a\" & (VLOOKUP(Rebalance!$D$57,$F$2:$G$48,2,FALSE)+ROW()-2)),\"\")","v":{"$error":"#N/A"}},{"$f":"IF(INDIRECT(\"c\" & (VLOOKUP(Rebalance!$D$58,$F$2:$G$48,2,FALSE)+ROW()-2))=Rebalance!$D$58,INDIRECT(\"a\" & (VLOOKUP(Rebalance!$D$58,$F$2:$G$48,2,FALSE)+ROW()-2)),\"\")","v":{"$error":"#N/A"}},{"$f":"IF(INDIRECT(\"c\" & (VLOOKUP(Rebalance!$D$59,$F$2:$G$48,2,FALSE)+ROW()-2))=Rebalance!$D$59,INDIRECT(\"a\" & (VLOOKUP(Rebalance!$D$59,$F$2:$G$48,2,FALSE)+ROW()-2)),\"\")","v":{"$error":"#N/A"}},{"$f":"IF(INDIRECT(\"c\" & (VLOOKUP(Rebalance!$D$60,$F$2:$G$48,2,FALSE)+ROW()-2))=Rebalance!$D$60,INDIRECT(\"a\" & (VLOOKUP(Rebalance!$D$60,$F$2:$G$48,2,FALSE)+ROW()-2)),\"\")","v":{"$error":"#N/A"}},{"$f":"IF(INDIRECT(\"c\" & (VLOOKUP(Rebalance!$D$61,$F$2:$G$48,2,FALSE)+ROW()-2))=Rebalance!$D$61,INDIRECT(\"a\" & (VLOOKUP(Rebalance!$D$61,$F$2:$G$48,2,FALSE)+ROW()-2)),\"\")","v":{"$error":"#N/A"}},{"$f":"IF(INDIRECT(\"c\" & (VLOOKUP(Rebalance!$D$62,$F$2:$G$48,2,FALSE)+ROW()-2))=Rebalance!$D$62,INDIRECT(\"a\" & (VLOOKUP(Rebalance!$D$62,$F$2:$G$48,2,FALSE)+ROW()-2)),\"\")","v":{"$error":"#N/A"}},{"$f":"IF(INDIRECT(\"c\" & (VLOOKUP(Rebalance!$D$63,$F$2:$G$48,2,FALSE)+ROW()-2))=Rebalance!$D$63,INDIRECT(\"a\" & (VLOOKUP(Rebalance!$D$63,$F$2:$G$48,2,FALSE)+ROW()-2)),\"\")","v":{"$error":"#N/A"}},{"$f":"IF(INDIRECT(\"c\" & (VLOOKUP(Rebalance!$D$64,$F$2:$G$48,2,FALSE)+ROW()-2))=Rebalance!$D$64,INDIRECT(\"a\" & (VLOOKUP(Rebalance!$D$64,$F$2:$G$48,2,FALSE)+ROW()-2)),\"\")","v":{"$error":"#N/A"}},{"$f":"IF(INDIRECT(\"c\" & (VLOOKUP(Rebalance!$D$65,$F$2:$G$48,2,FALSE)+ROW()-2))=Rebalance!$D$65,INDIRECT(\"a\" & (VLOOKUP(Rebalance!$D$65,$F$2:$G$48,2,FALSE)+ROW()-2)),\"\")","v":{"$error":"#N/A"}},{"$f":"IF(INDIRECT(\"c\" & (VLOOKUP(Rebalance!$D$66,$F$2:$G$48,2,FALSE)+ROW()-2))=Rebalance!$D$66,INDIRECT(\"a\" & (VLOOKUP(Rebalance!$D$66,$F$2:$G$48,2,FALSE)+ROW()-2)),\"\")","v":{"$error":"#N/A"}}]
["SA Asset Management BCI Moderate Fund A","SABFA","Boutique Collective Investments (Pty) Ltd",{"$f":"ROW()","v":166},null,null,{"$f":"VLOOKUP(F166,$C$2:$D$599,2,FALSE)","v":{"$error":"#N/A"}},{"$f":"IF(INDIRECT(\"c\" & (VLOOKUP(Rebalance!$D$26,$F$2:$G$48,2,FALSE)+ROW()-2))=Rebalance!$D$26,INDIRECT(\"a\" & (VLOOKUP(Rebalance!$D$26,$F$2:$G$48,2,FALSE)+ROW()-2)),\"\")","v":{"$error":"#N/A"}},{"$f":"IF(INDIRECT(\"c\" & (VLOOKUP(Rebalance!$D$27,$F$2:$G$48,2,FALSE)+ROW()-2))=Rebalance!$D$27,INDIRECT(\"a\" & (VLOOKUP(Rebalance!$D$27,$F$2:$G$48,2,FALSE)+ROW()-2)),\"\")","v":{"$error":"#N/A"}},{"$f":"IF(INDIRECT(\"c\" & (VLOOKUP(Rebalance!$D$28,$F$2:$G$48,2,FALSE)+ROW()-2))=Rebalance!$D$28,INDIRECT(\"a\" & (VLOOKUP(Rebalance!$D$28,$F$2:$G$48,2,FALSE)+ROW()-2)),\"\")","v":{"$error":"#N/A"}},{"$f":"IF(INDIRECT(\"c\" & (VLOOKUP(Rebalance!$D$29,$F$2:$G$48,2,FALSE)+ROW()-2))=Rebalance!$D$29,INDIRECT(\"a\" & (VLOOKUP(Rebalance!$D$29,$F$2:$G$48,2,FALSE)+ROW()-2)),\"\")","v":{"$error":"#N/A"}},{"$f":"IF(INDIRECT(\"c\" & (VLOOKUP(Rebalance!$D$30,$F$2:$G$48,2,FALSE)+ROW()-2))=Rebalance!$D$30,INDIRECT(\"a\" & (VLOOKUP(Rebalance!$D$30,$F$2:$G$48,2,FALSE)+ROW()-2)),\"\")","v":{"$error":"#N/A"}},{"$f":"IF(INDIRECT(\"c\" & (VLOOKUP(Rebalance!$D$31,$F$2:$G$48,2,FALSE)+ROW()-2))=Rebalance!$D$31,INDIRECT(\"a\" & (VLOOKUP(Rebalance!$D$31,$F$2:$G$48,2,FALSE)+ROW()-2)),\"\")","v":{"$error":"#N/A"}},{"$f":"IF(INDIRECT(\"c\" & (VLOOKUP(Rebalance!$D$32,$F$2:$G$48,2,FALSE)+ROW()-2))=Rebalance!$D$32,INDIRECT(\"a\" & (VLOOKUP(Rebalance!$D$32,$F$2:$G$48,2,FALSE)+ROW()-2)),\"\")","v":{"$error":"#N/A"}},{"$f":"IF(INDIRECT(\"c\" & (VLOOKUP(Rebalance!$D$33,$F$2:$G$48,2,FALSE)+ROW()-2))=Rebalance!$D$33,INDIRECT(\"a\" & (VLOOKUP(Rebalance!$D$33,$F$2:$G$48,2,FALSE)+ROW()-2)),\"\")","v":{"$error":"#N/A"}},{"$f":"IF(INDIRECT(\"c\" & (VLOOKUP(Rebalance!$D$34,$F$2:$G$48,2,FALSE)+ROW()-2))=Rebalance!$D$34,INDIRECT(\"a\" & (VLOOKUP(Rebalance!$D$34,$F$2:$G$48,2,FALSE)+ROW()-2)),\"\")","v":{"$error":"#N/A"}},{"$f":"IF(INDIRECT(\"c\" & (VLOOKUP(Rebalance!$D$35,$F$2:$G$48,2,FALSE)+ROW()-2))=Rebalance!$D$35,INDIRECT(\"a\" & (VLOOKUP(Rebalance!$D$35,$F$2:$G$48,2,FALSE)+ROW()-2)),\"\")","v":{"$error":"#N/A"}},{"$f":"IF(INDIRECT(\"c\" & (VLOOKUP(Rebalance!$D$36,$F$2:$G$48,2,FALSE)+ROW()-2))=Rebalance!$D$36,INDIRECT(\"a\" & (VLOOKUP(Rebalance!$D$36,$F$2:$G$48,2,FALSE)+ROW()-2)),\"\")","v":{"$error":"#N/A"}},{"$f":"IF(INDIRECT(\"c\" & (VLOOKUP(Rebalance!$D$37,$F$2:$G$48,2,FALSE)+ROW()-2))=Rebalance!$D$37,INDIRECT(\"a\" & (VLOOKUP(Rebalance!$D$37,$F$2:$G$48,2,FALSE)+ROW()-2)),\"\")","v":{"$error":"#N/A"}},{"$f":"IF(INDIRECT(\"c\" & (VLOOKUP(Rebalance!$D$38,$F$2:$G$48,2,FALSE)+ROW()-2))=Rebalance!$D$38,INDIRECT(\"a\" & (VLOOKUP(Rebalance!$D$38,$F$2:$G$48,2,FALSE)+ROW()-2)),\"\")","v":{"$error":"#N/A"}},{"$f":"IF(INDIRECT(\"c\" & (VLOOKUP(Rebalance!$D$39,$F$2:$G$48,2,FALSE)+ROW()-2))=Rebalance!$D$39,INDIRECT(\"a\" & (VLOOKUP(Rebalance!$D$39,$F$2:$G$48,2,FALSE)+ROW()-2)),\"\")","v":{"$error":"#N/A"}},{"$f":"IF(INDIRECT(\"c\" & (VLOOKUP(Rebalance!$D$40,$F$2:$G$48,2,FALSE)+ROW()-2))=Rebalance!$D$40,INDIRECT(\"a\" & (VLOOKUP(Rebalance!$D$40,$F$2:$G$48,2,FALSE)+ROW()-2)),\"\")","v":{"$error":"#N/A"}},{"$f":"IF(INDIRECT(\"c\" & (VLOOKUP(Rebalance!$D$52,$F$2:$G$48,2,FALSE)+ROW()-2))=Rebalance!$D$52,INDIRECT(\"a\" & (VLOOKUP(Rebalance!$D$52,$F$2:$G$48,2,FALSE)+ROW()-2)),\"\")","v":{"$error":"#N/A"}},{"$f":"IF(INDIRECT(\"c\" & (VLOOKUP(Rebalance!$D$53,$F$2:$G$48,2,FALSE)+ROW()-2))=Rebalance!$D$53,INDIRECT(\"a\" & (VLOOKUP(Rebalance!$D$53,$F$2:$G$48,2,FALSE)+ROW()-2)),\"\")","v":{"$error":"#N/A"}},{"$f":"IF(INDIRECT(\"c\" & (VLOOKUP(Rebalance!$D$54,$F$2:$G$48,2,FALSE)+ROW()-2))=Rebalance!$D$54,INDIRECT(\"a\" & (VLOOKUP(Rebalance!$D$54,$F$2:$G$48,2,FALSE)+ROW()-2)),\"\")","v":{"$error":"#N/A"}},{"$f":"IF(INDIRECT(\"c\" & (VLOOKUP(Rebalance!$D$55,$F$2:$G$48,2,FALSE)+ROW()-2))=Rebalance!$D$55,INDIRECT(\"a\" & (VLOOKUP(Rebalance!$D$55,$F$2:$G$48,2,FALSE)+ROW()-2)),\"\")","v":{"$error":"#N/A"}},{"$f":"IF(INDIRECT(\"c\" & (VLOOKUP(Rebalance!$D$56,$F$2:$G$48,2,FALSE)+ROW()-2))=Rebalance!$D$56,INDIRECT(\"a\" & (VLOOKUP(Rebalance!$D$56,$F$2:$G$48,2,FALSE)+ROW()-2)),\"\")","v":{"$error":"#N/A"}},{"$f":"IF(INDIRECT(\"c\" & (VLOOKUP(Rebalance!$D$57,$F$2:$G$48,2,FALSE)+ROW()-2))=Rebalance!$D$57,INDIRECT(\"a\" & (VLOOKUP(Rebalance!$D$57,$F$2:$G$48,2,FALSE)+ROW()-2)),\"\")","v":{"$error":"#N/A"}},{"$f":"IF(INDIRECT(\"c\" & (VLOOKUP(Rebalance!$D$58,$F$2:$G$48,2,FALSE)+ROW()-2))=Rebalance!$D$58,INDIRECT(\"a\" & (VLOOKUP(Rebalance!$D$58,$F$2:$G$48,2,FALSE)+ROW()-2)),\"\")","v":{"$error":"#N/A"}},{"$f":"IF(INDIRECT(\"c\" & (VLOOKUP(Rebalance!$D$59,$F$2:$G$48,2,FALSE)+ROW()-2))=Rebalance!$D$59,INDIRECT(\"a\" & (VLOOKUP(Rebalance!$D$59,$F$2:$G$48,2,FALSE)+ROW()-2)),\"\")","v":{"$error":"#N/A"}},{"$f":"IF(INDIRECT(\"c\" & (VLOOKUP(Rebalance!$D$60,$F$2:$G$48,2,FALSE)+ROW()-2))=Rebalance!$D$60,INDIRECT(\"a\" & (VLOOKUP(Rebalance!$D$60,$F$2:$G$48,2,FALSE)+ROW()-2)),\"\")","v":{"$error":"#N/A"}},{"$f":"IF(INDIRECT(\"c\" & (VLOOKUP(Rebalance!$D$61,$F$2:$G$48,2,FALSE)+ROW()-2))=Rebalance!$D$61,INDIRECT(\"a\" & (VLOOKUP(Rebalance!$D$61,$F$2:$G$48,2,FALSE)+ROW()-2)),\"\")","v":{"$error":"#N/A"}},{"$f":"IF(INDIRECT(\"c\" & (VLOOKUP(Rebalance!$D$62,$F$2:$G$48,2,FALSE)+ROW()-2))=Rebalance!$D$62,INDIRECT(\"a\" & (VLOOKUP(Rebalance!$D$62,$F$2:$G$48,2,FALSE)+ROW()-2)),\"\")","v":{"$error":"#N/A"}},{"$f":"IF(INDIRECT(\"c\" & (VLOOKUP(Rebalance!$D$63,$F$2:$G$48,2,FALSE)+ROW()-2))=Rebalance!$D$63,INDIRECT(\"a\" & (VLOOKUP(Rebalance!$D$63,$F$2:$G$48,2,FALSE)+ROW()-2)),\"\")","v":{"$error":"#N/A"}},{"$f":"IF(INDIRECT(\"c\" & (VLOOKUP(Rebalance!$D$64,$F$2:$G$48,2,FALSE)+ROW()-2))=Rebalance!$D$64,INDIRECT(\"a\" & (VLOOKUP(Rebalance!$D$64,$F$2:$G$48,2,FALSE)+ROW()-2)),\"\")","v":{"$error":"#N/A"}},{"$f":"IF(INDIRECT(\"c\" & (VLOOKUP(Rebalance!$D$65,$F$2:$G$48,2,FALSE)+ROW()-2))=Rebalance!$D$65,INDIRECT(\"a\" & (VLOOKUP(Rebalance!$D$65,$F$2:$G$48,2,FALSE)+ROW()-2)),\"\")","v":{"$error":"#N/A"}},{"$f":"IF(INDIRECT(\"c\" & (VLOOKUP(Rebalance!$D$66,$F$2:$G$48,2,FALSE)+ROW()-2))=Rebalance!$D$66,INDIRECT(\"a\" & (VLOOKUP(Rebalance!$D$66,$F$2:$G$48,2,FALSE)+ROW()-2)),\"\")","v":{"$error":"#N/A"}}]
["Sasfin BCI Balanced Fund A","SMBFCA","Boutique Collective Investments (Pty) Ltd",{"$f":"ROW()","v":167},null,null,{"$f":"VLOOKUP(F167,$C$2:$D$599,2,FALSE)","v":{"$error":"#N/A"}},{"$f":"IF(INDIRECT(\"c\" & (VLOOKUP(Rebalance!$D$26,$F$2:$G$48,2,FALSE)+ROW()-2))=Rebalance!$D$26,INDIRECT(\"a\" & (VLOOKUP(Rebalance!$D$26,$F$2:$G$48,2,FALSE)+ROW()-2)),\"\")","v":{"$error":"#N/A"}},{"$f":"IF(INDIRECT(\"c\" & (VLOOKUP(Rebalance!$D$27,$F$2:$G$48,2,FALSE)+ROW()-2))=Rebalance!$D$27,INDIRECT(\"a\" & (VLOOKUP(Rebalance!$D$27,$F$2:$G$48,2,FALSE)+ROW()-2)),\"\")","v":{"$error":"#N/A"}},{"$f":"IF(INDIRECT(\"c\" & (VLOOKUP(Rebalance!$D$28,$F$2:$G$48,2,FALSE)+ROW()-2))=Rebalance!$D$28,INDIRECT(\"a\" & (VLOOKUP(Rebalance!$D$28,$F$2:$G$48,2,FALSE)+ROW()-2)),\"\")","v":{"$error":"#N/A"}},{"$f":"IF(INDIRECT(\"c\" & (VLOOKUP(Rebalance!$D$29,$F$2:$G$48,2,FALSE)+ROW()-2))=Rebalance!$D$29,INDIRECT(\"a\" & (VLOOKUP(Rebalance!$D$29,$F$2:$G$48,2,FALSE)+ROW()-2)),\"\")","v":{"$error":"#N/A"}},{"$f":"IF(INDIRECT(\"c\" & (VLOOKUP(Rebalance!$D$30,$F$2:$G$48,2,FALSE)+ROW()-2))=Rebalance!$D$30,INDIRECT(\"a\" & (VLOOKUP(Rebalance!$D$30,$F$2:$G$48,2,FALSE)+ROW()-2)),\"\")","v":{"$error":"#N/A"}},{"$f":"IF(INDIRECT(\"c\" & (VLOOKUP(Rebalance!$D$31,$F$2:$G$48,2,FALSE)+ROW()-2))=Rebalance!$D$31,INDIRECT(\"a\" & (VLOOKUP(Rebalance!$D$31,$F$2:$G$48,2,FALSE)+ROW()-2)),\"\")","v":{"$error":"#N/A"}},{"$f":"IF(INDIRECT(\"c\" & (VLOOKUP(Rebalance!$D$32,$F$2:$G$48,2,FALSE)+ROW()-2))=Rebalance!$D$32,INDIRECT(\"a\" & (VLOOKUP(Rebalance!$D$32,$F$2:$G$48,2,FALSE)+ROW()-2)),\"\")","v":{"$error":"#N/A"}},{"$f":"IF(INDIRECT(\"c\" & (VLOOKUP(Rebalance!$D$33,$F$2:$G$48,2,FALSE)+ROW()-2))=Rebalance!$D$33,INDIRECT(\"a\" & (VLOOKUP(Rebalance!$D$33,$F$2:$G$48,2,FALSE)+ROW()-2)),\"\")","v":{"$error":"#N/A"}},{"$f":"IF(INDIRECT(\"c\" & (VLOOKUP(Rebalance!$D$34,$F$2:$G$48,2,FALSE)+ROW()-2))=Rebalance!$D$34,INDIRECT(\"a\" & (VLOOKUP(Rebalance!$D$34,$F$2:$G$48,2,FALSE)+ROW()-2)),\"\")","v":{"$error":"#N/A"}},{"$f":"IF(INDIRECT(\"c\" & (VLOOKUP(Rebalance!$D$35,$F$2:$G$48,2,FALSE)+ROW()-2))=Rebalance!$D$35,INDIRECT(\"a\" & (VLOOKUP(Rebalance!$D$35,$F$2:$G$48,2,FALSE)+ROW()-2)),\"\")","v":{"$error":"#N/A"}},{"$f":"IF(INDIRECT(\"c\" & (VLOOKUP(Rebalance!$D$36,$F$2:$G$48,2,FALSE)+ROW()-2))=Rebalance!$D$36,INDIRECT(\"a\" & (VLOOKUP(Rebalance!$D$36,$F$2:$G$48,2,FALSE)+ROW()-2)),\"\")","v":{"$error":"#N/A"}},{"$f":"IF(INDIRECT(\"c\" & (VLOOKUP(Rebalance!$D$37,$F$2:$G$48,2,FALSE)+ROW()-2))=Rebalance!$D$37,INDIRECT(\"a\" & (VLOOKUP(Rebalance!$D$37,$F$2:$G$48,2,FALSE)+ROW()-2)),\"\")","v":{"$error":"#N/A"}},{"$f":"IF(INDIRECT(\"c\" & (VLOOKUP(Rebalance!$D$38,$F$2:$G$48,2,FALSE)+ROW()-2))=Rebalance!$D$38,INDIRECT(\"a\" & (VLOOKUP(Rebalance!$D$38,$F$2:$G$48,2,FALSE)+ROW()-2)),\"\")","v":{"$error":"#N/A"}},{"$f":"IF(INDIRECT(\"c\" & (VLOOKUP(Rebalance!$D$39,$F$2:$G$48,2,FALSE)+ROW()-2))=Rebalance!$D$39,INDIRECT(\"a\" & (VLOOKUP(Rebalance!$D$39,$F$2:$G$48,2,FALSE)+ROW()-2)),\"\")","v":{"$error":"#N/A"}},{"$f":"IF(INDIRECT(\"c\" & (VLOOKUP(Rebalance!$D$40,$F$2:$G$48,2,FALSE)+ROW()-2))=Rebalance!$D$40,INDIRECT(\"a\" & (VLOOKUP(Rebalance!$D$40,$F$2:$G$48,2,FALSE)+ROW()-2)),\"\")","v":{"$error":"#N/A"}},{"$f":"IF(INDIRECT(\"c\" & (VLOOKUP(Rebalance!$D$52,$F$2:$G$48,2,FALSE)+ROW()-2))=Rebalance!$D$52,INDIRECT(\"a\" & (VLOOKUP(Rebalance!$D$52,$F$2:$G$48,2,FALSE)+ROW()-2)),\"\")","v":{"$error":"#N/A"}},{"$f":"IF(INDIRECT(\"c\" & (VLOOKUP(Rebalance!$D$53,$F$2:$G$48,2,FALSE)+ROW()-2))=Rebalance!$D$53,INDIRECT(\"a\" & (VLOOKUP(Rebalance!$D$53,$F$2:$G$48,2,FALSE)+ROW()-2)),\"\")","v":{"$error":"#N/A"}},{"$f":"IF(INDIRECT(\"c\" & (VLOOKUP(Rebalance!$D$54,$F$2:$G$48,2,FALSE)+ROW()-2))=Rebalance!$D$54,INDIRECT(\"a\" & (VLOOKUP(Rebalance!$D$54,$F$2:$G$48,2,FALSE)+ROW()-2)),\"\")","v":{"$error":"#N/A"}},{"$f":"IF(INDIRECT(\"c\" & (VLOOKUP(Rebalance!$D$55,$F$2:$G$48,2,FALSE)+ROW()-2))=Rebalance!$D$55,INDIRECT(\"a\" & (VLOOKUP(Rebalance!$D$55,$F$2:$G$48,2,FALSE)+ROW()-2)),\"\")","v":{"$error":"#N/A"}},{"$f":"IF(INDIRECT(\"c\" & (VLOOKUP(Rebalance!$D$56,$F$2:$G$48,2,FALSE)+ROW()-2))=Rebalance!$D$56,INDIRECT(\"a\" & (VLOOKUP(Rebalance!$D$56,$F$2:$G$48,2,FALSE)+ROW()-2)),\"\")","v":{"$error":"#N/A"}},{"$f":"IF(INDIRECT(\"c\" & (VLOOKUP(Rebalance!$D$57,$F$2:$G$48,2,FALSE)+ROW()-2))=Rebalance!$D$57,INDIRECT(\"a\" & (VLOOKUP(Rebalance!$D$57,$F$2:$G$48,2,FALSE)+ROW()-2)),\"\")","v":{"$error":"#N/A"}},{"$f":"IF(INDIRECT(\"c\" & (VLOOKUP(Rebalance!$D$58,$F$2:$G$48,2,FALSE)+ROW()-2))=Rebalance!$D$58,INDIRECT(\"a\" & (VLOOKUP(Rebalance!$D$58,$F$2:$G$48,2,FALSE)+ROW()-2)),\"\")","v":{"$error":"#N/A"}},{"$f":"IF(INDIRECT(\"c\" & (VLOOKUP(Rebalance!$D$59,$F$2:$G$48,2,FALSE)+ROW()-2))=Rebalance!$D$59,INDIRECT(\"a\" & (VLOOKUP(Rebalance!$D$59,$F$2:$G$48,2,FALSE)+ROW()-2)),\"\")","v":{"$error":"#N/A"}},{"$f":"IF(INDIRECT(\"c\" & (VLOOKUP(Rebalance!$D$60,$F$2:$G$48,2,FALSE)+ROW()-2))=Rebalance!$D$60,INDIRECT(\"a\" & (VLOOKUP(Rebalance!$D$60,$F$2:$G$48,2,FALSE)+ROW()-2)),\"\")","v":{"$error":"#N/A"}},{"$f":"IF(INDIRECT(\"c\" & (VLOOKUP(Rebalance!$D$61,$F$2:$G$48,2,FALSE)+ROW()-2))=Rebalance!$D$61,INDIRECT(\"a\" & (VLOOKUP(Rebalance!$D$61,$F$2:$G$48,2,FALSE)+ROW()-2)),\"\")","v":{"$error":"#N/A"}},{"$f":"IF(INDIRECT(\"c\" & (VLOOKUP(Rebalance!$D$62,$F$2:$G$48,2,FALSE)+ROW()-2))=Rebalance!$D$62,INDIRECT(\"a\" & (VLOOKUP(Rebalance!$D$62,$F$2:$G$48,2,FALSE)+ROW()-2)),\"\")","v":{"$error":"#N/A"}},{"$f":"IF(INDIRECT(\"c\" & (VLOOKUP(Rebalance!$D$63,$F$2:$G$48,2,FALSE)+ROW()-2))=Rebalance!$D$63,INDIRECT(\"a\" & (VLOOKUP(Rebalance!$D$63,$F$2:$G$48,2,FALSE)+ROW()-2)),\"\")","v":{"$error":"#N/A"}},{"$f":"IF(INDIRECT(\"c\" & (VLOOKUP(Rebalance!$D$64,$F$2:$G$48,2,FALSE)+ROW()-2))=Rebalance!$D$64,INDIRECT(\"a\" & (VLOOKUP(Rebalance!$D$64,$F$2:$G$48,2,FALSE)+ROW()-2)),\"\")","v":{"$error":"#N/A"}},{"$f":"IF(INDIRECT(\"c\" & (VLOOKUP(Rebalance!$D$65,$F$2:$G$48,2,FALSE)+ROW()-2))=Rebalance!$D$65,INDIRECT(\"a\" & (VLOOKUP(Rebalance!$D$65,$F$2:$G$48,2,FALSE)+ROW()-2)),\"\")","v":{"$error":"#N/A"}},{"$f":"IF(INDIRECT(\"c\" & (VLOOKUP(Rebalance!$D$66,$F$2:$G$48,2,FALSE)+ROW()-2))=Rebalance!$D$66,INDIRECT(\"a\" & (VLOOKUP(Rebalance!$D$66,$F$2:$G$48,2,FALSE)+ROW()-2)),\"\")","v":{"$error":"#N/A"}}]
["Sasfin BCI Flexible Income Fund A","SMFIA","Boutique Collective Investments (Pty) Ltd",{"$f":"ROW()","v":168},null,null,{"$f":"VLOOKUP(F168,$C$2:$D$599,2,FALSE)","v":{"$error":"#N/A"}},{"$f":"IF(INDIRECT(\"c\" & (VLOOKUP(Rebalance!$D$26,$F$2:$G$48,2,FALSE)+ROW()-2))=Rebalance!$D$26,INDIRECT(\"a\" & (VLOOKUP(Rebalance!$D$26,$F$2:$G$48,2,FALSE)+ROW()-2)),\"\")","v":{"$error":"#N/A"}},{"$f":"IF(INDIRECT(\"c\" & (VLOOKUP(Rebalance!$D$27,$F$2:$G$48,2,FALSE)+ROW()-2))=Rebalance!$D$27,INDIRECT(\"a\" & (VLOOKUP(Rebalance!$D$27,$F$2:$G$48,2,FALSE)+ROW()-2)),\"\")","v":{"$error":"#N/A"}},{"$f":"IF(INDIRECT(\"c\" & (VLOOKUP(Rebalance!$D$28,$F$2:$G$48,2,FALSE)+ROW()-2))=Rebalance!$D$28,INDIRECT(\"a\" & (VLOOKUP(Rebalance!$D$28,$F$2:$G$48,2,FALSE)+ROW()-2)),\"\")","v":{"$error":"#N/A"}},{"$f":"IF(INDIRECT(\"c\" & (VLOOKUP(Rebalance!$D$29,$F$2:$G$48,2,FALSE)+ROW()-2))=Rebalance!$D$29,INDIRECT(\"a\" & (VLOOKUP(Rebalance!$D$29,$F$2:$G$48,2,FALSE)+ROW()-2)),\"\")","v":{"$error":"#N/A"}},{"$f":"IF(INDIRECT(\"c\" & (VLOOKUP(Rebalance!$D$30,$F$2:$G$48,2,FALSE)+ROW()-2))=Rebalance!$D$30,INDIRECT(\"a\" & (VLOOKUP(Rebalance!$D$30,$F$2:$G$48,2,FALSE)+ROW()-2)),\"\")","v":{"$error":"#N/A"}},{"$f":"IF(INDIRECT(\"c\" & (VLOOKUP(Rebalance!$D$31,$F$2:$G$48,2,FALSE)+ROW()-2))=Rebalance!$D$31,INDIRECT(\"a\" & (VLOOKUP(Rebalance!$D$31,$F$2:$G$48,2,FALSE)+ROW()-2)),\"\")","v":{"$error":"#N/A"}},{"$f":"IF(INDIRECT(\"c\" & (VLOOKUP(Rebalance!$D$32,$F$2:$G$48,2,FALSE)+ROW()-2))=Rebalance!$D$32,INDIRECT(\"a\" & (VLOOKUP(Rebalance!$D$32,$F$2:$G$48,2,FALSE)+ROW()-2)),\"\")","v":{"$error":"#N/A"}},{"$f":"IF(INDIRECT(\"c\" & (VLOOKUP(Rebalance!$D$33,$F$2:$G$48,2,FALSE)+ROW()-2))=Rebalance!$D$33,INDIRECT(\"a\" & (VLOOKUP(Rebalance!$D$33,$F$2:$G$48,2,FALSE)+ROW()-2)),\"\")","v":{"$error":"#N/A"}},{"$f":"IF(INDIRECT(\"c\" & (VLOOKUP(Rebalance!$D$34,$F$2:$G$48,2,FALSE)+ROW()-2))=Rebalance!$D$34,INDIRECT(\"a\" & (VLOOKUP(Rebalance!$D$34,$F$2:$G$48,2,FALSE)+ROW()-2)),\"\")","v":{"$error":"#N/A"}},{"$f":"IF(INDIRECT(\"c\" & (VLOOKUP(Rebalance!$D$35,$F$2:$G$48,2,FALSE)+ROW()-2))=Rebalance!$D$35,INDIRECT(\"a\" & (VLOOKUP(Rebalance!$D$35,$F$2:$G$48,2,FALSE)+ROW()-2)),\"\")","v":{"$error":"#N/A"}},{"$f":"IF(INDIRECT(\"c\" & (VLOOKUP(Rebalance!$D$36,$F$2:$G$48,2,FALSE)+ROW()-2))=Rebalance!$D$36,INDIRECT(\"a\" & (VLOOKUP(Rebalance!$D$36,$F$2:$G$48,2,FALSE)+ROW()-2)),\"\")","v":{"$error":"#N/A"}},{"$f":"IF(INDIRECT(\"c\" & (VLOOKUP(Rebalance!$D$37,$F$2:$G$48,2,FALSE)+ROW()-2))=Rebalance!$D$37,INDIRECT(\"a\" & (VLOOKUP(Rebalance!$D$37,$F$2:$G$48,2,FALSE)+ROW()-2)),\"\")","v":{"$error":"#N/A"}},{"$f":"IF(INDIRECT(\"c\" & (VLOOKUP(Rebalance!$D$38,$F$2:$G$48,2,FALSE)+ROW()-2))=Rebalance!$D$38,INDIRECT(\"a\" & (VLOOKUP(Rebalance!$D$38,$F$2:$G$48,2,FALSE)+ROW()-2)),\"\")","v":{"$error":"#N/A"}},{"$f":"IF(INDIRECT(\"c\" & (VLOOKUP(Rebalance!$D$39,$F$2:$G$48,2,FALSE)+ROW()-2))=Rebalance!$D$39,INDIRECT(\"a\" & (VLOOKUP(Rebalance!$D$39,$F$2:$G$48,2,FALSE)+ROW()-2)),\"\")","v":{"$error":"#N/A"}},{"$f":"IF(INDIRECT(\"c\" & (VLOOKUP(Rebalance!$D$40,$F$2:$G$48,2,FALSE)+ROW()-2))=Rebalance!$D$40,INDIRECT(\"a\" & (VLOOKUP(Rebalance!$D$40,$F$2:$G$48,2,FALSE)+ROW()-2)),\"\")","v":{"$error":"#N/A"}},{"$f":"IF(INDIRECT(\"c\" & (VLOOKUP(Rebalance!$D$52,$F$2:$G$48,2,FALSE)+ROW()-2))=Rebalance!$D$52,INDIRECT(\"a\" & (VLOOKUP(Rebalance!$D$52,$F$2:$G$48,2,FALSE)+ROW()-2)),\"\")","v":{"$error":"#N/A"}},{"$f":"IF(INDIRECT(\"c\" & (VLOOKUP(Rebalance!$D$53,$F$2:$G$48,2,FALSE)+ROW()-2))=Rebalance!$D$53,INDIRECT(\"a\" & (VLOOKUP(Rebalance!$D$53,$F$2:$G$48,2,FALSE)+ROW()-2)),\"\")","v":{"$error":"#N/A"}},{"$f":"IF(INDIRECT(\"c\" & (VLOOKUP(Rebalance!$D$54,$F$2:$G$48,2,FALSE)+ROW()-2))=Rebalance!$D$54,INDIRECT(\"a\" & (VLOOKUP(Rebalance!$D$54,$F$2:$G$48,2,FALSE)+ROW()-2)),\"\")","v":{"$error":"#N/A"}},{"$f":"IF(INDIRECT(\"c\" & (VLOOKUP(Rebalance!$D$55,$F$2:$G$48,2,FALSE)+ROW()-2))=Rebalance!$D$55,INDIRECT(\"a\" & (VLOOKUP(Rebalance!$D$55,$F$2:$G$48,2,FALSE)+ROW()-2)),\"\")","v":{"$error":"#N/A"}},{"$f":"IF(INDIRECT(\"c\" & (VLOOKUP(Rebalance!$D$56,$F$2:$G$48,2,FALSE)+ROW()-2))=Rebalance!$D$56,INDIRECT(\"a\" & (VLOOKUP(Rebalance!$D$56,$F$2:$G$48,2,FALSE)+ROW()-2)),\"\")","v":{"$error":"#N/A"}},{"$f":"IF(INDIRECT(\"c\" & (VLOOKUP(Rebalance!$D$57,$F$2:$G$48,2,FALSE)+ROW()-2))=Rebalance!$D$57,INDIRECT(\"a\" & (VLOOKUP(Rebalance!$D$57,$F$2:$G$48,2,FALSE)+ROW()-2)),\"\")","v":{"$error":"#N/A"}},{"$f":"IF(INDIRECT(\"c\" & (VLOOKUP(Rebalance!$D$58,$F$2:$G$48,2,FALSE)+ROW()-2))=Rebalance!$D$58,INDIRECT(\"a\" & (VLOOKUP(Rebalance!$D$58,$F$2:$G$48,2,FALSE)+ROW()-2)),\"\")","v":{"$error":"#N/A"}},{"$f":"IF(INDIRECT(\"c\" & (VLOOKUP(Rebalance!$D$59,$F$2:$G$48,2,FALSE)+ROW()-2))=Rebalance!$D$59,INDIRECT(\"a\" & (VLOOKUP(Rebalance!$D$59,$F$2:$G$48,2,FALSE)+ROW()-2)),\"\")","v":{"$error":"#N/A"}},{"$f":"IF(INDIRECT(\"c\" & (VLOOKUP(Rebalance!$D$60,$F$2:$G$48,2,FALSE)+ROW()-2))=Rebalance!$D$60,INDIRECT(\"a\" & (VLOOKUP(Rebalance!$D$60,$F$2:$G$48,2,FALSE)+ROW()-2)),\"\")","v":{"$error":"#N/A"}},{"$f":"IF(INDIRECT(\"c\" & (VLOOKUP(Rebalance!$D$61,$F$2:$G$48,2,FALSE)+ROW()-2))=Rebalance!$D$61,INDIRECT(\"a\" & (VLOOKUP(Rebalance!$D$61,$F$2:$G$48,2,FALSE)+ROW()-2)),\"\")","v":{"$error":"#N/A"}},{"$f":"IF(INDIRECT(\"c\" & (VLOOKUP(Rebalance!$D$62,$F$2:$G$48,2,FALSE)+ROW()-2))=Rebalance!$D$62,INDIRECT(\"a\" & (VLOOKUP(Rebalance!$D$62,$F$2:$G$48,2,FALSE)+ROW()-2)),\"\")","v":{"$error":"#N/A"}},{"$f":"IF(INDIRECT(\"c\" & (VLOOKUP(Rebalance!$D$63,$F$2:$G$48,2,FALSE)+ROW()-2))=Rebalance!$D$63,INDIRECT(\"a\" & (VLOOKUP(Rebalance!$D$63,$F$2:$G$48,2,FALSE)+ROW()-2)),\"\")","v":{"$error":"#N/A"}},{"$f":"IF(INDIRECT(\"c\" & (VLOOKUP(Rebalance!$D$64,$F$2:$G$48,2,FALSE)+ROW()-2))=Rebalance!$D$64,INDIRECT(\"a\" & (VLOOKUP(Rebalance!$D$64,$F$2:$G$48,2,FALSE)+ROW()-2)),\"\")","v":{"$error":"#N/A"}},{"$f":"IF(INDIRECT(\"c\" & (VLOOKUP(Rebalance!$D$65,$F$2:$G$48,2,FALSE)+ROW()-2))=Rebalance!$D$65,INDIRECT(\"a\" & (VLOOKUP(Rebalance!$D$65,$F$2:$G$48,2,FALSE)+ROW()-2)),\"\")","v":{"$error":"#N/A"}},{"$f":"IF(INDIRECT(\"c\" & (VLOOKUP(Rebalance!$D$66,$F$2:$G$48,2,FALSE)+ROW()-2))=Rebalance!$D$66,INDIRECT(\"a\" & (VLOOKUP(Rebalance!$D$66,$F$2:$G$48,2,FALSE)+ROW()-2)),\"\")","v":{"$error":"#N/A"}}]
["Sasfin BCI Optimal Income Fund A","IBOFA","Boutique Collective Investments (Pty) Ltd",{"$f":"ROW()","v":169},null,null,{"$f":"VLOOKUP(F169,$C$2:$D$599,2,FALSE)","v":{"$error":"#N/A"}},{"$f":"IF(INDIRECT(\"c\" & (VLOOKUP(Rebalance!$D$26,$F$2:$G$48,2,FALSE)+ROW()-2))=Rebalance!$D$26,INDIRECT(\"a\" & (VLOOKUP(Rebalance!$D$26,$F$2:$G$48,2,FALSE)+ROW()-2)),\"\")","v":{"$error":"#N/A"}},{"$f":"IF(INDIRECT(\"c\" & (VLOOKUP(Rebalance!$D$27,$F$2:$G$48,2,FALSE)+ROW()-2))=Rebalance!$D$27,INDIRECT(\"a\" & (VLOOKUP(Rebalance!$D$27,$F$2:$G$48,2,FALSE)+ROW()-2)),\"\")","v":{"$error":"#N/A"}},{"$f":"IF(INDIRECT(\"c\" & (VLOOKUP(Rebalance!$D$28,$F$2:$G$48,2,FALSE)+ROW()-2))=Rebalance!$D$28,INDIRECT(\"a\" & (VLOOKUP(Rebalance!$D$28,$F$2:$G$48,2,FALSE)+ROW()-2)),\"\")","v":{"$error":"#N/A"}},{"$f":"IF(INDIRECT(\"c\" & (VLOOKUP(Rebalance!$D$29,$F$2:$G$48,2,FALSE)+ROW()-2))=Rebalance!$D$29,INDIRECT(\"a\" & (VLOOKUP(Rebalance!$D$29,$F$2:$G$48,2,FALSE)+ROW()-2)),\"\")","v":{"$error":"#N/A"}},{"$f":"IF(INDIRECT(\"c\" & (VLOOKUP(Rebalance!$D$30,$F$2:$G$48,2,FALSE)+ROW()-2))=Rebalance!$D$30,INDIRECT(\"a\" & (VLOOKUP(Rebalance!$D$30,$F$2:$G$48,2,FALSE)+ROW()-2)),\"\")","v":{"$error":"#N/A"}},{"$f":"IF(INDIRECT(\"c\" & (VLOOKUP(Rebalance!$D$31,$F$2:$G$48,2,FALSE)+ROW()-2))=Rebalance!$D$31,INDIRECT(\"a\" & (VLOOKUP(Rebalance!$D$31,$F$2:$G$48,2,FALSE)+ROW()-2)),\"\")","v":{"$error":"#N/A"}},{"$f":"IF(INDIRECT(\"c\" & (VLOOKUP(Rebalance!$D$32,$F$2:$G$48,2,FALSE)+ROW()-2))=Rebalance!$D$32,INDIRECT(\"a\" & (VLOOKUP(Rebalance!$D$32,$F$2:$G$48,2,FALSE)+ROW()-2)),\"\")","v":{"$error":"#N/A"}},{"$f":"IF(INDIRECT(\"c\" & (VLOOKUP(Rebalance!$D$33,$F$2:$G$48,2,FALSE)+ROW()-2))=Rebalance!$D$33,INDIRECT(\"a\" & (VLOOKUP(Rebalance!$D$33,$F$2:$G$48,2,FALSE)+ROW()-2)),\"\")","v":{"$error":"#N/A"}},{"$f":"IF(INDIRECT(\"c\" & (VLOOKUP(Rebalance!$D$34,$F$2:$G$48,2,FALSE)+ROW()-2))=Rebalance!$D$34,INDIRECT(\"a\" & (VLOOKUP(Rebalance!$D$34,$F$2:$G$48,2,FALSE)+ROW()-2)),\"\")","v":{"$error":"#N/A"}},{"$f":"IF(INDIRECT(\"c\" & (VLOOKUP(Rebalance!$D$35,$F$2:$G$48,2,FALSE)+ROW()-2))=Rebalance!$D$35,INDIRECT(\"a\" & (VLOOKUP(Rebalance!$D$35,$F$2:$G$48,2,FALSE)+ROW()-2)),\"\")","v":{"$error":"#N/A"}},{"$f":"IF(INDIRECT(\"c\" & (VLOOKUP(Rebalance!$D$36,$F$2:$G$48,2,FALSE)+ROW()-2))=Rebalance!$D$36,INDIRECT(\"a\" & (VLOOKUP(Rebalance!$D$36,$F$2:$G$48,2,FALSE)+ROW()-2)),\"\")","v":{"$error":"#N/A"}},{"$f":"IF(INDIRECT(\"c\" & (VLOOKUP(Rebalance!$D$37,$F$2:$G$48,2,FALSE)+ROW()-2))=Rebalance!$D$37,INDIRECT(\"a\" & (VLOOKUP(Rebalance!$D$37,$F$2:$G$48,2,FALSE)+ROW()-2)),\"\")","v":{"$error":"#N/A"}},{"$f":"IF(INDIRECT(\"c\" & (VLOOKUP(Rebalance!$D$38,$F$2:$G$48,2,FALSE)+ROW()-2))=Rebalance!$D$38,INDIRECT(\"a\" & (VLOOKUP(Rebalance!$D$38,$F$2:$G$48,2,FALSE)+ROW()-2)),\"\")","v":{"$error":"#N/A"}},{"$f":"IF(INDIRECT(\"c\" & (VLOOKUP(Rebalance!$D$39,$F$2:$G$48,2,FALSE)+ROW()-2))=Rebalance!$D$39,INDIRECT(\"a\" & (VLOOKUP(Rebalance!$D$39,$F$2:$G$48,2,FALSE)+ROW()-2)),\"\")","v":{"$error":"#N/A"}},{"$f":"IF(INDIRECT(\"c\" & (VLOOKUP(Rebalance!$D$40,$F$2:$G$48,2,FALSE)+ROW()-2))=Rebalance!$D$40,INDIRECT(\"a\" & (VLOOKUP(Rebalance!$D$40,$F$2:$G$48,2,FALSE)+ROW()-2)),\"\")","v":{"$error":"#N/A"}},{"$f":"IF(INDIRECT(\"c\" & (VLOOKUP(Rebalance!$D$52,$F$2:$G$48,2,FALSE)+ROW()-2))=Rebalance!$D$52,INDIRECT(\"a\" & (VLOOKUP(Rebalance!$D$52,$F$2:$G$48,2,FALSE)+ROW()-2)),\"\")","v":{"$error":"#N/A"}},{"$f":"IF(INDIRECT(\"c\" & (VLOOKUP(Rebalance!$D$53,$F$2:$G$48,2,FALSE)+ROW()-2))=Rebalance!$D$53,INDIRECT(\"a\" & (VLOOKUP(Rebalance!$D$53,$F$2:$G$48,2,FALSE)+ROW()-2)),\"\")","v":{"$error":"#N/A"}},{"$f":"IF(INDIRECT(\"c\" & (VLOOKUP(Rebalance!$D$54,$F$2:$G$48,2,FALSE)+ROW()-2))=Rebalance!$D$54,INDIRECT(\"a\" & (VLOOKUP(Rebalance!$D$54,$F$2:$G$48,2,FALSE)+ROW()-2)),\"\")","v":{"$error":"#N/A"}},{"$f":"IF(INDIRECT(\"c\" & (VLOOKUP(Rebalance!$D$55,$F$2:$G$48,2,FALSE)+ROW()-2))=Rebalance!$D$55,INDIRECT(\"a\" & (VLOOKUP(Rebalance!$D$55,$F$2:$G$48,2,FALSE)+ROW()-2)),\"\")","v":{"$error":"#N/A"}},{"$f":"IF(INDIRECT(\"c\" & (VLOOKUP(Rebalance!$D$56,$F$2:$G$48,2,FALSE)+ROW()-2))=Rebalance!$D$56,INDIRECT(\"a\" & (VLOOKUP(Rebalance!$D$56,$F$2:$G$48,2,FALSE)+ROW()-2)),\"\")","v":{"$error":"#N/A"}},{"$f":"IF(INDIRECT(\"c\" & (VLOOKUP(Rebalance!$D$57,$F$2:$G$48,2,FALSE)+ROW()-2))=Rebalance!$D$57,INDIRECT(\"a\" & (VLOOKUP(Rebalance!$D$57,$F$2:$G$48,2,FALSE)+ROW()-2)),\"\")","v":{"$error":"#N/A"}},{"$f":"IF(INDIRECT(\"c\" & (VLOOKUP(Rebalance!$D$58,$F$2:$G$48,2,FALSE)+ROW()-2))=Rebalance!$D$58,INDIRECT(\"a\" & (VLOOKUP(Rebalance!$D$58,$F$2:$G$48,2,FALSE)+ROW()-2)),\"\")","v":{"$error":"#N/A"}},{"$f":"IF(INDIRECT(\"c\" & (VLOOKUP(Rebalance!$D$59,$F$2:$G$48,2,FALSE)+ROW()-2))=Rebalance!$D$59,INDIRECT(\"a\" & (VLOOKUP(Rebalance!$D$59,$F$2:$G$48,2,FALSE)+ROW()-2)),\"\")","v":{"$error":"#N/A"}},{"$f":"IF(INDIRECT(\"c\" & (VLOOKUP(Rebalance!$D$60,$F$2:$G$48,2,FALSE)+ROW()-2))=Rebalance!$D$60,INDIRECT(\"a\" & (VLOOKUP(Rebalance!$D$60,$F$2:$G$48,2,FALSE)+ROW()-2)),\"\")","v":{"$error":"#N/A"}},{"$f":"IF(INDIRECT(\"c\" & (VLOOKUP(Rebalance!$D$61,$F$2:$G$48,2,FALSE)+ROW()-2))=Rebalance!$D$61,INDIRECT(\"a\" & (VLOOKUP(Rebalance!$D$61,$F$2:$G$48,2,FALSE)+ROW()-2)),\"\")","v":{"$error":"#N/A"}},{"$f":"IF(INDIRECT(\"c\" & (VLOOKUP(Rebalance!$D$62,$F$2:$G$48,2,FALSE)+ROW()-2))=Rebalance!$D$62,INDIRECT(\"a\" & (VLOOKUP(Rebalance!$D$62,$F$2:$G$48,2,FALSE)+ROW()-2)),\"\")","v":{"$error":"#N/A"}},{"$f":"IF(INDIRECT(\"c\" & (VLOOKUP(Rebalance!$D$63,$F$2:$G$48,2,FALSE)+ROW()-2))=Rebalance!$D$63,INDIRECT(\"a\" & (VLOOKUP(Rebalance!$D$63,$F$2:$G$48,2,FALSE)+ROW()-2)),\"\")","v":{"$error":"#N/A"}},{"$f":"IF(INDIRECT(\"c\" & (VLOOKUP(Rebalance!$D$64,$F$2:$G$48,2,FALSE)+ROW()-2))=Rebalance!$D$64,INDIRECT(\"a\" & (VLOOKUP(Rebalance!$D$64,$F$2:$G$48,2,FALSE)+ROW()-2)),\"\")","v":{"$error":"#N/A"}},{"$f":"IF(INDIRECT(\"c\" & (VLOOKUP(Rebalance!$D$65,$F$2:$G$48,2,FALSE)+ROW()-2))=Rebalance!$D$65,INDIRECT(\"a\" & (VLOOKUP(Rebalance!$D$65,$F$2:$G$48,2,FALSE)+ROW()-2)),\"\")","v":{"$error":"#N/A"}},{"$f":"IF(INDIRECT(\"c\" & (VLOOKUP(Rebalance!$D$66,$F$2:$G$48,2,FALSE)+ROW()-2))=Rebalance!$D$66,INDIRECT(\"a\" & (VLOOKUP(Rebalance!$D$66,$F$2:$G$48,2,FALSE)+ROW()-2)),\"\")","v":{"$error":"#N/A"}}]
["Sasfin BCI Stable Fund A","SMSFCA","Boutique Collective Investments (Pty) Ltd",{"$f":"ROW()","v":170},null,null,{"$f":"VLOOKUP(F170,$C$2:$D$599,2,FALSE)","v":{"$error":"#N/A"}},{"$f":"IF(INDIRECT(\"c\" & (VLOOKUP(Rebalance!$D$26,$F$2:$G$48,2,FALSE)+ROW()-2))=Rebalance!$D$26,INDIRECT(\"a\" & (VLOOKUP(Rebalance!$D$26,$F$2:$G$48,2,FALSE)+ROW()-2)),\"\")","v":{"$error":"#N/A"}},{"$f":"IF(INDIRECT(\"c\" & (VLOOKUP(Rebalance!$D$27,$F$2:$G$48,2,FALSE)+ROW()-2))=Rebalance!$D$27,INDIRECT(\"a\" & (VLOOKUP(Rebalance!$D$27,$F$2:$G$48,2,FALSE)+ROW()-2)),\"\")","v":{"$error":"#N/A"}},{"$f":"IF(INDIRECT(\"c\" & (VLOOKUP(Rebalance!$D$28,$F$2:$G$48,2,FALSE)+ROW()-2))=Rebalance!$D$28,INDIRECT(\"a\" & (VLOOKUP(Rebalance!$D$28,$F$2:$G$48,2,FALSE)+ROW()-2)),\"\")","v":{"$error":"#N/A"}},{"$f":"IF(INDIRECT(\"c\" & (VLOOKUP(Rebalance!$D$29,$F$2:$G$48,2,FALSE)+ROW()-2))=Rebalance!$D$29,INDIRECT(\"a\" & (VLOOKUP(Rebalance!$D$29,$F$2:$G$48,2,FALSE)+ROW()-2)),\"\")","v":{"$error":"#N/A"}},{"$f":"IF(INDIRECT(\"c\" & (VLOOKUP(Rebalance!$D$30,$F$2:$G$48,2,FALSE)+ROW()-2))=Rebalance!$D$30,INDIRECT(\"a\" & (VLOOKUP(Rebalance!$D$30,$F$2:$G$48,2,FALSE)+ROW()-2)),\"\")","v":{"$error":"#N/A"}},{"$f":"IF(INDIRECT(\"c\" & (VLOOKUP(Rebalance!$D$31,$F$2:$G$48,2,FALSE)+ROW()-2))=Rebalance!$D$31,INDIRECT(\"a\" & (VLOOKUP(Rebalance!$D$31,$F$2:$G$48,2,FALSE)+ROW()-2)),\"\")","v":{"$error":"#N/A"}},{"$f":"IF(INDIRECT(\"c\" & (VLOOKUP(Rebalance!$D$32,$F$2:$G$48,2,FALSE)+ROW()-2))=Rebalance!$D$32,INDIRECT(\"a\" & (VLOOKUP(Rebalance!$D$32,$F$2:$G$48,2,FALSE)+ROW()-2)),\"\")","v":{"$error":"#N/A"}},{"$f":"IF(INDIRECT(\"c\" & (VLOOKUP(Rebalance!$D$33,$F$2:$G$48,2,FALSE)+ROW()-2))=Rebalance!$D$33,INDIRECT(\"a\" & (VLOOKUP(Rebalance!$D$33,$F$2:$G$48,2,FALSE)+ROW()-2)),\"\")","v":{"$error":"#N/A"}},{"$f":"IF(INDIRECT(\"c\" & (VLOOKUP(Rebalance!$D$34,$F$2:$G$48,2,FALSE)+ROW()-2))=Rebalance!$D$34,INDIRECT(\"a\" & (VLOOKUP(Rebalance!$D$34,$F$2:$G$48,2,FALSE)+ROW()-2)),\"\")","v":{"$error":"#N/A"}},{"$f":"IF(INDIRECT(\"c\" & (VLOOKUP(Rebalance!$D$35,$F$2:$G$48,2,FALSE)+ROW()-2))=Rebalance!$D$35,INDIRECT(\"a\" & (VLOOKUP(Rebalance!$D$35,$F$2:$G$48,2,FALSE)+ROW()-2)),\"\")","v":{"$error":"#N/A"}},{"$f":"IF(INDIRECT(\"c\" & (VLOOKUP(Rebalance!$D$36,$F$2:$G$48,2,FALSE)+ROW()-2))=Rebalance!$D$36,INDIRECT(\"a\" & (VLOOKUP(Rebalance!$D$36,$F$2:$G$48,2,FALSE)+ROW()-2)),\"\")","v":{"$error":"#N/A"}},{"$f":"IF(INDIRECT(\"c\" & (VLOOKUP(Rebalance!$D$37,$F$2:$G$48,2,FALSE)+ROW()-2))=Rebalance!$D$37,INDIRECT(\"a\" & (VLOOKUP(Rebalance!$D$37,$F$2:$G$48,2,FALSE)+ROW()-2)),\"\")","v":{"$error":"#N/A"}},{"$f":"IF(INDIRECT(\"c\" & (VLOOKUP(Rebalance!$D$38,$F$2:$G$48,2,FALSE)+ROW()-2))=Rebalance!$D$38,INDIRECT(\"a\" & (VLOOKUP(Rebalance!$D$38,$F$2:$G$48,2,FALSE)+ROW()-2)),\"\")","v":{"$error":"#N/A"}},{"$f":"IF(INDIRECT(\"c\" & (VLOOKUP(Rebalance!$D$39,$F$2:$G$48,2,FALSE)+ROW()-2))=Rebalance!$D$39,INDIRECT(\"a\" & (VLOOKUP(Rebalance!$D$39,$F$2:$G$48,2,FALSE)+ROW()-2)),\"\")","v":{"$error":"#N/A"}},{"$f":"IF(INDIRECT(\"c\" & (VLOOKUP(Rebalance!$D$40,$F$2:$G$48,2,FALSE)+ROW()-2))=Rebalance!$D$40,INDIRECT(\"a\" & (VLOOKUP(Rebalance!$D$40,$F$2:$G$48,2,FALSE)+ROW()-2)),\"\")","v":{"$error":"#N/A"}},{"$f":"IF(INDIRECT(\"c\" & (VLOOKUP(Rebalance!$D$52,$F$2:$G$48,2,FALSE)+ROW()-2))=Rebalance!$D$52,INDIRECT(\"a\" & (VLOOKUP(Rebalance!$D$52,$F$2:$G$48,2,FALSE)+ROW()-2)),\"\")","v":{"$error":"#N/A"}},{"$f":"IF(INDIRECT(\"c\" & (VLOOKUP(Rebalance!$D$53,$F$2:$G$48,2,FALSE)+ROW()-2))=Rebalance!$D$53,INDIRECT(\"a\" & (VLOOKUP(Rebalance!$D$53,$F$2:$G$48,2,FALSE)+ROW()-2)),\"\")","v":{"$error":"#N/A"}},{"$f":"IF(INDIRECT(\"c\" & (VLOOKUP(Rebalance!$D$54,$F$2:$G$48,2,FALSE)+ROW()-2))=Rebalance!$D$54,INDIRECT(\"a\" & (VLOOKUP(Rebalance!$D$54,$F$2:$G$48,2,FALSE)+ROW()-2)),\"\")","v":{"$error":"#N/A"}},{"$f":"IF(INDIRECT(\"c\" & (VLOOKUP(Rebalance!$D$55,$F$2:$G$48,2,FALSE)+ROW()-2))=Rebalance!$D$55,INDIRECT(\"a\" & (VLOOKUP(Rebalance!$D$55,$F$2:$G$48,2,FALSE)+ROW()-2)),\"\")","v":{"$error":"#N/A"}},{"$f":"IF(INDIRECT(\"c\" & (VLOOKUP(Rebalance!$D$56,$F$2:$G$48,2,FALSE)+ROW()-2))=Rebalance!$D$56,INDIRECT(\"a\" & (VLOOKUP(Rebalance!$D$56,$F$2:$G$48,2,FALSE)+ROW()-2)),\"\")","v":{"$error":"#N/A"}},{"$f":"IF(INDIRECT(\"c\" & (VLOOKUP(Rebalance!$D$57,$F$2:$G$48,2,FALSE)+ROW()-2))=Rebalance!$D$57,INDIRECT(\"a\" & (VLOOKUP(Rebalance!$D$57,$F$2:$G$48,2,FALSE)+ROW()-2)),\"\")","v":{"$error":"#N/A"}},{"$f":"IF(INDIRECT(\"c\" & (VLOOKUP(Rebalance!$D$58,$F$2:$G$48,2,FALSE)+ROW()-2))=Rebalance!$D$58,INDIRECT(\"a\" & (VLOOKUP(Rebalance!$D$58,$F$2:$G$48,2,FALSE)+ROW()-2)),\"\")","v":{"$error":"#N/A"}},{"$f":"IF(INDIRECT(\"c\" & (VLOOKUP(Rebalance!$D$59,$F$2:$G$48,2,FALSE)+ROW()-2))=Rebalance!$D$59,INDIRECT(\"a\" & (VLOOKUP(Rebalance!$D$59,$F$2:$G$48,2,FALSE)+ROW()-2)),\"\")","v":{"$error":"#N/A"}},{"$f":"IF(INDIRECT(\"c\" & (VLOOKUP(Rebalance!$D$60,$F$2:$G$48,2,FALSE)+ROW()-2))=Rebalance!$D$60,INDIRECT(\"a\" & (VLOOKUP(Rebalance!$D$60,$F$2:$G$48,2,FALSE)+ROW()-2)),\"\")","v":{"$error":"#N/A"}},{"$f":"IF(INDIRECT(\"c\" & (VLOOKUP(Rebalance!$D$61,$F$2:$G$48,2,FALSE)+ROW()-2))=Rebalance!$D$61,INDIRECT(\"a\" & (VLOOKUP(Rebalance!$D$61,$F$2:$G$48,2,FALSE)+ROW()-2)),\"\")","v":{"$error":"#N/A"}},{"$f":"IF(INDIRECT(\"c\" & (VLOOKUP(Rebalance!$D$62,$F$2:$G$48,2,FALSE)+ROW()-2))=Rebalance!$D$62,INDIRECT(\"a\" & (VLOOKUP(Rebalance!$D$62,$F$2:$G$48,2,FALSE)+ROW()-2)),\"\")","v":{"$error":"#N/A"}},{"$f":"IF(INDIRECT(\"c\" & (VLOOKUP(Rebalance!$D$63,$F$2:$G$48,2,FALSE)+ROW()-2))=Rebalance!$D$63,INDIRECT(\"a\" & (VLOOKUP(Rebalance!$D$63,$F$2:$G$48,2,FALSE)+ROW()-2)),\"\")","v":{"$error":"#N/A"}},{"$f":"IF(INDIRECT(\"c\" & (VLOOKUP(Rebalance!$D$64,$F$2:$G$48,2,FALSE)+ROW()-2))=Rebalance!$D$64,INDIRECT(\"a\" & (VLOOKUP(Rebalance!$D$64,$F$2:$G$48,2,FALSE)+ROW()-2)),\"\")","v":{"$error":"#N/A"}},{"$f":"IF(INDIRECT(\"c\" & (VLOOKUP(Rebalance!$D$65,$F$2:$G$48,2,FALSE)+ROW()-2))=Rebalance!$D$65,INDIRECT(\"a\" & (VLOOKUP(Rebalance!$D$65,$F$2:$G$48,2,FALSE)+ROW()-2)),\"\")","v":{"$error":"#N/A"}},{"$f":"IF(INDIRECT(\"c\" & (VLOOKUP(Rebalance!$D$66,$F$2:$G$48,2,FALSE)+ROW()-2))=Rebalance!$D$66,INDIRECT(\"a\" & (VLOOKUP(Rebalance!$D$66,$F$2:$G$48,2,FALSE)+ROW()-2)),\"\")","v":{"$error":"#N/A"}}]
["Sasfin BCI Equity Fund B","MSVB","Boutique Collective Investments (Pty) Ltd",{"$f":"ROW()","v":171},null,null,{"$f":"VLOOKUP(F171,$C$2:$D$599,2,FALSE)","v":{"$error":"#N/A"}},{"$f":"IF(INDIRECT(\"c\" & (VLOOKUP(Rebalance!$D$26,$F$2:$G$48,2,FALSE)+ROW()-2))=Rebalance!$D$26,INDIRECT(\"a\" & (VLOOKUP(Rebalance!$D$26,$F$2:$G$48,2,FALSE)+ROW()-2)),\"\")","v":{"$error":"#N/A"}},{"$f":"IF(INDIRECT(\"c\" & (VLOOKUP(Rebalance!$D$27,$F$2:$G$48,2,FALSE)+ROW()-2))=Rebalance!$D$27,INDIRECT(\"a\" & (VLOOKUP(Rebalance!$D$27,$F$2:$G$48,2,FALSE)+ROW()-2)),\"\")","v":{"$error":"#N/A"}},{"$f":"IF(INDIRECT(\"c\" & (VLOOKUP(Rebalance!$D$28,$F$2:$G$48,2,FALSE)+ROW()-2))=Rebalance!$D$28,INDIRECT(\"a\" & (VLOOKUP(Rebalance!$D$28,$F$2:$G$48,2,FALSE)+ROW()-2)),\"\")","v":{"$error":"#N/A"}},{"$f":"IF(INDIRECT(\"c\" & (VLOOKUP(Rebalance!$D$29,$F$2:$G$48,2,FALSE)+ROW()-2))=Rebalance!$D$29,INDIRECT(\"a\" & (VLOOKUP(Rebalance!$D$29,$F$2:$G$48,2,FALSE)+ROW()-2)),\"\")","v":{"$error":"#N/A"}},{"$f":"IF(INDIRECT(\"c\" & (VLOOKUP(Rebalance!$D$30,$F$2:$G$48,2,FALSE)+ROW()-2))=Rebalance!$D$30,INDIRECT(\"a\" & (VLOOKUP(Rebalance!$D$30,$F$2:$G$48,2,FALSE)+ROW()-2)),\"\")","v":{"$error":"#N/A"}},{"$f":"IF(INDIRECT(\"c\" & (VLOOKUP(Rebalance!$D$31,$F$2:$G$48,2,FALSE)+ROW()-2))=Rebalance!$D$31,INDIRECT(\"a\" & (VLOOKUP(Rebalance!$D$31,$F$2:$G$48,2,FALSE)+ROW()-2)),\"\")","v":{"$error":"#N/A"}},{"$f":"IF(INDIRECT(\"c\" & (VLOOKUP(Rebalance!$D$32,$F$2:$G$48,2,FALSE)+ROW()-2))=Rebalance!$D$32,INDIRECT(\"a\" & (VLOOKUP(Rebalance!$D$32,$F$2:$G$48,2,FALSE)+ROW()-2)),\"\")","v":{"$error":"#N/A"}},{"$f":"IF(INDIRECT(\"c\" & (VLOOKUP(Rebalance!$D$33,$F$2:$G$48,2,FALSE)+ROW()-2))=Rebalance!$D$33,INDIRECT(\"a\" & (VLOOKUP(Rebalance!$D$33,$F$2:$G$48,2,FALSE)+ROW()-2)),\"\")","v":{"$error":"#N/A"}},{"$f":"IF(INDIRECT(\"c\" & (VLOOKUP(Rebalance!$D$34,$F$2:$G$48,2,FALSE)+ROW()-2))=Rebalance!$D$34,INDIRECT(\"a\" & (VLOOKUP(Rebalance!$D$34,$F$2:$G$48,2,FALSE)+ROW()-2)),\"\")","v":{"$error":"#N/A"}},{"$f":"IF(INDIRECT(\"c\" & (VLOOKUP(Rebalance!$D$35,$F$2:$G$48,2,FALSE)+ROW()-2))=Rebalance!$D$35,INDIRECT(\"a\" & (VLOOKUP(Rebalance!$D$35,$F$2:$G$48,2,FALSE)+ROW()-2)),\"\")","v":{"$error":"#N/A"}},{"$f":"IF(INDIRECT(\"c\" & (VLOOKUP(Rebalance!$D$36,$F$2:$G$48,2,FALSE)+ROW()-2))=Rebalance!$D$36,INDIRECT(\"a\" & (VLOOKUP(Rebalance!$D$36,$F$2:$G$48,2,FALSE)+ROW()-2)),\"\")","v":{"$error":"#N/A"}},{"$f":"IF(INDIRECT(\"c\" & (VLOOKUP(Rebalance!$D$37,$F$2:$G$48,2,FALSE)+ROW()-2))=Rebalance!$D$37,INDIRECT(\"a\" & (VLOOKUP(Rebalance!$D$37,$F$2:$G$48,2,FALSE)+ROW()-2)),\"\")","v":{"$error":"#N/A"}},{"$f":"IF(INDIRECT(\"c\" & (VLOOKUP(Rebalance!$D$38,$F$2:$G$48,2,FALSE)+ROW()-2))=Rebalance!$D$38,INDIRECT(\"a\" & (VLOOKUP(Rebalance!$D$38,$F$2:$G$48,2,FALSE)+ROW()-2)),\"\")","v":{"$error":"#N/A"}},{"$f":"IF(INDIRECT(\"c\" & (VLOOKUP(Rebalance!$D$39,$F$2:$G$48,2,FALSE)+ROW()-2))=Rebalance!$D$39,INDIRECT(\"a\" & (VLOOKUP(Rebalance!$D$39,$F$2:$G$48,2,FALSE)+ROW()-2)),\"\")","v":{"$error":"#N/A"}},{"$f":"IF(INDIRECT(\"c\" & (VLOOKUP(Rebalance!$D$40,$F$2:$G$48,2,FALSE)+ROW()-2))=Rebalance!$D$40,INDIRECT(\"a\" & (VLOOKUP(Rebalance!$D$40,$F$2:$G$48,2,FALSE)+ROW()-2)),\"\")","v":{"$error":"#N/A"}},{"$f":"IF(INDIRECT(\"c\" & (VLOOKUP(Rebalance!$D$52,$F$2:$G$48,2,FALSE)+ROW()-2))=Rebalance!$D$52,INDIRECT(\"a\" & (VLOOKUP(Rebalance!$D$52,$F$2:$G$48,2,FALSE)+ROW()-2)),\"\")","v":{"$error":"#N/A"}},{"$f":"IF(INDIRECT(\"c\" & (VLOOKUP(Rebalance!$D$53,$F$2:$G$48,2,FALSE)+ROW()-2))=Rebalance!$D$53,INDIRECT(\"a\" & (VLOOKUP(Rebalance!$D$53,$F$2:$G$48,2,FALSE)+ROW()-2)),\"\")","v":{"$error":"#N/A"}},{"$f":"IF(INDIRECT(\"c\" & (VLOOKUP(Rebalance!$D$54,$F$2:$G$48,2,FALSE)+ROW()-2))=Rebalance!$D$54,INDIRECT(\"a\" & (VLOOKUP(Rebalance!$D$54,$F$2:$G$48,2,FALSE)+ROW()-2)),\"\")","v":{"$error":"#N/A"}},{"$f":"IF(INDIRECT(\"c\" & (VLOOKUP(Rebalance!$D$55,$F$2:$G$48,2,FALSE)+ROW()-2))=Rebalance!$D$55,INDIRECT(\"a\" & (VLOOKUP(Rebalance!$D$55,$F$2:$G$48,2,FALSE)+ROW()-2)),\"\")","v":{"$error":"#N/A"}},{"$f":"IF(INDIRECT(\"c\" & (VLOOKUP(Rebalance!$D$56,$F$2:$G$48,2,FALSE)+ROW()-2))=Rebalance!$D$56,INDIRECT(\"a\" & (VLOOKUP(Rebalance!$D$56,$F$2:$G$48,2,FALSE)+ROW()-2)),\"\")","v":{"$error":"#N/A"}},{"$f":"IF(INDIRECT(\"c\" & (VLOOKUP(Rebalance!$D$57,$F$2:$G$48,2,FALSE)+ROW()-2))=Rebalance!$D$57,INDIRECT(\"a\" & (VLOOKUP(Rebalance!$D$57,$F$2:$G$48,2,FALSE)+ROW()-2)),\"\")","v":{"$error":"#N/A"}},{"$f":"IF(INDIRECT(\"c\" & (VLOOKUP(Rebalance!$D$58,$F$2:$G$48,2,FALSE)+ROW()-2))=Rebalance!$D$58,INDIRECT(\"a\" & (VLOOKUP(Rebalance!$D$58,$F$2:$G$48,2,FALSE)+ROW()-2)),\"\")","v":{"$error":"#N/A"}},{"$f":"IF(INDIRECT(\"c\" & (VLOOKUP(Rebalance!$D$59,$F$2:$G$48,2,FALSE)+ROW()-2))=Rebalance!$D$59,INDIRECT(\"a\" & (VLOOKUP(Rebalance!$D$59,$F$2:$G$48,2,FALSE)+ROW()-2)),\"\")","v":{"$error":"#N/A"}},{"$f":"IF(INDIRECT(\"c\" & (VLOOKUP(Rebalance!$D$60,$F$2:$G$48,2,FALSE)+ROW()-2))=Rebalance!$D$60,INDIRECT(\"a\" & (VLOOKUP(Rebalance!$D$60,$F$2:$G$48,2,FALSE)+ROW()-2)),\"\")","v":{"$error":"#N/A"}},{"$f":"IF(INDIRECT(\"c\" & (VLOOKUP(Rebalance!$D$61,$F$2:$G$48,2,FALSE)+ROW()-2))=Rebalance!$D$61,INDIRECT(\"a\" & (VLOOKUP(Rebalance!$D$61,$F$2:$G$48,2,FALSE)+ROW()-2)),\"\")","v":{"$error":"#N/A"}},{"$f":"IF(INDIRECT(\"c\" & (VLOOKUP(Rebalance!$D$62,$F$2:$G$48,2,FALSE)+ROW()-2))=Rebalance!$D$62,INDIRECT(\"a\" & (VLOOKUP(Rebalance!$D$62,$F$2:$G$48,2,FALSE)+ROW()-2)),\"\")","v":{"$error":"#N/A"}},{"$f":"IF(INDIRECT(\"c\" & (VLOOKUP(Rebalance!$D$63,$F$2:$G$48,2,FALSE)+ROW()-2))=Rebalance!$D$63,INDIRECT(\"a\" & (VLOOKUP(Rebalance!$D$63,$F$2:$G$48,2,FALSE)+ROW()-2)),\"\")","v":{"$error":"#N/A"}},{"$f":"IF(INDIRECT(\"c\" & (VLOOKUP(Rebalance!$D$64,$F$2:$G$48,2,FALSE)+ROW()-2))=Rebalance!$D$64,INDIRECT(\"a\" & (VLOOKUP(Rebalance!$D$64,$F$2:$G$48,2,FALSE)+ROW()-2)),\"\")","v":{"$error":"#N/A"}},{"$f":"IF(INDIRECT(\"c\" & (VLOOKUP(Rebalance!$D$65,$F$2:$G$48,2,FALSE)+ROW()-2))=Rebalance!$D$65,INDIRECT(\"a\" & (VLOOKUP(Rebalance!$D$65,$F$2:$G$48,2,FALSE)+ROW()-2)),\"\")","v":{"$error":"#N/A"}},{"$f":"IF(INDIRECT(\"c\" & (VLOOKUP(Rebalance!$D$66,$F$2:$G$48,2,FALSE)+ROW()-2))=Rebalance!$D$66,INDIRECT(\"a\" & (VLOOKUP(Rebalance!$D$66,$F$2:$G$48,2,FALSE)+ROW()-2)),\"\")","v":{"$error":"#N/A"}}]
["Sasfin BCI Global Equity Feeder Fund A","SGEFA","Boutique Collective Investments (Pty) Ltd",{"$f":"ROW()","v":172},null,null,{"$f":"VLOOKUP(F172,$C$2:$D$599,2,FALSE)","v":{"$error":"#N/A"}},{"$f":"IF(INDIRECT(\"c\" & (VLOOKUP(Rebalance!$D$26,$F$2:$G$48,2,FALSE)+ROW()-2))=Rebalance!$D$26,INDIRECT(\"a\" & (VLOOKUP(Rebalance!$D$26,$F$2:$G$48,2,FALSE)+ROW()-2)),\"\")","v":{"$error":"#N/A"}},{"$f":"IF(INDIRECT(\"c\" & (VLOOKUP(Rebalance!$D$27,$F$2:$G$48,2,FALSE)+ROW()-2))=Rebalance!$D$27,INDIRECT(\"a\" & (VLOOKUP(Rebalance!$D$27,$F$2:$G$48,2,FALSE)+ROW()-2)),\"\")","v":{"$error":"#N/A"}},{"$f":"IF(INDIRECT(\"c\" & (VLOOKUP(Rebalance!$D$28,$F$2:$G$48,2,FALSE)+ROW()-2))=Rebalance!$D$28,INDIRECT(\"a\" & (VLOOKUP(Rebalance!$D$28,$F$2:$G$48,2,FALSE)+ROW()-2)),\"\")","v":{"$error":"#N/A"}},{"$f":"IF(INDIRECT(\"c\" & (VLOOKUP(Rebalance!$D$29,$F$2:$G$48,2,FALSE)+ROW()-2))=Rebalance!$D$29,INDIRECT(\"a\" & (VLOOKUP(Rebalance!$D$29,$F$2:$G$48,2,FALSE)+ROW()-2)),\"\")","v":{"$error":"#N/A"}},{"$f":"IF(INDIRECT(\"c\" & (VLOOKUP(Rebalance!$D$30,$F$2:$G$48,2,FALSE)+ROW()-2))=Rebalance!$D$30,INDIRECT(\"a\" & (VLOOKUP(Rebalance!$D$30,$F$2:$G$48,2,FALSE)+ROW()-2)),\"\")","v":{"$error":"#N/A"}},{"$f":"IF(INDIRECT(\"c\" & (VLOOKUP(Rebalance!$D$31,$F$2:$G$48,2,FALSE)+ROW()-2))=Rebalance!$D$31,INDIRECT(\"a\" & (VLOOKUP(Rebalance!$D$31,$F$2:$G$48,2,FALSE)+ROW()-2)),\"\")","v":{"$error":"#N/A"}},{"$f":"IF(INDIRECT(\"c\" & (VLOOKUP(Rebalance!$D$32,$F$2:$G$48,2,FALSE)+ROW()-2))=Rebalance!$D$32,INDIRECT(\"a\" & (VLOOKUP(Rebalance!$D$32,$F$2:$G$48,2,FALSE)+ROW()-2)),\"\")","v":{"$error":"#N/A"}},{"$f":"IF(INDIRECT(\"c\" & (VLOOKUP(Rebalance!$D$33,$F$2:$G$48,2,FALSE)+ROW()-2))=Rebalance!$D$33,INDIRECT(\"a\" & (VLOOKUP(Rebalance!$D$33,$F$2:$G$48,2,FALSE)+ROW()-2)),\"\")","v":{"$error":"#N/A"}},{"$f":"IF(INDIRECT(\"c\" & (VLOOKUP(Rebalance!$D$34,$F$2:$G$48,2,FALSE)+ROW()-2))=Rebalance!$D$34,INDIRECT(\"a\" & (VLOOKUP(Rebalance!$D$34,$F$2:$G$48,2,FALSE)+ROW()-2)),\"\")","v":{"$error":"#N/A"}},{"$f":"IF(INDIRECT(\"c\" & (VLOOKUP(Rebalance!$D$35,$F$2:$G$48,2,FALSE)+ROW()-2))=Rebalance!$D$35,INDIRECT(\"a\" & (VLOOKUP(Rebalance!$D$35,$F$2:$G$48,2,FALSE)+ROW()-2)),\"\")","v":{"$error":"#N/A"}},{"$f":"IF(INDIRECT(\"c\" & (VLOOKUP(Rebalance!$D$36,$F$2:$G$48,2,FALSE)+ROW()-2))=Rebalance!$D$36,INDIRECT(\"a\" & (VLOOKUP(Rebalance!$D$36,$F$2:$G$48,2,FALSE)+ROW()-2)),\"\")","v":{"$error":"#N/A"}},{"$f":"IF(INDIRECT(\"c\" & (VLOOKUP(Rebalance!$D$37,$F$2:$G$48,2,FALSE)+ROW()-2))=Rebalance!$D$37,INDIRECT(\"a\" & (VLOOKUP(Rebalance!$D$37,$F$2:$G$48,2,FALSE)+ROW()-2)),\"\")","v":{"$error":"#N/A"}},{"$f":"IF(INDIRECT(\"c\" & (VLOOKUP(Rebalance!$D$38,$F$2:$G$48,2,FALSE)+ROW()-2))=Rebalance!$D$38,INDIRECT(\"a\" & (VLOOKUP(Rebalance!$D$38,$F$2:$G$48,2,FALSE)+ROW()-2)),\"\")","v":{"$error":"#N/A"}},{"$f":"IF(INDIRECT(\"c\" & (VLOOKUP(Rebalance!$D$39,$F$2:$G$48,2,FALSE)+ROW()-2))=Rebalance!$D$39,INDIRECT(\"a\" & (VLOOKUP(Rebalance!$D$39,$F$2:$G$48,2,FALSE)+ROW()-2)),\"\")","v":{"$error":"#N/A"}},{"$f":"IF(INDIRECT(\"c\" & (VLOOKUP(Rebalance!$D$40,$F$2:$G$48,2,FALSE)+ROW()-2))=Rebalance!$D$40,INDIRECT(\"a\" & (VLOOKUP(Rebalance!$D$40,$F$2:$G$48,2,FALSE)+ROW()-2)),\"\")","v":{"$error":"#N/A"}},{"$f":"IF(INDIRECT(\"c\" & (VLOOKUP(Rebalance!$D$52,$F$2:$G$48,2,FALSE)+ROW()-2))=Rebalance!$D$52,INDIRECT(\"a\" & (VLOOKUP(Rebalance!$D$52,$F$2:$G$48,2,FALSE)+ROW()-2)),\"\")","v":{"$error":"#N/A"}},{"$f":"IF(INDIRECT(\"c\" & (VLOOKUP(Rebalance!$D$53,$F$2:$G$48,2,FALSE)+ROW()-2))=Rebalance!$D$53,INDIRECT(\"a\" & (VLOOKUP(Rebalance!$D$53,$F$2:$G$48,2,FALSE)+ROW()-2)),\"\")","v":{"$error":"#N/A"}},{"$f":"IF(INDIRECT(\"c\" & (VLOOKUP(Rebalance!$D$54,$F$2:$G$48,2,FALSE)+ROW()-2))=Rebalance!$D$54,INDIRECT(\"a\" & (VLOOKUP(Rebalance!$D$54,$F$2:$G$48,2,FALSE)+ROW()-2)),\"\")","v":{"$error":"#N/A"}},{"$f":"IF(INDIRECT(\"c\" & (VLOOKUP(Rebalance!$D$55,$F$2:$G$48,2,FALSE)+ROW()-2))=Rebalance!$D$55,INDIRECT(\"a\" & (VLOOKUP(Rebalance!$D$55,$F$2:$G$48,2,FALSE)+ROW()-2)),\"\")","v":{"$error":"#N/A"}},{"$f":"IF(INDIRECT(\"c\" & (VLOOKUP(Rebalance!$D$56,$F$2:$G$48,2,FALSE)+ROW()-2))=Rebalance!$D$56,INDIRECT(\"a\" & (VLOOKUP(Rebalance!$D$56,$F$2:$G$48,2,FALSE)+ROW()-2)),\"\")","v":{"$error":"#N/A"}},{"$f":"IF(INDIRECT(\"c\" & (VLOOKUP(Rebalance!$D$57,$F$2:$G$48,2,FALSE)+ROW()-2))=Rebalance!$D$57,INDIRECT(\"a\" & (VLOOKUP(Rebalance!$D$57,$F$2:$G$48,2,FALSE)+ROW()-2)),\"\")","v":{"$error":"#N/A"}},{"$f":"IF(INDIRECT(\"c\" & (VLOOKUP(Rebalance!$D$58,$F$2:$G$48,2,FALSE)+ROW()-2))=Rebalance!$D$58,INDIRECT(\"a\" & (VLOOKUP(Rebalance!$D$58,$F$2:$G$48,2,FALSE)+ROW()-2)),\"\")","v":{"$error":"#N/A"}},{"$f":"IF(INDIRECT(\"c\" & (VLOOKUP(Rebalance!$D$59,$F$2:$G$48,2,FALSE)+ROW()-2))=Rebalance!$D$59,INDIRECT(\"a\" & (VLOOKUP(Rebalance!$D$59,$F$2:$G$48,2,FALSE)+ROW()-2)),\"\")","v":{"$error":"#N/A"}},{"$f":"IF(INDIRECT(\"c\" & (VLOOKUP(Rebalance!$D$60,$F$2:$G$48,2,FALSE)+ROW()-2))=Rebalance!$D$60,INDIRECT(\"a\" & (VLOOKUP(Rebalance!$D$60,$F$2:$G$48,2,FALSE)+ROW()-2)),\"\")","v":{"$error":"#N/A"}},{"$f":"IF(INDIRECT(\"c\" & (VLOOKUP(Rebalance!$D$61,$F$2:$G$48,2,FALSE)+ROW()-2))=Rebalance!$D$61,INDIRECT(\"a\" & (VLOOKUP(Rebalance!$D$61,$F$2:$G$48,2,FALSE)+ROW()-2)),\"\")","v":{"$error":"#N/A"}},{"$f":"IF(INDIRECT(\"c\" & (VLOOKUP(Rebalance!$D$62,$F$2:$G$48,2,FALSE)+ROW()-2))=Rebalance!$D$62,INDIRECT(\"a\" & (VLOOKUP(Rebalance!$D$62,$F$2:$G$48,2,FALSE)+ROW()-2)),\"\")","v":{"$error":"#N/A"}},{"$f":"IF(INDIRECT(\"c\" & (VLOOKUP(Rebalance!$D$63,$F$2:$G$48,2,FALSE)+ROW()-2))=Rebalance!$D$63,INDIRECT(\"a\" & (VLOOKUP(Rebalance!$D$63,$F$2:$G$48,2,FALSE)+ROW()-2)),\"\")","v":{"$error":"#N/A"}},{"$f":"IF(INDIRECT(\"c\" & (VLOOKUP(Rebalance!$D$64,$F$2:$G$48,2,FALSE)+ROW()-2))=Rebalance!$D$64,INDIRECT(\"a\" & (VLOOKUP(Rebalance!$D$64,$F$2:$G$48,2,FALSE)+ROW()-2)),\"\")","v":{"$error":"#N/A"}},{"$f":"IF(INDIRECT(\"c\" & (VLOOKUP(Rebalance!$D$65,$F$2:$G$48,2,FALSE)+ROW()-2))=Rebalance!$D$65,INDIRECT(\"a\" & (VLOOKUP(Rebalance!$D$65,$F$2:$G$48,2,FALSE)+ROW()-2)),\"\")","v":{"$error":"#N/A"}},{"$f":"IF(INDIRECT(\"c\" & (VLOOKUP(Rebalance!$D$66,$F$2:$G$48,2,FALSE)+ROW()-2))=Rebalance!$D$66,INDIRECT(\"a\" & (VLOOKUP(Rebalance!$D$66,$F$2:$G$48,2,FALSE)+ROW()-2)),\"\")","v":{"$error":"#N/A"}}]
["Sasfin BCI Opportunity Equity Fund A","SBEFA","Boutique Collective Investments (Pty) Ltd",{"$f":"ROW()","v":173},null,null,{"$f":"VLOOKUP(F173,$C$2:$D$599,2,FALSE)","v":{"$error":"#N/A"}},{"$f":"IF(INDIRECT(\"c\" & (VLOOKUP(Rebalance!$D$26,$F$2:$G$48,2,FALSE)+ROW()-2))=Rebalance!$D$26,INDIRECT(\"a\" & (VLOOKUP(Rebalance!$D$26,$F$2:$G$48,2,FALSE)+ROW()-2)),\"\")","v":{"$error":"#N/A"}},{"$f":"IF(INDIRECT(\"c\" & (VLOOKUP(Rebalance!$D$27,$F$2:$G$48,2,FALSE)+ROW()-2))=Rebalance!$D$27,INDIRECT(\"a\" & (VLOOKUP(Rebalance!$D$27,$F$2:$G$48,2,FALSE)+ROW()-2)),\"\")","v":{"$error":"#N/A"}},{"$f":"IF(INDIRECT(\"c\" & (VLOOKUP(Rebalance!$D$28,$F$2:$G$48,2,FALSE)+ROW()-2))=Rebalance!$D$28,INDIRECT(\"a\" & (VLOOKUP(Rebalance!$D$28,$F$2:$G$48,2,FALSE)+ROW()-2)),\"\")","v":{"$error":"#N/A"}},{"$f":"IF(INDIRECT(\"c\" & (VLOOKUP(Rebalance!$D$29,$F$2:$G$48,2,FALSE)+ROW()-2))=Rebalance!$D$29,INDIRECT(\"a\" & (VLOOKUP(Rebalance!$D$29,$F$2:$G$48,2,FALSE)+ROW()-2)),\"\")","v":{"$error":"#N/A"}},{"$f":"IF(INDIRECT(\"c\" & (VLOOKUP(Rebalance!$D$30,$F$2:$G$48,2,FALSE)+ROW()-2))=Rebalance!$D$30,INDIRECT(\"a\" & (VLOOKUP(Rebalance!$D$30,$F$2:$G$48,2,FALSE)+ROW()-2)),\"\")","v":{"$error":"#N/A"}},{"$f":"IF(INDIRECT(\"c\" & (VLOOKUP(Rebalance!$D$31,$F$2:$G$48,2,FALSE)+ROW()-2))=Rebalance!$D$31,INDIRECT(\"a\" & (VLOOKUP(Rebalance!$D$31,$F$2:$G$48,2,FALSE)+ROW()-2)),\"\")","v":{"$error":"#N/A"}},{"$f":"IF(INDIRECT(\"c\" & (VLOOKUP(Rebalance!$D$32,$F$2:$G$48,2,FALSE)+ROW()-2))=Rebalance!$D$32,INDIRECT(\"a\" & (VLOOKUP(Rebalance!$D$32,$F$2:$G$48,2,FALSE)+ROW()-2)),\"\")","v":{"$error":"#N/A"}},{"$f":"IF(INDIRECT(\"c\" & (VLOOKUP(Rebalance!$D$33,$F$2:$G$48,2,FALSE)+ROW()-2))=Rebalance!$D$33,INDIRECT(\"a\" & (VLOOKUP(Rebalance!$D$33,$F$2:$G$48,2,FALSE)+ROW()-2)),\"\")","v":{"$error":"#N/A"}},{"$f":"IF(INDIRECT(\"c\" & (VLOOKUP(Rebalance!$D$34,$F$2:$G$48,2,FALSE)+ROW()-2))=Rebalance!$D$34,INDIRECT(\"a\" & (VLOOKUP(Rebalance!$D$34,$F$2:$G$48,2,FALSE)+ROW()-2)),\"\")","v":{"$error":"#N/A"}},{"$f":"IF(INDIRECT(\"c\" & (VLOOKUP(Rebalance!$D$35,$F$2:$G$48,2,FALSE)+ROW()-2))=Rebalance!$D$35,INDIRECT(\"a\" & (VLOOKUP(Rebalance!$D$35,$F$2:$G$48,2,FALSE)+ROW()-2)),\"\")","v":{"$error":"#N/A"}},{"$f":"IF(INDIRECT(\"c\" & (VLOOKUP(Rebalance!$D$36,$F$2:$G$48,2,FALSE)+ROW()-2))=Rebalance!$D$36,INDIRECT(\"a\" & (VLOOKUP(Rebalance!$D$36,$F$2:$G$48,2,FALSE)+ROW()-2)),\"\")","v":{"$error":"#N/A"}},{"$f":"IF(INDIRECT(\"c\" & (VLOOKUP(Rebalance!$D$37,$F$2:$G$48,2,FALSE)+ROW()-2))=Rebalance!$D$37,INDIRECT(\"a\" & (VLOOKUP(Rebalance!$D$37,$F$2:$G$48,2,FALSE)+ROW()-2)),\"\")","v":{"$error":"#N/A"}},{"$f":"IF(INDIRECT(\"c\" & (VLOOKUP(Rebalance!$D$38,$F$2:$G$48,2,FALSE)+ROW()-2))=Rebalance!$D$38,INDIRECT(\"a\" & (VLOOKUP(Rebalance!$D$38,$F$2:$G$48,2,FALSE)+ROW()-2)),\"\")","v":{"$error":"#N/A"}},{"$f":"IF(INDIRECT(\"c\" & (VLOOKUP(Rebalance!$D$39,$F$2:$G$48,2,FALSE)+ROW()-2))=Rebalance!$D$39,INDIRECT(\"a\" & (VLOOKUP(Rebalance!$D$39,$F$2:$G$48,2,FALSE)+ROW()-2)),\"\")","v":{"$error":"#N/A"}},{"$f":"IF(INDIRECT(\"c\" & (VLOOKUP(Rebalance!$D$40,$F$2:$G$48,2,FALSE)+ROW()-2))=Rebalance!$D$40,INDIRECT(\"a\" & (VLOOKUP(Rebalance!$D$40,$F$2:$G$48,2,FALSE)+ROW()-2)),\"\")","v":{"$error":"#N/A"}},{"$f":"IF(INDIRECT(\"c\" & (VLOOKUP(Rebalance!$D$52,$F$2:$G$48,2,FALSE)+ROW()-2))=Rebalance!$D$52,INDIRECT(\"a\" & (VLOOKUP(Rebalance!$D$52,$F$2:$G$48,2,FALSE)+ROW()-2)),\"\")","v":{"$error":"#N/A"}},{"$f":"IF(INDIRECT(\"c\" & (VLOOKUP(Rebalance!$D$53,$F$2:$G$48,2,FALSE)+ROW()-2))=Rebalance!$D$53,INDIRECT(\"a\" & (VLOOKUP(Rebalance!$D$53,$F$2:$G$48,2,FALSE)+ROW()-2)),\"\")","v":{"$error":"#N/A"}},{"$f":"IF(INDIRECT(\"c\" & (VLOOKUP(Rebalance!$D$54,$F$2:$G$48,2,FALSE)+ROW()-2))=Rebalance!$D$54,INDIRECT(\"a\" & (VLOOKUP(Rebalance!$D$54,$F$2:$G$48,2,FALSE)+ROW()-2)),\"\")","v":{"$error":"#N/A"}},{"$f":"IF(INDIRECT(\"c\" & (VLOOKUP(Rebalance!$D$55,$F$2:$G$48,2,FALSE)+ROW()-2))=Rebalance!$D$55,INDIRECT(\"a\" & (VLOOKUP(Rebalance!$D$55,$F$2:$G$48,2,FALSE)+ROW()-2)),\"\")","v":{"$error":"#N/A"}},{"$f":"IF(INDIRECT(\"c\" & (VLOOKUP(Rebalance!$D$56,$F$2:$G$48,2,FALSE)+ROW()-2))=Rebalance!$D$56,INDIRECT(\"a\" & (VLOOKUP(Rebalance!$D$56,$F$2:$G$48,2,FALSE)+ROW()-2)),\"\")","v":{"$error":"#N/A"}},{"$f":"IF(INDIRECT(\"c\" & (VLOOKUP(Rebalance!$D$57,$F$2:$G$48,2,FALSE)+ROW()-2))=Rebalance!$D$57,INDIRECT(\"a\" & (VLOOKUP(Rebalance!$D$57,$F$2:$G$48,2,FALSE)+ROW()-2)),\"\")","v":{"$error":"#N/A"}},{"$f":"IF(INDIRECT(\"c\" & (VLOOKUP(Rebalance!$D$58,$F$2:$G$48,2,FALSE)+ROW()-2))=Rebalance!$D$58,INDIRECT(\"a\" & (VLOOKUP(Rebalance!$D$58,$F$2:$G$48,2,FALSE)+ROW()-2)),\"\")","v":{"$error":"#N/A"}},{"$f":"IF(INDIRECT(\"c\" & (VLOOKUP(Rebalance!$D$59,$F$2:$G$48,2,FALSE)+ROW()-2))=Rebalance!$D$59,INDIRECT(\"a\" & (VLOOKUP(Rebalance!$D$59,$F$2:$G$48,2,FALSE)+ROW()-2)),\"\")","v":{"$error":"#N/A"}},{"$f":"IF(INDIRECT(\"c\" & (VLOOKUP(Rebalance!$D$60,$F$2:$G$48,2,FALSE)+ROW()-2))=Rebalance!$D$60,INDIRECT(\"a\" & (VLOOKUP(Rebalance!$D$60,$F$2:$G$48,2,FALSE)+ROW()-2)),\"\")","v":{"$error":"#N/A"}},{"$f":"IF(INDIRECT(\"c\" & (VLOOKUP(Rebalance!$D$61,$F$2:$G$48,2,FALSE)+ROW()-2))=Rebalance!$D$61,INDIRECT(\"a\" & (VLOOKUP(Rebalance!$D$61,$F$2:$G$48,2,FALSE)+ROW()-2)),\"\")","v":{"$error":"#N/A"}},{"$f":"IF(INDIRECT(\"c\" & (VLOOKUP(Rebalance!$D$62,$F$2:$G$48,2,FALSE)+ROW()-2))=Rebalance!$D$62,INDIRECT(\"a\" & (VLOOKUP(Rebalance!$D$62,$F$2:$G$48,2,FALSE)+ROW()-2)),\"\")","v":{"$error":"#N/A"}},{"$f":"IF(INDIRECT(\"c\" & (VLOOKUP(Rebalance!$D$63,$F$2:$G$48,2,FALSE)+ROW()-2))=Rebalance!$D$63,INDIRECT(\"a\" & (VLOOKUP(Rebalance!$D$63,$F$2:$G$48,2,FALSE)+ROW()-2)),\"\")","v":{"$error":"#N/A"}},{"$f":"IF(INDIRECT(\"c\" & (VLOOKUP(Rebalance!$D$64,$F$2:$G$48,2,FALSE)+ROW()-2))=Rebalance!$D$64,INDIRECT(\"a\" & (VLOOKUP(Rebalance!$D$64,$F$2:$G$48,2,FALSE)+ROW()-2)),\"\")","v":{"$error":"#N/A"}},{"$f":"IF(INDIRECT(\"c\" & (VLOOKUP(Rebalance!$D$65,$F$2:$G$48,2,FALSE)+ROW()-2))=Rebalance!$D$65,INDIRECT(\"a\" & (VLOOKUP(Rebalance!$D$65,$F$2:$G$48,2,FALSE)+ROW()-2)),\"\")","v":{"$error":"#N/A"}},{"$f":"IF(INDIRECT(\"c\" & (VLOOKUP(Rebalance!$D$66,$F$2:$G$48,2,FALSE)+ROW()-2))=Rebalance!$D$66,INDIRECT(\"a\" & (VLOOKUP(Rebalance!$D$66,$F$2:$G$48,2,FALSE)+ROW()-2)),\"\")","v":{"$error":"#N/A"}}]
["Sasfin BCI Prudential Fund C","SBEFA","Boutique Collective Investments (Pty) Ltd",{"$f":"ROW()","v":174},null,null,{"$f":"VLOOKUP(F174,$C$2:$D$599,2,FALSE)","v":{"$error":"#N/A"}},{"$f":"IF(INDIRECT(\"c\" & (VLOOKUP(Rebalance!$D$26,$F$2:$G$48,2,FALSE)+ROW()-2))=Rebalance!$D$26,INDIRECT(\"a\" & (VLOOKUP(Rebalance!$D$26,$F$2:$G$48,2,FALSE)+ROW()-2)),\"\")","v":{"$error":"#N/A"}},{"$f":"IF(INDIRECT(\"c\" & (VLOOKUP(Rebalance!$D$27,$F$2:$G$48,2,FALSE)+ROW()-2))=Rebalance!$D$27,INDIRECT(\"a\" & (VLOOKUP(Rebalance!$D$27,$F$2:$G$48,2,FALSE)+ROW()-2)),\"\")","v":{"$error":"#N/A"}},{"$f":"IF(INDIRECT(\"c\" & (VLOOKUP(Rebalance!$D$28,$F$2:$G$48,2,FALSE)+ROW()-2))=Rebalance!$D$28,INDIRECT(\"a\" & (VLOOKUP(Rebalance!$D$28,$F$2:$G$48,2,FALSE)+ROW()-2)),\"\")","v":{"$error":"#N/A"}},{"$f":"IF(INDIRECT(\"c\" & (VLOOKUP(Rebalance!$D$29,$F$2:$G$48,2,FALSE)+ROW()-2))=Rebalance!$D$29,INDIRECT(\"a\" & (VLOOKUP(Rebalance!$D$29,$F$2:$G$48,2,FALSE)+ROW()-2)),\"\")","v":{"$error":"#N/A"}},{"$f":"IF(INDIRECT(\"c\" & (VLOOKUP(Rebalance!$D$30,$F$2:$G$48,2,FALSE)+ROW()-2))=Rebalance!$D$30,INDIRECT(\"a\" & (VLOOKUP(Rebalance!$D$30,$F$2:$G$48,2,FALSE)+ROW()-2)),\"\")","v":{"$error":"#N/A"}},{"$f":"IF(INDIRECT(\"c\" & (VLOOKUP(Rebalance!$D$31,$F$2:$G$48,2,FALSE)+ROW()-2))=Rebalance!$D$31,INDIRECT(\"a\" & (VLOOKUP(Rebalance!$D$31,$F$2:$G$48,2,FALSE)+ROW()-2)),\"\")","v":{"$error":"#N/A"}},{"$f":"IF(INDIRECT(\"c\" & (VLOOKUP(Rebalance!$D$32,$F$2:$G$48,2,FALSE)+ROW()-2))=Rebalance!$D$32,INDIRECT(\"a\" & (VLOOKUP(Rebalance!$D$32,$F$2:$G$48,2,FALSE)+ROW()-2)),\"\")","v":{"$error":"#N/A"}},{"$f":"IF(INDIRECT(\"c\" & (VLOOKUP(Rebalance!$D$33,$F$2:$G$48,2,FALSE)+ROW()-2))=Rebalance!$D$33,INDIRECT(\"a\" & (VLOOKUP(Rebalance!$D$33,$F$2:$G$48,2,FALSE)+ROW()-2)),\"\")","v":{"$error":"#N/A"}},{"$f":"IF(INDIRECT(\"c\" & (VLOOKUP(Rebalance!$D$34,$F$2:$G$48,2,FALSE)+ROW()-2))=Rebalance!$D$34,INDIRECT(\"a\" & (VLOOKUP(Rebalance!$D$34,$F$2:$G$48,2,FALSE)+ROW()-2)),\"\")","v":{"$error":"#N/A"}},{"$f":"IF(INDIRECT(\"c\" & (VLOOKUP(Rebalance!$D$35,$F$2:$G$48,2,FALSE)+ROW()-2))=Rebalance!$D$35,INDIRECT(\"a\" & (VLOOKUP(Rebalance!$D$35,$F$2:$G$48,2,FALSE)+ROW()-2)),\"\")","v":{"$error":"#N/A"}},{"$f":"IF(INDIRECT(\"c\" & (VLOOKUP(Rebalance!$D$36,$F$2:$G$48,2,FALSE)+ROW()-2))=Rebalance!$D$36,INDIRECT(\"a\" & (VLOOKUP(Rebalance!$D$36,$F$2:$G$48,2,FALSE)+ROW()-2)),\"\")","v":{"$error":"#N/A"}},{"$f":"IF(INDIRECT(\"c\" & (VLOOKUP(Rebalance!$D$37,$F$2:$G$48,2,FALSE)+ROW()-2))=Rebalance!$D$37,INDIRECT(\"a\" & (VLOOKUP(Rebalance!$D$37,$F$2:$G$48,2,FALSE)+ROW()-2)),\"\")","v":{"$error":"#N/A"}},{"$f":"IF(INDIRECT(\"c\" & (VLOOKUP(Rebalance!$D$38,$F$2:$G$48,2,FALSE)+ROW()-2))=Rebalance!$D$38,INDIRECT(\"a\" & (VLOOKUP(Rebalance!$D$38,$F$2:$G$48,2,FALSE)+ROW()-2)),\"\")","v":{"$error":"#N/A"}},{"$f":"IF(INDIRECT(\"c\" & (VLOOKUP(Rebalance!$D$39,$F$2:$G$48,2,FALSE)+ROW()-2))=Rebalance!$D$39,INDIRECT(\"a\" & (VLOOKUP(Rebalance!$D$39,$F$2:$G$48,2,FALSE)+ROW()-2)),\"\")","v":{"$error":"#N/A"}},{"$f":"IF(INDIRECT(\"c\" & (VLOOKUP(Rebalance!$D$40,$F$2:$G$48,2,FALSE)+ROW()-2))=Rebalance!$D$40,INDIRECT(\"a\" & (VLOOKUP(Rebalance!$D$40,$F$2:$G$48,2,FALSE)+ROW()-2)),\"\")","v":{"$error":"#N/A"}},{"$f":"IF(INDIRECT(\"c\" & (VLOOKUP(Rebalance!$D$52,$F$2:$G$48,2,FALSE)+ROW()-2))=Rebalance!$D$52,INDIRECT(\"a\" & (VLOOKUP(Rebalance!$D$52,$F$2:$G$48,2,FALSE)+ROW()-2)),\"\")","v":{"$error":"#N/A"}},{"$f":"IF(INDIRECT(\"c\" & (VLOOKUP(Rebalance!$D$53,$F$2:$G$48,2,FALSE)+ROW()-2))=Rebalance!$D$53,INDIRECT(\"a\" & (VLOOKUP(Rebalance!$D$53,$F$2:$G$48,2,FALSE)+ROW()-2)),\"\")","v":{"$error":"#N/A"}},{"$f":"IF(INDIRECT(\"c\" & (VLOOKUP(Rebalance!$D$54,$F$2:$G$48,2,FALSE)+ROW()-2))=Rebalance!$D$54,INDIRECT(\"a\" & (VLOOKUP(Rebalance!$D$54,$F$2:$G$48,2,FALSE)+ROW()-2)),\"\")","v":{"$error":"#N/A"}},{"$f":"IF(INDIRECT(\"c\" & (VLOOKUP(Rebalance!$D$55,$F$2:$G$48,2,FALSE)+ROW()-2))=Rebalance!$D$55,INDIRECT(\"a\" & (VLOOKUP(Rebalance!$D$55,$F$2:$G$48,2,FALSE)+ROW()-2)),\"\")","v":{"$error":"#N/A"}},{"$f":"IF(INDIRECT(\"c\" & (VLOOKUP(Rebalance!$D$56,$F$2:$G$48,2,FALSE)+ROW()-2))=Rebalance!$D$56,INDIRECT(\"a\" & (VLOOKUP(Rebalance!$D$56,$F$2:$G$48,2,FALSE)+ROW()-2)),\"\")","v":{"$error":"#N/A"}},{"$f":"IF(INDIRECT(\"c\" & (VLOOKUP(Rebalance!$D$57,$F$2:$G$48,2,FALSE)+ROW()-2))=Rebalance!$D$57,INDIRECT(\"a\" & (VLOOKUP(Rebalance!$D$57,$F$2:$G$48,2,FALSE)+ROW()-2)),\"\")","v":{"$error":"#N/A"}},{"$f":"IF(INDIRECT(\"c\" & (VLOOKUP(Rebalance!$D$58,$F$2:$G$48,2,FALSE)+ROW()-2))=Rebalance!$D$58,INDIRECT(\"a\" & (VLOOKUP(Rebalance!$D$58,$F$2:$G$48,2,FALSE)+ROW()-2)),\"\")","v":{"$error":"#N/A"}},{"$f":"IF(INDIRECT(\"c\" & (VLOOKUP(Rebalance!$D$59,$F$2:$G$48,2,FALSE)+ROW()-2))=Rebalance!$D$59,INDIRECT(\"a\" & (VLOOKUP(Rebalance!$D$59,$F$2:$G$48,2,FALSE)+ROW()-2)),\"\")","v":{"$error":"#N/A"}},{"$f":"IF(INDIRECT(\"c\" & (VLOOKUP(Rebalance!$D$60,$F$2:$G$48,2,FALSE)+ROW()-2))=Rebalance!$D$60,INDIRECT(\"a\" & (VLOOKUP(Rebalance!$D$60,$F$2:$G$48,2,FALSE)+ROW()-2)),\"\")","v":{"$error":"#N/A"}},{"$f":"IF(INDIRECT(\"c\" & (VLOOKUP(Rebalance!$D$61,$F$2:$G$48,2,FALSE)+ROW()-2))=Rebalance!$D$61,INDIRECT(\"a\" & (VLOOKUP(Rebalance!$D$61,$F$2:$G$48,2,FALSE)+ROW()-2)),\"\")","v":{"$error":"#N/A"}},{"$f":"IF(INDIRECT(\"c\" & (VLOOKUP(Rebalance!$D$62,$F$2:$G$48,2,FALSE)+ROW()-2))=Rebalance!$D$62,INDIRECT(\"a\" & (VLOOKUP(Rebalance!$D$62,$F$2:$G$48,2,FALSE)+ROW()-2)),\"\")","v":{"$error":"#N/A"}},{"$f":"IF(INDIRECT(\"c\" & (VLOOKUP(Rebalance!$D$63,$F$2:$G$48,2,FALSE)+ROW()-2))=Rebalance!$D$63,INDIRECT(\"a\" & (VLOOKUP(Rebalance!$D$63,$F$2:$G$48,2,FALSE)+ROW()-2)),\"\")","v":{"$error":"#N/A"}},{"$f":"IF(INDIRECT(\"c\" & (VLOOKUP(Rebalance!$D$64,$F$2:$G$48,2,FALSE)+ROW()-2))=Rebalance!$D$64,INDIRECT(\"a\" & (VLOOKUP(Rebalance!$D$64,$F$2:$G$48,2,FALSE)+ROW()-2)),\"\")","v":{"$error":"#N/A"}},{"$f":"IF(INDIRECT(\"c\" & (VLOOKUP(Rebalance!$D$65,$F$2:$G$48,2,FALSE)+ROW()-2))=Rebalance!$D$65,INDIRECT(\"a\" & (VLOOKUP(Rebalance!$D$65,$F$2:$G$48,2,FALSE)+ROW()-2)),\"\")","v":{"$error":"#N/A"}},{"$f":"IF(INDIRECT(\"c\" & (VLOOKUP(Rebalance!$D$66,$F$2:$G$48,2,FALSE)+ROW()-2))=Rebalance!$D$66,INDIRECT(\"a\" & (VLOOKUP(Rebalance!$D$66,$F$2:$G$48,2,FALSE)+ROW()-2)),\"\")","v":{"$error":"#N/A"}}]
["Sasfin BCI Optimal Income C","IBOFC","Boutique Collective Investments (Pty) Ltd",{"$f":"ROW()","v":175},null,null,{"$f":"VLOOKUP(F175,$C$2:$D$599,2,FALSE)","v":{"$error":"#N/A"}},{"$f":"IF(INDIRECT(\"c\" & (VLOOKUP(Rebalance!$D$26,$F$2:$G$48,2,FALSE)+ROW()-2))=Rebalance!$D$26,INDIRECT(\"a\" & (VLOOKUP(Rebalance!$D$26,$F$2:$G$48,2,FALSE)+ROW()-2)),\"\")","v":{"$error":"#N/A"}},{"$f":"IF(INDIRECT(\"c\" & (VLOOKUP(Rebalance!$D$27,$F$2:$G$48,2,FALSE)+ROW()-2))=Rebalance!$D$27,INDIRECT(\"a\" & (VLOOKUP(Rebalance!$D$27,$F$2:$G$48,2,FALSE)+ROW()-2)),\"\")","v":{"$error":"#N/A"}},{"$f":"IF(INDIRECT(\"c\" & (VLOOKUP(Rebalance!$D$28,$F$2:$G$48,2,FALSE)+ROW()-2))=Rebalance!$D$28,INDIRECT(\"a\" & (VLOOKUP(Rebalance!$D$28,$F$2:$G$48,2,FALSE)+ROW()-2)),\"\")","v":{"$error":"#N/A"}},{"$f":"IF(INDIRECT(\"c\" & (VLOOKUP(Rebalance!$D$29,$F$2:$G$48,2,FALSE)+ROW()-2))=Rebalance!$D$29,INDIRECT(\"a\" & (VLOOKUP(Rebalance!$D$29,$F$2:$G$48,2,FALSE)+ROW()-2)),\"\")","v":{"$error":"#N/A"}},{"$f":"IF(INDIRECT(\"c\" & (VLOOKUP(Rebalance!$D$30,$F$2:$G$48,2,FALSE)+ROW()-2))=Rebalance!$D$30,INDIRECT(\"a\" & (VLOOKUP(Rebalance!$D$30,$F$2:$G$48,2,FALSE)+ROW()-2)),\"\")","v":{"$error":"#N/A"}},{"$f":"IF(INDIRECT(\"c\" & (VLOOKUP(Rebalance!$D$31,$F$2:$G$48,2,FALSE)+ROW()-2))=Rebalance!$D$31,INDIRECT(\"a\" & (VLOOKUP(Rebalance!$D$31,$F$2:$G$48,2,FALSE)+ROW()-2)),\"\")","v":{"$error":"#N/A"}},{"$f":"IF(INDIRECT(\"c\" & (VLOOKUP(Rebalance!$D$32,$F$2:$G$48,2,FALSE)+ROW()-2))=Rebalance!$D$32,INDIRECT(\"a\" & (VLOOKUP(Rebalance!$D$32,$F$2:$G$48,2,FALSE)+ROW()-2)),\"\")","v":{"$error":"#N/A"}},{"$f":"IF(INDIRECT(\"c\" & (VLOOKUP(Rebalance!$D$33,$F$2:$G$48,2,FALSE)+ROW()-2))=Rebalance!$D$33,INDIRECT(\"a\" & (VLOOKUP(Rebalance!$D$33,$F$2:$G$48,2,FALSE)+ROW()-2)),\"\")","v":{"$error":"#N/A"}},{"$f":"IF(INDIRECT(\"c\" & (VLOOKUP(Rebalance!$D$34,$F$2:$G$48,2,FALSE)+ROW()-2))=Rebalance!$D$34,INDIRECT(\"a\" & (VLOOKUP(Rebalance!$D$34,$F$2:$G$48,2,FALSE)+ROW()-2)),\"\")","v":{"$error":"#N/A"}},{"$f":"IF(INDIRECT(\"c\" & (VLOOKUP(Rebalance!$D$35,$F$2:$G$48,2,FALSE)+ROW()-2))=Rebalance!$D$35,INDIRECT(\"a\" & (VLOOKUP(Rebalance!$D$35,$F$2:$G$48,2,FALSE)+ROW()-2)),\"\")","v":{"$error":"#N/A"}},{"$f":"IF(INDIRECT(\"c\" & (VLOOKUP(Rebalance!$D$36,$F$2:$G$48,2,FALSE)+ROW()-2))=Rebalance!$D$36,INDIRECT(\"a\" & (VLOOKUP(Rebalance!$D$36,$F$2:$G$48,2,FALSE)+ROW()-2)),\"\")","v":{"$error":"#N/A"}},{"$f":"IF(INDIRECT(\"c\" & (VLOOKUP(Rebalance!$D$37,$F$2:$G$48,2,FALSE)+ROW()-2))=Rebalance!$D$37,INDIRECT(\"a\" & (VLOOKUP(Rebalance!$D$37,$F$2:$G$48,2,FALSE)+ROW()-2)),\"\")","v":{"$error":"#N/A"}},{"$f":"IF(INDIRECT(\"c\" & (VLOOKUP(Rebalance!$D$38,$F$2:$G$48,2,FALSE)+ROW()-2))=Rebalance!$D$38,INDIRECT(\"a\" & (VLOOKUP(Rebalance!$D$38,$F$2:$G$48,2,FALSE)+ROW()-2)),\"\")","v":{"$error":"#N/A"}},{"$f":"IF(INDIRECT(\"c\" & (VLOOKUP(Rebalance!$D$39,$F$2:$G$48,2,FALSE)+ROW()-2))=Rebalance!$D$39,INDIRECT(\"a\" & (VLOOKUP(Rebalance!$D$39,$F$2:$G$48,2,FALSE)+ROW()-2)),\"\")","v":{"$error":"#N/A"}},{"$f":"IF(INDIRECT(\"c\" & (VLOOKUP(Rebalance!$D$40,$F$2:$G$48,2,FALSE)+ROW()-2))=Rebalance!$D$40,INDIRECT(\"a\" & (VLOOKUP(Rebalance!$D$40,$F$2:$G$48,2,FALSE)+ROW()-2)),\"\")","v":{"$error":"#N/A"}},{"$f":"IF(INDIRECT(\"c\" & (VLOOKUP(Rebalance!$D$52,$F$2:$G$48,2,FALSE)+ROW()-2))=Rebalance!$D$52,INDIRECT(\"a\" & (VLOOKUP(Rebalance!$D$52,$F$2:$G$48,2,FALSE)+ROW()-2)),\"\")","v":{"$error":"#N/A"}},{"$f":"IF(INDIRECT(\"c\" & (VLOOKUP(Rebalance!$D$53,$F$2:$G$48,2,FALSE)+ROW()-2))=Rebalance!$D$53,INDIRECT(\"a\" & (VLOOKUP(Rebalance!$D$53,$F$2:$G$48,2,FALSE)+ROW()-2)),\"\")","v":{"$error":"#N/A"}},{"$f":"IF(INDIRECT(\"c\" & (VLOOKUP(Rebalance!$D$54,$F$2:$G$48,2,FALSE)+ROW()-2))=Rebalance!$D$54,INDIRECT(\"a\" & (VLOOKUP(Rebalance!$D$54,$F$2:$G$48,2,FALSE)+ROW()-2)),\"\")","v":{"$error":"#N/A"}},{"$f":"IF(INDIRECT(\"c\" & (VLOOKUP(Rebalance!$D$55,$F$2:$G$48,2,FALSE)+ROW()-2))=Rebalance!$D$55,INDIRECT(\"a\" & (VLOOKUP(Rebalance!$D$55,$F$2:$G$48,2,FALSE)+ROW()-2)),\"\")","v":{"$error":"#N/A"}},{"$f":"IF(INDIRECT(\"c\" & (VLOOKUP(Rebalance!$D$56,$F$2:$G$48,2,FALSE)+ROW()-2))=Rebalance!$D$56,INDIRECT(\"a\" & (VLOOKUP(Rebalance!$D$56,$F$2:$G$48,2,FALSE)+ROW()-2)),\"\")","v":{"$error":"#N/A"}},{"$f":"IF(INDIRECT(\"c\" & (VLOOKUP(Rebalance!$D$57,$F$2:$G$48,2,FALSE)+ROW()-2))=Rebalance!$D$57,INDIRECT(\"a\" & (VLOOKUP(Rebalance!$D$57,$F$2:$G$48,2,FALSE)+ROW()-2)),\"\")","v":{"$error":"#N/A"}},{"$f":"IF(INDIRECT(\"c\" & (VLOOKUP(Rebalance!$D$58,$F$2:$G$48,2,FALSE)+ROW()-2))=Rebalance!$D$58,INDIRECT(\"a\" & (VLOOKUP(Rebalance!$D$58,$F$2:$G$48,2,FALSE)+ROW()-2)),\"\")","v":{"$error":"#N/A"}},{"$f":"IF(INDIRECT(\"c\" & (VLOOKUP(Rebalance!$D$59,$F$2:$G$48,2,FALSE)+ROW()-2))=Rebalance!$D$59,INDIRECT(\"a\" & (VLOOKUP(Rebalance!$D$59,$F$2:$G$48,2,FALSE)+ROW()-2)),\"\")","v":{"$error":"#N/A"}},{"$f":"IF(INDIRECT(\"c\" & (VLOOKUP(Rebalance!$D$60,$F$2:$G$48,2,FALSE)+ROW()-2))=Rebalance!$D$60,INDIRECT(\"a\" & (VLOOKUP(Rebalance!$D$60,$F$2:$G$48,2,FALSE)+ROW()-2)),\"\")","v":{"$error":"#N/A"}},{"$f":"IF(INDIRECT(\"c\" & (VLOOKUP(Rebalance!$D$61,$F$2:$G$48,2,FALSE)+ROW()-2))=Rebalance!$D$61,INDIRECT(\"a\" & (VLOOKUP(Rebalance!$D$61,$F$2:$G$48,2,FALSE)+ROW()-2)),\"\")","v":{"$error":"#N/A"}},{"$f":"IF(INDIRECT(\"c\" & (VLOOKUP(Rebalance!$D$62,$F$2:$G$48,2,FALSE)+ROW()-2))=Rebalance!$D$62,INDIRECT(\"a\" & (VLOOKUP(Rebalance!$D$62,$F$2:$G$48,2,FALSE)+ROW()-2)),\"\")","v":{"$error":"#N/A"}},{"$f":"IF(INDIRECT(\"c\" & (VLOOKUP(Rebalance!$D$63,$F$2:$G$48,2,FALSE)+ROW()-2))=Rebalance!$D$63,INDIRECT(\"a\" & (VLOOKUP(Rebalance!$D$63,$F$2:$G$48,2,FALSE)+ROW()-2)),\"\")","v":{"$error":"#N/A"}},{"$f":"IF(INDIRECT(\"c\" & (VLOOKUP(Rebalance!$D$64,$F$2:$G$48,2,FALSE)+ROW()-2))=Rebalance!$D$64,INDIRECT(\"a\" & (VLOOKUP(Rebalance!$D$64,$F$2:$G$48,2,FALSE)+ROW()-2)),\"\")","v":{"$error":"#N/A"}},{"$f":"IF(INDIRECT(\"c\" & (VLOOKUP(Rebalance!$D$65,$F$2:$G$48,2,FALSE)+ROW()-2))=Rebalance!$D$65,INDIRECT(\"a\" & (VLOOKUP(Rebalance!$D$65,$F$2:$G$48,2,FALSE)+ROW()-2)),\"\")","v":{"$error":"#N/A"}},{"$f":"IF(INDIRECT(\"c\" & (VLOOKUP(Rebalance!$D$66,$F$2:$G$48,2,FALSE)+ROW()-2))=Rebalance!$D$66,INDIRECT(\"a\" & (VLOOKUP(Rebalance!$D$66,$F$2:$G$48,2,FALSE)+ROW()-2)),\"\")","v":{"$error":"#N/A"}}]
["SBRO BCI Balanced FoF A","SBRB","Boutique Collective Investments (Pty) Ltd",{"$f":"ROW()","v":176},null,null,{"$f":"VLOOKUP(F176,$C$2:$D$599,2,FALSE)","v":{"$error":"#N/A"}},{"$f":"IF(INDIRECT(\"c\" & (VLOOKUP(Rebalance!$D$26,$F$2:$G$48,2,FALSE)+ROW()-2))=Rebalance!$D$26,INDIRECT(\"a\" & (VLOOKUP(Rebalance!$D$26,$F$2:$G$48,2,FALSE)+ROW()-2)),\"\")","v":{"$error":"#N/A"}},{"$f":"IF(INDIRECT(\"c\" & (VLOOKUP(Rebalance!$D$27,$F$2:$G$48,2,FALSE)+ROW()-2))=Rebalance!$D$27,INDIRECT(\"a\" & (VLOOKUP(Rebalance!$D$27,$F$2:$G$48,2,FALSE)+ROW()-2)),\"\")","v":{"$error":"#N/A"}},{"$f":"IF(INDIRECT(\"c\" & (VLOOKUP(Rebalance!$D$28,$F$2:$G$48,2,FALSE)+ROW()-2))=Rebalance!$D$28,INDIRECT(\"a\" & (VLOOKUP(Rebalance!$D$28,$F$2:$G$48,2,FALSE)+ROW()-2)),\"\")","v":{"$error":"#N/A"}},{"$f":"IF(INDIRECT(\"c\" & (VLOOKUP(Rebalance!$D$29,$F$2:$G$48,2,FALSE)+ROW()-2))=Rebalance!$D$29,INDIRECT(\"a\" & (VLOOKUP(Rebalance!$D$29,$F$2:$G$48,2,FALSE)+ROW()-2)),\"\")","v":{"$error":"#N/A"}},{"$f":"IF(INDIRECT(\"c\" & (VLOOKUP(Rebalance!$D$30,$F$2:$G$48,2,FALSE)+ROW()-2))=Rebalance!$D$30,INDIRECT(\"a\" & (VLOOKUP(Rebalance!$D$30,$F$2:$G$48,2,FALSE)+ROW()-2)),\"\")","v":{"$error":"#N/A"}},{"$f":"IF(INDIRECT(\"c\" & (VLOOKUP(Rebalance!$D$31,$F$2:$G$48,2,FALSE)+ROW()-2))=Rebalance!$D$31,INDIRECT(\"a\" & (VLOOKUP(Rebalance!$D$31,$F$2:$G$48,2,FALSE)+ROW()-2)),\"\")","v":{"$error":"#N/A"}},{"$f":"IF(INDIRECT(\"c\" & (VLOOKUP(Rebalance!$D$32,$F$2:$G$48,2,FALSE)+ROW()-2))=Rebalance!$D$32,INDIRECT(\"a\" & (VLOOKUP(Rebalance!$D$32,$F$2:$G$48,2,FALSE)+ROW()-2)),\"\")","v":{"$error":"#N/A"}},{"$f":"IF(INDIRECT(\"c\" & (VLOOKUP(Rebalance!$D$33,$F$2:$G$48,2,FALSE)+ROW()-2))=Rebalance!$D$33,INDIRECT(\"a\" & (VLOOKUP(Rebalance!$D$33,$F$2:$G$48,2,FALSE)+ROW()-2)),\"\")","v":{"$error":"#N/A"}},{"$f":"IF(INDIRECT(\"c\" & (VLOOKUP(Rebalance!$D$34,$F$2:$G$48,2,FALSE)+ROW()-2))=Rebalance!$D$34,INDIRECT(\"a\" & (VLOOKUP(Rebalance!$D$34,$F$2:$G$48,2,FALSE)+ROW()-2)),\"\")","v":{"$error":"#N/A"}},{"$f":"IF(INDIRECT(\"c\" & (VLOOKUP(Rebalance!$D$35,$F$2:$G$48,2,FALSE)+ROW()-2))=Rebalance!$D$35,INDIRECT(\"a\" & (VLOOKUP(Rebalance!$D$35,$F$2:$G$48,2,FALSE)+ROW()-2)),\"\")","v":{"$error":"#N/A"}},{"$f":"IF(INDIRECT(\"c\" & (VLOOKUP(Rebalance!$D$36,$F$2:$G$48,2,FALSE)+ROW()-2))=Rebalance!$D$36,INDIRECT(\"a\" & (VLOOKUP(Rebalance!$D$36,$F$2:$G$48,2,FALSE)+ROW()-2)),\"\")","v":{"$error":"#N/A"}},{"$f":"IF(INDIRECT(\"c\" & (VLOOKUP(Rebalance!$D$37,$F$2:$G$48,2,FALSE)+ROW()-2))=Rebalance!$D$37,INDIRECT(\"a\" & (VLOOKUP(Rebalance!$D$37,$F$2:$G$48,2,FALSE)+ROW()-2)),\"\")","v":{"$error":"#N/A"}},{"$f":"IF(INDIRECT(\"c\" & (VLOOKUP(Rebalance!$D$38,$F$2:$G$48,2,FALSE)+ROW()-2))=Rebalance!$D$38,INDIRECT(\"a\" & (VLOOKUP(Rebalance!$D$38,$F$2:$G$48,2,FALSE)+ROW()-2)),\"\")","v":{"$error":"#N/A"}},{"$f":"IF(INDIRECT(\"c\" & (VLOOKUP(Rebalance!$D$39,$F$2:$G$48,2,FALSE)+ROW()-2))=Rebalance!$D$39,INDIRECT(\"a\" & (VLOOKUP(Rebalance!$D$39,$F$2:$G$48,2,FALSE)+ROW()-2)),\"\")","v":{"$error":"#N/A"}},{"$f":"IF(INDIRECT(\"c\" & (VLOOKUP(Rebalance!$D$40,$F$2:$G$48,2,FALSE)+ROW()-2))=Rebalance!$D$40,INDIRECT(\"a\" & (VLOOKUP(Rebalance!$D$40,$F$2:$G$48,2,FALSE)+ROW()-2)),\"\")","v":{"$error":"#N/A"}},{"$f":"IF(INDIRECT(\"c\" & (VLOOKUP(Rebalance!$D$52,$F$2:$G$48,2,FALSE)+ROW()-2))=Rebalance!$D$52,INDIRECT(\"a\" & (VLOOKUP(Rebalance!$D$52,$F$2:$G$48,2,FALSE)+ROW()-2)),\"\")","v":{"$error":"#N/A"}},{"$f":"IF(INDIRECT(\"c\" & (VLOOKUP(Rebalance!$D$53,$F$2:$G$48,2,FALSE)+ROW()-2))=Rebalance!$D$53,INDIRECT(\"a\" & (VLOOKUP(Rebalance!$D$53,$F$2:$G$48,2,FALSE)+ROW()-2)),\"\")","v":{"$error":"#N/A"}},{"$f":"IF(INDIRECT(\"c\" & (VLOOKUP(Rebalance!$D$54,$F$2:$G$48,2,FALSE)+ROW()-2))=Rebalance!$D$54,INDIRECT(\"a\" & (VLOOKUP(Rebalance!$D$54,$F$2:$G$48,2,FALSE)+ROW()-2)),\"\")","v":{"$error":"#N/A"}},{"$f":"IF(INDIRECT(\"c\" & (VLOOKUP(Rebalance!$D$55,$F$2:$G$48,2,FALSE)+ROW()-2))=Rebalance!$D$55,INDIRECT(\"a\" & (VLOOKUP(Rebalance!$D$55,$F$2:$G$48,2,FALSE)+ROW()-2)),\"\")","v":{"$error":"#N/A"}},{"$f":"IF(INDIRECT(\"c\" & (VLOOKUP(Rebalance!$D$56,$F$2:$G$48,2,FALSE)+ROW()-2))=Rebalance!$D$56,INDIRECT(\"a\" & (VLOOKUP(Rebalance!$D$56,$F$2:$G$48,2,FALSE)+ROW()-2)),\"\")","v":{"$error":"#N/A"}},{"$f":"IF(INDIRECT(\"c\" & (VLOOKUP(Rebalance!$D$57,$F$2:$G$48,2,FALSE)+ROW()-2))=Rebalance!$D$57,INDIRECT(\"a\" & (VLOOKUP(Rebalance!$D$57,$F$2:$G$48,2,FALSE)+ROW()-2)),\"\")","v":{"$error":"#N/A"}},{"$f":"IF(INDIRECT(\"c\" & (VLOOKUP(Rebalance!$D$58,$F$2:$G$48,2,FALSE)+ROW()-2))=Rebalance!$D$58,INDIRECT(\"a\" & (VLOOKUP(Rebalance!$D$58,$F$2:$G$48,2,FALSE)+ROW()-2)),\"\")","v":{"$error":"#N/A"}},{"$f":"IF(INDIRECT(\"c\" & (VLOOKUP(Rebalance!$D$59,$F$2:$G$48,2,FALSE)+ROW()-2))=Rebalance!$D$59,INDIRECT(\"a\" & (VLOOKUP(Rebalance!$D$59,$F$2:$G$48,2,FALSE)+ROW()-2)),\"\")","v":{"$error":"#N/A"}},{"$f":"IF(INDIRECT(\"c\" & (VLOOKUP(Rebalance!$D$60,$F$2:$G$48,2,FALSE)+ROW()-2))=Rebalance!$D$60,INDIRECT(\"a\" & (VLOOKUP(Rebalance!$D$60,$F$2:$G$48,2,FALSE)+ROW()-2)),\"\")","v":{"$error":"#N/A"}},{"$f":"IF(INDIRECT(\"c\" & (VLOOKUP(Rebalance!$D$61,$F$2:$G$48,2,FALSE)+ROW()-2))=Rebalance!$D$61,INDIRECT(\"a\" & (VLOOKUP(Rebalance!$D$61,$F$2:$G$48,2,FALSE)+ROW()-2)),\"\")","v":{"$error":"#N/A"}},{"$f":"IF(INDIRECT(\"c\" & (VLOOKUP(Rebalance!$D$62,$F$2:$G$48,2,FALSE)+ROW()-2))=Rebalance!$D$62,INDIRECT(\"a\" & (VLOOKUP(Rebalance!$D$62,$F$2:$G$48,2,FALSE)+ROW()-2)),\"\")","v":{"$error":"#N/A"}},{"$f":"IF(INDIRECT(\"c\" & (VLOOKUP(Rebalance!$D$63,$F$2:$G$48,2,FALSE)+ROW()-2))=Rebalance!$D$63,INDIRECT(\"a\" & (VLOOKUP(Rebalance!$D$63,$F$2:$G$48,2,FALSE)+ROW()-2)),\"\")","v":{"$error":"#N/A"}},{"$f":"IF(INDIRECT(\"c\" & (VLOOKUP(Rebalance!$D$64,$F$2:$G$48,2,FALSE)+ROW()-2))=Rebalance!$D$64,INDIRECT(\"a\" & (VLOOKUP(Rebalance!$D$64,$F$2:$G$48,2,FALSE)+ROW()-2)),\"\")","v":{"$error":"#N/A"}},{"$f":"IF(INDIRECT(\"c\" & (VLOOKUP(Rebalance!$D$65,$F$2:$G$48,2,FALSE)+ROW()-2))=Rebalance!$D$65,INDIRECT(\"a\" & (VLOOKUP(Rebalance!$D$65,$F$2:$G$48,2,FALSE)+ROW()-2)),\"\")","v":{"$error":"#N/A"}},{"$f":"IF(INDIRECT(\"c\" & (VLOOKUP(Rebalance!$D$66,$F$2:$G$48,2,FALSE)+ROW()-2))=Rebalance!$D$66,INDIRECT(\"a\" & (VLOOKUP(Rebalance!$D$66,$F$2:$G$48,2,FALSE)+ROW()-2)),\"\")","v":{"$error":"#N/A"}}]
["SBRO BCI Defensive FoF A","SBRD","Boutique Collective Investments (Pty) Ltd",{"$f":"ROW()","v":177},null,null,{"$f":"VLOOKUP(F177,$C$2:$D$599,2,FALSE)","v":{"$error":"#N/A"}},{"$f":"IF(INDIRECT(\"c\" & (VLOOKUP(Rebalance!$D$26,$F$2:$G$48,2,FALSE)+ROW()-2))=Rebalance!$D$26,INDIRECT(\"a\" & (VLOOKUP(Rebalance!$D$26,$F$2:$G$48,2,FALSE)+ROW()-2)),\"\")","v":{"$error":"#N/A"}},{"$f":"IF(INDIRECT(\"c\" & (VLOOKUP(Rebalance!$D$27,$F$2:$G$48,2,FALSE)+ROW()-2))=Rebalance!$D$27,INDIRECT(\"a\" & (VLOOKUP(Rebalance!$D$27,$F$2:$G$48,2,FALSE)+ROW()-2)),\"\")","v":{"$error":"#N/A"}},{"$f":"IF(INDIRECT(\"c\" & (VLOOKUP(Rebalance!$D$28,$F$2:$G$48,2,FALSE)+ROW()-2))=Rebalance!$D$28,INDIRECT(\"a\" & (VLOOKUP(Rebalance!$D$28,$F$2:$G$48,2,FALSE)+ROW()-2)),\"\")","v":{"$error":"#N/A"}},{"$f":"IF(INDIRECT(\"c\" & (VLOOKUP(Rebalance!$D$29,$F$2:$G$48,2,FALSE)+ROW()-2))=Rebalance!$D$29,INDIRECT(\"a\" & (VLOOKUP(Rebalance!$D$29,$F$2:$G$48,2,FALSE)+ROW()-2)),\"\")","v":{"$error":"#N/A"}},{"$f":"IF(INDIRECT(\"c\" & (VLOOKUP(Rebalance!$D$30,$F$2:$G$48,2,FALSE)+ROW()-2))=Rebalance!$D$30,INDIRECT(\"a\" & (VLOOKUP(Rebalance!$D$30,$F$2:$G$48,2,FALSE)+ROW()-2)),\"\")","v":{"$error":"#N/A"}},{"$f":"IF(INDIRECT(\"c\" & (VLOOKUP(Rebalance!$D$31,$F$2:$G$48,2,FALSE)+ROW()-2))=Rebalance!$D$31,INDIRECT(\"a\" & (VLOOKUP(Rebalance!$D$31,$F$2:$G$48,2,FALSE)+ROW()-2)),\"\")","v":{"$error":"#N/A"}},{"$f":"IF(INDIRECT(\"c\" & (VLOOKUP(Rebalance!$D$32,$F$2:$G$48,2,FALSE)+ROW()-2))=Rebalance!$D$32,INDIRECT(\"a\" & (VLOOKUP(Rebalance!$D$32,$F$2:$G$48,2,FALSE)+ROW()-2)),\"\")","v":{"$error":"#N/A"}},{"$f":"IF(INDIRECT(\"c\" & (VLOOKUP(Rebalance!$D$33,$F$2:$G$48,2,FALSE)+ROW()-2))=Rebalance!$D$33,INDIRECT(\"a\" & (VLOOKUP(Rebalance!$D$33,$F$2:$G$48,2,FALSE)+ROW()-2)),\"\")","v":{"$error":"#N/A"}},{"$f":"IF(INDIRECT(\"c\" & (VLOOKUP(Rebalance!$D$34,$F$2:$G$48,2,FALSE)+ROW()-2))=Rebalance!$D$34,INDIRECT(\"a\" & (VLOOKUP(Rebalance!$D$34,$F$2:$G$48,2,FALSE)+ROW()-2)),\"\")","v":{"$error":"#N/A"}},{"$f":"IF(INDIRECT(\"c\" & (VLOOKUP(Rebalance!$D$35,$F$2:$G$48,2,FALSE)+ROW()-2))=Rebalance!$D$35,INDIRECT(\"a\" & (VLOOKUP(Rebalance!$D$35,$F$2:$G$48,2,FALSE)+ROW()-2)),\"\")","v":{"$error":"#N/A"}},{"$f":"IF(INDIRECT(\"c\" & (VLOOKUP(Rebalance!$D$36,$F$2:$G$48,2,FALSE)+ROW()-2))=Rebalance!$D$36,INDIRECT(\"a\" & (VLOOKUP(Rebalance!$D$36,$F$2:$G$48,2,FALSE)+ROW()-2)),\"\")","v":{"$error":"#N/A"}},{"$f":"IF(INDIRECT(\"c\" & (VLOOKUP(Rebalance!$D$37,$F$2:$G$48,2,FALSE)+ROW()-2))=Rebalance!$D$37,INDIRECT(\"a\" & (VLOOKUP(Rebalance!$D$37,$F$2:$G$48,2,FALSE)+ROW()-2)),\"\")","v":{"$error":"#N/A"}},{"$f":"IF(INDIRECT(\"c\" & (VLOOKUP(Rebalance!$D$38,$F$2:$G$48,2,FALSE)+ROW()-2))=Rebalance!$D$38,INDIRECT(\"a\" & (VLOOKUP(Rebalance!$D$38,$F$2:$G$48,2,FALSE)+ROW()-2)),\"\")","v":{"$error":"#N/A"}},{"$f":"IF(INDIRECT(\"c\" & (VLOOKUP(Rebalance!$D$39,$F$2:$G$48,2,FALSE)+ROW()-2))=Rebalance!$D$39,INDIRECT(\"a\" & (VLOOKUP(Rebalance!$D$39,$F$2:$G$48,2,FALSE)+ROW()-2)),\"\")","v":{"$error":"#N/A"}},{"$f":"IF(INDIRECT(\"c\" & (VLOOKUP(Rebalance!$D$40,$F$2:$G$48,2,FALSE)+ROW()-2))=Rebalance!$D$40,INDIRECT(\"a\" & (VLOOKUP(Rebalance!$D$40,$F$2:$G$48,2,FALSE)+ROW()-2)),\"\")","v":{"$error":"#N/A"}},{"$f":"IF(INDIRECT(\"c\" & (VLOOKUP(Rebalance!$D$52,$F$2:$G$48,2,FALSE)+ROW()-2))=Rebalance!$D$52,INDIRECT(\"a\" & (VLOOKUP(Rebalance!$D$52,$F$2:$G$48,2,FALSE)+ROW()-2)),\"\")","v":{"$error":"#N/A"}},{"$f":"IF(INDIRECT(\"c\" & (VLOOKUP(Rebalance!$D$53,$F$2:$G$48,2,FALSE)+ROW()-2))=Rebalance!$D$53,INDIRECT(\"a\" & (VLOOKUP(Rebalance!$D$53,$F$2:$G$48,2,FALSE)+ROW()-2)),\"\")","v":{"$error":"#N/A"}},{"$f":"IF(INDIRECT(\"c\" & (VLOOKUP(Rebalance!$D$54,$F$2:$G$48,2,FALSE)+ROW()-2))=Rebalance!$D$54,INDIRECT(\"a\" & (VLOOKUP(Rebalance!$D$54,$F$2:$G$48,2,FALSE)+ROW()-2)),\"\")","v":{"$error":"#N/A"}},{"$f":"IF(INDIRECT(\"c\" & (VLOOKUP(Rebalance!$D$55,$F$2:$G$48,2,FALSE)+ROW()-2))=Rebalance!$D$55,INDIRECT(\"a\" & (VLOOKUP(Rebalance!$D$55,$F$2:$G$48,2,FALSE)+ROW()-2)),\"\")","v":{"$error":"#N/A"}},{"$f":"IF(INDIRECT(\"c\" & (VLOOKUP(Rebalance!$D$56,$F$2:$G$48,2,FALSE)+ROW()-2))=Rebalance!$D$56,INDIRECT(\"a\" & (VLOOKUP(Rebalance!$D$56,$F$2:$G$48,2,FALSE)+ROW()-2)),\"\")","v":{"$error":"#N/A"}},{"$f":"IF(INDIRECT(\"c\" & (VLOOKUP(Rebalance!$D$57,$F$2:$G$48,2,FALSE)+ROW()-2))=Rebalance!$D$57,INDIRECT(\"a\" & (VLOOKUP(Rebalance!$D$57,$F$2:$G$48,2,FALSE)+ROW()-2)),\"\")","v":{"$error":"#N/A"}},{"$f":"IF(INDIRECT(\"c\" & (VLOOKUP(Rebalance!$D$58,$F$2:$G$48,2,FALSE)+ROW()-2))=Rebalance!$D$58,INDIRECT(\"a\" & (VLOOKUP(Rebalance!$D$58,$F$2:$G$48,2,FALSE)+ROW()-2)),\"\")","v":{"$error":"#N/A"}},{"$f":"IF(INDIRECT(\"c\" & (VLOOKUP(Rebalance!$D$59,$F$2:$G$48,2,FALSE)+ROW()-2))=Rebalance!$D$59,INDIRECT(\"a\" & (VLOOKUP(Rebalance!$D$59,$F$2:$G$48,2,FALSE)+ROW()-2)),\"\")","v":{"$error":"#N/A"}},{"$f":"IF(INDIRECT(\"c\" & (VLOOKUP(Rebalance!$D$60,$F$2:$G$48,2,FALSE)+ROW()-2))=Rebalance!$D$60,INDIRECT(\"a\" & (VLOOKUP(Rebalance!$D$60,$F$2:$G$48,2,FALSE)+ROW()-2)),\"\")","v":{"$error":"#N/A"}},{"$f":"IF(INDIRECT(\"c\" & (VLOOKUP(Rebalance!$D$61,$F$2:$G$48,2,FALSE)+ROW()-2))=Rebalance!$D$61,INDIRECT(\"a\" & (VLOOKUP(Rebalance!$D$61,$F$2:$G$48,2,FALSE)+ROW()-2)),\"\")","v":{"$error":"#N/A"}},{"$f":"IF(INDIRECT(\"c\" & (VLOOKUP(Rebalance!$D$62,$F$2:$G$48,2,FALSE)+ROW()-2))=Rebalance!$D$62,INDIRECT(\"a\" & (VLOOKUP(Rebalance!$D$62,$F$2:$G$48,2,FALSE)+ROW()-2)),\"\")","v":{"$error":"#N/A"}},{"$f":"IF(INDIRECT(\"c\" & (VLOOKUP(Rebalance!$D$63,$F$2:$G$48,2,FALSE)+ROW()-2))=Rebalance!$D$63,INDIRECT(\"a\" & (VLOOKUP(Rebalance!$D$63,$F$2:$G$48,2,FALSE)+ROW()-2)),\"\")","v":{"$error":"#N/A"}},{"$f":"IF(INDIRECT(\"c\" & (VLOOKUP(Rebalance!$D$64,$F$2:$G$48,2,FALSE)+ROW()-2))=Rebalance!$D$64,INDIRECT(\"a\" & (VLOOKUP(Rebalance!$D$64,$F$2:$G$48,2,FALSE)+ROW()-2)),\"\")","v":{"$error":"#N/A"}},{"$f":"IF(INDIRECT(\"c\" & (VLOOKUP(Rebalance!$D$65,$F$2:$G$48,2,FALSE)+ROW()-2))=Rebalance!$D$65,INDIRECT(\"a\" & (VLOOKUP(Rebalance!$D$65,$F$2:$G$48,2,FALSE)+ROW()-2)),\"\")","v":{"$error":"#N/A"}},{"$f":"IF(INDIRECT(\"c\" & (VLOOKUP(Rebalance!$D$66,$F$2:$G$48,2,FALSE)+ROW()-2))=Rebalance!$D$66,INDIRECT(\"a\" & (VLOOKUP(Rebalance!$D$66,$F$2:$G$48,2,FALSE)+ROW()-2)),\"\")","v":{"$error":"#N/A"}}]
["SBRO BCI Managed FoF A","SBMFA","Boutique Collective Investments (Pty) Ltd",{"$f":"ROW()","v":178},null,null,{"$f":"VLOOKUP(F178,$C$2:$D$599,2,FALSE)","v":{"$error":"#N/A"}},{"$f":"IF(INDIRECT(\"c\" & (VLOOKUP(Rebalance!$D$26,$F$2:$G$48,2,FALSE)+ROW()-2))=Rebalance!$D$26,INDIRECT(\"a\" & (VLOOKUP(Rebalance!$D$26,$F$2:$G$48,2,FALSE)+ROW()-2)),\"\")","v":{"$error":"#N/A"}},{"$f":"IF(INDIRECT(\"c\" & (VLOOKUP(Rebalance!$D$27,$F$2:$G$48,2,FALSE)+ROW()-2))=Rebalance!$D$27,INDIRECT(\"a\" & (VLOOKUP(Rebalance!$D$27,$F$2:$G$48,2,FALSE)+ROW()-2)),\"\")","v":{"$error":"#N/A"}},{"$f":"IF(INDIRECT(\"c\" & (VLOOKUP(Rebalance!$D$28,$F$2:$G$48,2,FALSE)+ROW()-2))=Rebalance!$D$28,INDIRECT(\"a\" & (VLOOKUP(Rebalance!$D$28,$F$2:$G$48,2,FALSE)+ROW()-2)),\"\")","v":{"$error":"#N/A"}},{"$f":"IF(INDIRECT(\"c\" & (VLOOKUP(Rebalance!$D$29,$F$2:$G$48,2,FALSE)+ROW()-2))=Rebalance!$D$29,INDIRECT(\"a\" & (VLOOKUP(Rebalance!$D$29,$F$2:$G$48,2,FALSE)+ROW()-2)),\"\")","v":{"$error":"#N/A"}},{"$f":"IF(INDIRECT(\"c\" & (VLOOKUP(Rebalance!$D$30,$F$2:$G$48,2,FALSE)+ROW()-2))=Rebalance!$D$30,INDIRECT(\"a\" & (VLOOKUP(Rebalance!$D$30,$F$2:$G$48,2,FALSE)+ROW()-2)),\"\")","v":{"$error":"#N/A"}},{"$f":"IF(INDIRECT(\"c\" & (VLOOKUP(Rebalance!$D$31,$F$2:$G$48,2,FALSE)+ROW()-2))=Rebalance!$D$31,INDIRECT(\"a\" & (VLOOKUP(Rebalance!$D$31,$F$2:$G$48,2,FALSE)+ROW()-2)),\"\")","v":{"$error":"#N/A"}},{"$f":"IF(INDIRECT(\"c\" & (VLOOKUP(Rebalance!$D$32,$F$2:$G$48,2,FALSE)+ROW()-2))=Rebalance!$D$32,INDIRECT(\"a\" & (VLOOKUP(Rebalance!$D$32,$F$2:$G$48,2,FALSE)+ROW()-2)),\"\")","v":{"$error":"#N/A"}},{"$f":"IF(INDIRECT(\"c\" & (VLOOKUP(Rebalance!$D$33,$F$2:$G$48,2,FALSE)+ROW()-2))=Rebalance!$D$33,INDIRECT(\"a\" & (VLOOKUP(Rebalance!$D$33,$F$2:$G$48,2,FALSE)+ROW()-2)),\"\")","v":{"$error":"#N/A"}},{"$f":"IF(INDIRECT(\"c\" & (VLOOKUP(Rebalance!$D$34,$F$2:$G$48,2,FALSE)+ROW()-2))=Rebalance!$D$34,INDIRECT(\"a\" & (VLOOKUP(Rebalance!$D$34,$F$2:$G$48,2,FALSE)+ROW()-2)),\"\")","v":{"$error":"#N/A"}},{"$f":"IF(INDIRECT(\"c\" & (VLOOKUP(Rebalance!$D$35,$F$2:$G$48,2,FALSE)+ROW()-2))=Rebalance!$D$35,INDIRECT(\"a\" & (VLOOKUP(Rebalance!$D$35,$F$2:$G$48,2,FALSE)+ROW()-2)),\"\")","v":{"$error":"#N/A"}},{"$f":"IF(INDIRECT(\"c\" & (VLOOKUP(Rebalance!$D$36,$F$2:$G$48,2,FALSE)+ROW()-2))=Rebalance!$D$36,INDIRECT(\"a\" & (VLOOKUP(Rebalance!$D$36,$F$2:$G$48,2,FALSE)+ROW()-2)),\"\")","v":{"$error":"#N/A"}},{"$f":"IF(INDIRECT(\"c\" & (VLOOKUP(Rebalance!$D$37,$F$2:$G$48,2,FALSE)+ROW()-2))=Rebalance!$D$37,INDIRECT(\"a\" & (VLOOKUP(Rebalance!$D$37,$F$2:$G$48,2,FALSE)+ROW()-2)),\"\")","v":{"$error":"#N/A"}},{"$f":"IF(INDIRECT(\"c\" & (VLOOKUP(Rebalance!$D$38,$F$2:$G$48,2,FALSE)+ROW()-2))=Rebalance!$D$38,INDIRECT(\"a\" & (VLOOKUP(Rebalance!$D$38,$F$2:$G$48,2,FALSE)+ROW()-2)),\"\")","v":{"$error":"#N/A"}},{"$f":"IF(INDIRECT(\"c\" & (VLOOKUP(Rebalance!$D$39,$F$2:$G$48,2,FALSE)+ROW()-2))=Rebalance!$D$39,INDIRECT(\"a\" & (VLOOKUP(Rebalance!$D$39,$F$2:$G$48,2,FALSE)+ROW()-2)),\"\")","v":{"$error":"#N/A"}},{"$f":"IF(INDIRECT(\"c\" & (VLOOKUP(Rebalance!$D$40,$F$2:$G$48,2,FALSE)+ROW()-2))=Rebalance!$D$40,INDIRECT(\"a\" & (VLOOKUP(Rebalance!$D$40,$F$2:$G$48,2,FALSE)+ROW()-2)),\"\")","v":{"$error":"#N/A"}},{"$f":"IF(INDIRECT(\"c\" & (VLOOKUP(Rebalance!$D$52,$F$2:$G$48,2,FALSE)+ROW()-2))=Rebalance!$D$52,INDIRECT(\"a\" & (VLOOKUP(Rebalance!$D$52,$F$2:$G$48,2,FALSE)+ROW()-2)),\"\")","v":{"$error":"#N/A"}},{"$f":"IF(INDIRECT(\"c\" & (VLOOKUP(Rebalance!$D$53,$F$2:$G$48,2,FALSE)+ROW()-2))=Rebalance!$D$53,INDIRECT(\"a\" & (VLOOKUP(Rebalance!$D$53,$F$2:$G$48,2,FALSE)+ROW()-2)),\"\")","v":{"$error":"#N/A"}},{"$f":"IF(INDIRECT(\"c\" & (VLOOKUP(Rebalance!$D$54,$F$2:$G$48,2,FALSE)+ROW()-2))=Rebalance!$D$54,INDIRECT(\"a\" & (VLOOKUP(Rebalance!$D$54,$F$2:$G$48,2,FALSE)+ROW()-2)),\"\")","v":{"$error":"#N/A"}},{"$f":"IF(INDIRECT(\"c\" & (VLOOKUP(Rebalance!$D$55,$F$2:$G$48,2,FALSE)+ROW()-2))=Rebalance!$D$55,INDIRECT(\"a\" & (VLOOKUP(Rebalance!$D$55,$F$2:$G$48,2,FALSE)+ROW()-2)),\"\")","v":{"$error":"#N/A"}},{"$f":"IF(INDIRECT(\"c\" & (VLOOKUP(Rebalance!$D$56,$F$2:$G$48,2,FALSE)+ROW()-2))=Rebalance!$D$56,INDIRECT(\"a\" & (VLOOKUP(Rebalance!$D$56,$F$2:$G$48,2,FALSE)+ROW()-2)),\"\")","v":{"$error":"#N/A"}},{"$f":"IF(INDIRECT(\"c\" & (VLOOKUP(Rebalance!$D$57,$F$2:$G$48,2,FALSE)+ROW()-2))=Rebalance!$D$57,INDIRECT(\"a\" & (VLOOKUP(Rebalance!$D$57,$F$2:$G$48,2,FALSE)+ROW()-2)),\"\")","v":{"$error":"#N/A"}},{"$f":"IF(INDIRECT(\"c\" & (VLOOKUP(Rebalance!$D$58,$F$2:$G$48,2,FALSE)+ROW()-2))=Rebalance!$D$58,INDIRECT(\"a\" & (VLOOKUP(Rebalance!$D$58,$F$2:$G$48,2,FALSE)+ROW()-2)),\"\")","v":{"$error":"#N/A"}},{"$f":"IF(INDIRECT(\"c\" & (VLOOKUP(Rebalance!$D$59,$F$2:$G$48,2,FALSE)+ROW()-2))=Rebalance!$D$59,INDIRECT(\"a\" & (VLOOKUP(Rebalance!$D$59,$F$2:$G$48,2,FALSE)+ROW()-2)),\"\")","v":{"$error":"#N/A"}},{"$f":"IF(INDIRECT(\"c\" & (VLOOKUP(Rebalance!$D$60,$F$2:$G$48,2,FALSE)+ROW()-2))=Rebalance!$D$60,INDIRECT(\"a\" & (VLOOKUP(Rebalance!$D$60,$F$2:$G$48,2,FALSE)+ROW()-2)),\"\")","v":{"$error":"#N/A"}},{"$f":"IF(INDIRECT(\"c\" & (VLOOKUP(Rebalance!$D$61,$F$2:$G$48,2,FALSE)+ROW()-2))=Rebalance!$D$61,INDIRECT(\"a\" & (VLOOKUP(Rebalance!$D$61,$F$2:$G$48,2,FALSE)+ROW()-2)),\"\")","v":{"$error":"#N/A"}},{"$f":"IF(INDIRECT(\"c\" & (VLOOKUP(Rebalance!$D$62,$F$2:$G$48,2,FALSE)+ROW()-2))=Rebalance!$D$62,INDIRECT(\"a\" & (VLOOKUP(Rebalance!$D$62,$F$2:$G$48,2,FALSE)+ROW()-2)),\"\")","v":{"$error":"#N/A"}},{"$f":"IF(INDIRECT(\"c\" & (VLOOKUP(Rebalance!$D$63,$F$2:$G$48,2,FALSE)+ROW()-2))=Rebalance!$D$63,INDIRECT(\"a\" & (VLOOKUP(Rebalance!$D$63,$F$2:$G$48,2,FALSE)+ROW()-2)),\"\")","v":{"$error":"#N/A"}},{"$f":"IF(INDIRECT(\"c\" & (VLOOKUP(Rebalance!$D$64,$F$2:$G$48,2,FALSE)+ROW()-2))=Rebalance!$D$64,INDIRECT(\"a\" & (VLOOKUP(Rebalance!$D$64,$F$2:$G$48,2,FALSE)+ROW()-2)),\"\")","v":{"$error":"#N/A"}},{"$f":"IF(INDIRECT(\"c\" & (VLOOKUP(Rebalance!$D$65,$F$2:$G$48,2,FALSE)+ROW()-2))=Rebalance!$D$65,INDIRECT(\"a\" & (VLOOKUP(Rebalance!$D$65,$F$2:$G$48,2,FALSE)+ROW()-2)),\"\")","v":{"$error":"#N/A"}},{"$f":"IF(INDIRECT(\"c\" & (VLOOKUP(Rebalance!$D$66,$F$2:$G$48,2,FALSE)+ROW()-2))=Rebalance!$D$66,INDIRECT(\"a\" & (VLOOKUP(Rebalance!$D$66,$F$2:$G$48,2,FALSE)+ROW()-2)),\"\")","v":{"$error":"#N/A"}}]
["Select Manager BCI Balanced Fund of Funds A","SMBGR","Boutique Collective Investments (Pty) Ltd",{"$f":"ROW()","v":179},null,null,{"$f":"VLOOKUP(F179,$C$2:$D$599,2,FALSE)","v":{"$error":"#N/A"}},{"$f":"IF(INDIRECT(\"c\" & (VLOOKUP(Rebalance!$D$26,$F$2:$G$48,2,FALSE)+ROW()-2))=Rebalance!$D$26,INDIRECT(\"a\" & (VLOOKUP(Rebalance!$D$26,$F$2:$G$48,2,FALSE)+ROW()-2)),\"\")","v":{"$error":"#N/A"}},{"$f":"IF(INDIRECT(\"c\" & (VLOOKUP(Rebalance!$D$27,$F$2:$G$48,2,FALSE)+ROW()-2))=Rebalance!$D$27,INDIRECT(\"a\" & (VLOOKUP(Rebalance!$D$27,$F$2:$G$48,2,FALSE)+ROW()-2)),\"\")","v":{"$error":"#N/A"}},{"$f":"IF(INDIRECT(\"c\" & (VLOOKUP(Rebalance!$D$28,$F$2:$G$48,2,FALSE)+ROW()-2))=Rebalance!$D$28,INDIRECT(\"a\" & (VLOOKUP(Rebalance!$D$28,$F$2:$G$48,2,FALSE)+ROW()-2)),\"\")","v":{"$error":"#N/A"}},{"$f":"IF(INDIRECT(\"c\" & (VLOOKUP(Rebalance!$D$29,$F$2:$G$48,2,FALSE)+ROW()-2))=Rebalance!$D$29,INDIRECT(\"a\" & (VLOOKUP(Rebalance!$D$29,$F$2:$G$48,2,FALSE)+ROW()-2)),\"\")","v":{"$error":"#N/A"}},{"$f":"IF(INDIRECT(\"c\" & (VLOOKUP(Rebalance!$D$30,$F$2:$G$48,2,FALSE)+ROW()-2))=Rebalance!$D$30,INDIRECT(\"a\" & (VLOOKUP(Rebalance!$D$30,$F$2:$G$48,2,FALSE)+ROW()-2)),\"\")","v":{"$error":"#N/A"}},{"$f":"IF(INDIRECT(\"c\" & (VLOOKUP(Rebalance!$D$31,$F$2:$G$48,2,FALSE)+ROW()-2))=Rebalance!$D$31,INDIRECT(\"a\" & (VLOOKUP(Rebalance!$D$31,$F$2:$G$48,2,FALSE)+ROW()-2)),\"\")","v":{"$error":"#N/A"}},{"$f":"IF(INDIRECT(\"c\" & (VLOOKUP(Rebalance!$D$32,$F$2:$G$48,2,FALSE)+ROW()-2))=Rebalance!$D$32,INDIRECT(\"a\" & (VLOOKUP(Rebalance!$D$32,$F$2:$G$48,2,FALSE)+ROW()-2)),\"\")","v":{"$error":"#N/A"}},{"$f":"IF(INDIRECT(\"c\" & (VLOOKUP(Rebalance!$D$33,$F$2:$G$48,2,FALSE)+ROW()-2))=Rebalance!$D$33,INDIRECT(\"a\" & (VLOOKUP(Rebalance!$D$33,$F$2:$G$48,2,FALSE)+ROW()-2)),\"\")","v":{"$error":"#N/A"}},{"$f":"IF(INDIRECT(\"c\" & (VLOOKUP(Rebalance!$D$34,$F$2:$G$48,2,FALSE)+ROW()-2))=Rebalance!$D$34,INDIRECT(\"a\" & (VLOOKUP(Rebalance!$D$34,$F$2:$G$48,2,FALSE)+ROW()-2)),\"\")","v":{"$error":"#N/A"}},{"$f":"IF(INDIRECT(\"c\" & (VLOOKUP(Rebalance!$D$35,$F$2:$G$48,2,FALSE)+ROW()-2))=Rebalance!$D$35,INDIRECT(\"a\" & (VLOOKUP(Rebalance!$D$35,$F$2:$G$48,2,FALSE)+ROW()-2)),\"\")","v":{"$error":"#N/A"}},{"$f":"IF(INDIRECT(\"c\" & (VLOOKUP(Rebalance!$D$36,$F$2:$G$48,2,FALSE)+ROW()-2))=Rebalance!$D$36,INDIRECT(\"a\" & (VLOOKUP(Rebalance!$D$36,$F$2:$G$48,2,FALSE)+ROW()-2)),\"\")","v":{"$error":"#N/A"}},{"$f":"IF(INDIRECT(\"c\" & (VLOOKUP(Rebalance!$D$37,$F$2:$G$48,2,FALSE)+ROW()-2))=Rebalance!$D$37,INDIRECT(\"a\" & (VLOOKUP(Rebalance!$D$37,$F$2:$G$48,2,FALSE)+ROW()-2)),\"\")","v":{"$error":"#N/A"}},{"$f":"IF(INDIRECT(\"c\" & (VLOOKUP(Rebalance!$D$38,$F$2:$G$48,2,FALSE)+ROW()-2))=Rebalance!$D$38,INDIRECT(\"a\" & (VLOOKUP(Rebalance!$D$38,$F$2:$G$48,2,FALSE)+ROW()-2)),\"\")","v":{"$error":"#N/A"}},{"$f":"IF(INDIRECT(\"c\" & (VLOOKUP(Rebalance!$D$39,$F$2:$G$48,2,FALSE)+ROW()-2))=Rebalance!$D$39,INDIRECT(\"a\" & (VLOOKUP(Rebalance!$D$39,$F$2:$G$48,2,FALSE)+ROW()-2)),\"\")","v":{"$error":"#N/A"}},{"$f":"IF(INDIRECT(\"c\" & (VLOOKUP(Rebalance!$D$40,$F$2:$G$48,2,FALSE)+ROW()-2))=Rebalance!$D$40,INDIRECT(\"a\" & (VLOOKUP(Rebalance!$D$40,$F$2:$G$48,2,FALSE)+ROW()-2)),\"\")","v":{"$error":"#N/A"}},{"$f":"IF(INDIRECT(\"c\" & (VLOOKUP(Rebalance!$D$52,$F$2:$G$48,2,FALSE)+ROW()-2))=Rebalance!$D$52,INDIRECT(\"a\" & (VLOOKUP(Rebalance!$D$52,$F$2:$G$48,2,FALSE)+ROW()-2)),\"\")","v":{"$error":"#N/A"}},{"$f":"IF(INDIRECT(\"c\" & (VLOOKUP(Rebalance!$D$53,$F$2:$G$48,2,FALSE)+ROW()-2))=Rebalance!$D$53,INDIRECT(\"a\" & (VLOOKUP(Rebalance!$D$53,$F$2:$G$48,2,FALSE)+ROW()-2)),\"\")","v":{"$error":"#N/A"}},{"$f":"IF(INDIRECT(\"c\" & (VLOOKUP(Rebalance!$D$54,$F$2:$G$48,2,FALSE)+ROW()-2))=Rebalance!$D$54,INDIRECT(\"a\" & (VLOOKUP(Rebalance!$D$54,$F$2:$G$48,2,FALSE)+ROW()-2)),\"\")","v":{"$error":"#N/A"}},{"$f":"IF(INDIRECT(\"c\" & (VLOOKUP(Rebalance!$D$55,$F$2:$G$48,2,FALSE)+ROW()-2))=Rebalance!$D$55,INDIRECT(\"a\" & (VLOOKUP(Rebalance!$D$55,$F$2:$G$48,2,FALSE)+ROW()-2)),\"\")","v":{"$error":"#N/A"}},{"$f":"IF(INDIRECT(\"c\" & (VLOOKUP(Rebalance!$D$56,$F$2:$G$48,2,FALSE)+ROW()-2))=Rebalance!$D$56,INDIRECT(\"a\" & (VLOOKUP(Rebalance!$D$56,$F$2:$G$48,2,FALSE)+ROW()-2)),\"\")","v":{"$error":"#N/A"}},{"$f":"IF(INDIRECT(\"c\" & (VLOOKUP(Rebalance!$D$57,$F$2:$G$48,2,FALSE)+ROW()-2))=Rebalance!$D$57,INDIRECT(\"a\" & (VLOOKUP(Rebalance!$D$57,$F$2:$G$48,2,FALSE)+ROW()-2)),\"\")","v":{"$error":"#N/A"}},{"$f":"IF(INDIRECT(\"c\" & (VLOOKUP(Rebalance!$D$58,$F$2:$G$48,2,FALSE)+ROW()-2))=Rebalance!$D$58,INDIRECT(\"a\" & (VLOOKUP(Rebalance!$D$58,$F$2:$G$48,2,FALSE)+ROW()-2)),\"\")","v":{"$error":"#N/A"}},{"$f":"IF(INDIRECT(\"c\" & (VLOOKUP(Rebalance!$D$59,$F$2:$G$48,2,FALSE)+ROW()-2))=Rebalance!$D$59,INDIRECT(\"a\" & (VLOOKUP(Rebalance!$D$59,$F$2:$G$48,2,FALSE)+ROW()-2)),\"\")","v":{"$error":"#N/A"}},{"$f":"IF(INDIRECT(\"c\" & (VLOOKUP(Rebalance!$D$60,$F$2:$G$48,2,FALSE)+ROW()-2))=Rebalance!$D$60,INDIRECT(\"a\" & (VLOOKUP(Rebalance!$D$60,$F$2:$G$48,2,FALSE)+ROW()-2)),\"\")","v":{"$error":"#N/A"}},{"$f":"IF(INDIRECT(\"c\" & (VLOOKUP(Rebalance!$D$61,$F$2:$G$48,2,FALSE)+ROW()-2))=Rebalance!$D$61,INDIRECT(\"a\" & (VLOOKUP(Rebalance!$D$61,$F$2:$G$48,2,FALSE)+ROW()-2)),\"\")","v":{"$error":"#N/A"}},{"$f":"IF(INDIRECT(\"c\" & (VLOOKUP(Rebalance!$D$62,$F$2:$G$48,2,FALSE)+ROW()-2))=Rebalance!$D$62,INDIRECT(\"a\" & (VLOOKUP(Rebalance!$D$62,$F$2:$G$48,2,FALSE)+ROW()-2)),\"\")","v":{"$error":"#N/A"}},{"$f":"IF(INDIRECT(\"c\" & (VLOOKUP(Rebalance!$D$63,$F$2:$G$48,2,FALSE)+ROW()-2))=Rebalance!$D$63,INDIRECT(\"a\" & (VLOOKUP(Rebalance!$D$63,$F$2:$G$48,2,FALSE)+ROW()-2)),\"\")","v":{"$error":"#N/A"}},{"$f":"IF(INDIRECT(\"c\" & (VLOOKUP(Rebalance!$D$64,$F$2:$G$48,2,FALSE)+ROW()-2))=Rebalance!$D$64,INDIRECT(\"a\" & (VLOOKUP(Rebalance!$D$64,$F$2:$G$48,2,FALSE)+ROW()-2)),\"\")","v":{"$error":"#N/A"}},{"$f":"IF(INDIRECT(\"c\" & (VLOOKUP(Rebalance!$D$65,$F$2:$G$48,2,FALSE)+ROW()-2))=Rebalance!$D$65,INDIRECT(\"a\" & (VLOOKUP(Rebalance!$D$65,$F$2:$G$48,2,FALSE)+ROW()-2)),\"\")","v":{"$error":"#N/A"}},{"$f":"IF(INDIRECT(\"c\" & (VLOOKUP(Rebalance!$D$66,$F$2:$G$48,2,FALSE)+ROW()-2))=Rebalance!$D$66,INDIRECT(\"a\" & (VLOOKUP(Rebalance!$D$66,$F$2:$G$48,2,FALSE)+ROW()-2)),\"\")","v":{"$error":"#N/A"}}]
["Select Manager BCI Balanced Fund of Funds D","SMBGR","Boutique Collective Investments (Pty) Ltd",{"$f":"ROW()","v":180},null,null,{"$f":"VLOOKUP(F180,$C$2:$D$599,2,FALSE)","v":{"$error":"#N/A"}},{"$f":"IF(INDIRECT(\"c\" & (VLOOKUP(Rebalance!$D$26,$F$2:$G$48,2,FALSE)+ROW()-2))=Rebalance!$D$26,INDIRECT(\"a\" & (VLOOKUP(Rebalance!$D$26,$F$2:$G$48,2,FALSE)+ROW()-2)),\"\")","v":{"$error":"#N/A"}},{"$f":"IF(INDIRECT(\"c\" & (VLOOKUP(Rebalance!$D$27,$F$2:$G$48,2,FALSE)+ROW()-2))=Rebalance!$D$27,INDIRECT(\"a\" & (VLOOKUP(Rebalance!$D$27,$F$2:$G$48,2,FALSE)+ROW()-2)),\"\")","v":{"$error":"#N/A"}},{"$f":"IF(INDIRECT(\"c\" & (VLOOKUP(Rebalance!$D$28,$F$2:$G$48,2,FALSE)+ROW()-2))=Rebalance!$D$28,INDIRECT(\"a\" & (VLOOKUP(Rebalance!$D$28,$F$2:$G$48,2,FALSE)+ROW()-2)),\"\")","v":{"$error":"#N/A"}},{"$f":"IF(INDIRECT(\"c\" & (VLOOKUP(Rebalance!$D$29,$F$2:$G$48,2,FALSE)+ROW()-2))=Rebalance!$D$29,INDIRECT(\"a\" & (VLOOKUP(Rebalance!$D$29,$F$2:$G$48,2,FALSE)+ROW()-2)),\"\")","v":{"$error":"#N/A"}},{"$f":"IF(INDIRECT(\"c\" & (VLOOKUP(Rebalance!$D$30,$F$2:$G$48,2,FALSE)+ROW()-2))=Rebalance!$D$30,INDIRECT(\"a\" & (VLOOKUP(Rebalance!$D$30,$F$2:$G$48,2,FALSE)+ROW()-2)),\"\")","v":{"$error":"#N/A"}},{"$f":"IF(INDIRECT(\"c\" & (VLOOKUP(Rebalance!$D$31,$F$2:$G$48,2,FALSE)+ROW()-2))=Rebalance!$D$31,INDIRECT(\"a\" & (VLOOKUP(Rebalance!$D$31,$F$2:$G$48,2,FALSE)+ROW()-2)),\"\")","v":{"$error":"#N/A"}},{"$f":"IF(INDIRECT(\"c\" & (VLOOKUP(Rebalance!$D$32,$F$2:$G$48,2,FALSE)+ROW()-2))=Rebalance!$D$32,INDIRECT(\"a\" & (VLOOKUP(Rebalance!$D$32,$F$2:$G$48,2,FALSE)+ROW()-2)),\"\")","v":{"$error":"#N/A"}},{"$f":"IF(INDIRECT(\"c\" & (VLOOKUP(Rebalance!$D$33,$F$2:$G$48,2,FALSE)+ROW()-2))=Rebalance!$D$33,INDIRECT(\"a\" & (VLOOKUP(Rebalance!$D$33,$F$2:$G$48,2,FALSE)+ROW()-2)),\"\")","v":{"$error":"#N/A"}},{"$f":"IF(INDIRECT(\"c\" & (VLOOKUP(Rebalance!$D$34,$F$2:$G$48,2,FALSE)+ROW()-2))=Rebalance!$D$34,INDIRECT(\"a\" & (VLOOKUP(Rebalance!$D$34,$F$2:$G$48,2,FALSE)+ROW()-2)),\"\")","v":{"$error":"#N/A"}},{"$f":"IF(INDIRECT(\"c\" & (VLOOKUP(Rebalance!$D$35,$F$2:$G$48,2,FALSE)+ROW()-2))=Rebalance!$D$35,INDIRECT(\"a\" & (VLOOKUP(Rebalance!$D$35,$F$2:$G$48,2,FALSE)+ROW()-2)),\"\")","v":{"$error":"#N/A"}},{"$f":"IF(INDIRECT(\"c\" & (VLOOKUP(Rebalance!$D$36,$F$2:$G$48,2,FALSE)+ROW()-2))=Rebalance!$D$36,INDIRECT(\"a\" & (VLOOKUP(Rebalance!$D$36,$F$2:$G$48,2,FALSE)+ROW()-2)),\"\")","v":{"$error":"#N/A"}},{"$f":"IF(INDIRECT(\"c\" & (VLOOKUP(Rebalance!$D$37,$F$2:$G$48,2,FALSE)+ROW()-2))=Rebalance!$D$37,INDIRECT(\"a\" & (VLOOKUP(Rebalance!$D$37,$F$2:$G$48,2,FALSE)+ROW()-2)),\"\")","v":{"$error":"#N/A"}},{"$f":"IF(INDIRECT(\"c\" & (VLOOKUP(Rebalance!$D$38,$F$2:$G$48,2,FALSE)+ROW()-2))=Rebalance!$D$38,INDIRECT(\"a\" & (VLOOKUP(Rebalance!$D$38,$F$2:$G$48,2,FALSE)+ROW()-2)),\"\")","v":{"$error":"#N/A"}},{"$f":"IF(INDIRECT(\"c\" & (VLOOKUP(Rebalance!$D$39,$F$2:$G$48,2,FALSE)+ROW()-2))=Rebalance!$D$39,INDIRECT(\"a\" & (VLOOKUP(Rebalance!$D$39,$F$2:$G$48,2,FALSE)+ROW()-2)),\"\")","v":{"$error":"#N/A"}},{"$f":"IF(INDIRECT(\"c\" & (VLOOKUP(Rebalance!$D$40,$F$2:$G$48,2,FALSE)+ROW()-2))=Rebalance!$D$40,INDIRECT(\"a\" & (VLOOKUP(Rebalance!$D$40,$F$2:$G$48,2,FALSE)+ROW()-2)),\"\")","v":{"$error":"#N/A"}},{"$f":"IF(INDIRECT(\"c\" & (VLOOKUP(Rebalance!$D$52,$F$2:$G$48,2,FALSE)+ROW()-2))=Rebalance!$D$52,INDIRECT(\"a\" & (VLOOKUP(Rebalance!$D$52,$F$2:$G$48,2,FALSE)+ROW()-2)),\"\")","v":{"$error":"#N/A"}},{"$f":"IF(INDIRECT(\"c\" & (VLOOKUP(Rebalance!$D$53,$F$2:$G$48,2,FALSE)+ROW()-2))=Rebalance!$D$53,INDIRECT(\"a\" & (VLOOKUP(Rebalance!$D$53,$F$2:$G$48,2,FALSE)+ROW()-2)),\"\")","v":{"$error":"#N/A"}},{"$f":"IF(INDIRECT(\"c\" & (VLOOKUP(Rebalance!$D$54,$F$2:$G$48,2,FALSE)+ROW()-2))=Rebalance!$D$54,INDIRECT(\"a\" & (VLOOKUP(Rebalance!$D$54,$F$2:$G$48,2,FALSE)+ROW()-2)),\"\")","v":{"$error":"#N/A"}},{"$f":"IF(INDIRECT(\"c\" & (VLOOKUP(Rebalance!$D$55,$F$2:$G$48,2,FALSE)+ROW()-2))=Rebalance!$D$55,INDIRECT(\"a\" & (VLOOKUP(Rebalance!$D$55,$F$2:$G$48,2,FALSE)+ROW()-2)),\"\")","v":{"$error":"#N/A"}},{"$f":"IF(INDIRECT(\"c\" & (VLOOKUP(Rebalance!$D$56,$F$2:$G$48,2,FALSE)+ROW()-2))=Rebalance!$D$56,INDIRECT(\"a\" & (VLOOKUP(Rebalance!$D$56,$F$2:$G$48,2,FALSE)+ROW()-2)),\"\")","v":{"$error":"#N/A"}},{"$f":"IF(INDIRECT(\"c\" & (VLOOKUP(Rebalance!$D$57,$F$2:$G$48,2,FALSE)+ROW()-2))=Rebalance!$D$57,INDIRECT(\"a\" & (VLOOKUP(Rebalance!$D$57,$F$2:$G$48,2,FALSE)+ROW()-2)),\"\")","v":{"$error":"#N/A"}},{"$f":"IF(INDIRECT(\"c\" & (VLOOKUP(Rebalance!$D$58,$F$2:$G$48,2,FALSE)+ROW()-2))=Rebalance!$D$58,INDIRECT(\"a\" & (VLOOKUP(Rebalance!$D$58,$F$2:$G$48,2,FALSE)+ROW()-2)),\"\")","v":{"$error":"#N/A"}},{"$f":"IF(INDIRECT(\"c\" & (VLOOKUP(Rebalance!$D$59,$F$2:$G$48,2,FALSE)+ROW()-2))=Rebalance!$D$59,INDIRECT(\"a\" & (VLOOKUP(Rebalance!$D$59,$F$2:$G$48,2,FALSE)+ROW()-2)),\"\")","v":{"$error":"#N/A"}},{"$f":"IF(INDIRECT(\"c\" & (VLOOKUP(Rebalance!$D$60,$F$2:$G$48,2,FALSE)+ROW()-2))=Rebalance!$D$60,INDIRECT(\"a\" & (VLOOKUP(Rebalance!$D$60,$F$2:$G$48,2,FALSE)+ROW()-2)),\"\")","v":{"$error":"#N/A"}},{"$f":"IF(INDIRECT(\"c\" & (VLOOKUP(Rebalance!$D$61,$F$2:$G$48,2,FALSE)+ROW()-2))=Rebalance!$D$61,INDIRECT(\"a\" & (VLOOKUP(Rebalance!$D$61,$F$2:$G$48,2,FALSE)+ROW()-2)),\"\")","v":{"$error":"#N/A"}},{"$f":"IF(INDIRECT(\"c\" & (VLOOKUP(Rebalance!$D$62,$F$2:$G$48,2,FALSE)+ROW()-2))=Rebalance!$D$62,INDIRECT(\"a\" & (VLOOKUP(Rebalance!$D$62,$F$2:$G$48,2,FALSE)+ROW()-2)),\"\")","v":{"$error":"#N/A"}},{"$f":"IF(INDIRECT(\"c\" & (VLOOKUP(Rebalance!$D$63,$F$2:$G$48,2,FALSE)+ROW()-2))=Rebalance!$D$63,INDIRECT(\"a\" & (VLOOKUP(Rebalance!$D$63,$F$2:$G$48,2,FALSE)+ROW()-2)),\"\")","v":{"$error":"#N/A"}},{"$f":"IF(INDIRECT(\"c\" & (VLOOKUP(Rebalance!$D$64,$F$2:$G$48,2,FALSE)+ROW()-2))=Rebalance!$D$64,INDIRECT(\"a\" & (VLOOKUP(Rebalance!$D$64,$F$2:$G$48,2,FALSE)+ROW()-2)),\"\")","v":{"$error":"#N/A"}},{"$f":"IF(INDIRECT(\"c\" & (VLOOKUP(Rebalance!$D$65,$F$2:$G$48,2,FALSE)+ROW()-2))=Rebalance!$D$65,INDIRECT(\"a\" & (VLOOKUP(Rebalance!$D$65,$F$2:$G$48,2,FALSE)+ROW()-2)),\"\")","v":{"$error":"#N/A"}},{"$f":"IF(INDIRECT(\"c\" & (VLOOKUP(Rebalance!$D$66,$F$2:$G$48,2,FALSE)+ROW()-2))=Rebalance!$D$66,INDIRECT(\"a\" & (VLOOKUP(Rebalance!$D$66,$F$2:$G$48,2,FALSE)+ROW()-2)),\"\")","v":{"$error":"#N/A"}}]
["Select Manager BCI Cautious FoF A","MSMI","Boutique Collective Investments (Pty) Ltd",{"$f":"ROW()","v":181},null,null,{"$f":"VLOOKUP(F181,$C$2:$D$599,2,FALSE)","v":{"$error":"#N/A"}},{"$f":"IF(INDIRECT(\"c\" & (VLOOKUP(Rebalance!$D$26,$F$2:$G$48,2,FALSE)+ROW()-2))=Rebalance!$D$26,INDIRECT(\"a\" & (VLOOKUP(Rebalance!$D$26,$F$2:$G$48,2,FALSE)+ROW()-2)),\"\")","v":{"$error":"#N/A"}},{"$f":"IF(INDIRECT(\"c\" & (VLOOKUP(Rebalance!$D$27,$F$2:$G$48,2,FALSE)+ROW()-2))=Rebalance!$D$27,INDIRECT(\"a\" & (VLOOKUP(Rebalance!$D$27,$F$2:$G$48,2,FALSE)+ROW()-2)),\"\")","v":{"$error":"#N/A"}},{"$f":"IF(INDIRECT(\"c\" & (VLOOKUP(Rebalance!$D$28,$F$2:$G$48,2,FALSE)+ROW()-2))=Rebalance!$D$28,INDIRECT(\"a\" & (VLOOKUP(Rebalance!$D$28,$F$2:$G$48,2,FALSE)+ROW()-2)),\"\")","v":{"$error":"#N/A"}},{"$f":"IF(INDIRECT(\"c\" & (VLOOKUP(Rebalance!$D$29,$F$2:$G$48,2,FALSE)+ROW()-2))=Rebalance!$D$29,INDIRECT(\"a\" & (VLOOKUP(Rebalance!$D$29,$F$2:$G$48,2,FALSE)+ROW()-2)),\"\")","v":{"$error":"#N/A"}},{"$f":"IF(INDIRECT(\"c\" & (VLOOKUP(Rebalance!$D$30,$F$2:$G$48,2,FALSE)+ROW()-2))=Rebalance!$D$30,INDIRECT(\"a\" & (VLOOKUP(Rebalance!$D$30,$F$2:$G$48,2,FALSE)+ROW()-2)),\"\")","v":{"$error":"#N/A"}},{"$f":"IF(INDIRECT(\"c\" & (VLOOKUP(Rebalance!$D$31,$F$2:$G$48,2,FALSE)+ROW()-2))=Rebalance!$D$31,INDIRECT(\"a\" & (VLOOKUP(Rebalance!$D$31,$F$2:$G$48,2,FALSE)+ROW()-2)),\"\")","v":{"$error":"#N/A"}},{"$f":"IF(INDIRECT(\"c\" & (VLOOKUP(Rebalance!$D$32,$F$2:$G$48,2,FALSE)+ROW()-2))=Rebalance!$D$32,INDIRECT(\"a\" & (VLOOKUP(Rebalance!$D$32,$F$2:$G$48,2,FALSE)+ROW()-2)),\"\")","v":{"$error":"#N/A"}},{"$f":"IF(INDIRECT(\"c\" & (VLOOKUP(Rebalance!$D$33,$F$2:$G$48,2,FALSE)+ROW()-2))=Rebalance!$D$33,INDIRECT(\"a\" & (VLOOKUP(Rebalance!$D$33,$F$2:$G$48,2,FALSE)+ROW()-2)),\"\")","v":{"$error":"#N/A"}},{"$f":"IF(INDIRECT(\"c\" & (VLOOKUP(Rebalance!$D$34,$F$2:$G$48,2,FALSE)+ROW()-2))=Rebalance!$D$34,INDIRECT(\"a\" & (VLOOKUP(Rebalance!$D$34,$F$2:$G$48,2,FALSE)+ROW()-2)),\"\")","v":{"$error":"#N/A"}},{"$f":"IF(INDIRECT(\"c\" & (VLOOKUP(Rebalance!$D$35,$F$2:$G$48,2,FALSE)+ROW()-2))=Rebalance!$D$35,INDIRECT(\"a\" & (VLOOKUP(Rebalance!$D$35,$F$2:$G$48,2,FALSE)+ROW()-2)),\"\")","v":{"$error":"#N/A"}},{"$f":"IF(INDIRECT(\"c\" & (VLOOKUP(Rebalance!$D$36,$F$2:$G$48,2,FALSE)+ROW()-2))=Rebalance!$D$36,INDIRECT(\"a\" & (VLOOKUP(Rebalance!$D$36,$F$2:$G$48,2,FALSE)+ROW()-2)),\"\")","v":{"$error":"#N/A"}},{"$f":"IF(INDIRECT(\"c\" & (VLOOKUP(Rebalance!$D$37,$F$2:$G$48,2,FALSE)+ROW()-2))=Rebalance!$D$37,INDIRECT(\"a\" & (VLOOKUP(Rebalance!$D$37,$F$2:$G$48,2,FALSE)+ROW()-2)),\"\")","v":{"$error":"#N/A"}},{"$f":"IF(INDIRECT(\"c\" & (VLOOKUP(Rebalance!$D$38,$F$2:$G$48,2,FALSE)+ROW()-2))=Rebalance!$D$38,INDIRECT(\"a\" & (VLOOKUP(Rebalance!$D$38,$F$2:$G$48,2,FALSE)+ROW()-2)),\"\")","v":{"$error":"#N/A"}},{"$f":"IF(INDIRECT(\"c\" & (VLOOKUP(Rebalance!$D$39,$F$2:$G$48,2,FALSE)+ROW()-2))=Rebalance!$D$39,INDIRECT(\"a\" & (VLOOKUP(Rebalance!$D$39,$F$2:$G$48,2,FALSE)+ROW()-2)),\"\")","v":{"$error":"#N/A"}},{"$f":"IF(INDIRECT(\"c\" & (VLOOKUP(Rebalance!$D$40,$F$2:$G$48,2,FALSE)+ROW()-2))=Rebalance!$D$40,INDIRECT(\"a\" & (VLOOKUP(Rebalance!$D$40,$F$2:$G$48,2,FALSE)+ROW()-2)),\"\")","v":{"$error":"#N/A"}},{"$f":"IF(INDIRECT(\"c\" & (VLOOKUP(Rebalance!$D$52,$F$2:$G$48,2,FALSE)+ROW()-2))=Rebalance!$D$52,INDIRECT(\"a\" & (VLOOKUP(Rebalance!$D$52,$F$2:$G$48,2,FALSE)+ROW()-2)),\"\")","v":{"$error":"#N/A"}},{"$f":"IF(INDIRECT(\"c\" & (VLOOKUP(Rebalance!$D$53,$F$2:$G$48,2,FALSE)+ROW()-2))=Rebalance!$D$53,INDIRECT(\"a\" & (VLOOKUP(Rebalance!$D$53,$F$2:$G$48,2,FALSE)+ROW()-2)),\"\")","v":{"$error":"#N/A"}},{"$f":"IF(INDIRECT(\"c\" & (VLOOKUP(Rebalance!$D$54,$F$2:$G$48,2,FALSE)+ROW()-2))=Rebalance!$D$54,INDIRECT(\"a\" & (VLOOKUP(Rebalance!$D$54,$F$2:$G$48,2,FALSE)+ROW()-2)),\"\")","v":{"$error":"#N/A"}},{"$f":"IF(INDIRECT(\"c\" & (VLOOKUP(Rebalance!$D$55,$F$2:$G$48,2,FALSE)+ROW()-2))=Rebalance!$D$55,INDIRECT(\"a\" & (VLOOKUP(Rebalance!$D$55,$F$2:$G$48,2,FALSE)+ROW()-2)),\"\")","v":{"$error":"#N/A"}},{"$f":"IF(INDIRECT(\"c\" & (VLOOKUP(Rebalance!$D$56,$F$2:$G$48,2,FALSE)+ROW()-2))=Rebalance!$D$56,INDIRECT(\"a\" & (VLOOKUP(Rebalance!$D$56,$F$2:$G$48,2,FALSE)+ROW()-2)),\"\")","v":{"$error":"#N/A"}},{"$f":"IF(INDIRECT(\"c\" & (VLOOKUP(Rebalance!$D$57,$F$2:$G$48,2,FALSE)+ROW()-2))=Rebalance!$D$57,INDIRECT(\"a\" & (VLOOKUP(Rebalance!$D$57,$F$2:$G$48,2,FALSE)+ROW()-2)),\"\")","v":{"$error":"#N/A"}},{"$f":"IF(INDIRECT(\"c\" & (VLOOKUP(Rebalance!$D$58,$F$2:$G$48,2,FALSE)+ROW()-2))=Rebalance!$D$58,INDIRECT(\"a\" & (VLOOKUP(Rebalance!$D$58,$F$2:$G$48,2,FALSE)+ROW()-2)),\"\")","v":{"$error":"#N/A"}},{"$f":"IF(INDIRECT(\"c\" & (VLOOKUP(Rebalance!$D$59,$F$2:$G$48,2,FALSE)+ROW()-2))=Rebalance!$D$59,INDIRECT(\"a\" & (VLOOKUP(Rebalance!$D$59,$F$2:$G$48,2,FALSE)+ROW()-2)),\"\")","v":{"$error":"#N/A"}},{"$f":"IF(INDIRECT(\"c\" & (VLOOKUP(Rebalance!$D$60,$F$2:$G$48,2,FALSE)+ROW()-2))=Rebalance!$D$60,INDIRECT(\"a\" & (VLOOKUP(Rebalance!$D$60,$F$2:$G$48,2,FALSE)+ROW()-2)),\"\")","v":{"$error":"#N/A"}},{"$f":"IF(INDIRECT(\"c\" & (VLOOKUP(Rebalance!$D$61,$F$2:$G$48,2,FALSE)+ROW()-2))=Rebalance!$D$61,INDIRECT(\"a\" & (VLOOKUP(Rebalance!$D$61,$F$2:$G$48,2,FALSE)+ROW()-2)),\"\")","v":{"$error":"#N/A"}},{"$f":"IF(INDIRECT(\"c\" & (VLOOKUP(Rebalance!$D$62,$F$2:$G$48,2,FALSE)+ROW()-2))=Rebalance!$D$62,INDIRECT(\"a\" & (VLOOKUP(Rebalance!$D$62,$F$2:$G$48,2,FALSE)+ROW()-2)),\"\")","v":{"$error":"#N/A"}},{"$f":"IF(INDIRECT(\"c\" & (VLOOKUP(Rebalance!$D$63,$F$2:$G$48,2,FALSE)+ROW()-2))=Rebalance!$D$63,INDIRECT(\"a\" & (VLOOKUP(Rebalance!$D$63,$F$2:$G$48,2,FALSE)+ROW()-2)),\"\")","v":{"$error":"#N/A"}},{"$f":"IF(INDIRECT(\"c\" & (VLOOKUP(Rebalance!$D$64,$F$2:$G$48,2,FALSE)+ROW()-2))=Rebalance!$D$64,INDIRECT(\"a\" & (VLOOKUP(Rebalance!$D$64,$F$2:$G$48,2,FALSE)+ROW()-2)),\"\")","v":{"$error":"#N/A"}},{"$f":"IF(INDIRECT(\"c\" & (VLOOKUP(Rebalance!$D$65,$F$2:$G$48,2,FALSE)+ROW()-2))=Rebalance!$D$65,INDIRECT(\"a\" & (VLOOKUP(Rebalance!$D$65,$F$2:$G$48,2,FALSE)+ROW()-2)),\"\")","v":{"$error":"#N/A"}},{"$f":"IF(INDIRECT(\"c\" & (VLOOKUP(Rebalance!$D$66,$F$2:$G$48,2,FALSE)+ROW()-2))=Rebalance!$D$66,INDIRECT(\"a\" & (VLOOKUP(Rebalance!$D$66,$F$2:$G$48,2,FALSE)+ROW()-2)),\"\")","v":{"$error":"#N/A"}}]
["Select Manager BCI Equity Fund D","NBEFD","Boutique Collective Investments (Pty) Ltd",{"$f":"ROW()","v":182},null,null,{"$f":"VLOOKUP(F182,$C$2:$D$599,2,FALSE)","v":{"$error":"#N/A"}},{"$f":"IF(INDIRECT(\"c\" & (VLOOKUP(Rebalance!$D$26,$F$2:$G$48,2,FALSE)+ROW()-2))=Rebalance!$D$26,INDIRECT(\"a\" & (VLOOKUP(Rebalance!$D$26,$F$2:$G$48,2,FALSE)+ROW()-2)),\"\")","v":{"$error":"#N/A"}},{"$f":"IF(INDIRECT(\"c\" & (VLOOKUP(Rebalance!$D$27,$F$2:$G$48,2,FALSE)+ROW()-2))=Rebalance!$D$27,INDIRECT(\"a\" & (VLOOKUP(Rebalance!$D$27,$F$2:$G$48,2,FALSE)+ROW()-2)),\"\")","v":{"$error":"#N/A"}},{"$f":"IF(INDIRECT(\"c\" & (VLOOKUP(Rebalance!$D$28,$F$2:$G$48,2,FALSE)+ROW()-2))=Rebalance!$D$28,INDIRECT(\"a\" & (VLOOKUP(Rebalance!$D$28,$F$2:$G$48,2,FALSE)+ROW()-2)),\"\")","v":{"$error":"#N/A"}},{"$f":"IF(INDIRECT(\"c\" & (VLOOKUP(Rebalance!$D$29,$F$2:$G$48,2,FALSE)+ROW()-2))=Rebalance!$D$29,INDIRECT(\"a\" & (VLOOKUP(Rebalance!$D$29,$F$2:$G$48,2,FALSE)+ROW()-2)),\"\")","v":{"$error":"#N/A"}},{"$f":"IF(INDIRECT(\"c\" & (VLOOKUP(Rebalance!$D$30,$F$2:$G$48,2,FALSE)+ROW()-2))=Rebalance!$D$30,INDIRECT(\"a\" & (VLOOKUP(Rebalance!$D$30,$F$2:$G$48,2,FALSE)+ROW()-2)),\"\")","v":{"$error":"#N/A"}},{"$f":"IF(INDIRECT(\"c\" & (VLOOKUP(Rebalance!$D$31,$F$2:$G$48,2,FALSE)+ROW()-2))=Rebalance!$D$31,INDIRECT(\"a\" & (VLOOKUP(Rebalance!$D$31,$F$2:$G$48,2,FALSE)+ROW()-2)),\"\")","v":{"$error":"#N/A"}},{"$f":"IF(INDIRECT(\"c\" & (VLOOKUP(Rebalance!$D$32,$F$2:$G$48,2,FALSE)+ROW()-2))=Rebalance!$D$32,INDIRECT(\"a\" & (VLOOKUP(Rebalance!$D$32,$F$2:$G$48,2,FALSE)+ROW()-2)),\"\")","v":{"$error":"#N/A"}},{"$f":"IF(INDIRECT(\"c\" & (VLOOKUP(Rebalance!$D$33,$F$2:$G$48,2,FALSE)+ROW()-2))=Rebalance!$D$33,INDIRECT(\"a\" & (VLOOKUP(Rebalance!$D$33,$F$2:$G$48,2,FALSE)+ROW()-2)),\"\")","v":{"$error":"#N/A"}},{"$f":"IF(INDIRECT(\"c\" & (VLOOKUP(Rebalance!$D$34,$F$2:$G$48,2,FALSE)+ROW()-2))=Rebalance!$D$34,INDIRECT(\"a\" & (VLOOKUP(Rebalance!$D$34,$F$2:$G$48,2,FALSE)+ROW()-2)),\"\")","v":{"$error":"#N/A"}},{"$f":"IF(INDIRECT(\"c\" & (VLOOKUP(Rebalance!$D$35,$F$2:$G$48,2,FALSE)+ROW()-2))=Rebalance!$D$35,INDIRECT(\"a\" & (VLOOKUP(Rebalance!$D$35,$F$2:$G$48,2,FALSE)+ROW()-2)),\"\")","v":{"$error":"#N/A"}},{"$f":"IF(INDIRECT(\"c\" & (VLOOKUP(Rebalance!$D$36,$F$2:$G$48,2,FALSE)+ROW()-2))=Rebalance!$D$36,INDIRECT(\"a\" & (VLOOKUP(Rebalance!$D$36,$F$2:$G$48,2,FALSE)+ROW()-2)),\"\")","v":{"$error":"#N/A"}},{"$f":"IF(INDIRECT(\"c\" & (VLOOKUP(Rebalance!$D$37,$F$2:$G$48,2,FALSE)+ROW()-2))=Rebalance!$D$37,INDIRECT(\"a\" & (VLOOKUP(Rebalance!$D$37,$F$2:$G$48,2,FALSE)+ROW()-2)),\"\")","v":{"$error":"#N/A"}},{"$f":"IF(INDIRECT(\"c\" & (VLOOKUP(Rebalance!$D$38,$F$2:$G$48,2,FALSE)+ROW()-2))=Rebalance!$D$38,INDIRECT(\"a\" & (VLOOKUP(Rebalance!$D$38,$F$2:$G$48,2,FALSE)+ROW()-2)),\"\")","v":{"$error":"#N/A"}},{"$f":"IF(INDIRECT(\"c\" & (VLOOKUP(Rebalance!$D$39,$F$2:$G$48,2,FALSE)+ROW()-2))=Rebalance!$D$39,INDIRECT(\"a\" & (VLOOKUP(Rebalance!$D$39,$F$2:$G$48,2,FALSE)+ROW()-2)),\"\")","v":{"$error":"#N/A"}},{"$f":"IF(INDIRECT(\"c\" & (VLOOKUP(Rebalance!$D$40,$F$2:$G$48,2,FALSE)+ROW()-2))=Rebalance!$D$40,INDIRECT(\"a\" & (VLOOKUP(Rebalance!$D$40,$F$2:$G$48,2,FALSE)+ROW()-2)),\"\")","v":{"$error":"#N/A"}},{"$f":"IF(INDIRECT(\"c\" & (VLOOKUP(Rebalance!$D$52,$F$2:$G$48,2,FALSE)+ROW()-2))=Rebalance!$D$52,INDIRECT(\"a\" & (VLOOKUP(Rebalance!$D$52,$F$2:$G$48,2,FALSE)+ROW()-2)),\"\")","v":{"$error":"#N/A"}},{"$f":"IF(INDIRECT(\"c\" & (VLOOKUP(Rebalance!$D$53,$F$2:$G$48,2,FALSE)+ROW()-2))=Rebalance!$D$53,INDIRECT(\"a\" & (VLOOKUP(Rebalance!$D$53,$F$2:$G$48,2,FALSE)+ROW()-2)),\"\")","v":{"$error":"#N/A"}},{"$f":"IF(INDIRECT(\"c\" & (VLOOKUP(Rebalance!$D$54,$F$2:$G$48,2,FALSE)+ROW()-2))=Rebalance!$D$54,INDIRECT(\"a\" & (VLOOKUP(Rebalance!$D$54,$F$2:$G$48,2,FALSE)+ROW()-2)),\"\")","v":{"$error":"#N/A"}},{"$f":"IF(INDIRECT(\"c\" & (VLOOKUP(Rebalance!$D$55,$F$2:$G$48,2,FALSE)+ROW()-2))=Rebalance!$D$55,INDIRECT(\"a\" & (VLOOKUP(Rebalance!$D$55,$F$2:$G$48,2,FALSE)+ROW()-2)),\"\")","v":{"$error":"#N/A"}},{"$f":"IF(INDIRECT(\"c\" & (VLOOKUP(Rebalance!$D$56,$F$2:$G$48,2,FALSE)+ROW()-2))=Rebalance!$D$56,INDIRECT(\"a\" & (VLOOKUP(Rebalance!$D$56,$F$2:$G$48,2,FALSE)+ROW()-2)),\"\")","v":{"$error":"#N/A"}},{"$f":"IF(INDIRECT(\"c\" & (VLOOKUP(Rebalance!$D$57,$F$2:$G$48,2,FALSE)+ROW()-2))=Rebalance!$D$57,INDIRECT(\"a\" & (VLOOKUP(Rebalance!$D$57,$F$2:$G$48,2,FALSE)+ROW()-2)),\"\")","v":{"$error":"#N/A"}},{"$f":"IF(INDIRECT(\"c\" & (VLOOKUP(Rebalance!$D$58,$F$2:$G$48,2,FALSE)+ROW()-2))=Rebalance!$D$58,INDIRECT(\"a\" & (VLOOKUP(Rebalance!$D$58,$F$2:$G$48,2,FALSE)+ROW()-2)),\"\")","v":{"$error":"#N/A"}},{"$f":"IF(INDIRECT(\"c\" & (VLOOKUP(Rebalance!$D$59,$F$2:$G$48,2,FALSE)+ROW()-2))=Rebalance!$D$59,INDIRECT(\"a\" & (VLOOKUP(Rebalance!$D$59,$F$2:$G$48,2,FALSE)+ROW()-2)),\"\")","v":{"$error":"#N/A"}},{"$f":"IF(INDIRECT(\"c\" & (VLOOKUP(Rebalance!$D$60,$F$2:$G$48,2,FALSE)+ROW()-2))=Rebalance!$D$60,INDIRECT(\"a\" & (VLOOKUP(Rebalance!$D$60,$F$2:$G$48,2,FALSE)+ROW()-2)),\"\")","v":{"$error":"#N/A"}},{"$f":"IF(INDIRECT(\"c\" & (VLOOKUP(Rebalance!$D$61,$F$2:$G$48,2,FALSE)+ROW()-2))=Rebalance!$D$61,INDIRECT(\"a\" & (VLOOKUP(Rebalance!$D$61,$F$2:$G$48,2,FALSE)+ROW()-2)),\"\")","v":{"$error":"#N/A"}},{"$f":"IF(INDIRECT(\"c\" & (VLOOKUP(Rebalance!$D$62,$F$2:$G$48,2,FALSE)+ROW()-2))=Rebalance!$D$62,INDIRECT(\"a\" & (VLOOKUP(Rebalance!$D$62,$F$2:$G$48,2,FALSE)+ROW()-2)),\"\")","v":{"$error":"#N/A"}},{"$f":"IF(INDIRECT(\"c\" & (VLOOKUP(Rebalance!$D$63,$F$2:$G$48,2,FALSE)+ROW()-2))=Rebalance!$D$63,INDIRECT(\"a\" & (VLOOKUP(Rebalance!$D$63,$F$2:$G$48,2,FALSE)+ROW()-2)),\"\")","v":{"$error":"#N/A"}},{"$f":"IF(INDIRECT(\"c\" & (VLOOKUP(Rebalance!$D$64,$F$2:$G$48,2,FALSE)+ROW()-2))=Rebalance!$D$64,INDIRECT(\"a\" & (VLOOKUP(Rebalance!$D$64,$F$2:$G$48,2,FALSE)+ROW()-2)),\"\")","v":{"$error":"#N/A"}},{"$f":"IF(INDIRECT(\"c\" & (VLOOKUP(Rebalance!$D$65,$F$2:$G$48,2,FALSE)+ROW()-2))=Rebalance!$D$65,INDIRECT(\"a\" & (VLOOKUP(Rebalance!$D$65,$F$2:$G$48,2,FALSE)+ROW()-2)),\"\")","v":{"$error":"#N/A"}},{"$f":"IF(INDIRECT(\"c\" & (VLOOKUP(Rebalance!$D$66,$F$2:$G$48,2,FALSE)+ROW()-2))=Rebalance!$D$66,INDIRECT(\"a\" & (VLOOKUP(Rebalance!$D$66,$F$2:$G$48,2,FALSE)+ROW()-2)),\"\")","v":{"$error":"#N/A"}}]
["Select Manager BCi Global Moderate FoF A","MSGG","Boutique Collective Investments (Pty) Ltd",{"$f":"ROW()","v":183},null,null,{"$f":"VLOOKUP(F183,$C$2:$D$599,2,FALSE)","v":{"$error":"#N/A"}},{"$f":"IF(INDIRECT(\"c\" & (VLOOKUP(Rebalance!$D$26,$F$2:$G$48,2,FALSE)+ROW()-2))=Rebalance!$D$26,INDIRECT(\"a\" & (VLOOKUP(Rebalance!$D$26,$F$2:$G$48,2,FALSE)+ROW()-2)),\"\")","v":{"$error":"#N/A"}},{"$f":"IF(INDIRECT(\"c\" & (VLOOKUP(Rebalance!$D$27,$F$2:$G$48,2,FALSE)+ROW()-2))=Rebalance!$D$27,INDIRECT(\"a\" & (VLOOKUP(Rebalance!$D$27,$F$2:$G$48,2,FALSE)+ROW()-2)),\"\")","v":{"$error":"#N/A"}},{"$f":"IF(INDIRECT(\"c\" & (VLOOKUP(Rebalance!$D$28,$F$2:$G$48,2,FALSE)+ROW()-2))=Rebalance!$D$28,INDIRECT(\"a\" & (VLOOKUP(Rebalance!$D$28,$F$2:$G$48,2,FALSE)+ROW()-2)),\"\")","v":{"$error":"#N/A"}},{"$f":"IF(INDIRECT(\"c\" & (VLOOKUP(Rebalance!$D$29,$F$2:$G$48,2,FALSE)+ROW()-2))=Rebalance!$D$29,INDIRECT(\"a\" & (VLOOKUP(Rebalance!$D$29,$F$2:$G$48,2,FALSE)+ROW()-2)),\"\")","v":{"$error":"#N/A"}},{"$f":"IF(INDIRECT(\"c\" & (VLOOKUP(Rebalance!$D$30,$F$2:$G$48,2,FALSE)+ROW()-2))=Rebalance!$D$30,INDIRECT(\"a\" & (VLOOKUP(Rebalance!$D$30,$F$2:$G$48,2,FALSE)+ROW()-2)),\"\")","v":{"$error":"#N/A"}},{"$f":"IF(INDIRECT(\"c\" & (VLOOKUP(Rebalance!$D$31,$F$2:$G$48,2,FALSE)+ROW()-2))=Rebalance!$D$31,INDIRECT(\"a\" & (VLOOKUP(Rebalance!$D$31,$F$2:$G$48,2,FALSE)+ROW()-2)),\"\")","v":{"$error":"#N/A"}},{"$f":"IF(INDIRECT(\"c\" & (VLOOKUP(Rebalance!$D$32,$F$2:$G$48,2,FALSE)+ROW()-2))=Rebalance!$D$32,INDIRECT(\"a\" & (VLOOKUP(Rebalance!$D$32,$F$2:$G$48,2,FALSE)+ROW()-2)),\"\")","v":{"$error":"#N/A"}},{"$f":"IF(INDIRECT(\"c\" & (VLOOKUP(Rebalance!$D$33,$F$2:$G$48,2,FALSE)+ROW()-2))=Rebalance!$D$33,INDIRECT(\"a\" & (VLOOKUP(Rebalance!$D$33,$F$2:$G$48,2,FALSE)+ROW()-2)),\"\")","v":{"$error":"#N/A"}},{"$f":"IF(INDIRECT(\"c\" & (VLOOKUP(Rebalance!$D$34,$F$2:$G$48,2,FALSE)+ROW()-2))=Rebalance!$D$34,INDIRECT(\"a\" & (VLOOKUP(Rebalance!$D$34,$F$2:$G$48,2,FALSE)+ROW()-2)),\"\")","v":{"$error":"#N/A"}},{"$f":"IF(INDIRECT(\"c\" & (VLOOKUP(Rebalance!$D$35,$F$2:$G$48,2,FALSE)+ROW()-2))=Rebalance!$D$35,INDIRECT(\"a\" & (VLOOKUP(Rebalance!$D$35,$F$2:$G$48,2,FALSE)+ROW()-2)),\"\")","v":{"$error":"#N/A"}},{"$f":"IF(INDIRECT(\"c\" & (VLOOKUP(Rebalance!$D$36,$F$2:$G$48,2,FALSE)+ROW()-2))=Rebalance!$D$36,INDIRECT(\"a\" & (VLOOKUP(Rebalance!$D$36,$F$2:$G$48,2,FALSE)+ROW()-2)),\"\")","v":{"$error":"#N/A"}},{"$f":"IF(INDIRECT(\"c\" & (VLOOKUP(Rebalance!$D$37,$F$2:$G$48,2,FALSE)+ROW()-2))=Rebalance!$D$37,INDIRECT(\"a\" & (VLOOKUP(Rebalance!$D$37,$F$2:$G$48,2,FALSE)+ROW()-2)),\"\")","v":{"$error":"#N/A"}},{"$f":"IF(INDIRECT(\"c\" & (VLOOKUP(Rebalance!$D$38,$F$2:$G$48,2,FALSE)+ROW()-2))=Rebalance!$D$38,INDIRECT(\"a\" & (VLOOKUP(Rebalance!$D$38,$F$2:$G$48,2,FALSE)+ROW()-2)),\"\")","v":{"$error":"#N/A"}},{"$f":"IF(INDIRECT(\"c\" & (VLOOKUP(Rebalance!$D$39,$F$2:$G$48,2,FALSE)+ROW()-2))=Rebalance!$D$39,INDIRECT(\"a\" & (VLOOKUP(Rebalance!$D$39,$F$2:$G$48,2,FALSE)+ROW()-2)),\"\")","v":{"$error":"#N/A"}},{"$f":"IF(INDIRECT(\"c\" & (VLOOKUP(Rebalance!$D$40,$F$2:$G$48,2,FALSE)+ROW()-2))=Rebalance!$D$40,INDIRECT(\"a\" & (VLOOKUP(Rebalance!$D$40,$F$2:$G$48,2,FALSE)+ROW()-2)),\"\")","v":{"$error":"#N/A"}},{"$f":"IF(INDIRECT(\"c\" & (VLOOKUP(Rebalance!$D$52,$F$2:$G$48,2,FALSE)+ROW()-2))=Rebalance!$D$52,INDIRECT(\"a\" & (VLOOKUP(Rebalance!$D$52,$F$2:$G$48,2,FALSE)+ROW()-2)),\"\")","v":{"$error":"#N/A"}},{"$f":"IF(INDIRECT(\"c\" & (VLOOKUP(Rebalance!$D$53,$F$2:$G$48,2,FALSE)+ROW()-2))=Rebalance!$D$53,INDIRECT(\"a\" & (VLOOKUP(Rebalance!$D$53,$F$2:$G$48,2,FALSE)+ROW()-2)),\"\")","v":{"$error":"#N/A"}},{"$f":"IF(INDIRECT(\"c\" & (VLOOKUP(Rebalance!$D$54,$F$2:$G$48,2,FALSE)+ROW()-2))=Rebalance!$D$54,INDIRECT(\"a\" & (VLOOKUP(Rebalance!$D$54,$F$2:$G$48,2,FALSE)+ROW()-2)),\"\")","v":{"$error":"#N/A"}},{"$f":"IF(INDIRECT(\"c\" & (VLOOKUP(Rebalance!$D$55,$F$2:$G$48,2,FALSE)+ROW()-2))=Rebalance!$D$55,INDIRECT(\"a\" & (VLOOKUP(Rebalance!$D$55,$F$2:$G$48,2,FALSE)+ROW()-2)),\"\")","v":{"$error":"#N/A"}},{"$f":"IF(INDIRECT(\"c\" & (VLOOKUP(Rebalance!$D$56,$F$2:$G$48,2,FALSE)+ROW()-2))=Rebalance!$D$56,INDIRECT(\"a\" & (VLOOKUP(Rebalance!$D$56,$F$2:$G$48,2,FALSE)+ROW()-2)),\"\")","v":{"$error":"#N/A"}},{"$f":"IF(INDIRECT(\"c\" & (VLOOKUP(Rebalance!$D$57,$F$2:$G$48,2,FALSE)+ROW()-2))=Rebalance!$D$57,INDIRECT(\"a\" & (VLOOKUP(Rebalance!$D$57,$F$2:$G$48,2,FALSE)+ROW()-2)),\"\")","v":{"$error":"#N/A"}},{"$f":"IF(INDIRECT(\"c\" & (VLOOKUP(Rebalance!$D$58,$F$2:$G$48,2,FALSE)+ROW()-2))=Rebalance!$D$58,INDIRECT(\"a\" & (VLOOKUP(Rebalance!$D$58,$F$2:$G$48,2,FALSE)+ROW()-2)),\"\")","v":{"$error":"#N/A"}},{"$f":"IF(INDIRECT(\"c\" & (VLOOKUP(Rebalance!$D$59,$F$2:$G$48,2,FALSE)+ROW()-2))=Rebalance!$D$59,INDIRECT(\"a\" & (VLOOKUP(Rebalance!$D$59,$F$2:$G$48,2,FALSE)+ROW()-2)),\"\")","v":{"$error":"#N/A"}},{"$f":"IF(INDIRECT(\"c\" & (VLOOKUP(Rebalance!$D$60,$F$2:$G$48,2,FALSE)+ROW()-2))=Rebalance!$D$60,INDIRECT(\"a\" & (VLOOKUP(Rebalance!$D$60,$F$2:$G$48,2,FALSE)+ROW()-2)),\"\")","v":{"$error":"#N/A"}},{"$f":"IF(INDIRECT(\"c\" & (VLOOKUP(Rebalance!$D$61,$F$2:$G$48,2,FALSE)+ROW()-2))=Rebalance!$D$61,INDIRECT(\"a\" & (VLOOKUP(Rebalance!$D$61,$F$2:$G$48,2,FALSE)+ROW()-2)),\"\")","v":{"$error":"#N/A"}},{"$f":"IF(INDIRECT(\"c\" & (VLOOKUP(Rebalance!$D$62,$F$2:$G$48,2,FALSE)+ROW()-2))=Rebalance!$D$62,INDIRECT(\"a\" & (VLOOKUP(Rebalance!$D$62,$F$2:$G$48,2,FALSE)+ROW()-2)),\"\")","v":{"$error":"#N/A"}},{"$f":"IF(INDIRECT(\"c\" & (VLOOKUP(Rebalance!$D$63,$F$2:$G$48,2,FALSE)+ROW()-2))=Rebalance!$D$63,INDIRECT(\"a\" & (VLOOKUP(Rebalance!$D$63,$F$2:$G$48,2,FALSE)+ROW()-2)),\"\")","v":{"$error":"#N/A"}},{"$f":"IF(INDIRECT(\"c\" & (VLOOKUP(Rebalance!$D$64,$F$2:$G$48,2,FALSE)+ROW()-2))=Rebalance!$D$64,INDIRECT(\"a\" & (VLOOKUP(Rebalance!$D$64,$F$2:$G$48,2,FALSE)+ROW()-2)),\"\")","v":{"$error":"#N/A"}},{"$f":"IF(INDIRECT(\"c\" & (VLOOKUP(Rebalance!$D$65,$F$2:$G$48,2,FALSE)+ROW()-2))=Rebalance!$D$65,INDIRECT(\"a\" & (VLOOKUP(Rebalance!$D$65,$F$2:$G$48,2,FALSE)+ROW()-2)),\"\")","v":{"$error":"#N/A"}},{"$f":"IF(INDIRECT(\"c\" & (VLOOKUP(Rebalance!$D$66,$F$2:$G$48,2,FALSE)+ROW()-2))=Rebalance!$D$66,INDIRECT(\"a\" & (VLOOKUP(Rebalance!$D$66,$F$2:$G$48,2,FALSE)+ROW()-2)),\"\")","v":{"$error":"#N/A"}}]
["Select Manager BCi Prudential FoF A","MSMP","Boutique Collective Investments (Pty) Ltd",{"$f":"ROW()","v":184},null,null,{"$f":"VLOOKUP(F184,$C$2:$D$599,2,FALSE)","v":{"$error":"#N/A"}},{"$f":"IF(INDIRECT(\"c\" & (VLOOKUP(Rebalance!$D$26,$F$2:$G$48,2,FALSE)+ROW()-2))=Rebalance!$D$26,INDIRECT(\"a\" & (VLOOKUP(Rebalance!$D$26,$F$2:$G$48,2,FALSE)+ROW()-2)),\"\")","v":{"$error":"#N/A"}},{"$f":"IF(INDIRECT(\"c\" & (VLOOKUP(Rebalance!$D$27,$F$2:$G$48,2,FALSE)+ROW()-2))=Rebalance!$D$27,INDIRECT(\"a\" & (VLOOKUP(Rebalance!$D$27,$F$2:$G$48,2,FALSE)+ROW()-2)),\"\")","v":{"$error":"#N/A"}},{"$f":"IF(INDIRECT(\"c\" & (VLOOKUP(Rebalance!$D$28,$F$2:$G$48,2,FALSE)+ROW()-2))=Rebalance!$D$28,INDIRECT(\"a\" & (VLOOKUP(Rebalance!$D$28,$F$2:$G$48,2,FALSE)+ROW()-2)),\"\")","v":{"$error":"#N/A"}},{"$f":"IF(INDIRECT(\"c\" & (VLOOKUP(Rebalance!$D$29,$F$2:$G$48,2,FALSE)+ROW()-2))=Rebalance!$D$29,INDIRECT(\"a\" & (VLOOKUP(Rebalance!$D$29,$F$2:$G$48,2,FALSE)+ROW()-2)),\"\")","v":{"$error":"#N/A"}},{"$f":"IF(INDIRECT(\"c\" & (VLOOKUP(Rebalance!$D$30,$F$2:$G$48,2,FALSE)+ROW()-2))=Rebalance!$D$30,INDIRECT(\"a\" & (VLOOKUP(Rebalance!$D$30,$F$2:$G$48,2,FALSE)+ROW()-2)),\"\")","v":{"$error":"#N/A"}},{"$f":"IF(INDIRECT(\"c\" & (VLOOKUP(Rebalance!$D$31,$F$2:$G$48,2,FALSE)+ROW()-2))=Rebalance!$D$31,INDIRECT(\"a\" & (VLOOKUP(Rebalance!$D$31,$F$2:$G$48,2,FALSE)+ROW()-2)),\"\")","v":{"$error":"#N/A"}},{"$f":"IF(INDIRECT(\"c\" & (VLOOKUP(Rebalance!$D$32,$F$2:$G$48,2,FALSE)+ROW()-2))=Rebalance!$D$32,INDIRECT(\"a\" & (VLOOKUP(Rebalance!$D$32,$F$2:$G$48,2,FALSE)+ROW()-2)),\"\")","v":{"$error":"#N/A"}},{"$f":"IF(INDIRECT(\"c\" & (VLOOKUP(Rebalance!$D$33,$F$2:$G$48,2,FALSE)+ROW()-2))=Rebalance!$D$33,INDIRECT(\"a\" & (VLOOKUP(Rebalance!$D$33,$F$2:$G$48,2,FALSE)+ROW()-2)),\"\")","v":{"$error":"#N/A"}},{"$f":"IF(INDIRECT(\"c\" & (VLOOKUP(Rebalance!$D$34,$F$2:$G$48,2,FALSE)+ROW()-2))=Rebalance!$D$34,INDIRECT(\"a\" & (VLOOKUP(Rebalance!$D$34,$F$2:$G$48,2,FALSE)+ROW()-2)),\"\")","v":{"$error":"#N/A"}},{"$f":"IF(INDIRECT(\"c\" & (VLOOKUP(Rebalance!$D$35,$F$2:$G$48,2,FALSE)+ROW()-2))=Rebalance!$D$35,INDIRECT(\"a\" & (VLOOKUP(Rebalance!$D$35,$F$2:$G$48,2,FALSE)+ROW()-2)),\"\")","v":{"$error":"#N/A"}},{"$f":"IF(INDIRECT(\"c\" & (VLOOKUP(Rebalance!$D$36,$F$2:$G$48,2,FALSE)+ROW()-2))=Rebalance!$D$36,INDIRECT(\"a\" & (VLOOKUP(Rebalance!$D$36,$F$2:$G$48,2,FALSE)+ROW()-2)),\"\")","v":{"$error":"#N/A"}},{"$f":"IF(INDIRECT(\"c\" & (VLOOKUP(Rebalance!$D$37,$F$2:$G$48,2,FALSE)+ROW()-2))=Rebalance!$D$37,INDIRECT(\"a\" & (VLOOKUP(Rebalance!$D$37,$F$2:$G$48,2,FALSE)+ROW()-2)),\"\")","v":{"$error":"#N/A"}},{"$f":"IF(INDIRECT(\"c\" & (VLOOKUP(Rebalance!$D$38,$F$2:$G$48,2,FALSE)+ROW()-2))=Rebalance!$D$38,INDIRECT(\"a\" & (VLOOKUP(Rebalance!$D$38,$F$2:$G$48,2,FALSE)+ROW()-2)),\"\")","v":{"$error":"#N/A"}},{"$f":"IF(INDIRECT(\"c\" & (VLOOKUP(Rebalance!$D$39,$F$2:$G$48,2,FALSE)+ROW()-2))=Rebalance!$D$39,INDIRECT(\"a\" & (VLOOKUP(Rebalance!$D$39,$F$2:$G$48,2,FALSE)+ROW()-2)),\"\")","v":{"$error":"#N/A"}},{"$f":"IF(INDIRECT(\"c\" & (VLOOKUP(Rebalance!$D$40,$F$2:$G$48,2,FALSE)+ROW()-2))=Rebalance!$D$40,INDIRECT(\"a\" & (VLOOKUP(Rebalance!$D$40,$F$2:$G$48,2,FALSE)+ROW()-2)),\"\")","v":{"$error":"#N/A"}},{"$f":"IF(INDIRECT(\"c\" & (VLOOKUP(Rebalance!$D$52,$F$2:$G$48,2,FALSE)+ROW()-2))=Rebalance!$D$52,INDIRECT(\"a\" & (VLOOKUP(Rebalance!$D$52,$F$2:$G$48,2,FALSE)+ROW()-2)),\"\")","v":{"$error":"#N/A"}},{"$f":"IF(INDIRECT(\"c\" & (VLOOKUP(Rebalance!$D$53,$F$2:$G$48,2,FALSE)+ROW()-2))=Rebalance!$D$53,INDIRECT(\"a\" & (VLOOKUP(Rebalance!$D$53,$F$2:$G$48,2,FALSE)+ROW()-2)),\"\")","v":{"$error":"#N/A"}},{"$f":"IF(INDIRECT(\"c\" & (VLOOKUP(Rebalance!$D$54,$F$2:$G$48,2,FALSE)+ROW()-2))=Rebalance!$D$54,INDIRECT(\"a\" & (VLOOKUP(Rebalance!$D$54,$F$2:$G$48,2,FALSE)+ROW()-2)),\"\")","v":{"$error":"#N/A"}},{"$f":"IF(INDIRECT(\"c\" & (VLOOKUP(Rebalance!$D$55,$F$2:$G$48,2,FALSE)+ROW()-2))=Rebalance!$D$55,INDIRECT(\"a\" & (VLOOKUP(Rebalance!$D$55,$F$2:$G$48,2,FALSE)+ROW()-2)),\"\")","v":{"$error":"#N/A"}},{"$f":"IF(INDIRECT(\"c\" & (VLOOKUP(Rebalance!$D$56,$F$2:$G$48,2,FALSE)+ROW()-2))=Rebalance!$D$56,INDIRECT(\"a\" & (VLOOKUP(Rebalance!$D$56,$F$2:$G$48,2,FALSE)+ROW()-2)),\"\")","v":{"$error":"#N/A"}},{"$f":"IF(INDIRECT(\"c\" & (VLOOKUP(Rebalance!$D$57,$F$2:$G$48,2,FALSE)+ROW()-2))=Rebalance!$D$57,INDIRECT(\"a\" & (VLOOKUP(Rebalance!$D$57,$F$2:$G$48,2,FALSE)+ROW()-2)),\"\")","v":{"$error":"#N/A"}},{"$f":"IF(INDIRECT(\"c\" & (VLOOKUP(Rebalance!$D$58,$F$2:$G$48,2,FALSE)+ROW()-2))=Rebalance!$D$58,INDIRECT(\"a\" & (VLOOKUP(Rebalance!$D$58,$F$2:$G$48,2,FALSE)+ROW()-2)),\"\")","v":{"$error":"#N/A"}},{"$f":"IF(INDIRECT(\"c\" & (VLOOKUP(Rebalance!$D$59,$F$2:$G$48,2,FALSE)+ROW()-2))=Rebalance!$D$59,INDIRECT(\"a\" & (VLOOKUP(Rebalance!$D$59,$F$2:$G$48,2,FALSE)+ROW()-2)),\"\")","v":{"$error":"#N/A"}},{"$f":"IF(INDIRECT(\"c\" & (VLOOKUP(Rebalance!$D$60,$F$2:$G$48,2,FALSE)+ROW()-2))=Rebalance!$D$60,INDIRECT(\"a\" & (VLOOKUP(Rebalance!$D$60,$F$2:$G$48,2,FALSE)+ROW()-2)),\"\")","v":{"$error":"#N/A"}},{"$f":"IF(INDIRECT(\"c\" & (VLOOKUP(Rebalance!$D$61,$F$2:$G$48,2,FALSE)+ROW()-2))=Rebalance!$D$61,INDIRECT(\"a\" & (VLOOKUP(Rebalance!$D$61,$F$2:$G$48,2,FALSE)+ROW()-2)),\"\")","v":{"$error":"#N/A"}},{"$f":"IF(INDIRECT(\"c\" & (VLOOKUP(Rebalance!$D$62,$F$2:$G$48,2,FALSE)+ROW()-2))=Rebalance!$D$62,INDIRECT(\"a\" & (VLOOKUP(Rebalance!$D$62,$F$2:$G$48,2,FALSE)+ROW()-2)),\"\")","v":{"$error":"#N/A"}},{"$f":"IF(INDIRECT(\"c\" & (VLOOKUP(Rebalance!$D$63,$F$2:$G$48,2,FALSE)+ROW()-2))=Rebalance!$D$63,INDIRECT(\"a\" & (VLOOKUP(Rebalance!$D$63,$F$2:$G$48,2,FALSE)+ROW()-2)),\"\")","v":{"$error":"#N/A"}},{"$f":"IF(INDIRECT(\"c\" & (VLOOKUP(Rebalance!$D$64,$F$2:$G$48,2,FALSE)+ROW()-2))=Rebalance!$D$64,INDIRECT(\"a\" & (VLOOKUP(Rebalance!$D$64,$F$2:$G$48,2,FALSE)+ROW()-2)),\"\")","v":{"$error":"#N/A"}},{"$f":"IF(INDIRECT(\"c\" & (VLOOKUP(Rebalance!$D$65,$F$2:$G$48,2,FALSE)+ROW()-2))=Rebalance!$D$65,INDIRECT(\"a\" & (VLOOKUP(Rebalance!$D$65,$F$2:$G$48,2,FALSE)+ROW()-2)),\"\")","v":{"$error":"#N/A"}},{"$f":"IF(INDIRECT(\"c\" & (VLOOKUP(Rebalance!$D$66,$F$2:$G$48,2,FALSE)+ROW()-2))=Rebalance!$D$66,INDIRECT(\"a\" & (VLOOKUP(Rebalance!$D$66,$F$2:$G$48,2,FALSE)+ROW()-2)),\"\")","v":{"$error":"#N/A"}}]
["Sharenet MM BCI Cautious Fund of Funds A","SBCICA","Boutique Collective Investments (Pty) Ltd",{"$f":"ROW()","v":185},null,null,{"$f":"VLOOKUP(F185,$C$2:$D$599,2,FALSE)","v":{"$error":"#N/A"}},{"$f":"IF(INDIRECT(\"c\" & (VLOOKUP(Rebalance!$D$26,$F$2:$G$48,2,FALSE)+ROW()-2))=Rebalance!$D$26,INDIRECT(\"a\" & (VLOOKUP(Rebalance!$D$26,$F$2:$G$48,2,FALSE)+ROW()-2)),\"\")","v":{"$error":"#N/A"}},{"$f":"IF(INDIRECT(\"c\" & (VLOOKUP(Rebalance!$D$27,$F$2:$G$48,2,FALSE)+ROW()-2))=Rebalance!$D$27,INDIRECT(\"a\" & (VLOOKUP(Rebalance!$D$27,$F$2:$G$48,2,FALSE)+ROW()-2)),\"\")","v":{"$error":"#N/A"}},{"$f":"IF(INDIRECT(\"c\" & (VLOOKUP(Rebalance!$D$28,$F$2:$G$48,2,FALSE)+ROW()-2))=Rebalance!$D$28,INDIRECT(\"a\" & (VLOOKUP(Rebalance!$D$28,$F$2:$G$48,2,FALSE)+ROW()-2)),\"\")","v":{"$error":"#N/A"}},{"$f":"IF(INDIRECT(\"c\" & (VLOOKUP(Rebalance!$D$29,$F$2:$G$48,2,FALSE)+ROW()-2))=Rebalance!$D$29,INDIRECT(\"a\" & (VLOOKUP(Rebalance!$D$29,$F$2:$G$48,2,FALSE)+ROW()-2)),\"\")","v":{"$error":"#N/A"}},{"$f":"IF(INDIRECT(\"c\" & (VLOOKUP(Rebalance!$D$30,$F$2:$G$48,2,FALSE)+ROW()-2))=Rebalance!$D$30,INDIRECT(\"a\" & (VLOOKUP(Rebalance!$D$30,$F$2:$G$48,2,FALSE)+ROW()-2)),\"\")","v":{"$error":"#N/A"}},{"$f":"IF(INDIRECT(\"c\" & (VLOOKUP(Rebalance!$D$31,$F$2:$G$48,2,FALSE)+ROW()-2))=Rebalance!$D$31,INDIRECT(\"a\" & (VLOOKUP(Rebalance!$D$31,$F$2:$G$48,2,FALSE)+ROW()-2)),\"\")","v":{"$error":"#N/A"}},{"$f":"IF(INDIRECT(\"c\" & (VLOOKUP(Rebalance!$D$32,$F$2:$G$48,2,FALSE)+ROW()-2))=Rebalance!$D$32,INDIRECT(\"a\" & (VLOOKUP(Rebalance!$D$32,$F$2:$G$48,2,FALSE)+ROW()-2)),\"\")","v":{"$error":"#N/A"}},{"$f":"IF(INDIRECT(\"c\" & (VLOOKUP(Rebalance!$D$33,$F$2:$G$48,2,FALSE)+ROW()-2))=Rebalance!$D$33,INDIRECT(\"a\" & (VLOOKUP(Rebalance!$D$33,$F$2:$G$48,2,FALSE)+ROW()-2)),\"\")","v":{"$error":"#N/A"}},{"$f":"IF(INDIRECT(\"c\" & (VLOOKUP(Rebalance!$D$34,$F$2:$G$48,2,FALSE)+ROW()-2))=Rebalance!$D$34,INDIRECT(\"a\" & (VLOOKUP(Rebalance!$D$34,$F$2:$G$48,2,FALSE)+ROW()-2)),\"\")","v":{"$error":"#N/A"}},{"$f":"IF(INDIRECT(\"c\" & (VLOOKUP(Rebalance!$D$35,$F$2:$G$48,2,FALSE)+ROW()-2))=Rebalance!$D$35,INDIRECT(\"a\" & (VLOOKUP(Rebalance!$D$35,$F$2:$G$48,2,FALSE)+ROW()-2)),\"\")","v":{"$error":"#N/A"}},{"$f":"IF(INDIRECT(\"c\" & (VLOOKUP(Rebalance!$D$36,$F$2:$G$48,2,FALSE)+ROW()-2))=Rebalance!$D$36,INDIRECT(\"a\" & (VLOOKUP(Rebalance!$D$36,$F$2:$G$48,2,FALSE)+ROW()-2)),\"\")","v":{"$error":"#N/A"}},{"$f":"IF(INDIRECT(\"c\" & (VLOOKUP(Rebalance!$D$37,$F$2:$G$48,2,FALSE)+ROW()-2))=Rebalance!$D$37,INDIRECT(\"a\" & (VLOOKUP(Rebalance!$D$37,$F$2:$G$48,2,FALSE)+ROW()-2)),\"\")","v":{"$error":"#N/A"}},{"$f":"IF(INDIRECT(\"c\" & (VLOOKUP(Rebalance!$D$38,$F$2:$G$48,2,FALSE)+ROW()-2))=Rebalance!$D$38,INDIRECT(\"a\" & (VLOOKUP(Rebalance!$D$38,$F$2:$G$48,2,FALSE)+ROW()-2)),\"\")","v":{"$error":"#N/A"}},{"$f":"IF(INDIRECT(\"c\" & (VLOOKUP(Rebalance!$D$39,$F$2:$G$48,2,FALSE)+ROW()-2))=Rebalance!$D$39,INDIRECT(\"a\" & (VLOOKUP(Rebalance!$D$39,$F$2:$G$48,2,FALSE)+ROW()-2)),\"\")","v":{"$error":"#N/A"}},{"$f":"IF(INDIRECT(\"c\" & (VLOOKUP(Rebalance!$D$40,$F$2:$G$48,2,FALSE)+ROW()-2))=Rebalance!$D$40,INDIRECT(\"a\" & (VLOOKUP(Rebalance!$D$40,$F$2:$G$48,2,FALSE)+ROW()-2)),\"\")","v":{"$error":"#N/A"}},{"$f":"IF(INDIRECT(\"c\" & (VLOOKUP(Rebalance!$D$52,$F$2:$G$48,2,FALSE)+ROW()-2))=Rebalance!$D$52,INDIRECT(\"a\" & (VLOOKUP(Rebalance!$D$52,$F$2:$G$48,2,FALSE)+ROW()-2)),\"\")","v":{"$error":"#N/A"}},{"$f":"IF(INDIRECT(\"c\" & (VLOOKUP(Rebalance!$D$53,$F$2:$G$48,2,FALSE)+ROW()-2))=Rebalance!$D$53,INDIRECT(\"a\" & (VLOOKUP(Rebalance!$D$53,$F$2:$G$48,2,FALSE)+ROW()-2)),\"\")","v":{"$error":"#N/A"}},{"$f":"IF(INDIRECT(\"c\" & (VLOOKUP(Rebalance!$D$54,$F$2:$G$48,2,FALSE)+ROW()-2))=Rebalance!$D$54,INDIRECT(\"a\" & (VLOOKUP(Rebalance!$D$54,$F$2:$G$48,2,FALSE)+ROW()-2)),\"\")","v":{"$error":"#N/A"}},{"$f":"IF(INDIRECT(\"c\" & (VLOOKUP(Rebalance!$D$55,$F$2:$G$48,2,FALSE)+ROW()-2))=Rebalance!$D$55,INDIRECT(\"a\" & (VLOOKUP(Rebalance!$D$55,$F$2:$G$48,2,FALSE)+ROW()-2)),\"\")","v":{"$error":"#N/A"}},{"$f":"IF(INDIRECT(\"c\" & (VLOOKUP(Rebalance!$D$56,$F$2:$G$48,2,FALSE)+ROW()-2))=Rebalance!$D$56,INDIRECT(\"a\" & (VLOOKUP(Rebalance!$D$56,$F$2:$G$48,2,FALSE)+ROW()-2)),\"\")","v":{"$error":"#N/A"}},{"$f":"IF(INDIRECT(\"c\" & (VLOOKUP(Rebalance!$D$57,$F$2:$G$48,2,FALSE)+ROW()-2))=Rebalance!$D$57,INDIRECT(\"a\" & (VLOOKUP(Rebalance!$D$57,$F$2:$G$48,2,FALSE)+ROW()-2)),\"\")","v":{"$error":"#N/A"}},{"$f":"IF(INDIRECT(\"c\" & (VLOOKUP(Rebalance!$D$58,$F$2:$G$48,2,FALSE)+ROW()-2))=Rebalance!$D$58,INDIRECT(\"a\" & (VLOOKUP(Rebalance!$D$58,$F$2:$G$48,2,FALSE)+ROW()-2)),\"\")","v":{"$error":"#N/A"}},{"$f":"IF(INDIRECT(\"c\" & (VLOOKUP(Rebalance!$D$59,$F$2:$G$48,2,FALSE)+ROW()-2))=Rebalance!$D$59,INDIRECT(\"a\" & (VLOOKUP(Rebalance!$D$59,$F$2:$G$48,2,FALSE)+ROW()-2)),\"\")","v":{"$error":"#N/A"}},{"$f":"IF(INDIRECT(\"c\" & (VLOOKUP(Rebalance!$D$60,$F$2:$G$48,2,FALSE)+ROW()-2))=Rebalance!$D$60,INDIRECT(\"a\" & (VLOOKUP(Rebalance!$D$60,$F$2:$G$48,2,FALSE)+ROW()-2)),\"\")","v":{"$error":"#N/A"}},{"$f":"IF(INDIRECT(\"c\" & (VLOOKUP(Rebalance!$D$61,$F$2:$G$48,2,FALSE)+ROW()-2))=Rebalance!$D$61,INDIRECT(\"a\" & (VLOOKUP(Rebalance!$D$61,$F$2:$G$48,2,FALSE)+ROW()-2)),\"\")","v":{"$error":"#N/A"}},{"$f":"IF(INDIRECT(\"c\" & (VLOOKUP(Rebalance!$D$62,$F$2:$G$48,2,FALSE)+ROW()-2))=Rebalance!$D$62,INDIRECT(\"a\" & (VLOOKUP(Rebalance!$D$62,$F$2:$G$48,2,FALSE)+ROW()-2)),\"\")","v":{"$error":"#N/A"}},{"$f":"IF(INDIRECT(\"c\" & (VLOOKUP(Rebalance!$D$63,$F$2:$G$48,2,FALSE)+ROW()-2))=Rebalance!$D$63,INDIRECT(\"a\" & (VLOOKUP(Rebalance!$D$63,$F$2:$G$48,2,FALSE)+ROW()-2)),\"\")","v":{"$error":"#N/A"}},{"$f":"IF(INDIRECT(\"c\" & (VLOOKUP(Rebalance!$D$64,$F$2:$G$48,2,FALSE)+ROW()-2))=Rebalance!$D$64,INDIRECT(\"a\" & (VLOOKUP(Rebalance!$D$64,$F$2:$G$48,2,FALSE)+ROW()-2)),\"\")","v":{"$error":"#N/A"}},{"$f":"IF(INDIRECT(\"c\" & (VLOOKUP(Rebalance!$D$65,$F$2:$G$48,2,FALSE)+ROW()-2))=Rebalance!$D$65,INDIRECT(\"a\" & (VLOOKUP(Rebalance!$D$65,$F$2:$G$48,2,FALSE)+ROW()-2)),\"\")","v":{"$error":"#N/A"}},{"$f":"IF(INDIRECT(\"c\" & (VLOOKUP(Rebalance!$D$66,$F$2:$G$48,2,FALSE)+ROW()-2))=Rebalance!$D$66,INDIRECT(\"a\" & (VLOOKUP(Rebalance!$D$66,$F$2:$G$48,2,FALSE)+ROW()-2)),\"\")","v":{"$error":"#N/A"}}]
["Skyblue BCI Cumulus Moderate FoF A","MBIC","Boutique Collective Investments (Pty) Ltd",{"$f":"ROW()","v":186},null,null,{"$f":"VLOOKUP(F186,$C$2:$D$599,2,FALSE)","v":{"$error":"#N/A"}},{"$f":"IF(INDIRECT(\"c\" & (VLOOKUP(Rebalance!$D$26,$F$2:$G$48,2,FALSE)+ROW()-2))=Rebalance!$D$26,INDIRECT(\"a\" & (VLOOKUP(Rebalance!$D$26,$F$2:$G$48,2,FALSE)+ROW()-2)),\"\")","v":{"$error":"#N/A"}},{"$f":"IF(INDIRECT(\"c\" & (VLOOKUP(Rebalance!$D$27,$F$2:$G$48,2,FALSE)+ROW()-2))=Rebalance!$D$27,INDIRECT(\"a\" & (VLOOKUP(Rebalance!$D$27,$F$2:$G$48,2,FALSE)+ROW()-2)),\"\")","v":{"$error":"#N/A"}},{"$f":"IF(INDIRECT(\"c\" & (VLOOKUP(Rebalance!$D$28,$F$2:$G$48,2,FALSE)+ROW()-2))=Rebalance!$D$28,INDIRECT(\"a\" & (VLOOKUP(Rebalance!$D$28,$F$2:$G$48,2,FALSE)+ROW()-2)),\"\")","v":{"$error":"#N/A"}},{"$f":"IF(INDIRECT(\"c\" & (VLOOKUP(Rebalance!$D$29,$F$2:$G$48,2,FALSE)+ROW()-2))=Rebalance!$D$29,INDIRECT(\"a\" & (VLOOKUP(Rebalance!$D$29,$F$2:$G$48,2,FALSE)+ROW()-2)),\"\")","v":{"$error":"#N/A"}},{"$f":"IF(INDIRECT(\"c\" & (VLOOKUP(Rebalance!$D$30,$F$2:$G$48,2,FALSE)+ROW()-2))=Rebalance!$D$30,INDIRECT(\"a\" & (VLOOKUP(Rebalance!$D$30,$F$2:$G$48,2,FALSE)+ROW()-2)),\"\")","v":{"$error":"#N/A"}},{"$f":"IF(INDIRECT(\"c\" & (VLOOKUP(Rebalance!$D$31,$F$2:$G$48,2,FALSE)+ROW()-2))=Rebalance!$D$31,INDIRECT(\"a\" & (VLOOKUP(Rebalance!$D$31,$F$2:$G$48,2,FALSE)+ROW()-2)),\"\")","v":{"$error":"#N/A"}},{"$f":"IF(INDIRECT(\"c\" & (VLOOKUP(Rebalance!$D$32,$F$2:$G$48,2,FALSE)+ROW()-2))=Rebalance!$D$32,INDIRECT(\"a\" & (VLOOKUP(Rebalance!$D$32,$F$2:$G$48,2,FALSE)+ROW()-2)),\"\")","v":{"$error":"#N/A"}},{"$f":"IF(INDIRECT(\"c\" & (VLOOKUP(Rebalance!$D$33,$F$2:$G$48,2,FALSE)+ROW()-2))=Rebalance!$D$33,INDIRECT(\"a\" & (VLOOKUP(Rebalance!$D$33,$F$2:$G$48,2,FALSE)+ROW()-2)),\"\")","v":{"$error":"#N/A"}},{"$f":"IF(INDIRECT(\"c\" & (VLOOKUP(Rebalance!$D$34,$F$2:$G$48,2,FALSE)+ROW()-2))=Rebalance!$D$34,INDIRECT(\"a\" & (VLOOKUP(Rebalance!$D$34,$F$2:$G$48,2,FALSE)+ROW()-2)),\"\")","v":{"$error":"#N/A"}},{"$f":"IF(INDIRECT(\"c\" & (VLOOKUP(Rebalance!$D$35,$F$2:$G$48,2,FALSE)+ROW()-2))=Rebalance!$D$35,INDIRECT(\"a\" & (VLOOKUP(Rebalance!$D$35,$F$2:$G$48,2,FALSE)+ROW()-2)),\"\")","v":{"$error":"#N/A"}},{"$f":"IF(INDIRECT(\"c\" & (VLOOKUP(Rebalance!$D$36,$F$2:$G$48,2,FALSE)+ROW()-2))=Rebalance!$D$36,INDIRECT(\"a\" & (VLOOKUP(Rebalance!$D$36,$F$2:$G$48,2,FALSE)+ROW()-2)),\"\")","v":{"$error":"#N/A"}},{"$f":"IF(INDIRECT(\"c\" & (VLOOKUP(Rebalance!$D$37,$F$2:$G$48,2,FALSE)+ROW()-2))=Rebalance!$D$37,INDIRECT(\"a\" & (VLOOKUP(Rebalance!$D$37,$F$2:$G$48,2,FALSE)+ROW()-2)),\"\")","v":{"$error":"#N/A"}},{"$f":"IF(INDIRECT(\"c\" & (VLOOKUP(Rebalance!$D$38,$F$2:$G$48,2,FALSE)+ROW()-2))=Rebalance!$D$38,INDIRECT(\"a\" & (VLOOKUP(Rebalance!$D$38,$F$2:$G$48,2,FALSE)+ROW()-2)),\"\")","v":{"$error":"#N/A"}},{"$f":"IF(INDIRECT(\"c\" & (VLOOKUP(Rebalance!$D$39,$F$2:$G$48,2,FALSE)+ROW()-2))=Rebalance!$D$39,INDIRECT(\"a\" & (VLOOKUP(Rebalance!$D$39,$F$2:$G$48,2,FALSE)+ROW()-2)),\"\")","v":{"$error":"#N/A"}},{"$f":"IF(INDIRECT(\"c\" & (VLOOKUP(Rebalance!$D$40,$F$2:$G$48,2,FALSE)+ROW()-2))=Rebalance!$D$40,INDIRECT(\"a\" & (VLOOKUP(Rebalance!$D$40,$F$2:$G$48,2,FALSE)+ROW()-2)),\"\")","v":{"$error":"#N/A"}},{"$f":"IF(INDIRECT(\"c\" & (VLOOKUP(Rebalance!$D$52,$F$2:$G$48,2,FALSE)+ROW()-2))=Rebalance!$D$52,INDIRECT(\"a\" & (VLOOKUP(Rebalance!$D$52,$F$2:$G$48,2,FALSE)+ROW()-2)),\"\")","v":{"$error":"#N/A"}},{"$f":"IF(INDIRECT(\"c\" & (VLOOKUP(Rebalance!$D$53,$F$2:$G$48,2,FALSE)+ROW()-2))=Rebalance!$D$53,INDIRECT(\"a\" & (VLOOKUP(Rebalance!$D$53,$F$2:$G$48,2,FALSE)+ROW()-2)),\"\")","v":{"$error":"#N/A"}},{"$f":"IF(INDIRECT(\"c\" & (VLOOKUP(Rebalance!$D$54,$F$2:$G$48,2,FALSE)+ROW()-2))=Rebalance!$D$54,INDIRECT(\"a\" & (VLOOKUP(Rebalance!$D$54,$F$2:$G$48,2,FALSE)+ROW()-2)),\"\")","v":{"$error":"#N/A"}},{"$f":"IF(INDIRECT(\"c\" & (VLOOKUP(Rebalance!$D$55,$F$2:$G$48,2,FALSE)+ROW()-2))=Rebalance!$D$55,INDIRECT(\"a\" & (VLOOKUP(Rebalance!$D$55,$F$2:$G$48,2,FALSE)+ROW()-2)),\"\")","v":{"$error":"#N/A"}},{"$f":"IF(INDIRECT(\"c\" & (VLOOKUP(Rebalance!$D$56,$F$2:$G$48,2,FALSE)+ROW()-2))=Rebalance!$D$56,INDIRECT(\"a\" & (VLOOKUP(Rebalance!$D$56,$F$2:$G$48,2,FALSE)+ROW()-2)),\"\")","v":{"$error":"#N/A"}},{"$f":"IF(INDIRECT(\"c\" & (VLOOKUP(Rebalance!$D$57,$F$2:$G$48,2,FALSE)+ROW()-2))=Rebalance!$D$57,INDIRECT(\"a\" & (VLOOKUP(Rebalance!$D$57,$F$2:$G$48,2,FALSE)+ROW()-2)),\"\")","v":{"$error":"#N/A"}},{"$f":"IF(INDIRECT(\"c\" & (VLOOKUP(Rebalance!$D$58,$F$2:$G$48,2,FALSE)+ROW()-2))=Rebalance!$D$58,INDIRECT(\"a\" & (VLOOKUP(Rebalance!$D$58,$F$2:$G$48,2,FALSE)+ROW()-2)),\"\")","v":{"$error":"#N/A"}},{"$f":"IF(INDIRECT(\"c\" & (VLOOKUP(Rebalance!$D$59,$F$2:$G$48,2,FALSE)+ROW()-2))=Rebalance!$D$59,INDIRECT(\"a\" & (VLOOKUP(Rebalance!$D$59,$F$2:$G$48,2,FALSE)+ROW()-2)),\"\")","v":{"$error":"#N/A"}},{"$f":"IF(INDIRECT(\"c\" & (VLOOKUP(Rebalance!$D$60,$F$2:$G$48,2,FALSE)+ROW()-2))=Rebalance!$D$60,INDIRECT(\"a\" & (VLOOKUP(Rebalance!$D$60,$F$2:$G$48,2,FALSE)+ROW()-2)),\"\")","v":{"$error":"#N/A"}},{"$f":"IF(INDIRECT(\"c\" & (VLOOKUP(Rebalance!$D$61,$F$2:$G$48,2,FALSE)+ROW()-2))=Rebalance!$D$61,INDIRECT(\"a\" & (VLOOKUP(Rebalance!$D$61,$F$2:$G$48,2,FALSE)+ROW()-2)),\"\")","v":{"$error":"#N/A"}},{"$f":"IF(INDIRECT(\"c\" & (VLOOKUP(Rebalance!$D$62,$F$2:$G$48,2,FALSE)+ROW()-2))=Rebalance!$D$62,INDIRECT(\"a\" & (VLOOKUP(Rebalance!$D$62,$F$2:$G$48,2,FALSE)+ROW()-2)),\"\")","v":{"$error":"#N/A"}},{"$f":"IF(INDIRECT(\"c\" & (VLOOKUP(Rebalance!$D$63,$F$2:$G$48,2,FALSE)+ROW()-2))=Rebalance!$D$63,INDIRECT(\"a\" & (VLOOKUP(Rebalance!$D$63,$F$2:$G$48,2,FALSE)+ROW()-2)),\"\")","v":{"$error":"#N/A"}},{"$f":"IF(INDIRECT(\"c\" & (VLOOKUP(Rebalance!$D$64,$F$2:$G$48,2,FALSE)+ROW()-2))=Rebalance!$D$64,INDIRECT(\"a\" & (VLOOKUP(Rebalance!$D$64,$F$2:$G$48,2,FALSE)+ROW()-2)),\"\")","v":{"$error":"#N/A"}},{"$f":"IF(INDIRECT(\"c\" & (VLOOKUP(Rebalance!$D$65,$F$2:$G$48,2,FALSE)+ROW()-2))=Rebalance!$D$65,INDIRECT(\"a\" & (VLOOKUP(Rebalance!$D$65,$F$2:$G$48,2,FALSE)+ROW()-2)),\"\")","v":{"$error":"#N/A"}},{"$f":"IF(INDIRECT(\"c\" & (VLOOKUP(Rebalance!$D$66,$F$2:$G$48,2,FALSE)+ROW()-2))=Rebalance!$D$66,INDIRECT(\"a\" & (VLOOKUP(Rebalance!$D$66,$F$2:$G$48,2,FALSE)+ROW()-2)),\"\")","v":{"$error":"#N/A"}}]
["Skyblue BCI Kimberlite Cautious FoF A","MBIK","Boutique Collective Investments (Pty) Ltd",{"$f":"ROW()","v":187},null,null,{"$f":"VLOOKUP(F187,$C$2:$D$599,2,FALSE)","v":{"$error":"#N/A"}},{"$f":"IF(INDIRECT(\"c\" & (VLOOKUP(Rebalance!$D$26,$F$2:$G$48,2,FALSE)+ROW()-2))=Rebalance!$D$26,INDIRECT(\"a\" & (VLOOKUP(Rebalance!$D$26,$F$2:$G$48,2,FALSE)+ROW()-2)),\"\")","v":{"$error":"#N/A"}},{"$f":"IF(INDIRECT(\"c\" & (VLOOKUP(Rebalance!$D$27,$F$2:$G$48,2,FALSE)+ROW()-2))=Rebalance!$D$27,INDIRECT(\"a\" & (VLOOKUP(Rebalance!$D$27,$F$2:$G$48,2,FALSE)+ROW()-2)),\"\")","v":{"$error":"#N/A"}},{"$f":"IF(INDIRECT(\"c\" & (VLOOKUP(Rebalance!$D$28,$F$2:$G$48,2,FALSE)+ROW()-2))=Rebalance!$D$28,INDIRECT(\"a\" & (VLOOKUP(Rebalance!$D$28,$F$2:$G$48,2,FALSE)+ROW()-2)),\"\")","v":{"$error":"#N/A"}},{"$f":"IF(INDIRECT(\"c\" & (VLOOKUP(Rebalance!$D$29,$F$2:$G$48,2,FALSE)+ROW()-2))=Rebalance!$D$29,INDIRECT(\"a\" & (VLOOKUP(Rebalance!$D$29,$F$2:$G$48,2,FALSE)+ROW()-2)),\"\")","v":{"$error":"#N/A"}},{"$f":"IF(INDIRECT(\"c\" & (VLOOKUP(Rebalance!$D$30,$F$2:$G$48,2,FALSE)+ROW()-2))=Rebalance!$D$30,INDIRECT(\"a\" & (VLOOKUP(Rebalance!$D$30,$F$2:$G$48,2,FALSE)+ROW()-2)),\"\")","v":{"$error":"#N/A"}},{"$f":"IF(INDIRECT(\"c\" & (VLOOKUP(Rebalance!$D$31,$F$2:$G$48,2,FALSE)+ROW()-2))=Rebalance!$D$31,INDIRECT(\"a\" & (VLOOKUP(Rebalance!$D$31,$F$2:$G$48,2,FALSE)+ROW()-2)),\"\")","v":{"$error":"#N/A"}},{"$f":"IF(INDIRECT(\"c\" & (VLOOKUP(Rebalance!$D$32,$F$2:$G$48,2,FALSE)+ROW()-2))=Rebalance!$D$32,INDIRECT(\"a\" & (VLOOKUP(Rebalance!$D$32,$F$2:$G$48,2,FALSE)+ROW()-2)),\"\")","v":{"$error":"#N/A"}},{"$f":"IF(INDIRECT(\"c\" & (VLOOKUP(Rebalance!$D$33,$F$2:$G$48,2,FALSE)+ROW()-2))=Rebalance!$D$33,INDIRECT(\"a\" & (VLOOKUP(Rebalance!$D$33,$F$2:$G$48,2,FALSE)+ROW()-2)),\"\")","v":{"$error":"#N/A"}},{"$f":"IF(INDIRECT(\"c\" & (VLOOKUP(Rebalance!$D$34,$F$2:$G$48,2,FALSE)+ROW()-2))=Rebalance!$D$34,INDIRECT(\"a\" & (VLOOKUP(Rebalance!$D$34,$F$2:$G$48,2,FALSE)+ROW()-2)),\"\")","v":{"$error":"#N/A"}},{"$f":"IF(INDIRECT(\"c\" & (VLOOKUP(Rebalance!$D$35,$F$2:$G$48,2,FALSE)+ROW()-2))=Rebalance!$D$35,INDIRECT(\"a\" & (VLOOKUP(Rebalance!$D$35,$F$2:$G$48,2,FALSE)+ROW()-2)),\"\")","v":{"$error":"#N/A"}},{"$f":"IF(INDIRECT(\"c\" & (VLOOKUP(Rebalance!$D$36,$F$2:$G$48,2,FALSE)+ROW()-2))=Rebalance!$D$36,INDIRECT(\"a\" & (VLOOKUP(Rebalance!$D$36,$F$2:$G$48,2,FALSE)+ROW()-2)),\"\")","v":{"$error":"#N/A"}},{"$f":"IF(INDIRECT(\"c\" & (VLOOKUP(Rebalance!$D$37,$F$2:$G$48,2,FALSE)+ROW()-2))=Rebalance!$D$37,INDIRECT(\"a\" & (VLOOKUP(Rebalance!$D$37,$F$2:$G$48,2,FALSE)+ROW()-2)),\"\")","v":{"$error":"#N/A"}},{"$f":"IF(INDIRECT(\"c\" & (VLOOKUP(Rebalance!$D$38,$F$2:$G$48,2,FALSE)+ROW()-2))=Rebalance!$D$38,INDIRECT(\"a\" & (VLOOKUP(Rebalance!$D$38,$F$2:$G$48,2,FALSE)+ROW()-2)),\"\")","v":{"$error":"#N/A"}},{"$f":"IF(INDIRECT(\"c\" & (VLOOKUP(Rebalance!$D$39,$F$2:$G$48,2,FALSE)+ROW()-2))=Rebalance!$D$39,INDIRECT(\"a\" & (VLOOKUP(Rebalance!$D$39,$F$2:$G$48,2,FALSE)+ROW()-2)),\"\")","v":{"$error":"#N/A"}},{"$f":"IF(INDIRECT(\"c\" & (VLOOKUP(Rebalance!$D$40,$F$2:$G$48,2,FALSE)+ROW()-2))=Rebalance!$D$40,INDIRECT(\"a\" & (VLOOKUP(Rebalance!$D$40,$F$2:$G$48,2,FALSE)+ROW()-2)),\"\")","v":{"$error":"#N/A"}},{"$f":"IF(INDIRECT(\"c\" & (VLOOKUP(Rebalance!$D$52,$F$2:$G$48,2,FALSE)+ROW()-2))=Rebalance!$D$52,INDIRECT(\"a\" & (VLOOKUP(Rebalance!$D$52,$F$2:$G$48,2,FALSE)+ROW()-2)),\"\")","v":{"$error":"#N/A"}},{"$f":"IF(INDIRECT(\"c\" & (VLOOKUP(Rebalance!$D$53,$F$2:$G$48,2,FALSE)+ROW()-2))=Rebalance!$D$53,INDIRECT(\"a\" & (VLOOKUP(Rebalance!$D$53,$F$2:$G$48,2,FALSE)+ROW()-2)),\"\")","v":{"$error":"#N/A"}},{"$f":"IF(INDIRECT(\"c\" & (VLOOKUP(Rebalance!$D$54,$F$2:$G$48,2,FALSE)+ROW()-2))=Rebalance!$D$54,INDIRECT(\"a\" & (VLOOKUP(Rebalance!$D$54,$F$2:$G$48,2,FALSE)+ROW()-2)),\"\")","v":{"$error":"#N/A"}},{"$f":"IF(INDIRECT(\"c\" & (VLOOKUP(Rebalance!$D$55,$F$2:$G$48,2,FALSE)+ROW()-2))=Rebalance!$D$55,INDIRECT(\"a\" & (VLOOKUP(Rebalance!$D$55,$F$2:$G$48,2,FALSE)+ROW()-2)),\"\")","v":{"$error":"#N/A"}},{"$f":"IF(INDIRECT(\"c\" & (VLOOKUP(Rebalance!$D$56,$F$2:$G$48,2,FALSE)+ROW()-2))=Rebalance!$D$56,INDIRECT(\"a\" & (VLOOKUP(Rebalance!$D$56,$F$2:$G$48,2,FALSE)+ROW()-2)),\"\")","v":{"$error":"#N/A"}},{"$f":"IF(INDIRECT(\"c\" & (VLOOKUP(Rebalance!$D$57,$F$2:$G$48,2,FALSE)+ROW()-2))=Rebalance!$D$57,INDIRECT(\"a\" & (VLOOKUP(Rebalance!$D$57,$F$2:$G$48,2,FALSE)+ROW()-2)),\"\")","v":{"$error":"#N/A"}},{"$f":"IF(INDIRECT(\"c\" & (VLOOKUP(Rebalance!$D$58,$F$2:$G$48,2,FALSE)+ROW()-2))=Rebalance!$D$58,INDIRECT(\"a\" & (VLOOKUP(Rebalance!$D$58,$F$2:$G$48,2,FALSE)+ROW()-2)),\"\")","v":{"$error":"#N/A"}},{"$f":"IF(INDIRECT(\"c\" & (VLOOKUP(Rebalance!$D$59,$F$2:$G$48,2,FALSE)+ROW()-2))=Rebalance!$D$59,INDIRECT(\"a\" & (VLOOKUP(Rebalance!$D$59,$F$2:$G$48,2,FALSE)+ROW()-2)),\"\")","v":{"$error":"#N/A"}},{"$f":"IF(INDIRECT(\"c\" & (VLOOKUP(Rebalance!$D$60,$F$2:$G$48,2,FALSE)+ROW()-2))=Rebalance!$D$60,INDIRECT(\"a\" & (VLOOKUP(Rebalance!$D$60,$F$2:$G$48,2,FALSE)+ROW()-2)),\"\")","v":{"$error":"#N/A"}},{"$f":"IF(INDIRECT(\"c\" & (VLOOKUP(Rebalance!$D$61,$F$2:$G$48,2,FALSE)+ROW()-2))=Rebalance!$D$61,INDIRECT(\"a\" & (VLOOKUP(Rebalance!$D$61,$F$2:$G$48,2,FALSE)+ROW()-2)),\"\")","v":{"$error":"#N/A"}},{"$f":"IF(INDIRECT(\"c\" & (VLOOKUP(Rebalance!$D$62,$F$2:$G$48,2,FALSE)+ROW()-2))=Rebalance!$D$62,INDIRECT(\"a\" & (VLOOKUP(Rebalance!$D$62,$F$2:$G$48,2,FALSE)+ROW()-2)),\"\")","v":{"$error":"#N/A"}},{"$f":"IF(INDIRECT(\"c\" & (VLOOKUP(Rebalance!$D$63,$F$2:$G$48,2,FALSE)+ROW()-2))=Rebalance!$D$63,INDIRECT(\"a\" & (VLOOKUP(Rebalance!$D$63,$F$2:$G$48,2,FALSE)+ROW()-2)),\"\")","v":{"$error":"#N/A"}},{"$f":"IF(INDIRECT(\"c\" & (VLOOKUP(Rebalance!$D$64,$F$2:$G$48,2,FALSE)+ROW()-2))=Rebalance!$D$64,INDIRECT(\"a\" & (VLOOKUP(Rebalance!$D$64,$F$2:$G$48,2,FALSE)+ROW()-2)),\"\")","v":{"$error":"#N/A"}},{"$f":"IF(INDIRECT(\"c\" & (VLOOKUP(Rebalance!$D$65,$F$2:$G$48,2,FALSE)+ROW()-2))=Rebalance!$D$65,INDIRECT(\"a\" & (VLOOKUP(Rebalance!$D$65,$F$2:$G$48,2,FALSE)+ROW()-2)),\"\")","v":{"$error":"#N/A"}},{"$f":"IF(INDIRECT(\"c\" & (VLOOKUP(Rebalance!$D$66,$F$2:$G$48,2,FALSE)+ROW()-2))=Rebalance!$D$66,INDIRECT(\"a\" & (VLOOKUP(Rebalance!$D$66,$F$2:$G$48,2,FALSE)+ROW()-2)),\"\")","v":{"$error":"#N/A"}}]
["Skyblue BCI Solar Flexible FoF A","MBIS","Boutique Collective Investments (Pty) Ltd",{"$f":"ROW()","v":188},null,null,{"$f":"VLOOKUP(F188,$C$2:$D$599,2,FALSE)","v":{"$error":"#N/A"}},{"$f":"IF(INDIRECT(\"c\" & (VLOOKUP(Rebalance!$D$26,$F$2:$G$48,2,FALSE)+ROW()-2))=Rebalance!$D$26,INDIRECT(\"a\" & (VLOOKUP(Rebalance!$D$26,$F$2:$G$48,2,FALSE)+ROW()-2)),\"\")","v":{"$error":"#N/A"}},{"$f":"IF(INDIRECT(\"c\" & (VLOOKUP(Rebalance!$D$27,$F$2:$G$48,2,FALSE)+ROW()-2))=Rebalance!$D$27,INDIRECT(\"a\" & (VLOOKUP(Rebalance!$D$27,$F$2:$G$48,2,FALSE)+ROW()-2)),\"\")","v":{"$error":"#N/A"}},{"$f":"IF(INDIRECT(\"c\" & (VLOOKUP(Rebalance!$D$28,$F$2:$G$48,2,FALSE)+ROW()-2))=Rebalance!$D$28,INDIRECT(\"a\" & (VLOOKUP(Rebalance!$D$28,$F$2:$G$48,2,FALSE)+ROW()-2)),\"\")","v":{"$error":"#N/A"}},{"$f":"IF(INDIRECT(\"c\" & (VLOOKUP(Rebalance!$D$29,$F$2:$G$48,2,FALSE)+ROW()-2))=Rebalance!$D$29,INDIRECT(\"a\" & (VLOOKUP(Rebalance!$D$29,$F$2:$G$48,2,FALSE)+ROW()-2)),\"\")","v":{"$error":"#N/A"}},{"$f":"IF(INDIRECT(\"c\" & (VLOOKUP(Rebalance!$D$30,$F$2:$G$48,2,FALSE)+ROW()-2))=Rebalance!$D$30,INDIRECT(\"a\" & (VLOOKUP(Rebalance!$D$30,$F$2:$G$48,2,FALSE)+ROW()-2)),\"\")","v":{"$error":"#N/A"}},{"$f":"IF(INDIRECT(\"c\" & (VLOOKUP(Rebalance!$D$31,$F$2:$G$48,2,FALSE)+ROW()-2))=Rebalance!$D$31,INDIRECT(\"a\" & (VLOOKUP(Rebalance!$D$31,$F$2:$G$48,2,FALSE)+ROW()-2)),\"\")","v":{"$error":"#N/A"}},{"$f":"IF(INDIRECT(\"c\" & (VLOOKUP(Rebalance!$D$32,$F$2:$G$48,2,FALSE)+ROW()-2))=Rebalance!$D$32,INDIRECT(\"a\" & (VLOOKUP(Rebalance!$D$32,$F$2:$G$48,2,FALSE)+ROW()-2)),\"\")","v":{"$error":"#N/A"}},{"$f":"IF(INDIRECT(\"c\" & (VLOOKUP(Rebalance!$D$33,$F$2:$G$48,2,FALSE)+ROW()-2))=Rebalance!$D$33,INDIRECT(\"a\" & (VLOOKUP(Rebalance!$D$33,$F$2:$G$48,2,FALSE)+ROW()-2)),\"\")","v":{"$error":"#N/A"}},{"$f":"IF(INDIRECT(\"c\" & (VLOOKUP(Rebalance!$D$34,$F$2:$G$48,2,FALSE)+ROW()-2))=Rebalance!$D$34,INDIRECT(\"a\" & (VLOOKUP(Rebalance!$D$34,$F$2:$G$48,2,FALSE)+ROW()-2)),\"\")","v":{"$error":"#N/A"}},{"$f":"IF(INDIRECT(\"c\" & (VLOOKUP(Rebalance!$D$35,$F$2:$G$48,2,FALSE)+ROW()-2))=Rebalance!$D$35,INDIRECT(\"a\" & (VLOOKUP(Rebalance!$D$35,$F$2:$G$48,2,FALSE)+ROW()-2)),\"\")","v":{"$error":"#N/A"}},{"$f":"IF(INDIRECT(\"c\" & (VLOOKUP(Rebalance!$D$36,$F$2:$G$48,2,FALSE)+ROW()-2))=Rebalance!$D$36,INDIRECT(\"a\" & (VLOOKUP(Rebalance!$D$36,$F$2:$G$48,2,FALSE)+ROW()-2)),\"\")","v":{"$error":"#N/A"}},{"$f":"IF(INDIRECT(\"c\" & (VLOOKUP(Rebalance!$D$37,$F$2:$G$48,2,FALSE)+ROW()-2))=Rebalance!$D$37,INDIRECT(\"a\" & (VLOOKUP(Rebalance!$D$37,$F$2:$G$48,2,FALSE)+ROW()-2)),\"\")","v":{"$error":"#N/A"}},{"$f":"IF(INDIRECT(\"c\" & (VLOOKUP(Rebalance!$D$38,$F$2:$G$48,2,FALSE)+ROW()-2))=Rebalance!$D$38,INDIRECT(\"a\" & (VLOOKUP(Rebalance!$D$38,$F$2:$G$48,2,FALSE)+ROW()-2)),\"\")","v":{"$error":"#N/A"}},{"$f":"IF(INDIRECT(\"c\" & (VLOOKUP(Rebalance!$D$39,$F$2:$G$48,2,FALSE)+ROW()-2))=Rebalance!$D$39,INDIRECT(\"a\" & (VLOOKUP(Rebalance!$D$39,$F$2:$G$48,2,FALSE)+ROW()-2)),\"\")","v":{"$error":"#N/A"}},{"$f":"IF(INDIRECT(\"c\" & (VLOOKUP(Rebalance!$D$40,$F$2:$G$48,2,FALSE)+ROW()-2))=Rebalance!$D$40,INDIRECT(\"a\" & (VLOOKUP(Rebalance!$D$40,$F$2:$G$48,2,FALSE)+ROW()-2)),\"\")","v":{"$error":"#N/A"}},{"$f":"IF(INDIRECT(\"c\" & (VLOOKUP(Rebalance!$D$52,$F$2:$G$48,2,FALSE)+ROW()-2))=Rebalance!$D$52,INDIRECT(\"a\" & (VLOOKUP(Rebalance!$D$52,$F$2:$G$48,2,FALSE)+ROW()-2)),\"\")","v":{"$error":"#N/A"}},{"$f":"IF(INDIRECT(\"c\" & (VLOOKUP(Rebalance!$D$53,$F$2:$G$48,2,FALSE)+ROW()-2))=Rebalance!$D$53,INDIRECT(\"a\" & (VLOOKUP(Rebalance!$D$53,$F$2:$G$48,2,FALSE)+ROW()-2)),\"\")","v":{"$error":"#N/A"}},{"$f":"IF(INDIRECT(\"c\" & (VLOOKUP(Rebalance!$D$54,$F$2:$G$48,2,FALSE)+ROW()-2))=Rebalance!$D$54,INDIRECT(\"a\" & (VLOOKUP(Rebalance!$D$54,$F$2:$G$48,2,FALSE)+ROW()-2)),\"\")","v":{"$error":"#N/A"}},{"$f":"IF(INDIRECT(\"c\" & (VLOOKUP(Rebalance!$D$55,$F$2:$G$48,2,FALSE)+ROW()-2))=Rebalance!$D$55,INDIRECT(\"a\" & (VLOOKUP(Rebalance!$D$55,$F$2:$G$48,2,FALSE)+ROW()-2)),\"\")","v":{"$error":"#N/A"}},{"$f":"IF(INDIRECT(\"c\" & (VLOOKUP(Rebalance!$D$56,$F$2:$G$48,2,FALSE)+ROW()-2))=Rebalance!$D$56,INDIRECT(\"a\" & (VLOOKUP(Rebalance!$D$56,$F$2:$G$48,2,FALSE)+ROW()-2)),\"\")","v":{"$error":"#N/A"}},{"$f":"IF(INDIRECT(\"c\" & (VLOOKUP(Rebalance!$D$57,$F$2:$G$48,2,FALSE)+ROW()-2))=Rebalance!$D$57,INDIRECT(\"a\" & (VLOOKUP(Rebalance!$D$57,$F$2:$G$48,2,FALSE)+ROW()-2)),\"\")","v":{"$error":"#N/A"}},{"$f":"IF(INDIRECT(\"c\" & (VLOOKUP(Rebalance!$D$58,$F$2:$G$48,2,FALSE)+ROW()-2))=Rebalance!$D$58,INDIRECT(\"a\" & (VLOOKUP(Rebalance!$D$58,$F$2:$G$48,2,FALSE)+ROW()-2)),\"\")","v":{"$error":"#N/A"}},{"$f":"IF(INDIRECT(\"c\" & (VLOOKUP(Rebalance!$D$59,$F$2:$G$48,2,FALSE)+ROW()-2))=Rebalance!$D$59,INDIRECT(\"a\" & (VLOOKUP(Rebalance!$D$59,$F$2:$G$48,2,FALSE)+ROW()-2)),\"\")","v":{"$error":"#N/A"}},{"$f":"IF(INDIRECT(\"c\" & (VLOOKUP(Rebalance!$D$60,$F$2:$G$48,2,FALSE)+ROW()-2))=Rebalance!$D$60,INDIRECT(\"a\" & (VLOOKUP(Rebalance!$D$60,$F$2:$G$48,2,FALSE)+ROW()-2)),\"\")","v":{"$error":"#N/A"}},{"$f":"IF(INDIRECT(\"c\" & (VLOOKUP(Rebalance!$D$61,$F$2:$G$48,2,FALSE)+ROW()-2))=Rebalance!$D$61,INDIRECT(\"a\" & (VLOOKUP(Rebalance!$D$61,$F$2:$G$48,2,FALSE)+ROW()-2)),\"\")","v":{"$error":"#N/A"}},{"$f":"IF(INDIRECT(\"c\" & (VLOOKUP(Rebalance!$D$62,$F$2:$G$48,2,FALSE)+ROW()-2))=Rebalance!$D$62,INDIRECT(\"a\" & (VLOOKUP(Rebalance!$D$62,$F$2:$G$48,2,FALSE)+ROW()-2)),\"\")","v":{"$error":"#N/A"}},{"$f":"IF(INDIRECT(\"c\" & (VLOOKUP(Rebalance!$D$63,$F$2:$G$48,2,FALSE)+ROW()-2))=Rebalance!$D$63,INDIRECT(\"a\" & (VLOOKUP(Rebalance!$D$63,$F$2:$G$48,2,FALSE)+ROW()-2)),\"\")","v":{"$error":"#N/A"}},{"$f":"IF(INDIRECT(\"c\" & (VLOOKUP(Rebalance!$D$64,$F$2:$G$48,2,FALSE)+ROW()-2))=Rebalance!$D$64,INDIRECT(\"a\" & (VLOOKUP(Rebalance!$D$64,$F$2:$G$48,2,FALSE)+ROW()-2)),\"\")","v":{"$error":"#N/A"}},{"$f":"IF(INDIRECT(\"c\" & (VLOOKUP(Rebalance!$D$65,$F$2:$G$48,2,FALSE)+ROW()-2))=Rebalance!$D$65,INDIRECT(\"a\" & (VLOOKUP(Rebalance!$D$65,$F$2:$G$48,2,FALSE)+ROW()-2)),\"\")","v":{"$error":"#N/A"}},{"$f":"IF(INDIRECT(\"c\" & (VLOOKUP(Rebalance!$D$66,$F$2:$G$48,2,FALSE)+ROW()-2))=Rebalance!$D$66,INDIRECT(\"a\" & (VLOOKUP(Rebalance!$D$66,$F$2:$G$48,2,FALSE)+ROW()-2)),\"\")","v":{"$error":"#N/A"}}]
["Tantalum BCI Strategic Income Fund A","TBIFA","Boutique Collective Investments (Pty) Ltd",{"$f":"ROW()","v":189},null,null,{"$f":"VLOOKUP(F189,$C$2:$D$599,2,FALSE)","v":{"$error":"#N/A"}},{"$f":"IF(INDIRECT(\"c\" & (VLOOKUP(Rebalance!$D$26,$F$2:$G$48,2,FALSE)+ROW()-2))=Rebalance!$D$26,INDIRECT(\"a\" & (VLOOKUP(Rebalance!$D$26,$F$2:$G$48,2,FALSE)+ROW()-2)),\"\")","v":{"$error":"#N/A"}},{"$f":"IF(INDIRECT(\"c\" & (VLOOKUP(Rebalance!$D$27,$F$2:$G$48,2,FALSE)+ROW()-2))=Rebalance!$D$27,INDIRECT(\"a\" & (VLOOKUP(Rebalance!$D$27,$F$2:$G$48,2,FALSE)+ROW()-2)),\"\")","v":{"$error":"#N/A"}},{"$f":"IF(INDIRECT(\"c\" & (VLOOKUP(Rebalance!$D$28,$F$2:$G$48,2,FALSE)+ROW()-2))=Rebalance!$D$28,INDIRECT(\"a\" & (VLOOKUP(Rebalance!$D$28,$F$2:$G$48,2,FALSE)+ROW()-2)),\"\")","v":{"$error":"#N/A"}},{"$f":"IF(INDIRECT(\"c\" & (VLOOKUP(Rebalance!$D$29,$F$2:$G$48,2,FALSE)+ROW()-2))=Rebalance!$D$29,INDIRECT(\"a\" & (VLOOKUP(Rebalance!$D$29,$F$2:$G$48,2,FALSE)+ROW()-2)),\"\")","v":{"$error":"#N/A"}},{"$f":"IF(INDIRECT(\"c\" & (VLOOKUP(Rebalance!$D$30,$F$2:$G$48,2,FALSE)+ROW()-2))=Rebalance!$D$30,INDIRECT(\"a\" & (VLOOKUP(Rebalance!$D$30,$F$2:$G$48,2,FALSE)+ROW()-2)),\"\")","v":{"$error":"#N/A"}},{"$f":"IF(INDIRECT(\"c\" & (VLOOKUP(Rebalance!$D$31,$F$2:$G$48,2,FALSE)+ROW()-2))=Rebalance!$D$31,INDIRECT(\"a\" & (VLOOKUP(Rebalance!$D$31,$F$2:$G$48,2,FALSE)+ROW()-2)),\"\")","v":{"$error":"#N/A"}},{"$f":"IF(INDIRECT(\"c\" & (VLOOKUP(Rebalance!$D$32,$F$2:$G$48,2,FALSE)+ROW()-2))=Rebalance!$D$32,INDIRECT(\"a\" & (VLOOKUP(Rebalance!$D$32,$F$2:$G$48,2,FALSE)+ROW()-2)),\"\")","v":{"$error":"#N/A"}},{"$f":"IF(INDIRECT(\"c\" & (VLOOKUP(Rebalance!$D$33,$F$2:$G$48,2,FALSE)+ROW()-2))=Rebalance!$D$33,INDIRECT(\"a\" & (VLOOKUP(Rebalance!$D$33,$F$2:$G$48,2,FALSE)+ROW()-2)),\"\")","v":{"$error":"#N/A"}},{"$f":"IF(INDIRECT(\"c\" & (VLOOKUP(Rebalance!$D$34,$F$2:$G$48,2,FALSE)+ROW()-2))=Rebalance!$D$34,INDIRECT(\"a\" & (VLOOKUP(Rebalance!$D$34,$F$2:$G$48,2,FALSE)+ROW()-2)),\"\")","v":{"$error":"#N/A"}},{"$f":"IF(INDIRECT(\"c\" & (VLOOKUP(Rebalance!$D$35,$F$2:$G$48,2,FALSE)+ROW()-2))=Rebalance!$D$35,INDIRECT(\"a\" & (VLOOKUP(Rebalance!$D$35,$F$2:$G$48,2,FALSE)+ROW()-2)),\"\")","v":{"$error":"#N/A"}},{"$f":"IF(INDIRECT(\"c\" & (VLOOKUP(Rebalance!$D$36,$F$2:$G$48,2,FALSE)+ROW()-2))=Rebalance!$D$36,INDIRECT(\"a\" & (VLOOKUP(Rebalance!$D$36,$F$2:$G$48,2,FALSE)+ROW()-2)),\"\")","v":{"$error":"#N/A"}},{"$f":"IF(INDIRECT(\"c\" & (VLOOKUP(Rebalance!$D$37,$F$2:$G$48,2,FALSE)+ROW()-2))=Rebalance!$D$37,INDIRECT(\"a\" & (VLOOKUP(Rebalance!$D$37,$F$2:$G$48,2,FALSE)+ROW()-2)),\"\")","v":{"$error":"#N/A"}},{"$f":"IF(INDIRECT(\"c\" & (VLOOKUP(Rebalance!$D$38,$F$2:$G$48,2,FALSE)+ROW()-2))=Rebalance!$D$38,INDIRECT(\"a\" & (VLOOKUP(Rebalance!$D$38,$F$2:$G$48,2,FALSE)+ROW()-2)),\"\")","v":{"$error":"#N/A"}},{"$f":"IF(INDIRECT(\"c\" & (VLOOKUP(Rebalance!$D$39,$F$2:$G$48,2,FALSE)+ROW()-2))=Rebalance!$D$39,INDIRECT(\"a\" & (VLOOKUP(Rebalance!$D$39,$F$2:$G$48,2,FALSE)+ROW()-2)),\"\")","v":{"$error":"#N/A"}},{"$f":"IF(INDIRECT(\"c\" & (VLOOKUP(Rebalance!$D$40,$F$2:$G$48,2,FALSE)+ROW()-2))=Rebalance!$D$40,INDIRECT(\"a\" & (VLOOKUP(Rebalance!$D$40,$F$2:$G$48,2,FALSE)+ROW()-2)),\"\")","v":{"$error":"#N/A"}},{"$f":"IF(INDIRECT(\"c\" & (VLOOKUP(Rebalance!$D$52,$F$2:$G$48,2,FALSE)+ROW()-2))=Rebalance!$D$52,INDIRECT(\"a\" & (VLOOKUP(Rebalance!$D$52,$F$2:$G$48,2,FALSE)+ROW()-2)),\"\")","v":{"$error":"#N/A"}},{"$f":"IF(INDIRECT(\"c\" & (VLOOKUP(Rebalance!$D$53,$F$2:$G$48,2,FALSE)+ROW()-2))=Rebalance!$D$53,INDIRECT(\"a\" & (VLOOKUP(Rebalance!$D$53,$F$2:$G$48,2,FALSE)+ROW()-2)),\"\")","v":{"$error":"#N/A"}},{"$f":"IF(INDIRECT(\"c\" & (VLOOKUP(Rebalance!$D$54,$F$2:$G$48,2,FALSE)+ROW()-2))=Rebalance!$D$54,INDIRECT(\"a\" & (VLOOKUP(Rebalance!$D$54,$F$2:$G$48,2,FALSE)+ROW()-2)),\"\")","v":{"$error":"#N/A"}},{"$f":"IF(INDIRECT(\"c\" & (VLOOKUP(Rebalance!$D$55,$F$2:$G$48,2,FALSE)+ROW()-2))=Rebalance!$D$55,INDIRECT(\"a\" & (VLOOKUP(Rebalance!$D$55,$F$2:$G$48,2,FALSE)+ROW()-2)),\"\")","v":{"$error":"#N/A"}},{"$f":"IF(INDIRECT(\"c\" & (VLOOKUP(Rebalance!$D$56,$F$2:$G$48,2,FALSE)+ROW()-2))=Rebalance!$D$56,INDIRECT(\"a\" & (VLOOKUP(Rebalance!$D$56,$F$2:$G$48,2,FALSE)+ROW()-2)),\"\")","v":{"$error":"#N/A"}},{"$f":"IF(INDIRECT(\"c\" & (VLOOKUP(Rebalance!$D$57,$F$2:$G$48,2,FALSE)+ROW()-2))=Rebalance!$D$57,INDIRECT(\"a\" & (VLOOKUP(Rebalance!$D$57,$F$2:$G$48,2,FALSE)+ROW()-2)),\"\")","v":{"$error":"#N/A"}},{"$f":"IF(INDIRECT(\"c\" & (VLOOKUP(Rebalance!$D$58,$F$2:$G$48,2,FALSE)+ROW()-2))=Rebalance!$D$58,INDIRECT(\"a\" & (VLOOKUP(Rebalance!$D$58,$F$2:$G$48,2,FALSE)+ROW()-2)),\"\")","v":{"$error":"#N/A"}},{"$f":"IF(INDIRECT(\"c\" & (VLOOKUP(Rebalance!$D$59,$F$2:$G$48,2,FALSE)+ROW()-2))=Rebalance!$D$59,INDIRECT(\"a\" & (VLOOKUP(Rebalance!$D$59,$F$2:$G$48,2,FALSE)+ROW()-2)),\"\")","v":{"$error":"#N/A"}},{"$f":"IF(INDIRECT(\"c\" & (VLOOKUP(Rebalance!$D$60,$F$2:$G$48,2,FALSE)+ROW()-2))=Rebalance!$D$60,INDIRECT(\"a\" & (VLOOKUP(Rebalance!$D$60,$F$2:$G$48,2,FALSE)+ROW()-2)),\"\")","v":{"$error":"#N/A"}},{"$f":"IF(INDIRECT(\"c\" & (VLOOKUP(Rebalance!$D$61,$F$2:$G$48,2,FALSE)+ROW()-2))=Rebalance!$D$61,INDIRECT(\"a\" & (VLOOKUP(Rebalance!$D$61,$F$2:$G$48,2,FALSE)+ROW()-2)),\"\")","v":{"$error":"#N/A"}},{"$f":"IF(INDIRECT(\"c\" & (VLOOKUP(Rebalance!$D$62,$F$2:$G$48,2,FALSE)+ROW()-2))=Rebalance!$D$62,INDIRECT(\"a\" & (VLOOKUP(Rebalance!$D$62,$F$2:$G$48,2,FALSE)+ROW()-2)),\"\")","v":{"$error":"#N/A"}},{"$f":"IF(INDIRECT(\"c\" & (VLOOKUP(Rebalance!$D$63,$F$2:$G$48,2,FALSE)+ROW()-2))=Rebalance!$D$63,INDIRECT(\"a\" & (VLOOKUP(Rebalance!$D$63,$F$2:$G$48,2,FALSE)+ROW()-2)),\"\")","v":{"$error":"#N/A"}},{"$f":"IF(INDIRECT(\"c\" & (VLOOKUP(Rebalance!$D$64,$F$2:$G$48,2,FALSE)+ROW()-2))=Rebalance!$D$64,INDIRECT(\"a\" & (VLOOKUP(Rebalance!$D$64,$F$2:$G$48,2,FALSE)+ROW()-2)),\"\")","v":{"$error":"#N/A"}},{"$f":"IF(INDIRECT(\"c\" & (VLOOKUP(Rebalance!$D$65,$F$2:$G$48,2,FALSE)+ROW()-2))=Rebalance!$D$65,INDIRECT(\"a\" & (VLOOKUP(Rebalance!$D$65,$F$2:$G$48,2,FALSE)+ROW()-2)),\"\")","v":{"$error":"#N/A"}},{"$f":"IF(INDIRECT(\"c\" & (VLOOKUP(Rebalance!$D$66,$F$2:$G$48,2,FALSE)+ROW()-2))=Rebalance!$D$66,INDIRECT(\"a\" & (VLOOKUP(Rebalance!$D$66,$F$2:$G$48,2,FALSE)+ROW()-2)),\"\")","v":{"$error":"#N/A"}}]
["Verso BCI Income Planner FoF A","MIIP","Boutique Collective Investments (Pty) Ltd",{"$f":"ROW()","v":190},null,null,{"$f":"VLOOKUP(F190,$C$2:$D$599,2,FALSE)","v":{"$error":"#N/A"}},{"$f":"IF(INDIRECT(\"c\" & (VLOOKUP(Rebalance!$D$26,$F$2:$G$48,2,FALSE)+ROW()-2))=Rebalance!$D$26,INDIRECT(\"a\" & (VLOOKUP(Rebalance!$D$26,$F$2:$G$48,2,FALSE)+ROW()-2)),\"\")","v":{"$error":"#N/A"}},{"$f":"IF(INDIRECT(\"c\" & (VLOOKUP(Rebalance!$D$27,$F$2:$G$48,2,FALSE)+ROW()-2))=Rebalance!$D$27,INDIRECT(\"a\" & (VLOOKUP(Rebalance!$D$27,$F$2:$G$48,2,FALSE)+ROW()-2)),\"\")","v":{"$error":"#N/A"}},{"$f":"IF(INDIRECT(\"c\" & (VLOOKUP(Rebalance!$D$28,$F$2:$G$48,2,FALSE)+ROW()-2))=Rebalance!$D$28,INDIRECT(\"a\" & (VLOOKUP(Rebalance!$D$28,$F$2:$G$48,2,FALSE)+ROW()-2)),\"\")","v":{"$error":"#N/A"}},{"$f":"IF(INDIRECT(\"c\" & (VLOOKUP(Rebalance!$D$29,$F$2:$G$48,2,FALSE)+ROW()-2))=Rebalance!$D$29,INDIRECT(\"a\" & (VLOOKUP(Rebalance!$D$29,$F$2:$G$48,2,FALSE)+ROW()-2)),\"\")","v":{"$error":"#N/A"}},{"$f":"IF(INDIRECT(\"c\" & (VLOOKUP(Rebalance!$D$30,$F$2:$G$48,2,FALSE)+ROW()-2))=Rebalance!$D$30,INDIRECT(\"a\" & (VLOOKUP(Rebalance!$D$30,$F$2:$G$48,2,FALSE)+ROW()-2)),\"\")","v":{"$error":"#N/A"}},{"$f":"IF(INDIRECT(\"c\" & (VLOOKUP(Rebalance!$D$31,$F$2:$G$48,2,FALSE)+ROW()-2))=Rebalance!$D$31,INDIRECT(\"a\" & (VLOOKUP(Rebalance!$D$31,$F$2:$G$48,2,FALSE)+ROW()-2)),\"\")","v":{"$error":"#N/A"}},{"$f":"IF(INDIRECT(\"c\" & (VLOOKUP(Rebalance!$D$32,$F$2:$G$48,2,FALSE)+ROW()-2))=Rebalance!$D$32,INDIRECT(\"a\" & (VLOOKUP(Rebalance!$D$32,$F$2:$G$48,2,FALSE)+ROW()-2)),\"\")","v":{"$error":"#N/A"}},{"$f":"IF(INDIRECT(\"c\" & (VLOOKUP(Rebalance!$D$33,$F$2:$G$48,2,FALSE)+ROW()-2))=Rebalance!$D$33,INDIRECT(\"a\" & (VLOOKUP(Rebalance!$D$33,$F$2:$G$48,2,FALSE)+ROW()-2)),\"\")","v":{"$error":"#N/A"}},{"$f":"IF(INDIRECT(\"c\" & (VLOOKUP(Rebalance!$D$34,$F$2:$G$48,2,FALSE)+ROW()-2))=Rebalance!$D$34,INDIRECT(\"a\" & (VLOOKUP(Rebalance!$D$34,$F$2:$G$48,2,FALSE)+ROW()-2)),\"\")","v":{"$error":"#N/A"}},{"$f":"IF(INDIRECT(\"c\" & (VLOOKUP(Rebalance!$D$35,$F$2:$G$48,2,FALSE)+ROW()-2))=Rebalance!$D$35,INDIRECT(\"a\" & (VLOOKUP(Rebalance!$D$35,$F$2:$G$48,2,FALSE)+ROW()-2)),\"\")","v":{"$error":"#N/A"}},{"$f":"IF(INDIRECT(\"c\" & (VLOOKUP(Rebalance!$D$36,$F$2:$G$48,2,FALSE)+ROW()-2))=Rebalance!$D$36,INDIRECT(\"a\" & (VLOOKUP(Rebalance!$D$36,$F$2:$G$48,2,FALSE)+ROW()-2)),\"\")","v":{"$error":"#N/A"}},{"$f":"IF(INDIRECT(\"c\" & (VLOOKUP(Rebalance!$D$37,$F$2:$G$48,2,FALSE)+ROW()-2))=Rebalance!$D$37,INDIRECT(\"a\" & (VLOOKUP(Rebalance!$D$37,$F$2:$G$48,2,FALSE)+ROW()-2)),\"\")","v":{"$error":"#N/A"}},{"$f":"IF(INDIRECT(\"c\" & (VLOOKUP(Rebalance!$D$38,$F$2:$G$48,2,FALSE)+ROW()-2))=Rebalance!$D$38,INDIRECT(\"a\" & (VLOOKUP(Rebalance!$D$38,$F$2:$G$48,2,FALSE)+ROW()-2)),\"\")","v":{"$error":"#N/A"}},{"$f":"IF(INDIRECT(\"c\" & (VLOOKUP(Rebalance!$D$39,$F$2:$G$48,2,FALSE)+ROW()-2))=Rebalance!$D$39,INDIRECT(\"a\" & (VLOOKUP(Rebalance!$D$39,$F$2:$G$48,2,FALSE)+ROW()-2)),\"\")","v":{"$error":"#N/A"}},{"$f":"IF(INDIRECT(\"c\" & (VLOOKUP(Rebalance!$D$40,$F$2:$G$48,2,FALSE)+ROW()-2))=Rebalance!$D$40,INDIRECT(\"a\" & (VLOOKUP(Rebalance!$D$40,$F$2:$G$48,2,FALSE)+ROW()-2)),\"\")","v":{"$error":"#N/A"}},{"$f":"IF(INDIRECT(\"c\" & (VLOOKUP(Rebalance!$D$52,$F$2:$G$48,2,FALSE)+ROW()-2))=Rebalance!$D$52,INDIRECT(\"a\" & (VLOOKUP(Rebalance!$D$52,$F$2:$G$48,2,FALSE)+ROW()-2)),\"\")","v":{"$error":"#N/A"}},{"$f":"IF(INDIRECT(\"c\" & (VLOOKUP(Rebalance!$D$53,$F$2:$G$48,2,FALSE)+ROW()-2))=Rebalance!$D$53,INDIRECT(\"a\" & (VLOOKUP(Rebalance!$D$53,$F$2:$G$48,2,FALSE)+ROW()-2)),\"\")","v":{"$error":"#N/A"}},{"$f":"IF(INDIRECT(\"c\" & (VLOOKUP(Rebalance!$D$54,$F$2:$G$48,2,FALSE)+ROW()-2))=Rebalance!$D$54,INDIRECT(\"a\" & (VLOOKUP(Rebalance!$D$54,$F$2:$G$48,2,FALSE)+ROW()-2)),\"\")","v":{"$error":"#N/A"}},{"$f":"IF(INDIRECT(\"c\" & (VLOOKUP(Rebalance!$D$55,$F$2:$G$48,2,FALSE)+ROW()-2))=Rebalance!$D$55,INDIRECT(\"a\" & (VLOOKUP(Rebalance!$D$55,$F$2:$G$48,2,FALSE)+ROW()-2)),\"\")","v":{"$error":"#N/A"}},{"$f":"IF(INDIRECT(\"c\" & (VLOOKUP(Rebalance!$D$56,$F$2:$G$48,2,FALSE)+ROW()-2))=Rebalance!$D$56,INDIRECT(\"a\" & (VLOOKUP(Rebalance!$D$56,$F$2:$G$48,2,FALSE)+ROW()-2)),\"\")","v":{"$error":"#N/A"}},{"$f":"IF(INDIRECT(\"c\" & (VLOOKUP(Rebalance!$D$57,$F$2:$G$48,2,FALSE)+ROW()-2))=Rebalance!$D$57,INDIRECT(\"a\" & (VLOOKUP(Rebalance!$D$57,$F$2:$G$48,2,FALSE)+ROW()-2)),\"\")","v":{"$error":"#N/A"}},{"$f":"IF(INDIRECT(\"c\" & (VLOOKUP(Rebalance!$D$58,$F$2:$G$48,2,FALSE)+ROW()-2))=Rebalance!$D$58,INDIRECT(\"a\" & (VLOOKUP(Rebalance!$D$58,$F$2:$G$48,2,FALSE)+ROW()-2)),\"\")","v":{"$error":"#N/A"}},{"$f":"IF(INDIRECT(\"c\" & (VLOOKUP(Rebalance!$D$59,$F$2:$G$48,2,FALSE)+ROW()-2))=Rebalance!$D$59,INDIRECT(\"a\" & (VLOOKUP(Rebalance!$D$59,$F$2:$G$48,2,FALSE)+ROW()-2)),\"\")","v":{"$error":"#N/A"}},{"$f":"IF(INDIRECT(\"c\" & (VLOOKUP(Rebalance!$D$60,$F$2:$G$48,2,FALSE)+ROW()-2))=Rebalance!$D$60,INDIRECT(\"a\" & (VLOOKUP(Rebalance!$D$60,$F$2:$G$48,2,FALSE)+ROW()-2)),\"\")","v":{"$error":"#N/A"}},{"$f":"IF(INDIRECT(\"c\" & (VLOOKUP(Rebalance!$D$61,$F$2:$G$48,2,FALSE)+ROW()-2))=Rebalance!$D$61,INDIRECT(\"a\" & (VLOOKUP(Rebalance!$D$61,$F$2:$G$48,2,FALSE)+ROW()-2)),\"\")","v":{"$error":"#N/A"}},{"$f":"IF(INDIRECT(\"c\" & (VLOOKUP(Rebalance!$D$62,$F$2:$G$48,2,FALSE)+ROW()-2))=Rebalance!$D$62,INDIRECT(\"a\" & (VLOOKUP(Rebalance!$D$62,$F$2:$G$48,2,FALSE)+ROW()-2)),\"\")","v":{"$error":"#N/A"}},{"$f":"IF(INDIRECT(\"c\" & (VLOOKUP(Rebalance!$D$63,$F$2:$G$48,2,FALSE)+ROW()-2))=Rebalance!$D$63,INDIRECT(\"a\" & (VLOOKUP(Rebalance!$D$63,$F$2:$G$48,2,FALSE)+ROW()-2)),\"\")","v":{"$error":"#N/A"}},{"$f":"IF(INDIRECT(\"c\" & (VLOOKUP(Rebalance!$D$64,$F$2:$G$48,2,FALSE)+ROW()-2))=Rebalance!$D$64,INDIRECT(\"a\" & (VLOOKUP(Rebalance!$D$64,$F$2:$G$48,2,FALSE)+ROW()-2)),\"\")","v":{"$error":"#N/A"}},{"$f":"IF(INDIRECT(\"c\" & (VLOOKUP(Rebalance!$D$65,$F$2:$G$48,2,FALSE)+ROW()-2))=Rebalance!$D$65,INDIRECT(\"a\" & (VLOOKUP(Rebalance!$D$65,$F$2:$G$48,2,FALSE)+ROW()-2)),\"\")","v":{"$error":"#N/A"}},{"$f":"IF(INDIRECT(\"c\" & (VLOOKUP(Rebalance!$D$66,$F$2:$G$48,2,FALSE)+ROW()-2))=Rebalance!$D$66,INDIRECT(\"a\" & (VLOOKUP(Rebalance!$D$66,$F$2:$G$48,2,FALSE)+ROW()-2)),\"\")","v":{"$error":"#N/A"}}]
["Verso BCI Secure Growth FoF A","MISG","Boutique Collective Investments (Pty) Ltd",{"$f":"ROW()","v":191},null,null,{"$f":"VLOOKUP(F191,$C$2:$D$599,2,FALSE)","v":{"$error":"#N/A"}},{"$f":"IF(INDIRECT(\"c\" & (VLOOKUP(Rebalance!$D$26,$F$2:$G$48,2,FALSE)+ROW()-2))=Rebalance!$D$26,INDIRECT(\"a\" & (VLOOKUP(Rebalance!$D$26,$F$2:$G$48,2,FALSE)+ROW()-2)),\"\")","v":{"$error":"#N/A"}},{"$f":"IF(INDIRECT(\"c\" & (VLOOKUP(Rebalance!$D$27,$F$2:$G$48,2,FALSE)+ROW()-2))=Rebalance!$D$27,INDIRECT(\"a\" & (VLOOKUP(Rebalance!$D$27,$F$2:$G$48,2,FALSE)+ROW()-2)),\"\")","v":{"$error":"#N/A"}},{"$f":"IF(INDIRECT(\"c\" & (VLOOKUP(Rebalance!$D$28,$F$2:$G$48,2,FALSE)+ROW()-2))=Rebalance!$D$28,INDIRECT(\"a\" & (VLOOKUP(Rebalance!$D$28,$F$2:$G$48,2,FALSE)+ROW()-2)),\"\")","v":{"$error":"#N/A"}},{"$f":"IF(INDIRECT(\"c\" & (VLOOKUP(Rebalance!$D$29,$F$2:$G$48,2,FALSE)+ROW()-2))=Rebalance!$D$29,INDIRECT(\"a\" & (VLOOKUP(Rebalance!$D$29,$F$2:$G$48,2,FALSE)+ROW()-2)),\"\")","v":{"$error":"#N/A"}},{"$f":"IF(INDIRECT(\"c\" & (VLOOKUP(Rebalance!$D$30,$F$2:$G$48,2,FALSE)+ROW()-2))=Rebalance!$D$30,INDIRECT(\"a\" & (VLOOKUP(Rebalance!$D$30,$F$2:$G$48,2,FALSE)+ROW()-2)),\"\")","v":{"$error":"#N/A"}},{"$f":"IF(INDIRECT(\"c\" & (VLOOKUP(Rebalance!$D$31,$F$2:$G$48,2,FALSE)+ROW()-2))=Rebalance!$D$31,INDIRECT(\"a\" & (VLOOKUP(Rebalance!$D$31,$F$2:$G$48,2,FALSE)+ROW()-2)),\"\")","v":{"$error":"#N/A"}},{"$f":"IF(INDIRECT(\"c\" & (VLOOKUP(Rebalance!$D$32,$F$2:$G$48,2,FALSE)+ROW()-2))=Rebalance!$D$32,INDIRECT(\"a\" & (VLOOKUP(Rebalance!$D$32,$F$2:$G$48,2,FALSE)+ROW()-2)),\"\")","v":{"$error":"#N/A"}},{"$f":"IF(INDIRECT(\"c\" & (VLOOKUP(Rebalance!$D$33,$F$2:$G$48,2,FALSE)+ROW()-2))=Rebalance!$D$33,INDIRECT(\"a\" & (VLOOKUP(Rebalance!$D$33,$F$2:$G$48,2,FALSE)+ROW()-2)),\"\")","v":{"$error":"#N/A"}},{"$f":"IF(INDIRECT(\"c\" & (VLOOKUP(Rebalance!$D$34,$F$2:$G$48,2,FALSE)+ROW()-2))=Rebalance!$D$34,INDIRECT(\"a\" & (VLOOKUP(Rebalance!$D$34,$F$2:$G$48,2,FALSE)+ROW()-2)),\"\")","v":{"$error":"#N/A"}},{"$f":"IF(INDIRECT(\"c\" & (VLOOKUP(Rebalance!$D$35,$F$2:$G$48,2,FALSE)+ROW()-2))=Rebalance!$D$35,INDIRECT(\"a\" & (VLOOKUP(Rebalance!$D$35,$F$2:$G$48,2,FALSE)+ROW()-2)),\"\")","v":{"$error":"#N/A"}},{"$f":"IF(INDIRECT(\"c\" & (VLOOKUP(Rebalance!$D$36,$F$2:$G$48,2,FALSE)+ROW()-2))=Rebalance!$D$36,INDIRECT(\"a\" & (VLOOKUP(Rebalance!$D$36,$F$2:$G$48,2,FALSE)+ROW()-2)),\"\")","v":{"$error":"#N/A"}},{"$f":"IF(INDIRECT(\"c\" & (VLOOKUP(Rebalance!$D$37,$F$2:$G$48,2,FALSE)+ROW()-2))=Rebalance!$D$37,INDIRECT(\"a\" & (VLOOKUP(Rebalance!$D$37,$F$2:$G$48,2,FALSE)+ROW()-2)),\"\")","v":{"$error":"#N/A"}},{"$f":"IF(INDIRECT(\"c\" & (VLOOKUP(Rebalance!$D$38,$F$2:$G$48,2,FALSE)+ROW()-2))=Rebalance!$D$38,INDIRECT(\"a\" & (VLOOKUP(Rebalance!$D$38,$F$2:$G$48,2,FALSE)+ROW()-2)),\"\")","v":{"$error":"#N/A"}},{"$f":"IF(INDIRECT(\"c\" & (VLOOKUP(Rebalance!$D$39,$F$2:$G$48,2,FALSE)+ROW()-2))=Rebalance!$D$39,INDIRECT(\"a\" & (VLOOKUP(Rebalance!$D$39,$F$2:$G$48,2,FALSE)+ROW()-2)),\"\")","v":{"$error":"#N/A"}},{"$f":"IF(INDIRECT(\"c\" & (VLOOKUP(Rebalance!$D$40,$F$2:$G$48,2,FALSE)+ROW()-2))=Rebalance!$D$40,INDIRECT(\"a\" & (VLOOKUP(Rebalance!$D$40,$F$2:$G$48,2,FALSE)+ROW()-2)),\"\")","v":{"$error":"#N/A"}},{"$f":"IF(INDIRECT(\"c\" & (VLOOKUP(Rebalance!$D$52,$F$2:$G$48,2,FALSE)+ROW()-2))=Rebalance!$D$52,INDIRECT(\"a\" & (VLOOKUP(Rebalance!$D$52,$F$2:$G$48,2,FALSE)+ROW()-2)),\"\")","v":{"$error":"#N/A"}},{"$f":"IF(INDIRECT(\"c\" & (VLOOKUP(Rebalance!$D$53,$F$2:$G$48,2,FALSE)+ROW()-2))=Rebalance!$D$53,INDIRECT(\"a\" & (VLOOKUP(Rebalance!$D$53,$F$2:$G$48,2,FALSE)+ROW()-2)),\"\")","v":{"$error":"#N/A"}},{"$f":"IF(INDIRECT(\"c\" & (VLOOKUP(Rebalance!$D$54,$F$2:$G$48,2,FALSE)+ROW()-2))=Rebalance!$D$54,INDIRECT(\"a\" & (VLOOKUP(Rebalance!$D$54,$F$2:$G$48,2,FALSE)+ROW()-2)),\"\")","v":{"$error":"#N/A"}},{"$f":"IF(INDIRECT(\"c\" & (VLOOKUP(Rebalance!$D$55,$F$2:$G$48,2,FALSE)+ROW()-2))=Rebalance!$D$55,INDIRECT(\"a\" & (VLOOKUP(Rebalance!$D$55,$F$2:$G$48,2,FALSE)+ROW()-2)),\"\")","v":{"$error":"#N/A"}},{"$f":"IF(INDIRECT(\"c\" & (VLOOKUP(Rebalance!$D$56,$F$2:$G$48,2,FALSE)+ROW()-2))=Rebalance!$D$56,INDIRECT(\"a\" & (VLOOKUP(Rebalance!$D$56,$F$2:$G$48,2,FALSE)+ROW()-2)),\"\")","v":{"$error":"#N/A"}},{"$f":"IF(INDIRECT(\"c\" & (VLOOKUP(Rebalance!$D$57,$F$2:$G$48,2,FALSE)+ROW()-2))=Rebalance!$D$57,INDIRECT(\"a\" & (VLOOKUP(Rebalance!$D$57,$F$2:$G$48,2,FALSE)+ROW()-2)),\"\")","v":{"$error":"#N/A"}},{"$f":"IF(INDIRECT(\"c\" & (VLOOKUP(Rebalance!$D$58,$F$2:$G$48,2,FALSE)+ROW()-2))=Rebalance!$D$58,INDIRECT(\"a\" & (VLOOKUP(Rebalance!$D$58,$F$2:$G$48,2,FALSE)+ROW()-2)),\"\")","v":{"$error":"#N/A"}},{"$f":"IF(INDIRECT(\"c\" & (VLOOKUP(Rebalance!$D$59,$F$2:$G$48,2,FALSE)+ROW()-2))=Rebalance!$D$59,INDIRECT(\"a\" & (VLOOKUP(Rebalance!$D$59,$F$2:$G$48,2,FALSE)+ROW()-2)),\"\")","v":{"$error":"#N/A"}},{"$f":"IF(INDIRECT(\"c\" & (VLOOKUP(Rebalance!$D$60,$F$2:$G$48,2,FALSE)+ROW()-2))=Rebalance!$D$60,INDIRECT(\"a\" & (VLOOKUP(Rebalance!$D$60,$F$2:$G$48,2,FALSE)+ROW()-2)),\"\")","v":{"$error":"#N/A"}},{"$f":"IF(INDIRECT(\"c\" & (VLOOKUP(Rebalance!$D$61,$F$2:$G$48,2,FALSE)+ROW()-2))=Rebalance!$D$61,INDIRECT(\"a\" & (VLOOKUP(Rebalance!$D$61,$F$2:$G$48,2,FALSE)+ROW()-2)),\"\")","v":{"$error":"#N/A"}},{"$f":"IF(INDIRECT(\"c\" & (VLOOKUP(Rebalance!$D$62,$F$2:$G$48,2,FALSE)+ROW()-2))=Rebalance!$D$62,INDIRECT(\"a\" & (VLOOKUP(Rebalance!$D$62,$F$2:$G$48,2,FALSE)+ROW()-2)),\"\")","v":{"$error":"#N/A"}},{"$f":"IF(INDIRECT(\"c\" & (VLOOKUP(Rebalance!$D$63,$F$2:$G$48,2,FALSE)+ROW()-2))=Rebalance!$D$63,INDIRECT(\"a\" & (VLOOKUP(Rebalance!$D$63,$F$2:$G$48,2,FALSE)+ROW()-2)),\"\")","v":{"$error":"#N/A"}},{"$f":"IF(INDIRECT(\"c\" & (VLOOKUP(Rebalance!$D$64,$F$2:$G$48,2,FALSE)+ROW()-2))=Rebalance!$D$64,INDIRECT(\"a\" & (VLOOKUP(Rebalance!$D$64,$F$2:$G$48,2,FALSE)+ROW()-2)),\"\")","v":{"$error":"#N/A"}},{"$f":"IF(INDIRECT(\"c\" & (VLOOKUP(Rebalance!$D$65,$F$2:$G$48,2,FALSE)+ROW()-2))=Rebalance!$D$65,INDIRECT(\"a\" & (VLOOKUP(Rebalance!$D$65,$F$2:$G$48,2,FALSE)+ROW()-2)),\"\")","v":{"$error":"#N/A"}},{"$f":"IF(INDIRECT(\"c\" & (VLOOKUP(Rebalance!$D$66,$F$2:$G$48,2,FALSE)+ROW()-2))=Rebalance!$D$66,INDIRECT(\"a\" & (VLOOKUP(Rebalance!$D$66,$F$2:$G$48,2,FALSE)+ROW()-2)),\"\")","v":{"$error":"#N/A"}}]
["Vesro BCI Global Equity FoF A","MVLI","Boutique Collective Investments (Pty) Ltd",{"$f":"ROW()","v":192},null,null,{"$f":"VLOOKUP(F192,$C$2:$D$599,2,FALSE)","v":{"$error":"#N/A"}},{"$f":"IF(INDIRECT(\"c\" & (VLOOKUP(Rebalance!$D$26,$F$2:$G$48,2,FALSE)+ROW()-2))=Rebalance!$D$26,INDIRECT(\"a\" & (VLOOKUP(Rebalance!$D$26,$F$2:$G$48,2,FALSE)+ROW()-2)),\"\")","v":{"$error":"#N/A"}},{"$f":"IF(INDIRECT(\"c\" & (VLOOKUP(Rebalance!$D$27,$F$2:$G$48,2,FALSE)+ROW()-2))=Rebalance!$D$27,INDIRECT(\"a\" & (VLOOKUP(Rebalance!$D$27,$F$2:$G$48,2,FALSE)+ROW()-2)),\"\")","v":{"$error":"#N/A"}},{"$f":"IF(INDIRECT(\"c\" & (VLOOKUP(Rebalance!$D$28,$F$2:$G$48,2,FALSE)+ROW()-2))=Rebalance!$D$28,INDIRECT(\"a\" & (VLOOKUP(Rebalance!$D$28,$F$2:$G$48,2,FALSE)+ROW()-2)),\"\")","v":{"$error":"#N/A"}},{"$f":"IF(INDIRECT(\"c\" & (VLOOKUP(Rebalance!$D$29,$F$2:$G$48,2,FALSE)+ROW()-2))=Rebalance!$D$29,INDIRECT(\"a\" & (VLOOKUP(Rebalance!$D$29,$F$2:$G$48,2,FALSE)+ROW()-2)),\"\")","v":{"$error":"#N/A"}},{"$f":"IF(INDIRECT(\"c\" & (VLOOKUP(Rebalance!$D$30,$F$2:$G$48,2,FALSE)+ROW()-2))=Rebalance!$D$30,INDIRECT(\"a\" & (VLOOKUP(Rebalance!$D$30,$F$2:$G$48,2,FALSE)+ROW()-2)),\"\")","v":{"$error":"#N/A"}},{"$f":"IF(INDIRECT(\"c\" & (VLOOKUP(Rebalance!$D$31,$F$2:$G$48,2,FALSE)+ROW()-2))=Rebalance!$D$31,INDIRECT(\"a\" & (VLOOKUP(Rebalance!$D$31,$F$2:$G$48,2,FALSE)+ROW()-2)),\"\")","v":{"$error":"#N/A"}},{"$f":"IF(INDIRECT(\"c\" & (VLOOKUP(Rebalance!$D$32,$F$2:$G$48,2,FALSE)+ROW()-2))=Rebalance!$D$32,INDIRECT(\"a\" & (VLOOKUP(Rebalance!$D$32,$F$2:$G$48,2,FALSE)+ROW()-2)),\"\")","v":{"$error":"#N/A"}},{"$f":"IF(INDIRECT(\"c\" & (VLOOKUP(Rebalance!$D$33,$F$2:$G$48,2,FALSE)+ROW()-2))=Rebalance!$D$33,INDIRECT(\"a\" & (VLOOKUP(Rebalance!$D$33,$F$2:$G$48,2,FALSE)+ROW()-2)),\"\")","v":{"$error":"#N/A"}},{"$f":"IF(INDIRECT(\"c\" & (VLOOKUP(Rebalance!$D$34,$F$2:$G$48,2,FALSE)+ROW()-2))=Rebalance!$D$34,INDIRECT(\"a\" & (VLOOKUP(Rebalance!$D$34,$F$2:$G$48,2,FALSE)+ROW()-2)),\"\")","v":{"$error":"#N/A"}},{"$f":"IF(INDIRECT(\"c\" & (VLOOKUP(Rebalance!$D$35,$F$2:$G$48,2,FALSE)+ROW()-2))=Rebalance!$D$35,INDIRECT(\"a\" & (VLOOKUP(Rebalance!$D$35,$F$2:$G$48,2,FALSE)+ROW()-2)),\"\")","v":{"$error":"#N/A"}},{"$f":"IF(INDIRECT(\"c\" & (VLOOKUP(Rebalance!$D$36,$F$2:$G$48,2,FALSE)+ROW()-2))=Rebalance!$D$36,INDIRECT(\"a\" & (VLOOKUP(Rebalance!$D$36,$F$2:$G$48,2,FALSE)+ROW()-2)),\"\")","v":{"$error":"#N/A"}},{"$f":"IF(INDIRECT(\"c\" & (VLOOKUP(Rebalance!$D$37,$F$2:$G$48,2,FALSE)+ROW()-2))=Rebalance!$D$37,INDIRECT(\"a\" & (VLOOKUP(Rebalance!$D$37,$F$2:$G$48,2,FALSE)+ROW()-2)),\"\")","v":{"$error":"#N/A"}},{"$f":"IF(INDIRECT(\"c\" & (VLOOKUP(Rebalance!$D$38,$F$2:$G$48,2,FALSE)+ROW()-2))=Rebalance!$D$38,INDIRECT(\"a\" & (VLOOKUP(Rebalance!$D$38,$F$2:$G$48,2,FALSE)+ROW()-2)),\"\")","v":{"$error":"#N/A"}},{"$f":"IF(INDIRECT(\"c\" & (VLOOKUP(Rebalance!$D$39,$F$2:$G$48,2,FALSE)+ROW()-2))=Rebalance!$D$39,INDIRECT(\"a\" & (VLOOKUP(Rebalance!$D$39,$F$2:$G$48,2,FALSE)+ROW()-2)),\"\")","v":{"$error":"#N/A"}},{"$f":"IF(INDIRECT(\"c\" & (VLOOKUP(Rebalance!$D$40,$F$2:$G$48,2,FALSE)+ROW()-2))=Rebalance!$D$40,INDIRECT(\"a\" & (VLOOKUP(Rebalance!$D$40,$F$2:$G$48,2,FALSE)+ROW()-2)),\"\")","v":{"$error":"#N/A"}},{"$f":"IF(INDIRECT(\"c\" & (VLOOKUP(Rebalance!$D$52,$F$2:$G$48,2,FALSE)+ROW()-2))=Rebalance!$D$52,INDIRECT(\"a\" & (VLOOKUP(Rebalance!$D$52,$F$2:$G$48,2,FALSE)+ROW()-2)),\"\")","v":{"$error":"#N/A"}},{"$f":"IF(INDIRECT(\"c\" & (VLOOKUP(Rebalance!$D$53,$F$2:$G$48,2,FALSE)+ROW()-2))=Rebalance!$D$53,INDIRECT(\"a\" & (VLOOKUP(Rebalance!$D$53,$F$2:$G$48,2,FALSE)+ROW()-2)),\"\")","v":{"$error":"#N/A"}},{"$f":"IF(INDIRECT(\"c\" & (VLOOKUP(Rebalance!$D$54,$F$2:$G$48,2,FALSE)+ROW()-2))=Rebalance!$D$54,INDIRECT(\"a\" & (VLOOKUP(Rebalance!$D$54,$F$2:$G$48,2,FALSE)+ROW()-2)),\"\")","v":{"$error":"#N/A"}},{"$f":"IF(INDIRECT(\"c\" & (VLOOKUP(Rebalance!$D$55,$F$2:$G$48,2,FALSE)+ROW()-2))=Rebalance!$D$55,INDIRECT(\"a\" & (VLOOKUP(Rebalance!$D$55,$F$2:$G$48,2,FALSE)+ROW()-2)),\"\")","v":{"$error":"#N/A"}},{"$f":"IF(INDIRECT(\"c\" & (VLOOKUP(Rebalance!$D$56,$F$2:$G$48,2,FALSE)+ROW()-2))=Rebalance!$D$56,INDIRECT(\"a\" & (VLOOKUP(Rebalance!$D$56,$F$2:$G$48,2,FALSE)+ROW()-2)),\"\")","v":{"$error":"#N/A"}},{"$f":"IF(INDIRECT(\"c\" & (VLOOKUP(Rebalance!$D$57,$F$2:$G$48,2,FALSE)+ROW()-2))=Rebalance!$D$57,INDIRECT(\"a\" & (VLOOKUP(Rebalance!$D$57,$F$2:$G$48,2,FALSE)+ROW()-2)),\"\")","v":{"$error":"#N/A"}},{"$f":"IF(INDIRECT(\"c\" & (VLOOKUP(Rebalance!$D$58,$F$2:$G$48,2,FALSE)+ROW()-2))=Rebalance!$D$58,INDIRECT(\"a\" & (VLOOKUP(Rebalance!$D$58,$F$2:$G$48,2,FALSE)+ROW()-2)),\"\")","v":{"$error":"#N/A"}},{"$f":"IF(INDIRECT(\"c\" & (VLOOKUP(Rebalance!$D$59,$F$2:$G$48,2,FALSE)+ROW()-2))=Rebalance!$D$59,INDIRECT(\"a\" & (VLOOKUP(Rebalance!$D$59,$F$2:$G$48,2,FALSE)+ROW()-2)),\"\")","v":{"$error":"#N/A"}},{"$f":"IF(INDIRECT(\"c\" & (VLOOKUP(Rebalance!$D$60,$F$2:$G$48,2,FALSE)+ROW()-2))=Rebalance!$D$60,INDIRECT(\"a\" & (VLOOKUP(Rebalance!$D$60,$F$2:$G$48,2,FALSE)+ROW()-2)),\"\")","v":{"$error":"#N/A"}},{"$f":"IF(INDIRECT(\"c\" & (VLOOKUP(Rebalance!$D$61,$F$2:$G$48,2,FALSE)+ROW()-2))=Rebalance!$D$61,INDIRECT(\"a\" & (VLOOKUP(Rebalance!$D$61,$F$2:$G$48,2,FALSE)+ROW()-2)),\"\")","v":{"$error":"#N/A"}},{"$f":"IF(INDIRECT(\"c\" & (VLOOKUP(Rebalance!$D$62,$F$2:$G$48,2,FALSE)+ROW()-2))=Rebalance!$D$62,INDIRECT(\"a\" & (VLOOKUP(Rebalance!$D$62,$F$2:$G$48,2,FALSE)+ROW()-2)),\"\")","v":{"$error":"#N/A"}},{"$f":"IF(INDIRECT(\"c\" & (VLOOKUP(Rebalance!$D$63,$F$2:$G$48,2,FALSE)+ROW()-2))=Rebalance!$D$63,INDIRECT(\"a\" & (VLOOKUP(Rebalance!$D$63,$F$2:$G$48,2,FALSE)+ROW()-2)),\"\")","v":{"$error":"#N/A"}},{"$f":"IF(INDIRECT(\"c\" & (VLOOKUP(Rebalance!$D$64,$F$2:$G$48,2,FALSE)+ROW()-2))=Rebalance!$D$64,INDIRECT(\"a\" & (VLOOKUP(Rebalance!$D$64,$F$2:$G$48,2,FALSE)+ROW()-2)),\"\")","v":{"$error":"#N/A"}},{"$f":"IF(INDIRECT(\"c\" & (VLOOKUP(Rebalance!$D$65,$F$2:$G$48,2,FALSE)+ROW()-2))=Rebalance!$D$65,INDIRECT(\"a\" & (VLOOKUP(Rebalance!$D$65,$F$2:$G$48,2,FALSE)+ROW()-2)),\"\")","v":{"$error":"#N/A"}},{"$f":"IF(INDIRECT(\"c\" & (VLOOKUP(Rebalance!$D$66,$F$2:$G$48,2,FALSE)+ROW()-2))=Rebalance!$D$66,INDIRECT(\"a\" & (VLOOKUP(Rebalance!$D$66,$F$2:$G$48,2,FALSE)+ROW()-2)),\"\")","v":{"$error":"#N/A"}}]
["Vesro BCI SA Equity Fund A","MVLT","Boutique Collective Investments (Pty) Ltd",{"$f":"ROW()","v":193},null,null,{"$f":"VLOOKUP(F193,$C$2:$D$599,2,FALSE)","v":{"$error":"#N/A"}},{"$f":"IF(INDIRECT(\"c\" & (VLOOKUP(Rebalance!$D$26,$F$2:$G$48,2,FALSE)+ROW()-2))=Rebalance!$D$26,INDIRECT(\"a\" & (VLOOKUP(Rebalance!$D$26,$F$2:$G$48,2,FALSE)+ROW()-2)),\"\")","v":{"$error":"#N/A"}},{"$f":"IF(INDIRECT(\"c\" & (VLOOKUP(Rebalance!$D$27,$F$2:$G$48,2,FALSE)+ROW()-2))=Rebalance!$D$27,INDIRECT(\"a\" & (VLOOKUP(Rebalance!$D$27,$F$2:$G$48,2,FALSE)+ROW()-2)),\"\")","v":{"$error":"#N/A"}},{"$f":"IF(INDIRECT(\"c\" & (VLOOKUP(Rebalance!$D$28,$F$2:$G$48,2,FALSE)+ROW()-2))=Rebalance!$D$28,INDIRECT(\"a\" & (VLOOKUP(Rebalance!$D$28,$F$2:$G$48,2,FALSE)+ROW()-2)),\"\")","v":{"$error":"#N/A"}},{"$f":"IF(INDIRECT(\"c\" & (VLOOKUP(Rebalance!$D$29,$F$2:$G$48,2,FALSE)+ROW()-2))=Rebalance!$D$29,INDIRECT(\"a\" & (VLOOKUP(Rebalance!$D$29,$F$2:$G$48,2,FALSE)+ROW()-2)),\"\")","v":{"$error":"#N/A"}},{"$f":"IF(INDIRECT(\"c\" & (VLOOKUP(Rebalance!$D$30,$F$2:$G$48,2,FALSE)+ROW()-2))=Rebalance!$D$30,INDIRECT(\"a\" & (VLOOKUP(Rebalance!$D$30,$F$2:$G$48,2,FALSE)+ROW()-2)),\"\")","v":{"$error":"#N/A"}},{"$f":"IF(INDIRECT(\"c\" & (VLOOKUP(Rebalance!$D$31,$F$2:$G$48,2,FALSE)+ROW()-2))=Rebalance!$D$31,INDIRECT(\"a\" & (VLOOKUP(Rebalance!$D$31,$F$2:$G$48,2,FALSE)+ROW()-2)),\"\")","v":{"$error":"#N/A"}},{"$f":"IF(INDIRECT(\"c\" & (VLOOKUP(Rebalance!$D$32,$F$2:$G$48,2,FALSE)+ROW()-2))=Rebalance!$D$32,INDIRECT(\"a\" & (VLOOKUP(Rebalance!$D$32,$F$2:$G$48,2,FALSE)+ROW()-2)),\"\")","v":{"$error":"#N/A"}},{"$f":"IF(INDIRECT(\"c\" & (VLOOKUP(Rebalance!$D$33,$F$2:$G$48,2,FALSE)+ROW()-2))=Rebalance!$D$33,INDIRECT(\"a\" & (VLOOKUP(Rebalance!$D$33,$F$2:$G$48,2,FALSE)+ROW()-2)),\"\")","v":{"$error":"#N/A"}},{"$f":"IF(INDIRECT(\"c\" & (VLOOKUP(Rebalance!$D$34,$F$2:$G$48,2,FALSE)+ROW()-2))=Rebalance!$D$34,INDIRECT(\"a\" & (VLOOKUP(Rebalance!$D$34,$F$2:$G$48,2,FALSE)+ROW()-2)),\"\")","v":{"$error":"#N/A"}},{"$f":"IF(INDIRECT(\"c\" & (VLOOKUP(Rebalance!$D$35,$F$2:$G$48,2,FALSE)+ROW()-2))=Rebalance!$D$35,INDIRECT(\"a\" & (VLOOKUP(Rebalance!$D$35,$F$2:$G$48,2,FALSE)+ROW()-2)),\"\")","v":{"$error":"#N/A"}},{"$f":"IF(INDIRECT(\"c\" & (VLOOKUP(Rebalance!$D$36,$F$2:$G$48,2,FALSE)+ROW()-2))=Rebalance!$D$36,INDIRECT(\"a\" & (VLOOKUP(Rebalance!$D$36,$F$2:$G$48,2,FALSE)+ROW()-2)),\"\")","v":{"$error":"#N/A"}},{"$f":"IF(INDIRECT(\"c\" & (VLOOKUP(Rebalance!$D$37,$F$2:$G$48,2,FALSE)+ROW()-2))=Rebalance!$D$37,INDIRECT(\"a\" & (VLOOKUP(Rebalance!$D$37,$F$2:$G$48,2,FALSE)+ROW()-2)),\"\")","v":{"$error":"#N/A"}},{"$f":"IF(INDIRECT(\"c\" & (VLOOKUP(Rebalance!$D$38,$F$2:$G$48,2,FALSE)+ROW()-2))=Rebalance!$D$38,INDIRECT(\"a\" & (VLOOKUP(Rebalance!$D$38,$F$2:$G$48,2,FALSE)+ROW()-2)),\"\")","v":{"$error":"#N/A"}},{"$f":"IF(INDIRECT(\"c\" & (VLOOKUP(Rebalance!$D$39,$F$2:$G$48,2,FALSE)+ROW()-2))=Rebalance!$D$39,INDIRECT(\"a\" & (VLOOKUP(Rebalance!$D$39,$F$2:$G$48,2,FALSE)+ROW()-2)),\"\")","v":{"$error":"#N/A"}},{"$f":"IF(INDIRECT(\"c\" & (VLOOKUP(Rebalance!$D$40,$F$2:$G$48,2,FALSE)+ROW()-2))=Rebalance!$D$40,INDIRECT(\"a\" & (VLOOKUP(Rebalance!$D$40,$F$2:$G$48,2,FALSE)+ROW()-2)),\"\")","v":{"$error":"#N/A"}},{"$f":"IF(INDIRECT(\"c\" & (VLOOKUP(Rebalance!$D$52,$F$2:$G$48,2,FALSE)+ROW()-2))=Rebalance!$D$52,INDIRECT(\"a\" & (VLOOKUP(Rebalance!$D$52,$F$2:$G$48,2,FALSE)+ROW()-2)),\"\")","v":{"$error":"#N/A"}},{"$f":"IF(INDIRECT(\"c\" & (VLOOKUP(Rebalance!$D$53,$F$2:$G$48,2,FALSE)+ROW()-2))=Rebalance!$D$53,INDIRECT(\"a\" & (VLOOKUP(Rebalance!$D$53,$F$2:$G$48,2,FALSE)+ROW()-2)),\"\")","v":{"$error":"#N/A"}},{"$f":"IF(INDIRECT(\"c\" & (VLOOKUP(Rebalance!$D$54,$F$2:$G$48,2,FALSE)+ROW()-2))=Rebalance!$D$54,INDIRECT(\"a\" & (VLOOKUP(Rebalance!$D$54,$F$2:$G$48,2,FALSE)+ROW()-2)),\"\")","v":{"$error":"#N/A"}},{"$f":"IF(INDIRECT(\"c\" & (VLOOKUP(Rebalance!$D$55,$F$2:$G$48,2,FALSE)+ROW()-2))=Rebalance!$D$55,INDIRECT(\"a\" & (VLOOKUP(Rebalance!$D$55,$F$2:$G$48,2,FALSE)+ROW()-2)),\"\")","v":{"$error":"#N/A"}},{"$f":"IF(INDIRECT(\"c\" & (VLOOKUP(Rebalance!$D$56,$F$2:$G$48,2,FALSE)+ROW()-2))=Rebalance!$D$56,INDIRECT(\"a\" & (VLOOKUP(Rebalance!$D$56,$F$2:$G$48,2,FALSE)+ROW()-2)),\"\")","v":{"$error":"#N/A"}},{"$f":"IF(INDIRECT(\"c\" & (VLOOKUP(Rebalance!$D$57,$F$2:$G$48,2,FALSE)+ROW()-2))=Rebalance!$D$57,INDIRECT(\"a\" & (VLOOKUP(Rebalance!$D$57,$F$2:$G$48,2,FALSE)+ROW()-2)),\"\")","v":{"$error":"#N/A"}},{"$f":"IF(INDIRECT(\"c\" & (VLOOKUP(Rebalance!$D$58,$F$2:$G$48,2,FALSE)+ROW()-2))=Rebalance!$D$58,INDIRECT(\"a\" & (VLOOKUP(Rebalance!$D$58,$F$2:$G$48,2,FALSE)+ROW()-2)),\"\")","v":{"$error":"#N/A"}},{"$f":"IF(INDIRECT(\"c\" & (VLOOKUP(Rebalance!$D$59,$F$2:$G$48,2,FALSE)+ROW()-2))=Rebalance!$D$59,INDIRECT(\"a\" & (VLOOKUP(Rebalance!$D$59,$F$2:$G$48,2,FALSE)+ROW()-2)),\"\")","v":{"$error":"#N/A"}},{"$f":"IF(INDIRECT(\"c\" & (VLOOKUP(Rebalance!$D$60,$F$2:$G$48,2,FALSE)+ROW()-2))=Rebalance!$D$60,INDIRECT(\"a\" & (VLOOKUP(Rebalance!$D$60,$F$2:$G$48,2,FALSE)+ROW()-2)),\"\")","v":{"$error":"#N/A"}},{"$f":"IF(INDIRECT(\"c\" & (VLOOKUP(Rebalance!$D$61,$F$2:$G$48,2,FALSE)+ROW()-2))=Rebalance!$D$61,INDIRECT(\"a\" & (VLOOKUP(Rebalance!$D$61,$F$2:$G$48,2,FALSE)+ROW()-2)),\"\")","v":{"$error":"#N/A"}},{"$f":"IF(INDIRECT(\"c\" & (VLOOKUP(Rebalance!$D$62,$F$2:$G$48,2,FALSE)+ROW()-2))=Rebalance!$D$62,INDIRECT(\"a\" & (VLOOKUP(Rebalance!$D$62,$F$2:$G$48,2,FALSE)+ROW()-2)),\"\")","v":{"$error":"#N/A"}},{"$f":"IF(INDIRECT(\"c\" & (VLOOKUP(Rebalance!$D$63,$F$2:$G$48,2,FALSE)+ROW()-2))=Rebalance!$D$63,INDIRECT(\"a\" & (VLOOKUP(Rebalance!$D$63,$F$2:$G$48,2,FALSE)+ROW()-2)),\"\")","v":{"$error":"#N/A"}},{"$f":"IF(INDIRECT(\"c\" & (VLOOKUP(Rebalance!$D$64,$F$2:$G$48,2,FALSE)+ROW()-2))=Rebalance!$D$64,INDIRECT(\"a\" & (VLOOKUP(Rebalance!$D$64,$F$2:$G$48,2,FALSE)+ROW()-2)),\"\")","v":{"$error":"#N/A"}},{"$f":"IF(INDIRECT(\"c\" & (VLOOKUP(Rebalance!$D$65,$F$2:$G$48,2,FALSE)+ROW()-2))=Rebalance!$D$65,INDIRECT(\"a\" & (VLOOKUP(Rebalance!$D$65,$F$2:$G$48,2,FALSE)+ROW()-2)),\"\")","v":{"$error":"#N/A"}},{"$f":"IF(INDIRECT(\"c\" & (VLOOKUP(Rebalance!$D$66,$F$2:$G$48,2,FALSE)+ROW()-2))=Rebalance!$D$66,INDIRECT(\"a\" & (VLOOKUP(Rebalance!$D$66,$F$2:$G$48,2,FALSE)+ROW()-2)),\"\")","v":{"$error":"#N/A"}}]
["Visio BCI Actinio Portfolio Fund A","MBVA","Boutique Collective Investments (Pty) Ltd",{"$f":"ROW()","v":194},null,null,{"$f":"VLOOKUP(F194,$C$2:$D$599,2,FALSE)","v":{"$error":"#N/A"}},{"$f":"IF(INDIRECT(\"c\" & (VLOOKUP(Rebalance!$D$26,$F$2:$G$48,2,FALSE)+ROW()-2))=Rebalance!$D$26,INDIRECT(\"a\" & (VLOOKUP(Rebalance!$D$26,$F$2:$G$48,2,FALSE)+ROW()-2)),\"\")","v":{"$error":"#N/A"}},{"$f":"IF(INDIRECT(\"c\" & (VLOOKUP(Rebalance!$D$27,$F$2:$G$48,2,FALSE)+ROW()-2))=Rebalance!$D$27,INDIRECT(\"a\" & (VLOOKUP(Rebalance!$D$27,$F$2:$G$48,2,FALSE)+ROW()-2)),\"\")","v":{"$error":"#N/A"}},{"$f":"IF(INDIRECT(\"c\" & (VLOOKUP(Rebalance!$D$28,$F$2:$G$48,2,FALSE)+ROW()-2))=Rebalance!$D$28,INDIRECT(\"a\" & (VLOOKUP(Rebalance!$D$28,$F$2:$G$48,2,FALSE)+ROW()-2)),\"\")","v":{"$error":"#N/A"}},{"$f":"IF(INDIRECT(\"c\" & (VLOOKUP(Rebalance!$D$29,$F$2:$G$48,2,FALSE)+ROW()-2))=Rebalance!$D$29,INDIRECT(\"a\" & (VLOOKUP(Rebalance!$D$29,$F$2:$G$48,2,FALSE)+ROW()-2)),\"\")","v":{"$error":"#N/A"}},{"$f":"IF(INDIRECT(\"c\" & (VLOOKUP(Rebalance!$D$30,$F$2:$G$48,2,FALSE)+ROW()-2))=Rebalance!$D$30,INDIRECT(\"a\" & (VLOOKUP(Rebalance!$D$30,$F$2:$G$48,2,FALSE)+ROW()-2)),\"\")","v":{"$error":"#N/A"}},{"$f":"IF(INDIRECT(\"c\" & (VLOOKUP(Rebalance!$D$31,$F$2:$G$48,2,FALSE)+ROW()-2))=Rebalance!$D$31,INDIRECT(\"a\" & (VLOOKUP(Rebalance!$D$31,$F$2:$G$48,2,FALSE)+ROW()-2)),\"\")","v":{"$error":"#N/A"}},{"$f":"IF(INDIRECT(\"c\" & (VLOOKUP(Rebalance!$D$32,$F$2:$G$48,2,FALSE)+ROW()-2))=Rebalance!$D$32,INDIRECT(\"a\" & (VLOOKUP(Rebalance!$D$32,$F$2:$G$48,2,FALSE)+ROW()-2)),\"\")","v":{"$error":"#N/A"}},{"$f":"IF(INDIRECT(\"c\" & (VLOOKUP(Rebalance!$D$33,$F$2:$G$48,2,FALSE)+ROW()-2))=Rebalance!$D$33,INDIRECT(\"a\" & (VLOOKUP(Rebalance!$D$33,$F$2:$G$48,2,FALSE)+ROW()-2)),\"\")","v":{"$error":"#N/A"}},{"$f":"IF(INDIRECT(\"c\" & (VLOOKUP(Rebalance!$D$34,$F$2:$G$48,2,FALSE)+ROW()-2))=Rebalance!$D$34,INDIRECT(\"a\" & (VLOOKUP(Rebalance!$D$34,$F$2:$G$48,2,FALSE)+ROW()-2)),\"\")","v":{"$error":"#N/A"}},{"$f":"IF(INDIRECT(\"c\" & (VLOOKUP(Rebalance!$D$35,$F$2:$G$48,2,FALSE)+ROW()-2))=Rebalance!$D$35,INDIRECT(\"a\" & (VLOOKUP(Rebalance!$D$35,$F$2:$G$48,2,FALSE)+ROW()-2)),\"\")","v":{"$error":"#N/A"}},{"$f":"IF(INDIRECT(\"c\" & (VLOOKUP(Rebalance!$D$36,$F$2:$G$48,2,FALSE)+ROW()-2))=Rebalance!$D$36,INDIRECT(\"a\" & (VLOOKUP(Rebalance!$D$36,$F$2:$G$48,2,FALSE)+ROW()-2)),\"\")","v":{"$error":"#N/A"}},{"$f":"IF(INDIRECT(\"c\" & (VLOOKUP(Rebalance!$D$37,$F$2:$G$48,2,FALSE)+ROW()-2))=Rebalance!$D$37,INDIRECT(\"a\" & (VLOOKUP(Rebalance!$D$37,$F$2:$G$48,2,FALSE)+ROW()-2)),\"\")","v":{"$error":"#N/A"}},{"$f":"IF(INDIRECT(\"c\" & (VLOOKUP(Rebalance!$D$38,$F$2:$G$48,2,FALSE)+ROW()-2))=Rebalance!$D$38,INDIRECT(\"a\" & (VLOOKUP(Rebalance!$D$38,$F$2:$G$48,2,FALSE)+ROW()-2)),\"\")","v":{"$error":"#N/A"}},{"$f":"IF(INDIRECT(\"c\" & (VLOOKUP(Rebalance!$D$39,$F$2:$G$48,2,FALSE)+ROW()-2))=Rebalance!$D$39,INDIRECT(\"a\" & (VLOOKUP(Rebalance!$D$39,$F$2:$G$48,2,FALSE)+ROW()-2)),\"\")","v":{"$error":"#N/A"}},{"$f":"IF(INDIRECT(\"c\" & (VLOOKUP(Rebalance!$D$40,$F$2:$G$48,2,FALSE)+ROW()-2))=Rebalance!$D$40,INDIRECT(\"a\" & (VLOOKUP(Rebalance!$D$40,$F$2:$G$48,2,FALSE)+ROW()-2)),\"\")","v":{"$error":"#N/A"}},{"$f":"IF(INDIRECT(\"c\" & (VLOOKUP(Rebalance!$D$52,$F$2:$G$48,2,FALSE)+ROW()-2))=Rebalance!$D$52,INDIRECT(\"a\" & (VLOOKUP(Rebalance!$D$52,$F$2:$G$48,2,FALSE)+ROW()-2)),\"\")","v":{"$error":"#N/A"}},{"$f":"IF(INDIRECT(\"c\" & (VLOOKUP(Rebalance!$D$53,$F$2:$G$48,2,FALSE)+ROW()-2))=Rebalance!$D$53,INDIRECT(\"a\" & (VLOOKUP(Rebalance!$D$53,$F$2:$G$48,2,FALSE)+ROW()-2)),\"\")","v":{"$error":"#N/A"}},{"$f":"IF(INDIRECT(\"c\" & (VLOOKUP(Rebalance!$D$54,$F$2:$G$48,2,FALSE)+ROW()-2))=Rebalance!$D$54,INDIRECT(\"a\" & (VLOOKUP(Rebalance!$D$54,$F$2:$G$48,2,FALSE)+ROW()-2)),\"\")","v":{"$error":"#N/A"}},{"$f":"IF(INDIRECT(\"c\" & (VLOOKUP(Rebalance!$D$55,$F$2:$G$48,2,FALSE)+ROW()-2))=Rebalance!$D$55,INDIRECT(\"a\" & (VLOOKUP(Rebalance!$D$55,$F$2:$G$48,2,FALSE)+ROW()-2)),\"\")","v":{"$error":"#N/A"}},{"$f":"IF(INDIRECT(\"c\" & (VLOOKUP(Rebalance!$D$56,$F$2:$G$48,2,FALSE)+ROW()-2))=Rebalance!$D$56,INDIRECT(\"a\" & (VLOOKUP(Rebalance!$D$56,$F$2:$G$48,2,FALSE)+ROW()-2)),\"\")","v":{"$error":"#N/A"}},{"$f":"IF(INDIRECT(\"c\" & (VLOOKUP(Rebalance!$D$57,$F$2:$G$48,2,FALSE)+ROW()-2))=Rebalance!$D$57,INDIRECT(\"a\" & (VLOOKUP(Rebalance!$D$57,$F$2:$G$48,2,FALSE)+ROW()-2)),\"\")","v":{"$error":"#N/A"}},{"$f":"IF(INDIRECT(\"c\" & (VLOOKUP(Rebalance!$D$58,$F$2:$G$48,2,FALSE)+ROW()-2))=Rebalance!$D$58,INDIRECT(\"a\" & (VLOOKUP(Rebalance!$D$58,$F$2:$G$48,2,FALSE)+ROW()-2)),\"\")","v":{"$error":"#N/A"}},{"$f":"IF(INDIRECT(\"c\" & (VLOOKUP(Rebalance!$D$59,$F$2:$G$48,2,FALSE)+ROW()-2))=Rebalance!$D$59,INDIRECT(\"a\" & (VLOOKUP(Rebalance!$D$59,$F$2:$G$48,2,FALSE)+ROW()-2)),\"\")","v":{"$error":"#N/A"}},{"$f":"IF(INDIRECT(\"c\" & (VLOOKUP(Rebalance!$D$60,$F$2:$G$48,2,FALSE)+ROW()-2))=Rebalance!$D$60,INDIRECT(\"a\" & (VLOOKUP(Rebalance!$D$60,$F$2:$G$48,2,FALSE)+ROW()-2)),\"\")","v":{"$error":"#N/A"}},{"$f":"IF(INDIRECT(\"c\" & (VLOOKUP(Rebalance!$D$61,$F$2:$G$48,2,FALSE)+ROW()-2))=Rebalance!$D$61,INDIRECT(\"a\" & (VLOOKUP(Rebalance!$D$61,$F$2:$G$48,2,FALSE)+ROW()-2)),\"\")","v":{"$error":"#N/A"}},{"$f":"IF(INDIRECT(\"c\" & (VLOOKUP(Rebalance!$D$62,$F$2:$G$48,2,FALSE)+ROW()-2))=Rebalance!$D$62,INDIRECT(\"a\" & (VLOOKUP(Rebalance!$D$62,$F$2:$G$48,2,FALSE)+ROW()-2)),\"\")","v":{"$error":"#N/A"}},{"$f":"IF(INDIRECT(\"c\" & (VLOOKUP(Rebalance!$D$63,$F$2:$G$48,2,FALSE)+ROW()-2))=Rebalance!$D$63,INDIRECT(\"a\" & (VLOOKUP(Rebalance!$D$63,$F$2:$G$48,2,FALSE)+ROW()-2)),\"\")","v":{"$error":"#N/A"}},{"$f":"IF(INDIRECT(\"c\" & (VLOOKUP(Rebalance!$D$64,$F$2:$G$48,2,FALSE)+ROW()-2))=Rebalance!$D$64,INDIRECT(\"a\" & (VLOOKUP(Rebalance!$D$64,$F$2:$G$48,2,FALSE)+ROW()-2)),\"\")","v":{"$error":"#N/A"}},{"$f":"IF(INDIRECT(\"c\" & (VLOOKUP(Rebalance!$D$65,$F$2:$G$48,2,FALSE)+ROW()-2))=Rebalance!$D$65,INDIRECT(\"a\" & (VLOOKUP(Rebalance!$D$65,$F$2:$G$48,2,FALSE)+ROW()-2)),\"\")","v":{"$error":"#N/A"}},{"$f":"IF(INDIRECT(\"c\" & (VLOOKUP(Rebalance!$D$66,$F$2:$G$48,2,FALSE)+ROW()-2))=Rebalance!$D$66,INDIRECT(\"a\" & (VLOOKUP(Rebalance!$D$66,$F$2:$G$48,2,FALSE)+ROW()-2)),\"\")","v":{"$error":"#N/A"}}]
["Warwick BCI Balanced Fund A","MIPR","Boutique Collective Investments (Pty) Ltd",{"$f":"ROW()","v":195},null,null,{"$f":"VLOOKUP(F195,$C$2:$D$599,2,FALSE)","v":{"$error":"#N/A"}},{"$f":"IF(INDIRECT(\"c\" & (VLOOKUP(Rebalance!$D$26,$F$2:$G$48,2,FALSE)+ROW()-2))=Rebalance!$D$26,INDIRECT(\"a\" & (VLOOKUP(Rebalance!$D$26,$F$2:$G$48,2,FALSE)+ROW()-2)),\"\")","v":{"$error":"#N/A"}},{"$f":"IF(INDIRECT(\"c\" & (VLOOKUP(Rebalance!$D$27,$F$2:$G$48,2,FALSE)+ROW()-2))=Rebalance!$D$27,INDIRECT(\"a\" & (VLOOKUP(Rebalance!$D$27,$F$2:$G$48,2,FALSE)+ROW()-2)),\"\")","v":{"$error":"#N/A"}},{"$f":"IF(INDIRECT(\"c\" & (VLOOKUP(Rebalance!$D$28,$F$2:$G$48,2,FALSE)+ROW()-2))=Rebalance!$D$28,INDIRECT(\"a\" & (VLOOKUP(Rebalance!$D$28,$F$2:$G$48,2,FALSE)+ROW()-2)),\"\")","v":{"$error":"#N/A"}},{"$f":"IF(INDIRECT(\"c\" & (VLOOKUP(Rebalance!$D$29,$F$2:$G$48,2,FALSE)+ROW()-2))=Rebalance!$D$29,INDIRECT(\"a\" & (VLOOKUP(Rebalance!$D$29,$F$2:$G$48,2,FALSE)+ROW()-2)),\"\")","v":{"$error":"#N/A"}},{"$f":"IF(INDIRECT(\"c\" & (VLOOKUP(Rebalance!$D$30,$F$2:$G$48,2,FALSE)+ROW()-2))=Rebalance!$D$30,INDIRECT(\"a\" & (VLOOKUP(Rebalance!$D$30,$F$2:$G$48,2,FALSE)+ROW()-2)),\"\")","v":{"$error":"#N/A"}},{"$f":"IF(INDIRECT(\"c\" & (VLOOKUP(Rebalance!$D$31,$F$2:$G$48,2,FALSE)+ROW()-2))=Rebalance!$D$31,INDIRECT(\"a\" & (VLOOKUP(Rebalance!$D$31,$F$2:$G$48,2,FALSE)+ROW()-2)),\"\")","v":{"$error":"#N/A"}},{"$f":"IF(INDIRECT(\"c\" & (VLOOKUP(Rebalance!$D$32,$F$2:$G$48,2,FALSE)+ROW()-2))=Rebalance!$D$32,INDIRECT(\"a\" & (VLOOKUP(Rebalance!$D$32,$F$2:$G$48,2,FALSE)+ROW()-2)),\"\")","v":{"$error":"#N/A"}},{"$f":"IF(INDIRECT(\"c\" & (VLOOKUP(Rebalance!$D$33,$F$2:$G$48,2,FALSE)+ROW()-2))=Rebalance!$D$33,INDIRECT(\"a\" & (VLOOKUP(Rebalance!$D$33,$F$2:$G$48,2,FALSE)+ROW()-2)),\"\")","v":{"$error":"#N/A"}},{"$f":"IF(INDIRECT(\"c\" & (VLOOKUP(Rebalance!$D$34,$F$2:$G$48,2,FALSE)+ROW()-2))=Rebalance!$D$34,INDIRECT(\"a\" & (VLOOKUP(Rebalance!$D$34,$F$2:$G$48,2,FALSE)+ROW()-2)),\"\")","v":{"$error":"#N/A"}},{"$f":"IF(INDIRECT(\"c\" & (VLOOKUP(Rebalance!$D$35,$F$2:$G$48,2,FALSE)+ROW()-2))=Rebalance!$D$35,INDIRECT(\"a\" & (VLOOKUP(Rebalance!$D$35,$F$2:$G$48,2,FALSE)+ROW()-2)),\"\")","v":{"$error":"#N/A"}},{"$f":"IF(INDIRECT(\"c\" & (VLOOKUP(Rebalance!$D$36,$F$2:$G$48,2,FALSE)+ROW()-2))=Rebalance!$D$36,INDIRECT(\"a\" & (VLOOKUP(Rebalance!$D$36,$F$2:$G$48,2,FALSE)+ROW()-2)),\"\")","v":{"$error":"#N/A"}},{"$f":"IF(INDIRECT(\"c\" & (VLOOKUP(Rebalance!$D$37,$F$2:$G$48,2,FALSE)+ROW()-2))=Rebalance!$D$37,INDIRECT(\"a\" & (VLOOKUP(Rebalance!$D$37,$F$2:$G$48,2,FALSE)+ROW()-2)),\"\")","v":{"$error":"#N/A"}},{"$f":"IF(INDIRECT(\"c\" & (VLOOKUP(Rebalance!$D$38,$F$2:$G$48,2,FALSE)+ROW()-2))=Rebalance!$D$38,INDIRECT(\"a\" & (VLOOKUP(Rebalance!$D$38,$F$2:$G$48,2,FALSE)+ROW()-2)),\"\")","v":{"$error":"#N/A"}},{"$f":"IF(INDIRECT(\"c\" & (VLOOKUP(Rebalance!$D$39,$F$2:$G$48,2,FALSE)+ROW()-2))=Rebalance!$D$39,INDIRECT(\"a\" & (VLOOKUP(Rebalance!$D$39,$F$2:$G$48,2,FALSE)+ROW()-2)),\"\")","v":{"$error":"#N/A"}},{"$f":"IF(INDIRECT(\"c\" & (VLOOKUP(Rebalance!$D$40,$F$2:$G$48,2,FALSE)+ROW()-2))=Rebalance!$D$40,INDIRECT(\"a\" & (VLOOKUP(Rebalance!$D$40,$F$2:$G$48,2,FALSE)+ROW()-2)),\"\")","v":{"$error":"#N/A"}},{"$f":"IF(INDIRECT(\"c\" & (VLOOKUP(Rebalance!$D$52,$F$2:$G$48,2,FALSE)+ROW()-2))=Rebalance!$D$52,INDIRECT(\"a\" & (VLOOKUP(Rebalance!$D$52,$F$2:$G$48,2,FALSE)+ROW()-2)),\"\")","v":{"$error":"#N/A"}},{"$f":"IF(INDIRECT(\"c\" & (VLOOKUP(Rebalance!$D$53,$F$2:$G$48,2,FALSE)+ROW()-2))=Rebalance!$D$53,INDIRECT(\"a\" & (VLOOKUP(Rebalance!$D$53,$F$2:$G$48,2,FALSE)+ROW()-2)),\"\")","v":{"$error":"#N/A"}},{"$f":"IF(INDIRECT(\"c\" & (VLOOKUP(Rebalance!$D$54,$F$2:$G$48,2,FALSE)+ROW()-2))=Rebalance!$D$54,INDIRECT(\"a\" & (VLOOKUP(Rebalance!$D$54,$F$2:$G$48,2,FALSE)+ROW()-2)),\"\")","v":{"$error":"#N/A"}},{"$f":"IF(INDIRECT(\"c\" & (VLOOKUP(Rebalance!$D$55,$F$2:$G$48,2,FALSE)+ROW()-2))=Rebalance!$D$55,INDIRECT(\"a\" & (VLOOKUP(Rebalance!$D$55,$F$2:$G$48,2,FALSE)+ROW()-2)),\"\")","v":{"$error":"#N/A"}},{"$f":"IF(INDIRECT(\"c\" & (VLOOKUP(Rebalance!$D$56,$F$2:$G$48,2,FALSE)+ROW()-2))=Rebalance!$D$56,INDIRECT(\"a\" & (VLOOKUP(Rebalance!$D$56,$F$2:$G$48,2,FALSE)+ROW()-2)),\"\")","v":{"$error":"#N/A"}},{"$f":"IF(INDIRECT(\"c\" & (VLOOKUP(Rebalance!$D$57,$F$2:$G$48,2,FALSE)+ROW()-2))=Rebalance!$D$57,INDIRECT(\"a\" & (VLOOKUP(Rebalance!$D$57,$F$2:$G$48,2,FALSE)+ROW()-2)),\"\")","v":{"$error":"#N/A"}},{"$f":"IF(INDIRECT(\"c\" & (VLOOKUP(Rebalance!$D$58,$F$2:$G$48,2,FALSE)+ROW()-2))=Rebalance!$D$58,INDIRECT(\"a\" & (VLOOKUP(Rebalance!$D$58,$F$2:$G$48,2,FALSE)+ROW()-2)),\"\")","v":{"$error":"#N/A"}},{"$f":"IF(INDIRECT(\"c\" & (VLOOKUP(Rebalance!$D$59,$F$2:$G$48,2,FALSE)+ROW()-2))=Rebalance!$D$59,INDIRECT(\"a\" & (VLOOKUP(Rebalance!$D$59,$F$2:$G$48,2,FALSE)+ROW()-2)),\"\")","v":{"$error":"#N/A"}},{"$f":"IF(INDIRECT(\"c\" & (VLOOKUP(Rebalance!$D$60,$F$2:$G$48,2,FALSE)+ROW()-2))=Rebalance!$D$60,INDIRECT(\"a\" & (VLOOKUP(Rebalance!$D$60,$F$2:$G$48,2,FALSE)+ROW()-2)),\"\")","v":{"$error":"#N/A"}},{"$f":"IF(INDIRECT(\"c\" & (VLOOKUP(Rebalance!$D$61,$F$2:$G$48,2,FALSE)+ROW()-2))=Rebalance!$D$61,INDIRECT(\"a\" & (VLOOKUP(Rebalance!$D$61,$F$2:$G$48,2,FALSE)+ROW()-2)),\"\")","v":{"$error":"#N/A"}},{"$f":"IF(INDIRECT(\"c\" & (VLOOKUP(Rebalance!$D$62,$F$2:$G$48,2,FALSE)+ROW()-2))=Rebalance!$D$62,INDIRECT(\"a\" & (VLOOKUP(Rebalance!$D$62,$F$2:$G$48,2,FALSE)+ROW()-2)),\"\")","v":{"$error":"#N/A"}},{"$f":"IF(INDIRECT(\"c\" & (VLOOKUP(Rebalance!$D$63,$F$2:$G$48,2,FALSE)+ROW()-2))=Rebalance!$D$63,INDIRECT(\"a\" & (VLOOKUP(Rebalance!$D$63,$F$2:$G$48,2,FALSE)+ROW()-2)),\"\")","v":{"$error":"#N/A"}},{"$f":"IF(INDIRECT(\"c\" & (VLOOKUP(Rebalance!$D$64,$F$2:$G$48,2,FALSE)+ROW()-2))=Rebalance!$D$64,INDIRECT(\"a\" & (VLOOKUP(Rebalance!$D$64,$F$2:$G$48,2,FALSE)+ROW()-2)),\"\")","v":{"$error":"#N/A"}},{"$f":"IF(INDIRECT(\"c\" & (VLOOKUP(Rebalance!$D$65,$F$2:$G$48,2,FALSE)+ROW()-2))=Rebalance!$D$65,INDIRECT(\"a\" & (VLOOKUP(Rebalance!$D$65,$F$2:$G$48,2,FALSE)+ROW()-2)),\"\")","v":{"$error":"#N/A"}},{"$f":"IF(INDIRECT(\"c\" & (VLOOKUP(Rebalance!$D$66,$F$2:$G$48,2,FALSE)+ROW()-2))=Rebalance!$D$66,INDIRECT(\"a\" & (VLOOKUP(Rebalance!$D$66,$F$2:$G$48,2,FALSE)+ROW()-2)),\"\")","v":{"$error":"#N/A"}}]
["Warwick BCI Balanced Fund of Funds A","WMMCA","Boutique Collective Investments (Pty) Ltd",{"$f":"ROW()","v":196},null,null,{"$f":"VLOOKUP(F196,$C$2:$D$599,2,FALSE)","v":{"$error":"#N/A"}},{"$f":"IF(INDIRECT(\"c\" & (VLOOKUP(Rebalance!$D$26,$F$2:$G$48,2,FALSE)+ROW()-2))=Rebalance!$D$26,INDIRECT(\"a\" & (VLOOKUP(Rebalance!$D$26,$F$2:$G$48,2,FALSE)+ROW()-2)),\"\")","v":{"$error":"#N/A"}},{"$f":"IF(INDIRECT(\"c\" & (VLOOKUP(Rebalance!$D$27,$F$2:$G$48,2,FALSE)+ROW()-2))=Rebalance!$D$27,INDIRECT(\"a\" & (VLOOKUP(Rebalance!$D$27,$F$2:$G$48,2,FALSE)+ROW()-2)),\"\")","v":{"$error":"#N/A"}},{"$f":"IF(INDIRECT(\"c\" & (VLOOKUP(Rebalance!$D$28,$F$2:$G$48,2,FALSE)+ROW()-2))=Rebalance!$D$28,INDIRECT(\"a\" & (VLOOKUP(Rebalance!$D$28,$F$2:$G$48,2,FALSE)+ROW()-2)),\"\")","v":{"$error":"#N/A"}},{"$f":"IF(INDIRECT(\"c\" & (VLOOKUP(Rebalance!$D$29,$F$2:$G$48,2,FALSE)+ROW()-2))=Rebalance!$D$29,INDIRECT(\"a\" & (VLOOKUP(Rebalance!$D$29,$F$2:$G$48,2,FALSE)+ROW()-2)),\"\")","v":{"$error":"#N/A"}},{"$f":"IF(INDIRECT(\"c\" & (VLOOKUP(Rebalance!$D$30,$F$2:$G$48,2,FALSE)+ROW()-2))=Rebalance!$D$30,INDIRECT(\"a\" & (VLOOKUP(Rebalance!$D$30,$F$2:$G$48,2,FALSE)+ROW()-2)),\"\")","v":{"$error":"#N/A"}},{"$f":"IF(INDIRECT(\"c\" & (VLOOKUP(Rebalance!$D$31,$F$2:$G$48,2,FALSE)+ROW()-2))=Rebalance!$D$31,INDIRECT(\"a\" & (VLOOKUP(Rebalance!$D$31,$F$2:$G$48,2,FALSE)+ROW()-2)),\"\")","v":{"$error":"#N/A"}},{"$f":"IF(INDIRECT(\"c\" & (VLOOKUP(Rebalance!$D$32,$F$2:$G$48,2,FALSE)+ROW()-2))=Rebalance!$D$32,INDIRECT(\"a\" & (VLOOKUP(Rebalance!$D$32,$F$2:$G$48,2,FALSE)+ROW()-2)),\"\")","v":{"$error":"#N/A"}},{"$f":"IF(INDIRECT(\"c\" & (VLOOKUP(Rebalance!$D$33,$F$2:$G$48,2,FALSE)+ROW()-2))=Rebalance!$D$33,INDIRECT(\"a\" & (VLOOKUP(Rebalance!$D$33,$F$2:$G$48,2,FALSE)+ROW()-2)),\"\")","v":{"$error":"#N/A"}},{"$f":"IF(INDIRECT(\"c\" & (VLOOKUP(Rebalance!$D$34,$F$2:$G$48,2,FALSE)+ROW()-2))=Rebalance!$D$34,INDIRECT(\"a\" & (VLOOKUP(Rebalance!$D$34,$F$2:$G$48,2,FALSE)+ROW()-2)),\"\")","v":{"$error":"#N/A"}},{"$f":"IF(INDIRECT(\"c\" & (VLOOKUP(Rebalance!$D$35,$F$2:$G$48,2,FALSE)+ROW()-2))=Rebalance!$D$35,INDIRECT(\"a\" & (VLOOKUP(Rebalance!$D$35,$F$2:$G$48,2,FALSE)+ROW()-2)),\"\")","v":{"$error":"#N/A"}},{"$f":"IF(INDIRECT(\"c\" & (VLOOKUP(Rebalance!$D$36,$F$2:$G$48,2,FALSE)+ROW()-2))=Rebalance!$D$36,INDIRECT(\"a\" & (VLOOKUP(Rebalance!$D$36,$F$2:$G$48,2,FALSE)+ROW()-2)),\"\")","v":{"$error":"#N/A"}},{"$f":"IF(INDIRECT(\"c\" & (VLOOKUP(Rebalance!$D$37,$F$2:$G$48,2,FALSE)+ROW()-2))=Rebalance!$D$37,INDIRECT(\"a\" & (VLOOKUP(Rebalance!$D$37,$F$2:$G$48,2,FALSE)+ROW()-2)),\"\")","v":{"$error":"#N/A"}},{"$f":"IF(INDIRECT(\"c\" & (VLOOKUP(Rebalance!$D$38,$F$2:$G$48,2,FALSE)+ROW()-2))=Rebalance!$D$38,INDIRECT(\"a\" & (VLOOKUP(Rebalance!$D$38,$F$2:$G$48,2,FALSE)+ROW()-2)),\"\")","v":{"$error":"#N/A"}},{"$f":"IF(INDIRECT(\"c\" & (VLOOKUP(Rebalance!$D$39,$F$2:$G$48,2,FALSE)+ROW()-2))=Rebalance!$D$39,INDIRECT(\"a\" & (VLOOKUP(Rebalance!$D$39,$F$2:$G$48,2,FALSE)+ROW()-2)),\"\")","v":{"$error":"#N/A"}},{"$f":"IF(INDIRECT(\"c\" & (VLOOKUP(Rebalance!$D$40,$F$2:$G$48,2,FALSE)+ROW()-2))=Rebalance!$D$40,INDIRECT(\"a\" & (VLOOKUP(Rebalance!$D$40,$F$2:$G$48,2,FALSE)+ROW()-2)),\"\")","v":{"$error":"#N/A"}},{"$f":"IF(INDIRECT(\"c\" & (VLOOKUP(Rebalance!$D$52,$F$2:$G$48,2,FALSE)+ROW()-2))=Rebalance!$D$52,INDIRECT(\"a\" & (VLOOKUP(Rebalance!$D$52,$F$2:$G$48,2,FALSE)+ROW()-2)),\"\")","v":{"$error":"#N/A"}},{"$f":"IF(INDIRECT(\"c\" & (VLOOKUP(Rebalance!$D$53,$F$2:$G$48,2,FALSE)+ROW()-2))=Rebalance!$D$53,INDIRECT(\"a\" & (VLOOKUP(Rebalance!$D$53,$F$2:$G$48,2,FALSE)+ROW()-2)),\"\")","v":{"$error":"#N/A"}},{"$f":"IF(INDIRECT(\"c\" & (VLOOKUP(Rebalance!$D$54,$F$2:$G$48,2,FALSE)+ROW()-2))=Rebalance!$D$54,INDIRECT(\"a\" & (VLOOKUP(Rebalance!$D$54,$F$2:$G$48,2,FALSE)+ROW()-2)),\"\")","v":{"$error":"#N/A"}},{"$f":"IF(INDIRECT(\"c\" & (VLOOKUP(Rebalance!$D$55,$F$2:$G$48,2,FALSE)+ROW()-2))=Rebalance!$D$55,INDIRECT(\"a\" & (VLOOKUP(Rebalance!$D$55,$F$2:$G$48,2,FALSE)+ROW()-2)),\"\")","v":{"$error":"#N/A"}},{"$f":"IF(INDIRECT(\"c\" & (VLOOKUP(Rebalance!$D$56,$F$2:$G$48,2,FALSE)+ROW()-2))=Rebalance!$D$56,INDIRECT(\"a\" & (VLOOKUP(Rebalance!$D$56,$F$2:$G$48,2,FALSE)+ROW()-2)),\"\")","v":{"$error":"#N/A"}},{"$f":"IF(INDIRECT(\"c\" & (VLOOKUP(Rebalance!$D$57,$F$2:$G$48,2,FALSE)+ROW()-2))=Rebalance!$D$57,INDIRECT(\"a\" & (VLOOKUP(Rebalance!$D$57,$F$2:$G$48,2,FALSE)+ROW()-2)),\"\")","v":{"$error":"#N/A"}},{"$f":"IF(INDIRECT(\"c\" & (VLOOKUP(Rebalance!$D$58,$F$2:$G$48,2,FALSE)+ROW()-2))=Rebalance!$D$58,INDIRECT(\"a\" & (VLOOKUP(Rebalance!$D$58,$F$2:$G$48,2,FALSE)+ROW()-2)),\"\")","v":{"$error":"#N/A"}},{"$f":"IF(INDIRECT(\"c\" & (VLOOKUP(Rebalance!$D$59,$F$2:$G$48,2,FALSE)+ROW()-2))=Rebalance!$D$59,INDIRECT(\"a\" & (VLOOKUP(Rebalance!$D$59,$F$2:$G$48,2,FALSE)+ROW()-2)),\"\")","v":{"$error":"#N/A"}},{"$f":"IF(INDIRECT(\"c\" & (VLOOKUP(Rebalance!$D$60,$F$2:$G$48,2,FALSE)+ROW()-2))=Rebalance!$D$60,INDIRECT(\"a\" & (VLOOKUP(Rebalance!$D$60,$F$2:$G$48,2,FALSE)+ROW()-2)),\"\")","v":{"$error":"#N/A"}},{"$f":"IF(INDIRECT(\"c\" & (VLOOKUP(Rebalance!$D$61,$F$2:$G$48,2,FALSE)+ROW()-2))=Rebalance!$D$61,INDIRECT(\"a\" & (VLOOKUP(Rebalance!$D$61,$F$2:$G$48,2,FALSE)+ROW()-2)),\"\")","v":{"$error":"#N/A"}},{"$f":"IF(INDIRECT(\"c\" & (VLOOKUP(Rebalance!$D$62,$F$2:$G$48,2,FALSE)+ROW()-2))=Rebalance!$D$62,INDIRECT(\"a\" & (VLOOKUP(Rebalance!$D$62,$F$2:$G$48,2,FALSE)+ROW()-2)),\"\")","v":{"$error":"#N/A"}},{"$f":"IF(INDIRECT(\"c\" & (VLOOKUP(Rebalance!$D$63,$F$2:$G$48,2,FALSE)+ROW()-2))=Rebalance!$D$63,INDIRECT(\"a\" & (VLOOKUP(Rebalance!$D$63,$F$2:$G$48,2,FALSE)+ROW()-2)),\"\")","v":{"$error":"#N/A"}},{"$f":"IF(INDIRECT(\"c\" & (VLOOKUP(Rebalance!$D$64,$F$2:$G$48,2,FALSE)+ROW()-2))=Rebalance!$D$64,INDIRECT(\"a\" & (VLOOKUP(Rebalance!$D$64,$F$2:$G$48,2,FALSE)+ROW()-2)),\"\")","v":{"$error":"#N/A"}},{"$f":"IF(INDIRECT(\"c\" & (VLOOKUP(Rebalance!$D$65,$F$2:$G$48,2,FALSE)+ROW()-2))=Rebalance!$D$65,INDIRECT(\"a\" & (VLOOKUP(Rebalance!$D$65,$F$2:$G$48,2,FALSE)+ROW()-2)),\"\")","v":{"$error":"#N/A"}},{"$f":"IF(INDIRECT(\"c\" & (VLOOKUP(Rebalance!$D$66,$F$2:$G$48,2,FALSE)+ROW()-2))=Rebalance!$D$66,INDIRECT(\"a\" & (VLOOKUP(Rebalance!$D$66,$F$2:$G$48,2,FALSE)+ROW()-2)),\"\")","v":{"$error":"#N/A"}}]
["Warwick BCI Enhanced Income Fund A","WMECA","Boutique Collective Investments (Pty) Ltd",{"$f":"ROW()","v":197},null,null,{"$f":"VLOOKUP(F197,$C$2:$D$599,2,FALSE)","v":{"$error":"#N/A"}},{"$f":"IF(INDIRECT(\"c\" & (VLOOKUP(Rebalance!$D$26,$F$2:$G$48,2,FALSE)+ROW()-2))=Rebalance!$D$26,INDIRECT(\"a\" & (VLOOKUP(Rebalance!$D$26,$F$2:$G$48,2,FALSE)+ROW()-2)),\"\")","v":{"$error":"#N/A"}},{"$f":"IF(INDIRECT(\"c\" & (VLOOKUP(Rebalance!$D$27,$F$2:$G$48,2,FALSE)+ROW()-2))=Rebalance!$D$27,INDIRECT(\"a\" & (VLOOKUP(Rebalance!$D$27,$F$2:$G$48,2,FALSE)+ROW()-2)),\"\")","v":{"$error":"#N/A"}},{"$f":"IF(INDIRECT(\"c\" & (VLOOKUP(Rebalance!$D$28,$F$2:$G$48,2,FALSE)+ROW()-2))=Rebalance!$D$28,INDIRECT(\"a\" & (VLOOKUP(Rebalance!$D$28,$F$2:$G$48,2,FALSE)+ROW()-2)),\"\")","v":{"$error":"#N/A"}},{"$f":"IF(INDIRECT(\"c\" & (VLOOKUP(Rebalance!$D$29,$F$2:$G$48,2,FALSE)+ROW()-2))=Rebalance!$D$29,INDIRECT(\"a\" & (VLOOKUP(Rebalance!$D$29,$F$2:$G$48,2,FALSE)+ROW()-2)),\"\")","v":{"$error":"#N/A"}},{"$f":"IF(INDIRECT(\"c\" & (VLOOKUP(Rebalance!$D$30,$F$2:$G$48,2,FALSE)+ROW()-2))=Rebalance!$D$30,INDIRECT(\"a\" & (VLOOKUP(Rebalance!$D$30,$F$2:$G$48,2,FALSE)+ROW()-2)),\"\")","v":{"$error":"#N/A"}},{"$f":"IF(INDIRECT(\"c\" & (VLOOKUP(Rebalance!$D$31,$F$2:$G$48,2,FALSE)+ROW()-2))=Rebalance!$D$31,INDIRECT(\"a\" & (VLOOKUP(Rebalance!$D$31,$F$2:$G$48,2,FALSE)+ROW()-2)),\"\")","v":{"$error":"#N/A"}},{"$f":"IF(INDIRECT(\"c\" & (VLOOKUP(Rebalance!$D$32,$F$2:$G$48,2,FALSE)+ROW()-2))=Rebalance!$D$32,INDIRECT(\"a\" & (VLOOKUP(Rebalance!$D$32,$F$2:$G$48,2,FALSE)+ROW()-2)),\"\")","v":{"$error":"#N/A"}},{"$f":"IF(INDIRECT(\"c\" & (VLOOKUP(Rebalance!$D$33,$F$2:$G$48,2,FALSE)+ROW()-2))=Rebalance!$D$33,INDIRECT(\"a\" & (VLOOKUP(Rebalance!$D$33,$F$2:$G$48,2,FALSE)+ROW()-2)),\"\")","v":{"$error":"#N/A"}},{"$f":"IF(INDIRECT(\"c\" & (VLOOKUP(Rebalance!$D$34,$F$2:$G$48,2,FALSE)+ROW()-2))=Rebalance!$D$34,INDIRECT(\"a\" & (VLOOKUP(Rebalance!$D$34,$F$2:$G$48,2,FALSE)+ROW()-2)),\"\")","v":{"$error":"#N/A"}},{"$f":"IF(INDIRECT(\"c\" & (VLOOKUP(Rebalance!$D$35,$F$2:$G$48,2,FALSE)+ROW()-2))=Rebalance!$D$35,INDIRECT(\"a\" & (VLOOKUP(Rebalance!$D$35,$F$2:$G$48,2,FALSE)+ROW()-2)),\"\")","v":{"$error":"#N/A"}},{"$f":"IF(INDIRECT(\"c\" & (VLOOKUP(Rebalance!$D$36,$F$2:$G$48,2,FALSE)+ROW()-2))=Rebalance!$D$36,INDIRECT(\"a\" & (VLOOKUP(Rebalance!$D$36,$F$2:$G$48,2,FALSE)+ROW()-2)),\"\")","v":{"$error":"#N/A"}},{"$f":"IF(INDIRECT(\"c\" & (VLOOKUP(Rebalance!$D$37,$F$2:$G$48,2,FALSE)+ROW()-2))=Rebalance!$D$37,INDIRECT(\"a\" & (VLOOKUP(Rebalance!$D$37,$F$2:$G$48,2,FALSE)+ROW()-2)),\"\")","v":{"$error":"#N/A"}},{"$f":"IF(INDIRECT(\"c\" & (VLOOKUP(Rebalance!$D$38,$F$2:$G$48,2,FALSE)+ROW()-2))=Rebalance!$D$38,INDIRECT(\"a\" & (VLOOKUP(Rebalance!$D$38,$F$2:$G$48,2,FALSE)+ROW()-2)),\"\")","v":{"$error":"#N/A"}},{"$f":"IF(INDIRECT(\"c\" & (VLOOKUP(Rebalance!$D$39,$F$2:$G$48,2,FALSE)+ROW()-2))=Rebalance!$D$39,INDIRECT(\"a\" & (VLOOKUP(Rebalance!$D$39,$F$2:$G$48,2,FALSE)+ROW()-2)),\"\")","v":{"$error":"#N/A"}},{"$f":"IF(INDIRECT(\"c\" & (VLOOKUP(Rebalance!$D$40,$F$2:$G$48,2,FALSE)+ROW()-2))=Rebalance!$D$40,INDIRECT(\"a\" & (VLOOKUP(Rebalance!$D$40,$F$2:$G$48,2,FALSE)+ROW()-2)),\"\")","v":{"$error":"#N/A"}},{"$f":"IF(INDIRECT(\"c\" & (VLOOKUP(Rebalance!$D$52,$F$2:$G$48,2,FALSE)+ROW()-2))=Rebalance!$D$52,INDIRECT(\"a\" & (VLOOKUP(Rebalance!$D$52,$F$2:$G$48,2,FALSE)+ROW()-2)),\"\")","v":{"$error":"#N/A"}},{"$f":"IF(INDIRECT(\"c\" & (VLOOKUP(Rebalance!$D$53,$F$2:$G$48,2,FALSE)+ROW()-2))=Rebalance!$D$53,INDIRECT(\"a\" & (VLOOKUP(Rebalance!$D$53,$F$2:$G$48,2,FALSE)+ROW()-2)),\"\")","v":{"$error":"#N/A"}},{"$f":"IF(INDIRECT(\"c\" & (VLOOKUP(Rebalance!$D$54,$F$2:$G$48,2,FALSE)+ROW()-2))=Rebalance!$D$54,INDIRECT(\"a\" & (VLOOKUP(Rebalance!$D$54,$F$2:$G$48,2,FALSE)+ROW()-2)),\"\")","v":{"$error":"#N/A"}},{"$f":"IF(INDIRECT(\"c\" & (VLOOKUP(Rebalance!$D$55,$F$2:$G$48,2,FALSE)+ROW()-2))=Rebalance!$D$55,INDIRECT(\"a\" & (VLOOKUP(Rebalance!$D$55,$F$2:$G$48,2,FALSE)+ROW()-2)),\"\")","v":{"$error":"#N/A"}},{"$f":"IF(INDIRECT(\"c\" & (VLOOKUP(Rebalance!$D$56,$F$2:$G$48,2,FALSE)+ROW()-2))=Rebalance!$D$56,INDIRECT(\"a\" & (VLOOKUP(Rebalance!$D$56,$F$2:$G$48,2,FALSE)+ROW()-2)),\"\")","v":{"$error":"#N/A"}},{"$f":"IF(INDIRECT(\"c\" & (VLOOKUP(Rebalance!$D$57,$F$2:$G$48,2,FALSE)+ROW()-2))=Rebalance!$D$57,INDIRECT(\"a\" & (VLOOKUP(Rebalance!$D$57,$F$2:$G$48,2,FALSE)+ROW()-2)),\"\")","v":{"$error":"#N/A"}},{"$f":"IF(INDIRECT(\"c\" & (VLOOKUP(Rebalance!$D$58,$F$2:$G$48,2,FALSE)+ROW()-2))=Rebalance!$D$58,INDIRECT(\"a\" & (VLOOKUP(Rebalance!$D$58,$F$2:$G$48,2,FALSE)+ROW()-2)),\"\")","v":{"$error":"#N/A"}},{"$f":"IF(INDIRECT(\"c\" & (VLOOKUP(Rebalance!$D$59,$F$2:$G$48,2,FALSE)+ROW()-2))=Rebalance!$D$59,INDIRECT(\"a\" & (VLOOKUP(Rebalance!$D$59,$F$2:$G$48,2,FALSE)+ROW()-2)),\"\")","v":{"$error":"#N/A"}},{"$f":"IF(INDIRECT(\"c\" & (VLOOKUP(Rebalance!$D$60,$F$2:$G$48,2,FALSE)+ROW()-2))=Rebalance!$D$60,INDIRECT(\"a\" & (VLOOKUP(Rebalance!$D$60,$F$2:$G$48,2,FALSE)+ROW()-2)),\"\")","v":{"$error":"#N/A"}},{"$f":"IF(INDIRECT(\"c\" & (VLOOKUP(Rebalance!$D$61,$F$2:$G$48,2,FALSE)+ROW()-2))=Rebalance!$D$61,INDIRECT(\"a\" & (VLOOKUP(Rebalance!$D$61,$F$2:$G$48,2,FALSE)+ROW()-2)),\"\")","v":{"$error":"#N/A"}},{"$f":"IF(INDIRECT(\"c\" & (VLOOKUP(Rebalance!$D$62,$F$2:$G$48,2,FALSE)+ROW()-2))=Rebalance!$D$62,INDIRECT(\"a\" & (VLOOKUP(Rebalance!$D$62,$F$2:$G$48,2,FALSE)+ROW()-2)),\"\")","v":{"$error":"#N/A"}},{"$f":"IF(INDIRECT(\"c\" & (VLOOKUP(Rebalance!$D$63,$F$2:$G$48,2,FALSE)+ROW()-2))=Rebalance!$D$63,INDIRECT(\"a\" & (VLOOKUP(Rebalance!$D$63,$F$2:$G$48,2,FALSE)+ROW()-2)),\"\")","v":{"$error":"#N/A"}},{"$f":"IF(INDIRECT(\"c\" & (VLOOKUP(Rebalance!$D$64,$F$2:$G$48,2,FALSE)+ROW()-2))=Rebalance!$D$64,INDIRECT(\"a\" & (VLOOKUP(Rebalance!$D$64,$F$2:$G$48,2,FALSE)+ROW()-2)),\"\")","v":{"$error":"#N/A"}},{"$f":"IF(INDIRECT(\"c\" & (VLOOKUP(Rebalance!$D$65,$F$2:$G$48,2,FALSE)+ROW()-2))=Rebalance!$D$65,INDIRECT(\"a\" & (VLOOKUP(Rebalance!$D$65,$F$2:$G$48,2,FALSE)+ROW()-2)),\"\")","v":{"$error":"#N/A"}},{"$f":"IF(INDIRECT(\"c\" & (VLOOKUP(Rebalance!$D$66,$F$2:$G$48,2,FALSE)+ROW()-2))=Rebalance!$D$66,INDIRECT(\"a\" & (VLOOKUP(Rebalance!$D$66,$F$2:$G$48,2,FALSE)+ROW()-2)),\"\")","v":{"$error":"#N/A"}}]
["Warwick BCI Equity Fund A","WMEFA","Boutique Collective Investments (Pty) Ltd",{"$f":"ROW()","v":198},null,null,{"$f":"VLOOKUP(F198,$C$2:$D$599,2,FALSE)","v":{"$error":"#N/A"}},{"$f":"IF(INDIRECT(\"c\" & (VLOOKUP(Rebalance!$D$26,$F$2:$G$48,2,FALSE)+ROW()-2))=Rebalance!$D$26,INDIRECT(\"a\" & (VLOOKUP(Rebalance!$D$26,$F$2:$G$48,2,FALSE)+ROW()-2)),\"\")","v":{"$error":"#N/A"}},{"$f":"IF(INDIRECT(\"c\" & (VLOOKUP(Rebalance!$D$27,$F$2:$G$48,2,FALSE)+ROW()-2))=Rebalance!$D$27,INDIRECT(\"a\" & (VLOOKUP(Rebalance!$D$27,$F$2:$G$48,2,FALSE)+ROW()-2)),\"\")","v":{"$error":"#N/A"}},{"$f":"IF(INDIRECT(\"c\" & (VLOOKUP(Rebalance!$D$28,$F$2:$G$48,2,FALSE)+ROW()-2))=Rebalance!$D$28,INDIRECT(\"a\" & (VLOOKUP(Rebalance!$D$28,$F$2:$G$48,2,FALSE)+ROW()-2)),\"\")","v":{"$error":"#N/A"}},{"$f":"IF(INDIRECT(\"c\" & (VLOOKUP(Rebalance!$D$29,$F$2:$G$48,2,FALSE)+ROW()-2))=Rebalance!$D$29,INDIRECT(\"a\" & (VLOOKUP(Rebalance!$D$29,$F$2:$G$48,2,FALSE)+ROW()-2)),\"\")","v":{"$error":"#N/A"}},{"$f":"IF(INDIRECT(\"c\" & (VLOOKUP(Rebalance!$D$30,$F$2:$G$48,2,FALSE)+ROW()-2))=Rebalance!$D$30,INDIRECT(\"a\" & (VLOOKUP(Rebalance!$D$30,$F$2:$G$48,2,FALSE)+ROW()-2)),\"\")","v":{"$error":"#N/A"}},{"$f":"IF(INDIRECT(\"c\" & (VLOOKUP(Rebalance!$D$31,$F$2:$G$48,2,FALSE)+ROW()-2))=Rebalance!$D$31,INDIRECT(\"a\" & (VLOOKUP(Rebalance!$D$31,$F$2:$G$48,2,FALSE)+ROW()-2)),\"\")","v":{"$error":"#N/A"}},{"$f":"IF(INDIRECT(\"c\" & (VLOOKUP(Rebalance!$D$32,$F$2:$G$48,2,FALSE)+ROW()-2))=Rebalance!$D$32,INDIRECT(\"a\" & (VLOOKUP(Rebalance!$D$32,$F$2:$G$48,2,FALSE)+ROW()-2)),\"\")","v":{"$error":"#N/A"}},{"$f":"IF(INDIRECT(\"c\" & (VLOOKUP(Rebalance!$D$33,$F$2:$G$48,2,FALSE)+ROW()-2))=Rebalance!$D$33,INDIRECT(\"a\" & (VLOOKUP(Rebalance!$D$33,$F$2:$G$48,2,FALSE)+ROW()-2)),\"\")","v":{"$error":"#N/A"}},{"$f":"IF(INDIRECT(\"c\" & (VLOOKUP(Rebalance!$D$34,$F$2:$G$48,2,FALSE)+ROW()-2))=Rebalance!$D$34,INDIRECT(\"a\" & (VLOOKUP(Rebalance!$D$34,$F$2:$G$48,2,FALSE)+ROW()-2)),\"\")","v":{"$error":"#N/A"}},{"$f":"IF(INDIRECT(\"c\" & (VLOOKUP(Rebalance!$D$35,$F$2:$G$48,2,FALSE)+ROW()-2))=Rebalance!$D$35,INDIRECT(\"a\" & (VLOOKUP(Rebalance!$D$35,$F$2:$G$48,2,FALSE)+ROW()-2)),\"\")","v":{"$error":"#N/A"}},{"$f":"IF(INDIRECT(\"c\" & (VLOOKUP(Rebalance!$D$36,$F$2:$G$48,2,FALSE)+ROW()-2))=Rebalance!$D$36,INDIRECT(\"a\" & (VLOOKUP(Rebalance!$D$36,$F$2:$G$48,2,FALSE)+ROW()-2)),\"\")","v":{"$error":"#N/A"}},{"$f":"IF(INDIRECT(\"c\" & (VLOOKUP(Rebalance!$D$37,$F$2:$G$48,2,FALSE)+ROW()-2))=Rebalance!$D$37,INDIRECT(\"a\" & (VLOOKUP(Rebalance!$D$37,$F$2:$G$48,2,FALSE)+ROW()-2)),\"\")","v":{"$error":"#N/A"}},{"$f":"IF(INDIRECT(\"c\" & (VLOOKUP(Rebalance!$D$38,$F$2:$G$48,2,FALSE)+ROW()-2))=Rebalance!$D$38,INDIRECT(\"a\" & (VLOOKUP(Rebalance!$D$38,$F$2:$G$48,2,FALSE)+ROW()-2)),\"\")","v":{"$error":"#N/A"}},{"$f":"IF(INDIRECT(\"c\" & (VLOOKUP(Rebalance!$D$39,$F$2:$G$48,2,FALSE)+ROW()-2))=Rebalance!$D$39,INDIRECT(\"a\" & (VLOOKUP(Rebalance!$D$39,$F$2:$G$48,2,FALSE)+ROW()-2)),\"\")","v":{"$error":"#N/A"}},{"$f":"IF(INDIRECT(\"c\" & (VLOOKUP(Rebalance!$D$40,$F$2:$G$48,2,FALSE)+ROW()-2))=Rebalance!$D$40,INDIRECT(\"a\" & (VLOOKUP(Rebalance!$D$40,$F$2:$G$48,2,FALSE)+ROW()-2)),\"\")","v":{"$error":"#N/A"}},{"$f":"IF(INDIRECT(\"c\" & (VLOOKUP(Rebalance!$D$52,$F$2:$G$48,2,FALSE)+ROW()-2))=Rebalance!$D$52,INDIRECT(\"a\" & (VLOOKUP(Rebalance!$D$52,$F$2:$G$48,2,FALSE)+ROW()-2)),\"\")","v":{"$error":"#N/A"}},{"$f":"IF(INDIRECT(\"c\" & (VLOOKUP(Rebalance!$D$53,$F$2:$G$48,2,FALSE)+ROW()-2))=Rebalance!$D$53,INDIRECT(\"a\" & (VLOOKUP(Rebalance!$D$53,$F$2:$G$48,2,FALSE)+ROW()-2)),\"\")","v":{"$error":"#N/A"}},{"$f":"IF(INDIRECT(\"c\" & (VLOOKUP(Rebalance!$D$54,$F$2:$G$48,2,FALSE)+ROW()-2))=Rebalance!$D$54,INDIRECT(\"a\" & (VLOOKUP(Rebalance!$D$54,$F$2:$G$48,2,FALSE)+ROW()-2)),\"\")","v":{"$error":"#N/A"}},{"$f":"IF(INDIRECT(\"c\" & (VLOOKUP(Rebalance!$D$55,$F$2:$G$48,2,FALSE)+ROW()-2))=Rebalance!$D$55,INDIRECT(\"a\" & (VLOOKUP(Rebalance!$D$55,$F$2:$G$48,2,FALSE)+ROW()-2)),\"\")","v":{"$error":"#N/A"}},{"$f":"IF(INDIRECT(\"c\" & (VLOOKUP(Rebalance!$D$56,$F$2:$G$48,2,FALSE)+ROW()-2))=Rebalance!$D$56,INDIRECT(\"a\" & (VLOOKUP(Rebalance!$D$56,$F$2:$G$48,2,FALSE)+ROW()-2)),\"\")","v":{"$error":"#N/A"}},{"$f":"IF(INDIRECT(\"c\" & (VLOOKUP(Rebalance!$D$57,$F$2:$G$48,2,FALSE)+ROW()-2))=Rebalance!$D$57,INDIRECT(\"a\" & (VLOOKUP(Rebalance!$D$57,$F$2:$G$48,2,FALSE)+ROW()-2)),\"\")","v":{"$error":"#N/A"}},{"$f":"IF(INDIRECT(\"c\" & (VLOOKUP(Rebalance!$D$58,$F$2:$G$48,2,FALSE)+ROW()-2))=Rebalance!$D$58,INDIRECT(\"a\" & (VLOOKUP(Rebalance!$D$58,$F$2:$G$48,2,FALSE)+ROW()-2)),\"\")","v":{"$error":"#N/A"}},{"$f":"IF(INDIRECT(\"c\" & (VLOOKUP(Rebalance!$D$59,$F$2:$G$48,2,FALSE)+ROW()-2))=Rebalance!$D$59,INDIRECT(\"a\" & (VLOOKUP(Rebalance!$D$59,$F$2:$G$48,2,FALSE)+ROW()-2)),\"\")","v":{"$error":"#N/A"}},{"$f":"IF(INDIRECT(\"c\" & (VLOOKUP(Rebalance!$D$60,$F$2:$G$48,2,FALSE)+ROW()-2))=Rebalance!$D$60,INDIRECT(\"a\" & (VLOOKUP(Rebalance!$D$60,$F$2:$G$48,2,FALSE)+ROW()-2)),\"\")","v":{"$error":"#N/A"}},{"$f":"IF(INDIRECT(\"c\" & (VLOOKUP(Rebalance!$D$61,$F$2:$G$48,2,FALSE)+ROW()-2))=Rebalance!$D$61,INDIRECT(\"a\" & (VLOOKUP(Rebalance!$D$61,$F$2:$G$48,2,FALSE)+ROW()-2)),\"\")","v":{"$error":"#N/A"}},{"$f":"IF(INDIRECT(\"c\" & (VLOOKUP(Rebalance!$D$62,$F$2:$G$48,2,FALSE)+ROW()-2))=Rebalance!$D$62,INDIRECT(\"a\" & (VLOOKUP(Rebalance!$D$62,$F$2:$G$48,2,FALSE)+ROW()-2)),\"\")","v":{"$error":"#N/A"}},{"$f":"IF(INDIRECT(\"c\" & (VLOOKUP(Rebalance!$D$63,$F$2:$G$48,2,FALSE)+ROW()-2))=Rebalance!$D$63,INDIRECT(\"a\" & (VLOOKUP(Rebalance!$D$63,$F$2:$G$48,2,FALSE)+ROW()-2)),\"\")","v":{"$error":"#N/A"}},{"$f":"IF(INDIRECT(\"c\" & (VLOOKUP(Rebalance!$D$64,$F$2:$G$48,2,FALSE)+ROW()-2))=Rebalance!$D$64,INDIRECT(\"a\" & (VLOOKUP(Rebalance!$D$64,$F$2:$G$48,2,FALSE)+ROW()-2)),\"\")","v":{"$error":"#N/A"}},{"$f":"IF(INDIRECT(\"c\" & (VLOOKUP(Rebalance!$D$65,$F$2:$G$48,2,FALSE)+ROW()-2))=Rebalance!$D$65,INDIRECT(\"a\" & (VLOOKUP(Rebalance!$D$65,$F$2:$G$48,2,FALSE)+ROW()-2)),\"\")","v":{"$error":"#N/A"}},{"$f":"IF(INDIRECT(\"c\" & (VLOOKUP(Rebalance!$D$66,$F$2:$G$48,2,FALSE)+ROW()-2))=Rebalance!$D$66,INDIRECT(\"a\" & (VLOOKUP(Rebalance!$D$66,$F$2:$G$48,2,FALSE)+ROW()-2)),\"\")","v":{"$error":"#N/A"}}]
["Warwick BCI International Fund of Funds A","WMICA","Boutique Collective Investments (Pty) Ltd",{"$f":"ROW()","v":199},null,null,{"$f":"VLOOKUP(F199,$C$2:$D$599,2,FALSE)","v":{"$error":"#N/A"}},{"$f":"IF(INDIRECT(\"c\" & (VLOOKUP(Rebalance!$D$26,$F$2:$G$48,2,FALSE)+ROW()-2))=Rebalance!$D$26,INDIRECT(\"a\" & (VLOOKUP(Rebalance!$D$26,$F$2:$G$48,2,FALSE)+ROW()-2)),\"\")","v":{"$error":"#N/A"}},{"$f":"IF(INDIRECT(\"c\" & (VLOOKUP(Rebalance!$D$27,$F$2:$G$48,2,FALSE)+ROW()-2))=Rebalance!$D$27,INDIRECT(\"a\" & (VLOOKUP(Rebalance!$D$27,$F$2:$G$48,2,FALSE)+ROW()-2)),\"\")","v":{"$error":"#N/A"}},{"$f":"IF(INDIRECT(\"c\" & (VLOOKUP(Rebalance!$D$28,$F$2:$G$48,2,FALSE)+ROW()-2))=Rebalance!$D$28,INDIRECT(\"a\" & (VLOOKUP(Rebalance!$D$28,$F$2:$G$48,2,FALSE)+ROW()-2)),\"\")","v":{"$error":"#N/A"}},{"$f":"IF(INDIRECT(\"c\" & (VLOOKUP(Rebalance!$D$29,$F$2:$G$48,2,FALSE)+ROW()-2))=Rebalance!$D$29,INDIRECT(\"a\" & (VLOOKUP(Rebalance!$D$29,$F$2:$G$48,2,FALSE)+ROW()-2)),\"\")","v":{"$error":"#N/A"}},{"$f":"IF(INDIRECT(\"c\" & (VLOOKUP(Rebalance!$D$30,$F$2:$G$48,2,FALSE)+ROW()-2))=Rebalance!$D$30,INDIRECT(\"a\" & (VLOOKUP(Rebalance!$D$30,$F$2:$G$48,2,FALSE)+ROW()-2)),\"\")","v":{"$error":"#N/A"}},{"$f":"IF(INDIRECT(\"c\" & (VLOOKUP(Rebalance!$D$31,$F$2:$G$48,2,FALSE)+ROW()-2))=Rebalance!$D$31,INDIRECT(\"a\" & (VLOOKUP(Rebalance!$D$31,$F$2:$G$48,2,FALSE)+ROW()-2)),\"\")","v":{"$error":"#N/A"}},{"$f":"IF(INDIRECT(\"c\" & (VLOOKUP(Rebalance!$D$32,$F$2:$G$48,2,FALSE)+ROW()-2))=Rebalance!$D$32,INDIRECT(\"a\" & (VLOOKUP(Rebalance!$D$32,$F$2:$G$48,2,FALSE)+ROW()-2)),\"\")","v":{"$error":"#N/A"}},{"$f":"IF(INDIRECT(\"c\" & (VLOOKUP(Rebalance!$D$33,$F$2:$G$48,2,FALSE)+ROW()-2))=Rebalance!$D$33,INDIRECT(\"a\" & (VLOOKUP(Rebalance!$D$33,$F$2:$G$48,2,FALSE)+ROW()-2)),\"\")","v":{"$error":"#N/A"}},{"$f":"IF(INDIRECT(\"c\" & (VLOOKUP(Rebalance!$D$34,$F$2:$G$48,2,FALSE)+ROW()-2))=Rebalance!$D$34,INDIRECT(\"a\" & (VLOOKUP(Rebalance!$D$34,$F$2:$G$48,2,FALSE)+ROW()-2)),\"\")","v":{"$error":"#N/A"}},{"$f":"IF(INDIRECT(\"c\" & (VLOOKUP(Rebalance!$D$35,$F$2:$G$48,2,FALSE)+ROW()-2))=Rebalance!$D$35,INDIRECT(\"a\" & (VLOOKUP(Rebalance!$D$35,$F$2:$G$48,2,FALSE)+ROW()-2)),\"\")","v":{"$error":"#N/A"}},{"$f":"IF(INDIRECT(\"c\" & (VLOOKUP(Rebalance!$D$36,$F$2:$G$48,2,FALSE)+ROW()-2))=Rebalance!$D$36,INDIRECT(\"a\" & (VLOOKUP(Rebalance!$D$36,$F$2:$G$48,2,FALSE)+ROW()-2)),\"\")","v":{"$error":"#N/A"}},{"$f":"IF(INDIRECT(\"c\" & (VLOOKUP(Rebalance!$D$37,$F$2:$G$48,2,FALSE)+ROW()-2))=Rebalance!$D$37,INDIRECT(\"a\" & (VLOOKUP(Rebalance!$D$37,$F$2:$G$48,2,FALSE)+ROW()-2)),\"\")","v":{"$error":"#N/A"}},{"$f":"IF(INDIRECT(\"c\" & (VLOOKUP(Rebalance!$D$38,$F$2:$G$48,2,FALSE)+ROW()-2))=Rebalance!$D$38,INDIRECT(\"a\" & (VLOOKUP(Rebalance!$D$38,$F$2:$G$48,2,FALSE)+ROW()-2)),\"\")","v":{"$error":"#N/A"}},{"$f":"IF(INDIRECT(\"c\" & (VLOOKUP(Rebalance!$D$39,$F$2:$G$48,2,FALSE)+ROW()-2))=Rebalance!$D$39,INDIRECT(\"a\" & (VLOOKUP(Rebalance!$D$39,$F$2:$G$48,2,FALSE)+ROW()-2)),\"\")","v":{"$error":"#N/A"}},{"$f":"IF(INDIRECT(\"c\" & (VLOOKUP(Rebalance!$D$40,$F$2:$G$48,2,FALSE)+ROW()-2))=Rebalance!$D$40,INDIRECT(\"a\" & (VLOOKUP(Rebalance!$D$40,$F$2:$G$48,2,FALSE)+ROW()-2)),\"\")","v":{"$error":"#N/A"}},{"$f":"IF(INDIRECT(\"c\" & (VLOOKUP(Rebalance!$D$52,$F$2:$G$48,2,FALSE)+ROW()-2))=Rebalance!$D$52,INDIRECT(\"a\" & (VLOOKUP(Rebalance!$D$52,$F$2:$G$48,2,FALSE)+ROW()-2)),\"\")","v":{"$error":"#N/A"}},{"$f":"IF(INDIRECT(\"c\" & (VLOOKUP(Rebalance!$D$53,$F$2:$G$48,2,FALSE)+ROW()-2))=Rebalance!$D$53,INDIRECT(\"a\" & (VLOOKUP(Rebalance!$D$53,$F$2:$G$48,2,FALSE)+ROW()-2)),\"\")","v":{"$error":"#N/A"}},{"$f":"IF(INDIRECT(\"c\" & (VLOOKUP(Rebalance!$D$54,$F$2:$G$48,2,FALSE)+ROW()-2))=Rebalance!$D$54,INDIRECT(\"a\" & (VLOOKUP(Rebalance!$D$54,$F$2:$G$48,2,FALSE)+ROW()-2)),\"\")","v":{"$error":"#N/A"}},{"$f":"IF(INDIRECT(\"c\" & (VLOOKUP(Rebalance!$D$55,$F$2:$G$48,2,FALSE)+ROW()-2))=Rebalance!$D$55,INDIRECT(\"a\" & (VLOOKUP(Rebalance!$D$55,$F$2:$G$48,2,FALSE)+ROW()-2)),\"\")","v":{"$error":"#N/A"}},{"$f":"IF(INDIRECT(\"c\" & (VLOOKUP(Rebalance!$D$56,$F$2:$G$48,2,FALSE)+ROW()-2))=Rebalance!$D$56,INDIRECT(\"a\" & (VLOOKUP(Rebalance!$D$56,$F$2:$G$48,2,FALSE)+ROW()-2)),\"\")","v":{"$error":"#N/A"}},{"$f":"IF(INDIRECT(\"c\" & (VLOOKUP(Rebalance!$D$57,$F$2:$G$48,2,FALSE)+ROW()-2))=Rebalance!$D$57,INDIRECT(\"a\" & (VLOOKUP(Rebalance!$D$57,$F$2:$G$48,2,FALSE)+ROW()-2)),\"\")","v":{"$error":"#N/A"}},{"$f":"IF(INDIRECT(\"c\" & (VLOOKUP(Rebalance!$D$58,$F$2:$G$48,2,FALSE)+ROW()-2))=Rebalance!$D$58,INDIRECT(\"a\" & (VLOOKUP(Rebalance!$D$58,$F$2:$G$48,2,FALSE)+ROW()-2)),\"\")","v":{"$error":"#N/A"}},{"$f":"IF(INDIRECT(\"c\" & (VLOOKUP(Rebalance!$D$59,$F$2:$G$48,2,FALSE)+ROW()-2))=Rebalance!$D$59,INDIRECT(\"a\" & (VLOOKUP(Rebalance!$D$59,$F$2:$G$48,2,FALSE)+ROW()-2)),\"\")","v":{"$error":"#N/A"}},{"$f":"IF(INDIRECT(\"c\" & (VLOOKUP(Rebalance!$D$60,$F$2:$G$48,2,FALSE)+ROW()-2))=Rebalance!$D$60,INDIRECT(\"a\" & (VLOOKUP(Rebalance!$D$60,$F$2:$G$48,2,FALSE)+ROW()-2)),\"\")","v":{"$error":"#N/A"}},{"$f":"IF(INDIRECT(\"c\" & (VLOOKUP(Rebalance!$D$61,$F$2:$G$48,2,FALSE)+ROW()-2))=Rebalance!$D$61,INDIRECT(\"a\" & (VLOOKUP(Rebalance!$D$61,$F$2:$G$48,2,FALSE)+ROW()-2)),\"\")","v":{"$error":"#N/A"}},{"$f":"IF(INDIRECT(\"c\" & (VLOOKUP(Rebalance!$D$62,$F$2:$G$48,2,FALSE)+ROW()-2))=Rebalance!$D$62,INDIRECT(\"a\" & (VLOOKUP(Rebalance!$D$62,$F$2:$G$48,2,FALSE)+ROW()-2)),\"\")","v":{"$error":"#N/A"}},{"$f":"IF(INDIRECT(\"c\" & (VLOOKUP(Rebalance!$D$63,$F$2:$G$48,2,FALSE)+ROW()-2))=Rebalance!$D$63,INDIRECT(\"a\" & (VLOOKUP(Rebalance!$D$63,$F$2:$G$48,2,FALSE)+ROW()-2)),\"\")","v":{"$error":"#N/A"}},{"$f":"IF(INDIRECT(\"c\" & (VLOOKUP(Rebalance!$D$64,$F$2:$G$48,2,FALSE)+ROW()-2))=Rebalance!$D$64,INDIRECT(\"a\" & (VLOOKUP(Rebalance!$D$64,$F$2:$G$48,2,FALSE)+ROW()-2)),\"\")","v":{"$error":"#N/A"}},{"$f":"IF(INDIRECT(\"c\" & (VLOOKUP(Rebalance!$D$65,$F$2:$G$48,2,FALSE)+ROW()-2))=Rebalance!$D$65,INDIRECT(\"a\" & (VLOOKUP(Rebalance!$D$65,$F$2:$G$48,2,FALSE)+ROW()-2)),\"\")","v":{"$error":"#N/A"}},{"$f":"IF(INDIRECT(\"c\" & (VLOOKUP(Rebalance!$D$66,$F$2:$G$48,2,FALSE)+ROW()-2))=Rebalance!$D$66,INDIRECT(\"a\" & (VLOOKUP(Rebalance!$D$66,$F$2:$G$48,2,FALSE)+ROW()-2)),\"\")","v":{"$error":"#N/A"}}]
["Warwick BCI Property Fund","WMPCA","Boutique Collective Investments (Pty) Ltd",{"$f":"ROW()","v":200},null,null,{"$f":"VLOOKUP(F200,$C$2:$D$599,2,FALSE)","v":{"$error":"#N/A"}},{"$f":"IF(INDIRECT(\"c\" & (VLOOKUP(Rebalance!$D$26,$F$2:$G$48,2,FALSE)+ROW()-2))=Rebalance!$D$26,INDIRECT(\"a\" & (VLOOKUP(Rebalance!$D$26,$F$2:$G$48,2,FALSE)+ROW()-2)),\"\")","v":{"$error":"#N/A"}},{"$f":"IF(INDIRECT(\"c\" & (VLOOKUP(Rebalance!$D$27,$F$2:$G$48,2,FALSE)+ROW()-2))=Rebalance!$D$27,INDIRECT(\"a\" & (VLOOKUP(Rebalance!$D$27,$F$2:$G$48,2,FALSE)+ROW()-2)),\"\")","v":{"$error":"#N/A"}},{"$f":"IF(INDIRECT(\"c\" & (VLOOKUP(Rebalance!$D$28,$F$2:$G$48,2,FALSE)+ROW()-2))=Rebalance!$D$28,INDIRECT(\"a\" & (VLOOKUP(Rebalance!$D$28,$F$2:$G$48,2,FALSE)+ROW()-2)),\"\")","v":{"$error":"#N/A"}},{"$f":"IF(INDIRECT(\"c\" & (VLOOKUP(Rebalance!$D$29,$F$2:$G$48,2,FALSE)+ROW()-2))=Rebalance!$D$29,INDIRECT(\"a\" & (VLOOKUP(Rebalance!$D$29,$F$2:$G$48,2,FALSE)+ROW()-2)),\"\")","v":{"$error":"#N/A"}},{"$f":"IF(INDIRECT(\"c\" & (VLOOKUP(Rebalance!$D$30,$F$2:$G$48,2,FALSE)+ROW()-2))=Rebalance!$D$30,INDIRECT(\"a\" & (VLOOKUP(Rebalance!$D$30,$F$2:$G$48,2,FALSE)+ROW()-2)),\"\")","v":{"$error":"#N/A"}},{"$f":"IF(INDIRECT(\"c\" & (VLOOKUP(Rebalance!$D$31,$F$2:$G$48,2,FALSE)+ROW()-2))=Rebalance!$D$31,INDIRECT(\"a\" & (VLOOKUP(Rebalance!$D$31,$F$2:$G$48,2,FALSE)+ROW()-2)),\"\")","v":{"$error":"#N/A"}},{"$f":"IF(INDIRECT(\"c\" & (VLOOKUP(Rebalance!$D$32,$F$2:$G$48,2,FALSE)+ROW()-2))=Rebalance!$D$32,INDIRECT(\"a\" & (VLOOKUP(Rebalance!$D$32,$F$2:$G$48,2,FALSE)+ROW()-2)),\"\")","v":{"$error":"#N/A"}},{"$f":"IF(INDIRECT(\"c\" & (VLOOKUP(Rebalance!$D$33,$F$2:$G$48,2,FALSE)+ROW()-2))=Rebalance!$D$33,INDIRECT(\"a\" & (VLOOKUP(Rebalance!$D$33,$F$2:$G$48,2,FALSE)+ROW()-2)),\"\")","v":{"$error":"#N/A"}},{"$f":"IF(INDIRECT(\"c\" & (VLOOKUP(Rebalance!$D$34,$F$2:$G$48,2,FALSE)+ROW()-2))=Rebalance!$D$34,INDIRECT(\"a\" & (VLOOKUP(Rebalance!$D$34,$F$2:$G$48,2,FALSE)+ROW()-2)),\"\")","v":{"$error":"#N/A"}},{"$f":"IF(INDIRECT(\"c\" & (VLOOKUP(Rebalance!$D$35,$F$2:$G$48,2,FALSE)+ROW()-2))=Rebalance!$D$35,INDIRECT(\"a\" & (VLOOKUP(Rebalance!$D$35,$F$2:$G$48,2,FALSE)+ROW()-2)),\"\")","v":{"$error":"#N/A"}},{"$f":"IF(INDIRECT(\"c\" & (VLOOKUP(Rebalance!$D$36,$F$2:$G$48,2,FALSE)+ROW()-2))=Rebalance!$D$36,INDIRECT(\"a\" & (VLOOKUP(Rebalance!$D$36,$F$2:$G$48,2,FALSE)+ROW()-2)),\"\")","v":{"$error":"#N/A"}},{"$f":"IF(INDIRECT(\"c\" & (VLOOKUP(Rebalance!$D$37,$F$2:$G$48,2,FALSE)+ROW()-2))=Rebalance!$D$37,INDIRECT(\"a\" & (VLOOKUP(Rebalance!$D$37,$F$2:$G$48,2,FALSE)+ROW()-2)),\"\")","v":{"$error":"#N/A"}},{"$f":"IF(INDIRECT(\"c\" & (VLOOKUP(Rebalance!$D$38,$F$2:$G$48,2,FALSE)+ROW()-2))=Rebalance!$D$38,INDIRECT(\"a\" & (VLOOKUP(Rebalance!$D$38,$F$2:$G$48,2,FALSE)+ROW()-2)),\"\")","v":{"$error":"#N/A"}},{"$f":"IF(INDIRECT(\"c\" & (VLOOKUP(Rebalance!$D$39,$F$2:$G$48,2,FALSE)+ROW()-2))=Rebalance!$D$39,INDIRECT(\"a\" & (VLOOKUP(Rebalance!$D$39,$F$2:$G$48,2,FALSE)+ROW()-2)),\"\")","v":{"$error":"#N/A"}},{"$f":"IF(INDIRECT(\"c\" & (VLOOKUP(Rebalance!$D$40,$F$2:$G$48,2,FALSE)+ROW()-2))=Rebalance!$D$40,INDIRECT(\"a\" & (VLOOKUP(Rebalance!$D$40,$F$2:$G$48,2,FALSE)+ROW()-2)),\"\")","v":{"$error":"#N/A"}},{"$f":"IF(INDIRECT(\"c\" & (VLOOKUP(Rebalance!$D$52,$F$2:$G$48,2,FALSE)+ROW()-2))=Rebalance!$D$52,INDIRECT(\"a\" & (VLOOKUP(Rebalance!$D$52,$F$2:$G$48,2,FALSE)+ROW()-2)),\"\")","v":{"$error":"#N/A"}},{"$f":"IF(INDIRECT(\"c\" & (VLOOKUP(Rebalance!$D$53,$F$2:$G$48,2,FALSE)+ROW()-2))=Rebalance!$D$53,INDIRECT(\"a\" & (VLOOKUP(Rebalance!$D$53,$F$2:$G$48,2,FALSE)+ROW()-2)),\"\")","v":{"$error":"#N/A"}},{"$f":"IF(INDIRECT(\"c\" & (VLOOKUP(Rebalance!$D$54,$F$2:$G$48,2,FALSE)+ROW()-2))=Rebalance!$D$54,INDIRECT(\"a\" & (VLOOKUP(Rebalance!$D$54,$F$2:$G$48,2,FALSE)+ROW()-2)),\"\")","v":{"$error":"#N/A"}},{"$f":"IF(INDIRECT(\"c\" & (VLOOKUP(Rebalance!$D$55,$F$2:$G$48,2,FALSE)+ROW()-2))=Rebalance!$D$55,INDIRECT(\"a\" & (VLOOKUP(Rebalance!$D$55,$F$2:$G$48,2,FALSE)+ROW()-2)),\"\")","v":{"$error":"#N/A"}},{"$f":"IF(INDIRECT(\"c\" & (VLOOKUP(Rebalance!$D$56,$F$2:$G$48,2,FALSE)+ROW()-2))=Rebalance!$D$56,INDIRECT(\"a\" & (VLOOKUP(Rebalance!$D$56,$F$2:$G$48,2,FALSE)+ROW()-2)),\"\")","v":{"$error":"#N/A"}},{"$f":"IF(INDIRECT(\"c\" & (VLOOKUP(Rebalance!$D$57,$F$2:$G$48,2,FALSE)+ROW()-2))=Rebalance!$D$57,INDIRECT(\"a\" & (VLOOKUP(Rebalance!$D$57,$F$2:$G$48,2,FALSE)+ROW()-2)),\"\")","v":{"$error":"#N/A"}},{"$f":"IF(INDIRECT(\"c\" & (VLOOKUP(Rebalance!$D$58,$F$2:$G$48,2,FALSE)+ROW()-2))=Rebalance!$D$58,INDIRECT(\"a\" & (VLOOKUP(Rebalance!$D$58,$F$2:$G$48,2,FALSE)+ROW()-2)),\"\")","v":{"$error":"#N/A"}},{"$f":"IF(INDIRECT(\"c\" & (VLOOKUP(Rebalance!$D$59,$F$2:$G$48,2,FALSE)+ROW()-2))=Rebalance!$D$59,INDIRECT(\"a\" & (VLOOKUP(Rebalance!$D$59,$F$2:$G$48,2,FALSE)+ROW()-2)),\"\")","v":{"$error":"#N/A"}},{"$f":"IF(INDIRECT(\"c\" & (VLOOKUP(Rebalance!$D$60,$F$2:$G$48,2,FALSE)+ROW()-2))=Rebalance!$D$60,INDIRECT(\"a\" & (VLOOKUP(Rebalance!$D$60,$F$2:$G$48,2,FALSE)+ROW()-2)),\"\")","v":{"$error":"#N/A"}},{"$f":"IF(INDIRECT(\"c\" & (VLOOKUP(Rebalance!$D$61,$F$2:$G$48,2,FALSE)+ROW()-2))=Rebalance!$D$61,INDIRECT(\"a\" & (VLOOKUP(Rebalance!$D$61,$F$2:$G$48,2,FALSE)+ROW()-2)),\"\")","v":{"$error":"#N/A"}},{"$f":"IF(INDIRECT(\"c\" & (VLOOKUP(Rebalance!$D$62,$F$2:$G$48,2,FALSE)+ROW()-2))=Rebalance!$D$62,INDIRECT(\"a\" & (VLOOKUP(Rebalance!$D$62,$F$2:$G$48,2,FALSE)+ROW()-2)),\"\")","v":{"$error":"#N/A"}},{"$f":"IF(INDIRECT(\"c\" & (VLOOKUP(Rebalance!$D$63,$F$2:$G$48,2,FALSE)+ROW()-2))=Rebalance!$D$63,INDIRECT(\"a\" & (VLOOKUP(Rebalance!$D$63,$F$2:$G$48,2,FALSE)+ROW()-2)),\"\")","v":{"$error":"#N/A"}},{"$f":"IF(INDIRECT(\"c\" & (VLOOKUP(Rebalance!$D$64,$F$2:$G$48,2,FALSE)+ROW()-2))=Rebalance!$D$64,INDIRECT(\"a\" & (VLOOKUP(Rebalance!$D$64,$F$2:$G$48,2,FALSE)+ROW()-2)),\"\")","v":{"$error":"#N/A"}},{"$f":"IF(INDIRECT(\"c\" & (VLOOKUP(Rebalance!$D$65,$F$2:$G$48,2,FALSE)+ROW()-2))=Rebalance!$D$65,INDIRECT(\"a\" & (VLOOKUP(Rebalance!$D$65,$F$2:$G$48,2,FALSE)+ROW()-2)),\"\")","v":{"$error":"#N/A"}},{"$f":"IF(INDIRECT(\"c\" & (VLOOKUP(Rebalance!$D$66,$F$2:$G$48,2,FALSE)+ROW()-2))=Rebalance!$D$66,INDIRECT(\"a\" & (VLOOKUP(Rebalance!$D$66,$F$2:$G$48,2,FALSE)+ROW()-2)),\"\")","v":{"$error":"#N/A"}}]
["Bridge Balanced Fund C","GBFCC","Bridge Collective Investments (Pty) Ltd",{"$f":"ROW()","v":201},null,null,{"$f":"VLOOKUP(F201,$C$2:$D$599,2,FALSE)","v":{"$error":"#N/A"}},{"$f":"IF(INDIRECT(\"c\" & (VLOOKUP(Rebalance!$D$26,$F$2:$G$48,2,FALSE)+ROW()-2))=Rebalance!$D$26,INDIRECT(\"a\" & (VLOOKUP(Rebalance!$D$26,$F$2:$G$48,2,FALSE)+ROW()-2)),\"\")","v":{"$error":"#N/A"}},{"$f":"IF(INDIRECT(\"c\" & (VLOOKUP(Rebalance!$D$27,$F$2:$G$48,2,FALSE)+ROW()-2))=Rebalance!$D$27,INDIRECT(\"a\" & (VLOOKUP(Rebalance!$D$27,$F$2:$G$48,2,FALSE)+ROW()-2)),\"\")","v":{"$error":"#N/A"}},{"$f":"IF(INDIRECT(\"c\" & (VLOOKUP(Rebalance!$D$28,$F$2:$G$48,2,FALSE)+ROW()-2))=Rebalance!$D$28,INDIRECT(\"a\" & (VLOOKUP(Rebalance!$D$28,$F$2:$G$48,2,FALSE)+ROW()-2)),\"\")","v":{"$error":"#N/A"}},{"$f":"IF(INDIRECT(\"c\" & (VLOOKUP(Rebalance!$D$29,$F$2:$G$48,2,FALSE)+ROW()-2))=Rebalance!$D$29,INDIRECT(\"a\" & (VLOOKUP(Rebalance!$D$29,$F$2:$G$48,2,FALSE)+ROW()-2)),\"\")","v":{"$error":"#N/A"}},{"$f":"IF(INDIRECT(\"c\" & (VLOOKUP(Rebalance!$D$30,$F$2:$G$48,2,FALSE)+ROW()-2))=Rebalance!$D$30,INDIRECT(\"a\" & (VLOOKUP(Rebalance!$D$30,$F$2:$G$48,2,FALSE)+ROW()-2)),\"\")","v":{"$error":"#N/A"}},{"$f":"IF(INDIRECT(\"c\" & (VLOOKUP(Rebalance!$D$31,$F$2:$G$48,2,FALSE)+ROW()-2))=Rebalance!$D$31,INDIRECT(\"a\" & (VLOOKUP(Rebalance!$D$31,$F$2:$G$48,2,FALSE)+ROW()-2)),\"\")","v":{"$error":"#N/A"}},{"$f":"IF(INDIRECT(\"c\" & (VLOOKUP(Rebalance!$D$32,$F$2:$G$48,2,FALSE)+ROW()-2))=Rebalance!$D$32,INDIRECT(\"a\" & (VLOOKUP(Rebalance!$D$32,$F$2:$G$48,2,FALSE)+ROW()-2)),\"\")","v":{"$error":"#N/A"}},{"$f":"IF(INDIRECT(\"c\" & (VLOOKUP(Rebalance!$D$33,$F$2:$G$48,2,FALSE)+ROW()-2))=Rebalance!$D$33,INDIRECT(\"a\" & (VLOOKUP(Rebalance!$D$33,$F$2:$G$48,2,FALSE)+ROW()-2)),\"\")","v":{"$error":"#N/A"}},{"$f":"IF(INDIRECT(\"c\" & (VLOOKUP(Rebalance!$D$34,$F$2:$G$48,2,FALSE)+ROW()-2))=Rebalance!$D$34,INDIRECT(\"a\" & (VLOOKUP(Rebalance!$D$34,$F$2:$G$48,2,FALSE)+ROW()-2)),\"\")","v":{"$error":"#N/A"}},{"$f":"IF(INDIRECT(\"c\" & (VLOOKUP(Rebalance!$D$35,$F$2:$G$48,2,FALSE)+ROW()-2))=Rebalance!$D$35,INDIRECT(\"a\" & (VLOOKUP(Rebalance!$D$35,$F$2:$G$48,2,FALSE)+ROW()-2)),\"\")","v":{"$error":"#N/A"}},{"$f":"IF(INDIRECT(\"c\" & (VLOOKUP(Rebalance!$D$36,$F$2:$G$48,2,FALSE)+ROW()-2))=Rebalance!$D$36,INDIRECT(\"a\" & (VLOOKUP(Rebalance!$D$36,$F$2:$G$48,2,FALSE)+ROW()-2)),\"\")","v":{"$error":"#N/A"}},{"$f":"IF(INDIRECT(\"c\" & (VLOOKUP(Rebalance!$D$37,$F$2:$G$48,2,FALSE)+ROW()-2))=Rebalance!$D$37,INDIRECT(\"a\" & (VLOOKUP(Rebalance!$D$37,$F$2:$G$48,2,FALSE)+ROW()-2)),\"\")","v":{"$error":"#N/A"}},{"$f":"IF(INDIRECT(\"c\" & (VLOOKUP(Rebalance!$D$38,$F$2:$G$48,2,FALSE)+ROW()-2))=Rebalance!$D$38,INDIRECT(\"a\" & (VLOOKUP(Rebalance!$D$38,$F$2:$G$48,2,FALSE)+ROW()-2)),\"\")","v":{"$error":"#N/A"}},{"$f":"IF(INDIRECT(\"c\" & (VLOOKUP(Rebalance!$D$39,$F$2:$G$48,2,FALSE)+ROW()-2))=Rebalance!$D$39,INDIRECT(\"a\" & (VLOOKUP(Rebalance!$D$39,$F$2:$G$48,2,FALSE)+ROW()-2)),\"\")","v":{"$error":"#N/A"}},{"$f":"IF(INDIRECT(\"c\" & (VLOOKUP(Rebalance!$D$40,$F$2:$G$48,2,FALSE)+ROW()-2))=Rebalance!$D$40,INDIRECT(\"a\" & (VLOOKUP(Rebalance!$D$40,$F$2:$G$48,2,FALSE)+ROW()-2)),\"\")","v":{"$error":"#N/A"}},{"$f":"IF(INDIRECT(\"c\" & (VLOOKUP(Rebalance!$D$52,$F$2:$G$48,2,FALSE)+ROW()-2))=Rebalance!$D$52,INDIRECT(\"a\" & (VLOOKUP(Rebalance!$D$52,$F$2:$G$48,2,FALSE)+ROW()-2)),\"\")","v":{"$error":"#N/A"}},{"$f":"IF(INDIRECT(\"c\" & (VLOOKUP(Rebalance!$D$53,$F$2:$G$48,2,FALSE)+ROW()-2))=Rebalance!$D$53,INDIRECT(\"a\" & (VLOOKUP(Rebalance!$D$53,$F$2:$G$48,2,FALSE)+ROW()-2)),\"\")","v":{"$error":"#N/A"}},{"$f":"IF(INDIRECT(\"c\" & (VLOOKUP(Rebalance!$D$54,$F$2:$G$48,2,FALSE)+ROW()-2))=Rebalance!$D$54,INDIRECT(\"a\" & (VLOOKUP(Rebalance!$D$54,$F$2:$G$48,2,FALSE)+ROW()-2)),\"\")","v":{"$error":"#N/A"}},{"$f":"IF(INDIRECT(\"c\" & (VLOOKUP(Rebalance!$D$55,$F$2:$G$48,2,FALSE)+ROW()-2))=Rebalance!$D$55,INDIRECT(\"a\" & (VLOOKUP(Rebalance!$D$55,$F$2:$G$48,2,FALSE)+ROW()-2)),\"\")","v":{"$error":"#N/A"}},{"$f":"IF(INDIRECT(\"c\" & (VLOOKUP(Rebalance!$D$56,$F$2:$G$48,2,FALSE)+ROW()-2))=Rebalance!$D$56,INDIRECT(\"a\" & (VLOOKUP(Rebalance!$D$56,$F$2:$G$48,2,FALSE)+ROW()-2)),\"\")","v":{"$error":"#N/A"}},{"$f":"IF(INDIRECT(\"c\" & (VLOOKUP(Rebalance!$D$57,$F$2:$G$48,2,FALSE)+ROW()-2))=Rebalance!$D$57,INDIRECT(\"a\" & (VLOOKUP(Rebalance!$D$57,$F$2:$G$48,2,FALSE)+ROW()-2)),\"\")","v":{"$error":"#N/A"}},{"$f":"IF(INDIRECT(\"c\" & (VLOOKUP(Rebalance!$D$58,$F$2:$G$48,2,FALSE)+ROW()-2))=Rebalance!$D$58,INDIRECT(\"a\" & (VLOOKUP(Rebalance!$D$58,$F$2:$G$48,2,FALSE)+ROW()-2)),\"\")","v":{"$error":"#N/A"}},{"$f":"IF(INDIRECT(\"c\" & (VLOOKUP(Rebalance!$D$59,$F$2:$G$48,2,FALSE)+ROW()-2))=Rebalance!$D$59,INDIRECT(\"a\" & (VLOOKUP(Rebalance!$D$59,$F$2:$G$48,2,FALSE)+ROW()-2)),\"\")","v":{"$error":"#N/A"}},{"$f":"IF(INDIRECT(\"c\" & (VLOOKUP(Rebalance!$D$60,$F$2:$G$48,2,FALSE)+ROW()-2))=Rebalance!$D$60,INDIRECT(\"a\" & (VLOOKUP(Rebalance!$D$60,$F$2:$G$48,2,FALSE)+ROW()-2)),\"\")","v":{"$error":"#N/A"}},{"$f":"IF(INDIRECT(\"c\" & (VLOOKUP(Rebalance!$D$61,$F$2:$G$48,2,FALSE)+ROW()-2))=Rebalance!$D$61,INDIRECT(\"a\" & (VLOOKUP(Rebalance!$D$61,$F$2:$G$48,2,FALSE)+ROW()-2)),\"\")","v":{"$error":"#N/A"}},{"$f":"IF(INDIRECT(\"c\" & (VLOOKUP(Rebalance!$D$62,$F$2:$G$48,2,FALSE)+ROW()-2))=Rebalance!$D$62,INDIRECT(\"a\" & (VLOOKUP(Rebalance!$D$62,$F$2:$G$48,2,FALSE)+ROW()-2)),\"\")","v":{"$error":"#N/A"}},{"$f":"IF(INDIRECT(\"c\" & (VLOOKUP(Rebalance!$D$63,$F$2:$G$48,2,FALSE)+ROW()-2))=Rebalance!$D$63,INDIRECT(\"a\" & (VLOOKUP(Rebalance!$D$63,$F$2:$G$48,2,FALSE)+ROW()-2)),\"\")","v":{"$error":"#N/A"}},{"$f":"IF(INDIRECT(\"c\" & (VLOOKUP(Rebalance!$D$64,$F$2:$G$48,2,FALSE)+ROW()-2))=Rebalance!$D$64,INDIRECT(\"a\" & (VLOOKUP(Rebalance!$D$64,$F$2:$G$48,2,FALSE)+ROW()-2)),\"\")","v":{"$error":"#N/A"}},{"$f":"IF(INDIRECT(\"c\" & (VLOOKUP(Rebalance!$D$65,$F$2:$G$48,2,FALSE)+ROW()-2))=Rebalance!$D$65,INDIRECT(\"a\" & (VLOOKUP(Rebalance!$D$65,$F$2:$G$48,2,FALSE)+ROW()-2)),\"\")","v":{"$error":"#N/A"}},{"$f":"IF(INDIRECT(\"c\" & (VLOOKUP(Rebalance!$D$66,$F$2:$G$48,2,FALSE)+ROW()-2))=Rebalance!$D$66,INDIRECT(\"a\" & (VLOOKUP(Rebalance!$D$66,$F$2:$G$48,2,FALSE)+ROW()-2)),\"\")","v":{"$error":"#N/A"}}]
["Bridge Diversified Preference Share Fund","GDPS","Bridge Collective Investments (Pty) Ltd",{"$f":"ROW()","v":202},null,null,{"$f":"VLOOKUP(F202,$C$2:$D$599,2,FALSE)","v":{"$error":"#N/A"}},{"$f":"IF(INDIRECT(\"c\" & (VLOOKUP(Rebalance!$D$26,$F$2:$G$48,2,FALSE)+ROW()-2))=Rebalance!$D$26,INDIRECT(\"a\" & (VLOOKUP(Rebalance!$D$26,$F$2:$G$48,2,FALSE)+ROW()-2)),\"\")","v":{"$error":"#N/A"}},{"$f":"IF(INDIRECT(\"c\" & (VLOOKUP(Rebalance!$D$27,$F$2:$G$48,2,FALSE)+ROW()-2))=Rebalance!$D$27,INDIRECT(\"a\" & (VLOOKUP(Rebalance!$D$27,$F$2:$G$48,2,FALSE)+ROW()-2)),\"\")","v":{"$error":"#N/A"}},{"$f":"IF(INDIRECT(\"c\" & (VLOOKUP(Rebalance!$D$28,$F$2:$G$48,2,FALSE)+ROW()-2))=Rebalance!$D$28,INDIRECT(\"a\" & (VLOOKUP(Rebalance!$D$28,$F$2:$G$48,2,FALSE)+ROW()-2)),\"\")","v":{"$error":"#N/A"}},{"$f":"IF(INDIRECT(\"c\" & (VLOOKUP(Rebalance!$D$29,$F$2:$G$48,2,FALSE)+ROW()-2))=Rebalance!$D$29,INDIRECT(\"a\" & (VLOOKUP(Rebalance!$D$29,$F$2:$G$48,2,FALSE)+ROW()-2)),\"\")","v":{"$error":"#N/A"}},{"$f":"IF(INDIRECT(\"c\" & (VLOOKUP(Rebalance!$D$30,$F$2:$G$48,2,FALSE)+ROW()-2))=Rebalance!$D$30,INDIRECT(\"a\" & (VLOOKUP(Rebalance!$D$30,$F$2:$G$48,2,FALSE)+ROW()-2)),\"\")","v":{"$error":"#N/A"}},{"$f":"IF(INDIRECT(\"c\" & (VLOOKUP(Rebalance!$D$31,$F$2:$G$48,2,FALSE)+ROW()-2))=Rebalance!$D$31,INDIRECT(\"a\" & (VLOOKUP(Rebalance!$D$31,$F$2:$G$48,2,FALSE)+ROW()-2)),\"\")","v":{"$error":"#N/A"}},{"$f":"IF(INDIRECT(\"c\" & (VLOOKUP(Rebalance!$D$32,$F$2:$G$48,2,FALSE)+ROW()-2))=Rebalance!$D$32,INDIRECT(\"a\" & (VLOOKUP(Rebalance!$D$32,$F$2:$G$48,2,FALSE)+ROW()-2)),\"\")","v":{"$error":"#N/A"}},{"$f":"IF(INDIRECT(\"c\" & (VLOOKUP(Rebalance!$D$33,$F$2:$G$48,2,FALSE)+ROW()-2))=Rebalance!$D$33,INDIRECT(\"a\" & (VLOOKUP(Rebalance!$D$33,$F$2:$G$48,2,FALSE)+ROW()-2)),\"\")","v":{"$error":"#N/A"}},{"$f":"IF(INDIRECT(\"c\" & (VLOOKUP(Rebalance!$D$34,$F$2:$G$48,2,FALSE)+ROW()-2))=Rebalance!$D$34,INDIRECT(\"a\" & (VLOOKUP(Rebalance!$D$34,$F$2:$G$48,2,FALSE)+ROW()-2)),\"\")","v":{"$error":"#N/A"}},{"$f":"IF(INDIRECT(\"c\" & (VLOOKUP(Rebalance!$D$35,$F$2:$G$48,2,FALSE)+ROW()-2))=Rebalance!$D$35,INDIRECT(\"a\" & (VLOOKUP(Rebalance!$D$35,$F$2:$G$48,2,FALSE)+ROW()-2)),\"\")","v":{"$error":"#N/A"}},{"$f":"IF(INDIRECT(\"c\" & (VLOOKUP(Rebalance!$D$36,$F$2:$G$48,2,FALSE)+ROW()-2))=Rebalance!$D$36,INDIRECT(\"a\" & (VLOOKUP(Rebalance!$D$36,$F$2:$G$48,2,FALSE)+ROW()-2)),\"\")","v":{"$error":"#N/A"}},{"$f":"IF(INDIRECT(\"c\" & (VLOOKUP(Rebalance!$D$37,$F$2:$G$48,2,FALSE)+ROW()-2))=Rebalance!$D$37,INDIRECT(\"a\" & (VLOOKUP(Rebalance!$D$37,$F$2:$G$48,2,FALSE)+ROW()-2)),\"\")","v":{"$error":"#N/A"}},{"$f":"IF(INDIRECT(\"c\" & (VLOOKUP(Rebalance!$D$38,$F$2:$G$48,2,FALSE)+ROW()-2))=Rebalance!$D$38,INDIRECT(\"a\" & (VLOOKUP(Rebalance!$D$38,$F$2:$G$48,2,FALSE)+ROW()-2)),\"\")","v":{"$error":"#N/A"}},{"$f":"IF(INDIRECT(\"c\" & (VLOOKUP(Rebalance!$D$39,$F$2:$G$48,2,FALSE)+ROW()-2))=Rebalance!$D$39,INDIRECT(\"a\" & (VLOOKUP(Rebalance!$D$39,$F$2:$G$48,2,FALSE)+ROW()-2)),\"\")","v":{"$error":"#N/A"}},{"$f":"IF(INDIRECT(\"c\" & (VLOOKUP(Rebalance!$D$40,$F$2:$G$48,2,FALSE)+ROW()-2))=Rebalance!$D$40,INDIRECT(\"a\" & (VLOOKUP(Rebalance!$D$40,$F$2:$G$48,2,FALSE)+ROW()-2)),\"\")","v":{"$error":"#N/A"}},{"$f":"IF(INDIRECT(\"c\" & (VLOOKUP(Rebalance!$D$52,$F$2:$G$48,2,FALSE)+ROW()-2))=Rebalance!$D$52,INDIRECT(\"a\" & (VLOOKUP(Rebalance!$D$52,$F$2:$G$48,2,FALSE)+ROW()-2)),\"\")","v":{"$error":"#N/A"}},{"$f":"IF(INDIRECT(\"c\" & (VLOOKUP(Rebalance!$D$53,$F$2:$G$48,2,FALSE)+ROW()-2))=Rebalance!$D$53,INDIRECT(\"a\" & (VLOOKUP(Rebalance!$D$53,$F$2:$G$48,2,FALSE)+ROW()-2)),\"\")","v":{"$error":"#N/A"}},{"$f":"IF(INDIRECT(\"c\" & (VLOOKUP(Rebalance!$D$54,$F$2:$G$48,2,FALSE)+ROW()-2))=Rebalance!$D$54,INDIRECT(\"a\" & (VLOOKUP(Rebalance!$D$54,$F$2:$G$48,2,FALSE)+ROW()-2)),\"\")","v":{"$error":"#N/A"}},{"$f":"IF(INDIRECT(\"c\" & (VLOOKUP(Rebalance!$D$55,$F$2:$G$48,2,FALSE)+ROW()-2))=Rebalance!$D$55,INDIRECT(\"a\" & (VLOOKUP(Rebalance!$D$55,$F$2:$G$48,2,FALSE)+ROW()-2)),\"\")","v":{"$error":"#N/A"}},{"$f":"IF(INDIRECT(\"c\" & (VLOOKUP(Rebalance!$D$56,$F$2:$G$48,2,FALSE)+ROW()-2))=Rebalance!$D$56,INDIRECT(\"a\" & (VLOOKUP(Rebalance!$D$56,$F$2:$G$48,2,FALSE)+ROW()-2)),\"\")","v":{"$error":"#N/A"}},{"$f":"IF(INDIRECT(\"c\" & (VLOOKUP(Rebalance!$D$57,$F$2:$G$48,2,FALSE)+ROW()-2))=Rebalance!$D$57,INDIRECT(\"a\" & (VLOOKUP(Rebalance!$D$57,$F$2:$G$48,2,FALSE)+ROW()-2)),\"\")","v":{"$error":"#N/A"}},{"$f":"IF(INDIRECT(\"c\" & (VLOOKUP(Rebalance!$D$58,$F$2:$G$48,2,FALSE)+ROW()-2))=Rebalance!$D$58,INDIRECT(\"a\" & (VLOOKUP(Rebalance!$D$58,$F$2:$G$48,2,FALSE)+ROW()-2)),\"\")","v":{"$error":"#N/A"}},{"$f":"IF(INDIRECT(\"c\" & (VLOOKUP(Rebalance!$D$59,$F$2:$G$48,2,FALSE)+ROW()-2))=Rebalance!$D$59,INDIRECT(\"a\" & (VLOOKUP(Rebalance!$D$59,$F$2:$G$48,2,FALSE)+ROW()-2)),\"\")","v":{"$error":"#N/A"}},{"$f":"IF(INDIRECT(\"c\" & (VLOOKUP(Rebalance!$D$60,$F$2:$G$48,2,FALSE)+ROW()-2))=Rebalance!$D$60,INDIRECT(\"a\" & (VLOOKUP(Rebalance!$D$60,$F$2:$G$48,2,FALSE)+ROW()-2)),\"\")","v":{"$error":"#N/A"}},{"$f":"IF(INDIRECT(\"c\" & (VLOOKUP(Rebalance!$D$61,$F$2:$G$48,2,FALSE)+ROW()-2))=Rebalance!$D$61,INDIRECT(\"a\" & (VLOOKUP(Rebalance!$D$61,$F$2:$G$48,2,FALSE)+ROW()-2)),\"\")","v":{"$error":"#N/A"}},{"$f":"IF(INDIRECT(\"c\" & (VLOOKUP(Rebalance!$D$62,$F$2:$G$48,2,FALSE)+ROW()-2))=Rebalance!$D$62,INDIRECT(\"a\" & (VLOOKUP(Rebalance!$D$62,$F$2:$G$48,2,FALSE)+ROW()-2)),\"\")","v":{"$error":"#N/A"}},{"$f":"IF(INDIRECT(\"c\" & (VLOOKUP(Rebalance!$D$63,$F$2:$G$48,2,FALSE)+ROW()-2))=Rebalance!$D$63,INDIRECT(\"a\" & (VLOOKUP(Rebalance!$D$63,$F$2:$G$48,2,FALSE)+ROW()-2)),\"\")","v":{"$error":"#N/A"}},{"$f":"IF(INDIRECT(\"c\" & (VLOOKUP(Rebalance!$D$64,$F$2:$G$48,2,FALSE)+ROW()-2))=Rebalance!$D$64,INDIRECT(\"a\" & (VLOOKUP(Rebalance!$D$64,$F$2:$G$48,2,FALSE)+ROW()-2)),\"\")","v":{"$error":"#N/A"}},{"$f":"IF(INDIRECT(\"c\" & (VLOOKUP(Rebalance!$D$65,$F$2:$G$48,2,FALSE)+ROW()-2))=Rebalance!$D$65,INDIRECT(\"a\" & (VLOOKUP(Rebalance!$D$65,$F$2:$G$48,2,FALSE)+ROW()-2)),\"\")","v":{"$error":"#N/A"}},{"$f":"IF(INDIRECT(\"c\" & (VLOOKUP(Rebalance!$D$66,$F$2:$G$48,2,FALSE)+ROW()-2))=Rebalance!$D$66,INDIRECT(\"a\" & (VLOOKUP(Rebalance!$D$66,$F$2:$G$48,2,FALSE)+ROW()-2)),\"\")","v":{"$error":"#N/A"}}]
["Bridge Equity  Income Growth C","GEICC","Bridge Collective Investments (Pty) Ltd",{"$f":"ROW()","v":203},null,null,{"$f":"VLOOKUP(F203,$C$2:$D$599,2,FALSE)","v":{"$error":"#N/A"}},{"$f":"IF(INDIRECT(\"c\" & (VLOOKUP(Rebalance!$D$26,$F$2:$G$48,2,FALSE)+ROW()-2))=Rebalance!$D$26,INDIRECT(\"a\" & (VLOOKUP(Rebalance!$D$26,$F$2:$G$48,2,FALSE)+ROW()-2)),\"\")","v":{"$error":"#N/A"}},{"$f":"IF(INDIRECT(\"c\" & (VLOOKUP(Rebalance!$D$27,$F$2:$G$48,2,FALSE)+ROW()-2))=Rebalance!$D$27,INDIRECT(\"a\" & (VLOOKUP(Rebalance!$D$27,$F$2:$G$48,2,FALSE)+ROW()-2)),\"\")","v":{"$error":"#N/A"}},{"$f":"IF(INDIRECT(\"c\" & (VLOOKUP(Rebalance!$D$28,$F$2:$G$48,2,FALSE)+ROW()-2))=Rebalance!$D$28,INDIRECT(\"a\" & (VLOOKUP(Rebalance!$D$28,$F$2:$G$48,2,FALSE)+ROW()-2)),\"\")","v":{"$error":"#N/A"}},{"$f":"IF(INDIRECT(\"c\" & (VLOOKUP(Rebalance!$D$29,$F$2:$G$48,2,FALSE)+ROW()-2))=Rebalance!$D$29,INDIRECT(\"a\" & (VLOOKUP(Rebalance!$D$29,$F$2:$G$48,2,FALSE)+ROW()-2)),\"\")","v":{"$error":"#N/A"}},{"$f":"IF(INDIRECT(\"c\" & (VLOOKUP(Rebalance!$D$30,$F$2:$G$48,2,FALSE)+ROW()-2))=Rebalance!$D$30,INDIRECT(\"a\" & (VLOOKUP(Rebalance!$D$30,$F$2:$G$48,2,FALSE)+ROW()-2)),\"\")","v":{"$error":"#N/A"}},{"$f":"IF(INDIRECT(\"c\" & (VLOOKUP(Rebalance!$D$31,$F$2:$G$48,2,FALSE)+ROW()-2))=Rebalance!$D$31,INDIRECT(\"a\" & (VLOOKUP(Rebalance!$D$31,$F$2:$G$48,2,FALSE)+ROW()-2)),\"\")","v":{"$error":"#N/A"}},{"$f":"IF(INDIRECT(\"c\" & (VLOOKUP(Rebalance!$D$32,$F$2:$G$48,2,FALSE)+ROW()-2))=Rebalance!$D$32,INDIRECT(\"a\" & (VLOOKUP(Rebalance!$D$32,$F$2:$G$48,2,FALSE)+ROW()-2)),\"\")","v":{"$error":"#N/A"}},{"$f":"IF(INDIRECT(\"c\" & (VLOOKUP(Rebalance!$D$33,$F$2:$G$48,2,FALSE)+ROW()-2))=Rebalance!$D$33,INDIRECT(\"a\" & (VLOOKUP(Rebalance!$D$33,$F$2:$G$48,2,FALSE)+ROW()-2)),\"\")","v":{"$error":"#N/A"}},{"$f":"IF(INDIRECT(\"c\" & (VLOOKUP(Rebalance!$D$34,$F$2:$G$48,2,FALSE)+ROW()-2))=Rebalance!$D$34,INDIRECT(\"a\" & (VLOOKUP(Rebalance!$D$34,$F$2:$G$48,2,FALSE)+ROW()-2)),\"\")","v":{"$error":"#N/A"}},{"$f":"IF(INDIRECT(\"c\" & (VLOOKUP(Rebalance!$D$35,$F$2:$G$48,2,FALSE)+ROW()-2))=Rebalance!$D$35,INDIRECT(\"a\" & (VLOOKUP(Rebalance!$D$35,$F$2:$G$48,2,FALSE)+ROW()-2)),\"\")","v":{"$error":"#N/A"}},{"$f":"IF(INDIRECT(\"c\" & (VLOOKUP(Rebalance!$D$36,$F$2:$G$48,2,FALSE)+ROW()-2))=Rebalance!$D$36,INDIRECT(\"a\" & (VLOOKUP(Rebalance!$D$36,$F$2:$G$48,2,FALSE)+ROW()-2)),\"\")","v":{"$error":"#N/A"}},{"$f":"IF(INDIRECT(\"c\" & (VLOOKUP(Rebalance!$D$37,$F$2:$G$48,2,FALSE)+ROW()-2))=Rebalance!$D$37,INDIRECT(\"a\" & (VLOOKUP(Rebalance!$D$37,$F$2:$G$48,2,FALSE)+ROW()-2)),\"\")","v":{"$error":"#N/A"}},{"$f":"IF(INDIRECT(\"c\" & (VLOOKUP(Rebalance!$D$38,$F$2:$G$48,2,FALSE)+ROW()-2))=Rebalance!$D$38,INDIRECT(\"a\" & (VLOOKUP(Rebalance!$D$38,$F$2:$G$48,2,FALSE)+ROW()-2)),\"\")","v":{"$error":"#N/A"}},{"$f":"IF(INDIRECT(\"c\" & (VLOOKUP(Rebalance!$D$39,$F$2:$G$48,2,FALSE)+ROW()-2))=Rebalance!$D$39,INDIRECT(\"a\" & (VLOOKUP(Rebalance!$D$39,$F$2:$G$48,2,FALSE)+ROW()-2)),\"\")","v":{"$error":"#N/A"}},{"$f":"IF(INDIRECT(\"c\" & (VLOOKUP(Rebalance!$D$40,$F$2:$G$48,2,FALSE)+ROW()-2))=Rebalance!$D$40,INDIRECT(\"a\" & (VLOOKUP(Rebalance!$D$40,$F$2:$G$48,2,FALSE)+ROW()-2)),\"\")","v":{"$error":"#N/A"}},{"$f":"IF(INDIRECT(\"c\" & (VLOOKUP(Rebalance!$D$52,$F$2:$G$48,2,FALSE)+ROW()-2))=Rebalance!$D$52,INDIRECT(\"a\" & (VLOOKUP(Rebalance!$D$52,$F$2:$G$48,2,FALSE)+ROW()-2)),\"\")","v":{"$error":"#N/A"}},{"$f":"IF(INDIRECT(\"c\" & (VLOOKUP(Rebalance!$D$53,$F$2:$G$48,2,FALSE)+ROW()-2))=Rebalance!$D$53,INDIRECT(\"a\" & (VLOOKUP(Rebalance!$D$53,$F$2:$G$48,2,FALSE)+ROW()-2)),\"\")","v":{"$error":"#N/A"}},{"$f":"IF(INDIRECT(\"c\" & (VLOOKUP(Rebalance!$D$54,$F$2:$G$48,2,FALSE)+ROW()-2))=Rebalance!$D$54,INDIRECT(\"a\" & (VLOOKUP(Rebalance!$D$54,$F$2:$G$48,2,FALSE)+ROW()-2)),\"\")","v":{"$error":"#N/A"}},{"$f":"IF(INDIRECT(\"c\" & (VLOOKUP(Rebalance!$D$55,$F$2:$G$48,2,FALSE)+ROW()-2))=Rebalance!$D$55,INDIRECT(\"a\" & (VLOOKUP(Rebalance!$D$55,$F$2:$G$48,2,FALSE)+ROW()-2)),\"\")","v":{"$error":"#N/A"}},{"$f":"IF(INDIRECT(\"c\" & (VLOOKUP(Rebalance!$D$56,$F$2:$G$48,2,FALSE)+ROW()-2))=Rebalance!$D$56,INDIRECT(\"a\" & (VLOOKUP(Rebalance!$D$56,$F$2:$G$48,2,FALSE)+ROW()-2)),\"\")","v":{"$error":"#N/A"}},{"$f":"IF(INDIRECT(\"c\" & (VLOOKUP(Rebalance!$D$57,$F$2:$G$48,2,FALSE)+ROW()-2))=Rebalance!$D$57,INDIRECT(\"a\" & (VLOOKUP(Rebalance!$D$57,$F$2:$G$48,2,FALSE)+ROW()-2)),\"\")","v":{"$error":"#N/A"}},{"$f":"IF(INDIRECT(\"c\" & (VLOOKUP(Rebalance!$D$58,$F$2:$G$48,2,FALSE)+ROW()-2))=Rebalance!$D$58,INDIRECT(\"a\" & (VLOOKUP(Rebalance!$D$58,$F$2:$G$48,2,FALSE)+ROW()-2)),\"\")","v":{"$error":"#N/A"}},{"$f":"IF(INDIRECT(\"c\" & (VLOOKUP(Rebalance!$D$59,$F$2:$G$48,2,FALSE)+ROW()-2))=Rebalance!$D$59,INDIRECT(\"a\" & (VLOOKUP(Rebalance!$D$59,$F$2:$G$48,2,FALSE)+ROW()-2)),\"\")","v":{"$error":"#N/A"}},{"$f":"IF(INDIRECT(\"c\" & (VLOOKUP(Rebalance!$D$60,$F$2:$G$48,2,FALSE)+ROW()-2))=Rebalance!$D$60,INDIRECT(\"a\" & (VLOOKUP(Rebalance!$D$60,$F$2:$G$48,2,FALSE)+ROW()-2)),\"\")","v":{"$error":"#N/A"}},{"$f":"IF(INDIRECT(\"c\" & (VLOOKUP(Rebalance!$D$61,$F$2:$G$48,2,FALSE)+ROW()-2))=Rebalance!$D$61,INDIRECT(\"a\" & (VLOOKUP(Rebalance!$D$61,$F$2:$G$48,2,FALSE)+ROW()-2)),\"\")","v":{"$error":"#N/A"}},{"$f":"IF(INDIRECT(\"c\" & (VLOOKUP(Rebalance!$D$62,$F$2:$G$48,2,FALSE)+ROW()-2))=Rebalance!$D$62,INDIRECT(\"a\" & (VLOOKUP(Rebalance!$D$62,$F$2:$G$48,2,FALSE)+ROW()-2)),\"\")","v":{"$error":"#N/A"}},{"$f":"IF(INDIRECT(\"c\" & (VLOOKUP(Rebalance!$D$63,$F$2:$G$48,2,FALSE)+ROW()-2))=Rebalance!$D$63,INDIRECT(\"a\" & (VLOOKUP(Rebalance!$D$63,$F$2:$G$48,2,FALSE)+ROW()-2)),\"\")","v":{"$error":"#N/A"}},{"$f":"IF(INDIRECT(\"c\" & (VLOOKUP(Rebalance!$D$64,$F$2:$G$48,2,FALSE)+ROW()-2))=Rebalance!$D$64,INDIRECT(\"a\" & (VLOOKUP(Rebalance!$D$64,$F$2:$G$48,2,FALSE)+ROW()-2)),\"\")","v":{"$error":"#N/A"}},{"$f":"IF(INDIRECT(\"c\" & (VLOOKUP(Rebalance!$D$65,$F$2:$G$48,2,FALSE)+ROW()-2))=Rebalance!$D$65,INDIRECT(\"a\" & (VLOOKUP(Rebalance!$D$65,$F$2:$G$48,2,FALSE)+ROW()-2)),\"\")","v":{"$error":"#N/A"}},{"$f":"IF(INDIRECT(\"c\" & (VLOOKUP(Rebalance!$D$66,$F$2:$G$48,2,FALSE)+ROW()-2))=Rebalance!$D$66,INDIRECT(\"a\" & (VLOOKUP(Rebalance!$D$66,$F$2:$G$48,2,FALSE)+ROW()-2)),\"\")","v":{"$error":"#N/A"}}]
["Bridge Global Income Growth FoF","GRIA","Bridge Collective Investments (Pty) Ltd",{"$f":"ROW()","v":204},null,null,{"$f":"VLOOKUP(F204,$C$2:$D$599,2,FALSE)","v":{"$error":"#N/A"}},{"$f":"IF(INDIRECT(\"c\" & (VLOOKUP(Rebalance!$D$26,$F$2:$G$48,2,FALSE)+ROW()-2))=Rebalance!$D$26,INDIRECT(\"a\" & (VLOOKUP(Rebalance!$D$26,$F$2:$G$48,2,FALSE)+ROW()-2)),\"\")","v":{"$error":"#N/A"}},{"$f":"IF(INDIRECT(\"c\" & (VLOOKUP(Rebalance!$D$27,$F$2:$G$48,2,FALSE)+ROW()-2))=Rebalance!$D$27,INDIRECT(\"a\" & (VLOOKUP(Rebalance!$D$27,$F$2:$G$48,2,FALSE)+ROW()-2)),\"\")","v":{"$error":"#N/A"}},{"$f":"IF(INDIRECT(\"c\" & (VLOOKUP(Rebalance!$D$28,$F$2:$G$48,2,FALSE)+ROW()-2))=Rebalance!$D$28,INDIRECT(\"a\" & (VLOOKUP(Rebalance!$D$28,$F$2:$G$48,2,FALSE)+ROW()-2)),\"\")","v":{"$error":"#N/A"}},{"$f":"IF(INDIRECT(\"c\" & (VLOOKUP(Rebalance!$D$29,$F$2:$G$48,2,FALSE)+ROW()-2))=Rebalance!$D$29,INDIRECT(\"a\" & (VLOOKUP(Rebalance!$D$29,$F$2:$G$48,2,FALSE)+ROW()-2)),\"\")","v":{"$error":"#N/A"}},{"$f":"IF(INDIRECT(\"c\" & (VLOOKUP(Rebalance!$D$30,$F$2:$G$48,2,FALSE)+ROW()-2))=Rebalance!$D$30,INDIRECT(\"a\" & (VLOOKUP(Rebalance!$D$30,$F$2:$G$48,2,FALSE)+ROW()-2)),\"\")","v":{"$error":"#N/A"}},{"$f":"IF(INDIRECT(\"c\" & (VLOOKUP(Rebalance!$D$31,$F$2:$G$48,2,FALSE)+ROW()-2))=Rebalance!$D$31,INDIRECT(\"a\" & (VLOOKUP(Rebalance!$D$31,$F$2:$G$48,2,FALSE)+ROW()-2)),\"\")","v":{"$error":"#N/A"}},{"$f":"IF(INDIRECT(\"c\" & (VLOOKUP(Rebalance!$D$32,$F$2:$G$48,2,FALSE)+ROW()-2))=Rebalance!$D$32,INDIRECT(\"a\" & (VLOOKUP(Rebalance!$D$32,$F$2:$G$48,2,FALSE)+ROW()-2)),\"\")","v":{"$error":"#N/A"}},{"$f":"IF(INDIRECT(\"c\" & (VLOOKUP(Rebalance!$D$33,$F$2:$G$48,2,FALSE)+ROW()-2))=Rebalance!$D$33,INDIRECT(\"a\" & (VLOOKUP(Rebalance!$D$33,$F$2:$G$48,2,FALSE)+ROW()-2)),\"\")","v":{"$error":"#N/A"}},{"$f":"IF(INDIRECT(\"c\" & (VLOOKUP(Rebalance!$D$34,$F$2:$G$48,2,FALSE)+ROW()-2))=Rebalance!$D$34,INDIRECT(\"a\" & (VLOOKUP(Rebalance!$D$34,$F$2:$G$48,2,FALSE)+ROW()-2)),\"\")","v":{"$error":"#N/A"}},{"$f":"IF(INDIRECT(\"c\" & (VLOOKUP(Rebalance!$D$35,$F$2:$G$48,2,FALSE)+ROW()-2))=Rebalance!$D$35,INDIRECT(\"a\" & (VLOOKUP(Rebalance!$D$35,$F$2:$G$48,2,FALSE)+ROW()-2)),\"\")","v":{"$error":"#N/A"}},{"$f":"IF(INDIRECT(\"c\" & (VLOOKUP(Rebalance!$D$36,$F$2:$G$48,2,FALSE)+ROW()-2))=Rebalance!$D$36,INDIRECT(\"a\" & (VLOOKUP(Rebalance!$D$36,$F$2:$G$48,2,FALSE)+ROW()-2)),\"\")","v":{"$error":"#N/A"}},{"$f":"IF(INDIRECT(\"c\" & (VLOOKUP(Rebalance!$D$37,$F$2:$G$48,2,FALSE)+ROW()-2))=Rebalance!$D$37,INDIRECT(\"a\" & (VLOOKUP(Rebalance!$D$37,$F$2:$G$48,2,FALSE)+ROW()-2)),\"\")","v":{"$error":"#N/A"}},{"$f":"IF(INDIRECT(\"c\" & (VLOOKUP(Rebalance!$D$38,$F$2:$G$48,2,FALSE)+ROW()-2))=Rebalance!$D$38,INDIRECT(\"a\" & (VLOOKUP(Rebalance!$D$38,$F$2:$G$48,2,FALSE)+ROW()-2)),\"\")","v":{"$error":"#N/A"}},{"$f":"IF(INDIRECT(\"c\" & (VLOOKUP(Rebalance!$D$39,$F$2:$G$48,2,FALSE)+ROW()-2))=Rebalance!$D$39,INDIRECT(\"a\" & (VLOOKUP(Rebalance!$D$39,$F$2:$G$48,2,FALSE)+ROW()-2)),\"\")","v":{"$error":"#N/A"}},{"$f":"IF(INDIRECT(\"c\" & (VLOOKUP(Rebalance!$D$40,$F$2:$G$48,2,FALSE)+ROW()-2))=Rebalance!$D$40,INDIRECT(\"a\" & (VLOOKUP(Rebalance!$D$40,$F$2:$G$48,2,FALSE)+ROW()-2)),\"\")","v":{"$error":"#N/A"}},{"$f":"IF(INDIRECT(\"c\" & (VLOOKUP(Rebalance!$D$52,$F$2:$G$48,2,FALSE)+ROW()-2))=Rebalance!$D$52,INDIRECT(\"a\" & (VLOOKUP(Rebalance!$D$52,$F$2:$G$48,2,FALSE)+ROW()-2)),\"\")","v":{"$error":"#N/A"}},{"$f":"IF(INDIRECT(\"c\" & (VLOOKUP(Rebalance!$D$53,$F$2:$G$48,2,FALSE)+ROW()-2))=Rebalance!$D$53,INDIRECT(\"a\" & (VLOOKUP(Rebalance!$D$53,$F$2:$G$48,2,FALSE)+ROW()-2)),\"\")","v":{"$error":"#N/A"}},{"$f":"IF(INDIRECT(\"c\" & (VLOOKUP(Rebalance!$D$54,$F$2:$G$48,2,FALSE)+ROW()-2))=Rebalance!$D$54,INDIRECT(\"a\" & (VLOOKUP(Rebalance!$D$54,$F$2:$G$48,2,FALSE)+ROW()-2)),\"\")","v":{"$error":"#N/A"}},{"$f":"IF(INDIRECT(\"c\" & (VLOOKUP(Rebalance!$D$55,$F$2:$G$48,2,FALSE)+ROW()-2))=Rebalance!$D$55,INDIRECT(\"a\" & (VLOOKUP(Rebalance!$D$55,$F$2:$G$48,2,FALSE)+ROW()-2)),\"\")","v":{"$error":"#N/A"}},{"$f":"IF(INDIRECT(\"c\" & (VLOOKUP(Rebalance!$D$56,$F$2:$G$48,2,FALSE)+ROW()-2))=Rebalance!$D$56,INDIRECT(\"a\" & (VLOOKUP(Rebalance!$D$56,$F$2:$G$48,2,FALSE)+ROW()-2)),\"\")","v":{"$error":"#N/A"}},{"$f":"IF(INDIRECT(\"c\" & (VLOOKUP(Rebalance!$D$57,$F$2:$G$48,2,FALSE)+ROW()-2))=Rebalance!$D$57,INDIRECT(\"a\" & (VLOOKUP(Rebalance!$D$57,$F$2:$G$48,2,FALSE)+ROW()-2)),\"\")","v":{"$error":"#N/A"}},{"$f":"IF(INDIRECT(\"c\" & (VLOOKUP(Rebalance!$D$58,$F$2:$G$48,2,FALSE)+ROW()-2))=Rebalance!$D$58,INDIRECT(\"a\" & (VLOOKUP(Rebalance!$D$58,$F$2:$G$48,2,FALSE)+ROW()-2)),\"\")","v":{"$error":"#N/A"}},{"$f":"IF(INDIRECT(\"c\" & (VLOOKUP(Rebalance!$D$59,$F$2:$G$48,2,FALSE)+ROW()-2))=Rebalance!$D$59,INDIRECT(\"a\" & (VLOOKUP(Rebalance!$D$59,$F$2:$G$48,2,FALSE)+ROW()-2)),\"\")","v":{"$error":"#N/A"}},{"$f":"IF(INDIRECT(\"c\" & (VLOOKUP(Rebalance!$D$60,$F$2:$G$48,2,FALSE)+ROW()-2))=Rebalance!$D$60,INDIRECT(\"a\" & (VLOOKUP(Rebalance!$D$60,$F$2:$G$48,2,FALSE)+ROW()-2)),\"\")","v":{"$error":"#N/A"}},{"$f":"IF(INDIRECT(\"c\" & (VLOOKUP(Rebalance!$D$61,$F$2:$G$48,2,FALSE)+ROW()-2))=Rebalance!$D$61,INDIRECT(\"a\" & (VLOOKUP(Rebalance!$D$61,$F$2:$G$48,2,FALSE)+ROW()-2)),\"\")","v":{"$error":"#N/A"}},{"$f":"IF(INDIRECT(\"c\" & (VLOOKUP(Rebalance!$D$62,$F$2:$G$48,2,FALSE)+ROW()-2))=Rebalance!$D$62,INDIRECT(\"a\" & (VLOOKUP(Rebalance!$D$62,$F$2:$G$48,2,FALSE)+ROW()-2)),\"\")","v":{"$error":"#N/A"}},{"$f":"IF(INDIRECT(\"c\" & (VLOOKUP(Rebalance!$D$63,$F$2:$G$48,2,FALSE)+ROW()-2))=Rebalance!$D$63,INDIRECT(\"a\" & (VLOOKUP(Rebalance!$D$63,$F$2:$G$48,2,FALSE)+ROW()-2)),\"\")","v":{"$error":"#N/A"}},{"$f":"IF(INDIRECT(\"c\" & (VLOOKUP(Rebalance!$D$64,$F$2:$G$48,2,FALSE)+ROW()-2))=Rebalance!$D$64,INDIRECT(\"a\" & (VLOOKUP(Rebalance!$D$64,$F$2:$G$48,2,FALSE)+ROW()-2)),\"\")","v":{"$error":"#N/A"}},{"$f":"IF(INDIRECT(\"c\" & (VLOOKUP(Rebalance!$D$65,$F$2:$G$48,2,FALSE)+ROW()-2))=Rebalance!$D$65,INDIRECT(\"a\" & (VLOOKUP(Rebalance!$D$65,$F$2:$G$48,2,FALSE)+ROW()-2)),\"\")","v":{"$error":"#N/A"}},{"$f":"IF(INDIRECT(\"c\" & (VLOOKUP(Rebalance!$D$66,$F$2:$G$48,2,FALSE)+ROW()-2))=Rebalance!$D$66,INDIRECT(\"a\" & (VLOOKUP(Rebalance!$D$66,$F$2:$G$48,2,FALSE)+ROW()-2)),\"\")","v":{"$error":"#N/A"}}]
["Bridge Managed Growth Fund C","GMGCC","Bridge Collective Investments (Pty) Ltd",{"$f":"ROW()","v":205},null,null,{"$f":"VLOOKUP(F205,$C$2:$D$599,2,FALSE)","v":{"$error":"#N/A"}},{"$f":"IF(INDIRECT(\"c\" & (VLOOKUP(Rebalance!$D$26,$F$2:$G$48,2,FALSE)+ROW()-2))=Rebalance!$D$26,INDIRECT(\"a\" & (VLOOKUP(Rebalance!$D$26,$F$2:$G$48,2,FALSE)+ROW()-2)),\"\")","v":{"$error":"#N/A"}},{"$f":"IF(INDIRECT(\"c\" & (VLOOKUP(Rebalance!$D$27,$F$2:$G$48,2,FALSE)+ROW()-2))=Rebalance!$D$27,INDIRECT(\"a\" & (VLOOKUP(Rebalance!$D$27,$F$2:$G$48,2,FALSE)+ROW()-2)),\"\")","v":{"$error":"#N/A"}},{"$f":"IF(INDIRECT(\"c\" & (VLOOKUP(Rebalance!$D$28,$F$2:$G$48,2,FALSE)+ROW()-2))=Rebalance!$D$28,INDIRECT(\"a\" & (VLOOKUP(Rebalance!$D$28,$F$2:$G$48,2,FALSE)+ROW()-2)),\"\")","v":{"$error":"#N/A"}},{"$f":"IF(INDIRECT(\"c\" & (VLOOKUP(Rebalance!$D$29,$F$2:$G$48,2,FALSE)+ROW()-2))=Rebalance!$D$29,INDIRECT(\"a\" & (VLOOKUP(Rebalance!$D$29,$F$2:$G$48,2,FALSE)+ROW()-2)),\"\")","v":{"$error":"#N/A"}},{"$f":"IF(INDIRECT(\"c\" & (VLOOKUP(Rebalance!$D$30,$F$2:$G$48,2,FALSE)+ROW()-2))=Rebalance!$D$30,INDIRECT(\"a\" & (VLOOKUP(Rebalance!$D$30,$F$2:$G$48,2,FALSE)+ROW()-2)),\"\")","v":{"$error":"#N/A"}},{"$f":"IF(INDIRECT(\"c\" & (VLOOKUP(Rebalance!$D$31,$F$2:$G$48,2,FALSE)+ROW()-2))=Rebalance!$D$31,INDIRECT(\"a\" & (VLOOKUP(Rebalance!$D$31,$F$2:$G$48,2,FALSE)+ROW()-2)),\"\")","v":{"$error":"#N/A"}},{"$f":"IF(INDIRECT(\"c\" & (VLOOKUP(Rebalance!$D$32,$F$2:$G$48,2,FALSE)+ROW()-2))=Rebalance!$D$32,INDIRECT(\"a\" & (VLOOKUP(Rebalance!$D$32,$F$2:$G$48,2,FALSE)+ROW()-2)),\"\")","v":{"$error":"#N/A"}},{"$f":"IF(INDIRECT(\"c\" & (VLOOKUP(Rebalance!$D$33,$F$2:$G$48,2,FALSE)+ROW()-2))=Rebalance!$D$33,INDIRECT(\"a\" & (VLOOKUP(Rebalance!$D$33,$F$2:$G$48,2,FALSE)+ROW()-2)),\"\")","v":{"$error":"#N/A"}},{"$f":"IF(INDIRECT(\"c\" & (VLOOKUP(Rebalance!$D$34,$F$2:$G$48,2,FALSE)+ROW()-2))=Rebalance!$D$34,INDIRECT(\"a\" & (VLOOKUP(Rebalance!$D$34,$F$2:$G$48,2,FALSE)+ROW()-2)),\"\")","v":{"$error":"#N/A"}},{"$f":"IF(INDIRECT(\"c\" & (VLOOKUP(Rebalance!$D$35,$F$2:$G$48,2,FALSE)+ROW()-2))=Rebalance!$D$35,INDIRECT(\"a\" & (VLOOKUP(Rebalance!$D$35,$F$2:$G$48,2,FALSE)+ROW()-2)),\"\")","v":{"$error":"#N/A"}},{"$f":"IF(INDIRECT(\"c\" & (VLOOKUP(Rebalance!$D$36,$F$2:$G$48,2,FALSE)+ROW()-2))=Rebalance!$D$36,INDIRECT(\"a\" & (VLOOKUP(Rebalance!$D$36,$F$2:$G$48,2,FALSE)+ROW()-2)),\"\")","v":{"$error":"#N/A"}},{"$f":"IF(INDIRECT(\"c\" & (VLOOKUP(Rebalance!$D$37,$F$2:$G$48,2,FALSE)+ROW()-2))=Rebalance!$D$37,INDIRECT(\"a\" & (VLOOKUP(Rebalance!$D$37,$F$2:$G$48,2,FALSE)+ROW()-2)),\"\")","v":{"$error":"#N/A"}},{"$f":"IF(INDIRECT(\"c\" & (VLOOKUP(Rebalance!$D$38,$F$2:$G$48,2,FALSE)+ROW()-2))=Rebalance!$D$38,INDIRECT(\"a\" & (VLOOKUP(Rebalance!$D$38,$F$2:$G$48,2,FALSE)+ROW()-2)),\"\")","v":{"$error":"#N/A"}},{"$f":"IF(INDIRECT(\"c\" & (VLOOKUP(Rebalance!$D$39,$F$2:$G$48,2,FALSE)+ROW()-2))=Rebalance!$D$39,INDIRECT(\"a\" & (VLOOKUP(Rebalance!$D$39,$F$2:$G$48,2,FALSE)+ROW()-2)),\"\")","v":{"$error":"#N/A"}},{"$f":"IF(INDIRECT(\"c\" & (VLOOKUP(Rebalance!$D$40,$F$2:$G$48,2,FALSE)+ROW()-2))=Rebalance!$D$40,INDIRECT(\"a\" & (VLOOKUP(Rebalance!$D$40,$F$2:$G$48,2,FALSE)+ROW()-2)),\"\")","v":{"$error":"#N/A"}},{"$f":"IF(INDIRECT(\"c\" & (VLOOKUP(Rebalance!$D$52,$F$2:$G$48,2,FALSE)+ROW()-2))=Rebalance!$D$52,INDIRECT(\"a\" & (VLOOKUP(Rebalance!$D$52,$F$2:$G$48,2,FALSE)+ROW()-2)),\"\")","v":{"$error":"#N/A"}},{"$f":"IF(INDIRECT(\"c\" & (VLOOKUP(Rebalance!$D$53,$F$2:$G$48,2,FALSE)+ROW()-2))=Rebalance!$D$53,INDIRECT(\"a\" & (VLOOKUP(Rebalance!$D$53,$F$2:$G$48,2,FALSE)+ROW()-2)),\"\")","v":{"$error":"#N/A"}},{"$f":"IF(INDIRECT(\"c\" & (VLOOKUP(Rebalance!$D$54,$F$2:$G$48,2,FALSE)+ROW()-2))=Rebalance!$D$54,INDIRECT(\"a\" & (VLOOKUP(Rebalance!$D$54,$F$2:$G$48,2,FALSE)+ROW()-2)),\"\")","v":{"$error":"#N/A"}},{"$f":"IF(INDIRECT(\"c\" & (VLOOKUP(Rebalance!$D$55,$F$2:$G$48,2,FALSE)+ROW()-2))=Rebalance!$D$55,INDIRECT(\"a\" & (VLOOKUP(Rebalance!$D$55,$F$2:$G$48,2,FALSE)+ROW()-2)),\"\")","v":{"$error":"#N/A"}},{"$f":"IF(INDIRECT(\"c\" & (VLOOKUP(Rebalance!$D$56,$F$2:$G$48,2,FALSE)+ROW()-2))=Rebalance!$D$56,INDIRECT(\"a\" & (VLOOKUP(Rebalance!$D$56,$F$2:$G$48,2,FALSE)+ROW()-2)),\"\")","v":{"$error":"#N/A"}},{"$f":"IF(INDIRECT(\"c\" & (VLOOKUP(Rebalance!$D$57,$F$2:$G$48,2,FALSE)+ROW()-2))=Rebalance!$D$57,INDIRECT(\"a\" & (VLOOKUP(Rebalance!$D$57,$F$2:$G$48,2,FALSE)+ROW()-2)),\"\")","v":{"$error":"#N/A"}},{"$f":"IF(INDIRECT(\"c\" & (VLOOKUP(Rebalance!$D$58,$F$2:$G$48,2,FALSE)+ROW()-2))=Rebalance!$D$58,INDIRECT(\"a\" & (VLOOKUP(Rebalance!$D$58,$F$2:$G$48,2,FALSE)+ROW()-2)),\"\")","v":{"$error":"#N/A"}},{"$f":"IF(INDIRECT(\"c\" & (VLOOKUP(Rebalance!$D$59,$F$2:$G$48,2,FALSE)+ROW()-2))=Rebalance!$D$59,INDIRECT(\"a\" & (VLOOKUP(Rebalance!$D$59,$F$2:$G$48,2,FALSE)+ROW()-2)),\"\")","v":{"$error":"#N/A"}},{"$f":"IF(INDIRECT(\"c\" & (VLOOKUP(Rebalance!$D$60,$F$2:$G$48,2,FALSE)+ROW()-2))=Rebalance!$D$60,INDIRECT(\"a\" & (VLOOKUP(Rebalance!$D$60,$F$2:$G$48,2,FALSE)+ROW()-2)),\"\")","v":{"$error":"#N/A"}},{"$f":"IF(INDIRECT(\"c\" & (VLOOKUP(Rebalance!$D$61,$F$2:$G$48,2,FALSE)+ROW()-2))=Rebalance!$D$61,INDIRECT(\"a\" & (VLOOKUP(Rebalance!$D$61,$F$2:$G$48,2,FALSE)+ROW()-2)),\"\")","v":{"$error":"#N/A"}},{"$f":"IF(INDIRECT(\"c\" & (VLOOKUP(Rebalance!$D$62,$F$2:$G$48,2,FALSE)+ROW()-2))=Rebalance!$D$62,INDIRECT(\"a\" & (VLOOKUP(Rebalance!$D$62,$F$2:$G$48,2,FALSE)+ROW()-2)),\"\")","v":{"$error":"#N/A"}},{"$f":"IF(INDIRECT(\"c\" & (VLOOKUP(Rebalance!$D$63,$F$2:$G$48,2,FALSE)+ROW()-2))=Rebalance!$D$63,INDIRECT(\"a\" & (VLOOKUP(Rebalance!$D$63,$F$2:$G$48,2,FALSE)+ROW()-2)),\"\")","v":{"$error":"#N/A"}},{"$f":"IF(INDIRECT(\"c\" & (VLOOKUP(Rebalance!$D$64,$F$2:$G$48,2,FALSE)+ROW()-2))=Rebalance!$D$64,INDIRECT(\"a\" & (VLOOKUP(Rebalance!$D$64,$F$2:$G$48,2,FALSE)+ROW()-2)),\"\")","v":{"$error":"#N/A"}},{"$f":"IF(INDIRECT(\"c\" & (VLOOKUP(Rebalance!$D$65,$F$2:$G$48,2,FALSE)+ROW()-2))=Rebalance!$D$65,INDIRECT(\"a\" & (VLOOKUP(Rebalance!$D$65,$F$2:$G$48,2,FALSE)+ROW()-2)),\"\")","v":{"$error":"#N/A"}},{"$f":"IF(INDIRECT(\"c\" & (VLOOKUP(Rebalance!$D$66,$F$2:$G$48,2,FALSE)+ROW()-2))=Rebalance!$D$66,INDIRECT(\"a\" & (VLOOKUP(Rebalance!$D$66,$F$2:$G$48,2,FALSE)+ROW()-2)),\"\")","v":{"$error":"#N/A"}}]
["Bridge Balanced Fund C","GBFCC","Bridge Collective Investments (Pty) Ltd",{"$f":"ROW()","v":206},null,null,{"$f":"VLOOKUP(F206,$C$2:$D$599,2,FALSE)","v":{"$error":"#N/A"}},{"$f":"IF(INDIRECT(\"c\" & (VLOOKUP(Rebalance!$D$26,$F$2:$G$48,2,FALSE)+ROW()-2))=Rebalance!$D$26,INDIRECT(\"a\" & (VLOOKUP(Rebalance!$D$26,$F$2:$G$48,2,FALSE)+ROW()-2)),\"\")","v":{"$error":"#N/A"}},{"$f":"IF(INDIRECT(\"c\" & (VLOOKUP(Rebalance!$D$27,$F$2:$G$48,2,FALSE)+ROW()-2))=Rebalance!$D$27,INDIRECT(\"a\" & (VLOOKUP(Rebalance!$D$27,$F$2:$G$48,2,FALSE)+ROW()-2)),\"\")","v":{"$error":"#N/A"}},{"$f":"IF(INDIRECT(\"c\" & (VLOOKUP(Rebalance!$D$28,$F$2:$G$48,2,FALSE)+ROW()-2))=Rebalance!$D$28,INDIRECT(\"a\" & (VLOOKUP(Rebalance!$D$28,$F$2:$G$48,2,FALSE)+ROW()-2)),\"\")","v":{"$error":"#N/A"}},{"$f":"IF(INDIRECT(\"c\" & (VLOOKUP(Rebalance!$D$29,$F$2:$G$48,2,FALSE)+ROW()-2))=Rebalance!$D$29,INDIRECT(\"a\" & (VLOOKUP(Rebalance!$D$29,$F$2:$G$48,2,FALSE)+ROW()-2)),\"\")","v":{"$error":"#N/A"}},{"$f":"IF(INDIRECT(\"c\" & (VLOOKUP(Rebalance!$D$30,$F$2:$G$48,2,FALSE)+ROW()-2))=Rebalance!$D$30,INDIRECT(\"a\" & (VLOOKUP(Rebalance!$D$30,$F$2:$G$48,2,FALSE)+ROW()-2)),\"\")","v":{"$error":"#N/A"}},{"$f":"IF(INDIRECT(\"c\" & (VLOOKUP(Rebalance!$D$31,$F$2:$G$48,2,FALSE)+ROW()-2))=Rebalance!$D$31,INDIRECT(\"a\" & (VLOOKUP(Rebalance!$D$31,$F$2:$G$48,2,FALSE)+ROW()-2)),\"\")","v":{"$error":"#N/A"}},{"$f":"IF(INDIRECT(\"c\" & (VLOOKUP(Rebalance!$D$32,$F$2:$G$48,2,FALSE)+ROW()-2))=Rebalance!$D$32,INDIRECT(\"a\" & (VLOOKUP(Rebalance!$D$32,$F$2:$G$48,2,FALSE)+ROW()-2)),\"\")","v":{"$error":"#N/A"}},{"$f":"IF(INDIRECT(\"c\" & (VLOOKUP(Rebalance!$D$33,$F$2:$G$48,2,FALSE)+ROW()-2))=Rebalance!$D$33,INDIRECT(\"a\" & (VLOOKUP(Rebalance!$D$33,$F$2:$G$48,2,FALSE)+ROW()-2)),\"\")","v":{"$error":"#N/A"}},{"$f":"IF(INDIRECT(\"c\" & (VLOOKUP(Rebalance!$D$34,$F$2:$G$48,2,FALSE)+ROW()-2))=Rebalance!$D$34,INDIRECT(\"a\" & (VLOOKUP(Rebalance!$D$34,$F$2:$G$48,2,FALSE)+ROW()-2)),\"\")","v":{"$error":"#N/A"}},{"$f":"IF(INDIRECT(\"c\" & (VLOOKUP(Rebalance!$D$35,$F$2:$G$48,2,FALSE)+ROW()-2))=Rebalance!$D$35,INDIRECT(\"a\" & (VLOOKUP(Rebalance!$D$35,$F$2:$G$48,2,FALSE)+ROW()-2)),\"\")","v":{"$error":"#N/A"}},{"$f":"IF(INDIRECT(\"c\" & (VLOOKUP(Rebalance!$D$36,$F$2:$G$48,2,FALSE)+ROW()-2))=Rebalance!$D$36,INDIRECT(\"a\" & (VLOOKUP(Rebalance!$D$36,$F$2:$G$48,2,FALSE)+ROW()-2)),\"\")","v":{"$error":"#N/A"}},{"$f":"IF(INDIRECT(\"c\" & (VLOOKUP(Rebalance!$D$37,$F$2:$G$48,2,FALSE)+ROW()-2))=Rebalance!$D$37,INDIRECT(\"a\" & (VLOOKUP(Rebalance!$D$37,$F$2:$G$48,2,FALSE)+ROW()-2)),\"\")","v":{"$error":"#N/A"}},{"$f":"IF(INDIRECT(\"c\" & (VLOOKUP(Rebalance!$D$38,$F$2:$G$48,2,FALSE)+ROW()-2))=Rebalance!$D$38,INDIRECT(\"a\" & (VLOOKUP(Rebalance!$D$38,$F$2:$G$48,2,FALSE)+ROW()-2)),\"\")","v":{"$error":"#N/A"}},{"$f":"IF(INDIRECT(\"c\" & (VLOOKUP(Rebalance!$D$39,$F$2:$G$48,2,FALSE)+ROW()-2))=Rebalance!$D$39,INDIRECT(\"a\" & (VLOOKUP(Rebalance!$D$39,$F$2:$G$48,2,FALSE)+ROW()-2)),\"\")","v":{"$error":"#N/A"}},{"$f":"IF(INDIRECT(\"c\" & (VLOOKUP(Rebalance!$D$40,$F$2:$G$48,2,FALSE)+ROW()-2))=Rebalance!$D$40,INDIRECT(\"a\" & (VLOOKUP(Rebalance!$D$40,$F$2:$G$48,2,FALSE)+ROW()-2)),\"\")","v":{"$error":"#N/A"}},{"$f":"IF(INDIRECT(\"c\" & (VLOOKUP(Rebalance!$D$52,$F$2:$G$48,2,FALSE)+ROW()-2))=Rebalance!$D$52,INDIRECT(\"a\" & (VLOOKUP(Rebalance!$D$52,$F$2:$G$48,2,FALSE)+ROW()-2)),\"\")","v":{"$error":"#N/A"}},{"$f":"IF(INDIRECT(\"c\" & (VLOOKUP(Rebalance!$D$53,$F$2:$G$48,2,FALSE)+ROW()-2))=Rebalance!$D$53,INDIRECT(\"a\" & (VLOOKUP(Rebalance!$D$53,$F$2:$G$48,2,FALSE)+ROW()-2)),\"\")","v":{"$error":"#N/A"}},{"$f":"IF(INDIRECT(\"c\" & (VLOOKUP(Rebalance!$D$54,$F$2:$G$48,2,FALSE)+ROW()-2))=Rebalance!$D$54,INDIRECT(\"a\" & (VLOOKUP(Rebalance!$D$54,$F$2:$G$48,2,FALSE)+ROW()-2)),\"\")","v":{"$error":"#N/A"}},{"$f":"IF(INDIRECT(\"c\" & (VLOOKUP(Rebalance!$D$55,$F$2:$G$48,2,FALSE)+ROW()-2))=Rebalance!$D$55,INDIRECT(\"a\" & (VLOOKUP(Rebalance!$D$55,$F$2:$G$48,2,FALSE)+ROW()-2)),\"\")","v":{"$error":"#N/A"}},{"$f":"IF(INDIRECT(\"c\" & (VLOOKUP(Rebalance!$D$56,$F$2:$G$48,2,FALSE)+ROW()-2))=Rebalance!$D$56,INDIRECT(\"a\" & (VLOOKUP(Rebalance!$D$56,$F$2:$G$48,2,FALSE)+ROW()-2)),\"\")","v":{"$error":"#N/A"}},{"$f":"IF(INDIRECT(\"c\" & (VLOOKUP(Rebalance!$D$57,$F$2:$G$48,2,FALSE)+ROW()-2))=Rebalance!$D$57,INDIRECT(\"a\" & (VLOOKUP(Rebalance!$D$57,$F$2:$G$48,2,FALSE)+ROW()-2)),\"\")","v":{"$error":"#N/A"}},{"$f":"IF(INDIRECT(\"c\" & (VLOOKUP(Rebalance!$D$58,$F$2:$G$48,2,FALSE)+ROW()-2))=Rebalance!$D$58,INDIRECT(\"a\" & (VLOOKUP(Rebalance!$D$58,$F$2:$G$48,2,FALSE)+ROW()-2)),\"\")","v":{"$error":"#N/A"}},{"$f":"IF(INDIRECT(\"c\" & (VLOOKUP(Rebalance!$D$59,$F$2:$G$48,2,FALSE)+ROW()-2))=Rebalance!$D$59,INDIRECT(\"a\" & (VLOOKUP(Rebalance!$D$59,$F$2:$G$48,2,FALSE)+ROW()-2)),\"\")","v":{"$error":"#N/A"}},{"$f":"IF(INDIRECT(\"c\" & (VLOOKUP(Rebalance!$D$60,$F$2:$G$48,2,FALSE)+ROW()-2))=Rebalance!$D$60,INDIRECT(\"a\" & (VLOOKUP(Rebalance!$D$60,$F$2:$G$48,2,FALSE)+ROW()-2)),\"\")","v":{"$error":"#N/A"}},{"$f":"IF(INDIRECT(\"c\" & (VLOOKUP(Rebalance!$D$61,$F$2:$G$48,2,FALSE)+ROW()-2))=Rebalance!$D$61,INDIRECT(\"a\" & (VLOOKUP(Rebalance!$D$61,$F$2:$G$48,2,FALSE)+ROW()-2)),\"\")","v":{"$error":"#N/A"}},{"$f":"IF(INDIRECT(\"c\" & (VLOOKUP(Rebalance!$D$62,$F$2:$G$48,2,FALSE)+ROW()-2))=Rebalance!$D$62,INDIRECT(\"a\" & (VLOOKUP(Rebalance!$D$62,$F$2:$G$48,2,FALSE)+ROW()-2)),\"\")","v":{"$error":"#N/A"}},{"$f":"IF(INDIRECT(\"c\" & (VLOOKUP(Rebalance!$D$63,$F$2:$G$48,2,FALSE)+ROW()-2))=Rebalance!$D$63,INDIRECT(\"a\" & (VLOOKUP(Rebalance!$D$63,$F$2:$G$48,2,FALSE)+ROW()-2)),\"\")","v":{"$error":"#N/A"}},{"$f":"IF(INDIRECT(\"c\" & (VLOOKUP(Rebalance!$D$64,$F$2:$G$48,2,FALSE)+ROW()-2))=Rebalance!$D$64,INDIRECT(\"a\" & (VLOOKUP(Rebalance!$D$64,$F$2:$G$48,2,FALSE)+ROW()-2)),\"\")","v":{"$error":"#N/A"}},{"$f":"IF(INDIRECT(\"c\" & (VLOOKUP(Rebalance!$D$65,$F$2:$G$48,2,FALSE)+ROW()-2))=Rebalance!$D$65,INDIRECT(\"a\" & (VLOOKUP(Rebalance!$D$65,$F$2:$G$48,2,FALSE)+ROW()-2)),\"\")","v":{"$error":"#N/A"}},{"$f":"IF(INDIRECT(\"c\" & (VLOOKUP(Rebalance!$D$66,$F$2:$G$48,2,FALSE)+ROW()-2))=Rebalance!$D$66,INDIRECT(\"a\" & (VLOOKUP(Rebalance!$D$66,$F$2:$G$48,2,FALSE)+ROW()-2)),\"\")","v":{"$error":"#N/A"}}]
["Bridge High Income Fund C","GHICC","Bridge Collective Investments (Pty) Ltd",{"$f":"ROW()","v":207},null,null,{"$f":"VLOOKUP(F207,$C$2:$D$599,2,FALSE)","v":{"$error":"#N/A"}},{"$f":"IF(INDIRECT(\"c\" & (VLOOKUP(Rebalance!$D$26,$F$2:$G$48,2,FALSE)+ROW()-2))=Rebalance!$D$26,INDIRECT(\"a\" & (VLOOKUP(Rebalance!$D$26,$F$2:$G$48,2,FALSE)+ROW()-2)),\"\")","v":{"$error":"#N/A"}},{"$f":"IF(INDIRECT(\"c\" & (VLOOKUP(Rebalance!$D$27,$F$2:$G$48,2,FALSE)+ROW()-2))=Rebalance!$D$27,INDIRECT(\"a\" & (VLOOKUP(Rebalance!$D$27,$F$2:$G$48,2,FALSE)+ROW()-2)),\"\")","v":{"$error":"#N/A"}},{"$f":"IF(INDIRECT(\"c\" & (VLOOKUP(Rebalance!$D$28,$F$2:$G$48,2,FALSE)+ROW()-2))=Rebalance!$D$28,INDIRECT(\"a\" & (VLOOKUP(Rebalance!$D$28,$F$2:$G$48,2,FALSE)+ROW()-2)),\"\")","v":{"$error":"#N/A"}},{"$f":"IF(INDIRECT(\"c\" & (VLOOKUP(Rebalance!$D$29,$F$2:$G$48,2,FALSE)+ROW()-2))=Rebalance!$D$29,INDIRECT(\"a\" & (VLOOKUP(Rebalance!$D$29,$F$2:$G$48,2,FALSE)+ROW()-2)),\"\")","v":{"$error":"#N/A"}},{"$f":"IF(INDIRECT(\"c\" & (VLOOKUP(Rebalance!$D$30,$F$2:$G$48,2,FALSE)+ROW()-2))=Rebalance!$D$30,INDIRECT(\"a\" & (VLOOKUP(Rebalance!$D$30,$F$2:$G$48,2,FALSE)+ROW()-2)),\"\")","v":{"$error":"#N/A"}},{"$f":"IF(INDIRECT(\"c\" & (VLOOKUP(Rebalance!$D$31,$F$2:$G$48,2,FALSE)+ROW()-2))=Rebalance!$D$31,INDIRECT(\"a\" & (VLOOKUP(Rebalance!$D$31,$F$2:$G$48,2,FALSE)+ROW()-2)),\"\")","v":{"$error":"#N/A"}},{"$f":"IF(INDIRECT(\"c\" & (VLOOKUP(Rebalance!$D$32,$F$2:$G$48,2,FALSE)+ROW()-2))=Rebalance!$D$32,INDIRECT(\"a\" & (VLOOKUP(Rebalance!$D$32,$F$2:$G$48,2,FALSE)+ROW()-2)),\"\")","v":{"$error":"#N/A"}},{"$f":"IF(INDIRECT(\"c\" & (VLOOKUP(Rebalance!$D$33,$F$2:$G$48,2,FALSE)+ROW()-2))=Rebalance!$D$33,INDIRECT(\"a\" & (VLOOKUP(Rebalance!$D$33,$F$2:$G$48,2,FALSE)+ROW()-2)),\"\")","v":{"$error":"#N/A"}},{"$f":"IF(INDIRECT(\"c\" & (VLOOKUP(Rebalance!$D$34,$F$2:$G$48,2,FALSE)+ROW()-2))=Rebalance!$D$34,INDIRECT(\"a\" & (VLOOKUP(Rebalance!$D$34,$F$2:$G$48,2,FALSE)+ROW()-2)),\"\")","v":{"$error":"#N/A"}},{"$f":"IF(INDIRECT(\"c\" & (VLOOKUP(Rebalance!$D$35,$F$2:$G$48,2,FALSE)+ROW()-2))=Rebalance!$D$35,INDIRECT(\"a\" & (VLOOKUP(Rebalance!$D$35,$F$2:$G$48,2,FALSE)+ROW()-2)),\"\")","v":{"$error":"#N/A"}},{"$f":"IF(INDIRECT(\"c\" & (VLOOKUP(Rebalance!$D$36,$F$2:$G$48,2,FALSE)+ROW()-2))=Rebalance!$D$36,INDIRECT(\"a\" & (VLOOKUP(Rebalance!$D$36,$F$2:$G$48,2,FALSE)+ROW()-2)),\"\")","v":{"$error":"#N/A"}},{"$f":"IF(INDIRECT(\"c\" & (VLOOKUP(Rebalance!$D$37,$F$2:$G$48,2,FALSE)+ROW()-2))=Rebalance!$D$37,INDIRECT(\"a\" & (VLOOKUP(Rebalance!$D$37,$F$2:$G$48,2,FALSE)+ROW()-2)),\"\")","v":{"$error":"#N/A"}},{"$f":"IF(INDIRECT(\"c\" & (VLOOKUP(Rebalance!$D$38,$F$2:$G$48,2,FALSE)+ROW()-2))=Rebalance!$D$38,INDIRECT(\"a\" & (VLOOKUP(Rebalance!$D$38,$F$2:$G$48,2,FALSE)+ROW()-2)),\"\")","v":{"$error":"#N/A"}},{"$f":"IF(INDIRECT(\"c\" & (VLOOKUP(Rebalance!$D$39,$F$2:$G$48,2,FALSE)+ROW()-2))=Rebalance!$D$39,INDIRECT(\"a\" & (VLOOKUP(Rebalance!$D$39,$F$2:$G$48,2,FALSE)+ROW()-2)),\"\")","v":{"$error":"#N/A"}},{"$f":"IF(INDIRECT(\"c\" & (VLOOKUP(Rebalance!$D$40,$F$2:$G$48,2,FALSE)+ROW()-2))=Rebalance!$D$40,INDIRECT(\"a\" & (VLOOKUP(Rebalance!$D$40,$F$2:$G$48,2,FALSE)+ROW()-2)),\"\")","v":{"$error":"#N/A"}},{"$f":"IF(INDIRECT(\"c\" & (VLOOKUP(Rebalance!$D$52,$F$2:$G$48,2,FALSE)+ROW()-2))=Rebalance!$D$52,INDIRECT(\"a\" & (VLOOKUP(Rebalance!$D$52,$F$2:$G$48,2,FALSE)+ROW()-2)),\"\")","v":{"$error":"#N/A"}},{"$f":"IF(INDIRECT(\"c\" & (VLOOKUP(Rebalance!$D$53,$F$2:$G$48,2,FALSE)+ROW()-2))=Rebalance!$D$53,INDIRECT(\"a\" & (VLOOKUP(Rebalance!$D$53,$F$2:$G$48,2,FALSE)+ROW()-2)),\"\")","v":{"$error":"#N/A"}},{"$f":"IF(INDIRECT(\"c\" & (VLOOKUP(Rebalance!$D$54,$F$2:$G$48,2,FALSE)+ROW()-2))=Rebalance!$D$54,INDIRECT(\"a\" & (VLOOKUP(Rebalance!$D$54,$F$2:$G$48,2,FALSE)+ROW()-2)),\"\")","v":{"$error":"#N/A"}},{"$f":"IF(INDIRECT(\"c\" & (VLOOKUP(Rebalance!$D$55,$F$2:$G$48,2,FALSE)+ROW()-2))=Rebalance!$D$55,INDIRECT(\"a\" & (VLOOKUP(Rebalance!$D$55,$F$2:$G$48,2,FALSE)+ROW()-2)),\"\")","v":{"$error":"#N/A"}},{"$f":"IF(INDIRECT(\"c\" & (VLOOKUP(Rebalance!$D$56,$F$2:$G$48,2,FALSE)+ROW()-2))=Rebalance!$D$56,INDIRECT(\"a\" & (VLOOKUP(Rebalance!$D$56,$F$2:$G$48,2,FALSE)+ROW()-2)),\"\")","v":{"$error":"#N/A"}},{"$f":"IF(INDIRECT(\"c\" & (VLOOKUP(Rebalance!$D$57,$F$2:$G$48,2,FALSE)+ROW()-2))=Rebalance!$D$57,INDIRECT(\"a\" & (VLOOKUP(Rebalance!$D$57,$F$2:$G$48,2,FALSE)+ROW()-2)),\"\")","v":{"$error":"#N/A"}},{"$f":"IF(INDIRECT(\"c\" & (VLOOKUP(Rebalance!$D$58,$F$2:$G$48,2,FALSE)+ROW()-2))=Rebalance!$D$58,INDIRECT(\"a\" & (VLOOKUP(Rebalance!$D$58,$F$2:$G$48,2,FALSE)+ROW()-2)),\"\")","v":{"$error":"#N/A"}},{"$f":"IF(INDIRECT(\"c\" & (VLOOKUP(Rebalance!$D$59,$F$2:$G$48,2,FALSE)+ROW()-2))=Rebalance!$D$59,INDIRECT(\"a\" & (VLOOKUP(Rebalance!$D$59,$F$2:$G$48,2,FALSE)+ROW()-2)),\"\")","v":{"$error":"#N/A"}},{"$f":"IF(INDIRECT(\"c\" & (VLOOKUP(Rebalance!$D$60,$F$2:$G$48,2,FALSE)+ROW()-2))=Rebalance!$D$60,INDIRECT(\"a\" & (VLOOKUP(Rebalance!$D$60,$F$2:$G$48,2,FALSE)+ROW()-2)),\"\")","v":{"$error":"#N/A"}},{"$f":"IF(INDIRECT(\"c\" & (VLOOKUP(Rebalance!$D$61,$F$2:$G$48,2,FALSE)+ROW()-2))=Rebalance!$D$61,INDIRECT(\"a\" & (VLOOKUP(Rebalance!$D$61,$F$2:$G$48,2,FALSE)+ROW()-2)),\"\")","v":{"$error":"#N/A"}},{"$f":"IF(INDIRECT(\"c\" & (VLOOKUP(Rebalance!$D$62,$F$2:$G$48,2,FALSE)+ROW()-2))=Rebalance!$D$62,INDIRECT(\"a\" & (VLOOKUP(Rebalance!$D$62,$F$2:$G$48,2,FALSE)+ROW()-2)),\"\")","v":{"$error":"#N/A"}},{"$f":"IF(INDIRECT(\"c\" & (VLOOKUP(Rebalance!$D$63,$F$2:$G$48,2,FALSE)+ROW()-2))=Rebalance!$D$63,INDIRECT(\"a\" & (VLOOKUP(Rebalance!$D$63,$F$2:$G$48,2,FALSE)+ROW()-2)),\"\")","v":{"$error":"#N/A"}},{"$f":"IF(INDIRECT(\"c\" & (VLOOKUP(Rebalance!$D$64,$F$2:$G$48,2,FALSE)+ROW()-2))=Rebalance!$D$64,INDIRECT(\"a\" & (VLOOKUP(Rebalance!$D$64,$F$2:$G$48,2,FALSE)+ROW()-2)),\"\")","v":{"$error":"#N/A"}},{"$f":"IF(INDIRECT(\"c\" & (VLOOKUP(Rebalance!$D$65,$F$2:$G$48,2,FALSE)+ROW()-2))=Rebalance!$D$65,INDIRECT(\"a\" & (VLOOKUP(Rebalance!$D$65,$F$2:$G$48,2,FALSE)+ROW()-2)),\"\")","v":{"$error":"#N/A"}},{"$f":"IF(INDIRECT(\"c\" & (VLOOKUP(Rebalance!$D$66,$F$2:$G$48,2,FALSE)+ROW()-2))=Rebalance!$D$66,INDIRECT(\"a\" & (VLOOKUP(Rebalance!$D$66,$F$2:$G$48,2,FALSE)+ROW()-2)),\"\")","v":{"$error":"#N/A"}}]
["Bridge Stable Growth Fund C","GSGCC","Bridge Collective Investments (Pty) Ltd",{"$f":"ROW()","v":208},null,null,{"$f":"VLOOKUP(F208,$C$2:$D$599,2,FALSE)","v":{"$error":"#N/A"}},{"$f":"IF(INDIRECT(\"c\" & (VLOOKUP(Rebalance!$D$26,$F$2:$G$48,2,FALSE)+ROW()-2))=Rebalance!$D$26,INDIRECT(\"a\" & (VLOOKUP(Rebalance!$D$26,$F$2:$G$48,2,FALSE)+ROW()-2)),\"\")","v":{"$error":"#N/A"}},{"$f":"IF(INDIRECT(\"c\" & (VLOOKUP(Rebalance!$D$27,$F$2:$G$48,2,FALSE)+ROW()-2))=Rebalance!$D$27,INDIRECT(\"a\" & (VLOOKUP(Rebalance!$D$27,$F$2:$G$48,2,FALSE)+ROW()-2)),\"\")","v":{"$error":"#N/A"}},{"$f":"IF(INDIRECT(\"c\" & (VLOOKUP(Rebalance!$D$28,$F$2:$G$48,2,FALSE)+ROW()-2))=Rebalance!$D$28,INDIRECT(\"a\" & (VLOOKUP(Rebalance!$D$28,$F$2:$G$48,2,FALSE)+ROW()-2)),\"\")","v":{"$error":"#N/A"}},{"$f":"IF(INDIRECT(\"c\" & (VLOOKUP(Rebalance!$D$29,$F$2:$G$48,2,FALSE)+ROW()-2))=Rebalance!$D$29,INDIRECT(\"a\" & (VLOOKUP(Rebalance!$D$29,$F$2:$G$48,2,FALSE)+ROW()-2)),\"\")","v":{"$error":"#N/A"}},{"$f":"IF(INDIRECT(\"c\" & (VLOOKUP(Rebalance!$D$30,$F$2:$G$48,2,FALSE)+ROW()-2))=Rebalance!$D$30,INDIRECT(\"a\" & (VLOOKUP(Rebalance!$D$30,$F$2:$G$48,2,FALSE)+ROW()-2)),\"\")","v":{"$error":"#N/A"}},{"$f":"IF(INDIRECT(\"c\" & (VLOOKUP(Rebalance!$D$31,$F$2:$G$48,2,FALSE)+ROW()-2))=Rebalance!$D$31,INDIRECT(\"a\" & (VLOOKUP(Rebalance!$D$31,$F$2:$G$48,2,FALSE)+ROW()-2)),\"\")","v":{"$error":"#N/A"}},{"$f":"IF(INDIRECT(\"c\" & (VLOOKUP(Rebalance!$D$32,$F$2:$G$48,2,FALSE)+ROW()-2))=Rebalance!$D$32,INDIRECT(\"a\" & (VLOOKUP(Rebalance!$D$32,$F$2:$G$48,2,FALSE)+ROW()-2)),\"\")","v":{"$error":"#N/A"}},{"$f":"IF(INDIRECT(\"c\" & (VLOOKUP(Rebalance!$D$33,$F$2:$G$48,2,FALSE)+ROW()-2))=Rebalance!$D$33,INDIRECT(\"a\" & (VLOOKUP(Rebalance!$D$33,$F$2:$G$48,2,FALSE)+ROW()-2)),\"\")","v":{"$error":"#N/A"}},{"$f":"IF(INDIRECT(\"c\" & (VLOOKUP(Rebalance!$D$34,$F$2:$G$48,2,FALSE)+ROW()-2))=Rebalance!$D$34,INDIRECT(\"a\" & (VLOOKUP(Rebalance!$D$34,$F$2:$G$48,2,FALSE)+ROW()-2)),\"\")","v":{"$error":"#N/A"}},{"$f":"IF(INDIRECT(\"c\" & (VLOOKUP(Rebalance!$D$35,$F$2:$G$48,2,FALSE)+ROW()-2))=Rebalance!$D$35,INDIRECT(\"a\" & (VLOOKUP(Rebalance!$D$35,$F$2:$G$48,2,FALSE)+ROW()-2)),\"\")","v":{"$error":"#N/A"}},{"$f":"IF(INDIRECT(\"c\" & (VLOOKUP(Rebalance!$D$36,$F$2:$G$48,2,FALSE)+ROW()-2))=Rebalance!$D$36,INDIRECT(\"a\" & (VLOOKUP(Rebalance!$D$36,$F$2:$G$48,2,FALSE)+ROW()-2)),\"\")","v":{"$error":"#N/A"}},{"$f":"IF(INDIRECT(\"c\" & (VLOOKUP(Rebalance!$D$37,$F$2:$G$48,2,FALSE)+ROW()-2))=Rebalance!$D$37,INDIRECT(\"a\" & (VLOOKUP(Rebalance!$D$37,$F$2:$G$48,2,FALSE)+ROW()-2)),\"\")","v":{"$error":"#N/A"}},{"$f":"IF(INDIRECT(\"c\" & (VLOOKUP(Rebalance!$D$38,$F$2:$G$48,2,FALSE)+ROW()-2))=Rebalance!$D$38,INDIRECT(\"a\" & (VLOOKUP(Rebalance!$D$38,$F$2:$G$48,2,FALSE)+ROW()-2)),\"\")","v":{"$error":"#N/A"}},{"$f":"IF(INDIRECT(\"c\" & (VLOOKUP(Rebalance!$D$39,$F$2:$G$48,2,FALSE)+ROW()-2))=Rebalance!$D$39,INDIRECT(\"a\" & (VLOOKUP(Rebalance!$D$39,$F$2:$G$48,2,FALSE)+ROW()-2)),\"\")","v":{"$error":"#N/A"}},{"$f":"IF(INDIRECT(\"c\" & (VLOOKUP(Rebalance!$D$40,$F$2:$G$48,2,FALSE)+ROW()-2))=Rebalance!$D$40,INDIRECT(\"a\" & (VLOOKUP(Rebalance!$D$40,$F$2:$G$48,2,FALSE)+ROW()-2)),\"\")","v":{"$error":"#N/A"}},{"$f":"IF(INDIRECT(\"c\" & (VLOOKUP(Rebalance!$D$52,$F$2:$G$48,2,FALSE)+ROW()-2))=Rebalance!$D$52,INDIRECT(\"a\" & (VLOOKUP(Rebalance!$D$52,$F$2:$G$48,2,FALSE)+ROW()-2)),\"\")","v":{"$error":"#N/A"}},{"$f":"IF(INDIRECT(\"c\" & (VLOOKUP(Rebalance!$D$53,$F$2:$G$48,2,FALSE)+ROW()-2))=Rebalance!$D$53,INDIRECT(\"a\" & (VLOOKUP(Rebalance!$D$53,$F$2:$G$48,2,FALSE)+ROW()-2)),\"\")","v":{"$error":"#N/A"}},{"$f":"IF(INDIRECT(\"c\" & (VLOOKUP(Rebalance!$D$54,$F$2:$G$48,2,FALSE)+ROW()-2))=Rebalance!$D$54,INDIRECT(\"a\" & (VLOOKUP(Rebalance!$D$54,$F$2:$G$48,2,FALSE)+ROW()-2)),\"\")","v":{"$error":"#N/A"}},{"$f":"IF(INDIRECT(\"c\" & (VLOOKUP(Rebalance!$D$55,$F$2:$G$48,2,FALSE)+ROW()-2))=Rebalance!$D$55,INDIRECT(\"a\" & (VLOOKUP(Rebalance!$D$55,$F$2:$G$48,2,FALSE)+ROW()-2)),\"\")","v":{"$error":"#N/A"}},{"$f":"IF(INDIRECT(\"c\" & (VLOOKUP(Rebalance!$D$56,$F$2:$G$48,2,FALSE)+ROW()-2))=Rebalance!$D$56,INDIRECT(\"a\" & (VLOOKUP(Rebalance!$D$56,$F$2:$G$48,2,FALSE)+ROW()-2)),\"\")","v":{"$error":"#N/A"}},{"$f":"IF(INDIRECT(\"c\" & (VLOOKUP(Rebalance!$D$57,$F$2:$G$48,2,FALSE)+ROW()-2))=Rebalance!$D$57,INDIRECT(\"a\" & (VLOOKUP(Rebalance!$D$57,$F$2:$G$48,2,FALSE)+ROW()-2)),\"\")","v":{"$error":"#N/A"}},{"$f":"IF(INDIRECT(\"c\" & (VLOOKUP(Rebalance!$D$58,$F$2:$G$48,2,FALSE)+ROW()-2))=Rebalance!$D$58,INDIRECT(\"a\" & (VLOOKUP(Rebalance!$D$58,$F$2:$G$48,2,FALSE)+ROW()-2)),\"\")","v":{"$error":"#N/A"}},{"$f":"IF(INDIRECT(\"c\" & (VLOOKUP(Rebalance!$D$59,$F$2:$G$48,2,FALSE)+ROW()-2))=Rebalance!$D$59,INDIRECT(\"a\" & (VLOOKUP(Rebalance!$D$59,$F$2:$G$48,2,FALSE)+ROW()-2)),\"\")","v":{"$error":"#N/A"}},{"$f":"IF(INDIRECT(\"c\" & (VLOOKUP(Rebalance!$D$60,$F$2:$G$48,2,FALSE)+ROW()-2))=Rebalance!$D$60,INDIRECT(\"a\" & (VLOOKUP(Rebalance!$D$60,$F$2:$G$48,2,FALSE)+ROW()-2)),\"\")","v":{"$error":"#N/A"}},{"$f":"IF(INDIRECT(\"c\" & (VLOOKUP(Rebalance!$D$61,$F$2:$G$48,2,FALSE)+ROW()-2))=Rebalance!$D$61,INDIRECT(\"a\" & (VLOOKUP(Rebalance!$D$61,$F$2:$G$48,2,FALSE)+ROW()-2)),\"\")","v":{"$error":"#N/A"}},{"$f":"IF(INDIRECT(\"c\" & (VLOOKUP(Rebalance!$D$62,$F$2:$G$48,2,FALSE)+ROW()-2))=Rebalance!$D$62,INDIRECT(\"a\" & (VLOOKUP(Rebalance!$D$62,$F$2:$G$48,2,FALSE)+ROW()-2)),\"\")","v":{"$error":"#N/A"}},{"$f":"IF(INDIRECT(\"c\" & (VLOOKUP(Rebalance!$D$63,$F$2:$G$48,2,FALSE)+ROW()-2))=Rebalance!$D$63,INDIRECT(\"a\" & (VLOOKUP(Rebalance!$D$63,$F$2:$G$48,2,FALSE)+ROW()-2)),\"\")","v":{"$error":"#N/A"}},{"$f":"IF(INDIRECT(\"c\" & (VLOOKUP(Rebalance!$D$64,$F$2:$G$48,2,FALSE)+ROW()-2))=Rebalance!$D$64,INDIRECT(\"a\" & (VLOOKUP(Rebalance!$D$64,$F$2:$G$48,2,FALSE)+ROW()-2)),\"\")","v":{"$error":"#N/A"}},{"$f":"IF(INDIRECT(\"c\" & (VLOOKUP(Rebalance!$D$65,$F$2:$G$48,2,FALSE)+ROW()-2))=Rebalance!$D$65,INDIRECT(\"a\" & (VLOOKUP(Rebalance!$D$65,$F$2:$G$48,2,FALSE)+ROW()-2)),\"\")","v":{"$error":"#N/A"}},{"$f":"IF(INDIRECT(\"c\" & (VLOOKUP(Rebalance!$D$66,$F$2:$G$48,2,FALSE)+ROW()-2))=Rebalance!$D$66,INDIRECT(\"a\" & (VLOOKUP(Rebalance!$D$66,$F$2:$G$48,2,FALSE)+ROW()-2)),\"\")","v":{"$error":"#N/A"}}]
["Cadiz Absolute Yield Fund B2","CAYB2","Cadiz Collective Investments",{"$f":"ROW()","v":209},null,null,{"$f":"VLOOKUP(F209,$C$2:$D$599,2,FALSE)","v":{"$error":"#N/A"}},{"$f":"IF(INDIRECT(\"c\" & (VLOOKUP(Rebalance!$D$26,$F$2:$G$48,2,FALSE)+ROW()-2))=Rebalance!$D$26,INDIRECT(\"a\" & (VLOOKUP(Rebalance!$D$26,$F$2:$G$48,2,FALSE)+ROW()-2)),\"\")","v":{"$error":"#N/A"}},{"$f":"IF(INDIRECT(\"c\" & (VLOOKUP(Rebalance!$D$27,$F$2:$G$48,2,FALSE)+ROW()-2))=Rebalance!$D$27,INDIRECT(\"a\" & (VLOOKUP(Rebalance!$D$27,$F$2:$G$48,2,FALSE)+ROW()-2)),\"\")","v":{"$error":"#N/A"}},{"$f":"IF(INDIRECT(\"c\" & (VLOOKUP(Rebalance!$D$28,$F$2:$G$48,2,FALSE)+ROW()-2))=Rebalance!$D$28,INDIRECT(\"a\" & (VLOOKUP(Rebalance!$D$28,$F$2:$G$48,2,FALSE)+ROW()-2)),\"\")","v":{"$error":"#N/A"}},{"$f":"IF(INDIRECT(\"c\" & (VLOOKUP(Rebalance!$D$29,$F$2:$G$48,2,FALSE)+ROW()-2))=Rebalance!$D$29,INDIRECT(\"a\" & (VLOOKUP(Rebalance!$D$29,$F$2:$G$48,2,FALSE)+ROW()-2)),\"\")","v":{"$error":"#N/A"}},{"$f":"IF(INDIRECT(\"c\" & (VLOOKUP(Rebalance!$D$30,$F$2:$G$48,2,FALSE)+ROW()-2))=Rebalance!$D$30,INDIRECT(\"a\" & (VLOOKUP(Rebalance!$D$30,$F$2:$G$48,2,FALSE)+ROW()-2)),\"\")","v":{"$error":"#N/A"}},{"$f":"IF(INDIRECT(\"c\" & (VLOOKUP(Rebalance!$D$31,$F$2:$G$48,2,FALSE)+ROW()-2))=Rebalance!$D$31,INDIRECT(\"a\" & (VLOOKUP(Rebalance!$D$31,$F$2:$G$48,2,FALSE)+ROW()-2)),\"\")","v":{"$error":"#N/A"}},{"$f":"IF(INDIRECT(\"c\" & (VLOOKUP(Rebalance!$D$32,$F$2:$G$48,2,FALSE)+ROW()-2))=Rebalance!$D$32,INDIRECT(\"a\" & (VLOOKUP(Rebalance!$D$32,$F$2:$G$48,2,FALSE)+ROW()-2)),\"\")","v":{"$error":"#N/A"}},{"$f":"IF(INDIRECT(\"c\" & (VLOOKUP(Rebalance!$D$33,$F$2:$G$48,2,FALSE)+ROW()-2))=Rebalance!$D$33,INDIRECT(\"a\" & (VLOOKUP(Rebalance!$D$33,$F$2:$G$48,2,FALSE)+ROW()-2)),\"\")","v":{"$error":"#N/A"}},{"$f":"IF(INDIRECT(\"c\" & (VLOOKUP(Rebalance!$D$34,$F$2:$G$48,2,FALSE)+ROW()-2))=Rebalance!$D$34,INDIRECT(\"a\" & (VLOOKUP(Rebalance!$D$34,$F$2:$G$48,2,FALSE)+ROW()-2)),\"\")","v":{"$error":"#N/A"}},{"$f":"IF(INDIRECT(\"c\" & (VLOOKUP(Rebalance!$D$35,$F$2:$G$48,2,FALSE)+ROW()-2))=Rebalance!$D$35,INDIRECT(\"a\" & (VLOOKUP(Rebalance!$D$35,$F$2:$G$48,2,FALSE)+ROW()-2)),\"\")","v":{"$error":"#N/A"}},{"$f":"IF(INDIRECT(\"c\" & (VLOOKUP(Rebalance!$D$36,$F$2:$G$48,2,FALSE)+ROW()-2))=Rebalance!$D$36,INDIRECT(\"a\" & (VLOOKUP(Rebalance!$D$36,$F$2:$G$48,2,FALSE)+ROW()-2)),\"\")","v":{"$error":"#N/A"}},{"$f":"IF(INDIRECT(\"c\" & (VLOOKUP(Rebalance!$D$37,$F$2:$G$48,2,FALSE)+ROW()-2))=Rebalance!$D$37,INDIRECT(\"a\" & (VLOOKUP(Rebalance!$D$37,$F$2:$G$48,2,FALSE)+ROW()-2)),\"\")","v":{"$error":"#N/A"}},{"$f":"IF(INDIRECT(\"c\" & (VLOOKUP(Rebalance!$D$38,$F$2:$G$48,2,FALSE)+ROW()-2))=Rebalance!$D$38,INDIRECT(\"a\" & (VLOOKUP(Rebalance!$D$38,$F$2:$G$48,2,FALSE)+ROW()-2)),\"\")","v":{"$error":"#N/A"}},{"$f":"IF(INDIRECT(\"c\" & (VLOOKUP(Rebalance!$D$39,$F$2:$G$48,2,FALSE)+ROW()-2))=Rebalance!$D$39,INDIRECT(\"a\" & (VLOOKUP(Rebalance!$D$39,$F$2:$G$48,2,FALSE)+ROW()-2)),\"\")","v":{"$error":"#N/A"}},{"$f":"IF(INDIRECT(\"c\" & (VLOOKUP(Rebalance!$D$40,$F$2:$G$48,2,FALSE)+ROW()-2))=Rebalance!$D$40,INDIRECT(\"a\" & (VLOOKUP(Rebalance!$D$40,$F$2:$G$48,2,FALSE)+ROW()-2)),\"\")","v":{"$error":"#N/A"}},{"$f":"IF(INDIRECT(\"c\" & (VLOOKUP(Rebalance!$D$52,$F$2:$G$48,2,FALSE)+ROW()-2))=Rebalance!$D$52,INDIRECT(\"a\" & (VLOOKUP(Rebalance!$D$52,$F$2:$G$48,2,FALSE)+ROW()-2)),\"\")","v":{"$error":"#N/A"}},{"$f":"IF(INDIRECT(\"c\" & (VLOOKUP(Rebalance!$D$53,$F$2:$G$48,2,FALSE)+ROW()-2))=Rebalance!$D$53,INDIRECT(\"a\" & (VLOOKUP(Rebalance!$D$53,$F$2:$G$48,2,FALSE)+ROW()-2)),\"\")","v":{"$error":"#N/A"}},{"$f":"IF(INDIRECT(\"c\" & (VLOOKUP(Rebalance!$D$54,$F$2:$G$48,2,FALSE)+ROW()-2))=Rebalance!$D$54,INDIRECT(\"a\" & (VLOOKUP(Rebalance!$D$54,$F$2:$G$48,2,FALSE)+ROW()-2)),\"\")","v":{"$error":"#N/A"}},{"$f":"IF(INDIRECT(\"c\" & (VLOOKUP(Rebalance!$D$55,$F$2:$G$48,2,FALSE)+ROW()-2))=Rebalance!$D$55,INDIRECT(\"a\" & (VLOOKUP(Rebalance!$D$55,$F$2:$G$48,2,FALSE)+ROW()-2)),\"\")","v":{"$error":"#N/A"}},{"$f":"IF(INDIRECT(\"c\" & (VLOOKUP(Rebalance!$D$56,$F$2:$G$48,2,FALSE)+ROW()-2))=Rebalance!$D$56,INDIRECT(\"a\" & (VLOOKUP(Rebalance!$D$56,$F$2:$G$48,2,FALSE)+ROW()-2)),\"\")","v":{"$error":"#N/A"}},{"$f":"IF(INDIRECT(\"c\" & (VLOOKUP(Rebalance!$D$57,$F$2:$G$48,2,FALSE)+ROW()-2))=Rebalance!$D$57,INDIRECT(\"a\" & (VLOOKUP(Rebalance!$D$57,$F$2:$G$48,2,FALSE)+ROW()-2)),\"\")","v":{"$error":"#N/A"}},{"$f":"IF(INDIRECT(\"c\" & (VLOOKUP(Rebalance!$D$58,$F$2:$G$48,2,FALSE)+ROW()-2))=Rebalance!$D$58,INDIRECT(\"a\" & (VLOOKUP(Rebalance!$D$58,$F$2:$G$48,2,FALSE)+ROW()-2)),\"\")","v":{"$error":"#N/A"}},{"$f":"IF(INDIRECT(\"c\" & (VLOOKUP(Rebalance!$D$59,$F$2:$G$48,2,FALSE)+ROW()-2))=Rebalance!$D$59,INDIRECT(\"a\" & (VLOOKUP(Rebalance!$D$59,$F$2:$G$48,2,FALSE)+ROW()-2)),\"\")","v":{"$error":"#N/A"}},{"$f":"IF(INDIRECT(\"c\" & (VLOOKUP(Rebalance!$D$60,$F$2:$G$48,2,FALSE)+ROW()-2))=Rebalance!$D$60,INDIRECT(\"a\" & (VLOOKUP(Rebalance!$D$60,$F$2:$G$48,2,FALSE)+ROW()-2)),\"\")","v":{"$error":"#N/A"}},{"$f":"IF(INDIRECT(\"c\" & (VLOOKUP(Rebalance!$D$61,$F$2:$G$48,2,FALSE)+ROW()-2))=Rebalance!$D$61,INDIRECT(\"a\" & (VLOOKUP(Rebalance!$D$61,$F$2:$G$48,2,FALSE)+ROW()-2)),\"\")","v":{"$error":"#N/A"}},{"$f":"IF(INDIRECT(\"c\" & (VLOOKUP(Rebalance!$D$62,$F$2:$G$48,2,FALSE)+ROW()-2))=Rebalance!$D$62,INDIRECT(\"a\" & (VLOOKUP(Rebalance!$D$62,$F$2:$G$48,2,FALSE)+ROW()-2)),\"\")","v":{"$error":"#N/A"}},{"$f":"IF(INDIRECT(\"c\" & (VLOOKUP(Rebalance!$D$63,$F$2:$G$48,2,FALSE)+ROW()-2))=Rebalance!$D$63,INDIRECT(\"a\" & (VLOOKUP(Rebalance!$D$63,$F$2:$G$48,2,FALSE)+ROW()-2)),\"\")","v":{"$error":"#N/A"}},{"$f":"IF(INDIRECT(\"c\" & (VLOOKUP(Rebalance!$D$64,$F$2:$G$48,2,FALSE)+ROW()-2))=Rebalance!$D$64,INDIRECT(\"a\" & (VLOOKUP(Rebalance!$D$64,$F$2:$G$48,2,FALSE)+ROW()-2)),\"\")","v":{"$error":"#N/A"}},{"$f":"IF(INDIRECT(\"c\" & (VLOOKUP(Rebalance!$D$65,$F$2:$G$48,2,FALSE)+ROW()-2))=Rebalance!$D$65,INDIRECT(\"a\" & (VLOOKUP(Rebalance!$D$65,$F$2:$G$48,2,FALSE)+ROW()-2)),\"\")","v":{"$error":"#N/A"}},{"$f":"IF(INDIRECT(\"c\" & (VLOOKUP(Rebalance!$D$66,$F$2:$G$48,2,FALSE)+ROW()-2))=Rebalance!$D$66,INDIRECT(\"a\" & (VLOOKUP(Rebalance!$D$66,$F$2:$G$48,2,FALSE)+ROW()-2)),\"\")","v":{"$error":"#N/A"}}]
["Cadiz Global Flexible Fund ","CCEL","Cadiz Collective Investments",{"$f":"ROW()","v":210},null,null,{"$f":"VLOOKUP(F210,$C$2:$D$599,2,FALSE)","v":{"$error":"#N/A"}},{"$f":"IF(INDIRECT(\"c\" & (VLOOKUP(Rebalance!$D$26,$F$2:$G$48,2,FALSE)+ROW()-2))=Rebalance!$D$26,INDIRECT(\"a\" & (VLOOKUP(Rebalance!$D$26,$F$2:$G$48,2,FALSE)+ROW()-2)),\"\")","v":{"$error":"#N/A"}},{"$f":"IF(INDIRECT(\"c\" & (VLOOKUP(Rebalance!$D$27,$F$2:$G$48,2,FALSE)+ROW()-2))=Rebalance!$D$27,INDIRECT(\"a\" & (VLOOKUP(Rebalance!$D$27,$F$2:$G$48,2,FALSE)+ROW()-2)),\"\")","v":{"$error":"#N/A"}},{"$f":"IF(INDIRECT(\"c\" & (VLOOKUP(Rebalance!$D$28,$F$2:$G$48,2,FALSE)+ROW()-2))=Rebalance!$D$28,INDIRECT(\"a\" & (VLOOKUP(Rebalance!$D$28,$F$2:$G$48,2,FALSE)+ROW()-2)),\"\")","v":{"$error":"#N/A"}},{"$f":"IF(INDIRECT(\"c\" & (VLOOKUP(Rebalance!$D$29,$F$2:$G$48,2,FALSE)+ROW()-2))=Rebalance!$D$29,INDIRECT(\"a\" & (VLOOKUP(Rebalance!$D$29,$F$2:$G$48,2,FALSE)+ROW()-2)),\"\")","v":{"$error":"#N/A"}},{"$f":"IF(INDIRECT(\"c\" & (VLOOKUP(Rebalance!$D$30,$F$2:$G$48,2,FALSE)+ROW()-2))=Rebalance!$D$30,INDIRECT(\"a\" & (VLOOKUP(Rebalance!$D$30,$F$2:$G$48,2,FALSE)+ROW()-2)),\"\")","v":{"$error":"#N/A"}},{"$f":"IF(INDIRECT(\"c\" & (VLOOKUP(Rebalance!$D$31,$F$2:$G$48,2,FALSE)+ROW()-2))=Rebalance!$D$31,INDIRECT(\"a\" & (VLOOKUP(Rebalance!$D$31,$F$2:$G$48,2,FALSE)+ROW()-2)),\"\")","v":{"$error":"#N/A"}},{"$f":"IF(INDIRECT(\"c\" & (VLOOKUP(Rebalance!$D$32,$F$2:$G$48,2,FALSE)+ROW()-2))=Rebalance!$D$32,INDIRECT(\"a\" & (VLOOKUP(Rebalance!$D$32,$F$2:$G$48,2,FALSE)+ROW()-2)),\"\")","v":{"$error":"#N/A"}},{"$f":"IF(INDIRECT(\"c\" & (VLOOKUP(Rebalance!$D$33,$F$2:$G$48,2,FALSE)+ROW()-2))=Rebalance!$D$33,INDIRECT(\"a\" & (VLOOKUP(Rebalance!$D$33,$F$2:$G$48,2,FALSE)+ROW()-2)),\"\")","v":{"$error":"#N/A"}},{"$f":"IF(INDIRECT(\"c\" & (VLOOKUP(Rebalance!$D$34,$F$2:$G$48,2,FALSE)+ROW()-2))=Rebalance!$D$34,INDIRECT(\"a\" & (VLOOKUP(Rebalance!$D$34,$F$2:$G$48,2,FALSE)+ROW()-2)),\"\")","v":{"$error":"#N/A"}},{"$f":"IF(INDIRECT(\"c\" & (VLOOKUP(Rebalance!$D$35,$F$2:$G$48,2,FALSE)+ROW()-2))=Rebalance!$D$35,INDIRECT(\"a\" & (VLOOKUP(Rebalance!$D$35,$F$2:$G$48,2,FALSE)+ROW()-2)),\"\")","v":{"$error":"#N/A"}},{"$f":"IF(INDIRECT(\"c\" & (VLOOKUP(Rebalance!$D$36,$F$2:$G$48,2,FALSE)+ROW()-2))=Rebalance!$D$36,INDIRECT(\"a\" & (VLOOKUP(Rebalance!$D$36,$F$2:$G$48,2,FALSE)+ROW()-2)),\"\")","v":{"$error":"#N/A"}},{"$f":"IF(INDIRECT(\"c\" & (VLOOKUP(Rebalance!$D$37,$F$2:$G$48,2,FALSE)+ROW()-2))=Rebalance!$D$37,INDIRECT(\"a\" & (VLOOKUP(Rebalance!$D$37,$F$2:$G$48,2,FALSE)+ROW()-2)),\"\")","v":{"$error":"#N/A"}},{"$f":"IF(INDIRECT(\"c\" & (VLOOKUP(Rebalance!$D$38,$F$2:$G$48,2,FALSE)+ROW()-2))=Rebalance!$D$38,INDIRECT(\"a\" & (VLOOKUP(Rebalance!$D$38,$F$2:$G$48,2,FALSE)+ROW()-2)),\"\")","v":{"$error":"#N/A"}},{"$f":"IF(INDIRECT(\"c\" & (VLOOKUP(Rebalance!$D$39,$F$2:$G$48,2,FALSE)+ROW()-2))=Rebalance!$D$39,INDIRECT(\"a\" & (VLOOKUP(Rebalance!$D$39,$F$2:$G$48,2,FALSE)+ROW()-2)),\"\")","v":{"$error":"#N/A"}},{"$f":"IF(INDIRECT(\"c\" & (VLOOKUP(Rebalance!$D$40,$F$2:$G$48,2,FALSE)+ROW()-2))=Rebalance!$D$40,INDIRECT(\"a\" & (VLOOKUP(Rebalance!$D$40,$F$2:$G$48,2,FALSE)+ROW()-2)),\"\")","v":{"$error":"#N/A"}},{"$f":"IF(INDIRECT(\"c\" & (VLOOKUP(Rebalance!$D$52,$F$2:$G$48,2,FALSE)+ROW()-2))=Rebalance!$D$52,INDIRECT(\"a\" & (VLOOKUP(Rebalance!$D$52,$F$2:$G$48,2,FALSE)+ROW()-2)),\"\")","v":{"$error":"#N/A"}},{"$f":"IF(INDIRECT(\"c\" & (VLOOKUP(Rebalance!$D$53,$F$2:$G$48,2,FALSE)+ROW()-2))=Rebalance!$D$53,INDIRECT(\"a\" & (VLOOKUP(Rebalance!$D$53,$F$2:$G$48,2,FALSE)+ROW()-2)),\"\")","v":{"$error":"#N/A"}},{"$f":"IF(INDIRECT(\"c\" & (VLOOKUP(Rebalance!$D$54,$F$2:$G$48,2,FALSE)+ROW()-2))=Rebalance!$D$54,INDIRECT(\"a\" & (VLOOKUP(Rebalance!$D$54,$F$2:$G$48,2,FALSE)+ROW()-2)),\"\")","v":{"$error":"#N/A"}},{"$f":"IF(INDIRECT(\"c\" & (VLOOKUP(Rebalance!$D$55,$F$2:$G$48,2,FALSE)+ROW()-2))=Rebalance!$D$55,INDIRECT(\"a\" & (VLOOKUP(Rebalance!$D$55,$F$2:$G$48,2,FALSE)+ROW()-2)),\"\")","v":{"$error":"#N/A"}},{"$f":"IF(INDIRECT(\"c\" & (VLOOKUP(Rebalance!$D$56,$F$2:$G$48,2,FALSE)+ROW()-2))=Rebalance!$D$56,INDIRECT(\"a\" & (VLOOKUP(Rebalance!$D$56,$F$2:$G$48,2,FALSE)+ROW()-2)),\"\")","v":{"$error":"#N/A"}},{"$f":"IF(INDIRECT(\"c\" & (VLOOKUP(Rebalance!$D$57,$F$2:$G$48,2,FALSE)+ROW()-2))=Rebalance!$D$57,INDIRECT(\"a\" & (VLOOKUP(Rebalance!$D$57,$F$2:$G$48,2,FALSE)+ROW()-2)),\"\")","v":{"$error":"#N/A"}},{"$f":"IF(INDIRECT(\"c\" & (VLOOKUP(Rebalance!$D$58,$F$2:$G$48,2,FALSE)+ROW()-2))=Rebalance!$D$58,INDIRECT(\"a\" & (VLOOKUP(Rebalance!$D$58,$F$2:$G$48,2,FALSE)+ROW()-2)),\"\")","v":{"$error":"#N/A"}},{"$f":"IF(INDIRECT(\"c\" & (VLOOKUP(Rebalance!$D$59,$F$2:$G$48,2,FALSE)+ROW()-2))=Rebalance!$D$59,INDIRECT(\"a\" & (VLOOKUP(Rebalance!$D$59,$F$2:$G$48,2,FALSE)+ROW()-2)),\"\")","v":{"$error":"#N/A"}},{"$f":"IF(INDIRECT(\"c\" & (VLOOKUP(Rebalance!$D$60,$F$2:$G$48,2,FALSE)+ROW()-2))=Rebalance!$D$60,INDIRECT(\"a\" & (VLOOKUP(Rebalance!$D$60,$F$2:$G$48,2,FALSE)+ROW()-2)),\"\")","v":{"$error":"#N/A"}},{"$f":"IF(INDIRECT(\"c\" & (VLOOKUP(Rebalance!$D$61,$F$2:$G$48,2,FALSE)+ROW()-2))=Rebalance!$D$61,INDIRECT(\"a\" & (VLOOKUP(Rebalance!$D$61,$F$2:$G$48,2,FALSE)+ROW()-2)),\"\")","v":{"$error":"#N/A"}},{"$f":"IF(INDIRECT(\"c\" & (VLOOKUP(Rebalance!$D$62,$F$2:$G$48,2,FALSE)+ROW()-2))=Rebalance!$D$62,INDIRECT(\"a\" & (VLOOKUP(Rebalance!$D$62,$F$2:$G$48,2,FALSE)+ROW()-2)),\"\")","v":{"$error":"#N/A"}},{"$f":"IF(INDIRECT(\"c\" & (VLOOKUP(Rebalance!$D$63,$F$2:$G$48,2,FALSE)+ROW()-2))=Rebalance!$D$63,INDIRECT(\"a\" & (VLOOKUP(Rebalance!$D$63,$F$2:$G$48,2,FALSE)+ROW()-2)),\"\")","v":{"$error":"#N/A"}},{"$f":"IF(INDIRECT(\"c\" & (VLOOKUP(Rebalance!$D$64,$F$2:$G$48,2,FALSE)+ROW()-2))=Rebalance!$D$64,INDIRECT(\"a\" & (VLOOKUP(Rebalance!$D$64,$F$2:$G$48,2,FALSE)+ROW()-2)),\"\")","v":{"$error":"#N/A"}},{"$f":"IF(INDIRECT(\"c\" & (VLOOKUP(Rebalance!$D$65,$F$2:$G$48,2,FALSE)+ROW()-2))=Rebalance!$D$65,INDIRECT(\"a\" & (VLOOKUP(Rebalance!$D$65,$F$2:$G$48,2,FALSE)+ROW()-2)),\"\")","v":{"$error":"#N/A"}},{"$f":"IF(INDIRECT(\"c\" & (VLOOKUP(Rebalance!$D$66,$F$2:$G$48,2,FALSE)+ROW()-2))=Rebalance!$D$66,INDIRECT(\"a\" & (VLOOKUP(Rebalance!$D$66,$F$2:$G$48,2,FALSE)+ROW()-2)),\"\")","v":{"$error":"#N/A"}}]
["Cadiz Balanced Fund","CMFCB","Cadiz Collective Investments",{"$f":"ROW()","v":211},null,null,{"$f":"VLOOKUP(F211,$C$2:$D$599,2,FALSE)","v":{"$error":"#N/A"}},{"$f":"IF(INDIRECT(\"c\" & (VLOOKUP(Rebalance!$D$26,$F$2:$G$48,2,FALSE)+ROW()-2))=Rebalance!$D$26,INDIRECT(\"a\" & (VLOOKUP(Rebalance!$D$26,$F$2:$G$48,2,FALSE)+ROW()-2)),\"\")","v":{"$error":"#N/A"}},{"$f":"IF(INDIRECT(\"c\" & (VLOOKUP(Rebalance!$D$27,$F$2:$G$48,2,FALSE)+ROW()-2))=Rebalance!$D$27,INDIRECT(\"a\" & (VLOOKUP(Rebalance!$D$27,$F$2:$G$48,2,FALSE)+ROW()-2)),\"\")","v":{"$error":"#N/A"}},{"$f":"IF(INDIRECT(\"c\" & (VLOOKUP(Rebalance!$D$28,$F$2:$G$48,2,FALSE)+ROW()-2))=Rebalance!$D$28,INDIRECT(\"a\" & (VLOOKUP(Rebalance!$D$28,$F$2:$G$48,2,FALSE)+ROW()-2)),\"\")","v":{"$error":"#N/A"}},{"$f":"IF(INDIRECT(\"c\" & (VLOOKUP(Rebalance!$D$29,$F$2:$G$48,2,FALSE)+ROW()-2))=Rebalance!$D$29,INDIRECT(\"a\" & (VLOOKUP(Rebalance!$D$29,$F$2:$G$48,2,FALSE)+ROW()-2)),\"\")","v":{"$error":"#N/A"}},{"$f":"IF(INDIRECT(\"c\" & (VLOOKUP(Rebalance!$D$30,$F$2:$G$48,2,FALSE)+ROW()-2))=Rebalance!$D$30,INDIRECT(\"a\" & (VLOOKUP(Rebalance!$D$30,$F$2:$G$48,2,FALSE)+ROW()-2)),\"\")","v":{"$error":"#N/A"}},{"$f":"IF(INDIRECT(\"c\" & (VLOOKUP(Rebalance!$D$31,$F$2:$G$48,2,FALSE)+ROW()-2))=Rebalance!$D$31,INDIRECT(\"a\" & (VLOOKUP(Rebalance!$D$31,$F$2:$G$48,2,FALSE)+ROW()-2)),\"\")","v":{"$error":"#N/A"}},{"$f":"IF(INDIRECT(\"c\" & (VLOOKUP(Rebalance!$D$32,$F$2:$G$48,2,FALSE)+ROW()-2))=Rebalance!$D$32,INDIRECT(\"a\" & (VLOOKUP(Rebalance!$D$32,$F$2:$G$48,2,FALSE)+ROW()-2)),\"\")","v":{"$error":"#N/A"}},{"$f":"IF(INDIRECT(\"c\" & (VLOOKUP(Rebalance!$D$33,$F$2:$G$48,2,FALSE)+ROW()-2))=Rebalance!$D$33,INDIRECT(\"a\" & (VLOOKUP(Rebalance!$D$33,$F$2:$G$48,2,FALSE)+ROW()-2)),\"\")","v":{"$error":"#N/A"}},{"$f":"IF(INDIRECT(\"c\" & (VLOOKUP(Rebalance!$D$34,$F$2:$G$48,2,FALSE)+ROW()-2))=Rebalance!$D$34,INDIRECT(\"a\" & (VLOOKUP(Rebalance!$D$34,$F$2:$G$48,2,FALSE)+ROW()-2)),\"\")","v":{"$error":"#N/A"}},{"$f":"IF(INDIRECT(\"c\" & (VLOOKUP(Rebalance!$D$35,$F$2:$G$48,2,FALSE)+ROW()-2))=Rebalance!$D$35,INDIRECT(\"a\" & (VLOOKUP(Rebalance!$D$35,$F$2:$G$48,2,FALSE)+ROW()-2)),\"\")","v":{"$error":"#N/A"}},{"$f":"IF(INDIRECT(\"c\" & (VLOOKUP(Rebalance!$D$36,$F$2:$G$48,2,FALSE)+ROW()-2))=Rebalance!$D$36,INDIRECT(\"a\" & (VLOOKUP(Rebalance!$D$36,$F$2:$G$48,2,FALSE)+ROW()-2)),\"\")","v":{"$error":"#N/A"}},{"$f":"IF(INDIRECT(\"c\" & (VLOOKUP(Rebalance!$D$37,$F$2:$G$48,2,FALSE)+ROW()-2))=Rebalance!$D$37,INDIRECT(\"a\" & (VLOOKUP(Rebalance!$D$37,$F$2:$G$48,2,FALSE)+ROW()-2)),\"\")","v":{"$error":"#N/A"}},{"$f":"IF(INDIRECT(\"c\" & (VLOOKUP(Rebalance!$D$38,$F$2:$G$48,2,FALSE)+ROW()-2))=Rebalance!$D$38,INDIRECT(\"a\" & (VLOOKUP(Rebalance!$D$38,$F$2:$G$48,2,FALSE)+ROW()-2)),\"\")","v":{"$error":"#N/A"}},{"$f":"IF(INDIRECT(\"c\" & (VLOOKUP(Rebalance!$D$39,$F$2:$G$48,2,FALSE)+ROW()-2))=Rebalance!$D$39,INDIRECT(\"a\" & (VLOOKUP(Rebalance!$D$39,$F$2:$G$48,2,FALSE)+ROW()-2)),\"\")","v":{"$error":"#N/A"}},{"$f":"IF(INDIRECT(\"c\" & (VLOOKUP(Rebalance!$D$40,$F$2:$G$48,2,FALSE)+ROW()-2))=Rebalance!$D$40,INDIRECT(\"a\" & (VLOOKUP(Rebalance!$D$40,$F$2:$G$48,2,FALSE)+ROW()-2)),\"\")","v":{"$error":"#N/A"}},{"$f":"IF(INDIRECT(\"c\" & (VLOOKUP(Rebalance!$D$52,$F$2:$G$48,2,FALSE)+ROW()-2))=Rebalance!$D$52,INDIRECT(\"a\" & (VLOOKUP(Rebalance!$D$52,$F$2:$G$48,2,FALSE)+ROW()-2)),\"\")","v":{"$error":"#N/A"}},{"$f":"IF(INDIRECT(\"c\" & (VLOOKUP(Rebalance!$D$53,$F$2:$G$48,2,FALSE)+ROW()-2))=Rebalance!$D$53,INDIRECT(\"a\" & (VLOOKUP(Rebalance!$D$53,$F$2:$G$48,2,FALSE)+ROW()-2)),\"\")","v":{"$error":"#N/A"}},{"$f":"IF(INDIRECT(\"c\" & (VLOOKUP(Rebalance!$D$54,$F$2:$G$48,2,FALSE)+ROW()-2))=Rebalance!$D$54,INDIRECT(\"a\" & (VLOOKUP(Rebalance!$D$54,$F$2:$G$48,2,FALSE)+ROW()-2)),\"\")","v":{"$error":"#N/A"}},{"$f":"IF(INDIRECT(\"c\" & (VLOOKUP(Rebalance!$D$55,$F$2:$G$48,2,FALSE)+ROW()-2))=Rebalance!$D$55,INDIRECT(\"a\" & (VLOOKUP(Rebalance!$D$55,$F$2:$G$48,2,FALSE)+ROW()-2)),\"\")","v":{"$error":"#N/A"}},{"$f":"IF(INDIRECT(\"c\" & (VLOOKUP(Rebalance!$D$56,$F$2:$G$48,2,FALSE)+ROW()-2))=Rebalance!$D$56,INDIRECT(\"a\" & (VLOOKUP(Rebalance!$D$56,$F$2:$G$48,2,FALSE)+ROW()-2)),\"\")","v":{"$error":"#N/A"}},{"$f":"IF(INDIRECT(\"c\" & (VLOOKUP(Rebalance!$D$57,$F$2:$G$48,2,FALSE)+ROW()-2))=Rebalance!$D$57,INDIRECT(\"a\" & (VLOOKUP(Rebalance!$D$57,$F$2:$G$48,2,FALSE)+ROW()-2)),\"\")","v":{"$error":"#N/A"}},{"$f":"IF(INDIRECT(\"c\" & (VLOOKUP(Rebalance!$D$58,$F$2:$G$48,2,FALSE)+ROW()-2))=Rebalance!$D$58,INDIRECT(\"a\" & (VLOOKUP(Rebalance!$D$58,$F$2:$G$48,2,FALSE)+ROW()-2)),\"\")","v":{"$error":"#N/A"}},{"$f":"IF(INDIRECT(\"c\" & (VLOOKUP(Rebalance!$D$59,$F$2:$G$48,2,FALSE)+ROW()-2))=Rebalance!$D$59,INDIRECT(\"a\" & (VLOOKUP(Rebalance!$D$59,$F$2:$G$48,2,FALSE)+ROW()-2)),\"\")","v":{"$error":"#N/A"}},{"$f":"IF(INDIRECT(\"c\" & (VLOOKUP(Rebalance!$D$60,$F$2:$G$48,2,FALSE)+ROW()-2))=Rebalance!$D$60,INDIRECT(\"a\" & (VLOOKUP(Rebalance!$D$60,$F$2:$G$48,2,FALSE)+ROW()-2)),\"\")","v":{"$error":"#N/A"}},{"$f":"IF(INDIRECT(\"c\" & (VLOOKUP(Rebalance!$D$61,$F$2:$G$48,2,FALSE)+ROW()-2))=Rebalance!$D$61,INDIRECT(\"a\" & (VLOOKUP(Rebalance!$D$61,$F$2:$G$48,2,FALSE)+ROW()-2)),\"\")","v":{"$error":"#N/A"}},{"$f":"IF(INDIRECT(\"c\" & (VLOOKUP(Rebalance!$D$62,$F$2:$G$48,2,FALSE)+ROW()-2))=Rebalance!$D$62,INDIRECT(\"a\" & (VLOOKUP(Rebalance!$D$62,$F$2:$G$48,2,FALSE)+ROW()-2)),\"\")","v":{"$error":"#N/A"}},{"$f":"IF(INDIRECT(\"c\" & (VLOOKUP(Rebalance!$D$63,$F$2:$G$48,2,FALSE)+ROW()-2))=Rebalance!$D$63,INDIRECT(\"a\" & (VLOOKUP(Rebalance!$D$63,$F$2:$G$48,2,FALSE)+ROW()-2)),\"\")","v":{"$error":"#N/A"}},{"$f":"IF(INDIRECT(\"c\" & (VLOOKUP(Rebalance!$D$64,$F$2:$G$48,2,FALSE)+ROW()-2))=Rebalance!$D$64,INDIRECT(\"a\" & (VLOOKUP(Rebalance!$D$64,$F$2:$G$48,2,FALSE)+ROW()-2)),\"\")","v":{"$error":"#N/A"}},{"$f":"IF(INDIRECT(\"c\" & (VLOOKUP(Rebalance!$D$65,$F$2:$G$48,2,FALSE)+ROW()-2))=Rebalance!$D$65,INDIRECT(\"a\" & (VLOOKUP(Rebalance!$D$65,$F$2:$G$48,2,FALSE)+ROW()-2)),\"\")","v":{"$error":"#N/A"}},{"$f":"IF(INDIRECT(\"c\" & (VLOOKUP(Rebalance!$D$66,$F$2:$G$48,2,FALSE)+ROW()-2))=Rebalance!$D$66,INDIRECT(\"a\" & (VLOOKUP(Rebalance!$D$66,$F$2:$G$48,2,FALSE)+ROW()-2)),\"\")","v":{"$error":"#N/A"}}]
["Cadiz Equity Fund ","AHMF","Cadiz Collective Investments",{"$f":"ROW()","v":212},null,null,{"$f":"VLOOKUP(F212,$C$2:$D$599,2,FALSE)","v":{"$error":"#N/A"}},{"$f":"IF(INDIRECT(\"c\" & (VLOOKUP(Rebalance!$D$26,$F$2:$G$48,2,FALSE)+ROW()-2))=Rebalance!$D$26,INDIRECT(\"a\" & (VLOOKUP(Rebalance!$D$26,$F$2:$G$48,2,FALSE)+ROW()-2)),\"\")","v":{"$error":"#N/A"}},{"$f":"IF(INDIRECT(\"c\" & (VLOOKUP(Rebalance!$D$27,$F$2:$G$48,2,FALSE)+ROW()-2))=Rebalance!$D$27,INDIRECT(\"a\" & (VLOOKUP(Rebalance!$D$27,$F$2:$G$48,2,FALSE)+ROW()-2)),\"\")","v":{"$error":"#N/A"}},{"$f":"IF(INDIRECT(\"c\" & (VLOOKUP(Rebalance!$D$28,$F$2:$G$48,2,FALSE)+ROW()-2))=Rebalance!$D$28,INDIRECT(\"a\" & (VLOOKUP(Rebalance!$D$28,$F$2:$G$48,2,FALSE)+ROW()-2)),\"\")","v":{"$error":"#N/A"}},{"$f":"IF(INDIRECT(\"c\" & (VLOOKUP(Rebalance!$D$29,$F$2:$G$48,2,FALSE)+ROW()-2))=Rebalance!$D$29,INDIRECT(\"a\" & (VLOOKUP(Rebalance!$D$29,$F$2:$G$48,2,FALSE)+ROW()-2)),\"\")","v":{"$error":"#N/A"}},{"$f":"IF(INDIRECT(\"c\" & (VLOOKUP(Rebalance!$D$30,$F$2:$G$48,2,FALSE)+ROW()-2))=Rebalance!$D$30,INDIRECT(\"a\" & (VLOOKUP(Rebalance!$D$30,$F$2:$G$48,2,FALSE)+ROW()-2)),\"\")","v":{"$error":"#N/A"}},{"$f":"IF(INDIRECT(\"c\" & (VLOOKUP(Rebalance!$D$31,$F$2:$G$48,2,FALSE)+ROW()-2))=Rebalance!$D$31,INDIRECT(\"a\" & (VLOOKUP(Rebalance!$D$31,$F$2:$G$48,2,FALSE)+ROW()-2)),\"\")","v":{"$error":"#N/A"}},{"$f":"IF(INDIRECT(\"c\" & (VLOOKUP(Rebalance!$D$32,$F$2:$G$48,2,FALSE)+ROW()-2))=Rebalance!$D$32,INDIRECT(\"a\" & (VLOOKUP(Rebalance!$D$32,$F$2:$G$48,2,FALSE)+ROW()-2)),\"\")","v":{"$error":"#N/A"}},{"$f":"IF(INDIRECT(\"c\" & (VLOOKUP(Rebalance!$D$33,$F$2:$G$48,2,FALSE)+ROW()-2))=Rebalance!$D$33,INDIRECT(\"a\" & (VLOOKUP(Rebalance!$D$33,$F$2:$G$48,2,FALSE)+ROW()-2)),\"\")","v":{"$error":"#N/A"}},{"$f":"IF(INDIRECT(\"c\" & (VLOOKUP(Rebalance!$D$34,$F$2:$G$48,2,FALSE)+ROW()-2))=Rebalance!$D$34,INDIRECT(\"a\" & (VLOOKUP(Rebalance!$D$34,$F$2:$G$48,2,FALSE)+ROW()-2)),\"\")","v":{"$error":"#N/A"}},{"$f":"IF(INDIRECT(\"c\" & (VLOOKUP(Rebalance!$D$35,$F$2:$G$48,2,FALSE)+ROW()-2))=Rebalance!$D$35,INDIRECT(\"a\" & (VLOOKUP(Rebalance!$D$35,$F$2:$G$48,2,FALSE)+ROW()-2)),\"\")","v":{"$error":"#N/A"}},{"$f":"IF(INDIRECT(\"c\" & (VLOOKUP(Rebalance!$D$36,$F$2:$G$48,2,FALSE)+ROW()-2))=Rebalance!$D$36,INDIRECT(\"a\" & (VLOOKUP(Rebalance!$D$36,$F$2:$G$48,2,FALSE)+ROW()-2)),\"\")","v":{"$error":"#N/A"}},{"$f":"IF(INDIRECT(\"c\" & (VLOOKUP(Rebalance!$D$37,$F$2:$G$48,2,FALSE)+ROW()-2))=Rebalance!$D$37,INDIRECT(\"a\" & (VLOOKUP(Rebalance!$D$37,$F$2:$G$48,2,FALSE)+ROW()-2)),\"\")","v":{"$error":"#N/A"}},{"$f":"IF(INDIRECT(\"c\" & (VLOOKUP(Rebalance!$D$38,$F$2:$G$48,2,FALSE)+ROW()-2))=Rebalance!$D$38,INDIRECT(\"a\" & (VLOOKUP(Rebalance!$D$38,$F$2:$G$48,2,FALSE)+ROW()-2)),\"\")","v":{"$error":"#N/A"}},{"$f":"IF(INDIRECT(\"c\" & (VLOOKUP(Rebalance!$D$39,$F$2:$G$48,2,FALSE)+ROW()-2))=Rebalance!$D$39,INDIRECT(\"a\" & (VLOOKUP(Rebalance!$D$39,$F$2:$G$48,2,FALSE)+ROW()-2)),\"\")","v":{"$error":"#N/A"}},{"$f":"IF(INDIRECT(\"c\" & (VLOOKUP(Rebalance!$D$40,$F$2:$G$48,2,FALSE)+ROW()-2))=Rebalance!$D$40,INDIRECT(\"a\" & (VLOOKUP(Rebalance!$D$40,$F$2:$G$48,2,FALSE)+ROW()-2)),\"\")","v":{"$error":"#N/A"}},{"$f":"IF(INDIRECT(\"c\" & (VLOOKUP(Rebalance!$D$52,$F$2:$G$48,2,FALSE)+ROW()-2))=Rebalance!$D$52,INDIRECT(\"a\" & (VLOOKUP(Rebalance!$D$52,$F$2:$G$48,2,FALSE)+ROW()-2)),\"\")","v":{"$error":"#N/A"}},{"$f":"IF(INDIRECT(\"c\" & (VLOOKUP(Rebalance!$D$53,$F$2:$G$48,2,FALSE)+ROW()-2))=Rebalance!$D$53,INDIRECT(\"a\" & (VLOOKUP(Rebalance!$D$53,$F$2:$G$48,2,FALSE)+ROW()-2)),\"\")","v":{"$error":"#N/A"}},{"$f":"IF(INDIRECT(\"c\" & (VLOOKUP(Rebalance!$D$54,$F$2:$G$48,2,FALSE)+ROW()-2))=Rebalance!$D$54,INDIRECT(\"a\" & (VLOOKUP(Rebalance!$D$54,$F$2:$G$48,2,FALSE)+ROW()-2)),\"\")","v":{"$error":"#N/A"}},{"$f":"IF(INDIRECT(\"c\" & (VLOOKUP(Rebalance!$D$55,$F$2:$G$48,2,FALSE)+ROW()-2))=Rebalance!$D$55,INDIRECT(\"a\" & (VLOOKUP(Rebalance!$D$55,$F$2:$G$48,2,FALSE)+ROW()-2)),\"\")","v":{"$error":"#N/A"}},{"$f":"IF(INDIRECT(\"c\" & (VLOOKUP(Rebalance!$D$56,$F$2:$G$48,2,FALSE)+ROW()-2))=Rebalance!$D$56,INDIRECT(\"a\" & (VLOOKUP(Rebalance!$D$56,$F$2:$G$48,2,FALSE)+ROW()-2)),\"\")","v":{"$error":"#N/A"}},{"$f":"IF(INDIRECT(\"c\" & (VLOOKUP(Rebalance!$D$57,$F$2:$G$48,2,FALSE)+ROW()-2))=Rebalance!$D$57,INDIRECT(\"a\" & (VLOOKUP(Rebalance!$D$57,$F$2:$G$48,2,FALSE)+ROW()-2)),\"\")","v":{"$error":"#N/A"}},{"$f":"IF(INDIRECT(\"c\" & (VLOOKUP(Rebalance!$D$58,$F$2:$G$48,2,FALSE)+ROW()-2))=Rebalance!$D$58,INDIRECT(\"a\" & (VLOOKUP(Rebalance!$D$58,$F$2:$G$48,2,FALSE)+ROW()-2)),\"\")","v":{"$error":"#N/A"}},{"$f":"IF(INDIRECT(\"c\" & (VLOOKUP(Rebalance!$D$59,$F$2:$G$48,2,FALSE)+ROW()-2))=Rebalance!$D$59,INDIRECT(\"a\" & (VLOOKUP(Rebalance!$D$59,$F$2:$G$48,2,FALSE)+ROW()-2)),\"\")","v":{"$error":"#N/A"}},{"$f":"IF(INDIRECT(\"c\" & (VLOOKUP(Rebalance!$D$60,$F$2:$G$48,2,FALSE)+ROW()-2))=Rebalance!$D$60,INDIRECT(\"a\" & (VLOOKUP(Rebalance!$D$60,$F$2:$G$48,2,FALSE)+ROW()-2)),\"\")","v":{"$error":"#N/A"}},{"$f":"IF(INDIRECT(\"c\" & (VLOOKUP(Rebalance!$D$61,$F$2:$G$48,2,FALSE)+ROW()-2))=Rebalance!$D$61,INDIRECT(\"a\" & (VLOOKUP(Rebalance!$D$61,$F$2:$G$48,2,FALSE)+ROW()-2)),\"\")","v":{"$error":"#N/A"}},{"$f":"IF(INDIRECT(\"c\" & (VLOOKUP(Rebalance!$D$62,$F$2:$G$48,2,FALSE)+ROW()-2))=Rebalance!$D$62,INDIRECT(\"a\" & (VLOOKUP(Rebalance!$D$62,$F$2:$G$48,2,FALSE)+ROW()-2)),\"\")","v":{"$error":"#N/A"}},{"$f":"IF(INDIRECT(\"c\" & (VLOOKUP(Rebalance!$D$63,$F$2:$G$48,2,FALSE)+ROW()-2))=Rebalance!$D$63,INDIRECT(\"a\" & (VLOOKUP(Rebalance!$D$63,$F$2:$G$48,2,FALSE)+ROW()-2)),\"\")","v":{"$error":"#N/A"}},{"$f":"IF(INDIRECT(\"c\" & (VLOOKUP(Rebalance!$D$64,$F$2:$G$48,2,FALSE)+ROW()-2))=Rebalance!$D$64,INDIRECT(\"a\" & (VLOOKUP(Rebalance!$D$64,$F$2:$G$48,2,FALSE)+ROW()-2)),\"\")","v":{"$error":"#N/A"}},{"$f":"IF(INDIRECT(\"c\" & (VLOOKUP(Rebalance!$D$65,$F$2:$G$48,2,FALSE)+ROW()-2))=Rebalance!$D$65,INDIRECT(\"a\" & (VLOOKUP(Rebalance!$D$65,$F$2:$G$48,2,FALSE)+ROW()-2)),\"\")","v":{"$error":"#N/A"}},{"$f":"IF(INDIRECT(\"c\" & (VLOOKUP(Rebalance!$D$66,$F$2:$G$48,2,FALSE)+ROW()-2))=Rebalance!$D$66,INDIRECT(\"a\" & (VLOOKUP(Rebalance!$D$66,$F$2:$G$48,2,FALSE)+ROW()-2)),\"\")","v":{"$error":"#N/A"}}]
["Cadiz Stable Fund B","CASCB","Cadiz Collective Investments",{"$f":"ROW()","v":213},null,null,{"$f":"VLOOKUP(F213,$C$2:$D$599,2,FALSE)","v":{"$error":"#N/A"}},{"$f":"IF(INDIRECT(\"c\" & (VLOOKUP(Rebalance!$D$26,$F$2:$G$48,2,FALSE)+ROW()-2))=Rebalance!$D$26,INDIRECT(\"a\" & (VLOOKUP(Rebalance!$D$26,$F$2:$G$48,2,FALSE)+ROW()-2)),\"\")","v":{"$error":"#N/A"}},{"$f":"IF(INDIRECT(\"c\" & (VLOOKUP(Rebalance!$D$27,$F$2:$G$48,2,FALSE)+ROW()-2))=Rebalance!$D$27,INDIRECT(\"a\" & (VLOOKUP(Rebalance!$D$27,$F$2:$G$48,2,FALSE)+ROW()-2)),\"\")","v":{"$error":"#N/A"}},{"$f":"IF(INDIRECT(\"c\" & (VLOOKUP(Rebalance!$D$28,$F$2:$G$48,2,FALSE)+ROW()-2))=Rebalance!$D$28,INDIRECT(\"a\" & (VLOOKUP(Rebalance!$D$28,$F$2:$G$48,2,FALSE)+ROW()-2)),\"\")","v":{"$error":"#N/A"}},{"$f":"IF(INDIRECT(\"c\" & (VLOOKUP(Rebalance!$D$29,$F$2:$G$48,2,FALSE)+ROW()-2))=Rebalance!$D$29,INDIRECT(\"a\" & (VLOOKUP(Rebalance!$D$29,$F$2:$G$48,2,FALSE)+ROW()-2)),\"\")","v":{"$error":"#N/A"}},{"$f":"IF(INDIRECT(\"c\" & (VLOOKUP(Rebalance!$D$30,$F$2:$G$48,2,FALSE)+ROW()-2))=Rebalance!$D$30,INDIRECT(\"a\" & (VLOOKUP(Rebalance!$D$30,$F$2:$G$48,2,FALSE)+ROW()-2)),\"\")","v":{"$error":"#N/A"}},{"$f":"IF(INDIRECT(\"c\" & (VLOOKUP(Rebalance!$D$31,$F$2:$G$48,2,FALSE)+ROW()-2))=Rebalance!$D$31,INDIRECT(\"a\" & (VLOOKUP(Rebalance!$D$31,$F$2:$G$48,2,FALSE)+ROW()-2)),\"\")","v":{"$error":"#N/A"}},{"$f":"IF(INDIRECT(\"c\" & (VLOOKUP(Rebalance!$D$32,$F$2:$G$48,2,FALSE)+ROW()-2))=Rebalance!$D$32,INDIRECT(\"a\" & (VLOOKUP(Rebalance!$D$32,$F$2:$G$48,2,FALSE)+ROW()-2)),\"\")","v":{"$error":"#N/A"}},{"$f":"IF(INDIRECT(\"c\" & (VLOOKUP(Rebalance!$D$33,$F$2:$G$48,2,FALSE)+ROW()-2))=Rebalance!$D$33,INDIRECT(\"a\" & (VLOOKUP(Rebalance!$D$33,$F$2:$G$48,2,FALSE)+ROW()-2)),\"\")","v":{"$error":"#N/A"}},{"$f":"IF(INDIRECT(\"c\" & (VLOOKUP(Rebalance!$D$34,$F$2:$G$48,2,FALSE)+ROW()-2))=Rebalance!$D$34,INDIRECT(\"a\" & (VLOOKUP(Rebalance!$D$34,$F$2:$G$48,2,FALSE)+ROW()-2)),\"\")","v":{"$error":"#N/A"}},{"$f":"IF(INDIRECT(\"c\" & (VLOOKUP(Rebalance!$D$35,$F$2:$G$48,2,FALSE)+ROW()-2))=Rebalance!$D$35,INDIRECT(\"a\" & (VLOOKUP(Rebalance!$D$35,$F$2:$G$48,2,FALSE)+ROW()-2)),\"\")","v":{"$error":"#N/A"}},{"$f":"IF(INDIRECT(\"c\" & (VLOOKUP(Rebalance!$D$36,$F$2:$G$48,2,FALSE)+ROW()-2))=Rebalance!$D$36,INDIRECT(\"a\" & (VLOOKUP(Rebalance!$D$36,$F$2:$G$48,2,FALSE)+ROW()-2)),\"\")","v":{"$error":"#N/A"}},{"$f":"IF(INDIRECT(\"c\" & (VLOOKUP(Rebalance!$D$37,$F$2:$G$48,2,FALSE)+ROW()-2))=Rebalance!$D$37,INDIRECT(\"a\" & (VLOOKUP(Rebalance!$D$37,$F$2:$G$48,2,FALSE)+ROW()-2)),\"\")","v":{"$error":"#N/A"}},{"$f":"IF(INDIRECT(\"c\" & (VLOOKUP(Rebalance!$D$38,$F$2:$G$48,2,FALSE)+ROW()-2))=Rebalance!$D$38,INDIRECT(\"a\" & (VLOOKUP(Rebalance!$D$38,$F$2:$G$48,2,FALSE)+ROW()-2)),\"\")","v":{"$error":"#N/A"}},{"$f":"IF(INDIRECT(\"c\" & (VLOOKUP(Rebalance!$D$39,$F$2:$G$48,2,FALSE)+ROW()-2))=Rebalance!$D$39,INDIRECT(\"a\" & (VLOOKUP(Rebalance!$D$39,$F$2:$G$48,2,FALSE)+ROW()-2)),\"\")","v":{"$error":"#N/A"}},{"$f":"IF(INDIRECT(\"c\" & (VLOOKUP(Rebalance!$D$40,$F$2:$G$48,2,FALSE)+ROW()-2))=Rebalance!$D$40,INDIRECT(\"a\" & (VLOOKUP(Rebalance!$D$40,$F$2:$G$48,2,FALSE)+ROW()-2)),\"\")","v":{"$error":"#N/A"}},{"$f":"IF(INDIRECT(\"c\" & (VLOOKUP(Rebalance!$D$52,$F$2:$G$48,2,FALSE)+ROW()-2))=Rebalance!$D$52,INDIRECT(\"a\" & (VLOOKUP(Rebalance!$D$52,$F$2:$G$48,2,FALSE)+ROW()-2)),\"\")","v":{"$error":"#N/A"}},{"$f":"IF(INDIRECT(\"c\" & (VLOOKUP(Rebalance!$D$53,$F$2:$G$48,2,FALSE)+ROW()-2))=Rebalance!$D$53,INDIRECT(\"a\" & (VLOOKUP(Rebalance!$D$53,$F$2:$G$48,2,FALSE)+ROW()-2)),\"\")","v":{"$error":"#N/A"}},{"$f":"IF(INDIRECT(\"c\" & (VLOOKUP(Rebalance!$D$54,$F$2:$G$48,2,FALSE)+ROW()-2))=Rebalance!$D$54,INDIRECT(\"a\" & (VLOOKUP(Rebalance!$D$54,$F$2:$G$48,2,FALSE)+ROW()-2)),\"\")","v":{"$error":"#N/A"}},{"$f":"IF(INDIRECT(\"c\" & (VLOOKUP(Rebalance!$D$55,$F$2:$G$48,2,FALSE)+ROW()-2))=Rebalance!$D$55,INDIRECT(\"a\" & (VLOOKUP(Rebalance!$D$55,$F$2:$G$48,2,FALSE)+ROW()-2)),\"\")","v":{"$error":"#N/A"}},{"$f":"IF(INDIRECT(\"c\" & (VLOOKUP(Rebalance!$D$56,$F$2:$G$48,2,FALSE)+ROW()-2))=Rebalance!$D$56,INDIRECT(\"a\" & (VLOOKUP(Rebalance!$D$56,$F$2:$G$48,2,FALSE)+ROW()-2)),\"\")","v":{"$error":"#N/A"}},{"$f":"IF(INDIRECT(\"c\" & (VLOOKUP(Rebalance!$D$57,$F$2:$G$48,2,FALSE)+ROW()-2))=Rebalance!$D$57,INDIRECT(\"a\" & (VLOOKUP(Rebalance!$D$57,$F$2:$G$48,2,FALSE)+ROW()-2)),\"\")","v":{"$error":"#N/A"}},{"$f":"IF(INDIRECT(\"c\" & (VLOOKUP(Rebalance!$D$58,$F$2:$G$48,2,FALSE)+ROW()-2))=Rebalance!$D$58,INDIRECT(\"a\" & (VLOOKUP(Rebalance!$D$58,$F$2:$G$48,2,FALSE)+ROW()-2)),\"\")","v":{"$error":"#N/A"}},{"$f":"IF(INDIRECT(\"c\" & (VLOOKUP(Rebalance!$D$59,$F$2:$G$48,2,FALSE)+ROW()-2))=Rebalance!$D$59,INDIRECT(\"a\" & (VLOOKUP(Rebalance!$D$59,$F$2:$G$48,2,FALSE)+ROW()-2)),\"\")","v":{"$error":"#N/A"}},{"$f":"IF(INDIRECT(\"c\" & (VLOOKUP(Rebalance!$D$60,$F$2:$G$48,2,FALSE)+ROW()-2))=Rebalance!$D$60,INDIRECT(\"a\" & (VLOOKUP(Rebalance!$D$60,$F$2:$G$48,2,FALSE)+ROW()-2)),\"\")","v":{"$error":"#N/A"}},{"$f":"IF(INDIRECT(\"c\" & (VLOOKUP(Rebalance!$D$61,$F$2:$G$48,2,FALSE)+ROW()-2))=Rebalance!$D$61,INDIRECT(\"a\" & (VLOOKUP(Rebalance!$D$61,$F$2:$G$48,2,FALSE)+ROW()-2)),\"\")","v":{"$error":"#N/A"}},{"$f":"IF(INDIRECT(\"c\" & (VLOOKUP(Rebalance!$D$62,$F$2:$G$48,2,FALSE)+ROW()-2))=Rebalance!$D$62,INDIRECT(\"a\" & (VLOOKUP(Rebalance!$D$62,$F$2:$G$48,2,FALSE)+ROW()-2)),\"\")","v":{"$error":"#N/A"}},{"$f":"IF(INDIRECT(\"c\" & (VLOOKUP(Rebalance!$D$63,$F$2:$G$48,2,FALSE)+ROW()-2))=Rebalance!$D$63,INDIRECT(\"a\" & (VLOOKUP(Rebalance!$D$63,$F$2:$G$48,2,FALSE)+ROW()-2)),\"\")","v":{"$error":"#N/A"}},{"$f":"IF(INDIRECT(\"c\" & (VLOOKUP(Rebalance!$D$64,$F$2:$G$48,2,FALSE)+ROW()-2))=Rebalance!$D$64,INDIRECT(\"a\" & (VLOOKUP(Rebalance!$D$64,$F$2:$G$48,2,FALSE)+ROW()-2)),\"\")","v":{"$error":"#N/A"}},{"$f":"IF(INDIRECT(\"c\" & (VLOOKUP(Rebalance!$D$65,$F$2:$G$48,2,FALSE)+ROW()-2))=Rebalance!$D$65,INDIRECT(\"a\" & (VLOOKUP(Rebalance!$D$65,$F$2:$G$48,2,FALSE)+ROW()-2)),\"\")","v":{"$error":"#N/A"}},{"$f":"IF(INDIRECT(\"c\" & (VLOOKUP(Rebalance!$D$66,$F$2:$G$48,2,FALSE)+ROW()-2))=Rebalance!$D$66,INDIRECT(\"a\" & (VLOOKUP(Rebalance!$D$66,$F$2:$G$48,2,FALSE)+ROW()-2)),\"\")","v":{"$error":"#N/A"}}]
["AssetMix Ci Balanced Fund of Funds B","ACBFB","Ci Collective Investments (RF) (PTY) Ltd",{"$f":"ROW()","v":214},null,null,{"$f":"VLOOKUP(F214,$C$2:$D$599,2,FALSE)","v":{"$error":"#N/A"}},{"$f":"IF(INDIRECT(\"c\" & (VLOOKUP(Rebalance!$D$26,$F$2:$G$48,2,FALSE)+ROW()-2))=Rebalance!$D$26,INDIRECT(\"a\" & (VLOOKUP(Rebalance!$D$26,$F$2:$G$48,2,FALSE)+ROW()-2)),\"\")","v":{"$error":"#N/A"}},{"$f":"IF(INDIRECT(\"c\" & (VLOOKUP(Rebalance!$D$27,$F$2:$G$48,2,FALSE)+ROW()-2))=Rebalance!$D$27,INDIRECT(\"a\" & (VLOOKUP(Rebalance!$D$27,$F$2:$G$48,2,FALSE)+ROW()-2)),\"\")","v":{"$error":"#N/A"}},{"$f":"IF(INDIRECT(\"c\" & (VLOOKUP(Rebalance!$D$28,$F$2:$G$48,2,FALSE)+ROW()-2))=Rebalance!$D$28,INDIRECT(\"a\" & (VLOOKUP(Rebalance!$D$28,$F$2:$G$48,2,FALSE)+ROW()-2)),\"\")","v":{"$error":"#N/A"}},{"$f":"IF(INDIRECT(\"c\" & (VLOOKUP(Rebalance!$D$29,$F$2:$G$48,2,FALSE)+ROW()-2))=Rebalance!$D$29,INDIRECT(\"a\" & (VLOOKUP(Rebalance!$D$29,$F$2:$G$48,2,FALSE)+ROW()-2)),\"\")","v":{"$error":"#N/A"}},{"$f":"IF(INDIRECT(\"c\" & (VLOOKUP(Rebalance!$D$30,$F$2:$G$48,2,FALSE)+ROW()-2))=Rebalance!$D$30,INDIRECT(\"a\" & (VLOOKUP(Rebalance!$D$30,$F$2:$G$48,2,FALSE)+ROW()-2)),\"\")","v":{"$error":"#N/A"}},{"$f":"IF(INDIRECT(\"c\" & (VLOOKUP(Rebalance!$D$31,$F$2:$G$48,2,FALSE)+ROW()-2))=Rebalance!$D$31,INDIRECT(\"a\" & (VLOOKUP(Rebalance!$D$31,$F$2:$G$48,2,FALSE)+ROW()-2)),\"\")","v":{"$error":"#N/A"}},{"$f":"IF(INDIRECT(\"c\" & (VLOOKUP(Rebalance!$D$32,$F$2:$G$48,2,FALSE)+ROW()-2))=Rebalance!$D$32,INDIRECT(\"a\" & (VLOOKUP(Rebalance!$D$32,$F$2:$G$48,2,FALSE)+ROW()-2)),\"\")","v":{"$error":"#N/A"}},{"$f":"IF(INDIRECT(\"c\" & (VLOOKUP(Rebalance!$D$33,$F$2:$G$48,2,FALSE)+ROW()-2))=Rebalance!$D$33,INDIRECT(\"a\" & (VLOOKUP(Rebalance!$D$33,$F$2:$G$48,2,FALSE)+ROW()-2)),\"\")","v":{"$error":"#N/A"}},{"$f":"IF(INDIRECT(\"c\" & (VLOOKUP(Rebalance!$D$34,$F$2:$G$48,2,FALSE)+ROW()-2))=Rebalance!$D$34,INDIRECT(\"a\" & (VLOOKUP(Rebalance!$D$34,$F$2:$G$48,2,FALSE)+ROW()-2)),\"\")","v":{"$error":"#N/A"}},{"$f":"IF(INDIRECT(\"c\" & (VLOOKUP(Rebalance!$D$35,$F$2:$G$48,2,FALSE)+ROW()-2))=Rebalance!$D$35,INDIRECT(\"a\" & (VLOOKUP(Rebalance!$D$35,$F$2:$G$48,2,FALSE)+ROW()-2)),\"\")","v":{"$error":"#N/A"}},{"$f":"IF(INDIRECT(\"c\" & (VLOOKUP(Rebalance!$D$36,$F$2:$G$48,2,FALSE)+ROW()-2))=Rebalance!$D$36,INDIRECT(\"a\" & (VLOOKUP(Rebalance!$D$36,$F$2:$G$48,2,FALSE)+ROW()-2)),\"\")","v":{"$error":"#N/A"}},{"$f":"IF(INDIRECT(\"c\" & (VLOOKUP(Rebalance!$D$37,$F$2:$G$48,2,FALSE)+ROW()-2))=Rebalance!$D$37,INDIRECT(\"a\" & (VLOOKUP(Rebalance!$D$37,$F$2:$G$48,2,FALSE)+ROW()-2)),\"\")","v":{"$error":"#N/A"}},{"$f":"IF(INDIRECT(\"c\" & (VLOOKUP(Rebalance!$D$38,$F$2:$G$48,2,FALSE)+ROW()-2))=Rebalance!$D$38,INDIRECT(\"a\" & (VLOOKUP(Rebalance!$D$38,$F$2:$G$48,2,FALSE)+ROW()-2)),\"\")","v":{"$error":"#N/A"}},{"$f":"IF(INDIRECT(\"c\" & (VLOOKUP(Rebalance!$D$39,$F$2:$G$48,2,FALSE)+ROW()-2))=Rebalance!$D$39,INDIRECT(\"a\" & (VLOOKUP(Rebalance!$D$39,$F$2:$G$48,2,FALSE)+ROW()-2)),\"\")","v":{"$error":"#N/A"}},{"$f":"IF(INDIRECT(\"c\" & (VLOOKUP(Rebalance!$D$40,$F$2:$G$48,2,FALSE)+ROW()-2))=Rebalance!$D$40,INDIRECT(\"a\" & (VLOOKUP(Rebalance!$D$40,$F$2:$G$48,2,FALSE)+ROW()-2)),\"\")","v":{"$error":"#N/A"}},{"$f":"IF(INDIRECT(\"c\" & (VLOOKUP(Rebalance!$D$52,$F$2:$G$48,2,FALSE)+ROW()-2))=Rebalance!$D$52,INDIRECT(\"a\" & (VLOOKUP(Rebalance!$D$52,$F$2:$G$48,2,FALSE)+ROW()-2)),\"\")","v":{"$error":"#N/A"}},{"$f":"IF(INDIRECT(\"c\" & (VLOOKUP(Rebalance!$D$53,$F$2:$G$48,2,FALSE)+ROW()-2))=Rebalance!$D$53,INDIRECT(\"a\" & (VLOOKUP(Rebalance!$D$53,$F$2:$G$48,2,FALSE)+ROW()-2)),\"\")","v":{"$error":"#N/A"}},{"$f":"IF(INDIRECT(\"c\" & (VLOOKUP(Rebalance!$D$54,$F$2:$G$48,2,FALSE)+ROW()-2))=Rebalance!$D$54,INDIRECT(\"a\" & (VLOOKUP(Rebalance!$D$54,$F$2:$G$48,2,FALSE)+ROW()-2)),\"\")","v":{"$error":"#N/A"}},{"$f":"IF(INDIRECT(\"c\" & (VLOOKUP(Rebalance!$D$55,$F$2:$G$48,2,FALSE)+ROW()-2))=Rebalance!$D$55,INDIRECT(\"a\" & (VLOOKUP(Rebalance!$D$55,$F$2:$G$48,2,FALSE)+ROW()-2)),\"\")","v":{"$error":"#N/A"}},{"$f":"IF(INDIRECT(\"c\" & (VLOOKUP(Rebalance!$D$56,$F$2:$G$48,2,FALSE)+ROW()-2))=Rebalance!$D$56,INDIRECT(\"a\" & (VLOOKUP(Rebalance!$D$56,$F$2:$G$48,2,FALSE)+ROW()-2)),\"\")","v":{"$error":"#N/A"}},{"$f":"IF(INDIRECT(\"c\" & (VLOOKUP(Rebalance!$D$57,$F$2:$G$48,2,FALSE)+ROW()-2))=Rebalance!$D$57,INDIRECT(\"a\" & (VLOOKUP(Rebalance!$D$57,$F$2:$G$48,2,FALSE)+ROW()-2)),\"\")","v":{"$error":"#N/A"}},{"$f":"IF(INDIRECT(\"c\" & (VLOOKUP(Rebalance!$D$58,$F$2:$G$48,2,FALSE)+ROW()-2))=Rebalance!$D$58,INDIRECT(\"a\" & (VLOOKUP(Rebalance!$D$58,$F$2:$G$48,2,FALSE)+ROW()-2)),\"\")","v":{"$error":"#N/A"}},{"$f":"IF(INDIRECT(\"c\" & (VLOOKUP(Rebalance!$D$59,$F$2:$G$48,2,FALSE)+ROW()-2))=Rebalance!$D$59,INDIRECT(\"a\" & (VLOOKUP(Rebalance!$D$59,$F$2:$G$48,2,FALSE)+ROW()-2)),\"\")","v":{"$error":"#N/A"}},{"$f":"IF(INDIRECT(\"c\" & (VLOOKUP(Rebalance!$D$60,$F$2:$G$48,2,FALSE)+ROW()-2))=Rebalance!$D$60,INDIRECT(\"a\" & (VLOOKUP(Rebalance!$D$60,$F$2:$G$48,2,FALSE)+ROW()-2)),\"\")","v":{"$error":"#N/A"}},{"$f":"IF(INDIRECT(\"c\" & (VLOOKUP(Rebalance!$D$61,$F$2:$G$48,2,FALSE)+ROW()-2))=Rebalance!$D$61,INDIRECT(\"a\" & (VLOOKUP(Rebalance!$D$61,$F$2:$G$48,2,FALSE)+ROW()-2)),\"\")","v":{"$error":"#N/A"}},{"$f":"IF(INDIRECT(\"c\" & (VLOOKUP(Rebalance!$D$62,$F$2:$G$48,2,FALSE)+ROW()-2))=Rebalance!$D$62,INDIRECT(\"a\" & (VLOOKUP(Rebalance!$D$62,$F$2:$G$48,2,FALSE)+ROW()-2)),\"\")","v":{"$error":"#N/A"}},{"$f":"IF(INDIRECT(\"c\" & (VLOOKUP(Rebalance!$D$63,$F$2:$G$48,2,FALSE)+ROW()-2))=Rebalance!$D$63,INDIRECT(\"a\" & (VLOOKUP(Rebalance!$D$63,$F$2:$G$48,2,FALSE)+ROW()-2)),\"\")","v":{"$error":"#N/A"}},{"$f":"IF(INDIRECT(\"c\" & (VLOOKUP(Rebalance!$D$64,$F$2:$G$48,2,FALSE)+ROW()-2))=Rebalance!$D$64,INDIRECT(\"a\" & (VLOOKUP(Rebalance!$D$64,$F$2:$G$48,2,FALSE)+ROW()-2)),\"\")","v":{"$error":"#N/A"}},{"$f":"IF(INDIRECT(\"c\" & (VLOOKUP(Rebalance!$D$65,$F$2:$G$48,2,FALSE)+ROW()-2))=Rebalance!$D$65,INDIRECT(\"a\" & (VLOOKUP(Rebalance!$D$65,$F$2:$G$48,2,FALSE)+ROW()-2)),\"\")","v":{"$error":"#N/A"}},{"$f":"IF(INDIRECT(\"c\" & (VLOOKUP(Rebalance!$D$66,$F$2:$G$48,2,FALSE)+ROW()-2))=Rebalance!$D$66,INDIRECT(\"a\" & (VLOOKUP(Rebalance!$D$66,$F$2:$G$48,2,FALSE)+ROW()-2)),\"\")","v":{"$error":"#N/A"}}]
["AssetMix Ci Conservative Fund of Funds B","ACCB","Ci Collective Investments (RF) (PTY) Ltd",{"$f":"ROW()","v":215},null,null,{"$f":"VLOOKUP(F215,$C$2:$D$599,2,FALSE)","v":{"$error":"#N/A"}},{"$f":"IF(INDIRECT(\"c\" & (VLOOKUP(Rebalance!$D$26,$F$2:$G$48,2,FALSE)+ROW()-2))=Rebalance!$D$26,INDIRECT(\"a\" & (VLOOKUP(Rebalance!$D$26,$F$2:$G$48,2,FALSE)+ROW()-2)),\"\")","v":{"$error":"#N/A"}},{"$f":"IF(INDIRECT(\"c\" & (VLOOKUP(Rebalance!$D$27,$F$2:$G$48,2,FALSE)+ROW()-2))=Rebalance!$D$27,INDIRECT(\"a\" & (VLOOKUP(Rebalance!$D$27,$F$2:$G$48,2,FALSE)+ROW()-2)),\"\")","v":{"$error":"#N/A"}},{"$f":"IF(INDIRECT(\"c\" & (VLOOKUP(Rebalance!$D$28,$F$2:$G$48,2,FALSE)+ROW()-2))=Rebalance!$D$28,INDIRECT(\"a\" & (VLOOKUP(Rebalance!$D$28,$F$2:$G$48,2,FALSE)+ROW()-2)),\"\")","v":{"$error":"#N/A"}},{"$f":"IF(INDIRECT(\"c\" & (VLOOKUP(Rebalance!$D$29,$F$2:$G$48,2,FALSE)+ROW()-2))=Rebalance!$D$29,INDIRECT(\"a\" & (VLOOKUP(Rebalance!$D$29,$F$2:$G$48,2,FALSE)+ROW()-2)),\"\")","v":{"$error":"#N/A"}},{"$f":"IF(INDIRECT(\"c\" & (VLOOKUP(Rebalance!$D$30,$F$2:$G$48,2,FALSE)+ROW()-2))=Rebalance!$D$30,INDIRECT(\"a\" & (VLOOKUP(Rebalance!$D$30,$F$2:$G$48,2,FALSE)+ROW()-2)),\"\")","v":{"$error":"#N/A"}},{"$f":"IF(INDIRECT(\"c\" & (VLOOKUP(Rebalance!$D$31,$F$2:$G$48,2,FALSE)+ROW()-2))=Rebalance!$D$31,INDIRECT(\"a\" & (VLOOKUP(Rebalance!$D$31,$F$2:$G$48,2,FALSE)+ROW()-2)),\"\")","v":{"$error":"#N/A"}},{"$f":"IF(INDIRECT(\"c\" & (VLOOKUP(Rebalance!$D$32,$F$2:$G$48,2,FALSE)+ROW()-2))=Rebalance!$D$32,INDIRECT(\"a\" & (VLOOKUP(Rebalance!$D$32,$F$2:$G$48,2,FALSE)+ROW()-2)),\"\")","v":{"$error":"#N/A"}},{"$f":"IF(INDIRECT(\"c\" & (VLOOKUP(Rebalance!$D$33,$F$2:$G$48,2,FALSE)+ROW()-2))=Rebalance!$D$33,INDIRECT(\"a\" & (VLOOKUP(Rebalance!$D$33,$F$2:$G$48,2,FALSE)+ROW()-2)),\"\")","v":{"$error":"#N/A"}},{"$f":"IF(INDIRECT(\"c\" & (VLOOKUP(Rebalance!$D$34,$F$2:$G$48,2,FALSE)+ROW()-2))=Rebalance!$D$34,INDIRECT(\"a\" & (VLOOKUP(Rebalance!$D$34,$F$2:$G$48,2,FALSE)+ROW()-2)),\"\")","v":{"$error":"#N/A"}},{"$f":"IF(INDIRECT(\"c\" & (VLOOKUP(Rebalance!$D$35,$F$2:$G$48,2,FALSE)+ROW()-2))=Rebalance!$D$35,INDIRECT(\"a\" & (VLOOKUP(Rebalance!$D$35,$F$2:$G$48,2,FALSE)+ROW()-2)),\"\")","v":{"$error":"#N/A"}},{"$f":"IF(INDIRECT(\"c\" & (VLOOKUP(Rebalance!$D$36,$F$2:$G$48,2,FALSE)+ROW()-2))=Rebalance!$D$36,INDIRECT(\"a\" & (VLOOKUP(Rebalance!$D$36,$F$2:$G$48,2,FALSE)+ROW()-2)),\"\")","v":{"$error":"#N/A"}},{"$f":"IF(INDIRECT(\"c\" & (VLOOKUP(Rebalance!$D$37,$F$2:$G$48,2,FALSE)+ROW()-2))=Rebalance!$D$37,INDIRECT(\"a\" & (VLOOKUP(Rebalance!$D$37,$F$2:$G$48,2,FALSE)+ROW()-2)),\"\")","v":{"$error":"#N/A"}},{"$f":"IF(INDIRECT(\"c\" & (VLOOKUP(Rebalance!$D$38,$F$2:$G$48,2,FALSE)+ROW()-2))=Rebalance!$D$38,INDIRECT(\"a\" & (VLOOKUP(Rebalance!$D$38,$F$2:$G$48,2,FALSE)+ROW()-2)),\"\")","v":{"$error":"#N/A"}},{"$f":"IF(INDIRECT(\"c\" & (VLOOKUP(Rebalance!$D$39,$F$2:$G$48,2,FALSE)+ROW()-2))=Rebalance!$D$39,INDIRECT(\"a\" & (VLOOKUP(Rebalance!$D$39,$F$2:$G$48,2,FALSE)+ROW()-2)),\"\")","v":{"$error":"#N/A"}},{"$f":"IF(INDIRECT(\"c\" & (VLOOKUP(Rebalance!$D$40,$F$2:$G$48,2,FALSE)+ROW()-2))=Rebalance!$D$40,INDIRECT(\"a\" & (VLOOKUP(Rebalance!$D$40,$F$2:$G$48,2,FALSE)+ROW()-2)),\"\")","v":{"$error":"#N/A"}},{"$f":"IF(INDIRECT(\"c\" & (VLOOKUP(Rebalance!$D$52,$F$2:$G$48,2,FALSE)+ROW()-2))=Rebalance!$D$52,INDIRECT(\"a\" & (VLOOKUP(Rebalance!$D$52,$F$2:$G$48,2,FALSE)+ROW()-2)),\"\")","v":{"$error":"#N/A"}},{"$f":"IF(INDIRECT(\"c\" & (VLOOKUP(Rebalance!$D$53,$F$2:$G$48,2,FALSE)+ROW()-2))=Rebalance!$D$53,INDIRECT(\"a\" & (VLOOKUP(Rebalance!$D$53,$F$2:$G$48,2,FALSE)+ROW()-2)),\"\")","v":{"$error":"#N/A"}},{"$f":"IF(INDIRECT(\"c\" & (VLOOKUP(Rebalance!$D$54,$F$2:$G$48,2,FALSE)+ROW()-2))=Rebalance!$D$54,INDIRECT(\"a\" & (VLOOKUP(Rebalance!$D$54,$F$2:$G$48,2,FALSE)+ROW()-2)),\"\")","v":{"$error":"#N/A"}},{"$f":"IF(INDIRECT(\"c\" & (VLOOKUP(Rebalance!$D$55,$F$2:$G$48,2,FALSE)+ROW()-2))=Rebalance!$D$55,INDIRECT(\"a\" & (VLOOKUP(Rebalance!$D$55,$F$2:$G$48,2,FALSE)+ROW()-2)),\"\")","v":{"$error":"#N/A"}},{"$f":"IF(INDIRECT(\"c\" & (VLOOKUP(Rebalance!$D$56,$F$2:$G$48,2,FALSE)+ROW()-2))=Rebalance!$D$56,INDIRECT(\"a\" & (VLOOKUP(Rebalance!$D$56,$F$2:$G$48,2,FALSE)+ROW()-2)),\"\")","v":{"$error":"#N/A"}},{"$f":"IF(INDIRECT(\"c\" & (VLOOKUP(Rebalance!$D$57,$F$2:$G$48,2,FALSE)+ROW()-2))=Rebalance!$D$57,INDIRECT(\"a\" & (VLOOKUP(Rebalance!$D$57,$F$2:$G$48,2,FALSE)+ROW()-2)),\"\")","v":{"$error":"#N/A"}},{"$f":"IF(INDIRECT(\"c\" & (VLOOKUP(Rebalance!$D$58,$F$2:$G$48,2,FALSE)+ROW()-2))=Rebalance!$D$58,INDIRECT(\"a\" & (VLOOKUP(Rebalance!$D$58,$F$2:$G$48,2,FALSE)+ROW()-2)),\"\")","v":{"$error":"#N/A"}},{"$f":"IF(INDIRECT(\"c\" & (VLOOKUP(Rebalance!$D$59,$F$2:$G$48,2,FALSE)+ROW()-2))=Rebalance!$D$59,INDIRECT(\"a\" & (VLOOKUP(Rebalance!$D$59,$F$2:$G$48,2,FALSE)+ROW()-2)),\"\")","v":{"$error":"#N/A"}},{"$f":"IF(INDIRECT(\"c\" & (VLOOKUP(Rebalance!$D$60,$F$2:$G$48,2,FALSE)+ROW()-2))=Rebalance!$D$60,INDIRECT(\"a\" & (VLOOKUP(Rebalance!$D$60,$F$2:$G$48,2,FALSE)+ROW()-2)),\"\")","v":{"$error":"#N/A"}},{"$f":"IF(INDIRECT(\"c\" & (VLOOKUP(Rebalance!$D$61,$F$2:$G$48,2,FALSE)+ROW()-2))=Rebalance!$D$61,INDIRECT(\"a\" & (VLOOKUP(Rebalance!$D$61,$F$2:$G$48,2,FALSE)+ROW()-2)),\"\")","v":{"$error":"#N/A"}},{"$f":"IF(INDIRECT(\"c\" & (VLOOKUP(Rebalance!$D$62,$F$2:$G$48,2,FALSE)+ROW()-2))=Rebalance!$D$62,INDIRECT(\"a\" & (VLOOKUP(Rebalance!$D$62,$F$2:$G$48,2,FALSE)+ROW()-2)),\"\")","v":{"$error":"#N/A"}},{"$f":"IF(INDIRECT(\"c\" & (VLOOKUP(Rebalance!$D$63,$F$2:$G$48,2,FALSE)+ROW()-2))=Rebalance!$D$63,INDIRECT(\"a\" & (VLOOKUP(Rebalance!$D$63,$F$2:$G$48,2,FALSE)+ROW()-2)),\"\")","v":{"$error":"#N/A"}},{"$f":"IF(INDIRECT(\"c\" & (VLOOKUP(Rebalance!$D$64,$F$2:$G$48,2,FALSE)+ROW()-2))=Rebalance!$D$64,INDIRECT(\"a\" & (VLOOKUP(Rebalance!$D$64,$F$2:$G$48,2,FALSE)+ROW()-2)),\"\")","v":{"$error":"#N/A"}},{"$f":"IF(INDIRECT(\"c\" & (VLOOKUP(Rebalance!$D$65,$F$2:$G$48,2,FALSE)+ROW()-2))=Rebalance!$D$65,INDIRECT(\"a\" & (VLOOKUP(Rebalance!$D$65,$F$2:$G$48,2,FALSE)+ROW()-2)),\"\")","v":{"$error":"#N/A"}},{"$f":"IF(INDIRECT(\"c\" & (VLOOKUP(Rebalance!$D$66,$F$2:$G$48,2,FALSE)+ROW()-2))=Rebalance!$D$66,INDIRECT(\"a\" & (VLOOKUP(Rebalance!$D$66,$F$2:$G$48,2,FALSE)+ROW()-2)),\"\")","v":{"$error":"#N/A"}}]
["AssetMix Ci Moderate Fund of Funds B","ACMFB","Ci Collective Investments (RF) (PTY) Ltd",{"$f":"ROW()","v":216},null,null,{"$f":"VLOOKUP(F216,$C$2:$D$599,2,FALSE)","v":{"$error":"#N/A"}},{"$f":"IF(INDIRECT(\"c\" & (VLOOKUP(Rebalance!$D$26,$F$2:$G$48,2,FALSE)+ROW()-2))=Rebalance!$D$26,INDIRECT(\"a\" & (VLOOKUP(Rebalance!$D$26,$F$2:$G$48,2,FALSE)+ROW()-2)),\"\")","v":{"$error":"#N/A"}},{"$f":"IF(INDIRECT(\"c\" & (VLOOKUP(Rebalance!$D$27,$F$2:$G$48,2,FALSE)+ROW()-2))=Rebalance!$D$27,INDIRECT(\"a\" & (VLOOKUP(Rebalance!$D$27,$F$2:$G$48,2,FALSE)+ROW()-2)),\"\")","v":{"$error":"#N/A"}},{"$f":"IF(INDIRECT(\"c\" & (VLOOKUP(Rebalance!$D$28,$F$2:$G$48,2,FALSE)+ROW()-2))=Rebalance!$D$28,INDIRECT(\"a\" & (VLOOKUP(Rebalance!$D$28,$F$2:$G$48,2,FALSE)+ROW()-2)),\"\")","v":{"$error":"#N/A"}},{"$f":"IF(INDIRECT(\"c\" & (VLOOKUP(Rebalance!$D$29,$F$2:$G$48,2,FALSE)+ROW()-2))=Rebalance!$D$29,INDIRECT(\"a\" & (VLOOKUP(Rebalance!$D$29,$F$2:$G$48,2,FALSE)+ROW()-2)),\"\")","v":{"$error":"#N/A"}},{"$f":"IF(INDIRECT(\"c\" & (VLOOKUP(Rebalance!$D$30,$F$2:$G$48,2,FALSE)+ROW()-2))=Rebalance!$D$30,INDIRECT(\"a\" & (VLOOKUP(Rebalance!$D$30,$F$2:$G$48,2,FALSE)+ROW()-2)),\"\")","v":{"$error":"#N/A"}},{"$f":"IF(INDIRECT(\"c\" & (VLOOKUP(Rebalance!$D$31,$F$2:$G$48,2,FALSE)+ROW()-2))=Rebalance!$D$31,INDIRECT(\"a\" & (VLOOKUP(Rebalance!$D$31,$F$2:$G$48,2,FALSE)+ROW()-2)),\"\")","v":{"$error":"#N/A"}},{"$f":"IF(INDIRECT(\"c\" & (VLOOKUP(Rebalance!$D$32,$F$2:$G$48,2,FALSE)+ROW()-2))=Rebalance!$D$32,INDIRECT(\"a\" & (VLOOKUP(Rebalance!$D$32,$F$2:$G$48,2,FALSE)+ROW()-2)),\"\")","v":{"$error":"#N/A"}},{"$f":"IF(INDIRECT(\"c\" & (VLOOKUP(Rebalance!$D$33,$F$2:$G$48,2,FALSE)+ROW()-2))=Rebalance!$D$33,INDIRECT(\"a\" & (VLOOKUP(Rebalance!$D$33,$F$2:$G$48,2,FALSE)+ROW()-2)),\"\")","v":{"$error":"#N/A"}},{"$f":"IF(INDIRECT(\"c\" & (VLOOKUP(Rebalance!$D$34,$F$2:$G$48,2,FALSE)+ROW()-2))=Rebalance!$D$34,INDIRECT(\"a\" & (VLOOKUP(Rebalance!$D$34,$F$2:$G$48,2,FALSE)+ROW()-2)),\"\")","v":{"$error":"#N/A"}},{"$f":"IF(INDIRECT(\"c\" & (VLOOKUP(Rebalance!$D$35,$F$2:$G$48,2,FALSE)+ROW()-2))=Rebalance!$D$35,INDIRECT(\"a\" & (VLOOKUP(Rebalance!$D$35,$F$2:$G$48,2,FALSE)+ROW()-2)),\"\")","v":{"$error":"#N/A"}},{"$f":"IF(INDIRECT(\"c\" & (VLOOKUP(Rebalance!$D$36,$F$2:$G$48,2,FALSE)+ROW()-2))=Rebalance!$D$36,INDIRECT(\"a\" & (VLOOKUP(Rebalance!$D$36,$F$2:$G$48,2,FALSE)+ROW()-2)),\"\")","v":{"$error":"#N/A"}},{"$f":"IF(INDIRECT(\"c\" & (VLOOKUP(Rebalance!$D$37,$F$2:$G$48,2,FALSE)+ROW()-2))=Rebalance!$D$37,INDIRECT(\"a\" & (VLOOKUP(Rebalance!$D$37,$F$2:$G$48,2,FALSE)+ROW()-2)),\"\")","v":{"$error":"#N/A"}},{"$f":"IF(INDIRECT(\"c\" & (VLOOKUP(Rebalance!$D$38,$F$2:$G$48,2,FALSE)+ROW()-2))=Rebalance!$D$38,INDIRECT(\"a\" & (VLOOKUP(Rebalance!$D$38,$F$2:$G$48,2,FALSE)+ROW()-2)),\"\")","v":{"$error":"#N/A"}},{"$f":"IF(INDIRECT(\"c\" & (VLOOKUP(Rebalance!$D$39,$F$2:$G$48,2,FALSE)+ROW()-2))=Rebalance!$D$39,INDIRECT(\"a\" & (VLOOKUP(Rebalance!$D$39,$F$2:$G$48,2,FALSE)+ROW()-2)),\"\")","v":{"$error":"#N/A"}},{"$f":"IF(INDIRECT(\"c\" & (VLOOKUP(Rebalance!$D$40,$F$2:$G$48,2,FALSE)+ROW()-2))=Rebalance!$D$40,INDIRECT(\"a\" & (VLOOKUP(Rebalance!$D$40,$F$2:$G$48,2,FALSE)+ROW()-2)),\"\")","v":{"$error":"#N/A"}},{"$f":"IF(INDIRECT(\"c\" & (VLOOKUP(Rebalance!$D$52,$F$2:$G$48,2,FALSE)+ROW()-2))=Rebalance!$D$52,INDIRECT(\"a\" & (VLOOKUP(Rebalance!$D$52,$F$2:$G$48,2,FALSE)+ROW()-2)),\"\")","v":{"$error":"#N/A"}},{"$f":"IF(INDIRECT(\"c\" & (VLOOKUP(Rebalance!$D$53,$F$2:$G$48,2,FALSE)+ROW()-2))=Rebalance!$D$53,INDIRECT(\"a\" & (VLOOKUP(Rebalance!$D$53,$F$2:$G$48,2,FALSE)+ROW()-2)),\"\")","v":{"$error":"#N/A"}},{"$f":"IF(INDIRECT(\"c\" & (VLOOKUP(Rebalance!$D$54,$F$2:$G$48,2,FALSE)+ROW()-2))=Rebalance!$D$54,INDIRECT(\"a\" & (VLOOKUP(Rebalance!$D$54,$F$2:$G$48,2,FALSE)+ROW()-2)),\"\")","v":{"$error":"#N/A"}},{"$f":"IF(INDIRECT(\"c\" & (VLOOKUP(Rebalance!$D$55,$F$2:$G$48,2,FALSE)+ROW()-2))=Rebalance!$D$55,INDIRECT(\"a\" & (VLOOKUP(Rebalance!$D$55,$F$2:$G$48,2,FALSE)+ROW()-2)),\"\")","v":{"$error":"#N/A"}},{"$f":"IF(INDIRECT(\"c\" & (VLOOKUP(Rebalance!$D$56,$F$2:$G$48,2,FALSE)+ROW()-2))=Rebalance!$D$56,INDIRECT(\"a\" & (VLOOKUP(Rebalance!$D$56,$F$2:$G$48,2,FALSE)+ROW()-2)),\"\")","v":{"$error":"#N/A"}},{"$f":"IF(INDIRECT(\"c\" & (VLOOKUP(Rebalance!$D$57,$F$2:$G$48,2,FALSE)+ROW()-2))=Rebalance!$D$57,INDIRECT(\"a\" & (VLOOKUP(Rebalance!$D$57,$F$2:$G$48,2,FALSE)+ROW()-2)),\"\")","v":{"$error":"#N/A"}},{"$f":"IF(INDIRECT(\"c\" & (VLOOKUP(Rebalance!$D$58,$F$2:$G$48,2,FALSE)+ROW()-2))=Rebalance!$D$58,INDIRECT(\"a\" & (VLOOKUP(Rebalance!$D$58,$F$2:$G$48,2,FALSE)+ROW()-2)),\"\")","v":{"$error":"#N/A"}},{"$f":"IF(INDIRECT(\"c\" & (VLOOKUP(Rebalance!$D$59,$F$2:$G$48,2,FALSE)+ROW()-2))=Rebalance!$D$59,INDIRECT(\"a\" & (VLOOKUP(Rebalance!$D$59,$F$2:$G$48,2,FALSE)+ROW()-2)),\"\")","v":{"$error":"#N/A"}},{"$f":"IF(INDIRECT(\"c\" & (VLOOKUP(Rebalance!$D$60,$F$2:$G$48,2,FALSE)+ROW()-2))=Rebalance!$D$60,INDIRECT(\"a\" & (VLOOKUP(Rebalance!$D$60,$F$2:$G$48,2,FALSE)+ROW()-2)),\"\")","v":{"$error":"#N/A"}},{"$f":"IF(INDIRECT(\"c\" & (VLOOKUP(Rebalance!$D$61,$F$2:$G$48,2,FALSE)+ROW()-2))=Rebalance!$D$61,INDIRECT(\"a\" & (VLOOKUP(Rebalance!$D$61,$F$2:$G$48,2,FALSE)+ROW()-2)),\"\")","v":{"$error":"#N/A"}},{"$f":"IF(INDIRECT(\"c\" & (VLOOKUP(Rebalance!$D$62,$F$2:$G$48,2,FALSE)+ROW()-2))=Rebalance!$D$62,INDIRECT(\"a\" & (VLOOKUP(Rebalance!$D$62,$F$2:$G$48,2,FALSE)+ROW()-2)),\"\")","v":{"$error":"#N/A"}},{"$f":"IF(INDIRECT(\"c\" & (VLOOKUP(Rebalance!$D$63,$F$2:$G$48,2,FALSE)+ROW()-2))=Rebalance!$D$63,INDIRECT(\"a\" & (VLOOKUP(Rebalance!$D$63,$F$2:$G$48,2,FALSE)+ROW()-2)),\"\")","v":{"$error":"#N/A"}},{"$f":"IF(INDIRECT(\"c\" & (VLOOKUP(Rebalance!$D$64,$F$2:$G$48,2,FALSE)+ROW()-2))=Rebalance!$D$64,INDIRECT(\"a\" & (VLOOKUP(Rebalance!$D$64,$F$2:$G$48,2,FALSE)+ROW()-2)),\"\")","v":{"$error":"#N/A"}},{"$f":"IF(INDIRECT(\"c\" & (VLOOKUP(Rebalance!$D$65,$F$2:$G$48,2,FALSE)+ROW()-2))=Rebalance!$D$65,INDIRECT(\"a\" & (VLOOKUP(Rebalance!$D$65,$F$2:$G$48,2,FALSE)+ROW()-2)),\"\")","v":{"$error":"#N/A"}},{"$f":"IF(INDIRECT(\"c\" & (VLOOKUP(Rebalance!$D$66,$F$2:$G$48,2,FALSE)+ROW()-2))=Rebalance!$D$66,INDIRECT(\"a\" & (VLOOKUP(Rebalance!$D$66,$F$2:$G$48,2,FALSE)+ROW()-2)),\"\")","v":{"$error":"#N/A"}}]
["Kruger Ci Balanced FoF B1","KSBB1","Ci Collective Investments (RF) (PTY) Ltd",{"$f":"ROW()","v":217},null,null,{"$f":"VLOOKUP(F217,$C$2:$D$599,2,FALSE)","v":{"$error":"#N/A"}},{"$f":"IF(INDIRECT(\"c\" & (VLOOKUP(Rebalance!$D$26,$F$2:$G$48,2,FALSE)+ROW()-2))=Rebalance!$D$26,INDIRECT(\"a\" & (VLOOKUP(Rebalance!$D$26,$F$2:$G$48,2,FALSE)+ROW()-2)),\"\")","v":{"$error":"#N/A"}},{"$f":"IF(INDIRECT(\"c\" & (VLOOKUP(Rebalance!$D$27,$F$2:$G$48,2,FALSE)+ROW()-2))=Rebalance!$D$27,INDIRECT(\"a\" & (VLOOKUP(Rebalance!$D$27,$F$2:$G$48,2,FALSE)+ROW()-2)),\"\")","v":{"$error":"#N/A"}},{"$f":"IF(INDIRECT(\"c\" & (VLOOKUP(Rebalance!$D$28,$F$2:$G$48,2,FALSE)+ROW()-2))=Rebalance!$D$28,INDIRECT(\"a\" & (VLOOKUP(Rebalance!$D$28,$F$2:$G$48,2,FALSE)+ROW()-2)),\"\")","v":{"$error":"#N/A"}},{"$f":"IF(INDIRECT(\"c\" & (VLOOKUP(Rebalance!$D$29,$F$2:$G$48,2,FALSE)+ROW()-2))=Rebalance!$D$29,INDIRECT(\"a\" & (VLOOKUP(Rebalance!$D$29,$F$2:$G$48,2,FALSE)+ROW()-2)),\"\")","v":{"$error":"#N/A"}},{"$f":"IF(INDIRECT(\"c\" & (VLOOKUP(Rebalance!$D$30,$F$2:$G$48,2,FALSE)+ROW()-2))=Rebalance!$D$30,INDIRECT(\"a\" & (VLOOKUP(Rebalance!$D$30,$F$2:$G$48,2,FALSE)+ROW()-2)),\"\")","v":{"$error":"#N/A"}},{"$f":"IF(INDIRECT(\"c\" & (VLOOKUP(Rebalance!$D$31,$F$2:$G$48,2,FALSE)+ROW()-2))=Rebalance!$D$31,INDIRECT(\"a\" & (VLOOKUP(Rebalance!$D$31,$F$2:$G$48,2,FALSE)+ROW()-2)),\"\")","v":{"$error":"#N/A"}},{"$f":"IF(INDIRECT(\"c\" & (VLOOKUP(Rebalance!$D$32,$F$2:$G$48,2,FALSE)+ROW()-2))=Rebalance!$D$32,INDIRECT(\"a\" & (VLOOKUP(Rebalance!$D$32,$F$2:$G$48,2,FALSE)+ROW()-2)),\"\")","v":{"$error":"#N/A"}},{"$f":"IF(INDIRECT(\"c\" & (VLOOKUP(Rebalance!$D$33,$F$2:$G$48,2,FALSE)+ROW()-2))=Rebalance!$D$33,INDIRECT(\"a\" & (VLOOKUP(Rebalance!$D$33,$F$2:$G$48,2,FALSE)+ROW()-2)),\"\")","v":{"$error":"#N/A"}},{"$f":"IF(INDIRECT(\"c\" & (VLOOKUP(Rebalance!$D$34,$F$2:$G$48,2,FALSE)+ROW()-2))=Rebalance!$D$34,INDIRECT(\"a\" & (VLOOKUP(Rebalance!$D$34,$F$2:$G$48,2,FALSE)+ROW()-2)),\"\")","v":{"$error":"#N/A"}},{"$f":"IF(INDIRECT(\"c\" & (VLOOKUP(Rebalance!$D$35,$F$2:$G$48,2,FALSE)+ROW()-2))=Rebalance!$D$35,INDIRECT(\"a\" & (VLOOKUP(Rebalance!$D$35,$F$2:$G$48,2,FALSE)+ROW()-2)),\"\")","v":{"$error":"#N/A"}},{"$f":"IF(INDIRECT(\"c\" & (VLOOKUP(Rebalance!$D$36,$F$2:$G$48,2,FALSE)+ROW()-2))=Rebalance!$D$36,INDIRECT(\"a\" & (VLOOKUP(Rebalance!$D$36,$F$2:$G$48,2,FALSE)+ROW()-2)),\"\")","v":{"$error":"#N/A"}},{"$f":"IF(INDIRECT(\"c\" & (VLOOKUP(Rebalance!$D$37,$F$2:$G$48,2,FALSE)+ROW()-2))=Rebalance!$D$37,INDIRECT(\"a\" & (VLOOKUP(Rebalance!$D$37,$F$2:$G$48,2,FALSE)+ROW()-2)),\"\")","v":{"$error":"#N/A"}},{"$f":"IF(INDIRECT(\"c\" & (VLOOKUP(Rebalance!$D$38,$F$2:$G$48,2,FALSE)+ROW()-2))=Rebalance!$D$38,INDIRECT(\"a\" & (VLOOKUP(Rebalance!$D$38,$F$2:$G$48,2,FALSE)+ROW()-2)),\"\")","v":{"$error":"#N/A"}},{"$f":"IF(INDIRECT(\"c\" & (VLOOKUP(Rebalance!$D$39,$F$2:$G$48,2,FALSE)+ROW()-2))=Rebalance!$D$39,INDIRECT(\"a\" & (VLOOKUP(Rebalance!$D$39,$F$2:$G$48,2,FALSE)+ROW()-2)),\"\")","v":{"$error":"#N/A"}},{"$f":"IF(INDIRECT(\"c\" & (VLOOKUP(Rebalance!$D$40,$F$2:$G$48,2,FALSE)+ROW()-2))=Rebalance!$D$40,INDIRECT(\"a\" & (VLOOKUP(Rebalance!$D$40,$F$2:$G$48,2,FALSE)+ROW()-2)),\"\")","v":{"$error":"#N/A"}},{"$f":"IF(INDIRECT(\"c\" & (VLOOKUP(Rebalance!$D$52,$F$2:$G$48,2,FALSE)+ROW()-2))=Rebalance!$D$52,INDIRECT(\"a\" & (VLOOKUP(Rebalance!$D$52,$F$2:$G$48,2,FALSE)+ROW()-2)),\"\")","v":{"$error":"#N/A"}},{"$f":"IF(INDIRECT(\"c\" & (VLOOKUP(Rebalance!$D$53,$F$2:$G$48,2,FALSE)+ROW()-2))=Rebalance!$D$53,INDIRECT(\"a\" & (VLOOKUP(Rebalance!$D$53,$F$2:$G$48,2,FALSE)+ROW()-2)),\"\")","v":{"$error":"#N/A"}},{"$f":"IF(INDIRECT(\"c\" & (VLOOKUP(Rebalance!$D$54,$F$2:$G$48,2,FALSE)+ROW()-2))=Rebalance!$D$54,INDIRECT(\"a\" & (VLOOKUP(Rebalance!$D$54,$F$2:$G$48,2,FALSE)+ROW()-2)),\"\")","v":{"$error":"#N/A"}},{"$f":"IF(INDIRECT(\"c\" & (VLOOKUP(Rebalance!$D$55,$F$2:$G$48,2,FALSE)+ROW()-2))=Rebalance!$D$55,INDIRECT(\"a\" & (VLOOKUP(Rebalance!$D$55,$F$2:$G$48,2,FALSE)+ROW()-2)),\"\")","v":{"$error":"#N/A"}},{"$f":"IF(INDIRECT(\"c\" & (VLOOKUP(Rebalance!$D$56,$F$2:$G$48,2,FALSE)+ROW()-2))=Rebalance!$D$56,INDIRECT(\"a\" & (VLOOKUP(Rebalance!$D$56,$F$2:$G$48,2,FALSE)+ROW()-2)),\"\")","v":{"$error":"#N/A"}},{"$f":"IF(INDIRECT(\"c\" & (VLOOKUP(Rebalance!$D$57,$F$2:$G$48,2,FALSE)+ROW()-2))=Rebalance!$D$57,INDIRECT(\"a\" & (VLOOKUP(Rebalance!$D$57,$F$2:$G$48,2,FALSE)+ROW()-2)),\"\")","v":{"$error":"#N/A"}},{"$f":"IF(INDIRECT(\"c\" & (VLOOKUP(Rebalance!$D$58,$F$2:$G$48,2,FALSE)+ROW()-2))=Rebalance!$D$58,INDIRECT(\"a\" & (VLOOKUP(Rebalance!$D$58,$F$2:$G$48,2,FALSE)+ROW()-2)),\"\")","v":{"$error":"#N/A"}},{"$f":"IF(INDIRECT(\"c\" & (VLOOKUP(Rebalance!$D$59,$F$2:$G$48,2,FALSE)+ROW()-2))=Rebalance!$D$59,INDIRECT(\"a\" & (VLOOKUP(Rebalance!$D$59,$F$2:$G$48,2,FALSE)+ROW()-2)),\"\")","v":{"$error":"#N/A"}},{"$f":"IF(INDIRECT(\"c\" & (VLOOKUP(Rebalance!$D$60,$F$2:$G$48,2,FALSE)+ROW()-2))=Rebalance!$D$60,INDIRECT(\"a\" & (VLOOKUP(Rebalance!$D$60,$F$2:$G$48,2,FALSE)+ROW()-2)),\"\")","v":{"$error":"#N/A"}},{"$f":"IF(INDIRECT(\"c\" & (VLOOKUP(Rebalance!$D$61,$F$2:$G$48,2,FALSE)+ROW()-2))=Rebalance!$D$61,INDIRECT(\"a\" & (VLOOKUP(Rebalance!$D$61,$F$2:$G$48,2,FALSE)+ROW()-2)),\"\")","v":{"$error":"#N/A"}},{"$f":"IF(INDIRECT(\"c\" & (VLOOKUP(Rebalance!$D$62,$F$2:$G$48,2,FALSE)+ROW()-2))=Rebalance!$D$62,INDIRECT(\"a\" & (VLOOKUP(Rebalance!$D$62,$F$2:$G$48,2,FALSE)+ROW()-2)),\"\")","v":{"$error":"#N/A"}},{"$f":"IF(INDIRECT(\"c\" & (VLOOKUP(Rebalance!$D$63,$F$2:$G$48,2,FALSE)+ROW()-2))=Rebalance!$D$63,INDIRECT(\"a\" & (VLOOKUP(Rebalance!$D$63,$F$2:$G$48,2,FALSE)+ROW()-2)),\"\")","v":{"$error":"#N/A"}},{"$f":"IF(INDIRECT(\"c\" & (VLOOKUP(Rebalance!$D$64,$F$2:$G$48,2,FALSE)+ROW()-2))=Rebalance!$D$64,INDIRECT(\"a\" & (VLOOKUP(Rebalance!$D$64,$F$2:$G$48,2,FALSE)+ROW()-2)),\"\")","v":{"$error":"#N/A"}},{"$f":"IF(INDIRECT(\"c\" & (VLOOKUP(Rebalance!$D$65,$F$2:$G$48,2,FALSE)+ROW()-2))=Rebalance!$D$65,INDIRECT(\"a\" & (VLOOKUP(Rebalance!$D$65,$F$2:$G$48,2,FALSE)+ROW()-2)),\"\")","v":{"$error":"#N/A"}},{"$f":"IF(INDIRECT(\"c\" & (VLOOKUP(Rebalance!$D$66,$F$2:$G$48,2,FALSE)+ROW()-2))=Rebalance!$D$66,INDIRECT(\"a\" & (VLOOKUP(Rebalance!$D$66,$F$2:$G$48,2,FALSE)+ROW()-2)),\"\")","v":{"$error":"#N/A"}}]
["Kruger Ci Equity Fund B1","KSFB1","Ci Collective Investments (RF) (PTY) Ltd",{"$f":"ROW()","v":218},null,null,{"$f":"VLOOKUP(F218,$C$2:$D$599,2,FALSE)","v":{"$error":"#N/A"}},{"$f":"IF(INDIRECT(\"c\" & (VLOOKUP(Rebalance!$D$26,$F$2:$G$48,2,FALSE)+ROW()-2))=Rebalance!$D$26,INDIRECT(\"a\" & (VLOOKUP(Rebalance!$D$26,$F$2:$G$48,2,FALSE)+ROW()-2)),\"\")","v":{"$error":"#N/A"}},{"$f":"IF(INDIRECT(\"c\" & (VLOOKUP(Rebalance!$D$27,$F$2:$G$48,2,FALSE)+ROW()-2))=Rebalance!$D$27,INDIRECT(\"a\" & (VLOOKUP(Rebalance!$D$27,$F$2:$G$48,2,FALSE)+ROW()-2)),\"\")","v":{"$error":"#N/A"}},{"$f":"IF(INDIRECT(\"c\" & (VLOOKUP(Rebalance!$D$28,$F$2:$G$48,2,FALSE)+ROW()-2))=Rebalance!$D$28,INDIRECT(\"a\" & (VLOOKUP(Rebalance!$D$28,$F$2:$G$48,2,FALSE)+ROW()-2)),\"\")","v":{"$error":"#N/A"}},{"$f":"IF(INDIRECT(\"c\" & (VLOOKUP(Rebalance!$D$29,$F$2:$G$48,2,FALSE)+ROW()-2))=Rebalance!$D$29,INDIRECT(\"a\" & (VLOOKUP(Rebalance!$D$29,$F$2:$G$48,2,FALSE)+ROW()-2)),\"\")","v":{"$error":"#N/A"}},{"$f":"IF(INDIRECT(\"c\" & (VLOOKUP(Rebalance!$D$30,$F$2:$G$48,2,FALSE)+ROW()-2))=Rebalance!$D$30,INDIRECT(\"a\" & (VLOOKUP(Rebalance!$D$30,$F$2:$G$48,2,FALSE)+ROW()-2)),\"\")","v":{"$error":"#N/A"}},{"$f":"IF(INDIRECT(\"c\" & (VLOOKUP(Rebalance!$D$31,$F$2:$G$48,2,FALSE)+ROW()-2))=Rebalance!$D$31,INDIRECT(\"a\" & (VLOOKUP(Rebalance!$D$31,$F$2:$G$48,2,FALSE)+ROW()-2)),\"\")","v":{"$error":"#N/A"}},{"$f":"IF(INDIRECT(\"c\" & (VLOOKUP(Rebalance!$D$32,$F$2:$G$48,2,FALSE)+ROW()-2))=Rebalance!$D$32,INDIRECT(\"a\" & (VLOOKUP(Rebalance!$D$32,$F$2:$G$48,2,FALSE)+ROW()-2)),\"\")","v":{"$error":"#N/A"}},{"$f":"IF(INDIRECT(\"c\" & (VLOOKUP(Rebalance!$D$33,$F$2:$G$48,2,FALSE)+ROW()-2))=Rebalance!$D$33,INDIRECT(\"a\" & (VLOOKUP(Rebalance!$D$33,$F$2:$G$48,2,FALSE)+ROW()-2)),\"\")","v":{"$error":"#N/A"}},{"$f":"IF(INDIRECT(\"c\" & (VLOOKUP(Rebalance!$D$34,$F$2:$G$48,2,FALSE)+ROW()-2))=Rebalance!$D$34,INDIRECT(\"a\" & (VLOOKUP(Rebalance!$D$34,$F$2:$G$48,2,FALSE)+ROW()-2)),\"\")","v":{"$error":"#N/A"}},{"$f":"IF(INDIRECT(\"c\" & (VLOOKUP(Rebalance!$D$35,$F$2:$G$48,2,FALSE)+ROW()-2))=Rebalance!$D$35,INDIRECT(\"a\" & (VLOOKUP(Rebalance!$D$35,$F$2:$G$48,2,FALSE)+ROW()-2)),\"\")","v":{"$error":"#N/A"}},{"$f":"IF(INDIRECT(\"c\" & (VLOOKUP(Rebalance!$D$36,$F$2:$G$48,2,FALSE)+ROW()-2))=Rebalance!$D$36,INDIRECT(\"a\" & (VLOOKUP(Rebalance!$D$36,$F$2:$G$48,2,FALSE)+ROW()-2)),\"\")","v":{"$error":"#N/A"}},{"$f":"IF(INDIRECT(\"c\" & (VLOOKUP(Rebalance!$D$37,$F$2:$G$48,2,FALSE)+ROW()-2))=Rebalance!$D$37,INDIRECT(\"a\" & (VLOOKUP(Rebalance!$D$37,$F$2:$G$48,2,FALSE)+ROW()-2)),\"\")","v":{"$error":"#N/A"}},{"$f":"IF(INDIRECT(\"c\" & (VLOOKUP(Rebalance!$D$38,$F$2:$G$48,2,FALSE)+ROW()-2))=Rebalance!$D$38,INDIRECT(\"a\" & (VLOOKUP(Rebalance!$D$38,$F$2:$G$48,2,FALSE)+ROW()-2)),\"\")","v":{"$error":"#N/A"}},{"$f":"IF(INDIRECT(\"c\" & (VLOOKUP(Rebalance!$D$39,$F$2:$G$48,2,FALSE)+ROW()-2))=Rebalance!$D$39,INDIRECT(\"a\" & (VLOOKUP(Rebalance!$D$39,$F$2:$G$48,2,FALSE)+ROW()-2)),\"\")","v":{"$error":"#N/A"}},{"$f":"IF(INDIRECT(\"c\" & (VLOOKUP(Rebalance!$D$40,$F$2:$G$48,2,FALSE)+ROW()-2))=Rebalance!$D$40,INDIRECT(\"a\" & (VLOOKUP(Rebalance!$D$40,$F$2:$G$48,2,FALSE)+ROW()-2)),\"\")","v":{"$error":"#N/A"}},{"$f":"IF(INDIRECT(\"c\" & (VLOOKUP(Rebalance!$D$52,$F$2:$G$48,2,FALSE)+ROW()-2))=Rebalance!$D$52,INDIRECT(\"a\" & (VLOOKUP(Rebalance!$D$52,$F$2:$G$48,2,FALSE)+ROW()-2)),\"\")","v":{"$error":"#N/A"}},{"$f":"IF(INDIRECT(\"c\" & (VLOOKUP(Rebalance!$D$53,$F$2:$G$48,2,FALSE)+ROW()-2))=Rebalance!$D$53,INDIRECT(\"a\" & (VLOOKUP(Rebalance!$D$53,$F$2:$G$48,2,FALSE)+ROW()-2)),\"\")","v":{"$error":"#N/A"}},{"$f":"IF(INDIRECT(\"c\" & (VLOOKUP(Rebalance!$D$54,$F$2:$G$48,2,FALSE)+ROW()-2))=Rebalance!$D$54,INDIRECT(\"a\" & (VLOOKUP(Rebalance!$D$54,$F$2:$G$48,2,FALSE)+ROW()-2)),\"\")","v":{"$error":"#N/A"}},{"$f":"IF(INDIRECT(\"c\" & (VLOOKUP(Rebalance!$D$55,$F$2:$G$48,2,FALSE)+ROW()-2))=Rebalance!$D$55,INDIRECT(\"a\" & (VLOOKUP(Rebalance!$D$55,$F$2:$G$48,2,FALSE)+ROW()-2)),\"\")","v":{"$error":"#N/A"}},{"$f":"IF(INDIRECT(\"c\" & (VLOOKUP(Rebalance!$D$56,$F$2:$G$48,2,FALSE)+ROW()-2))=Rebalance!$D$56,INDIRECT(\"a\" & (VLOOKUP(Rebalance!$D$56,$F$2:$G$48,2,FALSE)+ROW()-2)),\"\")","v":{"$error":"#N/A"}},{"$f":"IF(INDIRECT(\"c\" & (VLOOKUP(Rebalance!$D$57,$F$2:$G$48,2,FALSE)+ROW()-2))=Rebalance!$D$57,INDIRECT(\"a\" & (VLOOKUP(Rebalance!$D$57,$F$2:$G$48,2,FALSE)+ROW()-2)),\"\")","v":{"$error":"#N/A"}},{"$f":"IF(INDIRECT(\"c\" & (VLOOKUP(Rebalance!$D$58,$F$2:$G$48,2,FALSE)+ROW()-2))=Rebalance!$D$58,INDIRECT(\"a\" & (VLOOKUP(Rebalance!$D$58,$F$2:$G$48,2,FALSE)+ROW()-2)),\"\")","v":{"$error":"#N/A"}},{"$f":"IF(INDIRECT(\"c\" & (VLOOKUP(Rebalance!$D$59,$F$2:$G$48,2,FALSE)+ROW()-2))=Rebalance!$D$59,INDIRECT(\"a\" & (VLOOKUP(Rebalance!$D$59,$F$2:$G$48,2,FALSE)+ROW()-2)),\"\")","v":{"$error":"#N/A"}},{"$f":"IF(INDIRECT(\"c\" & (VLOOKUP(Rebalance!$D$60,$F$2:$G$48,2,FALSE)+ROW()-2))=Rebalance!$D$60,INDIRECT(\"a\" & (VLOOKUP(Rebalance!$D$60,$F$2:$G$48,2,FALSE)+ROW()-2)),\"\")","v":{"$error":"#N/A"}},{"$f":"IF(INDIRECT(\"c\" & (VLOOKUP(Rebalance!$D$61,$F$2:$G$48,2,FALSE)+ROW()-2))=Rebalance!$D$61,INDIRECT(\"a\" & (VLOOKUP(Rebalance!$D$61,$F$2:$G$48,2,FALSE)+ROW()-2)),\"\")","v":{"$error":"#N/A"}},{"$f":"IF(INDIRECT(\"c\" & (VLOOKUP(Rebalance!$D$62,$F$2:$G$48,2,FALSE)+ROW()-2))=Rebalance!$D$62,INDIRECT(\"a\" & (VLOOKUP(Rebalance!$D$62,$F$2:$G$48,2,FALSE)+ROW()-2)),\"\")","v":{"$error":"#N/A"}},{"$f":"IF(INDIRECT(\"c\" & (VLOOKUP(Rebalance!$D$63,$F$2:$G$48,2,FALSE)+ROW()-2))=Rebalance!$D$63,INDIRECT(\"a\" & (VLOOKUP(Rebalance!$D$63,$F$2:$G$48,2,FALSE)+ROW()-2)),\"\")","v":{"$error":"#N/A"}},{"$f":"IF(INDIRECT(\"c\" & (VLOOKUP(Rebalance!$D$64,$F$2:$G$48,2,FALSE)+ROW()-2))=Rebalance!$D$64,INDIRECT(\"a\" & (VLOOKUP(Rebalance!$D$64,$F$2:$G$48,2,FALSE)+ROW()-2)),\"\")","v":{"$error":"#N/A"}},{"$f":"IF(INDIRECT(\"c\" & (VLOOKUP(Rebalance!$D$65,$F$2:$G$48,2,FALSE)+ROW()-2))=Rebalance!$D$65,INDIRECT(\"a\" & (VLOOKUP(Rebalance!$D$65,$F$2:$G$48,2,FALSE)+ROW()-2)),\"\")","v":{"$error":"#N/A"}},{"$f":"IF(INDIRECT(\"c\" & (VLOOKUP(Rebalance!$D$66,$F$2:$G$48,2,FALSE)+ROW()-2))=Rebalance!$D$66,INDIRECT(\"a\" & (VLOOKUP(Rebalance!$D$66,$F$2:$G$48,2,FALSE)+ROW()-2)),\"\")","v":{"$error":"#N/A"}}]
["Kruger Ci Internantional Flexible Feeder B1","KSGB1","Ci Collective Investments (RF) (PTY) Ltd",{"$f":"ROW()","v":219},null,null,{"$f":"VLOOKUP(F219,$C$2:$D$599,2,FALSE)","v":{"$error":"#N/A"}},{"$f":"IF(INDIRECT(\"c\" & (VLOOKUP(Rebalance!$D$26,$F$2:$G$48,2,FALSE)+ROW()-2))=Rebalance!$D$26,INDIRECT(\"a\" & (VLOOKUP(Rebalance!$D$26,$F$2:$G$48,2,FALSE)+ROW()-2)),\"\")","v":{"$error":"#N/A"}},{"$f":"IF(INDIRECT(\"c\" & (VLOOKUP(Rebalance!$D$27,$F$2:$G$48,2,FALSE)+ROW()-2))=Rebalance!$D$27,INDIRECT(\"a\" & (VLOOKUP(Rebalance!$D$27,$F$2:$G$48,2,FALSE)+ROW()-2)),\"\")","v":{"$error":"#N/A"}},{"$f":"IF(INDIRECT(\"c\" & (VLOOKUP(Rebalance!$D$28,$F$2:$G$48,2,FALSE)+ROW()-2))=Rebalance!$D$28,INDIRECT(\"a\" & (VLOOKUP(Rebalance!$D$28,$F$2:$G$48,2,FALSE)+ROW()-2)),\"\")","v":{"$error":"#N/A"}},{"$f":"IF(INDIRECT(\"c\" & (VLOOKUP(Rebalance!$D$29,$F$2:$G$48,2,FALSE)+ROW()-2))=Rebalance!$D$29,INDIRECT(\"a\" & (VLOOKUP(Rebalance!$D$29,$F$2:$G$48,2,FALSE)+ROW()-2)),\"\")","v":{"$error":"#N/A"}},{"$f":"IF(INDIRECT(\"c\" & (VLOOKUP(Rebalance!$D$30,$F$2:$G$48,2,FALSE)+ROW()-2))=Rebalance!$D$30,INDIRECT(\"a\" & (VLOOKUP(Rebalance!$D$30,$F$2:$G$48,2,FALSE)+ROW()-2)),\"\")","v":{"$error":"#N/A"}},{"$f":"IF(INDIRECT(\"c\" & (VLOOKUP(Rebalance!$D$31,$F$2:$G$48,2,FALSE)+ROW()-2))=Rebalance!$D$31,INDIRECT(\"a\" & (VLOOKUP(Rebalance!$D$31,$F$2:$G$48,2,FALSE)+ROW()-2)),\"\")","v":{"$error":"#N/A"}},{"$f":"IF(INDIRECT(\"c\" & (VLOOKUP(Rebalance!$D$32,$F$2:$G$48,2,FALSE)+ROW()-2))=Rebalance!$D$32,INDIRECT(\"a\" & (VLOOKUP(Rebalance!$D$32,$F$2:$G$48,2,FALSE)+ROW()-2)),\"\")","v":{"$error":"#N/A"}},{"$f":"IF(INDIRECT(\"c\" & (VLOOKUP(Rebalance!$D$33,$F$2:$G$48,2,FALSE)+ROW()-2))=Rebalance!$D$33,INDIRECT(\"a\" & (VLOOKUP(Rebalance!$D$33,$F$2:$G$48,2,FALSE)+ROW()-2)),\"\")","v":{"$error":"#N/A"}},{"$f":"IF(INDIRECT(\"c\" & (VLOOKUP(Rebalance!$D$34,$F$2:$G$48,2,FALSE)+ROW()-2))=Rebalance!$D$34,INDIRECT(\"a\" & (VLOOKUP(Rebalance!$D$34,$F$2:$G$48,2,FALSE)+ROW()-2)),\"\")","v":{"$error":"#N/A"}},{"$f":"IF(INDIRECT(\"c\" & (VLOOKUP(Rebalance!$D$35,$F$2:$G$48,2,FALSE)+ROW()-2))=Rebalance!$D$35,INDIRECT(\"a\" & (VLOOKUP(Rebalance!$D$35,$F$2:$G$48,2,FALSE)+ROW()-2)),\"\")","v":{"$error":"#N/A"}},{"$f":"IF(INDIRECT(\"c\" & (VLOOKUP(Rebalance!$D$36,$F$2:$G$48,2,FALSE)+ROW()-2))=Rebalance!$D$36,INDIRECT(\"a\" & (VLOOKUP(Rebalance!$D$36,$F$2:$G$48,2,FALSE)+ROW()-2)),\"\")","v":{"$error":"#N/A"}},{"$f":"IF(INDIRECT(\"c\" & (VLOOKUP(Rebalance!$D$37,$F$2:$G$48,2,FALSE)+ROW()-2))=Rebalance!$D$37,INDIRECT(\"a\" & (VLOOKUP(Rebalance!$D$37,$F$2:$G$48,2,FALSE)+ROW()-2)),\"\")","v":{"$error":"#N/A"}},{"$f":"IF(INDIRECT(\"c\" & (VLOOKUP(Rebalance!$D$38,$F$2:$G$48,2,FALSE)+ROW()-2))=Rebalance!$D$38,INDIRECT(\"a\" & (VLOOKUP(Rebalance!$D$38,$F$2:$G$48,2,FALSE)+ROW()-2)),\"\")","v":{"$error":"#N/A"}},{"$f":"IF(INDIRECT(\"c\" & (VLOOKUP(Rebalance!$D$39,$F$2:$G$48,2,FALSE)+ROW()-2))=Rebalance!$D$39,INDIRECT(\"a\" & (VLOOKUP(Rebalance!$D$39,$F$2:$G$48,2,FALSE)+ROW()-2)),\"\")","v":{"$error":"#N/A"}},{"$f":"IF(INDIRECT(\"c\" & (VLOOKUP(Rebalance!$D$40,$F$2:$G$48,2,FALSE)+ROW()-2))=Rebalance!$D$40,INDIRECT(\"a\" & (VLOOKUP(Rebalance!$D$40,$F$2:$G$48,2,FALSE)+ROW()-2)),\"\")","v":{"$error":"#N/A"}},{"$f":"IF(INDIRECT(\"c\" & (VLOOKUP(Rebalance!$D$52,$F$2:$G$48,2,FALSE)+ROW()-2))=Rebalance!$D$52,INDIRECT(\"a\" & (VLOOKUP(Rebalance!$D$52,$F$2:$G$48,2,FALSE)+ROW()-2)),\"\")","v":{"$error":"#N/A"}},{"$f":"IF(INDIRECT(\"c\" & (VLOOKUP(Rebalance!$D$53,$F$2:$G$48,2,FALSE)+ROW()-2))=Rebalance!$D$53,INDIRECT(\"a\" & (VLOOKUP(Rebalance!$D$53,$F$2:$G$48,2,FALSE)+ROW()-2)),\"\")","v":{"$error":"#N/A"}},{"$f":"IF(INDIRECT(\"c\" & (VLOOKUP(Rebalance!$D$54,$F$2:$G$48,2,FALSE)+ROW()-2))=Rebalance!$D$54,INDIRECT(\"a\" & (VLOOKUP(Rebalance!$D$54,$F$2:$G$48,2,FALSE)+ROW()-2)),\"\")","v":{"$error":"#N/A"}},{"$f":"IF(INDIRECT(\"c\" & (VLOOKUP(Rebalance!$D$55,$F$2:$G$48,2,FALSE)+ROW()-2))=Rebalance!$D$55,INDIRECT(\"a\" & (VLOOKUP(Rebalance!$D$55,$F$2:$G$48,2,FALSE)+ROW()-2)),\"\")","v":{"$error":"#N/A"}},{"$f":"IF(INDIRECT(\"c\" & (VLOOKUP(Rebalance!$D$56,$F$2:$G$48,2,FALSE)+ROW()-2))=Rebalance!$D$56,INDIRECT(\"a\" & (VLOOKUP(Rebalance!$D$56,$F$2:$G$48,2,FALSE)+ROW()-2)),\"\")","v":{"$error":"#N/A"}},{"$f":"IF(INDIRECT(\"c\" & (VLOOKUP(Rebalance!$D$57,$F$2:$G$48,2,FALSE)+ROW()-2))=Rebalance!$D$57,INDIRECT(\"a\" & (VLOOKUP(Rebalance!$D$57,$F$2:$G$48,2,FALSE)+ROW()-2)),\"\")","v":{"$error":"#N/A"}},{"$f":"IF(INDIRECT(\"c\" & (VLOOKUP(Rebalance!$D$58,$F$2:$G$48,2,FALSE)+ROW()-2))=Rebalance!$D$58,INDIRECT(\"a\" & (VLOOKUP(Rebalance!$D$58,$F$2:$G$48,2,FALSE)+ROW()-2)),\"\")","v":{"$error":"#N/A"}},{"$f":"IF(INDIRECT(\"c\" & (VLOOKUP(Rebalance!$D$59,$F$2:$G$48,2,FALSE)+ROW()-2))=Rebalance!$D$59,INDIRECT(\"a\" & (VLOOKUP(Rebalance!$D$59,$F$2:$G$48,2,FALSE)+ROW()-2)),\"\")","v":{"$error":"#N/A"}},{"$f":"IF(INDIRECT(\"c\" & (VLOOKUP(Rebalance!$D$60,$F$2:$G$48,2,FALSE)+ROW()-2))=Rebalance!$D$60,INDIRECT(\"a\" & (VLOOKUP(Rebalance!$D$60,$F$2:$G$48,2,FALSE)+ROW()-2)),\"\")","v":{"$error":"#N/A"}},{"$f":"IF(INDIRECT(\"c\" & (VLOOKUP(Rebalance!$D$61,$F$2:$G$48,2,FALSE)+ROW()-2))=Rebalance!$D$61,INDIRECT(\"a\" & (VLOOKUP(Rebalance!$D$61,$F$2:$G$48,2,FALSE)+ROW()-2)),\"\")","v":{"$error":"#N/A"}},{"$f":"IF(INDIRECT(\"c\" & (VLOOKUP(Rebalance!$D$62,$F$2:$G$48,2,FALSE)+ROW()-2))=Rebalance!$D$62,INDIRECT(\"a\" & (VLOOKUP(Rebalance!$D$62,$F$2:$G$48,2,FALSE)+ROW()-2)),\"\")","v":{"$error":"#N/A"}},{"$f":"IF(INDIRECT(\"c\" & (VLOOKUP(Rebalance!$D$63,$F$2:$G$48,2,FALSE)+ROW()-2))=Rebalance!$D$63,INDIRECT(\"a\" & (VLOOKUP(Rebalance!$D$63,$F$2:$G$48,2,FALSE)+ROW()-2)),\"\")","v":{"$error":"#N/A"}},{"$f":"IF(INDIRECT(\"c\" & (VLOOKUP(Rebalance!$D$64,$F$2:$G$48,2,FALSE)+ROW()-2))=Rebalance!$D$64,INDIRECT(\"a\" & (VLOOKUP(Rebalance!$D$64,$F$2:$G$48,2,FALSE)+ROW()-2)),\"\")","v":{"$error":"#N/A"}},{"$f":"IF(INDIRECT(\"c\" & (VLOOKUP(Rebalance!$D$65,$F$2:$G$48,2,FALSE)+ROW()-2))=Rebalance!$D$65,INDIRECT(\"a\" & (VLOOKUP(Rebalance!$D$65,$F$2:$G$48,2,FALSE)+ROW()-2)),\"\")","v":{"$error":"#N/A"}},{"$f":"IF(INDIRECT(\"c\" & (VLOOKUP(Rebalance!$D$66,$F$2:$G$48,2,FALSE)+ROW()-2))=Rebalance!$D$66,INDIRECT(\"a\" & (VLOOKUP(Rebalance!$D$66,$F$2:$G$48,2,FALSE)+ROW()-2)),\"\")","v":{"$error":"#N/A"}}]
["Kruger Ci Prudential FoF A","KSPFA","Ci Collective Investments (RF) (PTY) Ltd",{"$f":"ROW()","v":220},null,null,{"$f":"VLOOKUP(F220,$C$2:$D$599,2,FALSE)","v":{"$error":"#N/A"}},{"$f":"IF(INDIRECT(\"c\" & (VLOOKUP(Rebalance!$D$26,$F$2:$G$48,2,FALSE)+ROW()-2))=Rebalance!$D$26,INDIRECT(\"a\" & (VLOOKUP(Rebalance!$D$26,$F$2:$G$48,2,FALSE)+ROW()-2)),\"\")","v":{"$error":"#N/A"}},{"$f":"IF(INDIRECT(\"c\" & (VLOOKUP(Rebalance!$D$27,$F$2:$G$48,2,FALSE)+ROW()-2))=Rebalance!$D$27,INDIRECT(\"a\" & (VLOOKUP(Rebalance!$D$27,$F$2:$G$48,2,FALSE)+ROW()-2)),\"\")","v":{"$error":"#N/A"}},{"$f":"IF(INDIRECT(\"c\" & (VLOOKUP(Rebalance!$D$28,$F$2:$G$48,2,FALSE)+ROW()-2))=Rebalance!$D$28,INDIRECT(\"a\" & (VLOOKUP(Rebalance!$D$28,$F$2:$G$48,2,FALSE)+ROW()-2)),\"\")","v":{"$error":"#N/A"}},{"$f":"IF(INDIRECT(\"c\" & (VLOOKUP(Rebalance!$D$29,$F$2:$G$48,2,FALSE)+ROW()-2))=Rebalance!$D$29,INDIRECT(\"a\" & (VLOOKUP(Rebalance!$D$29,$F$2:$G$48,2,FALSE)+ROW()-2)),\"\")","v":{"$error":"#N/A"}},{"$f":"IF(INDIRECT(\"c\" & (VLOOKUP(Rebalance!$D$30,$F$2:$G$48,2,FALSE)+ROW()-2))=Rebalance!$D$30,INDIRECT(\"a\" & (VLOOKUP(Rebalance!$D$30,$F$2:$G$48,2,FALSE)+ROW()-2)),\"\")","v":{"$error":"#N/A"}},{"$f":"IF(INDIRECT(\"c\" & (VLOOKUP(Rebalance!$D$31,$F$2:$G$48,2,FALSE)+ROW()-2))=Rebalance!$D$31,INDIRECT(\"a\" & (VLOOKUP(Rebalance!$D$31,$F$2:$G$48,2,FALSE)+ROW()-2)),\"\")","v":{"$error":"#N/A"}},{"$f":"IF(INDIRECT(\"c\" & (VLOOKUP(Rebalance!$D$32,$F$2:$G$48,2,FALSE)+ROW()-2))=Rebalance!$D$32,INDIRECT(\"a\" & (VLOOKUP(Rebalance!$D$32,$F$2:$G$48,2,FALSE)+ROW()-2)),\"\")","v":{"$error":"#N/A"}},{"$f":"IF(INDIRECT(\"c\" & (VLOOKUP(Rebalance!$D$33,$F$2:$G$48,2,FALSE)+ROW()-2))=Rebalance!$D$33,INDIRECT(\"a\" & (VLOOKUP(Rebalance!$D$33,$F$2:$G$48,2,FALSE)+ROW()-2)),\"\")","v":{"$error":"#N/A"}},{"$f":"IF(INDIRECT(\"c\" & (VLOOKUP(Rebalance!$D$34,$F$2:$G$48,2,FALSE)+ROW()-2))=Rebalance!$D$34,INDIRECT(\"a\" & (VLOOKUP(Rebalance!$D$34,$F$2:$G$48,2,FALSE)+ROW()-2)),\"\")","v":{"$error":"#N/A"}},{"$f":"IF(INDIRECT(\"c\" & (VLOOKUP(Rebalance!$D$35,$F$2:$G$48,2,FALSE)+ROW()-2))=Rebalance!$D$35,INDIRECT(\"a\" & (VLOOKUP(Rebalance!$D$35,$F$2:$G$48,2,FALSE)+ROW()-2)),\"\")","v":{"$error":"#N/A"}},{"$f":"IF(INDIRECT(\"c\" & (VLOOKUP(Rebalance!$D$36,$F$2:$G$48,2,FALSE)+ROW()-2))=Rebalance!$D$36,INDIRECT(\"a\" & (VLOOKUP(Rebalance!$D$36,$F$2:$G$48,2,FALSE)+ROW()-2)),\"\")","v":{"$error":"#N/A"}},{"$f":"IF(INDIRECT(\"c\" & (VLOOKUP(Rebalance!$D$37,$F$2:$G$48,2,FALSE)+ROW()-2))=Rebalance!$D$37,INDIRECT(\"a\" & (VLOOKUP(Rebalance!$D$37,$F$2:$G$48,2,FALSE)+ROW()-2)),\"\")","v":{"$error":"#N/A"}},{"$f":"IF(INDIRECT(\"c\" & (VLOOKUP(Rebalance!$D$38,$F$2:$G$48,2,FALSE)+ROW()-2))=Rebalance!$D$38,INDIRECT(\"a\" & (VLOOKUP(Rebalance!$D$38,$F$2:$G$48,2,FALSE)+ROW()-2)),\"\")","v":{"$error":"#N/A"}},{"$f":"IF(INDIRECT(\"c\" & (VLOOKUP(Rebalance!$D$39,$F$2:$G$48,2,FALSE)+ROW()-2))=Rebalance!$D$39,INDIRECT(\"a\" & (VLOOKUP(Rebalance!$D$39,$F$2:$G$48,2,FALSE)+ROW()-2)),\"\")","v":{"$error":"#N/A"}},{"$f":"IF(INDIRECT(\"c\" & (VLOOKUP(Rebalance!$D$40,$F$2:$G$48,2,FALSE)+ROW()-2))=Rebalance!$D$40,INDIRECT(\"a\" & (VLOOKUP(Rebalance!$D$40,$F$2:$G$48,2,FALSE)+ROW()-2)),\"\")","v":{"$error":"#N/A"}},{"$f":"IF(INDIRECT(\"c\" & (VLOOKUP(Rebalance!$D$52,$F$2:$G$48,2,FALSE)+ROW()-2))=Rebalance!$D$52,INDIRECT(\"a\" & (VLOOKUP(Rebalance!$D$52,$F$2:$G$48,2,FALSE)+ROW()-2)),\"\")","v":{"$error":"#N/A"}},{"$f":"IF(INDIRECT(\"c\" & (VLOOKUP(Rebalance!$D$53,$F$2:$G$48,2,FALSE)+ROW()-2))=Rebalance!$D$53,INDIRECT(\"a\" & (VLOOKUP(Rebalance!$D$53,$F$2:$G$48,2,FALSE)+ROW()-2)),\"\")","v":{"$error":"#N/A"}},{"$f":"IF(INDIRECT(\"c\" & (VLOOKUP(Rebalance!$D$54,$F$2:$G$48,2,FALSE)+ROW()-2))=Rebalance!$D$54,INDIRECT(\"a\" & (VLOOKUP(Rebalance!$D$54,$F$2:$G$48,2,FALSE)+ROW()-2)),\"\")","v":{"$error":"#N/A"}},{"$f":"IF(INDIRECT(\"c\" & (VLOOKUP(Rebalance!$D$55,$F$2:$G$48,2,FALSE)+ROW()-2))=Rebalance!$D$55,INDIRECT(\"a\" & (VLOOKUP(Rebalance!$D$55,$F$2:$G$48,2,FALSE)+ROW()-2)),\"\")","v":{"$error":"#N/A"}},{"$f":"IF(INDIRECT(\"c\" & (VLOOKUP(Rebalance!$D$56,$F$2:$G$48,2,FALSE)+ROW()-2))=Rebalance!$D$56,INDIRECT(\"a\" & (VLOOKUP(Rebalance!$D$56,$F$2:$G$48,2,FALSE)+ROW()-2)),\"\")","v":{"$error":"#N/A"}},{"$f":"IF(INDIRECT(\"c\" & (VLOOKUP(Rebalance!$D$57,$F$2:$G$48,2,FALSE)+ROW()-2))=Rebalance!$D$57,INDIRECT(\"a\" & (VLOOKUP(Rebalance!$D$57,$F$2:$G$48,2,FALSE)+ROW()-2)),\"\")","v":{"$error":"#N/A"}},{"$f":"IF(INDIRECT(\"c\" & (VLOOKUP(Rebalance!$D$58,$F$2:$G$48,2,FALSE)+ROW()-2))=Rebalance!$D$58,INDIRECT(\"a\" & (VLOOKUP(Rebalance!$D$58,$F$2:$G$48,2,FALSE)+ROW()-2)),\"\")","v":{"$error":"#N/A"}},{"$f":"IF(INDIRECT(\"c\" & (VLOOKUP(Rebalance!$D$59,$F$2:$G$48,2,FALSE)+ROW()-2))=Rebalance!$D$59,INDIRECT(\"a\" & (VLOOKUP(Rebalance!$D$59,$F$2:$G$48,2,FALSE)+ROW()-2)),\"\")","v":{"$error":"#N/A"}},{"$f":"IF(INDIRECT(\"c\" & (VLOOKUP(Rebalance!$D$60,$F$2:$G$48,2,FALSE)+ROW()-2))=Rebalance!$D$60,INDIRECT(\"a\" & (VLOOKUP(Rebalance!$D$60,$F$2:$G$48,2,FALSE)+ROW()-2)),\"\")","v":{"$error":"#N/A"}},{"$f":"IF(INDIRECT(\"c\" & (VLOOKUP(Rebalance!$D$61,$F$2:$G$48,2,FALSE)+ROW()-2))=Rebalance!$D$61,INDIRECT(\"a\" & (VLOOKUP(Rebalance!$D$61,$F$2:$G$48,2,FALSE)+ROW()-2)),\"\")","v":{"$error":"#N/A"}},{"$f":"IF(INDIRECT(\"c\" & (VLOOKUP(Rebalance!$D$62,$F$2:$G$48,2,FALSE)+ROW()-2))=Rebalance!$D$62,INDIRECT(\"a\" & (VLOOKUP(Rebalance!$D$62,$F$2:$G$48,2,FALSE)+ROW()-2)),\"\")","v":{"$error":"#N/A"}},{"$f":"IF(INDIRECT(\"c\" & (VLOOKUP(Rebalance!$D$63,$F$2:$G$48,2,FALSE)+ROW()-2))=Rebalance!$D$63,INDIRECT(\"a\" & (VLOOKUP(Rebalance!$D$63,$F$2:$G$48,2,FALSE)+ROW()-2)),\"\")","v":{"$error":"#N/A"}},{"$f":"IF(INDIRECT(\"c\" & (VLOOKUP(Rebalance!$D$64,$F$2:$G$48,2,FALSE)+ROW()-2))=Rebalance!$D$64,INDIRECT(\"a\" & (VLOOKUP(Rebalance!$D$64,$F$2:$G$48,2,FALSE)+ROW()-2)),\"\")","v":{"$error":"#N/A"}},{"$f":"IF(INDIRECT(\"c\" & (VLOOKUP(Rebalance!$D$65,$F$2:$G$48,2,FALSE)+ROW()-2))=Rebalance!$D$65,INDIRECT(\"a\" & (VLOOKUP(Rebalance!$D$65,$F$2:$G$48,2,FALSE)+ROW()-2)),\"\")","v":{"$error":"#N/A"}},{"$f":"IF(INDIRECT(\"c\" & (VLOOKUP(Rebalance!$D$66,$F$2:$G$48,2,FALSE)+ROW()-2))=Rebalance!$D$66,INDIRECT(\"a\" & (VLOOKUP(Rebalance!$D$66,$F$2:$G$48,2,FALSE)+ROW()-2)),\"\")","v":{"$error":"#N/A"}}]
["Kruger Ci Prudential FoF B1","KSPFA","Ci Collective Investments (RF) (PTY) Ltd",{"$f":"ROW()","v":221},null,null,{"$f":"VLOOKUP(F221,$C$2:$D$599,2,FALSE)","v":{"$error":"#N/A"}},{"$f":"IF(INDIRECT(\"c\" & (VLOOKUP(Rebalance!$D$26,$F$2:$G$48,2,FALSE)+ROW()-2))=Rebalance!$D$26,INDIRECT(\"a\" & (VLOOKUP(Rebalance!$D$26,$F$2:$G$48,2,FALSE)+ROW()-2)),\"\")","v":{"$error":"#N/A"}},{"$f":"IF(INDIRECT(\"c\" & (VLOOKUP(Rebalance!$D$27,$F$2:$G$48,2,FALSE)+ROW()-2))=Rebalance!$D$27,INDIRECT(\"a\" & (VLOOKUP(Rebalance!$D$27,$F$2:$G$48,2,FALSE)+ROW()-2)),\"\")","v":{"$error":"#N/A"}},{"$f":"IF(INDIRECT(\"c\" & (VLOOKUP(Rebalance!$D$28,$F$2:$G$48,2,FALSE)+ROW()-2))=Rebalance!$D$28,INDIRECT(\"a\" & (VLOOKUP(Rebalance!$D$28,$F$2:$G$48,2,FALSE)+ROW()-2)),\"\")","v":{"$error":"#N/A"}},{"$f":"IF(INDIRECT(\"c\" & (VLOOKUP(Rebalance!$D$29,$F$2:$G$48,2,FALSE)+ROW()-2))=Rebalance!$D$29,INDIRECT(\"a\" & (VLOOKUP(Rebalance!$D$29,$F$2:$G$48,2,FALSE)+ROW()-2)),\"\")","v":{"$error":"#N/A"}},{"$f":"IF(INDIRECT(\"c\" & (VLOOKUP(Rebalance!$D$30,$F$2:$G$48,2,FALSE)+ROW()-2))=Rebalance!$D$30,INDIRECT(\"a\" & (VLOOKUP(Rebalance!$D$30,$F$2:$G$48,2,FALSE)+ROW()-2)),\"\")","v":{"$error":"#N/A"}},{"$f":"IF(INDIRECT(\"c\" & (VLOOKUP(Rebalance!$D$31,$F$2:$G$48,2,FALSE)+ROW()-2))=Rebalance!$D$31,INDIRECT(\"a\" & (VLOOKUP(Rebalance!$D$31,$F$2:$G$48,2,FALSE)+ROW()-2)),\"\")","v":{"$error":"#N/A"}},{"$f":"IF(INDIRECT(\"c\" & (VLOOKUP(Rebalance!$D$32,$F$2:$G$48,2,FALSE)+ROW()-2))=Rebalance!$D$32,INDIRECT(\"a\" & (VLOOKUP(Rebalance!$D$32,$F$2:$G$48,2,FALSE)+ROW()-2)),\"\")","v":{"$error":"#N/A"}},{"$f":"IF(INDIRECT(\"c\" & (VLOOKUP(Rebalance!$D$33,$F$2:$G$48,2,FALSE)+ROW()-2))=Rebalance!$D$33,INDIRECT(\"a\" & (VLOOKUP(Rebalance!$D$33,$F$2:$G$48,2,FALSE)+ROW()-2)),\"\")","v":{"$error":"#N/A"}},{"$f":"IF(INDIRECT(\"c\" & (VLOOKUP(Rebalance!$D$34,$F$2:$G$48,2,FALSE)+ROW()-2))=Rebalance!$D$34,INDIRECT(\"a\" & (VLOOKUP(Rebalance!$D$34,$F$2:$G$48,2,FALSE)+ROW()-2)),\"\")","v":{"$error":"#N/A"}},{"$f":"IF(INDIRECT(\"c\" & (VLOOKUP(Rebalance!$D$35,$F$2:$G$48,2,FALSE)+ROW()-2))=Rebalance!$D$35,INDIRECT(\"a\" & (VLOOKUP(Rebalance!$D$35,$F$2:$G$48,2,FALSE)+ROW()-2)),\"\")","v":{"$error":"#N/A"}},{"$f":"IF(INDIRECT(\"c\" & (VLOOKUP(Rebalance!$D$36,$F$2:$G$48,2,FALSE)+ROW()-2))=Rebalance!$D$36,INDIRECT(\"a\" & (VLOOKUP(Rebalance!$D$36,$F$2:$G$48,2,FALSE)+ROW()-2)),\"\")","v":{"$error":"#N/A"}},{"$f":"IF(INDIRECT(\"c\" & (VLOOKUP(Rebalance!$D$37,$F$2:$G$48,2,FALSE)+ROW()-2))=Rebalance!$D$37,INDIRECT(\"a\" & (VLOOKUP(Rebalance!$D$37,$F$2:$G$48,2,FALSE)+ROW()-2)),\"\")","v":{"$error":"#N/A"}},{"$f":"IF(INDIRECT(\"c\" & (VLOOKUP(Rebalance!$D$38,$F$2:$G$48,2,FALSE)+ROW()-2))=Rebalance!$D$38,INDIRECT(\"a\" & (VLOOKUP(Rebalance!$D$38,$F$2:$G$48,2,FALSE)+ROW()-2)),\"\")","v":{"$error":"#N/A"}},{"$f":"IF(INDIRECT(\"c\" & (VLOOKUP(Rebalance!$D$39,$F$2:$G$48,2,FALSE)+ROW()-2))=Rebalance!$D$39,INDIRECT(\"a\" & (VLOOKUP(Rebalance!$D$39,$F$2:$G$48,2,FALSE)+ROW()-2)),\"\")","v":{"$error":"#N/A"}},{"$f":"IF(INDIRECT(\"c\" & (VLOOKUP(Rebalance!$D$40,$F$2:$G$48,2,FALSE)+ROW()-2))=Rebalance!$D$40,INDIRECT(\"a\" & (VLOOKUP(Rebalance!$D$40,$F$2:$G$48,2,FALSE)+ROW()-2)),\"\")","v":{"$error":"#N/A"}},{"$f":"IF(INDIRECT(\"c\" & (VLOOKUP(Rebalance!$D$52,$F$2:$G$48,2,FALSE)+ROW()-2))=Rebalance!$D$52,INDIRECT(\"a\" & (VLOOKUP(Rebalance!$D$52,$F$2:$G$48,2,FALSE)+ROW()-2)),\"\")","v":{"$error":"#N/A"}},{"$f":"IF(INDIRECT(\"c\" & (VLOOKUP(Rebalance!$D$53,$F$2:$G$48,2,FALSE)+ROW()-2))=Rebalance!$D$53,INDIRECT(\"a\" & (VLOOKUP(Rebalance!$D$53,$F$2:$G$48,2,FALSE)+ROW()-2)),\"\")","v":{"$error":"#N/A"}},{"$f":"IF(INDIRECT(\"c\" & (VLOOKUP(Rebalance!$D$54,$F$2:$G$48,2,FALSE)+ROW()-2))=Rebalance!$D$54,INDIRECT(\"a\" & (VLOOKUP(Rebalance!$D$54,$F$2:$G$48,2,FALSE)+ROW()-2)),\"\")","v":{"$error":"#N/A"}},{"$f":"IF(INDIRECT(\"c\" & (VLOOKUP(Rebalance!$D$55,$F$2:$G$48,2,FALSE)+ROW()-2))=Rebalance!$D$55,INDIRECT(\"a\" & (VLOOKUP(Rebalance!$D$55,$F$2:$G$48,2,FALSE)+ROW()-2)),\"\")","v":{"$error":"#N/A"}},{"$f":"IF(INDIRECT(\"c\" & (VLOOKUP(Rebalance!$D$56,$F$2:$G$48,2,FALSE)+ROW()-2))=Rebalance!$D$56,INDIRECT(\"a\" & (VLOOKUP(Rebalance!$D$56,$F$2:$G$48,2,FALSE)+ROW()-2)),\"\")","v":{"$error":"#N/A"}},{"$f":"IF(INDIRECT(\"c\" & (VLOOKUP(Rebalance!$D$57,$F$2:$G$48,2,FALSE)+ROW()-2))=Rebalance!$D$57,INDIRECT(\"a\" & (VLOOKUP(Rebalance!$D$57,$F$2:$G$48,2,FALSE)+ROW()-2)),\"\")","v":{"$error":"#N/A"}},{"$f":"IF(INDIRECT(\"c\" & (VLOOKUP(Rebalance!$D$58,$F$2:$G$48,2,FALSE)+ROW()-2))=Rebalance!$D$58,INDIRECT(\"a\" & (VLOOKUP(Rebalance!$D$58,$F$2:$G$48,2,FALSE)+ROW()-2)),\"\")","v":{"$error":"#N/A"}},{"$f":"IF(INDIRECT(\"c\" & (VLOOKUP(Rebalance!$D$59,$F$2:$G$48,2,FALSE)+ROW()-2))=Rebalance!$D$59,INDIRECT(\"a\" & (VLOOKUP(Rebalance!$D$59,$F$2:$G$48,2,FALSE)+ROW()-2)),\"\")","v":{"$error":"#N/A"}},{"$f":"IF(INDIRECT(\"c\" & (VLOOKUP(Rebalance!$D$60,$F$2:$G$48,2,FALSE)+ROW()-2))=Rebalance!$D$60,INDIRECT(\"a\" & (VLOOKUP(Rebalance!$D$60,$F$2:$G$48,2,FALSE)+ROW()-2)),\"\")","v":{"$error":"#N/A"}},{"$f":"IF(INDIRECT(\"c\" & (VLOOKUP(Rebalance!$D$61,$F$2:$G$48,2,FALSE)+ROW()-2))=Rebalance!$D$61,INDIRECT(\"a\" & (VLOOKUP(Rebalance!$D$61,$F$2:$G$48,2,FALSE)+ROW()-2)),\"\")","v":{"$error":"#N/A"}},{"$f":"IF(INDIRECT(\"c\" & (VLOOKUP(Rebalance!$D$62,$F$2:$G$48,2,FALSE)+ROW()-2))=Rebalance!$D$62,INDIRECT(\"a\" & (VLOOKUP(Rebalance!$D$62,$F$2:$G$48,2,FALSE)+ROW()-2)),\"\")","v":{"$error":"#N/A"}},{"$f":"IF(INDIRECT(\"c\" & (VLOOKUP(Rebalance!$D$63,$F$2:$G$48,2,FALSE)+ROW()-2))=Rebalance!$D$63,INDIRECT(\"a\" & (VLOOKUP(Rebalance!$D$63,$F$2:$G$48,2,FALSE)+ROW()-2)),\"\")","v":{"$error":"#N/A"}},{"$f":"IF(INDIRECT(\"c\" & (VLOOKUP(Rebalance!$D$64,$F$2:$G$48,2,FALSE)+ROW()-2))=Rebalance!$D$64,INDIRECT(\"a\" & (VLOOKUP(Rebalance!$D$64,$F$2:$G$48,2,FALSE)+ROW()-2)),\"\")","v":{"$error":"#N/A"}},{"$f":"IF(INDIRECT(\"c\" & (VLOOKUP(Rebalance!$D$65,$F$2:$G$48,2,FALSE)+ROW()-2))=Rebalance!$D$65,INDIRECT(\"a\" & (VLOOKUP(Rebalance!$D$65,$F$2:$G$48,2,FALSE)+ROW()-2)),\"\")","v":{"$error":"#N/A"}},{"$f":"IF(INDIRECT(\"c\" & (VLOOKUP(Rebalance!$D$66,$F$2:$G$48,2,FALSE)+ROW()-2))=Rebalance!$D$66,INDIRECT(\"a\" & (VLOOKUP(Rebalance!$D$66,$F$2:$G$48,2,FALSE)+ROW()-2)),\"\")","v":{"$error":"#N/A"}}]
["Coronation Balanced Defensive Fund P","CBDB4","Coronation Management Company",{"$f":"ROW()","v":222},null,null,{"$f":"VLOOKUP(F222,$C$2:$D$599,2,FALSE)","v":{"$error":"#N/A"}},{"$f":"IF(INDIRECT(\"c\" & (VLOOKUP(Rebalance!$D$26,$F$2:$G$48,2,FALSE)+ROW()-2))=Rebalance!$D$26,INDIRECT(\"a\" & (VLOOKUP(Rebalance!$D$26,$F$2:$G$48,2,FALSE)+ROW()-2)),\"\")","v":{"$error":"#N/A"}},{"$f":"IF(INDIRECT(\"c\" & (VLOOKUP(Rebalance!$D$27,$F$2:$G$48,2,FALSE)+ROW()-2))=Rebalance!$D$27,INDIRECT(\"a\" & (VLOOKUP(Rebalance!$D$27,$F$2:$G$48,2,FALSE)+ROW()-2)),\"\")","v":{"$error":"#N/A"}},{"$f":"IF(INDIRECT(\"c\" & (VLOOKUP(Rebalance!$D$28,$F$2:$G$48,2,FALSE)+ROW()-2))=Rebalance!$D$28,INDIRECT(\"a\" & (VLOOKUP(Rebalance!$D$28,$F$2:$G$48,2,FALSE)+ROW()-2)),\"\")","v":{"$error":"#N/A"}},{"$f":"IF(INDIRECT(\"c\" & (VLOOKUP(Rebalance!$D$29,$F$2:$G$48,2,FALSE)+ROW()-2))=Rebalance!$D$29,INDIRECT(\"a\" & (VLOOKUP(Rebalance!$D$29,$F$2:$G$48,2,FALSE)+ROW()-2)),\"\")","v":{"$error":"#N/A"}},{"$f":"IF(INDIRECT(\"c\" & (VLOOKUP(Rebalance!$D$30,$F$2:$G$48,2,FALSE)+ROW()-2))=Rebalance!$D$30,INDIRECT(\"a\" & (VLOOKUP(Rebalance!$D$30,$F$2:$G$48,2,FALSE)+ROW()-2)),\"\")","v":{"$error":"#N/A"}},{"$f":"IF(INDIRECT(\"c\" & (VLOOKUP(Rebalance!$D$31,$F$2:$G$48,2,FALSE)+ROW()-2))=Rebalance!$D$31,INDIRECT(\"a\" & (VLOOKUP(Rebalance!$D$31,$F$2:$G$48,2,FALSE)+ROW()-2)),\"\")","v":{"$error":"#N/A"}},{"$f":"IF(INDIRECT(\"c\" & (VLOOKUP(Rebalance!$D$32,$F$2:$G$48,2,FALSE)+ROW()-2))=Rebalance!$D$32,INDIRECT(\"a\" & (VLOOKUP(Rebalance!$D$32,$F$2:$G$48,2,FALSE)+ROW()-2)),\"\")","v":{"$error":"#N/A"}},{"$f":"IF(INDIRECT(\"c\" & (VLOOKUP(Rebalance!$D$33,$F$2:$G$48,2,FALSE)+ROW()-2))=Rebalance!$D$33,INDIRECT(\"a\" & (VLOOKUP(Rebalance!$D$33,$F$2:$G$48,2,FALSE)+ROW()-2)),\"\")","v":{"$error":"#N/A"}},{"$f":"IF(INDIRECT(\"c\" & (VLOOKUP(Rebalance!$D$34,$F$2:$G$48,2,FALSE)+ROW()-2))=Rebalance!$D$34,INDIRECT(\"a\" & (VLOOKUP(Rebalance!$D$34,$F$2:$G$48,2,FALSE)+ROW()-2)),\"\")","v":{"$error":"#N/A"}},{"$f":"IF(INDIRECT(\"c\" & (VLOOKUP(Rebalance!$D$35,$F$2:$G$48,2,FALSE)+ROW()-2))=Rebalance!$D$35,INDIRECT(\"a\" & (VLOOKUP(Rebalance!$D$35,$F$2:$G$48,2,FALSE)+ROW()-2)),\"\")","v":{"$error":"#N/A"}},{"$f":"IF(INDIRECT(\"c\" & (VLOOKUP(Rebalance!$D$36,$F$2:$G$48,2,FALSE)+ROW()-2))=Rebalance!$D$36,INDIRECT(\"a\" & (VLOOKUP(Rebalance!$D$36,$F$2:$G$48,2,FALSE)+ROW()-2)),\"\")","v":{"$error":"#N/A"}},{"$f":"IF(INDIRECT(\"c\" & (VLOOKUP(Rebalance!$D$37,$F$2:$G$48,2,FALSE)+ROW()-2))=Rebalance!$D$37,INDIRECT(\"a\" & (VLOOKUP(Rebalance!$D$37,$F$2:$G$48,2,FALSE)+ROW()-2)),\"\")","v":{"$error":"#N/A"}},{"$f":"IF(INDIRECT(\"c\" & (VLOOKUP(Rebalance!$D$38,$F$2:$G$48,2,FALSE)+ROW()-2))=Rebalance!$D$38,INDIRECT(\"a\" & (VLOOKUP(Rebalance!$D$38,$F$2:$G$48,2,FALSE)+ROW()-2)),\"\")","v":{"$error":"#N/A"}},{"$f":"IF(INDIRECT(\"c\" & (VLOOKUP(Rebalance!$D$39,$F$2:$G$48,2,FALSE)+ROW()-2))=Rebalance!$D$39,INDIRECT(\"a\" & (VLOOKUP(Rebalance!$D$39,$F$2:$G$48,2,FALSE)+ROW()-2)),\"\")","v":{"$error":"#N/A"}},{"$f":"IF(INDIRECT(\"c\" & (VLOOKUP(Rebalance!$D$40,$F$2:$G$48,2,FALSE)+ROW()-2))=Rebalance!$D$40,INDIRECT(\"a\" & (VLOOKUP(Rebalance!$D$40,$F$2:$G$48,2,FALSE)+ROW()-2)),\"\")","v":{"$error":"#N/A"}},{"$f":"IF(INDIRECT(\"c\" & (VLOOKUP(Rebalance!$D$52,$F$2:$G$48,2,FALSE)+ROW()-2))=Rebalance!$D$52,INDIRECT(\"a\" & (VLOOKUP(Rebalance!$D$52,$F$2:$G$48,2,FALSE)+ROW()-2)),\"\")","v":{"$error":"#N/A"}},{"$f":"IF(INDIRECT(\"c\" & (VLOOKUP(Rebalance!$D$53,$F$2:$G$48,2,FALSE)+ROW()-2))=Rebalance!$D$53,INDIRECT(\"a\" & (VLOOKUP(Rebalance!$D$53,$F$2:$G$48,2,FALSE)+ROW()-2)),\"\")","v":{"$error":"#N/A"}},{"$f":"IF(INDIRECT(\"c\" & (VLOOKUP(Rebalance!$D$54,$F$2:$G$48,2,FALSE)+ROW()-2))=Rebalance!$D$54,INDIRECT(\"a\" & (VLOOKUP(Rebalance!$D$54,$F$2:$G$48,2,FALSE)+ROW()-2)),\"\")","v":{"$error":"#N/A"}},{"$f":"IF(INDIRECT(\"c\" & (VLOOKUP(Rebalance!$D$55,$F$2:$G$48,2,FALSE)+ROW()-2))=Rebalance!$D$55,INDIRECT(\"a\" & (VLOOKUP(Rebalance!$D$55,$F$2:$G$48,2,FALSE)+ROW()-2)),\"\")","v":{"$error":"#N/A"}},{"$f":"IF(INDIRECT(\"c\" & (VLOOKUP(Rebalance!$D$56,$F$2:$G$48,2,FALSE)+ROW()-2))=Rebalance!$D$56,INDIRECT(\"a\" & (VLOOKUP(Rebalance!$D$56,$F$2:$G$48,2,FALSE)+ROW()-2)),\"\")","v":{"$error":"#N/A"}},{"$f":"IF(INDIRECT(\"c\" & (VLOOKUP(Rebalance!$D$57,$F$2:$G$48,2,FALSE)+ROW()-2))=Rebalance!$D$57,INDIRECT(\"a\" & (VLOOKUP(Rebalance!$D$57,$F$2:$G$48,2,FALSE)+ROW()-2)),\"\")","v":{"$error":"#N/A"}},{"$f":"IF(INDIRECT(\"c\" & (VLOOKUP(Rebalance!$D$58,$F$2:$G$48,2,FALSE)+ROW()-2))=Rebalance!$D$58,INDIRECT(\"a\" & (VLOOKUP(Rebalance!$D$58,$F$2:$G$48,2,FALSE)+ROW()-2)),\"\")","v":{"$error":"#N/A"}},{"$f":"IF(INDIRECT(\"c\" & (VLOOKUP(Rebalance!$D$59,$F$2:$G$48,2,FALSE)+ROW()-2))=Rebalance!$D$59,INDIRECT(\"a\" & (VLOOKUP(Rebalance!$D$59,$F$2:$G$48,2,FALSE)+ROW()-2)),\"\")","v":{"$error":"#N/A"}},{"$f":"IF(INDIRECT(\"c\" & (VLOOKUP(Rebalance!$D$60,$F$2:$G$48,2,FALSE)+ROW()-2))=Rebalance!$D$60,INDIRECT(\"a\" & (VLOOKUP(Rebalance!$D$60,$F$2:$G$48,2,FALSE)+ROW()-2)),\"\")","v":{"$error":"#N/A"}},{"$f":"IF(INDIRECT(\"c\" & (VLOOKUP(Rebalance!$D$61,$F$2:$G$48,2,FALSE)+ROW()-2))=Rebalance!$D$61,INDIRECT(\"a\" & (VLOOKUP(Rebalance!$D$61,$F$2:$G$48,2,FALSE)+ROW()-2)),\"\")","v":{"$error":"#N/A"}},{"$f":"IF(INDIRECT(\"c\" & (VLOOKUP(Rebalance!$D$62,$F$2:$G$48,2,FALSE)+ROW()-2))=Rebalance!$D$62,INDIRECT(\"a\" & (VLOOKUP(Rebalance!$D$62,$F$2:$G$48,2,FALSE)+ROW()-2)),\"\")","v":{"$error":"#N/A"}},{"$f":"IF(INDIRECT(\"c\" & (VLOOKUP(Rebalance!$D$63,$F$2:$G$48,2,FALSE)+ROW()-2))=Rebalance!$D$63,INDIRECT(\"a\" & (VLOOKUP(Rebalance!$D$63,$F$2:$G$48,2,FALSE)+ROW()-2)),\"\")","v":{"$error":"#N/A"}},{"$f":"IF(INDIRECT(\"c\" & (VLOOKUP(Rebalance!$D$64,$F$2:$G$48,2,FALSE)+ROW()-2))=Rebalance!$D$64,INDIRECT(\"a\" & (VLOOKUP(Rebalance!$D$64,$F$2:$G$48,2,FALSE)+ROW()-2)),\"\")","v":{"$error":"#N/A"}},{"$f":"IF(INDIRECT(\"c\" & (VLOOKUP(Rebalance!$D$65,$F$2:$G$48,2,FALSE)+ROW()-2))=Rebalance!$D$65,INDIRECT(\"a\" & (VLOOKUP(Rebalance!$D$65,$F$2:$G$48,2,FALSE)+ROW()-2)),\"\")","v":{"$error":"#N/A"}},{"$f":"IF(INDIRECT(\"c\" & (VLOOKUP(Rebalance!$D$66,$F$2:$G$48,2,FALSE)+ROW()-2))=Rebalance!$D$66,INDIRECT(\"a\" & (VLOOKUP(Rebalance!$D$66,$F$2:$G$48,2,FALSE)+ROW()-2)),\"\")","v":{"$error":"#N/A"}}]
["Coronation Balanced Plus Fund P","CBFB4","Coronation Management Company",{"$f":"ROW()","v":223},null,null,{"$f":"VLOOKUP(F223,$C$2:$D$599,2,FALSE)","v":{"$error":"#N/A"}},{"$f":"IF(INDIRECT(\"c\" & (VLOOKUP(Rebalance!$D$26,$F$2:$G$48,2,FALSE)+ROW()-2))=Rebalance!$D$26,INDIRECT(\"a\" & (VLOOKUP(Rebalance!$D$26,$F$2:$G$48,2,FALSE)+ROW()-2)),\"\")","v":{"$error":"#N/A"}},{"$f":"IF(INDIRECT(\"c\" & (VLOOKUP(Rebalance!$D$27,$F$2:$G$48,2,FALSE)+ROW()-2))=Rebalance!$D$27,INDIRECT(\"a\" & (VLOOKUP(Rebalance!$D$27,$F$2:$G$48,2,FALSE)+ROW()-2)),\"\")","v":{"$error":"#N/A"}},{"$f":"IF(INDIRECT(\"c\" & (VLOOKUP(Rebalance!$D$28,$F$2:$G$48,2,FALSE)+ROW()-2))=Rebalance!$D$28,INDIRECT(\"a\" & (VLOOKUP(Rebalance!$D$28,$F$2:$G$48,2,FALSE)+ROW()-2)),\"\")","v":{"$error":"#N/A"}},{"$f":"IF(INDIRECT(\"c\" & (VLOOKUP(Rebalance!$D$29,$F$2:$G$48,2,FALSE)+ROW()-2))=Rebalance!$D$29,INDIRECT(\"a\" & (VLOOKUP(Rebalance!$D$29,$F$2:$G$48,2,FALSE)+ROW()-2)),\"\")","v":{"$error":"#N/A"}},{"$f":"IF(INDIRECT(\"c\" & (VLOOKUP(Rebalance!$D$30,$F$2:$G$48,2,FALSE)+ROW()-2))=Rebalance!$D$30,INDIRECT(\"a\" & (VLOOKUP(Rebalance!$D$30,$F$2:$G$48,2,FALSE)+ROW()-2)),\"\")","v":{"$error":"#N/A"}},{"$f":"IF(INDIRECT(\"c\" & (VLOOKUP(Rebalance!$D$31,$F$2:$G$48,2,FALSE)+ROW()-2))=Rebalance!$D$31,INDIRECT(\"a\" & (VLOOKUP(Rebalance!$D$31,$F$2:$G$48,2,FALSE)+ROW()-2)),\"\")","v":{"$error":"#N/A"}},{"$f":"IF(INDIRECT(\"c\" & (VLOOKUP(Rebalance!$D$32,$F$2:$G$48,2,FALSE)+ROW()-2))=Rebalance!$D$32,INDIRECT(\"a\" & (VLOOKUP(Rebalance!$D$32,$F$2:$G$48,2,FALSE)+ROW()-2)),\"\")","v":{"$error":"#N/A"}},{"$f":"IF(INDIRECT(\"c\" & (VLOOKUP(Rebalance!$D$33,$F$2:$G$48,2,FALSE)+ROW()-2))=Rebalance!$D$33,INDIRECT(\"a\" & (VLOOKUP(Rebalance!$D$33,$F$2:$G$48,2,FALSE)+ROW()-2)),\"\")","v":{"$error":"#N/A"}},{"$f":"IF(INDIRECT(\"c\" & (VLOOKUP(Rebalance!$D$34,$F$2:$G$48,2,FALSE)+ROW()-2))=Rebalance!$D$34,INDIRECT(\"a\" & (VLOOKUP(Rebalance!$D$34,$F$2:$G$48,2,FALSE)+ROW()-2)),\"\")","v":{"$error":"#N/A"}},{"$f":"IF(INDIRECT(\"c\" & (VLOOKUP(Rebalance!$D$35,$F$2:$G$48,2,FALSE)+ROW()-2))=Rebalance!$D$35,INDIRECT(\"a\" & (VLOOKUP(Rebalance!$D$35,$F$2:$G$48,2,FALSE)+ROW()-2)),\"\")","v":{"$error":"#N/A"}},{"$f":"IF(INDIRECT(\"c\" & (VLOOKUP(Rebalance!$D$36,$F$2:$G$48,2,FALSE)+ROW()-2))=Rebalance!$D$36,INDIRECT(\"a\" & (VLOOKUP(Rebalance!$D$36,$F$2:$G$48,2,FALSE)+ROW()-2)),\"\")","v":{"$error":"#N/A"}},{"$f":"IF(INDIRECT(\"c\" & (VLOOKUP(Rebalance!$D$37,$F$2:$G$48,2,FALSE)+ROW()-2))=Rebalance!$D$37,INDIRECT(\"a\" & (VLOOKUP(Rebalance!$D$37,$F$2:$G$48,2,FALSE)+ROW()-2)),\"\")","v":{"$error":"#N/A"}},{"$f":"IF(INDIRECT(\"c\" & (VLOOKUP(Rebalance!$D$38,$F$2:$G$48,2,FALSE)+ROW()-2))=Rebalance!$D$38,INDIRECT(\"a\" & (VLOOKUP(Rebalance!$D$38,$F$2:$G$48,2,FALSE)+ROW()-2)),\"\")","v":{"$error":"#N/A"}},{"$f":"IF(INDIRECT(\"c\" & (VLOOKUP(Rebalance!$D$39,$F$2:$G$48,2,FALSE)+ROW()-2))=Rebalance!$D$39,INDIRECT(\"a\" & (VLOOKUP(Rebalance!$D$39,$F$2:$G$48,2,FALSE)+ROW()-2)),\"\")","v":{"$error":"#N/A"}},{"$f":"IF(INDIRECT(\"c\" & (VLOOKUP(Rebalance!$D$40,$F$2:$G$48,2,FALSE)+ROW()-2))=Rebalance!$D$40,INDIRECT(\"a\" & (VLOOKUP(Rebalance!$D$40,$F$2:$G$48,2,FALSE)+ROW()-2)),\"\")","v":{"$error":"#N/A"}},{"$f":"IF(INDIRECT(\"c\" & (VLOOKUP(Rebalance!$D$52,$F$2:$G$48,2,FALSE)+ROW()-2))=Rebalance!$D$52,INDIRECT(\"a\" & (VLOOKUP(Rebalance!$D$52,$F$2:$G$48,2,FALSE)+ROW()-2)),\"\")","v":{"$error":"#N/A"}},{"$f":"IF(INDIRECT(\"c\" & (VLOOKUP(Rebalance!$D$53,$F$2:$G$48,2,FALSE)+ROW()-2))=Rebalance!$D$53,INDIRECT(\"a\" & (VLOOKUP(Rebalance!$D$53,$F$2:$G$48,2,FALSE)+ROW()-2)),\"\")","v":{"$error":"#N/A"}},{"$f":"IF(INDIRECT(\"c\" & (VLOOKUP(Rebalance!$D$54,$F$2:$G$48,2,FALSE)+ROW()-2))=Rebalance!$D$54,INDIRECT(\"a\" & (VLOOKUP(Rebalance!$D$54,$F$2:$G$48,2,FALSE)+ROW()-2)),\"\")","v":{"$error":"#N/A"}},{"$f":"IF(INDIRECT(\"c\" & (VLOOKUP(Rebalance!$D$55,$F$2:$G$48,2,FALSE)+ROW()-2))=Rebalance!$D$55,INDIRECT(\"a\" & (VLOOKUP(Rebalance!$D$55,$F$2:$G$48,2,FALSE)+ROW()-2)),\"\")","v":{"$error":"#N/A"}},{"$f":"IF(INDIRECT(\"c\" & (VLOOKUP(Rebalance!$D$56,$F$2:$G$48,2,FALSE)+ROW()-2))=Rebalance!$D$56,INDIRECT(\"a\" & (VLOOKUP(Rebalance!$D$56,$F$2:$G$48,2,FALSE)+ROW()-2)),\"\")","v":{"$error":"#N/A"}},{"$f":"IF(INDIRECT(\"c\" & (VLOOKUP(Rebalance!$D$57,$F$2:$G$48,2,FALSE)+ROW()-2))=Rebalance!$D$57,INDIRECT(\"a\" & (VLOOKUP(Rebalance!$D$57,$F$2:$G$48,2,FALSE)+ROW()-2)),\"\")","v":{"$error":"#N/A"}},{"$f":"IF(INDIRECT(\"c\" & (VLOOKUP(Rebalance!$D$58,$F$2:$G$48,2,FALSE)+ROW()-2))=Rebalance!$D$58,INDIRECT(\"a\" & (VLOOKUP(Rebalance!$D$58,$F$2:$G$48,2,FALSE)+ROW()-2)),\"\")","v":{"$error":"#N/A"}},{"$f":"IF(INDIRECT(\"c\" & (VLOOKUP(Rebalance!$D$59,$F$2:$G$48,2,FALSE)+ROW()-2))=Rebalance!$D$59,INDIRECT(\"a\" & (VLOOKUP(Rebalance!$D$59,$F$2:$G$48,2,FALSE)+ROW()-2)),\"\")","v":{"$error":"#N/A"}},{"$f":"IF(INDIRECT(\"c\" & (VLOOKUP(Rebalance!$D$60,$F$2:$G$48,2,FALSE)+ROW()-2))=Rebalance!$D$60,INDIRECT(\"a\" & (VLOOKUP(Rebalance!$D$60,$F$2:$G$48,2,FALSE)+ROW()-2)),\"\")","v":{"$error":"#N/A"}},{"$f":"IF(INDIRECT(\"c\" & (VLOOKUP(Rebalance!$D$61,$F$2:$G$48,2,FALSE)+ROW()-2))=Rebalance!$D$61,INDIRECT(\"a\" & (VLOOKUP(Rebalance!$D$61,$F$2:$G$48,2,FALSE)+ROW()-2)),\"\")","v":{"$error":"#N/A"}},{"$f":"IF(INDIRECT(\"c\" & (VLOOKUP(Rebalance!$D$62,$F$2:$G$48,2,FALSE)+ROW()-2))=Rebalance!$D$62,INDIRECT(\"a\" & (VLOOKUP(Rebalance!$D$62,$F$2:$G$48,2,FALSE)+ROW()-2)),\"\")","v":{"$error":"#N/A"}},{"$f":"IF(INDIRECT(\"c\" & (VLOOKUP(Rebalance!$D$63,$F$2:$G$48,2,FALSE)+ROW()-2))=Rebalance!$D$63,INDIRECT(\"a\" & (VLOOKUP(Rebalance!$D$63,$F$2:$G$48,2,FALSE)+ROW()-2)),\"\")","v":{"$error":"#N/A"}},{"$f":"IF(INDIRECT(\"c\" & (VLOOKUP(Rebalance!$D$64,$F$2:$G$48,2,FALSE)+ROW()-2))=Rebalance!$D$64,INDIRECT(\"a\" & (VLOOKUP(Rebalance!$D$64,$F$2:$G$48,2,FALSE)+ROW()-2)),\"\")","v":{"$error":"#N/A"}},{"$f":"IF(INDIRECT(\"c\" & (VLOOKUP(Rebalance!$D$65,$F$2:$G$48,2,FALSE)+ROW()-2))=Rebalance!$D$65,INDIRECT(\"a\" & (VLOOKUP(Rebalance!$D$65,$F$2:$G$48,2,FALSE)+ROW()-2)),\"\")","v":{"$error":"#N/A"}},{"$f":"IF(INDIRECT(\"c\" & (VLOOKUP(Rebalance!$D$66,$F$2:$G$48,2,FALSE)+ROW()-2))=Rebalance!$D$66,INDIRECT(\"a\" & (VLOOKUP(Rebalance!$D$66,$F$2:$G$48,2,FALSE)+ROW()-2)),\"\")","v":{"$error":"#N/A"}}]
["Coronation Bond Fund P","CBFCP","Coronation Management Company",{"$f":"ROW()","v":224},null,null,{"$f":"VLOOKUP(F224,$C$2:$D$599,2,FALSE)","v":{"$error":"#N/A"}},{"$f":"IF(INDIRECT(\"c\" & (VLOOKUP(Rebalance!$D$26,$F$2:$G$48,2,FALSE)+ROW()-2))=Rebalance!$D$26,INDIRECT(\"a\" & (VLOOKUP(Rebalance!$D$26,$F$2:$G$48,2,FALSE)+ROW()-2)),\"\")","v":{"$error":"#N/A"}},{"$f":"IF(INDIRECT(\"c\" & (VLOOKUP(Rebalance!$D$27,$F$2:$G$48,2,FALSE)+ROW()-2))=Rebalance!$D$27,INDIRECT(\"a\" & (VLOOKUP(Rebalance!$D$27,$F$2:$G$48,2,FALSE)+ROW()-2)),\"\")","v":{"$error":"#N/A"}},{"$f":"IF(INDIRECT(\"c\" & (VLOOKUP(Rebalance!$D$28,$F$2:$G$48,2,FALSE)+ROW()-2))=Rebalance!$D$28,INDIRECT(\"a\" & (VLOOKUP(Rebalance!$D$28,$F$2:$G$48,2,FALSE)+ROW()-2)),\"\")","v":{"$error":"#N/A"}},{"$f":"IF(INDIRECT(\"c\" & (VLOOKUP(Rebalance!$D$29,$F$2:$G$48,2,FALSE)+ROW()-2))=Rebalance!$D$29,INDIRECT(\"a\" & (VLOOKUP(Rebalance!$D$29,$F$2:$G$48,2,FALSE)+ROW()-2)),\"\")","v":{"$error":"#N/A"}},{"$f":"IF(INDIRECT(\"c\" & (VLOOKUP(Rebalance!$D$30,$F$2:$G$48,2,FALSE)+ROW()-2))=Rebalance!$D$30,INDIRECT(\"a\" & (VLOOKUP(Rebalance!$D$30,$F$2:$G$48,2,FALSE)+ROW()-2)),\"\")","v":{"$error":"#N/A"}},{"$f":"IF(INDIRECT(\"c\" & (VLOOKUP(Rebalance!$D$31,$F$2:$G$48,2,FALSE)+ROW()-2))=Rebalance!$D$31,INDIRECT(\"a\" & (VLOOKUP(Rebalance!$D$31,$F$2:$G$48,2,FALSE)+ROW()-2)),\"\")","v":{"$error":"#N/A"}},{"$f":"IF(INDIRECT(\"c\" & (VLOOKUP(Rebalance!$D$32,$F$2:$G$48,2,FALSE)+ROW()-2))=Rebalance!$D$32,INDIRECT(\"a\" & (VLOOKUP(Rebalance!$D$32,$F$2:$G$48,2,FALSE)+ROW()-2)),\"\")","v":{"$error":"#N/A"}},{"$f":"IF(INDIRECT(\"c\" & (VLOOKUP(Rebalance!$D$33,$F$2:$G$48,2,FALSE)+ROW()-2))=Rebalance!$D$33,INDIRECT(\"a\" & (VLOOKUP(Rebalance!$D$33,$F$2:$G$48,2,FALSE)+ROW()-2)),\"\")","v":{"$error":"#N/A"}},{"$f":"IF(INDIRECT(\"c\" & (VLOOKUP(Rebalance!$D$34,$F$2:$G$48,2,FALSE)+ROW()-2))=Rebalance!$D$34,INDIRECT(\"a\" & (VLOOKUP(Rebalance!$D$34,$F$2:$G$48,2,FALSE)+ROW()-2)),\"\")","v":{"$error":"#N/A"}},{"$f":"IF(INDIRECT(\"c\" & (VLOOKUP(Rebalance!$D$35,$F$2:$G$48,2,FALSE)+ROW()-2))=Rebalance!$D$35,INDIRECT(\"a\" & (VLOOKUP(Rebalance!$D$35,$F$2:$G$48,2,FALSE)+ROW()-2)),\"\")","v":{"$error":"#N/A"}},{"$f":"IF(INDIRECT(\"c\" & (VLOOKUP(Rebalance!$D$36,$F$2:$G$48,2,FALSE)+ROW()-2))=Rebalance!$D$36,INDIRECT(\"a\" & (VLOOKUP(Rebalance!$D$36,$F$2:$G$48,2,FALSE)+ROW()-2)),\"\")","v":{"$error":"#N/A"}},{"$f":"IF(INDIRECT(\"c\" & (VLOOKUP(Rebalance!$D$37,$F$2:$G$48,2,FALSE)+ROW()-2))=Rebalance!$D$37,INDIRECT(\"a\" & (VLOOKUP(Rebalance!$D$37,$F$2:$G$48,2,FALSE)+ROW()-2)),\"\")","v":{"$error":"#N/A"}},{"$f":"IF(INDIRECT(\"c\" & (VLOOKUP(Rebalance!$D$38,$F$2:$G$48,2,FALSE)+ROW()-2))=Rebalance!$D$38,INDIRECT(\"a\" & (VLOOKUP(Rebalance!$D$38,$F$2:$G$48,2,FALSE)+ROW()-2)),\"\")","v":{"$error":"#N/A"}},{"$f":"IF(INDIRECT(\"c\" & (VLOOKUP(Rebalance!$D$39,$F$2:$G$48,2,FALSE)+ROW()-2))=Rebalance!$D$39,INDIRECT(\"a\" & (VLOOKUP(Rebalance!$D$39,$F$2:$G$48,2,FALSE)+ROW()-2)),\"\")","v":{"$error":"#N/A"}},{"$f":"IF(INDIRECT(\"c\" & (VLOOKUP(Rebalance!$D$40,$F$2:$G$48,2,FALSE)+ROW()-2))=Rebalance!$D$40,INDIRECT(\"a\" & (VLOOKUP(Rebalance!$D$40,$F$2:$G$48,2,FALSE)+ROW()-2)),\"\")","v":{"$error":"#N/A"}},{"$f":"IF(INDIRECT(\"c\" & (VLOOKUP(Rebalance!$D$52,$F$2:$G$48,2,FALSE)+ROW()-2))=Rebalance!$D$52,INDIRECT(\"a\" & (VLOOKUP(Rebalance!$D$52,$F$2:$G$48,2,FALSE)+ROW()-2)),\"\")","v":{"$error":"#N/A"}},{"$f":"IF(INDIRECT(\"c\" & (VLOOKUP(Rebalance!$D$53,$F$2:$G$48,2,FALSE)+ROW()-2))=Rebalance!$D$53,INDIRECT(\"a\" & (VLOOKUP(Rebalance!$D$53,$F$2:$G$48,2,FALSE)+ROW()-2)),\"\")","v":{"$error":"#N/A"}},{"$f":"IF(INDIRECT(\"c\" & (VLOOKUP(Rebalance!$D$54,$F$2:$G$48,2,FALSE)+ROW()-2))=Rebalance!$D$54,INDIRECT(\"a\" & (VLOOKUP(Rebalance!$D$54,$F$2:$G$48,2,FALSE)+ROW()-2)),\"\")","v":{"$error":"#N/A"}},{"$f":"IF(INDIRECT(\"c\" & (VLOOKUP(Rebalance!$D$55,$F$2:$G$48,2,FALSE)+ROW()-2))=Rebalance!$D$55,INDIRECT(\"a\" & (VLOOKUP(Rebalance!$D$55,$F$2:$G$48,2,FALSE)+ROW()-2)),\"\")","v":{"$error":"#N/A"}},{"$f":"IF(INDIRECT(\"c\" & (VLOOKUP(Rebalance!$D$56,$F$2:$G$48,2,FALSE)+ROW()-2))=Rebalance!$D$56,INDIRECT(\"a\" & (VLOOKUP(Rebalance!$D$56,$F$2:$G$48,2,FALSE)+ROW()-2)),\"\")","v":{"$error":"#N/A"}},{"$f":"IF(INDIRECT(\"c\" & (VLOOKUP(Rebalance!$D$57,$F$2:$G$48,2,FALSE)+ROW()-2))=Rebalance!$D$57,INDIRECT(\"a\" & (VLOOKUP(Rebalance!$D$57,$F$2:$G$48,2,FALSE)+ROW()-2)),\"\")","v":{"$error":"#N/A"}},{"$f":"IF(INDIRECT(\"c\" & (VLOOKUP(Rebalance!$D$58,$F$2:$G$48,2,FALSE)+ROW()-2))=Rebalance!$D$58,INDIRECT(\"a\" & (VLOOKUP(Rebalance!$D$58,$F$2:$G$48,2,FALSE)+ROW()-2)),\"\")","v":{"$error":"#N/A"}},{"$f":"IF(INDIRECT(\"c\" & (VLOOKUP(Rebalance!$D$59,$F$2:$G$48,2,FALSE)+ROW()-2))=Rebalance!$D$59,INDIRECT(\"a\" & (VLOOKUP(Rebalance!$D$59,$F$2:$G$48,2,FALSE)+ROW()-2)),\"\")","v":{"$error":"#N/A"}},{"$f":"IF(INDIRECT(\"c\" & (VLOOKUP(Rebalance!$D$60,$F$2:$G$48,2,FALSE)+ROW()-2))=Rebalance!$D$60,INDIRECT(\"a\" & (VLOOKUP(Rebalance!$D$60,$F$2:$G$48,2,FALSE)+ROW()-2)),\"\")","v":{"$error":"#N/A"}},{"$f":"IF(INDIRECT(\"c\" & (VLOOKUP(Rebalance!$D$61,$F$2:$G$48,2,FALSE)+ROW()-2))=Rebalance!$D$61,INDIRECT(\"a\" & (VLOOKUP(Rebalance!$D$61,$F$2:$G$48,2,FALSE)+ROW()-2)),\"\")","v":{"$error":"#N/A"}},{"$f":"IF(INDIRECT(\"c\" & (VLOOKUP(Rebalance!$D$62,$F$2:$G$48,2,FALSE)+ROW()-2))=Rebalance!$D$62,INDIRECT(\"a\" & (VLOOKUP(Rebalance!$D$62,$F$2:$G$48,2,FALSE)+ROW()-2)),\"\")","v":{"$error":"#N/A"}},{"$f":"IF(INDIRECT(\"c\" & (VLOOKUP(Rebalance!$D$63,$F$2:$G$48,2,FALSE)+ROW()-2))=Rebalance!$D$63,INDIRECT(\"a\" & (VLOOKUP(Rebalance!$D$63,$F$2:$G$48,2,FALSE)+ROW()-2)),\"\")","v":{"$error":"#N/A"}},{"$f":"IF(INDIRECT(\"c\" & (VLOOKUP(Rebalance!$D$64,$F$2:$G$48,2,FALSE)+ROW()-2))=Rebalance!$D$64,INDIRECT(\"a\" & (VLOOKUP(Rebalance!$D$64,$F$2:$G$48,2,FALSE)+ROW()-2)),\"\")","v":{"$error":"#N/A"}},{"$f":"IF(INDIRECT(\"c\" & (VLOOKUP(Rebalance!$D$65,$F$2:$G$48,2,FALSE)+ROW()-2))=Rebalance!$D$65,INDIRECT(\"a\" & (VLOOKUP(Rebalance!$D$65,$F$2:$G$48,2,FALSE)+ROW()-2)),\"\")","v":{"$error":"#N/A"}},{"$f":"IF(INDIRECT(\"c\" & (VLOOKUP(Rebalance!$D$66,$F$2:$G$48,2,FALSE)+ROW()-2))=Rebalance!$D$66,INDIRECT(\"a\" & (VLOOKUP(Rebalance!$D$66,$F$2:$G$48,2,FALSE)+ROW()-2)),\"\")","v":{"$error":"#N/A"}}]
["Coronation Capital Plus Fund P","CCPB5","Coronation Management Company",{"$f":"ROW()","v":225},null,null,{"$f":"VLOOKUP(F225,$C$2:$D$599,2,FALSE)","v":{"$error":"#N/A"}},{"$f":"IF(INDIRECT(\"c\" & (VLOOKUP(Rebalance!$D$26,$F$2:$G$48,2,FALSE)+ROW()-2))=Rebalance!$D$26,INDIRECT(\"a\" & (VLOOKUP(Rebalance!$D$26,$F$2:$G$48,2,FALSE)+ROW()-2)),\"\")","v":{"$error":"#N/A"}},{"$f":"IF(INDIRECT(\"c\" & (VLOOKUP(Rebalance!$D$27,$F$2:$G$48,2,FALSE)+ROW()-2))=Rebalance!$D$27,INDIRECT(\"a\" & (VLOOKUP(Rebalance!$D$27,$F$2:$G$48,2,FALSE)+ROW()-2)),\"\")","v":{"$error":"#N/A"}},{"$f":"IF(INDIRECT(\"c\" & (VLOOKUP(Rebalance!$D$28,$F$2:$G$48,2,FALSE)+ROW()-2))=Rebalance!$D$28,INDIRECT(\"a\" & (VLOOKUP(Rebalance!$D$28,$F$2:$G$48,2,FALSE)+ROW()-2)),\"\")","v":{"$error":"#N/A"}},{"$f":"IF(INDIRECT(\"c\" & (VLOOKUP(Rebalance!$D$29,$F$2:$G$48,2,FALSE)+ROW()-2))=Rebalance!$D$29,INDIRECT(\"a\" & (VLOOKUP(Rebalance!$D$29,$F$2:$G$48,2,FALSE)+ROW()-2)),\"\")","v":{"$error":"#N/A"}},{"$f":"IF(INDIRECT(\"c\" & (VLOOKUP(Rebalance!$D$30,$F$2:$G$48,2,FALSE)+ROW()-2))=Rebalance!$D$30,INDIRECT(\"a\" & (VLOOKUP(Rebalance!$D$30,$F$2:$G$48,2,FALSE)+ROW()-2)),\"\")","v":{"$error":"#N/A"}},{"$f":"IF(INDIRECT(\"c\" & (VLOOKUP(Rebalance!$D$31,$F$2:$G$48,2,FALSE)+ROW()-2))=Rebalance!$D$31,INDIRECT(\"a\" & (VLOOKUP(Rebalance!$D$31,$F$2:$G$48,2,FALSE)+ROW()-2)),\"\")","v":{"$error":"#N/A"}},{"$f":"IF(INDIRECT(\"c\" & (VLOOKUP(Rebalance!$D$32,$F$2:$G$48,2,FALSE)+ROW()-2))=Rebalance!$D$32,INDIRECT(\"a\" & (VLOOKUP(Rebalance!$D$32,$F$2:$G$48,2,FALSE)+ROW()-2)),\"\")","v":{"$error":"#N/A"}},{"$f":"IF(INDIRECT(\"c\" & (VLOOKUP(Rebalance!$D$33,$F$2:$G$48,2,FALSE)+ROW()-2))=Rebalance!$D$33,INDIRECT(\"a\" & (VLOOKUP(Rebalance!$D$33,$F$2:$G$48,2,FALSE)+ROW()-2)),\"\")","v":{"$error":"#N/A"}},{"$f":"IF(INDIRECT(\"c\" & (VLOOKUP(Rebalance!$D$34,$F$2:$G$48,2,FALSE)+ROW()-2))=Rebalance!$D$34,INDIRECT(\"a\" & (VLOOKUP(Rebalance!$D$34,$F$2:$G$48,2,FALSE)+ROW()-2)),\"\")","v":{"$error":"#N/A"}},{"$f":"IF(INDIRECT(\"c\" & (VLOOKUP(Rebalance!$D$35,$F$2:$G$48,2,FALSE)+ROW()-2))=Rebalance!$D$35,INDIRECT(\"a\" & (VLOOKUP(Rebalance!$D$35,$F$2:$G$48,2,FALSE)+ROW()-2)),\"\")","v":{"$error":"#N/A"}},{"$f":"IF(INDIRECT(\"c\" & (VLOOKUP(Rebalance!$D$36,$F$2:$G$48,2,FALSE)+ROW()-2))=Rebalance!$D$36,INDIRECT(\"a\" & (VLOOKUP(Rebalance!$D$36,$F$2:$G$48,2,FALSE)+ROW()-2)),\"\")","v":{"$error":"#N/A"}},{"$f":"IF(INDIRECT(\"c\" & (VLOOKUP(Rebalance!$D$37,$F$2:$G$48,2,FALSE)+ROW()-2))=Rebalance!$D$37,INDIRECT(\"a\" & (VLOOKUP(Rebalance!$D$37,$F$2:$G$48,2,FALSE)+ROW()-2)),\"\")","v":{"$error":"#N/A"}},{"$f":"IF(INDIRECT(\"c\" & (VLOOKUP(Rebalance!$D$38,$F$2:$G$48,2,FALSE)+ROW()-2))=Rebalance!$D$38,INDIRECT(\"a\" & (VLOOKUP(Rebalance!$D$38,$F$2:$G$48,2,FALSE)+ROW()-2)),\"\")","v":{"$error":"#N/A"}},{"$f":"IF(INDIRECT(\"c\" & (VLOOKUP(Rebalance!$D$39,$F$2:$G$48,2,FALSE)+ROW()-2))=Rebalance!$D$39,INDIRECT(\"a\" & (VLOOKUP(Rebalance!$D$39,$F$2:$G$48,2,FALSE)+ROW()-2)),\"\")","v":{"$error":"#N/A"}},{"$f":"IF(INDIRECT(\"c\" & (VLOOKUP(Rebalance!$D$40,$F$2:$G$48,2,FALSE)+ROW()-2))=Rebalance!$D$40,INDIRECT(\"a\" & (VLOOKUP(Rebalance!$D$40,$F$2:$G$48,2,FALSE)+ROW()-2)),\"\")","v":{"$error":"#N/A"}},{"$f":"IF(INDIRECT(\"c\" & (VLOOKUP(Rebalance!$D$52,$F$2:$G$48,2,FALSE)+ROW()-2))=Rebalance!$D$52,INDIRECT(\"a\" & (VLOOKUP(Rebalance!$D$52,$F$2:$G$48,2,FALSE)+ROW()-2)),\"\")","v":{"$error":"#N/A"}},{"$f":"IF(INDIRECT(\"c\" & (VLOOKUP(Rebalance!$D$53,$F$2:$G$48,2,FALSE)+ROW()-2))=Rebalance!$D$53,INDIRECT(\"a\" & (VLOOKUP(Rebalance!$D$53,$F$2:$G$48,2,FALSE)+ROW()-2)),\"\")","v":{"$error":"#N/A"}},{"$f":"IF(INDIRECT(\"c\" & (VLOOKUP(Rebalance!$D$54,$F$2:$G$48,2,FALSE)+ROW()-2))=Rebalance!$D$54,INDIRECT(\"a\" & (VLOOKUP(Rebalance!$D$54,$F$2:$G$48,2,FALSE)+ROW()-2)),\"\")","v":{"$error":"#N/A"}},{"$f":"IF(INDIRECT(\"c\" & (VLOOKUP(Rebalance!$D$55,$F$2:$G$48,2,FALSE)+ROW()-2))=Rebalance!$D$55,INDIRECT(\"a\" & (VLOOKUP(Rebalance!$D$55,$F$2:$G$48,2,FALSE)+ROW()-2)),\"\")","v":{"$error":"#N/A"}},{"$f":"IF(INDIRECT(\"c\" & (VLOOKUP(Rebalance!$D$56,$F$2:$G$48,2,FALSE)+ROW()-2))=Rebalance!$D$56,INDIRECT(\"a\" & (VLOOKUP(Rebalance!$D$56,$F$2:$G$48,2,FALSE)+ROW()-2)),\"\")","v":{"$error":"#N/A"}},{"$f":"IF(INDIRECT(\"c\" & (VLOOKUP(Rebalance!$D$57,$F$2:$G$48,2,FALSE)+ROW()-2))=Rebalance!$D$57,INDIRECT(\"a\" & (VLOOKUP(Rebalance!$D$57,$F$2:$G$48,2,FALSE)+ROW()-2)),\"\")","v":{"$error":"#N/A"}},{"$f":"IF(INDIRECT(\"c\" & (VLOOKUP(Rebalance!$D$58,$F$2:$G$48,2,FALSE)+ROW()-2))=Rebalance!$D$58,INDIRECT(\"a\" & (VLOOKUP(Rebalance!$D$58,$F$2:$G$48,2,FALSE)+ROW()-2)),\"\")","v":{"$error":"#N/A"}},{"$f":"IF(INDIRECT(\"c\" & (VLOOKUP(Rebalance!$D$59,$F$2:$G$48,2,FALSE)+ROW()-2))=Rebalance!$D$59,INDIRECT(\"a\" & (VLOOKUP(Rebalance!$D$59,$F$2:$G$48,2,FALSE)+ROW()-2)),\"\")","v":{"$error":"#N/A"}},{"$f":"IF(INDIRECT(\"c\" & (VLOOKUP(Rebalance!$D$60,$F$2:$G$48,2,FALSE)+ROW()-2))=Rebalance!$D$60,INDIRECT(\"a\" & (VLOOKUP(Rebalance!$D$60,$F$2:$G$48,2,FALSE)+ROW()-2)),\"\")","v":{"$error":"#N/A"}},{"$f":"IF(INDIRECT(\"c\" & (VLOOKUP(Rebalance!$D$61,$F$2:$G$48,2,FALSE)+ROW()-2))=Rebalance!$D$61,INDIRECT(\"a\" & (VLOOKUP(Rebalance!$D$61,$F$2:$G$48,2,FALSE)+ROW()-2)),\"\")","v":{"$error":"#N/A"}},{"$f":"IF(INDIRECT(\"c\" & (VLOOKUP(Rebalance!$D$62,$F$2:$G$48,2,FALSE)+ROW()-2))=Rebalance!$D$62,INDIRECT(\"a\" & (VLOOKUP(Rebalance!$D$62,$F$2:$G$48,2,FALSE)+ROW()-2)),\"\")","v":{"$error":"#N/A"}},{"$f":"IF(INDIRECT(\"c\" & (VLOOKUP(Rebalance!$D$63,$F$2:$G$48,2,FALSE)+ROW()-2))=Rebalance!$D$63,INDIRECT(\"a\" & (VLOOKUP(Rebalance!$D$63,$F$2:$G$48,2,FALSE)+ROW()-2)),\"\")","v":{"$error":"#N/A"}},{"$f":"IF(INDIRECT(\"c\" & (VLOOKUP(Rebalance!$D$64,$F$2:$G$48,2,FALSE)+ROW()-2))=Rebalance!$D$64,INDIRECT(\"a\" & (VLOOKUP(Rebalance!$D$64,$F$2:$G$48,2,FALSE)+ROW()-2)),\"\")","v":{"$error":"#N/A"}},{"$f":"IF(INDIRECT(\"c\" & (VLOOKUP(Rebalance!$D$65,$F$2:$G$48,2,FALSE)+ROW()-2))=Rebalance!$D$65,INDIRECT(\"a\" & (VLOOKUP(Rebalance!$D$65,$F$2:$G$48,2,FALSE)+ROW()-2)),\"\")","v":{"$error":"#N/A"}},{"$f":"IF(INDIRECT(\"c\" & (VLOOKUP(Rebalance!$D$66,$F$2:$G$48,2,FALSE)+ROW()-2))=Rebalance!$D$66,INDIRECT(\"a\" & (VLOOKUP(Rebalance!$D$66,$F$2:$G$48,2,FALSE)+ROW()-2)),\"\")","v":{"$error":"#N/A"}}]
["Coronation Equity Fund P","CECB4","Coronation Management Company",{"$f":"ROW()","v":226},null,null,{"$f":"VLOOKUP(F226,$C$2:$D$599,2,FALSE)","v":{"$error":"#N/A"}},{"$f":"IF(INDIRECT(\"c\" & (VLOOKUP(Rebalance!$D$26,$F$2:$G$48,2,FALSE)+ROW()-2))=Rebalance!$D$26,INDIRECT(\"a\" & (VLOOKUP(Rebalance!$D$26,$F$2:$G$48,2,FALSE)+ROW()-2)),\"\")","v":{"$error":"#N/A"}},{"$f":"IF(INDIRECT(\"c\" & (VLOOKUP(Rebalance!$D$27,$F$2:$G$48,2,FALSE)+ROW()-2))=Rebalance!$D$27,INDIRECT(\"a\" & (VLOOKUP(Rebalance!$D$27,$F$2:$G$48,2,FALSE)+ROW()-2)),\"\")","v":{"$error":"#N/A"}},{"$f":"IF(INDIRECT(\"c\" & (VLOOKUP(Rebalance!$D$28,$F$2:$G$48,2,FALSE)+ROW()-2))=Rebalance!$D$28,INDIRECT(\"a\" & (VLOOKUP(Rebalance!$D$28,$F$2:$G$48,2,FALSE)+ROW()-2)),\"\")","v":{"$error":"#N/A"}},{"$f":"IF(INDIRECT(\"c\" & (VLOOKUP(Rebalance!$D$29,$F$2:$G$48,2,FALSE)+ROW()-2))=Rebalance!$D$29,INDIRECT(\"a\" & (VLOOKUP(Rebalance!$D$29,$F$2:$G$48,2,FALSE)+ROW()-2)),\"\")","v":{"$error":"#N/A"}},{"$f":"IF(INDIRECT(\"c\" & (VLOOKUP(Rebalance!$D$30,$F$2:$G$48,2,FALSE)+ROW()-2))=Rebalance!$D$30,INDIRECT(\"a\" & (VLOOKUP(Rebalance!$D$30,$F$2:$G$48,2,FALSE)+ROW()-2)),\"\")","v":{"$error":"#N/A"}},{"$f":"IF(INDIRECT(\"c\" & (VLOOKUP(Rebalance!$D$31,$F$2:$G$48,2,FALSE)+ROW()-2))=Rebalance!$D$31,INDIRECT(\"a\" & (VLOOKUP(Rebalance!$D$31,$F$2:$G$48,2,FALSE)+ROW()-2)),\"\")","v":{"$error":"#N/A"}},{"$f":"IF(INDIRECT(\"c\" & (VLOOKUP(Rebalance!$D$32,$F$2:$G$48,2,FALSE)+ROW()-2))=Rebalance!$D$32,INDIRECT(\"a\" & (VLOOKUP(Rebalance!$D$32,$F$2:$G$48,2,FALSE)+ROW()-2)),\"\")","v":{"$error":"#N/A"}},{"$f":"IF(INDIRECT(\"c\" & (VLOOKUP(Rebalance!$D$33,$F$2:$G$48,2,FALSE)+ROW()-2))=Rebalance!$D$33,INDIRECT(\"a\" & (VLOOKUP(Rebalance!$D$33,$F$2:$G$48,2,FALSE)+ROW()-2)),\"\")","v":{"$error":"#N/A"}},{"$f":"IF(INDIRECT(\"c\" & (VLOOKUP(Rebalance!$D$34,$F$2:$G$48,2,FALSE)+ROW()-2))=Rebalance!$D$34,INDIRECT(\"a\" & (VLOOKUP(Rebalance!$D$34,$F$2:$G$48,2,FALSE)+ROW()-2)),\"\")","v":{"$error":"#N/A"}},{"$f":"IF(INDIRECT(\"c\" & (VLOOKUP(Rebalance!$D$35,$F$2:$G$48,2,FALSE)+ROW()-2))=Rebalance!$D$35,INDIRECT(\"a\" & (VLOOKUP(Rebalance!$D$35,$F$2:$G$48,2,FALSE)+ROW()-2)),\"\")","v":{"$error":"#N/A"}},{"$f":"IF(INDIRECT(\"c\" & (VLOOKUP(Rebalance!$D$36,$F$2:$G$48,2,FALSE)+ROW()-2))=Rebalance!$D$36,INDIRECT(\"a\" & (VLOOKUP(Rebalance!$D$36,$F$2:$G$48,2,FALSE)+ROW()-2)),\"\")","v":{"$error":"#N/A"}},{"$f":"IF(INDIRECT(\"c\" & (VLOOKUP(Rebalance!$D$37,$F$2:$G$48,2,FALSE)+ROW()-2))=Rebalance!$D$37,INDIRECT(\"a\" & (VLOOKUP(Rebalance!$D$37,$F$2:$G$48,2,FALSE)+ROW()-2)),\"\")","v":{"$error":"#N/A"}},{"$f":"IF(INDIRECT(\"c\" & (VLOOKUP(Rebalance!$D$38,$F$2:$G$48,2,FALSE)+ROW()-2))=Rebalance!$D$38,INDIRECT(\"a\" & (VLOOKUP(Rebalance!$D$38,$F$2:$G$48,2,FALSE)+ROW()-2)),\"\")","v":{"$error":"#N/A"}},{"$f":"IF(INDIRECT(\"c\" & (VLOOKUP(Rebalance!$D$39,$F$2:$G$48,2,FALSE)+ROW()-2))=Rebalance!$D$39,INDIRECT(\"a\" & (VLOOKUP(Rebalance!$D$39,$F$2:$G$48,2,FALSE)+ROW()-2)),\"\")","v":{"$error":"#N/A"}},{"$f":"IF(INDIRECT(\"c\" & (VLOOKUP(Rebalance!$D$40,$F$2:$G$48,2,FALSE)+ROW()-2))=Rebalance!$D$40,INDIRECT(\"a\" & (VLOOKUP(Rebalance!$D$40,$F$2:$G$48,2,FALSE)+ROW()-2)),\"\")","v":{"$error":"#N/A"}},{"$f":"IF(INDIRECT(\"c\" & (VLOOKUP(Rebalance!$D$52,$F$2:$G$48,2,FALSE)+ROW()-2))=Rebalance!$D$52,INDIRECT(\"a\" & (VLOOKUP(Rebalance!$D$52,$F$2:$G$48,2,FALSE)+ROW()-2)),\"\")","v":{"$error":"#N/A"}},{"$f":"IF(INDIRECT(\"c\" & (VLOOKUP(Rebalance!$D$53,$F$2:$G$48,2,FALSE)+ROW()-2))=Rebalance!$D$53,INDIRECT(\"a\" & (VLOOKUP(Rebalance!$D$53,$F$2:$G$48,2,FALSE)+ROW()-2)),\"\")","v":{"$error":"#N/A"}},{"$f":"IF(INDIRECT(\"c\" & (VLOOKUP(Rebalance!$D$54,$F$2:$G$48,2,FALSE)+ROW()-2))=Rebalance!$D$54,INDIRECT(\"a\" & (VLOOKUP(Rebalance!$D$54,$F$2:$G$48,2,FALSE)+ROW()-2)),\"\")","v":{"$error":"#N/A"}},{"$f":"IF(INDIRECT(\"c\" & (VLOOKUP(Rebalance!$D$55,$F$2:$G$48,2,FALSE)+ROW()-2))=Rebalance!$D$55,INDIRECT(\"a\" & (VLOOKUP(Rebalance!$D$55,$F$2:$G$48,2,FALSE)+ROW()-2)),\"\")","v":{"$error":"#N/A"}},{"$f":"IF(INDIRECT(\"c\" & (VLOOKUP(Rebalance!$D$56,$F$2:$G$48,2,FALSE)+ROW()-2))=Rebalance!$D$56,INDIRECT(\"a\" & (VLOOKUP(Rebalance!$D$56,$F$2:$G$48,2,FALSE)+ROW()-2)),\"\")","v":{"$error":"#N/A"}},{"$f":"IF(INDIRECT(\"c\" & (VLOOKUP(Rebalance!$D$57,$F$2:$G$48,2,FALSE)+ROW()-2))=Rebalance!$D$57,INDIRECT(\"a\" & (VLOOKUP(Rebalance!$D$57,$F$2:$G$48,2,FALSE)+ROW()-2)),\"\")","v":{"$error":"#N/A"}},{"$f":"IF(INDIRECT(\"c\" & (VLOOKUP(Rebalance!$D$58,$F$2:$G$48,2,FALSE)+ROW()-2))=Rebalance!$D$58,INDIRECT(\"a\" & (VLOOKUP(Rebalance!$D$58,$F$2:$G$48,2,FALSE)+ROW()-2)),\"\")","v":{"$error":"#N/A"}},{"$f":"IF(INDIRECT(\"c\" & (VLOOKUP(Rebalance!$D$59,$F$2:$G$48,2,FALSE)+ROW()-2))=Rebalance!$D$59,INDIRECT(\"a\" & (VLOOKUP(Rebalance!$D$59,$F$2:$G$48,2,FALSE)+ROW()-2)),\"\")","v":{"$error":"#N/A"}},{"$f":"IF(INDIRECT(\"c\" & (VLOOKUP(Rebalance!$D$60,$F$2:$G$48,2,FALSE)+ROW()-2))=Rebalance!$D$60,INDIRECT(\"a\" & (VLOOKUP(Rebalance!$D$60,$F$2:$G$48,2,FALSE)+ROW()-2)),\"\")","v":{"$error":"#N/A"}},{"$f":"IF(INDIRECT(\"c\" & (VLOOKUP(Rebalance!$D$61,$F$2:$G$48,2,FALSE)+ROW()-2))=Rebalance!$D$61,INDIRECT(\"a\" & (VLOOKUP(Rebalance!$D$61,$F$2:$G$48,2,FALSE)+ROW()-2)),\"\")","v":{"$error":"#N/A"}},{"$f":"IF(INDIRECT(\"c\" & (VLOOKUP(Rebalance!$D$62,$F$2:$G$48,2,FALSE)+ROW()-2))=Rebalance!$D$62,INDIRECT(\"a\" & (VLOOKUP(Rebalance!$D$62,$F$2:$G$48,2,FALSE)+ROW()-2)),\"\")","v":{"$error":"#N/A"}},{"$f":"IF(INDIRECT(\"c\" & (VLOOKUP(Rebalance!$D$63,$F$2:$G$48,2,FALSE)+ROW()-2))=Rebalance!$D$63,INDIRECT(\"a\" & (VLOOKUP(Rebalance!$D$63,$F$2:$G$48,2,FALSE)+ROW()-2)),\"\")","v":{"$error":"#N/A"}},{"$f":"IF(INDIRECT(\"c\" & (VLOOKUP(Rebalance!$D$64,$F$2:$G$48,2,FALSE)+ROW()-2))=Rebalance!$D$64,INDIRECT(\"a\" & (VLOOKUP(Rebalance!$D$64,$F$2:$G$48,2,FALSE)+ROW()-2)),\"\")","v":{"$error":"#N/A"}},{"$f":"IF(INDIRECT(\"c\" & (VLOOKUP(Rebalance!$D$65,$F$2:$G$48,2,FALSE)+ROW()-2))=Rebalance!$D$65,INDIRECT(\"a\" & (VLOOKUP(Rebalance!$D$65,$F$2:$G$48,2,FALSE)+ROW()-2)),\"\")","v":{"$error":"#N/A"}},{"$f":"IF(INDIRECT(\"c\" & (VLOOKUP(Rebalance!$D$66,$F$2:$G$48,2,FALSE)+ROW()-2))=Rebalance!$D$66,INDIRECT(\"a\" & (VLOOKUP(Rebalance!$D$66,$F$2:$G$48,2,FALSE)+ROW()-2)),\"\")","v":{"$error":"#N/A"}}]
["Coronation Financial Fund P","CFFCP","Coronation Management Company",{"$f":"ROW()","v":227},null,null,{"$f":"VLOOKUP(F227,$C$2:$D$599,2,FALSE)","v":{"$error":"#N/A"}},{"$f":"IF(INDIRECT(\"c\" & (VLOOKUP(Rebalance!$D$26,$F$2:$G$48,2,FALSE)+ROW()-2))=Rebalance!$D$26,INDIRECT(\"a\" & (VLOOKUP(Rebalance!$D$26,$F$2:$G$48,2,FALSE)+ROW()-2)),\"\")","v":{"$error":"#N/A"}},{"$f":"IF(INDIRECT(\"c\" & (VLOOKUP(Rebalance!$D$27,$F$2:$G$48,2,FALSE)+ROW()-2))=Rebalance!$D$27,INDIRECT(\"a\" & (VLOOKUP(Rebalance!$D$27,$F$2:$G$48,2,FALSE)+ROW()-2)),\"\")","v":{"$error":"#N/A"}},{"$f":"IF(INDIRECT(\"c\" & (VLOOKUP(Rebalance!$D$28,$F$2:$G$48,2,FALSE)+ROW()-2))=Rebalance!$D$28,INDIRECT(\"a\" & (VLOOKUP(Rebalance!$D$28,$F$2:$G$48,2,FALSE)+ROW()-2)),\"\")","v":{"$error":"#N/A"}},{"$f":"IF(INDIRECT(\"c\" & (VLOOKUP(Rebalance!$D$29,$F$2:$G$48,2,FALSE)+ROW()-2))=Rebalance!$D$29,INDIRECT(\"a\" & (VLOOKUP(Rebalance!$D$29,$F$2:$G$48,2,FALSE)+ROW()-2)),\"\")","v":{"$error":"#N/A"}},{"$f":"IF(INDIRECT(\"c\" & (VLOOKUP(Rebalance!$D$30,$F$2:$G$48,2,FALSE)+ROW()-2))=Rebalance!$D$30,INDIRECT(\"a\" & (VLOOKUP(Rebalance!$D$30,$F$2:$G$48,2,FALSE)+ROW()-2)),\"\")","v":{"$error":"#N/A"}},{"$f":"IF(INDIRECT(\"c\" & (VLOOKUP(Rebalance!$D$31,$F$2:$G$48,2,FALSE)+ROW()-2))=Rebalance!$D$31,INDIRECT(\"a\" & (VLOOKUP(Rebalance!$D$31,$F$2:$G$48,2,FALSE)+ROW()-2)),\"\")","v":{"$error":"#N/A"}},{"$f":"IF(INDIRECT(\"c\" & (VLOOKUP(Rebalance!$D$32,$F$2:$G$48,2,FALSE)+ROW()-2))=Rebalance!$D$32,INDIRECT(\"a\" & (VLOOKUP(Rebalance!$D$32,$F$2:$G$48,2,FALSE)+ROW()-2)),\"\")","v":{"$error":"#N/A"}},{"$f":"IF(INDIRECT(\"c\" & (VLOOKUP(Rebalance!$D$33,$F$2:$G$48,2,FALSE)+ROW()-2))=Rebalance!$D$33,INDIRECT(\"a\" & (VLOOKUP(Rebalance!$D$33,$F$2:$G$48,2,FALSE)+ROW()-2)),\"\")","v":{"$error":"#N/A"}},{"$f":"IF(INDIRECT(\"c\" & (VLOOKUP(Rebalance!$D$34,$F$2:$G$48,2,FALSE)+ROW()-2))=Rebalance!$D$34,INDIRECT(\"a\" & (VLOOKUP(Rebalance!$D$34,$F$2:$G$48,2,FALSE)+ROW()-2)),\"\")","v":{"$error":"#N/A"}},{"$f":"IF(INDIRECT(\"c\" & (VLOOKUP(Rebalance!$D$35,$F$2:$G$48,2,FALSE)+ROW()-2))=Rebalance!$D$35,INDIRECT(\"a\" & (VLOOKUP(Rebalance!$D$35,$F$2:$G$48,2,FALSE)+ROW()-2)),\"\")","v":{"$error":"#N/A"}},{"$f":"IF(INDIRECT(\"c\" & (VLOOKUP(Rebalance!$D$36,$F$2:$G$48,2,FALSE)+ROW()-2))=Rebalance!$D$36,INDIRECT(\"a\" & (VLOOKUP(Rebalance!$D$36,$F$2:$G$48,2,FALSE)+ROW()-2)),\"\")","v":{"$error":"#N/A"}},{"$f":"IF(INDIRECT(\"c\" & (VLOOKUP(Rebalance!$D$37,$F$2:$G$48,2,FALSE)+ROW()-2))=Rebalance!$D$37,INDIRECT(\"a\" & (VLOOKUP(Rebalance!$D$37,$F$2:$G$48,2,FALSE)+ROW()-2)),\"\")","v":{"$error":"#N/A"}},{"$f":"IF(INDIRECT(\"c\" & (VLOOKUP(Rebalance!$D$38,$F$2:$G$48,2,FALSE)+ROW()-2))=Rebalance!$D$38,INDIRECT(\"a\" & (VLOOKUP(Rebalance!$D$38,$F$2:$G$48,2,FALSE)+ROW()-2)),\"\")","v":{"$error":"#N/A"}},{"$f":"IF(INDIRECT(\"c\" & (VLOOKUP(Rebalance!$D$39,$F$2:$G$48,2,FALSE)+ROW()-2))=Rebalance!$D$39,INDIRECT(\"a\" & (VLOOKUP(Rebalance!$D$39,$F$2:$G$48,2,FALSE)+ROW()-2)),\"\")","v":{"$error":"#N/A"}},{"$f":"IF(INDIRECT(\"c\" & (VLOOKUP(Rebalance!$D$40,$F$2:$G$48,2,FALSE)+ROW()-2))=Rebalance!$D$40,INDIRECT(\"a\" & (VLOOKUP(Rebalance!$D$40,$F$2:$G$48,2,FALSE)+ROW()-2)),\"\")","v":{"$error":"#N/A"}},{"$f":"IF(INDIRECT(\"c\" & (VLOOKUP(Rebalance!$D$52,$F$2:$G$48,2,FALSE)+ROW()-2))=Rebalance!$D$52,INDIRECT(\"a\" & (VLOOKUP(Rebalance!$D$52,$F$2:$G$48,2,FALSE)+ROW()-2)),\"\")","v":{"$error":"#N/A"}},{"$f":"IF(INDIRECT(\"c\" & (VLOOKUP(Rebalance!$D$53,$F$2:$G$48,2,FALSE)+ROW()-2))=Rebalance!$D$53,INDIRECT(\"a\" & (VLOOKUP(Rebalance!$D$53,$F$2:$G$48,2,FALSE)+ROW()-2)),\"\")","v":{"$error":"#N/A"}},{"$f":"IF(INDIRECT(\"c\" & (VLOOKUP(Rebalance!$D$54,$F$2:$G$48,2,FALSE)+ROW()-2))=Rebalance!$D$54,INDIRECT(\"a\" & (VLOOKUP(Rebalance!$D$54,$F$2:$G$48,2,FALSE)+ROW()-2)),\"\")","v":{"$error":"#N/A"}},{"$f":"IF(INDIRECT(\"c\" & (VLOOKUP(Rebalance!$D$55,$F$2:$G$48,2,FALSE)+ROW()-2))=Rebalance!$D$55,INDIRECT(\"a\" & (VLOOKUP(Rebalance!$D$55,$F$2:$G$48,2,FALSE)+ROW()-2)),\"\")","v":{"$error":"#N/A"}},{"$f":"IF(INDIRECT(\"c\" & (VLOOKUP(Rebalance!$D$56,$F$2:$G$48,2,FALSE)+ROW()-2))=Rebalance!$D$56,INDIRECT(\"a\" & (VLOOKUP(Rebalance!$D$56,$F$2:$G$48,2,FALSE)+ROW()-2)),\"\")","v":{"$error":"#N/A"}},{"$f":"IF(INDIRECT(\"c\" & (VLOOKUP(Rebalance!$D$57,$F$2:$G$48,2,FALSE)+ROW()-2))=Rebalance!$D$57,INDIRECT(\"a\" & (VLOOKUP(Rebalance!$D$57,$F$2:$G$48,2,FALSE)+ROW()-2)),\"\")","v":{"$error":"#N/A"}},{"$f":"IF(INDIRECT(\"c\" & (VLOOKUP(Rebalance!$D$58,$F$2:$G$48,2,FALSE)+ROW()-2))=Rebalance!$D$58,INDIRECT(\"a\" & (VLOOKUP(Rebalance!$D$58,$F$2:$G$48,2,FALSE)+ROW()-2)),\"\")","v":{"$error":"#N/A"}},{"$f":"IF(INDIRECT(\"c\" & (VLOOKUP(Rebalance!$D$59,$F$2:$G$48,2,FALSE)+ROW()-2))=Rebalance!$D$59,INDIRECT(\"a\" & (VLOOKUP(Rebalance!$D$59,$F$2:$G$48,2,FALSE)+ROW()-2)),\"\")","v":{"$error":"#N/A"}},{"$f":"IF(INDIRECT(\"c\" & (VLOOKUP(Rebalance!$D$60,$F$2:$G$48,2,FALSE)+ROW()-2))=Rebalance!$D$60,INDIRECT(\"a\" & (VLOOKUP(Rebalance!$D$60,$F$2:$G$48,2,FALSE)+ROW()-2)),\"\")","v":{"$error":"#N/A"}},{"$f":"IF(INDIRECT(\"c\" & (VLOOKUP(Rebalance!$D$61,$F$2:$G$48,2,FALSE)+ROW()-2))=Rebalance!$D$61,INDIRECT(\"a\" & (VLOOKUP(Rebalance!$D$61,$F$2:$G$48,2,FALSE)+ROW()-2)),\"\")","v":{"$error":"#N/A"}},{"$f":"IF(INDIRECT(\"c\" & (VLOOKUP(Rebalance!$D$62,$F$2:$G$48,2,FALSE)+ROW()-2))=Rebalance!$D$62,INDIRECT(\"a\" & (VLOOKUP(Rebalance!$D$62,$F$2:$G$48,2,FALSE)+ROW()-2)),\"\")","v":{"$error":"#N/A"}},{"$f":"IF(INDIRECT(\"c\" & (VLOOKUP(Rebalance!$D$63,$F$2:$G$48,2,FALSE)+ROW()-2))=Rebalance!$D$63,INDIRECT(\"a\" & (VLOOKUP(Rebalance!$D$63,$F$2:$G$48,2,FALSE)+ROW()-2)),\"\")","v":{"$error":"#N/A"}},{"$f":"IF(INDIRECT(\"c\" & (VLOOKUP(Rebalance!$D$64,$F$2:$G$48,2,FALSE)+ROW()-2))=Rebalance!$D$64,INDIRECT(\"a\" & (VLOOKUP(Rebalance!$D$64,$F$2:$G$48,2,FALSE)+ROW()-2)),\"\")","v":{"$error":"#N/A"}},{"$f":"IF(INDIRECT(\"c\" & (VLOOKUP(Rebalance!$D$65,$F$2:$G$48,2,FALSE)+ROW()-2))=Rebalance!$D$65,INDIRECT(\"a\" & (VLOOKUP(Rebalance!$D$65,$F$2:$G$48,2,FALSE)+ROW()-2)),\"\")","v":{"$error":"#N/A"}},{"$f":"IF(INDIRECT(\"c\" & (VLOOKUP(Rebalance!$D$66,$F$2:$G$48,2,FALSE)+ROW()-2))=Rebalance!$D$66,INDIRECT(\"a\" & (VLOOKUP(Rebalance!$D$66,$F$2:$G$48,2,FALSE)+ROW()-2)),\"\")","v":{"$error":"#N/A"}}]
["Coronation Global Capital Plus (ZAR) Feeder Fund P","CGCB4","Coronation Management Company",{"$f":"ROW()","v":228},null,null,{"$f":"VLOOKUP(F228,$C$2:$D$599,2,FALSE)","v":{"$error":"#N/A"}},{"$f":"IF(INDIRECT(\"c\" & (VLOOKUP(Rebalance!$D$26,$F$2:$G$48,2,FALSE)+ROW()-2))=Rebalance!$D$26,INDIRECT(\"a\" & (VLOOKUP(Rebalance!$D$26,$F$2:$G$48,2,FALSE)+ROW()-2)),\"\")","v":{"$error":"#N/A"}},{"$f":"IF(INDIRECT(\"c\" & (VLOOKUP(Rebalance!$D$27,$F$2:$G$48,2,FALSE)+ROW()-2))=Rebalance!$D$27,INDIRECT(\"a\" & (VLOOKUP(Rebalance!$D$27,$F$2:$G$48,2,FALSE)+ROW()-2)),\"\")","v":{"$error":"#N/A"}},{"$f":"IF(INDIRECT(\"c\" & (VLOOKUP(Rebalance!$D$28,$F$2:$G$48,2,FALSE)+ROW()-2))=Rebalance!$D$28,INDIRECT(\"a\" & (VLOOKUP(Rebalance!$D$28,$F$2:$G$48,2,FALSE)+ROW()-2)),\"\")","v":{"$error":"#N/A"}},{"$f":"IF(INDIRECT(\"c\" & (VLOOKUP(Rebalance!$D$29,$F$2:$G$48,2,FALSE)+ROW()-2))=Rebalance!$D$29,INDIRECT(\"a\" & (VLOOKUP(Rebalance!$D$29,$F$2:$G$48,2,FALSE)+ROW()-2)),\"\")","v":{"$error":"#N/A"}},{"$f":"IF(INDIRECT(\"c\" & (VLOOKUP(Rebalance!$D$30,$F$2:$G$48,2,FALSE)+ROW()-2))=Rebalance!$D$30,INDIRECT(\"a\" & (VLOOKUP(Rebalance!$D$30,$F$2:$G$48,2,FALSE)+ROW()-2)),\"\")","v":{"$error":"#N/A"}},{"$f":"IF(INDIRECT(\"c\" & (VLOOKUP(Rebalance!$D$31,$F$2:$G$48,2,FALSE)+ROW()-2))=Rebalance!$D$31,INDIRECT(\"a\" & (VLOOKUP(Rebalance!$D$31,$F$2:$G$48,2,FALSE)+ROW()-2)),\"\")","v":{"$error":"#N/A"}},{"$f":"IF(INDIRECT(\"c\" & (VLOOKUP(Rebalance!$D$32,$F$2:$G$48,2,FALSE)+ROW()-2))=Rebalance!$D$32,INDIRECT(\"a\" & (VLOOKUP(Rebalance!$D$32,$F$2:$G$48,2,FALSE)+ROW()-2)),\"\")","v":{"$error":"#N/A"}},{"$f":"IF(INDIRECT(\"c\" & (VLOOKUP(Rebalance!$D$33,$F$2:$G$48,2,FALSE)+ROW()-2))=Rebalance!$D$33,INDIRECT(\"a\" & (VLOOKUP(Rebalance!$D$33,$F$2:$G$48,2,FALSE)+ROW()-2)),\"\")","v":{"$error":"#N/A"}},{"$f":"IF(INDIRECT(\"c\" & (VLOOKUP(Rebalance!$D$34,$F$2:$G$48,2,FALSE)+ROW()-2))=Rebalance!$D$34,INDIRECT(\"a\" & (VLOOKUP(Rebalance!$D$34,$F$2:$G$48,2,FALSE)+ROW()-2)),\"\")","v":{"$error":"#N/A"}},{"$f":"IF(INDIRECT(\"c\" & (VLOOKUP(Rebalance!$D$35,$F$2:$G$48,2,FALSE)+ROW()-2))=Rebalance!$D$35,INDIRECT(\"a\" & (VLOOKUP(Rebalance!$D$35,$F$2:$G$48,2,FALSE)+ROW()-2)),\"\")","v":{"$error":"#N/A"}},{"$f":"IF(INDIRECT(\"c\" & (VLOOKUP(Rebalance!$D$36,$F$2:$G$48,2,FALSE)+ROW()-2))=Rebalance!$D$36,INDIRECT(\"a\" & (VLOOKUP(Rebalance!$D$36,$F$2:$G$48,2,FALSE)+ROW()-2)),\"\")","v":{"$error":"#N/A"}},{"$f":"IF(INDIRECT(\"c\" & (VLOOKUP(Rebalance!$D$37,$F$2:$G$48,2,FALSE)+ROW()-2))=Rebalance!$D$37,INDIRECT(\"a\" & (VLOOKUP(Rebalance!$D$37,$F$2:$G$48,2,FALSE)+ROW()-2)),\"\")","v":{"$error":"#N/A"}},{"$f":"IF(INDIRECT(\"c\" & (VLOOKUP(Rebalance!$D$38,$F$2:$G$48,2,FALSE)+ROW()-2))=Rebalance!$D$38,INDIRECT(\"a\" & (VLOOKUP(Rebalance!$D$38,$F$2:$G$48,2,FALSE)+ROW()-2)),\"\")","v":{"$error":"#N/A"}},{"$f":"IF(INDIRECT(\"c\" & (VLOOKUP(Rebalance!$D$39,$F$2:$G$48,2,FALSE)+ROW()-2))=Rebalance!$D$39,INDIRECT(\"a\" & (VLOOKUP(Rebalance!$D$39,$F$2:$G$48,2,FALSE)+ROW()-2)),\"\")","v":{"$error":"#N/A"}},{"$f":"IF(INDIRECT(\"c\" & (VLOOKUP(Rebalance!$D$40,$F$2:$G$48,2,FALSE)+ROW()-2))=Rebalance!$D$40,INDIRECT(\"a\" & (VLOOKUP(Rebalance!$D$40,$F$2:$G$48,2,FALSE)+ROW()-2)),\"\")","v":{"$error":"#N/A"}},{"$f":"IF(INDIRECT(\"c\" & (VLOOKUP(Rebalance!$D$52,$F$2:$G$48,2,FALSE)+ROW()-2))=Rebalance!$D$52,INDIRECT(\"a\" & (VLOOKUP(Rebalance!$D$52,$F$2:$G$48,2,FALSE)+ROW()-2)),\"\")","v":{"$error":"#N/A"}},{"$f":"IF(INDIRECT(\"c\" & (VLOOKUP(Rebalance!$D$53,$F$2:$G$48,2,FALSE)+ROW()-2))=Rebalance!$D$53,INDIRECT(\"a\" & (VLOOKUP(Rebalance!$D$53,$F$2:$G$48,2,FALSE)+ROW()-2)),\"\")","v":{"$error":"#N/A"}},{"$f":"IF(INDIRECT(\"c\" & (VLOOKUP(Rebalance!$D$54,$F$2:$G$48,2,FALSE)+ROW()-2))=Rebalance!$D$54,INDIRECT(\"a\" & (VLOOKUP(Rebalance!$D$54,$F$2:$G$48,2,FALSE)+ROW()-2)),\"\")","v":{"$error":"#N/A"}},{"$f":"IF(INDIRECT(\"c\" & (VLOOKUP(Rebalance!$D$55,$F$2:$G$48,2,FALSE)+ROW()-2))=Rebalance!$D$55,INDIRECT(\"a\" & (VLOOKUP(Rebalance!$D$55,$F$2:$G$48,2,FALSE)+ROW()-2)),\"\")","v":{"$error":"#N/A"}},{"$f":"IF(INDIRECT(\"c\" & (VLOOKUP(Rebalance!$D$56,$F$2:$G$48,2,FALSE)+ROW()-2))=Rebalance!$D$56,INDIRECT(\"a\" & (VLOOKUP(Rebalance!$D$56,$F$2:$G$48,2,FALSE)+ROW()-2)),\"\")","v":{"$error":"#N/A"}},{"$f":"IF(INDIRECT(\"c\" & (VLOOKUP(Rebalance!$D$57,$F$2:$G$48,2,FALSE)+ROW()-2))=Rebalance!$D$57,INDIRECT(\"a\" & (VLOOKUP(Rebalance!$D$57,$F$2:$G$48,2,FALSE)+ROW()-2)),\"\")","v":{"$error":"#N/A"}},{"$f":"IF(INDIRECT(\"c\" & (VLOOKUP(Rebalance!$D$58,$F$2:$G$48,2,FALSE)+ROW()-2))=Rebalance!$D$58,INDIRECT(\"a\" & (VLOOKUP(Rebalance!$D$58,$F$2:$G$48,2,FALSE)+ROW()-2)),\"\")","v":{"$error":"#N/A"}},{"$f":"IF(INDIRECT(\"c\" & (VLOOKUP(Rebalance!$D$59,$F$2:$G$48,2,FALSE)+ROW()-2))=Rebalance!$D$59,INDIRECT(\"a\" & (VLOOKUP(Rebalance!$D$59,$F$2:$G$48,2,FALSE)+ROW()-2)),\"\")","v":{"$error":"#N/A"}},{"$f":"IF(INDIRECT(\"c\" & (VLOOKUP(Rebalance!$D$60,$F$2:$G$48,2,FALSE)+ROW()-2))=Rebalance!$D$60,INDIRECT(\"a\" & (VLOOKUP(Rebalance!$D$60,$F$2:$G$48,2,FALSE)+ROW()-2)),\"\")","v":{"$error":"#N/A"}},{"$f":"IF(INDIRECT(\"c\" & (VLOOKUP(Rebalance!$D$61,$F$2:$G$48,2,FALSE)+ROW()-2))=Rebalance!$D$61,INDIRECT(\"a\" & (VLOOKUP(Rebalance!$D$61,$F$2:$G$48,2,FALSE)+ROW()-2)),\"\")","v":{"$error":"#N/A"}},{"$f":"IF(INDIRECT(\"c\" & (VLOOKUP(Rebalance!$D$62,$F$2:$G$48,2,FALSE)+ROW()-2))=Rebalance!$D$62,INDIRECT(\"a\" & (VLOOKUP(Rebalance!$D$62,$F$2:$G$48,2,FALSE)+ROW()-2)),\"\")","v":{"$error":"#N/A"}},{"$f":"IF(INDIRECT(\"c\" & (VLOOKUP(Rebalance!$D$63,$F$2:$G$48,2,FALSE)+ROW()-2))=Rebalance!$D$63,INDIRECT(\"a\" & (VLOOKUP(Rebalance!$D$63,$F$2:$G$48,2,FALSE)+ROW()-2)),\"\")","v":{"$error":"#N/A"}},{"$f":"IF(INDIRECT(\"c\" & (VLOOKUP(Rebalance!$D$64,$F$2:$G$48,2,FALSE)+ROW()-2))=Rebalance!$D$64,INDIRECT(\"a\" & (VLOOKUP(Rebalance!$D$64,$F$2:$G$48,2,FALSE)+ROW()-2)),\"\")","v":{"$error":"#N/A"}},{"$f":"IF(INDIRECT(\"c\" & (VLOOKUP(Rebalance!$D$65,$F$2:$G$48,2,FALSE)+ROW()-2))=Rebalance!$D$65,INDIRECT(\"a\" & (VLOOKUP(Rebalance!$D$65,$F$2:$G$48,2,FALSE)+ROW()-2)),\"\")","v":{"$error":"#N/A"}},{"$f":"IF(INDIRECT(\"c\" & (VLOOKUP(Rebalance!$D$66,$F$2:$G$48,2,FALSE)+ROW()-2))=Rebalance!$D$66,INDIRECT(\"a\" & (VLOOKUP(Rebalance!$D$66,$F$2:$G$48,2,FALSE)+ROW()-2)),\"\")","v":{"$error":"#N/A"}}]
["Coronation Global Emerging Markets Flexible [ZAR] Fund P","CGEMB4","Coronation Management Company",{"$f":"ROW()","v":229},null,null,{"$f":"VLOOKUP(F229,$C$2:$D$599,2,FALSE)","v":{"$error":"#N/A"}},{"$f":"IF(INDIRECT(\"c\" & (VLOOKUP(Rebalance!$D$26,$F$2:$G$48,2,FALSE)+ROW()-2))=Rebalance!$D$26,INDIRECT(\"a\" & (VLOOKUP(Rebalance!$D$26,$F$2:$G$48,2,FALSE)+ROW()-2)),\"\")","v":{"$error":"#N/A"}},{"$f":"IF(INDIRECT(\"c\" & (VLOOKUP(Rebalance!$D$27,$F$2:$G$48,2,FALSE)+ROW()-2))=Rebalance!$D$27,INDIRECT(\"a\" & (VLOOKUP(Rebalance!$D$27,$F$2:$G$48,2,FALSE)+ROW()-2)),\"\")","v":{"$error":"#N/A"}},{"$f":"IF(INDIRECT(\"c\" & (VLOOKUP(Rebalance!$D$28,$F$2:$G$48,2,FALSE)+ROW()-2))=Rebalance!$D$28,INDIRECT(\"a\" & (VLOOKUP(Rebalance!$D$28,$F$2:$G$48,2,FALSE)+ROW()-2)),\"\")","v":{"$error":"#N/A"}},{"$f":"IF(INDIRECT(\"c\" & (VLOOKUP(Rebalance!$D$29,$F$2:$G$48,2,FALSE)+ROW()-2))=Rebalance!$D$29,INDIRECT(\"a\" & (VLOOKUP(Rebalance!$D$29,$F$2:$G$48,2,FALSE)+ROW()-2)),\"\")","v":{"$error":"#N/A"}},{"$f":"IF(INDIRECT(\"c\" & (VLOOKUP(Rebalance!$D$30,$F$2:$G$48,2,FALSE)+ROW()-2))=Rebalance!$D$30,INDIRECT(\"a\" & (VLOOKUP(Rebalance!$D$30,$F$2:$G$48,2,FALSE)+ROW()-2)),\"\")","v":{"$error":"#N/A"}},{"$f":"IF(INDIRECT(\"c\" & (VLOOKUP(Rebalance!$D$31,$F$2:$G$48,2,FALSE)+ROW()-2))=Rebalance!$D$31,INDIRECT(\"a\" & (VLOOKUP(Rebalance!$D$31,$F$2:$G$48,2,FALSE)+ROW()-2)),\"\")","v":{"$error":"#N/A"}},{"$f":"IF(INDIRECT(\"c\" & (VLOOKUP(Rebalance!$D$32,$F$2:$G$48,2,FALSE)+ROW()-2))=Rebalance!$D$32,INDIRECT(\"a\" & (VLOOKUP(Rebalance!$D$32,$F$2:$G$48,2,FALSE)+ROW()-2)),\"\")","v":{"$error":"#N/A"}},{"$f":"IF(INDIRECT(\"c\" & (VLOOKUP(Rebalance!$D$33,$F$2:$G$48,2,FALSE)+ROW()-2))=Rebalance!$D$33,INDIRECT(\"a\" & (VLOOKUP(Rebalance!$D$33,$F$2:$G$48,2,FALSE)+ROW()-2)),\"\")","v":{"$error":"#N/A"}},{"$f":"IF(INDIRECT(\"c\" & (VLOOKUP(Rebalance!$D$34,$F$2:$G$48,2,FALSE)+ROW()-2))=Rebalance!$D$34,INDIRECT(\"a\" & (VLOOKUP(Rebalance!$D$34,$F$2:$G$48,2,FALSE)+ROW()-2)),\"\")","v":{"$error":"#N/A"}},{"$f":"IF(INDIRECT(\"c\" & (VLOOKUP(Rebalance!$D$35,$F$2:$G$48,2,FALSE)+ROW()-2))=Rebalance!$D$35,INDIRECT(\"a\" & (VLOOKUP(Rebalance!$D$35,$F$2:$G$48,2,FALSE)+ROW()-2)),\"\")","v":{"$error":"#N/A"}},{"$f":"IF(INDIRECT(\"c\" & (VLOOKUP(Rebalance!$D$36,$F$2:$G$48,2,FALSE)+ROW()-2))=Rebalance!$D$36,INDIRECT(\"a\" & (VLOOKUP(Rebalance!$D$36,$F$2:$G$48,2,FALSE)+ROW()-2)),\"\")","v":{"$error":"#N/A"}},{"$f":"IF(INDIRECT(\"c\" & (VLOOKUP(Rebalance!$D$37,$F$2:$G$48,2,FALSE)+ROW()-2))=Rebalance!$D$37,INDIRECT(\"a\" & (VLOOKUP(Rebalance!$D$37,$F$2:$G$48,2,FALSE)+ROW()-2)),\"\")","v":{"$error":"#N/A"}},{"$f":"IF(INDIRECT(\"c\" & (VLOOKUP(Rebalance!$D$38,$F$2:$G$48,2,FALSE)+ROW()-2))=Rebalance!$D$38,INDIRECT(\"a\" & (VLOOKUP(Rebalance!$D$38,$F$2:$G$48,2,FALSE)+ROW()-2)),\"\")","v":{"$error":"#N/A"}},{"$f":"IF(INDIRECT(\"c\" & (VLOOKUP(Rebalance!$D$39,$F$2:$G$48,2,FALSE)+ROW()-2))=Rebalance!$D$39,INDIRECT(\"a\" & (VLOOKUP(Rebalance!$D$39,$F$2:$G$48,2,FALSE)+ROW()-2)),\"\")","v":{"$error":"#N/A"}},{"$f":"IF(INDIRECT(\"c\" & (VLOOKUP(Rebalance!$D$40,$F$2:$G$48,2,FALSE)+ROW()-2))=Rebalance!$D$40,INDIRECT(\"a\" & (VLOOKUP(Rebalance!$D$40,$F$2:$G$48,2,FALSE)+ROW()-2)),\"\")","v":{"$error":"#N/A"}},{"$f":"IF(INDIRECT(\"c\" & (VLOOKUP(Rebalance!$D$52,$F$2:$G$48,2,FALSE)+ROW()-2))=Rebalance!$D$52,INDIRECT(\"a\" & (VLOOKUP(Rebalance!$D$52,$F$2:$G$48,2,FALSE)+ROW()-2)),\"\")","v":{"$error":"#N/A"}},{"$f":"IF(INDIRECT(\"c\" & (VLOOKUP(Rebalance!$D$53,$F$2:$G$48,2,FALSE)+ROW()-2))=Rebalance!$D$53,INDIRECT(\"a\" & (VLOOKUP(Rebalance!$D$53,$F$2:$G$48,2,FALSE)+ROW()-2)),\"\")","v":{"$error":"#N/A"}},{"$f":"IF(INDIRECT(\"c\" & (VLOOKUP(Rebalance!$D$54,$F$2:$G$48,2,FALSE)+ROW()-2))=Rebalance!$D$54,INDIRECT(\"a\" & (VLOOKUP(Rebalance!$D$54,$F$2:$G$48,2,FALSE)+ROW()-2)),\"\")","v":{"$error":"#N/A"}},{"$f":"IF(INDIRECT(\"c\" & (VLOOKUP(Rebalance!$D$55,$F$2:$G$48,2,FALSE)+ROW()-2))=Rebalance!$D$55,INDIRECT(\"a\" & (VLOOKUP(Rebalance!$D$55,$F$2:$G$48,2,FALSE)+ROW()-2)),\"\")","v":{"$error":"#N/A"}},{"$f":"IF(INDIRECT(\"c\" & (VLOOKUP(Rebalance!$D$56,$F$2:$G$48,2,FALSE)+ROW()-2))=Rebalance!$D$56,INDIRECT(\"a\" & (VLOOKUP(Rebalance!$D$56,$F$2:$G$48,2,FALSE)+ROW()-2)),\"\")","v":{"$error":"#N/A"}},{"$f":"IF(INDIRECT(\"c\" & (VLOOKUP(Rebalance!$D$57,$F$2:$G$48,2,FALSE)+ROW()-2))=Rebalance!$D$57,INDIRECT(\"a\" & (VLOOKUP(Rebalance!$D$57,$F$2:$G$48,2,FALSE)+ROW()-2)),\"\")","v":{"$error":"#N/A"}},{"$f":"IF(INDIRECT(\"c\" & (VLOOKUP(Rebalance!$D$58,$F$2:$G$48,2,FALSE)+ROW()-2))=Rebalance!$D$58,INDIRECT(\"a\" & (VLOOKUP(Rebalance!$D$58,$F$2:$G$48,2,FALSE)+ROW()-2)),\"\")","v":{"$error":"#N/A"}},{"$f":"IF(INDIRECT(\"c\" & (VLOOKUP(Rebalance!$D$59,$F$2:$G$48,2,FALSE)+ROW()-2))=Rebalance!$D$59,INDIRECT(\"a\" & (VLOOKUP(Rebalance!$D$59,$F$2:$G$48,2,FALSE)+ROW()-2)),\"\")","v":{"$error":"#N/A"}},{"$f":"IF(INDIRECT(\"c\" & (VLOOKUP(Rebalance!$D$60,$F$2:$G$48,2,FALSE)+ROW()-2))=Rebalance!$D$60,INDIRECT(\"a\" & (VLOOKUP(Rebalance!$D$60,$F$2:$G$48,2,FALSE)+ROW()-2)),\"\")","v":{"$error":"#N/A"}},{"$f":"IF(INDIRECT(\"c\" & (VLOOKUP(Rebalance!$D$61,$F$2:$G$48,2,FALSE)+ROW()-2))=Rebalance!$D$61,INDIRECT(\"a\" & (VLOOKUP(Rebalance!$D$61,$F$2:$G$48,2,FALSE)+ROW()-2)),\"\")","v":{"$error":"#N/A"}},{"$f":"IF(INDIRECT(\"c\" & (VLOOKUP(Rebalance!$D$62,$F$2:$G$48,2,FALSE)+ROW()-2))=Rebalance!$D$62,INDIRECT(\"a\" & (VLOOKUP(Rebalance!$D$62,$F$2:$G$48,2,FALSE)+ROW()-2)),\"\")","v":{"$error":"#N/A"}},{"$f":"IF(INDIRECT(\"c\" & (VLOOKUP(Rebalance!$D$63,$F$2:$G$48,2,FALSE)+ROW()-2))=Rebalance!$D$63,INDIRECT(\"a\" & (VLOOKUP(Rebalance!$D$63,$F$2:$G$48,2,FALSE)+ROW()-2)),\"\")","v":{"$error":"#N/A"}},{"$f":"IF(INDIRECT(\"c\" & (VLOOKUP(Rebalance!$D$64,$F$2:$G$48,2,FALSE)+ROW()-2))=Rebalance!$D$64,INDIRECT(\"a\" & (VLOOKUP(Rebalance!$D$64,$F$2:$G$48,2,FALSE)+ROW()-2)),\"\")","v":{"$error":"#N/A"}},{"$f":"IF(INDIRECT(\"c\" & (VLOOKUP(Rebalance!$D$65,$F$2:$G$48,2,FALSE)+ROW()-2))=Rebalance!$D$65,INDIRECT(\"a\" & (VLOOKUP(Rebalance!$D$65,$F$2:$G$48,2,FALSE)+ROW()-2)),\"\")","v":{"$error":"#N/A"}},{"$f":"IF(INDIRECT(\"c\" & (VLOOKUP(Rebalance!$D$66,$F$2:$G$48,2,FALSE)+ROW()-2))=Rebalance!$D$66,INDIRECT(\"a\" & (VLOOKUP(Rebalance!$D$66,$F$2:$G$48,2,FALSE)+ROW()-2)),\"\")","v":{"$error":"#N/A"}}]
["Coronation Global Equity Select [ZAR] Feeder Fund P","CGEFP","Coronation Management Company",{"$f":"ROW()","v":230},null,null,{"$f":"VLOOKUP(F230,$C$2:$D$599,2,FALSE)","v":{"$error":"#N/A"}},{"$f":"IF(INDIRECT(\"c\" & (VLOOKUP(Rebalance!$D$26,$F$2:$G$48,2,FALSE)+ROW()-2))=Rebalance!$D$26,INDIRECT(\"a\" & (VLOOKUP(Rebalance!$D$26,$F$2:$G$48,2,FALSE)+ROW()-2)),\"\")","v":{"$error":"#N/A"}},{"$f":"IF(INDIRECT(\"c\" & (VLOOKUP(Rebalance!$D$27,$F$2:$G$48,2,FALSE)+ROW()-2))=Rebalance!$D$27,INDIRECT(\"a\" & (VLOOKUP(Rebalance!$D$27,$F$2:$G$48,2,FALSE)+ROW()-2)),\"\")","v":{"$error":"#N/A"}},{"$f":"IF(INDIRECT(\"c\" & (VLOOKUP(Rebalance!$D$28,$F$2:$G$48,2,FALSE)+ROW()-2))=Rebalance!$D$28,INDIRECT(\"a\" & (VLOOKUP(Rebalance!$D$28,$F$2:$G$48,2,FALSE)+ROW()-2)),\"\")","v":{"$error":"#N/A"}},{"$f":"IF(INDIRECT(\"c\" & (VLOOKUP(Rebalance!$D$29,$F$2:$G$48,2,FALSE)+ROW()-2))=Rebalance!$D$29,INDIRECT(\"a\" & (VLOOKUP(Rebalance!$D$29,$F$2:$G$48,2,FALSE)+ROW()-2)),\"\")","v":{"$error":"#N/A"}},{"$f":"IF(INDIRECT(\"c\" & (VLOOKUP(Rebalance!$D$30,$F$2:$G$48,2,FALSE)+ROW()-2))=Rebalance!$D$30,INDIRECT(\"a\" & (VLOOKUP(Rebalance!$D$30,$F$2:$G$48,2,FALSE)+ROW()-2)),\"\")","v":{"$error":"#N/A"}},{"$f":"IF(INDIRECT(\"c\" & (VLOOKUP(Rebalance!$D$31,$F$2:$G$48,2,FALSE)+ROW()-2))=Rebalance!$D$31,INDIRECT(\"a\" & (VLOOKUP(Rebalance!$D$31,$F$2:$G$48,2,FALSE)+ROW()-2)),\"\")","v":{"$error":"#N/A"}},{"$f":"IF(INDIRECT(\"c\" & (VLOOKUP(Rebalance!$D$32,$F$2:$G$48,2,FALSE)+ROW()-2))=Rebalance!$D$32,INDIRECT(\"a\" & (VLOOKUP(Rebalance!$D$32,$F$2:$G$48,2,FALSE)+ROW()-2)),\"\")","v":{"$error":"#N/A"}},{"$f":"IF(INDIRECT(\"c\" & (VLOOKUP(Rebalance!$D$33,$F$2:$G$48,2,FALSE)+ROW()-2))=Rebalance!$D$33,INDIRECT(\"a\" & (VLOOKUP(Rebalance!$D$33,$F$2:$G$48,2,FALSE)+ROW()-2)),\"\")","v":{"$error":"#N/A"}},{"$f":"IF(INDIRECT(\"c\" & (VLOOKUP(Rebalance!$D$34,$F$2:$G$48,2,FALSE)+ROW()-2))=Rebalance!$D$34,INDIRECT(\"a\" & (VLOOKUP(Rebalance!$D$34,$F$2:$G$48,2,FALSE)+ROW()-2)),\"\")","v":{"$error":"#N/A"}},{"$f":"IF(INDIRECT(\"c\" & (VLOOKUP(Rebalance!$D$35,$F$2:$G$48,2,FALSE)+ROW()-2))=Rebalance!$D$35,INDIRECT(\"a\" & (VLOOKUP(Rebalance!$D$35,$F$2:$G$48,2,FALSE)+ROW()-2)),\"\")","v":{"$error":"#N/A"}},{"$f":"IF(INDIRECT(\"c\" & (VLOOKUP(Rebalance!$D$36,$F$2:$G$48,2,FALSE)+ROW()-2))=Rebalance!$D$36,INDIRECT(\"a\" & (VLOOKUP(Rebalance!$D$36,$F$2:$G$48,2,FALSE)+ROW()-2)),\"\")","v":{"$error":"#N/A"}},{"$f":"IF(INDIRECT(\"c\" & (VLOOKUP(Rebalance!$D$37,$F$2:$G$48,2,FALSE)+ROW()-2))=Rebalance!$D$37,INDIRECT(\"a\" & (VLOOKUP(Rebalance!$D$37,$F$2:$G$48,2,FALSE)+ROW()-2)),\"\")","v":{"$error":"#N/A"}},{"$f":"IF(INDIRECT(\"c\" & (VLOOKUP(Rebalance!$D$38,$F$2:$G$48,2,FALSE)+ROW()-2))=Rebalance!$D$38,INDIRECT(\"a\" & (VLOOKUP(Rebalance!$D$38,$F$2:$G$48,2,FALSE)+ROW()-2)),\"\")","v":{"$error":"#N/A"}},{"$f":"IF(INDIRECT(\"c\" & (VLOOKUP(Rebalance!$D$39,$F$2:$G$48,2,FALSE)+ROW()-2))=Rebalance!$D$39,INDIRECT(\"a\" & (VLOOKUP(Rebalance!$D$39,$F$2:$G$48,2,FALSE)+ROW()-2)),\"\")","v":{"$error":"#N/A"}},{"$f":"IF(INDIRECT(\"c\" & (VLOOKUP(Rebalance!$D$40,$F$2:$G$48,2,FALSE)+ROW()-2))=Rebalance!$D$40,INDIRECT(\"a\" & (VLOOKUP(Rebalance!$D$40,$F$2:$G$48,2,FALSE)+ROW()-2)),\"\")","v":{"$error":"#N/A"}},{"$f":"IF(INDIRECT(\"c\" & (VLOOKUP(Rebalance!$D$52,$F$2:$G$48,2,FALSE)+ROW()-2))=Rebalance!$D$52,INDIRECT(\"a\" & (VLOOKUP(Rebalance!$D$52,$F$2:$G$48,2,FALSE)+ROW()-2)),\"\")","v":{"$error":"#N/A"}},{"$f":"IF(INDIRECT(\"c\" & (VLOOKUP(Rebalance!$D$53,$F$2:$G$48,2,FALSE)+ROW()-2))=Rebalance!$D$53,INDIRECT(\"a\" & (VLOOKUP(Rebalance!$D$53,$F$2:$G$48,2,FALSE)+ROW()-2)),\"\")","v":{"$error":"#N/A"}},{"$f":"IF(INDIRECT(\"c\" & (VLOOKUP(Rebalance!$D$54,$F$2:$G$48,2,FALSE)+ROW()-2))=Rebalance!$D$54,INDIRECT(\"a\" & (VLOOKUP(Rebalance!$D$54,$F$2:$G$48,2,FALSE)+ROW()-2)),\"\")","v":{"$error":"#N/A"}},{"$f":"IF(INDIRECT(\"c\" & (VLOOKUP(Rebalance!$D$55,$F$2:$G$48,2,FALSE)+ROW()-2))=Rebalance!$D$55,INDIRECT(\"a\" & (VLOOKUP(Rebalance!$D$55,$F$2:$G$48,2,FALSE)+ROW()-2)),\"\")","v":{"$error":"#N/A"}},{"$f":"IF(INDIRECT(\"c\" & (VLOOKUP(Rebalance!$D$56,$F$2:$G$48,2,FALSE)+ROW()-2))=Rebalance!$D$56,INDIRECT(\"a\" & (VLOOKUP(Rebalance!$D$56,$F$2:$G$48,2,FALSE)+ROW()-2)),\"\")","v":{"$error":"#N/A"}},{"$f":"IF(INDIRECT(\"c\" & (VLOOKUP(Rebalance!$D$57,$F$2:$G$48,2,FALSE)+ROW()-2))=Rebalance!$D$57,INDIRECT(\"a\" & (VLOOKUP(Rebalance!$D$57,$F$2:$G$48,2,FALSE)+ROW()-2)),\"\")","v":{"$error":"#N/A"}},{"$f":"IF(INDIRECT(\"c\" & (VLOOKUP(Rebalance!$D$58,$F$2:$G$48,2,FALSE)+ROW()-2))=Rebalance!$D$58,INDIRECT(\"a\" & (VLOOKUP(Rebalance!$D$58,$F$2:$G$48,2,FALSE)+ROW()-2)),\"\")","v":{"$error":"#N/A"}},{"$f":"IF(INDIRECT(\"c\" & (VLOOKUP(Rebalance!$D$59,$F$2:$G$48,2,FALSE)+ROW()-2))=Rebalance!$D$59,INDIRECT(\"a\" & (VLOOKUP(Rebalance!$D$59,$F$2:$G$48,2,FALSE)+ROW()-2)),\"\")","v":{"$error":"#N/A"}},{"$f":"IF(INDIRECT(\"c\" & (VLOOKUP(Rebalance!$D$60,$F$2:$G$48,2,FALSE)+ROW()-2))=Rebalance!$D$60,INDIRECT(\"a\" & (VLOOKUP(Rebalance!$D$60,$F$2:$G$48,2,FALSE)+ROW()-2)),\"\")","v":{"$error":"#N/A"}},{"$f":"IF(INDIRECT(\"c\" & (VLOOKUP(Rebalance!$D$61,$F$2:$G$48,2,FALSE)+ROW()-2))=Rebalance!$D$61,INDIRECT(\"a\" & (VLOOKUP(Rebalance!$D$61,$F$2:$G$48,2,FALSE)+ROW()-2)),\"\")","v":{"$error":"#N/A"}},{"$f":"IF(INDIRECT(\"c\" & (VLOOKUP(Rebalance!$D$62,$F$2:$G$48,2,FALSE)+ROW()-2))=Rebalance!$D$62,INDIRECT(\"a\" & (VLOOKUP(Rebalance!$D$62,$F$2:$G$48,2,FALSE)+ROW()-2)),\"\")","v":{"$error":"#N/A"}},{"$f":"IF(INDIRECT(\"c\" & (VLOOKUP(Rebalance!$D$63,$F$2:$G$48,2,FALSE)+ROW()-2))=Rebalance!$D$63,INDIRECT(\"a\" & (VLOOKUP(Rebalance!$D$63,$F$2:$G$48,2,FALSE)+ROW()-2)),\"\")","v":{"$error":"#N/A"}},{"$f":"IF(INDIRECT(\"c\" & (VLOOKUP(Rebalance!$D$64,$F$2:$G$48,2,FALSE)+ROW()-2))=Rebalance!$D$64,INDIRECT(\"a\" & (VLOOKUP(Rebalance!$D$64,$F$2:$G$48,2,FALSE)+ROW()-2)),\"\")","v":{"$error":"#N/A"}},{"$f":"IF(INDIRECT(\"c\" & (VLOOKUP(Rebalance!$D$65,$F$2:$G$48,2,FALSE)+ROW()-2))=Rebalance!$D$65,INDIRECT(\"a\" & (VLOOKUP(Rebalance!$D$65,$F$2:$G$48,2,FALSE)+ROW()-2)),\"\")","v":{"$error":"#N/A"}},{"$f":"IF(INDIRECT(\"c\" & (VLOOKUP(Rebalance!$D$66,$F$2:$G$48,2,FALSE)+ROW()-2))=Rebalance!$D$66,INDIRECT(\"a\" & (VLOOKUP(Rebalance!$D$66,$F$2:$G$48,2,FALSE)+ROW()-2)),\"\")","v":{"$error":"#N/A"}}]
["Coronation Global Managed (ZAR) Feeder Fund P","CGMB4","Coronation Management Company",{"$f":"ROW()","v":231},null,null,{"$f":"VLOOKUP(F231,$C$2:$D$599,2,FALSE)","v":{"$error":"#N/A"}},{"$f":"IF(INDIRECT(\"c\" & (VLOOKUP(Rebalance!$D$26,$F$2:$G$48,2,FALSE)+ROW()-2))=Rebalance!$D$26,INDIRECT(\"a\" & (VLOOKUP(Rebalance!$D$26,$F$2:$G$48,2,FALSE)+ROW()-2)),\"\")","v":{"$error":"#N/A"}},{"$f":"IF(INDIRECT(\"c\" & (VLOOKUP(Rebalance!$D$27,$F$2:$G$48,2,FALSE)+ROW()-2))=Rebalance!$D$27,INDIRECT(\"a\" & (VLOOKUP(Rebalance!$D$27,$F$2:$G$48,2,FALSE)+ROW()-2)),\"\")","v":{"$error":"#N/A"}},{"$f":"IF(INDIRECT(\"c\" & (VLOOKUP(Rebalance!$D$28,$F$2:$G$48,2,FALSE)+ROW()-2))=Rebalance!$D$28,INDIRECT(\"a\" & (VLOOKUP(Rebalance!$D$28,$F$2:$G$48,2,FALSE)+ROW()-2)),\"\")","v":{"$error":"#N/A"}},{"$f":"IF(INDIRECT(\"c\" & (VLOOKUP(Rebalance!$D$29,$F$2:$G$48,2,FALSE)+ROW()-2))=Rebalance!$D$29,INDIRECT(\"a\" & (VLOOKUP(Rebalance!$D$29,$F$2:$G$48,2,FALSE)+ROW()-2)),\"\")","v":{"$error":"#N/A"}},{"$f":"IF(INDIRECT(\"c\" & (VLOOKUP(Rebalance!$D$30,$F$2:$G$48,2,FALSE)+ROW()-2))=Rebalance!$D$30,INDIRECT(\"a\" & (VLOOKUP(Rebalance!$D$30,$F$2:$G$48,2,FALSE)+ROW()-2)),\"\")","v":{"$error":"#N/A"}},{"$f":"IF(INDIRECT(\"c\" & (VLOOKUP(Rebalance!$D$31,$F$2:$G$48,2,FALSE)+ROW()-2))=Rebalance!$D$31,INDIRECT(\"a\" & (VLOOKUP(Rebalance!$D$31,$F$2:$G$48,2,FALSE)+ROW()-2)),\"\")","v":{"$error":"#N/A"}},{"$f":"IF(INDIRECT(\"c\" & (VLOOKUP(Rebalance!$D$32,$F$2:$G$48,2,FALSE)+ROW()-2))=Rebalance!$D$32,INDIRECT(\"a\" & (VLOOKUP(Rebalance!$D$32,$F$2:$G$48,2,FALSE)+ROW()-2)),\"\")","v":{"$error":"#N/A"}},{"$f":"IF(INDIRECT(\"c\" & (VLOOKUP(Rebalance!$D$33,$F$2:$G$48,2,FALSE)+ROW()-2))=Rebalance!$D$33,INDIRECT(\"a\" & (VLOOKUP(Rebalance!$D$33,$F$2:$G$48,2,FALSE)+ROW()-2)),\"\")","v":{"$error":"#N/A"}},{"$f":"IF(INDIRECT(\"c\" & (VLOOKUP(Rebalance!$D$34,$F$2:$G$48,2,FALSE)+ROW()-2))=Rebalance!$D$34,INDIRECT(\"a\" & (VLOOKUP(Rebalance!$D$34,$F$2:$G$48,2,FALSE)+ROW()-2)),\"\")","v":{"$error":"#N/A"}},{"$f":"IF(INDIRECT(\"c\" & (VLOOKUP(Rebalance!$D$35,$F$2:$G$48,2,FALSE)+ROW()-2))=Rebalance!$D$35,INDIRECT(\"a\" & (VLOOKUP(Rebalance!$D$35,$F$2:$G$48,2,FALSE)+ROW()-2)),\"\")","v":{"$error":"#N/A"}},{"$f":"IF(INDIRECT(\"c\" & (VLOOKUP(Rebalance!$D$36,$F$2:$G$48,2,FALSE)+ROW()-2))=Rebalance!$D$36,INDIRECT(\"a\" & (VLOOKUP(Rebalance!$D$36,$F$2:$G$48,2,FALSE)+ROW()-2)),\"\")","v":{"$error":"#N/A"}},{"$f":"IF(INDIRECT(\"c\" & (VLOOKUP(Rebalance!$D$37,$F$2:$G$48,2,FALSE)+ROW()-2))=Rebalance!$D$37,INDIRECT(\"a\" & (VLOOKUP(Rebalance!$D$37,$F$2:$G$48,2,FALSE)+ROW()-2)),\"\")","v":{"$error":"#N/A"}},{"$f":"IF(INDIRECT(\"c\" & (VLOOKUP(Rebalance!$D$38,$F$2:$G$48,2,FALSE)+ROW()-2))=Rebalance!$D$38,INDIRECT(\"a\" & (VLOOKUP(Rebalance!$D$38,$F$2:$G$48,2,FALSE)+ROW()-2)),\"\")","v":{"$error":"#N/A"}},{"$f":"IF(INDIRECT(\"c\" & (VLOOKUP(Rebalance!$D$39,$F$2:$G$48,2,FALSE)+ROW()-2))=Rebalance!$D$39,INDIRECT(\"a\" & (VLOOKUP(Rebalance!$D$39,$F$2:$G$48,2,FALSE)+ROW()-2)),\"\")","v":{"$error":"#N/A"}},{"$f":"IF(INDIRECT(\"c\" & (VLOOKUP(Rebalance!$D$40,$F$2:$G$48,2,FALSE)+ROW()-2))=Rebalance!$D$40,INDIRECT(\"a\" & (VLOOKUP(Rebalance!$D$40,$F$2:$G$48,2,FALSE)+ROW()-2)),\"\")","v":{"$error":"#N/A"}},{"$f":"IF(INDIRECT(\"c\" & (VLOOKUP(Rebalance!$D$52,$F$2:$G$48,2,FALSE)+ROW()-2))=Rebalance!$D$52,INDIRECT(\"a\" & (VLOOKUP(Rebalance!$D$52,$F$2:$G$48,2,FALSE)+ROW()-2)),\"\")","v":{"$error":"#N/A"}},{"$f":"IF(INDIRECT(\"c\" & (VLOOKUP(Rebalance!$D$53,$F$2:$G$48,2,FALSE)+ROW()-2))=Rebalance!$D$53,INDIRECT(\"a\" & (VLOOKUP(Rebalance!$D$53,$F$2:$G$48,2,FALSE)+ROW()-2)),\"\")","v":{"$error":"#N/A"}},{"$f":"IF(INDIRECT(\"c\" & (VLOOKUP(Rebalance!$D$54,$F$2:$G$48,2,FALSE)+ROW()-2))=Rebalance!$D$54,INDIRECT(\"a\" & (VLOOKUP(Rebalance!$D$54,$F$2:$G$48,2,FALSE)+ROW()-2)),\"\")","v":{"$error":"#N/A"}},{"$f":"IF(INDIRECT(\"c\" & (VLOOKUP(Rebalance!$D$55,$F$2:$G$48,2,FALSE)+ROW()-2))=Rebalance!$D$55,INDIRECT(\"a\" & (VLOOKUP(Rebalance!$D$55,$F$2:$G$48,2,FALSE)+ROW()-2)),\"\")","v":{"$error":"#N/A"}},{"$f":"IF(INDIRECT(\"c\" & (VLOOKUP(Rebalance!$D$56,$F$2:$G$48,2,FALSE)+ROW()-2))=Rebalance!$D$56,INDIRECT(\"a\" & (VLOOKUP(Rebalance!$D$56,$F$2:$G$48,2,FALSE)+ROW()-2)),\"\")","v":{"$error":"#N/A"}},{"$f":"IF(INDIRECT(\"c\" & (VLOOKUP(Rebalance!$D$57,$F$2:$G$48,2,FALSE)+ROW()-2))=Rebalance!$D$57,INDIRECT(\"a\" & (VLOOKUP(Rebalance!$D$57,$F$2:$G$48,2,FALSE)+ROW()-2)),\"\")","v":{"$error":"#N/A"}},{"$f":"IF(INDIRECT(\"c\" & (VLOOKUP(Rebalance!$D$58,$F$2:$G$48,2,FALSE)+ROW()-2))=Rebalance!$D$58,INDIRECT(\"a\" & (VLOOKUP(Rebalance!$D$58,$F$2:$G$48,2,FALSE)+ROW()-2)),\"\")","v":{"$error":"#N/A"}},{"$f":"IF(INDIRECT(\"c\" & (VLOOKUP(Rebalance!$D$59,$F$2:$G$48,2,FALSE)+ROW()-2))=Rebalance!$D$59,INDIRECT(\"a\" & (VLOOKUP(Rebalance!$D$59,$F$2:$G$48,2,FALSE)+ROW()-2)),\"\")","v":{"$error":"#N/A"}},{"$f":"IF(INDIRECT(\"c\" & (VLOOKUP(Rebalance!$D$60,$F$2:$G$48,2,FALSE)+ROW()-2))=Rebalance!$D$60,INDIRECT(\"a\" & (VLOOKUP(Rebalance!$D$60,$F$2:$G$48,2,FALSE)+ROW()-2)),\"\")","v":{"$error":"#N/A"}},{"$f":"IF(INDIRECT(\"c\" & (VLOOKUP(Rebalance!$D$61,$F$2:$G$48,2,FALSE)+ROW()-2))=Rebalance!$D$61,INDIRECT(\"a\" & (VLOOKUP(Rebalance!$D$61,$F$2:$G$48,2,FALSE)+ROW()-2)),\"\")","v":{"$error":"#N/A"}},{"$f":"IF(INDIRECT(\"c\" & (VLOOKUP(Rebalance!$D$62,$F$2:$G$48,2,FALSE)+ROW()-2))=Rebalance!$D$62,INDIRECT(\"a\" & (VLOOKUP(Rebalance!$D$62,$F$2:$G$48,2,FALSE)+ROW()-2)),\"\")","v":{"$error":"#N/A"}},{"$f":"IF(INDIRECT(\"c\" & (VLOOKUP(Rebalance!$D$63,$F$2:$G$48,2,FALSE)+ROW()-2))=Rebalance!$D$63,INDIRECT(\"a\" & (VLOOKUP(Rebalance!$D$63,$F$2:$G$48,2,FALSE)+ROW()-2)),\"\")","v":{"$error":"#N/A"}},{"$f":"IF(INDIRECT(\"c\" & (VLOOKUP(Rebalance!$D$64,$F$2:$G$48,2,FALSE)+ROW()-2))=Rebalance!$D$64,INDIRECT(\"a\" & (VLOOKUP(Rebalance!$D$64,$F$2:$G$48,2,FALSE)+ROW()-2)),\"\")","v":{"$error":"#N/A"}},{"$f":"IF(INDIRECT(\"c\" & (VLOOKUP(Rebalance!$D$65,$F$2:$G$48,2,FALSE)+ROW()-2))=Rebalance!$D$65,INDIRECT(\"a\" & (VLOOKUP(Rebalance!$D$65,$F$2:$G$48,2,FALSE)+ROW()-2)),\"\")","v":{"$error":"#N/A"}},{"$f":"IF(INDIRECT(\"c\" & (VLOOKUP(Rebalance!$D$66,$F$2:$G$48,2,FALSE)+ROW()-2))=Rebalance!$D$66,INDIRECT(\"a\" & (VLOOKUP(Rebalance!$D$66,$F$2:$G$48,2,FALSE)+ROW()-2)),\"\")","v":{"$error":"#N/A"}}]
["Coronation Global Opportunity Equity Feeder Fund P","CWEB4","Coronation Management Company",{"$f":"ROW()","v":232},null,null,{"$f":"VLOOKUP(F232,$C$2:$D$599,2,FALSE)","v":{"$error":"#N/A"}},{"$f":"IF(INDIRECT(\"c\" & (VLOOKUP(Rebalance!$D$26,$F$2:$G$48,2,FALSE)+ROW()-2))=Rebalance!$D$26,INDIRECT(\"a\" & (VLOOKUP(Rebalance!$D$26,$F$2:$G$48,2,FALSE)+ROW()-2)),\"\")","v":{"$error":"#N/A"}},{"$f":"IF(INDIRECT(\"c\" & (VLOOKUP(Rebalance!$D$27,$F$2:$G$48,2,FALSE)+ROW()-2))=Rebalance!$D$27,INDIRECT(\"a\" & (VLOOKUP(Rebalance!$D$27,$F$2:$G$48,2,FALSE)+ROW()-2)),\"\")","v":{"$error":"#N/A"}},{"$f":"IF(INDIRECT(\"c\" & (VLOOKUP(Rebalance!$D$28,$F$2:$G$48,2,FALSE)+ROW()-2))=Rebalance!$D$28,INDIRECT(\"a\" & (VLOOKUP(Rebalance!$D$28,$F$2:$G$48,2,FALSE)+ROW()-2)),\"\")","v":{"$error":"#N/A"}},{"$f":"IF(INDIRECT(\"c\" & (VLOOKUP(Rebalance!$D$29,$F$2:$G$48,2,FALSE)+ROW()-2))=Rebalance!$D$29,INDIRECT(\"a\" & (VLOOKUP(Rebalance!$D$29,$F$2:$G$48,2,FALSE)+ROW()-2)),\"\")","v":{"$error":"#N/A"}},{"$f":"IF(INDIRECT(\"c\" & (VLOOKUP(Rebalance!$D$30,$F$2:$G$48,2,FALSE)+ROW()-2))=Rebalance!$D$30,INDIRECT(\"a\" & (VLOOKUP(Rebalance!$D$30,$F$2:$G$48,2,FALSE)+ROW()-2)),\"\")","v":{"$error":"#N/A"}},{"$f":"IF(INDIRECT(\"c\" & (VLOOKUP(Rebalance!$D$31,$F$2:$G$48,2,FALSE)+ROW()-2))=Rebalance!$D$31,INDIRECT(\"a\" & (VLOOKUP(Rebalance!$D$31,$F$2:$G$48,2,FALSE)+ROW()-2)),\"\")","v":{"$error":"#N/A"}},{"$f":"IF(INDIRECT(\"c\" & (VLOOKUP(Rebalance!$D$32,$F$2:$G$48,2,FALSE)+ROW()-2))=Rebalance!$D$32,INDIRECT(\"a\" & (VLOOKUP(Rebalance!$D$32,$F$2:$G$48,2,FALSE)+ROW()-2)),\"\")","v":{"$error":"#N/A"}},{"$f":"IF(INDIRECT(\"c\" & (VLOOKUP(Rebalance!$D$33,$F$2:$G$48,2,FALSE)+ROW()-2))=Rebalance!$D$33,INDIRECT(\"a\" & (VLOOKUP(Rebalance!$D$33,$F$2:$G$48,2,FALSE)+ROW()-2)),\"\")","v":{"$error":"#N/A"}},{"$f":"IF(INDIRECT(\"c\" & (VLOOKUP(Rebalance!$D$34,$F$2:$G$48,2,FALSE)+ROW()-2))=Rebalance!$D$34,INDIRECT(\"a\" & (VLOOKUP(Rebalance!$D$34,$F$2:$G$48,2,FALSE)+ROW()-2)),\"\")","v":{"$error":"#N/A"}},{"$f":"IF(INDIRECT(\"c\" & (VLOOKUP(Rebalance!$D$35,$F$2:$G$48,2,FALSE)+ROW()-2))=Rebalance!$D$35,INDIRECT(\"a\" & (VLOOKUP(Rebalance!$D$35,$F$2:$G$48,2,FALSE)+ROW()-2)),\"\")","v":{"$error":"#N/A"}},{"$f":"IF(INDIRECT(\"c\" & (VLOOKUP(Rebalance!$D$36,$F$2:$G$48,2,FALSE)+ROW()-2))=Rebalance!$D$36,INDIRECT(\"a\" & (VLOOKUP(Rebalance!$D$36,$F$2:$G$48,2,FALSE)+ROW()-2)),\"\")","v":{"$error":"#N/A"}},{"$f":"IF(INDIRECT(\"c\" & (VLOOKUP(Rebalance!$D$37,$F$2:$G$48,2,FALSE)+ROW()-2))=Rebalance!$D$37,INDIRECT(\"a\" & (VLOOKUP(Rebalance!$D$37,$F$2:$G$48,2,FALSE)+ROW()-2)),\"\")","v":{"$error":"#N/A"}},{"$f":"IF(INDIRECT(\"c\" & (VLOOKUP(Rebalance!$D$38,$F$2:$G$48,2,FALSE)+ROW()-2))=Rebalance!$D$38,INDIRECT(\"a\" & (VLOOKUP(Rebalance!$D$38,$F$2:$G$48,2,FALSE)+ROW()-2)),\"\")","v":{"$error":"#N/A"}},{"$f":"IF(INDIRECT(\"c\" & (VLOOKUP(Rebalance!$D$39,$F$2:$G$48,2,FALSE)+ROW()-2))=Rebalance!$D$39,INDIRECT(\"a\" & (VLOOKUP(Rebalance!$D$39,$F$2:$G$48,2,FALSE)+ROW()-2)),\"\")","v":{"$error":"#N/A"}},{"$f":"IF(INDIRECT(\"c\" & (VLOOKUP(Rebalance!$D$40,$F$2:$G$48,2,FALSE)+ROW()-2))=Rebalance!$D$40,INDIRECT(\"a\" & (VLOOKUP(Rebalance!$D$40,$F$2:$G$48,2,FALSE)+ROW()-2)),\"\")","v":{"$error":"#N/A"}},{"$f":"IF(INDIRECT(\"c\" & (VLOOKUP(Rebalance!$D$52,$F$2:$G$48,2,FALSE)+ROW()-2))=Rebalance!$D$52,INDIRECT(\"a\" & (VLOOKUP(Rebalance!$D$52,$F$2:$G$48,2,FALSE)+ROW()-2)),\"\")","v":{"$error":"#N/A"}},{"$f":"IF(INDIRECT(\"c\" & (VLOOKUP(Rebalance!$D$53,$F$2:$G$48,2,FALSE)+ROW()-2))=Rebalance!$D$53,INDIRECT(\"a\" & (VLOOKUP(Rebalance!$D$53,$F$2:$G$48,2,FALSE)+ROW()-2)),\"\")","v":{"$error":"#N/A"}},{"$f":"IF(INDIRECT(\"c\" & (VLOOKUP(Rebalance!$D$54,$F$2:$G$48,2,FALSE)+ROW()-2))=Rebalance!$D$54,INDIRECT(\"a\" & (VLOOKUP(Rebalance!$D$54,$F$2:$G$48,2,FALSE)+ROW()-2)),\"\")","v":{"$error":"#N/A"}},{"$f":"IF(INDIRECT(\"c\" & (VLOOKUP(Rebalance!$D$55,$F$2:$G$48,2,FALSE)+ROW()-2))=Rebalance!$D$55,INDIRECT(\"a\" & (VLOOKUP(Rebalance!$D$55,$F$2:$G$48,2,FALSE)+ROW()-2)),\"\")","v":{"$error":"#N/A"}},{"$f":"IF(INDIRECT(\"c\" & (VLOOKUP(Rebalance!$D$56,$F$2:$G$48,2,FALSE)+ROW()-2))=Rebalance!$D$56,INDIRECT(\"a\" & (VLOOKUP(Rebalance!$D$56,$F$2:$G$48,2,FALSE)+ROW()-2)),\"\")","v":{"$error":"#N/A"}},{"$f":"IF(INDIRECT(\"c\" & (VLOOKUP(Rebalance!$D$57,$F$2:$G$48,2,FALSE)+ROW()-2))=Rebalance!$D$57,INDIRECT(\"a\" & (VLOOKUP(Rebalance!$D$57,$F$2:$G$48,2,FALSE)+ROW()-2)),\"\")","v":{"$error":"#N/A"}},{"$f":"IF(INDIRECT(\"c\" & (VLOOKUP(Rebalance!$D$58,$F$2:$G$48,2,FALSE)+ROW()-2))=Rebalance!$D$58,INDIRECT(\"a\" & (VLOOKUP(Rebalance!$D$58,$F$2:$G$48,2,FALSE)+ROW()-2)),\"\")","v":{"$error":"#N/A"}},{"$f":"IF(INDIRECT(\"c\" & (VLOOKUP(Rebalance!$D$59,$F$2:$G$48,2,FALSE)+ROW()-2))=Rebalance!$D$59,INDIRECT(\"a\" & (VLOOKUP(Rebalance!$D$59,$F$2:$G$48,2,FALSE)+ROW()-2)),\"\")","v":{"$error":"#N/A"}},{"$f":"IF(INDIRECT(\"c\" & (VLOOKUP(Rebalance!$D$60,$F$2:$G$48,2,FALSE)+ROW()-2))=Rebalance!$D$60,INDIRECT(\"a\" & (VLOOKUP(Rebalance!$D$60,$F$2:$G$48,2,FALSE)+ROW()-2)),\"\")","v":{"$error":"#N/A"}},{"$f":"IF(INDIRECT(\"c\" & (VLOOKUP(Rebalance!$D$61,$F$2:$G$48,2,FALSE)+ROW()-2))=Rebalance!$D$61,INDIRECT(\"a\" & (VLOOKUP(Rebalance!$D$61,$F$2:$G$48,2,FALSE)+ROW()-2)),\"\")","v":{"$error":"#N/A"}},{"$f":"IF(INDIRECT(\"c\" & (VLOOKUP(Rebalance!$D$62,$F$2:$G$48,2,FALSE)+ROW()-2))=Rebalance!$D$62,INDIRECT(\"a\" & (VLOOKUP(Rebalance!$D$62,$F$2:$G$48,2,FALSE)+ROW()-2)),\"\")","v":{"$error":"#N/A"}},{"$f":"IF(INDIRECT(\"c\" & (VLOOKUP(Rebalance!$D$63,$F$2:$G$48,2,FALSE)+ROW()-2))=Rebalance!$D$63,INDIRECT(\"a\" & (VLOOKUP(Rebalance!$D$63,$F$2:$G$48,2,FALSE)+ROW()-2)),\"\")","v":{"$error":"#N/A"}},{"$f":"IF(INDIRECT(\"c\" & (VLOOKUP(Rebalance!$D$64,$F$2:$G$48,2,FALSE)+ROW()-2))=Rebalance!$D$64,INDIRECT(\"a\" & (VLOOKUP(Rebalance!$D$64,$F$2:$G$48,2,FALSE)+ROW()-2)),\"\")","v":{"$error":"#N/A"}},{"$f":"IF(INDIRECT(\"c\" & (VLOOKUP(Rebalance!$D$65,$F$2:$G$48,2,FALSE)+ROW()-2))=Rebalance!$D$65,INDIRECT(\"a\" & (VLOOKUP(Rebalance!$D$65,$F$2:$G$48,2,FALSE)+ROW()-2)),\"\")","v":{"$error":"#N/A"}},{"$f":"IF(INDIRECT(\"c\" & (VLOOKUP(Rebalance!$D$66,$F$2:$G$48,2,FALSE)+ROW()-2))=Rebalance!$D$66,INDIRECT(\"a\" & (VLOOKUP(Rebalance!$D$66,$F$2:$G$48,2,FALSE)+ROW()-2)),\"\")","v":{"$error":"#N/A"}}]
["Coronation Global Strategic USD Income [ZAR] Feeder Fund P","CGSIF","Coronation Management Company",{"$f":"ROW()","v":233},null,null,{"$f":"VLOOKUP(F233,$C$2:$D$599,2,FALSE)","v":{"$error":"#N/A"}},{"$f":"IF(INDIRECT(\"c\" & (VLOOKUP(Rebalance!$D$26,$F$2:$G$48,2,FALSE)+ROW()-2))=Rebalance!$D$26,INDIRECT(\"a\" & (VLOOKUP(Rebalance!$D$26,$F$2:$G$48,2,FALSE)+ROW()-2)),\"\")","v":{"$error":"#N/A"}},{"$f":"IF(INDIRECT(\"c\" & (VLOOKUP(Rebalance!$D$27,$F$2:$G$48,2,FALSE)+ROW()-2))=Rebalance!$D$27,INDIRECT(\"a\" & (VLOOKUP(Rebalance!$D$27,$F$2:$G$48,2,FALSE)+ROW()-2)),\"\")","v":{"$error":"#N/A"}},{"$f":"IF(INDIRECT(\"c\" & (VLOOKUP(Rebalance!$D$28,$F$2:$G$48,2,FALSE)+ROW()-2))=Rebalance!$D$28,INDIRECT(\"a\" & (VLOOKUP(Rebalance!$D$28,$F$2:$G$48,2,FALSE)+ROW()-2)),\"\")","v":{"$error":"#N/A"}},{"$f":"IF(INDIRECT(\"c\" & (VLOOKUP(Rebalance!$D$29,$F$2:$G$48,2,FALSE)+ROW()-2))=Rebalance!$D$29,INDIRECT(\"a\" & (VLOOKUP(Rebalance!$D$29,$F$2:$G$48,2,FALSE)+ROW()-2)),\"\")","v":{"$error":"#N/A"}},{"$f":"IF(INDIRECT(\"c\" & (VLOOKUP(Rebalance!$D$30,$F$2:$G$48,2,FALSE)+ROW()-2))=Rebalance!$D$30,INDIRECT(\"a\" & (VLOOKUP(Rebalance!$D$30,$F$2:$G$48,2,FALSE)+ROW()-2)),\"\")","v":{"$error":"#N/A"}},{"$f":"IF(INDIRECT(\"c\" & (VLOOKUP(Rebalance!$D$31,$F$2:$G$48,2,FALSE)+ROW()-2))=Rebalance!$D$31,INDIRECT(\"a\" & (VLOOKUP(Rebalance!$D$31,$F$2:$G$48,2,FALSE)+ROW()-2)),\"\")","v":{"$error":"#N/A"}},{"$f":"IF(INDIRECT(\"c\" & (VLOOKUP(Rebalance!$D$32,$F$2:$G$48,2,FALSE)+ROW()-2))=Rebalance!$D$32,INDIRECT(\"a\" & (VLOOKUP(Rebalance!$D$32,$F$2:$G$48,2,FALSE)+ROW()-2)),\"\")","v":{"$error":"#N/A"}},{"$f":"IF(INDIRECT(\"c\" & (VLOOKUP(Rebalance!$D$33,$F$2:$G$48,2,FALSE)+ROW()-2))=Rebalance!$D$33,INDIRECT(\"a\" & (VLOOKUP(Rebalance!$D$33,$F$2:$G$48,2,FALSE)+ROW()-2)),\"\")","v":{"$error":"#N/A"}},{"$f":"IF(INDIRECT(\"c\" & (VLOOKUP(Rebalance!$D$34,$F$2:$G$48,2,FALSE)+ROW()-2))=Rebalance!$D$34,INDIRECT(\"a\" & (VLOOKUP(Rebalance!$D$34,$F$2:$G$48,2,FALSE)+ROW()-2)),\"\")","v":{"$error":"#N/A"}},{"$f":"IF(INDIRECT(\"c\" & (VLOOKUP(Rebalance!$D$35,$F$2:$G$48,2,FALSE)+ROW()-2))=Rebalance!$D$35,INDIRECT(\"a\" & (VLOOKUP(Rebalance!$D$35,$F$2:$G$48,2,FALSE)+ROW()-2)),\"\")","v":{"$error":"#N/A"}},{"$f":"IF(INDIRECT(\"c\" & (VLOOKUP(Rebalance!$D$36,$F$2:$G$48,2,FALSE)+ROW()-2))=Rebalance!$D$36,INDIRECT(\"a\" & (VLOOKUP(Rebalance!$D$36,$F$2:$G$48,2,FALSE)+ROW()-2)),\"\")","v":{"$error":"#N/A"}},{"$f":"IF(INDIRECT(\"c\" & (VLOOKUP(Rebalance!$D$37,$F$2:$G$48,2,FALSE)+ROW()-2))=Rebalance!$D$37,INDIRECT(\"a\" & (VLOOKUP(Rebalance!$D$37,$F$2:$G$48,2,FALSE)+ROW()-2)),\"\")","v":{"$error":"#N/A"}},{"$f":"IF(INDIRECT(\"c\" & (VLOOKUP(Rebalance!$D$38,$F$2:$G$48,2,FALSE)+ROW()-2))=Rebalance!$D$38,INDIRECT(\"a\" & (VLOOKUP(Rebalance!$D$38,$F$2:$G$48,2,FALSE)+ROW()-2)),\"\")","v":{"$error":"#N/A"}},{"$f":"IF(INDIRECT(\"c\" & (VLOOKUP(Rebalance!$D$39,$F$2:$G$48,2,FALSE)+ROW()-2))=Rebalance!$D$39,INDIRECT(\"a\" & (VLOOKUP(Rebalance!$D$39,$F$2:$G$48,2,FALSE)+ROW()-2)),\"\")","v":{"$error":"#N/A"}},{"$f":"IF(INDIRECT(\"c\" & (VLOOKUP(Rebalance!$D$40,$F$2:$G$48,2,FALSE)+ROW()-2))=Rebalance!$D$40,INDIRECT(\"a\" & (VLOOKUP(Rebalance!$D$40,$F$2:$G$48,2,FALSE)+ROW()-2)),\"\")","v":{"$error":"#N/A"}},{"$f":"IF(INDIRECT(\"c\" & (VLOOKUP(Rebalance!$D$52,$F$2:$G$48,2,FALSE)+ROW()-2))=Rebalance!$D$52,INDIRECT(\"a\" & (VLOOKUP(Rebalance!$D$52,$F$2:$G$48,2,FALSE)+ROW()-2)),\"\")","v":{"$error":"#N/A"}},{"$f":"IF(INDIRECT(\"c\" & (VLOOKUP(Rebalance!$D$53,$F$2:$G$48,2,FALSE)+ROW()-2))=Rebalance!$D$53,INDIRECT(\"a\" & (VLOOKUP(Rebalance!$D$53,$F$2:$G$48,2,FALSE)+ROW()-2)),\"\")","v":{"$error":"#N/A"}},{"$f":"IF(INDIRECT(\"c\" & (VLOOKUP(Rebalance!$D$54,$F$2:$G$48,2,FALSE)+ROW()-2))=Rebalance!$D$54,INDIRECT(\"a\" & (VLOOKUP(Rebalance!$D$54,$F$2:$G$48,2,FALSE)+ROW()-2)),\"\")","v":{"$error":"#N/A"}},{"$f":"IF(INDIRECT(\"c\" & (VLOOKUP(Rebalance!$D$55,$F$2:$G$48,2,FALSE)+ROW()-2))=Rebalance!$D$55,INDIRECT(\"a\" & (VLOOKUP(Rebalance!$D$55,$F$2:$G$48,2,FALSE)+ROW()-2)),\"\")","v":{"$error":"#N/A"}},{"$f":"IF(INDIRECT(\"c\" & (VLOOKUP(Rebalance!$D$56,$F$2:$G$48,2,FALSE)+ROW()-2))=Rebalance!$D$56,INDIRECT(\"a\" & (VLOOKUP(Rebalance!$D$56,$F$2:$G$48,2,FALSE)+ROW()-2)),\"\")","v":{"$error":"#N/A"}},{"$f":"IF(INDIRECT(\"c\" & (VLOOKUP(Rebalance!$D$57,$F$2:$G$48,2,FALSE)+ROW()-2))=Rebalance!$D$57,INDIRECT(\"a\" & (VLOOKUP(Rebalance!$D$57,$F$2:$G$48,2,FALSE)+ROW()-2)),\"\")","v":{"$error":"#N/A"}},{"$f":"IF(INDIRECT(\"c\" & (VLOOKUP(Rebalance!$D$58,$F$2:$G$48,2,FALSE)+ROW()-2))=Rebalance!$D$58,INDIRECT(\"a\" & (VLOOKUP(Rebalance!$D$58,$F$2:$G$48,2,FALSE)+ROW()-2)),\"\")","v":{"$error":"#N/A"}},{"$f":"IF(INDIRECT(\"c\" & (VLOOKUP(Rebalance!$D$59,$F$2:$G$48,2,FALSE)+ROW()-2))=Rebalance!$D$59,INDIRECT(\"a\" & (VLOOKUP(Rebalance!$D$59,$F$2:$G$48,2,FALSE)+ROW()-2)),\"\")","v":{"$error":"#N/A"}},{"$f":"IF(INDIRECT(\"c\" & (VLOOKUP(Rebalance!$D$60,$F$2:$G$48,2,FALSE)+ROW()-2))=Rebalance!$D$60,INDIRECT(\"a\" & (VLOOKUP(Rebalance!$D$60,$F$2:$G$48,2,FALSE)+ROW()-2)),\"\")","v":{"$error":"#N/A"}},{"$f":"IF(INDIRECT(\"c\" & (VLOOKUP(Rebalance!$D$61,$F$2:$G$48,2,FALSE)+ROW()-2))=Rebalance!$D$61,INDIRECT(\"a\" & (VLOOKUP(Rebalance!$D$61,$F$2:$G$48,2,FALSE)+ROW()-2)),\"\")","v":{"$error":"#N/A"}},{"$f":"IF(INDIRECT(\"c\" & (VLOOKUP(Rebalance!$D$62,$F$2:$G$48,2,FALSE)+ROW()-2))=Rebalance!$D$62,INDIRECT(\"a\" & (VLOOKUP(Rebalance!$D$62,$F$2:$G$48,2,FALSE)+ROW()-2)),\"\")","v":{"$error":"#N/A"}},{"$f":"IF(INDIRECT(\"c\" & (VLOOKUP(Rebalance!$D$63,$F$2:$G$48,2,FALSE)+ROW()-2))=Rebalance!$D$63,INDIRECT(\"a\" & (VLOOKUP(Rebalance!$D$63,$F$2:$G$48,2,FALSE)+ROW()-2)),\"\")","v":{"$error":"#N/A"}},{"$f":"IF(INDIRECT(\"c\" & (VLOOKUP(Rebalance!$D$64,$F$2:$G$48,2,FALSE)+ROW()-2))=Rebalance!$D$64,INDIRECT(\"a\" & (VLOOKUP(Rebalance!$D$64,$F$2:$G$48,2,FALSE)+ROW()-2)),\"\")","v":{"$error":"#N/A"}},{"$f":"IF(INDIRECT(\"c\" & (VLOOKUP(Rebalance!$D$65,$F$2:$G$48,2,FALSE)+ROW()-2))=Rebalance!$D$65,INDIRECT(\"a\" & (VLOOKUP(Rebalance!$D$65,$F$2:$G$48,2,FALSE)+ROW()-2)),\"\")","v":{"$error":"#N/A"}},{"$f":"IF(INDIRECT(\"c\" & (VLOOKUP(Rebalance!$D$66,$F$2:$G$48,2,FALSE)+ROW()-2))=Rebalance!$D$66,INDIRECT(\"a\" & (VLOOKUP(Rebalance!$D$66,$F$2:$G$48,2,FALSE)+ROW()-2)),\"\")","v":{"$error":"#N/A"}}]
["Coronation Industrial Fund A","CNCG","Coronation Management Company",{"$f":"ROW()","v":234},null,null,{"$f":"VLOOKUP(F234,$C$2:$D$599,2,FALSE)","v":{"$error":"#N/A"}},{"$f":"IF(INDIRECT(\"c\" & (VLOOKUP(Rebalance!$D$26,$F$2:$G$48,2,FALSE)+ROW()-2))=Rebalance!$D$26,INDIRECT(\"a\" & (VLOOKUP(Rebalance!$D$26,$F$2:$G$48,2,FALSE)+ROW()-2)),\"\")","v":{"$error":"#N/A"}},{"$f":"IF(INDIRECT(\"c\" & (VLOOKUP(Rebalance!$D$27,$F$2:$G$48,2,FALSE)+ROW()-2))=Rebalance!$D$27,INDIRECT(\"a\" & (VLOOKUP(Rebalance!$D$27,$F$2:$G$48,2,FALSE)+ROW()-2)),\"\")","v":{"$error":"#N/A"}},{"$f":"IF(INDIRECT(\"c\" & (VLOOKUP(Rebalance!$D$28,$F$2:$G$48,2,FALSE)+ROW()-2))=Rebalance!$D$28,INDIRECT(\"a\" & (VLOOKUP(Rebalance!$D$28,$F$2:$G$48,2,FALSE)+ROW()-2)),\"\")","v":{"$error":"#N/A"}},{"$f":"IF(INDIRECT(\"c\" & (VLOOKUP(Rebalance!$D$29,$F$2:$G$48,2,FALSE)+ROW()-2))=Rebalance!$D$29,INDIRECT(\"a\" & (VLOOKUP(Rebalance!$D$29,$F$2:$G$48,2,FALSE)+ROW()-2)),\"\")","v":{"$error":"#N/A"}},{"$f":"IF(INDIRECT(\"c\" & (VLOOKUP(Rebalance!$D$30,$F$2:$G$48,2,FALSE)+ROW()-2))=Rebalance!$D$30,INDIRECT(\"a\" & (VLOOKUP(Rebalance!$D$30,$F$2:$G$48,2,FALSE)+ROW()-2)),\"\")","v":{"$error":"#N/A"}},{"$f":"IF(INDIRECT(\"c\" & (VLOOKUP(Rebalance!$D$31,$F$2:$G$48,2,FALSE)+ROW()-2))=Rebalance!$D$31,INDIRECT(\"a\" & (VLOOKUP(Rebalance!$D$31,$F$2:$G$48,2,FALSE)+ROW()-2)),\"\")","v":{"$error":"#N/A"}},{"$f":"IF(INDIRECT(\"c\" & (VLOOKUP(Rebalance!$D$32,$F$2:$G$48,2,FALSE)+ROW()-2))=Rebalance!$D$32,INDIRECT(\"a\" & (VLOOKUP(Rebalance!$D$32,$F$2:$G$48,2,FALSE)+ROW()-2)),\"\")","v":{"$error":"#N/A"}},{"$f":"IF(INDIRECT(\"c\" & (VLOOKUP(Rebalance!$D$33,$F$2:$G$48,2,FALSE)+ROW()-2))=Rebalance!$D$33,INDIRECT(\"a\" & (VLOOKUP(Rebalance!$D$33,$F$2:$G$48,2,FALSE)+ROW()-2)),\"\")","v":{"$error":"#N/A"}},{"$f":"IF(INDIRECT(\"c\" & (VLOOKUP(Rebalance!$D$34,$F$2:$G$48,2,FALSE)+ROW()-2))=Rebalance!$D$34,INDIRECT(\"a\" & (VLOOKUP(Rebalance!$D$34,$F$2:$G$48,2,FALSE)+ROW()-2)),\"\")","v":{"$error":"#N/A"}},{"$f":"IF(INDIRECT(\"c\" & (VLOOKUP(Rebalance!$D$35,$F$2:$G$48,2,FALSE)+ROW()-2))=Rebalance!$D$35,INDIRECT(\"a\" & (VLOOKUP(Rebalance!$D$35,$F$2:$G$48,2,FALSE)+ROW()-2)),\"\")","v":{"$error":"#N/A"}},{"$f":"IF(INDIRECT(\"c\" & (VLOOKUP(Rebalance!$D$36,$F$2:$G$48,2,FALSE)+ROW()-2))=Rebalance!$D$36,INDIRECT(\"a\" & (VLOOKUP(Rebalance!$D$36,$F$2:$G$48,2,FALSE)+ROW()-2)),\"\")","v":{"$error":"#N/A"}},{"$f":"IF(INDIRECT(\"c\" & (VLOOKUP(Rebalance!$D$37,$F$2:$G$48,2,FALSE)+ROW()-2))=Rebalance!$D$37,INDIRECT(\"a\" & (VLOOKUP(Rebalance!$D$37,$F$2:$G$48,2,FALSE)+ROW()-2)),\"\")","v":{"$error":"#N/A"}},{"$f":"IF(INDIRECT(\"c\" & (VLOOKUP(Rebalance!$D$38,$F$2:$G$48,2,FALSE)+ROW()-2))=Rebalance!$D$38,INDIRECT(\"a\" & (VLOOKUP(Rebalance!$D$38,$F$2:$G$48,2,FALSE)+ROW()-2)),\"\")","v":{"$error":"#N/A"}},{"$f":"IF(INDIRECT(\"c\" & (VLOOKUP(Rebalance!$D$39,$F$2:$G$48,2,FALSE)+ROW()-2))=Rebalance!$D$39,INDIRECT(\"a\" & (VLOOKUP(Rebalance!$D$39,$F$2:$G$48,2,FALSE)+ROW()-2)),\"\")","v":{"$error":"#N/A"}},{"$f":"IF(INDIRECT(\"c\" & (VLOOKUP(Rebalance!$D$40,$F$2:$G$48,2,FALSE)+ROW()-2))=Rebalance!$D$40,INDIRECT(\"a\" & (VLOOKUP(Rebalance!$D$40,$F$2:$G$48,2,FALSE)+ROW()-2)),\"\")","v":{"$error":"#N/A"}},{"$f":"IF(INDIRECT(\"c\" & (VLOOKUP(Rebalance!$D$52,$F$2:$G$48,2,FALSE)+ROW()-2))=Rebalance!$D$52,INDIRECT(\"a\" & (VLOOKUP(Rebalance!$D$52,$F$2:$G$48,2,FALSE)+ROW()-2)),\"\")","v":{"$error":"#N/A"}},{"$f":"IF(INDIRECT(\"c\" & (VLOOKUP(Rebalance!$D$53,$F$2:$G$48,2,FALSE)+ROW()-2))=Rebalance!$D$53,INDIRECT(\"a\" & (VLOOKUP(Rebalance!$D$53,$F$2:$G$48,2,FALSE)+ROW()-2)),\"\")","v":{"$error":"#N/A"}},{"$f":"IF(INDIRECT(\"c\" & (VLOOKUP(Rebalance!$D$54,$F$2:$G$48,2,FALSE)+ROW()-2))=Rebalance!$D$54,INDIRECT(\"a\" & (VLOOKUP(Rebalance!$D$54,$F$2:$G$48,2,FALSE)+ROW()-2)),\"\")","v":{"$error":"#N/A"}},{"$f":"IF(INDIRECT(\"c\" & (VLOOKUP(Rebalance!$D$55,$F$2:$G$48,2,FALSE)+ROW()-2))=Rebalance!$D$55,INDIRECT(\"a\" & (VLOOKUP(Rebalance!$D$55,$F$2:$G$48,2,FALSE)+ROW()-2)),\"\")","v":{"$error":"#N/A"}},{"$f":"IF(INDIRECT(\"c\" & (VLOOKUP(Rebalance!$D$56,$F$2:$G$48,2,FALSE)+ROW()-2))=Rebalance!$D$56,INDIRECT(\"a\" & (VLOOKUP(Rebalance!$D$56,$F$2:$G$48,2,FALSE)+ROW()-2)),\"\")","v":{"$error":"#N/A"}},{"$f":"IF(INDIRECT(\"c\" & (VLOOKUP(Rebalance!$D$57,$F$2:$G$48,2,FALSE)+ROW()-2))=Rebalance!$D$57,INDIRECT(\"a\" & (VLOOKUP(Rebalance!$D$57,$F$2:$G$48,2,FALSE)+ROW()-2)),\"\")","v":{"$error":"#N/A"}},{"$f":"IF(INDIRECT(\"c\" & (VLOOKUP(Rebalance!$D$58,$F$2:$G$48,2,FALSE)+ROW()-2))=Rebalance!$D$58,INDIRECT(\"a\" & (VLOOKUP(Rebalance!$D$58,$F$2:$G$48,2,FALSE)+ROW()-2)),\"\")","v":{"$error":"#N/A"}},{"$f":"IF(INDIRECT(\"c\" & (VLOOKUP(Rebalance!$D$59,$F$2:$G$48,2,FALSE)+ROW()-2))=Rebalance!$D$59,INDIRECT(\"a\" & (VLOOKUP(Rebalance!$D$59,$F$2:$G$48,2,FALSE)+ROW()-2)),\"\")","v":{"$error":"#N/A"}},{"$f":"IF(INDIRECT(\"c\" & (VLOOKUP(Rebalance!$D$60,$F$2:$G$48,2,FALSE)+ROW()-2))=Rebalance!$D$60,INDIRECT(\"a\" & (VLOOKUP(Rebalance!$D$60,$F$2:$G$48,2,FALSE)+ROW()-2)),\"\")","v":{"$error":"#N/A"}},{"$f":"IF(INDIRECT(\"c\" & (VLOOKUP(Rebalance!$D$61,$F$2:$G$48,2,FALSE)+ROW()-2))=Rebalance!$D$61,INDIRECT(\"a\" & (VLOOKUP(Rebalance!$D$61,$F$2:$G$48,2,FALSE)+ROW()-2)),\"\")","v":{"$error":"#N/A"}},{"$f":"IF(INDIRECT(\"c\" & (VLOOKUP(Rebalance!$D$62,$F$2:$G$48,2,FALSE)+ROW()-2))=Rebalance!$D$62,INDIRECT(\"a\" & (VLOOKUP(Rebalance!$D$62,$F$2:$G$48,2,FALSE)+ROW()-2)),\"\")","v":{"$error":"#N/A"}},{"$f":"IF(INDIRECT(\"c\" & (VLOOKUP(Rebalance!$D$63,$F$2:$G$48,2,FALSE)+ROW()-2))=Rebalance!$D$63,INDIRECT(\"a\" & (VLOOKUP(Rebalance!$D$63,$F$2:$G$48,2,FALSE)+ROW()-2)),\"\")","v":{"$error":"#N/A"}},{"$f":"IF(INDIRECT(\"c\" & (VLOOKUP(Rebalance!$D$64,$F$2:$G$48,2,FALSE)+ROW()-2))=Rebalance!$D$64,INDIRECT(\"a\" & (VLOOKUP(Rebalance!$D$64,$F$2:$G$48,2,FALSE)+ROW()-2)),\"\")","v":{"$error":"#N/A"}},{"$f":"IF(INDIRECT(\"c\" & (VLOOKUP(Rebalance!$D$65,$F$2:$G$48,2,FALSE)+ROW()-2))=Rebalance!$D$65,INDIRECT(\"a\" & (VLOOKUP(Rebalance!$D$65,$F$2:$G$48,2,FALSE)+ROW()-2)),\"\")","v":{"$error":"#N/A"}},{"$f":"IF(INDIRECT(\"c\" & (VLOOKUP(Rebalance!$D$66,$F$2:$G$48,2,FALSE)+ROW()-2))=Rebalance!$D$66,INDIRECT(\"a\" & (VLOOKUP(Rebalance!$D$66,$F$2:$G$48,2,FALSE)+ROW()-2)),\"\")","v":{"$error":"#N/A"}}]
["Coronation Jibar Plus Fund P","CJFCP","Coronation Management Company",{"$f":"ROW()","v":235},null,null,{"$f":"VLOOKUP(F235,$C$2:$D$599,2,FALSE)","v":{"$error":"#N/A"}},{"$f":"IF(INDIRECT(\"c\" & (VLOOKUP(Rebalance!$D$26,$F$2:$G$48,2,FALSE)+ROW()-2))=Rebalance!$D$26,INDIRECT(\"a\" & (VLOOKUP(Rebalance!$D$26,$F$2:$G$48,2,FALSE)+ROW()-2)),\"\")","v":{"$error":"#N/A"}},{"$f":"IF(INDIRECT(\"c\" & (VLOOKUP(Rebalance!$D$27,$F$2:$G$48,2,FALSE)+ROW()-2))=Rebalance!$D$27,INDIRECT(\"a\" & (VLOOKUP(Rebalance!$D$27,$F$2:$G$48,2,FALSE)+ROW()-2)),\"\")","v":{"$error":"#N/A"}},{"$f":"IF(INDIRECT(\"c\" & (VLOOKUP(Rebalance!$D$28,$F$2:$G$48,2,FALSE)+ROW()-2))=Rebalance!$D$28,INDIRECT(\"a\" & (VLOOKUP(Rebalance!$D$28,$F$2:$G$48,2,FALSE)+ROW()-2)),\"\")","v":{"$error":"#N/A"}},{"$f":"IF(INDIRECT(\"c\" & (VLOOKUP(Rebalance!$D$29,$F$2:$G$48,2,FALSE)+ROW()-2))=Rebalance!$D$29,INDIRECT(\"a\" & (VLOOKUP(Rebalance!$D$29,$F$2:$G$48,2,FALSE)+ROW()-2)),\"\")","v":{"$error":"#N/A"}},{"$f":"IF(INDIRECT(\"c\" & (VLOOKUP(Rebalance!$D$30,$F$2:$G$48,2,FALSE)+ROW()-2))=Rebalance!$D$30,INDIRECT(\"a\" & (VLOOKUP(Rebalance!$D$30,$F$2:$G$48,2,FALSE)+ROW()-2)),\"\")","v":{"$error":"#N/A"}},{"$f":"IF(INDIRECT(\"c\" & (VLOOKUP(Rebalance!$D$31,$F$2:$G$48,2,FALSE)+ROW()-2))=Rebalance!$D$31,INDIRECT(\"a\" & (VLOOKUP(Rebalance!$D$31,$F$2:$G$48,2,FALSE)+ROW()-2)),\"\")","v":{"$error":"#N/A"}},{"$f":"IF(INDIRECT(\"c\" & (VLOOKUP(Rebalance!$D$32,$F$2:$G$48,2,FALSE)+ROW()-2))=Rebalance!$D$32,INDIRECT(\"a\" & (VLOOKUP(Rebalance!$D$32,$F$2:$G$48,2,FALSE)+ROW()-2)),\"\")","v":{"$error":"#N/A"}},{"$f":"IF(INDIRECT(\"c\" & (VLOOKUP(Rebalance!$D$33,$F$2:$G$48,2,FALSE)+ROW()-2))=Rebalance!$D$33,INDIRECT(\"a\" & (VLOOKUP(Rebalance!$D$33,$F$2:$G$48,2,FALSE)+ROW()-2)),\"\")","v":{"$error":"#N/A"}},{"$f":"IF(INDIRECT(\"c\" & (VLOOKUP(Rebalance!$D$34,$F$2:$G$48,2,FALSE)+ROW()-2))=Rebalance!$D$34,INDIRECT(\"a\" & (VLOOKUP(Rebalance!$D$34,$F$2:$G$48,2,FALSE)+ROW()-2)),\"\")","v":{"$error":"#N/A"}},{"$f":"IF(INDIRECT(\"c\" & (VLOOKUP(Rebalance!$D$35,$F$2:$G$48,2,FALSE)+ROW()-2))=Rebalance!$D$35,INDIRECT(\"a\" & (VLOOKUP(Rebalance!$D$35,$F$2:$G$48,2,FALSE)+ROW()-2)),\"\")","v":{"$error":"#N/A"}},{"$f":"IF(INDIRECT(\"c\" & (VLOOKUP(Rebalance!$D$36,$F$2:$G$48,2,FALSE)+ROW()-2))=Rebalance!$D$36,INDIRECT(\"a\" & (VLOOKUP(Rebalance!$D$36,$F$2:$G$48,2,FALSE)+ROW()-2)),\"\")","v":{"$error":"#N/A"}},{"$f":"IF(INDIRECT(\"c\" & (VLOOKUP(Rebalance!$D$37,$F$2:$G$48,2,FALSE)+ROW()-2))=Rebalance!$D$37,INDIRECT(\"a\" & (VLOOKUP(Rebalance!$D$37,$F$2:$G$48,2,FALSE)+ROW()-2)),\"\")","v":{"$error":"#N/A"}},{"$f":"IF(INDIRECT(\"c\" & (VLOOKUP(Rebalance!$D$38,$F$2:$G$48,2,FALSE)+ROW()-2))=Rebalance!$D$38,INDIRECT(\"a\" & (VLOOKUP(Rebalance!$D$38,$F$2:$G$48,2,FALSE)+ROW()-2)),\"\")","v":{"$error":"#N/A"}},{"$f":"IF(INDIRECT(\"c\" & (VLOOKUP(Rebalance!$D$39,$F$2:$G$48,2,FALSE)+ROW()-2))=Rebalance!$D$39,INDIRECT(\"a\" & (VLOOKUP(Rebalance!$D$39,$F$2:$G$48,2,FALSE)+ROW()-2)),\"\")","v":{"$error":"#N/A"}},{"$f":"IF(INDIRECT(\"c\" & (VLOOKUP(Rebalance!$D$40,$F$2:$G$48,2,FALSE)+ROW()-2))=Rebalance!$D$40,INDIRECT(\"a\" & (VLOOKUP(Rebalance!$D$40,$F$2:$G$48,2,FALSE)+ROW()-2)),\"\")","v":{"$error":"#N/A"}},{"$f":"IF(INDIRECT(\"c\" & (VLOOKUP(Rebalance!$D$52,$F$2:$G$48,2,FALSE)+ROW()-2))=Rebalance!$D$52,INDIRECT(\"a\" & (VLOOKUP(Rebalance!$D$52,$F$2:$G$48,2,FALSE)+ROW()-2)),\"\")","v":{"$error":"#N/A"}},{"$f":"IF(INDIRECT(\"c\" & (VLOOKUP(Rebalance!$D$53,$F$2:$G$48,2,FALSE)+ROW()-2))=Rebalance!$D$53,INDIRECT(\"a\" & (VLOOKUP(Rebalance!$D$53,$F$2:$G$48,2,FALSE)+ROW()-2)),\"\")","v":{"$error":"#N/A"}},{"$f":"IF(INDIRECT(\"c\" & (VLOOKUP(Rebalance!$D$54,$F$2:$G$48,2,FALSE)+ROW()-2))=Rebalance!$D$54,INDIRECT(\"a\" & (VLOOKUP(Rebalance!$D$54,$F$2:$G$48,2,FALSE)+ROW()-2)),\"\")","v":{"$error":"#N/A"}},{"$f":"IF(INDIRECT(\"c\" & (VLOOKUP(Rebalance!$D$55,$F$2:$G$48,2,FALSE)+ROW()-2))=Rebalance!$D$55,INDIRECT(\"a\" & (VLOOKUP(Rebalance!$D$55,$F$2:$G$48,2,FALSE)+ROW()-2)),\"\")","v":{"$error":"#N/A"}},{"$f":"IF(INDIRECT(\"c\" & (VLOOKUP(Rebalance!$D$56,$F$2:$G$48,2,FALSE)+ROW()-2))=Rebalance!$D$56,INDIRECT(\"a\" & (VLOOKUP(Rebalance!$D$56,$F$2:$G$48,2,FALSE)+ROW()-2)),\"\")","v":{"$error":"#N/A"}},{"$f":"IF(INDIRECT(\"c\" & (VLOOKUP(Rebalance!$D$57,$F$2:$G$48,2,FALSE)+ROW()-2))=Rebalance!$D$57,INDIRECT(\"a\" & (VLOOKUP(Rebalance!$D$57,$F$2:$G$48,2,FALSE)+ROW()-2)),\"\")","v":{"$error":"#N/A"}},{"$f":"IF(INDIRECT(\"c\" & (VLOOKUP(Rebalance!$D$58,$F$2:$G$48,2,FALSE)+ROW()-2))=Rebalance!$D$58,INDIRECT(\"a\" & (VLOOKUP(Rebalance!$D$58,$F$2:$G$48,2,FALSE)+ROW()-2)),\"\")","v":{"$error":"#N/A"}},{"$f":"IF(INDIRECT(\"c\" & (VLOOKUP(Rebalance!$D$59,$F$2:$G$48,2,FALSE)+ROW()-2))=Rebalance!$D$59,INDIRECT(\"a\" & (VLOOKUP(Rebalance!$D$59,$F$2:$G$48,2,FALSE)+ROW()-2)),\"\")","v":{"$error":"#N/A"}},{"$f":"IF(INDIRECT(\"c\" & (VLOOKUP(Rebalance!$D$60,$F$2:$G$48,2,FALSE)+ROW()-2))=Rebalance!$D$60,INDIRECT(\"a\" & (VLOOKUP(Rebalance!$D$60,$F$2:$G$48,2,FALSE)+ROW()-2)),\"\")","v":{"$error":"#N/A"}},{"$f":"IF(INDIRECT(\"c\" & (VLOOKUP(Rebalance!$D$61,$F$2:$G$48,2,FALSE)+ROW()-2))=Rebalance!$D$61,INDIRECT(\"a\" & (VLOOKUP(Rebalance!$D$61,$F$2:$G$48,2,FALSE)+ROW()-2)),\"\")","v":{"$error":"#N/A"}},{"$f":"IF(INDIRECT(\"c\" & (VLOOKUP(Rebalance!$D$62,$F$2:$G$48,2,FALSE)+ROW()-2))=Rebalance!$D$62,INDIRECT(\"a\" & (VLOOKUP(Rebalance!$D$62,$F$2:$G$48,2,FALSE)+ROW()-2)),\"\")","v":{"$error":"#N/A"}},{"$f":"IF(INDIRECT(\"c\" & (VLOOKUP(Rebalance!$D$63,$F$2:$G$48,2,FALSE)+ROW()-2))=Rebalance!$D$63,INDIRECT(\"a\" & (VLOOKUP(Rebalance!$D$63,$F$2:$G$48,2,FALSE)+ROW()-2)),\"\")","v":{"$error":"#N/A"}},{"$f":"IF(INDIRECT(\"c\" & (VLOOKUP(Rebalance!$D$64,$F$2:$G$48,2,FALSE)+ROW()-2))=Rebalance!$D$64,INDIRECT(\"a\" & (VLOOKUP(Rebalance!$D$64,$F$2:$G$48,2,FALSE)+ROW()-2)),\"\")","v":{"$error":"#N/A"}},{"$f":"IF(INDIRECT(\"c\" & (VLOOKUP(Rebalance!$D$65,$F$2:$G$48,2,FALSE)+ROW()-2))=Rebalance!$D$65,INDIRECT(\"a\" & (VLOOKUP(Rebalance!$D$65,$F$2:$G$48,2,FALSE)+ROW()-2)),\"\")","v":{"$error":"#N/A"}},{"$f":"IF(INDIRECT(\"c\" & (VLOOKUP(Rebalance!$D$66,$F$2:$G$48,2,FALSE)+ROW()-2))=Rebalance!$D$66,INDIRECT(\"a\" & (VLOOKUP(Rebalance!$D$66,$F$2:$G$48,2,FALSE)+ROW()-2)),\"\")","v":{"$error":"#N/A"}}]
["Coronation Market Plus Fund P","CMPL4","Coronation Management Company",{"$f":"ROW()","v":236},null,null,{"$f":"VLOOKUP(F236,$C$2:$D$599,2,FALSE)","v":{"$error":"#N/A"}},{"$f":"IF(INDIRECT(\"c\" & (VLOOKUP(Rebalance!$D$26,$F$2:$G$48,2,FALSE)+ROW()-2))=Rebalance!$D$26,INDIRECT(\"a\" & (VLOOKUP(Rebalance!$D$26,$F$2:$G$48,2,FALSE)+ROW()-2)),\"\")","v":{"$error":"#N/A"}},{"$f":"IF(INDIRECT(\"c\" & (VLOOKUP(Rebalance!$D$27,$F$2:$G$48,2,FALSE)+ROW()-2))=Rebalance!$D$27,INDIRECT(\"a\" & (VLOOKUP(Rebalance!$D$27,$F$2:$G$48,2,FALSE)+ROW()-2)),\"\")","v":{"$error":"#N/A"}},{"$f":"IF(INDIRECT(\"c\" & (VLOOKUP(Rebalance!$D$28,$F$2:$G$48,2,FALSE)+ROW()-2))=Rebalance!$D$28,INDIRECT(\"a\" & (VLOOKUP(Rebalance!$D$28,$F$2:$G$48,2,FALSE)+ROW()-2)),\"\")","v":{"$error":"#N/A"}},{"$f":"IF(INDIRECT(\"c\" & (VLOOKUP(Rebalance!$D$29,$F$2:$G$48,2,FALSE)+ROW()-2))=Rebalance!$D$29,INDIRECT(\"a\" & (VLOOKUP(Rebalance!$D$29,$F$2:$G$48,2,FALSE)+ROW()-2)),\"\")","v":{"$error":"#N/A"}},{"$f":"IF(INDIRECT(\"c\" & (VLOOKUP(Rebalance!$D$30,$F$2:$G$48,2,FALSE)+ROW()-2))=Rebalance!$D$30,INDIRECT(\"a\" & (VLOOKUP(Rebalance!$D$30,$F$2:$G$48,2,FALSE)+ROW()-2)),\"\")","v":{"$error":"#N/A"}},{"$f":"IF(INDIRECT(\"c\" & (VLOOKUP(Rebalance!$D$31,$F$2:$G$48,2,FALSE)+ROW()-2))=Rebalance!$D$31,INDIRECT(\"a\" & (VLOOKUP(Rebalance!$D$31,$F$2:$G$48,2,FALSE)+ROW()-2)),\"\")","v":{"$error":"#N/A"}},{"$f":"IF(INDIRECT(\"c\" & (VLOOKUP(Rebalance!$D$32,$F$2:$G$48,2,FALSE)+ROW()-2))=Rebalance!$D$32,INDIRECT(\"a\" & (VLOOKUP(Rebalance!$D$32,$F$2:$G$48,2,FALSE)+ROW()-2)),\"\")","v":{"$error":"#N/A"}},{"$f":"IF(INDIRECT(\"c\" & (VLOOKUP(Rebalance!$D$33,$F$2:$G$48,2,FALSE)+ROW()-2))=Rebalance!$D$33,INDIRECT(\"a\" & (VLOOKUP(Rebalance!$D$33,$F$2:$G$48,2,FALSE)+ROW()-2)),\"\")","v":{"$error":"#N/A"}},{"$f":"IF(INDIRECT(\"c\" & (VLOOKUP(Rebalance!$D$34,$F$2:$G$48,2,FALSE)+ROW()-2))=Rebalance!$D$34,INDIRECT(\"a\" & (VLOOKUP(Rebalance!$D$34,$F$2:$G$48,2,FALSE)+ROW()-2)),\"\")","v":{"$error":"#N/A"}},{"$f":"IF(INDIRECT(\"c\" & (VLOOKUP(Rebalance!$D$35,$F$2:$G$48,2,FALSE)+ROW()-2))=Rebalance!$D$35,INDIRECT(\"a\" & (VLOOKUP(Rebalance!$D$35,$F$2:$G$48,2,FALSE)+ROW()-2)),\"\")","v":{"$error":"#N/A"}},{"$f":"IF(INDIRECT(\"c\" & (VLOOKUP(Rebalance!$D$36,$F$2:$G$48,2,FALSE)+ROW()-2))=Rebalance!$D$36,INDIRECT(\"a\" & (VLOOKUP(Rebalance!$D$36,$F$2:$G$48,2,FALSE)+ROW()-2)),\"\")","v":{"$error":"#N/A"}},{"$f":"IF(INDIRECT(\"c\" & (VLOOKUP(Rebalance!$D$37,$F$2:$G$48,2,FALSE)+ROW()-2))=Rebalance!$D$37,INDIRECT(\"a\" & (VLOOKUP(Rebalance!$D$37,$F$2:$G$48,2,FALSE)+ROW()-2)),\"\")","v":{"$error":"#N/A"}},{"$f":"IF(INDIRECT(\"c\" & (VLOOKUP(Rebalance!$D$38,$F$2:$G$48,2,FALSE)+ROW()-2))=Rebalance!$D$38,INDIRECT(\"a\" & (VLOOKUP(Rebalance!$D$38,$F$2:$G$48,2,FALSE)+ROW()-2)),\"\")","v":{"$error":"#N/A"}},{"$f":"IF(INDIRECT(\"c\" & (VLOOKUP(Rebalance!$D$39,$F$2:$G$48,2,FALSE)+ROW()-2))=Rebalance!$D$39,INDIRECT(\"a\" & (VLOOKUP(Rebalance!$D$39,$F$2:$G$48,2,FALSE)+ROW()-2)),\"\")","v":{"$error":"#N/A"}},{"$f":"IF(INDIRECT(\"c\" & (VLOOKUP(Rebalance!$D$40,$F$2:$G$48,2,FALSE)+ROW()-2))=Rebalance!$D$40,INDIRECT(\"a\" & (VLOOKUP(Rebalance!$D$40,$F$2:$G$48,2,FALSE)+ROW()-2)),\"\")","v":{"$error":"#N/A"}},{"$f":"IF(INDIRECT(\"c\" & (VLOOKUP(Rebalance!$D$52,$F$2:$G$48,2,FALSE)+ROW()-2))=Rebalance!$D$52,INDIRECT(\"a\" & (VLOOKUP(Rebalance!$D$52,$F$2:$G$48,2,FALSE)+ROW()-2)),\"\")","v":{"$error":"#N/A"}},{"$f":"IF(INDIRECT(\"c\" & (VLOOKUP(Rebalance!$D$53,$F$2:$G$48,2,FALSE)+ROW()-2))=Rebalance!$D$53,INDIRECT(\"a\" & (VLOOKUP(Rebalance!$D$53,$F$2:$G$48,2,FALSE)+ROW()-2)),\"\")","v":{"$error":"#N/A"}},{"$f":"IF(INDIRECT(\"c\" & (VLOOKUP(Rebalance!$D$54,$F$2:$G$48,2,FALSE)+ROW()-2))=Rebalance!$D$54,INDIRECT(\"a\" & (VLOOKUP(Rebalance!$D$54,$F$2:$G$48,2,FALSE)+ROW()-2)),\"\")","v":{"$error":"#N/A"}},{"$f":"IF(INDIRECT(\"c\" & (VLOOKUP(Rebalance!$D$55,$F$2:$G$48,2,FALSE)+ROW()-2))=Rebalance!$D$55,INDIRECT(\"a\" & (VLOOKUP(Rebalance!$D$55,$F$2:$G$48,2,FALSE)+ROW()-2)),\"\")","v":{"$error":"#N/A"}},{"$f":"IF(INDIRECT(\"c\" & (VLOOKUP(Rebalance!$D$56,$F$2:$G$48,2,FALSE)+ROW()-2))=Rebalance!$D$56,INDIRECT(\"a\" & (VLOOKUP(Rebalance!$D$56,$F$2:$G$48,2,FALSE)+ROW()-2)),\"\")","v":{"$error":"#N/A"}},{"$f":"IF(INDIRECT(\"c\" & (VLOOKUP(Rebalance!$D$57,$F$2:$G$48,2,FALSE)+ROW()-2))=Rebalance!$D$57,INDIRECT(\"a\" & (VLOOKUP(Rebalance!$D$57,$F$2:$G$48,2,FALSE)+ROW()-2)),\"\")","v":{"$error":"#N/A"}},{"$f":"IF(INDIRECT(\"c\" & (VLOOKUP(Rebalance!$D$58,$F$2:$G$48,2,FALSE)+ROW()-2))=Rebalance!$D$58,INDIRECT(\"a\" & (VLOOKUP(Rebalance!$D$58,$F$2:$G$48,2,FALSE)+ROW()-2)),\"\")","v":{"$error":"#N/A"}},{"$f":"IF(INDIRECT(\"c\" & (VLOOKUP(Rebalance!$D$59,$F$2:$G$48,2,FALSE)+ROW()-2))=Rebalance!$D$59,INDIRECT(\"a\" & (VLOOKUP(Rebalance!$D$59,$F$2:$G$48,2,FALSE)+ROW()-2)),\"\")","v":{"$error":"#N/A"}},{"$f":"IF(INDIRECT(\"c\" & (VLOOKUP(Rebalance!$D$60,$F$2:$G$48,2,FALSE)+ROW()-2))=Rebalance!$D$60,INDIRECT(\"a\" & (VLOOKUP(Rebalance!$D$60,$F$2:$G$48,2,FALSE)+ROW()-2)),\"\")","v":{"$error":"#N/A"}},{"$f":"IF(INDIRECT(\"c\" & (VLOOKUP(Rebalance!$D$61,$F$2:$G$48,2,FALSE)+ROW()-2))=Rebalance!$D$61,INDIRECT(\"a\" & (VLOOKUP(Rebalance!$D$61,$F$2:$G$48,2,FALSE)+ROW()-2)),\"\")","v":{"$error":"#N/A"}},{"$f":"IF(INDIRECT(\"c\" & (VLOOKUP(Rebalance!$D$62,$F$2:$G$48,2,FALSE)+ROW()-2))=Rebalance!$D$62,INDIRECT(\"a\" & (VLOOKUP(Rebalance!$D$62,$F$2:$G$48,2,FALSE)+ROW()-2)),\"\")","v":{"$error":"#N/A"}},{"$f":"IF(INDIRECT(\"c\" & (VLOOKUP(Rebalance!$D$63,$F$2:$G$48,2,FALSE)+ROW()-2))=Rebalance!$D$63,INDIRECT(\"a\" & (VLOOKUP(Rebalance!$D$63,$F$2:$G$48,2,FALSE)+ROW()-2)),\"\")","v":{"$error":"#N/A"}},{"$f":"IF(INDIRECT(\"c\" & (VLOOKUP(Rebalance!$D$64,$F$2:$G$48,2,FALSE)+ROW()-2))=Rebalance!$D$64,INDIRECT(\"a\" & (VLOOKUP(Rebalance!$D$64,$F$2:$G$48,2,FALSE)+ROW()-2)),\"\")","v":{"$error":"#N/A"}},{"$f":"IF(INDIRECT(\"c\" & (VLOOKUP(Rebalance!$D$65,$F$2:$G$48,2,FALSE)+ROW()-2))=Rebalance!$D$65,INDIRECT(\"a\" & (VLOOKUP(Rebalance!$D$65,$F$2:$G$48,2,FALSE)+ROW()-2)),\"\")","v":{"$error":"#N/A"}},{"$f":"IF(INDIRECT(\"c\" & (VLOOKUP(Rebalance!$D$66,$F$2:$G$48,2,FALSE)+ROW()-2))=Rebalance!$D$66,INDIRECT(\"a\" & (VLOOKUP(Rebalance!$D$66,$F$2:$G$48,2,FALSE)+ROW()-2)),\"\")","v":{"$error":"#N/A"}}]
["Coronation Optimum Growth Fund P","COGFB4","Coronation Management Company",{"$f":"ROW()","v":237},null,null,{"$f":"VLOOKUP(F237,$C$2:$D$599,2,FALSE)","v":{"$error":"#N/A"}},{"$f":"IF(INDIRECT(\"c\" & (VLOOKUP(Rebalance!$D$26,$F$2:$G$48,2,FALSE)+ROW()-2))=Rebalance!$D$26,INDIRECT(\"a\" & (VLOOKUP(Rebalance!$D$26,$F$2:$G$48,2,FALSE)+ROW()-2)),\"\")","v":{"$error":"#N/A"}},{"$f":"IF(INDIRECT(\"c\" & (VLOOKUP(Rebalance!$D$27,$F$2:$G$48,2,FALSE)+ROW()-2))=Rebalance!$D$27,INDIRECT(\"a\" & (VLOOKUP(Rebalance!$D$27,$F$2:$G$48,2,FALSE)+ROW()-2)),\"\")","v":{"$error":"#N/A"}},{"$f":"IF(INDIRECT(\"c\" & (VLOOKUP(Rebalance!$D$28,$F$2:$G$48,2,FALSE)+ROW()-2))=Rebalance!$D$28,INDIRECT(\"a\" & (VLOOKUP(Rebalance!$D$28,$F$2:$G$48,2,FALSE)+ROW()-2)),\"\")","v":{"$error":"#N/A"}},{"$f":"IF(INDIRECT(\"c\" & (VLOOKUP(Rebalance!$D$29,$F$2:$G$48,2,FALSE)+ROW()-2))=Rebalance!$D$29,INDIRECT(\"a\" & (VLOOKUP(Rebalance!$D$29,$F$2:$G$48,2,FALSE)+ROW()-2)),\"\")","v":{"$error":"#N/A"}},{"$f":"IF(INDIRECT(\"c\" & (VLOOKUP(Rebalance!$D$30,$F$2:$G$48,2,FALSE)+ROW()-2))=Rebalance!$D$30,INDIRECT(\"a\" & (VLOOKUP(Rebalance!$D$30,$F$2:$G$48,2,FALSE)+ROW()-2)),\"\")","v":{"$error":"#N/A"}},{"$f":"IF(INDIRECT(\"c\" & (VLOOKUP(Rebalance!$D$31,$F$2:$G$48,2,FALSE)+ROW()-2))=Rebalance!$D$31,INDIRECT(\"a\" & (VLOOKUP(Rebalance!$D$31,$F$2:$G$48,2,FALSE)+ROW()-2)),\"\")","v":{"$error":"#N/A"}},{"$f":"IF(INDIRECT(\"c\" & (VLOOKUP(Rebalance!$D$32,$F$2:$G$48,2,FALSE)+ROW()-2))=Rebalance!$D$32,INDIRECT(\"a\" & (VLOOKUP(Rebalance!$D$32,$F$2:$G$48,2,FALSE)+ROW()-2)),\"\")","v":{"$error":"#N/A"}},{"$f":"IF(INDIRECT(\"c\" & (VLOOKUP(Rebalance!$D$33,$F$2:$G$48,2,FALSE)+ROW()-2))=Rebalance!$D$33,INDIRECT(\"a\" & (VLOOKUP(Rebalance!$D$33,$F$2:$G$48,2,FALSE)+ROW()-2)),\"\")","v":{"$error":"#N/A"}},{"$f":"IF(INDIRECT(\"c\" & (VLOOKUP(Rebalance!$D$34,$F$2:$G$48,2,FALSE)+ROW()-2))=Rebalance!$D$34,INDIRECT(\"a\" & (VLOOKUP(Rebalance!$D$34,$F$2:$G$48,2,FALSE)+ROW()-2)),\"\")","v":{"$error":"#N/A"}},{"$f":"IF(INDIRECT(\"c\" & (VLOOKUP(Rebalance!$D$35,$F$2:$G$48,2,FALSE)+ROW()-2))=Rebalance!$D$35,INDIRECT(\"a\" & (VLOOKUP(Rebalance!$D$35,$F$2:$G$48,2,FALSE)+ROW()-2)),\"\")","v":{"$error":"#N/A"}},{"$f":"IF(INDIRECT(\"c\" & (VLOOKUP(Rebalance!$D$36,$F$2:$G$48,2,FALSE)+ROW()-2))=Rebalance!$D$36,INDIRECT(\"a\" & (VLOOKUP(Rebalance!$D$36,$F$2:$G$48,2,FALSE)+ROW()-2)),\"\")","v":{"$error":"#N/A"}},{"$f":"IF(INDIRECT(\"c\" & (VLOOKUP(Rebalance!$D$37,$F$2:$G$48,2,FALSE)+ROW()-2))=Rebalance!$D$37,INDIRECT(\"a\" & (VLOOKUP(Rebalance!$D$37,$F$2:$G$48,2,FALSE)+ROW()-2)),\"\")","v":{"$error":"#N/A"}},{"$f":"IF(INDIRECT(\"c\" & (VLOOKUP(Rebalance!$D$38,$F$2:$G$48,2,FALSE)+ROW()-2))=Rebalance!$D$38,INDIRECT(\"a\" & (VLOOKUP(Rebalance!$D$38,$F$2:$G$48,2,FALSE)+ROW()-2)),\"\")","v":{"$error":"#N/A"}},{"$f":"IF(INDIRECT(\"c\" & (VLOOKUP(Rebalance!$D$39,$F$2:$G$48,2,FALSE)+ROW()-2))=Rebalance!$D$39,INDIRECT(\"a\" & (VLOOKUP(Rebalance!$D$39,$F$2:$G$48,2,FALSE)+ROW()-2)),\"\")","v":{"$error":"#N/A"}},{"$f":"IF(INDIRECT(\"c\" & (VLOOKUP(Rebalance!$D$40,$F$2:$G$48,2,FALSE)+ROW()-2))=Rebalance!$D$40,INDIRECT(\"a\" & (VLOOKUP(Rebalance!$D$40,$F$2:$G$48,2,FALSE)+ROW()-2)),\"\")","v":{"$error":"#N/A"}},{"$f":"IF(INDIRECT(\"c\" & (VLOOKUP(Rebalance!$D$52,$F$2:$G$48,2,FALSE)+ROW()-2))=Rebalance!$D$52,INDIRECT(\"a\" & (VLOOKUP(Rebalance!$D$52,$F$2:$G$48,2,FALSE)+ROW()-2)),\"\")","v":{"$error":"#N/A"}},{"$f":"IF(INDIRECT(\"c\" & (VLOOKUP(Rebalance!$D$53,$F$2:$G$48,2,FALSE)+ROW()-2))=Rebalance!$D$53,INDIRECT(\"a\" & (VLOOKUP(Rebalance!$D$53,$F$2:$G$48,2,FALSE)+ROW()-2)),\"\")","v":{"$error":"#N/A"}},{"$f":"IF(INDIRECT(\"c\" & (VLOOKUP(Rebalance!$D$54,$F$2:$G$48,2,FALSE)+ROW()-2))=Rebalance!$D$54,INDIRECT(\"a\" & (VLOOKUP(Rebalance!$D$54,$F$2:$G$48,2,FALSE)+ROW()-2)),\"\")","v":{"$error":"#N/A"}},{"$f":"IF(INDIRECT(\"c\" & (VLOOKUP(Rebalance!$D$55,$F$2:$G$48,2,FALSE)+ROW()-2))=Rebalance!$D$55,INDIRECT(\"a\" & (VLOOKUP(Rebalance!$D$55,$F$2:$G$48,2,FALSE)+ROW()-2)),\"\")","v":{"$error":"#N/A"}},{"$f":"IF(INDIRECT(\"c\" & (VLOOKUP(Rebalance!$D$56,$F$2:$G$48,2,FALSE)+ROW()-2))=Rebalance!$D$56,INDIRECT(\"a\" & (VLOOKUP(Rebalance!$D$56,$F$2:$G$48,2,FALSE)+ROW()-2)),\"\")","v":{"$error":"#N/A"}},{"$f":"IF(INDIRECT(\"c\" & (VLOOKUP(Rebalance!$D$57,$F$2:$G$48,2,FALSE)+ROW()-2))=Rebalance!$D$57,INDIRECT(\"a\" & (VLOOKUP(Rebalance!$D$57,$F$2:$G$48,2,FALSE)+ROW()-2)),\"\")","v":{"$error":"#N/A"}},{"$f":"IF(INDIRECT(\"c\" & (VLOOKUP(Rebalance!$D$58,$F$2:$G$48,2,FALSE)+ROW()-2))=Rebalance!$D$58,INDIRECT(\"a\" & (VLOOKUP(Rebalance!$D$58,$F$2:$G$48,2,FALSE)+ROW()-2)),\"\")","v":{"$error":"#N/A"}},{"$f":"IF(INDIRECT(\"c\" & (VLOOKUP(Rebalance!$D$59,$F$2:$G$48,2,FALSE)+ROW()-2))=Rebalance!$D$59,INDIRECT(\"a\" & (VLOOKUP(Rebalance!$D$59,$F$2:$G$48,2,FALSE)+ROW()-2)),\"\")","v":{"$error":"#N/A"}},{"$f":"IF(INDIRECT(\"c\" & (VLOOKUP(Rebalance!$D$60,$F$2:$G$48,2,FALSE)+ROW()-2))=Rebalance!$D$60,INDIRECT(\"a\" & (VLOOKUP(Rebalance!$D$60,$F$2:$G$48,2,FALSE)+ROW()-2)),\"\")","v":{"$error":"#N/A"}},{"$f":"IF(INDIRECT(\"c\" & (VLOOKUP(Rebalance!$D$61,$F$2:$G$48,2,FALSE)+ROW()-2))=Rebalance!$D$61,INDIRECT(\"a\" & (VLOOKUP(Rebalance!$D$61,$F$2:$G$48,2,FALSE)+ROW()-2)),\"\")","v":{"$error":"#N/A"}},{"$f":"IF(INDIRECT(\"c\" & (VLOOKUP(Rebalance!$D$62,$F$2:$G$48,2,FALSE)+ROW()-2))=Rebalance!$D$62,INDIRECT(\"a\" & (VLOOKUP(Rebalance!$D$62,$F$2:$G$48,2,FALSE)+ROW()-2)),\"\")","v":{"$error":"#N/A"}},{"$f":"IF(INDIRECT(\"c\" & (VLOOKUP(Rebalance!$D$63,$F$2:$G$48,2,FALSE)+ROW()-2))=Rebalance!$D$63,INDIRECT(\"a\" & (VLOOKUP(Rebalance!$D$63,$F$2:$G$48,2,FALSE)+ROW()-2)),\"\")","v":{"$error":"#N/A"}},{"$f":"IF(INDIRECT(\"c\" & (VLOOKUP(Rebalance!$D$64,$F$2:$G$48,2,FALSE)+ROW()-2))=Rebalance!$D$64,INDIRECT(\"a\" & (VLOOKUP(Rebalance!$D$64,$F$2:$G$48,2,FALSE)+ROW()-2)),\"\")","v":{"$error":"#N/A"}},{"$f":"IF(INDIRECT(\"c\" & (VLOOKUP(Rebalance!$D$65,$F$2:$G$48,2,FALSE)+ROW()-2))=Rebalance!$D$65,INDIRECT(\"a\" & (VLOOKUP(Rebalance!$D$65,$F$2:$G$48,2,FALSE)+ROW()-2)),\"\")","v":{"$error":"#N/A"}},{"$f":"IF(INDIRECT(\"c\" & (VLOOKUP(Rebalance!$D$66,$F$2:$G$48,2,FALSE)+ROW()-2))=Rebalance!$D$66,INDIRECT(\"a\" & (VLOOKUP(Rebalance!$D$66,$F$2:$G$48,2,FALSE)+ROW()-2)),\"\")","v":{"$error":"#N/A"}}]
["Coronation Property Equity Fund","CPEF","Coronation Management Company",{"$f":"ROW()","v":238},null,null,{"$f":"VLOOKUP(F238,$C$2:$D$599,2,FALSE)","v":{"$error":"#N/A"}},{"$f":"IF(INDIRECT(\"c\" & (VLOOKUP(Rebalance!$D$26,$F$2:$G$48,2,FALSE)+ROW()-2))=Rebalance!$D$26,INDIRECT(\"a\" & (VLOOKUP(Rebalance!$D$26,$F$2:$G$48,2,FALSE)+ROW()-2)),\"\")","v":{"$error":"#N/A"}},{"$f":"IF(INDIRECT(\"c\" & (VLOOKUP(Rebalance!$D$27,$F$2:$G$48,2,FALSE)+ROW()-2))=Rebalance!$D$27,INDIRECT(\"a\" & (VLOOKUP(Rebalance!$D$27,$F$2:$G$48,2,FALSE)+ROW()-2)),\"\")","v":{"$error":"#N/A"}},{"$f":"IF(INDIRECT(\"c\" & (VLOOKUP(Rebalance!$D$28,$F$2:$G$48,2,FALSE)+ROW()-2))=Rebalance!$D$28,INDIRECT(\"a\" & (VLOOKUP(Rebalance!$D$28,$F$2:$G$48,2,FALSE)+ROW()-2)),\"\")","v":{"$error":"#N/A"}},{"$f":"IF(INDIRECT(\"c\" & (VLOOKUP(Rebalance!$D$29,$F$2:$G$48,2,FALSE)+ROW()-2))=Rebalance!$D$29,INDIRECT(\"a\" & (VLOOKUP(Rebalance!$D$29,$F$2:$G$48,2,FALSE)+ROW()-2)),\"\")","v":{"$error":"#N/A"}},{"$f":"IF(INDIRECT(\"c\" & (VLOOKUP(Rebalance!$D$30,$F$2:$G$48,2,FALSE)+ROW()-2))=Rebalance!$D$30,INDIRECT(\"a\" & (VLOOKUP(Rebalance!$D$30,$F$2:$G$48,2,FALSE)+ROW()-2)),\"\")","v":{"$error":"#N/A"}},{"$f":"IF(INDIRECT(\"c\" & (VLOOKUP(Rebalance!$D$31,$F$2:$G$48,2,FALSE)+ROW()-2))=Rebalance!$D$31,INDIRECT(\"a\" & (VLOOKUP(Rebalance!$D$31,$F$2:$G$48,2,FALSE)+ROW()-2)),\"\")","v":{"$error":"#N/A"}},{"$f":"IF(INDIRECT(\"c\" & (VLOOKUP(Rebalance!$D$32,$F$2:$G$48,2,FALSE)+ROW()-2))=Rebalance!$D$32,INDIRECT(\"a\" & (VLOOKUP(Rebalance!$D$32,$F$2:$G$48,2,FALSE)+ROW()-2)),\"\")","v":{"$error":"#N/A"}},{"$f":"IF(INDIRECT(\"c\" & (VLOOKUP(Rebalance!$D$33,$F$2:$G$48,2,FALSE)+ROW()-2))=Rebalance!$D$33,INDIRECT(\"a\" & (VLOOKUP(Rebalance!$D$33,$F$2:$G$48,2,FALSE)+ROW()-2)),\"\")","v":{"$error":"#N/A"}},{"$f":"IF(INDIRECT(\"c\" & (VLOOKUP(Rebalance!$D$34,$F$2:$G$48,2,FALSE)+ROW()-2))=Rebalance!$D$34,INDIRECT(\"a\" & (VLOOKUP(Rebalance!$D$34,$F$2:$G$48,2,FALSE)+ROW()-2)),\"\")","v":{"$error":"#N/A"}},{"$f":"IF(INDIRECT(\"c\" & (VLOOKUP(Rebalance!$D$35,$F$2:$G$48,2,FALSE)+ROW()-2))=Rebalance!$D$35,INDIRECT(\"a\" & (VLOOKUP(Rebalance!$D$35,$F$2:$G$48,2,FALSE)+ROW()-2)),\"\")","v":{"$error":"#N/A"}},{"$f":"IF(INDIRECT(\"c\" & (VLOOKUP(Rebalance!$D$36,$F$2:$G$48,2,FALSE)+ROW()-2))=Rebalance!$D$36,INDIRECT(\"a\" & (VLOOKUP(Rebalance!$D$36,$F$2:$G$48,2,FALSE)+ROW()-2)),\"\")","v":{"$error":"#N/A"}},{"$f":"IF(INDIRECT(\"c\" & (VLOOKUP(Rebalance!$D$37,$F$2:$G$48,2,FALSE)+ROW()-2))=Rebalance!$D$37,INDIRECT(\"a\" & (VLOOKUP(Rebalance!$D$37,$F$2:$G$48,2,FALSE)+ROW()-2)),\"\")","v":{"$error":"#N/A"}},{"$f":"IF(INDIRECT(\"c\" & (VLOOKUP(Rebalance!$D$38,$F$2:$G$48,2,FALSE)+ROW()-2))=Rebalance!$D$38,INDIRECT(\"a\" & (VLOOKUP(Rebalance!$D$38,$F$2:$G$48,2,FALSE)+ROW()-2)),\"\")","v":{"$error":"#N/A"}},{"$f":"IF(INDIRECT(\"c\" & (VLOOKUP(Rebalance!$D$39,$F$2:$G$48,2,FALSE)+ROW()-2))=Rebalance!$D$39,INDIRECT(\"a\" & (VLOOKUP(Rebalance!$D$39,$F$2:$G$48,2,FALSE)+ROW()-2)),\"\")","v":{"$error":"#N/A"}},{"$f":"IF(INDIRECT(\"c\" & (VLOOKUP(Rebalance!$D$40,$F$2:$G$48,2,FALSE)+ROW()-2))=Rebalance!$D$40,INDIRECT(\"a\" & (VLOOKUP(Rebalance!$D$40,$F$2:$G$48,2,FALSE)+ROW()-2)),\"\")","v":{"$error":"#N/A"}},{"$f":"IF(INDIRECT(\"c\" & (VLOOKUP(Rebalance!$D$52,$F$2:$G$48,2,FALSE)+ROW()-2))=Rebalance!$D$52,INDIRECT(\"a\" & (VLOOKUP(Rebalance!$D$52,$F$2:$G$48,2,FALSE)+ROW()-2)),\"\")","v":{"$error":"#N/A"}},{"$f":"IF(INDIRECT(\"c\" & (VLOOKUP(Rebalance!$D$53,$F$2:$G$48,2,FALSE)+ROW()-2))=Rebalance!$D$53,INDIRECT(\"a\" & (VLOOKUP(Rebalance!$D$53,$F$2:$G$48,2,FALSE)+ROW()-2)),\"\")","v":{"$error":"#N/A"}},{"$f":"IF(INDIRECT(\"c\" & (VLOOKUP(Rebalance!$D$54,$F$2:$G$48,2,FALSE)+ROW()-2))=Rebalance!$D$54,INDIRECT(\"a\" & (VLOOKUP(Rebalance!$D$54,$F$2:$G$48,2,FALSE)+ROW()-2)),\"\")","v":{"$error":"#N/A"}},{"$f":"IF(INDIRECT(\"c\" & (VLOOKUP(Rebalance!$D$55,$F$2:$G$48,2,FALSE)+ROW()-2))=Rebalance!$D$55,INDIRECT(\"a\" & (VLOOKUP(Rebalance!$D$55,$F$2:$G$48,2,FALSE)+ROW()-2)),\"\")","v":{"$error":"#N/A"}},{"$f":"IF(INDIRECT(\"c\" & (VLOOKUP(Rebalance!$D$56,$F$2:$G$48,2,FALSE)+ROW()-2))=Rebalance!$D$56,INDIRECT(\"a\" & (VLOOKUP(Rebalance!$D$56,$F$2:$G$48,2,FALSE)+ROW()-2)),\"\")","v":{"$error":"#N/A"}},{"$f":"IF(INDIRECT(\"c\" & (VLOOKUP(Rebalance!$D$57,$F$2:$G$48,2,FALSE)+ROW()-2))=Rebalance!$D$57,INDIRECT(\"a\" & (VLOOKUP(Rebalance!$D$57,$F$2:$G$48,2,FALSE)+ROW()-2)),\"\")","v":{"$error":"#N/A"}},{"$f":"IF(INDIRECT(\"c\" & (VLOOKUP(Rebalance!$D$58,$F$2:$G$48,2,FALSE)+ROW()-2))=Rebalance!$D$58,INDIRECT(\"a\" & (VLOOKUP(Rebalance!$D$58,$F$2:$G$48,2,FALSE)+ROW()-2)),\"\")","v":{"$error":"#N/A"}},{"$f":"IF(INDIRECT(\"c\" & (VLOOKUP(Rebalance!$D$59,$F$2:$G$48,2,FALSE)+ROW()-2))=Rebalance!$D$59,INDIRECT(\"a\" & (VLOOKUP(Rebalance!$D$59,$F$2:$G$48,2,FALSE)+ROW()-2)),\"\")","v":{"$error":"#N/A"}},{"$f":"IF(INDIRECT(\"c\" & (VLOOKUP(Rebalance!$D$60,$F$2:$G$48,2,FALSE)+ROW()-2))=Rebalance!$D$60,INDIRECT(\"a\" & (VLOOKUP(Rebalance!$D$60,$F$2:$G$48,2,FALSE)+ROW()-2)),\"\")","v":{"$error":"#N/A"}},{"$f":"IF(INDIRECT(\"c\" & (VLOOKUP(Rebalance!$D$61,$F$2:$G$48,2,FALSE)+ROW()-2))=Rebalance!$D$61,INDIRECT(\"a\" & (VLOOKUP(Rebalance!$D$61,$F$2:$G$48,2,FALSE)+ROW()-2)),\"\")","v":{"$error":"#N/A"}},{"$f":"IF(INDIRECT(\"c\" & (VLOOKUP(Rebalance!$D$62,$F$2:$G$48,2,FALSE)+ROW()-2))=Rebalance!$D$62,INDIRECT(\"a\" & (VLOOKUP(Rebalance!$D$62,$F$2:$G$48,2,FALSE)+ROW()-2)),\"\")","v":{"$error":"#N/A"}},{"$f":"IF(INDIRECT(\"c\" & (VLOOKUP(Rebalance!$D$63,$F$2:$G$48,2,FALSE)+ROW()-2))=Rebalance!$D$63,INDIRECT(\"a\" & (VLOOKUP(Rebalance!$D$63,$F$2:$G$48,2,FALSE)+ROW()-2)),\"\")","v":{"$error":"#N/A"}},{"$f":"IF(INDIRECT(\"c\" & (VLOOKUP(Rebalance!$D$64,$F$2:$G$48,2,FALSE)+ROW()-2))=Rebalance!$D$64,INDIRECT(\"a\" & (VLOOKUP(Rebalance!$D$64,$F$2:$G$48,2,FALSE)+ROW()-2)),\"\")","v":{"$error":"#N/A"}},{"$f":"IF(INDIRECT(\"c\" & (VLOOKUP(Rebalance!$D$65,$F$2:$G$48,2,FALSE)+ROW()-2))=Rebalance!$D$65,INDIRECT(\"a\" & (VLOOKUP(Rebalance!$D$65,$F$2:$G$48,2,FALSE)+ROW()-2)),\"\")","v":{"$error":"#N/A"}},{"$f":"IF(INDIRECT(\"c\" & (VLOOKUP(Rebalance!$D$66,$F$2:$G$48,2,FALSE)+ROW()-2))=Rebalance!$D$66,INDIRECT(\"a\" & (VLOOKUP(Rebalance!$D$66,$F$2:$G$48,2,FALSE)+ROW()-2)),\"\")","v":{"$error":"#N/A"}}]
["Coronation Strategic Income Fund P","CSIB4","Coronation Management Company",{"$f":"ROW()","v":239},null,null,{"$f":"VLOOKUP(F239,$C$2:$D$599,2,FALSE)","v":{"$error":"#N/A"}},{"$f":"IF(INDIRECT(\"c\" & (VLOOKUP(Rebalance!$D$26,$F$2:$G$48,2,FALSE)+ROW()-2))=Rebalance!$D$26,INDIRECT(\"a\" & (VLOOKUP(Rebalance!$D$26,$F$2:$G$48,2,FALSE)+ROW()-2)),\"\")","v":{"$error":"#N/A"}},{"$f":"IF(INDIRECT(\"c\" & (VLOOKUP(Rebalance!$D$27,$F$2:$G$48,2,FALSE)+ROW()-2))=Rebalance!$D$27,INDIRECT(\"a\" & (VLOOKUP(Rebalance!$D$27,$F$2:$G$48,2,FALSE)+ROW()-2)),\"\")","v":{"$error":"#N/A"}},{"$f":"IF(INDIRECT(\"c\" & (VLOOKUP(Rebalance!$D$28,$F$2:$G$48,2,FALSE)+ROW()-2))=Rebalance!$D$28,INDIRECT(\"a\" & (VLOOKUP(Rebalance!$D$28,$F$2:$G$48,2,FALSE)+ROW()-2)),\"\")","v":{"$error":"#N/A"}},{"$f":"IF(INDIRECT(\"c\" & (VLOOKUP(Rebalance!$D$29,$F$2:$G$48,2,FALSE)+ROW()-2))=Rebalance!$D$29,INDIRECT(\"a\" & (VLOOKUP(Rebalance!$D$29,$F$2:$G$48,2,FALSE)+ROW()-2)),\"\")","v":{"$error":"#N/A"}},{"$f":"IF(INDIRECT(\"c\" & (VLOOKUP(Rebalance!$D$30,$F$2:$G$48,2,FALSE)+ROW()-2))=Rebalance!$D$30,INDIRECT(\"a\" & (VLOOKUP(Rebalance!$D$30,$F$2:$G$48,2,FALSE)+ROW()-2)),\"\")","v":{"$error":"#N/A"}},{"$f":"IF(INDIRECT(\"c\" & (VLOOKUP(Rebalance!$D$31,$F$2:$G$48,2,FALSE)+ROW()-2))=Rebalance!$D$31,INDIRECT(\"a\" & (VLOOKUP(Rebalance!$D$31,$F$2:$G$48,2,FALSE)+ROW()-2)),\"\")","v":{"$error":"#N/A"}},{"$f":"IF(INDIRECT(\"c\" & (VLOOKUP(Rebalance!$D$32,$F$2:$G$48,2,FALSE)+ROW()-2))=Rebalance!$D$32,INDIRECT(\"a\" & (VLOOKUP(Rebalance!$D$32,$F$2:$G$48,2,FALSE)+ROW()-2)),\"\")","v":{"$error":"#N/A"}},{"$f":"IF(INDIRECT(\"c\" & (VLOOKUP(Rebalance!$D$33,$F$2:$G$48,2,FALSE)+ROW()-2))=Rebalance!$D$33,INDIRECT(\"a\" & (VLOOKUP(Rebalance!$D$33,$F$2:$G$48,2,FALSE)+ROW()-2)),\"\")","v":{"$error":"#N/A"}},{"$f":"IF(INDIRECT(\"c\" & (VLOOKUP(Rebalance!$D$34,$F$2:$G$48,2,FALSE)+ROW()-2))=Rebalance!$D$34,INDIRECT(\"a\" & (VLOOKUP(Rebalance!$D$34,$F$2:$G$48,2,FALSE)+ROW()-2)),\"\")","v":{"$error":"#N/A"}},{"$f":"IF(INDIRECT(\"c\" & (VLOOKUP(Rebalance!$D$35,$F$2:$G$48,2,FALSE)+ROW()-2))=Rebalance!$D$35,INDIRECT(\"a\" & (VLOOKUP(Rebalance!$D$35,$F$2:$G$48,2,FALSE)+ROW()-2)),\"\")","v":{"$error":"#N/A"}},{"$f":"IF(INDIRECT(\"c\" & (VLOOKUP(Rebalance!$D$36,$F$2:$G$48,2,FALSE)+ROW()-2))=Rebalance!$D$36,INDIRECT(\"a\" & (VLOOKUP(Rebalance!$D$36,$F$2:$G$48,2,FALSE)+ROW()-2)),\"\")","v":{"$error":"#N/A"}},{"$f":"IF(INDIRECT(\"c\" & (VLOOKUP(Rebalance!$D$37,$F$2:$G$48,2,FALSE)+ROW()-2))=Rebalance!$D$37,INDIRECT(\"a\" & (VLOOKUP(Rebalance!$D$37,$F$2:$G$48,2,FALSE)+ROW()-2)),\"\")","v":{"$error":"#N/A"}},{"$f":"IF(INDIRECT(\"c\" & (VLOOKUP(Rebalance!$D$38,$F$2:$G$48,2,FALSE)+ROW()-2))=Rebalance!$D$38,INDIRECT(\"a\" & (VLOOKUP(Rebalance!$D$38,$F$2:$G$48,2,FALSE)+ROW()-2)),\"\")","v":{"$error":"#N/A"}},{"$f":"IF(INDIRECT(\"c\" & (VLOOKUP(Rebalance!$D$39,$F$2:$G$48,2,FALSE)+ROW()-2))=Rebalance!$D$39,INDIRECT(\"a\" & (VLOOKUP(Rebalance!$D$39,$F$2:$G$48,2,FALSE)+ROW()-2)),\"\")","v":{"$error":"#N/A"}},{"$f":"IF(INDIRECT(\"c\" & (VLOOKUP(Rebalance!$D$40,$F$2:$G$48,2,FALSE)+ROW()-2))=Rebalance!$D$40,INDIRECT(\"a\" & (VLOOKUP(Rebalance!$D$40,$F$2:$G$48,2,FALSE)+ROW()-2)),\"\")","v":{"$error":"#N/A"}},{"$f":"IF(INDIRECT(\"c\" & (VLOOKUP(Rebalance!$D$52,$F$2:$G$48,2,FALSE)+ROW()-2))=Rebalance!$D$52,INDIRECT(\"a\" & (VLOOKUP(Rebalance!$D$52,$F$2:$G$48,2,FALSE)+ROW()-2)),\"\")","v":{"$error":"#N/A"}},{"$f":"IF(INDIRECT(\"c\" & (VLOOKUP(Rebalance!$D$53,$F$2:$G$48,2,FALSE)+ROW()-2))=Rebalance!$D$53,INDIRECT(\"a\" & (VLOOKUP(Rebalance!$D$53,$F$2:$G$48,2,FALSE)+ROW()-2)),\"\")","v":{"$error":"#N/A"}},{"$f":"IF(INDIRECT(\"c\" & (VLOOKUP(Rebalance!$D$54,$F$2:$G$48,2,FALSE)+ROW()-2))=Rebalance!$D$54,INDIRECT(\"a\" & (VLOOKUP(Rebalance!$D$54,$F$2:$G$48,2,FALSE)+ROW()-2)),\"\")","v":{"$error":"#N/A"}},{"$f":"IF(INDIRECT(\"c\" & (VLOOKUP(Rebalance!$D$55,$F$2:$G$48,2,FALSE)+ROW()-2))=Rebalance!$D$55,INDIRECT(\"a\" & (VLOOKUP(Rebalance!$D$55,$F$2:$G$48,2,FALSE)+ROW()-2)),\"\")","v":{"$error":"#N/A"}},{"$f":"IF(INDIRECT(\"c\" & (VLOOKUP(Rebalance!$D$56,$F$2:$G$48,2,FALSE)+ROW()-2))=Rebalance!$D$56,INDIRECT(\"a\" & (VLOOKUP(Rebalance!$D$56,$F$2:$G$48,2,FALSE)+ROW()-2)),\"\")","v":{"$error":"#N/A"}},{"$f":"IF(INDIRECT(\"c\" & (VLOOKUP(Rebalance!$D$57,$F$2:$G$48,2,FALSE)+ROW()-2))=Rebalance!$D$57,INDIRECT(\"a\" & (VLOOKUP(Rebalance!$D$57,$F$2:$G$48,2,FALSE)+ROW()-2)),\"\")","v":{"$error":"#N/A"}},{"$f":"IF(INDIRECT(\"c\" & (VLOOKUP(Rebalance!$D$58,$F$2:$G$48,2,FALSE)+ROW()-2))=Rebalance!$D$58,INDIRECT(\"a\" & (VLOOKUP(Rebalance!$D$58,$F$2:$G$48,2,FALSE)+ROW()-2)),\"\")","v":{"$error":"#N/A"}},{"$f":"IF(INDIRECT(\"c\" & (VLOOKUP(Rebalance!$D$59,$F$2:$G$48,2,FALSE)+ROW()-2))=Rebalance!$D$59,INDIRECT(\"a\" & (VLOOKUP(Rebalance!$D$59,$F$2:$G$48,2,FALSE)+ROW()-2)),\"\")","v":{"$error":"#N/A"}},{"$f":"IF(INDIRECT(\"c\" & (VLOOKUP(Rebalance!$D$60,$F$2:$G$48,2,FALSE)+ROW()-2))=Rebalance!$D$60,INDIRECT(\"a\" & (VLOOKUP(Rebalance!$D$60,$F$2:$G$48,2,FALSE)+ROW()-2)),\"\")","v":{"$error":"#N/A"}},{"$f":"IF(INDIRECT(\"c\" & (VLOOKUP(Rebalance!$D$61,$F$2:$G$48,2,FALSE)+ROW()-2))=Rebalance!$D$61,INDIRECT(\"a\" & (VLOOKUP(Rebalance!$D$61,$F$2:$G$48,2,FALSE)+ROW()-2)),\"\")","v":{"$error":"#N/A"}},{"$f":"IF(INDIRECT(\"c\" & (VLOOKUP(Rebalance!$D$62,$F$2:$G$48,2,FALSE)+ROW()-2))=Rebalance!$D$62,INDIRECT(\"a\" & (VLOOKUP(Rebalance!$D$62,$F$2:$G$48,2,FALSE)+ROW()-2)),\"\")","v":{"$error":"#N/A"}},{"$f":"IF(INDIRECT(\"c\" & (VLOOKUP(Rebalance!$D$63,$F$2:$G$48,2,FALSE)+ROW()-2))=Rebalance!$D$63,INDIRECT(\"a\" & (VLOOKUP(Rebalance!$D$63,$F$2:$G$48,2,FALSE)+ROW()-2)),\"\")","v":{"$error":"#N/A"}},{"$f":"IF(INDIRECT(\"c\" & (VLOOKUP(Rebalance!$D$64,$F$2:$G$48,2,FALSE)+ROW()-2))=Rebalance!$D$64,INDIRECT(\"a\" & (VLOOKUP(Rebalance!$D$64,$F$2:$G$48,2,FALSE)+ROW()-2)),\"\")","v":{"$error":"#N/A"}},{"$f":"IF(INDIRECT(\"c\" & (VLOOKUP(Rebalance!$D$65,$F$2:$G$48,2,FALSE)+ROW()-2))=Rebalance!$D$65,INDIRECT(\"a\" & (VLOOKUP(Rebalance!$D$65,$F$2:$G$48,2,FALSE)+ROW()-2)),\"\")","v":{"$error":"#N/A"}},{"$f":"IF(INDIRECT(\"c\" & (VLOOKUP(Rebalance!$D$66,$F$2:$G$48,2,FALSE)+ROW()-2))=Rebalance!$D$66,INDIRECT(\"a\" & (VLOOKUP(Rebalance!$D$66,$F$2:$G$48,2,FALSE)+ROW()-2)),\"\")","v":{"$error":"#N/A"}}]
["Coronation Top 20 Fund P","CTTB4","Coronation Management Company",{"$f":"ROW()","v":240},null,null,{"$f":"VLOOKUP(F240,$C$2:$D$599,2,FALSE)","v":{"$error":"#N/A"}},{"$f":"IF(INDIRECT(\"c\" & (VLOOKUP(Rebalance!$D$26,$F$2:$G$48,2,FALSE)+ROW()-2))=Rebalance!$D$26,INDIRECT(\"a\" & (VLOOKUP(Rebalance!$D$26,$F$2:$G$48,2,FALSE)+ROW()-2)),\"\")","v":{"$error":"#N/A"}},{"$f":"IF(INDIRECT(\"c\" & (VLOOKUP(Rebalance!$D$27,$F$2:$G$48,2,FALSE)+ROW()-2))=Rebalance!$D$27,INDIRECT(\"a\" & (VLOOKUP(Rebalance!$D$27,$F$2:$G$48,2,FALSE)+ROW()-2)),\"\")","v":{"$error":"#N/A"}},{"$f":"IF(INDIRECT(\"c\" & (VLOOKUP(Rebalance!$D$28,$F$2:$G$48,2,FALSE)+ROW()-2))=Rebalance!$D$28,INDIRECT(\"a\" & (VLOOKUP(Rebalance!$D$28,$F$2:$G$48,2,FALSE)+ROW()-2)),\"\")","v":{"$error":"#N/A"}},{"$f":"IF(INDIRECT(\"c\" & (VLOOKUP(Rebalance!$D$29,$F$2:$G$48,2,FALSE)+ROW()-2))=Rebalance!$D$29,INDIRECT(\"a\" & (VLOOKUP(Rebalance!$D$29,$F$2:$G$48,2,FALSE)+ROW()-2)),\"\")","v":{"$error":"#N/A"}},{"$f":"IF(INDIRECT(\"c\" & (VLOOKUP(Rebalance!$D$30,$F$2:$G$48,2,FALSE)+ROW()-2))=Rebalance!$D$30,INDIRECT(\"a\" & (VLOOKUP(Rebalance!$D$30,$F$2:$G$48,2,FALSE)+ROW()-2)),\"\")","v":{"$error":"#N/A"}},{"$f":"IF(INDIRECT(\"c\" & (VLOOKUP(Rebalance!$D$31,$F$2:$G$48,2,FALSE)+ROW()-2))=Rebalance!$D$31,INDIRECT(\"a\" & (VLOOKUP(Rebalance!$D$31,$F$2:$G$48,2,FALSE)+ROW()-2)),\"\")","v":{"$error":"#N/A"}},{"$f":"IF(INDIRECT(\"c\" & (VLOOKUP(Rebalance!$D$32,$F$2:$G$48,2,FALSE)+ROW()-2))=Rebalance!$D$32,INDIRECT(\"a\" & (VLOOKUP(Rebalance!$D$32,$F$2:$G$48,2,FALSE)+ROW()-2)),\"\")","v":{"$error":"#N/A"}},{"$f":"IF(INDIRECT(\"c\" & (VLOOKUP(Rebalance!$D$33,$F$2:$G$48,2,FALSE)+ROW()-2))=Rebalance!$D$33,INDIRECT(\"a\" & (VLOOKUP(Rebalance!$D$33,$F$2:$G$48,2,FALSE)+ROW()-2)),\"\")","v":{"$error":"#N/A"}},{"$f":"IF(INDIRECT(\"c\" & (VLOOKUP(Rebalance!$D$34,$F$2:$G$48,2,FALSE)+ROW()-2))=Rebalance!$D$34,INDIRECT(\"a\" & (VLOOKUP(Rebalance!$D$34,$F$2:$G$48,2,FALSE)+ROW()-2)),\"\")","v":{"$error":"#N/A"}},{"$f":"IF(INDIRECT(\"c\" & (VLOOKUP(Rebalance!$D$35,$F$2:$G$48,2,FALSE)+ROW()-2))=Rebalance!$D$35,INDIRECT(\"a\" & (VLOOKUP(Rebalance!$D$35,$F$2:$G$48,2,FALSE)+ROW()-2)),\"\")","v":{"$error":"#N/A"}},{"$f":"IF(INDIRECT(\"c\" & (VLOOKUP(Rebalance!$D$36,$F$2:$G$48,2,FALSE)+ROW()-2))=Rebalance!$D$36,INDIRECT(\"a\" & (VLOOKUP(Rebalance!$D$36,$F$2:$G$48,2,FALSE)+ROW()-2)),\"\")","v":{"$error":"#N/A"}},{"$f":"IF(INDIRECT(\"c\" & (VLOOKUP(Rebalance!$D$37,$F$2:$G$48,2,FALSE)+ROW()-2))=Rebalance!$D$37,INDIRECT(\"a\" & (VLOOKUP(Rebalance!$D$37,$F$2:$G$48,2,FALSE)+ROW()-2)),\"\")","v":{"$error":"#N/A"}},{"$f":"IF(INDIRECT(\"c\" & (VLOOKUP(Rebalance!$D$38,$F$2:$G$48,2,FALSE)+ROW()-2))=Rebalance!$D$38,INDIRECT(\"a\" & (VLOOKUP(Rebalance!$D$38,$F$2:$G$48,2,FALSE)+ROW()-2)),\"\")","v":{"$error":"#N/A"}},{"$f":"IF(INDIRECT(\"c\" & (VLOOKUP(Rebalance!$D$39,$F$2:$G$48,2,FALSE)+ROW()-2))=Rebalance!$D$39,INDIRECT(\"a\" & (VLOOKUP(Rebalance!$D$39,$F$2:$G$48,2,FALSE)+ROW()-2)),\"\")","v":{"$error":"#N/A"}},{"$f":"IF(INDIRECT(\"c\" & (VLOOKUP(Rebalance!$D$40,$F$2:$G$48,2,FALSE)+ROW()-2))=Rebalance!$D$40,INDIRECT(\"a\" & (VLOOKUP(Rebalance!$D$40,$F$2:$G$48,2,FALSE)+ROW()-2)),\"\")","v":{"$error":"#N/A"}},{"$f":"IF(INDIRECT(\"c\" & (VLOOKUP(Rebalance!$D$52,$F$2:$G$48,2,FALSE)+ROW()-2))=Rebalance!$D$52,INDIRECT(\"a\" & (VLOOKUP(Rebalance!$D$52,$F$2:$G$48,2,FALSE)+ROW()-2)),\"\")","v":{"$error":"#N/A"}},{"$f":"IF(INDIRECT(\"c\" & (VLOOKUP(Rebalance!$D$53,$F$2:$G$48,2,FALSE)+ROW()-2))=Rebalance!$D$53,INDIRECT(\"a\" & (VLOOKUP(Rebalance!$D$53,$F$2:$G$48,2,FALSE)+ROW()-2)),\"\")","v":{"$error":"#N/A"}},{"$f":"IF(INDIRECT(\"c\" & (VLOOKUP(Rebalance!$D$54,$F$2:$G$48,2,FALSE)+ROW()-2))=Rebalance!$D$54,INDIRECT(\"a\" & (VLOOKUP(Rebalance!$D$54,$F$2:$G$48,2,FALSE)+ROW()-2)),\"\")","v":{"$error":"#N/A"}},{"$f":"IF(INDIRECT(\"c\" & (VLOOKUP(Rebalance!$D$55,$F$2:$G$48,2,FALSE)+ROW()-2))=Rebalance!$D$55,INDIRECT(\"a\" & (VLOOKUP(Rebalance!$D$55,$F$2:$G$48,2,FALSE)+ROW()-2)),\"\")","v":{"$error":"#N/A"}},{"$f":"IF(INDIRECT(\"c\" & (VLOOKUP(Rebalance!$D$56,$F$2:$G$48,2,FALSE)+ROW()-2))=Rebalance!$D$56,INDIRECT(\"a\" & (VLOOKUP(Rebalance!$D$56,$F$2:$G$48,2,FALSE)+ROW()-2)),\"\")","v":{"$error":"#N/A"}},{"$f":"IF(INDIRECT(\"c\" & (VLOOKUP(Rebalance!$D$57,$F$2:$G$48,2,FALSE)+ROW()-2))=Rebalance!$D$57,INDIRECT(\"a\" & (VLOOKUP(Rebalance!$D$57,$F$2:$G$48,2,FALSE)+ROW()-2)),\"\")","v":{"$error":"#N/A"}},{"$f":"IF(INDIRECT(\"c\" & (VLOOKUP(Rebalance!$D$58,$F$2:$G$48,2,FALSE)+ROW()-2))=Rebalance!$D$58,INDIRECT(\"a\" & (VLOOKUP(Rebalance!$D$58,$F$2:$G$48,2,FALSE)+ROW()-2)),\"\")","v":{"$error":"#N/A"}},{"$f":"IF(INDIRECT(\"c\" & (VLOOKUP(Rebalance!$D$59,$F$2:$G$48,2,FALSE)+ROW()-2))=Rebalance!$D$59,INDIRECT(\"a\" & (VLOOKUP(Rebalance!$D$59,$F$2:$G$48,2,FALSE)+ROW()-2)),\"\")","v":{"$error":"#N/A"}},{"$f":"IF(INDIRECT(\"c\" & (VLOOKUP(Rebalance!$D$60,$F$2:$G$48,2,FALSE)+ROW()-2))=Rebalance!$D$60,INDIRECT(\"a\" & (VLOOKUP(Rebalance!$D$60,$F$2:$G$48,2,FALSE)+ROW()-2)),\"\")","v":{"$error":"#N/A"}},{"$f":"IF(INDIRECT(\"c\" & (VLOOKUP(Rebalance!$D$61,$F$2:$G$48,2,FALSE)+ROW()-2))=Rebalance!$D$61,INDIRECT(\"a\" & (VLOOKUP(Rebalance!$D$61,$F$2:$G$48,2,FALSE)+ROW()-2)),\"\")","v":{"$error":"#N/A"}},{"$f":"IF(INDIRECT(\"c\" & (VLOOKUP(Rebalance!$D$62,$F$2:$G$48,2,FALSE)+ROW()-2))=Rebalance!$D$62,INDIRECT(\"a\" & (VLOOKUP(Rebalance!$D$62,$F$2:$G$48,2,FALSE)+ROW()-2)),\"\")","v":{"$error":"#N/A"}},{"$f":"IF(INDIRECT(\"c\" & (VLOOKUP(Rebalance!$D$63,$F$2:$G$48,2,FALSE)+ROW()-2))=Rebalance!$D$63,INDIRECT(\"a\" & (VLOOKUP(Rebalance!$D$63,$F$2:$G$48,2,FALSE)+ROW()-2)),\"\")","v":{"$error":"#N/A"}},{"$f":"IF(INDIRECT(\"c\" & (VLOOKUP(Rebalance!$D$64,$F$2:$G$48,2,FALSE)+ROW()-2))=Rebalance!$D$64,INDIRECT(\"a\" & (VLOOKUP(Rebalance!$D$64,$F$2:$G$48,2,FALSE)+ROW()-2)),\"\")","v":{"$error":"#N/A"}},{"$f":"IF(INDIRECT(\"c\" & (VLOOKUP(Rebalance!$D$65,$F$2:$G$48,2,FALSE)+ROW()-2))=Rebalance!$D$65,INDIRECT(\"a\" & (VLOOKUP(Rebalance!$D$65,$F$2:$G$48,2,FALSE)+ROW()-2)),\"\")","v":{"$error":"#N/A"}},{"$f":"IF(INDIRECT(\"c\" & (VLOOKUP(Rebalance!$D$66,$F$2:$G$48,2,FALSE)+ROW()-2))=Rebalance!$D$66,INDIRECT(\"a\" & (VLOOKUP(Rebalance!$D$66,$F$2:$G$48,2,FALSE)+ROW()-2)),\"\")","v":{"$error":"#N/A"}}]
["Discovery Balanced Fund A","DBFD","DISCOVERY LIFE COLLECTIVE INVESTMENTS (PTY) LTD",{"$f":"ROW()","v":241},null,null,{"$f":"VLOOKUP(F241,$C$2:$D$599,2,FALSE)","v":{"$error":"#N/A"}},{"$f":"IF(INDIRECT(\"c\" & (VLOOKUP(Rebalance!$D$26,$F$2:$G$48,2,FALSE)+ROW()-2))=Rebalance!$D$26,INDIRECT(\"a\" & (VLOOKUP(Rebalance!$D$26,$F$2:$G$48,2,FALSE)+ROW()-2)),\"\")","v":{"$error":"#N/A"}},{"$f":"IF(INDIRECT(\"c\" & (VLOOKUP(Rebalance!$D$27,$F$2:$G$48,2,FALSE)+ROW()-2))=Rebalance!$D$27,INDIRECT(\"a\" & (VLOOKUP(Rebalance!$D$27,$F$2:$G$48,2,FALSE)+ROW()-2)),\"\")","v":{"$error":"#N/A"}},{"$f":"IF(INDIRECT(\"c\" & (VLOOKUP(Rebalance!$D$28,$F$2:$G$48,2,FALSE)+ROW()-2))=Rebalance!$D$28,INDIRECT(\"a\" & (VLOOKUP(Rebalance!$D$28,$F$2:$G$48,2,FALSE)+ROW()-2)),\"\")","v":{"$error":"#N/A"}},{"$f":"IF(INDIRECT(\"c\" & (VLOOKUP(Rebalance!$D$29,$F$2:$G$48,2,FALSE)+ROW()-2))=Rebalance!$D$29,INDIRECT(\"a\" & (VLOOKUP(Rebalance!$D$29,$F$2:$G$48,2,FALSE)+ROW()-2)),\"\")","v":{"$error":"#N/A"}},{"$f":"IF(INDIRECT(\"c\" & (VLOOKUP(Rebalance!$D$30,$F$2:$G$48,2,FALSE)+ROW()-2))=Rebalance!$D$30,INDIRECT(\"a\" & (VLOOKUP(Rebalance!$D$30,$F$2:$G$48,2,FALSE)+ROW()-2)),\"\")","v":{"$error":"#N/A"}},{"$f":"IF(INDIRECT(\"c\" & (VLOOKUP(Rebalance!$D$31,$F$2:$G$48,2,FALSE)+ROW()-2))=Rebalance!$D$31,INDIRECT(\"a\" & (VLOOKUP(Rebalance!$D$31,$F$2:$G$48,2,FALSE)+ROW()-2)),\"\")","v":{"$error":"#N/A"}},{"$f":"IF(INDIRECT(\"c\" & (VLOOKUP(Rebalance!$D$32,$F$2:$G$48,2,FALSE)+ROW()-2))=Rebalance!$D$32,INDIRECT(\"a\" & (VLOOKUP(Rebalance!$D$32,$F$2:$G$48,2,FALSE)+ROW()-2)),\"\")","v":{"$error":"#N/A"}},{"$f":"IF(INDIRECT(\"c\" & (VLOOKUP(Rebalance!$D$33,$F$2:$G$48,2,FALSE)+ROW()-2))=Rebalance!$D$33,INDIRECT(\"a\" & (VLOOKUP(Rebalance!$D$33,$F$2:$G$48,2,FALSE)+ROW()-2)),\"\")","v":{"$error":"#N/A"}},{"$f":"IF(INDIRECT(\"c\" & (VLOOKUP(Rebalance!$D$34,$F$2:$G$48,2,FALSE)+ROW()-2))=Rebalance!$D$34,INDIRECT(\"a\" & (VLOOKUP(Rebalance!$D$34,$F$2:$G$48,2,FALSE)+ROW()-2)),\"\")","v":{"$error":"#N/A"}},{"$f":"IF(INDIRECT(\"c\" & (VLOOKUP(Rebalance!$D$35,$F$2:$G$48,2,FALSE)+ROW()-2))=Rebalance!$D$35,INDIRECT(\"a\" & (VLOOKUP(Rebalance!$D$35,$F$2:$G$48,2,FALSE)+ROW()-2)),\"\")","v":{"$error":"#N/A"}},{"$f":"IF(INDIRECT(\"c\" & (VLOOKUP(Rebalance!$D$36,$F$2:$G$48,2,FALSE)+ROW()-2))=Rebalance!$D$36,INDIRECT(\"a\" & (VLOOKUP(Rebalance!$D$36,$F$2:$G$48,2,FALSE)+ROW()-2)),\"\")","v":{"$error":"#N/A"}},{"$f":"IF(INDIRECT(\"c\" & (VLOOKUP(Rebalance!$D$37,$F$2:$G$48,2,FALSE)+ROW()-2))=Rebalance!$D$37,INDIRECT(\"a\" & (VLOOKUP(Rebalance!$D$37,$F$2:$G$48,2,FALSE)+ROW()-2)),\"\")","v":{"$error":"#N/A"}},{"$f":"IF(INDIRECT(\"c\" & (VLOOKUP(Rebalance!$D$38,$F$2:$G$48,2,FALSE)+ROW()-2))=Rebalance!$D$38,INDIRECT(\"a\" & (VLOOKUP(Rebalance!$D$38,$F$2:$G$48,2,FALSE)+ROW()-2)),\"\")","v":{"$error":"#N/A"}},{"$f":"IF(INDIRECT(\"c\" & (VLOOKUP(Rebalance!$D$39,$F$2:$G$48,2,FALSE)+ROW()-2))=Rebalance!$D$39,INDIRECT(\"a\" & (VLOOKUP(Rebalance!$D$39,$F$2:$G$48,2,FALSE)+ROW()-2)),\"\")","v":{"$error":"#N/A"}},{"$f":"IF(INDIRECT(\"c\" & (VLOOKUP(Rebalance!$D$40,$F$2:$G$48,2,FALSE)+ROW()-2))=Rebalance!$D$40,INDIRECT(\"a\" & (VLOOKUP(Rebalance!$D$40,$F$2:$G$48,2,FALSE)+ROW()-2)),\"\")","v":{"$error":"#N/A"}},{"$f":"IF(INDIRECT(\"c\" & (VLOOKUP(Rebalance!$D$52,$F$2:$G$48,2,FALSE)+ROW()-2))=Rebalance!$D$52,INDIRECT(\"a\" & (VLOOKUP(Rebalance!$D$52,$F$2:$G$48,2,FALSE)+ROW()-2)),\"\")","v":{"$error":"#N/A"}},{"$f":"IF(INDIRECT(\"c\" & (VLOOKUP(Rebalance!$D$53,$F$2:$G$48,2,FALSE)+ROW()-2))=Rebalance!$D$53,INDIRECT(\"a\" & (VLOOKUP(Rebalance!$D$53,$F$2:$G$48,2,FALSE)+ROW()-2)),\"\")","v":{"$error":"#N/A"}},{"$f":"IF(INDIRECT(\"c\" & (VLOOKUP(Rebalance!$D$54,$F$2:$G$48,2,FALSE)+ROW()-2))=Rebalance!$D$54,INDIRECT(\"a\" & (VLOOKUP(Rebalance!$D$54,$F$2:$G$48,2,FALSE)+ROW()-2)),\"\")","v":{"$error":"#N/A"}},{"$f":"IF(INDIRECT(\"c\" & (VLOOKUP(Rebalance!$D$55,$F$2:$G$48,2,FALSE)+ROW()-2))=Rebalance!$D$55,INDIRECT(\"a\" & (VLOOKUP(Rebalance!$D$55,$F$2:$G$48,2,FALSE)+ROW()-2)),\"\")","v":{"$error":"#N/A"}},{"$f":"IF(INDIRECT(\"c\" & (VLOOKUP(Rebalance!$D$56,$F$2:$G$48,2,FALSE)+ROW()-2))=Rebalance!$D$56,INDIRECT(\"a\" & (VLOOKUP(Rebalance!$D$56,$F$2:$G$48,2,FALSE)+ROW()-2)),\"\")","v":{"$error":"#N/A"}},{"$f":"IF(INDIRECT(\"c\" & (VLOOKUP(Rebalance!$D$57,$F$2:$G$48,2,FALSE)+ROW()-2))=Rebalance!$D$57,INDIRECT(\"a\" & (VLOOKUP(Rebalance!$D$57,$F$2:$G$48,2,FALSE)+ROW()-2)),\"\")","v":{"$error":"#N/A"}},{"$f":"IF(INDIRECT(\"c\" & (VLOOKUP(Rebalance!$D$58,$F$2:$G$48,2,FALSE)+ROW()-2))=Rebalance!$D$58,INDIRECT(\"a\" & (VLOOKUP(Rebalance!$D$58,$F$2:$G$48,2,FALSE)+ROW()-2)),\"\")","v":{"$error":"#N/A"}},{"$f":"IF(INDIRECT(\"c\" & (VLOOKUP(Rebalance!$D$59,$F$2:$G$48,2,FALSE)+ROW()-2))=Rebalance!$D$59,INDIRECT(\"a\" & (VLOOKUP(Rebalance!$D$59,$F$2:$G$48,2,FALSE)+ROW()-2)),\"\")","v":{"$error":"#N/A"}},{"$f":"IF(INDIRECT(\"c\" & (VLOOKUP(Rebalance!$D$60,$F$2:$G$48,2,FALSE)+ROW()-2))=Rebalance!$D$60,INDIRECT(\"a\" & (VLOOKUP(Rebalance!$D$60,$F$2:$G$48,2,FALSE)+ROW()-2)),\"\")","v":{"$error":"#N/A"}},{"$f":"IF(INDIRECT(\"c\" & (VLOOKUP(Rebalance!$D$61,$F$2:$G$48,2,FALSE)+ROW()-2))=Rebalance!$D$61,INDIRECT(\"a\" & (VLOOKUP(Rebalance!$D$61,$F$2:$G$48,2,FALSE)+ROW()-2)),\"\")","v":{"$error":"#N/A"}},{"$f":"IF(INDIRECT(\"c\" & (VLOOKUP(Rebalance!$D$62,$F$2:$G$48,2,FALSE)+ROW()-2))=Rebalance!$D$62,INDIRECT(\"a\" & (VLOOKUP(Rebalance!$D$62,$F$2:$G$48,2,FALSE)+ROW()-2)),\"\")","v":{"$error":"#N/A"}},{"$f":"IF(INDIRECT(\"c\" & (VLOOKUP(Rebalance!$D$63,$F$2:$G$48,2,FALSE)+ROW()-2))=Rebalance!$D$63,INDIRECT(\"a\" & (VLOOKUP(Rebalance!$D$63,$F$2:$G$48,2,FALSE)+ROW()-2)),\"\")","v":{"$error":"#N/A"}},{"$f":"IF(INDIRECT(\"c\" & (VLOOKUP(Rebalance!$D$64,$F$2:$G$48,2,FALSE)+ROW()-2))=Rebalance!$D$64,INDIRECT(\"a\" & (VLOOKUP(Rebalance!$D$64,$F$2:$G$48,2,FALSE)+ROW()-2)),\"\")","v":{"$error":"#N/A"}},{"$f":"IF(INDIRECT(\"c\" & (VLOOKUP(Rebalance!$D$65,$F$2:$G$48,2,FALSE)+ROW()-2))=Rebalance!$D$65,INDIRECT(\"a\" & (VLOOKUP(Rebalance!$D$65,$F$2:$G$48,2,FALSE)+ROW()-2)),\"\")","v":{"$error":"#N/A"}},{"$f":"IF(INDIRECT(\"c\" & (VLOOKUP(Rebalance!$D$66,$F$2:$G$48,2,FALSE)+ROW()-2))=Rebalance!$D$66,INDIRECT(\"a\" & (VLOOKUP(Rebalance!$D$66,$F$2:$G$48,2,FALSE)+ROW()-2)),\"\")","v":{"$error":"#N/A"}}]
["Discovery Cautious Balanced Fund A","DCBF","DISCOVERY LIFE COLLECTIVE INVESTMENTS (PTY) LTD",{"$f":"ROW()","v":242},null,null,{"$f":"VLOOKUP(F242,$C$2:$D$599,2,FALSE)","v":{"$error":"#N/A"}},{"$f":"IF(INDIRECT(\"c\" & (VLOOKUP(Rebalance!$D$26,$F$2:$G$48,2,FALSE)+ROW()-2))=Rebalance!$D$26,INDIRECT(\"a\" & (VLOOKUP(Rebalance!$D$26,$F$2:$G$48,2,FALSE)+ROW()-2)),\"\")","v":{"$error":"#N/A"}},{"$f":"IF(INDIRECT(\"c\" & (VLOOKUP(Rebalance!$D$27,$F$2:$G$48,2,FALSE)+ROW()-2))=Rebalance!$D$27,INDIRECT(\"a\" & (VLOOKUP(Rebalance!$D$27,$F$2:$G$48,2,FALSE)+ROW()-2)),\"\")","v":{"$error":"#N/A"}},{"$f":"IF(INDIRECT(\"c\" & (VLOOKUP(Rebalance!$D$28,$F$2:$G$48,2,FALSE)+ROW()-2))=Rebalance!$D$28,INDIRECT(\"a\" & (VLOOKUP(Rebalance!$D$28,$F$2:$G$48,2,FALSE)+ROW()-2)),\"\")","v":{"$error":"#N/A"}},{"$f":"IF(INDIRECT(\"c\" & (VLOOKUP(Rebalance!$D$29,$F$2:$G$48,2,FALSE)+ROW()-2))=Rebalance!$D$29,INDIRECT(\"a\" & (VLOOKUP(Rebalance!$D$29,$F$2:$G$48,2,FALSE)+ROW()-2)),\"\")","v":{"$error":"#N/A"}},{"$f":"IF(INDIRECT(\"c\" & (VLOOKUP(Rebalance!$D$30,$F$2:$G$48,2,FALSE)+ROW()-2))=Rebalance!$D$30,INDIRECT(\"a\" & (VLOOKUP(Rebalance!$D$30,$F$2:$G$48,2,FALSE)+ROW()-2)),\"\")","v":{"$error":"#N/A"}},{"$f":"IF(INDIRECT(\"c\" & (VLOOKUP(Rebalance!$D$31,$F$2:$G$48,2,FALSE)+ROW()-2))=Rebalance!$D$31,INDIRECT(\"a\" & (VLOOKUP(Rebalance!$D$31,$F$2:$G$48,2,FALSE)+ROW()-2)),\"\")","v":{"$error":"#N/A"}},{"$f":"IF(INDIRECT(\"c\" & (VLOOKUP(Rebalance!$D$32,$F$2:$G$48,2,FALSE)+ROW()-2))=Rebalance!$D$32,INDIRECT(\"a\" & (VLOOKUP(Rebalance!$D$32,$F$2:$G$48,2,FALSE)+ROW()-2)),\"\")","v":{"$error":"#N/A"}},{"$f":"IF(INDIRECT(\"c\" & (VLOOKUP(Rebalance!$D$33,$F$2:$G$48,2,FALSE)+ROW()-2))=Rebalance!$D$33,INDIRECT(\"a\" & (VLOOKUP(Rebalance!$D$33,$F$2:$G$48,2,FALSE)+ROW()-2)),\"\")","v":{"$error":"#N/A"}},{"$f":"IF(INDIRECT(\"c\" & (VLOOKUP(Rebalance!$D$34,$F$2:$G$48,2,FALSE)+ROW()-2))=Rebalance!$D$34,INDIRECT(\"a\" & (VLOOKUP(Rebalance!$D$34,$F$2:$G$48,2,FALSE)+ROW()-2)),\"\")","v":{"$error":"#N/A"}},{"$f":"IF(INDIRECT(\"c\" & (VLOOKUP(Rebalance!$D$35,$F$2:$G$48,2,FALSE)+ROW()-2))=Rebalance!$D$35,INDIRECT(\"a\" & (VLOOKUP(Rebalance!$D$35,$F$2:$G$48,2,FALSE)+ROW()-2)),\"\")","v":{"$error":"#N/A"}},{"$f":"IF(INDIRECT(\"c\" & (VLOOKUP(Rebalance!$D$36,$F$2:$G$48,2,FALSE)+ROW()-2))=Rebalance!$D$36,INDIRECT(\"a\" & (VLOOKUP(Rebalance!$D$36,$F$2:$G$48,2,FALSE)+ROW()-2)),\"\")","v":{"$error":"#N/A"}},{"$f":"IF(INDIRECT(\"c\" & (VLOOKUP(Rebalance!$D$37,$F$2:$G$48,2,FALSE)+ROW()-2))=Rebalance!$D$37,INDIRECT(\"a\" & (VLOOKUP(Rebalance!$D$37,$F$2:$G$48,2,FALSE)+ROW()-2)),\"\")","v":{"$error":"#N/A"}},{"$f":"IF(INDIRECT(\"c\" & (VLOOKUP(Rebalance!$D$38,$F$2:$G$48,2,FALSE)+ROW()-2))=Rebalance!$D$38,INDIRECT(\"a\" & (VLOOKUP(Rebalance!$D$38,$F$2:$G$48,2,FALSE)+ROW()-2)),\"\")","v":{"$error":"#N/A"}},{"$f":"IF(INDIRECT(\"c\" & (VLOOKUP(Rebalance!$D$39,$F$2:$G$48,2,FALSE)+ROW()-2))=Rebalance!$D$39,INDIRECT(\"a\" & (VLOOKUP(Rebalance!$D$39,$F$2:$G$48,2,FALSE)+ROW()-2)),\"\")","v":{"$error":"#N/A"}},{"$f":"IF(INDIRECT(\"c\" & (VLOOKUP(Rebalance!$D$40,$F$2:$G$48,2,FALSE)+ROW()-2))=Rebalance!$D$40,INDIRECT(\"a\" & (VLOOKUP(Rebalance!$D$40,$F$2:$G$48,2,FALSE)+ROW()-2)),\"\")","v":{"$error":"#N/A"}},{"$f":"IF(INDIRECT(\"c\" & (VLOOKUP(Rebalance!$D$52,$F$2:$G$48,2,FALSE)+ROW()-2))=Rebalance!$D$52,INDIRECT(\"a\" & (VLOOKUP(Rebalance!$D$52,$F$2:$G$48,2,FALSE)+ROW()-2)),\"\")","v":{"$error":"#N/A"}},{"$f":"IF(INDIRECT(\"c\" & (VLOOKUP(Rebalance!$D$53,$F$2:$G$48,2,FALSE)+ROW()-2))=Rebalance!$D$53,INDIRECT(\"a\" & (VLOOKUP(Rebalance!$D$53,$F$2:$G$48,2,FALSE)+ROW()-2)),\"\")","v":{"$error":"#N/A"}},{"$f":"IF(INDIRECT(\"c\" & (VLOOKUP(Rebalance!$D$54,$F$2:$G$48,2,FALSE)+ROW()-2))=Rebalance!$D$54,INDIRECT(\"a\" & (VLOOKUP(Rebalance!$D$54,$F$2:$G$48,2,FALSE)+ROW()-2)),\"\")","v":{"$error":"#N/A"}},{"$f":"IF(INDIRECT(\"c\" & (VLOOKUP(Rebalance!$D$55,$F$2:$G$48,2,FALSE)+ROW()-2))=Rebalance!$D$55,INDIRECT(\"a\" & (VLOOKUP(Rebalance!$D$55,$F$2:$G$48,2,FALSE)+ROW()-2)),\"\")","v":{"$error":"#N/A"}},{"$f":"IF(INDIRECT(\"c\" & (VLOOKUP(Rebalance!$D$56,$F$2:$G$48,2,FALSE)+ROW()-2))=Rebalance!$D$56,INDIRECT(\"a\" & (VLOOKUP(Rebalance!$D$56,$F$2:$G$48,2,FALSE)+ROW()-2)),\"\")","v":{"$error":"#N/A"}},{"$f":"IF(INDIRECT(\"c\" & (VLOOKUP(Rebalance!$D$57,$F$2:$G$48,2,FALSE)+ROW()-2))=Rebalance!$D$57,INDIRECT(\"a\" & (VLOOKUP(Rebalance!$D$57,$F$2:$G$48,2,FALSE)+ROW()-2)),\"\")","v":{"$error":"#N/A"}},{"$f":"IF(INDIRECT(\"c\" & (VLOOKUP(Rebalance!$D$58,$F$2:$G$48,2,FALSE)+ROW()-2))=Rebalance!$D$58,INDIRECT(\"a\" & (VLOOKUP(Rebalance!$D$58,$F$2:$G$48,2,FALSE)+ROW()-2)),\"\")","v":{"$error":"#N/A"}},{"$f":"IF(INDIRECT(\"c\" & (VLOOKUP(Rebalance!$D$59,$F$2:$G$48,2,FALSE)+ROW()-2))=Rebalance!$D$59,INDIRECT(\"a\" & (VLOOKUP(Rebalance!$D$59,$F$2:$G$48,2,FALSE)+ROW()-2)),\"\")","v":{"$error":"#N/A"}},{"$f":"IF(INDIRECT(\"c\" & (VLOOKUP(Rebalance!$D$60,$F$2:$G$48,2,FALSE)+ROW()-2))=Rebalance!$D$60,INDIRECT(\"a\" & (VLOOKUP(Rebalance!$D$60,$F$2:$G$48,2,FALSE)+ROW()-2)),\"\")","v":{"$error":"#N/A"}},{"$f":"IF(INDIRECT(\"c\" & (VLOOKUP(Rebalance!$D$61,$F$2:$G$48,2,FALSE)+ROW()-2))=Rebalance!$D$61,INDIRECT(\"a\" & (VLOOKUP(Rebalance!$D$61,$F$2:$G$48,2,FALSE)+ROW()-2)),\"\")","v":{"$error":"#N/A"}},{"$f":"IF(INDIRECT(\"c\" & (VLOOKUP(Rebalance!$D$62,$F$2:$G$48,2,FALSE)+ROW()-2))=Rebalance!$D$62,INDIRECT(\"a\" & (VLOOKUP(Rebalance!$D$62,$F$2:$G$48,2,FALSE)+ROW()-2)),\"\")","v":{"$error":"#N/A"}},{"$f":"IF(INDIRECT(\"c\" & (VLOOKUP(Rebalance!$D$63,$F$2:$G$48,2,FALSE)+ROW()-2))=Rebalance!$D$63,INDIRECT(\"a\" & (VLOOKUP(Rebalance!$D$63,$F$2:$G$48,2,FALSE)+ROW()-2)),\"\")","v":{"$error":"#N/A"}},{"$f":"IF(INDIRECT(\"c\" & (VLOOKUP(Rebalance!$D$64,$F$2:$G$48,2,FALSE)+ROW()-2))=Rebalance!$D$64,INDIRECT(\"a\" & (VLOOKUP(Rebalance!$D$64,$F$2:$G$48,2,FALSE)+ROW()-2)),\"\")","v":{"$error":"#N/A"}},{"$f":"IF(INDIRECT(\"c\" & (VLOOKUP(Rebalance!$D$65,$F$2:$G$48,2,FALSE)+ROW()-2))=Rebalance!$D$65,INDIRECT(\"a\" & (VLOOKUP(Rebalance!$D$65,$F$2:$G$48,2,FALSE)+ROW()-2)),\"\")","v":{"$error":"#N/A"}},{"$f":"IF(INDIRECT(\"c\" & (VLOOKUP(Rebalance!$D$66,$F$2:$G$48,2,FALSE)+ROW()-2))=Rebalance!$D$66,INDIRECT(\"a\" & (VLOOKUP(Rebalance!$D$66,$F$2:$G$48,2,FALSE)+ROW()-2)),\"\")","v":{"$error":"#N/A"}}]
["Discovery Flexible Property Fund A","DFPF","DISCOVERY LIFE COLLECTIVE INVESTMENTS (PTY) LTD",{"$f":"ROW()","v":243},null,null,{"$f":"VLOOKUP(F243,$C$2:$D$599,2,FALSE)","v":{"$error":"#N/A"}},{"$f":"IF(INDIRECT(\"c\" & (VLOOKUP(Rebalance!$D$26,$F$2:$G$48,2,FALSE)+ROW()-2))=Rebalance!$D$26,INDIRECT(\"a\" & (VLOOKUP(Rebalance!$D$26,$F$2:$G$48,2,FALSE)+ROW()-2)),\"\")","v":{"$error":"#N/A"}},{"$f":"IF(INDIRECT(\"c\" & (VLOOKUP(Rebalance!$D$27,$F$2:$G$48,2,FALSE)+ROW()-2))=Rebalance!$D$27,INDIRECT(\"a\" & (VLOOKUP(Rebalance!$D$27,$F$2:$G$48,2,FALSE)+ROW()-2)),\"\")","v":{"$error":"#N/A"}},{"$f":"IF(INDIRECT(\"c\" & (VLOOKUP(Rebalance!$D$28,$F$2:$G$48,2,FALSE)+ROW()-2))=Rebalance!$D$28,INDIRECT(\"a\" & (VLOOKUP(Rebalance!$D$28,$F$2:$G$48,2,FALSE)+ROW()-2)),\"\")","v":{"$error":"#N/A"}},{"$f":"IF(INDIRECT(\"c\" & (VLOOKUP(Rebalance!$D$29,$F$2:$G$48,2,FALSE)+ROW()-2))=Rebalance!$D$29,INDIRECT(\"a\" & (VLOOKUP(Rebalance!$D$29,$F$2:$G$48,2,FALSE)+ROW()-2)),\"\")","v":{"$error":"#N/A"}},{"$f":"IF(INDIRECT(\"c\" & (VLOOKUP(Rebalance!$D$30,$F$2:$G$48,2,FALSE)+ROW()-2))=Rebalance!$D$30,INDIRECT(\"a\" & (VLOOKUP(Rebalance!$D$30,$F$2:$G$48,2,FALSE)+ROW()-2)),\"\")","v":{"$error":"#N/A"}},{"$f":"IF(INDIRECT(\"c\" & (VLOOKUP(Rebalance!$D$31,$F$2:$G$48,2,FALSE)+ROW()-2))=Rebalance!$D$31,INDIRECT(\"a\" & (VLOOKUP(Rebalance!$D$31,$F$2:$G$48,2,FALSE)+ROW()-2)),\"\")","v":{"$error":"#N/A"}},{"$f":"IF(INDIRECT(\"c\" & (VLOOKUP(Rebalance!$D$32,$F$2:$G$48,2,FALSE)+ROW()-2))=Rebalance!$D$32,INDIRECT(\"a\" & (VLOOKUP(Rebalance!$D$32,$F$2:$G$48,2,FALSE)+ROW()-2)),\"\")","v":{"$error":"#N/A"}},{"$f":"IF(INDIRECT(\"c\" & (VLOOKUP(Rebalance!$D$33,$F$2:$G$48,2,FALSE)+ROW()-2))=Rebalance!$D$33,INDIRECT(\"a\" & (VLOOKUP(Rebalance!$D$33,$F$2:$G$48,2,FALSE)+ROW()-2)),\"\")","v":{"$error":"#N/A"}},{"$f":"IF(INDIRECT(\"c\" & (VLOOKUP(Rebalance!$D$34,$F$2:$G$48,2,FALSE)+ROW()-2))=Rebalance!$D$34,INDIRECT(\"a\" & (VLOOKUP(Rebalance!$D$34,$F$2:$G$48,2,FALSE)+ROW()-2)),\"\")","v":{"$error":"#N/A"}},{"$f":"IF(INDIRECT(\"c\" & (VLOOKUP(Rebalance!$D$35,$F$2:$G$48,2,FALSE)+ROW()-2))=Rebalance!$D$35,INDIRECT(\"a\" & (VLOOKUP(Rebalance!$D$35,$F$2:$G$48,2,FALSE)+ROW()-2)),\"\")","v":{"$error":"#N/A"}},{"$f":"IF(INDIRECT(\"c\" & (VLOOKUP(Rebalance!$D$36,$F$2:$G$48,2,FALSE)+ROW()-2))=Rebalance!$D$36,INDIRECT(\"a\" & (VLOOKUP(Rebalance!$D$36,$F$2:$G$48,2,FALSE)+ROW()-2)),\"\")","v":{"$error":"#N/A"}},{"$f":"IF(INDIRECT(\"c\" & (VLOOKUP(Rebalance!$D$37,$F$2:$G$48,2,FALSE)+ROW()-2))=Rebalance!$D$37,INDIRECT(\"a\" & (VLOOKUP(Rebalance!$D$37,$F$2:$G$48,2,FALSE)+ROW()-2)),\"\")","v":{"$error":"#N/A"}},{"$f":"IF(INDIRECT(\"c\" & (VLOOKUP(Rebalance!$D$38,$F$2:$G$48,2,FALSE)+ROW()-2))=Rebalance!$D$38,INDIRECT(\"a\" & (VLOOKUP(Rebalance!$D$38,$F$2:$G$48,2,FALSE)+ROW()-2)),\"\")","v":{"$error":"#N/A"}},{"$f":"IF(INDIRECT(\"c\" & (VLOOKUP(Rebalance!$D$39,$F$2:$G$48,2,FALSE)+ROW()-2))=Rebalance!$D$39,INDIRECT(\"a\" & (VLOOKUP(Rebalance!$D$39,$F$2:$G$48,2,FALSE)+ROW()-2)),\"\")","v":{"$error":"#N/A"}},{"$f":"IF(INDIRECT(\"c\" & (VLOOKUP(Rebalance!$D$40,$F$2:$G$48,2,FALSE)+ROW()-2))=Rebalance!$D$40,INDIRECT(\"a\" & (VLOOKUP(Rebalance!$D$40,$F$2:$G$48,2,FALSE)+ROW()-2)),\"\")","v":{"$error":"#N/A"}},{"$f":"IF(INDIRECT(\"c\" & (VLOOKUP(Rebalance!$D$52,$F$2:$G$48,2,FALSE)+ROW()-2))=Rebalance!$D$52,INDIRECT(\"a\" & (VLOOKUP(Rebalance!$D$52,$F$2:$G$48,2,FALSE)+ROW()-2)),\"\")","v":{"$error":"#N/A"}},{"$f":"IF(INDIRECT(\"c\" & (VLOOKUP(Rebalance!$D$53,$F$2:$G$48,2,FALSE)+ROW()-2))=Rebalance!$D$53,INDIRECT(\"a\" & (VLOOKUP(Rebalance!$D$53,$F$2:$G$48,2,FALSE)+ROW()-2)),\"\")","v":{"$error":"#N/A"}},{"$f":"IF(INDIRECT(\"c\" & (VLOOKUP(Rebalance!$D$54,$F$2:$G$48,2,FALSE)+ROW()-2))=Rebalance!$D$54,INDIRECT(\"a\" & (VLOOKUP(Rebalance!$D$54,$F$2:$G$48,2,FALSE)+ROW()-2)),\"\")","v":{"$error":"#N/A"}},{"$f":"IF(INDIRECT(\"c\" & (VLOOKUP(Rebalance!$D$55,$F$2:$G$48,2,FALSE)+ROW()-2))=Rebalance!$D$55,INDIRECT(\"a\" & (VLOOKUP(Rebalance!$D$55,$F$2:$G$48,2,FALSE)+ROW()-2)),\"\")","v":{"$error":"#N/A"}},{"$f":"IF(INDIRECT(\"c\" & (VLOOKUP(Rebalance!$D$56,$F$2:$G$48,2,FALSE)+ROW()-2))=Rebalance!$D$56,INDIRECT(\"a\" & (VLOOKUP(Rebalance!$D$56,$F$2:$G$48,2,FALSE)+ROW()-2)),\"\")","v":{"$error":"#N/A"}},{"$f":"IF(INDIRECT(\"c\" & (VLOOKUP(Rebalance!$D$57,$F$2:$G$48,2,FALSE)+ROW()-2))=Rebalance!$D$57,INDIRECT(\"a\" & (VLOOKUP(Rebalance!$D$57,$F$2:$G$48,2,FALSE)+ROW()-2)),\"\")","v":{"$error":"#N/A"}},{"$f":"IF(INDIRECT(\"c\" & (VLOOKUP(Rebalance!$D$58,$F$2:$G$48,2,FALSE)+ROW()-2))=Rebalance!$D$58,INDIRECT(\"a\" & (VLOOKUP(Rebalance!$D$58,$F$2:$G$48,2,FALSE)+ROW()-2)),\"\")","v":{"$error":"#N/A"}},{"$f":"IF(INDIRECT(\"c\" & (VLOOKUP(Rebalance!$D$59,$F$2:$G$48,2,FALSE)+ROW()-2))=Rebalance!$D$59,INDIRECT(\"a\" & (VLOOKUP(Rebalance!$D$59,$F$2:$G$48,2,FALSE)+ROW()-2)),\"\")","v":{"$error":"#N/A"}},{"$f":"IF(INDIRECT(\"c\" & (VLOOKUP(Rebalance!$D$60,$F$2:$G$48,2,FALSE)+ROW()-2))=Rebalance!$D$60,INDIRECT(\"a\" & (VLOOKUP(Rebalance!$D$60,$F$2:$G$48,2,FALSE)+ROW()-2)),\"\")","v":{"$error":"#N/A"}},{"$f":"IF(INDIRECT(\"c\" & (VLOOKUP(Rebalance!$D$61,$F$2:$G$48,2,FALSE)+ROW()-2))=Rebalance!$D$61,INDIRECT(\"a\" & (VLOOKUP(Rebalance!$D$61,$F$2:$G$48,2,FALSE)+ROW()-2)),\"\")","v":{"$error":"#N/A"}},{"$f":"IF(INDIRECT(\"c\" & (VLOOKUP(Rebalance!$D$62,$F$2:$G$48,2,FALSE)+ROW()-2))=Rebalance!$D$62,INDIRECT(\"a\" & (VLOOKUP(Rebalance!$D$62,$F$2:$G$48,2,FALSE)+ROW()-2)),\"\")","v":{"$error":"#N/A"}},{"$f":"IF(INDIRECT(\"c\" & (VLOOKUP(Rebalance!$D$63,$F$2:$G$48,2,FALSE)+ROW()-2))=Rebalance!$D$63,INDIRECT(\"a\" & (VLOOKUP(Rebalance!$D$63,$F$2:$G$48,2,FALSE)+ROW()-2)),\"\")","v":{"$error":"#N/A"}},{"$f":"IF(INDIRECT(\"c\" & (VLOOKUP(Rebalance!$D$64,$F$2:$G$48,2,FALSE)+ROW()-2))=Rebalance!$D$64,INDIRECT(\"a\" & (VLOOKUP(Rebalance!$D$64,$F$2:$G$48,2,FALSE)+ROW()-2)),\"\")","v":{"$error":"#N/A"}},{"$f":"IF(INDIRECT(\"c\" & (VLOOKUP(Rebalance!$D$65,$F$2:$G$48,2,FALSE)+ROW()-2))=Rebalance!$D$65,INDIRECT(\"a\" & (VLOOKUP(Rebalance!$D$65,$F$2:$G$48,2,FALSE)+ROW()-2)),\"\")","v":{"$error":"#N/A"}},{"$f":"IF(INDIRECT(\"c\" & (VLOOKUP(Rebalance!$D$66,$F$2:$G$48,2,FALSE)+ROW()-2))=Rebalance!$D$66,INDIRECT(\"a\" & (VLOOKUP(Rebalance!$D$66,$F$2:$G$48,2,FALSE)+ROW()-2)),\"\")","v":{"$error":"#N/A"}}]
["Discovery Global Balanced Fund of Funds A","DGBF","DISCOVERY LIFE COLLECTIVE INVESTMENTS (PTY) LTD",{"$f":"ROW()","v":244},null,null,{"$f":"VLOOKUP(F244,$C$2:$D$599,2,FALSE)","v":{"$error":"#N/A"}},{"$f":"IF(INDIRECT(\"c\" & (VLOOKUP(Rebalance!$D$26,$F$2:$G$48,2,FALSE)+ROW()-2))=Rebalance!$D$26,INDIRECT(\"a\" & (VLOOKUP(Rebalance!$D$26,$F$2:$G$48,2,FALSE)+ROW()-2)),\"\")","v":{"$error":"#N/A"}},{"$f":"IF(INDIRECT(\"c\" & (VLOOKUP(Rebalance!$D$27,$F$2:$G$48,2,FALSE)+ROW()-2))=Rebalance!$D$27,INDIRECT(\"a\" & (VLOOKUP(Rebalance!$D$27,$F$2:$G$48,2,FALSE)+ROW()-2)),\"\")","v":{"$error":"#N/A"}},{"$f":"IF(INDIRECT(\"c\" & (VLOOKUP(Rebalance!$D$28,$F$2:$G$48,2,FALSE)+ROW()-2))=Rebalance!$D$28,INDIRECT(\"a\" & (VLOOKUP(Rebalance!$D$28,$F$2:$G$48,2,FALSE)+ROW()-2)),\"\")","v":{"$error":"#N/A"}},{"$f":"IF(INDIRECT(\"c\" & (VLOOKUP(Rebalance!$D$29,$F$2:$G$48,2,FALSE)+ROW()-2))=Rebalance!$D$29,INDIRECT(\"a\" & (VLOOKUP(Rebalance!$D$29,$F$2:$G$48,2,FALSE)+ROW()-2)),\"\")","v":{"$error":"#N/A"}},{"$f":"IF(INDIRECT(\"c\" & (VLOOKUP(Rebalance!$D$30,$F$2:$G$48,2,FALSE)+ROW()-2))=Rebalance!$D$30,INDIRECT(\"a\" & (VLOOKUP(Rebalance!$D$30,$F$2:$G$48,2,FALSE)+ROW()-2)),\"\")","v":{"$error":"#N/A"}},{"$f":"IF(INDIRECT(\"c\" & (VLOOKUP(Rebalance!$D$31,$F$2:$G$48,2,FALSE)+ROW()-2))=Rebalance!$D$31,INDIRECT(\"a\" & (VLOOKUP(Rebalance!$D$31,$F$2:$G$48,2,FALSE)+ROW()-2)),\"\")","v":{"$error":"#N/A"}},{"$f":"IF(INDIRECT(\"c\" & (VLOOKUP(Rebalance!$D$32,$F$2:$G$48,2,FALSE)+ROW()-2))=Rebalance!$D$32,INDIRECT(\"a\" & (VLOOKUP(Rebalance!$D$32,$F$2:$G$48,2,FALSE)+ROW()-2)),\"\")","v":{"$error":"#N/A"}},{"$f":"IF(INDIRECT(\"c\" & (VLOOKUP(Rebalance!$D$33,$F$2:$G$48,2,FALSE)+ROW()-2))=Rebalance!$D$33,INDIRECT(\"a\" & (VLOOKUP(Rebalance!$D$33,$F$2:$G$48,2,FALSE)+ROW()-2)),\"\")","v":{"$error":"#N/A"}},{"$f":"IF(INDIRECT(\"c\" & (VLOOKUP(Rebalance!$D$34,$F$2:$G$48,2,FALSE)+ROW()-2))=Rebalance!$D$34,INDIRECT(\"a\" & (VLOOKUP(Rebalance!$D$34,$F$2:$G$48,2,FALSE)+ROW()-2)),\"\")","v":{"$error":"#N/A"}},{"$f":"IF(INDIRECT(\"c\" & (VLOOKUP(Rebalance!$D$35,$F$2:$G$48,2,FALSE)+ROW()-2))=Rebalance!$D$35,INDIRECT(\"a\" & (VLOOKUP(Rebalance!$D$35,$F$2:$G$48,2,FALSE)+ROW()-2)),\"\")","v":{"$error":"#N/A"}},{"$f":"IF(INDIRECT(\"c\" & (VLOOKUP(Rebalance!$D$36,$F$2:$G$48,2,FALSE)+ROW()-2))=Rebalance!$D$36,INDIRECT(\"a\" & (VLOOKUP(Rebalance!$D$36,$F$2:$G$48,2,FALSE)+ROW()-2)),\"\")","v":{"$error":"#N/A"}},{"$f":"IF(INDIRECT(\"c\" & (VLOOKUP(Rebalance!$D$37,$F$2:$G$48,2,FALSE)+ROW()-2))=Rebalance!$D$37,INDIRECT(\"a\" & (VLOOKUP(Rebalance!$D$37,$F$2:$G$48,2,FALSE)+ROW()-2)),\"\")","v":{"$error":"#N/A"}},{"$f":"IF(INDIRECT(\"c\" & (VLOOKUP(Rebalance!$D$38,$F$2:$G$48,2,FALSE)+ROW()-2))=Rebalance!$D$38,INDIRECT(\"a\" & (VLOOKUP(Rebalance!$D$38,$F$2:$G$48,2,FALSE)+ROW()-2)),\"\")","v":{"$error":"#N/A"}},{"$f":"IF(INDIRECT(\"c\" & (VLOOKUP(Rebalance!$D$39,$F$2:$G$48,2,FALSE)+ROW()-2))=Rebalance!$D$39,INDIRECT(\"a\" & (VLOOKUP(Rebalance!$D$39,$F$2:$G$48,2,FALSE)+ROW()-2)),\"\")","v":{"$error":"#N/A"}},{"$f":"IF(INDIRECT(\"c\" & (VLOOKUP(Rebalance!$D$40,$F$2:$G$48,2,FALSE)+ROW()-2))=Rebalance!$D$40,INDIRECT(\"a\" & (VLOOKUP(Rebalance!$D$40,$F$2:$G$48,2,FALSE)+ROW()-2)),\"\")","v":{"$error":"#N/A"}},{"$f":"IF(INDIRECT(\"c\" & (VLOOKUP(Rebalance!$D$52,$F$2:$G$48,2,FALSE)+ROW()-2))=Rebalance!$D$52,INDIRECT(\"a\" & (VLOOKUP(Rebalance!$D$52,$F$2:$G$48,2,FALSE)+ROW()-2)),\"\")","v":{"$error":"#N/A"}},{"$f":"IF(INDIRECT(\"c\" & (VLOOKUP(Rebalance!$D$53,$F$2:$G$48,2,FALSE)+ROW()-2))=Rebalance!$D$53,INDIRECT(\"a\" & (VLOOKUP(Rebalance!$D$53,$F$2:$G$48,2,FALSE)+ROW()-2)),\"\")","v":{"$error":"#N/A"}},{"$f":"IF(INDIRECT(\"c\" & (VLOOKUP(Rebalance!$D$54,$F$2:$G$48,2,FALSE)+ROW()-2))=Rebalance!$D$54,INDIRECT(\"a\" & (VLOOKUP(Rebalance!$D$54,$F$2:$G$48,2,FALSE)+ROW()-2)),\"\")","v":{"$error":"#N/A"}},{"$f":"IF(INDIRECT(\"c\" & (VLOOKUP(Rebalance!$D$55,$F$2:$G$48,2,FALSE)+ROW()-2))=Rebalance!$D$55,INDIRECT(\"a\" & (VLOOKUP(Rebalance!$D$55,$F$2:$G$48,2,FALSE)+ROW()-2)),\"\")","v":{"$error":"#N/A"}},{"$f":"IF(INDIRECT(\"c\" & (VLOOKUP(Rebalance!$D$56,$F$2:$G$48,2,FALSE)+ROW()-2))=Rebalance!$D$56,INDIRECT(\"a\" & (VLOOKUP(Rebalance!$D$56,$F$2:$G$48,2,FALSE)+ROW()-2)),\"\")","v":{"$error":"#N/A"}},{"$f":"IF(INDIRECT(\"c\" & (VLOOKUP(Rebalance!$D$57,$F$2:$G$48,2,FALSE)+ROW()-2))=Rebalance!$D$57,INDIRECT(\"a\" & (VLOOKUP(Rebalance!$D$57,$F$2:$G$48,2,FALSE)+ROW()-2)),\"\")","v":{"$error":"#N/A"}},{"$f":"IF(INDIRECT(\"c\" & (VLOOKUP(Rebalance!$D$58,$F$2:$G$48,2,FALSE)+ROW()-2))=Rebalance!$D$58,INDIRECT(\"a\" & (VLOOKUP(Rebalance!$D$58,$F$2:$G$48,2,FALSE)+ROW()-2)),\"\")","v":{"$error":"#N/A"}},{"$f":"IF(INDIRECT(\"c\" & (VLOOKUP(Rebalance!$D$59,$F$2:$G$48,2,FALSE)+ROW()-2))=Rebalance!$D$59,INDIRECT(\"a\" & (VLOOKUP(Rebalance!$D$59,$F$2:$G$48,2,FALSE)+ROW()-2)),\"\")","v":{"$error":"#N/A"}},{"$f":"IF(INDIRECT(\"c\" & (VLOOKUP(Rebalance!$D$60,$F$2:$G$48,2,FALSE)+ROW()-2))=Rebalance!$D$60,INDIRECT(\"a\" & (VLOOKUP(Rebalance!$D$60,$F$2:$G$48,2,FALSE)+ROW()-2)),\"\")","v":{"$error":"#N/A"}},{"$f":"IF(INDIRECT(\"c\" & (VLOOKUP(Rebalance!$D$61,$F$2:$G$48,2,FALSE)+ROW()-2))=Rebalance!$D$61,INDIRECT(\"a\" & (VLOOKUP(Rebalance!$D$61,$F$2:$G$48,2,FALSE)+ROW()-2)),\"\")","v":{"$error":"#N/A"}},{"$f":"IF(INDIRECT(\"c\" & (VLOOKUP(Rebalance!$D$62,$F$2:$G$48,2,FALSE)+ROW()-2))=Rebalance!$D$62,INDIRECT(\"a\" & (VLOOKUP(Rebalance!$D$62,$F$2:$G$48,2,FALSE)+ROW()-2)),\"\")","v":{"$error":"#N/A"}},{"$f":"IF(INDIRECT(\"c\" & (VLOOKUP(Rebalance!$D$63,$F$2:$G$48,2,FALSE)+ROW()-2))=Rebalance!$D$63,INDIRECT(\"a\" & (VLOOKUP(Rebalance!$D$63,$F$2:$G$48,2,FALSE)+ROW()-2)),\"\")","v":{"$error":"#N/A"}},{"$f":"IF(INDIRECT(\"c\" & (VLOOKUP(Rebalance!$D$64,$F$2:$G$48,2,FALSE)+ROW()-2))=Rebalance!$D$64,INDIRECT(\"a\" & (VLOOKUP(Rebalance!$D$64,$F$2:$G$48,2,FALSE)+ROW()-2)),\"\")","v":{"$error":"#N/A"}},{"$f":"IF(INDIRECT(\"c\" & (VLOOKUP(Rebalance!$D$65,$F$2:$G$48,2,FALSE)+ROW()-2))=Rebalance!$D$65,INDIRECT(\"a\" & (VLOOKUP(Rebalance!$D$65,$F$2:$G$48,2,FALSE)+ROW()-2)),\"\")","v":{"$error":"#N/A"}},{"$f":"IF(INDIRECT(\"c\" & (VLOOKUP(Rebalance!$D$66,$F$2:$G$48,2,FALSE)+ROW()-2))=Rebalance!$D$66,INDIRECT(\"a\" & (VLOOKUP(Rebalance!$D$66,$F$2:$G$48,2,FALSE)+ROW()-2)),\"\")","v":{"$error":"#N/A"}}]
["Discovery Global Equity Feeder Fund A","DGEF","DISCOVERY LIFE COLLECTIVE INVESTMENTS (PTY) LTD",{"$f":"ROW()","v":245},null,null,{"$f":"VLOOKUP(F245,$C$2:$D$599,2,FALSE)","v":{"$error":"#N/A"}},{"$f":"IF(INDIRECT(\"c\" & (VLOOKUP(Rebalance!$D$26,$F$2:$G$48,2,FALSE)+ROW()-2))=Rebalance!$D$26,INDIRECT(\"a\" & (VLOOKUP(Rebalance!$D$26,$F$2:$G$48,2,FALSE)+ROW()-2)),\"\")","v":{"$error":"#N/A"}},{"$f":"IF(INDIRECT(\"c\" & (VLOOKUP(Rebalance!$D$27,$F$2:$G$48,2,FALSE)+ROW()-2))=Rebalance!$D$27,INDIRECT(\"a\" & (VLOOKUP(Rebalance!$D$27,$F$2:$G$48,2,FALSE)+ROW()-2)),\"\")","v":{"$error":"#N/A"}},{"$f":"IF(INDIRECT(\"c\" & (VLOOKUP(Rebalance!$D$28,$F$2:$G$48,2,FALSE)+ROW()-2))=Rebalance!$D$28,INDIRECT(\"a\" & (VLOOKUP(Rebalance!$D$28,$F$2:$G$48,2,FALSE)+ROW()-2)),\"\")","v":{"$error":"#N/A"}},{"$f":"IF(INDIRECT(\"c\" & (VLOOKUP(Rebalance!$D$29,$F$2:$G$48,2,FALSE)+ROW()-2))=Rebalance!$D$29,INDIRECT(\"a\" & (VLOOKUP(Rebalance!$D$29,$F$2:$G$48,2,FALSE)+ROW()-2)),\"\")","v":{"$error":"#N/A"}},{"$f":"IF(INDIRECT(\"c\" & (VLOOKUP(Rebalance!$D$30,$F$2:$G$48,2,FALSE)+ROW()-2))=Rebalance!$D$30,INDIRECT(\"a\" & (VLOOKUP(Rebalance!$D$30,$F$2:$G$48,2,FALSE)+ROW()-2)),\"\")","v":{"$error":"#N/A"}},{"$f":"IF(INDIRECT(\"c\" & (VLOOKUP(Rebalance!$D$31,$F$2:$G$48,2,FALSE)+ROW()-2))=Rebalance!$D$31,INDIRECT(\"a\" & (VLOOKUP(Rebalance!$D$31,$F$2:$G$48,2,FALSE)+ROW()-2)),\"\")","v":{"$error":"#N/A"}},{"$f":"IF(INDIRECT(\"c\" & (VLOOKUP(Rebalance!$D$32,$F$2:$G$48,2,FALSE)+ROW()-2))=Rebalance!$D$32,INDIRECT(\"a\" & (VLOOKUP(Rebalance!$D$32,$F$2:$G$48,2,FALSE)+ROW()-2)),\"\")","v":{"$error":"#N/A"}},{"$f":"IF(INDIRECT(\"c\" & (VLOOKUP(Rebalance!$D$33,$F$2:$G$48,2,FALSE)+ROW()-2))=Rebalance!$D$33,INDIRECT(\"a\" & (VLOOKUP(Rebalance!$D$33,$F$2:$G$48,2,FALSE)+ROW()-2)),\"\")","v":{"$error":"#N/A"}},{"$f":"IF(INDIRECT(\"c\" & (VLOOKUP(Rebalance!$D$34,$F$2:$G$48,2,FALSE)+ROW()-2))=Rebalance!$D$34,INDIRECT(\"a\" & (VLOOKUP(Rebalance!$D$34,$F$2:$G$48,2,FALSE)+ROW()-2)),\"\")","v":{"$error":"#N/A"}},{"$f":"IF(INDIRECT(\"c\" & (VLOOKUP(Rebalance!$D$35,$F$2:$G$48,2,FALSE)+ROW()-2))=Rebalance!$D$35,INDIRECT(\"a\" & (VLOOKUP(Rebalance!$D$35,$F$2:$G$48,2,FALSE)+ROW()-2)),\"\")","v":{"$error":"#N/A"}},{"$f":"IF(INDIRECT(\"c\" & (VLOOKUP(Rebalance!$D$36,$F$2:$G$48,2,FALSE)+ROW()-2))=Rebalance!$D$36,INDIRECT(\"a\" & (VLOOKUP(Rebalance!$D$36,$F$2:$G$48,2,FALSE)+ROW()-2)),\"\")","v":{"$error":"#N/A"}},{"$f":"IF(INDIRECT(\"c\" & (VLOOKUP(Rebalance!$D$37,$F$2:$G$48,2,FALSE)+ROW()-2))=Rebalance!$D$37,INDIRECT(\"a\" & (VLOOKUP(Rebalance!$D$37,$F$2:$G$48,2,FALSE)+ROW()-2)),\"\")","v":{"$error":"#N/A"}},{"$f":"IF(INDIRECT(\"c\" & (VLOOKUP(Rebalance!$D$38,$F$2:$G$48,2,FALSE)+ROW()-2))=Rebalance!$D$38,INDIRECT(\"a\" & (VLOOKUP(Rebalance!$D$38,$F$2:$G$48,2,FALSE)+ROW()-2)),\"\")","v":{"$error":"#N/A"}},{"$f":"IF(INDIRECT(\"c\" & (VLOOKUP(Rebalance!$D$39,$F$2:$G$48,2,FALSE)+ROW()-2))=Rebalance!$D$39,INDIRECT(\"a\" & (VLOOKUP(Rebalance!$D$39,$F$2:$G$48,2,FALSE)+ROW()-2)),\"\")","v":{"$error":"#N/A"}},{"$f":"IF(INDIRECT(\"c\" & (VLOOKUP(Rebalance!$D$40,$F$2:$G$48,2,FALSE)+ROW()-2))=Rebalance!$D$40,INDIRECT(\"a\" & (VLOOKUP(Rebalance!$D$40,$F$2:$G$48,2,FALSE)+ROW()-2)),\"\")","v":{"$error":"#N/A"}},{"$f":"IF(INDIRECT(\"c\" & (VLOOKUP(Rebalance!$D$52,$F$2:$G$48,2,FALSE)+ROW()-2))=Rebalance!$D$52,INDIRECT(\"a\" & (VLOOKUP(Rebalance!$D$52,$F$2:$G$48,2,FALSE)+ROW()-2)),\"\")","v":{"$error":"#N/A"}},{"$f":"IF(INDIRECT(\"c\" & (VLOOKUP(Rebalance!$D$53,$F$2:$G$48,2,FALSE)+ROW()-2))=Rebalance!$D$53,INDIRECT(\"a\" & (VLOOKUP(Rebalance!$D$53,$F$2:$G$48,2,FALSE)+ROW()-2)),\"\")","v":{"$error":"#N/A"}},{"$f":"IF(INDIRECT(\"c\" & (VLOOKUP(Rebalance!$D$54,$F$2:$G$48,2,FALSE)+ROW()-2))=Rebalance!$D$54,INDIRECT(\"a\" & (VLOOKUP(Rebalance!$D$54,$F$2:$G$48,2,FALSE)+ROW()-2)),\"\")","v":{"$error":"#N/A"}},{"$f":"IF(INDIRECT(\"c\" & (VLOOKUP(Rebalance!$D$55,$F$2:$G$48,2,FALSE)+ROW()-2))=Rebalance!$D$55,INDIRECT(\"a\" & (VLOOKUP(Rebalance!$D$55,$F$2:$G$48,2,FALSE)+ROW()-2)),\"\")","v":{"$error":"#N/A"}},{"$f":"IF(INDIRECT(\"c\" & (VLOOKUP(Rebalance!$D$56,$F$2:$G$48,2,FALSE)+ROW()-2))=Rebalance!$D$56,INDIRECT(\"a\" & (VLOOKUP(Rebalance!$D$56,$F$2:$G$48,2,FALSE)+ROW()-2)),\"\")","v":{"$error":"#N/A"}},{"$f":"IF(INDIRECT(\"c\" & (VLOOKUP(Rebalance!$D$57,$F$2:$G$48,2,FALSE)+ROW()-2))=Rebalance!$D$57,INDIRECT(\"a\" & (VLOOKUP(Rebalance!$D$57,$F$2:$G$48,2,FALSE)+ROW()-2)),\"\")","v":{"$error":"#N/A"}},{"$f":"IF(INDIRECT(\"c\" & (VLOOKUP(Rebalance!$D$58,$F$2:$G$48,2,FALSE)+ROW()-2))=Rebalance!$D$58,INDIRECT(\"a\" & (VLOOKUP(Rebalance!$D$58,$F$2:$G$48,2,FALSE)+ROW()-2)),\"\")","v":{"$error":"#N/A"}},{"$f":"IF(INDIRECT(\"c\" & (VLOOKUP(Rebalance!$D$59,$F$2:$G$48,2,FALSE)+ROW()-2))=Rebalance!$D$59,INDIRECT(\"a\" & (VLOOKUP(Rebalance!$D$59,$F$2:$G$48,2,FALSE)+ROW()-2)),\"\")","v":{"$error":"#N/A"}},{"$f":"IF(INDIRECT(\"c\" & (VLOOKUP(Rebalance!$D$60,$F$2:$G$48,2,FALSE)+ROW()-2))=Rebalance!$D$60,INDIRECT(\"a\" & (VLOOKUP(Rebalance!$D$60,$F$2:$G$48,2,FALSE)+ROW()-2)),\"\")","v":{"$error":"#N/A"}},{"$f":"IF(INDIRECT(\"c\" & (VLOOKUP(Rebalance!$D$61,$F$2:$G$48,2,FALSE)+ROW()-2))=Rebalance!$D$61,INDIRECT(\"a\" & (VLOOKUP(Rebalance!$D$61,$F$2:$G$48,2,FALSE)+ROW()-2)),\"\")","v":{"$error":"#N/A"}},{"$f":"IF(INDIRECT(\"c\" & (VLOOKUP(Rebalance!$D$62,$F$2:$G$48,2,FALSE)+ROW()-2))=Rebalance!$D$62,INDIRECT(\"a\" & (VLOOKUP(Rebalance!$D$62,$F$2:$G$48,2,FALSE)+ROW()-2)),\"\")","v":{"$error":"#N/A"}},{"$f":"IF(INDIRECT(\"c\" & (VLOOKUP(Rebalance!$D$63,$F$2:$G$48,2,FALSE)+ROW()-2))=Rebalance!$D$63,INDIRECT(\"a\" & (VLOOKUP(Rebalance!$D$63,$F$2:$G$48,2,FALSE)+ROW()-2)),\"\")","v":{"$error":"#N/A"}},{"$f":"IF(INDIRECT(\"c\" & (VLOOKUP(Rebalance!$D$64,$F$2:$G$48,2,FALSE)+ROW()-2))=Rebalance!$D$64,INDIRECT(\"a\" & (VLOOKUP(Rebalance!$D$64,$F$2:$G$48,2,FALSE)+ROW()-2)),\"\")","v":{"$error":"#N/A"}},{"$f":"IF(INDIRECT(\"c\" & (VLOOKUP(Rebalance!$D$65,$F$2:$G$48,2,FALSE)+ROW()-2))=Rebalance!$D$65,INDIRECT(\"a\" & (VLOOKUP(Rebalance!$D$65,$F$2:$G$48,2,FALSE)+ROW()-2)),\"\")","v":{"$error":"#N/A"}},{"$f":"IF(INDIRECT(\"c\" & (VLOOKUP(Rebalance!$D$66,$F$2:$G$48,2,FALSE)+ROW()-2))=Rebalance!$D$66,INDIRECT(\"a\" & (VLOOKUP(Rebalance!$D$66,$F$2:$G$48,2,FALSE)+ROW()-2)),\"\")","v":{"$error":"#N/A"}}]
["Discovery Global Value Equity Feeder Fund A","DGCEF","DISCOVERY LIFE COLLECTIVE INVESTMENTS (PTY) LTD",{"$f":"ROW()","v":246},null,null,{"$f":"VLOOKUP(F246,$C$2:$D$599,2,FALSE)","v":{"$error":"#N/A"}},{"$f":"IF(INDIRECT(\"c\" & (VLOOKUP(Rebalance!$D$26,$F$2:$G$48,2,FALSE)+ROW()-2))=Rebalance!$D$26,INDIRECT(\"a\" & (VLOOKUP(Rebalance!$D$26,$F$2:$G$48,2,FALSE)+ROW()-2)),\"\")","v":{"$error":"#N/A"}},{"$f":"IF(INDIRECT(\"c\" & (VLOOKUP(Rebalance!$D$27,$F$2:$G$48,2,FALSE)+ROW()-2))=Rebalance!$D$27,INDIRECT(\"a\" & (VLOOKUP(Rebalance!$D$27,$F$2:$G$48,2,FALSE)+ROW()-2)),\"\")","v":{"$error":"#N/A"}},{"$f":"IF(INDIRECT(\"c\" & (VLOOKUP(Rebalance!$D$28,$F$2:$G$48,2,FALSE)+ROW()-2))=Rebalance!$D$28,INDIRECT(\"a\" & (VLOOKUP(Rebalance!$D$28,$F$2:$G$48,2,FALSE)+ROW()-2)),\"\")","v":{"$error":"#N/A"}},{"$f":"IF(INDIRECT(\"c\" & (VLOOKUP(Rebalance!$D$29,$F$2:$G$48,2,FALSE)+ROW()-2))=Rebalance!$D$29,INDIRECT(\"a\" & (VLOOKUP(Rebalance!$D$29,$F$2:$G$48,2,FALSE)+ROW()-2)),\"\")","v":{"$error":"#N/A"}},{"$f":"IF(INDIRECT(\"c\" & (VLOOKUP(Rebalance!$D$30,$F$2:$G$48,2,FALSE)+ROW()-2))=Rebalance!$D$30,INDIRECT(\"a\" & (VLOOKUP(Rebalance!$D$30,$F$2:$G$48,2,FALSE)+ROW()-2)),\"\")","v":{"$error":"#N/A"}},{"$f":"IF(INDIRECT(\"c\" & (VLOOKUP(Rebalance!$D$31,$F$2:$G$48,2,FALSE)+ROW()-2))=Rebalance!$D$31,INDIRECT(\"a\" & (VLOOKUP(Rebalance!$D$31,$F$2:$G$48,2,FALSE)+ROW()-2)),\"\")","v":{"$error":"#N/A"}},{"$f":"IF(INDIRECT(\"c\" & (VLOOKUP(Rebalance!$D$32,$F$2:$G$48,2,FALSE)+ROW()-2))=Rebalance!$D$32,INDIRECT(\"a\" & (VLOOKUP(Rebalance!$D$32,$F$2:$G$48,2,FALSE)+ROW()-2)),\"\")","v":{"$error":"#N/A"}},{"$f":"IF(INDIRECT(\"c\" & (VLOOKUP(Rebalance!$D$33,$F$2:$G$48,2,FALSE)+ROW()-2))=Rebalance!$D$33,INDIRECT(\"a\" & (VLOOKUP(Rebalance!$D$33,$F$2:$G$48,2,FALSE)+ROW()-2)),\"\")","v":{"$error":"#N/A"}},{"$f":"IF(INDIRECT(\"c\" & (VLOOKUP(Rebalance!$D$34,$F$2:$G$48,2,FALSE)+ROW()-2))=Rebalance!$D$34,INDIRECT(\"a\" & (VLOOKUP(Rebalance!$D$34,$F$2:$G$48,2,FALSE)+ROW()-2)),\"\")","v":{"$error":"#N/A"}},{"$f":"IF(INDIRECT(\"c\" & (VLOOKUP(Rebalance!$D$35,$F$2:$G$48,2,FALSE)+ROW()-2))=Rebalance!$D$35,INDIRECT(\"a\" & (VLOOKUP(Rebalance!$D$35,$F$2:$G$48,2,FALSE)+ROW()-2)),\"\")","v":{"$error":"#N/A"}},{"$f":"IF(INDIRECT(\"c\" & (VLOOKUP(Rebalance!$D$36,$F$2:$G$48,2,FALSE)+ROW()-2))=Rebalance!$D$36,INDIRECT(\"a\" & (VLOOKUP(Rebalance!$D$36,$F$2:$G$48,2,FALSE)+ROW()-2)),\"\")","v":{"$error":"#N/A"}},{"$f":"IF(INDIRECT(\"c\" & (VLOOKUP(Rebalance!$D$37,$F$2:$G$48,2,FALSE)+ROW()-2))=Rebalance!$D$37,INDIRECT(\"a\" & (VLOOKUP(Rebalance!$D$37,$F$2:$G$48,2,FALSE)+ROW()-2)),\"\")","v":{"$error":"#N/A"}},{"$f":"IF(INDIRECT(\"c\" & (VLOOKUP(Rebalance!$D$38,$F$2:$G$48,2,FALSE)+ROW()-2))=Rebalance!$D$38,INDIRECT(\"a\" & (VLOOKUP(Rebalance!$D$38,$F$2:$G$48,2,FALSE)+ROW()-2)),\"\")","v":{"$error":"#N/A"}},{"$f":"IF(INDIRECT(\"c\" & (VLOOKUP(Rebalance!$D$39,$F$2:$G$48,2,FALSE)+ROW()-2))=Rebalance!$D$39,INDIRECT(\"a\" & (VLOOKUP(Rebalance!$D$39,$F$2:$G$48,2,FALSE)+ROW()-2)),\"\")","v":{"$error":"#N/A"}},{"$f":"IF(INDIRECT(\"c\" & (VLOOKUP(Rebalance!$D$40,$F$2:$G$48,2,FALSE)+ROW()-2))=Rebalance!$D$40,INDIRECT(\"a\" & (VLOOKUP(Rebalance!$D$40,$F$2:$G$48,2,FALSE)+ROW()-2)),\"\")","v":{"$error":"#N/A"}},{"$f":"IF(INDIRECT(\"c\" & (VLOOKUP(Rebalance!$D$52,$F$2:$G$48,2,FALSE)+ROW()-2))=Rebalance!$D$52,INDIRECT(\"a\" & (VLOOKUP(Rebalance!$D$52,$F$2:$G$48,2,FALSE)+ROW()-2)),\"\")","v":{"$error":"#N/A"}},{"$f":"IF(INDIRECT(\"c\" & (VLOOKUP(Rebalance!$D$53,$F$2:$G$48,2,FALSE)+ROW()-2))=Rebalance!$D$53,INDIRECT(\"a\" & (VLOOKUP(Rebalance!$D$53,$F$2:$G$48,2,FALSE)+ROW()-2)),\"\")","v":{"$error":"#N/A"}},{"$f":"IF(INDIRECT(\"c\" & (VLOOKUP(Rebalance!$D$54,$F$2:$G$48,2,FALSE)+ROW()-2))=Rebalance!$D$54,INDIRECT(\"a\" & (VLOOKUP(Rebalance!$D$54,$F$2:$G$48,2,FALSE)+ROW()-2)),\"\")","v":{"$error":"#N/A"}},{"$f":"IF(INDIRECT(\"c\" & (VLOOKUP(Rebalance!$D$55,$F$2:$G$48,2,FALSE)+ROW()-2))=Rebalance!$D$55,INDIRECT(\"a\" & (VLOOKUP(Rebalance!$D$55,$F$2:$G$48,2,FALSE)+ROW()-2)),\"\")","v":{"$error":"#N/A"}},{"$f":"IF(INDIRECT(\"c\" & (VLOOKUP(Rebalance!$D$56,$F$2:$G$48,2,FALSE)+ROW()-2))=Rebalance!$D$56,INDIRECT(\"a\" & (VLOOKUP(Rebalance!$D$56,$F$2:$G$48,2,FALSE)+ROW()-2)),\"\")","v":{"$error":"#N/A"}},{"$f":"IF(INDIRECT(\"c\" & (VLOOKUP(Rebalance!$D$57,$F$2:$G$48,2,FALSE)+ROW()-2))=Rebalance!$D$57,INDIRECT(\"a\" & (VLOOKUP(Rebalance!$D$57,$F$2:$G$48,2,FALSE)+ROW()-2)),\"\")","v":{"$error":"#N/A"}},{"$f":"IF(INDIRECT(\"c\" & (VLOOKUP(Rebalance!$D$58,$F$2:$G$48,2,FALSE)+ROW()-2))=Rebalance!$D$58,INDIRECT(\"a\" & (VLOOKUP(Rebalance!$D$58,$F$2:$G$48,2,FALSE)+ROW()-2)),\"\")","v":{"$error":"#N/A"}},{"$f":"IF(INDIRECT(\"c\" & (VLOOKUP(Rebalance!$D$59,$F$2:$G$48,2,FALSE)+ROW()-2))=Rebalance!$D$59,INDIRECT(\"a\" & (VLOOKUP(Rebalance!$D$59,$F$2:$G$48,2,FALSE)+ROW()-2)),\"\")","v":{"$error":"#N/A"}},{"$f":"IF(INDIRECT(\"c\" & (VLOOKUP(Rebalance!$D$60,$F$2:$G$48,2,FALSE)+ROW()-2))=Rebalance!$D$60,INDIRECT(\"a\" & (VLOOKUP(Rebalance!$D$60,$F$2:$G$48,2,FALSE)+ROW()-2)),\"\")","v":{"$error":"#N/A"}},{"$f":"IF(INDIRECT(\"c\" & (VLOOKUP(Rebalance!$D$61,$F$2:$G$48,2,FALSE)+ROW()-2))=Rebalance!$D$61,INDIRECT(\"a\" & (VLOOKUP(Rebalance!$D$61,$F$2:$G$48,2,FALSE)+ROW()-2)),\"\")","v":{"$error":"#N/A"}},{"$f":"IF(INDIRECT(\"c\" & (VLOOKUP(Rebalance!$D$62,$F$2:$G$48,2,FALSE)+ROW()-2))=Rebalance!$D$62,INDIRECT(\"a\" & (VLOOKUP(Rebalance!$D$62,$F$2:$G$48,2,FALSE)+ROW()-2)),\"\")","v":{"$error":"#N/A"}},{"$f":"IF(INDIRECT(\"c\" & (VLOOKUP(Rebalance!$D$63,$F$2:$G$48,2,FALSE)+ROW()-2))=Rebalance!$D$63,INDIRECT(\"a\" & (VLOOKUP(Rebalance!$D$63,$F$2:$G$48,2,FALSE)+ROW()-2)),\"\")","v":{"$error":"#N/A"}},{"$f":"IF(INDIRECT(\"c\" & (VLOOKUP(Rebalance!$D$64,$F$2:$G$48,2,FALSE)+ROW()-2))=Rebalance!$D$64,INDIRECT(\"a\" & (VLOOKUP(Rebalance!$D$64,$F$2:$G$48,2,FALSE)+ROW()-2)),\"\")","v":{"$error":"#N/A"}},{"$f":"IF(INDIRECT(\"c\" & (VLOOKUP(Rebalance!$D$65,$F$2:$G$48,2,FALSE)+ROW()-2))=Rebalance!$D$65,INDIRECT(\"a\" & (VLOOKUP(Rebalance!$D$65,$F$2:$G$48,2,FALSE)+ROW()-2)),\"\")","v":{"$error":"#N/A"}},{"$f":"IF(INDIRECT(\"c\" & (VLOOKUP(Rebalance!$D$66,$F$2:$G$48,2,FALSE)+ROW()-2))=Rebalance!$D$66,INDIRECT(\"a\" & (VLOOKUP(Rebalance!$D$66,$F$2:$G$48,2,FALSE)+ROW()-2)),\"\")","v":{"$error":"#N/A"}}]
["Discovery Moderate Balanced Fund A","DARF","DISCOVERY LIFE COLLECTIVE INVESTMENTS (PTY) LTD",{"$f":"ROW()","v":247},null,null,{"$f":"VLOOKUP(F247,$C$2:$D$599,2,FALSE)","v":{"$error":"#N/A"}},{"$f":"IF(INDIRECT(\"c\" & (VLOOKUP(Rebalance!$D$26,$F$2:$G$48,2,FALSE)+ROW()-2))=Rebalance!$D$26,INDIRECT(\"a\" & (VLOOKUP(Rebalance!$D$26,$F$2:$G$48,2,FALSE)+ROW()-2)),\"\")","v":{"$error":"#N/A"}},{"$f":"IF(INDIRECT(\"c\" & (VLOOKUP(Rebalance!$D$27,$F$2:$G$48,2,FALSE)+ROW()-2))=Rebalance!$D$27,INDIRECT(\"a\" & (VLOOKUP(Rebalance!$D$27,$F$2:$G$48,2,FALSE)+ROW()-2)),\"\")","v":{"$error":"#N/A"}},{"$f":"IF(INDIRECT(\"c\" & (VLOOKUP(Rebalance!$D$28,$F$2:$G$48,2,FALSE)+ROW()-2))=Rebalance!$D$28,INDIRECT(\"a\" & (VLOOKUP(Rebalance!$D$28,$F$2:$G$48,2,FALSE)+ROW()-2)),\"\")","v":{"$error":"#N/A"}},{"$f":"IF(INDIRECT(\"c\" & (VLOOKUP(Rebalance!$D$29,$F$2:$G$48,2,FALSE)+ROW()-2))=Rebalance!$D$29,INDIRECT(\"a\" & (VLOOKUP(Rebalance!$D$29,$F$2:$G$48,2,FALSE)+ROW()-2)),\"\")","v":{"$error":"#N/A"}},{"$f":"IF(INDIRECT(\"c\" & (VLOOKUP(Rebalance!$D$30,$F$2:$G$48,2,FALSE)+ROW()-2))=Rebalance!$D$30,INDIRECT(\"a\" & (VLOOKUP(Rebalance!$D$30,$F$2:$G$48,2,FALSE)+ROW()-2)),\"\")","v":{"$error":"#N/A"}},{"$f":"IF(INDIRECT(\"c\" & (VLOOKUP(Rebalance!$D$31,$F$2:$G$48,2,FALSE)+ROW()-2))=Rebalance!$D$31,INDIRECT(\"a\" & (VLOOKUP(Rebalance!$D$31,$F$2:$G$48,2,FALSE)+ROW()-2)),\"\")","v":{"$error":"#N/A"}},{"$f":"IF(INDIRECT(\"c\" & (VLOOKUP(Rebalance!$D$32,$F$2:$G$48,2,FALSE)+ROW()-2))=Rebalance!$D$32,INDIRECT(\"a\" & (VLOOKUP(Rebalance!$D$32,$F$2:$G$48,2,FALSE)+ROW()-2)),\"\")","v":{"$error":"#N/A"}},{"$f":"IF(INDIRECT(\"c\" & (VLOOKUP(Rebalance!$D$33,$F$2:$G$48,2,FALSE)+ROW()-2))=Rebalance!$D$33,INDIRECT(\"a\" & (VLOOKUP(Rebalance!$D$33,$F$2:$G$48,2,FALSE)+ROW()-2)),\"\")","v":{"$error":"#N/A"}},{"$f":"IF(INDIRECT(\"c\" & (VLOOKUP(Rebalance!$D$34,$F$2:$G$48,2,FALSE)+ROW()-2))=Rebalance!$D$34,INDIRECT(\"a\" & (VLOOKUP(Rebalance!$D$34,$F$2:$G$48,2,FALSE)+ROW()-2)),\"\")","v":{"$error":"#N/A"}},{"$f":"IF(INDIRECT(\"c\" & (VLOOKUP(Rebalance!$D$35,$F$2:$G$48,2,FALSE)+ROW()-2))=Rebalance!$D$35,INDIRECT(\"a\" & (VLOOKUP(Rebalance!$D$35,$F$2:$G$48,2,FALSE)+ROW()-2)),\"\")","v":{"$error":"#N/A"}},{"$f":"IF(INDIRECT(\"c\" & (VLOOKUP(Rebalance!$D$36,$F$2:$G$48,2,FALSE)+ROW()-2))=Rebalance!$D$36,INDIRECT(\"a\" & (VLOOKUP(Rebalance!$D$36,$F$2:$G$48,2,FALSE)+ROW()-2)),\"\")","v":{"$error":"#N/A"}},{"$f":"IF(INDIRECT(\"c\" & (VLOOKUP(Rebalance!$D$37,$F$2:$G$48,2,FALSE)+ROW()-2))=Rebalance!$D$37,INDIRECT(\"a\" & (VLOOKUP(Rebalance!$D$37,$F$2:$G$48,2,FALSE)+ROW()-2)),\"\")","v":{"$error":"#N/A"}},{"$f":"IF(INDIRECT(\"c\" & (VLOOKUP(Rebalance!$D$38,$F$2:$G$48,2,FALSE)+ROW()-2))=Rebalance!$D$38,INDIRECT(\"a\" & (VLOOKUP(Rebalance!$D$38,$F$2:$G$48,2,FALSE)+ROW()-2)),\"\")","v":{"$error":"#N/A"}},{"$f":"IF(INDIRECT(\"c\" & (VLOOKUP(Rebalance!$D$39,$F$2:$G$48,2,FALSE)+ROW()-2))=Rebalance!$D$39,INDIRECT(\"a\" & (VLOOKUP(Rebalance!$D$39,$F$2:$G$48,2,FALSE)+ROW()-2)),\"\")","v":{"$error":"#N/A"}},{"$f":"IF(INDIRECT(\"c\" & (VLOOKUP(Rebalance!$D$40,$F$2:$G$48,2,FALSE)+ROW()-2))=Rebalance!$D$40,INDIRECT(\"a\" & (VLOOKUP(Rebalance!$D$40,$F$2:$G$48,2,FALSE)+ROW()-2)),\"\")","v":{"$error":"#N/A"}},{"$f":"IF(INDIRECT(\"c\" & (VLOOKUP(Rebalance!$D$52,$F$2:$G$48,2,FALSE)+ROW()-2))=Rebalance!$D$52,INDIRECT(\"a\" & (VLOOKUP(Rebalance!$D$52,$F$2:$G$48,2,FALSE)+ROW()-2)),\"\")","v":{"$error":"#N/A"}},{"$f":"IF(INDIRECT(\"c\" & (VLOOKUP(Rebalance!$D$53,$F$2:$G$48,2,FALSE)+ROW()-2))=Rebalance!$D$53,INDIRECT(\"a\" & (VLOOKUP(Rebalance!$D$53,$F$2:$G$48,2,FALSE)+ROW()-2)),\"\")","v":{"$error":"#N/A"}},{"$f":"IF(INDIRECT(\"c\" & (VLOOKUP(Rebalance!$D$54,$F$2:$G$48,2,FALSE)+ROW()-2))=Rebalance!$D$54,INDIRECT(\"a\" & (VLOOKUP(Rebalance!$D$54,$F$2:$G$48,2,FALSE)+ROW()-2)),\"\")","v":{"$error":"#N/A"}},{"$f":"IF(INDIRECT(\"c\" & (VLOOKUP(Rebalance!$D$55,$F$2:$G$48,2,FALSE)+ROW()-2))=Rebalance!$D$55,INDIRECT(\"a\" & (VLOOKUP(Rebalance!$D$55,$F$2:$G$48,2,FALSE)+ROW()-2)),\"\")","v":{"$error":"#N/A"}},{"$f":"IF(INDIRECT(\"c\" & (VLOOKUP(Rebalance!$D$56,$F$2:$G$48,2,FALSE)+ROW()-2))=Rebalance!$D$56,INDIRECT(\"a\" & (VLOOKUP(Rebalance!$D$56,$F$2:$G$48,2,FALSE)+ROW()-2)),\"\")","v":{"$error":"#N/A"}},{"$f":"IF(INDIRECT(\"c\" & (VLOOKUP(Rebalance!$D$57,$F$2:$G$48,2,FALSE)+ROW()-2))=Rebalance!$D$57,INDIRECT(\"a\" & (VLOOKUP(Rebalance!$D$57,$F$2:$G$48,2,FALSE)+ROW()-2)),\"\")","v":{"$error":"#N/A"}},{"$f":"IF(INDIRECT(\"c\" & (VLOOKUP(Rebalance!$D$58,$F$2:$G$48,2,FALSE)+ROW()-2))=Rebalance!$D$58,INDIRECT(\"a\" & (VLOOKUP(Rebalance!$D$58,$F$2:$G$48,2,FALSE)+ROW()-2)),\"\")","v":{"$error":"#N/A"}},{"$f":"IF(INDIRECT(\"c\" & (VLOOKUP(Rebalance!$D$59,$F$2:$G$48,2,FALSE)+ROW()-2))=Rebalance!$D$59,INDIRECT(\"a\" & (VLOOKUP(Rebalance!$D$59,$F$2:$G$48,2,FALSE)+ROW()-2)),\"\")","v":{"$error":"#N/A"}},{"$f":"IF(INDIRECT(\"c\" & (VLOOKUP(Rebalance!$D$60,$F$2:$G$48,2,FALSE)+ROW()-2))=Rebalance!$D$60,INDIRECT(\"a\" & (VLOOKUP(Rebalance!$D$60,$F$2:$G$48,2,FALSE)+ROW()-2)),\"\")","v":{"$error":"#N/A"}},{"$f":"IF(INDIRECT(\"c\" & (VLOOKUP(Rebalance!$D$61,$F$2:$G$48,2,FALSE)+ROW()-2))=Rebalance!$D$61,INDIRECT(\"a\" & (VLOOKUP(Rebalance!$D$61,$F$2:$G$48,2,FALSE)+ROW()-2)),\"\")","v":{"$error":"#N/A"}},{"$f":"IF(INDIRECT(\"c\" & (VLOOKUP(Rebalance!$D$62,$F$2:$G$48,2,FALSE)+ROW()-2))=Rebalance!$D$62,INDIRECT(\"a\" & (VLOOKUP(Rebalance!$D$62,$F$2:$G$48,2,FALSE)+ROW()-2)),\"\")","v":{"$error":"#N/A"}},{"$f":"IF(INDIRECT(\"c\" & (VLOOKUP(Rebalance!$D$63,$F$2:$G$48,2,FALSE)+ROW()-2))=Rebalance!$D$63,INDIRECT(\"a\" & (VLOOKUP(Rebalance!$D$63,$F$2:$G$48,2,FALSE)+ROW()-2)),\"\")","v":{"$error":"#N/A"}},{"$f":"IF(INDIRECT(\"c\" & (VLOOKUP(Rebalance!$D$64,$F$2:$G$48,2,FALSE)+ROW()-2))=Rebalance!$D$64,INDIRECT(\"a\" & (VLOOKUP(Rebalance!$D$64,$F$2:$G$48,2,FALSE)+ROW()-2)),\"\")","v":{"$error":"#N/A"}},{"$f":"IF(INDIRECT(\"c\" & (VLOOKUP(Rebalance!$D$65,$F$2:$G$48,2,FALSE)+ROW()-2))=Rebalance!$D$65,INDIRECT(\"a\" & (VLOOKUP(Rebalance!$D$65,$F$2:$G$48,2,FALSE)+ROW()-2)),\"\")","v":{"$error":"#N/A"}},{"$f":"IF(INDIRECT(\"c\" & (VLOOKUP(Rebalance!$D$66,$F$2:$G$48,2,FALSE)+ROW()-2))=Rebalance!$D$66,INDIRECT(\"a\" & (VLOOKUP(Rebalance!$D$66,$F$2:$G$48,2,FALSE)+ROW()-2)),\"\")","v":{"$error":"#N/A"}}]
["Foord Balanced Fund B2","FBCB2","Foord Unit Trusts Ltd",{"$f":"ROW()","v":248},null,null,{"$f":"VLOOKUP(F248,$C$2:$D$599,2,FALSE)","v":{"$error":"#N/A"}},{"$f":"IF(INDIRECT(\"c\" & (VLOOKUP(Rebalance!$D$26,$F$2:$G$48,2,FALSE)+ROW()-2))=Rebalance!$D$26,INDIRECT(\"a\" & (VLOOKUP(Rebalance!$D$26,$F$2:$G$48,2,FALSE)+ROW()-2)),\"\")","v":{"$error":"#N/A"}},{"$f":"IF(INDIRECT(\"c\" & (VLOOKUP(Rebalance!$D$27,$F$2:$G$48,2,FALSE)+ROW()-2))=Rebalance!$D$27,INDIRECT(\"a\" & (VLOOKUP(Rebalance!$D$27,$F$2:$G$48,2,FALSE)+ROW()-2)),\"\")","v":{"$error":"#N/A"}},{"$f":"IF(INDIRECT(\"c\" & (VLOOKUP(Rebalance!$D$28,$F$2:$G$48,2,FALSE)+ROW()-2))=Rebalance!$D$28,INDIRECT(\"a\" & (VLOOKUP(Rebalance!$D$28,$F$2:$G$48,2,FALSE)+ROW()-2)),\"\")","v":{"$error":"#N/A"}},{"$f":"IF(INDIRECT(\"c\" & (VLOOKUP(Rebalance!$D$29,$F$2:$G$48,2,FALSE)+ROW()-2))=Rebalance!$D$29,INDIRECT(\"a\" & (VLOOKUP(Rebalance!$D$29,$F$2:$G$48,2,FALSE)+ROW()-2)),\"\")","v":{"$error":"#N/A"}},{"$f":"IF(INDIRECT(\"c\" & (VLOOKUP(Rebalance!$D$30,$F$2:$G$48,2,FALSE)+ROW()-2))=Rebalance!$D$30,INDIRECT(\"a\" & (VLOOKUP(Rebalance!$D$30,$F$2:$G$48,2,FALSE)+ROW()-2)),\"\")","v":{"$error":"#N/A"}},{"$f":"IF(INDIRECT(\"c\" & (VLOOKUP(Rebalance!$D$31,$F$2:$G$48,2,FALSE)+ROW()-2))=Rebalance!$D$31,INDIRECT(\"a\" & (VLOOKUP(Rebalance!$D$31,$F$2:$G$48,2,FALSE)+ROW()-2)),\"\")","v":{"$error":"#N/A"}},{"$f":"IF(INDIRECT(\"c\" & (VLOOKUP(Rebalance!$D$32,$F$2:$G$48,2,FALSE)+ROW()-2))=Rebalance!$D$32,INDIRECT(\"a\" & (VLOOKUP(Rebalance!$D$32,$F$2:$G$48,2,FALSE)+ROW()-2)),\"\")","v":{"$error":"#N/A"}},{"$f":"IF(INDIRECT(\"c\" & (VLOOKUP(Rebalance!$D$33,$F$2:$G$48,2,FALSE)+ROW()-2))=Rebalance!$D$33,INDIRECT(\"a\" & (VLOOKUP(Rebalance!$D$33,$F$2:$G$48,2,FALSE)+ROW()-2)),\"\")","v":{"$error":"#N/A"}},{"$f":"IF(INDIRECT(\"c\" & (VLOOKUP(Rebalance!$D$34,$F$2:$G$48,2,FALSE)+ROW()-2))=Rebalance!$D$34,INDIRECT(\"a\" & (VLOOKUP(Rebalance!$D$34,$F$2:$G$48,2,FALSE)+ROW()-2)),\"\")","v":{"$error":"#N/A"}},{"$f":"IF(INDIRECT(\"c\" & (VLOOKUP(Rebalance!$D$35,$F$2:$G$48,2,FALSE)+ROW()-2))=Rebalance!$D$35,INDIRECT(\"a\" & (VLOOKUP(Rebalance!$D$35,$F$2:$G$48,2,FALSE)+ROW()-2)),\"\")","v":{"$error":"#N/A"}},{"$f":"IF(INDIRECT(\"c\" & (VLOOKUP(Rebalance!$D$36,$F$2:$G$48,2,FALSE)+ROW()-2))=Rebalance!$D$36,INDIRECT(\"a\" & (VLOOKUP(Rebalance!$D$36,$F$2:$G$48,2,FALSE)+ROW()-2)),\"\")","v":{"$error":"#N/A"}},{"$f":"IF(INDIRECT(\"c\" & (VLOOKUP(Rebalance!$D$37,$F$2:$G$48,2,FALSE)+ROW()-2))=Rebalance!$D$37,INDIRECT(\"a\" & (VLOOKUP(Rebalance!$D$37,$F$2:$G$48,2,FALSE)+ROW()-2)),\"\")","v":{"$error":"#N/A"}},{"$f":"IF(INDIRECT(\"c\" & (VLOOKUP(Rebalance!$D$38,$F$2:$G$48,2,FALSE)+ROW()-2))=Rebalance!$D$38,INDIRECT(\"a\" & (VLOOKUP(Rebalance!$D$38,$F$2:$G$48,2,FALSE)+ROW()-2)),\"\")","v":{"$error":"#N/A"}},{"$f":"IF(INDIRECT(\"c\" & (VLOOKUP(Rebalance!$D$39,$F$2:$G$48,2,FALSE)+ROW()-2))=Rebalance!$D$39,INDIRECT(\"a\" & (VLOOKUP(Rebalance!$D$39,$F$2:$G$48,2,FALSE)+ROW()-2)),\"\")","v":{"$error":"#N/A"}},{"$f":"IF(INDIRECT(\"c\" & (VLOOKUP(Rebalance!$D$40,$F$2:$G$48,2,FALSE)+ROW()-2))=Rebalance!$D$40,INDIRECT(\"a\" & (VLOOKUP(Rebalance!$D$40,$F$2:$G$48,2,FALSE)+ROW()-2)),\"\")","v":{"$error":"#N/A"}},{"$f":"IF(INDIRECT(\"c\" & (VLOOKUP(Rebalance!$D$52,$F$2:$G$48,2,FALSE)+ROW()-2))=Rebalance!$D$52,INDIRECT(\"a\" & (VLOOKUP(Rebalance!$D$52,$F$2:$G$48,2,FALSE)+ROW()-2)),\"\")","v":{"$error":"#N/A"}},{"$f":"IF(INDIRECT(\"c\" & (VLOOKUP(Rebalance!$D$53,$F$2:$G$48,2,FALSE)+ROW()-2))=Rebalance!$D$53,INDIRECT(\"a\" & (VLOOKUP(Rebalance!$D$53,$F$2:$G$48,2,FALSE)+ROW()-2)),\"\")","v":{"$error":"#N/A"}},{"$f":"IF(INDIRECT(\"c\" & (VLOOKUP(Rebalance!$D$54,$F$2:$G$48,2,FALSE)+ROW()-2))=Rebalance!$D$54,INDIRECT(\"a\" & (VLOOKUP(Rebalance!$D$54,$F$2:$G$48,2,FALSE)+ROW()-2)),\"\")","v":{"$error":"#N/A"}},{"$f":"IF(INDIRECT(\"c\" & (VLOOKUP(Rebalance!$D$55,$F$2:$G$48,2,FALSE)+ROW()-2))=Rebalance!$D$55,INDIRECT(\"a\" & (VLOOKUP(Rebalance!$D$55,$F$2:$G$48,2,FALSE)+ROW()-2)),\"\")","v":{"$error":"#N/A"}},{"$f":"IF(INDIRECT(\"c\" & (VLOOKUP(Rebalance!$D$56,$F$2:$G$48,2,FALSE)+ROW()-2))=Rebalance!$D$56,INDIRECT(\"a\" & (VLOOKUP(Rebalance!$D$56,$F$2:$G$48,2,FALSE)+ROW()-2)),\"\")","v":{"$error":"#N/A"}},{"$f":"IF(INDIRECT(\"c\" & (VLOOKUP(Rebalance!$D$57,$F$2:$G$48,2,FALSE)+ROW()-2))=Rebalance!$D$57,INDIRECT(\"a\" & (VLOOKUP(Rebalance!$D$57,$F$2:$G$48,2,FALSE)+ROW()-2)),\"\")","v":{"$error":"#N/A"}},{"$f":"IF(INDIRECT(\"c\" & (VLOOKUP(Rebalance!$D$58,$F$2:$G$48,2,FALSE)+ROW()-2))=Rebalance!$D$58,INDIRECT(\"a\" & (VLOOKUP(Rebalance!$D$58,$F$2:$G$48,2,FALSE)+ROW()-2)),\"\")","v":{"$error":"#N/A"}},{"$f":"IF(INDIRECT(\"c\" & (VLOOKUP(Rebalance!$D$59,$F$2:$G$48,2,FALSE)+ROW()-2))=Rebalance!$D$59,INDIRECT(\"a\" & (VLOOKUP(Rebalance!$D$59,$F$2:$G$48,2,FALSE)+ROW()-2)),\"\")","v":{"$error":"#N/A"}},{"$f":"IF(INDIRECT(\"c\" & (VLOOKUP(Rebalance!$D$60,$F$2:$G$48,2,FALSE)+ROW()-2))=Rebalance!$D$60,INDIRECT(\"a\" & (VLOOKUP(Rebalance!$D$60,$F$2:$G$48,2,FALSE)+ROW()-2)),\"\")","v":{"$error":"#N/A"}},{"$f":"IF(INDIRECT(\"c\" & (VLOOKUP(Rebalance!$D$61,$F$2:$G$48,2,FALSE)+ROW()-2))=Rebalance!$D$61,INDIRECT(\"a\" & (VLOOKUP(Rebalance!$D$61,$F$2:$G$48,2,FALSE)+ROW()-2)),\"\")","v":{"$error":"#N/A"}},{"$f":"IF(INDIRECT(\"c\" & (VLOOKUP(Rebalance!$D$62,$F$2:$G$48,2,FALSE)+ROW()-2))=Rebalance!$D$62,INDIRECT(\"a\" & (VLOOKUP(Rebalance!$D$62,$F$2:$G$48,2,FALSE)+ROW()-2)),\"\")","v":{"$error":"#N/A"}},{"$f":"IF(INDIRECT(\"c\" & (VLOOKUP(Rebalance!$D$63,$F$2:$G$48,2,FALSE)+ROW()-2))=Rebalance!$D$63,INDIRECT(\"a\" & (VLOOKUP(Rebalance!$D$63,$F$2:$G$48,2,FALSE)+ROW()-2)),\"\")","v":{"$error":"#N/A"}},{"$f":"IF(INDIRECT(\"c\" & (VLOOKUP(Rebalance!$D$64,$F$2:$G$48,2,FALSE)+ROW()-2))=Rebalance!$D$64,INDIRECT(\"a\" & (VLOOKUP(Rebalance!$D$64,$F$2:$G$48,2,FALSE)+ROW()-2)),\"\")","v":{"$error":"#N/A"}},{"$f":"IF(INDIRECT(\"c\" & (VLOOKUP(Rebalance!$D$65,$F$2:$G$48,2,FALSE)+ROW()-2))=Rebalance!$D$65,INDIRECT(\"a\" & (VLOOKUP(Rebalance!$D$65,$F$2:$G$48,2,FALSE)+ROW()-2)),\"\")","v":{"$error":"#N/A"}},{"$f":"IF(INDIRECT(\"c\" & (VLOOKUP(Rebalance!$D$66,$F$2:$G$48,2,FALSE)+ROW()-2))=Rebalance!$D$66,INDIRECT(\"a\" & (VLOOKUP(Rebalance!$D$66,$F$2:$G$48,2,FALSE)+ROW()-2)),\"\")","v":{"$error":"#N/A"}}]
["Foord Conservative B2","FCFB2","Foord Unit Trusts Ltd",{"$f":"ROW()","v":249},null,null,{"$f":"VLOOKUP(F249,$C$2:$D$599,2,FALSE)","v":{"$error":"#N/A"}},{"$f":"IF(INDIRECT(\"c\" & (VLOOKUP(Rebalance!$D$26,$F$2:$G$48,2,FALSE)+ROW()-2))=Rebalance!$D$26,INDIRECT(\"a\" & (VLOOKUP(Rebalance!$D$26,$F$2:$G$48,2,FALSE)+ROW()-2)),\"\")","v":{"$error":"#N/A"}},{"$f":"IF(INDIRECT(\"c\" & (VLOOKUP(Rebalance!$D$27,$F$2:$G$48,2,FALSE)+ROW()-2))=Rebalance!$D$27,INDIRECT(\"a\" & (VLOOKUP(Rebalance!$D$27,$F$2:$G$48,2,FALSE)+ROW()-2)),\"\")","v":{"$error":"#N/A"}},{"$f":"IF(INDIRECT(\"c\" & (VLOOKUP(Rebalance!$D$28,$F$2:$G$48,2,FALSE)+ROW()-2))=Rebalance!$D$28,INDIRECT(\"a\" & (VLOOKUP(Rebalance!$D$28,$F$2:$G$48,2,FALSE)+ROW()-2)),\"\")","v":{"$error":"#N/A"}},{"$f":"IF(INDIRECT(\"c\" & (VLOOKUP(Rebalance!$D$29,$F$2:$G$48,2,FALSE)+ROW()-2))=Rebalance!$D$29,INDIRECT(\"a\" & (VLOOKUP(Rebalance!$D$29,$F$2:$G$48,2,FALSE)+ROW()-2)),\"\")","v":{"$error":"#N/A"}},{"$f":"IF(INDIRECT(\"c\" & (VLOOKUP(Rebalance!$D$30,$F$2:$G$48,2,FALSE)+ROW()-2))=Rebalance!$D$30,INDIRECT(\"a\" & (VLOOKUP(Rebalance!$D$30,$F$2:$G$48,2,FALSE)+ROW()-2)),\"\")","v":{"$error":"#N/A"}},{"$f":"IF(INDIRECT(\"c\" & (VLOOKUP(Rebalance!$D$31,$F$2:$G$48,2,FALSE)+ROW()-2))=Rebalance!$D$31,INDIRECT(\"a\" & (VLOOKUP(Rebalance!$D$31,$F$2:$G$48,2,FALSE)+ROW()-2)),\"\")","v":{"$error":"#N/A"}},{"$f":"IF(INDIRECT(\"c\" & (VLOOKUP(Rebalance!$D$32,$F$2:$G$48,2,FALSE)+ROW()-2))=Rebalance!$D$32,INDIRECT(\"a\" & (VLOOKUP(Rebalance!$D$32,$F$2:$G$48,2,FALSE)+ROW()-2)),\"\")","v":{"$error":"#N/A"}},{"$f":"IF(INDIRECT(\"c\" & (VLOOKUP(Rebalance!$D$33,$F$2:$G$48,2,FALSE)+ROW()-2))=Rebalance!$D$33,INDIRECT(\"a\" & (VLOOKUP(Rebalance!$D$33,$F$2:$G$48,2,FALSE)+ROW()-2)),\"\")","v":{"$error":"#N/A"}},{"$f":"IF(INDIRECT(\"c\" & (VLOOKUP(Rebalance!$D$34,$F$2:$G$48,2,FALSE)+ROW()-2))=Rebalance!$D$34,INDIRECT(\"a\" & (VLOOKUP(Rebalance!$D$34,$F$2:$G$48,2,FALSE)+ROW()-2)),\"\")","v":{"$error":"#N/A"}},{"$f":"IF(INDIRECT(\"c\" & (VLOOKUP(Rebalance!$D$35,$F$2:$G$48,2,FALSE)+ROW()-2))=Rebalance!$D$35,INDIRECT(\"a\" & (VLOOKUP(Rebalance!$D$35,$F$2:$G$48,2,FALSE)+ROW()-2)),\"\")","v":{"$error":"#N/A"}},{"$f":"IF(INDIRECT(\"c\" & (VLOOKUP(Rebalance!$D$36,$F$2:$G$48,2,FALSE)+ROW()-2))=Rebalance!$D$36,INDIRECT(\"a\" & (VLOOKUP(Rebalance!$D$36,$F$2:$G$48,2,FALSE)+ROW()-2)),\"\")","v":{"$error":"#N/A"}},{"$f":"IF(INDIRECT(\"c\" & (VLOOKUP(Rebalance!$D$37,$F$2:$G$48,2,FALSE)+ROW()-2))=Rebalance!$D$37,INDIRECT(\"a\" & (VLOOKUP(Rebalance!$D$37,$F$2:$G$48,2,FALSE)+ROW()-2)),\"\")","v":{"$error":"#N/A"}},{"$f":"IF(INDIRECT(\"c\" & (VLOOKUP(Rebalance!$D$38,$F$2:$G$48,2,FALSE)+ROW()-2))=Rebalance!$D$38,INDIRECT(\"a\" & (VLOOKUP(Rebalance!$D$38,$F$2:$G$48,2,FALSE)+ROW()-2)),\"\")","v":{"$error":"#N/A"}},{"$f":"IF(INDIRECT(\"c\" & (VLOOKUP(Rebalance!$D$39,$F$2:$G$48,2,FALSE)+ROW()-2))=Rebalance!$D$39,INDIRECT(\"a\" & (VLOOKUP(Rebalance!$D$39,$F$2:$G$48,2,FALSE)+ROW()-2)),\"\")","v":{"$error":"#N/A"}},{"$f":"IF(INDIRECT(\"c\" & (VLOOKUP(Rebalance!$D$40,$F$2:$G$48,2,FALSE)+ROW()-2))=Rebalance!$D$40,INDIRECT(\"a\" & (VLOOKUP(Rebalance!$D$40,$F$2:$G$48,2,FALSE)+ROW()-2)),\"\")","v":{"$error":"#N/A"}},{"$f":"IF(INDIRECT(\"c\" & (VLOOKUP(Rebalance!$D$52,$F$2:$G$48,2,FALSE)+ROW()-2))=Rebalance!$D$52,INDIRECT(\"a\" & (VLOOKUP(Rebalance!$D$52,$F$2:$G$48,2,FALSE)+ROW()-2)),\"\")","v":{"$error":"#N/A"}},{"$f":"IF(INDIRECT(\"c\" & (VLOOKUP(Rebalance!$D$53,$F$2:$G$48,2,FALSE)+ROW()-2))=Rebalance!$D$53,INDIRECT(\"a\" & (VLOOKUP(Rebalance!$D$53,$F$2:$G$48,2,FALSE)+ROW()-2)),\"\")","v":{"$error":"#N/A"}},{"$f":"IF(INDIRECT(\"c\" & (VLOOKUP(Rebalance!$D$54,$F$2:$G$48,2,FALSE)+ROW()-2))=Rebalance!$D$54,INDIRECT(\"a\" & (VLOOKUP(Rebalance!$D$54,$F$2:$G$48,2,FALSE)+ROW()-2)),\"\")","v":{"$error":"#N/A"}},{"$f":"IF(INDIRECT(\"c\" & (VLOOKUP(Rebalance!$D$55,$F$2:$G$48,2,FALSE)+ROW()-2))=Rebalance!$D$55,INDIRECT(\"a\" & (VLOOKUP(Rebalance!$D$55,$F$2:$G$48,2,FALSE)+ROW()-2)),\"\")","v":{"$error":"#N/A"}},{"$f":"IF(INDIRECT(\"c\" & (VLOOKUP(Rebalance!$D$56,$F$2:$G$48,2,FALSE)+ROW()-2))=Rebalance!$D$56,INDIRECT(\"a\" & (VLOOKUP(Rebalance!$D$56,$F$2:$G$48,2,FALSE)+ROW()-2)),\"\")","v":{"$error":"#N/A"}},{"$f":"IF(INDIRECT(\"c\" & (VLOOKUP(Rebalance!$D$57,$F$2:$G$48,2,FALSE)+ROW()-2))=Rebalance!$D$57,INDIRECT(\"a\" & (VLOOKUP(Rebalance!$D$57,$F$2:$G$48,2,FALSE)+ROW()-2)),\"\")","v":{"$error":"#N/A"}},{"$f":"IF(INDIRECT(\"c\" & (VLOOKUP(Rebalance!$D$58,$F$2:$G$48,2,FALSE)+ROW()-2))=Rebalance!$D$58,INDIRECT(\"a\" & (VLOOKUP(Rebalance!$D$58,$F$2:$G$48,2,FALSE)+ROW()-2)),\"\")","v":{"$error":"#N/A"}},{"$f":"IF(INDIRECT(\"c\" & (VLOOKUP(Rebalance!$D$59,$F$2:$G$48,2,FALSE)+ROW()-2))=Rebalance!$D$59,INDIRECT(\"a\" & (VLOOKUP(Rebalance!$D$59,$F$2:$G$48,2,FALSE)+ROW()-2)),\"\")","v":{"$error":"#N/A"}},{"$f":"IF(INDIRECT(\"c\" & (VLOOKUP(Rebalance!$D$60,$F$2:$G$48,2,FALSE)+ROW()-2))=Rebalance!$D$60,INDIRECT(\"a\" & (VLOOKUP(Rebalance!$D$60,$F$2:$G$48,2,FALSE)+ROW()-2)),\"\")","v":{"$error":"#N/A"}},{"$f":"IF(INDIRECT(\"c\" & (VLOOKUP(Rebalance!$D$61,$F$2:$G$48,2,FALSE)+ROW()-2))=Rebalance!$D$61,INDIRECT(\"a\" & (VLOOKUP(Rebalance!$D$61,$F$2:$G$48,2,FALSE)+ROW()-2)),\"\")","v":{"$error":"#N/A"}},{"$f":"IF(INDIRECT(\"c\" & (VLOOKUP(Rebalance!$D$62,$F$2:$G$48,2,FALSE)+ROW()-2))=Rebalance!$D$62,INDIRECT(\"a\" & (VLOOKUP(Rebalance!$D$62,$F$2:$G$48,2,FALSE)+ROW()-2)),\"\")","v":{"$error":"#N/A"}},{"$f":"IF(INDIRECT(\"c\" & (VLOOKUP(Rebalance!$D$63,$F$2:$G$48,2,FALSE)+ROW()-2))=Rebalance!$D$63,INDIRECT(\"a\" & (VLOOKUP(Rebalance!$D$63,$F$2:$G$48,2,FALSE)+ROW()-2)),\"\")","v":{"$error":"#N/A"}},{"$f":"IF(INDIRECT(\"c\" & (VLOOKUP(Rebalance!$D$64,$F$2:$G$48,2,FALSE)+ROW()-2))=Rebalance!$D$64,INDIRECT(\"a\" & (VLOOKUP(Rebalance!$D$64,$F$2:$G$48,2,FALSE)+ROW()-2)),\"\")","v":{"$error":"#N/A"}},{"$f":"IF(INDIRECT(\"c\" & (VLOOKUP(Rebalance!$D$65,$F$2:$G$48,2,FALSE)+ROW()-2))=Rebalance!$D$65,INDIRECT(\"a\" & (VLOOKUP(Rebalance!$D$65,$F$2:$G$48,2,FALSE)+ROW()-2)),\"\")","v":{"$error":"#N/A"}},{"$f":"IF(INDIRECT(\"c\" & (VLOOKUP(Rebalance!$D$66,$F$2:$G$48,2,FALSE)+ROW()-2))=Rebalance!$D$66,INDIRECT(\"a\" & (VLOOKUP(Rebalance!$D$66,$F$2:$G$48,2,FALSE)+ROW()-2)),\"\")","v":{"$error":"#N/A"}}]
["Foord Equity Fund B2","FECB2","Foord Unit Trusts Ltd",{"$f":"ROW()","v":250},null,null,{"$f":"VLOOKUP(F250,$C$2:$D$599,2,FALSE)","v":{"$error":"#N/A"}},{"$f":"IF(INDIRECT(\"c\" & (VLOOKUP(Rebalance!$D$26,$F$2:$G$48,2,FALSE)+ROW()-2))=Rebalance!$D$26,INDIRECT(\"a\" & (VLOOKUP(Rebalance!$D$26,$F$2:$G$48,2,FALSE)+ROW()-2)),\"\")","v":{"$error":"#N/A"}},{"$f":"IF(INDIRECT(\"c\" & (VLOOKUP(Rebalance!$D$27,$F$2:$G$48,2,FALSE)+ROW()-2))=Rebalance!$D$27,INDIRECT(\"a\" & (VLOOKUP(Rebalance!$D$27,$F$2:$G$48,2,FALSE)+ROW()-2)),\"\")","v":{"$error":"#N/A"}},{"$f":"IF(INDIRECT(\"c\" & (VLOOKUP(Rebalance!$D$28,$F$2:$G$48,2,FALSE)+ROW()-2))=Rebalance!$D$28,INDIRECT(\"a\" & (VLOOKUP(Rebalance!$D$28,$F$2:$G$48,2,FALSE)+ROW()-2)),\"\")","v":{"$error":"#N/A"}},{"$f":"IF(INDIRECT(\"c\" & (VLOOKUP(Rebalance!$D$29,$F$2:$G$48,2,FALSE)+ROW()-2))=Rebalance!$D$29,INDIRECT(\"a\" & (VLOOKUP(Rebalance!$D$29,$F$2:$G$48,2,FALSE)+ROW()-2)),\"\")","v":{"$error":"#N/A"}},{"$f":"IF(INDIRECT(\"c\" & (VLOOKUP(Rebalance!$D$30,$F$2:$G$48,2,FALSE)+ROW()-2))=Rebalance!$D$30,INDIRECT(\"a\" & (VLOOKUP(Rebalance!$D$30,$F$2:$G$48,2,FALSE)+ROW()-2)),\"\")","v":{"$error":"#N/A"}},{"$f":"IF(INDIRECT(\"c\" & (VLOOKUP(Rebalance!$D$31,$F$2:$G$48,2,FALSE)+ROW()-2))=Rebalance!$D$31,INDIRECT(\"a\" & (VLOOKUP(Rebalance!$D$31,$F$2:$G$48,2,FALSE)+ROW()-2)),\"\")","v":{"$error":"#N/A"}},{"$f":"IF(INDIRECT(\"c\" & (VLOOKUP(Rebalance!$D$32,$F$2:$G$48,2,FALSE)+ROW()-2))=Rebalance!$D$32,INDIRECT(\"a\" & (VLOOKUP(Rebalance!$D$32,$F$2:$G$48,2,FALSE)+ROW()-2)),\"\")","v":{"$error":"#N/A"}},{"$f":"IF(INDIRECT(\"c\" & (VLOOKUP(Rebalance!$D$33,$F$2:$G$48,2,FALSE)+ROW()-2))=Rebalance!$D$33,INDIRECT(\"a\" & (VLOOKUP(Rebalance!$D$33,$F$2:$G$48,2,FALSE)+ROW()-2)),\"\")","v":{"$error":"#N/A"}},{"$f":"IF(INDIRECT(\"c\" & (VLOOKUP(Rebalance!$D$34,$F$2:$G$48,2,FALSE)+ROW()-2))=Rebalance!$D$34,INDIRECT(\"a\" & (VLOOKUP(Rebalance!$D$34,$F$2:$G$48,2,FALSE)+ROW()-2)),\"\")","v":{"$error":"#N/A"}},{"$f":"IF(INDIRECT(\"c\" & (VLOOKUP(Rebalance!$D$35,$F$2:$G$48,2,FALSE)+ROW()-2))=Rebalance!$D$35,INDIRECT(\"a\" & (VLOOKUP(Rebalance!$D$35,$F$2:$G$48,2,FALSE)+ROW()-2)),\"\")","v":{"$error":"#N/A"}},{"$f":"IF(INDIRECT(\"c\" & (VLOOKUP(Rebalance!$D$36,$F$2:$G$48,2,FALSE)+ROW()-2))=Rebalance!$D$36,INDIRECT(\"a\" & (VLOOKUP(Rebalance!$D$36,$F$2:$G$48,2,FALSE)+ROW()-2)),\"\")","v":{"$error":"#N/A"}},{"$f":"IF(INDIRECT(\"c\" & (VLOOKUP(Rebalance!$D$37,$F$2:$G$48,2,FALSE)+ROW()-2))=Rebalance!$D$37,INDIRECT(\"a\" & (VLOOKUP(Rebalance!$D$37,$F$2:$G$48,2,FALSE)+ROW()-2)),\"\")","v":{"$error":"#N/A"}},{"$f":"IF(INDIRECT(\"c\" & (VLOOKUP(Rebalance!$D$38,$F$2:$G$48,2,FALSE)+ROW()-2))=Rebalance!$D$38,INDIRECT(\"a\" & (VLOOKUP(Rebalance!$D$38,$F$2:$G$48,2,FALSE)+ROW()-2)),\"\")","v":{"$error":"#N/A"}},{"$f":"IF(INDIRECT(\"c\" & (VLOOKUP(Rebalance!$D$39,$F$2:$G$48,2,FALSE)+ROW()-2))=Rebalance!$D$39,INDIRECT(\"a\" & (VLOOKUP(Rebalance!$D$39,$F$2:$G$48,2,FALSE)+ROW()-2)),\"\")","v":{"$error":"#N/A"}},{"$f":"IF(INDIRECT(\"c\" & (VLOOKUP(Rebalance!$D$40,$F$2:$G$48,2,FALSE)+ROW()-2))=Rebalance!$D$40,INDIRECT(\"a\" & (VLOOKUP(Rebalance!$D$40,$F$2:$G$48,2,FALSE)+ROW()-2)),\"\")","v":{"$error":"#N/A"}},{"$f":"IF(INDIRECT(\"c\" & (VLOOKUP(Rebalance!$D$52,$F$2:$G$48,2,FALSE)+ROW()-2))=Rebalance!$D$52,INDIRECT(\"a\" & (VLOOKUP(Rebalance!$D$52,$F$2:$G$48,2,FALSE)+ROW()-2)),\"\")","v":{"$error":"#N/A"}},{"$f":"IF(INDIRECT(\"c\" & (VLOOKUP(Rebalance!$D$53,$F$2:$G$48,2,FALSE)+ROW()-2))=Rebalance!$D$53,INDIRECT(\"a\" & (VLOOKUP(Rebalance!$D$53,$F$2:$G$48,2,FALSE)+ROW()-2)),\"\")","v":{"$error":"#N/A"}},{"$f":"IF(INDIRECT(\"c\" & (VLOOKUP(Rebalance!$D$54,$F$2:$G$48,2,FALSE)+ROW()-2))=Rebalance!$D$54,INDIRECT(\"a\" & (VLOOKUP(Rebalance!$D$54,$F$2:$G$48,2,FALSE)+ROW()-2)),\"\")","v":{"$error":"#N/A"}},{"$f":"IF(INDIRECT(\"c\" & (VLOOKUP(Rebalance!$D$55,$F$2:$G$48,2,FALSE)+ROW()-2))=Rebalance!$D$55,INDIRECT(\"a\" & (VLOOKUP(Rebalance!$D$55,$F$2:$G$48,2,FALSE)+ROW()-2)),\"\")","v":{"$error":"#N/A"}},{"$f":"IF(INDIRECT(\"c\" & (VLOOKUP(Rebalance!$D$56,$F$2:$G$48,2,FALSE)+ROW()-2))=Rebalance!$D$56,INDIRECT(\"a\" & (VLOOKUP(Rebalance!$D$56,$F$2:$G$48,2,FALSE)+ROW()-2)),\"\")","v":{"$error":"#N/A"}},{"$f":"IF(INDIRECT(\"c\" & (VLOOKUP(Rebalance!$D$57,$F$2:$G$48,2,FALSE)+ROW()-2))=Rebalance!$D$57,INDIRECT(\"a\" & (VLOOKUP(Rebalance!$D$57,$F$2:$G$48,2,FALSE)+ROW()-2)),\"\")","v":{"$error":"#N/A"}},{"$f":"IF(INDIRECT(\"c\" & (VLOOKUP(Rebalance!$D$58,$F$2:$G$48,2,FALSE)+ROW()-2))=Rebalance!$D$58,INDIRECT(\"a\" & (VLOOKUP(Rebalance!$D$58,$F$2:$G$48,2,FALSE)+ROW()-2)),\"\")","v":{"$error":"#N/A"}},{"$f":"IF(INDIRECT(\"c\" & (VLOOKUP(Rebalance!$D$59,$F$2:$G$48,2,FALSE)+ROW()-2))=Rebalance!$D$59,INDIRECT(\"a\" & (VLOOKUP(Rebalance!$D$59,$F$2:$G$48,2,FALSE)+ROW()-2)),\"\")","v":{"$error":"#N/A"}},{"$f":"IF(INDIRECT(\"c\" & (VLOOKUP(Rebalance!$D$60,$F$2:$G$48,2,FALSE)+ROW()-2))=Rebalance!$D$60,INDIRECT(\"a\" & (VLOOKUP(Rebalance!$D$60,$F$2:$G$48,2,FALSE)+ROW()-2)),\"\")","v":{"$error":"#N/A"}},{"$f":"IF(INDIRECT(\"c\" & (VLOOKUP(Rebalance!$D$61,$F$2:$G$48,2,FALSE)+ROW()-2))=Rebalance!$D$61,INDIRECT(\"a\" & (VLOOKUP(Rebalance!$D$61,$F$2:$G$48,2,FALSE)+ROW()-2)),\"\")","v":{"$error":"#N/A"}},{"$f":"IF(INDIRECT(\"c\" & (VLOOKUP(Rebalance!$D$62,$F$2:$G$48,2,FALSE)+ROW()-2))=Rebalance!$D$62,INDIRECT(\"a\" & (VLOOKUP(Rebalance!$D$62,$F$2:$G$48,2,FALSE)+ROW()-2)),\"\")","v":{"$error":"#N/A"}},{"$f":"IF(INDIRECT(\"c\" & (VLOOKUP(Rebalance!$D$63,$F$2:$G$48,2,FALSE)+ROW()-2))=Rebalance!$D$63,INDIRECT(\"a\" & (VLOOKUP(Rebalance!$D$63,$F$2:$G$48,2,FALSE)+ROW()-2)),\"\")","v":{"$error":"#N/A"}},{"$f":"IF(INDIRECT(\"c\" & (VLOOKUP(Rebalance!$D$64,$F$2:$G$48,2,FALSE)+ROW()-2))=Rebalance!$D$64,INDIRECT(\"a\" & (VLOOKUP(Rebalance!$D$64,$F$2:$G$48,2,FALSE)+ROW()-2)),\"\")","v":{"$error":"#N/A"}},{"$f":"IF(INDIRECT(\"c\" & (VLOOKUP(Rebalance!$D$65,$F$2:$G$48,2,FALSE)+ROW()-2))=Rebalance!$D$65,INDIRECT(\"a\" & (VLOOKUP(Rebalance!$D$65,$F$2:$G$48,2,FALSE)+ROW()-2)),\"\")","v":{"$error":"#N/A"}},{"$f":"IF(INDIRECT(\"c\" & (VLOOKUP(Rebalance!$D$66,$F$2:$G$48,2,FALSE)+ROW()-2))=Rebalance!$D$66,INDIRECT(\"a\" & (VLOOKUP(Rebalance!$D$66,$F$2:$G$48,2,FALSE)+ROW()-2)),\"\")","v":{"$error":"#N/A"}}]
["Foord Flexible FoF B2","FFFCR","Foord Unit Trusts Ltd",{"$f":"ROW()","v":251},null,null,{"$f":"VLOOKUP(F251,$C$2:$D$599,2,FALSE)","v":{"$error":"#N/A"}},{"$f":"IF(INDIRECT(\"c\" & (VLOOKUP(Rebalance!$D$26,$F$2:$G$48,2,FALSE)+ROW()-2))=Rebalance!$D$26,INDIRECT(\"a\" & (VLOOKUP(Rebalance!$D$26,$F$2:$G$48,2,FALSE)+ROW()-2)),\"\")","v":{"$error":"#N/A"}},{"$f":"IF(INDIRECT(\"c\" & (VLOOKUP(Rebalance!$D$27,$F$2:$G$48,2,FALSE)+ROW()-2))=Rebalance!$D$27,INDIRECT(\"a\" & (VLOOKUP(Rebalance!$D$27,$F$2:$G$48,2,FALSE)+ROW()-2)),\"\")","v":{"$error":"#N/A"}},{"$f":"IF(INDIRECT(\"c\" & (VLOOKUP(Rebalance!$D$28,$F$2:$G$48,2,FALSE)+ROW()-2))=Rebalance!$D$28,INDIRECT(\"a\" & (VLOOKUP(Rebalance!$D$28,$F$2:$G$48,2,FALSE)+ROW()-2)),\"\")","v":{"$error":"#N/A"}},{"$f":"IF(INDIRECT(\"c\" & (VLOOKUP(Rebalance!$D$29,$F$2:$G$48,2,FALSE)+ROW()-2))=Rebalance!$D$29,INDIRECT(\"a\" & (VLOOKUP(Rebalance!$D$29,$F$2:$G$48,2,FALSE)+ROW()-2)),\"\")","v":{"$error":"#N/A"}},{"$f":"IF(INDIRECT(\"c\" & (VLOOKUP(Rebalance!$D$30,$F$2:$G$48,2,FALSE)+ROW()-2))=Rebalance!$D$30,INDIRECT(\"a\" & (VLOOKUP(Rebalance!$D$30,$F$2:$G$48,2,FALSE)+ROW()-2)),\"\")","v":{"$error":"#N/A"}},{"$f":"IF(INDIRECT(\"c\" & (VLOOKUP(Rebalance!$D$31,$F$2:$G$48,2,FALSE)+ROW()-2))=Rebalance!$D$31,INDIRECT(\"a\" & (VLOOKUP(Rebalance!$D$31,$F$2:$G$48,2,FALSE)+ROW()-2)),\"\")","v":{"$error":"#N/A"}},{"$f":"IF(INDIRECT(\"c\" & (VLOOKUP(Rebalance!$D$32,$F$2:$G$48,2,FALSE)+ROW()-2))=Rebalance!$D$32,INDIRECT(\"a\" & (VLOOKUP(Rebalance!$D$32,$F$2:$G$48,2,FALSE)+ROW()-2)),\"\")","v":{"$error":"#N/A"}},{"$f":"IF(INDIRECT(\"c\" & (VLOOKUP(Rebalance!$D$33,$F$2:$G$48,2,FALSE)+ROW()-2))=Rebalance!$D$33,INDIRECT(\"a\" & (VLOOKUP(Rebalance!$D$33,$F$2:$G$48,2,FALSE)+ROW()-2)),\"\")","v":{"$error":"#N/A"}},{"$f":"IF(INDIRECT(\"c\" & (VLOOKUP(Rebalance!$D$34,$F$2:$G$48,2,FALSE)+ROW()-2))=Rebalance!$D$34,INDIRECT(\"a\" & (VLOOKUP(Rebalance!$D$34,$F$2:$G$48,2,FALSE)+ROW()-2)),\"\")","v":{"$error":"#N/A"}},{"$f":"IF(INDIRECT(\"c\" & (VLOOKUP(Rebalance!$D$35,$F$2:$G$48,2,FALSE)+ROW()-2))=Rebalance!$D$35,INDIRECT(\"a\" & (VLOOKUP(Rebalance!$D$35,$F$2:$G$48,2,FALSE)+ROW()-2)),\"\")","v":{"$error":"#N/A"}},{"$f":"IF(INDIRECT(\"c\" & (VLOOKUP(Rebalance!$D$36,$F$2:$G$48,2,FALSE)+ROW()-2))=Rebalance!$D$36,INDIRECT(\"a\" & (VLOOKUP(Rebalance!$D$36,$F$2:$G$48,2,FALSE)+ROW()-2)),\"\")","v":{"$error":"#N/A"}},{"$f":"IF(INDIRECT(\"c\" & (VLOOKUP(Rebalance!$D$37,$F$2:$G$48,2,FALSE)+ROW()-2))=Rebalance!$D$37,INDIRECT(\"a\" & (VLOOKUP(Rebalance!$D$37,$F$2:$G$48,2,FALSE)+ROW()-2)),\"\")","v":{"$error":"#N/A"}},{"$f":"IF(INDIRECT(\"c\" & (VLOOKUP(Rebalance!$D$38,$F$2:$G$48,2,FALSE)+ROW()-2))=Rebalance!$D$38,INDIRECT(\"a\" & (VLOOKUP(Rebalance!$D$38,$F$2:$G$48,2,FALSE)+ROW()-2)),\"\")","v":{"$error":"#N/A"}},{"$f":"IF(INDIRECT(\"c\" & (VLOOKUP(Rebalance!$D$39,$F$2:$G$48,2,FALSE)+ROW()-2))=Rebalance!$D$39,INDIRECT(\"a\" & (VLOOKUP(Rebalance!$D$39,$F$2:$G$48,2,FALSE)+ROW()-2)),\"\")","v":{"$error":"#N/A"}},{"$f":"IF(INDIRECT(\"c\" & (VLOOKUP(Rebalance!$D$40,$F$2:$G$48,2,FALSE)+ROW()-2))=Rebalance!$D$40,INDIRECT(\"a\" & (VLOOKUP(Rebalance!$D$40,$F$2:$G$48,2,FALSE)+ROW()-2)),\"\")","v":{"$error":"#N/A"}},{"$f":"IF(INDIRECT(\"c\" & (VLOOKUP(Rebalance!$D$52,$F$2:$G$48,2,FALSE)+ROW()-2))=Rebalance!$D$52,INDIRECT(\"a\" & (VLOOKUP(Rebalance!$D$52,$F$2:$G$48,2,FALSE)+ROW()-2)),\"\")","v":{"$error":"#N/A"}},{"$f":"IF(INDIRECT(\"c\" & (VLOOKUP(Rebalance!$D$53,$F$2:$G$48,2,FALSE)+ROW()-2))=Rebalance!$D$53,INDIRECT(\"a\" & (VLOOKUP(Rebalance!$D$53,$F$2:$G$48,2,FALSE)+ROW()-2)),\"\")","v":{"$error":"#N/A"}},{"$f":"IF(INDIRECT(\"c\" & (VLOOKUP(Rebalance!$D$54,$F$2:$G$48,2,FALSE)+ROW()-2))=Rebalance!$D$54,INDIRECT(\"a\" & (VLOOKUP(Rebalance!$D$54,$F$2:$G$48,2,FALSE)+ROW()-2)),\"\")","v":{"$error":"#N/A"}},{"$f":"IF(INDIRECT(\"c\" & (VLOOKUP(Rebalance!$D$55,$F$2:$G$48,2,FALSE)+ROW()-2))=Rebalance!$D$55,INDIRECT(\"a\" & (VLOOKUP(Rebalance!$D$55,$F$2:$G$48,2,FALSE)+ROW()-2)),\"\")","v":{"$error":"#N/A"}},{"$f":"IF(INDIRECT(\"c\" & (VLOOKUP(Rebalance!$D$56,$F$2:$G$48,2,FALSE)+ROW()-2))=Rebalance!$D$56,INDIRECT(\"a\" & (VLOOKUP(Rebalance!$D$56,$F$2:$G$48,2,FALSE)+ROW()-2)),\"\")","v":{"$error":"#N/A"}},{"$f":"IF(INDIRECT(\"c\" & (VLOOKUP(Rebalance!$D$57,$F$2:$G$48,2,FALSE)+ROW()-2))=Rebalance!$D$57,INDIRECT(\"a\" & (VLOOKUP(Rebalance!$D$57,$F$2:$G$48,2,FALSE)+ROW()-2)),\"\")","v":{"$error":"#N/A"}},{"$f":"IF(INDIRECT(\"c\" & (VLOOKUP(Rebalance!$D$58,$F$2:$G$48,2,FALSE)+ROW()-2))=Rebalance!$D$58,INDIRECT(\"a\" & (VLOOKUP(Rebalance!$D$58,$F$2:$G$48,2,FALSE)+ROW()-2)),\"\")","v":{"$error":"#N/A"}},{"$f":"IF(INDIRECT(\"c\" & (VLOOKUP(Rebalance!$D$59,$F$2:$G$48,2,FALSE)+ROW()-2))=Rebalance!$D$59,INDIRECT(\"a\" & (VLOOKUP(Rebalance!$D$59,$F$2:$G$48,2,FALSE)+ROW()-2)),\"\")","v":{"$error":"#N/A"}},{"$f":"IF(INDIRECT(\"c\" & (VLOOKUP(Rebalance!$D$60,$F$2:$G$48,2,FALSE)+ROW()-2))=Rebalance!$D$60,INDIRECT(\"a\" & (VLOOKUP(Rebalance!$D$60,$F$2:$G$48,2,FALSE)+ROW()-2)),\"\")","v":{"$error":"#N/A"}},{"$f":"IF(INDIRECT(\"c\" & (VLOOKUP(Rebalance!$D$61,$F$2:$G$48,2,FALSE)+ROW()-2))=Rebalance!$D$61,INDIRECT(\"a\" & (VLOOKUP(Rebalance!$D$61,$F$2:$G$48,2,FALSE)+ROW()-2)),\"\")","v":{"$error":"#N/A"}},{"$f":"IF(INDIRECT(\"c\" & (VLOOKUP(Rebalance!$D$62,$F$2:$G$48,2,FALSE)+ROW()-2))=Rebalance!$D$62,INDIRECT(\"a\" & (VLOOKUP(Rebalance!$D$62,$F$2:$G$48,2,FALSE)+ROW()-2)),\"\")","v":{"$error":"#N/A"}},{"$f":"IF(INDIRECT(\"c\" & (VLOOKUP(Rebalance!$D$63,$F$2:$G$48,2,FALSE)+ROW()-2))=Rebalance!$D$63,INDIRECT(\"a\" & (VLOOKUP(Rebalance!$D$63,$F$2:$G$48,2,FALSE)+ROW()-2)),\"\")","v":{"$error":"#N/A"}},{"$f":"IF(INDIRECT(\"c\" & (VLOOKUP(Rebalance!$D$64,$F$2:$G$48,2,FALSE)+ROW()-2))=Rebalance!$D$64,INDIRECT(\"a\" & (VLOOKUP(Rebalance!$D$64,$F$2:$G$48,2,FALSE)+ROW()-2)),\"\")","v":{"$error":"#N/A"}},{"$f":"IF(INDIRECT(\"c\" & (VLOOKUP(Rebalance!$D$65,$F$2:$G$48,2,FALSE)+ROW()-2))=Rebalance!$D$65,INDIRECT(\"a\" & (VLOOKUP(Rebalance!$D$65,$F$2:$G$48,2,FALSE)+ROW()-2)),\"\")","v":{"$error":"#N/A"}},{"$f":"IF(INDIRECT(\"c\" & (VLOOKUP(Rebalance!$D$66,$F$2:$G$48,2,FALSE)+ROW()-2))=Rebalance!$D$66,INDIRECT(\"a\" & (VLOOKUP(Rebalance!$D$66,$F$2:$G$48,2,FALSE)+ROW()-2)),\"\")","v":{"$error":"#N/A"}}]
["Foord International Feeder Fund B2","FIFB2","Foord Unit Trusts Ltd",{"$f":"ROW()","v":252},null,null,{"$f":"VLOOKUP(F252,$C$2:$D$599,2,FALSE)","v":{"$error":"#N/A"}},{"$f":"IF(INDIRECT(\"c\" & (VLOOKUP(Rebalance!$D$26,$F$2:$G$48,2,FALSE)+ROW()-2))=Rebalance!$D$26,INDIRECT(\"a\" & (VLOOKUP(Rebalance!$D$26,$F$2:$G$48,2,FALSE)+ROW()-2)),\"\")","v":{"$error":"#N/A"}},{"$f":"IF(INDIRECT(\"c\" & (VLOOKUP(Rebalance!$D$27,$F$2:$G$48,2,FALSE)+ROW()-2))=Rebalance!$D$27,INDIRECT(\"a\" & (VLOOKUP(Rebalance!$D$27,$F$2:$G$48,2,FALSE)+ROW()-2)),\"\")","v":{"$error":"#N/A"}},{"$f":"IF(INDIRECT(\"c\" & (VLOOKUP(Rebalance!$D$28,$F$2:$G$48,2,FALSE)+ROW()-2))=Rebalance!$D$28,INDIRECT(\"a\" & (VLOOKUP(Rebalance!$D$28,$F$2:$G$48,2,FALSE)+ROW()-2)),\"\")","v":{"$error":"#N/A"}},{"$f":"IF(INDIRECT(\"c\" & (VLOOKUP(Rebalance!$D$29,$F$2:$G$48,2,FALSE)+ROW()-2))=Rebalance!$D$29,INDIRECT(\"a\" & (VLOOKUP(Rebalance!$D$29,$F$2:$G$48,2,FALSE)+ROW()-2)),\"\")","v":{"$error":"#N/A"}},{"$f":"IF(INDIRECT(\"c\" & (VLOOKUP(Rebalance!$D$30,$F$2:$G$48,2,FALSE)+ROW()-2))=Rebalance!$D$30,INDIRECT(\"a\" & (VLOOKUP(Rebalance!$D$30,$F$2:$G$48,2,FALSE)+ROW()-2)),\"\")","v":{"$error":"#N/A"}},{"$f":"IF(INDIRECT(\"c\" & (VLOOKUP(Rebalance!$D$31,$F$2:$G$48,2,FALSE)+ROW()-2))=Rebalance!$D$31,INDIRECT(\"a\" & (VLOOKUP(Rebalance!$D$31,$F$2:$G$48,2,FALSE)+ROW()-2)),\"\")","v":{"$error":"#N/A"}},{"$f":"IF(INDIRECT(\"c\" & (VLOOKUP(Rebalance!$D$32,$F$2:$G$48,2,FALSE)+ROW()-2))=Rebalance!$D$32,INDIRECT(\"a\" & (VLOOKUP(Rebalance!$D$32,$F$2:$G$48,2,FALSE)+ROW()-2)),\"\")","v":{"$error":"#N/A"}},{"$f":"IF(INDIRECT(\"c\" & (VLOOKUP(Rebalance!$D$33,$F$2:$G$48,2,FALSE)+ROW()-2))=Rebalance!$D$33,INDIRECT(\"a\" & (VLOOKUP(Rebalance!$D$33,$F$2:$G$48,2,FALSE)+ROW()-2)),\"\")","v":{"$error":"#N/A"}},{"$f":"IF(INDIRECT(\"c\" & (VLOOKUP(Rebalance!$D$34,$F$2:$G$48,2,FALSE)+ROW()-2))=Rebalance!$D$34,INDIRECT(\"a\" & (VLOOKUP(Rebalance!$D$34,$F$2:$G$48,2,FALSE)+ROW()-2)),\"\")","v":{"$error":"#N/A"}},{"$f":"IF(INDIRECT(\"c\" & (VLOOKUP(Rebalance!$D$35,$F$2:$G$48,2,FALSE)+ROW()-2))=Rebalance!$D$35,INDIRECT(\"a\" & (VLOOKUP(Rebalance!$D$35,$F$2:$G$48,2,FALSE)+ROW()-2)),\"\")","v":{"$error":"#N/A"}},{"$f":"IF(INDIRECT(\"c\" & (VLOOKUP(Rebalance!$D$36,$F$2:$G$48,2,FALSE)+ROW()-2))=Rebalance!$D$36,INDIRECT(\"a\" & (VLOOKUP(Rebalance!$D$36,$F$2:$G$48,2,FALSE)+ROW()-2)),\"\")","v":{"$error":"#N/A"}},{"$f":"IF(INDIRECT(\"c\" & (VLOOKUP(Rebalance!$D$37,$F$2:$G$48,2,FALSE)+ROW()-2))=Rebalance!$D$37,INDIRECT(\"a\" & (VLOOKUP(Rebalance!$D$37,$F$2:$G$48,2,FALSE)+ROW()-2)),\"\")","v":{"$error":"#N/A"}},{"$f":"IF(INDIRECT(\"c\" & (VLOOKUP(Rebalance!$D$38,$F$2:$G$48,2,FALSE)+ROW()-2))=Rebalance!$D$38,INDIRECT(\"a\" & (VLOOKUP(Rebalance!$D$38,$F$2:$G$48,2,FALSE)+ROW()-2)),\"\")","v":{"$error":"#N/A"}},{"$f":"IF(INDIRECT(\"c\" & (VLOOKUP(Rebalance!$D$39,$F$2:$G$48,2,FALSE)+ROW()-2))=Rebalance!$D$39,INDIRECT(\"a\" & (VLOOKUP(Rebalance!$D$39,$F$2:$G$48,2,FALSE)+ROW()-2)),\"\")","v":{"$error":"#N/A"}},{"$f":"IF(INDIRECT(\"c\" & (VLOOKUP(Rebalance!$D$40,$F$2:$G$48,2,FALSE)+ROW()-2))=Rebalance!$D$40,INDIRECT(\"a\" & (VLOOKUP(Rebalance!$D$40,$F$2:$G$48,2,FALSE)+ROW()-2)),\"\")","v":{"$error":"#N/A"}},{"$f":"IF(INDIRECT(\"c\" & (VLOOKUP(Rebalance!$D$52,$F$2:$G$48,2,FALSE)+ROW()-2))=Rebalance!$D$52,INDIRECT(\"a\" & (VLOOKUP(Rebalance!$D$52,$F$2:$G$48,2,FALSE)+ROW()-2)),\"\")","v":{"$error":"#N/A"}},{"$f":"IF(INDIRECT(\"c\" & (VLOOKUP(Rebalance!$D$53,$F$2:$G$48,2,FALSE)+ROW()-2))=Rebalance!$D$53,INDIRECT(\"a\" & (VLOOKUP(Rebalance!$D$53,$F$2:$G$48,2,FALSE)+ROW()-2)),\"\")","v":{"$error":"#N/A"}},{"$f":"IF(INDIRECT(\"c\" & (VLOOKUP(Rebalance!$D$54,$F$2:$G$48,2,FALSE)+ROW()-2))=Rebalance!$D$54,INDIRECT(\"a\" & (VLOOKUP(Rebalance!$D$54,$F$2:$G$48,2,FALSE)+ROW()-2)),\"\")","v":{"$error":"#N/A"}},{"$f":"IF(INDIRECT(\"c\" & (VLOOKUP(Rebalance!$D$55,$F$2:$G$48,2,FALSE)+ROW()-2))=Rebalance!$D$55,INDIRECT(\"a\" & (VLOOKUP(Rebalance!$D$55,$F$2:$G$48,2,FALSE)+ROW()-2)),\"\")","v":{"$error":"#N/A"}},{"$f":"IF(INDIRECT(\"c\" & (VLOOKUP(Rebalance!$D$56,$F$2:$G$48,2,FALSE)+ROW()-2))=Rebalance!$D$56,INDIRECT(\"a\" & (VLOOKUP(Rebalance!$D$56,$F$2:$G$48,2,FALSE)+ROW()-2)),\"\")","v":{"$error":"#N/A"}},{"$f":"IF(INDIRECT(\"c\" & (VLOOKUP(Rebalance!$D$57,$F$2:$G$48,2,FALSE)+ROW()-2))=Rebalance!$D$57,INDIRECT(\"a\" & (VLOOKUP(Rebalance!$D$57,$F$2:$G$48,2,FALSE)+ROW()-2)),\"\")","v":{"$error":"#N/A"}},{"$f":"IF(INDIRECT(\"c\" & (VLOOKUP(Rebalance!$D$58,$F$2:$G$48,2,FALSE)+ROW()-2))=Rebalance!$D$58,INDIRECT(\"a\" & (VLOOKUP(Rebalance!$D$58,$F$2:$G$48,2,FALSE)+ROW()-2)),\"\")","v":{"$error":"#N/A"}},{"$f":"IF(INDIRECT(\"c\" & (VLOOKUP(Rebalance!$D$59,$F$2:$G$48,2,FALSE)+ROW()-2))=Rebalance!$D$59,INDIRECT(\"a\" & (VLOOKUP(Rebalance!$D$59,$F$2:$G$48,2,FALSE)+ROW()-2)),\"\")","v":{"$error":"#N/A"}},{"$f":"IF(INDIRECT(\"c\" & (VLOOKUP(Rebalance!$D$60,$F$2:$G$48,2,FALSE)+ROW()-2))=Rebalance!$D$60,INDIRECT(\"a\" & (VLOOKUP(Rebalance!$D$60,$F$2:$G$48,2,FALSE)+ROW()-2)),\"\")","v":{"$error":"#N/A"}},{"$f":"IF(INDIRECT(\"c\" & (VLOOKUP(Rebalance!$D$61,$F$2:$G$48,2,FALSE)+ROW()-2))=Rebalance!$D$61,INDIRECT(\"a\" & (VLOOKUP(Rebalance!$D$61,$F$2:$G$48,2,FALSE)+ROW()-2)),\"\")","v":{"$error":"#N/A"}},{"$f":"IF(INDIRECT(\"c\" & (VLOOKUP(Rebalance!$D$62,$F$2:$G$48,2,FALSE)+ROW()-2))=Rebalance!$D$62,INDIRECT(\"a\" & (VLOOKUP(Rebalance!$D$62,$F$2:$G$48,2,FALSE)+ROW()-2)),\"\")","v":{"$error":"#N/A"}},{"$f":"IF(INDIRECT(\"c\" & (VLOOKUP(Rebalance!$D$63,$F$2:$G$48,2,FALSE)+ROW()-2))=Rebalance!$D$63,INDIRECT(\"a\" & (VLOOKUP(Rebalance!$D$63,$F$2:$G$48,2,FALSE)+ROW()-2)),\"\")","v":{"$error":"#N/A"}},{"$f":"IF(INDIRECT(\"c\" & (VLOOKUP(Rebalance!$D$64,$F$2:$G$48,2,FALSE)+ROW()-2))=Rebalance!$D$64,INDIRECT(\"a\" & (VLOOKUP(Rebalance!$D$64,$F$2:$G$48,2,FALSE)+ROW()-2)),\"\")","v":{"$error":"#N/A"}},{"$f":"IF(INDIRECT(\"c\" & (VLOOKUP(Rebalance!$D$65,$F$2:$G$48,2,FALSE)+ROW()-2))=Rebalance!$D$65,INDIRECT(\"a\" & (VLOOKUP(Rebalance!$D$65,$F$2:$G$48,2,FALSE)+ROW()-2)),\"\")","v":{"$error":"#N/A"}},{"$f":"IF(INDIRECT(\"c\" & (VLOOKUP(Rebalance!$D$66,$F$2:$G$48,2,FALSE)+ROW()-2))=Rebalance!$D$66,INDIRECT(\"a\" & (VLOOKUP(Rebalance!$D$66,$F$2:$G$48,2,FALSE)+ROW()-2)),\"\")","v":{"$error":"#N/A"}}]
["GTC Capital Plus FoF B","GTCCB","Grant Thornton Capital (Pty) Ltd",{"$f":"ROW()","v":253},null,null,{"$f":"VLOOKUP(F253,$C$2:$D$599,2,FALSE)","v":{"$error":"#N/A"}},{"$f":"IF(INDIRECT(\"c\" & (VLOOKUP(Rebalance!$D$26,$F$2:$G$48,2,FALSE)+ROW()-2))=Rebalance!$D$26,INDIRECT(\"a\" & (VLOOKUP(Rebalance!$D$26,$F$2:$G$48,2,FALSE)+ROW()-2)),\"\")","v":{"$error":"#N/A"}},{"$f":"IF(INDIRECT(\"c\" & (VLOOKUP(Rebalance!$D$27,$F$2:$G$48,2,FALSE)+ROW()-2))=Rebalance!$D$27,INDIRECT(\"a\" & (VLOOKUP(Rebalance!$D$27,$F$2:$G$48,2,FALSE)+ROW()-2)),\"\")","v":{"$error":"#N/A"}},{"$f":"IF(INDIRECT(\"c\" & (VLOOKUP(Rebalance!$D$28,$F$2:$G$48,2,FALSE)+ROW()-2))=Rebalance!$D$28,INDIRECT(\"a\" & (VLOOKUP(Rebalance!$D$28,$F$2:$G$48,2,FALSE)+ROW()-2)),\"\")","v":{"$error":"#N/A"}},{"$f":"IF(INDIRECT(\"c\" & (VLOOKUP(Rebalance!$D$29,$F$2:$G$48,2,FALSE)+ROW()-2))=Rebalance!$D$29,INDIRECT(\"a\" & (VLOOKUP(Rebalance!$D$29,$F$2:$G$48,2,FALSE)+ROW()-2)),\"\")","v":{"$error":"#N/A"}},{"$f":"IF(INDIRECT(\"c\" & (VLOOKUP(Rebalance!$D$30,$F$2:$G$48,2,FALSE)+ROW()-2))=Rebalance!$D$30,INDIRECT(\"a\" & (VLOOKUP(Rebalance!$D$30,$F$2:$G$48,2,FALSE)+ROW()-2)),\"\")","v":{"$error":"#N/A"}},{"$f":"IF(INDIRECT(\"c\" & (VLOOKUP(Rebalance!$D$31,$F$2:$G$48,2,FALSE)+ROW()-2))=Rebalance!$D$31,INDIRECT(\"a\" & (VLOOKUP(Rebalance!$D$31,$F$2:$G$48,2,FALSE)+ROW()-2)),\"\")","v":{"$error":"#N/A"}},{"$f":"IF(INDIRECT(\"c\" & (VLOOKUP(Rebalance!$D$32,$F$2:$G$48,2,FALSE)+ROW()-2))=Rebalance!$D$32,INDIRECT(\"a\" & (VLOOKUP(Rebalance!$D$32,$F$2:$G$48,2,FALSE)+ROW()-2)),\"\")","v":{"$error":"#N/A"}},{"$f":"IF(INDIRECT(\"c\" & (VLOOKUP(Rebalance!$D$33,$F$2:$G$48,2,FALSE)+ROW()-2))=Rebalance!$D$33,INDIRECT(\"a\" & (VLOOKUP(Rebalance!$D$33,$F$2:$G$48,2,FALSE)+ROW()-2)),\"\")","v":{"$error":"#N/A"}},{"$f":"IF(INDIRECT(\"c\" & (VLOOKUP(Rebalance!$D$34,$F$2:$G$48,2,FALSE)+ROW()-2))=Rebalance!$D$34,INDIRECT(\"a\" & (VLOOKUP(Rebalance!$D$34,$F$2:$G$48,2,FALSE)+ROW()-2)),\"\")","v":{"$error":"#N/A"}},{"$f":"IF(INDIRECT(\"c\" & (VLOOKUP(Rebalance!$D$35,$F$2:$G$48,2,FALSE)+ROW()-2))=Rebalance!$D$35,INDIRECT(\"a\" & (VLOOKUP(Rebalance!$D$35,$F$2:$G$48,2,FALSE)+ROW()-2)),\"\")","v":{"$error":"#N/A"}},{"$f":"IF(INDIRECT(\"c\" & (VLOOKUP(Rebalance!$D$36,$F$2:$G$48,2,FALSE)+ROW()-2))=Rebalance!$D$36,INDIRECT(\"a\" & (VLOOKUP(Rebalance!$D$36,$F$2:$G$48,2,FALSE)+ROW()-2)),\"\")","v":{"$error":"#N/A"}},{"$f":"IF(INDIRECT(\"c\" & (VLOOKUP(Rebalance!$D$37,$F$2:$G$48,2,FALSE)+ROW()-2))=Rebalance!$D$37,INDIRECT(\"a\" & (VLOOKUP(Rebalance!$D$37,$F$2:$G$48,2,FALSE)+ROW()-2)),\"\")","v":{"$error":"#N/A"}},{"$f":"IF(INDIRECT(\"c\" & (VLOOKUP(Rebalance!$D$38,$F$2:$G$48,2,FALSE)+ROW()-2))=Rebalance!$D$38,INDIRECT(\"a\" & (VLOOKUP(Rebalance!$D$38,$F$2:$G$48,2,FALSE)+ROW()-2)),\"\")","v":{"$error":"#N/A"}},{"$f":"IF(INDIRECT(\"c\" & (VLOOKUP(Rebalance!$D$39,$F$2:$G$48,2,FALSE)+ROW()-2))=Rebalance!$D$39,INDIRECT(\"a\" & (VLOOKUP(Rebalance!$D$39,$F$2:$G$48,2,FALSE)+ROW()-2)),\"\")","v":{"$error":"#N/A"}},{"$f":"IF(INDIRECT(\"c\" & (VLOOKUP(Rebalance!$D$40,$F$2:$G$48,2,FALSE)+ROW()-2))=Rebalance!$D$40,INDIRECT(\"a\" & (VLOOKUP(Rebalance!$D$40,$F$2:$G$48,2,FALSE)+ROW()-2)),\"\")","v":{"$error":"#N/A"}},{"$f":"IF(INDIRECT(\"c\" & (VLOOKUP(Rebalance!$D$52,$F$2:$G$48,2,FALSE)+ROW()-2))=Rebalance!$D$52,INDIRECT(\"a\" & (VLOOKUP(Rebalance!$D$52,$F$2:$G$48,2,FALSE)+ROW()-2)),\"\")","v":{"$error":"#N/A"}},{"$f":"IF(INDIRECT(\"c\" & (VLOOKUP(Rebalance!$D$53,$F$2:$G$48,2,FALSE)+ROW()-2))=Rebalance!$D$53,INDIRECT(\"a\" & (VLOOKUP(Rebalance!$D$53,$F$2:$G$48,2,FALSE)+ROW()-2)),\"\")","v":{"$error":"#N/A"}},{"$f":"IF(INDIRECT(\"c\" & (VLOOKUP(Rebalance!$D$54,$F$2:$G$48,2,FALSE)+ROW()-2))=Rebalance!$D$54,INDIRECT(\"a\" & (VLOOKUP(Rebalance!$D$54,$F$2:$G$48,2,FALSE)+ROW()-2)),\"\")","v":{"$error":"#N/A"}},{"$f":"IF(INDIRECT(\"c\" & (VLOOKUP(Rebalance!$D$55,$F$2:$G$48,2,FALSE)+ROW()-2))=Rebalance!$D$55,INDIRECT(\"a\" & (VLOOKUP(Rebalance!$D$55,$F$2:$G$48,2,FALSE)+ROW()-2)),\"\")","v":{"$error":"#N/A"}},{"$f":"IF(INDIRECT(\"c\" & (VLOOKUP(Rebalance!$D$56,$F$2:$G$48,2,FALSE)+ROW()-2))=Rebalance!$D$56,INDIRECT(\"a\" & (VLOOKUP(Rebalance!$D$56,$F$2:$G$48,2,FALSE)+ROW()-2)),\"\")","v":{"$error":"#N/A"}},{"$f":"IF(INDIRECT(\"c\" & (VLOOKUP(Rebalance!$D$57,$F$2:$G$48,2,FALSE)+ROW()-2))=Rebalance!$D$57,INDIRECT(\"a\" & (VLOOKUP(Rebalance!$D$57,$F$2:$G$48,2,FALSE)+ROW()-2)),\"\")","v":{"$error":"#N/A"}},{"$f":"IF(INDIRECT(\"c\" & (VLOOKUP(Rebalance!$D$58,$F$2:$G$48,2,FALSE)+ROW()-2))=Rebalance!$D$58,INDIRECT(\"a\" & (VLOOKUP(Rebalance!$D$58,$F$2:$G$48,2,FALSE)+ROW()-2)),\"\")","v":{"$error":"#N/A"}},{"$f":"IF(INDIRECT(\"c\" & (VLOOKUP(Rebalance!$D$59,$F$2:$G$48,2,FALSE)+ROW()-2))=Rebalance!$D$59,INDIRECT(\"a\" & (VLOOKUP(Rebalance!$D$59,$F$2:$G$48,2,FALSE)+ROW()-2)),\"\")","v":{"$error":"#N/A"}},{"$f":"IF(INDIRECT(\"c\" & (VLOOKUP(Rebalance!$D$60,$F$2:$G$48,2,FALSE)+ROW()-2))=Rebalance!$D$60,INDIRECT(\"a\" & (VLOOKUP(Rebalance!$D$60,$F$2:$G$48,2,FALSE)+ROW()-2)),\"\")","v":{"$error":"#N/A"}},{"$f":"IF(INDIRECT(\"c\" & (VLOOKUP(Rebalance!$D$61,$F$2:$G$48,2,FALSE)+ROW()-2))=Rebalance!$D$61,INDIRECT(\"a\" & (VLOOKUP(Rebalance!$D$61,$F$2:$G$48,2,FALSE)+ROW()-2)),\"\")","v":{"$error":"#N/A"}},{"$f":"IF(INDIRECT(\"c\" & (VLOOKUP(Rebalance!$D$62,$F$2:$G$48,2,FALSE)+ROW()-2))=Rebalance!$D$62,INDIRECT(\"a\" & (VLOOKUP(Rebalance!$D$62,$F$2:$G$48,2,FALSE)+ROW()-2)),\"\")","v":{"$error":"#N/A"}},{"$f":"IF(INDIRECT(\"c\" & (VLOOKUP(Rebalance!$D$63,$F$2:$G$48,2,FALSE)+ROW()-2))=Rebalance!$D$63,INDIRECT(\"a\" & (VLOOKUP(Rebalance!$D$63,$F$2:$G$48,2,FALSE)+ROW()-2)),\"\")","v":{"$error":"#N/A"}},{"$f":"IF(INDIRECT(\"c\" & (VLOOKUP(Rebalance!$D$64,$F$2:$G$48,2,FALSE)+ROW()-2))=Rebalance!$D$64,INDIRECT(\"a\" & (VLOOKUP(Rebalance!$D$64,$F$2:$G$48,2,FALSE)+ROW()-2)),\"\")","v":{"$error":"#N/A"}},{"$f":"IF(INDIRECT(\"c\" & (VLOOKUP(Rebalance!$D$65,$F$2:$G$48,2,FALSE)+ROW()-2))=Rebalance!$D$65,INDIRECT(\"a\" & (VLOOKUP(Rebalance!$D$65,$F$2:$G$48,2,FALSE)+ROW()-2)),\"\")","v":{"$error":"#N/A"}},{"$f":"IF(INDIRECT(\"c\" & (VLOOKUP(Rebalance!$D$66,$F$2:$G$48,2,FALSE)+ROW()-2))=Rebalance!$D$66,INDIRECT(\"a\" & (VLOOKUP(Rebalance!$D$66,$F$2:$G$48,2,FALSE)+ROW()-2)),\"\")","v":{"$error":"#N/A"}}]
["GTC Fixed Income Fund B","GFICB","Grant Thornton Capital (Pty) Ltd",{"$f":"ROW()","v":254},null,null,{"$f":"VLOOKUP(F254,$C$2:$D$599,2,FALSE)","v":{"$error":"#N/A"}},{"$f":"IF(INDIRECT(\"c\" & (VLOOKUP(Rebalance!$D$26,$F$2:$G$48,2,FALSE)+ROW()-2))=Rebalance!$D$26,INDIRECT(\"a\" & (VLOOKUP(Rebalance!$D$26,$F$2:$G$48,2,FALSE)+ROW()-2)),\"\")","v":{"$error":"#N/A"}},{"$f":"IF(INDIRECT(\"c\" & (VLOOKUP(Rebalance!$D$27,$F$2:$G$48,2,FALSE)+ROW()-2))=Rebalance!$D$27,INDIRECT(\"a\" & (VLOOKUP(Rebalance!$D$27,$F$2:$G$48,2,FALSE)+ROW()-2)),\"\")","v":{"$error":"#N/A"}},{"$f":"IF(INDIRECT(\"c\" & (VLOOKUP(Rebalance!$D$28,$F$2:$G$48,2,FALSE)+ROW()-2))=Rebalance!$D$28,INDIRECT(\"a\" & (VLOOKUP(Rebalance!$D$28,$F$2:$G$48,2,FALSE)+ROW()-2)),\"\")","v":{"$error":"#N/A"}},{"$f":"IF(INDIRECT(\"c\" & (VLOOKUP(Rebalance!$D$29,$F$2:$G$48,2,FALSE)+ROW()-2))=Rebalance!$D$29,INDIRECT(\"a\" & (VLOOKUP(Rebalance!$D$29,$F$2:$G$48,2,FALSE)+ROW()-2)),\"\")","v":{"$error":"#N/A"}},{"$f":"IF(INDIRECT(\"c\" & (VLOOKUP(Rebalance!$D$30,$F$2:$G$48,2,FALSE)+ROW()-2))=Rebalance!$D$30,INDIRECT(\"a\" & (VLOOKUP(Rebalance!$D$30,$F$2:$G$48,2,FALSE)+ROW()-2)),\"\")","v":{"$error":"#N/A"}},{"$f":"IF(INDIRECT(\"c\" & (VLOOKUP(Rebalance!$D$31,$F$2:$G$48,2,FALSE)+ROW()-2))=Rebalance!$D$31,INDIRECT(\"a\" & (VLOOKUP(Rebalance!$D$31,$F$2:$G$48,2,FALSE)+ROW()-2)),\"\")","v":{"$error":"#N/A"}},{"$f":"IF(INDIRECT(\"c\" & (VLOOKUP(Rebalance!$D$32,$F$2:$G$48,2,FALSE)+ROW()-2))=Rebalance!$D$32,INDIRECT(\"a\" & (VLOOKUP(Rebalance!$D$32,$F$2:$G$48,2,FALSE)+ROW()-2)),\"\")","v":{"$error":"#N/A"}},{"$f":"IF(INDIRECT(\"c\" & (VLOOKUP(Rebalance!$D$33,$F$2:$G$48,2,FALSE)+ROW()-2))=Rebalance!$D$33,INDIRECT(\"a\" & (VLOOKUP(Rebalance!$D$33,$F$2:$G$48,2,FALSE)+ROW()-2)),\"\")","v":{"$error":"#N/A"}},{"$f":"IF(INDIRECT(\"c\" & (VLOOKUP(Rebalance!$D$34,$F$2:$G$48,2,FALSE)+ROW()-2))=Rebalance!$D$34,INDIRECT(\"a\" & (VLOOKUP(Rebalance!$D$34,$F$2:$G$48,2,FALSE)+ROW()-2)),\"\")","v":{"$error":"#N/A"}},{"$f":"IF(INDIRECT(\"c\" & (VLOOKUP(Rebalance!$D$35,$F$2:$G$48,2,FALSE)+ROW()-2))=Rebalance!$D$35,INDIRECT(\"a\" & (VLOOKUP(Rebalance!$D$35,$F$2:$G$48,2,FALSE)+ROW()-2)),\"\")","v":{"$error":"#N/A"}},{"$f":"IF(INDIRECT(\"c\" & (VLOOKUP(Rebalance!$D$36,$F$2:$G$48,2,FALSE)+ROW()-2))=Rebalance!$D$36,INDIRECT(\"a\" & (VLOOKUP(Rebalance!$D$36,$F$2:$G$48,2,FALSE)+ROW()-2)),\"\")","v":{"$error":"#N/A"}},{"$f":"IF(INDIRECT(\"c\" & (VLOOKUP(Rebalance!$D$37,$F$2:$G$48,2,FALSE)+ROW()-2))=Rebalance!$D$37,INDIRECT(\"a\" & (VLOOKUP(Rebalance!$D$37,$F$2:$G$48,2,FALSE)+ROW()-2)),\"\")","v":{"$error":"#N/A"}},{"$f":"IF(INDIRECT(\"c\" & (VLOOKUP(Rebalance!$D$38,$F$2:$G$48,2,FALSE)+ROW()-2))=Rebalance!$D$38,INDIRECT(\"a\" & (VLOOKUP(Rebalance!$D$38,$F$2:$G$48,2,FALSE)+ROW()-2)),\"\")","v":{"$error":"#N/A"}},{"$f":"IF(INDIRECT(\"c\" & (VLOOKUP(Rebalance!$D$39,$F$2:$G$48,2,FALSE)+ROW()-2))=Rebalance!$D$39,INDIRECT(\"a\" & (VLOOKUP(Rebalance!$D$39,$F$2:$G$48,2,FALSE)+ROW()-2)),\"\")","v":{"$error":"#N/A"}},{"$f":"IF(INDIRECT(\"c\" & (VLOOKUP(Rebalance!$D$40,$F$2:$G$48,2,FALSE)+ROW()-2))=Rebalance!$D$40,INDIRECT(\"a\" & (VLOOKUP(Rebalance!$D$40,$F$2:$G$48,2,FALSE)+ROW()-2)),\"\")","v":{"$error":"#N/A"}},{"$f":"IF(INDIRECT(\"c\" & (VLOOKUP(Rebalance!$D$52,$F$2:$G$48,2,FALSE)+ROW()-2))=Rebalance!$D$52,INDIRECT(\"a\" & (VLOOKUP(Rebalance!$D$52,$F$2:$G$48,2,FALSE)+ROW()-2)),\"\")","v":{"$error":"#N/A"}},{"$f":"IF(INDIRECT(\"c\" & (VLOOKUP(Rebalance!$D$53,$F$2:$G$48,2,FALSE)+ROW()-2))=Rebalance!$D$53,INDIRECT(\"a\" & (VLOOKUP(Rebalance!$D$53,$F$2:$G$48,2,FALSE)+ROW()-2)),\"\")","v":{"$error":"#N/A"}},{"$f":"IF(INDIRECT(\"c\" & (VLOOKUP(Rebalance!$D$54,$F$2:$G$48,2,FALSE)+ROW()-2))=Rebalance!$D$54,INDIRECT(\"a\" & (VLOOKUP(Rebalance!$D$54,$F$2:$G$48,2,FALSE)+ROW()-2)),\"\")","v":{"$error":"#N/A"}},{"$f":"IF(INDIRECT(\"c\" & (VLOOKUP(Rebalance!$D$55,$F$2:$G$48,2,FALSE)+ROW()-2))=Rebalance!$D$55,INDIRECT(\"a\" & (VLOOKUP(Rebalance!$D$55,$F$2:$G$48,2,FALSE)+ROW()-2)),\"\")","v":{"$error":"#N/A"}},{"$f":"IF(INDIRECT(\"c\" & (VLOOKUP(Rebalance!$D$56,$F$2:$G$48,2,FALSE)+ROW()-2))=Rebalance!$D$56,INDIRECT(\"a\" & (VLOOKUP(Rebalance!$D$56,$F$2:$G$48,2,FALSE)+ROW()-2)),\"\")","v":{"$error":"#N/A"}},{"$f":"IF(INDIRECT(\"c\" & (VLOOKUP(Rebalance!$D$57,$F$2:$G$48,2,FALSE)+ROW()-2))=Rebalance!$D$57,INDIRECT(\"a\" & (VLOOKUP(Rebalance!$D$57,$F$2:$G$48,2,FALSE)+ROW()-2)),\"\")","v":{"$error":"#N/A"}},{"$f":"IF(INDIRECT(\"c\" & (VLOOKUP(Rebalance!$D$58,$F$2:$G$48,2,FALSE)+ROW()-2))=Rebalance!$D$58,INDIRECT(\"a\" & (VLOOKUP(Rebalance!$D$58,$F$2:$G$48,2,FALSE)+ROW()-2)),\"\")","v":{"$error":"#N/A"}},{"$f":"IF(INDIRECT(\"c\" & (VLOOKUP(Rebalance!$D$59,$F$2:$G$48,2,FALSE)+ROW()-2))=Rebalance!$D$59,INDIRECT(\"a\" & (VLOOKUP(Rebalance!$D$59,$F$2:$G$48,2,FALSE)+ROW()-2)),\"\")","v":{"$error":"#N/A"}},{"$f":"IF(INDIRECT(\"c\" & (VLOOKUP(Rebalance!$D$60,$F$2:$G$48,2,FALSE)+ROW()-2))=Rebalance!$D$60,INDIRECT(\"a\" & (VLOOKUP(Rebalance!$D$60,$F$2:$G$48,2,FALSE)+ROW()-2)),\"\")","v":{"$error":"#N/A"}},{"$f":"IF(INDIRECT(\"c\" & (VLOOKUP(Rebalance!$D$61,$F$2:$G$48,2,FALSE)+ROW()-2))=Rebalance!$D$61,INDIRECT(\"a\" & (VLOOKUP(Rebalance!$D$61,$F$2:$G$48,2,FALSE)+ROW()-2)),\"\")","v":{"$error":"#N/A"}},{"$f":"IF(INDIRECT(\"c\" & (VLOOKUP(Rebalance!$D$62,$F$2:$G$48,2,FALSE)+ROW()-2))=Rebalance!$D$62,INDIRECT(\"a\" & (VLOOKUP(Rebalance!$D$62,$F$2:$G$48,2,FALSE)+ROW()-2)),\"\")","v":{"$error":"#N/A"}},{"$f":"IF(INDIRECT(\"c\" & (VLOOKUP(Rebalance!$D$63,$F$2:$G$48,2,FALSE)+ROW()-2))=Rebalance!$D$63,INDIRECT(\"a\" & (VLOOKUP(Rebalance!$D$63,$F$2:$G$48,2,FALSE)+ROW()-2)),\"\")","v":{"$error":"#N/A"}},{"$f":"IF(INDIRECT(\"c\" & (VLOOKUP(Rebalance!$D$64,$F$2:$G$48,2,FALSE)+ROW()-2))=Rebalance!$D$64,INDIRECT(\"a\" & (VLOOKUP(Rebalance!$D$64,$F$2:$G$48,2,FALSE)+ROW()-2)),\"\")","v":{"$error":"#N/A"}},{"$f":"IF(INDIRECT(\"c\" & (VLOOKUP(Rebalance!$D$65,$F$2:$G$48,2,FALSE)+ROW()-2))=Rebalance!$D$65,INDIRECT(\"a\" & (VLOOKUP(Rebalance!$D$65,$F$2:$G$48,2,FALSE)+ROW()-2)),\"\")","v":{"$error":"#N/A"}},{"$f":"IF(INDIRECT(\"c\" & (VLOOKUP(Rebalance!$D$66,$F$2:$G$48,2,FALSE)+ROW()-2))=Rebalance!$D$66,INDIRECT(\"a\" & (VLOOKUP(Rebalance!$D$66,$F$2:$G$48,2,FALSE)+ROW()-2)),\"\")","v":{"$error":"#N/A"}}]
["GTC Wealth Accumulator FoF B","WACB","Grant Thornton Capital (Pty) Ltd",{"$f":"ROW()","v":255},null,null,{"$f":"VLOOKUP(F255,$C$2:$D$599,2,FALSE)","v":{"$error":"#N/A"}},{"$f":"IF(INDIRECT(\"c\" & (VLOOKUP(Rebalance!$D$26,$F$2:$G$48,2,FALSE)+ROW()-2))=Rebalance!$D$26,INDIRECT(\"a\" & (VLOOKUP(Rebalance!$D$26,$F$2:$G$48,2,FALSE)+ROW()-2)),\"\")","v":{"$error":"#N/A"}},{"$f":"IF(INDIRECT(\"c\" & (VLOOKUP(Rebalance!$D$27,$F$2:$G$48,2,FALSE)+ROW()-2))=Rebalance!$D$27,INDIRECT(\"a\" & (VLOOKUP(Rebalance!$D$27,$F$2:$G$48,2,FALSE)+ROW()-2)),\"\")","v":{"$error":"#N/A"}},{"$f":"IF(INDIRECT(\"c\" & (VLOOKUP(Rebalance!$D$28,$F$2:$G$48,2,FALSE)+ROW()-2))=Rebalance!$D$28,INDIRECT(\"a\" & (VLOOKUP(Rebalance!$D$28,$F$2:$G$48,2,FALSE)+ROW()-2)),\"\")","v":{"$error":"#N/A"}},{"$f":"IF(INDIRECT(\"c\" & (VLOOKUP(Rebalance!$D$29,$F$2:$G$48,2,FALSE)+ROW()-2))=Rebalance!$D$29,INDIRECT(\"a\" & (VLOOKUP(Rebalance!$D$29,$F$2:$G$48,2,FALSE)+ROW()-2)),\"\")","v":{"$error":"#N/A"}},{"$f":"IF(INDIRECT(\"c\" & (VLOOKUP(Rebalance!$D$30,$F$2:$G$48,2,FALSE)+ROW()-2))=Rebalance!$D$30,INDIRECT(\"a\" & (VLOOKUP(Rebalance!$D$30,$F$2:$G$48,2,FALSE)+ROW()-2)),\"\")","v":{"$error":"#N/A"}},{"$f":"IF(INDIRECT(\"c\" & (VLOOKUP(Rebalance!$D$31,$F$2:$G$48,2,FALSE)+ROW()-2))=Rebalance!$D$31,INDIRECT(\"a\" & (VLOOKUP(Rebalance!$D$31,$F$2:$G$48,2,FALSE)+ROW()-2)),\"\")","v":{"$error":"#N/A"}},{"$f":"IF(INDIRECT(\"c\" & (VLOOKUP(Rebalance!$D$32,$F$2:$G$48,2,FALSE)+ROW()-2))=Rebalance!$D$32,INDIRECT(\"a\" & (VLOOKUP(Rebalance!$D$32,$F$2:$G$48,2,FALSE)+ROW()-2)),\"\")","v":{"$error":"#N/A"}},{"$f":"IF(INDIRECT(\"c\" & (VLOOKUP(Rebalance!$D$33,$F$2:$G$48,2,FALSE)+ROW()-2))=Rebalance!$D$33,INDIRECT(\"a\" & (VLOOKUP(Rebalance!$D$33,$F$2:$G$48,2,FALSE)+ROW()-2)),\"\")","v":{"$error":"#N/A"}},{"$f":"IF(INDIRECT(\"c\" & (VLOOKUP(Rebalance!$D$34,$F$2:$G$48,2,FALSE)+ROW()-2))=Rebalance!$D$34,INDIRECT(\"a\" & (VLOOKUP(Rebalance!$D$34,$F$2:$G$48,2,FALSE)+ROW()-2)),\"\")","v":{"$error":"#N/A"}},{"$f":"IF(INDIRECT(\"c\" & (VLOOKUP(Rebalance!$D$35,$F$2:$G$48,2,FALSE)+ROW()-2))=Rebalance!$D$35,INDIRECT(\"a\" & (VLOOKUP(Rebalance!$D$35,$F$2:$G$48,2,FALSE)+ROW()-2)),\"\")","v":{"$error":"#N/A"}},{"$f":"IF(INDIRECT(\"c\" & (VLOOKUP(Rebalance!$D$36,$F$2:$G$48,2,FALSE)+ROW()-2))=Rebalance!$D$36,INDIRECT(\"a\" & (VLOOKUP(Rebalance!$D$36,$F$2:$G$48,2,FALSE)+ROW()-2)),\"\")","v":{"$error":"#N/A"}},{"$f":"IF(INDIRECT(\"c\" & (VLOOKUP(Rebalance!$D$37,$F$2:$G$48,2,FALSE)+ROW()-2))=Rebalance!$D$37,INDIRECT(\"a\" & (VLOOKUP(Rebalance!$D$37,$F$2:$G$48,2,FALSE)+ROW()-2)),\"\")","v":{"$error":"#N/A"}},{"$f":"IF(INDIRECT(\"c\" & (VLOOKUP(Rebalance!$D$38,$F$2:$G$48,2,FALSE)+ROW()-2))=Rebalance!$D$38,INDIRECT(\"a\" & (VLOOKUP(Rebalance!$D$38,$F$2:$G$48,2,FALSE)+ROW()-2)),\"\")","v":{"$error":"#N/A"}},{"$f":"IF(INDIRECT(\"c\" & (VLOOKUP(Rebalance!$D$39,$F$2:$G$48,2,FALSE)+ROW()-2))=Rebalance!$D$39,INDIRECT(\"a\" & (VLOOKUP(Rebalance!$D$39,$F$2:$G$48,2,FALSE)+ROW()-2)),\"\")","v":{"$error":"#N/A"}},{"$f":"IF(INDIRECT(\"c\" & (VLOOKUP(Rebalance!$D$40,$F$2:$G$48,2,FALSE)+ROW()-2))=Rebalance!$D$40,INDIRECT(\"a\" & (VLOOKUP(Rebalance!$D$40,$F$2:$G$48,2,FALSE)+ROW()-2)),\"\")","v":{"$error":"#N/A"}},{"$f":"IF(INDIRECT(\"c\" & (VLOOKUP(Rebalance!$D$52,$F$2:$G$48,2,FALSE)+ROW()-2))=Rebalance!$D$52,INDIRECT(\"a\" & (VLOOKUP(Rebalance!$D$52,$F$2:$G$48,2,FALSE)+ROW()-2)),\"\")","v":{"$error":"#N/A"}},{"$f":"IF(INDIRECT(\"c\" & (VLOOKUP(Rebalance!$D$53,$F$2:$G$48,2,FALSE)+ROW()-2))=Rebalance!$D$53,INDIRECT(\"a\" & (VLOOKUP(Rebalance!$D$53,$F$2:$G$48,2,FALSE)+ROW()-2)),\"\")","v":{"$error":"#N/A"}},{"$f":"IF(INDIRECT(\"c\" & (VLOOKUP(Rebalance!$D$54,$F$2:$G$48,2,FALSE)+ROW()-2))=Rebalance!$D$54,INDIRECT(\"a\" & (VLOOKUP(Rebalance!$D$54,$F$2:$G$48,2,FALSE)+ROW()-2)),\"\")","v":{"$error":"#N/A"}},{"$f":"IF(INDIRECT(\"c\" & (VLOOKUP(Rebalance!$D$55,$F$2:$G$48,2,FALSE)+ROW()-2))=Rebalance!$D$55,INDIRECT(\"a\" & (VLOOKUP(Rebalance!$D$55,$F$2:$G$48,2,FALSE)+ROW()-2)),\"\")","v":{"$error":"#N/A"}},{"$f":"IF(INDIRECT(\"c\" & (VLOOKUP(Rebalance!$D$56,$F$2:$G$48,2,FALSE)+ROW()-2))=Rebalance!$D$56,INDIRECT(\"a\" & (VLOOKUP(Rebalance!$D$56,$F$2:$G$48,2,FALSE)+ROW()-2)),\"\")","v":{"$error":"#N/A"}},{"$f":"IF(INDIRECT(\"c\" & (VLOOKUP(Rebalance!$D$57,$F$2:$G$48,2,FALSE)+ROW()-2))=Rebalance!$D$57,INDIRECT(\"a\" & (VLOOKUP(Rebalance!$D$57,$F$2:$G$48,2,FALSE)+ROW()-2)),\"\")","v":{"$error":"#N/A"}},{"$f":"IF(INDIRECT(\"c\" & (VLOOKUP(Rebalance!$D$58,$F$2:$G$48,2,FALSE)+ROW()-2))=Rebalance!$D$58,INDIRECT(\"a\" & (VLOOKUP(Rebalance!$D$58,$F$2:$G$48,2,FALSE)+ROW()-2)),\"\")","v":{"$error":"#N/A"}},{"$f":"IF(INDIRECT(\"c\" & (VLOOKUP(Rebalance!$D$59,$F$2:$G$48,2,FALSE)+ROW()-2))=Rebalance!$D$59,INDIRECT(\"a\" & (VLOOKUP(Rebalance!$D$59,$F$2:$G$48,2,FALSE)+ROW()-2)),\"\")","v":{"$error":"#N/A"}},{"$f":"IF(INDIRECT(\"c\" & (VLOOKUP(Rebalance!$D$60,$F$2:$G$48,2,FALSE)+ROW()-2))=Rebalance!$D$60,INDIRECT(\"a\" & (VLOOKUP(Rebalance!$D$60,$F$2:$G$48,2,FALSE)+ROW()-2)),\"\")","v":{"$error":"#N/A"}},{"$f":"IF(INDIRECT(\"c\" & (VLOOKUP(Rebalance!$D$61,$F$2:$G$48,2,FALSE)+ROW()-2))=Rebalance!$D$61,INDIRECT(\"a\" & (VLOOKUP(Rebalance!$D$61,$F$2:$G$48,2,FALSE)+ROW()-2)),\"\")","v":{"$error":"#N/A"}},{"$f":"IF(INDIRECT(\"c\" & (VLOOKUP(Rebalance!$D$62,$F$2:$G$48,2,FALSE)+ROW()-2))=Rebalance!$D$62,INDIRECT(\"a\" & (VLOOKUP(Rebalance!$D$62,$F$2:$G$48,2,FALSE)+ROW()-2)),\"\")","v":{"$error":"#N/A"}},{"$f":"IF(INDIRECT(\"c\" & (VLOOKUP(Rebalance!$D$63,$F$2:$G$48,2,FALSE)+ROW()-2))=Rebalance!$D$63,INDIRECT(\"a\" & (VLOOKUP(Rebalance!$D$63,$F$2:$G$48,2,FALSE)+ROW()-2)),\"\")","v":{"$error":"#N/A"}},{"$f":"IF(INDIRECT(\"c\" & (VLOOKUP(Rebalance!$D$64,$F$2:$G$48,2,FALSE)+ROW()-2))=Rebalance!$D$64,INDIRECT(\"a\" & (VLOOKUP(Rebalance!$D$64,$F$2:$G$48,2,FALSE)+ROW()-2)),\"\")","v":{"$error":"#N/A"}},{"$f":"IF(INDIRECT(\"c\" & (VLOOKUP(Rebalance!$D$65,$F$2:$G$48,2,FALSE)+ROW()-2))=Rebalance!$D$65,INDIRECT(\"a\" & (VLOOKUP(Rebalance!$D$65,$F$2:$G$48,2,FALSE)+ROW()-2)),\"\")","v":{"$error":"#N/A"}},{"$f":"IF(INDIRECT(\"c\" & (VLOOKUP(Rebalance!$D$66,$F$2:$G$48,2,FALSE)+ROW()-2))=Rebalance!$D$66,INDIRECT(\"a\" & (VLOOKUP(Rebalance!$D$66,$F$2:$G$48,2,FALSE)+ROW()-2)),\"\")","v":{"$error":"#N/A"}}]
["Gryphon Flexible Fund of Funds B","GYFFF","Gryphon Collective Investments (RF) (Pty) Ltd",{"$f":"ROW()","v":256},null,null,{"$f":"VLOOKUP(F256,$C$2:$D$599,2,FALSE)","v":{"$error":"#N/A"}},{"$f":"IF(INDIRECT(\"c\" & (VLOOKUP(Rebalance!$D$26,$F$2:$G$48,2,FALSE)+ROW()-2))=Rebalance!$D$26,INDIRECT(\"a\" & (VLOOKUP(Rebalance!$D$26,$F$2:$G$48,2,FALSE)+ROW()-2)),\"\")","v":{"$error":"#N/A"}},{"$f":"IF(INDIRECT(\"c\" & (VLOOKUP(Rebalance!$D$27,$F$2:$G$48,2,FALSE)+ROW()-2))=Rebalance!$D$27,INDIRECT(\"a\" & (VLOOKUP(Rebalance!$D$27,$F$2:$G$48,2,FALSE)+ROW()-2)),\"\")","v":{"$error":"#N/A"}},{"$f":"IF(INDIRECT(\"c\" & (VLOOKUP(Rebalance!$D$28,$F$2:$G$48,2,FALSE)+ROW()-2))=Rebalance!$D$28,INDIRECT(\"a\" & (VLOOKUP(Rebalance!$D$28,$F$2:$G$48,2,FALSE)+ROW()-2)),\"\")","v":{"$error":"#N/A"}},{"$f":"IF(INDIRECT(\"c\" & (VLOOKUP(Rebalance!$D$29,$F$2:$G$48,2,FALSE)+ROW()-2))=Rebalance!$D$29,INDIRECT(\"a\" & (VLOOKUP(Rebalance!$D$29,$F$2:$G$48,2,FALSE)+ROW()-2)),\"\")","v":{"$error":"#N/A"}},{"$f":"IF(INDIRECT(\"c\" & (VLOOKUP(Rebalance!$D$30,$F$2:$G$48,2,FALSE)+ROW()-2))=Rebalance!$D$30,INDIRECT(\"a\" & (VLOOKUP(Rebalance!$D$30,$F$2:$G$48,2,FALSE)+ROW()-2)),\"\")","v":{"$error":"#N/A"}},{"$f":"IF(INDIRECT(\"c\" & (VLOOKUP(Rebalance!$D$31,$F$2:$G$48,2,FALSE)+ROW()-2))=Rebalance!$D$31,INDIRECT(\"a\" & (VLOOKUP(Rebalance!$D$31,$F$2:$G$48,2,FALSE)+ROW()-2)),\"\")","v":{"$error":"#N/A"}},{"$f":"IF(INDIRECT(\"c\" & (VLOOKUP(Rebalance!$D$32,$F$2:$G$48,2,FALSE)+ROW()-2))=Rebalance!$D$32,INDIRECT(\"a\" & (VLOOKUP(Rebalance!$D$32,$F$2:$G$48,2,FALSE)+ROW()-2)),\"\")","v":{"$error":"#N/A"}},{"$f":"IF(INDIRECT(\"c\" & (VLOOKUP(Rebalance!$D$33,$F$2:$G$48,2,FALSE)+ROW()-2))=Rebalance!$D$33,INDIRECT(\"a\" & (VLOOKUP(Rebalance!$D$33,$F$2:$G$48,2,FALSE)+ROW()-2)),\"\")","v":{"$error":"#N/A"}},{"$f":"IF(INDIRECT(\"c\" & (VLOOKUP(Rebalance!$D$34,$F$2:$G$48,2,FALSE)+ROW()-2))=Rebalance!$D$34,INDIRECT(\"a\" & (VLOOKUP(Rebalance!$D$34,$F$2:$G$48,2,FALSE)+ROW()-2)),\"\")","v":{"$error":"#N/A"}},{"$f":"IF(INDIRECT(\"c\" & (VLOOKUP(Rebalance!$D$35,$F$2:$G$48,2,FALSE)+ROW()-2))=Rebalance!$D$35,INDIRECT(\"a\" & (VLOOKUP(Rebalance!$D$35,$F$2:$G$48,2,FALSE)+ROW()-2)),\"\")","v":{"$error":"#N/A"}},{"$f":"IF(INDIRECT(\"c\" & (VLOOKUP(Rebalance!$D$36,$F$2:$G$48,2,FALSE)+ROW()-2))=Rebalance!$D$36,INDIRECT(\"a\" & (VLOOKUP(Rebalance!$D$36,$F$2:$G$48,2,FALSE)+ROW()-2)),\"\")","v":{"$error":"#N/A"}},{"$f":"IF(INDIRECT(\"c\" & (VLOOKUP(Rebalance!$D$37,$F$2:$G$48,2,FALSE)+ROW()-2))=Rebalance!$D$37,INDIRECT(\"a\" & (VLOOKUP(Rebalance!$D$37,$F$2:$G$48,2,FALSE)+ROW()-2)),\"\")","v":{"$error":"#N/A"}},{"$f":"IF(INDIRECT(\"c\" & (VLOOKUP(Rebalance!$D$38,$F$2:$G$48,2,FALSE)+ROW()-2))=Rebalance!$D$38,INDIRECT(\"a\" & (VLOOKUP(Rebalance!$D$38,$F$2:$G$48,2,FALSE)+ROW()-2)),\"\")","v":{"$error":"#N/A"}},{"$f":"IF(INDIRECT(\"c\" & (VLOOKUP(Rebalance!$D$39,$F$2:$G$48,2,FALSE)+ROW()-2))=Rebalance!$D$39,INDIRECT(\"a\" & (VLOOKUP(Rebalance!$D$39,$F$2:$G$48,2,FALSE)+ROW()-2)),\"\")","v":{"$error":"#N/A"}},{"$f":"IF(INDIRECT(\"c\" & (VLOOKUP(Rebalance!$D$40,$F$2:$G$48,2,FALSE)+ROW()-2))=Rebalance!$D$40,INDIRECT(\"a\" & (VLOOKUP(Rebalance!$D$40,$F$2:$G$48,2,FALSE)+ROW()-2)),\"\")","v":{"$error":"#N/A"}},{"$f":"IF(INDIRECT(\"c\" & (VLOOKUP(Rebalance!$D$52,$F$2:$G$48,2,FALSE)+ROW()-2))=Rebalance!$D$52,INDIRECT(\"a\" & (VLOOKUP(Rebalance!$D$52,$F$2:$G$48,2,FALSE)+ROW()-2)),\"\")","v":{"$error":"#N/A"}},{"$f":"IF(INDIRECT(\"c\" & (VLOOKUP(Rebalance!$D$53,$F$2:$G$48,2,FALSE)+ROW()-2))=Rebalance!$D$53,INDIRECT(\"a\" & (VLOOKUP(Rebalance!$D$53,$F$2:$G$48,2,FALSE)+ROW()-2)),\"\")","v":{"$error":"#N/A"}},{"$f":"IF(INDIRECT(\"c\" & (VLOOKUP(Rebalance!$D$54,$F$2:$G$48,2,FALSE)+ROW()-2))=Rebalance!$D$54,INDIRECT(\"a\" & (VLOOKUP(Rebalance!$D$54,$F$2:$G$48,2,FALSE)+ROW()-2)),\"\")","v":{"$error":"#N/A"}},{"$f":"IF(INDIRECT(\"c\" & (VLOOKUP(Rebalance!$D$55,$F$2:$G$48,2,FALSE)+ROW()-2))=Rebalance!$D$55,INDIRECT(\"a\" & (VLOOKUP(Rebalance!$D$55,$F$2:$G$48,2,FALSE)+ROW()-2)),\"\")","v":{"$error":"#N/A"}},{"$f":"IF(INDIRECT(\"c\" & (VLOOKUP(Rebalance!$D$56,$F$2:$G$48,2,FALSE)+ROW()-2))=Rebalance!$D$56,INDIRECT(\"a\" & (VLOOKUP(Rebalance!$D$56,$F$2:$G$48,2,FALSE)+ROW()-2)),\"\")","v":{"$error":"#N/A"}},{"$f":"IF(INDIRECT(\"c\" & (VLOOKUP(Rebalance!$D$57,$F$2:$G$48,2,FALSE)+ROW()-2))=Rebalance!$D$57,INDIRECT(\"a\" & (VLOOKUP(Rebalance!$D$57,$F$2:$G$48,2,FALSE)+ROW()-2)),\"\")","v":{"$error":"#N/A"}},{"$f":"IF(INDIRECT(\"c\" & (VLOOKUP(Rebalance!$D$58,$F$2:$G$48,2,FALSE)+ROW()-2))=Rebalance!$D$58,INDIRECT(\"a\" & (VLOOKUP(Rebalance!$D$58,$F$2:$G$48,2,FALSE)+ROW()-2)),\"\")","v":{"$error":"#N/A"}},{"$f":"IF(INDIRECT(\"c\" & (VLOOKUP(Rebalance!$D$59,$F$2:$G$48,2,FALSE)+ROW()-2))=Rebalance!$D$59,INDIRECT(\"a\" & (VLOOKUP(Rebalance!$D$59,$F$2:$G$48,2,FALSE)+ROW()-2)),\"\")","v":{"$error":"#N/A"}},{"$f":"IF(INDIRECT(\"c\" & (VLOOKUP(Rebalance!$D$60,$F$2:$G$48,2,FALSE)+ROW()-2))=Rebalance!$D$60,INDIRECT(\"a\" & (VLOOKUP(Rebalance!$D$60,$F$2:$G$48,2,FALSE)+ROW()-2)),\"\")","v":{"$error":"#N/A"}},{"$f":"IF(INDIRECT(\"c\" & (VLOOKUP(Rebalance!$D$61,$F$2:$G$48,2,FALSE)+ROW()-2))=Rebalance!$D$61,INDIRECT(\"a\" & (VLOOKUP(Rebalance!$D$61,$F$2:$G$48,2,FALSE)+ROW()-2)),\"\")","v":{"$error":"#N/A"}},{"$f":"IF(INDIRECT(\"c\" & (VLOOKUP(Rebalance!$D$62,$F$2:$G$48,2,FALSE)+ROW()-2))=Rebalance!$D$62,INDIRECT(\"a\" & (VLOOKUP(Rebalance!$D$62,$F$2:$G$48,2,FALSE)+ROW()-2)),\"\")","v":{"$error":"#N/A"}},{"$f":"IF(INDIRECT(\"c\" & (VLOOKUP(Rebalance!$D$63,$F$2:$G$48,2,FALSE)+ROW()-2))=Rebalance!$D$63,INDIRECT(\"a\" & (VLOOKUP(Rebalance!$D$63,$F$2:$G$48,2,FALSE)+ROW()-2)),\"\")","v":{"$error":"#N/A"}},{"$f":"IF(INDIRECT(\"c\" & (VLOOKUP(Rebalance!$D$64,$F$2:$G$48,2,FALSE)+ROW()-2))=Rebalance!$D$64,INDIRECT(\"a\" & (VLOOKUP(Rebalance!$D$64,$F$2:$G$48,2,FALSE)+ROW()-2)),\"\")","v":{"$error":"#N/A"}},{"$f":"IF(INDIRECT(\"c\" & (VLOOKUP(Rebalance!$D$65,$F$2:$G$48,2,FALSE)+ROW()-2))=Rebalance!$D$65,INDIRECT(\"a\" & (VLOOKUP(Rebalance!$D$65,$F$2:$G$48,2,FALSE)+ROW()-2)),\"\")","v":{"$error":"#N/A"}},{"$f":"IF(INDIRECT(\"c\" & (VLOOKUP(Rebalance!$D$66,$F$2:$G$48,2,FALSE)+ROW()-2))=Rebalance!$D$66,INDIRECT(\"a\" & (VLOOKUP(Rebalance!$D$66,$F$2:$G$48,2,FALSE)+ROW()-2)),\"\")","v":{"$error":"#N/A"}}]
["Gryphon Prudential Fund of Funds B","GRYFF","Gryphon Collective Investments (RF) (Pty) Ltd",{"$f":"ROW()","v":257},null,null,{"$f":"VLOOKUP(F257,$C$2:$D$599,2,FALSE)","v":{"$error":"#N/A"}},{"$f":"IF(INDIRECT(\"c\" & (VLOOKUP(Rebalance!$D$26,$F$2:$G$48,2,FALSE)+ROW()-2))=Rebalance!$D$26,INDIRECT(\"a\" & (VLOOKUP(Rebalance!$D$26,$F$2:$G$48,2,FALSE)+ROW()-2)),\"\")","v":{"$error":"#N/A"}},{"$f":"IF(INDIRECT(\"c\" & (VLOOKUP(Rebalance!$D$27,$F$2:$G$48,2,FALSE)+ROW()-2))=Rebalance!$D$27,INDIRECT(\"a\" & (VLOOKUP(Rebalance!$D$27,$F$2:$G$48,2,FALSE)+ROW()-2)),\"\")","v":{"$error":"#N/A"}},{"$f":"IF(INDIRECT(\"c\" & (VLOOKUP(Rebalance!$D$28,$F$2:$G$48,2,FALSE)+ROW()-2))=Rebalance!$D$28,INDIRECT(\"a\" & (VLOOKUP(Rebalance!$D$28,$F$2:$G$48,2,FALSE)+ROW()-2)),\"\")","v":{"$error":"#N/A"}},{"$f":"IF(INDIRECT(\"c\" & (VLOOKUP(Rebalance!$D$29,$F$2:$G$48,2,FALSE)+ROW()-2))=Rebalance!$D$29,INDIRECT(\"a\" & (VLOOKUP(Rebalance!$D$29,$F$2:$G$48,2,FALSE)+ROW()-2)),\"\")","v":{"$error":"#N/A"}},{"$f":"IF(INDIRECT(\"c\" & (VLOOKUP(Rebalance!$D$30,$F$2:$G$48,2,FALSE)+ROW()-2))=Rebalance!$D$30,INDIRECT(\"a\" & (VLOOKUP(Rebalance!$D$30,$F$2:$G$48,2,FALSE)+ROW()-2)),\"\")","v":{"$error":"#N/A"}},{"$f":"IF(INDIRECT(\"c\" & (VLOOKUP(Rebalance!$D$31,$F$2:$G$48,2,FALSE)+ROW()-2))=Rebalance!$D$31,INDIRECT(\"a\" & (VLOOKUP(Rebalance!$D$31,$F$2:$G$48,2,FALSE)+ROW()-2)),\"\")","v":{"$error":"#N/A"}},{"$f":"IF(INDIRECT(\"c\" & (VLOOKUP(Rebalance!$D$32,$F$2:$G$48,2,FALSE)+ROW()-2))=Rebalance!$D$32,INDIRECT(\"a\" & (VLOOKUP(Rebalance!$D$32,$F$2:$G$48,2,FALSE)+ROW()-2)),\"\")","v":{"$error":"#N/A"}},{"$f":"IF(INDIRECT(\"c\" & (VLOOKUP(Rebalance!$D$33,$F$2:$G$48,2,FALSE)+ROW()-2))=Rebalance!$D$33,INDIRECT(\"a\" & (VLOOKUP(Rebalance!$D$33,$F$2:$G$48,2,FALSE)+ROW()-2)),\"\")","v":{"$error":"#N/A"}},{"$f":"IF(INDIRECT(\"c\" & (VLOOKUP(Rebalance!$D$34,$F$2:$G$48,2,FALSE)+ROW()-2))=Rebalance!$D$34,INDIRECT(\"a\" & (VLOOKUP(Rebalance!$D$34,$F$2:$G$48,2,FALSE)+ROW()-2)),\"\")","v":{"$error":"#N/A"}},{"$f":"IF(INDIRECT(\"c\" & (VLOOKUP(Rebalance!$D$35,$F$2:$G$48,2,FALSE)+ROW()-2))=Rebalance!$D$35,INDIRECT(\"a\" & (VLOOKUP(Rebalance!$D$35,$F$2:$G$48,2,FALSE)+ROW()-2)),\"\")","v":{"$error":"#N/A"}},{"$f":"IF(INDIRECT(\"c\" & (VLOOKUP(Rebalance!$D$36,$F$2:$G$48,2,FALSE)+ROW()-2))=Rebalance!$D$36,INDIRECT(\"a\" & (VLOOKUP(Rebalance!$D$36,$F$2:$G$48,2,FALSE)+ROW()-2)),\"\")","v":{"$error":"#N/A"}},{"$f":"IF(INDIRECT(\"c\" & (VLOOKUP(Rebalance!$D$37,$F$2:$G$48,2,FALSE)+ROW()-2))=Rebalance!$D$37,INDIRECT(\"a\" & (VLOOKUP(Rebalance!$D$37,$F$2:$G$48,2,FALSE)+ROW()-2)),\"\")","v":{"$error":"#N/A"}},{"$f":"IF(INDIRECT(\"c\" & (VLOOKUP(Rebalance!$D$38,$F$2:$G$48,2,FALSE)+ROW()-2))=Rebalance!$D$38,INDIRECT(\"a\" & (VLOOKUP(Rebalance!$D$38,$F$2:$G$48,2,FALSE)+ROW()-2)),\"\")","v":{"$error":"#N/A"}},{"$f":"IF(INDIRECT(\"c\" & (VLOOKUP(Rebalance!$D$39,$F$2:$G$48,2,FALSE)+ROW()-2))=Rebalance!$D$39,INDIRECT(\"a\" & (VLOOKUP(Rebalance!$D$39,$F$2:$G$48,2,FALSE)+ROW()-2)),\"\")","v":{"$error":"#N/A"}},{"$f":"IF(INDIRECT(\"c\" & (VLOOKUP(Rebalance!$D$40,$F$2:$G$48,2,FALSE)+ROW()-2))=Rebalance!$D$40,INDIRECT(\"a\" & (VLOOKUP(Rebalance!$D$40,$F$2:$G$48,2,FALSE)+ROW()-2)),\"\")","v":{"$error":"#N/A"}},{"$f":"IF(INDIRECT(\"c\" & (VLOOKUP(Rebalance!$D$52,$F$2:$G$48,2,FALSE)+ROW()-2))=Rebalance!$D$52,INDIRECT(\"a\" & (VLOOKUP(Rebalance!$D$52,$F$2:$G$48,2,FALSE)+ROW()-2)),\"\")","v":{"$error":"#N/A"}},{"$f":"IF(INDIRECT(\"c\" & (VLOOKUP(Rebalance!$D$53,$F$2:$G$48,2,FALSE)+ROW()-2))=Rebalance!$D$53,INDIRECT(\"a\" & (VLOOKUP(Rebalance!$D$53,$F$2:$G$48,2,FALSE)+ROW()-2)),\"\")","v":{"$error":"#N/A"}},{"$f":"IF(INDIRECT(\"c\" & (VLOOKUP(Rebalance!$D$54,$F$2:$G$48,2,FALSE)+ROW()-2))=Rebalance!$D$54,INDIRECT(\"a\" & (VLOOKUP(Rebalance!$D$54,$F$2:$G$48,2,FALSE)+ROW()-2)),\"\")","v":{"$error":"#N/A"}},{"$f":"IF(INDIRECT(\"c\" & (VLOOKUP(Rebalance!$D$55,$F$2:$G$48,2,FALSE)+ROW()-2))=Rebalance!$D$55,INDIRECT(\"a\" & (VLOOKUP(Rebalance!$D$55,$F$2:$G$48,2,FALSE)+ROW()-2)),\"\")","v":{"$error":"#N/A"}},{"$f":"IF(INDIRECT(\"c\" & (VLOOKUP(Rebalance!$D$56,$F$2:$G$48,2,FALSE)+ROW()-2))=Rebalance!$D$56,INDIRECT(\"a\" & (VLOOKUP(Rebalance!$D$56,$F$2:$G$48,2,FALSE)+ROW()-2)),\"\")","v":{"$error":"#N/A"}},{"$f":"IF(INDIRECT(\"c\" & (VLOOKUP(Rebalance!$D$57,$F$2:$G$48,2,FALSE)+ROW()-2))=Rebalance!$D$57,INDIRECT(\"a\" & (VLOOKUP(Rebalance!$D$57,$F$2:$G$48,2,FALSE)+ROW()-2)),\"\")","v":{"$error":"#N/A"}},{"$f":"IF(INDIRECT(\"c\" & (VLOOKUP(Rebalance!$D$58,$F$2:$G$48,2,FALSE)+ROW()-2))=Rebalance!$D$58,INDIRECT(\"a\" & (VLOOKUP(Rebalance!$D$58,$F$2:$G$48,2,FALSE)+ROW()-2)),\"\")","v":{"$error":"#N/A"}},{"$f":"IF(INDIRECT(\"c\" & (VLOOKUP(Rebalance!$D$59,$F$2:$G$48,2,FALSE)+ROW()-2))=Rebalance!$D$59,INDIRECT(\"a\" & (VLOOKUP(Rebalance!$D$59,$F$2:$G$48,2,FALSE)+ROW()-2)),\"\")","v":{"$error":"#N/A"}},{"$f":"IF(INDIRECT(\"c\" & (VLOOKUP(Rebalance!$D$60,$F$2:$G$48,2,FALSE)+ROW()-2))=Rebalance!$D$60,INDIRECT(\"a\" & (VLOOKUP(Rebalance!$D$60,$F$2:$G$48,2,FALSE)+ROW()-2)),\"\")","v":{"$error":"#N/A"}},{"$f":"IF(INDIRECT(\"c\" & (VLOOKUP(Rebalance!$D$61,$F$2:$G$48,2,FALSE)+ROW()-2))=Rebalance!$D$61,INDIRECT(\"a\" & (VLOOKUP(Rebalance!$D$61,$F$2:$G$48,2,FALSE)+ROW()-2)),\"\")","v":{"$error":"#N/A"}},{"$f":"IF(INDIRECT(\"c\" & (VLOOKUP(Rebalance!$D$62,$F$2:$G$48,2,FALSE)+ROW()-2))=Rebalance!$D$62,INDIRECT(\"a\" & (VLOOKUP(Rebalance!$D$62,$F$2:$G$48,2,FALSE)+ROW()-2)),\"\")","v":{"$error":"#N/A"}},{"$f":"IF(INDIRECT(\"c\" & (VLOOKUP(Rebalance!$D$63,$F$2:$G$48,2,FALSE)+ROW()-2))=Rebalance!$D$63,INDIRECT(\"a\" & (VLOOKUP(Rebalance!$D$63,$F$2:$G$48,2,FALSE)+ROW()-2)),\"\")","v":{"$error":"#N/A"}},{"$f":"IF(INDIRECT(\"c\" & (VLOOKUP(Rebalance!$D$64,$F$2:$G$48,2,FALSE)+ROW()-2))=Rebalance!$D$64,INDIRECT(\"a\" & (VLOOKUP(Rebalance!$D$64,$F$2:$G$48,2,FALSE)+ROW()-2)),\"\")","v":{"$error":"#N/A"}},{"$f":"IF(INDIRECT(\"c\" & (VLOOKUP(Rebalance!$D$65,$F$2:$G$48,2,FALSE)+ROW()-2))=Rebalance!$D$65,INDIRECT(\"a\" & (VLOOKUP(Rebalance!$D$65,$F$2:$G$48,2,FALSE)+ROW()-2)),\"\")","v":{"$error":"#N/A"}},{"$f":"IF(INDIRECT(\"c\" & (VLOOKUP(Rebalance!$D$66,$F$2:$G$48,2,FALSE)+ROW()-2))=Rebalance!$D$66,INDIRECT(\"a\" & (VLOOKUP(Rebalance!$D$66,$F$2:$G$48,2,FALSE)+ROW()-2)),\"\")","v":{"$error":"#N/A"}}]
["Investec Absolute Balanced Fund H","ABFH","Investec Fund Managers",{"$f":"ROW()","v":258},null,null,{"$f":"VLOOKUP(F258,$C$2:$D$599,2,FALSE)","v":{"$error":"#N/A"}},{"$f":"IF(INDIRECT(\"c\" & (VLOOKUP(Rebalance!$D$26,$F$2:$G$48,2,FALSE)+ROW()-2))=Rebalance!$D$26,INDIRECT(\"a\" & (VLOOKUP(Rebalance!$D$26,$F$2:$G$48,2,FALSE)+ROW()-2)),\"\")","v":{"$error":"#N/A"}},{"$f":"IF(INDIRECT(\"c\" & (VLOOKUP(Rebalance!$D$27,$F$2:$G$48,2,FALSE)+ROW()-2))=Rebalance!$D$27,INDIRECT(\"a\" & (VLOOKUP(Rebalance!$D$27,$F$2:$G$48,2,FALSE)+ROW()-2)),\"\")","v":{"$error":"#N/A"}},{"$f":"IF(INDIRECT(\"c\" & (VLOOKUP(Rebalance!$D$28,$F$2:$G$48,2,FALSE)+ROW()-2))=Rebalance!$D$28,INDIRECT(\"a\" & (VLOOKUP(Rebalance!$D$28,$F$2:$G$48,2,FALSE)+ROW()-2)),\"\")","v":{"$error":"#N/A"}},{"$f":"IF(INDIRECT(\"c\" & (VLOOKUP(Rebalance!$D$29,$F$2:$G$48,2,FALSE)+ROW()-2))=Rebalance!$D$29,INDIRECT(\"a\" & (VLOOKUP(Rebalance!$D$29,$F$2:$G$48,2,FALSE)+ROW()-2)),\"\")","v":{"$error":"#N/A"}},{"$f":"IF(INDIRECT(\"c\" & (VLOOKUP(Rebalance!$D$30,$F$2:$G$48,2,FALSE)+ROW()-2))=Rebalance!$D$30,INDIRECT(\"a\" & (VLOOKUP(Rebalance!$D$30,$F$2:$G$48,2,FALSE)+ROW()-2)),\"\")","v":{"$error":"#N/A"}},{"$f":"IF(INDIRECT(\"c\" & (VLOOKUP(Rebalance!$D$31,$F$2:$G$48,2,FALSE)+ROW()-2))=Rebalance!$D$31,INDIRECT(\"a\" & (VLOOKUP(Rebalance!$D$31,$F$2:$G$48,2,FALSE)+ROW()-2)),\"\")","v":{"$error":"#N/A"}},{"$f":"IF(INDIRECT(\"c\" & (VLOOKUP(Rebalance!$D$32,$F$2:$G$48,2,FALSE)+ROW()-2))=Rebalance!$D$32,INDIRECT(\"a\" & (VLOOKUP(Rebalance!$D$32,$F$2:$G$48,2,FALSE)+ROW()-2)),\"\")","v":{"$error":"#N/A"}},{"$f":"IF(INDIRECT(\"c\" & (VLOOKUP(Rebalance!$D$33,$F$2:$G$48,2,FALSE)+ROW()-2))=Rebalance!$D$33,INDIRECT(\"a\" & (VLOOKUP(Rebalance!$D$33,$F$2:$G$48,2,FALSE)+ROW()-2)),\"\")","v":{"$error":"#N/A"}},{"$f":"IF(INDIRECT(\"c\" & (VLOOKUP(Rebalance!$D$34,$F$2:$G$48,2,FALSE)+ROW()-2))=Rebalance!$D$34,INDIRECT(\"a\" & (VLOOKUP(Rebalance!$D$34,$F$2:$G$48,2,FALSE)+ROW()-2)),\"\")","v":{"$error":"#N/A"}},{"$f":"IF(INDIRECT(\"c\" & (VLOOKUP(Rebalance!$D$35,$F$2:$G$48,2,FALSE)+ROW()-2))=Rebalance!$D$35,INDIRECT(\"a\" & (VLOOKUP(Rebalance!$D$35,$F$2:$G$48,2,FALSE)+ROW()-2)),\"\")","v":{"$error":"#N/A"}},{"$f":"IF(INDIRECT(\"c\" & (VLOOKUP(Rebalance!$D$36,$F$2:$G$48,2,FALSE)+ROW()-2))=Rebalance!$D$36,INDIRECT(\"a\" & (VLOOKUP(Rebalance!$D$36,$F$2:$G$48,2,FALSE)+ROW()-2)),\"\")","v":{"$error":"#N/A"}},{"$f":"IF(INDIRECT(\"c\" & (VLOOKUP(Rebalance!$D$37,$F$2:$G$48,2,FALSE)+ROW()-2))=Rebalance!$D$37,INDIRECT(\"a\" & (VLOOKUP(Rebalance!$D$37,$F$2:$G$48,2,FALSE)+ROW()-2)),\"\")","v":{"$error":"#N/A"}},{"$f":"IF(INDIRECT(\"c\" & (VLOOKUP(Rebalance!$D$38,$F$2:$G$48,2,FALSE)+ROW()-2))=Rebalance!$D$38,INDIRECT(\"a\" & (VLOOKUP(Rebalance!$D$38,$F$2:$G$48,2,FALSE)+ROW()-2)),\"\")","v":{"$error":"#N/A"}},{"$f":"IF(INDIRECT(\"c\" & (VLOOKUP(Rebalance!$D$39,$F$2:$G$48,2,FALSE)+ROW()-2))=Rebalance!$D$39,INDIRECT(\"a\" & (VLOOKUP(Rebalance!$D$39,$F$2:$G$48,2,FALSE)+ROW()-2)),\"\")","v":{"$error":"#N/A"}},{"$f":"IF(INDIRECT(\"c\" & (VLOOKUP(Rebalance!$D$40,$F$2:$G$48,2,FALSE)+ROW()-2))=Rebalance!$D$40,INDIRECT(\"a\" & (VLOOKUP(Rebalance!$D$40,$F$2:$G$48,2,FALSE)+ROW()-2)),\"\")","v":{"$error":"#N/A"}},{"$f":"IF(INDIRECT(\"c\" & (VLOOKUP(Rebalance!$D$52,$F$2:$G$48,2,FALSE)+ROW()-2))=Rebalance!$D$52,INDIRECT(\"a\" & (VLOOKUP(Rebalance!$D$52,$F$2:$G$48,2,FALSE)+ROW()-2)),\"\")","v":{"$error":"#N/A"}},{"$f":"IF(INDIRECT(\"c\" & (VLOOKUP(Rebalance!$D$53,$F$2:$G$48,2,FALSE)+ROW()-2))=Rebalance!$D$53,INDIRECT(\"a\" & (VLOOKUP(Rebalance!$D$53,$F$2:$G$48,2,FALSE)+ROW()-2)),\"\")","v":{"$error":"#N/A"}},{"$f":"IF(INDIRECT(\"c\" & (VLOOKUP(Rebalance!$D$54,$F$2:$G$48,2,FALSE)+ROW()-2))=Rebalance!$D$54,INDIRECT(\"a\" & (VLOOKUP(Rebalance!$D$54,$F$2:$G$48,2,FALSE)+ROW()-2)),\"\")","v":{"$error":"#N/A"}},{"$f":"IF(INDIRECT(\"c\" & (VLOOKUP(Rebalance!$D$55,$F$2:$G$48,2,FALSE)+ROW()-2))=Rebalance!$D$55,INDIRECT(\"a\" & (VLOOKUP(Rebalance!$D$55,$F$2:$G$48,2,FALSE)+ROW()-2)),\"\")","v":{"$error":"#N/A"}},{"$f":"IF(INDIRECT(\"c\" & (VLOOKUP(Rebalance!$D$56,$F$2:$G$48,2,FALSE)+ROW()-2))=Rebalance!$D$56,INDIRECT(\"a\" & (VLOOKUP(Rebalance!$D$56,$F$2:$G$48,2,FALSE)+ROW()-2)),\"\")","v":{"$error":"#N/A"}},{"$f":"IF(INDIRECT(\"c\" & (VLOOKUP(Rebalance!$D$57,$F$2:$G$48,2,FALSE)+ROW()-2))=Rebalance!$D$57,INDIRECT(\"a\" & (VLOOKUP(Rebalance!$D$57,$F$2:$G$48,2,FALSE)+ROW()-2)),\"\")","v":{"$error":"#N/A"}},{"$f":"IF(INDIRECT(\"c\" & (VLOOKUP(Rebalance!$D$58,$F$2:$G$48,2,FALSE)+ROW()-2))=Rebalance!$D$58,INDIRECT(\"a\" & (VLOOKUP(Rebalance!$D$58,$F$2:$G$48,2,FALSE)+ROW()-2)),\"\")","v":{"$error":"#N/A"}},{"$f":"IF(INDIRECT(\"c\" & (VLOOKUP(Rebalance!$D$59,$F$2:$G$48,2,FALSE)+ROW()-2))=Rebalance!$D$59,INDIRECT(\"a\" & (VLOOKUP(Rebalance!$D$59,$F$2:$G$48,2,FALSE)+ROW()-2)),\"\")","v":{"$error":"#N/A"}},{"$f":"IF(INDIRECT(\"c\" & (VLOOKUP(Rebalance!$D$60,$F$2:$G$48,2,FALSE)+ROW()-2))=Rebalance!$D$60,INDIRECT(\"a\" & (VLOOKUP(Rebalance!$D$60,$F$2:$G$48,2,FALSE)+ROW()-2)),\"\")","v":{"$error":"#N/A"}},{"$f":"IF(INDIRECT(\"c\" & (VLOOKUP(Rebalance!$D$61,$F$2:$G$48,2,FALSE)+ROW()-2))=Rebalance!$D$61,INDIRECT(\"a\" & (VLOOKUP(Rebalance!$D$61,$F$2:$G$48,2,FALSE)+ROW()-2)),\"\")","v":{"$error":"#N/A"}},{"$f":"IF(INDIRECT(\"c\" & (VLOOKUP(Rebalance!$D$62,$F$2:$G$48,2,FALSE)+ROW()-2))=Rebalance!$D$62,INDIRECT(\"a\" & (VLOOKUP(Rebalance!$D$62,$F$2:$G$48,2,FALSE)+ROW()-2)),\"\")","v":{"$error":"#N/A"}},{"$f":"IF(INDIRECT(\"c\" & (VLOOKUP(Rebalance!$D$63,$F$2:$G$48,2,FALSE)+ROW()-2))=Rebalance!$D$63,INDIRECT(\"a\" & (VLOOKUP(Rebalance!$D$63,$F$2:$G$48,2,FALSE)+ROW()-2)),\"\")","v":{"$error":"#N/A"}},{"$f":"IF(INDIRECT(\"c\" & (VLOOKUP(Rebalance!$D$64,$F$2:$G$48,2,FALSE)+ROW()-2))=Rebalance!$D$64,INDIRECT(\"a\" & (VLOOKUP(Rebalance!$D$64,$F$2:$G$48,2,FALSE)+ROW()-2)),\"\")","v":{"$error":"#N/A"}},{"$f":"IF(INDIRECT(\"c\" & (VLOOKUP(Rebalance!$D$65,$F$2:$G$48,2,FALSE)+ROW()-2))=Rebalance!$D$65,INDIRECT(\"a\" & (VLOOKUP(Rebalance!$D$65,$F$2:$G$48,2,FALSE)+ROW()-2)),\"\")","v":{"$error":"#N/A"}},{"$f":"IF(INDIRECT(\"c\" & (VLOOKUP(Rebalance!$D$66,$F$2:$G$48,2,FALSE)+ROW()-2))=Rebalance!$D$66,INDIRECT(\"a\" & (VLOOKUP(Rebalance!$D$66,$F$2:$G$48,2,FALSE)+ROW()-2)),\"\")","v":{"$error":"#N/A"}}]
["Investec Cautious Managed Fund H","CMFH","Investec Fund Managers",{"$f":"ROW()","v":259},null,null,{"$f":"VLOOKUP(F259,$C$2:$D$599,2,FALSE)","v":{"$error":"#N/A"}},{"$f":"IF(INDIRECT(\"c\" & (VLOOKUP(Rebalance!$D$26,$F$2:$G$48,2,FALSE)+ROW()-2))=Rebalance!$D$26,INDIRECT(\"a\" & (VLOOKUP(Rebalance!$D$26,$F$2:$G$48,2,FALSE)+ROW()-2)),\"\")","v":{"$error":"#N/A"}},{"$f":"IF(INDIRECT(\"c\" & (VLOOKUP(Rebalance!$D$27,$F$2:$G$48,2,FALSE)+ROW()-2))=Rebalance!$D$27,INDIRECT(\"a\" & (VLOOKUP(Rebalance!$D$27,$F$2:$G$48,2,FALSE)+ROW()-2)),\"\")","v":{"$error":"#N/A"}},{"$f":"IF(INDIRECT(\"c\" & (VLOOKUP(Rebalance!$D$28,$F$2:$G$48,2,FALSE)+ROW()-2))=Rebalance!$D$28,INDIRECT(\"a\" & (VLOOKUP(Rebalance!$D$28,$F$2:$G$48,2,FALSE)+ROW()-2)),\"\")","v":{"$error":"#N/A"}},{"$f":"IF(INDIRECT(\"c\" & (VLOOKUP(Rebalance!$D$29,$F$2:$G$48,2,FALSE)+ROW()-2))=Rebalance!$D$29,INDIRECT(\"a\" & (VLOOKUP(Rebalance!$D$29,$F$2:$G$48,2,FALSE)+ROW()-2)),\"\")","v":{"$error":"#N/A"}},{"$f":"IF(INDIRECT(\"c\" & (VLOOKUP(Rebalance!$D$30,$F$2:$G$48,2,FALSE)+ROW()-2))=Rebalance!$D$30,INDIRECT(\"a\" & (VLOOKUP(Rebalance!$D$30,$F$2:$G$48,2,FALSE)+ROW()-2)),\"\")","v":{"$error":"#N/A"}},{"$f":"IF(INDIRECT(\"c\" & (VLOOKUP(Rebalance!$D$31,$F$2:$G$48,2,FALSE)+ROW()-2))=Rebalance!$D$31,INDIRECT(\"a\" & (VLOOKUP(Rebalance!$D$31,$F$2:$G$48,2,FALSE)+ROW()-2)),\"\")","v":{"$error":"#N/A"}},{"$f":"IF(INDIRECT(\"c\" & (VLOOKUP(Rebalance!$D$32,$F$2:$G$48,2,FALSE)+ROW()-2))=Rebalance!$D$32,INDIRECT(\"a\" & (VLOOKUP(Rebalance!$D$32,$F$2:$G$48,2,FALSE)+ROW()-2)),\"\")","v":{"$error":"#N/A"}},{"$f":"IF(INDIRECT(\"c\" & (VLOOKUP(Rebalance!$D$33,$F$2:$G$48,2,FALSE)+ROW()-2))=Rebalance!$D$33,INDIRECT(\"a\" & (VLOOKUP(Rebalance!$D$33,$F$2:$G$48,2,FALSE)+ROW()-2)),\"\")","v":{"$error":"#N/A"}},{"$f":"IF(INDIRECT(\"c\" & (VLOOKUP(Rebalance!$D$34,$F$2:$G$48,2,FALSE)+ROW()-2))=Rebalance!$D$34,INDIRECT(\"a\" & (VLOOKUP(Rebalance!$D$34,$F$2:$G$48,2,FALSE)+ROW()-2)),\"\")","v":{"$error":"#N/A"}},{"$f":"IF(INDIRECT(\"c\" & (VLOOKUP(Rebalance!$D$35,$F$2:$G$48,2,FALSE)+ROW()-2))=Rebalance!$D$35,INDIRECT(\"a\" & (VLOOKUP(Rebalance!$D$35,$F$2:$G$48,2,FALSE)+ROW()-2)),\"\")","v":{"$error":"#N/A"}},{"$f":"IF(INDIRECT(\"c\" & (VLOOKUP(Rebalance!$D$36,$F$2:$G$48,2,FALSE)+ROW()-2))=Rebalance!$D$36,INDIRECT(\"a\" & (VLOOKUP(Rebalance!$D$36,$F$2:$G$48,2,FALSE)+ROW()-2)),\"\")","v":{"$error":"#N/A"}},{"$f":"IF(INDIRECT(\"c\" & (VLOOKUP(Rebalance!$D$37,$F$2:$G$48,2,FALSE)+ROW()-2))=Rebalance!$D$37,INDIRECT(\"a\" & (VLOOKUP(Rebalance!$D$37,$F$2:$G$48,2,FALSE)+ROW()-2)),\"\")","v":{"$error":"#N/A"}},{"$f":"IF(INDIRECT(\"c\" & (VLOOKUP(Rebalance!$D$38,$F$2:$G$48,2,FALSE)+ROW()-2))=Rebalance!$D$38,INDIRECT(\"a\" & (VLOOKUP(Rebalance!$D$38,$F$2:$G$48,2,FALSE)+ROW()-2)),\"\")","v":{"$error":"#N/A"}},{"$f":"IF(INDIRECT(\"c\" & (VLOOKUP(Rebalance!$D$39,$F$2:$G$48,2,FALSE)+ROW()-2))=Rebalance!$D$39,INDIRECT(\"a\" & (VLOOKUP(Rebalance!$D$39,$F$2:$G$48,2,FALSE)+ROW()-2)),\"\")","v":{"$error":"#N/A"}},{"$f":"IF(INDIRECT(\"c\" & (VLOOKUP(Rebalance!$D$40,$F$2:$G$48,2,FALSE)+ROW()-2))=Rebalance!$D$40,INDIRECT(\"a\" & (VLOOKUP(Rebalance!$D$40,$F$2:$G$48,2,FALSE)+ROW()-2)),\"\")","v":{"$error":"#N/A"}},{"$f":"IF(INDIRECT(\"c\" & (VLOOKUP(Rebalance!$D$52,$F$2:$G$48,2,FALSE)+ROW()-2))=Rebalance!$D$52,INDIRECT(\"a\" & (VLOOKUP(Rebalance!$D$52,$F$2:$G$48,2,FALSE)+ROW()-2)),\"\")","v":{"$error":"#N/A"}},{"$f":"IF(INDIRECT(\"c\" & (VLOOKUP(Rebalance!$D$53,$F$2:$G$48,2,FALSE)+ROW()-2))=Rebalance!$D$53,INDIRECT(\"a\" & (VLOOKUP(Rebalance!$D$53,$F$2:$G$48,2,FALSE)+ROW()-2)),\"\")","v":{"$error":"#N/A"}},{"$f":"IF(INDIRECT(\"c\" & (VLOOKUP(Rebalance!$D$54,$F$2:$G$48,2,FALSE)+ROW()-2))=Rebalance!$D$54,INDIRECT(\"a\" & (VLOOKUP(Rebalance!$D$54,$F$2:$G$48,2,FALSE)+ROW()-2)),\"\")","v":{"$error":"#N/A"}},{"$f":"IF(INDIRECT(\"c\" & (VLOOKUP(Rebalance!$D$55,$F$2:$G$48,2,FALSE)+ROW()-2))=Rebalance!$D$55,INDIRECT(\"a\" & (VLOOKUP(Rebalance!$D$55,$F$2:$G$48,2,FALSE)+ROW()-2)),\"\")","v":{"$error":"#N/A"}},{"$f":"IF(INDIRECT(\"c\" & (VLOOKUP(Rebalance!$D$56,$F$2:$G$48,2,FALSE)+ROW()-2))=Rebalance!$D$56,INDIRECT(\"a\" & (VLOOKUP(Rebalance!$D$56,$F$2:$G$48,2,FALSE)+ROW()-2)),\"\")","v":{"$error":"#N/A"}},{"$f":"IF(INDIRECT(\"c\" & (VLOOKUP(Rebalance!$D$57,$F$2:$G$48,2,FALSE)+ROW()-2))=Rebalance!$D$57,INDIRECT(\"a\" & (VLOOKUP(Rebalance!$D$57,$F$2:$G$48,2,FALSE)+ROW()-2)),\"\")","v":{"$error":"#N/A"}},{"$f":"IF(INDIRECT(\"c\" & (VLOOKUP(Rebalance!$D$58,$F$2:$G$48,2,FALSE)+ROW()-2))=Rebalance!$D$58,INDIRECT(\"a\" & (VLOOKUP(Rebalance!$D$58,$F$2:$G$48,2,FALSE)+ROW()-2)),\"\")","v":{"$error":"#N/A"}},{"$f":"IF(INDIRECT(\"c\" & (VLOOKUP(Rebalance!$D$59,$F$2:$G$48,2,FALSE)+ROW()-2))=Rebalance!$D$59,INDIRECT(\"a\" & (VLOOKUP(Rebalance!$D$59,$F$2:$G$48,2,FALSE)+ROW()-2)),\"\")","v":{"$error":"#N/A"}},{"$f":"IF(INDIRECT(\"c\" & (VLOOKUP(Rebalance!$D$60,$F$2:$G$48,2,FALSE)+ROW()-2))=Rebalance!$D$60,INDIRECT(\"a\" & (VLOOKUP(Rebalance!$D$60,$F$2:$G$48,2,FALSE)+ROW()-2)),\"\")","v":{"$error":"#N/A"}},{"$f":"IF(INDIRECT(\"c\" & (VLOOKUP(Rebalance!$D$61,$F$2:$G$48,2,FALSE)+ROW()-2))=Rebalance!$D$61,INDIRECT(\"a\" & (VLOOKUP(Rebalance!$D$61,$F$2:$G$48,2,FALSE)+ROW()-2)),\"\")","v":{"$error":"#N/A"}},{"$f":"IF(INDIRECT(\"c\" & (VLOOKUP(Rebalance!$D$62,$F$2:$G$48,2,FALSE)+ROW()-2))=Rebalance!$D$62,INDIRECT(\"a\" & (VLOOKUP(Rebalance!$D$62,$F$2:$G$48,2,FALSE)+ROW()-2)),\"\")","v":{"$error":"#N/A"}},{"$f":"IF(INDIRECT(\"c\" & (VLOOKUP(Rebalance!$D$63,$F$2:$G$48,2,FALSE)+ROW()-2))=Rebalance!$D$63,INDIRECT(\"a\" & (VLOOKUP(Rebalance!$D$63,$F$2:$G$48,2,FALSE)+ROW()-2)),\"\")","v":{"$error":"#N/A"}},{"$f":"IF(INDIRECT(\"c\" & (VLOOKUP(Rebalance!$D$64,$F$2:$G$48,2,FALSE)+ROW()-2))=Rebalance!$D$64,INDIRECT(\"a\" & (VLOOKUP(Rebalance!$D$64,$F$2:$G$48,2,FALSE)+ROW()-2)),\"\")","v":{"$error":"#N/A"}},{"$f":"IF(INDIRECT(\"c\" & (VLOOKUP(Rebalance!$D$65,$F$2:$G$48,2,FALSE)+ROW()-2))=Rebalance!$D$65,INDIRECT(\"a\" & (VLOOKUP(Rebalance!$D$65,$F$2:$G$48,2,FALSE)+ROW()-2)),\"\")","v":{"$error":"#N/A"}},{"$f":"IF(INDIRECT(\"c\" & (VLOOKUP(Rebalance!$D$66,$F$2:$G$48,2,FALSE)+ROW()-2))=Rebalance!$D$66,INDIRECT(\"a\" & (VLOOKUP(Rebalance!$D$66,$F$2:$G$48,2,FALSE)+ROW()-2)),\"\")","v":{"$error":"#N/A"}}]
["Investec Commodity Fund H","COMH","Investec Fund Managers",{"$f":"ROW()","v":260},null,null,{"$f":"VLOOKUP(F260,$C$2:$D$599,2,FALSE)","v":{"$error":"#N/A"}},{"$f":"IF(INDIRECT(\"c\" & (VLOOKUP(Rebalance!$D$26,$F$2:$G$48,2,FALSE)+ROW()-2))=Rebalance!$D$26,INDIRECT(\"a\" & (VLOOKUP(Rebalance!$D$26,$F$2:$G$48,2,FALSE)+ROW()-2)),\"\")","v":{"$error":"#N/A"}},{"$f":"IF(INDIRECT(\"c\" & (VLOOKUP(Rebalance!$D$27,$F$2:$G$48,2,FALSE)+ROW()-2))=Rebalance!$D$27,INDIRECT(\"a\" & (VLOOKUP(Rebalance!$D$27,$F$2:$G$48,2,FALSE)+ROW()-2)),\"\")","v":{"$error":"#N/A"}},{"$f":"IF(INDIRECT(\"c\" & (VLOOKUP(Rebalance!$D$28,$F$2:$G$48,2,FALSE)+ROW()-2))=Rebalance!$D$28,INDIRECT(\"a\" & (VLOOKUP(Rebalance!$D$28,$F$2:$G$48,2,FALSE)+ROW()-2)),\"\")","v":{"$error":"#N/A"}},{"$f":"IF(INDIRECT(\"c\" & (VLOOKUP(Rebalance!$D$29,$F$2:$G$48,2,FALSE)+ROW()-2))=Rebalance!$D$29,INDIRECT(\"a\" & (VLOOKUP(Rebalance!$D$29,$F$2:$G$48,2,FALSE)+ROW()-2)),\"\")","v":{"$error":"#N/A"}},{"$f":"IF(INDIRECT(\"c\" & (VLOOKUP(Rebalance!$D$30,$F$2:$G$48,2,FALSE)+ROW()-2))=Rebalance!$D$30,INDIRECT(\"a\" & (VLOOKUP(Rebalance!$D$30,$F$2:$G$48,2,FALSE)+ROW()-2)),\"\")","v":{"$error":"#N/A"}},{"$f":"IF(INDIRECT(\"c\" & (VLOOKUP(Rebalance!$D$31,$F$2:$G$48,2,FALSE)+ROW()-2))=Rebalance!$D$31,INDIRECT(\"a\" & (VLOOKUP(Rebalance!$D$31,$F$2:$G$48,2,FALSE)+ROW()-2)),\"\")","v":{"$error":"#N/A"}},{"$f":"IF(INDIRECT(\"c\" & (VLOOKUP(Rebalance!$D$32,$F$2:$G$48,2,FALSE)+ROW()-2))=Rebalance!$D$32,INDIRECT(\"a\" & (VLOOKUP(Rebalance!$D$32,$F$2:$G$48,2,FALSE)+ROW()-2)),\"\")","v":{"$error":"#N/A"}},{"$f":"IF(INDIRECT(\"c\" & (VLOOKUP(Rebalance!$D$33,$F$2:$G$48,2,FALSE)+ROW()-2))=Rebalance!$D$33,INDIRECT(\"a\" & (VLOOKUP(Rebalance!$D$33,$F$2:$G$48,2,FALSE)+ROW()-2)),\"\")","v":{"$error":"#N/A"}},{"$f":"IF(INDIRECT(\"c\" & (VLOOKUP(Rebalance!$D$34,$F$2:$G$48,2,FALSE)+ROW()-2))=Rebalance!$D$34,INDIRECT(\"a\" & (VLOOKUP(Rebalance!$D$34,$F$2:$G$48,2,FALSE)+ROW()-2)),\"\")","v":{"$error":"#N/A"}},{"$f":"IF(INDIRECT(\"c\" & (VLOOKUP(Rebalance!$D$35,$F$2:$G$48,2,FALSE)+ROW()-2))=Rebalance!$D$35,INDIRECT(\"a\" & (VLOOKUP(Rebalance!$D$35,$F$2:$G$48,2,FALSE)+ROW()-2)),\"\")","v":{"$error":"#N/A"}},{"$f":"IF(INDIRECT(\"c\" & (VLOOKUP(Rebalance!$D$36,$F$2:$G$48,2,FALSE)+ROW()-2))=Rebalance!$D$36,INDIRECT(\"a\" & (VLOOKUP(Rebalance!$D$36,$F$2:$G$48,2,FALSE)+ROW()-2)),\"\")","v":{"$error":"#N/A"}},{"$f":"IF(INDIRECT(\"c\" & (VLOOKUP(Rebalance!$D$37,$F$2:$G$48,2,FALSE)+ROW()-2))=Rebalance!$D$37,INDIRECT(\"a\" & (VLOOKUP(Rebalance!$D$37,$F$2:$G$48,2,FALSE)+ROW()-2)),\"\")","v":{"$error":"#N/A"}},{"$f":"IF(INDIRECT(\"c\" & (VLOOKUP(Rebalance!$D$38,$F$2:$G$48,2,FALSE)+ROW()-2))=Rebalance!$D$38,INDIRECT(\"a\" & (VLOOKUP(Rebalance!$D$38,$F$2:$G$48,2,FALSE)+ROW()-2)),\"\")","v":{"$error":"#N/A"}},{"$f":"IF(INDIRECT(\"c\" & (VLOOKUP(Rebalance!$D$39,$F$2:$G$48,2,FALSE)+ROW()-2))=Rebalance!$D$39,INDIRECT(\"a\" & (VLOOKUP(Rebalance!$D$39,$F$2:$G$48,2,FALSE)+ROW()-2)),\"\")","v":{"$error":"#N/A"}},{"$f":"IF(INDIRECT(\"c\" & (VLOOKUP(Rebalance!$D$40,$F$2:$G$48,2,FALSE)+ROW()-2))=Rebalance!$D$40,INDIRECT(\"a\" & (VLOOKUP(Rebalance!$D$40,$F$2:$G$48,2,FALSE)+ROW()-2)),\"\")","v":{"$error":"#N/A"}},{"$f":"IF(INDIRECT(\"c\" & (VLOOKUP(Rebalance!$D$52,$F$2:$G$48,2,FALSE)+ROW()-2))=Rebalance!$D$52,INDIRECT(\"a\" & (VLOOKUP(Rebalance!$D$52,$F$2:$G$48,2,FALSE)+ROW()-2)),\"\")","v":{"$error":"#N/A"}},{"$f":"IF(INDIRECT(\"c\" & (VLOOKUP(Rebalance!$D$53,$F$2:$G$48,2,FALSE)+ROW()-2))=Rebalance!$D$53,INDIRECT(\"a\" & (VLOOKUP(Rebalance!$D$53,$F$2:$G$48,2,FALSE)+ROW()-2)),\"\")","v":{"$error":"#N/A"}},{"$f":"IF(INDIRECT(\"c\" & (VLOOKUP(Rebalance!$D$54,$F$2:$G$48,2,FALSE)+ROW()-2))=Rebalance!$D$54,INDIRECT(\"a\" & (VLOOKUP(Rebalance!$D$54,$F$2:$G$48,2,FALSE)+ROW()-2)),\"\")","v":{"$error":"#N/A"}},{"$f":"IF(INDIRECT(\"c\" & (VLOOKUP(Rebalance!$D$55,$F$2:$G$48,2,FALSE)+ROW()-2))=Rebalance!$D$55,INDIRECT(\"a\" & (VLOOKUP(Rebalance!$D$55,$F$2:$G$48,2,FALSE)+ROW()-2)),\"\")","v":{"$error":"#N/A"}},{"$f":"IF(INDIRECT(\"c\" & (VLOOKUP(Rebalance!$D$56,$F$2:$G$48,2,FALSE)+ROW()-2))=Rebalance!$D$56,INDIRECT(\"a\" & (VLOOKUP(Rebalance!$D$56,$F$2:$G$48,2,FALSE)+ROW()-2)),\"\")","v":{"$error":"#N/A"}},{"$f":"IF(INDIRECT(\"c\" & (VLOOKUP(Rebalance!$D$57,$F$2:$G$48,2,FALSE)+ROW()-2))=Rebalance!$D$57,INDIRECT(\"a\" & (VLOOKUP(Rebalance!$D$57,$F$2:$G$48,2,FALSE)+ROW()-2)),\"\")","v":{"$error":"#N/A"}},{"$f":"IF(INDIRECT(\"c\" & (VLOOKUP(Rebalance!$D$58,$F$2:$G$48,2,FALSE)+ROW()-2))=Rebalance!$D$58,INDIRECT(\"a\" & (VLOOKUP(Rebalance!$D$58,$F$2:$G$48,2,FALSE)+ROW()-2)),\"\")","v":{"$error":"#N/A"}},{"$f":"IF(INDIRECT(\"c\" & (VLOOKUP(Rebalance!$D$59,$F$2:$G$48,2,FALSE)+ROW()-2))=Rebalance!$D$59,INDIRECT(\"a\" & (VLOOKUP(Rebalance!$D$59,$F$2:$G$48,2,FALSE)+ROW()-2)),\"\")","v":{"$error":"#N/A"}},{"$f":"IF(INDIRECT(\"c\" & (VLOOKUP(Rebalance!$D$60,$F$2:$G$48,2,FALSE)+ROW()-2))=Rebalance!$D$60,INDIRECT(\"a\" & (VLOOKUP(Rebalance!$D$60,$F$2:$G$48,2,FALSE)+ROW()-2)),\"\")","v":{"$error":"#N/A"}},{"$f":"IF(INDIRECT(\"c\" & (VLOOKUP(Rebalance!$D$61,$F$2:$G$48,2,FALSE)+ROW()-2))=Rebalance!$D$61,INDIRECT(\"a\" & (VLOOKUP(Rebalance!$D$61,$F$2:$G$48,2,FALSE)+ROW()-2)),\"\")","v":{"$error":"#N/A"}},{"$f":"IF(INDIRECT(\"c\" & (VLOOKUP(Rebalance!$D$62,$F$2:$G$48,2,FALSE)+ROW()-2))=Rebalance!$D$62,INDIRECT(\"a\" & (VLOOKUP(Rebalance!$D$62,$F$2:$G$48,2,FALSE)+ROW()-2)),\"\")","v":{"$error":"#N/A"}},{"$f":"IF(INDIRECT(\"c\" & (VLOOKUP(Rebalance!$D$63,$F$2:$G$48,2,FALSE)+ROW()-2))=Rebalance!$D$63,INDIRECT(\"a\" & (VLOOKUP(Rebalance!$D$63,$F$2:$G$48,2,FALSE)+ROW()-2)),\"\")","v":{"$error":"#N/A"}},{"$f":"IF(INDIRECT(\"c\" & (VLOOKUP(Rebalance!$D$64,$F$2:$G$48,2,FALSE)+ROW()-2))=Rebalance!$D$64,INDIRECT(\"a\" & (VLOOKUP(Rebalance!$D$64,$F$2:$G$48,2,FALSE)+ROW()-2)),\"\")","v":{"$error":"#N/A"}},{"$f":"IF(INDIRECT(\"c\" & (VLOOKUP(Rebalance!$D$65,$F$2:$G$48,2,FALSE)+ROW()-2))=Rebalance!$D$65,INDIRECT(\"a\" & (VLOOKUP(Rebalance!$D$65,$F$2:$G$48,2,FALSE)+ROW()-2)),\"\")","v":{"$error":"#N/A"}},{"$f":"IF(INDIRECT(\"c\" & (VLOOKUP(Rebalance!$D$66,$F$2:$G$48,2,FALSE)+ROW()-2))=Rebalance!$D$66,INDIRECT(\"a\" & (VLOOKUP(Rebalance!$D$66,$F$2:$G$48,2,FALSE)+ROW()-2)),\"\")","v":{"$error":"#N/A"}}]
["Investec Diversified Income Fund H","IDICH","Investec Fund Managers",{"$f":"ROW()","v":261},null,null,{"$f":"VLOOKUP(F261,$C$2:$D$599,2,FALSE)","v":{"$error":"#N/A"}},{"$f":"IF(INDIRECT(\"c\" & (VLOOKUP(Rebalance!$D$26,$F$2:$G$48,2,FALSE)+ROW()-2))=Rebalance!$D$26,INDIRECT(\"a\" & (VLOOKUP(Rebalance!$D$26,$F$2:$G$48,2,FALSE)+ROW()-2)),\"\")","v":{"$error":"#N/A"}},{"$f":"IF(INDIRECT(\"c\" & (VLOOKUP(Rebalance!$D$27,$F$2:$G$48,2,FALSE)+ROW()-2))=Rebalance!$D$27,INDIRECT(\"a\" & (VLOOKUP(Rebalance!$D$27,$F$2:$G$48,2,FALSE)+ROW()-2)),\"\")","v":{"$error":"#N/A"}},{"$f":"IF(INDIRECT(\"c\" & (VLOOKUP(Rebalance!$D$28,$F$2:$G$48,2,FALSE)+ROW()-2))=Rebalance!$D$28,INDIRECT(\"a\" & (VLOOKUP(Rebalance!$D$28,$F$2:$G$48,2,FALSE)+ROW()-2)),\"\")","v":{"$error":"#N/A"}},{"$f":"IF(INDIRECT(\"c\" & (VLOOKUP(Rebalance!$D$29,$F$2:$G$48,2,FALSE)+ROW()-2))=Rebalance!$D$29,INDIRECT(\"a\" & (VLOOKUP(Rebalance!$D$29,$F$2:$G$48,2,FALSE)+ROW()-2)),\"\")","v":{"$error":"#N/A"}},{"$f":"IF(INDIRECT(\"c\" & (VLOOKUP(Rebalance!$D$30,$F$2:$G$48,2,FALSE)+ROW()-2))=Rebalance!$D$30,INDIRECT(\"a\" & (VLOOKUP(Rebalance!$D$30,$F$2:$G$48,2,FALSE)+ROW()-2)),\"\")","v":{"$error":"#N/A"}},{"$f":"IF(INDIRECT(\"c\" & (VLOOKUP(Rebalance!$D$31,$F$2:$G$48,2,FALSE)+ROW()-2))=Rebalance!$D$31,INDIRECT(\"a\" & (VLOOKUP(Rebalance!$D$31,$F$2:$G$48,2,FALSE)+ROW()-2)),\"\")","v":{"$error":"#N/A"}},{"$f":"IF(INDIRECT(\"c\" & (VLOOKUP(Rebalance!$D$32,$F$2:$G$48,2,FALSE)+ROW()-2))=Rebalance!$D$32,INDIRECT(\"a\" & (VLOOKUP(Rebalance!$D$32,$F$2:$G$48,2,FALSE)+ROW()-2)),\"\")","v":{"$error":"#N/A"}},{"$f":"IF(INDIRECT(\"c\" & (VLOOKUP(Rebalance!$D$33,$F$2:$G$48,2,FALSE)+ROW()-2))=Rebalance!$D$33,INDIRECT(\"a\" & (VLOOKUP(Rebalance!$D$33,$F$2:$G$48,2,FALSE)+ROW()-2)),\"\")","v":{"$error":"#N/A"}},{"$f":"IF(INDIRECT(\"c\" & (VLOOKUP(Rebalance!$D$34,$F$2:$G$48,2,FALSE)+ROW()-2))=Rebalance!$D$34,INDIRECT(\"a\" & (VLOOKUP(Rebalance!$D$34,$F$2:$G$48,2,FALSE)+ROW()-2)),\"\")","v":{"$error":"#N/A"}},{"$f":"IF(INDIRECT(\"c\" & (VLOOKUP(Rebalance!$D$35,$F$2:$G$48,2,FALSE)+ROW()-2))=Rebalance!$D$35,INDIRECT(\"a\" & (VLOOKUP(Rebalance!$D$35,$F$2:$G$48,2,FALSE)+ROW()-2)),\"\")","v":{"$error":"#N/A"}},{"$f":"IF(INDIRECT(\"c\" & (VLOOKUP(Rebalance!$D$36,$F$2:$G$48,2,FALSE)+ROW()-2))=Rebalance!$D$36,INDIRECT(\"a\" & (VLOOKUP(Rebalance!$D$36,$F$2:$G$48,2,FALSE)+ROW()-2)),\"\")","v":{"$error":"#N/A"}},{"$f":"IF(INDIRECT(\"c\" & (VLOOKUP(Rebalance!$D$37,$F$2:$G$48,2,FALSE)+ROW()-2))=Rebalance!$D$37,INDIRECT(\"a\" & (VLOOKUP(Rebalance!$D$37,$F$2:$G$48,2,FALSE)+ROW()-2)),\"\")","v":{"$error":"#N/A"}},{"$f":"IF(INDIRECT(\"c\" & (VLOOKUP(Rebalance!$D$38,$F$2:$G$48,2,FALSE)+ROW()-2))=Rebalance!$D$38,INDIRECT(\"a\" & (VLOOKUP(Rebalance!$D$38,$F$2:$G$48,2,FALSE)+ROW()-2)),\"\")","v":{"$error":"#N/A"}},{"$f":"IF(INDIRECT(\"c\" & (VLOOKUP(Rebalance!$D$39,$F$2:$G$48,2,FALSE)+ROW()-2))=Rebalance!$D$39,INDIRECT(\"a\" & (VLOOKUP(Rebalance!$D$39,$F$2:$G$48,2,FALSE)+ROW()-2)),\"\")","v":{"$error":"#N/A"}},{"$f":"IF(INDIRECT(\"c\" & (VLOOKUP(Rebalance!$D$40,$F$2:$G$48,2,FALSE)+ROW()-2))=Rebalance!$D$40,INDIRECT(\"a\" & (VLOOKUP(Rebalance!$D$40,$F$2:$G$48,2,FALSE)+ROW()-2)),\"\")","v":{"$error":"#N/A"}},{"$f":"IF(INDIRECT(\"c\" & (VLOOKUP(Rebalance!$D$52,$F$2:$G$48,2,FALSE)+ROW()-2))=Rebalance!$D$52,INDIRECT(\"a\" & (VLOOKUP(Rebalance!$D$52,$F$2:$G$48,2,FALSE)+ROW()-2)),\"\")","v":{"$error":"#N/A"}},{"$f":"IF(INDIRECT(\"c\" & (VLOOKUP(Rebalance!$D$53,$F$2:$G$48,2,FALSE)+ROW()-2))=Rebalance!$D$53,INDIRECT(\"a\" & (VLOOKUP(Rebalance!$D$53,$F$2:$G$48,2,FALSE)+ROW()-2)),\"\")","v":{"$error":"#N/A"}},{"$f":"IF(INDIRECT(\"c\" & (VLOOKUP(Rebalance!$D$54,$F$2:$G$48,2,FALSE)+ROW()-2))=Rebalance!$D$54,INDIRECT(\"a\" & (VLOOKUP(Rebalance!$D$54,$F$2:$G$48,2,FALSE)+ROW()-2)),\"\")","v":{"$error":"#N/A"}},{"$f":"IF(INDIRECT(\"c\" & (VLOOKUP(Rebalance!$D$55,$F$2:$G$48,2,FALSE)+ROW()-2))=Rebalance!$D$55,INDIRECT(\"a\" & (VLOOKUP(Rebalance!$D$55,$F$2:$G$48,2,FALSE)+ROW()-2)),\"\")","v":{"$error":"#N/A"}},{"$f":"IF(INDIRECT(\"c\" & (VLOOKUP(Rebalance!$D$56,$F$2:$G$48,2,FALSE)+ROW()-2))=Rebalance!$D$56,INDIRECT(\"a\" & (VLOOKUP(Rebalance!$D$56,$F$2:$G$48,2,FALSE)+ROW()-2)),\"\")","v":{"$error":"#N/A"}},{"$f":"IF(INDIRECT(\"c\" & (VLOOKUP(Rebalance!$D$57,$F$2:$G$48,2,FALSE)+ROW()-2))=Rebalance!$D$57,INDIRECT(\"a\" & (VLOOKUP(Rebalance!$D$57,$F$2:$G$48,2,FALSE)+ROW()-2)),\"\")","v":{"$error":"#N/A"}},{"$f":"IF(INDIRECT(\"c\" & (VLOOKUP(Rebalance!$D$58,$F$2:$G$48,2,FALSE)+ROW()-2))=Rebalance!$D$58,INDIRECT(\"a\" & (VLOOKUP(Rebalance!$D$58,$F$2:$G$48,2,FALSE)+ROW()-2)),\"\")","v":{"$error":"#N/A"}},{"$f":"IF(INDIRECT(\"c\" & (VLOOKUP(Rebalance!$D$59,$F$2:$G$48,2,FALSE)+ROW()-2))=Rebalance!$D$59,INDIRECT(\"a\" & (VLOOKUP(Rebalance!$D$59,$F$2:$G$48,2,FALSE)+ROW()-2)),\"\")","v":{"$error":"#N/A"}},{"$f":"IF(INDIRECT(\"c\" & (VLOOKUP(Rebalance!$D$60,$F$2:$G$48,2,FALSE)+ROW()-2))=Rebalance!$D$60,INDIRECT(\"a\" & (VLOOKUP(Rebalance!$D$60,$F$2:$G$48,2,FALSE)+ROW()-2)),\"\")","v":{"$error":"#N/A"}},{"$f":"IF(INDIRECT(\"c\" & (VLOOKUP(Rebalance!$D$61,$F$2:$G$48,2,FALSE)+ROW()-2))=Rebalance!$D$61,INDIRECT(\"a\" & (VLOOKUP(Rebalance!$D$61,$F$2:$G$48,2,FALSE)+ROW()-2)),\"\")","v":{"$error":"#N/A"}},{"$f":"IF(INDIRECT(\"c\" & (VLOOKUP(Rebalance!$D$62,$F$2:$G$48,2,FALSE)+ROW()-2))=Rebalance!$D$62,INDIRECT(\"a\" & (VLOOKUP(Rebalance!$D$62,$F$2:$G$48,2,FALSE)+ROW()-2)),\"\")","v":{"$error":"#N/A"}},{"$f":"IF(INDIRECT(\"c\" & (VLOOKUP(Rebalance!$D$63,$F$2:$G$48,2,FALSE)+ROW()-2))=Rebalance!$D$63,INDIRECT(\"a\" & (VLOOKUP(Rebalance!$D$63,$F$2:$G$48,2,FALSE)+ROW()-2)),\"\")","v":{"$error":"#N/A"}},{"$f":"IF(INDIRECT(\"c\" & (VLOOKUP(Rebalance!$D$64,$F$2:$G$48,2,FALSE)+ROW()-2))=Rebalance!$D$64,INDIRECT(\"a\" & (VLOOKUP(Rebalance!$D$64,$F$2:$G$48,2,FALSE)+ROW()-2)),\"\")","v":{"$error":"#N/A"}},{"$f":"IF(INDIRECT(\"c\" & (VLOOKUP(Rebalance!$D$65,$F$2:$G$48,2,FALSE)+ROW()-2))=Rebalance!$D$65,INDIRECT(\"a\" & (VLOOKUP(Rebalance!$D$65,$F$2:$G$48,2,FALSE)+ROW()-2)),\"\")","v":{"$error":"#N/A"}},{"$f":"IF(INDIRECT(\"c\" & (VLOOKUP(Rebalance!$D$66,$F$2:$G$48,2,FALSE)+ROW()-2))=Rebalance!$D$66,INDIRECT(\"a\" & (VLOOKUP(Rebalance!$D$66,$F$2:$G$48,2,FALSE)+ROW()-2)),\"\")","v":{"$error":"#N/A"}}]
["Investec Diversified Income Fund Class H","IDICH","Investec Fund Managers",{"$f":"ROW()","v":262},null,null,{"$f":"VLOOKUP(F262,$C$2:$D$599,2,FALSE)","v":{"$error":"#N/A"}},{"$f":"IF(INDIRECT(\"c\" & (VLOOKUP(Rebalance!$D$26,$F$2:$G$48,2,FALSE)+ROW()-2))=Rebalance!$D$26,INDIRECT(\"a\" & (VLOOKUP(Rebalance!$D$26,$F$2:$G$48,2,FALSE)+ROW()-2)),\"\")","v":{"$error":"#N/A"}},{"$f":"IF(INDIRECT(\"c\" & (VLOOKUP(Rebalance!$D$27,$F$2:$G$48,2,FALSE)+ROW()-2))=Rebalance!$D$27,INDIRECT(\"a\" & (VLOOKUP(Rebalance!$D$27,$F$2:$G$48,2,FALSE)+ROW()-2)),\"\")","v":{"$error":"#N/A"}},{"$f":"IF(INDIRECT(\"c\" & (VLOOKUP(Rebalance!$D$28,$F$2:$G$48,2,FALSE)+ROW()-2))=Rebalance!$D$28,INDIRECT(\"a\" & (VLOOKUP(Rebalance!$D$28,$F$2:$G$48,2,FALSE)+ROW()-2)),\"\")","v":{"$error":"#N/A"}},{"$f":"IF(INDIRECT(\"c\" & (VLOOKUP(Rebalance!$D$29,$F$2:$G$48,2,FALSE)+ROW()-2))=Rebalance!$D$29,INDIRECT(\"a\" & (VLOOKUP(Rebalance!$D$29,$F$2:$G$48,2,FALSE)+ROW()-2)),\"\")","v":{"$error":"#N/A"}},{"$f":"IF(INDIRECT(\"c\" & (VLOOKUP(Rebalance!$D$30,$F$2:$G$48,2,FALSE)+ROW()-2))=Rebalance!$D$30,INDIRECT(\"a\" & (VLOOKUP(Rebalance!$D$30,$F$2:$G$48,2,FALSE)+ROW()-2)),\"\")","v":{"$error":"#N/A"}},{"$f":"IF(INDIRECT(\"c\" & (VLOOKUP(Rebalance!$D$31,$F$2:$G$48,2,FALSE)+ROW()-2))=Rebalance!$D$31,INDIRECT(\"a\" & (VLOOKUP(Rebalance!$D$31,$F$2:$G$48,2,FALSE)+ROW()-2)),\"\")","v":{"$error":"#N/A"}},{"$f":"IF(INDIRECT(\"c\" & (VLOOKUP(Rebalance!$D$32,$F$2:$G$48,2,FALSE)+ROW()-2))=Rebalance!$D$32,INDIRECT(\"a\" & (VLOOKUP(Rebalance!$D$32,$F$2:$G$48,2,FALSE)+ROW()-2)),\"\")","v":{"$error":"#N/A"}},{"$f":"IF(INDIRECT(\"c\" & (VLOOKUP(Rebalance!$D$33,$F$2:$G$48,2,FALSE)+ROW()-2))=Rebalance!$D$33,INDIRECT(\"a\" & (VLOOKUP(Rebalance!$D$33,$F$2:$G$48,2,FALSE)+ROW()-2)),\"\")","v":{"$error":"#N/A"}},{"$f":"IF(INDIRECT(\"c\" & (VLOOKUP(Rebalance!$D$34,$F$2:$G$48,2,FALSE)+ROW()-2))=Rebalance!$D$34,INDIRECT(\"a\" & (VLOOKUP(Rebalance!$D$34,$F$2:$G$48,2,FALSE)+ROW()-2)),\"\")","v":{"$error":"#N/A"}},{"$f":"IF(INDIRECT(\"c\" & (VLOOKUP(Rebalance!$D$35,$F$2:$G$48,2,FALSE)+ROW()-2))=Rebalance!$D$35,INDIRECT(\"a\" & (VLOOKUP(Rebalance!$D$35,$F$2:$G$48,2,FALSE)+ROW()-2)),\"\")","v":{"$error":"#N/A"}},{"$f":"IF(INDIRECT(\"c\" & (VLOOKUP(Rebalance!$D$36,$F$2:$G$48,2,FALSE)+ROW()-2))=Rebalance!$D$36,INDIRECT(\"a\" & (VLOOKUP(Rebalance!$D$36,$F$2:$G$48,2,FALSE)+ROW()-2)),\"\")","v":{"$error":"#N/A"}},{"$f":"IF(INDIRECT(\"c\" & (VLOOKUP(Rebalance!$D$37,$F$2:$G$48,2,FALSE)+ROW()-2))=Rebalance!$D$37,INDIRECT(\"a\" & (VLOOKUP(Rebalance!$D$37,$F$2:$G$48,2,FALSE)+ROW()-2)),\"\")","v":{"$error":"#N/A"}},{"$f":"IF(INDIRECT(\"c\" & (VLOOKUP(Rebalance!$D$38,$F$2:$G$48,2,FALSE)+ROW()-2))=Rebalance!$D$38,INDIRECT(\"a\" & (VLOOKUP(Rebalance!$D$38,$F$2:$G$48,2,FALSE)+ROW()-2)),\"\")","v":{"$error":"#N/A"}},{"$f":"IF(INDIRECT(\"c\" & (VLOOKUP(Rebalance!$D$39,$F$2:$G$48,2,FALSE)+ROW()-2))=Rebalance!$D$39,INDIRECT(\"a\" & (VLOOKUP(Rebalance!$D$39,$F$2:$G$48,2,FALSE)+ROW()-2)),\"\")","v":{"$error":"#N/A"}},{"$f":"IF(INDIRECT(\"c\" & (VLOOKUP(Rebalance!$D$40,$F$2:$G$48,2,FALSE)+ROW()-2))=Rebalance!$D$40,INDIRECT(\"a\" & (VLOOKUP(Rebalance!$D$40,$F$2:$G$48,2,FALSE)+ROW()-2)),\"\")","v":{"$error":"#N/A"}},{"$f":"IF(INDIRECT(\"c\" & (VLOOKUP(Rebalance!$D$52,$F$2:$G$48,2,FALSE)+ROW()-2))=Rebalance!$D$52,INDIRECT(\"a\" & (VLOOKUP(Rebalance!$D$52,$F$2:$G$48,2,FALSE)+ROW()-2)),\"\")","v":{"$error":"#N/A"}},{"$f":"IF(INDIRECT(\"c\" & (VLOOKUP(Rebalance!$D$53,$F$2:$G$48,2,FALSE)+ROW()-2))=Rebalance!$D$53,INDIRECT(\"a\" & (VLOOKUP(Rebalance!$D$53,$F$2:$G$48,2,FALSE)+ROW()-2)),\"\")","v":{"$error":"#N/A"}},{"$f":"IF(INDIRECT(\"c\" & (VLOOKUP(Rebalance!$D$54,$F$2:$G$48,2,FALSE)+ROW()-2))=Rebalance!$D$54,INDIRECT(\"a\" & (VLOOKUP(Rebalance!$D$54,$F$2:$G$48,2,FALSE)+ROW()-2)),\"\")","v":{"$error":"#N/A"}},{"$f":"IF(INDIRECT(\"c\" & (VLOOKUP(Rebalance!$D$55,$F$2:$G$48,2,FALSE)+ROW()-2))=Rebalance!$D$55,INDIRECT(\"a\" & (VLOOKUP(Rebalance!$D$55,$F$2:$G$48,2,FALSE)+ROW()-2)),\"\")","v":{"$error":"#N/A"}},{"$f":"IF(INDIRECT(\"c\" & (VLOOKUP(Rebalance!$D$56,$F$2:$G$48,2,FALSE)+ROW()-2))=Rebalance!$D$56,INDIRECT(\"a\" & (VLOOKUP(Rebalance!$D$56,$F$2:$G$48,2,FALSE)+ROW()-2)),\"\")","v":{"$error":"#N/A"}},{"$f":"IF(INDIRECT(\"c\" & (VLOOKUP(Rebalance!$D$57,$F$2:$G$48,2,FALSE)+ROW()-2))=Rebalance!$D$57,INDIRECT(\"a\" & (VLOOKUP(Rebalance!$D$57,$F$2:$G$48,2,FALSE)+ROW()-2)),\"\")","v":{"$error":"#N/A"}},{"$f":"IF(INDIRECT(\"c\" & (VLOOKUP(Rebalance!$D$58,$F$2:$G$48,2,FALSE)+ROW()-2))=Rebalance!$D$58,INDIRECT(\"a\" & (VLOOKUP(Rebalance!$D$58,$F$2:$G$48,2,FALSE)+ROW()-2)),\"\")","v":{"$error":"#N/A"}},{"$f":"IF(INDIRECT(\"c\" & (VLOOKUP(Rebalance!$D$59,$F$2:$G$48,2,FALSE)+ROW()-2))=Rebalance!$D$59,INDIRECT(\"a\" & (VLOOKUP(Rebalance!$D$59,$F$2:$G$48,2,FALSE)+ROW()-2)),\"\")","v":{"$error":"#N/A"}},{"$f":"IF(INDIRECT(\"c\" & (VLOOKUP(Rebalance!$D$60,$F$2:$G$48,2,FALSE)+ROW()-2))=Rebalance!$D$60,INDIRECT(\"a\" & (VLOOKUP(Rebalance!$D$60,$F$2:$G$48,2,FALSE)+ROW()-2)),\"\")","v":{"$error":"#N/A"}},{"$f":"IF(INDIRECT(\"c\" & (VLOOKUP(Rebalance!$D$61,$F$2:$G$48,2,FALSE)+ROW()-2))=Rebalance!$D$61,INDIRECT(\"a\" & (VLOOKUP(Rebalance!$D$61,$F$2:$G$48,2,FALSE)+ROW()-2)),\"\")","v":{"$error":"#N/A"}},{"$f":"IF(INDIRECT(\"c\" & (VLOOKUP(Rebalance!$D$62,$F$2:$G$48,2,FALSE)+ROW()-2))=Rebalance!$D$62,INDIRECT(\"a\" & (VLOOKUP(Rebalance!$D$62,$F$2:$G$48,2,FALSE)+ROW()-2)),\"\")","v":{"$error":"#N/A"}},{"$f":"IF(INDIRECT(\"c\" & (VLOOKUP(Rebalance!$D$63,$F$2:$G$48,2,FALSE)+ROW()-2))=Rebalance!$D$63,INDIRECT(\"a\" & (VLOOKUP(Rebalance!$D$63,$F$2:$G$48,2,FALSE)+ROW()-2)),\"\")","v":{"$error":"#N/A"}},{"$f":"IF(INDIRECT(\"c\" & (VLOOKUP(Rebalance!$D$64,$F$2:$G$48,2,FALSE)+ROW()-2))=Rebalance!$D$64,INDIRECT(\"a\" & (VLOOKUP(Rebalance!$D$64,$F$2:$G$48,2,FALSE)+ROW()-2)),\"\")","v":{"$error":"#N/A"}},{"$f":"IF(INDIRECT(\"c\" & (VLOOKUP(Rebalance!$D$65,$F$2:$G$48,2,FALSE)+ROW()-2))=Rebalance!$D$65,INDIRECT(\"a\" & (VLOOKUP(Rebalance!$D$65,$F$2:$G$48,2,FALSE)+ROW()-2)),\"\")","v":{"$error":"#N/A"}},{"$f":"IF(INDIRECT(\"c\" & (VLOOKUP(Rebalance!$D$66,$F$2:$G$48,2,FALSE)+ROW()-2))=Rebalance!$D$66,INDIRECT(\"a\" & (VLOOKUP(Rebalance!$D$66,$F$2:$G$48,2,FALSE)+ROW()-2)),\"\")","v":{"$error":"#N/A"}}]
["Investec Equity Fund H","EQTH","Investec Fund Managers",{"$f":"ROW()","v":263},null,null,{"$f":"VLOOKUP(F263,$C$2:$D$599,2,FALSE)","v":{"$error":"#N/A"}},{"$f":"IF(INDIRECT(\"c\" & (VLOOKUP(Rebalance!$D$26,$F$2:$G$48,2,FALSE)+ROW()-2))=Rebalance!$D$26,INDIRECT(\"a\" & (VLOOKUP(Rebalance!$D$26,$F$2:$G$48,2,FALSE)+ROW()-2)),\"\")","v":{"$error":"#N/A"}},{"$f":"IF(INDIRECT(\"c\" & (VLOOKUP(Rebalance!$D$27,$F$2:$G$48,2,FALSE)+ROW()-2))=Rebalance!$D$27,INDIRECT(\"a\" & (VLOOKUP(Rebalance!$D$27,$F$2:$G$48,2,FALSE)+ROW()-2)),\"\")","v":{"$error":"#N/A"}},{"$f":"IF(INDIRECT(\"c\" & (VLOOKUP(Rebalance!$D$28,$F$2:$G$48,2,FALSE)+ROW()-2))=Rebalance!$D$28,INDIRECT(\"a\" & (VLOOKUP(Rebalance!$D$28,$F$2:$G$48,2,FALSE)+ROW()-2)),\"\")","v":{"$error":"#N/A"}},{"$f":"IF(INDIRECT(\"c\" & (VLOOKUP(Rebalance!$D$29,$F$2:$G$48,2,FALSE)+ROW()-2))=Rebalance!$D$29,INDIRECT(\"a\" & (VLOOKUP(Rebalance!$D$29,$F$2:$G$48,2,FALSE)+ROW()-2)),\"\")","v":{"$error":"#N/A"}},{"$f":"IF(INDIRECT(\"c\" & (VLOOKUP(Rebalance!$D$30,$F$2:$G$48,2,FALSE)+ROW()-2))=Rebalance!$D$30,INDIRECT(\"a\" & (VLOOKUP(Rebalance!$D$30,$F$2:$G$48,2,FALSE)+ROW()-2)),\"\")","v":{"$error":"#N/A"}},{"$f":"IF(INDIRECT(\"c\" & (VLOOKUP(Rebalance!$D$31,$F$2:$G$48,2,FALSE)+ROW()-2))=Rebalance!$D$31,INDIRECT(\"a\" & (VLOOKUP(Rebalance!$D$31,$F$2:$G$48,2,FALSE)+ROW()-2)),\"\")","v":{"$error":"#N/A"}},{"$f":"IF(INDIRECT(\"c\" & (VLOOKUP(Rebalance!$D$32,$F$2:$G$48,2,FALSE)+ROW()-2))=Rebalance!$D$32,INDIRECT(\"a\" & (VLOOKUP(Rebalance!$D$32,$F$2:$G$48,2,FALSE)+ROW()-2)),\"\")","v":{"$error":"#N/A"}},{"$f":"IF(INDIRECT(\"c\" & (VLOOKUP(Rebalance!$D$33,$F$2:$G$48,2,FALSE)+ROW()-2))=Rebalance!$D$33,INDIRECT(\"a\" & (VLOOKUP(Rebalance!$D$33,$F$2:$G$48,2,FALSE)+ROW()-2)),\"\")","v":{"$error":"#N/A"}},{"$f":"IF(INDIRECT(\"c\" & (VLOOKUP(Rebalance!$D$34,$F$2:$G$48,2,FALSE)+ROW()-2))=Rebalance!$D$34,INDIRECT(\"a\" & (VLOOKUP(Rebalance!$D$34,$F$2:$G$48,2,FALSE)+ROW()-2)),\"\")","v":{"$error":"#N/A"}},{"$f":"IF(INDIRECT(\"c\" & (VLOOKUP(Rebalance!$D$35,$F$2:$G$48,2,FALSE)+ROW()-2))=Rebalance!$D$35,INDIRECT(\"a\" & (VLOOKUP(Rebalance!$D$35,$F$2:$G$48,2,FALSE)+ROW()-2)),\"\")","v":{"$error":"#N/A"}},{"$f":"IF(INDIRECT(\"c\" & (VLOOKUP(Rebalance!$D$36,$F$2:$G$48,2,FALSE)+ROW()-2))=Rebalance!$D$36,INDIRECT(\"a\" & (VLOOKUP(Rebalance!$D$36,$F$2:$G$48,2,FALSE)+ROW()-2)),\"\")","v":{"$error":"#N/A"}},{"$f":"IF(INDIRECT(\"c\" & (VLOOKUP(Rebalance!$D$37,$F$2:$G$48,2,FALSE)+ROW()-2))=Rebalance!$D$37,INDIRECT(\"a\" & (VLOOKUP(Rebalance!$D$37,$F$2:$G$48,2,FALSE)+ROW()-2)),\"\")","v":{"$error":"#N/A"}},{"$f":"IF(INDIRECT(\"c\" & (VLOOKUP(Rebalance!$D$38,$F$2:$G$48,2,FALSE)+ROW()-2))=Rebalance!$D$38,INDIRECT(\"a\" & (VLOOKUP(Rebalance!$D$38,$F$2:$G$48,2,FALSE)+ROW()-2)),\"\")","v":{"$error":"#N/A"}},{"$f":"IF(INDIRECT(\"c\" & (VLOOKUP(Rebalance!$D$39,$F$2:$G$48,2,FALSE)+ROW()-2))=Rebalance!$D$39,INDIRECT(\"a\" & (VLOOKUP(Rebalance!$D$39,$F$2:$G$48,2,FALSE)+ROW()-2)),\"\")","v":{"$error":"#N/A"}},{"$f":"IF(INDIRECT(\"c\" & (VLOOKUP(Rebalance!$D$40,$F$2:$G$48,2,FALSE)+ROW()-2))=Rebalance!$D$40,INDIRECT(\"a\" & (VLOOKUP(Rebalance!$D$40,$F$2:$G$48,2,FALSE)+ROW()-2)),\"\")","v":{"$error":"#N/A"}},{"$f":"IF(INDIRECT(\"c\" & (VLOOKUP(Rebalance!$D$52,$F$2:$G$48,2,FALSE)+ROW()-2))=Rebalance!$D$52,INDIRECT(\"a\" & (VLOOKUP(Rebalance!$D$52,$F$2:$G$48,2,FALSE)+ROW()-2)),\"\")","v":{"$error":"#N/A"}},{"$f":"IF(INDIRECT(\"c\" & (VLOOKUP(Rebalance!$D$53,$F$2:$G$48,2,FALSE)+ROW()-2))=Rebalance!$D$53,INDIRECT(\"a\" & (VLOOKUP(Rebalance!$D$53,$F$2:$G$48,2,FALSE)+ROW()-2)),\"\")","v":{"$error":"#N/A"}},{"$f":"IF(INDIRECT(\"c\" & (VLOOKUP(Rebalance!$D$54,$F$2:$G$48,2,FALSE)+ROW()-2))=Rebalance!$D$54,INDIRECT(\"a\" & (VLOOKUP(Rebalance!$D$54,$F$2:$G$48,2,FALSE)+ROW()-2)),\"\")","v":{"$error":"#N/A"}},{"$f":"IF(INDIRECT(\"c\" & (VLOOKUP(Rebalance!$D$55,$F$2:$G$48,2,FALSE)+ROW()-2))=Rebalance!$D$55,INDIRECT(\"a\" & (VLOOKUP(Rebalance!$D$55,$F$2:$G$48,2,FALSE)+ROW()-2)),\"\")","v":{"$error":"#N/A"}},{"$f":"IF(INDIRECT(\"c\" & (VLOOKUP(Rebalance!$D$56,$F$2:$G$48,2,FALSE)+ROW()-2))=Rebalance!$D$56,INDIRECT(\"a\" & (VLOOKUP(Rebalance!$D$56,$F$2:$G$48,2,FALSE)+ROW()-2)),\"\")","v":{"$error":"#N/A"}},{"$f":"IF(INDIRECT(\"c\" & (VLOOKUP(Rebalance!$D$57,$F$2:$G$48,2,FALSE)+ROW()-2))=Rebalance!$D$57,INDIRECT(\"a\" & (VLOOKUP(Rebalance!$D$57,$F$2:$G$48,2,FALSE)+ROW()-2)),\"\")","v":{"$error":"#N/A"}},{"$f":"IF(INDIRECT(\"c\" & (VLOOKUP(Rebalance!$D$58,$F$2:$G$48,2,FALSE)+ROW()-2))=Rebalance!$D$58,INDIRECT(\"a\" & (VLOOKUP(Rebalance!$D$58,$F$2:$G$48,2,FALSE)+ROW()-2)),\"\")","v":{"$error":"#N/A"}},{"$f":"IF(INDIRECT(\"c\" & (VLOOKUP(Rebalance!$D$59,$F$2:$G$48,2,FALSE)+ROW()-2))=Rebalance!$D$59,INDIRECT(\"a\" & (VLOOKUP(Rebalance!$D$59,$F$2:$G$48,2,FALSE)+ROW()-2)),\"\")","v":{"$error":"#N/A"}},{"$f":"IF(INDIRECT(\"c\" & (VLOOKUP(Rebalance!$D$60,$F$2:$G$48,2,FALSE)+ROW()-2))=Rebalance!$D$60,INDIRECT(\"a\" & (VLOOKUP(Rebalance!$D$60,$F$2:$G$48,2,FALSE)+ROW()-2)),\"\")","v":{"$error":"#N/A"}},{"$f":"IF(INDIRECT(\"c\" & (VLOOKUP(Rebalance!$D$61,$F$2:$G$48,2,FALSE)+ROW()-2))=Rebalance!$D$61,INDIRECT(\"a\" & (VLOOKUP(Rebalance!$D$61,$F$2:$G$48,2,FALSE)+ROW()-2)),\"\")","v":{"$error":"#N/A"}},{"$f":"IF(INDIRECT(\"c\" & (VLOOKUP(Rebalance!$D$62,$F$2:$G$48,2,FALSE)+ROW()-2))=Rebalance!$D$62,INDIRECT(\"a\" & (VLOOKUP(Rebalance!$D$62,$F$2:$G$48,2,FALSE)+ROW()-2)),\"\")","v":{"$error":"#N/A"}},{"$f":"IF(INDIRECT(\"c\" & (VLOOKUP(Rebalance!$D$63,$F$2:$G$48,2,FALSE)+ROW()-2))=Rebalance!$D$63,INDIRECT(\"a\" & (VLOOKUP(Rebalance!$D$63,$F$2:$G$48,2,FALSE)+ROW()-2)),\"\")","v":{"$error":"#N/A"}},{"$f":"IF(INDIRECT(\"c\" & (VLOOKUP(Rebalance!$D$64,$F$2:$G$48,2,FALSE)+ROW()-2))=Rebalance!$D$64,INDIRECT(\"a\" & (VLOOKUP(Rebalance!$D$64,$F$2:$G$48,2,FALSE)+ROW()-2)),\"\")","v":{"$error":"#N/A"}},{"$f":"IF(INDIRECT(\"c\" & (VLOOKUP(Rebalance!$D$65,$F$2:$G$48,2,FALSE)+ROW()-2))=Rebalance!$D$65,INDIRECT(\"a\" & (VLOOKUP(Rebalance!$D$65,$F$2:$G$48,2,FALSE)+ROW()-2)),\"\")","v":{"$error":"#N/A"}},{"$f":"IF(INDIRECT(\"c\" & (VLOOKUP(Rebalance!$D$66,$F$2:$G$48,2,FALSE)+ROW()-2))=Rebalance!$D$66,INDIRECT(\"a\" & (VLOOKUP(Rebalance!$D$66,$F$2:$G$48,2,FALSE)+ROW()-2)),\"\")","v":{"$error":"#N/A"}}]
["Investec Emerging Companies Fund H","ECFH","Investec Fund Managers",{"$f":"ROW()","v":264},null,null,{"$f":"VLOOKUP(F264,$C$2:$D$599,2,FALSE)","v":{"$error":"#N/A"}},{"$f":"IF(INDIRECT(\"c\" & (VLOOKUP(Rebalance!$D$26,$F$2:$G$48,2,FALSE)+ROW()-2))=Rebalance!$D$26,INDIRECT(\"a\" & (VLOOKUP(Rebalance!$D$26,$F$2:$G$48,2,FALSE)+ROW()-2)),\"\")","v":{"$error":"#N/A"}},{"$f":"IF(INDIRECT(\"c\" & (VLOOKUP(Rebalance!$D$27,$F$2:$G$48,2,FALSE)+ROW()-2))=Rebalance!$D$27,INDIRECT(\"a\" & (VLOOKUP(Rebalance!$D$27,$F$2:$G$48,2,FALSE)+ROW()-2)),\"\")","v":{"$error":"#N/A"}},{"$f":"IF(INDIRECT(\"c\" & (VLOOKUP(Rebalance!$D$28,$F$2:$G$48,2,FALSE)+ROW()-2))=Rebalance!$D$28,INDIRECT(\"a\" & (VLOOKUP(Rebalance!$D$28,$F$2:$G$48,2,FALSE)+ROW()-2)),\"\")","v":{"$error":"#N/A"}},{"$f":"IF(INDIRECT(\"c\" & (VLOOKUP(Rebalance!$D$29,$F$2:$G$48,2,FALSE)+ROW()-2))=Rebalance!$D$29,INDIRECT(\"a\" & (VLOOKUP(Rebalance!$D$29,$F$2:$G$48,2,FALSE)+ROW()-2)),\"\")","v":{"$error":"#N/A"}},{"$f":"IF(INDIRECT(\"c\" & (VLOOKUP(Rebalance!$D$30,$F$2:$G$48,2,FALSE)+ROW()-2))=Rebalance!$D$30,INDIRECT(\"a\" & (VLOOKUP(Rebalance!$D$30,$F$2:$G$48,2,FALSE)+ROW()-2)),\"\")","v":{"$error":"#N/A"}},{"$f":"IF(INDIRECT(\"c\" & (VLOOKUP(Rebalance!$D$31,$F$2:$G$48,2,FALSE)+ROW()-2))=Rebalance!$D$31,INDIRECT(\"a\" & (VLOOKUP(Rebalance!$D$31,$F$2:$G$48,2,FALSE)+ROW()-2)),\"\")","v":{"$error":"#N/A"}},{"$f":"IF(INDIRECT(\"c\" & (VLOOKUP(Rebalance!$D$32,$F$2:$G$48,2,FALSE)+ROW()-2))=Rebalance!$D$32,INDIRECT(\"a\" & (VLOOKUP(Rebalance!$D$32,$F$2:$G$48,2,FALSE)+ROW()-2)),\"\")","v":{"$error":"#N/A"}},{"$f":"IF(INDIRECT(\"c\" & (VLOOKUP(Rebalance!$D$33,$F$2:$G$48,2,FALSE)+ROW()-2))=Rebalance!$D$33,INDIRECT(\"a\" & (VLOOKUP(Rebalance!$D$33,$F$2:$G$48,2,FALSE)+ROW()-2)),\"\")","v":{"$error":"#N/A"}},{"$f":"IF(INDIRECT(\"c\" & (VLOOKUP(Rebalance!$D$34,$F$2:$G$48,2,FALSE)+ROW()-2))=Rebalance!$D$34,INDIRECT(\"a\" & (VLOOKUP(Rebalance!$D$34,$F$2:$G$48,2,FALSE)+ROW()-2)),\"\")","v":{"$error":"#N/A"}},{"$f":"IF(INDIRECT(\"c\" & (VLOOKUP(Rebalance!$D$35,$F$2:$G$48,2,FALSE)+ROW()-2))=Rebalance!$D$35,INDIRECT(\"a\" & (VLOOKUP(Rebalance!$D$35,$F$2:$G$48,2,FALSE)+ROW()-2)),\"\")","v":{"$error":"#N/A"}},{"$f":"IF(INDIRECT(\"c\" & (VLOOKUP(Rebalance!$D$36,$F$2:$G$48,2,FALSE)+ROW()-2))=Rebalance!$D$36,INDIRECT(\"a\" & (VLOOKUP(Rebalance!$D$36,$F$2:$G$48,2,FALSE)+ROW()-2)),\"\")","v":{"$error":"#N/A"}},{"$f":"IF(INDIRECT(\"c\" & (VLOOKUP(Rebalance!$D$37,$F$2:$G$48,2,FALSE)+ROW()-2))=Rebalance!$D$37,INDIRECT(\"a\" & (VLOOKUP(Rebalance!$D$37,$F$2:$G$48,2,FALSE)+ROW()-2)),\"\")","v":{"$error":"#N/A"}},{"$f":"IF(INDIRECT(\"c\" & (VLOOKUP(Rebalance!$D$38,$F$2:$G$48,2,FALSE)+ROW()-2))=Rebalance!$D$38,INDIRECT(\"a\" & (VLOOKUP(Rebalance!$D$38,$F$2:$G$48,2,FALSE)+ROW()-2)),\"\")","v":{"$error":"#N/A"}},{"$f":"IF(INDIRECT(\"c\" & (VLOOKUP(Rebalance!$D$39,$F$2:$G$48,2,FALSE)+ROW()-2))=Rebalance!$D$39,INDIRECT(\"a\" & (VLOOKUP(Rebalance!$D$39,$F$2:$G$48,2,FALSE)+ROW()-2)),\"\")","v":{"$error":"#N/A"}},{"$f":"IF(INDIRECT(\"c\" & (VLOOKUP(Rebalance!$D$40,$F$2:$G$48,2,FALSE)+ROW()-2))=Rebalance!$D$40,INDIRECT(\"a\" & (VLOOKUP(Rebalance!$D$40,$F$2:$G$48,2,FALSE)+ROW()-2)),\"\")","v":{"$error":"#N/A"}},{"$f":"IF(INDIRECT(\"c\" & (VLOOKUP(Rebalance!$D$52,$F$2:$G$48,2,FALSE)+ROW()-2))=Rebalance!$D$52,INDIRECT(\"a\" & (VLOOKUP(Rebalance!$D$52,$F$2:$G$48,2,FALSE)+ROW()-2)),\"\")","v":{"$error":"#N/A"}},{"$f":"IF(INDIRECT(\"c\" & (VLOOKUP(Rebalance!$D$53,$F$2:$G$48,2,FALSE)+ROW()-2))=Rebalance!$D$53,INDIRECT(\"a\" & (VLOOKUP(Rebalance!$D$53,$F$2:$G$48,2,FALSE)+ROW()-2)),\"\")","v":{"$error":"#N/A"}},{"$f":"IF(INDIRECT(\"c\" & (VLOOKUP(Rebalance!$D$54,$F$2:$G$48,2,FALSE)+ROW()-2))=Rebalance!$D$54,INDIRECT(\"a\" & (VLOOKUP(Rebalance!$D$54,$F$2:$G$48,2,FALSE)+ROW()-2)),\"\")","v":{"$error":"#N/A"}},{"$f":"IF(INDIRECT(\"c\" & (VLOOKUP(Rebalance!$D$55,$F$2:$G$48,2,FALSE)+ROW()-2))=Rebalance!$D$55,INDIRECT(\"a\" & (VLOOKUP(Rebalance!$D$55,$F$2:$G$48,2,FALSE)+ROW()-2)),\"\")","v":{"$error":"#N/A"}},{"$f":"IF(INDIRECT(\"c\" & (VLOOKUP(Rebalance!$D$56,$F$2:$G$48,2,FALSE)+ROW()-2))=Rebalance!$D$56,INDIRECT(\"a\" & (VLOOKUP(Rebalance!$D$56,$F$2:$G$48,2,FALSE)+ROW()-2)),\"\")","v":{"$error":"#N/A"}},{"$f":"IF(INDIRECT(\"c\" & (VLOOKUP(Rebalance!$D$57,$F$2:$G$48,2,FALSE)+ROW()-2))=Rebalance!$D$57,INDIRECT(\"a\" & (VLOOKUP(Rebalance!$D$57,$F$2:$G$48,2,FALSE)+ROW()-2)),\"\")","v":{"$error":"#N/A"}},{"$f":"IF(INDIRECT(\"c\" & (VLOOKUP(Rebalance!$D$58,$F$2:$G$48,2,FALSE)+ROW()-2))=Rebalance!$D$58,INDIRECT(\"a\" & (VLOOKUP(Rebalance!$D$58,$F$2:$G$48,2,FALSE)+ROW()-2)),\"\")","v":{"$error":"#N/A"}},{"$f":"IF(INDIRECT(\"c\" & (VLOOKUP(Rebalance!$D$59,$F$2:$G$48,2,FALSE)+ROW()-2))=Rebalance!$D$59,INDIRECT(\"a\" & (VLOOKUP(Rebalance!$D$59,$F$2:$G$48,2,FALSE)+ROW()-2)),\"\")","v":{"$error":"#N/A"}},{"$f":"IF(INDIRECT(\"c\" & (VLOOKUP(Rebalance!$D$60,$F$2:$G$48,2,FALSE)+ROW()-2))=Rebalance!$D$60,INDIRECT(\"a\" & (VLOOKUP(Rebalance!$D$60,$F$2:$G$48,2,FALSE)+ROW()-2)),\"\")","v":{"$error":"#N/A"}},{"$f":"IF(INDIRECT(\"c\" & (VLOOKUP(Rebalance!$D$61,$F$2:$G$48,2,FALSE)+ROW()-2))=Rebalance!$D$61,INDIRECT(\"a\" & (VLOOKUP(Rebalance!$D$61,$F$2:$G$48,2,FALSE)+ROW()-2)),\"\")","v":{"$error":"#N/A"}},{"$f":"IF(INDIRECT(\"c\" & (VLOOKUP(Rebalance!$D$62,$F$2:$G$48,2,FALSE)+ROW()-2))=Rebalance!$D$62,INDIRECT(\"a\" & (VLOOKUP(Rebalance!$D$62,$F$2:$G$48,2,FALSE)+ROW()-2)),\"\")","v":{"$error":"#N/A"}},{"$f":"IF(INDIRECT(\"c\" & (VLOOKUP(Rebalance!$D$63,$F$2:$G$48,2,FALSE)+ROW()-2))=Rebalance!$D$63,INDIRECT(\"a\" & (VLOOKUP(Rebalance!$D$63,$F$2:$G$48,2,FALSE)+ROW()-2)),\"\")","v":{"$error":"#N/A"}},{"$f":"IF(INDIRECT(\"c\" & (VLOOKUP(Rebalance!$D$64,$F$2:$G$48,2,FALSE)+ROW()-2))=Rebalance!$D$64,INDIRECT(\"a\" & (VLOOKUP(Rebalance!$D$64,$F$2:$G$48,2,FALSE)+ROW()-2)),\"\")","v":{"$error":"#N/A"}},{"$f":"IF(INDIRECT(\"c\" & (VLOOKUP(Rebalance!$D$65,$F$2:$G$48,2,FALSE)+ROW()-2))=Rebalance!$D$65,INDIRECT(\"a\" & (VLOOKUP(Rebalance!$D$65,$F$2:$G$48,2,FALSE)+ROW()-2)),\"\")","v":{"$error":"#N/A"}},{"$f":"IF(INDIRECT(\"c\" & (VLOOKUP(Rebalance!$D$66,$F$2:$G$48,2,FALSE)+ROW()-2))=Rebalance!$D$66,INDIRECT(\"a\" & (VLOOKUP(Rebalance!$D$66,$F$2:$G$48,2,FALSE)+ROW()-2)),\"\")","v":{"$error":"#N/A"}}]
["Investec Gilt Fund H","GLTH","Investec Fund Managers",{"$f":"ROW()","v":265},null,null,{"$f":"VLOOKUP(F265,$C$2:$D$599,2,FALSE)","v":{"$error":"#N/A"}},{"$f":"IF(INDIRECT(\"c\" & (VLOOKUP(Rebalance!$D$26,$F$2:$G$48,2,FALSE)+ROW()-2))=Rebalance!$D$26,INDIRECT(\"a\" & (VLOOKUP(Rebalance!$D$26,$F$2:$G$48,2,FALSE)+ROW()-2)),\"\")","v":{"$error":"#N/A"}},{"$f":"IF(INDIRECT(\"c\" & (VLOOKUP(Rebalance!$D$27,$F$2:$G$48,2,FALSE)+ROW()-2))=Rebalance!$D$27,INDIRECT(\"a\" & (VLOOKUP(Rebalance!$D$27,$F$2:$G$48,2,FALSE)+ROW()-2)),\"\")","v":{"$error":"#N/A"}},{"$f":"IF(INDIRECT(\"c\" & (VLOOKUP(Rebalance!$D$28,$F$2:$G$48,2,FALSE)+ROW()-2))=Rebalance!$D$28,INDIRECT(\"a\" & (VLOOKUP(Rebalance!$D$28,$F$2:$G$48,2,FALSE)+ROW()-2)),\"\")","v":{"$error":"#N/A"}},{"$f":"IF(INDIRECT(\"c\" & (VLOOKUP(Rebalance!$D$29,$F$2:$G$48,2,FALSE)+ROW()-2))=Rebalance!$D$29,INDIRECT(\"a\" & (VLOOKUP(Rebalance!$D$29,$F$2:$G$48,2,FALSE)+ROW()-2)),\"\")","v":{"$error":"#N/A"}},{"$f":"IF(INDIRECT(\"c\" & (VLOOKUP(Rebalance!$D$30,$F$2:$G$48,2,FALSE)+ROW()-2))=Rebalance!$D$30,INDIRECT(\"a\" & (VLOOKUP(Rebalance!$D$30,$F$2:$G$48,2,FALSE)+ROW()-2)),\"\")","v":{"$error":"#N/A"}},{"$f":"IF(INDIRECT(\"c\" & (VLOOKUP(Rebalance!$D$31,$F$2:$G$48,2,FALSE)+ROW()-2))=Rebalance!$D$31,INDIRECT(\"a\" & (VLOOKUP(Rebalance!$D$31,$F$2:$G$48,2,FALSE)+ROW()-2)),\"\")","v":{"$error":"#N/A"}},{"$f":"IF(INDIRECT(\"c\" & (VLOOKUP(Rebalance!$D$32,$F$2:$G$48,2,FALSE)+ROW()-2))=Rebalance!$D$32,INDIRECT(\"a\" & (VLOOKUP(Rebalance!$D$32,$F$2:$G$48,2,FALSE)+ROW()-2)),\"\")","v":{"$error":"#N/A"}},{"$f":"IF(INDIRECT(\"c\" & (VLOOKUP(Rebalance!$D$33,$F$2:$G$48,2,FALSE)+ROW()-2))=Rebalance!$D$33,INDIRECT(\"a\" & (VLOOKUP(Rebalance!$D$33,$F$2:$G$48,2,FALSE)+ROW()-2)),\"\")","v":{"$error":"#N/A"}},{"$f":"IF(INDIRECT(\"c\" & (VLOOKUP(Rebalance!$D$34,$F$2:$G$48,2,FALSE)+ROW()-2))=Rebalance!$D$34,INDIRECT(\"a\" & (VLOOKUP(Rebalance!$D$34,$F$2:$G$48,2,FALSE)+ROW()-2)),\"\")","v":{"$error":"#N/A"}},{"$f":"IF(INDIRECT(\"c\" & (VLOOKUP(Rebalance!$D$35,$F$2:$G$48,2,FALSE)+ROW()-2))=Rebalance!$D$35,INDIRECT(\"a\" & (VLOOKUP(Rebalance!$D$35,$F$2:$G$48,2,FALSE)+ROW()-2)),\"\")","v":{"$error":"#N/A"}},{"$f":"IF(INDIRECT(\"c\" & (VLOOKUP(Rebalance!$D$36,$F$2:$G$48,2,FALSE)+ROW()-2))=Rebalance!$D$36,INDIRECT(\"a\" & (VLOOKUP(Rebalance!$D$36,$F$2:$G$48,2,FALSE)+ROW()-2)),\"\")","v":{"$error":"#N/A"}},{"$f":"IF(INDIRECT(\"c\" & (VLOOKUP(Rebalance!$D$37,$F$2:$G$48,2,FALSE)+ROW()-2))=Rebalance!$D$37,INDIRECT(\"a\" & (VLOOKUP(Rebalance!$D$37,$F$2:$G$48,2,FALSE)+ROW()-2)),\"\")","v":{"$error":"#N/A"}},{"$f":"IF(INDIRECT(\"c\" & (VLOOKUP(Rebalance!$D$38,$F$2:$G$48,2,FALSE)+ROW()-2))=Rebalance!$D$38,INDIRECT(\"a\" & (VLOOKUP(Rebalance!$D$38,$F$2:$G$48,2,FALSE)+ROW()-2)),\"\")","v":{"$error":"#N/A"}},{"$f":"IF(INDIRECT(\"c\" & (VLOOKUP(Rebalance!$D$39,$F$2:$G$48,2,FALSE)+ROW()-2))=Rebalance!$D$39,INDIRECT(\"a\" & (VLOOKUP(Rebalance!$D$39,$F$2:$G$48,2,FALSE)+ROW()-2)),\"\")","v":{"$error":"#N/A"}},{"$f":"IF(INDIRECT(\"c\" & (VLOOKUP(Rebalance!$D$40,$F$2:$G$48,2,FALSE)+ROW()-2))=Rebalance!$D$40,INDIRECT(\"a\" & (VLOOKUP(Rebalance!$D$40,$F$2:$G$48,2,FALSE)+ROW()-2)),\"\")","v":{"$error":"#N/A"}},{"$f":"IF(INDIRECT(\"c\" & (VLOOKUP(Rebalance!$D$52,$F$2:$G$48,2,FALSE)+ROW()-2))=Rebalance!$D$52,INDIRECT(\"a\" & (VLOOKUP(Rebalance!$D$52,$F$2:$G$48,2,FALSE)+ROW()-2)),\"\")","v":{"$error":"#N/A"}},{"$f":"IF(INDIRECT(\"c\" & (VLOOKUP(Rebalance!$D$53,$F$2:$G$48,2,FALSE)+ROW()-2))=Rebalance!$D$53,INDIRECT(\"a\" & (VLOOKUP(Rebalance!$D$53,$F$2:$G$48,2,FALSE)+ROW()-2)),\"\")","v":{"$error":"#N/A"}},{"$f":"IF(INDIRECT(\"c\" & (VLOOKUP(Rebalance!$D$54,$F$2:$G$48,2,FALSE)+ROW()-2))=Rebalance!$D$54,INDIRECT(\"a\" & (VLOOKUP(Rebalance!$D$54,$F$2:$G$48,2,FALSE)+ROW()-2)),\"\")","v":{"$error":"#N/A"}},{"$f":"IF(INDIRECT(\"c\" & (VLOOKUP(Rebalance!$D$55,$F$2:$G$48,2,FALSE)+ROW()-2))=Rebalance!$D$55,INDIRECT(\"a\" & (VLOOKUP(Rebalance!$D$55,$F$2:$G$48,2,FALSE)+ROW()-2)),\"\")","v":{"$error":"#N/A"}},{"$f":"IF(INDIRECT(\"c\" & (VLOOKUP(Rebalance!$D$56,$F$2:$G$48,2,FALSE)+ROW()-2))=Rebalance!$D$56,INDIRECT(\"a\" & (VLOOKUP(Rebalance!$D$56,$F$2:$G$48,2,FALSE)+ROW()-2)),\"\")","v":{"$error":"#N/A"}},{"$f":"IF(INDIRECT(\"c\" & (VLOOKUP(Rebalance!$D$57,$F$2:$G$48,2,FALSE)+ROW()-2))=Rebalance!$D$57,INDIRECT(\"a\" & (VLOOKUP(Rebalance!$D$57,$F$2:$G$48,2,FALSE)+ROW()-2)),\"\")","v":{"$error":"#N/A"}},{"$f":"IF(INDIRECT(\"c\" & (VLOOKUP(Rebalance!$D$58,$F$2:$G$48,2,FALSE)+ROW()-2))=Rebalance!$D$58,INDIRECT(\"a\" & (VLOOKUP(Rebalance!$D$58,$F$2:$G$48,2,FALSE)+ROW()-2)),\"\")","v":{"$error":"#N/A"}},{"$f":"IF(INDIRECT(\"c\" & (VLOOKUP(Rebalance!$D$59,$F$2:$G$48,2,FALSE)+ROW()-2))=Rebalance!$D$59,INDIRECT(\"a\" & (VLOOKUP(Rebalance!$D$59,$F$2:$G$48,2,FALSE)+ROW()-2)),\"\")","v":{"$error":"#N/A"}},{"$f":"IF(INDIRECT(\"c\" & (VLOOKUP(Rebalance!$D$60,$F$2:$G$48,2,FALSE)+ROW()-2))=Rebalance!$D$60,INDIRECT(\"a\" & (VLOOKUP(Rebalance!$D$60,$F$2:$G$48,2,FALSE)+ROW()-2)),\"\")","v":{"$error":"#N/A"}},{"$f":"IF(INDIRECT(\"c\" & (VLOOKUP(Rebalance!$D$61,$F$2:$G$48,2,FALSE)+ROW()-2))=Rebalance!$D$61,INDIRECT(\"a\" & (VLOOKUP(Rebalance!$D$61,$F$2:$G$48,2,FALSE)+ROW()-2)),\"\")","v":{"$error":"#N/A"}},{"$f":"IF(INDIRECT(\"c\" & (VLOOKUP(Rebalance!$D$62,$F$2:$G$48,2,FALSE)+ROW()-2))=Rebalance!$D$62,INDIRECT(\"a\" & (VLOOKUP(Rebalance!$D$62,$F$2:$G$48,2,FALSE)+ROW()-2)),\"\")","v":{"$error":"#N/A"}},{"$f":"IF(INDIRECT(\"c\" & (VLOOKUP(Rebalance!$D$63,$F$2:$G$48,2,FALSE)+ROW()-2))=Rebalance!$D$63,INDIRECT(\"a\" & (VLOOKUP(Rebalance!$D$63,$F$2:$G$48,2,FALSE)+ROW()-2)),\"\")","v":{"$error":"#N/A"}},{"$f":"IF(INDIRECT(\"c\" & (VLOOKUP(Rebalance!$D$64,$F$2:$G$48,2,FALSE)+ROW()-2))=Rebalance!$D$64,INDIRECT(\"a\" & (VLOOKUP(Rebalance!$D$64,$F$2:$G$48,2,FALSE)+ROW()-2)),\"\")","v":{"$error":"#N/A"}},{"$f":"IF(INDIRECT(\"c\" & (VLOOKUP(Rebalance!$D$65,$F$2:$G$48,2,FALSE)+ROW()-2))=Rebalance!$D$65,INDIRECT(\"a\" & (VLOOKUP(Rebalance!$D$65,$F$2:$G$48,2,FALSE)+ROW()-2)),\"\")","v":{"$error":"#N/A"}},{"$f":"IF(INDIRECT(\"c\" & (VLOOKUP(Rebalance!$D$66,$F$2:$G$48,2,FALSE)+ROW()-2))=Rebalance!$D$66,INDIRECT(\"a\" & (VLOOKUP(Rebalance!$D$66,$F$2:$G$48,2,FALSE)+ROW()-2)),\"\")","v":{"$error":"#N/A"}}]
["Investec Global Franchise Feeder Fund H","GLOH","Investec Fund Managers",{"$f":"ROW()","v":266},null,null,{"$f":"VLOOKUP(F266,$C$2:$D$599,2,FALSE)","v":{"$error":"#N/A"}},{"$f":"IF(INDIRECT(\"c\" & (VLOOKUP(Rebalance!$D$26,$F$2:$G$48,2,FALSE)+ROW()-2))=Rebalance!$D$26,INDIRECT(\"a\" & (VLOOKUP(Rebalance!$D$26,$F$2:$G$48,2,FALSE)+ROW()-2)),\"\")","v":{"$error":"#N/A"}},{"$f":"IF(INDIRECT(\"c\" & (VLOOKUP(Rebalance!$D$27,$F$2:$G$48,2,FALSE)+ROW()-2))=Rebalance!$D$27,INDIRECT(\"a\" & (VLOOKUP(Rebalance!$D$27,$F$2:$G$48,2,FALSE)+ROW()-2)),\"\")","v":{"$error":"#N/A"}},{"$f":"IF(INDIRECT(\"c\" & (VLOOKUP(Rebalance!$D$28,$F$2:$G$48,2,FALSE)+ROW()-2))=Rebalance!$D$28,INDIRECT(\"a\" & (VLOOKUP(Rebalance!$D$28,$F$2:$G$48,2,FALSE)+ROW()-2)),\"\")","v":{"$error":"#N/A"}},{"$f":"IF(INDIRECT(\"c\" & (VLOOKUP(Rebalance!$D$29,$F$2:$G$48,2,FALSE)+ROW()-2))=Rebalance!$D$29,INDIRECT(\"a\" & (VLOOKUP(Rebalance!$D$29,$F$2:$G$48,2,FALSE)+ROW()-2)),\"\")","v":{"$error":"#N/A"}},{"$f":"IF(INDIRECT(\"c\" & (VLOOKUP(Rebalance!$D$30,$F$2:$G$48,2,FALSE)+ROW()-2))=Rebalance!$D$30,INDIRECT(\"a\" & (VLOOKUP(Rebalance!$D$30,$F$2:$G$48,2,FALSE)+ROW()-2)),\"\")","v":{"$error":"#N/A"}},{"$f":"IF(INDIRECT(\"c\" & (VLOOKUP(Rebalance!$D$31,$F$2:$G$48,2,FALSE)+ROW()-2))=Rebalance!$D$31,INDIRECT(\"a\" & (VLOOKUP(Rebalance!$D$31,$F$2:$G$48,2,FALSE)+ROW()-2)),\"\")","v":{"$error":"#N/A"}},{"$f":"IF(INDIRECT(\"c\" & (VLOOKUP(Rebalance!$D$32,$F$2:$G$48,2,FALSE)+ROW()-2))=Rebalance!$D$32,INDIRECT(\"a\" & (VLOOKUP(Rebalance!$D$32,$F$2:$G$48,2,FALSE)+ROW()-2)),\"\")","v":{"$error":"#N/A"}},{"$f":"IF(INDIRECT(\"c\" & (VLOOKUP(Rebalance!$D$33,$F$2:$G$48,2,FALSE)+ROW()-2))=Rebalance!$D$33,INDIRECT(\"a\" & (VLOOKUP(Rebalance!$D$33,$F$2:$G$48,2,FALSE)+ROW()-2)),\"\")","v":{"$error":"#N/A"}},{"$f":"IF(INDIRECT(\"c\" & (VLOOKUP(Rebalance!$D$34,$F$2:$G$48,2,FALSE)+ROW()-2))=Rebalance!$D$34,INDIRECT(\"a\" & (VLOOKUP(Rebalance!$D$34,$F$2:$G$48,2,FALSE)+ROW()-2)),\"\")","v":{"$error":"#N/A"}},{"$f":"IF(INDIRECT(\"c\" & (VLOOKUP(Rebalance!$D$35,$F$2:$G$48,2,FALSE)+ROW()-2))=Rebalance!$D$35,INDIRECT(\"a\" & (VLOOKUP(Rebalance!$D$35,$F$2:$G$48,2,FALSE)+ROW()-2)),\"\")","v":{"$error":"#N/A"}},{"$f":"IF(INDIRECT(\"c\" & (VLOOKUP(Rebalance!$D$36,$F$2:$G$48,2,FALSE)+ROW()-2))=Rebalance!$D$36,INDIRECT(\"a\" & (VLOOKUP(Rebalance!$D$36,$F$2:$G$48,2,FALSE)+ROW()-2)),\"\")","v":{"$error":"#N/A"}},{"$f":"IF(INDIRECT(\"c\" & (VLOOKUP(Rebalance!$D$37,$F$2:$G$48,2,FALSE)+ROW()-2))=Rebalance!$D$37,INDIRECT(\"a\" & (VLOOKUP(Rebalance!$D$37,$F$2:$G$48,2,FALSE)+ROW()-2)),\"\")","v":{"$error":"#N/A"}},{"$f":"IF(INDIRECT(\"c\" & (VLOOKUP(Rebalance!$D$38,$F$2:$G$48,2,FALSE)+ROW()-2))=Rebalance!$D$38,INDIRECT(\"a\" & (VLOOKUP(Rebalance!$D$38,$F$2:$G$48,2,FALSE)+ROW()-2)),\"\")","v":{"$error":"#N/A"}},{"$f":"IF(INDIRECT(\"c\" & (VLOOKUP(Rebalance!$D$39,$F$2:$G$48,2,FALSE)+ROW()-2))=Rebalance!$D$39,INDIRECT(\"a\" & (VLOOKUP(Rebalance!$D$39,$F$2:$G$48,2,FALSE)+ROW()-2)),\"\")","v":{"$error":"#N/A"}},{"$f":"IF(INDIRECT(\"c\" & (VLOOKUP(Rebalance!$D$40,$F$2:$G$48,2,FALSE)+ROW()-2))=Rebalance!$D$40,INDIRECT(\"a\" & (VLOOKUP(Rebalance!$D$40,$F$2:$G$48,2,FALSE)+ROW()-2)),\"\")","v":{"$error":"#N/A"}},{"$f":"IF(INDIRECT(\"c\" & (VLOOKUP(Rebalance!$D$52,$F$2:$G$48,2,FALSE)+ROW()-2))=Rebalance!$D$52,INDIRECT(\"a\" & (VLOOKUP(Rebalance!$D$52,$F$2:$G$48,2,FALSE)+ROW()-2)),\"\")","v":{"$error":"#N/A"}},{"$f":"IF(INDIRECT(\"c\" & (VLOOKUP(Rebalance!$D$53,$F$2:$G$48,2,FALSE)+ROW()-2))=Rebalance!$D$53,INDIRECT(\"a\" & (VLOOKUP(Rebalance!$D$53,$F$2:$G$48,2,FALSE)+ROW()-2)),\"\")","v":{"$error":"#N/A"}},{"$f":"IF(INDIRECT(\"c\" & (VLOOKUP(Rebalance!$D$54,$F$2:$G$48,2,FALSE)+ROW()-2))=Rebalance!$D$54,INDIRECT(\"a\" & (VLOOKUP(Rebalance!$D$54,$F$2:$G$48,2,FALSE)+ROW()-2)),\"\")","v":{"$error":"#N/A"}},{"$f":"IF(INDIRECT(\"c\" & (VLOOKUP(Rebalance!$D$55,$F$2:$G$48,2,FALSE)+ROW()-2))=Rebalance!$D$55,INDIRECT(\"a\" & (VLOOKUP(Rebalance!$D$55,$F$2:$G$48,2,FALSE)+ROW()-2)),\"\")","v":{"$error":"#N/A"}},{"$f":"IF(INDIRECT(\"c\" & (VLOOKUP(Rebalance!$D$56,$F$2:$G$48,2,FALSE)+ROW()-2))=Rebalance!$D$56,INDIRECT(\"a\" & (VLOOKUP(Rebalance!$D$56,$F$2:$G$48,2,FALSE)+ROW()-2)),\"\")","v":{"$error":"#N/A"}},{"$f":"IF(INDIRECT(\"c\" & (VLOOKUP(Rebalance!$D$57,$F$2:$G$48,2,FALSE)+ROW()-2))=Rebalance!$D$57,INDIRECT(\"a\" & (VLOOKUP(Rebalance!$D$57,$F$2:$G$48,2,FALSE)+ROW()-2)),\"\")","v":{"$error":"#N/A"}},{"$f":"IF(INDIRECT(\"c\" & (VLOOKUP(Rebalance!$D$58,$F$2:$G$48,2,FALSE)+ROW()-2))=Rebalance!$D$58,INDIRECT(\"a\" & (VLOOKUP(Rebalance!$D$58,$F$2:$G$48,2,FALSE)+ROW()-2)),\"\")","v":{"$error":"#N/A"}},{"$f":"IF(INDIRECT(\"c\" & (VLOOKUP(Rebalance!$D$59,$F$2:$G$48,2,FALSE)+ROW()-2))=Rebalance!$D$59,INDIRECT(\"a\" & (VLOOKUP(Rebalance!$D$59,$F$2:$G$48,2,FALSE)+ROW()-2)),\"\")","v":{"$error":"#N/A"}},{"$f":"IF(INDIRECT(\"c\" & (VLOOKUP(Rebalance!$D$60,$F$2:$G$48,2,FALSE)+ROW()-2))=Rebalance!$D$60,INDIRECT(\"a\" & (VLOOKUP(Rebalance!$D$60,$F$2:$G$48,2,FALSE)+ROW()-2)),\"\")","v":{"$error":"#N/A"}},{"$f":"IF(INDIRECT(\"c\" & (VLOOKUP(Rebalance!$D$61,$F$2:$G$48,2,FALSE)+ROW()-2))=Rebalance!$D$61,INDIRECT(\"a\" & (VLOOKUP(Rebalance!$D$61,$F$2:$G$48,2,FALSE)+ROW()-2)),\"\")","v":{"$error":"#N/A"}},{"$f":"IF(INDIRECT(\"c\" & (VLOOKUP(Rebalance!$D$62,$F$2:$G$48,2,FALSE)+ROW()-2))=Rebalance!$D$62,INDIRECT(\"a\" & (VLOOKUP(Rebalance!$D$62,$F$2:$G$48,2,FALSE)+ROW()-2)),\"\")","v":{"$error":"#N/A"}},{"$f":"IF(INDIRECT(\"c\" & (VLOOKUP(Rebalance!$D$63,$F$2:$G$48,2,FALSE)+ROW()-2))=Rebalance!$D$63,INDIRECT(\"a\" & (VLOOKUP(Rebalance!$D$63,$F$2:$G$48,2,FALSE)+ROW()-2)),\"\")","v":{"$error":"#N/A"}},{"$f":"IF(INDIRECT(\"c\" & (VLOOKUP(Rebalance!$D$64,$F$2:$G$48,2,FALSE)+ROW()-2))=Rebalance!$D$64,INDIRECT(\"a\" & (VLOOKUP(Rebalance!$D$64,$F$2:$G$48,2,FALSE)+ROW()-2)),\"\")","v":{"$error":"#N/A"}},{"$f":"IF(INDIRECT(\"c\" & (VLOOKUP(Rebalance!$D$65,$F$2:$G$48,2,FALSE)+ROW()-2))=Rebalance!$D$65,INDIRECT(\"a\" & (VLOOKUP(Rebalance!$D$65,$F$2:$G$48,2,FALSE)+ROW()-2)),\"\")","v":{"$error":"#N/A"}},{"$f":"IF(INDIRECT(\"c\" & (VLOOKUP(Rebalance!$D$66,$F$2:$G$48,2,FALSE)+ROW()-2))=Rebalance!$D$66,INDIRECT(\"a\" & (VLOOKUP(Rebalance!$D$66,$F$2:$G$48,2,FALSE)+ROW()-2)),\"\")","v":{"$error":"#N/A"}}]
["Investec Global Multi-Asset Income Feeder Fund Class H","GOIH","Investec Fund Managers",{"$f":"ROW()","v":267},null,null,{"$f":"VLOOKUP(F267,$C$2:$D$599,2,FALSE)","v":{"$error":"#N/A"}},{"$f":"IF(INDIRECT(\"c\" & (VLOOKUP(Rebalance!$D$26,$F$2:$G$48,2,FALSE)+ROW()-2))=Rebalance!$D$26,INDIRECT(\"a\" & (VLOOKUP(Rebalance!$D$26,$F$2:$G$48,2,FALSE)+ROW()-2)),\"\")","v":{"$error":"#N/A"}},{"$f":"IF(INDIRECT(\"c\" & (VLOOKUP(Rebalance!$D$27,$F$2:$G$48,2,FALSE)+ROW()-2))=Rebalance!$D$27,INDIRECT(\"a\" & (VLOOKUP(Rebalance!$D$27,$F$2:$G$48,2,FALSE)+ROW()-2)),\"\")","v":{"$error":"#N/A"}},{"$f":"IF(INDIRECT(\"c\" & (VLOOKUP(Rebalance!$D$28,$F$2:$G$48,2,FALSE)+ROW()-2))=Rebalance!$D$28,INDIRECT(\"a\" & (VLOOKUP(Rebalance!$D$28,$F$2:$G$48,2,FALSE)+ROW()-2)),\"\")","v":{"$error":"#N/A"}},{"$f":"IF(INDIRECT(\"c\" & (VLOOKUP(Rebalance!$D$29,$F$2:$G$48,2,FALSE)+ROW()-2))=Rebalance!$D$29,INDIRECT(\"a\" & (VLOOKUP(Rebalance!$D$29,$F$2:$G$48,2,FALSE)+ROW()-2)),\"\")","v":{"$error":"#N/A"}},{"$f":"IF(INDIRECT(\"c\" & (VLOOKUP(Rebalance!$D$30,$F$2:$G$48,2,FALSE)+ROW()-2))=Rebalance!$D$30,INDIRECT(\"a\" & (VLOOKUP(Rebalance!$D$30,$F$2:$G$48,2,FALSE)+ROW()-2)),\"\")","v":{"$error":"#N/A"}},{"$f":"IF(INDIRECT(\"c\" & (VLOOKUP(Rebalance!$D$31,$F$2:$G$48,2,FALSE)+ROW()-2))=Rebalance!$D$31,INDIRECT(\"a\" & (VLOOKUP(Rebalance!$D$31,$F$2:$G$48,2,FALSE)+ROW()-2)),\"\")","v":{"$error":"#N/A"}},{"$f":"IF(INDIRECT(\"c\" & (VLOOKUP(Rebalance!$D$32,$F$2:$G$48,2,FALSE)+ROW()-2))=Rebalance!$D$32,INDIRECT(\"a\" & (VLOOKUP(Rebalance!$D$32,$F$2:$G$48,2,FALSE)+ROW()-2)),\"\")","v":{"$error":"#N/A"}},{"$f":"IF(INDIRECT(\"c\" & (VLOOKUP(Rebalance!$D$33,$F$2:$G$48,2,FALSE)+ROW()-2))=Rebalance!$D$33,INDIRECT(\"a\" & (VLOOKUP(Rebalance!$D$33,$F$2:$G$48,2,FALSE)+ROW()-2)),\"\")","v":{"$error":"#N/A"}},{"$f":"IF(INDIRECT(\"c\" & (VLOOKUP(Rebalance!$D$34,$F$2:$G$48,2,FALSE)+ROW()-2))=Rebalance!$D$34,INDIRECT(\"a\" & (VLOOKUP(Rebalance!$D$34,$F$2:$G$48,2,FALSE)+ROW()-2)),\"\")","v":{"$error":"#N/A"}},{"$f":"IF(INDIRECT(\"c\" & (VLOOKUP(Rebalance!$D$35,$F$2:$G$48,2,FALSE)+ROW()-2))=Rebalance!$D$35,INDIRECT(\"a\" & (VLOOKUP(Rebalance!$D$35,$F$2:$G$48,2,FALSE)+ROW()-2)),\"\")","v":{"$error":"#N/A"}},{"$f":"IF(INDIRECT(\"c\" & (VLOOKUP(Rebalance!$D$36,$F$2:$G$48,2,FALSE)+ROW()-2))=Rebalance!$D$36,INDIRECT(\"a\" & (VLOOKUP(Rebalance!$D$36,$F$2:$G$48,2,FALSE)+ROW()-2)),\"\")","v":{"$error":"#N/A"}},{"$f":"IF(INDIRECT(\"c\" & (VLOOKUP(Rebalance!$D$37,$F$2:$G$48,2,FALSE)+ROW()-2))=Rebalance!$D$37,INDIRECT(\"a\" & (VLOOKUP(Rebalance!$D$37,$F$2:$G$48,2,FALSE)+ROW()-2)),\"\")","v":{"$error":"#N/A"}},{"$f":"IF(INDIRECT(\"c\" & (VLOOKUP(Rebalance!$D$38,$F$2:$G$48,2,FALSE)+ROW()-2))=Rebalance!$D$38,INDIRECT(\"a\" & (VLOOKUP(Rebalance!$D$38,$F$2:$G$48,2,FALSE)+ROW()-2)),\"\")","v":{"$error":"#N/A"}},{"$f":"IF(INDIRECT(\"c\" & (VLOOKUP(Rebalance!$D$39,$F$2:$G$48,2,FALSE)+ROW()-2))=Rebalance!$D$39,INDIRECT(\"a\" & (VLOOKUP(Rebalance!$D$39,$F$2:$G$48,2,FALSE)+ROW()-2)),\"\")","v":{"$error":"#N/A"}},{"$f":"IF(INDIRECT(\"c\" & (VLOOKUP(Rebalance!$D$40,$F$2:$G$48,2,FALSE)+ROW()-2))=Rebalance!$D$40,INDIRECT(\"a\" & (VLOOKUP(Rebalance!$D$40,$F$2:$G$48,2,FALSE)+ROW()-2)),\"\")","v":{"$error":"#N/A"}},{"$f":"IF(INDIRECT(\"c\" & (VLOOKUP(Rebalance!$D$52,$F$2:$G$48,2,FALSE)+ROW()-2))=Rebalance!$D$52,INDIRECT(\"a\" & (VLOOKUP(Rebalance!$D$52,$F$2:$G$48,2,FALSE)+ROW()-2)),\"\")","v":{"$error":"#N/A"}},{"$f":"IF(INDIRECT(\"c\" & (VLOOKUP(Rebalance!$D$53,$F$2:$G$48,2,FALSE)+ROW()-2))=Rebalance!$D$53,INDIRECT(\"a\" & (VLOOKUP(Rebalance!$D$53,$F$2:$G$48,2,FALSE)+ROW()-2)),\"\")","v":{"$error":"#N/A"}},{"$f":"IF(INDIRECT(\"c\" & (VLOOKUP(Rebalance!$D$54,$F$2:$G$48,2,FALSE)+ROW()-2))=Rebalance!$D$54,INDIRECT(\"a\" & (VLOOKUP(Rebalance!$D$54,$F$2:$G$48,2,FALSE)+ROW()-2)),\"\")","v":{"$error":"#N/A"}},{"$f":"IF(INDIRECT(\"c\" & (VLOOKUP(Rebalance!$D$55,$F$2:$G$48,2,FALSE)+ROW()-2))=Rebalance!$D$55,INDIRECT(\"a\" & (VLOOKUP(Rebalance!$D$55,$F$2:$G$48,2,FALSE)+ROW()-2)),\"\")","v":{"$error":"#N/A"}},{"$f":"IF(INDIRECT(\"c\" & (VLOOKUP(Rebalance!$D$56,$F$2:$G$48,2,FALSE)+ROW()-2))=Rebalance!$D$56,INDIRECT(\"a\" & (VLOOKUP(Rebalance!$D$56,$F$2:$G$48,2,FALSE)+ROW()-2)),\"\")","v":{"$error":"#N/A"}},{"$f":"IF(INDIRECT(\"c\" & (VLOOKUP(Rebalance!$D$57,$F$2:$G$48,2,FALSE)+ROW()-2))=Rebalance!$D$57,INDIRECT(\"a\" & (VLOOKUP(Rebalance!$D$57,$F$2:$G$48,2,FALSE)+ROW()-2)),\"\")","v":{"$error":"#N/A"}},{"$f":"IF(INDIRECT(\"c\" & (VLOOKUP(Rebalance!$D$58,$F$2:$G$48,2,FALSE)+ROW()-2))=Rebalance!$D$58,INDIRECT(\"a\" & (VLOOKUP(Rebalance!$D$58,$F$2:$G$48,2,FALSE)+ROW()-2)),\"\")","v":{"$error":"#N/A"}},{"$f":"IF(INDIRECT(\"c\" & (VLOOKUP(Rebalance!$D$59,$F$2:$G$48,2,FALSE)+ROW()-2))=Rebalance!$D$59,INDIRECT(\"a\" & (VLOOKUP(Rebalance!$D$59,$F$2:$G$48,2,FALSE)+ROW()-2)),\"\")","v":{"$error":"#N/A"}},{"$f":"IF(INDIRECT(\"c\" & (VLOOKUP(Rebalance!$D$60,$F$2:$G$48,2,FALSE)+ROW()-2))=Rebalance!$D$60,INDIRECT(\"a\" & (VLOOKUP(Rebalance!$D$60,$F$2:$G$48,2,FALSE)+ROW()-2)),\"\")","v":{"$error":"#N/A"}},{"$f":"IF(INDIRECT(\"c\" & (VLOOKUP(Rebalance!$D$61,$F$2:$G$48,2,FALSE)+ROW()-2))=Rebalance!$D$61,INDIRECT(\"a\" & (VLOOKUP(Rebalance!$D$61,$F$2:$G$48,2,FALSE)+ROW()-2)),\"\")","v":{"$error":"#N/A"}},{"$f":"IF(INDIRECT(\"c\" & (VLOOKUP(Rebalance!$D$62,$F$2:$G$48,2,FALSE)+ROW()-2))=Rebalance!$D$62,INDIRECT(\"a\" & (VLOOKUP(Rebalance!$D$62,$F$2:$G$48,2,FALSE)+ROW()-2)),\"\")","v":{"$error":"#N/A"}},{"$f":"IF(INDIRECT(\"c\" & (VLOOKUP(Rebalance!$D$63,$F$2:$G$48,2,FALSE)+ROW()-2))=Rebalance!$D$63,INDIRECT(\"a\" & (VLOOKUP(Rebalance!$D$63,$F$2:$G$48,2,FALSE)+ROW()-2)),\"\")","v":{"$error":"#N/A"}},{"$f":"IF(INDIRECT(\"c\" & (VLOOKUP(Rebalance!$D$64,$F$2:$G$48,2,FALSE)+ROW()-2))=Rebalance!$D$64,INDIRECT(\"a\" & (VLOOKUP(Rebalance!$D$64,$F$2:$G$48,2,FALSE)+ROW()-2)),\"\")","v":{"$error":"#N/A"}},{"$f":"IF(INDIRECT(\"c\" & (VLOOKUP(Rebalance!$D$65,$F$2:$G$48,2,FALSE)+ROW()-2))=Rebalance!$D$65,INDIRECT(\"a\" & (VLOOKUP(Rebalance!$D$65,$F$2:$G$48,2,FALSE)+ROW()-2)),\"\")","v":{"$error":"#N/A"}},{"$f":"IF(INDIRECT(\"c\" & (VLOOKUP(Rebalance!$D$66,$F$2:$G$48,2,FALSE)+ROW()-2))=Rebalance!$D$66,INDIRECT(\"a\" & (VLOOKUP(Rebalance!$D$66,$F$2:$G$48,2,FALSE)+ROW()-2)),\"\")","v":{"$error":"#N/A"}}]
["Investec Global Strategic Managed Feeder Fund H","GBFH","Investec Fund Managers",{"$f":"ROW()","v":268},null,null,{"$f":"VLOOKUP(F268,$C$2:$D$599,2,FALSE)","v":{"$error":"#N/A"}},{"$f":"IF(INDIRECT(\"c\" & (VLOOKUP(Rebalance!$D$26,$F$2:$G$48,2,FALSE)+ROW()-2))=Rebalance!$D$26,INDIRECT(\"a\" & (VLOOKUP(Rebalance!$D$26,$F$2:$G$48,2,FALSE)+ROW()-2)),\"\")","v":{"$error":"#N/A"}},{"$f":"IF(INDIRECT(\"c\" & (VLOOKUP(Rebalance!$D$27,$F$2:$G$48,2,FALSE)+ROW()-2))=Rebalance!$D$27,INDIRECT(\"a\" & (VLOOKUP(Rebalance!$D$27,$F$2:$G$48,2,FALSE)+ROW()-2)),\"\")","v":{"$error":"#N/A"}},{"$f":"IF(INDIRECT(\"c\" & (VLOOKUP(Rebalance!$D$28,$F$2:$G$48,2,FALSE)+ROW()-2))=Rebalance!$D$28,INDIRECT(\"a\" & (VLOOKUP(Rebalance!$D$28,$F$2:$G$48,2,FALSE)+ROW()-2)),\"\")","v":{"$error":"#N/A"}},{"$f":"IF(INDIRECT(\"c\" & (VLOOKUP(Rebalance!$D$29,$F$2:$G$48,2,FALSE)+ROW()-2))=Rebalance!$D$29,INDIRECT(\"a\" & (VLOOKUP(Rebalance!$D$29,$F$2:$G$48,2,FALSE)+ROW()-2)),\"\")","v":{"$error":"#N/A"}},{"$f":"IF(INDIRECT(\"c\" & (VLOOKUP(Rebalance!$D$30,$F$2:$G$48,2,FALSE)+ROW()-2))=Rebalance!$D$30,INDIRECT(\"a\" & (VLOOKUP(Rebalance!$D$30,$F$2:$G$48,2,FALSE)+ROW()-2)),\"\")","v":{"$error":"#N/A"}},{"$f":"IF(INDIRECT(\"c\" & (VLOOKUP(Rebalance!$D$31,$F$2:$G$48,2,FALSE)+ROW()-2))=Rebalance!$D$31,INDIRECT(\"a\" & (VLOOKUP(Rebalance!$D$31,$F$2:$G$48,2,FALSE)+ROW()-2)),\"\")","v":{"$error":"#N/A"}},{"$f":"IF(INDIRECT(\"c\" & (VLOOKUP(Rebalance!$D$32,$F$2:$G$48,2,FALSE)+ROW()-2))=Rebalance!$D$32,INDIRECT(\"a\" & (VLOOKUP(Rebalance!$D$32,$F$2:$G$48,2,FALSE)+ROW()-2)),\"\")","v":{"$error":"#N/A"}},{"$f":"IF(INDIRECT(\"c\" & (VLOOKUP(Rebalance!$D$33,$F$2:$G$48,2,FALSE)+ROW()-2))=Rebalance!$D$33,INDIRECT(\"a\" & (VLOOKUP(Rebalance!$D$33,$F$2:$G$48,2,FALSE)+ROW()-2)),\"\")","v":{"$error":"#N/A"}},{"$f":"IF(INDIRECT(\"c\" & (VLOOKUP(Rebalance!$D$34,$F$2:$G$48,2,FALSE)+ROW()-2))=Rebalance!$D$34,INDIRECT(\"a\" & (VLOOKUP(Rebalance!$D$34,$F$2:$G$48,2,FALSE)+ROW()-2)),\"\")","v":{"$error":"#N/A"}},{"$f":"IF(INDIRECT(\"c\" & (VLOOKUP(Rebalance!$D$35,$F$2:$G$48,2,FALSE)+ROW()-2))=Rebalance!$D$35,INDIRECT(\"a\" & (VLOOKUP(Rebalance!$D$35,$F$2:$G$48,2,FALSE)+ROW()-2)),\"\")","v":{"$error":"#N/A"}},{"$f":"IF(INDIRECT(\"c\" & (VLOOKUP(Rebalance!$D$36,$F$2:$G$48,2,FALSE)+ROW()-2))=Rebalance!$D$36,INDIRECT(\"a\" & (VLOOKUP(Rebalance!$D$36,$F$2:$G$48,2,FALSE)+ROW()-2)),\"\")","v":{"$error":"#N/A"}},{"$f":"IF(INDIRECT(\"c\" & (VLOOKUP(Rebalance!$D$37,$F$2:$G$48,2,FALSE)+ROW()-2))=Rebalance!$D$37,INDIRECT(\"a\" & (VLOOKUP(Rebalance!$D$37,$F$2:$G$48,2,FALSE)+ROW()-2)),\"\")","v":{"$error":"#N/A"}},{"$f":"IF(INDIRECT(\"c\" & (VLOOKUP(Rebalance!$D$38,$F$2:$G$48,2,FALSE)+ROW()-2))=Rebalance!$D$38,INDIRECT(\"a\" & (VLOOKUP(Rebalance!$D$38,$F$2:$G$48,2,FALSE)+ROW()-2)),\"\")","v":{"$error":"#N/A"}},{"$f":"IF(INDIRECT(\"c\" & (VLOOKUP(Rebalance!$D$39,$F$2:$G$48,2,FALSE)+ROW()-2))=Rebalance!$D$39,INDIRECT(\"a\" & (VLOOKUP(Rebalance!$D$39,$F$2:$G$48,2,FALSE)+ROW()-2)),\"\")","v":{"$error":"#N/A"}},{"$f":"IF(INDIRECT(\"c\" & (VLOOKUP(Rebalance!$D$40,$F$2:$G$48,2,FALSE)+ROW()-2))=Rebalance!$D$40,INDIRECT(\"a\" & (VLOOKUP(Rebalance!$D$40,$F$2:$G$48,2,FALSE)+ROW()-2)),\"\")","v":{"$error":"#N/A"}},{"$f":"IF(INDIRECT(\"c\" & (VLOOKUP(Rebalance!$D$52,$F$2:$G$48,2,FALSE)+ROW()-2))=Rebalance!$D$52,INDIRECT(\"a\" & (VLOOKUP(Rebalance!$D$52,$F$2:$G$48,2,FALSE)+ROW()-2)),\"\")","v":{"$error":"#N/A"}},{"$f":"IF(INDIRECT(\"c\" & (VLOOKUP(Rebalance!$D$53,$F$2:$G$48,2,FALSE)+ROW()-2))=Rebalance!$D$53,INDIRECT(\"a\" & (VLOOKUP(Rebalance!$D$53,$F$2:$G$48,2,FALSE)+ROW()-2)),\"\")","v":{"$error":"#N/A"}},{"$f":"IF(INDIRECT(\"c\" & (VLOOKUP(Rebalance!$D$54,$F$2:$G$48,2,FALSE)+ROW()-2))=Rebalance!$D$54,INDIRECT(\"a\" & (VLOOKUP(Rebalance!$D$54,$F$2:$G$48,2,FALSE)+ROW()-2)),\"\")","v":{"$error":"#N/A"}},{"$f":"IF(INDIRECT(\"c\" & (VLOOKUP(Rebalance!$D$55,$F$2:$G$48,2,FALSE)+ROW()-2))=Rebalance!$D$55,INDIRECT(\"a\" & (VLOOKUP(Rebalance!$D$55,$F$2:$G$48,2,FALSE)+ROW()-2)),\"\")","v":{"$error":"#N/A"}},{"$f":"IF(INDIRECT(\"c\" & (VLOOKUP(Rebalance!$D$56,$F$2:$G$48,2,FALSE)+ROW()-2))=Rebalance!$D$56,INDIRECT(\"a\" & (VLOOKUP(Rebalance!$D$56,$F$2:$G$48,2,FALSE)+ROW()-2)),\"\")","v":{"$error":"#N/A"}},{"$f":"IF(INDIRECT(\"c\" & (VLOOKUP(Rebalance!$D$57,$F$2:$G$48,2,FALSE)+ROW()-2))=Rebalance!$D$57,INDIRECT(\"a\" & (VLOOKUP(Rebalance!$D$57,$F$2:$G$48,2,FALSE)+ROW()-2)),\"\")","v":{"$error":"#N/A"}},{"$f":"IF(INDIRECT(\"c\" & (VLOOKUP(Rebalance!$D$58,$F$2:$G$48,2,FALSE)+ROW()-2))=Rebalance!$D$58,INDIRECT(\"a\" & (VLOOKUP(Rebalance!$D$58,$F$2:$G$48,2,FALSE)+ROW()-2)),\"\")","v":{"$error":"#N/A"}},{"$f":"IF(INDIRECT(\"c\" & (VLOOKUP(Rebalance!$D$59,$F$2:$G$48,2,FALSE)+ROW()-2))=Rebalance!$D$59,INDIRECT(\"a\" & (VLOOKUP(Rebalance!$D$59,$F$2:$G$48,2,FALSE)+ROW()-2)),\"\")","v":{"$error":"#N/A"}},{"$f":"IF(INDIRECT(\"c\" & (VLOOKUP(Rebalance!$D$60,$F$2:$G$48,2,FALSE)+ROW()-2))=Rebalance!$D$60,INDIRECT(\"a\" & (VLOOKUP(Rebalance!$D$60,$F$2:$G$48,2,FALSE)+ROW()-2)),\"\")","v":{"$error":"#N/A"}},{"$f":"IF(INDIRECT(\"c\" & (VLOOKUP(Rebalance!$D$61,$F$2:$G$48,2,FALSE)+ROW()-2))=Rebalance!$D$61,INDIRECT(\"a\" & (VLOOKUP(Rebalance!$D$61,$F$2:$G$48,2,FALSE)+ROW()-2)),\"\")","v":{"$error":"#N/A"}},{"$f":"IF(INDIRECT(\"c\" & (VLOOKUP(Rebalance!$D$62,$F$2:$G$48,2,FALSE)+ROW()-2))=Rebalance!$D$62,INDIRECT(\"a\" & (VLOOKUP(Rebalance!$D$62,$F$2:$G$48,2,FALSE)+ROW()-2)),\"\")","v":{"$error":"#N/A"}},{"$f":"IF(INDIRECT(\"c\" & (VLOOKUP(Rebalance!$D$63,$F$2:$G$48,2,FALSE)+ROW()-2))=Rebalance!$D$63,INDIRECT(\"a\" & (VLOOKUP(Rebalance!$D$63,$F$2:$G$48,2,FALSE)+ROW()-2)),\"\")","v":{"$error":"#N/A"}},{"$f":"IF(INDIRECT(\"c\" & (VLOOKUP(Rebalance!$D$64,$F$2:$G$48,2,FALSE)+ROW()-2))=Rebalance!$D$64,INDIRECT(\"a\" & (VLOOKUP(Rebalance!$D$64,$F$2:$G$48,2,FALSE)+ROW()-2)),\"\")","v":{"$error":"#N/A"}},{"$f":"IF(INDIRECT(\"c\" & (VLOOKUP(Rebalance!$D$65,$F$2:$G$48,2,FALSE)+ROW()-2))=Rebalance!$D$65,INDIRECT(\"a\" & (VLOOKUP(Rebalance!$D$65,$F$2:$G$48,2,FALSE)+ROW()-2)),\"\")","v":{"$error":"#N/A"}},{"$f":"IF(INDIRECT(\"c\" & (VLOOKUP(Rebalance!$D$66,$F$2:$G$48,2,FALSE)+ROW()-2))=Rebalance!$D$66,INDIRECT(\"a\" & (VLOOKUP(Rebalance!$D$66,$F$2:$G$48,2,FALSE)+ROW()-2)),\"\")","v":{"$error":"#N/A"}}]
["Investec High Income Fund H","HIGH","Investec Fund Managers",{"$f":"ROW()","v":269},null,null,{"$f":"VLOOKUP(F269,$C$2:$D$599,2,FALSE)","v":{"$error":"#N/A"}},{"$f":"IF(INDIRECT(\"c\" & (VLOOKUP(Rebalance!$D$26,$F$2:$G$48,2,FALSE)+ROW()-2))=Rebalance!$D$26,INDIRECT(\"a\" & (VLOOKUP(Rebalance!$D$26,$F$2:$G$48,2,FALSE)+ROW()-2)),\"\")","v":{"$error":"#N/A"}},{"$f":"IF(INDIRECT(\"c\" & (VLOOKUP(Rebalance!$D$27,$F$2:$G$48,2,FALSE)+ROW()-2))=Rebalance!$D$27,INDIRECT(\"a\" & (VLOOKUP(Rebalance!$D$27,$F$2:$G$48,2,FALSE)+ROW()-2)),\"\")","v":{"$error":"#N/A"}},{"$f":"IF(INDIRECT(\"c\" & (VLOOKUP(Rebalance!$D$28,$F$2:$G$48,2,FALSE)+ROW()-2))=Rebalance!$D$28,INDIRECT(\"a\" & (VLOOKUP(Rebalance!$D$28,$F$2:$G$48,2,FALSE)+ROW()-2)),\"\")","v":{"$error":"#N/A"}},{"$f":"IF(INDIRECT(\"c\" & (VLOOKUP(Rebalance!$D$29,$F$2:$G$48,2,FALSE)+ROW()-2))=Rebalance!$D$29,INDIRECT(\"a\" & (VLOOKUP(Rebalance!$D$29,$F$2:$G$48,2,FALSE)+ROW()-2)),\"\")","v":{"$error":"#N/A"}},{"$f":"IF(INDIRECT(\"c\" & (VLOOKUP(Rebalance!$D$30,$F$2:$G$48,2,FALSE)+ROW()-2))=Rebalance!$D$30,INDIRECT(\"a\" & (VLOOKUP(Rebalance!$D$30,$F$2:$G$48,2,FALSE)+ROW()-2)),\"\")","v":{"$error":"#N/A"}},{"$f":"IF(INDIRECT(\"c\" & (VLOOKUP(Rebalance!$D$31,$F$2:$G$48,2,FALSE)+ROW()-2))=Rebalance!$D$31,INDIRECT(\"a\" & (VLOOKUP(Rebalance!$D$31,$F$2:$G$48,2,FALSE)+ROW()-2)),\"\")","v":{"$error":"#N/A"}},{"$f":"IF(INDIRECT(\"c\" & (VLOOKUP(Rebalance!$D$32,$F$2:$G$48,2,FALSE)+ROW()-2))=Rebalance!$D$32,INDIRECT(\"a\" & (VLOOKUP(Rebalance!$D$32,$F$2:$G$48,2,FALSE)+ROW()-2)),\"\")","v":{"$error":"#N/A"}},{"$f":"IF(INDIRECT(\"c\" & (VLOOKUP(Rebalance!$D$33,$F$2:$G$48,2,FALSE)+ROW()-2))=Rebalance!$D$33,INDIRECT(\"a\" & (VLOOKUP(Rebalance!$D$33,$F$2:$G$48,2,FALSE)+ROW()-2)),\"\")","v":{"$error":"#N/A"}},{"$f":"IF(INDIRECT(\"c\" & (VLOOKUP(Rebalance!$D$34,$F$2:$G$48,2,FALSE)+ROW()-2))=Rebalance!$D$34,INDIRECT(\"a\" & (VLOOKUP(Rebalance!$D$34,$F$2:$G$48,2,FALSE)+ROW()-2)),\"\")","v":{"$error":"#N/A"}},{"$f":"IF(INDIRECT(\"c\" & (VLOOKUP(Rebalance!$D$35,$F$2:$G$48,2,FALSE)+ROW()-2))=Rebalance!$D$35,INDIRECT(\"a\" & (VLOOKUP(Rebalance!$D$35,$F$2:$G$48,2,FALSE)+ROW()-2)),\"\")","v":{"$error":"#N/A"}},{"$f":"IF(INDIRECT(\"c\" & (VLOOKUP(Rebalance!$D$36,$F$2:$G$48,2,FALSE)+ROW()-2))=Rebalance!$D$36,INDIRECT(\"a\" & (VLOOKUP(Rebalance!$D$36,$F$2:$G$48,2,FALSE)+ROW()-2)),\"\")","v":{"$error":"#N/A"}},{"$f":"IF(INDIRECT(\"c\" & (VLOOKUP(Rebalance!$D$37,$F$2:$G$48,2,FALSE)+ROW()-2))=Rebalance!$D$37,INDIRECT(\"a\" & (VLOOKUP(Rebalance!$D$37,$F$2:$G$48,2,FALSE)+ROW()-2)),\"\")","v":{"$error":"#N/A"}},{"$f":"IF(INDIRECT(\"c\" & (VLOOKUP(Rebalance!$D$38,$F$2:$G$48,2,FALSE)+ROW()-2))=Rebalance!$D$38,INDIRECT(\"a\" & (VLOOKUP(Rebalance!$D$38,$F$2:$G$48,2,FALSE)+ROW()-2)),\"\")","v":{"$error":"#N/A"}},{"$f":"IF(INDIRECT(\"c\" & (VLOOKUP(Rebalance!$D$39,$F$2:$G$48,2,FALSE)+ROW()-2))=Rebalance!$D$39,INDIRECT(\"a\" & (VLOOKUP(Rebalance!$D$39,$F$2:$G$48,2,FALSE)+ROW()-2)),\"\")","v":{"$error":"#N/A"}},{"$f":"IF(INDIRECT(\"c\" & (VLOOKUP(Rebalance!$D$40,$F$2:$G$48,2,FALSE)+ROW()-2))=Rebalance!$D$40,INDIRECT(\"a\" & (VLOOKUP(Rebalance!$D$40,$F$2:$G$48,2,FALSE)+ROW()-2)),\"\")","v":{"$error":"#N/A"}},{"$f":"IF(INDIRECT(\"c\" & (VLOOKUP(Rebalance!$D$52,$F$2:$G$48,2,FALSE)+ROW()-2))=Rebalance!$D$52,INDIRECT(\"a\" & (VLOOKUP(Rebalance!$D$52,$F$2:$G$48,2,FALSE)+ROW()-2)),\"\")","v":{"$error":"#N/A"}},{"$f":"IF(INDIRECT(\"c\" & (VLOOKUP(Rebalance!$D$53,$F$2:$G$48,2,FALSE)+ROW()-2))=Rebalance!$D$53,INDIRECT(\"a\" & (VLOOKUP(Rebalance!$D$53,$F$2:$G$48,2,FALSE)+ROW()-2)),\"\")","v":{"$error":"#N/A"}},{"$f":"IF(INDIRECT(\"c\" & (VLOOKUP(Rebalance!$D$54,$F$2:$G$48,2,FALSE)+ROW()-2))=Rebalance!$D$54,INDIRECT(\"a\" & (VLOOKUP(Rebalance!$D$54,$F$2:$G$48,2,FALSE)+ROW()-2)),\"\")","v":{"$error":"#N/A"}},{"$f":"IF(INDIRECT(\"c\" & (VLOOKUP(Rebalance!$D$55,$F$2:$G$48,2,FALSE)+ROW()-2))=Rebalance!$D$55,INDIRECT(\"a\" & (VLOOKUP(Rebalance!$D$55,$F$2:$G$48,2,FALSE)+ROW()-2)),\"\")","v":{"$error":"#N/A"}},{"$f":"IF(INDIRECT(\"c\" & (VLOOKUP(Rebalance!$D$56,$F$2:$G$48,2,FALSE)+ROW()-2))=Rebalance!$D$56,INDIRECT(\"a\" & (VLOOKUP(Rebalance!$D$56,$F$2:$G$48,2,FALSE)+ROW()-2)),\"\")","v":{"$error":"#N/A"}},{"$f":"IF(INDIRECT(\"c\" & (VLOOKUP(Rebalance!$D$57,$F$2:$G$48,2,FALSE)+ROW()-2))=Rebalance!$D$57,INDIRECT(\"a\" & (VLOOKUP(Rebalance!$D$57,$F$2:$G$48,2,FALSE)+ROW()-2)),\"\")","v":{"$error":"#N/A"}},{"$f":"IF(INDIRECT(\"c\" & (VLOOKUP(Rebalance!$D$58,$F$2:$G$48,2,FALSE)+ROW()-2))=Rebalance!$D$58,INDIRECT(\"a\" & (VLOOKUP(Rebalance!$D$58,$F$2:$G$48,2,FALSE)+ROW()-2)),\"\")","v":{"$error":"#N/A"}},{"$f":"IF(INDIRECT(\"c\" & (VLOOKUP(Rebalance!$D$59,$F$2:$G$48,2,FALSE)+ROW()-2))=Rebalance!$D$59,INDIRECT(\"a\" & (VLOOKUP(Rebalance!$D$59,$F$2:$G$48,2,FALSE)+ROW()-2)),\"\")","v":{"$error":"#N/A"}},{"$f":"IF(INDIRECT(\"c\" & (VLOOKUP(Rebalance!$D$60,$F$2:$G$48,2,FALSE)+ROW()-2))=Rebalance!$D$60,INDIRECT(\"a\" & (VLOOKUP(Rebalance!$D$60,$F$2:$G$48,2,FALSE)+ROW()-2)),\"\")","v":{"$error":"#N/A"}},{"$f":"IF(INDIRECT(\"c\" & (VLOOKUP(Rebalance!$D$61,$F$2:$G$48,2,FALSE)+ROW()-2))=Rebalance!$D$61,INDIRECT(\"a\" & (VLOOKUP(Rebalance!$D$61,$F$2:$G$48,2,FALSE)+ROW()-2)),\"\")","v":{"$error":"#N/A"}},{"$f":"IF(INDIRECT(\"c\" & (VLOOKUP(Rebalance!$D$62,$F$2:$G$48,2,FALSE)+ROW()-2))=Rebalance!$D$62,INDIRECT(\"a\" & (VLOOKUP(Rebalance!$D$62,$F$2:$G$48,2,FALSE)+ROW()-2)),\"\")","v":{"$error":"#N/A"}},{"$f":"IF(INDIRECT(\"c\" & (VLOOKUP(Rebalance!$D$63,$F$2:$G$48,2,FALSE)+ROW()-2))=Rebalance!$D$63,INDIRECT(\"a\" & (VLOOKUP(Rebalance!$D$63,$F$2:$G$48,2,FALSE)+ROW()-2)),\"\")","v":{"$error":"#N/A"}},{"$f":"IF(INDIRECT(\"c\" & (VLOOKUP(Rebalance!$D$64,$F$2:$G$48,2,FALSE)+ROW()-2))=Rebalance!$D$64,INDIRECT(\"a\" & (VLOOKUP(Rebalance!$D$64,$F$2:$G$48,2,FALSE)+ROW()-2)),\"\")","v":{"$error":"#N/A"}},{"$f":"IF(INDIRECT(\"c\" & (VLOOKUP(Rebalance!$D$65,$F$2:$G$48,2,FALSE)+ROW()-2))=Rebalance!$D$65,INDIRECT(\"a\" & (VLOOKUP(Rebalance!$D$65,$F$2:$G$48,2,FALSE)+ROW()-2)),\"\")","v":{"$error":"#N/A"}},{"$f":"IF(INDIRECT(\"c\" & (VLOOKUP(Rebalance!$D$66,$F$2:$G$48,2,FALSE)+ROW()-2))=Rebalance!$D$66,INDIRECT(\"a\" & (VLOOKUP(Rebalance!$D$66,$F$2:$G$48,2,FALSE)+ROW()-2)),\"\")","v":{"$error":"#N/A"}}]
["Investec Managed Fund E","MANH","Investec Fund Managers",{"$f":"ROW()","v":270},null,null,{"$f":"VLOOKUP(F270,$C$2:$D$599,2,FALSE)","v":{"$error":"#N/A"}},{"$f":"IF(INDIRECT(\"c\" & (VLOOKUP(Rebalance!$D$26,$F$2:$G$48,2,FALSE)+ROW()-2))=Rebalance!$D$26,INDIRECT(\"a\" & (VLOOKUP(Rebalance!$D$26,$F$2:$G$48,2,FALSE)+ROW()-2)),\"\")","v":{"$error":"#N/A"}},{"$f":"IF(INDIRECT(\"c\" & (VLOOKUP(Rebalance!$D$27,$F$2:$G$48,2,FALSE)+ROW()-2))=Rebalance!$D$27,INDIRECT(\"a\" & (VLOOKUP(Rebalance!$D$27,$F$2:$G$48,2,FALSE)+ROW()-2)),\"\")","v":{"$error":"#N/A"}},{"$f":"IF(INDIRECT(\"c\" & (VLOOKUP(Rebalance!$D$28,$F$2:$G$48,2,FALSE)+ROW()-2))=Rebalance!$D$28,INDIRECT(\"a\" & (VLOOKUP(Rebalance!$D$28,$F$2:$G$48,2,FALSE)+ROW()-2)),\"\")","v":{"$error":"#N/A"}},{"$f":"IF(INDIRECT(\"c\" & (VLOOKUP(Rebalance!$D$29,$F$2:$G$48,2,FALSE)+ROW()-2))=Rebalance!$D$29,INDIRECT(\"a\" & (VLOOKUP(Rebalance!$D$29,$F$2:$G$48,2,FALSE)+ROW()-2)),\"\")","v":{"$error":"#N/A"}},{"$f":"IF(INDIRECT(\"c\" & (VLOOKUP(Rebalance!$D$30,$F$2:$G$48,2,FALSE)+ROW()-2))=Rebalance!$D$30,INDIRECT(\"a\" & (VLOOKUP(Rebalance!$D$30,$F$2:$G$48,2,FALSE)+ROW()-2)),\"\")","v":{"$error":"#N/A"}},{"$f":"IF(INDIRECT(\"c\" & (VLOOKUP(Rebalance!$D$31,$F$2:$G$48,2,FALSE)+ROW()-2))=Rebalance!$D$31,INDIRECT(\"a\" & (VLOOKUP(Rebalance!$D$31,$F$2:$G$48,2,FALSE)+ROW()-2)),\"\")","v":{"$error":"#N/A"}},{"$f":"IF(INDIRECT(\"c\" & (VLOOKUP(Rebalance!$D$32,$F$2:$G$48,2,FALSE)+ROW()-2))=Rebalance!$D$32,INDIRECT(\"a\" & (VLOOKUP(Rebalance!$D$32,$F$2:$G$48,2,FALSE)+ROW()-2)),\"\")","v":{"$error":"#N/A"}},{"$f":"IF(INDIRECT(\"c\" & (VLOOKUP(Rebalance!$D$33,$F$2:$G$48,2,FALSE)+ROW()-2))=Rebalance!$D$33,INDIRECT(\"a\" & (VLOOKUP(Rebalance!$D$33,$F$2:$G$48,2,FALSE)+ROW()-2)),\"\")","v":{"$error":"#N/A"}},{"$f":"IF(INDIRECT(\"c\" & (VLOOKUP(Rebalance!$D$34,$F$2:$G$48,2,FALSE)+ROW()-2))=Rebalance!$D$34,INDIRECT(\"a\" & (VLOOKUP(Rebalance!$D$34,$F$2:$G$48,2,FALSE)+ROW()-2)),\"\")","v":{"$error":"#N/A"}},{"$f":"IF(INDIRECT(\"c\" & (VLOOKUP(Rebalance!$D$35,$F$2:$G$48,2,FALSE)+ROW()-2))=Rebalance!$D$35,INDIRECT(\"a\" & (VLOOKUP(Rebalance!$D$35,$F$2:$G$48,2,FALSE)+ROW()-2)),\"\")","v":{"$error":"#N/A"}},{"$f":"IF(INDIRECT(\"c\" & (VLOOKUP(Rebalance!$D$36,$F$2:$G$48,2,FALSE)+ROW()-2))=Rebalance!$D$36,INDIRECT(\"a\" & (VLOOKUP(Rebalance!$D$36,$F$2:$G$48,2,FALSE)+ROW()-2)),\"\")","v":{"$error":"#N/A"}},{"$f":"IF(INDIRECT(\"c\" & (VLOOKUP(Rebalance!$D$37,$F$2:$G$48,2,FALSE)+ROW()-2))=Rebalance!$D$37,INDIRECT(\"a\" & (VLOOKUP(Rebalance!$D$37,$F$2:$G$48,2,FALSE)+ROW()-2)),\"\")","v":{"$error":"#N/A"}},{"$f":"IF(INDIRECT(\"c\" & (VLOOKUP(Rebalance!$D$38,$F$2:$G$48,2,FALSE)+ROW()-2))=Rebalance!$D$38,INDIRECT(\"a\" & (VLOOKUP(Rebalance!$D$38,$F$2:$G$48,2,FALSE)+ROW()-2)),\"\")","v":{"$error":"#N/A"}},{"$f":"IF(INDIRECT(\"c\" & (VLOOKUP(Rebalance!$D$39,$F$2:$G$48,2,FALSE)+ROW()-2))=Rebalance!$D$39,INDIRECT(\"a\" & (VLOOKUP(Rebalance!$D$39,$F$2:$G$48,2,FALSE)+ROW()-2)),\"\")","v":{"$error":"#N/A"}},{"$f":"IF(INDIRECT(\"c\" & (VLOOKUP(Rebalance!$D$40,$F$2:$G$48,2,FALSE)+ROW()-2))=Rebalance!$D$40,INDIRECT(\"a\" & (VLOOKUP(Rebalance!$D$40,$F$2:$G$48,2,FALSE)+ROW()-2)),\"\")","v":{"$error":"#N/A"}},{"$f":"IF(INDIRECT(\"c\" & (VLOOKUP(Rebalance!$D$52,$F$2:$G$48,2,FALSE)+ROW()-2))=Rebalance!$D$52,INDIRECT(\"a\" & (VLOOKUP(Rebalance!$D$52,$F$2:$G$48,2,FALSE)+ROW()-2)),\"\")","v":{"$error":"#N/A"}},{"$f":"IF(INDIRECT(\"c\" & (VLOOKUP(Rebalance!$D$53,$F$2:$G$48,2,FALSE)+ROW()-2))=Rebalance!$D$53,INDIRECT(\"a\" & (VLOOKUP(Rebalance!$D$53,$F$2:$G$48,2,FALSE)+ROW()-2)),\"\")","v":{"$error":"#N/A"}},{"$f":"IF(INDIRECT(\"c\" & (VLOOKUP(Rebalance!$D$54,$F$2:$G$48,2,FALSE)+ROW()-2))=Rebalance!$D$54,INDIRECT(\"a\" & (VLOOKUP(Rebalance!$D$54,$F$2:$G$48,2,FALSE)+ROW()-2)),\"\")","v":{"$error":"#N/A"}},{"$f":"IF(INDIRECT(\"c\" & (VLOOKUP(Rebalance!$D$55,$F$2:$G$48,2,FALSE)+ROW()-2))=Rebalance!$D$55,INDIRECT(\"a\" & (VLOOKUP(Rebalance!$D$55,$F$2:$G$48,2,FALSE)+ROW()-2)),\"\")","v":{"$error":"#N/A"}},{"$f":"IF(INDIRECT(\"c\" & (VLOOKUP(Rebalance!$D$56,$F$2:$G$48,2,FALSE)+ROW()-2))=Rebalance!$D$56,INDIRECT(\"a\" & (VLOOKUP(Rebalance!$D$56,$F$2:$G$48,2,FALSE)+ROW()-2)),\"\")","v":{"$error":"#N/A"}},{"$f":"IF(INDIRECT(\"c\" & (VLOOKUP(Rebalance!$D$57,$F$2:$G$48,2,FALSE)+ROW()-2))=Rebalance!$D$57,INDIRECT(\"a\" & (VLOOKUP(Rebalance!$D$57,$F$2:$G$48,2,FALSE)+ROW()-2)),\"\")","v":{"$error":"#N/A"}},{"$f":"IF(INDIRECT(\"c\" & (VLOOKUP(Rebalance!$D$58,$F$2:$G$48,2,FALSE)+ROW()-2))=Rebalance!$D$58,INDIRECT(\"a\" & (VLOOKUP(Rebalance!$D$58,$F$2:$G$48,2,FALSE)+ROW()-2)),\"\")","v":{"$error":"#N/A"}},{"$f":"IF(INDIRECT(\"c\" & (VLOOKUP(Rebalance!$D$59,$F$2:$G$48,2,FALSE)+ROW()-2))=Rebalance!$D$59,INDIRECT(\"a\" & (VLOOKUP(Rebalance!$D$59,$F$2:$G$48,2,FALSE)+ROW()-2)),\"\")","v":{"$error":"#N/A"}},{"$f":"IF(INDIRECT(\"c\" & (VLOOKUP(Rebalance!$D$60,$F$2:$G$48,2,FALSE)+ROW()-2))=Rebalance!$D$60,INDIRECT(\"a\" & (VLOOKUP(Rebalance!$D$60,$F$2:$G$48,2,FALSE)+ROW()-2)),\"\")","v":{"$error":"#N/A"}},{"$f":"IF(INDIRECT(\"c\" & (VLOOKUP(Rebalance!$D$61,$F$2:$G$48,2,FALSE)+ROW()-2))=Rebalance!$D$61,INDIRECT(\"a\" & (VLOOKUP(Rebalance!$D$61,$F$2:$G$48,2,FALSE)+ROW()-2)),\"\")","v":{"$error":"#N/A"}},{"$f":"IF(INDIRECT(\"c\" & (VLOOKUP(Rebalance!$D$62,$F$2:$G$48,2,FALSE)+ROW()-2))=Rebalance!$D$62,INDIRECT(\"a\" & (VLOOKUP(Rebalance!$D$62,$F$2:$G$48,2,FALSE)+ROW()-2)),\"\")","v":{"$error":"#N/A"}},{"$f":"IF(INDIRECT(\"c\" & (VLOOKUP(Rebalance!$D$63,$F$2:$G$48,2,FALSE)+ROW()-2))=Rebalance!$D$63,INDIRECT(\"a\" & (VLOOKUP(Rebalance!$D$63,$F$2:$G$48,2,FALSE)+ROW()-2)),\"\")","v":{"$error":"#N/A"}},{"$f":"IF(INDIRECT(\"c\" & (VLOOKUP(Rebalance!$D$64,$F$2:$G$48,2,FALSE)+ROW()-2))=Rebalance!$D$64,INDIRECT(\"a\" & (VLOOKUP(Rebalance!$D$64,$F$2:$G$48,2,FALSE)+ROW()-2)),\"\")","v":{"$error":"#N/A"}},{"$f":"IF(INDIRECT(\"c\" & (VLOOKUP(Rebalance!$D$65,$F$2:$G$48,2,FALSE)+ROW()-2))=Rebalance!$D$65,INDIRECT(\"a\" & (VLOOKUP(Rebalance!$D$65,$F$2:$G$48,2,FALSE)+ROW()-2)),\"\")","v":{"$error":"#N/A"}},{"$f":"IF(INDIRECT(\"c\" & (VLOOKUP(Rebalance!$D$66,$F$2:$G$48,2,FALSE)+ROW()-2))=Rebalance!$D$66,INDIRECT(\"a\" & (VLOOKUP(Rebalance!$D$66,$F$2:$G$48,2,FALSE)+ROW()-2)),\"\")","v":{"$error":"#N/A"}}]
["Investec Managed Fund H","MANH","Investec Fund Managers",{"$f":"ROW()","v":271},null,null,{"$f":"VLOOKUP(F271,$C$2:$D$599,2,FALSE)","v":{"$error":"#N/A"}},{"$f":"IF(INDIRECT(\"c\" & (VLOOKUP(Rebalance!$D$26,$F$2:$G$48,2,FALSE)+ROW()-2))=Rebalance!$D$26,INDIRECT(\"a\" & (VLOOKUP(Rebalance!$D$26,$F$2:$G$48,2,FALSE)+ROW()-2)),\"\")","v":{"$error":"#N/A"}},{"$f":"IF(INDIRECT(\"c\" & (VLOOKUP(Rebalance!$D$27,$F$2:$G$48,2,FALSE)+ROW()-2))=Rebalance!$D$27,INDIRECT(\"a\" & (VLOOKUP(Rebalance!$D$27,$F$2:$G$48,2,FALSE)+ROW()-2)),\"\")","v":{"$error":"#N/A"}},{"$f":"IF(INDIRECT(\"c\" & (VLOOKUP(Rebalance!$D$28,$F$2:$G$48,2,FALSE)+ROW()-2))=Rebalance!$D$28,INDIRECT(\"a\" & (VLOOKUP(Rebalance!$D$28,$F$2:$G$48,2,FALSE)+ROW()-2)),\"\")","v":{"$error":"#N/A"}},{"$f":"IF(INDIRECT(\"c\" & (VLOOKUP(Rebalance!$D$29,$F$2:$G$48,2,FALSE)+ROW()-2))=Rebalance!$D$29,INDIRECT(\"a\" & (VLOOKUP(Rebalance!$D$29,$F$2:$G$48,2,FALSE)+ROW()-2)),\"\")","v":{"$error":"#N/A"}},{"$f":"IF(INDIRECT(\"c\" & (VLOOKUP(Rebalance!$D$30,$F$2:$G$48,2,FALSE)+ROW()-2))=Rebalance!$D$30,INDIRECT(\"a\" & (VLOOKUP(Rebalance!$D$30,$F$2:$G$48,2,FALSE)+ROW()-2)),\"\")","v":{"$error":"#N/A"}},{"$f":"IF(INDIRECT(\"c\" & (VLOOKUP(Rebalance!$D$31,$F$2:$G$48,2,FALSE)+ROW()-2))=Rebalance!$D$31,INDIRECT(\"a\" & (VLOOKUP(Rebalance!$D$31,$F$2:$G$48,2,FALSE)+ROW()-2)),\"\")","v":{"$error":"#N/A"}},{"$f":"IF(INDIRECT(\"c\" & (VLOOKUP(Rebalance!$D$32,$F$2:$G$48,2,FALSE)+ROW()-2))=Rebalance!$D$32,INDIRECT(\"a\" & (VLOOKUP(Rebalance!$D$32,$F$2:$G$48,2,FALSE)+ROW()-2)),\"\")","v":{"$error":"#N/A"}},{"$f":"IF(INDIRECT(\"c\" & (VLOOKUP(Rebalance!$D$33,$F$2:$G$48,2,FALSE)+ROW()-2))=Rebalance!$D$33,INDIRECT(\"a\" & (VLOOKUP(Rebalance!$D$33,$F$2:$G$48,2,FALSE)+ROW()-2)),\"\")","v":{"$error":"#N/A"}},{"$f":"IF(INDIRECT(\"c\" & (VLOOKUP(Rebalance!$D$34,$F$2:$G$48,2,FALSE)+ROW()-2))=Rebalance!$D$34,INDIRECT(\"a\" & (VLOOKUP(Rebalance!$D$34,$F$2:$G$48,2,FALSE)+ROW()-2)),\"\")","v":{"$error":"#N/A"}},{"$f":"IF(INDIRECT(\"c\" & (VLOOKUP(Rebalance!$D$35,$F$2:$G$48,2,FALSE)+ROW()-2))=Rebalance!$D$35,INDIRECT(\"a\" & (VLOOKUP(Rebalance!$D$35,$F$2:$G$48,2,FALSE)+ROW()-2)),\"\")","v":{"$error":"#N/A"}},{"$f":"IF(INDIRECT(\"c\" & (VLOOKUP(Rebalance!$D$36,$F$2:$G$48,2,FALSE)+ROW()-2))=Rebalance!$D$36,INDIRECT(\"a\" & (VLOOKUP(Rebalance!$D$36,$F$2:$G$48,2,FALSE)+ROW()-2)),\"\")","v":{"$error":"#N/A"}},{"$f":"IF(INDIRECT(\"c\" & (VLOOKUP(Rebalance!$D$37,$F$2:$G$48,2,FALSE)+ROW()-2))=Rebalance!$D$37,INDIRECT(\"a\" & (VLOOKUP(Rebalance!$D$37,$F$2:$G$48,2,FALSE)+ROW()-2)),\"\")","v":{"$error":"#N/A"}},{"$f":"IF(INDIRECT(\"c\" & (VLOOKUP(Rebalance!$D$38,$F$2:$G$48,2,FALSE)+ROW()-2))=Rebalance!$D$38,INDIRECT(\"a\" & (VLOOKUP(Rebalance!$D$38,$F$2:$G$48,2,FALSE)+ROW()-2)),\"\")","v":{"$error":"#N/A"}},{"$f":"IF(INDIRECT(\"c\" & (VLOOKUP(Rebalance!$D$39,$F$2:$G$48,2,FALSE)+ROW()-2))=Rebalance!$D$39,INDIRECT(\"a\" & (VLOOKUP(Rebalance!$D$39,$F$2:$G$48,2,FALSE)+ROW()-2)),\"\")","v":{"$error":"#N/A"}},{"$f":"IF(INDIRECT(\"c\" & (VLOOKUP(Rebalance!$D$40,$F$2:$G$48,2,FALSE)+ROW()-2))=Rebalance!$D$40,INDIRECT(\"a\" & (VLOOKUP(Rebalance!$D$40,$F$2:$G$48,2,FALSE)+ROW()-2)),\"\")","v":{"$error":"#N/A"}},{"$f":"IF(INDIRECT(\"c\" & (VLOOKUP(Rebalance!$D$52,$F$2:$G$48,2,FALSE)+ROW()-2))=Rebalance!$D$52,INDIRECT(\"a\" & (VLOOKUP(Rebalance!$D$52,$F$2:$G$48,2,FALSE)+ROW()-2)),\"\")","v":{"$error":"#N/A"}},{"$f":"IF(INDIRECT(\"c\" & (VLOOKUP(Rebalance!$D$53,$F$2:$G$48,2,FALSE)+ROW()-2))=Rebalance!$D$53,INDIRECT(\"a\" & (VLOOKUP(Rebalance!$D$53,$F$2:$G$48,2,FALSE)+ROW()-2)),\"\")","v":{"$error":"#N/A"}},{"$f":"IF(INDIRECT(\"c\" & (VLOOKUP(Rebalance!$D$54,$F$2:$G$48,2,FALSE)+ROW()-2))=Rebalance!$D$54,INDIRECT(\"a\" & (VLOOKUP(Rebalance!$D$54,$F$2:$G$48,2,FALSE)+ROW()-2)),\"\")","v":{"$error":"#N/A"}},{"$f":"IF(INDIRECT(\"c\" & (VLOOKUP(Rebalance!$D$55,$F$2:$G$48,2,FALSE)+ROW()-2))=Rebalance!$D$55,INDIRECT(\"a\" & (VLOOKUP(Rebalance!$D$55,$F$2:$G$48,2,FALSE)+ROW()-2)),\"\")","v":{"$error":"#N/A"}},{"$f":"IF(INDIRECT(\"c\" & (VLOOKUP(Rebalance!$D$56,$F$2:$G$48,2,FALSE)+ROW()-2))=Rebalance!$D$56,INDIRECT(\"a\" & (VLOOKUP(Rebalance!$D$56,$F$2:$G$48,2,FALSE)+ROW()-2)),\"\")","v":{"$error":"#N/A"}},{"$f":"IF(INDIRECT(\"c\" & (VLOOKUP(Rebalance!$D$57,$F$2:$G$48,2,FALSE)+ROW()-2))=Rebalance!$D$57,INDIRECT(\"a\" & (VLOOKUP(Rebalance!$D$57,$F$2:$G$48,2,FALSE)+ROW()-2)),\"\")","v":{"$error":"#N/A"}},{"$f":"IF(INDIRECT(\"c\" & (VLOOKUP(Rebalance!$D$58,$F$2:$G$48,2,FALSE)+ROW()-2))=Rebalance!$D$58,INDIRECT(\"a\" & (VLOOKUP(Rebalance!$D$58,$F$2:$G$48,2,FALSE)+ROW()-2)),\"\")","v":{"$error":"#N/A"}},{"$f":"IF(INDIRECT(\"c\" & (VLOOKUP(Rebalance!$D$59,$F$2:$G$48,2,FALSE)+ROW()-2))=Rebalance!$D$59,INDIRECT(\"a\" & (VLOOKUP(Rebalance!$D$59,$F$2:$G$48,2,FALSE)+ROW()-2)),\"\")","v":{"$error":"#N/A"}},{"$f":"IF(INDIRECT(\"c\" & (VLOOKUP(Rebalance!$D$60,$F$2:$G$48,2,FALSE)+ROW()-2))=Rebalance!$D$60,INDIRECT(\"a\" & (VLOOKUP(Rebalance!$D$60,$F$2:$G$48,2,FALSE)+ROW()-2)),\"\")","v":{"$error":"#N/A"}},{"$f":"IF(INDIRECT(\"c\" & (VLOOKUP(Rebalance!$D$61,$F$2:$G$48,2,FALSE)+ROW()-2))=Rebalance!$D$61,INDIRECT(\"a\" & (VLOOKUP(Rebalance!$D$61,$F$2:$G$48,2,FALSE)+ROW()-2)),\"\")","v":{"$error":"#N/A"}},{"$f":"IF(INDIRECT(\"c\" & (VLOOKUP(Rebalance!$D$62,$F$2:$G$48,2,FALSE)+ROW()-2))=Rebalance!$D$62,INDIRECT(\"a\" & (VLOOKUP(Rebalance!$D$62,$F$2:$G$48,2,FALSE)+ROW()-2)),\"\")","v":{"$error":"#N/A"}},{"$f":"IF(INDIRECT(\"c\" & (VLOOKUP(Rebalance!$D$63,$F$2:$G$48,2,FALSE)+ROW()-2))=Rebalance!$D$63,INDIRECT(\"a\" & (VLOOKUP(Rebalance!$D$63,$F$2:$G$48,2,FALSE)+ROW()-2)),\"\")","v":{"$error":"#N/A"}},{"$f":"IF(INDIRECT(\"c\" & (VLOOKUP(Rebalance!$D$64,$F$2:$G$48,2,FALSE)+ROW()-2))=Rebalance!$D$64,INDIRECT(\"a\" & (VLOOKUP(Rebalance!$D$64,$F$2:$G$48,2,FALSE)+ROW()-2)),\"\")","v":{"$error":"#N/A"}},{"$f":"IF(INDIRECT(\"c\" & (VLOOKUP(Rebalance!$D$65,$F$2:$G$48,2,FALSE)+ROW()-2))=Rebalance!$D$65,INDIRECT(\"a\" & (VLOOKUP(Rebalance!$D$65,$F$2:$G$48,2,FALSE)+ROW()-2)),\"\")","v":{"$error":"#N/A"}},{"$f":"IF(INDIRECT(\"c\" & (VLOOKUP(Rebalance!$D$66,$F$2:$G$48,2,FALSE)+ROW()-2))=Rebalance!$D$66,INDIRECT(\"a\" & (VLOOKUP(Rebalance!$D$66,$F$2:$G$48,2,FALSE)+ROW()-2)),\"\")","v":{"$error":"#N/A"}}]
["Investec Opportunity Fund E","OPPH","Investec Fund Managers",{"$f":"ROW()","v":272},null,null,{"$f":"VLOOKUP(F272,$C$2:$D$599,2,FALSE)","v":{"$error":"#N/A"}},{"$f":"IF(INDIRECT(\"c\" & (VLOOKUP(Rebalance!$D$26,$F$2:$G$48,2,FALSE)+ROW()-2))=Rebalance!$D$26,INDIRECT(\"a\" & (VLOOKUP(Rebalance!$D$26,$F$2:$G$48,2,FALSE)+ROW()-2)),\"\")","v":{"$error":"#N/A"}},{"$f":"IF(INDIRECT(\"c\" & (VLOOKUP(Rebalance!$D$27,$F$2:$G$48,2,FALSE)+ROW()-2))=Rebalance!$D$27,INDIRECT(\"a\" & (VLOOKUP(Rebalance!$D$27,$F$2:$G$48,2,FALSE)+ROW()-2)),\"\")","v":{"$error":"#N/A"}},{"$f":"IF(INDIRECT(\"c\" & (VLOOKUP(Rebalance!$D$28,$F$2:$G$48,2,FALSE)+ROW()-2))=Rebalance!$D$28,INDIRECT(\"a\" & (VLOOKUP(Rebalance!$D$28,$F$2:$G$48,2,FALSE)+ROW()-2)),\"\")","v":{"$error":"#N/A"}},{"$f":"IF(INDIRECT(\"c\" & (VLOOKUP(Rebalance!$D$29,$F$2:$G$48,2,FALSE)+ROW()-2))=Rebalance!$D$29,INDIRECT(\"a\" & (VLOOKUP(Rebalance!$D$29,$F$2:$G$48,2,FALSE)+ROW()-2)),\"\")","v":{"$error":"#N/A"}},{"$f":"IF(INDIRECT(\"c\" & (VLOOKUP(Rebalance!$D$30,$F$2:$G$48,2,FALSE)+ROW()-2))=Rebalance!$D$30,INDIRECT(\"a\" & (VLOOKUP(Rebalance!$D$30,$F$2:$G$48,2,FALSE)+ROW()-2)),\"\")","v":{"$error":"#N/A"}},{"$f":"IF(INDIRECT(\"c\" & (VLOOKUP(Rebalance!$D$31,$F$2:$G$48,2,FALSE)+ROW()-2))=Rebalance!$D$31,INDIRECT(\"a\" & (VLOOKUP(Rebalance!$D$31,$F$2:$G$48,2,FALSE)+ROW()-2)),\"\")","v":{"$error":"#N/A"}},{"$f":"IF(INDIRECT(\"c\" & (VLOOKUP(Rebalance!$D$32,$F$2:$G$48,2,FALSE)+ROW()-2))=Rebalance!$D$32,INDIRECT(\"a\" & (VLOOKUP(Rebalance!$D$32,$F$2:$G$48,2,FALSE)+ROW()-2)),\"\")","v":{"$error":"#N/A"}},{"$f":"IF(INDIRECT(\"c\" & (VLOOKUP(Rebalance!$D$33,$F$2:$G$48,2,FALSE)+ROW()-2))=Rebalance!$D$33,INDIRECT(\"a\" & (VLOOKUP(Rebalance!$D$33,$F$2:$G$48,2,FALSE)+ROW()-2)),\"\")","v":{"$error":"#N/A"}},{"$f":"IF(INDIRECT(\"c\" & (VLOOKUP(Rebalance!$D$34,$F$2:$G$48,2,FALSE)+ROW()-2))=Rebalance!$D$34,INDIRECT(\"a\" & (VLOOKUP(Rebalance!$D$34,$F$2:$G$48,2,FALSE)+ROW()-2)),\"\")","v":{"$error":"#N/A"}},{"$f":"IF(INDIRECT(\"c\" & (VLOOKUP(Rebalance!$D$35,$F$2:$G$48,2,FALSE)+ROW()-2))=Rebalance!$D$35,INDIRECT(\"a\" & (VLOOKUP(Rebalance!$D$35,$F$2:$G$48,2,FALSE)+ROW()-2)),\"\")","v":{"$error":"#N/A"}},{"$f":"IF(INDIRECT(\"c\" & (VLOOKUP(Rebalance!$D$36,$F$2:$G$48,2,FALSE)+ROW()-2))=Rebalance!$D$36,INDIRECT(\"a\" & (VLOOKUP(Rebalance!$D$36,$F$2:$G$48,2,FALSE)+ROW()-2)),\"\")","v":{"$error":"#N/A"}},{"$f":"IF(INDIRECT(\"c\" & (VLOOKUP(Rebalance!$D$37,$F$2:$G$48,2,FALSE)+ROW()-2))=Rebalance!$D$37,INDIRECT(\"a\" & (VLOOKUP(Rebalance!$D$37,$F$2:$G$48,2,FALSE)+ROW()-2)),\"\")","v":{"$error":"#N/A"}},{"$f":"IF(INDIRECT(\"c\" & (VLOOKUP(Rebalance!$D$38,$F$2:$G$48,2,FALSE)+ROW()-2))=Rebalance!$D$38,INDIRECT(\"a\" & (VLOOKUP(Rebalance!$D$38,$F$2:$G$48,2,FALSE)+ROW()-2)),\"\")","v":{"$error":"#N/A"}},{"$f":"IF(INDIRECT(\"c\" & (VLOOKUP(Rebalance!$D$39,$F$2:$G$48,2,FALSE)+ROW()-2))=Rebalance!$D$39,INDIRECT(\"a\" & (VLOOKUP(Rebalance!$D$39,$F$2:$G$48,2,FALSE)+ROW()-2)),\"\")","v":{"$error":"#N/A"}},{"$f":"IF(INDIRECT(\"c\" & (VLOOKUP(Rebalance!$D$40,$F$2:$G$48,2,FALSE)+ROW()-2))=Rebalance!$D$40,INDIRECT(\"a\" & (VLOOKUP(Rebalance!$D$40,$F$2:$G$48,2,FALSE)+ROW()-2)),\"\")","v":{"$error":"#N/A"}},{"$f":"IF(INDIRECT(\"c\" & (VLOOKUP(Rebalance!$D$52,$F$2:$G$48,2,FALSE)+ROW()-2))=Rebalance!$D$52,INDIRECT(\"a\" & (VLOOKUP(Rebalance!$D$52,$F$2:$G$48,2,FALSE)+ROW()-2)),\"\")","v":{"$error":"#N/A"}},{"$f":"IF(INDIRECT(\"c\" & (VLOOKUP(Rebalance!$D$53,$F$2:$G$48,2,FALSE)+ROW()-2))=Rebalance!$D$53,INDIRECT(\"a\" & (VLOOKUP(Rebalance!$D$53,$F$2:$G$48,2,FALSE)+ROW()-2)),\"\")","v":{"$error":"#N/A"}},{"$f":"IF(INDIRECT(\"c\" & (VLOOKUP(Rebalance!$D$54,$F$2:$G$48,2,FALSE)+ROW()-2))=Rebalance!$D$54,INDIRECT(\"a\" & (VLOOKUP(Rebalance!$D$54,$F$2:$G$48,2,FALSE)+ROW()-2)),\"\")","v":{"$error":"#N/A"}},{"$f":"IF(INDIRECT(\"c\" & (VLOOKUP(Rebalance!$D$55,$F$2:$G$48,2,FALSE)+ROW()-2))=Rebalance!$D$55,INDIRECT(\"a\" & (VLOOKUP(Rebalance!$D$55,$F$2:$G$48,2,FALSE)+ROW()-2)),\"\")","v":{"$error":"#N/A"}},{"$f":"IF(INDIRECT(\"c\" & (VLOOKUP(Rebalance!$D$56,$F$2:$G$48,2,FALSE)+ROW()-2))=Rebalance!$D$56,INDIRECT(\"a\" & (VLOOKUP(Rebalance!$D$56,$F$2:$G$48,2,FALSE)+ROW()-2)),\"\")","v":{"$error":"#N/A"}},{"$f":"IF(INDIRECT(\"c\" & (VLOOKUP(Rebalance!$D$57,$F$2:$G$48,2,FALSE)+ROW()-2))=Rebalance!$D$57,INDIRECT(\"a\" & (VLOOKUP(Rebalance!$D$57,$F$2:$G$48,2,FALSE)+ROW()-2)),\"\")","v":{"$error":"#N/A"}},{"$f":"IF(INDIRECT(\"c\" & (VLOOKUP(Rebalance!$D$58,$F$2:$G$48,2,FALSE)+ROW()-2))=Rebalance!$D$58,INDIRECT(\"a\" & (VLOOKUP(Rebalance!$D$58,$F$2:$G$48,2,FALSE)+ROW()-2)),\"\")","v":{"$error":"#N/A"}},{"$f":"IF(INDIRECT(\"c\" & (VLOOKUP(Rebalance!$D$59,$F$2:$G$48,2,FALSE)+ROW()-2))=Rebalance!$D$59,INDIRECT(\"a\" & (VLOOKUP(Rebalance!$D$59,$F$2:$G$48,2,FALSE)+ROW()-2)),\"\")","v":{"$error":"#N/A"}},{"$f":"IF(INDIRECT(\"c\" & (VLOOKUP(Rebalance!$D$60,$F$2:$G$48,2,FALSE)+ROW()-2))=Rebalance!$D$60,INDIRECT(\"a\" & (VLOOKUP(Rebalance!$D$60,$F$2:$G$48,2,FALSE)+ROW()-2)),\"\")","v":{"$error":"#N/A"}},{"$f":"IF(INDIRECT(\"c\" & (VLOOKUP(Rebalance!$D$61,$F$2:$G$48,2,FALSE)+ROW()-2))=Rebalance!$D$61,INDIRECT(\"a\" & (VLOOKUP(Rebalance!$D$61,$F$2:$G$48,2,FALSE)+ROW()-2)),\"\")","v":{"$error":"#N/A"}},{"$f":"IF(INDIRECT(\"c\" & (VLOOKUP(Rebalance!$D$62,$F$2:$G$48,2,FALSE)+ROW()-2))=Rebalance!$D$62,INDIRECT(\"a\" & (VLOOKUP(Rebalance!$D$62,$F$2:$G$48,2,FALSE)+ROW()-2)),\"\")","v":{"$error":"#N/A"}},{"$f":"IF(INDIRECT(\"c\" & (VLOOKUP(Rebalance!$D$63,$F$2:$G$48,2,FALSE)+ROW()-2))=Rebalance!$D$63,INDIRECT(\"a\" & (VLOOKUP(Rebalance!$D$63,$F$2:$G$48,2,FALSE)+ROW()-2)),\"\")","v":{"$error":"#N/A"}},{"$f":"IF(INDIRECT(\"c\" & (VLOOKUP(Rebalance!$D$64,$F$2:$G$48,2,FALSE)+ROW()-2))=Rebalance!$D$64,INDIRECT(\"a\" & (VLOOKUP(Rebalance!$D$64,$F$2:$G$48,2,FALSE)+ROW()-2)),\"\")","v":{"$error":"#N/A"}},{"$f":"IF(INDIRECT(\"c\" & (VLOOKUP(Rebalance!$D$65,$F$2:$G$48,2,FALSE)+ROW()-2))=Rebalance!$D$65,INDIRECT(\"a\" & (VLOOKUP(Rebalance!$D$65,$F$2:$G$48,2,FALSE)+ROW()-2)),\"\")","v":{"$error":"#N/A"}},{"$f":"IF(INDIRECT(\"c\" & (VLOOKUP(Rebalance!$D$66,$F$2:$G$48,2,FALSE)+ROW()-2))=Rebalance!$D$66,INDIRECT(\"a\" & (VLOOKUP(Rebalance!$D$66,$F$2:$G$48,2,FALSE)+ROW()-2)),\"\")","v":{"$error":"#N/A"}}]
["Investec Opportunity Fund H","OPPH","Investec Fund Managers",{"$f":"ROW()","v":273},null,null,{"$f":"VLOOKUP(F273,$C$2:$D$599,2,FALSE)","v":{"$error":"#N/A"}},{"$f":"IF(INDIRECT(\"c\" & (VLOOKUP(Rebalance!$D$26,$F$2:$G$48,2,FALSE)+ROW()-2))=Rebalance!$D$26,INDIRECT(\"a\" & (VLOOKUP(Rebalance!$D$26,$F$2:$G$48,2,FALSE)+ROW()-2)),\"\")","v":{"$error":"#N/A"}},{"$f":"IF(INDIRECT(\"c\" & (VLOOKUP(Rebalance!$D$27,$F$2:$G$48,2,FALSE)+ROW()-2))=Rebalance!$D$27,INDIRECT(\"a\" & (VLOOKUP(Rebalance!$D$27,$F$2:$G$48,2,FALSE)+ROW()-2)),\"\")","v":{"$error":"#N/A"}},{"$f":"IF(INDIRECT(\"c\" & (VLOOKUP(Rebalance!$D$28,$F$2:$G$48,2,FALSE)+ROW()-2))=Rebalance!$D$28,INDIRECT(\"a\" & (VLOOKUP(Rebalance!$D$28,$F$2:$G$48,2,FALSE)+ROW()-2)),\"\")","v":{"$error":"#N/A"}},{"$f":"IF(INDIRECT(\"c\" & (VLOOKUP(Rebalance!$D$29,$F$2:$G$48,2,FALSE)+ROW()-2))=Rebalance!$D$29,INDIRECT(\"a\" & (VLOOKUP(Rebalance!$D$29,$F$2:$G$48,2,FALSE)+ROW()-2)),\"\")","v":{"$error":"#N/A"}},{"$f":"IF(INDIRECT(\"c\" & (VLOOKUP(Rebalance!$D$30,$F$2:$G$48,2,FALSE)+ROW()-2))=Rebalance!$D$30,INDIRECT(\"a\" & (VLOOKUP(Rebalance!$D$30,$F$2:$G$48,2,FALSE)+ROW()-2)),\"\")","v":{"$error":"#N/A"}},{"$f":"IF(INDIRECT(\"c\" & (VLOOKUP(Rebalance!$D$31,$F$2:$G$48,2,FALSE)+ROW()-2))=Rebalance!$D$31,INDIRECT(\"a\" & (VLOOKUP(Rebalance!$D$31,$F$2:$G$48,2,FALSE)+ROW()-2)),\"\")","v":{"$error":"#N/A"}},{"$f":"IF(INDIRECT(\"c\" & (VLOOKUP(Rebalance!$D$32,$F$2:$G$48,2,FALSE)+ROW()-2))=Rebalance!$D$32,INDIRECT(\"a\" & (VLOOKUP(Rebalance!$D$32,$F$2:$G$48,2,FALSE)+ROW()-2)),\"\")","v":{"$error":"#N/A"}},{"$f":"IF(INDIRECT(\"c\" & (VLOOKUP(Rebalance!$D$33,$F$2:$G$48,2,FALSE)+ROW()-2))=Rebalance!$D$33,INDIRECT(\"a\" & (VLOOKUP(Rebalance!$D$33,$F$2:$G$48,2,FALSE)+ROW()-2)),\"\")","v":{"$error":"#N/A"}},{"$f":"IF(INDIRECT(\"c\" & (VLOOKUP(Rebalance!$D$34,$F$2:$G$48,2,FALSE)+ROW()-2))=Rebalance!$D$34,INDIRECT(\"a\" & (VLOOKUP(Rebalance!$D$34,$F$2:$G$48,2,FALSE)+ROW()-2)),\"\")","v":{"$error":"#N/A"}},{"$f":"IF(INDIRECT(\"c\" & (VLOOKUP(Rebalance!$D$35,$F$2:$G$48,2,FALSE)+ROW()-2))=Rebalance!$D$35,INDIRECT(\"a\" & (VLOOKUP(Rebalance!$D$35,$F$2:$G$48,2,FALSE)+ROW()-2)),\"\")","v":{"$error":"#N/A"}},{"$f":"IF(INDIRECT(\"c\" & (VLOOKUP(Rebalance!$D$36,$F$2:$G$48,2,FALSE)+ROW()-2))=Rebalance!$D$36,INDIRECT(\"a\" & (VLOOKUP(Rebalance!$D$36,$F$2:$G$48,2,FALSE)+ROW()-2)),\"\")","v":{"$error":"#N/A"}},{"$f":"IF(INDIRECT(\"c\" & (VLOOKUP(Rebalance!$D$37,$F$2:$G$48,2,FALSE)+ROW()-2))=Rebalance!$D$37,INDIRECT(\"a\" & (VLOOKUP(Rebalance!$D$37,$F$2:$G$48,2,FALSE)+ROW()-2)),\"\")","v":{"$error":"#N/A"}},{"$f":"IF(INDIRECT(\"c\" & (VLOOKUP(Rebalance!$D$38,$F$2:$G$48,2,FALSE)+ROW()-2))=Rebalance!$D$38,INDIRECT(\"a\" & (VLOOKUP(Rebalance!$D$38,$F$2:$G$48,2,FALSE)+ROW()-2)),\"\")","v":{"$error":"#N/A"}},{"$f":"IF(INDIRECT(\"c\" & (VLOOKUP(Rebalance!$D$39,$F$2:$G$48,2,FALSE)+ROW()-2))=Rebalance!$D$39,INDIRECT(\"a\" & (VLOOKUP(Rebalance!$D$39,$F$2:$G$48,2,FALSE)+ROW()-2)),\"\")","v":{"$error":"#N/A"}},{"$f":"IF(INDIRECT(\"c\" & (VLOOKUP(Rebalance!$D$40,$F$2:$G$48,2,FALSE)+ROW()-2))=Rebalance!$D$40,INDIRECT(\"a\" & (VLOOKUP(Rebalance!$D$40,$F$2:$G$48,2,FALSE)+ROW()-2)),\"\")","v":{"$error":"#N/A"}},{"$f":"IF(INDIRECT(\"c\" & (VLOOKUP(Rebalance!$D$52,$F$2:$G$48,2,FALSE)+ROW()-2))=Rebalance!$D$52,INDIRECT(\"a\" & (VLOOKUP(Rebalance!$D$52,$F$2:$G$48,2,FALSE)+ROW()-2)),\"\")","v":{"$error":"#N/A"}},{"$f":"IF(INDIRECT(\"c\" & (VLOOKUP(Rebalance!$D$53,$F$2:$G$48,2,FALSE)+ROW()-2))=Rebalance!$D$53,INDIRECT(\"a\" & (VLOOKUP(Rebalance!$D$53,$F$2:$G$48,2,FALSE)+ROW()-2)),\"\")","v":{"$error":"#N/A"}},{"$f":"IF(INDIRECT(\"c\" & (VLOOKUP(Rebalance!$D$54,$F$2:$G$48,2,FALSE)+ROW()-2))=Rebalance!$D$54,INDIRECT(\"a\" & (VLOOKUP(Rebalance!$D$54,$F$2:$G$48,2,FALSE)+ROW()-2)),\"\")","v":{"$error":"#N/A"}},{"$f":"IF(INDIRECT(\"c\" & (VLOOKUP(Rebalance!$D$55,$F$2:$G$48,2,FALSE)+ROW()-2))=Rebalance!$D$55,INDIRECT(\"a\" & (VLOOKUP(Rebalance!$D$55,$F$2:$G$48,2,FALSE)+ROW()-2)),\"\")","v":{"$error":"#N/A"}},{"$f":"IF(INDIRECT(\"c\" & (VLOOKUP(Rebalance!$D$56,$F$2:$G$48,2,FALSE)+ROW()-2))=Rebalance!$D$56,INDIRECT(\"a\" & (VLOOKUP(Rebalance!$D$56,$F$2:$G$48,2,FALSE)+ROW()-2)),\"\")","v":{"$error":"#N/A"}},{"$f":"IF(INDIRECT(\"c\" & (VLOOKUP(Rebalance!$D$57,$F$2:$G$48,2,FALSE)+ROW()-2))=Rebalance!$D$57,INDIRECT(\"a\" & (VLOOKUP(Rebalance!$D$57,$F$2:$G$48,2,FALSE)+ROW()-2)),\"\")","v":{"$error":"#N/A"}},{"$f":"IF(INDIRECT(\"c\" & (VLOOKUP(Rebalance!$D$58,$F$2:$G$48,2,FALSE)+ROW()-2))=Rebalance!$D$58,INDIRECT(\"a\" & (VLOOKUP(Rebalance!$D$58,$F$2:$G$48,2,FALSE)+ROW()-2)),\"\")","v":{"$error":"#N/A"}},{"$f":"IF(INDIRECT(\"c\" & (VLOOKUP(Rebalance!$D$59,$F$2:$G$48,2,FALSE)+ROW()-2))=Rebalance!$D$59,INDIRECT(\"a\" & (VLOOKUP(Rebalance!$D$59,$F$2:$G$48,2,FALSE)+ROW()-2)),\"\")","v":{"$error":"#N/A"}},{"$f":"IF(INDIRECT(\"c\" & (VLOOKUP(Rebalance!$D$60,$F$2:$G$48,2,FALSE)+ROW()-2))=Rebalance!$D$60,INDIRECT(\"a\" & (VLOOKUP(Rebalance!$D$60,$F$2:$G$48,2,FALSE)+ROW()-2)),\"\")","v":{"$error":"#N/A"}},{"$f":"IF(INDIRECT(\"c\" & (VLOOKUP(Rebalance!$D$61,$F$2:$G$48,2,FALSE)+ROW()-2))=Rebalance!$D$61,INDIRECT(\"a\" & (VLOOKUP(Rebalance!$D$61,$F$2:$G$48,2,FALSE)+ROW()-2)),\"\")","v":{"$error":"#N/A"}},{"$f":"IF(INDIRECT(\"c\" & (VLOOKUP(Rebalance!$D$62,$F$2:$G$48,2,FALSE)+ROW()-2))=Rebalance!$D$62,INDIRECT(\"a\" & (VLOOKUP(Rebalance!$D$62,$F$2:$G$48,2,FALSE)+ROW()-2)),\"\")","v":{"$error":"#N/A"}},{"$f":"IF(INDIRECT(\"c\" & (VLOOKUP(Rebalance!$D$63,$F$2:$G$48,2,FALSE)+ROW()-2))=Rebalance!$D$63,INDIRECT(\"a\" & (VLOOKUP(Rebalance!$D$63,$F$2:$G$48,2,FALSE)+ROW()-2)),\"\")","v":{"$error":"#N/A"}},{"$f":"IF(INDIRECT(\"c\" & (VLOOKUP(Rebalance!$D$64,$F$2:$G$48,2,FALSE)+ROW()-2))=Rebalance!$D$64,INDIRECT(\"a\" & (VLOOKUP(Rebalance!$D$64,$F$2:$G$48,2,FALSE)+ROW()-2)),\"\")","v":{"$error":"#N/A"}},{"$f":"IF(INDIRECT(\"c\" & (VLOOKUP(Rebalance!$D$65,$F$2:$G$48,2,FALSE)+ROW()-2))=Rebalance!$D$65,INDIRECT(\"a\" & (VLOOKUP(Rebalance!$D$65,$F$2:$G$48,2,FALSE)+ROW()-2)),\"\")","v":{"$error":"#N/A"}},{"$f":"IF(INDIRECT(\"c\" & (VLOOKUP(Rebalance!$D$66,$F$2:$G$48,2,FALSE)+ROW()-2))=Rebalance!$D$66,INDIRECT(\"a\" & (VLOOKUP(Rebalance!$D$66,$F$2:$G$48,2,FALSE)+ROW()-2)),\"\")","v":{"$error":"#N/A"}}]
["Investec Property Equity Fund H","PPFH","Investec Fund Managers",{"$f":"ROW()","v":274},null,null,{"$f":"VLOOKUP(F274,$C$2:$D$599,2,FALSE)","v":{"$error":"#N/A"}},{"$f":"IF(INDIRECT(\"c\" & (VLOOKUP(Rebalance!$D$26,$F$2:$G$48,2,FALSE)+ROW()-2))=Rebalance!$D$26,INDIRECT(\"a\" & (VLOOKUP(Rebalance!$D$26,$F$2:$G$48,2,FALSE)+ROW()-2)),\"\")","v":{"$error":"#N/A"}},{"$f":"IF(INDIRECT(\"c\" & (VLOOKUP(Rebalance!$D$27,$F$2:$G$48,2,FALSE)+ROW()-2))=Rebalance!$D$27,INDIRECT(\"a\" & (VLOOKUP(Rebalance!$D$27,$F$2:$G$48,2,FALSE)+ROW()-2)),\"\")","v":{"$error":"#N/A"}},{"$f":"IF(INDIRECT(\"c\" & (VLOOKUP(Rebalance!$D$28,$F$2:$G$48,2,FALSE)+ROW()-2))=Rebalance!$D$28,INDIRECT(\"a\" & (VLOOKUP(Rebalance!$D$28,$F$2:$G$48,2,FALSE)+ROW()-2)),\"\")","v":{"$error":"#N/A"}},{"$f":"IF(INDIRECT(\"c\" & (VLOOKUP(Rebalance!$D$29,$F$2:$G$48,2,FALSE)+ROW()-2))=Rebalance!$D$29,INDIRECT(\"a\" & (VLOOKUP(Rebalance!$D$29,$F$2:$G$48,2,FALSE)+ROW()-2)),\"\")","v":{"$error":"#N/A"}},{"$f":"IF(INDIRECT(\"c\" & (VLOOKUP(Rebalance!$D$30,$F$2:$G$48,2,FALSE)+ROW()-2))=Rebalance!$D$30,INDIRECT(\"a\" & (VLOOKUP(Rebalance!$D$30,$F$2:$G$48,2,FALSE)+ROW()-2)),\"\")","v":{"$error":"#N/A"}},{"$f":"IF(INDIRECT(\"c\" & (VLOOKUP(Rebalance!$D$31,$F$2:$G$48,2,FALSE)+ROW()-2))=Rebalance!$D$31,INDIRECT(\"a\" & (VLOOKUP(Rebalance!$D$31,$F$2:$G$48,2,FALSE)+ROW()-2)),\"\")","v":{"$error":"#N/A"}},{"$f":"IF(INDIRECT(\"c\" & (VLOOKUP(Rebalance!$D$32,$F$2:$G$48,2,FALSE)+ROW()-2))=Rebalance!$D$32,INDIRECT(\"a\" & (VLOOKUP(Rebalance!$D$32,$F$2:$G$48,2,FALSE)+ROW()-2)),\"\")","v":{"$error":"#N/A"}},{"$f":"IF(INDIRECT(\"c\" & (VLOOKUP(Rebalance!$D$33,$F$2:$G$48,2,FALSE)+ROW()-2))=Rebalance!$D$33,INDIRECT(\"a\" & (VLOOKUP(Rebalance!$D$33,$F$2:$G$48,2,FALSE)+ROW()-2)),\"\")","v":{"$error":"#N/A"}},{"$f":"IF(INDIRECT(\"c\" & (VLOOKUP(Rebalance!$D$34,$F$2:$G$48,2,FALSE)+ROW()-2))=Rebalance!$D$34,INDIRECT(\"a\" & (VLOOKUP(Rebalance!$D$34,$F$2:$G$48,2,FALSE)+ROW()-2)),\"\")","v":{"$error":"#N/A"}},{"$f":"IF(INDIRECT(\"c\" & (VLOOKUP(Rebalance!$D$35,$F$2:$G$48,2,FALSE)+ROW()-2))=Rebalance!$D$35,INDIRECT(\"a\" & (VLOOKUP(Rebalance!$D$35,$F$2:$G$48,2,FALSE)+ROW()-2)),\"\")","v":{"$error":"#N/A"}},{"$f":"IF(INDIRECT(\"c\" & (VLOOKUP(Rebalance!$D$36,$F$2:$G$48,2,FALSE)+ROW()-2))=Rebalance!$D$36,INDIRECT(\"a\" & (VLOOKUP(Rebalance!$D$36,$F$2:$G$48,2,FALSE)+ROW()-2)),\"\")","v":{"$error":"#N/A"}},{"$f":"IF(INDIRECT(\"c\" & (VLOOKUP(Rebalance!$D$37,$F$2:$G$48,2,FALSE)+ROW()-2))=Rebalance!$D$37,INDIRECT(\"a\" & (VLOOKUP(Rebalance!$D$37,$F$2:$G$48,2,FALSE)+ROW()-2)),\"\")","v":{"$error":"#N/A"}},{"$f":"IF(INDIRECT(\"c\" & (VLOOKUP(Rebalance!$D$38,$F$2:$G$48,2,FALSE)+ROW()-2))=Rebalance!$D$38,INDIRECT(\"a\" & (VLOOKUP(Rebalance!$D$38,$F$2:$G$48,2,FALSE)+ROW()-2)),\"\")","v":{"$error":"#N/A"}},{"$f":"IF(INDIRECT(\"c\" & (VLOOKUP(Rebalance!$D$39,$F$2:$G$48,2,FALSE)+ROW()-2))=Rebalance!$D$39,INDIRECT(\"a\" & (VLOOKUP(Rebalance!$D$39,$F$2:$G$48,2,FALSE)+ROW()-2)),\"\")","v":{"$error":"#N/A"}},{"$f":"IF(INDIRECT(\"c\" & (VLOOKUP(Rebalance!$D$40,$F$2:$G$48,2,FALSE)+ROW()-2))=Rebalance!$D$40,INDIRECT(\"a\" & (VLOOKUP(Rebalance!$D$40,$F$2:$G$48,2,FALSE)+ROW()-2)),\"\")","v":{"$error":"#N/A"}},{"$f":"IF(INDIRECT(\"c\" & (VLOOKUP(Rebalance!$D$52,$F$2:$G$48,2,FALSE)+ROW()-2))=Rebalance!$D$52,INDIRECT(\"a\" & (VLOOKUP(Rebalance!$D$52,$F$2:$G$48,2,FALSE)+ROW()-2)),\"\")","v":{"$error":"#N/A"}},{"$f":"IF(INDIRECT(\"c\" & (VLOOKUP(Rebalance!$D$53,$F$2:$G$48,2,FALSE)+ROW()-2))=Rebalance!$D$53,INDIRECT(\"a\" & (VLOOKUP(Rebalance!$D$53,$F$2:$G$48,2,FALSE)+ROW()-2)),\"\")","v":{"$error":"#N/A"}},{"$f":"IF(INDIRECT(\"c\" & (VLOOKUP(Rebalance!$D$54,$F$2:$G$48,2,FALSE)+ROW()-2))=Rebalance!$D$54,INDIRECT(\"a\" & (VLOOKUP(Rebalance!$D$54,$F$2:$G$48,2,FALSE)+ROW()-2)),\"\")","v":{"$error":"#N/A"}},{"$f":"IF(INDIRECT(\"c\" & (VLOOKUP(Rebalance!$D$55,$F$2:$G$48,2,FALSE)+ROW()-2))=Rebalance!$D$55,INDIRECT(\"a\" & (VLOOKUP(Rebalance!$D$55,$F$2:$G$48,2,FALSE)+ROW()-2)),\"\")","v":{"$error":"#N/A"}},{"$f":"IF(INDIRECT(\"c\" & (VLOOKUP(Rebalance!$D$56,$F$2:$G$48,2,FALSE)+ROW()-2))=Rebalance!$D$56,INDIRECT(\"a\" & (VLOOKUP(Rebalance!$D$56,$F$2:$G$48,2,FALSE)+ROW()-2)),\"\")","v":{"$error":"#N/A"}},{"$f":"IF(INDIRECT(\"c\" & (VLOOKUP(Rebalance!$D$57,$F$2:$G$48,2,FALSE)+ROW()-2))=Rebalance!$D$57,INDIRECT(\"a\" & (VLOOKUP(Rebalance!$D$57,$F$2:$G$48,2,FALSE)+ROW()-2)),\"\")","v":{"$error":"#N/A"}},{"$f":"IF(INDIRECT(\"c\" & (VLOOKUP(Rebalance!$D$58,$F$2:$G$48,2,FALSE)+ROW()-2))=Rebalance!$D$58,INDIRECT(\"a\" & (VLOOKUP(Rebalance!$D$58,$F$2:$G$48,2,FALSE)+ROW()-2)),\"\")","v":{"$error":"#N/A"}},{"$f":"IF(INDIRECT(\"c\" & (VLOOKUP(Rebalance!$D$59,$F$2:$G$48,2,FALSE)+ROW()-2))=Rebalance!$D$59,INDIRECT(\"a\" & (VLOOKUP(Rebalance!$D$59,$F$2:$G$48,2,FALSE)+ROW()-2)),\"\")","v":{"$error":"#N/A"}},{"$f":"IF(INDIRECT(\"c\" & (VLOOKUP(Rebalance!$D$60,$F$2:$G$48,2,FALSE)+ROW()-2))=Rebalance!$D$60,INDIRECT(\"a\" & (VLOOKUP(Rebalance!$D$60,$F$2:$G$48,2,FALSE)+ROW()-2)),\"\")","v":{"$error":"#N/A"}},{"$f":"IF(INDIRECT(\"c\" & (VLOOKUP(Rebalance!$D$61,$F$2:$G$48,2,FALSE)+ROW()-2))=Rebalance!$D$61,INDIRECT(\"a\" & (VLOOKUP(Rebalance!$D$61,$F$2:$G$48,2,FALSE)+ROW()-2)),\"\")","v":{"$error":"#N/A"}},{"$f":"IF(INDIRECT(\"c\" & (VLOOKUP(Rebalance!$D$62,$F$2:$G$48,2,FALSE)+ROW()-2))=Rebalance!$D$62,INDIRECT(\"a\" & (VLOOKUP(Rebalance!$D$62,$F$2:$G$48,2,FALSE)+ROW()-2)),\"\")","v":{"$error":"#N/A"}},{"$f":"IF(INDIRECT(\"c\" & (VLOOKUP(Rebalance!$D$63,$F$2:$G$48,2,FALSE)+ROW()-2))=Rebalance!$D$63,INDIRECT(\"a\" & (VLOOKUP(Rebalance!$D$63,$F$2:$G$48,2,FALSE)+ROW()-2)),\"\")","v":{"$error":"#N/A"}},{"$f":"IF(INDIRECT(\"c\" & (VLOOKUP(Rebalance!$D$64,$F$2:$G$48,2,FALSE)+ROW()-2))=Rebalance!$D$64,INDIRECT(\"a\" & (VLOOKUP(Rebalance!$D$64,$F$2:$G$48,2,FALSE)+ROW()-2)),\"\")","v":{"$error":"#N/A"}},{"$f":"IF(INDIRECT(\"c\" & (VLOOKUP(Rebalance!$D$65,$F$2:$G$48,2,FALSE)+ROW()-2))=Rebalance!$D$65,INDIRECT(\"a\" & (VLOOKUP(Rebalance!$D$65,$F$2:$G$48,2,FALSE)+ROW()-2)),\"\")","v":{"$error":"#N/A"}},{"$f":"IF(INDIRECT(\"c\" & (VLOOKUP(Rebalance!$D$66,$F$2:$G$48,2,FALSE)+ROW()-2))=Rebalance!$D$66,INDIRECT(\"a\" & (VLOOKUP(Rebalance!$D$66,$F$2:$G$48,2,FALSE)+ROW()-2)),\"\")","v":{"$error":"#N/A"}}]
["Investec STeFI Plus Fund H","CPFH","Investec Fund Managers",{"$f":"ROW()","v":275},null,null,{"$f":"VLOOKUP(F275,$C$2:$D$599,2,FALSE)","v":{"$error":"#N/A"}},{"$f":"IF(INDIRECT(\"c\" & (VLOOKUP(Rebalance!$D$26,$F$2:$G$48,2,FALSE)+ROW()-2))=Rebalance!$D$26,INDIRECT(\"a\" & (VLOOKUP(Rebalance!$D$26,$F$2:$G$48,2,FALSE)+ROW()-2)),\"\")","v":{"$error":"#N/A"}},{"$f":"IF(INDIRECT(\"c\" & (VLOOKUP(Rebalance!$D$27,$F$2:$G$48,2,FALSE)+ROW()-2))=Rebalance!$D$27,INDIRECT(\"a\" & (VLOOKUP(Rebalance!$D$27,$F$2:$G$48,2,FALSE)+ROW()-2)),\"\")","v":{"$error":"#N/A"}},{"$f":"IF(INDIRECT(\"c\" & (VLOOKUP(Rebalance!$D$28,$F$2:$G$48,2,FALSE)+ROW()-2))=Rebalance!$D$28,INDIRECT(\"a\" & (VLOOKUP(Rebalance!$D$28,$F$2:$G$48,2,FALSE)+ROW()-2)),\"\")","v":{"$error":"#N/A"}},{"$f":"IF(INDIRECT(\"c\" & (VLOOKUP(Rebalance!$D$29,$F$2:$G$48,2,FALSE)+ROW()-2))=Rebalance!$D$29,INDIRECT(\"a\" & (VLOOKUP(Rebalance!$D$29,$F$2:$G$48,2,FALSE)+ROW()-2)),\"\")","v":{"$error":"#N/A"}},{"$f":"IF(INDIRECT(\"c\" & (VLOOKUP(Rebalance!$D$30,$F$2:$G$48,2,FALSE)+ROW()-2))=Rebalance!$D$30,INDIRECT(\"a\" & (VLOOKUP(Rebalance!$D$30,$F$2:$G$48,2,FALSE)+ROW()-2)),\"\")","v":{"$error":"#N/A"}},{"$f":"IF(INDIRECT(\"c\" & (VLOOKUP(Rebalance!$D$31,$F$2:$G$48,2,FALSE)+ROW()-2))=Rebalance!$D$31,INDIRECT(\"a\" & (VLOOKUP(Rebalance!$D$31,$F$2:$G$48,2,FALSE)+ROW()-2)),\"\")","v":{"$error":"#N/A"}},{"$f":"IF(INDIRECT(\"c\" & (VLOOKUP(Rebalance!$D$32,$F$2:$G$48,2,FALSE)+ROW()-2))=Rebalance!$D$32,INDIRECT(\"a\" & (VLOOKUP(Rebalance!$D$32,$F$2:$G$48,2,FALSE)+ROW()-2)),\"\")","v":{"$error":"#N/A"}},{"$f":"IF(INDIRECT(\"c\" & (VLOOKUP(Rebalance!$D$33,$F$2:$G$48,2,FALSE)+ROW()-2))=Rebalance!$D$33,INDIRECT(\"a\" & (VLOOKUP(Rebalance!$D$33,$F$2:$G$48,2,FALSE)+ROW()-2)),\"\")","v":{"$error":"#N/A"}},{"$f":"IF(INDIRECT(\"c\" & (VLOOKUP(Rebalance!$D$34,$F$2:$G$48,2,FALSE)+ROW()-2))=Rebalance!$D$34,INDIRECT(\"a\" & (VLOOKUP(Rebalance!$D$34,$F$2:$G$48,2,FALSE)+ROW()-2)),\"\")","v":{"$error":"#N/A"}},{"$f":"IF(INDIRECT(\"c\" & (VLOOKUP(Rebalance!$D$35,$F$2:$G$48,2,FALSE)+ROW()-2))=Rebalance!$D$35,INDIRECT(\"a\" & (VLOOKUP(Rebalance!$D$35,$F$2:$G$48,2,FALSE)+ROW()-2)),\"\")","v":{"$error":"#N/A"}},{"$f":"IF(INDIRECT(\"c\" & (VLOOKUP(Rebalance!$D$36,$F$2:$G$48,2,FALSE)+ROW()-2))=Rebalance!$D$36,INDIRECT(\"a\" & (VLOOKUP(Rebalance!$D$36,$F$2:$G$48,2,FALSE)+ROW()-2)),\"\")","v":{"$error":"#N/A"}},{"$f":"IF(INDIRECT(\"c\" & (VLOOKUP(Rebalance!$D$37,$F$2:$G$48,2,FALSE)+ROW()-2))=Rebalance!$D$37,INDIRECT(\"a\" & (VLOOKUP(Rebalance!$D$37,$F$2:$G$48,2,FALSE)+ROW()-2)),\"\")","v":{"$error":"#N/A"}},{"$f":"IF(INDIRECT(\"c\" & (VLOOKUP(Rebalance!$D$38,$F$2:$G$48,2,FALSE)+ROW()-2))=Rebalance!$D$38,INDIRECT(\"a\" & (VLOOKUP(Rebalance!$D$38,$F$2:$G$48,2,FALSE)+ROW()-2)),\"\")","v":{"$error":"#N/A"}},{"$f":"IF(INDIRECT(\"c\" & (VLOOKUP(Rebalance!$D$39,$F$2:$G$48,2,FALSE)+ROW()-2))=Rebalance!$D$39,INDIRECT(\"a\" & (VLOOKUP(Rebalance!$D$39,$F$2:$G$48,2,FALSE)+ROW()-2)),\"\")","v":{"$error":"#N/A"}},{"$f":"IF(INDIRECT(\"c\" & (VLOOKUP(Rebalance!$D$40,$F$2:$G$48,2,FALSE)+ROW()-2))=Rebalance!$D$40,INDIRECT(\"a\" & (VLOOKUP(Rebalance!$D$40,$F$2:$G$48,2,FALSE)+ROW()-2)),\"\")","v":{"$error":"#N/A"}},{"$f":"IF(INDIRECT(\"c\" & (VLOOKUP(Rebalance!$D$52,$F$2:$G$48,2,FALSE)+ROW()-2))=Rebalance!$D$52,INDIRECT(\"a\" & (VLOOKUP(Rebalance!$D$52,$F$2:$G$48,2,FALSE)+ROW()-2)),\"\")","v":{"$error":"#N/A"}},{"$f":"IF(INDIRECT(\"c\" & (VLOOKUP(Rebalance!$D$53,$F$2:$G$48,2,FALSE)+ROW()-2))=Rebalance!$D$53,INDIRECT(\"a\" & (VLOOKUP(Rebalance!$D$53,$F$2:$G$48,2,FALSE)+ROW()-2)),\"\")","v":{"$error":"#N/A"}},{"$f":"IF(INDIRECT(\"c\" & (VLOOKUP(Rebalance!$D$54,$F$2:$G$48,2,FALSE)+ROW()-2))=Rebalance!$D$54,INDIRECT(\"a\" & (VLOOKUP(Rebalance!$D$54,$F$2:$G$48,2,FALSE)+ROW()-2)),\"\")","v":{"$error":"#N/A"}},{"$f":"IF(INDIRECT(\"c\" & (VLOOKUP(Rebalance!$D$55,$F$2:$G$48,2,FALSE)+ROW()-2))=Rebalance!$D$55,INDIRECT(\"a\" & (VLOOKUP(Rebalance!$D$55,$F$2:$G$48,2,FALSE)+ROW()-2)),\"\")","v":{"$error":"#N/A"}},{"$f":"IF(INDIRECT(\"c\" & (VLOOKUP(Rebalance!$D$56,$F$2:$G$48,2,FALSE)+ROW()-2))=Rebalance!$D$56,INDIRECT(\"a\" & (VLOOKUP(Rebalance!$D$56,$F$2:$G$48,2,FALSE)+ROW()-2)),\"\")","v":{"$error":"#N/A"}},{"$f":"IF(INDIRECT(\"c\" & (VLOOKUP(Rebalance!$D$57,$F$2:$G$48,2,FALSE)+ROW()-2))=Rebalance!$D$57,INDIRECT(\"a\" & (VLOOKUP(Rebalance!$D$57,$F$2:$G$48,2,FALSE)+ROW()-2)),\"\")","v":{"$error":"#N/A"}},{"$f":"IF(INDIRECT(\"c\" & (VLOOKUP(Rebalance!$D$58,$F$2:$G$48,2,FALSE)+ROW()-2))=Rebalance!$D$58,INDIRECT(\"a\" & (VLOOKUP(Rebalance!$D$58,$F$2:$G$48,2,FALSE)+ROW()-2)),\"\")","v":{"$error":"#N/A"}},{"$f":"IF(INDIRECT(\"c\" & (VLOOKUP(Rebalance!$D$59,$F$2:$G$48,2,FALSE)+ROW()-2))=Rebalance!$D$59,INDIRECT(\"a\" & (VLOOKUP(Rebalance!$D$59,$F$2:$G$48,2,FALSE)+ROW()-2)),\"\")","v":{"$error":"#N/A"}},{"$f":"IF(INDIRECT(\"c\" & (VLOOKUP(Rebalance!$D$60,$F$2:$G$48,2,FALSE)+ROW()-2))=Rebalance!$D$60,INDIRECT(\"a\" & (VLOOKUP(Rebalance!$D$60,$F$2:$G$48,2,FALSE)+ROW()-2)),\"\")","v":{"$error":"#N/A"}},{"$f":"IF(INDIRECT(\"c\" & (VLOOKUP(Rebalance!$D$61,$F$2:$G$48,2,FALSE)+ROW()-2))=Rebalance!$D$61,INDIRECT(\"a\" & (VLOOKUP(Rebalance!$D$61,$F$2:$G$48,2,FALSE)+ROW()-2)),\"\")","v":{"$error":"#N/A"}},{"$f":"IF(INDIRECT(\"c\" & (VLOOKUP(Rebalance!$D$62,$F$2:$G$48,2,FALSE)+ROW()-2))=Rebalance!$D$62,INDIRECT(\"a\" & (VLOOKUP(Rebalance!$D$62,$F$2:$G$48,2,FALSE)+ROW()-2)),\"\")","v":{"$error":"#N/A"}},{"$f":"IF(INDIRECT(\"c\" & (VLOOKUP(Rebalance!$D$63,$F$2:$G$48,2,FALSE)+ROW()-2))=Rebalance!$D$63,INDIRECT(\"a\" & (VLOOKUP(Rebalance!$D$63,$F$2:$G$48,2,FALSE)+ROW()-2)),\"\")","v":{"$error":"#N/A"}},{"$f":"IF(INDIRECT(\"c\" & (VLOOKUP(Rebalance!$D$64,$F$2:$G$48,2,FALSE)+ROW()-2))=Rebalance!$D$64,INDIRECT(\"a\" & (VLOOKUP(Rebalance!$D$64,$F$2:$G$48,2,FALSE)+ROW()-2)),\"\")","v":{"$error":"#N/A"}},{"$f":"IF(INDIRECT(\"c\" & (VLOOKUP(Rebalance!$D$65,$F$2:$G$48,2,FALSE)+ROW()-2))=Rebalance!$D$65,INDIRECT(\"a\" & (VLOOKUP(Rebalance!$D$65,$F$2:$G$48,2,FALSE)+ROW()-2)),\"\")","v":{"$error":"#N/A"}},{"$f":"IF(INDIRECT(\"c\" & (VLOOKUP(Rebalance!$D$66,$F$2:$G$48,2,FALSE)+ROW()-2))=Rebalance!$D$66,INDIRECT(\"a\" & (VLOOKUP(Rebalance!$D$66,$F$2:$G$48,2,FALSE)+ROW()-2)),\"\")","v":{"$error":"#N/A"}}]
["Investec Value Fund H","VALH","Investec Fund Managers",{"$f":"ROW()","v":276},null,null,{"$f":"VLOOKUP(F276,$C$2:$D$599,2,FALSE)","v":{"$error":"#N/A"}},{"$f":"IF(INDIRECT(\"c\" & (VLOOKUP(Rebalance!$D$26,$F$2:$G$48,2,FALSE)+ROW()-2))=Rebalance!$D$26,INDIRECT(\"a\" & (VLOOKUP(Rebalance!$D$26,$F$2:$G$48,2,FALSE)+ROW()-2)),\"\")","v":{"$error":"#N/A"}},{"$f":"IF(INDIRECT(\"c\" & (VLOOKUP(Rebalance!$D$27,$F$2:$G$48,2,FALSE)+ROW()-2))=Rebalance!$D$27,INDIRECT(\"a\" & (VLOOKUP(Rebalance!$D$27,$F$2:$G$48,2,FALSE)+ROW()-2)),\"\")","v":{"$error":"#N/A"}},{"$f":"IF(INDIRECT(\"c\" & (VLOOKUP(Rebalance!$D$28,$F$2:$G$48,2,FALSE)+ROW()-2))=Rebalance!$D$28,INDIRECT(\"a\" & (VLOOKUP(Rebalance!$D$28,$F$2:$G$48,2,FALSE)+ROW()-2)),\"\")","v":{"$error":"#N/A"}},{"$f":"IF(INDIRECT(\"c\" & (VLOOKUP(Rebalance!$D$29,$F$2:$G$48,2,FALSE)+ROW()-2))=Rebalance!$D$29,INDIRECT(\"a\" & (VLOOKUP(Rebalance!$D$29,$F$2:$G$48,2,FALSE)+ROW()-2)),\"\")","v":{"$error":"#N/A"}},{"$f":"IF(INDIRECT(\"c\" & (VLOOKUP(Rebalance!$D$30,$F$2:$G$48,2,FALSE)+ROW()-2))=Rebalance!$D$30,INDIRECT(\"a\" & (VLOOKUP(Rebalance!$D$30,$F$2:$G$48,2,FALSE)+ROW()-2)),\"\")","v":{"$error":"#N/A"}},{"$f":"IF(INDIRECT(\"c\" & (VLOOKUP(Rebalance!$D$31,$F$2:$G$48,2,FALSE)+ROW()-2))=Rebalance!$D$31,INDIRECT(\"a\" & (VLOOKUP(Rebalance!$D$31,$F$2:$G$48,2,FALSE)+ROW()-2)),\"\")","v":{"$error":"#N/A"}},{"$f":"IF(INDIRECT(\"c\" & (VLOOKUP(Rebalance!$D$32,$F$2:$G$48,2,FALSE)+ROW()-2))=Rebalance!$D$32,INDIRECT(\"a\" & (VLOOKUP(Rebalance!$D$32,$F$2:$G$48,2,FALSE)+ROW()-2)),\"\")","v":{"$error":"#N/A"}},{"$f":"IF(INDIRECT(\"c\" & (VLOOKUP(Rebalance!$D$33,$F$2:$G$48,2,FALSE)+ROW()-2))=Rebalance!$D$33,INDIRECT(\"a\" & (VLOOKUP(Rebalance!$D$33,$F$2:$G$48,2,FALSE)+ROW()-2)),\"\")","v":{"$error":"#N/A"}},{"$f":"IF(INDIRECT(\"c\" & (VLOOKUP(Rebalance!$D$34,$F$2:$G$48,2,FALSE)+ROW()-2))=Rebalance!$D$34,INDIRECT(\"a\" & (VLOOKUP(Rebalance!$D$34,$F$2:$G$48,2,FALSE)+ROW()-2)),\"\")","v":{"$error":"#N/A"}},{"$f":"IF(INDIRECT(\"c\" & (VLOOKUP(Rebalance!$D$35,$F$2:$G$48,2,FALSE)+ROW()-2))=Rebalance!$D$35,INDIRECT(\"a\" & (VLOOKUP(Rebalance!$D$35,$F$2:$G$48,2,FALSE)+ROW()-2)),\"\")","v":{"$error":"#N/A"}},{"$f":"IF(INDIRECT(\"c\" & (VLOOKUP(Rebalance!$D$36,$F$2:$G$48,2,FALSE)+ROW()-2))=Rebalance!$D$36,INDIRECT(\"a\" & (VLOOKUP(Rebalance!$D$36,$F$2:$G$48,2,FALSE)+ROW()-2)),\"\")","v":{"$error":"#N/A"}},{"$f":"IF(INDIRECT(\"c\" & (VLOOKUP(Rebalance!$D$37,$F$2:$G$48,2,FALSE)+ROW()-2))=Rebalance!$D$37,INDIRECT(\"a\" & (VLOOKUP(Rebalance!$D$37,$F$2:$G$48,2,FALSE)+ROW()-2)),\"\")","v":{"$error":"#N/A"}},{"$f":"IF(INDIRECT(\"c\" & (VLOOKUP(Rebalance!$D$38,$F$2:$G$48,2,FALSE)+ROW()-2))=Rebalance!$D$38,INDIRECT(\"a\" & (VLOOKUP(Rebalance!$D$38,$F$2:$G$48,2,FALSE)+ROW()-2)),\"\")","v":{"$error":"#N/A"}},{"$f":"IF(INDIRECT(\"c\" & (VLOOKUP(Rebalance!$D$39,$F$2:$G$48,2,FALSE)+ROW()-2))=Rebalance!$D$39,INDIRECT(\"a\" & (VLOOKUP(Rebalance!$D$39,$F$2:$G$48,2,FALSE)+ROW()-2)),\"\")","v":{"$error":"#N/A"}},{"$f":"IF(INDIRECT(\"c\" & (VLOOKUP(Rebalance!$D$40,$F$2:$G$48,2,FALSE)+ROW()-2))=Rebalance!$D$40,INDIRECT(\"a\" & (VLOOKUP(Rebalance!$D$40,$F$2:$G$48,2,FALSE)+ROW()-2)),\"\")","v":{"$error":"#N/A"}},{"$f":"IF(INDIRECT(\"c\" & (VLOOKUP(Rebalance!$D$52,$F$2:$G$48,2,FALSE)+ROW()-2))=Rebalance!$D$52,INDIRECT(\"a\" & (VLOOKUP(Rebalance!$D$52,$F$2:$G$48,2,FALSE)+ROW()-2)),\"\")","v":{"$error":"#N/A"}},{"$f":"IF(INDIRECT(\"c\" & (VLOOKUP(Rebalance!$D$53,$F$2:$G$48,2,FALSE)+ROW()-2))=Rebalance!$D$53,INDIRECT(\"a\" & (VLOOKUP(Rebalance!$D$53,$F$2:$G$48,2,FALSE)+ROW()-2)),\"\")","v":{"$error":"#N/A"}},{"$f":"IF(INDIRECT(\"c\" & (VLOOKUP(Rebalance!$D$54,$F$2:$G$48,2,FALSE)+ROW()-2))=Rebalance!$D$54,INDIRECT(\"a\" & (VLOOKUP(Rebalance!$D$54,$F$2:$G$48,2,FALSE)+ROW()-2)),\"\")","v":{"$error":"#N/A"}},{"$f":"IF(INDIRECT(\"c\" & (VLOOKUP(Rebalance!$D$55,$F$2:$G$48,2,FALSE)+ROW()-2))=Rebalance!$D$55,INDIRECT(\"a\" & (VLOOKUP(Rebalance!$D$55,$F$2:$G$48,2,FALSE)+ROW()-2)),\"\")","v":{"$error":"#N/A"}},{"$f":"IF(INDIRECT(\"c\" & (VLOOKUP(Rebalance!$D$56,$F$2:$G$48,2,FALSE)+ROW()-2))=Rebalance!$D$56,INDIRECT(\"a\" & (VLOOKUP(Rebalance!$D$56,$F$2:$G$48,2,FALSE)+ROW()-2)),\"\")","v":{"$error":"#N/A"}},{"$f":"IF(INDIRECT(\"c\" & (VLOOKUP(Rebalance!$D$57,$F$2:$G$48,2,FALSE)+ROW()-2))=Rebalance!$D$57,INDIRECT(\"a\" & (VLOOKUP(Rebalance!$D$57,$F$2:$G$48,2,FALSE)+ROW()-2)),\"\")","v":{"$error":"#N/A"}},{"$f":"IF(INDIRECT(\"c\" & (VLOOKUP(Rebalance!$D$58,$F$2:$G$48,2,FALSE)+ROW()-2))=Rebalance!$D$58,INDIRECT(\"a\" & (VLOOKUP(Rebalance!$D$58,$F$2:$G$48,2,FALSE)+ROW()-2)),\"\")","v":{"$error":"#N/A"}},{"$f":"IF(INDIRECT(\"c\" & (VLOOKUP(Rebalance!$D$59,$F$2:$G$48,2,FALSE)+ROW()-2))=Rebalance!$D$59,INDIRECT(\"a\" & (VLOOKUP(Rebalance!$D$59,$F$2:$G$48,2,FALSE)+ROW()-2)),\"\")","v":{"$error":"#N/A"}},{"$f":"IF(INDIRECT(\"c\" & (VLOOKUP(Rebalance!$D$60,$F$2:$G$48,2,FALSE)+ROW()-2))=Rebalance!$D$60,INDIRECT(\"a\" & (VLOOKUP(Rebalance!$D$60,$F$2:$G$48,2,FALSE)+ROW()-2)),\"\")","v":{"$error":"#N/A"}},{"$f":"IF(INDIRECT(\"c\" & (VLOOKUP(Rebalance!$D$61,$F$2:$G$48,2,FALSE)+ROW()-2))=Rebalance!$D$61,INDIRECT(\"a\" & (VLOOKUP(Rebalance!$D$61,$F$2:$G$48,2,FALSE)+ROW()-2)),\"\")","v":{"$error":"#N/A"}},{"$f":"IF(INDIRECT(\"c\" & (VLOOKUP(Rebalance!$D$62,$F$2:$G$48,2,FALSE)+ROW()-2))=Rebalance!$D$62,INDIRECT(\"a\" & (VLOOKUP(Rebalance!$D$62,$F$2:$G$48,2,FALSE)+ROW()-2)),\"\")","v":{"$error":"#N/A"}},{"$f":"IF(INDIRECT(\"c\" & (VLOOKUP(Rebalance!$D$63,$F$2:$G$48,2,FALSE)+ROW()-2))=Rebalance!$D$63,INDIRECT(\"a\" & (VLOOKUP(Rebalance!$D$63,$F$2:$G$48,2,FALSE)+ROW()-2)),\"\")","v":{"$error":"#N/A"}},{"$f":"IF(INDIRECT(\"c\" & (VLOOKUP(Rebalance!$D$64,$F$2:$G$48,2,FALSE)+ROW()-2))=Rebalance!$D$64,INDIRECT(\"a\" & (VLOOKUP(Rebalance!$D$64,$F$2:$G$48,2,FALSE)+ROW()-2)),\"\")","v":{"$error":"#N/A"}},{"$f":"IF(INDIRECT(\"c\" & (VLOOKUP(Rebalance!$D$65,$F$2:$G$48,2,FALSE)+ROW()-2))=Rebalance!$D$65,INDIRECT(\"a\" & (VLOOKUP(Rebalance!$D$65,$F$2:$G$48,2,FALSE)+ROW()-2)),\"\")","v":{"$error":"#N/A"}},{"$f":"IF(INDIRECT(\"c\" & (VLOOKUP(Rebalance!$D$66,$F$2:$G$48,2,FALSE)+ROW()-2))=Rebalance!$D$66,INDIRECT(\"a\" & (VLOOKUP(Rebalance!$D$66,$F$2:$G$48,2,FALSE)+ROW()-2)),\"\")","v":{"$error":"#N/A"}}]
["Investec Worldwide Flexible Fund E","WFFE","Investec Fund Managers",{"$f":"ROW()","v":277},null,null,{"$f":"VLOOKUP(F277,$C$2:$D$599,2,FALSE)","v":{"$error":"#N/A"}},{"$f":"IF(INDIRECT(\"c\" & (VLOOKUP(Rebalance!$D$26,$F$2:$G$48,2,FALSE)+ROW()-2))=Rebalance!$D$26,INDIRECT(\"a\" & (VLOOKUP(Rebalance!$D$26,$F$2:$G$48,2,FALSE)+ROW()-2)),\"\")","v":{"$error":"#N/A"}},{"$f":"IF(INDIRECT(\"c\" & (VLOOKUP(Rebalance!$D$27,$F$2:$G$48,2,FALSE)+ROW()-2))=Rebalance!$D$27,INDIRECT(\"a\" & (VLOOKUP(Rebalance!$D$27,$F$2:$G$48,2,FALSE)+ROW()-2)),\"\")","v":{"$error":"#N/A"}},{"$f":"IF(INDIRECT(\"c\" & (VLOOKUP(Rebalance!$D$28,$F$2:$G$48,2,FALSE)+ROW()-2))=Rebalance!$D$28,INDIRECT(\"a\" & (VLOOKUP(Rebalance!$D$28,$F$2:$G$48,2,FALSE)+ROW()-2)),\"\")","v":{"$error":"#N/A"}},{"$f":"IF(INDIRECT(\"c\" & (VLOOKUP(Rebalance!$D$29,$F$2:$G$48,2,FALSE)+ROW()-2))=Rebalance!$D$29,INDIRECT(\"a\" & (VLOOKUP(Rebalance!$D$29,$F$2:$G$48,2,FALSE)+ROW()-2)),\"\")","v":{"$error":"#N/A"}},{"$f":"IF(INDIRECT(\"c\" & (VLOOKUP(Rebalance!$D$30,$F$2:$G$48,2,FALSE)+ROW()-2))=Rebalance!$D$30,INDIRECT(\"a\" & (VLOOKUP(Rebalance!$D$30,$F$2:$G$48,2,FALSE)+ROW()-2)),\"\")","v":{"$error":"#N/A"}},{"$f":"IF(INDIRECT(\"c\" & (VLOOKUP(Rebalance!$D$31,$F$2:$G$48,2,FALSE)+ROW()-2))=Rebalance!$D$31,INDIRECT(\"a\" & (VLOOKUP(Rebalance!$D$31,$F$2:$G$48,2,FALSE)+ROW()-2)),\"\")","v":{"$error":"#N/A"}},{"$f":"IF(INDIRECT(\"c\" & (VLOOKUP(Rebalance!$D$32,$F$2:$G$48,2,FALSE)+ROW()-2))=Rebalance!$D$32,INDIRECT(\"a\" & (VLOOKUP(Rebalance!$D$32,$F$2:$G$48,2,FALSE)+ROW()-2)),\"\")","v":{"$error":"#N/A"}},{"$f":"IF(INDIRECT(\"c\" & (VLOOKUP(Rebalance!$D$33,$F$2:$G$48,2,FALSE)+ROW()-2))=Rebalance!$D$33,INDIRECT(\"a\" & (VLOOKUP(Rebalance!$D$33,$F$2:$G$48,2,FALSE)+ROW()-2)),\"\")","v":{"$error":"#N/A"}},{"$f":"IF(INDIRECT(\"c\" & (VLOOKUP(Rebalance!$D$34,$F$2:$G$48,2,FALSE)+ROW()-2))=Rebalance!$D$34,INDIRECT(\"a\" & (VLOOKUP(Rebalance!$D$34,$F$2:$G$48,2,FALSE)+ROW()-2)),\"\")","v":{"$error":"#N/A"}},{"$f":"IF(INDIRECT(\"c\" & (VLOOKUP(Rebalance!$D$35,$F$2:$G$48,2,FALSE)+ROW()-2))=Rebalance!$D$35,INDIRECT(\"a\" & (VLOOKUP(Rebalance!$D$35,$F$2:$G$48,2,FALSE)+ROW()-2)),\"\")","v":{"$error":"#N/A"}},{"$f":"IF(INDIRECT(\"c\" & (VLOOKUP(Rebalance!$D$36,$F$2:$G$48,2,FALSE)+ROW()-2))=Rebalance!$D$36,INDIRECT(\"a\" & (VLOOKUP(Rebalance!$D$36,$F$2:$G$48,2,FALSE)+ROW()-2)),\"\")","v":{"$error":"#N/A"}},{"$f":"IF(INDIRECT(\"c\" & (VLOOKUP(Rebalance!$D$37,$F$2:$G$48,2,FALSE)+ROW()-2))=Rebalance!$D$37,INDIRECT(\"a\" & (VLOOKUP(Rebalance!$D$37,$F$2:$G$48,2,FALSE)+ROW()-2)),\"\")","v":{"$error":"#N/A"}},{"$f":"IF(INDIRECT(\"c\" & (VLOOKUP(Rebalance!$D$38,$F$2:$G$48,2,FALSE)+ROW()-2))=Rebalance!$D$38,INDIRECT(\"a\" & (VLOOKUP(Rebalance!$D$38,$F$2:$G$48,2,FALSE)+ROW()-2)),\"\")","v":{"$error":"#N/A"}},{"$f":"IF(INDIRECT(\"c\" & (VLOOKUP(Rebalance!$D$39,$F$2:$G$48,2,FALSE)+ROW()-2))=Rebalance!$D$39,INDIRECT(\"a\" & (VLOOKUP(Rebalance!$D$39,$F$2:$G$48,2,FALSE)+ROW()-2)),\"\")","v":{"$error":"#N/A"}},{"$f":"IF(INDIRECT(\"c\" & (VLOOKUP(Rebalance!$D$40,$F$2:$G$48,2,FALSE)+ROW()-2))=Rebalance!$D$40,INDIRECT(\"a\" & (VLOOKUP(Rebalance!$D$40,$F$2:$G$48,2,FALSE)+ROW()-2)),\"\")","v":{"$error":"#N/A"}},{"$f":"IF(INDIRECT(\"c\" & (VLOOKUP(Rebalance!$D$52,$F$2:$G$48,2,FALSE)+ROW()-2))=Rebalance!$D$52,INDIRECT(\"a\" & (VLOOKUP(Rebalance!$D$52,$F$2:$G$48,2,FALSE)+ROW()-2)),\"\")","v":{"$error":"#N/A"}},{"$f":"IF(INDIRECT(\"c\" & (VLOOKUP(Rebalance!$D$53,$F$2:$G$48,2,FALSE)+ROW()-2))=Rebalance!$D$53,INDIRECT(\"a\" & (VLOOKUP(Rebalance!$D$53,$F$2:$G$48,2,FALSE)+ROW()-2)),\"\")","v":{"$error":"#N/A"}},{"$f":"IF(INDIRECT(\"c\" & (VLOOKUP(Rebalance!$D$54,$F$2:$G$48,2,FALSE)+ROW()-2))=Rebalance!$D$54,INDIRECT(\"a\" & (VLOOKUP(Rebalance!$D$54,$F$2:$G$48,2,FALSE)+ROW()-2)),\"\")","v":{"$error":"#N/A"}},{"$f":"IF(INDIRECT(\"c\" & (VLOOKUP(Rebalance!$D$55,$F$2:$G$48,2,FALSE)+ROW()-2))=Rebalance!$D$55,INDIRECT(\"a\" & (VLOOKUP(Rebalance!$D$55,$F$2:$G$48,2,FALSE)+ROW()-2)),\"\")","v":{"$error":"#N/A"}},{"$f":"IF(INDIRECT(\"c\" & (VLOOKUP(Rebalance!$D$56,$F$2:$G$48,2,FALSE)+ROW()-2))=Rebalance!$D$56,INDIRECT(\"a\" & (VLOOKUP(Rebalance!$D$56,$F$2:$G$48,2,FALSE)+ROW()-2)),\"\")","v":{"$error":"#N/A"}},{"$f":"IF(INDIRECT(\"c\" & (VLOOKUP(Rebalance!$D$57,$F$2:$G$48,2,FALSE)+ROW()-2))=Rebalance!$D$57,INDIRECT(\"a\" & (VLOOKUP(Rebalance!$D$57,$F$2:$G$48,2,FALSE)+ROW()-2)),\"\")","v":{"$error":"#N/A"}},{"$f":"IF(INDIRECT(\"c\" & (VLOOKUP(Rebalance!$D$58,$F$2:$G$48,2,FALSE)+ROW()-2))=Rebalance!$D$58,INDIRECT(\"a\" & (VLOOKUP(Rebalance!$D$58,$F$2:$G$48,2,FALSE)+ROW()-2)),\"\")","v":{"$error":"#N/A"}},{"$f":"IF(INDIRECT(\"c\" & (VLOOKUP(Rebalance!$D$59,$F$2:$G$48,2,FALSE)+ROW()-2))=Rebalance!$D$59,INDIRECT(\"a\" & (VLOOKUP(Rebalance!$D$59,$F$2:$G$48,2,FALSE)+ROW()-2)),\"\")","v":{"$error":"#N/A"}},{"$f":"IF(INDIRECT(\"c\" & (VLOOKUP(Rebalance!$D$60,$F$2:$G$48,2,FALSE)+ROW()-2))=Rebalance!$D$60,INDIRECT(\"a\" & (VLOOKUP(Rebalance!$D$60,$F$2:$G$48,2,FALSE)+ROW()-2)),\"\")","v":{"$error":"#N/A"}},{"$f":"IF(INDIRECT(\"c\" & (VLOOKUP(Rebalance!$D$61,$F$2:$G$48,2,FALSE)+ROW()-2))=Rebalance!$D$61,INDIRECT(\"a\" & (VLOOKUP(Rebalance!$D$61,$F$2:$G$48,2,FALSE)+ROW()-2)),\"\")","v":{"$error":"#N/A"}},{"$f":"IF(INDIRECT(\"c\" & (VLOOKUP(Rebalance!$D$62,$F$2:$G$48,2,FALSE)+ROW()-2))=Rebalance!$D$62,INDIRECT(\"a\" & (VLOOKUP(Rebalance!$D$62,$F$2:$G$48,2,FALSE)+ROW()-2)),\"\")","v":{"$error":"#N/A"}},{"$f":"IF(INDIRECT(\"c\" & (VLOOKUP(Rebalance!$D$63,$F$2:$G$48,2,FALSE)+ROW()-2))=Rebalance!$D$63,INDIRECT(\"a\" & (VLOOKUP(Rebalance!$D$63,$F$2:$G$48,2,FALSE)+ROW()-2)),\"\")","v":{"$error":"#N/A"}},{"$f":"IF(INDIRECT(\"c\" & (VLOOKUP(Rebalance!$D$64,$F$2:$G$48,2,FALSE)+ROW()-2))=Rebalance!$D$64,INDIRECT(\"a\" & (VLOOKUP(Rebalance!$D$64,$F$2:$G$48,2,FALSE)+ROW()-2)),\"\")","v":{"$error":"#N/A"}},{"$f":"IF(INDIRECT(\"c\" & (VLOOKUP(Rebalance!$D$65,$F$2:$G$48,2,FALSE)+ROW()-2))=Rebalance!$D$65,INDIRECT(\"a\" & (VLOOKUP(Rebalance!$D$65,$F$2:$G$48,2,FALSE)+ROW()-2)),\"\")","v":{"$error":"#N/A"}},{"$f":"IF(INDIRECT(\"c\" & (VLOOKUP(Rebalance!$D$66,$F$2:$G$48,2,FALSE)+ROW()-2))=Rebalance!$D$66,INDIRECT(\"a\" & (VLOOKUP(Rebalance!$D$66,$F$2:$G$48,2,FALSE)+ROW()-2)),\"\")","v":{"$error":"#N/A"}}]
["Investec Worldwide Equity Feeder Fund H","WWFH","Investec Fund Managers",{"$f":"ROW()","v":278},null,null,{"$f":"VLOOKUP(F278,$C$2:$D$599,2,FALSE)","v":{"$error":"#N/A"}},{"$f":"IF(INDIRECT(\"c\" & (VLOOKUP(Rebalance!$D$26,$F$2:$G$48,2,FALSE)+ROW()-2))=Rebalance!$D$26,INDIRECT(\"a\" & (VLOOKUP(Rebalance!$D$26,$F$2:$G$48,2,FALSE)+ROW()-2)),\"\")","v":{"$error":"#N/A"}},{"$f":"IF(INDIRECT(\"c\" & (VLOOKUP(Rebalance!$D$27,$F$2:$G$48,2,FALSE)+ROW()-2))=Rebalance!$D$27,INDIRECT(\"a\" & (VLOOKUP(Rebalance!$D$27,$F$2:$G$48,2,FALSE)+ROW()-2)),\"\")","v":{"$error":"#N/A"}},{"$f":"IF(INDIRECT(\"c\" & (VLOOKUP(Rebalance!$D$28,$F$2:$G$48,2,FALSE)+ROW()-2))=Rebalance!$D$28,INDIRECT(\"a\" & (VLOOKUP(Rebalance!$D$28,$F$2:$G$48,2,FALSE)+ROW()-2)),\"\")","v":{"$error":"#N/A"}},{"$f":"IF(INDIRECT(\"c\" & (VLOOKUP(Rebalance!$D$29,$F$2:$G$48,2,FALSE)+ROW()-2))=Rebalance!$D$29,INDIRECT(\"a\" & (VLOOKUP(Rebalance!$D$29,$F$2:$G$48,2,FALSE)+ROW()-2)),\"\")","v":{"$error":"#N/A"}},{"$f":"IF(INDIRECT(\"c\" & (VLOOKUP(Rebalance!$D$30,$F$2:$G$48,2,FALSE)+ROW()-2))=Rebalance!$D$30,INDIRECT(\"a\" & (VLOOKUP(Rebalance!$D$30,$F$2:$G$48,2,FALSE)+ROW()-2)),\"\")","v":{"$error":"#N/A"}},{"$f":"IF(INDIRECT(\"c\" & (VLOOKUP(Rebalance!$D$31,$F$2:$G$48,2,FALSE)+ROW()-2))=Rebalance!$D$31,INDIRECT(\"a\" & (VLOOKUP(Rebalance!$D$31,$F$2:$G$48,2,FALSE)+ROW()-2)),\"\")","v":{"$error":"#N/A"}},{"$f":"IF(INDIRECT(\"c\" & (VLOOKUP(Rebalance!$D$32,$F$2:$G$48,2,FALSE)+ROW()-2))=Rebalance!$D$32,INDIRECT(\"a\" & (VLOOKUP(Rebalance!$D$32,$F$2:$G$48,2,FALSE)+ROW()-2)),\"\")","v":{"$error":"#N/A"}},{"$f":"IF(INDIRECT(\"c\" & (VLOOKUP(Rebalance!$D$33,$F$2:$G$48,2,FALSE)+ROW()-2))=Rebalance!$D$33,INDIRECT(\"a\" & (VLOOKUP(Rebalance!$D$33,$F$2:$G$48,2,FALSE)+ROW()-2)),\"\")","v":{"$error":"#N/A"}},{"$f":"IF(INDIRECT(\"c\" & (VLOOKUP(Rebalance!$D$34,$F$2:$G$48,2,FALSE)+ROW()-2))=Rebalance!$D$34,INDIRECT(\"a\" & (VLOOKUP(Rebalance!$D$34,$F$2:$G$48,2,FALSE)+ROW()-2)),\"\")","v":{"$error":"#N/A"}},{"$f":"IF(INDIRECT(\"c\" & (VLOOKUP(Rebalance!$D$35,$F$2:$G$48,2,FALSE)+ROW()-2))=Rebalance!$D$35,INDIRECT(\"a\" & (VLOOKUP(Rebalance!$D$35,$F$2:$G$48,2,FALSE)+ROW()-2)),\"\")","v":{"$error":"#N/A"}},{"$f":"IF(INDIRECT(\"c\" & (VLOOKUP(Rebalance!$D$36,$F$2:$G$48,2,FALSE)+ROW()-2))=Rebalance!$D$36,INDIRECT(\"a\" & (VLOOKUP(Rebalance!$D$36,$F$2:$G$48,2,FALSE)+ROW()-2)),\"\")","v":{"$error":"#N/A"}},{"$f":"IF(INDIRECT(\"c\" & (VLOOKUP(Rebalance!$D$37,$F$2:$G$48,2,FALSE)+ROW()-2))=Rebalance!$D$37,INDIRECT(\"a\" & (VLOOKUP(Rebalance!$D$37,$F$2:$G$48,2,FALSE)+ROW()-2)),\"\")","v":{"$error":"#N/A"}},{"$f":"IF(INDIRECT(\"c\" & (VLOOKUP(Rebalance!$D$38,$F$2:$G$48,2,FALSE)+ROW()-2))=Rebalance!$D$38,INDIRECT(\"a\" & (VLOOKUP(Rebalance!$D$38,$F$2:$G$48,2,FALSE)+ROW()-2)),\"\")","v":{"$error":"#N/A"}},{"$f":"IF(INDIRECT(\"c\" & (VLOOKUP(Rebalance!$D$39,$F$2:$G$48,2,FALSE)+ROW()-2))=Rebalance!$D$39,INDIRECT(\"a\" & (VLOOKUP(Rebalance!$D$39,$F$2:$G$48,2,FALSE)+ROW()-2)),\"\")","v":{"$error":"#N/A"}},{"$f":"IF(INDIRECT(\"c\" & (VLOOKUP(Rebalance!$D$40,$F$2:$G$48,2,FALSE)+ROW()-2))=Rebalance!$D$40,INDIRECT(\"a\" & (VLOOKUP(Rebalance!$D$40,$F$2:$G$48,2,FALSE)+ROW()-2)),\"\")","v":{"$error":"#N/A"}},{"$f":"IF(INDIRECT(\"c\" & (VLOOKUP(Rebalance!$D$52,$F$2:$G$48,2,FALSE)+ROW()-2))=Rebalance!$D$52,INDIRECT(\"a\" & (VLOOKUP(Rebalance!$D$52,$F$2:$G$48,2,FALSE)+ROW()-2)),\"\")","v":{"$error":"#N/A"}},{"$f":"IF(INDIRECT(\"c\" & (VLOOKUP(Rebalance!$D$53,$F$2:$G$48,2,FALSE)+ROW()-2))=Rebalance!$D$53,INDIRECT(\"a\" & (VLOOKUP(Rebalance!$D$53,$F$2:$G$48,2,FALSE)+ROW()-2)),\"\")","v":{"$error":"#N/A"}},{"$f":"IF(INDIRECT(\"c\" & (VLOOKUP(Rebalance!$D$54,$F$2:$G$48,2,FALSE)+ROW()-2))=Rebalance!$D$54,INDIRECT(\"a\" & (VLOOKUP(Rebalance!$D$54,$F$2:$G$48,2,FALSE)+ROW()-2)),\"\")","v":{"$error":"#N/A"}},{"$f":"IF(INDIRECT(\"c\" & (VLOOKUP(Rebalance!$D$55,$F$2:$G$48,2,FALSE)+ROW()-2))=Rebalance!$D$55,INDIRECT(\"a\" & (VLOOKUP(Rebalance!$D$55,$F$2:$G$48,2,FALSE)+ROW()-2)),\"\")","v":{"$error":"#N/A"}},{"$f":"IF(INDIRECT(\"c\" & (VLOOKUP(Rebalance!$D$56,$F$2:$G$48,2,FALSE)+ROW()-2))=Rebalance!$D$56,INDIRECT(\"a\" & (VLOOKUP(Rebalance!$D$56,$F$2:$G$48,2,FALSE)+ROW()-2)),\"\")","v":{"$error":"#N/A"}},{"$f":"IF(INDIRECT(\"c\" & (VLOOKUP(Rebalance!$D$57,$F$2:$G$48,2,FALSE)+ROW()-2))=Rebalance!$D$57,INDIRECT(\"a\" & (VLOOKUP(Rebalance!$D$57,$F$2:$G$48,2,FALSE)+ROW()-2)),\"\")","v":{"$error":"#N/A"}},{"$f":"IF(INDIRECT(\"c\" & (VLOOKUP(Rebalance!$D$58,$F$2:$G$48,2,FALSE)+ROW()-2))=Rebalance!$D$58,INDIRECT(\"a\" & (VLOOKUP(Rebalance!$D$58,$F$2:$G$48,2,FALSE)+ROW()-2)),\"\")","v":{"$error":"#N/A"}},{"$f":"IF(INDIRECT(\"c\" & (VLOOKUP(Rebalance!$D$59,$F$2:$G$48,2,FALSE)+ROW()-2))=Rebalance!$D$59,INDIRECT(\"a\" & (VLOOKUP(Rebalance!$D$59,$F$2:$G$48,2,FALSE)+ROW()-2)),\"\")","v":{"$error":"#N/A"}},{"$f":"IF(INDIRECT(\"c\" & (VLOOKUP(Rebalance!$D$60,$F$2:$G$48,2,FALSE)+ROW()-2))=Rebalance!$D$60,INDIRECT(\"a\" & (VLOOKUP(Rebalance!$D$60,$F$2:$G$48,2,FALSE)+ROW()-2)),\"\")","v":{"$error":"#N/A"}},{"$f":"IF(INDIRECT(\"c\" & (VLOOKUP(Rebalance!$D$61,$F$2:$G$48,2,FALSE)+ROW()-2))=Rebalance!$D$61,INDIRECT(\"a\" & (VLOOKUP(Rebalance!$D$61,$F$2:$G$48,2,FALSE)+ROW()-2)),\"\")","v":{"$error":"#N/A"}},{"$f":"IF(INDIRECT(\"c\" & (VLOOKUP(Rebalance!$D$62,$F$2:$G$48,2,FALSE)+ROW()-2))=Rebalance!$D$62,INDIRECT(\"a\" & (VLOOKUP(Rebalance!$D$62,$F$2:$G$48,2,FALSE)+ROW()-2)),\"\")","v":{"$error":"#N/A"}},{"$f":"IF(INDIRECT(\"c\" & (VLOOKUP(Rebalance!$D$63,$F$2:$G$48,2,FALSE)+ROW()-2))=Rebalance!$D$63,INDIRECT(\"a\" & (VLOOKUP(Rebalance!$D$63,$F$2:$G$48,2,FALSE)+ROW()-2)),\"\")","v":{"$error":"#N/A"}},{"$f":"IF(INDIRECT(\"c\" & (VLOOKUP(Rebalance!$D$64,$F$2:$G$48,2,FALSE)+ROW()-2))=Rebalance!$D$64,INDIRECT(\"a\" & (VLOOKUP(Rebalance!$D$64,$F$2:$G$48,2,FALSE)+ROW()-2)),\"\")","v":{"$error":"#N/A"}},{"$f":"IF(INDIRECT(\"c\" & (VLOOKUP(Rebalance!$D$65,$F$2:$G$48,2,FALSE)+ROW()-2))=Rebalance!$D$65,INDIRECT(\"a\" & (VLOOKUP(Rebalance!$D$65,$F$2:$G$48,2,FALSE)+ROW()-2)),\"\")","v":{"$error":"#N/A"}},{"$f":"IF(INDIRECT(\"c\" & (VLOOKUP(Rebalance!$D$66,$F$2:$G$48,2,FALSE)+ROW()-2))=Rebalance!$D$66,INDIRECT(\"a\" & (VLOOKUP(Rebalance!$D$66,$F$2:$G$48,2,FALSE)+ROW()-2)),\"\")","v":{"$error":"#N/A"}}]
["Flagship IP Flexible Value Fund A1","FIFA1","IP Management Company (Pty) Ltd",{"$f":"ROW()","v":279},null,null,{"$f":"VLOOKUP(F279,$C$2:$D$599,2,FALSE)","v":{"$error":"#N/A"}},{"$f":"IF(INDIRECT(\"c\" & (VLOOKUP(Rebalance!$D$26,$F$2:$G$48,2,FALSE)+ROW()-2))=Rebalance!$D$26,INDIRECT(\"a\" & (VLOOKUP(Rebalance!$D$26,$F$2:$G$48,2,FALSE)+ROW()-2)),\"\")","v":{"$error":"#N/A"}},{"$f":"IF(INDIRECT(\"c\" & (VLOOKUP(Rebalance!$D$27,$F$2:$G$48,2,FALSE)+ROW()-2))=Rebalance!$D$27,INDIRECT(\"a\" & (VLOOKUP(Rebalance!$D$27,$F$2:$G$48,2,FALSE)+ROW()-2)),\"\")","v":{"$error":"#N/A"}},{"$f":"IF(INDIRECT(\"c\" & (VLOOKUP(Rebalance!$D$28,$F$2:$G$48,2,FALSE)+ROW()-2))=Rebalance!$D$28,INDIRECT(\"a\" & (VLOOKUP(Rebalance!$D$28,$F$2:$G$48,2,FALSE)+ROW()-2)),\"\")","v":{"$error":"#N/A"}},{"$f":"IF(INDIRECT(\"c\" & (VLOOKUP(Rebalance!$D$29,$F$2:$G$48,2,FALSE)+ROW()-2))=Rebalance!$D$29,INDIRECT(\"a\" & (VLOOKUP(Rebalance!$D$29,$F$2:$G$48,2,FALSE)+ROW()-2)),\"\")","v":{"$error":"#N/A"}},{"$f":"IF(INDIRECT(\"c\" & (VLOOKUP(Rebalance!$D$30,$F$2:$G$48,2,FALSE)+ROW()-2))=Rebalance!$D$30,INDIRECT(\"a\" & (VLOOKUP(Rebalance!$D$30,$F$2:$G$48,2,FALSE)+ROW()-2)),\"\")","v":{"$error":"#N/A"}},{"$f":"IF(INDIRECT(\"c\" & (VLOOKUP(Rebalance!$D$31,$F$2:$G$48,2,FALSE)+ROW()-2))=Rebalance!$D$31,INDIRECT(\"a\" & (VLOOKUP(Rebalance!$D$31,$F$2:$G$48,2,FALSE)+ROW()-2)),\"\")","v":{"$error":"#N/A"}},{"$f":"IF(INDIRECT(\"c\" & (VLOOKUP(Rebalance!$D$32,$F$2:$G$48,2,FALSE)+ROW()-2))=Rebalance!$D$32,INDIRECT(\"a\" & (VLOOKUP(Rebalance!$D$32,$F$2:$G$48,2,FALSE)+ROW()-2)),\"\")","v":{"$error":"#N/A"}},{"$f":"IF(INDIRECT(\"c\" & (VLOOKUP(Rebalance!$D$33,$F$2:$G$48,2,FALSE)+ROW()-2))=Rebalance!$D$33,INDIRECT(\"a\" & (VLOOKUP(Rebalance!$D$33,$F$2:$G$48,2,FALSE)+ROW()-2)),\"\")","v":{"$error":"#N/A"}},{"$f":"IF(INDIRECT(\"c\" & (VLOOKUP(Rebalance!$D$34,$F$2:$G$48,2,FALSE)+ROW()-2))=Rebalance!$D$34,INDIRECT(\"a\" & (VLOOKUP(Rebalance!$D$34,$F$2:$G$48,2,FALSE)+ROW()-2)),\"\")","v":{"$error":"#N/A"}},{"$f":"IF(INDIRECT(\"c\" & (VLOOKUP(Rebalance!$D$35,$F$2:$G$48,2,FALSE)+ROW()-2))=Rebalance!$D$35,INDIRECT(\"a\" & (VLOOKUP(Rebalance!$D$35,$F$2:$G$48,2,FALSE)+ROW()-2)),\"\")","v":{"$error":"#N/A"}},{"$f":"IF(INDIRECT(\"c\" & (VLOOKUP(Rebalance!$D$36,$F$2:$G$48,2,FALSE)+ROW()-2))=Rebalance!$D$36,INDIRECT(\"a\" & (VLOOKUP(Rebalance!$D$36,$F$2:$G$48,2,FALSE)+ROW()-2)),\"\")","v":{"$error":"#N/A"}},{"$f":"IF(INDIRECT(\"c\" & (VLOOKUP(Rebalance!$D$37,$F$2:$G$48,2,FALSE)+ROW()-2))=Rebalance!$D$37,INDIRECT(\"a\" & (VLOOKUP(Rebalance!$D$37,$F$2:$G$48,2,FALSE)+ROW()-2)),\"\")","v":{"$error":"#N/A"}},{"$f":"IF(INDIRECT(\"c\" & (VLOOKUP(Rebalance!$D$38,$F$2:$G$48,2,FALSE)+ROW()-2))=Rebalance!$D$38,INDIRECT(\"a\" & (VLOOKUP(Rebalance!$D$38,$F$2:$G$48,2,FALSE)+ROW()-2)),\"\")","v":{"$error":"#N/A"}},{"$f":"IF(INDIRECT(\"c\" & (VLOOKUP(Rebalance!$D$39,$F$2:$G$48,2,FALSE)+ROW()-2))=Rebalance!$D$39,INDIRECT(\"a\" & (VLOOKUP(Rebalance!$D$39,$F$2:$G$48,2,FALSE)+ROW()-2)),\"\")","v":{"$error":"#N/A"}},{"$f":"IF(INDIRECT(\"c\" & (VLOOKUP(Rebalance!$D$40,$F$2:$G$48,2,FALSE)+ROW()-2))=Rebalance!$D$40,INDIRECT(\"a\" & (VLOOKUP(Rebalance!$D$40,$F$2:$G$48,2,FALSE)+ROW()-2)),\"\")","v":{"$error":"#N/A"}},{"$f":"IF(INDIRECT(\"c\" & (VLOOKUP(Rebalance!$D$52,$F$2:$G$48,2,FALSE)+ROW()-2))=Rebalance!$D$52,INDIRECT(\"a\" & (VLOOKUP(Rebalance!$D$52,$F$2:$G$48,2,FALSE)+ROW()-2)),\"\")","v":{"$error":"#N/A"}},{"$f":"IF(INDIRECT(\"c\" & (VLOOKUP(Rebalance!$D$53,$F$2:$G$48,2,FALSE)+ROW()-2))=Rebalance!$D$53,INDIRECT(\"a\" & (VLOOKUP(Rebalance!$D$53,$F$2:$G$48,2,FALSE)+ROW()-2)),\"\")","v":{"$error":"#N/A"}},{"$f":"IF(INDIRECT(\"c\" & (VLOOKUP(Rebalance!$D$54,$F$2:$G$48,2,FALSE)+ROW()-2))=Rebalance!$D$54,INDIRECT(\"a\" & (VLOOKUP(Rebalance!$D$54,$F$2:$G$48,2,FALSE)+ROW()-2)),\"\")","v":{"$error":"#N/A"}},{"$f":"IF(INDIRECT(\"c\" & (VLOOKUP(Rebalance!$D$55,$F$2:$G$48,2,FALSE)+ROW()-2))=Rebalance!$D$55,INDIRECT(\"a\" & (VLOOKUP(Rebalance!$D$55,$F$2:$G$48,2,FALSE)+ROW()-2)),\"\")","v":{"$error":"#N/A"}},{"$f":"IF(INDIRECT(\"c\" & (VLOOKUP(Rebalance!$D$56,$F$2:$G$48,2,FALSE)+ROW()-2))=Rebalance!$D$56,INDIRECT(\"a\" & (VLOOKUP(Rebalance!$D$56,$F$2:$G$48,2,FALSE)+ROW()-2)),\"\")","v":{"$error":"#N/A"}},{"$f":"IF(INDIRECT(\"c\" & (VLOOKUP(Rebalance!$D$57,$F$2:$G$48,2,FALSE)+ROW()-2))=Rebalance!$D$57,INDIRECT(\"a\" & (VLOOKUP(Rebalance!$D$57,$F$2:$G$48,2,FALSE)+ROW()-2)),\"\")","v":{"$error":"#N/A"}},{"$f":"IF(INDIRECT(\"c\" & (VLOOKUP(Rebalance!$D$58,$F$2:$G$48,2,FALSE)+ROW()-2))=Rebalance!$D$58,INDIRECT(\"a\" & (VLOOKUP(Rebalance!$D$58,$F$2:$G$48,2,FALSE)+ROW()-2)),\"\")","v":{"$error":"#N/A"}},{"$f":"IF(INDIRECT(\"c\" & (VLOOKUP(Rebalance!$D$59,$F$2:$G$48,2,FALSE)+ROW()-2))=Rebalance!$D$59,INDIRECT(\"a\" & (VLOOKUP(Rebalance!$D$59,$F$2:$G$48,2,FALSE)+ROW()-2)),\"\")","v":{"$error":"#N/A"}},{"$f":"IF(INDIRECT(\"c\" & (VLOOKUP(Rebalance!$D$60,$F$2:$G$48,2,FALSE)+ROW()-2))=Rebalance!$D$60,INDIRECT(\"a\" & (VLOOKUP(Rebalance!$D$60,$F$2:$G$48,2,FALSE)+ROW()-2)),\"\")","v":{"$error":"#N/A"}},{"$f":"IF(INDIRECT(\"c\" & (VLOOKUP(Rebalance!$D$61,$F$2:$G$48,2,FALSE)+ROW()-2))=Rebalance!$D$61,INDIRECT(\"a\" & (VLOOKUP(Rebalance!$D$61,$F$2:$G$48,2,FALSE)+ROW()-2)),\"\")","v":{"$error":"#N/A"}},{"$f":"IF(INDIRECT(\"c\" & (VLOOKUP(Rebalance!$D$62,$F$2:$G$48,2,FALSE)+ROW()-2))=Rebalance!$D$62,INDIRECT(\"a\" & (VLOOKUP(Rebalance!$D$62,$F$2:$G$48,2,FALSE)+ROW()-2)),\"\")","v":{"$error":"#N/A"}},{"$f":"IF(INDIRECT(\"c\" & (VLOOKUP(Rebalance!$D$63,$F$2:$G$48,2,FALSE)+ROW()-2))=Rebalance!$D$63,INDIRECT(\"a\" & (VLOOKUP(Rebalance!$D$63,$F$2:$G$48,2,FALSE)+ROW()-2)),\"\")","v":{"$error":"#N/A"}},{"$f":"IF(INDIRECT(\"c\" & (VLOOKUP(Rebalance!$D$64,$F$2:$G$48,2,FALSE)+ROW()-2))=Rebalance!$D$64,INDIRECT(\"a\" & (VLOOKUP(Rebalance!$D$64,$F$2:$G$48,2,FALSE)+ROW()-2)),\"\")","v":{"$error":"#N/A"}},{"$f":"IF(INDIRECT(\"c\" & (VLOOKUP(Rebalance!$D$65,$F$2:$G$48,2,FALSE)+ROW()-2))=Rebalance!$D$65,INDIRECT(\"a\" & (VLOOKUP(Rebalance!$D$65,$F$2:$G$48,2,FALSE)+ROW()-2)),\"\")","v":{"$error":"#N/A"}},{"$f":"IF(INDIRECT(\"c\" & (VLOOKUP(Rebalance!$D$66,$F$2:$G$48,2,FALSE)+ROW()-2))=Rebalance!$D$66,INDIRECT(\"a\" & (VLOOKUP(Rebalance!$D$66,$F$2:$G$48,2,FALSE)+ROW()-2)),\"\")","v":{"$error":"#N/A"}}]
["Global IP Opportunity Fund B5","GIOF","IP Management Company (Pty) Ltd",{"$f":"ROW()","v":280},null,null,{"$f":"VLOOKUP(F280,$C$2:$D$599,2,FALSE)","v":{"$error":"#N/A"}},{"$f":"IF(INDIRECT(\"c\" & (VLOOKUP(Rebalance!$D$26,$F$2:$G$48,2,FALSE)+ROW()-2))=Rebalance!$D$26,INDIRECT(\"a\" & (VLOOKUP(Rebalance!$D$26,$F$2:$G$48,2,FALSE)+ROW()-2)),\"\")","v":{"$error":"#N/A"}},{"$f":"IF(INDIRECT(\"c\" & (VLOOKUP(Rebalance!$D$27,$F$2:$G$48,2,FALSE)+ROW()-2))=Rebalance!$D$27,INDIRECT(\"a\" & (VLOOKUP(Rebalance!$D$27,$F$2:$G$48,2,FALSE)+ROW()-2)),\"\")","v":{"$error":"#N/A"}},{"$f":"IF(INDIRECT(\"c\" & (VLOOKUP(Rebalance!$D$28,$F$2:$G$48,2,FALSE)+ROW()-2))=Rebalance!$D$28,INDIRECT(\"a\" & (VLOOKUP(Rebalance!$D$28,$F$2:$G$48,2,FALSE)+ROW()-2)),\"\")","v":{"$error":"#N/A"}},{"$f":"IF(INDIRECT(\"c\" & (VLOOKUP(Rebalance!$D$29,$F$2:$G$48,2,FALSE)+ROW()-2))=Rebalance!$D$29,INDIRECT(\"a\" & (VLOOKUP(Rebalance!$D$29,$F$2:$G$48,2,FALSE)+ROW()-2)),\"\")","v":{"$error":"#N/A"}},{"$f":"IF(INDIRECT(\"c\" & (VLOOKUP(Rebalance!$D$30,$F$2:$G$48,2,FALSE)+ROW()-2))=Rebalance!$D$30,INDIRECT(\"a\" & (VLOOKUP(Rebalance!$D$30,$F$2:$G$48,2,FALSE)+ROW()-2)),\"\")","v":{"$error":"#N/A"}},{"$f":"IF(INDIRECT(\"c\" & (VLOOKUP(Rebalance!$D$31,$F$2:$G$48,2,FALSE)+ROW()-2))=Rebalance!$D$31,INDIRECT(\"a\" & (VLOOKUP(Rebalance!$D$31,$F$2:$G$48,2,FALSE)+ROW()-2)),\"\")","v":{"$error":"#N/A"}},{"$f":"IF(INDIRECT(\"c\" & (VLOOKUP(Rebalance!$D$32,$F$2:$G$48,2,FALSE)+ROW()-2))=Rebalance!$D$32,INDIRECT(\"a\" & (VLOOKUP(Rebalance!$D$32,$F$2:$G$48,2,FALSE)+ROW()-2)),\"\")","v":{"$error":"#N/A"}},{"$f":"IF(INDIRECT(\"c\" & (VLOOKUP(Rebalance!$D$33,$F$2:$G$48,2,FALSE)+ROW()-2))=Rebalance!$D$33,INDIRECT(\"a\" & (VLOOKUP(Rebalance!$D$33,$F$2:$G$48,2,FALSE)+ROW()-2)),\"\")","v":{"$error":"#N/A"}},{"$f":"IF(INDIRECT(\"c\" & (VLOOKUP(Rebalance!$D$34,$F$2:$G$48,2,FALSE)+ROW()-2))=Rebalance!$D$34,INDIRECT(\"a\" & (VLOOKUP(Rebalance!$D$34,$F$2:$G$48,2,FALSE)+ROW()-2)),\"\")","v":{"$error":"#N/A"}},{"$f":"IF(INDIRECT(\"c\" & (VLOOKUP(Rebalance!$D$35,$F$2:$G$48,2,FALSE)+ROW()-2))=Rebalance!$D$35,INDIRECT(\"a\" & (VLOOKUP(Rebalance!$D$35,$F$2:$G$48,2,FALSE)+ROW()-2)),\"\")","v":{"$error":"#N/A"}},{"$f":"IF(INDIRECT(\"c\" & (VLOOKUP(Rebalance!$D$36,$F$2:$G$48,2,FALSE)+ROW()-2))=Rebalance!$D$36,INDIRECT(\"a\" & (VLOOKUP(Rebalance!$D$36,$F$2:$G$48,2,FALSE)+ROW()-2)),\"\")","v":{"$error":"#N/A"}},{"$f":"IF(INDIRECT(\"c\" & (VLOOKUP(Rebalance!$D$37,$F$2:$G$48,2,FALSE)+ROW()-2))=Rebalance!$D$37,INDIRECT(\"a\" & (VLOOKUP(Rebalance!$D$37,$F$2:$G$48,2,FALSE)+ROW()-2)),\"\")","v":{"$error":"#N/A"}},{"$f":"IF(INDIRECT(\"c\" & (VLOOKUP(Rebalance!$D$38,$F$2:$G$48,2,FALSE)+ROW()-2))=Rebalance!$D$38,INDIRECT(\"a\" & (VLOOKUP(Rebalance!$D$38,$F$2:$G$48,2,FALSE)+ROW()-2)),\"\")","v":{"$error":"#N/A"}},{"$f":"IF(INDIRECT(\"c\" & (VLOOKUP(Rebalance!$D$39,$F$2:$G$48,2,FALSE)+ROW()-2))=Rebalance!$D$39,INDIRECT(\"a\" & (VLOOKUP(Rebalance!$D$39,$F$2:$G$48,2,FALSE)+ROW()-2)),\"\")","v":{"$error":"#N/A"}},{"$f":"IF(INDIRECT(\"c\" & (VLOOKUP(Rebalance!$D$40,$F$2:$G$48,2,FALSE)+ROW()-2))=Rebalance!$D$40,INDIRECT(\"a\" & (VLOOKUP(Rebalance!$D$40,$F$2:$G$48,2,FALSE)+ROW()-2)),\"\")","v":{"$error":"#N/A"}},{"$f":"IF(INDIRECT(\"c\" & (VLOOKUP(Rebalance!$D$52,$F$2:$G$48,2,FALSE)+ROW()-2))=Rebalance!$D$52,INDIRECT(\"a\" & (VLOOKUP(Rebalance!$D$52,$F$2:$G$48,2,FALSE)+ROW()-2)),\"\")","v":{"$error":"#N/A"}},{"$f":"IF(INDIRECT(\"c\" & (VLOOKUP(Rebalance!$D$53,$F$2:$G$48,2,FALSE)+ROW()-2))=Rebalance!$D$53,INDIRECT(\"a\" & (VLOOKUP(Rebalance!$D$53,$F$2:$G$48,2,FALSE)+ROW()-2)),\"\")","v":{"$error":"#N/A"}},{"$f":"IF(INDIRECT(\"c\" & (VLOOKUP(Rebalance!$D$54,$F$2:$G$48,2,FALSE)+ROW()-2))=Rebalance!$D$54,INDIRECT(\"a\" & (VLOOKUP(Rebalance!$D$54,$F$2:$G$48,2,FALSE)+ROW()-2)),\"\")","v":{"$error":"#N/A"}},{"$f":"IF(INDIRECT(\"c\" & (VLOOKUP(Rebalance!$D$55,$F$2:$G$48,2,FALSE)+ROW()-2))=Rebalance!$D$55,INDIRECT(\"a\" & (VLOOKUP(Rebalance!$D$55,$F$2:$G$48,2,FALSE)+ROW()-2)),\"\")","v":{"$error":"#N/A"}},{"$f":"IF(INDIRECT(\"c\" & (VLOOKUP(Rebalance!$D$56,$F$2:$G$48,2,FALSE)+ROW()-2))=Rebalance!$D$56,INDIRECT(\"a\" & (VLOOKUP(Rebalance!$D$56,$F$2:$G$48,2,FALSE)+ROW()-2)),\"\")","v":{"$error":"#N/A"}},{"$f":"IF(INDIRECT(\"c\" & (VLOOKUP(Rebalance!$D$57,$F$2:$G$48,2,FALSE)+ROW()-2))=Rebalance!$D$57,INDIRECT(\"a\" & (VLOOKUP(Rebalance!$D$57,$F$2:$G$48,2,FALSE)+ROW()-2)),\"\")","v":{"$error":"#N/A"}},{"$f":"IF(INDIRECT(\"c\" & (VLOOKUP(Rebalance!$D$58,$F$2:$G$48,2,FALSE)+ROW()-2))=Rebalance!$D$58,INDIRECT(\"a\" & (VLOOKUP(Rebalance!$D$58,$F$2:$G$48,2,FALSE)+ROW()-2)),\"\")","v":{"$error":"#N/A"}},{"$f":"IF(INDIRECT(\"c\" & (VLOOKUP(Rebalance!$D$59,$F$2:$G$48,2,FALSE)+ROW()-2))=Rebalance!$D$59,INDIRECT(\"a\" & (VLOOKUP(Rebalance!$D$59,$F$2:$G$48,2,FALSE)+ROW()-2)),\"\")","v":{"$error":"#N/A"}},{"$f":"IF(INDIRECT(\"c\" & (VLOOKUP(Rebalance!$D$60,$F$2:$G$48,2,FALSE)+ROW()-2))=Rebalance!$D$60,INDIRECT(\"a\" & (VLOOKUP(Rebalance!$D$60,$F$2:$G$48,2,FALSE)+ROW()-2)),\"\")","v":{"$error":"#N/A"}},{"$f":"IF(INDIRECT(\"c\" & (VLOOKUP(Rebalance!$D$61,$F$2:$G$48,2,FALSE)+ROW()-2))=Rebalance!$D$61,INDIRECT(\"a\" & (VLOOKUP(Rebalance!$D$61,$F$2:$G$48,2,FALSE)+ROW()-2)),\"\")","v":{"$error":"#N/A"}},{"$f":"IF(INDIRECT(\"c\" & (VLOOKUP(Rebalance!$D$62,$F$2:$G$48,2,FALSE)+ROW()-2))=Rebalance!$D$62,INDIRECT(\"a\" & (VLOOKUP(Rebalance!$D$62,$F$2:$G$48,2,FALSE)+ROW()-2)),\"\")","v":{"$error":"#N/A"}},{"$f":"IF(INDIRECT(\"c\" & (VLOOKUP(Rebalance!$D$63,$F$2:$G$48,2,FALSE)+ROW()-2))=Rebalance!$D$63,INDIRECT(\"a\" & (VLOOKUP(Rebalance!$D$63,$F$2:$G$48,2,FALSE)+ROW()-2)),\"\")","v":{"$error":"#N/A"}},{"$f":"IF(INDIRECT(\"c\" & (VLOOKUP(Rebalance!$D$64,$F$2:$G$48,2,FALSE)+ROW()-2))=Rebalance!$D$64,INDIRECT(\"a\" & (VLOOKUP(Rebalance!$D$64,$F$2:$G$48,2,FALSE)+ROW()-2)),\"\")","v":{"$error":"#N/A"}},{"$f":"IF(INDIRECT(\"c\" & (VLOOKUP(Rebalance!$D$65,$F$2:$G$48,2,FALSE)+ROW()-2))=Rebalance!$D$65,INDIRECT(\"a\" & (VLOOKUP(Rebalance!$D$65,$F$2:$G$48,2,FALSE)+ROW()-2)),\"\")","v":{"$error":"#N/A"}},{"$f":"IF(INDIRECT(\"c\" & (VLOOKUP(Rebalance!$D$66,$F$2:$G$48,2,FALSE)+ROW()-2))=Rebalance!$D$66,INDIRECT(\"a\" & (VLOOKUP(Rebalance!$D$66,$F$2:$G$48,2,FALSE)+ROW()-2)),\"\")","v":{"$error":"#N/A"}}]
["Mitonoptimal IP Active Beta Fund","MIABF","IP Management Company (Pty) Ltd",{"$f":"ROW()","v":281},null,null,{"$f":"VLOOKUP(F281,$C$2:$D$599,2,FALSE)","v":{"$error":"#N/A"}},{"$f":"IF(INDIRECT(\"c\" & (VLOOKUP(Rebalance!$D$26,$F$2:$G$48,2,FALSE)+ROW()-2))=Rebalance!$D$26,INDIRECT(\"a\" & (VLOOKUP(Rebalance!$D$26,$F$2:$G$48,2,FALSE)+ROW()-2)),\"\")","v":{"$error":"#N/A"}},{"$f":"IF(INDIRECT(\"c\" & (VLOOKUP(Rebalance!$D$27,$F$2:$G$48,2,FALSE)+ROW()-2))=Rebalance!$D$27,INDIRECT(\"a\" & (VLOOKUP(Rebalance!$D$27,$F$2:$G$48,2,FALSE)+ROW()-2)),\"\")","v":{"$error":"#N/A"}},{"$f":"IF(INDIRECT(\"c\" & (VLOOKUP(Rebalance!$D$28,$F$2:$G$48,2,FALSE)+ROW()-2))=Rebalance!$D$28,INDIRECT(\"a\" & (VLOOKUP(Rebalance!$D$28,$F$2:$G$48,2,FALSE)+ROW()-2)),\"\")","v":{"$error":"#N/A"}},{"$f":"IF(INDIRECT(\"c\" & (VLOOKUP(Rebalance!$D$29,$F$2:$G$48,2,FALSE)+ROW()-2))=Rebalance!$D$29,INDIRECT(\"a\" & (VLOOKUP(Rebalance!$D$29,$F$2:$G$48,2,FALSE)+ROW()-2)),\"\")","v":{"$error":"#N/A"}},{"$f":"IF(INDIRECT(\"c\" & (VLOOKUP(Rebalance!$D$30,$F$2:$G$48,2,FALSE)+ROW()-2))=Rebalance!$D$30,INDIRECT(\"a\" & (VLOOKUP(Rebalance!$D$30,$F$2:$G$48,2,FALSE)+ROW()-2)),\"\")","v":{"$error":"#N/A"}},{"$f":"IF(INDIRECT(\"c\" & (VLOOKUP(Rebalance!$D$31,$F$2:$G$48,2,FALSE)+ROW()-2))=Rebalance!$D$31,INDIRECT(\"a\" & (VLOOKUP(Rebalance!$D$31,$F$2:$G$48,2,FALSE)+ROW()-2)),\"\")","v":{"$error":"#N/A"}},{"$f":"IF(INDIRECT(\"c\" & (VLOOKUP(Rebalance!$D$32,$F$2:$G$48,2,FALSE)+ROW()-2))=Rebalance!$D$32,INDIRECT(\"a\" & (VLOOKUP(Rebalance!$D$32,$F$2:$G$48,2,FALSE)+ROW()-2)),\"\")","v":{"$error":"#N/A"}},{"$f":"IF(INDIRECT(\"c\" & (VLOOKUP(Rebalance!$D$33,$F$2:$G$48,2,FALSE)+ROW()-2))=Rebalance!$D$33,INDIRECT(\"a\" & (VLOOKUP(Rebalance!$D$33,$F$2:$G$48,2,FALSE)+ROW()-2)),\"\")","v":{"$error":"#N/A"}},{"$f":"IF(INDIRECT(\"c\" & (VLOOKUP(Rebalance!$D$34,$F$2:$G$48,2,FALSE)+ROW()-2))=Rebalance!$D$34,INDIRECT(\"a\" & (VLOOKUP(Rebalance!$D$34,$F$2:$G$48,2,FALSE)+ROW()-2)),\"\")","v":{"$error":"#N/A"}},{"$f":"IF(INDIRECT(\"c\" & (VLOOKUP(Rebalance!$D$35,$F$2:$G$48,2,FALSE)+ROW()-2))=Rebalance!$D$35,INDIRECT(\"a\" & (VLOOKUP(Rebalance!$D$35,$F$2:$G$48,2,FALSE)+ROW()-2)),\"\")","v":{"$error":"#N/A"}},{"$f":"IF(INDIRECT(\"c\" & (VLOOKUP(Rebalance!$D$36,$F$2:$G$48,2,FALSE)+ROW()-2))=Rebalance!$D$36,INDIRECT(\"a\" & (VLOOKUP(Rebalance!$D$36,$F$2:$G$48,2,FALSE)+ROW()-2)),\"\")","v":{"$error":"#N/A"}},{"$f":"IF(INDIRECT(\"c\" & (VLOOKUP(Rebalance!$D$37,$F$2:$G$48,2,FALSE)+ROW()-2))=Rebalance!$D$37,INDIRECT(\"a\" & (VLOOKUP(Rebalance!$D$37,$F$2:$G$48,2,FALSE)+ROW()-2)),\"\")","v":{"$error":"#N/A"}},{"$f":"IF(INDIRECT(\"c\" & (VLOOKUP(Rebalance!$D$38,$F$2:$G$48,2,FALSE)+ROW()-2))=Rebalance!$D$38,INDIRECT(\"a\" & (VLOOKUP(Rebalance!$D$38,$F$2:$G$48,2,FALSE)+ROW()-2)),\"\")","v":{"$error":"#N/A"}},{"$f":"IF(INDIRECT(\"c\" & (VLOOKUP(Rebalance!$D$39,$F$2:$G$48,2,FALSE)+ROW()-2))=Rebalance!$D$39,INDIRECT(\"a\" & (VLOOKUP(Rebalance!$D$39,$F$2:$G$48,2,FALSE)+ROW()-2)),\"\")","v":{"$error":"#N/A"}},{"$f":"IF(INDIRECT(\"c\" & (VLOOKUP(Rebalance!$D$40,$F$2:$G$48,2,FALSE)+ROW()-2))=Rebalance!$D$40,INDIRECT(\"a\" & (VLOOKUP(Rebalance!$D$40,$F$2:$G$48,2,FALSE)+ROW()-2)),\"\")","v":{"$error":"#N/A"}},{"$f":"IF(INDIRECT(\"c\" & (VLOOKUP(Rebalance!$D$52,$F$2:$G$48,2,FALSE)+ROW()-2))=Rebalance!$D$52,INDIRECT(\"a\" & (VLOOKUP(Rebalance!$D$52,$F$2:$G$48,2,FALSE)+ROW()-2)),\"\")","v":{"$error":"#N/A"}},{"$f":"IF(INDIRECT(\"c\" & (VLOOKUP(Rebalance!$D$53,$F$2:$G$48,2,FALSE)+ROW()-2))=Rebalance!$D$53,INDIRECT(\"a\" & (VLOOKUP(Rebalance!$D$53,$F$2:$G$48,2,FALSE)+ROW()-2)),\"\")","v":{"$error":"#N/A"}},{"$f":"IF(INDIRECT(\"c\" & (VLOOKUP(Rebalance!$D$54,$F$2:$G$48,2,FALSE)+ROW()-2))=Rebalance!$D$54,INDIRECT(\"a\" & (VLOOKUP(Rebalance!$D$54,$F$2:$G$48,2,FALSE)+ROW()-2)),\"\")","v":{"$error":"#N/A"}},{"$f":"IF(INDIRECT(\"c\" & (VLOOKUP(Rebalance!$D$55,$F$2:$G$48,2,FALSE)+ROW()-2))=Rebalance!$D$55,INDIRECT(\"a\" & (VLOOKUP(Rebalance!$D$55,$F$2:$G$48,2,FALSE)+ROW()-2)),\"\")","v":{"$error":"#N/A"}},{"$f":"IF(INDIRECT(\"c\" & (VLOOKUP(Rebalance!$D$56,$F$2:$G$48,2,FALSE)+ROW()-2))=Rebalance!$D$56,INDIRECT(\"a\" & (VLOOKUP(Rebalance!$D$56,$F$2:$G$48,2,FALSE)+ROW()-2)),\"\")","v":{"$error":"#N/A"}},{"$f":"IF(INDIRECT(\"c\" & (VLOOKUP(Rebalance!$D$57,$F$2:$G$48,2,FALSE)+ROW()-2))=Rebalance!$D$57,INDIRECT(\"a\" & (VLOOKUP(Rebalance!$D$57,$F$2:$G$48,2,FALSE)+ROW()-2)),\"\")","v":{"$error":"#N/A"}},{"$f":"IF(INDIRECT(\"c\" & (VLOOKUP(Rebalance!$D$58,$F$2:$G$48,2,FALSE)+ROW()-2))=Rebalance!$D$58,INDIRECT(\"a\" & (VLOOKUP(Rebalance!$D$58,$F$2:$G$48,2,FALSE)+ROW()-2)),\"\")","v":{"$error":"#N/A"}},{"$f":"IF(INDIRECT(\"c\" & (VLOOKUP(Rebalance!$D$59,$F$2:$G$48,2,FALSE)+ROW()-2))=Rebalance!$D$59,INDIRECT(\"a\" & (VLOOKUP(Rebalance!$D$59,$F$2:$G$48,2,FALSE)+ROW()-2)),\"\")","v":{"$error":"#N/A"}},{"$f":"IF(INDIRECT(\"c\" & (VLOOKUP(Rebalance!$D$60,$F$2:$G$48,2,FALSE)+ROW()-2))=Rebalance!$D$60,INDIRECT(\"a\" & (VLOOKUP(Rebalance!$D$60,$F$2:$G$48,2,FALSE)+ROW()-2)),\"\")","v":{"$error":"#N/A"}},{"$f":"IF(INDIRECT(\"c\" & (VLOOKUP(Rebalance!$D$61,$F$2:$G$48,2,FALSE)+ROW()-2))=Rebalance!$D$61,INDIRECT(\"a\" & (VLOOKUP(Rebalance!$D$61,$F$2:$G$48,2,FALSE)+ROW()-2)),\"\")","v":{"$error":"#N/A"}},{"$f":"IF(INDIRECT(\"c\" & (VLOOKUP(Rebalance!$D$62,$F$2:$G$48,2,FALSE)+ROW()-2))=Rebalance!$D$62,INDIRECT(\"a\" & (VLOOKUP(Rebalance!$D$62,$F$2:$G$48,2,FALSE)+ROW()-2)),\"\")","v":{"$error":"#N/A"}},{"$f":"IF(INDIRECT(\"c\" & (VLOOKUP(Rebalance!$D$63,$F$2:$G$48,2,FALSE)+ROW()-2))=Rebalance!$D$63,INDIRECT(\"a\" & (VLOOKUP(Rebalance!$D$63,$F$2:$G$48,2,FALSE)+ROW()-2)),\"\")","v":{"$error":"#N/A"}},{"$f":"IF(INDIRECT(\"c\" & (VLOOKUP(Rebalance!$D$64,$F$2:$G$48,2,FALSE)+ROW()-2))=Rebalance!$D$64,INDIRECT(\"a\" & (VLOOKUP(Rebalance!$D$64,$F$2:$G$48,2,FALSE)+ROW()-2)),\"\")","v":{"$error":"#N/A"}},{"$f":"IF(INDIRECT(\"c\" & (VLOOKUP(Rebalance!$D$65,$F$2:$G$48,2,FALSE)+ROW()-2))=Rebalance!$D$65,INDIRECT(\"a\" & (VLOOKUP(Rebalance!$D$65,$F$2:$G$48,2,FALSE)+ROW()-2)),\"\")","v":{"$error":"#N/A"}},{"$f":"IF(INDIRECT(\"c\" & (VLOOKUP(Rebalance!$D$66,$F$2:$G$48,2,FALSE)+ROW()-2))=Rebalance!$D$66,INDIRECT(\"a\" & (VLOOKUP(Rebalance!$D$66,$F$2:$G$48,2,FALSE)+ROW()-2)),\"\")","v":{"$error":"#N/A"}}]
["Multi Asset IP Balanced Defensive Fund A","MADB1","IP Management Company (Pty) Ltd",{"$f":"ROW()","v":282},null,null,{"$f":"VLOOKUP(F282,$C$2:$D$599,2,FALSE)","v":{"$error":"#N/A"}},{"$f":"IF(INDIRECT(\"c\" & (VLOOKUP(Rebalance!$D$26,$F$2:$G$48,2,FALSE)+ROW()-2))=Rebalance!$D$26,INDIRECT(\"a\" & (VLOOKUP(Rebalance!$D$26,$F$2:$G$48,2,FALSE)+ROW()-2)),\"\")","v":{"$error":"#N/A"}},{"$f":"IF(INDIRECT(\"c\" & (VLOOKUP(Rebalance!$D$27,$F$2:$G$48,2,FALSE)+ROW()-2))=Rebalance!$D$27,INDIRECT(\"a\" & (VLOOKUP(Rebalance!$D$27,$F$2:$G$48,2,FALSE)+ROW()-2)),\"\")","v":{"$error":"#N/A"}},{"$f":"IF(INDIRECT(\"c\" & (VLOOKUP(Rebalance!$D$28,$F$2:$G$48,2,FALSE)+ROW()-2))=Rebalance!$D$28,INDIRECT(\"a\" & (VLOOKUP(Rebalance!$D$28,$F$2:$G$48,2,FALSE)+ROW()-2)),\"\")","v":{"$error":"#N/A"}},{"$f":"IF(INDIRECT(\"c\" & (VLOOKUP(Rebalance!$D$29,$F$2:$G$48,2,FALSE)+ROW()-2))=Rebalance!$D$29,INDIRECT(\"a\" & (VLOOKUP(Rebalance!$D$29,$F$2:$G$48,2,FALSE)+ROW()-2)),\"\")","v":{"$error":"#N/A"}},{"$f":"IF(INDIRECT(\"c\" & (VLOOKUP(Rebalance!$D$30,$F$2:$G$48,2,FALSE)+ROW()-2))=Rebalance!$D$30,INDIRECT(\"a\" & (VLOOKUP(Rebalance!$D$30,$F$2:$G$48,2,FALSE)+ROW()-2)),\"\")","v":{"$error":"#N/A"}},{"$f":"IF(INDIRECT(\"c\" & (VLOOKUP(Rebalance!$D$31,$F$2:$G$48,2,FALSE)+ROW()-2))=Rebalance!$D$31,INDIRECT(\"a\" & (VLOOKUP(Rebalance!$D$31,$F$2:$G$48,2,FALSE)+ROW()-2)),\"\")","v":{"$error":"#N/A"}},{"$f":"IF(INDIRECT(\"c\" & (VLOOKUP(Rebalance!$D$32,$F$2:$G$48,2,FALSE)+ROW()-2))=Rebalance!$D$32,INDIRECT(\"a\" & (VLOOKUP(Rebalance!$D$32,$F$2:$G$48,2,FALSE)+ROW()-2)),\"\")","v":{"$error":"#N/A"}},{"$f":"IF(INDIRECT(\"c\" & (VLOOKUP(Rebalance!$D$33,$F$2:$G$48,2,FALSE)+ROW()-2))=Rebalance!$D$33,INDIRECT(\"a\" & (VLOOKUP(Rebalance!$D$33,$F$2:$G$48,2,FALSE)+ROW()-2)),\"\")","v":{"$error":"#N/A"}},{"$f":"IF(INDIRECT(\"c\" & (VLOOKUP(Rebalance!$D$34,$F$2:$G$48,2,FALSE)+ROW()-2))=Rebalance!$D$34,INDIRECT(\"a\" & (VLOOKUP(Rebalance!$D$34,$F$2:$G$48,2,FALSE)+ROW()-2)),\"\")","v":{"$error":"#N/A"}},{"$f":"IF(INDIRECT(\"c\" & (VLOOKUP(Rebalance!$D$35,$F$2:$G$48,2,FALSE)+ROW()-2))=Rebalance!$D$35,INDIRECT(\"a\" & (VLOOKUP(Rebalance!$D$35,$F$2:$G$48,2,FALSE)+ROW()-2)),\"\")","v":{"$error":"#N/A"}},{"$f":"IF(INDIRECT(\"c\" & (VLOOKUP(Rebalance!$D$36,$F$2:$G$48,2,FALSE)+ROW()-2))=Rebalance!$D$36,INDIRECT(\"a\" & (VLOOKUP(Rebalance!$D$36,$F$2:$G$48,2,FALSE)+ROW()-2)),\"\")","v":{"$error":"#N/A"}},{"$f":"IF(INDIRECT(\"c\" & (VLOOKUP(Rebalance!$D$37,$F$2:$G$48,2,FALSE)+ROW()-2))=Rebalance!$D$37,INDIRECT(\"a\" & (VLOOKUP(Rebalance!$D$37,$F$2:$G$48,2,FALSE)+ROW()-2)),\"\")","v":{"$error":"#N/A"}},{"$f":"IF(INDIRECT(\"c\" & (VLOOKUP(Rebalance!$D$38,$F$2:$G$48,2,FALSE)+ROW()-2))=Rebalance!$D$38,INDIRECT(\"a\" & (VLOOKUP(Rebalance!$D$38,$F$2:$G$48,2,FALSE)+ROW()-2)),\"\")","v":{"$error":"#N/A"}},{"$f":"IF(INDIRECT(\"c\" & (VLOOKUP(Rebalance!$D$39,$F$2:$G$48,2,FALSE)+ROW()-2))=Rebalance!$D$39,INDIRECT(\"a\" & (VLOOKUP(Rebalance!$D$39,$F$2:$G$48,2,FALSE)+ROW()-2)),\"\")","v":{"$error":"#N/A"}},{"$f":"IF(INDIRECT(\"c\" & (VLOOKUP(Rebalance!$D$40,$F$2:$G$48,2,FALSE)+ROW()-2))=Rebalance!$D$40,INDIRECT(\"a\" & (VLOOKUP(Rebalance!$D$40,$F$2:$G$48,2,FALSE)+ROW()-2)),\"\")","v":{"$error":"#N/A"}},{"$f":"IF(INDIRECT(\"c\" & (VLOOKUP(Rebalance!$D$52,$F$2:$G$48,2,FALSE)+ROW()-2))=Rebalance!$D$52,INDIRECT(\"a\" & (VLOOKUP(Rebalance!$D$52,$F$2:$G$48,2,FALSE)+ROW()-2)),\"\")","v":{"$error":"#N/A"}},{"$f":"IF(INDIRECT(\"c\" & (VLOOKUP(Rebalance!$D$53,$F$2:$G$48,2,FALSE)+ROW()-2))=Rebalance!$D$53,INDIRECT(\"a\" & (VLOOKUP(Rebalance!$D$53,$F$2:$G$48,2,FALSE)+ROW()-2)),\"\")","v":{"$error":"#N/A"}},{"$f":"IF(INDIRECT(\"c\" & (VLOOKUP(Rebalance!$D$54,$F$2:$G$48,2,FALSE)+ROW()-2))=Rebalance!$D$54,INDIRECT(\"a\" & (VLOOKUP(Rebalance!$D$54,$F$2:$G$48,2,FALSE)+ROW()-2)),\"\")","v":{"$error":"#N/A"}},{"$f":"IF(INDIRECT(\"c\" & (VLOOKUP(Rebalance!$D$55,$F$2:$G$48,2,FALSE)+ROW()-2))=Rebalance!$D$55,INDIRECT(\"a\" & (VLOOKUP(Rebalance!$D$55,$F$2:$G$48,2,FALSE)+ROW()-2)),\"\")","v":{"$error":"#N/A"}},{"$f":"IF(INDIRECT(\"c\" & (VLOOKUP(Rebalance!$D$56,$F$2:$G$48,2,FALSE)+ROW()-2))=Rebalance!$D$56,INDIRECT(\"a\" & (VLOOKUP(Rebalance!$D$56,$F$2:$G$48,2,FALSE)+ROW()-2)),\"\")","v":{"$error":"#N/A"}},{"$f":"IF(INDIRECT(\"c\" & (VLOOKUP(Rebalance!$D$57,$F$2:$G$48,2,FALSE)+ROW()-2))=Rebalance!$D$57,INDIRECT(\"a\" & (VLOOKUP(Rebalance!$D$57,$F$2:$G$48,2,FALSE)+ROW()-2)),\"\")","v":{"$error":"#N/A"}},{"$f":"IF(INDIRECT(\"c\" & (VLOOKUP(Rebalance!$D$58,$F$2:$G$48,2,FALSE)+ROW()-2))=Rebalance!$D$58,INDIRECT(\"a\" & (VLOOKUP(Rebalance!$D$58,$F$2:$G$48,2,FALSE)+ROW()-2)),\"\")","v":{"$error":"#N/A"}},{"$f":"IF(INDIRECT(\"c\" & (VLOOKUP(Rebalance!$D$59,$F$2:$G$48,2,FALSE)+ROW()-2))=Rebalance!$D$59,INDIRECT(\"a\" & (VLOOKUP(Rebalance!$D$59,$F$2:$G$48,2,FALSE)+ROW()-2)),\"\")","v":{"$error":"#N/A"}},{"$f":"IF(INDIRECT(\"c\" & (VLOOKUP(Rebalance!$D$60,$F$2:$G$48,2,FALSE)+ROW()-2))=Rebalance!$D$60,INDIRECT(\"a\" & (VLOOKUP(Rebalance!$D$60,$F$2:$G$48,2,FALSE)+ROW()-2)),\"\")","v":{"$error":"#N/A"}},{"$f":"IF(INDIRECT(\"c\" & (VLOOKUP(Rebalance!$D$61,$F$2:$G$48,2,FALSE)+ROW()-2))=Rebalance!$D$61,INDIRECT(\"a\" & (VLOOKUP(Rebalance!$D$61,$F$2:$G$48,2,FALSE)+ROW()-2)),\"\")","v":{"$error":"#N/A"}},{"$f":"IF(INDIRECT(\"c\" & (VLOOKUP(Rebalance!$D$62,$F$2:$G$48,2,FALSE)+ROW()-2))=Rebalance!$D$62,INDIRECT(\"a\" & (VLOOKUP(Rebalance!$D$62,$F$2:$G$48,2,FALSE)+ROW()-2)),\"\")","v":{"$error":"#N/A"}},{"$f":"IF(INDIRECT(\"c\" & (VLOOKUP(Rebalance!$D$63,$F$2:$G$48,2,FALSE)+ROW()-2))=Rebalance!$D$63,INDIRECT(\"a\" & (VLOOKUP(Rebalance!$D$63,$F$2:$G$48,2,FALSE)+ROW()-2)),\"\")","v":{"$error":"#N/A"}},{"$f":"IF(INDIRECT(\"c\" & (VLOOKUP(Rebalance!$D$64,$F$2:$G$48,2,FALSE)+ROW()-2))=Rebalance!$D$64,INDIRECT(\"a\" & (VLOOKUP(Rebalance!$D$64,$F$2:$G$48,2,FALSE)+ROW()-2)),\"\")","v":{"$error":"#N/A"}},{"$f":"IF(INDIRECT(\"c\" & (VLOOKUP(Rebalance!$D$65,$F$2:$G$48,2,FALSE)+ROW()-2))=Rebalance!$D$65,INDIRECT(\"a\" & (VLOOKUP(Rebalance!$D$65,$F$2:$G$48,2,FALSE)+ROW()-2)),\"\")","v":{"$error":"#N/A"}},{"$f":"IF(INDIRECT(\"c\" & (VLOOKUP(Rebalance!$D$66,$F$2:$G$48,2,FALSE)+ROW()-2))=Rebalance!$D$66,INDIRECT(\"a\" & (VLOOKUP(Rebalance!$D$66,$F$2:$G$48,2,FALSE)+ROW()-2)),\"\")","v":{"$error":"#N/A"}}]
["Multi Asset IP Balanced Defensive Fund B1","MADB1","IP Management Company (Pty) Ltd",{"$f":"ROW()","v":283},null,null,{"$f":"VLOOKUP(F283,$C$2:$D$599,2,FALSE)","v":{"$error":"#N/A"}},{"$f":"IF(INDIRECT(\"c\" & (VLOOKUP(Rebalance!$D$26,$F$2:$G$48,2,FALSE)+ROW()-2))=Rebalance!$D$26,INDIRECT(\"a\" & (VLOOKUP(Rebalance!$D$26,$F$2:$G$48,2,FALSE)+ROW()-2)),\"\")","v":{"$error":"#N/A"}},{"$f":"IF(INDIRECT(\"c\" & (VLOOKUP(Rebalance!$D$27,$F$2:$G$48,2,FALSE)+ROW()-2))=Rebalance!$D$27,INDIRECT(\"a\" & (VLOOKUP(Rebalance!$D$27,$F$2:$G$48,2,FALSE)+ROW()-2)),\"\")","v":{"$error":"#N/A"}},{"$f":"IF(INDIRECT(\"c\" & (VLOOKUP(Rebalance!$D$28,$F$2:$G$48,2,FALSE)+ROW()-2))=Rebalance!$D$28,INDIRECT(\"a\" & (VLOOKUP(Rebalance!$D$28,$F$2:$G$48,2,FALSE)+ROW()-2)),\"\")","v":{"$error":"#N/A"}},{"$f":"IF(INDIRECT(\"c\" & (VLOOKUP(Rebalance!$D$29,$F$2:$G$48,2,FALSE)+ROW()-2))=Rebalance!$D$29,INDIRECT(\"a\" & (VLOOKUP(Rebalance!$D$29,$F$2:$G$48,2,FALSE)+ROW()-2)),\"\")","v":{"$error":"#N/A"}},{"$f":"IF(INDIRECT(\"c\" & (VLOOKUP(Rebalance!$D$30,$F$2:$G$48,2,FALSE)+ROW()-2))=Rebalance!$D$30,INDIRECT(\"a\" & (VLOOKUP(Rebalance!$D$30,$F$2:$G$48,2,FALSE)+ROW()-2)),\"\")","v":{"$error":"#N/A"}},{"$f":"IF(INDIRECT(\"c\" & (VLOOKUP(Rebalance!$D$31,$F$2:$G$48,2,FALSE)+ROW()-2))=Rebalance!$D$31,INDIRECT(\"a\" & (VLOOKUP(Rebalance!$D$31,$F$2:$G$48,2,FALSE)+ROW()-2)),\"\")","v":{"$error":"#N/A"}},{"$f":"IF(INDIRECT(\"c\" & (VLOOKUP(Rebalance!$D$32,$F$2:$G$48,2,FALSE)+ROW()-2))=Rebalance!$D$32,INDIRECT(\"a\" & (VLOOKUP(Rebalance!$D$32,$F$2:$G$48,2,FALSE)+ROW()-2)),\"\")","v":{"$error":"#N/A"}},{"$f":"IF(INDIRECT(\"c\" & (VLOOKUP(Rebalance!$D$33,$F$2:$G$48,2,FALSE)+ROW()-2))=Rebalance!$D$33,INDIRECT(\"a\" & (VLOOKUP(Rebalance!$D$33,$F$2:$G$48,2,FALSE)+ROW()-2)),\"\")","v":{"$error":"#N/A"}},{"$f":"IF(INDIRECT(\"c\" & (VLOOKUP(Rebalance!$D$34,$F$2:$G$48,2,FALSE)+ROW()-2))=Rebalance!$D$34,INDIRECT(\"a\" & (VLOOKUP(Rebalance!$D$34,$F$2:$G$48,2,FALSE)+ROW()-2)),\"\")","v":{"$error":"#N/A"}},{"$f":"IF(INDIRECT(\"c\" & (VLOOKUP(Rebalance!$D$35,$F$2:$G$48,2,FALSE)+ROW()-2))=Rebalance!$D$35,INDIRECT(\"a\" & (VLOOKUP(Rebalance!$D$35,$F$2:$G$48,2,FALSE)+ROW()-2)),\"\")","v":{"$error":"#N/A"}},{"$f":"IF(INDIRECT(\"c\" & (VLOOKUP(Rebalance!$D$36,$F$2:$G$48,2,FALSE)+ROW()-2))=Rebalance!$D$36,INDIRECT(\"a\" & (VLOOKUP(Rebalance!$D$36,$F$2:$G$48,2,FALSE)+ROW()-2)),\"\")","v":{"$error":"#N/A"}},{"$f":"IF(INDIRECT(\"c\" & (VLOOKUP(Rebalance!$D$37,$F$2:$G$48,2,FALSE)+ROW()-2))=Rebalance!$D$37,INDIRECT(\"a\" & (VLOOKUP(Rebalance!$D$37,$F$2:$G$48,2,FALSE)+ROW()-2)),\"\")","v":{"$error":"#N/A"}},{"$f":"IF(INDIRECT(\"c\" & (VLOOKUP(Rebalance!$D$38,$F$2:$G$48,2,FALSE)+ROW()-2))=Rebalance!$D$38,INDIRECT(\"a\" & (VLOOKUP(Rebalance!$D$38,$F$2:$G$48,2,FALSE)+ROW()-2)),\"\")","v":{"$error":"#N/A"}},{"$f":"IF(INDIRECT(\"c\" & (VLOOKUP(Rebalance!$D$39,$F$2:$G$48,2,FALSE)+ROW()-2))=Rebalance!$D$39,INDIRECT(\"a\" & (VLOOKUP(Rebalance!$D$39,$F$2:$G$48,2,FALSE)+ROW()-2)),\"\")","v":{"$error":"#N/A"}},{"$f":"IF(INDIRECT(\"c\" & (VLOOKUP(Rebalance!$D$40,$F$2:$G$48,2,FALSE)+ROW()-2))=Rebalance!$D$40,INDIRECT(\"a\" & (VLOOKUP(Rebalance!$D$40,$F$2:$G$48,2,FALSE)+ROW()-2)),\"\")","v":{"$error":"#N/A"}},{"$f":"IF(INDIRECT(\"c\" & (VLOOKUP(Rebalance!$D$52,$F$2:$G$48,2,FALSE)+ROW()-2))=Rebalance!$D$52,INDIRECT(\"a\" & (VLOOKUP(Rebalance!$D$52,$F$2:$G$48,2,FALSE)+ROW()-2)),\"\")","v":{"$error":"#N/A"}},{"$f":"IF(INDIRECT(\"c\" & (VLOOKUP(Rebalance!$D$53,$F$2:$G$48,2,FALSE)+ROW()-2))=Rebalance!$D$53,INDIRECT(\"a\" & (VLOOKUP(Rebalance!$D$53,$F$2:$G$48,2,FALSE)+ROW()-2)),\"\")","v":{"$error":"#N/A"}},{"$f":"IF(INDIRECT(\"c\" & (VLOOKUP(Rebalance!$D$54,$F$2:$G$48,2,FALSE)+ROW()-2))=Rebalance!$D$54,INDIRECT(\"a\" & (VLOOKUP(Rebalance!$D$54,$F$2:$G$48,2,FALSE)+ROW()-2)),\"\")","v":{"$error":"#N/A"}},{"$f":"IF(INDIRECT(\"c\" & (VLOOKUP(Rebalance!$D$55,$F$2:$G$48,2,FALSE)+ROW()-2))=Rebalance!$D$55,INDIRECT(\"a\" & (VLOOKUP(Rebalance!$D$55,$F$2:$G$48,2,FALSE)+ROW()-2)),\"\")","v":{"$error":"#N/A"}},{"$f":"IF(INDIRECT(\"c\" & (VLOOKUP(Rebalance!$D$56,$F$2:$G$48,2,FALSE)+ROW()-2))=Rebalance!$D$56,INDIRECT(\"a\" & (VLOOKUP(Rebalance!$D$56,$F$2:$G$48,2,FALSE)+ROW()-2)),\"\")","v":{"$error":"#N/A"}},{"$f":"IF(INDIRECT(\"c\" & (VLOOKUP(Rebalance!$D$57,$F$2:$G$48,2,FALSE)+ROW()-2))=Rebalance!$D$57,INDIRECT(\"a\" & (VLOOKUP(Rebalance!$D$57,$F$2:$G$48,2,FALSE)+ROW()-2)),\"\")","v":{"$error":"#N/A"}},{"$f":"IF(INDIRECT(\"c\" & (VLOOKUP(Rebalance!$D$58,$F$2:$G$48,2,FALSE)+ROW()-2))=Rebalance!$D$58,INDIRECT(\"a\" & (VLOOKUP(Rebalance!$D$58,$F$2:$G$48,2,FALSE)+ROW()-2)),\"\")","v":{"$error":"#N/A"}},{"$f":"IF(INDIRECT(\"c\" & (VLOOKUP(Rebalance!$D$59,$F$2:$G$48,2,FALSE)+ROW()-2))=Rebalance!$D$59,INDIRECT(\"a\" & (VLOOKUP(Rebalance!$D$59,$F$2:$G$48,2,FALSE)+ROW()-2)),\"\")","v":{"$error":"#N/A"}},{"$f":"IF(INDIRECT(\"c\" & (VLOOKUP(Rebalance!$D$60,$F$2:$G$48,2,FALSE)+ROW()-2))=Rebalance!$D$60,INDIRECT(\"a\" & (VLOOKUP(Rebalance!$D$60,$F$2:$G$48,2,FALSE)+ROW()-2)),\"\")","v":{"$error":"#N/A"}},{"$f":"IF(INDIRECT(\"c\" & (VLOOKUP(Rebalance!$D$61,$F$2:$G$48,2,FALSE)+ROW()-2))=Rebalance!$D$61,INDIRECT(\"a\" & (VLOOKUP(Rebalance!$D$61,$F$2:$G$48,2,FALSE)+ROW()-2)),\"\")","v":{"$error":"#N/A"}},{"$f":"IF(INDIRECT(\"c\" & (VLOOKUP(Rebalance!$D$62,$F$2:$G$48,2,FALSE)+ROW()-2))=Rebalance!$D$62,INDIRECT(\"a\" & (VLOOKUP(Rebalance!$D$62,$F$2:$G$48,2,FALSE)+ROW()-2)),\"\")","v":{"$error":"#N/A"}},{"$f":"IF(INDIRECT(\"c\" & (VLOOKUP(Rebalance!$D$63,$F$2:$G$48,2,FALSE)+ROW()-2))=Rebalance!$D$63,INDIRECT(\"a\" & (VLOOKUP(Rebalance!$D$63,$F$2:$G$48,2,FALSE)+ROW()-2)),\"\")","v":{"$error":"#N/A"}},{"$f":"IF(INDIRECT(\"c\" & (VLOOKUP(Rebalance!$D$64,$F$2:$G$48,2,FALSE)+ROW()-2))=Rebalance!$D$64,INDIRECT(\"a\" & (VLOOKUP(Rebalance!$D$64,$F$2:$G$48,2,FALSE)+ROW()-2)),\"\")","v":{"$error":"#N/A"}},{"$f":"IF(INDIRECT(\"c\" & (VLOOKUP(Rebalance!$D$65,$F$2:$G$48,2,FALSE)+ROW()-2))=Rebalance!$D$65,INDIRECT(\"a\" & (VLOOKUP(Rebalance!$D$65,$F$2:$G$48,2,FALSE)+ROW()-2)),\"\")","v":{"$error":"#N/A"}},{"$f":"IF(INDIRECT(\"c\" & (VLOOKUP(Rebalance!$D$66,$F$2:$G$48,2,FALSE)+ROW()-2))=Rebalance!$D$66,INDIRECT(\"a\" & (VLOOKUP(Rebalance!$D$66,$F$2:$G$48,2,FALSE)+ROW()-2)),\"\")","v":{"$error":"#N/A"}}]
["Multi Asset IP Balanced Fund A","MAIB1","IP Management Company (Pty) Ltd",{"$f":"ROW()","v":284},null,null,{"$f":"VLOOKUP(F284,$C$2:$D$599,2,FALSE)","v":{"$error":"#N/A"}},{"$f":"IF(INDIRECT(\"c\" & (VLOOKUP(Rebalance!$D$26,$F$2:$G$48,2,FALSE)+ROW()-2))=Rebalance!$D$26,INDIRECT(\"a\" & (VLOOKUP(Rebalance!$D$26,$F$2:$G$48,2,FALSE)+ROW()-2)),\"\")","v":{"$error":"#N/A"}},{"$f":"IF(INDIRECT(\"c\" & (VLOOKUP(Rebalance!$D$27,$F$2:$G$48,2,FALSE)+ROW()-2))=Rebalance!$D$27,INDIRECT(\"a\" & (VLOOKUP(Rebalance!$D$27,$F$2:$G$48,2,FALSE)+ROW()-2)),\"\")","v":{"$error":"#N/A"}},{"$f":"IF(INDIRECT(\"c\" & (VLOOKUP(Rebalance!$D$28,$F$2:$G$48,2,FALSE)+ROW()-2))=Rebalance!$D$28,INDIRECT(\"a\" & (VLOOKUP(Rebalance!$D$28,$F$2:$G$48,2,FALSE)+ROW()-2)),\"\")","v":{"$error":"#N/A"}},{"$f":"IF(INDIRECT(\"c\" & (VLOOKUP(Rebalance!$D$29,$F$2:$G$48,2,FALSE)+ROW()-2))=Rebalance!$D$29,INDIRECT(\"a\" & (VLOOKUP(Rebalance!$D$29,$F$2:$G$48,2,FALSE)+ROW()-2)),\"\")","v":{"$error":"#N/A"}},{"$f":"IF(INDIRECT(\"c\" & (VLOOKUP(Rebalance!$D$30,$F$2:$G$48,2,FALSE)+ROW()-2))=Rebalance!$D$30,INDIRECT(\"a\" & (VLOOKUP(Rebalance!$D$30,$F$2:$G$48,2,FALSE)+ROW()-2)),\"\")","v":{"$error":"#N/A"}},{"$f":"IF(INDIRECT(\"c\" & (VLOOKUP(Rebalance!$D$31,$F$2:$G$48,2,FALSE)+ROW()-2))=Rebalance!$D$31,INDIRECT(\"a\" & (VLOOKUP(Rebalance!$D$31,$F$2:$G$48,2,FALSE)+ROW()-2)),\"\")","v":{"$error":"#N/A"}},{"$f":"IF(INDIRECT(\"c\" & (VLOOKUP(Rebalance!$D$32,$F$2:$G$48,2,FALSE)+ROW()-2))=Rebalance!$D$32,INDIRECT(\"a\" & (VLOOKUP(Rebalance!$D$32,$F$2:$G$48,2,FALSE)+ROW()-2)),\"\")","v":{"$error":"#N/A"}},{"$f":"IF(INDIRECT(\"c\" & (VLOOKUP(Rebalance!$D$33,$F$2:$G$48,2,FALSE)+ROW()-2))=Rebalance!$D$33,INDIRECT(\"a\" & (VLOOKUP(Rebalance!$D$33,$F$2:$G$48,2,FALSE)+ROW()-2)),\"\")","v":{"$error":"#N/A"}},{"$f":"IF(INDIRECT(\"c\" & (VLOOKUP(Rebalance!$D$34,$F$2:$G$48,2,FALSE)+ROW()-2))=Rebalance!$D$34,INDIRECT(\"a\" & (VLOOKUP(Rebalance!$D$34,$F$2:$G$48,2,FALSE)+ROW()-2)),\"\")","v":{"$error":"#N/A"}},{"$f":"IF(INDIRECT(\"c\" & (VLOOKUP(Rebalance!$D$35,$F$2:$G$48,2,FALSE)+ROW()-2))=Rebalance!$D$35,INDIRECT(\"a\" & (VLOOKUP(Rebalance!$D$35,$F$2:$G$48,2,FALSE)+ROW()-2)),\"\")","v":{"$error":"#N/A"}},{"$f":"IF(INDIRECT(\"c\" & (VLOOKUP(Rebalance!$D$36,$F$2:$G$48,2,FALSE)+ROW()-2))=Rebalance!$D$36,INDIRECT(\"a\" & (VLOOKUP(Rebalance!$D$36,$F$2:$G$48,2,FALSE)+ROW()-2)),\"\")","v":{"$error":"#N/A"}},{"$f":"IF(INDIRECT(\"c\" & (VLOOKUP(Rebalance!$D$37,$F$2:$G$48,2,FALSE)+ROW()-2))=Rebalance!$D$37,INDIRECT(\"a\" & (VLOOKUP(Rebalance!$D$37,$F$2:$G$48,2,FALSE)+ROW()-2)),\"\")","v":{"$error":"#N/A"}},{"$f":"IF(INDIRECT(\"c\" & (VLOOKUP(Rebalance!$D$38,$F$2:$G$48,2,FALSE)+ROW()-2))=Rebalance!$D$38,INDIRECT(\"a\" & (VLOOKUP(Rebalance!$D$38,$F$2:$G$48,2,FALSE)+ROW()-2)),\"\")","v":{"$error":"#N/A"}},{"$f":"IF(INDIRECT(\"c\" & (VLOOKUP(Rebalance!$D$39,$F$2:$G$48,2,FALSE)+ROW()-2))=Rebalance!$D$39,INDIRECT(\"a\" & (VLOOKUP(Rebalance!$D$39,$F$2:$G$48,2,FALSE)+ROW()-2)),\"\")","v":{"$error":"#N/A"}},{"$f":"IF(INDIRECT(\"c\" & (VLOOKUP(Rebalance!$D$40,$F$2:$G$48,2,FALSE)+ROW()-2))=Rebalance!$D$40,INDIRECT(\"a\" & (VLOOKUP(Rebalance!$D$40,$F$2:$G$48,2,FALSE)+ROW()-2)),\"\")","v":{"$error":"#N/A"}},{"$f":"IF(INDIRECT(\"c\" & (VLOOKUP(Rebalance!$D$52,$F$2:$G$48,2,FALSE)+ROW()-2))=Rebalance!$D$52,INDIRECT(\"a\" & (VLOOKUP(Rebalance!$D$52,$F$2:$G$48,2,FALSE)+ROW()-2)),\"\")","v":{"$error":"#N/A"}},{"$f":"IF(INDIRECT(\"c\" & (VLOOKUP(Rebalance!$D$53,$F$2:$G$48,2,FALSE)+ROW()-2))=Rebalance!$D$53,INDIRECT(\"a\" & (VLOOKUP(Rebalance!$D$53,$F$2:$G$48,2,FALSE)+ROW()-2)),\"\")","v":{"$error":"#N/A"}},{"$f":"IF(INDIRECT(\"c\" & (VLOOKUP(Rebalance!$D$54,$F$2:$G$48,2,FALSE)+ROW()-2))=Rebalance!$D$54,INDIRECT(\"a\" & (VLOOKUP(Rebalance!$D$54,$F$2:$G$48,2,FALSE)+ROW()-2)),\"\")","v":{"$error":"#N/A"}},{"$f":"IF(INDIRECT(\"c\" & (VLOOKUP(Rebalance!$D$55,$F$2:$G$48,2,FALSE)+ROW()-2))=Rebalance!$D$55,INDIRECT(\"a\" & (VLOOKUP(Rebalance!$D$55,$F$2:$G$48,2,FALSE)+ROW()-2)),\"\")","v":{"$error":"#N/A"}},{"$f":"IF(INDIRECT(\"c\" & (VLOOKUP(Rebalance!$D$56,$F$2:$G$48,2,FALSE)+ROW()-2))=Rebalance!$D$56,INDIRECT(\"a\" & (VLOOKUP(Rebalance!$D$56,$F$2:$G$48,2,FALSE)+ROW()-2)),\"\")","v":{"$error":"#N/A"}},{"$f":"IF(INDIRECT(\"c\" & (VLOOKUP(Rebalance!$D$57,$F$2:$G$48,2,FALSE)+ROW()-2))=Rebalance!$D$57,INDIRECT(\"a\" & (VLOOKUP(Rebalance!$D$57,$F$2:$G$48,2,FALSE)+ROW()-2)),\"\")","v":{"$error":"#N/A"}},{"$f":"IF(INDIRECT(\"c\" & (VLOOKUP(Rebalance!$D$58,$F$2:$G$48,2,FALSE)+ROW()-2))=Rebalance!$D$58,INDIRECT(\"a\" & (VLOOKUP(Rebalance!$D$58,$F$2:$G$48,2,FALSE)+ROW()-2)),\"\")","v":{"$error":"#N/A"}},{"$f":"IF(INDIRECT(\"c\" & (VLOOKUP(Rebalance!$D$59,$F$2:$G$48,2,FALSE)+ROW()-2))=Rebalance!$D$59,INDIRECT(\"a\" & (VLOOKUP(Rebalance!$D$59,$F$2:$G$48,2,FALSE)+ROW()-2)),\"\")","v":{"$error":"#N/A"}},{"$f":"IF(INDIRECT(\"c\" & (VLOOKUP(Rebalance!$D$60,$F$2:$G$48,2,FALSE)+ROW()-2))=Rebalance!$D$60,INDIRECT(\"a\" & (VLOOKUP(Rebalance!$D$60,$F$2:$G$48,2,FALSE)+ROW()-2)),\"\")","v":{"$error":"#N/A"}},{"$f":"IF(INDIRECT(\"c\" & (VLOOKUP(Rebalance!$D$61,$F$2:$G$48,2,FALSE)+ROW()-2))=Rebalance!$D$61,INDIRECT(\"a\" & (VLOOKUP(Rebalance!$D$61,$F$2:$G$48,2,FALSE)+ROW()-2)),\"\")","v":{"$error":"#N/A"}},{"$f":"IF(INDIRECT(\"c\" & (VLOOKUP(Rebalance!$D$62,$F$2:$G$48,2,FALSE)+ROW()-2))=Rebalance!$D$62,INDIRECT(\"a\" & (VLOOKUP(Rebalance!$D$62,$F$2:$G$48,2,FALSE)+ROW()-2)),\"\")","v":{"$error":"#N/A"}},{"$f":"IF(INDIRECT(\"c\" & (VLOOKUP(Rebalance!$D$63,$F$2:$G$48,2,FALSE)+ROW()-2))=Rebalance!$D$63,INDIRECT(\"a\" & (VLOOKUP(Rebalance!$D$63,$F$2:$G$48,2,FALSE)+ROW()-2)),\"\")","v":{"$error":"#N/A"}},{"$f":"IF(INDIRECT(\"c\" & (VLOOKUP(Rebalance!$D$64,$F$2:$G$48,2,FALSE)+ROW()-2))=Rebalance!$D$64,INDIRECT(\"a\" & (VLOOKUP(Rebalance!$D$64,$F$2:$G$48,2,FALSE)+ROW()-2)),\"\")","v":{"$error":"#N/A"}},{"$f":"IF(INDIRECT(\"c\" & (VLOOKUP(Rebalance!$D$65,$F$2:$G$48,2,FALSE)+ROW()-2))=Rebalance!$D$65,INDIRECT(\"a\" & (VLOOKUP(Rebalance!$D$65,$F$2:$G$48,2,FALSE)+ROW()-2)),\"\")","v":{"$error":"#N/A"}},{"$f":"IF(INDIRECT(\"c\" & (VLOOKUP(Rebalance!$D$66,$F$2:$G$48,2,FALSE)+ROW()-2))=Rebalance!$D$66,INDIRECT(\"a\" & (VLOOKUP(Rebalance!$D$66,$F$2:$G$48,2,FALSE)+ROW()-2)),\"\")","v":{"$error":"#N/A"}}]
["Multi Asset IP Balanced Fund B1","MAIB1","IP Management Company (Pty) Ltd",{"$f":"ROW()","v":285},null,null,{"$f":"VLOOKUP(F285,$C$2:$D$599,2,FALSE)","v":{"$error":"#N/A"}},{"$f":"IF(INDIRECT(\"c\" & (VLOOKUP(Rebalance!$D$26,$F$2:$G$48,2,FALSE)+ROW()-2))=Rebalance!$D$26,INDIRECT(\"a\" & (VLOOKUP(Rebalance!$D$26,$F$2:$G$48,2,FALSE)+ROW()-2)),\"\")","v":{"$error":"#N/A"}},{"$f":"IF(INDIRECT(\"c\" & (VLOOKUP(Rebalance!$D$27,$F$2:$G$48,2,FALSE)+ROW()-2))=Rebalance!$D$27,INDIRECT(\"a\" & (VLOOKUP(Rebalance!$D$27,$F$2:$G$48,2,FALSE)+ROW()-2)),\"\")","v":{"$error":"#N/A"}},{"$f":"IF(INDIRECT(\"c\" & (VLOOKUP(Rebalance!$D$28,$F$2:$G$48,2,FALSE)+ROW()-2))=Rebalance!$D$28,INDIRECT(\"a\" & (VLOOKUP(Rebalance!$D$28,$F$2:$G$48,2,FALSE)+ROW()-2)),\"\")","v":{"$error":"#N/A"}},{"$f":"IF(INDIRECT(\"c\" & (VLOOKUP(Rebalance!$D$29,$F$2:$G$48,2,FALSE)+ROW()-2))=Rebalance!$D$29,INDIRECT(\"a\" & (VLOOKUP(Rebalance!$D$29,$F$2:$G$48,2,FALSE)+ROW()-2)),\"\")","v":{"$error":"#N/A"}},{"$f":"IF(INDIRECT(\"c\" & (VLOOKUP(Rebalance!$D$30,$F$2:$G$48,2,FALSE)+ROW()-2))=Rebalance!$D$30,INDIRECT(\"a\" & (VLOOKUP(Rebalance!$D$30,$F$2:$G$48,2,FALSE)+ROW()-2)),\"\")","v":{"$error":"#N/A"}},{"$f":"IF(INDIRECT(\"c\" & (VLOOKUP(Rebalance!$D$31,$F$2:$G$48,2,FALSE)+ROW()-2))=Rebalance!$D$31,INDIRECT(\"a\" & (VLOOKUP(Rebalance!$D$31,$F$2:$G$48,2,FALSE)+ROW()-2)),\"\")","v":{"$error":"#N/A"}},{"$f":"IF(INDIRECT(\"c\" & (VLOOKUP(Rebalance!$D$32,$F$2:$G$48,2,FALSE)+ROW()-2))=Rebalance!$D$32,INDIRECT(\"a\" & (VLOOKUP(Rebalance!$D$32,$F$2:$G$48,2,FALSE)+ROW()-2)),\"\")","v":{"$error":"#N/A"}},{"$f":"IF(INDIRECT(\"c\" & (VLOOKUP(Rebalance!$D$33,$F$2:$G$48,2,FALSE)+ROW()-2))=Rebalance!$D$33,INDIRECT(\"a\" & (VLOOKUP(Rebalance!$D$33,$F$2:$G$48,2,FALSE)+ROW()-2)),\"\")","v":{"$error":"#N/A"}},{"$f":"IF(INDIRECT(\"c\" & (VLOOKUP(Rebalance!$D$34,$F$2:$G$48,2,FALSE)+ROW()-2))=Rebalance!$D$34,INDIRECT(\"a\" & (VLOOKUP(Rebalance!$D$34,$F$2:$G$48,2,FALSE)+ROW()-2)),\"\")","v":{"$error":"#N/A"}},{"$f":"IF(INDIRECT(\"c\" & (VLOOKUP(Rebalance!$D$35,$F$2:$G$48,2,FALSE)+ROW()-2))=Rebalance!$D$35,INDIRECT(\"a\" & (VLOOKUP(Rebalance!$D$35,$F$2:$G$48,2,FALSE)+ROW()-2)),\"\")","v":{"$error":"#N/A"}},{"$f":"IF(INDIRECT(\"c\" & (VLOOKUP(Rebalance!$D$36,$F$2:$G$48,2,FALSE)+ROW()-2))=Rebalance!$D$36,INDIRECT(\"a\" & (VLOOKUP(Rebalance!$D$36,$F$2:$G$48,2,FALSE)+ROW()-2)),\"\")","v":{"$error":"#N/A"}},{"$f":"IF(INDIRECT(\"c\" & (VLOOKUP(Rebalance!$D$37,$F$2:$G$48,2,FALSE)+ROW()-2))=Rebalance!$D$37,INDIRECT(\"a\" & (VLOOKUP(Rebalance!$D$37,$F$2:$G$48,2,FALSE)+ROW()-2)),\"\")","v":{"$error":"#N/A"}},{"$f":"IF(INDIRECT(\"c\" & (VLOOKUP(Rebalance!$D$38,$F$2:$G$48,2,FALSE)+ROW()-2))=Rebalance!$D$38,INDIRECT(\"a\" & (VLOOKUP(Rebalance!$D$38,$F$2:$G$48,2,FALSE)+ROW()-2)),\"\")","v":{"$error":"#N/A"}},{"$f":"IF(INDIRECT(\"c\" & (VLOOKUP(Rebalance!$D$39,$F$2:$G$48,2,FALSE)+ROW()-2))=Rebalance!$D$39,INDIRECT(\"a\" & (VLOOKUP(Rebalance!$D$39,$F$2:$G$48,2,FALSE)+ROW()-2)),\"\")","v":{"$error":"#N/A"}},{"$f":"IF(INDIRECT(\"c\" & (VLOOKUP(Rebalance!$D$40,$F$2:$G$48,2,FALSE)+ROW()-2))=Rebalance!$D$40,INDIRECT(\"a\" & (VLOOKUP(Rebalance!$D$40,$F$2:$G$48,2,FALSE)+ROW()-2)),\"\")","v":{"$error":"#N/A"}},{"$f":"IF(INDIRECT(\"c\" & (VLOOKUP(Rebalance!$D$52,$F$2:$G$48,2,FALSE)+ROW()-2))=Rebalance!$D$52,INDIRECT(\"a\" & (VLOOKUP(Rebalance!$D$52,$F$2:$G$48,2,FALSE)+ROW()-2)),\"\")","v":{"$error":"#N/A"}},{"$f":"IF(INDIRECT(\"c\" & (VLOOKUP(Rebalance!$D$53,$F$2:$G$48,2,FALSE)+ROW()-2))=Rebalance!$D$53,INDIRECT(\"a\" & (VLOOKUP(Rebalance!$D$53,$F$2:$G$48,2,FALSE)+ROW()-2)),\"\")","v":{"$error":"#N/A"}},{"$f":"IF(INDIRECT(\"c\" & (VLOOKUP(Rebalance!$D$54,$F$2:$G$48,2,FALSE)+ROW()-2))=Rebalance!$D$54,INDIRECT(\"a\" & (VLOOKUP(Rebalance!$D$54,$F$2:$G$48,2,FALSE)+ROW()-2)),\"\")","v":{"$error":"#N/A"}},{"$f":"IF(INDIRECT(\"c\" & (VLOOKUP(Rebalance!$D$55,$F$2:$G$48,2,FALSE)+ROW()-2))=Rebalance!$D$55,INDIRECT(\"a\" & (VLOOKUP(Rebalance!$D$55,$F$2:$G$48,2,FALSE)+ROW()-2)),\"\")","v":{"$error":"#N/A"}},{"$f":"IF(INDIRECT(\"c\" & (VLOOKUP(Rebalance!$D$56,$F$2:$G$48,2,FALSE)+ROW()-2))=Rebalance!$D$56,INDIRECT(\"a\" & (VLOOKUP(Rebalance!$D$56,$F$2:$G$48,2,FALSE)+ROW()-2)),\"\")","v":{"$error":"#N/A"}},{"$f":"IF(INDIRECT(\"c\" & (VLOOKUP(Rebalance!$D$57,$F$2:$G$48,2,FALSE)+ROW()-2))=Rebalance!$D$57,INDIRECT(\"a\" & (VLOOKUP(Rebalance!$D$57,$F$2:$G$48,2,FALSE)+ROW()-2)),\"\")","v":{"$error":"#N/A"}},{"$f":"IF(INDIRECT(\"c\" & (VLOOKUP(Rebalance!$D$58,$F$2:$G$48,2,FALSE)+ROW()-2))=Rebalance!$D$58,INDIRECT(\"a\" & (VLOOKUP(Rebalance!$D$58,$F$2:$G$48,2,FALSE)+ROW()-2)),\"\")","v":{"$error":"#N/A"}},{"$f":"IF(INDIRECT(\"c\" & (VLOOKUP(Rebalance!$D$59,$F$2:$G$48,2,FALSE)+ROW()-2))=Rebalance!$D$59,INDIRECT(\"a\" & (VLOOKUP(Rebalance!$D$59,$F$2:$G$48,2,FALSE)+ROW()-2)),\"\")","v":{"$error":"#N/A"}},{"$f":"IF(INDIRECT(\"c\" & (VLOOKUP(Rebalance!$D$60,$F$2:$G$48,2,FALSE)+ROW()-2))=Rebalance!$D$60,INDIRECT(\"a\" & (VLOOKUP(Rebalance!$D$60,$F$2:$G$48,2,FALSE)+ROW()-2)),\"\")","v":{"$error":"#N/A"}},{"$f":"IF(INDIRECT(\"c\" & (VLOOKUP(Rebalance!$D$61,$F$2:$G$48,2,FALSE)+ROW()-2))=Rebalance!$D$61,INDIRECT(\"a\" & (VLOOKUP(Rebalance!$D$61,$F$2:$G$48,2,FALSE)+ROW()-2)),\"\")","v":{"$error":"#N/A"}},{"$f":"IF(INDIRECT(\"c\" & (VLOOKUP(Rebalance!$D$62,$F$2:$G$48,2,FALSE)+ROW()-2))=Rebalance!$D$62,INDIRECT(\"a\" & (VLOOKUP(Rebalance!$D$62,$F$2:$G$48,2,FALSE)+ROW()-2)),\"\")","v":{"$error":"#N/A"}},{"$f":"IF(INDIRECT(\"c\" & (VLOOKUP(Rebalance!$D$63,$F$2:$G$48,2,FALSE)+ROW()-2))=Rebalance!$D$63,INDIRECT(\"a\" & (VLOOKUP(Rebalance!$D$63,$F$2:$G$48,2,FALSE)+ROW()-2)),\"\")","v":{"$error":"#N/A"}},{"$f":"IF(INDIRECT(\"c\" & (VLOOKUP(Rebalance!$D$64,$F$2:$G$48,2,FALSE)+ROW()-2))=Rebalance!$D$64,INDIRECT(\"a\" & (VLOOKUP(Rebalance!$D$64,$F$2:$G$48,2,FALSE)+ROW()-2)),\"\")","v":{"$error":"#N/A"}},{"$f":"IF(INDIRECT(\"c\" & (VLOOKUP(Rebalance!$D$65,$F$2:$G$48,2,FALSE)+ROW()-2))=Rebalance!$D$65,INDIRECT(\"a\" & (VLOOKUP(Rebalance!$D$65,$F$2:$G$48,2,FALSE)+ROW()-2)),\"\")","v":{"$error":"#N/A"}},{"$f":"IF(INDIRECT(\"c\" & (VLOOKUP(Rebalance!$D$66,$F$2:$G$48,2,FALSE)+ROW()-2))=Rebalance!$D$66,INDIRECT(\"a\" & (VLOOKUP(Rebalance!$D$66,$F$2:$G$48,2,FALSE)+ROW()-2)),\"\")","v":{"$error":"#N/A"}}]
["Multi Asset IP Balanced Plus Fund A","MUPB1","IP Management Company (Pty) Ltd",{"$f":"ROW()","v":286},null,null,{"$f":"VLOOKUP(F286,$C$2:$D$599,2,FALSE)","v":{"$error":"#N/A"}},{"$f":"IF(INDIRECT(\"c\" & (VLOOKUP(Rebalance!$D$26,$F$2:$G$48,2,FALSE)+ROW()-2))=Rebalance!$D$26,INDIRECT(\"a\" & (VLOOKUP(Rebalance!$D$26,$F$2:$G$48,2,FALSE)+ROW()-2)),\"\")","v":{"$error":"#N/A"}},{"$f":"IF(INDIRECT(\"c\" & (VLOOKUP(Rebalance!$D$27,$F$2:$G$48,2,FALSE)+ROW()-2))=Rebalance!$D$27,INDIRECT(\"a\" & (VLOOKUP(Rebalance!$D$27,$F$2:$G$48,2,FALSE)+ROW()-2)),\"\")","v":{"$error":"#N/A"}},{"$f":"IF(INDIRECT(\"c\" & (VLOOKUP(Rebalance!$D$28,$F$2:$G$48,2,FALSE)+ROW()-2))=Rebalance!$D$28,INDIRECT(\"a\" & (VLOOKUP(Rebalance!$D$28,$F$2:$G$48,2,FALSE)+ROW()-2)),\"\")","v":{"$error":"#N/A"}},{"$f":"IF(INDIRECT(\"c\" & (VLOOKUP(Rebalance!$D$29,$F$2:$G$48,2,FALSE)+ROW()-2))=Rebalance!$D$29,INDIRECT(\"a\" & (VLOOKUP(Rebalance!$D$29,$F$2:$G$48,2,FALSE)+ROW()-2)),\"\")","v":{"$error":"#N/A"}},{"$f":"IF(INDIRECT(\"c\" & (VLOOKUP(Rebalance!$D$30,$F$2:$G$48,2,FALSE)+ROW()-2))=Rebalance!$D$30,INDIRECT(\"a\" & (VLOOKUP(Rebalance!$D$30,$F$2:$G$48,2,FALSE)+ROW()-2)),\"\")","v":{"$error":"#N/A"}},{"$f":"IF(INDIRECT(\"c\" & (VLOOKUP(Rebalance!$D$31,$F$2:$G$48,2,FALSE)+ROW()-2))=Rebalance!$D$31,INDIRECT(\"a\" & (VLOOKUP(Rebalance!$D$31,$F$2:$G$48,2,FALSE)+ROW()-2)),\"\")","v":{"$error":"#N/A"}},{"$f":"IF(INDIRECT(\"c\" & (VLOOKUP(Rebalance!$D$32,$F$2:$G$48,2,FALSE)+ROW()-2))=Rebalance!$D$32,INDIRECT(\"a\" & (VLOOKUP(Rebalance!$D$32,$F$2:$G$48,2,FALSE)+ROW()-2)),\"\")","v":{"$error":"#N/A"}},{"$f":"IF(INDIRECT(\"c\" & (VLOOKUP(Rebalance!$D$33,$F$2:$G$48,2,FALSE)+ROW()-2))=Rebalance!$D$33,INDIRECT(\"a\" & (VLOOKUP(Rebalance!$D$33,$F$2:$G$48,2,FALSE)+ROW()-2)),\"\")","v":{"$error":"#N/A"}},{"$f":"IF(INDIRECT(\"c\" & (VLOOKUP(Rebalance!$D$34,$F$2:$G$48,2,FALSE)+ROW()-2))=Rebalance!$D$34,INDIRECT(\"a\" & (VLOOKUP(Rebalance!$D$34,$F$2:$G$48,2,FALSE)+ROW()-2)),\"\")","v":{"$error":"#N/A"}},{"$f":"IF(INDIRECT(\"c\" & (VLOOKUP(Rebalance!$D$35,$F$2:$G$48,2,FALSE)+ROW()-2))=Rebalance!$D$35,INDIRECT(\"a\" & (VLOOKUP(Rebalance!$D$35,$F$2:$G$48,2,FALSE)+ROW()-2)),\"\")","v":{"$error":"#N/A"}},{"$f":"IF(INDIRECT(\"c\" & (VLOOKUP(Rebalance!$D$36,$F$2:$G$48,2,FALSE)+ROW()-2))=Rebalance!$D$36,INDIRECT(\"a\" & (VLOOKUP(Rebalance!$D$36,$F$2:$G$48,2,FALSE)+ROW()-2)),\"\")","v":{"$error":"#N/A"}},{"$f":"IF(INDIRECT(\"c\" & (VLOOKUP(Rebalance!$D$37,$F$2:$G$48,2,FALSE)+ROW()-2))=Rebalance!$D$37,INDIRECT(\"a\" & (VLOOKUP(Rebalance!$D$37,$F$2:$G$48,2,FALSE)+ROW()-2)),\"\")","v":{"$error":"#N/A"}},{"$f":"IF(INDIRECT(\"c\" & (VLOOKUP(Rebalance!$D$38,$F$2:$G$48,2,FALSE)+ROW()-2))=Rebalance!$D$38,INDIRECT(\"a\" & (VLOOKUP(Rebalance!$D$38,$F$2:$G$48,2,FALSE)+ROW()-2)),\"\")","v":{"$error":"#N/A"}},{"$f":"IF(INDIRECT(\"c\" & (VLOOKUP(Rebalance!$D$39,$F$2:$G$48,2,FALSE)+ROW()-2))=Rebalance!$D$39,INDIRECT(\"a\" & (VLOOKUP(Rebalance!$D$39,$F$2:$G$48,2,FALSE)+ROW()-2)),\"\")","v":{"$error":"#N/A"}},{"$f":"IF(INDIRECT(\"c\" & (VLOOKUP(Rebalance!$D$40,$F$2:$G$48,2,FALSE)+ROW()-2))=Rebalance!$D$40,INDIRECT(\"a\" & (VLOOKUP(Rebalance!$D$40,$F$2:$G$48,2,FALSE)+ROW()-2)),\"\")","v":{"$error":"#N/A"}},{"$f":"IF(INDIRECT(\"c\" & (VLOOKUP(Rebalance!$D$52,$F$2:$G$48,2,FALSE)+ROW()-2))=Rebalance!$D$52,INDIRECT(\"a\" & (VLOOKUP(Rebalance!$D$52,$F$2:$G$48,2,FALSE)+ROW()-2)),\"\")","v":{"$error":"#N/A"}},{"$f":"IF(INDIRECT(\"c\" & (VLOOKUP(Rebalance!$D$53,$F$2:$G$48,2,FALSE)+ROW()-2))=Rebalance!$D$53,INDIRECT(\"a\" & (VLOOKUP(Rebalance!$D$53,$F$2:$G$48,2,FALSE)+ROW()-2)),\"\")","v":{"$error":"#N/A"}},{"$f":"IF(INDIRECT(\"c\" & (VLOOKUP(Rebalance!$D$54,$F$2:$G$48,2,FALSE)+ROW()-2))=Rebalance!$D$54,INDIRECT(\"a\" & (VLOOKUP(Rebalance!$D$54,$F$2:$G$48,2,FALSE)+ROW()-2)),\"\")","v":{"$error":"#N/A"}},{"$f":"IF(INDIRECT(\"c\" & (VLOOKUP(Rebalance!$D$55,$F$2:$G$48,2,FALSE)+ROW()-2))=Rebalance!$D$55,INDIRECT(\"a\" & (VLOOKUP(Rebalance!$D$55,$F$2:$G$48,2,FALSE)+ROW()-2)),\"\")","v":{"$error":"#N/A"}},{"$f":"IF(INDIRECT(\"c\" & (VLOOKUP(Rebalance!$D$56,$F$2:$G$48,2,FALSE)+ROW()-2))=Rebalance!$D$56,INDIRECT(\"a\" & (VLOOKUP(Rebalance!$D$56,$F$2:$G$48,2,FALSE)+ROW()-2)),\"\")","v":{"$error":"#N/A"}},{"$f":"IF(INDIRECT(\"c\" & (VLOOKUP(Rebalance!$D$57,$F$2:$G$48,2,FALSE)+ROW()-2))=Rebalance!$D$57,INDIRECT(\"a\" & (VLOOKUP(Rebalance!$D$57,$F$2:$G$48,2,FALSE)+ROW()-2)),\"\")","v":{"$error":"#N/A"}},{"$f":"IF(INDIRECT(\"c\" & (VLOOKUP(Rebalance!$D$58,$F$2:$G$48,2,FALSE)+ROW()-2))=Rebalance!$D$58,INDIRECT(\"a\" & (VLOOKUP(Rebalance!$D$58,$F$2:$G$48,2,FALSE)+ROW()-2)),\"\")","v":{"$error":"#N/A"}},{"$f":"IF(INDIRECT(\"c\" & (VLOOKUP(Rebalance!$D$59,$F$2:$G$48,2,FALSE)+ROW()-2))=Rebalance!$D$59,INDIRECT(\"a\" & (VLOOKUP(Rebalance!$D$59,$F$2:$G$48,2,FALSE)+ROW()-2)),\"\")","v":{"$error":"#N/A"}},{"$f":"IF(INDIRECT(\"c\" & (VLOOKUP(Rebalance!$D$60,$F$2:$G$48,2,FALSE)+ROW()-2))=Rebalance!$D$60,INDIRECT(\"a\" & (VLOOKUP(Rebalance!$D$60,$F$2:$G$48,2,FALSE)+ROW()-2)),\"\")","v":{"$error":"#N/A"}},{"$f":"IF(INDIRECT(\"c\" & (VLOOKUP(Rebalance!$D$61,$F$2:$G$48,2,FALSE)+ROW()-2))=Rebalance!$D$61,INDIRECT(\"a\" & (VLOOKUP(Rebalance!$D$61,$F$2:$G$48,2,FALSE)+ROW()-2)),\"\")","v":{"$error":"#N/A"}},{"$f":"IF(INDIRECT(\"c\" & (VLOOKUP(Rebalance!$D$62,$F$2:$G$48,2,FALSE)+ROW()-2))=Rebalance!$D$62,INDIRECT(\"a\" & (VLOOKUP(Rebalance!$D$62,$F$2:$G$48,2,FALSE)+ROW()-2)),\"\")","v":{"$error":"#N/A"}},{"$f":"IF(INDIRECT(\"c\" & (VLOOKUP(Rebalance!$D$63,$F$2:$G$48,2,FALSE)+ROW()-2))=Rebalance!$D$63,INDIRECT(\"a\" & (VLOOKUP(Rebalance!$D$63,$F$2:$G$48,2,FALSE)+ROW()-2)),\"\")","v":{"$error":"#N/A"}},{"$f":"IF(INDIRECT(\"c\" & (VLOOKUP(Rebalance!$D$64,$F$2:$G$48,2,FALSE)+ROW()-2))=Rebalance!$D$64,INDIRECT(\"a\" & (VLOOKUP(Rebalance!$D$64,$F$2:$G$48,2,FALSE)+ROW()-2)),\"\")","v":{"$error":"#N/A"}},{"$f":"IF(INDIRECT(\"c\" & (VLOOKUP(Rebalance!$D$65,$F$2:$G$48,2,FALSE)+ROW()-2))=Rebalance!$D$65,INDIRECT(\"a\" & (VLOOKUP(Rebalance!$D$65,$F$2:$G$48,2,FALSE)+ROW()-2)),\"\")","v":{"$error":"#N/A"}},{"$f":"IF(INDIRECT(\"c\" & (VLOOKUP(Rebalance!$D$66,$F$2:$G$48,2,FALSE)+ROW()-2))=Rebalance!$D$66,INDIRECT(\"a\" & (VLOOKUP(Rebalance!$D$66,$F$2:$G$48,2,FALSE)+ROW()-2)),\"\")","v":{"$error":"#N/A"}}]
["Multi Asset IP Balanced Plus Fund B1","MUPB1","IP Management Company (Pty) Ltd",{"$f":"ROW()","v":287},null,null,{"$f":"VLOOKUP(F287,$C$2:$D$599,2,FALSE)","v":{"$error":"#N/A"}},{"$f":"IF(INDIRECT(\"c\" & (VLOOKUP(Rebalance!$D$26,$F$2:$G$48,2,FALSE)+ROW()-2))=Rebalance!$D$26,INDIRECT(\"a\" & (VLOOKUP(Rebalance!$D$26,$F$2:$G$48,2,FALSE)+ROW()-2)),\"\")","v":{"$error":"#N/A"}},{"$f":"IF(INDIRECT(\"c\" & (VLOOKUP(Rebalance!$D$27,$F$2:$G$48,2,FALSE)+ROW()-2))=Rebalance!$D$27,INDIRECT(\"a\" & (VLOOKUP(Rebalance!$D$27,$F$2:$G$48,2,FALSE)+ROW()-2)),\"\")","v":{"$error":"#N/A"}},{"$f":"IF(INDIRECT(\"c\" & (VLOOKUP(Rebalance!$D$28,$F$2:$G$48,2,FALSE)+ROW()-2))=Rebalance!$D$28,INDIRECT(\"a\" & (VLOOKUP(Rebalance!$D$28,$F$2:$G$48,2,FALSE)+ROW()-2)),\"\")","v":{"$error":"#N/A"}},{"$f":"IF(INDIRECT(\"c\" & (VLOOKUP(Rebalance!$D$29,$F$2:$G$48,2,FALSE)+ROW()-2))=Rebalance!$D$29,INDIRECT(\"a\" & (VLOOKUP(Rebalance!$D$29,$F$2:$G$48,2,FALSE)+ROW()-2)),\"\")","v":{"$error":"#N/A"}},{"$f":"IF(INDIRECT(\"c\" & (VLOOKUP(Rebalance!$D$30,$F$2:$G$48,2,FALSE)+ROW()-2))=Rebalance!$D$30,INDIRECT(\"a\" & (VLOOKUP(Rebalance!$D$30,$F$2:$G$48,2,FALSE)+ROW()-2)),\"\")","v":{"$error":"#N/A"}},{"$f":"IF(INDIRECT(\"c\" & (VLOOKUP(Rebalance!$D$31,$F$2:$G$48,2,FALSE)+ROW()-2))=Rebalance!$D$31,INDIRECT(\"a\" & (VLOOKUP(Rebalance!$D$31,$F$2:$G$48,2,FALSE)+ROW()-2)),\"\")","v":{"$error":"#N/A"}},{"$f":"IF(INDIRECT(\"c\" & (VLOOKUP(Rebalance!$D$32,$F$2:$G$48,2,FALSE)+ROW()-2))=Rebalance!$D$32,INDIRECT(\"a\" & (VLOOKUP(Rebalance!$D$32,$F$2:$G$48,2,FALSE)+ROW()-2)),\"\")","v":{"$error":"#N/A"}},{"$f":"IF(INDIRECT(\"c\" & (VLOOKUP(Rebalance!$D$33,$F$2:$G$48,2,FALSE)+ROW()-2))=Rebalance!$D$33,INDIRECT(\"a\" & (VLOOKUP(Rebalance!$D$33,$F$2:$G$48,2,FALSE)+ROW()-2)),\"\")","v":{"$error":"#N/A"}},{"$f":"IF(INDIRECT(\"c\" & (VLOOKUP(Rebalance!$D$34,$F$2:$G$48,2,FALSE)+ROW()-2))=Rebalance!$D$34,INDIRECT(\"a\" & (VLOOKUP(Rebalance!$D$34,$F$2:$G$48,2,FALSE)+ROW()-2)),\"\")","v":{"$error":"#N/A"}},{"$f":"IF(INDIRECT(\"c\" & (VLOOKUP(Rebalance!$D$35,$F$2:$G$48,2,FALSE)+ROW()-2))=Rebalance!$D$35,INDIRECT(\"a\" & (VLOOKUP(Rebalance!$D$35,$F$2:$G$48,2,FALSE)+ROW()-2)),\"\")","v":{"$error":"#N/A"}},{"$f":"IF(INDIRECT(\"c\" & (VLOOKUP(Rebalance!$D$36,$F$2:$G$48,2,FALSE)+ROW()-2))=Rebalance!$D$36,INDIRECT(\"a\" & (VLOOKUP(Rebalance!$D$36,$F$2:$G$48,2,FALSE)+ROW()-2)),\"\")","v":{"$error":"#N/A"}},{"$f":"IF(INDIRECT(\"c\" & (VLOOKUP(Rebalance!$D$37,$F$2:$G$48,2,FALSE)+ROW()-2))=Rebalance!$D$37,INDIRECT(\"a\" & (VLOOKUP(Rebalance!$D$37,$F$2:$G$48,2,FALSE)+ROW()-2)),\"\")","v":{"$error":"#N/A"}},{"$f":"IF(INDIRECT(\"c\" & (VLOOKUP(Rebalance!$D$38,$F$2:$G$48,2,FALSE)+ROW()-2))=Rebalance!$D$38,INDIRECT(\"a\" & (VLOOKUP(Rebalance!$D$38,$F$2:$G$48,2,FALSE)+ROW()-2)),\"\")","v":{"$error":"#N/A"}},{"$f":"IF(INDIRECT(\"c\" & (VLOOKUP(Rebalance!$D$39,$F$2:$G$48,2,FALSE)+ROW()-2))=Rebalance!$D$39,INDIRECT(\"a\" & (VLOOKUP(Rebalance!$D$39,$F$2:$G$48,2,FALSE)+ROW()-2)),\"\")","v":{"$error":"#N/A"}},{"$f":"IF(INDIRECT(\"c\" & (VLOOKUP(Rebalance!$D$40,$F$2:$G$48,2,FALSE)+ROW()-2))=Rebalance!$D$40,INDIRECT(\"a\" & (VLOOKUP(Rebalance!$D$40,$F$2:$G$48,2,FALSE)+ROW()-2)),\"\")","v":{"$error":"#N/A"}},{"$f":"IF(INDIRECT(\"c\" & (VLOOKUP(Rebalance!$D$52,$F$2:$G$48,2,FALSE)+ROW()-2))=Rebalance!$D$52,INDIRECT(\"a\" & (VLOOKUP(Rebalance!$D$52,$F$2:$G$48,2,FALSE)+ROW()-2)),\"\")","v":{"$error":"#N/A"}},{"$f":"IF(INDIRECT(\"c\" & (VLOOKUP(Rebalance!$D$53,$F$2:$G$48,2,FALSE)+ROW()-2))=Rebalance!$D$53,INDIRECT(\"a\" & (VLOOKUP(Rebalance!$D$53,$F$2:$G$48,2,FALSE)+ROW()-2)),\"\")","v":{"$error":"#N/A"}},{"$f":"IF(INDIRECT(\"c\" & (VLOOKUP(Rebalance!$D$54,$F$2:$G$48,2,FALSE)+ROW()-2))=Rebalance!$D$54,INDIRECT(\"a\" & (VLOOKUP(Rebalance!$D$54,$F$2:$G$48,2,FALSE)+ROW()-2)),\"\")","v":{"$error":"#N/A"}},{"$f":"IF(INDIRECT(\"c\" & (VLOOKUP(Rebalance!$D$55,$F$2:$G$48,2,FALSE)+ROW()-2))=Rebalance!$D$55,INDIRECT(\"a\" & (VLOOKUP(Rebalance!$D$55,$F$2:$G$48,2,FALSE)+ROW()-2)),\"\")","v":{"$error":"#N/A"}},{"$f":"IF(INDIRECT(\"c\" & (VLOOKUP(Rebalance!$D$56,$F$2:$G$48,2,FALSE)+ROW()-2))=Rebalance!$D$56,INDIRECT(\"a\" & (VLOOKUP(Rebalance!$D$56,$F$2:$G$48,2,FALSE)+ROW()-2)),\"\")","v":{"$error":"#N/A"}},{"$f":"IF(INDIRECT(\"c\" & (VLOOKUP(Rebalance!$D$57,$F$2:$G$48,2,FALSE)+ROW()-2))=Rebalance!$D$57,INDIRECT(\"a\" & (VLOOKUP(Rebalance!$D$57,$F$2:$G$48,2,FALSE)+ROW()-2)),\"\")","v":{"$error":"#N/A"}},{"$f":"IF(INDIRECT(\"c\" & (VLOOKUP(Rebalance!$D$58,$F$2:$G$48,2,FALSE)+ROW()-2))=Rebalance!$D$58,INDIRECT(\"a\" & (VLOOKUP(Rebalance!$D$58,$F$2:$G$48,2,FALSE)+ROW()-2)),\"\")","v":{"$error":"#N/A"}},{"$f":"IF(INDIRECT(\"c\" & (VLOOKUP(Rebalance!$D$59,$F$2:$G$48,2,FALSE)+ROW()-2))=Rebalance!$D$59,INDIRECT(\"a\" & (VLOOKUP(Rebalance!$D$59,$F$2:$G$48,2,FALSE)+ROW()-2)),\"\")","v":{"$error":"#N/A"}},{"$f":"IF(INDIRECT(\"c\" & (VLOOKUP(Rebalance!$D$60,$F$2:$G$48,2,FALSE)+ROW()-2))=Rebalance!$D$60,INDIRECT(\"a\" & (VLOOKUP(Rebalance!$D$60,$F$2:$G$48,2,FALSE)+ROW()-2)),\"\")","v":{"$error":"#N/A"}},{"$f":"IF(INDIRECT(\"c\" & (VLOOKUP(Rebalance!$D$61,$F$2:$G$48,2,FALSE)+ROW()-2))=Rebalance!$D$61,INDIRECT(\"a\" & (VLOOKUP(Rebalance!$D$61,$F$2:$G$48,2,FALSE)+ROW()-2)),\"\")","v":{"$error":"#N/A"}},{"$f":"IF(INDIRECT(\"c\" & (VLOOKUP(Rebalance!$D$62,$F$2:$G$48,2,FALSE)+ROW()-2))=Rebalance!$D$62,INDIRECT(\"a\" & (VLOOKUP(Rebalance!$D$62,$F$2:$G$48,2,FALSE)+ROW()-2)),\"\")","v":{"$error":"#N/A"}},{"$f":"IF(INDIRECT(\"c\" & (VLOOKUP(Rebalance!$D$63,$F$2:$G$48,2,FALSE)+ROW()-2))=Rebalance!$D$63,INDIRECT(\"a\" & (VLOOKUP(Rebalance!$D$63,$F$2:$G$48,2,FALSE)+ROW()-2)),\"\")","v":{"$error":"#N/A"}},{"$f":"IF(INDIRECT(\"c\" & (VLOOKUP(Rebalance!$D$64,$F$2:$G$48,2,FALSE)+ROW()-2))=Rebalance!$D$64,INDIRECT(\"a\" & (VLOOKUP(Rebalance!$D$64,$F$2:$G$48,2,FALSE)+ROW()-2)),\"\")","v":{"$error":"#N/A"}},{"$f":"IF(INDIRECT(\"c\" & (VLOOKUP(Rebalance!$D$65,$F$2:$G$48,2,FALSE)+ROW()-2))=Rebalance!$D$65,INDIRECT(\"a\" & (VLOOKUP(Rebalance!$D$65,$F$2:$G$48,2,FALSE)+ROW()-2)),\"\")","v":{"$error":"#N/A"}},{"$f":"IF(INDIRECT(\"c\" & (VLOOKUP(Rebalance!$D$66,$F$2:$G$48,2,FALSE)+ROW()-2))=Rebalance!$D$66,INDIRECT(\"a\" & (VLOOKUP(Rebalance!$D$66,$F$2:$G$48,2,FALSE)+ROW()-2)),\"\")","v":{"$error":"#N/A"}}]
["MI-PLAN IP Inflation Plus 3","PIPB5","IP Management Company (Pty) Ltd",{"$f":"ROW()","v":288},null,null,{"$f":"VLOOKUP(F288,$C$2:$D$599,2,FALSE)","v":{"$error":"#N/A"}},{"$f":"IF(INDIRECT(\"c\" & (VLOOKUP(Rebalance!$D$26,$F$2:$G$48,2,FALSE)+ROW()-2))=Rebalance!$D$26,INDIRECT(\"a\" & (VLOOKUP(Rebalance!$D$26,$F$2:$G$48,2,FALSE)+ROW()-2)),\"\")","v":{"$error":"#N/A"}},{"$f":"IF(INDIRECT(\"c\" & (VLOOKUP(Rebalance!$D$27,$F$2:$G$48,2,FALSE)+ROW()-2))=Rebalance!$D$27,INDIRECT(\"a\" & (VLOOKUP(Rebalance!$D$27,$F$2:$G$48,2,FALSE)+ROW()-2)),\"\")","v":{"$error":"#N/A"}},{"$f":"IF(INDIRECT(\"c\" & (VLOOKUP(Rebalance!$D$28,$F$2:$G$48,2,FALSE)+ROW()-2))=Rebalance!$D$28,INDIRECT(\"a\" & (VLOOKUP(Rebalance!$D$28,$F$2:$G$48,2,FALSE)+ROW()-2)),\"\")","v":{"$error":"#N/A"}},{"$f":"IF(INDIRECT(\"c\" & (VLOOKUP(Rebalance!$D$29,$F$2:$G$48,2,FALSE)+ROW()-2))=Rebalance!$D$29,INDIRECT(\"a\" & (VLOOKUP(Rebalance!$D$29,$F$2:$G$48,2,FALSE)+ROW()-2)),\"\")","v":{"$error":"#N/A"}},{"$f":"IF(INDIRECT(\"c\" & (VLOOKUP(Rebalance!$D$30,$F$2:$G$48,2,FALSE)+ROW()-2))=Rebalance!$D$30,INDIRECT(\"a\" & (VLOOKUP(Rebalance!$D$30,$F$2:$G$48,2,FALSE)+ROW()-2)),\"\")","v":{"$error":"#N/A"}},{"$f":"IF(INDIRECT(\"c\" & (VLOOKUP(Rebalance!$D$31,$F$2:$G$48,2,FALSE)+ROW()-2))=Rebalance!$D$31,INDIRECT(\"a\" & (VLOOKUP(Rebalance!$D$31,$F$2:$G$48,2,FALSE)+ROW()-2)),\"\")","v":{"$error":"#N/A"}},{"$f":"IF(INDIRECT(\"c\" & (VLOOKUP(Rebalance!$D$32,$F$2:$G$48,2,FALSE)+ROW()-2))=Rebalance!$D$32,INDIRECT(\"a\" & (VLOOKUP(Rebalance!$D$32,$F$2:$G$48,2,FALSE)+ROW()-2)),\"\")","v":{"$error":"#N/A"}},{"$f":"IF(INDIRECT(\"c\" & (VLOOKUP(Rebalance!$D$33,$F$2:$G$48,2,FALSE)+ROW()-2))=Rebalance!$D$33,INDIRECT(\"a\" & (VLOOKUP(Rebalance!$D$33,$F$2:$G$48,2,FALSE)+ROW()-2)),\"\")","v":{"$error":"#N/A"}},{"$f":"IF(INDIRECT(\"c\" & (VLOOKUP(Rebalance!$D$34,$F$2:$G$48,2,FALSE)+ROW()-2))=Rebalance!$D$34,INDIRECT(\"a\" & (VLOOKUP(Rebalance!$D$34,$F$2:$G$48,2,FALSE)+ROW()-2)),\"\")","v":{"$error":"#N/A"}},{"$f":"IF(INDIRECT(\"c\" & (VLOOKUP(Rebalance!$D$35,$F$2:$G$48,2,FALSE)+ROW()-2))=Rebalance!$D$35,INDIRECT(\"a\" & (VLOOKUP(Rebalance!$D$35,$F$2:$G$48,2,FALSE)+ROW()-2)),\"\")","v":{"$error":"#N/A"}},{"$f":"IF(INDIRECT(\"c\" & (VLOOKUP(Rebalance!$D$36,$F$2:$G$48,2,FALSE)+ROW()-2))=Rebalance!$D$36,INDIRECT(\"a\" & (VLOOKUP(Rebalance!$D$36,$F$2:$G$48,2,FALSE)+ROW()-2)),\"\")","v":{"$error":"#N/A"}},{"$f":"IF(INDIRECT(\"c\" & (VLOOKUP(Rebalance!$D$37,$F$2:$G$48,2,FALSE)+ROW()-2))=Rebalance!$D$37,INDIRECT(\"a\" & (VLOOKUP(Rebalance!$D$37,$F$2:$G$48,2,FALSE)+ROW()-2)),\"\")","v":{"$error":"#N/A"}},{"$f":"IF(INDIRECT(\"c\" & (VLOOKUP(Rebalance!$D$38,$F$2:$G$48,2,FALSE)+ROW()-2))=Rebalance!$D$38,INDIRECT(\"a\" & (VLOOKUP(Rebalance!$D$38,$F$2:$G$48,2,FALSE)+ROW()-2)),\"\")","v":{"$error":"#N/A"}},{"$f":"IF(INDIRECT(\"c\" & (VLOOKUP(Rebalance!$D$39,$F$2:$G$48,2,FALSE)+ROW()-2))=Rebalance!$D$39,INDIRECT(\"a\" & (VLOOKUP(Rebalance!$D$39,$F$2:$G$48,2,FALSE)+ROW()-2)),\"\")","v":{"$error":"#N/A"}},{"$f":"IF(INDIRECT(\"c\" & (VLOOKUP(Rebalance!$D$40,$F$2:$G$48,2,FALSE)+ROW()-2))=Rebalance!$D$40,INDIRECT(\"a\" & (VLOOKUP(Rebalance!$D$40,$F$2:$G$48,2,FALSE)+ROW()-2)),\"\")","v":{"$error":"#N/A"}},{"$f":"IF(INDIRECT(\"c\" & (VLOOKUP(Rebalance!$D$52,$F$2:$G$48,2,FALSE)+ROW()-2))=Rebalance!$D$52,INDIRECT(\"a\" & (VLOOKUP(Rebalance!$D$52,$F$2:$G$48,2,FALSE)+ROW()-2)),\"\")","v":{"$error":"#N/A"}},{"$f":"IF(INDIRECT(\"c\" & (VLOOKUP(Rebalance!$D$53,$F$2:$G$48,2,FALSE)+ROW()-2))=Rebalance!$D$53,INDIRECT(\"a\" & (VLOOKUP(Rebalance!$D$53,$F$2:$G$48,2,FALSE)+ROW()-2)),\"\")","v":{"$error":"#N/A"}},{"$f":"IF(INDIRECT(\"c\" & (VLOOKUP(Rebalance!$D$54,$F$2:$G$48,2,FALSE)+ROW()-2))=Rebalance!$D$54,INDIRECT(\"a\" & (VLOOKUP(Rebalance!$D$54,$F$2:$G$48,2,FALSE)+ROW()-2)),\"\")","v":{"$error":"#N/A"}},{"$f":"IF(INDIRECT(\"c\" & (VLOOKUP(Rebalance!$D$55,$F$2:$G$48,2,FALSE)+ROW()-2))=Rebalance!$D$55,INDIRECT(\"a\" & (VLOOKUP(Rebalance!$D$55,$F$2:$G$48,2,FALSE)+ROW()-2)),\"\")","v":{"$error":"#N/A"}},{"$f":"IF(INDIRECT(\"c\" & (VLOOKUP(Rebalance!$D$56,$F$2:$G$48,2,FALSE)+ROW()-2))=Rebalance!$D$56,INDIRECT(\"a\" & (VLOOKUP(Rebalance!$D$56,$F$2:$G$48,2,FALSE)+ROW()-2)),\"\")","v":{"$error":"#N/A"}},{"$f":"IF(INDIRECT(\"c\" & (VLOOKUP(Rebalance!$D$57,$F$2:$G$48,2,FALSE)+ROW()-2))=Rebalance!$D$57,INDIRECT(\"a\" & (VLOOKUP(Rebalance!$D$57,$F$2:$G$48,2,FALSE)+ROW()-2)),\"\")","v":{"$error":"#N/A"}},{"$f":"IF(INDIRECT(\"c\" & (VLOOKUP(Rebalance!$D$58,$F$2:$G$48,2,FALSE)+ROW()-2))=Rebalance!$D$58,INDIRECT(\"a\" & (VLOOKUP(Rebalance!$D$58,$F$2:$G$48,2,FALSE)+ROW()-2)),\"\")","v":{"$error":"#N/A"}},{"$f":"IF(INDIRECT(\"c\" & (VLOOKUP(Rebalance!$D$59,$F$2:$G$48,2,FALSE)+ROW()-2))=Rebalance!$D$59,INDIRECT(\"a\" & (VLOOKUP(Rebalance!$D$59,$F$2:$G$48,2,FALSE)+ROW()-2)),\"\")","v":{"$error":"#N/A"}},{"$f":"IF(INDIRECT(\"c\" & (VLOOKUP(Rebalance!$D$60,$F$2:$G$48,2,FALSE)+ROW()-2))=Rebalance!$D$60,INDIRECT(\"a\" & (VLOOKUP(Rebalance!$D$60,$F$2:$G$48,2,FALSE)+ROW()-2)),\"\")","v":{"$error":"#N/A"}},{"$f":"IF(INDIRECT(\"c\" & (VLOOKUP(Rebalance!$D$61,$F$2:$G$48,2,FALSE)+ROW()-2))=Rebalance!$D$61,INDIRECT(\"a\" & (VLOOKUP(Rebalance!$D$61,$F$2:$G$48,2,FALSE)+ROW()-2)),\"\")","v":{"$error":"#N/A"}},{"$f":"IF(INDIRECT(\"c\" & (VLOOKUP(Rebalance!$D$62,$F$2:$G$48,2,FALSE)+ROW()-2))=Rebalance!$D$62,INDIRECT(\"a\" & (VLOOKUP(Rebalance!$D$62,$F$2:$G$48,2,FALSE)+ROW()-2)),\"\")","v":{"$error":"#N/A"}},{"$f":"IF(INDIRECT(\"c\" & (VLOOKUP(Rebalance!$D$63,$F$2:$G$48,2,FALSE)+ROW()-2))=Rebalance!$D$63,INDIRECT(\"a\" & (VLOOKUP(Rebalance!$D$63,$F$2:$G$48,2,FALSE)+ROW()-2)),\"\")","v":{"$error":"#N/A"}},{"$f":"IF(INDIRECT(\"c\" & (VLOOKUP(Rebalance!$D$64,$F$2:$G$48,2,FALSE)+ROW()-2))=Rebalance!$D$64,INDIRECT(\"a\" & (VLOOKUP(Rebalance!$D$64,$F$2:$G$48,2,FALSE)+ROW()-2)),\"\")","v":{"$error":"#N/A"}},{"$f":"IF(INDIRECT(\"c\" & (VLOOKUP(Rebalance!$D$65,$F$2:$G$48,2,FALSE)+ROW()-2))=Rebalance!$D$65,INDIRECT(\"a\" & (VLOOKUP(Rebalance!$D$65,$F$2:$G$48,2,FALSE)+ROW()-2)),\"\")","v":{"$error":"#N/A"}},{"$f":"IF(INDIRECT(\"c\" & (VLOOKUP(Rebalance!$D$66,$F$2:$G$48,2,FALSE)+ROW()-2))=Rebalance!$D$66,INDIRECT(\"a\" & (VLOOKUP(Rebalance!$D$66,$F$2:$G$48,2,FALSE)+ROW()-2)),\"\")","v":{"$error":"#N/A"}}]
["MI-PLAN IP Inflation Plus 5","PEIB5","IP Management Company (Pty) Ltd",{"$f":"ROW()","v":289},null,null,{"$f":"VLOOKUP(F289,$C$2:$D$599,2,FALSE)","v":{"$error":"#N/A"}},{"$f":"IF(INDIRECT(\"c\" & (VLOOKUP(Rebalance!$D$26,$F$2:$G$48,2,FALSE)+ROW()-2))=Rebalance!$D$26,INDIRECT(\"a\" & (VLOOKUP(Rebalance!$D$26,$F$2:$G$48,2,FALSE)+ROW()-2)),\"\")","v":{"$error":"#N/A"}},{"$f":"IF(INDIRECT(\"c\" & (VLOOKUP(Rebalance!$D$27,$F$2:$G$48,2,FALSE)+ROW()-2))=Rebalance!$D$27,INDIRECT(\"a\" & (VLOOKUP(Rebalance!$D$27,$F$2:$G$48,2,FALSE)+ROW()-2)),\"\")","v":{"$error":"#N/A"}},{"$f":"IF(INDIRECT(\"c\" & (VLOOKUP(Rebalance!$D$28,$F$2:$G$48,2,FALSE)+ROW()-2))=Rebalance!$D$28,INDIRECT(\"a\" & (VLOOKUP(Rebalance!$D$28,$F$2:$G$48,2,FALSE)+ROW()-2)),\"\")","v":{"$error":"#N/A"}},{"$f":"IF(INDIRECT(\"c\" & (VLOOKUP(Rebalance!$D$29,$F$2:$G$48,2,FALSE)+ROW()-2))=Rebalance!$D$29,INDIRECT(\"a\" & (VLOOKUP(Rebalance!$D$29,$F$2:$G$48,2,FALSE)+ROW()-2)),\"\")","v":{"$error":"#N/A"}},{"$f":"IF(INDIRECT(\"c\" & (VLOOKUP(Rebalance!$D$30,$F$2:$G$48,2,FALSE)+ROW()-2))=Rebalance!$D$30,INDIRECT(\"a\" & (VLOOKUP(Rebalance!$D$30,$F$2:$G$48,2,FALSE)+ROW()-2)),\"\")","v":{"$error":"#N/A"}},{"$f":"IF(INDIRECT(\"c\" & (VLOOKUP(Rebalance!$D$31,$F$2:$G$48,2,FALSE)+ROW()-2))=Rebalance!$D$31,INDIRECT(\"a\" & (VLOOKUP(Rebalance!$D$31,$F$2:$G$48,2,FALSE)+ROW()-2)),\"\")","v":{"$error":"#N/A"}},{"$f":"IF(INDIRECT(\"c\" & (VLOOKUP(Rebalance!$D$32,$F$2:$G$48,2,FALSE)+ROW()-2))=Rebalance!$D$32,INDIRECT(\"a\" & (VLOOKUP(Rebalance!$D$32,$F$2:$G$48,2,FALSE)+ROW()-2)),\"\")","v":{"$error":"#N/A"}},{"$f":"IF(INDIRECT(\"c\" & (VLOOKUP(Rebalance!$D$33,$F$2:$G$48,2,FALSE)+ROW()-2))=Rebalance!$D$33,INDIRECT(\"a\" & (VLOOKUP(Rebalance!$D$33,$F$2:$G$48,2,FALSE)+ROW()-2)),\"\")","v":{"$error":"#N/A"}},{"$f":"IF(INDIRECT(\"c\" & (VLOOKUP(Rebalance!$D$34,$F$2:$G$48,2,FALSE)+ROW()-2))=Rebalance!$D$34,INDIRECT(\"a\" & (VLOOKUP(Rebalance!$D$34,$F$2:$G$48,2,FALSE)+ROW()-2)),\"\")","v":{"$error":"#N/A"}},{"$f":"IF(INDIRECT(\"c\" & (VLOOKUP(Rebalance!$D$35,$F$2:$G$48,2,FALSE)+ROW()-2))=Rebalance!$D$35,INDIRECT(\"a\" & (VLOOKUP(Rebalance!$D$35,$F$2:$G$48,2,FALSE)+ROW()-2)),\"\")","v":{"$error":"#N/A"}},{"$f":"IF(INDIRECT(\"c\" & (VLOOKUP(Rebalance!$D$36,$F$2:$G$48,2,FALSE)+ROW()-2))=Rebalance!$D$36,INDIRECT(\"a\" & (VLOOKUP(Rebalance!$D$36,$F$2:$G$48,2,FALSE)+ROW()-2)),\"\")","v":{"$error":"#N/A"}},{"$f":"IF(INDIRECT(\"c\" & (VLOOKUP(Rebalance!$D$37,$F$2:$G$48,2,FALSE)+ROW()-2))=Rebalance!$D$37,INDIRECT(\"a\" & (VLOOKUP(Rebalance!$D$37,$F$2:$G$48,2,FALSE)+ROW()-2)),\"\")","v":{"$error":"#N/A"}},{"$f":"IF(INDIRECT(\"c\" & (VLOOKUP(Rebalance!$D$38,$F$2:$G$48,2,FALSE)+ROW()-2))=Rebalance!$D$38,INDIRECT(\"a\" & (VLOOKUP(Rebalance!$D$38,$F$2:$G$48,2,FALSE)+ROW()-2)),\"\")","v":{"$error":"#N/A"}},{"$f":"IF(INDIRECT(\"c\" & (VLOOKUP(Rebalance!$D$39,$F$2:$G$48,2,FALSE)+ROW()-2))=Rebalance!$D$39,INDIRECT(\"a\" & (VLOOKUP(Rebalance!$D$39,$F$2:$G$48,2,FALSE)+ROW()-2)),\"\")","v":{"$error":"#N/A"}},{"$f":"IF(INDIRECT(\"c\" & (VLOOKUP(Rebalance!$D$40,$F$2:$G$48,2,FALSE)+ROW()-2))=Rebalance!$D$40,INDIRECT(\"a\" & (VLOOKUP(Rebalance!$D$40,$F$2:$G$48,2,FALSE)+ROW()-2)),\"\")","v":{"$error":"#N/A"}},{"$f":"IF(INDIRECT(\"c\" & (VLOOKUP(Rebalance!$D$52,$F$2:$G$48,2,FALSE)+ROW()-2))=Rebalance!$D$52,INDIRECT(\"a\" & (VLOOKUP(Rebalance!$D$52,$F$2:$G$48,2,FALSE)+ROW()-2)),\"\")","v":{"$error":"#N/A"}},{"$f":"IF(INDIRECT(\"c\" & (VLOOKUP(Rebalance!$D$53,$F$2:$G$48,2,FALSE)+ROW()-2))=Rebalance!$D$53,INDIRECT(\"a\" & (VLOOKUP(Rebalance!$D$53,$F$2:$G$48,2,FALSE)+ROW()-2)),\"\")","v":{"$error":"#N/A"}},{"$f":"IF(INDIRECT(\"c\" & (VLOOKUP(Rebalance!$D$54,$F$2:$G$48,2,FALSE)+ROW()-2))=Rebalance!$D$54,INDIRECT(\"a\" & (VLOOKUP(Rebalance!$D$54,$F$2:$G$48,2,FALSE)+ROW()-2)),\"\")","v":{"$error":"#N/A"}},{"$f":"IF(INDIRECT(\"c\" & (VLOOKUP(Rebalance!$D$55,$F$2:$G$48,2,FALSE)+ROW()-2))=Rebalance!$D$55,INDIRECT(\"a\" & (VLOOKUP(Rebalance!$D$55,$F$2:$G$48,2,FALSE)+ROW()-2)),\"\")","v":{"$error":"#N/A"}},{"$f":"IF(INDIRECT(\"c\" & (VLOOKUP(Rebalance!$D$56,$F$2:$G$48,2,FALSE)+ROW()-2))=Rebalance!$D$56,INDIRECT(\"a\" & (VLOOKUP(Rebalance!$D$56,$F$2:$G$48,2,FALSE)+ROW()-2)),\"\")","v":{"$error":"#N/A"}},{"$f":"IF(INDIRECT(\"c\" & (VLOOKUP(Rebalance!$D$57,$F$2:$G$48,2,FALSE)+ROW()-2))=Rebalance!$D$57,INDIRECT(\"a\" & (VLOOKUP(Rebalance!$D$57,$F$2:$G$48,2,FALSE)+ROW()-2)),\"\")","v":{"$error":"#N/A"}},{"$f":"IF(INDIRECT(\"c\" & (VLOOKUP(Rebalance!$D$58,$F$2:$G$48,2,FALSE)+ROW()-2))=Rebalance!$D$58,INDIRECT(\"a\" & (VLOOKUP(Rebalance!$D$58,$F$2:$G$48,2,FALSE)+ROW()-2)),\"\")","v":{"$error":"#N/A"}},{"$f":"IF(INDIRECT(\"c\" & (VLOOKUP(Rebalance!$D$59,$F$2:$G$48,2,FALSE)+ROW()-2))=Rebalance!$D$59,INDIRECT(\"a\" & (VLOOKUP(Rebalance!$D$59,$F$2:$G$48,2,FALSE)+ROW()-2)),\"\")","v":{"$error":"#N/A"}},{"$f":"IF(INDIRECT(\"c\" & (VLOOKUP(Rebalance!$D$60,$F$2:$G$48,2,FALSE)+ROW()-2))=Rebalance!$D$60,INDIRECT(\"a\" & (VLOOKUP(Rebalance!$D$60,$F$2:$G$48,2,FALSE)+ROW()-2)),\"\")","v":{"$error":"#N/A"}},{"$f":"IF(INDIRECT(\"c\" & (VLOOKUP(Rebalance!$D$61,$F$2:$G$48,2,FALSE)+ROW()-2))=Rebalance!$D$61,INDIRECT(\"a\" & (VLOOKUP(Rebalance!$D$61,$F$2:$G$48,2,FALSE)+ROW()-2)),\"\")","v":{"$error":"#N/A"}},{"$f":"IF(INDIRECT(\"c\" & (VLOOKUP(Rebalance!$D$62,$F$2:$G$48,2,FALSE)+ROW()-2))=Rebalance!$D$62,INDIRECT(\"a\" & (VLOOKUP(Rebalance!$D$62,$F$2:$G$48,2,FALSE)+ROW()-2)),\"\")","v":{"$error":"#N/A"}},{"$f":"IF(INDIRECT(\"c\" & (VLOOKUP(Rebalance!$D$63,$F$2:$G$48,2,FALSE)+ROW()-2))=Rebalance!$D$63,INDIRECT(\"a\" & (VLOOKUP(Rebalance!$D$63,$F$2:$G$48,2,FALSE)+ROW()-2)),\"\")","v":{"$error":"#N/A"}},{"$f":"IF(INDIRECT(\"c\" & (VLOOKUP(Rebalance!$D$64,$F$2:$G$48,2,FALSE)+ROW()-2))=Rebalance!$D$64,INDIRECT(\"a\" & (VLOOKUP(Rebalance!$D$64,$F$2:$G$48,2,FALSE)+ROW()-2)),\"\")","v":{"$error":"#N/A"}},{"$f":"IF(INDIRECT(\"c\" & (VLOOKUP(Rebalance!$D$65,$F$2:$G$48,2,FALSE)+ROW()-2))=Rebalance!$D$65,INDIRECT(\"a\" & (VLOOKUP(Rebalance!$D$65,$F$2:$G$48,2,FALSE)+ROW()-2)),\"\")","v":{"$error":"#N/A"}},{"$f":"IF(INDIRECT(\"c\" & (VLOOKUP(Rebalance!$D$66,$F$2:$G$48,2,FALSE)+ROW()-2))=Rebalance!$D$66,INDIRECT(\"a\" & (VLOOKUP(Rebalance!$D$66,$F$2:$G$48,2,FALSE)+ROW()-2)),\"\")","v":{"$error":"#N/A"}}]
["MI-PLAN IP Inflation Plus 7 Fund B5","PEPB5","IP Management Company (Pty) Ltd",{"$f":"ROW()","v":290},null,null,{"$f":"VLOOKUP(F290,$C$2:$D$599,2,FALSE)","v":{"$error":"#N/A"}},{"$f":"IF(INDIRECT(\"c\" & (VLOOKUP(Rebalance!$D$26,$F$2:$G$48,2,FALSE)+ROW()-2))=Rebalance!$D$26,INDIRECT(\"a\" & (VLOOKUP(Rebalance!$D$26,$F$2:$G$48,2,FALSE)+ROW()-2)),\"\")","v":{"$error":"#N/A"}},{"$f":"IF(INDIRECT(\"c\" & (VLOOKUP(Rebalance!$D$27,$F$2:$G$48,2,FALSE)+ROW()-2))=Rebalance!$D$27,INDIRECT(\"a\" & (VLOOKUP(Rebalance!$D$27,$F$2:$G$48,2,FALSE)+ROW()-2)),\"\")","v":{"$error":"#N/A"}},{"$f":"IF(INDIRECT(\"c\" & (VLOOKUP(Rebalance!$D$28,$F$2:$G$48,2,FALSE)+ROW()-2))=Rebalance!$D$28,INDIRECT(\"a\" & (VLOOKUP(Rebalance!$D$28,$F$2:$G$48,2,FALSE)+ROW()-2)),\"\")","v":{"$error":"#N/A"}},{"$f":"IF(INDIRECT(\"c\" & (VLOOKUP(Rebalance!$D$29,$F$2:$G$48,2,FALSE)+ROW()-2))=Rebalance!$D$29,INDIRECT(\"a\" & (VLOOKUP(Rebalance!$D$29,$F$2:$G$48,2,FALSE)+ROW()-2)),\"\")","v":{"$error":"#N/A"}},{"$f":"IF(INDIRECT(\"c\" & (VLOOKUP(Rebalance!$D$30,$F$2:$G$48,2,FALSE)+ROW()-2))=Rebalance!$D$30,INDIRECT(\"a\" & (VLOOKUP(Rebalance!$D$30,$F$2:$G$48,2,FALSE)+ROW()-2)),\"\")","v":{"$error":"#N/A"}},{"$f":"IF(INDIRECT(\"c\" & (VLOOKUP(Rebalance!$D$31,$F$2:$G$48,2,FALSE)+ROW()-2))=Rebalance!$D$31,INDIRECT(\"a\" & (VLOOKUP(Rebalance!$D$31,$F$2:$G$48,2,FALSE)+ROW()-2)),\"\")","v":{"$error":"#N/A"}},{"$f":"IF(INDIRECT(\"c\" & (VLOOKUP(Rebalance!$D$32,$F$2:$G$48,2,FALSE)+ROW()-2))=Rebalance!$D$32,INDIRECT(\"a\" & (VLOOKUP(Rebalance!$D$32,$F$2:$G$48,2,FALSE)+ROW()-2)),\"\")","v":{"$error":"#N/A"}},{"$f":"IF(INDIRECT(\"c\" & (VLOOKUP(Rebalance!$D$33,$F$2:$G$48,2,FALSE)+ROW()-2))=Rebalance!$D$33,INDIRECT(\"a\" & (VLOOKUP(Rebalance!$D$33,$F$2:$G$48,2,FALSE)+ROW()-2)),\"\")","v":{"$error":"#N/A"}},{"$f":"IF(INDIRECT(\"c\" & (VLOOKUP(Rebalance!$D$34,$F$2:$G$48,2,FALSE)+ROW()-2))=Rebalance!$D$34,INDIRECT(\"a\" & (VLOOKUP(Rebalance!$D$34,$F$2:$G$48,2,FALSE)+ROW()-2)),\"\")","v":{"$error":"#N/A"}},{"$f":"IF(INDIRECT(\"c\" & (VLOOKUP(Rebalance!$D$35,$F$2:$G$48,2,FALSE)+ROW()-2))=Rebalance!$D$35,INDIRECT(\"a\" & (VLOOKUP(Rebalance!$D$35,$F$2:$G$48,2,FALSE)+ROW()-2)),\"\")","v":{"$error":"#N/A"}},{"$f":"IF(INDIRECT(\"c\" & (VLOOKUP(Rebalance!$D$36,$F$2:$G$48,2,FALSE)+ROW()-2))=Rebalance!$D$36,INDIRECT(\"a\" & (VLOOKUP(Rebalance!$D$36,$F$2:$G$48,2,FALSE)+ROW()-2)),\"\")","v":{"$error":"#N/A"}},{"$f":"IF(INDIRECT(\"c\" & (VLOOKUP(Rebalance!$D$37,$F$2:$G$48,2,FALSE)+ROW()-2))=Rebalance!$D$37,INDIRECT(\"a\" & (VLOOKUP(Rebalance!$D$37,$F$2:$G$48,2,FALSE)+ROW()-2)),\"\")","v":{"$error":"#N/A"}},{"$f":"IF(INDIRECT(\"c\" & (VLOOKUP(Rebalance!$D$38,$F$2:$G$48,2,FALSE)+ROW()-2))=Rebalance!$D$38,INDIRECT(\"a\" & (VLOOKUP(Rebalance!$D$38,$F$2:$G$48,2,FALSE)+ROW()-2)),\"\")","v":{"$error":"#N/A"}},{"$f":"IF(INDIRECT(\"c\" & (VLOOKUP(Rebalance!$D$39,$F$2:$G$48,2,FALSE)+ROW()-2))=Rebalance!$D$39,INDIRECT(\"a\" & (VLOOKUP(Rebalance!$D$39,$F$2:$G$48,2,FALSE)+ROW()-2)),\"\")","v":{"$error":"#N/A"}},{"$f":"IF(INDIRECT(\"c\" & (VLOOKUP(Rebalance!$D$40,$F$2:$G$48,2,FALSE)+ROW()-2))=Rebalance!$D$40,INDIRECT(\"a\" & (VLOOKUP(Rebalance!$D$40,$F$2:$G$48,2,FALSE)+ROW()-2)),\"\")","v":{"$error":"#N/A"}},{"$f":"IF(INDIRECT(\"c\" & (VLOOKUP(Rebalance!$D$52,$F$2:$G$48,2,FALSE)+ROW()-2))=Rebalance!$D$52,INDIRECT(\"a\" & (VLOOKUP(Rebalance!$D$52,$F$2:$G$48,2,FALSE)+ROW()-2)),\"\")","v":{"$error":"#N/A"}},{"$f":"IF(INDIRECT(\"c\" & (VLOOKUP(Rebalance!$D$53,$F$2:$G$48,2,FALSE)+ROW()-2))=Rebalance!$D$53,INDIRECT(\"a\" & (VLOOKUP(Rebalance!$D$53,$F$2:$G$48,2,FALSE)+ROW()-2)),\"\")","v":{"$error":"#N/A"}},{"$f":"IF(INDIRECT(\"c\" & (VLOOKUP(Rebalance!$D$54,$F$2:$G$48,2,FALSE)+ROW()-2))=Rebalance!$D$54,INDIRECT(\"a\" & (VLOOKUP(Rebalance!$D$54,$F$2:$G$48,2,FALSE)+ROW()-2)),\"\")","v":{"$error":"#N/A"}},{"$f":"IF(INDIRECT(\"c\" & (VLOOKUP(Rebalance!$D$55,$F$2:$G$48,2,FALSE)+ROW()-2))=Rebalance!$D$55,INDIRECT(\"a\" & (VLOOKUP(Rebalance!$D$55,$F$2:$G$48,2,FALSE)+ROW()-2)),\"\")","v":{"$error":"#N/A"}},{"$f":"IF(INDIRECT(\"c\" & (VLOOKUP(Rebalance!$D$56,$F$2:$G$48,2,FALSE)+ROW()-2))=Rebalance!$D$56,INDIRECT(\"a\" & (VLOOKUP(Rebalance!$D$56,$F$2:$G$48,2,FALSE)+ROW()-2)),\"\")","v":{"$error":"#N/A"}},{"$f":"IF(INDIRECT(\"c\" & (VLOOKUP(Rebalance!$D$57,$F$2:$G$48,2,FALSE)+ROW()-2))=Rebalance!$D$57,INDIRECT(\"a\" & (VLOOKUP(Rebalance!$D$57,$F$2:$G$48,2,FALSE)+ROW()-2)),\"\")","v":{"$error":"#N/A"}},{"$f":"IF(INDIRECT(\"c\" & (VLOOKUP(Rebalance!$D$58,$F$2:$G$48,2,FALSE)+ROW()-2))=Rebalance!$D$58,INDIRECT(\"a\" & (VLOOKUP(Rebalance!$D$58,$F$2:$G$48,2,FALSE)+ROW()-2)),\"\")","v":{"$error":"#N/A"}},{"$f":"IF(INDIRECT(\"c\" & (VLOOKUP(Rebalance!$D$59,$F$2:$G$48,2,FALSE)+ROW()-2))=Rebalance!$D$59,INDIRECT(\"a\" & (VLOOKUP(Rebalance!$D$59,$F$2:$G$48,2,FALSE)+ROW()-2)),\"\")","v":{"$error":"#N/A"}},{"$f":"IF(INDIRECT(\"c\" & (VLOOKUP(Rebalance!$D$60,$F$2:$G$48,2,FALSE)+ROW()-2))=Rebalance!$D$60,INDIRECT(\"a\" & (VLOOKUP(Rebalance!$D$60,$F$2:$G$48,2,FALSE)+ROW()-2)),\"\")","v":{"$error":"#N/A"}},{"$f":"IF(INDIRECT(\"c\" & (VLOOKUP(Rebalance!$D$61,$F$2:$G$48,2,FALSE)+ROW()-2))=Rebalance!$D$61,INDIRECT(\"a\" & (VLOOKUP(Rebalance!$D$61,$F$2:$G$48,2,FALSE)+ROW()-2)),\"\")","v":{"$error":"#N/A"}},{"$f":"IF(INDIRECT(\"c\" & (VLOOKUP(Rebalance!$D$62,$F$2:$G$48,2,FALSE)+ROW()-2))=Rebalance!$D$62,INDIRECT(\"a\" & (VLOOKUP(Rebalance!$D$62,$F$2:$G$48,2,FALSE)+ROW()-2)),\"\")","v":{"$error":"#N/A"}},{"$f":"IF(INDIRECT(\"c\" & (VLOOKUP(Rebalance!$D$63,$F$2:$G$48,2,FALSE)+ROW()-2))=Rebalance!$D$63,INDIRECT(\"a\" & (VLOOKUP(Rebalance!$D$63,$F$2:$G$48,2,FALSE)+ROW()-2)),\"\")","v":{"$error":"#N/A"}},{"$f":"IF(INDIRECT(\"c\" & (VLOOKUP(Rebalance!$D$64,$F$2:$G$48,2,FALSE)+ROW()-2))=Rebalance!$D$64,INDIRECT(\"a\" & (VLOOKUP(Rebalance!$D$64,$F$2:$G$48,2,FALSE)+ROW()-2)),\"\")","v":{"$error":"#N/A"}},{"$f":"IF(INDIRECT(\"c\" & (VLOOKUP(Rebalance!$D$65,$F$2:$G$48,2,FALSE)+ROW()-2))=Rebalance!$D$65,INDIRECT(\"a\" & (VLOOKUP(Rebalance!$D$65,$F$2:$G$48,2,FALSE)+ROW()-2)),\"\")","v":{"$error":"#N/A"}},{"$f":"IF(INDIRECT(\"c\" & (VLOOKUP(Rebalance!$D$66,$F$2:$G$48,2,FALSE)+ROW()-2))=Rebalance!$D$66,INDIRECT(\"a\" & (VLOOKUP(Rebalance!$D$66,$F$2:$G$48,2,FALSE)+ROW()-2)),\"\")","v":{"$error":"#N/A"}}]
["Mi-Plan IP Enhanced Income Fund A1","MIPEI","IP Management Company (Pty) Ltd",{"$f":"ROW()","v":291},null,null,{"$f":"VLOOKUP(F291,$C$2:$D$599,2,FALSE)","v":{"$error":"#N/A"}},{"$f":"IF(INDIRECT(\"c\" & (VLOOKUP(Rebalance!$D$26,$F$2:$G$48,2,FALSE)+ROW()-2))=Rebalance!$D$26,INDIRECT(\"a\" & (VLOOKUP(Rebalance!$D$26,$F$2:$G$48,2,FALSE)+ROW()-2)),\"\")","v":{"$error":"#N/A"}},{"$f":"IF(INDIRECT(\"c\" & (VLOOKUP(Rebalance!$D$27,$F$2:$G$48,2,FALSE)+ROW()-2))=Rebalance!$D$27,INDIRECT(\"a\" & (VLOOKUP(Rebalance!$D$27,$F$2:$G$48,2,FALSE)+ROW()-2)),\"\")","v":{"$error":"#N/A"}},{"$f":"IF(INDIRECT(\"c\" & (VLOOKUP(Rebalance!$D$28,$F$2:$G$48,2,FALSE)+ROW()-2))=Rebalance!$D$28,INDIRECT(\"a\" & (VLOOKUP(Rebalance!$D$28,$F$2:$G$48,2,FALSE)+ROW()-2)),\"\")","v":{"$error":"#N/A"}},{"$f":"IF(INDIRECT(\"c\" & (VLOOKUP(Rebalance!$D$29,$F$2:$G$48,2,FALSE)+ROW()-2))=Rebalance!$D$29,INDIRECT(\"a\" & (VLOOKUP(Rebalance!$D$29,$F$2:$G$48,2,FALSE)+ROW()-2)),\"\")","v":{"$error":"#N/A"}},{"$f":"IF(INDIRECT(\"c\" & (VLOOKUP(Rebalance!$D$30,$F$2:$G$48,2,FALSE)+ROW()-2))=Rebalance!$D$30,INDIRECT(\"a\" & (VLOOKUP(Rebalance!$D$30,$F$2:$G$48,2,FALSE)+ROW()-2)),\"\")","v":{"$error":"#N/A"}},{"$f":"IF(INDIRECT(\"c\" & (VLOOKUP(Rebalance!$D$31,$F$2:$G$48,2,FALSE)+ROW()-2))=Rebalance!$D$31,INDIRECT(\"a\" & (VLOOKUP(Rebalance!$D$31,$F$2:$G$48,2,FALSE)+ROW()-2)),\"\")","v":{"$error":"#N/A"}},{"$f":"IF(INDIRECT(\"c\" & (VLOOKUP(Rebalance!$D$32,$F$2:$G$48,2,FALSE)+ROW()-2))=Rebalance!$D$32,INDIRECT(\"a\" & (VLOOKUP(Rebalance!$D$32,$F$2:$G$48,2,FALSE)+ROW()-2)),\"\")","v":{"$error":"#N/A"}},{"$f":"IF(INDIRECT(\"c\" & (VLOOKUP(Rebalance!$D$33,$F$2:$G$48,2,FALSE)+ROW()-2))=Rebalance!$D$33,INDIRECT(\"a\" & (VLOOKUP(Rebalance!$D$33,$F$2:$G$48,2,FALSE)+ROW()-2)),\"\")","v":{"$error":"#N/A"}},{"$f":"IF(INDIRECT(\"c\" & (VLOOKUP(Rebalance!$D$34,$F$2:$G$48,2,FALSE)+ROW()-2))=Rebalance!$D$34,INDIRECT(\"a\" & (VLOOKUP(Rebalance!$D$34,$F$2:$G$48,2,FALSE)+ROW()-2)),\"\")","v":{"$error":"#N/A"}},{"$f":"IF(INDIRECT(\"c\" & (VLOOKUP(Rebalance!$D$35,$F$2:$G$48,2,FALSE)+ROW()-2))=Rebalance!$D$35,INDIRECT(\"a\" & (VLOOKUP(Rebalance!$D$35,$F$2:$G$48,2,FALSE)+ROW()-2)),\"\")","v":{"$error":"#N/A"}},{"$f":"IF(INDIRECT(\"c\" & (VLOOKUP(Rebalance!$D$36,$F$2:$G$48,2,FALSE)+ROW()-2))=Rebalance!$D$36,INDIRECT(\"a\" & (VLOOKUP(Rebalance!$D$36,$F$2:$G$48,2,FALSE)+ROW()-2)),\"\")","v":{"$error":"#N/A"}},{"$f":"IF(INDIRECT(\"c\" & (VLOOKUP(Rebalance!$D$37,$F$2:$G$48,2,FALSE)+ROW()-2))=Rebalance!$D$37,INDIRECT(\"a\" & (VLOOKUP(Rebalance!$D$37,$F$2:$G$48,2,FALSE)+ROW()-2)),\"\")","v":{"$error":"#N/A"}},{"$f":"IF(INDIRECT(\"c\" & (VLOOKUP(Rebalance!$D$38,$F$2:$G$48,2,FALSE)+ROW()-2))=Rebalance!$D$38,INDIRECT(\"a\" & (VLOOKUP(Rebalance!$D$38,$F$2:$G$48,2,FALSE)+ROW()-2)),\"\")","v":{"$error":"#N/A"}},{"$f":"IF(INDIRECT(\"c\" & (VLOOKUP(Rebalance!$D$39,$F$2:$G$48,2,FALSE)+ROW()-2))=Rebalance!$D$39,INDIRECT(\"a\" & (VLOOKUP(Rebalance!$D$39,$F$2:$G$48,2,FALSE)+ROW()-2)),\"\")","v":{"$error":"#N/A"}},{"$f":"IF(INDIRECT(\"c\" & (VLOOKUP(Rebalance!$D$40,$F$2:$G$48,2,FALSE)+ROW()-2))=Rebalance!$D$40,INDIRECT(\"a\" & (VLOOKUP(Rebalance!$D$40,$F$2:$G$48,2,FALSE)+ROW()-2)),\"\")","v":{"$error":"#N/A"}},{"$f":"IF(INDIRECT(\"c\" & (VLOOKUP(Rebalance!$D$52,$F$2:$G$48,2,FALSE)+ROW()-2))=Rebalance!$D$52,INDIRECT(\"a\" & (VLOOKUP(Rebalance!$D$52,$F$2:$G$48,2,FALSE)+ROW()-2)),\"\")","v":{"$error":"#N/A"}},{"$f":"IF(INDIRECT(\"c\" & (VLOOKUP(Rebalance!$D$53,$F$2:$G$48,2,FALSE)+ROW()-2))=Rebalance!$D$53,INDIRECT(\"a\" & (VLOOKUP(Rebalance!$D$53,$F$2:$G$48,2,FALSE)+ROW()-2)),\"\")","v":{"$error":"#N/A"}},{"$f":"IF(INDIRECT(\"c\" & (VLOOKUP(Rebalance!$D$54,$F$2:$G$48,2,FALSE)+ROW()-2))=Rebalance!$D$54,INDIRECT(\"a\" & (VLOOKUP(Rebalance!$D$54,$F$2:$G$48,2,FALSE)+ROW()-2)),\"\")","v":{"$error":"#N/A"}},{"$f":"IF(INDIRECT(\"c\" & (VLOOKUP(Rebalance!$D$55,$F$2:$G$48,2,FALSE)+ROW()-2))=Rebalance!$D$55,INDIRECT(\"a\" & (VLOOKUP(Rebalance!$D$55,$F$2:$G$48,2,FALSE)+ROW()-2)),\"\")","v":{"$error":"#N/A"}},{"$f":"IF(INDIRECT(\"c\" & (VLOOKUP(Rebalance!$D$56,$F$2:$G$48,2,FALSE)+ROW()-2))=Rebalance!$D$56,INDIRECT(\"a\" & (VLOOKUP(Rebalance!$D$56,$F$2:$G$48,2,FALSE)+ROW()-2)),\"\")","v":{"$error":"#N/A"}},{"$f":"IF(INDIRECT(\"c\" & (VLOOKUP(Rebalance!$D$57,$F$2:$G$48,2,FALSE)+ROW()-2))=Rebalance!$D$57,INDIRECT(\"a\" & (VLOOKUP(Rebalance!$D$57,$F$2:$G$48,2,FALSE)+ROW()-2)),\"\")","v":{"$error":"#N/A"}},{"$f":"IF(INDIRECT(\"c\" & (VLOOKUP(Rebalance!$D$58,$F$2:$G$48,2,FALSE)+ROW()-2))=Rebalance!$D$58,INDIRECT(\"a\" & (VLOOKUP(Rebalance!$D$58,$F$2:$G$48,2,FALSE)+ROW()-2)),\"\")","v":{"$error":"#N/A"}},{"$f":"IF(INDIRECT(\"c\" & (VLOOKUP(Rebalance!$D$59,$F$2:$G$48,2,FALSE)+ROW()-2))=Rebalance!$D$59,INDIRECT(\"a\" & (VLOOKUP(Rebalance!$D$59,$F$2:$G$48,2,FALSE)+ROW()-2)),\"\")","v":{"$error":"#N/A"}},{"$f":"IF(INDIRECT(\"c\" & (VLOOKUP(Rebalance!$D$60,$F$2:$G$48,2,FALSE)+ROW()-2))=Rebalance!$D$60,INDIRECT(\"a\" & (VLOOKUP(Rebalance!$D$60,$F$2:$G$48,2,FALSE)+ROW()-2)),\"\")","v":{"$error":"#N/A"}},{"$f":"IF(INDIRECT(\"c\" & (VLOOKUP(Rebalance!$D$61,$F$2:$G$48,2,FALSE)+ROW()-2))=Rebalance!$D$61,INDIRECT(\"a\" & (VLOOKUP(Rebalance!$D$61,$F$2:$G$48,2,FALSE)+ROW()-2)),\"\")","v":{"$error":"#N/A"}},{"$f":"IF(INDIRECT(\"c\" & (VLOOKUP(Rebalance!$D$62,$F$2:$G$48,2,FALSE)+ROW()-2))=Rebalance!$D$62,INDIRECT(\"a\" & (VLOOKUP(Rebalance!$D$62,$F$2:$G$48,2,FALSE)+ROW()-2)),\"\")","v":{"$error":"#N/A"}},{"$f":"IF(INDIRECT(\"c\" & (VLOOKUP(Rebalance!$D$63,$F$2:$G$48,2,FALSE)+ROW()-2))=Rebalance!$D$63,INDIRECT(\"a\" & (VLOOKUP(Rebalance!$D$63,$F$2:$G$48,2,FALSE)+ROW()-2)),\"\")","v":{"$error":"#N/A"}},{"$f":"IF(INDIRECT(\"c\" & (VLOOKUP(Rebalance!$D$64,$F$2:$G$48,2,FALSE)+ROW()-2))=Rebalance!$D$64,INDIRECT(\"a\" & (VLOOKUP(Rebalance!$D$64,$F$2:$G$48,2,FALSE)+ROW()-2)),\"\")","v":{"$error":"#N/A"}},{"$f":"IF(INDIRECT(\"c\" & (VLOOKUP(Rebalance!$D$65,$F$2:$G$48,2,FALSE)+ROW()-2))=Rebalance!$D$65,INDIRECT(\"a\" & (VLOOKUP(Rebalance!$D$65,$F$2:$G$48,2,FALSE)+ROW()-2)),\"\")","v":{"$error":"#N/A"}},{"$f":"IF(INDIRECT(\"c\" & (VLOOKUP(Rebalance!$D$66,$F$2:$G$48,2,FALSE)+ROW()-2))=Rebalance!$D$66,INDIRECT(\"a\" & (VLOOKUP(Rebalance!$D$66,$F$2:$G$48,2,FALSE)+ROW()-2)),\"\")","v":{"$error":"#N/A"}}]
["Mi-Plan IP Beta Equity Fund B2","PBEB2","IP Management Company (Pty) Ltd",{"$f":"ROW()","v":292},null,null,{"$f":"VLOOKUP(F292,$C$2:$D$599,2,FALSE)","v":{"$error":"#N/A"}},{"$f":"IF(INDIRECT(\"c\" & (VLOOKUP(Rebalance!$D$26,$F$2:$G$48,2,FALSE)+ROW()-2))=Rebalance!$D$26,INDIRECT(\"a\" & (VLOOKUP(Rebalance!$D$26,$F$2:$G$48,2,FALSE)+ROW()-2)),\"\")","v":{"$error":"#N/A"}},{"$f":"IF(INDIRECT(\"c\" & (VLOOKUP(Rebalance!$D$27,$F$2:$G$48,2,FALSE)+ROW()-2))=Rebalance!$D$27,INDIRECT(\"a\" & (VLOOKUP(Rebalance!$D$27,$F$2:$G$48,2,FALSE)+ROW()-2)),\"\")","v":{"$error":"#N/A"}},{"$f":"IF(INDIRECT(\"c\" & (VLOOKUP(Rebalance!$D$28,$F$2:$G$48,2,FALSE)+ROW()-2))=Rebalance!$D$28,INDIRECT(\"a\" & (VLOOKUP(Rebalance!$D$28,$F$2:$G$48,2,FALSE)+ROW()-2)),\"\")","v":{"$error":"#N/A"}},{"$f":"IF(INDIRECT(\"c\" & (VLOOKUP(Rebalance!$D$29,$F$2:$G$48,2,FALSE)+ROW()-2))=Rebalance!$D$29,INDIRECT(\"a\" & (VLOOKUP(Rebalance!$D$29,$F$2:$G$48,2,FALSE)+ROW()-2)),\"\")","v":{"$error":"#N/A"}},{"$f":"IF(INDIRECT(\"c\" & (VLOOKUP(Rebalance!$D$30,$F$2:$G$48,2,FALSE)+ROW()-2))=Rebalance!$D$30,INDIRECT(\"a\" & (VLOOKUP(Rebalance!$D$30,$F$2:$G$48,2,FALSE)+ROW()-2)),\"\")","v":{"$error":"#N/A"}},{"$f":"IF(INDIRECT(\"c\" & (VLOOKUP(Rebalance!$D$31,$F$2:$G$48,2,FALSE)+ROW()-2))=Rebalance!$D$31,INDIRECT(\"a\" & (VLOOKUP(Rebalance!$D$31,$F$2:$G$48,2,FALSE)+ROW()-2)),\"\")","v":{"$error":"#N/A"}},{"$f":"IF(INDIRECT(\"c\" & (VLOOKUP(Rebalance!$D$32,$F$2:$G$48,2,FALSE)+ROW()-2))=Rebalance!$D$32,INDIRECT(\"a\" & (VLOOKUP(Rebalance!$D$32,$F$2:$G$48,2,FALSE)+ROW()-2)),\"\")","v":{"$error":"#N/A"}},{"$f":"IF(INDIRECT(\"c\" & (VLOOKUP(Rebalance!$D$33,$F$2:$G$48,2,FALSE)+ROW()-2))=Rebalance!$D$33,INDIRECT(\"a\" & (VLOOKUP(Rebalance!$D$33,$F$2:$G$48,2,FALSE)+ROW()-2)),\"\")","v":{"$error":"#N/A"}},{"$f":"IF(INDIRECT(\"c\" & (VLOOKUP(Rebalance!$D$34,$F$2:$G$48,2,FALSE)+ROW()-2))=Rebalance!$D$34,INDIRECT(\"a\" & (VLOOKUP(Rebalance!$D$34,$F$2:$G$48,2,FALSE)+ROW()-2)),\"\")","v":{"$error":"#N/A"}},{"$f":"IF(INDIRECT(\"c\" & (VLOOKUP(Rebalance!$D$35,$F$2:$G$48,2,FALSE)+ROW()-2))=Rebalance!$D$35,INDIRECT(\"a\" & (VLOOKUP(Rebalance!$D$35,$F$2:$G$48,2,FALSE)+ROW()-2)),\"\")","v":{"$error":"#N/A"}},{"$f":"IF(INDIRECT(\"c\" & (VLOOKUP(Rebalance!$D$36,$F$2:$G$48,2,FALSE)+ROW()-2))=Rebalance!$D$36,INDIRECT(\"a\" & (VLOOKUP(Rebalance!$D$36,$F$2:$G$48,2,FALSE)+ROW()-2)),\"\")","v":{"$error":"#N/A"}},{"$f":"IF(INDIRECT(\"c\" & (VLOOKUP(Rebalance!$D$37,$F$2:$G$48,2,FALSE)+ROW()-2))=Rebalance!$D$37,INDIRECT(\"a\" & (VLOOKUP(Rebalance!$D$37,$F$2:$G$48,2,FALSE)+ROW()-2)),\"\")","v":{"$error":"#N/A"}},{"$f":"IF(INDIRECT(\"c\" & (VLOOKUP(Rebalance!$D$38,$F$2:$G$48,2,FALSE)+ROW()-2))=Rebalance!$D$38,INDIRECT(\"a\" & (VLOOKUP(Rebalance!$D$38,$F$2:$G$48,2,FALSE)+ROW()-2)),\"\")","v":{"$error":"#N/A"}},{"$f":"IF(INDIRECT(\"c\" & (VLOOKUP(Rebalance!$D$39,$F$2:$G$48,2,FALSE)+ROW()-2))=Rebalance!$D$39,INDIRECT(\"a\" & (VLOOKUP(Rebalance!$D$39,$F$2:$G$48,2,FALSE)+ROW()-2)),\"\")","v":{"$error":"#N/A"}},{"$f":"IF(INDIRECT(\"c\" & (VLOOKUP(Rebalance!$D$40,$F$2:$G$48,2,FALSE)+ROW()-2))=Rebalance!$D$40,INDIRECT(\"a\" & (VLOOKUP(Rebalance!$D$40,$F$2:$G$48,2,FALSE)+ROW()-2)),\"\")","v":{"$error":"#N/A"}},{"$f":"IF(INDIRECT(\"c\" & (VLOOKUP(Rebalance!$D$52,$F$2:$G$48,2,FALSE)+ROW()-2))=Rebalance!$D$52,INDIRECT(\"a\" & (VLOOKUP(Rebalance!$D$52,$F$2:$G$48,2,FALSE)+ROW()-2)),\"\")","v":{"$error":"#N/A"}},{"$f":"IF(INDIRECT(\"c\" & (VLOOKUP(Rebalance!$D$53,$F$2:$G$48,2,FALSE)+ROW()-2))=Rebalance!$D$53,INDIRECT(\"a\" & (VLOOKUP(Rebalance!$D$53,$F$2:$G$48,2,FALSE)+ROW()-2)),\"\")","v":{"$error":"#N/A"}},{"$f":"IF(INDIRECT(\"c\" & (VLOOKUP(Rebalance!$D$54,$F$2:$G$48,2,FALSE)+ROW()-2))=Rebalance!$D$54,INDIRECT(\"a\" & (VLOOKUP(Rebalance!$D$54,$F$2:$G$48,2,FALSE)+ROW()-2)),\"\")","v":{"$error":"#N/A"}},{"$f":"IF(INDIRECT(\"c\" & (VLOOKUP(Rebalance!$D$55,$F$2:$G$48,2,FALSE)+ROW()-2))=Rebalance!$D$55,INDIRECT(\"a\" & (VLOOKUP(Rebalance!$D$55,$F$2:$G$48,2,FALSE)+ROW()-2)),\"\")","v":{"$error":"#N/A"}},{"$f":"IF(INDIRECT(\"c\" & (VLOOKUP(Rebalance!$D$56,$F$2:$G$48,2,FALSE)+ROW()-2))=Rebalance!$D$56,INDIRECT(\"a\" & (VLOOKUP(Rebalance!$D$56,$F$2:$G$48,2,FALSE)+ROW()-2)),\"\")","v":{"$error":"#N/A"}},{"$f":"IF(INDIRECT(\"c\" & (VLOOKUP(Rebalance!$D$57,$F$2:$G$48,2,FALSE)+ROW()-2))=Rebalance!$D$57,INDIRECT(\"a\" & (VLOOKUP(Rebalance!$D$57,$F$2:$G$48,2,FALSE)+ROW()-2)),\"\")","v":{"$error":"#N/A"}},{"$f":"IF(INDIRECT(\"c\" & (VLOOKUP(Rebalance!$D$58,$F$2:$G$48,2,FALSE)+ROW()-2))=Rebalance!$D$58,INDIRECT(\"a\" & (VLOOKUP(Rebalance!$D$58,$F$2:$G$48,2,FALSE)+ROW()-2)),\"\")","v":{"$error":"#N/A"}},{"$f":"IF(INDIRECT(\"c\" & (VLOOKUP(Rebalance!$D$59,$F$2:$G$48,2,FALSE)+ROW()-2))=Rebalance!$D$59,INDIRECT(\"a\" & (VLOOKUP(Rebalance!$D$59,$F$2:$G$48,2,FALSE)+ROW()-2)),\"\")","v":{"$error":"#N/A"}},{"$f":"IF(INDIRECT(\"c\" & (VLOOKUP(Rebalance!$D$60,$F$2:$G$48,2,FALSE)+ROW()-2))=Rebalance!$D$60,INDIRECT(\"a\" & (VLOOKUP(Rebalance!$D$60,$F$2:$G$48,2,FALSE)+ROW()-2)),\"\")","v":{"$error":"#N/A"}},{"$f":"IF(INDIRECT(\"c\" & (VLOOKUP(Rebalance!$D$61,$F$2:$G$48,2,FALSE)+ROW()-2))=Rebalance!$D$61,INDIRECT(\"a\" & (VLOOKUP(Rebalance!$D$61,$F$2:$G$48,2,FALSE)+ROW()-2)),\"\")","v":{"$error":"#N/A"}},{"$f":"IF(INDIRECT(\"c\" & (VLOOKUP(Rebalance!$D$62,$F$2:$G$48,2,FALSE)+ROW()-2))=Rebalance!$D$62,INDIRECT(\"a\" & (VLOOKUP(Rebalance!$D$62,$F$2:$G$48,2,FALSE)+ROW()-2)),\"\")","v":{"$error":"#N/A"}},{"$f":"IF(INDIRECT(\"c\" & (VLOOKUP(Rebalance!$D$63,$F$2:$G$48,2,FALSE)+ROW()-2))=Rebalance!$D$63,INDIRECT(\"a\" & (VLOOKUP(Rebalance!$D$63,$F$2:$G$48,2,FALSE)+ROW()-2)),\"\")","v":{"$error":"#N/A"}},{"$f":"IF(INDIRECT(\"c\" & (VLOOKUP(Rebalance!$D$64,$F$2:$G$48,2,FALSE)+ROW()-2))=Rebalance!$D$64,INDIRECT(\"a\" & (VLOOKUP(Rebalance!$D$64,$F$2:$G$48,2,FALSE)+ROW()-2)),\"\")","v":{"$error":"#N/A"}},{"$f":"IF(INDIRECT(\"c\" & (VLOOKUP(Rebalance!$D$65,$F$2:$G$48,2,FALSE)+ROW()-2))=Rebalance!$D$65,INDIRECT(\"a\" & (VLOOKUP(Rebalance!$D$65,$F$2:$G$48,2,FALSE)+ROW()-2)),\"\")","v":{"$error":"#N/A"}},{"$f":"IF(INDIRECT(\"c\" & (VLOOKUP(Rebalance!$D$66,$F$2:$G$48,2,FALSE)+ROW()-2))=Rebalance!$D$66,INDIRECT(\"a\" & (VLOOKUP(Rebalance!$D$66,$F$2:$G$48,2,FALSE)+ROW()-2)),\"\")","v":{"$error":"#N/A"}}]
["Mi-Plan IP Global Macro Fund B5","MGMF","IP Management Company (Pty) Ltd",{"$f":"ROW()","v":293},null,null,{"$f":"VLOOKUP(F293,$C$2:$D$599,2,FALSE)","v":{"$error":"#N/A"}},{"$f":"IF(INDIRECT(\"c\" & (VLOOKUP(Rebalance!$D$26,$F$2:$G$48,2,FALSE)+ROW()-2))=Rebalance!$D$26,INDIRECT(\"a\" & (VLOOKUP(Rebalance!$D$26,$F$2:$G$48,2,FALSE)+ROW()-2)),\"\")","v":{"$error":"#N/A"}},{"$f":"IF(INDIRECT(\"c\" & (VLOOKUP(Rebalance!$D$27,$F$2:$G$48,2,FALSE)+ROW()-2))=Rebalance!$D$27,INDIRECT(\"a\" & (VLOOKUP(Rebalance!$D$27,$F$2:$G$48,2,FALSE)+ROW()-2)),\"\")","v":{"$error":"#N/A"}},{"$f":"IF(INDIRECT(\"c\" & (VLOOKUP(Rebalance!$D$28,$F$2:$G$48,2,FALSE)+ROW()-2))=Rebalance!$D$28,INDIRECT(\"a\" & (VLOOKUP(Rebalance!$D$28,$F$2:$G$48,2,FALSE)+ROW()-2)),\"\")","v":{"$error":"#N/A"}},{"$f":"IF(INDIRECT(\"c\" & (VLOOKUP(Rebalance!$D$29,$F$2:$G$48,2,FALSE)+ROW()-2))=Rebalance!$D$29,INDIRECT(\"a\" & (VLOOKUP(Rebalance!$D$29,$F$2:$G$48,2,FALSE)+ROW()-2)),\"\")","v":{"$error":"#N/A"}},{"$f":"IF(INDIRECT(\"c\" & (VLOOKUP(Rebalance!$D$30,$F$2:$G$48,2,FALSE)+ROW()-2))=Rebalance!$D$30,INDIRECT(\"a\" & (VLOOKUP(Rebalance!$D$30,$F$2:$G$48,2,FALSE)+ROW()-2)),\"\")","v":{"$error":"#N/A"}},{"$f":"IF(INDIRECT(\"c\" & (VLOOKUP(Rebalance!$D$31,$F$2:$G$48,2,FALSE)+ROW()-2))=Rebalance!$D$31,INDIRECT(\"a\" & (VLOOKUP(Rebalance!$D$31,$F$2:$G$48,2,FALSE)+ROW()-2)),\"\")","v":{"$error":"#N/A"}},{"$f":"IF(INDIRECT(\"c\" & (VLOOKUP(Rebalance!$D$32,$F$2:$G$48,2,FALSE)+ROW()-2))=Rebalance!$D$32,INDIRECT(\"a\" & (VLOOKUP(Rebalance!$D$32,$F$2:$G$48,2,FALSE)+ROW()-2)),\"\")","v":{"$error":"#N/A"}},{"$f":"IF(INDIRECT(\"c\" & (VLOOKUP(Rebalance!$D$33,$F$2:$G$48,2,FALSE)+ROW()-2))=Rebalance!$D$33,INDIRECT(\"a\" & (VLOOKUP(Rebalance!$D$33,$F$2:$G$48,2,FALSE)+ROW()-2)),\"\")","v":{"$error":"#N/A"}},{"$f":"IF(INDIRECT(\"c\" & (VLOOKUP(Rebalance!$D$34,$F$2:$G$48,2,FALSE)+ROW()-2))=Rebalance!$D$34,INDIRECT(\"a\" & (VLOOKUP(Rebalance!$D$34,$F$2:$G$48,2,FALSE)+ROW()-2)),\"\")","v":{"$error":"#N/A"}},{"$f":"IF(INDIRECT(\"c\" & (VLOOKUP(Rebalance!$D$35,$F$2:$G$48,2,FALSE)+ROW()-2))=Rebalance!$D$35,INDIRECT(\"a\" & (VLOOKUP(Rebalance!$D$35,$F$2:$G$48,2,FALSE)+ROW()-2)),\"\")","v":{"$error":"#N/A"}},{"$f":"IF(INDIRECT(\"c\" & (VLOOKUP(Rebalance!$D$36,$F$2:$G$48,2,FALSE)+ROW()-2))=Rebalance!$D$36,INDIRECT(\"a\" & (VLOOKUP(Rebalance!$D$36,$F$2:$G$48,2,FALSE)+ROW()-2)),\"\")","v":{"$error":"#N/A"}},{"$f":"IF(INDIRECT(\"c\" & (VLOOKUP(Rebalance!$D$37,$F$2:$G$48,2,FALSE)+ROW()-2))=Rebalance!$D$37,INDIRECT(\"a\" & (VLOOKUP(Rebalance!$D$37,$F$2:$G$48,2,FALSE)+ROW()-2)),\"\")","v":{"$error":"#N/A"}},{"$f":"IF(INDIRECT(\"c\" & (VLOOKUP(Rebalance!$D$38,$F$2:$G$48,2,FALSE)+ROW()-2))=Rebalance!$D$38,INDIRECT(\"a\" & (VLOOKUP(Rebalance!$D$38,$F$2:$G$48,2,FALSE)+ROW()-2)),\"\")","v":{"$error":"#N/A"}},{"$f":"IF(INDIRECT(\"c\" & (VLOOKUP(Rebalance!$D$39,$F$2:$G$48,2,FALSE)+ROW()-2))=Rebalance!$D$39,INDIRECT(\"a\" & (VLOOKUP(Rebalance!$D$39,$F$2:$G$48,2,FALSE)+ROW()-2)),\"\")","v":{"$error":"#N/A"}},{"$f":"IF(INDIRECT(\"c\" & (VLOOKUP(Rebalance!$D$40,$F$2:$G$48,2,FALSE)+ROW()-2))=Rebalance!$D$40,INDIRECT(\"a\" & (VLOOKUP(Rebalance!$D$40,$F$2:$G$48,2,FALSE)+ROW()-2)),\"\")","v":{"$error":"#N/A"}},{"$f":"IF(INDIRECT(\"c\" & (VLOOKUP(Rebalance!$D$52,$F$2:$G$48,2,FALSE)+ROW()-2))=Rebalance!$D$52,INDIRECT(\"a\" & (VLOOKUP(Rebalance!$D$52,$F$2:$G$48,2,FALSE)+ROW()-2)),\"\")","v":{"$error":"#N/A"}},{"$f":"IF(INDIRECT(\"c\" & (VLOOKUP(Rebalance!$D$53,$F$2:$G$48,2,FALSE)+ROW()-2))=Rebalance!$D$53,INDIRECT(\"a\" & (VLOOKUP(Rebalance!$D$53,$F$2:$G$48,2,FALSE)+ROW()-2)),\"\")","v":{"$error":"#N/A"}},{"$f":"IF(INDIRECT(\"c\" & (VLOOKUP(Rebalance!$D$54,$F$2:$G$48,2,FALSE)+ROW()-2))=Rebalance!$D$54,INDIRECT(\"a\" & (VLOOKUP(Rebalance!$D$54,$F$2:$G$48,2,FALSE)+ROW()-2)),\"\")","v":{"$error":"#N/A"}},{"$f":"IF(INDIRECT(\"c\" & (VLOOKUP(Rebalance!$D$55,$F$2:$G$48,2,FALSE)+ROW()-2))=Rebalance!$D$55,INDIRECT(\"a\" & (VLOOKUP(Rebalance!$D$55,$F$2:$G$48,2,FALSE)+ROW()-2)),\"\")","v":{"$error":"#N/A"}},{"$f":"IF(INDIRECT(\"c\" & (VLOOKUP(Rebalance!$D$56,$F$2:$G$48,2,FALSE)+ROW()-2))=Rebalance!$D$56,INDIRECT(\"a\" & (VLOOKUP(Rebalance!$D$56,$F$2:$G$48,2,FALSE)+ROW()-2)),\"\")","v":{"$error":"#N/A"}},{"$f":"IF(INDIRECT(\"c\" & (VLOOKUP(Rebalance!$D$57,$F$2:$G$48,2,FALSE)+ROW()-2))=Rebalance!$D$57,INDIRECT(\"a\" & (VLOOKUP(Rebalance!$D$57,$F$2:$G$48,2,FALSE)+ROW()-2)),\"\")","v":{"$error":"#N/A"}},{"$f":"IF(INDIRECT(\"c\" & (VLOOKUP(Rebalance!$D$58,$F$2:$G$48,2,FALSE)+ROW()-2))=Rebalance!$D$58,INDIRECT(\"a\" & (VLOOKUP(Rebalance!$D$58,$F$2:$G$48,2,FALSE)+ROW()-2)),\"\")","v":{"$error":"#N/A"}},{"$f":"IF(INDIRECT(\"c\" & (VLOOKUP(Rebalance!$D$59,$F$2:$G$48,2,FALSE)+ROW()-2))=Rebalance!$D$59,INDIRECT(\"a\" & (VLOOKUP(Rebalance!$D$59,$F$2:$G$48,2,FALSE)+ROW()-2)),\"\")","v":{"$error":"#N/A"}},{"$f":"IF(INDIRECT(\"c\" & (VLOOKUP(Rebalance!$D$60,$F$2:$G$48,2,FALSE)+ROW()-2))=Rebalance!$D$60,INDIRECT(\"a\" & (VLOOKUP(Rebalance!$D$60,$F$2:$G$48,2,FALSE)+ROW()-2)),\"\")","v":{"$error":"#N/A"}},{"$f":"IF(INDIRECT(\"c\" & (VLOOKUP(Rebalance!$D$61,$F$2:$G$48,2,FALSE)+ROW()-2))=Rebalance!$D$61,INDIRECT(\"a\" & (VLOOKUP(Rebalance!$D$61,$F$2:$G$48,2,FALSE)+ROW()-2)),\"\")","v":{"$error":"#N/A"}},{"$f":"IF(INDIRECT(\"c\" & (VLOOKUP(Rebalance!$D$62,$F$2:$G$48,2,FALSE)+ROW()-2))=Rebalance!$D$62,INDIRECT(\"a\" & (VLOOKUP(Rebalance!$D$62,$F$2:$G$48,2,FALSE)+ROW()-2)),\"\")","v":{"$error":"#N/A"}},{"$f":"IF(INDIRECT(\"c\" & (VLOOKUP(Rebalance!$D$63,$F$2:$G$48,2,FALSE)+ROW()-2))=Rebalance!$D$63,INDIRECT(\"a\" & (VLOOKUP(Rebalance!$D$63,$F$2:$G$48,2,FALSE)+ROW()-2)),\"\")","v":{"$error":"#N/A"}},{"$f":"IF(INDIRECT(\"c\" & (VLOOKUP(Rebalance!$D$64,$F$2:$G$48,2,FALSE)+ROW()-2))=Rebalance!$D$64,INDIRECT(\"a\" & (VLOOKUP(Rebalance!$D$64,$F$2:$G$48,2,FALSE)+ROW()-2)),\"\")","v":{"$error":"#N/A"}},{"$f":"IF(INDIRECT(\"c\" & (VLOOKUP(Rebalance!$D$65,$F$2:$G$48,2,FALSE)+ROW()-2))=Rebalance!$D$65,INDIRECT(\"a\" & (VLOOKUP(Rebalance!$D$65,$F$2:$G$48,2,FALSE)+ROW()-2)),\"\")","v":{"$error":"#N/A"}},{"$f":"IF(INDIRECT(\"c\" & (VLOOKUP(Rebalance!$D$66,$F$2:$G$48,2,FALSE)+ROW()-2))=Rebalance!$D$66,INDIRECT(\"a\" & (VLOOKUP(Rebalance!$D$66,$F$2:$G$48,2,FALSE)+ROW()-2)),\"\")","v":{"$error":"#N/A"}}]
["MiPlan IP Global Property Feeder B5","MISP","IP Management Company (Pty) Ltd",{"$f":"ROW()","v":294},null,null,{"$f":"VLOOKUP(F294,$C$2:$D$599,2,FALSE)","v":{"$error":"#N/A"}},{"$f":"IF(INDIRECT(\"c\" & (VLOOKUP(Rebalance!$D$26,$F$2:$G$48,2,FALSE)+ROW()-2))=Rebalance!$D$26,INDIRECT(\"a\" & (VLOOKUP(Rebalance!$D$26,$F$2:$G$48,2,FALSE)+ROW()-2)),\"\")","v":{"$error":"#N/A"}},{"$f":"IF(INDIRECT(\"c\" & (VLOOKUP(Rebalance!$D$27,$F$2:$G$48,2,FALSE)+ROW()-2))=Rebalance!$D$27,INDIRECT(\"a\" & (VLOOKUP(Rebalance!$D$27,$F$2:$G$48,2,FALSE)+ROW()-2)),\"\")","v":{"$error":"#N/A"}},{"$f":"IF(INDIRECT(\"c\" & (VLOOKUP(Rebalance!$D$28,$F$2:$G$48,2,FALSE)+ROW()-2))=Rebalance!$D$28,INDIRECT(\"a\" & (VLOOKUP(Rebalance!$D$28,$F$2:$G$48,2,FALSE)+ROW()-2)),\"\")","v":{"$error":"#N/A"}},{"$f":"IF(INDIRECT(\"c\" & (VLOOKUP(Rebalance!$D$29,$F$2:$G$48,2,FALSE)+ROW()-2))=Rebalance!$D$29,INDIRECT(\"a\" & (VLOOKUP(Rebalance!$D$29,$F$2:$G$48,2,FALSE)+ROW()-2)),\"\")","v":{"$error":"#N/A"}},{"$f":"IF(INDIRECT(\"c\" & (VLOOKUP(Rebalance!$D$30,$F$2:$G$48,2,FALSE)+ROW()-2))=Rebalance!$D$30,INDIRECT(\"a\" & (VLOOKUP(Rebalance!$D$30,$F$2:$G$48,2,FALSE)+ROW()-2)),\"\")","v":{"$error":"#N/A"}},{"$f":"IF(INDIRECT(\"c\" & (VLOOKUP(Rebalance!$D$31,$F$2:$G$48,2,FALSE)+ROW()-2))=Rebalance!$D$31,INDIRECT(\"a\" & (VLOOKUP(Rebalance!$D$31,$F$2:$G$48,2,FALSE)+ROW()-2)),\"\")","v":{"$error":"#N/A"}},{"$f":"IF(INDIRECT(\"c\" & (VLOOKUP(Rebalance!$D$32,$F$2:$G$48,2,FALSE)+ROW()-2))=Rebalance!$D$32,INDIRECT(\"a\" & (VLOOKUP(Rebalance!$D$32,$F$2:$G$48,2,FALSE)+ROW()-2)),\"\")","v":{"$error":"#N/A"}},{"$f":"IF(INDIRECT(\"c\" & (VLOOKUP(Rebalance!$D$33,$F$2:$G$48,2,FALSE)+ROW()-2))=Rebalance!$D$33,INDIRECT(\"a\" & (VLOOKUP(Rebalance!$D$33,$F$2:$G$48,2,FALSE)+ROW()-2)),\"\")","v":{"$error":"#N/A"}},{"$f":"IF(INDIRECT(\"c\" & (VLOOKUP(Rebalance!$D$34,$F$2:$G$48,2,FALSE)+ROW()-2))=Rebalance!$D$34,INDIRECT(\"a\" & (VLOOKUP(Rebalance!$D$34,$F$2:$G$48,2,FALSE)+ROW()-2)),\"\")","v":{"$error":"#N/A"}},{"$f":"IF(INDIRECT(\"c\" & (VLOOKUP(Rebalance!$D$35,$F$2:$G$48,2,FALSE)+ROW()-2))=Rebalance!$D$35,INDIRECT(\"a\" & (VLOOKUP(Rebalance!$D$35,$F$2:$G$48,2,FALSE)+ROW()-2)),\"\")","v":{"$error":"#N/A"}},{"$f":"IF(INDIRECT(\"c\" & (VLOOKUP(Rebalance!$D$36,$F$2:$G$48,2,FALSE)+ROW()-2))=Rebalance!$D$36,INDIRECT(\"a\" & (VLOOKUP(Rebalance!$D$36,$F$2:$G$48,2,FALSE)+ROW()-2)),\"\")","v":{"$error":"#N/A"}},{"$f":"IF(INDIRECT(\"c\" & (VLOOKUP(Rebalance!$D$37,$F$2:$G$48,2,FALSE)+ROW()-2))=Rebalance!$D$37,INDIRECT(\"a\" & (VLOOKUP(Rebalance!$D$37,$F$2:$G$48,2,FALSE)+ROW()-2)),\"\")","v":{"$error":"#N/A"}},{"$f":"IF(INDIRECT(\"c\" & (VLOOKUP(Rebalance!$D$38,$F$2:$G$48,2,FALSE)+ROW()-2))=Rebalance!$D$38,INDIRECT(\"a\" & (VLOOKUP(Rebalance!$D$38,$F$2:$G$48,2,FALSE)+ROW()-2)),\"\")","v":{"$error":"#N/A"}},{"$f":"IF(INDIRECT(\"c\" & (VLOOKUP(Rebalance!$D$39,$F$2:$G$48,2,FALSE)+ROW()-2))=Rebalance!$D$39,INDIRECT(\"a\" & (VLOOKUP(Rebalance!$D$39,$F$2:$G$48,2,FALSE)+ROW()-2)),\"\")","v":{"$error":"#N/A"}},{"$f":"IF(INDIRECT(\"c\" & (VLOOKUP(Rebalance!$D$40,$F$2:$G$48,2,FALSE)+ROW()-2))=Rebalance!$D$40,INDIRECT(\"a\" & (VLOOKUP(Rebalance!$D$40,$F$2:$G$48,2,FALSE)+ROW()-2)),\"\")","v":{"$error":"#N/A"}},{"$f":"IF(INDIRECT(\"c\" & (VLOOKUP(Rebalance!$D$52,$F$2:$G$48,2,FALSE)+ROW()-2))=Rebalance!$D$52,INDIRECT(\"a\" & (VLOOKUP(Rebalance!$D$52,$F$2:$G$48,2,FALSE)+ROW()-2)),\"\")","v":{"$error":"#N/A"}},{"$f":"IF(INDIRECT(\"c\" & (VLOOKUP(Rebalance!$D$53,$F$2:$G$48,2,FALSE)+ROW()-2))=Rebalance!$D$53,INDIRECT(\"a\" & (VLOOKUP(Rebalance!$D$53,$F$2:$G$48,2,FALSE)+ROW()-2)),\"\")","v":{"$error":"#N/A"}},{"$f":"IF(INDIRECT(\"c\" & (VLOOKUP(Rebalance!$D$54,$F$2:$G$48,2,FALSE)+ROW()-2))=Rebalance!$D$54,INDIRECT(\"a\" & (VLOOKUP(Rebalance!$D$54,$F$2:$G$48,2,FALSE)+ROW()-2)),\"\")","v":{"$error":"#N/A"}},{"$f":"IF(INDIRECT(\"c\" & (VLOOKUP(Rebalance!$D$55,$F$2:$G$48,2,FALSE)+ROW()-2))=Rebalance!$D$55,INDIRECT(\"a\" & (VLOOKUP(Rebalance!$D$55,$F$2:$G$48,2,FALSE)+ROW()-2)),\"\")","v":{"$error":"#N/A"}},{"$f":"IF(INDIRECT(\"c\" & (VLOOKUP(Rebalance!$D$56,$F$2:$G$48,2,FALSE)+ROW()-2))=Rebalance!$D$56,INDIRECT(\"a\" & (VLOOKUP(Rebalance!$D$56,$F$2:$G$48,2,FALSE)+ROW()-2)),\"\")","v":{"$error":"#N/A"}},{"$f":"IF(INDIRECT(\"c\" & (VLOOKUP(Rebalance!$D$57,$F$2:$G$48,2,FALSE)+ROW()-2))=Rebalance!$D$57,INDIRECT(\"a\" & (VLOOKUP(Rebalance!$D$57,$F$2:$G$48,2,FALSE)+ROW()-2)),\"\")","v":{"$error":"#N/A"}},{"$f":"IF(INDIRECT(\"c\" & (VLOOKUP(Rebalance!$D$58,$F$2:$G$48,2,FALSE)+ROW()-2))=Rebalance!$D$58,INDIRECT(\"a\" & (VLOOKUP(Rebalance!$D$58,$F$2:$G$48,2,FALSE)+ROW()-2)),\"\")","v":{"$error":"#N/A"}},{"$f":"IF(INDIRECT(\"c\" & (VLOOKUP(Rebalance!$D$59,$F$2:$G$48,2,FALSE)+ROW()-2))=Rebalance!$D$59,INDIRECT(\"a\" & (VLOOKUP(Rebalance!$D$59,$F$2:$G$48,2,FALSE)+ROW()-2)),\"\")","v":{"$error":"#N/A"}},{"$f":"IF(INDIRECT(\"c\" & (VLOOKUP(Rebalance!$D$60,$F$2:$G$48,2,FALSE)+ROW()-2))=Rebalance!$D$60,INDIRECT(\"a\" & (VLOOKUP(Rebalance!$D$60,$F$2:$G$48,2,FALSE)+ROW()-2)),\"\")","v":{"$error":"#N/A"}},{"$f":"IF(INDIRECT(\"c\" & (VLOOKUP(Rebalance!$D$61,$F$2:$G$48,2,FALSE)+ROW()-2))=Rebalance!$D$61,INDIRECT(\"a\" & (VLOOKUP(Rebalance!$D$61,$F$2:$G$48,2,FALSE)+ROW()-2)),\"\")","v":{"$error":"#N/A"}},{"$f":"IF(INDIRECT(\"c\" & (VLOOKUP(Rebalance!$D$62,$F$2:$G$48,2,FALSE)+ROW()-2))=Rebalance!$D$62,INDIRECT(\"a\" & (VLOOKUP(Rebalance!$D$62,$F$2:$G$48,2,FALSE)+ROW()-2)),\"\")","v":{"$error":"#N/A"}},{"$f":"IF(INDIRECT(\"c\" & (VLOOKUP(Rebalance!$D$63,$F$2:$G$48,2,FALSE)+ROW()-2))=Rebalance!$D$63,INDIRECT(\"a\" & (VLOOKUP(Rebalance!$D$63,$F$2:$G$48,2,FALSE)+ROW()-2)),\"\")","v":{"$error":"#N/A"}},{"$f":"IF(INDIRECT(\"c\" & (VLOOKUP(Rebalance!$D$64,$F$2:$G$48,2,FALSE)+ROW()-2))=Rebalance!$D$64,INDIRECT(\"a\" & (VLOOKUP(Rebalance!$D$64,$F$2:$G$48,2,FALSE)+ROW()-2)),\"\")","v":{"$error":"#N/A"}},{"$f":"IF(INDIRECT(\"c\" & (VLOOKUP(Rebalance!$D$65,$F$2:$G$48,2,FALSE)+ROW()-2))=Rebalance!$D$65,INDIRECT(\"a\" & (VLOOKUP(Rebalance!$D$65,$F$2:$G$48,2,FALSE)+ROW()-2)),\"\")","v":{"$error":"#N/A"}},{"$f":"IF(INDIRECT(\"c\" & (VLOOKUP(Rebalance!$D$66,$F$2:$G$48,2,FALSE)+ROW()-2))=Rebalance!$D$66,INDIRECT(\"a\" & (VLOOKUP(Rebalance!$D$66,$F$2:$G$48,2,FALSE)+ROW()-2)),\"\")","v":{"$error":"#N/A"}}]
["Vunani IP Accelerated Growth Fund","VAGFB","IP Management Company (Pty) Ltd",{"$f":"ROW()","v":295},null,null,{"$f":"VLOOKUP(F295,$C$2:$D$599,2,FALSE)","v":{"$error":"#N/A"}},{"$f":"IF(INDIRECT(\"c\" & (VLOOKUP(Rebalance!$D$26,$F$2:$G$48,2,FALSE)+ROW()-2))=Rebalance!$D$26,INDIRECT(\"a\" & (VLOOKUP(Rebalance!$D$26,$F$2:$G$48,2,FALSE)+ROW()-2)),\"\")","v":{"$error":"#N/A"}},{"$f":"IF(INDIRECT(\"c\" & (VLOOKUP(Rebalance!$D$27,$F$2:$G$48,2,FALSE)+ROW()-2))=Rebalance!$D$27,INDIRECT(\"a\" & (VLOOKUP(Rebalance!$D$27,$F$2:$G$48,2,FALSE)+ROW()-2)),\"\")","v":{"$error":"#N/A"}},{"$f":"IF(INDIRECT(\"c\" & (VLOOKUP(Rebalance!$D$28,$F$2:$G$48,2,FALSE)+ROW()-2))=Rebalance!$D$28,INDIRECT(\"a\" & (VLOOKUP(Rebalance!$D$28,$F$2:$G$48,2,FALSE)+ROW()-2)),\"\")","v":{"$error":"#N/A"}},{"$f":"IF(INDIRECT(\"c\" & (VLOOKUP(Rebalance!$D$29,$F$2:$G$48,2,FALSE)+ROW()-2))=Rebalance!$D$29,INDIRECT(\"a\" & (VLOOKUP(Rebalance!$D$29,$F$2:$G$48,2,FALSE)+ROW()-2)),\"\")","v":{"$error":"#N/A"}},{"$f":"IF(INDIRECT(\"c\" & (VLOOKUP(Rebalance!$D$30,$F$2:$G$48,2,FALSE)+ROW()-2))=Rebalance!$D$30,INDIRECT(\"a\" & (VLOOKUP(Rebalance!$D$30,$F$2:$G$48,2,FALSE)+ROW()-2)),\"\")","v":{"$error":"#N/A"}},{"$f":"IF(INDIRECT(\"c\" & (VLOOKUP(Rebalance!$D$31,$F$2:$G$48,2,FALSE)+ROW()-2))=Rebalance!$D$31,INDIRECT(\"a\" & (VLOOKUP(Rebalance!$D$31,$F$2:$G$48,2,FALSE)+ROW()-2)),\"\")","v":{"$error":"#N/A"}},{"$f":"IF(INDIRECT(\"c\" & (VLOOKUP(Rebalance!$D$32,$F$2:$G$48,2,FALSE)+ROW()-2))=Rebalance!$D$32,INDIRECT(\"a\" & (VLOOKUP(Rebalance!$D$32,$F$2:$G$48,2,FALSE)+ROW()-2)),\"\")","v":{"$error":"#N/A"}},{"$f":"IF(INDIRECT(\"c\" & (VLOOKUP(Rebalance!$D$33,$F$2:$G$48,2,FALSE)+ROW()-2))=Rebalance!$D$33,INDIRECT(\"a\" & (VLOOKUP(Rebalance!$D$33,$F$2:$G$48,2,FALSE)+ROW()-2)),\"\")","v":{"$error":"#N/A"}},{"$f":"IF(INDIRECT(\"c\" & (VLOOKUP(Rebalance!$D$34,$F$2:$G$48,2,FALSE)+ROW()-2))=Rebalance!$D$34,INDIRECT(\"a\" & (VLOOKUP(Rebalance!$D$34,$F$2:$G$48,2,FALSE)+ROW()-2)),\"\")","v":{"$error":"#N/A"}},{"$f":"IF(INDIRECT(\"c\" & (VLOOKUP(Rebalance!$D$35,$F$2:$G$48,2,FALSE)+ROW()-2))=Rebalance!$D$35,INDIRECT(\"a\" & (VLOOKUP(Rebalance!$D$35,$F$2:$G$48,2,FALSE)+ROW()-2)),\"\")","v":{"$error":"#N/A"}},{"$f":"IF(INDIRECT(\"c\" & (VLOOKUP(Rebalance!$D$36,$F$2:$G$48,2,FALSE)+ROW()-2))=Rebalance!$D$36,INDIRECT(\"a\" & (VLOOKUP(Rebalance!$D$36,$F$2:$G$48,2,FALSE)+ROW()-2)),\"\")","v":{"$error":"#N/A"}},{"$f":"IF(INDIRECT(\"c\" & (VLOOKUP(Rebalance!$D$37,$F$2:$G$48,2,FALSE)+ROW()-2))=Rebalance!$D$37,INDIRECT(\"a\" & (VLOOKUP(Rebalance!$D$37,$F$2:$G$48,2,FALSE)+ROW()-2)),\"\")","v":{"$error":"#N/A"}},{"$f":"IF(INDIRECT(\"c\" & (VLOOKUP(Rebalance!$D$38,$F$2:$G$48,2,FALSE)+ROW()-2))=Rebalance!$D$38,INDIRECT(\"a\" & (VLOOKUP(Rebalance!$D$38,$F$2:$G$48,2,FALSE)+ROW()-2)),\"\")","v":{"$error":"#N/A"}},{"$f":"IF(INDIRECT(\"c\" & (VLOOKUP(Rebalance!$D$39,$F$2:$G$48,2,FALSE)+ROW()-2))=Rebalance!$D$39,INDIRECT(\"a\" & (VLOOKUP(Rebalance!$D$39,$F$2:$G$48,2,FALSE)+ROW()-2)),\"\")","v":{"$error":"#N/A"}},{"$f":"IF(INDIRECT(\"c\" & (VLOOKUP(Rebalance!$D$40,$F$2:$G$48,2,FALSE)+ROW()-2))=Rebalance!$D$40,INDIRECT(\"a\" & (VLOOKUP(Rebalance!$D$40,$F$2:$G$48,2,FALSE)+ROW()-2)),\"\")","v":{"$error":"#N/A"}},{"$f":"IF(INDIRECT(\"c\" & (VLOOKUP(Rebalance!$D$52,$F$2:$G$48,2,FALSE)+ROW()-2))=Rebalance!$D$52,INDIRECT(\"a\" & (VLOOKUP(Rebalance!$D$52,$F$2:$G$48,2,FALSE)+ROW()-2)),\"\")","v":{"$error":"#N/A"}},{"$f":"IF(INDIRECT(\"c\" & (VLOOKUP(Rebalance!$D$53,$F$2:$G$48,2,FALSE)+ROW()-2))=Rebalance!$D$53,INDIRECT(\"a\" & (VLOOKUP(Rebalance!$D$53,$F$2:$G$48,2,FALSE)+ROW()-2)),\"\")","v":{"$error":"#N/A"}},{"$f":"IF(INDIRECT(\"c\" & (VLOOKUP(Rebalance!$D$54,$F$2:$G$48,2,FALSE)+ROW()-2))=Rebalance!$D$54,INDIRECT(\"a\" & (VLOOKUP(Rebalance!$D$54,$F$2:$G$48,2,FALSE)+ROW()-2)),\"\")","v":{"$error":"#N/A"}},{"$f":"IF(INDIRECT(\"c\" & (VLOOKUP(Rebalance!$D$55,$F$2:$G$48,2,FALSE)+ROW()-2))=Rebalance!$D$55,INDIRECT(\"a\" & (VLOOKUP(Rebalance!$D$55,$F$2:$G$48,2,FALSE)+ROW()-2)),\"\")","v":{"$error":"#N/A"}},{"$f":"IF(INDIRECT(\"c\" & (VLOOKUP(Rebalance!$D$56,$F$2:$G$48,2,FALSE)+ROW()-2))=Rebalance!$D$56,INDIRECT(\"a\" & (VLOOKUP(Rebalance!$D$56,$F$2:$G$48,2,FALSE)+ROW()-2)),\"\")","v":{"$error":"#N/A"}},{"$f":"IF(INDIRECT(\"c\" & (VLOOKUP(Rebalance!$D$57,$F$2:$G$48,2,FALSE)+ROW()-2))=Rebalance!$D$57,INDIRECT(\"a\" & (VLOOKUP(Rebalance!$D$57,$F$2:$G$48,2,FALSE)+ROW()-2)),\"\")","v":{"$error":"#N/A"}},{"$f":"IF(INDIRECT(\"c\" & (VLOOKUP(Rebalance!$D$58,$F$2:$G$48,2,FALSE)+ROW()-2))=Rebalance!$D$58,INDIRECT(\"a\" & (VLOOKUP(Rebalance!$D$58,$F$2:$G$48,2,FALSE)+ROW()-2)),\"\")","v":{"$error":"#N/A"}},{"$f":"IF(INDIRECT(\"c\" & (VLOOKUP(Rebalance!$D$59,$F$2:$G$48,2,FALSE)+ROW()-2))=Rebalance!$D$59,INDIRECT(\"a\" & (VLOOKUP(Rebalance!$D$59,$F$2:$G$48,2,FALSE)+ROW()-2)),\"\")","v":{"$error":"#N/A"}},{"$f":"IF(INDIRECT(\"c\" & (VLOOKUP(Rebalance!$D$60,$F$2:$G$48,2,FALSE)+ROW()-2))=Rebalance!$D$60,INDIRECT(\"a\" & (VLOOKUP(Rebalance!$D$60,$F$2:$G$48,2,FALSE)+ROW()-2)),\"\")","v":{"$error":"#N/A"}},{"$f":"IF(INDIRECT(\"c\" & (VLOOKUP(Rebalance!$D$61,$F$2:$G$48,2,FALSE)+ROW()-2))=Rebalance!$D$61,INDIRECT(\"a\" & (VLOOKUP(Rebalance!$D$61,$F$2:$G$48,2,FALSE)+ROW()-2)),\"\")","v":{"$error":"#N/A"}},{"$f":"IF(INDIRECT(\"c\" & (VLOOKUP(Rebalance!$D$62,$F$2:$G$48,2,FALSE)+ROW()-2))=Rebalance!$D$62,INDIRECT(\"a\" & (VLOOKUP(Rebalance!$D$62,$F$2:$G$48,2,FALSE)+ROW()-2)),\"\")","v":{"$error":"#N/A"}},{"$f":"IF(INDIRECT(\"c\" & (VLOOKUP(Rebalance!$D$63,$F$2:$G$48,2,FALSE)+ROW()-2))=Rebalance!$D$63,INDIRECT(\"a\" & (VLOOKUP(Rebalance!$D$63,$F$2:$G$48,2,FALSE)+ROW()-2)),\"\")","v":{"$error":"#N/A"}},{"$f":"IF(INDIRECT(\"c\" & (VLOOKUP(Rebalance!$D$64,$F$2:$G$48,2,FALSE)+ROW()-2))=Rebalance!$D$64,INDIRECT(\"a\" & (VLOOKUP(Rebalance!$D$64,$F$2:$G$48,2,FALSE)+ROW()-2)),\"\")","v":{"$error":"#N/A"}},{"$f":"IF(INDIRECT(\"c\" & (VLOOKUP(Rebalance!$D$65,$F$2:$G$48,2,FALSE)+ROW()-2))=Rebalance!$D$65,INDIRECT(\"a\" & (VLOOKUP(Rebalance!$D$65,$F$2:$G$48,2,FALSE)+ROW()-2)),\"\")","v":{"$error":"#N/A"}},{"$f":"IF(INDIRECT(\"c\" & (VLOOKUP(Rebalance!$D$66,$F$2:$G$48,2,FALSE)+ROW()-2))=Rebalance!$D$66,INDIRECT(\"a\" & (VLOOKUP(Rebalance!$D$66,$F$2:$G$48,2,FALSE)+ROW()-2)),\"\")","v":{"$error":"#N/A"}}]
["Kagiso Balanced Fund B1","KABCB","Kagiso Collective Investments Ltd",{"$f":"ROW()","v":296},null,null,{"$f":"VLOOKUP(F296,$C$2:$D$599,2,FALSE)","v":{"$error":"#N/A"}},{"$f":"IF(INDIRECT(\"c\" & (VLOOKUP(Rebalance!$D$26,$F$2:$G$48,2,FALSE)+ROW()-2))=Rebalance!$D$26,INDIRECT(\"a\" & (VLOOKUP(Rebalance!$D$26,$F$2:$G$48,2,FALSE)+ROW()-2)),\"\")","v":{"$error":"#N/A"}},{"$f":"IF(INDIRECT(\"c\" & (VLOOKUP(Rebalance!$D$27,$F$2:$G$48,2,FALSE)+ROW()-2))=Rebalance!$D$27,INDIRECT(\"a\" & (VLOOKUP(Rebalance!$D$27,$F$2:$G$48,2,FALSE)+ROW()-2)),\"\")","v":{"$error":"#N/A"}},{"$f":"IF(INDIRECT(\"c\" & (VLOOKUP(Rebalance!$D$28,$F$2:$G$48,2,FALSE)+ROW()-2))=Rebalance!$D$28,INDIRECT(\"a\" & (VLOOKUP(Rebalance!$D$28,$F$2:$G$48,2,FALSE)+ROW()-2)),\"\")","v":{"$error":"#N/A"}},{"$f":"IF(INDIRECT(\"c\" & (VLOOKUP(Rebalance!$D$29,$F$2:$G$48,2,FALSE)+ROW()-2))=Rebalance!$D$29,INDIRECT(\"a\" & (VLOOKUP(Rebalance!$D$29,$F$2:$G$48,2,FALSE)+ROW()-2)),\"\")","v":{"$error":"#N/A"}},{"$f":"IF(INDIRECT(\"c\" & (VLOOKUP(Rebalance!$D$30,$F$2:$G$48,2,FALSE)+ROW()-2))=Rebalance!$D$30,INDIRECT(\"a\" & (VLOOKUP(Rebalance!$D$30,$F$2:$G$48,2,FALSE)+ROW()-2)),\"\")","v":{"$error":"#N/A"}},{"$f":"IF(INDIRECT(\"c\" & (VLOOKUP(Rebalance!$D$31,$F$2:$G$48,2,FALSE)+ROW()-2))=Rebalance!$D$31,INDIRECT(\"a\" & (VLOOKUP(Rebalance!$D$31,$F$2:$G$48,2,FALSE)+ROW()-2)),\"\")","v":{"$error":"#N/A"}},{"$f":"IF(INDIRECT(\"c\" & (VLOOKUP(Rebalance!$D$32,$F$2:$G$48,2,FALSE)+ROW()-2))=Rebalance!$D$32,INDIRECT(\"a\" & (VLOOKUP(Rebalance!$D$32,$F$2:$G$48,2,FALSE)+ROW()-2)),\"\")","v":{"$error":"#N/A"}},{"$f":"IF(INDIRECT(\"c\" & (VLOOKUP(Rebalance!$D$33,$F$2:$G$48,2,FALSE)+ROW()-2))=Rebalance!$D$33,INDIRECT(\"a\" & (VLOOKUP(Rebalance!$D$33,$F$2:$G$48,2,FALSE)+ROW()-2)),\"\")","v":{"$error":"#N/A"}},{"$f":"IF(INDIRECT(\"c\" & (VLOOKUP(Rebalance!$D$34,$F$2:$G$48,2,FALSE)+ROW()-2))=Rebalance!$D$34,INDIRECT(\"a\" & (VLOOKUP(Rebalance!$D$34,$F$2:$G$48,2,FALSE)+ROW()-2)),\"\")","v":{"$error":"#N/A"}},{"$f":"IF(INDIRECT(\"c\" & (VLOOKUP(Rebalance!$D$35,$F$2:$G$48,2,FALSE)+ROW()-2))=Rebalance!$D$35,INDIRECT(\"a\" & (VLOOKUP(Rebalance!$D$35,$F$2:$G$48,2,FALSE)+ROW()-2)),\"\")","v":{"$error":"#N/A"}},{"$f":"IF(INDIRECT(\"c\" & (VLOOKUP(Rebalance!$D$36,$F$2:$G$48,2,FALSE)+ROW()-2))=Rebalance!$D$36,INDIRECT(\"a\" & (VLOOKUP(Rebalance!$D$36,$F$2:$G$48,2,FALSE)+ROW()-2)),\"\")","v":{"$error":"#N/A"}},{"$f":"IF(INDIRECT(\"c\" & (VLOOKUP(Rebalance!$D$37,$F$2:$G$48,2,FALSE)+ROW()-2))=Rebalance!$D$37,INDIRECT(\"a\" & (VLOOKUP(Rebalance!$D$37,$F$2:$G$48,2,FALSE)+ROW()-2)),\"\")","v":{"$error":"#N/A"}},{"$f":"IF(INDIRECT(\"c\" & (VLOOKUP(Rebalance!$D$38,$F$2:$G$48,2,FALSE)+ROW()-2))=Rebalance!$D$38,INDIRECT(\"a\" & (VLOOKUP(Rebalance!$D$38,$F$2:$G$48,2,FALSE)+ROW()-2)),\"\")","v":{"$error":"#N/A"}},{"$f":"IF(INDIRECT(\"c\" & (VLOOKUP(Rebalance!$D$39,$F$2:$G$48,2,FALSE)+ROW()-2))=Rebalance!$D$39,INDIRECT(\"a\" & (VLOOKUP(Rebalance!$D$39,$F$2:$G$48,2,FALSE)+ROW()-2)),\"\")","v":{"$error":"#N/A"}},{"$f":"IF(INDIRECT(\"c\" & (VLOOKUP(Rebalance!$D$40,$F$2:$G$48,2,FALSE)+ROW()-2))=Rebalance!$D$40,INDIRECT(\"a\" & (VLOOKUP(Rebalance!$D$40,$F$2:$G$48,2,FALSE)+ROW()-2)),\"\")","v":{"$error":"#N/A"}},{"$f":"IF(INDIRECT(\"c\" & (VLOOKUP(Rebalance!$D$52,$F$2:$G$48,2,FALSE)+ROW()-2))=Rebalance!$D$52,INDIRECT(\"a\" & (VLOOKUP(Rebalance!$D$52,$F$2:$G$48,2,FALSE)+ROW()-2)),\"\")","v":{"$error":"#N/A"}},{"$f":"IF(INDIRECT(\"c\" & (VLOOKUP(Rebalance!$D$53,$F$2:$G$48,2,FALSE)+ROW()-2))=Rebalance!$D$53,INDIRECT(\"a\" & (VLOOKUP(Rebalance!$D$53,$F$2:$G$48,2,FALSE)+ROW()-2)),\"\")","v":{"$error":"#N/A"}},{"$f":"IF(INDIRECT(\"c\" & (VLOOKUP(Rebalance!$D$54,$F$2:$G$48,2,FALSE)+ROW()-2))=Rebalance!$D$54,INDIRECT(\"a\" & (VLOOKUP(Rebalance!$D$54,$F$2:$G$48,2,FALSE)+ROW()-2)),\"\")","v":{"$error":"#N/A"}},{"$f":"IF(INDIRECT(\"c\" & (VLOOKUP(Rebalance!$D$55,$F$2:$G$48,2,FALSE)+ROW()-2))=Rebalance!$D$55,INDIRECT(\"a\" & (VLOOKUP(Rebalance!$D$55,$F$2:$G$48,2,FALSE)+ROW()-2)),\"\")","v":{"$error":"#N/A"}},{"$f":"IF(INDIRECT(\"c\" & (VLOOKUP(Rebalance!$D$56,$F$2:$G$48,2,FALSE)+ROW()-2))=Rebalance!$D$56,INDIRECT(\"a\" & (VLOOKUP(Rebalance!$D$56,$F$2:$G$48,2,FALSE)+ROW()-2)),\"\")","v":{"$error":"#N/A"}},{"$f":"IF(INDIRECT(\"c\" & (VLOOKUP(Rebalance!$D$57,$F$2:$G$48,2,FALSE)+ROW()-2))=Rebalance!$D$57,INDIRECT(\"a\" & (VLOOKUP(Rebalance!$D$57,$F$2:$G$48,2,FALSE)+ROW()-2)),\"\")","v":{"$error":"#N/A"}},{"$f":"IF(INDIRECT(\"c\" & (VLOOKUP(Rebalance!$D$58,$F$2:$G$48,2,FALSE)+ROW()-2))=Rebalance!$D$58,INDIRECT(\"a\" & (VLOOKUP(Rebalance!$D$58,$F$2:$G$48,2,FALSE)+ROW()-2)),\"\")","v":{"$error":"#N/A"}},{"$f":"IF(INDIRECT(\"c\" & (VLOOKUP(Rebalance!$D$59,$F$2:$G$48,2,FALSE)+ROW()-2))=Rebalance!$D$59,INDIRECT(\"a\" & (VLOOKUP(Rebalance!$D$59,$F$2:$G$48,2,FALSE)+ROW()-2)),\"\")","v":{"$error":"#N/A"}},{"$f":"IF(INDIRECT(\"c\" & (VLOOKUP(Rebalance!$D$60,$F$2:$G$48,2,FALSE)+ROW()-2))=Rebalance!$D$60,INDIRECT(\"a\" & (VLOOKUP(Rebalance!$D$60,$F$2:$G$48,2,FALSE)+ROW()-2)),\"\")","v":{"$error":"#N/A"}},{"$f":"IF(INDIRECT(\"c\" & (VLOOKUP(Rebalance!$D$61,$F$2:$G$48,2,FALSE)+ROW()-2))=Rebalance!$D$61,INDIRECT(\"a\" & (VLOOKUP(Rebalance!$D$61,$F$2:$G$48,2,FALSE)+ROW()-2)),\"\")","v":{"$error":"#N/A"}},{"$f":"IF(INDIRECT(\"c\" & (VLOOKUP(Rebalance!$D$62,$F$2:$G$48,2,FALSE)+ROW()-2))=Rebalance!$D$62,INDIRECT(\"a\" & (VLOOKUP(Rebalance!$D$62,$F$2:$G$48,2,FALSE)+ROW()-2)),\"\")","v":{"$error":"#N/A"}},{"$f":"IF(INDIRECT(\"c\" & (VLOOKUP(Rebalance!$D$63,$F$2:$G$48,2,FALSE)+ROW()-2))=Rebalance!$D$63,INDIRECT(\"a\" & (VLOOKUP(Rebalance!$D$63,$F$2:$G$48,2,FALSE)+ROW()-2)),\"\")","v":{"$error":"#N/A"}},{"$f":"IF(INDIRECT(\"c\" & (VLOOKUP(Rebalance!$D$64,$F$2:$G$48,2,FALSE)+ROW()-2))=Rebalance!$D$64,INDIRECT(\"a\" & (VLOOKUP(Rebalance!$D$64,$F$2:$G$48,2,FALSE)+ROW()-2)),\"\")","v":{"$error":"#N/A"}},{"$f":"IF(INDIRECT(\"c\" & (VLOOKUP(Rebalance!$D$65,$F$2:$G$48,2,FALSE)+ROW()-2))=Rebalance!$D$65,INDIRECT(\"a\" & (VLOOKUP(Rebalance!$D$65,$F$2:$G$48,2,FALSE)+ROW()-2)),\"\")","v":{"$error":"#N/A"}},{"$f":"IF(INDIRECT(\"c\" & (VLOOKUP(Rebalance!$D$66,$F$2:$G$48,2,FALSE)+ROW()-2))=Rebalance!$D$66,INDIRECT(\"a\" & (VLOOKUP(Rebalance!$D$66,$F$2:$G$48,2,FALSE)+ROW()-2)),\"\")","v":{"$error":"#N/A"}}]
["Kagiso Equity Alpha Fund B1","KEAB1","Kagiso Collective Investments Ltd",{"$f":"ROW()","v":297},null,null,{"$f":"VLOOKUP(F297,$C$2:$D$599,2,FALSE)","v":{"$error":"#N/A"}},{"$f":"IF(INDIRECT(\"c\" & (VLOOKUP(Rebalance!$D$26,$F$2:$G$48,2,FALSE)+ROW()-2))=Rebalance!$D$26,INDIRECT(\"a\" & (VLOOKUP(Rebalance!$D$26,$F$2:$G$48,2,FALSE)+ROW()-2)),\"\")","v":{"$error":"#N/A"}},{"$f":"IF(INDIRECT(\"c\" & (VLOOKUP(Rebalance!$D$27,$F$2:$G$48,2,FALSE)+ROW()-2))=Rebalance!$D$27,INDIRECT(\"a\" & (VLOOKUP(Rebalance!$D$27,$F$2:$G$48,2,FALSE)+ROW()-2)),\"\")","v":{"$error":"#N/A"}},{"$f":"IF(INDIRECT(\"c\" & (VLOOKUP(Rebalance!$D$28,$F$2:$G$48,2,FALSE)+ROW()-2))=Rebalance!$D$28,INDIRECT(\"a\" & (VLOOKUP(Rebalance!$D$28,$F$2:$G$48,2,FALSE)+ROW()-2)),\"\")","v":{"$error":"#N/A"}},{"$f":"IF(INDIRECT(\"c\" & (VLOOKUP(Rebalance!$D$29,$F$2:$G$48,2,FALSE)+ROW()-2))=Rebalance!$D$29,INDIRECT(\"a\" & (VLOOKUP(Rebalance!$D$29,$F$2:$G$48,2,FALSE)+ROW()-2)),\"\")","v":{"$error":"#N/A"}},{"$f":"IF(INDIRECT(\"c\" & (VLOOKUP(Rebalance!$D$30,$F$2:$G$48,2,FALSE)+ROW()-2))=Rebalance!$D$30,INDIRECT(\"a\" & (VLOOKUP(Rebalance!$D$30,$F$2:$G$48,2,FALSE)+ROW()-2)),\"\")","v":{"$error":"#N/A"}},{"$f":"IF(INDIRECT(\"c\" & (VLOOKUP(Rebalance!$D$31,$F$2:$G$48,2,FALSE)+ROW()-2))=Rebalance!$D$31,INDIRECT(\"a\" & (VLOOKUP(Rebalance!$D$31,$F$2:$G$48,2,FALSE)+ROW()-2)),\"\")","v":{"$error":"#N/A"}},{"$f":"IF(INDIRECT(\"c\" & (VLOOKUP(Rebalance!$D$32,$F$2:$G$48,2,FALSE)+ROW()-2))=Rebalance!$D$32,INDIRECT(\"a\" & (VLOOKUP(Rebalance!$D$32,$F$2:$G$48,2,FALSE)+ROW()-2)),\"\")","v":{"$error":"#N/A"}},{"$f":"IF(INDIRECT(\"c\" & (VLOOKUP(Rebalance!$D$33,$F$2:$G$48,2,FALSE)+ROW()-2))=Rebalance!$D$33,INDIRECT(\"a\" & (VLOOKUP(Rebalance!$D$33,$F$2:$G$48,2,FALSE)+ROW()-2)),\"\")","v":{"$error":"#N/A"}},{"$f":"IF(INDIRECT(\"c\" & (VLOOKUP(Rebalance!$D$34,$F$2:$G$48,2,FALSE)+ROW()-2))=Rebalance!$D$34,INDIRECT(\"a\" & (VLOOKUP(Rebalance!$D$34,$F$2:$G$48,2,FALSE)+ROW()-2)),\"\")","v":{"$error":"#N/A"}},{"$f":"IF(INDIRECT(\"c\" & (VLOOKUP(Rebalance!$D$35,$F$2:$G$48,2,FALSE)+ROW()-2))=Rebalance!$D$35,INDIRECT(\"a\" & (VLOOKUP(Rebalance!$D$35,$F$2:$G$48,2,FALSE)+ROW()-2)),\"\")","v":{"$error":"#N/A"}},{"$f":"IF(INDIRECT(\"c\" & (VLOOKUP(Rebalance!$D$36,$F$2:$G$48,2,FALSE)+ROW()-2))=Rebalance!$D$36,INDIRECT(\"a\" & (VLOOKUP(Rebalance!$D$36,$F$2:$G$48,2,FALSE)+ROW()-2)),\"\")","v":{"$error":"#N/A"}},{"$f":"IF(INDIRECT(\"c\" & (VLOOKUP(Rebalance!$D$37,$F$2:$G$48,2,FALSE)+ROW()-2))=Rebalance!$D$37,INDIRECT(\"a\" & (VLOOKUP(Rebalance!$D$37,$F$2:$G$48,2,FALSE)+ROW()-2)),\"\")","v":{"$error":"#N/A"}},{"$f":"IF(INDIRECT(\"c\" & (VLOOKUP(Rebalance!$D$38,$F$2:$G$48,2,FALSE)+ROW()-2))=Rebalance!$D$38,INDIRECT(\"a\" & (VLOOKUP(Rebalance!$D$38,$F$2:$G$48,2,FALSE)+ROW()-2)),\"\")","v":{"$error":"#N/A"}},{"$f":"IF(INDIRECT(\"c\" & (VLOOKUP(Rebalance!$D$39,$F$2:$G$48,2,FALSE)+ROW()-2))=Rebalance!$D$39,INDIRECT(\"a\" & (VLOOKUP(Rebalance!$D$39,$F$2:$G$48,2,FALSE)+ROW()-2)),\"\")","v":{"$error":"#N/A"}},{"$f":"IF(INDIRECT(\"c\" & (VLOOKUP(Rebalance!$D$40,$F$2:$G$48,2,FALSE)+ROW()-2))=Rebalance!$D$40,INDIRECT(\"a\" & (VLOOKUP(Rebalance!$D$40,$F$2:$G$48,2,FALSE)+ROW()-2)),\"\")","v":{"$error":"#N/A"}},{"$f":"IF(INDIRECT(\"c\" & (VLOOKUP(Rebalance!$D$52,$F$2:$G$48,2,FALSE)+ROW()-2))=Rebalance!$D$52,INDIRECT(\"a\" & (VLOOKUP(Rebalance!$D$52,$F$2:$G$48,2,FALSE)+ROW()-2)),\"\")","v":{"$error":"#N/A"}},{"$f":"IF(INDIRECT(\"c\" & (VLOOKUP(Rebalance!$D$53,$F$2:$G$48,2,FALSE)+ROW()-2))=Rebalance!$D$53,INDIRECT(\"a\" & (VLOOKUP(Rebalance!$D$53,$F$2:$G$48,2,FALSE)+ROW()-2)),\"\")","v":{"$error":"#N/A"}},{"$f":"IF(INDIRECT(\"c\" & (VLOOKUP(Rebalance!$D$54,$F$2:$G$48,2,FALSE)+ROW()-2))=Rebalance!$D$54,INDIRECT(\"a\" & (VLOOKUP(Rebalance!$D$54,$F$2:$G$48,2,FALSE)+ROW()-2)),\"\")","v":{"$error":"#N/A"}},{"$f":"IF(INDIRECT(\"c\" & (VLOOKUP(Rebalance!$D$55,$F$2:$G$48,2,FALSE)+ROW()-2))=Rebalance!$D$55,INDIRECT(\"a\" & (VLOOKUP(Rebalance!$D$55,$F$2:$G$48,2,FALSE)+ROW()-2)),\"\")","v":{"$error":"#N/A"}},{"$f":"IF(INDIRECT(\"c\" & (VLOOKUP(Rebalance!$D$56,$F$2:$G$48,2,FALSE)+ROW()-2))=Rebalance!$D$56,INDIRECT(\"a\" & (VLOOKUP(Rebalance!$D$56,$F$2:$G$48,2,FALSE)+ROW()-2)),\"\")","v":{"$error":"#N/A"}},{"$f":"IF(INDIRECT(\"c\" & (VLOOKUP(Rebalance!$D$57,$F$2:$G$48,2,FALSE)+ROW()-2))=Rebalance!$D$57,INDIRECT(\"a\" & (VLOOKUP(Rebalance!$D$57,$F$2:$G$48,2,FALSE)+ROW()-2)),\"\")","v":{"$error":"#N/A"}},{"$f":"IF(INDIRECT(\"c\" & (VLOOKUP(Rebalance!$D$58,$F$2:$G$48,2,FALSE)+ROW()-2))=Rebalance!$D$58,INDIRECT(\"a\" & (VLOOKUP(Rebalance!$D$58,$F$2:$G$48,2,FALSE)+ROW()-2)),\"\")","v":{"$error":"#N/A"}},{"$f":"IF(INDIRECT(\"c\" & (VLOOKUP(Rebalance!$D$59,$F$2:$G$48,2,FALSE)+ROW()-2))=Rebalance!$D$59,INDIRECT(\"a\" & (VLOOKUP(Rebalance!$D$59,$F$2:$G$48,2,FALSE)+ROW()-2)),\"\")","v":{"$error":"#N/A"}},{"$f":"IF(INDIRECT(\"c\" & (VLOOKUP(Rebalance!$D$60,$F$2:$G$48,2,FALSE)+ROW()-2))=Rebalance!$D$60,INDIRECT(\"a\" & (VLOOKUP(Rebalance!$D$60,$F$2:$G$48,2,FALSE)+ROW()-2)),\"\")","v":{"$error":"#N/A"}},{"$f":"IF(INDIRECT(\"c\" & (VLOOKUP(Rebalance!$D$61,$F$2:$G$48,2,FALSE)+ROW()-2))=Rebalance!$D$61,INDIRECT(\"a\" & (VLOOKUP(Rebalance!$D$61,$F$2:$G$48,2,FALSE)+ROW()-2)),\"\")","v":{"$error":"#N/A"}},{"$f":"IF(INDIRECT(\"c\" & (VLOOKUP(Rebalance!$D$62,$F$2:$G$48,2,FALSE)+ROW()-2))=Rebalance!$D$62,INDIRECT(\"a\" & (VLOOKUP(Rebalance!$D$62,$F$2:$G$48,2,FALSE)+ROW()-2)),\"\")","v":{"$error":"#N/A"}},{"$f":"IF(INDIRECT(\"c\" & (VLOOKUP(Rebalance!$D$63,$F$2:$G$48,2,FALSE)+ROW()-2))=Rebalance!$D$63,INDIRECT(\"a\" & (VLOOKUP(Rebalance!$D$63,$F$2:$G$48,2,FALSE)+ROW()-2)),\"\")","v":{"$error":"#N/A"}},{"$f":"IF(INDIRECT(\"c\" & (VLOOKUP(Rebalance!$D$64,$F$2:$G$48,2,FALSE)+ROW()-2))=Rebalance!$D$64,INDIRECT(\"a\" & (VLOOKUP(Rebalance!$D$64,$F$2:$G$48,2,FALSE)+ROW()-2)),\"\")","v":{"$error":"#N/A"}},{"$f":"IF(INDIRECT(\"c\" & (VLOOKUP(Rebalance!$D$65,$F$2:$G$48,2,FALSE)+ROW()-2))=Rebalance!$D$65,INDIRECT(\"a\" & (VLOOKUP(Rebalance!$D$65,$F$2:$G$48,2,FALSE)+ROW()-2)),\"\")","v":{"$error":"#N/A"}},{"$f":"IF(INDIRECT(\"c\" & (VLOOKUP(Rebalance!$D$66,$F$2:$G$48,2,FALSE)+ROW()-2))=Rebalance!$D$66,INDIRECT(\"a\" & (VLOOKUP(Rebalance!$D$66,$F$2:$G$48,2,FALSE)+ROW()-2)),\"\")","v":{"$error":"#N/A"}}]
["Kagiso Islamic Balanced Fund B","KAICB","Kagiso Collective Investments Ltd",{"$f":"ROW()","v":298},null,null,{"$f":"VLOOKUP(F298,$C$2:$D$599,2,FALSE)","v":{"$error":"#N/A"}},{"$f":"IF(INDIRECT(\"c\" & (VLOOKUP(Rebalance!$D$26,$F$2:$G$48,2,FALSE)+ROW()-2))=Rebalance!$D$26,INDIRECT(\"a\" & (VLOOKUP(Rebalance!$D$26,$F$2:$G$48,2,FALSE)+ROW()-2)),\"\")","v":{"$error":"#N/A"}},{"$f":"IF(INDIRECT(\"c\" & (VLOOKUP(Rebalance!$D$27,$F$2:$G$48,2,FALSE)+ROW()-2))=Rebalance!$D$27,INDIRECT(\"a\" & (VLOOKUP(Rebalance!$D$27,$F$2:$G$48,2,FALSE)+ROW()-2)),\"\")","v":{"$error":"#N/A"}},{"$f":"IF(INDIRECT(\"c\" & (VLOOKUP(Rebalance!$D$28,$F$2:$G$48,2,FALSE)+ROW()-2))=Rebalance!$D$28,INDIRECT(\"a\" & (VLOOKUP(Rebalance!$D$28,$F$2:$G$48,2,FALSE)+ROW()-2)),\"\")","v":{"$error":"#N/A"}},{"$f":"IF(INDIRECT(\"c\" & (VLOOKUP(Rebalance!$D$29,$F$2:$G$48,2,FALSE)+ROW()-2))=Rebalance!$D$29,INDIRECT(\"a\" & (VLOOKUP(Rebalance!$D$29,$F$2:$G$48,2,FALSE)+ROW()-2)),\"\")","v":{"$error":"#N/A"}},{"$f":"IF(INDIRECT(\"c\" & (VLOOKUP(Rebalance!$D$30,$F$2:$G$48,2,FALSE)+ROW()-2))=Rebalance!$D$30,INDIRECT(\"a\" & (VLOOKUP(Rebalance!$D$30,$F$2:$G$48,2,FALSE)+ROW()-2)),\"\")","v":{"$error":"#N/A"}},{"$f":"IF(INDIRECT(\"c\" & (VLOOKUP(Rebalance!$D$31,$F$2:$G$48,2,FALSE)+ROW()-2))=Rebalance!$D$31,INDIRECT(\"a\" & (VLOOKUP(Rebalance!$D$31,$F$2:$G$48,2,FALSE)+ROW()-2)),\"\")","v":{"$error":"#N/A"}},{"$f":"IF(INDIRECT(\"c\" & (VLOOKUP(Rebalance!$D$32,$F$2:$G$48,2,FALSE)+ROW()-2))=Rebalance!$D$32,INDIRECT(\"a\" & (VLOOKUP(Rebalance!$D$32,$F$2:$G$48,2,FALSE)+ROW()-2)),\"\")","v":{"$error":"#N/A"}},{"$f":"IF(INDIRECT(\"c\" & (VLOOKUP(Rebalance!$D$33,$F$2:$G$48,2,FALSE)+ROW()-2))=Rebalance!$D$33,INDIRECT(\"a\" & (VLOOKUP(Rebalance!$D$33,$F$2:$G$48,2,FALSE)+ROW()-2)),\"\")","v":{"$error":"#N/A"}},{"$f":"IF(INDIRECT(\"c\" & (VLOOKUP(Rebalance!$D$34,$F$2:$G$48,2,FALSE)+ROW()-2))=Rebalance!$D$34,INDIRECT(\"a\" & (VLOOKUP(Rebalance!$D$34,$F$2:$G$48,2,FALSE)+ROW()-2)),\"\")","v":{"$error":"#N/A"}},{"$f":"IF(INDIRECT(\"c\" & (VLOOKUP(Rebalance!$D$35,$F$2:$G$48,2,FALSE)+ROW()-2))=Rebalance!$D$35,INDIRECT(\"a\" & (VLOOKUP(Rebalance!$D$35,$F$2:$G$48,2,FALSE)+ROW()-2)),\"\")","v":{"$error":"#N/A"}},{"$f":"IF(INDIRECT(\"c\" & (VLOOKUP(Rebalance!$D$36,$F$2:$G$48,2,FALSE)+ROW()-2))=Rebalance!$D$36,INDIRECT(\"a\" & (VLOOKUP(Rebalance!$D$36,$F$2:$G$48,2,FALSE)+ROW()-2)),\"\")","v":{"$error":"#N/A"}},{"$f":"IF(INDIRECT(\"c\" & (VLOOKUP(Rebalance!$D$37,$F$2:$G$48,2,FALSE)+ROW()-2))=Rebalance!$D$37,INDIRECT(\"a\" & (VLOOKUP(Rebalance!$D$37,$F$2:$G$48,2,FALSE)+ROW()-2)),\"\")","v":{"$error":"#N/A"}},{"$f":"IF(INDIRECT(\"c\" & (VLOOKUP(Rebalance!$D$38,$F$2:$G$48,2,FALSE)+ROW()-2))=Rebalance!$D$38,INDIRECT(\"a\" & (VLOOKUP(Rebalance!$D$38,$F$2:$G$48,2,FALSE)+ROW()-2)),\"\")","v":{"$error":"#N/A"}},{"$f":"IF(INDIRECT(\"c\" & (VLOOKUP(Rebalance!$D$39,$F$2:$G$48,2,FALSE)+ROW()-2))=Rebalance!$D$39,INDIRECT(\"a\" & (VLOOKUP(Rebalance!$D$39,$F$2:$G$48,2,FALSE)+ROW()-2)),\"\")","v":{"$error":"#N/A"}},{"$f":"IF(INDIRECT(\"c\" & (VLOOKUP(Rebalance!$D$40,$F$2:$G$48,2,FALSE)+ROW()-2))=Rebalance!$D$40,INDIRECT(\"a\" & (VLOOKUP(Rebalance!$D$40,$F$2:$G$48,2,FALSE)+ROW()-2)),\"\")","v":{"$error":"#N/A"}},{"$f":"IF(INDIRECT(\"c\" & (VLOOKUP(Rebalance!$D$52,$F$2:$G$48,2,FALSE)+ROW()-2))=Rebalance!$D$52,INDIRECT(\"a\" & (VLOOKUP(Rebalance!$D$52,$F$2:$G$48,2,FALSE)+ROW()-2)),\"\")","v":{"$error":"#N/A"}},{"$f":"IF(INDIRECT(\"c\" & (VLOOKUP(Rebalance!$D$53,$F$2:$G$48,2,FALSE)+ROW()-2))=Rebalance!$D$53,INDIRECT(\"a\" & (VLOOKUP(Rebalance!$D$53,$F$2:$G$48,2,FALSE)+ROW()-2)),\"\")","v":{"$error":"#N/A"}},{"$f":"IF(INDIRECT(\"c\" & (VLOOKUP(Rebalance!$D$54,$F$2:$G$48,2,FALSE)+ROW()-2))=Rebalance!$D$54,INDIRECT(\"a\" & (VLOOKUP(Rebalance!$D$54,$F$2:$G$48,2,FALSE)+ROW()-2)),\"\")","v":{"$error":"#N/A"}},{"$f":"IF(INDIRECT(\"c\" & (VLOOKUP(Rebalance!$D$55,$F$2:$G$48,2,FALSE)+ROW()-2))=Rebalance!$D$55,INDIRECT(\"a\" & (VLOOKUP(Rebalance!$D$55,$F$2:$G$48,2,FALSE)+ROW()-2)),\"\")","v":{"$error":"#N/A"}},{"$f":"IF(INDIRECT(\"c\" & (VLOOKUP(Rebalance!$D$56,$F$2:$G$48,2,FALSE)+ROW()-2))=Rebalance!$D$56,INDIRECT(\"a\" & (VLOOKUP(Rebalance!$D$56,$F$2:$G$48,2,FALSE)+ROW()-2)),\"\")","v":{"$error":"#N/A"}},{"$f":"IF(INDIRECT(\"c\" & (VLOOKUP(Rebalance!$D$57,$F$2:$G$48,2,FALSE)+ROW()-2))=Rebalance!$D$57,INDIRECT(\"a\" & (VLOOKUP(Rebalance!$D$57,$F$2:$G$48,2,FALSE)+ROW()-2)),\"\")","v":{"$error":"#N/A"}},{"$f":"IF(INDIRECT(\"c\" & (VLOOKUP(Rebalance!$D$58,$F$2:$G$48,2,FALSE)+ROW()-2))=Rebalance!$D$58,INDIRECT(\"a\" & (VLOOKUP(Rebalance!$D$58,$F$2:$G$48,2,FALSE)+ROW()-2)),\"\")","v":{"$error":"#N/A"}},{"$f":"IF(INDIRECT(\"c\" & (VLOOKUP(Rebalance!$D$59,$F$2:$G$48,2,FALSE)+ROW()-2))=Rebalance!$D$59,INDIRECT(\"a\" & (VLOOKUP(Rebalance!$D$59,$F$2:$G$48,2,FALSE)+ROW()-2)),\"\")","v":{"$error":"#N/A"}},{"$f":"IF(INDIRECT(\"c\" & (VLOOKUP(Rebalance!$D$60,$F$2:$G$48,2,FALSE)+ROW()-2))=Rebalance!$D$60,INDIRECT(\"a\" & (VLOOKUP(Rebalance!$D$60,$F$2:$G$48,2,FALSE)+ROW()-2)),\"\")","v":{"$error":"#N/A"}},{"$f":"IF(INDIRECT(\"c\" & (VLOOKUP(Rebalance!$D$61,$F$2:$G$48,2,FALSE)+ROW()-2))=Rebalance!$D$61,INDIRECT(\"a\" & (VLOOKUP(Rebalance!$D$61,$F$2:$G$48,2,FALSE)+ROW()-2)),\"\")","v":{"$error":"#N/A"}},{"$f":"IF(INDIRECT(\"c\" & (VLOOKUP(Rebalance!$D$62,$F$2:$G$48,2,FALSE)+ROW()-2))=Rebalance!$D$62,INDIRECT(\"a\" & (VLOOKUP(Rebalance!$D$62,$F$2:$G$48,2,FALSE)+ROW()-2)),\"\")","v":{"$error":"#N/A"}},{"$f":"IF(INDIRECT(\"c\" & (VLOOKUP(Rebalance!$D$63,$F$2:$G$48,2,FALSE)+ROW()-2))=Rebalance!$D$63,INDIRECT(\"a\" & (VLOOKUP(Rebalance!$D$63,$F$2:$G$48,2,FALSE)+ROW()-2)),\"\")","v":{"$error":"#N/A"}},{"$f":"IF(INDIRECT(\"c\" & (VLOOKUP(Rebalance!$D$64,$F$2:$G$48,2,FALSE)+ROW()-2))=Rebalance!$D$64,INDIRECT(\"a\" & (VLOOKUP(Rebalance!$D$64,$F$2:$G$48,2,FALSE)+ROW()-2)),\"\")","v":{"$error":"#N/A"}},{"$f":"IF(INDIRECT(\"c\" & (VLOOKUP(Rebalance!$D$65,$F$2:$G$48,2,FALSE)+ROW()-2))=Rebalance!$D$65,INDIRECT(\"a\" & (VLOOKUP(Rebalance!$D$65,$F$2:$G$48,2,FALSE)+ROW()-2)),\"\")","v":{"$error":"#N/A"}},{"$f":"IF(INDIRECT(\"c\" & (VLOOKUP(Rebalance!$D$66,$F$2:$G$48,2,FALSE)+ROW()-2))=Rebalance!$D$66,INDIRECT(\"a\" & (VLOOKUP(Rebalance!$D$66,$F$2:$G$48,2,FALSE)+ROW()-2)),\"\")","v":{"$error":"#N/A"}}]
["Kagiso Islamic Equity Fund B","KIECB","Kagiso Collective Investments Ltd",{"$f":"ROW()","v":299},null,null,{"$f":"VLOOKUP(F299,$C$2:$D$599,2,FALSE)","v":{"$error":"#N/A"}},{"$f":"IF(INDIRECT(\"c\" & (VLOOKUP(Rebalance!$D$26,$F$2:$G$48,2,FALSE)+ROW()-2))=Rebalance!$D$26,INDIRECT(\"a\" & (VLOOKUP(Rebalance!$D$26,$F$2:$G$48,2,FALSE)+ROW()-2)),\"\")","v":{"$error":"#N/A"}},{"$f":"IF(INDIRECT(\"c\" & (VLOOKUP(Rebalance!$D$27,$F$2:$G$48,2,FALSE)+ROW()-2))=Rebalance!$D$27,INDIRECT(\"a\" & (VLOOKUP(Rebalance!$D$27,$F$2:$G$48,2,FALSE)+ROW()-2)),\"\")","v":{"$error":"#N/A"}},{"$f":"IF(INDIRECT(\"c\" & (VLOOKUP(Rebalance!$D$28,$F$2:$G$48,2,FALSE)+ROW()-2))=Rebalance!$D$28,INDIRECT(\"a\" & (VLOOKUP(Rebalance!$D$28,$F$2:$G$48,2,FALSE)+ROW()-2)),\"\")","v":{"$error":"#N/A"}},{"$f":"IF(INDIRECT(\"c\" & (VLOOKUP(Rebalance!$D$29,$F$2:$G$48,2,FALSE)+ROW()-2))=Rebalance!$D$29,INDIRECT(\"a\" & (VLOOKUP(Rebalance!$D$29,$F$2:$G$48,2,FALSE)+ROW()-2)),\"\")","v":{"$error":"#N/A"}},{"$f":"IF(INDIRECT(\"c\" & (VLOOKUP(Rebalance!$D$30,$F$2:$G$48,2,FALSE)+ROW()-2))=Rebalance!$D$30,INDIRECT(\"a\" & (VLOOKUP(Rebalance!$D$30,$F$2:$G$48,2,FALSE)+ROW()-2)),\"\")","v":{"$error":"#N/A"}},{"$f":"IF(INDIRECT(\"c\" & (VLOOKUP(Rebalance!$D$31,$F$2:$G$48,2,FALSE)+ROW()-2))=Rebalance!$D$31,INDIRECT(\"a\" & (VLOOKUP(Rebalance!$D$31,$F$2:$G$48,2,FALSE)+ROW()-2)),\"\")","v":{"$error":"#N/A"}},{"$f":"IF(INDIRECT(\"c\" & (VLOOKUP(Rebalance!$D$32,$F$2:$G$48,2,FALSE)+ROW()-2))=Rebalance!$D$32,INDIRECT(\"a\" & (VLOOKUP(Rebalance!$D$32,$F$2:$G$48,2,FALSE)+ROW()-2)),\"\")","v":{"$error":"#N/A"}},{"$f":"IF(INDIRECT(\"c\" & (VLOOKUP(Rebalance!$D$33,$F$2:$G$48,2,FALSE)+ROW()-2))=Rebalance!$D$33,INDIRECT(\"a\" & (VLOOKUP(Rebalance!$D$33,$F$2:$G$48,2,FALSE)+ROW()-2)),\"\")","v":{"$error":"#N/A"}},{"$f":"IF(INDIRECT(\"c\" & (VLOOKUP(Rebalance!$D$34,$F$2:$G$48,2,FALSE)+ROW()-2))=Rebalance!$D$34,INDIRECT(\"a\" & (VLOOKUP(Rebalance!$D$34,$F$2:$G$48,2,FALSE)+ROW()-2)),\"\")","v":{"$error":"#N/A"}},{"$f":"IF(INDIRECT(\"c\" & (VLOOKUP(Rebalance!$D$35,$F$2:$G$48,2,FALSE)+ROW()-2))=Rebalance!$D$35,INDIRECT(\"a\" & (VLOOKUP(Rebalance!$D$35,$F$2:$G$48,2,FALSE)+ROW()-2)),\"\")","v":{"$error":"#N/A"}},{"$f":"IF(INDIRECT(\"c\" & (VLOOKUP(Rebalance!$D$36,$F$2:$G$48,2,FALSE)+ROW()-2))=Rebalance!$D$36,INDIRECT(\"a\" & (VLOOKUP(Rebalance!$D$36,$F$2:$G$48,2,FALSE)+ROW()-2)),\"\")","v":{"$error":"#N/A"}},{"$f":"IF(INDIRECT(\"c\" & (VLOOKUP(Rebalance!$D$37,$F$2:$G$48,2,FALSE)+ROW()-2))=Rebalance!$D$37,INDIRECT(\"a\" & (VLOOKUP(Rebalance!$D$37,$F$2:$G$48,2,FALSE)+ROW()-2)),\"\")","v":{"$error":"#N/A"}},{"$f":"IF(INDIRECT(\"c\" & (VLOOKUP(Rebalance!$D$38,$F$2:$G$48,2,FALSE)+ROW()-2))=Rebalance!$D$38,INDIRECT(\"a\" & (VLOOKUP(Rebalance!$D$38,$F$2:$G$48,2,FALSE)+ROW()-2)),\"\")","v":{"$error":"#N/A"}},{"$f":"IF(INDIRECT(\"c\" & (VLOOKUP(Rebalance!$D$39,$F$2:$G$48,2,FALSE)+ROW()-2))=Rebalance!$D$39,INDIRECT(\"a\" & (VLOOKUP(Rebalance!$D$39,$F$2:$G$48,2,FALSE)+ROW()-2)),\"\")","v":{"$error":"#N/A"}},{"$f":"IF(INDIRECT(\"c\" & (VLOOKUP(Rebalance!$D$40,$F$2:$G$48,2,FALSE)+ROW()-2))=Rebalance!$D$40,INDIRECT(\"a\" & (VLOOKUP(Rebalance!$D$40,$F$2:$G$48,2,FALSE)+ROW()-2)),\"\")","v":{"$error":"#N/A"}},{"$f":"IF(INDIRECT(\"c\" & (VLOOKUP(Rebalance!$D$52,$F$2:$G$48,2,FALSE)+ROW()-2))=Rebalance!$D$52,INDIRECT(\"a\" & (VLOOKUP(Rebalance!$D$52,$F$2:$G$48,2,FALSE)+ROW()-2)),\"\")","v":{"$error":"#N/A"}},{"$f":"IF(INDIRECT(\"c\" & (VLOOKUP(Rebalance!$D$53,$F$2:$G$48,2,FALSE)+ROW()-2))=Rebalance!$D$53,INDIRECT(\"a\" & (VLOOKUP(Rebalance!$D$53,$F$2:$G$48,2,FALSE)+ROW()-2)),\"\")","v":{"$error":"#N/A"}},{"$f":"IF(INDIRECT(\"c\" & (VLOOKUP(Rebalance!$D$54,$F$2:$G$48,2,FALSE)+ROW()-2))=Rebalance!$D$54,INDIRECT(\"a\" & (VLOOKUP(Rebalance!$D$54,$F$2:$G$48,2,FALSE)+ROW()-2)),\"\")","v":{"$error":"#N/A"}},{"$f":"IF(INDIRECT(\"c\" & (VLOOKUP(Rebalance!$D$55,$F$2:$G$48,2,FALSE)+ROW()-2))=Rebalance!$D$55,INDIRECT(\"a\" & (VLOOKUP(Rebalance!$D$55,$F$2:$G$48,2,FALSE)+ROW()-2)),\"\")","v":{"$error":"#N/A"}},{"$f":"IF(INDIRECT(\"c\" & (VLOOKUP(Rebalance!$D$56,$F$2:$G$48,2,FALSE)+ROW()-2))=Rebalance!$D$56,INDIRECT(\"a\" & (VLOOKUP(Rebalance!$D$56,$F$2:$G$48,2,FALSE)+ROW()-2)),\"\")","v":{"$error":"#N/A"}},{"$f":"IF(INDIRECT(\"c\" & (VLOOKUP(Rebalance!$D$57,$F$2:$G$48,2,FALSE)+ROW()-2))=Rebalance!$D$57,INDIRECT(\"a\" & (VLOOKUP(Rebalance!$D$57,$F$2:$G$48,2,FALSE)+ROW()-2)),\"\")","v":{"$error":"#N/A"}},{"$f":"IF(INDIRECT(\"c\" & (VLOOKUP(Rebalance!$D$58,$F$2:$G$48,2,FALSE)+ROW()-2))=Rebalance!$D$58,INDIRECT(\"a\" & (VLOOKUP(Rebalance!$D$58,$F$2:$G$48,2,FALSE)+ROW()-2)),\"\")","v":{"$error":"#N/A"}},{"$f":"IF(INDIRECT(\"c\" & (VLOOKUP(Rebalance!$D$59,$F$2:$G$48,2,FALSE)+ROW()-2))=Rebalance!$D$59,INDIRECT(\"a\" & (VLOOKUP(Rebalance!$D$59,$F$2:$G$48,2,FALSE)+ROW()-2)),\"\")","v":{"$error":"#N/A"}},{"$f":"IF(INDIRECT(\"c\" & (VLOOKUP(Rebalance!$D$60,$F$2:$G$48,2,FALSE)+ROW()-2))=Rebalance!$D$60,INDIRECT(\"a\" & (VLOOKUP(Rebalance!$D$60,$F$2:$G$48,2,FALSE)+ROW()-2)),\"\")","v":{"$error":"#N/A"}},{"$f":"IF(INDIRECT(\"c\" & (VLOOKUP(Rebalance!$D$61,$F$2:$G$48,2,FALSE)+ROW()-2))=Rebalance!$D$61,INDIRECT(\"a\" & (VLOOKUP(Rebalance!$D$61,$F$2:$G$48,2,FALSE)+ROW()-2)),\"\")","v":{"$error":"#N/A"}},{"$f":"IF(INDIRECT(\"c\" & (VLOOKUP(Rebalance!$D$62,$F$2:$G$48,2,FALSE)+ROW()-2))=Rebalance!$D$62,INDIRECT(\"a\" & (VLOOKUP(Rebalance!$D$62,$F$2:$G$48,2,FALSE)+ROW()-2)),\"\")","v":{"$error":"#N/A"}},{"$f":"IF(INDIRECT(\"c\" & (VLOOKUP(Rebalance!$D$63,$F$2:$G$48,2,FALSE)+ROW()-2))=Rebalance!$D$63,INDIRECT(\"a\" & (VLOOKUP(Rebalance!$D$63,$F$2:$G$48,2,FALSE)+ROW()-2)),\"\")","v":{"$error":"#N/A"}},{"$f":"IF(INDIRECT(\"c\" & (VLOOKUP(Rebalance!$D$64,$F$2:$G$48,2,FALSE)+ROW()-2))=Rebalance!$D$64,INDIRECT(\"a\" & (VLOOKUP(Rebalance!$D$64,$F$2:$G$48,2,FALSE)+ROW()-2)),\"\")","v":{"$error":"#N/A"}},{"$f":"IF(INDIRECT(\"c\" & (VLOOKUP(Rebalance!$D$65,$F$2:$G$48,2,FALSE)+ROW()-2))=Rebalance!$D$65,INDIRECT(\"a\" & (VLOOKUP(Rebalance!$D$65,$F$2:$G$48,2,FALSE)+ROW()-2)),\"\")","v":{"$error":"#N/A"}},{"$f":"IF(INDIRECT(\"c\" & (VLOOKUP(Rebalance!$D$66,$F$2:$G$48,2,FALSE)+ROW()-2))=Rebalance!$D$66,INDIRECT(\"a\" & (VLOOKUP(Rebalance!$D$66,$F$2:$G$48,2,FALSE)+ROW()-2)),\"\")","v":{"$error":"#N/A"}}]
["Kagiso Stable Fund Class B","KASCB","Kagiso Collective Investments Ltd",{"$f":"ROW()","v":300},null,null,{"$f":"VLOOKUP(F300,$C$2:$D$599,2,FALSE)","v":{"$error":"#N/A"}},{"$f":"IF(INDIRECT(\"c\" & (VLOOKUP(Rebalance!$D$26,$F$2:$G$48,2,FALSE)+ROW()-2))=Rebalance!$D$26,INDIRECT(\"a\" & (VLOOKUP(Rebalance!$D$26,$F$2:$G$48,2,FALSE)+ROW()-2)),\"\")","v":{"$error":"#N/A"}},{"$f":"IF(INDIRECT(\"c\" & (VLOOKUP(Rebalance!$D$27,$F$2:$G$48,2,FALSE)+ROW()-2))=Rebalance!$D$27,INDIRECT(\"a\" & (VLOOKUP(Rebalance!$D$27,$F$2:$G$48,2,FALSE)+ROW()-2)),\"\")","v":{"$error":"#N/A"}},{"$f":"IF(INDIRECT(\"c\" & (VLOOKUP(Rebalance!$D$28,$F$2:$G$48,2,FALSE)+ROW()-2))=Rebalance!$D$28,INDIRECT(\"a\" & (VLOOKUP(Rebalance!$D$28,$F$2:$G$48,2,FALSE)+ROW()-2)),\"\")","v":{"$error":"#N/A"}},{"$f":"IF(INDIRECT(\"c\" & (VLOOKUP(Rebalance!$D$29,$F$2:$G$48,2,FALSE)+ROW()-2))=Rebalance!$D$29,INDIRECT(\"a\" & (VLOOKUP(Rebalance!$D$29,$F$2:$G$48,2,FALSE)+ROW()-2)),\"\")","v":{"$error":"#N/A"}},{"$f":"IF(INDIRECT(\"c\" & (VLOOKUP(Rebalance!$D$30,$F$2:$G$48,2,FALSE)+ROW()-2))=Rebalance!$D$30,INDIRECT(\"a\" & (VLOOKUP(Rebalance!$D$30,$F$2:$G$48,2,FALSE)+ROW()-2)),\"\")","v":{"$error":"#N/A"}},{"$f":"IF(INDIRECT(\"c\" & (VLOOKUP(Rebalance!$D$31,$F$2:$G$48,2,FALSE)+ROW()-2))=Rebalance!$D$31,INDIRECT(\"a\" & (VLOOKUP(Rebalance!$D$31,$F$2:$G$48,2,FALSE)+ROW()-2)),\"\")","v":{"$error":"#N/A"}},{"$f":"IF(INDIRECT(\"c\" & (VLOOKUP(Rebalance!$D$32,$F$2:$G$48,2,FALSE)+ROW()-2))=Rebalance!$D$32,INDIRECT(\"a\" & (VLOOKUP(Rebalance!$D$32,$F$2:$G$48,2,FALSE)+ROW()-2)),\"\")","v":{"$error":"#N/A"}},{"$f":"IF(INDIRECT(\"c\" & (VLOOKUP(Rebalance!$D$33,$F$2:$G$48,2,FALSE)+ROW()-2))=Rebalance!$D$33,INDIRECT(\"a\" & (VLOOKUP(Rebalance!$D$33,$F$2:$G$48,2,FALSE)+ROW()-2)),\"\")","v":{"$error":"#N/A"}},{"$f":"IF(INDIRECT(\"c\" & (VLOOKUP(Rebalance!$D$34,$F$2:$G$48,2,FALSE)+ROW()-2))=Rebalance!$D$34,INDIRECT(\"a\" & (VLOOKUP(Rebalance!$D$34,$F$2:$G$48,2,FALSE)+ROW()-2)),\"\")","v":{"$error":"#N/A"}},{"$f":"IF(INDIRECT(\"c\" & (VLOOKUP(Rebalance!$D$35,$F$2:$G$48,2,FALSE)+ROW()-2))=Rebalance!$D$35,INDIRECT(\"a\" & (VLOOKUP(Rebalance!$D$35,$F$2:$G$48,2,FALSE)+ROW()-2)),\"\")","v":{"$error":"#N/A"}},{"$f":"IF(INDIRECT(\"c\" & (VLOOKUP(Rebalance!$D$36,$F$2:$G$48,2,FALSE)+ROW()-2))=Rebalance!$D$36,INDIRECT(\"a\" & (VLOOKUP(Rebalance!$D$36,$F$2:$G$48,2,FALSE)+ROW()-2)),\"\")","v":{"$error":"#N/A"}},{"$f":"IF(INDIRECT(\"c\" & (VLOOKUP(Rebalance!$D$37,$F$2:$G$48,2,FALSE)+ROW()-2))=Rebalance!$D$37,INDIRECT(\"a\" & (VLOOKUP(Rebalance!$D$37,$F$2:$G$48,2,FALSE)+ROW()-2)),\"\")","v":{"$error":"#N/A"}},{"$f":"IF(INDIRECT(\"c\" & (VLOOKUP(Rebalance!$D$38,$F$2:$G$48,2,FALSE)+ROW()-2))=Rebalance!$D$38,INDIRECT(\"a\" & (VLOOKUP(Rebalance!$D$38,$F$2:$G$48,2,FALSE)+ROW()-2)),\"\")","v":{"$error":"#N/A"}},{"$f":"IF(INDIRECT(\"c\" & (VLOOKUP(Rebalance!$D$39,$F$2:$G$48,2,FALSE)+ROW()-2))=Rebalance!$D$39,INDIRECT(\"a\" & (VLOOKUP(Rebalance!$D$39,$F$2:$G$48,2,FALSE)+ROW()-2)),\"\")","v":{"$error":"#N/A"}},{"$f":"IF(INDIRECT(\"c\" & (VLOOKUP(Rebalance!$D$40,$F$2:$G$48,2,FALSE)+ROW()-2))=Rebalance!$D$40,INDIRECT(\"a\" & (VLOOKUP(Rebalance!$D$40,$F$2:$G$48,2,FALSE)+ROW()-2)),\"\")","v":{"$error":"#N/A"}},{"$f":"IF(INDIRECT(\"c\" & (VLOOKUP(Rebalance!$D$52,$F$2:$G$48,2,FALSE)+ROW()-2))=Rebalance!$D$52,INDIRECT(\"a\" & (VLOOKUP(Rebalance!$D$52,$F$2:$G$48,2,FALSE)+ROW()-2)),\"\")","v":{"$error":"#N/A"}},{"$f":"IF(INDIRECT(\"c\" & (VLOOKUP(Rebalance!$D$53,$F$2:$G$48,2,FALSE)+ROW()-2))=Rebalance!$D$53,INDIRECT(\"a\" & (VLOOKUP(Rebalance!$D$53,$F$2:$G$48,2,FALSE)+ROW()-2)),\"\")","v":{"$error":"#N/A"}},{"$f":"IF(INDIRECT(\"c\" & (VLOOKUP(Rebalance!$D$54,$F$2:$G$48,2,FALSE)+ROW()-2))=Rebalance!$D$54,INDIRECT(\"a\" & (VLOOKUP(Rebalance!$D$54,$F$2:$G$48,2,FALSE)+ROW()-2)),\"\")","v":{"$error":"#N/A"}},{"$f":"IF(INDIRECT(\"c\" & (VLOOKUP(Rebalance!$D$55,$F$2:$G$48,2,FALSE)+ROW()-2))=Rebalance!$D$55,INDIRECT(\"a\" & (VLOOKUP(Rebalance!$D$55,$F$2:$G$48,2,FALSE)+ROW()-2)),\"\")","v":{"$error":"#N/A"}},{"$f":"IF(INDIRECT(\"c\" & (VLOOKUP(Rebalance!$D$56,$F$2:$G$48,2,FALSE)+ROW()-2))=Rebalance!$D$56,INDIRECT(\"a\" & (VLOOKUP(Rebalance!$D$56,$F$2:$G$48,2,FALSE)+ROW()-2)),\"\")","v":{"$error":"#N/A"}},{"$f":"IF(INDIRECT(\"c\" & (VLOOKUP(Rebalance!$D$57,$F$2:$G$48,2,FALSE)+ROW()-2))=Rebalance!$D$57,INDIRECT(\"a\" & (VLOOKUP(Rebalance!$D$57,$F$2:$G$48,2,FALSE)+ROW()-2)),\"\")","v":{"$error":"#N/A"}},{"$f":"IF(INDIRECT(\"c\" & (VLOOKUP(Rebalance!$D$58,$F$2:$G$48,2,FALSE)+ROW()-2))=Rebalance!$D$58,INDIRECT(\"a\" & (VLOOKUP(Rebalance!$D$58,$F$2:$G$48,2,FALSE)+ROW()-2)),\"\")","v":{"$error":"#N/A"}},{"$f":"IF(INDIRECT(\"c\" & (VLOOKUP(Rebalance!$D$59,$F$2:$G$48,2,FALSE)+ROW()-2))=Rebalance!$D$59,INDIRECT(\"a\" & (VLOOKUP(Rebalance!$D$59,$F$2:$G$48,2,FALSE)+ROW()-2)),\"\")","v":{"$error":"#N/A"}},{"$f":"IF(INDIRECT(\"c\" & (VLOOKUP(Rebalance!$D$60,$F$2:$G$48,2,FALSE)+ROW()-2))=Rebalance!$D$60,INDIRECT(\"a\" & (VLOOKUP(Rebalance!$D$60,$F$2:$G$48,2,FALSE)+ROW()-2)),\"\")","v":{"$error":"#N/A"}},{"$f":"IF(INDIRECT(\"c\" & (VLOOKUP(Rebalance!$D$61,$F$2:$G$48,2,FALSE)+ROW()-2))=Rebalance!$D$61,INDIRECT(\"a\" & (VLOOKUP(Rebalance!$D$61,$F$2:$G$48,2,FALSE)+ROW()-2)),\"\")","v":{"$error":"#N/A"}},{"$f":"IF(INDIRECT(\"c\" & (VLOOKUP(Rebalance!$D$62,$F$2:$G$48,2,FALSE)+ROW()-2))=Rebalance!$D$62,INDIRECT(\"a\" & (VLOOKUP(Rebalance!$D$62,$F$2:$G$48,2,FALSE)+ROW()-2)),\"\")","v":{"$error":"#N/A"}},{"$f":"IF(INDIRECT(\"c\" & (VLOOKUP(Rebalance!$D$63,$F$2:$G$48,2,FALSE)+ROW()-2))=Rebalance!$D$63,INDIRECT(\"a\" & (VLOOKUP(Rebalance!$D$63,$F$2:$G$48,2,FALSE)+ROW()-2)),\"\")","v":{"$error":"#N/A"}},{"$f":"IF(INDIRECT(\"c\" & (VLOOKUP(Rebalance!$D$64,$F$2:$G$48,2,FALSE)+ROW()-2))=Rebalance!$D$64,INDIRECT(\"a\" & (VLOOKUP(Rebalance!$D$64,$F$2:$G$48,2,FALSE)+ROW()-2)),\"\")","v":{"$error":"#N/A"}},{"$f":"IF(INDIRECT(\"c\" & (VLOOKUP(Rebalance!$D$65,$F$2:$G$48,2,FALSE)+ROW()-2))=Rebalance!$D$65,INDIRECT(\"a\" & (VLOOKUP(Rebalance!$D$65,$F$2:$G$48,2,FALSE)+ROW()-2)),\"\")","v":{"$error":"#N/A"}},{"$f":"IF(INDIRECT(\"c\" & (VLOOKUP(Rebalance!$D$66,$F$2:$G$48,2,FALSE)+ROW()-2))=Rebalance!$D$66,INDIRECT(\"a\" & (VLOOKUP(Rebalance!$D$66,$F$2:$G$48,2,FALSE)+ROW()-2)),\"\")","v":{"$error":"#N/A"}}]
["Kagiso Top 40 Tracker Fund A","KATF","Kagiso Collective Investments Ltd",{"$f":"ROW()","v":301},null,null,{"$f":"VLOOKUP(F301,$C$2:$D$599,2,FALSE)","v":{"$error":"#N/A"}},{"$f":"IF(INDIRECT(\"c\" & (VLOOKUP(Rebalance!$D$26,$F$2:$G$48,2,FALSE)+ROW()-2))=Rebalance!$D$26,INDIRECT(\"a\" & (VLOOKUP(Rebalance!$D$26,$F$2:$G$48,2,FALSE)+ROW()-2)),\"\")","v":{"$error":"#N/A"}},{"$f":"IF(INDIRECT(\"c\" & (VLOOKUP(Rebalance!$D$27,$F$2:$G$48,2,FALSE)+ROW()-2))=Rebalance!$D$27,INDIRECT(\"a\" & (VLOOKUP(Rebalance!$D$27,$F$2:$G$48,2,FALSE)+ROW()-2)),\"\")","v":{"$error":"#N/A"}},{"$f":"IF(INDIRECT(\"c\" & (VLOOKUP(Rebalance!$D$28,$F$2:$G$48,2,FALSE)+ROW()-2))=Rebalance!$D$28,INDIRECT(\"a\" & (VLOOKUP(Rebalance!$D$28,$F$2:$G$48,2,FALSE)+ROW()-2)),\"\")","v":{"$error":"#N/A"}},{"$f":"IF(INDIRECT(\"c\" & (VLOOKUP(Rebalance!$D$29,$F$2:$G$48,2,FALSE)+ROW()-2))=Rebalance!$D$29,INDIRECT(\"a\" & (VLOOKUP(Rebalance!$D$29,$F$2:$G$48,2,FALSE)+ROW()-2)),\"\")","v":{"$error":"#N/A"}},{"$f":"IF(INDIRECT(\"c\" & (VLOOKUP(Rebalance!$D$30,$F$2:$G$48,2,FALSE)+ROW()-2))=Rebalance!$D$30,INDIRECT(\"a\" & (VLOOKUP(Rebalance!$D$30,$F$2:$G$48,2,FALSE)+ROW()-2)),\"\")","v":{"$error":"#N/A"}},{"$f":"IF(INDIRECT(\"c\" & (VLOOKUP(Rebalance!$D$31,$F$2:$G$48,2,FALSE)+ROW()-2))=Rebalance!$D$31,INDIRECT(\"a\" & (VLOOKUP(Rebalance!$D$31,$F$2:$G$48,2,FALSE)+ROW()-2)),\"\")","v":{"$error":"#N/A"}},{"$f":"IF(INDIRECT(\"c\" & (VLOOKUP(Rebalance!$D$32,$F$2:$G$48,2,FALSE)+ROW()-2))=Rebalance!$D$32,INDIRECT(\"a\" & (VLOOKUP(Rebalance!$D$32,$F$2:$G$48,2,FALSE)+ROW()-2)),\"\")","v":{"$error":"#N/A"}},{"$f":"IF(INDIRECT(\"c\" & (VLOOKUP(Rebalance!$D$33,$F$2:$G$48,2,FALSE)+ROW()-2))=Rebalance!$D$33,INDIRECT(\"a\" & (VLOOKUP(Rebalance!$D$33,$F$2:$G$48,2,FALSE)+ROW()-2)),\"\")","v":{"$error":"#N/A"}},{"$f":"IF(INDIRECT(\"c\" & (VLOOKUP(Rebalance!$D$34,$F$2:$G$48,2,FALSE)+ROW()-2))=Rebalance!$D$34,INDIRECT(\"a\" & (VLOOKUP(Rebalance!$D$34,$F$2:$G$48,2,FALSE)+ROW()-2)),\"\")","v":{"$error":"#N/A"}},{"$f":"IF(INDIRECT(\"c\" & (VLOOKUP(Rebalance!$D$35,$F$2:$G$48,2,FALSE)+ROW()-2))=Rebalance!$D$35,INDIRECT(\"a\" & (VLOOKUP(Rebalance!$D$35,$F$2:$G$48,2,FALSE)+ROW()-2)),\"\")","v":{"$error":"#N/A"}},{"$f":"IF(INDIRECT(\"c\" & (VLOOKUP(Rebalance!$D$36,$F$2:$G$48,2,FALSE)+ROW()-2))=Rebalance!$D$36,INDIRECT(\"a\" & (VLOOKUP(Rebalance!$D$36,$F$2:$G$48,2,FALSE)+ROW()-2)),\"\")","v":{"$error":"#N/A"}},{"$f":"IF(INDIRECT(\"c\" & (VLOOKUP(Rebalance!$D$37,$F$2:$G$48,2,FALSE)+ROW()-2))=Rebalance!$D$37,INDIRECT(\"a\" & (VLOOKUP(Rebalance!$D$37,$F$2:$G$48,2,FALSE)+ROW()-2)),\"\")","v":{"$error":"#N/A"}},{"$f":"IF(INDIRECT(\"c\" & (VLOOKUP(Rebalance!$D$38,$F$2:$G$48,2,FALSE)+ROW()-2))=Rebalance!$D$38,INDIRECT(\"a\" & (VLOOKUP(Rebalance!$D$38,$F$2:$G$48,2,FALSE)+ROW()-2)),\"\")","v":{"$error":"#N/A"}},{"$f":"IF(INDIRECT(\"c\" & (VLOOKUP(Rebalance!$D$39,$F$2:$G$48,2,FALSE)+ROW()-2))=Rebalance!$D$39,INDIRECT(\"a\" & (VLOOKUP(Rebalance!$D$39,$F$2:$G$48,2,FALSE)+ROW()-2)),\"\")","v":{"$error":"#N/A"}},{"$f":"IF(INDIRECT(\"c\" & (VLOOKUP(Rebalance!$D$40,$F$2:$G$48,2,FALSE)+ROW()-2))=Rebalance!$D$40,INDIRECT(\"a\" & (VLOOKUP(Rebalance!$D$40,$F$2:$G$48,2,FALSE)+ROW()-2)),\"\")","v":{"$error":"#N/A"}},{"$f":"IF(INDIRECT(\"c\" & (VLOOKUP(Rebalance!$D$52,$F$2:$G$48,2,FALSE)+ROW()-2))=Rebalance!$D$52,INDIRECT(\"a\" & (VLOOKUP(Rebalance!$D$52,$F$2:$G$48,2,FALSE)+ROW()-2)),\"\")","v":{"$error":"#N/A"}},{"$f":"IF(INDIRECT(\"c\" & (VLOOKUP(Rebalance!$D$53,$F$2:$G$48,2,FALSE)+ROW()-2))=Rebalance!$D$53,INDIRECT(\"a\" & (VLOOKUP(Rebalance!$D$53,$F$2:$G$48,2,FALSE)+ROW()-2)),\"\")","v":{"$error":"#N/A"}},{"$f":"IF(INDIRECT(\"c\" & (VLOOKUP(Rebalance!$D$54,$F$2:$G$48,2,FALSE)+ROW()-2))=Rebalance!$D$54,INDIRECT(\"a\" & (VLOOKUP(Rebalance!$D$54,$F$2:$G$48,2,FALSE)+ROW()-2)),\"\")","v":{"$error":"#N/A"}},{"$f":"IF(INDIRECT(\"c\" & (VLOOKUP(Rebalance!$D$55,$F$2:$G$48,2,FALSE)+ROW()-2))=Rebalance!$D$55,INDIRECT(\"a\" & (VLOOKUP(Rebalance!$D$55,$F$2:$G$48,2,FALSE)+ROW()-2)),\"\")","v":{"$error":"#N/A"}},{"$f":"IF(INDIRECT(\"c\" & (VLOOKUP(Rebalance!$D$56,$F$2:$G$48,2,FALSE)+ROW()-2))=Rebalance!$D$56,INDIRECT(\"a\" & (VLOOKUP(Rebalance!$D$56,$F$2:$G$48,2,FALSE)+ROW()-2)),\"\")","v":{"$error":"#N/A"}},{"$f":"IF(INDIRECT(\"c\" & (VLOOKUP(Rebalance!$D$57,$F$2:$G$48,2,FALSE)+ROW()-2))=Rebalance!$D$57,INDIRECT(\"a\" & (VLOOKUP(Rebalance!$D$57,$F$2:$G$48,2,FALSE)+ROW()-2)),\"\")","v":{"$error":"#N/A"}},{"$f":"IF(INDIRECT(\"c\" & (VLOOKUP(Rebalance!$D$58,$F$2:$G$48,2,FALSE)+ROW()-2))=Rebalance!$D$58,INDIRECT(\"a\" & (VLOOKUP(Rebalance!$D$58,$F$2:$G$48,2,FALSE)+ROW()-2)),\"\")","v":{"$error":"#N/A"}},{"$f":"IF(INDIRECT(\"c\" & (VLOOKUP(Rebalance!$D$59,$F$2:$G$48,2,FALSE)+ROW()-2))=Rebalance!$D$59,INDIRECT(\"a\" & (VLOOKUP(Rebalance!$D$59,$F$2:$G$48,2,FALSE)+ROW()-2)),\"\")","v":{"$error":"#N/A"}},{"$f":"IF(INDIRECT(\"c\" & (VLOOKUP(Rebalance!$D$60,$F$2:$G$48,2,FALSE)+ROW()-2))=Rebalance!$D$60,INDIRECT(\"a\" & (VLOOKUP(Rebalance!$D$60,$F$2:$G$48,2,FALSE)+ROW()-2)),\"\")","v":{"$error":"#N/A"}},{"$f":"IF(INDIRECT(\"c\" & (VLOOKUP(Rebalance!$D$61,$F$2:$G$48,2,FALSE)+ROW()-2))=Rebalance!$D$61,INDIRECT(\"a\" & (VLOOKUP(Rebalance!$D$61,$F$2:$G$48,2,FALSE)+ROW()-2)),\"\")","v":{"$error":"#N/A"}},{"$f":"IF(INDIRECT(\"c\" & (VLOOKUP(Rebalance!$D$62,$F$2:$G$48,2,FALSE)+ROW()-2))=Rebalance!$D$62,INDIRECT(\"a\" & (VLOOKUP(Rebalance!$D$62,$F$2:$G$48,2,FALSE)+ROW()-2)),\"\")","v":{"$error":"#N/A"}},{"$f":"IF(INDIRECT(\"c\" & (VLOOKUP(Rebalance!$D$63,$F$2:$G$48,2,FALSE)+ROW()-2))=Rebalance!$D$63,INDIRECT(\"a\" & (VLOOKUP(Rebalance!$D$63,$F$2:$G$48,2,FALSE)+ROW()-2)),\"\")","v":{"$error":"#N/A"}},{"$f":"IF(INDIRECT(\"c\" & (VLOOKUP(Rebalance!$D$64,$F$2:$G$48,2,FALSE)+ROW()-2))=Rebalance!$D$64,INDIRECT(\"a\" & (VLOOKUP(Rebalance!$D$64,$F$2:$G$48,2,FALSE)+ROW()-2)),\"\")","v":{"$error":"#N/A"}},{"$f":"IF(INDIRECT(\"c\" & (VLOOKUP(Rebalance!$D$65,$F$2:$G$48,2,FALSE)+ROW()-2))=Rebalance!$D$65,INDIRECT(\"a\" & (VLOOKUP(Rebalance!$D$65,$F$2:$G$48,2,FALSE)+ROW()-2)),\"\")","v":{"$error":"#N/A"}},{"$f":"IF(INDIRECT(\"c\" & (VLOOKUP(Rebalance!$D$66,$F$2:$G$48,2,FALSE)+ROW()-2))=Rebalance!$D$66,INDIRECT(\"a\" & (VLOOKUP(Rebalance!$D$66,$F$2:$G$48,2,FALSE)+ROW()-2)),\"\")","v":{"$error":"#N/A"}}]
["Liberty Property Fund","ZZCPRP","LibertyGroup",{"$f":"ROW()","v":302},null,null,{"$f":"VLOOKUP(F302,$C$2:$D$599,2,FALSE)","v":{"$error":"#N/A"}},{"$f":"IF(INDIRECT(\"c\" & (VLOOKUP(Rebalance!$D$26,$F$2:$G$48,2,FALSE)+ROW()-2))=Rebalance!$D$26,INDIRECT(\"a\" & (VLOOKUP(Rebalance!$D$26,$F$2:$G$48,2,FALSE)+ROW()-2)),\"\")","v":{"$error":"#N/A"}},{"$f":"IF(INDIRECT(\"c\" & (VLOOKUP(Rebalance!$D$27,$F$2:$G$48,2,FALSE)+ROW()-2))=Rebalance!$D$27,INDIRECT(\"a\" & (VLOOKUP(Rebalance!$D$27,$F$2:$G$48,2,FALSE)+ROW()-2)),\"\")","v":{"$error":"#N/A"}},{"$f":"IF(INDIRECT(\"c\" & (VLOOKUP(Rebalance!$D$28,$F$2:$G$48,2,FALSE)+ROW()-2))=Rebalance!$D$28,INDIRECT(\"a\" & (VLOOKUP(Rebalance!$D$28,$F$2:$G$48,2,FALSE)+ROW()-2)),\"\")","v":{"$error":"#N/A"}},{"$f":"IF(INDIRECT(\"c\" & (VLOOKUP(Rebalance!$D$29,$F$2:$G$48,2,FALSE)+ROW()-2))=Rebalance!$D$29,INDIRECT(\"a\" & (VLOOKUP(Rebalance!$D$29,$F$2:$G$48,2,FALSE)+ROW()-2)),\"\")","v":{"$error":"#N/A"}},{"$f":"IF(INDIRECT(\"c\" & (VLOOKUP(Rebalance!$D$30,$F$2:$G$48,2,FALSE)+ROW()-2))=Rebalance!$D$30,INDIRECT(\"a\" & (VLOOKUP(Rebalance!$D$30,$F$2:$G$48,2,FALSE)+ROW()-2)),\"\")","v":{"$error":"#N/A"}},{"$f":"IF(INDIRECT(\"c\" & (VLOOKUP(Rebalance!$D$31,$F$2:$G$48,2,FALSE)+ROW()-2))=Rebalance!$D$31,INDIRECT(\"a\" & (VLOOKUP(Rebalance!$D$31,$F$2:$G$48,2,FALSE)+ROW()-2)),\"\")","v":{"$error":"#N/A"}},{"$f":"IF(INDIRECT(\"c\" & (VLOOKUP(Rebalance!$D$32,$F$2:$G$48,2,FALSE)+ROW()-2))=Rebalance!$D$32,INDIRECT(\"a\" & (VLOOKUP(Rebalance!$D$32,$F$2:$G$48,2,FALSE)+ROW()-2)),\"\")","v":{"$error":"#N/A"}},{"$f":"IF(INDIRECT(\"c\" & (VLOOKUP(Rebalance!$D$33,$F$2:$G$48,2,FALSE)+ROW()-2))=Rebalance!$D$33,INDIRECT(\"a\" & (VLOOKUP(Rebalance!$D$33,$F$2:$G$48,2,FALSE)+ROW()-2)),\"\")","v":{"$error":"#N/A"}},{"$f":"IF(INDIRECT(\"c\" & (VLOOKUP(Rebalance!$D$34,$F$2:$G$48,2,FALSE)+ROW()-2))=Rebalance!$D$34,INDIRECT(\"a\" & (VLOOKUP(Rebalance!$D$34,$F$2:$G$48,2,FALSE)+ROW()-2)),\"\")","v":{"$error":"#N/A"}},{"$f":"IF(INDIRECT(\"c\" & (VLOOKUP(Rebalance!$D$35,$F$2:$G$48,2,FALSE)+ROW()-2))=Rebalance!$D$35,INDIRECT(\"a\" & (VLOOKUP(Rebalance!$D$35,$F$2:$G$48,2,FALSE)+ROW()-2)),\"\")","v":{"$error":"#N/A"}},{"$f":"IF(INDIRECT(\"c\" & (VLOOKUP(Rebalance!$D$36,$F$2:$G$48,2,FALSE)+ROW()-2))=Rebalance!$D$36,INDIRECT(\"a\" & (VLOOKUP(Rebalance!$D$36,$F$2:$G$48,2,FALSE)+ROW()-2)),\"\")","v":{"$error":"#N/A"}},{"$f":"IF(INDIRECT(\"c\" & (VLOOKUP(Rebalance!$D$37,$F$2:$G$48,2,FALSE)+ROW()-2))=Rebalance!$D$37,INDIRECT(\"a\" & (VLOOKUP(Rebalance!$D$37,$F$2:$G$48,2,FALSE)+ROW()-2)),\"\")","v":{"$error":"#N/A"}},{"$f":"IF(INDIRECT(\"c\" & (VLOOKUP(Rebalance!$D$38,$F$2:$G$48,2,FALSE)+ROW()-2))=Rebalance!$D$38,INDIRECT(\"a\" & (VLOOKUP(Rebalance!$D$38,$F$2:$G$48,2,FALSE)+ROW()-2)),\"\")","v":{"$error":"#N/A"}},{"$f":"IF(INDIRECT(\"c\" & (VLOOKUP(Rebalance!$D$39,$F$2:$G$48,2,FALSE)+ROW()-2))=Rebalance!$D$39,INDIRECT(\"a\" & (VLOOKUP(Rebalance!$D$39,$F$2:$G$48,2,FALSE)+ROW()-2)),\"\")","v":{"$error":"#N/A"}},{"$f":"IF(INDIRECT(\"c\" & (VLOOKUP(Rebalance!$D$40,$F$2:$G$48,2,FALSE)+ROW()-2))=Rebalance!$D$40,INDIRECT(\"a\" & (VLOOKUP(Rebalance!$D$40,$F$2:$G$48,2,FALSE)+ROW()-2)),\"\")","v":{"$error":"#N/A"}},{"$f":"IF(INDIRECT(\"c\" & (VLOOKUP(Rebalance!$D$52,$F$2:$G$48,2,FALSE)+ROW()-2))=Rebalance!$D$52,INDIRECT(\"a\" & (VLOOKUP(Rebalance!$D$52,$F$2:$G$48,2,FALSE)+ROW()-2)),\"\")","v":{"$error":"#N/A"}},{"$f":"IF(INDIRECT(\"c\" & (VLOOKUP(Rebalance!$D$53,$F$2:$G$48,2,FALSE)+ROW()-2))=Rebalance!$D$53,INDIRECT(\"a\" & (VLOOKUP(Rebalance!$D$53,$F$2:$G$48,2,FALSE)+ROW()-2)),\"\")","v":{"$error":"#N/A"}},{"$f":"IF(INDIRECT(\"c\" & (VLOOKUP(Rebalance!$D$54,$F$2:$G$48,2,FALSE)+ROW()-2))=Rebalance!$D$54,INDIRECT(\"a\" & (VLOOKUP(Rebalance!$D$54,$F$2:$G$48,2,FALSE)+ROW()-2)),\"\")","v":{"$error":"#N/A"}},{"$f":"IF(INDIRECT(\"c\" & (VLOOKUP(Rebalance!$D$55,$F$2:$G$48,2,FALSE)+ROW()-2))=Rebalance!$D$55,INDIRECT(\"a\" & (VLOOKUP(Rebalance!$D$55,$F$2:$G$48,2,FALSE)+ROW()-2)),\"\")","v":{"$error":"#N/A"}},{"$f":"IF(INDIRECT(\"c\" & (VLOOKUP(Rebalance!$D$56,$F$2:$G$48,2,FALSE)+ROW()-2))=Rebalance!$D$56,INDIRECT(\"a\" & (VLOOKUP(Rebalance!$D$56,$F$2:$G$48,2,FALSE)+ROW()-2)),\"\")","v":{"$error":"#N/A"}},{"$f":"IF(INDIRECT(\"c\" & (VLOOKUP(Rebalance!$D$57,$F$2:$G$48,2,FALSE)+ROW()-2))=Rebalance!$D$57,INDIRECT(\"a\" & (VLOOKUP(Rebalance!$D$57,$F$2:$G$48,2,FALSE)+ROW()-2)),\"\")","v":{"$error":"#N/A"}},{"$f":"IF(INDIRECT(\"c\" & (VLOOKUP(Rebalance!$D$58,$F$2:$G$48,2,FALSE)+ROW()-2))=Rebalance!$D$58,INDIRECT(\"a\" & (VLOOKUP(Rebalance!$D$58,$F$2:$G$48,2,FALSE)+ROW()-2)),\"\")","v":{"$error":"#N/A"}},{"$f":"IF(INDIRECT(\"c\" & (VLOOKUP(Rebalance!$D$59,$F$2:$G$48,2,FALSE)+ROW()-2))=Rebalance!$D$59,INDIRECT(\"a\" & (VLOOKUP(Rebalance!$D$59,$F$2:$G$48,2,FALSE)+ROW()-2)),\"\")","v":{"$error":"#N/A"}},{"$f":"IF(INDIRECT(\"c\" & (VLOOKUP(Rebalance!$D$60,$F$2:$G$48,2,FALSE)+ROW()-2))=Rebalance!$D$60,INDIRECT(\"a\" & (VLOOKUP(Rebalance!$D$60,$F$2:$G$48,2,FALSE)+ROW()-2)),\"\")","v":{"$error":"#N/A"}},{"$f":"IF(INDIRECT(\"c\" & (VLOOKUP(Rebalance!$D$61,$F$2:$G$48,2,FALSE)+ROW()-2))=Rebalance!$D$61,INDIRECT(\"a\" & (VLOOKUP(Rebalance!$D$61,$F$2:$G$48,2,FALSE)+ROW()-2)),\"\")","v":{"$error":"#N/A"}},{"$f":"IF(INDIRECT(\"c\" & (VLOOKUP(Rebalance!$D$62,$F$2:$G$48,2,FALSE)+ROW()-2))=Rebalance!$D$62,INDIRECT(\"a\" & (VLOOKUP(Rebalance!$D$62,$F$2:$G$48,2,FALSE)+ROW()-2)),\"\")","v":{"$error":"#N/A"}},{"$f":"IF(INDIRECT(\"c\" & (VLOOKUP(Rebalance!$D$63,$F$2:$G$48,2,FALSE)+ROW()-2))=Rebalance!$D$63,INDIRECT(\"a\" & (VLOOKUP(Rebalance!$D$63,$F$2:$G$48,2,FALSE)+ROW()-2)),\"\")","v":{"$error":"#N/A"}},{"$f":"IF(INDIRECT(\"c\" & (VLOOKUP(Rebalance!$D$64,$F$2:$G$48,2,FALSE)+ROW()-2))=Rebalance!$D$64,INDIRECT(\"a\" & (VLOOKUP(Rebalance!$D$64,$F$2:$G$48,2,FALSE)+ROW()-2)),\"\")","v":{"$error":"#N/A"}},{"$f":"IF(INDIRECT(\"c\" & (VLOOKUP(Rebalance!$D$65,$F$2:$G$48,2,FALSE)+ROW()-2))=Rebalance!$D$65,INDIRECT(\"a\" & (VLOOKUP(Rebalance!$D$65,$F$2:$G$48,2,FALSE)+ROW()-2)),\"\")","v":{"$error":"#N/A"}},{"$f":"IF(INDIRECT(\"c\" & (VLOOKUP(Rebalance!$D$66,$F$2:$G$48,2,FALSE)+ROW()-2))=Rebalance!$D$66,INDIRECT(\"a\" & (VLOOKUP(Rebalance!$D$66,$F$2:$G$48,2,FALSE)+ROW()-2)),\"\")","v":{"$error":"#N/A"}}]
["Liberty Real Estate Property Fund C","ZZREPC","LibertyGroup",{"$f":"ROW()","v":303},null,null,{"$f":"VLOOKUP(F303,$C$2:$D$599,2,FALSE)","v":{"$error":"#N/A"}},{"$f":"IF(INDIRECT(\"c\" & (VLOOKUP(Rebalance!$D$26,$F$2:$G$48,2,FALSE)+ROW()-2))=Rebalance!$D$26,INDIRECT(\"a\" & (VLOOKUP(Rebalance!$D$26,$F$2:$G$48,2,FALSE)+ROW()-2)),\"\")","v":{"$error":"#N/A"}},{"$f":"IF(INDIRECT(\"c\" & (VLOOKUP(Rebalance!$D$27,$F$2:$G$48,2,FALSE)+ROW()-2))=Rebalance!$D$27,INDIRECT(\"a\" & (VLOOKUP(Rebalance!$D$27,$F$2:$G$48,2,FALSE)+ROW()-2)),\"\")","v":{"$error":"#N/A"}},{"$f":"IF(INDIRECT(\"c\" & (VLOOKUP(Rebalance!$D$28,$F$2:$G$48,2,FALSE)+ROW()-2))=Rebalance!$D$28,INDIRECT(\"a\" & (VLOOKUP(Rebalance!$D$28,$F$2:$G$48,2,FALSE)+ROW()-2)),\"\")","v":{"$error":"#N/A"}},{"$f":"IF(INDIRECT(\"c\" & (VLOOKUP(Rebalance!$D$29,$F$2:$G$48,2,FALSE)+ROW()-2))=Rebalance!$D$29,INDIRECT(\"a\" & (VLOOKUP(Rebalance!$D$29,$F$2:$G$48,2,FALSE)+ROW()-2)),\"\")","v":{"$error":"#N/A"}},{"$f":"IF(INDIRECT(\"c\" & (VLOOKUP(Rebalance!$D$30,$F$2:$G$48,2,FALSE)+ROW()-2))=Rebalance!$D$30,INDIRECT(\"a\" & (VLOOKUP(Rebalance!$D$30,$F$2:$G$48,2,FALSE)+ROW()-2)),\"\")","v":{"$error":"#N/A"}},{"$f":"IF(INDIRECT(\"c\" & (VLOOKUP(Rebalance!$D$31,$F$2:$G$48,2,FALSE)+ROW()-2))=Rebalance!$D$31,INDIRECT(\"a\" & (VLOOKUP(Rebalance!$D$31,$F$2:$G$48,2,FALSE)+ROW()-2)),\"\")","v":{"$error":"#N/A"}},{"$f":"IF(INDIRECT(\"c\" & (VLOOKUP(Rebalance!$D$32,$F$2:$G$48,2,FALSE)+ROW()-2))=Rebalance!$D$32,INDIRECT(\"a\" & (VLOOKUP(Rebalance!$D$32,$F$2:$G$48,2,FALSE)+ROW()-2)),\"\")","v":{"$error":"#N/A"}},{"$f":"IF(INDIRECT(\"c\" & (VLOOKUP(Rebalance!$D$33,$F$2:$G$48,2,FALSE)+ROW()-2))=Rebalance!$D$33,INDIRECT(\"a\" & (VLOOKUP(Rebalance!$D$33,$F$2:$G$48,2,FALSE)+ROW()-2)),\"\")","v":{"$error":"#N/A"}},{"$f":"IF(INDIRECT(\"c\" & (VLOOKUP(Rebalance!$D$34,$F$2:$G$48,2,FALSE)+ROW()-2))=Rebalance!$D$34,INDIRECT(\"a\" & (VLOOKUP(Rebalance!$D$34,$F$2:$G$48,2,FALSE)+ROW()-2)),\"\")","v":{"$error":"#N/A"}},{"$f":"IF(INDIRECT(\"c\" & (VLOOKUP(Rebalance!$D$35,$F$2:$G$48,2,FALSE)+ROW()-2))=Rebalance!$D$35,INDIRECT(\"a\" & (VLOOKUP(Rebalance!$D$35,$F$2:$G$48,2,FALSE)+ROW()-2)),\"\")","v":{"$error":"#N/A"}},{"$f":"IF(INDIRECT(\"c\" & (VLOOKUP(Rebalance!$D$36,$F$2:$G$48,2,FALSE)+ROW()-2))=Rebalance!$D$36,INDIRECT(\"a\" & (VLOOKUP(Rebalance!$D$36,$F$2:$G$48,2,FALSE)+ROW()-2)),\"\")","v":{"$error":"#N/A"}},{"$f":"IF(INDIRECT(\"c\" & (VLOOKUP(Rebalance!$D$37,$F$2:$G$48,2,FALSE)+ROW()-2))=Rebalance!$D$37,INDIRECT(\"a\" & (VLOOKUP(Rebalance!$D$37,$F$2:$G$48,2,FALSE)+ROW()-2)),\"\")","v":{"$error":"#N/A"}},{"$f":"IF(INDIRECT(\"c\" & (VLOOKUP(Rebalance!$D$38,$F$2:$G$48,2,FALSE)+ROW()-2))=Rebalance!$D$38,INDIRECT(\"a\" & (VLOOKUP(Rebalance!$D$38,$F$2:$G$48,2,FALSE)+ROW()-2)),\"\")","v":{"$error":"#N/A"}},{"$f":"IF(INDIRECT(\"c\" & (VLOOKUP(Rebalance!$D$39,$F$2:$G$48,2,FALSE)+ROW()-2))=Rebalance!$D$39,INDIRECT(\"a\" & (VLOOKUP(Rebalance!$D$39,$F$2:$G$48,2,FALSE)+ROW()-2)),\"\")","v":{"$error":"#N/A"}},{"$f":"IF(INDIRECT(\"c\" & (VLOOKUP(Rebalance!$D$40,$F$2:$G$48,2,FALSE)+ROW()-2))=Rebalance!$D$40,INDIRECT(\"a\" & (VLOOKUP(Rebalance!$D$40,$F$2:$G$48,2,FALSE)+ROW()-2)),\"\")","v":{"$error":"#N/A"}},{"$f":"IF(INDIRECT(\"c\" & (VLOOKUP(Rebalance!$D$52,$F$2:$G$48,2,FALSE)+ROW()-2))=Rebalance!$D$52,INDIRECT(\"a\" & (VLOOKUP(Rebalance!$D$52,$F$2:$G$48,2,FALSE)+ROW()-2)),\"\")","v":{"$error":"#N/A"}},{"$f":"IF(INDIRECT(\"c\" & (VLOOKUP(Rebalance!$D$53,$F$2:$G$48,2,FALSE)+ROW()-2))=Rebalance!$D$53,INDIRECT(\"a\" & (VLOOKUP(Rebalance!$D$53,$F$2:$G$48,2,FALSE)+ROW()-2)),\"\")","v":{"$error":"#N/A"}},{"$f":"IF(INDIRECT(\"c\" & (VLOOKUP(Rebalance!$D$54,$F$2:$G$48,2,FALSE)+ROW()-2))=Rebalance!$D$54,INDIRECT(\"a\" & (VLOOKUP(Rebalance!$D$54,$F$2:$G$48,2,FALSE)+ROW()-2)),\"\")","v":{"$error":"#N/A"}},{"$f":"IF(INDIRECT(\"c\" & (VLOOKUP(Rebalance!$D$55,$F$2:$G$48,2,FALSE)+ROW()-2))=Rebalance!$D$55,INDIRECT(\"a\" & (VLOOKUP(Rebalance!$D$55,$F$2:$G$48,2,FALSE)+ROW()-2)),\"\")","v":{"$error":"#N/A"}},{"$f":"IF(INDIRECT(\"c\" & (VLOOKUP(Rebalance!$D$56,$F$2:$G$48,2,FALSE)+ROW()-2))=Rebalance!$D$56,INDIRECT(\"a\" & (VLOOKUP(Rebalance!$D$56,$F$2:$G$48,2,FALSE)+ROW()-2)),\"\")","v":{"$error":"#N/A"}},{"$f":"IF(INDIRECT(\"c\" & (VLOOKUP(Rebalance!$D$57,$F$2:$G$48,2,FALSE)+ROW()-2))=Rebalance!$D$57,INDIRECT(\"a\" & (VLOOKUP(Rebalance!$D$57,$F$2:$G$48,2,FALSE)+ROW()-2)),\"\")","v":{"$error":"#N/A"}},{"$f":"IF(INDIRECT(\"c\" & (VLOOKUP(Rebalance!$D$58,$F$2:$G$48,2,FALSE)+ROW()-2))=Rebalance!$D$58,INDIRECT(\"a\" & (VLOOKUP(Rebalance!$D$58,$F$2:$G$48,2,FALSE)+ROW()-2)),\"\")","v":{"$error":"#N/A"}},{"$f":"IF(INDIRECT(\"c\" & (VLOOKUP(Rebalance!$D$59,$F$2:$G$48,2,FALSE)+ROW()-2))=Rebalance!$D$59,INDIRECT(\"a\" & (VLOOKUP(Rebalance!$D$59,$F$2:$G$48,2,FALSE)+ROW()-2)),\"\")","v":{"$error":"#N/A"}},{"$f":"IF(INDIRECT(\"c\" & (VLOOKUP(Rebalance!$D$60,$F$2:$G$48,2,FALSE)+ROW()-2))=Rebalance!$D$60,INDIRECT(\"a\" & (VLOOKUP(Rebalance!$D$60,$F$2:$G$48,2,FALSE)+ROW()-2)),\"\")","v":{"$error":"#N/A"}},{"$f":"IF(INDIRECT(\"c\" & (VLOOKUP(Rebalance!$D$61,$F$2:$G$48,2,FALSE)+ROW()-2))=Rebalance!$D$61,INDIRECT(\"a\" & (VLOOKUP(Rebalance!$D$61,$F$2:$G$48,2,FALSE)+ROW()-2)),\"\")","v":{"$error":"#N/A"}},{"$f":"IF(INDIRECT(\"c\" & (VLOOKUP(Rebalance!$D$62,$F$2:$G$48,2,FALSE)+ROW()-2))=Rebalance!$D$62,INDIRECT(\"a\" & (VLOOKUP(Rebalance!$D$62,$F$2:$G$48,2,FALSE)+ROW()-2)),\"\")","v":{"$error":"#N/A"}},{"$f":"IF(INDIRECT(\"c\" & (VLOOKUP(Rebalance!$D$63,$F$2:$G$48,2,FALSE)+ROW()-2))=Rebalance!$D$63,INDIRECT(\"a\" & (VLOOKUP(Rebalance!$D$63,$F$2:$G$48,2,FALSE)+ROW()-2)),\"\")","v":{"$error":"#N/A"}},{"$f":"IF(INDIRECT(\"c\" & (VLOOKUP(Rebalance!$D$64,$F$2:$G$48,2,FALSE)+ROW()-2))=Rebalance!$D$64,INDIRECT(\"a\" & (VLOOKUP(Rebalance!$D$64,$F$2:$G$48,2,FALSE)+ROW()-2)),\"\")","v":{"$error":"#N/A"}},{"$f":"IF(INDIRECT(\"c\" & (VLOOKUP(Rebalance!$D$65,$F$2:$G$48,2,FALSE)+ROW()-2))=Rebalance!$D$65,INDIRECT(\"a\" & (VLOOKUP(Rebalance!$D$65,$F$2:$G$48,2,FALSE)+ROW()-2)),\"\")","v":{"$error":"#N/A"}},{"$f":"IF(INDIRECT(\"c\" & (VLOOKUP(Rebalance!$D$66,$F$2:$G$48,2,FALSE)+ROW()-2))=Rebalance!$D$66,INDIRECT(\"a\" & (VLOOKUP(Rebalance!$D$66,$F$2:$G$48,2,FALSE)+ROW()-2)),\"\")","v":{"$error":"#N/A"}}]
["Marriott Balanced Fund of Fund C","MPFC","Marriott Unit Trust Management Company Ltd",{"$f":"ROW()","v":304},null,null,{"$f":"VLOOKUP(F304,$C$2:$D$599,2,FALSE)","v":{"$error":"#N/A"}},{"$f":"IF(INDIRECT(\"c\" & (VLOOKUP(Rebalance!$D$26,$F$2:$G$48,2,FALSE)+ROW()-2))=Rebalance!$D$26,INDIRECT(\"a\" & (VLOOKUP(Rebalance!$D$26,$F$2:$G$48,2,FALSE)+ROW()-2)),\"\")","v":{"$error":"#N/A"}},{"$f":"IF(INDIRECT(\"c\" & (VLOOKUP(Rebalance!$D$27,$F$2:$G$48,2,FALSE)+ROW()-2))=Rebalance!$D$27,INDIRECT(\"a\" & (VLOOKUP(Rebalance!$D$27,$F$2:$G$48,2,FALSE)+ROW()-2)),\"\")","v":{"$error":"#N/A"}},{"$f":"IF(INDIRECT(\"c\" & (VLOOKUP(Rebalance!$D$28,$F$2:$G$48,2,FALSE)+ROW()-2))=Rebalance!$D$28,INDIRECT(\"a\" & (VLOOKUP(Rebalance!$D$28,$F$2:$G$48,2,FALSE)+ROW()-2)),\"\")","v":{"$error":"#N/A"}},{"$f":"IF(INDIRECT(\"c\" & (VLOOKUP(Rebalance!$D$29,$F$2:$G$48,2,FALSE)+ROW()-2))=Rebalance!$D$29,INDIRECT(\"a\" & (VLOOKUP(Rebalance!$D$29,$F$2:$G$48,2,FALSE)+ROW()-2)),\"\")","v":{"$error":"#N/A"}},{"$f":"IF(INDIRECT(\"c\" & (VLOOKUP(Rebalance!$D$30,$F$2:$G$48,2,FALSE)+ROW()-2))=Rebalance!$D$30,INDIRECT(\"a\" & (VLOOKUP(Rebalance!$D$30,$F$2:$G$48,2,FALSE)+ROW()-2)),\"\")","v":{"$error":"#N/A"}},{"$f":"IF(INDIRECT(\"c\" & (VLOOKUP(Rebalance!$D$31,$F$2:$G$48,2,FALSE)+ROW()-2))=Rebalance!$D$31,INDIRECT(\"a\" & (VLOOKUP(Rebalance!$D$31,$F$2:$G$48,2,FALSE)+ROW()-2)),\"\")","v":{"$error":"#N/A"}},{"$f":"IF(INDIRECT(\"c\" & (VLOOKUP(Rebalance!$D$32,$F$2:$G$48,2,FALSE)+ROW()-2))=Rebalance!$D$32,INDIRECT(\"a\" & (VLOOKUP(Rebalance!$D$32,$F$2:$G$48,2,FALSE)+ROW()-2)),\"\")","v":{"$error":"#N/A"}},{"$f":"IF(INDIRECT(\"c\" & (VLOOKUP(Rebalance!$D$33,$F$2:$G$48,2,FALSE)+ROW()-2))=Rebalance!$D$33,INDIRECT(\"a\" & (VLOOKUP(Rebalance!$D$33,$F$2:$G$48,2,FALSE)+ROW()-2)),\"\")","v":{"$error":"#N/A"}},{"$f":"IF(INDIRECT(\"c\" & (VLOOKUP(Rebalance!$D$34,$F$2:$G$48,2,FALSE)+ROW()-2))=Rebalance!$D$34,INDIRECT(\"a\" & (VLOOKUP(Rebalance!$D$34,$F$2:$G$48,2,FALSE)+ROW()-2)),\"\")","v":{"$error":"#N/A"}},{"$f":"IF(INDIRECT(\"c\" & (VLOOKUP(Rebalance!$D$35,$F$2:$G$48,2,FALSE)+ROW()-2))=Rebalance!$D$35,INDIRECT(\"a\" & (VLOOKUP(Rebalance!$D$35,$F$2:$G$48,2,FALSE)+ROW()-2)),\"\")","v":{"$error":"#N/A"}},{"$f":"IF(INDIRECT(\"c\" & (VLOOKUP(Rebalance!$D$36,$F$2:$G$48,2,FALSE)+ROW()-2))=Rebalance!$D$36,INDIRECT(\"a\" & (VLOOKUP(Rebalance!$D$36,$F$2:$G$48,2,FALSE)+ROW()-2)),\"\")","v":{"$error":"#N/A"}},{"$f":"IF(INDIRECT(\"c\" & (VLOOKUP(Rebalance!$D$37,$F$2:$G$48,2,FALSE)+ROW()-2))=Rebalance!$D$37,INDIRECT(\"a\" & (VLOOKUP(Rebalance!$D$37,$F$2:$G$48,2,FALSE)+ROW()-2)),\"\")","v":{"$error":"#N/A"}},{"$f":"IF(INDIRECT(\"c\" & (VLOOKUP(Rebalance!$D$38,$F$2:$G$48,2,FALSE)+ROW()-2))=Rebalance!$D$38,INDIRECT(\"a\" & (VLOOKUP(Rebalance!$D$38,$F$2:$G$48,2,FALSE)+ROW()-2)),\"\")","v":{"$error":"#N/A"}},{"$f":"IF(INDIRECT(\"c\" & (VLOOKUP(Rebalance!$D$39,$F$2:$G$48,2,FALSE)+ROW()-2))=Rebalance!$D$39,INDIRECT(\"a\" & (VLOOKUP(Rebalance!$D$39,$F$2:$G$48,2,FALSE)+ROW()-2)),\"\")","v":{"$error":"#N/A"}},{"$f":"IF(INDIRECT(\"c\" & (VLOOKUP(Rebalance!$D$40,$F$2:$G$48,2,FALSE)+ROW()-2))=Rebalance!$D$40,INDIRECT(\"a\" & (VLOOKUP(Rebalance!$D$40,$F$2:$G$48,2,FALSE)+ROW()-2)),\"\")","v":{"$error":"#N/A"}},{"$f":"IF(INDIRECT(\"c\" & (VLOOKUP(Rebalance!$D$52,$F$2:$G$48,2,FALSE)+ROW()-2))=Rebalance!$D$52,INDIRECT(\"a\" & (VLOOKUP(Rebalance!$D$52,$F$2:$G$48,2,FALSE)+ROW()-2)),\"\")","v":{"$error":"#N/A"}},{"$f":"IF(INDIRECT(\"c\" & (VLOOKUP(Rebalance!$D$53,$F$2:$G$48,2,FALSE)+ROW()-2))=Rebalance!$D$53,INDIRECT(\"a\" & (VLOOKUP(Rebalance!$D$53,$F$2:$G$48,2,FALSE)+ROW()-2)),\"\")","v":{"$error":"#N/A"}},{"$f":"IF(INDIRECT(\"c\" & (VLOOKUP(Rebalance!$D$54,$F$2:$G$48,2,FALSE)+ROW()-2))=Rebalance!$D$54,INDIRECT(\"a\" & (VLOOKUP(Rebalance!$D$54,$F$2:$G$48,2,FALSE)+ROW()-2)),\"\")","v":{"$error":"#N/A"}},{"$f":"IF(INDIRECT(\"c\" & (VLOOKUP(Rebalance!$D$55,$F$2:$G$48,2,FALSE)+ROW()-2))=Rebalance!$D$55,INDIRECT(\"a\" & (VLOOKUP(Rebalance!$D$55,$F$2:$G$48,2,FALSE)+ROW()-2)),\"\")","v":{"$error":"#N/A"}},{"$f":"IF(INDIRECT(\"c\" & (VLOOKUP(Rebalance!$D$56,$F$2:$G$48,2,FALSE)+ROW()-2))=Rebalance!$D$56,INDIRECT(\"a\" & (VLOOKUP(Rebalance!$D$56,$F$2:$G$48,2,FALSE)+ROW()-2)),\"\")","v":{"$error":"#N/A"}},{"$f":"IF(INDIRECT(\"c\" & (VLOOKUP(Rebalance!$D$57,$F$2:$G$48,2,FALSE)+ROW()-2))=Rebalance!$D$57,INDIRECT(\"a\" & (VLOOKUP(Rebalance!$D$57,$F$2:$G$48,2,FALSE)+ROW()-2)),\"\")","v":{"$error":"#N/A"}},{"$f":"IF(INDIRECT(\"c\" & (VLOOKUP(Rebalance!$D$58,$F$2:$G$48,2,FALSE)+ROW()-2))=Rebalance!$D$58,INDIRECT(\"a\" & (VLOOKUP(Rebalance!$D$58,$F$2:$G$48,2,FALSE)+ROW()-2)),\"\")","v":{"$error":"#N/A"}},{"$f":"IF(INDIRECT(\"c\" & (VLOOKUP(Rebalance!$D$59,$F$2:$G$48,2,FALSE)+ROW()-2))=Rebalance!$D$59,INDIRECT(\"a\" & (VLOOKUP(Rebalance!$D$59,$F$2:$G$48,2,FALSE)+ROW()-2)),\"\")","v":{"$error":"#N/A"}},{"$f":"IF(INDIRECT(\"c\" & (VLOOKUP(Rebalance!$D$60,$F$2:$G$48,2,FALSE)+ROW()-2))=Rebalance!$D$60,INDIRECT(\"a\" & (VLOOKUP(Rebalance!$D$60,$F$2:$G$48,2,FALSE)+ROW()-2)),\"\")","v":{"$error":"#N/A"}},{"$f":"IF(INDIRECT(\"c\" & (VLOOKUP(Rebalance!$D$61,$F$2:$G$48,2,FALSE)+ROW()-2))=Rebalance!$D$61,INDIRECT(\"a\" & (VLOOKUP(Rebalance!$D$61,$F$2:$G$48,2,FALSE)+ROW()-2)),\"\")","v":{"$error":"#N/A"}},{"$f":"IF(INDIRECT(\"c\" & (VLOOKUP(Rebalance!$D$62,$F$2:$G$48,2,FALSE)+ROW()-2))=Rebalance!$D$62,INDIRECT(\"a\" & (VLOOKUP(Rebalance!$D$62,$F$2:$G$48,2,FALSE)+ROW()-2)),\"\")","v":{"$error":"#N/A"}},{"$f":"IF(INDIRECT(\"c\" & (VLOOKUP(Rebalance!$D$63,$F$2:$G$48,2,FALSE)+ROW()-2))=Rebalance!$D$63,INDIRECT(\"a\" & (VLOOKUP(Rebalance!$D$63,$F$2:$G$48,2,FALSE)+ROW()-2)),\"\")","v":{"$error":"#N/A"}},{"$f":"IF(INDIRECT(\"c\" & (VLOOKUP(Rebalance!$D$64,$F$2:$G$48,2,FALSE)+ROW()-2))=Rebalance!$D$64,INDIRECT(\"a\" & (VLOOKUP(Rebalance!$D$64,$F$2:$G$48,2,FALSE)+ROW()-2)),\"\")","v":{"$error":"#N/A"}},{"$f":"IF(INDIRECT(\"c\" & (VLOOKUP(Rebalance!$D$65,$F$2:$G$48,2,FALSE)+ROW()-2))=Rebalance!$D$65,INDIRECT(\"a\" & (VLOOKUP(Rebalance!$D$65,$F$2:$G$48,2,FALSE)+ROW()-2)),\"\")","v":{"$error":"#N/A"}},{"$f":"IF(INDIRECT(\"c\" & (VLOOKUP(Rebalance!$D$66,$F$2:$G$48,2,FALSE)+ROW()-2))=Rebalance!$D$66,INDIRECT(\"a\" & (VLOOKUP(Rebalance!$D$66,$F$2:$G$48,2,FALSE)+ROW()-2)),\"\")","v":{"$error":"#N/A"}}]
["Marriott Core Income Fund Class C","MIFC","Marriott Unit Trust Management Company Ltd",{"$f":"ROW()","v":305},null,null,{"$f":"VLOOKUP(F305,$C$2:$D$599,2,FALSE)","v":{"$error":"#N/A"}},{"$f":"IF(INDIRECT(\"c\" & (VLOOKUP(Rebalance!$D$26,$F$2:$G$48,2,FALSE)+ROW()-2))=Rebalance!$D$26,INDIRECT(\"a\" & (VLOOKUP(Rebalance!$D$26,$F$2:$G$48,2,FALSE)+ROW()-2)),\"\")","v":{"$error":"#N/A"}},{"$f":"IF(INDIRECT(\"c\" & (VLOOKUP(Rebalance!$D$27,$F$2:$G$48,2,FALSE)+ROW()-2))=Rebalance!$D$27,INDIRECT(\"a\" & (VLOOKUP(Rebalance!$D$27,$F$2:$G$48,2,FALSE)+ROW()-2)),\"\")","v":{"$error":"#N/A"}},{"$f":"IF(INDIRECT(\"c\" & (VLOOKUP(Rebalance!$D$28,$F$2:$G$48,2,FALSE)+ROW()-2))=Rebalance!$D$28,INDIRECT(\"a\" & (VLOOKUP(Rebalance!$D$28,$F$2:$G$48,2,FALSE)+ROW()-2)),\"\")","v":{"$error":"#N/A"}},{"$f":"IF(INDIRECT(\"c\" & (VLOOKUP(Rebalance!$D$29,$F$2:$G$48,2,FALSE)+ROW()-2))=Rebalance!$D$29,INDIRECT(\"a\" & (VLOOKUP(Rebalance!$D$29,$F$2:$G$48,2,FALSE)+ROW()-2)),\"\")","v":{"$error":"#N/A"}},{"$f":"IF(INDIRECT(\"c\" & (VLOOKUP(Rebalance!$D$30,$F$2:$G$48,2,FALSE)+ROW()-2))=Rebalance!$D$30,INDIRECT(\"a\" & (VLOOKUP(Rebalance!$D$30,$F$2:$G$48,2,FALSE)+ROW()-2)),\"\")","v":{"$error":"#N/A"}},{"$f":"IF(INDIRECT(\"c\" & (VLOOKUP(Rebalance!$D$31,$F$2:$G$48,2,FALSE)+ROW()-2))=Rebalance!$D$31,INDIRECT(\"a\" & (VLOOKUP(Rebalance!$D$31,$F$2:$G$48,2,FALSE)+ROW()-2)),\"\")","v":{"$error":"#N/A"}},{"$f":"IF(INDIRECT(\"c\" & (VLOOKUP(Rebalance!$D$32,$F$2:$G$48,2,FALSE)+ROW()-2))=Rebalance!$D$32,INDIRECT(\"a\" & (VLOOKUP(Rebalance!$D$32,$F$2:$G$48,2,FALSE)+ROW()-2)),\"\")","v":{"$error":"#N/A"}},{"$f":"IF(INDIRECT(\"c\" & (VLOOKUP(Rebalance!$D$33,$F$2:$G$48,2,FALSE)+ROW()-2))=Rebalance!$D$33,INDIRECT(\"a\" & (VLOOKUP(Rebalance!$D$33,$F$2:$G$48,2,FALSE)+ROW()-2)),\"\")","v":{"$error":"#N/A"}},{"$f":"IF(INDIRECT(\"c\" & (VLOOKUP(Rebalance!$D$34,$F$2:$G$48,2,FALSE)+ROW()-2))=Rebalance!$D$34,INDIRECT(\"a\" & (VLOOKUP(Rebalance!$D$34,$F$2:$G$48,2,FALSE)+ROW()-2)),\"\")","v":{"$error":"#N/A"}},{"$f":"IF(INDIRECT(\"c\" & (VLOOKUP(Rebalance!$D$35,$F$2:$G$48,2,FALSE)+ROW()-2))=Rebalance!$D$35,INDIRECT(\"a\" & (VLOOKUP(Rebalance!$D$35,$F$2:$G$48,2,FALSE)+ROW()-2)),\"\")","v":{"$error":"#N/A"}},{"$f":"IF(INDIRECT(\"c\" & (VLOOKUP(Rebalance!$D$36,$F$2:$G$48,2,FALSE)+ROW()-2))=Rebalance!$D$36,INDIRECT(\"a\" & (VLOOKUP(Rebalance!$D$36,$F$2:$G$48,2,FALSE)+ROW()-2)),\"\")","v":{"$error":"#N/A"}},{"$f":"IF(INDIRECT(\"c\" & (VLOOKUP(Rebalance!$D$37,$F$2:$G$48,2,FALSE)+ROW()-2))=Rebalance!$D$37,INDIRECT(\"a\" & (VLOOKUP(Rebalance!$D$37,$F$2:$G$48,2,FALSE)+ROW()-2)),\"\")","v":{"$error":"#N/A"}},{"$f":"IF(INDIRECT(\"c\" & (VLOOKUP(Rebalance!$D$38,$F$2:$G$48,2,FALSE)+ROW()-2))=Rebalance!$D$38,INDIRECT(\"a\" & (VLOOKUP(Rebalance!$D$38,$F$2:$G$48,2,FALSE)+ROW()-2)),\"\")","v":{"$error":"#N/A"}},{"$f":"IF(INDIRECT(\"c\" & (VLOOKUP(Rebalance!$D$39,$F$2:$G$48,2,FALSE)+ROW()-2))=Rebalance!$D$39,INDIRECT(\"a\" & (VLOOKUP(Rebalance!$D$39,$F$2:$G$48,2,FALSE)+ROW()-2)),\"\")","v":{"$error":"#N/A"}},{"$f":"IF(INDIRECT(\"c\" & (VLOOKUP(Rebalance!$D$40,$F$2:$G$48,2,FALSE)+ROW()-2))=Rebalance!$D$40,INDIRECT(\"a\" & (VLOOKUP(Rebalance!$D$40,$F$2:$G$48,2,FALSE)+ROW()-2)),\"\")","v":{"$error":"#N/A"}},{"$f":"IF(INDIRECT(\"c\" & (VLOOKUP(Rebalance!$D$52,$F$2:$G$48,2,FALSE)+ROW()-2))=Rebalance!$D$52,INDIRECT(\"a\" & (VLOOKUP(Rebalance!$D$52,$F$2:$G$48,2,FALSE)+ROW()-2)),\"\")","v":{"$error":"#N/A"}},{"$f":"IF(INDIRECT(\"c\" & (VLOOKUP(Rebalance!$D$53,$F$2:$G$48,2,FALSE)+ROW()-2))=Rebalance!$D$53,INDIRECT(\"a\" & (VLOOKUP(Rebalance!$D$53,$F$2:$G$48,2,FALSE)+ROW()-2)),\"\")","v":{"$error":"#N/A"}},{"$f":"IF(INDIRECT(\"c\" & (VLOOKUP(Rebalance!$D$54,$F$2:$G$48,2,FALSE)+ROW()-2))=Rebalance!$D$54,INDIRECT(\"a\" & (VLOOKUP(Rebalance!$D$54,$F$2:$G$48,2,FALSE)+ROW()-2)),\"\")","v":{"$error":"#N/A"}},{"$f":"IF(INDIRECT(\"c\" & (VLOOKUP(Rebalance!$D$55,$F$2:$G$48,2,FALSE)+ROW()-2))=Rebalance!$D$55,INDIRECT(\"a\" & (VLOOKUP(Rebalance!$D$55,$F$2:$G$48,2,FALSE)+ROW()-2)),\"\")","v":{"$error":"#N/A"}},{"$f":"IF(INDIRECT(\"c\" & (VLOOKUP(Rebalance!$D$56,$F$2:$G$48,2,FALSE)+ROW()-2))=Rebalance!$D$56,INDIRECT(\"a\" & (VLOOKUP(Rebalance!$D$56,$F$2:$G$48,2,FALSE)+ROW()-2)),\"\")","v":{"$error":"#N/A"}},{"$f":"IF(INDIRECT(\"c\" & (VLOOKUP(Rebalance!$D$57,$F$2:$G$48,2,FALSE)+ROW()-2))=Rebalance!$D$57,INDIRECT(\"a\" & (VLOOKUP(Rebalance!$D$57,$F$2:$G$48,2,FALSE)+ROW()-2)),\"\")","v":{"$error":"#N/A"}},{"$f":"IF(INDIRECT(\"c\" & (VLOOKUP(Rebalance!$D$58,$F$2:$G$48,2,FALSE)+ROW()-2))=Rebalance!$D$58,INDIRECT(\"a\" & (VLOOKUP(Rebalance!$D$58,$F$2:$G$48,2,FALSE)+ROW()-2)),\"\")","v":{"$error":"#N/A"}},{"$f":"IF(INDIRECT(\"c\" & (VLOOKUP(Rebalance!$D$59,$F$2:$G$48,2,FALSE)+ROW()-2))=Rebalance!$D$59,INDIRECT(\"a\" & (VLOOKUP(Rebalance!$D$59,$F$2:$G$48,2,FALSE)+ROW()-2)),\"\")","v":{"$error":"#N/A"}},{"$f":"IF(INDIRECT(\"c\" & (VLOOKUP(Rebalance!$D$60,$F$2:$G$48,2,FALSE)+ROW()-2))=Rebalance!$D$60,INDIRECT(\"a\" & (VLOOKUP(Rebalance!$D$60,$F$2:$G$48,2,FALSE)+ROW()-2)),\"\")","v":{"$error":"#N/A"}},{"$f":"IF(INDIRECT(\"c\" & (VLOOKUP(Rebalance!$D$61,$F$2:$G$48,2,FALSE)+ROW()-2))=Rebalance!$D$61,INDIRECT(\"a\" & (VLOOKUP(Rebalance!$D$61,$F$2:$G$48,2,FALSE)+ROW()-2)),\"\")","v":{"$error":"#N/A"}},{"$f":"IF(INDIRECT(\"c\" & (VLOOKUP(Rebalance!$D$62,$F$2:$G$48,2,FALSE)+ROW()-2))=Rebalance!$D$62,INDIRECT(\"a\" & (VLOOKUP(Rebalance!$D$62,$F$2:$G$48,2,FALSE)+ROW()-2)),\"\")","v":{"$error":"#N/A"}},{"$f":"IF(INDIRECT(\"c\" & (VLOOKUP(Rebalance!$D$63,$F$2:$G$48,2,FALSE)+ROW()-2))=Rebalance!$D$63,INDIRECT(\"a\" & (VLOOKUP(Rebalance!$D$63,$F$2:$G$48,2,FALSE)+ROW()-2)),\"\")","v":{"$error":"#N/A"}},{"$f":"IF(INDIRECT(\"c\" & (VLOOKUP(Rebalance!$D$64,$F$2:$G$48,2,FALSE)+ROW()-2))=Rebalance!$D$64,INDIRECT(\"a\" & (VLOOKUP(Rebalance!$D$64,$F$2:$G$48,2,FALSE)+ROW()-2)),\"\")","v":{"$error":"#N/A"}},{"$f":"IF(INDIRECT(\"c\" & (VLOOKUP(Rebalance!$D$65,$F$2:$G$48,2,FALSE)+ROW()-2))=Rebalance!$D$65,INDIRECT(\"a\" & (VLOOKUP(Rebalance!$D$65,$F$2:$G$48,2,FALSE)+ROW()-2)),\"\")","v":{"$error":"#N/A"}},{"$f":"IF(INDIRECT(\"c\" & (VLOOKUP(Rebalance!$D$66,$F$2:$G$48,2,FALSE)+ROW()-2))=Rebalance!$D$66,INDIRECT(\"a\" & (VLOOKUP(Rebalance!$D$66,$F$2:$G$48,2,FALSE)+ROW()-2)),\"\")","v":{"$error":"#N/A"}}]
["Marriott Dividend Growth Fund C","MDGC","Marriott Unit Trust Management Company Ltd",{"$f":"ROW()","v":306},null,null,{"$f":"VLOOKUP(F306,$C$2:$D$599,2,FALSE)","v":{"$error":"#N/A"}},{"$f":"IF(INDIRECT(\"c\" & (VLOOKUP(Rebalance!$D$26,$F$2:$G$48,2,FALSE)+ROW()-2))=Rebalance!$D$26,INDIRECT(\"a\" & (VLOOKUP(Rebalance!$D$26,$F$2:$G$48,2,FALSE)+ROW()-2)),\"\")","v":{"$error":"#N/A"}},{"$f":"IF(INDIRECT(\"c\" & (VLOOKUP(Rebalance!$D$27,$F$2:$G$48,2,FALSE)+ROW()-2))=Rebalance!$D$27,INDIRECT(\"a\" & (VLOOKUP(Rebalance!$D$27,$F$2:$G$48,2,FALSE)+ROW()-2)),\"\")","v":{"$error":"#N/A"}},{"$f":"IF(INDIRECT(\"c\" & (VLOOKUP(Rebalance!$D$28,$F$2:$G$48,2,FALSE)+ROW()-2))=Rebalance!$D$28,INDIRECT(\"a\" & (VLOOKUP(Rebalance!$D$28,$F$2:$G$48,2,FALSE)+ROW()-2)),\"\")","v":{"$error":"#N/A"}},{"$f":"IF(INDIRECT(\"c\" & (VLOOKUP(Rebalance!$D$29,$F$2:$G$48,2,FALSE)+ROW()-2))=Rebalance!$D$29,INDIRECT(\"a\" & (VLOOKUP(Rebalance!$D$29,$F$2:$G$48,2,FALSE)+ROW()-2)),\"\")","v":{"$error":"#N/A"}},{"$f":"IF(INDIRECT(\"c\" & (VLOOKUP(Rebalance!$D$30,$F$2:$G$48,2,FALSE)+ROW()-2))=Rebalance!$D$30,INDIRECT(\"a\" & (VLOOKUP(Rebalance!$D$30,$F$2:$G$48,2,FALSE)+ROW()-2)),\"\")","v":{"$error":"#N/A"}},{"$f":"IF(INDIRECT(\"c\" & (VLOOKUP(Rebalance!$D$31,$F$2:$G$48,2,FALSE)+ROW()-2))=Rebalance!$D$31,INDIRECT(\"a\" & (VLOOKUP(Rebalance!$D$31,$F$2:$G$48,2,FALSE)+ROW()-2)),\"\")","v":{"$error":"#N/A"}},{"$f":"IF(INDIRECT(\"c\" & (VLOOKUP(Rebalance!$D$32,$F$2:$G$48,2,FALSE)+ROW()-2))=Rebalance!$D$32,INDIRECT(\"a\" & (VLOOKUP(Rebalance!$D$32,$F$2:$G$48,2,FALSE)+ROW()-2)),\"\")","v":{"$error":"#N/A"}},{"$f":"IF(INDIRECT(\"c\" & (VLOOKUP(Rebalance!$D$33,$F$2:$G$48,2,FALSE)+ROW()-2))=Rebalance!$D$33,INDIRECT(\"a\" & (VLOOKUP(Rebalance!$D$33,$F$2:$G$48,2,FALSE)+ROW()-2)),\"\")","v":{"$error":"#N/A"}},{"$f":"IF(INDIRECT(\"c\" & (VLOOKUP(Rebalance!$D$34,$F$2:$G$48,2,FALSE)+ROW()-2))=Rebalance!$D$34,INDIRECT(\"a\" & (VLOOKUP(Rebalance!$D$34,$F$2:$G$48,2,FALSE)+ROW()-2)),\"\")","v":{"$error":"#N/A"}},{"$f":"IF(INDIRECT(\"c\" & (VLOOKUP(Rebalance!$D$35,$F$2:$G$48,2,FALSE)+ROW()-2))=Rebalance!$D$35,INDIRECT(\"a\" & (VLOOKUP(Rebalance!$D$35,$F$2:$G$48,2,FALSE)+ROW()-2)),\"\")","v":{"$error":"#N/A"}},{"$f":"IF(INDIRECT(\"c\" & (VLOOKUP(Rebalance!$D$36,$F$2:$G$48,2,FALSE)+ROW()-2))=Rebalance!$D$36,INDIRECT(\"a\" & (VLOOKUP(Rebalance!$D$36,$F$2:$G$48,2,FALSE)+ROW()-2)),\"\")","v":{"$error":"#N/A"}},{"$f":"IF(INDIRECT(\"c\" & (VLOOKUP(Rebalance!$D$37,$F$2:$G$48,2,FALSE)+ROW()-2))=Rebalance!$D$37,INDIRECT(\"a\" & (VLOOKUP(Rebalance!$D$37,$F$2:$G$48,2,FALSE)+ROW()-2)),\"\")","v":{"$error":"#N/A"}},{"$f":"IF(INDIRECT(\"c\" & (VLOOKUP(Rebalance!$D$38,$F$2:$G$48,2,FALSE)+ROW()-2))=Rebalance!$D$38,INDIRECT(\"a\" & (VLOOKUP(Rebalance!$D$38,$F$2:$G$48,2,FALSE)+ROW()-2)),\"\")","v":{"$error":"#N/A"}},{"$f":"IF(INDIRECT(\"c\" & (VLOOKUP(Rebalance!$D$39,$F$2:$G$48,2,FALSE)+ROW()-2))=Rebalance!$D$39,INDIRECT(\"a\" & (VLOOKUP(Rebalance!$D$39,$F$2:$G$48,2,FALSE)+ROW()-2)),\"\")","v":{"$error":"#N/A"}},{"$f":"IF(INDIRECT(\"c\" & (VLOOKUP(Rebalance!$D$40,$F$2:$G$48,2,FALSE)+ROW()-2))=Rebalance!$D$40,INDIRECT(\"a\" & (VLOOKUP(Rebalance!$D$40,$F$2:$G$48,2,FALSE)+ROW()-2)),\"\")","v":{"$error":"#N/A"}},{"$f":"IF(INDIRECT(\"c\" & (VLOOKUP(Rebalance!$D$52,$F$2:$G$48,2,FALSE)+ROW()-2))=Rebalance!$D$52,INDIRECT(\"a\" & (VLOOKUP(Rebalance!$D$52,$F$2:$G$48,2,FALSE)+ROW()-2)),\"\")","v":{"$error":"#N/A"}},{"$f":"IF(INDIRECT(\"c\" & (VLOOKUP(Rebalance!$D$53,$F$2:$G$48,2,FALSE)+ROW()-2))=Rebalance!$D$53,INDIRECT(\"a\" & (VLOOKUP(Rebalance!$D$53,$F$2:$G$48,2,FALSE)+ROW()-2)),\"\")","v":{"$error":"#N/A"}},{"$f":"IF(INDIRECT(\"c\" & (VLOOKUP(Rebalance!$D$54,$F$2:$G$48,2,FALSE)+ROW()-2))=Rebalance!$D$54,INDIRECT(\"a\" & (VLOOKUP(Rebalance!$D$54,$F$2:$G$48,2,FALSE)+ROW()-2)),\"\")","v":{"$error":"#N/A"}},{"$f":"IF(INDIRECT(\"c\" & (VLOOKUP(Rebalance!$D$55,$F$2:$G$48,2,FALSE)+ROW()-2))=Rebalance!$D$55,INDIRECT(\"a\" & (VLOOKUP(Rebalance!$D$55,$F$2:$G$48,2,FALSE)+ROW()-2)),\"\")","v":{"$error":"#N/A"}},{"$f":"IF(INDIRECT(\"c\" & (VLOOKUP(Rebalance!$D$56,$F$2:$G$48,2,FALSE)+ROW()-2))=Rebalance!$D$56,INDIRECT(\"a\" & (VLOOKUP(Rebalance!$D$56,$F$2:$G$48,2,FALSE)+ROW()-2)),\"\")","v":{"$error":"#N/A"}},{"$f":"IF(INDIRECT(\"c\" & (VLOOKUP(Rebalance!$D$57,$F$2:$G$48,2,FALSE)+ROW()-2))=Rebalance!$D$57,INDIRECT(\"a\" & (VLOOKUP(Rebalance!$D$57,$F$2:$G$48,2,FALSE)+ROW()-2)),\"\")","v":{"$error":"#N/A"}},{"$f":"IF(INDIRECT(\"c\" & (VLOOKUP(Rebalance!$D$58,$F$2:$G$48,2,FALSE)+ROW()-2))=Rebalance!$D$58,INDIRECT(\"a\" & (VLOOKUP(Rebalance!$D$58,$F$2:$G$48,2,FALSE)+ROW()-2)),\"\")","v":{"$error":"#N/A"}},{"$f":"IF(INDIRECT(\"c\" & (VLOOKUP(Rebalance!$D$59,$F$2:$G$48,2,FALSE)+ROW()-2))=Rebalance!$D$59,INDIRECT(\"a\" & (VLOOKUP(Rebalance!$D$59,$F$2:$G$48,2,FALSE)+ROW()-2)),\"\")","v":{"$error":"#N/A"}},{"$f":"IF(INDIRECT(\"c\" & (VLOOKUP(Rebalance!$D$60,$F$2:$G$48,2,FALSE)+ROW()-2))=Rebalance!$D$60,INDIRECT(\"a\" & (VLOOKUP(Rebalance!$D$60,$F$2:$G$48,2,FALSE)+ROW()-2)),\"\")","v":{"$error":"#N/A"}},{"$f":"IF(INDIRECT(\"c\" & (VLOOKUP(Rebalance!$D$61,$F$2:$G$48,2,FALSE)+ROW()-2))=Rebalance!$D$61,INDIRECT(\"a\" & (VLOOKUP(Rebalance!$D$61,$F$2:$G$48,2,FALSE)+ROW()-2)),\"\")","v":{"$error":"#N/A"}},{"$f":"IF(INDIRECT(\"c\" & (VLOOKUP(Rebalance!$D$62,$F$2:$G$48,2,FALSE)+ROW()-2))=Rebalance!$D$62,INDIRECT(\"a\" & (VLOOKUP(Rebalance!$D$62,$F$2:$G$48,2,FALSE)+ROW()-2)),\"\")","v":{"$error":"#N/A"}},{"$f":"IF(INDIRECT(\"c\" & (VLOOKUP(Rebalance!$D$63,$F$2:$G$48,2,FALSE)+ROW()-2))=Rebalance!$D$63,INDIRECT(\"a\" & (VLOOKUP(Rebalance!$D$63,$F$2:$G$48,2,FALSE)+ROW()-2)),\"\")","v":{"$error":"#N/A"}},{"$f":"IF(INDIRECT(\"c\" & (VLOOKUP(Rebalance!$D$64,$F$2:$G$48,2,FALSE)+ROW()-2))=Rebalance!$D$64,INDIRECT(\"a\" & (VLOOKUP(Rebalance!$D$64,$F$2:$G$48,2,FALSE)+ROW()-2)),\"\")","v":{"$error":"#N/A"}},{"$f":"IF(INDIRECT(\"c\" & (VLOOKUP(Rebalance!$D$65,$F$2:$G$48,2,FALSE)+ROW()-2))=Rebalance!$D$65,INDIRECT(\"a\" & (VLOOKUP(Rebalance!$D$65,$F$2:$G$48,2,FALSE)+ROW()-2)),\"\")","v":{"$error":"#N/A"}},{"$f":"IF(INDIRECT(\"c\" & (VLOOKUP(Rebalance!$D$66,$F$2:$G$48,2,FALSE)+ROW()-2))=Rebalance!$D$66,INDIRECT(\"a\" & (VLOOKUP(Rebalance!$D$66,$F$2:$G$48,2,FALSE)+ROW()-2)),\"\")","v":{"$error":"#N/A"}}]
["Marriott Essential Income Fund D","MEICD","Marriott Unit Trust Management Company Ltd",{"$f":"ROW()","v":307},null,null,{"$f":"VLOOKUP(F307,$C$2:$D$599,2,FALSE)","v":{"$error":"#N/A"}},{"$f":"IF(INDIRECT(\"c\" & (VLOOKUP(Rebalance!$D$26,$F$2:$G$48,2,FALSE)+ROW()-2))=Rebalance!$D$26,INDIRECT(\"a\" & (VLOOKUP(Rebalance!$D$26,$F$2:$G$48,2,FALSE)+ROW()-2)),\"\")","v":{"$error":"#N/A"}},{"$f":"IF(INDIRECT(\"c\" & (VLOOKUP(Rebalance!$D$27,$F$2:$G$48,2,FALSE)+ROW()-2))=Rebalance!$D$27,INDIRECT(\"a\" & (VLOOKUP(Rebalance!$D$27,$F$2:$G$48,2,FALSE)+ROW()-2)),\"\")","v":{"$error":"#N/A"}},{"$f":"IF(INDIRECT(\"c\" & (VLOOKUP(Rebalance!$D$28,$F$2:$G$48,2,FALSE)+ROW()-2))=Rebalance!$D$28,INDIRECT(\"a\" & (VLOOKUP(Rebalance!$D$28,$F$2:$G$48,2,FALSE)+ROW()-2)),\"\")","v":{"$error":"#N/A"}},{"$f":"IF(INDIRECT(\"c\" & (VLOOKUP(Rebalance!$D$29,$F$2:$G$48,2,FALSE)+ROW()-2))=Rebalance!$D$29,INDIRECT(\"a\" & (VLOOKUP(Rebalance!$D$29,$F$2:$G$48,2,FALSE)+ROW()-2)),\"\")","v":{"$error":"#N/A"}},{"$f":"IF(INDIRECT(\"c\" & (VLOOKUP(Rebalance!$D$30,$F$2:$G$48,2,FALSE)+ROW()-2))=Rebalance!$D$30,INDIRECT(\"a\" & (VLOOKUP(Rebalance!$D$30,$F$2:$G$48,2,FALSE)+ROW()-2)),\"\")","v":{"$error":"#N/A"}},{"$f":"IF(INDIRECT(\"c\" & (VLOOKUP(Rebalance!$D$31,$F$2:$G$48,2,FALSE)+ROW()-2))=Rebalance!$D$31,INDIRECT(\"a\" & (VLOOKUP(Rebalance!$D$31,$F$2:$G$48,2,FALSE)+ROW()-2)),\"\")","v":{"$error":"#N/A"}},{"$f":"IF(INDIRECT(\"c\" & (VLOOKUP(Rebalance!$D$32,$F$2:$G$48,2,FALSE)+ROW()-2))=Rebalance!$D$32,INDIRECT(\"a\" & (VLOOKUP(Rebalance!$D$32,$F$2:$G$48,2,FALSE)+ROW()-2)),\"\")","v":{"$error":"#N/A"}},{"$f":"IF(INDIRECT(\"c\" & (VLOOKUP(Rebalance!$D$33,$F$2:$G$48,2,FALSE)+ROW()-2))=Rebalance!$D$33,INDIRECT(\"a\" & (VLOOKUP(Rebalance!$D$33,$F$2:$G$48,2,FALSE)+ROW()-2)),\"\")","v":{"$error":"#N/A"}},{"$f":"IF(INDIRECT(\"c\" & (VLOOKUP(Rebalance!$D$34,$F$2:$G$48,2,FALSE)+ROW()-2))=Rebalance!$D$34,INDIRECT(\"a\" & (VLOOKUP(Rebalance!$D$34,$F$2:$G$48,2,FALSE)+ROW()-2)),\"\")","v":{"$error":"#N/A"}},{"$f":"IF(INDIRECT(\"c\" & (VLOOKUP(Rebalance!$D$35,$F$2:$G$48,2,FALSE)+ROW()-2))=Rebalance!$D$35,INDIRECT(\"a\" & (VLOOKUP(Rebalance!$D$35,$F$2:$G$48,2,FALSE)+ROW()-2)),\"\")","v":{"$error":"#N/A"}},{"$f":"IF(INDIRECT(\"c\" & (VLOOKUP(Rebalance!$D$36,$F$2:$G$48,2,FALSE)+ROW()-2))=Rebalance!$D$36,INDIRECT(\"a\" & (VLOOKUP(Rebalance!$D$36,$F$2:$G$48,2,FALSE)+ROW()-2)),\"\")","v":{"$error":"#N/A"}},{"$f":"IF(INDIRECT(\"c\" & (VLOOKUP(Rebalance!$D$37,$F$2:$G$48,2,FALSE)+ROW()-2))=Rebalance!$D$37,INDIRECT(\"a\" & (VLOOKUP(Rebalance!$D$37,$F$2:$G$48,2,FALSE)+ROW()-2)),\"\")","v":{"$error":"#N/A"}},{"$f":"IF(INDIRECT(\"c\" & (VLOOKUP(Rebalance!$D$38,$F$2:$G$48,2,FALSE)+ROW()-2))=Rebalance!$D$38,INDIRECT(\"a\" & (VLOOKUP(Rebalance!$D$38,$F$2:$G$48,2,FALSE)+ROW()-2)),\"\")","v":{"$error":"#N/A"}},{"$f":"IF(INDIRECT(\"c\" & (VLOOKUP(Rebalance!$D$39,$F$2:$G$48,2,FALSE)+ROW()-2))=Rebalance!$D$39,INDIRECT(\"a\" & (VLOOKUP(Rebalance!$D$39,$F$2:$G$48,2,FALSE)+ROW()-2)),\"\")","v":{"$error":"#N/A"}},{"$f":"IF(INDIRECT(\"c\" & (VLOOKUP(Rebalance!$D$40,$F$2:$G$48,2,FALSE)+ROW()-2))=Rebalance!$D$40,INDIRECT(\"a\" & (VLOOKUP(Rebalance!$D$40,$F$2:$G$48,2,FALSE)+ROW()-2)),\"\")","v":{"$error":"#N/A"}},{"$f":"IF(INDIRECT(\"c\" & (VLOOKUP(Rebalance!$D$52,$F$2:$G$48,2,FALSE)+ROW()-2))=Rebalance!$D$52,INDIRECT(\"a\" & (VLOOKUP(Rebalance!$D$52,$F$2:$G$48,2,FALSE)+ROW()-2)),\"\")","v":{"$error":"#N/A"}},{"$f":"IF(INDIRECT(\"c\" & (VLOOKUP(Rebalance!$D$53,$F$2:$G$48,2,FALSE)+ROW()-2))=Rebalance!$D$53,INDIRECT(\"a\" & (VLOOKUP(Rebalance!$D$53,$F$2:$G$48,2,FALSE)+ROW()-2)),\"\")","v":{"$error":"#N/A"}},{"$f":"IF(INDIRECT(\"c\" & (VLOOKUP(Rebalance!$D$54,$F$2:$G$48,2,FALSE)+ROW()-2))=Rebalance!$D$54,INDIRECT(\"a\" & (VLOOKUP(Rebalance!$D$54,$F$2:$G$48,2,FALSE)+ROW()-2)),\"\")","v":{"$error":"#N/A"}},{"$f":"IF(INDIRECT(\"c\" & (VLOOKUP(Rebalance!$D$55,$F$2:$G$48,2,FALSE)+ROW()-2))=Rebalance!$D$55,INDIRECT(\"a\" & (VLOOKUP(Rebalance!$D$55,$F$2:$G$48,2,FALSE)+ROW()-2)),\"\")","v":{"$error":"#N/A"}},{"$f":"IF(INDIRECT(\"c\" & (VLOOKUP(Rebalance!$D$56,$F$2:$G$48,2,FALSE)+ROW()-2))=Rebalance!$D$56,INDIRECT(\"a\" & (VLOOKUP(Rebalance!$D$56,$F$2:$G$48,2,FALSE)+ROW()-2)),\"\")","v":{"$error":"#N/A"}},{"$f":"IF(INDIRECT(\"c\" & (VLOOKUP(Rebalance!$D$57,$F$2:$G$48,2,FALSE)+ROW()-2))=Rebalance!$D$57,INDIRECT(\"a\" & (VLOOKUP(Rebalance!$D$57,$F$2:$G$48,2,FALSE)+ROW()-2)),\"\")","v":{"$error":"#N/A"}},{"$f":"IF(INDIRECT(\"c\" & (VLOOKUP(Rebalance!$D$58,$F$2:$G$48,2,FALSE)+ROW()-2))=Rebalance!$D$58,INDIRECT(\"a\" & (VLOOKUP(Rebalance!$D$58,$F$2:$G$48,2,FALSE)+ROW()-2)),\"\")","v":{"$error":"#N/A"}},{"$f":"IF(INDIRECT(\"c\" & (VLOOKUP(Rebalance!$D$59,$F$2:$G$48,2,FALSE)+ROW()-2))=Rebalance!$D$59,INDIRECT(\"a\" & (VLOOKUP(Rebalance!$D$59,$F$2:$G$48,2,FALSE)+ROW()-2)),\"\")","v":{"$error":"#N/A"}},{"$f":"IF(INDIRECT(\"c\" & (VLOOKUP(Rebalance!$D$60,$F$2:$G$48,2,FALSE)+ROW()-2))=Rebalance!$D$60,INDIRECT(\"a\" & (VLOOKUP(Rebalance!$D$60,$F$2:$G$48,2,FALSE)+ROW()-2)),\"\")","v":{"$error":"#N/A"}},{"$f":"IF(INDIRECT(\"c\" & (VLOOKUP(Rebalance!$D$61,$F$2:$G$48,2,FALSE)+ROW()-2))=Rebalance!$D$61,INDIRECT(\"a\" & (VLOOKUP(Rebalance!$D$61,$F$2:$G$48,2,FALSE)+ROW()-2)),\"\")","v":{"$error":"#N/A"}},{"$f":"IF(INDIRECT(\"c\" & (VLOOKUP(Rebalance!$D$62,$F$2:$G$48,2,FALSE)+ROW()-2))=Rebalance!$D$62,INDIRECT(\"a\" & (VLOOKUP(Rebalance!$D$62,$F$2:$G$48,2,FALSE)+ROW()-2)),\"\")","v":{"$error":"#N/A"}},{"$f":"IF(INDIRECT(\"c\" & (VLOOKUP(Rebalance!$D$63,$F$2:$G$48,2,FALSE)+ROW()-2))=Rebalance!$D$63,INDIRECT(\"a\" & (VLOOKUP(Rebalance!$D$63,$F$2:$G$48,2,FALSE)+ROW()-2)),\"\")","v":{"$error":"#N/A"}},{"$f":"IF(INDIRECT(\"c\" & (VLOOKUP(Rebalance!$D$64,$F$2:$G$48,2,FALSE)+ROW()-2))=Rebalance!$D$64,INDIRECT(\"a\" & (VLOOKUP(Rebalance!$D$64,$F$2:$G$48,2,FALSE)+ROW()-2)),\"\")","v":{"$error":"#N/A"}},{"$f":"IF(INDIRECT(\"c\" & (VLOOKUP(Rebalance!$D$65,$F$2:$G$48,2,FALSE)+ROW()-2))=Rebalance!$D$65,INDIRECT(\"a\" & (VLOOKUP(Rebalance!$D$65,$F$2:$G$48,2,FALSE)+ROW()-2)),\"\")","v":{"$error":"#N/A"}},{"$f":"IF(INDIRECT(\"c\" & (VLOOKUP(Rebalance!$D$66,$F$2:$G$48,2,FALSE)+ROW()-2))=Rebalance!$D$66,INDIRECT(\"a\" & (VLOOKUP(Rebalance!$D$66,$F$2:$G$48,2,FALSE)+ROW()-2)),\"\")","v":{"$error":"#N/A"}}]
["Marriott International Growth Feeder Fund Class C","MGGC","Marriott Unit Trust Management Company Ltd",{"$f":"ROW()","v":308},null,null,{"$f":"VLOOKUP(F308,$C$2:$D$599,2,FALSE)","v":{"$error":"#N/A"}},{"$f":"IF(INDIRECT(\"c\" & (VLOOKUP(Rebalance!$D$26,$F$2:$G$48,2,FALSE)+ROW()-2))=Rebalance!$D$26,INDIRECT(\"a\" & (VLOOKUP(Rebalance!$D$26,$F$2:$G$48,2,FALSE)+ROW()-2)),\"\")","v":{"$error":"#N/A"}},{"$f":"IF(INDIRECT(\"c\" & (VLOOKUP(Rebalance!$D$27,$F$2:$G$48,2,FALSE)+ROW()-2))=Rebalance!$D$27,INDIRECT(\"a\" & (VLOOKUP(Rebalance!$D$27,$F$2:$G$48,2,FALSE)+ROW()-2)),\"\")","v":{"$error":"#N/A"}},{"$f":"IF(INDIRECT(\"c\" & (VLOOKUP(Rebalance!$D$28,$F$2:$G$48,2,FALSE)+ROW()-2))=Rebalance!$D$28,INDIRECT(\"a\" & (VLOOKUP(Rebalance!$D$28,$F$2:$G$48,2,FALSE)+ROW()-2)),\"\")","v":{"$error":"#N/A"}},{"$f":"IF(INDIRECT(\"c\" & (VLOOKUP(Rebalance!$D$29,$F$2:$G$48,2,FALSE)+ROW()-2))=Rebalance!$D$29,INDIRECT(\"a\" & (VLOOKUP(Rebalance!$D$29,$F$2:$G$48,2,FALSE)+ROW()-2)),\"\")","v":{"$error":"#N/A"}},{"$f":"IF(INDIRECT(\"c\" & (VLOOKUP(Rebalance!$D$30,$F$2:$G$48,2,FALSE)+ROW()-2))=Rebalance!$D$30,INDIRECT(\"a\" & (VLOOKUP(Rebalance!$D$30,$F$2:$G$48,2,FALSE)+ROW()-2)),\"\")","v":{"$error":"#N/A"}},{"$f":"IF(INDIRECT(\"c\" & (VLOOKUP(Rebalance!$D$31,$F$2:$G$48,2,FALSE)+ROW()-2))=Rebalance!$D$31,INDIRECT(\"a\" & (VLOOKUP(Rebalance!$D$31,$F$2:$G$48,2,FALSE)+ROW()-2)),\"\")","v":{"$error":"#N/A"}},{"$f":"IF(INDIRECT(\"c\" & (VLOOKUP(Rebalance!$D$32,$F$2:$G$48,2,FALSE)+ROW()-2))=Rebalance!$D$32,INDIRECT(\"a\" & (VLOOKUP(Rebalance!$D$32,$F$2:$G$48,2,FALSE)+ROW()-2)),\"\")","v":{"$error":"#N/A"}},{"$f":"IF(INDIRECT(\"c\" & (VLOOKUP(Rebalance!$D$33,$F$2:$G$48,2,FALSE)+ROW()-2))=Rebalance!$D$33,INDIRECT(\"a\" & (VLOOKUP(Rebalance!$D$33,$F$2:$G$48,2,FALSE)+ROW()-2)),\"\")","v":{"$error":"#N/A"}},{"$f":"IF(INDIRECT(\"c\" & (VLOOKUP(Rebalance!$D$34,$F$2:$G$48,2,FALSE)+ROW()-2))=Rebalance!$D$34,INDIRECT(\"a\" & (VLOOKUP(Rebalance!$D$34,$F$2:$G$48,2,FALSE)+ROW()-2)),\"\")","v":{"$error":"#N/A"}},{"$f":"IF(INDIRECT(\"c\" & (VLOOKUP(Rebalance!$D$35,$F$2:$G$48,2,FALSE)+ROW()-2))=Rebalance!$D$35,INDIRECT(\"a\" & (VLOOKUP(Rebalance!$D$35,$F$2:$G$48,2,FALSE)+ROW()-2)),\"\")","v":{"$error":"#N/A"}},{"$f":"IF(INDIRECT(\"c\" & (VLOOKUP(Rebalance!$D$36,$F$2:$G$48,2,FALSE)+ROW()-2))=Rebalance!$D$36,INDIRECT(\"a\" & (VLOOKUP(Rebalance!$D$36,$F$2:$G$48,2,FALSE)+ROW()-2)),\"\")","v":{"$error":"#N/A"}},{"$f":"IF(INDIRECT(\"c\" & (VLOOKUP(Rebalance!$D$37,$F$2:$G$48,2,FALSE)+ROW()-2))=Rebalance!$D$37,INDIRECT(\"a\" & (VLOOKUP(Rebalance!$D$37,$F$2:$G$48,2,FALSE)+ROW()-2)),\"\")","v":{"$error":"#N/A"}},{"$f":"IF(INDIRECT(\"c\" & (VLOOKUP(Rebalance!$D$38,$F$2:$G$48,2,FALSE)+ROW()-2))=Rebalance!$D$38,INDIRECT(\"a\" & (VLOOKUP(Rebalance!$D$38,$F$2:$G$48,2,FALSE)+ROW()-2)),\"\")","v":{"$error":"#N/A"}},{"$f":"IF(INDIRECT(\"c\" & (VLOOKUP(Rebalance!$D$39,$F$2:$G$48,2,FALSE)+ROW()-2))=Rebalance!$D$39,INDIRECT(\"a\" & (VLOOKUP(Rebalance!$D$39,$F$2:$G$48,2,FALSE)+ROW()-2)),\"\")","v":{"$error":"#N/A"}},{"$f":"IF(INDIRECT(\"c\" & (VLOOKUP(Rebalance!$D$40,$F$2:$G$48,2,FALSE)+ROW()-2))=Rebalance!$D$40,INDIRECT(\"a\" & (VLOOKUP(Rebalance!$D$40,$F$2:$G$48,2,FALSE)+ROW()-2)),\"\")","v":{"$error":"#N/A"}},{"$f":"IF(INDIRECT(\"c\" & (VLOOKUP(Rebalance!$D$52,$F$2:$G$48,2,FALSE)+ROW()-2))=Rebalance!$D$52,INDIRECT(\"a\" & (VLOOKUP(Rebalance!$D$52,$F$2:$G$48,2,FALSE)+ROW()-2)),\"\")","v":{"$error":"#N/A"}},{"$f":"IF(INDIRECT(\"c\" & (VLOOKUP(Rebalance!$D$53,$F$2:$G$48,2,FALSE)+ROW()-2))=Rebalance!$D$53,INDIRECT(\"a\" & (VLOOKUP(Rebalance!$D$53,$F$2:$G$48,2,FALSE)+ROW()-2)),\"\")","v":{"$error":"#N/A"}},{"$f":"IF(INDIRECT(\"c\" & (VLOOKUP(Rebalance!$D$54,$F$2:$G$48,2,FALSE)+ROW()-2))=Rebalance!$D$54,INDIRECT(\"a\" & (VLOOKUP(Rebalance!$D$54,$F$2:$G$48,2,FALSE)+ROW()-2)),\"\")","v":{"$error":"#N/A"}},{"$f":"IF(INDIRECT(\"c\" & (VLOOKUP(Rebalance!$D$55,$F$2:$G$48,2,FALSE)+ROW()-2))=Rebalance!$D$55,INDIRECT(\"a\" & (VLOOKUP(Rebalance!$D$55,$F$2:$G$48,2,FALSE)+ROW()-2)),\"\")","v":{"$error":"#N/A"}},{"$f":"IF(INDIRECT(\"c\" & (VLOOKUP(Rebalance!$D$56,$F$2:$G$48,2,FALSE)+ROW()-2))=Rebalance!$D$56,INDIRECT(\"a\" & (VLOOKUP(Rebalance!$D$56,$F$2:$G$48,2,FALSE)+ROW()-2)),\"\")","v":{"$error":"#N/A"}},{"$f":"IF(INDIRECT(\"c\" & (VLOOKUP(Rebalance!$D$57,$F$2:$G$48,2,FALSE)+ROW()-2))=Rebalance!$D$57,INDIRECT(\"a\" & (VLOOKUP(Rebalance!$D$57,$F$2:$G$48,2,FALSE)+ROW()-2)),\"\")","v":{"$error":"#N/A"}},{"$f":"IF(INDIRECT(\"c\" & (VLOOKUP(Rebalance!$D$58,$F$2:$G$48,2,FALSE)+ROW()-2))=Rebalance!$D$58,INDIRECT(\"a\" & (VLOOKUP(Rebalance!$D$58,$F$2:$G$48,2,FALSE)+ROW()-2)),\"\")","v":{"$error":"#N/A"}},{"$f":"IF(INDIRECT(\"c\" & (VLOOKUP(Rebalance!$D$59,$F$2:$G$48,2,FALSE)+ROW()-2))=Rebalance!$D$59,INDIRECT(\"a\" & (VLOOKUP(Rebalance!$D$59,$F$2:$G$48,2,FALSE)+ROW()-2)),\"\")","v":{"$error":"#N/A"}},{"$f":"IF(INDIRECT(\"c\" & (VLOOKUP(Rebalance!$D$60,$F$2:$G$48,2,FALSE)+ROW()-2))=Rebalance!$D$60,INDIRECT(\"a\" & (VLOOKUP(Rebalance!$D$60,$F$2:$G$48,2,FALSE)+ROW()-2)),\"\")","v":{"$error":"#N/A"}},{"$f":"IF(INDIRECT(\"c\" & (VLOOKUP(Rebalance!$D$61,$F$2:$G$48,2,FALSE)+ROW()-2))=Rebalance!$D$61,INDIRECT(\"a\" & (VLOOKUP(Rebalance!$D$61,$F$2:$G$48,2,FALSE)+ROW()-2)),\"\")","v":{"$error":"#N/A"}},{"$f":"IF(INDIRECT(\"c\" & (VLOOKUP(Rebalance!$D$62,$F$2:$G$48,2,FALSE)+ROW()-2))=Rebalance!$D$62,INDIRECT(\"a\" & (VLOOKUP(Rebalance!$D$62,$F$2:$G$48,2,FALSE)+ROW()-2)),\"\")","v":{"$error":"#N/A"}},{"$f":"IF(INDIRECT(\"c\" & (VLOOKUP(Rebalance!$D$63,$F$2:$G$48,2,FALSE)+ROW()-2))=Rebalance!$D$63,INDIRECT(\"a\" & (VLOOKUP(Rebalance!$D$63,$F$2:$G$48,2,FALSE)+ROW()-2)),\"\")","v":{"$error":"#N/A"}},{"$f":"IF(INDIRECT(\"c\" & (VLOOKUP(Rebalance!$D$64,$F$2:$G$48,2,FALSE)+ROW()-2))=Rebalance!$D$64,INDIRECT(\"a\" & (VLOOKUP(Rebalance!$D$64,$F$2:$G$48,2,FALSE)+ROW()-2)),\"\")","v":{"$error":"#N/A"}},{"$f":"IF(INDIRECT(\"c\" & (VLOOKUP(Rebalance!$D$65,$F$2:$G$48,2,FALSE)+ROW()-2))=Rebalance!$D$65,INDIRECT(\"a\" & (VLOOKUP(Rebalance!$D$65,$F$2:$G$48,2,FALSE)+ROW()-2)),\"\")","v":{"$error":"#N/A"}},{"$f":"IF(INDIRECT(\"c\" & (VLOOKUP(Rebalance!$D$66,$F$2:$G$48,2,FALSE)+ROW()-2))=Rebalance!$D$66,INDIRECT(\"a\" & (VLOOKUP(Rebalance!$D$66,$F$2:$G$48,2,FALSE)+ROW()-2)),\"\")","v":{"$error":"#N/A"}}]
["Marriott Income Fund","HLMI","Marriott Unit Trust Management Company Ltd",{"$f":"ROW()","v":309},null,null,{"$f":"VLOOKUP(F309,$C$2:$D$599,2,FALSE)","v":{"$error":"#N/A"}},{"$f":"IF(INDIRECT(\"c\" & (VLOOKUP(Rebalance!$D$26,$F$2:$G$48,2,FALSE)+ROW()-2))=Rebalance!$D$26,INDIRECT(\"a\" & (VLOOKUP(Rebalance!$D$26,$F$2:$G$48,2,FALSE)+ROW()-2)),\"\")","v":{"$error":"#N/A"}},{"$f":"IF(INDIRECT(\"c\" & (VLOOKUP(Rebalance!$D$27,$F$2:$G$48,2,FALSE)+ROW()-2))=Rebalance!$D$27,INDIRECT(\"a\" & (VLOOKUP(Rebalance!$D$27,$F$2:$G$48,2,FALSE)+ROW()-2)),\"\")","v":{"$error":"#N/A"}},{"$f":"IF(INDIRECT(\"c\" & (VLOOKUP(Rebalance!$D$28,$F$2:$G$48,2,FALSE)+ROW()-2))=Rebalance!$D$28,INDIRECT(\"a\" & (VLOOKUP(Rebalance!$D$28,$F$2:$G$48,2,FALSE)+ROW()-2)),\"\")","v":{"$error":"#N/A"}},{"$f":"IF(INDIRECT(\"c\" & (VLOOKUP(Rebalance!$D$29,$F$2:$G$48,2,FALSE)+ROW()-2))=Rebalance!$D$29,INDIRECT(\"a\" & (VLOOKUP(Rebalance!$D$29,$F$2:$G$48,2,FALSE)+ROW()-2)),\"\")","v":{"$error":"#N/A"}},{"$f":"IF(INDIRECT(\"c\" & (VLOOKUP(Rebalance!$D$30,$F$2:$G$48,2,FALSE)+ROW()-2))=Rebalance!$D$30,INDIRECT(\"a\" & (VLOOKUP(Rebalance!$D$30,$F$2:$G$48,2,FALSE)+ROW()-2)),\"\")","v":{"$error":"#N/A"}},{"$f":"IF(INDIRECT(\"c\" & (VLOOKUP(Rebalance!$D$31,$F$2:$G$48,2,FALSE)+ROW()-2))=Rebalance!$D$31,INDIRECT(\"a\" & (VLOOKUP(Rebalance!$D$31,$F$2:$G$48,2,FALSE)+ROW()-2)),\"\")","v":{"$error":"#N/A"}},{"$f":"IF(INDIRECT(\"c\" & (VLOOKUP(Rebalance!$D$32,$F$2:$G$48,2,FALSE)+ROW()-2))=Rebalance!$D$32,INDIRECT(\"a\" & (VLOOKUP(Rebalance!$D$32,$F$2:$G$48,2,FALSE)+ROW()-2)),\"\")","v":{"$error":"#N/A"}},{"$f":"IF(INDIRECT(\"c\" & (VLOOKUP(Rebalance!$D$33,$F$2:$G$48,2,FALSE)+ROW()-2))=Rebalance!$D$33,INDIRECT(\"a\" & (VLOOKUP(Rebalance!$D$33,$F$2:$G$48,2,FALSE)+ROW()-2)),\"\")","v":{"$error":"#N/A"}},{"$f":"IF(INDIRECT(\"c\" & (VLOOKUP(Rebalance!$D$34,$F$2:$G$48,2,FALSE)+ROW()-2))=Rebalance!$D$34,INDIRECT(\"a\" & (VLOOKUP(Rebalance!$D$34,$F$2:$G$48,2,FALSE)+ROW()-2)),\"\")","v":{"$error":"#N/A"}},{"$f":"IF(INDIRECT(\"c\" & (VLOOKUP(Rebalance!$D$35,$F$2:$G$48,2,FALSE)+ROW()-2))=Rebalance!$D$35,INDIRECT(\"a\" & (VLOOKUP(Rebalance!$D$35,$F$2:$G$48,2,FALSE)+ROW()-2)),\"\")","v":{"$error":"#N/A"}},{"$f":"IF(INDIRECT(\"c\" & (VLOOKUP(Rebalance!$D$36,$F$2:$G$48,2,FALSE)+ROW()-2))=Rebalance!$D$36,INDIRECT(\"a\" & (VLOOKUP(Rebalance!$D$36,$F$2:$G$48,2,FALSE)+ROW()-2)),\"\")","v":{"$error":"#N/A"}},{"$f":"IF(INDIRECT(\"c\" & (VLOOKUP(Rebalance!$D$37,$F$2:$G$48,2,FALSE)+ROW()-2))=Rebalance!$D$37,INDIRECT(\"a\" & (VLOOKUP(Rebalance!$D$37,$F$2:$G$48,2,FALSE)+ROW()-2)),\"\")","v":{"$error":"#N/A"}},{"$f":"IF(INDIRECT(\"c\" & (VLOOKUP(Rebalance!$D$38,$F$2:$G$48,2,FALSE)+ROW()-2))=Rebalance!$D$38,INDIRECT(\"a\" & (VLOOKUP(Rebalance!$D$38,$F$2:$G$48,2,FALSE)+ROW()-2)),\"\")","v":{"$error":"#N/A"}},{"$f":"IF(INDIRECT(\"c\" & (VLOOKUP(Rebalance!$D$39,$F$2:$G$48,2,FALSE)+ROW()-2))=Rebalance!$D$39,INDIRECT(\"a\" & (VLOOKUP(Rebalance!$D$39,$F$2:$G$48,2,FALSE)+ROW()-2)),\"\")","v":{"$error":"#N/A"}},{"$f":"IF(INDIRECT(\"c\" & (VLOOKUP(Rebalance!$D$40,$F$2:$G$48,2,FALSE)+ROW()-2))=Rebalance!$D$40,INDIRECT(\"a\" & (VLOOKUP(Rebalance!$D$40,$F$2:$G$48,2,FALSE)+ROW()-2)),\"\")","v":{"$error":"#N/A"}},{"$f":"IF(INDIRECT(\"c\" & (VLOOKUP(Rebalance!$D$52,$F$2:$G$48,2,FALSE)+ROW()-2))=Rebalance!$D$52,INDIRECT(\"a\" & (VLOOKUP(Rebalance!$D$52,$F$2:$G$48,2,FALSE)+ROW()-2)),\"\")","v":{"$error":"#N/A"}},{"$f":"IF(INDIRECT(\"c\" & (VLOOKUP(Rebalance!$D$53,$F$2:$G$48,2,FALSE)+ROW()-2))=Rebalance!$D$53,INDIRECT(\"a\" & (VLOOKUP(Rebalance!$D$53,$F$2:$G$48,2,FALSE)+ROW()-2)),\"\")","v":{"$error":"#N/A"}},{"$f":"IF(INDIRECT(\"c\" & (VLOOKUP(Rebalance!$D$54,$F$2:$G$48,2,FALSE)+ROW()-2))=Rebalance!$D$54,INDIRECT(\"a\" & (VLOOKUP(Rebalance!$D$54,$F$2:$G$48,2,FALSE)+ROW()-2)),\"\")","v":{"$error":"#N/A"}},{"$f":"IF(INDIRECT(\"c\" & (VLOOKUP(Rebalance!$D$55,$F$2:$G$48,2,FALSE)+ROW()-2))=Rebalance!$D$55,INDIRECT(\"a\" & (VLOOKUP(Rebalance!$D$55,$F$2:$G$48,2,FALSE)+ROW()-2)),\"\")","v":{"$error":"#N/A"}},{"$f":"IF(INDIRECT(\"c\" & (VLOOKUP(Rebalance!$D$56,$F$2:$G$48,2,FALSE)+ROW()-2))=Rebalance!$D$56,INDIRECT(\"a\" & (VLOOKUP(Rebalance!$D$56,$F$2:$G$48,2,FALSE)+ROW()-2)),\"\")","v":{"$error":"#N/A"}},{"$f":"IF(INDIRECT(\"c\" & (VLOOKUP(Rebalance!$D$57,$F$2:$G$48,2,FALSE)+ROW()-2))=Rebalance!$D$57,INDIRECT(\"a\" & (VLOOKUP(Rebalance!$D$57,$F$2:$G$48,2,FALSE)+ROW()-2)),\"\")","v":{"$error":"#N/A"}},{"$f":"IF(INDIRECT(\"c\" & (VLOOKUP(Rebalance!$D$58,$F$2:$G$48,2,FALSE)+ROW()-2))=Rebalance!$D$58,INDIRECT(\"a\" & (VLOOKUP(Rebalance!$D$58,$F$2:$G$48,2,FALSE)+ROW()-2)),\"\")","v":{"$error":"#N/A"}},{"$f":"IF(INDIRECT(\"c\" & (VLOOKUP(Rebalance!$D$59,$F$2:$G$48,2,FALSE)+ROW()-2))=Rebalance!$D$59,INDIRECT(\"a\" & (VLOOKUP(Rebalance!$D$59,$F$2:$G$48,2,FALSE)+ROW()-2)),\"\")","v":{"$error":"#N/A"}},{"$f":"IF(INDIRECT(\"c\" & (VLOOKUP(Rebalance!$D$60,$F$2:$G$48,2,FALSE)+ROW()-2))=Rebalance!$D$60,INDIRECT(\"a\" & (VLOOKUP(Rebalance!$D$60,$F$2:$G$48,2,FALSE)+ROW()-2)),\"\")","v":{"$error":"#N/A"}},{"$f":"IF(INDIRECT(\"c\" & (VLOOKUP(Rebalance!$D$61,$F$2:$G$48,2,FALSE)+ROW()-2))=Rebalance!$D$61,INDIRECT(\"a\" & (VLOOKUP(Rebalance!$D$61,$F$2:$G$48,2,FALSE)+ROW()-2)),\"\")","v":{"$error":"#N/A"}},{"$f":"IF(INDIRECT(\"c\" & (VLOOKUP(Rebalance!$D$62,$F$2:$G$48,2,FALSE)+ROW()-2))=Rebalance!$D$62,INDIRECT(\"a\" & (VLOOKUP(Rebalance!$D$62,$F$2:$G$48,2,FALSE)+ROW()-2)),\"\")","v":{"$error":"#N/A"}},{"$f":"IF(INDIRECT(\"c\" & (VLOOKUP(Rebalance!$D$63,$F$2:$G$48,2,FALSE)+ROW()-2))=Rebalance!$D$63,INDIRECT(\"a\" & (VLOOKUP(Rebalance!$D$63,$F$2:$G$48,2,FALSE)+ROW()-2)),\"\")","v":{"$error":"#N/A"}},{"$f":"IF(INDIRECT(\"c\" & (VLOOKUP(Rebalance!$D$64,$F$2:$G$48,2,FALSE)+ROW()-2))=Rebalance!$D$64,INDIRECT(\"a\" & (VLOOKUP(Rebalance!$D$64,$F$2:$G$48,2,FALSE)+ROW()-2)),\"\")","v":{"$error":"#N/A"}},{"$f":"IF(INDIRECT(\"c\" & (VLOOKUP(Rebalance!$D$65,$F$2:$G$48,2,FALSE)+ROW()-2))=Rebalance!$D$65,INDIRECT(\"a\" & (VLOOKUP(Rebalance!$D$65,$F$2:$G$48,2,FALSE)+ROW()-2)),\"\")","v":{"$error":"#N/A"}},{"$f":"IF(INDIRECT(\"c\" & (VLOOKUP(Rebalance!$D$66,$F$2:$G$48,2,FALSE)+ROW()-2))=Rebalance!$D$66,INDIRECT(\"a\" & (VLOOKUP(Rebalance!$D$66,$F$2:$G$48,2,FALSE)+ROW()-2)),\"\")","v":{"$error":"#N/A"}}]
["Marriott International Real Estate Feeder Fund","MGRE","Marriott Unit Trust Management Company Ltd",{"$f":"ROW()","v":310},null,null,{"$f":"VLOOKUP(F310,$C$2:$D$599,2,FALSE)","v":{"$error":"#N/A"}},{"$f":"IF(INDIRECT(\"c\" & (VLOOKUP(Rebalance!$D$26,$F$2:$G$48,2,FALSE)+ROW()-2))=Rebalance!$D$26,INDIRECT(\"a\" & (VLOOKUP(Rebalance!$D$26,$F$2:$G$48,2,FALSE)+ROW()-2)),\"\")","v":{"$error":"#N/A"}},{"$f":"IF(INDIRECT(\"c\" & (VLOOKUP(Rebalance!$D$27,$F$2:$G$48,2,FALSE)+ROW()-2))=Rebalance!$D$27,INDIRECT(\"a\" & (VLOOKUP(Rebalance!$D$27,$F$2:$G$48,2,FALSE)+ROW()-2)),\"\")","v":{"$error":"#N/A"}},{"$f":"IF(INDIRECT(\"c\" & (VLOOKUP(Rebalance!$D$28,$F$2:$G$48,2,FALSE)+ROW()-2))=Rebalance!$D$28,INDIRECT(\"a\" & (VLOOKUP(Rebalance!$D$28,$F$2:$G$48,2,FALSE)+ROW()-2)),\"\")","v":{"$error":"#N/A"}},{"$f":"IF(INDIRECT(\"c\" & (VLOOKUP(Rebalance!$D$29,$F$2:$G$48,2,FALSE)+ROW()-2))=Rebalance!$D$29,INDIRECT(\"a\" & (VLOOKUP(Rebalance!$D$29,$F$2:$G$48,2,FALSE)+ROW()-2)),\"\")","v":{"$error":"#N/A"}},{"$f":"IF(INDIRECT(\"c\" & (VLOOKUP(Rebalance!$D$30,$F$2:$G$48,2,FALSE)+ROW()-2))=Rebalance!$D$30,INDIRECT(\"a\" & (VLOOKUP(Rebalance!$D$30,$F$2:$G$48,2,FALSE)+ROW()-2)),\"\")","v":{"$error":"#N/A"}},{"$f":"IF(INDIRECT(\"c\" & (VLOOKUP(Rebalance!$D$31,$F$2:$G$48,2,FALSE)+ROW()-2))=Rebalance!$D$31,INDIRECT(\"a\" & (VLOOKUP(Rebalance!$D$31,$F$2:$G$48,2,FALSE)+ROW()-2)),\"\")","v":{"$error":"#N/A"}},{"$f":"IF(INDIRECT(\"c\" & (VLOOKUP(Rebalance!$D$32,$F$2:$G$48,2,FALSE)+ROW()-2))=Rebalance!$D$32,INDIRECT(\"a\" & (VLOOKUP(Rebalance!$D$32,$F$2:$G$48,2,FALSE)+ROW()-2)),\"\")","v":{"$error":"#N/A"}},{"$f":"IF(INDIRECT(\"c\" & (VLOOKUP(Rebalance!$D$33,$F$2:$G$48,2,FALSE)+ROW()-2))=Rebalance!$D$33,INDIRECT(\"a\" & (VLOOKUP(Rebalance!$D$33,$F$2:$G$48,2,FALSE)+ROW()-2)),\"\")","v":{"$error":"#N/A"}},{"$f":"IF(INDIRECT(\"c\" & (VLOOKUP(Rebalance!$D$34,$F$2:$G$48,2,FALSE)+ROW()-2))=Rebalance!$D$34,INDIRECT(\"a\" & (VLOOKUP(Rebalance!$D$34,$F$2:$G$48,2,FALSE)+ROW()-2)),\"\")","v":{"$error":"#N/A"}},{"$f":"IF(INDIRECT(\"c\" & (VLOOKUP(Rebalance!$D$35,$F$2:$G$48,2,FALSE)+ROW()-2))=Rebalance!$D$35,INDIRECT(\"a\" & (VLOOKUP(Rebalance!$D$35,$F$2:$G$48,2,FALSE)+ROW()-2)),\"\")","v":{"$error":"#N/A"}},{"$f":"IF(INDIRECT(\"c\" & (VLOOKUP(Rebalance!$D$36,$F$2:$G$48,2,FALSE)+ROW()-2))=Rebalance!$D$36,INDIRECT(\"a\" & (VLOOKUP(Rebalance!$D$36,$F$2:$G$48,2,FALSE)+ROW()-2)),\"\")","v":{"$error":"#N/A"}},{"$f":"IF(INDIRECT(\"c\" & (VLOOKUP(Rebalance!$D$37,$F$2:$G$48,2,FALSE)+ROW()-2))=Rebalance!$D$37,INDIRECT(\"a\" & (VLOOKUP(Rebalance!$D$37,$F$2:$G$48,2,FALSE)+ROW()-2)),\"\")","v":{"$error":"#N/A"}},{"$f":"IF(INDIRECT(\"c\" & (VLOOKUP(Rebalance!$D$38,$F$2:$G$48,2,FALSE)+ROW()-2))=Rebalance!$D$38,INDIRECT(\"a\" & (VLOOKUP(Rebalance!$D$38,$F$2:$G$48,2,FALSE)+ROW()-2)),\"\")","v":{"$error":"#N/A"}},{"$f":"IF(INDIRECT(\"c\" & (VLOOKUP(Rebalance!$D$39,$F$2:$G$48,2,FALSE)+ROW()-2))=Rebalance!$D$39,INDIRECT(\"a\" & (VLOOKUP(Rebalance!$D$39,$F$2:$G$48,2,FALSE)+ROW()-2)),\"\")","v":{"$error":"#N/A"}},{"$f":"IF(INDIRECT(\"c\" & (VLOOKUP(Rebalance!$D$40,$F$2:$G$48,2,FALSE)+ROW()-2))=Rebalance!$D$40,INDIRECT(\"a\" & (VLOOKUP(Rebalance!$D$40,$F$2:$G$48,2,FALSE)+ROW()-2)),\"\")","v":{"$error":"#N/A"}},{"$f":"IF(INDIRECT(\"c\" & (VLOOKUP(Rebalance!$D$52,$F$2:$G$48,2,FALSE)+ROW()-2))=Rebalance!$D$52,INDIRECT(\"a\" & (VLOOKUP(Rebalance!$D$52,$F$2:$G$48,2,FALSE)+ROW()-2)),\"\")","v":{"$error":"#N/A"}},{"$f":"IF(INDIRECT(\"c\" & (VLOOKUP(Rebalance!$D$53,$F$2:$G$48,2,FALSE)+ROW()-2))=Rebalance!$D$53,INDIRECT(\"a\" & (VLOOKUP(Rebalance!$D$53,$F$2:$G$48,2,FALSE)+ROW()-2)),\"\")","v":{"$error":"#N/A"}},{"$f":"IF(INDIRECT(\"c\" & (VLOOKUP(Rebalance!$D$54,$F$2:$G$48,2,FALSE)+ROW()-2))=Rebalance!$D$54,INDIRECT(\"a\" & (VLOOKUP(Rebalance!$D$54,$F$2:$G$48,2,FALSE)+ROW()-2)),\"\")","v":{"$error":"#N/A"}},{"$f":"IF(INDIRECT(\"c\" & (VLOOKUP(Rebalance!$D$55,$F$2:$G$48,2,FALSE)+ROW()-2))=Rebalance!$D$55,INDIRECT(\"a\" & (VLOOKUP(Rebalance!$D$55,$F$2:$G$48,2,FALSE)+ROW()-2)),\"\")","v":{"$error":"#N/A"}},{"$f":"IF(INDIRECT(\"c\" & (VLOOKUP(Rebalance!$D$56,$F$2:$G$48,2,FALSE)+ROW()-2))=Rebalance!$D$56,INDIRECT(\"a\" & (VLOOKUP(Rebalance!$D$56,$F$2:$G$48,2,FALSE)+ROW()-2)),\"\")","v":{"$error":"#N/A"}},{"$f":"IF(INDIRECT(\"c\" & (VLOOKUP(Rebalance!$D$57,$F$2:$G$48,2,FALSE)+ROW()-2))=Rebalance!$D$57,INDIRECT(\"a\" & (VLOOKUP(Rebalance!$D$57,$F$2:$G$48,2,FALSE)+ROW()-2)),\"\")","v":{"$error":"#N/A"}},{"$f":"IF(INDIRECT(\"c\" & (VLOOKUP(Rebalance!$D$58,$F$2:$G$48,2,FALSE)+ROW()-2))=Rebalance!$D$58,INDIRECT(\"a\" & (VLOOKUP(Rebalance!$D$58,$F$2:$G$48,2,FALSE)+ROW()-2)),\"\")","v":{"$error":"#N/A"}},{"$f":"IF(INDIRECT(\"c\" & (VLOOKUP(Rebalance!$D$59,$F$2:$G$48,2,FALSE)+ROW()-2))=Rebalance!$D$59,INDIRECT(\"a\" & (VLOOKUP(Rebalance!$D$59,$F$2:$G$48,2,FALSE)+ROW()-2)),\"\")","v":{"$error":"#N/A"}},{"$f":"IF(INDIRECT(\"c\" & (VLOOKUP(Rebalance!$D$60,$F$2:$G$48,2,FALSE)+ROW()-2))=Rebalance!$D$60,INDIRECT(\"a\" & (VLOOKUP(Rebalance!$D$60,$F$2:$G$48,2,FALSE)+ROW()-2)),\"\")","v":{"$error":"#N/A"}},{"$f":"IF(INDIRECT(\"c\" & (VLOOKUP(Rebalance!$D$61,$F$2:$G$48,2,FALSE)+ROW()-2))=Rebalance!$D$61,INDIRECT(\"a\" & (VLOOKUP(Rebalance!$D$61,$F$2:$G$48,2,FALSE)+ROW()-2)),\"\")","v":{"$error":"#N/A"}},{"$f":"IF(INDIRECT(\"c\" & (VLOOKUP(Rebalance!$D$62,$F$2:$G$48,2,FALSE)+ROW()-2))=Rebalance!$D$62,INDIRECT(\"a\" & (VLOOKUP(Rebalance!$D$62,$F$2:$G$48,2,FALSE)+ROW()-2)),\"\")","v":{"$error":"#N/A"}},{"$f":"IF(INDIRECT(\"c\" & (VLOOKUP(Rebalance!$D$63,$F$2:$G$48,2,FALSE)+ROW()-2))=Rebalance!$D$63,INDIRECT(\"a\" & (VLOOKUP(Rebalance!$D$63,$F$2:$G$48,2,FALSE)+ROW()-2)),\"\")","v":{"$error":"#N/A"}},{"$f":"IF(INDIRECT(\"c\" & (VLOOKUP(Rebalance!$D$64,$F$2:$G$48,2,FALSE)+ROW()-2))=Rebalance!$D$64,INDIRECT(\"a\" & (VLOOKUP(Rebalance!$D$64,$F$2:$G$48,2,FALSE)+ROW()-2)),\"\")","v":{"$error":"#N/A"}},{"$f":"IF(INDIRECT(\"c\" & (VLOOKUP(Rebalance!$D$65,$F$2:$G$48,2,FALSE)+ROW()-2))=Rebalance!$D$65,INDIRECT(\"a\" & (VLOOKUP(Rebalance!$D$65,$F$2:$G$48,2,FALSE)+ROW()-2)),\"\")","v":{"$error":"#N/A"}},{"$f":"IF(INDIRECT(\"c\" & (VLOOKUP(Rebalance!$D$66,$F$2:$G$48,2,FALSE)+ROW()-2))=Rebalance!$D$66,INDIRECT(\"a\" & (VLOOKUP(Rebalance!$D$66,$F$2:$G$48,2,FALSE)+ROW()-2)),\"\")","v":{"$error":"#N/A"}}]
["Marriott Property Equity Fund Class C","MPED","Marriott Unit Trust Management Company Ltd",{"$f":"ROW()","v":311},null,null,{"$f":"VLOOKUP(F311,$C$2:$D$599,2,FALSE)","v":{"$error":"#N/A"}},{"$f":"IF(INDIRECT(\"c\" & (VLOOKUP(Rebalance!$D$26,$F$2:$G$48,2,FALSE)+ROW()-2))=Rebalance!$D$26,INDIRECT(\"a\" & (VLOOKUP(Rebalance!$D$26,$F$2:$G$48,2,FALSE)+ROW()-2)),\"\")","v":{"$error":"#N/A"}},{"$f":"IF(INDIRECT(\"c\" & (VLOOKUP(Rebalance!$D$27,$F$2:$G$48,2,FALSE)+ROW()-2))=Rebalance!$D$27,INDIRECT(\"a\" & (VLOOKUP(Rebalance!$D$27,$F$2:$G$48,2,FALSE)+ROW()-2)),\"\")","v":{"$error":"#N/A"}},{"$f":"IF(INDIRECT(\"c\" & (VLOOKUP(Rebalance!$D$28,$F$2:$G$48,2,FALSE)+ROW()-2))=Rebalance!$D$28,INDIRECT(\"a\" & (VLOOKUP(Rebalance!$D$28,$F$2:$G$48,2,FALSE)+ROW()-2)),\"\")","v":{"$error":"#N/A"}},{"$f":"IF(INDIRECT(\"c\" & (VLOOKUP(Rebalance!$D$29,$F$2:$G$48,2,FALSE)+ROW()-2))=Rebalance!$D$29,INDIRECT(\"a\" & (VLOOKUP(Rebalance!$D$29,$F$2:$G$48,2,FALSE)+ROW()-2)),\"\")","v":{"$error":"#N/A"}},{"$f":"IF(INDIRECT(\"c\" & (VLOOKUP(Rebalance!$D$30,$F$2:$G$48,2,FALSE)+ROW()-2))=Rebalance!$D$30,INDIRECT(\"a\" & (VLOOKUP(Rebalance!$D$30,$F$2:$G$48,2,FALSE)+ROW()-2)),\"\")","v":{"$error":"#N/A"}},{"$f":"IF(INDIRECT(\"c\" & (VLOOKUP(Rebalance!$D$31,$F$2:$G$48,2,FALSE)+ROW()-2))=Rebalance!$D$31,INDIRECT(\"a\" & (VLOOKUP(Rebalance!$D$31,$F$2:$G$48,2,FALSE)+ROW()-2)),\"\")","v":{"$error":"#N/A"}},{"$f":"IF(INDIRECT(\"c\" & (VLOOKUP(Rebalance!$D$32,$F$2:$G$48,2,FALSE)+ROW()-2))=Rebalance!$D$32,INDIRECT(\"a\" & (VLOOKUP(Rebalance!$D$32,$F$2:$G$48,2,FALSE)+ROW()-2)),\"\")","v":{"$error":"#N/A"}},{"$f":"IF(INDIRECT(\"c\" & (VLOOKUP(Rebalance!$D$33,$F$2:$G$48,2,FALSE)+ROW()-2))=Rebalance!$D$33,INDIRECT(\"a\" & (VLOOKUP(Rebalance!$D$33,$F$2:$G$48,2,FALSE)+ROW()-2)),\"\")","v":{"$error":"#N/A"}},{"$f":"IF(INDIRECT(\"c\" & (VLOOKUP(Rebalance!$D$34,$F$2:$G$48,2,FALSE)+ROW()-2))=Rebalance!$D$34,INDIRECT(\"a\" & (VLOOKUP(Rebalance!$D$34,$F$2:$G$48,2,FALSE)+ROW()-2)),\"\")","v":{"$error":"#N/A"}},{"$f":"IF(INDIRECT(\"c\" & (VLOOKUP(Rebalance!$D$35,$F$2:$G$48,2,FALSE)+ROW()-2))=Rebalance!$D$35,INDIRECT(\"a\" & (VLOOKUP(Rebalance!$D$35,$F$2:$G$48,2,FALSE)+ROW()-2)),\"\")","v":{"$error":"#N/A"}},{"$f":"IF(INDIRECT(\"c\" & (VLOOKUP(Rebalance!$D$36,$F$2:$G$48,2,FALSE)+ROW()-2))=Rebalance!$D$36,INDIRECT(\"a\" & (VLOOKUP(Rebalance!$D$36,$F$2:$G$48,2,FALSE)+ROW()-2)),\"\")","v":{"$error":"#N/A"}},{"$f":"IF(INDIRECT(\"c\" & (VLOOKUP(Rebalance!$D$37,$F$2:$G$48,2,FALSE)+ROW()-2))=Rebalance!$D$37,INDIRECT(\"a\" & (VLOOKUP(Rebalance!$D$37,$F$2:$G$48,2,FALSE)+ROW()-2)),\"\")","v":{"$error":"#N/A"}},{"$f":"IF(INDIRECT(\"c\" & (VLOOKUP(Rebalance!$D$38,$F$2:$G$48,2,FALSE)+ROW()-2))=Rebalance!$D$38,INDIRECT(\"a\" & (VLOOKUP(Rebalance!$D$38,$F$2:$G$48,2,FALSE)+ROW()-2)),\"\")","v":{"$error":"#N/A"}},{"$f":"IF(INDIRECT(\"c\" & (VLOOKUP(Rebalance!$D$39,$F$2:$G$48,2,FALSE)+ROW()-2))=Rebalance!$D$39,INDIRECT(\"a\" & (VLOOKUP(Rebalance!$D$39,$F$2:$G$48,2,FALSE)+ROW()-2)),\"\")","v":{"$error":"#N/A"}},{"$f":"IF(INDIRECT(\"c\" & (VLOOKUP(Rebalance!$D$40,$F$2:$G$48,2,FALSE)+ROW()-2))=Rebalance!$D$40,INDIRECT(\"a\" & (VLOOKUP(Rebalance!$D$40,$F$2:$G$48,2,FALSE)+ROW()-2)),\"\")","v":{"$error":"#N/A"}},{"$f":"IF(INDIRECT(\"c\" & (VLOOKUP(Rebalance!$D$52,$F$2:$G$48,2,FALSE)+ROW()-2))=Rebalance!$D$52,INDIRECT(\"a\" & (VLOOKUP(Rebalance!$D$52,$F$2:$G$48,2,FALSE)+ROW()-2)),\"\")","v":{"$error":"#N/A"}},{"$f":"IF(INDIRECT(\"c\" & (VLOOKUP(Rebalance!$D$53,$F$2:$G$48,2,FALSE)+ROW()-2))=Rebalance!$D$53,INDIRECT(\"a\" & (VLOOKUP(Rebalance!$D$53,$F$2:$G$48,2,FALSE)+ROW()-2)),\"\")","v":{"$error":"#N/A"}},{"$f":"IF(INDIRECT(\"c\" & (VLOOKUP(Rebalance!$D$54,$F$2:$G$48,2,FALSE)+ROW()-2))=Rebalance!$D$54,INDIRECT(\"a\" & (VLOOKUP(Rebalance!$D$54,$F$2:$G$48,2,FALSE)+ROW()-2)),\"\")","v":{"$error":"#N/A"}},{"$f":"IF(INDIRECT(\"c\" & (VLOOKUP(Rebalance!$D$55,$F$2:$G$48,2,FALSE)+ROW()-2))=Rebalance!$D$55,INDIRECT(\"a\" & (VLOOKUP(Rebalance!$D$55,$F$2:$G$48,2,FALSE)+ROW()-2)),\"\")","v":{"$error":"#N/A"}},{"$f":"IF(INDIRECT(\"c\" & (VLOOKUP(Rebalance!$D$56,$F$2:$G$48,2,FALSE)+ROW()-2))=Rebalance!$D$56,INDIRECT(\"a\" & (VLOOKUP(Rebalance!$D$56,$F$2:$G$48,2,FALSE)+ROW()-2)),\"\")","v":{"$error":"#N/A"}},{"$f":"IF(INDIRECT(\"c\" & (VLOOKUP(Rebalance!$D$57,$F$2:$G$48,2,FALSE)+ROW()-2))=Rebalance!$D$57,INDIRECT(\"a\" & (VLOOKUP(Rebalance!$D$57,$F$2:$G$48,2,FALSE)+ROW()-2)),\"\")","v":{"$error":"#N/A"}},{"$f":"IF(INDIRECT(\"c\" & (VLOOKUP(Rebalance!$D$58,$F$2:$G$48,2,FALSE)+ROW()-2))=Rebalance!$D$58,INDIRECT(\"a\" & (VLOOKUP(Rebalance!$D$58,$F$2:$G$48,2,FALSE)+ROW()-2)),\"\")","v":{"$error":"#N/A"}},{"$f":"IF(INDIRECT(\"c\" & (VLOOKUP(Rebalance!$D$59,$F$2:$G$48,2,FALSE)+ROW()-2))=Rebalance!$D$59,INDIRECT(\"a\" & (VLOOKUP(Rebalance!$D$59,$F$2:$G$48,2,FALSE)+ROW()-2)),\"\")","v":{"$error":"#N/A"}},{"$f":"IF(INDIRECT(\"c\" & (VLOOKUP(Rebalance!$D$60,$F$2:$G$48,2,FALSE)+ROW()-2))=Rebalance!$D$60,INDIRECT(\"a\" & (VLOOKUP(Rebalance!$D$60,$F$2:$G$48,2,FALSE)+ROW()-2)),\"\")","v":{"$error":"#N/A"}},{"$f":"IF(INDIRECT(\"c\" & (VLOOKUP(Rebalance!$D$61,$F$2:$G$48,2,FALSE)+ROW()-2))=Rebalance!$D$61,INDIRECT(\"a\" & (VLOOKUP(Rebalance!$D$61,$F$2:$G$48,2,FALSE)+ROW()-2)),\"\")","v":{"$error":"#N/A"}},{"$f":"IF(INDIRECT(\"c\" & (VLOOKUP(Rebalance!$D$62,$F$2:$G$48,2,FALSE)+ROW()-2))=Rebalance!$D$62,INDIRECT(\"a\" & (VLOOKUP(Rebalance!$D$62,$F$2:$G$48,2,FALSE)+ROW()-2)),\"\")","v":{"$error":"#N/A"}},{"$f":"IF(INDIRECT(\"c\" & (VLOOKUP(Rebalance!$D$63,$F$2:$G$48,2,FALSE)+ROW()-2))=Rebalance!$D$63,INDIRECT(\"a\" & (VLOOKUP(Rebalance!$D$63,$F$2:$G$48,2,FALSE)+ROW()-2)),\"\")","v":{"$error":"#N/A"}},{"$f":"IF(INDIRECT(\"c\" & (VLOOKUP(Rebalance!$D$64,$F$2:$G$48,2,FALSE)+ROW()-2))=Rebalance!$D$64,INDIRECT(\"a\" & (VLOOKUP(Rebalance!$D$64,$F$2:$G$48,2,FALSE)+ROW()-2)),\"\")","v":{"$error":"#N/A"}},{"$f":"IF(INDIRECT(\"c\" & (VLOOKUP(Rebalance!$D$65,$F$2:$G$48,2,FALSE)+ROW()-2))=Rebalance!$D$65,INDIRECT(\"a\" & (VLOOKUP(Rebalance!$D$65,$F$2:$G$48,2,FALSE)+ROW()-2)),\"\")","v":{"$error":"#N/A"}},{"$f":"IF(INDIRECT(\"c\" & (VLOOKUP(Rebalance!$D$66,$F$2:$G$48,2,FALSE)+ROW()-2))=Rebalance!$D$66,INDIRECT(\"a\" & (VLOOKUP(Rebalance!$D$66,$F$2:$G$48,2,FALSE)+ROW()-2)),\"\")","v":{"$error":"#N/A"}}]
["Marriott Worldwide Flexible Fund of Funds D","MWDD","Marriott Unit Trust Management Company Ltd",{"$f":"ROW()","v":312},null,null,{"$f":"VLOOKUP(F312,$C$2:$D$599,2,FALSE)","v":{"$error":"#N/A"}},{"$f":"IF(INDIRECT(\"c\" & (VLOOKUP(Rebalance!$D$26,$F$2:$G$48,2,FALSE)+ROW()-2))=Rebalance!$D$26,INDIRECT(\"a\" & (VLOOKUP(Rebalance!$D$26,$F$2:$G$48,2,FALSE)+ROW()-2)),\"\")","v":{"$error":"#N/A"}},{"$f":"IF(INDIRECT(\"c\" & (VLOOKUP(Rebalance!$D$27,$F$2:$G$48,2,FALSE)+ROW()-2))=Rebalance!$D$27,INDIRECT(\"a\" & (VLOOKUP(Rebalance!$D$27,$F$2:$G$48,2,FALSE)+ROW()-2)),\"\")","v":{"$error":"#N/A"}},{"$f":"IF(INDIRECT(\"c\" & (VLOOKUP(Rebalance!$D$28,$F$2:$G$48,2,FALSE)+ROW()-2))=Rebalance!$D$28,INDIRECT(\"a\" & (VLOOKUP(Rebalance!$D$28,$F$2:$G$48,2,FALSE)+ROW()-2)),\"\")","v":{"$error":"#N/A"}},{"$f":"IF(INDIRECT(\"c\" & (VLOOKUP(Rebalance!$D$29,$F$2:$G$48,2,FALSE)+ROW()-2))=Rebalance!$D$29,INDIRECT(\"a\" & (VLOOKUP(Rebalance!$D$29,$F$2:$G$48,2,FALSE)+ROW()-2)),\"\")","v":{"$error":"#N/A"}},{"$f":"IF(INDIRECT(\"c\" & (VLOOKUP(Rebalance!$D$30,$F$2:$G$48,2,FALSE)+ROW()-2))=Rebalance!$D$30,INDIRECT(\"a\" & (VLOOKUP(Rebalance!$D$30,$F$2:$G$48,2,FALSE)+ROW()-2)),\"\")","v":{"$error":"#N/A"}},{"$f":"IF(INDIRECT(\"c\" & (VLOOKUP(Rebalance!$D$31,$F$2:$G$48,2,FALSE)+ROW()-2))=Rebalance!$D$31,INDIRECT(\"a\" & (VLOOKUP(Rebalance!$D$31,$F$2:$G$48,2,FALSE)+ROW()-2)),\"\")","v":{"$error":"#N/A"}},{"$f":"IF(INDIRECT(\"c\" & (VLOOKUP(Rebalance!$D$32,$F$2:$G$48,2,FALSE)+ROW()-2))=Rebalance!$D$32,INDIRECT(\"a\" & (VLOOKUP(Rebalance!$D$32,$F$2:$G$48,2,FALSE)+ROW()-2)),\"\")","v":{"$error":"#N/A"}},{"$f":"IF(INDIRECT(\"c\" & (VLOOKUP(Rebalance!$D$33,$F$2:$G$48,2,FALSE)+ROW()-2))=Rebalance!$D$33,INDIRECT(\"a\" & (VLOOKUP(Rebalance!$D$33,$F$2:$G$48,2,FALSE)+ROW()-2)),\"\")","v":{"$error":"#N/A"}},{"$f":"IF(INDIRECT(\"c\" & (VLOOKUP(Rebalance!$D$34,$F$2:$G$48,2,FALSE)+ROW()-2))=Rebalance!$D$34,INDIRECT(\"a\" & (VLOOKUP(Rebalance!$D$34,$F$2:$G$48,2,FALSE)+ROW()-2)),\"\")","v":{"$error":"#N/A"}},{"$f":"IF(INDIRECT(\"c\" & (VLOOKUP(Rebalance!$D$35,$F$2:$G$48,2,FALSE)+ROW()-2))=Rebalance!$D$35,INDIRECT(\"a\" & (VLOOKUP(Rebalance!$D$35,$F$2:$G$48,2,FALSE)+ROW()-2)),\"\")","v":{"$error":"#N/A"}},{"$f":"IF(INDIRECT(\"c\" & (VLOOKUP(Rebalance!$D$36,$F$2:$G$48,2,FALSE)+ROW()-2))=Rebalance!$D$36,INDIRECT(\"a\" & (VLOOKUP(Rebalance!$D$36,$F$2:$G$48,2,FALSE)+ROW()-2)),\"\")","v":{"$error":"#N/A"}},{"$f":"IF(INDIRECT(\"c\" & (VLOOKUP(Rebalance!$D$37,$F$2:$G$48,2,FALSE)+ROW()-2))=Rebalance!$D$37,INDIRECT(\"a\" & (VLOOKUP(Rebalance!$D$37,$F$2:$G$48,2,FALSE)+ROW()-2)),\"\")","v":{"$error":"#N/A"}},{"$f":"IF(INDIRECT(\"c\" & (VLOOKUP(Rebalance!$D$38,$F$2:$G$48,2,FALSE)+ROW()-2))=Rebalance!$D$38,INDIRECT(\"a\" & (VLOOKUP(Rebalance!$D$38,$F$2:$G$48,2,FALSE)+ROW()-2)),\"\")","v":{"$error":"#N/A"}},{"$f":"IF(INDIRECT(\"c\" & (VLOOKUP(Rebalance!$D$39,$F$2:$G$48,2,FALSE)+ROW()-2))=Rebalance!$D$39,INDIRECT(\"a\" & (VLOOKUP(Rebalance!$D$39,$F$2:$G$48,2,FALSE)+ROW()-2)),\"\")","v":{"$error":"#N/A"}},{"$f":"IF(INDIRECT(\"c\" & (VLOOKUP(Rebalance!$D$40,$F$2:$G$48,2,FALSE)+ROW()-2))=Rebalance!$D$40,INDIRECT(\"a\" & (VLOOKUP(Rebalance!$D$40,$F$2:$G$48,2,FALSE)+ROW()-2)),\"\")","v":{"$error":"#N/A"}},{"$f":"IF(INDIRECT(\"c\" & (VLOOKUP(Rebalance!$D$52,$F$2:$G$48,2,FALSE)+ROW()-2))=Rebalance!$D$52,INDIRECT(\"a\" & (VLOOKUP(Rebalance!$D$52,$F$2:$G$48,2,FALSE)+ROW()-2)),\"\")","v":{"$error":"#N/A"}},{"$f":"IF(INDIRECT(\"c\" & (VLOOKUP(Rebalance!$D$53,$F$2:$G$48,2,FALSE)+ROW()-2))=Rebalance!$D$53,INDIRECT(\"a\" & (VLOOKUP(Rebalance!$D$53,$F$2:$G$48,2,FALSE)+ROW()-2)),\"\")","v":{"$error":"#N/A"}},{"$f":"IF(INDIRECT(\"c\" & (VLOOKUP(Rebalance!$D$54,$F$2:$G$48,2,FALSE)+ROW()-2))=Rebalance!$D$54,INDIRECT(\"a\" & (VLOOKUP(Rebalance!$D$54,$F$2:$G$48,2,FALSE)+ROW()-2)),\"\")","v":{"$error":"#N/A"}},{"$f":"IF(INDIRECT(\"c\" & (VLOOKUP(Rebalance!$D$55,$F$2:$G$48,2,FALSE)+ROW()-2))=Rebalance!$D$55,INDIRECT(\"a\" & (VLOOKUP(Rebalance!$D$55,$F$2:$G$48,2,FALSE)+ROW()-2)),\"\")","v":{"$error":"#N/A"}},{"$f":"IF(INDIRECT(\"c\" & (VLOOKUP(Rebalance!$D$56,$F$2:$G$48,2,FALSE)+ROW()-2))=Rebalance!$D$56,INDIRECT(\"a\" & (VLOOKUP(Rebalance!$D$56,$F$2:$G$48,2,FALSE)+ROW()-2)),\"\")","v":{"$error":"#N/A"}},{"$f":"IF(INDIRECT(\"c\" & (VLOOKUP(Rebalance!$D$57,$F$2:$G$48,2,FALSE)+ROW()-2))=Rebalance!$D$57,INDIRECT(\"a\" & (VLOOKUP(Rebalance!$D$57,$F$2:$G$48,2,FALSE)+ROW()-2)),\"\")","v":{"$error":"#N/A"}},{"$f":"IF(INDIRECT(\"c\" & (VLOOKUP(Rebalance!$D$58,$F$2:$G$48,2,FALSE)+ROW()-2))=Rebalance!$D$58,INDIRECT(\"a\" & (VLOOKUP(Rebalance!$D$58,$F$2:$G$48,2,FALSE)+ROW()-2)),\"\")","v":{"$error":"#N/A"}},{"$f":"IF(INDIRECT(\"c\" & (VLOOKUP(Rebalance!$D$59,$F$2:$G$48,2,FALSE)+ROW()-2))=Rebalance!$D$59,INDIRECT(\"a\" & (VLOOKUP(Rebalance!$D$59,$F$2:$G$48,2,FALSE)+ROW()-2)),\"\")","v":{"$error":"#N/A"}},{"$f":"IF(INDIRECT(\"c\" & (VLOOKUP(Rebalance!$D$60,$F$2:$G$48,2,FALSE)+ROW()-2))=Rebalance!$D$60,INDIRECT(\"a\" & (VLOOKUP(Rebalance!$D$60,$F$2:$G$48,2,FALSE)+ROW()-2)),\"\")","v":{"$error":"#N/A"}},{"$f":"IF(INDIRECT(\"c\" & (VLOOKUP(Rebalance!$D$61,$F$2:$G$48,2,FALSE)+ROW()-2))=Rebalance!$D$61,INDIRECT(\"a\" & (VLOOKUP(Rebalance!$D$61,$F$2:$G$48,2,FALSE)+ROW()-2)),\"\")","v":{"$error":"#N/A"}},{"$f":"IF(INDIRECT(\"c\" & (VLOOKUP(Rebalance!$D$62,$F$2:$G$48,2,FALSE)+ROW()-2))=Rebalance!$D$62,INDIRECT(\"a\" & (VLOOKUP(Rebalance!$D$62,$F$2:$G$48,2,FALSE)+ROW()-2)),\"\")","v":{"$error":"#N/A"}},{"$f":"IF(INDIRECT(\"c\" & (VLOOKUP(Rebalance!$D$63,$F$2:$G$48,2,FALSE)+ROW()-2))=Rebalance!$D$63,INDIRECT(\"a\" & (VLOOKUP(Rebalance!$D$63,$F$2:$G$48,2,FALSE)+ROW()-2)),\"\")","v":{"$error":"#N/A"}},{"$f":"IF(INDIRECT(\"c\" & (VLOOKUP(Rebalance!$D$64,$F$2:$G$48,2,FALSE)+ROW()-2))=Rebalance!$D$64,INDIRECT(\"a\" & (VLOOKUP(Rebalance!$D$64,$F$2:$G$48,2,FALSE)+ROW()-2)),\"\")","v":{"$error":"#N/A"}},{"$f":"IF(INDIRECT(\"c\" & (VLOOKUP(Rebalance!$D$65,$F$2:$G$48,2,FALSE)+ROW()-2))=Rebalance!$D$65,INDIRECT(\"a\" & (VLOOKUP(Rebalance!$D$65,$F$2:$G$48,2,FALSE)+ROW()-2)),\"\")","v":{"$error":"#N/A"}},{"$f":"IF(INDIRECT(\"c\" & (VLOOKUP(Rebalance!$D$66,$F$2:$G$48,2,FALSE)+ROW()-2))=Rebalance!$D$66,INDIRECT(\"a\" & (VLOOKUP(Rebalance!$D$66,$F$2:$G$48,2,FALSE)+ROW()-2)),\"\")","v":{"$error":"#N/A"}}]
["36One MET Equity Fund D","MNTR","Metropolitan Collective Investments",{"$f":"ROW()","v":313},null,null,{"$f":"VLOOKUP(F313,$C$2:$D$599,2,FALSE)","v":{"$error":"#N/A"}},{"$f":"IF(INDIRECT(\"c\" & (VLOOKUP(Rebalance!$D$26,$F$2:$G$48,2,FALSE)+ROW()-2))=Rebalance!$D$26,INDIRECT(\"a\" & (VLOOKUP(Rebalance!$D$26,$F$2:$G$48,2,FALSE)+ROW()-2)),\"\")","v":{"$error":"#N/A"}},{"$f":"IF(INDIRECT(\"c\" & (VLOOKUP(Rebalance!$D$27,$F$2:$G$48,2,FALSE)+ROW()-2))=Rebalance!$D$27,INDIRECT(\"a\" & (VLOOKUP(Rebalance!$D$27,$F$2:$G$48,2,FALSE)+ROW()-2)),\"\")","v":{"$error":"#N/A"}},{"$f":"IF(INDIRECT(\"c\" & (VLOOKUP(Rebalance!$D$28,$F$2:$G$48,2,FALSE)+ROW()-2))=Rebalance!$D$28,INDIRECT(\"a\" & (VLOOKUP(Rebalance!$D$28,$F$2:$G$48,2,FALSE)+ROW()-2)),\"\")","v":{"$error":"#N/A"}},{"$f":"IF(INDIRECT(\"c\" & (VLOOKUP(Rebalance!$D$29,$F$2:$G$48,2,FALSE)+ROW()-2))=Rebalance!$D$29,INDIRECT(\"a\" & (VLOOKUP(Rebalance!$D$29,$F$2:$G$48,2,FALSE)+ROW()-2)),\"\")","v":{"$error":"#N/A"}},{"$f":"IF(INDIRECT(\"c\" & (VLOOKUP(Rebalance!$D$30,$F$2:$G$48,2,FALSE)+ROW()-2))=Rebalance!$D$30,INDIRECT(\"a\" & (VLOOKUP(Rebalance!$D$30,$F$2:$G$48,2,FALSE)+ROW()-2)),\"\")","v":{"$error":"#N/A"}},{"$f":"IF(INDIRECT(\"c\" & (VLOOKUP(Rebalance!$D$31,$F$2:$G$48,2,FALSE)+ROW()-2))=Rebalance!$D$31,INDIRECT(\"a\" & (VLOOKUP(Rebalance!$D$31,$F$2:$G$48,2,FALSE)+ROW()-2)),\"\")","v":{"$error":"#N/A"}},{"$f":"IF(INDIRECT(\"c\" & (VLOOKUP(Rebalance!$D$32,$F$2:$G$48,2,FALSE)+ROW()-2))=Rebalance!$D$32,INDIRECT(\"a\" & (VLOOKUP(Rebalance!$D$32,$F$2:$G$48,2,FALSE)+ROW()-2)),\"\")","v":{"$error":"#N/A"}},{"$f":"IF(INDIRECT(\"c\" & (VLOOKUP(Rebalance!$D$33,$F$2:$G$48,2,FALSE)+ROW()-2))=Rebalance!$D$33,INDIRECT(\"a\" & (VLOOKUP(Rebalance!$D$33,$F$2:$G$48,2,FALSE)+ROW()-2)),\"\")","v":{"$error":"#N/A"}},{"$f":"IF(INDIRECT(\"c\" & (VLOOKUP(Rebalance!$D$34,$F$2:$G$48,2,FALSE)+ROW()-2))=Rebalance!$D$34,INDIRECT(\"a\" & (VLOOKUP(Rebalance!$D$34,$F$2:$G$48,2,FALSE)+ROW()-2)),\"\")","v":{"$error":"#N/A"}},{"$f":"IF(INDIRECT(\"c\" & (VLOOKUP(Rebalance!$D$35,$F$2:$G$48,2,FALSE)+ROW()-2))=Rebalance!$D$35,INDIRECT(\"a\" & (VLOOKUP(Rebalance!$D$35,$F$2:$G$48,2,FALSE)+ROW()-2)),\"\")","v":{"$error":"#N/A"}},{"$f":"IF(INDIRECT(\"c\" & (VLOOKUP(Rebalance!$D$36,$F$2:$G$48,2,FALSE)+ROW()-2))=Rebalance!$D$36,INDIRECT(\"a\" & (VLOOKUP(Rebalance!$D$36,$F$2:$G$48,2,FALSE)+ROW()-2)),\"\")","v":{"$error":"#N/A"}},{"$f":"IF(INDIRECT(\"c\" & (VLOOKUP(Rebalance!$D$37,$F$2:$G$48,2,FALSE)+ROW()-2))=Rebalance!$D$37,INDIRECT(\"a\" & (VLOOKUP(Rebalance!$D$37,$F$2:$G$48,2,FALSE)+ROW()-2)),\"\")","v":{"$error":"#N/A"}},{"$f":"IF(INDIRECT(\"c\" & (VLOOKUP(Rebalance!$D$38,$F$2:$G$48,2,FALSE)+ROW()-2))=Rebalance!$D$38,INDIRECT(\"a\" & (VLOOKUP(Rebalance!$D$38,$F$2:$G$48,2,FALSE)+ROW()-2)),\"\")","v":{"$error":"#N/A"}},{"$f":"IF(INDIRECT(\"c\" & (VLOOKUP(Rebalance!$D$39,$F$2:$G$48,2,FALSE)+ROW()-2))=Rebalance!$D$39,INDIRECT(\"a\" & (VLOOKUP(Rebalance!$D$39,$F$2:$G$48,2,FALSE)+ROW()-2)),\"\")","v":{"$error":"#N/A"}},{"$f":"IF(INDIRECT(\"c\" & (VLOOKUP(Rebalance!$D$40,$F$2:$G$48,2,FALSE)+ROW()-2))=Rebalance!$D$40,INDIRECT(\"a\" & (VLOOKUP(Rebalance!$D$40,$F$2:$G$48,2,FALSE)+ROW()-2)),\"\")","v":{"$error":"#N/A"}},{"$f":"IF(INDIRECT(\"c\" & (VLOOKUP(Rebalance!$D$52,$F$2:$G$48,2,FALSE)+ROW()-2))=Rebalance!$D$52,INDIRECT(\"a\" & (VLOOKUP(Rebalance!$D$52,$F$2:$G$48,2,FALSE)+ROW()-2)),\"\")","v":{"$error":"#N/A"}},{"$f":"IF(INDIRECT(\"c\" & (VLOOKUP(Rebalance!$D$53,$F$2:$G$48,2,FALSE)+ROW()-2))=Rebalance!$D$53,INDIRECT(\"a\" & (VLOOKUP(Rebalance!$D$53,$F$2:$G$48,2,FALSE)+ROW()-2)),\"\")","v":{"$error":"#N/A"}},{"$f":"IF(INDIRECT(\"c\" & (VLOOKUP(Rebalance!$D$54,$F$2:$G$48,2,FALSE)+ROW()-2))=Rebalance!$D$54,INDIRECT(\"a\" & (VLOOKUP(Rebalance!$D$54,$F$2:$G$48,2,FALSE)+ROW()-2)),\"\")","v":{"$error":"#N/A"}},{"$f":"IF(INDIRECT(\"c\" & (VLOOKUP(Rebalance!$D$55,$F$2:$G$48,2,FALSE)+ROW()-2))=Rebalance!$D$55,INDIRECT(\"a\" & (VLOOKUP(Rebalance!$D$55,$F$2:$G$48,2,FALSE)+ROW()-2)),\"\")","v":{"$error":"#N/A"}},{"$f":"IF(INDIRECT(\"c\" & (VLOOKUP(Rebalance!$D$56,$F$2:$G$48,2,FALSE)+ROW()-2))=Rebalance!$D$56,INDIRECT(\"a\" & (VLOOKUP(Rebalance!$D$56,$F$2:$G$48,2,FALSE)+ROW()-2)),\"\")","v":{"$error":"#N/A"}},{"$f":"IF(INDIRECT(\"c\" & (VLOOKUP(Rebalance!$D$57,$F$2:$G$48,2,FALSE)+ROW()-2))=Rebalance!$D$57,INDIRECT(\"a\" & (VLOOKUP(Rebalance!$D$57,$F$2:$G$48,2,FALSE)+ROW()-2)),\"\")","v":{"$error":"#N/A"}},{"$f":"IF(INDIRECT(\"c\" & (VLOOKUP(Rebalance!$D$58,$F$2:$G$48,2,FALSE)+ROW()-2))=Rebalance!$D$58,INDIRECT(\"a\" & (VLOOKUP(Rebalance!$D$58,$F$2:$G$48,2,FALSE)+ROW()-2)),\"\")","v":{"$error":"#N/A"}},{"$f":"IF(INDIRECT(\"c\" & (VLOOKUP(Rebalance!$D$59,$F$2:$G$48,2,FALSE)+ROW()-2))=Rebalance!$D$59,INDIRECT(\"a\" & (VLOOKUP(Rebalance!$D$59,$F$2:$G$48,2,FALSE)+ROW()-2)),\"\")","v":{"$error":"#N/A"}},{"$f":"IF(INDIRECT(\"c\" & (VLOOKUP(Rebalance!$D$60,$F$2:$G$48,2,FALSE)+ROW()-2))=Rebalance!$D$60,INDIRECT(\"a\" & (VLOOKUP(Rebalance!$D$60,$F$2:$G$48,2,FALSE)+ROW()-2)),\"\")","v":{"$error":"#N/A"}},{"$f":"IF(INDIRECT(\"c\" & (VLOOKUP(Rebalance!$D$61,$F$2:$G$48,2,FALSE)+ROW()-2))=Rebalance!$D$61,INDIRECT(\"a\" & (VLOOKUP(Rebalance!$D$61,$F$2:$G$48,2,FALSE)+ROW()-2)),\"\")","v":{"$error":"#N/A"}},{"$f":"IF(INDIRECT(\"c\" & (VLOOKUP(Rebalance!$D$62,$F$2:$G$48,2,FALSE)+ROW()-2))=Rebalance!$D$62,INDIRECT(\"a\" & (VLOOKUP(Rebalance!$D$62,$F$2:$G$48,2,FALSE)+ROW()-2)),\"\")","v":{"$error":"#N/A"}},{"$f":"IF(INDIRECT(\"c\" & (VLOOKUP(Rebalance!$D$63,$F$2:$G$48,2,FALSE)+ROW()-2))=Rebalance!$D$63,INDIRECT(\"a\" & (VLOOKUP(Rebalance!$D$63,$F$2:$G$48,2,FALSE)+ROW()-2)),\"\")","v":{"$error":"#N/A"}},{"$f":"IF(INDIRECT(\"c\" & (VLOOKUP(Rebalance!$D$64,$F$2:$G$48,2,FALSE)+ROW()-2))=Rebalance!$D$64,INDIRECT(\"a\" & (VLOOKUP(Rebalance!$D$64,$F$2:$G$48,2,FALSE)+ROW()-2)),\"\")","v":{"$error":"#N/A"}},{"$f":"IF(INDIRECT(\"c\" & (VLOOKUP(Rebalance!$D$65,$F$2:$G$48,2,FALSE)+ROW()-2))=Rebalance!$D$65,INDIRECT(\"a\" & (VLOOKUP(Rebalance!$D$65,$F$2:$G$48,2,FALSE)+ROW()-2)),\"\")","v":{"$error":"#N/A"}},{"$f":"IF(INDIRECT(\"c\" & (VLOOKUP(Rebalance!$D$66,$F$2:$G$48,2,FALSE)+ROW()-2))=Rebalance!$D$66,INDIRECT(\"a\" & (VLOOKUP(Rebalance!$D$66,$F$2:$G$48,2,FALSE)+ROW()-2)),\"\")","v":{"$error":"#N/A"}}]
["36One MET Flexible Opportunity Fund C","TSFA","Metropolitan Collective Investments",{"$f":"ROW()","v":314},null,null,{"$f":"VLOOKUP(F314,$C$2:$D$599,2,FALSE)","v":{"$error":"#N/A"}},{"$f":"IF(INDIRECT(\"c\" & (VLOOKUP(Rebalance!$D$26,$F$2:$G$48,2,FALSE)+ROW()-2))=Rebalance!$D$26,INDIRECT(\"a\" & (VLOOKUP(Rebalance!$D$26,$F$2:$G$48,2,FALSE)+ROW()-2)),\"\")","v":{"$error":"#N/A"}},{"$f":"IF(INDIRECT(\"c\" & (VLOOKUP(Rebalance!$D$27,$F$2:$G$48,2,FALSE)+ROW()-2))=Rebalance!$D$27,INDIRECT(\"a\" & (VLOOKUP(Rebalance!$D$27,$F$2:$G$48,2,FALSE)+ROW()-2)),\"\")","v":{"$error":"#N/A"}},{"$f":"IF(INDIRECT(\"c\" & (VLOOKUP(Rebalance!$D$28,$F$2:$G$48,2,FALSE)+ROW()-2))=Rebalance!$D$28,INDIRECT(\"a\" & (VLOOKUP(Rebalance!$D$28,$F$2:$G$48,2,FALSE)+ROW()-2)),\"\")","v":{"$error":"#N/A"}},{"$f":"IF(INDIRECT(\"c\" & (VLOOKUP(Rebalance!$D$29,$F$2:$G$48,2,FALSE)+ROW()-2))=Rebalance!$D$29,INDIRECT(\"a\" & (VLOOKUP(Rebalance!$D$29,$F$2:$G$48,2,FALSE)+ROW()-2)),\"\")","v":{"$error":"#N/A"}},{"$f":"IF(INDIRECT(\"c\" & (VLOOKUP(Rebalance!$D$30,$F$2:$G$48,2,FALSE)+ROW()-2))=Rebalance!$D$30,INDIRECT(\"a\" & (VLOOKUP(Rebalance!$D$30,$F$2:$G$48,2,FALSE)+ROW()-2)),\"\")","v":{"$error":"#N/A"}},{"$f":"IF(INDIRECT(\"c\" & (VLOOKUP(Rebalance!$D$31,$F$2:$G$48,2,FALSE)+ROW()-2))=Rebalance!$D$31,INDIRECT(\"a\" & (VLOOKUP(Rebalance!$D$31,$F$2:$G$48,2,FALSE)+ROW()-2)),\"\")","v":{"$error":"#N/A"}},{"$f":"IF(INDIRECT(\"c\" & (VLOOKUP(Rebalance!$D$32,$F$2:$G$48,2,FALSE)+ROW()-2))=Rebalance!$D$32,INDIRECT(\"a\" & (VLOOKUP(Rebalance!$D$32,$F$2:$G$48,2,FALSE)+ROW()-2)),\"\")","v":{"$error":"#N/A"}},{"$f":"IF(INDIRECT(\"c\" & (VLOOKUP(Rebalance!$D$33,$F$2:$G$48,2,FALSE)+ROW()-2))=Rebalance!$D$33,INDIRECT(\"a\" & (VLOOKUP(Rebalance!$D$33,$F$2:$G$48,2,FALSE)+ROW()-2)),\"\")","v":{"$error":"#N/A"}},{"$f":"IF(INDIRECT(\"c\" & (VLOOKUP(Rebalance!$D$34,$F$2:$G$48,2,FALSE)+ROW()-2))=Rebalance!$D$34,INDIRECT(\"a\" & (VLOOKUP(Rebalance!$D$34,$F$2:$G$48,2,FALSE)+ROW()-2)),\"\")","v":{"$error":"#N/A"}},{"$f":"IF(INDIRECT(\"c\" & (VLOOKUP(Rebalance!$D$35,$F$2:$G$48,2,FALSE)+ROW()-2))=Rebalance!$D$35,INDIRECT(\"a\" & (VLOOKUP(Rebalance!$D$35,$F$2:$G$48,2,FALSE)+ROW()-2)),\"\")","v":{"$error":"#N/A"}},{"$f":"IF(INDIRECT(\"c\" & (VLOOKUP(Rebalance!$D$36,$F$2:$G$48,2,FALSE)+ROW()-2))=Rebalance!$D$36,INDIRECT(\"a\" & (VLOOKUP(Rebalance!$D$36,$F$2:$G$48,2,FALSE)+ROW()-2)),\"\")","v":{"$error":"#N/A"}},{"$f":"IF(INDIRECT(\"c\" & (VLOOKUP(Rebalance!$D$37,$F$2:$G$48,2,FALSE)+ROW()-2))=Rebalance!$D$37,INDIRECT(\"a\" & (VLOOKUP(Rebalance!$D$37,$F$2:$G$48,2,FALSE)+ROW()-2)),\"\")","v":{"$error":"#N/A"}},{"$f":"IF(INDIRECT(\"c\" & (VLOOKUP(Rebalance!$D$38,$F$2:$G$48,2,FALSE)+ROW()-2))=Rebalance!$D$38,INDIRECT(\"a\" & (VLOOKUP(Rebalance!$D$38,$F$2:$G$48,2,FALSE)+ROW()-2)),\"\")","v":{"$error":"#N/A"}},{"$f":"IF(INDIRECT(\"c\" & (VLOOKUP(Rebalance!$D$39,$F$2:$G$48,2,FALSE)+ROW()-2))=Rebalance!$D$39,INDIRECT(\"a\" & (VLOOKUP(Rebalance!$D$39,$F$2:$G$48,2,FALSE)+ROW()-2)),\"\")","v":{"$error":"#N/A"}},{"$f":"IF(INDIRECT(\"c\" & (VLOOKUP(Rebalance!$D$40,$F$2:$G$48,2,FALSE)+ROW()-2))=Rebalance!$D$40,INDIRECT(\"a\" & (VLOOKUP(Rebalance!$D$40,$F$2:$G$48,2,FALSE)+ROW()-2)),\"\")","v":{"$error":"#N/A"}},{"$f":"IF(INDIRECT(\"c\" & (VLOOKUP(Rebalance!$D$52,$F$2:$G$48,2,FALSE)+ROW()-2))=Rebalance!$D$52,INDIRECT(\"a\" & (VLOOKUP(Rebalance!$D$52,$F$2:$G$48,2,FALSE)+ROW()-2)),\"\")","v":{"$error":"#N/A"}},{"$f":"IF(INDIRECT(\"c\" & (VLOOKUP(Rebalance!$D$53,$F$2:$G$48,2,FALSE)+ROW()-2))=Rebalance!$D$53,INDIRECT(\"a\" & (VLOOKUP(Rebalance!$D$53,$F$2:$G$48,2,FALSE)+ROW()-2)),\"\")","v":{"$error":"#N/A"}},{"$f":"IF(INDIRECT(\"c\" & (VLOOKUP(Rebalance!$D$54,$F$2:$G$48,2,FALSE)+ROW()-2))=Rebalance!$D$54,INDIRECT(\"a\" & (VLOOKUP(Rebalance!$D$54,$F$2:$G$48,2,FALSE)+ROW()-2)),\"\")","v":{"$error":"#N/A"}},{"$f":"IF(INDIRECT(\"c\" & (VLOOKUP(Rebalance!$D$55,$F$2:$G$48,2,FALSE)+ROW()-2))=Rebalance!$D$55,INDIRECT(\"a\" & (VLOOKUP(Rebalance!$D$55,$F$2:$G$48,2,FALSE)+ROW()-2)),\"\")","v":{"$error":"#N/A"}},{"$f":"IF(INDIRECT(\"c\" & (VLOOKUP(Rebalance!$D$56,$F$2:$G$48,2,FALSE)+ROW()-2))=Rebalance!$D$56,INDIRECT(\"a\" & (VLOOKUP(Rebalance!$D$56,$F$2:$G$48,2,FALSE)+ROW()-2)),\"\")","v":{"$error":"#N/A"}},{"$f":"IF(INDIRECT(\"c\" & (VLOOKUP(Rebalance!$D$57,$F$2:$G$48,2,FALSE)+ROW()-2))=Rebalance!$D$57,INDIRECT(\"a\" & (VLOOKUP(Rebalance!$D$57,$F$2:$G$48,2,FALSE)+ROW()-2)),\"\")","v":{"$error":"#N/A"}},{"$f":"IF(INDIRECT(\"c\" & (VLOOKUP(Rebalance!$D$58,$F$2:$G$48,2,FALSE)+ROW()-2))=Rebalance!$D$58,INDIRECT(\"a\" & (VLOOKUP(Rebalance!$D$58,$F$2:$G$48,2,FALSE)+ROW()-2)),\"\")","v":{"$error":"#N/A"}},{"$f":"IF(INDIRECT(\"c\" & (VLOOKUP(Rebalance!$D$59,$F$2:$G$48,2,FALSE)+ROW()-2))=Rebalance!$D$59,INDIRECT(\"a\" & (VLOOKUP(Rebalance!$D$59,$F$2:$G$48,2,FALSE)+ROW()-2)),\"\")","v":{"$error":"#N/A"}},{"$f":"IF(INDIRECT(\"c\" & (VLOOKUP(Rebalance!$D$60,$F$2:$G$48,2,FALSE)+ROW()-2))=Rebalance!$D$60,INDIRECT(\"a\" & (VLOOKUP(Rebalance!$D$60,$F$2:$G$48,2,FALSE)+ROW()-2)),\"\")","v":{"$error":"#N/A"}},{"$f":"IF(INDIRECT(\"c\" & (VLOOKUP(Rebalance!$D$61,$F$2:$G$48,2,FALSE)+ROW()-2))=Rebalance!$D$61,INDIRECT(\"a\" & (VLOOKUP(Rebalance!$D$61,$F$2:$G$48,2,FALSE)+ROW()-2)),\"\")","v":{"$error":"#N/A"}},{"$f":"IF(INDIRECT(\"c\" & (VLOOKUP(Rebalance!$D$62,$F$2:$G$48,2,FALSE)+ROW()-2))=Rebalance!$D$62,INDIRECT(\"a\" & (VLOOKUP(Rebalance!$D$62,$F$2:$G$48,2,FALSE)+ROW()-2)),\"\")","v":{"$error":"#N/A"}},{"$f":"IF(INDIRECT(\"c\" & (VLOOKUP(Rebalance!$D$63,$F$2:$G$48,2,FALSE)+ROW()-2))=Rebalance!$D$63,INDIRECT(\"a\" & (VLOOKUP(Rebalance!$D$63,$F$2:$G$48,2,FALSE)+ROW()-2)),\"\")","v":{"$error":"#N/A"}},{"$f":"IF(INDIRECT(\"c\" & (VLOOKUP(Rebalance!$D$64,$F$2:$G$48,2,FALSE)+ROW()-2))=Rebalance!$D$64,INDIRECT(\"a\" & (VLOOKUP(Rebalance!$D$64,$F$2:$G$48,2,FALSE)+ROW()-2)),\"\")","v":{"$error":"#N/A"}},{"$f":"IF(INDIRECT(\"c\" & (VLOOKUP(Rebalance!$D$65,$F$2:$G$48,2,FALSE)+ROW()-2))=Rebalance!$D$65,INDIRECT(\"a\" & (VLOOKUP(Rebalance!$D$65,$F$2:$G$48,2,FALSE)+ROW()-2)),\"\")","v":{"$error":"#N/A"}},{"$f":"IF(INDIRECT(\"c\" & (VLOOKUP(Rebalance!$D$66,$F$2:$G$48,2,FALSE)+ROW()-2))=Rebalance!$D$66,INDIRECT(\"a\" & (VLOOKUP(Rebalance!$D$66,$F$2:$G$48,2,FALSE)+ROW()-2)),\"\")","v":{"$error":"#N/A"}}]
["Contego B5 MET Protected Equity Fund (A)","CPEP","Metropolitan Collective Investments",{"$f":"ROW()","v":315},null,null,{"$f":"VLOOKUP(F315,$C$2:$D$599,2,FALSE)","v":{"$error":"#N/A"}},{"$f":"IF(INDIRECT(\"c\" & (VLOOKUP(Rebalance!$D$26,$F$2:$G$48,2,FALSE)+ROW()-2))=Rebalance!$D$26,INDIRECT(\"a\" & (VLOOKUP(Rebalance!$D$26,$F$2:$G$48,2,FALSE)+ROW()-2)),\"\")","v":{"$error":"#N/A"}},{"$f":"IF(INDIRECT(\"c\" & (VLOOKUP(Rebalance!$D$27,$F$2:$G$48,2,FALSE)+ROW()-2))=Rebalance!$D$27,INDIRECT(\"a\" & (VLOOKUP(Rebalance!$D$27,$F$2:$G$48,2,FALSE)+ROW()-2)),\"\")","v":{"$error":"#N/A"}},{"$f":"IF(INDIRECT(\"c\" & (VLOOKUP(Rebalance!$D$28,$F$2:$G$48,2,FALSE)+ROW()-2))=Rebalance!$D$28,INDIRECT(\"a\" & (VLOOKUP(Rebalance!$D$28,$F$2:$G$48,2,FALSE)+ROW()-2)),\"\")","v":{"$error":"#N/A"}},{"$f":"IF(INDIRECT(\"c\" & (VLOOKUP(Rebalance!$D$29,$F$2:$G$48,2,FALSE)+ROW()-2))=Rebalance!$D$29,INDIRECT(\"a\" & (VLOOKUP(Rebalance!$D$29,$F$2:$G$48,2,FALSE)+ROW()-2)),\"\")","v":{"$error":"#N/A"}},{"$f":"IF(INDIRECT(\"c\" & (VLOOKUP(Rebalance!$D$30,$F$2:$G$48,2,FALSE)+ROW()-2))=Rebalance!$D$30,INDIRECT(\"a\" & (VLOOKUP(Rebalance!$D$30,$F$2:$G$48,2,FALSE)+ROW()-2)),\"\")","v":{"$error":"#N/A"}},{"$f":"IF(INDIRECT(\"c\" & (VLOOKUP(Rebalance!$D$31,$F$2:$G$48,2,FALSE)+ROW()-2))=Rebalance!$D$31,INDIRECT(\"a\" & (VLOOKUP(Rebalance!$D$31,$F$2:$G$48,2,FALSE)+ROW()-2)),\"\")","v":{"$error":"#N/A"}},{"$f":"IF(INDIRECT(\"c\" & (VLOOKUP(Rebalance!$D$32,$F$2:$G$48,2,FALSE)+ROW()-2))=Rebalance!$D$32,INDIRECT(\"a\" & (VLOOKUP(Rebalance!$D$32,$F$2:$G$48,2,FALSE)+ROW()-2)),\"\")","v":{"$error":"#N/A"}},{"$f":"IF(INDIRECT(\"c\" & (VLOOKUP(Rebalance!$D$33,$F$2:$G$48,2,FALSE)+ROW()-2))=Rebalance!$D$33,INDIRECT(\"a\" & (VLOOKUP(Rebalance!$D$33,$F$2:$G$48,2,FALSE)+ROW()-2)),\"\")","v":{"$error":"#N/A"}},{"$f":"IF(INDIRECT(\"c\" & (VLOOKUP(Rebalance!$D$34,$F$2:$G$48,2,FALSE)+ROW()-2))=Rebalance!$D$34,INDIRECT(\"a\" & (VLOOKUP(Rebalance!$D$34,$F$2:$G$48,2,FALSE)+ROW()-2)),\"\")","v":{"$error":"#N/A"}},{"$f":"IF(INDIRECT(\"c\" & (VLOOKUP(Rebalance!$D$35,$F$2:$G$48,2,FALSE)+ROW()-2))=Rebalance!$D$35,INDIRECT(\"a\" & (VLOOKUP(Rebalance!$D$35,$F$2:$G$48,2,FALSE)+ROW()-2)),\"\")","v":{"$error":"#N/A"}},{"$f":"IF(INDIRECT(\"c\" & (VLOOKUP(Rebalance!$D$36,$F$2:$G$48,2,FALSE)+ROW()-2))=Rebalance!$D$36,INDIRECT(\"a\" & (VLOOKUP(Rebalance!$D$36,$F$2:$G$48,2,FALSE)+ROW()-2)),\"\")","v":{"$error":"#N/A"}},{"$f":"IF(INDIRECT(\"c\" & (VLOOKUP(Rebalance!$D$37,$F$2:$G$48,2,FALSE)+ROW()-2))=Rebalance!$D$37,INDIRECT(\"a\" & (VLOOKUP(Rebalance!$D$37,$F$2:$G$48,2,FALSE)+ROW()-2)),\"\")","v":{"$error":"#N/A"}},{"$f":"IF(INDIRECT(\"c\" & (VLOOKUP(Rebalance!$D$38,$F$2:$G$48,2,FALSE)+ROW()-2))=Rebalance!$D$38,INDIRECT(\"a\" & (VLOOKUP(Rebalance!$D$38,$F$2:$G$48,2,FALSE)+ROW()-2)),\"\")","v":{"$error":"#N/A"}},{"$f":"IF(INDIRECT(\"c\" & (VLOOKUP(Rebalance!$D$39,$F$2:$G$48,2,FALSE)+ROW()-2))=Rebalance!$D$39,INDIRECT(\"a\" & (VLOOKUP(Rebalance!$D$39,$F$2:$G$48,2,FALSE)+ROW()-2)),\"\")","v":{"$error":"#N/A"}},{"$f":"IF(INDIRECT(\"c\" & (VLOOKUP(Rebalance!$D$40,$F$2:$G$48,2,FALSE)+ROW()-2))=Rebalance!$D$40,INDIRECT(\"a\" & (VLOOKUP(Rebalance!$D$40,$F$2:$G$48,2,FALSE)+ROW()-2)),\"\")","v":{"$error":"#N/A"}},{"$f":"IF(INDIRECT(\"c\" & (VLOOKUP(Rebalance!$D$52,$F$2:$G$48,2,FALSE)+ROW()-2))=Rebalance!$D$52,INDIRECT(\"a\" & (VLOOKUP(Rebalance!$D$52,$F$2:$G$48,2,FALSE)+ROW()-2)),\"\")","v":{"$error":"#N/A"}},{"$f":"IF(INDIRECT(\"c\" & (VLOOKUP(Rebalance!$D$53,$F$2:$G$48,2,FALSE)+ROW()-2))=Rebalance!$D$53,INDIRECT(\"a\" & (VLOOKUP(Rebalance!$D$53,$F$2:$G$48,2,FALSE)+ROW()-2)),\"\")","v":{"$error":"#N/A"}},{"$f":"IF(INDIRECT(\"c\" & (VLOOKUP(Rebalance!$D$54,$F$2:$G$48,2,FALSE)+ROW()-2))=Rebalance!$D$54,INDIRECT(\"a\" & (VLOOKUP(Rebalance!$D$54,$F$2:$G$48,2,FALSE)+ROW()-2)),\"\")","v":{"$error":"#N/A"}},{"$f":"IF(INDIRECT(\"c\" & (VLOOKUP(Rebalance!$D$55,$F$2:$G$48,2,FALSE)+ROW()-2))=Rebalance!$D$55,INDIRECT(\"a\" & (VLOOKUP(Rebalance!$D$55,$F$2:$G$48,2,FALSE)+ROW()-2)),\"\")","v":{"$error":"#N/A"}},{"$f":"IF(INDIRECT(\"c\" & (VLOOKUP(Rebalance!$D$56,$F$2:$G$48,2,FALSE)+ROW()-2))=Rebalance!$D$56,INDIRECT(\"a\" & (VLOOKUP(Rebalance!$D$56,$F$2:$G$48,2,FALSE)+ROW()-2)),\"\")","v":{"$error":"#N/A"}},{"$f":"IF(INDIRECT(\"c\" & (VLOOKUP(Rebalance!$D$57,$F$2:$G$48,2,FALSE)+ROW()-2))=Rebalance!$D$57,INDIRECT(\"a\" & (VLOOKUP(Rebalance!$D$57,$F$2:$G$48,2,FALSE)+ROW()-2)),\"\")","v":{"$error":"#N/A"}},{"$f":"IF(INDIRECT(\"c\" & (VLOOKUP(Rebalance!$D$58,$F$2:$G$48,2,FALSE)+ROW()-2))=Rebalance!$D$58,INDIRECT(\"a\" & (VLOOKUP(Rebalance!$D$58,$F$2:$G$48,2,FALSE)+ROW()-2)),\"\")","v":{"$error":"#N/A"}},{"$f":"IF(INDIRECT(\"c\" & (VLOOKUP(Rebalance!$D$59,$F$2:$G$48,2,FALSE)+ROW()-2))=Rebalance!$D$59,INDIRECT(\"a\" & (VLOOKUP(Rebalance!$D$59,$F$2:$G$48,2,FALSE)+ROW()-2)),\"\")","v":{"$error":"#N/A"}},{"$f":"IF(INDIRECT(\"c\" & (VLOOKUP(Rebalance!$D$60,$F$2:$G$48,2,FALSE)+ROW()-2))=Rebalance!$D$60,INDIRECT(\"a\" & (VLOOKUP(Rebalance!$D$60,$F$2:$G$48,2,FALSE)+ROW()-2)),\"\")","v":{"$error":"#N/A"}},{"$f":"IF(INDIRECT(\"c\" & (VLOOKUP(Rebalance!$D$61,$F$2:$G$48,2,FALSE)+ROW()-2))=Rebalance!$D$61,INDIRECT(\"a\" & (VLOOKUP(Rebalance!$D$61,$F$2:$G$48,2,FALSE)+ROW()-2)),\"\")","v":{"$error":"#N/A"}},{"$f":"IF(INDIRECT(\"c\" & (VLOOKUP(Rebalance!$D$62,$F$2:$G$48,2,FALSE)+ROW()-2))=Rebalance!$D$62,INDIRECT(\"a\" & (VLOOKUP(Rebalance!$D$62,$F$2:$G$48,2,FALSE)+ROW()-2)),\"\")","v":{"$error":"#N/A"}},{"$f":"IF(INDIRECT(\"c\" & (VLOOKUP(Rebalance!$D$63,$F$2:$G$48,2,FALSE)+ROW()-2))=Rebalance!$D$63,INDIRECT(\"a\" & (VLOOKUP(Rebalance!$D$63,$F$2:$G$48,2,FALSE)+ROW()-2)),\"\")","v":{"$error":"#N/A"}},{"$f":"IF(INDIRECT(\"c\" & (VLOOKUP(Rebalance!$D$64,$F$2:$G$48,2,FALSE)+ROW()-2))=Rebalance!$D$64,INDIRECT(\"a\" & (VLOOKUP(Rebalance!$D$64,$F$2:$G$48,2,FALSE)+ROW()-2)),\"\")","v":{"$error":"#N/A"}},{"$f":"IF(INDIRECT(\"c\" & (VLOOKUP(Rebalance!$D$65,$F$2:$G$48,2,FALSE)+ROW()-2))=Rebalance!$D$65,INDIRECT(\"a\" & (VLOOKUP(Rebalance!$D$65,$F$2:$G$48,2,FALSE)+ROW()-2)),\"\")","v":{"$error":"#N/A"}},{"$f":"IF(INDIRECT(\"c\" & (VLOOKUP(Rebalance!$D$66,$F$2:$G$48,2,FALSE)+ROW()-2))=Rebalance!$D$66,INDIRECT(\"a\" & (VLOOKUP(Rebalance!$D$66,$F$2:$G$48,2,FALSE)+ROW()-2)),\"\")","v":{"$error":"#N/A"}}]
["MET Worldwide Opportunites FoF A","MBWO","Metropolitan Collective Investments",{"$f":"ROW()","v":316},null,null,{"$f":"VLOOKUP(F316,$C$2:$D$599,2,FALSE)","v":{"$error":"#N/A"}},{"$f":"IF(INDIRECT(\"c\" & (VLOOKUP(Rebalance!$D$26,$F$2:$G$48,2,FALSE)+ROW()-2))=Rebalance!$D$26,INDIRECT(\"a\" & (VLOOKUP(Rebalance!$D$26,$F$2:$G$48,2,FALSE)+ROW()-2)),\"\")","v":{"$error":"#N/A"}},{"$f":"IF(INDIRECT(\"c\" & (VLOOKUP(Rebalance!$D$27,$F$2:$G$48,2,FALSE)+ROW()-2))=Rebalance!$D$27,INDIRECT(\"a\" & (VLOOKUP(Rebalance!$D$27,$F$2:$G$48,2,FALSE)+ROW()-2)),\"\")","v":{"$error":"#N/A"}},{"$f":"IF(INDIRECT(\"c\" & (VLOOKUP(Rebalance!$D$28,$F$2:$G$48,2,FALSE)+ROW()-2))=Rebalance!$D$28,INDIRECT(\"a\" & (VLOOKUP(Rebalance!$D$28,$F$2:$G$48,2,FALSE)+ROW()-2)),\"\")","v":{"$error":"#N/A"}},{"$f":"IF(INDIRECT(\"c\" & (VLOOKUP(Rebalance!$D$29,$F$2:$G$48,2,FALSE)+ROW()-2))=Rebalance!$D$29,INDIRECT(\"a\" & (VLOOKUP(Rebalance!$D$29,$F$2:$G$48,2,FALSE)+ROW()-2)),\"\")","v":{"$error":"#N/A"}},{"$f":"IF(INDIRECT(\"c\" & (VLOOKUP(Rebalance!$D$30,$F$2:$G$48,2,FALSE)+ROW()-2))=Rebalance!$D$30,INDIRECT(\"a\" & (VLOOKUP(Rebalance!$D$30,$F$2:$G$48,2,FALSE)+ROW()-2)),\"\")","v":{"$error":"#N/A"}},{"$f":"IF(INDIRECT(\"c\" & (VLOOKUP(Rebalance!$D$31,$F$2:$G$48,2,FALSE)+ROW()-2))=Rebalance!$D$31,INDIRECT(\"a\" & (VLOOKUP(Rebalance!$D$31,$F$2:$G$48,2,FALSE)+ROW()-2)),\"\")","v":{"$error":"#N/A"}},{"$f":"IF(INDIRECT(\"c\" & (VLOOKUP(Rebalance!$D$32,$F$2:$G$48,2,FALSE)+ROW()-2))=Rebalance!$D$32,INDIRECT(\"a\" & (VLOOKUP(Rebalance!$D$32,$F$2:$G$48,2,FALSE)+ROW()-2)),\"\")","v":{"$error":"#N/A"}},{"$f":"IF(INDIRECT(\"c\" & (VLOOKUP(Rebalance!$D$33,$F$2:$G$48,2,FALSE)+ROW()-2))=Rebalance!$D$33,INDIRECT(\"a\" & (VLOOKUP(Rebalance!$D$33,$F$2:$G$48,2,FALSE)+ROW()-2)),\"\")","v":{"$error":"#N/A"}},{"$f":"IF(INDIRECT(\"c\" & (VLOOKUP(Rebalance!$D$34,$F$2:$G$48,2,FALSE)+ROW()-2))=Rebalance!$D$34,INDIRECT(\"a\" & (VLOOKUP(Rebalance!$D$34,$F$2:$G$48,2,FALSE)+ROW()-2)),\"\")","v":{"$error":"#N/A"}},{"$f":"IF(INDIRECT(\"c\" & (VLOOKUP(Rebalance!$D$35,$F$2:$G$48,2,FALSE)+ROW()-2))=Rebalance!$D$35,INDIRECT(\"a\" & (VLOOKUP(Rebalance!$D$35,$F$2:$G$48,2,FALSE)+ROW()-2)),\"\")","v":{"$error":"#N/A"}},{"$f":"IF(INDIRECT(\"c\" & (VLOOKUP(Rebalance!$D$36,$F$2:$G$48,2,FALSE)+ROW()-2))=Rebalance!$D$36,INDIRECT(\"a\" & (VLOOKUP(Rebalance!$D$36,$F$2:$G$48,2,FALSE)+ROW()-2)),\"\")","v":{"$error":"#N/A"}},{"$f":"IF(INDIRECT(\"c\" & (VLOOKUP(Rebalance!$D$37,$F$2:$G$48,2,FALSE)+ROW()-2))=Rebalance!$D$37,INDIRECT(\"a\" & (VLOOKUP(Rebalance!$D$37,$F$2:$G$48,2,FALSE)+ROW()-2)),\"\")","v":{"$error":"#N/A"}},{"$f":"IF(INDIRECT(\"c\" & (VLOOKUP(Rebalance!$D$38,$F$2:$G$48,2,FALSE)+ROW()-2))=Rebalance!$D$38,INDIRECT(\"a\" & (VLOOKUP(Rebalance!$D$38,$F$2:$G$48,2,FALSE)+ROW()-2)),\"\")","v":{"$error":"#N/A"}},{"$f":"IF(INDIRECT(\"c\" & (VLOOKUP(Rebalance!$D$39,$F$2:$G$48,2,FALSE)+ROW()-2))=Rebalance!$D$39,INDIRECT(\"a\" & (VLOOKUP(Rebalance!$D$39,$F$2:$G$48,2,FALSE)+ROW()-2)),\"\")","v":{"$error":"#N/A"}},{"$f":"IF(INDIRECT(\"c\" & (VLOOKUP(Rebalance!$D$40,$F$2:$G$48,2,FALSE)+ROW()-2))=Rebalance!$D$40,INDIRECT(\"a\" & (VLOOKUP(Rebalance!$D$40,$F$2:$G$48,2,FALSE)+ROW()-2)),\"\")","v":{"$error":"#N/A"}},{"$f":"IF(INDIRECT(\"c\" & (VLOOKUP(Rebalance!$D$52,$F$2:$G$48,2,FALSE)+ROW()-2))=Rebalance!$D$52,INDIRECT(\"a\" & (VLOOKUP(Rebalance!$D$52,$F$2:$G$48,2,FALSE)+ROW()-2)),\"\")","v":{"$error":"#N/A"}},{"$f":"IF(INDIRECT(\"c\" & (VLOOKUP(Rebalance!$D$53,$F$2:$G$48,2,FALSE)+ROW()-2))=Rebalance!$D$53,INDIRECT(\"a\" & (VLOOKUP(Rebalance!$D$53,$F$2:$G$48,2,FALSE)+ROW()-2)),\"\")","v":{"$error":"#N/A"}},{"$f":"IF(INDIRECT(\"c\" & (VLOOKUP(Rebalance!$D$54,$F$2:$G$48,2,FALSE)+ROW()-2))=Rebalance!$D$54,INDIRECT(\"a\" & (VLOOKUP(Rebalance!$D$54,$F$2:$G$48,2,FALSE)+ROW()-2)),\"\")","v":{"$error":"#N/A"}},{"$f":"IF(INDIRECT(\"c\" & (VLOOKUP(Rebalance!$D$55,$F$2:$G$48,2,FALSE)+ROW()-2))=Rebalance!$D$55,INDIRECT(\"a\" & (VLOOKUP(Rebalance!$D$55,$F$2:$G$48,2,FALSE)+ROW()-2)),\"\")","v":{"$error":"#N/A"}},{"$f":"IF(INDIRECT(\"c\" & (VLOOKUP(Rebalance!$D$56,$F$2:$G$48,2,FALSE)+ROW()-2))=Rebalance!$D$56,INDIRECT(\"a\" & (VLOOKUP(Rebalance!$D$56,$F$2:$G$48,2,FALSE)+ROW()-2)),\"\")","v":{"$error":"#N/A"}},{"$f":"IF(INDIRECT(\"c\" & (VLOOKUP(Rebalance!$D$57,$F$2:$G$48,2,FALSE)+ROW()-2))=Rebalance!$D$57,INDIRECT(\"a\" & (VLOOKUP(Rebalance!$D$57,$F$2:$G$48,2,FALSE)+ROW()-2)),\"\")","v":{"$error":"#N/A"}},{"$f":"IF(INDIRECT(\"c\" & (VLOOKUP(Rebalance!$D$58,$F$2:$G$48,2,FALSE)+ROW()-2))=Rebalance!$D$58,INDIRECT(\"a\" & (VLOOKUP(Rebalance!$D$58,$F$2:$G$48,2,FALSE)+ROW()-2)),\"\")","v":{"$error":"#N/A"}},{"$f":"IF(INDIRECT(\"c\" & (VLOOKUP(Rebalance!$D$59,$F$2:$G$48,2,FALSE)+ROW()-2))=Rebalance!$D$59,INDIRECT(\"a\" & (VLOOKUP(Rebalance!$D$59,$F$2:$G$48,2,FALSE)+ROW()-2)),\"\")","v":{"$error":"#N/A"}},{"$f":"IF(INDIRECT(\"c\" & (VLOOKUP(Rebalance!$D$60,$F$2:$G$48,2,FALSE)+ROW()-2))=Rebalance!$D$60,INDIRECT(\"a\" & (VLOOKUP(Rebalance!$D$60,$F$2:$G$48,2,FALSE)+ROW()-2)),\"\")","v":{"$error":"#N/A"}},{"$f":"IF(INDIRECT(\"c\" & (VLOOKUP(Rebalance!$D$61,$F$2:$G$48,2,FALSE)+ROW()-2))=Rebalance!$D$61,INDIRECT(\"a\" & (VLOOKUP(Rebalance!$D$61,$F$2:$G$48,2,FALSE)+ROW()-2)),\"\")","v":{"$error":"#N/A"}},{"$f":"IF(INDIRECT(\"c\" & (VLOOKUP(Rebalance!$D$62,$F$2:$G$48,2,FALSE)+ROW()-2))=Rebalance!$D$62,INDIRECT(\"a\" & (VLOOKUP(Rebalance!$D$62,$F$2:$G$48,2,FALSE)+ROW()-2)),\"\")","v":{"$error":"#N/A"}},{"$f":"IF(INDIRECT(\"c\" & (VLOOKUP(Rebalance!$D$63,$F$2:$G$48,2,FALSE)+ROW()-2))=Rebalance!$D$63,INDIRECT(\"a\" & (VLOOKUP(Rebalance!$D$63,$F$2:$G$48,2,FALSE)+ROW()-2)),\"\")","v":{"$error":"#N/A"}},{"$f":"IF(INDIRECT(\"c\" & (VLOOKUP(Rebalance!$D$64,$F$2:$G$48,2,FALSE)+ROW()-2))=Rebalance!$D$64,INDIRECT(\"a\" & (VLOOKUP(Rebalance!$D$64,$F$2:$G$48,2,FALSE)+ROW()-2)),\"\")","v":{"$error":"#N/A"}},{"$f":"IF(INDIRECT(\"c\" & (VLOOKUP(Rebalance!$D$65,$F$2:$G$48,2,FALSE)+ROW()-2))=Rebalance!$D$65,INDIRECT(\"a\" & (VLOOKUP(Rebalance!$D$65,$F$2:$G$48,2,FALSE)+ROW()-2)),\"\")","v":{"$error":"#N/A"}},{"$f":"IF(INDIRECT(\"c\" & (VLOOKUP(Rebalance!$D$66,$F$2:$G$48,2,FALSE)+ROW()-2))=Rebalance!$D$66,INDIRECT(\"a\" & (VLOOKUP(Rebalance!$D$66,$F$2:$G$48,2,FALSE)+ROW()-2)),\"\")","v":{"$error":"#N/A"}}]
["Met Income Plus Fund C","MIPCC","Metropolitan Collective Investments",{"$f":"ROW()","v":317},null,null,{"$f":"VLOOKUP(F317,$C$2:$D$599,2,FALSE)","v":{"$error":"#N/A"}},{"$f":"IF(INDIRECT(\"c\" & (VLOOKUP(Rebalance!$D$26,$F$2:$G$48,2,FALSE)+ROW()-2))=Rebalance!$D$26,INDIRECT(\"a\" & (VLOOKUP(Rebalance!$D$26,$F$2:$G$48,2,FALSE)+ROW()-2)),\"\")","v":{"$error":"#N/A"}},{"$f":"IF(INDIRECT(\"c\" & (VLOOKUP(Rebalance!$D$27,$F$2:$G$48,2,FALSE)+ROW()-2))=Rebalance!$D$27,INDIRECT(\"a\" & (VLOOKUP(Rebalance!$D$27,$F$2:$G$48,2,FALSE)+ROW()-2)),\"\")","v":{"$error":"#N/A"}},{"$f":"IF(INDIRECT(\"c\" & (VLOOKUP(Rebalance!$D$28,$F$2:$G$48,2,FALSE)+ROW()-2))=Rebalance!$D$28,INDIRECT(\"a\" & (VLOOKUP(Rebalance!$D$28,$F$2:$G$48,2,FALSE)+ROW()-2)),\"\")","v":{"$error":"#N/A"}},{"$f":"IF(INDIRECT(\"c\" & (VLOOKUP(Rebalance!$D$29,$F$2:$G$48,2,FALSE)+ROW()-2))=Rebalance!$D$29,INDIRECT(\"a\" & (VLOOKUP(Rebalance!$D$29,$F$2:$G$48,2,FALSE)+ROW()-2)),\"\")","v":{"$error":"#N/A"}},{"$f":"IF(INDIRECT(\"c\" & (VLOOKUP(Rebalance!$D$30,$F$2:$G$48,2,FALSE)+ROW()-2))=Rebalance!$D$30,INDIRECT(\"a\" & (VLOOKUP(Rebalance!$D$30,$F$2:$G$48,2,FALSE)+ROW()-2)),\"\")","v":{"$error":"#N/A"}},{"$f":"IF(INDIRECT(\"c\" & (VLOOKUP(Rebalance!$D$31,$F$2:$G$48,2,FALSE)+ROW()-2))=Rebalance!$D$31,INDIRECT(\"a\" & (VLOOKUP(Rebalance!$D$31,$F$2:$G$48,2,FALSE)+ROW()-2)),\"\")","v":{"$error":"#N/A"}},{"$f":"IF(INDIRECT(\"c\" & (VLOOKUP(Rebalance!$D$32,$F$2:$G$48,2,FALSE)+ROW()-2))=Rebalance!$D$32,INDIRECT(\"a\" & (VLOOKUP(Rebalance!$D$32,$F$2:$G$48,2,FALSE)+ROW()-2)),\"\")","v":{"$error":"#N/A"}},{"$f":"IF(INDIRECT(\"c\" & (VLOOKUP(Rebalance!$D$33,$F$2:$G$48,2,FALSE)+ROW()-2))=Rebalance!$D$33,INDIRECT(\"a\" & (VLOOKUP(Rebalance!$D$33,$F$2:$G$48,2,FALSE)+ROW()-2)),\"\")","v":{"$error":"#N/A"}},{"$f":"IF(INDIRECT(\"c\" & (VLOOKUP(Rebalance!$D$34,$F$2:$G$48,2,FALSE)+ROW()-2))=Rebalance!$D$34,INDIRECT(\"a\" & (VLOOKUP(Rebalance!$D$34,$F$2:$G$48,2,FALSE)+ROW()-2)),\"\")","v":{"$error":"#N/A"}},{"$f":"IF(INDIRECT(\"c\" & (VLOOKUP(Rebalance!$D$35,$F$2:$G$48,2,FALSE)+ROW()-2))=Rebalance!$D$35,INDIRECT(\"a\" & (VLOOKUP(Rebalance!$D$35,$F$2:$G$48,2,FALSE)+ROW()-2)),\"\")","v":{"$error":"#N/A"}},{"$f":"IF(INDIRECT(\"c\" & (VLOOKUP(Rebalance!$D$36,$F$2:$G$48,2,FALSE)+ROW()-2))=Rebalance!$D$36,INDIRECT(\"a\" & (VLOOKUP(Rebalance!$D$36,$F$2:$G$48,2,FALSE)+ROW()-2)),\"\")","v":{"$error":"#N/A"}},{"$f":"IF(INDIRECT(\"c\" & (VLOOKUP(Rebalance!$D$37,$F$2:$G$48,2,FALSE)+ROW()-2))=Rebalance!$D$37,INDIRECT(\"a\" & (VLOOKUP(Rebalance!$D$37,$F$2:$G$48,2,FALSE)+ROW()-2)),\"\")","v":{"$error":"#N/A"}},{"$f":"IF(INDIRECT(\"c\" & (VLOOKUP(Rebalance!$D$38,$F$2:$G$48,2,FALSE)+ROW()-2))=Rebalance!$D$38,INDIRECT(\"a\" & (VLOOKUP(Rebalance!$D$38,$F$2:$G$48,2,FALSE)+ROW()-2)),\"\")","v":{"$error":"#N/A"}},{"$f":"IF(INDIRECT(\"c\" & (VLOOKUP(Rebalance!$D$39,$F$2:$G$48,2,FALSE)+ROW()-2))=Rebalance!$D$39,INDIRECT(\"a\" & (VLOOKUP(Rebalance!$D$39,$F$2:$G$48,2,FALSE)+ROW()-2)),\"\")","v":{"$error":"#N/A"}},{"$f":"IF(INDIRECT(\"c\" & (VLOOKUP(Rebalance!$D$40,$F$2:$G$48,2,FALSE)+ROW()-2))=Rebalance!$D$40,INDIRECT(\"a\" & (VLOOKUP(Rebalance!$D$40,$F$2:$G$48,2,FALSE)+ROW()-2)),\"\")","v":{"$error":"#N/A"}},{"$f":"IF(INDIRECT(\"c\" & (VLOOKUP(Rebalance!$D$52,$F$2:$G$48,2,FALSE)+ROW()-2))=Rebalance!$D$52,INDIRECT(\"a\" & (VLOOKUP(Rebalance!$D$52,$F$2:$G$48,2,FALSE)+ROW()-2)),\"\")","v":{"$error":"#N/A"}},{"$f":"IF(INDIRECT(\"c\" & (VLOOKUP(Rebalance!$D$53,$F$2:$G$48,2,FALSE)+ROW()-2))=Rebalance!$D$53,INDIRECT(\"a\" & (VLOOKUP(Rebalance!$D$53,$F$2:$G$48,2,FALSE)+ROW()-2)),\"\")","v":{"$error":"#N/A"}},{"$f":"IF(INDIRECT(\"c\" & (VLOOKUP(Rebalance!$D$54,$F$2:$G$48,2,FALSE)+ROW()-2))=Rebalance!$D$54,INDIRECT(\"a\" & (VLOOKUP(Rebalance!$D$54,$F$2:$G$48,2,FALSE)+ROW()-2)),\"\")","v":{"$error":"#N/A"}},{"$f":"IF(INDIRECT(\"c\" & (VLOOKUP(Rebalance!$D$55,$F$2:$G$48,2,FALSE)+ROW()-2))=Rebalance!$D$55,INDIRECT(\"a\" & (VLOOKUP(Rebalance!$D$55,$F$2:$G$48,2,FALSE)+ROW()-2)),\"\")","v":{"$error":"#N/A"}},{"$f":"IF(INDIRECT(\"c\" & (VLOOKUP(Rebalance!$D$56,$F$2:$G$48,2,FALSE)+ROW()-2))=Rebalance!$D$56,INDIRECT(\"a\" & (VLOOKUP(Rebalance!$D$56,$F$2:$G$48,2,FALSE)+ROW()-2)),\"\")","v":{"$error":"#N/A"}},{"$f":"IF(INDIRECT(\"c\" & (VLOOKUP(Rebalance!$D$57,$F$2:$G$48,2,FALSE)+ROW()-2))=Rebalance!$D$57,INDIRECT(\"a\" & (VLOOKUP(Rebalance!$D$57,$F$2:$G$48,2,FALSE)+ROW()-2)),\"\")","v":{"$error":"#N/A"}},{"$f":"IF(INDIRECT(\"c\" & (VLOOKUP(Rebalance!$D$58,$F$2:$G$48,2,FALSE)+ROW()-2))=Rebalance!$D$58,INDIRECT(\"a\" & (VLOOKUP(Rebalance!$D$58,$F$2:$G$48,2,FALSE)+ROW()-2)),\"\")","v":{"$error":"#N/A"}},{"$f":"IF(INDIRECT(\"c\" & (VLOOKUP(Rebalance!$D$59,$F$2:$G$48,2,FALSE)+ROW()-2))=Rebalance!$D$59,INDIRECT(\"a\" & (VLOOKUP(Rebalance!$D$59,$F$2:$G$48,2,FALSE)+ROW()-2)),\"\")","v":{"$error":"#N/A"}},{"$f":"IF(INDIRECT(\"c\" & (VLOOKUP(Rebalance!$D$60,$F$2:$G$48,2,FALSE)+ROW()-2))=Rebalance!$D$60,INDIRECT(\"a\" & (VLOOKUP(Rebalance!$D$60,$F$2:$G$48,2,FALSE)+ROW()-2)),\"\")","v":{"$error":"#N/A"}},{"$f":"IF(INDIRECT(\"c\" & (VLOOKUP(Rebalance!$D$61,$F$2:$G$48,2,FALSE)+ROW()-2))=Rebalance!$D$61,INDIRECT(\"a\" & (VLOOKUP(Rebalance!$D$61,$F$2:$G$48,2,FALSE)+ROW()-2)),\"\")","v":{"$error":"#N/A"}},{"$f":"IF(INDIRECT(\"c\" & (VLOOKUP(Rebalance!$D$62,$F$2:$G$48,2,FALSE)+ROW()-2))=Rebalance!$D$62,INDIRECT(\"a\" & (VLOOKUP(Rebalance!$D$62,$F$2:$G$48,2,FALSE)+ROW()-2)),\"\")","v":{"$error":"#N/A"}},{"$f":"IF(INDIRECT(\"c\" & (VLOOKUP(Rebalance!$D$63,$F$2:$G$48,2,FALSE)+ROW()-2))=Rebalance!$D$63,INDIRECT(\"a\" & (VLOOKUP(Rebalance!$D$63,$F$2:$G$48,2,FALSE)+ROW()-2)),\"\")","v":{"$error":"#N/A"}},{"$f":"IF(INDIRECT(\"c\" & (VLOOKUP(Rebalance!$D$64,$F$2:$G$48,2,FALSE)+ROW()-2))=Rebalance!$D$64,INDIRECT(\"a\" & (VLOOKUP(Rebalance!$D$64,$F$2:$G$48,2,FALSE)+ROW()-2)),\"\")","v":{"$error":"#N/A"}},{"$f":"IF(INDIRECT(\"c\" & (VLOOKUP(Rebalance!$D$65,$F$2:$G$48,2,FALSE)+ROW()-2))=Rebalance!$D$65,INDIRECT(\"a\" & (VLOOKUP(Rebalance!$D$65,$F$2:$G$48,2,FALSE)+ROW()-2)),\"\")","v":{"$error":"#N/A"}},{"$f":"IF(INDIRECT(\"c\" & (VLOOKUP(Rebalance!$D$66,$F$2:$G$48,2,FALSE)+ROW()-2))=Rebalance!$D$66,INDIRECT(\"a\" & (VLOOKUP(Rebalance!$D$66,$F$2:$G$48,2,FALSE)+ROW()-2)),\"\")","v":{"$error":"#N/A"}}]
["Truffle MET Balanced Fund B","TRBCB","Metropolitan Collective Investments",{"$f":"ROW()","v":318},null,null,{"$f":"VLOOKUP(F318,$C$2:$D$599,2,FALSE)","v":{"$error":"#N/A"}},{"$f":"IF(INDIRECT(\"c\" & (VLOOKUP(Rebalance!$D$26,$F$2:$G$48,2,FALSE)+ROW()-2))=Rebalance!$D$26,INDIRECT(\"a\" & (VLOOKUP(Rebalance!$D$26,$F$2:$G$48,2,FALSE)+ROW()-2)),\"\")","v":{"$error":"#N/A"}},{"$f":"IF(INDIRECT(\"c\" & (VLOOKUP(Rebalance!$D$27,$F$2:$G$48,2,FALSE)+ROW()-2))=Rebalance!$D$27,INDIRECT(\"a\" & (VLOOKUP(Rebalance!$D$27,$F$2:$G$48,2,FALSE)+ROW()-2)),\"\")","v":{"$error":"#N/A"}},{"$f":"IF(INDIRECT(\"c\" & (VLOOKUP(Rebalance!$D$28,$F$2:$G$48,2,FALSE)+ROW()-2))=Rebalance!$D$28,INDIRECT(\"a\" & (VLOOKUP(Rebalance!$D$28,$F$2:$G$48,2,FALSE)+ROW()-2)),\"\")","v":{"$error":"#N/A"}},{"$f":"IF(INDIRECT(\"c\" & (VLOOKUP(Rebalance!$D$29,$F$2:$G$48,2,FALSE)+ROW()-2))=Rebalance!$D$29,INDIRECT(\"a\" & (VLOOKUP(Rebalance!$D$29,$F$2:$G$48,2,FALSE)+ROW()-2)),\"\")","v":{"$error":"#N/A"}},{"$f":"IF(INDIRECT(\"c\" & (VLOOKUP(Rebalance!$D$30,$F$2:$G$48,2,FALSE)+ROW()-2))=Rebalance!$D$30,INDIRECT(\"a\" & (VLOOKUP(Rebalance!$D$30,$F$2:$G$48,2,FALSE)+ROW()-2)),\"\")","v":{"$error":"#N/A"}},{"$f":"IF(INDIRECT(\"c\" & (VLOOKUP(Rebalance!$D$31,$F$2:$G$48,2,FALSE)+ROW()-2))=Rebalance!$D$31,INDIRECT(\"a\" & (VLOOKUP(Rebalance!$D$31,$F$2:$G$48,2,FALSE)+ROW()-2)),\"\")","v":{"$error":"#N/A"}},{"$f":"IF(INDIRECT(\"c\" & (VLOOKUP(Rebalance!$D$32,$F$2:$G$48,2,FALSE)+ROW()-2))=Rebalance!$D$32,INDIRECT(\"a\" & (VLOOKUP(Rebalance!$D$32,$F$2:$G$48,2,FALSE)+ROW()-2)),\"\")","v":{"$error":"#N/A"}},{"$f":"IF(INDIRECT(\"c\" & (VLOOKUP(Rebalance!$D$33,$F$2:$G$48,2,FALSE)+ROW()-2))=Rebalance!$D$33,INDIRECT(\"a\" & (VLOOKUP(Rebalance!$D$33,$F$2:$G$48,2,FALSE)+ROW()-2)),\"\")","v":{"$error":"#N/A"}},{"$f":"IF(INDIRECT(\"c\" & (VLOOKUP(Rebalance!$D$34,$F$2:$G$48,2,FALSE)+ROW()-2))=Rebalance!$D$34,INDIRECT(\"a\" & (VLOOKUP(Rebalance!$D$34,$F$2:$G$48,2,FALSE)+ROW()-2)),\"\")","v":{"$error":"#N/A"}},{"$f":"IF(INDIRECT(\"c\" & (VLOOKUP(Rebalance!$D$35,$F$2:$G$48,2,FALSE)+ROW()-2))=Rebalance!$D$35,INDIRECT(\"a\" & (VLOOKUP(Rebalance!$D$35,$F$2:$G$48,2,FALSE)+ROW()-2)),\"\")","v":{"$error":"#N/A"}},{"$f":"IF(INDIRECT(\"c\" & (VLOOKUP(Rebalance!$D$36,$F$2:$G$48,2,FALSE)+ROW()-2))=Rebalance!$D$36,INDIRECT(\"a\" & (VLOOKUP(Rebalance!$D$36,$F$2:$G$48,2,FALSE)+ROW()-2)),\"\")","v":{"$error":"#N/A"}},{"$f":"IF(INDIRECT(\"c\" & (VLOOKUP(Rebalance!$D$37,$F$2:$G$48,2,FALSE)+ROW()-2))=Rebalance!$D$37,INDIRECT(\"a\" & (VLOOKUP(Rebalance!$D$37,$F$2:$G$48,2,FALSE)+ROW()-2)),\"\")","v":{"$error":"#N/A"}},{"$f":"IF(INDIRECT(\"c\" & (VLOOKUP(Rebalance!$D$38,$F$2:$G$48,2,FALSE)+ROW()-2))=Rebalance!$D$38,INDIRECT(\"a\" & (VLOOKUP(Rebalance!$D$38,$F$2:$G$48,2,FALSE)+ROW()-2)),\"\")","v":{"$error":"#N/A"}},{"$f":"IF(INDIRECT(\"c\" & (VLOOKUP(Rebalance!$D$39,$F$2:$G$48,2,FALSE)+ROW()-2))=Rebalance!$D$39,INDIRECT(\"a\" & (VLOOKUP(Rebalance!$D$39,$F$2:$G$48,2,FALSE)+ROW()-2)),\"\")","v":{"$error":"#N/A"}},{"$f":"IF(INDIRECT(\"c\" & (VLOOKUP(Rebalance!$D$40,$F$2:$G$48,2,FALSE)+ROW()-2))=Rebalance!$D$40,INDIRECT(\"a\" & (VLOOKUP(Rebalance!$D$40,$F$2:$G$48,2,FALSE)+ROW()-2)),\"\")","v":{"$error":"#N/A"}},{"$f":"IF(INDIRECT(\"c\" & (VLOOKUP(Rebalance!$D$52,$F$2:$G$48,2,FALSE)+ROW()-2))=Rebalance!$D$52,INDIRECT(\"a\" & (VLOOKUP(Rebalance!$D$52,$F$2:$G$48,2,FALSE)+ROW()-2)),\"\")","v":{"$error":"#N/A"}},{"$f":"IF(INDIRECT(\"c\" & (VLOOKUP(Rebalance!$D$53,$F$2:$G$48,2,FALSE)+ROW()-2))=Rebalance!$D$53,INDIRECT(\"a\" & (VLOOKUP(Rebalance!$D$53,$F$2:$G$48,2,FALSE)+ROW()-2)),\"\")","v":{"$error":"#N/A"}},{"$f":"IF(INDIRECT(\"c\" & (VLOOKUP(Rebalance!$D$54,$F$2:$G$48,2,FALSE)+ROW()-2))=Rebalance!$D$54,INDIRECT(\"a\" & (VLOOKUP(Rebalance!$D$54,$F$2:$G$48,2,FALSE)+ROW()-2)),\"\")","v":{"$error":"#N/A"}},{"$f":"IF(INDIRECT(\"c\" & (VLOOKUP(Rebalance!$D$55,$F$2:$G$48,2,FALSE)+ROW()-2))=Rebalance!$D$55,INDIRECT(\"a\" & (VLOOKUP(Rebalance!$D$55,$F$2:$G$48,2,FALSE)+ROW()-2)),\"\")","v":{"$error":"#N/A"}},{"$f":"IF(INDIRECT(\"c\" & (VLOOKUP(Rebalance!$D$56,$F$2:$G$48,2,FALSE)+ROW()-2))=Rebalance!$D$56,INDIRECT(\"a\" & (VLOOKUP(Rebalance!$D$56,$F$2:$G$48,2,FALSE)+ROW()-2)),\"\")","v":{"$error":"#N/A"}},{"$f":"IF(INDIRECT(\"c\" & (VLOOKUP(Rebalance!$D$57,$F$2:$G$48,2,FALSE)+ROW()-2))=Rebalance!$D$57,INDIRECT(\"a\" & (VLOOKUP(Rebalance!$D$57,$F$2:$G$48,2,FALSE)+ROW()-2)),\"\")","v":{"$error":"#N/A"}},{"$f":"IF(INDIRECT(\"c\" & (VLOOKUP(Rebalance!$D$58,$F$2:$G$48,2,FALSE)+ROW()-2))=Rebalance!$D$58,INDIRECT(\"a\" & (VLOOKUP(Rebalance!$D$58,$F$2:$G$48,2,FALSE)+ROW()-2)),\"\")","v":{"$error":"#N/A"}},{"$f":"IF(INDIRECT(\"c\" & (VLOOKUP(Rebalance!$D$59,$F$2:$G$48,2,FALSE)+ROW()-2))=Rebalance!$D$59,INDIRECT(\"a\" & (VLOOKUP(Rebalance!$D$59,$F$2:$G$48,2,FALSE)+ROW()-2)),\"\")","v":{"$error":"#N/A"}},{"$f":"IF(INDIRECT(\"c\" & (VLOOKUP(Rebalance!$D$60,$F$2:$G$48,2,FALSE)+ROW()-2))=Rebalance!$D$60,INDIRECT(\"a\" & (VLOOKUP(Rebalance!$D$60,$F$2:$G$48,2,FALSE)+ROW()-2)),\"\")","v":{"$error":"#N/A"}},{"$f":"IF(INDIRECT(\"c\" & (VLOOKUP(Rebalance!$D$61,$F$2:$G$48,2,FALSE)+ROW()-2))=Rebalance!$D$61,INDIRECT(\"a\" & (VLOOKUP(Rebalance!$D$61,$F$2:$G$48,2,FALSE)+ROW()-2)),\"\")","v":{"$error":"#N/A"}},{"$f":"IF(INDIRECT(\"c\" & (VLOOKUP(Rebalance!$D$62,$F$2:$G$48,2,FALSE)+ROW()-2))=Rebalance!$D$62,INDIRECT(\"a\" & (VLOOKUP(Rebalance!$D$62,$F$2:$G$48,2,FALSE)+ROW()-2)),\"\")","v":{"$error":"#N/A"}},{"$f":"IF(INDIRECT(\"c\" & (VLOOKUP(Rebalance!$D$63,$F$2:$G$48,2,FALSE)+ROW()-2))=Rebalance!$D$63,INDIRECT(\"a\" & (VLOOKUP(Rebalance!$D$63,$F$2:$G$48,2,FALSE)+ROW()-2)),\"\")","v":{"$error":"#N/A"}},{"$f":"IF(INDIRECT(\"c\" & (VLOOKUP(Rebalance!$D$64,$F$2:$G$48,2,FALSE)+ROW()-2))=Rebalance!$D$64,INDIRECT(\"a\" & (VLOOKUP(Rebalance!$D$64,$F$2:$G$48,2,FALSE)+ROW()-2)),\"\")","v":{"$error":"#N/A"}},{"$f":"IF(INDIRECT(\"c\" & (VLOOKUP(Rebalance!$D$65,$F$2:$G$48,2,FALSE)+ROW()-2))=Rebalance!$D$65,INDIRECT(\"a\" & (VLOOKUP(Rebalance!$D$65,$F$2:$G$48,2,FALSE)+ROW()-2)),\"\")","v":{"$error":"#N/A"}},{"$f":"IF(INDIRECT(\"c\" & (VLOOKUP(Rebalance!$D$66,$F$2:$G$48,2,FALSE)+ROW()-2))=Rebalance!$D$66,INDIRECT(\"a\" & (VLOOKUP(Rebalance!$D$66,$F$2:$G$48,2,FALSE)+ROW()-2)),\"\")","v":{"$error":"#N/A"}}]
["Truffle MET Flexible Fund C","TRFCC","Metropolitan Collective Investments",{"$f":"ROW()","v":319},null,null,{"$f":"VLOOKUP(F319,$C$2:$D$599,2,FALSE)","v":{"$error":"#N/A"}},{"$f":"IF(INDIRECT(\"c\" & (VLOOKUP(Rebalance!$D$26,$F$2:$G$48,2,FALSE)+ROW()-2))=Rebalance!$D$26,INDIRECT(\"a\" & (VLOOKUP(Rebalance!$D$26,$F$2:$G$48,2,FALSE)+ROW()-2)),\"\")","v":{"$error":"#N/A"}},{"$f":"IF(INDIRECT(\"c\" & (VLOOKUP(Rebalance!$D$27,$F$2:$G$48,2,FALSE)+ROW()-2))=Rebalance!$D$27,INDIRECT(\"a\" & (VLOOKUP(Rebalance!$D$27,$F$2:$G$48,2,FALSE)+ROW()-2)),\"\")","v":{"$error":"#N/A"}},{"$f":"IF(INDIRECT(\"c\" & (VLOOKUP(Rebalance!$D$28,$F$2:$G$48,2,FALSE)+ROW()-2))=Rebalance!$D$28,INDIRECT(\"a\" & (VLOOKUP(Rebalance!$D$28,$F$2:$G$48,2,FALSE)+ROW()-2)),\"\")","v":{"$error":"#N/A"}},{"$f":"IF(INDIRECT(\"c\" & (VLOOKUP(Rebalance!$D$29,$F$2:$G$48,2,FALSE)+ROW()-2))=Rebalance!$D$29,INDIRECT(\"a\" & (VLOOKUP(Rebalance!$D$29,$F$2:$G$48,2,FALSE)+ROW()-2)),\"\")","v":{"$error":"#N/A"}},{"$f":"IF(INDIRECT(\"c\" & (VLOOKUP(Rebalance!$D$30,$F$2:$G$48,2,FALSE)+ROW()-2))=Rebalance!$D$30,INDIRECT(\"a\" & (VLOOKUP(Rebalance!$D$30,$F$2:$G$48,2,FALSE)+ROW()-2)),\"\")","v":{"$error":"#N/A"}},{"$f":"IF(INDIRECT(\"c\" & (VLOOKUP(Rebalance!$D$31,$F$2:$G$48,2,FALSE)+ROW()-2))=Rebalance!$D$31,INDIRECT(\"a\" & (VLOOKUP(Rebalance!$D$31,$F$2:$G$48,2,FALSE)+ROW()-2)),\"\")","v":{"$error":"#N/A"}},{"$f":"IF(INDIRECT(\"c\" & (VLOOKUP(Rebalance!$D$32,$F$2:$G$48,2,FALSE)+ROW()-2))=Rebalance!$D$32,INDIRECT(\"a\" & (VLOOKUP(Rebalance!$D$32,$F$2:$G$48,2,FALSE)+ROW()-2)),\"\")","v":{"$error":"#N/A"}},{"$f":"IF(INDIRECT(\"c\" & (VLOOKUP(Rebalance!$D$33,$F$2:$G$48,2,FALSE)+ROW()-2))=Rebalance!$D$33,INDIRECT(\"a\" & (VLOOKUP(Rebalance!$D$33,$F$2:$G$48,2,FALSE)+ROW()-2)),\"\")","v":{"$error":"#N/A"}},{"$f":"IF(INDIRECT(\"c\" & (VLOOKUP(Rebalance!$D$34,$F$2:$G$48,2,FALSE)+ROW()-2))=Rebalance!$D$34,INDIRECT(\"a\" & (VLOOKUP(Rebalance!$D$34,$F$2:$G$48,2,FALSE)+ROW()-2)),\"\")","v":{"$error":"#N/A"}},{"$f":"IF(INDIRECT(\"c\" & (VLOOKUP(Rebalance!$D$35,$F$2:$G$48,2,FALSE)+ROW()-2))=Rebalance!$D$35,INDIRECT(\"a\" & (VLOOKUP(Rebalance!$D$35,$F$2:$G$48,2,FALSE)+ROW()-2)),\"\")","v":{"$error":"#N/A"}},{"$f":"IF(INDIRECT(\"c\" & (VLOOKUP(Rebalance!$D$36,$F$2:$G$48,2,FALSE)+ROW()-2))=Rebalance!$D$36,INDIRECT(\"a\" & (VLOOKUP(Rebalance!$D$36,$F$2:$G$48,2,FALSE)+ROW()-2)),\"\")","v":{"$error":"#N/A"}},{"$f":"IF(INDIRECT(\"c\" & (VLOOKUP(Rebalance!$D$37,$F$2:$G$48,2,FALSE)+ROW()-2))=Rebalance!$D$37,INDIRECT(\"a\" & (VLOOKUP(Rebalance!$D$37,$F$2:$G$48,2,FALSE)+ROW()-2)),\"\")","v":{"$error":"#N/A"}},{"$f":"IF(INDIRECT(\"c\" & (VLOOKUP(Rebalance!$D$38,$F$2:$G$48,2,FALSE)+ROW()-2))=Rebalance!$D$38,INDIRECT(\"a\" & (VLOOKUP(Rebalance!$D$38,$F$2:$G$48,2,FALSE)+ROW()-2)),\"\")","v":{"$error":"#N/A"}},{"$f":"IF(INDIRECT(\"c\" & (VLOOKUP(Rebalance!$D$39,$F$2:$G$48,2,FALSE)+ROW()-2))=Rebalance!$D$39,INDIRECT(\"a\" & (VLOOKUP(Rebalance!$D$39,$F$2:$G$48,2,FALSE)+ROW()-2)),\"\")","v":{"$error":"#N/A"}},{"$f":"IF(INDIRECT(\"c\" & (VLOOKUP(Rebalance!$D$40,$F$2:$G$48,2,FALSE)+ROW()-2))=Rebalance!$D$40,INDIRECT(\"a\" & (VLOOKUP(Rebalance!$D$40,$F$2:$G$48,2,FALSE)+ROW()-2)),\"\")","v":{"$error":"#N/A"}},{"$f":"IF(INDIRECT(\"c\" & (VLOOKUP(Rebalance!$D$52,$F$2:$G$48,2,FALSE)+ROW()-2))=Rebalance!$D$52,INDIRECT(\"a\" & (VLOOKUP(Rebalance!$D$52,$F$2:$G$48,2,FALSE)+ROW()-2)),\"\")","v":{"$error":"#N/A"}},{"$f":"IF(INDIRECT(\"c\" & (VLOOKUP(Rebalance!$D$53,$F$2:$G$48,2,FALSE)+ROW()-2))=Rebalance!$D$53,INDIRECT(\"a\" & (VLOOKUP(Rebalance!$D$53,$F$2:$G$48,2,FALSE)+ROW()-2)),\"\")","v":{"$error":"#N/A"}},{"$f":"IF(INDIRECT(\"c\" & (VLOOKUP(Rebalance!$D$54,$F$2:$G$48,2,FALSE)+ROW()-2))=Rebalance!$D$54,INDIRECT(\"a\" & (VLOOKUP(Rebalance!$D$54,$F$2:$G$48,2,FALSE)+ROW()-2)),\"\")","v":{"$error":"#N/A"}},{"$f":"IF(INDIRECT(\"c\" & (VLOOKUP(Rebalance!$D$55,$F$2:$G$48,2,FALSE)+ROW()-2))=Rebalance!$D$55,INDIRECT(\"a\" & (VLOOKUP(Rebalance!$D$55,$F$2:$G$48,2,FALSE)+ROW()-2)),\"\")","v":{"$error":"#N/A"}},{"$f":"IF(INDIRECT(\"c\" & (VLOOKUP(Rebalance!$D$56,$F$2:$G$48,2,FALSE)+ROW()-2))=Rebalance!$D$56,INDIRECT(\"a\" & (VLOOKUP(Rebalance!$D$56,$F$2:$G$48,2,FALSE)+ROW()-2)),\"\")","v":{"$error":"#N/A"}},{"$f":"IF(INDIRECT(\"c\" & (VLOOKUP(Rebalance!$D$57,$F$2:$G$48,2,FALSE)+ROW()-2))=Rebalance!$D$57,INDIRECT(\"a\" & (VLOOKUP(Rebalance!$D$57,$F$2:$G$48,2,FALSE)+ROW()-2)),\"\")","v":{"$error":"#N/A"}},{"$f":"IF(INDIRECT(\"c\" & (VLOOKUP(Rebalance!$D$58,$F$2:$G$48,2,FALSE)+ROW()-2))=Rebalance!$D$58,INDIRECT(\"a\" & (VLOOKUP(Rebalance!$D$58,$F$2:$G$48,2,FALSE)+ROW()-2)),\"\")","v":{"$error":"#N/A"}},{"$f":"IF(INDIRECT(\"c\" & (VLOOKUP(Rebalance!$D$59,$F$2:$G$48,2,FALSE)+ROW()-2))=Rebalance!$D$59,INDIRECT(\"a\" & (VLOOKUP(Rebalance!$D$59,$F$2:$G$48,2,FALSE)+ROW()-2)),\"\")","v":{"$error":"#N/A"}},{"$f":"IF(INDIRECT(\"c\" & (VLOOKUP(Rebalance!$D$60,$F$2:$G$48,2,FALSE)+ROW()-2))=Rebalance!$D$60,INDIRECT(\"a\" & (VLOOKUP(Rebalance!$D$60,$F$2:$G$48,2,FALSE)+ROW()-2)),\"\")","v":{"$error":"#N/A"}},{"$f":"IF(INDIRECT(\"c\" & (VLOOKUP(Rebalance!$D$61,$F$2:$G$48,2,FALSE)+ROW()-2))=Rebalance!$D$61,INDIRECT(\"a\" & (VLOOKUP(Rebalance!$D$61,$F$2:$G$48,2,FALSE)+ROW()-2)),\"\")","v":{"$error":"#N/A"}},{"$f":"IF(INDIRECT(\"c\" & (VLOOKUP(Rebalance!$D$62,$F$2:$G$48,2,FALSE)+ROW()-2))=Rebalance!$D$62,INDIRECT(\"a\" & (VLOOKUP(Rebalance!$D$62,$F$2:$G$48,2,FALSE)+ROW()-2)),\"\")","v":{"$error":"#N/A"}},{"$f":"IF(INDIRECT(\"c\" & (VLOOKUP(Rebalance!$D$63,$F$2:$G$48,2,FALSE)+ROW()-2))=Rebalance!$D$63,INDIRECT(\"a\" & (VLOOKUP(Rebalance!$D$63,$F$2:$G$48,2,FALSE)+ROW()-2)),\"\")","v":{"$error":"#N/A"}},{"$f":"IF(INDIRECT(\"c\" & (VLOOKUP(Rebalance!$D$64,$F$2:$G$48,2,FALSE)+ROW()-2))=Rebalance!$D$64,INDIRECT(\"a\" & (VLOOKUP(Rebalance!$D$64,$F$2:$G$48,2,FALSE)+ROW()-2)),\"\")","v":{"$error":"#N/A"}},{"$f":"IF(INDIRECT(\"c\" & (VLOOKUP(Rebalance!$D$65,$F$2:$G$48,2,FALSE)+ROW()-2))=Rebalance!$D$65,INDIRECT(\"a\" & (VLOOKUP(Rebalance!$D$65,$F$2:$G$48,2,FALSE)+ROW()-2)),\"\")","v":{"$error":"#N/A"}},{"$f":"IF(INDIRECT(\"c\" & (VLOOKUP(Rebalance!$D$66,$F$2:$G$48,2,FALSE)+ROW()-2))=Rebalance!$D$66,INDIRECT(\"a\" & (VLOOKUP(Rebalance!$D$66,$F$2:$G$48,2,FALSE)+ROW()-2)),\"\")","v":{"$error":"#N/A"}}]
["Truffle MET General Equity Fund C","TRGEC","Metropolitan Collective Investments",{"$f":"ROW()","v":320},null,null,{"$f":"VLOOKUP(F320,$C$2:$D$599,2,FALSE)","v":{"$error":"#N/A"}},{"$f":"IF(INDIRECT(\"c\" & (VLOOKUP(Rebalance!$D$26,$F$2:$G$48,2,FALSE)+ROW()-2))=Rebalance!$D$26,INDIRECT(\"a\" & (VLOOKUP(Rebalance!$D$26,$F$2:$G$48,2,FALSE)+ROW()-2)),\"\")","v":{"$error":"#N/A"}},{"$f":"IF(INDIRECT(\"c\" & (VLOOKUP(Rebalance!$D$27,$F$2:$G$48,2,FALSE)+ROW()-2))=Rebalance!$D$27,INDIRECT(\"a\" & (VLOOKUP(Rebalance!$D$27,$F$2:$G$48,2,FALSE)+ROW()-2)),\"\")","v":{"$error":"#N/A"}},{"$f":"IF(INDIRECT(\"c\" & (VLOOKUP(Rebalance!$D$28,$F$2:$G$48,2,FALSE)+ROW()-2))=Rebalance!$D$28,INDIRECT(\"a\" & (VLOOKUP(Rebalance!$D$28,$F$2:$G$48,2,FALSE)+ROW()-2)),\"\")","v":{"$error":"#N/A"}},{"$f":"IF(INDIRECT(\"c\" & (VLOOKUP(Rebalance!$D$29,$F$2:$G$48,2,FALSE)+ROW()-2))=Rebalance!$D$29,INDIRECT(\"a\" & (VLOOKUP(Rebalance!$D$29,$F$2:$G$48,2,FALSE)+ROW()-2)),\"\")","v":{"$error":"#N/A"}},{"$f":"IF(INDIRECT(\"c\" & (VLOOKUP(Rebalance!$D$30,$F$2:$G$48,2,FALSE)+ROW()-2))=Rebalance!$D$30,INDIRECT(\"a\" & (VLOOKUP(Rebalance!$D$30,$F$2:$G$48,2,FALSE)+ROW()-2)),\"\")","v":{"$error":"#N/A"}},{"$f":"IF(INDIRECT(\"c\" & (VLOOKUP(Rebalance!$D$31,$F$2:$G$48,2,FALSE)+ROW()-2))=Rebalance!$D$31,INDIRECT(\"a\" & (VLOOKUP(Rebalance!$D$31,$F$2:$G$48,2,FALSE)+ROW()-2)),\"\")","v":{"$error":"#N/A"}},{"$f":"IF(INDIRECT(\"c\" & (VLOOKUP(Rebalance!$D$32,$F$2:$G$48,2,FALSE)+ROW()-2))=Rebalance!$D$32,INDIRECT(\"a\" & (VLOOKUP(Rebalance!$D$32,$F$2:$G$48,2,FALSE)+ROW()-2)),\"\")","v":{"$error":"#N/A"}},{"$f":"IF(INDIRECT(\"c\" & (VLOOKUP(Rebalance!$D$33,$F$2:$G$48,2,FALSE)+ROW()-2))=Rebalance!$D$33,INDIRECT(\"a\" & (VLOOKUP(Rebalance!$D$33,$F$2:$G$48,2,FALSE)+ROW()-2)),\"\")","v":{"$error":"#N/A"}},{"$f":"IF(INDIRECT(\"c\" & (VLOOKUP(Rebalance!$D$34,$F$2:$G$48,2,FALSE)+ROW()-2))=Rebalance!$D$34,INDIRECT(\"a\" & (VLOOKUP(Rebalance!$D$34,$F$2:$G$48,2,FALSE)+ROW()-2)),\"\")","v":{"$error":"#N/A"}},{"$f":"IF(INDIRECT(\"c\" & (VLOOKUP(Rebalance!$D$35,$F$2:$G$48,2,FALSE)+ROW()-2))=Rebalance!$D$35,INDIRECT(\"a\" & (VLOOKUP(Rebalance!$D$35,$F$2:$G$48,2,FALSE)+ROW()-2)),\"\")","v":{"$error":"#N/A"}},{"$f":"IF(INDIRECT(\"c\" & (VLOOKUP(Rebalance!$D$36,$F$2:$G$48,2,FALSE)+ROW()-2))=Rebalance!$D$36,INDIRECT(\"a\" & (VLOOKUP(Rebalance!$D$36,$F$2:$G$48,2,FALSE)+ROW()-2)),\"\")","v":{"$error":"#N/A"}},{"$f":"IF(INDIRECT(\"c\" & (VLOOKUP(Rebalance!$D$37,$F$2:$G$48,2,FALSE)+ROW()-2))=Rebalance!$D$37,INDIRECT(\"a\" & (VLOOKUP(Rebalance!$D$37,$F$2:$G$48,2,FALSE)+ROW()-2)),\"\")","v":{"$error":"#N/A"}},{"$f":"IF(INDIRECT(\"c\" & (VLOOKUP(Rebalance!$D$38,$F$2:$G$48,2,FALSE)+ROW()-2))=Rebalance!$D$38,INDIRECT(\"a\" & (VLOOKUP(Rebalance!$D$38,$F$2:$G$48,2,FALSE)+ROW()-2)),\"\")","v":{"$error":"#N/A"}},{"$f":"IF(INDIRECT(\"c\" & (VLOOKUP(Rebalance!$D$39,$F$2:$G$48,2,FALSE)+ROW()-2))=Rebalance!$D$39,INDIRECT(\"a\" & (VLOOKUP(Rebalance!$D$39,$F$2:$G$48,2,FALSE)+ROW()-2)),\"\")","v":{"$error":"#N/A"}},{"$f":"IF(INDIRECT(\"c\" & (VLOOKUP(Rebalance!$D$40,$F$2:$G$48,2,FALSE)+ROW()-2))=Rebalance!$D$40,INDIRECT(\"a\" & (VLOOKUP(Rebalance!$D$40,$F$2:$G$48,2,FALSE)+ROW()-2)),\"\")","v":{"$error":"#N/A"}},{"$f":"IF(INDIRECT(\"c\" & (VLOOKUP(Rebalance!$D$52,$F$2:$G$48,2,FALSE)+ROW()-2))=Rebalance!$D$52,INDIRECT(\"a\" & (VLOOKUP(Rebalance!$D$52,$F$2:$G$48,2,FALSE)+ROW()-2)),\"\")","v":{"$error":"#N/A"}},{"$f":"IF(INDIRECT(\"c\" & (VLOOKUP(Rebalance!$D$53,$F$2:$G$48,2,FALSE)+ROW()-2))=Rebalance!$D$53,INDIRECT(\"a\" & (VLOOKUP(Rebalance!$D$53,$F$2:$G$48,2,FALSE)+ROW()-2)),\"\")","v":{"$error":"#N/A"}},{"$f":"IF(INDIRECT(\"c\" & (VLOOKUP(Rebalance!$D$54,$F$2:$G$48,2,FALSE)+ROW()-2))=Rebalance!$D$54,INDIRECT(\"a\" & (VLOOKUP(Rebalance!$D$54,$F$2:$G$48,2,FALSE)+ROW()-2)),\"\")","v":{"$error":"#N/A"}},{"$f":"IF(INDIRECT(\"c\" & (VLOOKUP(Rebalance!$D$55,$F$2:$G$48,2,FALSE)+ROW()-2))=Rebalance!$D$55,INDIRECT(\"a\" & (VLOOKUP(Rebalance!$D$55,$F$2:$G$48,2,FALSE)+ROW()-2)),\"\")","v":{"$error":"#N/A"}},{"$f":"IF(INDIRECT(\"c\" & (VLOOKUP(Rebalance!$D$56,$F$2:$G$48,2,FALSE)+ROW()-2))=Rebalance!$D$56,INDIRECT(\"a\" & (VLOOKUP(Rebalance!$D$56,$F$2:$G$48,2,FALSE)+ROW()-2)),\"\")","v":{"$error":"#N/A"}},{"$f":"IF(INDIRECT(\"c\" & (VLOOKUP(Rebalance!$D$57,$F$2:$G$48,2,FALSE)+ROW()-2))=Rebalance!$D$57,INDIRECT(\"a\" & (VLOOKUP(Rebalance!$D$57,$F$2:$G$48,2,FALSE)+ROW()-2)),\"\")","v":{"$error":"#N/A"}},{"$f":"IF(INDIRECT(\"c\" & (VLOOKUP(Rebalance!$D$58,$F$2:$G$48,2,FALSE)+ROW()-2))=Rebalance!$D$58,INDIRECT(\"a\" & (VLOOKUP(Rebalance!$D$58,$F$2:$G$48,2,FALSE)+ROW()-2)),\"\")","v":{"$error":"#N/A"}},{"$f":"IF(INDIRECT(\"c\" & (VLOOKUP(Rebalance!$D$59,$F$2:$G$48,2,FALSE)+ROW()-2))=Rebalance!$D$59,INDIRECT(\"a\" & (VLOOKUP(Rebalance!$D$59,$F$2:$G$48,2,FALSE)+ROW()-2)),\"\")","v":{"$error":"#N/A"}},{"$f":"IF(INDIRECT(\"c\" & (VLOOKUP(Rebalance!$D$60,$F$2:$G$48,2,FALSE)+ROW()-2))=Rebalance!$D$60,INDIRECT(\"a\" & (VLOOKUP(Rebalance!$D$60,$F$2:$G$48,2,FALSE)+ROW()-2)),\"\")","v":{"$error":"#N/A"}},{"$f":"IF(INDIRECT(\"c\" & (VLOOKUP(Rebalance!$D$61,$F$2:$G$48,2,FALSE)+ROW()-2))=Rebalance!$D$61,INDIRECT(\"a\" & (VLOOKUP(Rebalance!$D$61,$F$2:$G$48,2,FALSE)+ROW()-2)),\"\")","v":{"$error":"#N/A"}},{"$f":"IF(INDIRECT(\"c\" & (VLOOKUP(Rebalance!$D$62,$F$2:$G$48,2,FALSE)+ROW()-2))=Rebalance!$D$62,INDIRECT(\"a\" & (VLOOKUP(Rebalance!$D$62,$F$2:$G$48,2,FALSE)+ROW()-2)),\"\")","v":{"$error":"#N/A"}},{"$f":"IF(INDIRECT(\"c\" & (VLOOKUP(Rebalance!$D$63,$F$2:$G$48,2,FALSE)+ROW()-2))=Rebalance!$D$63,INDIRECT(\"a\" & (VLOOKUP(Rebalance!$D$63,$F$2:$G$48,2,FALSE)+ROW()-2)),\"\")","v":{"$error":"#N/A"}},{"$f":"IF(INDIRECT(\"c\" & (VLOOKUP(Rebalance!$D$64,$F$2:$G$48,2,FALSE)+ROW()-2))=Rebalance!$D$64,INDIRECT(\"a\" & (VLOOKUP(Rebalance!$D$64,$F$2:$G$48,2,FALSE)+ROW()-2)),\"\")","v":{"$error":"#N/A"}},{"$f":"IF(INDIRECT(\"c\" & (VLOOKUP(Rebalance!$D$65,$F$2:$G$48,2,FALSE)+ROW()-2))=Rebalance!$D$65,INDIRECT(\"a\" & (VLOOKUP(Rebalance!$D$65,$F$2:$G$48,2,FALSE)+ROW()-2)),\"\")","v":{"$error":"#N/A"}},{"$f":"IF(INDIRECT(\"c\" & (VLOOKUP(Rebalance!$D$66,$F$2:$G$48,2,FALSE)+ROW()-2))=Rebalance!$D$66,INDIRECT(\"a\" & (VLOOKUP(Rebalance!$D$66,$F$2:$G$48,2,FALSE)+ROW()-2)),\"\")","v":{"$error":"#N/A"}}]
["Aluwani Top 25 Fund A","MTTC1","Momentum Collective Investments Ltd",{"$f":"ROW()","v":321},null,null,{"$f":"VLOOKUP(F321,$C$2:$D$599,2,FALSE)","v":{"$error":"#N/A"}},{"$f":"IF(INDIRECT(\"c\" & (VLOOKUP(Rebalance!$D$26,$F$2:$G$48,2,FALSE)+ROW()-2))=Rebalance!$D$26,INDIRECT(\"a\" & (VLOOKUP(Rebalance!$D$26,$F$2:$G$48,2,FALSE)+ROW()-2)),\"\")","v":{"$error":"#N/A"}},{"$f":"IF(INDIRECT(\"c\" & (VLOOKUP(Rebalance!$D$27,$F$2:$G$48,2,FALSE)+ROW()-2))=Rebalance!$D$27,INDIRECT(\"a\" & (VLOOKUP(Rebalance!$D$27,$F$2:$G$48,2,FALSE)+ROW()-2)),\"\")","v":{"$error":"#N/A"}},{"$f":"IF(INDIRECT(\"c\" & (VLOOKUP(Rebalance!$D$28,$F$2:$G$48,2,FALSE)+ROW()-2))=Rebalance!$D$28,INDIRECT(\"a\" & (VLOOKUP(Rebalance!$D$28,$F$2:$G$48,2,FALSE)+ROW()-2)),\"\")","v":{"$error":"#N/A"}},{"$f":"IF(INDIRECT(\"c\" & (VLOOKUP(Rebalance!$D$29,$F$2:$G$48,2,FALSE)+ROW()-2))=Rebalance!$D$29,INDIRECT(\"a\" & (VLOOKUP(Rebalance!$D$29,$F$2:$G$48,2,FALSE)+ROW()-2)),\"\")","v":{"$error":"#N/A"}},{"$f":"IF(INDIRECT(\"c\" & (VLOOKUP(Rebalance!$D$30,$F$2:$G$48,2,FALSE)+ROW()-2))=Rebalance!$D$30,INDIRECT(\"a\" & (VLOOKUP(Rebalance!$D$30,$F$2:$G$48,2,FALSE)+ROW()-2)),\"\")","v":{"$error":"#N/A"}},{"$f":"IF(INDIRECT(\"c\" & (VLOOKUP(Rebalance!$D$31,$F$2:$G$48,2,FALSE)+ROW()-2))=Rebalance!$D$31,INDIRECT(\"a\" & (VLOOKUP(Rebalance!$D$31,$F$2:$G$48,2,FALSE)+ROW()-2)),\"\")","v":{"$error":"#N/A"}},{"$f":"IF(INDIRECT(\"c\" & (VLOOKUP(Rebalance!$D$32,$F$2:$G$48,2,FALSE)+ROW()-2))=Rebalance!$D$32,INDIRECT(\"a\" & (VLOOKUP(Rebalance!$D$32,$F$2:$G$48,2,FALSE)+ROW()-2)),\"\")","v":{"$error":"#N/A"}},{"$f":"IF(INDIRECT(\"c\" & (VLOOKUP(Rebalance!$D$33,$F$2:$G$48,2,FALSE)+ROW()-2))=Rebalance!$D$33,INDIRECT(\"a\" & (VLOOKUP(Rebalance!$D$33,$F$2:$G$48,2,FALSE)+ROW()-2)),\"\")","v":{"$error":"#N/A"}},{"$f":"IF(INDIRECT(\"c\" & (VLOOKUP(Rebalance!$D$34,$F$2:$G$48,2,FALSE)+ROW()-2))=Rebalance!$D$34,INDIRECT(\"a\" & (VLOOKUP(Rebalance!$D$34,$F$2:$G$48,2,FALSE)+ROW()-2)),\"\")","v":{"$error":"#N/A"}},{"$f":"IF(INDIRECT(\"c\" & (VLOOKUP(Rebalance!$D$35,$F$2:$G$48,2,FALSE)+ROW()-2))=Rebalance!$D$35,INDIRECT(\"a\" & (VLOOKUP(Rebalance!$D$35,$F$2:$G$48,2,FALSE)+ROW()-2)),\"\")","v":{"$error":"#N/A"}},{"$f":"IF(INDIRECT(\"c\" & (VLOOKUP(Rebalance!$D$36,$F$2:$G$48,2,FALSE)+ROW()-2))=Rebalance!$D$36,INDIRECT(\"a\" & (VLOOKUP(Rebalance!$D$36,$F$2:$G$48,2,FALSE)+ROW()-2)),\"\")","v":{"$error":"#N/A"}},{"$f":"IF(INDIRECT(\"c\" & (VLOOKUP(Rebalance!$D$37,$F$2:$G$48,2,FALSE)+ROW()-2))=Rebalance!$D$37,INDIRECT(\"a\" & (VLOOKUP(Rebalance!$D$37,$F$2:$G$48,2,FALSE)+ROW()-2)),\"\")","v":{"$error":"#N/A"}},{"$f":"IF(INDIRECT(\"c\" & (VLOOKUP(Rebalance!$D$38,$F$2:$G$48,2,FALSE)+ROW()-2))=Rebalance!$D$38,INDIRECT(\"a\" & (VLOOKUP(Rebalance!$D$38,$F$2:$G$48,2,FALSE)+ROW()-2)),\"\")","v":{"$error":"#N/A"}},{"$f":"IF(INDIRECT(\"c\" & (VLOOKUP(Rebalance!$D$39,$F$2:$G$48,2,FALSE)+ROW()-2))=Rebalance!$D$39,INDIRECT(\"a\" & (VLOOKUP(Rebalance!$D$39,$F$2:$G$48,2,FALSE)+ROW()-2)),\"\")","v":{"$error":"#N/A"}},{"$f":"IF(INDIRECT(\"c\" & (VLOOKUP(Rebalance!$D$40,$F$2:$G$48,2,FALSE)+ROW()-2))=Rebalance!$D$40,INDIRECT(\"a\" & (VLOOKUP(Rebalance!$D$40,$F$2:$G$48,2,FALSE)+ROW()-2)),\"\")","v":{"$error":"#N/A"}},{"$f":"IF(INDIRECT(\"c\" & (VLOOKUP(Rebalance!$D$52,$F$2:$G$48,2,FALSE)+ROW()-2))=Rebalance!$D$52,INDIRECT(\"a\" & (VLOOKUP(Rebalance!$D$52,$F$2:$G$48,2,FALSE)+ROW()-2)),\"\")","v":{"$error":"#N/A"}},{"$f":"IF(INDIRECT(\"c\" & (VLOOKUP(Rebalance!$D$53,$F$2:$G$48,2,FALSE)+ROW()-2))=Rebalance!$D$53,INDIRECT(\"a\" & (VLOOKUP(Rebalance!$D$53,$F$2:$G$48,2,FALSE)+ROW()-2)),\"\")","v":{"$error":"#N/A"}},{"$f":"IF(INDIRECT(\"c\" & (VLOOKUP(Rebalance!$D$54,$F$2:$G$48,2,FALSE)+ROW()-2))=Rebalance!$D$54,INDIRECT(\"a\" & (VLOOKUP(Rebalance!$D$54,$F$2:$G$48,2,FALSE)+ROW()-2)),\"\")","v":{"$error":"#N/A"}},{"$f":"IF(INDIRECT(\"c\" & (VLOOKUP(Rebalance!$D$55,$F$2:$G$48,2,FALSE)+ROW()-2))=Rebalance!$D$55,INDIRECT(\"a\" & (VLOOKUP(Rebalance!$D$55,$F$2:$G$48,2,FALSE)+ROW()-2)),\"\")","v":{"$error":"#N/A"}},{"$f":"IF(INDIRECT(\"c\" & (VLOOKUP(Rebalance!$D$56,$F$2:$G$48,2,FALSE)+ROW()-2))=Rebalance!$D$56,INDIRECT(\"a\" & (VLOOKUP(Rebalance!$D$56,$F$2:$G$48,2,FALSE)+ROW()-2)),\"\")","v":{"$error":"#N/A"}},{"$f":"IF(INDIRECT(\"c\" & (VLOOKUP(Rebalance!$D$57,$F$2:$G$48,2,FALSE)+ROW()-2))=Rebalance!$D$57,INDIRECT(\"a\" & (VLOOKUP(Rebalance!$D$57,$F$2:$G$48,2,FALSE)+ROW()-2)),\"\")","v":{"$error":"#N/A"}},{"$f":"IF(INDIRECT(\"c\" & (VLOOKUP(Rebalance!$D$58,$F$2:$G$48,2,FALSE)+ROW()-2))=Rebalance!$D$58,INDIRECT(\"a\" & (VLOOKUP(Rebalance!$D$58,$F$2:$G$48,2,FALSE)+ROW()-2)),\"\")","v":{"$error":"#N/A"}},{"$f":"IF(INDIRECT(\"c\" & (VLOOKUP(Rebalance!$D$59,$F$2:$G$48,2,FALSE)+ROW()-2))=Rebalance!$D$59,INDIRECT(\"a\" & (VLOOKUP(Rebalance!$D$59,$F$2:$G$48,2,FALSE)+ROW()-2)),\"\")","v":{"$error":"#N/A"}},{"$f":"IF(INDIRECT(\"c\" & (VLOOKUP(Rebalance!$D$60,$F$2:$G$48,2,FALSE)+ROW()-2))=Rebalance!$D$60,INDIRECT(\"a\" & (VLOOKUP(Rebalance!$D$60,$F$2:$G$48,2,FALSE)+ROW()-2)),\"\")","v":{"$error":"#N/A"}},{"$f":"IF(INDIRECT(\"c\" & (VLOOKUP(Rebalance!$D$61,$F$2:$G$48,2,FALSE)+ROW()-2))=Rebalance!$D$61,INDIRECT(\"a\" & (VLOOKUP(Rebalance!$D$61,$F$2:$G$48,2,FALSE)+ROW()-2)),\"\")","v":{"$error":"#N/A"}},{"$f":"IF(INDIRECT(\"c\" & (VLOOKUP(Rebalance!$D$62,$F$2:$G$48,2,FALSE)+ROW()-2))=Rebalance!$D$62,INDIRECT(\"a\" & (VLOOKUP(Rebalance!$D$62,$F$2:$G$48,2,FALSE)+ROW()-2)),\"\")","v":{"$error":"#N/A"}},{"$f":"IF(INDIRECT(\"c\" & (VLOOKUP(Rebalance!$D$63,$F$2:$G$48,2,FALSE)+ROW()-2))=Rebalance!$D$63,INDIRECT(\"a\" & (VLOOKUP(Rebalance!$D$63,$F$2:$G$48,2,FALSE)+ROW()-2)),\"\")","v":{"$error":"#N/A"}},{"$f":"IF(INDIRECT(\"c\" & (VLOOKUP(Rebalance!$D$64,$F$2:$G$48,2,FALSE)+ROW()-2))=Rebalance!$D$64,INDIRECT(\"a\" & (VLOOKUP(Rebalance!$D$64,$F$2:$G$48,2,FALSE)+ROW()-2)),\"\")","v":{"$error":"#N/A"}},{"$f":"IF(INDIRECT(\"c\" & (VLOOKUP(Rebalance!$D$65,$F$2:$G$48,2,FALSE)+ROW()-2))=Rebalance!$D$65,INDIRECT(\"a\" & (VLOOKUP(Rebalance!$D$65,$F$2:$G$48,2,FALSE)+ROW()-2)),\"\")","v":{"$error":"#N/A"}},{"$f":"IF(INDIRECT(\"c\" & (VLOOKUP(Rebalance!$D$66,$F$2:$G$48,2,FALSE)+ROW()-2))=Rebalance!$D$66,INDIRECT(\"a\" & (VLOOKUP(Rebalance!$D$66,$F$2:$G$48,2,FALSE)+ROW()-2)),\"\")","v":{"$error":"#N/A"}}]
["Aluwani Top 25 Fund C1","MTTC1","Momentum Collective Investments Ltd",{"$f":"ROW()","v":322},null,null,{"$f":"VLOOKUP(F322,$C$2:$D$599,2,FALSE)","v":{"$error":"#N/A"}},{"$f":"IF(INDIRECT(\"c\" & (VLOOKUP(Rebalance!$D$26,$F$2:$G$48,2,FALSE)+ROW()-2))=Rebalance!$D$26,INDIRECT(\"a\" & (VLOOKUP(Rebalance!$D$26,$F$2:$G$48,2,FALSE)+ROW()-2)),\"\")","v":{"$error":"#N/A"}},{"$f":"IF(INDIRECT(\"c\" & (VLOOKUP(Rebalance!$D$27,$F$2:$G$48,2,FALSE)+ROW()-2))=Rebalance!$D$27,INDIRECT(\"a\" & (VLOOKUP(Rebalance!$D$27,$F$2:$G$48,2,FALSE)+ROW()-2)),\"\")","v":{"$error":"#N/A"}},{"$f":"IF(INDIRECT(\"c\" & (VLOOKUP(Rebalance!$D$28,$F$2:$G$48,2,FALSE)+ROW()-2))=Rebalance!$D$28,INDIRECT(\"a\" & (VLOOKUP(Rebalance!$D$28,$F$2:$G$48,2,FALSE)+ROW()-2)),\"\")","v":{"$error":"#N/A"}},{"$f":"IF(INDIRECT(\"c\" & (VLOOKUP(Rebalance!$D$29,$F$2:$G$48,2,FALSE)+ROW()-2))=Rebalance!$D$29,INDIRECT(\"a\" & (VLOOKUP(Rebalance!$D$29,$F$2:$G$48,2,FALSE)+ROW()-2)),\"\")","v":{"$error":"#N/A"}},{"$f":"IF(INDIRECT(\"c\" & (VLOOKUP(Rebalance!$D$30,$F$2:$G$48,2,FALSE)+ROW()-2))=Rebalance!$D$30,INDIRECT(\"a\" & (VLOOKUP(Rebalance!$D$30,$F$2:$G$48,2,FALSE)+ROW()-2)),\"\")","v":{"$error":"#N/A"}},{"$f":"IF(INDIRECT(\"c\" & (VLOOKUP(Rebalance!$D$31,$F$2:$G$48,2,FALSE)+ROW()-2))=Rebalance!$D$31,INDIRECT(\"a\" & (VLOOKUP(Rebalance!$D$31,$F$2:$G$48,2,FALSE)+ROW()-2)),\"\")","v":{"$error":"#N/A"}},{"$f":"IF(INDIRECT(\"c\" & (VLOOKUP(Rebalance!$D$32,$F$2:$G$48,2,FALSE)+ROW()-2))=Rebalance!$D$32,INDIRECT(\"a\" & (VLOOKUP(Rebalance!$D$32,$F$2:$G$48,2,FALSE)+ROW()-2)),\"\")","v":{"$error":"#N/A"}},{"$f":"IF(INDIRECT(\"c\" & (VLOOKUP(Rebalance!$D$33,$F$2:$G$48,2,FALSE)+ROW()-2))=Rebalance!$D$33,INDIRECT(\"a\" & (VLOOKUP(Rebalance!$D$33,$F$2:$G$48,2,FALSE)+ROW()-2)),\"\")","v":{"$error":"#N/A"}},{"$f":"IF(INDIRECT(\"c\" & (VLOOKUP(Rebalance!$D$34,$F$2:$G$48,2,FALSE)+ROW()-2))=Rebalance!$D$34,INDIRECT(\"a\" & (VLOOKUP(Rebalance!$D$34,$F$2:$G$48,2,FALSE)+ROW()-2)),\"\")","v":{"$error":"#N/A"}},{"$f":"IF(INDIRECT(\"c\" & (VLOOKUP(Rebalance!$D$35,$F$2:$G$48,2,FALSE)+ROW()-2))=Rebalance!$D$35,INDIRECT(\"a\" & (VLOOKUP(Rebalance!$D$35,$F$2:$G$48,2,FALSE)+ROW()-2)),\"\")","v":{"$error":"#N/A"}},{"$f":"IF(INDIRECT(\"c\" & (VLOOKUP(Rebalance!$D$36,$F$2:$G$48,2,FALSE)+ROW()-2))=Rebalance!$D$36,INDIRECT(\"a\" & (VLOOKUP(Rebalance!$D$36,$F$2:$G$48,2,FALSE)+ROW()-2)),\"\")","v":{"$error":"#N/A"}},{"$f":"IF(INDIRECT(\"c\" & (VLOOKUP(Rebalance!$D$37,$F$2:$G$48,2,FALSE)+ROW()-2))=Rebalance!$D$37,INDIRECT(\"a\" & (VLOOKUP(Rebalance!$D$37,$F$2:$G$48,2,FALSE)+ROW()-2)),\"\")","v":{"$error":"#N/A"}},{"$f":"IF(INDIRECT(\"c\" & (VLOOKUP(Rebalance!$D$38,$F$2:$G$48,2,FALSE)+ROW()-2))=Rebalance!$D$38,INDIRECT(\"a\" & (VLOOKUP(Rebalance!$D$38,$F$2:$G$48,2,FALSE)+ROW()-2)),\"\")","v":{"$error":"#N/A"}},{"$f":"IF(INDIRECT(\"c\" & (VLOOKUP(Rebalance!$D$39,$F$2:$G$48,2,FALSE)+ROW()-2))=Rebalance!$D$39,INDIRECT(\"a\" & (VLOOKUP(Rebalance!$D$39,$F$2:$G$48,2,FALSE)+ROW()-2)),\"\")","v":{"$error":"#N/A"}},{"$f":"IF(INDIRECT(\"c\" & (VLOOKUP(Rebalance!$D$40,$F$2:$G$48,2,FALSE)+ROW()-2))=Rebalance!$D$40,INDIRECT(\"a\" & (VLOOKUP(Rebalance!$D$40,$F$2:$G$48,2,FALSE)+ROW()-2)),\"\")","v":{"$error":"#N/A"}},{"$f":"IF(INDIRECT(\"c\" & (VLOOKUP(Rebalance!$D$52,$F$2:$G$48,2,FALSE)+ROW()-2))=Rebalance!$D$52,INDIRECT(\"a\" & (VLOOKUP(Rebalance!$D$52,$F$2:$G$48,2,FALSE)+ROW()-2)),\"\")","v":{"$error":"#N/A"}},{"$f":"IF(INDIRECT(\"c\" & (VLOOKUP(Rebalance!$D$53,$F$2:$G$48,2,FALSE)+ROW()-2))=Rebalance!$D$53,INDIRECT(\"a\" & (VLOOKUP(Rebalance!$D$53,$F$2:$G$48,2,FALSE)+ROW()-2)),\"\")","v":{"$error":"#N/A"}},{"$f":"IF(INDIRECT(\"c\" & (VLOOKUP(Rebalance!$D$54,$F$2:$G$48,2,FALSE)+ROW()-2))=Rebalance!$D$54,INDIRECT(\"a\" & (VLOOKUP(Rebalance!$D$54,$F$2:$G$48,2,FALSE)+ROW()-2)),\"\")","v":{"$error":"#N/A"}},{"$f":"IF(INDIRECT(\"c\" & (VLOOKUP(Rebalance!$D$55,$F$2:$G$48,2,FALSE)+ROW()-2))=Rebalance!$D$55,INDIRECT(\"a\" & (VLOOKUP(Rebalance!$D$55,$F$2:$G$48,2,FALSE)+ROW()-2)),\"\")","v":{"$error":"#N/A"}},{"$f":"IF(INDIRECT(\"c\" & (VLOOKUP(Rebalance!$D$56,$F$2:$G$48,2,FALSE)+ROW()-2))=Rebalance!$D$56,INDIRECT(\"a\" & (VLOOKUP(Rebalance!$D$56,$F$2:$G$48,2,FALSE)+ROW()-2)),\"\")","v":{"$error":"#N/A"}},{"$f":"IF(INDIRECT(\"c\" & (VLOOKUP(Rebalance!$D$57,$F$2:$G$48,2,FALSE)+ROW()-2))=Rebalance!$D$57,INDIRECT(\"a\" & (VLOOKUP(Rebalance!$D$57,$F$2:$G$48,2,FALSE)+ROW()-2)),\"\")","v":{"$error":"#N/A"}},{"$f":"IF(INDIRECT(\"c\" & (VLOOKUP(Rebalance!$D$58,$F$2:$G$48,2,FALSE)+ROW()-2))=Rebalance!$D$58,INDIRECT(\"a\" & (VLOOKUP(Rebalance!$D$58,$F$2:$G$48,2,FALSE)+ROW()-2)),\"\")","v":{"$error":"#N/A"}},{"$f":"IF(INDIRECT(\"c\" & (VLOOKUP(Rebalance!$D$59,$F$2:$G$48,2,FALSE)+ROW()-2))=Rebalance!$D$59,INDIRECT(\"a\" & (VLOOKUP(Rebalance!$D$59,$F$2:$G$48,2,FALSE)+ROW()-2)),\"\")","v":{"$error":"#N/A"}},{"$f":"IF(INDIRECT(\"c\" & (VLOOKUP(Rebalance!$D$60,$F$2:$G$48,2,FALSE)+ROW()-2))=Rebalance!$D$60,INDIRECT(\"a\" & (VLOOKUP(Rebalance!$D$60,$F$2:$G$48,2,FALSE)+ROW()-2)),\"\")","v":{"$error":"#N/A"}},{"$f":"IF(INDIRECT(\"c\" & (VLOOKUP(Rebalance!$D$61,$F$2:$G$48,2,FALSE)+ROW()-2))=Rebalance!$D$61,INDIRECT(\"a\" & (VLOOKUP(Rebalance!$D$61,$F$2:$G$48,2,FALSE)+ROW()-2)),\"\")","v":{"$error":"#N/A"}},{"$f":"IF(INDIRECT(\"c\" & (VLOOKUP(Rebalance!$D$62,$F$2:$G$48,2,FALSE)+ROW()-2))=Rebalance!$D$62,INDIRECT(\"a\" & (VLOOKUP(Rebalance!$D$62,$F$2:$G$48,2,FALSE)+ROW()-2)),\"\")","v":{"$error":"#N/A"}},{"$f":"IF(INDIRECT(\"c\" & (VLOOKUP(Rebalance!$D$63,$F$2:$G$48,2,FALSE)+ROW()-2))=Rebalance!$D$63,INDIRECT(\"a\" & (VLOOKUP(Rebalance!$D$63,$F$2:$G$48,2,FALSE)+ROW()-2)),\"\")","v":{"$error":"#N/A"}},{"$f":"IF(INDIRECT(\"c\" & (VLOOKUP(Rebalance!$D$64,$F$2:$G$48,2,FALSE)+ROW()-2))=Rebalance!$D$64,INDIRECT(\"a\" & (VLOOKUP(Rebalance!$D$64,$F$2:$G$48,2,FALSE)+ROW()-2)),\"\")","v":{"$error":"#N/A"}},{"$f":"IF(INDIRECT(\"c\" & (VLOOKUP(Rebalance!$D$65,$F$2:$G$48,2,FALSE)+ROW()-2))=Rebalance!$D$65,INDIRECT(\"a\" & (VLOOKUP(Rebalance!$D$65,$F$2:$G$48,2,FALSE)+ROW()-2)),\"\")","v":{"$error":"#N/A"}},{"$f":"IF(INDIRECT(\"c\" & (VLOOKUP(Rebalance!$D$66,$F$2:$G$48,2,FALSE)+ROW()-2))=Rebalance!$D$66,INDIRECT(\"a\" & (VLOOKUP(Rebalance!$D$66,$F$2:$G$48,2,FALSE)+ROW()-2)),\"\")","v":{"$error":"#N/A"}}]
["Momentum Africa Equity Fund A","RAEF","Momentum Collective Investments Ltd",{"$f":"ROW()","v":323},null,null,{"$f":"VLOOKUP(F323,$C$2:$D$599,2,FALSE)","v":{"$error":"#N/A"}},{"$f":"IF(INDIRECT(\"c\" & (VLOOKUP(Rebalance!$D$26,$F$2:$G$48,2,FALSE)+ROW()-2))=Rebalance!$D$26,INDIRECT(\"a\" & (VLOOKUP(Rebalance!$D$26,$F$2:$G$48,2,FALSE)+ROW()-2)),\"\")","v":{"$error":"#N/A"}},{"$f":"IF(INDIRECT(\"c\" & (VLOOKUP(Rebalance!$D$27,$F$2:$G$48,2,FALSE)+ROW()-2))=Rebalance!$D$27,INDIRECT(\"a\" & (VLOOKUP(Rebalance!$D$27,$F$2:$G$48,2,FALSE)+ROW()-2)),\"\")","v":{"$error":"#N/A"}},{"$f":"IF(INDIRECT(\"c\" & (VLOOKUP(Rebalance!$D$28,$F$2:$G$48,2,FALSE)+ROW()-2))=Rebalance!$D$28,INDIRECT(\"a\" & (VLOOKUP(Rebalance!$D$28,$F$2:$G$48,2,FALSE)+ROW()-2)),\"\")","v":{"$error":"#N/A"}},{"$f":"IF(INDIRECT(\"c\" & (VLOOKUP(Rebalance!$D$29,$F$2:$G$48,2,FALSE)+ROW()-2))=Rebalance!$D$29,INDIRECT(\"a\" & (VLOOKUP(Rebalance!$D$29,$F$2:$G$48,2,FALSE)+ROW()-2)),\"\")","v":{"$error":"#N/A"}},{"$f":"IF(INDIRECT(\"c\" & (VLOOKUP(Rebalance!$D$30,$F$2:$G$48,2,FALSE)+ROW()-2))=Rebalance!$D$30,INDIRECT(\"a\" & (VLOOKUP(Rebalance!$D$30,$F$2:$G$48,2,FALSE)+ROW()-2)),\"\")","v":{"$error":"#N/A"}},{"$f":"IF(INDIRECT(\"c\" & (VLOOKUP(Rebalance!$D$31,$F$2:$G$48,2,FALSE)+ROW()-2))=Rebalance!$D$31,INDIRECT(\"a\" & (VLOOKUP(Rebalance!$D$31,$F$2:$G$48,2,FALSE)+ROW()-2)),\"\")","v":{"$error":"#N/A"}},{"$f":"IF(INDIRECT(\"c\" & (VLOOKUP(Rebalance!$D$32,$F$2:$G$48,2,FALSE)+ROW()-2))=Rebalance!$D$32,INDIRECT(\"a\" & (VLOOKUP(Rebalance!$D$32,$F$2:$G$48,2,FALSE)+ROW()-2)),\"\")","v":{"$error":"#N/A"}},{"$f":"IF(INDIRECT(\"c\" & (VLOOKUP(Rebalance!$D$33,$F$2:$G$48,2,FALSE)+ROW()-2))=Rebalance!$D$33,INDIRECT(\"a\" & (VLOOKUP(Rebalance!$D$33,$F$2:$G$48,2,FALSE)+ROW()-2)),\"\")","v":{"$error":"#N/A"}},{"$f":"IF(INDIRECT(\"c\" & (VLOOKUP(Rebalance!$D$34,$F$2:$G$48,2,FALSE)+ROW()-2))=Rebalance!$D$34,INDIRECT(\"a\" & (VLOOKUP(Rebalance!$D$34,$F$2:$G$48,2,FALSE)+ROW()-2)),\"\")","v":{"$error":"#N/A"}},{"$f":"IF(INDIRECT(\"c\" & (VLOOKUP(Rebalance!$D$35,$F$2:$G$48,2,FALSE)+ROW()-2))=Rebalance!$D$35,INDIRECT(\"a\" & (VLOOKUP(Rebalance!$D$35,$F$2:$G$48,2,FALSE)+ROW()-2)),\"\")","v":{"$error":"#N/A"}},{"$f":"IF(INDIRECT(\"c\" & (VLOOKUP(Rebalance!$D$36,$F$2:$G$48,2,FALSE)+ROW()-2))=Rebalance!$D$36,INDIRECT(\"a\" & (VLOOKUP(Rebalance!$D$36,$F$2:$G$48,2,FALSE)+ROW()-2)),\"\")","v":{"$error":"#N/A"}},{"$f":"IF(INDIRECT(\"c\" & (VLOOKUP(Rebalance!$D$37,$F$2:$G$48,2,FALSE)+ROW()-2))=Rebalance!$D$37,INDIRECT(\"a\" & (VLOOKUP(Rebalance!$D$37,$F$2:$G$48,2,FALSE)+ROW()-2)),\"\")","v":{"$error":"#N/A"}},{"$f":"IF(INDIRECT(\"c\" & (VLOOKUP(Rebalance!$D$38,$F$2:$G$48,2,FALSE)+ROW()-2))=Rebalance!$D$38,INDIRECT(\"a\" & (VLOOKUP(Rebalance!$D$38,$F$2:$G$48,2,FALSE)+ROW()-2)),\"\")","v":{"$error":"#N/A"}},{"$f":"IF(INDIRECT(\"c\" & (VLOOKUP(Rebalance!$D$39,$F$2:$G$48,2,FALSE)+ROW()-2))=Rebalance!$D$39,INDIRECT(\"a\" & (VLOOKUP(Rebalance!$D$39,$F$2:$G$48,2,FALSE)+ROW()-2)),\"\")","v":{"$error":"#N/A"}},{"$f":"IF(INDIRECT(\"c\" & (VLOOKUP(Rebalance!$D$40,$F$2:$G$48,2,FALSE)+ROW()-2))=Rebalance!$D$40,INDIRECT(\"a\" & (VLOOKUP(Rebalance!$D$40,$F$2:$G$48,2,FALSE)+ROW()-2)),\"\")","v":{"$error":"#N/A"}},{"$f":"IF(INDIRECT(\"c\" & (VLOOKUP(Rebalance!$D$52,$F$2:$G$48,2,FALSE)+ROW()-2))=Rebalance!$D$52,INDIRECT(\"a\" & (VLOOKUP(Rebalance!$D$52,$F$2:$G$48,2,FALSE)+ROW()-2)),\"\")","v":{"$error":"#N/A"}},{"$f":"IF(INDIRECT(\"c\" & (VLOOKUP(Rebalance!$D$53,$F$2:$G$48,2,FALSE)+ROW()-2))=Rebalance!$D$53,INDIRECT(\"a\" & (VLOOKUP(Rebalance!$D$53,$F$2:$G$48,2,FALSE)+ROW()-2)),\"\")","v":{"$error":"#N/A"}},{"$f":"IF(INDIRECT(\"c\" & (VLOOKUP(Rebalance!$D$54,$F$2:$G$48,2,FALSE)+ROW()-2))=Rebalance!$D$54,INDIRECT(\"a\" & (VLOOKUP(Rebalance!$D$54,$F$2:$G$48,2,FALSE)+ROW()-2)),\"\")","v":{"$error":"#N/A"}},{"$f":"IF(INDIRECT(\"c\" & (VLOOKUP(Rebalance!$D$55,$F$2:$G$48,2,FALSE)+ROW()-2))=Rebalance!$D$55,INDIRECT(\"a\" & (VLOOKUP(Rebalance!$D$55,$F$2:$G$48,2,FALSE)+ROW()-2)),\"\")","v":{"$error":"#N/A"}},{"$f":"IF(INDIRECT(\"c\" & (VLOOKUP(Rebalance!$D$56,$F$2:$G$48,2,FALSE)+ROW()-2))=Rebalance!$D$56,INDIRECT(\"a\" & (VLOOKUP(Rebalance!$D$56,$F$2:$G$48,2,FALSE)+ROW()-2)),\"\")","v":{"$error":"#N/A"}},{"$f":"IF(INDIRECT(\"c\" & (VLOOKUP(Rebalance!$D$57,$F$2:$G$48,2,FALSE)+ROW()-2))=Rebalance!$D$57,INDIRECT(\"a\" & (VLOOKUP(Rebalance!$D$57,$F$2:$G$48,2,FALSE)+ROW()-2)),\"\")","v":{"$error":"#N/A"}},{"$f":"IF(INDIRECT(\"c\" & (VLOOKUP(Rebalance!$D$58,$F$2:$G$48,2,FALSE)+ROW()-2))=Rebalance!$D$58,INDIRECT(\"a\" & (VLOOKUP(Rebalance!$D$58,$F$2:$G$48,2,FALSE)+ROW()-2)),\"\")","v":{"$error":"#N/A"}},{"$f":"IF(INDIRECT(\"c\" & (VLOOKUP(Rebalance!$D$59,$F$2:$G$48,2,FALSE)+ROW()-2))=Rebalance!$D$59,INDIRECT(\"a\" & (VLOOKUP(Rebalance!$D$59,$F$2:$G$48,2,FALSE)+ROW()-2)),\"\")","v":{"$error":"#N/A"}},{"$f":"IF(INDIRECT(\"c\" & (VLOOKUP(Rebalance!$D$60,$F$2:$G$48,2,FALSE)+ROW()-2))=Rebalance!$D$60,INDIRECT(\"a\" & (VLOOKUP(Rebalance!$D$60,$F$2:$G$48,2,FALSE)+ROW()-2)),\"\")","v":{"$error":"#N/A"}},{"$f":"IF(INDIRECT(\"c\" & (VLOOKUP(Rebalance!$D$61,$F$2:$G$48,2,FALSE)+ROW()-2))=Rebalance!$D$61,INDIRECT(\"a\" & (VLOOKUP(Rebalance!$D$61,$F$2:$G$48,2,FALSE)+ROW()-2)),\"\")","v":{"$error":"#N/A"}},{"$f":"IF(INDIRECT(\"c\" & (VLOOKUP(Rebalance!$D$62,$F$2:$G$48,2,FALSE)+ROW()-2))=Rebalance!$D$62,INDIRECT(\"a\" & (VLOOKUP(Rebalance!$D$62,$F$2:$G$48,2,FALSE)+ROW()-2)),\"\")","v":{"$error":"#N/A"}},{"$f":"IF(INDIRECT(\"c\" & (VLOOKUP(Rebalance!$D$63,$F$2:$G$48,2,FALSE)+ROW()-2))=Rebalance!$D$63,INDIRECT(\"a\" & (VLOOKUP(Rebalance!$D$63,$F$2:$G$48,2,FALSE)+ROW()-2)),\"\")","v":{"$error":"#N/A"}},{"$f":"IF(INDIRECT(\"c\" & (VLOOKUP(Rebalance!$D$64,$F$2:$G$48,2,FALSE)+ROW()-2))=Rebalance!$D$64,INDIRECT(\"a\" & (VLOOKUP(Rebalance!$D$64,$F$2:$G$48,2,FALSE)+ROW()-2)),\"\")","v":{"$error":"#N/A"}},{"$f":"IF(INDIRECT(\"c\" & (VLOOKUP(Rebalance!$D$65,$F$2:$G$48,2,FALSE)+ROW()-2))=Rebalance!$D$65,INDIRECT(\"a\" & (VLOOKUP(Rebalance!$D$65,$F$2:$G$48,2,FALSE)+ROW()-2)),\"\")","v":{"$error":"#N/A"}},{"$f":"IF(INDIRECT(\"c\" & (VLOOKUP(Rebalance!$D$66,$F$2:$G$48,2,FALSE)+ROW()-2))=Rebalance!$D$66,INDIRECT(\"a\" & (VLOOKUP(Rebalance!$D$66,$F$2:$G$48,2,FALSE)+ROW()-2)),\"\")","v":{"$error":"#N/A"}}]
["Momentum Enhanced Growth Fund of Funds","MEGF","Momentum Collective Investments Ltd",{"$f":"ROW()","v":324},null,null,{"$f":"VLOOKUP(F324,$C$2:$D$599,2,FALSE)","v":{"$error":"#N/A"}},{"$f":"IF(INDIRECT(\"c\" & (VLOOKUP(Rebalance!$D$26,$F$2:$G$48,2,FALSE)+ROW()-2))=Rebalance!$D$26,INDIRECT(\"a\" & (VLOOKUP(Rebalance!$D$26,$F$2:$G$48,2,FALSE)+ROW()-2)),\"\")","v":{"$error":"#N/A"}},{"$f":"IF(INDIRECT(\"c\" & (VLOOKUP(Rebalance!$D$27,$F$2:$G$48,2,FALSE)+ROW()-2))=Rebalance!$D$27,INDIRECT(\"a\" & (VLOOKUP(Rebalance!$D$27,$F$2:$G$48,2,FALSE)+ROW()-2)),\"\")","v":{"$error":"#N/A"}},{"$f":"IF(INDIRECT(\"c\" & (VLOOKUP(Rebalance!$D$28,$F$2:$G$48,2,FALSE)+ROW()-2))=Rebalance!$D$28,INDIRECT(\"a\" & (VLOOKUP(Rebalance!$D$28,$F$2:$G$48,2,FALSE)+ROW()-2)),\"\")","v":{"$error":"#N/A"}},{"$f":"IF(INDIRECT(\"c\" & (VLOOKUP(Rebalance!$D$29,$F$2:$G$48,2,FALSE)+ROW()-2))=Rebalance!$D$29,INDIRECT(\"a\" & (VLOOKUP(Rebalance!$D$29,$F$2:$G$48,2,FALSE)+ROW()-2)),\"\")","v":{"$error":"#N/A"}},{"$f":"IF(INDIRECT(\"c\" & (VLOOKUP(Rebalance!$D$30,$F$2:$G$48,2,FALSE)+ROW()-2))=Rebalance!$D$30,INDIRECT(\"a\" & (VLOOKUP(Rebalance!$D$30,$F$2:$G$48,2,FALSE)+ROW()-2)),\"\")","v":{"$error":"#N/A"}},{"$f":"IF(INDIRECT(\"c\" & (VLOOKUP(Rebalance!$D$31,$F$2:$G$48,2,FALSE)+ROW()-2))=Rebalance!$D$31,INDIRECT(\"a\" & (VLOOKUP(Rebalance!$D$31,$F$2:$G$48,2,FALSE)+ROW()-2)),\"\")","v":{"$error":"#N/A"}},{"$f":"IF(INDIRECT(\"c\" & (VLOOKUP(Rebalance!$D$32,$F$2:$G$48,2,FALSE)+ROW()-2))=Rebalance!$D$32,INDIRECT(\"a\" & (VLOOKUP(Rebalance!$D$32,$F$2:$G$48,2,FALSE)+ROW()-2)),\"\")","v":{"$error":"#N/A"}},{"$f":"IF(INDIRECT(\"c\" & (VLOOKUP(Rebalance!$D$33,$F$2:$G$48,2,FALSE)+ROW()-2))=Rebalance!$D$33,INDIRECT(\"a\" & (VLOOKUP(Rebalance!$D$33,$F$2:$G$48,2,FALSE)+ROW()-2)),\"\")","v":{"$error":"#N/A"}},{"$f":"IF(INDIRECT(\"c\" & (VLOOKUP(Rebalance!$D$34,$F$2:$G$48,2,FALSE)+ROW()-2))=Rebalance!$D$34,INDIRECT(\"a\" & (VLOOKUP(Rebalance!$D$34,$F$2:$G$48,2,FALSE)+ROW()-2)),\"\")","v":{"$error":"#N/A"}},{"$f":"IF(INDIRECT(\"c\" & (VLOOKUP(Rebalance!$D$35,$F$2:$G$48,2,FALSE)+ROW()-2))=Rebalance!$D$35,INDIRECT(\"a\" & (VLOOKUP(Rebalance!$D$35,$F$2:$G$48,2,FALSE)+ROW()-2)),\"\")","v":{"$error":"#N/A"}},{"$f":"IF(INDIRECT(\"c\" & (VLOOKUP(Rebalance!$D$36,$F$2:$G$48,2,FALSE)+ROW()-2))=Rebalance!$D$36,INDIRECT(\"a\" & (VLOOKUP(Rebalance!$D$36,$F$2:$G$48,2,FALSE)+ROW()-2)),\"\")","v":{"$error":"#N/A"}},{"$f":"IF(INDIRECT(\"c\" & (VLOOKUP(Rebalance!$D$37,$F$2:$G$48,2,FALSE)+ROW()-2))=Rebalance!$D$37,INDIRECT(\"a\" & (VLOOKUP(Rebalance!$D$37,$F$2:$G$48,2,FALSE)+ROW()-2)),\"\")","v":{"$error":"#N/A"}},{"$f":"IF(INDIRECT(\"c\" & (VLOOKUP(Rebalance!$D$38,$F$2:$G$48,2,FALSE)+ROW()-2))=Rebalance!$D$38,INDIRECT(\"a\" & (VLOOKUP(Rebalance!$D$38,$F$2:$G$48,2,FALSE)+ROW()-2)),\"\")","v":{"$error":"#N/A"}},{"$f":"IF(INDIRECT(\"c\" & (VLOOKUP(Rebalance!$D$39,$F$2:$G$48,2,FALSE)+ROW()-2))=Rebalance!$D$39,INDIRECT(\"a\" & (VLOOKUP(Rebalance!$D$39,$F$2:$G$48,2,FALSE)+ROW()-2)),\"\")","v":{"$error":"#N/A"}},{"$f":"IF(INDIRECT(\"c\" & (VLOOKUP(Rebalance!$D$40,$F$2:$G$48,2,FALSE)+ROW()-2))=Rebalance!$D$40,INDIRECT(\"a\" & (VLOOKUP(Rebalance!$D$40,$F$2:$G$48,2,FALSE)+ROW()-2)),\"\")","v":{"$error":"#N/A"}},{"$f":"IF(INDIRECT(\"c\" & (VLOOKUP(Rebalance!$D$52,$F$2:$G$48,2,FALSE)+ROW()-2))=Rebalance!$D$52,INDIRECT(\"a\" & (VLOOKUP(Rebalance!$D$52,$F$2:$G$48,2,FALSE)+ROW()-2)),\"\")","v":{"$error":"#N/A"}},{"$f":"IF(INDIRECT(\"c\" & (VLOOKUP(Rebalance!$D$53,$F$2:$G$48,2,FALSE)+ROW()-2))=Rebalance!$D$53,INDIRECT(\"a\" & (VLOOKUP(Rebalance!$D$53,$F$2:$G$48,2,FALSE)+ROW()-2)),\"\")","v":{"$error":"#N/A"}},{"$f":"IF(INDIRECT(\"c\" & (VLOOKUP(Rebalance!$D$54,$F$2:$G$48,2,FALSE)+ROW()-2))=Rebalance!$D$54,INDIRECT(\"a\" & (VLOOKUP(Rebalance!$D$54,$F$2:$G$48,2,FALSE)+ROW()-2)),\"\")","v":{"$error":"#N/A"}},{"$f":"IF(INDIRECT(\"c\" & (VLOOKUP(Rebalance!$D$55,$F$2:$G$48,2,FALSE)+ROW()-2))=Rebalance!$D$55,INDIRECT(\"a\" & (VLOOKUP(Rebalance!$D$55,$F$2:$G$48,2,FALSE)+ROW()-2)),\"\")","v":{"$error":"#N/A"}},{"$f":"IF(INDIRECT(\"c\" & (VLOOKUP(Rebalance!$D$56,$F$2:$G$48,2,FALSE)+ROW()-2))=Rebalance!$D$56,INDIRECT(\"a\" & (VLOOKUP(Rebalance!$D$56,$F$2:$G$48,2,FALSE)+ROW()-2)),\"\")","v":{"$error":"#N/A"}},{"$f":"IF(INDIRECT(\"c\" & (VLOOKUP(Rebalance!$D$57,$F$2:$G$48,2,FALSE)+ROW()-2))=Rebalance!$D$57,INDIRECT(\"a\" & (VLOOKUP(Rebalance!$D$57,$F$2:$G$48,2,FALSE)+ROW()-2)),\"\")","v":{"$error":"#N/A"}},{"$f":"IF(INDIRECT(\"c\" & (VLOOKUP(Rebalance!$D$58,$F$2:$G$48,2,FALSE)+ROW()-2))=Rebalance!$D$58,INDIRECT(\"a\" & (VLOOKUP(Rebalance!$D$58,$F$2:$G$48,2,FALSE)+ROW()-2)),\"\")","v":{"$error":"#N/A"}},{"$f":"IF(INDIRECT(\"c\" & (VLOOKUP(Rebalance!$D$59,$F$2:$G$48,2,FALSE)+ROW()-2))=Rebalance!$D$59,INDIRECT(\"a\" & (VLOOKUP(Rebalance!$D$59,$F$2:$G$48,2,FALSE)+ROW()-2)),\"\")","v":{"$error":"#N/A"}},{"$f":"IF(INDIRECT(\"c\" & (VLOOKUP(Rebalance!$D$60,$F$2:$G$48,2,FALSE)+ROW()-2))=Rebalance!$D$60,INDIRECT(\"a\" & (VLOOKUP(Rebalance!$D$60,$F$2:$G$48,2,FALSE)+ROW()-2)),\"\")","v":{"$error":"#N/A"}},{"$f":"IF(INDIRECT(\"c\" & (VLOOKUP(Rebalance!$D$61,$F$2:$G$48,2,FALSE)+ROW()-2))=Rebalance!$D$61,INDIRECT(\"a\" & (VLOOKUP(Rebalance!$D$61,$F$2:$G$48,2,FALSE)+ROW()-2)),\"\")","v":{"$error":"#N/A"}},{"$f":"IF(INDIRECT(\"c\" & (VLOOKUP(Rebalance!$D$62,$F$2:$G$48,2,FALSE)+ROW()-2))=Rebalance!$D$62,INDIRECT(\"a\" & (VLOOKUP(Rebalance!$D$62,$F$2:$G$48,2,FALSE)+ROW()-2)),\"\")","v":{"$error":"#N/A"}},{"$f":"IF(INDIRECT(\"c\" & (VLOOKUP(Rebalance!$D$63,$F$2:$G$48,2,FALSE)+ROW()-2))=Rebalance!$D$63,INDIRECT(\"a\" & (VLOOKUP(Rebalance!$D$63,$F$2:$G$48,2,FALSE)+ROW()-2)),\"\")","v":{"$error":"#N/A"}},{"$f":"IF(INDIRECT(\"c\" & (VLOOKUP(Rebalance!$D$64,$F$2:$G$48,2,FALSE)+ROW()-2))=Rebalance!$D$64,INDIRECT(\"a\" & (VLOOKUP(Rebalance!$D$64,$F$2:$G$48,2,FALSE)+ROW()-2)),\"\")","v":{"$error":"#N/A"}},{"$f":"IF(INDIRECT(\"c\" & (VLOOKUP(Rebalance!$D$65,$F$2:$G$48,2,FALSE)+ROW()-2))=Rebalance!$D$65,INDIRECT(\"a\" & (VLOOKUP(Rebalance!$D$65,$F$2:$G$48,2,FALSE)+ROW()-2)),\"\")","v":{"$error":"#N/A"}},{"$f":"IF(INDIRECT(\"c\" & (VLOOKUP(Rebalance!$D$66,$F$2:$G$48,2,FALSE)+ROW()-2))=Rebalance!$D$66,INDIRECT(\"a\" & (VLOOKUP(Rebalance!$D$66,$F$2:$G$48,2,FALSE)+ROW()-2)),\"\")","v":{"$error":"#N/A"}}]
["Momentum Bond Fund R","RBFB8","Momentum Collective Investments Ltd",{"$f":"ROW()","v":325},null,null,{"$f":"VLOOKUP(F325,$C$2:$D$599,2,FALSE)","v":{"$error":"#N/A"}},{"$f":"IF(INDIRECT(\"c\" & (VLOOKUP(Rebalance!$D$26,$F$2:$G$48,2,FALSE)+ROW()-2))=Rebalance!$D$26,INDIRECT(\"a\" & (VLOOKUP(Rebalance!$D$26,$F$2:$G$48,2,FALSE)+ROW()-2)),\"\")","v":{"$error":"#N/A"}},{"$f":"IF(INDIRECT(\"c\" & (VLOOKUP(Rebalance!$D$27,$F$2:$G$48,2,FALSE)+ROW()-2))=Rebalance!$D$27,INDIRECT(\"a\" & (VLOOKUP(Rebalance!$D$27,$F$2:$G$48,2,FALSE)+ROW()-2)),\"\")","v":{"$error":"#N/A"}},{"$f":"IF(INDIRECT(\"c\" & (VLOOKUP(Rebalance!$D$28,$F$2:$G$48,2,FALSE)+ROW()-2))=Rebalance!$D$28,INDIRECT(\"a\" & (VLOOKUP(Rebalance!$D$28,$F$2:$G$48,2,FALSE)+ROW()-2)),\"\")","v":{"$error":"#N/A"}},{"$f":"IF(INDIRECT(\"c\" & (VLOOKUP(Rebalance!$D$29,$F$2:$G$48,2,FALSE)+ROW()-2))=Rebalance!$D$29,INDIRECT(\"a\" & (VLOOKUP(Rebalance!$D$29,$F$2:$G$48,2,FALSE)+ROW()-2)),\"\")","v":{"$error":"#N/A"}},{"$f":"IF(INDIRECT(\"c\" & (VLOOKUP(Rebalance!$D$30,$F$2:$G$48,2,FALSE)+ROW()-2))=Rebalance!$D$30,INDIRECT(\"a\" & (VLOOKUP(Rebalance!$D$30,$F$2:$G$48,2,FALSE)+ROW()-2)),\"\")","v":{"$error":"#N/A"}},{"$f":"IF(INDIRECT(\"c\" & (VLOOKUP(Rebalance!$D$31,$F$2:$G$48,2,FALSE)+ROW()-2))=Rebalance!$D$31,INDIRECT(\"a\" & (VLOOKUP(Rebalance!$D$31,$F$2:$G$48,2,FALSE)+ROW()-2)),\"\")","v":{"$error":"#N/A"}},{"$f":"IF(INDIRECT(\"c\" & (VLOOKUP(Rebalance!$D$32,$F$2:$G$48,2,FALSE)+ROW()-2))=Rebalance!$D$32,INDIRECT(\"a\" & (VLOOKUP(Rebalance!$D$32,$F$2:$G$48,2,FALSE)+ROW()-2)),\"\")","v":{"$error":"#N/A"}},{"$f":"IF(INDIRECT(\"c\" & (VLOOKUP(Rebalance!$D$33,$F$2:$G$48,2,FALSE)+ROW()-2))=Rebalance!$D$33,INDIRECT(\"a\" & (VLOOKUP(Rebalance!$D$33,$F$2:$G$48,2,FALSE)+ROW()-2)),\"\")","v":{"$error":"#N/A"}},{"$f":"IF(INDIRECT(\"c\" & (VLOOKUP(Rebalance!$D$34,$F$2:$G$48,2,FALSE)+ROW()-2))=Rebalance!$D$34,INDIRECT(\"a\" & (VLOOKUP(Rebalance!$D$34,$F$2:$G$48,2,FALSE)+ROW()-2)),\"\")","v":{"$error":"#N/A"}},{"$f":"IF(INDIRECT(\"c\" & (VLOOKUP(Rebalance!$D$35,$F$2:$G$48,2,FALSE)+ROW()-2))=Rebalance!$D$35,INDIRECT(\"a\" & (VLOOKUP(Rebalance!$D$35,$F$2:$G$48,2,FALSE)+ROW()-2)),\"\")","v":{"$error":"#N/A"}},{"$f":"IF(INDIRECT(\"c\" & (VLOOKUP(Rebalance!$D$36,$F$2:$G$48,2,FALSE)+ROW()-2))=Rebalance!$D$36,INDIRECT(\"a\" & (VLOOKUP(Rebalance!$D$36,$F$2:$G$48,2,FALSE)+ROW()-2)),\"\")","v":{"$error":"#N/A"}},{"$f":"IF(INDIRECT(\"c\" & (VLOOKUP(Rebalance!$D$37,$F$2:$G$48,2,FALSE)+ROW()-2))=Rebalance!$D$37,INDIRECT(\"a\" & (VLOOKUP(Rebalance!$D$37,$F$2:$G$48,2,FALSE)+ROW()-2)),\"\")","v":{"$error":"#N/A"}},{"$f":"IF(INDIRECT(\"c\" & (VLOOKUP(Rebalance!$D$38,$F$2:$G$48,2,FALSE)+ROW()-2))=Rebalance!$D$38,INDIRECT(\"a\" & (VLOOKUP(Rebalance!$D$38,$F$2:$G$48,2,FALSE)+ROW()-2)),\"\")","v":{"$error":"#N/A"}},{"$f":"IF(INDIRECT(\"c\" & (VLOOKUP(Rebalance!$D$39,$F$2:$G$48,2,FALSE)+ROW()-2))=Rebalance!$D$39,INDIRECT(\"a\" & (VLOOKUP(Rebalance!$D$39,$F$2:$G$48,2,FALSE)+ROW()-2)),\"\")","v":{"$error":"#N/A"}},{"$f":"IF(INDIRECT(\"c\" & (VLOOKUP(Rebalance!$D$40,$F$2:$G$48,2,FALSE)+ROW()-2))=Rebalance!$D$40,INDIRECT(\"a\" & (VLOOKUP(Rebalance!$D$40,$F$2:$G$48,2,FALSE)+ROW()-2)),\"\")","v":{"$error":"#N/A"}},{"$f":"IF(INDIRECT(\"c\" & (VLOOKUP(Rebalance!$D$52,$F$2:$G$48,2,FALSE)+ROW()-2))=Rebalance!$D$52,INDIRECT(\"a\" & (VLOOKUP(Rebalance!$D$52,$F$2:$G$48,2,FALSE)+ROW()-2)),\"\")","v":{"$error":"#N/A"}},{"$f":"IF(INDIRECT(\"c\" & (VLOOKUP(Rebalance!$D$53,$F$2:$G$48,2,FALSE)+ROW()-2))=Rebalance!$D$53,INDIRECT(\"a\" & (VLOOKUP(Rebalance!$D$53,$F$2:$G$48,2,FALSE)+ROW()-2)),\"\")","v":{"$error":"#N/A"}},{"$f":"IF(INDIRECT(\"c\" & (VLOOKUP(Rebalance!$D$54,$F$2:$G$48,2,FALSE)+ROW()-2))=Rebalance!$D$54,INDIRECT(\"a\" & (VLOOKUP(Rebalance!$D$54,$F$2:$G$48,2,FALSE)+ROW()-2)),\"\")","v":{"$error":"#N/A"}},{"$f":"IF(INDIRECT(\"c\" & (VLOOKUP(Rebalance!$D$55,$F$2:$G$48,2,FALSE)+ROW()-2))=Rebalance!$D$55,INDIRECT(\"a\" & (VLOOKUP(Rebalance!$D$55,$F$2:$G$48,2,FALSE)+ROW()-2)),\"\")","v":{"$error":"#N/A"}},{"$f":"IF(INDIRECT(\"c\" & (VLOOKUP(Rebalance!$D$56,$F$2:$G$48,2,FALSE)+ROW()-2))=Rebalance!$D$56,INDIRECT(\"a\" & (VLOOKUP(Rebalance!$D$56,$F$2:$G$48,2,FALSE)+ROW()-2)),\"\")","v":{"$error":"#N/A"}},{"$f":"IF(INDIRECT(\"c\" & (VLOOKUP(Rebalance!$D$57,$F$2:$G$48,2,FALSE)+ROW()-2))=Rebalance!$D$57,INDIRECT(\"a\" & (VLOOKUP(Rebalance!$D$57,$F$2:$G$48,2,FALSE)+ROW()-2)),\"\")","v":{"$error":"#N/A"}},{"$f":"IF(INDIRECT(\"c\" & (VLOOKUP(Rebalance!$D$58,$F$2:$G$48,2,FALSE)+ROW()-2))=Rebalance!$D$58,INDIRECT(\"a\" & (VLOOKUP(Rebalance!$D$58,$F$2:$G$48,2,FALSE)+ROW()-2)),\"\")","v":{"$error":"#N/A"}},{"$f":"IF(INDIRECT(\"c\" & (VLOOKUP(Rebalance!$D$59,$F$2:$G$48,2,FALSE)+ROW()-2))=Rebalance!$D$59,INDIRECT(\"a\" & (VLOOKUP(Rebalance!$D$59,$F$2:$G$48,2,FALSE)+ROW()-2)),\"\")","v":{"$error":"#N/A"}},{"$f":"IF(INDIRECT(\"c\" & (VLOOKUP(Rebalance!$D$60,$F$2:$G$48,2,FALSE)+ROW()-2))=Rebalance!$D$60,INDIRECT(\"a\" & (VLOOKUP(Rebalance!$D$60,$F$2:$G$48,2,FALSE)+ROW()-2)),\"\")","v":{"$error":"#N/A"}},{"$f":"IF(INDIRECT(\"c\" & (VLOOKUP(Rebalance!$D$61,$F$2:$G$48,2,FALSE)+ROW()-2))=Rebalance!$D$61,INDIRECT(\"a\" & (VLOOKUP(Rebalance!$D$61,$F$2:$G$48,2,FALSE)+ROW()-2)),\"\")","v":{"$error":"#N/A"}},{"$f":"IF(INDIRECT(\"c\" & (VLOOKUP(Rebalance!$D$62,$F$2:$G$48,2,FALSE)+ROW()-2))=Rebalance!$D$62,INDIRECT(\"a\" & (VLOOKUP(Rebalance!$D$62,$F$2:$G$48,2,FALSE)+ROW()-2)),\"\")","v":{"$error":"#N/A"}},{"$f":"IF(INDIRECT(\"c\" & (VLOOKUP(Rebalance!$D$63,$F$2:$G$48,2,FALSE)+ROW()-2))=Rebalance!$D$63,INDIRECT(\"a\" & (VLOOKUP(Rebalance!$D$63,$F$2:$G$48,2,FALSE)+ROW()-2)),\"\")","v":{"$error":"#N/A"}},{"$f":"IF(INDIRECT(\"c\" & (VLOOKUP(Rebalance!$D$64,$F$2:$G$48,2,FALSE)+ROW()-2))=Rebalance!$D$64,INDIRECT(\"a\" & (VLOOKUP(Rebalance!$D$64,$F$2:$G$48,2,FALSE)+ROW()-2)),\"\")","v":{"$error":"#N/A"}},{"$f":"IF(INDIRECT(\"c\" & (VLOOKUP(Rebalance!$D$65,$F$2:$G$48,2,FALSE)+ROW()-2))=Rebalance!$D$65,INDIRECT(\"a\" & (VLOOKUP(Rebalance!$D$65,$F$2:$G$48,2,FALSE)+ROW()-2)),\"\")","v":{"$error":"#N/A"}},{"$f":"IF(INDIRECT(\"c\" & (VLOOKUP(Rebalance!$D$66,$F$2:$G$48,2,FALSE)+ROW()-2))=Rebalance!$D$66,INDIRECT(\"a\" & (VLOOKUP(Rebalance!$D$66,$F$2:$G$48,2,FALSE)+ROW()-2)),\"\")","v":{"$error":"#N/A"}}]
["Momentum Bond Fund C1","RBFB8","Momentum Collective Investments Ltd",{"$f":"ROW()","v":326},null,null,{"$f":"VLOOKUP(F326,$C$2:$D$599,2,FALSE)","v":{"$error":"#N/A"}},{"$f":"IF(INDIRECT(\"c\" & (VLOOKUP(Rebalance!$D$26,$F$2:$G$48,2,FALSE)+ROW()-2))=Rebalance!$D$26,INDIRECT(\"a\" & (VLOOKUP(Rebalance!$D$26,$F$2:$G$48,2,FALSE)+ROW()-2)),\"\")","v":{"$error":"#N/A"}},{"$f":"IF(INDIRECT(\"c\" & (VLOOKUP(Rebalance!$D$27,$F$2:$G$48,2,FALSE)+ROW()-2))=Rebalance!$D$27,INDIRECT(\"a\" & (VLOOKUP(Rebalance!$D$27,$F$2:$G$48,2,FALSE)+ROW()-2)),\"\")","v":{"$error":"#N/A"}},{"$f":"IF(INDIRECT(\"c\" & (VLOOKUP(Rebalance!$D$28,$F$2:$G$48,2,FALSE)+ROW()-2))=Rebalance!$D$28,INDIRECT(\"a\" & (VLOOKUP(Rebalance!$D$28,$F$2:$G$48,2,FALSE)+ROW()-2)),\"\")","v":{"$error":"#N/A"}},{"$f":"IF(INDIRECT(\"c\" & (VLOOKUP(Rebalance!$D$29,$F$2:$G$48,2,FALSE)+ROW()-2))=Rebalance!$D$29,INDIRECT(\"a\" & (VLOOKUP(Rebalance!$D$29,$F$2:$G$48,2,FALSE)+ROW()-2)),\"\")","v":{"$error":"#N/A"}},{"$f":"IF(INDIRECT(\"c\" & (VLOOKUP(Rebalance!$D$30,$F$2:$G$48,2,FALSE)+ROW()-2))=Rebalance!$D$30,INDIRECT(\"a\" & (VLOOKUP(Rebalance!$D$30,$F$2:$G$48,2,FALSE)+ROW()-2)),\"\")","v":{"$error":"#N/A"}},{"$f":"IF(INDIRECT(\"c\" & (VLOOKUP(Rebalance!$D$31,$F$2:$G$48,2,FALSE)+ROW()-2))=Rebalance!$D$31,INDIRECT(\"a\" & (VLOOKUP(Rebalance!$D$31,$F$2:$G$48,2,FALSE)+ROW()-2)),\"\")","v":{"$error":"#N/A"}},{"$f":"IF(INDIRECT(\"c\" & (VLOOKUP(Rebalance!$D$32,$F$2:$G$48,2,FALSE)+ROW()-2))=Rebalance!$D$32,INDIRECT(\"a\" & (VLOOKUP(Rebalance!$D$32,$F$2:$G$48,2,FALSE)+ROW()-2)),\"\")","v":{"$error":"#N/A"}},{"$f":"IF(INDIRECT(\"c\" & (VLOOKUP(Rebalance!$D$33,$F$2:$G$48,2,FALSE)+ROW()-2))=Rebalance!$D$33,INDIRECT(\"a\" & (VLOOKUP(Rebalance!$D$33,$F$2:$G$48,2,FALSE)+ROW()-2)),\"\")","v":{"$error":"#N/A"}},{"$f":"IF(INDIRECT(\"c\" & (VLOOKUP(Rebalance!$D$34,$F$2:$G$48,2,FALSE)+ROW()-2))=Rebalance!$D$34,INDIRECT(\"a\" & (VLOOKUP(Rebalance!$D$34,$F$2:$G$48,2,FALSE)+ROW()-2)),\"\")","v":{"$error":"#N/A"}},{"$f":"IF(INDIRECT(\"c\" & (VLOOKUP(Rebalance!$D$35,$F$2:$G$48,2,FALSE)+ROW()-2))=Rebalance!$D$35,INDIRECT(\"a\" & (VLOOKUP(Rebalance!$D$35,$F$2:$G$48,2,FALSE)+ROW()-2)),\"\")","v":{"$error":"#N/A"}},{"$f":"IF(INDIRECT(\"c\" & (VLOOKUP(Rebalance!$D$36,$F$2:$G$48,2,FALSE)+ROW()-2))=Rebalance!$D$36,INDIRECT(\"a\" & (VLOOKUP(Rebalance!$D$36,$F$2:$G$48,2,FALSE)+ROW()-2)),\"\")","v":{"$error":"#N/A"}},{"$f":"IF(INDIRECT(\"c\" & (VLOOKUP(Rebalance!$D$37,$F$2:$G$48,2,FALSE)+ROW()-2))=Rebalance!$D$37,INDIRECT(\"a\" & (VLOOKUP(Rebalance!$D$37,$F$2:$G$48,2,FALSE)+ROW()-2)),\"\")","v":{"$error":"#N/A"}},{"$f":"IF(INDIRECT(\"c\" & (VLOOKUP(Rebalance!$D$38,$F$2:$G$48,2,FALSE)+ROW()-2))=Rebalance!$D$38,INDIRECT(\"a\" & (VLOOKUP(Rebalance!$D$38,$F$2:$G$48,2,FALSE)+ROW()-2)),\"\")","v":{"$error":"#N/A"}},{"$f":"IF(INDIRECT(\"c\" & (VLOOKUP(Rebalance!$D$39,$F$2:$G$48,2,FALSE)+ROW()-2))=Rebalance!$D$39,INDIRECT(\"a\" & (VLOOKUP(Rebalance!$D$39,$F$2:$G$48,2,FALSE)+ROW()-2)),\"\")","v":{"$error":"#N/A"}},{"$f":"IF(INDIRECT(\"c\" & (VLOOKUP(Rebalance!$D$40,$F$2:$G$48,2,FALSE)+ROW()-2))=Rebalance!$D$40,INDIRECT(\"a\" & (VLOOKUP(Rebalance!$D$40,$F$2:$G$48,2,FALSE)+ROW()-2)),\"\")","v":{"$error":"#N/A"}},{"$f":"IF(INDIRECT(\"c\" & (VLOOKUP(Rebalance!$D$52,$F$2:$G$48,2,FALSE)+ROW()-2))=Rebalance!$D$52,INDIRECT(\"a\" & (VLOOKUP(Rebalance!$D$52,$F$2:$G$48,2,FALSE)+ROW()-2)),\"\")","v":{"$error":"#N/A"}},{"$f":"IF(INDIRECT(\"c\" & (VLOOKUP(Rebalance!$D$53,$F$2:$G$48,2,FALSE)+ROW()-2))=Rebalance!$D$53,INDIRECT(\"a\" & (VLOOKUP(Rebalance!$D$53,$F$2:$G$48,2,FALSE)+ROW()-2)),\"\")","v":{"$error":"#N/A"}},{"$f":"IF(INDIRECT(\"c\" & (VLOOKUP(Rebalance!$D$54,$F$2:$G$48,2,FALSE)+ROW()-2))=Rebalance!$D$54,INDIRECT(\"a\" & (VLOOKUP(Rebalance!$D$54,$F$2:$G$48,2,FALSE)+ROW()-2)),\"\")","v":{"$error":"#N/A"}},{"$f":"IF(INDIRECT(\"c\" & (VLOOKUP(Rebalance!$D$55,$F$2:$G$48,2,FALSE)+ROW()-2))=Rebalance!$D$55,INDIRECT(\"a\" & (VLOOKUP(Rebalance!$D$55,$F$2:$G$48,2,FALSE)+ROW()-2)),\"\")","v":{"$error":"#N/A"}},{"$f":"IF(INDIRECT(\"c\" & (VLOOKUP(Rebalance!$D$56,$F$2:$G$48,2,FALSE)+ROW()-2))=Rebalance!$D$56,INDIRECT(\"a\" & (VLOOKUP(Rebalance!$D$56,$F$2:$G$48,2,FALSE)+ROW()-2)),\"\")","v":{"$error":"#N/A"}},{"$f":"IF(INDIRECT(\"c\" & (VLOOKUP(Rebalance!$D$57,$F$2:$G$48,2,FALSE)+ROW()-2))=Rebalance!$D$57,INDIRECT(\"a\" & (VLOOKUP(Rebalance!$D$57,$F$2:$G$48,2,FALSE)+ROW()-2)),\"\")","v":{"$error":"#N/A"}},{"$f":"IF(INDIRECT(\"c\" & (VLOOKUP(Rebalance!$D$58,$F$2:$G$48,2,FALSE)+ROW()-2))=Rebalance!$D$58,INDIRECT(\"a\" & (VLOOKUP(Rebalance!$D$58,$F$2:$G$48,2,FALSE)+ROW()-2)),\"\")","v":{"$error":"#N/A"}},{"$f":"IF(INDIRECT(\"c\" & (VLOOKUP(Rebalance!$D$59,$F$2:$G$48,2,FALSE)+ROW()-2))=Rebalance!$D$59,INDIRECT(\"a\" & (VLOOKUP(Rebalance!$D$59,$F$2:$G$48,2,FALSE)+ROW()-2)),\"\")","v":{"$error":"#N/A"}},{"$f":"IF(INDIRECT(\"c\" & (VLOOKUP(Rebalance!$D$60,$F$2:$G$48,2,FALSE)+ROW()-2))=Rebalance!$D$60,INDIRECT(\"a\" & (VLOOKUP(Rebalance!$D$60,$F$2:$G$48,2,FALSE)+ROW()-2)),\"\")","v":{"$error":"#N/A"}},{"$f":"IF(INDIRECT(\"c\" & (VLOOKUP(Rebalance!$D$61,$F$2:$G$48,2,FALSE)+ROW()-2))=Rebalance!$D$61,INDIRECT(\"a\" & (VLOOKUP(Rebalance!$D$61,$F$2:$G$48,2,FALSE)+ROW()-2)),\"\")","v":{"$error":"#N/A"}},{"$f":"IF(INDIRECT(\"c\" & (VLOOKUP(Rebalance!$D$62,$F$2:$G$48,2,FALSE)+ROW()-2))=Rebalance!$D$62,INDIRECT(\"a\" & (VLOOKUP(Rebalance!$D$62,$F$2:$G$48,2,FALSE)+ROW()-2)),\"\")","v":{"$error":"#N/A"}},{"$f":"IF(INDIRECT(\"c\" & (VLOOKUP(Rebalance!$D$63,$F$2:$G$48,2,FALSE)+ROW()-2))=Rebalance!$D$63,INDIRECT(\"a\" & (VLOOKUP(Rebalance!$D$63,$F$2:$G$48,2,FALSE)+ROW()-2)),\"\")","v":{"$error":"#N/A"}},{"$f":"IF(INDIRECT(\"c\" & (VLOOKUP(Rebalance!$D$64,$F$2:$G$48,2,FALSE)+ROW()-2))=Rebalance!$D$64,INDIRECT(\"a\" & (VLOOKUP(Rebalance!$D$64,$F$2:$G$48,2,FALSE)+ROW()-2)),\"\")","v":{"$error":"#N/A"}},{"$f":"IF(INDIRECT(\"c\" & (VLOOKUP(Rebalance!$D$65,$F$2:$G$48,2,FALSE)+ROW()-2))=Rebalance!$D$65,INDIRECT(\"a\" & (VLOOKUP(Rebalance!$D$65,$F$2:$G$48,2,FALSE)+ROW()-2)),\"\")","v":{"$error":"#N/A"}},{"$f":"IF(INDIRECT(\"c\" & (VLOOKUP(Rebalance!$D$66,$F$2:$G$48,2,FALSE)+ROW()-2))=Rebalance!$D$66,INDIRECT(\"a\" & (VLOOKUP(Rebalance!$D$66,$F$2:$G$48,2,FALSE)+ROW()-2)),\"\")","v":{"$error":"#N/A"}}]
["Momentum Capital Enhancer Fund A","RMCA","Momentum Collective Investments Ltd",{"$f":"ROW()","v":327},null,null,{"$f":"VLOOKUP(F327,$C$2:$D$599,2,FALSE)","v":{"$error":"#N/A"}},{"$f":"IF(INDIRECT(\"c\" & (VLOOKUP(Rebalance!$D$26,$F$2:$G$48,2,FALSE)+ROW()-2))=Rebalance!$D$26,INDIRECT(\"a\" & (VLOOKUP(Rebalance!$D$26,$F$2:$G$48,2,FALSE)+ROW()-2)),\"\")","v":{"$error":"#N/A"}},{"$f":"IF(INDIRECT(\"c\" & (VLOOKUP(Rebalance!$D$27,$F$2:$G$48,2,FALSE)+ROW()-2))=Rebalance!$D$27,INDIRECT(\"a\" & (VLOOKUP(Rebalance!$D$27,$F$2:$G$48,2,FALSE)+ROW()-2)),\"\")","v":{"$error":"#N/A"}},{"$f":"IF(INDIRECT(\"c\" & (VLOOKUP(Rebalance!$D$28,$F$2:$G$48,2,FALSE)+ROW()-2))=Rebalance!$D$28,INDIRECT(\"a\" & (VLOOKUP(Rebalance!$D$28,$F$2:$G$48,2,FALSE)+ROW()-2)),\"\")","v":{"$error":"#N/A"}},{"$f":"IF(INDIRECT(\"c\" & (VLOOKUP(Rebalance!$D$29,$F$2:$G$48,2,FALSE)+ROW()-2))=Rebalance!$D$29,INDIRECT(\"a\" & (VLOOKUP(Rebalance!$D$29,$F$2:$G$48,2,FALSE)+ROW()-2)),\"\")","v":{"$error":"#N/A"}},{"$f":"IF(INDIRECT(\"c\" & (VLOOKUP(Rebalance!$D$30,$F$2:$G$48,2,FALSE)+ROW()-2))=Rebalance!$D$30,INDIRECT(\"a\" & (VLOOKUP(Rebalance!$D$30,$F$2:$G$48,2,FALSE)+ROW()-2)),\"\")","v":{"$error":"#N/A"}},{"$f":"IF(INDIRECT(\"c\" & (VLOOKUP(Rebalance!$D$31,$F$2:$G$48,2,FALSE)+ROW()-2))=Rebalance!$D$31,INDIRECT(\"a\" & (VLOOKUP(Rebalance!$D$31,$F$2:$G$48,2,FALSE)+ROW()-2)),\"\")","v":{"$error":"#N/A"}},{"$f":"IF(INDIRECT(\"c\" & (VLOOKUP(Rebalance!$D$32,$F$2:$G$48,2,FALSE)+ROW()-2))=Rebalance!$D$32,INDIRECT(\"a\" & (VLOOKUP(Rebalance!$D$32,$F$2:$G$48,2,FALSE)+ROW()-2)),\"\")","v":{"$error":"#N/A"}},{"$f":"IF(INDIRECT(\"c\" & (VLOOKUP(Rebalance!$D$33,$F$2:$G$48,2,FALSE)+ROW()-2))=Rebalance!$D$33,INDIRECT(\"a\" & (VLOOKUP(Rebalance!$D$33,$F$2:$G$48,2,FALSE)+ROW()-2)),\"\")","v":{"$error":"#N/A"}},{"$f":"IF(INDIRECT(\"c\" & (VLOOKUP(Rebalance!$D$34,$F$2:$G$48,2,FALSE)+ROW()-2))=Rebalance!$D$34,INDIRECT(\"a\" & (VLOOKUP(Rebalance!$D$34,$F$2:$G$48,2,FALSE)+ROW()-2)),\"\")","v":{"$error":"#N/A"}},{"$f":"IF(INDIRECT(\"c\" & (VLOOKUP(Rebalance!$D$35,$F$2:$G$48,2,FALSE)+ROW()-2))=Rebalance!$D$35,INDIRECT(\"a\" & (VLOOKUP(Rebalance!$D$35,$F$2:$G$48,2,FALSE)+ROW()-2)),\"\")","v":{"$error":"#N/A"}},{"$f":"IF(INDIRECT(\"c\" & (VLOOKUP(Rebalance!$D$36,$F$2:$G$48,2,FALSE)+ROW()-2))=Rebalance!$D$36,INDIRECT(\"a\" & (VLOOKUP(Rebalance!$D$36,$F$2:$G$48,2,FALSE)+ROW()-2)),\"\")","v":{"$error":"#N/A"}},{"$f":"IF(INDIRECT(\"c\" & (VLOOKUP(Rebalance!$D$37,$F$2:$G$48,2,FALSE)+ROW()-2))=Rebalance!$D$37,INDIRECT(\"a\" & (VLOOKUP(Rebalance!$D$37,$F$2:$G$48,2,FALSE)+ROW()-2)),\"\")","v":{"$error":"#N/A"}},{"$f":"IF(INDIRECT(\"c\" & (VLOOKUP(Rebalance!$D$38,$F$2:$G$48,2,FALSE)+ROW()-2))=Rebalance!$D$38,INDIRECT(\"a\" & (VLOOKUP(Rebalance!$D$38,$F$2:$G$48,2,FALSE)+ROW()-2)),\"\")","v":{"$error":"#N/A"}},{"$f":"IF(INDIRECT(\"c\" & (VLOOKUP(Rebalance!$D$39,$F$2:$G$48,2,FALSE)+ROW()-2))=Rebalance!$D$39,INDIRECT(\"a\" & (VLOOKUP(Rebalance!$D$39,$F$2:$G$48,2,FALSE)+ROW()-2)),\"\")","v":{"$error":"#N/A"}},{"$f":"IF(INDIRECT(\"c\" & (VLOOKUP(Rebalance!$D$40,$F$2:$G$48,2,FALSE)+ROW()-2))=Rebalance!$D$40,INDIRECT(\"a\" & (VLOOKUP(Rebalance!$D$40,$F$2:$G$48,2,FALSE)+ROW()-2)),\"\")","v":{"$error":"#N/A"}},{"$f":"IF(INDIRECT(\"c\" & (VLOOKUP(Rebalance!$D$52,$F$2:$G$48,2,FALSE)+ROW()-2))=Rebalance!$D$52,INDIRECT(\"a\" & (VLOOKUP(Rebalance!$D$52,$F$2:$G$48,2,FALSE)+ROW()-2)),\"\")","v":{"$error":"#N/A"}},{"$f":"IF(INDIRECT(\"c\" & (VLOOKUP(Rebalance!$D$53,$F$2:$G$48,2,FALSE)+ROW()-2))=Rebalance!$D$53,INDIRECT(\"a\" & (VLOOKUP(Rebalance!$D$53,$F$2:$G$48,2,FALSE)+ROW()-2)),\"\")","v":{"$error":"#N/A"}},{"$f":"IF(INDIRECT(\"c\" & (VLOOKUP(Rebalance!$D$54,$F$2:$G$48,2,FALSE)+ROW()-2))=Rebalance!$D$54,INDIRECT(\"a\" & (VLOOKUP(Rebalance!$D$54,$F$2:$G$48,2,FALSE)+ROW()-2)),\"\")","v":{"$error":"#N/A"}},{"$f":"IF(INDIRECT(\"c\" & (VLOOKUP(Rebalance!$D$55,$F$2:$G$48,2,FALSE)+ROW()-2))=Rebalance!$D$55,INDIRECT(\"a\" & (VLOOKUP(Rebalance!$D$55,$F$2:$G$48,2,FALSE)+ROW()-2)),\"\")","v":{"$error":"#N/A"}},{"$f":"IF(INDIRECT(\"c\" & (VLOOKUP(Rebalance!$D$56,$F$2:$G$48,2,FALSE)+ROW()-2))=Rebalance!$D$56,INDIRECT(\"a\" & (VLOOKUP(Rebalance!$D$56,$F$2:$G$48,2,FALSE)+ROW()-2)),\"\")","v":{"$error":"#N/A"}},{"$f":"IF(INDIRECT(\"c\" & (VLOOKUP(Rebalance!$D$57,$F$2:$G$48,2,FALSE)+ROW()-2))=Rebalance!$D$57,INDIRECT(\"a\" & (VLOOKUP(Rebalance!$D$57,$F$2:$G$48,2,FALSE)+ROW()-2)),\"\")","v":{"$error":"#N/A"}},{"$f":"IF(INDIRECT(\"c\" & (VLOOKUP(Rebalance!$D$58,$F$2:$G$48,2,FALSE)+ROW()-2))=Rebalance!$D$58,INDIRECT(\"a\" & (VLOOKUP(Rebalance!$D$58,$F$2:$G$48,2,FALSE)+ROW()-2)),\"\")","v":{"$error":"#N/A"}},{"$f":"IF(INDIRECT(\"c\" & (VLOOKUP(Rebalance!$D$59,$F$2:$G$48,2,FALSE)+ROW()-2))=Rebalance!$D$59,INDIRECT(\"a\" & (VLOOKUP(Rebalance!$D$59,$F$2:$G$48,2,FALSE)+ROW()-2)),\"\")","v":{"$error":"#N/A"}},{"$f":"IF(INDIRECT(\"c\" & (VLOOKUP(Rebalance!$D$60,$F$2:$G$48,2,FALSE)+ROW()-2))=Rebalance!$D$60,INDIRECT(\"a\" & (VLOOKUP(Rebalance!$D$60,$F$2:$G$48,2,FALSE)+ROW()-2)),\"\")","v":{"$error":"#N/A"}},{"$f":"IF(INDIRECT(\"c\" & (VLOOKUP(Rebalance!$D$61,$F$2:$G$48,2,FALSE)+ROW()-2))=Rebalance!$D$61,INDIRECT(\"a\" & (VLOOKUP(Rebalance!$D$61,$F$2:$G$48,2,FALSE)+ROW()-2)),\"\")","v":{"$error":"#N/A"}},{"$f":"IF(INDIRECT(\"c\" & (VLOOKUP(Rebalance!$D$62,$F$2:$G$48,2,FALSE)+ROW()-2))=Rebalance!$D$62,INDIRECT(\"a\" & (VLOOKUP(Rebalance!$D$62,$F$2:$G$48,2,FALSE)+ROW()-2)),\"\")","v":{"$error":"#N/A"}},{"$f":"IF(INDIRECT(\"c\" & (VLOOKUP(Rebalance!$D$63,$F$2:$G$48,2,FALSE)+ROW()-2))=Rebalance!$D$63,INDIRECT(\"a\" & (VLOOKUP(Rebalance!$D$63,$F$2:$G$48,2,FALSE)+ROW()-2)),\"\")","v":{"$error":"#N/A"}},{"$f":"IF(INDIRECT(\"c\" & (VLOOKUP(Rebalance!$D$64,$F$2:$G$48,2,FALSE)+ROW()-2))=Rebalance!$D$64,INDIRECT(\"a\" & (VLOOKUP(Rebalance!$D$64,$F$2:$G$48,2,FALSE)+ROW()-2)),\"\")","v":{"$error":"#N/A"}},{"$f":"IF(INDIRECT(\"c\" & (VLOOKUP(Rebalance!$D$65,$F$2:$G$48,2,FALSE)+ROW()-2))=Rebalance!$D$65,INDIRECT(\"a\" & (VLOOKUP(Rebalance!$D$65,$F$2:$G$48,2,FALSE)+ROW()-2)),\"\")","v":{"$error":"#N/A"}},{"$f":"IF(INDIRECT(\"c\" & (VLOOKUP(Rebalance!$D$66,$F$2:$G$48,2,FALSE)+ROW()-2))=Rebalance!$D$66,INDIRECT(\"a\" & (VLOOKUP(Rebalance!$D$66,$F$2:$G$48,2,FALSE)+ROW()-2)),\"\")","v":{"$error":"#N/A"}}]
["Momentum Conservative Fund A","RCCA","Momentum Collective Investments Ltd",{"$f":"ROW()","v":328},null,null,{"$f":"VLOOKUP(F328,$C$2:$D$599,2,FALSE)","v":{"$error":"#N/A"}},{"$f":"IF(INDIRECT(\"c\" & (VLOOKUP(Rebalance!$D$26,$F$2:$G$48,2,FALSE)+ROW()-2))=Rebalance!$D$26,INDIRECT(\"a\" & (VLOOKUP(Rebalance!$D$26,$F$2:$G$48,2,FALSE)+ROW()-2)),\"\")","v":{"$error":"#N/A"}},{"$f":"IF(INDIRECT(\"c\" & (VLOOKUP(Rebalance!$D$27,$F$2:$G$48,2,FALSE)+ROW()-2))=Rebalance!$D$27,INDIRECT(\"a\" & (VLOOKUP(Rebalance!$D$27,$F$2:$G$48,2,FALSE)+ROW()-2)),\"\")","v":{"$error":"#N/A"}},{"$f":"IF(INDIRECT(\"c\" & (VLOOKUP(Rebalance!$D$28,$F$2:$G$48,2,FALSE)+ROW()-2))=Rebalance!$D$28,INDIRECT(\"a\" & (VLOOKUP(Rebalance!$D$28,$F$2:$G$48,2,FALSE)+ROW()-2)),\"\")","v":{"$error":"#N/A"}},{"$f":"IF(INDIRECT(\"c\" & (VLOOKUP(Rebalance!$D$29,$F$2:$G$48,2,FALSE)+ROW()-2))=Rebalance!$D$29,INDIRECT(\"a\" & (VLOOKUP(Rebalance!$D$29,$F$2:$G$48,2,FALSE)+ROW()-2)),\"\")","v":{"$error":"#N/A"}},{"$f":"IF(INDIRECT(\"c\" & (VLOOKUP(Rebalance!$D$30,$F$2:$G$48,2,FALSE)+ROW()-2))=Rebalance!$D$30,INDIRECT(\"a\" & (VLOOKUP(Rebalance!$D$30,$F$2:$G$48,2,FALSE)+ROW()-2)),\"\")","v":{"$error":"#N/A"}},{"$f":"IF(INDIRECT(\"c\" & (VLOOKUP(Rebalance!$D$31,$F$2:$G$48,2,FALSE)+ROW()-2))=Rebalance!$D$31,INDIRECT(\"a\" & (VLOOKUP(Rebalance!$D$31,$F$2:$G$48,2,FALSE)+ROW()-2)),\"\")","v":{"$error":"#N/A"}},{"$f":"IF(INDIRECT(\"c\" & (VLOOKUP(Rebalance!$D$32,$F$2:$G$48,2,FALSE)+ROW()-2))=Rebalance!$D$32,INDIRECT(\"a\" & (VLOOKUP(Rebalance!$D$32,$F$2:$G$48,2,FALSE)+ROW()-2)),\"\")","v":{"$error":"#N/A"}},{"$f":"IF(INDIRECT(\"c\" & (VLOOKUP(Rebalance!$D$33,$F$2:$G$48,2,FALSE)+ROW()-2))=Rebalance!$D$33,INDIRECT(\"a\" & (VLOOKUP(Rebalance!$D$33,$F$2:$G$48,2,FALSE)+ROW()-2)),\"\")","v":{"$error":"#N/A"}},{"$f":"IF(INDIRECT(\"c\" & (VLOOKUP(Rebalance!$D$34,$F$2:$G$48,2,FALSE)+ROW()-2))=Rebalance!$D$34,INDIRECT(\"a\" & (VLOOKUP(Rebalance!$D$34,$F$2:$G$48,2,FALSE)+ROW()-2)),\"\")","v":{"$error":"#N/A"}},{"$f":"IF(INDIRECT(\"c\" & (VLOOKUP(Rebalance!$D$35,$F$2:$G$48,2,FALSE)+ROW()-2))=Rebalance!$D$35,INDIRECT(\"a\" & (VLOOKUP(Rebalance!$D$35,$F$2:$G$48,2,FALSE)+ROW()-2)),\"\")","v":{"$error":"#N/A"}},{"$f":"IF(INDIRECT(\"c\" & (VLOOKUP(Rebalance!$D$36,$F$2:$G$48,2,FALSE)+ROW()-2))=Rebalance!$D$36,INDIRECT(\"a\" & (VLOOKUP(Rebalance!$D$36,$F$2:$G$48,2,FALSE)+ROW()-2)),\"\")","v":{"$error":"#N/A"}},{"$f":"IF(INDIRECT(\"c\" & (VLOOKUP(Rebalance!$D$37,$F$2:$G$48,2,FALSE)+ROW()-2))=Rebalance!$D$37,INDIRECT(\"a\" & (VLOOKUP(Rebalance!$D$37,$F$2:$G$48,2,FALSE)+ROW()-2)),\"\")","v":{"$error":"#N/A"}},{"$f":"IF(INDIRECT(\"c\" & (VLOOKUP(Rebalance!$D$38,$F$2:$G$48,2,FALSE)+ROW()-2))=Rebalance!$D$38,INDIRECT(\"a\" & (VLOOKUP(Rebalance!$D$38,$F$2:$G$48,2,FALSE)+ROW()-2)),\"\")","v":{"$error":"#N/A"}},{"$f":"IF(INDIRECT(\"c\" & (VLOOKUP(Rebalance!$D$39,$F$2:$G$48,2,FALSE)+ROW()-2))=Rebalance!$D$39,INDIRECT(\"a\" & (VLOOKUP(Rebalance!$D$39,$F$2:$G$48,2,FALSE)+ROW()-2)),\"\")","v":{"$error":"#N/A"}},{"$f":"IF(INDIRECT(\"c\" & (VLOOKUP(Rebalance!$D$40,$F$2:$G$48,2,FALSE)+ROW()-2))=Rebalance!$D$40,INDIRECT(\"a\" & (VLOOKUP(Rebalance!$D$40,$F$2:$G$48,2,FALSE)+ROW()-2)),\"\")","v":{"$error":"#N/A"}},{"$f":"IF(INDIRECT(\"c\" & (VLOOKUP(Rebalance!$D$52,$F$2:$G$48,2,FALSE)+ROW()-2))=Rebalance!$D$52,INDIRECT(\"a\" & (VLOOKUP(Rebalance!$D$52,$F$2:$G$48,2,FALSE)+ROW()-2)),\"\")","v":{"$error":"#N/A"}},{"$f":"IF(INDIRECT(\"c\" & (VLOOKUP(Rebalance!$D$53,$F$2:$G$48,2,FALSE)+ROW()-2))=Rebalance!$D$53,INDIRECT(\"a\" & (VLOOKUP(Rebalance!$D$53,$F$2:$G$48,2,FALSE)+ROW()-2)),\"\")","v":{"$error":"#N/A"}},{"$f":"IF(INDIRECT(\"c\" & (VLOOKUP(Rebalance!$D$54,$F$2:$G$48,2,FALSE)+ROW()-2))=Rebalance!$D$54,INDIRECT(\"a\" & (VLOOKUP(Rebalance!$D$54,$F$2:$G$48,2,FALSE)+ROW()-2)),\"\")","v":{"$error":"#N/A"}},{"$f":"IF(INDIRECT(\"c\" & (VLOOKUP(Rebalance!$D$55,$F$2:$G$48,2,FALSE)+ROW()-2))=Rebalance!$D$55,INDIRECT(\"a\" & (VLOOKUP(Rebalance!$D$55,$F$2:$G$48,2,FALSE)+ROW()-2)),\"\")","v":{"$error":"#N/A"}},{"$f":"IF(INDIRECT(\"c\" & (VLOOKUP(Rebalance!$D$56,$F$2:$G$48,2,FALSE)+ROW()-2))=Rebalance!$D$56,INDIRECT(\"a\" & (VLOOKUP(Rebalance!$D$56,$F$2:$G$48,2,FALSE)+ROW()-2)),\"\")","v":{"$error":"#N/A"}},{"$f":"IF(INDIRECT(\"c\" & (VLOOKUP(Rebalance!$D$57,$F$2:$G$48,2,FALSE)+ROW()-2))=Rebalance!$D$57,INDIRECT(\"a\" & (VLOOKUP(Rebalance!$D$57,$F$2:$G$48,2,FALSE)+ROW()-2)),\"\")","v":{"$error":"#N/A"}},{"$f":"IF(INDIRECT(\"c\" & (VLOOKUP(Rebalance!$D$58,$F$2:$G$48,2,FALSE)+ROW()-2))=Rebalance!$D$58,INDIRECT(\"a\" & (VLOOKUP(Rebalance!$D$58,$F$2:$G$48,2,FALSE)+ROW()-2)),\"\")","v":{"$error":"#N/A"}},{"$f":"IF(INDIRECT(\"c\" & (VLOOKUP(Rebalance!$D$59,$F$2:$G$48,2,FALSE)+ROW()-2))=Rebalance!$D$59,INDIRECT(\"a\" & (VLOOKUP(Rebalance!$D$59,$F$2:$G$48,2,FALSE)+ROW()-2)),\"\")","v":{"$error":"#N/A"}},{"$f":"IF(INDIRECT(\"c\" & (VLOOKUP(Rebalance!$D$60,$F$2:$G$48,2,FALSE)+ROW()-2))=Rebalance!$D$60,INDIRECT(\"a\" & (VLOOKUP(Rebalance!$D$60,$F$2:$G$48,2,FALSE)+ROW()-2)),\"\")","v":{"$error":"#N/A"}},{"$f":"IF(INDIRECT(\"c\" & (VLOOKUP(Rebalance!$D$61,$F$2:$G$48,2,FALSE)+ROW()-2))=Rebalance!$D$61,INDIRECT(\"a\" & (VLOOKUP(Rebalance!$D$61,$F$2:$G$48,2,FALSE)+ROW()-2)),\"\")","v":{"$error":"#N/A"}},{"$f":"IF(INDIRECT(\"c\" & (VLOOKUP(Rebalance!$D$62,$F$2:$G$48,2,FALSE)+ROW()-2))=Rebalance!$D$62,INDIRECT(\"a\" & (VLOOKUP(Rebalance!$D$62,$F$2:$G$48,2,FALSE)+ROW()-2)),\"\")","v":{"$error":"#N/A"}},{"$f":"IF(INDIRECT(\"c\" & (VLOOKUP(Rebalance!$D$63,$F$2:$G$48,2,FALSE)+ROW()-2))=Rebalance!$D$63,INDIRECT(\"a\" & (VLOOKUP(Rebalance!$D$63,$F$2:$G$48,2,FALSE)+ROW()-2)),\"\")","v":{"$error":"#N/A"}},{"$f":"IF(INDIRECT(\"c\" & (VLOOKUP(Rebalance!$D$64,$F$2:$G$48,2,FALSE)+ROW()-2))=Rebalance!$D$64,INDIRECT(\"a\" & (VLOOKUP(Rebalance!$D$64,$F$2:$G$48,2,FALSE)+ROW()-2)),\"\")","v":{"$error":"#N/A"}},{"$f":"IF(INDIRECT(\"c\" & (VLOOKUP(Rebalance!$D$65,$F$2:$G$48,2,FALSE)+ROW()-2))=Rebalance!$D$65,INDIRECT(\"a\" & (VLOOKUP(Rebalance!$D$65,$F$2:$G$48,2,FALSE)+ROW()-2)),\"\")","v":{"$error":"#N/A"}},{"$f":"IF(INDIRECT(\"c\" & (VLOOKUP(Rebalance!$D$66,$F$2:$G$48,2,FALSE)+ROW()-2))=Rebalance!$D$66,INDIRECT(\"a\" & (VLOOKUP(Rebalance!$D$66,$F$2:$G$48,2,FALSE)+ROW()-2)),\"\")","v":{"$error":"#N/A"}}]
["Momentum Core Equity Fund C","MRGCFC","Momentum Collective Investments Ltd",{"$f":"ROW()","v":329},null,null,{"$f":"VLOOKUP(F329,$C$2:$D$599,2,FALSE)","v":{"$error":"#N/A"}},{"$f":"IF(INDIRECT(\"c\" & (VLOOKUP(Rebalance!$D$26,$F$2:$G$48,2,FALSE)+ROW()-2))=Rebalance!$D$26,INDIRECT(\"a\" & (VLOOKUP(Rebalance!$D$26,$F$2:$G$48,2,FALSE)+ROW()-2)),\"\")","v":{"$error":"#N/A"}},{"$f":"IF(INDIRECT(\"c\" & (VLOOKUP(Rebalance!$D$27,$F$2:$G$48,2,FALSE)+ROW()-2))=Rebalance!$D$27,INDIRECT(\"a\" & (VLOOKUP(Rebalance!$D$27,$F$2:$G$48,2,FALSE)+ROW()-2)),\"\")","v":{"$error":"#N/A"}},{"$f":"IF(INDIRECT(\"c\" & (VLOOKUP(Rebalance!$D$28,$F$2:$G$48,2,FALSE)+ROW()-2))=Rebalance!$D$28,INDIRECT(\"a\" & (VLOOKUP(Rebalance!$D$28,$F$2:$G$48,2,FALSE)+ROW()-2)),\"\")","v":{"$error":"#N/A"}},{"$f":"IF(INDIRECT(\"c\" & (VLOOKUP(Rebalance!$D$29,$F$2:$G$48,2,FALSE)+ROW()-2))=Rebalance!$D$29,INDIRECT(\"a\" & (VLOOKUP(Rebalance!$D$29,$F$2:$G$48,2,FALSE)+ROW()-2)),\"\")","v":{"$error":"#N/A"}},{"$f":"IF(INDIRECT(\"c\" & (VLOOKUP(Rebalance!$D$30,$F$2:$G$48,2,FALSE)+ROW()-2))=Rebalance!$D$30,INDIRECT(\"a\" & (VLOOKUP(Rebalance!$D$30,$F$2:$G$48,2,FALSE)+ROW()-2)),\"\")","v":{"$error":"#N/A"}},{"$f":"IF(INDIRECT(\"c\" & (VLOOKUP(Rebalance!$D$31,$F$2:$G$48,2,FALSE)+ROW()-2))=Rebalance!$D$31,INDIRECT(\"a\" & (VLOOKUP(Rebalance!$D$31,$F$2:$G$48,2,FALSE)+ROW()-2)),\"\")","v":{"$error":"#N/A"}},{"$f":"IF(INDIRECT(\"c\" & (VLOOKUP(Rebalance!$D$32,$F$2:$G$48,2,FALSE)+ROW()-2))=Rebalance!$D$32,INDIRECT(\"a\" & (VLOOKUP(Rebalance!$D$32,$F$2:$G$48,2,FALSE)+ROW()-2)),\"\")","v":{"$error":"#N/A"}},{"$f":"IF(INDIRECT(\"c\" & (VLOOKUP(Rebalance!$D$33,$F$2:$G$48,2,FALSE)+ROW()-2))=Rebalance!$D$33,INDIRECT(\"a\" & (VLOOKUP(Rebalance!$D$33,$F$2:$G$48,2,FALSE)+ROW()-2)),\"\")","v":{"$error":"#N/A"}},{"$f":"IF(INDIRECT(\"c\" & (VLOOKUP(Rebalance!$D$34,$F$2:$G$48,2,FALSE)+ROW()-2))=Rebalance!$D$34,INDIRECT(\"a\" & (VLOOKUP(Rebalance!$D$34,$F$2:$G$48,2,FALSE)+ROW()-2)),\"\")","v":{"$error":"#N/A"}},{"$f":"IF(INDIRECT(\"c\" & (VLOOKUP(Rebalance!$D$35,$F$2:$G$48,2,FALSE)+ROW()-2))=Rebalance!$D$35,INDIRECT(\"a\" & (VLOOKUP(Rebalance!$D$35,$F$2:$G$48,2,FALSE)+ROW()-2)),\"\")","v":{"$error":"#N/A"}},{"$f":"IF(INDIRECT(\"c\" & (VLOOKUP(Rebalance!$D$36,$F$2:$G$48,2,FALSE)+ROW()-2))=Rebalance!$D$36,INDIRECT(\"a\" & (VLOOKUP(Rebalance!$D$36,$F$2:$G$48,2,FALSE)+ROW()-2)),\"\")","v":{"$error":"#N/A"}},{"$f":"IF(INDIRECT(\"c\" & (VLOOKUP(Rebalance!$D$37,$F$2:$G$48,2,FALSE)+ROW()-2))=Rebalance!$D$37,INDIRECT(\"a\" & (VLOOKUP(Rebalance!$D$37,$F$2:$G$48,2,FALSE)+ROW()-2)),\"\")","v":{"$error":"#N/A"}},{"$f":"IF(INDIRECT(\"c\" & (VLOOKUP(Rebalance!$D$38,$F$2:$G$48,2,FALSE)+ROW()-2))=Rebalance!$D$38,INDIRECT(\"a\" & (VLOOKUP(Rebalance!$D$38,$F$2:$G$48,2,FALSE)+ROW()-2)),\"\")","v":{"$error":"#N/A"}},{"$f":"IF(INDIRECT(\"c\" & (VLOOKUP(Rebalance!$D$39,$F$2:$G$48,2,FALSE)+ROW()-2))=Rebalance!$D$39,INDIRECT(\"a\" & (VLOOKUP(Rebalance!$D$39,$F$2:$G$48,2,FALSE)+ROW()-2)),\"\")","v":{"$error":"#N/A"}},{"$f":"IF(INDIRECT(\"c\" & (VLOOKUP(Rebalance!$D$40,$F$2:$G$48,2,FALSE)+ROW()-2))=Rebalance!$D$40,INDIRECT(\"a\" & (VLOOKUP(Rebalance!$D$40,$F$2:$G$48,2,FALSE)+ROW()-2)),\"\")","v":{"$error":"#N/A"}},{"$f":"IF(INDIRECT(\"c\" & (VLOOKUP(Rebalance!$D$52,$F$2:$G$48,2,FALSE)+ROW()-2))=Rebalance!$D$52,INDIRECT(\"a\" & (VLOOKUP(Rebalance!$D$52,$F$2:$G$48,2,FALSE)+ROW()-2)),\"\")","v":{"$error":"#N/A"}},{"$f":"IF(INDIRECT(\"c\" & (VLOOKUP(Rebalance!$D$53,$F$2:$G$48,2,FALSE)+ROW()-2))=Rebalance!$D$53,INDIRECT(\"a\" & (VLOOKUP(Rebalance!$D$53,$F$2:$G$48,2,FALSE)+ROW()-2)),\"\")","v":{"$error":"#N/A"}},{"$f":"IF(INDIRECT(\"c\" & (VLOOKUP(Rebalance!$D$54,$F$2:$G$48,2,FALSE)+ROW()-2))=Rebalance!$D$54,INDIRECT(\"a\" & (VLOOKUP(Rebalance!$D$54,$F$2:$G$48,2,FALSE)+ROW()-2)),\"\")","v":{"$error":"#N/A"}},{"$f":"IF(INDIRECT(\"c\" & (VLOOKUP(Rebalance!$D$55,$F$2:$G$48,2,FALSE)+ROW()-2))=Rebalance!$D$55,INDIRECT(\"a\" & (VLOOKUP(Rebalance!$D$55,$F$2:$G$48,2,FALSE)+ROW()-2)),\"\")","v":{"$error":"#N/A"}},{"$f":"IF(INDIRECT(\"c\" & (VLOOKUP(Rebalance!$D$56,$F$2:$G$48,2,FALSE)+ROW()-2))=Rebalance!$D$56,INDIRECT(\"a\" & (VLOOKUP(Rebalance!$D$56,$F$2:$G$48,2,FALSE)+ROW()-2)),\"\")","v":{"$error":"#N/A"}},{"$f":"IF(INDIRECT(\"c\" & (VLOOKUP(Rebalance!$D$57,$F$2:$G$48,2,FALSE)+ROW()-2))=Rebalance!$D$57,INDIRECT(\"a\" & (VLOOKUP(Rebalance!$D$57,$F$2:$G$48,2,FALSE)+ROW()-2)),\"\")","v":{"$error":"#N/A"}},{"$f":"IF(INDIRECT(\"c\" & (VLOOKUP(Rebalance!$D$58,$F$2:$G$48,2,FALSE)+ROW()-2))=Rebalance!$D$58,INDIRECT(\"a\" & (VLOOKUP(Rebalance!$D$58,$F$2:$G$48,2,FALSE)+ROW()-2)),\"\")","v":{"$error":"#N/A"}},{"$f":"IF(INDIRECT(\"c\" & (VLOOKUP(Rebalance!$D$59,$F$2:$G$48,2,FALSE)+ROW()-2))=Rebalance!$D$59,INDIRECT(\"a\" & (VLOOKUP(Rebalance!$D$59,$F$2:$G$48,2,FALSE)+ROW()-2)),\"\")","v":{"$error":"#N/A"}},{"$f":"IF(INDIRECT(\"c\" & (VLOOKUP(Rebalance!$D$60,$F$2:$G$48,2,FALSE)+ROW()-2))=Rebalance!$D$60,INDIRECT(\"a\" & (VLOOKUP(Rebalance!$D$60,$F$2:$G$48,2,FALSE)+ROW()-2)),\"\")","v":{"$error":"#N/A"}},{"$f":"IF(INDIRECT(\"c\" & (VLOOKUP(Rebalance!$D$61,$F$2:$G$48,2,FALSE)+ROW()-2))=Rebalance!$D$61,INDIRECT(\"a\" & (VLOOKUP(Rebalance!$D$61,$F$2:$G$48,2,FALSE)+ROW()-2)),\"\")","v":{"$error":"#N/A"}},{"$f":"IF(INDIRECT(\"c\" & (VLOOKUP(Rebalance!$D$62,$F$2:$G$48,2,FALSE)+ROW()-2))=Rebalance!$D$62,INDIRECT(\"a\" & (VLOOKUP(Rebalance!$D$62,$F$2:$G$48,2,FALSE)+ROW()-2)),\"\")","v":{"$error":"#N/A"}},{"$f":"IF(INDIRECT(\"c\" & (VLOOKUP(Rebalance!$D$63,$F$2:$G$48,2,FALSE)+ROW()-2))=Rebalance!$D$63,INDIRECT(\"a\" & (VLOOKUP(Rebalance!$D$63,$F$2:$G$48,2,FALSE)+ROW()-2)),\"\")","v":{"$error":"#N/A"}},{"$f":"IF(INDIRECT(\"c\" & (VLOOKUP(Rebalance!$D$64,$F$2:$G$48,2,FALSE)+ROW()-2))=Rebalance!$D$64,INDIRECT(\"a\" & (VLOOKUP(Rebalance!$D$64,$F$2:$G$48,2,FALSE)+ROW()-2)),\"\")","v":{"$error":"#N/A"}},{"$f":"IF(INDIRECT(\"c\" & (VLOOKUP(Rebalance!$D$65,$F$2:$G$48,2,FALSE)+ROW()-2))=Rebalance!$D$65,INDIRECT(\"a\" & (VLOOKUP(Rebalance!$D$65,$F$2:$G$48,2,FALSE)+ROW()-2)),\"\")","v":{"$error":"#N/A"}},{"$f":"IF(INDIRECT(\"c\" & (VLOOKUP(Rebalance!$D$66,$F$2:$G$48,2,FALSE)+ROW()-2))=Rebalance!$D$66,INDIRECT(\"a\" & (VLOOKUP(Rebalance!$D$66,$F$2:$G$48,2,FALSE)+ROW()-2)),\"\")","v":{"$error":"#N/A"}}]
["Momentum Diversified Income Fund B1","MBFB7","Momentum Collective Investments Ltd",{"$f":"ROW()","v":330},null,null,{"$f":"VLOOKUP(F330,$C$2:$D$599,2,FALSE)","v":{"$error":"#N/A"}},{"$f":"IF(INDIRECT(\"c\" & (VLOOKUP(Rebalance!$D$26,$F$2:$G$48,2,FALSE)+ROW()-2))=Rebalance!$D$26,INDIRECT(\"a\" & (VLOOKUP(Rebalance!$D$26,$F$2:$G$48,2,FALSE)+ROW()-2)),\"\")","v":{"$error":"#N/A"}},{"$f":"IF(INDIRECT(\"c\" & (VLOOKUP(Rebalance!$D$27,$F$2:$G$48,2,FALSE)+ROW()-2))=Rebalance!$D$27,INDIRECT(\"a\" & (VLOOKUP(Rebalance!$D$27,$F$2:$G$48,2,FALSE)+ROW()-2)),\"\")","v":{"$error":"#N/A"}},{"$f":"IF(INDIRECT(\"c\" & (VLOOKUP(Rebalance!$D$28,$F$2:$G$48,2,FALSE)+ROW()-2))=Rebalance!$D$28,INDIRECT(\"a\" & (VLOOKUP(Rebalance!$D$28,$F$2:$G$48,2,FALSE)+ROW()-2)),\"\")","v":{"$error":"#N/A"}},{"$f":"IF(INDIRECT(\"c\" & (VLOOKUP(Rebalance!$D$29,$F$2:$G$48,2,FALSE)+ROW()-2))=Rebalance!$D$29,INDIRECT(\"a\" & (VLOOKUP(Rebalance!$D$29,$F$2:$G$48,2,FALSE)+ROW()-2)),\"\")","v":{"$error":"#N/A"}},{"$f":"IF(INDIRECT(\"c\" & (VLOOKUP(Rebalance!$D$30,$F$2:$G$48,2,FALSE)+ROW()-2))=Rebalance!$D$30,INDIRECT(\"a\" & (VLOOKUP(Rebalance!$D$30,$F$2:$G$48,2,FALSE)+ROW()-2)),\"\")","v":{"$error":"#N/A"}},{"$f":"IF(INDIRECT(\"c\" & (VLOOKUP(Rebalance!$D$31,$F$2:$G$48,2,FALSE)+ROW()-2))=Rebalance!$D$31,INDIRECT(\"a\" & (VLOOKUP(Rebalance!$D$31,$F$2:$G$48,2,FALSE)+ROW()-2)),\"\")","v":{"$error":"#N/A"}},{"$f":"IF(INDIRECT(\"c\" & (VLOOKUP(Rebalance!$D$32,$F$2:$G$48,2,FALSE)+ROW()-2))=Rebalance!$D$32,INDIRECT(\"a\" & (VLOOKUP(Rebalance!$D$32,$F$2:$G$48,2,FALSE)+ROW()-2)),\"\")","v":{"$error":"#N/A"}},{"$f":"IF(INDIRECT(\"c\" & (VLOOKUP(Rebalance!$D$33,$F$2:$G$48,2,FALSE)+ROW()-2))=Rebalance!$D$33,INDIRECT(\"a\" & (VLOOKUP(Rebalance!$D$33,$F$2:$G$48,2,FALSE)+ROW()-2)),\"\")","v":{"$error":"#N/A"}},{"$f":"IF(INDIRECT(\"c\" & (VLOOKUP(Rebalance!$D$34,$F$2:$G$48,2,FALSE)+ROW()-2))=Rebalance!$D$34,INDIRECT(\"a\" & (VLOOKUP(Rebalance!$D$34,$F$2:$G$48,2,FALSE)+ROW()-2)),\"\")","v":{"$error":"#N/A"}},{"$f":"IF(INDIRECT(\"c\" & (VLOOKUP(Rebalance!$D$35,$F$2:$G$48,2,FALSE)+ROW()-2))=Rebalance!$D$35,INDIRECT(\"a\" & (VLOOKUP(Rebalance!$D$35,$F$2:$G$48,2,FALSE)+ROW()-2)),\"\")","v":{"$error":"#N/A"}},{"$f":"IF(INDIRECT(\"c\" & (VLOOKUP(Rebalance!$D$36,$F$2:$G$48,2,FALSE)+ROW()-2))=Rebalance!$D$36,INDIRECT(\"a\" & (VLOOKUP(Rebalance!$D$36,$F$2:$G$48,2,FALSE)+ROW()-2)),\"\")","v":{"$error":"#N/A"}},{"$f":"IF(INDIRECT(\"c\" & (VLOOKUP(Rebalance!$D$37,$F$2:$G$48,2,FALSE)+ROW()-2))=Rebalance!$D$37,INDIRECT(\"a\" & (VLOOKUP(Rebalance!$D$37,$F$2:$G$48,2,FALSE)+ROW()-2)),\"\")","v":{"$error":"#N/A"}},{"$f":"IF(INDIRECT(\"c\" & (VLOOKUP(Rebalance!$D$38,$F$2:$G$48,2,FALSE)+ROW()-2))=Rebalance!$D$38,INDIRECT(\"a\" & (VLOOKUP(Rebalance!$D$38,$F$2:$G$48,2,FALSE)+ROW()-2)),\"\")","v":{"$error":"#N/A"}},{"$f":"IF(INDIRECT(\"c\" & (VLOOKUP(Rebalance!$D$39,$F$2:$G$48,2,FALSE)+ROW()-2))=Rebalance!$D$39,INDIRECT(\"a\" & (VLOOKUP(Rebalance!$D$39,$F$2:$G$48,2,FALSE)+ROW()-2)),\"\")","v":{"$error":"#N/A"}},{"$f":"IF(INDIRECT(\"c\" & (VLOOKUP(Rebalance!$D$40,$F$2:$G$48,2,FALSE)+ROW()-2))=Rebalance!$D$40,INDIRECT(\"a\" & (VLOOKUP(Rebalance!$D$40,$F$2:$G$48,2,FALSE)+ROW()-2)),\"\")","v":{"$error":"#N/A"}},{"$f":"IF(INDIRECT(\"c\" & (VLOOKUP(Rebalance!$D$52,$F$2:$G$48,2,FALSE)+ROW()-2))=Rebalance!$D$52,INDIRECT(\"a\" & (VLOOKUP(Rebalance!$D$52,$F$2:$G$48,2,FALSE)+ROW()-2)),\"\")","v":{"$error":"#N/A"}},{"$f":"IF(INDIRECT(\"c\" & (VLOOKUP(Rebalance!$D$53,$F$2:$G$48,2,FALSE)+ROW()-2))=Rebalance!$D$53,INDIRECT(\"a\" & (VLOOKUP(Rebalance!$D$53,$F$2:$G$48,2,FALSE)+ROW()-2)),\"\")","v":{"$error":"#N/A"}},{"$f":"IF(INDIRECT(\"c\" & (VLOOKUP(Rebalance!$D$54,$F$2:$G$48,2,FALSE)+ROW()-2))=Rebalance!$D$54,INDIRECT(\"a\" & (VLOOKUP(Rebalance!$D$54,$F$2:$G$48,2,FALSE)+ROW()-2)),\"\")","v":{"$error":"#N/A"}},{"$f":"IF(INDIRECT(\"c\" & (VLOOKUP(Rebalance!$D$55,$F$2:$G$48,2,FALSE)+ROW()-2))=Rebalance!$D$55,INDIRECT(\"a\" & (VLOOKUP(Rebalance!$D$55,$F$2:$G$48,2,FALSE)+ROW()-2)),\"\")","v":{"$error":"#N/A"}},{"$f":"IF(INDIRECT(\"c\" & (VLOOKUP(Rebalance!$D$56,$F$2:$G$48,2,FALSE)+ROW()-2))=Rebalance!$D$56,INDIRECT(\"a\" & (VLOOKUP(Rebalance!$D$56,$F$2:$G$48,2,FALSE)+ROW()-2)),\"\")","v":{"$error":"#N/A"}},{"$f":"IF(INDIRECT(\"c\" & (VLOOKUP(Rebalance!$D$57,$F$2:$G$48,2,FALSE)+ROW()-2))=Rebalance!$D$57,INDIRECT(\"a\" & (VLOOKUP(Rebalance!$D$57,$F$2:$G$48,2,FALSE)+ROW()-2)),\"\")","v":{"$error":"#N/A"}},{"$f":"IF(INDIRECT(\"c\" & (VLOOKUP(Rebalance!$D$58,$F$2:$G$48,2,FALSE)+ROW()-2))=Rebalance!$D$58,INDIRECT(\"a\" & (VLOOKUP(Rebalance!$D$58,$F$2:$G$48,2,FALSE)+ROW()-2)),\"\")","v":{"$error":"#N/A"}},{"$f":"IF(INDIRECT(\"c\" & (VLOOKUP(Rebalance!$D$59,$F$2:$G$48,2,FALSE)+ROW()-2))=Rebalance!$D$59,INDIRECT(\"a\" & (VLOOKUP(Rebalance!$D$59,$F$2:$G$48,2,FALSE)+ROW()-2)),\"\")","v":{"$error":"#N/A"}},{"$f":"IF(INDIRECT(\"c\" & (VLOOKUP(Rebalance!$D$60,$F$2:$G$48,2,FALSE)+ROW()-2))=Rebalance!$D$60,INDIRECT(\"a\" & (VLOOKUP(Rebalance!$D$60,$F$2:$G$48,2,FALSE)+ROW()-2)),\"\")","v":{"$error":"#N/A"}},{"$f":"IF(INDIRECT(\"c\" & (VLOOKUP(Rebalance!$D$61,$F$2:$G$48,2,FALSE)+ROW()-2))=Rebalance!$D$61,INDIRECT(\"a\" & (VLOOKUP(Rebalance!$D$61,$F$2:$G$48,2,FALSE)+ROW()-2)),\"\")","v":{"$error":"#N/A"}},{"$f":"IF(INDIRECT(\"c\" & (VLOOKUP(Rebalance!$D$62,$F$2:$G$48,2,FALSE)+ROW()-2))=Rebalance!$D$62,INDIRECT(\"a\" & (VLOOKUP(Rebalance!$D$62,$F$2:$G$48,2,FALSE)+ROW()-2)),\"\")","v":{"$error":"#N/A"}},{"$f":"IF(INDIRECT(\"c\" & (VLOOKUP(Rebalance!$D$63,$F$2:$G$48,2,FALSE)+ROW()-2))=Rebalance!$D$63,INDIRECT(\"a\" & (VLOOKUP(Rebalance!$D$63,$F$2:$G$48,2,FALSE)+ROW()-2)),\"\")","v":{"$error":"#N/A"}},{"$f":"IF(INDIRECT(\"c\" & (VLOOKUP(Rebalance!$D$64,$F$2:$G$48,2,FALSE)+ROW()-2))=Rebalance!$D$64,INDIRECT(\"a\" & (VLOOKUP(Rebalance!$D$64,$F$2:$G$48,2,FALSE)+ROW()-2)),\"\")","v":{"$error":"#N/A"}},{"$f":"IF(INDIRECT(\"c\" & (VLOOKUP(Rebalance!$D$65,$F$2:$G$48,2,FALSE)+ROW()-2))=Rebalance!$D$65,INDIRECT(\"a\" & (VLOOKUP(Rebalance!$D$65,$F$2:$G$48,2,FALSE)+ROW()-2)),\"\")","v":{"$error":"#N/A"}},{"$f":"IF(INDIRECT(\"c\" & (VLOOKUP(Rebalance!$D$66,$F$2:$G$48,2,FALSE)+ROW()-2))=Rebalance!$D$66,INDIRECT(\"a\" & (VLOOKUP(Rebalance!$D$66,$F$2:$G$48,2,FALSE)+ROW()-2)),\"\")","v":{"$error":"#N/A"}}]
["Momentum Diversified Income Fund C1","MBFB7","Momentum Collective Investments Ltd",{"$f":"ROW()","v":331},null,null,{"$f":"VLOOKUP(F331,$C$2:$D$599,2,FALSE)","v":{"$error":"#N/A"}},{"$f":"IF(INDIRECT(\"c\" & (VLOOKUP(Rebalance!$D$26,$F$2:$G$48,2,FALSE)+ROW()-2))=Rebalance!$D$26,INDIRECT(\"a\" & (VLOOKUP(Rebalance!$D$26,$F$2:$G$48,2,FALSE)+ROW()-2)),\"\")","v":{"$error":"#N/A"}},{"$f":"IF(INDIRECT(\"c\" & (VLOOKUP(Rebalance!$D$27,$F$2:$G$48,2,FALSE)+ROW()-2))=Rebalance!$D$27,INDIRECT(\"a\" & (VLOOKUP(Rebalance!$D$27,$F$2:$G$48,2,FALSE)+ROW()-2)),\"\")","v":{"$error":"#N/A"}},{"$f":"IF(INDIRECT(\"c\" & (VLOOKUP(Rebalance!$D$28,$F$2:$G$48,2,FALSE)+ROW()-2))=Rebalance!$D$28,INDIRECT(\"a\" & (VLOOKUP(Rebalance!$D$28,$F$2:$G$48,2,FALSE)+ROW()-2)),\"\")","v":{"$error":"#N/A"}},{"$f":"IF(INDIRECT(\"c\" & (VLOOKUP(Rebalance!$D$29,$F$2:$G$48,2,FALSE)+ROW()-2))=Rebalance!$D$29,INDIRECT(\"a\" & (VLOOKUP(Rebalance!$D$29,$F$2:$G$48,2,FALSE)+ROW()-2)),\"\")","v":{"$error":"#N/A"}},{"$f":"IF(INDIRECT(\"c\" & (VLOOKUP(Rebalance!$D$30,$F$2:$G$48,2,FALSE)+ROW()-2))=Rebalance!$D$30,INDIRECT(\"a\" & (VLOOKUP(Rebalance!$D$30,$F$2:$G$48,2,FALSE)+ROW()-2)),\"\")","v":{"$error":"#N/A"}},{"$f":"IF(INDIRECT(\"c\" & (VLOOKUP(Rebalance!$D$31,$F$2:$G$48,2,FALSE)+ROW()-2))=Rebalance!$D$31,INDIRECT(\"a\" & (VLOOKUP(Rebalance!$D$31,$F$2:$G$48,2,FALSE)+ROW()-2)),\"\")","v":{"$error":"#N/A"}},{"$f":"IF(INDIRECT(\"c\" & (VLOOKUP(Rebalance!$D$32,$F$2:$G$48,2,FALSE)+ROW()-2))=Rebalance!$D$32,INDIRECT(\"a\" & (VLOOKUP(Rebalance!$D$32,$F$2:$G$48,2,FALSE)+ROW()-2)),\"\")","v":{"$error":"#N/A"}},{"$f":"IF(INDIRECT(\"c\" & (VLOOKUP(Rebalance!$D$33,$F$2:$G$48,2,FALSE)+ROW()-2))=Rebalance!$D$33,INDIRECT(\"a\" & (VLOOKUP(Rebalance!$D$33,$F$2:$G$48,2,FALSE)+ROW()-2)),\"\")","v":{"$error":"#N/A"}},{"$f":"IF(INDIRECT(\"c\" & (VLOOKUP(Rebalance!$D$34,$F$2:$G$48,2,FALSE)+ROW()-2))=Rebalance!$D$34,INDIRECT(\"a\" & (VLOOKUP(Rebalance!$D$34,$F$2:$G$48,2,FALSE)+ROW()-2)),\"\")","v":{"$error":"#N/A"}},{"$f":"IF(INDIRECT(\"c\" & (VLOOKUP(Rebalance!$D$35,$F$2:$G$48,2,FALSE)+ROW()-2))=Rebalance!$D$35,INDIRECT(\"a\" & (VLOOKUP(Rebalance!$D$35,$F$2:$G$48,2,FALSE)+ROW()-2)),\"\")","v":{"$error":"#N/A"}},{"$f":"IF(INDIRECT(\"c\" & (VLOOKUP(Rebalance!$D$36,$F$2:$G$48,2,FALSE)+ROW()-2))=Rebalance!$D$36,INDIRECT(\"a\" & (VLOOKUP(Rebalance!$D$36,$F$2:$G$48,2,FALSE)+ROW()-2)),\"\")","v":{"$error":"#N/A"}},{"$f":"IF(INDIRECT(\"c\" & (VLOOKUP(Rebalance!$D$37,$F$2:$G$48,2,FALSE)+ROW()-2))=Rebalance!$D$37,INDIRECT(\"a\" & (VLOOKUP(Rebalance!$D$37,$F$2:$G$48,2,FALSE)+ROW()-2)),\"\")","v":{"$error":"#N/A"}},{"$f":"IF(INDIRECT(\"c\" & (VLOOKUP(Rebalance!$D$38,$F$2:$G$48,2,FALSE)+ROW()-2))=Rebalance!$D$38,INDIRECT(\"a\" & (VLOOKUP(Rebalance!$D$38,$F$2:$G$48,2,FALSE)+ROW()-2)),\"\")","v":{"$error":"#N/A"}},{"$f":"IF(INDIRECT(\"c\" & (VLOOKUP(Rebalance!$D$39,$F$2:$G$48,2,FALSE)+ROW()-2))=Rebalance!$D$39,INDIRECT(\"a\" & (VLOOKUP(Rebalance!$D$39,$F$2:$G$48,2,FALSE)+ROW()-2)),\"\")","v":{"$error":"#N/A"}},{"$f":"IF(INDIRECT(\"c\" & (VLOOKUP(Rebalance!$D$40,$F$2:$G$48,2,FALSE)+ROW()-2))=Rebalance!$D$40,INDIRECT(\"a\" & (VLOOKUP(Rebalance!$D$40,$F$2:$G$48,2,FALSE)+ROW()-2)),\"\")","v":{"$error":"#N/A"}},{"$f":"IF(INDIRECT(\"c\" & (VLOOKUP(Rebalance!$D$52,$F$2:$G$48,2,FALSE)+ROW()-2))=Rebalance!$D$52,INDIRECT(\"a\" & (VLOOKUP(Rebalance!$D$52,$F$2:$G$48,2,FALSE)+ROW()-2)),\"\")","v":{"$error":"#N/A"}},{"$f":"IF(INDIRECT(\"c\" & (VLOOKUP(Rebalance!$D$53,$F$2:$G$48,2,FALSE)+ROW()-2))=Rebalance!$D$53,INDIRECT(\"a\" & (VLOOKUP(Rebalance!$D$53,$F$2:$G$48,2,FALSE)+ROW()-2)),\"\")","v":{"$error":"#N/A"}},{"$f":"IF(INDIRECT(\"c\" & (VLOOKUP(Rebalance!$D$54,$F$2:$G$48,2,FALSE)+ROW()-2))=Rebalance!$D$54,INDIRECT(\"a\" & (VLOOKUP(Rebalance!$D$54,$F$2:$G$48,2,FALSE)+ROW()-2)),\"\")","v":{"$error":"#N/A"}},{"$f":"IF(INDIRECT(\"c\" & (VLOOKUP(Rebalance!$D$55,$F$2:$G$48,2,FALSE)+ROW()-2))=Rebalance!$D$55,INDIRECT(\"a\" & (VLOOKUP(Rebalance!$D$55,$F$2:$G$48,2,FALSE)+ROW()-2)),\"\")","v":{"$error":"#N/A"}},{"$f":"IF(INDIRECT(\"c\" & (VLOOKUP(Rebalance!$D$56,$F$2:$G$48,2,FALSE)+ROW()-2))=Rebalance!$D$56,INDIRECT(\"a\" & (VLOOKUP(Rebalance!$D$56,$F$2:$G$48,2,FALSE)+ROW()-2)),\"\")","v":{"$error":"#N/A"}},{"$f":"IF(INDIRECT(\"c\" & (VLOOKUP(Rebalance!$D$57,$F$2:$G$48,2,FALSE)+ROW()-2))=Rebalance!$D$57,INDIRECT(\"a\" & (VLOOKUP(Rebalance!$D$57,$F$2:$G$48,2,FALSE)+ROW()-2)),\"\")","v":{"$error":"#N/A"}},{"$f":"IF(INDIRECT(\"c\" & (VLOOKUP(Rebalance!$D$58,$F$2:$G$48,2,FALSE)+ROW()-2))=Rebalance!$D$58,INDIRECT(\"a\" & (VLOOKUP(Rebalance!$D$58,$F$2:$G$48,2,FALSE)+ROW()-2)),\"\")","v":{"$error":"#N/A"}},{"$f":"IF(INDIRECT(\"c\" & (VLOOKUP(Rebalance!$D$59,$F$2:$G$48,2,FALSE)+ROW()-2))=Rebalance!$D$59,INDIRECT(\"a\" & (VLOOKUP(Rebalance!$D$59,$F$2:$G$48,2,FALSE)+ROW()-2)),\"\")","v":{"$error":"#N/A"}},{"$f":"IF(INDIRECT(\"c\" & (VLOOKUP(Rebalance!$D$60,$F$2:$G$48,2,FALSE)+ROW()-2))=Rebalance!$D$60,INDIRECT(\"a\" & (VLOOKUP(Rebalance!$D$60,$F$2:$G$48,2,FALSE)+ROW()-2)),\"\")","v":{"$error":"#N/A"}},{"$f":"IF(INDIRECT(\"c\" & (VLOOKUP(Rebalance!$D$61,$F$2:$G$48,2,FALSE)+ROW()-2))=Rebalance!$D$61,INDIRECT(\"a\" & (VLOOKUP(Rebalance!$D$61,$F$2:$G$48,2,FALSE)+ROW()-2)),\"\")","v":{"$error":"#N/A"}},{"$f":"IF(INDIRECT(\"c\" & (VLOOKUP(Rebalance!$D$62,$F$2:$G$48,2,FALSE)+ROW()-2))=Rebalance!$D$62,INDIRECT(\"a\" & (VLOOKUP(Rebalance!$D$62,$F$2:$G$48,2,FALSE)+ROW()-2)),\"\")","v":{"$error":"#N/A"}},{"$f":"IF(INDIRECT(\"c\" & (VLOOKUP(Rebalance!$D$63,$F$2:$G$48,2,FALSE)+ROW()-2))=Rebalance!$D$63,INDIRECT(\"a\" & (VLOOKUP(Rebalance!$D$63,$F$2:$G$48,2,FALSE)+ROW()-2)),\"\")","v":{"$error":"#N/A"}},{"$f":"IF(INDIRECT(\"c\" & (VLOOKUP(Rebalance!$D$64,$F$2:$G$48,2,FALSE)+ROW()-2))=Rebalance!$D$64,INDIRECT(\"a\" & (VLOOKUP(Rebalance!$D$64,$F$2:$G$48,2,FALSE)+ROW()-2)),\"\")","v":{"$error":"#N/A"}},{"$f":"IF(INDIRECT(\"c\" & (VLOOKUP(Rebalance!$D$65,$F$2:$G$48,2,FALSE)+ROW()-2))=Rebalance!$D$65,INDIRECT(\"a\" & (VLOOKUP(Rebalance!$D$65,$F$2:$G$48,2,FALSE)+ROW()-2)),\"\")","v":{"$error":"#N/A"}},{"$f":"IF(INDIRECT(\"c\" & (VLOOKUP(Rebalance!$D$66,$F$2:$G$48,2,FALSE)+ROW()-2))=Rebalance!$D$66,INDIRECT(\"a\" & (VLOOKUP(Rebalance!$D$66,$F$2:$G$48,2,FALSE)+ROW()-2)),\"\")","v":{"$error":"#N/A"}}]
["Momentum Enhanced Yield Fund A","RMIS","Momentum Collective Investments Ltd",{"$f":"ROW()","v":332},null,null,{"$f":"VLOOKUP(F332,$C$2:$D$599,2,FALSE)","v":{"$error":"#N/A"}},{"$f":"IF(INDIRECT(\"c\" & (VLOOKUP(Rebalance!$D$26,$F$2:$G$48,2,FALSE)+ROW()-2))=Rebalance!$D$26,INDIRECT(\"a\" & (VLOOKUP(Rebalance!$D$26,$F$2:$G$48,2,FALSE)+ROW()-2)),\"\")","v":{"$error":"#N/A"}},{"$f":"IF(INDIRECT(\"c\" & (VLOOKUP(Rebalance!$D$27,$F$2:$G$48,2,FALSE)+ROW()-2))=Rebalance!$D$27,INDIRECT(\"a\" & (VLOOKUP(Rebalance!$D$27,$F$2:$G$48,2,FALSE)+ROW()-2)),\"\")","v":{"$error":"#N/A"}},{"$f":"IF(INDIRECT(\"c\" & (VLOOKUP(Rebalance!$D$28,$F$2:$G$48,2,FALSE)+ROW()-2))=Rebalance!$D$28,INDIRECT(\"a\" & (VLOOKUP(Rebalance!$D$28,$F$2:$G$48,2,FALSE)+ROW()-2)),\"\")","v":{"$error":"#N/A"}},{"$f":"IF(INDIRECT(\"c\" & (VLOOKUP(Rebalance!$D$29,$F$2:$G$48,2,FALSE)+ROW()-2))=Rebalance!$D$29,INDIRECT(\"a\" & (VLOOKUP(Rebalance!$D$29,$F$2:$G$48,2,FALSE)+ROW()-2)),\"\")","v":{"$error":"#N/A"}},{"$f":"IF(INDIRECT(\"c\" & (VLOOKUP(Rebalance!$D$30,$F$2:$G$48,2,FALSE)+ROW()-2))=Rebalance!$D$30,INDIRECT(\"a\" & (VLOOKUP(Rebalance!$D$30,$F$2:$G$48,2,FALSE)+ROW()-2)),\"\")","v":{"$error":"#N/A"}},{"$f":"IF(INDIRECT(\"c\" & (VLOOKUP(Rebalance!$D$31,$F$2:$G$48,2,FALSE)+ROW()-2))=Rebalance!$D$31,INDIRECT(\"a\" & (VLOOKUP(Rebalance!$D$31,$F$2:$G$48,2,FALSE)+ROW()-2)),\"\")","v":{"$error":"#N/A"}},{"$f":"IF(INDIRECT(\"c\" & (VLOOKUP(Rebalance!$D$32,$F$2:$G$48,2,FALSE)+ROW()-2))=Rebalance!$D$32,INDIRECT(\"a\" & (VLOOKUP(Rebalance!$D$32,$F$2:$G$48,2,FALSE)+ROW()-2)),\"\")","v":{"$error":"#N/A"}},{"$f":"IF(INDIRECT(\"c\" & (VLOOKUP(Rebalance!$D$33,$F$2:$G$48,2,FALSE)+ROW()-2))=Rebalance!$D$33,INDIRECT(\"a\" & (VLOOKUP(Rebalance!$D$33,$F$2:$G$48,2,FALSE)+ROW()-2)),\"\")","v":{"$error":"#N/A"}},{"$f":"IF(INDIRECT(\"c\" & (VLOOKUP(Rebalance!$D$34,$F$2:$G$48,2,FALSE)+ROW()-2))=Rebalance!$D$34,INDIRECT(\"a\" & (VLOOKUP(Rebalance!$D$34,$F$2:$G$48,2,FALSE)+ROW()-2)),\"\")","v":{"$error":"#N/A"}},{"$f":"IF(INDIRECT(\"c\" & (VLOOKUP(Rebalance!$D$35,$F$2:$G$48,2,FALSE)+ROW()-2))=Rebalance!$D$35,INDIRECT(\"a\" & (VLOOKUP(Rebalance!$D$35,$F$2:$G$48,2,FALSE)+ROW()-2)),\"\")","v":{"$error":"#N/A"}},{"$f":"IF(INDIRECT(\"c\" & (VLOOKUP(Rebalance!$D$36,$F$2:$G$48,2,FALSE)+ROW()-2))=Rebalance!$D$36,INDIRECT(\"a\" & (VLOOKUP(Rebalance!$D$36,$F$2:$G$48,2,FALSE)+ROW()-2)),\"\")","v":{"$error":"#N/A"}},{"$f":"IF(INDIRECT(\"c\" & (VLOOKUP(Rebalance!$D$37,$F$2:$G$48,2,FALSE)+ROW()-2))=Rebalance!$D$37,INDIRECT(\"a\" & (VLOOKUP(Rebalance!$D$37,$F$2:$G$48,2,FALSE)+ROW()-2)),\"\")","v":{"$error":"#N/A"}},{"$f":"IF(INDIRECT(\"c\" & (VLOOKUP(Rebalance!$D$38,$F$2:$G$48,2,FALSE)+ROW()-2))=Rebalance!$D$38,INDIRECT(\"a\" & (VLOOKUP(Rebalance!$D$38,$F$2:$G$48,2,FALSE)+ROW()-2)),\"\")","v":{"$error":"#N/A"}},{"$f":"IF(INDIRECT(\"c\" & (VLOOKUP(Rebalance!$D$39,$F$2:$G$48,2,FALSE)+ROW()-2))=Rebalance!$D$39,INDIRECT(\"a\" & (VLOOKUP(Rebalance!$D$39,$F$2:$G$48,2,FALSE)+ROW()-2)),\"\")","v":{"$error":"#N/A"}},{"$f":"IF(INDIRECT(\"c\" & (VLOOKUP(Rebalance!$D$40,$F$2:$G$48,2,FALSE)+ROW()-2))=Rebalance!$D$40,INDIRECT(\"a\" & (VLOOKUP(Rebalance!$D$40,$F$2:$G$48,2,FALSE)+ROW()-2)),\"\")","v":{"$error":"#N/A"}},{"$f":"IF(INDIRECT(\"c\" & (VLOOKUP(Rebalance!$D$52,$F$2:$G$48,2,FALSE)+ROW()-2))=Rebalance!$D$52,INDIRECT(\"a\" & (VLOOKUP(Rebalance!$D$52,$F$2:$G$48,2,FALSE)+ROW()-2)),\"\")","v":{"$error":"#N/A"}},{"$f":"IF(INDIRECT(\"c\" & (VLOOKUP(Rebalance!$D$53,$F$2:$G$48,2,FALSE)+ROW()-2))=Rebalance!$D$53,INDIRECT(\"a\" & (VLOOKUP(Rebalance!$D$53,$F$2:$G$48,2,FALSE)+ROW()-2)),\"\")","v":{"$error":"#N/A"}},{"$f":"IF(INDIRECT(\"c\" & (VLOOKUP(Rebalance!$D$54,$F$2:$G$48,2,FALSE)+ROW()-2))=Rebalance!$D$54,INDIRECT(\"a\" & (VLOOKUP(Rebalance!$D$54,$F$2:$G$48,2,FALSE)+ROW()-2)),\"\")","v":{"$error":"#N/A"}},{"$f":"IF(INDIRECT(\"c\" & (VLOOKUP(Rebalance!$D$55,$F$2:$G$48,2,FALSE)+ROW()-2))=Rebalance!$D$55,INDIRECT(\"a\" & (VLOOKUP(Rebalance!$D$55,$F$2:$G$48,2,FALSE)+ROW()-2)),\"\")","v":{"$error":"#N/A"}},{"$f":"IF(INDIRECT(\"c\" & (VLOOKUP(Rebalance!$D$56,$F$2:$G$48,2,FALSE)+ROW()-2))=Rebalance!$D$56,INDIRECT(\"a\" & (VLOOKUP(Rebalance!$D$56,$F$2:$G$48,2,FALSE)+ROW()-2)),\"\")","v":{"$error":"#N/A"}},{"$f":"IF(INDIRECT(\"c\" & (VLOOKUP(Rebalance!$D$57,$F$2:$G$48,2,FALSE)+ROW()-2))=Rebalance!$D$57,INDIRECT(\"a\" & (VLOOKUP(Rebalance!$D$57,$F$2:$G$48,2,FALSE)+ROW()-2)),\"\")","v":{"$error":"#N/A"}},{"$f":"IF(INDIRECT(\"c\" & (VLOOKUP(Rebalance!$D$58,$F$2:$G$48,2,FALSE)+ROW()-2))=Rebalance!$D$58,INDIRECT(\"a\" & (VLOOKUP(Rebalance!$D$58,$F$2:$G$48,2,FALSE)+ROW()-2)),\"\")","v":{"$error":"#N/A"}},{"$f":"IF(INDIRECT(\"c\" & (VLOOKUP(Rebalance!$D$59,$F$2:$G$48,2,FALSE)+ROW()-2))=Rebalance!$D$59,INDIRECT(\"a\" & (VLOOKUP(Rebalance!$D$59,$F$2:$G$48,2,FALSE)+ROW()-2)),\"\")","v":{"$error":"#N/A"}},{"$f":"IF(INDIRECT(\"c\" & (VLOOKUP(Rebalance!$D$60,$F$2:$G$48,2,FALSE)+ROW()-2))=Rebalance!$D$60,INDIRECT(\"a\" & (VLOOKUP(Rebalance!$D$60,$F$2:$G$48,2,FALSE)+ROW()-2)),\"\")","v":{"$error":"#N/A"}},{"$f":"IF(INDIRECT(\"c\" & (VLOOKUP(Rebalance!$D$61,$F$2:$G$48,2,FALSE)+ROW()-2))=Rebalance!$D$61,INDIRECT(\"a\" & (VLOOKUP(Rebalance!$D$61,$F$2:$G$48,2,FALSE)+ROW()-2)),\"\")","v":{"$error":"#N/A"}},{"$f":"IF(INDIRECT(\"c\" & (VLOOKUP(Rebalance!$D$62,$F$2:$G$48,2,FALSE)+ROW()-2))=Rebalance!$D$62,INDIRECT(\"a\" & (VLOOKUP(Rebalance!$D$62,$F$2:$G$48,2,FALSE)+ROW()-2)),\"\")","v":{"$error":"#N/A"}},{"$f":"IF(INDIRECT(\"c\" & (VLOOKUP(Rebalance!$D$63,$F$2:$G$48,2,FALSE)+ROW()-2))=Rebalance!$D$63,INDIRECT(\"a\" & (VLOOKUP(Rebalance!$D$63,$F$2:$G$48,2,FALSE)+ROW()-2)),\"\")","v":{"$error":"#N/A"}},{"$f":"IF(INDIRECT(\"c\" & (VLOOKUP(Rebalance!$D$64,$F$2:$G$48,2,FALSE)+ROW()-2))=Rebalance!$D$64,INDIRECT(\"a\" & (VLOOKUP(Rebalance!$D$64,$F$2:$G$48,2,FALSE)+ROW()-2)),\"\")","v":{"$error":"#N/A"}},{"$f":"IF(INDIRECT(\"c\" & (VLOOKUP(Rebalance!$D$65,$F$2:$G$48,2,FALSE)+ROW()-2))=Rebalance!$D$65,INDIRECT(\"a\" & (VLOOKUP(Rebalance!$D$65,$F$2:$G$48,2,FALSE)+ROW()-2)),\"\")","v":{"$error":"#N/A"}},{"$f":"IF(INDIRECT(\"c\" & (VLOOKUP(Rebalance!$D$66,$F$2:$G$48,2,FALSE)+ROW()-2))=Rebalance!$D$66,INDIRECT(\"a\" & (VLOOKUP(Rebalance!$D$66,$F$2:$G$48,2,FALSE)+ROW()-2)),\"\")","v":{"$error":"#N/A"}}]
["Momentum Equity Fund C1","MBSB9","Momentum Collective Investments Ltd",{"$f":"ROW()","v":333},null,null,{"$f":"VLOOKUP(F333,$C$2:$D$599,2,FALSE)","v":{"$error":"#N/A"}},{"$f":"IF(INDIRECT(\"c\" & (VLOOKUP(Rebalance!$D$26,$F$2:$G$48,2,FALSE)+ROW()-2))=Rebalance!$D$26,INDIRECT(\"a\" & (VLOOKUP(Rebalance!$D$26,$F$2:$G$48,2,FALSE)+ROW()-2)),\"\")","v":{"$error":"#N/A"}},{"$f":"IF(INDIRECT(\"c\" & (VLOOKUP(Rebalance!$D$27,$F$2:$G$48,2,FALSE)+ROW()-2))=Rebalance!$D$27,INDIRECT(\"a\" & (VLOOKUP(Rebalance!$D$27,$F$2:$G$48,2,FALSE)+ROW()-2)),\"\")","v":{"$error":"#N/A"}},{"$f":"IF(INDIRECT(\"c\" & (VLOOKUP(Rebalance!$D$28,$F$2:$G$48,2,FALSE)+ROW()-2))=Rebalance!$D$28,INDIRECT(\"a\" & (VLOOKUP(Rebalance!$D$28,$F$2:$G$48,2,FALSE)+ROW()-2)),\"\")","v":{"$error":"#N/A"}},{"$f":"IF(INDIRECT(\"c\" & (VLOOKUP(Rebalance!$D$29,$F$2:$G$48,2,FALSE)+ROW()-2))=Rebalance!$D$29,INDIRECT(\"a\" & (VLOOKUP(Rebalance!$D$29,$F$2:$G$48,2,FALSE)+ROW()-2)),\"\")","v":{"$error":"#N/A"}},{"$f":"IF(INDIRECT(\"c\" & (VLOOKUP(Rebalance!$D$30,$F$2:$G$48,2,FALSE)+ROW()-2))=Rebalance!$D$30,INDIRECT(\"a\" & (VLOOKUP(Rebalance!$D$30,$F$2:$G$48,2,FALSE)+ROW()-2)),\"\")","v":{"$error":"#N/A"}},{"$f":"IF(INDIRECT(\"c\" & (VLOOKUP(Rebalance!$D$31,$F$2:$G$48,2,FALSE)+ROW()-2))=Rebalance!$D$31,INDIRECT(\"a\" & (VLOOKUP(Rebalance!$D$31,$F$2:$G$48,2,FALSE)+ROW()-2)),\"\")","v":{"$error":"#N/A"}},{"$f":"IF(INDIRECT(\"c\" & (VLOOKUP(Rebalance!$D$32,$F$2:$G$48,2,FALSE)+ROW()-2))=Rebalance!$D$32,INDIRECT(\"a\" & (VLOOKUP(Rebalance!$D$32,$F$2:$G$48,2,FALSE)+ROW()-2)),\"\")","v":{"$error":"#N/A"}},{"$f":"IF(INDIRECT(\"c\" & (VLOOKUP(Rebalance!$D$33,$F$2:$G$48,2,FALSE)+ROW()-2))=Rebalance!$D$33,INDIRECT(\"a\" & (VLOOKUP(Rebalance!$D$33,$F$2:$G$48,2,FALSE)+ROW()-2)),\"\")","v":{"$error":"#N/A"}},{"$f":"IF(INDIRECT(\"c\" & (VLOOKUP(Rebalance!$D$34,$F$2:$G$48,2,FALSE)+ROW()-2))=Rebalance!$D$34,INDIRECT(\"a\" & (VLOOKUP(Rebalance!$D$34,$F$2:$G$48,2,FALSE)+ROW()-2)),\"\")","v":{"$error":"#N/A"}},{"$f":"IF(INDIRECT(\"c\" & (VLOOKUP(Rebalance!$D$35,$F$2:$G$48,2,FALSE)+ROW()-2))=Rebalance!$D$35,INDIRECT(\"a\" & (VLOOKUP(Rebalance!$D$35,$F$2:$G$48,2,FALSE)+ROW()-2)),\"\")","v":{"$error":"#N/A"}},{"$f":"IF(INDIRECT(\"c\" & (VLOOKUP(Rebalance!$D$36,$F$2:$G$48,2,FALSE)+ROW()-2))=Rebalance!$D$36,INDIRECT(\"a\" & (VLOOKUP(Rebalance!$D$36,$F$2:$G$48,2,FALSE)+ROW()-2)),\"\")","v":{"$error":"#N/A"}},{"$f":"IF(INDIRECT(\"c\" & (VLOOKUP(Rebalance!$D$37,$F$2:$G$48,2,FALSE)+ROW()-2))=Rebalance!$D$37,INDIRECT(\"a\" & (VLOOKUP(Rebalance!$D$37,$F$2:$G$48,2,FALSE)+ROW()-2)),\"\")","v":{"$error":"#N/A"}},{"$f":"IF(INDIRECT(\"c\" & (VLOOKUP(Rebalance!$D$38,$F$2:$G$48,2,FALSE)+ROW()-2))=Rebalance!$D$38,INDIRECT(\"a\" & (VLOOKUP(Rebalance!$D$38,$F$2:$G$48,2,FALSE)+ROW()-2)),\"\")","v":{"$error":"#N/A"}},{"$f":"IF(INDIRECT(\"c\" & (VLOOKUP(Rebalance!$D$39,$F$2:$G$48,2,FALSE)+ROW()-2))=Rebalance!$D$39,INDIRECT(\"a\" & (VLOOKUP(Rebalance!$D$39,$F$2:$G$48,2,FALSE)+ROW()-2)),\"\")","v":{"$error":"#N/A"}},{"$f":"IF(INDIRECT(\"c\" & (VLOOKUP(Rebalance!$D$40,$F$2:$G$48,2,FALSE)+ROW()-2))=Rebalance!$D$40,INDIRECT(\"a\" & (VLOOKUP(Rebalance!$D$40,$F$2:$G$48,2,FALSE)+ROW()-2)),\"\")","v":{"$error":"#N/A"}},{"$f":"IF(INDIRECT(\"c\" & (VLOOKUP(Rebalance!$D$52,$F$2:$G$48,2,FALSE)+ROW()-2))=Rebalance!$D$52,INDIRECT(\"a\" & (VLOOKUP(Rebalance!$D$52,$F$2:$G$48,2,FALSE)+ROW()-2)),\"\")","v":{"$error":"#N/A"}},{"$f":"IF(INDIRECT(\"c\" & (VLOOKUP(Rebalance!$D$53,$F$2:$G$48,2,FALSE)+ROW()-2))=Rebalance!$D$53,INDIRECT(\"a\" & (VLOOKUP(Rebalance!$D$53,$F$2:$G$48,2,FALSE)+ROW()-2)),\"\")","v":{"$error":"#N/A"}},{"$f":"IF(INDIRECT(\"c\" & (VLOOKUP(Rebalance!$D$54,$F$2:$G$48,2,FALSE)+ROW()-2))=Rebalance!$D$54,INDIRECT(\"a\" & (VLOOKUP(Rebalance!$D$54,$F$2:$G$48,2,FALSE)+ROW()-2)),\"\")","v":{"$error":"#N/A"}},{"$f":"IF(INDIRECT(\"c\" & (VLOOKUP(Rebalance!$D$55,$F$2:$G$48,2,FALSE)+ROW()-2))=Rebalance!$D$55,INDIRECT(\"a\" & (VLOOKUP(Rebalance!$D$55,$F$2:$G$48,2,FALSE)+ROW()-2)),\"\")","v":{"$error":"#N/A"}},{"$f":"IF(INDIRECT(\"c\" & (VLOOKUP(Rebalance!$D$56,$F$2:$G$48,2,FALSE)+ROW()-2))=Rebalance!$D$56,INDIRECT(\"a\" & (VLOOKUP(Rebalance!$D$56,$F$2:$G$48,2,FALSE)+ROW()-2)),\"\")","v":{"$error":"#N/A"}},{"$f":"IF(INDIRECT(\"c\" & (VLOOKUP(Rebalance!$D$57,$F$2:$G$48,2,FALSE)+ROW()-2))=Rebalance!$D$57,INDIRECT(\"a\" & (VLOOKUP(Rebalance!$D$57,$F$2:$G$48,2,FALSE)+ROW()-2)),\"\")","v":{"$error":"#N/A"}},{"$f":"IF(INDIRECT(\"c\" & (VLOOKUP(Rebalance!$D$58,$F$2:$G$48,2,FALSE)+ROW()-2))=Rebalance!$D$58,INDIRECT(\"a\" & (VLOOKUP(Rebalance!$D$58,$F$2:$G$48,2,FALSE)+ROW()-2)),\"\")","v":{"$error":"#N/A"}},{"$f":"IF(INDIRECT(\"c\" & (VLOOKUP(Rebalance!$D$59,$F$2:$G$48,2,FALSE)+ROW()-2))=Rebalance!$D$59,INDIRECT(\"a\" & (VLOOKUP(Rebalance!$D$59,$F$2:$G$48,2,FALSE)+ROW()-2)),\"\")","v":{"$error":"#N/A"}},{"$f":"IF(INDIRECT(\"c\" & (VLOOKUP(Rebalance!$D$60,$F$2:$G$48,2,FALSE)+ROW()-2))=Rebalance!$D$60,INDIRECT(\"a\" & (VLOOKUP(Rebalance!$D$60,$F$2:$G$48,2,FALSE)+ROW()-2)),\"\")","v":{"$error":"#N/A"}},{"$f":"IF(INDIRECT(\"c\" & (VLOOKUP(Rebalance!$D$61,$F$2:$G$48,2,FALSE)+ROW()-2))=Rebalance!$D$61,INDIRECT(\"a\" & (VLOOKUP(Rebalance!$D$61,$F$2:$G$48,2,FALSE)+ROW()-2)),\"\")","v":{"$error":"#N/A"}},{"$f":"IF(INDIRECT(\"c\" & (VLOOKUP(Rebalance!$D$62,$F$2:$G$48,2,FALSE)+ROW()-2))=Rebalance!$D$62,INDIRECT(\"a\" & (VLOOKUP(Rebalance!$D$62,$F$2:$G$48,2,FALSE)+ROW()-2)),\"\")","v":{"$error":"#N/A"}},{"$f":"IF(INDIRECT(\"c\" & (VLOOKUP(Rebalance!$D$63,$F$2:$G$48,2,FALSE)+ROW()-2))=Rebalance!$D$63,INDIRECT(\"a\" & (VLOOKUP(Rebalance!$D$63,$F$2:$G$48,2,FALSE)+ROW()-2)),\"\")","v":{"$error":"#N/A"}},{"$f":"IF(INDIRECT(\"c\" & (VLOOKUP(Rebalance!$D$64,$F$2:$G$48,2,FALSE)+ROW()-2))=Rebalance!$D$64,INDIRECT(\"a\" & (VLOOKUP(Rebalance!$D$64,$F$2:$G$48,2,FALSE)+ROW()-2)),\"\")","v":{"$error":"#N/A"}},{"$f":"IF(INDIRECT(\"c\" & (VLOOKUP(Rebalance!$D$65,$F$2:$G$48,2,FALSE)+ROW()-2))=Rebalance!$D$65,INDIRECT(\"a\" & (VLOOKUP(Rebalance!$D$65,$F$2:$G$48,2,FALSE)+ROW()-2)),\"\")","v":{"$error":"#N/A"}},{"$f":"IF(INDIRECT(\"c\" & (VLOOKUP(Rebalance!$D$66,$F$2:$G$48,2,FALSE)+ROW()-2))=Rebalance!$D$66,INDIRECT(\"a\" & (VLOOKUP(Rebalance!$D$66,$F$2:$G$48,2,FALSE)+ROW()-2)),\"\")","v":{"$error":"#N/A"}}]
["Momentum Focus 4 Fund of Funds A","MESGFC","Momentum Collective Investments Ltd",{"$f":"ROW()","v":334},null,null,{"$f":"VLOOKUP(F334,$C$2:$D$599,2,FALSE)","v":{"$error":"#N/A"}},{"$f":"IF(INDIRECT(\"c\" & (VLOOKUP(Rebalance!$D$26,$F$2:$G$48,2,FALSE)+ROW()-2))=Rebalance!$D$26,INDIRECT(\"a\" & (VLOOKUP(Rebalance!$D$26,$F$2:$G$48,2,FALSE)+ROW()-2)),\"\")","v":{"$error":"#N/A"}},{"$f":"IF(INDIRECT(\"c\" & (VLOOKUP(Rebalance!$D$27,$F$2:$G$48,2,FALSE)+ROW()-2))=Rebalance!$D$27,INDIRECT(\"a\" & (VLOOKUP(Rebalance!$D$27,$F$2:$G$48,2,FALSE)+ROW()-2)),\"\")","v":{"$error":"#N/A"}},{"$f":"IF(INDIRECT(\"c\" & (VLOOKUP(Rebalance!$D$28,$F$2:$G$48,2,FALSE)+ROW()-2))=Rebalance!$D$28,INDIRECT(\"a\" & (VLOOKUP(Rebalance!$D$28,$F$2:$G$48,2,FALSE)+ROW()-2)),\"\")","v":{"$error":"#N/A"}},{"$f":"IF(INDIRECT(\"c\" & (VLOOKUP(Rebalance!$D$29,$F$2:$G$48,2,FALSE)+ROW()-2))=Rebalance!$D$29,INDIRECT(\"a\" & (VLOOKUP(Rebalance!$D$29,$F$2:$G$48,2,FALSE)+ROW()-2)),\"\")","v":{"$error":"#N/A"}},{"$f":"IF(INDIRECT(\"c\" & (VLOOKUP(Rebalance!$D$30,$F$2:$G$48,2,FALSE)+ROW()-2))=Rebalance!$D$30,INDIRECT(\"a\" & (VLOOKUP(Rebalance!$D$30,$F$2:$G$48,2,FALSE)+ROW()-2)),\"\")","v":{"$error":"#N/A"}},{"$f":"IF(INDIRECT(\"c\" & (VLOOKUP(Rebalance!$D$31,$F$2:$G$48,2,FALSE)+ROW()-2))=Rebalance!$D$31,INDIRECT(\"a\" & (VLOOKUP(Rebalance!$D$31,$F$2:$G$48,2,FALSE)+ROW()-2)),\"\")","v":{"$error":"#N/A"}},{"$f":"IF(INDIRECT(\"c\" & (VLOOKUP(Rebalance!$D$32,$F$2:$G$48,2,FALSE)+ROW()-2))=Rebalance!$D$32,INDIRECT(\"a\" & (VLOOKUP(Rebalance!$D$32,$F$2:$G$48,2,FALSE)+ROW()-2)),\"\")","v":{"$error":"#N/A"}},{"$f":"IF(INDIRECT(\"c\" & (VLOOKUP(Rebalance!$D$33,$F$2:$G$48,2,FALSE)+ROW()-2))=Rebalance!$D$33,INDIRECT(\"a\" & (VLOOKUP(Rebalance!$D$33,$F$2:$G$48,2,FALSE)+ROW()-2)),\"\")","v":{"$error":"#N/A"}},{"$f":"IF(INDIRECT(\"c\" & (VLOOKUP(Rebalance!$D$34,$F$2:$G$48,2,FALSE)+ROW()-2))=Rebalance!$D$34,INDIRECT(\"a\" & (VLOOKUP(Rebalance!$D$34,$F$2:$G$48,2,FALSE)+ROW()-2)),\"\")","v":{"$error":"#N/A"}},{"$f":"IF(INDIRECT(\"c\" & (VLOOKUP(Rebalance!$D$35,$F$2:$G$48,2,FALSE)+ROW()-2))=Rebalance!$D$35,INDIRECT(\"a\" & (VLOOKUP(Rebalance!$D$35,$F$2:$G$48,2,FALSE)+ROW()-2)),\"\")","v":{"$error":"#N/A"}},{"$f":"IF(INDIRECT(\"c\" & (VLOOKUP(Rebalance!$D$36,$F$2:$G$48,2,FALSE)+ROW()-2))=Rebalance!$D$36,INDIRECT(\"a\" & (VLOOKUP(Rebalance!$D$36,$F$2:$G$48,2,FALSE)+ROW()-2)),\"\")","v":{"$error":"#N/A"}},{"$f":"IF(INDIRECT(\"c\" & (VLOOKUP(Rebalance!$D$37,$F$2:$G$48,2,FALSE)+ROW()-2))=Rebalance!$D$37,INDIRECT(\"a\" & (VLOOKUP(Rebalance!$D$37,$F$2:$G$48,2,FALSE)+ROW()-2)),\"\")","v":{"$error":"#N/A"}},{"$f":"IF(INDIRECT(\"c\" & (VLOOKUP(Rebalance!$D$38,$F$2:$G$48,2,FALSE)+ROW()-2))=Rebalance!$D$38,INDIRECT(\"a\" & (VLOOKUP(Rebalance!$D$38,$F$2:$G$48,2,FALSE)+ROW()-2)),\"\")","v":{"$error":"#N/A"}},{"$f":"IF(INDIRECT(\"c\" & (VLOOKUP(Rebalance!$D$39,$F$2:$G$48,2,FALSE)+ROW()-2))=Rebalance!$D$39,INDIRECT(\"a\" & (VLOOKUP(Rebalance!$D$39,$F$2:$G$48,2,FALSE)+ROW()-2)),\"\")","v":{"$error":"#N/A"}},{"$f":"IF(INDIRECT(\"c\" & (VLOOKUP(Rebalance!$D$40,$F$2:$G$48,2,FALSE)+ROW()-2))=Rebalance!$D$40,INDIRECT(\"a\" & (VLOOKUP(Rebalance!$D$40,$F$2:$G$48,2,FALSE)+ROW()-2)),\"\")","v":{"$error":"#N/A"}},{"$f":"IF(INDIRECT(\"c\" & (VLOOKUP(Rebalance!$D$52,$F$2:$G$48,2,FALSE)+ROW()-2))=Rebalance!$D$52,INDIRECT(\"a\" & (VLOOKUP(Rebalance!$D$52,$F$2:$G$48,2,FALSE)+ROW()-2)),\"\")","v":{"$error":"#N/A"}},{"$f":"IF(INDIRECT(\"c\" & (VLOOKUP(Rebalance!$D$53,$F$2:$G$48,2,FALSE)+ROW()-2))=Rebalance!$D$53,INDIRECT(\"a\" & (VLOOKUP(Rebalance!$D$53,$F$2:$G$48,2,FALSE)+ROW()-2)),\"\")","v":{"$error":"#N/A"}},{"$f":"IF(INDIRECT(\"c\" & (VLOOKUP(Rebalance!$D$54,$F$2:$G$48,2,FALSE)+ROW()-2))=Rebalance!$D$54,INDIRECT(\"a\" & (VLOOKUP(Rebalance!$D$54,$F$2:$G$48,2,FALSE)+ROW()-2)),\"\")","v":{"$error":"#N/A"}},{"$f":"IF(INDIRECT(\"c\" & (VLOOKUP(Rebalance!$D$55,$F$2:$G$48,2,FALSE)+ROW()-2))=Rebalance!$D$55,INDIRECT(\"a\" & (VLOOKUP(Rebalance!$D$55,$F$2:$G$48,2,FALSE)+ROW()-2)),\"\")","v":{"$error":"#N/A"}},{"$f":"IF(INDIRECT(\"c\" & (VLOOKUP(Rebalance!$D$56,$F$2:$G$48,2,FALSE)+ROW()-2))=Rebalance!$D$56,INDIRECT(\"a\" & (VLOOKUP(Rebalance!$D$56,$F$2:$G$48,2,FALSE)+ROW()-2)),\"\")","v":{"$error":"#N/A"}},{"$f":"IF(INDIRECT(\"c\" & (VLOOKUP(Rebalance!$D$57,$F$2:$G$48,2,FALSE)+ROW()-2))=Rebalance!$D$57,INDIRECT(\"a\" & (VLOOKUP(Rebalance!$D$57,$F$2:$G$48,2,FALSE)+ROW()-2)),\"\")","v":{"$error":"#N/A"}},{"$f":"IF(INDIRECT(\"c\" & (VLOOKUP(Rebalance!$D$58,$F$2:$G$48,2,FALSE)+ROW()-2))=Rebalance!$D$58,INDIRECT(\"a\" & (VLOOKUP(Rebalance!$D$58,$F$2:$G$48,2,FALSE)+ROW()-2)),\"\")","v":{"$error":"#N/A"}},{"$f":"IF(INDIRECT(\"c\" & (VLOOKUP(Rebalance!$D$59,$F$2:$G$48,2,FALSE)+ROW()-2))=Rebalance!$D$59,INDIRECT(\"a\" & (VLOOKUP(Rebalance!$D$59,$F$2:$G$48,2,FALSE)+ROW()-2)),\"\")","v":{"$error":"#N/A"}},{"$f":"IF(INDIRECT(\"c\" & (VLOOKUP(Rebalance!$D$60,$F$2:$G$48,2,FALSE)+ROW()-2))=Rebalance!$D$60,INDIRECT(\"a\" & (VLOOKUP(Rebalance!$D$60,$F$2:$G$48,2,FALSE)+ROW()-2)),\"\")","v":{"$error":"#N/A"}},{"$f":"IF(INDIRECT(\"c\" & (VLOOKUP(Rebalance!$D$61,$F$2:$G$48,2,FALSE)+ROW()-2))=Rebalance!$D$61,INDIRECT(\"a\" & (VLOOKUP(Rebalance!$D$61,$F$2:$G$48,2,FALSE)+ROW()-2)),\"\")","v":{"$error":"#N/A"}},{"$f":"IF(INDIRECT(\"c\" & (VLOOKUP(Rebalance!$D$62,$F$2:$G$48,2,FALSE)+ROW()-2))=Rebalance!$D$62,INDIRECT(\"a\" & (VLOOKUP(Rebalance!$D$62,$F$2:$G$48,2,FALSE)+ROW()-2)),\"\")","v":{"$error":"#N/A"}},{"$f":"IF(INDIRECT(\"c\" & (VLOOKUP(Rebalance!$D$63,$F$2:$G$48,2,FALSE)+ROW()-2))=Rebalance!$D$63,INDIRECT(\"a\" & (VLOOKUP(Rebalance!$D$63,$F$2:$G$48,2,FALSE)+ROW()-2)),\"\")","v":{"$error":"#N/A"}},{"$f":"IF(INDIRECT(\"c\" & (VLOOKUP(Rebalance!$D$64,$F$2:$G$48,2,FALSE)+ROW()-2))=Rebalance!$D$64,INDIRECT(\"a\" & (VLOOKUP(Rebalance!$D$64,$F$2:$G$48,2,FALSE)+ROW()-2)),\"\")","v":{"$error":"#N/A"}},{"$f":"IF(INDIRECT(\"c\" & (VLOOKUP(Rebalance!$D$65,$F$2:$G$48,2,FALSE)+ROW()-2))=Rebalance!$D$65,INDIRECT(\"a\" & (VLOOKUP(Rebalance!$D$65,$F$2:$G$48,2,FALSE)+ROW()-2)),\"\")","v":{"$error":"#N/A"}},{"$f":"IF(INDIRECT(\"c\" & (VLOOKUP(Rebalance!$D$66,$F$2:$G$48,2,FALSE)+ROW()-2))=Rebalance!$D$66,INDIRECT(\"a\" & (VLOOKUP(Rebalance!$D$66,$F$2:$G$48,2,FALSE)+ROW()-2)),\"\")","v":{"$error":"#N/A"}}]
["Momentum Focus 4 Fund of Funds C","MESGFC","Momentum Collective Investments Ltd",{"$f":"ROW()","v":335},null,null,{"$f":"VLOOKUP(F335,$C$2:$D$599,2,FALSE)","v":{"$error":"#N/A"}},{"$f":"IF(INDIRECT(\"c\" & (VLOOKUP(Rebalance!$D$26,$F$2:$G$48,2,FALSE)+ROW()-2))=Rebalance!$D$26,INDIRECT(\"a\" & (VLOOKUP(Rebalance!$D$26,$F$2:$G$48,2,FALSE)+ROW()-2)),\"\")","v":{"$error":"#N/A"}},{"$f":"IF(INDIRECT(\"c\" & (VLOOKUP(Rebalance!$D$27,$F$2:$G$48,2,FALSE)+ROW()-2))=Rebalance!$D$27,INDIRECT(\"a\" & (VLOOKUP(Rebalance!$D$27,$F$2:$G$48,2,FALSE)+ROW()-2)),\"\")","v":{"$error":"#N/A"}},{"$f":"IF(INDIRECT(\"c\" & (VLOOKUP(Rebalance!$D$28,$F$2:$G$48,2,FALSE)+ROW()-2))=Rebalance!$D$28,INDIRECT(\"a\" & (VLOOKUP(Rebalance!$D$28,$F$2:$G$48,2,FALSE)+ROW()-2)),\"\")","v":{"$error":"#N/A"}},{"$f":"IF(INDIRECT(\"c\" & (VLOOKUP(Rebalance!$D$29,$F$2:$G$48,2,FALSE)+ROW()-2))=Rebalance!$D$29,INDIRECT(\"a\" & (VLOOKUP(Rebalance!$D$29,$F$2:$G$48,2,FALSE)+ROW()-2)),\"\")","v":{"$error":"#N/A"}},{"$f":"IF(INDIRECT(\"c\" & (VLOOKUP(Rebalance!$D$30,$F$2:$G$48,2,FALSE)+ROW()-2))=Rebalance!$D$30,INDIRECT(\"a\" & (VLOOKUP(Rebalance!$D$30,$F$2:$G$48,2,FALSE)+ROW()-2)),\"\")","v":{"$error":"#N/A"}},{"$f":"IF(INDIRECT(\"c\" & (VLOOKUP(Rebalance!$D$31,$F$2:$G$48,2,FALSE)+ROW()-2))=Rebalance!$D$31,INDIRECT(\"a\" & (VLOOKUP(Rebalance!$D$31,$F$2:$G$48,2,FALSE)+ROW()-2)),\"\")","v":{"$error":"#N/A"}},{"$f":"IF(INDIRECT(\"c\" & (VLOOKUP(Rebalance!$D$32,$F$2:$G$48,2,FALSE)+ROW()-2))=Rebalance!$D$32,INDIRECT(\"a\" & (VLOOKUP(Rebalance!$D$32,$F$2:$G$48,2,FALSE)+ROW()-2)),\"\")","v":{"$error":"#N/A"}},{"$f":"IF(INDIRECT(\"c\" & (VLOOKUP(Rebalance!$D$33,$F$2:$G$48,2,FALSE)+ROW()-2))=Rebalance!$D$33,INDIRECT(\"a\" & (VLOOKUP(Rebalance!$D$33,$F$2:$G$48,2,FALSE)+ROW()-2)),\"\")","v":{"$error":"#N/A"}},{"$f":"IF(INDIRECT(\"c\" & (VLOOKUP(Rebalance!$D$34,$F$2:$G$48,2,FALSE)+ROW()-2))=Rebalance!$D$34,INDIRECT(\"a\" & (VLOOKUP(Rebalance!$D$34,$F$2:$G$48,2,FALSE)+ROW()-2)),\"\")","v":{"$error":"#N/A"}},{"$f":"IF(INDIRECT(\"c\" & (VLOOKUP(Rebalance!$D$35,$F$2:$G$48,2,FALSE)+ROW()-2))=Rebalance!$D$35,INDIRECT(\"a\" & (VLOOKUP(Rebalance!$D$35,$F$2:$G$48,2,FALSE)+ROW()-2)),\"\")","v":{"$error":"#N/A"}},{"$f":"IF(INDIRECT(\"c\" & (VLOOKUP(Rebalance!$D$36,$F$2:$G$48,2,FALSE)+ROW()-2))=Rebalance!$D$36,INDIRECT(\"a\" & (VLOOKUP(Rebalance!$D$36,$F$2:$G$48,2,FALSE)+ROW()-2)),\"\")","v":{"$error":"#N/A"}},{"$f":"IF(INDIRECT(\"c\" & (VLOOKUP(Rebalance!$D$37,$F$2:$G$48,2,FALSE)+ROW()-2))=Rebalance!$D$37,INDIRECT(\"a\" & (VLOOKUP(Rebalance!$D$37,$F$2:$G$48,2,FALSE)+ROW()-2)),\"\")","v":{"$error":"#N/A"}},{"$f":"IF(INDIRECT(\"c\" & (VLOOKUP(Rebalance!$D$38,$F$2:$G$48,2,FALSE)+ROW()-2))=Rebalance!$D$38,INDIRECT(\"a\" & (VLOOKUP(Rebalance!$D$38,$F$2:$G$48,2,FALSE)+ROW()-2)),\"\")","v":{"$error":"#N/A"}},{"$f":"IF(INDIRECT(\"c\" & (VLOOKUP(Rebalance!$D$39,$F$2:$G$48,2,FALSE)+ROW()-2))=Rebalance!$D$39,INDIRECT(\"a\" & (VLOOKUP(Rebalance!$D$39,$F$2:$G$48,2,FALSE)+ROW()-2)),\"\")","v":{"$error":"#N/A"}},{"$f":"IF(INDIRECT(\"c\" & (VLOOKUP(Rebalance!$D$40,$F$2:$G$48,2,FALSE)+ROW()-2))=Rebalance!$D$40,INDIRECT(\"a\" & (VLOOKUP(Rebalance!$D$40,$F$2:$G$48,2,FALSE)+ROW()-2)),\"\")","v":{"$error":"#N/A"}},{"$f":"IF(INDIRECT(\"c\" & (VLOOKUP(Rebalance!$D$52,$F$2:$G$48,2,FALSE)+ROW()-2))=Rebalance!$D$52,INDIRECT(\"a\" & (VLOOKUP(Rebalance!$D$52,$F$2:$G$48,2,FALSE)+ROW()-2)),\"\")","v":{"$error":"#N/A"}},{"$f":"IF(INDIRECT(\"c\" & (VLOOKUP(Rebalance!$D$53,$F$2:$G$48,2,FALSE)+ROW()-2))=Rebalance!$D$53,INDIRECT(\"a\" & (VLOOKUP(Rebalance!$D$53,$F$2:$G$48,2,FALSE)+ROW()-2)),\"\")","v":{"$error":"#N/A"}},{"$f":"IF(INDIRECT(\"c\" & (VLOOKUP(Rebalance!$D$54,$F$2:$G$48,2,FALSE)+ROW()-2))=Rebalance!$D$54,INDIRECT(\"a\" & (VLOOKUP(Rebalance!$D$54,$F$2:$G$48,2,FALSE)+ROW()-2)),\"\")","v":{"$error":"#N/A"}},{"$f":"IF(INDIRECT(\"c\" & (VLOOKUP(Rebalance!$D$55,$F$2:$G$48,2,FALSE)+ROW()-2))=Rebalance!$D$55,INDIRECT(\"a\" & (VLOOKUP(Rebalance!$D$55,$F$2:$G$48,2,FALSE)+ROW()-2)),\"\")","v":{"$error":"#N/A"}},{"$f":"IF(INDIRECT(\"c\" & (VLOOKUP(Rebalance!$D$56,$F$2:$G$48,2,FALSE)+ROW()-2))=Rebalance!$D$56,INDIRECT(\"a\" & (VLOOKUP(Rebalance!$D$56,$F$2:$G$48,2,FALSE)+ROW()-2)),\"\")","v":{"$error":"#N/A"}},{"$f":"IF(INDIRECT(\"c\" & (VLOOKUP(Rebalance!$D$57,$F$2:$G$48,2,FALSE)+ROW()-2))=Rebalance!$D$57,INDIRECT(\"a\" & (VLOOKUP(Rebalance!$D$57,$F$2:$G$48,2,FALSE)+ROW()-2)),\"\")","v":{"$error":"#N/A"}},{"$f":"IF(INDIRECT(\"c\" & (VLOOKUP(Rebalance!$D$58,$F$2:$G$48,2,FALSE)+ROW()-2))=Rebalance!$D$58,INDIRECT(\"a\" & (VLOOKUP(Rebalance!$D$58,$F$2:$G$48,2,FALSE)+ROW()-2)),\"\")","v":{"$error":"#N/A"}},{"$f":"IF(INDIRECT(\"c\" & (VLOOKUP(Rebalance!$D$59,$F$2:$G$48,2,FALSE)+ROW()-2))=Rebalance!$D$59,INDIRECT(\"a\" & (VLOOKUP(Rebalance!$D$59,$F$2:$G$48,2,FALSE)+ROW()-2)),\"\")","v":{"$error":"#N/A"}},{"$f":"IF(INDIRECT(\"c\" & (VLOOKUP(Rebalance!$D$60,$F$2:$G$48,2,FALSE)+ROW()-2))=Rebalance!$D$60,INDIRECT(\"a\" & (VLOOKUP(Rebalance!$D$60,$F$2:$G$48,2,FALSE)+ROW()-2)),\"\")","v":{"$error":"#N/A"}},{"$f":"IF(INDIRECT(\"c\" & (VLOOKUP(Rebalance!$D$61,$F$2:$G$48,2,FALSE)+ROW()-2))=Rebalance!$D$61,INDIRECT(\"a\" & (VLOOKUP(Rebalance!$D$61,$F$2:$G$48,2,FALSE)+ROW()-2)),\"\")","v":{"$error":"#N/A"}},{"$f":"IF(INDIRECT(\"c\" & (VLOOKUP(Rebalance!$D$62,$F$2:$G$48,2,FALSE)+ROW()-2))=Rebalance!$D$62,INDIRECT(\"a\" & (VLOOKUP(Rebalance!$D$62,$F$2:$G$48,2,FALSE)+ROW()-2)),\"\")","v":{"$error":"#N/A"}},{"$f":"IF(INDIRECT(\"c\" & (VLOOKUP(Rebalance!$D$63,$F$2:$G$48,2,FALSE)+ROW()-2))=Rebalance!$D$63,INDIRECT(\"a\" & (VLOOKUP(Rebalance!$D$63,$F$2:$G$48,2,FALSE)+ROW()-2)),\"\")","v":{"$error":"#N/A"}},{"$f":"IF(INDIRECT(\"c\" & (VLOOKUP(Rebalance!$D$64,$F$2:$G$48,2,FALSE)+ROW()-2))=Rebalance!$D$64,INDIRECT(\"a\" & (VLOOKUP(Rebalance!$D$64,$F$2:$G$48,2,FALSE)+ROW()-2)),\"\")","v":{"$error":"#N/A"}},{"$f":"IF(INDIRECT(\"c\" & (VLOOKUP(Rebalance!$D$65,$F$2:$G$48,2,FALSE)+ROW()-2))=Rebalance!$D$65,INDIRECT(\"a\" & (VLOOKUP(Rebalance!$D$65,$F$2:$G$48,2,FALSE)+ROW()-2)),\"\")","v":{"$error":"#N/A"}},{"$f":"IF(INDIRECT(\"c\" & (VLOOKUP(Rebalance!$D$66,$F$2:$G$48,2,FALSE)+ROW()-2))=Rebalance!$D$66,INDIRECT(\"a\" & (VLOOKUP(Rebalance!$D$66,$F$2:$G$48,2,FALSE)+ROW()-2)),\"\")","v":{"$error":"#N/A"}}]
["Momentum Focus 5 Fund of Funds B2","MOBB2","Momentum Collective Investments Ltd",{"$f":"ROW()","v":336},null,null,{"$f":"VLOOKUP(F336,$C$2:$D$599,2,FALSE)","v":{"$error":"#N/A"}},{"$f":"IF(INDIRECT(\"c\" & (VLOOKUP(Rebalance!$D$26,$F$2:$G$48,2,FALSE)+ROW()-2))=Rebalance!$D$26,INDIRECT(\"a\" & (VLOOKUP(Rebalance!$D$26,$F$2:$G$48,2,FALSE)+ROW()-2)),\"\")","v":{"$error":"#N/A"}},{"$f":"IF(INDIRECT(\"c\" & (VLOOKUP(Rebalance!$D$27,$F$2:$G$48,2,FALSE)+ROW()-2))=Rebalance!$D$27,INDIRECT(\"a\" & (VLOOKUP(Rebalance!$D$27,$F$2:$G$48,2,FALSE)+ROW()-2)),\"\")","v":{"$error":"#N/A"}},{"$f":"IF(INDIRECT(\"c\" & (VLOOKUP(Rebalance!$D$28,$F$2:$G$48,2,FALSE)+ROW()-2))=Rebalance!$D$28,INDIRECT(\"a\" & (VLOOKUP(Rebalance!$D$28,$F$2:$G$48,2,FALSE)+ROW()-2)),\"\")","v":{"$error":"#N/A"}},{"$f":"IF(INDIRECT(\"c\" & (VLOOKUP(Rebalance!$D$29,$F$2:$G$48,2,FALSE)+ROW()-2))=Rebalance!$D$29,INDIRECT(\"a\" & (VLOOKUP(Rebalance!$D$29,$F$2:$G$48,2,FALSE)+ROW()-2)),\"\")","v":{"$error":"#N/A"}},{"$f":"IF(INDIRECT(\"c\" & (VLOOKUP(Rebalance!$D$30,$F$2:$G$48,2,FALSE)+ROW()-2))=Rebalance!$D$30,INDIRECT(\"a\" & (VLOOKUP(Rebalance!$D$30,$F$2:$G$48,2,FALSE)+ROW()-2)),\"\")","v":{"$error":"#N/A"}},{"$f":"IF(INDIRECT(\"c\" & (VLOOKUP(Rebalance!$D$31,$F$2:$G$48,2,FALSE)+ROW()-2))=Rebalance!$D$31,INDIRECT(\"a\" & (VLOOKUP(Rebalance!$D$31,$F$2:$G$48,2,FALSE)+ROW()-2)),\"\")","v":{"$error":"#N/A"}},{"$f":"IF(INDIRECT(\"c\" & (VLOOKUP(Rebalance!$D$32,$F$2:$G$48,2,FALSE)+ROW()-2))=Rebalance!$D$32,INDIRECT(\"a\" & (VLOOKUP(Rebalance!$D$32,$F$2:$G$48,2,FALSE)+ROW()-2)),\"\")","v":{"$error":"#N/A"}},{"$f":"IF(INDIRECT(\"c\" & (VLOOKUP(Rebalance!$D$33,$F$2:$G$48,2,FALSE)+ROW()-2))=Rebalance!$D$33,INDIRECT(\"a\" & (VLOOKUP(Rebalance!$D$33,$F$2:$G$48,2,FALSE)+ROW()-2)),\"\")","v":{"$error":"#N/A"}},{"$f":"IF(INDIRECT(\"c\" & (VLOOKUP(Rebalance!$D$34,$F$2:$G$48,2,FALSE)+ROW()-2))=Rebalance!$D$34,INDIRECT(\"a\" & (VLOOKUP(Rebalance!$D$34,$F$2:$G$48,2,FALSE)+ROW()-2)),\"\")","v":{"$error":"#N/A"}},{"$f":"IF(INDIRECT(\"c\" & (VLOOKUP(Rebalance!$D$35,$F$2:$G$48,2,FALSE)+ROW()-2))=Rebalance!$D$35,INDIRECT(\"a\" & (VLOOKUP(Rebalance!$D$35,$F$2:$G$48,2,FALSE)+ROW()-2)),\"\")","v":{"$error":"#N/A"}},{"$f":"IF(INDIRECT(\"c\" & (VLOOKUP(Rebalance!$D$36,$F$2:$G$48,2,FALSE)+ROW()-2))=Rebalance!$D$36,INDIRECT(\"a\" & (VLOOKUP(Rebalance!$D$36,$F$2:$G$48,2,FALSE)+ROW()-2)),\"\")","v":{"$error":"#N/A"}},{"$f":"IF(INDIRECT(\"c\" & (VLOOKUP(Rebalance!$D$37,$F$2:$G$48,2,FALSE)+ROW()-2))=Rebalance!$D$37,INDIRECT(\"a\" & (VLOOKUP(Rebalance!$D$37,$F$2:$G$48,2,FALSE)+ROW()-2)),\"\")","v":{"$error":"#N/A"}},{"$f":"IF(INDIRECT(\"c\" & (VLOOKUP(Rebalance!$D$38,$F$2:$G$48,2,FALSE)+ROW()-2))=Rebalance!$D$38,INDIRECT(\"a\" & (VLOOKUP(Rebalance!$D$38,$F$2:$G$48,2,FALSE)+ROW()-2)),\"\")","v":{"$error":"#N/A"}},{"$f":"IF(INDIRECT(\"c\" & (VLOOKUP(Rebalance!$D$39,$F$2:$G$48,2,FALSE)+ROW()-2))=Rebalance!$D$39,INDIRECT(\"a\" & (VLOOKUP(Rebalance!$D$39,$F$2:$G$48,2,FALSE)+ROW()-2)),\"\")","v":{"$error":"#N/A"}},{"$f":"IF(INDIRECT(\"c\" & (VLOOKUP(Rebalance!$D$40,$F$2:$G$48,2,FALSE)+ROW()-2))=Rebalance!$D$40,INDIRECT(\"a\" & (VLOOKUP(Rebalance!$D$40,$F$2:$G$48,2,FALSE)+ROW()-2)),\"\")","v":{"$error":"#N/A"}},{"$f":"IF(INDIRECT(\"c\" & (VLOOKUP(Rebalance!$D$52,$F$2:$G$48,2,FALSE)+ROW()-2))=Rebalance!$D$52,INDIRECT(\"a\" & (VLOOKUP(Rebalance!$D$52,$F$2:$G$48,2,FALSE)+ROW()-2)),\"\")","v":{"$error":"#N/A"}},{"$f":"IF(INDIRECT(\"c\" & (VLOOKUP(Rebalance!$D$53,$F$2:$G$48,2,FALSE)+ROW()-2))=Rebalance!$D$53,INDIRECT(\"a\" & (VLOOKUP(Rebalance!$D$53,$F$2:$G$48,2,FALSE)+ROW()-2)),\"\")","v":{"$error":"#N/A"}},{"$f":"IF(INDIRECT(\"c\" & (VLOOKUP(Rebalance!$D$54,$F$2:$G$48,2,FALSE)+ROW()-2))=Rebalance!$D$54,INDIRECT(\"a\" & (VLOOKUP(Rebalance!$D$54,$F$2:$G$48,2,FALSE)+ROW()-2)),\"\")","v":{"$error":"#N/A"}},{"$f":"IF(INDIRECT(\"c\" & (VLOOKUP(Rebalance!$D$55,$F$2:$G$48,2,FALSE)+ROW()-2))=Rebalance!$D$55,INDIRECT(\"a\" & (VLOOKUP(Rebalance!$D$55,$F$2:$G$48,2,FALSE)+ROW()-2)),\"\")","v":{"$error":"#N/A"}},{"$f":"IF(INDIRECT(\"c\" & (VLOOKUP(Rebalance!$D$56,$F$2:$G$48,2,FALSE)+ROW()-2))=Rebalance!$D$56,INDIRECT(\"a\" & (VLOOKUP(Rebalance!$D$56,$F$2:$G$48,2,FALSE)+ROW()-2)),\"\")","v":{"$error":"#N/A"}},{"$f":"IF(INDIRECT(\"c\" & (VLOOKUP(Rebalance!$D$57,$F$2:$G$48,2,FALSE)+ROW()-2))=Rebalance!$D$57,INDIRECT(\"a\" & (VLOOKUP(Rebalance!$D$57,$F$2:$G$48,2,FALSE)+ROW()-2)),\"\")","v":{"$error":"#N/A"}},{"$f":"IF(INDIRECT(\"c\" & (VLOOKUP(Rebalance!$D$58,$F$2:$G$48,2,FALSE)+ROW()-2))=Rebalance!$D$58,INDIRECT(\"a\" & (VLOOKUP(Rebalance!$D$58,$F$2:$G$48,2,FALSE)+ROW()-2)),\"\")","v":{"$error":"#N/A"}},{"$f":"IF(INDIRECT(\"c\" & (VLOOKUP(Rebalance!$D$59,$F$2:$G$48,2,FALSE)+ROW()-2))=Rebalance!$D$59,INDIRECT(\"a\" & (VLOOKUP(Rebalance!$D$59,$F$2:$G$48,2,FALSE)+ROW()-2)),\"\")","v":{"$error":"#N/A"}},{"$f":"IF(INDIRECT(\"c\" & (VLOOKUP(Rebalance!$D$60,$F$2:$G$48,2,FALSE)+ROW()-2))=Rebalance!$D$60,INDIRECT(\"a\" & (VLOOKUP(Rebalance!$D$60,$F$2:$G$48,2,FALSE)+ROW()-2)),\"\")","v":{"$error":"#N/A"}},{"$f":"IF(INDIRECT(\"c\" & (VLOOKUP(Rebalance!$D$61,$F$2:$G$48,2,FALSE)+ROW()-2))=Rebalance!$D$61,INDIRECT(\"a\" & (VLOOKUP(Rebalance!$D$61,$F$2:$G$48,2,FALSE)+ROW()-2)),\"\")","v":{"$error":"#N/A"}},{"$f":"IF(INDIRECT(\"c\" & (VLOOKUP(Rebalance!$D$62,$F$2:$G$48,2,FALSE)+ROW()-2))=Rebalance!$D$62,INDIRECT(\"a\" & (VLOOKUP(Rebalance!$D$62,$F$2:$G$48,2,FALSE)+ROW()-2)),\"\")","v":{"$error":"#N/A"}},{"$f":"IF(INDIRECT(\"c\" & (VLOOKUP(Rebalance!$D$63,$F$2:$G$48,2,FALSE)+ROW()-2))=Rebalance!$D$63,INDIRECT(\"a\" & (VLOOKUP(Rebalance!$D$63,$F$2:$G$48,2,FALSE)+ROW()-2)),\"\")","v":{"$error":"#N/A"}},{"$f":"IF(INDIRECT(\"c\" & (VLOOKUP(Rebalance!$D$64,$F$2:$G$48,2,FALSE)+ROW()-2))=Rebalance!$D$64,INDIRECT(\"a\" & (VLOOKUP(Rebalance!$D$64,$F$2:$G$48,2,FALSE)+ROW()-2)),\"\")","v":{"$error":"#N/A"}},{"$f":"IF(INDIRECT(\"c\" & (VLOOKUP(Rebalance!$D$65,$F$2:$G$48,2,FALSE)+ROW()-2))=Rebalance!$D$65,INDIRECT(\"a\" & (VLOOKUP(Rebalance!$D$65,$F$2:$G$48,2,FALSE)+ROW()-2)),\"\")","v":{"$error":"#N/A"}},{"$f":"IF(INDIRECT(\"c\" & (VLOOKUP(Rebalance!$D$66,$F$2:$G$48,2,FALSE)+ROW()-2))=Rebalance!$D$66,INDIRECT(\"a\" & (VLOOKUP(Rebalance!$D$66,$F$2:$G$48,2,FALSE)+ROW()-2)),\"\")","v":{"$error":"#N/A"}}]
["Momentum Focus 6 Fund of Funds A","MEGFA","Momentum Collective Investments Ltd",{"$f":"ROW()","v":337},null,null,{"$f":"VLOOKUP(F337,$C$2:$D$599,2,FALSE)","v":{"$error":"#N/A"}},{"$f":"IF(INDIRECT(\"c\" & (VLOOKUP(Rebalance!$D$26,$F$2:$G$48,2,FALSE)+ROW()-2))=Rebalance!$D$26,INDIRECT(\"a\" & (VLOOKUP(Rebalance!$D$26,$F$2:$G$48,2,FALSE)+ROW()-2)),\"\")","v":{"$error":"#N/A"}},{"$f":"IF(INDIRECT(\"c\" & (VLOOKUP(Rebalance!$D$27,$F$2:$G$48,2,FALSE)+ROW()-2))=Rebalance!$D$27,INDIRECT(\"a\" & (VLOOKUP(Rebalance!$D$27,$F$2:$G$48,2,FALSE)+ROW()-2)),\"\")","v":{"$error":"#N/A"}},{"$f":"IF(INDIRECT(\"c\" & (VLOOKUP(Rebalance!$D$28,$F$2:$G$48,2,FALSE)+ROW()-2))=Rebalance!$D$28,INDIRECT(\"a\" & (VLOOKUP(Rebalance!$D$28,$F$2:$G$48,2,FALSE)+ROW()-2)),\"\")","v":{"$error":"#N/A"}},{"$f":"IF(INDIRECT(\"c\" & (VLOOKUP(Rebalance!$D$29,$F$2:$G$48,2,FALSE)+ROW()-2))=Rebalance!$D$29,INDIRECT(\"a\" & (VLOOKUP(Rebalance!$D$29,$F$2:$G$48,2,FALSE)+ROW()-2)),\"\")","v":{"$error":"#N/A"}},{"$f":"IF(INDIRECT(\"c\" & (VLOOKUP(Rebalance!$D$30,$F$2:$G$48,2,FALSE)+ROW()-2))=Rebalance!$D$30,INDIRECT(\"a\" & (VLOOKUP(Rebalance!$D$30,$F$2:$G$48,2,FALSE)+ROW()-2)),\"\")","v":{"$error":"#N/A"}},{"$f":"IF(INDIRECT(\"c\" & (VLOOKUP(Rebalance!$D$31,$F$2:$G$48,2,FALSE)+ROW()-2))=Rebalance!$D$31,INDIRECT(\"a\" & (VLOOKUP(Rebalance!$D$31,$F$2:$G$48,2,FALSE)+ROW()-2)),\"\")","v":{"$error":"#N/A"}},{"$f":"IF(INDIRECT(\"c\" & (VLOOKUP(Rebalance!$D$32,$F$2:$G$48,2,FALSE)+ROW()-2))=Rebalance!$D$32,INDIRECT(\"a\" & (VLOOKUP(Rebalance!$D$32,$F$2:$G$48,2,FALSE)+ROW()-2)),\"\")","v":{"$error":"#N/A"}},{"$f":"IF(INDIRECT(\"c\" & (VLOOKUP(Rebalance!$D$33,$F$2:$G$48,2,FALSE)+ROW()-2))=Rebalance!$D$33,INDIRECT(\"a\" & (VLOOKUP(Rebalance!$D$33,$F$2:$G$48,2,FALSE)+ROW()-2)),\"\")","v":{"$error":"#N/A"}},{"$f":"IF(INDIRECT(\"c\" & (VLOOKUP(Rebalance!$D$34,$F$2:$G$48,2,FALSE)+ROW()-2))=Rebalance!$D$34,INDIRECT(\"a\" & (VLOOKUP(Rebalance!$D$34,$F$2:$G$48,2,FALSE)+ROW()-2)),\"\")","v":{"$error":"#N/A"}},{"$f":"IF(INDIRECT(\"c\" & (VLOOKUP(Rebalance!$D$35,$F$2:$G$48,2,FALSE)+ROW()-2))=Rebalance!$D$35,INDIRECT(\"a\" & (VLOOKUP(Rebalance!$D$35,$F$2:$G$48,2,FALSE)+ROW()-2)),\"\")","v":{"$error":"#N/A"}},{"$f":"IF(INDIRECT(\"c\" & (VLOOKUP(Rebalance!$D$36,$F$2:$G$48,2,FALSE)+ROW()-2))=Rebalance!$D$36,INDIRECT(\"a\" & (VLOOKUP(Rebalance!$D$36,$F$2:$G$48,2,FALSE)+ROW()-2)),\"\")","v":{"$error":"#N/A"}},{"$f":"IF(INDIRECT(\"c\" & (VLOOKUP(Rebalance!$D$37,$F$2:$G$48,2,FALSE)+ROW()-2))=Rebalance!$D$37,INDIRECT(\"a\" & (VLOOKUP(Rebalance!$D$37,$F$2:$G$48,2,FALSE)+ROW()-2)),\"\")","v":{"$error":"#N/A"}},{"$f":"IF(INDIRECT(\"c\" & (VLOOKUP(Rebalance!$D$38,$F$2:$G$48,2,FALSE)+ROW()-2))=Rebalance!$D$38,INDIRECT(\"a\" & (VLOOKUP(Rebalance!$D$38,$F$2:$G$48,2,FALSE)+ROW()-2)),\"\")","v":{"$error":"#N/A"}},{"$f":"IF(INDIRECT(\"c\" & (VLOOKUP(Rebalance!$D$39,$F$2:$G$48,2,FALSE)+ROW()-2))=Rebalance!$D$39,INDIRECT(\"a\" & (VLOOKUP(Rebalance!$D$39,$F$2:$G$48,2,FALSE)+ROW()-2)),\"\")","v":{"$error":"#N/A"}},{"$f":"IF(INDIRECT(\"c\" & (VLOOKUP(Rebalance!$D$40,$F$2:$G$48,2,FALSE)+ROW()-2))=Rebalance!$D$40,INDIRECT(\"a\" & (VLOOKUP(Rebalance!$D$40,$F$2:$G$48,2,FALSE)+ROW()-2)),\"\")","v":{"$error":"#N/A"}},{"$f":"IF(INDIRECT(\"c\" & (VLOOKUP(Rebalance!$D$52,$F$2:$G$48,2,FALSE)+ROW()-2))=Rebalance!$D$52,INDIRECT(\"a\" & (VLOOKUP(Rebalance!$D$52,$F$2:$G$48,2,FALSE)+ROW()-2)),\"\")","v":{"$error":"#N/A"}},{"$f":"IF(INDIRECT(\"c\" & (VLOOKUP(Rebalance!$D$53,$F$2:$G$48,2,FALSE)+ROW()-2))=Rebalance!$D$53,INDIRECT(\"a\" & (VLOOKUP(Rebalance!$D$53,$F$2:$G$48,2,FALSE)+ROW()-2)),\"\")","v":{"$error":"#N/A"}},{"$f":"IF(INDIRECT(\"c\" & (VLOOKUP(Rebalance!$D$54,$F$2:$G$48,2,FALSE)+ROW()-2))=Rebalance!$D$54,INDIRECT(\"a\" & (VLOOKUP(Rebalance!$D$54,$F$2:$G$48,2,FALSE)+ROW()-2)),\"\")","v":{"$error":"#N/A"}},{"$f":"IF(INDIRECT(\"c\" & (VLOOKUP(Rebalance!$D$55,$F$2:$G$48,2,FALSE)+ROW()-2))=Rebalance!$D$55,INDIRECT(\"a\" & (VLOOKUP(Rebalance!$D$55,$F$2:$G$48,2,FALSE)+ROW()-2)),\"\")","v":{"$error":"#N/A"}},{"$f":"IF(INDIRECT(\"c\" & (VLOOKUP(Rebalance!$D$56,$F$2:$G$48,2,FALSE)+ROW()-2))=Rebalance!$D$56,INDIRECT(\"a\" & (VLOOKUP(Rebalance!$D$56,$F$2:$G$48,2,FALSE)+ROW()-2)),\"\")","v":{"$error":"#N/A"}},{"$f":"IF(INDIRECT(\"c\" & (VLOOKUP(Rebalance!$D$57,$F$2:$G$48,2,FALSE)+ROW()-2))=Rebalance!$D$57,INDIRECT(\"a\" & (VLOOKUP(Rebalance!$D$57,$F$2:$G$48,2,FALSE)+ROW()-2)),\"\")","v":{"$error":"#N/A"}},{"$f":"IF(INDIRECT(\"c\" & (VLOOKUP(Rebalance!$D$58,$F$2:$G$48,2,FALSE)+ROW()-2))=Rebalance!$D$58,INDIRECT(\"a\" & (VLOOKUP(Rebalance!$D$58,$F$2:$G$48,2,FALSE)+ROW()-2)),\"\")","v":{"$error":"#N/A"}},{"$f":"IF(INDIRECT(\"c\" & (VLOOKUP(Rebalance!$D$59,$F$2:$G$48,2,FALSE)+ROW()-2))=Rebalance!$D$59,INDIRECT(\"a\" & (VLOOKUP(Rebalance!$D$59,$F$2:$G$48,2,FALSE)+ROW()-2)),\"\")","v":{"$error":"#N/A"}},{"$f":"IF(INDIRECT(\"c\" & (VLOOKUP(Rebalance!$D$60,$F$2:$G$48,2,FALSE)+ROW()-2))=Rebalance!$D$60,INDIRECT(\"a\" & (VLOOKUP(Rebalance!$D$60,$F$2:$G$48,2,FALSE)+ROW()-2)),\"\")","v":{"$error":"#N/A"}},{"$f":"IF(INDIRECT(\"c\" & (VLOOKUP(Rebalance!$D$61,$F$2:$G$48,2,FALSE)+ROW()-2))=Rebalance!$D$61,INDIRECT(\"a\" & (VLOOKUP(Rebalance!$D$61,$F$2:$G$48,2,FALSE)+ROW()-2)),\"\")","v":{"$error":"#N/A"}},{"$f":"IF(INDIRECT(\"c\" & (VLOOKUP(Rebalance!$D$62,$F$2:$G$48,2,FALSE)+ROW()-2))=Rebalance!$D$62,INDIRECT(\"a\" & (VLOOKUP(Rebalance!$D$62,$F$2:$G$48,2,FALSE)+ROW()-2)),\"\")","v":{"$error":"#N/A"}},{"$f":"IF(INDIRECT(\"c\" & (VLOOKUP(Rebalance!$D$63,$F$2:$G$48,2,FALSE)+ROW()-2))=Rebalance!$D$63,INDIRECT(\"a\" & (VLOOKUP(Rebalance!$D$63,$F$2:$G$48,2,FALSE)+ROW()-2)),\"\")","v":{"$error":"#N/A"}},{"$f":"IF(INDIRECT(\"c\" & (VLOOKUP(Rebalance!$D$64,$F$2:$G$48,2,FALSE)+ROW()-2))=Rebalance!$D$64,INDIRECT(\"a\" & (VLOOKUP(Rebalance!$D$64,$F$2:$G$48,2,FALSE)+ROW()-2)),\"\")","v":{"$error":"#N/A"}},{"$f":"IF(INDIRECT(\"c\" & (VLOOKUP(Rebalance!$D$65,$F$2:$G$48,2,FALSE)+ROW()-2))=Rebalance!$D$65,INDIRECT(\"a\" & (VLOOKUP(Rebalance!$D$65,$F$2:$G$48,2,FALSE)+ROW()-2)),\"\")","v":{"$error":"#N/A"}},{"$f":"IF(INDIRECT(\"c\" & (VLOOKUP(Rebalance!$D$66,$F$2:$G$48,2,FALSE)+ROW()-2))=Rebalance!$D$66,INDIRECT(\"a\" & (VLOOKUP(Rebalance!$D$66,$F$2:$G$48,2,FALSE)+ROW()-2)),\"\")","v":{"$error":"#N/A"}}]
["Momentum Focus 7 Fund of Funds B2","MOAB2","Momentum Collective Investments Ltd",{"$f":"ROW()","v":338},null,null,{"$f":"VLOOKUP(F338,$C$2:$D$599,2,FALSE)","v":{"$error":"#N/A"}},{"$f":"IF(INDIRECT(\"c\" & (VLOOKUP(Rebalance!$D$26,$F$2:$G$48,2,FALSE)+ROW()-2))=Rebalance!$D$26,INDIRECT(\"a\" & (VLOOKUP(Rebalance!$D$26,$F$2:$G$48,2,FALSE)+ROW()-2)),\"\")","v":{"$error":"#N/A"}},{"$f":"IF(INDIRECT(\"c\" & (VLOOKUP(Rebalance!$D$27,$F$2:$G$48,2,FALSE)+ROW()-2))=Rebalance!$D$27,INDIRECT(\"a\" & (VLOOKUP(Rebalance!$D$27,$F$2:$G$48,2,FALSE)+ROW()-2)),\"\")","v":{"$error":"#N/A"}},{"$f":"IF(INDIRECT(\"c\" & (VLOOKUP(Rebalance!$D$28,$F$2:$G$48,2,FALSE)+ROW()-2))=Rebalance!$D$28,INDIRECT(\"a\" & (VLOOKUP(Rebalance!$D$28,$F$2:$G$48,2,FALSE)+ROW()-2)),\"\")","v":{"$error":"#N/A"}},{"$f":"IF(INDIRECT(\"c\" & (VLOOKUP(Rebalance!$D$29,$F$2:$G$48,2,FALSE)+ROW()-2))=Rebalance!$D$29,INDIRECT(\"a\" & (VLOOKUP(Rebalance!$D$29,$F$2:$G$48,2,FALSE)+ROW()-2)),\"\")","v":{"$error":"#N/A"}},{"$f":"IF(INDIRECT(\"c\" & (VLOOKUP(Rebalance!$D$30,$F$2:$G$48,2,FALSE)+ROW()-2))=Rebalance!$D$30,INDIRECT(\"a\" & (VLOOKUP(Rebalance!$D$30,$F$2:$G$48,2,FALSE)+ROW()-2)),\"\")","v":{"$error":"#N/A"}},{"$f":"IF(INDIRECT(\"c\" & (VLOOKUP(Rebalance!$D$31,$F$2:$G$48,2,FALSE)+ROW()-2))=Rebalance!$D$31,INDIRECT(\"a\" & (VLOOKUP(Rebalance!$D$31,$F$2:$G$48,2,FALSE)+ROW()-2)),\"\")","v":{"$error":"#N/A"}},{"$f":"IF(INDIRECT(\"c\" & (VLOOKUP(Rebalance!$D$32,$F$2:$G$48,2,FALSE)+ROW()-2))=Rebalance!$D$32,INDIRECT(\"a\" & (VLOOKUP(Rebalance!$D$32,$F$2:$G$48,2,FALSE)+ROW()-2)),\"\")","v":{"$error":"#N/A"}},{"$f":"IF(INDIRECT(\"c\" & (VLOOKUP(Rebalance!$D$33,$F$2:$G$48,2,FALSE)+ROW()-2))=Rebalance!$D$33,INDIRECT(\"a\" & (VLOOKUP(Rebalance!$D$33,$F$2:$G$48,2,FALSE)+ROW()-2)),\"\")","v":{"$error":"#N/A"}},{"$f":"IF(INDIRECT(\"c\" & (VLOOKUP(Rebalance!$D$34,$F$2:$G$48,2,FALSE)+ROW()-2))=Rebalance!$D$34,INDIRECT(\"a\" & (VLOOKUP(Rebalance!$D$34,$F$2:$G$48,2,FALSE)+ROW()-2)),\"\")","v":{"$error":"#N/A"}},{"$f":"IF(INDIRECT(\"c\" & (VLOOKUP(Rebalance!$D$35,$F$2:$G$48,2,FALSE)+ROW()-2))=Rebalance!$D$35,INDIRECT(\"a\" & (VLOOKUP(Rebalance!$D$35,$F$2:$G$48,2,FALSE)+ROW()-2)),\"\")","v":{"$error":"#N/A"}},{"$f":"IF(INDIRECT(\"c\" & (VLOOKUP(Rebalance!$D$36,$F$2:$G$48,2,FALSE)+ROW()-2))=Rebalance!$D$36,INDIRECT(\"a\" & (VLOOKUP(Rebalance!$D$36,$F$2:$G$48,2,FALSE)+ROW()-2)),\"\")","v":{"$error":"#N/A"}},{"$f":"IF(INDIRECT(\"c\" & (VLOOKUP(Rebalance!$D$37,$F$2:$G$48,2,FALSE)+ROW()-2))=Rebalance!$D$37,INDIRECT(\"a\" & (VLOOKUP(Rebalance!$D$37,$F$2:$G$48,2,FALSE)+ROW()-2)),\"\")","v":{"$error":"#N/A"}},{"$f":"IF(INDIRECT(\"c\" & (VLOOKUP(Rebalance!$D$38,$F$2:$G$48,2,FALSE)+ROW()-2))=Rebalance!$D$38,INDIRECT(\"a\" & (VLOOKUP(Rebalance!$D$38,$F$2:$G$48,2,FALSE)+ROW()-2)),\"\")","v":{"$error":"#N/A"}},{"$f":"IF(INDIRECT(\"c\" & (VLOOKUP(Rebalance!$D$39,$F$2:$G$48,2,FALSE)+ROW()-2))=Rebalance!$D$39,INDIRECT(\"a\" & (VLOOKUP(Rebalance!$D$39,$F$2:$G$48,2,FALSE)+ROW()-2)),\"\")","v":{"$error":"#N/A"}},{"$f":"IF(INDIRECT(\"c\" & (VLOOKUP(Rebalance!$D$40,$F$2:$G$48,2,FALSE)+ROW()-2))=Rebalance!$D$40,INDIRECT(\"a\" & (VLOOKUP(Rebalance!$D$40,$F$2:$G$48,2,FALSE)+ROW()-2)),\"\")","v":{"$error":"#N/A"}},{"$f":"IF(INDIRECT(\"c\" & (VLOOKUP(Rebalance!$D$52,$F$2:$G$48,2,FALSE)+ROW()-2))=Rebalance!$D$52,INDIRECT(\"a\" & (VLOOKUP(Rebalance!$D$52,$F$2:$G$48,2,FALSE)+ROW()-2)),\"\")","v":{"$error":"#N/A"}},{"$f":"IF(INDIRECT(\"c\" & (VLOOKUP(Rebalance!$D$53,$F$2:$G$48,2,FALSE)+ROW()-2))=Rebalance!$D$53,INDIRECT(\"a\" & (VLOOKUP(Rebalance!$D$53,$F$2:$G$48,2,FALSE)+ROW()-2)),\"\")","v":{"$error":"#N/A"}},{"$f":"IF(INDIRECT(\"c\" & (VLOOKUP(Rebalance!$D$54,$F$2:$G$48,2,FALSE)+ROW()-2))=Rebalance!$D$54,INDIRECT(\"a\" & (VLOOKUP(Rebalance!$D$54,$F$2:$G$48,2,FALSE)+ROW()-2)),\"\")","v":{"$error":"#N/A"}},{"$f":"IF(INDIRECT(\"c\" & (VLOOKUP(Rebalance!$D$55,$F$2:$G$48,2,FALSE)+ROW()-2))=Rebalance!$D$55,INDIRECT(\"a\" & (VLOOKUP(Rebalance!$D$55,$F$2:$G$48,2,FALSE)+ROW()-2)),\"\")","v":{"$error":"#N/A"}},{"$f":"IF(INDIRECT(\"c\" & (VLOOKUP(Rebalance!$D$56,$F$2:$G$48,2,FALSE)+ROW()-2))=Rebalance!$D$56,INDIRECT(\"a\" & (VLOOKUP(Rebalance!$D$56,$F$2:$G$48,2,FALSE)+ROW()-2)),\"\")","v":{"$error":"#N/A"}},{"$f":"IF(INDIRECT(\"c\" & (VLOOKUP(Rebalance!$D$57,$F$2:$G$48,2,FALSE)+ROW()-2))=Rebalance!$D$57,INDIRECT(\"a\" & (VLOOKUP(Rebalance!$D$57,$F$2:$G$48,2,FALSE)+ROW()-2)),\"\")","v":{"$error":"#N/A"}},{"$f":"IF(INDIRECT(\"c\" & (VLOOKUP(Rebalance!$D$58,$F$2:$G$48,2,FALSE)+ROW()-2))=Rebalance!$D$58,INDIRECT(\"a\" & (VLOOKUP(Rebalance!$D$58,$F$2:$G$48,2,FALSE)+ROW()-2)),\"\")","v":{"$error":"#N/A"}},{"$f":"IF(INDIRECT(\"c\" & (VLOOKUP(Rebalance!$D$59,$F$2:$G$48,2,FALSE)+ROW()-2))=Rebalance!$D$59,INDIRECT(\"a\" & (VLOOKUP(Rebalance!$D$59,$F$2:$G$48,2,FALSE)+ROW()-2)),\"\")","v":{"$error":"#N/A"}},{"$f":"IF(INDIRECT(\"c\" & (VLOOKUP(Rebalance!$D$60,$F$2:$G$48,2,FALSE)+ROW()-2))=Rebalance!$D$60,INDIRECT(\"a\" & (VLOOKUP(Rebalance!$D$60,$F$2:$G$48,2,FALSE)+ROW()-2)),\"\")","v":{"$error":"#N/A"}},{"$f":"IF(INDIRECT(\"c\" & (VLOOKUP(Rebalance!$D$61,$F$2:$G$48,2,FALSE)+ROW()-2))=Rebalance!$D$61,INDIRECT(\"a\" & (VLOOKUP(Rebalance!$D$61,$F$2:$G$48,2,FALSE)+ROW()-2)),\"\")","v":{"$error":"#N/A"}},{"$f":"IF(INDIRECT(\"c\" & (VLOOKUP(Rebalance!$D$62,$F$2:$G$48,2,FALSE)+ROW()-2))=Rebalance!$D$62,INDIRECT(\"a\" & (VLOOKUP(Rebalance!$D$62,$F$2:$G$48,2,FALSE)+ROW()-2)),\"\")","v":{"$error":"#N/A"}},{"$f":"IF(INDIRECT(\"c\" & (VLOOKUP(Rebalance!$D$63,$F$2:$G$48,2,FALSE)+ROW()-2))=Rebalance!$D$63,INDIRECT(\"a\" & (VLOOKUP(Rebalance!$D$63,$F$2:$G$48,2,FALSE)+ROW()-2)),\"\")","v":{"$error":"#N/A"}},{"$f":"IF(INDIRECT(\"c\" & (VLOOKUP(Rebalance!$D$64,$F$2:$G$48,2,FALSE)+ROW()-2))=Rebalance!$D$64,INDIRECT(\"a\" & (VLOOKUP(Rebalance!$D$64,$F$2:$G$48,2,FALSE)+ROW()-2)),\"\")","v":{"$error":"#N/A"}},{"$f":"IF(INDIRECT(\"c\" & (VLOOKUP(Rebalance!$D$65,$F$2:$G$48,2,FALSE)+ROW()-2))=Rebalance!$D$65,INDIRECT(\"a\" & (VLOOKUP(Rebalance!$D$65,$F$2:$G$48,2,FALSE)+ROW()-2)),\"\")","v":{"$error":"#N/A"}},{"$f":"IF(INDIRECT(\"c\" & (VLOOKUP(Rebalance!$D$66,$F$2:$G$48,2,FALSE)+ROW()-2))=Rebalance!$D$66,INDIRECT(\"a\" & (VLOOKUP(Rebalance!$D$66,$F$2:$G$48,2,FALSE)+ROW()-2)),\"\")","v":{"$error":"#N/A"}}]
["Momentum Real Growth Equity Fund","MEME","Momentum Collective Investments Ltd",{"$f":"ROW()","v":339},null,null,{"$f":"VLOOKUP(F339,$C$2:$D$599,2,FALSE)","v":{"$error":"#N/A"}},{"$f":"IF(INDIRECT(\"c\" & (VLOOKUP(Rebalance!$D$26,$F$2:$G$48,2,FALSE)+ROW()-2))=Rebalance!$D$26,INDIRECT(\"a\" & (VLOOKUP(Rebalance!$D$26,$F$2:$G$48,2,FALSE)+ROW()-2)),\"\")","v":{"$error":"#N/A"}},{"$f":"IF(INDIRECT(\"c\" & (VLOOKUP(Rebalance!$D$27,$F$2:$G$48,2,FALSE)+ROW()-2))=Rebalance!$D$27,INDIRECT(\"a\" & (VLOOKUP(Rebalance!$D$27,$F$2:$G$48,2,FALSE)+ROW()-2)),\"\")","v":{"$error":"#N/A"}},{"$f":"IF(INDIRECT(\"c\" & (VLOOKUP(Rebalance!$D$28,$F$2:$G$48,2,FALSE)+ROW()-2))=Rebalance!$D$28,INDIRECT(\"a\" & (VLOOKUP(Rebalance!$D$28,$F$2:$G$48,2,FALSE)+ROW()-2)),\"\")","v":{"$error":"#N/A"}},{"$f":"IF(INDIRECT(\"c\" & (VLOOKUP(Rebalance!$D$29,$F$2:$G$48,2,FALSE)+ROW()-2))=Rebalance!$D$29,INDIRECT(\"a\" & (VLOOKUP(Rebalance!$D$29,$F$2:$G$48,2,FALSE)+ROW()-2)),\"\")","v":{"$error":"#N/A"}},{"$f":"IF(INDIRECT(\"c\" & (VLOOKUP(Rebalance!$D$30,$F$2:$G$48,2,FALSE)+ROW()-2))=Rebalance!$D$30,INDIRECT(\"a\" & (VLOOKUP(Rebalance!$D$30,$F$2:$G$48,2,FALSE)+ROW()-2)),\"\")","v":{"$error":"#N/A"}},{"$f":"IF(INDIRECT(\"c\" & (VLOOKUP(Rebalance!$D$31,$F$2:$G$48,2,FALSE)+ROW()-2))=Rebalance!$D$31,INDIRECT(\"a\" & (VLOOKUP(Rebalance!$D$31,$F$2:$G$48,2,FALSE)+ROW()-2)),\"\")","v":{"$error":"#N/A"}},{"$f":"IF(INDIRECT(\"c\" & (VLOOKUP(Rebalance!$D$32,$F$2:$G$48,2,FALSE)+ROW()-2))=Rebalance!$D$32,INDIRECT(\"a\" & (VLOOKUP(Rebalance!$D$32,$F$2:$G$48,2,FALSE)+ROW()-2)),\"\")","v":{"$error":"#N/A"}},{"$f":"IF(INDIRECT(\"c\" & (VLOOKUP(Rebalance!$D$33,$F$2:$G$48,2,FALSE)+ROW()-2))=Rebalance!$D$33,INDIRECT(\"a\" & (VLOOKUP(Rebalance!$D$33,$F$2:$G$48,2,FALSE)+ROW()-2)),\"\")","v":{"$error":"#N/A"}},{"$f":"IF(INDIRECT(\"c\" & (VLOOKUP(Rebalance!$D$34,$F$2:$G$48,2,FALSE)+ROW()-2))=Rebalance!$D$34,INDIRECT(\"a\" & (VLOOKUP(Rebalance!$D$34,$F$2:$G$48,2,FALSE)+ROW()-2)),\"\")","v":{"$error":"#N/A"}},{"$f":"IF(INDIRECT(\"c\" & (VLOOKUP(Rebalance!$D$35,$F$2:$G$48,2,FALSE)+ROW()-2))=Rebalance!$D$35,INDIRECT(\"a\" & (VLOOKUP(Rebalance!$D$35,$F$2:$G$48,2,FALSE)+ROW()-2)),\"\")","v":{"$error":"#N/A"}},{"$f":"IF(INDIRECT(\"c\" & (VLOOKUP(Rebalance!$D$36,$F$2:$G$48,2,FALSE)+ROW()-2))=Rebalance!$D$36,INDIRECT(\"a\" & (VLOOKUP(Rebalance!$D$36,$F$2:$G$48,2,FALSE)+ROW()-2)),\"\")","v":{"$error":"#N/A"}},{"$f":"IF(INDIRECT(\"c\" & (VLOOKUP(Rebalance!$D$37,$F$2:$G$48,2,FALSE)+ROW()-2))=Rebalance!$D$37,INDIRECT(\"a\" & (VLOOKUP(Rebalance!$D$37,$F$2:$G$48,2,FALSE)+ROW()-2)),\"\")","v":{"$error":"#N/A"}},{"$f":"IF(INDIRECT(\"c\" & (VLOOKUP(Rebalance!$D$38,$F$2:$G$48,2,FALSE)+ROW()-2))=Rebalance!$D$38,INDIRECT(\"a\" & (VLOOKUP(Rebalance!$D$38,$F$2:$G$48,2,FALSE)+ROW()-2)),\"\")","v":{"$error":"#N/A"}},{"$f":"IF(INDIRECT(\"c\" & (VLOOKUP(Rebalance!$D$39,$F$2:$G$48,2,FALSE)+ROW()-2))=Rebalance!$D$39,INDIRECT(\"a\" & (VLOOKUP(Rebalance!$D$39,$F$2:$G$48,2,FALSE)+ROW()-2)),\"\")","v":{"$error":"#N/A"}},{"$f":"IF(INDIRECT(\"c\" & (VLOOKUP(Rebalance!$D$40,$F$2:$G$48,2,FALSE)+ROW()-2))=Rebalance!$D$40,INDIRECT(\"a\" & (VLOOKUP(Rebalance!$D$40,$F$2:$G$48,2,FALSE)+ROW()-2)),\"\")","v":{"$error":"#N/A"}},{"$f":"IF(INDIRECT(\"c\" & (VLOOKUP(Rebalance!$D$52,$F$2:$G$48,2,FALSE)+ROW()-2))=Rebalance!$D$52,INDIRECT(\"a\" & (VLOOKUP(Rebalance!$D$52,$F$2:$G$48,2,FALSE)+ROW()-2)),\"\")","v":{"$error":"#N/A"}},{"$f":"IF(INDIRECT(\"c\" & (VLOOKUP(Rebalance!$D$53,$F$2:$G$48,2,FALSE)+ROW()-2))=Rebalance!$D$53,INDIRECT(\"a\" & (VLOOKUP(Rebalance!$D$53,$F$2:$G$48,2,FALSE)+ROW()-2)),\"\")","v":{"$error":"#N/A"}},{"$f":"IF(INDIRECT(\"c\" & (VLOOKUP(Rebalance!$D$54,$F$2:$G$48,2,FALSE)+ROW()-2))=Rebalance!$D$54,INDIRECT(\"a\" & (VLOOKUP(Rebalance!$D$54,$F$2:$G$48,2,FALSE)+ROW()-2)),\"\")","v":{"$error":"#N/A"}},{"$f":"IF(INDIRECT(\"c\" & (VLOOKUP(Rebalance!$D$55,$F$2:$G$48,2,FALSE)+ROW()-2))=Rebalance!$D$55,INDIRECT(\"a\" & (VLOOKUP(Rebalance!$D$55,$F$2:$G$48,2,FALSE)+ROW()-2)),\"\")","v":{"$error":"#N/A"}},{"$f":"IF(INDIRECT(\"c\" & (VLOOKUP(Rebalance!$D$56,$F$2:$G$48,2,FALSE)+ROW()-2))=Rebalance!$D$56,INDIRECT(\"a\" & (VLOOKUP(Rebalance!$D$56,$F$2:$G$48,2,FALSE)+ROW()-2)),\"\")","v":{"$error":"#N/A"}},{"$f":"IF(INDIRECT(\"c\" & (VLOOKUP(Rebalance!$D$57,$F$2:$G$48,2,FALSE)+ROW()-2))=Rebalance!$D$57,INDIRECT(\"a\" & (VLOOKUP(Rebalance!$D$57,$F$2:$G$48,2,FALSE)+ROW()-2)),\"\")","v":{"$error":"#N/A"}},{"$f":"IF(INDIRECT(\"c\" & (VLOOKUP(Rebalance!$D$58,$F$2:$G$48,2,FALSE)+ROW()-2))=Rebalance!$D$58,INDIRECT(\"a\" & (VLOOKUP(Rebalance!$D$58,$F$2:$G$48,2,FALSE)+ROW()-2)),\"\")","v":{"$error":"#N/A"}},{"$f":"IF(INDIRECT(\"c\" & (VLOOKUP(Rebalance!$D$59,$F$2:$G$48,2,FALSE)+ROW()-2))=Rebalance!$D$59,INDIRECT(\"a\" & (VLOOKUP(Rebalance!$D$59,$F$2:$G$48,2,FALSE)+ROW()-2)),\"\")","v":{"$error":"#N/A"}},{"$f":"IF(INDIRECT(\"c\" & (VLOOKUP(Rebalance!$D$60,$F$2:$G$48,2,FALSE)+ROW()-2))=Rebalance!$D$60,INDIRECT(\"a\" & (VLOOKUP(Rebalance!$D$60,$F$2:$G$48,2,FALSE)+ROW()-2)),\"\")","v":{"$error":"#N/A"}},{"$f":"IF(INDIRECT(\"c\" & (VLOOKUP(Rebalance!$D$61,$F$2:$G$48,2,FALSE)+ROW()-2))=Rebalance!$D$61,INDIRECT(\"a\" & (VLOOKUP(Rebalance!$D$61,$F$2:$G$48,2,FALSE)+ROW()-2)),\"\")","v":{"$error":"#N/A"}},{"$f":"IF(INDIRECT(\"c\" & (VLOOKUP(Rebalance!$D$62,$F$2:$G$48,2,FALSE)+ROW()-2))=Rebalance!$D$62,INDIRECT(\"a\" & (VLOOKUP(Rebalance!$D$62,$F$2:$G$48,2,FALSE)+ROW()-2)),\"\")","v":{"$error":"#N/A"}},{"$f":"IF(INDIRECT(\"c\" & (VLOOKUP(Rebalance!$D$63,$F$2:$G$48,2,FALSE)+ROW()-2))=Rebalance!$D$63,INDIRECT(\"a\" & (VLOOKUP(Rebalance!$D$63,$F$2:$G$48,2,FALSE)+ROW()-2)),\"\")","v":{"$error":"#N/A"}},{"$f":"IF(INDIRECT(\"c\" & (VLOOKUP(Rebalance!$D$64,$F$2:$G$48,2,FALSE)+ROW()-2))=Rebalance!$D$64,INDIRECT(\"a\" & (VLOOKUP(Rebalance!$D$64,$F$2:$G$48,2,FALSE)+ROW()-2)),\"\")","v":{"$error":"#N/A"}},{"$f":"IF(INDIRECT(\"c\" & (VLOOKUP(Rebalance!$D$65,$F$2:$G$48,2,FALSE)+ROW()-2))=Rebalance!$D$65,INDIRECT(\"a\" & (VLOOKUP(Rebalance!$D$65,$F$2:$G$48,2,FALSE)+ROW()-2)),\"\")","v":{"$error":"#N/A"}},{"$f":"IF(INDIRECT(\"c\" & (VLOOKUP(Rebalance!$D$66,$F$2:$G$48,2,FALSE)+ROW()-2))=Rebalance!$D$66,INDIRECT(\"a\" & (VLOOKUP(Rebalance!$D$66,$F$2:$G$48,2,FALSE)+ROW()-2)),\"\")","v":{"$error":"#N/A"}}]
["Momentum Financials Fund","RMFS","Momentum Collective Investments Ltd",{"$f":"ROW()","v":340},null,null,{"$f":"VLOOKUP(F340,$C$2:$D$599,2,FALSE)","v":{"$error":"#N/A"}},{"$f":"IF(INDIRECT(\"c\" & (VLOOKUP(Rebalance!$D$26,$F$2:$G$48,2,FALSE)+ROW()-2))=Rebalance!$D$26,INDIRECT(\"a\" & (VLOOKUP(Rebalance!$D$26,$F$2:$G$48,2,FALSE)+ROW()-2)),\"\")","v":{"$error":"#N/A"}},{"$f":"IF(INDIRECT(\"c\" & (VLOOKUP(Rebalance!$D$27,$F$2:$G$48,2,FALSE)+ROW()-2))=Rebalance!$D$27,INDIRECT(\"a\" & (VLOOKUP(Rebalance!$D$27,$F$2:$G$48,2,FALSE)+ROW()-2)),\"\")","v":{"$error":"#N/A"}},{"$f":"IF(INDIRECT(\"c\" & (VLOOKUP(Rebalance!$D$28,$F$2:$G$48,2,FALSE)+ROW()-2))=Rebalance!$D$28,INDIRECT(\"a\" & (VLOOKUP(Rebalance!$D$28,$F$2:$G$48,2,FALSE)+ROW()-2)),\"\")","v":{"$error":"#N/A"}},{"$f":"IF(INDIRECT(\"c\" & (VLOOKUP(Rebalance!$D$29,$F$2:$G$48,2,FALSE)+ROW()-2))=Rebalance!$D$29,INDIRECT(\"a\" & (VLOOKUP(Rebalance!$D$29,$F$2:$G$48,2,FALSE)+ROW()-2)),\"\")","v":{"$error":"#N/A"}},{"$f":"IF(INDIRECT(\"c\" & (VLOOKUP(Rebalance!$D$30,$F$2:$G$48,2,FALSE)+ROW()-2))=Rebalance!$D$30,INDIRECT(\"a\" & (VLOOKUP(Rebalance!$D$30,$F$2:$G$48,2,FALSE)+ROW()-2)),\"\")","v":{"$error":"#N/A"}},{"$f":"IF(INDIRECT(\"c\" & (VLOOKUP(Rebalance!$D$31,$F$2:$G$48,2,FALSE)+ROW()-2))=Rebalance!$D$31,INDIRECT(\"a\" & (VLOOKUP(Rebalance!$D$31,$F$2:$G$48,2,FALSE)+ROW()-2)),\"\")","v":{"$error":"#N/A"}},{"$f":"IF(INDIRECT(\"c\" & (VLOOKUP(Rebalance!$D$32,$F$2:$G$48,2,FALSE)+ROW()-2))=Rebalance!$D$32,INDIRECT(\"a\" & (VLOOKUP(Rebalance!$D$32,$F$2:$G$48,2,FALSE)+ROW()-2)),\"\")","v":{"$error":"#N/A"}},{"$f":"IF(INDIRECT(\"c\" & (VLOOKUP(Rebalance!$D$33,$F$2:$G$48,2,FALSE)+ROW()-2))=Rebalance!$D$33,INDIRECT(\"a\" & (VLOOKUP(Rebalance!$D$33,$F$2:$G$48,2,FALSE)+ROW()-2)),\"\")","v":{"$error":"#N/A"}},{"$f":"IF(INDIRECT(\"c\" & (VLOOKUP(Rebalance!$D$34,$F$2:$G$48,2,FALSE)+ROW()-2))=Rebalance!$D$34,INDIRECT(\"a\" & (VLOOKUP(Rebalance!$D$34,$F$2:$G$48,2,FALSE)+ROW()-2)),\"\")","v":{"$error":"#N/A"}},{"$f":"IF(INDIRECT(\"c\" & (VLOOKUP(Rebalance!$D$35,$F$2:$G$48,2,FALSE)+ROW()-2))=Rebalance!$D$35,INDIRECT(\"a\" & (VLOOKUP(Rebalance!$D$35,$F$2:$G$48,2,FALSE)+ROW()-2)),\"\")","v":{"$error":"#N/A"}},{"$f":"IF(INDIRECT(\"c\" & (VLOOKUP(Rebalance!$D$36,$F$2:$G$48,2,FALSE)+ROW()-2))=Rebalance!$D$36,INDIRECT(\"a\" & (VLOOKUP(Rebalance!$D$36,$F$2:$G$48,2,FALSE)+ROW()-2)),\"\")","v":{"$error":"#N/A"}},{"$f":"IF(INDIRECT(\"c\" & (VLOOKUP(Rebalance!$D$37,$F$2:$G$48,2,FALSE)+ROW()-2))=Rebalance!$D$37,INDIRECT(\"a\" & (VLOOKUP(Rebalance!$D$37,$F$2:$G$48,2,FALSE)+ROW()-2)),\"\")","v":{"$error":"#N/A"}},{"$f":"IF(INDIRECT(\"c\" & (VLOOKUP(Rebalance!$D$38,$F$2:$G$48,2,FALSE)+ROW()-2))=Rebalance!$D$38,INDIRECT(\"a\" & (VLOOKUP(Rebalance!$D$38,$F$2:$G$48,2,FALSE)+ROW()-2)),\"\")","v":{"$error":"#N/A"}},{"$f":"IF(INDIRECT(\"c\" & (VLOOKUP(Rebalance!$D$39,$F$2:$G$48,2,FALSE)+ROW()-2))=Rebalance!$D$39,INDIRECT(\"a\" & (VLOOKUP(Rebalance!$D$39,$F$2:$G$48,2,FALSE)+ROW()-2)),\"\")","v":{"$error":"#N/A"}},{"$f":"IF(INDIRECT(\"c\" & (VLOOKUP(Rebalance!$D$40,$F$2:$G$48,2,FALSE)+ROW()-2))=Rebalance!$D$40,INDIRECT(\"a\" & (VLOOKUP(Rebalance!$D$40,$F$2:$G$48,2,FALSE)+ROW()-2)),\"\")","v":{"$error":"#N/A"}},{"$f":"IF(INDIRECT(\"c\" & (VLOOKUP(Rebalance!$D$52,$F$2:$G$48,2,FALSE)+ROW()-2))=Rebalance!$D$52,INDIRECT(\"a\" & (VLOOKUP(Rebalance!$D$52,$F$2:$G$48,2,FALSE)+ROW()-2)),\"\")","v":{"$error":"#N/A"}},{"$f":"IF(INDIRECT(\"c\" & (VLOOKUP(Rebalance!$D$53,$F$2:$G$48,2,FALSE)+ROW()-2))=Rebalance!$D$53,INDIRECT(\"a\" & (VLOOKUP(Rebalance!$D$53,$F$2:$G$48,2,FALSE)+ROW()-2)),\"\")","v":{"$error":"#N/A"}},{"$f":"IF(INDIRECT(\"c\" & (VLOOKUP(Rebalance!$D$54,$F$2:$G$48,2,FALSE)+ROW()-2))=Rebalance!$D$54,INDIRECT(\"a\" & (VLOOKUP(Rebalance!$D$54,$F$2:$G$48,2,FALSE)+ROW()-2)),\"\")","v":{"$error":"#N/A"}},{"$f":"IF(INDIRECT(\"c\" & (VLOOKUP(Rebalance!$D$55,$F$2:$G$48,2,FALSE)+ROW()-2))=Rebalance!$D$55,INDIRECT(\"a\" & (VLOOKUP(Rebalance!$D$55,$F$2:$G$48,2,FALSE)+ROW()-2)),\"\")","v":{"$error":"#N/A"}},{"$f":"IF(INDIRECT(\"c\" & (VLOOKUP(Rebalance!$D$56,$F$2:$G$48,2,FALSE)+ROW()-2))=Rebalance!$D$56,INDIRECT(\"a\" & (VLOOKUP(Rebalance!$D$56,$F$2:$G$48,2,FALSE)+ROW()-2)),\"\")","v":{"$error":"#N/A"}},{"$f":"IF(INDIRECT(\"c\" & (VLOOKUP(Rebalance!$D$57,$F$2:$G$48,2,FALSE)+ROW()-2))=Rebalance!$D$57,INDIRECT(\"a\" & (VLOOKUP(Rebalance!$D$57,$F$2:$G$48,2,FALSE)+ROW()-2)),\"\")","v":{"$error":"#N/A"}},{"$f":"IF(INDIRECT(\"c\" & (VLOOKUP(Rebalance!$D$58,$F$2:$G$48,2,FALSE)+ROW()-2))=Rebalance!$D$58,INDIRECT(\"a\" & (VLOOKUP(Rebalance!$D$58,$F$2:$G$48,2,FALSE)+ROW()-2)),\"\")","v":{"$error":"#N/A"}},{"$f":"IF(INDIRECT(\"c\" & (VLOOKUP(Rebalance!$D$59,$F$2:$G$48,2,FALSE)+ROW()-2))=Rebalance!$D$59,INDIRECT(\"a\" & (VLOOKUP(Rebalance!$D$59,$F$2:$G$48,2,FALSE)+ROW()-2)),\"\")","v":{"$error":"#N/A"}},{"$f":"IF(INDIRECT(\"c\" & (VLOOKUP(Rebalance!$D$60,$F$2:$G$48,2,FALSE)+ROW()-2))=Rebalance!$D$60,INDIRECT(\"a\" & (VLOOKUP(Rebalance!$D$60,$F$2:$G$48,2,FALSE)+ROW()-2)),\"\")","v":{"$error":"#N/A"}},{"$f":"IF(INDIRECT(\"c\" & (VLOOKUP(Rebalance!$D$61,$F$2:$G$48,2,FALSE)+ROW()-2))=Rebalance!$D$61,INDIRECT(\"a\" & (VLOOKUP(Rebalance!$D$61,$F$2:$G$48,2,FALSE)+ROW()-2)),\"\")","v":{"$error":"#N/A"}},{"$f":"IF(INDIRECT(\"c\" & (VLOOKUP(Rebalance!$D$62,$F$2:$G$48,2,FALSE)+ROW()-2))=Rebalance!$D$62,INDIRECT(\"a\" & (VLOOKUP(Rebalance!$D$62,$F$2:$G$48,2,FALSE)+ROW()-2)),\"\")","v":{"$error":"#N/A"}},{"$f":"IF(INDIRECT(\"c\" & (VLOOKUP(Rebalance!$D$63,$F$2:$G$48,2,FALSE)+ROW()-2))=Rebalance!$D$63,INDIRECT(\"a\" & (VLOOKUP(Rebalance!$D$63,$F$2:$G$48,2,FALSE)+ROW()-2)),\"\")","v":{"$error":"#N/A"}},{"$f":"IF(INDIRECT(\"c\" & (VLOOKUP(Rebalance!$D$64,$F$2:$G$48,2,FALSE)+ROW()-2))=Rebalance!$D$64,INDIRECT(\"a\" & (VLOOKUP(Rebalance!$D$64,$F$2:$G$48,2,FALSE)+ROW()-2)),\"\")","v":{"$error":"#N/A"}},{"$f":"IF(INDIRECT(\"c\" & (VLOOKUP(Rebalance!$D$65,$F$2:$G$48,2,FALSE)+ROW()-2))=Rebalance!$D$65,INDIRECT(\"a\" & (VLOOKUP(Rebalance!$D$65,$F$2:$G$48,2,FALSE)+ROW()-2)),\"\")","v":{"$error":"#N/A"}},{"$f":"IF(INDIRECT(\"c\" & (VLOOKUP(Rebalance!$D$66,$F$2:$G$48,2,FALSE)+ROW()-2))=Rebalance!$D$66,INDIRECT(\"a\" & (VLOOKUP(Rebalance!$D$66,$F$2:$G$48,2,FALSE)+ROW()-2)),\"\")","v":{"$error":"#N/A"}}]
["Momentum Flexible Fund","RMHT","Momentum Collective Investments Ltd",{"$f":"ROW()","v":341},null,null,{"$f":"VLOOKUP(F341,$C$2:$D$599,2,FALSE)","v":{"$error":"#N/A"}},{"$f":"IF(INDIRECT(\"c\" & (VLOOKUP(Rebalance!$D$26,$F$2:$G$48,2,FALSE)+ROW()-2))=Rebalance!$D$26,INDIRECT(\"a\" & (VLOOKUP(Rebalance!$D$26,$F$2:$G$48,2,FALSE)+ROW()-2)),\"\")","v":{"$error":"#N/A"}},{"$f":"IF(INDIRECT(\"c\" & (VLOOKUP(Rebalance!$D$27,$F$2:$G$48,2,FALSE)+ROW()-2))=Rebalance!$D$27,INDIRECT(\"a\" & (VLOOKUP(Rebalance!$D$27,$F$2:$G$48,2,FALSE)+ROW()-2)),\"\")","v":{"$error":"#N/A"}},{"$f":"IF(INDIRECT(\"c\" & (VLOOKUP(Rebalance!$D$28,$F$2:$G$48,2,FALSE)+ROW()-2))=Rebalance!$D$28,INDIRECT(\"a\" & (VLOOKUP(Rebalance!$D$28,$F$2:$G$48,2,FALSE)+ROW()-2)),\"\")","v":{"$error":"#N/A"}},{"$f":"IF(INDIRECT(\"c\" & (VLOOKUP(Rebalance!$D$29,$F$2:$G$48,2,FALSE)+ROW()-2))=Rebalance!$D$29,INDIRECT(\"a\" & (VLOOKUP(Rebalance!$D$29,$F$2:$G$48,2,FALSE)+ROW()-2)),\"\")","v":{"$error":"#N/A"}},{"$f":"IF(INDIRECT(\"c\" & (VLOOKUP(Rebalance!$D$30,$F$2:$G$48,2,FALSE)+ROW()-2))=Rebalance!$D$30,INDIRECT(\"a\" & (VLOOKUP(Rebalance!$D$30,$F$2:$G$48,2,FALSE)+ROW()-2)),\"\")","v":{"$error":"#N/A"}},{"$f":"IF(INDIRECT(\"c\" & (VLOOKUP(Rebalance!$D$31,$F$2:$G$48,2,FALSE)+ROW()-2))=Rebalance!$D$31,INDIRECT(\"a\" & (VLOOKUP(Rebalance!$D$31,$F$2:$G$48,2,FALSE)+ROW()-2)),\"\")","v":{"$error":"#N/A"}},{"$f":"IF(INDIRECT(\"c\" & (VLOOKUP(Rebalance!$D$32,$F$2:$G$48,2,FALSE)+ROW()-2))=Rebalance!$D$32,INDIRECT(\"a\" & (VLOOKUP(Rebalance!$D$32,$F$2:$G$48,2,FALSE)+ROW()-2)),\"\")","v":{"$error":"#N/A"}},{"$f":"IF(INDIRECT(\"c\" & (VLOOKUP(Rebalance!$D$33,$F$2:$G$48,2,FALSE)+ROW()-2))=Rebalance!$D$33,INDIRECT(\"a\" & (VLOOKUP(Rebalance!$D$33,$F$2:$G$48,2,FALSE)+ROW()-2)),\"\")","v":{"$error":"#N/A"}},{"$f":"IF(INDIRECT(\"c\" & (VLOOKUP(Rebalance!$D$34,$F$2:$G$48,2,FALSE)+ROW()-2))=Rebalance!$D$34,INDIRECT(\"a\" & (VLOOKUP(Rebalance!$D$34,$F$2:$G$48,2,FALSE)+ROW()-2)),\"\")","v":{"$error":"#N/A"}},{"$f":"IF(INDIRECT(\"c\" & (VLOOKUP(Rebalance!$D$35,$F$2:$G$48,2,FALSE)+ROW()-2))=Rebalance!$D$35,INDIRECT(\"a\" & (VLOOKUP(Rebalance!$D$35,$F$2:$G$48,2,FALSE)+ROW()-2)),\"\")","v":{"$error":"#N/A"}},{"$f":"IF(INDIRECT(\"c\" & (VLOOKUP(Rebalance!$D$36,$F$2:$G$48,2,FALSE)+ROW()-2))=Rebalance!$D$36,INDIRECT(\"a\" & (VLOOKUP(Rebalance!$D$36,$F$2:$G$48,2,FALSE)+ROW()-2)),\"\")","v":{"$error":"#N/A"}},{"$f":"IF(INDIRECT(\"c\" & (VLOOKUP(Rebalance!$D$37,$F$2:$G$48,2,FALSE)+ROW()-2))=Rebalance!$D$37,INDIRECT(\"a\" & (VLOOKUP(Rebalance!$D$37,$F$2:$G$48,2,FALSE)+ROW()-2)),\"\")","v":{"$error":"#N/A"}},{"$f":"IF(INDIRECT(\"c\" & (VLOOKUP(Rebalance!$D$38,$F$2:$G$48,2,FALSE)+ROW()-2))=Rebalance!$D$38,INDIRECT(\"a\" & (VLOOKUP(Rebalance!$D$38,$F$2:$G$48,2,FALSE)+ROW()-2)),\"\")","v":{"$error":"#N/A"}},{"$f":"IF(INDIRECT(\"c\" & (VLOOKUP(Rebalance!$D$39,$F$2:$G$48,2,FALSE)+ROW()-2))=Rebalance!$D$39,INDIRECT(\"a\" & (VLOOKUP(Rebalance!$D$39,$F$2:$G$48,2,FALSE)+ROW()-2)),\"\")","v":{"$error":"#N/A"}},{"$f":"IF(INDIRECT(\"c\" & (VLOOKUP(Rebalance!$D$40,$F$2:$G$48,2,FALSE)+ROW()-2))=Rebalance!$D$40,INDIRECT(\"a\" & (VLOOKUP(Rebalance!$D$40,$F$2:$G$48,2,FALSE)+ROW()-2)),\"\")","v":{"$error":"#N/A"}},{"$f":"IF(INDIRECT(\"c\" & (VLOOKUP(Rebalance!$D$52,$F$2:$G$48,2,FALSE)+ROW()-2))=Rebalance!$D$52,INDIRECT(\"a\" & (VLOOKUP(Rebalance!$D$52,$F$2:$G$48,2,FALSE)+ROW()-2)),\"\")","v":{"$error":"#N/A"}},{"$f":"IF(INDIRECT(\"c\" & (VLOOKUP(Rebalance!$D$53,$F$2:$G$48,2,FALSE)+ROW()-2))=Rebalance!$D$53,INDIRECT(\"a\" & (VLOOKUP(Rebalance!$D$53,$F$2:$G$48,2,FALSE)+ROW()-2)),\"\")","v":{"$error":"#N/A"}},{"$f":"IF(INDIRECT(\"c\" & (VLOOKUP(Rebalance!$D$54,$F$2:$G$48,2,FALSE)+ROW()-2))=Rebalance!$D$54,INDIRECT(\"a\" & (VLOOKUP(Rebalance!$D$54,$F$2:$G$48,2,FALSE)+ROW()-2)),\"\")","v":{"$error":"#N/A"}},{"$f":"IF(INDIRECT(\"c\" & (VLOOKUP(Rebalance!$D$55,$F$2:$G$48,2,FALSE)+ROW()-2))=Rebalance!$D$55,INDIRECT(\"a\" & (VLOOKUP(Rebalance!$D$55,$F$2:$G$48,2,FALSE)+ROW()-2)),\"\")","v":{"$error":"#N/A"}},{"$f":"IF(INDIRECT(\"c\" & (VLOOKUP(Rebalance!$D$56,$F$2:$G$48,2,FALSE)+ROW()-2))=Rebalance!$D$56,INDIRECT(\"a\" & (VLOOKUP(Rebalance!$D$56,$F$2:$G$48,2,FALSE)+ROW()-2)),\"\")","v":{"$error":"#N/A"}},{"$f":"IF(INDIRECT(\"c\" & (VLOOKUP(Rebalance!$D$57,$F$2:$G$48,2,FALSE)+ROW()-2))=Rebalance!$D$57,INDIRECT(\"a\" & (VLOOKUP(Rebalance!$D$57,$F$2:$G$48,2,FALSE)+ROW()-2)),\"\")","v":{"$error":"#N/A"}},{"$f":"IF(INDIRECT(\"c\" & (VLOOKUP(Rebalance!$D$58,$F$2:$G$48,2,FALSE)+ROW()-2))=Rebalance!$D$58,INDIRECT(\"a\" & (VLOOKUP(Rebalance!$D$58,$F$2:$G$48,2,FALSE)+ROW()-2)),\"\")","v":{"$error":"#N/A"}},{"$f":"IF(INDIRECT(\"c\" & (VLOOKUP(Rebalance!$D$59,$F$2:$G$48,2,FALSE)+ROW()-2))=Rebalance!$D$59,INDIRECT(\"a\" & (VLOOKUP(Rebalance!$D$59,$F$2:$G$48,2,FALSE)+ROW()-2)),\"\")","v":{"$error":"#N/A"}},{"$f":"IF(INDIRECT(\"c\" & (VLOOKUP(Rebalance!$D$60,$F$2:$G$48,2,FALSE)+ROW()-2))=Rebalance!$D$60,INDIRECT(\"a\" & (VLOOKUP(Rebalance!$D$60,$F$2:$G$48,2,FALSE)+ROW()-2)),\"\")","v":{"$error":"#N/A"}},{"$f":"IF(INDIRECT(\"c\" & (VLOOKUP(Rebalance!$D$61,$F$2:$G$48,2,FALSE)+ROW()-2))=Rebalance!$D$61,INDIRECT(\"a\" & (VLOOKUP(Rebalance!$D$61,$F$2:$G$48,2,FALSE)+ROW()-2)),\"\")","v":{"$error":"#N/A"}},{"$f":"IF(INDIRECT(\"c\" & (VLOOKUP(Rebalance!$D$62,$F$2:$G$48,2,FALSE)+ROW()-2))=Rebalance!$D$62,INDIRECT(\"a\" & (VLOOKUP(Rebalance!$D$62,$F$2:$G$48,2,FALSE)+ROW()-2)),\"\")","v":{"$error":"#N/A"}},{"$f":"IF(INDIRECT(\"c\" & (VLOOKUP(Rebalance!$D$63,$F$2:$G$48,2,FALSE)+ROW()-2))=Rebalance!$D$63,INDIRECT(\"a\" & (VLOOKUP(Rebalance!$D$63,$F$2:$G$48,2,FALSE)+ROW()-2)),\"\")","v":{"$error":"#N/A"}},{"$f":"IF(INDIRECT(\"c\" & (VLOOKUP(Rebalance!$D$64,$F$2:$G$48,2,FALSE)+ROW()-2))=Rebalance!$D$64,INDIRECT(\"a\" & (VLOOKUP(Rebalance!$D$64,$F$2:$G$48,2,FALSE)+ROW()-2)),\"\")","v":{"$error":"#N/A"}},{"$f":"IF(INDIRECT(\"c\" & (VLOOKUP(Rebalance!$D$65,$F$2:$G$48,2,FALSE)+ROW()-2))=Rebalance!$D$65,INDIRECT(\"a\" & (VLOOKUP(Rebalance!$D$65,$F$2:$G$48,2,FALSE)+ROW()-2)),\"\")","v":{"$error":"#N/A"}},{"$f":"IF(INDIRECT(\"c\" & (VLOOKUP(Rebalance!$D$66,$F$2:$G$48,2,FALSE)+ROW()-2))=Rebalance!$D$66,INDIRECT(\"a\" & (VLOOKUP(Rebalance!$D$66,$F$2:$G$48,2,FALSE)+ROW()-2)),\"\")","v":{"$error":"#N/A"}}]
["Momentum Income Plus Fund A","MIPB7","Momentum Collective Investments Ltd",{"$f":"ROW()","v":342},null,null,{"$f":"VLOOKUP(F342,$C$2:$D$599,2,FALSE)","v":{"$error":"#N/A"}},{"$f":"IF(INDIRECT(\"c\" & (VLOOKUP(Rebalance!$D$26,$F$2:$G$48,2,FALSE)+ROW()-2))=Rebalance!$D$26,INDIRECT(\"a\" & (VLOOKUP(Rebalance!$D$26,$F$2:$G$48,2,FALSE)+ROW()-2)),\"\")","v":{"$error":"#N/A"}},{"$f":"IF(INDIRECT(\"c\" & (VLOOKUP(Rebalance!$D$27,$F$2:$G$48,2,FALSE)+ROW()-2))=Rebalance!$D$27,INDIRECT(\"a\" & (VLOOKUP(Rebalance!$D$27,$F$2:$G$48,2,FALSE)+ROW()-2)),\"\")","v":{"$error":"#N/A"}},{"$f":"IF(INDIRECT(\"c\" & (VLOOKUP(Rebalance!$D$28,$F$2:$G$48,2,FALSE)+ROW()-2))=Rebalance!$D$28,INDIRECT(\"a\" & (VLOOKUP(Rebalance!$D$28,$F$2:$G$48,2,FALSE)+ROW()-2)),\"\")","v":{"$error":"#N/A"}},{"$f":"IF(INDIRECT(\"c\" & (VLOOKUP(Rebalance!$D$29,$F$2:$G$48,2,FALSE)+ROW()-2))=Rebalance!$D$29,INDIRECT(\"a\" & (VLOOKUP(Rebalance!$D$29,$F$2:$G$48,2,FALSE)+ROW()-2)),\"\")","v":{"$error":"#N/A"}},{"$f":"IF(INDIRECT(\"c\" & (VLOOKUP(Rebalance!$D$30,$F$2:$G$48,2,FALSE)+ROW()-2))=Rebalance!$D$30,INDIRECT(\"a\" & (VLOOKUP(Rebalance!$D$30,$F$2:$G$48,2,FALSE)+ROW()-2)),\"\")","v":{"$error":"#N/A"}},{"$f":"IF(INDIRECT(\"c\" & (VLOOKUP(Rebalance!$D$31,$F$2:$G$48,2,FALSE)+ROW()-2))=Rebalance!$D$31,INDIRECT(\"a\" & (VLOOKUP(Rebalance!$D$31,$F$2:$G$48,2,FALSE)+ROW()-2)),\"\")","v":{"$error":"#N/A"}},{"$f":"IF(INDIRECT(\"c\" & (VLOOKUP(Rebalance!$D$32,$F$2:$G$48,2,FALSE)+ROW()-2))=Rebalance!$D$32,INDIRECT(\"a\" & (VLOOKUP(Rebalance!$D$32,$F$2:$G$48,2,FALSE)+ROW()-2)),\"\")","v":{"$error":"#N/A"}},{"$f":"IF(INDIRECT(\"c\" & (VLOOKUP(Rebalance!$D$33,$F$2:$G$48,2,FALSE)+ROW()-2))=Rebalance!$D$33,INDIRECT(\"a\" & (VLOOKUP(Rebalance!$D$33,$F$2:$G$48,2,FALSE)+ROW()-2)),\"\")","v":{"$error":"#N/A"}},{"$f":"IF(INDIRECT(\"c\" & (VLOOKUP(Rebalance!$D$34,$F$2:$G$48,2,FALSE)+ROW()-2))=Rebalance!$D$34,INDIRECT(\"a\" & (VLOOKUP(Rebalance!$D$34,$F$2:$G$48,2,FALSE)+ROW()-2)),\"\")","v":{"$error":"#N/A"}},{"$f":"IF(INDIRECT(\"c\" & (VLOOKUP(Rebalance!$D$35,$F$2:$G$48,2,FALSE)+ROW()-2))=Rebalance!$D$35,INDIRECT(\"a\" & (VLOOKUP(Rebalance!$D$35,$F$2:$G$48,2,FALSE)+ROW()-2)),\"\")","v":{"$error":"#N/A"}},{"$f":"IF(INDIRECT(\"c\" & (VLOOKUP(Rebalance!$D$36,$F$2:$G$48,2,FALSE)+ROW()-2))=Rebalance!$D$36,INDIRECT(\"a\" & (VLOOKUP(Rebalance!$D$36,$F$2:$G$48,2,FALSE)+ROW()-2)),\"\")","v":{"$error":"#N/A"}},{"$f":"IF(INDIRECT(\"c\" & (VLOOKUP(Rebalance!$D$37,$F$2:$G$48,2,FALSE)+ROW()-2))=Rebalance!$D$37,INDIRECT(\"a\" & (VLOOKUP(Rebalance!$D$37,$F$2:$G$48,2,FALSE)+ROW()-2)),\"\")","v":{"$error":"#N/A"}},{"$f":"IF(INDIRECT(\"c\" & (VLOOKUP(Rebalance!$D$38,$F$2:$G$48,2,FALSE)+ROW()-2))=Rebalance!$D$38,INDIRECT(\"a\" & (VLOOKUP(Rebalance!$D$38,$F$2:$G$48,2,FALSE)+ROW()-2)),\"\")","v":{"$error":"#N/A"}},{"$f":"IF(INDIRECT(\"c\" & (VLOOKUP(Rebalance!$D$39,$F$2:$G$48,2,FALSE)+ROW()-2))=Rebalance!$D$39,INDIRECT(\"a\" & (VLOOKUP(Rebalance!$D$39,$F$2:$G$48,2,FALSE)+ROW()-2)),\"\")","v":{"$error":"#N/A"}},{"$f":"IF(INDIRECT(\"c\" & (VLOOKUP(Rebalance!$D$40,$F$2:$G$48,2,FALSE)+ROW()-2))=Rebalance!$D$40,INDIRECT(\"a\" & (VLOOKUP(Rebalance!$D$40,$F$2:$G$48,2,FALSE)+ROW()-2)),\"\")","v":{"$error":"#N/A"}},{"$f":"IF(INDIRECT(\"c\" & (VLOOKUP(Rebalance!$D$52,$F$2:$G$48,2,FALSE)+ROW()-2))=Rebalance!$D$52,INDIRECT(\"a\" & (VLOOKUP(Rebalance!$D$52,$F$2:$G$48,2,FALSE)+ROW()-2)),\"\")","v":{"$error":"#N/A"}},{"$f":"IF(INDIRECT(\"c\" & (VLOOKUP(Rebalance!$D$53,$F$2:$G$48,2,FALSE)+ROW()-2))=Rebalance!$D$53,INDIRECT(\"a\" & (VLOOKUP(Rebalance!$D$53,$F$2:$G$48,2,FALSE)+ROW()-2)),\"\")","v":{"$error":"#N/A"}},{"$f":"IF(INDIRECT(\"c\" & (VLOOKUP(Rebalance!$D$54,$F$2:$G$48,2,FALSE)+ROW()-2))=Rebalance!$D$54,INDIRECT(\"a\" & (VLOOKUP(Rebalance!$D$54,$F$2:$G$48,2,FALSE)+ROW()-2)),\"\")","v":{"$error":"#N/A"}},{"$f":"IF(INDIRECT(\"c\" & (VLOOKUP(Rebalance!$D$55,$F$2:$G$48,2,FALSE)+ROW()-2))=Rebalance!$D$55,INDIRECT(\"a\" & (VLOOKUP(Rebalance!$D$55,$F$2:$G$48,2,FALSE)+ROW()-2)),\"\")","v":{"$error":"#N/A"}},{"$f":"IF(INDIRECT(\"c\" & (VLOOKUP(Rebalance!$D$56,$F$2:$G$48,2,FALSE)+ROW()-2))=Rebalance!$D$56,INDIRECT(\"a\" & (VLOOKUP(Rebalance!$D$56,$F$2:$G$48,2,FALSE)+ROW()-2)),\"\")","v":{"$error":"#N/A"}},{"$f":"IF(INDIRECT(\"c\" & (VLOOKUP(Rebalance!$D$57,$F$2:$G$48,2,FALSE)+ROW()-2))=Rebalance!$D$57,INDIRECT(\"a\" & (VLOOKUP(Rebalance!$D$57,$F$2:$G$48,2,FALSE)+ROW()-2)),\"\")","v":{"$error":"#N/A"}},{"$f":"IF(INDIRECT(\"c\" & (VLOOKUP(Rebalance!$D$58,$F$2:$G$48,2,FALSE)+ROW()-2))=Rebalance!$D$58,INDIRECT(\"a\" & (VLOOKUP(Rebalance!$D$58,$F$2:$G$48,2,FALSE)+ROW()-2)),\"\")","v":{"$error":"#N/A"}},{"$f":"IF(INDIRECT(\"c\" & (VLOOKUP(Rebalance!$D$59,$F$2:$G$48,2,FALSE)+ROW()-2))=Rebalance!$D$59,INDIRECT(\"a\" & (VLOOKUP(Rebalance!$D$59,$F$2:$G$48,2,FALSE)+ROW()-2)),\"\")","v":{"$error":"#N/A"}},{"$f":"IF(INDIRECT(\"c\" & (VLOOKUP(Rebalance!$D$60,$F$2:$G$48,2,FALSE)+ROW()-2))=Rebalance!$D$60,INDIRECT(\"a\" & (VLOOKUP(Rebalance!$D$60,$F$2:$G$48,2,FALSE)+ROW()-2)),\"\")","v":{"$error":"#N/A"}},{"$f":"IF(INDIRECT(\"c\" & (VLOOKUP(Rebalance!$D$61,$F$2:$G$48,2,FALSE)+ROW()-2))=Rebalance!$D$61,INDIRECT(\"a\" & (VLOOKUP(Rebalance!$D$61,$F$2:$G$48,2,FALSE)+ROW()-2)),\"\")","v":{"$error":"#N/A"}},{"$f":"IF(INDIRECT(\"c\" & (VLOOKUP(Rebalance!$D$62,$F$2:$G$48,2,FALSE)+ROW()-2))=Rebalance!$D$62,INDIRECT(\"a\" & (VLOOKUP(Rebalance!$D$62,$F$2:$G$48,2,FALSE)+ROW()-2)),\"\")","v":{"$error":"#N/A"}},{"$f":"IF(INDIRECT(\"c\" & (VLOOKUP(Rebalance!$D$63,$F$2:$G$48,2,FALSE)+ROW()-2))=Rebalance!$D$63,INDIRECT(\"a\" & (VLOOKUP(Rebalance!$D$63,$F$2:$G$48,2,FALSE)+ROW()-2)),\"\")","v":{"$error":"#N/A"}},{"$f":"IF(INDIRECT(\"c\" & (VLOOKUP(Rebalance!$D$64,$F$2:$G$48,2,FALSE)+ROW()-2))=Rebalance!$D$64,INDIRECT(\"a\" & (VLOOKUP(Rebalance!$D$64,$F$2:$G$48,2,FALSE)+ROW()-2)),\"\")","v":{"$error":"#N/A"}},{"$f":"IF(INDIRECT(\"c\" & (VLOOKUP(Rebalance!$D$65,$F$2:$G$48,2,FALSE)+ROW()-2))=Rebalance!$D$65,INDIRECT(\"a\" & (VLOOKUP(Rebalance!$D$65,$F$2:$G$48,2,FALSE)+ROW()-2)),\"\")","v":{"$error":"#N/A"}},{"$f":"IF(INDIRECT(\"c\" & (VLOOKUP(Rebalance!$D$66,$F$2:$G$48,2,FALSE)+ROW()-2))=Rebalance!$D$66,INDIRECT(\"a\" & (VLOOKUP(Rebalance!$D$66,$F$2:$G$48,2,FALSE)+ROW()-2)),\"\")","v":{"$error":"#N/A"}}]
["Momentum Income Plus C1","MIPB7","Momentum Collective Investments Ltd",{"$f":"ROW()","v":343},null,null,{"$f":"VLOOKUP(F343,$C$2:$D$599,2,FALSE)","v":{"$error":"#N/A"}},{"$f":"IF(INDIRECT(\"c\" & (VLOOKUP(Rebalance!$D$26,$F$2:$G$48,2,FALSE)+ROW()-2))=Rebalance!$D$26,INDIRECT(\"a\" & (VLOOKUP(Rebalance!$D$26,$F$2:$G$48,2,FALSE)+ROW()-2)),\"\")","v":{"$error":"#N/A"}},{"$f":"IF(INDIRECT(\"c\" & (VLOOKUP(Rebalance!$D$27,$F$2:$G$48,2,FALSE)+ROW()-2))=Rebalance!$D$27,INDIRECT(\"a\" & (VLOOKUP(Rebalance!$D$27,$F$2:$G$48,2,FALSE)+ROW()-2)),\"\")","v":{"$error":"#N/A"}},{"$f":"IF(INDIRECT(\"c\" & (VLOOKUP(Rebalance!$D$28,$F$2:$G$48,2,FALSE)+ROW()-2))=Rebalance!$D$28,INDIRECT(\"a\" & (VLOOKUP(Rebalance!$D$28,$F$2:$G$48,2,FALSE)+ROW()-2)),\"\")","v":{"$error":"#N/A"}},{"$f":"IF(INDIRECT(\"c\" & (VLOOKUP(Rebalance!$D$29,$F$2:$G$48,2,FALSE)+ROW()-2))=Rebalance!$D$29,INDIRECT(\"a\" & (VLOOKUP(Rebalance!$D$29,$F$2:$G$48,2,FALSE)+ROW()-2)),\"\")","v":{"$error":"#N/A"}},{"$f":"IF(INDIRECT(\"c\" & (VLOOKUP(Rebalance!$D$30,$F$2:$G$48,2,FALSE)+ROW()-2))=Rebalance!$D$30,INDIRECT(\"a\" & (VLOOKUP(Rebalance!$D$30,$F$2:$G$48,2,FALSE)+ROW()-2)),\"\")","v":{"$error":"#N/A"}},{"$f":"IF(INDIRECT(\"c\" & (VLOOKUP(Rebalance!$D$31,$F$2:$G$48,2,FALSE)+ROW()-2))=Rebalance!$D$31,INDIRECT(\"a\" & (VLOOKUP(Rebalance!$D$31,$F$2:$G$48,2,FALSE)+ROW()-2)),\"\")","v":{"$error":"#N/A"}},{"$f":"IF(INDIRECT(\"c\" & (VLOOKUP(Rebalance!$D$32,$F$2:$G$48,2,FALSE)+ROW()-2))=Rebalance!$D$32,INDIRECT(\"a\" & (VLOOKUP(Rebalance!$D$32,$F$2:$G$48,2,FALSE)+ROW()-2)),\"\")","v":{"$error":"#N/A"}},{"$f":"IF(INDIRECT(\"c\" & (VLOOKUP(Rebalance!$D$33,$F$2:$G$48,2,FALSE)+ROW()-2))=Rebalance!$D$33,INDIRECT(\"a\" & (VLOOKUP(Rebalance!$D$33,$F$2:$G$48,2,FALSE)+ROW()-2)),\"\")","v":{"$error":"#N/A"}},{"$f":"IF(INDIRECT(\"c\" & (VLOOKUP(Rebalance!$D$34,$F$2:$G$48,2,FALSE)+ROW()-2))=Rebalance!$D$34,INDIRECT(\"a\" & (VLOOKUP(Rebalance!$D$34,$F$2:$G$48,2,FALSE)+ROW()-2)),\"\")","v":{"$error":"#N/A"}},{"$f":"IF(INDIRECT(\"c\" & (VLOOKUP(Rebalance!$D$35,$F$2:$G$48,2,FALSE)+ROW()-2))=Rebalance!$D$35,INDIRECT(\"a\" & (VLOOKUP(Rebalance!$D$35,$F$2:$G$48,2,FALSE)+ROW()-2)),\"\")","v":{"$error":"#N/A"}},{"$f":"IF(INDIRECT(\"c\" & (VLOOKUP(Rebalance!$D$36,$F$2:$G$48,2,FALSE)+ROW()-2))=Rebalance!$D$36,INDIRECT(\"a\" & (VLOOKUP(Rebalance!$D$36,$F$2:$G$48,2,FALSE)+ROW()-2)),\"\")","v":{"$error":"#N/A"}},{"$f":"IF(INDIRECT(\"c\" & (VLOOKUP(Rebalance!$D$37,$F$2:$G$48,2,FALSE)+ROW()-2))=Rebalance!$D$37,INDIRECT(\"a\" & (VLOOKUP(Rebalance!$D$37,$F$2:$G$48,2,FALSE)+ROW()-2)),\"\")","v":{"$error":"#N/A"}},{"$f":"IF(INDIRECT(\"c\" & (VLOOKUP(Rebalance!$D$38,$F$2:$G$48,2,FALSE)+ROW()-2))=Rebalance!$D$38,INDIRECT(\"a\" & (VLOOKUP(Rebalance!$D$38,$F$2:$G$48,2,FALSE)+ROW()-2)),\"\")","v":{"$error":"#N/A"}},{"$f":"IF(INDIRECT(\"c\" & (VLOOKUP(Rebalance!$D$39,$F$2:$G$48,2,FALSE)+ROW()-2))=Rebalance!$D$39,INDIRECT(\"a\" & (VLOOKUP(Rebalance!$D$39,$F$2:$G$48,2,FALSE)+ROW()-2)),\"\")","v":{"$error":"#N/A"}},{"$f":"IF(INDIRECT(\"c\" & (VLOOKUP(Rebalance!$D$40,$F$2:$G$48,2,FALSE)+ROW()-2))=Rebalance!$D$40,INDIRECT(\"a\" & (VLOOKUP(Rebalance!$D$40,$F$2:$G$48,2,FALSE)+ROW()-2)),\"\")","v":{"$error":"#N/A"}},{"$f":"IF(INDIRECT(\"c\" & (VLOOKUP(Rebalance!$D$52,$F$2:$G$48,2,FALSE)+ROW()-2))=Rebalance!$D$52,INDIRECT(\"a\" & (VLOOKUP(Rebalance!$D$52,$F$2:$G$48,2,FALSE)+ROW()-2)),\"\")","v":{"$error":"#N/A"}},{"$f":"IF(INDIRECT(\"c\" & (VLOOKUP(Rebalance!$D$53,$F$2:$G$48,2,FALSE)+ROW()-2))=Rebalance!$D$53,INDIRECT(\"a\" & (VLOOKUP(Rebalance!$D$53,$F$2:$G$48,2,FALSE)+ROW()-2)),\"\")","v":{"$error":"#N/A"}},{"$f":"IF(INDIRECT(\"c\" & (VLOOKUP(Rebalance!$D$54,$F$2:$G$48,2,FALSE)+ROW()-2))=Rebalance!$D$54,INDIRECT(\"a\" & (VLOOKUP(Rebalance!$D$54,$F$2:$G$48,2,FALSE)+ROW()-2)),\"\")","v":{"$error":"#N/A"}},{"$f":"IF(INDIRECT(\"c\" & (VLOOKUP(Rebalance!$D$55,$F$2:$G$48,2,FALSE)+ROW()-2))=Rebalance!$D$55,INDIRECT(\"a\" & (VLOOKUP(Rebalance!$D$55,$F$2:$G$48,2,FALSE)+ROW()-2)),\"\")","v":{"$error":"#N/A"}},{"$f":"IF(INDIRECT(\"c\" & (VLOOKUP(Rebalance!$D$56,$F$2:$G$48,2,FALSE)+ROW()-2))=Rebalance!$D$56,INDIRECT(\"a\" & (VLOOKUP(Rebalance!$D$56,$F$2:$G$48,2,FALSE)+ROW()-2)),\"\")","v":{"$error":"#N/A"}},{"$f":"IF(INDIRECT(\"c\" & (VLOOKUP(Rebalance!$D$57,$F$2:$G$48,2,FALSE)+ROW()-2))=Rebalance!$D$57,INDIRECT(\"a\" & (VLOOKUP(Rebalance!$D$57,$F$2:$G$48,2,FALSE)+ROW()-2)),\"\")","v":{"$error":"#N/A"}},{"$f":"IF(INDIRECT(\"c\" & (VLOOKUP(Rebalance!$D$58,$F$2:$G$48,2,FALSE)+ROW()-2))=Rebalance!$D$58,INDIRECT(\"a\" & (VLOOKUP(Rebalance!$D$58,$F$2:$G$48,2,FALSE)+ROW()-2)),\"\")","v":{"$error":"#N/A"}},{"$f":"IF(INDIRECT(\"c\" & (VLOOKUP(Rebalance!$D$59,$F$2:$G$48,2,FALSE)+ROW()-2))=Rebalance!$D$59,INDIRECT(\"a\" & (VLOOKUP(Rebalance!$D$59,$F$2:$G$48,2,FALSE)+ROW()-2)),\"\")","v":{"$error":"#N/A"}},{"$f":"IF(INDIRECT(\"c\" & (VLOOKUP(Rebalance!$D$60,$F$2:$G$48,2,FALSE)+ROW()-2))=Rebalance!$D$60,INDIRECT(\"a\" & (VLOOKUP(Rebalance!$D$60,$F$2:$G$48,2,FALSE)+ROW()-2)),\"\")","v":{"$error":"#N/A"}},{"$f":"IF(INDIRECT(\"c\" & (VLOOKUP(Rebalance!$D$61,$F$2:$G$48,2,FALSE)+ROW()-2))=Rebalance!$D$61,INDIRECT(\"a\" & (VLOOKUP(Rebalance!$D$61,$F$2:$G$48,2,FALSE)+ROW()-2)),\"\")","v":{"$error":"#N/A"}},{"$f":"IF(INDIRECT(\"c\" & (VLOOKUP(Rebalance!$D$62,$F$2:$G$48,2,FALSE)+ROW()-2))=Rebalance!$D$62,INDIRECT(\"a\" & (VLOOKUP(Rebalance!$D$62,$F$2:$G$48,2,FALSE)+ROW()-2)),\"\")","v":{"$error":"#N/A"}},{"$f":"IF(INDIRECT(\"c\" & (VLOOKUP(Rebalance!$D$63,$F$2:$G$48,2,FALSE)+ROW()-2))=Rebalance!$D$63,INDIRECT(\"a\" & (VLOOKUP(Rebalance!$D$63,$F$2:$G$48,2,FALSE)+ROW()-2)),\"\")","v":{"$error":"#N/A"}},{"$f":"IF(INDIRECT(\"c\" & (VLOOKUP(Rebalance!$D$64,$F$2:$G$48,2,FALSE)+ROW()-2))=Rebalance!$D$64,INDIRECT(\"a\" & (VLOOKUP(Rebalance!$D$64,$F$2:$G$48,2,FALSE)+ROW()-2)),\"\")","v":{"$error":"#N/A"}},{"$f":"IF(INDIRECT(\"c\" & (VLOOKUP(Rebalance!$D$65,$F$2:$G$48,2,FALSE)+ROW()-2))=Rebalance!$D$65,INDIRECT(\"a\" & (VLOOKUP(Rebalance!$D$65,$F$2:$G$48,2,FALSE)+ROW()-2)),\"\")","v":{"$error":"#N/A"}},{"$f":"IF(INDIRECT(\"c\" & (VLOOKUP(Rebalance!$D$66,$F$2:$G$48,2,FALSE)+ROW()-2))=Rebalance!$D$66,INDIRECT(\"a\" & (VLOOKUP(Rebalance!$D$66,$F$2:$G$48,2,FALSE)+ROW()-2)),\"\")","v":{"$error":"#N/A"}}]
["Momentum Industrial Fund","RMCF","Momentum Collective Investments Ltd",{"$f":"ROW()","v":344},null,null,{"$f":"VLOOKUP(F344,$C$2:$D$599,2,FALSE)","v":{"$error":"#N/A"}},{"$f":"IF(INDIRECT(\"c\" & (VLOOKUP(Rebalance!$D$26,$F$2:$G$48,2,FALSE)+ROW()-2))=Rebalance!$D$26,INDIRECT(\"a\" & (VLOOKUP(Rebalance!$D$26,$F$2:$G$48,2,FALSE)+ROW()-2)),\"\")","v":{"$error":"#N/A"}},{"$f":"IF(INDIRECT(\"c\" & (VLOOKUP(Rebalance!$D$27,$F$2:$G$48,2,FALSE)+ROW()-2))=Rebalance!$D$27,INDIRECT(\"a\" & (VLOOKUP(Rebalance!$D$27,$F$2:$G$48,2,FALSE)+ROW()-2)),\"\")","v":{"$error":"#N/A"}},{"$f":"IF(INDIRECT(\"c\" & (VLOOKUP(Rebalance!$D$28,$F$2:$G$48,2,FALSE)+ROW()-2))=Rebalance!$D$28,INDIRECT(\"a\" & (VLOOKUP(Rebalance!$D$28,$F$2:$G$48,2,FALSE)+ROW()-2)),\"\")","v":{"$error":"#N/A"}},{"$f":"IF(INDIRECT(\"c\" & (VLOOKUP(Rebalance!$D$29,$F$2:$G$48,2,FALSE)+ROW()-2))=Rebalance!$D$29,INDIRECT(\"a\" & (VLOOKUP(Rebalance!$D$29,$F$2:$G$48,2,FALSE)+ROW()-2)),\"\")","v":{"$error":"#N/A"}},{"$f":"IF(INDIRECT(\"c\" & (VLOOKUP(Rebalance!$D$30,$F$2:$G$48,2,FALSE)+ROW()-2))=Rebalance!$D$30,INDIRECT(\"a\" & (VLOOKUP(Rebalance!$D$30,$F$2:$G$48,2,FALSE)+ROW()-2)),\"\")","v":{"$error":"#N/A"}},{"$f":"IF(INDIRECT(\"c\" & (VLOOKUP(Rebalance!$D$31,$F$2:$G$48,2,FALSE)+ROW()-2))=Rebalance!$D$31,INDIRECT(\"a\" & (VLOOKUP(Rebalance!$D$31,$F$2:$G$48,2,FALSE)+ROW()-2)),\"\")","v":{"$error":"#N/A"}},{"$f":"IF(INDIRECT(\"c\" & (VLOOKUP(Rebalance!$D$32,$F$2:$G$48,2,FALSE)+ROW()-2))=Rebalance!$D$32,INDIRECT(\"a\" & (VLOOKUP(Rebalance!$D$32,$F$2:$G$48,2,FALSE)+ROW()-2)),\"\")","v":{"$error":"#N/A"}},{"$f":"IF(INDIRECT(\"c\" & (VLOOKUP(Rebalance!$D$33,$F$2:$G$48,2,FALSE)+ROW()-2))=Rebalance!$D$33,INDIRECT(\"a\" & (VLOOKUP(Rebalance!$D$33,$F$2:$G$48,2,FALSE)+ROW()-2)),\"\")","v":{"$error":"#N/A"}},{"$f":"IF(INDIRECT(\"c\" & (VLOOKUP(Rebalance!$D$34,$F$2:$G$48,2,FALSE)+ROW()-2))=Rebalance!$D$34,INDIRECT(\"a\" & (VLOOKUP(Rebalance!$D$34,$F$2:$G$48,2,FALSE)+ROW()-2)),\"\")","v":{"$error":"#N/A"}},{"$f":"IF(INDIRECT(\"c\" & (VLOOKUP(Rebalance!$D$35,$F$2:$G$48,2,FALSE)+ROW()-2))=Rebalance!$D$35,INDIRECT(\"a\" & (VLOOKUP(Rebalance!$D$35,$F$2:$G$48,2,FALSE)+ROW()-2)),\"\")","v":{"$error":"#N/A"}},{"$f":"IF(INDIRECT(\"c\" & (VLOOKUP(Rebalance!$D$36,$F$2:$G$48,2,FALSE)+ROW()-2))=Rebalance!$D$36,INDIRECT(\"a\" & (VLOOKUP(Rebalance!$D$36,$F$2:$G$48,2,FALSE)+ROW()-2)),\"\")","v":{"$error":"#N/A"}},{"$f":"IF(INDIRECT(\"c\" & (VLOOKUP(Rebalance!$D$37,$F$2:$G$48,2,FALSE)+ROW()-2))=Rebalance!$D$37,INDIRECT(\"a\" & (VLOOKUP(Rebalance!$D$37,$F$2:$G$48,2,FALSE)+ROW()-2)),\"\")","v":{"$error":"#N/A"}},{"$f":"IF(INDIRECT(\"c\" & (VLOOKUP(Rebalance!$D$38,$F$2:$G$48,2,FALSE)+ROW()-2))=Rebalance!$D$38,INDIRECT(\"a\" & (VLOOKUP(Rebalance!$D$38,$F$2:$G$48,2,FALSE)+ROW()-2)),\"\")","v":{"$error":"#N/A"}},{"$f":"IF(INDIRECT(\"c\" & (VLOOKUP(Rebalance!$D$39,$F$2:$G$48,2,FALSE)+ROW()-2))=Rebalance!$D$39,INDIRECT(\"a\" & (VLOOKUP(Rebalance!$D$39,$F$2:$G$48,2,FALSE)+ROW()-2)),\"\")","v":{"$error":"#N/A"}},{"$f":"IF(INDIRECT(\"c\" & (VLOOKUP(Rebalance!$D$40,$F$2:$G$48,2,FALSE)+ROW()-2))=Rebalance!$D$40,INDIRECT(\"a\" & (VLOOKUP(Rebalance!$D$40,$F$2:$G$48,2,FALSE)+ROW()-2)),\"\")","v":{"$error":"#N/A"}},{"$f":"IF(INDIRECT(\"c\" & (VLOOKUP(Rebalance!$D$52,$F$2:$G$48,2,FALSE)+ROW()-2))=Rebalance!$D$52,INDIRECT(\"a\" & (VLOOKUP(Rebalance!$D$52,$F$2:$G$48,2,FALSE)+ROW()-2)),\"\")","v":{"$error":"#N/A"}},{"$f":"IF(INDIRECT(\"c\" & (VLOOKUP(Rebalance!$D$53,$F$2:$G$48,2,FALSE)+ROW()-2))=Rebalance!$D$53,INDIRECT(\"a\" & (VLOOKUP(Rebalance!$D$53,$F$2:$G$48,2,FALSE)+ROW()-2)),\"\")","v":{"$error":"#N/A"}},{"$f":"IF(INDIRECT(\"c\" & (VLOOKUP(Rebalance!$D$54,$F$2:$G$48,2,FALSE)+ROW()-2))=Rebalance!$D$54,INDIRECT(\"a\" & (VLOOKUP(Rebalance!$D$54,$F$2:$G$48,2,FALSE)+ROW()-2)),\"\")","v":{"$error":"#N/A"}},{"$f":"IF(INDIRECT(\"c\" & (VLOOKUP(Rebalance!$D$55,$F$2:$G$48,2,FALSE)+ROW()-2))=Rebalance!$D$55,INDIRECT(\"a\" & (VLOOKUP(Rebalance!$D$55,$F$2:$G$48,2,FALSE)+ROW()-2)),\"\")","v":{"$error":"#N/A"}},{"$f":"IF(INDIRECT(\"c\" & (VLOOKUP(Rebalance!$D$56,$F$2:$G$48,2,FALSE)+ROW()-2))=Rebalance!$D$56,INDIRECT(\"a\" & (VLOOKUP(Rebalance!$D$56,$F$2:$G$48,2,FALSE)+ROW()-2)),\"\")","v":{"$error":"#N/A"}},{"$f":"IF(INDIRECT(\"c\" & (VLOOKUP(Rebalance!$D$57,$F$2:$G$48,2,FALSE)+ROW()-2))=Rebalance!$D$57,INDIRECT(\"a\" & (VLOOKUP(Rebalance!$D$57,$F$2:$G$48,2,FALSE)+ROW()-2)),\"\")","v":{"$error":"#N/A"}},{"$f":"IF(INDIRECT(\"c\" & (VLOOKUP(Rebalance!$D$58,$F$2:$G$48,2,FALSE)+ROW()-2))=Rebalance!$D$58,INDIRECT(\"a\" & (VLOOKUP(Rebalance!$D$58,$F$2:$G$48,2,FALSE)+ROW()-2)),\"\")","v":{"$error":"#N/A"}},{"$f":"IF(INDIRECT(\"c\" & (VLOOKUP(Rebalance!$D$59,$F$2:$G$48,2,FALSE)+ROW()-2))=Rebalance!$D$59,INDIRECT(\"a\" & (VLOOKUP(Rebalance!$D$59,$F$2:$G$48,2,FALSE)+ROW()-2)),\"\")","v":{"$error":"#N/A"}},{"$f":"IF(INDIRECT(\"c\" & (VLOOKUP(Rebalance!$D$60,$F$2:$G$48,2,FALSE)+ROW()-2))=Rebalance!$D$60,INDIRECT(\"a\" & (VLOOKUP(Rebalance!$D$60,$F$2:$G$48,2,FALSE)+ROW()-2)),\"\")","v":{"$error":"#N/A"}},{"$f":"IF(INDIRECT(\"c\" & (VLOOKUP(Rebalance!$D$61,$F$2:$G$48,2,FALSE)+ROW()-2))=Rebalance!$D$61,INDIRECT(\"a\" & (VLOOKUP(Rebalance!$D$61,$F$2:$G$48,2,FALSE)+ROW()-2)),\"\")","v":{"$error":"#N/A"}},{"$f":"IF(INDIRECT(\"c\" & (VLOOKUP(Rebalance!$D$62,$F$2:$G$48,2,FALSE)+ROW()-2))=Rebalance!$D$62,INDIRECT(\"a\" & (VLOOKUP(Rebalance!$D$62,$F$2:$G$48,2,FALSE)+ROW()-2)),\"\")","v":{"$error":"#N/A"}},{"$f":"IF(INDIRECT(\"c\" & (VLOOKUP(Rebalance!$D$63,$F$2:$G$48,2,FALSE)+ROW()-2))=Rebalance!$D$63,INDIRECT(\"a\" & (VLOOKUP(Rebalance!$D$63,$F$2:$G$48,2,FALSE)+ROW()-2)),\"\")","v":{"$error":"#N/A"}},{"$f":"IF(INDIRECT(\"c\" & (VLOOKUP(Rebalance!$D$64,$F$2:$G$48,2,FALSE)+ROW()-2))=Rebalance!$D$64,INDIRECT(\"a\" & (VLOOKUP(Rebalance!$D$64,$F$2:$G$48,2,FALSE)+ROW()-2)),\"\")","v":{"$error":"#N/A"}},{"$f":"IF(INDIRECT(\"c\" & (VLOOKUP(Rebalance!$D$65,$F$2:$G$48,2,FALSE)+ROW()-2))=Rebalance!$D$65,INDIRECT(\"a\" & (VLOOKUP(Rebalance!$D$65,$F$2:$G$48,2,FALSE)+ROW()-2)),\"\")","v":{"$error":"#N/A"}},{"$f":"IF(INDIRECT(\"c\" & (VLOOKUP(Rebalance!$D$66,$F$2:$G$48,2,FALSE)+ROW()-2))=Rebalance!$D$66,INDIRECT(\"a\" & (VLOOKUP(Rebalance!$D$66,$F$2:$G$48,2,FALSE)+ROW()-2)),\"\")","v":{"$error":"#N/A"}}]
["Momentum International Balanced FoF A","RIBA","Momentum Collective Investments Ltd",{"$f":"ROW()","v":345},null,null,{"$f":"VLOOKUP(F345,$C$2:$D$599,2,FALSE)","v":{"$error":"#N/A"}},{"$f":"IF(INDIRECT(\"c\" & (VLOOKUP(Rebalance!$D$26,$F$2:$G$48,2,FALSE)+ROW()-2))=Rebalance!$D$26,INDIRECT(\"a\" & (VLOOKUP(Rebalance!$D$26,$F$2:$G$48,2,FALSE)+ROW()-2)),\"\")","v":{"$error":"#N/A"}},{"$f":"IF(INDIRECT(\"c\" & (VLOOKUP(Rebalance!$D$27,$F$2:$G$48,2,FALSE)+ROW()-2))=Rebalance!$D$27,INDIRECT(\"a\" & (VLOOKUP(Rebalance!$D$27,$F$2:$G$48,2,FALSE)+ROW()-2)),\"\")","v":{"$error":"#N/A"}},{"$f":"IF(INDIRECT(\"c\" & (VLOOKUP(Rebalance!$D$28,$F$2:$G$48,2,FALSE)+ROW()-2))=Rebalance!$D$28,INDIRECT(\"a\" & (VLOOKUP(Rebalance!$D$28,$F$2:$G$48,2,FALSE)+ROW()-2)),\"\")","v":{"$error":"#N/A"}},{"$f":"IF(INDIRECT(\"c\" & (VLOOKUP(Rebalance!$D$29,$F$2:$G$48,2,FALSE)+ROW()-2))=Rebalance!$D$29,INDIRECT(\"a\" & (VLOOKUP(Rebalance!$D$29,$F$2:$G$48,2,FALSE)+ROW()-2)),\"\")","v":{"$error":"#N/A"}},{"$f":"IF(INDIRECT(\"c\" & (VLOOKUP(Rebalance!$D$30,$F$2:$G$48,2,FALSE)+ROW()-2))=Rebalance!$D$30,INDIRECT(\"a\" & (VLOOKUP(Rebalance!$D$30,$F$2:$G$48,2,FALSE)+ROW()-2)),\"\")","v":{"$error":"#N/A"}},{"$f":"IF(INDIRECT(\"c\" & (VLOOKUP(Rebalance!$D$31,$F$2:$G$48,2,FALSE)+ROW()-2))=Rebalance!$D$31,INDIRECT(\"a\" & (VLOOKUP(Rebalance!$D$31,$F$2:$G$48,2,FALSE)+ROW()-2)),\"\")","v":{"$error":"#N/A"}},{"$f":"IF(INDIRECT(\"c\" & (VLOOKUP(Rebalance!$D$32,$F$2:$G$48,2,FALSE)+ROW()-2))=Rebalance!$D$32,INDIRECT(\"a\" & (VLOOKUP(Rebalance!$D$32,$F$2:$G$48,2,FALSE)+ROW()-2)),\"\")","v":{"$error":"#N/A"}},{"$f":"IF(INDIRECT(\"c\" & (VLOOKUP(Rebalance!$D$33,$F$2:$G$48,2,FALSE)+ROW()-2))=Rebalance!$D$33,INDIRECT(\"a\" & (VLOOKUP(Rebalance!$D$33,$F$2:$G$48,2,FALSE)+ROW()-2)),\"\")","v":{"$error":"#N/A"}},{"$f":"IF(INDIRECT(\"c\" & (VLOOKUP(Rebalance!$D$34,$F$2:$G$48,2,FALSE)+ROW()-2))=Rebalance!$D$34,INDIRECT(\"a\" & (VLOOKUP(Rebalance!$D$34,$F$2:$G$48,2,FALSE)+ROW()-2)),\"\")","v":{"$error":"#N/A"}},{"$f":"IF(INDIRECT(\"c\" & (VLOOKUP(Rebalance!$D$35,$F$2:$G$48,2,FALSE)+ROW()-2))=Rebalance!$D$35,INDIRECT(\"a\" & (VLOOKUP(Rebalance!$D$35,$F$2:$G$48,2,FALSE)+ROW()-2)),\"\")","v":{"$error":"#N/A"}},{"$f":"IF(INDIRECT(\"c\" & (VLOOKUP(Rebalance!$D$36,$F$2:$G$48,2,FALSE)+ROW()-2))=Rebalance!$D$36,INDIRECT(\"a\" & (VLOOKUP(Rebalance!$D$36,$F$2:$G$48,2,FALSE)+ROW()-2)),\"\")","v":{"$error":"#N/A"}},{"$f":"IF(INDIRECT(\"c\" & (VLOOKUP(Rebalance!$D$37,$F$2:$G$48,2,FALSE)+ROW()-2))=Rebalance!$D$37,INDIRECT(\"a\" & (VLOOKUP(Rebalance!$D$37,$F$2:$G$48,2,FALSE)+ROW()-2)),\"\")","v":{"$error":"#N/A"}},{"$f":"IF(INDIRECT(\"c\" & (VLOOKUP(Rebalance!$D$38,$F$2:$G$48,2,FALSE)+ROW()-2))=Rebalance!$D$38,INDIRECT(\"a\" & (VLOOKUP(Rebalance!$D$38,$F$2:$G$48,2,FALSE)+ROW()-2)),\"\")","v":{"$error":"#N/A"}},{"$f":"IF(INDIRECT(\"c\" & (VLOOKUP(Rebalance!$D$39,$F$2:$G$48,2,FALSE)+ROW()-2))=Rebalance!$D$39,INDIRECT(\"a\" & (VLOOKUP(Rebalance!$D$39,$F$2:$G$48,2,FALSE)+ROW()-2)),\"\")","v":{"$error":"#N/A"}},{"$f":"IF(INDIRECT(\"c\" & (VLOOKUP(Rebalance!$D$40,$F$2:$G$48,2,FALSE)+ROW()-2))=Rebalance!$D$40,INDIRECT(\"a\" & (VLOOKUP(Rebalance!$D$40,$F$2:$G$48,2,FALSE)+ROW()-2)),\"\")","v":{"$error":"#N/A"}},{"$f":"IF(INDIRECT(\"c\" & (VLOOKUP(Rebalance!$D$52,$F$2:$G$48,2,FALSE)+ROW()-2))=Rebalance!$D$52,INDIRECT(\"a\" & (VLOOKUP(Rebalance!$D$52,$F$2:$G$48,2,FALSE)+ROW()-2)),\"\")","v":{"$error":"#N/A"}},{"$f":"IF(INDIRECT(\"c\" & (VLOOKUP(Rebalance!$D$53,$F$2:$G$48,2,FALSE)+ROW()-2))=Rebalance!$D$53,INDIRECT(\"a\" & (VLOOKUP(Rebalance!$D$53,$F$2:$G$48,2,FALSE)+ROW()-2)),\"\")","v":{"$error":"#N/A"}},{"$f":"IF(INDIRECT(\"c\" & (VLOOKUP(Rebalance!$D$54,$F$2:$G$48,2,FALSE)+ROW()-2))=Rebalance!$D$54,INDIRECT(\"a\" & (VLOOKUP(Rebalance!$D$54,$F$2:$G$48,2,FALSE)+ROW()-2)),\"\")","v":{"$error":"#N/A"}},{"$f":"IF(INDIRECT(\"c\" & (VLOOKUP(Rebalance!$D$55,$F$2:$G$48,2,FALSE)+ROW()-2))=Rebalance!$D$55,INDIRECT(\"a\" & (VLOOKUP(Rebalance!$D$55,$F$2:$G$48,2,FALSE)+ROW()-2)),\"\")","v":{"$error":"#N/A"}},{"$f":"IF(INDIRECT(\"c\" & (VLOOKUP(Rebalance!$D$56,$F$2:$G$48,2,FALSE)+ROW()-2))=Rebalance!$D$56,INDIRECT(\"a\" & (VLOOKUP(Rebalance!$D$56,$F$2:$G$48,2,FALSE)+ROW()-2)),\"\")","v":{"$error":"#N/A"}},{"$f":"IF(INDIRECT(\"c\" & (VLOOKUP(Rebalance!$D$57,$F$2:$G$48,2,FALSE)+ROW()-2))=Rebalance!$D$57,INDIRECT(\"a\" & (VLOOKUP(Rebalance!$D$57,$F$2:$G$48,2,FALSE)+ROW()-2)),\"\")","v":{"$error":"#N/A"}},{"$f":"IF(INDIRECT(\"c\" & (VLOOKUP(Rebalance!$D$58,$F$2:$G$48,2,FALSE)+ROW()-2))=Rebalance!$D$58,INDIRECT(\"a\" & (VLOOKUP(Rebalance!$D$58,$F$2:$G$48,2,FALSE)+ROW()-2)),\"\")","v":{"$error":"#N/A"}},{"$f":"IF(INDIRECT(\"c\" & (VLOOKUP(Rebalance!$D$59,$F$2:$G$48,2,FALSE)+ROW()-2))=Rebalance!$D$59,INDIRECT(\"a\" & (VLOOKUP(Rebalance!$D$59,$F$2:$G$48,2,FALSE)+ROW()-2)),\"\")","v":{"$error":"#N/A"}},{"$f":"IF(INDIRECT(\"c\" & (VLOOKUP(Rebalance!$D$60,$F$2:$G$48,2,FALSE)+ROW()-2))=Rebalance!$D$60,INDIRECT(\"a\" & (VLOOKUP(Rebalance!$D$60,$F$2:$G$48,2,FALSE)+ROW()-2)),\"\")","v":{"$error":"#N/A"}},{"$f":"IF(INDIRECT(\"c\" & (VLOOKUP(Rebalance!$D$61,$F$2:$G$48,2,FALSE)+ROW()-2))=Rebalance!$D$61,INDIRECT(\"a\" & (VLOOKUP(Rebalance!$D$61,$F$2:$G$48,2,FALSE)+ROW()-2)),\"\")","v":{"$error":"#N/A"}},{"$f":"IF(INDIRECT(\"c\" & (VLOOKUP(Rebalance!$D$62,$F$2:$G$48,2,FALSE)+ROW()-2))=Rebalance!$D$62,INDIRECT(\"a\" & (VLOOKUP(Rebalance!$D$62,$F$2:$G$48,2,FALSE)+ROW()-2)),\"\")","v":{"$error":"#N/A"}},{"$f":"IF(INDIRECT(\"c\" & (VLOOKUP(Rebalance!$D$63,$F$2:$G$48,2,FALSE)+ROW()-2))=Rebalance!$D$63,INDIRECT(\"a\" & (VLOOKUP(Rebalance!$D$63,$F$2:$G$48,2,FALSE)+ROW()-2)),\"\")","v":{"$error":"#N/A"}},{"$f":"IF(INDIRECT(\"c\" & (VLOOKUP(Rebalance!$D$64,$F$2:$G$48,2,FALSE)+ROW()-2))=Rebalance!$D$64,INDIRECT(\"a\" & (VLOOKUP(Rebalance!$D$64,$F$2:$G$48,2,FALSE)+ROW()-2)),\"\")","v":{"$error":"#N/A"}},{"$f":"IF(INDIRECT(\"c\" & (VLOOKUP(Rebalance!$D$65,$F$2:$G$48,2,FALSE)+ROW()-2))=Rebalance!$D$65,INDIRECT(\"a\" & (VLOOKUP(Rebalance!$D$65,$F$2:$G$48,2,FALSE)+ROW()-2)),\"\")","v":{"$error":"#N/A"}},{"$f":"IF(INDIRECT(\"c\" & (VLOOKUP(Rebalance!$D$66,$F$2:$G$48,2,FALSE)+ROW()-2))=Rebalance!$D$66,INDIRECT(\"a\" & (VLOOKUP(Rebalance!$D$66,$F$2:$G$48,2,FALSE)+ROW()-2)),\"\")","v":{"$error":"#N/A"}}]
["Momentum International Equity Feeder Fund A","RMBI","Momentum Collective Investments Ltd",{"$f":"ROW()","v":346},null,null,{"$f":"VLOOKUP(F346,$C$2:$D$599,2,FALSE)","v":{"$error":"#N/A"}},{"$f":"IF(INDIRECT(\"c\" & (VLOOKUP(Rebalance!$D$26,$F$2:$G$48,2,FALSE)+ROW()-2))=Rebalance!$D$26,INDIRECT(\"a\" & (VLOOKUP(Rebalance!$D$26,$F$2:$G$48,2,FALSE)+ROW()-2)),\"\")","v":{"$error":"#N/A"}},{"$f":"IF(INDIRECT(\"c\" & (VLOOKUP(Rebalance!$D$27,$F$2:$G$48,2,FALSE)+ROW()-2))=Rebalance!$D$27,INDIRECT(\"a\" & (VLOOKUP(Rebalance!$D$27,$F$2:$G$48,2,FALSE)+ROW()-2)),\"\")","v":{"$error":"#N/A"}},{"$f":"IF(INDIRECT(\"c\" & (VLOOKUP(Rebalance!$D$28,$F$2:$G$48,2,FALSE)+ROW()-2))=Rebalance!$D$28,INDIRECT(\"a\" & (VLOOKUP(Rebalance!$D$28,$F$2:$G$48,2,FALSE)+ROW()-2)),\"\")","v":{"$error":"#N/A"}},{"$f":"IF(INDIRECT(\"c\" & (VLOOKUP(Rebalance!$D$29,$F$2:$G$48,2,FALSE)+ROW()-2))=Rebalance!$D$29,INDIRECT(\"a\" & (VLOOKUP(Rebalance!$D$29,$F$2:$G$48,2,FALSE)+ROW()-2)),\"\")","v":{"$error":"#N/A"}},{"$f":"IF(INDIRECT(\"c\" & (VLOOKUP(Rebalance!$D$30,$F$2:$G$48,2,FALSE)+ROW()-2))=Rebalance!$D$30,INDIRECT(\"a\" & (VLOOKUP(Rebalance!$D$30,$F$2:$G$48,2,FALSE)+ROW()-2)),\"\")","v":{"$error":"#N/A"}},{"$f":"IF(INDIRECT(\"c\" & (VLOOKUP(Rebalance!$D$31,$F$2:$G$48,2,FALSE)+ROW()-2))=Rebalance!$D$31,INDIRECT(\"a\" & (VLOOKUP(Rebalance!$D$31,$F$2:$G$48,2,FALSE)+ROW()-2)),\"\")","v":{"$error":"#N/A"}},{"$f":"IF(INDIRECT(\"c\" & (VLOOKUP(Rebalance!$D$32,$F$2:$G$48,2,FALSE)+ROW()-2))=Rebalance!$D$32,INDIRECT(\"a\" & (VLOOKUP(Rebalance!$D$32,$F$2:$G$48,2,FALSE)+ROW()-2)),\"\")","v":{"$error":"#N/A"}},{"$f":"IF(INDIRECT(\"c\" & (VLOOKUP(Rebalance!$D$33,$F$2:$G$48,2,FALSE)+ROW()-2))=Rebalance!$D$33,INDIRECT(\"a\" & (VLOOKUP(Rebalance!$D$33,$F$2:$G$48,2,FALSE)+ROW()-2)),\"\")","v":{"$error":"#N/A"}},{"$f":"IF(INDIRECT(\"c\" & (VLOOKUP(Rebalance!$D$34,$F$2:$G$48,2,FALSE)+ROW()-2))=Rebalance!$D$34,INDIRECT(\"a\" & (VLOOKUP(Rebalance!$D$34,$F$2:$G$48,2,FALSE)+ROW()-2)),\"\")","v":{"$error":"#N/A"}},{"$f":"IF(INDIRECT(\"c\" & (VLOOKUP(Rebalance!$D$35,$F$2:$G$48,2,FALSE)+ROW()-2))=Rebalance!$D$35,INDIRECT(\"a\" & (VLOOKUP(Rebalance!$D$35,$F$2:$G$48,2,FALSE)+ROW()-2)),\"\")","v":{"$error":"#N/A"}},{"$f":"IF(INDIRECT(\"c\" & (VLOOKUP(Rebalance!$D$36,$F$2:$G$48,2,FALSE)+ROW()-2))=Rebalance!$D$36,INDIRECT(\"a\" & (VLOOKUP(Rebalance!$D$36,$F$2:$G$48,2,FALSE)+ROW()-2)),\"\")","v":{"$error":"#N/A"}},{"$f":"IF(INDIRECT(\"c\" & (VLOOKUP(Rebalance!$D$37,$F$2:$G$48,2,FALSE)+ROW()-2))=Rebalance!$D$37,INDIRECT(\"a\" & (VLOOKUP(Rebalance!$D$37,$F$2:$G$48,2,FALSE)+ROW()-2)),\"\")","v":{"$error":"#N/A"}},{"$f":"IF(INDIRECT(\"c\" & (VLOOKUP(Rebalance!$D$38,$F$2:$G$48,2,FALSE)+ROW()-2))=Rebalance!$D$38,INDIRECT(\"a\" & (VLOOKUP(Rebalance!$D$38,$F$2:$G$48,2,FALSE)+ROW()-2)),\"\")","v":{"$error":"#N/A"}},{"$f":"IF(INDIRECT(\"c\" & (VLOOKUP(Rebalance!$D$39,$F$2:$G$48,2,FALSE)+ROW()-2))=Rebalance!$D$39,INDIRECT(\"a\" & (VLOOKUP(Rebalance!$D$39,$F$2:$G$48,2,FALSE)+ROW()-2)),\"\")","v":{"$error":"#N/A"}},{"$f":"IF(INDIRECT(\"c\" & (VLOOKUP(Rebalance!$D$40,$F$2:$G$48,2,FALSE)+ROW()-2))=Rebalance!$D$40,INDIRECT(\"a\" & (VLOOKUP(Rebalance!$D$40,$F$2:$G$48,2,FALSE)+ROW()-2)),\"\")","v":{"$error":"#N/A"}},{"$f":"IF(INDIRECT(\"c\" & (VLOOKUP(Rebalance!$D$52,$F$2:$G$48,2,FALSE)+ROW()-2))=Rebalance!$D$52,INDIRECT(\"a\" & (VLOOKUP(Rebalance!$D$52,$F$2:$G$48,2,FALSE)+ROW()-2)),\"\")","v":{"$error":"#N/A"}},{"$f":"IF(INDIRECT(\"c\" & (VLOOKUP(Rebalance!$D$53,$F$2:$G$48,2,FALSE)+ROW()-2))=Rebalance!$D$53,INDIRECT(\"a\" & (VLOOKUP(Rebalance!$D$53,$F$2:$G$48,2,FALSE)+ROW()-2)),\"\")","v":{"$error":"#N/A"}},{"$f":"IF(INDIRECT(\"c\" & (VLOOKUP(Rebalance!$D$54,$F$2:$G$48,2,FALSE)+ROW()-2))=Rebalance!$D$54,INDIRECT(\"a\" & (VLOOKUP(Rebalance!$D$54,$F$2:$G$48,2,FALSE)+ROW()-2)),\"\")","v":{"$error":"#N/A"}},{"$f":"IF(INDIRECT(\"c\" & (VLOOKUP(Rebalance!$D$55,$F$2:$G$48,2,FALSE)+ROW()-2))=Rebalance!$D$55,INDIRECT(\"a\" & (VLOOKUP(Rebalance!$D$55,$F$2:$G$48,2,FALSE)+ROW()-2)),\"\")","v":{"$error":"#N/A"}},{"$f":"IF(INDIRECT(\"c\" & (VLOOKUP(Rebalance!$D$56,$F$2:$G$48,2,FALSE)+ROW()-2))=Rebalance!$D$56,INDIRECT(\"a\" & (VLOOKUP(Rebalance!$D$56,$F$2:$G$48,2,FALSE)+ROW()-2)),\"\")","v":{"$error":"#N/A"}},{"$f":"IF(INDIRECT(\"c\" & (VLOOKUP(Rebalance!$D$57,$F$2:$G$48,2,FALSE)+ROW()-2))=Rebalance!$D$57,INDIRECT(\"a\" & (VLOOKUP(Rebalance!$D$57,$F$2:$G$48,2,FALSE)+ROW()-2)),\"\")","v":{"$error":"#N/A"}},{"$f":"IF(INDIRECT(\"c\" & (VLOOKUP(Rebalance!$D$58,$F$2:$G$48,2,FALSE)+ROW()-2))=Rebalance!$D$58,INDIRECT(\"a\" & (VLOOKUP(Rebalance!$D$58,$F$2:$G$48,2,FALSE)+ROW()-2)),\"\")","v":{"$error":"#N/A"}},{"$f":"IF(INDIRECT(\"c\" & (VLOOKUP(Rebalance!$D$59,$F$2:$G$48,2,FALSE)+ROW()-2))=Rebalance!$D$59,INDIRECT(\"a\" & (VLOOKUP(Rebalance!$D$59,$F$2:$G$48,2,FALSE)+ROW()-2)),\"\")","v":{"$error":"#N/A"}},{"$f":"IF(INDIRECT(\"c\" & (VLOOKUP(Rebalance!$D$60,$F$2:$G$48,2,FALSE)+ROW()-2))=Rebalance!$D$60,INDIRECT(\"a\" & (VLOOKUP(Rebalance!$D$60,$F$2:$G$48,2,FALSE)+ROW()-2)),\"\")","v":{"$error":"#N/A"}},{"$f":"IF(INDIRECT(\"c\" & (VLOOKUP(Rebalance!$D$61,$F$2:$G$48,2,FALSE)+ROW()-2))=Rebalance!$D$61,INDIRECT(\"a\" & (VLOOKUP(Rebalance!$D$61,$F$2:$G$48,2,FALSE)+ROW()-2)),\"\")","v":{"$error":"#N/A"}},{"$f":"IF(INDIRECT(\"c\" & (VLOOKUP(Rebalance!$D$62,$F$2:$G$48,2,FALSE)+ROW()-2))=Rebalance!$D$62,INDIRECT(\"a\" & (VLOOKUP(Rebalance!$D$62,$F$2:$G$48,2,FALSE)+ROW()-2)),\"\")","v":{"$error":"#N/A"}},{"$f":"IF(INDIRECT(\"c\" & (VLOOKUP(Rebalance!$D$63,$F$2:$G$48,2,FALSE)+ROW()-2))=Rebalance!$D$63,INDIRECT(\"a\" & (VLOOKUP(Rebalance!$D$63,$F$2:$G$48,2,FALSE)+ROW()-2)),\"\")","v":{"$error":"#N/A"}},{"$f":"IF(INDIRECT(\"c\" & (VLOOKUP(Rebalance!$D$64,$F$2:$G$48,2,FALSE)+ROW()-2))=Rebalance!$D$64,INDIRECT(\"a\" & (VLOOKUP(Rebalance!$D$64,$F$2:$G$48,2,FALSE)+ROW()-2)),\"\")","v":{"$error":"#N/A"}},{"$f":"IF(INDIRECT(\"c\" & (VLOOKUP(Rebalance!$D$65,$F$2:$G$48,2,FALSE)+ROW()-2))=Rebalance!$D$65,INDIRECT(\"a\" & (VLOOKUP(Rebalance!$D$65,$F$2:$G$48,2,FALSE)+ROW()-2)),\"\")","v":{"$error":"#N/A"}},{"$f":"IF(INDIRECT(\"c\" & (VLOOKUP(Rebalance!$D$66,$F$2:$G$48,2,FALSE)+ROW()-2))=Rebalance!$D$66,INDIRECT(\"a\" & (VLOOKUP(Rebalance!$D$66,$F$2:$G$48,2,FALSE)+ROW()-2)),\"\")","v":{"$error":"#N/A"}}]
["Momentum Maximum Income Fund A","RMMF","Momentum Collective Investments Ltd",{"$f":"ROW()","v":347},null,null,{"$f":"VLOOKUP(F347,$C$2:$D$599,2,FALSE)","v":{"$error":"#N/A"}},{"$f":"IF(INDIRECT(\"c\" & (VLOOKUP(Rebalance!$D$26,$F$2:$G$48,2,FALSE)+ROW()-2))=Rebalance!$D$26,INDIRECT(\"a\" & (VLOOKUP(Rebalance!$D$26,$F$2:$G$48,2,FALSE)+ROW()-2)),\"\")","v":{"$error":"#N/A"}},{"$f":"IF(INDIRECT(\"c\" & (VLOOKUP(Rebalance!$D$27,$F$2:$G$48,2,FALSE)+ROW()-2))=Rebalance!$D$27,INDIRECT(\"a\" & (VLOOKUP(Rebalance!$D$27,$F$2:$G$48,2,FALSE)+ROW()-2)),\"\")","v":{"$error":"#N/A"}},{"$f":"IF(INDIRECT(\"c\" & (VLOOKUP(Rebalance!$D$28,$F$2:$G$48,2,FALSE)+ROW()-2))=Rebalance!$D$28,INDIRECT(\"a\" & (VLOOKUP(Rebalance!$D$28,$F$2:$G$48,2,FALSE)+ROW()-2)),\"\")","v":{"$error":"#N/A"}},{"$f":"IF(INDIRECT(\"c\" & (VLOOKUP(Rebalance!$D$29,$F$2:$G$48,2,FALSE)+ROW()-2))=Rebalance!$D$29,INDIRECT(\"a\" & (VLOOKUP(Rebalance!$D$29,$F$2:$G$48,2,FALSE)+ROW()-2)),\"\")","v":{"$error":"#N/A"}},{"$f":"IF(INDIRECT(\"c\" & (VLOOKUP(Rebalance!$D$30,$F$2:$G$48,2,FALSE)+ROW()-2))=Rebalance!$D$30,INDIRECT(\"a\" & (VLOOKUP(Rebalance!$D$30,$F$2:$G$48,2,FALSE)+ROW()-2)),\"\")","v":{"$error":"#N/A"}},{"$f":"IF(INDIRECT(\"c\" & (VLOOKUP(Rebalance!$D$31,$F$2:$G$48,2,FALSE)+ROW()-2))=Rebalance!$D$31,INDIRECT(\"a\" & (VLOOKUP(Rebalance!$D$31,$F$2:$G$48,2,FALSE)+ROW()-2)),\"\")","v":{"$error":"#N/A"}},{"$f":"IF(INDIRECT(\"c\" & (VLOOKUP(Rebalance!$D$32,$F$2:$G$48,2,FALSE)+ROW()-2))=Rebalance!$D$32,INDIRECT(\"a\" & (VLOOKUP(Rebalance!$D$32,$F$2:$G$48,2,FALSE)+ROW()-2)),\"\")","v":{"$error":"#N/A"}},{"$f":"IF(INDIRECT(\"c\" & (VLOOKUP(Rebalance!$D$33,$F$2:$G$48,2,FALSE)+ROW()-2))=Rebalance!$D$33,INDIRECT(\"a\" & (VLOOKUP(Rebalance!$D$33,$F$2:$G$48,2,FALSE)+ROW()-2)),\"\")","v":{"$error":"#N/A"}},{"$f":"IF(INDIRECT(\"c\" & (VLOOKUP(Rebalance!$D$34,$F$2:$G$48,2,FALSE)+ROW()-2))=Rebalance!$D$34,INDIRECT(\"a\" & (VLOOKUP(Rebalance!$D$34,$F$2:$G$48,2,FALSE)+ROW()-2)),\"\")","v":{"$error":"#N/A"}},{"$f":"IF(INDIRECT(\"c\" & (VLOOKUP(Rebalance!$D$35,$F$2:$G$48,2,FALSE)+ROW()-2))=Rebalance!$D$35,INDIRECT(\"a\" & (VLOOKUP(Rebalance!$D$35,$F$2:$G$48,2,FALSE)+ROW()-2)),\"\")","v":{"$error":"#N/A"}},{"$f":"IF(INDIRECT(\"c\" & (VLOOKUP(Rebalance!$D$36,$F$2:$G$48,2,FALSE)+ROW()-2))=Rebalance!$D$36,INDIRECT(\"a\" & (VLOOKUP(Rebalance!$D$36,$F$2:$G$48,2,FALSE)+ROW()-2)),\"\")","v":{"$error":"#N/A"}},{"$f":"IF(INDIRECT(\"c\" & (VLOOKUP(Rebalance!$D$37,$F$2:$G$48,2,FALSE)+ROW()-2))=Rebalance!$D$37,INDIRECT(\"a\" & (VLOOKUP(Rebalance!$D$37,$F$2:$G$48,2,FALSE)+ROW()-2)),\"\")","v":{"$error":"#N/A"}},{"$f":"IF(INDIRECT(\"c\" & (VLOOKUP(Rebalance!$D$38,$F$2:$G$48,2,FALSE)+ROW()-2))=Rebalance!$D$38,INDIRECT(\"a\" & (VLOOKUP(Rebalance!$D$38,$F$2:$G$48,2,FALSE)+ROW()-2)),\"\")","v":{"$error":"#N/A"}},{"$f":"IF(INDIRECT(\"c\" & (VLOOKUP(Rebalance!$D$39,$F$2:$G$48,2,FALSE)+ROW()-2))=Rebalance!$D$39,INDIRECT(\"a\" & (VLOOKUP(Rebalance!$D$39,$F$2:$G$48,2,FALSE)+ROW()-2)),\"\")","v":{"$error":"#N/A"}},{"$f":"IF(INDIRECT(\"c\" & (VLOOKUP(Rebalance!$D$40,$F$2:$G$48,2,FALSE)+ROW()-2))=Rebalance!$D$40,INDIRECT(\"a\" & (VLOOKUP(Rebalance!$D$40,$F$2:$G$48,2,FALSE)+ROW()-2)),\"\")","v":{"$error":"#N/A"}},{"$f":"IF(INDIRECT(\"c\" & (VLOOKUP(Rebalance!$D$52,$F$2:$G$48,2,FALSE)+ROW()-2))=Rebalance!$D$52,INDIRECT(\"a\" & (VLOOKUP(Rebalance!$D$52,$F$2:$G$48,2,FALSE)+ROW()-2)),\"\")","v":{"$error":"#N/A"}},{"$f":"IF(INDIRECT(\"c\" & (VLOOKUP(Rebalance!$D$53,$F$2:$G$48,2,FALSE)+ROW()-2))=Rebalance!$D$53,INDIRECT(\"a\" & (VLOOKUP(Rebalance!$D$53,$F$2:$G$48,2,FALSE)+ROW()-2)),\"\")","v":{"$error":"#N/A"}},{"$f":"IF(INDIRECT(\"c\" & (VLOOKUP(Rebalance!$D$54,$F$2:$G$48,2,FALSE)+ROW()-2))=Rebalance!$D$54,INDIRECT(\"a\" & (VLOOKUP(Rebalance!$D$54,$F$2:$G$48,2,FALSE)+ROW()-2)),\"\")","v":{"$error":"#N/A"}},{"$f":"IF(INDIRECT(\"c\" & (VLOOKUP(Rebalance!$D$55,$F$2:$G$48,2,FALSE)+ROW()-2))=Rebalance!$D$55,INDIRECT(\"a\" & (VLOOKUP(Rebalance!$D$55,$F$2:$G$48,2,FALSE)+ROW()-2)),\"\")","v":{"$error":"#N/A"}},{"$f":"IF(INDIRECT(\"c\" & (VLOOKUP(Rebalance!$D$56,$F$2:$G$48,2,FALSE)+ROW()-2))=Rebalance!$D$56,INDIRECT(\"a\" & (VLOOKUP(Rebalance!$D$56,$F$2:$G$48,2,FALSE)+ROW()-2)),\"\")","v":{"$error":"#N/A"}},{"$f":"IF(INDIRECT(\"c\" & (VLOOKUP(Rebalance!$D$57,$F$2:$G$48,2,FALSE)+ROW()-2))=Rebalance!$D$57,INDIRECT(\"a\" & (VLOOKUP(Rebalance!$D$57,$F$2:$G$48,2,FALSE)+ROW()-2)),\"\")","v":{"$error":"#N/A"}},{"$f":"IF(INDIRECT(\"c\" & (VLOOKUP(Rebalance!$D$58,$F$2:$G$48,2,FALSE)+ROW()-2))=Rebalance!$D$58,INDIRECT(\"a\" & (VLOOKUP(Rebalance!$D$58,$F$2:$G$48,2,FALSE)+ROW()-2)),\"\")","v":{"$error":"#N/A"}},{"$f":"IF(INDIRECT(\"c\" & (VLOOKUP(Rebalance!$D$59,$F$2:$G$48,2,FALSE)+ROW()-2))=Rebalance!$D$59,INDIRECT(\"a\" & (VLOOKUP(Rebalance!$D$59,$F$2:$G$48,2,FALSE)+ROW()-2)),\"\")","v":{"$error":"#N/A"}},{"$f":"IF(INDIRECT(\"c\" & (VLOOKUP(Rebalance!$D$60,$F$2:$G$48,2,FALSE)+ROW()-2))=Rebalance!$D$60,INDIRECT(\"a\" & (VLOOKUP(Rebalance!$D$60,$F$2:$G$48,2,FALSE)+ROW()-2)),\"\")","v":{"$error":"#N/A"}},{"$f":"IF(INDIRECT(\"c\" & (VLOOKUP(Rebalance!$D$61,$F$2:$G$48,2,FALSE)+ROW()-2))=Rebalance!$D$61,INDIRECT(\"a\" & (VLOOKUP(Rebalance!$D$61,$F$2:$G$48,2,FALSE)+ROW()-2)),\"\")","v":{"$error":"#N/A"}},{"$f":"IF(INDIRECT(\"c\" & (VLOOKUP(Rebalance!$D$62,$F$2:$G$48,2,FALSE)+ROW()-2))=Rebalance!$D$62,INDIRECT(\"a\" & (VLOOKUP(Rebalance!$D$62,$F$2:$G$48,2,FALSE)+ROW()-2)),\"\")","v":{"$error":"#N/A"}},{"$f":"IF(INDIRECT(\"c\" & (VLOOKUP(Rebalance!$D$63,$F$2:$G$48,2,FALSE)+ROW()-2))=Rebalance!$D$63,INDIRECT(\"a\" & (VLOOKUP(Rebalance!$D$63,$F$2:$G$48,2,FALSE)+ROW()-2)),\"\")","v":{"$error":"#N/A"}},{"$f":"IF(INDIRECT(\"c\" & (VLOOKUP(Rebalance!$D$64,$F$2:$G$48,2,FALSE)+ROW()-2))=Rebalance!$D$64,INDIRECT(\"a\" & (VLOOKUP(Rebalance!$D$64,$F$2:$G$48,2,FALSE)+ROW()-2)),\"\")","v":{"$error":"#N/A"}},{"$f":"IF(INDIRECT(\"c\" & (VLOOKUP(Rebalance!$D$65,$F$2:$G$48,2,FALSE)+ROW()-2))=Rebalance!$D$65,INDIRECT(\"a\" & (VLOOKUP(Rebalance!$D$65,$F$2:$G$48,2,FALSE)+ROW()-2)),\"\")","v":{"$error":"#N/A"}},{"$f":"IF(INDIRECT(\"c\" & (VLOOKUP(Rebalance!$D$66,$F$2:$G$48,2,FALSE)+ROW()-2))=Rebalance!$D$66,INDIRECT(\"a\" & (VLOOKUP(Rebalance!$D$66,$F$2:$G$48,2,FALSE)+ROW()-2)),\"\")","v":{"$error":"#N/A"}}]
["Momentum Optimal Yield Fund","RAB8","Momentum Collective Investments Ltd",{"$f":"ROW()","v":348},null,null,{"$f":"VLOOKUP(F348,$C$2:$D$599,2,FALSE)","v":{"$error":"#N/A"}},{"$f":"IF(INDIRECT(\"c\" & (VLOOKUP(Rebalance!$D$26,$F$2:$G$48,2,FALSE)+ROW()-2))=Rebalance!$D$26,INDIRECT(\"a\" & (VLOOKUP(Rebalance!$D$26,$F$2:$G$48,2,FALSE)+ROW()-2)),\"\")","v":{"$error":"#N/A"}},{"$f":"IF(INDIRECT(\"c\" & (VLOOKUP(Rebalance!$D$27,$F$2:$G$48,2,FALSE)+ROW()-2))=Rebalance!$D$27,INDIRECT(\"a\" & (VLOOKUP(Rebalance!$D$27,$F$2:$G$48,2,FALSE)+ROW()-2)),\"\")","v":{"$error":"#N/A"}},{"$f":"IF(INDIRECT(\"c\" & (VLOOKUP(Rebalance!$D$28,$F$2:$G$48,2,FALSE)+ROW()-2))=Rebalance!$D$28,INDIRECT(\"a\" & (VLOOKUP(Rebalance!$D$28,$F$2:$G$48,2,FALSE)+ROW()-2)),\"\")","v":{"$error":"#N/A"}},{"$f":"IF(INDIRECT(\"c\" & (VLOOKUP(Rebalance!$D$29,$F$2:$G$48,2,FALSE)+ROW()-2))=Rebalance!$D$29,INDIRECT(\"a\" & (VLOOKUP(Rebalance!$D$29,$F$2:$G$48,2,FALSE)+ROW()-2)),\"\")","v":{"$error":"#N/A"}},{"$f":"IF(INDIRECT(\"c\" & (VLOOKUP(Rebalance!$D$30,$F$2:$G$48,2,FALSE)+ROW()-2))=Rebalance!$D$30,INDIRECT(\"a\" & (VLOOKUP(Rebalance!$D$30,$F$2:$G$48,2,FALSE)+ROW()-2)),\"\")","v":{"$error":"#N/A"}},{"$f":"IF(INDIRECT(\"c\" & (VLOOKUP(Rebalance!$D$31,$F$2:$G$48,2,FALSE)+ROW()-2))=Rebalance!$D$31,INDIRECT(\"a\" & (VLOOKUP(Rebalance!$D$31,$F$2:$G$48,2,FALSE)+ROW()-2)),\"\")","v":{"$error":"#N/A"}},{"$f":"IF(INDIRECT(\"c\" & (VLOOKUP(Rebalance!$D$32,$F$2:$G$48,2,FALSE)+ROW()-2))=Rebalance!$D$32,INDIRECT(\"a\" & (VLOOKUP(Rebalance!$D$32,$F$2:$G$48,2,FALSE)+ROW()-2)),\"\")","v":{"$error":"#N/A"}},{"$f":"IF(INDIRECT(\"c\" & (VLOOKUP(Rebalance!$D$33,$F$2:$G$48,2,FALSE)+ROW()-2))=Rebalance!$D$33,INDIRECT(\"a\" & (VLOOKUP(Rebalance!$D$33,$F$2:$G$48,2,FALSE)+ROW()-2)),\"\")","v":{"$error":"#N/A"}},{"$f":"IF(INDIRECT(\"c\" & (VLOOKUP(Rebalance!$D$34,$F$2:$G$48,2,FALSE)+ROW()-2))=Rebalance!$D$34,INDIRECT(\"a\" & (VLOOKUP(Rebalance!$D$34,$F$2:$G$48,2,FALSE)+ROW()-2)),\"\")","v":{"$error":"#N/A"}},{"$f":"IF(INDIRECT(\"c\" & (VLOOKUP(Rebalance!$D$35,$F$2:$G$48,2,FALSE)+ROW()-2))=Rebalance!$D$35,INDIRECT(\"a\" & (VLOOKUP(Rebalance!$D$35,$F$2:$G$48,2,FALSE)+ROW()-2)),\"\")","v":{"$error":"#N/A"}},{"$f":"IF(INDIRECT(\"c\" & (VLOOKUP(Rebalance!$D$36,$F$2:$G$48,2,FALSE)+ROW()-2))=Rebalance!$D$36,INDIRECT(\"a\" & (VLOOKUP(Rebalance!$D$36,$F$2:$G$48,2,FALSE)+ROW()-2)),\"\")","v":{"$error":"#N/A"}},{"$f":"IF(INDIRECT(\"c\" & (VLOOKUP(Rebalance!$D$37,$F$2:$G$48,2,FALSE)+ROW()-2))=Rebalance!$D$37,INDIRECT(\"a\" & (VLOOKUP(Rebalance!$D$37,$F$2:$G$48,2,FALSE)+ROW()-2)),\"\")","v":{"$error":"#N/A"}},{"$f":"IF(INDIRECT(\"c\" & (VLOOKUP(Rebalance!$D$38,$F$2:$G$48,2,FALSE)+ROW()-2))=Rebalance!$D$38,INDIRECT(\"a\" & (VLOOKUP(Rebalance!$D$38,$F$2:$G$48,2,FALSE)+ROW()-2)),\"\")","v":{"$error":"#N/A"}},{"$f":"IF(INDIRECT(\"c\" & (VLOOKUP(Rebalance!$D$39,$F$2:$G$48,2,FALSE)+ROW()-2))=Rebalance!$D$39,INDIRECT(\"a\" & (VLOOKUP(Rebalance!$D$39,$F$2:$G$48,2,FALSE)+ROW()-2)),\"\")","v":{"$error":"#N/A"}},{"$f":"IF(INDIRECT(\"c\" & (VLOOKUP(Rebalance!$D$40,$F$2:$G$48,2,FALSE)+ROW()-2))=Rebalance!$D$40,INDIRECT(\"a\" & (VLOOKUP(Rebalance!$D$40,$F$2:$G$48,2,FALSE)+ROW()-2)),\"\")","v":{"$error":"#N/A"}},{"$f":"IF(INDIRECT(\"c\" & (VLOOKUP(Rebalance!$D$52,$F$2:$G$48,2,FALSE)+ROW()-2))=Rebalance!$D$52,INDIRECT(\"a\" & (VLOOKUP(Rebalance!$D$52,$F$2:$G$48,2,FALSE)+ROW()-2)),\"\")","v":{"$error":"#N/A"}},{"$f":"IF(INDIRECT(\"c\" & (VLOOKUP(Rebalance!$D$53,$F$2:$G$48,2,FALSE)+ROW()-2))=Rebalance!$D$53,INDIRECT(\"a\" & (VLOOKUP(Rebalance!$D$53,$F$2:$G$48,2,FALSE)+ROW()-2)),\"\")","v":{"$error":"#N/A"}},{"$f":"IF(INDIRECT(\"c\" & (VLOOKUP(Rebalance!$D$54,$F$2:$G$48,2,FALSE)+ROW()-2))=Rebalance!$D$54,INDIRECT(\"a\" & (VLOOKUP(Rebalance!$D$54,$F$2:$G$48,2,FALSE)+ROW()-2)),\"\")","v":{"$error":"#N/A"}},{"$f":"IF(INDIRECT(\"c\" & (VLOOKUP(Rebalance!$D$55,$F$2:$G$48,2,FALSE)+ROW()-2))=Rebalance!$D$55,INDIRECT(\"a\" & (VLOOKUP(Rebalance!$D$55,$F$2:$G$48,2,FALSE)+ROW()-2)),\"\")","v":{"$error":"#N/A"}},{"$f":"IF(INDIRECT(\"c\" & (VLOOKUP(Rebalance!$D$56,$F$2:$G$48,2,FALSE)+ROW()-2))=Rebalance!$D$56,INDIRECT(\"a\" & (VLOOKUP(Rebalance!$D$56,$F$2:$G$48,2,FALSE)+ROW()-2)),\"\")","v":{"$error":"#N/A"}},{"$f":"IF(INDIRECT(\"c\" & (VLOOKUP(Rebalance!$D$57,$F$2:$G$48,2,FALSE)+ROW()-2))=Rebalance!$D$57,INDIRECT(\"a\" & (VLOOKUP(Rebalance!$D$57,$F$2:$G$48,2,FALSE)+ROW()-2)),\"\")","v":{"$error":"#N/A"}},{"$f":"IF(INDIRECT(\"c\" & (VLOOKUP(Rebalance!$D$58,$F$2:$G$48,2,FALSE)+ROW()-2))=Rebalance!$D$58,INDIRECT(\"a\" & (VLOOKUP(Rebalance!$D$58,$F$2:$G$48,2,FALSE)+ROW()-2)),\"\")","v":{"$error":"#N/A"}},{"$f":"IF(INDIRECT(\"c\" & (VLOOKUP(Rebalance!$D$59,$F$2:$G$48,2,FALSE)+ROW()-2))=Rebalance!$D$59,INDIRECT(\"a\" & (VLOOKUP(Rebalance!$D$59,$F$2:$G$48,2,FALSE)+ROW()-2)),\"\")","v":{"$error":"#N/A"}},{"$f":"IF(INDIRECT(\"c\" & (VLOOKUP(Rebalance!$D$60,$F$2:$G$48,2,FALSE)+ROW()-2))=Rebalance!$D$60,INDIRECT(\"a\" & (VLOOKUP(Rebalance!$D$60,$F$2:$G$48,2,FALSE)+ROW()-2)),\"\")","v":{"$error":"#N/A"}},{"$f":"IF(INDIRECT(\"c\" & (VLOOKUP(Rebalance!$D$61,$F$2:$G$48,2,FALSE)+ROW()-2))=Rebalance!$D$61,INDIRECT(\"a\" & (VLOOKUP(Rebalance!$D$61,$F$2:$G$48,2,FALSE)+ROW()-2)),\"\")","v":{"$error":"#N/A"}},{"$f":"IF(INDIRECT(\"c\" & (VLOOKUP(Rebalance!$D$62,$F$2:$G$48,2,FALSE)+ROW()-2))=Rebalance!$D$62,INDIRECT(\"a\" & (VLOOKUP(Rebalance!$D$62,$F$2:$G$48,2,FALSE)+ROW()-2)),\"\")","v":{"$error":"#N/A"}},{"$f":"IF(INDIRECT(\"c\" & (VLOOKUP(Rebalance!$D$63,$F$2:$G$48,2,FALSE)+ROW()-2))=Rebalance!$D$63,INDIRECT(\"a\" & (VLOOKUP(Rebalance!$D$63,$F$2:$G$48,2,FALSE)+ROW()-2)),\"\")","v":{"$error":"#N/A"}},{"$f":"IF(INDIRECT(\"c\" & (VLOOKUP(Rebalance!$D$64,$F$2:$G$48,2,FALSE)+ROW()-2))=Rebalance!$D$64,INDIRECT(\"a\" & (VLOOKUP(Rebalance!$D$64,$F$2:$G$48,2,FALSE)+ROW()-2)),\"\")","v":{"$error":"#N/A"}},{"$f":"IF(INDIRECT(\"c\" & (VLOOKUP(Rebalance!$D$65,$F$2:$G$48,2,FALSE)+ROW()-2))=Rebalance!$D$65,INDIRECT(\"a\" & (VLOOKUP(Rebalance!$D$65,$F$2:$G$48,2,FALSE)+ROW()-2)),\"\")","v":{"$error":"#N/A"}},{"$f":"IF(INDIRECT(\"c\" & (VLOOKUP(Rebalance!$D$66,$F$2:$G$48,2,FALSE)+ROW()-2))=Rebalance!$D$66,INDIRECT(\"a\" & (VLOOKUP(Rebalance!$D$66,$F$2:$G$48,2,FALSE)+ROW()-2)),\"\")","v":{"$error":"#N/A"}}]
["Momentum Optimal Yield Fund C1","RAB8","Momentum Collective Investments Ltd",{"$f":"ROW()","v":349},null,null,{"$f":"VLOOKUP(F349,$C$2:$D$599,2,FALSE)","v":{"$error":"#N/A"}},{"$f":"IF(INDIRECT(\"c\" & (VLOOKUP(Rebalance!$D$26,$F$2:$G$48,2,FALSE)+ROW()-2))=Rebalance!$D$26,INDIRECT(\"a\" & (VLOOKUP(Rebalance!$D$26,$F$2:$G$48,2,FALSE)+ROW()-2)),\"\")","v":{"$error":"#N/A"}},{"$f":"IF(INDIRECT(\"c\" & (VLOOKUP(Rebalance!$D$27,$F$2:$G$48,2,FALSE)+ROW()-2))=Rebalance!$D$27,INDIRECT(\"a\" & (VLOOKUP(Rebalance!$D$27,$F$2:$G$48,2,FALSE)+ROW()-2)),\"\")","v":{"$error":"#N/A"}},{"$f":"IF(INDIRECT(\"c\" & (VLOOKUP(Rebalance!$D$28,$F$2:$G$48,2,FALSE)+ROW()-2))=Rebalance!$D$28,INDIRECT(\"a\" & (VLOOKUP(Rebalance!$D$28,$F$2:$G$48,2,FALSE)+ROW()-2)),\"\")","v":{"$error":"#N/A"}},{"$f":"IF(INDIRECT(\"c\" & (VLOOKUP(Rebalance!$D$29,$F$2:$G$48,2,FALSE)+ROW()-2))=Rebalance!$D$29,INDIRECT(\"a\" & (VLOOKUP(Rebalance!$D$29,$F$2:$G$48,2,FALSE)+ROW()-2)),\"\")","v":{"$error":"#N/A"}},{"$f":"IF(INDIRECT(\"c\" & (VLOOKUP(Rebalance!$D$30,$F$2:$G$48,2,FALSE)+ROW()-2))=Rebalance!$D$30,INDIRECT(\"a\" & (VLOOKUP(Rebalance!$D$30,$F$2:$G$48,2,FALSE)+ROW()-2)),\"\")","v":{"$error":"#N/A"}},{"$f":"IF(INDIRECT(\"c\" & (VLOOKUP(Rebalance!$D$31,$F$2:$G$48,2,FALSE)+ROW()-2))=Rebalance!$D$31,INDIRECT(\"a\" & (VLOOKUP(Rebalance!$D$31,$F$2:$G$48,2,FALSE)+ROW()-2)),\"\")","v":{"$error":"#N/A"}},{"$f":"IF(INDIRECT(\"c\" & (VLOOKUP(Rebalance!$D$32,$F$2:$G$48,2,FALSE)+ROW()-2))=Rebalance!$D$32,INDIRECT(\"a\" & (VLOOKUP(Rebalance!$D$32,$F$2:$G$48,2,FALSE)+ROW()-2)),\"\")","v":{"$error":"#N/A"}},{"$f":"IF(INDIRECT(\"c\" & (VLOOKUP(Rebalance!$D$33,$F$2:$G$48,2,FALSE)+ROW()-2))=Rebalance!$D$33,INDIRECT(\"a\" & (VLOOKUP(Rebalance!$D$33,$F$2:$G$48,2,FALSE)+ROW()-2)),\"\")","v":{"$error":"#N/A"}},{"$f":"IF(INDIRECT(\"c\" & (VLOOKUP(Rebalance!$D$34,$F$2:$G$48,2,FALSE)+ROW()-2))=Rebalance!$D$34,INDIRECT(\"a\" & (VLOOKUP(Rebalance!$D$34,$F$2:$G$48,2,FALSE)+ROW()-2)),\"\")","v":{"$error":"#N/A"}},{"$f":"IF(INDIRECT(\"c\" & (VLOOKUP(Rebalance!$D$35,$F$2:$G$48,2,FALSE)+ROW()-2))=Rebalance!$D$35,INDIRECT(\"a\" & (VLOOKUP(Rebalance!$D$35,$F$2:$G$48,2,FALSE)+ROW()-2)),\"\")","v":{"$error":"#N/A"}},{"$f":"IF(INDIRECT(\"c\" & (VLOOKUP(Rebalance!$D$36,$F$2:$G$48,2,FALSE)+ROW()-2))=Rebalance!$D$36,INDIRECT(\"a\" & (VLOOKUP(Rebalance!$D$36,$F$2:$G$48,2,FALSE)+ROW()-2)),\"\")","v":{"$error":"#N/A"}},{"$f":"IF(INDIRECT(\"c\" & (VLOOKUP(Rebalance!$D$37,$F$2:$G$48,2,FALSE)+ROW()-2))=Rebalance!$D$37,INDIRECT(\"a\" & (VLOOKUP(Rebalance!$D$37,$F$2:$G$48,2,FALSE)+ROW()-2)),\"\")","v":{"$error":"#N/A"}},{"$f":"IF(INDIRECT(\"c\" & (VLOOKUP(Rebalance!$D$38,$F$2:$G$48,2,FALSE)+ROW()-2))=Rebalance!$D$38,INDIRECT(\"a\" & (VLOOKUP(Rebalance!$D$38,$F$2:$G$48,2,FALSE)+ROW()-2)),\"\")","v":{"$error":"#N/A"}},{"$f":"IF(INDIRECT(\"c\" & (VLOOKUP(Rebalance!$D$39,$F$2:$G$48,2,FALSE)+ROW()-2))=Rebalance!$D$39,INDIRECT(\"a\" & (VLOOKUP(Rebalance!$D$39,$F$2:$G$48,2,FALSE)+ROW()-2)),\"\")","v":{"$error":"#N/A"}},{"$f":"IF(INDIRECT(\"c\" & (VLOOKUP(Rebalance!$D$40,$F$2:$G$48,2,FALSE)+ROW()-2))=Rebalance!$D$40,INDIRECT(\"a\" & (VLOOKUP(Rebalance!$D$40,$F$2:$G$48,2,FALSE)+ROW()-2)),\"\")","v":{"$error":"#N/A"}},{"$f":"IF(INDIRECT(\"c\" & (VLOOKUP(Rebalance!$D$52,$F$2:$G$48,2,FALSE)+ROW()-2))=Rebalance!$D$52,INDIRECT(\"a\" & (VLOOKUP(Rebalance!$D$52,$F$2:$G$48,2,FALSE)+ROW()-2)),\"\")","v":{"$error":"#N/A"}},{"$f":"IF(INDIRECT(\"c\" & (VLOOKUP(Rebalance!$D$53,$F$2:$G$48,2,FALSE)+ROW()-2))=Rebalance!$D$53,INDIRECT(\"a\" & (VLOOKUP(Rebalance!$D$53,$F$2:$G$48,2,FALSE)+ROW()-2)),\"\")","v":{"$error":"#N/A"}},{"$f":"IF(INDIRECT(\"c\" & (VLOOKUP(Rebalance!$D$54,$F$2:$G$48,2,FALSE)+ROW()-2))=Rebalance!$D$54,INDIRECT(\"a\" & (VLOOKUP(Rebalance!$D$54,$F$2:$G$48,2,FALSE)+ROW()-2)),\"\")","v":{"$error":"#N/A"}},{"$f":"IF(INDIRECT(\"c\" & (VLOOKUP(Rebalance!$D$55,$F$2:$G$48,2,FALSE)+ROW()-2))=Rebalance!$D$55,INDIRECT(\"a\" & (VLOOKUP(Rebalance!$D$55,$F$2:$G$48,2,FALSE)+ROW()-2)),\"\")","v":{"$error":"#N/A"}},{"$f":"IF(INDIRECT(\"c\" & (VLOOKUP(Rebalance!$D$56,$F$2:$G$48,2,FALSE)+ROW()-2))=Rebalance!$D$56,INDIRECT(\"a\" & (VLOOKUP(Rebalance!$D$56,$F$2:$G$48,2,FALSE)+ROW()-2)),\"\")","v":{"$error":"#N/A"}},{"$f":"IF(INDIRECT(\"c\" & (VLOOKUP(Rebalance!$D$57,$F$2:$G$48,2,FALSE)+ROW()-2))=Rebalance!$D$57,INDIRECT(\"a\" & (VLOOKUP(Rebalance!$D$57,$F$2:$G$48,2,FALSE)+ROW()-2)),\"\")","v":{"$error":"#N/A"}},{"$f":"IF(INDIRECT(\"c\" & (VLOOKUP(Rebalance!$D$58,$F$2:$G$48,2,FALSE)+ROW()-2))=Rebalance!$D$58,INDIRECT(\"a\" & (VLOOKUP(Rebalance!$D$58,$F$2:$G$48,2,FALSE)+ROW()-2)),\"\")","v":{"$error":"#N/A"}},{"$f":"IF(INDIRECT(\"c\" & (VLOOKUP(Rebalance!$D$59,$F$2:$G$48,2,FALSE)+ROW()-2))=Rebalance!$D$59,INDIRECT(\"a\" & (VLOOKUP(Rebalance!$D$59,$F$2:$G$48,2,FALSE)+ROW()-2)),\"\")","v":{"$error":"#N/A"}},{"$f":"IF(INDIRECT(\"c\" & (VLOOKUP(Rebalance!$D$60,$F$2:$G$48,2,FALSE)+ROW()-2))=Rebalance!$D$60,INDIRECT(\"a\" & (VLOOKUP(Rebalance!$D$60,$F$2:$G$48,2,FALSE)+ROW()-2)),\"\")","v":{"$error":"#N/A"}},{"$f":"IF(INDIRECT(\"c\" & (VLOOKUP(Rebalance!$D$61,$F$2:$G$48,2,FALSE)+ROW()-2))=Rebalance!$D$61,INDIRECT(\"a\" & (VLOOKUP(Rebalance!$D$61,$F$2:$G$48,2,FALSE)+ROW()-2)),\"\")","v":{"$error":"#N/A"}},{"$f":"IF(INDIRECT(\"c\" & (VLOOKUP(Rebalance!$D$62,$F$2:$G$48,2,FALSE)+ROW()-2))=Rebalance!$D$62,INDIRECT(\"a\" & (VLOOKUP(Rebalance!$D$62,$F$2:$G$48,2,FALSE)+ROW()-2)),\"\")","v":{"$error":"#N/A"}},{"$f":"IF(INDIRECT(\"c\" & (VLOOKUP(Rebalance!$D$63,$F$2:$G$48,2,FALSE)+ROW()-2))=Rebalance!$D$63,INDIRECT(\"a\" & (VLOOKUP(Rebalance!$D$63,$F$2:$G$48,2,FALSE)+ROW()-2)),\"\")","v":{"$error":"#N/A"}},{"$f":"IF(INDIRECT(\"c\" & (VLOOKUP(Rebalance!$D$64,$F$2:$G$48,2,FALSE)+ROW()-2))=Rebalance!$D$64,INDIRECT(\"a\" & (VLOOKUP(Rebalance!$D$64,$F$2:$G$48,2,FALSE)+ROW()-2)),\"\")","v":{"$error":"#N/A"}},{"$f":"IF(INDIRECT(\"c\" & (VLOOKUP(Rebalance!$D$65,$F$2:$G$48,2,FALSE)+ROW()-2))=Rebalance!$D$65,INDIRECT(\"a\" & (VLOOKUP(Rebalance!$D$65,$F$2:$G$48,2,FALSE)+ROW()-2)),\"\")","v":{"$error":"#N/A"}},{"$f":"IF(INDIRECT(\"c\" & (VLOOKUP(Rebalance!$D$66,$F$2:$G$48,2,FALSE)+ROW()-2))=Rebalance!$D$66,INDIRECT(\"a\" & (VLOOKUP(Rebalance!$D$66,$F$2:$G$48,2,FALSE)+ROW()-2)),\"\")","v":{"$error":"#N/A"}}]
["Momentum Small/Mid-Cap Fund","MMCB5","Momentum Collective Investments Ltd",{"$f":"ROW()","v":350},null,null,{"$f":"VLOOKUP(F350,$C$2:$D$599,2,FALSE)","v":{"$error":"#N/A"}},{"$f":"IF(INDIRECT(\"c\" & (VLOOKUP(Rebalance!$D$26,$F$2:$G$48,2,FALSE)+ROW()-2))=Rebalance!$D$26,INDIRECT(\"a\" & (VLOOKUP(Rebalance!$D$26,$F$2:$G$48,2,FALSE)+ROW()-2)),\"\")","v":{"$error":"#N/A"}},{"$f":"IF(INDIRECT(\"c\" & (VLOOKUP(Rebalance!$D$27,$F$2:$G$48,2,FALSE)+ROW()-2))=Rebalance!$D$27,INDIRECT(\"a\" & (VLOOKUP(Rebalance!$D$27,$F$2:$G$48,2,FALSE)+ROW()-2)),\"\")","v":{"$error":"#N/A"}},{"$f":"IF(INDIRECT(\"c\" & (VLOOKUP(Rebalance!$D$28,$F$2:$G$48,2,FALSE)+ROW()-2))=Rebalance!$D$28,INDIRECT(\"a\" & (VLOOKUP(Rebalance!$D$28,$F$2:$G$48,2,FALSE)+ROW()-2)),\"\")","v":{"$error":"#N/A"}},{"$f":"IF(INDIRECT(\"c\" & (VLOOKUP(Rebalance!$D$29,$F$2:$G$48,2,FALSE)+ROW()-2))=Rebalance!$D$29,INDIRECT(\"a\" & (VLOOKUP(Rebalance!$D$29,$F$2:$G$48,2,FALSE)+ROW()-2)),\"\")","v":{"$error":"#N/A"}},{"$f":"IF(INDIRECT(\"c\" & (VLOOKUP(Rebalance!$D$30,$F$2:$G$48,2,FALSE)+ROW()-2))=Rebalance!$D$30,INDIRECT(\"a\" & (VLOOKUP(Rebalance!$D$30,$F$2:$G$48,2,FALSE)+ROW()-2)),\"\")","v":{"$error":"#N/A"}},{"$f":"IF(INDIRECT(\"c\" & (VLOOKUP(Rebalance!$D$31,$F$2:$G$48,2,FALSE)+ROW()-2))=Rebalance!$D$31,INDIRECT(\"a\" & (VLOOKUP(Rebalance!$D$31,$F$2:$G$48,2,FALSE)+ROW()-2)),\"\")","v":{"$error":"#N/A"}},{"$f":"IF(INDIRECT(\"c\" & (VLOOKUP(Rebalance!$D$32,$F$2:$G$48,2,FALSE)+ROW()-2))=Rebalance!$D$32,INDIRECT(\"a\" & (VLOOKUP(Rebalance!$D$32,$F$2:$G$48,2,FALSE)+ROW()-2)),\"\")","v":{"$error":"#N/A"}},{"$f":"IF(INDIRECT(\"c\" & (VLOOKUP(Rebalance!$D$33,$F$2:$G$48,2,FALSE)+ROW()-2))=Rebalance!$D$33,INDIRECT(\"a\" & (VLOOKUP(Rebalance!$D$33,$F$2:$G$48,2,FALSE)+ROW()-2)),\"\")","v":{"$error":"#N/A"}},{"$f":"IF(INDIRECT(\"c\" & (VLOOKUP(Rebalance!$D$34,$F$2:$G$48,2,FALSE)+ROW()-2))=Rebalance!$D$34,INDIRECT(\"a\" & (VLOOKUP(Rebalance!$D$34,$F$2:$G$48,2,FALSE)+ROW()-2)),\"\")","v":{"$error":"#N/A"}},{"$f":"IF(INDIRECT(\"c\" & (VLOOKUP(Rebalance!$D$35,$F$2:$G$48,2,FALSE)+ROW()-2))=Rebalance!$D$35,INDIRECT(\"a\" & (VLOOKUP(Rebalance!$D$35,$F$2:$G$48,2,FALSE)+ROW()-2)),\"\")","v":{"$error":"#N/A"}},{"$f":"IF(INDIRECT(\"c\" & (VLOOKUP(Rebalance!$D$36,$F$2:$G$48,2,FALSE)+ROW()-2))=Rebalance!$D$36,INDIRECT(\"a\" & (VLOOKUP(Rebalance!$D$36,$F$2:$G$48,2,FALSE)+ROW()-2)),\"\")","v":{"$error":"#N/A"}},{"$f":"IF(INDIRECT(\"c\" & (VLOOKUP(Rebalance!$D$37,$F$2:$G$48,2,FALSE)+ROW()-2))=Rebalance!$D$37,INDIRECT(\"a\" & (VLOOKUP(Rebalance!$D$37,$F$2:$G$48,2,FALSE)+ROW()-2)),\"\")","v":{"$error":"#N/A"}},{"$f":"IF(INDIRECT(\"c\" & (VLOOKUP(Rebalance!$D$38,$F$2:$G$48,2,FALSE)+ROW()-2))=Rebalance!$D$38,INDIRECT(\"a\" & (VLOOKUP(Rebalance!$D$38,$F$2:$G$48,2,FALSE)+ROW()-2)),\"\")","v":{"$error":"#N/A"}},{"$f":"IF(INDIRECT(\"c\" & (VLOOKUP(Rebalance!$D$39,$F$2:$G$48,2,FALSE)+ROW()-2))=Rebalance!$D$39,INDIRECT(\"a\" & (VLOOKUP(Rebalance!$D$39,$F$2:$G$48,2,FALSE)+ROW()-2)),\"\")","v":{"$error":"#N/A"}},{"$f":"IF(INDIRECT(\"c\" & (VLOOKUP(Rebalance!$D$40,$F$2:$G$48,2,FALSE)+ROW()-2))=Rebalance!$D$40,INDIRECT(\"a\" & (VLOOKUP(Rebalance!$D$40,$F$2:$G$48,2,FALSE)+ROW()-2)),\"\")","v":{"$error":"#N/A"}},{"$f":"IF(INDIRECT(\"c\" & (VLOOKUP(Rebalance!$D$52,$F$2:$G$48,2,FALSE)+ROW()-2))=Rebalance!$D$52,INDIRECT(\"a\" & (VLOOKUP(Rebalance!$D$52,$F$2:$G$48,2,FALSE)+ROW()-2)),\"\")","v":{"$error":"#N/A"}},{"$f":"IF(INDIRECT(\"c\" & (VLOOKUP(Rebalance!$D$53,$F$2:$G$48,2,FALSE)+ROW()-2))=Rebalance!$D$53,INDIRECT(\"a\" & (VLOOKUP(Rebalance!$D$53,$F$2:$G$48,2,FALSE)+ROW()-2)),\"\")","v":{"$error":"#N/A"}},{"$f":"IF(INDIRECT(\"c\" & (VLOOKUP(Rebalance!$D$54,$F$2:$G$48,2,FALSE)+ROW()-2))=Rebalance!$D$54,INDIRECT(\"a\" & (VLOOKUP(Rebalance!$D$54,$F$2:$G$48,2,FALSE)+ROW()-2)),\"\")","v":{"$error":"#N/A"}},{"$f":"IF(INDIRECT(\"c\" & (VLOOKUP(Rebalance!$D$55,$F$2:$G$48,2,FALSE)+ROW()-2))=Rebalance!$D$55,INDIRECT(\"a\" & (VLOOKUP(Rebalance!$D$55,$F$2:$G$48,2,FALSE)+ROW()-2)),\"\")","v":{"$error":"#N/A"}},{"$f":"IF(INDIRECT(\"c\" & (VLOOKUP(Rebalance!$D$56,$F$2:$G$48,2,FALSE)+ROW()-2))=Rebalance!$D$56,INDIRECT(\"a\" & (VLOOKUP(Rebalance!$D$56,$F$2:$G$48,2,FALSE)+ROW()-2)),\"\")","v":{"$error":"#N/A"}},{"$f":"IF(INDIRECT(\"c\" & (VLOOKUP(Rebalance!$D$57,$F$2:$G$48,2,FALSE)+ROW()-2))=Rebalance!$D$57,INDIRECT(\"a\" & (VLOOKUP(Rebalance!$D$57,$F$2:$G$48,2,FALSE)+ROW()-2)),\"\")","v":{"$error":"#N/A"}},{"$f":"IF(INDIRECT(\"c\" & (VLOOKUP(Rebalance!$D$58,$F$2:$G$48,2,FALSE)+ROW()-2))=Rebalance!$D$58,INDIRECT(\"a\" & (VLOOKUP(Rebalance!$D$58,$F$2:$G$48,2,FALSE)+ROW()-2)),\"\")","v":{"$error":"#N/A"}},{"$f":"IF(INDIRECT(\"c\" & (VLOOKUP(Rebalance!$D$59,$F$2:$G$48,2,FALSE)+ROW()-2))=Rebalance!$D$59,INDIRECT(\"a\" & (VLOOKUP(Rebalance!$D$59,$F$2:$G$48,2,FALSE)+ROW()-2)),\"\")","v":{"$error":"#N/A"}},{"$f":"IF(INDIRECT(\"c\" & (VLOOKUP(Rebalance!$D$60,$F$2:$G$48,2,FALSE)+ROW()-2))=Rebalance!$D$60,INDIRECT(\"a\" & (VLOOKUP(Rebalance!$D$60,$F$2:$G$48,2,FALSE)+ROW()-2)),\"\")","v":{"$error":"#N/A"}},{"$f":"IF(INDIRECT(\"c\" & (VLOOKUP(Rebalance!$D$61,$F$2:$G$48,2,FALSE)+ROW()-2))=Rebalance!$D$61,INDIRECT(\"a\" & (VLOOKUP(Rebalance!$D$61,$F$2:$G$48,2,FALSE)+ROW()-2)),\"\")","v":{"$error":"#N/A"}},{"$f":"IF(INDIRECT(\"c\" & (VLOOKUP(Rebalance!$D$62,$F$2:$G$48,2,FALSE)+ROW()-2))=Rebalance!$D$62,INDIRECT(\"a\" & (VLOOKUP(Rebalance!$D$62,$F$2:$G$48,2,FALSE)+ROW()-2)),\"\")","v":{"$error":"#N/A"}},{"$f":"IF(INDIRECT(\"c\" & (VLOOKUP(Rebalance!$D$63,$F$2:$G$48,2,FALSE)+ROW()-2))=Rebalance!$D$63,INDIRECT(\"a\" & (VLOOKUP(Rebalance!$D$63,$F$2:$G$48,2,FALSE)+ROW()-2)),\"\")","v":{"$error":"#N/A"}},{"$f":"IF(INDIRECT(\"c\" & (VLOOKUP(Rebalance!$D$64,$F$2:$G$48,2,FALSE)+ROW()-2))=Rebalance!$D$64,INDIRECT(\"a\" & (VLOOKUP(Rebalance!$D$64,$F$2:$G$48,2,FALSE)+ROW()-2)),\"\")","v":{"$error":"#N/A"}},{"$f":"IF(INDIRECT(\"c\" & (VLOOKUP(Rebalance!$D$65,$F$2:$G$48,2,FALSE)+ROW()-2))=Rebalance!$D$65,INDIRECT(\"a\" & (VLOOKUP(Rebalance!$D$65,$F$2:$G$48,2,FALSE)+ROW()-2)),\"\")","v":{"$error":"#N/A"}},{"$f":"IF(INDIRECT(\"c\" & (VLOOKUP(Rebalance!$D$66,$F$2:$G$48,2,FALSE)+ROW()-2))=Rebalance!$D$66,INDIRECT(\"a\" & (VLOOKUP(Rebalance!$D$66,$F$2:$G$48,2,FALSE)+ROW()-2)),\"\")","v":{"$error":"#N/A"}}]
["Momentum Small\\Mid- Cap Fund C1","MMCB5","Momentum Collective Investments Ltd",{"$f":"ROW()","v":351},null,null,{"$f":"VLOOKUP(F351,$C$2:$D$599,2,FALSE)","v":{"$error":"#N/A"}},{"$f":"IF(INDIRECT(\"c\" & (VLOOKUP(Rebalance!$D$26,$F$2:$G$48,2,FALSE)+ROW()-2))=Rebalance!$D$26,INDIRECT(\"a\" & (VLOOKUP(Rebalance!$D$26,$F$2:$G$48,2,FALSE)+ROW()-2)),\"\")","v":{"$error":"#N/A"}},{"$f":"IF(INDIRECT(\"c\" & (VLOOKUP(Rebalance!$D$27,$F$2:$G$48,2,FALSE)+ROW()-2))=Rebalance!$D$27,INDIRECT(\"a\" & (VLOOKUP(Rebalance!$D$27,$F$2:$G$48,2,FALSE)+ROW()-2)),\"\")","v":{"$error":"#N/A"}},{"$f":"IF(INDIRECT(\"c\" & (VLOOKUP(Rebalance!$D$28,$F$2:$G$48,2,FALSE)+ROW()-2))=Rebalance!$D$28,INDIRECT(\"a\" & (VLOOKUP(Rebalance!$D$28,$F$2:$G$48,2,FALSE)+ROW()-2)),\"\")","v":{"$error":"#N/A"}},{"$f":"IF(INDIRECT(\"c\" & (VLOOKUP(Rebalance!$D$29,$F$2:$G$48,2,FALSE)+ROW()-2))=Rebalance!$D$29,INDIRECT(\"a\" & (VLOOKUP(Rebalance!$D$29,$F$2:$G$48,2,FALSE)+ROW()-2)),\"\")","v":{"$error":"#N/A"}},{"$f":"IF(INDIRECT(\"c\" & (VLOOKUP(Rebalance!$D$30,$F$2:$G$48,2,FALSE)+ROW()-2))=Rebalance!$D$30,INDIRECT(\"a\" & (VLOOKUP(Rebalance!$D$30,$F$2:$G$48,2,FALSE)+ROW()-2)),\"\")","v":{"$error":"#N/A"}},{"$f":"IF(INDIRECT(\"c\" & (VLOOKUP(Rebalance!$D$31,$F$2:$G$48,2,FALSE)+ROW()-2))=Rebalance!$D$31,INDIRECT(\"a\" & (VLOOKUP(Rebalance!$D$31,$F$2:$G$48,2,FALSE)+ROW()-2)),\"\")","v":{"$error":"#N/A"}},{"$f":"IF(INDIRECT(\"c\" & (VLOOKUP(Rebalance!$D$32,$F$2:$G$48,2,FALSE)+ROW()-2))=Rebalance!$D$32,INDIRECT(\"a\" & (VLOOKUP(Rebalance!$D$32,$F$2:$G$48,2,FALSE)+ROW()-2)),\"\")","v":{"$error":"#N/A"}},{"$f":"IF(INDIRECT(\"c\" & (VLOOKUP(Rebalance!$D$33,$F$2:$G$48,2,FALSE)+ROW()-2))=Rebalance!$D$33,INDIRECT(\"a\" & (VLOOKUP(Rebalance!$D$33,$F$2:$G$48,2,FALSE)+ROW()-2)),\"\")","v":{"$error":"#N/A"}},{"$f":"IF(INDIRECT(\"c\" & (VLOOKUP(Rebalance!$D$34,$F$2:$G$48,2,FALSE)+ROW()-2))=Rebalance!$D$34,INDIRECT(\"a\" & (VLOOKUP(Rebalance!$D$34,$F$2:$G$48,2,FALSE)+ROW()-2)),\"\")","v":{"$error":"#N/A"}},{"$f":"IF(INDIRECT(\"c\" & (VLOOKUP(Rebalance!$D$35,$F$2:$G$48,2,FALSE)+ROW()-2))=Rebalance!$D$35,INDIRECT(\"a\" & (VLOOKUP(Rebalance!$D$35,$F$2:$G$48,2,FALSE)+ROW()-2)),\"\")","v":{"$error":"#N/A"}},{"$f":"IF(INDIRECT(\"c\" & (VLOOKUP(Rebalance!$D$36,$F$2:$G$48,2,FALSE)+ROW()-2))=Rebalance!$D$36,INDIRECT(\"a\" & (VLOOKUP(Rebalance!$D$36,$F$2:$G$48,2,FALSE)+ROW()-2)),\"\")","v":{"$error":"#N/A"}},{"$f":"IF(INDIRECT(\"c\" & (VLOOKUP(Rebalance!$D$37,$F$2:$G$48,2,FALSE)+ROW()-2))=Rebalance!$D$37,INDIRECT(\"a\" & (VLOOKUP(Rebalance!$D$37,$F$2:$G$48,2,FALSE)+ROW()-2)),\"\")","v":{"$error":"#N/A"}},{"$f":"IF(INDIRECT(\"c\" & (VLOOKUP(Rebalance!$D$38,$F$2:$G$48,2,FALSE)+ROW()-2))=Rebalance!$D$38,INDIRECT(\"a\" & (VLOOKUP(Rebalance!$D$38,$F$2:$G$48,2,FALSE)+ROW()-2)),\"\")","v":{"$error":"#N/A"}},{"$f":"IF(INDIRECT(\"c\" & (VLOOKUP(Rebalance!$D$39,$F$2:$G$48,2,FALSE)+ROW()-2))=Rebalance!$D$39,INDIRECT(\"a\" & (VLOOKUP(Rebalance!$D$39,$F$2:$G$48,2,FALSE)+ROW()-2)),\"\")","v":{"$error":"#N/A"}},{"$f":"IF(INDIRECT(\"c\" & (VLOOKUP(Rebalance!$D$40,$F$2:$G$48,2,FALSE)+ROW()-2))=Rebalance!$D$40,INDIRECT(\"a\" & (VLOOKUP(Rebalance!$D$40,$F$2:$G$48,2,FALSE)+ROW()-2)),\"\")","v":{"$error":"#N/A"}},{"$f":"IF(INDIRECT(\"c\" & (VLOOKUP(Rebalance!$D$52,$F$2:$G$48,2,FALSE)+ROW()-2))=Rebalance!$D$52,INDIRECT(\"a\" & (VLOOKUP(Rebalance!$D$52,$F$2:$G$48,2,FALSE)+ROW()-2)),\"\")","v":{"$error":"#N/A"}},{"$f":"IF(INDIRECT(\"c\" & (VLOOKUP(Rebalance!$D$53,$F$2:$G$48,2,FALSE)+ROW()-2))=Rebalance!$D$53,INDIRECT(\"a\" & (VLOOKUP(Rebalance!$D$53,$F$2:$G$48,2,FALSE)+ROW()-2)),\"\")","v":{"$error":"#N/A"}},{"$f":"IF(INDIRECT(\"c\" & (VLOOKUP(Rebalance!$D$54,$F$2:$G$48,2,FALSE)+ROW()-2))=Rebalance!$D$54,INDIRECT(\"a\" & (VLOOKUP(Rebalance!$D$54,$F$2:$G$48,2,FALSE)+ROW()-2)),\"\")","v":{"$error":"#N/A"}},{"$f":"IF(INDIRECT(\"c\" & (VLOOKUP(Rebalance!$D$55,$F$2:$G$48,2,FALSE)+ROW()-2))=Rebalance!$D$55,INDIRECT(\"a\" & (VLOOKUP(Rebalance!$D$55,$F$2:$G$48,2,FALSE)+ROW()-2)),\"\")","v":{"$error":"#N/A"}},{"$f":"IF(INDIRECT(\"c\" & (VLOOKUP(Rebalance!$D$56,$F$2:$G$48,2,FALSE)+ROW()-2))=Rebalance!$D$56,INDIRECT(\"a\" & (VLOOKUP(Rebalance!$D$56,$F$2:$G$48,2,FALSE)+ROW()-2)),\"\")","v":{"$error":"#N/A"}},{"$f":"IF(INDIRECT(\"c\" & (VLOOKUP(Rebalance!$D$57,$F$2:$G$48,2,FALSE)+ROW()-2))=Rebalance!$D$57,INDIRECT(\"a\" & (VLOOKUP(Rebalance!$D$57,$F$2:$G$48,2,FALSE)+ROW()-2)),\"\")","v":{"$error":"#N/A"}},{"$f":"IF(INDIRECT(\"c\" & (VLOOKUP(Rebalance!$D$58,$F$2:$G$48,2,FALSE)+ROW()-2))=Rebalance!$D$58,INDIRECT(\"a\" & (VLOOKUP(Rebalance!$D$58,$F$2:$G$48,2,FALSE)+ROW()-2)),\"\")","v":{"$error":"#N/A"}},{"$f":"IF(INDIRECT(\"c\" & (VLOOKUP(Rebalance!$D$59,$F$2:$G$48,2,FALSE)+ROW()-2))=Rebalance!$D$59,INDIRECT(\"a\" & (VLOOKUP(Rebalance!$D$59,$F$2:$G$48,2,FALSE)+ROW()-2)),\"\")","v":{"$error":"#N/A"}},{"$f":"IF(INDIRECT(\"c\" & (VLOOKUP(Rebalance!$D$60,$F$2:$G$48,2,FALSE)+ROW()-2))=Rebalance!$D$60,INDIRECT(\"a\" & (VLOOKUP(Rebalance!$D$60,$F$2:$G$48,2,FALSE)+ROW()-2)),\"\")","v":{"$error":"#N/A"}},{"$f":"IF(INDIRECT(\"c\" & (VLOOKUP(Rebalance!$D$61,$F$2:$G$48,2,FALSE)+ROW()-2))=Rebalance!$D$61,INDIRECT(\"a\" & (VLOOKUP(Rebalance!$D$61,$F$2:$G$48,2,FALSE)+ROW()-2)),\"\")","v":{"$error":"#N/A"}},{"$f":"IF(INDIRECT(\"c\" & (VLOOKUP(Rebalance!$D$62,$F$2:$G$48,2,FALSE)+ROW()-2))=Rebalance!$D$62,INDIRECT(\"a\" & (VLOOKUP(Rebalance!$D$62,$F$2:$G$48,2,FALSE)+ROW()-2)),\"\")","v":{"$error":"#N/A"}},{"$f":"IF(INDIRECT(\"c\" & (VLOOKUP(Rebalance!$D$63,$F$2:$G$48,2,FALSE)+ROW()-2))=Rebalance!$D$63,INDIRECT(\"a\" & (VLOOKUP(Rebalance!$D$63,$F$2:$G$48,2,FALSE)+ROW()-2)),\"\")","v":{"$error":"#N/A"}},{"$f":"IF(INDIRECT(\"c\" & (VLOOKUP(Rebalance!$D$64,$F$2:$G$48,2,FALSE)+ROW()-2))=Rebalance!$D$64,INDIRECT(\"a\" & (VLOOKUP(Rebalance!$D$64,$F$2:$G$48,2,FALSE)+ROW()-2)),\"\")","v":{"$error":"#N/A"}},{"$f":"IF(INDIRECT(\"c\" & (VLOOKUP(Rebalance!$D$65,$F$2:$G$48,2,FALSE)+ROW()-2))=Rebalance!$D$65,INDIRECT(\"a\" & (VLOOKUP(Rebalance!$D$65,$F$2:$G$48,2,FALSE)+ROW()-2)),\"\")","v":{"$error":"#N/A"}},{"$f":"IF(INDIRECT(\"c\" & (VLOOKUP(Rebalance!$D$66,$F$2:$G$48,2,FALSE)+ROW()-2))=Rebalance!$D$66,INDIRECT(\"a\" & (VLOOKUP(Rebalance!$D$66,$F$2:$G$48,2,FALSE)+ROW()-2)),\"\")","v":{"$error":"#N/A"}}]
["Momentum Value Fund A","RMVF","Momentum Collective Investments Ltd",{"$f":"ROW()","v":352},null,null,{"$f":"VLOOKUP(F352,$C$2:$D$599,2,FALSE)","v":{"$error":"#N/A"}},{"$f":"IF(INDIRECT(\"c\" & (VLOOKUP(Rebalance!$D$26,$F$2:$G$48,2,FALSE)+ROW()-2))=Rebalance!$D$26,INDIRECT(\"a\" & (VLOOKUP(Rebalance!$D$26,$F$2:$G$48,2,FALSE)+ROW()-2)),\"\")","v":{"$error":"#N/A"}},{"$f":"IF(INDIRECT(\"c\" & (VLOOKUP(Rebalance!$D$27,$F$2:$G$48,2,FALSE)+ROW()-2))=Rebalance!$D$27,INDIRECT(\"a\" & (VLOOKUP(Rebalance!$D$27,$F$2:$G$48,2,FALSE)+ROW()-2)),\"\")","v":{"$error":"#N/A"}},{"$f":"IF(INDIRECT(\"c\" & (VLOOKUP(Rebalance!$D$28,$F$2:$G$48,2,FALSE)+ROW()-2))=Rebalance!$D$28,INDIRECT(\"a\" & (VLOOKUP(Rebalance!$D$28,$F$2:$G$48,2,FALSE)+ROW()-2)),\"\")","v":{"$error":"#N/A"}},{"$f":"IF(INDIRECT(\"c\" & (VLOOKUP(Rebalance!$D$29,$F$2:$G$48,2,FALSE)+ROW()-2))=Rebalance!$D$29,INDIRECT(\"a\" & (VLOOKUP(Rebalance!$D$29,$F$2:$G$48,2,FALSE)+ROW()-2)),\"\")","v":{"$error":"#N/A"}},{"$f":"IF(INDIRECT(\"c\" & (VLOOKUP(Rebalance!$D$30,$F$2:$G$48,2,FALSE)+ROW()-2))=Rebalance!$D$30,INDIRECT(\"a\" & (VLOOKUP(Rebalance!$D$30,$F$2:$G$48,2,FALSE)+ROW()-2)),\"\")","v":{"$error":"#N/A"}},{"$f":"IF(INDIRECT(\"c\" & (VLOOKUP(Rebalance!$D$31,$F$2:$G$48,2,FALSE)+ROW()-2))=Rebalance!$D$31,INDIRECT(\"a\" & (VLOOKUP(Rebalance!$D$31,$F$2:$G$48,2,FALSE)+ROW()-2)),\"\")","v":{"$error":"#N/A"}},{"$f":"IF(INDIRECT(\"c\" & (VLOOKUP(Rebalance!$D$32,$F$2:$G$48,2,FALSE)+ROW()-2))=Rebalance!$D$32,INDIRECT(\"a\" & (VLOOKUP(Rebalance!$D$32,$F$2:$G$48,2,FALSE)+ROW()-2)),\"\")","v":{"$error":"#N/A"}},{"$f":"IF(INDIRECT(\"c\" & (VLOOKUP(Rebalance!$D$33,$F$2:$G$48,2,FALSE)+ROW()-2))=Rebalance!$D$33,INDIRECT(\"a\" & (VLOOKUP(Rebalance!$D$33,$F$2:$G$48,2,FALSE)+ROW()-2)),\"\")","v":{"$error":"#N/A"}},{"$f":"IF(INDIRECT(\"c\" & (VLOOKUP(Rebalance!$D$34,$F$2:$G$48,2,FALSE)+ROW()-2))=Rebalance!$D$34,INDIRECT(\"a\" & (VLOOKUP(Rebalance!$D$34,$F$2:$G$48,2,FALSE)+ROW()-2)),\"\")","v":{"$error":"#N/A"}},{"$f":"IF(INDIRECT(\"c\" & (VLOOKUP(Rebalance!$D$35,$F$2:$G$48,2,FALSE)+ROW()-2))=Rebalance!$D$35,INDIRECT(\"a\" & (VLOOKUP(Rebalance!$D$35,$F$2:$G$48,2,FALSE)+ROW()-2)),\"\")","v":{"$error":"#N/A"}},{"$f":"IF(INDIRECT(\"c\" & (VLOOKUP(Rebalance!$D$36,$F$2:$G$48,2,FALSE)+ROW()-2))=Rebalance!$D$36,INDIRECT(\"a\" & (VLOOKUP(Rebalance!$D$36,$F$2:$G$48,2,FALSE)+ROW()-2)),\"\")","v":{"$error":"#N/A"}},{"$f":"IF(INDIRECT(\"c\" & (VLOOKUP(Rebalance!$D$37,$F$2:$G$48,2,FALSE)+ROW()-2))=Rebalance!$D$37,INDIRECT(\"a\" & (VLOOKUP(Rebalance!$D$37,$F$2:$G$48,2,FALSE)+ROW()-2)),\"\")","v":{"$error":"#N/A"}},{"$f":"IF(INDIRECT(\"c\" & (VLOOKUP(Rebalance!$D$38,$F$2:$G$48,2,FALSE)+ROW()-2))=Rebalance!$D$38,INDIRECT(\"a\" & (VLOOKUP(Rebalance!$D$38,$F$2:$G$48,2,FALSE)+ROW()-2)),\"\")","v":{"$error":"#N/A"}},{"$f":"IF(INDIRECT(\"c\" & (VLOOKUP(Rebalance!$D$39,$F$2:$G$48,2,FALSE)+ROW()-2))=Rebalance!$D$39,INDIRECT(\"a\" & (VLOOKUP(Rebalance!$D$39,$F$2:$G$48,2,FALSE)+ROW()-2)),\"\")","v":{"$error":"#N/A"}},{"$f":"IF(INDIRECT(\"c\" & (VLOOKUP(Rebalance!$D$40,$F$2:$G$48,2,FALSE)+ROW()-2))=Rebalance!$D$40,INDIRECT(\"a\" & (VLOOKUP(Rebalance!$D$40,$F$2:$G$48,2,FALSE)+ROW()-2)),\"\")","v":{"$error":"#N/A"}},{"$f":"IF(INDIRECT(\"c\" & (VLOOKUP(Rebalance!$D$52,$F$2:$G$48,2,FALSE)+ROW()-2))=Rebalance!$D$52,INDIRECT(\"a\" & (VLOOKUP(Rebalance!$D$52,$F$2:$G$48,2,FALSE)+ROW()-2)),\"\")","v":{"$error":"#N/A"}},{"$f":"IF(INDIRECT(\"c\" & (VLOOKUP(Rebalance!$D$53,$F$2:$G$48,2,FALSE)+ROW()-2))=Rebalance!$D$53,INDIRECT(\"a\" & (VLOOKUP(Rebalance!$D$53,$F$2:$G$48,2,FALSE)+ROW()-2)),\"\")","v":{"$error":"#N/A"}},{"$f":"IF(INDIRECT(\"c\" & (VLOOKUP(Rebalance!$D$54,$F$2:$G$48,2,FALSE)+ROW()-2))=Rebalance!$D$54,INDIRECT(\"a\" & (VLOOKUP(Rebalance!$D$54,$F$2:$G$48,2,FALSE)+ROW()-2)),\"\")","v":{"$error":"#N/A"}},{"$f":"IF(INDIRECT(\"c\" & (VLOOKUP(Rebalance!$D$55,$F$2:$G$48,2,FALSE)+ROW()-2))=Rebalance!$D$55,INDIRECT(\"a\" & (VLOOKUP(Rebalance!$D$55,$F$2:$G$48,2,FALSE)+ROW()-2)),\"\")","v":{"$error":"#N/A"}},{"$f":"IF(INDIRECT(\"c\" & (VLOOKUP(Rebalance!$D$56,$F$2:$G$48,2,FALSE)+ROW()-2))=Rebalance!$D$56,INDIRECT(\"a\" & (VLOOKUP(Rebalance!$D$56,$F$2:$G$48,2,FALSE)+ROW()-2)),\"\")","v":{"$error":"#N/A"}},{"$f":"IF(INDIRECT(\"c\" & (VLOOKUP(Rebalance!$D$57,$F$2:$G$48,2,FALSE)+ROW()-2))=Rebalance!$D$57,INDIRECT(\"a\" & (VLOOKUP(Rebalance!$D$57,$F$2:$G$48,2,FALSE)+ROW()-2)),\"\")","v":{"$error":"#N/A"}},{"$f":"IF(INDIRECT(\"c\" & (VLOOKUP(Rebalance!$D$58,$F$2:$G$48,2,FALSE)+ROW()-2))=Rebalance!$D$58,INDIRECT(\"a\" & (VLOOKUP(Rebalance!$D$58,$F$2:$G$48,2,FALSE)+ROW()-2)),\"\")","v":{"$error":"#N/A"}},{"$f":"IF(INDIRECT(\"c\" & (VLOOKUP(Rebalance!$D$59,$F$2:$G$48,2,FALSE)+ROW()-2))=Rebalance!$D$59,INDIRECT(\"a\" & (VLOOKUP(Rebalance!$D$59,$F$2:$G$48,2,FALSE)+ROW()-2)),\"\")","v":{"$error":"#N/A"}},{"$f":"IF(INDIRECT(\"c\" & (VLOOKUP(Rebalance!$D$60,$F$2:$G$48,2,FALSE)+ROW()-2))=Rebalance!$D$60,INDIRECT(\"a\" & (VLOOKUP(Rebalance!$D$60,$F$2:$G$48,2,FALSE)+ROW()-2)),\"\")","v":{"$error":"#N/A"}},{"$f":"IF(INDIRECT(\"c\" & (VLOOKUP(Rebalance!$D$61,$F$2:$G$48,2,FALSE)+ROW()-2))=Rebalance!$D$61,INDIRECT(\"a\" & (VLOOKUP(Rebalance!$D$61,$F$2:$G$48,2,FALSE)+ROW()-2)),\"\")","v":{"$error":"#N/A"}},{"$f":"IF(INDIRECT(\"c\" & (VLOOKUP(Rebalance!$D$62,$F$2:$G$48,2,FALSE)+ROW()-2))=Rebalance!$D$62,INDIRECT(\"a\" & (VLOOKUP(Rebalance!$D$62,$F$2:$G$48,2,FALSE)+ROW()-2)),\"\")","v":{"$error":"#N/A"}},{"$f":"IF(INDIRECT(\"c\" & (VLOOKUP(Rebalance!$D$63,$F$2:$G$48,2,FALSE)+ROW()-2))=Rebalance!$D$63,INDIRECT(\"a\" & (VLOOKUP(Rebalance!$D$63,$F$2:$G$48,2,FALSE)+ROW()-2)),\"\")","v":{"$error":"#N/A"}},{"$f":"IF(INDIRECT(\"c\" & (VLOOKUP(Rebalance!$D$64,$F$2:$G$48,2,FALSE)+ROW()-2))=Rebalance!$D$64,INDIRECT(\"a\" & (VLOOKUP(Rebalance!$D$64,$F$2:$G$48,2,FALSE)+ROW()-2)),\"\")","v":{"$error":"#N/A"}},{"$f":"IF(INDIRECT(\"c\" & (VLOOKUP(Rebalance!$D$65,$F$2:$G$48,2,FALSE)+ROW()-2))=Rebalance!$D$65,INDIRECT(\"a\" & (VLOOKUP(Rebalance!$D$65,$F$2:$G$48,2,FALSE)+ROW()-2)),\"\")","v":{"$error":"#N/A"}},{"$f":"IF(INDIRECT(\"c\" & (VLOOKUP(Rebalance!$D$66,$F$2:$G$48,2,FALSE)+ROW()-2))=Rebalance!$D$66,INDIRECT(\"a\" & (VLOOKUP(Rebalance!$D$66,$F$2:$G$48,2,FALSE)+ROW()-2)),\"\")","v":{"$error":"#N/A"}}]
["Momentum Top 40 Index Fund B3","RTFB3","Momentum Collective Investments Ltd",{"$f":"ROW()","v":353},null,null,{"$f":"VLOOKUP(F353,$C$2:$D$599,2,FALSE)","v":{"$error":"#N/A"}},{"$f":"IF(INDIRECT(\"c\" & (VLOOKUP(Rebalance!$D$26,$F$2:$G$48,2,FALSE)+ROW()-2))=Rebalance!$D$26,INDIRECT(\"a\" & (VLOOKUP(Rebalance!$D$26,$F$2:$G$48,2,FALSE)+ROW()-2)),\"\")","v":{"$error":"#N/A"}},{"$f":"IF(INDIRECT(\"c\" & (VLOOKUP(Rebalance!$D$27,$F$2:$G$48,2,FALSE)+ROW()-2))=Rebalance!$D$27,INDIRECT(\"a\" & (VLOOKUP(Rebalance!$D$27,$F$2:$G$48,2,FALSE)+ROW()-2)),\"\")","v":{"$error":"#N/A"}},{"$f":"IF(INDIRECT(\"c\" & (VLOOKUP(Rebalance!$D$28,$F$2:$G$48,2,FALSE)+ROW()-2))=Rebalance!$D$28,INDIRECT(\"a\" & (VLOOKUP(Rebalance!$D$28,$F$2:$G$48,2,FALSE)+ROW()-2)),\"\")","v":{"$error":"#N/A"}},{"$f":"IF(INDIRECT(\"c\" & (VLOOKUP(Rebalance!$D$29,$F$2:$G$48,2,FALSE)+ROW()-2))=Rebalance!$D$29,INDIRECT(\"a\" & (VLOOKUP(Rebalance!$D$29,$F$2:$G$48,2,FALSE)+ROW()-2)),\"\")","v":{"$error":"#N/A"}},{"$f":"IF(INDIRECT(\"c\" & (VLOOKUP(Rebalance!$D$30,$F$2:$G$48,2,FALSE)+ROW()-2))=Rebalance!$D$30,INDIRECT(\"a\" & (VLOOKUP(Rebalance!$D$30,$F$2:$G$48,2,FALSE)+ROW()-2)),\"\")","v":{"$error":"#N/A"}},{"$f":"IF(INDIRECT(\"c\" & (VLOOKUP(Rebalance!$D$31,$F$2:$G$48,2,FALSE)+ROW()-2))=Rebalance!$D$31,INDIRECT(\"a\" & (VLOOKUP(Rebalance!$D$31,$F$2:$G$48,2,FALSE)+ROW()-2)),\"\")","v":{"$error":"#N/A"}},{"$f":"IF(INDIRECT(\"c\" & (VLOOKUP(Rebalance!$D$32,$F$2:$G$48,2,FALSE)+ROW()-2))=Rebalance!$D$32,INDIRECT(\"a\" & (VLOOKUP(Rebalance!$D$32,$F$2:$G$48,2,FALSE)+ROW()-2)),\"\")","v":{"$error":"#N/A"}},{"$f":"IF(INDIRECT(\"c\" & (VLOOKUP(Rebalance!$D$33,$F$2:$G$48,2,FALSE)+ROW()-2))=Rebalance!$D$33,INDIRECT(\"a\" & (VLOOKUP(Rebalance!$D$33,$F$2:$G$48,2,FALSE)+ROW()-2)),\"\")","v":{"$error":"#N/A"}},{"$f":"IF(INDIRECT(\"c\" & (VLOOKUP(Rebalance!$D$34,$F$2:$G$48,2,FALSE)+ROW()-2))=Rebalance!$D$34,INDIRECT(\"a\" & (VLOOKUP(Rebalance!$D$34,$F$2:$G$48,2,FALSE)+ROW()-2)),\"\")","v":{"$error":"#N/A"}},{"$f":"IF(INDIRECT(\"c\" & (VLOOKUP(Rebalance!$D$35,$F$2:$G$48,2,FALSE)+ROW()-2))=Rebalance!$D$35,INDIRECT(\"a\" & (VLOOKUP(Rebalance!$D$35,$F$2:$G$48,2,FALSE)+ROW()-2)),\"\")","v":{"$error":"#N/A"}},{"$f":"IF(INDIRECT(\"c\" & (VLOOKUP(Rebalance!$D$36,$F$2:$G$48,2,FALSE)+ROW()-2))=Rebalance!$D$36,INDIRECT(\"a\" & (VLOOKUP(Rebalance!$D$36,$F$2:$G$48,2,FALSE)+ROW()-2)),\"\")","v":{"$error":"#N/A"}},{"$f":"IF(INDIRECT(\"c\" & (VLOOKUP(Rebalance!$D$37,$F$2:$G$48,2,FALSE)+ROW()-2))=Rebalance!$D$37,INDIRECT(\"a\" & (VLOOKUP(Rebalance!$D$37,$F$2:$G$48,2,FALSE)+ROW()-2)),\"\")","v":{"$error":"#N/A"}},{"$f":"IF(INDIRECT(\"c\" & (VLOOKUP(Rebalance!$D$38,$F$2:$G$48,2,FALSE)+ROW()-2))=Rebalance!$D$38,INDIRECT(\"a\" & (VLOOKUP(Rebalance!$D$38,$F$2:$G$48,2,FALSE)+ROW()-2)),\"\")","v":{"$error":"#N/A"}},{"$f":"IF(INDIRECT(\"c\" & (VLOOKUP(Rebalance!$D$39,$F$2:$G$48,2,FALSE)+ROW()-2))=Rebalance!$D$39,INDIRECT(\"a\" & (VLOOKUP(Rebalance!$D$39,$F$2:$G$48,2,FALSE)+ROW()-2)),\"\")","v":{"$error":"#N/A"}},{"$f":"IF(INDIRECT(\"c\" & (VLOOKUP(Rebalance!$D$40,$F$2:$G$48,2,FALSE)+ROW()-2))=Rebalance!$D$40,INDIRECT(\"a\" & (VLOOKUP(Rebalance!$D$40,$F$2:$G$48,2,FALSE)+ROW()-2)),\"\")","v":{"$error":"#N/A"}},{"$f":"IF(INDIRECT(\"c\" & (VLOOKUP(Rebalance!$D$52,$F$2:$G$48,2,FALSE)+ROW()-2))=Rebalance!$D$52,INDIRECT(\"a\" & (VLOOKUP(Rebalance!$D$52,$F$2:$G$48,2,FALSE)+ROW()-2)),\"\")","v":{"$error":"#N/A"}},{"$f":"IF(INDIRECT(\"c\" & (VLOOKUP(Rebalance!$D$53,$F$2:$G$48,2,FALSE)+ROW()-2))=Rebalance!$D$53,INDIRECT(\"a\" & (VLOOKUP(Rebalance!$D$53,$F$2:$G$48,2,FALSE)+ROW()-2)),\"\")","v":{"$error":"#N/A"}},{"$f":"IF(INDIRECT(\"c\" & (VLOOKUP(Rebalance!$D$54,$F$2:$G$48,2,FALSE)+ROW()-2))=Rebalance!$D$54,INDIRECT(\"a\" & (VLOOKUP(Rebalance!$D$54,$F$2:$G$48,2,FALSE)+ROW()-2)),\"\")","v":{"$error":"#N/A"}},{"$f":"IF(INDIRECT(\"c\" & (VLOOKUP(Rebalance!$D$55,$F$2:$G$48,2,FALSE)+ROW()-2))=Rebalance!$D$55,INDIRECT(\"a\" & (VLOOKUP(Rebalance!$D$55,$F$2:$G$48,2,FALSE)+ROW()-2)),\"\")","v":{"$error":"#N/A"}},{"$f":"IF(INDIRECT(\"c\" & (VLOOKUP(Rebalance!$D$56,$F$2:$G$48,2,FALSE)+ROW()-2))=Rebalance!$D$56,INDIRECT(\"a\" & (VLOOKUP(Rebalance!$D$56,$F$2:$G$48,2,FALSE)+ROW()-2)),\"\")","v":{"$error":"#N/A"}},{"$f":"IF(INDIRECT(\"c\" & (VLOOKUP(Rebalance!$D$57,$F$2:$G$48,2,FALSE)+ROW()-2))=Rebalance!$D$57,INDIRECT(\"a\" & (VLOOKUP(Rebalance!$D$57,$F$2:$G$48,2,FALSE)+ROW()-2)),\"\")","v":{"$error":"#N/A"}},{"$f":"IF(INDIRECT(\"c\" & (VLOOKUP(Rebalance!$D$58,$F$2:$G$48,2,FALSE)+ROW()-2))=Rebalance!$D$58,INDIRECT(\"a\" & (VLOOKUP(Rebalance!$D$58,$F$2:$G$48,2,FALSE)+ROW()-2)),\"\")","v":{"$error":"#N/A"}},{"$f":"IF(INDIRECT(\"c\" & (VLOOKUP(Rebalance!$D$59,$F$2:$G$48,2,FALSE)+ROW()-2))=Rebalance!$D$59,INDIRECT(\"a\" & (VLOOKUP(Rebalance!$D$59,$F$2:$G$48,2,FALSE)+ROW()-2)),\"\")","v":{"$error":"#N/A"}},{"$f":"IF(INDIRECT(\"c\" & (VLOOKUP(Rebalance!$D$60,$F$2:$G$48,2,FALSE)+ROW()-2))=Rebalance!$D$60,INDIRECT(\"a\" & (VLOOKUP(Rebalance!$D$60,$F$2:$G$48,2,FALSE)+ROW()-2)),\"\")","v":{"$error":"#N/A"}},{"$f":"IF(INDIRECT(\"c\" & (VLOOKUP(Rebalance!$D$61,$F$2:$G$48,2,FALSE)+ROW()-2))=Rebalance!$D$61,INDIRECT(\"a\" & (VLOOKUP(Rebalance!$D$61,$F$2:$G$48,2,FALSE)+ROW()-2)),\"\")","v":{"$error":"#N/A"}},{"$f":"IF(INDIRECT(\"c\" & (VLOOKUP(Rebalance!$D$62,$F$2:$G$48,2,FALSE)+ROW()-2))=Rebalance!$D$62,INDIRECT(\"a\" & (VLOOKUP(Rebalance!$D$62,$F$2:$G$48,2,FALSE)+ROW()-2)),\"\")","v":{"$error":"#N/A"}},{"$f":"IF(INDIRECT(\"c\" & (VLOOKUP(Rebalance!$D$63,$F$2:$G$48,2,FALSE)+ROW()-2))=Rebalance!$D$63,INDIRECT(\"a\" & (VLOOKUP(Rebalance!$D$63,$F$2:$G$48,2,FALSE)+ROW()-2)),\"\")","v":{"$error":"#N/A"}},{"$f":"IF(INDIRECT(\"c\" & (VLOOKUP(Rebalance!$D$64,$F$2:$G$48,2,FALSE)+ROW()-2))=Rebalance!$D$64,INDIRECT(\"a\" & (VLOOKUP(Rebalance!$D$64,$F$2:$G$48,2,FALSE)+ROW()-2)),\"\")","v":{"$error":"#N/A"}},{"$f":"IF(INDIRECT(\"c\" & (VLOOKUP(Rebalance!$D$65,$F$2:$G$48,2,FALSE)+ROW()-2))=Rebalance!$D$65,INDIRECT(\"a\" & (VLOOKUP(Rebalance!$D$65,$F$2:$G$48,2,FALSE)+ROW()-2)),\"\")","v":{"$error":"#N/A"}},{"$f":"IF(INDIRECT(\"c\" & (VLOOKUP(Rebalance!$D$66,$F$2:$G$48,2,FALSE)+ROW()-2))=Rebalance!$D$66,INDIRECT(\"a\" & (VLOOKUP(Rebalance!$D$66,$F$2:$G$48,2,FALSE)+ROW()-2)),\"\")","v":{"$error":"#N/A"}}]
["Nedgroup Inv Bavata WW Fund Class A","NIBWC","Nedgroup Collective Investments Ltd",{"$f":"ROW()","v":354},null,null,{"$f":"VLOOKUP(F354,$C$2:$D$599,2,FALSE)","v":{"$error":"#N/A"}},{"$f":"IF(INDIRECT(\"c\" & (VLOOKUP(Rebalance!$D$26,$F$2:$G$48,2,FALSE)+ROW()-2))=Rebalance!$D$26,INDIRECT(\"a\" & (VLOOKUP(Rebalance!$D$26,$F$2:$G$48,2,FALSE)+ROW()-2)),\"\")","v":{"$error":"#N/A"}},{"$f":"IF(INDIRECT(\"c\" & (VLOOKUP(Rebalance!$D$27,$F$2:$G$48,2,FALSE)+ROW()-2))=Rebalance!$D$27,INDIRECT(\"a\" & (VLOOKUP(Rebalance!$D$27,$F$2:$G$48,2,FALSE)+ROW()-2)),\"\")","v":{"$error":"#N/A"}},{"$f":"IF(INDIRECT(\"c\" & (VLOOKUP(Rebalance!$D$28,$F$2:$G$48,2,FALSE)+ROW()-2))=Rebalance!$D$28,INDIRECT(\"a\" & (VLOOKUP(Rebalance!$D$28,$F$2:$G$48,2,FALSE)+ROW()-2)),\"\")","v":{"$error":"#N/A"}},{"$f":"IF(INDIRECT(\"c\" & (VLOOKUP(Rebalance!$D$29,$F$2:$G$48,2,FALSE)+ROW()-2))=Rebalance!$D$29,INDIRECT(\"a\" & (VLOOKUP(Rebalance!$D$29,$F$2:$G$48,2,FALSE)+ROW()-2)),\"\")","v":{"$error":"#N/A"}},{"$f":"IF(INDIRECT(\"c\" & (VLOOKUP(Rebalance!$D$30,$F$2:$G$48,2,FALSE)+ROW()-2))=Rebalance!$D$30,INDIRECT(\"a\" & (VLOOKUP(Rebalance!$D$30,$F$2:$G$48,2,FALSE)+ROW()-2)),\"\")","v":{"$error":"#N/A"}},{"$f":"IF(INDIRECT(\"c\" & (VLOOKUP(Rebalance!$D$31,$F$2:$G$48,2,FALSE)+ROW()-2))=Rebalance!$D$31,INDIRECT(\"a\" & (VLOOKUP(Rebalance!$D$31,$F$2:$G$48,2,FALSE)+ROW()-2)),\"\")","v":{"$error":"#N/A"}},{"$f":"IF(INDIRECT(\"c\" & (VLOOKUP(Rebalance!$D$32,$F$2:$G$48,2,FALSE)+ROW()-2))=Rebalance!$D$32,INDIRECT(\"a\" & (VLOOKUP(Rebalance!$D$32,$F$2:$G$48,2,FALSE)+ROW()-2)),\"\")","v":{"$error":"#N/A"}},{"$f":"IF(INDIRECT(\"c\" & (VLOOKUP(Rebalance!$D$33,$F$2:$G$48,2,FALSE)+ROW()-2))=Rebalance!$D$33,INDIRECT(\"a\" & (VLOOKUP(Rebalance!$D$33,$F$2:$G$48,2,FALSE)+ROW()-2)),\"\")","v":{"$error":"#N/A"}},{"$f":"IF(INDIRECT(\"c\" & (VLOOKUP(Rebalance!$D$34,$F$2:$G$48,2,FALSE)+ROW()-2))=Rebalance!$D$34,INDIRECT(\"a\" & (VLOOKUP(Rebalance!$D$34,$F$2:$G$48,2,FALSE)+ROW()-2)),\"\")","v":{"$error":"#N/A"}},{"$f":"IF(INDIRECT(\"c\" & (VLOOKUP(Rebalance!$D$35,$F$2:$G$48,2,FALSE)+ROW()-2))=Rebalance!$D$35,INDIRECT(\"a\" & (VLOOKUP(Rebalance!$D$35,$F$2:$G$48,2,FALSE)+ROW()-2)),\"\")","v":{"$error":"#N/A"}},{"$f":"IF(INDIRECT(\"c\" & (VLOOKUP(Rebalance!$D$36,$F$2:$G$48,2,FALSE)+ROW()-2))=Rebalance!$D$36,INDIRECT(\"a\" & (VLOOKUP(Rebalance!$D$36,$F$2:$G$48,2,FALSE)+ROW()-2)),\"\")","v":{"$error":"#N/A"}},{"$f":"IF(INDIRECT(\"c\" & (VLOOKUP(Rebalance!$D$37,$F$2:$G$48,2,FALSE)+ROW()-2))=Rebalance!$D$37,INDIRECT(\"a\" & (VLOOKUP(Rebalance!$D$37,$F$2:$G$48,2,FALSE)+ROW()-2)),\"\")","v":{"$error":"#N/A"}},{"$f":"IF(INDIRECT(\"c\" & (VLOOKUP(Rebalance!$D$38,$F$2:$G$48,2,FALSE)+ROW()-2))=Rebalance!$D$38,INDIRECT(\"a\" & (VLOOKUP(Rebalance!$D$38,$F$2:$G$48,2,FALSE)+ROW()-2)),\"\")","v":{"$error":"#N/A"}},{"$f":"IF(INDIRECT(\"c\" & (VLOOKUP(Rebalance!$D$39,$F$2:$G$48,2,FALSE)+ROW()-2))=Rebalance!$D$39,INDIRECT(\"a\" & (VLOOKUP(Rebalance!$D$39,$F$2:$G$48,2,FALSE)+ROW()-2)),\"\")","v":{"$error":"#N/A"}},{"$f":"IF(INDIRECT(\"c\" & (VLOOKUP(Rebalance!$D$40,$F$2:$G$48,2,FALSE)+ROW()-2))=Rebalance!$D$40,INDIRECT(\"a\" & (VLOOKUP(Rebalance!$D$40,$F$2:$G$48,2,FALSE)+ROW()-2)),\"\")","v":{"$error":"#N/A"}},{"$f":"IF(INDIRECT(\"c\" & (VLOOKUP(Rebalance!$D$52,$F$2:$G$48,2,FALSE)+ROW()-2))=Rebalance!$D$52,INDIRECT(\"a\" & (VLOOKUP(Rebalance!$D$52,$F$2:$G$48,2,FALSE)+ROW()-2)),\"\")","v":{"$error":"#N/A"}},{"$f":"IF(INDIRECT(\"c\" & (VLOOKUP(Rebalance!$D$53,$F$2:$G$48,2,FALSE)+ROW()-2))=Rebalance!$D$53,INDIRECT(\"a\" & (VLOOKUP(Rebalance!$D$53,$F$2:$G$48,2,FALSE)+ROW()-2)),\"\")","v":{"$error":"#N/A"}},{"$f":"IF(INDIRECT(\"c\" & (VLOOKUP(Rebalance!$D$54,$F$2:$G$48,2,FALSE)+ROW()-2))=Rebalance!$D$54,INDIRECT(\"a\" & (VLOOKUP(Rebalance!$D$54,$F$2:$G$48,2,FALSE)+ROW()-2)),\"\")","v":{"$error":"#N/A"}},{"$f":"IF(INDIRECT(\"c\" & (VLOOKUP(Rebalance!$D$55,$F$2:$G$48,2,FALSE)+ROW()-2))=Rebalance!$D$55,INDIRECT(\"a\" & (VLOOKUP(Rebalance!$D$55,$F$2:$G$48,2,FALSE)+ROW()-2)),\"\")","v":{"$error":"#N/A"}},{"$f":"IF(INDIRECT(\"c\" & (VLOOKUP(Rebalance!$D$56,$F$2:$G$48,2,FALSE)+ROW()-2))=Rebalance!$D$56,INDIRECT(\"a\" & (VLOOKUP(Rebalance!$D$56,$F$2:$G$48,2,FALSE)+ROW()-2)),\"\")","v":{"$error":"#N/A"}},{"$f":"IF(INDIRECT(\"c\" & (VLOOKUP(Rebalance!$D$57,$F$2:$G$48,2,FALSE)+ROW()-2))=Rebalance!$D$57,INDIRECT(\"a\" & (VLOOKUP(Rebalance!$D$57,$F$2:$G$48,2,FALSE)+ROW()-2)),\"\")","v":{"$error":"#N/A"}},{"$f":"IF(INDIRECT(\"c\" & (VLOOKUP(Rebalance!$D$58,$F$2:$G$48,2,FALSE)+ROW()-2))=Rebalance!$D$58,INDIRECT(\"a\" & (VLOOKUP(Rebalance!$D$58,$F$2:$G$48,2,FALSE)+ROW()-2)),\"\")","v":{"$error":"#N/A"}},{"$f":"IF(INDIRECT(\"c\" & (VLOOKUP(Rebalance!$D$59,$F$2:$G$48,2,FALSE)+ROW()-2))=Rebalance!$D$59,INDIRECT(\"a\" & (VLOOKUP(Rebalance!$D$59,$F$2:$G$48,2,FALSE)+ROW()-2)),\"\")","v":{"$error":"#N/A"}},{"$f":"IF(INDIRECT(\"c\" & (VLOOKUP(Rebalance!$D$60,$F$2:$G$48,2,FALSE)+ROW()-2))=Rebalance!$D$60,INDIRECT(\"a\" & (VLOOKUP(Rebalance!$D$60,$F$2:$G$48,2,FALSE)+ROW()-2)),\"\")","v":{"$error":"#N/A"}},{"$f":"IF(INDIRECT(\"c\" & (VLOOKUP(Rebalance!$D$61,$F$2:$G$48,2,FALSE)+ROW()-2))=Rebalance!$D$61,INDIRECT(\"a\" & (VLOOKUP(Rebalance!$D$61,$F$2:$G$48,2,FALSE)+ROW()-2)),\"\")","v":{"$error":"#N/A"}},{"$f":"IF(INDIRECT(\"c\" & (VLOOKUP(Rebalance!$D$62,$F$2:$G$48,2,FALSE)+ROW()-2))=Rebalance!$D$62,INDIRECT(\"a\" & (VLOOKUP(Rebalance!$D$62,$F$2:$G$48,2,FALSE)+ROW()-2)),\"\")","v":{"$error":"#N/A"}},{"$f":"IF(INDIRECT(\"c\" & (VLOOKUP(Rebalance!$D$63,$F$2:$G$48,2,FALSE)+ROW()-2))=Rebalance!$D$63,INDIRECT(\"a\" & (VLOOKUP(Rebalance!$D$63,$F$2:$G$48,2,FALSE)+ROW()-2)),\"\")","v":{"$error":"#N/A"}},{"$f":"IF(INDIRECT(\"c\" & (VLOOKUP(Rebalance!$D$64,$F$2:$G$48,2,FALSE)+ROW()-2))=Rebalance!$D$64,INDIRECT(\"a\" & (VLOOKUP(Rebalance!$D$64,$F$2:$G$48,2,FALSE)+ROW()-2)),\"\")","v":{"$error":"#N/A"}},{"$f":"IF(INDIRECT(\"c\" & (VLOOKUP(Rebalance!$D$65,$F$2:$G$48,2,FALSE)+ROW()-2))=Rebalance!$D$65,INDIRECT(\"a\" & (VLOOKUP(Rebalance!$D$65,$F$2:$G$48,2,FALSE)+ROW()-2)),\"\")","v":{"$error":"#N/A"}},{"$f":"IF(INDIRECT(\"c\" & (VLOOKUP(Rebalance!$D$66,$F$2:$G$48,2,FALSE)+ROW()-2))=Rebalance!$D$66,INDIRECT(\"a\" & (VLOOKUP(Rebalance!$D$66,$F$2:$G$48,2,FALSE)+ROW()-2)),\"\")","v":{"$error":"#N/A"}}]
["Nedgroup Investments Bravata Worldwide Flexible Fund C","NIBWC","Nedgroup Collective Investments Ltd",{"$f":"ROW()","v":355},null,null,{"$f":"VLOOKUP(F355,$C$2:$D$599,2,FALSE)","v":{"$error":"#N/A"}},{"$f":"IF(INDIRECT(\"c\" & (VLOOKUP(Rebalance!$D$26,$F$2:$G$48,2,FALSE)+ROW()-2))=Rebalance!$D$26,INDIRECT(\"a\" & (VLOOKUP(Rebalance!$D$26,$F$2:$G$48,2,FALSE)+ROW()-2)),\"\")","v":{"$error":"#N/A"}},{"$f":"IF(INDIRECT(\"c\" & (VLOOKUP(Rebalance!$D$27,$F$2:$G$48,2,FALSE)+ROW()-2))=Rebalance!$D$27,INDIRECT(\"a\" & (VLOOKUP(Rebalance!$D$27,$F$2:$G$48,2,FALSE)+ROW()-2)),\"\")","v":{"$error":"#N/A"}},{"$f":"IF(INDIRECT(\"c\" & (VLOOKUP(Rebalance!$D$28,$F$2:$G$48,2,FALSE)+ROW()-2))=Rebalance!$D$28,INDIRECT(\"a\" & (VLOOKUP(Rebalance!$D$28,$F$2:$G$48,2,FALSE)+ROW()-2)),\"\")","v":{"$error":"#N/A"}},{"$f":"IF(INDIRECT(\"c\" & (VLOOKUP(Rebalance!$D$29,$F$2:$G$48,2,FALSE)+ROW()-2))=Rebalance!$D$29,INDIRECT(\"a\" & (VLOOKUP(Rebalance!$D$29,$F$2:$G$48,2,FALSE)+ROW()-2)),\"\")","v":{"$error":"#N/A"}},{"$f":"IF(INDIRECT(\"c\" & (VLOOKUP(Rebalance!$D$30,$F$2:$G$48,2,FALSE)+ROW()-2))=Rebalance!$D$30,INDIRECT(\"a\" & (VLOOKUP(Rebalance!$D$30,$F$2:$G$48,2,FALSE)+ROW()-2)),\"\")","v":{"$error":"#N/A"}},{"$f":"IF(INDIRECT(\"c\" & (VLOOKUP(Rebalance!$D$31,$F$2:$G$48,2,FALSE)+ROW()-2))=Rebalance!$D$31,INDIRECT(\"a\" & (VLOOKUP(Rebalance!$D$31,$F$2:$G$48,2,FALSE)+ROW()-2)),\"\")","v":{"$error":"#N/A"}},{"$f":"IF(INDIRECT(\"c\" & (VLOOKUP(Rebalance!$D$32,$F$2:$G$48,2,FALSE)+ROW()-2))=Rebalance!$D$32,INDIRECT(\"a\" & (VLOOKUP(Rebalance!$D$32,$F$2:$G$48,2,FALSE)+ROW()-2)),\"\")","v":{"$error":"#N/A"}},{"$f":"IF(INDIRECT(\"c\" & (VLOOKUP(Rebalance!$D$33,$F$2:$G$48,2,FALSE)+ROW()-2))=Rebalance!$D$33,INDIRECT(\"a\" & (VLOOKUP(Rebalance!$D$33,$F$2:$G$48,2,FALSE)+ROW()-2)),\"\")","v":{"$error":"#N/A"}},{"$f":"IF(INDIRECT(\"c\" & (VLOOKUP(Rebalance!$D$34,$F$2:$G$48,2,FALSE)+ROW()-2))=Rebalance!$D$34,INDIRECT(\"a\" & (VLOOKUP(Rebalance!$D$34,$F$2:$G$48,2,FALSE)+ROW()-2)),\"\")","v":{"$error":"#N/A"}},{"$f":"IF(INDIRECT(\"c\" & (VLOOKUP(Rebalance!$D$35,$F$2:$G$48,2,FALSE)+ROW()-2))=Rebalance!$D$35,INDIRECT(\"a\" & (VLOOKUP(Rebalance!$D$35,$F$2:$G$48,2,FALSE)+ROW()-2)),\"\")","v":{"$error":"#N/A"}},{"$f":"IF(INDIRECT(\"c\" & (VLOOKUP(Rebalance!$D$36,$F$2:$G$48,2,FALSE)+ROW()-2))=Rebalance!$D$36,INDIRECT(\"a\" & (VLOOKUP(Rebalance!$D$36,$F$2:$G$48,2,FALSE)+ROW()-2)),\"\")","v":{"$error":"#N/A"}},{"$f":"IF(INDIRECT(\"c\" & (VLOOKUP(Rebalance!$D$37,$F$2:$G$48,2,FALSE)+ROW()-2))=Rebalance!$D$37,INDIRECT(\"a\" & (VLOOKUP(Rebalance!$D$37,$F$2:$G$48,2,FALSE)+ROW()-2)),\"\")","v":{"$error":"#N/A"}},{"$f":"IF(INDIRECT(\"c\" & (VLOOKUP(Rebalance!$D$38,$F$2:$G$48,2,FALSE)+ROW()-2))=Rebalance!$D$38,INDIRECT(\"a\" & (VLOOKUP(Rebalance!$D$38,$F$2:$G$48,2,FALSE)+ROW()-2)),\"\")","v":{"$error":"#N/A"}},{"$f":"IF(INDIRECT(\"c\" & (VLOOKUP(Rebalance!$D$39,$F$2:$G$48,2,FALSE)+ROW()-2))=Rebalance!$D$39,INDIRECT(\"a\" & (VLOOKUP(Rebalance!$D$39,$F$2:$G$48,2,FALSE)+ROW()-2)),\"\")","v":{"$error":"#N/A"}},{"$f":"IF(INDIRECT(\"c\" & (VLOOKUP(Rebalance!$D$40,$F$2:$G$48,2,FALSE)+ROW()-2))=Rebalance!$D$40,INDIRECT(\"a\" & (VLOOKUP(Rebalance!$D$40,$F$2:$G$48,2,FALSE)+ROW()-2)),\"\")","v":{"$error":"#N/A"}},{"$f":"IF(INDIRECT(\"c\" & (VLOOKUP(Rebalance!$D$52,$F$2:$G$48,2,FALSE)+ROW()-2))=Rebalance!$D$52,INDIRECT(\"a\" & (VLOOKUP(Rebalance!$D$52,$F$2:$G$48,2,FALSE)+ROW()-2)),\"\")","v":{"$error":"#N/A"}},{"$f":"IF(INDIRECT(\"c\" & (VLOOKUP(Rebalance!$D$53,$F$2:$G$48,2,FALSE)+ROW()-2))=Rebalance!$D$53,INDIRECT(\"a\" & (VLOOKUP(Rebalance!$D$53,$F$2:$G$48,2,FALSE)+ROW()-2)),\"\")","v":{"$error":"#N/A"}},{"$f":"IF(INDIRECT(\"c\" & (VLOOKUP(Rebalance!$D$54,$F$2:$G$48,2,FALSE)+ROW()-2))=Rebalance!$D$54,INDIRECT(\"a\" & (VLOOKUP(Rebalance!$D$54,$F$2:$G$48,2,FALSE)+ROW()-2)),\"\")","v":{"$error":"#N/A"}},{"$f":"IF(INDIRECT(\"c\" & (VLOOKUP(Rebalance!$D$55,$F$2:$G$48,2,FALSE)+ROW()-2))=Rebalance!$D$55,INDIRECT(\"a\" & (VLOOKUP(Rebalance!$D$55,$F$2:$G$48,2,FALSE)+ROW()-2)),\"\")","v":{"$error":"#N/A"}},{"$f":"IF(INDIRECT(\"c\" & (VLOOKUP(Rebalance!$D$56,$F$2:$G$48,2,FALSE)+ROW()-2))=Rebalance!$D$56,INDIRECT(\"a\" & (VLOOKUP(Rebalance!$D$56,$F$2:$G$48,2,FALSE)+ROW()-2)),\"\")","v":{"$error":"#N/A"}},{"$f":"IF(INDIRECT(\"c\" & (VLOOKUP(Rebalance!$D$57,$F$2:$G$48,2,FALSE)+ROW()-2))=Rebalance!$D$57,INDIRECT(\"a\" & (VLOOKUP(Rebalance!$D$57,$F$2:$G$48,2,FALSE)+ROW()-2)),\"\")","v":{"$error":"#N/A"}},{"$f":"IF(INDIRECT(\"c\" & (VLOOKUP(Rebalance!$D$58,$F$2:$G$48,2,FALSE)+ROW()-2))=Rebalance!$D$58,INDIRECT(\"a\" & (VLOOKUP(Rebalance!$D$58,$F$2:$G$48,2,FALSE)+ROW()-2)),\"\")","v":{"$error":"#N/A"}},{"$f":"IF(INDIRECT(\"c\" & (VLOOKUP(Rebalance!$D$59,$F$2:$G$48,2,FALSE)+ROW()-2))=Rebalance!$D$59,INDIRECT(\"a\" & (VLOOKUP(Rebalance!$D$59,$F$2:$G$48,2,FALSE)+ROW()-2)),\"\")","v":{"$error":"#N/A"}},{"$f":"IF(INDIRECT(\"c\" & (VLOOKUP(Rebalance!$D$60,$F$2:$G$48,2,FALSE)+ROW()-2))=Rebalance!$D$60,INDIRECT(\"a\" & (VLOOKUP(Rebalance!$D$60,$F$2:$G$48,2,FALSE)+ROW()-2)),\"\")","v":{"$error":"#N/A"}},{"$f":"IF(INDIRECT(\"c\" & (VLOOKUP(Rebalance!$D$61,$F$2:$G$48,2,FALSE)+ROW()-2))=Rebalance!$D$61,INDIRECT(\"a\" & (VLOOKUP(Rebalance!$D$61,$F$2:$G$48,2,FALSE)+ROW()-2)),\"\")","v":{"$error":"#N/A"}},{"$f":"IF(INDIRECT(\"c\" & (VLOOKUP(Rebalance!$D$62,$F$2:$G$48,2,FALSE)+ROW()-2))=Rebalance!$D$62,INDIRECT(\"a\" & (VLOOKUP(Rebalance!$D$62,$F$2:$G$48,2,FALSE)+ROW()-2)),\"\")","v":{"$error":"#N/A"}},{"$f":"IF(INDIRECT(\"c\" & (VLOOKUP(Rebalance!$D$63,$F$2:$G$48,2,FALSE)+ROW()-2))=Rebalance!$D$63,INDIRECT(\"a\" & (VLOOKUP(Rebalance!$D$63,$F$2:$G$48,2,FALSE)+ROW()-2)),\"\")","v":{"$error":"#N/A"}},{"$f":"IF(INDIRECT(\"c\" & (VLOOKUP(Rebalance!$D$64,$F$2:$G$48,2,FALSE)+ROW()-2))=Rebalance!$D$64,INDIRECT(\"a\" & (VLOOKUP(Rebalance!$D$64,$F$2:$G$48,2,FALSE)+ROW()-2)),\"\")","v":{"$error":"#N/A"}},{"$f":"IF(INDIRECT(\"c\" & (VLOOKUP(Rebalance!$D$65,$F$2:$G$48,2,FALSE)+ROW()-2))=Rebalance!$D$65,INDIRECT(\"a\" & (VLOOKUP(Rebalance!$D$65,$F$2:$G$48,2,FALSE)+ROW()-2)),\"\")","v":{"$error":"#N/A"}},{"$f":"IF(INDIRECT(\"c\" & (VLOOKUP(Rebalance!$D$66,$F$2:$G$48,2,FALSE)+ROW()-2))=Rebalance!$D$66,INDIRECT(\"a\" & (VLOOKUP(Rebalance!$D$66,$F$2:$G$48,2,FALSE)+ROW()-2)),\"\")","v":{"$error":"#N/A"}}]
["Nedgroup Inv Balanced Fund  G","TMBFG","Nedgroup Collective Investments Ltd",{"$f":"ROW()","v":356},null,null,{"$f":"VLOOKUP(F356,$C$2:$D$599,2,FALSE)","v":{"$error":"#N/A"}},{"$f":"IF(INDIRECT(\"c\" & (VLOOKUP(Rebalance!$D$26,$F$2:$G$48,2,FALSE)+ROW()-2))=Rebalance!$D$26,INDIRECT(\"a\" & (VLOOKUP(Rebalance!$D$26,$F$2:$G$48,2,FALSE)+ROW()-2)),\"\")","v":{"$error":"#N/A"}},{"$f":"IF(INDIRECT(\"c\" & (VLOOKUP(Rebalance!$D$27,$F$2:$G$48,2,FALSE)+ROW()-2))=Rebalance!$D$27,INDIRECT(\"a\" & (VLOOKUP(Rebalance!$D$27,$F$2:$G$48,2,FALSE)+ROW()-2)),\"\")","v":{"$error":"#N/A"}},{"$f":"IF(INDIRECT(\"c\" & (VLOOKUP(Rebalance!$D$28,$F$2:$G$48,2,FALSE)+ROW()-2))=Rebalance!$D$28,INDIRECT(\"a\" & (VLOOKUP(Rebalance!$D$28,$F$2:$G$48,2,FALSE)+ROW()-2)),\"\")","v":{"$error":"#N/A"}},{"$f":"IF(INDIRECT(\"c\" & (VLOOKUP(Rebalance!$D$29,$F$2:$G$48,2,FALSE)+ROW()-2))=Rebalance!$D$29,INDIRECT(\"a\" & (VLOOKUP(Rebalance!$D$29,$F$2:$G$48,2,FALSE)+ROW()-2)),\"\")","v":{"$error":"#N/A"}},{"$f":"IF(INDIRECT(\"c\" & (VLOOKUP(Rebalance!$D$30,$F$2:$G$48,2,FALSE)+ROW()-2))=Rebalance!$D$30,INDIRECT(\"a\" & (VLOOKUP(Rebalance!$D$30,$F$2:$G$48,2,FALSE)+ROW()-2)),\"\")","v":{"$error":"#N/A"}},{"$f":"IF(INDIRECT(\"c\" & (VLOOKUP(Rebalance!$D$31,$F$2:$G$48,2,FALSE)+ROW()-2))=Rebalance!$D$31,INDIRECT(\"a\" & (VLOOKUP(Rebalance!$D$31,$F$2:$G$48,2,FALSE)+ROW()-2)),\"\")","v":{"$error":"#N/A"}},{"$f":"IF(INDIRECT(\"c\" & (VLOOKUP(Rebalance!$D$32,$F$2:$G$48,2,FALSE)+ROW()-2))=Rebalance!$D$32,INDIRECT(\"a\" & (VLOOKUP(Rebalance!$D$32,$F$2:$G$48,2,FALSE)+ROW()-2)),\"\")","v":{"$error":"#N/A"}},{"$f":"IF(INDIRECT(\"c\" & (VLOOKUP(Rebalance!$D$33,$F$2:$G$48,2,FALSE)+ROW()-2))=Rebalance!$D$33,INDIRECT(\"a\" & (VLOOKUP(Rebalance!$D$33,$F$2:$G$48,2,FALSE)+ROW()-2)),\"\")","v":{"$error":"#N/A"}},{"$f":"IF(INDIRECT(\"c\" & (VLOOKUP(Rebalance!$D$34,$F$2:$G$48,2,FALSE)+ROW()-2))=Rebalance!$D$34,INDIRECT(\"a\" & (VLOOKUP(Rebalance!$D$34,$F$2:$G$48,2,FALSE)+ROW()-2)),\"\")","v":{"$error":"#N/A"}},{"$f":"IF(INDIRECT(\"c\" & (VLOOKUP(Rebalance!$D$35,$F$2:$G$48,2,FALSE)+ROW()-2))=Rebalance!$D$35,INDIRECT(\"a\" & (VLOOKUP(Rebalance!$D$35,$F$2:$G$48,2,FALSE)+ROW()-2)),\"\")","v":{"$error":"#N/A"}},{"$f":"IF(INDIRECT(\"c\" & (VLOOKUP(Rebalance!$D$36,$F$2:$G$48,2,FALSE)+ROW()-2))=Rebalance!$D$36,INDIRECT(\"a\" & (VLOOKUP(Rebalance!$D$36,$F$2:$G$48,2,FALSE)+ROW()-2)),\"\")","v":{"$error":"#N/A"}},{"$f":"IF(INDIRECT(\"c\" & (VLOOKUP(Rebalance!$D$37,$F$2:$G$48,2,FALSE)+ROW()-2))=Rebalance!$D$37,INDIRECT(\"a\" & (VLOOKUP(Rebalance!$D$37,$F$2:$G$48,2,FALSE)+ROW()-2)),\"\")","v":{"$error":"#N/A"}},{"$f":"IF(INDIRECT(\"c\" & (VLOOKUP(Rebalance!$D$38,$F$2:$G$48,2,FALSE)+ROW()-2))=Rebalance!$D$38,INDIRECT(\"a\" & (VLOOKUP(Rebalance!$D$38,$F$2:$G$48,2,FALSE)+ROW()-2)),\"\")","v":{"$error":"#N/A"}},{"$f":"IF(INDIRECT(\"c\" & (VLOOKUP(Rebalance!$D$39,$F$2:$G$48,2,FALSE)+ROW()-2))=Rebalance!$D$39,INDIRECT(\"a\" & (VLOOKUP(Rebalance!$D$39,$F$2:$G$48,2,FALSE)+ROW()-2)),\"\")","v":{"$error":"#N/A"}},{"$f":"IF(INDIRECT(\"c\" & (VLOOKUP(Rebalance!$D$40,$F$2:$G$48,2,FALSE)+ROW()-2))=Rebalance!$D$40,INDIRECT(\"a\" & (VLOOKUP(Rebalance!$D$40,$F$2:$G$48,2,FALSE)+ROW()-2)),\"\")","v":{"$error":"#N/A"}},{"$f":"IF(INDIRECT(\"c\" & (VLOOKUP(Rebalance!$D$52,$F$2:$G$48,2,FALSE)+ROW()-2))=Rebalance!$D$52,INDIRECT(\"a\" & (VLOOKUP(Rebalance!$D$52,$F$2:$G$48,2,FALSE)+ROW()-2)),\"\")","v":{"$error":"#N/A"}},{"$f":"IF(INDIRECT(\"c\" & (VLOOKUP(Rebalance!$D$53,$F$2:$G$48,2,FALSE)+ROW()-2))=Rebalance!$D$53,INDIRECT(\"a\" & (VLOOKUP(Rebalance!$D$53,$F$2:$G$48,2,FALSE)+ROW()-2)),\"\")","v":{"$error":"#N/A"}},{"$f":"IF(INDIRECT(\"c\" & (VLOOKUP(Rebalance!$D$54,$F$2:$G$48,2,FALSE)+ROW()-2))=Rebalance!$D$54,INDIRECT(\"a\" & (VLOOKUP(Rebalance!$D$54,$F$2:$G$48,2,FALSE)+ROW()-2)),\"\")","v":{"$error":"#N/A"}},{"$f":"IF(INDIRECT(\"c\" & (VLOOKUP(Rebalance!$D$55,$F$2:$G$48,2,FALSE)+ROW()-2))=Rebalance!$D$55,INDIRECT(\"a\" & (VLOOKUP(Rebalance!$D$55,$F$2:$G$48,2,FALSE)+ROW()-2)),\"\")","v":{"$error":"#N/A"}},{"$f":"IF(INDIRECT(\"c\" & (VLOOKUP(Rebalance!$D$56,$F$2:$G$48,2,FALSE)+ROW()-2))=Rebalance!$D$56,INDIRECT(\"a\" & (VLOOKUP(Rebalance!$D$56,$F$2:$G$48,2,FALSE)+ROW()-2)),\"\")","v":{"$error":"#N/A"}},{"$f":"IF(INDIRECT(\"c\" & (VLOOKUP(Rebalance!$D$57,$F$2:$G$48,2,FALSE)+ROW()-2))=Rebalance!$D$57,INDIRECT(\"a\" & (VLOOKUP(Rebalance!$D$57,$F$2:$G$48,2,FALSE)+ROW()-2)),\"\")","v":{"$error":"#N/A"}},{"$f":"IF(INDIRECT(\"c\" & (VLOOKUP(Rebalance!$D$58,$F$2:$G$48,2,FALSE)+ROW()-2))=Rebalance!$D$58,INDIRECT(\"a\" & (VLOOKUP(Rebalance!$D$58,$F$2:$G$48,2,FALSE)+ROW()-2)),\"\")","v":{"$error":"#N/A"}},{"$f":"IF(INDIRECT(\"c\" & (VLOOKUP(Rebalance!$D$59,$F$2:$G$48,2,FALSE)+ROW()-2))=Rebalance!$D$59,INDIRECT(\"a\" & (VLOOKUP(Rebalance!$D$59,$F$2:$G$48,2,FALSE)+ROW()-2)),\"\")","v":{"$error":"#N/A"}},{"$f":"IF(INDIRECT(\"c\" & (VLOOKUP(Rebalance!$D$60,$F$2:$G$48,2,FALSE)+ROW()-2))=Rebalance!$D$60,INDIRECT(\"a\" & (VLOOKUP(Rebalance!$D$60,$F$2:$G$48,2,FALSE)+ROW()-2)),\"\")","v":{"$error":"#N/A"}},{"$f":"IF(INDIRECT(\"c\" & (VLOOKUP(Rebalance!$D$61,$F$2:$G$48,2,FALSE)+ROW()-2))=Rebalance!$D$61,INDIRECT(\"a\" & (VLOOKUP(Rebalance!$D$61,$F$2:$G$48,2,FALSE)+ROW()-2)),\"\")","v":{"$error":"#N/A"}},{"$f":"IF(INDIRECT(\"c\" & (VLOOKUP(Rebalance!$D$62,$F$2:$G$48,2,FALSE)+ROW()-2))=Rebalance!$D$62,INDIRECT(\"a\" & (VLOOKUP(Rebalance!$D$62,$F$2:$G$48,2,FALSE)+ROW()-2)),\"\")","v":{"$error":"#N/A"}},{"$f":"IF(INDIRECT(\"c\" & (VLOOKUP(Rebalance!$D$63,$F$2:$G$48,2,FALSE)+ROW()-2))=Rebalance!$D$63,INDIRECT(\"a\" & (VLOOKUP(Rebalance!$D$63,$F$2:$G$48,2,FALSE)+ROW()-2)),\"\")","v":{"$error":"#N/A"}},{"$f":"IF(INDIRECT(\"c\" & (VLOOKUP(Rebalance!$D$64,$F$2:$G$48,2,FALSE)+ROW()-2))=Rebalance!$D$64,INDIRECT(\"a\" & (VLOOKUP(Rebalance!$D$64,$F$2:$G$48,2,FALSE)+ROW()-2)),\"\")","v":{"$error":"#N/A"}},{"$f":"IF(INDIRECT(\"c\" & (VLOOKUP(Rebalance!$D$65,$F$2:$G$48,2,FALSE)+ROW()-2))=Rebalance!$D$65,INDIRECT(\"a\" & (VLOOKUP(Rebalance!$D$65,$F$2:$G$48,2,FALSE)+ROW()-2)),\"\")","v":{"$error":"#N/A"}},{"$f":"IF(INDIRECT(\"c\" & (VLOOKUP(Rebalance!$D$66,$F$2:$G$48,2,FALSE)+ROW()-2))=Rebalance!$D$66,INDIRECT(\"a\" & (VLOOKUP(Rebalance!$D$66,$F$2:$G$48,2,FALSE)+ROW()-2)),\"\")","v":{"$error":"#N/A"}}]
["Nedgroup Investments Core Accelerated Fund B","NICFCB","Nedgroup Collective Investments Ltd",{"$f":"ROW()","v":357},null,null,{"$f":"VLOOKUP(F357,$C$2:$D$599,2,FALSE)","v":{"$error":"#N/A"}},{"$f":"IF(INDIRECT(\"c\" & (VLOOKUP(Rebalance!$D$26,$F$2:$G$48,2,FALSE)+ROW()-2))=Rebalance!$D$26,INDIRECT(\"a\" & (VLOOKUP(Rebalance!$D$26,$F$2:$G$48,2,FALSE)+ROW()-2)),\"\")","v":{"$error":"#N/A"}},{"$f":"IF(INDIRECT(\"c\" & (VLOOKUP(Rebalance!$D$27,$F$2:$G$48,2,FALSE)+ROW()-2))=Rebalance!$D$27,INDIRECT(\"a\" & (VLOOKUP(Rebalance!$D$27,$F$2:$G$48,2,FALSE)+ROW()-2)),\"\")","v":{"$error":"#N/A"}},{"$f":"IF(INDIRECT(\"c\" & (VLOOKUP(Rebalance!$D$28,$F$2:$G$48,2,FALSE)+ROW()-2))=Rebalance!$D$28,INDIRECT(\"a\" & (VLOOKUP(Rebalance!$D$28,$F$2:$G$48,2,FALSE)+ROW()-2)),\"\")","v":{"$error":"#N/A"}},{"$f":"IF(INDIRECT(\"c\" & (VLOOKUP(Rebalance!$D$29,$F$2:$G$48,2,FALSE)+ROW()-2))=Rebalance!$D$29,INDIRECT(\"a\" & (VLOOKUP(Rebalance!$D$29,$F$2:$G$48,2,FALSE)+ROW()-2)),\"\")","v":{"$error":"#N/A"}},{"$f":"IF(INDIRECT(\"c\" & (VLOOKUP(Rebalance!$D$30,$F$2:$G$48,2,FALSE)+ROW()-2))=Rebalance!$D$30,INDIRECT(\"a\" & (VLOOKUP(Rebalance!$D$30,$F$2:$G$48,2,FALSE)+ROW()-2)),\"\")","v":{"$error":"#N/A"}},{"$f":"IF(INDIRECT(\"c\" & (VLOOKUP(Rebalance!$D$31,$F$2:$G$48,2,FALSE)+ROW()-2))=Rebalance!$D$31,INDIRECT(\"a\" & (VLOOKUP(Rebalance!$D$31,$F$2:$G$48,2,FALSE)+ROW()-2)),\"\")","v":{"$error":"#N/A"}},{"$f":"IF(INDIRECT(\"c\" & (VLOOKUP(Rebalance!$D$32,$F$2:$G$48,2,FALSE)+ROW()-2))=Rebalance!$D$32,INDIRECT(\"a\" & (VLOOKUP(Rebalance!$D$32,$F$2:$G$48,2,FALSE)+ROW()-2)),\"\")","v":{"$error":"#N/A"}},{"$f":"IF(INDIRECT(\"c\" & (VLOOKUP(Rebalance!$D$33,$F$2:$G$48,2,FALSE)+ROW()-2))=Rebalance!$D$33,INDIRECT(\"a\" & (VLOOKUP(Rebalance!$D$33,$F$2:$G$48,2,FALSE)+ROW()-2)),\"\")","v":{"$error":"#N/A"}},{"$f":"IF(INDIRECT(\"c\" & (VLOOKUP(Rebalance!$D$34,$F$2:$G$48,2,FALSE)+ROW()-2))=Rebalance!$D$34,INDIRECT(\"a\" & (VLOOKUP(Rebalance!$D$34,$F$2:$G$48,2,FALSE)+ROW()-2)),\"\")","v":{"$error":"#N/A"}},{"$f":"IF(INDIRECT(\"c\" & (VLOOKUP(Rebalance!$D$35,$F$2:$G$48,2,FALSE)+ROW()-2))=Rebalance!$D$35,INDIRECT(\"a\" & (VLOOKUP(Rebalance!$D$35,$F$2:$G$48,2,FALSE)+ROW()-2)),\"\")","v":{"$error":"#N/A"}},{"$f":"IF(INDIRECT(\"c\" & (VLOOKUP(Rebalance!$D$36,$F$2:$G$48,2,FALSE)+ROW()-2))=Rebalance!$D$36,INDIRECT(\"a\" & (VLOOKUP(Rebalance!$D$36,$F$2:$G$48,2,FALSE)+ROW()-2)),\"\")","v":{"$error":"#N/A"}},{"$f":"IF(INDIRECT(\"c\" & (VLOOKUP(Rebalance!$D$37,$F$2:$G$48,2,FALSE)+ROW()-2))=Rebalance!$D$37,INDIRECT(\"a\" & (VLOOKUP(Rebalance!$D$37,$F$2:$G$48,2,FALSE)+ROW()-2)),\"\")","v":{"$error":"#N/A"}},{"$f":"IF(INDIRECT(\"c\" & (VLOOKUP(Rebalance!$D$38,$F$2:$G$48,2,FALSE)+ROW()-2))=Rebalance!$D$38,INDIRECT(\"a\" & (VLOOKUP(Rebalance!$D$38,$F$2:$G$48,2,FALSE)+ROW()-2)),\"\")","v":{"$error":"#N/A"}},{"$f":"IF(INDIRECT(\"c\" & (VLOOKUP(Rebalance!$D$39,$F$2:$G$48,2,FALSE)+ROW()-2))=Rebalance!$D$39,INDIRECT(\"a\" & (VLOOKUP(Rebalance!$D$39,$F$2:$G$48,2,FALSE)+ROW()-2)),\"\")","v":{"$error":"#N/A"}},{"$f":"IF(INDIRECT(\"c\" & (VLOOKUP(Rebalance!$D$40,$F$2:$G$48,2,FALSE)+ROW()-2))=Rebalance!$D$40,INDIRECT(\"a\" & (VLOOKUP(Rebalance!$D$40,$F$2:$G$48,2,FALSE)+ROW()-2)),\"\")","v":{"$error":"#N/A"}},{"$f":"IF(INDIRECT(\"c\" & (VLOOKUP(Rebalance!$D$52,$F$2:$G$48,2,FALSE)+ROW()-2))=Rebalance!$D$52,INDIRECT(\"a\" & (VLOOKUP(Rebalance!$D$52,$F$2:$G$48,2,FALSE)+ROW()-2)),\"\")","v":{"$error":"#N/A"}},{"$f":"IF(INDIRECT(\"c\" & (VLOOKUP(Rebalance!$D$53,$F$2:$G$48,2,FALSE)+ROW()-2))=Rebalance!$D$53,INDIRECT(\"a\" & (VLOOKUP(Rebalance!$D$53,$F$2:$G$48,2,FALSE)+ROW()-2)),\"\")","v":{"$error":"#N/A"}},{"$f":"IF(INDIRECT(\"c\" & (VLOOKUP(Rebalance!$D$54,$F$2:$G$48,2,FALSE)+ROW()-2))=Rebalance!$D$54,INDIRECT(\"a\" & (VLOOKUP(Rebalance!$D$54,$F$2:$G$48,2,FALSE)+ROW()-2)),\"\")","v":{"$error":"#N/A"}},{"$f":"IF(INDIRECT(\"c\" & (VLOOKUP(Rebalance!$D$55,$F$2:$G$48,2,FALSE)+ROW()-2))=Rebalance!$D$55,INDIRECT(\"a\" & (VLOOKUP(Rebalance!$D$55,$F$2:$G$48,2,FALSE)+ROW()-2)),\"\")","v":{"$error":"#N/A"}},{"$f":"IF(INDIRECT(\"c\" & (VLOOKUP(Rebalance!$D$56,$F$2:$G$48,2,FALSE)+ROW()-2))=Rebalance!$D$56,INDIRECT(\"a\" & (VLOOKUP(Rebalance!$D$56,$F$2:$G$48,2,FALSE)+ROW()-2)),\"\")","v":{"$error":"#N/A"}},{"$f":"IF(INDIRECT(\"c\" & (VLOOKUP(Rebalance!$D$57,$F$2:$G$48,2,FALSE)+ROW()-2))=Rebalance!$D$57,INDIRECT(\"a\" & (VLOOKUP(Rebalance!$D$57,$F$2:$G$48,2,FALSE)+ROW()-2)),\"\")","v":{"$error":"#N/A"}},{"$f":"IF(INDIRECT(\"c\" & (VLOOKUP(Rebalance!$D$58,$F$2:$G$48,2,FALSE)+ROW()-2))=Rebalance!$D$58,INDIRECT(\"a\" & (VLOOKUP(Rebalance!$D$58,$F$2:$G$48,2,FALSE)+ROW()-2)),\"\")","v":{"$error":"#N/A"}},{"$f":"IF(INDIRECT(\"c\" & (VLOOKUP(Rebalance!$D$59,$F$2:$G$48,2,FALSE)+ROW()-2))=Rebalance!$D$59,INDIRECT(\"a\" & (VLOOKUP(Rebalance!$D$59,$F$2:$G$48,2,FALSE)+ROW()-2)),\"\")","v":{"$error":"#N/A"}},{"$f":"IF(INDIRECT(\"c\" & (VLOOKUP(Rebalance!$D$60,$F$2:$G$48,2,FALSE)+ROW()-2))=Rebalance!$D$60,INDIRECT(\"a\" & (VLOOKUP(Rebalance!$D$60,$F$2:$G$48,2,FALSE)+ROW()-2)),\"\")","v":{"$error":"#N/A"}},{"$f":"IF(INDIRECT(\"c\" & (VLOOKUP(Rebalance!$D$61,$F$2:$G$48,2,FALSE)+ROW()-2))=Rebalance!$D$61,INDIRECT(\"a\" & (VLOOKUP(Rebalance!$D$61,$F$2:$G$48,2,FALSE)+ROW()-2)),\"\")","v":{"$error":"#N/A"}},{"$f":"IF(INDIRECT(\"c\" & (VLOOKUP(Rebalance!$D$62,$F$2:$G$48,2,FALSE)+ROW()-2))=Rebalance!$D$62,INDIRECT(\"a\" & (VLOOKUP(Rebalance!$D$62,$F$2:$G$48,2,FALSE)+ROW()-2)),\"\")","v":{"$error":"#N/A"}},{"$f":"IF(INDIRECT(\"c\" & (VLOOKUP(Rebalance!$D$63,$F$2:$G$48,2,FALSE)+ROW()-2))=Rebalance!$D$63,INDIRECT(\"a\" & (VLOOKUP(Rebalance!$D$63,$F$2:$G$48,2,FALSE)+ROW()-2)),\"\")","v":{"$error":"#N/A"}},{"$f":"IF(INDIRECT(\"c\" & (VLOOKUP(Rebalance!$D$64,$F$2:$G$48,2,FALSE)+ROW()-2))=Rebalance!$D$64,INDIRECT(\"a\" & (VLOOKUP(Rebalance!$D$64,$F$2:$G$48,2,FALSE)+ROW()-2)),\"\")","v":{"$error":"#N/A"}},{"$f":"IF(INDIRECT(\"c\" & (VLOOKUP(Rebalance!$D$65,$F$2:$G$48,2,FALSE)+ROW()-2))=Rebalance!$D$65,INDIRECT(\"a\" & (VLOOKUP(Rebalance!$D$65,$F$2:$G$48,2,FALSE)+ROW()-2)),\"\")","v":{"$error":"#N/A"}},{"$f":"IF(INDIRECT(\"c\" & (VLOOKUP(Rebalance!$D$66,$F$2:$G$48,2,FALSE)+ROW()-2))=Rebalance!$D$66,INDIRECT(\"a\" & (VLOOKUP(Rebalance!$D$66,$F$2:$G$48,2,FALSE)+ROW()-2)),\"\")","v":{"$error":"#N/A"}}]
["Nedgroup Inv Core Bond A","VELG","Nedgroup Collective Investments Ltd",{"$f":"ROW()","v":358},null,null,{"$f":"VLOOKUP(F358,$C$2:$D$599,2,FALSE)","v":{"$error":"#N/A"}},{"$f":"IF(INDIRECT(\"c\" & (VLOOKUP(Rebalance!$D$26,$F$2:$G$48,2,FALSE)+ROW()-2))=Rebalance!$D$26,INDIRECT(\"a\" & (VLOOKUP(Rebalance!$D$26,$F$2:$G$48,2,FALSE)+ROW()-2)),\"\")","v":{"$error":"#N/A"}},{"$f":"IF(INDIRECT(\"c\" & (VLOOKUP(Rebalance!$D$27,$F$2:$G$48,2,FALSE)+ROW()-2))=Rebalance!$D$27,INDIRECT(\"a\" & (VLOOKUP(Rebalance!$D$27,$F$2:$G$48,2,FALSE)+ROW()-2)),\"\")","v":{"$error":"#N/A"}},{"$f":"IF(INDIRECT(\"c\" & (VLOOKUP(Rebalance!$D$28,$F$2:$G$48,2,FALSE)+ROW()-2))=Rebalance!$D$28,INDIRECT(\"a\" & (VLOOKUP(Rebalance!$D$28,$F$2:$G$48,2,FALSE)+ROW()-2)),\"\")","v":{"$error":"#N/A"}},{"$f":"IF(INDIRECT(\"c\" & (VLOOKUP(Rebalance!$D$29,$F$2:$G$48,2,FALSE)+ROW()-2))=Rebalance!$D$29,INDIRECT(\"a\" & (VLOOKUP(Rebalance!$D$29,$F$2:$G$48,2,FALSE)+ROW()-2)),\"\")","v":{"$error":"#N/A"}},{"$f":"IF(INDIRECT(\"c\" & (VLOOKUP(Rebalance!$D$30,$F$2:$G$48,2,FALSE)+ROW()-2))=Rebalance!$D$30,INDIRECT(\"a\" & (VLOOKUP(Rebalance!$D$30,$F$2:$G$48,2,FALSE)+ROW()-2)),\"\")","v":{"$error":"#N/A"}},{"$f":"IF(INDIRECT(\"c\" & (VLOOKUP(Rebalance!$D$31,$F$2:$G$48,2,FALSE)+ROW()-2))=Rebalance!$D$31,INDIRECT(\"a\" & (VLOOKUP(Rebalance!$D$31,$F$2:$G$48,2,FALSE)+ROW()-2)),\"\")","v":{"$error":"#N/A"}},{"$f":"IF(INDIRECT(\"c\" & (VLOOKUP(Rebalance!$D$32,$F$2:$G$48,2,FALSE)+ROW()-2))=Rebalance!$D$32,INDIRECT(\"a\" & (VLOOKUP(Rebalance!$D$32,$F$2:$G$48,2,FALSE)+ROW()-2)),\"\")","v":{"$error":"#N/A"}},{"$f":"IF(INDIRECT(\"c\" & (VLOOKUP(Rebalance!$D$33,$F$2:$G$48,2,FALSE)+ROW()-2))=Rebalance!$D$33,INDIRECT(\"a\" & (VLOOKUP(Rebalance!$D$33,$F$2:$G$48,2,FALSE)+ROW()-2)),\"\")","v":{"$error":"#N/A"}},{"$f":"IF(INDIRECT(\"c\" & (VLOOKUP(Rebalance!$D$34,$F$2:$G$48,2,FALSE)+ROW()-2))=Rebalance!$D$34,INDIRECT(\"a\" & (VLOOKUP(Rebalance!$D$34,$F$2:$G$48,2,FALSE)+ROW()-2)),\"\")","v":{"$error":"#N/A"}},{"$f":"IF(INDIRECT(\"c\" & (VLOOKUP(Rebalance!$D$35,$F$2:$G$48,2,FALSE)+ROW()-2))=Rebalance!$D$35,INDIRECT(\"a\" & (VLOOKUP(Rebalance!$D$35,$F$2:$G$48,2,FALSE)+ROW()-2)),\"\")","v":{"$error":"#N/A"}},{"$f":"IF(INDIRECT(\"c\" & (VLOOKUP(Rebalance!$D$36,$F$2:$G$48,2,FALSE)+ROW()-2))=Rebalance!$D$36,INDIRECT(\"a\" & (VLOOKUP(Rebalance!$D$36,$F$2:$G$48,2,FALSE)+ROW()-2)),\"\")","v":{"$error":"#N/A"}},{"$f":"IF(INDIRECT(\"c\" & (VLOOKUP(Rebalance!$D$37,$F$2:$G$48,2,FALSE)+ROW()-2))=Rebalance!$D$37,INDIRECT(\"a\" & (VLOOKUP(Rebalance!$D$37,$F$2:$G$48,2,FALSE)+ROW()-2)),\"\")","v":{"$error":"#N/A"}},{"$f":"IF(INDIRECT(\"c\" & (VLOOKUP(Rebalance!$D$38,$F$2:$G$48,2,FALSE)+ROW()-2))=Rebalance!$D$38,INDIRECT(\"a\" & (VLOOKUP(Rebalance!$D$38,$F$2:$G$48,2,FALSE)+ROW()-2)),\"\")","v":{"$error":"#N/A"}},{"$f":"IF(INDIRECT(\"c\" & (VLOOKUP(Rebalance!$D$39,$F$2:$G$48,2,FALSE)+ROW()-2))=Rebalance!$D$39,INDIRECT(\"a\" & (VLOOKUP(Rebalance!$D$39,$F$2:$G$48,2,FALSE)+ROW()-2)),\"\")","v":{"$error":"#N/A"}},{"$f":"IF(INDIRECT(\"c\" & (VLOOKUP(Rebalance!$D$40,$F$2:$G$48,2,FALSE)+ROW()-2))=Rebalance!$D$40,INDIRECT(\"a\" & (VLOOKUP(Rebalance!$D$40,$F$2:$G$48,2,FALSE)+ROW()-2)),\"\")","v":{"$error":"#N/A"}},{"$f":"IF(INDIRECT(\"c\" & (VLOOKUP(Rebalance!$D$52,$F$2:$G$48,2,FALSE)+ROW()-2))=Rebalance!$D$52,INDIRECT(\"a\" & (VLOOKUP(Rebalance!$D$52,$F$2:$G$48,2,FALSE)+ROW()-2)),\"\")","v":{"$error":"#N/A"}},{"$f":"IF(INDIRECT(\"c\" & (VLOOKUP(Rebalance!$D$53,$F$2:$G$48,2,FALSE)+ROW()-2))=Rebalance!$D$53,INDIRECT(\"a\" & (VLOOKUP(Rebalance!$D$53,$F$2:$G$48,2,FALSE)+ROW()-2)),\"\")","v":{"$error":"#N/A"}},{"$f":"IF(INDIRECT(\"c\" & (VLOOKUP(Rebalance!$D$54,$F$2:$G$48,2,FALSE)+ROW()-2))=Rebalance!$D$54,INDIRECT(\"a\" & (VLOOKUP(Rebalance!$D$54,$F$2:$G$48,2,FALSE)+ROW()-2)),\"\")","v":{"$error":"#N/A"}},{"$f":"IF(INDIRECT(\"c\" & (VLOOKUP(Rebalance!$D$55,$F$2:$G$48,2,FALSE)+ROW()-2))=Rebalance!$D$55,INDIRECT(\"a\" & (VLOOKUP(Rebalance!$D$55,$F$2:$G$48,2,FALSE)+ROW()-2)),\"\")","v":{"$error":"#N/A"}},{"$f":"IF(INDIRECT(\"c\" & (VLOOKUP(Rebalance!$D$56,$F$2:$G$48,2,FALSE)+ROW()-2))=Rebalance!$D$56,INDIRECT(\"a\" & (VLOOKUP(Rebalance!$D$56,$F$2:$G$48,2,FALSE)+ROW()-2)),\"\")","v":{"$error":"#N/A"}},{"$f":"IF(INDIRECT(\"c\" & (VLOOKUP(Rebalance!$D$57,$F$2:$G$48,2,FALSE)+ROW()-2))=Rebalance!$D$57,INDIRECT(\"a\" & (VLOOKUP(Rebalance!$D$57,$F$2:$G$48,2,FALSE)+ROW()-2)),\"\")","v":{"$error":"#N/A"}},{"$f":"IF(INDIRECT(\"c\" & (VLOOKUP(Rebalance!$D$58,$F$2:$G$48,2,FALSE)+ROW()-2))=Rebalance!$D$58,INDIRECT(\"a\" & (VLOOKUP(Rebalance!$D$58,$F$2:$G$48,2,FALSE)+ROW()-2)),\"\")","v":{"$error":"#N/A"}},{"$f":"IF(INDIRECT(\"c\" & (VLOOKUP(Rebalance!$D$59,$F$2:$G$48,2,FALSE)+ROW()-2))=Rebalance!$D$59,INDIRECT(\"a\" & (VLOOKUP(Rebalance!$D$59,$F$2:$G$48,2,FALSE)+ROW()-2)),\"\")","v":{"$error":"#N/A"}},{"$f":"IF(INDIRECT(\"c\" & (VLOOKUP(Rebalance!$D$60,$F$2:$G$48,2,FALSE)+ROW()-2))=Rebalance!$D$60,INDIRECT(\"a\" & (VLOOKUP(Rebalance!$D$60,$F$2:$G$48,2,FALSE)+ROW()-2)),\"\")","v":{"$error":"#N/A"}},{"$f":"IF(INDIRECT(\"c\" & (VLOOKUP(Rebalance!$D$61,$F$2:$G$48,2,FALSE)+ROW()-2))=Rebalance!$D$61,INDIRECT(\"a\" & (VLOOKUP(Rebalance!$D$61,$F$2:$G$48,2,FALSE)+ROW()-2)),\"\")","v":{"$error":"#N/A"}},{"$f":"IF(INDIRECT(\"c\" & (VLOOKUP(Rebalance!$D$62,$F$2:$G$48,2,FALSE)+ROW()-2))=Rebalance!$D$62,INDIRECT(\"a\" & (VLOOKUP(Rebalance!$D$62,$F$2:$G$48,2,FALSE)+ROW()-2)),\"\")","v":{"$error":"#N/A"}},{"$f":"IF(INDIRECT(\"c\" & (VLOOKUP(Rebalance!$D$63,$F$2:$G$48,2,FALSE)+ROW()-2))=Rebalance!$D$63,INDIRECT(\"a\" & (VLOOKUP(Rebalance!$D$63,$F$2:$G$48,2,FALSE)+ROW()-2)),\"\")","v":{"$error":"#N/A"}},{"$f":"IF(INDIRECT(\"c\" & (VLOOKUP(Rebalance!$D$64,$F$2:$G$48,2,FALSE)+ROW()-2))=Rebalance!$D$64,INDIRECT(\"a\" & (VLOOKUP(Rebalance!$D$64,$F$2:$G$48,2,FALSE)+ROW()-2)),\"\")","v":{"$error":"#N/A"}},{"$f":"IF(INDIRECT(\"c\" & (VLOOKUP(Rebalance!$D$65,$F$2:$G$48,2,FALSE)+ROW()-2))=Rebalance!$D$65,INDIRECT(\"a\" & (VLOOKUP(Rebalance!$D$65,$F$2:$G$48,2,FALSE)+ROW()-2)),\"\")","v":{"$error":"#N/A"}},{"$f":"IF(INDIRECT(\"c\" & (VLOOKUP(Rebalance!$D$66,$F$2:$G$48,2,FALSE)+ROW()-2))=Rebalance!$D$66,INDIRECT(\"a\" & (VLOOKUP(Rebalance!$D$66,$F$2:$G$48,2,FALSE)+ROW()-2)),\"\")","v":{"$error":"#N/A"}}]
["Nedgroup Inv Core Diversified Fund B","NIDCB","Nedgroup Collective Investments Ltd",{"$f":"ROW()","v":359},null,null,{"$f":"VLOOKUP(F359,$C$2:$D$599,2,FALSE)","v":{"$error":"#N/A"}},{"$f":"IF(INDIRECT(\"c\" & (VLOOKUP(Rebalance!$D$26,$F$2:$G$48,2,FALSE)+ROW()-2))=Rebalance!$D$26,INDIRECT(\"a\" & (VLOOKUP(Rebalance!$D$26,$F$2:$G$48,2,FALSE)+ROW()-2)),\"\")","v":{"$error":"#N/A"}},{"$f":"IF(INDIRECT(\"c\" & (VLOOKUP(Rebalance!$D$27,$F$2:$G$48,2,FALSE)+ROW()-2))=Rebalance!$D$27,INDIRECT(\"a\" & (VLOOKUP(Rebalance!$D$27,$F$2:$G$48,2,FALSE)+ROW()-2)),\"\")","v":{"$error":"#N/A"}},{"$f":"IF(INDIRECT(\"c\" & (VLOOKUP(Rebalance!$D$28,$F$2:$G$48,2,FALSE)+ROW()-2))=Rebalance!$D$28,INDIRECT(\"a\" & (VLOOKUP(Rebalance!$D$28,$F$2:$G$48,2,FALSE)+ROW()-2)),\"\")","v":{"$error":"#N/A"}},{"$f":"IF(INDIRECT(\"c\" & (VLOOKUP(Rebalance!$D$29,$F$2:$G$48,2,FALSE)+ROW()-2))=Rebalance!$D$29,INDIRECT(\"a\" & (VLOOKUP(Rebalance!$D$29,$F$2:$G$48,2,FALSE)+ROW()-2)),\"\")","v":{"$error":"#N/A"}},{"$f":"IF(INDIRECT(\"c\" & (VLOOKUP(Rebalance!$D$30,$F$2:$G$48,2,FALSE)+ROW()-2))=Rebalance!$D$30,INDIRECT(\"a\" & (VLOOKUP(Rebalance!$D$30,$F$2:$G$48,2,FALSE)+ROW()-2)),\"\")","v":{"$error":"#N/A"}},{"$f":"IF(INDIRECT(\"c\" & (VLOOKUP(Rebalance!$D$31,$F$2:$G$48,2,FALSE)+ROW()-2))=Rebalance!$D$31,INDIRECT(\"a\" & (VLOOKUP(Rebalance!$D$31,$F$2:$G$48,2,FALSE)+ROW()-2)),\"\")","v":{"$error":"#N/A"}},{"$f":"IF(INDIRECT(\"c\" & (VLOOKUP(Rebalance!$D$32,$F$2:$G$48,2,FALSE)+ROW()-2))=Rebalance!$D$32,INDIRECT(\"a\" & (VLOOKUP(Rebalance!$D$32,$F$2:$G$48,2,FALSE)+ROW()-2)),\"\")","v":{"$error":"#N/A"}},{"$f":"IF(INDIRECT(\"c\" & (VLOOKUP(Rebalance!$D$33,$F$2:$G$48,2,FALSE)+ROW()-2))=Rebalance!$D$33,INDIRECT(\"a\" & (VLOOKUP(Rebalance!$D$33,$F$2:$G$48,2,FALSE)+ROW()-2)),\"\")","v":{"$error":"#N/A"}},{"$f":"IF(INDIRECT(\"c\" & (VLOOKUP(Rebalance!$D$34,$F$2:$G$48,2,FALSE)+ROW()-2))=Rebalance!$D$34,INDIRECT(\"a\" & (VLOOKUP(Rebalance!$D$34,$F$2:$G$48,2,FALSE)+ROW()-2)),\"\")","v":{"$error":"#N/A"}},{"$f":"IF(INDIRECT(\"c\" & (VLOOKUP(Rebalance!$D$35,$F$2:$G$48,2,FALSE)+ROW()-2))=Rebalance!$D$35,INDIRECT(\"a\" & (VLOOKUP(Rebalance!$D$35,$F$2:$G$48,2,FALSE)+ROW()-2)),\"\")","v":{"$error":"#N/A"}},{"$f":"IF(INDIRECT(\"c\" & (VLOOKUP(Rebalance!$D$36,$F$2:$G$48,2,FALSE)+ROW()-2))=Rebalance!$D$36,INDIRECT(\"a\" & (VLOOKUP(Rebalance!$D$36,$F$2:$G$48,2,FALSE)+ROW()-2)),\"\")","v":{"$error":"#N/A"}},{"$f":"IF(INDIRECT(\"c\" & (VLOOKUP(Rebalance!$D$37,$F$2:$G$48,2,FALSE)+ROW()-2))=Rebalance!$D$37,INDIRECT(\"a\" & (VLOOKUP(Rebalance!$D$37,$F$2:$G$48,2,FALSE)+ROW()-2)),\"\")","v":{"$error":"#N/A"}},{"$f":"IF(INDIRECT(\"c\" & (VLOOKUP(Rebalance!$D$38,$F$2:$G$48,2,FALSE)+ROW()-2))=Rebalance!$D$38,INDIRECT(\"a\" & (VLOOKUP(Rebalance!$D$38,$F$2:$G$48,2,FALSE)+ROW()-2)),\"\")","v":{"$error":"#N/A"}},{"$f":"IF(INDIRECT(\"c\" & (VLOOKUP(Rebalance!$D$39,$F$2:$G$48,2,FALSE)+ROW()-2))=Rebalance!$D$39,INDIRECT(\"a\" & (VLOOKUP(Rebalance!$D$39,$F$2:$G$48,2,FALSE)+ROW()-2)),\"\")","v":{"$error":"#N/A"}},{"$f":"IF(INDIRECT(\"c\" & (VLOOKUP(Rebalance!$D$40,$F$2:$G$48,2,FALSE)+ROW()-2))=Rebalance!$D$40,INDIRECT(\"a\" & (VLOOKUP(Rebalance!$D$40,$F$2:$G$48,2,FALSE)+ROW()-2)),\"\")","v":{"$error":"#N/A"}},{"$f":"IF(INDIRECT(\"c\" & (VLOOKUP(Rebalance!$D$52,$F$2:$G$48,2,FALSE)+ROW()-2))=Rebalance!$D$52,INDIRECT(\"a\" & (VLOOKUP(Rebalance!$D$52,$F$2:$G$48,2,FALSE)+ROW()-2)),\"\")","v":{"$error":"#N/A"}},{"$f":"IF(INDIRECT(\"c\" & (VLOOKUP(Rebalance!$D$53,$F$2:$G$48,2,FALSE)+ROW()-2))=Rebalance!$D$53,INDIRECT(\"a\" & (VLOOKUP(Rebalance!$D$53,$F$2:$G$48,2,FALSE)+ROW()-2)),\"\")","v":{"$error":"#N/A"}},{"$f":"IF(INDIRECT(\"c\" & (VLOOKUP(Rebalance!$D$54,$F$2:$G$48,2,FALSE)+ROW()-2))=Rebalance!$D$54,INDIRECT(\"a\" & (VLOOKUP(Rebalance!$D$54,$F$2:$G$48,2,FALSE)+ROW()-2)),\"\")","v":{"$error":"#N/A"}},{"$f":"IF(INDIRECT(\"c\" & (VLOOKUP(Rebalance!$D$55,$F$2:$G$48,2,FALSE)+ROW()-2))=Rebalance!$D$55,INDIRECT(\"a\" & (VLOOKUP(Rebalance!$D$55,$F$2:$G$48,2,FALSE)+ROW()-2)),\"\")","v":{"$error":"#N/A"}},{"$f":"IF(INDIRECT(\"c\" & (VLOOKUP(Rebalance!$D$56,$F$2:$G$48,2,FALSE)+ROW()-2))=Rebalance!$D$56,INDIRECT(\"a\" & (VLOOKUP(Rebalance!$D$56,$F$2:$G$48,2,FALSE)+ROW()-2)),\"\")","v":{"$error":"#N/A"}},{"$f":"IF(INDIRECT(\"c\" & (VLOOKUP(Rebalance!$D$57,$F$2:$G$48,2,FALSE)+ROW()-2))=Rebalance!$D$57,INDIRECT(\"a\" & (VLOOKUP(Rebalance!$D$57,$F$2:$G$48,2,FALSE)+ROW()-2)),\"\")","v":{"$error":"#N/A"}},{"$f":"IF(INDIRECT(\"c\" & (VLOOKUP(Rebalance!$D$58,$F$2:$G$48,2,FALSE)+ROW()-2))=Rebalance!$D$58,INDIRECT(\"a\" & (VLOOKUP(Rebalance!$D$58,$F$2:$G$48,2,FALSE)+ROW()-2)),\"\")","v":{"$error":"#N/A"}},{"$f":"IF(INDIRECT(\"c\" & (VLOOKUP(Rebalance!$D$59,$F$2:$G$48,2,FALSE)+ROW()-2))=Rebalance!$D$59,INDIRECT(\"a\" & (VLOOKUP(Rebalance!$D$59,$F$2:$G$48,2,FALSE)+ROW()-2)),\"\")","v":{"$error":"#N/A"}},{"$f":"IF(INDIRECT(\"c\" & (VLOOKUP(Rebalance!$D$60,$F$2:$G$48,2,FALSE)+ROW()-2))=Rebalance!$D$60,INDIRECT(\"a\" & (VLOOKUP(Rebalance!$D$60,$F$2:$G$48,2,FALSE)+ROW()-2)),\"\")","v":{"$error":"#N/A"}},{"$f":"IF(INDIRECT(\"c\" & (VLOOKUP(Rebalance!$D$61,$F$2:$G$48,2,FALSE)+ROW()-2))=Rebalance!$D$61,INDIRECT(\"a\" & (VLOOKUP(Rebalance!$D$61,$F$2:$G$48,2,FALSE)+ROW()-2)),\"\")","v":{"$error":"#N/A"}},{"$f":"IF(INDIRECT(\"c\" & (VLOOKUP(Rebalance!$D$62,$F$2:$G$48,2,FALSE)+ROW()-2))=Rebalance!$D$62,INDIRECT(\"a\" & (VLOOKUP(Rebalance!$D$62,$F$2:$G$48,2,FALSE)+ROW()-2)),\"\")","v":{"$error":"#N/A"}},{"$f":"IF(INDIRECT(\"c\" & (VLOOKUP(Rebalance!$D$63,$F$2:$G$48,2,FALSE)+ROW()-2))=Rebalance!$D$63,INDIRECT(\"a\" & (VLOOKUP(Rebalance!$D$63,$F$2:$G$48,2,FALSE)+ROW()-2)),\"\")","v":{"$error":"#N/A"}},{"$f":"IF(INDIRECT(\"c\" & (VLOOKUP(Rebalance!$D$64,$F$2:$G$48,2,FALSE)+ROW()-2))=Rebalance!$D$64,INDIRECT(\"a\" & (VLOOKUP(Rebalance!$D$64,$F$2:$G$48,2,FALSE)+ROW()-2)),\"\")","v":{"$error":"#N/A"}},{"$f":"IF(INDIRECT(\"c\" & (VLOOKUP(Rebalance!$D$65,$F$2:$G$48,2,FALSE)+ROW()-2))=Rebalance!$D$65,INDIRECT(\"a\" & (VLOOKUP(Rebalance!$D$65,$F$2:$G$48,2,FALSE)+ROW()-2)),\"\")","v":{"$error":"#N/A"}},{"$f":"IF(INDIRECT(\"c\" & (VLOOKUP(Rebalance!$D$66,$F$2:$G$48,2,FALSE)+ROW()-2))=Rebalance!$D$66,INDIRECT(\"a\" & (VLOOKUP(Rebalance!$D$66,$F$2:$G$48,2,FALSE)+ROW()-2)),\"\")","v":{"$error":"#N/A"}}]
["Nedgroup Inv Core Guarded Fund B","NICCB","Nedgroup Collective Investments Ltd",{"$f":"ROW()","v":360},null,null,{"$f":"VLOOKUP(F360,$C$2:$D$599,2,FALSE)","v":{"$error":"#N/A"}},{"$f":"IF(INDIRECT(\"c\" & (VLOOKUP(Rebalance!$D$26,$F$2:$G$48,2,FALSE)+ROW()-2))=Rebalance!$D$26,INDIRECT(\"a\" & (VLOOKUP(Rebalance!$D$26,$F$2:$G$48,2,FALSE)+ROW()-2)),\"\")","v":{"$error":"#N/A"}},{"$f":"IF(INDIRECT(\"c\" & (VLOOKUP(Rebalance!$D$27,$F$2:$G$48,2,FALSE)+ROW()-2))=Rebalance!$D$27,INDIRECT(\"a\" & (VLOOKUP(Rebalance!$D$27,$F$2:$G$48,2,FALSE)+ROW()-2)),\"\")","v":{"$error":"#N/A"}},{"$f":"IF(INDIRECT(\"c\" & (VLOOKUP(Rebalance!$D$28,$F$2:$G$48,2,FALSE)+ROW()-2))=Rebalance!$D$28,INDIRECT(\"a\" & (VLOOKUP(Rebalance!$D$28,$F$2:$G$48,2,FALSE)+ROW()-2)),\"\")","v":{"$error":"#N/A"}},{"$f":"IF(INDIRECT(\"c\" & (VLOOKUP(Rebalance!$D$29,$F$2:$G$48,2,FALSE)+ROW()-2))=Rebalance!$D$29,INDIRECT(\"a\" & (VLOOKUP(Rebalance!$D$29,$F$2:$G$48,2,FALSE)+ROW()-2)),\"\")","v":{"$error":"#N/A"}},{"$f":"IF(INDIRECT(\"c\" & (VLOOKUP(Rebalance!$D$30,$F$2:$G$48,2,FALSE)+ROW()-2))=Rebalance!$D$30,INDIRECT(\"a\" & (VLOOKUP(Rebalance!$D$30,$F$2:$G$48,2,FALSE)+ROW()-2)),\"\")","v":{"$error":"#N/A"}},{"$f":"IF(INDIRECT(\"c\" & (VLOOKUP(Rebalance!$D$31,$F$2:$G$48,2,FALSE)+ROW()-2))=Rebalance!$D$31,INDIRECT(\"a\" & (VLOOKUP(Rebalance!$D$31,$F$2:$G$48,2,FALSE)+ROW()-2)),\"\")","v":{"$error":"#N/A"}},{"$f":"IF(INDIRECT(\"c\" & (VLOOKUP(Rebalance!$D$32,$F$2:$G$48,2,FALSE)+ROW()-2))=Rebalance!$D$32,INDIRECT(\"a\" & (VLOOKUP(Rebalance!$D$32,$F$2:$G$48,2,FALSE)+ROW()-2)),\"\")","v":{"$error":"#N/A"}},{"$f":"IF(INDIRECT(\"c\" & (VLOOKUP(Rebalance!$D$33,$F$2:$G$48,2,FALSE)+ROW()-2))=Rebalance!$D$33,INDIRECT(\"a\" & (VLOOKUP(Rebalance!$D$33,$F$2:$G$48,2,FALSE)+ROW()-2)),\"\")","v":{"$error":"#N/A"}},{"$f":"IF(INDIRECT(\"c\" & (VLOOKUP(Rebalance!$D$34,$F$2:$G$48,2,FALSE)+ROW()-2))=Rebalance!$D$34,INDIRECT(\"a\" & (VLOOKUP(Rebalance!$D$34,$F$2:$G$48,2,FALSE)+ROW()-2)),\"\")","v":{"$error":"#N/A"}},{"$f":"IF(INDIRECT(\"c\" & (VLOOKUP(Rebalance!$D$35,$F$2:$G$48,2,FALSE)+ROW()-2))=Rebalance!$D$35,INDIRECT(\"a\" & (VLOOKUP(Rebalance!$D$35,$F$2:$G$48,2,FALSE)+ROW()-2)),\"\")","v":{"$error":"#N/A"}},{"$f":"IF(INDIRECT(\"c\" & (VLOOKUP(Rebalance!$D$36,$F$2:$G$48,2,FALSE)+ROW()-2))=Rebalance!$D$36,INDIRECT(\"a\" & (VLOOKUP(Rebalance!$D$36,$F$2:$G$48,2,FALSE)+ROW()-2)),\"\")","v":{"$error":"#N/A"}},{"$f":"IF(INDIRECT(\"c\" & (VLOOKUP(Rebalance!$D$37,$F$2:$G$48,2,FALSE)+ROW()-2))=Rebalance!$D$37,INDIRECT(\"a\" & (VLOOKUP(Rebalance!$D$37,$F$2:$G$48,2,FALSE)+ROW()-2)),\"\")","v":{"$error":"#N/A"}},{"$f":"IF(INDIRECT(\"c\" & (VLOOKUP(Rebalance!$D$38,$F$2:$G$48,2,FALSE)+ROW()-2))=Rebalance!$D$38,INDIRECT(\"a\" & (VLOOKUP(Rebalance!$D$38,$F$2:$G$48,2,FALSE)+ROW()-2)),\"\")","v":{"$error":"#N/A"}},{"$f":"IF(INDIRECT(\"c\" & (VLOOKUP(Rebalance!$D$39,$F$2:$G$48,2,FALSE)+ROW()-2))=Rebalance!$D$39,INDIRECT(\"a\" & (VLOOKUP(Rebalance!$D$39,$F$2:$G$48,2,FALSE)+ROW()-2)),\"\")","v":{"$error":"#N/A"}},{"$f":"IF(INDIRECT(\"c\" & (VLOOKUP(Rebalance!$D$40,$F$2:$G$48,2,FALSE)+ROW()-2))=Rebalance!$D$40,INDIRECT(\"a\" & (VLOOKUP(Rebalance!$D$40,$F$2:$G$48,2,FALSE)+ROW()-2)),\"\")","v":{"$error":"#N/A"}},{"$f":"IF(INDIRECT(\"c\" & (VLOOKUP(Rebalance!$D$52,$F$2:$G$48,2,FALSE)+ROW()-2))=Rebalance!$D$52,INDIRECT(\"a\" & (VLOOKUP(Rebalance!$D$52,$F$2:$G$48,2,FALSE)+ROW()-2)),\"\")","v":{"$error":"#N/A"}},{"$f":"IF(INDIRECT(\"c\" & (VLOOKUP(Rebalance!$D$53,$F$2:$G$48,2,FALSE)+ROW()-2))=Rebalance!$D$53,INDIRECT(\"a\" & (VLOOKUP(Rebalance!$D$53,$F$2:$G$48,2,FALSE)+ROW()-2)),\"\")","v":{"$error":"#N/A"}},{"$f":"IF(INDIRECT(\"c\" & (VLOOKUP(Rebalance!$D$54,$F$2:$G$48,2,FALSE)+ROW()-2))=Rebalance!$D$54,INDIRECT(\"a\" & (VLOOKUP(Rebalance!$D$54,$F$2:$G$48,2,FALSE)+ROW()-2)),\"\")","v":{"$error":"#N/A"}},{"$f":"IF(INDIRECT(\"c\" & (VLOOKUP(Rebalance!$D$55,$F$2:$G$48,2,FALSE)+ROW()-2))=Rebalance!$D$55,INDIRECT(\"a\" & (VLOOKUP(Rebalance!$D$55,$F$2:$G$48,2,FALSE)+ROW()-2)),\"\")","v":{"$error":"#N/A"}},{"$f":"IF(INDIRECT(\"c\" & (VLOOKUP(Rebalance!$D$56,$F$2:$G$48,2,FALSE)+ROW()-2))=Rebalance!$D$56,INDIRECT(\"a\" & (VLOOKUP(Rebalance!$D$56,$F$2:$G$48,2,FALSE)+ROW()-2)),\"\")","v":{"$error":"#N/A"}},{"$f":"IF(INDIRECT(\"c\" & (VLOOKUP(Rebalance!$D$57,$F$2:$G$48,2,FALSE)+ROW()-2))=Rebalance!$D$57,INDIRECT(\"a\" & (VLOOKUP(Rebalance!$D$57,$F$2:$G$48,2,FALSE)+ROW()-2)),\"\")","v":{"$error":"#N/A"}},{"$f":"IF(INDIRECT(\"c\" & (VLOOKUP(Rebalance!$D$58,$F$2:$G$48,2,FALSE)+ROW()-2))=Rebalance!$D$58,INDIRECT(\"a\" & (VLOOKUP(Rebalance!$D$58,$F$2:$G$48,2,FALSE)+ROW()-2)),\"\")","v":{"$error":"#N/A"}},{"$f":"IF(INDIRECT(\"c\" & (VLOOKUP(Rebalance!$D$59,$F$2:$G$48,2,FALSE)+ROW()-2))=Rebalance!$D$59,INDIRECT(\"a\" & (VLOOKUP(Rebalance!$D$59,$F$2:$G$48,2,FALSE)+ROW()-2)),\"\")","v":{"$error":"#N/A"}},{"$f":"IF(INDIRECT(\"c\" & (VLOOKUP(Rebalance!$D$60,$F$2:$G$48,2,FALSE)+ROW()-2))=Rebalance!$D$60,INDIRECT(\"a\" & (VLOOKUP(Rebalance!$D$60,$F$2:$G$48,2,FALSE)+ROW()-2)),\"\")","v":{"$error":"#N/A"}},{"$f":"IF(INDIRECT(\"c\" & (VLOOKUP(Rebalance!$D$61,$F$2:$G$48,2,FALSE)+ROW()-2))=Rebalance!$D$61,INDIRECT(\"a\" & (VLOOKUP(Rebalance!$D$61,$F$2:$G$48,2,FALSE)+ROW()-2)),\"\")","v":{"$error":"#N/A"}},{"$f":"IF(INDIRECT(\"c\" & (VLOOKUP(Rebalance!$D$62,$F$2:$G$48,2,FALSE)+ROW()-2))=Rebalance!$D$62,INDIRECT(\"a\" & (VLOOKUP(Rebalance!$D$62,$F$2:$G$48,2,FALSE)+ROW()-2)),\"\")","v":{"$error":"#N/A"}},{"$f":"IF(INDIRECT(\"c\" & (VLOOKUP(Rebalance!$D$63,$F$2:$G$48,2,FALSE)+ROW()-2))=Rebalance!$D$63,INDIRECT(\"a\" & (VLOOKUP(Rebalance!$D$63,$F$2:$G$48,2,FALSE)+ROW()-2)),\"\")","v":{"$error":"#N/A"}},{"$f":"IF(INDIRECT(\"c\" & (VLOOKUP(Rebalance!$D$64,$F$2:$G$48,2,FALSE)+ROW()-2))=Rebalance!$D$64,INDIRECT(\"a\" & (VLOOKUP(Rebalance!$D$64,$F$2:$G$48,2,FALSE)+ROW()-2)),\"\")","v":{"$error":"#N/A"}},{"$f":"IF(INDIRECT(\"c\" & (VLOOKUP(Rebalance!$D$65,$F$2:$G$48,2,FALSE)+ROW()-2))=Rebalance!$D$65,INDIRECT(\"a\" & (VLOOKUP(Rebalance!$D$65,$F$2:$G$48,2,FALSE)+ROW()-2)),\"\")","v":{"$error":"#N/A"}},{"$f":"IF(INDIRECT(\"c\" & (VLOOKUP(Rebalance!$D$66,$F$2:$G$48,2,FALSE)+ROW()-2))=Rebalance!$D$66,INDIRECT(\"a\" & (VLOOKUP(Rebalance!$D$66,$F$2:$G$48,2,FALSE)+ROW()-2)),\"\")","v":{"$error":"#N/A"}}]
["Nedgroup Inv Core Income Fund C3","NECA","Nedgroup Collective Investments Ltd",{"$f":"ROW()","v":361},null,null,{"$f":"VLOOKUP(F361,$C$2:$D$599,2,FALSE)","v":{"$error":"#N/A"}},{"$f":"IF(INDIRECT(\"c\" & (VLOOKUP(Rebalance!$D$26,$F$2:$G$48,2,FALSE)+ROW()-2))=Rebalance!$D$26,INDIRECT(\"a\" & (VLOOKUP(Rebalance!$D$26,$F$2:$G$48,2,FALSE)+ROW()-2)),\"\")","v":{"$error":"#N/A"}},{"$f":"IF(INDIRECT(\"c\" & (VLOOKUP(Rebalance!$D$27,$F$2:$G$48,2,FALSE)+ROW()-2))=Rebalance!$D$27,INDIRECT(\"a\" & (VLOOKUP(Rebalance!$D$27,$F$2:$G$48,2,FALSE)+ROW()-2)),\"\")","v":{"$error":"#N/A"}},{"$f":"IF(INDIRECT(\"c\" & (VLOOKUP(Rebalance!$D$28,$F$2:$G$48,2,FALSE)+ROW()-2))=Rebalance!$D$28,INDIRECT(\"a\" & (VLOOKUP(Rebalance!$D$28,$F$2:$G$48,2,FALSE)+ROW()-2)),\"\")","v":{"$error":"#N/A"}},{"$f":"IF(INDIRECT(\"c\" & (VLOOKUP(Rebalance!$D$29,$F$2:$G$48,2,FALSE)+ROW()-2))=Rebalance!$D$29,INDIRECT(\"a\" & (VLOOKUP(Rebalance!$D$29,$F$2:$G$48,2,FALSE)+ROW()-2)),\"\")","v":{"$error":"#N/A"}},{"$f":"IF(INDIRECT(\"c\" & (VLOOKUP(Rebalance!$D$30,$F$2:$G$48,2,FALSE)+ROW()-2))=Rebalance!$D$30,INDIRECT(\"a\" & (VLOOKUP(Rebalance!$D$30,$F$2:$G$48,2,FALSE)+ROW()-2)),\"\")","v":{"$error":"#N/A"}},{"$f":"IF(INDIRECT(\"c\" & (VLOOKUP(Rebalance!$D$31,$F$2:$G$48,2,FALSE)+ROW()-2))=Rebalance!$D$31,INDIRECT(\"a\" & (VLOOKUP(Rebalance!$D$31,$F$2:$G$48,2,FALSE)+ROW()-2)),\"\")","v":{"$error":"#N/A"}},{"$f":"IF(INDIRECT(\"c\" & (VLOOKUP(Rebalance!$D$32,$F$2:$G$48,2,FALSE)+ROW()-2))=Rebalance!$D$32,INDIRECT(\"a\" & (VLOOKUP(Rebalance!$D$32,$F$2:$G$48,2,FALSE)+ROW()-2)),\"\")","v":{"$error":"#N/A"}},{"$f":"IF(INDIRECT(\"c\" & (VLOOKUP(Rebalance!$D$33,$F$2:$G$48,2,FALSE)+ROW()-2))=Rebalance!$D$33,INDIRECT(\"a\" & (VLOOKUP(Rebalance!$D$33,$F$2:$G$48,2,FALSE)+ROW()-2)),\"\")","v":{"$error":"#N/A"}},{"$f":"IF(INDIRECT(\"c\" & (VLOOKUP(Rebalance!$D$34,$F$2:$G$48,2,FALSE)+ROW()-2))=Rebalance!$D$34,INDIRECT(\"a\" & (VLOOKUP(Rebalance!$D$34,$F$2:$G$48,2,FALSE)+ROW()-2)),\"\")","v":{"$error":"#N/A"}},{"$f":"IF(INDIRECT(\"c\" & (VLOOKUP(Rebalance!$D$35,$F$2:$G$48,2,FALSE)+ROW()-2))=Rebalance!$D$35,INDIRECT(\"a\" & (VLOOKUP(Rebalance!$D$35,$F$2:$G$48,2,FALSE)+ROW()-2)),\"\")","v":{"$error":"#N/A"}},{"$f":"IF(INDIRECT(\"c\" & (VLOOKUP(Rebalance!$D$36,$F$2:$G$48,2,FALSE)+ROW()-2))=Rebalance!$D$36,INDIRECT(\"a\" & (VLOOKUP(Rebalance!$D$36,$F$2:$G$48,2,FALSE)+ROW()-2)),\"\")","v":{"$error":"#N/A"}},{"$f":"IF(INDIRECT(\"c\" & (VLOOKUP(Rebalance!$D$37,$F$2:$G$48,2,FALSE)+ROW()-2))=Rebalance!$D$37,INDIRECT(\"a\" & (VLOOKUP(Rebalance!$D$37,$F$2:$G$48,2,FALSE)+ROW()-2)),\"\")","v":{"$error":"#N/A"}},{"$f":"IF(INDIRECT(\"c\" & (VLOOKUP(Rebalance!$D$38,$F$2:$G$48,2,FALSE)+ROW()-2))=Rebalance!$D$38,INDIRECT(\"a\" & (VLOOKUP(Rebalance!$D$38,$F$2:$G$48,2,FALSE)+ROW()-2)),\"\")","v":{"$error":"#N/A"}},{"$f":"IF(INDIRECT(\"c\" & (VLOOKUP(Rebalance!$D$39,$F$2:$G$48,2,FALSE)+ROW()-2))=Rebalance!$D$39,INDIRECT(\"a\" & (VLOOKUP(Rebalance!$D$39,$F$2:$G$48,2,FALSE)+ROW()-2)),\"\")","v":{"$error":"#N/A"}},{"$f":"IF(INDIRECT(\"c\" & (VLOOKUP(Rebalance!$D$40,$F$2:$G$48,2,FALSE)+ROW()-2))=Rebalance!$D$40,INDIRECT(\"a\" & (VLOOKUP(Rebalance!$D$40,$F$2:$G$48,2,FALSE)+ROW()-2)),\"\")","v":{"$error":"#N/A"}},{"$f":"IF(INDIRECT(\"c\" & (VLOOKUP(Rebalance!$D$52,$F$2:$G$48,2,FALSE)+ROW()-2))=Rebalance!$D$52,INDIRECT(\"a\" & (VLOOKUP(Rebalance!$D$52,$F$2:$G$48,2,FALSE)+ROW()-2)),\"\")","v":{"$error":"#N/A"}},{"$f":"IF(INDIRECT(\"c\" & (VLOOKUP(Rebalance!$D$53,$F$2:$G$48,2,FALSE)+ROW()-2))=Rebalance!$D$53,INDIRECT(\"a\" & (VLOOKUP(Rebalance!$D$53,$F$2:$G$48,2,FALSE)+ROW()-2)),\"\")","v":{"$error":"#N/A"}},{"$f":"IF(INDIRECT(\"c\" & (VLOOKUP(Rebalance!$D$54,$F$2:$G$48,2,FALSE)+ROW()-2))=Rebalance!$D$54,INDIRECT(\"a\" & (VLOOKUP(Rebalance!$D$54,$F$2:$G$48,2,FALSE)+ROW()-2)),\"\")","v":{"$error":"#N/A"}},{"$f":"IF(INDIRECT(\"c\" & (VLOOKUP(Rebalance!$D$55,$F$2:$G$48,2,FALSE)+ROW()-2))=Rebalance!$D$55,INDIRECT(\"a\" & (VLOOKUP(Rebalance!$D$55,$F$2:$G$48,2,FALSE)+ROW()-2)),\"\")","v":{"$error":"#N/A"}},{"$f":"IF(INDIRECT(\"c\" & (VLOOKUP(Rebalance!$D$56,$F$2:$G$48,2,FALSE)+ROW()-2))=Rebalance!$D$56,INDIRECT(\"a\" & (VLOOKUP(Rebalance!$D$56,$F$2:$G$48,2,FALSE)+ROW()-2)),\"\")","v":{"$error":"#N/A"}},{"$f":"IF(INDIRECT(\"c\" & (VLOOKUP(Rebalance!$D$57,$F$2:$G$48,2,FALSE)+ROW()-2))=Rebalance!$D$57,INDIRECT(\"a\" & (VLOOKUP(Rebalance!$D$57,$F$2:$G$48,2,FALSE)+ROW()-2)),\"\")","v":{"$error":"#N/A"}},{"$f":"IF(INDIRECT(\"c\" & (VLOOKUP(Rebalance!$D$58,$F$2:$G$48,2,FALSE)+ROW()-2))=Rebalance!$D$58,INDIRECT(\"a\" & (VLOOKUP(Rebalance!$D$58,$F$2:$G$48,2,FALSE)+ROW()-2)),\"\")","v":{"$error":"#N/A"}},{"$f":"IF(INDIRECT(\"c\" & (VLOOKUP(Rebalance!$D$59,$F$2:$G$48,2,FALSE)+ROW()-2))=Rebalance!$D$59,INDIRECT(\"a\" & (VLOOKUP(Rebalance!$D$59,$F$2:$G$48,2,FALSE)+ROW()-2)),\"\")","v":{"$error":"#N/A"}},{"$f":"IF(INDIRECT(\"c\" & (VLOOKUP(Rebalance!$D$60,$F$2:$G$48,2,FALSE)+ROW()-2))=Rebalance!$D$60,INDIRECT(\"a\" & (VLOOKUP(Rebalance!$D$60,$F$2:$G$48,2,FALSE)+ROW()-2)),\"\")","v":{"$error":"#N/A"}},{"$f":"IF(INDIRECT(\"c\" & (VLOOKUP(Rebalance!$D$61,$F$2:$G$48,2,FALSE)+ROW()-2))=Rebalance!$D$61,INDIRECT(\"a\" & (VLOOKUP(Rebalance!$D$61,$F$2:$G$48,2,FALSE)+ROW()-2)),\"\")","v":{"$error":"#N/A"}},{"$f":"IF(INDIRECT(\"c\" & (VLOOKUP(Rebalance!$D$62,$F$2:$G$48,2,FALSE)+ROW()-2))=Rebalance!$D$62,INDIRECT(\"a\" & (VLOOKUP(Rebalance!$D$62,$F$2:$G$48,2,FALSE)+ROW()-2)),\"\")","v":{"$error":"#N/A"}},{"$f":"IF(INDIRECT(\"c\" & (VLOOKUP(Rebalance!$D$63,$F$2:$G$48,2,FALSE)+ROW()-2))=Rebalance!$D$63,INDIRECT(\"a\" & (VLOOKUP(Rebalance!$D$63,$F$2:$G$48,2,FALSE)+ROW()-2)),\"\")","v":{"$error":"#N/A"}},{"$f":"IF(INDIRECT(\"c\" & (VLOOKUP(Rebalance!$D$64,$F$2:$G$48,2,FALSE)+ROW()-2))=Rebalance!$D$64,INDIRECT(\"a\" & (VLOOKUP(Rebalance!$D$64,$F$2:$G$48,2,FALSE)+ROW()-2)),\"\")","v":{"$error":"#N/A"}},{"$f":"IF(INDIRECT(\"c\" & (VLOOKUP(Rebalance!$D$65,$F$2:$G$48,2,FALSE)+ROW()-2))=Rebalance!$D$65,INDIRECT(\"a\" & (VLOOKUP(Rebalance!$D$65,$F$2:$G$48,2,FALSE)+ROW()-2)),\"\")","v":{"$error":"#N/A"}},{"$f":"IF(INDIRECT(\"c\" & (VLOOKUP(Rebalance!$D$66,$F$2:$G$48,2,FALSE)+ROW()-2))=Rebalance!$D$66,INDIRECT(\"a\" & (VLOOKUP(Rebalance!$D$66,$F$2:$G$48,2,FALSE)+ROW()-2)),\"\")","v":{"$error":"#N/A"}}]
["Nedgroup Inv Flexible Income Fund A2","AHBM","Nedgroup Collective Investments Ltd",{"$f":"ROW()","v":362},null,null,{"$f":"VLOOKUP(F362,$C$2:$D$599,2,FALSE)","v":{"$error":"#N/A"}},{"$f":"IF(INDIRECT(\"c\" & (VLOOKUP(Rebalance!$D$26,$F$2:$G$48,2,FALSE)+ROW()-2))=Rebalance!$D$26,INDIRECT(\"a\" & (VLOOKUP(Rebalance!$D$26,$F$2:$G$48,2,FALSE)+ROW()-2)),\"\")","v":{"$error":"#N/A"}},{"$f":"IF(INDIRECT(\"c\" & (VLOOKUP(Rebalance!$D$27,$F$2:$G$48,2,FALSE)+ROW()-2))=Rebalance!$D$27,INDIRECT(\"a\" & (VLOOKUP(Rebalance!$D$27,$F$2:$G$48,2,FALSE)+ROW()-2)),\"\")","v":{"$error":"#N/A"}},{"$f":"IF(INDIRECT(\"c\" & (VLOOKUP(Rebalance!$D$28,$F$2:$G$48,2,FALSE)+ROW()-2))=Rebalance!$D$28,INDIRECT(\"a\" & (VLOOKUP(Rebalance!$D$28,$F$2:$G$48,2,FALSE)+ROW()-2)),\"\")","v":{"$error":"#N/A"}},{"$f":"IF(INDIRECT(\"c\" & (VLOOKUP(Rebalance!$D$29,$F$2:$G$48,2,FALSE)+ROW()-2))=Rebalance!$D$29,INDIRECT(\"a\" & (VLOOKUP(Rebalance!$D$29,$F$2:$G$48,2,FALSE)+ROW()-2)),\"\")","v":{"$error":"#N/A"}},{"$f":"IF(INDIRECT(\"c\" & (VLOOKUP(Rebalance!$D$30,$F$2:$G$48,2,FALSE)+ROW()-2))=Rebalance!$D$30,INDIRECT(\"a\" & (VLOOKUP(Rebalance!$D$30,$F$2:$G$48,2,FALSE)+ROW()-2)),\"\")","v":{"$error":"#N/A"}},{"$f":"IF(INDIRECT(\"c\" & (VLOOKUP(Rebalance!$D$31,$F$2:$G$48,2,FALSE)+ROW()-2))=Rebalance!$D$31,INDIRECT(\"a\" & (VLOOKUP(Rebalance!$D$31,$F$2:$G$48,2,FALSE)+ROW()-2)),\"\")","v":{"$error":"#N/A"}},{"$f":"IF(INDIRECT(\"c\" & (VLOOKUP(Rebalance!$D$32,$F$2:$G$48,2,FALSE)+ROW()-2))=Rebalance!$D$32,INDIRECT(\"a\" & (VLOOKUP(Rebalance!$D$32,$F$2:$G$48,2,FALSE)+ROW()-2)),\"\")","v":{"$error":"#N/A"}},{"$f":"IF(INDIRECT(\"c\" & (VLOOKUP(Rebalance!$D$33,$F$2:$G$48,2,FALSE)+ROW()-2))=Rebalance!$D$33,INDIRECT(\"a\" & (VLOOKUP(Rebalance!$D$33,$F$2:$G$48,2,FALSE)+ROW()-2)),\"\")","v":{"$error":"#N/A"}},{"$f":"IF(INDIRECT(\"c\" & (VLOOKUP(Rebalance!$D$34,$F$2:$G$48,2,FALSE)+ROW()-2))=Rebalance!$D$34,INDIRECT(\"a\" & (VLOOKUP(Rebalance!$D$34,$F$2:$G$48,2,FALSE)+ROW()-2)),\"\")","v":{"$error":"#N/A"}},{"$f":"IF(INDIRECT(\"c\" & (VLOOKUP(Rebalance!$D$35,$F$2:$G$48,2,FALSE)+ROW()-2))=Rebalance!$D$35,INDIRECT(\"a\" & (VLOOKUP(Rebalance!$D$35,$F$2:$G$48,2,FALSE)+ROW()-2)),\"\")","v":{"$error":"#N/A"}},{"$f":"IF(INDIRECT(\"c\" & (VLOOKUP(Rebalance!$D$36,$F$2:$G$48,2,FALSE)+ROW()-2))=Rebalance!$D$36,INDIRECT(\"a\" & (VLOOKUP(Rebalance!$D$36,$F$2:$G$48,2,FALSE)+ROW()-2)),\"\")","v":{"$error":"#N/A"}},{"$f":"IF(INDIRECT(\"c\" & (VLOOKUP(Rebalance!$D$37,$F$2:$G$48,2,FALSE)+ROW()-2))=Rebalance!$D$37,INDIRECT(\"a\" & (VLOOKUP(Rebalance!$D$37,$F$2:$G$48,2,FALSE)+ROW()-2)),\"\")","v":{"$error":"#N/A"}},{"$f":"IF(INDIRECT(\"c\" & (VLOOKUP(Rebalance!$D$38,$F$2:$G$48,2,FALSE)+ROW()-2))=Rebalance!$D$38,INDIRECT(\"a\" & (VLOOKUP(Rebalance!$D$38,$F$2:$G$48,2,FALSE)+ROW()-2)),\"\")","v":{"$error":"#N/A"}},{"$f":"IF(INDIRECT(\"c\" & (VLOOKUP(Rebalance!$D$39,$F$2:$G$48,2,FALSE)+ROW()-2))=Rebalance!$D$39,INDIRECT(\"a\" & (VLOOKUP(Rebalance!$D$39,$F$2:$G$48,2,FALSE)+ROW()-2)),\"\")","v":{"$error":"#N/A"}},{"$f":"IF(INDIRECT(\"c\" & (VLOOKUP(Rebalance!$D$40,$F$2:$G$48,2,FALSE)+ROW()-2))=Rebalance!$D$40,INDIRECT(\"a\" & (VLOOKUP(Rebalance!$D$40,$F$2:$G$48,2,FALSE)+ROW()-2)),\"\")","v":{"$error":"#N/A"}},{"$f":"IF(INDIRECT(\"c\" & (VLOOKUP(Rebalance!$D$52,$F$2:$G$48,2,FALSE)+ROW()-2))=Rebalance!$D$52,INDIRECT(\"a\" & (VLOOKUP(Rebalance!$D$52,$F$2:$G$48,2,FALSE)+ROW()-2)),\"\")","v":{"$error":"#N/A"}},{"$f":"IF(INDIRECT(\"c\" & (VLOOKUP(Rebalance!$D$53,$F$2:$G$48,2,FALSE)+ROW()-2))=Rebalance!$D$53,INDIRECT(\"a\" & (VLOOKUP(Rebalance!$D$53,$F$2:$G$48,2,FALSE)+ROW()-2)),\"\")","v":{"$error":"#N/A"}},{"$f":"IF(INDIRECT(\"c\" & (VLOOKUP(Rebalance!$D$54,$F$2:$G$48,2,FALSE)+ROW()-2))=Rebalance!$D$54,INDIRECT(\"a\" & (VLOOKUP(Rebalance!$D$54,$F$2:$G$48,2,FALSE)+ROW()-2)),\"\")","v":{"$error":"#N/A"}},{"$f":"IF(INDIRECT(\"c\" & (VLOOKUP(Rebalance!$D$55,$F$2:$G$48,2,FALSE)+ROW()-2))=Rebalance!$D$55,INDIRECT(\"a\" & (VLOOKUP(Rebalance!$D$55,$F$2:$G$48,2,FALSE)+ROW()-2)),\"\")","v":{"$error":"#N/A"}},{"$f":"IF(INDIRECT(\"c\" & (VLOOKUP(Rebalance!$D$56,$F$2:$G$48,2,FALSE)+ROW()-2))=Rebalance!$D$56,INDIRECT(\"a\" & (VLOOKUP(Rebalance!$D$56,$F$2:$G$48,2,FALSE)+ROW()-2)),\"\")","v":{"$error":"#N/A"}},{"$f":"IF(INDIRECT(\"c\" & (VLOOKUP(Rebalance!$D$57,$F$2:$G$48,2,FALSE)+ROW()-2))=Rebalance!$D$57,INDIRECT(\"a\" & (VLOOKUP(Rebalance!$D$57,$F$2:$G$48,2,FALSE)+ROW()-2)),\"\")","v":{"$error":"#N/A"}},{"$f":"IF(INDIRECT(\"c\" & (VLOOKUP(Rebalance!$D$58,$F$2:$G$48,2,FALSE)+ROW()-2))=Rebalance!$D$58,INDIRECT(\"a\" & (VLOOKUP(Rebalance!$D$58,$F$2:$G$48,2,FALSE)+ROW()-2)),\"\")","v":{"$error":"#N/A"}},{"$f":"IF(INDIRECT(\"c\" & (VLOOKUP(Rebalance!$D$59,$F$2:$G$48,2,FALSE)+ROW()-2))=Rebalance!$D$59,INDIRECT(\"a\" & (VLOOKUP(Rebalance!$D$59,$F$2:$G$48,2,FALSE)+ROW()-2)),\"\")","v":{"$error":"#N/A"}},{"$f":"IF(INDIRECT(\"c\" & (VLOOKUP(Rebalance!$D$60,$F$2:$G$48,2,FALSE)+ROW()-2))=Rebalance!$D$60,INDIRECT(\"a\" & (VLOOKUP(Rebalance!$D$60,$F$2:$G$48,2,FALSE)+ROW()-2)),\"\")","v":{"$error":"#N/A"}},{"$f":"IF(INDIRECT(\"c\" & (VLOOKUP(Rebalance!$D$61,$F$2:$G$48,2,FALSE)+ROW()-2))=Rebalance!$D$61,INDIRECT(\"a\" & (VLOOKUP(Rebalance!$D$61,$F$2:$G$48,2,FALSE)+ROW()-2)),\"\")","v":{"$error":"#N/A"}},{"$f":"IF(INDIRECT(\"c\" & (VLOOKUP(Rebalance!$D$62,$F$2:$G$48,2,FALSE)+ROW()-2))=Rebalance!$D$62,INDIRECT(\"a\" & (VLOOKUP(Rebalance!$D$62,$F$2:$G$48,2,FALSE)+ROW()-2)),\"\")","v":{"$error":"#N/A"}},{"$f":"IF(INDIRECT(\"c\" & (VLOOKUP(Rebalance!$D$63,$F$2:$G$48,2,FALSE)+ROW()-2))=Rebalance!$D$63,INDIRECT(\"a\" & (VLOOKUP(Rebalance!$D$63,$F$2:$G$48,2,FALSE)+ROW()-2)),\"\")","v":{"$error":"#N/A"}},{"$f":"IF(INDIRECT(\"c\" & (VLOOKUP(Rebalance!$D$64,$F$2:$G$48,2,FALSE)+ROW()-2))=Rebalance!$D$64,INDIRECT(\"a\" & (VLOOKUP(Rebalance!$D$64,$F$2:$G$48,2,FALSE)+ROW()-2)),\"\")","v":{"$error":"#N/A"}},{"$f":"IF(INDIRECT(\"c\" & (VLOOKUP(Rebalance!$D$65,$F$2:$G$48,2,FALSE)+ROW()-2))=Rebalance!$D$65,INDIRECT(\"a\" & (VLOOKUP(Rebalance!$D$65,$F$2:$G$48,2,FALSE)+ROW()-2)),\"\")","v":{"$error":"#N/A"}},{"$f":"IF(INDIRECT(\"c\" & (VLOOKUP(Rebalance!$D$66,$F$2:$G$48,2,FALSE)+ROW()-2))=Rebalance!$D$66,INDIRECT(\"a\" & (VLOOKUP(Rebalance!$D$66,$F$2:$G$48,2,FALSE)+ROW()-2)),\"\")","v":{"$error":"#N/A"}}]
["Nedgroup Inv Flexible Income B1","NEIFB","Nedgroup Collective Investments Ltd",{"$f":"ROW()","v":363},null,null,{"$f":"VLOOKUP(F363,$C$2:$D$599,2,FALSE)","v":{"$error":"#N/A"}},{"$f":"IF(INDIRECT(\"c\" & (VLOOKUP(Rebalance!$D$26,$F$2:$G$48,2,FALSE)+ROW()-2))=Rebalance!$D$26,INDIRECT(\"a\" & (VLOOKUP(Rebalance!$D$26,$F$2:$G$48,2,FALSE)+ROW()-2)),\"\")","v":{"$error":"#N/A"}},{"$f":"IF(INDIRECT(\"c\" & (VLOOKUP(Rebalance!$D$27,$F$2:$G$48,2,FALSE)+ROW()-2))=Rebalance!$D$27,INDIRECT(\"a\" & (VLOOKUP(Rebalance!$D$27,$F$2:$G$48,2,FALSE)+ROW()-2)),\"\")","v":{"$error":"#N/A"}},{"$f":"IF(INDIRECT(\"c\" & (VLOOKUP(Rebalance!$D$28,$F$2:$G$48,2,FALSE)+ROW()-2))=Rebalance!$D$28,INDIRECT(\"a\" & (VLOOKUP(Rebalance!$D$28,$F$2:$G$48,2,FALSE)+ROW()-2)),\"\")","v":{"$error":"#N/A"}},{"$f":"IF(INDIRECT(\"c\" & (VLOOKUP(Rebalance!$D$29,$F$2:$G$48,2,FALSE)+ROW()-2))=Rebalance!$D$29,INDIRECT(\"a\" & (VLOOKUP(Rebalance!$D$29,$F$2:$G$48,2,FALSE)+ROW()-2)),\"\")","v":{"$error":"#N/A"}},{"$f":"IF(INDIRECT(\"c\" & (VLOOKUP(Rebalance!$D$30,$F$2:$G$48,2,FALSE)+ROW()-2))=Rebalance!$D$30,INDIRECT(\"a\" & (VLOOKUP(Rebalance!$D$30,$F$2:$G$48,2,FALSE)+ROW()-2)),\"\")","v":{"$error":"#N/A"}},{"$f":"IF(INDIRECT(\"c\" & (VLOOKUP(Rebalance!$D$31,$F$2:$G$48,2,FALSE)+ROW()-2))=Rebalance!$D$31,INDIRECT(\"a\" & (VLOOKUP(Rebalance!$D$31,$F$2:$G$48,2,FALSE)+ROW()-2)),\"\")","v":{"$error":"#N/A"}},{"$f":"IF(INDIRECT(\"c\" & (VLOOKUP(Rebalance!$D$32,$F$2:$G$48,2,FALSE)+ROW()-2))=Rebalance!$D$32,INDIRECT(\"a\" & (VLOOKUP(Rebalance!$D$32,$F$2:$G$48,2,FALSE)+ROW()-2)),\"\")","v":{"$error":"#N/A"}},{"$f":"IF(INDIRECT(\"c\" & (VLOOKUP(Rebalance!$D$33,$F$2:$G$48,2,FALSE)+ROW()-2))=Rebalance!$D$33,INDIRECT(\"a\" & (VLOOKUP(Rebalance!$D$33,$F$2:$G$48,2,FALSE)+ROW()-2)),\"\")","v":{"$error":"#N/A"}},{"$f":"IF(INDIRECT(\"c\" & (VLOOKUP(Rebalance!$D$34,$F$2:$G$48,2,FALSE)+ROW()-2))=Rebalance!$D$34,INDIRECT(\"a\" & (VLOOKUP(Rebalance!$D$34,$F$2:$G$48,2,FALSE)+ROW()-2)),\"\")","v":{"$error":"#N/A"}},{"$f":"IF(INDIRECT(\"c\" & (VLOOKUP(Rebalance!$D$35,$F$2:$G$48,2,FALSE)+ROW()-2))=Rebalance!$D$35,INDIRECT(\"a\" & (VLOOKUP(Rebalance!$D$35,$F$2:$G$48,2,FALSE)+ROW()-2)),\"\")","v":{"$error":"#N/A"}},{"$f":"IF(INDIRECT(\"c\" & (VLOOKUP(Rebalance!$D$36,$F$2:$G$48,2,FALSE)+ROW()-2))=Rebalance!$D$36,INDIRECT(\"a\" & (VLOOKUP(Rebalance!$D$36,$F$2:$G$48,2,FALSE)+ROW()-2)),\"\")","v":{"$error":"#N/A"}},{"$f":"IF(INDIRECT(\"c\" & (VLOOKUP(Rebalance!$D$37,$F$2:$G$48,2,FALSE)+ROW()-2))=Rebalance!$D$37,INDIRECT(\"a\" & (VLOOKUP(Rebalance!$D$37,$F$2:$G$48,2,FALSE)+ROW()-2)),\"\")","v":{"$error":"#N/A"}},{"$f":"IF(INDIRECT(\"c\" & (VLOOKUP(Rebalance!$D$38,$F$2:$G$48,2,FALSE)+ROW()-2))=Rebalance!$D$38,INDIRECT(\"a\" & (VLOOKUP(Rebalance!$D$38,$F$2:$G$48,2,FALSE)+ROW()-2)),\"\")","v":{"$error":"#N/A"}},{"$f":"IF(INDIRECT(\"c\" & (VLOOKUP(Rebalance!$D$39,$F$2:$G$48,2,FALSE)+ROW()-2))=Rebalance!$D$39,INDIRECT(\"a\" & (VLOOKUP(Rebalance!$D$39,$F$2:$G$48,2,FALSE)+ROW()-2)),\"\")","v":{"$error":"#N/A"}},{"$f":"IF(INDIRECT(\"c\" & (VLOOKUP(Rebalance!$D$40,$F$2:$G$48,2,FALSE)+ROW()-2))=Rebalance!$D$40,INDIRECT(\"a\" & (VLOOKUP(Rebalance!$D$40,$F$2:$G$48,2,FALSE)+ROW()-2)),\"\")","v":{"$error":"#N/A"}},{"$f":"IF(INDIRECT(\"c\" & (VLOOKUP(Rebalance!$D$52,$F$2:$G$48,2,FALSE)+ROW()-2))=Rebalance!$D$52,INDIRECT(\"a\" & (VLOOKUP(Rebalance!$D$52,$F$2:$G$48,2,FALSE)+ROW()-2)),\"\")","v":{"$error":"#N/A"}},{"$f":"IF(INDIRECT(\"c\" & (VLOOKUP(Rebalance!$D$53,$F$2:$G$48,2,FALSE)+ROW()-2))=Rebalance!$D$53,INDIRECT(\"a\" & (VLOOKUP(Rebalance!$D$53,$F$2:$G$48,2,FALSE)+ROW()-2)),\"\")","v":{"$error":"#N/A"}},{"$f":"IF(INDIRECT(\"c\" & (VLOOKUP(Rebalance!$D$54,$F$2:$G$48,2,FALSE)+ROW()-2))=Rebalance!$D$54,INDIRECT(\"a\" & (VLOOKUP(Rebalance!$D$54,$F$2:$G$48,2,FALSE)+ROW()-2)),\"\")","v":{"$error":"#N/A"}},{"$f":"IF(INDIRECT(\"c\" & (VLOOKUP(Rebalance!$D$55,$F$2:$G$48,2,FALSE)+ROW()-2))=Rebalance!$D$55,INDIRECT(\"a\" & (VLOOKUP(Rebalance!$D$55,$F$2:$G$48,2,FALSE)+ROW()-2)),\"\")","v":{"$error":"#N/A"}},{"$f":"IF(INDIRECT(\"c\" & (VLOOKUP(Rebalance!$D$56,$F$2:$G$48,2,FALSE)+ROW()-2))=Rebalance!$D$56,INDIRECT(\"a\" & (VLOOKUP(Rebalance!$D$56,$F$2:$G$48,2,FALSE)+ROW()-2)),\"\")","v":{"$error":"#N/A"}},{"$f":"IF(INDIRECT(\"c\" & (VLOOKUP(Rebalance!$D$57,$F$2:$G$48,2,FALSE)+ROW()-2))=Rebalance!$D$57,INDIRECT(\"a\" & (VLOOKUP(Rebalance!$D$57,$F$2:$G$48,2,FALSE)+ROW()-2)),\"\")","v":{"$error":"#N/A"}},{"$f":"IF(INDIRECT(\"c\" & (VLOOKUP(Rebalance!$D$58,$F$2:$G$48,2,FALSE)+ROW()-2))=Rebalance!$D$58,INDIRECT(\"a\" & (VLOOKUP(Rebalance!$D$58,$F$2:$G$48,2,FALSE)+ROW()-2)),\"\")","v":{"$error":"#N/A"}},{"$f":"IF(INDIRECT(\"c\" & (VLOOKUP(Rebalance!$D$59,$F$2:$G$48,2,FALSE)+ROW()-2))=Rebalance!$D$59,INDIRECT(\"a\" & (VLOOKUP(Rebalance!$D$59,$F$2:$G$48,2,FALSE)+ROW()-2)),\"\")","v":{"$error":"#N/A"}},{"$f":"IF(INDIRECT(\"c\" & (VLOOKUP(Rebalance!$D$60,$F$2:$G$48,2,FALSE)+ROW()-2))=Rebalance!$D$60,INDIRECT(\"a\" & (VLOOKUP(Rebalance!$D$60,$F$2:$G$48,2,FALSE)+ROW()-2)),\"\")","v":{"$error":"#N/A"}},{"$f":"IF(INDIRECT(\"c\" & (VLOOKUP(Rebalance!$D$61,$F$2:$G$48,2,FALSE)+ROW()-2))=Rebalance!$D$61,INDIRECT(\"a\" & (VLOOKUP(Rebalance!$D$61,$F$2:$G$48,2,FALSE)+ROW()-2)),\"\")","v":{"$error":"#N/A"}},{"$f":"IF(INDIRECT(\"c\" & (VLOOKUP(Rebalance!$D$62,$F$2:$G$48,2,FALSE)+ROW()-2))=Rebalance!$D$62,INDIRECT(\"a\" & (VLOOKUP(Rebalance!$D$62,$F$2:$G$48,2,FALSE)+ROW()-2)),\"\")","v":{"$error":"#N/A"}},{"$f":"IF(INDIRECT(\"c\" & (VLOOKUP(Rebalance!$D$63,$F$2:$G$48,2,FALSE)+ROW()-2))=Rebalance!$D$63,INDIRECT(\"a\" & (VLOOKUP(Rebalance!$D$63,$F$2:$G$48,2,FALSE)+ROW()-2)),\"\")","v":{"$error":"#N/A"}},{"$f":"IF(INDIRECT(\"c\" & (VLOOKUP(Rebalance!$D$64,$F$2:$G$48,2,FALSE)+ROW()-2))=Rebalance!$D$64,INDIRECT(\"a\" & (VLOOKUP(Rebalance!$D$64,$F$2:$G$48,2,FALSE)+ROW()-2)),\"\")","v":{"$error":"#N/A"}},{"$f":"IF(INDIRECT(\"c\" & (VLOOKUP(Rebalance!$D$65,$F$2:$G$48,2,FALSE)+ROW()-2))=Rebalance!$D$65,INDIRECT(\"a\" & (VLOOKUP(Rebalance!$D$65,$F$2:$G$48,2,FALSE)+ROW()-2)),\"\")","v":{"$error":"#N/A"}},{"$f":"IF(INDIRECT(\"c\" & (VLOOKUP(Rebalance!$D$66,$F$2:$G$48,2,FALSE)+ROW()-2))=Rebalance!$D$66,INDIRECT(\"a\" & (VLOOKUP(Rebalance!$D$66,$F$2:$G$48,2,FALSE)+ROW()-2)),\"\")","v":{"$error":"#N/A"}}]
["Nedgroup Inv Flexible Income Fund R","NEIFB","Nedgroup Collective Investments Ltd",{"$f":"ROW()","v":364},null,null,{"$f":"VLOOKUP(F364,$C$2:$D$599,2,FALSE)","v":{"$error":"#N/A"}},{"$f":"IF(INDIRECT(\"c\" & (VLOOKUP(Rebalance!$D$26,$F$2:$G$48,2,FALSE)+ROW()-2))=Rebalance!$D$26,INDIRECT(\"a\" & (VLOOKUP(Rebalance!$D$26,$F$2:$G$48,2,FALSE)+ROW()-2)),\"\")","v":{"$error":"#N/A"}},{"$f":"IF(INDIRECT(\"c\" & (VLOOKUP(Rebalance!$D$27,$F$2:$G$48,2,FALSE)+ROW()-2))=Rebalance!$D$27,INDIRECT(\"a\" & (VLOOKUP(Rebalance!$D$27,$F$2:$G$48,2,FALSE)+ROW()-2)),\"\")","v":{"$error":"#N/A"}},{"$f":"IF(INDIRECT(\"c\" & (VLOOKUP(Rebalance!$D$28,$F$2:$G$48,2,FALSE)+ROW()-2))=Rebalance!$D$28,INDIRECT(\"a\" & (VLOOKUP(Rebalance!$D$28,$F$2:$G$48,2,FALSE)+ROW()-2)),\"\")","v":{"$error":"#N/A"}},{"$f":"IF(INDIRECT(\"c\" & (VLOOKUP(Rebalance!$D$29,$F$2:$G$48,2,FALSE)+ROW()-2))=Rebalance!$D$29,INDIRECT(\"a\" & (VLOOKUP(Rebalance!$D$29,$F$2:$G$48,2,FALSE)+ROW()-2)),\"\")","v":{"$error":"#N/A"}},{"$f":"IF(INDIRECT(\"c\" & (VLOOKUP(Rebalance!$D$30,$F$2:$G$48,2,FALSE)+ROW()-2))=Rebalance!$D$30,INDIRECT(\"a\" & (VLOOKUP(Rebalance!$D$30,$F$2:$G$48,2,FALSE)+ROW()-2)),\"\")","v":{"$error":"#N/A"}},{"$f":"IF(INDIRECT(\"c\" & (VLOOKUP(Rebalance!$D$31,$F$2:$G$48,2,FALSE)+ROW()-2))=Rebalance!$D$31,INDIRECT(\"a\" & (VLOOKUP(Rebalance!$D$31,$F$2:$G$48,2,FALSE)+ROW()-2)),\"\")","v":{"$error":"#N/A"}},{"$f":"IF(INDIRECT(\"c\" & (VLOOKUP(Rebalance!$D$32,$F$2:$G$48,2,FALSE)+ROW()-2))=Rebalance!$D$32,INDIRECT(\"a\" & (VLOOKUP(Rebalance!$D$32,$F$2:$G$48,2,FALSE)+ROW()-2)),\"\")","v":{"$error":"#N/A"}},{"$f":"IF(INDIRECT(\"c\" & (VLOOKUP(Rebalance!$D$33,$F$2:$G$48,2,FALSE)+ROW()-2))=Rebalance!$D$33,INDIRECT(\"a\" & (VLOOKUP(Rebalance!$D$33,$F$2:$G$48,2,FALSE)+ROW()-2)),\"\")","v":{"$error":"#N/A"}},{"$f":"IF(INDIRECT(\"c\" & (VLOOKUP(Rebalance!$D$34,$F$2:$G$48,2,FALSE)+ROW()-2))=Rebalance!$D$34,INDIRECT(\"a\" & (VLOOKUP(Rebalance!$D$34,$F$2:$G$48,2,FALSE)+ROW()-2)),\"\")","v":{"$error":"#N/A"}},{"$f":"IF(INDIRECT(\"c\" & (VLOOKUP(Rebalance!$D$35,$F$2:$G$48,2,FALSE)+ROW()-2))=Rebalance!$D$35,INDIRECT(\"a\" & (VLOOKUP(Rebalance!$D$35,$F$2:$G$48,2,FALSE)+ROW()-2)),\"\")","v":{"$error":"#N/A"}},{"$f":"IF(INDIRECT(\"c\" & (VLOOKUP(Rebalance!$D$36,$F$2:$G$48,2,FALSE)+ROW()-2))=Rebalance!$D$36,INDIRECT(\"a\" & (VLOOKUP(Rebalance!$D$36,$F$2:$G$48,2,FALSE)+ROW()-2)),\"\")","v":{"$error":"#N/A"}},{"$f":"IF(INDIRECT(\"c\" & (VLOOKUP(Rebalance!$D$37,$F$2:$G$48,2,FALSE)+ROW()-2))=Rebalance!$D$37,INDIRECT(\"a\" & (VLOOKUP(Rebalance!$D$37,$F$2:$G$48,2,FALSE)+ROW()-2)),\"\")","v":{"$error":"#N/A"}},{"$f":"IF(INDIRECT(\"c\" & (VLOOKUP(Rebalance!$D$38,$F$2:$G$48,2,FALSE)+ROW()-2))=Rebalance!$D$38,INDIRECT(\"a\" & (VLOOKUP(Rebalance!$D$38,$F$2:$G$48,2,FALSE)+ROW()-2)),\"\")","v":{"$error":"#N/A"}},{"$f":"IF(INDIRECT(\"c\" & (VLOOKUP(Rebalance!$D$39,$F$2:$G$48,2,FALSE)+ROW()-2))=Rebalance!$D$39,INDIRECT(\"a\" & (VLOOKUP(Rebalance!$D$39,$F$2:$G$48,2,FALSE)+ROW()-2)),\"\")","v":{"$error":"#N/A"}},{"$f":"IF(INDIRECT(\"c\" & (VLOOKUP(Rebalance!$D$40,$F$2:$G$48,2,FALSE)+ROW()-2))=Rebalance!$D$40,INDIRECT(\"a\" & (VLOOKUP(Rebalance!$D$40,$F$2:$G$48,2,FALSE)+ROW()-2)),\"\")","v":{"$error":"#N/A"}},{"$f":"IF(INDIRECT(\"c\" & (VLOOKUP(Rebalance!$D$52,$F$2:$G$48,2,FALSE)+ROW()-2))=Rebalance!$D$52,INDIRECT(\"a\" & (VLOOKUP(Rebalance!$D$52,$F$2:$G$48,2,FALSE)+ROW()-2)),\"\")","v":{"$error":"#N/A"}},{"$f":"IF(INDIRECT(\"c\" & (VLOOKUP(Rebalance!$D$53,$F$2:$G$48,2,FALSE)+ROW()-2))=Rebalance!$D$53,INDIRECT(\"a\" & (VLOOKUP(Rebalance!$D$53,$F$2:$G$48,2,FALSE)+ROW()-2)),\"\")","v":{"$error":"#N/A"}},{"$f":"IF(INDIRECT(\"c\" & (VLOOKUP(Rebalance!$D$54,$F$2:$G$48,2,FALSE)+ROW()-2))=Rebalance!$D$54,INDIRECT(\"a\" & (VLOOKUP(Rebalance!$D$54,$F$2:$G$48,2,FALSE)+ROW()-2)),\"\")","v":{"$error":"#N/A"}},{"$f":"IF(INDIRECT(\"c\" & (VLOOKUP(Rebalance!$D$55,$F$2:$G$48,2,FALSE)+ROW()-2))=Rebalance!$D$55,INDIRECT(\"a\" & (VLOOKUP(Rebalance!$D$55,$F$2:$G$48,2,FALSE)+ROW()-2)),\"\")","v":{"$error":"#N/A"}},{"$f":"IF(INDIRECT(\"c\" & (VLOOKUP(Rebalance!$D$56,$F$2:$G$48,2,FALSE)+ROW()-2))=Rebalance!$D$56,INDIRECT(\"a\" & (VLOOKUP(Rebalance!$D$56,$F$2:$G$48,2,FALSE)+ROW()-2)),\"\")","v":{"$error":"#N/A"}},{"$f":"IF(INDIRECT(\"c\" & (VLOOKUP(Rebalance!$D$57,$F$2:$G$48,2,FALSE)+ROW()-2))=Rebalance!$D$57,INDIRECT(\"a\" & (VLOOKUP(Rebalance!$D$57,$F$2:$G$48,2,FALSE)+ROW()-2)),\"\")","v":{"$error":"#N/A"}},{"$f":"IF(INDIRECT(\"c\" & (VLOOKUP(Rebalance!$D$58,$F$2:$G$48,2,FALSE)+ROW()-2))=Rebalance!$D$58,INDIRECT(\"a\" & (VLOOKUP(Rebalance!$D$58,$F$2:$G$48,2,FALSE)+ROW()-2)),\"\")","v":{"$error":"#N/A"}},{"$f":"IF(INDIRECT(\"c\" & (VLOOKUP(Rebalance!$D$59,$F$2:$G$48,2,FALSE)+ROW()-2))=Rebalance!$D$59,INDIRECT(\"a\" & (VLOOKUP(Rebalance!$D$59,$F$2:$G$48,2,FALSE)+ROW()-2)),\"\")","v":{"$error":"#N/A"}},{"$f":"IF(INDIRECT(\"c\" & (VLOOKUP(Rebalance!$D$60,$F$2:$G$48,2,FALSE)+ROW()-2))=Rebalance!$D$60,INDIRECT(\"a\" & (VLOOKUP(Rebalance!$D$60,$F$2:$G$48,2,FALSE)+ROW()-2)),\"\")","v":{"$error":"#N/A"}},{"$f":"IF(INDIRECT(\"c\" & (VLOOKUP(Rebalance!$D$61,$F$2:$G$48,2,FALSE)+ROW()-2))=Rebalance!$D$61,INDIRECT(\"a\" & (VLOOKUP(Rebalance!$D$61,$F$2:$G$48,2,FALSE)+ROW()-2)),\"\")","v":{"$error":"#N/A"}},{"$f":"IF(INDIRECT(\"c\" & (VLOOKUP(Rebalance!$D$62,$F$2:$G$48,2,FALSE)+ROW()-2))=Rebalance!$D$62,INDIRECT(\"a\" & (VLOOKUP(Rebalance!$D$62,$F$2:$G$48,2,FALSE)+ROW()-2)),\"\")","v":{"$error":"#N/A"}},{"$f":"IF(INDIRECT(\"c\" & (VLOOKUP(Rebalance!$D$63,$F$2:$G$48,2,FALSE)+ROW()-2))=Rebalance!$D$63,INDIRECT(\"a\" & (VLOOKUP(Rebalance!$D$63,$F$2:$G$48,2,FALSE)+ROW()-2)),\"\")","v":{"$error":"#N/A"}},{"$f":"IF(INDIRECT(\"c\" & (VLOOKUP(Rebalance!$D$64,$F$2:$G$48,2,FALSE)+ROW()-2))=Rebalance!$D$64,INDIRECT(\"a\" & (VLOOKUP(Rebalance!$D$64,$F$2:$G$48,2,FALSE)+ROW()-2)),\"\")","v":{"$error":"#N/A"}},{"$f":"IF(INDIRECT(\"c\" & (VLOOKUP(Rebalance!$D$65,$F$2:$G$48,2,FALSE)+ROW()-2))=Rebalance!$D$65,INDIRECT(\"a\" & (VLOOKUP(Rebalance!$D$65,$F$2:$G$48,2,FALSE)+ROW()-2)),\"\")","v":{"$error":"#N/A"}},{"$f":"IF(INDIRECT(\"c\" & (VLOOKUP(Rebalance!$D$66,$F$2:$G$48,2,FALSE)+ROW()-2))=Rebalance!$D$66,INDIRECT(\"a\" & (VLOOKUP(Rebalance!$D$66,$F$2:$G$48,2,FALSE)+ROW()-2)),\"\")","v":{"$error":"#N/A"}}]
["Nedgroup Inv Flexible Income Fund A","NEIFB","Nedgroup Collective Investments Ltd",{"$f":"ROW()","v":365},null,null,{"$f":"VLOOKUP(F365,$C$2:$D$599,2,FALSE)","v":{"$error":"#N/A"}},{"$f":"IF(INDIRECT(\"c\" & (VLOOKUP(Rebalance!$D$26,$F$2:$G$48,2,FALSE)+ROW()-2))=Rebalance!$D$26,INDIRECT(\"a\" & (VLOOKUP(Rebalance!$D$26,$F$2:$G$48,2,FALSE)+ROW()-2)),\"\")","v":{"$error":"#N/A"}},{"$f":"IF(INDIRECT(\"c\" & (VLOOKUP(Rebalance!$D$27,$F$2:$G$48,2,FALSE)+ROW()-2))=Rebalance!$D$27,INDIRECT(\"a\" & (VLOOKUP(Rebalance!$D$27,$F$2:$G$48,2,FALSE)+ROW()-2)),\"\")","v":{"$error":"#N/A"}},{"$f":"IF(INDIRECT(\"c\" & (VLOOKUP(Rebalance!$D$28,$F$2:$G$48,2,FALSE)+ROW()-2))=Rebalance!$D$28,INDIRECT(\"a\" & (VLOOKUP(Rebalance!$D$28,$F$2:$G$48,2,FALSE)+ROW()-2)),\"\")","v":{"$error":"#N/A"}},{"$f":"IF(INDIRECT(\"c\" & (VLOOKUP(Rebalance!$D$29,$F$2:$G$48,2,FALSE)+ROW()-2))=Rebalance!$D$29,INDIRECT(\"a\" & (VLOOKUP(Rebalance!$D$29,$F$2:$G$48,2,FALSE)+ROW()-2)),\"\")","v":{"$error":"#N/A"}},{"$f":"IF(INDIRECT(\"c\" & (VLOOKUP(Rebalance!$D$30,$F$2:$G$48,2,FALSE)+ROW()-2))=Rebalance!$D$30,INDIRECT(\"a\" & (VLOOKUP(Rebalance!$D$30,$F$2:$G$48,2,FALSE)+ROW()-2)),\"\")","v":{"$error":"#N/A"}},{"$f":"IF(INDIRECT(\"c\" & (VLOOKUP(Rebalance!$D$31,$F$2:$G$48,2,FALSE)+ROW()-2))=Rebalance!$D$31,INDIRECT(\"a\" & (VLOOKUP(Rebalance!$D$31,$F$2:$G$48,2,FALSE)+ROW()-2)),\"\")","v":{"$error":"#N/A"}},{"$f":"IF(INDIRECT(\"c\" & (VLOOKUP(Rebalance!$D$32,$F$2:$G$48,2,FALSE)+ROW()-2))=Rebalance!$D$32,INDIRECT(\"a\" & (VLOOKUP(Rebalance!$D$32,$F$2:$G$48,2,FALSE)+ROW()-2)),\"\")","v":{"$error":"#N/A"}},{"$f":"IF(INDIRECT(\"c\" & (VLOOKUP(Rebalance!$D$33,$F$2:$G$48,2,FALSE)+ROW()-2))=Rebalance!$D$33,INDIRECT(\"a\" & (VLOOKUP(Rebalance!$D$33,$F$2:$G$48,2,FALSE)+ROW()-2)),\"\")","v":{"$error":"#N/A"}},{"$f":"IF(INDIRECT(\"c\" & (VLOOKUP(Rebalance!$D$34,$F$2:$G$48,2,FALSE)+ROW()-2))=Rebalance!$D$34,INDIRECT(\"a\" & (VLOOKUP(Rebalance!$D$34,$F$2:$G$48,2,FALSE)+ROW()-2)),\"\")","v":{"$error":"#N/A"}},{"$f":"IF(INDIRECT(\"c\" & (VLOOKUP(Rebalance!$D$35,$F$2:$G$48,2,FALSE)+ROW()-2))=Rebalance!$D$35,INDIRECT(\"a\" & (VLOOKUP(Rebalance!$D$35,$F$2:$G$48,2,FALSE)+ROW()-2)),\"\")","v":{"$error":"#N/A"}},{"$f":"IF(INDIRECT(\"c\" & (VLOOKUP(Rebalance!$D$36,$F$2:$G$48,2,FALSE)+ROW()-2))=Rebalance!$D$36,INDIRECT(\"a\" & (VLOOKUP(Rebalance!$D$36,$F$2:$G$48,2,FALSE)+ROW()-2)),\"\")","v":{"$error":"#N/A"}},{"$f":"IF(INDIRECT(\"c\" & (VLOOKUP(Rebalance!$D$37,$F$2:$G$48,2,FALSE)+ROW()-2))=Rebalance!$D$37,INDIRECT(\"a\" & (VLOOKUP(Rebalance!$D$37,$F$2:$G$48,2,FALSE)+ROW()-2)),\"\")","v":{"$error":"#N/A"}},{"$f":"IF(INDIRECT(\"c\" & (VLOOKUP(Rebalance!$D$38,$F$2:$G$48,2,FALSE)+ROW()-2))=Rebalance!$D$38,INDIRECT(\"a\" & (VLOOKUP(Rebalance!$D$38,$F$2:$G$48,2,FALSE)+ROW()-2)),\"\")","v":{"$error":"#N/A"}},{"$f":"IF(INDIRECT(\"c\" & (VLOOKUP(Rebalance!$D$39,$F$2:$G$48,2,FALSE)+ROW()-2))=Rebalance!$D$39,INDIRECT(\"a\" & (VLOOKUP(Rebalance!$D$39,$F$2:$G$48,2,FALSE)+ROW()-2)),\"\")","v":{"$error":"#N/A"}},{"$f":"IF(INDIRECT(\"c\" & (VLOOKUP(Rebalance!$D$40,$F$2:$G$48,2,FALSE)+ROW()-2))=Rebalance!$D$40,INDIRECT(\"a\" & (VLOOKUP(Rebalance!$D$40,$F$2:$G$48,2,FALSE)+ROW()-2)),\"\")","v":{"$error":"#N/A"}},{"$f":"IF(INDIRECT(\"c\" & (VLOOKUP(Rebalance!$D$52,$F$2:$G$48,2,FALSE)+ROW()-2))=Rebalance!$D$52,INDIRECT(\"a\" & (VLOOKUP(Rebalance!$D$52,$F$2:$G$48,2,FALSE)+ROW()-2)),\"\")","v":{"$error":"#N/A"}},{"$f":"IF(INDIRECT(\"c\" & (VLOOKUP(Rebalance!$D$53,$F$2:$G$48,2,FALSE)+ROW()-2))=Rebalance!$D$53,INDIRECT(\"a\" & (VLOOKUP(Rebalance!$D$53,$F$2:$G$48,2,FALSE)+ROW()-2)),\"\")","v":{"$error":"#N/A"}},{"$f":"IF(INDIRECT(\"c\" & (VLOOKUP(Rebalance!$D$54,$F$2:$G$48,2,FALSE)+ROW()-2))=Rebalance!$D$54,INDIRECT(\"a\" & (VLOOKUP(Rebalance!$D$54,$F$2:$G$48,2,FALSE)+ROW()-2)),\"\")","v":{"$error":"#N/A"}},{"$f":"IF(INDIRECT(\"c\" & (VLOOKUP(Rebalance!$D$55,$F$2:$G$48,2,FALSE)+ROW()-2))=Rebalance!$D$55,INDIRECT(\"a\" & (VLOOKUP(Rebalance!$D$55,$F$2:$G$48,2,FALSE)+ROW()-2)),\"\")","v":{"$error":"#N/A"}},{"$f":"IF(INDIRECT(\"c\" & (VLOOKUP(Rebalance!$D$56,$F$2:$G$48,2,FALSE)+ROW()-2))=Rebalance!$D$56,INDIRECT(\"a\" & (VLOOKUP(Rebalance!$D$56,$F$2:$G$48,2,FALSE)+ROW()-2)),\"\")","v":{"$error":"#N/A"}},{"$f":"IF(INDIRECT(\"c\" & (VLOOKUP(Rebalance!$D$57,$F$2:$G$48,2,FALSE)+ROW()-2))=Rebalance!$D$57,INDIRECT(\"a\" & (VLOOKUP(Rebalance!$D$57,$F$2:$G$48,2,FALSE)+ROW()-2)),\"\")","v":{"$error":"#N/A"}},{"$f":"IF(INDIRECT(\"c\" & (VLOOKUP(Rebalance!$D$58,$F$2:$G$48,2,FALSE)+ROW()-2))=Rebalance!$D$58,INDIRECT(\"a\" & (VLOOKUP(Rebalance!$D$58,$F$2:$G$48,2,FALSE)+ROW()-2)),\"\")","v":{"$error":"#N/A"}},{"$f":"IF(INDIRECT(\"c\" & (VLOOKUP(Rebalance!$D$59,$F$2:$G$48,2,FALSE)+ROW()-2))=Rebalance!$D$59,INDIRECT(\"a\" & (VLOOKUP(Rebalance!$D$59,$F$2:$G$48,2,FALSE)+ROW()-2)),\"\")","v":{"$error":"#N/A"}},{"$f":"IF(INDIRECT(\"c\" & (VLOOKUP(Rebalance!$D$60,$F$2:$G$48,2,FALSE)+ROW()-2))=Rebalance!$D$60,INDIRECT(\"a\" & (VLOOKUP(Rebalance!$D$60,$F$2:$G$48,2,FALSE)+ROW()-2)),\"\")","v":{"$error":"#N/A"}},{"$f":"IF(INDIRECT(\"c\" & (VLOOKUP(Rebalance!$D$61,$F$2:$G$48,2,FALSE)+ROW()-2))=Rebalance!$D$61,INDIRECT(\"a\" & (VLOOKUP(Rebalance!$D$61,$F$2:$G$48,2,FALSE)+ROW()-2)),\"\")","v":{"$error":"#N/A"}},{"$f":"IF(INDIRECT(\"c\" & (VLOOKUP(Rebalance!$D$62,$F$2:$G$48,2,FALSE)+ROW()-2))=Rebalance!$D$62,INDIRECT(\"a\" & (VLOOKUP(Rebalance!$D$62,$F$2:$G$48,2,FALSE)+ROW()-2)),\"\")","v":{"$error":"#N/A"}},{"$f":"IF(INDIRECT(\"c\" & (VLOOKUP(Rebalance!$D$63,$F$2:$G$48,2,FALSE)+ROW()-2))=Rebalance!$D$63,INDIRECT(\"a\" & (VLOOKUP(Rebalance!$D$63,$F$2:$G$48,2,FALSE)+ROW()-2)),\"\")","v":{"$error":"#N/A"}},{"$f":"IF(INDIRECT(\"c\" & (VLOOKUP(Rebalance!$D$64,$F$2:$G$48,2,FALSE)+ROW()-2))=Rebalance!$D$64,INDIRECT(\"a\" & (VLOOKUP(Rebalance!$D$64,$F$2:$G$48,2,FALSE)+ROW()-2)),\"\")","v":{"$error":"#N/A"}},{"$f":"IF(INDIRECT(\"c\" & (VLOOKUP(Rebalance!$D$65,$F$2:$G$48,2,FALSE)+ROW()-2))=Rebalance!$D$65,INDIRECT(\"a\" & (VLOOKUP(Rebalance!$D$65,$F$2:$G$48,2,FALSE)+ROW()-2)),\"\")","v":{"$error":"#N/A"}},{"$f":"IF(INDIRECT(\"c\" & (VLOOKUP(Rebalance!$D$66,$F$2:$G$48,2,FALSE)+ROW()-2))=Rebalance!$D$66,INDIRECT(\"a\" & (VLOOKUP(Rebalance!$D$66,$F$2:$G$48,2,FALSE)+ROW()-2)),\"\")","v":{"$error":"#N/A"}}]
["Nedgroup Investments Financials Fund A","UALA","Nedgroup Collective Investments Ltd",{"$f":"ROW()","v":366},null,null,{"$f":"VLOOKUP(F366,$C$2:$D$599,2,FALSE)","v":{"$error":"#N/A"}},{"$f":"IF(INDIRECT(\"c\" & (VLOOKUP(Rebalance!$D$26,$F$2:$G$48,2,FALSE)+ROW()-2))=Rebalance!$D$26,INDIRECT(\"a\" & (VLOOKUP(Rebalance!$D$26,$F$2:$G$48,2,FALSE)+ROW()-2)),\"\")","v":{"$error":"#N/A"}},{"$f":"IF(INDIRECT(\"c\" & (VLOOKUP(Rebalance!$D$27,$F$2:$G$48,2,FALSE)+ROW()-2))=Rebalance!$D$27,INDIRECT(\"a\" & (VLOOKUP(Rebalance!$D$27,$F$2:$G$48,2,FALSE)+ROW()-2)),\"\")","v":{"$error":"#N/A"}},{"$f":"IF(INDIRECT(\"c\" & (VLOOKUP(Rebalance!$D$28,$F$2:$G$48,2,FALSE)+ROW()-2))=Rebalance!$D$28,INDIRECT(\"a\" & (VLOOKUP(Rebalance!$D$28,$F$2:$G$48,2,FALSE)+ROW()-2)),\"\")","v":{"$error":"#N/A"}},{"$f":"IF(INDIRECT(\"c\" & (VLOOKUP(Rebalance!$D$29,$F$2:$G$48,2,FALSE)+ROW()-2))=Rebalance!$D$29,INDIRECT(\"a\" & (VLOOKUP(Rebalance!$D$29,$F$2:$G$48,2,FALSE)+ROW()-2)),\"\")","v":{"$error":"#N/A"}},{"$f":"IF(INDIRECT(\"c\" & (VLOOKUP(Rebalance!$D$30,$F$2:$G$48,2,FALSE)+ROW()-2))=Rebalance!$D$30,INDIRECT(\"a\" & (VLOOKUP(Rebalance!$D$30,$F$2:$G$48,2,FALSE)+ROW()-2)),\"\")","v":{"$error":"#N/A"}},{"$f":"IF(INDIRECT(\"c\" & (VLOOKUP(Rebalance!$D$31,$F$2:$G$48,2,FALSE)+ROW()-2))=Rebalance!$D$31,INDIRECT(\"a\" & (VLOOKUP(Rebalance!$D$31,$F$2:$G$48,2,FALSE)+ROW()-2)),\"\")","v":{"$error":"#N/A"}},{"$f":"IF(INDIRECT(\"c\" & (VLOOKUP(Rebalance!$D$32,$F$2:$G$48,2,FALSE)+ROW()-2))=Rebalance!$D$32,INDIRECT(\"a\" & (VLOOKUP(Rebalance!$D$32,$F$2:$G$48,2,FALSE)+ROW()-2)),\"\")","v":{"$error":"#N/A"}},{"$f":"IF(INDIRECT(\"c\" & (VLOOKUP(Rebalance!$D$33,$F$2:$G$48,2,FALSE)+ROW()-2))=Rebalance!$D$33,INDIRECT(\"a\" & (VLOOKUP(Rebalance!$D$33,$F$2:$G$48,2,FALSE)+ROW()-2)),\"\")","v":{"$error":"#N/A"}},{"$f":"IF(INDIRECT(\"c\" & (VLOOKUP(Rebalance!$D$34,$F$2:$G$48,2,FALSE)+ROW()-2))=Rebalance!$D$34,INDIRECT(\"a\" & (VLOOKUP(Rebalance!$D$34,$F$2:$G$48,2,FALSE)+ROW()-2)),\"\")","v":{"$error":"#N/A"}},{"$f":"IF(INDIRECT(\"c\" & (VLOOKUP(Rebalance!$D$35,$F$2:$G$48,2,FALSE)+ROW()-2))=Rebalance!$D$35,INDIRECT(\"a\" & (VLOOKUP(Rebalance!$D$35,$F$2:$G$48,2,FALSE)+ROW()-2)),\"\")","v":{"$error":"#N/A"}},{"$f":"IF(INDIRECT(\"c\" & (VLOOKUP(Rebalance!$D$36,$F$2:$G$48,2,FALSE)+ROW()-2))=Rebalance!$D$36,INDIRECT(\"a\" & (VLOOKUP(Rebalance!$D$36,$F$2:$G$48,2,FALSE)+ROW()-2)),\"\")","v":{"$error":"#N/A"}},{"$f":"IF(INDIRECT(\"c\" & (VLOOKUP(Rebalance!$D$37,$F$2:$G$48,2,FALSE)+ROW()-2))=Rebalance!$D$37,INDIRECT(\"a\" & (VLOOKUP(Rebalance!$D$37,$F$2:$G$48,2,FALSE)+ROW()-2)),\"\")","v":{"$error":"#N/A"}},{"$f":"IF(INDIRECT(\"c\" & (VLOOKUP(Rebalance!$D$38,$F$2:$G$48,2,FALSE)+ROW()-2))=Rebalance!$D$38,INDIRECT(\"a\" & (VLOOKUP(Rebalance!$D$38,$F$2:$G$48,2,FALSE)+ROW()-2)),\"\")","v":{"$error":"#N/A"}},{"$f":"IF(INDIRECT(\"c\" & (VLOOKUP(Rebalance!$D$39,$F$2:$G$48,2,FALSE)+ROW()-2))=Rebalance!$D$39,INDIRECT(\"a\" & (VLOOKUP(Rebalance!$D$39,$F$2:$G$48,2,FALSE)+ROW()-2)),\"\")","v":{"$error":"#N/A"}},{"$f":"IF(INDIRECT(\"c\" & (VLOOKUP(Rebalance!$D$40,$F$2:$G$48,2,FALSE)+ROW()-2))=Rebalance!$D$40,INDIRECT(\"a\" & (VLOOKUP(Rebalance!$D$40,$F$2:$G$48,2,FALSE)+ROW()-2)),\"\")","v":{"$error":"#N/A"}},{"$f":"IF(INDIRECT(\"c\" & (VLOOKUP(Rebalance!$D$52,$F$2:$G$48,2,FALSE)+ROW()-2))=Rebalance!$D$52,INDIRECT(\"a\" & (VLOOKUP(Rebalance!$D$52,$F$2:$G$48,2,FALSE)+ROW()-2)),\"\")","v":{"$error":"#N/A"}},{"$f":"IF(INDIRECT(\"c\" & (VLOOKUP(Rebalance!$D$53,$F$2:$G$48,2,FALSE)+ROW()-2))=Rebalance!$D$53,INDIRECT(\"a\" & (VLOOKUP(Rebalance!$D$53,$F$2:$G$48,2,FALSE)+ROW()-2)),\"\")","v":{"$error":"#N/A"}},{"$f":"IF(INDIRECT(\"c\" & (VLOOKUP(Rebalance!$D$54,$F$2:$G$48,2,FALSE)+ROW()-2))=Rebalance!$D$54,INDIRECT(\"a\" & (VLOOKUP(Rebalance!$D$54,$F$2:$G$48,2,FALSE)+ROW()-2)),\"\")","v":{"$error":"#N/A"}},{"$f":"IF(INDIRECT(\"c\" & (VLOOKUP(Rebalance!$D$55,$F$2:$G$48,2,FALSE)+ROW()-2))=Rebalance!$D$55,INDIRECT(\"a\" & (VLOOKUP(Rebalance!$D$55,$F$2:$G$48,2,FALSE)+ROW()-2)),\"\")","v":{"$error":"#N/A"}},{"$f":"IF(INDIRECT(\"c\" & (VLOOKUP(Rebalance!$D$56,$F$2:$G$48,2,FALSE)+ROW()-2))=Rebalance!$D$56,INDIRECT(\"a\" & (VLOOKUP(Rebalance!$D$56,$F$2:$G$48,2,FALSE)+ROW()-2)),\"\")","v":{"$error":"#N/A"}},{"$f":"IF(INDIRECT(\"c\" & (VLOOKUP(Rebalance!$D$57,$F$2:$G$48,2,FALSE)+ROW()-2))=Rebalance!$D$57,INDIRECT(\"a\" & (VLOOKUP(Rebalance!$D$57,$F$2:$G$48,2,FALSE)+ROW()-2)),\"\")","v":{"$error":"#N/A"}},{"$f":"IF(INDIRECT(\"c\" & (VLOOKUP(Rebalance!$D$58,$F$2:$G$48,2,FALSE)+ROW()-2))=Rebalance!$D$58,INDIRECT(\"a\" & (VLOOKUP(Rebalance!$D$58,$F$2:$G$48,2,FALSE)+ROW()-2)),\"\")","v":{"$error":"#N/A"}},{"$f":"IF(INDIRECT(\"c\" & (VLOOKUP(Rebalance!$D$59,$F$2:$G$48,2,FALSE)+ROW()-2))=Rebalance!$D$59,INDIRECT(\"a\" & (VLOOKUP(Rebalance!$D$59,$F$2:$G$48,2,FALSE)+ROW()-2)),\"\")","v":{"$error":"#N/A"}},{"$f":"IF(INDIRECT(\"c\" & (VLOOKUP(Rebalance!$D$60,$F$2:$G$48,2,FALSE)+ROW()-2))=Rebalance!$D$60,INDIRECT(\"a\" & (VLOOKUP(Rebalance!$D$60,$F$2:$G$48,2,FALSE)+ROW()-2)),\"\")","v":{"$error":"#N/A"}},{"$f":"IF(INDIRECT(\"c\" & (VLOOKUP(Rebalance!$D$61,$F$2:$G$48,2,FALSE)+ROW()-2))=Rebalance!$D$61,INDIRECT(\"a\" & (VLOOKUP(Rebalance!$D$61,$F$2:$G$48,2,FALSE)+ROW()-2)),\"\")","v":{"$error":"#N/A"}},{"$f":"IF(INDIRECT(\"c\" & (VLOOKUP(Rebalance!$D$62,$F$2:$G$48,2,FALSE)+ROW()-2))=Rebalance!$D$62,INDIRECT(\"a\" & (VLOOKUP(Rebalance!$D$62,$F$2:$G$48,2,FALSE)+ROW()-2)),\"\")","v":{"$error":"#N/A"}},{"$f":"IF(INDIRECT(\"c\" & (VLOOKUP(Rebalance!$D$63,$F$2:$G$48,2,FALSE)+ROW()-2))=Rebalance!$D$63,INDIRECT(\"a\" & (VLOOKUP(Rebalance!$D$63,$F$2:$G$48,2,FALSE)+ROW()-2)),\"\")","v":{"$error":"#N/A"}},{"$f":"IF(INDIRECT(\"c\" & (VLOOKUP(Rebalance!$D$64,$F$2:$G$48,2,FALSE)+ROW()-2))=Rebalance!$D$64,INDIRECT(\"a\" & (VLOOKUP(Rebalance!$D$64,$F$2:$G$48,2,FALSE)+ROW()-2)),\"\")","v":{"$error":"#N/A"}},{"$f":"IF(INDIRECT(\"c\" & (VLOOKUP(Rebalance!$D$65,$F$2:$G$48,2,FALSE)+ROW()-2))=Rebalance!$D$65,INDIRECT(\"a\" & (VLOOKUP(Rebalance!$D$65,$F$2:$G$48,2,FALSE)+ROW()-2)),\"\")","v":{"$error":"#N/A"}},{"$f":"IF(INDIRECT(\"c\" & (VLOOKUP(Rebalance!$D$66,$F$2:$G$48,2,FALSE)+ROW()-2))=Rebalance!$D$66,INDIRECT(\"a\" & (VLOOKUP(Rebalance!$D$66,$F$2:$G$48,2,FALSE)+ROW()-2)),\"\")","v":{"$error":"#N/A"}}]
["Nedgroup Inv Entrepreneur Fund ","NEFB","Nedgroup Collective Investments Ltd",{"$f":"ROW()","v":367},null,null,{"$f":"VLOOKUP(F367,$C$2:$D$599,2,FALSE)","v":{"$error":"#N/A"}},{"$f":"IF(INDIRECT(\"c\" & (VLOOKUP(Rebalance!$D$26,$F$2:$G$48,2,FALSE)+ROW()-2))=Rebalance!$D$26,INDIRECT(\"a\" & (VLOOKUP(Rebalance!$D$26,$F$2:$G$48,2,FALSE)+ROW()-2)),\"\")","v":{"$error":"#N/A"}},{"$f":"IF(INDIRECT(\"c\" & (VLOOKUP(Rebalance!$D$27,$F$2:$G$48,2,FALSE)+ROW()-2))=Rebalance!$D$27,INDIRECT(\"a\" & (VLOOKUP(Rebalance!$D$27,$F$2:$G$48,2,FALSE)+ROW()-2)),\"\")","v":{"$error":"#N/A"}},{"$f":"IF(INDIRECT(\"c\" & (VLOOKUP(Rebalance!$D$28,$F$2:$G$48,2,FALSE)+ROW()-2))=Rebalance!$D$28,INDIRECT(\"a\" & (VLOOKUP(Rebalance!$D$28,$F$2:$G$48,2,FALSE)+ROW()-2)),\"\")","v":{"$error":"#N/A"}},{"$f":"IF(INDIRECT(\"c\" & (VLOOKUP(Rebalance!$D$29,$F$2:$G$48,2,FALSE)+ROW()-2))=Rebalance!$D$29,INDIRECT(\"a\" & (VLOOKUP(Rebalance!$D$29,$F$2:$G$48,2,FALSE)+ROW()-2)),\"\")","v":{"$error":"#N/A"}},{"$f":"IF(INDIRECT(\"c\" & (VLOOKUP(Rebalance!$D$30,$F$2:$G$48,2,FALSE)+ROW()-2))=Rebalance!$D$30,INDIRECT(\"a\" & (VLOOKUP(Rebalance!$D$30,$F$2:$G$48,2,FALSE)+ROW()-2)),\"\")","v":{"$error":"#N/A"}},{"$f":"IF(INDIRECT(\"c\" & (VLOOKUP(Rebalance!$D$31,$F$2:$G$48,2,FALSE)+ROW()-2))=Rebalance!$D$31,INDIRECT(\"a\" & (VLOOKUP(Rebalance!$D$31,$F$2:$G$48,2,FALSE)+ROW()-2)),\"\")","v":{"$error":"#N/A"}},{"$f":"IF(INDIRECT(\"c\" & (VLOOKUP(Rebalance!$D$32,$F$2:$G$48,2,FALSE)+ROW()-2))=Rebalance!$D$32,INDIRECT(\"a\" & (VLOOKUP(Rebalance!$D$32,$F$2:$G$48,2,FALSE)+ROW()-2)),\"\")","v":{"$error":"#N/A"}},{"$f":"IF(INDIRECT(\"c\" & (VLOOKUP(Rebalance!$D$33,$F$2:$G$48,2,FALSE)+ROW()-2))=Rebalance!$D$33,INDIRECT(\"a\" & (VLOOKUP(Rebalance!$D$33,$F$2:$G$48,2,FALSE)+ROW()-2)),\"\")","v":{"$error":"#N/A"}},{"$f":"IF(INDIRECT(\"c\" & (VLOOKUP(Rebalance!$D$34,$F$2:$G$48,2,FALSE)+ROW()-2))=Rebalance!$D$34,INDIRECT(\"a\" & (VLOOKUP(Rebalance!$D$34,$F$2:$G$48,2,FALSE)+ROW()-2)),\"\")","v":{"$error":"#N/A"}},{"$f":"IF(INDIRECT(\"c\" & (VLOOKUP(Rebalance!$D$35,$F$2:$G$48,2,FALSE)+ROW()-2))=Rebalance!$D$35,INDIRECT(\"a\" & (VLOOKUP(Rebalance!$D$35,$F$2:$G$48,2,FALSE)+ROW()-2)),\"\")","v":{"$error":"#N/A"}},{"$f":"IF(INDIRECT(\"c\" & (VLOOKUP(Rebalance!$D$36,$F$2:$G$48,2,FALSE)+ROW()-2))=Rebalance!$D$36,INDIRECT(\"a\" & (VLOOKUP(Rebalance!$D$36,$F$2:$G$48,2,FALSE)+ROW()-2)),\"\")","v":{"$error":"#N/A"}},{"$f":"IF(INDIRECT(\"c\" & (VLOOKUP(Rebalance!$D$37,$F$2:$G$48,2,FALSE)+ROW()-2))=Rebalance!$D$37,INDIRECT(\"a\" & (VLOOKUP(Rebalance!$D$37,$F$2:$G$48,2,FALSE)+ROW()-2)),\"\")","v":{"$error":"#N/A"}},{"$f":"IF(INDIRECT(\"c\" & (VLOOKUP(Rebalance!$D$38,$F$2:$G$48,2,FALSE)+ROW()-2))=Rebalance!$D$38,INDIRECT(\"a\" & (VLOOKUP(Rebalance!$D$38,$F$2:$G$48,2,FALSE)+ROW()-2)),\"\")","v":{"$error":"#N/A"}},{"$f":"IF(INDIRECT(\"c\" & (VLOOKUP(Rebalance!$D$39,$F$2:$G$48,2,FALSE)+ROW()-2))=Rebalance!$D$39,INDIRECT(\"a\" & (VLOOKUP(Rebalance!$D$39,$F$2:$G$48,2,FALSE)+ROW()-2)),\"\")","v":{"$error":"#N/A"}},{"$f":"IF(INDIRECT(\"c\" & (VLOOKUP(Rebalance!$D$40,$F$2:$G$48,2,FALSE)+ROW()-2))=Rebalance!$D$40,INDIRECT(\"a\" & (VLOOKUP(Rebalance!$D$40,$F$2:$G$48,2,FALSE)+ROW()-2)),\"\")","v":{"$error":"#N/A"}},{"$f":"IF(INDIRECT(\"c\" & (VLOOKUP(Rebalance!$D$52,$F$2:$G$48,2,FALSE)+ROW()-2))=Rebalance!$D$52,INDIRECT(\"a\" & (VLOOKUP(Rebalance!$D$52,$F$2:$G$48,2,FALSE)+ROW()-2)),\"\")","v":{"$error":"#N/A"}},{"$f":"IF(INDIRECT(\"c\" & (VLOOKUP(Rebalance!$D$53,$F$2:$G$48,2,FALSE)+ROW()-2))=Rebalance!$D$53,INDIRECT(\"a\" & (VLOOKUP(Rebalance!$D$53,$F$2:$G$48,2,FALSE)+ROW()-2)),\"\")","v":{"$error":"#N/A"}},{"$f":"IF(INDIRECT(\"c\" & (VLOOKUP(Rebalance!$D$54,$F$2:$G$48,2,FALSE)+ROW()-2))=Rebalance!$D$54,INDIRECT(\"a\" & (VLOOKUP(Rebalance!$D$54,$F$2:$G$48,2,FALSE)+ROW()-2)),\"\")","v":{"$error":"#N/A"}},{"$f":"IF(INDIRECT(\"c\" & (VLOOKUP(Rebalance!$D$55,$F$2:$G$48,2,FALSE)+ROW()-2))=Rebalance!$D$55,INDIRECT(\"a\" & (VLOOKUP(Rebalance!$D$55,$F$2:$G$48,2,FALSE)+ROW()-2)),\"\")","v":{"$error":"#N/A"}},{"$f":"IF(INDIRECT(\"c\" & (VLOOKUP(Rebalance!$D$56,$F$2:$G$48,2,FALSE)+ROW()-2))=Rebalance!$D$56,INDIRECT(\"a\" & (VLOOKUP(Rebalance!$D$56,$F$2:$G$48,2,FALSE)+ROW()-2)),\"\")","v":{"$error":"#N/A"}},{"$f":"IF(INDIRECT(\"c\" & (VLOOKUP(Rebalance!$D$57,$F$2:$G$48,2,FALSE)+ROW()-2))=Rebalance!$D$57,INDIRECT(\"a\" & (VLOOKUP(Rebalance!$D$57,$F$2:$G$48,2,FALSE)+ROW()-2)),\"\")","v":{"$error":"#N/A"}},{"$f":"IF(INDIRECT(\"c\" & (VLOOKUP(Rebalance!$D$58,$F$2:$G$48,2,FALSE)+ROW()-2))=Rebalance!$D$58,INDIRECT(\"a\" & (VLOOKUP(Rebalance!$D$58,$F$2:$G$48,2,FALSE)+ROW()-2)),\"\")","v":{"$error":"#N/A"}},{"$f":"IF(INDIRECT(\"c\" & (VLOOKUP(Rebalance!$D$59,$F$2:$G$48,2,FALSE)+ROW()-2))=Rebalance!$D$59,INDIRECT(\"a\" & (VLOOKUP(Rebalance!$D$59,$F$2:$G$48,2,FALSE)+ROW()-2)),\"\")","v":{"$error":"#N/A"}},{"$f":"IF(INDIRECT(\"c\" & (VLOOKUP(Rebalance!$D$60,$F$2:$G$48,2,FALSE)+ROW()-2))=Rebalance!$D$60,INDIRECT(\"a\" & (VLOOKUP(Rebalance!$D$60,$F$2:$G$48,2,FALSE)+ROW()-2)),\"\")","v":{"$error":"#N/A"}},{"$f":"IF(INDIRECT(\"c\" & (VLOOKUP(Rebalance!$D$61,$F$2:$G$48,2,FALSE)+ROW()-2))=Rebalance!$D$61,INDIRECT(\"a\" & (VLOOKUP(Rebalance!$D$61,$F$2:$G$48,2,FALSE)+ROW()-2)),\"\")","v":{"$error":"#N/A"}},{"$f":"IF(INDIRECT(\"c\" & (VLOOKUP(Rebalance!$D$62,$F$2:$G$48,2,FALSE)+ROW()-2))=Rebalance!$D$62,INDIRECT(\"a\" & (VLOOKUP(Rebalance!$D$62,$F$2:$G$48,2,FALSE)+ROW()-2)),\"\")","v":{"$error":"#N/A"}},{"$f":"IF(INDIRECT(\"c\" & (VLOOKUP(Rebalance!$D$63,$F$2:$G$48,2,FALSE)+ROW()-2))=Rebalance!$D$63,INDIRECT(\"a\" & (VLOOKUP(Rebalance!$D$63,$F$2:$G$48,2,FALSE)+ROW()-2)),\"\")","v":{"$error":"#N/A"}},{"$f":"IF(INDIRECT(\"c\" & (VLOOKUP(Rebalance!$D$64,$F$2:$G$48,2,FALSE)+ROW()-2))=Rebalance!$D$64,INDIRECT(\"a\" & (VLOOKUP(Rebalance!$D$64,$F$2:$G$48,2,FALSE)+ROW()-2)),\"\")","v":{"$error":"#N/A"}},{"$f":"IF(INDIRECT(\"c\" & (VLOOKUP(Rebalance!$D$65,$F$2:$G$48,2,FALSE)+ROW()-2))=Rebalance!$D$65,INDIRECT(\"a\" & (VLOOKUP(Rebalance!$D$65,$F$2:$G$48,2,FALSE)+ROW()-2)),\"\")","v":{"$error":"#N/A"}},{"$f":"IF(INDIRECT(\"c\" & (VLOOKUP(Rebalance!$D$66,$F$2:$G$48,2,FALSE)+ROW()-2))=Rebalance!$D$66,INDIRECT(\"a\" & (VLOOKUP(Rebalance!$D$66,$F$2:$G$48,2,FALSE)+ROW()-2)),\"\")","v":{"$error":"#N/A"}}]
["Nedgroup Inv Global Cautious Feeder Fund A","NIGCFA","Nedgroup Collective Investments Ltd",{"$f":"ROW()","v":368},null,null,{"$f":"VLOOKUP(F368,$C$2:$D$599,2,FALSE)","v":{"$error":"#N/A"}},{"$f":"IF(INDIRECT(\"c\" & (VLOOKUP(Rebalance!$D$26,$F$2:$G$48,2,FALSE)+ROW()-2))=Rebalance!$D$26,INDIRECT(\"a\" & (VLOOKUP(Rebalance!$D$26,$F$2:$G$48,2,FALSE)+ROW()-2)),\"\")","v":{"$error":"#N/A"}},{"$f":"IF(INDIRECT(\"c\" & (VLOOKUP(Rebalance!$D$27,$F$2:$G$48,2,FALSE)+ROW()-2))=Rebalance!$D$27,INDIRECT(\"a\" & (VLOOKUP(Rebalance!$D$27,$F$2:$G$48,2,FALSE)+ROW()-2)),\"\")","v":{"$error":"#N/A"}},{"$f":"IF(INDIRECT(\"c\" & (VLOOKUP(Rebalance!$D$28,$F$2:$G$48,2,FALSE)+ROW()-2))=Rebalance!$D$28,INDIRECT(\"a\" & (VLOOKUP(Rebalance!$D$28,$F$2:$G$48,2,FALSE)+ROW()-2)),\"\")","v":{"$error":"#N/A"}},{"$f":"IF(INDIRECT(\"c\" & (VLOOKUP(Rebalance!$D$29,$F$2:$G$48,2,FALSE)+ROW()-2))=Rebalance!$D$29,INDIRECT(\"a\" & (VLOOKUP(Rebalance!$D$29,$F$2:$G$48,2,FALSE)+ROW()-2)),\"\")","v":{"$error":"#N/A"}},{"$f":"IF(INDIRECT(\"c\" & (VLOOKUP(Rebalance!$D$30,$F$2:$G$48,2,FALSE)+ROW()-2))=Rebalance!$D$30,INDIRECT(\"a\" & (VLOOKUP(Rebalance!$D$30,$F$2:$G$48,2,FALSE)+ROW()-2)),\"\")","v":{"$error":"#N/A"}},{"$f":"IF(INDIRECT(\"c\" & (VLOOKUP(Rebalance!$D$31,$F$2:$G$48,2,FALSE)+ROW()-2))=Rebalance!$D$31,INDIRECT(\"a\" & (VLOOKUP(Rebalance!$D$31,$F$2:$G$48,2,FALSE)+ROW()-2)),\"\")","v":{"$error":"#N/A"}},{"$f":"IF(INDIRECT(\"c\" & (VLOOKUP(Rebalance!$D$32,$F$2:$G$48,2,FALSE)+ROW()-2))=Rebalance!$D$32,INDIRECT(\"a\" & (VLOOKUP(Rebalance!$D$32,$F$2:$G$48,2,FALSE)+ROW()-2)),\"\")","v":{"$error":"#N/A"}},{"$f":"IF(INDIRECT(\"c\" & (VLOOKUP(Rebalance!$D$33,$F$2:$G$48,2,FALSE)+ROW()-2))=Rebalance!$D$33,INDIRECT(\"a\" & (VLOOKUP(Rebalance!$D$33,$F$2:$G$48,2,FALSE)+ROW()-2)),\"\")","v":{"$error":"#N/A"}},{"$f":"IF(INDIRECT(\"c\" & (VLOOKUP(Rebalance!$D$34,$F$2:$G$48,2,FALSE)+ROW()-2))=Rebalance!$D$34,INDIRECT(\"a\" & (VLOOKUP(Rebalance!$D$34,$F$2:$G$48,2,FALSE)+ROW()-2)),\"\")","v":{"$error":"#N/A"}},{"$f":"IF(INDIRECT(\"c\" & (VLOOKUP(Rebalance!$D$35,$F$2:$G$48,2,FALSE)+ROW()-2))=Rebalance!$D$35,INDIRECT(\"a\" & (VLOOKUP(Rebalance!$D$35,$F$2:$G$48,2,FALSE)+ROW()-2)),\"\")","v":{"$error":"#N/A"}},{"$f":"IF(INDIRECT(\"c\" & (VLOOKUP(Rebalance!$D$36,$F$2:$G$48,2,FALSE)+ROW()-2))=Rebalance!$D$36,INDIRECT(\"a\" & (VLOOKUP(Rebalance!$D$36,$F$2:$G$48,2,FALSE)+ROW()-2)),\"\")","v":{"$error":"#N/A"}},{"$f":"IF(INDIRECT(\"c\" & (VLOOKUP(Rebalance!$D$37,$F$2:$G$48,2,FALSE)+ROW()-2))=Rebalance!$D$37,INDIRECT(\"a\" & (VLOOKUP(Rebalance!$D$37,$F$2:$G$48,2,FALSE)+ROW()-2)),\"\")","v":{"$error":"#N/A"}},{"$f":"IF(INDIRECT(\"c\" & (VLOOKUP(Rebalance!$D$38,$F$2:$G$48,2,FALSE)+ROW()-2))=Rebalance!$D$38,INDIRECT(\"a\" & (VLOOKUP(Rebalance!$D$38,$F$2:$G$48,2,FALSE)+ROW()-2)),\"\")","v":{"$error":"#N/A"}},{"$f":"IF(INDIRECT(\"c\" & (VLOOKUP(Rebalance!$D$39,$F$2:$G$48,2,FALSE)+ROW()-2))=Rebalance!$D$39,INDIRECT(\"a\" & (VLOOKUP(Rebalance!$D$39,$F$2:$G$48,2,FALSE)+ROW()-2)),\"\")","v":{"$error":"#N/A"}},{"$f":"IF(INDIRECT(\"c\" & (VLOOKUP(Rebalance!$D$40,$F$2:$G$48,2,FALSE)+ROW()-2))=Rebalance!$D$40,INDIRECT(\"a\" & (VLOOKUP(Rebalance!$D$40,$F$2:$G$48,2,FALSE)+ROW()-2)),\"\")","v":{"$error":"#N/A"}},{"$f":"IF(INDIRECT(\"c\" & (VLOOKUP(Rebalance!$D$52,$F$2:$G$48,2,FALSE)+ROW()-2))=Rebalance!$D$52,INDIRECT(\"a\" & (VLOOKUP(Rebalance!$D$52,$F$2:$G$48,2,FALSE)+ROW()-2)),\"\")","v":{"$error":"#N/A"}},{"$f":"IF(INDIRECT(\"c\" & (VLOOKUP(Rebalance!$D$53,$F$2:$G$48,2,FALSE)+ROW()-2))=Rebalance!$D$53,INDIRECT(\"a\" & (VLOOKUP(Rebalance!$D$53,$F$2:$G$48,2,FALSE)+ROW()-2)),\"\")","v":{"$error":"#N/A"}},{"$f":"IF(INDIRECT(\"c\" & (VLOOKUP(Rebalance!$D$54,$F$2:$G$48,2,FALSE)+ROW()-2))=Rebalance!$D$54,INDIRECT(\"a\" & (VLOOKUP(Rebalance!$D$54,$F$2:$G$48,2,FALSE)+ROW()-2)),\"\")","v":{"$error":"#N/A"}},{"$f":"IF(INDIRECT(\"c\" & (VLOOKUP(Rebalance!$D$55,$F$2:$G$48,2,FALSE)+ROW()-2))=Rebalance!$D$55,INDIRECT(\"a\" & (VLOOKUP(Rebalance!$D$55,$F$2:$G$48,2,FALSE)+ROW()-2)),\"\")","v":{"$error":"#N/A"}},{"$f":"IF(INDIRECT(\"c\" & (VLOOKUP(Rebalance!$D$56,$F$2:$G$48,2,FALSE)+ROW()-2))=Rebalance!$D$56,INDIRECT(\"a\" & (VLOOKUP(Rebalance!$D$56,$F$2:$G$48,2,FALSE)+ROW()-2)),\"\")","v":{"$error":"#N/A"}},{"$f":"IF(INDIRECT(\"c\" & (VLOOKUP(Rebalance!$D$57,$F$2:$G$48,2,FALSE)+ROW()-2))=Rebalance!$D$57,INDIRECT(\"a\" & (VLOOKUP(Rebalance!$D$57,$F$2:$G$48,2,FALSE)+ROW()-2)),\"\")","v":{"$error":"#N/A"}},{"$f":"IF(INDIRECT(\"c\" & (VLOOKUP(Rebalance!$D$58,$F$2:$G$48,2,FALSE)+ROW()-2))=Rebalance!$D$58,INDIRECT(\"a\" & (VLOOKUP(Rebalance!$D$58,$F$2:$G$48,2,FALSE)+ROW()-2)),\"\")","v":{"$error":"#N/A"}},{"$f":"IF(INDIRECT(\"c\" & (VLOOKUP(Rebalance!$D$59,$F$2:$G$48,2,FALSE)+ROW()-2))=Rebalance!$D$59,INDIRECT(\"a\" & (VLOOKUP(Rebalance!$D$59,$F$2:$G$48,2,FALSE)+ROW()-2)),\"\")","v":{"$error":"#N/A"}},{"$f":"IF(INDIRECT(\"c\" & (VLOOKUP(Rebalance!$D$60,$F$2:$G$48,2,FALSE)+ROW()-2))=Rebalance!$D$60,INDIRECT(\"a\" & (VLOOKUP(Rebalance!$D$60,$F$2:$G$48,2,FALSE)+ROW()-2)),\"\")","v":{"$error":"#N/A"}},{"$f":"IF(INDIRECT(\"c\" & (VLOOKUP(Rebalance!$D$61,$F$2:$G$48,2,FALSE)+ROW()-2))=Rebalance!$D$61,INDIRECT(\"a\" & (VLOOKUP(Rebalance!$D$61,$F$2:$G$48,2,FALSE)+ROW()-2)),\"\")","v":{"$error":"#N/A"}},{"$f":"IF(INDIRECT(\"c\" & (VLOOKUP(Rebalance!$D$62,$F$2:$G$48,2,FALSE)+ROW()-2))=Rebalance!$D$62,INDIRECT(\"a\" & (VLOOKUP(Rebalance!$D$62,$F$2:$G$48,2,FALSE)+ROW()-2)),\"\")","v":{"$error":"#N/A"}},{"$f":"IF(INDIRECT(\"c\" & (VLOOKUP(Rebalance!$D$63,$F$2:$G$48,2,FALSE)+ROW()-2))=Rebalance!$D$63,INDIRECT(\"a\" & (VLOOKUP(Rebalance!$D$63,$F$2:$G$48,2,FALSE)+ROW()-2)),\"\")","v":{"$error":"#N/A"}},{"$f":"IF(INDIRECT(\"c\" & (VLOOKUP(Rebalance!$D$64,$F$2:$G$48,2,FALSE)+ROW()-2))=Rebalance!$D$64,INDIRECT(\"a\" & (VLOOKUP(Rebalance!$D$64,$F$2:$G$48,2,FALSE)+ROW()-2)),\"\")","v":{"$error":"#N/A"}},{"$f":"IF(INDIRECT(\"c\" & (VLOOKUP(Rebalance!$D$65,$F$2:$G$48,2,FALSE)+ROW()-2))=Rebalance!$D$65,INDIRECT(\"a\" & (VLOOKUP(Rebalance!$D$65,$F$2:$G$48,2,FALSE)+ROW()-2)),\"\")","v":{"$error":"#N/A"}},{"$f":"IF(INDIRECT(\"c\" & (VLOOKUP(Rebalance!$D$66,$F$2:$G$48,2,FALSE)+ROW()-2))=Rebalance!$D$66,INDIRECT(\"a\" & (VLOOKUP(Rebalance!$D$66,$F$2:$G$48,2,FALSE)+ROW()-2)),\"\")","v":{"$error":"#N/A"}}]
["Nedgroup Inv Global Cautious Feeder Fund B2","NIGCFA","Nedgroup Collective Investments Ltd",{"$f":"ROW()","v":369},null,null,{"$f":"VLOOKUP(F369,$C$2:$D$599,2,FALSE)","v":{"$error":"#N/A"}},{"$f":"IF(INDIRECT(\"c\" & (VLOOKUP(Rebalance!$D$26,$F$2:$G$48,2,FALSE)+ROW()-2))=Rebalance!$D$26,INDIRECT(\"a\" & (VLOOKUP(Rebalance!$D$26,$F$2:$G$48,2,FALSE)+ROW()-2)),\"\")","v":{"$error":"#N/A"}},{"$f":"IF(INDIRECT(\"c\" & (VLOOKUP(Rebalance!$D$27,$F$2:$G$48,2,FALSE)+ROW()-2))=Rebalance!$D$27,INDIRECT(\"a\" & (VLOOKUP(Rebalance!$D$27,$F$2:$G$48,2,FALSE)+ROW()-2)),\"\")","v":{"$error":"#N/A"}},{"$f":"IF(INDIRECT(\"c\" & (VLOOKUP(Rebalance!$D$28,$F$2:$G$48,2,FALSE)+ROW()-2))=Rebalance!$D$28,INDIRECT(\"a\" & (VLOOKUP(Rebalance!$D$28,$F$2:$G$48,2,FALSE)+ROW()-2)),\"\")","v":{"$error":"#N/A"}},{"$f":"IF(INDIRECT(\"c\" & (VLOOKUP(Rebalance!$D$29,$F$2:$G$48,2,FALSE)+ROW()-2))=Rebalance!$D$29,INDIRECT(\"a\" & (VLOOKUP(Rebalance!$D$29,$F$2:$G$48,2,FALSE)+ROW()-2)),\"\")","v":{"$error":"#N/A"}},{"$f":"IF(INDIRECT(\"c\" & (VLOOKUP(Rebalance!$D$30,$F$2:$G$48,2,FALSE)+ROW()-2))=Rebalance!$D$30,INDIRECT(\"a\" & (VLOOKUP(Rebalance!$D$30,$F$2:$G$48,2,FALSE)+ROW()-2)),\"\")","v":{"$error":"#N/A"}},{"$f":"IF(INDIRECT(\"c\" & (VLOOKUP(Rebalance!$D$31,$F$2:$G$48,2,FALSE)+ROW()-2))=Rebalance!$D$31,INDIRECT(\"a\" & (VLOOKUP(Rebalance!$D$31,$F$2:$G$48,2,FALSE)+ROW()-2)),\"\")","v":{"$error":"#N/A"}},{"$f":"IF(INDIRECT(\"c\" & (VLOOKUP(Rebalance!$D$32,$F$2:$G$48,2,FALSE)+ROW()-2))=Rebalance!$D$32,INDIRECT(\"a\" & (VLOOKUP(Rebalance!$D$32,$F$2:$G$48,2,FALSE)+ROW()-2)),\"\")","v":{"$error":"#N/A"}},{"$f":"IF(INDIRECT(\"c\" & (VLOOKUP(Rebalance!$D$33,$F$2:$G$48,2,FALSE)+ROW()-2))=Rebalance!$D$33,INDIRECT(\"a\" & (VLOOKUP(Rebalance!$D$33,$F$2:$G$48,2,FALSE)+ROW()-2)),\"\")","v":{"$error":"#N/A"}},{"$f":"IF(INDIRECT(\"c\" & (VLOOKUP(Rebalance!$D$34,$F$2:$G$48,2,FALSE)+ROW()-2))=Rebalance!$D$34,INDIRECT(\"a\" & (VLOOKUP(Rebalance!$D$34,$F$2:$G$48,2,FALSE)+ROW()-2)),\"\")","v":{"$error":"#N/A"}},{"$f":"IF(INDIRECT(\"c\" & (VLOOKUP(Rebalance!$D$35,$F$2:$G$48,2,FALSE)+ROW()-2))=Rebalance!$D$35,INDIRECT(\"a\" & (VLOOKUP(Rebalance!$D$35,$F$2:$G$48,2,FALSE)+ROW()-2)),\"\")","v":{"$error":"#N/A"}},{"$f":"IF(INDIRECT(\"c\" & (VLOOKUP(Rebalance!$D$36,$F$2:$G$48,2,FALSE)+ROW()-2))=Rebalance!$D$36,INDIRECT(\"a\" & (VLOOKUP(Rebalance!$D$36,$F$2:$G$48,2,FALSE)+ROW()-2)),\"\")","v":{"$error":"#N/A"}},{"$f":"IF(INDIRECT(\"c\" & (VLOOKUP(Rebalance!$D$37,$F$2:$G$48,2,FALSE)+ROW()-2))=Rebalance!$D$37,INDIRECT(\"a\" & (VLOOKUP(Rebalance!$D$37,$F$2:$G$48,2,FALSE)+ROW()-2)),\"\")","v":{"$error":"#N/A"}},{"$f":"IF(INDIRECT(\"c\" & (VLOOKUP(Rebalance!$D$38,$F$2:$G$48,2,FALSE)+ROW()-2))=Rebalance!$D$38,INDIRECT(\"a\" & (VLOOKUP(Rebalance!$D$38,$F$2:$G$48,2,FALSE)+ROW()-2)),\"\")","v":{"$error":"#N/A"}},{"$f":"IF(INDIRECT(\"c\" & (VLOOKUP(Rebalance!$D$39,$F$2:$G$48,2,FALSE)+ROW()-2))=Rebalance!$D$39,INDIRECT(\"a\" & (VLOOKUP(Rebalance!$D$39,$F$2:$G$48,2,FALSE)+ROW()-2)),\"\")","v":{"$error":"#N/A"}},{"$f":"IF(INDIRECT(\"c\" & (VLOOKUP(Rebalance!$D$40,$F$2:$G$48,2,FALSE)+ROW()-2))=Rebalance!$D$40,INDIRECT(\"a\" & (VLOOKUP(Rebalance!$D$40,$F$2:$G$48,2,FALSE)+ROW()-2)),\"\")","v":{"$error":"#N/A"}},{"$f":"IF(INDIRECT(\"c\" & (VLOOKUP(Rebalance!$D$52,$F$2:$G$48,2,FALSE)+ROW()-2))=Rebalance!$D$52,INDIRECT(\"a\" & (VLOOKUP(Rebalance!$D$52,$F$2:$G$48,2,FALSE)+ROW()-2)),\"\")","v":{"$error":"#N/A"}},{"$f":"IF(INDIRECT(\"c\" & (VLOOKUP(Rebalance!$D$53,$F$2:$G$48,2,FALSE)+ROW()-2))=Rebalance!$D$53,INDIRECT(\"a\" & (VLOOKUP(Rebalance!$D$53,$F$2:$G$48,2,FALSE)+ROW()-2)),\"\")","v":{"$error":"#N/A"}},{"$f":"IF(INDIRECT(\"c\" & (VLOOKUP(Rebalance!$D$54,$F$2:$G$48,2,FALSE)+ROW()-2))=Rebalance!$D$54,INDIRECT(\"a\" & (VLOOKUP(Rebalance!$D$54,$F$2:$G$48,2,FALSE)+ROW()-2)),\"\")","v":{"$error":"#N/A"}},{"$f":"IF(INDIRECT(\"c\" & (VLOOKUP(Rebalance!$D$55,$F$2:$G$48,2,FALSE)+ROW()-2))=Rebalance!$D$55,INDIRECT(\"a\" & (VLOOKUP(Rebalance!$D$55,$F$2:$G$48,2,FALSE)+ROW()-2)),\"\")","v":{"$error":"#N/A"}},{"$f":"IF(INDIRECT(\"c\" & (VLOOKUP(Rebalance!$D$56,$F$2:$G$48,2,FALSE)+ROW()-2))=Rebalance!$D$56,INDIRECT(\"a\" & (VLOOKUP(Rebalance!$D$56,$F$2:$G$48,2,FALSE)+ROW()-2)),\"\")","v":{"$error":"#N/A"}},{"$f":"IF(INDIRECT(\"c\" & (VLOOKUP(Rebalance!$D$57,$F$2:$G$48,2,FALSE)+ROW()-2))=Rebalance!$D$57,INDIRECT(\"a\" & (VLOOKUP(Rebalance!$D$57,$F$2:$G$48,2,FALSE)+ROW()-2)),\"\")","v":{"$error":"#N/A"}},{"$f":"IF(INDIRECT(\"c\" & (VLOOKUP(Rebalance!$D$58,$F$2:$G$48,2,FALSE)+ROW()-2))=Rebalance!$D$58,INDIRECT(\"a\" & (VLOOKUP(Rebalance!$D$58,$F$2:$G$48,2,FALSE)+ROW()-2)),\"\")","v":{"$error":"#N/A"}},{"$f":"IF(INDIRECT(\"c\" & (VLOOKUP(Rebalance!$D$59,$F$2:$G$48,2,FALSE)+ROW()-2))=Rebalance!$D$59,INDIRECT(\"a\" & (VLOOKUP(Rebalance!$D$59,$F$2:$G$48,2,FALSE)+ROW()-2)),\"\")","v":{"$error":"#N/A"}},{"$f":"IF(INDIRECT(\"c\" & (VLOOKUP(Rebalance!$D$60,$F$2:$G$48,2,FALSE)+ROW()-2))=Rebalance!$D$60,INDIRECT(\"a\" & (VLOOKUP(Rebalance!$D$60,$F$2:$G$48,2,FALSE)+ROW()-2)),\"\")","v":{"$error":"#N/A"}},{"$f":"IF(INDIRECT(\"c\" & (VLOOKUP(Rebalance!$D$61,$F$2:$G$48,2,FALSE)+ROW()-2))=Rebalance!$D$61,INDIRECT(\"a\" & (VLOOKUP(Rebalance!$D$61,$F$2:$G$48,2,FALSE)+ROW()-2)),\"\")","v":{"$error":"#N/A"}},{"$f":"IF(INDIRECT(\"c\" & (VLOOKUP(Rebalance!$D$62,$F$2:$G$48,2,FALSE)+ROW()-2))=Rebalance!$D$62,INDIRECT(\"a\" & (VLOOKUP(Rebalance!$D$62,$F$2:$G$48,2,FALSE)+ROW()-2)),\"\")","v":{"$error":"#N/A"}},{"$f":"IF(INDIRECT(\"c\" & (VLOOKUP(Rebalance!$D$63,$F$2:$G$48,2,FALSE)+ROW()-2))=Rebalance!$D$63,INDIRECT(\"a\" & (VLOOKUP(Rebalance!$D$63,$F$2:$G$48,2,FALSE)+ROW()-2)),\"\")","v":{"$error":"#N/A"}},{"$f":"IF(INDIRECT(\"c\" & (VLOOKUP(Rebalance!$D$64,$F$2:$G$48,2,FALSE)+ROW()-2))=Rebalance!$D$64,INDIRECT(\"a\" & (VLOOKUP(Rebalance!$D$64,$F$2:$G$48,2,FALSE)+ROW()-2)),\"\")","v":{"$error":"#N/A"}},{"$f":"IF(INDIRECT(\"c\" & (VLOOKUP(Rebalance!$D$65,$F$2:$G$48,2,FALSE)+ROW()-2))=Rebalance!$D$65,INDIRECT(\"a\" & (VLOOKUP(Rebalance!$D$65,$F$2:$G$48,2,FALSE)+ROW()-2)),\"\")","v":{"$error":"#N/A"}},{"$f":"IF(INDIRECT(\"c\" & (VLOOKUP(Rebalance!$D$66,$F$2:$G$48,2,FALSE)+ROW()-2))=Rebalance!$D$66,INDIRECT(\"a\" & (VLOOKUP(Rebalance!$D$66,$F$2:$G$48,2,FALSE)+ROW()-2)),\"\")","v":{"$error":"#N/A"}}]
["Nedgroup Inv Global Equity Feeder Fund B2","GEFF","Nedgroup Collective Investments Ltd",{"$f":"ROW()","v":370},null,null,{"$f":"VLOOKUP(F370,$C$2:$D$599,2,FALSE)","v":{"$error":"#N/A"}},{"$f":"IF(INDIRECT(\"c\" & (VLOOKUP(Rebalance!$D$26,$F$2:$G$48,2,FALSE)+ROW()-2))=Rebalance!$D$26,INDIRECT(\"a\" & (VLOOKUP(Rebalance!$D$26,$F$2:$G$48,2,FALSE)+ROW()-2)),\"\")","v":{"$error":"#N/A"}},{"$f":"IF(INDIRECT(\"c\" & (VLOOKUP(Rebalance!$D$27,$F$2:$G$48,2,FALSE)+ROW()-2))=Rebalance!$D$27,INDIRECT(\"a\" & (VLOOKUP(Rebalance!$D$27,$F$2:$G$48,2,FALSE)+ROW()-2)),\"\")","v":{"$error":"#N/A"}},{"$f":"IF(INDIRECT(\"c\" & (VLOOKUP(Rebalance!$D$28,$F$2:$G$48,2,FALSE)+ROW()-2))=Rebalance!$D$28,INDIRECT(\"a\" & (VLOOKUP(Rebalance!$D$28,$F$2:$G$48,2,FALSE)+ROW()-2)),\"\")","v":{"$error":"#N/A"}},{"$f":"IF(INDIRECT(\"c\" & (VLOOKUP(Rebalance!$D$29,$F$2:$G$48,2,FALSE)+ROW()-2))=Rebalance!$D$29,INDIRECT(\"a\" & (VLOOKUP(Rebalance!$D$29,$F$2:$G$48,2,FALSE)+ROW()-2)),\"\")","v":{"$error":"#N/A"}},{"$f":"IF(INDIRECT(\"c\" & (VLOOKUP(Rebalance!$D$30,$F$2:$G$48,2,FALSE)+ROW()-2))=Rebalance!$D$30,INDIRECT(\"a\" & (VLOOKUP(Rebalance!$D$30,$F$2:$G$48,2,FALSE)+ROW()-2)),\"\")","v":{"$error":"#N/A"}},{"$f":"IF(INDIRECT(\"c\" & (VLOOKUP(Rebalance!$D$31,$F$2:$G$48,2,FALSE)+ROW()-2))=Rebalance!$D$31,INDIRECT(\"a\" & (VLOOKUP(Rebalance!$D$31,$F$2:$G$48,2,FALSE)+ROW()-2)),\"\")","v":{"$error":"#N/A"}},{"$f":"IF(INDIRECT(\"c\" & (VLOOKUP(Rebalance!$D$32,$F$2:$G$48,2,FALSE)+ROW()-2))=Rebalance!$D$32,INDIRECT(\"a\" & (VLOOKUP(Rebalance!$D$32,$F$2:$G$48,2,FALSE)+ROW()-2)),\"\")","v":{"$error":"#N/A"}},{"$f":"IF(INDIRECT(\"c\" & (VLOOKUP(Rebalance!$D$33,$F$2:$G$48,2,FALSE)+ROW()-2))=Rebalance!$D$33,INDIRECT(\"a\" & (VLOOKUP(Rebalance!$D$33,$F$2:$G$48,2,FALSE)+ROW()-2)),\"\")","v":{"$error":"#N/A"}},{"$f":"IF(INDIRECT(\"c\" & (VLOOKUP(Rebalance!$D$34,$F$2:$G$48,2,FALSE)+ROW()-2))=Rebalance!$D$34,INDIRECT(\"a\" & (VLOOKUP(Rebalance!$D$34,$F$2:$G$48,2,FALSE)+ROW()-2)),\"\")","v":{"$error":"#N/A"}},{"$f":"IF(INDIRECT(\"c\" & (VLOOKUP(Rebalance!$D$35,$F$2:$G$48,2,FALSE)+ROW()-2))=Rebalance!$D$35,INDIRECT(\"a\" & (VLOOKUP(Rebalance!$D$35,$F$2:$G$48,2,FALSE)+ROW()-2)),\"\")","v":{"$error":"#N/A"}},{"$f":"IF(INDIRECT(\"c\" & (VLOOKUP(Rebalance!$D$36,$F$2:$G$48,2,FALSE)+ROW()-2))=Rebalance!$D$36,INDIRECT(\"a\" & (VLOOKUP(Rebalance!$D$36,$F$2:$G$48,2,FALSE)+ROW()-2)),\"\")","v":{"$error":"#N/A"}},{"$f":"IF(INDIRECT(\"c\" & (VLOOKUP(Rebalance!$D$37,$F$2:$G$48,2,FALSE)+ROW()-2))=Rebalance!$D$37,INDIRECT(\"a\" & (VLOOKUP(Rebalance!$D$37,$F$2:$G$48,2,FALSE)+ROW()-2)),\"\")","v":{"$error":"#N/A"}},{"$f":"IF(INDIRECT(\"c\" & (VLOOKUP(Rebalance!$D$38,$F$2:$G$48,2,FALSE)+ROW()-2))=Rebalance!$D$38,INDIRECT(\"a\" & (VLOOKUP(Rebalance!$D$38,$F$2:$G$48,2,FALSE)+ROW()-2)),\"\")","v":{"$error":"#N/A"}},{"$f":"IF(INDIRECT(\"c\" & (VLOOKUP(Rebalance!$D$39,$F$2:$G$48,2,FALSE)+ROW()-2))=Rebalance!$D$39,INDIRECT(\"a\" & (VLOOKUP(Rebalance!$D$39,$F$2:$G$48,2,FALSE)+ROW()-2)),\"\")","v":{"$error":"#N/A"}},{"$f":"IF(INDIRECT(\"c\" & (VLOOKUP(Rebalance!$D$40,$F$2:$G$48,2,FALSE)+ROW()-2))=Rebalance!$D$40,INDIRECT(\"a\" & (VLOOKUP(Rebalance!$D$40,$F$2:$G$48,2,FALSE)+ROW()-2)),\"\")","v":{"$error":"#N/A"}},{"$f":"IF(INDIRECT(\"c\" & (VLOOKUP(Rebalance!$D$52,$F$2:$G$48,2,FALSE)+ROW()-2))=Rebalance!$D$52,INDIRECT(\"a\" & (VLOOKUP(Rebalance!$D$52,$F$2:$G$48,2,FALSE)+ROW()-2)),\"\")","v":{"$error":"#N/A"}},{"$f":"IF(INDIRECT(\"c\" & (VLOOKUP(Rebalance!$D$53,$F$2:$G$48,2,FALSE)+ROW()-2))=Rebalance!$D$53,INDIRECT(\"a\" & (VLOOKUP(Rebalance!$D$53,$F$2:$G$48,2,FALSE)+ROW()-2)),\"\")","v":{"$error":"#N/A"}},{"$f":"IF(INDIRECT(\"c\" & (VLOOKUP(Rebalance!$D$54,$F$2:$G$48,2,FALSE)+ROW()-2))=Rebalance!$D$54,INDIRECT(\"a\" & (VLOOKUP(Rebalance!$D$54,$F$2:$G$48,2,FALSE)+ROW()-2)),\"\")","v":{"$error":"#N/A"}},{"$f":"IF(INDIRECT(\"c\" & (VLOOKUP(Rebalance!$D$55,$F$2:$G$48,2,FALSE)+ROW()-2))=Rebalance!$D$55,INDIRECT(\"a\" & (VLOOKUP(Rebalance!$D$55,$F$2:$G$48,2,FALSE)+ROW()-2)),\"\")","v":{"$error":"#N/A"}},{"$f":"IF(INDIRECT(\"c\" & (VLOOKUP(Rebalance!$D$56,$F$2:$G$48,2,FALSE)+ROW()-2))=Rebalance!$D$56,INDIRECT(\"a\" & (VLOOKUP(Rebalance!$D$56,$F$2:$G$48,2,FALSE)+ROW()-2)),\"\")","v":{"$error":"#N/A"}},{"$f":"IF(INDIRECT(\"c\" & (VLOOKUP(Rebalance!$D$57,$F$2:$G$48,2,FALSE)+ROW()-2))=Rebalance!$D$57,INDIRECT(\"a\" & (VLOOKUP(Rebalance!$D$57,$F$2:$G$48,2,FALSE)+ROW()-2)),\"\")","v":{"$error":"#N/A"}},{"$f":"IF(INDIRECT(\"c\" & (VLOOKUP(Rebalance!$D$58,$F$2:$G$48,2,FALSE)+ROW()-2))=Rebalance!$D$58,INDIRECT(\"a\" & (VLOOKUP(Rebalance!$D$58,$F$2:$G$48,2,FALSE)+ROW()-2)),\"\")","v":{"$error":"#N/A"}},{"$f":"IF(INDIRECT(\"c\" & (VLOOKUP(Rebalance!$D$59,$F$2:$G$48,2,FALSE)+ROW()-2))=Rebalance!$D$59,INDIRECT(\"a\" & (VLOOKUP(Rebalance!$D$59,$F$2:$G$48,2,FALSE)+ROW()-2)),\"\")","v":{"$error":"#N/A"}},{"$f":"IF(INDIRECT(\"c\" & (VLOOKUP(Rebalance!$D$60,$F$2:$G$48,2,FALSE)+ROW()-2))=Rebalance!$D$60,INDIRECT(\"a\" & (VLOOKUP(Rebalance!$D$60,$F$2:$G$48,2,FALSE)+ROW()-2)),\"\")","v":{"$error":"#N/A"}},{"$f":"IF(INDIRECT(\"c\" & (VLOOKUP(Rebalance!$D$61,$F$2:$G$48,2,FALSE)+ROW()-2))=Rebalance!$D$61,INDIRECT(\"a\" & (VLOOKUP(Rebalance!$D$61,$F$2:$G$48,2,FALSE)+ROW()-2)),\"\")","v":{"$error":"#N/A"}},{"$f":"IF(INDIRECT(\"c\" & (VLOOKUP(Rebalance!$D$62,$F$2:$G$48,2,FALSE)+ROW()-2))=Rebalance!$D$62,INDIRECT(\"a\" & (VLOOKUP(Rebalance!$D$62,$F$2:$G$48,2,FALSE)+ROW()-2)),\"\")","v":{"$error":"#N/A"}},{"$f":"IF(INDIRECT(\"c\" & (VLOOKUP(Rebalance!$D$63,$F$2:$G$48,2,FALSE)+ROW()-2))=Rebalance!$D$63,INDIRECT(\"a\" & (VLOOKUP(Rebalance!$D$63,$F$2:$G$48,2,FALSE)+ROW()-2)),\"\")","v":{"$error":"#N/A"}},{"$f":"IF(INDIRECT(\"c\" & (VLOOKUP(Rebalance!$D$64,$F$2:$G$48,2,FALSE)+ROW()-2))=Rebalance!$D$64,INDIRECT(\"a\" & (VLOOKUP(Rebalance!$D$64,$F$2:$G$48,2,FALSE)+ROW()-2)),\"\")","v":{"$error":"#N/A"}},{"$f":"IF(INDIRECT(\"c\" & (VLOOKUP(Rebalance!$D$65,$F$2:$G$48,2,FALSE)+ROW()-2))=Rebalance!$D$65,INDIRECT(\"a\" & (VLOOKUP(Rebalance!$D$65,$F$2:$G$48,2,FALSE)+ROW()-2)),\"\")","v":{"$error":"#N/A"}},{"$f":"IF(INDIRECT(\"c\" & (VLOOKUP(Rebalance!$D$66,$F$2:$G$48,2,FALSE)+ROW()-2))=Rebalance!$D$66,INDIRECT(\"a\" & (VLOOKUP(Rebalance!$D$66,$F$2:$G$48,2,FALSE)+ROW()-2)),\"\")","v":{"$error":"#N/A"}}]
["Nedgroup Inv Global Equity Feeder Fund A","GEFF","Nedgroup Collective Investments Ltd",{"$f":"ROW()","v":371},null,null,{"$f":"VLOOKUP(F371,$C$2:$D$599,2,FALSE)","v":{"$error":"#N/A"}},{"$f":"IF(INDIRECT(\"c\" & (VLOOKUP(Rebalance!$D$26,$F$2:$G$48,2,FALSE)+ROW()-2))=Rebalance!$D$26,INDIRECT(\"a\" & (VLOOKUP(Rebalance!$D$26,$F$2:$G$48,2,FALSE)+ROW()-2)),\"\")","v":{"$error":"#N/A"}},{"$f":"IF(INDIRECT(\"c\" & (VLOOKUP(Rebalance!$D$27,$F$2:$G$48,2,FALSE)+ROW()-2))=Rebalance!$D$27,INDIRECT(\"a\" & (VLOOKUP(Rebalance!$D$27,$F$2:$G$48,2,FALSE)+ROW()-2)),\"\")","v":{"$error":"#N/A"}},{"$f":"IF(INDIRECT(\"c\" & (VLOOKUP(Rebalance!$D$28,$F$2:$G$48,2,FALSE)+ROW()-2))=Rebalance!$D$28,INDIRECT(\"a\" & (VLOOKUP(Rebalance!$D$28,$F$2:$G$48,2,FALSE)+ROW()-2)),\"\")","v":{"$error":"#N/A"}},{"$f":"IF(INDIRECT(\"c\" & (VLOOKUP(Rebalance!$D$29,$F$2:$G$48,2,FALSE)+ROW()-2))=Rebalance!$D$29,INDIRECT(\"a\" & (VLOOKUP(Rebalance!$D$29,$F$2:$G$48,2,FALSE)+ROW()-2)),\"\")","v":{"$error":"#N/A"}},{"$f":"IF(INDIRECT(\"c\" & (VLOOKUP(Rebalance!$D$30,$F$2:$G$48,2,FALSE)+ROW()-2))=Rebalance!$D$30,INDIRECT(\"a\" & (VLOOKUP(Rebalance!$D$30,$F$2:$G$48,2,FALSE)+ROW()-2)),\"\")","v":{"$error":"#N/A"}},{"$f":"IF(INDIRECT(\"c\" & (VLOOKUP(Rebalance!$D$31,$F$2:$G$48,2,FALSE)+ROW()-2))=Rebalance!$D$31,INDIRECT(\"a\" & (VLOOKUP(Rebalance!$D$31,$F$2:$G$48,2,FALSE)+ROW()-2)),\"\")","v":{"$error":"#N/A"}},{"$f":"IF(INDIRECT(\"c\" & (VLOOKUP(Rebalance!$D$32,$F$2:$G$48,2,FALSE)+ROW()-2))=Rebalance!$D$32,INDIRECT(\"a\" & (VLOOKUP(Rebalance!$D$32,$F$2:$G$48,2,FALSE)+ROW()-2)),\"\")","v":{"$error":"#N/A"}},{"$f":"IF(INDIRECT(\"c\" & (VLOOKUP(Rebalance!$D$33,$F$2:$G$48,2,FALSE)+ROW()-2))=Rebalance!$D$33,INDIRECT(\"a\" & (VLOOKUP(Rebalance!$D$33,$F$2:$G$48,2,FALSE)+ROW()-2)),\"\")","v":{"$error":"#N/A"}},{"$f":"IF(INDIRECT(\"c\" & (VLOOKUP(Rebalance!$D$34,$F$2:$G$48,2,FALSE)+ROW()-2))=Rebalance!$D$34,INDIRECT(\"a\" & (VLOOKUP(Rebalance!$D$34,$F$2:$G$48,2,FALSE)+ROW()-2)),\"\")","v":{"$error":"#N/A"}},{"$f":"IF(INDIRECT(\"c\" & (VLOOKUP(Rebalance!$D$35,$F$2:$G$48,2,FALSE)+ROW()-2))=Rebalance!$D$35,INDIRECT(\"a\" & (VLOOKUP(Rebalance!$D$35,$F$2:$G$48,2,FALSE)+ROW()-2)),\"\")","v":{"$error":"#N/A"}},{"$f":"IF(INDIRECT(\"c\" & (VLOOKUP(Rebalance!$D$36,$F$2:$G$48,2,FALSE)+ROW()-2))=Rebalance!$D$36,INDIRECT(\"a\" & (VLOOKUP(Rebalance!$D$36,$F$2:$G$48,2,FALSE)+ROW()-2)),\"\")","v":{"$error":"#N/A"}},{"$f":"IF(INDIRECT(\"c\" & (VLOOKUP(Rebalance!$D$37,$F$2:$G$48,2,FALSE)+ROW()-2))=Rebalance!$D$37,INDIRECT(\"a\" & (VLOOKUP(Rebalance!$D$37,$F$2:$G$48,2,FALSE)+ROW()-2)),\"\")","v":{"$error":"#N/A"}},{"$f":"IF(INDIRECT(\"c\" & (VLOOKUP(Rebalance!$D$38,$F$2:$G$48,2,FALSE)+ROW()-2))=Rebalance!$D$38,INDIRECT(\"a\" & (VLOOKUP(Rebalance!$D$38,$F$2:$G$48,2,FALSE)+ROW()-2)),\"\")","v":{"$error":"#N/A"}},{"$f":"IF(INDIRECT(\"c\" & (VLOOKUP(Rebalance!$D$39,$F$2:$G$48,2,FALSE)+ROW()-2))=Rebalance!$D$39,INDIRECT(\"a\" & (VLOOKUP(Rebalance!$D$39,$F$2:$G$48,2,FALSE)+ROW()-2)),\"\")","v":{"$error":"#N/A"}},{"$f":"IF(INDIRECT(\"c\" & (VLOOKUP(Rebalance!$D$40,$F$2:$G$48,2,FALSE)+ROW()-2))=Rebalance!$D$40,INDIRECT(\"a\" & (VLOOKUP(Rebalance!$D$40,$F$2:$G$48,2,FALSE)+ROW()-2)),\"\")","v":{"$error":"#N/A"}},{"$f":"IF(INDIRECT(\"c\" & (VLOOKUP(Rebalance!$D$52,$F$2:$G$48,2,FALSE)+ROW()-2))=Rebalance!$D$52,INDIRECT(\"a\" & (VLOOKUP(Rebalance!$D$52,$F$2:$G$48,2,FALSE)+ROW()-2)),\"\")","v":{"$error":"#N/A"}},{"$f":"IF(INDIRECT(\"c\" & (VLOOKUP(Rebalance!$D$53,$F$2:$G$48,2,FALSE)+ROW()-2))=Rebalance!$D$53,INDIRECT(\"a\" & (VLOOKUP(Rebalance!$D$53,$F$2:$G$48,2,FALSE)+ROW()-2)),\"\")","v":{"$error":"#N/A"}},{"$f":"IF(INDIRECT(\"c\" & (VLOOKUP(Rebalance!$D$54,$F$2:$G$48,2,FALSE)+ROW()-2))=Rebalance!$D$54,INDIRECT(\"a\" & (VLOOKUP(Rebalance!$D$54,$F$2:$G$48,2,FALSE)+ROW()-2)),\"\")","v":{"$error":"#N/A"}},{"$f":"IF(INDIRECT(\"c\" & (VLOOKUP(Rebalance!$D$55,$F$2:$G$48,2,FALSE)+ROW()-2))=Rebalance!$D$55,INDIRECT(\"a\" & (VLOOKUP(Rebalance!$D$55,$F$2:$G$48,2,FALSE)+ROW()-2)),\"\")","v":{"$error":"#N/A"}},{"$f":"IF(INDIRECT(\"c\" & (VLOOKUP(Rebalance!$D$56,$F$2:$G$48,2,FALSE)+ROW()-2))=Rebalance!$D$56,INDIRECT(\"a\" & (VLOOKUP(Rebalance!$D$56,$F$2:$G$48,2,FALSE)+ROW()-2)),\"\")","v":{"$error":"#N/A"}},{"$f":"IF(INDIRECT(\"c\" & (VLOOKUP(Rebalance!$D$57,$F$2:$G$48,2,FALSE)+ROW()-2))=Rebalance!$D$57,INDIRECT(\"a\" & (VLOOKUP(Rebalance!$D$57,$F$2:$G$48,2,FALSE)+ROW()-2)),\"\")","v":{"$error":"#N/A"}},{"$f":"IF(INDIRECT(\"c\" & (VLOOKUP(Rebalance!$D$58,$F$2:$G$48,2,FALSE)+ROW()-2))=Rebalance!$D$58,INDIRECT(\"a\" & (VLOOKUP(Rebalance!$D$58,$F$2:$G$48,2,FALSE)+ROW()-2)),\"\")","v":{"$error":"#N/A"}},{"$f":"IF(INDIRECT(\"c\" & (VLOOKUP(Rebalance!$D$59,$F$2:$G$48,2,FALSE)+ROW()-2))=Rebalance!$D$59,INDIRECT(\"a\" & (VLOOKUP(Rebalance!$D$59,$F$2:$G$48,2,FALSE)+ROW()-2)),\"\")","v":{"$error":"#N/A"}},{"$f":"IF(INDIRECT(\"c\" & (VLOOKUP(Rebalance!$D$60,$F$2:$G$48,2,FALSE)+ROW()-2))=Rebalance!$D$60,INDIRECT(\"a\" & (VLOOKUP(Rebalance!$D$60,$F$2:$G$48,2,FALSE)+ROW()-2)),\"\")","v":{"$error":"#N/A"}},{"$f":"IF(INDIRECT(\"c\" & (VLOOKUP(Rebalance!$D$61,$F$2:$G$48,2,FALSE)+ROW()-2))=Rebalance!$D$61,INDIRECT(\"a\" & (VLOOKUP(Rebalance!$D$61,$F$2:$G$48,2,FALSE)+ROW()-2)),\"\")","v":{"$error":"#N/A"}},{"$f":"IF(INDIRECT(\"c\" & (VLOOKUP(Rebalance!$D$62,$F$2:$G$48,2,FALSE)+ROW()-2))=Rebalance!$D$62,INDIRECT(\"a\" & (VLOOKUP(Rebalance!$D$62,$F$2:$G$48,2,FALSE)+ROW()-2)),\"\")","v":{"$error":"#N/A"}},{"$f":"IF(INDIRECT(\"c\" & (VLOOKUP(Rebalance!$D$63,$F$2:$G$48,2,FALSE)+ROW()-2))=Rebalance!$D$63,INDIRECT(\"a\" & (VLOOKUP(Rebalance!$D$63,$F$2:$G$48,2,FALSE)+ROW()-2)),\"\")","v":{"$error":"#N/A"}},{"$f":"IF(INDIRECT(\"c\" & (VLOOKUP(Rebalance!$D$64,$F$2:$G$48,2,FALSE)+ROW()-2))=Rebalance!$D$64,INDIRECT(\"a\" & (VLOOKUP(Rebalance!$D$64,$F$2:$G$48,2,FALSE)+ROW()-2)),\"\")","v":{"$error":"#N/A"}},{"$f":"IF(INDIRECT(\"c\" & (VLOOKUP(Rebalance!$D$65,$F$2:$G$48,2,FALSE)+ROW()-2))=Rebalance!$D$65,INDIRECT(\"a\" & (VLOOKUP(Rebalance!$D$65,$F$2:$G$48,2,FALSE)+ROW()-2)),\"\")","v":{"$error":"#N/A"}},{"$f":"IF(INDIRECT(\"c\" & (VLOOKUP(Rebalance!$D$66,$F$2:$G$48,2,FALSE)+ROW()-2))=Rebalance!$D$66,INDIRECT(\"a\" & (VLOOKUP(Rebalance!$D$66,$F$2:$G$48,2,FALSE)+ROW()-2)),\"\")","v":{"$error":"#N/A"}}]
["Nedgroup Inv Global Flexible Feeder Fund B2","NEIG","Nedgroup Collective Investments Ltd",{"$f":"ROW()","v":372},null,null,{"$f":"VLOOKUP(F372,$C$2:$D$599,2,FALSE)","v":{"$error":"#N/A"}},{"$f":"IF(INDIRECT(\"c\" & (VLOOKUP(Rebalance!$D$26,$F$2:$G$48,2,FALSE)+ROW()-2))=Rebalance!$D$26,INDIRECT(\"a\" & (VLOOKUP(Rebalance!$D$26,$F$2:$G$48,2,FALSE)+ROW()-2)),\"\")","v":{"$error":"#N/A"}},{"$f":"IF(INDIRECT(\"c\" & (VLOOKUP(Rebalance!$D$27,$F$2:$G$48,2,FALSE)+ROW()-2))=Rebalance!$D$27,INDIRECT(\"a\" & (VLOOKUP(Rebalance!$D$27,$F$2:$G$48,2,FALSE)+ROW()-2)),\"\")","v":{"$error":"#N/A"}},{"$f":"IF(INDIRECT(\"c\" & (VLOOKUP(Rebalance!$D$28,$F$2:$G$48,2,FALSE)+ROW()-2))=Rebalance!$D$28,INDIRECT(\"a\" & (VLOOKUP(Rebalance!$D$28,$F$2:$G$48,2,FALSE)+ROW()-2)),\"\")","v":{"$error":"#N/A"}},{"$f":"IF(INDIRECT(\"c\" & (VLOOKUP(Rebalance!$D$29,$F$2:$G$48,2,FALSE)+ROW()-2))=Rebalance!$D$29,INDIRECT(\"a\" & (VLOOKUP(Rebalance!$D$29,$F$2:$G$48,2,FALSE)+ROW()-2)),\"\")","v":{"$error":"#N/A"}},{"$f":"IF(INDIRECT(\"c\" & (VLOOKUP(Rebalance!$D$30,$F$2:$G$48,2,FALSE)+ROW()-2))=Rebalance!$D$30,INDIRECT(\"a\" & (VLOOKUP(Rebalance!$D$30,$F$2:$G$48,2,FALSE)+ROW()-2)),\"\")","v":{"$error":"#N/A"}},{"$f":"IF(INDIRECT(\"c\" & (VLOOKUP(Rebalance!$D$31,$F$2:$G$48,2,FALSE)+ROW()-2))=Rebalance!$D$31,INDIRECT(\"a\" & (VLOOKUP(Rebalance!$D$31,$F$2:$G$48,2,FALSE)+ROW()-2)),\"\")","v":{"$error":"#N/A"}},{"$f":"IF(INDIRECT(\"c\" & (VLOOKUP(Rebalance!$D$32,$F$2:$G$48,2,FALSE)+ROW()-2))=Rebalance!$D$32,INDIRECT(\"a\" & (VLOOKUP(Rebalance!$D$32,$F$2:$G$48,2,FALSE)+ROW()-2)),\"\")","v":{"$error":"#N/A"}},{"$f":"IF(INDIRECT(\"c\" & (VLOOKUP(Rebalance!$D$33,$F$2:$G$48,2,FALSE)+ROW()-2))=Rebalance!$D$33,INDIRECT(\"a\" & (VLOOKUP(Rebalance!$D$33,$F$2:$G$48,2,FALSE)+ROW()-2)),\"\")","v":{"$error":"#N/A"}},{"$f":"IF(INDIRECT(\"c\" & (VLOOKUP(Rebalance!$D$34,$F$2:$G$48,2,FALSE)+ROW()-2))=Rebalance!$D$34,INDIRECT(\"a\" & (VLOOKUP(Rebalance!$D$34,$F$2:$G$48,2,FALSE)+ROW()-2)),\"\")","v":{"$error":"#N/A"}},{"$f":"IF(INDIRECT(\"c\" & (VLOOKUP(Rebalance!$D$35,$F$2:$G$48,2,FALSE)+ROW()-2))=Rebalance!$D$35,INDIRECT(\"a\" & (VLOOKUP(Rebalance!$D$35,$F$2:$G$48,2,FALSE)+ROW()-2)),\"\")","v":{"$error":"#N/A"}},{"$f":"IF(INDIRECT(\"c\" & (VLOOKUP(Rebalance!$D$36,$F$2:$G$48,2,FALSE)+ROW()-2))=Rebalance!$D$36,INDIRECT(\"a\" & (VLOOKUP(Rebalance!$D$36,$F$2:$G$48,2,FALSE)+ROW()-2)),\"\")","v":{"$error":"#N/A"}},{"$f":"IF(INDIRECT(\"c\" & (VLOOKUP(Rebalance!$D$37,$F$2:$G$48,2,FALSE)+ROW()-2))=Rebalance!$D$37,INDIRECT(\"a\" & (VLOOKUP(Rebalance!$D$37,$F$2:$G$48,2,FALSE)+ROW()-2)),\"\")","v":{"$error":"#N/A"}},{"$f":"IF(INDIRECT(\"c\" & (VLOOKUP(Rebalance!$D$38,$F$2:$G$48,2,FALSE)+ROW()-2))=Rebalance!$D$38,INDIRECT(\"a\" & (VLOOKUP(Rebalance!$D$38,$F$2:$G$48,2,FALSE)+ROW()-2)),\"\")","v":{"$error":"#N/A"}},{"$f":"IF(INDIRECT(\"c\" & (VLOOKUP(Rebalance!$D$39,$F$2:$G$48,2,FALSE)+ROW()-2))=Rebalance!$D$39,INDIRECT(\"a\" & (VLOOKUP(Rebalance!$D$39,$F$2:$G$48,2,FALSE)+ROW()-2)),\"\")","v":{"$error":"#N/A"}},{"$f":"IF(INDIRECT(\"c\" & (VLOOKUP(Rebalance!$D$40,$F$2:$G$48,2,FALSE)+ROW()-2))=Rebalance!$D$40,INDIRECT(\"a\" & (VLOOKUP(Rebalance!$D$40,$F$2:$G$48,2,FALSE)+ROW()-2)),\"\")","v":{"$error":"#N/A"}},{"$f":"IF(INDIRECT(\"c\" & (VLOOKUP(Rebalance!$D$52,$F$2:$G$48,2,FALSE)+ROW()-2))=Rebalance!$D$52,INDIRECT(\"a\" & (VLOOKUP(Rebalance!$D$52,$F$2:$G$48,2,FALSE)+ROW()-2)),\"\")","v":{"$error":"#N/A"}},{"$f":"IF(INDIRECT(\"c\" & (VLOOKUP(Rebalance!$D$53,$F$2:$G$48,2,FALSE)+ROW()-2))=Rebalance!$D$53,INDIRECT(\"a\" & (VLOOKUP(Rebalance!$D$53,$F$2:$G$48,2,FALSE)+ROW()-2)),\"\")","v":{"$error":"#N/A"}},{"$f":"IF(INDIRECT(\"c\" & (VLOOKUP(Rebalance!$D$54,$F$2:$G$48,2,FALSE)+ROW()-2))=Rebalance!$D$54,INDIRECT(\"a\" & (VLOOKUP(Rebalance!$D$54,$F$2:$G$48,2,FALSE)+ROW()-2)),\"\")","v":{"$error":"#N/A"}},{"$f":"IF(INDIRECT(\"c\" & (VLOOKUP(Rebalance!$D$55,$F$2:$G$48,2,FALSE)+ROW()-2))=Rebalance!$D$55,INDIRECT(\"a\" & (VLOOKUP(Rebalance!$D$55,$F$2:$G$48,2,FALSE)+ROW()-2)),\"\")","v":{"$error":"#N/A"}},{"$f":"IF(INDIRECT(\"c\" & (VLOOKUP(Rebalance!$D$56,$F$2:$G$48,2,FALSE)+ROW()-2))=Rebalance!$D$56,INDIRECT(\"a\" & (VLOOKUP(Rebalance!$D$56,$F$2:$G$48,2,FALSE)+ROW()-2)),\"\")","v":{"$error":"#N/A"}},{"$f":"IF(INDIRECT(\"c\" & (VLOOKUP(Rebalance!$D$57,$F$2:$G$48,2,FALSE)+ROW()-2))=Rebalance!$D$57,INDIRECT(\"a\" & (VLOOKUP(Rebalance!$D$57,$F$2:$G$48,2,FALSE)+ROW()-2)),\"\")","v":{"$error":"#N/A"}},{"$f":"IF(INDIRECT(\"c\" & (VLOOKUP(Rebalance!$D$58,$F$2:$G$48,2,FALSE)+ROW()-2))=Rebalance!$D$58,INDIRECT(\"a\" & (VLOOKUP(Rebalance!$D$58,$F$2:$G$48,2,FALSE)+ROW()-2)),\"\")","v":{"$error":"#N/A"}},{"$f":"IF(INDIRECT(\"c\" & (VLOOKUP(Rebalance!$D$59,$F$2:$G$48,2,FALSE)+ROW()-2))=Rebalance!$D$59,INDIRECT(\"a\" & (VLOOKUP(Rebalance!$D$59,$F$2:$G$48,2,FALSE)+ROW()-2)),\"\")","v":{"$error":"#N/A"}},{"$f":"IF(INDIRECT(\"c\" & (VLOOKUP(Rebalance!$D$60,$F$2:$G$48,2,FALSE)+ROW()-2))=Rebalance!$D$60,INDIRECT(\"a\" & (VLOOKUP(Rebalance!$D$60,$F$2:$G$48,2,FALSE)+ROW()-2)),\"\")","v":{"$error":"#N/A"}},{"$f":"IF(INDIRECT(\"c\" & (VLOOKUP(Rebalance!$D$61,$F$2:$G$48,2,FALSE)+ROW()-2))=Rebalance!$D$61,INDIRECT(\"a\" & (VLOOKUP(Rebalance!$D$61,$F$2:$G$48,2,FALSE)+ROW()-2)),\"\")","v":{"$error":"#N/A"}},{"$f":"IF(INDIRECT(\"c\" & (VLOOKUP(Rebalance!$D$62,$F$2:$G$48,2,FALSE)+ROW()-2))=Rebalance!$D$62,INDIRECT(\"a\" & (VLOOKUP(Rebalance!$D$62,$F$2:$G$48,2,FALSE)+ROW()-2)),\"\")","v":{"$error":"#N/A"}},{"$f":"IF(INDIRECT(\"c\" & (VLOOKUP(Rebalance!$D$63,$F$2:$G$48,2,FALSE)+ROW()-2))=Rebalance!$D$63,INDIRECT(\"a\" & (VLOOKUP(Rebalance!$D$63,$F$2:$G$48,2,FALSE)+ROW()-2)),\"\")","v":{"$error":"#N/A"}},{"$f":"IF(INDIRECT(\"c\" & (VLOOKUP(Rebalance!$D$64,$F$2:$G$48,2,FALSE)+ROW()-2))=Rebalance!$D$64,INDIRECT(\"a\" & (VLOOKUP(Rebalance!$D$64,$F$2:$G$48,2,FALSE)+ROW()-2)),\"\")","v":{"$error":"#N/A"}},{"$f":"IF(INDIRECT(\"c\" & (VLOOKUP(Rebalance!$D$65,$F$2:$G$48,2,FALSE)+ROW()-2))=Rebalance!$D$65,INDIRECT(\"a\" & (VLOOKUP(Rebalance!$D$65,$F$2:$G$48,2,FALSE)+ROW()-2)),\"\")","v":{"$error":"#N/A"}},{"$f":"IF(INDIRECT(\"c\" & (VLOOKUP(Rebalance!$D$66,$F$2:$G$48,2,FALSE)+ROW()-2))=Rebalance!$D$66,INDIRECT(\"a\" & (VLOOKUP(Rebalance!$D$66,$F$2:$G$48,2,FALSE)+ROW()-2)),\"\")","v":{"$error":"#N/A"}}]
["Nedgroup Inv Global Flexible Feeder Fund R","NEIG","Nedgroup Collective Investments Ltd",{"$f":"ROW()","v":373},null,null,{"$f":"VLOOKUP(F373,$C$2:$D$599,2,FALSE)","v":{"$error":"#N/A"}},{"$f":"IF(INDIRECT(\"c\" & (VLOOKUP(Rebalance!$D$26,$F$2:$G$48,2,FALSE)+ROW()-2))=Rebalance!$D$26,INDIRECT(\"a\" & (VLOOKUP(Rebalance!$D$26,$F$2:$G$48,2,FALSE)+ROW()-2)),\"\")","v":{"$error":"#N/A"}},{"$f":"IF(INDIRECT(\"c\" & (VLOOKUP(Rebalance!$D$27,$F$2:$G$48,2,FALSE)+ROW()-2))=Rebalance!$D$27,INDIRECT(\"a\" & (VLOOKUP(Rebalance!$D$27,$F$2:$G$48,2,FALSE)+ROW()-2)),\"\")","v":{"$error":"#N/A"}},{"$f":"IF(INDIRECT(\"c\" & (VLOOKUP(Rebalance!$D$28,$F$2:$G$48,2,FALSE)+ROW()-2))=Rebalance!$D$28,INDIRECT(\"a\" & (VLOOKUP(Rebalance!$D$28,$F$2:$G$48,2,FALSE)+ROW()-2)),\"\")","v":{"$error":"#N/A"}},{"$f":"IF(INDIRECT(\"c\" & (VLOOKUP(Rebalance!$D$29,$F$2:$G$48,2,FALSE)+ROW()-2))=Rebalance!$D$29,INDIRECT(\"a\" & (VLOOKUP(Rebalance!$D$29,$F$2:$G$48,2,FALSE)+ROW()-2)),\"\")","v":{"$error":"#N/A"}},{"$f":"IF(INDIRECT(\"c\" & (VLOOKUP(Rebalance!$D$30,$F$2:$G$48,2,FALSE)+ROW()-2))=Rebalance!$D$30,INDIRECT(\"a\" & (VLOOKUP(Rebalance!$D$30,$F$2:$G$48,2,FALSE)+ROW()-2)),\"\")","v":{"$error":"#N/A"}},{"$f":"IF(INDIRECT(\"c\" & (VLOOKUP(Rebalance!$D$31,$F$2:$G$48,2,FALSE)+ROW()-2))=Rebalance!$D$31,INDIRECT(\"a\" & (VLOOKUP(Rebalance!$D$31,$F$2:$G$48,2,FALSE)+ROW()-2)),\"\")","v":{"$error":"#N/A"}},{"$f":"IF(INDIRECT(\"c\" & (VLOOKUP(Rebalance!$D$32,$F$2:$G$48,2,FALSE)+ROW()-2))=Rebalance!$D$32,INDIRECT(\"a\" & (VLOOKUP(Rebalance!$D$32,$F$2:$G$48,2,FALSE)+ROW()-2)),\"\")","v":{"$error":"#N/A"}},{"$f":"IF(INDIRECT(\"c\" & (VLOOKUP(Rebalance!$D$33,$F$2:$G$48,2,FALSE)+ROW()-2))=Rebalance!$D$33,INDIRECT(\"a\" & (VLOOKUP(Rebalance!$D$33,$F$2:$G$48,2,FALSE)+ROW()-2)),\"\")","v":{"$error":"#N/A"}},{"$f":"IF(INDIRECT(\"c\" & (VLOOKUP(Rebalance!$D$34,$F$2:$G$48,2,FALSE)+ROW()-2))=Rebalance!$D$34,INDIRECT(\"a\" & (VLOOKUP(Rebalance!$D$34,$F$2:$G$48,2,FALSE)+ROW()-2)),\"\")","v":{"$error":"#N/A"}},{"$f":"IF(INDIRECT(\"c\" & (VLOOKUP(Rebalance!$D$35,$F$2:$G$48,2,FALSE)+ROW()-2))=Rebalance!$D$35,INDIRECT(\"a\" & (VLOOKUP(Rebalance!$D$35,$F$2:$G$48,2,FALSE)+ROW()-2)),\"\")","v":{"$error":"#N/A"}},{"$f":"IF(INDIRECT(\"c\" & (VLOOKUP(Rebalance!$D$36,$F$2:$G$48,2,FALSE)+ROW()-2))=Rebalance!$D$36,INDIRECT(\"a\" & (VLOOKUP(Rebalance!$D$36,$F$2:$G$48,2,FALSE)+ROW()-2)),\"\")","v":{"$error":"#N/A"}},{"$f":"IF(INDIRECT(\"c\" & (VLOOKUP(Rebalance!$D$37,$F$2:$G$48,2,FALSE)+ROW()-2))=Rebalance!$D$37,INDIRECT(\"a\" & (VLOOKUP(Rebalance!$D$37,$F$2:$G$48,2,FALSE)+ROW()-2)),\"\")","v":{"$error":"#N/A"}},{"$f":"IF(INDIRECT(\"c\" & (VLOOKUP(Rebalance!$D$38,$F$2:$G$48,2,FALSE)+ROW()-2))=Rebalance!$D$38,INDIRECT(\"a\" & (VLOOKUP(Rebalance!$D$38,$F$2:$G$48,2,FALSE)+ROW()-2)),\"\")","v":{"$error":"#N/A"}},{"$f":"IF(INDIRECT(\"c\" & (VLOOKUP(Rebalance!$D$39,$F$2:$G$48,2,FALSE)+ROW()-2))=Rebalance!$D$39,INDIRECT(\"a\" & (VLOOKUP(Rebalance!$D$39,$F$2:$G$48,2,FALSE)+ROW()-2)),\"\")","v":{"$error":"#N/A"}},{"$f":"IF(INDIRECT(\"c\" & (VLOOKUP(Rebalance!$D$40,$F$2:$G$48,2,FALSE)+ROW()-2))=Rebalance!$D$40,INDIRECT(\"a\" & (VLOOKUP(Rebalance!$D$40,$F$2:$G$48,2,FALSE)+ROW()-2)),\"\")","v":{"$error":"#N/A"}},{"$f":"IF(INDIRECT(\"c\" & (VLOOKUP(Rebalance!$D$52,$F$2:$G$48,2,FALSE)+ROW()-2))=Rebalance!$D$52,INDIRECT(\"a\" & (VLOOKUP(Rebalance!$D$52,$F$2:$G$48,2,FALSE)+ROW()-2)),\"\")","v":{"$error":"#N/A"}},{"$f":"IF(INDIRECT(\"c\" & (VLOOKUP(Rebalance!$D$53,$F$2:$G$48,2,FALSE)+ROW()-2))=Rebalance!$D$53,INDIRECT(\"a\" & (VLOOKUP(Rebalance!$D$53,$F$2:$G$48,2,FALSE)+ROW()-2)),\"\")","v":{"$error":"#N/A"}},{"$f":"IF(INDIRECT(\"c\" & (VLOOKUP(Rebalance!$D$54,$F$2:$G$48,2,FALSE)+ROW()-2))=Rebalance!$D$54,INDIRECT(\"a\" & (VLOOKUP(Rebalance!$D$54,$F$2:$G$48,2,FALSE)+ROW()-2)),\"\")","v":{"$error":"#N/A"}},{"$f":"IF(INDIRECT(\"c\" & (VLOOKUP(Rebalance!$D$55,$F$2:$G$48,2,FALSE)+ROW()-2))=Rebalance!$D$55,INDIRECT(\"a\" & (VLOOKUP(Rebalance!$D$55,$F$2:$G$48,2,FALSE)+ROW()-2)),\"\")","v":{"$error":"#N/A"}},{"$f":"IF(INDIRECT(\"c\" & (VLOOKUP(Rebalance!$D$56,$F$2:$G$48,2,FALSE)+ROW()-2))=Rebalance!$D$56,INDIRECT(\"a\" & (VLOOKUP(Rebalance!$D$56,$F$2:$G$48,2,FALSE)+ROW()-2)),\"\")","v":{"$error":"#N/A"}},{"$f":"IF(INDIRECT(\"c\" & (VLOOKUP(Rebalance!$D$57,$F$2:$G$48,2,FALSE)+ROW()-2))=Rebalance!$D$57,INDIRECT(\"a\" & (VLOOKUP(Rebalance!$D$57,$F$2:$G$48,2,FALSE)+ROW()-2)),\"\")","v":{"$error":"#N/A"}},{"$f":"IF(INDIRECT(\"c\" & (VLOOKUP(Rebalance!$D$58,$F$2:$G$48,2,FALSE)+ROW()-2))=Rebalance!$D$58,INDIRECT(\"a\" & (VLOOKUP(Rebalance!$D$58,$F$2:$G$48,2,FALSE)+ROW()-2)),\"\")","v":{"$error":"#N/A"}},{"$f":"IF(INDIRECT(\"c\" & (VLOOKUP(Rebalance!$D$59,$F$2:$G$48,2,FALSE)+ROW()-2))=Rebalance!$D$59,INDIRECT(\"a\" & (VLOOKUP(Rebalance!$D$59,$F$2:$G$48,2,FALSE)+ROW()-2)),\"\")","v":{"$error":"#N/A"}},{"$f":"IF(INDIRECT(\"c\" & (VLOOKUP(Rebalance!$D$60,$F$2:$G$48,2,FALSE)+ROW()-2))=Rebalance!$D$60,INDIRECT(\"a\" & (VLOOKUP(Rebalance!$D$60,$F$2:$G$48,2,FALSE)+ROW()-2)),\"\")","v":{"$error":"#N/A"}},{"$f":"IF(INDIRECT(\"c\" & (VLOOKUP(Rebalance!$D$61,$F$2:$G$48,2,FALSE)+ROW()-2))=Rebalance!$D$61,INDIRECT(\"a\" & (VLOOKUP(Rebalance!$D$61,$F$2:$G$48,2,FALSE)+ROW()-2)),\"\")","v":{"$error":"#N/A"}},{"$f":"IF(INDIRECT(\"c\" & (VLOOKUP(Rebalance!$D$62,$F$2:$G$48,2,FALSE)+ROW()-2))=Rebalance!$D$62,INDIRECT(\"a\" & (VLOOKUP(Rebalance!$D$62,$F$2:$G$48,2,FALSE)+ROW()-2)),\"\")","v":{"$error":"#N/A"}},{"$f":"IF(INDIRECT(\"c\" & (VLOOKUP(Rebalance!$D$63,$F$2:$G$48,2,FALSE)+ROW()-2))=Rebalance!$D$63,INDIRECT(\"a\" & (VLOOKUP(Rebalance!$D$63,$F$2:$G$48,2,FALSE)+ROW()-2)),\"\")","v":{"$error":"#N/A"}},{"$f":"IF(INDIRECT(\"c\" & (VLOOKUP(Rebalance!$D$64,$F$2:$G$48,2,FALSE)+ROW()-2))=Rebalance!$D$64,INDIRECT(\"a\" & (VLOOKUP(Rebalance!$D$64,$F$2:$G$48,2,FALSE)+ROW()-2)),\"\")","v":{"$error":"#N/A"}},{"$f":"IF(INDIRECT(\"c\" & (VLOOKUP(Rebalance!$D$65,$F$2:$G$48,2,FALSE)+ROW()-2))=Rebalance!$D$65,INDIRECT(\"a\" & (VLOOKUP(Rebalance!$D$65,$F$2:$G$48,2,FALSE)+ROW()-2)),\"\")","v":{"$error":"#N/A"}},{"$f":"IF(INDIRECT(\"c\" & (VLOOKUP(Rebalance!$D$66,$F$2:$G$48,2,FALSE)+ROW()-2))=Rebalance!$D$66,INDIRECT(\"a\" & (VLOOKUP(Rebalance!$D$66,$F$2:$G$48,2,FALSE)+ROW()-2)),\"\")","v":{"$error":"#N/A"}}]
["Nedgroup Investments Global Property Feeder Fund B","NEFCB","Nedgroup Collective Investments Ltd",{"$f":"ROW()","v":374},null,null,{"$f":"VLOOKUP(F374,$C$2:$D$599,2,FALSE)","v":{"$error":"#N/A"}},{"$f":"IF(INDIRECT(\"c\" & (VLOOKUP(Rebalance!$D$26,$F$2:$G$48,2,FALSE)+ROW()-2))=Rebalance!$D$26,INDIRECT(\"a\" & (VLOOKUP(Rebalance!$D$26,$F$2:$G$48,2,FALSE)+ROW()-2)),\"\")","v":{"$error":"#N/A"}},{"$f":"IF(INDIRECT(\"c\" & (VLOOKUP(Rebalance!$D$27,$F$2:$G$48,2,FALSE)+ROW()-2))=Rebalance!$D$27,INDIRECT(\"a\" & (VLOOKUP(Rebalance!$D$27,$F$2:$G$48,2,FALSE)+ROW()-2)),\"\")","v":{"$error":"#N/A"}},{"$f":"IF(INDIRECT(\"c\" & (VLOOKUP(Rebalance!$D$28,$F$2:$G$48,2,FALSE)+ROW()-2))=Rebalance!$D$28,INDIRECT(\"a\" & (VLOOKUP(Rebalance!$D$28,$F$2:$G$48,2,FALSE)+ROW()-2)),\"\")","v":{"$error":"#N/A"}},{"$f":"IF(INDIRECT(\"c\" & (VLOOKUP(Rebalance!$D$29,$F$2:$G$48,2,FALSE)+ROW()-2))=Rebalance!$D$29,INDIRECT(\"a\" & (VLOOKUP(Rebalance!$D$29,$F$2:$G$48,2,FALSE)+ROW()-2)),\"\")","v":{"$error":"#N/A"}},{"$f":"IF(INDIRECT(\"c\" & (VLOOKUP(Rebalance!$D$30,$F$2:$G$48,2,FALSE)+ROW()-2))=Rebalance!$D$30,INDIRECT(\"a\" & (VLOOKUP(Rebalance!$D$30,$F$2:$G$48,2,FALSE)+ROW()-2)),\"\")","v":{"$error":"#N/A"}},{"$f":"IF(INDIRECT(\"c\" & (VLOOKUP(Rebalance!$D$31,$F$2:$G$48,2,FALSE)+ROW()-2))=Rebalance!$D$31,INDIRECT(\"a\" & (VLOOKUP(Rebalance!$D$31,$F$2:$G$48,2,FALSE)+ROW()-2)),\"\")","v":{"$error":"#N/A"}},{"$f":"IF(INDIRECT(\"c\" & (VLOOKUP(Rebalance!$D$32,$F$2:$G$48,2,FALSE)+ROW()-2))=Rebalance!$D$32,INDIRECT(\"a\" & (VLOOKUP(Rebalance!$D$32,$F$2:$G$48,2,FALSE)+ROW()-2)),\"\")","v":{"$error":"#N/A"}},{"$f":"IF(INDIRECT(\"c\" & (VLOOKUP(Rebalance!$D$33,$F$2:$G$48,2,FALSE)+ROW()-2))=Rebalance!$D$33,INDIRECT(\"a\" & (VLOOKUP(Rebalance!$D$33,$F$2:$G$48,2,FALSE)+ROW()-2)),\"\")","v":{"$error":"#N/A"}},{"$f":"IF(INDIRECT(\"c\" & (VLOOKUP(Rebalance!$D$34,$F$2:$G$48,2,FALSE)+ROW()-2))=Rebalance!$D$34,INDIRECT(\"a\" & (VLOOKUP(Rebalance!$D$34,$F$2:$G$48,2,FALSE)+ROW()-2)),\"\")","v":{"$error":"#N/A"}},{"$f":"IF(INDIRECT(\"c\" & (VLOOKUP(Rebalance!$D$35,$F$2:$G$48,2,FALSE)+ROW()-2))=Rebalance!$D$35,INDIRECT(\"a\" & (VLOOKUP(Rebalance!$D$35,$F$2:$G$48,2,FALSE)+ROW()-2)),\"\")","v":{"$error":"#N/A"}},{"$f":"IF(INDIRECT(\"c\" & (VLOOKUP(Rebalance!$D$36,$F$2:$G$48,2,FALSE)+ROW()-2))=Rebalance!$D$36,INDIRECT(\"a\" & (VLOOKUP(Rebalance!$D$36,$F$2:$G$48,2,FALSE)+ROW()-2)),\"\")","v":{"$error":"#N/A"}},{"$f":"IF(INDIRECT(\"c\" & (VLOOKUP(Rebalance!$D$37,$F$2:$G$48,2,FALSE)+ROW()-2))=Rebalance!$D$37,INDIRECT(\"a\" & (VLOOKUP(Rebalance!$D$37,$F$2:$G$48,2,FALSE)+ROW()-2)),\"\")","v":{"$error":"#N/A"}},{"$f":"IF(INDIRECT(\"c\" & (VLOOKUP(Rebalance!$D$38,$F$2:$G$48,2,FALSE)+ROW()-2))=Rebalance!$D$38,INDIRECT(\"a\" & (VLOOKUP(Rebalance!$D$38,$F$2:$G$48,2,FALSE)+ROW()-2)),\"\")","v":{"$error":"#N/A"}},{"$f":"IF(INDIRECT(\"c\" & (VLOOKUP(Rebalance!$D$39,$F$2:$G$48,2,FALSE)+ROW()-2))=Rebalance!$D$39,INDIRECT(\"a\" & (VLOOKUP(Rebalance!$D$39,$F$2:$G$48,2,FALSE)+ROW()-2)),\"\")","v":{"$error":"#N/A"}},{"$f":"IF(INDIRECT(\"c\" & (VLOOKUP(Rebalance!$D$40,$F$2:$G$48,2,FALSE)+ROW()-2))=Rebalance!$D$40,INDIRECT(\"a\" & (VLOOKUP(Rebalance!$D$40,$F$2:$G$48,2,FALSE)+ROW()-2)),\"\")","v":{"$error":"#N/A"}},{"$f":"IF(INDIRECT(\"c\" & (VLOOKUP(Rebalance!$D$52,$F$2:$G$48,2,FALSE)+ROW()-2))=Rebalance!$D$52,INDIRECT(\"a\" & (VLOOKUP(Rebalance!$D$52,$F$2:$G$48,2,FALSE)+ROW()-2)),\"\")","v":{"$error":"#N/A"}},{"$f":"IF(INDIRECT(\"c\" & (VLOOKUP(Rebalance!$D$53,$F$2:$G$48,2,FALSE)+ROW()-2))=Rebalance!$D$53,INDIRECT(\"a\" & (VLOOKUP(Rebalance!$D$53,$F$2:$G$48,2,FALSE)+ROW()-2)),\"\")","v":{"$error":"#N/A"}},{"$f":"IF(INDIRECT(\"c\" & (VLOOKUP(Rebalance!$D$54,$F$2:$G$48,2,FALSE)+ROW()-2))=Rebalance!$D$54,INDIRECT(\"a\" & (VLOOKUP(Rebalance!$D$54,$F$2:$G$48,2,FALSE)+ROW()-2)),\"\")","v":{"$error":"#N/A"}},{"$f":"IF(INDIRECT(\"c\" & (VLOOKUP(Rebalance!$D$55,$F$2:$G$48,2,FALSE)+ROW()-2))=Rebalance!$D$55,INDIRECT(\"a\" & (VLOOKUP(Rebalance!$D$55,$F$2:$G$48,2,FALSE)+ROW()-2)),\"\")","v":{"$error":"#N/A"}},{"$f":"IF(INDIRECT(\"c\" & (VLOOKUP(Rebalance!$D$56,$F$2:$G$48,2,FALSE)+ROW()-2))=Rebalance!$D$56,INDIRECT(\"a\" & (VLOOKUP(Rebalance!$D$56,$F$2:$G$48,2,FALSE)+ROW()-2)),\"\")","v":{"$error":"#N/A"}},{"$f":"IF(INDIRECT(\"c\" & (VLOOKUP(Rebalance!$D$57,$F$2:$G$48,2,FALSE)+ROW()-2))=Rebalance!$D$57,INDIRECT(\"a\" & (VLOOKUP(Rebalance!$D$57,$F$2:$G$48,2,FALSE)+ROW()-2)),\"\")","v":{"$error":"#N/A"}},{"$f":"IF(INDIRECT(\"c\" & (VLOOKUP(Rebalance!$D$58,$F$2:$G$48,2,FALSE)+ROW()-2))=Rebalance!$D$58,INDIRECT(\"a\" & (VLOOKUP(Rebalance!$D$58,$F$2:$G$48,2,FALSE)+ROW()-2)),\"\")","v":{"$error":"#N/A"}},{"$f":"IF(INDIRECT(\"c\" & (VLOOKUP(Rebalance!$D$59,$F$2:$G$48,2,FALSE)+ROW()-2))=Rebalance!$D$59,INDIRECT(\"a\" & (VLOOKUP(Rebalance!$D$59,$F$2:$G$48,2,FALSE)+ROW()-2)),\"\")","v":{"$error":"#N/A"}},{"$f":"IF(INDIRECT(\"c\" & (VLOOKUP(Rebalance!$D$60,$F$2:$G$48,2,FALSE)+ROW()-2))=Rebalance!$D$60,INDIRECT(\"a\" & (VLOOKUP(Rebalance!$D$60,$F$2:$G$48,2,FALSE)+ROW()-2)),\"\")","v":{"$error":"#N/A"}},{"$f":"IF(INDIRECT(\"c\" & (VLOOKUP(Rebalance!$D$61,$F$2:$G$48,2,FALSE)+ROW()-2))=Rebalance!$D$61,INDIRECT(\"a\" & (VLOOKUP(Rebalance!$D$61,$F$2:$G$48,2,FALSE)+ROW()-2)),\"\")","v":{"$error":"#N/A"}},{"$f":"IF(INDIRECT(\"c\" & (VLOOKUP(Rebalance!$D$62,$F$2:$G$48,2,FALSE)+ROW()-2))=Rebalance!$D$62,INDIRECT(\"a\" & (VLOOKUP(Rebalance!$D$62,$F$2:$G$48,2,FALSE)+ROW()-2)),\"\")","v":{"$error":"#N/A"}},{"$f":"IF(INDIRECT(\"c\" & (VLOOKUP(Rebalance!$D$63,$F$2:$G$48,2,FALSE)+ROW()-2))=Rebalance!$D$63,INDIRECT(\"a\" & (VLOOKUP(Rebalance!$D$63,$F$2:$G$48,2,FALSE)+ROW()-2)),\"\")","v":{"$error":"#N/A"}},{"$f":"IF(INDIRECT(\"c\" & (VLOOKUP(Rebalance!$D$64,$F$2:$G$48,2,FALSE)+ROW()-2))=Rebalance!$D$64,INDIRECT(\"a\" & (VLOOKUP(Rebalance!$D$64,$F$2:$G$48,2,FALSE)+ROW()-2)),\"\")","v":{"$error":"#N/A"}},{"$f":"IF(INDIRECT(\"c\" & (VLOOKUP(Rebalance!$D$65,$F$2:$G$48,2,FALSE)+ROW()-2))=Rebalance!$D$65,INDIRECT(\"a\" & (VLOOKUP(Rebalance!$D$65,$F$2:$G$48,2,FALSE)+ROW()-2)),\"\")","v":{"$error":"#N/A"}},{"$f":"IF(INDIRECT(\"c\" & (VLOOKUP(Rebalance!$D$66,$F$2:$G$48,2,FALSE)+ROW()-2))=Rebalance!$D$66,INDIRECT(\"a\" & (VLOOKUP(Rebalance!$D$66,$F$2:$G$48,2,FALSE)+ROW()-2)),\"\")","v":{"$error":"#N/A"}}]
["Nedgroup Inv Opportunity Fund B2","NIOB","Nedgroup Collective Investments Ltd",{"$f":"ROW()","v":375},null,null,{"$f":"VLOOKUP(F375,$C$2:$D$599,2,FALSE)","v":{"$error":"#N/A"}},{"$f":"IF(INDIRECT(\"c\" & (VLOOKUP(Rebalance!$D$26,$F$2:$G$48,2,FALSE)+ROW()-2))=Rebalance!$D$26,INDIRECT(\"a\" & (VLOOKUP(Rebalance!$D$26,$F$2:$G$48,2,FALSE)+ROW()-2)),\"\")","v":{"$error":"#N/A"}},{"$f":"IF(INDIRECT(\"c\" & (VLOOKUP(Rebalance!$D$27,$F$2:$G$48,2,FALSE)+ROW()-2))=Rebalance!$D$27,INDIRECT(\"a\" & (VLOOKUP(Rebalance!$D$27,$F$2:$G$48,2,FALSE)+ROW()-2)),\"\")","v":{"$error":"#N/A"}},{"$f":"IF(INDIRECT(\"c\" & (VLOOKUP(Rebalance!$D$28,$F$2:$G$48,2,FALSE)+ROW()-2))=Rebalance!$D$28,INDIRECT(\"a\" & (VLOOKUP(Rebalance!$D$28,$F$2:$G$48,2,FALSE)+ROW()-2)),\"\")","v":{"$error":"#N/A"}},{"$f":"IF(INDIRECT(\"c\" & (VLOOKUP(Rebalance!$D$29,$F$2:$G$48,2,FALSE)+ROW()-2))=Rebalance!$D$29,INDIRECT(\"a\" & (VLOOKUP(Rebalance!$D$29,$F$2:$G$48,2,FALSE)+ROW()-2)),\"\")","v":{"$error":"#N/A"}},{"$f":"IF(INDIRECT(\"c\" & (VLOOKUP(Rebalance!$D$30,$F$2:$G$48,2,FALSE)+ROW()-2))=Rebalance!$D$30,INDIRECT(\"a\" & (VLOOKUP(Rebalance!$D$30,$F$2:$G$48,2,FALSE)+ROW()-2)),\"\")","v":{"$error":"#N/A"}},{"$f":"IF(INDIRECT(\"c\" & (VLOOKUP(Rebalance!$D$31,$F$2:$G$48,2,FALSE)+ROW()-2))=Rebalance!$D$31,INDIRECT(\"a\" & (VLOOKUP(Rebalance!$D$31,$F$2:$G$48,2,FALSE)+ROW()-2)),\"\")","v":{"$error":"#N/A"}},{"$f":"IF(INDIRECT(\"c\" & (VLOOKUP(Rebalance!$D$32,$F$2:$G$48,2,FALSE)+ROW()-2))=Rebalance!$D$32,INDIRECT(\"a\" & (VLOOKUP(Rebalance!$D$32,$F$2:$G$48,2,FALSE)+ROW()-2)),\"\")","v":{"$error":"#N/A"}},{"$f":"IF(INDIRECT(\"c\" & (VLOOKUP(Rebalance!$D$33,$F$2:$G$48,2,FALSE)+ROW()-2))=Rebalance!$D$33,INDIRECT(\"a\" & (VLOOKUP(Rebalance!$D$33,$F$2:$G$48,2,FALSE)+ROW()-2)),\"\")","v":{"$error":"#N/A"}},{"$f":"IF(INDIRECT(\"c\" & (VLOOKUP(Rebalance!$D$34,$F$2:$G$48,2,FALSE)+ROW()-2))=Rebalance!$D$34,INDIRECT(\"a\" & (VLOOKUP(Rebalance!$D$34,$F$2:$G$48,2,FALSE)+ROW()-2)),\"\")","v":{"$error":"#N/A"}},{"$f":"IF(INDIRECT(\"c\" & (VLOOKUP(Rebalance!$D$35,$F$2:$G$48,2,FALSE)+ROW()-2))=Rebalance!$D$35,INDIRECT(\"a\" & (VLOOKUP(Rebalance!$D$35,$F$2:$G$48,2,FALSE)+ROW()-2)),\"\")","v":{"$error":"#N/A"}},{"$f":"IF(INDIRECT(\"c\" & (VLOOKUP(Rebalance!$D$36,$F$2:$G$48,2,FALSE)+ROW()-2))=Rebalance!$D$36,INDIRECT(\"a\" & (VLOOKUP(Rebalance!$D$36,$F$2:$G$48,2,FALSE)+ROW()-2)),\"\")","v":{"$error":"#N/A"}},{"$f":"IF(INDIRECT(\"c\" & (VLOOKUP(Rebalance!$D$37,$F$2:$G$48,2,FALSE)+ROW()-2))=Rebalance!$D$37,INDIRECT(\"a\" & (VLOOKUP(Rebalance!$D$37,$F$2:$G$48,2,FALSE)+ROW()-2)),\"\")","v":{"$error":"#N/A"}},{"$f":"IF(INDIRECT(\"c\" & (VLOOKUP(Rebalance!$D$38,$F$2:$G$48,2,FALSE)+ROW()-2))=Rebalance!$D$38,INDIRECT(\"a\" & (VLOOKUP(Rebalance!$D$38,$F$2:$G$48,2,FALSE)+ROW()-2)),\"\")","v":{"$error":"#N/A"}},{"$f":"IF(INDIRECT(\"c\" & (VLOOKUP(Rebalance!$D$39,$F$2:$G$48,2,FALSE)+ROW()-2))=Rebalance!$D$39,INDIRECT(\"a\" & (VLOOKUP(Rebalance!$D$39,$F$2:$G$48,2,FALSE)+ROW()-2)),\"\")","v":{"$error":"#N/A"}},{"$f":"IF(INDIRECT(\"c\" & (VLOOKUP(Rebalance!$D$40,$F$2:$G$48,2,FALSE)+ROW()-2))=Rebalance!$D$40,INDIRECT(\"a\" & (VLOOKUP(Rebalance!$D$40,$F$2:$G$48,2,FALSE)+ROW()-2)),\"\")","v":{"$error":"#N/A"}},{"$f":"IF(INDIRECT(\"c\" & (VLOOKUP(Rebalance!$D$52,$F$2:$G$48,2,FALSE)+ROW()-2))=Rebalance!$D$52,INDIRECT(\"a\" & (VLOOKUP(Rebalance!$D$52,$F$2:$G$48,2,FALSE)+ROW()-2)),\"\")","v":{"$error":"#N/A"}},{"$f":"IF(INDIRECT(\"c\" & (VLOOKUP(Rebalance!$D$53,$F$2:$G$48,2,FALSE)+ROW()-2))=Rebalance!$D$53,INDIRECT(\"a\" & (VLOOKUP(Rebalance!$D$53,$F$2:$G$48,2,FALSE)+ROW()-2)),\"\")","v":{"$error":"#N/A"}},{"$f":"IF(INDIRECT(\"c\" & (VLOOKUP(Rebalance!$D$54,$F$2:$G$48,2,FALSE)+ROW()-2))=Rebalance!$D$54,INDIRECT(\"a\" & (VLOOKUP(Rebalance!$D$54,$F$2:$G$48,2,FALSE)+ROW()-2)),\"\")","v":{"$error":"#N/A"}},{"$f":"IF(INDIRECT(\"c\" & (VLOOKUP(Rebalance!$D$55,$F$2:$G$48,2,FALSE)+ROW()-2))=Rebalance!$D$55,INDIRECT(\"a\" & (VLOOKUP(Rebalance!$D$55,$F$2:$G$48,2,FALSE)+ROW()-2)),\"\")","v":{"$error":"#N/A"}},{"$f":"IF(INDIRECT(\"c\" & (VLOOKUP(Rebalance!$D$56,$F$2:$G$48,2,FALSE)+ROW()-2))=Rebalance!$D$56,INDIRECT(\"a\" & (VLOOKUP(Rebalance!$D$56,$F$2:$G$48,2,FALSE)+ROW()-2)),\"\")","v":{"$error":"#N/A"}},{"$f":"IF(INDIRECT(\"c\" & (VLOOKUP(Rebalance!$D$57,$F$2:$G$48,2,FALSE)+ROW()-2))=Rebalance!$D$57,INDIRECT(\"a\" & (VLOOKUP(Rebalance!$D$57,$F$2:$G$48,2,FALSE)+ROW()-2)),\"\")","v":{"$error":"#N/A"}},{"$f":"IF(INDIRECT(\"c\" & (VLOOKUP(Rebalance!$D$58,$F$2:$G$48,2,FALSE)+ROW()-2))=Rebalance!$D$58,INDIRECT(\"a\" & (VLOOKUP(Rebalance!$D$58,$F$2:$G$48,2,FALSE)+ROW()-2)),\"\")","v":{"$error":"#N/A"}},{"$f":"IF(INDIRECT(\"c\" & (VLOOKUP(Rebalance!$D$59,$F$2:$G$48,2,FALSE)+ROW()-2))=Rebalance!$D$59,INDIRECT(\"a\" & (VLOOKUP(Rebalance!$D$59,$F$2:$G$48,2,FALSE)+ROW()-2)),\"\")","v":{"$error":"#N/A"}},{"$f":"IF(INDIRECT(\"c\" & (VLOOKUP(Rebalance!$D$60,$F$2:$G$48,2,FALSE)+ROW()-2))=Rebalance!$D$60,INDIRECT(\"a\" & (VLOOKUP(Rebalance!$D$60,$F$2:$G$48,2,FALSE)+ROW()-2)),\"\")","v":{"$error":"#N/A"}},{"$f":"IF(INDIRECT(\"c\" & (VLOOKUP(Rebalance!$D$61,$F$2:$G$48,2,FALSE)+ROW()-2))=Rebalance!$D$61,INDIRECT(\"a\" & (VLOOKUP(Rebalance!$D$61,$F$2:$G$48,2,FALSE)+ROW()-2)),\"\")","v":{"$error":"#N/A"}},{"$f":"IF(INDIRECT(\"c\" & (VLOOKUP(Rebalance!$D$62,$F$2:$G$48,2,FALSE)+ROW()-2))=Rebalance!$D$62,INDIRECT(\"a\" & (VLOOKUP(Rebalance!$D$62,$F$2:$G$48,2,FALSE)+ROW()-2)),\"\")","v":{"$error":"#N/A"}},{"$f":"IF(INDIRECT(\"c\" & (VLOOKUP(Rebalance!$D$63,$F$2:$G$48,2,FALSE)+ROW()-2))=Rebalance!$D$63,INDIRECT(\"a\" & (VLOOKUP(Rebalance!$D$63,$F$2:$G$48,2,FALSE)+ROW()-2)),\"\")","v":{"$error":"#N/A"}},{"$f":"IF(INDIRECT(\"c\" & (VLOOKUP(Rebalance!$D$64,$F$2:$G$48,2,FALSE)+ROW()-2))=Rebalance!$D$64,INDIRECT(\"a\" & (VLOOKUP(Rebalance!$D$64,$F$2:$G$48,2,FALSE)+ROW()-2)),\"\")","v":{"$error":"#N/A"}},{"$f":"IF(INDIRECT(\"c\" & (VLOOKUP(Rebalance!$D$65,$F$2:$G$48,2,FALSE)+ROW()-2))=Rebalance!$D$65,INDIRECT(\"a\" & (VLOOKUP(Rebalance!$D$65,$F$2:$G$48,2,FALSE)+ROW()-2)),\"\")","v":{"$error":"#N/A"}},{"$f":"IF(INDIRECT(\"c\" & (VLOOKUP(Rebalance!$D$66,$F$2:$G$48,2,FALSE)+ROW()-2))=Rebalance!$D$66,INDIRECT(\"a\" & (VLOOKUP(Rebalance!$D$66,$F$2:$G$48,2,FALSE)+ROW()-2)),\"\")","v":{"$error":"#N/A"}}]
["Nedgroup Inv Opportunity Fund B2","NIOB","Nedgroup Collective Investments Ltd",{"$f":"ROW()","v":376},null,null,{"$f":"VLOOKUP(F376,$C$2:$D$599,2,FALSE)","v":{"$error":"#N/A"}},{"$f":"IF(INDIRECT(\"c\" & (VLOOKUP(Rebalance!$D$26,$F$2:$G$48,2,FALSE)+ROW()-2))=Rebalance!$D$26,INDIRECT(\"a\" & (VLOOKUP(Rebalance!$D$26,$F$2:$G$48,2,FALSE)+ROW()-2)),\"\")","v":{"$error":"#N/A"}},{"$f":"IF(INDIRECT(\"c\" & (VLOOKUP(Rebalance!$D$27,$F$2:$G$48,2,FALSE)+ROW()-2))=Rebalance!$D$27,INDIRECT(\"a\" & (VLOOKUP(Rebalance!$D$27,$F$2:$G$48,2,FALSE)+ROW()-2)),\"\")","v":{"$error":"#N/A"}},{"$f":"IF(INDIRECT(\"c\" & (VLOOKUP(Rebalance!$D$28,$F$2:$G$48,2,FALSE)+ROW()-2))=Rebalance!$D$28,INDIRECT(\"a\" & (VLOOKUP(Rebalance!$D$28,$F$2:$G$48,2,FALSE)+ROW()-2)),\"\")","v":{"$error":"#N/A"}},{"$f":"IF(INDIRECT(\"c\" & (VLOOKUP(Rebalance!$D$29,$F$2:$G$48,2,FALSE)+ROW()-2))=Rebalance!$D$29,INDIRECT(\"a\" & (VLOOKUP(Rebalance!$D$29,$F$2:$G$48,2,FALSE)+ROW()-2)),\"\")","v":{"$error":"#N/A"}},{"$f":"IF(INDIRECT(\"c\" & (VLOOKUP(Rebalance!$D$30,$F$2:$G$48,2,FALSE)+ROW()-2))=Rebalance!$D$30,INDIRECT(\"a\" & (VLOOKUP(Rebalance!$D$30,$F$2:$G$48,2,FALSE)+ROW()-2)),\"\")","v":{"$error":"#N/A"}},{"$f":"IF(INDIRECT(\"c\" & (VLOOKUP(Rebalance!$D$31,$F$2:$G$48,2,FALSE)+ROW()-2))=Rebalance!$D$31,INDIRECT(\"a\" & (VLOOKUP(Rebalance!$D$31,$F$2:$G$48,2,FALSE)+ROW()-2)),\"\")","v":{"$error":"#N/A"}},{"$f":"IF(INDIRECT(\"c\" & (VLOOKUP(Rebalance!$D$32,$F$2:$G$48,2,FALSE)+ROW()-2))=Rebalance!$D$32,INDIRECT(\"a\" & (VLOOKUP(Rebalance!$D$32,$F$2:$G$48,2,FALSE)+ROW()-2)),\"\")","v":{"$error":"#N/A"}},{"$f":"IF(INDIRECT(\"c\" & (VLOOKUP(Rebalance!$D$33,$F$2:$G$48,2,FALSE)+ROW()-2))=Rebalance!$D$33,INDIRECT(\"a\" & (VLOOKUP(Rebalance!$D$33,$F$2:$G$48,2,FALSE)+ROW()-2)),\"\")","v":{"$error":"#N/A"}},{"$f":"IF(INDIRECT(\"c\" & (VLOOKUP(Rebalance!$D$34,$F$2:$G$48,2,FALSE)+ROW()-2))=Rebalance!$D$34,INDIRECT(\"a\" & (VLOOKUP(Rebalance!$D$34,$F$2:$G$48,2,FALSE)+ROW()-2)),\"\")","v":{"$error":"#N/A"}},{"$f":"IF(INDIRECT(\"c\" & (VLOOKUP(Rebalance!$D$35,$F$2:$G$48,2,FALSE)+ROW()-2))=Rebalance!$D$35,INDIRECT(\"a\" & (VLOOKUP(Rebalance!$D$35,$F$2:$G$48,2,FALSE)+ROW()-2)),\"\")","v":{"$error":"#N/A"}},{"$f":"IF(INDIRECT(\"c\" & (VLOOKUP(Rebalance!$D$36,$F$2:$G$48,2,FALSE)+ROW()-2))=Rebalance!$D$36,INDIRECT(\"a\" & (VLOOKUP(Rebalance!$D$36,$F$2:$G$48,2,FALSE)+ROW()-2)),\"\")","v":{"$error":"#N/A"}},{"$f":"IF(INDIRECT(\"c\" & (VLOOKUP(Rebalance!$D$37,$F$2:$G$48,2,FALSE)+ROW()-2))=Rebalance!$D$37,INDIRECT(\"a\" & (VLOOKUP(Rebalance!$D$37,$F$2:$G$48,2,FALSE)+ROW()-2)),\"\")","v":{"$error":"#N/A"}},{"$f":"IF(INDIRECT(\"c\" & (VLOOKUP(Rebalance!$D$38,$F$2:$G$48,2,FALSE)+ROW()-2))=Rebalance!$D$38,INDIRECT(\"a\" & (VLOOKUP(Rebalance!$D$38,$F$2:$G$48,2,FALSE)+ROW()-2)),\"\")","v":{"$error":"#N/A"}},{"$f":"IF(INDIRECT(\"c\" & (VLOOKUP(Rebalance!$D$39,$F$2:$G$48,2,FALSE)+ROW()-2))=Rebalance!$D$39,INDIRECT(\"a\" & (VLOOKUP(Rebalance!$D$39,$F$2:$G$48,2,FALSE)+ROW()-2)),\"\")","v":{"$error":"#N/A"}},{"$f":"IF(INDIRECT(\"c\" & (VLOOKUP(Rebalance!$D$40,$F$2:$G$48,2,FALSE)+ROW()-2))=Rebalance!$D$40,INDIRECT(\"a\" & (VLOOKUP(Rebalance!$D$40,$F$2:$G$48,2,FALSE)+ROW()-2)),\"\")","v":{"$error":"#N/A"}},{"$f":"IF(INDIRECT(\"c\" & (VLOOKUP(Rebalance!$D$52,$F$2:$G$48,2,FALSE)+ROW()-2))=Rebalance!$D$52,INDIRECT(\"a\" & (VLOOKUP(Rebalance!$D$52,$F$2:$G$48,2,FALSE)+ROW()-2)),\"\")","v":{"$error":"#N/A"}},{"$f":"IF(INDIRECT(\"c\" & (VLOOKUP(Rebalance!$D$53,$F$2:$G$48,2,FALSE)+ROW()-2))=Rebalance!$D$53,INDIRECT(\"a\" & (VLOOKUP(Rebalance!$D$53,$F$2:$G$48,2,FALSE)+ROW()-2)),\"\")","v":{"$error":"#N/A"}},{"$f":"IF(INDIRECT(\"c\" & (VLOOKUP(Rebalance!$D$54,$F$2:$G$48,2,FALSE)+ROW()-2))=Rebalance!$D$54,INDIRECT(\"a\" & (VLOOKUP(Rebalance!$D$54,$F$2:$G$48,2,FALSE)+ROW()-2)),\"\")","v":{"$error":"#N/A"}},{"$f":"IF(INDIRECT(\"c\" & (VLOOKUP(Rebalance!$D$55,$F$2:$G$48,2,FALSE)+ROW()-2))=Rebalance!$D$55,INDIRECT(\"a\" & (VLOOKUP(Rebalance!$D$55,$F$2:$G$48,2,FALSE)+ROW()-2)),\"\")","v":{"$error":"#N/A"}},{"$f":"IF(INDIRECT(\"c\" & (VLOOKUP(Rebalance!$D$56,$F$2:$G$48,2,FALSE)+ROW()-2))=Rebalance!$D$56,INDIRECT(\"a\" & (VLOOKUP(Rebalance!$D$56,$F$2:$G$48,2,FALSE)+ROW()-2)),\"\")","v":{"$error":"#N/A"}},{"$f":"IF(INDIRECT(\"c\" & (VLOOKUP(Rebalance!$D$57,$F$2:$G$48,2,FALSE)+ROW()-2))=Rebalance!$D$57,INDIRECT(\"a\" & (VLOOKUP(Rebalance!$D$57,$F$2:$G$48,2,FALSE)+ROW()-2)),\"\")","v":{"$error":"#N/A"}},{"$f":"IF(INDIRECT(\"c\" & (VLOOKUP(Rebalance!$D$58,$F$2:$G$48,2,FALSE)+ROW()-2))=Rebalance!$D$58,INDIRECT(\"a\" & (VLOOKUP(Rebalance!$D$58,$F$2:$G$48,2,FALSE)+ROW()-2)),\"\")","v":{"$error":"#N/A"}},{"$f":"IF(INDIRECT(\"c\" & (VLOOKUP(Rebalance!$D$59,$F$2:$G$48,2,FALSE)+ROW()-2))=Rebalance!$D$59,INDIRECT(\"a\" & (VLOOKUP(Rebalance!$D$59,$F$2:$G$48,2,FALSE)+ROW()-2)),\"\")","v":{"$error":"#N/A"}},{"$f":"IF(INDIRECT(\"c\" & (VLOOKUP(Rebalance!$D$60,$F$2:$G$48,2,FALSE)+ROW()-2))=Rebalance!$D$60,INDIRECT(\"a\" & (VLOOKUP(Rebalance!$D$60,$F$2:$G$48,2,FALSE)+ROW()-2)),\"\")","v":{"$error":"#N/A"}},{"$f":"IF(INDIRECT(\"c\" & (VLOOKUP(Rebalance!$D$61,$F$2:$G$48,2,FALSE)+ROW()-2))=Rebalance!$D$61,INDIRECT(\"a\" & (VLOOKUP(Rebalance!$D$61,$F$2:$G$48,2,FALSE)+ROW()-2)),\"\")","v":{"$error":"#N/A"}},{"$f":"IF(INDIRECT(\"c\" & (VLOOKUP(Rebalance!$D$62,$F$2:$G$48,2,FALSE)+ROW()-2))=Rebalance!$D$62,INDIRECT(\"a\" & (VLOOKUP(Rebalance!$D$62,$F$2:$G$48,2,FALSE)+ROW()-2)),\"\")","v":{"$error":"#N/A"}},{"$f":"IF(INDIRECT(\"c\" & (VLOOKUP(Rebalance!$D$63,$F$2:$G$48,2,FALSE)+ROW()-2))=Rebalance!$D$63,INDIRECT(\"a\" & (VLOOKUP(Rebalance!$D$63,$F$2:$G$48,2,FALSE)+ROW()-2)),\"\")","v":{"$error":"#N/A"}},{"$f":"IF(INDIRECT(\"c\" & (VLOOKUP(Rebalance!$D$64,$F$2:$G$48,2,FALSE)+ROW()-2))=Rebalance!$D$64,INDIRECT(\"a\" & (VLOOKUP(Rebalance!$D$64,$F$2:$G$48,2,FALSE)+ROW()-2)),\"\")","v":{"$error":"#N/A"}},{"$f":"IF(INDIRECT(\"c\" & (VLOOKUP(Rebalance!$D$65,$F$2:$G$48,2,FALSE)+ROW()-2))=Rebalance!$D$65,INDIRECT(\"a\" & (VLOOKUP(Rebalance!$D$65,$F$2:$G$48,2,FALSE)+ROW()-2)),\"\")","v":{"$error":"#N/A"}},{"$f":"IF(INDIRECT(\"c\" & (VLOOKUP(Rebalance!$D$66,$F$2:$G$48,2,FALSE)+ROW()-2))=Rebalance!$D$66,INDIRECT(\"a\" & (VLOOKUP(Rebalance!$D$66,$F$2:$G$48,2,FALSE)+ROW()-2)),\"\")","v":{"$error":"#N/A"}}]
["Nedgroup Inv Property Fund A","NIPAC","Nedgroup Collective Investments Ltd",{"$f":"ROW()","v":377},null,null,{"$f":"VLOOKUP(F377,$C$2:$D$599,2,FALSE)","v":{"$error":"#N/A"}},{"$f":"IF(INDIRECT(\"c\" & (VLOOKUP(Rebalance!$D$26,$F$2:$G$48,2,FALSE)+ROW()-2))=Rebalance!$D$26,INDIRECT(\"a\" & (VLOOKUP(Rebalance!$D$26,$F$2:$G$48,2,FALSE)+ROW()-2)),\"\")","v":{"$error":"#N/A"}},{"$f":"IF(INDIRECT(\"c\" & (VLOOKUP(Rebalance!$D$27,$F$2:$G$48,2,FALSE)+ROW()-2))=Rebalance!$D$27,INDIRECT(\"a\" & (VLOOKUP(Rebalance!$D$27,$F$2:$G$48,2,FALSE)+ROW()-2)),\"\")","v":{"$error":"#N/A"}},{"$f":"IF(INDIRECT(\"c\" & (VLOOKUP(Rebalance!$D$28,$F$2:$G$48,2,FALSE)+ROW()-2))=Rebalance!$D$28,INDIRECT(\"a\" & (VLOOKUP(Rebalance!$D$28,$F$2:$G$48,2,FALSE)+ROW()-2)),\"\")","v":{"$error":"#N/A"}},{"$f":"IF(INDIRECT(\"c\" & (VLOOKUP(Rebalance!$D$29,$F$2:$G$48,2,FALSE)+ROW()-2))=Rebalance!$D$29,INDIRECT(\"a\" & (VLOOKUP(Rebalance!$D$29,$F$2:$G$48,2,FALSE)+ROW()-2)),\"\")","v":{"$error":"#N/A"}},{"$f":"IF(INDIRECT(\"c\" & (VLOOKUP(Rebalance!$D$30,$F$2:$G$48,2,FALSE)+ROW()-2))=Rebalance!$D$30,INDIRECT(\"a\" & (VLOOKUP(Rebalance!$D$30,$F$2:$G$48,2,FALSE)+ROW()-2)),\"\")","v":{"$error":"#N/A"}},{"$f":"IF(INDIRECT(\"c\" & (VLOOKUP(Rebalance!$D$31,$F$2:$G$48,2,FALSE)+ROW()-2))=Rebalance!$D$31,INDIRECT(\"a\" & (VLOOKUP(Rebalance!$D$31,$F$2:$G$48,2,FALSE)+ROW()-2)),\"\")","v":{"$error":"#N/A"}},{"$f":"IF(INDIRECT(\"c\" & (VLOOKUP(Rebalance!$D$32,$F$2:$G$48,2,FALSE)+ROW()-2))=Rebalance!$D$32,INDIRECT(\"a\" & (VLOOKUP(Rebalance!$D$32,$F$2:$G$48,2,FALSE)+ROW()-2)),\"\")","v":{"$error":"#N/A"}},{"$f":"IF(INDIRECT(\"c\" & (VLOOKUP(Rebalance!$D$33,$F$2:$G$48,2,FALSE)+ROW()-2))=Rebalance!$D$33,INDIRECT(\"a\" & (VLOOKUP(Rebalance!$D$33,$F$2:$G$48,2,FALSE)+ROW()-2)),\"\")","v":{"$error":"#N/A"}},{"$f":"IF(INDIRECT(\"c\" & (VLOOKUP(Rebalance!$D$34,$F$2:$G$48,2,FALSE)+ROW()-2))=Rebalance!$D$34,INDIRECT(\"a\" & (VLOOKUP(Rebalance!$D$34,$F$2:$G$48,2,FALSE)+ROW()-2)),\"\")","v":{"$error":"#N/A"}},{"$f":"IF(INDIRECT(\"c\" & (VLOOKUP(Rebalance!$D$35,$F$2:$G$48,2,FALSE)+ROW()-2))=Rebalance!$D$35,INDIRECT(\"a\" & (VLOOKUP(Rebalance!$D$35,$F$2:$G$48,2,FALSE)+ROW()-2)),\"\")","v":{"$error":"#N/A"}},{"$f":"IF(INDIRECT(\"c\" & (VLOOKUP(Rebalance!$D$36,$F$2:$G$48,2,FALSE)+ROW()-2))=Rebalance!$D$36,INDIRECT(\"a\" & (VLOOKUP(Rebalance!$D$36,$F$2:$G$48,2,FALSE)+ROW()-2)),\"\")","v":{"$error":"#N/A"}},{"$f":"IF(INDIRECT(\"c\" & (VLOOKUP(Rebalance!$D$37,$F$2:$G$48,2,FALSE)+ROW()-2))=Rebalance!$D$37,INDIRECT(\"a\" & (VLOOKUP(Rebalance!$D$37,$F$2:$G$48,2,FALSE)+ROW()-2)),\"\")","v":{"$error":"#N/A"}},{"$f":"IF(INDIRECT(\"c\" & (VLOOKUP(Rebalance!$D$38,$F$2:$G$48,2,FALSE)+ROW()-2))=Rebalance!$D$38,INDIRECT(\"a\" & (VLOOKUP(Rebalance!$D$38,$F$2:$G$48,2,FALSE)+ROW()-2)),\"\")","v":{"$error":"#N/A"}},{"$f":"IF(INDIRECT(\"c\" & (VLOOKUP(Rebalance!$D$39,$F$2:$G$48,2,FALSE)+ROW()-2))=Rebalance!$D$39,INDIRECT(\"a\" & (VLOOKUP(Rebalance!$D$39,$F$2:$G$48,2,FALSE)+ROW()-2)),\"\")","v":{"$error":"#N/A"}},{"$f":"IF(INDIRECT(\"c\" & (VLOOKUP(Rebalance!$D$40,$F$2:$G$48,2,FALSE)+ROW()-2))=Rebalance!$D$40,INDIRECT(\"a\" & (VLOOKUP(Rebalance!$D$40,$F$2:$G$48,2,FALSE)+ROW()-2)),\"\")","v":{"$error":"#N/A"}},{"$f":"IF(INDIRECT(\"c\" & (VLOOKUP(Rebalance!$D$52,$F$2:$G$48,2,FALSE)+ROW()-2))=Rebalance!$D$52,INDIRECT(\"a\" & (VLOOKUP(Rebalance!$D$52,$F$2:$G$48,2,FALSE)+ROW()-2)),\"\")","v":{"$error":"#N/A"}},{"$f":"IF(INDIRECT(\"c\" & (VLOOKUP(Rebalance!$D$53,$F$2:$G$48,2,FALSE)+ROW()-2))=Rebalance!$D$53,INDIRECT(\"a\" & (VLOOKUP(Rebalance!$D$53,$F$2:$G$48,2,FALSE)+ROW()-2)),\"\")","v":{"$error":"#N/A"}},{"$f":"IF(INDIRECT(\"c\" & (VLOOKUP(Rebalance!$D$54,$F$2:$G$48,2,FALSE)+ROW()-2))=Rebalance!$D$54,INDIRECT(\"a\" & (VLOOKUP(Rebalance!$D$54,$F$2:$G$48,2,FALSE)+ROW()-2)),\"\")","v":{"$error":"#N/A"}},{"$f":"IF(INDIRECT(\"c\" & (VLOOKUP(Rebalance!$D$55,$F$2:$G$48,2,FALSE)+ROW()-2))=Rebalance!$D$55,INDIRECT(\"a\" & (VLOOKUP(Rebalance!$D$55,$F$2:$G$48,2,FALSE)+ROW()-2)),\"\")","v":{"$error":"#N/A"}},{"$f":"IF(INDIRECT(\"c\" & (VLOOKUP(Rebalance!$D$56,$F$2:$G$48,2,FALSE)+ROW()-2))=Rebalance!$D$56,INDIRECT(\"a\" & (VLOOKUP(Rebalance!$D$56,$F$2:$G$48,2,FALSE)+ROW()-2)),\"\")","v":{"$error":"#N/A"}},{"$f":"IF(INDIRECT(\"c\" & (VLOOKUP(Rebalance!$D$57,$F$2:$G$48,2,FALSE)+ROW()-2))=Rebalance!$D$57,INDIRECT(\"a\" & (VLOOKUP(Rebalance!$D$57,$F$2:$G$48,2,FALSE)+ROW()-2)),\"\")","v":{"$error":"#N/A"}},{"$f":"IF(INDIRECT(\"c\" & (VLOOKUP(Rebalance!$D$58,$F$2:$G$48,2,FALSE)+ROW()-2))=Rebalance!$D$58,INDIRECT(\"a\" & (VLOOKUP(Rebalance!$D$58,$F$2:$G$48,2,FALSE)+ROW()-2)),\"\")","v":{"$error":"#N/A"}},{"$f":"IF(INDIRECT(\"c\" & (VLOOKUP(Rebalance!$D$59,$F$2:$G$48,2,FALSE)+ROW()-2))=Rebalance!$D$59,INDIRECT(\"a\" & (VLOOKUP(Rebalance!$D$59,$F$2:$G$48,2,FALSE)+ROW()-2)),\"\")","v":{"$error":"#N/A"}},{"$f":"IF(INDIRECT(\"c\" & (VLOOKUP(Rebalance!$D$60,$F$2:$G$48,2,FALSE)+ROW()-2))=Rebalance!$D$60,INDIRECT(\"a\" & (VLOOKUP(Rebalance!$D$60,$F$2:$G$48,2,FALSE)+ROW()-2)),\"\")","v":{"$error":"#N/A"}},{"$f":"IF(INDIRECT(\"c\" & (VLOOKUP(Rebalance!$D$61,$F$2:$G$48,2,FALSE)+ROW()-2))=Rebalance!$D$61,INDIRECT(\"a\" & (VLOOKUP(Rebalance!$D$61,$F$2:$G$48,2,FALSE)+ROW()-2)),\"\")","v":{"$error":"#N/A"}},{"$f":"IF(INDIRECT(\"c\" & (VLOOKUP(Rebalance!$D$62,$F$2:$G$48,2,FALSE)+ROW()-2))=Rebalance!$D$62,INDIRECT(\"a\" & (VLOOKUP(Rebalance!$D$62,$F$2:$G$48,2,FALSE)+ROW()-2)),\"\")","v":{"$error":"#N/A"}},{"$f":"IF(INDIRECT(\"c\" & (VLOOKUP(Rebalance!$D$63,$F$2:$G$48,2,FALSE)+ROW()-2))=Rebalance!$D$63,INDIRECT(\"a\" & (VLOOKUP(Rebalance!$D$63,$F$2:$G$48,2,FALSE)+ROW()-2)),\"\")","v":{"$error":"#N/A"}},{"$f":"IF(INDIRECT(\"c\" & (VLOOKUP(Rebalance!$D$64,$F$2:$G$48,2,FALSE)+ROW()-2))=Rebalance!$D$64,INDIRECT(\"a\" & (VLOOKUP(Rebalance!$D$64,$F$2:$G$48,2,FALSE)+ROW()-2)),\"\")","v":{"$error":"#N/A"}},{"$f":"IF(INDIRECT(\"c\" & (VLOOKUP(Rebalance!$D$65,$F$2:$G$48,2,FALSE)+ROW()-2))=Rebalance!$D$65,INDIRECT(\"a\" & (VLOOKUP(Rebalance!$D$65,$F$2:$G$48,2,FALSE)+ROW()-2)),\"\")","v":{"$error":"#N/A"}},{"$f":"IF(INDIRECT(\"c\" & (VLOOKUP(Rebalance!$D$66,$F$2:$G$48,2,FALSE)+ROW()-2))=Rebalance!$D$66,INDIRECT(\"a\" & (VLOOKUP(Rebalance!$D$66,$F$2:$G$48,2,FALSE)+ROW()-2)),\"\")","v":{"$error":"#N/A"}}]
["Nedgroup Inv Property Fund A1","NIPAC","Nedgroup Collective Investments Ltd",{"$f":"ROW()","v":378},null,null,{"$f":"VLOOKUP(F378,$C$2:$D$599,2,FALSE)","v":{"$error":"#N/A"}},{"$f":"IF(INDIRECT(\"c\" & (VLOOKUP(Rebalance!$D$26,$F$2:$G$48,2,FALSE)+ROW()-2))=Rebalance!$D$26,INDIRECT(\"a\" & (VLOOKUP(Rebalance!$D$26,$F$2:$G$48,2,FALSE)+ROW()-2)),\"\")","v":{"$error":"#N/A"}},{"$f":"IF(INDIRECT(\"c\" & (VLOOKUP(Rebalance!$D$27,$F$2:$G$48,2,FALSE)+ROW()-2))=Rebalance!$D$27,INDIRECT(\"a\" & (VLOOKUP(Rebalance!$D$27,$F$2:$G$48,2,FALSE)+ROW()-2)),\"\")","v":{"$error":"#N/A"}},{"$f":"IF(INDIRECT(\"c\" & (VLOOKUP(Rebalance!$D$28,$F$2:$G$48,2,FALSE)+ROW()-2))=Rebalance!$D$28,INDIRECT(\"a\" & (VLOOKUP(Rebalance!$D$28,$F$2:$G$48,2,FALSE)+ROW()-2)),\"\")","v":{"$error":"#N/A"}},{"$f":"IF(INDIRECT(\"c\" & (VLOOKUP(Rebalance!$D$29,$F$2:$G$48,2,FALSE)+ROW()-2))=Rebalance!$D$29,INDIRECT(\"a\" & (VLOOKUP(Rebalance!$D$29,$F$2:$G$48,2,FALSE)+ROW()-2)),\"\")","v":{"$error":"#N/A"}},{"$f":"IF(INDIRECT(\"c\" & (VLOOKUP(Rebalance!$D$30,$F$2:$G$48,2,FALSE)+ROW()-2))=Rebalance!$D$30,INDIRECT(\"a\" & (VLOOKUP(Rebalance!$D$30,$F$2:$G$48,2,FALSE)+ROW()-2)),\"\")","v":{"$error":"#N/A"}},{"$f":"IF(INDIRECT(\"c\" & (VLOOKUP(Rebalance!$D$31,$F$2:$G$48,2,FALSE)+ROW()-2))=Rebalance!$D$31,INDIRECT(\"a\" & (VLOOKUP(Rebalance!$D$31,$F$2:$G$48,2,FALSE)+ROW()-2)),\"\")","v":{"$error":"#N/A"}},{"$f":"IF(INDIRECT(\"c\" & (VLOOKUP(Rebalance!$D$32,$F$2:$G$48,2,FALSE)+ROW()-2))=Rebalance!$D$32,INDIRECT(\"a\" & (VLOOKUP(Rebalance!$D$32,$F$2:$G$48,2,FALSE)+ROW()-2)),\"\")","v":{"$error":"#N/A"}},{"$f":"IF(INDIRECT(\"c\" & (VLOOKUP(Rebalance!$D$33,$F$2:$G$48,2,FALSE)+ROW()-2))=Rebalance!$D$33,INDIRECT(\"a\" & (VLOOKUP(Rebalance!$D$33,$F$2:$G$48,2,FALSE)+ROW()-2)),\"\")","v":{"$error":"#N/A"}},{"$f":"IF(INDIRECT(\"c\" & (VLOOKUP(Rebalance!$D$34,$F$2:$G$48,2,FALSE)+ROW()-2))=Rebalance!$D$34,INDIRECT(\"a\" & (VLOOKUP(Rebalance!$D$34,$F$2:$G$48,2,FALSE)+ROW()-2)),\"\")","v":{"$error":"#N/A"}},{"$f":"IF(INDIRECT(\"c\" & (VLOOKUP(Rebalance!$D$35,$F$2:$G$48,2,FALSE)+ROW()-2))=Rebalance!$D$35,INDIRECT(\"a\" & (VLOOKUP(Rebalance!$D$35,$F$2:$G$48,2,FALSE)+ROW()-2)),\"\")","v":{"$error":"#N/A"}},{"$f":"IF(INDIRECT(\"c\" & (VLOOKUP(Rebalance!$D$36,$F$2:$G$48,2,FALSE)+ROW()-2))=Rebalance!$D$36,INDIRECT(\"a\" & (VLOOKUP(Rebalance!$D$36,$F$2:$G$48,2,FALSE)+ROW()-2)),\"\")","v":{"$error":"#N/A"}},{"$f":"IF(INDIRECT(\"c\" & (VLOOKUP(Rebalance!$D$37,$F$2:$G$48,2,FALSE)+ROW()-2))=Rebalance!$D$37,INDIRECT(\"a\" & (VLOOKUP(Rebalance!$D$37,$F$2:$G$48,2,FALSE)+ROW()-2)),\"\")","v":{"$error":"#N/A"}},{"$f":"IF(INDIRECT(\"c\" & (VLOOKUP(Rebalance!$D$38,$F$2:$G$48,2,FALSE)+ROW()-2))=Rebalance!$D$38,INDIRECT(\"a\" & (VLOOKUP(Rebalance!$D$38,$F$2:$G$48,2,FALSE)+ROW()-2)),\"\")","v":{"$error":"#N/A"}},{"$f":"IF(INDIRECT(\"c\" & (VLOOKUP(Rebalance!$D$39,$F$2:$G$48,2,FALSE)+ROW()-2))=Rebalance!$D$39,INDIRECT(\"a\" & (VLOOKUP(Rebalance!$D$39,$F$2:$G$48,2,FALSE)+ROW()-2)),\"\")","v":{"$error":"#N/A"}},{"$f":"IF(INDIRECT(\"c\" & (VLOOKUP(Rebalance!$D$40,$F$2:$G$48,2,FALSE)+ROW()-2))=Rebalance!$D$40,INDIRECT(\"a\" & (VLOOKUP(Rebalance!$D$40,$F$2:$G$48,2,FALSE)+ROW()-2)),\"\")","v":{"$error":"#N/A"}},{"$f":"IF(INDIRECT(\"c\" & (VLOOKUP(Rebalance!$D$52,$F$2:$G$48,2,FALSE)+ROW()-2))=Rebalance!$D$52,INDIRECT(\"a\" & (VLOOKUP(Rebalance!$D$52,$F$2:$G$48,2,FALSE)+ROW()-2)),\"\")","v":{"$error":"#N/A"}},{"$f":"IF(INDIRECT(\"c\" & (VLOOKUP(Rebalance!$D$53,$F$2:$G$48,2,FALSE)+ROW()-2))=Rebalance!$D$53,INDIRECT(\"a\" & (VLOOKUP(Rebalance!$D$53,$F$2:$G$48,2,FALSE)+ROW()-2)),\"\")","v":{"$error":"#N/A"}},{"$f":"IF(INDIRECT(\"c\" & (VLOOKUP(Rebalance!$D$54,$F$2:$G$48,2,FALSE)+ROW()-2))=Rebalance!$D$54,INDIRECT(\"a\" & (VLOOKUP(Rebalance!$D$54,$F$2:$G$48,2,FALSE)+ROW()-2)),\"\")","v":{"$error":"#N/A"}},{"$f":"IF(INDIRECT(\"c\" & (VLOOKUP(Rebalance!$D$55,$F$2:$G$48,2,FALSE)+ROW()-2))=Rebalance!$D$55,INDIRECT(\"a\" & (VLOOKUP(Rebalance!$D$55,$F$2:$G$48,2,FALSE)+ROW()-2)),\"\")","v":{"$error":"#N/A"}},{"$f":"IF(INDIRECT(\"c\" & (VLOOKUP(Rebalance!$D$56,$F$2:$G$48,2,FALSE)+ROW()-2))=Rebalance!$D$56,INDIRECT(\"a\" & (VLOOKUP(Rebalance!$D$56,$F$2:$G$48,2,FALSE)+ROW()-2)),\"\")","v":{"$error":"#N/A"}},{"$f":"IF(INDIRECT(\"c\" & (VLOOKUP(Rebalance!$D$57,$F$2:$G$48,2,FALSE)+ROW()-2))=Rebalance!$D$57,INDIRECT(\"a\" & (VLOOKUP(Rebalance!$D$57,$F$2:$G$48,2,FALSE)+ROW()-2)),\"\")","v":{"$error":"#N/A"}},{"$f":"IF(INDIRECT(\"c\" & (VLOOKUP(Rebalance!$D$58,$F$2:$G$48,2,FALSE)+ROW()-2))=Rebalance!$D$58,INDIRECT(\"a\" & (VLOOKUP(Rebalance!$D$58,$F$2:$G$48,2,FALSE)+ROW()-2)),\"\")","v":{"$error":"#N/A"}},{"$f":"IF(INDIRECT(\"c\" & (VLOOKUP(Rebalance!$D$59,$F$2:$G$48,2,FALSE)+ROW()-2))=Rebalance!$D$59,INDIRECT(\"a\" & (VLOOKUP(Rebalance!$D$59,$F$2:$G$48,2,FALSE)+ROW()-2)),\"\")","v":{"$error":"#N/A"}},{"$f":"IF(INDIRECT(\"c\" & (VLOOKUP(Rebalance!$D$60,$F$2:$G$48,2,FALSE)+ROW()-2))=Rebalance!$D$60,INDIRECT(\"a\" & (VLOOKUP(Rebalance!$D$60,$F$2:$G$48,2,FALSE)+ROW()-2)),\"\")","v":{"$error":"#N/A"}},{"$f":"IF(INDIRECT(\"c\" & (VLOOKUP(Rebalance!$D$61,$F$2:$G$48,2,FALSE)+ROW()-2))=Rebalance!$D$61,INDIRECT(\"a\" & (VLOOKUP(Rebalance!$D$61,$F$2:$G$48,2,FALSE)+ROW()-2)),\"\")","v":{"$error":"#N/A"}},{"$f":"IF(INDIRECT(\"c\" & (VLOOKUP(Rebalance!$D$62,$F$2:$G$48,2,FALSE)+ROW()-2))=Rebalance!$D$62,INDIRECT(\"a\" & (VLOOKUP(Rebalance!$D$62,$F$2:$G$48,2,FALSE)+ROW()-2)),\"\")","v":{"$error":"#N/A"}},{"$f":"IF(INDIRECT(\"c\" & (VLOOKUP(Rebalance!$D$63,$F$2:$G$48,2,FALSE)+ROW()-2))=Rebalance!$D$63,INDIRECT(\"a\" & (VLOOKUP(Rebalance!$D$63,$F$2:$G$48,2,FALSE)+ROW()-2)),\"\")","v":{"$error":"#N/A"}},{"$f":"IF(INDIRECT(\"c\" & (VLOOKUP(Rebalance!$D$64,$F$2:$G$48,2,FALSE)+ROW()-2))=Rebalance!$D$64,INDIRECT(\"a\" & (VLOOKUP(Rebalance!$D$64,$F$2:$G$48,2,FALSE)+ROW()-2)),\"\")","v":{"$error":"#N/A"}},{"$f":"IF(INDIRECT(\"c\" & (VLOOKUP(Rebalance!$D$65,$F$2:$G$48,2,FALSE)+ROW()-2))=Rebalance!$D$65,INDIRECT(\"a\" & (VLOOKUP(Rebalance!$D$65,$F$2:$G$48,2,FALSE)+ROW()-2)),\"\")","v":{"$error":"#N/A"}},{"$f":"IF(INDIRECT(\"c\" & (VLOOKUP(Rebalance!$D$66,$F$2:$G$48,2,FALSE)+ROW()-2))=Rebalance!$D$66,INDIRECT(\"a\" & (VLOOKUP(Rebalance!$D$66,$F$2:$G$48,2,FALSE)+ROW()-2)),\"\")","v":{"$error":"#N/A"}}]
["Nedgroup Inv Rainmaker Fund B2","NIRB","Nedgroup Collective Investments Ltd",{"$f":"ROW()","v":379},null,null,{"$f":"VLOOKUP(F379,$C$2:$D$599,2,FALSE)","v":{"$error":"#N/A"}},{"$f":"IF(INDIRECT(\"c\" & (VLOOKUP(Rebalance!$D$26,$F$2:$G$48,2,FALSE)+ROW()-2))=Rebalance!$D$26,INDIRECT(\"a\" & (VLOOKUP(Rebalance!$D$26,$F$2:$G$48,2,FALSE)+ROW()-2)),\"\")","v":{"$error":"#N/A"}},{"$f":"IF(INDIRECT(\"c\" & (VLOOKUP(Rebalance!$D$27,$F$2:$G$48,2,FALSE)+ROW()-2))=Rebalance!$D$27,INDIRECT(\"a\" & (VLOOKUP(Rebalance!$D$27,$F$2:$G$48,2,FALSE)+ROW()-2)),\"\")","v":{"$error":"#N/A"}},{"$f":"IF(INDIRECT(\"c\" & (VLOOKUP(Rebalance!$D$28,$F$2:$G$48,2,FALSE)+ROW()-2))=Rebalance!$D$28,INDIRECT(\"a\" & (VLOOKUP(Rebalance!$D$28,$F$2:$G$48,2,FALSE)+ROW()-2)),\"\")","v":{"$error":"#N/A"}},{"$f":"IF(INDIRECT(\"c\" & (VLOOKUP(Rebalance!$D$29,$F$2:$G$48,2,FALSE)+ROW()-2))=Rebalance!$D$29,INDIRECT(\"a\" & (VLOOKUP(Rebalance!$D$29,$F$2:$G$48,2,FALSE)+ROW()-2)),\"\")","v":{"$error":"#N/A"}},{"$f":"IF(INDIRECT(\"c\" & (VLOOKUP(Rebalance!$D$30,$F$2:$G$48,2,FALSE)+ROW()-2))=Rebalance!$D$30,INDIRECT(\"a\" & (VLOOKUP(Rebalance!$D$30,$F$2:$G$48,2,FALSE)+ROW()-2)),\"\")","v":{"$error":"#N/A"}},{"$f":"IF(INDIRECT(\"c\" & (VLOOKUP(Rebalance!$D$31,$F$2:$G$48,2,FALSE)+ROW()-2))=Rebalance!$D$31,INDIRECT(\"a\" & (VLOOKUP(Rebalance!$D$31,$F$2:$G$48,2,FALSE)+ROW()-2)),\"\")","v":{"$error":"#N/A"}},{"$f":"IF(INDIRECT(\"c\" & (VLOOKUP(Rebalance!$D$32,$F$2:$G$48,2,FALSE)+ROW()-2))=Rebalance!$D$32,INDIRECT(\"a\" & (VLOOKUP(Rebalance!$D$32,$F$2:$G$48,2,FALSE)+ROW()-2)),\"\")","v":{"$error":"#N/A"}},{"$f":"IF(INDIRECT(\"c\" & (VLOOKUP(Rebalance!$D$33,$F$2:$G$48,2,FALSE)+ROW()-2))=Rebalance!$D$33,INDIRECT(\"a\" & (VLOOKUP(Rebalance!$D$33,$F$2:$G$48,2,FALSE)+ROW()-2)),\"\")","v":{"$error":"#N/A"}},{"$f":"IF(INDIRECT(\"c\" & (VLOOKUP(Rebalance!$D$34,$F$2:$G$48,2,FALSE)+ROW()-2))=Rebalance!$D$34,INDIRECT(\"a\" & (VLOOKUP(Rebalance!$D$34,$F$2:$G$48,2,FALSE)+ROW()-2)),\"\")","v":{"$error":"#N/A"}},{"$f":"IF(INDIRECT(\"c\" & (VLOOKUP(Rebalance!$D$35,$F$2:$G$48,2,FALSE)+ROW()-2))=Rebalance!$D$35,INDIRECT(\"a\" & (VLOOKUP(Rebalance!$D$35,$F$2:$G$48,2,FALSE)+ROW()-2)),\"\")","v":{"$error":"#N/A"}},{"$f":"IF(INDIRECT(\"c\" & (VLOOKUP(Rebalance!$D$36,$F$2:$G$48,2,FALSE)+ROW()-2))=Rebalance!$D$36,INDIRECT(\"a\" & (VLOOKUP(Rebalance!$D$36,$F$2:$G$48,2,FALSE)+ROW()-2)),\"\")","v":{"$error":"#N/A"}},{"$f":"IF(INDIRECT(\"c\" & (VLOOKUP(Rebalance!$D$37,$F$2:$G$48,2,FALSE)+ROW()-2))=Rebalance!$D$37,INDIRECT(\"a\" & (VLOOKUP(Rebalance!$D$37,$F$2:$G$48,2,FALSE)+ROW()-2)),\"\")","v":{"$error":"#N/A"}},{"$f":"IF(INDIRECT(\"c\" & (VLOOKUP(Rebalance!$D$38,$F$2:$G$48,2,FALSE)+ROW()-2))=Rebalance!$D$38,INDIRECT(\"a\" & (VLOOKUP(Rebalance!$D$38,$F$2:$G$48,2,FALSE)+ROW()-2)),\"\")","v":{"$error":"#N/A"}},{"$f":"IF(INDIRECT(\"c\" & (VLOOKUP(Rebalance!$D$39,$F$2:$G$48,2,FALSE)+ROW()-2))=Rebalance!$D$39,INDIRECT(\"a\" & (VLOOKUP(Rebalance!$D$39,$F$2:$G$48,2,FALSE)+ROW()-2)),\"\")","v":{"$error":"#N/A"}},{"$f":"IF(INDIRECT(\"c\" & (VLOOKUP(Rebalance!$D$40,$F$2:$G$48,2,FALSE)+ROW()-2))=Rebalance!$D$40,INDIRECT(\"a\" & (VLOOKUP(Rebalance!$D$40,$F$2:$G$48,2,FALSE)+ROW()-2)),\"\")","v":{"$error":"#N/A"}},{"$f":"IF(INDIRECT(\"c\" & (VLOOKUP(Rebalance!$D$52,$F$2:$G$48,2,FALSE)+ROW()-2))=Rebalance!$D$52,INDIRECT(\"a\" & (VLOOKUP(Rebalance!$D$52,$F$2:$G$48,2,FALSE)+ROW()-2)),\"\")","v":{"$error":"#N/A"}},{"$f":"IF(INDIRECT(\"c\" & (VLOOKUP(Rebalance!$D$53,$F$2:$G$48,2,FALSE)+ROW()-2))=Rebalance!$D$53,INDIRECT(\"a\" & (VLOOKUP(Rebalance!$D$53,$F$2:$G$48,2,FALSE)+ROW()-2)),\"\")","v":{"$error":"#N/A"}},{"$f":"IF(INDIRECT(\"c\" & (VLOOKUP(Rebalance!$D$54,$F$2:$G$48,2,FALSE)+ROW()-2))=Rebalance!$D$54,INDIRECT(\"a\" & (VLOOKUP(Rebalance!$D$54,$F$2:$G$48,2,FALSE)+ROW()-2)),\"\")","v":{"$error":"#N/A"}},{"$f":"IF(INDIRECT(\"c\" & (VLOOKUP(Rebalance!$D$55,$F$2:$G$48,2,FALSE)+ROW()-2))=Rebalance!$D$55,INDIRECT(\"a\" & (VLOOKUP(Rebalance!$D$55,$F$2:$G$48,2,FALSE)+ROW()-2)),\"\")","v":{"$error":"#N/A"}},{"$f":"IF(INDIRECT(\"c\" & (VLOOKUP(Rebalance!$D$56,$F$2:$G$48,2,FALSE)+ROW()-2))=Rebalance!$D$56,INDIRECT(\"a\" & (VLOOKUP(Rebalance!$D$56,$F$2:$G$48,2,FALSE)+ROW()-2)),\"\")","v":{"$error":"#N/A"}},{"$f":"IF(INDIRECT(\"c\" & (VLOOKUP(Rebalance!$D$57,$F$2:$G$48,2,FALSE)+ROW()-2))=Rebalance!$D$57,INDIRECT(\"a\" & (VLOOKUP(Rebalance!$D$57,$F$2:$G$48,2,FALSE)+ROW()-2)),\"\")","v":{"$error":"#N/A"}},{"$f":"IF(INDIRECT(\"c\" & (VLOOKUP(Rebalance!$D$58,$F$2:$G$48,2,FALSE)+ROW()-2))=Rebalance!$D$58,INDIRECT(\"a\" & (VLOOKUP(Rebalance!$D$58,$F$2:$G$48,2,FALSE)+ROW()-2)),\"\")","v":{"$error":"#N/A"}},{"$f":"IF(INDIRECT(\"c\" & (VLOOKUP(Rebalance!$D$59,$F$2:$G$48,2,FALSE)+ROW()-2))=Rebalance!$D$59,INDIRECT(\"a\" & (VLOOKUP(Rebalance!$D$59,$F$2:$G$48,2,FALSE)+ROW()-2)),\"\")","v":{"$error":"#N/A"}},{"$f":"IF(INDIRECT(\"c\" & (VLOOKUP(Rebalance!$D$60,$F$2:$G$48,2,FALSE)+ROW()-2))=Rebalance!$D$60,INDIRECT(\"a\" & (VLOOKUP(Rebalance!$D$60,$F$2:$G$48,2,FALSE)+ROW()-2)),\"\")","v":{"$error":"#N/A"}},{"$f":"IF(INDIRECT(\"c\" & (VLOOKUP(Rebalance!$D$61,$F$2:$G$48,2,FALSE)+ROW()-2))=Rebalance!$D$61,INDIRECT(\"a\" & (VLOOKUP(Rebalance!$D$61,$F$2:$G$48,2,FALSE)+ROW()-2)),\"\")","v":{"$error":"#N/A"}},{"$f":"IF(INDIRECT(\"c\" & (VLOOKUP(Rebalance!$D$62,$F$2:$G$48,2,FALSE)+ROW()-2))=Rebalance!$D$62,INDIRECT(\"a\" & (VLOOKUP(Rebalance!$D$62,$F$2:$G$48,2,FALSE)+ROW()-2)),\"\")","v":{"$error":"#N/A"}},{"$f":"IF(INDIRECT(\"c\" & (VLOOKUP(Rebalance!$D$63,$F$2:$G$48,2,FALSE)+ROW()-2))=Rebalance!$D$63,INDIRECT(\"a\" & (VLOOKUP(Rebalance!$D$63,$F$2:$G$48,2,FALSE)+ROW()-2)),\"\")","v":{"$error":"#N/A"}},{"$f":"IF(INDIRECT(\"c\" & (VLOOKUP(Rebalance!$D$64,$F$2:$G$48,2,FALSE)+ROW()-2))=Rebalance!$D$64,INDIRECT(\"a\" & (VLOOKUP(Rebalance!$D$64,$F$2:$G$48,2,FALSE)+ROW()-2)),\"\")","v":{"$error":"#N/A"}},{"$f":"IF(INDIRECT(\"c\" & (VLOOKUP(Rebalance!$D$65,$F$2:$G$48,2,FALSE)+ROW()-2))=Rebalance!$D$65,INDIRECT(\"a\" & (VLOOKUP(Rebalance!$D$65,$F$2:$G$48,2,FALSE)+ROW()-2)),\"\")","v":{"$error":"#N/A"}},{"$f":"IF(INDIRECT(\"c\" & (VLOOKUP(Rebalance!$D$66,$F$2:$G$48,2,FALSE)+ROW()-2))=Rebalance!$D$66,INDIRECT(\"a\" & (VLOOKUP(Rebalance!$D$66,$F$2:$G$48,2,FALSE)+ROW()-2)),\"\")","v":{"$error":"#N/A"}}]
["Nedgroup Inv Rainmaker Fund A","NIRB","Nedgroup Collective Investments Ltd",{"$f":"ROW()","v":380},null,null,{"$f":"VLOOKUP(F380,$C$2:$D$599,2,FALSE)","v":{"$error":"#N/A"}},{"$f":"IF(INDIRECT(\"c\" & (VLOOKUP(Rebalance!$D$26,$F$2:$G$48,2,FALSE)+ROW()-2))=Rebalance!$D$26,INDIRECT(\"a\" & (VLOOKUP(Rebalance!$D$26,$F$2:$G$48,2,FALSE)+ROW()-2)),\"\")","v":{"$error":"#N/A"}},{"$f":"IF(INDIRECT(\"c\" & (VLOOKUP(Rebalance!$D$27,$F$2:$G$48,2,FALSE)+ROW()-2))=Rebalance!$D$27,INDIRECT(\"a\" & (VLOOKUP(Rebalance!$D$27,$F$2:$G$48,2,FALSE)+ROW()-2)),\"\")","v":{"$error":"#N/A"}},{"$f":"IF(INDIRECT(\"c\" & (VLOOKUP(Rebalance!$D$28,$F$2:$G$48,2,FALSE)+ROW()-2))=Rebalance!$D$28,INDIRECT(\"a\" & (VLOOKUP(Rebalance!$D$28,$F$2:$G$48,2,FALSE)+ROW()-2)),\"\")","v":{"$error":"#N/A"}},{"$f":"IF(INDIRECT(\"c\" & (VLOOKUP(Rebalance!$D$29,$F$2:$G$48,2,FALSE)+ROW()-2))=Rebalance!$D$29,INDIRECT(\"a\" & (VLOOKUP(Rebalance!$D$29,$F$2:$G$48,2,FALSE)+ROW()-2)),\"\")","v":{"$error":"#N/A"}},{"$f":"IF(INDIRECT(\"c\" & (VLOOKUP(Rebalance!$D$30,$F$2:$G$48,2,FALSE)+ROW()-2))=Rebalance!$D$30,INDIRECT(\"a\" & (VLOOKUP(Rebalance!$D$30,$F$2:$G$48,2,FALSE)+ROW()-2)),\"\")","v":{"$error":"#N/A"}},{"$f":"IF(INDIRECT(\"c\" & (VLOOKUP(Rebalance!$D$31,$F$2:$G$48,2,FALSE)+ROW()-2))=Rebalance!$D$31,INDIRECT(\"a\" & (VLOOKUP(Rebalance!$D$31,$F$2:$G$48,2,FALSE)+ROW()-2)),\"\")","v":{"$error":"#N/A"}},{"$f":"IF(INDIRECT(\"c\" & (VLOOKUP(Rebalance!$D$32,$F$2:$G$48,2,FALSE)+ROW()-2))=Rebalance!$D$32,INDIRECT(\"a\" & (VLOOKUP(Rebalance!$D$32,$F$2:$G$48,2,FALSE)+ROW()-2)),\"\")","v":{"$error":"#N/A"}},{"$f":"IF(INDIRECT(\"c\" & (VLOOKUP(Rebalance!$D$33,$F$2:$G$48,2,FALSE)+ROW()-2))=Rebalance!$D$33,INDIRECT(\"a\" & (VLOOKUP(Rebalance!$D$33,$F$2:$G$48,2,FALSE)+ROW()-2)),\"\")","v":{"$error":"#N/A"}},{"$f":"IF(INDIRECT(\"c\" & (VLOOKUP(Rebalance!$D$34,$F$2:$G$48,2,FALSE)+ROW()-2))=Rebalance!$D$34,INDIRECT(\"a\" & (VLOOKUP(Rebalance!$D$34,$F$2:$G$48,2,FALSE)+ROW()-2)),\"\")","v":{"$error":"#N/A"}},{"$f":"IF(INDIRECT(\"c\" & (VLOOKUP(Rebalance!$D$35,$F$2:$G$48,2,FALSE)+ROW()-2))=Rebalance!$D$35,INDIRECT(\"a\" & (VLOOKUP(Rebalance!$D$35,$F$2:$G$48,2,FALSE)+ROW()-2)),\"\")","v":{"$error":"#N/A"}},{"$f":"IF(INDIRECT(\"c\" & (VLOOKUP(Rebalance!$D$36,$F$2:$G$48,2,FALSE)+ROW()-2))=Rebalance!$D$36,INDIRECT(\"a\" & (VLOOKUP(Rebalance!$D$36,$F$2:$G$48,2,FALSE)+ROW()-2)),\"\")","v":{"$error":"#N/A"}},{"$f":"IF(INDIRECT(\"c\" & (VLOOKUP(Rebalance!$D$37,$F$2:$G$48,2,FALSE)+ROW()-2))=Rebalance!$D$37,INDIRECT(\"a\" & (VLOOKUP(Rebalance!$D$37,$F$2:$G$48,2,FALSE)+ROW()-2)),\"\")","v":{"$error":"#N/A"}},{"$f":"IF(INDIRECT(\"c\" & (VLOOKUP(Rebalance!$D$38,$F$2:$G$48,2,FALSE)+ROW()-2))=Rebalance!$D$38,INDIRECT(\"a\" & (VLOOKUP(Rebalance!$D$38,$F$2:$G$48,2,FALSE)+ROW()-2)),\"\")","v":{"$error":"#N/A"}},{"$f":"IF(INDIRECT(\"c\" & (VLOOKUP(Rebalance!$D$39,$F$2:$G$48,2,FALSE)+ROW()-2))=Rebalance!$D$39,INDIRECT(\"a\" & (VLOOKUP(Rebalance!$D$39,$F$2:$G$48,2,FALSE)+ROW()-2)),\"\")","v":{"$error":"#N/A"}},{"$f":"IF(INDIRECT(\"c\" & (VLOOKUP(Rebalance!$D$40,$F$2:$G$48,2,FALSE)+ROW()-2))=Rebalance!$D$40,INDIRECT(\"a\" & (VLOOKUP(Rebalance!$D$40,$F$2:$G$48,2,FALSE)+ROW()-2)),\"\")","v":{"$error":"#N/A"}},{"$f":"IF(INDIRECT(\"c\" & (VLOOKUP(Rebalance!$D$52,$F$2:$G$48,2,FALSE)+ROW()-2))=Rebalance!$D$52,INDIRECT(\"a\" & (VLOOKUP(Rebalance!$D$52,$F$2:$G$48,2,FALSE)+ROW()-2)),\"\")","v":{"$error":"#N/A"}},{"$f":"IF(INDIRECT(\"c\" & (VLOOKUP(Rebalance!$D$53,$F$2:$G$48,2,FALSE)+ROW()-2))=Rebalance!$D$53,INDIRECT(\"a\" & (VLOOKUP(Rebalance!$D$53,$F$2:$G$48,2,FALSE)+ROW()-2)),\"\")","v":{"$error":"#N/A"}},{"$f":"IF(INDIRECT(\"c\" & (VLOOKUP(Rebalance!$D$54,$F$2:$G$48,2,FALSE)+ROW()-2))=Rebalance!$D$54,INDIRECT(\"a\" & (VLOOKUP(Rebalance!$D$54,$F$2:$G$48,2,FALSE)+ROW()-2)),\"\")","v":{"$error":"#N/A"}},{"$f":"IF(INDIRECT(\"c\" & (VLOOKUP(Rebalance!$D$55,$F$2:$G$48,2,FALSE)+ROW()-2))=Rebalance!$D$55,INDIRECT(\"a\" & (VLOOKUP(Rebalance!$D$55,$F$2:$G$48,2,FALSE)+ROW()-2)),\"\")","v":{"$error":"#N/A"}},{"$f":"IF(INDIRECT(\"c\" & (VLOOKUP(Rebalance!$D$56,$F$2:$G$48,2,FALSE)+ROW()-2))=Rebalance!$D$56,INDIRECT(\"a\" & (VLOOKUP(Rebalance!$D$56,$F$2:$G$48,2,FALSE)+ROW()-2)),\"\")","v":{"$error":"#N/A"}},{"$f":"IF(INDIRECT(\"c\" & (VLOOKUP(Rebalance!$D$57,$F$2:$G$48,2,FALSE)+ROW()-2))=Rebalance!$D$57,INDIRECT(\"a\" & (VLOOKUP(Rebalance!$D$57,$F$2:$G$48,2,FALSE)+ROW()-2)),\"\")","v":{"$error":"#N/A"}},{"$f":"IF(INDIRECT(\"c\" & (VLOOKUP(Rebalance!$D$58,$F$2:$G$48,2,FALSE)+ROW()-2))=Rebalance!$D$58,INDIRECT(\"a\" & (VLOOKUP(Rebalance!$D$58,$F$2:$G$48,2,FALSE)+ROW()-2)),\"\")","v":{"$error":"#N/A"}},{"$f":"IF(INDIRECT(\"c\" & (VLOOKUP(Rebalance!$D$59,$F$2:$G$48,2,FALSE)+ROW()-2))=Rebalance!$D$59,INDIRECT(\"a\" & (VLOOKUP(Rebalance!$D$59,$F$2:$G$48,2,FALSE)+ROW()-2)),\"\")","v":{"$error":"#N/A"}},{"$f":"IF(INDIRECT(\"c\" & (VLOOKUP(Rebalance!$D$60,$F$2:$G$48,2,FALSE)+ROW()-2))=Rebalance!$D$60,INDIRECT(\"a\" & (VLOOKUP(Rebalance!$D$60,$F$2:$G$48,2,FALSE)+ROW()-2)),\"\")","v":{"$error":"#N/A"}},{"$f":"IF(INDIRECT(\"c\" & (VLOOKUP(Rebalance!$D$61,$F$2:$G$48,2,FALSE)+ROW()-2))=Rebalance!$D$61,INDIRECT(\"a\" & (VLOOKUP(Rebalance!$D$61,$F$2:$G$48,2,FALSE)+ROW()-2)),\"\")","v":{"$error":"#N/A"}},{"$f":"IF(INDIRECT(\"c\" & (VLOOKUP(Rebalance!$D$62,$F$2:$G$48,2,FALSE)+ROW()-2))=Rebalance!$D$62,INDIRECT(\"a\" & (VLOOKUP(Rebalance!$D$62,$F$2:$G$48,2,FALSE)+ROW()-2)),\"\")","v":{"$error":"#N/A"}},{"$f":"IF(INDIRECT(\"c\" & (VLOOKUP(Rebalance!$D$63,$F$2:$G$48,2,FALSE)+ROW()-2))=Rebalance!$D$63,INDIRECT(\"a\" & (VLOOKUP(Rebalance!$D$63,$F$2:$G$48,2,FALSE)+ROW()-2)),\"\")","v":{"$error":"#N/A"}},{"$f":"IF(INDIRECT(\"c\" & (VLOOKUP(Rebalance!$D$64,$F$2:$G$48,2,FALSE)+ROW()-2))=Rebalance!$D$64,INDIRECT(\"a\" & (VLOOKUP(Rebalance!$D$64,$F$2:$G$48,2,FALSE)+ROW()-2)),\"\")","v":{"$error":"#N/A"}},{"$f":"IF(INDIRECT(\"c\" & (VLOOKUP(Rebalance!$D$65,$F$2:$G$48,2,FALSE)+ROW()-2))=Rebalance!$D$65,INDIRECT(\"a\" & (VLOOKUP(Rebalance!$D$65,$F$2:$G$48,2,FALSE)+ROW()-2)),\"\")","v":{"$error":"#N/A"}},{"$f":"IF(INDIRECT(\"c\" & (VLOOKUP(Rebalance!$D$66,$F$2:$G$48,2,FALSE)+ROW()-2))=Rebalance!$D$66,INDIRECT(\"a\" & (VLOOKUP(Rebalance!$D$66,$F$2:$G$48,2,FALSE)+ROW()-2)),\"\")","v":{"$error":"#N/A"}}]
["Nedgroup Inv Stable Fund A2","NISA","Nedgroup Collective Investments Ltd",{"$f":"ROW()","v":381},null,null,{"$f":"VLOOKUP(F381,$C$2:$D$599,2,FALSE)","v":{"$error":"#N/A"}},{"$f":"IF(INDIRECT(\"c\" & (VLOOKUP(Rebalance!$D$26,$F$2:$G$48,2,FALSE)+ROW()-2))=Rebalance!$D$26,INDIRECT(\"a\" & (VLOOKUP(Rebalance!$D$26,$F$2:$G$48,2,FALSE)+ROW()-2)),\"\")","v":{"$error":"#N/A"}},{"$f":"IF(INDIRECT(\"c\" & (VLOOKUP(Rebalance!$D$27,$F$2:$G$48,2,FALSE)+ROW()-2))=Rebalance!$D$27,INDIRECT(\"a\" & (VLOOKUP(Rebalance!$D$27,$F$2:$G$48,2,FALSE)+ROW()-2)),\"\")","v":{"$error":"#N/A"}},{"$f":"IF(INDIRECT(\"c\" & (VLOOKUP(Rebalance!$D$28,$F$2:$G$48,2,FALSE)+ROW()-2))=Rebalance!$D$28,INDIRECT(\"a\" & (VLOOKUP(Rebalance!$D$28,$F$2:$G$48,2,FALSE)+ROW()-2)),\"\")","v":{"$error":"#N/A"}},{"$f":"IF(INDIRECT(\"c\" & (VLOOKUP(Rebalance!$D$29,$F$2:$G$48,2,FALSE)+ROW()-2))=Rebalance!$D$29,INDIRECT(\"a\" & (VLOOKUP(Rebalance!$D$29,$F$2:$G$48,2,FALSE)+ROW()-2)),\"\")","v":{"$error":"#N/A"}},{"$f":"IF(INDIRECT(\"c\" & (VLOOKUP(Rebalance!$D$30,$F$2:$G$48,2,FALSE)+ROW()-2))=Rebalance!$D$30,INDIRECT(\"a\" & (VLOOKUP(Rebalance!$D$30,$F$2:$G$48,2,FALSE)+ROW()-2)),\"\")","v":{"$error":"#N/A"}},{"$f":"IF(INDIRECT(\"c\" & (VLOOKUP(Rebalance!$D$31,$F$2:$G$48,2,FALSE)+ROW()-2))=Rebalance!$D$31,INDIRECT(\"a\" & (VLOOKUP(Rebalance!$D$31,$F$2:$G$48,2,FALSE)+ROW()-2)),\"\")","v":{"$error":"#N/A"}},{"$f":"IF(INDIRECT(\"c\" & (VLOOKUP(Rebalance!$D$32,$F$2:$G$48,2,FALSE)+ROW()-2))=Rebalance!$D$32,INDIRECT(\"a\" & (VLOOKUP(Rebalance!$D$32,$F$2:$G$48,2,FALSE)+ROW()-2)),\"\")","v":{"$error":"#N/A"}},{"$f":"IF(INDIRECT(\"c\" & (VLOOKUP(Rebalance!$D$33,$F$2:$G$48,2,FALSE)+ROW()-2))=Rebalance!$D$33,INDIRECT(\"a\" & (VLOOKUP(Rebalance!$D$33,$F$2:$G$48,2,FALSE)+ROW()-2)),\"\")","v":{"$error":"#N/A"}},{"$f":"IF(INDIRECT(\"c\" & (VLOOKUP(Rebalance!$D$34,$F$2:$G$48,2,FALSE)+ROW()-2))=Rebalance!$D$34,INDIRECT(\"a\" & (VLOOKUP(Rebalance!$D$34,$F$2:$G$48,2,FALSE)+ROW()-2)),\"\")","v":{"$error":"#N/A"}},{"$f":"IF(INDIRECT(\"c\" & (VLOOKUP(Rebalance!$D$35,$F$2:$G$48,2,FALSE)+ROW()-2))=Rebalance!$D$35,INDIRECT(\"a\" & (VLOOKUP(Rebalance!$D$35,$F$2:$G$48,2,FALSE)+ROW()-2)),\"\")","v":{"$error":"#N/A"}},{"$f":"IF(INDIRECT(\"c\" & (VLOOKUP(Rebalance!$D$36,$F$2:$G$48,2,FALSE)+ROW()-2))=Rebalance!$D$36,INDIRECT(\"a\" & (VLOOKUP(Rebalance!$D$36,$F$2:$G$48,2,FALSE)+ROW()-2)),\"\")","v":{"$error":"#N/A"}},{"$f":"IF(INDIRECT(\"c\" & (VLOOKUP(Rebalance!$D$37,$F$2:$G$48,2,FALSE)+ROW()-2))=Rebalance!$D$37,INDIRECT(\"a\" & (VLOOKUP(Rebalance!$D$37,$F$2:$G$48,2,FALSE)+ROW()-2)),\"\")","v":{"$error":"#N/A"}},{"$f":"IF(INDIRECT(\"c\" & (VLOOKUP(Rebalance!$D$38,$F$2:$G$48,2,FALSE)+ROW()-2))=Rebalance!$D$38,INDIRECT(\"a\" & (VLOOKUP(Rebalance!$D$38,$F$2:$G$48,2,FALSE)+ROW()-2)),\"\")","v":{"$error":"#N/A"}},{"$f":"IF(INDIRECT(\"c\" & (VLOOKUP(Rebalance!$D$39,$F$2:$G$48,2,FALSE)+ROW()-2))=Rebalance!$D$39,INDIRECT(\"a\" & (VLOOKUP(Rebalance!$D$39,$F$2:$G$48,2,FALSE)+ROW()-2)),\"\")","v":{"$error":"#N/A"}},{"$f":"IF(INDIRECT(\"c\" & (VLOOKUP(Rebalance!$D$40,$F$2:$G$48,2,FALSE)+ROW()-2))=Rebalance!$D$40,INDIRECT(\"a\" & (VLOOKUP(Rebalance!$D$40,$F$2:$G$48,2,FALSE)+ROW()-2)),\"\")","v":{"$error":"#N/A"}},{"$f":"IF(INDIRECT(\"c\" & (VLOOKUP(Rebalance!$D$52,$F$2:$G$48,2,FALSE)+ROW()-2))=Rebalance!$D$52,INDIRECT(\"a\" & (VLOOKUP(Rebalance!$D$52,$F$2:$G$48,2,FALSE)+ROW()-2)),\"\")","v":{"$error":"#N/A"}},{"$f":"IF(INDIRECT(\"c\" & (VLOOKUP(Rebalance!$D$53,$F$2:$G$48,2,FALSE)+ROW()-2))=Rebalance!$D$53,INDIRECT(\"a\" & (VLOOKUP(Rebalance!$D$53,$F$2:$G$48,2,FALSE)+ROW()-2)),\"\")","v":{"$error":"#N/A"}},{"$f":"IF(INDIRECT(\"c\" & (VLOOKUP(Rebalance!$D$54,$F$2:$G$48,2,FALSE)+ROW()-2))=Rebalance!$D$54,INDIRECT(\"a\" & (VLOOKUP(Rebalance!$D$54,$F$2:$G$48,2,FALSE)+ROW()-2)),\"\")","v":{"$error":"#N/A"}},{"$f":"IF(INDIRECT(\"c\" & (VLOOKUP(Rebalance!$D$55,$F$2:$G$48,2,FALSE)+ROW()-2))=Rebalance!$D$55,INDIRECT(\"a\" & (VLOOKUP(Rebalance!$D$55,$F$2:$G$48,2,FALSE)+ROW()-2)),\"\")","v":{"$error":"#N/A"}},{"$f":"IF(INDIRECT(\"c\" & (VLOOKUP(Rebalance!$D$56,$F$2:$G$48,2,FALSE)+ROW()-2))=Rebalance!$D$56,INDIRECT(\"a\" & (VLOOKUP(Rebalance!$D$56,$F$2:$G$48,2,FALSE)+ROW()-2)),\"\")","v":{"$error":"#N/A"}},{"$f":"IF(INDIRECT(\"c\" & (VLOOKUP(Rebalance!$D$57,$F$2:$G$48,2,FALSE)+ROW()-2))=Rebalance!$D$57,INDIRECT(\"a\" & (VLOOKUP(Rebalance!$D$57,$F$2:$G$48,2,FALSE)+ROW()-2)),\"\")","v":{"$error":"#N/A"}},{"$f":"IF(INDIRECT(\"c\" & (VLOOKUP(Rebalance!$D$58,$F$2:$G$48,2,FALSE)+ROW()-2))=Rebalance!$D$58,INDIRECT(\"a\" & (VLOOKUP(Rebalance!$D$58,$F$2:$G$48,2,FALSE)+ROW()-2)),\"\")","v":{"$error":"#N/A"}},{"$f":"IF(INDIRECT(\"c\" & (VLOOKUP(Rebalance!$D$59,$F$2:$G$48,2,FALSE)+ROW()-2))=Rebalance!$D$59,INDIRECT(\"a\" & (VLOOKUP(Rebalance!$D$59,$F$2:$G$48,2,FALSE)+ROW()-2)),\"\")","v":{"$error":"#N/A"}},{"$f":"IF(INDIRECT(\"c\" & (VLOOKUP(Rebalance!$D$60,$F$2:$G$48,2,FALSE)+ROW()-2))=Rebalance!$D$60,INDIRECT(\"a\" & (VLOOKUP(Rebalance!$D$60,$F$2:$G$48,2,FALSE)+ROW()-2)),\"\")","v":{"$error":"#N/A"}},{"$f":"IF(INDIRECT(\"c\" & (VLOOKUP(Rebalance!$D$61,$F$2:$G$48,2,FALSE)+ROW()-2))=Rebalance!$D$61,INDIRECT(\"a\" & (VLOOKUP(Rebalance!$D$61,$F$2:$G$48,2,FALSE)+ROW()-2)),\"\")","v":{"$error":"#N/A"}},{"$f":"IF(INDIRECT(\"c\" & (VLOOKUP(Rebalance!$D$62,$F$2:$G$48,2,FALSE)+ROW()-2))=Rebalance!$D$62,INDIRECT(\"a\" & (VLOOKUP(Rebalance!$D$62,$F$2:$G$48,2,FALSE)+ROW()-2)),\"\")","v":{"$error":"#N/A"}},{"$f":"IF(INDIRECT(\"c\" & (VLOOKUP(Rebalance!$D$63,$F$2:$G$48,2,FALSE)+ROW()-2))=Rebalance!$D$63,INDIRECT(\"a\" & (VLOOKUP(Rebalance!$D$63,$F$2:$G$48,2,FALSE)+ROW()-2)),\"\")","v":{"$error":"#N/A"}},{"$f":"IF(INDIRECT(\"c\" & (VLOOKUP(Rebalance!$D$64,$F$2:$G$48,2,FALSE)+ROW()-2))=Rebalance!$D$64,INDIRECT(\"a\" & (VLOOKUP(Rebalance!$D$64,$F$2:$G$48,2,FALSE)+ROW()-2)),\"\")","v":{"$error":"#N/A"}},{"$f":"IF(INDIRECT(\"c\" & (VLOOKUP(Rebalance!$D$65,$F$2:$G$48,2,FALSE)+ROW()-2))=Rebalance!$D$65,INDIRECT(\"a\" & (VLOOKUP(Rebalance!$D$65,$F$2:$G$48,2,FALSE)+ROW()-2)),\"\")","v":{"$error":"#N/A"}},{"$f":"IF(INDIRECT(\"c\" & (VLOOKUP(Rebalance!$D$66,$F$2:$G$48,2,FALSE)+ROW()-2))=Rebalance!$D$66,INDIRECT(\"a\" & (VLOOKUP(Rebalance!$D$66,$F$2:$G$48,2,FALSE)+ROW()-2)),\"\")","v":{"$error":"#N/A"}}]
["Nedgroup Inv Stable Fund C","NISA","Nedgroup Collective Investments Ltd",{"$f":"ROW()","v":382},null,null,{"$f":"VLOOKUP(F382,$C$2:$D$599,2,FALSE)","v":{"$error":"#N/A"}},{"$f":"IF(INDIRECT(\"c\" & (VLOOKUP(Rebalance!$D$26,$F$2:$G$48,2,FALSE)+ROW()-2))=Rebalance!$D$26,INDIRECT(\"a\" & (VLOOKUP(Rebalance!$D$26,$F$2:$G$48,2,FALSE)+ROW()-2)),\"\")","v":{"$error":"#N/A"}},{"$f":"IF(INDIRECT(\"c\" & (VLOOKUP(Rebalance!$D$27,$F$2:$G$48,2,FALSE)+ROW()-2))=Rebalance!$D$27,INDIRECT(\"a\" & (VLOOKUP(Rebalance!$D$27,$F$2:$G$48,2,FALSE)+ROW()-2)),\"\")","v":{"$error":"#N/A"}},{"$f":"IF(INDIRECT(\"c\" & (VLOOKUP(Rebalance!$D$28,$F$2:$G$48,2,FALSE)+ROW()-2))=Rebalance!$D$28,INDIRECT(\"a\" & (VLOOKUP(Rebalance!$D$28,$F$2:$G$48,2,FALSE)+ROW()-2)),\"\")","v":{"$error":"#N/A"}},{"$f":"IF(INDIRECT(\"c\" & (VLOOKUP(Rebalance!$D$29,$F$2:$G$48,2,FALSE)+ROW()-2))=Rebalance!$D$29,INDIRECT(\"a\" & (VLOOKUP(Rebalance!$D$29,$F$2:$G$48,2,FALSE)+ROW()-2)),\"\")","v":{"$error":"#N/A"}},{"$f":"IF(INDIRECT(\"c\" & (VLOOKUP(Rebalance!$D$30,$F$2:$G$48,2,FALSE)+ROW()-2))=Rebalance!$D$30,INDIRECT(\"a\" & (VLOOKUP(Rebalance!$D$30,$F$2:$G$48,2,FALSE)+ROW()-2)),\"\")","v":{"$error":"#N/A"}},{"$f":"IF(INDIRECT(\"c\" & (VLOOKUP(Rebalance!$D$31,$F$2:$G$48,2,FALSE)+ROW()-2))=Rebalance!$D$31,INDIRECT(\"a\" & (VLOOKUP(Rebalance!$D$31,$F$2:$G$48,2,FALSE)+ROW()-2)),\"\")","v":{"$error":"#N/A"}},{"$f":"IF(INDIRECT(\"c\" & (VLOOKUP(Rebalance!$D$32,$F$2:$G$48,2,FALSE)+ROW()-2))=Rebalance!$D$32,INDIRECT(\"a\" & (VLOOKUP(Rebalance!$D$32,$F$2:$G$48,2,FALSE)+ROW()-2)),\"\")","v":{"$error":"#N/A"}},{"$f":"IF(INDIRECT(\"c\" & (VLOOKUP(Rebalance!$D$33,$F$2:$G$48,2,FALSE)+ROW()-2))=Rebalance!$D$33,INDIRECT(\"a\" & (VLOOKUP(Rebalance!$D$33,$F$2:$G$48,2,FALSE)+ROW()-2)),\"\")","v":{"$error":"#N/A"}},{"$f":"IF(INDIRECT(\"c\" & (VLOOKUP(Rebalance!$D$34,$F$2:$G$48,2,FALSE)+ROW()-2))=Rebalance!$D$34,INDIRECT(\"a\" & (VLOOKUP(Rebalance!$D$34,$F$2:$G$48,2,FALSE)+ROW()-2)),\"\")","v":{"$error":"#N/A"}},{"$f":"IF(INDIRECT(\"c\" & (VLOOKUP(Rebalance!$D$35,$F$2:$G$48,2,FALSE)+ROW()-2))=Rebalance!$D$35,INDIRECT(\"a\" & (VLOOKUP(Rebalance!$D$35,$F$2:$G$48,2,FALSE)+ROW()-2)),\"\")","v":{"$error":"#N/A"}},{"$f":"IF(INDIRECT(\"c\" & (VLOOKUP(Rebalance!$D$36,$F$2:$G$48,2,FALSE)+ROW()-2))=Rebalance!$D$36,INDIRECT(\"a\" & (VLOOKUP(Rebalance!$D$36,$F$2:$G$48,2,FALSE)+ROW()-2)),\"\")","v":{"$error":"#N/A"}},{"$f":"IF(INDIRECT(\"c\" & (VLOOKUP(Rebalance!$D$37,$F$2:$G$48,2,FALSE)+ROW()-2))=Rebalance!$D$37,INDIRECT(\"a\" & (VLOOKUP(Rebalance!$D$37,$F$2:$G$48,2,FALSE)+ROW()-2)),\"\")","v":{"$error":"#N/A"}},{"$f":"IF(INDIRECT(\"c\" & (VLOOKUP(Rebalance!$D$38,$F$2:$G$48,2,FALSE)+ROW()-2))=Rebalance!$D$38,INDIRECT(\"a\" & (VLOOKUP(Rebalance!$D$38,$F$2:$G$48,2,FALSE)+ROW()-2)),\"\")","v":{"$error":"#N/A"}},{"$f":"IF(INDIRECT(\"c\" & (VLOOKUP(Rebalance!$D$39,$F$2:$G$48,2,FALSE)+ROW()-2))=Rebalance!$D$39,INDIRECT(\"a\" & (VLOOKUP(Rebalance!$D$39,$F$2:$G$48,2,FALSE)+ROW()-2)),\"\")","v":{"$error":"#N/A"}},{"$f":"IF(INDIRECT(\"c\" & (VLOOKUP(Rebalance!$D$40,$F$2:$G$48,2,FALSE)+ROW()-2))=Rebalance!$D$40,INDIRECT(\"a\" & (VLOOKUP(Rebalance!$D$40,$F$2:$G$48,2,FALSE)+ROW()-2)),\"\")","v":{"$error":"#N/A"}},{"$f":"IF(INDIRECT(\"c\" & (VLOOKUP(Rebalance!$D$52,$F$2:$G$48,2,FALSE)+ROW()-2))=Rebalance!$D$52,INDIRECT(\"a\" & (VLOOKUP(Rebalance!$D$52,$F$2:$G$48,2,FALSE)+ROW()-2)),\"\")","v":{"$error":"#N/A"}},{"$f":"IF(INDIRECT(\"c\" & (VLOOKUP(Rebalance!$D$53,$F$2:$G$48,2,FALSE)+ROW()-2))=Rebalance!$D$53,INDIRECT(\"a\" & (VLOOKUP(Rebalance!$D$53,$F$2:$G$48,2,FALSE)+ROW()-2)),\"\")","v":{"$error":"#N/A"}},{"$f":"IF(INDIRECT(\"c\" & (VLOOKUP(Rebalance!$D$54,$F$2:$G$48,2,FALSE)+ROW()-2))=Rebalance!$D$54,INDIRECT(\"a\" & (VLOOKUP(Rebalance!$D$54,$F$2:$G$48,2,FALSE)+ROW()-2)),\"\")","v":{"$error":"#N/A"}},{"$f":"IF(INDIRECT(\"c\" & (VLOOKUP(Rebalance!$D$55,$F$2:$G$48,2,FALSE)+ROW()-2))=Rebalance!$D$55,INDIRECT(\"a\" & (VLOOKUP(Rebalance!$D$55,$F$2:$G$48,2,FALSE)+ROW()-2)),\"\")","v":{"$error":"#N/A"}},{"$f":"IF(INDIRECT(\"c\" & (VLOOKUP(Rebalance!$D$56,$F$2:$G$48,2,FALSE)+ROW()-2))=Rebalance!$D$56,INDIRECT(\"a\" & (VLOOKUP(Rebalance!$D$56,$F$2:$G$48,2,FALSE)+ROW()-2)),\"\")","v":{"$error":"#N/A"}},{"$f":"IF(INDIRECT(\"c\" & (VLOOKUP(Rebalance!$D$57,$F$2:$G$48,2,FALSE)+ROW()-2))=Rebalance!$D$57,INDIRECT(\"a\" & (VLOOKUP(Rebalance!$D$57,$F$2:$G$48,2,FALSE)+ROW()-2)),\"\")","v":{"$error":"#N/A"}},{"$f":"IF(INDIRECT(\"c\" & (VLOOKUP(Rebalance!$D$58,$F$2:$G$48,2,FALSE)+ROW()-2))=Rebalance!$D$58,INDIRECT(\"a\" & (VLOOKUP(Rebalance!$D$58,$F$2:$G$48,2,FALSE)+ROW()-2)),\"\")","v":{"$error":"#N/A"}},{"$f":"IF(INDIRECT(\"c\" & (VLOOKUP(Rebalance!$D$59,$F$2:$G$48,2,FALSE)+ROW()-2))=Rebalance!$D$59,INDIRECT(\"a\" & (VLOOKUP(Rebalance!$D$59,$F$2:$G$48,2,FALSE)+ROW()-2)),\"\")","v":{"$error":"#N/A"}},{"$f":"IF(INDIRECT(\"c\" & (VLOOKUP(Rebalance!$D$60,$F$2:$G$48,2,FALSE)+ROW()-2))=Rebalance!$D$60,INDIRECT(\"a\" & (VLOOKUP(Rebalance!$D$60,$F$2:$G$48,2,FALSE)+ROW()-2)),\"\")","v":{"$error":"#N/A"}},{"$f":"IF(INDIRECT(\"c\" & (VLOOKUP(Rebalance!$D$61,$F$2:$G$48,2,FALSE)+ROW()-2))=Rebalance!$D$61,INDIRECT(\"a\" & (VLOOKUP(Rebalance!$D$61,$F$2:$G$48,2,FALSE)+ROW()-2)),\"\")","v":{"$error":"#N/A"}},{"$f":"IF(INDIRECT(\"c\" & (VLOOKUP(Rebalance!$D$62,$F$2:$G$48,2,FALSE)+ROW()-2))=Rebalance!$D$62,INDIRECT(\"a\" & (VLOOKUP(Rebalance!$D$62,$F$2:$G$48,2,FALSE)+ROW()-2)),\"\")","v":{"$error":"#N/A"}},{"$f":"IF(INDIRECT(\"c\" & (VLOOKUP(Rebalance!$D$63,$F$2:$G$48,2,FALSE)+ROW()-2))=Rebalance!$D$63,INDIRECT(\"a\" & (VLOOKUP(Rebalance!$D$63,$F$2:$G$48,2,FALSE)+ROW()-2)),\"\")","v":{"$error":"#N/A"}},{"$f":"IF(INDIRECT(\"c\" & (VLOOKUP(Rebalance!$D$64,$F$2:$G$48,2,FALSE)+ROW()-2))=Rebalance!$D$64,INDIRECT(\"a\" & (VLOOKUP(Rebalance!$D$64,$F$2:$G$48,2,FALSE)+ROW()-2)),\"\")","v":{"$error":"#N/A"}},{"$f":"IF(INDIRECT(\"c\" & (VLOOKUP(Rebalance!$D$65,$F$2:$G$48,2,FALSE)+ROW()-2))=Rebalance!$D$65,INDIRECT(\"a\" & (VLOOKUP(Rebalance!$D$65,$F$2:$G$48,2,FALSE)+ROW()-2)),\"\")","v":{"$error":"#N/A"}},{"$f":"IF(INDIRECT(\"c\" & (VLOOKUP(Rebalance!$D$66,$F$2:$G$48,2,FALSE)+ROW()-2))=Rebalance!$D$66,INDIRECT(\"a\" & (VLOOKUP(Rebalance!$D$66,$F$2:$G$48,2,FALSE)+ROW()-2)),\"\")","v":{"$error":"#N/A"}}]
["Nedgroup Inv Stable Fund Class A","NISA","Nedgroup Collective Investments Ltd",{"$f":"ROW()","v":383},null,null,{"$f":"VLOOKUP(F383,$C$2:$D$599,2,FALSE)","v":{"$error":"#N/A"}},{"$f":"IF(INDIRECT(\"c\" & (VLOOKUP(Rebalance!$D$26,$F$2:$G$48,2,FALSE)+ROW()-2))=Rebalance!$D$26,INDIRECT(\"a\" & (VLOOKUP(Rebalance!$D$26,$F$2:$G$48,2,FALSE)+ROW()-2)),\"\")","v":{"$error":"#N/A"}},{"$f":"IF(INDIRECT(\"c\" & (VLOOKUP(Rebalance!$D$27,$F$2:$G$48,2,FALSE)+ROW()-2))=Rebalance!$D$27,INDIRECT(\"a\" & (VLOOKUP(Rebalance!$D$27,$F$2:$G$48,2,FALSE)+ROW()-2)),\"\")","v":{"$error":"#N/A"}},{"$f":"IF(INDIRECT(\"c\" & (VLOOKUP(Rebalance!$D$28,$F$2:$G$48,2,FALSE)+ROW()-2))=Rebalance!$D$28,INDIRECT(\"a\" & (VLOOKUP(Rebalance!$D$28,$F$2:$G$48,2,FALSE)+ROW()-2)),\"\")","v":{"$error":"#N/A"}},{"$f":"IF(INDIRECT(\"c\" & (VLOOKUP(Rebalance!$D$29,$F$2:$G$48,2,FALSE)+ROW()-2))=Rebalance!$D$29,INDIRECT(\"a\" & (VLOOKUP(Rebalance!$D$29,$F$2:$G$48,2,FALSE)+ROW()-2)),\"\")","v":{"$error":"#N/A"}},{"$f":"IF(INDIRECT(\"c\" & (VLOOKUP(Rebalance!$D$30,$F$2:$G$48,2,FALSE)+ROW()-2))=Rebalance!$D$30,INDIRECT(\"a\" & (VLOOKUP(Rebalance!$D$30,$F$2:$G$48,2,FALSE)+ROW()-2)),\"\")","v":{"$error":"#N/A"}},{"$f":"IF(INDIRECT(\"c\" & (VLOOKUP(Rebalance!$D$31,$F$2:$G$48,2,FALSE)+ROW()-2))=Rebalance!$D$31,INDIRECT(\"a\" & (VLOOKUP(Rebalance!$D$31,$F$2:$G$48,2,FALSE)+ROW()-2)),\"\")","v":{"$error":"#N/A"}},{"$f":"IF(INDIRECT(\"c\" & (VLOOKUP(Rebalance!$D$32,$F$2:$G$48,2,FALSE)+ROW()-2))=Rebalance!$D$32,INDIRECT(\"a\" & (VLOOKUP(Rebalance!$D$32,$F$2:$G$48,2,FALSE)+ROW()-2)),\"\")","v":{"$error":"#N/A"}},{"$f":"IF(INDIRECT(\"c\" & (VLOOKUP(Rebalance!$D$33,$F$2:$G$48,2,FALSE)+ROW()-2))=Rebalance!$D$33,INDIRECT(\"a\" & (VLOOKUP(Rebalance!$D$33,$F$2:$G$48,2,FALSE)+ROW()-2)),\"\")","v":{"$error":"#N/A"}},{"$f":"IF(INDIRECT(\"c\" & (VLOOKUP(Rebalance!$D$34,$F$2:$G$48,2,FALSE)+ROW()-2))=Rebalance!$D$34,INDIRECT(\"a\" & (VLOOKUP(Rebalance!$D$34,$F$2:$G$48,2,FALSE)+ROW()-2)),\"\")","v":{"$error":"#N/A"}},{"$f":"IF(INDIRECT(\"c\" & (VLOOKUP(Rebalance!$D$35,$F$2:$G$48,2,FALSE)+ROW()-2))=Rebalance!$D$35,INDIRECT(\"a\" & (VLOOKUP(Rebalance!$D$35,$F$2:$G$48,2,FALSE)+ROW()-2)),\"\")","v":{"$error":"#N/A"}},{"$f":"IF(INDIRECT(\"c\" & (VLOOKUP(Rebalance!$D$36,$F$2:$G$48,2,FALSE)+ROW()-2))=Rebalance!$D$36,INDIRECT(\"a\" & (VLOOKUP(Rebalance!$D$36,$F$2:$G$48,2,FALSE)+ROW()-2)),\"\")","v":{"$error":"#N/A"}},{"$f":"IF(INDIRECT(\"c\" & (VLOOKUP(Rebalance!$D$37,$F$2:$G$48,2,FALSE)+ROW()-2))=Rebalance!$D$37,INDIRECT(\"a\" & (VLOOKUP(Rebalance!$D$37,$F$2:$G$48,2,FALSE)+ROW()-2)),\"\")","v":{"$error":"#N/A"}},{"$f":"IF(INDIRECT(\"c\" & (VLOOKUP(Rebalance!$D$38,$F$2:$G$48,2,FALSE)+ROW()-2))=Rebalance!$D$38,INDIRECT(\"a\" & (VLOOKUP(Rebalance!$D$38,$F$2:$G$48,2,FALSE)+ROW()-2)),\"\")","v":{"$error":"#N/A"}},{"$f":"IF(INDIRECT(\"c\" & (VLOOKUP(Rebalance!$D$39,$F$2:$G$48,2,FALSE)+ROW()-2))=Rebalance!$D$39,INDIRECT(\"a\" & (VLOOKUP(Rebalance!$D$39,$F$2:$G$48,2,FALSE)+ROW()-2)),\"\")","v":{"$error":"#N/A"}},{"$f":"IF(INDIRECT(\"c\" & (VLOOKUP(Rebalance!$D$40,$F$2:$G$48,2,FALSE)+ROW()-2))=Rebalance!$D$40,INDIRECT(\"a\" & (VLOOKUP(Rebalance!$D$40,$F$2:$G$48,2,FALSE)+ROW()-2)),\"\")","v":{"$error":"#N/A"}},{"$f":"IF(INDIRECT(\"c\" & (VLOOKUP(Rebalance!$D$52,$F$2:$G$48,2,FALSE)+ROW()-2))=Rebalance!$D$52,INDIRECT(\"a\" & (VLOOKUP(Rebalance!$D$52,$F$2:$G$48,2,FALSE)+ROW()-2)),\"\")","v":{"$error":"#N/A"}},{"$f":"IF(INDIRECT(\"c\" & (VLOOKUP(Rebalance!$D$53,$F$2:$G$48,2,FALSE)+ROW()-2))=Rebalance!$D$53,INDIRECT(\"a\" & (VLOOKUP(Rebalance!$D$53,$F$2:$G$48,2,FALSE)+ROW()-2)),\"\")","v":{"$error":"#N/A"}},{"$f":"IF(INDIRECT(\"c\" & (VLOOKUP(Rebalance!$D$54,$F$2:$G$48,2,FALSE)+ROW()-2))=Rebalance!$D$54,INDIRECT(\"a\" & (VLOOKUP(Rebalance!$D$54,$F$2:$G$48,2,FALSE)+ROW()-2)),\"\")","v":{"$error":"#N/A"}},{"$f":"IF(INDIRECT(\"c\" & (VLOOKUP(Rebalance!$D$55,$F$2:$G$48,2,FALSE)+ROW()-2))=Rebalance!$D$55,INDIRECT(\"a\" & (VLOOKUP(Rebalance!$D$55,$F$2:$G$48,2,FALSE)+ROW()-2)),\"\")","v":{"$error":"#N/A"}},{"$f":"IF(INDIRECT(\"c\" & (VLOOKUP(Rebalance!$D$56,$F$2:$G$48,2,FALSE)+ROW()-2))=Rebalance!$D$56,INDIRECT(\"a\" & (VLOOKUP(Rebalance!$D$56,$F$2:$G$48,2,FALSE)+ROW()-2)),\"\")","v":{"$error":"#N/A"}},{"$f":"IF(INDIRECT(\"c\" & (VLOOKUP(Rebalance!$D$57,$F$2:$G$48,2,FALSE)+ROW()-2))=Rebalance!$D$57,INDIRECT(\"a\" & (VLOOKUP(Rebalance!$D$57,$F$2:$G$48,2,FALSE)+ROW()-2)),\"\")","v":{"$error":"#N/A"}},{"$f":"IF(INDIRECT(\"c\" & (VLOOKUP(Rebalance!$D$58,$F$2:$G$48,2,FALSE)+ROW()-2))=Rebalance!$D$58,INDIRECT(\"a\" & (VLOOKUP(Rebalance!$D$58,$F$2:$G$48,2,FALSE)+ROW()-2)),\"\")","v":{"$error":"#N/A"}},{"$f":"IF(INDIRECT(\"c\" & (VLOOKUP(Rebalance!$D$59,$F$2:$G$48,2,FALSE)+ROW()-2))=Rebalance!$D$59,INDIRECT(\"a\" & (VLOOKUP(Rebalance!$D$59,$F$2:$G$48,2,FALSE)+ROW()-2)),\"\")","v":{"$error":"#N/A"}},{"$f":"IF(INDIRECT(\"c\" & (VLOOKUP(Rebalance!$D$60,$F$2:$G$48,2,FALSE)+ROW()-2))=Rebalance!$D$60,INDIRECT(\"a\" & (VLOOKUP(Rebalance!$D$60,$F$2:$G$48,2,FALSE)+ROW()-2)),\"\")","v":{"$error":"#N/A"}},{"$f":"IF(INDIRECT(\"c\" & (VLOOKUP(Rebalance!$D$61,$F$2:$G$48,2,FALSE)+ROW()-2))=Rebalance!$D$61,INDIRECT(\"a\" & (VLOOKUP(Rebalance!$D$61,$F$2:$G$48,2,FALSE)+ROW()-2)),\"\")","v":{"$error":"#N/A"}},{"$f":"IF(INDIRECT(\"c\" & (VLOOKUP(Rebalance!$D$62,$F$2:$G$48,2,FALSE)+ROW()-2))=Rebalance!$D$62,INDIRECT(\"a\" & (VLOOKUP(Rebalance!$D$62,$F$2:$G$48,2,FALSE)+ROW()-2)),\"\")","v":{"$error":"#N/A"}},{"$f":"IF(INDIRECT(\"c\" & (VLOOKUP(Rebalance!$D$63,$F$2:$G$48,2,FALSE)+ROW()-2))=Rebalance!$D$63,INDIRECT(\"a\" & (VLOOKUP(Rebalance!$D$63,$F$2:$G$48,2,FALSE)+ROW()-2)),\"\")","v":{"$error":"#N/A"}},{"$f":"IF(INDIRECT(\"c\" & (VLOOKUP(Rebalance!$D$64,$F$2:$G$48,2,FALSE)+ROW()-2))=Rebalance!$D$64,INDIRECT(\"a\" & (VLOOKUP(Rebalance!$D$64,$F$2:$G$48,2,FALSE)+ROW()-2)),\"\")","v":{"$error":"#N/A"}},{"$f":"IF(INDIRECT(\"c\" & (VLOOKUP(Rebalance!$D$65,$F$2:$G$48,2,FALSE)+ROW()-2))=Rebalance!$D$65,INDIRECT(\"a\" & (VLOOKUP(Rebalance!$D$65,$F$2:$G$48,2,FALSE)+ROW()-2)),\"\")","v":{"$error":"#N/A"}},{"$f":"IF(INDIRECT(\"c\" & (VLOOKUP(Rebalance!$D$66,$F$2:$G$48,2,FALSE)+ROW()-2))=Rebalance!$D$66,INDIRECT(\"a\" & (VLOOKUP(Rebalance!$D$66,$F$2:$G$48,2,FALSE)+ROW()-2)),\"\")","v":{"$error":"#N/A"}}]
["Nedgroup Inv Entrepreneur Fund A","NEFB","Nedgroup Collective Investments Ltd",{"$f":"ROW()","v":384},null,null,{"$f":"VLOOKUP(F384,$C$2:$D$599,2,FALSE)","v":{"$error":"#N/A"}},{"$f":"IF(INDIRECT(\"c\" & (VLOOKUP(Rebalance!$D$26,$F$2:$G$48,2,FALSE)+ROW()-2))=Rebalance!$D$26,INDIRECT(\"a\" & (VLOOKUP(Rebalance!$D$26,$F$2:$G$48,2,FALSE)+ROW()-2)),\"\")","v":{"$error":"#N/A"}},{"$f":"IF(INDIRECT(\"c\" & (VLOOKUP(Rebalance!$D$27,$F$2:$G$48,2,FALSE)+ROW()-2))=Rebalance!$D$27,INDIRECT(\"a\" & (VLOOKUP(Rebalance!$D$27,$F$2:$G$48,2,FALSE)+ROW()-2)),\"\")","v":{"$error":"#N/A"}},{"$f":"IF(INDIRECT(\"c\" & (VLOOKUP(Rebalance!$D$28,$F$2:$G$48,2,FALSE)+ROW()-2))=Rebalance!$D$28,INDIRECT(\"a\" & (VLOOKUP(Rebalance!$D$28,$F$2:$G$48,2,FALSE)+ROW()-2)),\"\")","v":{"$error":"#N/A"}},{"$f":"IF(INDIRECT(\"c\" & (VLOOKUP(Rebalance!$D$29,$F$2:$G$48,2,FALSE)+ROW()-2))=Rebalance!$D$29,INDIRECT(\"a\" & (VLOOKUP(Rebalance!$D$29,$F$2:$G$48,2,FALSE)+ROW()-2)),\"\")","v":{"$error":"#N/A"}},{"$f":"IF(INDIRECT(\"c\" & (VLOOKUP(Rebalance!$D$30,$F$2:$G$48,2,FALSE)+ROW()-2))=Rebalance!$D$30,INDIRECT(\"a\" & (VLOOKUP(Rebalance!$D$30,$F$2:$G$48,2,FALSE)+ROW()-2)),\"\")","v":{"$error":"#N/A"}},{"$f":"IF(INDIRECT(\"c\" & (VLOOKUP(Rebalance!$D$31,$F$2:$G$48,2,FALSE)+ROW()-2))=Rebalance!$D$31,INDIRECT(\"a\" & (VLOOKUP(Rebalance!$D$31,$F$2:$G$48,2,FALSE)+ROW()-2)),\"\")","v":{"$error":"#N/A"}},{"$f":"IF(INDIRECT(\"c\" & (VLOOKUP(Rebalance!$D$32,$F$2:$G$48,2,FALSE)+ROW()-2))=Rebalance!$D$32,INDIRECT(\"a\" & (VLOOKUP(Rebalance!$D$32,$F$2:$G$48,2,FALSE)+ROW()-2)),\"\")","v":{"$error":"#N/A"}},{"$f":"IF(INDIRECT(\"c\" & (VLOOKUP(Rebalance!$D$33,$F$2:$G$48,2,FALSE)+ROW()-2))=Rebalance!$D$33,INDIRECT(\"a\" & (VLOOKUP(Rebalance!$D$33,$F$2:$G$48,2,FALSE)+ROW()-2)),\"\")","v":{"$error":"#N/A"}},{"$f":"IF(INDIRECT(\"c\" & (VLOOKUP(Rebalance!$D$34,$F$2:$G$48,2,FALSE)+ROW()-2))=Rebalance!$D$34,INDIRECT(\"a\" & (VLOOKUP(Rebalance!$D$34,$F$2:$G$48,2,FALSE)+ROW()-2)),\"\")","v":{"$error":"#N/A"}},{"$f":"IF(INDIRECT(\"c\" & (VLOOKUP(Rebalance!$D$35,$F$2:$G$48,2,FALSE)+ROW()-2))=Rebalance!$D$35,INDIRECT(\"a\" & (VLOOKUP(Rebalance!$D$35,$F$2:$G$48,2,FALSE)+ROW()-2)),\"\")","v":{"$error":"#N/A"}},{"$f":"IF(INDIRECT(\"c\" & (VLOOKUP(Rebalance!$D$36,$F$2:$G$48,2,FALSE)+ROW()-2))=Rebalance!$D$36,INDIRECT(\"a\" & (VLOOKUP(Rebalance!$D$36,$F$2:$G$48,2,FALSE)+ROW()-2)),\"\")","v":{"$error":"#N/A"}},{"$f":"IF(INDIRECT(\"c\" & (VLOOKUP(Rebalance!$D$37,$F$2:$G$48,2,FALSE)+ROW()-2))=Rebalance!$D$37,INDIRECT(\"a\" & (VLOOKUP(Rebalance!$D$37,$F$2:$G$48,2,FALSE)+ROW()-2)),\"\")","v":{"$error":"#N/A"}},{"$f":"IF(INDIRECT(\"c\" & (VLOOKUP(Rebalance!$D$38,$F$2:$G$48,2,FALSE)+ROW()-2))=Rebalance!$D$38,INDIRECT(\"a\" & (VLOOKUP(Rebalance!$D$38,$F$2:$G$48,2,FALSE)+ROW()-2)),\"\")","v":{"$error":"#N/A"}},{"$f":"IF(INDIRECT(\"c\" & (VLOOKUP(Rebalance!$D$39,$F$2:$G$48,2,FALSE)+ROW()-2))=Rebalance!$D$39,INDIRECT(\"a\" & (VLOOKUP(Rebalance!$D$39,$F$2:$G$48,2,FALSE)+ROW()-2)),\"\")","v":{"$error":"#N/A"}},{"$f":"IF(INDIRECT(\"c\" & (VLOOKUP(Rebalance!$D$40,$F$2:$G$48,2,FALSE)+ROW()-2))=Rebalance!$D$40,INDIRECT(\"a\" & (VLOOKUP(Rebalance!$D$40,$F$2:$G$48,2,FALSE)+ROW()-2)),\"\")","v":{"$error":"#N/A"}},{"$f":"IF(INDIRECT(\"c\" & (VLOOKUP(Rebalance!$D$52,$F$2:$G$48,2,FALSE)+ROW()-2))=Rebalance!$D$52,INDIRECT(\"a\" & (VLOOKUP(Rebalance!$D$52,$F$2:$G$48,2,FALSE)+ROW()-2)),\"\")","v":{"$error":"#N/A"}},{"$f":"IF(INDIRECT(\"c\" & (VLOOKUP(Rebalance!$D$53,$F$2:$G$48,2,FALSE)+ROW()-2))=Rebalance!$D$53,INDIRECT(\"a\" & (VLOOKUP(Rebalance!$D$53,$F$2:$G$48,2,FALSE)+ROW()-2)),\"\")","v":{"$error":"#N/A"}},{"$f":"IF(INDIRECT(\"c\" & (VLOOKUP(Rebalance!$D$54,$F$2:$G$48,2,FALSE)+ROW()-2))=Rebalance!$D$54,INDIRECT(\"a\" & (VLOOKUP(Rebalance!$D$54,$F$2:$G$48,2,FALSE)+ROW()-2)),\"\")","v":{"$error":"#N/A"}},{"$f":"IF(INDIRECT(\"c\" & (VLOOKUP(Rebalance!$D$55,$F$2:$G$48,2,FALSE)+ROW()-2))=Rebalance!$D$55,INDIRECT(\"a\" & (VLOOKUP(Rebalance!$D$55,$F$2:$G$48,2,FALSE)+ROW()-2)),\"\")","v":{"$error":"#N/A"}},{"$f":"IF(INDIRECT(\"c\" & (VLOOKUP(Rebalance!$D$56,$F$2:$G$48,2,FALSE)+ROW()-2))=Rebalance!$D$56,INDIRECT(\"a\" & (VLOOKUP(Rebalance!$D$56,$F$2:$G$48,2,FALSE)+ROW()-2)),\"\")","v":{"$error":"#N/A"}},{"$f":"IF(INDIRECT(\"c\" & (VLOOKUP(Rebalance!$D$57,$F$2:$G$48,2,FALSE)+ROW()-2))=Rebalance!$D$57,INDIRECT(\"a\" & (VLOOKUP(Rebalance!$D$57,$F$2:$G$48,2,FALSE)+ROW()-2)),\"\")","v":{"$error":"#N/A"}},{"$f":"IF(INDIRECT(\"c\" & (VLOOKUP(Rebalance!$D$58,$F$2:$G$48,2,FALSE)+ROW()-2))=Rebalance!$D$58,INDIRECT(\"a\" & (VLOOKUP(Rebalance!$D$58,$F$2:$G$48,2,FALSE)+ROW()-2)),\"\")","v":{"$error":"#N/A"}},{"$f":"IF(INDIRECT(\"c\" & (VLOOKUP(Rebalance!$D$59,$F$2:$G$48,2,FALSE)+ROW()-2))=Rebalance!$D$59,INDIRECT(\"a\" & (VLOOKUP(Rebalance!$D$59,$F$2:$G$48,2,FALSE)+ROW()-2)),\"\")","v":{"$error":"#N/A"}},{"$f":"IF(INDIRECT(\"c\" & (VLOOKUP(Rebalance!$D$60,$F$2:$G$48,2,FALSE)+ROW()-2))=Rebalance!$D$60,INDIRECT(\"a\" & (VLOOKUP(Rebalance!$D$60,$F$2:$G$48,2,FALSE)+ROW()-2)),\"\")","v":{"$error":"#N/A"}},{"$f":"IF(INDIRECT(\"c\" & (VLOOKUP(Rebalance!$D$61,$F$2:$G$48,2,FALSE)+ROW()-2))=Rebalance!$D$61,INDIRECT(\"a\" & (VLOOKUP(Rebalance!$D$61,$F$2:$G$48,2,FALSE)+ROW()-2)),\"\")","v":{"$error":"#N/A"}},{"$f":"IF(INDIRECT(\"c\" & (VLOOKUP(Rebalance!$D$62,$F$2:$G$48,2,FALSE)+ROW()-2))=Rebalance!$D$62,INDIRECT(\"a\" & (VLOOKUP(Rebalance!$D$62,$F$2:$G$48,2,FALSE)+ROW()-2)),\"\")","v":{"$error":"#N/A"}},{"$f":"IF(INDIRECT(\"c\" & (VLOOKUP(Rebalance!$D$63,$F$2:$G$48,2,FALSE)+ROW()-2))=Rebalance!$D$63,INDIRECT(\"a\" & (VLOOKUP(Rebalance!$D$63,$F$2:$G$48,2,FALSE)+ROW()-2)),\"\")","v":{"$error":"#N/A"}},{"$f":"IF(INDIRECT(\"c\" & (VLOOKUP(Rebalance!$D$64,$F$2:$G$48,2,FALSE)+ROW()-2))=Rebalance!$D$64,INDIRECT(\"a\" & (VLOOKUP(Rebalance!$D$64,$F$2:$G$48,2,FALSE)+ROW()-2)),\"\")","v":{"$error":"#N/A"}},{"$f":"IF(INDIRECT(\"c\" & (VLOOKUP(Rebalance!$D$65,$F$2:$G$48,2,FALSE)+ROW()-2))=Rebalance!$D$65,INDIRECT(\"a\" & (VLOOKUP(Rebalance!$D$65,$F$2:$G$48,2,FALSE)+ROW()-2)),\"\")","v":{"$error":"#N/A"}},{"$f":"IF(INDIRECT(\"c\" & (VLOOKUP(Rebalance!$D$66,$F$2:$G$48,2,FALSE)+ROW()-2))=Rebalance!$D$66,INDIRECT(\"a\" & (VLOOKUP(Rebalance!$D$66,$F$2:$G$48,2,FALSE)+ROW()-2)),\"\")","v":{"$error":"#N/A"}}]
["Nedgroup Inv Financials Fund A","UALA","Nedgroup Collective Investments Ltd",{"$f":"ROW()","v":385},null,null,{"$f":"VLOOKUP(F385,$C$2:$D$599,2,FALSE)","v":{"$error":"#N/A"}},{"$f":"IF(INDIRECT(\"c\" & (VLOOKUP(Rebalance!$D$26,$F$2:$G$48,2,FALSE)+ROW()-2))=Rebalance!$D$26,INDIRECT(\"a\" & (VLOOKUP(Rebalance!$D$26,$F$2:$G$48,2,FALSE)+ROW()-2)),\"\")","v":{"$error":"#N/A"}},{"$f":"IF(INDIRECT(\"c\" & (VLOOKUP(Rebalance!$D$27,$F$2:$G$48,2,FALSE)+ROW()-2))=Rebalance!$D$27,INDIRECT(\"a\" & (VLOOKUP(Rebalance!$D$27,$F$2:$G$48,2,FALSE)+ROW()-2)),\"\")","v":{"$error":"#N/A"}},{"$f":"IF(INDIRECT(\"c\" & (VLOOKUP(Rebalance!$D$28,$F$2:$G$48,2,FALSE)+ROW()-2))=Rebalance!$D$28,INDIRECT(\"a\" & (VLOOKUP(Rebalance!$D$28,$F$2:$G$48,2,FALSE)+ROW()-2)),\"\")","v":{"$error":"#N/A"}},{"$f":"IF(INDIRECT(\"c\" & (VLOOKUP(Rebalance!$D$29,$F$2:$G$48,2,FALSE)+ROW()-2))=Rebalance!$D$29,INDIRECT(\"a\" & (VLOOKUP(Rebalance!$D$29,$F$2:$G$48,2,FALSE)+ROW()-2)),\"\")","v":{"$error":"#N/A"}},{"$f":"IF(INDIRECT(\"c\" & (VLOOKUP(Rebalance!$D$30,$F$2:$G$48,2,FALSE)+ROW()-2))=Rebalance!$D$30,INDIRECT(\"a\" & (VLOOKUP(Rebalance!$D$30,$F$2:$G$48,2,FALSE)+ROW()-2)),\"\")","v":{"$error":"#N/A"}},{"$f":"IF(INDIRECT(\"c\" & (VLOOKUP(Rebalance!$D$31,$F$2:$G$48,2,FALSE)+ROW()-2))=Rebalance!$D$31,INDIRECT(\"a\" & (VLOOKUP(Rebalance!$D$31,$F$2:$G$48,2,FALSE)+ROW()-2)),\"\")","v":{"$error":"#N/A"}},{"$f":"IF(INDIRECT(\"c\" & (VLOOKUP(Rebalance!$D$32,$F$2:$G$48,2,FALSE)+ROW()-2))=Rebalance!$D$32,INDIRECT(\"a\" & (VLOOKUP(Rebalance!$D$32,$F$2:$G$48,2,FALSE)+ROW()-2)),\"\")","v":{"$error":"#N/A"}},{"$f":"IF(INDIRECT(\"c\" & (VLOOKUP(Rebalance!$D$33,$F$2:$G$48,2,FALSE)+ROW()-2))=Rebalance!$D$33,INDIRECT(\"a\" & (VLOOKUP(Rebalance!$D$33,$F$2:$G$48,2,FALSE)+ROW()-2)),\"\")","v":{"$error":"#N/A"}},{"$f":"IF(INDIRECT(\"c\" & (VLOOKUP(Rebalance!$D$34,$F$2:$G$48,2,FALSE)+ROW()-2))=Rebalance!$D$34,INDIRECT(\"a\" & (VLOOKUP(Rebalance!$D$34,$F$2:$G$48,2,FALSE)+ROW()-2)),\"\")","v":{"$error":"#N/A"}},{"$f":"IF(INDIRECT(\"c\" & (VLOOKUP(Rebalance!$D$35,$F$2:$G$48,2,FALSE)+ROW()-2))=Rebalance!$D$35,INDIRECT(\"a\" & (VLOOKUP(Rebalance!$D$35,$F$2:$G$48,2,FALSE)+ROW()-2)),\"\")","v":{"$error":"#N/A"}},{"$f":"IF(INDIRECT(\"c\" & (VLOOKUP(Rebalance!$D$36,$F$2:$G$48,2,FALSE)+ROW()-2))=Rebalance!$D$36,INDIRECT(\"a\" & (VLOOKUP(Rebalance!$D$36,$F$2:$G$48,2,FALSE)+ROW()-2)),\"\")","v":{"$error":"#N/A"}},{"$f":"IF(INDIRECT(\"c\" & (VLOOKUP(Rebalance!$D$37,$F$2:$G$48,2,FALSE)+ROW()-2))=Rebalance!$D$37,INDIRECT(\"a\" & (VLOOKUP(Rebalance!$D$37,$F$2:$G$48,2,FALSE)+ROW()-2)),\"\")","v":{"$error":"#N/A"}},{"$f":"IF(INDIRECT(\"c\" & (VLOOKUP(Rebalance!$D$38,$F$2:$G$48,2,FALSE)+ROW()-2))=Rebalance!$D$38,INDIRECT(\"a\" & (VLOOKUP(Rebalance!$D$38,$F$2:$G$48,2,FALSE)+ROW()-2)),\"\")","v":{"$error":"#N/A"}},{"$f":"IF(INDIRECT(\"c\" & (VLOOKUP(Rebalance!$D$39,$F$2:$G$48,2,FALSE)+ROW()-2))=Rebalance!$D$39,INDIRECT(\"a\" & (VLOOKUP(Rebalance!$D$39,$F$2:$G$48,2,FALSE)+ROW()-2)),\"\")","v":{"$error":"#N/A"}},{"$f":"IF(INDIRECT(\"c\" & (VLOOKUP(Rebalance!$D$40,$F$2:$G$48,2,FALSE)+ROW()-2))=Rebalance!$D$40,INDIRECT(\"a\" & (VLOOKUP(Rebalance!$D$40,$F$2:$G$48,2,FALSE)+ROW()-2)),\"\")","v":{"$error":"#N/A"}},{"$f":"IF(INDIRECT(\"c\" & (VLOOKUP(Rebalance!$D$52,$F$2:$G$48,2,FALSE)+ROW()-2))=Rebalance!$D$52,INDIRECT(\"a\" & (VLOOKUP(Rebalance!$D$52,$F$2:$G$48,2,FALSE)+ROW()-2)),\"\")","v":{"$error":"#N/A"}},{"$f":"IF(INDIRECT(\"c\" & (VLOOKUP(Rebalance!$D$53,$F$2:$G$48,2,FALSE)+ROW()-2))=Rebalance!$D$53,INDIRECT(\"a\" & (VLOOKUP(Rebalance!$D$53,$F$2:$G$48,2,FALSE)+ROW()-2)),\"\")","v":{"$error":"#N/A"}},{"$f":"IF(INDIRECT(\"c\" & (VLOOKUP(Rebalance!$D$54,$F$2:$G$48,2,FALSE)+ROW()-2))=Rebalance!$D$54,INDIRECT(\"a\" & (VLOOKUP(Rebalance!$D$54,$F$2:$G$48,2,FALSE)+ROW()-2)),\"\")","v":{"$error":"#N/A"}},{"$f":"IF(INDIRECT(\"c\" & (VLOOKUP(Rebalance!$D$55,$F$2:$G$48,2,FALSE)+ROW()-2))=Rebalance!$D$55,INDIRECT(\"a\" & (VLOOKUP(Rebalance!$D$55,$F$2:$G$48,2,FALSE)+ROW()-2)),\"\")","v":{"$error":"#N/A"}},{"$f":"IF(INDIRECT(\"c\" & (VLOOKUP(Rebalance!$D$56,$F$2:$G$48,2,FALSE)+ROW()-2))=Rebalance!$D$56,INDIRECT(\"a\" & (VLOOKUP(Rebalance!$D$56,$F$2:$G$48,2,FALSE)+ROW()-2)),\"\")","v":{"$error":"#N/A"}},{"$f":"IF(INDIRECT(\"c\" & (VLOOKUP(Rebalance!$D$57,$F$2:$G$48,2,FALSE)+ROW()-2))=Rebalance!$D$57,INDIRECT(\"a\" & (VLOOKUP(Rebalance!$D$57,$F$2:$G$48,2,FALSE)+ROW()-2)),\"\")","v":{"$error":"#N/A"}},{"$f":"IF(INDIRECT(\"c\" & (VLOOKUP(Rebalance!$D$58,$F$2:$G$48,2,FALSE)+ROW()-2))=Rebalance!$D$58,INDIRECT(\"a\" & (VLOOKUP(Rebalance!$D$58,$F$2:$G$48,2,FALSE)+ROW()-2)),\"\")","v":{"$error":"#N/A"}},{"$f":"IF(INDIRECT(\"c\" & (VLOOKUP(Rebalance!$D$59,$F$2:$G$48,2,FALSE)+ROW()-2))=Rebalance!$D$59,INDIRECT(\"a\" & (VLOOKUP(Rebalance!$D$59,$F$2:$G$48,2,FALSE)+ROW()-2)),\"\")","v":{"$error":"#N/A"}},{"$f":"IF(INDIRECT(\"c\" & (VLOOKUP(Rebalance!$D$60,$F$2:$G$48,2,FALSE)+ROW()-2))=Rebalance!$D$60,INDIRECT(\"a\" & (VLOOKUP(Rebalance!$D$60,$F$2:$G$48,2,FALSE)+ROW()-2)),\"\")","v":{"$error":"#N/A"}},{"$f":"IF(INDIRECT(\"c\" & (VLOOKUP(Rebalance!$D$61,$F$2:$G$48,2,FALSE)+ROW()-2))=Rebalance!$D$61,INDIRECT(\"a\" & (VLOOKUP(Rebalance!$D$61,$F$2:$G$48,2,FALSE)+ROW()-2)),\"\")","v":{"$error":"#N/A"}},{"$f":"IF(INDIRECT(\"c\" & (VLOOKUP(Rebalance!$D$62,$F$2:$G$48,2,FALSE)+ROW()-2))=Rebalance!$D$62,INDIRECT(\"a\" & (VLOOKUP(Rebalance!$D$62,$F$2:$G$48,2,FALSE)+ROW()-2)),\"\")","v":{"$error":"#N/A"}},{"$f":"IF(INDIRECT(\"c\" & (VLOOKUP(Rebalance!$D$63,$F$2:$G$48,2,FALSE)+ROW()-2))=Rebalance!$D$63,INDIRECT(\"a\" & (VLOOKUP(Rebalance!$D$63,$F$2:$G$48,2,FALSE)+ROW()-2)),\"\")","v":{"$error":"#N/A"}},{"$f":"IF(INDIRECT(\"c\" & (VLOOKUP(Rebalance!$D$64,$F$2:$G$48,2,FALSE)+ROW()-2))=Rebalance!$D$64,INDIRECT(\"a\" & (VLOOKUP(Rebalance!$D$64,$F$2:$G$48,2,FALSE)+ROW()-2)),\"\")","v":{"$error":"#N/A"}},{"$f":"IF(INDIRECT(\"c\" & (VLOOKUP(Rebalance!$D$65,$F$2:$G$48,2,FALSE)+ROW()-2))=Rebalance!$D$65,INDIRECT(\"a\" & (VLOOKUP(Rebalance!$D$65,$F$2:$G$48,2,FALSE)+ROW()-2)),\"\")","v":{"$error":"#N/A"}},{"$f":"IF(INDIRECT(\"c\" & (VLOOKUP(Rebalance!$D$66,$F$2:$G$48,2,FALSE)+ROW()-2))=Rebalance!$D$66,INDIRECT(\"a\" & (VLOOKUP(Rebalance!$D$66,$F$2:$G$48,2,FALSE)+ROW()-2)),\"\")","v":{"$error":"#N/A"}}]
["Nedgroup Inv Managed Fund A","NDBM","Nedgroup Collective Investments Ltd",{"$f":"ROW()","v":386},null,null,{"$f":"VLOOKUP(F386,$C$2:$D$599,2,FALSE)","v":{"$error":"#N/A"}},{"$f":"IF(INDIRECT(\"c\" & (VLOOKUP(Rebalance!$D$26,$F$2:$G$48,2,FALSE)+ROW()-2))=Rebalance!$D$26,INDIRECT(\"a\" & (VLOOKUP(Rebalance!$D$26,$F$2:$G$48,2,FALSE)+ROW()-2)),\"\")","v":{"$error":"#N/A"}},{"$f":"IF(INDIRECT(\"c\" & (VLOOKUP(Rebalance!$D$27,$F$2:$G$48,2,FALSE)+ROW()-2))=Rebalance!$D$27,INDIRECT(\"a\" & (VLOOKUP(Rebalance!$D$27,$F$2:$G$48,2,FALSE)+ROW()-2)),\"\")","v":{"$error":"#N/A"}},{"$f":"IF(INDIRECT(\"c\" & (VLOOKUP(Rebalance!$D$28,$F$2:$G$48,2,FALSE)+ROW()-2))=Rebalance!$D$28,INDIRECT(\"a\" & (VLOOKUP(Rebalance!$D$28,$F$2:$G$48,2,FALSE)+ROW()-2)),\"\")","v":{"$error":"#N/A"}},{"$f":"IF(INDIRECT(\"c\" & (VLOOKUP(Rebalance!$D$29,$F$2:$G$48,2,FALSE)+ROW()-2))=Rebalance!$D$29,INDIRECT(\"a\" & (VLOOKUP(Rebalance!$D$29,$F$2:$G$48,2,FALSE)+ROW()-2)),\"\")","v":{"$error":"#N/A"}},{"$f":"IF(INDIRECT(\"c\" & (VLOOKUP(Rebalance!$D$30,$F$2:$G$48,2,FALSE)+ROW()-2))=Rebalance!$D$30,INDIRECT(\"a\" & (VLOOKUP(Rebalance!$D$30,$F$2:$G$48,2,FALSE)+ROW()-2)),\"\")","v":{"$error":"#N/A"}},{"$f":"IF(INDIRECT(\"c\" & (VLOOKUP(Rebalance!$D$31,$F$2:$G$48,2,FALSE)+ROW()-2))=Rebalance!$D$31,INDIRECT(\"a\" & (VLOOKUP(Rebalance!$D$31,$F$2:$G$48,2,FALSE)+ROW()-2)),\"\")","v":{"$error":"#N/A"}},{"$f":"IF(INDIRECT(\"c\" & (VLOOKUP(Rebalance!$D$32,$F$2:$G$48,2,FALSE)+ROW()-2))=Rebalance!$D$32,INDIRECT(\"a\" & (VLOOKUP(Rebalance!$D$32,$F$2:$G$48,2,FALSE)+ROW()-2)),\"\")","v":{"$error":"#N/A"}},{"$f":"IF(INDIRECT(\"c\" & (VLOOKUP(Rebalance!$D$33,$F$2:$G$48,2,FALSE)+ROW()-2))=Rebalance!$D$33,INDIRECT(\"a\" & (VLOOKUP(Rebalance!$D$33,$F$2:$G$48,2,FALSE)+ROW()-2)),\"\")","v":{"$error":"#N/A"}},{"$f":"IF(INDIRECT(\"c\" & (VLOOKUP(Rebalance!$D$34,$F$2:$G$48,2,FALSE)+ROW()-2))=Rebalance!$D$34,INDIRECT(\"a\" & (VLOOKUP(Rebalance!$D$34,$F$2:$G$48,2,FALSE)+ROW()-2)),\"\")","v":{"$error":"#N/A"}},{"$f":"IF(INDIRECT(\"c\" & (VLOOKUP(Rebalance!$D$35,$F$2:$G$48,2,FALSE)+ROW()-2))=Rebalance!$D$35,INDIRECT(\"a\" & (VLOOKUP(Rebalance!$D$35,$F$2:$G$48,2,FALSE)+ROW()-2)),\"\")","v":{"$error":"#N/A"}},{"$f":"IF(INDIRECT(\"c\" & (VLOOKUP(Rebalance!$D$36,$F$2:$G$48,2,FALSE)+ROW()-2))=Rebalance!$D$36,INDIRECT(\"a\" & (VLOOKUP(Rebalance!$D$36,$F$2:$G$48,2,FALSE)+ROW()-2)),\"\")","v":{"$error":"#N/A"}},{"$f":"IF(INDIRECT(\"c\" & (VLOOKUP(Rebalance!$D$37,$F$2:$G$48,2,FALSE)+ROW()-2))=Rebalance!$D$37,INDIRECT(\"a\" & (VLOOKUP(Rebalance!$D$37,$F$2:$G$48,2,FALSE)+ROW()-2)),\"\")","v":{"$error":"#N/A"}},{"$f":"IF(INDIRECT(\"c\" & (VLOOKUP(Rebalance!$D$38,$F$2:$G$48,2,FALSE)+ROW()-2))=Rebalance!$D$38,INDIRECT(\"a\" & (VLOOKUP(Rebalance!$D$38,$F$2:$G$48,2,FALSE)+ROW()-2)),\"\")","v":{"$error":"#N/A"}},{"$f":"IF(INDIRECT(\"c\" & (VLOOKUP(Rebalance!$D$39,$F$2:$G$48,2,FALSE)+ROW()-2))=Rebalance!$D$39,INDIRECT(\"a\" & (VLOOKUP(Rebalance!$D$39,$F$2:$G$48,2,FALSE)+ROW()-2)),\"\")","v":{"$error":"#N/A"}},{"$f":"IF(INDIRECT(\"c\" & (VLOOKUP(Rebalance!$D$40,$F$2:$G$48,2,FALSE)+ROW()-2))=Rebalance!$D$40,INDIRECT(\"a\" & (VLOOKUP(Rebalance!$D$40,$F$2:$G$48,2,FALSE)+ROW()-2)),\"\")","v":{"$error":"#N/A"}},{"$f":"IF(INDIRECT(\"c\" & (VLOOKUP(Rebalance!$D$52,$F$2:$G$48,2,FALSE)+ROW()-2))=Rebalance!$D$52,INDIRECT(\"a\" & (VLOOKUP(Rebalance!$D$52,$F$2:$G$48,2,FALSE)+ROW()-2)),\"\")","v":{"$error":"#N/A"}},{"$f":"IF(INDIRECT(\"c\" & (VLOOKUP(Rebalance!$D$53,$F$2:$G$48,2,FALSE)+ROW()-2))=Rebalance!$D$53,INDIRECT(\"a\" & (VLOOKUP(Rebalance!$D$53,$F$2:$G$48,2,FALSE)+ROW()-2)),\"\")","v":{"$error":"#N/A"}},{"$f":"IF(INDIRECT(\"c\" & (VLOOKUP(Rebalance!$D$54,$F$2:$G$48,2,FALSE)+ROW()-2))=Rebalance!$D$54,INDIRECT(\"a\" & (VLOOKUP(Rebalance!$D$54,$F$2:$G$48,2,FALSE)+ROW()-2)),\"\")","v":{"$error":"#N/A"}},{"$f":"IF(INDIRECT(\"c\" & (VLOOKUP(Rebalance!$D$55,$F$2:$G$48,2,FALSE)+ROW()-2))=Rebalance!$D$55,INDIRECT(\"a\" & (VLOOKUP(Rebalance!$D$55,$F$2:$G$48,2,FALSE)+ROW()-2)),\"\")","v":{"$error":"#N/A"}},{"$f":"IF(INDIRECT(\"c\" & (VLOOKUP(Rebalance!$D$56,$F$2:$G$48,2,FALSE)+ROW()-2))=Rebalance!$D$56,INDIRECT(\"a\" & (VLOOKUP(Rebalance!$D$56,$F$2:$G$48,2,FALSE)+ROW()-2)),\"\")","v":{"$error":"#N/A"}},{"$f":"IF(INDIRECT(\"c\" & (VLOOKUP(Rebalance!$D$57,$F$2:$G$48,2,FALSE)+ROW()-2))=Rebalance!$D$57,INDIRECT(\"a\" & (VLOOKUP(Rebalance!$D$57,$F$2:$G$48,2,FALSE)+ROW()-2)),\"\")","v":{"$error":"#N/A"}},{"$f":"IF(INDIRECT(\"c\" & (VLOOKUP(Rebalance!$D$58,$F$2:$G$48,2,FALSE)+ROW()-2))=Rebalance!$D$58,INDIRECT(\"a\" & (VLOOKUP(Rebalance!$D$58,$F$2:$G$48,2,FALSE)+ROW()-2)),\"\")","v":{"$error":"#N/A"}},{"$f":"IF(INDIRECT(\"c\" & (VLOOKUP(Rebalance!$D$59,$F$2:$G$48,2,FALSE)+ROW()-2))=Rebalance!$D$59,INDIRECT(\"a\" & (VLOOKUP(Rebalance!$D$59,$F$2:$G$48,2,FALSE)+ROW()-2)),\"\")","v":{"$error":"#N/A"}},{"$f":"IF(INDIRECT(\"c\" & (VLOOKUP(Rebalance!$D$60,$F$2:$G$48,2,FALSE)+ROW()-2))=Rebalance!$D$60,INDIRECT(\"a\" & (VLOOKUP(Rebalance!$D$60,$F$2:$G$48,2,FALSE)+ROW()-2)),\"\")","v":{"$error":"#N/A"}},{"$f":"IF(INDIRECT(\"c\" & (VLOOKUP(Rebalance!$D$61,$F$2:$G$48,2,FALSE)+ROW()-2))=Rebalance!$D$61,INDIRECT(\"a\" & (VLOOKUP(Rebalance!$D$61,$F$2:$G$48,2,FALSE)+ROW()-2)),\"\")","v":{"$error":"#N/A"}},{"$f":"IF(INDIRECT(\"c\" & (VLOOKUP(Rebalance!$D$62,$F$2:$G$48,2,FALSE)+ROW()-2))=Rebalance!$D$62,INDIRECT(\"a\" & (VLOOKUP(Rebalance!$D$62,$F$2:$G$48,2,FALSE)+ROW()-2)),\"\")","v":{"$error":"#N/A"}},{"$f":"IF(INDIRECT(\"c\" & (VLOOKUP(Rebalance!$D$63,$F$2:$G$48,2,FALSE)+ROW()-2))=Rebalance!$D$63,INDIRECT(\"a\" & (VLOOKUP(Rebalance!$D$63,$F$2:$G$48,2,FALSE)+ROW()-2)),\"\")","v":{"$error":"#N/A"}},{"$f":"IF(INDIRECT(\"c\" & (VLOOKUP(Rebalance!$D$64,$F$2:$G$48,2,FALSE)+ROW()-2))=Rebalance!$D$64,INDIRECT(\"a\" & (VLOOKUP(Rebalance!$D$64,$F$2:$G$48,2,FALSE)+ROW()-2)),\"\")","v":{"$error":"#N/A"}},{"$f":"IF(INDIRECT(\"c\" & (VLOOKUP(Rebalance!$D$65,$F$2:$G$48,2,FALSE)+ROW()-2))=Rebalance!$D$65,INDIRECT(\"a\" & (VLOOKUP(Rebalance!$D$65,$F$2:$G$48,2,FALSE)+ROW()-2)),\"\")","v":{"$error":"#N/A"}},{"$f":"IF(INDIRECT(\"c\" & (VLOOKUP(Rebalance!$D$66,$F$2:$G$48,2,FALSE)+ROW()-2))=Rebalance!$D$66,INDIRECT(\"a\" & (VLOOKUP(Rebalance!$D$66,$F$2:$G$48,2,FALSE)+ROW()-2)),\"\")","v":{"$error":"#N/A"}}]
["Nedgroup Inv Value Fund B2","NIVB","Nedgroup Collective Investments Ltd",{"$f":"ROW()","v":387},null,null,{"$f":"VLOOKUP(F387,$C$2:$D$599,2,FALSE)","v":{"$error":"#N/A"}},{"$f":"IF(INDIRECT(\"c\" & (VLOOKUP(Rebalance!$D$26,$F$2:$G$48,2,FALSE)+ROW()-2))=Rebalance!$D$26,INDIRECT(\"a\" & (VLOOKUP(Rebalance!$D$26,$F$2:$G$48,2,FALSE)+ROW()-2)),\"\")","v":{"$error":"#N/A"}},{"$f":"IF(INDIRECT(\"c\" & (VLOOKUP(Rebalance!$D$27,$F$2:$G$48,2,FALSE)+ROW()-2))=Rebalance!$D$27,INDIRECT(\"a\" & (VLOOKUP(Rebalance!$D$27,$F$2:$G$48,2,FALSE)+ROW()-2)),\"\")","v":{"$error":"#N/A"}},{"$f":"IF(INDIRECT(\"c\" & (VLOOKUP(Rebalance!$D$28,$F$2:$G$48,2,FALSE)+ROW()-2))=Rebalance!$D$28,INDIRECT(\"a\" & (VLOOKUP(Rebalance!$D$28,$F$2:$G$48,2,FALSE)+ROW()-2)),\"\")","v":{"$error":"#N/A"}},{"$f":"IF(INDIRECT(\"c\" & (VLOOKUP(Rebalance!$D$29,$F$2:$G$48,2,FALSE)+ROW()-2))=Rebalance!$D$29,INDIRECT(\"a\" & (VLOOKUP(Rebalance!$D$29,$F$2:$G$48,2,FALSE)+ROW()-2)),\"\")","v":{"$error":"#N/A"}},{"$f":"IF(INDIRECT(\"c\" & (VLOOKUP(Rebalance!$D$30,$F$2:$G$48,2,FALSE)+ROW()-2))=Rebalance!$D$30,INDIRECT(\"a\" & (VLOOKUP(Rebalance!$D$30,$F$2:$G$48,2,FALSE)+ROW()-2)),\"\")","v":{"$error":"#N/A"}},{"$f":"IF(INDIRECT(\"c\" & (VLOOKUP(Rebalance!$D$31,$F$2:$G$48,2,FALSE)+ROW()-2))=Rebalance!$D$31,INDIRECT(\"a\" & (VLOOKUP(Rebalance!$D$31,$F$2:$G$48,2,FALSE)+ROW()-2)),\"\")","v":{"$error":"#N/A"}},{"$f":"IF(INDIRECT(\"c\" & (VLOOKUP(Rebalance!$D$32,$F$2:$G$48,2,FALSE)+ROW()-2))=Rebalance!$D$32,INDIRECT(\"a\" & (VLOOKUP(Rebalance!$D$32,$F$2:$G$48,2,FALSE)+ROW()-2)),\"\")","v":{"$error":"#N/A"}},{"$f":"IF(INDIRECT(\"c\" & (VLOOKUP(Rebalance!$D$33,$F$2:$G$48,2,FALSE)+ROW()-2))=Rebalance!$D$33,INDIRECT(\"a\" & (VLOOKUP(Rebalance!$D$33,$F$2:$G$48,2,FALSE)+ROW()-2)),\"\")","v":{"$error":"#N/A"}},{"$f":"IF(INDIRECT(\"c\" & (VLOOKUP(Rebalance!$D$34,$F$2:$G$48,2,FALSE)+ROW()-2))=Rebalance!$D$34,INDIRECT(\"a\" & (VLOOKUP(Rebalance!$D$34,$F$2:$G$48,2,FALSE)+ROW()-2)),\"\")","v":{"$error":"#N/A"}},{"$f":"IF(INDIRECT(\"c\" & (VLOOKUP(Rebalance!$D$35,$F$2:$G$48,2,FALSE)+ROW()-2))=Rebalance!$D$35,INDIRECT(\"a\" & (VLOOKUP(Rebalance!$D$35,$F$2:$G$48,2,FALSE)+ROW()-2)),\"\")","v":{"$error":"#N/A"}},{"$f":"IF(INDIRECT(\"c\" & (VLOOKUP(Rebalance!$D$36,$F$2:$G$48,2,FALSE)+ROW()-2))=Rebalance!$D$36,INDIRECT(\"a\" & (VLOOKUP(Rebalance!$D$36,$F$2:$G$48,2,FALSE)+ROW()-2)),\"\")","v":{"$error":"#N/A"}},{"$f":"IF(INDIRECT(\"c\" & (VLOOKUP(Rebalance!$D$37,$F$2:$G$48,2,FALSE)+ROW()-2))=Rebalance!$D$37,INDIRECT(\"a\" & (VLOOKUP(Rebalance!$D$37,$F$2:$G$48,2,FALSE)+ROW()-2)),\"\")","v":{"$error":"#N/A"}},{"$f":"IF(INDIRECT(\"c\" & (VLOOKUP(Rebalance!$D$38,$F$2:$G$48,2,FALSE)+ROW()-2))=Rebalance!$D$38,INDIRECT(\"a\" & (VLOOKUP(Rebalance!$D$38,$F$2:$G$48,2,FALSE)+ROW()-2)),\"\")","v":{"$error":"#N/A"}},{"$f":"IF(INDIRECT(\"c\" & (VLOOKUP(Rebalance!$D$39,$F$2:$G$48,2,FALSE)+ROW()-2))=Rebalance!$D$39,INDIRECT(\"a\" & (VLOOKUP(Rebalance!$D$39,$F$2:$G$48,2,FALSE)+ROW()-2)),\"\")","v":{"$error":"#N/A"}},{"$f":"IF(INDIRECT(\"c\" & (VLOOKUP(Rebalance!$D$40,$F$2:$G$48,2,FALSE)+ROW()-2))=Rebalance!$D$40,INDIRECT(\"a\" & (VLOOKUP(Rebalance!$D$40,$F$2:$G$48,2,FALSE)+ROW()-2)),\"\")","v":{"$error":"#N/A"}},{"$f":"IF(INDIRECT(\"c\" & (VLOOKUP(Rebalance!$D$52,$F$2:$G$48,2,FALSE)+ROW()-2))=Rebalance!$D$52,INDIRECT(\"a\" & (VLOOKUP(Rebalance!$D$52,$F$2:$G$48,2,FALSE)+ROW()-2)),\"\")","v":{"$error":"#N/A"}},{"$f":"IF(INDIRECT(\"c\" & (VLOOKUP(Rebalance!$D$53,$F$2:$G$48,2,FALSE)+ROW()-2))=Rebalance!$D$53,INDIRECT(\"a\" & (VLOOKUP(Rebalance!$D$53,$F$2:$G$48,2,FALSE)+ROW()-2)),\"\")","v":{"$error":"#N/A"}},{"$f":"IF(INDIRECT(\"c\" & (VLOOKUP(Rebalance!$D$54,$F$2:$G$48,2,FALSE)+ROW()-2))=Rebalance!$D$54,INDIRECT(\"a\" & (VLOOKUP(Rebalance!$D$54,$F$2:$G$48,2,FALSE)+ROW()-2)),\"\")","v":{"$error":"#N/A"}},{"$f":"IF(INDIRECT(\"c\" & (VLOOKUP(Rebalance!$D$55,$F$2:$G$48,2,FALSE)+ROW()-2))=Rebalance!$D$55,INDIRECT(\"a\" & (VLOOKUP(Rebalance!$D$55,$F$2:$G$48,2,FALSE)+ROW()-2)),\"\")","v":{"$error":"#N/A"}},{"$f":"IF(INDIRECT(\"c\" & (VLOOKUP(Rebalance!$D$56,$F$2:$G$48,2,FALSE)+ROW()-2))=Rebalance!$D$56,INDIRECT(\"a\" & (VLOOKUP(Rebalance!$D$56,$F$2:$G$48,2,FALSE)+ROW()-2)),\"\")","v":{"$error":"#N/A"}},{"$f":"IF(INDIRECT(\"c\" & (VLOOKUP(Rebalance!$D$57,$F$2:$G$48,2,FALSE)+ROW()-2))=Rebalance!$D$57,INDIRECT(\"a\" & (VLOOKUP(Rebalance!$D$57,$F$2:$G$48,2,FALSE)+ROW()-2)),\"\")","v":{"$error":"#N/A"}},{"$f":"IF(INDIRECT(\"c\" & (VLOOKUP(Rebalance!$D$58,$F$2:$G$48,2,FALSE)+ROW()-2))=Rebalance!$D$58,INDIRECT(\"a\" & (VLOOKUP(Rebalance!$D$58,$F$2:$G$48,2,FALSE)+ROW()-2)),\"\")","v":{"$error":"#N/A"}},{"$f":"IF(INDIRECT(\"c\" & (VLOOKUP(Rebalance!$D$59,$F$2:$G$48,2,FALSE)+ROW()-2))=Rebalance!$D$59,INDIRECT(\"a\" & (VLOOKUP(Rebalance!$D$59,$F$2:$G$48,2,FALSE)+ROW()-2)),\"\")","v":{"$error":"#N/A"}},{"$f":"IF(INDIRECT(\"c\" & (VLOOKUP(Rebalance!$D$60,$F$2:$G$48,2,FALSE)+ROW()-2))=Rebalance!$D$60,INDIRECT(\"a\" & (VLOOKUP(Rebalance!$D$60,$F$2:$G$48,2,FALSE)+ROW()-2)),\"\")","v":{"$error":"#N/A"}},{"$f":"IF(INDIRECT(\"c\" & (VLOOKUP(Rebalance!$D$61,$F$2:$G$48,2,FALSE)+ROW()-2))=Rebalance!$D$61,INDIRECT(\"a\" & (VLOOKUP(Rebalance!$D$61,$F$2:$G$48,2,FALSE)+ROW()-2)),\"\")","v":{"$error":"#N/A"}},{"$f":"IF(INDIRECT(\"c\" & (VLOOKUP(Rebalance!$D$62,$F$2:$G$48,2,FALSE)+ROW()-2))=Rebalance!$D$62,INDIRECT(\"a\" & (VLOOKUP(Rebalance!$D$62,$F$2:$G$48,2,FALSE)+ROW()-2)),\"\")","v":{"$error":"#N/A"}},{"$f":"IF(INDIRECT(\"c\" & (VLOOKUP(Rebalance!$D$63,$F$2:$G$48,2,FALSE)+ROW()-2))=Rebalance!$D$63,INDIRECT(\"a\" & (VLOOKUP(Rebalance!$D$63,$F$2:$G$48,2,FALSE)+ROW()-2)),\"\")","v":{"$error":"#N/A"}},{"$f":"IF(INDIRECT(\"c\" & (VLOOKUP(Rebalance!$D$64,$F$2:$G$48,2,FALSE)+ROW()-2))=Rebalance!$D$64,INDIRECT(\"a\" & (VLOOKUP(Rebalance!$D$64,$F$2:$G$48,2,FALSE)+ROW()-2)),\"\")","v":{"$error":"#N/A"}},{"$f":"IF(INDIRECT(\"c\" & (VLOOKUP(Rebalance!$D$65,$F$2:$G$48,2,FALSE)+ROW()-2))=Rebalance!$D$65,INDIRECT(\"a\" & (VLOOKUP(Rebalance!$D$65,$F$2:$G$48,2,FALSE)+ROW()-2)),\"\")","v":{"$error":"#N/A"}},{"$f":"IF(INDIRECT(\"c\" & (VLOOKUP(Rebalance!$D$66,$F$2:$G$48,2,FALSE)+ROW()-2))=Rebalance!$D$66,INDIRECT(\"a\" & (VLOOKUP(Rebalance!$D$66,$F$2:$G$48,2,FALSE)+ROW()-2)),\"\")","v":{"$error":"#N/A"}}]
["Oasis Balanced Fund B","OBUTB","Oasis Crescent Management Company Ltd",{"$f":"ROW()","v":388},null,null,{"$f":"VLOOKUP(F388,$C$2:$D$599,2,FALSE)","v":{"$error":"#N/A"}},{"$f":"IF(INDIRECT(\"c\" & (VLOOKUP(Rebalance!$D$26,$F$2:$G$48,2,FALSE)+ROW()-2))=Rebalance!$D$26,INDIRECT(\"a\" & (VLOOKUP(Rebalance!$D$26,$F$2:$G$48,2,FALSE)+ROW()-2)),\"\")","v":{"$error":"#N/A"}},{"$f":"IF(INDIRECT(\"c\" & (VLOOKUP(Rebalance!$D$27,$F$2:$G$48,2,FALSE)+ROW()-2))=Rebalance!$D$27,INDIRECT(\"a\" & (VLOOKUP(Rebalance!$D$27,$F$2:$G$48,2,FALSE)+ROW()-2)),\"\")","v":{"$error":"#N/A"}},{"$f":"IF(INDIRECT(\"c\" & (VLOOKUP(Rebalance!$D$28,$F$2:$G$48,2,FALSE)+ROW()-2))=Rebalance!$D$28,INDIRECT(\"a\" & (VLOOKUP(Rebalance!$D$28,$F$2:$G$48,2,FALSE)+ROW()-2)),\"\")","v":{"$error":"#N/A"}},{"$f":"IF(INDIRECT(\"c\" & (VLOOKUP(Rebalance!$D$29,$F$2:$G$48,2,FALSE)+ROW()-2))=Rebalance!$D$29,INDIRECT(\"a\" & (VLOOKUP(Rebalance!$D$29,$F$2:$G$48,2,FALSE)+ROW()-2)),\"\")","v":{"$error":"#N/A"}},{"$f":"IF(INDIRECT(\"c\" & (VLOOKUP(Rebalance!$D$30,$F$2:$G$48,2,FALSE)+ROW()-2))=Rebalance!$D$30,INDIRECT(\"a\" & (VLOOKUP(Rebalance!$D$30,$F$2:$G$48,2,FALSE)+ROW()-2)),\"\")","v":{"$error":"#N/A"}},{"$f":"IF(INDIRECT(\"c\" & (VLOOKUP(Rebalance!$D$31,$F$2:$G$48,2,FALSE)+ROW()-2))=Rebalance!$D$31,INDIRECT(\"a\" & (VLOOKUP(Rebalance!$D$31,$F$2:$G$48,2,FALSE)+ROW()-2)),\"\")","v":{"$error":"#N/A"}},{"$f":"IF(INDIRECT(\"c\" & (VLOOKUP(Rebalance!$D$32,$F$2:$G$48,2,FALSE)+ROW()-2))=Rebalance!$D$32,INDIRECT(\"a\" & (VLOOKUP(Rebalance!$D$32,$F$2:$G$48,2,FALSE)+ROW()-2)),\"\")","v":{"$error":"#N/A"}},{"$f":"IF(INDIRECT(\"c\" & (VLOOKUP(Rebalance!$D$33,$F$2:$G$48,2,FALSE)+ROW()-2))=Rebalance!$D$33,INDIRECT(\"a\" & (VLOOKUP(Rebalance!$D$33,$F$2:$G$48,2,FALSE)+ROW()-2)),\"\")","v":{"$error":"#N/A"}},{"$f":"IF(INDIRECT(\"c\" & (VLOOKUP(Rebalance!$D$34,$F$2:$G$48,2,FALSE)+ROW()-2))=Rebalance!$D$34,INDIRECT(\"a\" & (VLOOKUP(Rebalance!$D$34,$F$2:$G$48,2,FALSE)+ROW()-2)),\"\")","v":{"$error":"#N/A"}},{"$f":"IF(INDIRECT(\"c\" & (VLOOKUP(Rebalance!$D$35,$F$2:$G$48,2,FALSE)+ROW()-2))=Rebalance!$D$35,INDIRECT(\"a\" & (VLOOKUP(Rebalance!$D$35,$F$2:$G$48,2,FALSE)+ROW()-2)),\"\")","v":{"$error":"#N/A"}},{"$f":"IF(INDIRECT(\"c\" & (VLOOKUP(Rebalance!$D$36,$F$2:$G$48,2,FALSE)+ROW()-2))=Rebalance!$D$36,INDIRECT(\"a\" & (VLOOKUP(Rebalance!$D$36,$F$2:$G$48,2,FALSE)+ROW()-2)),\"\")","v":{"$error":"#N/A"}},{"$f":"IF(INDIRECT(\"c\" & (VLOOKUP(Rebalance!$D$37,$F$2:$G$48,2,FALSE)+ROW()-2))=Rebalance!$D$37,INDIRECT(\"a\" & (VLOOKUP(Rebalance!$D$37,$F$2:$G$48,2,FALSE)+ROW()-2)),\"\")","v":{"$error":"#N/A"}},{"$f":"IF(INDIRECT(\"c\" & (VLOOKUP(Rebalance!$D$38,$F$2:$G$48,2,FALSE)+ROW()-2))=Rebalance!$D$38,INDIRECT(\"a\" & (VLOOKUP(Rebalance!$D$38,$F$2:$G$48,2,FALSE)+ROW()-2)),\"\")","v":{"$error":"#N/A"}},{"$f":"IF(INDIRECT(\"c\" & (VLOOKUP(Rebalance!$D$39,$F$2:$G$48,2,FALSE)+ROW()-2))=Rebalance!$D$39,INDIRECT(\"a\" & (VLOOKUP(Rebalance!$D$39,$F$2:$G$48,2,FALSE)+ROW()-2)),\"\")","v":{"$error":"#N/A"}},{"$f":"IF(INDIRECT(\"c\" & (VLOOKUP(Rebalance!$D$40,$F$2:$G$48,2,FALSE)+ROW()-2))=Rebalance!$D$40,INDIRECT(\"a\" & (VLOOKUP(Rebalance!$D$40,$F$2:$G$48,2,FALSE)+ROW()-2)),\"\")","v":{"$error":"#N/A"}},{"$f":"IF(INDIRECT(\"c\" & (VLOOKUP(Rebalance!$D$52,$F$2:$G$48,2,FALSE)+ROW()-2))=Rebalance!$D$52,INDIRECT(\"a\" & (VLOOKUP(Rebalance!$D$52,$F$2:$G$48,2,FALSE)+ROW()-2)),\"\")","v":{"$error":"#N/A"}},{"$f":"IF(INDIRECT(\"c\" & (VLOOKUP(Rebalance!$D$53,$F$2:$G$48,2,FALSE)+ROW()-2))=Rebalance!$D$53,INDIRECT(\"a\" & (VLOOKUP(Rebalance!$D$53,$F$2:$G$48,2,FALSE)+ROW()-2)),\"\")","v":{"$error":"#N/A"}},{"$f":"IF(INDIRECT(\"c\" & (VLOOKUP(Rebalance!$D$54,$F$2:$G$48,2,FALSE)+ROW()-2))=Rebalance!$D$54,INDIRECT(\"a\" & (VLOOKUP(Rebalance!$D$54,$F$2:$G$48,2,FALSE)+ROW()-2)),\"\")","v":{"$error":"#N/A"}},{"$f":"IF(INDIRECT(\"c\" & (VLOOKUP(Rebalance!$D$55,$F$2:$G$48,2,FALSE)+ROW()-2))=Rebalance!$D$55,INDIRECT(\"a\" & (VLOOKUP(Rebalance!$D$55,$F$2:$G$48,2,FALSE)+ROW()-2)),\"\")","v":{"$error":"#N/A"}},{"$f":"IF(INDIRECT(\"c\" & (VLOOKUP(Rebalance!$D$56,$F$2:$G$48,2,FALSE)+ROW()-2))=Rebalance!$D$56,INDIRECT(\"a\" & (VLOOKUP(Rebalance!$D$56,$F$2:$G$48,2,FALSE)+ROW()-2)),\"\")","v":{"$error":"#N/A"}},{"$f":"IF(INDIRECT(\"c\" & (VLOOKUP(Rebalance!$D$57,$F$2:$G$48,2,FALSE)+ROW()-2))=Rebalance!$D$57,INDIRECT(\"a\" & (VLOOKUP(Rebalance!$D$57,$F$2:$G$48,2,FALSE)+ROW()-2)),\"\")","v":{"$error":"#N/A"}},{"$f":"IF(INDIRECT(\"c\" & (VLOOKUP(Rebalance!$D$58,$F$2:$G$48,2,FALSE)+ROW()-2))=Rebalance!$D$58,INDIRECT(\"a\" & (VLOOKUP(Rebalance!$D$58,$F$2:$G$48,2,FALSE)+ROW()-2)),\"\")","v":{"$error":"#N/A"}},{"$f":"IF(INDIRECT(\"c\" & (VLOOKUP(Rebalance!$D$59,$F$2:$G$48,2,FALSE)+ROW()-2))=Rebalance!$D$59,INDIRECT(\"a\" & (VLOOKUP(Rebalance!$D$59,$F$2:$G$48,2,FALSE)+ROW()-2)),\"\")","v":{"$error":"#N/A"}},{"$f":"IF(INDIRECT(\"c\" & (VLOOKUP(Rebalance!$D$60,$F$2:$G$48,2,FALSE)+ROW()-2))=Rebalance!$D$60,INDIRECT(\"a\" & (VLOOKUP(Rebalance!$D$60,$F$2:$G$48,2,FALSE)+ROW()-2)),\"\")","v":{"$error":"#N/A"}},{"$f":"IF(INDIRECT(\"c\" & (VLOOKUP(Rebalance!$D$61,$F$2:$G$48,2,FALSE)+ROW()-2))=Rebalance!$D$61,INDIRECT(\"a\" & (VLOOKUP(Rebalance!$D$61,$F$2:$G$48,2,FALSE)+ROW()-2)),\"\")","v":{"$error":"#N/A"}},{"$f":"IF(INDIRECT(\"c\" & (VLOOKUP(Rebalance!$D$62,$F$2:$G$48,2,FALSE)+ROW()-2))=Rebalance!$D$62,INDIRECT(\"a\" & (VLOOKUP(Rebalance!$D$62,$F$2:$G$48,2,FALSE)+ROW()-2)),\"\")","v":{"$error":"#N/A"}},{"$f":"IF(INDIRECT(\"c\" & (VLOOKUP(Rebalance!$D$63,$F$2:$G$48,2,FALSE)+ROW()-2))=Rebalance!$D$63,INDIRECT(\"a\" & (VLOOKUP(Rebalance!$D$63,$F$2:$G$48,2,FALSE)+ROW()-2)),\"\")","v":{"$error":"#N/A"}},{"$f":"IF(INDIRECT(\"c\" & (VLOOKUP(Rebalance!$D$64,$F$2:$G$48,2,FALSE)+ROW()-2))=Rebalance!$D$64,INDIRECT(\"a\" & (VLOOKUP(Rebalance!$D$64,$F$2:$G$48,2,FALSE)+ROW()-2)),\"\")","v":{"$error":"#N/A"}},{"$f":"IF(INDIRECT(\"c\" & (VLOOKUP(Rebalance!$D$65,$F$2:$G$48,2,FALSE)+ROW()-2))=Rebalance!$D$65,INDIRECT(\"a\" & (VLOOKUP(Rebalance!$D$65,$F$2:$G$48,2,FALSE)+ROW()-2)),\"\")","v":{"$error":"#N/A"}},{"$f":"IF(INDIRECT(\"c\" & (VLOOKUP(Rebalance!$D$66,$F$2:$G$48,2,FALSE)+ROW()-2))=Rebalance!$D$66,INDIRECT(\"a\" & (VLOOKUP(Rebalance!$D$66,$F$2:$G$48,2,FALSE)+ROW()-2)),\"\")","v":{"$error":"#N/A"}}]
["Oasis Crescent Balanced High Equity FoF B","OCBHFD","Oasis Crescent Management Company Ltd",{"$f":"ROW()","v":389},null,null,{"$f":"VLOOKUP(F389,$C$2:$D$599,2,FALSE)","v":{"$error":"#N/A"}},{"$f":"IF(INDIRECT(\"c\" & (VLOOKUP(Rebalance!$D$26,$F$2:$G$48,2,FALSE)+ROW()-2))=Rebalance!$D$26,INDIRECT(\"a\" & (VLOOKUP(Rebalance!$D$26,$F$2:$G$48,2,FALSE)+ROW()-2)),\"\")","v":{"$error":"#N/A"}},{"$f":"IF(INDIRECT(\"c\" & (VLOOKUP(Rebalance!$D$27,$F$2:$G$48,2,FALSE)+ROW()-2))=Rebalance!$D$27,INDIRECT(\"a\" & (VLOOKUP(Rebalance!$D$27,$F$2:$G$48,2,FALSE)+ROW()-2)),\"\")","v":{"$error":"#N/A"}},{"$f":"IF(INDIRECT(\"c\" & (VLOOKUP(Rebalance!$D$28,$F$2:$G$48,2,FALSE)+ROW()-2))=Rebalance!$D$28,INDIRECT(\"a\" & (VLOOKUP(Rebalance!$D$28,$F$2:$G$48,2,FALSE)+ROW()-2)),\"\")","v":{"$error":"#N/A"}},{"$f":"IF(INDIRECT(\"c\" & (VLOOKUP(Rebalance!$D$29,$F$2:$G$48,2,FALSE)+ROW()-2))=Rebalance!$D$29,INDIRECT(\"a\" & (VLOOKUP(Rebalance!$D$29,$F$2:$G$48,2,FALSE)+ROW()-2)),\"\")","v":{"$error":"#N/A"}},{"$f":"IF(INDIRECT(\"c\" & (VLOOKUP(Rebalance!$D$30,$F$2:$G$48,2,FALSE)+ROW()-2))=Rebalance!$D$30,INDIRECT(\"a\" & (VLOOKUP(Rebalance!$D$30,$F$2:$G$48,2,FALSE)+ROW()-2)),\"\")","v":{"$error":"#N/A"}},{"$f":"IF(INDIRECT(\"c\" & (VLOOKUP(Rebalance!$D$31,$F$2:$G$48,2,FALSE)+ROW()-2))=Rebalance!$D$31,INDIRECT(\"a\" & (VLOOKUP(Rebalance!$D$31,$F$2:$G$48,2,FALSE)+ROW()-2)),\"\")","v":{"$error":"#N/A"}},{"$f":"IF(INDIRECT(\"c\" & (VLOOKUP(Rebalance!$D$32,$F$2:$G$48,2,FALSE)+ROW()-2))=Rebalance!$D$32,INDIRECT(\"a\" & (VLOOKUP(Rebalance!$D$32,$F$2:$G$48,2,FALSE)+ROW()-2)),\"\")","v":{"$error":"#N/A"}},{"$f":"IF(INDIRECT(\"c\" & (VLOOKUP(Rebalance!$D$33,$F$2:$G$48,2,FALSE)+ROW()-2))=Rebalance!$D$33,INDIRECT(\"a\" & (VLOOKUP(Rebalance!$D$33,$F$2:$G$48,2,FALSE)+ROW()-2)),\"\")","v":{"$error":"#N/A"}},{"$f":"IF(INDIRECT(\"c\" & (VLOOKUP(Rebalance!$D$34,$F$2:$G$48,2,FALSE)+ROW()-2))=Rebalance!$D$34,INDIRECT(\"a\" & (VLOOKUP(Rebalance!$D$34,$F$2:$G$48,2,FALSE)+ROW()-2)),\"\")","v":{"$error":"#N/A"}},{"$f":"IF(INDIRECT(\"c\" & (VLOOKUP(Rebalance!$D$35,$F$2:$G$48,2,FALSE)+ROW()-2))=Rebalance!$D$35,INDIRECT(\"a\" & (VLOOKUP(Rebalance!$D$35,$F$2:$G$48,2,FALSE)+ROW()-2)),\"\")","v":{"$error":"#N/A"}},{"$f":"IF(INDIRECT(\"c\" & (VLOOKUP(Rebalance!$D$36,$F$2:$G$48,2,FALSE)+ROW()-2))=Rebalance!$D$36,INDIRECT(\"a\" & (VLOOKUP(Rebalance!$D$36,$F$2:$G$48,2,FALSE)+ROW()-2)),\"\")","v":{"$error":"#N/A"}},{"$f":"IF(INDIRECT(\"c\" & (VLOOKUP(Rebalance!$D$37,$F$2:$G$48,2,FALSE)+ROW()-2))=Rebalance!$D$37,INDIRECT(\"a\" & (VLOOKUP(Rebalance!$D$37,$F$2:$G$48,2,FALSE)+ROW()-2)),\"\")","v":{"$error":"#N/A"}},{"$f":"IF(INDIRECT(\"c\" & (VLOOKUP(Rebalance!$D$38,$F$2:$G$48,2,FALSE)+ROW()-2))=Rebalance!$D$38,INDIRECT(\"a\" & (VLOOKUP(Rebalance!$D$38,$F$2:$G$48,2,FALSE)+ROW()-2)),\"\")","v":{"$error":"#N/A"}},{"$f":"IF(INDIRECT(\"c\" & (VLOOKUP(Rebalance!$D$39,$F$2:$G$48,2,FALSE)+ROW()-2))=Rebalance!$D$39,INDIRECT(\"a\" & (VLOOKUP(Rebalance!$D$39,$F$2:$G$48,2,FALSE)+ROW()-2)),\"\")","v":{"$error":"#N/A"}},{"$f":"IF(INDIRECT(\"c\" & (VLOOKUP(Rebalance!$D$40,$F$2:$G$48,2,FALSE)+ROW()-2))=Rebalance!$D$40,INDIRECT(\"a\" & (VLOOKUP(Rebalance!$D$40,$F$2:$G$48,2,FALSE)+ROW()-2)),\"\")","v":{"$error":"#N/A"}},{"$f":"IF(INDIRECT(\"c\" & (VLOOKUP(Rebalance!$D$52,$F$2:$G$48,2,FALSE)+ROW()-2))=Rebalance!$D$52,INDIRECT(\"a\" & (VLOOKUP(Rebalance!$D$52,$F$2:$G$48,2,FALSE)+ROW()-2)),\"\")","v":{"$error":"#N/A"}},{"$f":"IF(INDIRECT(\"c\" & (VLOOKUP(Rebalance!$D$53,$F$2:$G$48,2,FALSE)+ROW()-2))=Rebalance!$D$53,INDIRECT(\"a\" & (VLOOKUP(Rebalance!$D$53,$F$2:$G$48,2,FALSE)+ROW()-2)),\"\")","v":{"$error":"#N/A"}},{"$f":"IF(INDIRECT(\"c\" & (VLOOKUP(Rebalance!$D$54,$F$2:$G$48,2,FALSE)+ROW()-2))=Rebalance!$D$54,INDIRECT(\"a\" & (VLOOKUP(Rebalance!$D$54,$F$2:$G$48,2,FALSE)+ROW()-2)),\"\")","v":{"$error":"#N/A"}},{"$f":"IF(INDIRECT(\"c\" & (VLOOKUP(Rebalance!$D$55,$F$2:$G$48,2,FALSE)+ROW()-2))=Rebalance!$D$55,INDIRECT(\"a\" & (VLOOKUP(Rebalance!$D$55,$F$2:$G$48,2,FALSE)+ROW()-2)),\"\")","v":{"$error":"#N/A"}},{"$f":"IF(INDIRECT(\"c\" & (VLOOKUP(Rebalance!$D$56,$F$2:$G$48,2,FALSE)+ROW()-2))=Rebalance!$D$56,INDIRECT(\"a\" & (VLOOKUP(Rebalance!$D$56,$F$2:$G$48,2,FALSE)+ROW()-2)),\"\")","v":{"$error":"#N/A"}},{"$f":"IF(INDIRECT(\"c\" & (VLOOKUP(Rebalance!$D$57,$F$2:$G$48,2,FALSE)+ROW()-2))=Rebalance!$D$57,INDIRECT(\"a\" & (VLOOKUP(Rebalance!$D$57,$F$2:$G$48,2,FALSE)+ROW()-2)),\"\")","v":{"$error":"#N/A"}},{"$f":"IF(INDIRECT(\"c\" & (VLOOKUP(Rebalance!$D$58,$F$2:$G$48,2,FALSE)+ROW()-2))=Rebalance!$D$58,INDIRECT(\"a\" & (VLOOKUP(Rebalance!$D$58,$F$2:$G$48,2,FALSE)+ROW()-2)),\"\")","v":{"$error":"#N/A"}},{"$f":"IF(INDIRECT(\"c\" & (VLOOKUP(Rebalance!$D$59,$F$2:$G$48,2,FALSE)+ROW()-2))=Rebalance!$D$59,INDIRECT(\"a\" & (VLOOKUP(Rebalance!$D$59,$F$2:$G$48,2,FALSE)+ROW()-2)),\"\")","v":{"$error":"#N/A"}},{"$f":"IF(INDIRECT(\"c\" & (VLOOKUP(Rebalance!$D$60,$F$2:$G$48,2,FALSE)+ROW()-2))=Rebalance!$D$60,INDIRECT(\"a\" & (VLOOKUP(Rebalance!$D$60,$F$2:$G$48,2,FALSE)+ROW()-2)),\"\")","v":{"$error":"#N/A"}},{"$f":"IF(INDIRECT(\"c\" & (VLOOKUP(Rebalance!$D$61,$F$2:$G$48,2,FALSE)+ROW()-2))=Rebalance!$D$61,INDIRECT(\"a\" & (VLOOKUP(Rebalance!$D$61,$F$2:$G$48,2,FALSE)+ROW()-2)),\"\")","v":{"$error":"#N/A"}},{"$f":"IF(INDIRECT(\"c\" & (VLOOKUP(Rebalance!$D$62,$F$2:$G$48,2,FALSE)+ROW()-2))=Rebalance!$D$62,INDIRECT(\"a\" & (VLOOKUP(Rebalance!$D$62,$F$2:$G$48,2,FALSE)+ROW()-2)),\"\")","v":{"$error":"#N/A"}},{"$f":"IF(INDIRECT(\"c\" & (VLOOKUP(Rebalance!$D$63,$F$2:$G$48,2,FALSE)+ROW()-2))=Rebalance!$D$63,INDIRECT(\"a\" & (VLOOKUP(Rebalance!$D$63,$F$2:$G$48,2,FALSE)+ROW()-2)),\"\")","v":{"$error":"#N/A"}},{"$f":"IF(INDIRECT(\"c\" & (VLOOKUP(Rebalance!$D$64,$F$2:$G$48,2,FALSE)+ROW()-2))=Rebalance!$D$64,INDIRECT(\"a\" & (VLOOKUP(Rebalance!$D$64,$F$2:$G$48,2,FALSE)+ROW()-2)),\"\")","v":{"$error":"#N/A"}},{"$f":"IF(INDIRECT(\"c\" & (VLOOKUP(Rebalance!$D$65,$F$2:$G$48,2,FALSE)+ROW()-2))=Rebalance!$D$65,INDIRECT(\"a\" & (VLOOKUP(Rebalance!$D$65,$F$2:$G$48,2,FALSE)+ROW()-2)),\"\")","v":{"$error":"#N/A"}},{"$f":"IF(INDIRECT(\"c\" & (VLOOKUP(Rebalance!$D$66,$F$2:$G$48,2,FALSE)+ROW()-2))=Rebalance!$D$66,INDIRECT(\"a\" & (VLOOKUP(Rebalance!$D$66,$F$2:$G$48,2,FALSE)+ROW()-2)),\"\")","v":{"$error":"#N/A"}}]
["Oasis Crescent Balanced Stable FoF B","OCBSFB","Oasis Crescent Management Company Ltd",{"$f":"ROW()","v":390},null,null,{"$f":"VLOOKUP(F390,$C$2:$D$599,2,FALSE)","v":{"$error":"#N/A"}},{"$f":"IF(INDIRECT(\"c\" & (VLOOKUP(Rebalance!$D$26,$F$2:$G$48,2,FALSE)+ROW()-2))=Rebalance!$D$26,INDIRECT(\"a\" & (VLOOKUP(Rebalance!$D$26,$F$2:$G$48,2,FALSE)+ROW()-2)),\"\")","v":{"$error":"#N/A"}},{"$f":"IF(INDIRECT(\"c\" & (VLOOKUP(Rebalance!$D$27,$F$2:$G$48,2,FALSE)+ROW()-2))=Rebalance!$D$27,INDIRECT(\"a\" & (VLOOKUP(Rebalance!$D$27,$F$2:$G$48,2,FALSE)+ROW()-2)),\"\")","v":{"$error":"#N/A"}},{"$f":"IF(INDIRECT(\"c\" & (VLOOKUP(Rebalance!$D$28,$F$2:$G$48,2,FALSE)+ROW()-2))=Rebalance!$D$28,INDIRECT(\"a\" & (VLOOKUP(Rebalance!$D$28,$F$2:$G$48,2,FALSE)+ROW()-2)),\"\")","v":{"$error":"#N/A"}},{"$f":"IF(INDIRECT(\"c\" & (VLOOKUP(Rebalance!$D$29,$F$2:$G$48,2,FALSE)+ROW()-2))=Rebalance!$D$29,INDIRECT(\"a\" & (VLOOKUP(Rebalance!$D$29,$F$2:$G$48,2,FALSE)+ROW()-2)),\"\")","v":{"$error":"#N/A"}},{"$f":"IF(INDIRECT(\"c\" & (VLOOKUP(Rebalance!$D$30,$F$2:$G$48,2,FALSE)+ROW()-2))=Rebalance!$D$30,INDIRECT(\"a\" & (VLOOKUP(Rebalance!$D$30,$F$2:$G$48,2,FALSE)+ROW()-2)),\"\")","v":{"$error":"#N/A"}},{"$f":"IF(INDIRECT(\"c\" & (VLOOKUP(Rebalance!$D$31,$F$2:$G$48,2,FALSE)+ROW()-2))=Rebalance!$D$31,INDIRECT(\"a\" & (VLOOKUP(Rebalance!$D$31,$F$2:$G$48,2,FALSE)+ROW()-2)),\"\")","v":{"$error":"#N/A"}},{"$f":"IF(INDIRECT(\"c\" & (VLOOKUP(Rebalance!$D$32,$F$2:$G$48,2,FALSE)+ROW()-2))=Rebalance!$D$32,INDIRECT(\"a\" & (VLOOKUP(Rebalance!$D$32,$F$2:$G$48,2,FALSE)+ROW()-2)),\"\")","v":{"$error":"#N/A"}},{"$f":"IF(INDIRECT(\"c\" & (VLOOKUP(Rebalance!$D$33,$F$2:$G$48,2,FALSE)+ROW()-2))=Rebalance!$D$33,INDIRECT(\"a\" & (VLOOKUP(Rebalance!$D$33,$F$2:$G$48,2,FALSE)+ROW()-2)),\"\")","v":{"$error":"#N/A"}},{"$f":"IF(INDIRECT(\"c\" & (VLOOKUP(Rebalance!$D$34,$F$2:$G$48,2,FALSE)+ROW()-2))=Rebalance!$D$34,INDIRECT(\"a\" & (VLOOKUP(Rebalance!$D$34,$F$2:$G$48,2,FALSE)+ROW()-2)),\"\")","v":{"$error":"#N/A"}},{"$f":"IF(INDIRECT(\"c\" & (VLOOKUP(Rebalance!$D$35,$F$2:$G$48,2,FALSE)+ROW()-2))=Rebalance!$D$35,INDIRECT(\"a\" & (VLOOKUP(Rebalance!$D$35,$F$2:$G$48,2,FALSE)+ROW()-2)),\"\")","v":{"$error":"#N/A"}},{"$f":"IF(INDIRECT(\"c\" & (VLOOKUP(Rebalance!$D$36,$F$2:$G$48,2,FALSE)+ROW()-2))=Rebalance!$D$36,INDIRECT(\"a\" & (VLOOKUP(Rebalance!$D$36,$F$2:$G$48,2,FALSE)+ROW()-2)),\"\")","v":{"$error":"#N/A"}},{"$f":"IF(INDIRECT(\"c\" & (VLOOKUP(Rebalance!$D$37,$F$2:$G$48,2,FALSE)+ROW()-2))=Rebalance!$D$37,INDIRECT(\"a\" & (VLOOKUP(Rebalance!$D$37,$F$2:$G$48,2,FALSE)+ROW()-2)),\"\")","v":{"$error":"#N/A"}},{"$f":"IF(INDIRECT(\"c\" & (VLOOKUP(Rebalance!$D$38,$F$2:$G$48,2,FALSE)+ROW()-2))=Rebalance!$D$38,INDIRECT(\"a\" & (VLOOKUP(Rebalance!$D$38,$F$2:$G$48,2,FALSE)+ROW()-2)),\"\")","v":{"$error":"#N/A"}},{"$f":"IF(INDIRECT(\"c\" & (VLOOKUP(Rebalance!$D$39,$F$2:$G$48,2,FALSE)+ROW()-2))=Rebalance!$D$39,INDIRECT(\"a\" & (VLOOKUP(Rebalance!$D$39,$F$2:$G$48,2,FALSE)+ROW()-2)),\"\")","v":{"$error":"#N/A"}},{"$f":"IF(INDIRECT(\"c\" & (VLOOKUP(Rebalance!$D$40,$F$2:$G$48,2,FALSE)+ROW()-2))=Rebalance!$D$40,INDIRECT(\"a\" & (VLOOKUP(Rebalance!$D$40,$F$2:$G$48,2,FALSE)+ROW()-2)),\"\")","v":{"$error":"#N/A"}},{"$f":"IF(INDIRECT(\"c\" & (VLOOKUP(Rebalance!$D$52,$F$2:$G$48,2,FALSE)+ROW()-2))=Rebalance!$D$52,INDIRECT(\"a\" & (VLOOKUP(Rebalance!$D$52,$F$2:$G$48,2,FALSE)+ROW()-2)),\"\")","v":{"$error":"#N/A"}},{"$f":"IF(INDIRECT(\"c\" & (VLOOKUP(Rebalance!$D$53,$F$2:$G$48,2,FALSE)+ROW()-2))=Rebalance!$D$53,INDIRECT(\"a\" & (VLOOKUP(Rebalance!$D$53,$F$2:$G$48,2,FALSE)+ROW()-2)),\"\")","v":{"$error":"#N/A"}},{"$f":"IF(INDIRECT(\"c\" & (VLOOKUP(Rebalance!$D$54,$F$2:$G$48,2,FALSE)+ROW()-2))=Rebalance!$D$54,INDIRECT(\"a\" & (VLOOKUP(Rebalance!$D$54,$F$2:$G$48,2,FALSE)+ROW()-2)),\"\")","v":{"$error":"#N/A"}},{"$f":"IF(INDIRECT(\"c\" & (VLOOKUP(Rebalance!$D$55,$F$2:$G$48,2,FALSE)+ROW()-2))=Rebalance!$D$55,INDIRECT(\"a\" & (VLOOKUP(Rebalance!$D$55,$F$2:$G$48,2,FALSE)+ROW()-2)),\"\")","v":{"$error":"#N/A"}},{"$f":"IF(INDIRECT(\"c\" & (VLOOKUP(Rebalance!$D$56,$F$2:$G$48,2,FALSE)+ROW()-2))=Rebalance!$D$56,INDIRECT(\"a\" & (VLOOKUP(Rebalance!$D$56,$F$2:$G$48,2,FALSE)+ROW()-2)),\"\")","v":{"$error":"#N/A"}},{"$f":"IF(INDIRECT(\"c\" & (VLOOKUP(Rebalance!$D$57,$F$2:$G$48,2,FALSE)+ROW()-2))=Rebalance!$D$57,INDIRECT(\"a\" & (VLOOKUP(Rebalance!$D$57,$F$2:$G$48,2,FALSE)+ROW()-2)),\"\")","v":{"$error":"#N/A"}},{"$f":"IF(INDIRECT(\"c\" & (VLOOKUP(Rebalance!$D$58,$F$2:$G$48,2,FALSE)+ROW()-2))=Rebalance!$D$58,INDIRECT(\"a\" & (VLOOKUP(Rebalance!$D$58,$F$2:$G$48,2,FALSE)+ROW()-2)),\"\")","v":{"$error":"#N/A"}},{"$f":"IF(INDIRECT(\"c\" & (VLOOKUP(Rebalance!$D$59,$F$2:$G$48,2,FALSE)+ROW()-2))=Rebalance!$D$59,INDIRECT(\"a\" & (VLOOKUP(Rebalance!$D$59,$F$2:$G$48,2,FALSE)+ROW()-2)),\"\")","v":{"$error":"#N/A"}},{"$f":"IF(INDIRECT(\"c\" & (VLOOKUP(Rebalance!$D$60,$F$2:$G$48,2,FALSE)+ROW()-2))=Rebalance!$D$60,INDIRECT(\"a\" & (VLOOKUP(Rebalance!$D$60,$F$2:$G$48,2,FALSE)+ROW()-2)),\"\")","v":{"$error":"#N/A"}},{"$f":"IF(INDIRECT(\"c\" & (VLOOKUP(Rebalance!$D$61,$F$2:$G$48,2,FALSE)+ROW()-2))=Rebalance!$D$61,INDIRECT(\"a\" & (VLOOKUP(Rebalance!$D$61,$F$2:$G$48,2,FALSE)+ROW()-2)),\"\")","v":{"$error":"#N/A"}},{"$f":"IF(INDIRECT(\"c\" & (VLOOKUP(Rebalance!$D$62,$F$2:$G$48,2,FALSE)+ROW()-2))=Rebalance!$D$62,INDIRECT(\"a\" & (VLOOKUP(Rebalance!$D$62,$F$2:$G$48,2,FALSE)+ROW()-2)),\"\")","v":{"$error":"#N/A"}},{"$f":"IF(INDIRECT(\"c\" & (VLOOKUP(Rebalance!$D$63,$F$2:$G$48,2,FALSE)+ROW()-2))=Rebalance!$D$63,INDIRECT(\"a\" & (VLOOKUP(Rebalance!$D$63,$F$2:$G$48,2,FALSE)+ROW()-2)),\"\")","v":{"$error":"#N/A"}},{"$f":"IF(INDIRECT(\"c\" & (VLOOKUP(Rebalance!$D$64,$F$2:$G$48,2,FALSE)+ROW()-2))=Rebalance!$D$64,INDIRECT(\"a\" & (VLOOKUP(Rebalance!$D$64,$F$2:$G$48,2,FALSE)+ROW()-2)),\"\")","v":{"$error":"#N/A"}},{"$f":"IF(INDIRECT(\"c\" & (VLOOKUP(Rebalance!$D$65,$F$2:$G$48,2,FALSE)+ROW()-2))=Rebalance!$D$65,INDIRECT(\"a\" & (VLOOKUP(Rebalance!$D$65,$F$2:$G$48,2,FALSE)+ROW()-2)),\"\")","v":{"$error":"#N/A"}},{"$f":"IF(INDIRECT(\"c\" & (VLOOKUP(Rebalance!$D$66,$F$2:$G$48,2,FALSE)+ROW()-2))=Rebalance!$D$66,INDIRECT(\"a\" & (VLOOKUP(Rebalance!$D$66,$F$2:$G$48,2,FALSE)+ROW()-2)),\"\")","v":{"$error":"#N/A"}}]
["Oasis Crescent Equity Fund B","OCEFB","Oasis Crescent Management Company Ltd",{"$f":"ROW()","v":391},null,null,{"$f":"VLOOKUP(F391,$C$2:$D$599,2,FALSE)","v":{"$error":"#N/A"}},{"$f":"IF(INDIRECT(\"c\" & (VLOOKUP(Rebalance!$D$26,$F$2:$G$48,2,FALSE)+ROW()-2))=Rebalance!$D$26,INDIRECT(\"a\" & (VLOOKUP(Rebalance!$D$26,$F$2:$G$48,2,FALSE)+ROW()-2)),\"\")","v":{"$error":"#N/A"}},{"$f":"IF(INDIRECT(\"c\" & (VLOOKUP(Rebalance!$D$27,$F$2:$G$48,2,FALSE)+ROW()-2))=Rebalance!$D$27,INDIRECT(\"a\" & (VLOOKUP(Rebalance!$D$27,$F$2:$G$48,2,FALSE)+ROW()-2)),\"\")","v":{"$error":"#N/A"}},{"$f":"IF(INDIRECT(\"c\" & (VLOOKUP(Rebalance!$D$28,$F$2:$G$48,2,FALSE)+ROW()-2))=Rebalance!$D$28,INDIRECT(\"a\" & (VLOOKUP(Rebalance!$D$28,$F$2:$G$48,2,FALSE)+ROW()-2)),\"\")","v":{"$error":"#N/A"}},{"$f":"IF(INDIRECT(\"c\" & (VLOOKUP(Rebalance!$D$29,$F$2:$G$48,2,FALSE)+ROW()-2))=Rebalance!$D$29,INDIRECT(\"a\" & (VLOOKUP(Rebalance!$D$29,$F$2:$G$48,2,FALSE)+ROW()-2)),\"\")","v":{"$error":"#N/A"}},{"$f":"IF(INDIRECT(\"c\" & (VLOOKUP(Rebalance!$D$30,$F$2:$G$48,2,FALSE)+ROW()-2))=Rebalance!$D$30,INDIRECT(\"a\" & (VLOOKUP(Rebalance!$D$30,$F$2:$G$48,2,FALSE)+ROW()-2)),\"\")","v":{"$error":"#N/A"}},{"$f":"IF(INDIRECT(\"c\" & (VLOOKUP(Rebalance!$D$31,$F$2:$G$48,2,FALSE)+ROW()-2))=Rebalance!$D$31,INDIRECT(\"a\" & (VLOOKUP(Rebalance!$D$31,$F$2:$G$48,2,FALSE)+ROW()-2)),\"\")","v":{"$error":"#N/A"}},{"$f":"IF(INDIRECT(\"c\" & (VLOOKUP(Rebalance!$D$32,$F$2:$G$48,2,FALSE)+ROW()-2))=Rebalance!$D$32,INDIRECT(\"a\" & (VLOOKUP(Rebalance!$D$32,$F$2:$G$48,2,FALSE)+ROW()-2)),\"\")","v":{"$error":"#N/A"}},{"$f":"IF(INDIRECT(\"c\" & (VLOOKUP(Rebalance!$D$33,$F$2:$G$48,2,FALSE)+ROW()-2))=Rebalance!$D$33,INDIRECT(\"a\" & (VLOOKUP(Rebalance!$D$33,$F$2:$G$48,2,FALSE)+ROW()-2)),\"\")","v":{"$error":"#N/A"}},{"$f":"IF(INDIRECT(\"c\" & (VLOOKUP(Rebalance!$D$34,$F$2:$G$48,2,FALSE)+ROW()-2))=Rebalance!$D$34,INDIRECT(\"a\" & (VLOOKUP(Rebalance!$D$34,$F$2:$G$48,2,FALSE)+ROW()-2)),\"\")","v":{"$error":"#N/A"}},{"$f":"IF(INDIRECT(\"c\" & (VLOOKUP(Rebalance!$D$35,$F$2:$G$48,2,FALSE)+ROW()-2))=Rebalance!$D$35,INDIRECT(\"a\" & (VLOOKUP(Rebalance!$D$35,$F$2:$G$48,2,FALSE)+ROW()-2)),\"\")","v":{"$error":"#N/A"}},{"$f":"IF(INDIRECT(\"c\" & (VLOOKUP(Rebalance!$D$36,$F$2:$G$48,2,FALSE)+ROW()-2))=Rebalance!$D$36,INDIRECT(\"a\" & (VLOOKUP(Rebalance!$D$36,$F$2:$G$48,2,FALSE)+ROW()-2)),\"\")","v":{"$error":"#N/A"}},{"$f":"IF(INDIRECT(\"c\" & (VLOOKUP(Rebalance!$D$37,$F$2:$G$48,2,FALSE)+ROW()-2))=Rebalance!$D$37,INDIRECT(\"a\" & (VLOOKUP(Rebalance!$D$37,$F$2:$G$48,2,FALSE)+ROW()-2)),\"\")","v":{"$error":"#N/A"}},{"$f":"IF(INDIRECT(\"c\" & (VLOOKUP(Rebalance!$D$38,$F$2:$G$48,2,FALSE)+ROW()-2))=Rebalance!$D$38,INDIRECT(\"a\" & (VLOOKUP(Rebalance!$D$38,$F$2:$G$48,2,FALSE)+ROW()-2)),\"\")","v":{"$error":"#N/A"}},{"$f":"IF(INDIRECT(\"c\" & (VLOOKUP(Rebalance!$D$39,$F$2:$G$48,2,FALSE)+ROW()-2))=Rebalance!$D$39,INDIRECT(\"a\" & (VLOOKUP(Rebalance!$D$39,$F$2:$G$48,2,FALSE)+ROW()-2)),\"\")","v":{"$error":"#N/A"}},{"$f":"IF(INDIRECT(\"c\" & (VLOOKUP(Rebalance!$D$40,$F$2:$G$48,2,FALSE)+ROW()-2))=Rebalance!$D$40,INDIRECT(\"a\" & (VLOOKUP(Rebalance!$D$40,$F$2:$G$48,2,FALSE)+ROW()-2)),\"\")","v":{"$error":"#N/A"}},{"$f":"IF(INDIRECT(\"c\" & (VLOOKUP(Rebalance!$D$52,$F$2:$G$48,2,FALSE)+ROW()-2))=Rebalance!$D$52,INDIRECT(\"a\" & (VLOOKUP(Rebalance!$D$52,$F$2:$G$48,2,FALSE)+ROW()-2)),\"\")","v":{"$error":"#N/A"}},{"$f":"IF(INDIRECT(\"c\" & (VLOOKUP(Rebalance!$D$53,$F$2:$G$48,2,FALSE)+ROW()-2))=Rebalance!$D$53,INDIRECT(\"a\" & (VLOOKUP(Rebalance!$D$53,$F$2:$G$48,2,FALSE)+ROW()-2)),\"\")","v":{"$error":"#N/A"}},{"$f":"IF(INDIRECT(\"c\" & (VLOOKUP(Rebalance!$D$54,$F$2:$G$48,2,FALSE)+ROW()-2))=Rebalance!$D$54,INDIRECT(\"a\" & (VLOOKUP(Rebalance!$D$54,$F$2:$G$48,2,FALSE)+ROW()-2)),\"\")","v":{"$error":"#N/A"}},{"$f":"IF(INDIRECT(\"c\" & (VLOOKUP(Rebalance!$D$55,$F$2:$G$48,2,FALSE)+ROW()-2))=Rebalance!$D$55,INDIRECT(\"a\" & (VLOOKUP(Rebalance!$D$55,$F$2:$G$48,2,FALSE)+ROW()-2)),\"\")","v":{"$error":"#N/A"}},{"$f":"IF(INDIRECT(\"c\" & (VLOOKUP(Rebalance!$D$56,$F$2:$G$48,2,FALSE)+ROW()-2))=Rebalance!$D$56,INDIRECT(\"a\" & (VLOOKUP(Rebalance!$D$56,$F$2:$G$48,2,FALSE)+ROW()-2)),\"\")","v":{"$error":"#N/A"}},{"$f":"IF(INDIRECT(\"c\" & (VLOOKUP(Rebalance!$D$57,$F$2:$G$48,2,FALSE)+ROW()-2))=Rebalance!$D$57,INDIRECT(\"a\" & (VLOOKUP(Rebalance!$D$57,$F$2:$G$48,2,FALSE)+ROW()-2)),\"\")","v":{"$error":"#N/A"}},{"$f":"IF(INDIRECT(\"c\" & (VLOOKUP(Rebalance!$D$58,$F$2:$G$48,2,FALSE)+ROW()-2))=Rebalance!$D$58,INDIRECT(\"a\" & (VLOOKUP(Rebalance!$D$58,$F$2:$G$48,2,FALSE)+ROW()-2)),\"\")","v":{"$error":"#N/A"}},{"$f":"IF(INDIRECT(\"c\" & (VLOOKUP(Rebalance!$D$59,$F$2:$G$48,2,FALSE)+ROW()-2))=Rebalance!$D$59,INDIRECT(\"a\" & (VLOOKUP(Rebalance!$D$59,$F$2:$G$48,2,FALSE)+ROW()-2)),\"\")","v":{"$error":"#N/A"}},{"$f":"IF(INDIRECT(\"c\" & (VLOOKUP(Rebalance!$D$60,$F$2:$G$48,2,FALSE)+ROW()-2))=Rebalance!$D$60,INDIRECT(\"a\" & (VLOOKUP(Rebalance!$D$60,$F$2:$G$48,2,FALSE)+ROW()-2)),\"\")","v":{"$error":"#N/A"}},{"$f":"IF(INDIRECT(\"c\" & (VLOOKUP(Rebalance!$D$61,$F$2:$G$48,2,FALSE)+ROW()-2))=Rebalance!$D$61,INDIRECT(\"a\" & (VLOOKUP(Rebalance!$D$61,$F$2:$G$48,2,FALSE)+ROW()-2)),\"\")","v":{"$error":"#N/A"}},{"$f":"IF(INDIRECT(\"c\" & (VLOOKUP(Rebalance!$D$62,$F$2:$G$48,2,FALSE)+ROW()-2))=Rebalance!$D$62,INDIRECT(\"a\" & (VLOOKUP(Rebalance!$D$62,$F$2:$G$48,2,FALSE)+ROW()-2)),\"\")","v":{"$error":"#N/A"}},{"$f":"IF(INDIRECT(\"c\" & (VLOOKUP(Rebalance!$D$63,$F$2:$G$48,2,FALSE)+ROW()-2))=Rebalance!$D$63,INDIRECT(\"a\" & (VLOOKUP(Rebalance!$D$63,$F$2:$G$48,2,FALSE)+ROW()-2)),\"\")","v":{"$error":"#N/A"}},{"$f":"IF(INDIRECT(\"c\" & (VLOOKUP(Rebalance!$D$64,$F$2:$G$48,2,FALSE)+ROW()-2))=Rebalance!$D$64,INDIRECT(\"a\" & (VLOOKUP(Rebalance!$D$64,$F$2:$G$48,2,FALSE)+ROW()-2)),\"\")","v":{"$error":"#N/A"}},{"$f":"IF(INDIRECT(\"c\" & (VLOOKUP(Rebalance!$D$65,$F$2:$G$48,2,FALSE)+ROW()-2))=Rebalance!$D$65,INDIRECT(\"a\" & (VLOOKUP(Rebalance!$D$65,$F$2:$G$48,2,FALSE)+ROW()-2)),\"\")","v":{"$error":"#N/A"}},{"$f":"IF(INDIRECT(\"c\" & (VLOOKUP(Rebalance!$D$66,$F$2:$G$48,2,FALSE)+ROW()-2))=Rebalance!$D$66,INDIRECT(\"a\" & (VLOOKUP(Rebalance!$D$66,$F$2:$G$48,2,FALSE)+ROW()-2)),\"\")","v":{"$error":"#N/A"}}]
["Oasis Crescent Income Fund B","OCINFB","Oasis Crescent Management Company Ltd",{"$f":"ROW()","v":392},null,null,{"$f":"VLOOKUP(F392,$C$2:$D$599,2,FALSE)","v":{"$error":"#N/A"}},{"$f":"IF(INDIRECT(\"c\" & (VLOOKUP(Rebalance!$D$26,$F$2:$G$48,2,FALSE)+ROW()-2))=Rebalance!$D$26,INDIRECT(\"a\" & (VLOOKUP(Rebalance!$D$26,$F$2:$G$48,2,FALSE)+ROW()-2)),\"\")","v":{"$error":"#N/A"}},{"$f":"IF(INDIRECT(\"c\" & (VLOOKUP(Rebalance!$D$27,$F$2:$G$48,2,FALSE)+ROW()-2))=Rebalance!$D$27,INDIRECT(\"a\" & (VLOOKUP(Rebalance!$D$27,$F$2:$G$48,2,FALSE)+ROW()-2)),\"\")","v":{"$error":"#N/A"}},{"$f":"IF(INDIRECT(\"c\" & (VLOOKUP(Rebalance!$D$28,$F$2:$G$48,2,FALSE)+ROW()-2))=Rebalance!$D$28,INDIRECT(\"a\" & (VLOOKUP(Rebalance!$D$28,$F$2:$G$48,2,FALSE)+ROW()-2)),\"\")","v":{"$error":"#N/A"}},{"$f":"IF(INDIRECT(\"c\" & (VLOOKUP(Rebalance!$D$29,$F$2:$G$48,2,FALSE)+ROW()-2))=Rebalance!$D$29,INDIRECT(\"a\" & (VLOOKUP(Rebalance!$D$29,$F$2:$G$48,2,FALSE)+ROW()-2)),\"\")","v":{"$error":"#N/A"}},{"$f":"IF(INDIRECT(\"c\" & (VLOOKUP(Rebalance!$D$30,$F$2:$G$48,2,FALSE)+ROW()-2))=Rebalance!$D$30,INDIRECT(\"a\" & (VLOOKUP(Rebalance!$D$30,$F$2:$G$48,2,FALSE)+ROW()-2)),\"\")","v":{"$error":"#N/A"}},{"$f":"IF(INDIRECT(\"c\" & (VLOOKUP(Rebalance!$D$31,$F$2:$G$48,2,FALSE)+ROW()-2))=Rebalance!$D$31,INDIRECT(\"a\" & (VLOOKUP(Rebalance!$D$31,$F$2:$G$48,2,FALSE)+ROW()-2)),\"\")","v":{"$error":"#N/A"}},{"$f":"IF(INDIRECT(\"c\" & (VLOOKUP(Rebalance!$D$32,$F$2:$G$48,2,FALSE)+ROW()-2))=Rebalance!$D$32,INDIRECT(\"a\" & (VLOOKUP(Rebalance!$D$32,$F$2:$G$48,2,FALSE)+ROW()-2)),\"\")","v":{"$error":"#N/A"}},{"$f":"IF(INDIRECT(\"c\" & (VLOOKUP(Rebalance!$D$33,$F$2:$G$48,2,FALSE)+ROW()-2))=Rebalance!$D$33,INDIRECT(\"a\" & (VLOOKUP(Rebalance!$D$33,$F$2:$G$48,2,FALSE)+ROW()-2)),\"\")","v":{"$error":"#N/A"}},{"$f":"IF(INDIRECT(\"c\" & (VLOOKUP(Rebalance!$D$34,$F$2:$G$48,2,FALSE)+ROW()-2))=Rebalance!$D$34,INDIRECT(\"a\" & (VLOOKUP(Rebalance!$D$34,$F$2:$G$48,2,FALSE)+ROW()-2)),\"\")","v":{"$error":"#N/A"}},{"$f":"IF(INDIRECT(\"c\" & (VLOOKUP(Rebalance!$D$35,$F$2:$G$48,2,FALSE)+ROW()-2))=Rebalance!$D$35,INDIRECT(\"a\" & (VLOOKUP(Rebalance!$D$35,$F$2:$G$48,2,FALSE)+ROW()-2)),\"\")","v":{"$error":"#N/A"}},{"$f":"IF(INDIRECT(\"c\" & (VLOOKUP(Rebalance!$D$36,$F$2:$G$48,2,FALSE)+ROW()-2))=Rebalance!$D$36,INDIRECT(\"a\" & (VLOOKUP(Rebalance!$D$36,$F$2:$G$48,2,FALSE)+ROW()-2)),\"\")","v":{"$error":"#N/A"}},{"$f":"IF(INDIRECT(\"c\" & (VLOOKUP(Rebalance!$D$37,$F$2:$G$48,2,FALSE)+ROW()-2))=Rebalance!$D$37,INDIRECT(\"a\" & (VLOOKUP(Rebalance!$D$37,$F$2:$G$48,2,FALSE)+ROW()-2)),\"\")","v":{"$error":"#N/A"}},{"$f":"IF(INDIRECT(\"c\" & (VLOOKUP(Rebalance!$D$38,$F$2:$G$48,2,FALSE)+ROW()-2))=Rebalance!$D$38,INDIRECT(\"a\" & (VLOOKUP(Rebalance!$D$38,$F$2:$G$48,2,FALSE)+ROW()-2)),\"\")","v":{"$error":"#N/A"}},{"$f":"IF(INDIRECT(\"c\" & (VLOOKUP(Rebalance!$D$39,$F$2:$G$48,2,FALSE)+ROW()-2))=Rebalance!$D$39,INDIRECT(\"a\" & (VLOOKUP(Rebalance!$D$39,$F$2:$G$48,2,FALSE)+ROW()-2)),\"\")","v":{"$error":"#N/A"}},{"$f":"IF(INDIRECT(\"c\" & (VLOOKUP(Rebalance!$D$40,$F$2:$G$48,2,FALSE)+ROW()-2))=Rebalance!$D$40,INDIRECT(\"a\" & (VLOOKUP(Rebalance!$D$40,$F$2:$G$48,2,FALSE)+ROW()-2)),\"\")","v":{"$error":"#N/A"}},{"$f":"IF(INDIRECT(\"c\" & (VLOOKUP(Rebalance!$D$52,$F$2:$G$48,2,FALSE)+ROW()-2))=Rebalance!$D$52,INDIRECT(\"a\" & (VLOOKUP(Rebalance!$D$52,$F$2:$G$48,2,FALSE)+ROW()-2)),\"\")","v":{"$error":"#N/A"}},{"$f":"IF(INDIRECT(\"c\" & (VLOOKUP(Rebalance!$D$53,$F$2:$G$48,2,FALSE)+ROW()-2))=Rebalance!$D$53,INDIRECT(\"a\" & (VLOOKUP(Rebalance!$D$53,$F$2:$G$48,2,FALSE)+ROW()-2)),\"\")","v":{"$error":"#N/A"}},{"$f":"IF(INDIRECT(\"c\" & (VLOOKUP(Rebalance!$D$54,$F$2:$G$48,2,FALSE)+ROW()-2))=Rebalance!$D$54,INDIRECT(\"a\" & (VLOOKUP(Rebalance!$D$54,$F$2:$G$48,2,FALSE)+ROW()-2)),\"\")","v":{"$error":"#N/A"}},{"$f":"IF(INDIRECT(\"c\" & (VLOOKUP(Rebalance!$D$55,$F$2:$G$48,2,FALSE)+ROW()-2))=Rebalance!$D$55,INDIRECT(\"a\" & (VLOOKUP(Rebalance!$D$55,$F$2:$G$48,2,FALSE)+ROW()-2)),\"\")","v":{"$error":"#N/A"}},{"$f":"IF(INDIRECT(\"c\" & (VLOOKUP(Rebalance!$D$56,$F$2:$G$48,2,FALSE)+ROW()-2))=Rebalance!$D$56,INDIRECT(\"a\" & (VLOOKUP(Rebalance!$D$56,$F$2:$G$48,2,FALSE)+ROW()-2)),\"\")","v":{"$error":"#N/A"}},{"$f":"IF(INDIRECT(\"c\" & (VLOOKUP(Rebalance!$D$57,$F$2:$G$48,2,FALSE)+ROW()-2))=Rebalance!$D$57,INDIRECT(\"a\" & (VLOOKUP(Rebalance!$D$57,$F$2:$G$48,2,FALSE)+ROW()-2)),\"\")","v":{"$error":"#N/A"}},{"$f":"IF(INDIRECT(\"c\" & (VLOOKUP(Rebalance!$D$58,$F$2:$G$48,2,FALSE)+ROW()-2))=Rebalance!$D$58,INDIRECT(\"a\" & (VLOOKUP(Rebalance!$D$58,$F$2:$G$48,2,FALSE)+ROW()-2)),\"\")","v":{"$error":"#N/A"}},{"$f":"IF(INDIRECT(\"c\" & (VLOOKUP(Rebalance!$D$59,$F$2:$G$48,2,FALSE)+ROW()-2))=Rebalance!$D$59,INDIRECT(\"a\" & (VLOOKUP(Rebalance!$D$59,$F$2:$G$48,2,FALSE)+ROW()-2)),\"\")","v":{"$error":"#N/A"}},{"$f":"IF(INDIRECT(\"c\" & (VLOOKUP(Rebalance!$D$60,$F$2:$G$48,2,FALSE)+ROW()-2))=Rebalance!$D$60,INDIRECT(\"a\" & (VLOOKUP(Rebalance!$D$60,$F$2:$G$48,2,FALSE)+ROW()-2)),\"\")","v":{"$error":"#N/A"}},{"$f":"IF(INDIRECT(\"c\" & (VLOOKUP(Rebalance!$D$61,$F$2:$G$48,2,FALSE)+ROW()-2))=Rebalance!$D$61,INDIRECT(\"a\" & (VLOOKUP(Rebalance!$D$61,$F$2:$G$48,2,FALSE)+ROW()-2)),\"\")","v":{"$error":"#N/A"}},{"$f":"IF(INDIRECT(\"c\" & (VLOOKUP(Rebalance!$D$62,$F$2:$G$48,2,FALSE)+ROW()-2))=Rebalance!$D$62,INDIRECT(\"a\" & (VLOOKUP(Rebalance!$D$62,$F$2:$G$48,2,FALSE)+ROW()-2)),\"\")","v":{"$error":"#N/A"}},{"$f":"IF(INDIRECT(\"c\" & (VLOOKUP(Rebalance!$D$63,$F$2:$G$48,2,FALSE)+ROW()-2))=Rebalance!$D$63,INDIRECT(\"a\" & (VLOOKUP(Rebalance!$D$63,$F$2:$G$48,2,FALSE)+ROW()-2)),\"\")","v":{"$error":"#N/A"}},{"$f":"IF(INDIRECT(\"c\" & (VLOOKUP(Rebalance!$D$64,$F$2:$G$48,2,FALSE)+ROW()-2))=Rebalance!$D$64,INDIRECT(\"a\" & (VLOOKUP(Rebalance!$D$64,$F$2:$G$48,2,FALSE)+ROW()-2)),\"\")","v":{"$error":"#N/A"}},{"$f":"IF(INDIRECT(\"c\" & (VLOOKUP(Rebalance!$D$65,$F$2:$G$48,2,FALSE)+ROW()-2))=Rebalance!$D$65,INDIRECT(\"a\" & (VLOOKUP(Rebalance!$D$65,$F$2:$G$48,2,FALSE)+ROW()-2)),\"\")","v":{"$error":"#N/A"}},{"$f":"IF(INDIRECT(\"c\" & (VLOOKUP(Rebalance!$D$66,$F$2:$G$48,2,FALSE)+ROW()-2))=Rebalance!$D$66,INDIRECT(\"a\" & (VLOOKUP(Rebalance!$D$66,$F$2:$G$48,2,FALSE)+ROW()-2)),\"\")","v":{"$error":"#N/A"}}]
["Oasis Crescent Inter Property Equity Feeder Fund B","OCIPED","Oasis Crescent Management Company Ltd",{"$f":"ROW()","v":393},null,null,{"$f":"VLOOKUP(F393,$C$2:$D$599,2,FALSE)","v":{"$error":"#N/A"}},{"$f":"IF(INDIRECT(\"c\" & (VLOOKUP(Rebalance!$D$26,$F$2:$G$48,2,FALSE)+ROW()-2))=Rebalance!$D$26,INDIRECT(\"a\" & (VLOOKUP(Rebalance!$D$26,$F$2:$G$48,2,FALSE)+ROW()-2)),\"\")","v":{"$error":"#N/A"}},{"$f":"IF(INDIRECT(\"c\" & (VLOOKUP(Rebalance!$D$27,$F$2:$G$48,2,FALSE)+ROW()-2))=Rebalance!$D$27,INDIRECT(\"a\" & (VLOOKUP(Rebalance!$D$27,$F$2:$G$48,2,FALSE)+ROW()-2)),\"\")","v":{"$error":"#N/A"}},{"$f":"IF(INDIRECT(\"c\" & (VLOOKUP(Rebalance!$D$28,$F$2:$G$48,2,FALSE)+ROW()-2))=Rebalance!$D$28,INDIRECT(\"a\" & (VLOOKUP(Rebalance!$D$28,$F$2:$G$48,2,FALSE)+ROW()-2)),\"\")","v":{"$error":"#N/A"}},{"$f":"IF(INDIRECT(\"c\" & (VLOOKUP(Rebalance!$D$29,$F$2:$G$48,2,FALSE)+ROW()-2))=Rebalance!$D$29,INDIRECT(\"a\" & (VLOOKUP(Rebalance!$D$29,$F$2:$G$48,2,FALSE)+ROW()-2)),\"\")","v":{"$error":"#N/A"}},{"$f":"IF(INDIRECT(\"c\" & (VLOOKUP(Rebalance!$D$30,$F$2:$G$48,2,FALSE)+ROW()-2))=Rebalance!$D$30,INDIRECT(\"a\" & (VLOOKUP(Rebalance!$D$30,$F$2:$G$48,2,FALSE)+ROW()-2)),\"\")","v":{"$error":"#N/A"}},{"$f":"IF(INDIRECT(\"c\" & (VLOOKUP(Rebalance!$D$31,$F$2:$G$48,2,FALSE)+ROW()-2))=Rebalance!$D$31,INDIRECT(\"a\" & (VLOOKUP(Rebalance!$D$31,$F$2:$G$48,2,FALSE)+ROW()-2)),\"\")","v":{"$error":"#N/A"}},{"$f":"IF(INDIRECT(\"c\" & (VLOOKUP(Rebalance!$D$32,$F$2:$G$48,2,FALSE)+ROW()-2))=Rebalance!$D$32,INDIRECT(\"a\" & (VLOOKUP(Rebalance!$D$32,$F$2:$G$48,2,FALSE)+ROW()-2)),\"\")","v":{"$error":"#N/A"}},{"$f":"IF(INDIRECT(\"c\" & (VLOOKUP(Rebalance!$D$33,$F$2:$G$48,2,FALSE)+ROW()-2))=Rebalance!$D$33,INDIRECT(\"a\" & (VLOOKUP(Rebalance!$D$33,$F$2:$G$48,2,FALSE)+ROW()-2)),\"\")","v":{"$error":"#N/A"}},{"$f":"IF(INDIRECT(\"c\" & (VLOOKUP(Rebalance!$D$34,$F$2:$G$48,2,FALSE)+ROW()-2))=Rebalance!$D$34,INDIRECT(\"a\" & (VLOOKUP(Rebalance!$D$34,$F$2:$G$48,2,FALSE)+ROW()-2)),\"\")","v":{"$error":"#N/A"}},{"$f":"IF(INDIRECT(\"c\" & (VLOOKUP(Rebalance!$D$35,$F$2:$G$48,2,FALSE)+ROW()-2))=Rebalance!$D$35,INDIRECT(\"a\" & (VLOOKUP(Rebalance!$D$35,$F$2:$G$48,2,FALSE)+ROW()-2)),\"\")","v":{"$error":"#N/A"}},{"$f":"IF(INDIRECT(\"c\" & (VLOOKUP(Rebalance!$D$36,$F$2:$G$48,2,FALSE)+ROW()-2))=Rebalance!$D$36,INDIRECT(\"a\" & (VLOOKUP(Rebalance!$D$36,$F$2:$G$48,2,FALSE)+ROW()-2)),\"\")","v":{"$error":"#N/A"}},{"$f":"IF(INDIRECT(\"c\" & (VLOOKUP(Rebalance!$D$37,$F$2:$G$48,2,FALSE)+ROW()-2))=Rebalance!$D$37,INDIRECT(\"a\" & (VLOOKUP(Rebalance!$D$37,$F$2:$G$48,2,FALSE)+ROW()-2)),\"\")","v":{"$error":"#N/A"}},{"$f":"IF(INDIRECT(\"c\" & (VLOOKUP(Rebalance!$D$38,$F$2:$G$48,2,FALSE)+ROW()-2))=Rebalance!$D$38,INDIRECT(\"a\" & (VLOOKUP(Rebalance!$D$38,$F$2:$G$48,2,FALSE)+ROW()-2)),\"\")","v":{"$error":"#N/A"}},{"$f":"IF(INDIRECT(\"c\" & (VLOOKUP(Rebalance!$D$39,$F$2:$G$48,2,FALSE)+ROW()-2))=Rebalance!$D$39,INDIRECT(\"a\" & (VLOOKUP(Rebalance!$D$39,$F$2:$G$48,2,FALSE)+ROW()-2)),\"\")","v":{"$error":"#N/A"}},{"$f":"IF(INDIRECT(\"c\" & (VLOOKUP(Rebalance!$D$40,$F$2:$G$48,2,FALSE)+ROW()-2))=Rebalance!$D$40,INDIRECT(\"a\" & (VLOOKUP(Rebalance!$D$40,$F$2:$G$48,2,FALSE)+ROW()-2)),\"\")","v":{"$error":"#N/A"}},{"$f":"IF(INDIRECT(\"c\" & (VLOOKUP(Rebalance!$D$52,$F$2:$G$48,2,FALSE)+ROW()-2))=Rebalance!$D$52,INDIRECT(\"a\" & (VLOOKUP(Rebalance!$D$52,$F$2:$G$48,2,FALSE)+ROW()-2)),\"\")","v":{"$error":"#N/A"}},{"$f":"IF(INDIRECT(\"c\" & (VLOOKUP(Rebalance!$D$53,$F$2:$G$48,2,FALSE)+ROW()-2))=Rebalance!$D$53,INDIRECT(\"a\" & (VLOOKUP(Rebalance!$D$53,$F$2:$G$48,2,FALSE)+ROW()-2)),\"\")","v":{"$error":"#N/A"}},{"$f":"IF(INDIRECT(\"c\" & (VLOOKUP(Rebalance!$D$54,$F$2:$G$48,2,FALSE)+ROW()-2))=Rebalance!$D$54,INDIRECT(\"a\" & (VLOOKUP(Rebalance!$D$54,$F$2:$G$48,2,FALSE)+ROW()-2)),\"\")","v":{"$error":"#N/A"}},{"$f":"IF(INDIRECT(\"c\" & (VLOOKUP(Rebalance!$D$55,$F$2:$G$48,2,FALSE)+ROW()-2))=Rebalance!$D$55,INDIRECT(\"a\" & (VLOOKUP(Rebalance!$D$55,$F$2:$G$48,2,FALSE)+ROW()-2)),\"\")","v":{"$error":"#N/A"}},{"$f":"IF(INDIRECT(\"c\" & (VLOOKUP(Rebalance!$D$56,$F$2:$G$48,2,FALSE)+ROW()-2))=Rebalance!$D$56,INDIRECT(\"a\" & (VLOOKUP(Rebalance!$D$56,$F$2:$G$48,2,FALSE)+ROW()-2)),\"\")","v":{"$error":"#N/A"}},{"$f":"IF(INDIRECT(\"c\" & (VLOOKUP(Rebalance!$D$57,$F$2:$G$48,2,FALSE)+ROW()-2))=Rebalance!$D$57,INDIRECT(\"a\" & (VLOOKUP(Rebalance!$D$57,$F$2:$G$48,2,FALSE)+ROW()-2)),\"\")","v":{"$error":"#N/A"}},{"$f":"IF(INDIRECT(\"c\" & (VLOOKUP(Rebalance!$D$58,$F$2:$G$48,2,FALSE)+ROW()-2))=Rebalance!$D$58,INDIRECT(\"a\" & (VLOOKUP(Rebalance!$D$58,$F$2:$G$48,2,FALSE)+ROW()-2)),\"\")","v":{"$error":"#N/A"}},{"$f":"IF(INDIRECT(\"c\" & (VLOOKUP(Rebalance!$D$59,$F$2:$G$48,2,FALSE)+ROW()-2))=Rebalance!$D$59,INDIRECT(\"a\" & (VLOOKUP(Rebalance!$D$59,$F$2:$G$48,2,FALSE)+ROW()-2)),\"\")","v":{"$error":"#N/A"}},{"$f":"IF(INDIRECT(\"c\" & (VLOOKUP(Rebalance!$D$60,$F$2:$G$48,2,FALSE)+ROW()-2))=Rebalance!$D$60,INDIRECT(\"a\" & (VLOOKUP(Rebalance!$D$60,$F$2:$G$48,2,FALSE)+ROW()-2)),\"\")","v":{"$error":"#N/A"}},{"$f":"IF(INDIRECT(\"c\" & (VLOOKUP(Rebalance!$D$61,$F$2:$G$48,2,FALSE)+ROW()-2))=Rebalance!$D$61,INDIRECT(\"a\" & (VLOOKUP(Rebalance!$D$61,$F$2:$G$48,2,FALSE)+ROW()-2)),\"\")","v":{"$error":"#N/A"}},{"$f":"IF(INDIRECT(\"c\" & (VLOOKUP(Rebalance!$D$62,$F$2:$G$48,2,FALSE)+ROW()-2))=Rebalance!$D$62,INDIRECT(\"a\" & (VLOOKUP(Rebalance!$D$62,$F$2:$G$48,2,FALSE)+ROW()-2)),\"\")","v":{"$error":"#N/A"}},{"$f":"IF(INDIRECT(\"c\" & (VLOOKUP(Rebalance!$D$63,$F$2:$G$48,2,FALSE)+ROW()-2))=Rebalance!$D$63,INDIRECT(\"a\" & (VLOOKUP(Rebalance!$D$63,$F$2:$G$48,2,FALSE)+ROW()-2)),\"\")","v":{"$error":"#N/A"}},{"$f":"IF(INDIRECT(\"c\" & (VLOOKUP(Rebalance!$D$64,$F$2:$G$48,2,FALSE)+ROW()-2))=Rebalance!$D$64,INDIRECT(\"a\" & (VLOOKUP(Rebalance!$D$64,$F$2:$G$48,2,FALSE)+ROW()-2)),\"\")","v":{"$error":"#N/A"}},{"$f":"IF(INDIRECT(\"c\" & (VLOOKUP(Rebalance!$D$65,$F$2:$G$48,2,FALSE)+ROW()-2))=Rebalance!$D$65,INDIRECT(\"a\" & (VLOOKUP(Rebalance!$D$65,$F$2:$G$48,2,FALSE)+ROW()-2)),\"\")","v":{"$error":"#N/A"}},{"$f":"IF(INDIRECT(\"c\" & (VLOOKUP(Rebalance!$D$66,$F$2:$G$48,2,FALSE)+ROW()-2))=Rebalance!$D$66,INDIRECT(\"a\" & (VLOOKUP(Rebalance!$D$66,$F$2:$G$48,2,FALSE)+ROW()-2)),\"\")","v":{"$error":"#N/A"}}]
["Oasis Crescent International Feeder Fund","OCIFB","Oasis Crescent Management Company Ltd",{"$f":"ROW()","v":394},null,null,{"$f":"VLOOKUP(F394,$C$2:$D$599,2,FALSE)","v":{"$error":"#N/A"}},{"$f":"IF(INDIRECT(\"c\" & (VLOOKUP(Rebalance!$D$26,$F$2:$G$48,2,FALSE)+ROW()-2))=Rebalance!$D$26,INDIRECT(\"a\" & (VLOOKUP(Rebalance!$D$26,$F$2:$G$48,2,FALSE)+ROW()-2)),\"\")","v":{"$error":"#N/A"}},{"$f":"IF(INDIRECT(\"c\" & (VLOOKUP(Rebalance!$D$27,$F$2:$G$48,2,FALSE)+ROW()-2))=Rebalance!$D$27,INDIRECT(\"a\" & (VLOOKUP(Rebalance!$D$27,$F$2:$G$48,2,FALSE)+ROW()-2)),\"\")","v":{"$error":"#N/A"}},{"$f":"IF(INDIRECT(\"c\" & (VLOOKUP(Rebalance!$D$28,$F$2:$G$48,2,FALSE)+ROW()-2))=Rebalance!$D$28,INDIRECT(\"a\" & (VLOOKUP(Rebalance!$D$28,$F$2:$G$48,2,FALSE)+ROW()-2)),\"\")","v":{"$error":"#N/A"}},{"$f":"IF(INDIRECT(\"c\" & (VLOOKUP(Rebalance!$D$29,$F$2:$G$48,2,FALSE)+ROW()-2))=Rebalance!$D$29,INDIRECT(\"a\" & (VLOOKUP(Rebalance!$D$29,$F$2:$G$48,2,FALSE)+ROW()-2)),\"\")","v":{"$error":"#N/A"}},{"$f":"IF(INDIRECT(\"c\" & (VLOOKUP(Rebalance!$D$30,$F$2:$G$48,2,FALSE)+ROW()-2))=Rebalance!$D$30,INDIRECT(\"a\" & (VLOOKUP(Rebalance!$D$30,$F$2:$G$48,2,FALSE)+ROW()-2)),\"\")","v":{"$error":"#N/A"}},{"$f":"IF(INDIRECT(\"c\" & (VLOOKUP(Rebalance!$D$31,$F$2:$G$48,2,FALSE)+ROW()-2))=Rebalance!$D$31,INDIRECT(\"a\" & (VLOOKUP(Rebalance!$D$31,$F$2:$G$48,2,FALSE)+ROW()-2)),\"\")","v":{"$error":"#N/A"}},{"$f":"IF(INDIRECT(\"c\" & (VLOOKUP(Rebalance!$D$32,$F$2:$G$48,2,FALSE)+ROW()-2))=Rebalance!$D$32,INDIRECT(\"a\" & (VLOOKUP(Rebalance!$D$32,$F$2:$G$48,2,FALSE)+ROW()-2)),\"\")","v":{"$error":"#N/A"}},{"$f":"IF(INDIRECT(\"c\" & (VLOOKUP(Rebalance!$D$33,$F$2:$G$48,2,FALSE)+ROW()-2))=Rebalance!$D$33,INDIRECT(\"a\" & (VLOOKUP(Rebalance!$D$33,$F$2:$G$48,2,FALSE)+ROW()-2)),\"\")","v":{"$error":"#N/A"}},{"$f":"IF(INDIRECT(\"c\" & (VLOOKUP(Rebalance!$D$34,$F$2:$G$48,2,FALSE)+ROW()-2))=Rebalance!$D$34,INDIRECT(\"a\" & (VLOOKUP(Rebalance!$D$34,$F$2:$G$48,2,FALSE)+ROW()-2)),\"\")","v":{"$error":"#N/A"}},{"$f":"IF(INDIRECT(\"c\" & (VLOOKUP(Rebalance!$D$35,$F$2:$G$48,2,FALSE)+ROW()-2))=Rebalance!$D$35,INDIRECT(\"a\" & (VLOOKUP(Rebalance!$D$35,$F$2:$G$48,2,FALSE)+ROW()-2)),\"\")","v":{"$error":"#N/A"}},{"$f":"IF(INDIRECT(\"c\" & (VLOOKUP(Rebalance!$D$36,$F$2:$G$48,2,FALSE)+ROW()-2))=Rebalance!$D$36,INDIRECT(\"a\" & (VLOOKUP(Rebalance!$D$36,$F$2:$G$48,2,FALSE)+ROW()-2)),\"\")","v":{"$error":"#N/A"}},{"$f":"IF(INDIRECT(\"c\" & (VLOOKUP(Rebalance!$D$37,$F$2:$G$48,2,FALSE)+ROW()-2))=Rebalance!$D$37,INDIRECT(\"a\" & (VLOOKUP(Rebalance!$D$37,$F$2:$G$48,2,FALSE)+ROW()-2)),\"\")","v":{"$error":"#N/A"}},{"$f":"IF(INDIRECT(\"c\" & (VLOOKUP(Rebalance!$D$38,$F$2:$G$48,2,FALSE)+ROW()-2))=Rebalance!$D$38,INDIRECT(\"a\" & (VLOOKUP(Rebalance!$D$38,$F$2:$G$48,2,FALSE)+ROW()-2)),\"\")","v":{"$error":"#N/A"}},{"$f":"IF(INDIRECT(\"c\" & (VLOOKUP(Rebalance!$D$39,$F$2:$G$48,2,FALSE)+ROW()-2))=Rebalance!$D$39,INDIRECT(\"a\" & (VLOOKUP(Rebalance!$D$39,$F$2:$G$48,2,FALSE)+ROW()-2)),\"\")","v":{"$error":"#N/A"}},{"$f":"IF(INDIRECT(\"c\" & (VLOOKUP(Rebalance!$D$40,$F$2:$G$48,2,FALSE)+ROW()-2))=Rebalance!$D$40,INDIRECT(\"a\" & (VLOOKUP(Rebalance!$D$40,$F$2:$G$48,2,FALSE)+ROW()-2)),\"\")","v":{"$error":"#N/A"}},{"$f":"IF(INDIRECT(\"c\" & (VLOOKUP(Rebalance!$D$52,$F$2:$G$48,2,FALSE)+ROW()-2))=Rebalance!$D$52,INDIRECT(\"a\" & (VLOOKUP(Rebalance!$D$52,$F$2:$G$48,2,FALSE)+ROW()-2)),\"\")","v":{"$error":"#N/A"}},{"$f":"IF(INDIRECT(\"c\" & (VLOOKUP(Rebalance!$D$53,$F$2:$G$48,2,FALSE)+ROW()-2))=Rebalance!$D$53,INDIRECT(\"a\" & (VLOOKUP(Rebalance!$D$53,$F$2:$G$48,2,FALSE)+ROW()-2)),\"\")","v":{"$error":"#N/A"}},{"$f":"IF(INDIRECT(\"c\" & (VLOOKUP(Rebalance!$D$54,$F$2:$G$48,2,FALSE)+ROW()-2))=Rebalance!$D$54,INDIRECT(\"a\" & (VLOOKUP(Rebalance!$D$54,$F$2:$G$48,2,FALSE)+ROW()-2)),\"\")","v":{"$error":"#N/A"}},{"$f":"IF(INDIRECT(\"c\" & (VLOOKUP(Rebalance!$D$55,$F$2:$G$48,2,FALSE)+ROW()-2))=Rebalance!$D$55,INDIRECT(\"a\" & (VLOOKUP(Rebalance!$D$55,$F$2:$G$48,2,FALSE)+ROW()-2)),\"\")","v":{"$error":"#N/A"}},{"$f":"IF(INDIRECT(\"c\" & (VLOOKUP(Rebalance!$D$56,$F$2:$G$48,2,FALSE)+ROW()-2))=Rebalance!$D$56,INDIRECT(\"a\" & (VLOOKUP(Rebalance!$D$56,$F$2:$G$48,2,FALSE)+ROW()-2)),\"\")","v":{"$error":"#N/A"}},{"$f":"IF(INDIRECT(\"c\" & (VLOOKUP(Rebalance!$D$57,$F$2:$G$48,2,FALSE)+ROW()-2))=Rebalance!$D$57,INDIRECT(\"a\" & (VLOOKUP(Rebalance!$D$57,$F$2:$G$48,2,FALSE)+ROW()-2)),\"\")","v":{"$error":"#N/A"}},{"$f":"IF(INDIRECT(\"c\" & (VLOOKUP(Rebalance!$D$58,$F$2:$G$48,2,FALSE)+ROW()-2))=Rebalance!$D$58,INDIRECT(\"a\" & (VLOOKUP(Rebalance!$D$58,$F$2:$G$48,2,FALSE)+ROW()-2)),\"\")","v":{"$error":"#N/A"}},{"$f":"IF(INDIRECT(\"c\" & (VLOOKUP(Rebalance!$D$59,$F$2:$G$48,2,FALSE)+ROW()-2))=Rebalance!$D$59,INDIRECT(\"a\" & (VLOOKUP(Rebalance!$D$59,$F$2:$G$48,2,FALSE)+ROW()-2)),\"\")","v":{"$error":"#N/A"}},{"$f":"IF(INDIRECT(\"c\" & (VLOOKUP(Rebalance!$D$60,$F$2:$G$48,2,FALSE)+ROW()-2))=Rebalance!$D$60,INDIRECT(\"a\" & (VLOOKUP(Rebalance!$D$60,$F$2:$G$48,2,FALSE)+ROW()-2)),\"\")","v":{"$error":"#N/A"}},{"$f":"IF(INDIRECT(\"c\" & (VLOOKUP(Rebalance!$D$61,$F$2:$G$48,2,FALSE)+ROW()-2))=Rebalance!$D$61,INDIRECT(\"a\" & (VLOOKUP(Rebalance!$D$61,$F$2:$G$48,2,FALSE)+ROW()-2)),\"\")","v":{"$error":"#N/A"}},{"$f":"IF(INDIRECT(\"c\" & (VLOOKUP(Rebalance!$D$62,$F$2:$G$48,2,FALSE)+ROW()-2))=Rebalance!$D$62,INDIRECT(\"a\" & (VLOOKUP(Rebalance!$D$62,$F$2:$G$48,2,FALSE)+ROW()-2)),\"\")","v":{"$error":"#N/A"}},{"$f":"IF(INDIRECT(\"c\" & (VLOOKUP(Rebalance!$D$63,$F$2:$G$48,2,FALSE)+ROW()-2))=Rebalance!$D$63,INDIRECT(\"a\" & (VLOOKUP(Rebalance!$D$63,$F$2:$G$48,2,FALSE)+ROW()-2)),\"\")","v":{"$error":"#N/A"}},{"$f":"IF(INDIRECT(\"c\" & (VLOOKUP(Rebalance!$D$64,$F$2:$G$48,2,FALSE)+ROW()-2))=Rebalance!$D$64,INDIRECT(\"a\" & (VLOOKUP(Rebalance!$D$64,$F$2:$G$48,2,FALSE)+ROW()-2)),\"\")","v":{"$error":"#N/A"}},{"$f":"IF(INDIRECT(\"c\" & (VLOOKUP(Rebalance!$D$65,$F$2:$G$48,2,FALSE)+ROW()-2))=Rebalance!$D$65,INDIRECT(\"a\" & (VLOOKUP(Rebalance!$D$65,$F$2:$G$48,2,FALSE)+ROW()-2)),\"\")","v":{"$error":"#N/A"}},{"$f":"IF(INDIRECT(\"c\" & (VLOOKUP(Rebalance!$D$66,$F$2:$G$48,2,FALSE)+ROW()-2))=Rebalance!$D$66,INDIRECT(\"a\" & (VLOOKUP(Rebalance!$D$66,$F$2:$G$48,2,FALSE)+ROW()-2)),\"\")","v":{"$error":"#N/A"}}]
["Oasis Property Equity Fund B","OPEFB","Oasis Crescent Management Company Ltd",{"$f":"ROW()","v":395},null,null,{"$f":"VLOOKUP(F395,$C$2:$D$599,2,FALSE)","v":{"$error":"#N/A"}},{"$f":"IF(INDIRECT(\"c\" & (VLOOKUP(Rebalance!$D$26,$F$2:$G$48,2,FALSE)+ROW()-2))=Rebalance!$D$26,INDIRECT(\"a\" & (VLOOKUP(Rebalance!$D$26,$F$2:$G$48,2,FALSE)+ROW()-2)),\"\")","v":{"$error":"#N/A"}},{"$f":"IF(INDIRECT(\"c\" & (VLOOKUP(Rebalance!$D$27,$F$2:$G$48,2,FALSE)+ROW()-2))=Rebalance!$D$27,INDIRECT(\"a\" & (VLOOKUP(Rebalance!$D$27,$F$2:$G$48,2,FALSE)+ROW()-2)),\"\")","v":{"$error":"#N/A"}},{"$f":"IF(INDIRECT(\"c\" & (VLOOKUP(Rebalance!$D$28,$F$2:$G$48,2,FALSE)+ROW()-2))=Rebalance!$D$28,INDIRECT(\"a\" & (VLOOKUP(Rebalance!$D$28,$F$2:$G$48,2,FALSE)+ROW()-2)),\"\")","v":{"$error":"#N/A"}},{"$f":"IF(INDIRECT(\"c\" & (VLOOKUP(Rebalance!$D$29,$F$2:$G$48,2,FALSE)+ROW()-2))=Rebalance!$D$29,INDIRECT(\"a\" & (VLOOKUP(Rebalance!$D$29,$F$2:$G$48,2,FALSE)+ROW()-2)),\"\")","v":{"$error":"#N/A"}},{"$f":"IF(INDIRECT(\"c\" & (VLOOKUP(Rebalance!$D$30,$F$2:$G$48,2,FALSE)+ROW()-2))=Rebalance!$D$30,INDIRECT(\"a\" & (VLOOKUP(Rebalance!$D$30,$F$2:$G$48,2,FALSE)+ROW()-2)),\"\")","v":{"$error":"#N/A"}},{"$f":"IF(INDIRECT(\"c\" & (VLOOKUP(Rebalance!$D$31,$F$2:$G$48,2,FALSE)+ROW()-2))=Rebalance!$D$31,INDIRECT(\"a\" & (VLOOKUP(Rebalance!$D$31,$F$2:$G$48,2,FALSE)+ROW()-2)),\"\")","v":{"$error":"#N/A"}},{"$f":"IF(INDIRECT(\"c\" & (VLOOKUP(Rebalance!$D$32,$F$2:$G$48,2,FALSE)+ROW()-2))=Rebalance!$D$32,INDIRECT(\"a\" & (VLOOKUP(Rebalance!$D$32,$F$2:$G$48,2,FALSE)+ROW()-2)),\"\")","v":{"$error":"#N/A"}},{"$f":"IF(INDIRECT(\"c\" & (VLOOKUP(Rebalance!$D$33,$F$2:$G$48,2,FALSE)+ROW()-2))=Rebalance!$D$33,INDIRECT(\"a\" & (VLOOKUP(Rebalance!$D$33,$F$2:$G$48,2,FALSE)+ROW()-2)),\"\")","v":{"$error":"#N/A"}},{"$f":"IF(INDIRECT(\"c\" & (VLOOKUP(Rebalance!$D$34,$F$2:$G$48,2,FALSE)+ROW()-2))=Rebalance!$D$34,INDIRECT(\"a\" & (VLOOKUP(Rebalance!$D$34,$F$2:$G$48,2,FALSE)+ROW()-2)),\"\")","v":{"$error":"#N/A"}},{"$f":"IF(INDIRECT(\"c\" & (VLOOKUP(Rebalance!$D$35,$F$2:$G$48,2,FALSE)+ROW()-2))=Rebalance!$D$35,INDIRECT(\"a\" & (VLOOKUP(Rebalance!$D$35,$F$2:$G$48,2,FALSE)+ROW()-2)),\"\")","v":{"$error":"#N/A"}},{"$f":"IF(INDIRECT(\"c\" & (VLOOKUP(Rebalance!$D$36,$F$2:$G$48,2,FALSE)+ROW()-2))=Rebalance!$D$36,INDIRECT(\"a\" & (VLOOKUP(Rebalance!$D$36,$F$2:$G$48,2,FALSE)+ROW()-2)),\"\")","v":{"$error":"#N/A"}},{"$f":"IF(INDIRECT(\"c\" & (VLOOKUP(Rebalance!$D$37,$F$2:$G$48,2,FALSE)+ROW()-2))=Rebalance!$D$37,INDIRECT(\"a\" & (VLOOKUP(Rebalance!$D$37,$F$2:$G$48,2,FALSE)+ROW()-2)),\"\")","v":{"$error":"#N/A"}},{"$f":"IF(INDIRECT(\"c\" & (VLOOKUP(Rebalance!$D$38,$F$2:$G$48,2,FALSE)+ROW()-2))=Rebalance!$D$38,INDIRECT(\"a\" & (VLOOKUP(Rebalance!$D$38,$F$2:$G$48,2,FALSE)+ROW()-2)),\"\")","v":{"$error":"#N/A"}},{"$f":"IF(INDIRECT(\"c\" & (VLOOKUP(Rebalance!$D$39,$F$2:$G$48,2,FALSE)+ROW()-2))=Rebalance!$D$39,INDIRECT(\"a\" & (VLOOKUP(Rebalance!$D$39,$F$2:$G$48,2,FALSE)+ROW()-2)),\"\")","v":{"$error":"#N/A"}},{"$f":"IF(INDIRECT(\"c\" & (VLOOKUP(Rebalance!$D$40,$F$2:$G$48,2,FALSE)+ROW()-2))=Rebalance!$D$40,INDIRECT(\"a\" & (VLOOKUP(Rebalance!$D$40,$F$2:$G$48,2,FALSE)+ROW()-2)),\"\")","v":{"$error":"#N/A"}},{"$f":"IF(INDIRECT(\"c\" & (VLOOKUP(Rebalance!$D$52,$F$2:$G$48,2,FALSE)+ROW()-2))=Rebalance!$D$52,INDIRECT(\"a\" & (VLOOKUP(Rebalance!$D$52,$F$2:$G$48,2,FALSE)+ROW()-2)),\"\")","v":{"$error":"#N/A"}},{"$f":"IF(INDIRECT(\"c\" & (VLOOKUP(Rebalance!$D$53,$F$2:$G$48,2,FALSE)+ROW()-2))=Rebalance!$D$53,INDIRECT(\"a\" & (VLOOKUP(Rebalance!$D$53,$F$2:$G$48,2,FALSE)+ROW()-2)),\"\")","v":{"$error":"#N/A"}},{"$f":"IF(INDIRECT(\"c\" & (VLOOKUP(Rebalance!$D$54,$F$2:$G$48,2,FALSE)+ROW()-2))=Rebalance!$D$54,INDIRECT(\"a\" & (VLOOKUP(Rebalance!$D$54,$F$2:$G$48,2,FALSE)+ROW()-2)),\"\")","v":{"$error":"#N/A"}},{"$f":"IF(INDIRECT(\"c\" & (VLOOKUP(Rebalance!$D$55,$F$2:$G$48,2,FALSE)+ROW()-2))=Rebalance!$D$55,INDIRECT(\"a\" & (VLOOKUP(Rebalance!$D$55,$F$2:$G$48,2,FALSE)+ROW()-2)),\"\")","v":{"$error":"#N/A"}},{"$f":"IF(INDIRECT(\"c\" & (VLOOKUP(Rebalance!$D$56,$F$2:$G$48,2,FALSE)+ROW()-2))=Rebalance!$D$56,INDIRECT(\"a\" & (VLOOKUP(Rebalance!$D$56,$F$2:$G$48,2,FALSE)+ROW()-2)),\"\")","v":{"$error":"#N/A"}},{"$f":"IF(INDIRECT(\"c\" & (VLOOKUP(Rebalance!$D$57,$F$2:$G$48,2,FALSE)+ROW()-2))=Rebalance!$D$57,INDIRECT(\"a\" & (VLOOKUP(Rebalance!$D$57,$F$2:$G$48,2,FALSE)+ROW()-2)),\"\")","v":{"$error":"#N/A"}},{"$f":"IF(INDIRECT(\"c\" & (VLOOKUP(Rebalance!$D$58,$F$2:$G$48,2,FALSE)+ROW()-2))=Rebalance!$D$58,INDIRECT(\"a\" & (VLOOKUP(Rebalance!$D$58,$F$2:$G$48,2,FALSE)+ROW()-2)),\"\")","v":{"$error":"#N/A"}},{"$f":"IF(INDIRECT(\"c\" & (VLOOKUP(Rebalance!$D$59,$F$2:$G$48,2,FALSE)+ROW()-2))=Rebalance!$D$59,INDIRECT(\"a\" & (VLOOKUP(Rebalance!$D$59,$F$2:$G$48,2,FALSE)+ROW()-2)),\"\")","v":{"$error":"#N/A"}},{"$f":"IF(INDIRECT(\"c\" & (VLOOKUP(Rebalance!$D$60,$F$2:$G$48,2,FALSE)+ROW()-2))=Rebalance!$D$60,INDIRECT(\"a\" & (VLOOKUP(Rebalance!$D$60,$F$2:$G$48,2,FALSE)+ROW()-2)),\"\")","v":{"$error":"#N/A"}},{"$f":"IF(INDIRECT(\"c\" & (VLOOKUP(Rebalance!$D$61,$F$2:$G$48,2,FALSE)+ROW()-2))=Rebalance!$D$61,INDIRECT(\"a\" & (VLOOKUP(Rebalance!$D$61,$F$2:$G$48,2,FALSE)+ROW()-2)),\"\")","v":{"$error":"#N/A"}},{"$f":"IF(INDIRECT(\"c\" & (VLOOKUP(Rebalance!$D$62,$F$2:$G$48,2,FALSE)+ROW()-2))=Rebalance!$D$62,INDIRECT(\"a\" & (VLOOKUP(Rebalance!$D$62,$F$2:$G$48,2,FALSE)+ROW()-2)),\"\")","v":{"$error":"#N/A"}},{"$f":"IF(INDIRECT(\"c\" & (VLOOKUP(Rebalance!$D$63,$F$2:$G$48,2,FALSE)+ROW()-2))=Rebalance!$D$63,INDIRECT(\"a\" & (VLOOKUP(Rebalance!$D$63,$F$2:$G$48,2,FALSE)+ROW()-2)),\"\")","v":{"$error":"#N/A"}},{"$f":"IF(INDIRECT(\"c\" & (VLOOKUP(Rebalance!$D$64,$F$2:$G$48,2,FALSE)+ROW()-2))=Rebalance!$D$64,INDIRECT(\"a\" & (VLOOKUP(Rebalance!$D$64,$F$2:$G$48,2,FALSE)+ROW()-2)),\"\")","v":{"$error":"#N/A"}},{"$f":"IF(INDIRECT(\"c\" & (VLOOKUP(Rebalance!$D$65,$F$2:$G$48,2,FALSE)+ROW()-2))=Rebalance!$D$65,INDIRECT(\"a\" & (VLOOKUP(Rebalance!$D$65,$F$2:$G$48,2,FALSE)+ROW()-2)),\"\")","v":{"$error":"#N/A"}},{"$f":"IF(INDIRECT(\"c\" & (VLOOKUP(Rebalance!$D$66,$F$2:$G$48,2,FALSE)+ROW()-2))=Rebalance!$D$66,INDIRECT(\"a\" & (VLOOKUP(Rebalance!$D$66,$F$2:$G$48,2,FALSE)+ROW()-2)),\"\")","v":{"$error":"#N/A"}}]
["Adviceworx Old Mutual Inflation Plus 2-3% FoF B1","AMIB1","Old Mutual Unit Trust Managers Limited",{"$f":"ROW()","v":396},null,null,{"$f":"VLOOKUP(F396,$C$2:$D$599,2,FALSE)","v":{"$error":"#N/A"}},{"$f":"IF(INDIRECT(\"c\" & (VLOOKUP(Rebalance!$D$26,$F$2:$G$48,2,FALSE)+ROW()-2))=Rebalance!$D$26,INDIRECT(\"a\" & (VLOOKUP(Rebalance!$D$26,$F$2:$G$48,2,FALSE)+ROW()-2)),\"\")","v":{"$error":"#N/A"}},{"$f":"IF(INDIRECT(\"c\" & (VLOOKUP(Rebalance!$D$27,$F$2:$G$48,2,FALSE)+ROW()-2))=Rebalance!$D$27,INDIRECT(\"a\" & (VLOOKUP(Rebalance!$D$27,$F$2:$G$48,2,FALSE)+ROW()-2)),\"\")","v":{"$error":"#N/A"}},{"$f":"IF(INDIRECT(\"c\" & (VLOOKUP(Rebalance!$D$28,$F$2:$G$48,2,FALSE)+ROW()-2))=Rebalance!$D$28,INDIRECT(\"a\" & (VLOOKUP(Rebalance!$D$28,$F$2:$G$48,2,FALSE)+ROW()-2)),\"\")","v":{"$error":"#N/A"}},{"$f":"IF(INDIRECT(\"c\" & (VLOOKUP(Rebalance!$D$29,$F$2:$G$48,2,FALSE)+ROW()-2))=Rebalance!$D$29,INDIRECT(\"a\" & (VLOOKUP(Rebalance!$D$29,$F$2:$G$48,2,FALSE)+ROW()-2)),\"\")","v":{"$error":"#N/A"}},{"$f":"IF(INDIRECT(\"c\" & (VLOOKUP(Rebalance!$D$30,$F$2:$G$48,2,FALSE)+ROW()-2))=Rebalance!$D$30,INDIRECT(\"a\" & (VLOOKUP(Rebalance!$D$30,$F$2:$G$48,2,FALSE)+ROW()-2)),\"\")","v":{"$error":"#N/A"}},{"$f":"IF(INDIRECT(\"c\" & (VLOOKUP(Rebalance!$D$31,$F$2:$G$48,2,FALSE)+ROW()-2))=Rebalance!$D$31,INDIRECT(\"a\" & (VLOOKUP(Rebalance!$D$31,$F$2:$G$48,2,FALSE)+ROW()-2)),\"\")","v":{"$error":"#N/A"}},{"$f":"IF(INDIRECT(\"c\" & (VLOOKUP(Rebalance!$D$32,$F$2:$G$48,2,FALSE)+ROW()-2))=Rebalance!$D$32,INDIRECT(\"a\" & (VLOOKUP(Rebalance!$D$32,$F$2:$G$48,2,FALSE)+ROW()-2)),\"\")","v":{"$error":"#N/A"}},{"$f":"IF(INDIRECT(\"c\" & (VLOOKUP(Rebalance!$D$33,$F$2:$G$48,2,FALSE)+ROW()-2))=Rebalance!$D$33,INDIRECT(\"a\" & (VLOOKUP(Rebalance!$D$33,$F$2:$G$48,2,FALSE)+ROW()-2)),\"\")","v":{"$error":"#N/A"}},{"$f":"IF(INDIRECT(\"c\" & (VLOOKUP(Rebalance!$D$34,$F$2:$G$48,2,FALSE)+ROW()-2))=Rebalance!$D$34,INDIRECT(\"a\" & (VLOOKUP(Rebalance!$D$34,$F$2:$G$48,2,FALSE)+ROW()-2)),\"\")","v":{"$error":"#N/A"}},{"$f":"IF(INDIRECT(\"c\" & (VLOOKUP(Rebalance!$D$35,$F$2:$G$48,2,FALSE)+ROW()-2))=Rebalance!$D$35,INDIRECT(\"a\" & (VLOOKUP(Rebalance!$D$35,$F$2:$G$48,2,FALSE)+ROW()-2)),\"\")","v":{"$error":"#N/A"}},{"$f":"IF(INDIRECT(\"c\" & (VLOOKUP(Rebalance!$D$36,$F$2:$G$48,2,FALSE)+ROW()-2))=Rebalance!$D$36,INDIRECT(\"a\" & (VLOOKUP(Rebalance!$D$36,$F$2:$G$48,2,FALSE)+ROW()-2)),\"\")","v":{"$error":"#N/A"}},{"$f":"IF(INDIRECT(\"c\" & (VLOOKUP(Rebalance!$D$37,$F$2:$G$48,2,FALSE)+ROW()-2))=Rebalance!$D$37,INDIRECT(\"a\" & (VLOOKUP(Rebalance!$D$37,$F$2:$G$48,2,FALSE)+ROW()-2)),\"\")","v":{"$error":"#N/A"}},{"$f":"IF(INDIRECT(\"c\" & (VLOOKUP(Rebalance!$D$38,$F$2:$G$48,2,FALSE)+ROW()-2))=Rebalance!$D$38,INDIRECT(\"a\" & (VLOOKUP(Rebalance!$D$38,$F$2:$G$48,2,FALSE)+ROW()-2)),\"\")","v":{"$error":"#N/A"}},{"$f":"IF(INDIRECT(\"c\" & (VLOOKUP(Rebalance!$D$39,$F$2:$G$48,2,FALSE)+ROW()-2))=Rebalance!$D$39,INDIRECT(\"a\" & (VLOOKUP(Rebalance!$D$39,$F$2:$G$48,2,FALSE)+ROW()-2)),\"\")","v":{"$error":"#N/A"}},{"$f":"IF(INDIRECT(\"c\" & (VLOOKUP(Rebalance!$D$40,$F$2:$G$48,2,FALSE)+ROW()-2))=Rebalance!$D$40,INDIRECT(\"a\" & (VLOOKUP(Rebalance!$D$40,$F$2:$G$48,2,FALSE)+ROW()-2)),\"\")","v":{"$error":"#N/A"}},{"$f":"IF(INDIRECT(\"c\" & (VLOOKUP(Rebalance!$D$52,$F$2:$G$48,2,FALSE)+ROW()-2))=Rebalance!$D$52,INDIRECT(\"a\" & (VLOOKUP(Rebalance!$D$52,$F$2:$G$48,2,FALSE)+ROW()-2)),\"\")","v":{"$error":"#N/A"}},{"$f":"IF(INDIRECT(\"c\" & (VLOOKUP(Rebalance!$D$53,$F$2:$G$48,2,FALSE)+ROW()-2))=Rebalance!$D$53,INDIRECT(\"a\" & (VLOOKUP(Rebalance!$D$53,$F$2:$G$48,2,FALSE)+ROW()-2)),\"\")","v":{"$error":"#N/A"}},{"$f":"IF(INDIRECT(\"c\" & (VLOOKUP(Rebalance!$D$54,$F$2:$G$48,2,FALSE)+ROW()-2))=Rebalance!$D$54,INDIRECT(\"a\" & (VLOOKUP(Rebalance!$D$54,$F$2:$G$48,2,FALSE)+ROW()-2)),\"\")","v":{"$error":"#N/A"}},{"$f":"IF(INDIRECT(\"c\" & (VLOOKUP(Rebalance!$D$55,$F$2:$G$48,2,FALSE)+ROW()-2))=Rebalance!$D$55,INDIRECT(\"a\" & (VLOOKUP(Rebalance!$D$55,$F$2:$G$48,2,FALSE)+ROW()-2)),\"\")","v":{"$error":"#N/A"}},{"$f":"IF(INDIRECT(\"c\" & (VLOOKUP(Rebalance!$D$56,$F$2:$G$48,2,FALSE)+ROW()-2))=Rebalance!$D$56,INDIRECT(\"a\" & (VLOOKUP(Rebalance!$D$56,$F$2:$G$48,2,FALSE)+ROW()-2)),\"\")","v":{"$error":"#N/A"}},{"$f":"IF(INDIRECT(\"c\" & (VLOOKUP(Rebalance!$D$57,$F$2:$G$48,2,FALSE)+ROW()-2))=Rebalance!$D$57,INDIRECT(\"a\" & (VLOOKUP(Rebalance!$D$57,$F$2:$G$48,2,FALSE)+ROW()-2)),\"\")","v":{"$error":"#N/A"}},{"$f":"IF(INDIRECT(\"c\" & (VLOOKUP(Rebalance!$D$58,$F$2:$G$48,2,FALSE)+ROW()-2))=Rebalance!$D$58,INDIRECT(\"a\" & (VLOOKUP(Rebalance!$D$58,$F$2:$G$48,2,FALSE)+ROW()-2)),\"\")","v":{"$error":"#N/A"}},{"$f":"IF(INDIRECT(\"c\" & (VLOOKUP(Rebalance!$D$59,$F$2:$G$48,2,FALSE)+ROW()-2))=Rebalance!$D$59,INDIRECT(\"a\" & (VLOOKUP(Rebalance!$D$59,$F$2:$G$48,2,FALSE)+ROW()-2)),\"\")","v":{"$error":"#N/A"}},{"$f":"IF(INDIRECT(\"c\" & (VLOOKUP(Rebalance!$D$60,$F$2:$G$48,2,FALSE)+ROW()-2))=Rebalance!$D$60,INDIRECT(\"a\" & (VLOOKUP(Rebalance!$D$60,$F$2:$G$48,2,FALSE)+ROW()-2)),\"\")","v":{"$error":"#N/A"}},{"$f":"IF(INDIRECT(\"c\" & (VLOOKUP(Rebalance!$D$61,$F$2:$G$48,2,FALSE)+ROW()-2))=Rebalance!$D$61,INDIRECT(\"a\" & (VLOOKUP(Rebalance!$D$61,$F$2:$G$48,2,FALSE)+ROW()-2)),\"\")","v":{"$error":"#N/A"}},{"$f":"IF(INDIRECT(\"c\" & (VLOOKUP(Rebalance!$D$62,$F$2:$G$48,2,FALSE)+ROW()-2))=Rebalance!$D$62,INDIRECT(\"a\" & (VLOOKUP(Rebalance!$D$62,$F$2:$G$48,2,FALSE)+ROW()-2)),\"\")","v":{"$error":"#N/A"}},{"$f":"IF(INDIRECT(\"c\" & (VLOOKUP(Rebalance!$D$63,$F$2:$G$48,2,FALSE)+ROW()-2))=Rebalance!$D$63,INDIRECT(\"a\" & (VLOOKUP(Rebalance!$D$63,$F$2:$G$48,2,FALSE)+ROW()-2)),\"\")","v":{"$error":"#N/A"}},{"$f":"IF(INDIRECT(\"c\" & (VLOOKUP(Rebalance!$D$64,$F$2:$G$48,2,FALSE)+ROW()-2))=Rebalance!$D$64,INDIRECT(\"a\" & (VLOOKUP(Rebalance!$D$64,$F$2:$G$48,2,FALSE)+ROW()-2)),\"\")","v":{"$error":"#N/A"}},{"$f":"IF(INDIRECT(\"c\" & (VLOOKUP(Rebalance!$D$65,$F$2:$G$48,2,FALSE)+ROW()-2))=Rebalance!$D$65,INDIRECT(\"a\" & (VLOOKUP(Rebalance!$D$65,$F$2:$G$48,2,FALSE)+ROW()-2)),\"\")","v":{"$error":"#N/A"}},{"$f":"IF(INDIRECT(\"c\" & (VLOOKUP(Rebalance!$D$66,$F$2:$G$48,2,FALSE)+ROW()-2))=Rebalance!$D$66,INDIRECT(\"a\" & (VLOOKUP(Rebalance!$D$66,$F$2:$G$48,2,FALSE)+ROW()-2)),\"\")","v":{"$error":"#N/A"}}]
["Adviceworx Old Mutual Inflation Plus 3-4% FoF B1","AOIB1","Old Mutual Unit Trust Managers Limited",{"$f":"ROW()","v":397},null,null,{"$f":"VLOOKUP(F397,$C$2:$D$599,2,FALSE)","v":{"$error":"#N/A"}},{"$f":"IF(INDIRECT(\"c\" & (VLOOKUP(Rebalance!$D$26,$F$2:$G$48,2,FALSE)+ROW()-2))=Rebalance!$D$26,INDIRECT(\"a\" & (VLOOKUP(Rebalance!$D$26,$F$2:$G$48,2,FALSE)+ROW()-2)),\"\")","v":{"$error":"#N/A"}},{"$f":"IF(INDIRECT(\"c\" & (VLOOKUP(Rebalance!$D$27,$F$2:$G$48,2,FALSE)+ROW()-2))=Rebalance!$D$27,INDIRECT(\"a\" & (VLOOKUP(Rebalance!$D$27,$F$2:$G$48,2,FALSE)+ROW()-2)),\"\")","v":{"$error":"#N/A"}},{"$f":"IF(INDIRECT(\"c\" & (VLOOKUP(Rebalance!$D$28,$F$2:$G$48,2,FALSE)+ROW()-2))=Rebalance!$D$28,INDIRECT(\"a\" & (VLOOKUP(Rebalance!$D$28,$F$2:$G$48,2,FALSE)+ROW()-2)),\"\")","v":{"$error":"#N/A"}},{"$f":"IF(INDIRECT(\"c\" & (VLOOKUP(Rebalance!$D$29,$F$2:$G$48,2,FALSE)+ROW()-2))=Rebalance!$D$29,INDIRECT(\"a\" & (VLOOKUP(Rebalance!$D$29,$F$2:$G$48,2,FALSE)+ROW()-2)),\"\")","v":{"$error":"#N/A"}},{"$f":"IF(INDIRECT(\"c\" & (VLOOKUP(Rebalance!$D$30,$F$2:$G$48,2,FALSE)+ROW()-2))=Rebalance!$D$30,INDIRECT(\"a\" & (VLOOKUP(Rebalance!$D$30,$F$2:$G$48,2,FALSE)+ROW()-2)),\"\")","v":{"$error":"#N/A"}},{"$f":"IF(INDIRECT(\"c\" & (VLOOKUP(Rebalance!$D$31,$F$2:$G$48,2,FALSE)+ROW()-2))=Rebalance!$D$31,INDIRECT(\"a\" & (VLOOKUP(Rebalance!$D$31,$F$2:$G$48,2,FALSE)+ROW()-2)),\"\")","v":{"$error":"#N/A"}},{"$f":"IF(INDIRECT(\"c\" & (VLOOKUP(Rebalance!$D$32,$F$2:$G$48,2,FALSE)+ROW()-2))=Rebalance!$D$32,INDIRECT(\"a\" & (VLOOKUP(Rebalance!$D$32,$F$2:$G$48,2,FALSE)+ROW()-2)),\"\")","v":{"$error":"#N/A"}},{"$f":"IF(INDIRECT(\"c\" & (VLOOKUP(Rebalance!$D$33,$F$2:$G$48,2,FALSE)+ROW()-2))=Rebalance!$D$33,INDIRECT(\"a\" & (VLOOKUP(Rebalance!$D$33,$F$2:$G$48,2,FALSE)+ROW()-2)),\"\")","v":{"$error":"#N/A"}},{"$f":"IF(INDIRECT(\"c\" & (VLOOKUP(Rebalance!$D$34,$F$2:$G$48,2,FALSE)+ROW()-2))=Rebalance!$D$34,INDIRECT(\"a\" & (VLOOKUP(Rebalance!$D$34,$F$2:$G$48,2,FALSE)+ROW()-2)),\"\")","v":{"$error":"#N/A"}},{"$f":"IF(INDIRECT(\"c\" & (VLOOKUP(Rebalance!$D$35,$F$2:$G$48,2,FALSE)+ROW()-2))=Rebalance!$D$35,INDIRECT(\"a\" & (VLOOKUP(Rebalance!$D$35,$F$2:$G$48,2,FALSE)+ROW()-2)),\"\")","v":{"$error":"#N/A"}},{"$f":"IF(INDIRECT(\"c\" & (VLOOKUP(Rebalance!$D$36,$F$2:$G$48,2,FALSE)+ROW()-2))=Rebalance!$D$36,INDIRECT(\"a\" & (VLOOKUP(Rebalance!$D$36,$F$2:$G$48,2,FALSE)+ROW()-2)),\"\")","v":{"$error":"#N/A"}},{"$f":"IF(INDIRECT(\"c\" & (VLOOKUP(Rebalance!$D$37,$F$2:$G$48,2,FALSE)+ROW()-2))=Rebalance!$D$37,INDIRECT(\"a\" & (VLOOKUP(Rebalance!$D$37,$F$2:$G$48,2,FALSE)+ROW()-2)),\"\")","v":{"$error":"#N/A"}},{"$f":"IF(INDIRECT(\"c\" & (VLOOKUP(Rebalance!$D$38,$F$2:$G$48,2,FALSE)+ROW()-2))=Rebalance!$D$38,INDIRECT(\"a\" & (VLOOKUP(Rebalance!$D$38,$F$2:$G$48,2,FALSE)+ROW()-2)),\"\")","v":{"$error":"#N/A"}},{"$f":"IF(INDIRECT(\"c\" & (VLOOKUP(Rebalance!$D$39,$F$2:$G$48,2,FALSE)+ROW()-2))=Rebalance!$D$39,INDIRECT(\"a\" & (VLOOKUP(Rebalance!$D$39,$F$2:$G$48,2,FALSE)+ROW()-2)),\"\")","v":{"$error":"#N/A"}},{"$f":"IF(INDIRECT(\"c\" & (VLOOKUP(Rebalance!$D$40,$F$2:$G$48,2,FALSE)+ROW()-2))=Rebalance!$D$40,INDIRECT(\"a\" & (VLOOKUP(Rebalance!$D$40,$F$2:$G$48,2,FALSE)+ROW()-2)),\"\")","v":{"$error":"#N/A"}},{"$f":"IF(INDIRECT(\"c\" & (VLOOKUP(Rebalance!$D$52,$F$2:$G$48,2,FALSE)+ROW()-2))=Rebalance!$D$52,INDIRECT(\"a\" & (VLOOKUP(Rebalance!$D$52,$F$2:$G$48,2,FALSE)+ROW()-2)),\"\")","v":{"$error":"#N/A"}},{"$f":"IF(INDIRECT(\"c\" & (VLOOKUP(Rebalance!$D$53,$F$2:$G$48,2,FALSE)+ROW()-2))=Rebalance!$D$53,INDIRECT(\"a\" & (VLOOKUP(Rebalance!$D$53,$F$2:$G$48,2,FALSE)+ROW()-2)),\"\")","v":{"$error":"#N/A"}},{"$f":"IF(INDIRECT(\"c\" & (VLOOKUP(Rebalance!$D$54,$F$2:$G$48,2,FALSE)+ROW()-2))=Rebalance!$D$54,INDIRECT(\"a\" & (VLOOKUP(Rebalance!$D$54,$F$2:$G$48,2,FALSE)+ROW()-2)),\"\")","v":{"$error":"#N/A"}},{"$f":"IF(INDIRECT(\"c\" & (VLOOKUP(Rebalance!$D$55,$F$2:$G$48,2,FALSE)+ROW()-2))=Rebalance!$D$55,INDIRECT(\"a\" & (VLOOKUP(Rebalance!$D$55,$F$2:$G$48,2,FALSE)+ROW()-2)),\"\")","v":{"$error":"#N/A"}},{"$f":"IF(INDIRECT(\"c\" & (VLOOKUP(Rebalance!$D$56,$F$2:$G$48,2,FALSE)+ROW()-2))=Rebalance!$D$56,INDIRECT(\"a\" & (VLOOKUP(Rebalance!$D$56,$F$2:$G$48,2,FALSE)+ROW()-2)),\"\")","v":{"$error":"#N/A"}},{"$f":"IF(INDIRECT(\"c\" & (VLOOKUP(Rebalance!$D$57,$F$2:$G$48,2,FALSE)+ROW()-2))=Rebalance!$D$57,INDIRECT(\"a\" & (VLOOKUP(Rebalance!$D$57,$F$2:$G$48,2,FALSE)+ROW()-2)),\"\")","v":{"$error":"#N/A"}},{"$f":"IF(INDIRECT(\"c\" & (VLOOKUP(Rebalance!$D$58,$F$2:$G$48,2,FALSE)+ROW()-2))=Rebalance!$D$58,INDIRECT(\"a\" & (VLOOKUP(Rebalance!$D$58,$F$2:$G$48,2,FALSE)+ROW()-2)),\"\")","v":{"$error":"#N/A"}},{"$f":"IF(INDIRECT(\"c\" & (VLOOKUP(Rebalance!$D$59,$F$2:$G$48,2,FALSE)+ROW()-2))=Rebalance!$D$59,INDIRECT(\"a\" & (VLOOKUP(Rebalance!$D$59,$F$2:$G$48,2,FALSE)+ROW()-2)),\"\")","v":{"$error":"#N/A"}},{"$f":"IF(INDIRECT(\"c\" & (VLOOKUP(Rebalance!$D$60,$F$2:$G$48,2,FALSE)+ROW()-2))=Rebalance!$D$60,INDIRECT(\"a\" & (VLOOKUP(Rebalance!$D$60,$F$2:$G$48,2,FALSE)+ROW()-2)),\"\")","v":{"$error":"#N/A"}},{"$f":"IF(INDIRECT(\"c\" & (VLOOKUP(Rebalance!$D$61,$F$2:$G$48,2,FALSE)+ROW()-2))=Rebalance!$D$61,INDIRECT(\"a\" & (VLOOKUP(Rebalance!$D$61,$F$2:$G$48,2,FALSE)+ROW()-2)),\"\")","v":{"$error":"#N/A"}},{"$f":"IF(INDIRECT(\"c\" & (VLOOKUP(Rebalance!$D$62,$F$2:$G$48,2,FALSE)+ROW()-2))=Rebalance!$D$62,INDIRECT(\"a\" & (VLOOKUP(Rebalance!$D$62,$F$2:$G$48,2,FALSE)+ROW()-2)),\"\")","v":{"$error":"#N/A"}},{"$f":"IF(INDIRECT(\"c\" & (VLOOKUP(Rebalance!$D$63,$F$2:$G$48,2,FALSE)+ROW()-2))=Rebalance!$D$63,INDIRECT(\"a\" & (VLOOKUP(Rebalance!$D$63,$F$2:$G$48,2,FALSE)+ROW()-2)),\"\")","v":{"$error":"#N/A"}},{"$f":"IF(INDIRECT(\"c\" & (VLOOKUP(Rebalance!$D$64,$F$2:$G$48,2,FALSE)+ROW()-2))=Rebalance!$D$64,INDIRECT(\"a\" & (VLOOKUP(Rebalance!$D$64,$F$2:$G$48,2,FALSE)+ROW()-2)),\"\")","v":{"$error":"#N/A"}},{"$f":"IF(INDIRECT(\"c\" & (VLOOKUP(Rebalance!$D$65,$F$2:$G$48,2,FALSE)+ROW()-2))=Rebalance!$D$65,INDIRECT(\"a\" & (VLOOKUP(Rebalance!$D$65,$F$2:$G$48,2,FALSE)+ROW()-2)),\"\")","v":{"$error":"#N/A"}},{"$f":"IF(INDIRECT(\"c\" & (VLOOKUP(Rebalance!$D$66,$F$2:$G$48,2,FALSE)+ROW()-2))=Rebalance!$D$66,INDIRECT(\"a\" & (VLOOKUP(Rebalance!$D$66,$F$2:$G$48,2,FALSE)+ROW()-2)),\"\")","v":{"$error":"#N/A"}}]
["Adviceworx Old Mutual Inflation Plus 4-5% FoF B1","AMOB1","Old Mutual Unit Trust Managers Limited",{"$f":"ROW()","v":398},null,null,{"$f":"VLOOKUP(F398,$C$2:$D$599,2,FALSE)","v":{"$error":"#N/A"}},{"$f":"IF(INDIRECT(\"c\" & (VLOOKUP(Rebalance!$D$26,$F$2:$G$48,2,FALSE)+ROW()-2))=Rebalance!$D$26,INDIRECT(\"a\" & (VLOOKUP(Rebalance!$D$26,$F$2:$G$48,2,FALSE)+ROW()-2)),\"\")","v":{"$error":"#N/A"}},{"$f":"IF(INDIRECT(\"c\" & (VLOOKUP(Rebalance!$D$27,$F$2:$G$48,2,FALSE)+ROW()-2))=Rebalance!$D$27,INDIRECT(\"a\" & (VLOOKUP(Rebalance!$D$27,$F$2:$G$48,2,FALSE)+ROW()-2)),\"\")","v":{"$error":"#N/A"}},{"$f":"IF(INDIRECT(\"c\" & (VLOOKUP(Rebalance!$D$28,$F$2:$G$48,2,FALSE)+ROW()-2))=Rebalance!$D$28,INDIRECT(\"a\" & (VLOOKUP(Rebalance!$D$28,$F$2:$G$48,2,FALSE)+ROW()-2)),\"\")","v":{"$error":"#N/A"}},{"$f":"IF(INDIRECT(\"c\" & (VLOOKUP(Rebalance!$D$29,$F$2:$G$48,2,FALSE)+ROW()-2))=Rebalance!$D$29,INDIRECT(\"a\" & (VLOOKUP(Rebalance!$D$29,$F$2:$G$48,2,FALSE)+ROW()-2)),\"\")","v":{"$error":"#N/A"}},{"$f":"IF(INDIRECT(\"c\" & (VLOOKUP(Rebalance!$D$30,$F$2:$G$48,2,FALSE)+ROW()-2))=Rebalance!$D$30,INDIRECT(\"a\" & (VLOOKUP(Rebalance!$D$30,$F$2:$G$48,2,FALSE)+ROW()-2)),\"\")","v":{"$error":"#N/A"}},{"$f":"IF(INDIRECT(\"c\" & (VLOOKUP(Rebalance!$D$31,$F$2:$G$48,2,FALSE)+ROW()-2))=Rebalance!$D$31,INDIRECT(\"a\" & (VLOOKUP(Rebalance!$D$31,$F$2:$G$48,2,FALSE)+ROW()-2)),\"\")","v":{"$error":"#N/A"}},{"$f":"IF(INDIRECT(\"c\" & (VLOOKUP(Rebalance!$D$32,$F$2:$G$48,2,FALSE)+ROW()-2))=Rebalance!$D$32,INDIRECT(\"a\" & (VLOOKUP(Rebalance!$D$32,$F$2:$G$48,2,FALSE)+ROW()-2)),\"\")","v":{"$error":"#N/A"}},{"$f":"IF(INDIRECT(\"c\" & (VLOOKUP(Rebalance!$D$33,$F$2:$G$48,2,FALSE)+ROW()-2))=Rebalance!$D$33,INDIRECT(\"a\" & (VLOOKUP(Rebalance!$D$33,$F$2:$G$48,2,FALSE)+ROW()-2)),\"\")","v":{"$error":"#N/A"}},{"$f":"IF(INDIRECT(\"c\" & (VLOOKUP(Rebalance!$D$34,$F$2:$G$48,2,FALSE)+ROW()-2))=Rebalance!$D$34,INDIRECT(\"a\" & (VLOOKUP(Rebalance!$D$34,$F$2:$G$48,2,FALSE)+ROW()-2)),\"\")","v":{"$error":"#N/A"}},{"$f":"IF(INDIRECT(\"c\" & (VLOOKUP(Rebalance!$D$35,$F$2:$G$48,2,FALSE)+ROW()-2))=Rebalance!$D$35,INDIRECT(\"a\" & (VLOOKUP(Rebalance!$D$35,$F$2:$G$48,2,FALSE)+ROW()-2)),\"\")","v":{"$error":"#N/A"}},{"$f":"IF(INDIRECT(\"c\" & (VLOOKUP(Rebalance!$D$36,$F$2:$G$48,2,FALSE)+ROW()-2))=Rebalance!$D$36,INDIRECT(\"a\" & (VLOOKUP(Rebalance!$D$36,$F$2:$G$48,2,FALSE)+ROW()-2)),\"\")","v":{"$error":"#N/A"}},{"$f":"IF(INDIRECT(\"c\" & (VLOOKUP(Rebalance!$D$37,$F$2:$G$48,2,FALSE)+ROW()-2))=Rebalance!$D$37,INDIRECT(\"a\" & (VLOOKUP(Rebalance!$D$37,$F$2:$G$48,2,FALSE)+ROW()-2)),\"\")","v":{"$error":"#N/A"}},{"$f":"IF(INDIRECT(\"c\" & (VLOOKUP(Rebalance!$D$38,$F$2:$G$48,2,FALSE)+ROW()-2))=Rebalance!$D$38,INDIRECT(\"a\" & (VLOOKUP(Rebalance!$D$38,$F$2:$G$48,2,FALSE)+ROW()-2)),\"\")","v":{"$error":"#N/A"}},{"$f":"IF(INDIRECT(\"c\" & (VLOOKUP(Rebalance!$D$39,$F$2:$G$48,2,FALSE)+ROW()-2))=Rebalance!$D$39,INDIRECT(\"a\" & (VLOOKUP(Rebalance!$D$39,$F$2:$G$48,2,FALSE)+ROW()-2)),\"\")","v":{"$error":"#N/A"}},{"$f":"IF(INDIRECT(\"c\" & (VLOOKUP(Rebalance!$D$40,$F$2:$G$48,2,FALSE)+ROW()-2))=Rebalance!$D$40,INDIRECT(\"a\" & (VLOOKUP(Rebalance!$D$40,$F$2:$G$48,2,FALSE)+ROW()-2)),\"\")","v":{"$error":"#N/A"}},{"$f":"IF(INDIRECT(\"c\" & (VLOOKUP(Rebalance!$D$52,$F$2:$G$48,2,FALSE)+ROW()-2))=Rebalance!$D$52,INDIRECT(\"a\" & (VLOOKUP(Rebalance!$D$52,$F$2:$G$48,2,FALSE)+ROW()-2)),\"\")","v":{"$error":"#N/A"}},{"$f":"IF(INDIRECT(\"c\" & (VLOOKUP(Rebalance!$D$53,$F$2:$G$48,2,FALSE)+ROW()-2))=Rebalance!$D$53,INDIRECT(\"a\" & (VLOOKUP(Rebalance!$D$53,$F$2:$G$48,2,FALSE)+ROW()-2)),\"\")","v":{"$error":"#N/A"}},{"$f":"IF(INDIRECT(\"c\" & (VLOOKUP(Rebalance!$D$54,$F$2:$G$48,2,FALSE)+ROW()-2))=Rebalance!$D$54,INDIRECT(\"a\" & (VLOOKUP(Rebalance!$D$54,$F$2:$G$48,2,FALSE)+ROW()-2)),\"\")","v":{"$error":"#N/A"}},{"$f":"IF(INDIRECT(\"c\" & (VLOOKUP(Rebalance!$D$55,$F$2:$G$48,2,FALSE)+ROW()-2))=Rebalance!$D$55,INDIRECT(\"a\" & (VLOOKUP(Rebalance!$D$55,$F$2:$G$48,2,FALSE)+ROW()-2)),\"\")","v":{"$error":"#N/A"}},{"$f":"IF(INDIRECT(\"c\" & (VLOOKUP(Rebalance!$D$56,$F$2:$G$48,2,FALSE)+ROW()-2))=Rebalance!$D$56,INDIRECT(\"a\" & (VLOOKUP(Rebalance!$D$56,$F$2:$G$48,2,FALSE)+ROW()-2)),\"\")","v":{"$error":"#N/A"}},{"$f":"IF(INDIRECT(\"c\" & (VLOOKUP(Rebalance!$D$57,$F$2:$G$48,2,FALSE)+ROW()-2))=Rebalance!$D$57,INDIRECT(\"a\" & (VLOOKUP(Rebalance!$D$57,$F$2:$G$48,2,FALSE)+ROW()-2)),\"\")","v":{"$error":"#N/A"}},{"$f":"IF(INDIRECT(\"c\" & (VLOOKUP(Rebalance!$D$58,$F$2:$G$48,2,FALSE)+ROW()-2))=Rebalance!$D$58,INDIRECT(\"a\" & (VLOOKUP(Rebalance!$D$58,$F$2:$G$48,2,FALSE)+ROW()-2)),\"\")","v":{"$error":"#N/A"}},{"$f":"IF(INDIRECT(\"c\" & (VLOOKUP(Rebalance!$D$59,$F$2:$G$48,2,FALSE)+ROW()-2))=Rebalance!$D$59,INDIRECT(\"a\" & (VLOOKUP(Rebalance!$D$59,$F$2:$G$48,2,FALSE)+ROW()-2)),\"\")","v":{"$error":"#N/A"}},{"$f":"IF(INDIRECT(\"c\" & (VLOOKUP(Rebalance!$D$60,$F$2:$G$48,2,FALSE)+ROW()-2))=Rebalance!$D$60,INDIRECT(\"a\" & (VLOOKUP(Rebalance!$D$60,$F$2:$G$48,2,FALSE)+ROW()-2)),\"\")","v":{"$error":"#N/A"}},{"$f":"IF(INDIRECT(\"c\" & (VLOOKUP(Rebalance!$D$61,$F$2:$G$48,2,FALSE)+ROW()-2))=Rebalance!$D$61,INDIRECT(\"a\" & (VLOOKUP(Rebalance!$D$61,$F$2:$G$48,2,FALSE)+ROW()-2)),\"\")","v":{"$error":"#N/A"}},{"$f":"IF(INDIRECT(\"c\" & (VLOOKUP(Rebalance!$D$62,$F$2:$G$48,2,FALSE)+ROW()-2))=Rebalance!$D$62,INDIRECT(\"a\" & (VLOOKUP(Rebalance!$D$62,$F$2:$G$48,2,FALSE)+ROW()-2)),\"\")","v":{"$error":"#N/A"}},{"$f":"IF(INDIRECT(\"c\" & (VLOOKUP(Rebalance!$D$63,$F$2:$G$48,2,FALSE)+ROW()-2))=Rebalance!$D$63,INDIRECT(\"a\" & (VLOOKUP(Rebalance!$D$63,$F$2:$G$48,2,FALSE)+ROW()-2)),\"\")","v":{"$error":"#N/A"}},{"$f":"IF(INDIRECT(\"c\" & (VLOOKUP(Rebalance!$D$64,$F$2:$G$48,2,FALSE)+ROW()-2))=Rebalance!$D$64,INDIRECT(\"a\" & (VLOOKUP(Rebalance!$D$64,$F$2:$G$48,2,FALSE)+ROW()-2)),\"\")","v":{"$error":"#N/A"}},{"$f":"IF(INDIRECT(\"c\" & (VLOOKUP(Rebalance!$D$65,$F$2:$G$48,2,FALSE)+ROW()-2))=Rebalance!$D$65,INDIRECT(\"a\" & (VLOOKUP(Rebalance!$D$65,$F$2:$G$48,2,FALSE)+ROW()-2)),\"\")","v":{"$error":"#N/A"}},{"$f":"IF(INDIRECT(\"c\" & (VLOOKUP(Rebalance!$D$66,$F$2:$G$48,2,FALSE)+ROW()-2))=Rebalance!$D$66,INDIRECT(\"a\" & (VLOOKUP(Rebalance!$D$66,$F$2:$G$48,2,FALSE)+ROW()-2)),\"\")","v":{"$error":"#N/A"}}]
["Adviceworx Old Mutual Inflation Plus 5-7% FoF B1","AOPB1","Old Mutual Unit Trust Managers Limited",{"$f":"ROW()","v":399},null,null,{"$f":"VLOOKUP(F399,$C$2:$D$599,2,FALSE)","v":{"$error":"#N/A"}},{"$f":"IF(INDIRECT(\"c\" & (VLOOKUP(Rebalance!$D$26,$F$2:$G$48,2,FALSE)+ROW()-2))=Rebalance!$D$26,INDIRECT(\"a\" & (VLOOKUP(Rebalance!$D$26,$F$2:$G$48,2,FALSE)+ROW()-2)),\"\")","v":{"$error":"#N/A"}},{"$f":"IF(INDIRECT(\"c\" & (VLOOKUP(Rebalance!$D$27,$F$2:$G$48,2,FALSE)+ROW()-2))=Rebalance!$D$27,INDIRECT(\"a\" & (VLOOKUP(Rebalance!$D$27,$F$2:$G$48,2,FALSE)+ROW()-2)),\"\")","v":{"$error":"#N/A"}},{"$f":"IF(INDIRECT(\"c\" & (VLOOKUP(Rebalance!$D$28,$F$2:$G$48,2,FALSE)+ROW()-2))=Rebalance!$D$28,INDIRECT(\"a\" & (VLOOKUP(Rebalance!$D$28,$F$2:$G$48,2,FALSE)+ROW()-2)),\"\")","v":{"$error":"#N/A"}},{"$f":"IF(INDIRECT(\"c\" & (VLOOKUP(Rebalance!$D$29,$F$2:$G$48,2,FALSE)+ROW()-2))=Rebalance!$D$29,INDIRECT(\"a\" & (VLOOKUP(Rebalance!$D$29,$F$2:$G$48,2,FALSE)+ROW()-2)),\"\")","v":{"$error":"#N/A"}},{"$f":"IF(INDIRECT(\"c\" & (VLOOKUP(Rebalance!$D$30,$F$2:$G$48,2,FALSE)+ROW()-2))=Rebalance!$D$30,INDIRECT(\"a\" & (VLOOKUP(Rebalance!$D$30,$F$2:$G$48,2,FALSE)+ROW()-2)),\"\")","v":{"$error":"#N/A"}},{"$f":"IF(INDIRECT(\"c\" & (VLOOKUP(Rebalance!$D$31,$F$2:$G$48,2,FALSE)+ROW()-2))=Rebalance!$D$31,INDIRECT(\"a\" & (VLOOKUP(Rebalance!$D$31,$F$2:$G$48,2,FALSE)+ROW()-2)),\"\")","v":{"$error":"#N/A"}},{"$f":"IF(INDIRECT(\"c\" & (VLOOKUP(Rebalance!$D$32,$F$2:$G$48,2,FALSE)+ROW()-2))=Rebalance!$D$32,INDIRECT(\"a\" & (VLOOKUP(Rebalance!$D$32,$F$2:$G$48,2,FALSE)+ROW()-2)),\"\")","v":{"$error":"#N/A"}},{"$f":"IF(INDIRECT(\"c\" & (VLOOKUP(Rebalance!$D$33,$F$2:$G$48,2,FALSE)+ROW()-2))=Rebalance!$D$33,INDIRECT(\"a\" & (VLOOKUP(Rebalance!$D$33,$F$2:$G$48,2,FALSE)+ROW()-2)),\"\")","v":{"$error":"#N/A"}},{"$f":"IF(INDIRECT(\"c\" & (VLOOKUP(Rebalance!$D$34,$F$2:$G$48,2,FALSE)+ROW()-2))=Rebalance!$D$34,INDIRECT(\"a\" & (VLOOKUP(Rebalance!$D$34,$F$2:$G$48,2,FALSE)+ROW()-2)),\"\")","v":{"$error":"#N/A"}},{"$f":"IF(INDIRECT(\"c\" & (VLOOKUP(Rebalance!$D$35,$F$2:$G$48,2,FALSE)+ROW()-2))=Rebalance!$D$35,INDIRECT(\"a\" & (VLOOKUP(Rebalance!$D$35,$F$2:$G$48,2,FALSE)+ROW()-2)),\"\")","v":{"$error":"#N/A"}},{"$f":"IF(INDIRECT(\"c\" & (VLOOKUP(Rebalance!$D$36,$F$2:$G$48,2,FALSE)+ROW()-2))=Rebalance!$D$36,INDIRECT(\"a\" & (VLOOKUP(Rebalance!$D$36,$F$2:$G$48,2,FALSE)+ROW()-2)),\"\")","v":{"$error":"#N/A"}},{"$f":"IF(INDIRECT(\"c\" & (VLOOKUP(Rebalance!$D$37,$F$2:$G$48,2,FALSE)+ROW()-2))=Rebalance!$D$37,INDIRECT(\"a\" & (VLOOKUP(Rebalance!$D$37,$F$2:$G$48,2,FALSE)+ROW()-2)),\"\")","v":{"$error":"#N/A"}},{"$f":"IF(INDIRECT(\"c\" & (VLOOKUP(Rebalance!$D$38,$F$2:$G$48,2,FALSE)+ROW()-2))=Rebalance!$D$38,INDIRECT(\"a\" & (VLOOKUP(Rebalance!$D$38,$F$2:$G$48,2,FALSE)+ROW()-2)),\"\")","v":{"$error":"#N/A"}},{"$f":"IF(INDIRECT(\"c\" & (VLOOKUP(Rebalance!$D$39,$F$2:$G$48,2,FALSE)+ROW()-2))=Rebalance!$D$39,INDIRECT(\"a\" & (VLOOKUP(Rebalance!$D$39,$F$2:$G$48,2,FALSE)+ROW()-2)),\"\")","v":{"$error":"#N/A"}},{"$f":"IF(INDIRECT(\"c\" & (VLOOKUP(Rebalance!$D$40,$F$2:$G$48,2,FALSE)+ROW()-2))=Rebalance!$D$40,INDIRECT(\"a\" & (VLOOKUP(Rebalance!$D$40,$F$2:$G$48,2,FALSE)+ROW()-2)),\"\")","v":{"$error":"#N/A"}},{"$f":"IF(INDIRECT(\"c\" & (VLOOKUP(Rebalance!$D$52,$F$2:$G$48,2,FALSE)+ROW()-2))=Rebalance!$D$52,INDIRECT(\"a\" & (VLOOKUP(Rebalance!$D$52,$F$2:$G$48,2,FALSE)+ROW()-2)),\"\")","v":{"$error":"#N/A"}},{"$f":"IF(INDIRECT(\"c\" & (VLOOKUP(Rebalance!$D$53,$F$2:$G$48,2,FALSE)+ROW()-2))=Rebalance!$D$53,INDIRECT(\"a\" & (VLOOKUP(Rebalance!$D$53,$F$2:$G$48,2,FALSE)+ROW()-2)),\"\")","v":{"$error":"#N/A"}},{"$f":"IF(INDIRECT(\"c\" & (VLOOKUP(Rebalance!$D$54,$F$2:$G$48,2,FALSE)+ROW()-2))=Rebalance!$D$54,INDIRECT(\"a\" & (VLOOKUP(Rebalance!$D$54,$F$2:$G$48,2,FALSE)+ROW()-2)),\"\")","v":{"$error":"#N/A"}},{"$f":"IF(INDIRECT(\"c\" & (VLOOKUP(Rebalance!$D$55,$F$2:$G$48,2,FALSE)+ROW()-2))=Rebalance!$D$55,INDIRECT(\"a\" & (VLOOKUP(Rebalance!$D$55,$F$2:$G$48,2,FALSE)+ROW()-2)),\"\")","v":{"$error":"#N/A"}},{"$f":"IF(INDIRECT(\"c\" & (VLOOKUP(Rebalance!$D$56,$F$2:$G$48,2,FALSE)+ROW()-2))=Rebalance!$D$56,INDIRECT(\"a\" & (VLOOKUP(Rebalance!$D$56,$F$2:$G$48,2,FALSE)+ROW()-2)),\"\")","v":{"$error":"#N/A"}},{"$f":"IF(INDIRECT(\"c\" & (VLOOKUP(Rebalance!$D$57,$F$2:$G$48,2,FALSE)+ROW()-2))=Rebalance!$D$57,INDIRECT(\"a\" & (VLOOKUP(Rebalance!$D$57,$F$2:$G$48,2,FALSE)+ROW()-2)),\"\")","v":{"$error":"#N/A"}},{"$f":"IF(INDIRECT(\"c\" & (VLOOKUP(Rebalance!$D$58,$F$2:$G$48,2,FALSE)+ROW()-2))=Rebalance!$D$58,INDIRECT(\"a\" & (VLOOKUP(Rebalance!$D$58,$F$2:$G$48,2,FALSE)+ROW()-2)),\"\")","v":{"$error":"#N/A"}},{"$f":"IF(INDIRECT(\"c\" & (VLOOKUP(Rebalance!$D$59,$F$2:$G$48,2,FALSE)+ROW()-2))=Rebalance!$D$59,INDIRECT(\"a\" & (VLOOKUP(Rebalance!$D$59,$F$2:$G$48,2,FALSE)+ROW()-2)),\"\")","v":{"$error":"#N/A"}},{"$f":"IF(INDIRECT(\"c\" & (VLOOKUP(Rebalance!$D$60,$F$2:$G$48,2,FALSE)+ROW()-2))=Rebalance!$D$60,INDIRECT(\"a\" & (VLOOKUP(Rebalance!$D$60,$F$2:$G$48,2,FALSE)+ROW()-2)),\"\")","v":{"$error":"#N/A"}},{"$f":"IF(INDIRECT(\"c\" & (VLOOKUP(Rebalance!$D$61,$F$2:$G$48,2,FALSE)+ROW()-2))=Rebalance!$D$61,INDIRECT(\"a\" & (VLOOKUP(Rebalance!$D$61,$F$2:$G$48,2,FALSE)+ROW()-2)),\"\")","v":{"$error":"#N/A"}},{"$f":"IF(INDIRECT(\"c\" & (VLOOKUP(Rebalance!$D$62,$F$2:$G$48,2,FALSE)+ROW()-2))=Rebalance!$D$62,INDIRECT(\"a\" & (VLOOKUP(Rebalance!$D$62,$F$2:$G$48,2,FALSE)+ROW()-2)),\"\")","v":{"$error":"#N/A"}},{"$f":"IF(INDIRECT(\"c\" & (VLOOKUP(Rebalance!$D$63,$F$2:$G$48,2,FALSE)+ROW()-2))=Rebalance!$D$63,INDIRECT(\"a\" & (VLOOKUP(Rebalance!$D$63,$F$2:$G$48,2,FALSE)+ROW()-2)),\"\")","v":{"$error":"#N/A"}},{"$f":"IF(INDIRECT(\"c\" & (VLOOKUP(Rebalance!$D$64,$F$2:$G$48,2,FALSE)+ROW()-2))=Rebalance!$D$64,INDIRECT(\"a\" & (VLOOKUP(Rebalance!$D$64,$F$2:$G$48,2,FALSE)+ROW()-2)),\"\")","v":{"$error":"#N/A"}},{"$f":"IF(INDIRECT(\"c\" & (VLOOKUP(Rebalance!$D$65,$F$2:$G$48,2,FALSE)+ROW()-2))=Rebalance!$D$65,INDIRECT(\"a\" & (VLOOKUP(Rebalance!$D$65,$F$2:$G$48,2,FALSE)+ROW()-2)),\"\")","v":{"$error":"#N/A"}},{"$f":"IF(INDIRECT(\"c\" & (VLOOKUP(Rebalance!$D$66,$F$2:$G$48,2,FALSE)+ROW()-2))=Rebalance!$D$66,INDIRECT(\"a\" & (VLOOKUP(Rebalance!$D$66,$F$2:$G$48,2,FALSE)+ROW()-2)),\"\")","v":{"$error":"#N/A"}}]
["Old Mutual Active Quant Equity Fund A","OMAA","Old Mutual Unit Trust Managers Limited",{"$f":"ROW()","v":400},null,null,{"$f":"VLOOKUP(F400,$C$2:$D$599,2,FALSE)","v":{"$error":"#N/A"}},{"$f":"IF(INDIRECT(\"c\" & (VLOOKUP(Rebalance!$D$26,$F$2:$G$48,2,FALSE)+ROW()-2))=Rebalance!$D$26,INDIRECT(\"a\" & (VLOOKUP(Rebalance!$D$26,$F$2:$G$48,2,FALSE)+ROW()-2)),\"\")","v":{"$error":"#N/A"}},{"$f":"IF(INDIRECT(\"c\" & (VLOOKUP(Rebalance!$D$27,$F$2:$G$48,2,FALSE)+ROW()-2))=Rebalance!$D$27,INDIRECT(\"a\" & (VLOOKUP(Rebalance!$D$27,$F$2:$G$48,2,FALSE)+ROW()-2)),\"\")","v":{"$error":"#N/A"}},{"$f":"IF(INDIRECT(\"c\" & (VLOOKUP(Rebalance!$D$28,$F$2:$G$48,2,FALSE)+ROW()-2))=Rebalance!$D$28,INDIRECT(\"a\" & (VLOOKUP(Rebalance!$D$28,$F$2:$G$48,2,FALSE)+ROW()-2)),\"\")","v":{"$error":"#N/A"}},{"$f":"IF(INDIRECT(\"c\" & (VLOOKUP(Rebalance!$D$29,$F$2:$G$48,2,FALSE)+ROW()-2))=Rebalance!$D$29,INDIRECT(\"a\" & (VLOOKUP(Rebalance!$D$29,$F$2:$G$48,2,FALSE)+ROW()-2)),\"\")","v":{"$error":"#N/A"}},{"$f":"IF(INDIRECT(\"c\" & (VLOOKUP(Rebalance!$D$30,$F$2:$G$48,2,FALSE)+ROW()-2))=Rebalance!$D$30,INDIRECT(\"a\" & (VLOOKUP(Rebalance!$D$30,$F$2:$G$48,2,FALSE)+ROW()-2)),\"\")","v":{"$error":"#N/A"}},{"$f":"IF(INDIRECT(\"c\" & (VLOOKUP(Rebalance!$D$31,$F$2:$G$48,2,FALSE)+ROW()-2))=Rebalance!$D$31,INDIRECT(\"a\" & (VLOOKUP(Rebalance!$D$31,$F$2:$G$48,2,FALSE)+ROW()-2)),\"\")","v":{"$error":"#N/A"}},{"$f":"IF(INDIRECT(\"c\" & (VLOOKUP(Rebalance!$D$32,$F$2:$G$48,2,FALSE)+ROW()-2))=Rebalance!$D$32,INDIRECT(\"a\" & (VLOOKUP(Rebalance!$D$32,$F$2:$G$48,2,FALSE)+ROW()-2)),\"\")","v":{"$error":"#N/A"}},{"$f":"IF(INDIRECT(\"c\" & (VLOOKUP(Rebalance!$D$33,$F$2:$G$48,2,FALSE)+ROW()-2))=Rebalance!$D$33,INDIRECT(\"a\" & (VLOOKUP(Rebalance!$D$33,$F$2:$G$48,2,FALSE)+ROW()-2)),\"\")","v":{"$error":"#N/A"}},{"$f":"IF(INDIRECT(\"c\" & (VLOOKUP(Rebalance!$D$34,$F$2:$G$48,2,FALSE)+ROW()-2))=Rebalance!$D$34,INDIRECT(\"a\" & (VLOOKUP(Rebalance!$D$34,$F$2:$G$48,2,FALSE)+ROW()-2)),\"\")","v":{"$error":"#N/A"}},{"$f":"IF(INDIRECT(\"c\" & (VLOOKUP(Rebalance!$D$35,$F$2:$G$48,2,FALSE)+ROW()-2))=Rebalance!$D$35,INDIRECT(\"a\" & (VLOOKUP(Rebalance!$D$35,$F$2:$G$48,2,FALSE)+ROW()-2)),\"\")","v":{"$error":"#N/A"}},{"$f":"IF(INDIRECT(\"c\" & (VLOOKUP(Rebalance!$D$36,$F$2:$G$48,2,FALSE)+ROW()-2))=Rebalance!$D$36,INDIRECT(\"a\" & (VLOOKUP(Rebalance!$D$36,$F$2:$G$48,2,FALSE)+ROW()-2)),\"\")","v":{"$error":"#N/A"}},{"$f":"IF(INDIRECT(\"c\" & (VLOOKUP(Rebalance!$D$37,$F$2:$G$48,2,FALSE)+ROW()-2))=Rebalance!$D$37,INDIRECT(\"a\" & (VLOOKUP(Rebalance!$D$37,$F$2:$G$48,2,FALSE)+ROW()-2)),\"\")","v":{"$error":"#N/A"}},{"$f":"IF(INDIRECT(\"c\" & (VLOOKUP(Rebalance!$D$38,$F$2:$G$48,2,FALSE)+ROW()-2))=Rebalance!$D$38,INDIRECT(\"a\" & (VLOOKUP(Rebalance!$D$38,$F$2:$G$48,2,FALSE)+ROW()-2)),\"\")","v":{"$error":"#N/A"}},{"$f":"IF(INDIRECT(\"c\" & (VLOOKUP(Rebalance!$D$39,$F$2:$G$48,2,FALSE)+ROW()-2))=Rebalance!$D$39,INDIRECT(\"a\" & (VLOOKUP(Rebalance!$D$39,$F$2:$G$48,2,FALSE)+ROW()-2)),\"\")","v":{"$error":"#N/A"}},{"$f":"IF(INDIRECT(\"c\" & (VLOOKUP(Rebalance!$D$40,$F$2:$G$48,2,FALSE)+ROW()-2))=Rebalance!$D$40,INDIRECT(\"a\" & (VLOOKUP(Rebalance!$D$40,$F$2:$G$48,2,FALSE)+ROW()-2)),\"\")","v":{"$error":"#N/A"}},{"$f":"IF(INDIRECT(\"c\" & (VLOOKUP(Rebalance!$D$52,$F$2:$G$48,2,FALSE)+ROW()-2))=Rebalance!$D$52,INDIRECT(\"a\" & (VLOOKUP(Rebalance!$D$52,$F$2:$G$48,2,FALSE)+ROW()-2)),\"\")","v":{"$error":"#N/A"}},{"$f":"IF(INDIRECT(\"c\" & (VLOOKUP(Rebalance!$D$53,$F$2:$G$48,2,FALSE)+ROW()-2))=Rebalance!$D$53,INDIRECT(\"a\" & (VLOOKUP(Rebalance!$D$53,$F$2:$G$48,2,FALSE)+ROW()-2)),\"\")","v":{"$error":"#N/A"}},{"$f":"IF(INDIRECT(\"c\" & (VLOOKUP(Rebalance!$D$54,$F$2:$G$48,2,FALSE)+ROW()-2))=Rebalance!$D$54,INDIRECT(\"a\" & (VLOOKUP(Rebalance!$D$54,$F$2:$G$48,2,FALSE)+ROW()-2)),\"\")","v":{"$error":"#N/A"}},{"$f":"IF(INDIRECT(\"c\" & (VLOOKUP(Rebalance!$D$55,$F$2:$G$48,2,FALSE)+ROW()-2))=Rebalance!$D$55,INDIRECT(\"a\" & (VLOOKUP(Rebalance!$D$55,$F$2:$G$48,2,FALSE)+ROW()-2)),\"\")","v":{"$error":"#N/A"}},{"$f":"IF(INDIRECT(\"c\" & (VLOOKUP(Rebalance!$D$56,$F$2:$G$48,2,FALSE)+ROW()-2))=Rebalance!$D$56,INDIRECT(\"a\" & (VLOOKUP(Rebalance!$D$56,$F$2:$G$48,2,FALSE)+ROW()-2)),\"\")","v":{"$error":"#N/A"}},{"$f":"IF(INDIRECT(\"c\" & (VLOOKUP(Rebalance!$D$57,$F$2:$G$48,2,FALSE)+ROW()-2))=Rebalance!$D$57,INDIRECT(\"a\" & (VLOOKUP(Rebalance!$D$57,$F$2:$G$48,2,FALSE)+ROW()-2)),\"\")","v":{"$error":"#N/A"}},{"$f":"IF(INDIRECT(\"c\" & (VLOOKUP(Rebalance!$D$58,$F$2:$G$48,2,FALSE)+ROW()-2))=Rebalance!$D$58,INDIRECT(\"a\" & (VLOOKUP(Rebalance!$D$58,$F$2:$G$48,2,FALSE)+ROW()-2)),\"\")","v":{"$error":"#N/A"}},{"$f":"IF(INDIRECT(\"c\" & (VLOOKUP(Rebalance!$D$59,$F$2:$G$48,2,FALSE)+ROW()-2))=Rebalance!$D$59,INDIRECT(\"a\" & (VLOOKUP(Rebalance!$D$59,$F$2:$G$48,2,FALSE)+ROW()-2)),\"\")","v":{"$error":"#N/A"}},{"$f":"IF(INDIRECT(\"c\" & (VLOOKUP(Rebalance!$D$60,$F$2:$G$48,2,FALSE)+ROW()-2))=Rebalance!$D$60,INDIRECT(\"a\" & (VLOOKUP(Rebalance!$D$60,$F$2:$G$48,2,FALSE)+ROW()-2)),\"\")","v":{"$error":"#N/A"}},{"$f":"IF(INDIRECT(\"c\" & (VLOOKUP(Rebalance!$D$61,$F$2:$G$48,2,FALSE)+ROW()-2))=Rebalance!$D$61,INDIRECT(\"a\" & (VLOOKUP(Rebalance!$D$61,$F$2:$G$48,2,FALSE)+ROW()-2)),\"\")","v":{"$error":"#N/A"}},{"$f":"IF(INDIRECT(\"c\" & (VLOOKUP(Rebalance!$D$62,$F$2:$G$48,2,FALSE)+ROW()-2))=Rebalance!$D$62,INDIRECT(\"a\" & (VLOOKUP(Rebalance!$D$62,$F$2:$G$48,2,FALSE)+ROW()-2)),\"\")","v":{"$error":"#N/A"}},{"$f":"IF(INDIRECT(\"c\" & (VLOOKUP(Rebalance!$D$63,$F$2:$G$48,2,FALSE)+ROW()-2))=Rebalance!$D$63,INDIRECT(\"a\" & (VLOOKUP(Rebalance!$D$63,$F$2:$G$48,2,FALSE)+ROW()-2)),\"\")","v":{"$error":"#N/A"}},{"$f":"IF(INDIRECT(\"c\" & (VLOOKUP(Rebalance!$D$64,$F$2:$G$48,2,FALSE)+ROW()-2))=Rebalance!$D$64,INDIRECT(\"a\" & (VLOOKUP(Rebalance!$D$64,$F$2:$G$48,2,FALSE)+ROW()-2)),\"\")","v":{"$error":"#N/A"}},{"$f":"IF(INDIRECT(\"c\" & (VLOOKUP(Rebalance!$D$65,$F$2:$G$48,2,FALSE)+ROW()-2))=Rebalance!$D$65,INDIRECT(\"a\" & (VLOOKUP(Rebalance!$D$65,$F$2:$G$48,2,FALSE)+ROW()-2)),\"\")","v":{"$error":"#N/A"}},{"$f":"IF(INDIRECT(\"c\" & (VLOOKUP(Rebalance!$D$66,$F$2:$G$48,2,FALSE)+ROW()-2))=Rebalance!$D$66,INDIRECT(\"a\" & (VLOOKUP(Rebalance!$D$66,$F$2:$G$48,2,FALSE)+ROW()-2)),\"\")","v":{"$error":"#N/A"}}]
["Old Mutual Albaraka Equity Fund A","OAEB1","Old Mutual Unit Trust Managers Limited",{"$f":"ROW()","v":401},null,null,{"$f":"VLOOKUP(F401,$C$2:$D$599,2,FALSE)","v":{"$error":"#N/A"}},{"$f":"IF(INDIRECT(\"c\" & (VLOOKUP(Rebalance!$D$26,$F$2:$G$48,2,FALSE)+ROW()-2))=Rebalance!$D$26,INDIRECT(\"a\" & (VLOOKUP(Rebalance!$D$26,$F$2:$G$48,2,FALSE)+ROW()-2)),\"\")","v":{"$error":"#N/A"}},{"$f":"IF(INDIRECT(\"c\" & (VLOOKUP(Rebalance!$D$27,$F$2:$G$48,2,FALSE)+ROW()-2))=Rebalance!$D$27,INDIRECT(\"a\" & (VLOOKUP(Rebalance!$D$27,$F$2:$G$48,2,FALSE)+ROW()-2)),\"\")","v":{"$error":"#N/A"}},{"$f":"IF(INDIRECT(\"c\" & (VLOOKUP(Rebalance!$D$28,$F$2:$G$48,2,FALSE)+ROW()-2))=Rebalance!$D$28,INDIRECT(\"a\" & (VLOOKUP(Rebalance!$D$28,$F$2:$G$48,2,FALSE)+ROW()-2)),\"\")","v":{"$error":"#N/A"}},{"$f":"IF(INDIRECT(\"c\" & (VLOOKUP(Rebalance!$D$29,$F$2:$G$48,2,FALSE)+ROW()-2))=Rebalance!$D$29,INDIRECT(\"a\" & (VLOOKUP(Rebalance!$D$29,$F$2:$G$48,2,FALSE)+ROW()-2)),\"\")","v":{"$error":"#N/A"}},{"$f":"IF(INDIRECT(\"c\" & (VLOOKUP(Rebalance!$D$30,$F$2:$G$48,2,FALSE)+ROW()-2))=Rebalance!$D$30,INDIRECT(\"a\" & (VLOOKUP(Rebalance!$D$30,$F$2:$G$48,2,FALSE)+ROW()-2)),\"\")","v":{"$error":"#N/A"}},{"$f":"IF(INDIRECT(\"c\" & (VLOOKUP(Rebalance!$D$31,$F$2:$G$48,2,FALSE)+ROW()-2))=Rebalance!$D$31,INDIRECT(\"a\" & (VLOOKUP(Rebalance!$D$31,$F$2:$G$48,2,FALSE)+ROW()-2)),\"\")","v":{"$error":"#N/A"}},{"$f":"IF(INDIRECT(\"c\" & (VLOOKUP(Rebalance!$D$32,$F$2:$G$48,2,FALSE)+ROW()-2))=Rebalance!$D$32,INDIRECT(\"a\" & (VLOOKUP(Rebalance!$D$32,$F$2:$G$48,2,FALSE)+ROW()-2)),\"\")","v":{"$error":"#N/A"}},{"$f":"IF(INDIRECT(\"c\" & (VLOOKUP(Rebalance!$D$33,$F$2:$G$48,2,FALSE)+ROW()-2))=Rebalance!$D$33,INDIRECT(\"a\" & (VLOOKUP(Rebalance!$D$33,$F$2:$G$48,2,FALSE)+ROW()-2)),\"\")","v":{"$error":"#N/A"}},{"$f":"IF(INDIRECT(\"c\" & (VLOOKUP(Rebalance!$D$34,$F$2:$G$48,2,FALSE)+ROW()-2))=Rebalance!$D$34,INDIRECT(\"a\" & (VLOOKUP(Rebalance!$D$34,$F$2:$G$48,2,FALSE)+ROW()-2)),\"\")","v":{"$error":"#N/A"}},{"$f":"IF(INDIRECT(\"c\" & (VLOOKUP(Rebalance!$D$35,$F$2:$G$48,2,FALSE)+ROW()-2))=Rebalance!$D$35,INDIRECT(\"a\" & (VLOOKUP(Rebalance!$D$35,$F$2:$G$48,2,FALSE)+ROW()-2)),\"\")","v":{"$error":"#N/A"}},{"$f":"IF(INDIRECT(\"c\" & (VLOOKUP(Rebalance!$D$36,$F$2:$G$48,2,FALSE)+ROW()-2))=Rebalance!$D$36,INDIRECT(\"a\" & (VLOOKUP(Rebalance!$D$36,$F$2:$G$48,2,FALSE)+ROW()-2)),\"\")","v":{"$error":"#N/A"}},{"$f":"IF(INDIRECT(\"c\" & (VLOOKUP(Rebalance!$D$37,$F$2:$G$48,2,FALSE)+ROW()-2))=Rebalance!$D$37,INDIRECT(\"a\" & (VLOOKUP(Rebalance!$D$37,$F$2:$G$48,2,FALSE)+ROW()-2)),\"\")","v":{"$error":"#N/A"}},{"$f":"IF(INDIRECT(\"c\" & (VLOOKUP(Rebalance!$D$38,$F$2:$G$48,2,FALSE)+ROW()-2))=Rebalance!$D$38,INDIRECT(\"a\" & (VLOOKUP(Rebalance!$D$38,$F$2:$G$48,2,FALSE)+ROW()-2)),\"\")","v":{"$error":"#N/A"}},{"$f":"IF(INDIRECT(\"c\" & (VLOOKUP(Rebalance!$D$39,$F$2:$G$48,2,FALSE)+ROW()-2))=Rebalance!$D$39,INDIRECT(\"a\" & (VLOOKUP(Rebalance!$D$39,$F$2:$G$48,2,FALSE)+ROW()-2)),\"\")","v":{"$error":"#N/A"}},{"$f":"IF(INDIRECT(\"c\" & (VLOOKUP(Rebalance!$D$40,$F$2:$G$48,2,FALSE)+ROW()-2))=Rebalance!$D$40,INDIRECT(\"a\" & (VLOOKUP(Rebalance!$D$40,$F$2:$G$48,2,FALSE)+ROW()-2)),\"\")","v":{"$error":"#N/A"}},{"$f":"IF(INDIRECT(\"c\" & (VLOOKUP(Rebalance!$D$52,$F$2:$G$48,2,FALSE)+ROW()-2))=Rebalance!$D$52,INDIRECT(\"a\" & (VLOOKUP(Rebalance!$D$52,$F$2:$G$48,2,FALSE)+ROW()-2)),\"\")","v":{"$error":"#N/A"}},{"$f":"IF(INDIRECT(\"c\" & (VLOOKUP(Rebalance!$D$53,$F$2:$G$48,2,FALSE)+ROW()-2))=Rebalance!$D$53,INDIRECT(\"a\" & (VLOOKUP(Rebalance!$D$53,$F$2:$G$48,2,FALSE)+ROW()-2)),\"\")","v":{"$error":"#N/A"}},{"$f":"IF(INDIRECT(\"c\" & (VLOOKUP(Rebalance!$D$54,$F$2:$G$48,2,FALSE)+ROW()-2))=Rebalance!$D$54,INDIRECT(\"a\" & (VLOOKUP(Rebalance!$D$54,$F$2:$G$48,2,FALSE)+ROW()-2)),\"\")","v":{"$error":"#N/A"}},{"$f":"IF(INDIRECT(\"c\" & (VLOOKUP(Rebalance!$D$55,$F$2:$G$48,2,FALSE)+ROW()-2))=Rebalance!$D$55,INDIRECT(\"a\" & (VLOOKUP(Rebalance!$D$55,$F$2:$G$48,2,FALSE)+ROW()-2)),\"\")","v":{"$error":"#N/A"}},{"$f":"IF(INDIRECT(\"c\" & (VLOOKUP(Rebalance!$D$56,$F$2:$G$48,2,FALSE)+ROW()-2))=Rebalance!$D$56,INDIRECT(\"a\" & (VLOOKUP(Rebalance!$D$56,$F$2:$G$48,2,FALSE)+ROW()-2)),\"\")","v":{"$error":"#N/A"}},{"$f":"IF(INDIRECT(\"c\" & (VLOOKUP(Rebalance!$D$57,$F$2:$G$48,2,FALSE)+ROW()-2))=Rebalance!$D$57,INDIRECT(\"a\" & (VLOOKUP(Rebalance!$D$57,$F$2:$G$48,2,FALSE)+ROW()-2)),\"\")","v":{"$error":"#N/A"}},{"$f":"IF(INDIRECT(\"c\" & (VLOOKUP(Rebalance!$D$58,$F$2:$G$48,2,FALSE)+ROW()-2))=Rebalance!$D$58,INDIRECT(\"a\" & (VLOOKUP(Rebalance!$D$58,$F$2:$G$48,2,FALSE)+ROW()-2)),\"\")","v":{"$error":"#N/A"}},{"$f":"IF(INDIRECT(\"c\" & (VLOOKUP(Rebalance!$D$59,$F$2:$G$48,2,FALSE)+ROW()-2))=Rebalance!$D$59,INDIRECT(\"a\" & (VLOOKUP(Rebalance!$D$59,$F$2:$G$48,2,FALSE)+ROW()-2)),\"\")","v":{"$error":"#N/A"}},{"$f":"IF(INDIRECT(\"c\" & (VLOOKUP(Rebalance!$D$60,$F$2:$G$48,2,FALSE)+ROW()-2))=Rebalance!$D$60,INDIRECT(\"a\" & (VLOOKUP(Rebalance!$D$60,$F$2:$G$48,2,FALSE)+ROW()-2)),\"\")","v":{"$error":"#N/A"}},{"$f":"IF(INDIRECT(\"c\" & (VLOOKUP(Rebalance!$D$61,$F$2:$G$48,2,FALSE)+ROW()-2))=Rebalance!$D$61,INDIRECT(\"a\" & (VLOOKUP(Rebalance!$D$61,$F$2:$G$48,2,FALSE)+ROW()-2)),\"\")","v":{"$error":"#N/A"}},{"$f":"IF(INDIRECT(\"c\" & (VLOOKUP(Rebalance!$D$62,$F$2:$G$48,2,FALSE)+ROW()-2))=Rebalance!$D$62,INDIRECT(\"a\" & (VLOOKUP(Rebalance!$D$62,$F$2:$G$48,2,FALSE)+ROW()-2)),\"\")","v":{"$error":"#N/A"}},{"$f":"IF(INDIRECT(\"c\" & (VLOOKUP(Rebalance!$D$63,$F$2:$G$48,2,FALSE)+ROW()-2))=Rebalance!$D$63,INDIRECT(\"a\" & (VLOOKUP(Rebalance!$D$63,$F$2:$G$48,2,FALSE)+ROW()-2)),\"\")","v":{"$error":"#N/A"}},{"$f":"IF(INDIRECT(\"c\" & (VLOOKUP(Rebalance!$D$64,$F$2:$G$48,2,FALSE)+ROW()-2))=Rebalance!$D$64,INDIRECT(\"a\" & (VLOOKUP(Rebalance!$D$64,$F$2:$G$48,2,FALSE)+ROW()-2)),\"\")","v":{"$error":"#N/A"}},{"$f":"IF(INDIRECT(\"c\" & (VLOOKUP(Rebalance!$D$65,$F$2:$G$48,2,FALSE)+ROW()-2))=Rebalance!$D$65,INDIRECT(\"a\" & (VLOOKUP(Rebalance!$D$65,$F$2:$G$48,2,FALSE)+ROW()-2)),\"\")","v":{"$error":"#N/A"}},{"$f":"IF(INDIRECT(\"c\" & (VLOOKUP(Rebalance!$D$66,$F$2:$G$48,2,FALSE)+ROW()-2))=Rebalance!$D$66,INDIRECT(\"a\" & (VLOOKUP(Rebalance!$D$66,$F$2:$G$48,2,FALSE)+ROW()-2)),\"\")","v":{"$error":"#N/A"}}]
["Old Mutual Albaraka Equity Fund B1","OAEB1","Old Mutual Unit Trust Managers Limited",{"$f":"ROW()","v":402},null,null,{"$f":"VLOOKUP(F402,$C$2:$D$599,2,FALSE)","v":{"$error":"#N/A"}},{"$f":"IF(INDIRECT(\"c\" & (VLOOKUP(Rebalance!$D$26,$F$2:$G$48,2,FALSE)+ROW()-2))=Rebalance!$D$26,INDIRECT(\"a\" & (VLOOKUP(Rebalance!$D$26,$F$2:$G$48,2,FALSE)+ROW()-2)),\"\")","v":{"$error":"#N/A"}},{"$f":"IF(INDIRECT(\"c\" & (VLOOKUP(Rebalance!$D$27,$F$2:$G$48,2,FALSE)+ROW()-2))=Rebalance!$D$27,INDIRECT(\"a\" & (VLOOKUP(Rebalance!$D$27,$F$2:$G$48,2,FALSE)+ROW()-2)),\"\")","v":{"$error":"#N/A"}},{"$f":"IF(INDIRECT(\"c\" & (VLOOKUP(Rebalance!$D$28,$F$2:$G$48,2,FALSE)+ROW()-2))=Rebalance!$D$28,INDIRECT(\"a\" & (VLOOKUP(Rebalance!$D$28,$F$2:$G$48,2,FALSE)+ROW()-2)),\"\")","v":{"$error":"#N/A"}},{"$f":"IF(INDIRECT(\"c\" & (VLOOKUP(Rebalance!$D$29,$F$2:$G$48,2,FALSE)+ROW()-2))=Rebalance!$D$29,INDIRECT(\"a\" & (VLOOKUP(Rebalance!$D$29,$F$2:$G$48,2,FALSE)+ROW()-2)),\"\")","v":{"$error":"#N/A"}},{"$f":"IF(INDIRECT(\"c\" & (VLOOKUP(Rebalance!$D$30,$F$2:$G$48,2,FALSE)+ROW()-2))=Rebalance!$D$30,INDIRECT(\"a\" & (VLOOKUP(Rebalance!$D$30,$F$2:$G$48,2,FALSE)+ROW()-2)),\"\")","v":{"$error":"#N/A"}},{"$f":"IF(INDIRECT(\"c\" & (VLOOKUP(Rebalance!$D$31,$F$2:$G$48,2,FALSE)+ROW()-2))=Rebalance!$D$31,INDIRECT(\"a\" & (VLOOKUP(Rebalance!$D$31,$F$2:$G$48,2,FALSE)+ROW()-2)),\"\")","v":{"$error":"#N/A"}},{"$f":"IF(INDIRECT(\"c\" & (VLOOKUP(Rebalance!$D$32,$F$2:$G$48,2,FALSE)+ROW()-2))=Rebalance!$D$32,INDIRECT(\"a\" & (VLOOKUP(Rebalance!$D$32,$F$2:$G$48,2,FALSE)+ROW()-2)),\"\")","v":{"$error":"#N/A"}},{"$f":"IF(INDIRECT(\"c\" & (VLOOKUP(Rebalance!$D$33,$F$2:$G$48,2,FALSE)+ROW()-2))=Rebalance!$D$33,INDIRECT(\"a\" & (VLOOKUP(Rebalance!$D$33,$F$2:$G$48,2,FALSE)+ROW()-2)),\"\")","v":{"$error":"#N/A"}},{"$f":"IF(INDIRECT(\"c\" & (VLOOKUP(Rebalance!$D$34,$F$2:$G$48,2,FALSE)+ROW()-2))=Rebalance!$D$34,INDIRECT(\"a\" & (VLOOKUP(Rebalance!$D$34,$F$2:$G$48,2,FALSE)+ROW()-2)),\"\")","v":{"$error":"#N/A"}},{"$f":"IF(INDIRECT(\"c\" & (VLOOKUP(Rebalance!$D$35,$F$2:$G$48,2,FALSE)+ROW()-2))=Rebalance!$D$35,INDIRECT(\"a\" & (VLOOKUP(Rebalance!$D$35,$F$2:$G$48,2,FALSE)+ROW()-2)),\"\")","v":{"$error":"#N/A"}},{"$f":"IF(INDIRECT(\"c\" & (VLOOKUP(Rebalance!$D$36,$F$2:$G$48,2,FALSE)+ROW()-2))=Rebalance!$D$36,INDIRECT(\"a\" & (VLOOKUP(Rebalance!$D$36,$F$2:$G$48,2,FALSE)+ROW()-2)),\"\")","v":{"$error":"#N/A"}},{"$f":"IF(INDIRECT(\"c\" & (VLOOKUP(Rebalance!$D$37,$F$2:$G$48,2,FALSE)+ROW()-2))=Rebalance!$D$37,INDIRECT(\"a\" & (VLOOKUP(Rebalance!$D$37,$F$2:$G$48,2,FALSE)+ROW()-2)),\"\")","v":{"$error":"#N/A"}},{"$f":"IF(INDIRECT(\"c\" & (VLOOKUP(Rebalance!$D$38,$F$2:$G$48,2,FALSE)+ROW()-2))=Rebalance!$D$38,INDIRECT(\"a\" & (VLOOKUP(Rebalance!$D$38,$F$2:$G$48,2,FALSE)+ROW()-2)),\"\")","v":{"$error":"#N/A"}},{"$f":"IF(INDIRECT(\"c\" & (VLOOKUP(Rebalance!$D$39,$F$2:$G$48,2,FALSE)+ROW()-2))=Rebalance!$D$39,INDIRECT(\"a\" & (VLOOKUP(Rebalance!$D$39,$F$2:$G$48,2,FALSE)+ROW()-2)),\"\")","v":{"$error":"#N/A"}},{"$f":"IF(INDIRECT(\"c\" & (VLOOKUP(Rebalance!$D$40,$F$2:$G$48,2,FALSE)+ROW()-2))=Rebalance!$D$40,INDIRECT(\"a\" & (VLOOKUP(Rebalance!$D$40,$F$2:$G$48,2,FALSE)+ROW()-2)),\"\")","v":{"$error":"#N/A"}},{"$f":"IF(INDIRECT(\"c\" & (VLOOKUP(Rebalance!$D$52,$F$2:$G$48,2,FALSE)+ROW()-2))=Rebalance!$D$52,INDIRECT(\"a\" & (VLOOKUP(Rebalance!$D$52,$F$2:$G$48,2,FALSE)+ROW()-2)),\"\")","v":{"$error":"#N/A"}},{"$f":"IF(INDIRECT(\"c\" & (VLOOKUP(Rebalance!$D$53,$F$2:$G$48,2,FALSE)+ROW()-2))=Rebalance!$D$53,INDIRECT(\"a\" & (VLOOKUP(Rebalance!$D$53,$F$2:$G$48,2,FALSE)+ROW()-2)),\"\")","v":{"$error":"#N/A"}},{"$f":"IF(INDIRECT(\"c\" & (VLOOKUP(Rebalance!$D$54,$F$2:$G$48,2,FALSE)+ROW()-2))=Rebalance!$D$54,INDIRECT(\"a\" & (VLOOKUP(Rebalance!$D$54,$F$2:$G$48,2,FALSE)+ROW()-2)),\"\")","v":{"$error":"#N/A"}},{"$f":"IF(INDIRECT(\"c\" & (VLOOKUP(Rebalance!$D$55,$F$2:$G$48,2,FALSE)+ROW()-2))=Rebalance!$D$55,INDIRECT(\"a\" & (VLOOKUP(Rebalance!$D$55,$F$2:$G$48,2,FALSE)+ROW()-2)),\"\")","v":{"$error":"#N/A"}},{"$f":"IF(INDIRECT(\"c\" & (VLOOKUP(Rebalance!$D$56,$F$2:$G$48,2,FALSE)+ROW()-2))=Rebalance!$D$56,INDIRECT(\"a\" & (VLOOKUP(Rebalance!$D$56,$F$2:$G$48,2,FALSE)+ROW()-2)),\"\")","v":{"$error":"#N/A"}},{"$f":"IF(INDIRECT(\"c\" & (VLOOKUP(Rebalance!$D$57,$F$2:$G$48,2,FALSE)+ROW()-2))=Rebalance!$D$57,INDIRECT(\"a\" & (VLOOKUP(Rebalance!$D$57,$F$2:$G$48,2,FALSE)+ROW()-2)),\"\")","v":{"$error":"#N/A"}},{"$f":"IF(INDIRECT(\"c\" & (VLOOKUP(Rebalance!$D$58,$F$2:$G$48,2,FALSE)+ROW()-2))=Rebalance!$D$58,INDIRECT(\"a\" & (VLOOKUP(Rebalance!$D$58,$F$2:$G$48,2,FALSE)+ROW()-2)),\"\")","v":{"$error":"#N/A"}},{"$f":"IF(INDIRECT(\"c\" & (VLOOKUP(Rebalance!$D$59,$F$2:$G$48,2,FALSE)+ROW()-2))=Rebalance!$D$59,INDIRECT(\"a\" & (VLOOKUP(Rebalance!$D$59,$F$2:$G$48,2,FALSE)+ROW()-2)),\"\")","v":{"$error":"#N/A"}},{"$f":"IF(INDIRECT(\"c\" & (VLOOKUP(Rebalance!$D$60,$F$2:$G$48,2,FALSE)+ROW()-2))=Rebalance!$D$60,INDIRECT(\"a\" & (VLOOKUP(Rebalance!$D$60,$F$2:$G$48,2,FALSE)+ROW()-2)),\"\")","v":{"$error":"#N/A"}},{"$f":"IF(INDIRECT(\"c\" & (VLOOKUP(Rebalance!$D$61,$F$2:$G$48,2,FALSE)+ROW()-2))=Rebalance!$D$61,INDIRECT(\"a\" & (VLOOKUP(Rebalance!$D$61,$F$2:$G$48,2,FALSE)+ROW()-2)),\"\")","v":{"$error":"#N/A"}},{"$f":"IF(INDIRECT(\"c\" & (VLOOKUP(Rebalance!$D$62,$F$2:$G$48,2,FALSE)+ROW()-2))=Rebalance!$D$62,INDIRECT(\"a\" & (VLOOKUP(Rebalance!$D$62,$F$2:$G$48,2,FALSE)+ROW()-2)),\"\")","v":{"$error":"#N/A"}},{"$f":"IF(INDIRECT(\"c\" & (VLOOKUP(Rebalance!$D$63,$F$2:$G$48,2,FALSE)+ROW()-2))=Rebalance!$D$63,INDIRECT(\"a\" & (VLOOKUP(Rebalance!$D$63,$F$2:$G$48,2,FALSE)+ROW()-2)),\"\")","v":{"$error":"#N/A"}},{"$f":"IF(INDIRECT(\"c\" & (VLOOKUP(Rebalance!$D$64,$F$2:$G$48,2,FALSE)+ROW()-2))=Rebalance!$D$64,INDIRECT(\"a\" & (VLOOKUP(Rebalance!$D$64,$F$2:$G$48,2,FALSE)+ROW()-2)),\"\")","v":{"$error":"#N/A"}},{"$f":"IF(INDIRECT(\"c\" & (VLOOKUP(Rebalance!$D$65,$F$2:$G$48,2,FALSE)+ROW()-2))=Rebalance!$D$65,INDIRECT(\"a\" & (VLOOKUP(Rebalance!$D$65,$F$2:$G$48,2,FALSE)+ROW()-2)),\"\")","v":{"$error":"#N/A"}},{"$f":"IF(INDIRECT(\"c\" & (VLOOKUP(Rebalance!$D$66,$F$2:$G$48,2,FALSE)+ROW()-2))=Rebalance!$D$66,INDIRECT(\"a\" & (VLOOKUP(Rebalance!$D$66,$F$2:$G$48,2,FALSE)+ROW()-2)),\"\")","v":{"$error":"#N/A"}}]
["Old Mutual Albaraka Balanced Fund B1","OMAB1","Old Mutual Unit Trust Managers Limited",{"$f":"ROW()","v":403},null,null,{"$f":"VLOOKUP(F403,$C$2:$D$599,2,FALSE)","v":{"$error":"#N/A"}},{"$f":"IF(INDIRECT(\"c\" & (VLOOKUP(Rebalance!$D$26,$F$2:$G$48,2,FALSE)+ROW()-2))=Rebalance!$D$26,INDIRECT(\"a\" & (VLOOKUP(Rebalance!$D$26,$F$2:$G$48,2,FALSE)+ROW()-2)),\"\")","v":{"$error":"#N/A"}},{"$f":"IF(INDIRECT(\"c\" & (VLOOKUP(Rebalance!$D$27,$F$2:$G$48,2,FALSE)+ROW()-2))=Rebalance!$D$27,INDIRECT(\"a\" & (VLOOKUP(Rebalance!$D$27,$F$2:$G$48,2,FALSE)+ROW()-2)),\"\")","v":{"$error":"#N/A"}},{"$f":"IF(INDIRECT(\"c\" & (VLOOKUP(Rebalance!$D$28,$F$2:$G$48,2,FALSE)+ROW()-2))=Rebalance!$D$28,INDIRECT(\"a\" & (VLOOKUP(Rebalance!$D$28,$F$2:$G$48,2,FALSE)+ROW()-2)),\"\")","v":{"$error":"#N/A"}},{"$f":"IF(INDIRECT(\"c\" & (VLOOKUP(Rebalance!$D$29,$F$2:$G$48,2,FALSE)+ROW()-2))=Rebalance!$D$29,INDIRECT(\"a\" & (VLOOKUP(Rebalance!$D$29,$F$2:$G$48,2,FALSE)+ROW()-2)),\"\")","v":{"$error":"#N/A"}},{"$f":"IF(INDIRECT(\"c\" & (VLOOKUP(Rebalance!$D$30,$F$2:$G$48,2,FALSE)+ROW()-2))=Rebalance!$D$30,INDIRECT(\"a\" & (VLOOKUP(Rebalance!$D$30,$F$2:$G$48,2,FALSE)+ROW()-2)),\"\")","v":{"$error":"#N/A"}},{"$f":"IF(INDIRECT(\"c\" & (VLOOKUP(Rebalance!$D$31,$F$2:$G$48,2,FALSE)+ROW()-2))=Rebalance!$D$31,INDIRECT(\"a\" & (VLOOKUP(Rebalance!$D$31,$F$2:$G$48,2,FALSE)+ROW()-2)),\"\")","v":{"$error":"#N/A"}},{"$f":"IF(INDIRECT(\"c\" & (VLOOKUP(Rebalance!$D$32,$F$2:$G$48,2,FALSE)+ROW()-2))=Rebalance!$D$32,INDIRECT(\"a\" & (VLOOKUP(Rebalance!$D$32,$F$2:$G$48,2,FALSE)+ROW()-2)),\"\")","v":{"$error":"#N/A"}},{"$f":"IF(INDIRECT(\"c\" & (VLOOKUP(Rebalance!$D$33,$F$2:$G$48,2,FALSE)+ROW()-2))=Rebalance!$D$33,INDIRECT(\"a\" & (VLOOKUP(Rebalance!$D$33,$F$2:$G$48,2,FALSE)+ROW()-2)),\"\")","v":{"$error":"#N/A"}},{"$f":"IF(INDIRECT(\"c\" & (VLOOKUP(Rebalance!$D$34,$F$2:$G$48,2,FALSE)+ROW()-2))=Rebalance!$D$34,INDIRECT(\"a\" & (VLOOKUP(Rebalance!$D$34,$F$2:$G$48,2,FALSE)+ROW()-2)),\"\")","v":{"$error":"#N/A"}},{"$f":"IF(INDIRECT(\"c\" & (VLOOKUP(Rebalance!$D$35,$F$2:$G$48,2,FALSE)+ROW()-2))=Rebalance!$D$35,INDIRECT(\"a\" & (VLOOKUP(Rebalance!$D$35,$F$2:$G$48,2,FALSE)+ROW()-2)),\"\")","v":{"$error":"#N/A"}},{"$f":"IF(INDIRECT(\"c\" & (VLOOKUP(Rebalance!$D$36,$F$2:$G$48,2,FALSE)+ROW()-2))=Rebalance!$D$36,INDIRECT(\"a\" & (VLOOKUP(Rebalance!$D$36,$F$2:$G$48,2,FALSE)+ROW()-2)),\"\")","v":{"$error":"#N/A"}},{"$f":"IF(INDIRECT(\"c\" & (VLOOKUP(Rebalance!$D$37,$F$2:$G$48,2,FALSE)+ROW()-2))=Rebalance!$D$37,INDIRECT(\"a\" & (VLOOKUP(Rebalance!$D$37,$F$2:$G$48,2,FALSE)+ROW()-2)),\"\")","v":{"$error":"#N/A"}},{"$f":"IF(INDIRECT(\"c\" & (VLOOKUP(Rebalance!$D$38,$F$2:$G$48,2,FALSE)+ROW()-2))=Rebalance!$D$38,INDIRECT(\"a\" & (VLOOKUP(Rebalance!$D$38,$F$2:$G$48,2,FALSE)+ROW()-2)),\"\")","v":{"$error":"#N/A"}},{"$f":"IF(INDIRECT(\"c\" & (VLOOKUP(Rebalance!$D$39,$F$2:$G$48,2,FALSE)+ROW()-2))=Rebalance!$D$39,INDIRECT(\"a\" & (VLOOKUP(Rebalance!$D$39,$F$2:$G$48,2,FALSE)+ROW()-2)),\"\")","v":{"$error":"#N/A"}},{"$f":"IF(INDIRECT(\"c\" & (VLOOKUP(Rebalance!$D$40,$F$2:$G$48,2,FALSE)+ROW()-2))=Rebalance!$D$40,INDIRECT(\"a\" & (VLOOKUP(Rebalance!$D$40,$F$2:$G$48,2,FALSE)+ROW()-2)),\"\")","v":{"$error":"#N/A"}},{"$f":"IF(INDIRECT(\"c\" & (VLOOKUP(Rebalance!$D$52,$F$2:$G$48,2,FALSE)+ROW()-2))=Rebalance!$D$52,INDIRECT(\"a\" & (VLOOKUP(Rebalance!$D$52,$F$2:$G$48,2,FALSE)+ROW()-2)),\"\")","v":{"$error":"#N/A"}},{"$f":"IF(INDIRECT(\"c\" & (VLOOKUP(Rebalance!$D$53,$F$2:$G$48,2,FALSE)+ROW()-2))=Rebalance!$D$53,INDIRECT(\"a\" & (VLOOKUP(Rebalance!$D$53,$F$2:$G$48,2,FALSE)+ROW()-2)),\"\")","v":{"$error":"#N/A"}},{"$f":"IF(INDIRECT(\"c\" & (VLOOKUP(Rebalance!$D$54,$F$2:$G$48,2,FALSE)+ROW()-2))=Rebalance!$D$54,INDIRECT(\"a\" & (VLOOKUP(Rebalance!$D$54,$F$2:$G$48,2,FALSE)+ROW()-2)),\"\")","v":{"$error":"#N/A"}},{"$f":"IF(INDIRECT(\"c\" & (VLOOKUP(Rebalance!$D$55,$F$2:$G$48,2,FALSE)+ROW()-2))=Rebalance!$D$55,INDIRECT(\"a\" & (VLOOKUP(Rebalance!$D$55,$F$2:$G$48,2,FALSE)+ROW()-2)),\"\")","v":{"$error":"#N/A"}},{"$f":"IF(INDIRECT(\"c\" & (VLOOKUP(Rebalance!$D$56,$F$2:$G$48,2,FALSE)+ROW()-2))=Rebalance!$D$56,INDIRECT(\"a\" & (VLOOKUP(Rebalance!$D$56,$F$2:$G$48,2,FALSE)+ROW()-2)),\"\")","v":{"$error":"#N/A"}},{"$f":"IF(INDIRECT(\"c\" & (VLOOKUP(Rebalance!$D$57,$F$2:$G$48,2,FALSE)+ROW()-2))=Rebalance!$D$57,INDIRECT(\"a\" & (VLOOKUP(Rebalance!$D$57,$F$2:$G$48,2,FALSE)+ROW()-2)),\"\")","v":{"$error":"#N/A"}},{"$f":"IF(INDIRECT(\"c\" & (VLOOKUP(Rebalance!$D$58,$F$2:$G$48,2,FALSE)+ROW()-2))=Rebalance!$D$58,INDIRECT(\"a\" & (VLOOKUP(Rebalance!$D$58,$F$2:$G$48,2,FALSE)+ROW()-2)),\"\")","v":{"$error":"#N/A"}},{"$f":"IF(INDIRECT(\"c\" & (VLOOKUP(Rebalance!$D$59,$F$2:$G$48,2,FALSE)+ROW()-2))=Rebalance!$D$59,INDIRECT(\"a\" & (VLOOKUP(Rebalance!$D$59,$F$2:$G$48,2,FALSE)+ROW()-2)),\"\")","v":{"$error":"#N/A"}},{"$f":"IF(INDIRECT(\"c\" & (VLOOKUP(Rebalance!$D$60,$F$2:$G$48,2,FALSE)+ROW()-2))=Rebalance!$D$60,INDIRECT(\"a\" & (VLOOKUP(Rebalance!$D$60,$F$2:$G$48,2,FALSE)+ROW()-2)),\"\")","v":{"$error":"#N/A"}},{"$f":"IF(INDIRECT(\"c\" & (VLOOKUP(Rebalance!$D$61,$F$2:$G$48,2,FALSE)+ROW()-2))=Rebalance!$D$61,INDIRECT(\"a\" & (VLOOKUP(Rebalance!$D$61,$F$2:$G$48,2,FALSE)+ROW()-2)),\"\")","v":{"$error":"#N/A"}},{"$f":"IF(INDIRECT(\"c\" & (VLOOKUP(Rebalance!$D$62,$F$2:$G$48,2,FALSE)+ROW()-2))=Rebalance!$D$62,INDIRECT(\"a\" & (VLOOKUP(Rebalance!$D$62,$F$2:$G$48,2,FALSE)+ROW()-2)),\"\")","v":{"$error":"#N/A"}},{"$f":"IF(INDIRECT(\"c\" & (VLOOKUP(Rebalance!$D$63,$F$2:$G$48,2,FALSE)+ROW()-2))=Rebalance!$D$63,INDIRECT(\"a\" & (VLOOKUP(Rebalance!$D$63,$F$2:$G$48,2,FALSE)+ROW()-2)),\"\")","v":{"$error":"#N/A"}},{"$f":"IF(INDIRECT(\"c\" & (VLOOKUP(Rebalance!$D$64,$F$2:$G$48,2,FALSE)+ROW()-2))=Rebalance!$D$64,INDIRECT(\"a\" & (VLOOKUP(Rebalance!$D$64,$F$2:$G$48,2,FALSE)+ROW()-2)),\"\")","v":{"$error":"#N/A"}},{"$f":"IF(INDIRECT(\"c\" & (VLOOKUP(Rebalance!$D$65,$F$2:$G$48,2,FALSE)+ROW()-2))=Rebalance!$D$65,INDIRECT(\"a\" & (VLOOKUP(Rebalance!$D$65,$F$2:$G$48,2,FALSE)+ROW()-2)),\"\")","v":{"$error":"#N/A"}},{"$f":"IF(INDIRECT(\"c\" & (VLOOKUP(Rebalance!$D$66,$F$2:$G$48,2,FALSE)+ROW()-2))=Rebalance!$D$66,INDIRECT(\"a\" & (VLOOKUP(Rebalance!$D$66,$F$2:$G$48,2,FALSE)+ROW()-2)),\"\")","v":{"$error":"#N/A"}}]
["Old Mutual Balanced Fund B1","OMBB1","Old Mutual Unit Trust Managers Limited",{"$f":"ROW()","v":404},null,null,{"$f":"VLOOKUP(F404,$C$2:$D$599,2,FALSE)","v":{"$error":"#N/A"}},{"$f":"IF(INDIRECT(\"c\" & (VLOOKUP(Rebalance!$D$26,$F$2:$G$48,2,FALSE)+ROW()-2))=Rebalance!$D$26,INDIRECT(\"a\" & (VLOOKUP(Rebalance!$D$26,$F$2:$G$48,2,FALSE)+ROW()-2)),\"\")","v":{"$error":"#N/A"}},{"$f":"IF(INDIRECT(\"c\" & (VLOOKUP(Rebalance!$D$27,$F$2:$G$48,2,FALSE)+ROW()-2))=Rebalance!$D$27,INDIRECT(\"a\" & (VLOOKUP(Rebalance!$D$27,$F$2:$G$48,2,FALSE)+ROW()-2)),\"\")","v":{"$error":"#N/A"}},{"$f":"IF(INDIRECT(\"c\" & (VLOOKUP(Rebalance!$D$28,$F$2:$G$48,2,FALSE)+ROW()-2))=Rebalance!$D$28,INDIRECT(\"a\" & (VLOOKUP(Rebalance!$D$28,$F$2:$G$48,2,FALSE)+ROW()-2)),\"\")","v":{"$error":"#N/A"}},{"$f":"IF(INDIRECT(\"c\" & (VLOOKUP(Rebalance!$D$29,$F$2:$G$48,2,FALSE)+ROW()-2))=Rebalance!$D$29,INDIRECT(\"a\" & (VLOOKUP(Rebalance!$D$29,$F$2:$G$48,2,FALSE)+ROW()-2)),\"\")","v":{"$error":"#N/A"}},{"$f":"IF(INDIRECT(\"c\" & (VLOOKUP(Rebalance!$D$30,$F$2:$G$48,2,FALSE)+ROW()-2))=Rebalance!$D$30,INDIRECT(\"a\" & (VLOOKUP(Rebalance!$D$30,$F$2:$G$48,2,FALSE)+ROW()-2)),\"\")","v":{"$error":"#N/A"}},{"$f":"IF(INDIRECT(\"c\" & (VLOOKUP(Rebalance!$D$31,$F$2:$G$48,2,FALSE)+ROW()-2))=Rebalance!$D$31,INDIRECT(\"a\" & (VLOOKUP(Rebalance!$D$31,$F$2:$G$48,2,FALSE)+ROW()-2)),\"\")","v":{"$error":"#N/A"}},{"$f":"IF(INDIRECT(\"c\" & (VLOOKUP(Rebalance!$D$32,$F$2:$G$48,2,FALSE)+ROW()-2))=Rebalance!$D$32,INDIRECT(\"a\" & (VLOOKUP(Rebalance!$D$32,$F$2:$G$48,2,FALSE)+ROW()-2)),\"\")","v":{"$error":"#N/A"}},{"$f":"IF(INDIRECT(\"c\" & (VLOOKUP(Rebalance!$D$33,$F$2:$G$48,2,FALSE)+ROW()-2))=Rebalance!$D$33,INDIRECT(\"a\" & (VLOOKUP(Rebalance!$D$33,$F$2:$G$48,2,FALSE)+ROW()-2)),\"\")","v":{"$error":"#N/A"}},{"$f":"IF(INDIRECT(\"c\" & (VLOOKUP(Rebalance!$D$34,$F$2:$G$48,2,FALSE)+ROW()-2))=Rebalance!$D$34,INDIRECT(\"a\" & (VLOOKUP(Rebalance!$D$34,$F$2:$G$48,2,FALSE)+ROW()-2)),\"\")","v":{"$error":"#N/A"}},{"$f":"IF(INDIRECT(\"c\" & (VLOOKUP(Rebalance!$D$35,$F$2:$G$48,2,FALSE)+ROW()-2))=Rebalance!$D$35,INDIRECT(\"a\" & (VLOOKUP(Rebalance!$D$35,$F$2:$G$48,2,FALSE)+ROW()-2)),\"\")","v":{"$error":"#N/A"}},{"$f":"IF(INDIRECT(\"c\" & (VLOOKUP(Rebalance!$D$36,$F$2:$G$48,2,FALSE)+ROW()-2))=Rebalance!$D$36,INDIRECT(\"a\" & (VLOOKUP(Rebalance!$D$36,$F$2:$G$48,2,FALSE)+ROW()-2)),\"\")","v":{"$error":"#N/A"}},{"$f":"IF(INDIRECT(\"c\" & (VLOOKUP(Rebalance!$D$37,$F$2:$G$48,2,FALSE)+ROW()-2))=Rebalance!$D$37,INDIRECT(\"a\" & (VLOOKUP(Rebalance!$D$37,$F$2:$G$48,2,FALSE)+ROW()-2)),\"\")","v":{"$error":"#N/A"}},{"$f":"IF(INDIRECT(\"c\" & (VLOOKUP(Rebalance!$D$38,$F$2:$G$48,2,FALSE)+ROW()-2))=Rebalance!$D$38,INDIRECT(\"a\" & (VLOOKUP(Rebalance!$D$38,$F$2:$G$48,2,FALSE)+ROW()-2)),\"\")","v":{"$error":"#N/A"}},{"$f":"IF(INDIRECT(\"c\" & (VLOOKUP(Rebalance!$D$39,$F$2:$G$48,2,FALSE)+ROW()-2))=Rebalance!$D$39,INDIRECT(\"a\" & (VLOOKUP(Rebalance!$D$39,$F$2:$G$48,2,FALSE)+ROW()-2)),\"\")","v":{"$error":"#N/A"}},{"$f":"IF(INDIRECT(\"c\" & (VLOOKUP(Rebalance!$D$40,$F$2:$G$48,2,FALSE)+ROW()-2))=Rebalance!$D$40,INDIRECT(\"a\" & (VLOOKUP(Rebalance!$D$40,$F$2:$G$48,2,FALSE)+ROW()-2)),\"\")","v":{"$error":"#N/A"}},{"$f":"IF(INDIRECT(\"c\" & (VLOOKUP(Rebalance!$D$52,$F$2:$G$48,2,FALSE)+ROW()-2))=Rebalance!$D$52,INDIRECT(\"a\" & (VLOOKUP(Rebalance!$D$52,$F$2:$G$48,2,FALSE)+ROW()-2)),\"\")","v":{"$error":"#N/A"}},{"$f":"IF(INDIRECT(\"c\" & (VLOOKUP(Rebalance!$D$53,$F$2:$G$48,2,FALSE)+ROW()-2))=Rebalance!$D$53,INDIRECT(\"a\" & (VLOOKUP(Rebalance!$D$53,$F$2:$G$48,2,FALSE)+ROW()-2)),\"\")","v":{"$error":"#N/A"}},{"$f":"IF(INDIRECT(\"c\" & (VLOOKUP(Rebalance!$D$54,$F$2:$G$48,2,FALSE)+ROW()-2))=Rebalance!$D$54,INDIRECT(\"a\" & (VLOOKUP(Rebalance!$D$54,$F$2:$G$48,2,FALSE)+ROW()-2)),\"\")","v":{"$error":"#N/A"}},{"$f":"IF(INDIRECT(\"c\" & (VLOOKUP(Rebalance!$D$55,$F$2:$G$48,2,FALSE)+ROW()-2))=Rebalance!$D$55,INDIRECT(\"a\" & (VLOOKUP(Rebalance!$D$55,$F$2:$G$48,2,FALSE)+ROW()-2)),\"\")","v":{"$error":"#N/A"}},{"$f":"IF(INDIRECT(\"c\" & (VLOOKUP(Rebalance!$D$56,$F$2:$G$48,2,FALSE)+ROW()-2))=Rebalance!$D$56,INDIRECT(\"a\" & (VLOOKUP(Rebalance!$D$56,$F$2:$G$48,2,FALSE)+ROW()-2)),\"\")","v":{"$error":"#N/A"}},{"$f":"IF(INDIRECT(\"c\" & (VLOOKUP(Rebalance!$D$57,$F$2:$G$48,2,FALSE)+ROW()-2))=Rebalance!$D$57,INDIRECT(\"a\" & (VLOOKUP(Rebalance!$D$57,$F$2:$G$48,2,FALSE)+ROW()-2)),\"\")","v":{"$error":"#N/A"}},{"$f":"IF(INDIRECT(\"c\" & (VLOOKUP(Rebalance!$D$58,$F$2:$G$48,2,FALSE)+ROW()-2))=Rebalance!$D$58,INDIRECT(\"a\" & (VLOOKUP(Rebalance!$D$58,$F$2:$G$48,2,FALSE)+ROW()-2)),\"\")","v":{"$error":"#N/A"}},{"$f":"IF(INDIRECT(\"c\" & (VLOOKUP(Rebalance!$D$59,$F$2:$G$48,2,FALSE)+ROW()-2))=Rebalance!$D$59,INDIRECT(\"a\" & (VLOOKUP(Rebalance!$D$59,$F$2:$G$48,2,FALSE)+ROW()-2)),\"\")","v":{"$error":"#N/A"}},{"$f":"IF(INDIRECT(\"c\" & (VLOOKUP(Rebalance!$D$60,$F$2:$G$48,2,FALSE)+ROW()-2))=Rebalance!$D$60,INDIRECT(\"a\" & (VLOOKUP(Rebalance!$D$60,$F$2:$G$48,2,FALSE)+ROW()-2)),\"\")","v":{"$error":"#N/A"}},{"$f":"IF(INDIRECT(\"c\" & (VLOOKUP(Rebalance!$D$61,$F$2:$G$48,2,FALSE)+ROW()-2))=Rebalance!$D$61,INDIRECT(\"a\" & (VLOOKUP(Rebalance!$D$61,$F$2:$G$48,2,FALSE)+ROW()-2)),\"\")","v":{"$error":"#N/A"}},{"$f":"IF(INDIRECT(\"c\" & (VLOOKUP(Rebalance!$D$62,$F$2:$G$48,2,FALSE)+ROW()-2))=Rebalance!$D$62,INDIRECT(\"a\" & (VLOOKUP(Rebalance!$D$62,$F$2:$G$48,2,FALSE)+ROW()-2)),\"\")","v":{"$error":"#N/A"}},{"$f":"IF(INDIRECT(\"c\" & (VLOOKUP(Rebalance!$D$63,$F$2:$G$48,2,FALSE)+ROW()-2))=Rebalance!$D$63,INDIRECT(\"a\" & (VLOOKUP(Rebalance!$D$63,$F$2:$G$48,2,FALSE)+ROW()-2)),\"\")","v":{"$error":"#N/A"}},{"$f":"IF(INDIRECT(\"c\" & (VLOOKUP(Rebalance!$D$64,$F$2:$G$48,2,FALSE)+ROW()-2))=Rebalance!$D$64,INDIRECT(\"a\" & (VLOOKUP(Rebalance!$D$64,$F$2:$G$48,2,FALSE)+ROW()-2)),\"\")","v":{"$error":"#N/A"}},{"$f":"IF(INDIRECT(\"c\" & (VLOOKUP(Rebalance!$D$65,$F$2:$G$48,2,FALSE)+ROW()-2))=Rebalance!$D$65,INDIRECT(\"a\" & (VLOOKUP(Rebalance!$D$65,$F$2:$G$48,2,FALSE)+ROW()-2)),\"\")","v":{"$error":"#N/A"}},{"$f":"IF(INDIRECT(\"c\" & (VLOOKUP(Rebalance!$D$66,$F$2:$G$48,2,FALSE)+ROW()-2))=Rebalance!$D$66,INDIRECT(\"a\" & (VLOOKUP(Rebalance!$D$66,$F$2:$G$48,2,FALSE)+ROW()-2)),\"\")","v":{"$error":"#N/A"}}]
["Old Mutual Bond Fund B1","OGTB","Old Mutual Unit Trust Managers Limited",{"$f":"ROW()","v":405},null,null,{"$f":"VLOOKUP(F405,$C$2:$D$599,2,FALSE)","v":{"$error":"#N/A"}},{"$f":"IF(INDIRECT(\"c\" & (VLOOKUP(Rebalance!$D$26,$F$2:$G$48,2,FALSE)+ROW()-2))=Rebalance!$D$26,INDIRECT(\"a\" & (VLOOKUP(Rebalance!$D$26,$F$2:$G$48,2,FALSE)+ROW()-2)),\"\")","v":{"$error":"#N/A"}},{"$f":"IF(INDIRECT(\"c\" & (VLOOKUP(Rebalance!$D$27,$F$2:$G$48,2,FALSE)+ROW()-2))=Rebalance!$D$27,INDIRECT(\"a\" & (VLOOKUP(Rebalance!$D$27,$F$2:$G$48,2,FALSE)+ROW()-2)),\"\")","v":{"$error":"#N/A"}},{"$f":"IF(INDIRECT(\"c\" & (VLOOKUP(Rebalance!$D$28,$F$2:$G$48,2,FALSE)+ROW()-2))=Rebalance!$D$28,INDIRECT(\"a\" & (VLOOKUP(Rebalance!$D$28,$F$2:$G$48,2,FALSE)+ROW()-2)),\"\")","v":{"$error":"#N/A"}},{"$f":"IF(INDIRECT(\"c\" & (VLOOKUP(Rebalance!$D$29,$F$2:$G$48,2,FALSE)+ROW()-2))=Rebalance!$D$29,INDIRECT(\"a\" & (VLOOKUP(Rebalance!$D$29,$F$2:$G$48,2,FALSE)+ROW()-2)),\"\")","v":{"$error":"#N/A"}},{"$f":"IF(INDIRECT(\"c\" & (VLOOKUP(Rebalance!$D$30,$F$2:$G$48,2,FALSE)+ROW()-2))=Rebalance!$D$30,INDIRECT(\"a\" & (VLOOKUP(Rebalance!$D$30,$F$2:$G$48,2,FALSE)+ROW()-2)),\"\")","v":{"$error":"#N/A"}},{"$f":"IF(INDIRECT(\"c\" & (VLOOKUP(Rebalance!$D$31,$F$2:$G$48,2,FALSE)+ROW()-2))=Rebalance!$D$31,INDIRECT(\"a\" & (VLOOKUP(Rebalance!$D$31,$F$2:$G$48,2,FALSE)+ROW()-2)),\"\")","v":{"$error":"#N/A"}},{"$f":"IF(INDIRECT(\"c\" & (VLOOKUP(Rebalance!$D$32,$F$2:$G$48,2,FALSE)+ROW()-2))=Rebalance!$D$32,INDIRECT(\"a\" & (VLOOKUP(Rebalance!$D$32,$F$2:$G$48,2,FALSE)+ROW()-2)),\"\")","v":{"$error":"#N/A"}},{"$f":"IF(INDIRECT(\"c\" & (VLOOKUP(Rebalance!$D$33,$F$2:$G$48,2,FALSE)+ROW()-2))=Rebalance!$D$33,INDIRECT(\"a\" & (VLOOKUP(Rebalance!$D$33,$F$2:$G$48,2,FALSE)+ROW()-2)),\"\")","v":{"$error":"#N/A"}},{"$f":"IF(INDIRECT(\"c\" & (VLOOKUP(Rebalance!$D$34,$F$2:$G$48,2,FALSE)+ROW()-2))=Rebalance!$D$34,INDIRECT(\"a\" & (VLOOKUP(Rebalance!$D$34,$F$2:$G$48,2,FALSE)+ROW()-2)),\"\")","v":{"$error":"#N/A"}},{"$f":"IF(INDIRECT(\"c\" & (VLOOKUP(Rebalance!$D$35,$F$2:$G$48,2,FALSE)+ROW()-2))=Rebalance!$D$35,INDIRECT(\"a\" & (VLOOKUP(Rebalance!$D$35,$F$2:$G$48,2,FALSE)+ROW()-2)),\"\")","v":{"$error":"#N/A"}},{"$f":"IF(INDIRECT(\"c\" & (VLOOKUP(Rebalance!$D$36,$F$2:$G$48,2,FALSE)+ROW()-2))=Rebalance!$D$36,INDIRECT(\"a\" & (VLOOKUP(Rebalance!$D$36,$F$2:$G$48,2,FALSE)+ROW()-2)),\"\")","v":{"$error":"#N/A"}},{"$f":"IF(INDIRECT(\"c\" & (VLOOKUP(Rebalance!$D$37,$F$2:$G$48,2,FALSE)+ROW()-2))=Rebalance!$D$37,INDIRECT(\"a\" & (VLOOKUP(Rebalance!$D$37,$F$2:$G$48,2,FALSE)+ROW()-2)),\"\")","v":{"$error":"#N/A"}},{"$f":"IF(INDIRECT(\"c\" & (VLOOKUP(Rebalance!$D$38,$F$2:$G$48,2,FALSE)+ROW()-2))=Rebalance!$D$38,INDIRECT(\"a\" & (VLOOKUP(Rebalance!$D$38,$F$2:$G$48,2,FALSE)+ROW()-2)),\"\")","v":{"$error":"#N/A"}},{"$f":"IF(INDIRECT(\"c\" & (VLOOKUP(Rebalance!$D$39,$F$2:$G$48,2,FALSE)+ROW()-2))=Rebalance!$D$39,INDIRECT(\"a\" & (VLOOKUP(Rebalance!$D$39,$F$2:$G$48,2,FALSE)+ROW()-2)),\"\")","v":{"$error":"#N/A"}},{"$f":"IF(INDIRECT(\"c\" & (VLOOKUP(Rebalance!$D$40,$F$2:$G$48,2,FALSE)+ROW()-2))=Rebalance!$D$40,INDIRECT(\"a\" & (VLOOKUP(Rebalance!$D$40,$F$2:$G$48,2,FALSE)+ROW()-2)),\"\")","v":{"$error":"#N/A"}},{"$f":"IF(INDIRECT(\"c\" & (VLOOKUP(Rebalance!$D$52,$F$2:$G$48,2,FALSE)+ROW()-2))=Rebalance!$D$52,INDIRECT(\"a\" & (VLOOKUP(Rebalance!$D$52,$F$2:$G$48,2,FALSE)+ROW()-2)),\"\")","v":{"$error":"#N/A"}},{"$f":"IF(INDIRECT(\"c\" & (VLOOKUP(Rebalance!$D$53,$F$2:$G$48,2,FALSE)+ROW()-2))=Rebalance!$D$53,INDIRECT(\"a\" & (VLOOKUP(Rebalance!$D$53,$F$2:$G$48,2,FALSE)+ROW()-2)),\"\")","v":{"$error":"#N/A"}},{"$f":"IF(INDIRECT(\"c\" & (VLOOKUP(Rebalance!$D$54,$F$2:$G$48,2,FALSE)+ROW()-2))=Rebalance!$D$54,INDIRECT(\"a\" & (VLOOKUP(Rebalance!$D$54,$F$2:$G$48,2,FALSE)+ROW()-2)),\"\")","v":{"$error":"#N/A"}},{"$f":"IF(INDIRECT(\"c\" & (VLOOKUP(Rebalance!$D$55,$F$2:$G$48,2,FALSE)+ROW()-2))=Rebalance!$D$55,INDIRECT(\"a\" & (VLOOKUP(Rebalance!$D$55,$F$2:$G$48,2,FALSE)+ROW()-2)),\"\")","v":{"$error":"#N/A"}},{"$f":"IF(INDIRECT(\"c\" & (VLOOKUP(Rebalance!$D$56,$F$2:$G$48,2,FALSE)+ROW()-2))=Rebalance!$D$56,INDIRECT(\"a\" & (VLOOKUP(Rebalance!$D$56,$F$2:$G$48,2,FALSE)+ROW()-2)),\"\")","v":{"$error":"#N/A"}},{"$f":"IF(INDIRECT(\"c\" & (VLOOKUP(Rebalance!$D$57,$F$2:$G$48,2,FALSE)+ROW()-2))=Rebalance!$D$57,INDIRECT(\"a\" & (VLOOKUP(Rebalance!$D$57,$F$2:$G$48,2,FALSE)+ROW()-2)),\"\")","v":{"$error":"#N/A"}},{"$f":"IF(INDIRECT(\"c\" & (VLOOKUP(Rebalance!$D$58,$F$2:$G$48,2,FALSE)+ROW()-2))=Rebalance!$D$58,INDIRECT(\"a\" & (VLOOKUP(Rebalance!$D$58,$F$2:$G$48,2,FALSE)+ROW()-2)),\"\")","v":{"$error":"#N/A"}},{"$f":"IF(INDIRECT(\"c\" & (VLOOKUP(Rebalance!$D$59,$F$2:$G$48,2,FALSE)+ROW()-2))=Rebalance!$D$59,INDIRECT(\"a\" & (VLOOKUP(Rebalance!$D$59,$F$2:$G$48,2,FALSE)+ROW()-2)),\"\")","v":{"$error":"#N/A"}},{"$f":"IF(INDIRECT(\"c\" & (VLOOKUP(Rebalance!$D$60,$F$2:$G$48,2,FALSE)+ROW()-2))=Rebalance!$D$60,INDIRECT(\"a\" & (VLOOKUP(Rebalance!$D$60,$F$2:$G$48,2,FALSE)+ROW()-2)),\"\")","v":{"$error":"#N/A"}},{"$f":"IF(INDIRECT(\"c\" & (VLOOKUP(Rebalance!$D$61,$F$2:$G$48,2,FALSE)+ROW()-2))=Rebalance!$D$61,INDIRECT(\"a\" & (VLOOKUP(Rebalance!$D$61,$F$2:$G$48,2,FALSE)+ROW()-2)),\"\")","v":{"$error":"#N/A"}},{"$f":"IF(INDIRECT(\"c\" & (VLOOKUP(Rebalance!$D$62,$F$2:$G$48,2,FALSE)+ROW()-2))=Rebalance!$D$62,INDIRECT(\"a\" & (VLOOKUP(Rebalance!$D$62,$F$2:$G$48,2,FALSE)+ROW()-2)),\"\")","v":{"$error":"#N/A"}},{"$f":"IF(INDIRECT(\"c\" & (VLOOKUP(Rebalance!$D$63,$F$2:$G$48,2,FALSE)+ROW()-2))=Rebalance!$D$63,INDIRECT(\"a\" & (VLOOKUP(Rebalance!$D$63,$F$2:$G$48,2,FALSE)+ROW()-2)),\"\")","v":{"$error":"#N/A"}},{"$f":"IF(INDIRECT(\"c\" & (VLOOKUP(Rebalance!$D$64,$F$2:$G$48,2,FALSE)+ROW()-2))=Rebalance!$D$64,INDIRECT(\"a\" & (VLOOKUP(Rebalance!$D$64,$F$2:$G$48,2,FALSE)+ROW()-2)),\"\")","v":{"$error":"#N/A"}},{"$f":"IF(INDIRECT(\"c\" & (VLOOKUP(Rebalance!$D$65,$F$2:$G$48,2,FALSE)+ROW()-2))=Rebalance!$D$65,INDIRECT(\"a\" & (VLOOKUP(Rebalance!$D$65,$F$2:$G$48,2,FALSE)+ROW()-2)),\"\")","v":{"$error":"#N/A"}},{"$f":"IF(INDIRECT(\"c\" & (VLOOKUP(Rebalance!$D$66,$F$2:$G$48,2,FALSE)+ROW()-2))=Rebalance!$D$66,INDIRECT(\"a\" & (VLOOKUP(Rebalance!$D$66,$F$2:$G$48,2,FALSE)+ROW()-2)),\"\")","v":{"$error":"#N/A"}}]
["Old Mutual Dynamic Floor Fund B1","DYFB","Old Mutual Unit Trust Managers Limited",{"$f":"ROW()","v":406},null,null,{"$f":"VLOOKUP(F406,$C$2:$D$599,2,FALSE)","v":{"$error":"#N/A"}},{"$f":"IF(INDIRECT(\"c\" & (VLOOKUP(Rebalance!$D$26,$F$2:$G$48,2,FALSE)+ROW()-2))=Rebalance!$D$26,INDIRECT(\"a\" & (VLOOKUP(Rebalance!$D$26,$F$2:$G$48,2,FALSE)+ROW()-2)),\"\")","v":{"$error":"#N/A"}},{"$f":"IF(INDIRECT(\"c\" & (VLOOKUP(Rebalance!$D$27,$F$2:$G$48,2,FALSE)+ROW()-2))=Rebalance!$D$27,INDIRECT(\"a\" & (VLOOKUP(Rebalance!$D$27,$F$2:$G$48,2,FALSE)+ROW()-2)),\"\")","v":{"$error":"#N/A"}},{"$f":"IF(INDIRECT(\"c\" & (VLOOKUP(Rebalance!$D$28,$F$2:$G$48,2,FALSE)+ROW()-2))=Rebalance!$D$28,INDIRECT(\"a\" & (VLOOKUP(Rebalance!$D$28,$F$2:$G$48,2,FALSE)+ROW()-2)),\"\")","v":{"$error":"#N/A"}},{"$f":"IF(INDIRECT(\"c\" & (VLOOKUP(Rebalance!$D$29,$F$2:$G$48,2,FALSE)+ROW()-2))=Rebalance!$D$29,INDIRECT(\"a\" & (VLOOKUP(Rebalance!$D$29,$F$2:$G$48,2,FALSE)+ROW()-2)),\"\")","v":{"$error":"#N/A"}},{"$f":"IF(INDIRECT(\"c\" & (VLOOKUP(Rebalance!$D$30,$F$2:$G$48,2,FALSE)+ROW()-2))=Rebalance!$D$30,INDIRECT(\"a\" & (VLOOKUP(Rebalance!$D$30,$F$2:$G$48,2,FALSE)+ROW()-2)),\"\")","v":{"$error":"#N/A"}},{"$f":"IF(INDIRECT(\"c\" & (VLOOKUP(Rebalance!$D$31,$F$2:$G$48,2,FALSE)+ROW()-2))=Rebalance!$D$31,INDIRECT(\"a\" & (VLOOKUP(Rebalance!$D$31,$F$2:$G$48,2,FALSE)+ROW()-2)),\"\")","v":{"$error":"#N/A"}},{"$f":"IF(INDIRECT(\"c\" & (VLOOKUP(Rebalance!$D$32,$F$2:$G$48,2,FALSE)+ROW()-2))=Rebalance!$D$32,INDIRECT(\"a\" & (VLOOKUP(Rebalance!$D$32,$F$2:$G$48,2,FALSE)+ROW()-2)),\"\")","v":{"$error":"#N/A"}},{"$f":"IF(INDIRECT(\"c\" & (VLOOKUP(Rebalance!$D$33,$F$2:$G$48,2,FALSE)+ROW()-2))=Rebalance!$D$33,INDIRECT(\"a\" & (VLOOKUP(Rebalance!$D$33,$F$2:$G$48,2,FALSE)+ROW()-2)),\"\")","v":{"$error":"#N/A"}},{"$f":"IF(INDIRECT(\"c\" & (VLOOKUP(Rebalance!$D$34,$F$2:$G$48,2,FALSE)+ROW()-2))=Rebalance!$D$34,INDIRECT(\"a\" & (VLOOKUP(Rebalance!$D$34,$F$2:$G$48,2,FALSE)+ROW()-2)),\"\")","v":{"$error":"#N/A"}},{"$f":"IF(INDIRECT(\"c\" & (VLOOKUP(Rebalance!$D$35,$F$2:$G$48,2,FALSE)+ROW()-2))=Rebalance!$D$35,INDIRECT(\"a\" & (VLOOKUP(Rebalance!$D$35,$F$2:$G$48,2,FALSE)+ROW()-2)),\"\")","v":{"$error":"#N/A"}},{"$f":"IF(INDIRECT(\"c\" & (VLOOKUP(Rebalance!$D$36,$F$2:$G$48,2,FALSE)+ROW()-2))=Rebalance!$D$36,INDIRECT(\"a\" & (VLOOKUP(Rebalance!$D$36,$F$2:$G$48,2,FALSE)+ROW()-2)),\"\")","v":{"$error":"#N/A"}},{"$f":"IF(INDIRECT(\"c\" & (VLOOKUP(Rebalance!$D$37,$F$2:$G$48,2,FALSE)+ROW()-2))=Rebalance!$D$37,INDIRECT(\"a\" & (VLOOKUP(Rebalance!$D$37,$F$2:$G$48,2,FALSE)+ROW()-2)),\"\")","v":{"$error":"#N/A"}},{"$f":"IF(INDIRECT(\"c\" & (VLOOKUP(Rebalance!$D$38,$F$2:$G$48,2,FALSE)+ROW()-2))=Rebalance!$D$38,INDIRECT(\"a\" & (VLOOKUP(Rebalance!$D$38,$F$2:$G$48,2,FALSE)+ROW()-2)),\"\")","v":{"$error":"#N/A"}},{"$f":"IF(INDIRECT(\"c\" & (VLOOKUP(Rebalance!$D$39,$F$2:$G$48,2,FALSE)+ROW()-2))=Rebalance!$D$39,INDIRECT(\"a\" & (VLOOKUP(Rebalance!$D$39,$F$2:$G$48,2,FALSE)+ROW()-2)),\"\")","v":{"$error":"#N/A"}},{"$f":"IF(INDIRECT(\"c\" & (VLOOKUP(Rebalance!$D$40,$F$2:$G$48,2,FALSE)+ROW()-2))=Rebalance!$D$40,INDIRECT(\"a\" & (VLOOKUP(Rebalance!$D$40,$F$2:$G$48,2,FALSE)+ROW()-2)),\"\")","v":{"$error":"#N/A"}},{"$f":"IF(INDIRECT(\"c\" & (VLOOKUP(Rebalance!$D$52,$F$2:$G$48,2,FALSE)+ROW()-2))=Rebalance!$D$52,INDIRECT(\"a\" & (VLOOKUP(Rebalance!$D$52,$F$2:$G$48,2,FALSE)+ROW()-2)),\"\")","v":{"$error":"#N/A"}},{"$f":"IF(INDIRECT(\"c\" & (VLOOKUP(Rebalance!$D$53,$F$2:$G$48,2,FALSE)+ROW()-2))=Rebalance!$D$53,INDIRECT(\"a\" & (VLOOKUP(Rebalance!$D$53,$F$2:$G$48,2,FALSE)+ROW()-2)),\"\")","v":{"$error":"#N/A"}},{"$f":"IF(INDIRECT(\"c\" & (VLOOKUP(Rebalance!$D$54,$F$2:$G$48,2,FALSE)+ROW()-2))=Rebalance!$D$54,INDIRECT(\"a\" & (VLOOKUP(Rebalance!$D$54,$F$2:$G$48,2,FALSE)+ROW()-2)),\"\")","v":{"$error":"#N/A"}},{"$f":"IF(INDIRECT(\"c\" & (VLOOKUP(Rebalance!$D$55,$F$2:$G$48,2,FALSE)+ROW()-2))=Rebalance!$D$55,INDIRECT(\"a\" & (VLOOKUP(Rebalance!$D$55,$F$2:$G$48,2,FALSE)+ROW()-2)),\"\")","v":{"$error":"#N/A"}},{"$f":"IF(INDIRECT(\"c\" & (VLOOKUP(Rebalance!$D$56,$F$2:$G$48,2,FALSE)+ROW()-2))=Rebalance!$D$56,INDIRECT(\"a\" & (VLOOKUP(Rebalance!$D$56,$F$2:$G$48,2,FALSE)+ROW()-2)),\"\")","v":{"$error":"#N/A"}},{"$f":"IF(INDIRECT(\"c\" & (VLOOKUP(Rebalance!$D$57,$F$2:$G$48,2,FALSE)+ROW()-2))=Rebalance!$D$57,INDIRECT(\"a\" & (VLOOKUP(Rebalance!$D$57,$F$2:$G$48,2,FALSE)+ROW()-2)),\"\")","v":{"$error":"#N/A"}},{"$f":"IF(INDIRECT(\"c\" & (VLOOKUP(Rebalance!$D$58,$F$2:$G$48,2,FALSE)+ROW()-2))=Rebalance!$D$58,INDIRECT(\"a\" & (VLOOKUP(Rebalance!$D$58,$F$2:$G$48,2,FALSE)+ROW()-2)),\"\")","v":{"$error":"#N/A"}},{"$f":"IF(INDIRECT(\"c\" & (VLOOKUP(Rebalance!$D$59,$F$2:$G$48,2,FALSE)+ROW()-2))=Rebalance!$D$59,INDIRECT(\"a\" & (VLOOKUP(Rebalance!$D$59,$F$2:$G$48,2,FALSE)+ROW()-2)),\"\")","v":{"$error":"#N/A"}},{"$f":"IF(INDIRECT(\"c\" & (VLOOKUP(Rebalance!$D$60,$F$2:$G$48,2,FALSE)+ROW()-2))=Rebalance!$D$60,INDIRECT(\"a\" & (VLOOKUP(Rebalance!$D$60,$F$2:$G$48,2,FALSE)+ROW()-2)),\"\")","v":{"$error":"#N/A"}},{"$f":"IF(INDIRECT(\"c\" & (VLOOKUP(Rebalance!$D$61,$F$2:$G$48,2,FALSE)+ROW()-2))=Rebalance!$D$61,INDIRECT(\"a\" & (VLOOKUP(Rebalance!$D$61,$F$2:$G$48,2,FALSE)+ROW()-2)),\"\")","v":{"$error":"#N/A"}},{"$f":"IF(INDIRECT(\"c\" & (VLOOKUP(Rebalance!$D$62,$F$2:$G$48,2,FALSE)+ROW()-2))=Rebalance!$D$62,INDIRECT(\"a\" & (VLOOKUP(Rebalance!$D$62,$F$2:$G$48,2,FALSE)+ROW()-2)),\"\")","v":{"$error":"#N/A"}},{"$f":"IF(INDIRECT(\"c\" & (VLOOKUP(Rebalance!$D$63,$F$2:$G$48,2,FALSE)+ROW()-2))=Rebalance!$D$63,INDIRECT(\"a\" & (VLOOKUP(Rebalance!$D$63,$F$2:$G$48,2,FALSE)+ROW()-2)),\"\")","v":{"$error":"#N/A"}},{"$f":"IF(INDIRECT(\"c\" & (VLOOKUP(Rebalance!$D$64,$F$2:$G$48,2,FALSE)+ROW()-2))=Rebalance!$D$64,INDIRECT(\"a\" & (VLOOKUP(Rebalance!$D$64,$F$2:$G$48,2,FALSE)+ROW()-2)),\"\")","v":{"$error":"#N/A"}},{"$f":"IF(INDIRECT(\"c\" & (VLOOKUP(Rebalance!$D$65,$F$2:$G$48,2,FALSE)+ROW()-2))=Rebalance!$D$65,INDIRECT(\"a\" & (VLOOKUP(Rebalance!$D$65,$F$2:$G$48,2,FALSE)+ROW()-2)),\"\")","v":{"$error":"#N/A"}},{"$f":"IF(INDIRECT(\"c\" & (VLOOKUP(Rebalance!$D$66,$F$2:$G$48,2,FALSE)+ROW()-2))=Rebalance!$D$66,INDIRECT(\"a\" & (VLOOKUP(Rebalance!$D$66,$F$2:$G$48,2,FALSE)+ROW()-2)),\"\")","v":{"$error":"#N/A"}}]
["Old Mutual Equity Fund B1","OMEQB1","Old Mutual Unit Trust Managers Limited",{"$f":"ROW()","v":407},null,null,{"$f":"VLOOKUP(F407,$C$2:$D$599,2,FALSE)","v":{"$error":"#N/A"}},{"$f":"IF(INDIRECT(\"c\" & (VLOOKUP(Rebalance!$D$26,$F$2:$G$48,2,FALSE)+ROW()-2))=Rebalance!$D$26,INDIRECT(\"a\" & (VLOOKUP(Rebalance!$D$26,$F$2:$G$48,2,FALSE)+ROW()-2)),\"\")","v":{"$error":"#N/A"}},{"$f":"IF(INDIRECT(\"c\" & (VLOOKUP(Rebalance!$D$27,$F$2:$G$48,2,FALSE)+ROW()-2))=Rebalance!$D$27,INDIRECT(\"a\" & (VLOOKUP(Rebalance!$D$27,$F$2:$G$48,2,FALSE)+ROW()-2)),\"\")","v":{"$error":"#N/A"}},{"$f":"IF(INDIRECT(\"c\" & (VLOOKUP(Rebalance!$D$28,$F$2:$G$48,2,FALSE)+ROW()-2))=Rebalance!$D$28,INDIRECT(\"a\" & (VLOOKUP(Rebalance!$D$28,$F$2:$G$48,2,FALSE)+ROW()-2)),\"\")","v":{"$error":"#N/A"}},{"$f":"IF(INDIRECT(\"c\" & (VLOOKUP(Rebalance!$D$29,$F$2:$G$48,2,FALSE)+ROW()-2))=Rebalance!$D$29,INDIRECT(\"a\" & (VLOOKUP(Rebalance!$D$29,$F$2:$G$48,2,FALSE)+ROW()-2)),\"\")","v":{"$error":"#N/A"}},{"$f":"IF(INDIRECT(\"c\" & (VLOOKUP(Rebalance!$D$30,$F$2:$G$48,2,FALSE)+ROW()-2))=Rebalance!$D$30,INDIRECT(\"a\" & (VLOOKUP(Rebalance!$D$30,$F$2:$G$48,2,FALSE)+ROW()-2)),\"\")","v":{"$error":"#N/A"}},{"$f":"IF(INDIRECT(\"c\" & (VLOOKUP(Rebalance!$D$31,$F$2:$G$48,2,FALSE)+ROW()-2))=Rebalance!$D$31,INDIRECT(\"a\" & (VLOOKUP(Rebalance!$D$31,$F$2:$G$48,2,FALSE)+ROW()-2)),\"\")","v":{"$error":"#N/A"}},{"$f":"IF(INDIRECT(\"c\" & (VLOOKUP(Rebalance!$D$32,$F$2:$G$48,2,FALSE)+ROW()-2))=Rebalance!$D$32,INDIRECT(\"a\" & (VLOOKUP(Rebalance!$D$32,$F$2:$G$48,2,FALSE)+ROW()-2)),\"\")","v":{"$error":"#N/A"}},{"$f":"IF(INDIRECT(\"c\" & (VLOOKUP(Rebalance!$D$33,$F$2:$G$48,2,FALSE)+ROW()-2))=Rebalance!$D$33,INDIRECT(\"a\" & (VLOOKUP(Rebalance!$D$33,$F$2:$G$48,2,FALSE)+ROW()-2)),\"\")","v":{"$error":"#N/A"}},{"$f":"IF(INDIRECT(\"c\" & (VLOOKUP(Rebalance!$D$34,$F$2:$G$48,2,FALSE)+ROW()-2))=Rebalance!$D$34,INDIRECT(\"a\" & (VLOOKUP(Rebalance!$D$34,$F$2:$G$48,2,FALSE)+ROW()-2)),\"\")","v":{"$error":"#N/A"}},{"$f":"IF(INDIRECT(\"c\" & (VLOOKUP(Rebalance!$D$35,$F$2:$G$48,2,FALSE)+ROW()-2))=Rebalance!$D$35,INDIRECT(\"a\" & (VLOOKUP(Rebalance!$D$35,$F$2:$G$48,2,FALSE)+ROW()-2)),\"\")","v":{"$error":"#N/A"}},{"$f":"IF(INDIRECT(\"c\" & (VLOOKUP(Rebalance!$D$36,$F$2:$G$48,2,FALSE)+ROW()-2))=Rebalance!$D$36,INDIRECT(\"a\" & (VLOOKUP(Rebalance!$D$36,$F$2:$G$48,2,FALSE)+ROW()-2)),\"\")","v":{"$error":"#N/A"}},{"$f":"IF(INDIRECT(\"c\" & (VLOOKUP(Rebalance!$D$37,$F$2:$G$48,2,FALSE)+ROW()-2))=Rebalance!$D$37,INDIRECT(\"a\" & (VLOOKUP(Rebalance!$D$37,$F$2:$G$48,2,FALSE)+ROW()-2)),\"\")","v":{"$error":"#N/A"}},{"$f":"IF(INDIRECT(\"c\" & (VLOOKUP(Rebalance!$D$38,$F$2:$G$48,2,FALSE)+ROW()-2))=Rebalance!$D$38,INDIRECT(\"a\" & (VLOOKUP(Rebalance!$D$38,$F$2:$G$48,2,FALSE)+ROW()-2)),\"\")","v":{"$error":"#N/A"}},{"$f":"IF(INDIRECT(\"c\" & (VLOOKUP(Rebalance!$D$39,$F$2:$G$48,2,FALSE)+ROW()-2))=Rebalance!$D$39,INDIRECT(\"a\" & (VLOOKUP(Rebalance!$D$39,$F$2:$G$48,2,FALSE)+ROW()-2)),\"\")","v":{"$error":"#N/A"}},{"$f":"IF(INDIRECT(\"c\" & (VLOOKUP(Rebalance!$D$40,$F$2:$G$48,2,FALSE)+ROW()-2))=Rebalance!$D$40,INDIRECT(\"a\" & (VLOOKUP(Rebalance!$D$40,$F$2:$G$48,2,FALSE)+ROW()-2)),\"\")","v":{"$error":"#N/A"}},{"$f":"IF(INDIRECT(\"c\" & (VLOOKUP(Rebalance!$D$52,$F$2:$G$48,2,FALSE)+ROW()-2))=Rebalance!$D$52,INDIRECT(\"a\" & (VLOOKUP(Rebalance!$D$52,$F$2:$G$48,2,FALSE)+ROW()-2)),\"\")","v":{"$error":"#N/A"}},{"$f":"IF(INDIRECT(\"c\" & (VLOOKUP(Rebalance!$D$53,$F$2:$G$48,2,FALSE)+ROW()-2))=Rebalance!$D$53,INDIRECT(\"a\" & (VLOOKUP(Rebalance!$D$53,$F$2:$G$48,2,FALSE)+ROW()-2)),\"\")","v":{"$error":"#N/A"}},{"$f":"IF(INDIRECT(\"c\" & (VLOOKUP(Rebalance!$D$54,$F$2:$G$48,2,FALSE)+ROW()-2))=Rebalance!$D$54,INDIRECT(\"a\" & (VLOOKUP(Rebalance!$D$54,$F$2:$G$48,2,FALSE)+ROW()-2)),\"\")","v":{"$error":"#N/A"}},{"$f":"IF(INDIRECT(\"c\" & (VLOOKUP(Rebalance!$D$55,$F$2:$G$48,2,FALSE)+ROW()-2))=Rebalance!$D$55,INDIRECT(\"a\" & (VLOOKUP(Rebalance!$D$55,$F$2:$G$48,2,FALSE)+ROW()-2)),\"\")","v":{"$error":"#N/A"}},{"$f":"IF(INDIRECT(\"c\" & (VLOOKUP(Rebalance!$D$56,$F$2:$G$48,2,FALSE)+ROW()-2))=Rebalance!$D$56,INDIRECT(\"a\" & (VLOOKUP(Rebalance!$D$56,$F$2:$G$48,2,FALSE)+ROW()-2)),\"\")","v":{"$error":"#N/A"}},{"$f":"IF(INDIRECT(\"c\" & (VLOOKUP(Rebalance!$D$57,$F$2:$G$48,2,FALSE)+ROW()-2))=Rebalance!$D$57,INDIRECT(\"a\" & (VLOOKUP(Rebalance!$D$57,$F$2:$G$48,2,FALSE)+ROW()-2)),\"\")","v":{"$error":"#N/A"}},{"$f":"IF(INDIRECT(\"c\" & (VLOOKUP(Rebalance!$D$58,$F$2:$G$48,2,FALSE)+ROW()-2))=Rebalance!$D$58,INDIRECT(\"a\" & (VLOOKUP(Rebalance!$D$58,$F$2:$G$48,2,FALSE)+ROW()-2)),\"\")","v":{"$error":"#N/A"}},{"$f":"IF(INDIRECT(\"c\" & (VLOOKUP(Rebalance!$D$59,$F$2:$G$48,2,FALSE)+ROW()-2))=Rebalance!$D$59,INDIRECT(\"a\" & (VLOOKUP(Rebalance!$D$59,$F$2:$G$48,2,FALSE)+ROW()-2)),\"\")","v":{"$error":"#N/A"}},{"$f":"IF(INDIRECT(\"c\" & (VLOOKUP(Rebalance!$D$60,$F$2:$G$48,2,FALSE)+ROW()-2))=Rebalance!$D$60,INDIRECT(\"a\" & (VLOOKUP(Rebalance!$D$60,$F$2:$G$48,2,FALSE)+ROW()-2)),\"\")","v":{"$error":"#N/A"}},{"$f":"IF(INDIRECT(\"c\" & (VLOOKUP(Rebalance!$D$61,$F$2:$G$48,2,FALSE)+ROW()-2))=Rebalance!$D$61,INDIRECT(\"a\" & (VLOOKUP(Rebalance!$D$61,$F$2:$G$48,2,FALSE)+ROW()-2)),\"\")","v":{"$error":"#N/A"}},{"$f":"IF(INDIRECT(\"c\" & (VLOOKUP(Rebalance!$D$62,$F$2:$G$48,2,FALSE)+ROW()-2))=Rebalance!$D$62,INDIRECT(\"a\" & (VLOOKUP(Rebalance!$D$62,$F$2:$G$48,2,FALSE)+ROW()-2)),\"\")","v":{"$error":"#N/A"}},{"$f":"IF(INDIRECT(\"c\" & (VLOOKUP(Rebalance!$D$63,$F$2:$G$48,2,FALSE)+ROW()-2))=Rebalance!$D$63,INDIRECT(\"a\" & (VLOOKUP(Rebalance!$D$63,$F$2:$G$48,2,FALSE)+ROW()-2)),\"\")","v":{"$error":"#N/A"}},{"$f":"IF(INDIRECT(\"c\" & (VLOOKUP(Rebalance!$D$64,$F$2:$G$48,2,FALSE)+ROW()-2))=Rebalance!$D$64,INDIRECT(\"a\" & (VLOOKUP(Rebalance!$D$64,$F$2:$G$48,2,FALSE)+ROW()-2)),\"\")","v":{"$error":"#N/A"}},{"$f":"IF(INDIRECT(\"c\" & (VLOOKUP(Rebalance!$D$65,$F$2:$G$48,2,FALSE)+ROW()-2))=Rebalance!$D$65,INDIRECT(\"a\" & (VLOOKUP(Rebalance!$D$65,$F$2:$G$48,2,FALSE)+ROW()-2)),\"\")","v":{"$error":"#N/A"}},{"$f":"IF(INDIRECT(\"c\" & (VLOOKUP(Rebalance!$D$66,$F$2:$G$48,2,FALSE)+ROW()-2))=Rebalance!$D$66,INDIRECT(\"a\" & (VLOOKUP(Rebalance!$D$66,$F$2:$G$48,2,FALSE)+ROW()-2)),\"\")","v":{"$error":"#N/A"}}]
["Old Mutual Flexible Fund","OMFB1","Old Mutual Unit Trust Managers Limited",{"$f":"ROW()","v":408},null,null,{"$f":"VLOOKUP(F408,$C$2:$D$599,2,FALSE)","v":{"$error":"#N/A"}},{"$f":"IF(INDIRECT(\"c\" & (VLOOKUP(Rebalance!$D$26,$F$2:$G$48,2,FALSE)+ROW()-2))=Rebalance!$D$26,INDIRECT(\"a\" & (VLOOKUP(Rebalance!$D$26,$F$2:$G$48,2,FALSE)+ROW()-2)),\"\")","v":{"$error":"#N/A"}},{"$f":"IF(INDIRECT(\"c\" & (VLOOKUP(Rebalance!$D$27,$F$2:$G$48,2,FALSE)+ROW()-2))=Rebalance!$D$27,INDIRECT(\"a\" & (VLOOKUP(Rebalance!$D$27,$F$2:$G$48,2,FALSE)+ROW()-2)),\"\")","v":{"$error":"#N/A"}},{"$f":"IF(INDIRECT(\"c\" & (VLOOKUP(Rebalance!$D$28,$F$2:$G$48,2,FALSE)+ROW()-2))=Rebalance!$D$28,INDIRECT(\"a\" & (VLOOKUP(Rebalance!$D$28,$F$2:$G$48,2,FALSE)+ROW()-2)),\"\")","v":{"$error":"#N/A"}},{"$f":"IF(INDIRECT(\"c\" & (VLOOKUP(Rebalance!$D$29,$F$2:$G$48,2,FALSE)+ROW()-2))=Rebalance!$D$29,INDIRECT(\"a\" & (VLOOKUP(Rebalance!$D$29,$F$2:$G$48,2,FALSE)+ROW()-2)),\"\")","v":{"$error":"#N/A"}},{"$f":"IF(INDIRECT(\"c\" & (VLOOKUP(Rebalance!$D$30,$F$2:$G$48,2,FALSE)+ROW()-2))=Rebalance!$D$30,INDIRECT(\"a\" & (VLOOKUP(Rebalance!$D$30,$F$2:$G$48,2,FALSE)+ROW()-2)),\"\")","v":{"$error":"#N/A"}},{"$f":"IF(INDIRECT(\"c\" & (VLOOKUP(Rebalance!$D$31,$F$2:$G$48,2,FALSE)+ROW()-2))=Rebalance!$D$31,INDIRECT(\"a\" & (VLOOKUP(Rebalance!$D$31,$F$2:$G$48,2,FALSE)+ROW()-2)),\"\")","v":{"$error":"#N/A"}},{"$f":"IF(INDIRECT(\"c\" & (VLOOKUP(Rebalance!$D$32,$F$2:$G$48,2,FALSE)+ROW()-2))=Rebalance!$D$32,INDIRECT(\"a\" & (VLOOKUP(Rebalance!$D$32,$F$2:$G$48,2,FALSE)+ROW()-2)),\"\")","v":{"$error":"#N/A"}},{"$f":"IF(INDIRECT(\"c\" & (VLOOKUP(Rebalance!$D$33,$F$2:$G$48,2,FALSE)+ROW()-2))=Rebalance!$D$33,INDIRECT(\"a\" & (VLOOKUP(Rebalance!$D$33,$F$2:$G$48,2,FALSE)+ROW()-2)),\"\")","v":{"$error":"#N/A"}},{"$f":"IF(INDIRECT(\"c\" & (VLOOKUP(Rebalance!$D$34,$F$2:$G$48,2,FALSE)+ROW()-2))=Rebalance!$D$34,INDIRECT(\"a\" & (VLOOKUP(Rebalance!$D$34,$F$2:$G$48,2,FALSE)+ROW()-2)),\"\")","v":{"$error":"#N/A"}},{"$f":"IF(INDIRECT(\"c\" & (VLOOKUP(Rebalance!$D$35,$F$2:$G$48,2,FALSE)+ROW()-2))=Rebalance!$D$35,INDIRECT(\"a\" & (VLOOKUP(Rebalance!$D$35,$F$2:$G$48,2,FALSE)+ROW()-2)),\"\")","v":{"$error":"#N/A"}},{"$f":"IF(INDIRECT(\"c\" & (VLOOKUP(Rebalance!$D$36,$F$2:$G$48,2,FALSE)+ROW()-2))=Rebalance!$D$36,INDIRECT(\"a\" & (VLOOKUP(Rebalance!$D$36,$F$2:$G$48,2,FALSE)+ROW()-2)),\"\")","v":{"$error":"#N/A"}},{"$f":"IF(INDIRECT(\"c\" & (VLOOKUP(Rebalance!$D$37,$F$2:$G$48,2,FALSE)+ROW()-2))=Rebalance!$D$37,INDIRECT(\"a\" & (VLOOKUP(Rebalance!$D$37,$F$2:$G$48,2,FALSE)+ROW()-2)),\"\")","v":{"$error":"#N/A"}},{"$f":"IF(INDIRECT(\"c\" & (VLOOKUP(Rebalance!$D$38,$F$2:$G$48,2,FALSE)+ROW()-2))=Rebalance!$D$38,INDIRECT(\"a\" & (VLOOKUP(Rebalance!$D$38,$F$2:$G$48,2,FALSE)+ROW()-2)),\"\")","v":{"$error":"#N/A"}},{"$f":"IF(INDIRECT(\"c\" & (VLOOKUP(Rebalance!$D$39,$F$2:$G$48,2,FALSE)+ROW()-2))=Rebalance!$D$39,INDIRECT(\"a\" & (VLOOKUP(Rebalance!$D$39,$F$2:$G$48,2,FALSE)+ROW()-2)),\"\")","v":{"$error":"#N/A"}},{"$f":"IF(INDIRECT(\"c\" & (VLOOKUP(Rebalance!$D$40,$F$2:$G$48,2,FALSE)+ROW()-2))=Rebalance!$D$40,INDIRECT(\"a\" & (VLOOKUP(Rebalance!$D$40,$F$2:$G$48,2,FALSE)+ROW()-2)),\"\")","v":{"$error":"#N/A"}},{"$f":"IF(INDIRECT(\"c\" & (VLOOKUP(Rebalance!$D$52,$F$2:$G$48,2,FALSE)+ROW()-2))=Rebalance!$D$52,INDIRECT(\"a\" & (VLOOKUP(Rebalance!$D$52,$F$2:$G$48,2,FALSE)+ROW()-2)),\"\")","v":{"$error":"#N/A"}},{"$f":"IF(INDIRECT(\"c\" & (VLOOKUP(Rebalance!$D$53,$F$2:$G$48,2,FALSE)+ROW()-2))=Rebalance!$D$53,INDIRECT(\"a\" & (VLOOKUP(Rebalance!$D$53,$F$2:$G$48,2,FALSE)+ROW()-2)),\"\")","v":{"$error":"#N/A"}},{"$f":"IF(INDIRECT(\"c\" & (VLOOKUP(Rebalance!$D$54,$F$2:$G$48,2,FALSE)+ROW()-2))=Rebalance!$D$54,INDIRECT(\"a\" & (VLOOKUP(Rebalance!$D$54,$F$2:$G$48,2,FALSE)+ROW()-2)),\"\")","v":{"$error":"#N/A"}},{"$f":"IF(INDIRECT(\"c\" & (VLOOKUP(Rebalance!$D$55,$F$2:$G$48,2,FALSE)+ROW()-2))=Rebalance!$D$55,INDIRECT(\"a\" & (VLOOKUP(Rebalance!$D$55,$F$2:$G$48,2,FALSE)+ROW()-2)),\"\")","v":{"$error":"#N/A"}},{"$f":"IF(INDIRECT(\"c\" & (VLOOKUP(Rebalance!$D$56,$F$2:$G$48,2,FALSE)+ROW()-2))=Rebalance!$D$56,INDIRECT(\"a\" & (VLOOKUP(Rebalance!$D$56,$F$2:$G$48,2,FALSE)+ROW()-2)),\"\")","v":{"$error":"#N/A"}},{"$f":"IF(INDIRECT(\"c\" & (VLOOKUP(Rebalance!$D$57,$F$2:$G$48,2,FALSE)+ROW()-2))=Rebalance!$D$57,INDIRECT(\"a\" & (VLOOKUP(Rebalance!$D$57,$F$2:$G$48,2,FALSE)+ROW()-2)),\"\")","v":{"$error":"#N/A"}},{"$f":"IF(INDIRECT(\"c\" & (VLOOKUP(Rebalance!$D$58,$F$2:$G$48,2,FALSE)+ROW()-2))=Rebalance!$D$58,INDIRECT(\"a\" & (VLOOKUP(Rebalance!$D$58,$F$2:$G$48,2,FALSE)+ROW()-2)),\"\")","v":{"$error":"#N/A"}},{"$f":"IF(INDIRECT(\"c\" & (VLOOKUP(Rebalance!$D$59,$F$2:$G$48,2,FALSE)+ROW()-2))=Rebalance!$D$59,INDIRECT(\"a\" & (VLOOKUP(Rebalance!$D$59,$F$2:$G$48,2,FALSE)+ROW()-2)),\"\")","v":{"$error":"#N/A"}},{"$f":"IF(INDIRECT(\"c\" & (VLOOKUP(Rebalance!$D$60,$F$2:$G$48,2,FALSE)+ROW()-2))=Rebalance!$D$60,INDIRECT(\"a\" & (VLOOKUP(Rebalance!$D$60,$F$2:$G$48,2,FALSE)+ROW()-2)),\"\")","v":{"$error":"#N/A"}},{"$f":"IF(INDIRECT(\"c\" & (VLOOKUP(Rebalance!$D$61,$F$2:$G$48,2,FALSE)+ROW()-2))=Rebalance!$D$61,INDIRECT(\"a\" & (VLOOKUP(Rebalance!$D$61,$F$2:$G$48,2,FALSE)+ROW()-2)),\"\")","v":{"$error":"#N/A"}},{"$f":"IF(INDIRECT(\"c\" & (VLOOKUP(Rebalance!$D$62,$F$2:$G$48,2,FALSE)+ROW()-2))=Rebalance!$D$62,INDIRECT(\"a\" & (VLOOKUP(Rebalance!$D$62,$F$2:$G$48,2,FALSE)+ROW()-2)),\"\")","v":{"$error":"#N/A"}},{"$f":"IF(INDIRECT(\"c\" & (VLOOKUP(Rebalance!$D$63,$F$2:$G$48,2,FALSE)+ROW()-2))=Rebalance!$D$63,INDIRECT(\"a\" & (VLOOKUP(Rebalance!$D$63,$F$2:$G$48,2,FALSE)+ROW()-2)),\"\")","v":{"$error":"#N/A"}},{"$f":"IF(INDIRECT(\"c\" & (VLOOKUP(Rebalance!$D$64,$F$2:$G$48,2,FALSE)+ROW()-2))=Rebalance!$D$64,INDIRECT(\"a\" & (VLOOKUP(Rebalance!$D$64,$F$2:$G$48,2,FALSE)+ROW()-2)),\"\")","v":{"$error":"#N/A"}},{"$f":"IF(INDIRECT(\"c\" & (VLOOKUP(Rebalance!$D$65,$F$2:$G$48,2,FALSE)+ROW()-2))=Rebalance!$D$65,INDIRECT(\"a\" & (VLOOKUP(Rebalance!$D$65,$F$2:$G$48,2,FALSE)+ROW()-2)),\"\")","v":{"$error":"#N/A"}},{"$f":"IF(INDIRECT(\"c\" & (VLOOKUP(Rebalance!$D$66,$F$2:$G$48,2,FALSE)+ROW()-2))=Rebalance!$D$66,INDIRECT(\"a\" & (VLOOKUP(Rebalance!$D$66,$F$2:$G$48,2,FALSE)+ROW()-2)),\"\")","v":{"$error":"#N/A"}}]
["Old Mutual FTSE RAFI All World Index Feeder Fund B1","OMGFF","Old Mutual Unit Trust Managers Limited",{"$f":"ROW()","v":409},null,null,{"$f":"VLOOKUP(F409,$C$2:$D$599,2,FALSE)","v":{"$error":"#N/A"}},{"$f":"IF(INDIRECT(\"c\" & (VLOOKUP(Rebalance!$D$26,$F$2:$G$48,2,FALSE)+ROW()-2))=Rebalance!$D$26,INDIRECT(\"a\" & (VLOOKUP(Rebalance!$D$26,$F$2:$G$48,2,FALSE)+ROW()-2)),\"\")","v":{"$error":"#N/A"}},{"$f":"IF(INDIRECT(\"c\" & (VLOOKUP(Rebalance!$D$27,$F$2:$G$48,2,FALSE)+ROW()-2))=Rebalance!$D$27,INDIRECT(\"a\" & (VLOOKUP(Rebalance!$D$27,$F$2:$G$48,2,FALSE)+ROW()-2)),\"\")","v":{"$error":"#N/A"}},{"$f":"IF(INDIRECT(\"c\" & (VLOOKUP(Rebalance!$D$28,$F$2:$G$48,2,FALSE)+ROW()-2))=Rebalance!$D$28,INDIRECT(\"a\" & (VLOOKUP(Rebalance!$D$28,$F$2:$G$48,2,FALSE)+ROW()-2)),\"\")","v":{"$error":"#N/A"}},{"$f":"IF(INDIRECT(\"c\" & (VLOOKUP(Rebalance!$D$29,$F$2:$G$48,2,FALSE)+ROW()-2))=Rebalance!$D$29,INDIRECT(\"a\" & (VLOOKUP(Rebalance!$D$29,$F$2:$G$48,2,FALSE)+ROW()-2)),\"\")","v":{"$error":"#N/A"}},{"$f":"IF(INDIRECT(\"c\" & (VLOOKUP(Rebalance!$D$30,$F$2:$G$48,2,FALSE)+ROW()-2))=Rebalance!$D$30,INDIRECT(\"a\" & (VLOOKUP(Rebalance!$D$30,$F$2:$G$48,2,FALSE)+ROW()-2)),\"\")","v":{"$error":"#N/A"}},{"$f":"IF(INDIRECT(\"c\" & (VLOOKUP(Rebalance!$D$31,$F$2:$G$48,2,FALSE)+ROW()-2))=Rebalance!$D$31,INDIRECT(\"a\" & (VLOOKUP(Rebalance!$D$31,$F$2:$G$48,2,FALSE)+ROW()-2)),\"\")","v":{"$error":"#N/A"}},{"$f":"IF(INDIRECT(\"c\" & (VLOOKUP(Rebalance!$D$32,$F$2:$G$48,2,FALSE)+ROW()-2))=Rebalance!$D$32,INDIRECT(\"a\" & (VLOOKUP(Rebalance!$D$32,$F$2:$G$48,2,FALSE)+ROW()-2)),\"\")","v":{"$error":"#N/A"}},{"$f":"IF(INDIRECT(\"c\" & (VLOOKUP(Rebalance!$D$33,$F$2:$G$48,2,FALSE)+ROW()-2))=Rebalance!$D$33,INDIRECT(\"a\" & (VLOOKUP(Rebalance!$D$33,$F$2:$G$48,2,FALSE)+ROW()-2)),\"\")","v":{"$error":"#N/A"}},{"$f":"IF(INDIRECT(\"c\" & (VLOOKUP(Rebalance!$D$34,$F$2:$G$48,2,FALSE)+ROW()-2))=Rebalance!$D$34,INDIRECT(\"a\" & (VLOOKUP(Rebalance!$D$34,$F$2:$G$48,2,FALSE)+ROW()-2)),\"\")","v":{"$error":"#N/A"}},{"$f":"IF(INDIRECT(\"c\" & (VLOOKUP(Rebalance!$D$35,$F$2:$G$48,2,FALSE)+ROW()-2))=Rebalance!$D$35,INDIRECT(\"a\" & (VLOOKUP(Rebalance!$D$35,$F$2:$G$48,2,FALSE)+ROW()-2)),\"\")","v":{"$error":"#N/A"}},{"$f":"IF(INDIRECT(\"c\" & (VLOOKUP(Rebalance!$D$36,$F$2:$G$48,2,FALSE)+ROW()-2))=Rebalance!$D$36,INDIRECT(\"a\" & (VLOOKUP(Rebalance!$D$36,$F$2:$G$48,2,FALSE)+ROW()-2)),\"\")","v":{"$error":"#N/A"}},{"$f":"IF(INDIRECT(\"c\" & (VLOOKUP(Rebalance!$D$37,$F$2:$G$48,2,FALSE)+ROW()-2))=Rebalance!$D$37,INDIRECT(\"a\" & (VLOOKUP(Rebalance!$D$37,$F$2:$G$48,2,FALSE)+ROW()-2)),\"\")","v":{"$error":"#N/A"}},{"$f":"IF(INDIRECT(\"c\" & (VLOOKUP(Rebalance!$D$38,$F$2:$G$48,2,FALSE)+ROW()-2))=Rebalance!$D$38,INDIRECT(\"a\" & (VLOOKUP(Rebalance!$D$38,$F$2:$G$48,2,FALSE)+ROW()-2)),\"\")","v":{"$error":"#N/A"}},{"$f":"IF(INDIRECT(\"c\" & (VLOOKUP(Rebalance!$D$39,$F$2:$G$48,2,FALSE)+ROW()-2))=Rebalance!$D$39,INDIRECT(\"a\" & (VLOOKUP(Rebalance!$D$39,$F$2:$G$48,2,FALSE)+ROW()-2)),\"\")","v":{"$error":"#N/A"}},{"$f":"IF(INDIRECT(\"c\" & (VLOOKUP(Rebalance!$D$40,$F$2:$G$48,2,FALSE)+ROW()-2))=Rebalance!$D$40,INDIRECT(\"a\" & (VLOOKUP(Rebalance!$D$40,$F$2:$G$48,2,FALSE)+ROW()-2)),\"\")","v":{"$error":"#N/A"}},{"$f":"IF(INDIRECT(\"c\" & (VLOOKUP(Rebalance!$D$52,$F$2:$G$48,2,FALSE)+ROW()-2))=Rebalance!$D$52,INDIRECT(\"a\" & (VLOOKUP(Rebalance!$D$52,$F$2:$G$48,2,FALSE)+ROW()-2)),\"\")","v":{"$error":"#N/A"}},{"$f":"IF(INDIRECT(\"c\" & (VLOOKUP(Rebalance!$D$53,$F$2:$G$48,2,FALSE)+ROW()-2))=Rebalance!$D$53,INDIRECT(\"a\" & (VLOOKUP(Rebalance!$D$53,$F$2:$G$48,2,FALSE)+ROW()-2)),\"\")","v":{"$error":"#N/A"}},{"$f":"IF(INDIRECT(\"c\" & (VLOOKUP(Rebalance!$D$54,$F$2:$G$48,2,FALSE)+ROW()-2))=Rebalance!$D$54,INDIRECT(\"a\" & (VLOOKUP(Rebalance!$D$54,$F$2:$G$48,2,FALSE)+ROW()-2)),\"\")","v":{"$error":"#N/A"}},{"$f":"IF(INDIRECT(\"c\" & (VLOOKUP(Rebalance!$D$55,$F$2:$G$48,2,FALSE)+ROW()-2))=Rebalance!$D$55,INDIRECT(\"a\" & (VLOOKUP(Rebalance!$D$55,$F$2:$G$48,2,FALSE)+ROW()-2)),\"\")","v":{"$error":"#N/A"}},{"$f":"IF(INDIRECT(\"c\" & (VLOOKUP(Rebalance!$D$56,$F$2:$G$48,2,FALSE)+ROW()-2))=Rebalance!$D$56,INDIRECT(\"a\" & (VLOOKUP(Rebalance!$D$56,$F$2:$G$48,2,FALSE)+ROW()-2)),\"\")","v":{"$error":"#N/A"}},{"$f":"IF(INDIRECT(\"c\" & (VLOOKUP(Rebalance!$D$57,$F$2:$G$48,2,FALSE)+ROW()-2))=Rebalance!$D$57,INDIRECT(\"a\" & (VLOOKUP(Rebalance!$D$57,$F$2:$G$48,2,FALSE)+ROW()-2)),\"\")","v":{"$error":"#N/A"}},{"$f":"IF(INDIRECT(\"c\" & (VLOOKUP(Rebalance!$D$58,$F$2:$G$48,2,FALSE)+ROW()-2))=Rebalance!$D$58,INDIRECT(\"a\" & (VLOOKUP(Rebalance!$D$58,$F$2:$G$48,2,FALSE)+ROW()-2)),\"\")","v":{"$error":"#N/A"}},{"$f":"IF(INDIRECT(\"c\" & (VLOOKUP(Rebalance!$D$59,$F$2:$G$48,2,FALSE)+ROW()-2))=Rebalance!$D$59,INDIRECT(\"a\" & (VLOOKUP(Rebalance!$D$59,$F$2:$G$48,2,FALSE)+ROW()-2)),\"\")","v":{"$error":"#N/A"}},{"$f":"IF(INDIRECT(\"c\" & (VLOOKUP(Rebalance!$D$60,$F$2:$G$48,2,FALSE)+ROW()-2))=Rebalance!$D$60,INDIRECT(\"a\" & (VLOOKUP(Rebalance!$D$60,$F$2:$G$48,2,FALSE)+ROW()-2)),\"\")","v":{"$error":"#N/A"}},{"$f":"IF(INDIRECT(\"c\" & (VLOOKUP(Rebalance!$D$61,$F$2:$G$48,2,FALSE)+ROW()-2))=Rebalance!$D$61,INDIRECT(\"a\" & (VLOOKUP(Rebalance!$D$61,$F$2:$G$48,2,FALSE)+ROW()-2)),\"\")","v":{"$error":"#N/A"}},{"$f":"IF(INDIRECT(\"c\" & (VLOOKUP(Rebalance!$D$62,$F$2:$G$48,2,FALSE)+ROW()-2))=Rebalance!$D$62,INDIRECT(\"a\" & (VLOOKUP(Rebalance!$D$62,$F$2:$G$48,2,FALSE)+ROW()-2)),\"\")","v":{"$error":"#N/A"}},{"$f":"IF(INDIRECT(\"c\" & (VLOOKUP(Rebalance!$D$63,$F$2:$G$48,2,FALSE)+ROW()-2))=Rebalance!$D$63,INDIRECT(\"a\" & (VLOOKUP(Rebalance!$D$63,$F$2:$G$48,2,FALSE)+ROW()-2)),\"\")","v":{"$error":"#N/A"}},{"$f":"IF(INDIRECT(\"c\" & (VLOOKUP(Rebalance!$D$64,$F$2:$G$48,2,FALSE)+ROW()-2))=Rebalance!$D$64,INDIRECT(\"a\" & (VLOOKUP(Rebalance!$D$64,$F$2:$G$48,2,FALSE)+ROW()-2)),\"\")","v":{"$error":"#N/A"}},{"$f":"IF(INDIRECT(\"c\" & (VLOOKUP(Rebalance!$D$65,$F$2:$G$48,2,FALSE)+ROW()-2))=Rebalance!$D$65,INDIRECT(\"a\" & (VLOOKUP(Rebalance!$D$65,$F$2:$G$48,2,FALSE)+ROW()-2)),\"\")","v":{"$error":"#N/A"}},{"$f":"IF(INDIRECT(\"c\" & (VLOOKUP(Rebalance!$D$66,$F$2:$G$48,2,FALSE)+ROW()-2))=Rebalance!$D$66,INDIRECT(\"a\" & (VLOOKUP(Rebalance!$D$66,$F$2:$G$48,2,FALSE)+ROW()-2)),\"\")","v":{"$error":"#N/A"}}]
["Old Mutual Gilt Fund","OMGI","Old Mutual Unit Trust Managers Limited",{"$f":"ROW()","v":410},null,null,{"$f":"VLOOKUP(F410,$C$2:$D$599,2,FALSE)","v":{"$error":"#N/A"}},{"$f":"IF(INDIRECT(\"c\" & (VLOOKUP(Rebalance!$D$26,$F$2:$G$48,2,FALSE)+ROW()-2))=Rebalance!$D$26,INDIRECT(\"a\" & (VLOOKUP(Rebalance!$D$26,$F$2:$G$48,2,FALSE)+ROW()-2)),\"\")","v":{"$error":"#N/A"}},{"$f":"IF(INDIRECT(\"c\" & (VLOOKUP(Rebalance!$D$27,$F$2:$G$48,2,FALSE)+ROW()-2))=Rebalance!$D$27,INDIRECT(\"a\" & (VLOOKUP(Rebalance!$D$27,$F$2:$G$48,2,FALSE)+ROW()-2)),\"\")","v":{"$error":"#N/A"}},{"$f":"IF(INDIRECT(\"c\" & (VLOOKUP(Rebalance!$D$28,$F$2:$G$48,2,FALSE)+ROW()-2))=Rebalance!$D$28,INDIRECT(\"a\" & (VLOOKUP(Rebalance!$D$28,$F$2:$G$48,2,FALSE)+ROW()-2)),\"\")","v":{"$error":"#N/A"}},{"$f":"IF(INDIRECT(\"c\" & (VLOOKUP(Rebalance!$D$29,$F$2:$G$48,2,FALSE)+ROW()-2))=Rebalance!$D$29,INDIRECT(\"a\" & (VLOOKUP(Rebalance!$D$29,$F$2:$G$48,2,FALSE)+ROW()-2)),\"\")","v":{"$error":"#N/A"}},{"$f":"IF(INDIRECT(\"c\" & (VLOOKUP(Rebalance!$D$30,$F$2:$G$48,2,FALSE)+ROW()-2))=Rebalance!$D$30,INDIRECT(\"a\" & (VLOOKUP(Rebalance!$D$30,$F$2:$G$48,2,FALSE)+ROW()-2)),\"\")","v":{"$error":"#N/A"}},{"$f":"IF(INDIRECT(\"c\" & (VLOOKUP(Rebalance!$D$31,$F$2:$G$48,2,FALSE)+ROW()-2))=Rebalance!$D$31,INDIRECT(\"a\" & (VLOOKUP(Rebalance!$D$31,$F$2:$G$48,2,FALSE)+ROW()-2)),\"\")","v":{"$error":"#N/A"}},{"$f":"IF(INDIRECT(\"c\" & (VLOOKUP(Rebalance!$D$32,$F$2:$G$48,2,FALSE)+ROW()-2))=Rebalance!$D$32,INDIRECT(\"a\" & (VLOOKUP(Rebalance!$D$32,$F$2:$G$48,2,FALSE)+ROW()-2)),\"\")","v":{"$error":"#N/A"}},{"$f":"IF(INDIRECT(\"c\" & (VLOOKUP(Rebalance!$D$33,$F$2:$G$48,2,FALSE)+ROW()-2))=Rebalance!$D$33,INDIRECT(\"a\" & (VLOOKUP(Rebalance!$D$33,$F$2:$G$48,2,FALSE)+ROW()-2)),\"\")","v":{"$error":"#N/A"}},{"$f":"IF(INDIRECT(\"c\" & (VLOOKUP(Rebalance!$D$34,$F$2:$G$48,2,FALSE)+ROW()-2))=Rebalance!$D$34,INDIRECT(\"a\" & (VLOOKUP(Rebalance!$D$34,$F$2:$G$48,2,FALSE)+ROW()-2)),\"\")","v":{"$error":"#N/A"}},{"$f":"IF(INDIRECT(\"c\" & (VLOOKUP(Rebalance!$D$35,$F$2:$G$48,2,FALSE)+ROW()-2))=Rebalance!$D$35,INDIRECT(\"a\" & (VLOOKUP(Rebalance!$D$35,$F$2:$G$48,2,FALSE)+ROW()-2)),\"\")","v":{"$error":"#N/A"}},{"$f":"IF(INDIRECT(\"c\" & (VLOOKUP(Rebalance!$D$36,$F$2:$G$48,2,FALSE)+ROW()-2))=Rebalance!$D$36,INDIRECT(\"a\" & (VLOOKUP(Rebalance!$D$36,$F$2:$G$48,2,FALSE)+ROW()-2)),\"\")","v":{"$error":"#N/A"}},{"$f":"IF(INDIRECT(\"c\" & (VLOOKUP(Rebalance!$D$37,$F$2:$G$48,2,FALSE)+ROW()-2))=Rebalance!$D$37,INDIRECT(\"a\" & (VLOOKUP(Rebalance!$D$37,$F$2:$G$48,2,FALSE)+ROW()-2)),\"\")","v":{"$error":"#N/A"}},{"$f":"IF(INDIRECT(\"c\" & (VLOOKUP(Rebalance!$D$38,$F$2:$G$48,2,FALSE)+ROW()-2))=Rebalance!$D$38,INDIRECT(\"a\" & (VLOOKUP(Rebalance!$D$38,$F$2:$G$48,2,FALSE)+ROW()-2)),\"\")","v":{"$error":"#N/A"}},{"$f":"IF(INDIRECT(\"c\" & (VLOOKUP(Rebalance!$D$39,$F$2:$G$48,2,FALSE)+ROW()-2))=Rebalance!$D$39,INDIRECT(\"a\" & (VLOOKUP(Rebalance!$D$39,$F$2:$G$48,2,FALSE)+ROW()-2)),\"\")","v":{"$error":"#N/A"}},{"$f":"IF(INDIRECT(\"c\" & (VLOOKUP(Rebalance!$D$40,$F$2:$G$48,2,FALSE)+ROW()-2))=Rebalance!$D$40,INDIRECT(\"a\" & (VLOOKUP(Rebalance!$D$40,$F$2:$G$48,2,FALSE)+ROW()-2)),\"\")","v":{"$error":"#N/A"}},{"$f":"IF(INDIRECT(\"c\" & (VLOOKUP(Rebalance!$D$52,$F$2:$G$48,2,FALSE)+ROW()-2))=Rebalance!$D$52,INDIRECT(\"a\" & (VLOOKUP(Rebalance!$D$52,$F$2:$G$48,2,FALSE)+ROW()-2)),\"\")","v":{"$error":"#N/A"}},{"$f":"IF(INDIRECT(\"c\" & (VLOOKUP(Rebalance!$D$53,$F$2:$G$48,2,FALSE)+ROW()-2))=Rebalance!$D$53,INDIRECT(\"a\" & (VLOOKUP(Rebalance!$D$53,$F$2:$G$48,2,FALSE)+ROW()-2)),\"\")","v":{"$error":"#N/A"}},{"$f":"IF(INDIRECT(\"c\" & (VLOOKUP(Rebalance!$D$54,$F$2:$G$48,2,FALSE)+ROW()-2))=Rebalance!$D$54,INDIRECT(\"a\" & (VLOOKUP(Rebalance!$D$54,$F$2:$G$48,2,FALSE)+ROW()-2)),\"\")","v":{"$error":"#N/A"}},{"$f":"IF(INDIRECT(\"c\" & (VLOOKUP(Rebalance!$D$55,$F$2:$G$48,2,FALSE)+ROW()-2))=Rebalance!$D$55,INDIRECT(\"a\" & (VLOOKUP(Rebalance!$D$55,$F$2:$G$48,2,FALSE)+ROW()-2)),\"\")","v":{"$error":"#N/A"}},{"$f":"IF(INDIRECT(\"c\" & (VLOOKUP(Rebalance!$D$56,$F$2:$G$48,2,FALSE)+ROW()-2))=Rebalance!$D$56,INDIRECT(\"a\" & (VLOOKUP(Rebalance!$D$56,$F$2:$G$48,2,FALSE)+ROW()-2)),\"\")","v":{"$error":"#N/A"}},{"$f":"IF(INDIRECT(\"c\" & (VLOOKUP(Rebalance!$D$57,$F$2:$G$48,2,FALSE)+ROW()-2))=Rebalance!$D$57,INDIRECT(\"a\" & (VLOOKUP(Rebalance!$D$57,$F$2:$G$48,2,FALSE)+ROW()-2)),\"\")","v":{"$error":"#N/A"}},{"$f":"IF(INDIRECT(\"c\" & (VLOOKUP(Rebalance!$D$58,$F$2:$G$48,2,FALSE)+ROW()-2))=Rebalance!$D$58,INDIRECT(\"a\" & (VLOOKUP(Rebalance!$D$58,$F$2:$G$48,2,FALSE)+ROW()-2)),\"\")","v":{"$error":"#N/A"}},{"$f":"IF(INDIRECT(\"c\" & (VLOOKUP(Rebalance!$D$59,$F$2:$G$48,2,FALSE)+ROW()-2))=Rebalance!$D$59,INDIRECT(\"a\" & (VLOOKUP(Rebalance!$D$59,$F$2:$G$48,2,FALSE)+ROW()-2)),\"\")","v":{"$error":"#N/A"}},{"$f":"IF(INDIRECT(\"c\" & (VLOOKUP(Rebalance!$D$60,$F$2:$G$48,2,FALSE)+ROW()-2))=Rebalance!$D$60,INDIRECT(\"a\" & (VLOOKUP(Rebalance!$D$60,$F$2:$G$48,2,FALSE)+ROW()-2)),\"\")","v":{"$error":"#N/A"}},{"$f":"IF(INDIRECT(\"c\" & (VLOOKUP(Rebalance!$D$61,$F$2:$G$48,2,FALSE)+ROW()-2))=Rebalance!$D$61,INDIRECT(\"a\" & (VLOOKUP(Rebalance!$D$61,$F$2:$G$48,2,FALSE)+ROW()-2)),\"\")","v":{"$error":"#N/A"}},{"$f":"IF(INDIRECT(\"c\" & (VLOOKUP(Rebalance!$D$62,$F$2:$G$48,2,FALSE)+ROW()-2))=Rebalance!$D$62,INDIRECT(\"a\" & (VLOOKUP(Rebalance!$D$62,$F$2:$G$48,2,FALSE)+ROW()-2)),\"\")","v":{"$error":"#N/A"}},{"$f":"IF(INDIRECT(\"c\" & (VLOOKUP(Rebalance!$D$63,$F$2:$G$48,2,FALSE)+ROW()-2))=Rebalance!$D$63,INDIRECT(\"a\" & (VLOOKUP(Rebalance!$D$63,$F$2:$G$48,2,FALSE)+ROW()-2)),\"\")","v":{"$error":"#N/A"}},{"$f":"IF(INDIRECT(\"c\" & (VLOOKUP(Rebalance!$D$64,$F$2:$G$48,2,FALSE)+ROW()-2))=Rebalance!$D$64,INDIRECT(\"a\" & (VLOOKUP(Rebalance!$D$64,$F$2:$G$48,2,FALSE)+ROW()-2)),\"\")","v":{"$error":"#N/A"}},{"$f":"IF(INDIRECT(\"c\" & (VLOOKUP(Rebalance!$D$65,$F$2:$G$48,2,FALSE)+ROW()-2))=Rebalance!$D$65,INDIRECT(\"a\" & (VLOOKUP(Rebalance!$D$65,$F$2:$G$48,2,FALSE)+ROW()-2)),\"\")","v":{"$error":"#N/A"}},{"$f":"IF(INDIRECT(\"c\" & (VLOOKUP(Rebalance!$D$66,$F$2:$G$48,2,FALSE)+ROW()-2))=Rebalance!$D$66,INDIRECT(\"a\" & (VLOOKUP(Rebalance!$D$66,$F$2:$G$48,2,FALSE)+ROW()-2)),\"\")","v":{"$error":"#N/A"}}]
["Old Mutual Global Currency Feeder Fund B1","OGCB1","Old Mutual Unit Trust Managers Limited",{"$f":"ROW()","v":411},null,null,{"$f":"VLOOKUP(F411,$C$2:$D$599,2,FALSE)","v":{"$error":"#N/A"}},{"$f":"IF(INDIRECT(\"c\" & (VLOOKUP(Rebalance!$D$26,$F$2:$G$48,2,FALSE)+ROW()-2))=Rebalance!$D$26,INDIRECT(\"a\" & (VLOOKUP(Rebalance!$D$26,$F$2:$G$48,2,FALSE)+ROW()-2)),\"\")","v":{"$error":"#N/A"}},{"$f":"IF(INDIRECT(\"c\" & (VLOOKUP(Rebalance!$D$27,$F$2:$G$48,2,FALSE)+ROW()-2))=Rebalance!$D$27,INDIRECT(\"a\" & (VLOOKUP(Rebalance!$D$27,$F$2:$G$48,2,FALSE)+ROW()-2)),\"\")","v":{"$error":"#N/A"}},{"$f":"IF(INDIRECT(\"c\" & (VLOOKUP(Rebalance!$D$28,$F$2:$G$48,2,FALSE)+ROW()-2))=Rebalance!$D$28,INDIRECT(\"a\" & (VLOOKUP(Rebalance!$D$28,$F$2:$G$48,2,FALSE)+ROW()-2)),\"\")","v":{"$error":"#N/A"}},{"$f":"IF(INDIRECT(\"c\" & (VLOOKUP(Rebalance!$D$29,$F$2:$G$48,2,FALSE)+ROW()-2))=Rebalance!$D$29,INDIRECT(\"a\" & (VLOOKUP(Rebalance!$D$29,$F$2:$G$48,2,FALSE)+ROW()-2)),\"\")","v":{"$error":"#N/A"}},{"$f":"IF(INDIRECT(\"c\" & (VLOOKUP(Rebalance!$D$30,$F$2:$G$48,2,FALSE)+ROW()-2))=Rebalance!$D$30,INDIRECT(\"a\" & (VLOOKUP(Rebalance!$D$30,$F$2:$G$48,2,FALSE)+ROW()-2)),\"\")","v":{"$error":"#N/A"}},{"$f":"IF(INDIRECT(\"c\" & (VLOOKUP(Rebalance!$D$31,$F$2:$G$48,2,FALSE)+ROW()-2))=Rebalance!$D$31,INDIRECT(\"a\" & (VLOOKUP(Rebalance!$D$31,$F$2:$G$48,2,FALSE)+ROW()-2)),\"\")","v":{"$error":"#N/A"}},{"$f":"IF(INDIRECT(\"c\" & (VLOOKUP(Rebalance!$D$32,$F$2:$G$48,2,FALSE)+ROW()-2))=Rebalance!$D$32,INDIRECT(\"a\" & (VLOOKUP(Rebalance!$D$32,$F$2:$G$48,2,FALSE)+ROW()-2)),\"\")","v":{"$error":"#N/A"}},{"$f":"IF(INDIRECT(\"c\" & (VLOOKUP(Rebalance!$D$33,$F$2:$G$48,2,FALSE)+ROW()-2))=Rebalance!$D$33,INDIRECT(\"a\" & (VLOOKUP(Rebalance!$D$33,$F$2:$G$48,2,FALSE)+ROW()-2)),\"\")","v":{"$error":"#N/A"}},{"$f":"IF(INDIRECT(\"c\" & (VLOOKUP(Rebalance!$D$34,$F$2:$G$48,2,FALSE)+ROW()-2))=Rebalance!$D$34,INDIRECT(\"a\" & (VLOOKUP(Rebalance!$D$34,$F$2:$G$48,2,FALSE)+ROW()-2)),\"\")","v":{"$error":"#N/A"}},{"$f":"IF(INDIRECT(\"c\" & (VLOOKUP(Rebalance!$D$35,$F$2:$G$48,2,FALSE)+ROW()-2))=Rebalance!$D$35,INDIRECT(\"a\" & (VLOOKUP(Rebalance!$D$35,$F$2:$G$48,2,FALSE)+ROW()-2)),\"\")","v":{"$error":"#N/A"}},{"$f":"IF(INDIRECT(\"c\" & (VLOOKUP(Rebalance!$D$36,$F$2:$G$48,2,FALSE)+ROW()-2))=Rebalance!$D$36,INDIRECT(\"a\" & (VLOOKUP(Rebalance!$D$36,$F$2:$G$48,2,FALSE)+ROW()-2)),\"\")","v":{"$error":"#N/A"}},{"$f":"IF(INDIRECT(\"c\" & (VLOOKUP(Rebalance!$D$37,$F$2:$G$48,2,FALSE)+ROW()-2))=Rebalance!$D$37,INDIRECT(\"a\" & (VLOOKUP(Rebalance!$D$37,$F$2:$G$48,2,FALSE)+ROW()-2)),\"\")","v":{"$error":"#N/A"}},{"$f":"IF(INDIRECT(\"c\" & (VLOOKUP(Rebalance!$D$38,$F$2:$G$48,2,FALSE)+ROW()-2))=Rebalance!$D$38,INDIRECT(\"a\" & (VLOOKUP(Rebalance!$D$38,$F$2:$G$48,2,FALSE)+ROW()-2)),\"\")","v":{"$error":"#N/A"}},{"$f":"IF(INDIRECT(\"c\" & (VLOOKUP(Rebalance!$D$39,$F$2:$G$48,2,FALSE)+ROW()-2))=Rebalance!$D$39,INDIRECT(\"a\" & (VLOOKUP(Rebalance!$D$39,$F$2:$G$48,2,FALSE)+ROW()-2)),\"\")","v":{"$error":"#N/A"}},{"$f":"IF(INDIRECT(\"c\" & (VLOOKUP(Rebalance!$D$40,$F$2:$G$48,2,FALSE)+ROW()-2))=Rebalance!$D$40,INDIRECT(\"a\" & (VLOOKUP(Rebalance!$D$40,$F$2:$G$48,2,FALSE)+ROW()-2)),\"\")","v":{"$error":"#N/A"}},{"$f":"IF(INDIRECT(\"c\" & (VLOOKUP(Rebalance!$D$52,$F$2:$G$48,2,FALSE)+ROW()-2))=Rebalance!$D$52,INDIRECT(\"a\" & (VLOOKUP(Rebalance!$D$52,$F$2:$G$48,2,FALSE)+ROW()-2)),\"\")","v":{"$error":"#N/A"}},{"$f":"IF(INDIRECT(\"c\" & (VLOOKUP(Rebalance!$D$53,$F$2:$G$48,2,FALSE)+ROW()-2))=Rebalance!$D$53,INDIRECT(\"a\" & (VLOOKUP(Rebalance!$D$53,$F$2:$G$48,2,FALSE)+ROW()-2)),\"\")","v":{"$error":"#N/A"}},{"$f":"IF(INDIRECT(\"c\" & (VLOOKUP(Rebalance!$D$54,$F$2:$G$48,2,FALSE)+ROW()-2))=Rebalance!$D$54,INDIRECT(\"a\" & (VLOOKUP(Rebalance!$D$54,$F$2:$G$48,2,FALSE)+ROW()-2)),\"\")","v":{"$error":"#N/A"}},{"$f":"IF(INDIRECT(\"c\" & (VLOOKUP(Rebalance!$D$55,$F$2:$G$48,2,FALSE)+ROW()-2))=Rebalance!$D$55,INDIRECT(\"a\" & (VLOOKUP(Rebalance!$D$55,$F$2:$G$48,2,FALSE)+ROW()-2)),\"\")","v":{"$error":"#N/A"}},{"$f":"IF(INDIRECT(\"c\" & (VLOOKUP(Rebalance!$D$56,$F$2:$G$48,2,FALSE)+ROW()-2))=Rebalance!$D$56,INDIRECT(\"a\" & (VLOOKUP(Rebalance!$D$56,$F$2:$G$48,2,FALSE)+ROW()-2)),\"\")","v":{"$error":"#N/A"}},{"$f":"IF(INDIRECT(\"c\" & (VLOOKUP(Rebalance!$D$57,$F$2:$G$48,2,FALSE)+ROW()-2))=Rebalance!$D$57,INDIRECT(\"a\" & (VLOOKUP(Rebalance!$D$57,$F$2:$G$48,2,FALSE)+ROW()-2)),\"\")","v":{"$error":"#N/A"}},{"$f":"IF(INDIRECT(\"c\" & (VLOOKUP(Rebalance!$D$58,$F$2:$G$48,2,FALSE)+ROW()-2))=Rebalance!$D$58,INDIRECT(\"a\" & (VLOOKUP(Rebalance!$D$58,$F$2:$G$48,2,FALSE)+ROW()-2)),\"\")","v":{"$error":"#N/A"}},{"$f":"IF(INDIRECT(\"c\" & (VLOOKUP(Rebalance!$D$59,$F$2:$G$48,2,FALSE)+ROW()-2))=Rebalance!$D$59,INDIRECT(\"a\" & (VLOOKUP(Rebalance!$D$59,$F$2:$G$48,2,FALSE)+ROW()-2)),\"\")","v":{"$error":"#N/A"}},{"$f":"IF(INDIRECT(\"c\" & (VLOOKUP(Rebalance!$D$60,$F$2:$G$48,2,FALSE)+ROW()-2))=Rebalance!$D$60,INDIRECT(\"a\" & (VLOOKUP(Rebalance!$D$60,$F$2:$G$48,2,FALSE)+ROW()-2)),\"\")","v":{"$error":"#N/A"}},{"$f":"IF(INDIRECT(\"c\" & (VLOOKUP(Rebalance!$D$61,$F$2:$G$48,2,FALSE)+ROW()-2))=Rebalance!$D$61,INDIRECT(\"a\" & (VLOOKUP(Rebalance!$D$61,$F$2:$G$48,2,FALSE)+ROW()-2)),\"\")","v":{"$error":"#N/A"}},{"$f":"IF(INDIRECT(\"c\" & (VLOOKUP(Rebalance!$D$62,$F$2:$G$48,2,FALSE)+ROW()-2))=Rebalance!$D$62,INDIRECT(\"a\" & (VLOOKUP(Rebalance!$D$62,$F$2:$G$48,2,FALSE)+ROW()-2)),\"\")","v":{"$error":"#N/A"}},{"$f":"IF(INDIRECT(\"c\" & (VLOOKUP(Rebalance!$D$63,$F$2:$G$48,2,FALSE)+ROW()-2))=Rebalance!$D$63,INDIRECT(\"a\" & (VLOOKUP(Rebalance!$D$63,$F$2:$G$48,2,FALSE)+ROW()-2)),\"\")","v":{"$error":"#N/A"}},{"$f":"IF(INDIRECT(\"c\" & (VLOOKUP(Rebalance!$D$64,$F$2:$G$48,2,FALSE)+ROW()-2))=Rebalance!$D$64,INDIRECT(\"a\" & (VLOOKUP(Rebalance!$D$64,$F$2:$G$48,2,FALSE)+ROW()-2)),\"\")","v":{"$error":"#N/A"}},{"$f":"IF(INDIRECT(\"c\" & (VLOOKUP(Rebalance!$D$65,$F$2:$G$48,2,FALSE)+ROW()-2))=Rebalance!$D$65,INDIRECT(\"a\" & (VLOOKUP(Rebalance!$D$65,$F$2:$G$48,2,FALSE)+ROW()-2)),\"\")","v":{"$error":"#N/A"}},{"$f":"IF(INDIRECT(\"c\" & (VLOOKUP(Rebalance!$D$66,$F$2:$G$48,2,FALSE)+ROW()-2))=Rebalance!$D$66,INDIRECT(\"a\" & (VLOOKUP(Rebalance!$D$66,$F$2:$G$48,2,FALSE)+ROW()-2)),\"\")","v":{"$error":"#N/A"}}]
["Old Mutual Global Equity Fund A","OMGB1","Old Mutual Unit Trust Managers Limited",{"$f":"ROW()","v":412},null,null,{"$f":"VLOOKUP(F412,$C$2:$D$599,2,FALSE)","v":{"$error":"#N/A"}},{"$f":"IF(INDIRECT(\"c\" & (VLOOKUP(Rebalance!$D$26,$F$2:$G$48,2,FALSE)+ROW()-2))=Rebalance!$D$26,INDIRECT(\"a\" & (VLOOKUP(Rebalance!$D$26,$F$2:$G$48,2,FALSE)+ROW()-2)),\"\")","v":{"$error":"#N/A"}},{"$f":"IF(INDIRECT(\"c\" & (VLOOKUP(Rebalance!$D$27,$F$2:$G$48,2,FALSE)+ROW()-2))=Rebalance!$D$27,INDIRECT(\"a\" & (VLOOKUP(Rebalance!$D$27,$F$2:$G$48,2,FALSE)+ROW()-2)),\"\")","v":{"$error":"#N/A"}},{"$f":"IF(INDIRECT(\"c\" & (VLOOKUP(Rebalance!$D$28,$F$2:$G$48,2,FALSE)+ROW()-2))=Rebalance!$D$28,INDIRECT(\"a\" & (VLOOKUP(Rebalance!$D$28,$F$2:$G$48,2,FALSE)+ROW()-2)),\"\")","v":{"$error":"#N/A"}},{"$f":"IF(INDIRECT(\"c\" & (VLOOKUP(Rebalance!$D$29,$F$2:$G$48,2,FALSE)+ROW()-2))=Rebalance!$D$29,INDIRECT(\"a\" & (VLOOKUP(Rebalance!$D$29,$F$2:$G$48,2,FALSE)+ROW()-2)),\"\")","v":{"$error":"#N/A"}},{"$f":"IF(INDIRECT(\"c\" & (VLOOKUP(Rebalance!$D$30,$F$2:$G$48,2,FALSE)+ROW()-2))=Rebalance!$D$30,INDIRECT(\"a\" & (VLOOKUP(Rebalance!$D$30,$F$2:$G$48,2,FALSE)+ROW()-2)),\"\")","v":{"$error":"#N/A"}},{"$f":"IF(INDIRECT(\"c\" & (VLOOKUP(Rebalance!$D$31,$F$2:$G$48,2,FALSE)+ROW()-2))=Rebalance!$D$31,INDIRECT(\"a\" & (VLOOKUP(Rebalance!$D$31,$F$2:$G$48,2,FALSE)+ROW()-2)),\"\")","v":{"$error":"#N/A"}},{"$f":"IF(INDIRECT(\"c\" & (VLOOKUP(Rebalance!$D$32,$F$2:$G$48,2,FALSE)+ROW()-2))=Rebalance!$D$32,INDIRECT(\"a\" & (VLOOKUP(Rebalance!$D$32,$F$2:$G$48,2,FALSE)+ROW()-2)),\"\")","v":{"$error":"#N/A"}},{"$f":"IF(INDIRECT(\"c\" & (VLOOKUP(Rebalance!$D$33,$F$2:$G$48,2,FALSE)+ROW()-2))=Rebalance!$D$33,INDIRECT(\"a\" & (VLOOKUP(Rebalance!$D$33,$F$2:$G$48,2,FALSE)+ROW()-2)),\"\")","v":{"$error":"#N/A"}},{"$f":"IF(INDIRECT(\"c\" & (VLOOKUP(Rebalance!$D$34,$F$2:$G$48,2,FALSE)+ROW()-2))=Rebalance!$D$34,INDIRECT(\"a\" & (VLOOKUP(Rebalance!$D$34,$F$2:$G$48,2,FALSE)+ROW()-2)),\"\")","v":{"$error":"#N/A"}},{"$f":"IF(INDIRECT(\"c\" & (VLOOKUP(Rebalance!$D$35,$F$2:$G$48,2,FALSE)+ROW()-2))=Rebalance!$D$35,INDIRECT(\"a\" & (VLOOKUP(Rebalance!$D$35,$F$2:$G$48,2,FALSE)+ROW()-2)),\"\")","v":{"$error":"#N/A"}},{"$f":"IF(INDIRECT(\"c\" & (VLOOKUP(Rebalance!$D$36,$F$2:$G$48,2,FALSE)+ROW()-2))=Rebalance!$D$36,INDIRECT(\"a\" & (VLOOKUP(Rebalance!$D$36,$F$2:$G$48,2,FALSE)+ROW()-2)),\"\")","v":{"$error":"#N/A"}},{"$f":"IF(INDIRECT(\"c\" & (VLOOKUP(Rebalance!$D$37,$F$2:$G$48,2,FALSE)+ROW()-2))=Rebalance!$D$37,INDIRECT(\"a\" & (VLOOKUP(Rebalance!$D$37,$F$2:$G$48,2,FALSE)+ROW()-2)),\"\")","v":{"$error":"#N/A"}},{"$f":"IF(INDIRECT(\"c\" & (VLOOKUP(Rebalance!$D$38,$F$2:$G$48,2,FALSE)+ROW()-2))=Rebalance!$D$38,INDIRECT(\"a\" & (VLOOKUP(Rebalance!$D$38,$F$2:$G$48,2,FALSE)+ROW()-2)),\"\")","v":{"$error":"#N/A"}},{"$f":"IF(INDIRECT(\"c\" & (VLOOKUP(Rebalance!$D$39,$F$2:$G$48,2,FALSE)+ROW()-2))=Rebalance!$D$39,INDIRECT(\"a\" & (VLOOKUP(Rebalance!$D$39,$F$2:$G$48,2,FALSE)+ROW()-2)),\"\")","v":{"$error":"#N/A"}},{"$f":"IF(INDIRECT(\"c\" & (VLOOKUP(Rebalance!$D$40,$F$2:$G$48,2,FALSE)+ROW()-2))=Rebalance!$D$40,INDIRECT(\"a\" & (VLOOKUP(Rebalance!$D$40,$F$2:$G$48,2,FALSE)+ROW()-2)),\"\")","v":{"$error":"#N/A"}},{"$f":"IF(INDIRECT(\"c\" & (VLOOKUP(Rebalance!$D$52,$F$2:$G$48,2,FALSE)+ROW()-2))=Rebalance!$D$52,INDIRECT(\"a\" & (VLOOKUP(Rebalance!$D$52,$F$2:$G$48,2,FALSE)+ROW()-2)),\"\")","v":{"$error":"#N/A"}},{"$f":"IF(INDIRECT(\"c\" & (VLOOKUP(Rebalance!$D$53,$F$2:$G$48,2,FALSE)+ROW()-2))=Rebalance!$D$53,INDIRECT(\"a\" & (VLOOKUP(Rebalance!$D$53,$F$2:$G$48,2,FALSE)+ROW()-2)),\"\")","v":{"$error":"#N/A"}},{"$f":"IF(INDIRECT(\"c\" & (VLOOKUP(Rebalance!$D$54,$F$2:$G$48,2,FALSE)+ROW()-2))=Rebalance!$D$54,INDIRECT(\"a\" & (VLOOKUP(Rebalance!$D$54,$F$2:$G$48,2,FALSE)+ROW()-2)),\"\")","v":{"$error":"#N/A"}},{"$f":"IF(INDIRECT(\"c\" & (VLOOKUP(Rebalance!$D$55,$F$2:$G$48,2,FALSE)+ROW()-2))=Rebalance!$D$55,INDIRECT(\"a\" & (VLOOKUP(Rebalance!$D$55,$F$2:$G$48,2,FALSE)+ROW()-2)),\"\")","v":{"$error":"#N/A"}},{"$f":"IF(INDIRECT(\"c\" & (VLOOKUP(Rebalance!$D$56,$F$2:$G$48,2,FALSE)+ROW()-2))=Rebalance!$D$56,INDIRECT(\"a\" & (VLOOKUP(Rebalance!$D$56,$F$2:$G$48,2,FALSE)+ROW()-2)),\"\")","v":{"$error":"#N/A"}},{"$f":"IF(INDIRECT(\"c\" & (VLOOKUP(Rebalance!$D$57,$F$2:$G$48,2,FALSE)+ROW()-2))=Rebalance!$D$57,INDIRECT(\"a\" & (VLOOKUP(Rebalance!$D$57,$F$2:$G$48,2,FALSE)+ROW()-2)),\"\")","v":{"$error":"#N/A"}},{"$f":"IF(INDIRECT(\"c\" & (VLOOKUP(Rebalance!$D$58,$F$2:$G$48,2,FALSE)+ROW()-2))=Rebalance!$D$58,INDIRECT(\"a\" & (VLOOKUP(Rebalance!$D$58,$F$2:$G$48,2,FALSE)+ROW()-2)),\"\")","v":{"$error":"#N/A"}},{"$f":"IF(INDIRECT(\"c\" & (VLOOKUP(Rebalance!$D$59,$F$2:$G$48,2,FALSE)+ROW()-2))=Rebalance!$D$59,INDIRECT(\"a\" & (VLOOKUP(Rebalance!$D$59,$F$2:$G$48,2,FALSE)+ROW()-2)),\"\")","v":{"$error":"#N/A"}},{"$f":"IF(INDIRECT(\"c\" & (VLOOKUP(Rebalance!$D$60,$F$2:$G$48,2,FALSE)+ROW()-2))=Rebalance!$D$60,INDIRECT(\"a\" & (VLOOKUP(Rebalance!$D$60,$F$2:$G$48,2,FALSE)+ROW()-2)),\"\")","v":{"$error":"#N/A"}},{"$f":"IF(INDIRECT(\"c\" & (VLOOKUP(Rebalance!$D$61,$F$2:$G$48,2,FALSE)+ROW()-2))=Rebalance!$D$61,INDIRECT(\"a\" & (VLOOKUP(Rebalance!$D$61,$F$2:$G$48,2,FALSE)+ROW()-2)),\"\")","v":{"$error":"#N/A"}},{"$f":"IF(INDIRECT(\"c\" & (VLOOKUP(Rebalance!$D$62,$F$2:$G$48,2,FALSE)+ROW()-2))=Rebalance!$D$62,INDIRECT(\"a\" & (VLOOKUP(Rebalance!$D$62,$F$2:$G$48,2,FALSE)+ROW()-2)),\"\")","v":{"$error":"#N/A"}},{"$f":"IF(INDIRECT(\"c\" & (VLOOKUP(Rebalance!$D$63,$F$2:$G$48,2,FALSE)+ROW()-2))=Rebalance!$D$63,INDIRECT(\"a\" & (VLOOKUP(Rebalance!$D$63,$F$2:$G$48,2,FALSE)+ROW()-2)),\"\")","v":{"$error":"#N/A"}},{"$f":"IF(INDIRECT(\"c\" & (VLOOKUP(Rebalance!$D$64,$F$2:$G$48,2,FALSE)+ROW()-2))=Rebalance!$D$64,INDIRECT(\"a\" & (VLOOKUP(Rebalance!$D$64,$F$2:$G$48,2,FALSE)+ROW()-2)),\"\")","v":{"$error":"#N/A"}},{"$f":"IF(INDIRECT(\"c\" & (VLOOKUP(Rebalance!$D$65,$F$2:$G$48,2,FALSE)+ROW()-2))=Rebalance!$D$65,INDIRECT(\"a\" & (VLOOKUP(Rebalance!$D$65,$F$2:$G$48,2,FALSE)+ROW()-2)),\"\")","v":{"$error":"#N/A"}},{"$f":"IF(INDIRECT(\"c\" & (VLOOKUP(Rebalance!$D$66,$F$2:$G$48,2,FALSE)+ROW()-2))=Rebalance!$D$66,INDIRECT(\"a\" & (VLOOKUP(Rebalance!$D$66,$F$2:$G$48,2,FALSE)+ROW()-2)),\"\")","v":{"$error":"#N/A"}}]
["Old Mutual Global Equity Fund B1","OMGB1","Old Mutual Unit Trust Managers Limited",{"$f":"ROW()","v":413},null,null,{"$f":"VLOOKUP(F413,$C$2:$D$599,2,FALSE)","v":{"$error":"#N/A"}},{"$f":"IF(INDIRECT(\"c\" & (VLOOKUP(Rebalance!$D$26,$F$2:$G$48,2,FALSE)+ROW()-2))=Rebalance!$D$26,INDIRECT(\"a\" & (VLOOKUP(Rebalance!$D$26,$F$2:$G$48,2,FALSE)+ROW()-2)),\"\")","v":{"$error":"#N/A"}},{"$f":"IF(INDIRECT(\"c\" & (VLOOKUP(Rebalance!$D$27,$F$2:$G$48,2,FALSE)+ROW()-2))=Rebalance!$D$27,INDIRECT(\"a\" & (VLOOKUP(Rebalance!$D$27,$F$2:$G$48,2,FALSE)+ROW()-2)),\"\")","v":{"$error":"#N/A"}},{"$f":"IF(INDIRECT(\"c\" & (VLOOKUP(Rebalance!$D$28,$F$2:$G$48,2,FALSE)+ROW()-2))=Rebalance!$D$28,INDIRECT(\"a\" & (VLOOKUP(Rebalance!$D$28,$F$2:$G$48,2,FALSE)+ROW()-2)),\"\")","v":{"$error":"#N/A"}},{"$f":"IF(INDIRECT(\"c\" & (VLOOKUP(Rebalance!$D$29,$F$2:$G$48,2,FALSE)+ROW()-2))=Rebalance!$D$29,INDIRECT(\"a\" & (VLOOKUP(Rebalance!$D$29,$F$2:$G$48,2,FALSE)+ROW()-2)),\"\")","v":{"$error":"#N/A"}},{"$f":"IF(INDIRECT(\"c\" & (VLOOKUP(Rebalance!$D$30,$F$2:$G$48,2,FALSE)+ROW()-2))=Rebalance!$D$30,INDIRECT(\"a\" & (VLOOKUP(Rebalance!$D$30,$F$2:$G$48,2,FALSE)+ROW()-2)),\"\")","v":{"$error":"#N/A"}},{"$f":"IF(INDIRECT(\"c\" & (VLOOKUP(Rebalance!$D$31,$F$2:$G$48,2,FALSE)+ROW()-2))=Rebalance!$D$31,INDIRECT(\"a\" & (VLOOKUP(Rebalance!$D$31,$F$2:$G$48,2,FALSE)+ROW()-2)),\"\")","v":{"$error":"#N/A"}},{"$f":"IF(INDIRECT(\"c\" & (VLOOKUP(Rebalance!$D$32,$F$2:$G$48,2,FALSE)+ROW()-2))=Rebalance!$D$32,INDIRECT(\"a\" & (VLOOKUP(Rebalance!$D$32,$F$2:$G$48,2,FALSE)+ROW()-2)),\"\")","v":{"$error":"#N/A"}},{"$f":"IF(INDIRECT(\"c\" & (VLOOKUP(Rebalance!$D$33,$F$2:$G$48,2,FALSE)+ROW()-2))=Rebalance!$D$33,INDIRECT(\"a\" & (VLOOKUP(Rebalance!$D$33,$F$2:$G$48,2,FALSE)+ROW()-2)),\"\")","v":{"$error":"#N/A"}},{"$f":"IF(INDIRECT(\"c\" & (VLOOKUP(Rebalance!$D$34,$F$2:$G$48,2,FALSE)+ROW()-2))=Rebalance!$D$34,INDIRECT(\"a\" & (VLOOKUP(Rebalance!$D$34,$F$2:$G$48,2,FALSE)+ROW()-2)),\"\")","v":{"$error":"#N/A"}},{"$f":"IF(INDIRECT(\"c\" & (VLOOKUP(Rebalance!$D$35,$F$2:$G$48,2,FALSE)+ROW()-2))=Rebalance!$D$35,INDIRECT(\"a\" & (VLOOKUP(Rebalance!$D$35,$F$2:$G$48,2,FALSE)+ROW()-2)),\"\")","v":{"$error":"#N/A"}},{"$f":"IF(INDIRECT(\"c\" & (VLOOKUP(Rebalance!$D$36,$F$2:$G$48,2,FALSE)+ROW()-2))=Rebalance!$D$36,INDIRECT(\"a\" & (VLOOKUP(Rebalance!$D$36,$F$2:$G$48,2,FALSE)+ROW()-2)),\"\")","v":{"$error":"#N/A"}},{"$f":"IF(INDIRECT(\"c\" & (VLOOKUP(Rebalance!$D$37,$F$2:$G$48,2,FALSE)+ROW()-2))=Rebalance!$D$37,INDIRECT(\"a\" & (VLOOKUP(Rebalance!$D$37,$F$2:$G$48,2,FALSE)+ROW()-2)),\"\")","v":{"$error":"#N/A"}},{"$f":"IF(INDIRECT(\"c\" & (VLOOKUP(Rebalance!$D$38,$F$2:$G$48,2,FALSE)+ROW()-2))=Rebalance!$D$38,INDIRECT(\"a\" & (VLOOKUP(Rebalance!$D$38,$F$2:$G$48,2,FALSE)+ROW()-2)),\"\")","v":{"$error":"#N/A"}},{"$f":"IF(INDIRECT(\"c\" & (VLOOKUP(Rebalance!$D$39,$F$2:$G$48,2,FALSE)+ROW()-2))=Rebalance!$D$39,INDIRECT(\"a\" & (VLOOKUP(Rebalance!$D$39,$F$2:$G$48,2,FALSE)+ROW()-2)),\"\")","v":{"$error":"#N/A"}},{"$f":"IF(INDIRECT(\"c\" & (VLOOKUP(Rebalance!$D$40,$F$2:$G$48,2,FALSE)+ROW()-2))=Rebalance!$D$40,INDIRECT(\"a\" & (VLOOKUP(Rebalance!$D$40,$F$2:$G$48,2,FALSE)+ROW()-2)),\"\")","v":{"$error":"#N/A"}},{"$f":"IF(INDIRECT(\"c\" & (VLOOKUP(Rebalance!$D$52,$F$2:$G$48,2,FALSE)+ROW()-2))=Rebalance!$D$52,INDIRECT(\"a\" & (VLOOKUP(Rebalance!$D$52,$F$2:$G$48,2,FALSE)+ROW()-2)),\"\")","v":{"$error":"#N/A"}},{"$f":"IF(INDIRECT(\"c\" & (VLOOKUP(Rebalance!$D$53,$F$2:$G$48,2,FALSE)+ROW()-2))=Rebalance!$D$53,INDIRECT(\"a\" & (VLOOKUP(Rebalance!$D$53,$F$2:$G$48,2,FALSE)+ROW()-2)),\"\")","v":{"$error":"#N/A"}},{"$f":"IF(INDIRECT(\"c\" & (VLOOKUP(Rebalance!$D$54,$F$2:$G$48,2,FALSE)+ROW()-2))=Rebalance!$D$54,INDIRECT(\"a\" & (VLOOKUP(Rebalance!$D$54,$F$2:$G$48,2,FALSE)+ROW()-2)),\"\")","v":{"$error":"#N/A"}},{"$f":"IF(INDIRECT(\"c\" & (VLOOKUP(Rebalance!$D$55,$F$2:$G$48,2,FALSE)+ROW()-2))=Rebalance!$D$55,INDIRECT(\"a\" & (VLOOKUP(Rebalance!$D$55,$F$2:$G$48,2,FALSE)+ROW()-2)),\"\")","v":{"$error":"#N/A"}},{"$f":"IF(INDIRECT(\"c\" & (VLOOKUP(Rebalance!$D$56,$F$2:$G$48,2,FALSE)+ROW()-2))=Rebalance!$D$56,INDIRECT(\"a\" & (VLOOKUP(Rebalance!$D$56,$F$2:$G$48,2,FALSE)+ROW()-2)),\"\")","v":{"$error":"#N/A"}},{"$f":"IF(INDIRECT(\"c\" & (VLOOKUP(Rebalance!$D$57,$F$2:$G$48,2,FALSE)+ROW()-2))=Rebalance!$D$57,INDIRECT(\"a\" & (VLOOKUP(Rebalance!$D$57,$F$2:$G$48,2,FALSE)+ROW()-2)),\"\")","v":{"$error":"#N/A"}},{"$f":"IF(INDIRECT(\"c\" & (VLOOKUP(Rebalance!$D$58,$F$2:$G$48,2,FALSE)+ROW()-2))=Rebalance!$D$58,INDIRECT(\"a\" & (VLOOKUP(Rebalance!$D$58,$F$2:$G$48,2,FALSE)+ROW()-2)),\"\")","v":{"$error":"#N/A"}},{"$f":"IF(INDIRECT(\"c\" & (VLOOKUP(Rebalance!$D$59,$F$2:$G$48,2,FALSE)+ROW()-2))=Rebalance!$D$59,INDIRECT(\"a\" & (VLOOKUP(Rebalance!$D$59,$F$2:$G$48,2,FALSE)+ROW()-2)),\"\")","v":{"$error":"#N/A"}},{"$f":"IF(INDIRECT(\"c\" & (VLOOKUP(Rebalance!$D$60,$F$2:$G$48,2,FALSE)+ROW()-2))=Rebalance!$D$60,INDIRECT(\"a\" & (VLOOKUP(Rebalance!$D$60,$F$2:$G$48,2,FALSE)+ROW()-2)),\"\")","v":{"$error":"#N/A"}},{"$f":"IF(INDIRECT(\"c\" & (VLOOKUP(Rebalance!$D$61,$F$2:$G$48,2,FALSE)+ROW()-2))=Rebalance!$D$61,INDIRECT(\"a\" & (VLOOKUP(Rebalance!$D$61,$F$2:$G$48,2,FALSE)+ROW()-2)),\"\")","v":{"$error":"#N/A"}},{"$f":"IF(INDIRECT(\"c\" & (VLOOKUP(Rebalance!$D$62,$F$2:$G$48,2,FALSE)+ROW()-2))=Rebalance!$D$62,INDIRECT(\"a\" & (VLOOKUP(Rebalance!$D$62,$F$2:$G$48,2,FALSE)+ROW()-2)),\"\")","v":{"$error":"#N/A"}},{"$f":"IF(INDIRECT(\"c\" & (VLOOKUP(Rebalance!$D$63,$F$2:$G$48,2,FALSE)+ROW()-2))=Rebalance!$D$63,INDIRECT(\"a\" & (VLOOKUP(Rebalance!$D$63,$F$2:$G$48,2,FALSE)+ROW()-2)),\"\")","v":{"$error":"#N/A"}},{"$f":"IF(INDIRECT(\"c\" & (VLOOKUP(Rebalance!$D$64,$F$2:$G$48,2,FALSE)+ROW()-2))=Rebalance!$D$64,INDIRECT(\"a\" & (VLOOKUP(Rebalance!$D$64,$F$2:$G$48,2,FALSE)+ROW()-2)),\"\")","v":{"$error":"#N/A"}},{"$f":"IF(INDIRECT(\"c\" & (VLOOKUP(Rebalance!$D$65,$F$2:$G$48,2,FALSE)+ROW()-2))=Rebalance!$D$65,INDIRECT(\"a\" & (VLOOKUP(Rebalance!$D$65,$F$2:$G$48,2,FALSE)+ROW()-2)),\"\")","v":{"$error":"#N/A"}},{"$f":"IF(INDIRECT(\"c\" & (VLOOKUP(Rebalance!$D$66,$F$2:$G$48,2,FALSE)+ROW()-2))=Rebalance!$D$66,INDIRECT(\"a\" & (VLOOKUP(Rebalance!$D$66,$F$2:$G$48,2,FALSE)+ROW()-2)),\"\")","v":{"$error":"#N/A"}}]
["Old Mutual Global FTSE RAFI All World Index Feeder Fund A","OMGRF","Old Mutual Unit Trust Managers Limited",{"$f":"ROW()","v":414},null,null,{"$f":"VLOOKUP(F414,$C$2:$D$599,2,FALSE)","v":{"$error":"#N/A"}},{"$f":"IF(INDIRECT(\"c\" & (VLOOKUP(Rebalance!$D$26,$F$2:$G$48,2,FALSE)+ROW()-2))=Rebalance!$D$26,INDIRECT(\"a\" & (VLOOKUP(Rebalance!$D$26,$F$2:$G$48,2,FALSE)+ROW()-2)),\"\")","v":{"$error":"#N/A"}},{"$f":"IF(INDIRECT(\"c\" & (VLOOKUP(Rebalance!$D$27,$F$2:$G$48,2,FALSE)+ROW()-2))=Rebalance!$D$27,INDIRECT(\"a\" & (VLOOKUP(Rebalance!$D$27,$F$2:$G$48,2,FALSE)+ROW()-2)),\"\")","v":{"$error":"#N/A"}},{"$f":"IF(INDIRECT(\"c\" & (VLOOKUP(Rebalance!$D$28,$F$2:$G$48,2,FALSE)+ROW()-2))=Rebalance!$D$28,INDIRECT(\"a\" & (VLOOKUP(Rebalance!$D$28,$F$2:$G$48,2,FALSE)+ROW()-2)),\"\")","v":{"$error":"#N/A"}},{"$f":"IF(INDIRECT(\"c\" & (VLOOKUP(Rebalance!$D$29,$F$2:$G$48,2,FALSE)+ROW()-2))=Rebalance!$D$29,INDIRECT(\"a\" & (VLOOKUP(Rebalance!$D$29,$F$2:$G$48,2,FALSE)+ROW()-2)),\"\")","v":{"$error":"#N/A"}},{"$f":"IF(INDIRECT(\"c\" & (VLOOKUP(Rebalance!$D$30,$F$2:$G$48,2,FALSE)+ROW()-2))=Rebalance!$D$30,INDIRECT(\"a\" & (VLOOKUP(Rebalance!$D$30,$F$2:$G$48,2,FALSE)+ROW()-2)),\"\")","v":{"$error":"#N/A"}},{"$f":"IF(INDIRECT(\"c\" & (VLOOKUP(Rebalance!$D$31,$F$2:$G$48,2,FALSE)+ROW()-2))=Rebalance!$D$31,INDIRECT(\"a\" & (VLOOKUP(Rebalance!$D$31,$F$2:$G$48,2,FALSE)+ROW()-2)),\"\")","v":{"$error":"#N/A"}},{"$f":"IF(INDIRECT(\"c\" & (VLOOKUP(Rebalance!$D$32,$F$2:$G$48,2,FALSE)+ROW()-2))=Rebalance!$D$32,INDIRECT(\"a\" & (VLOOKUP(Rebalance!$D$32,$F$2:$G$48,2,FALSE)+ROW()-2)),\"\")","v":{"$error":"#N/A"}},{"$f":"IF(INDIRECT(\"c\" & (VLOOKUP(Rebalance!$D$33,$F$2:$G$48,2,FALSE)+ROW()-2))=Rebalance!$D$33,INDIRECT(\"a\" & (VLOOKUP(Rebalance!$D$33,$F$2:$G$48,2,FALSE)+ROW()-2)),\"\")","v":{"$error":"#N/A"}},{"$f":"IF(INDIRECT(\"c\" & (VLOOKUP(Rebalance!$D$34,$F$2:$G$48,2,FALSE)+ROW()-2))=Rebalance!$D$34,INDIRECT(\"a\" & (VLOOKUP(Rebalance!$D$34,$F$2:$G$48,2,FALSE)+ROW()-2)),\"\")","v":{"$error":"#N/A"}},{"$f":"IF(INDIRECT(\"c\" & (VLOOKUP(Rebalance!$D$35,$F$2:$G$48,2,FALSE)+ROW()-2))=Rebalance!$D$35,INDIRECT(\"a\" & (VLOOKUP(Rebalance!$D$35,$F$2:$G$48,2,FALSE)+ROW()-2)),\"\")","v":{"$error":"#N/A"}},{"$f":"IF(INDIRECT(\"c\" & (VLOOKUP(Rebalance!$D$36,$F$2:$G$48,2,FALSE)+ROW()-2))=Rebalance!$D$36,INDIRECT(\"a\" & (VLOOKUP(Rebalance!$D$36,$F$2:$G$48,2,FALSE)+ROW()-2)),\"\")","v":{"$error":"#N/A"}},{"$f":"IF(INDIRECT(\"c\" & (VLOOKUP(Rebalance!$D$37,$F$2:$G$48,2,FALSE)+ROW()-2))=Rebalance!$D$37,INDIRECT(\"a\" & (VLOOKUP(Rebalance!$D$37,$F$2:$G$48,2,FALSE)+ROW()-2)),\"\")","v":{"$error":"#N/A"}},{"$f":"IF(INDIRECT(\"c\" & (VLOOKUP(Rebalance!$D$38,$F$2:$G$48,2,FALSE)+ROW()-2))=Rebalance!$D$38,INDIRECT(\"a\" & (VLOOKUP(Rebalance!$D$38,$F$2:$G$48,2,FALSE)+ROW()-2)),\"\")","v":{"$error":"#N/A"}},{"$f":"IF(INDIRECT(\"c\" & (VLOOKUP(Rebalance!$D$39,$F$2:$G$48,2,FALSE)+ROW()-2))=Rebalance!$D$39,INDIRECT(\"a\" & (VLOOKUP(Rebalance!$D$39,$F$2:$G$48,2,FALSE)+ROW()-2)),\"\")","v":{"$error":"#N/A"}},{"$f":"IF(INDIRECT(\"c\" & (VLOOKUP(Rebalance!$D$40,$F$2:$G$48,2,FALSE)+ROW()-2))=Rebalance!$D$40,INDIRECT(\"a\" & (VLOOKUP(Rebalance!$D$40,$F$2:$G$48,2,FALSE)+ROW()-2)),\"\")","v":{"$error":"#N/A"}},{"$f":"IF(INDIRECT(\"c\" & (VLOOKUP(Rebalance!$D$52,$F$2:$G$48,2,FALSE)+ROW()-2))=Rebalance!$D$52,INDIRECT(\"a\" & (VLOOKUP(Rebalance!$D$52,$F$2:$G$48,2,FALSE)+ROW()-2)),\"\")","v":{"$error":"#N/A"}},{"$f":"IF(INDIRECT(\"c\" & (VLOOKUP(Rebalance!$D$53,$F$2:$G$48,2,FALSE)+ROW()-2))=Rebalance!$D$53,INDIRECT(\"a\" & (VLOOKUP(Rebalance!$D$53,$F$2:$G$48,2,FALSE)+ROW()-2)),\"\")","v":{"$error":"#N/A"}},{"$f":"IF(INDIRECT(\"c\" & (VLOOKUP(Rebalance!$D$54,$F$2:$G$48,2,FALSE)+ROW()-2))=Rebalance!$D$54,INDIRECT(\"a\" & (VLOOKUP(Rebalance!$D$54,$F$2:$G$48,2,FALSE)+ROW()-2)),\"\")","v":{"$error":"#N/A"}},{"$f":"IF(INDIRECT(\"c\" & (VLOOKUP(Rebalance!$D$55,$F$2:$G$48,2,FALSE)+ROW()-2))=Rebalance!$D$55,INDIRECT(\"a\" & (VLOOKUP(Rebalance!$D$55,$F$2:$G$48,2,FALSE)+ROW()-2)),\"\")","v":{"$error":"#N/A"}},{"$f":"IF(INDIRECT(\"c\" & (VLOOKUP(Rebalance!$D$56,$F$2:$G$48,2,FALSE)+ROW()-2))=Rebalance!$D$56,INDIRECT(\"a\" & (VLOOKUP(Rebalance!$D$56,$F$2:$G$48,2,FALSE)+ROW()-2)),\"\")","v":{"$error":"#N/A"}},{"$f":"IF(INDIRECT(\"c\" & (VLOOKUP(Rebalance!$D$57,$F$2:$G$48,2,FALSE)+ROW()-2))=Rebalance!$D$57,INDIRECT(\"a\" & (VLOOKUP(Rebalance!$D$57,$F$2:$G$48,2,FALSE)+ROW()-2)),\"\")","v":{"$error":"#N/A"}},{"$f":"IF(INDIRECT(\"c\" & (VLOOKUP(Rebalance!$D$58,$F$2:$G$48,2,FALSE)+ROW()-2))=Rebalance!$D$58,INDIRECT(\"a\" & (VLOOKUP(Rebalance!$D$58,$F$2:$G$48,2,FALSE)+ROW()-2)),\"\")","v":{"$error":"#N/A"}},{"$f":"IF(INDIRECT(\"c\" & (VLOOKUP(Rebalance!$D$59,$F$2:$G$48,2,FALSE)+ROW()-2))=Rebalance!$D$59,INDIRECT(\"a\" & (VLOOKUP(Rebalance!$D$59,$F$2:$G$48,2,FALSE)+ROW()-2)),\"\")","v":{"$error":"#N/A"}},{"$f":"IF(INDIRECT(\"c\" & (VLOOKUP(Rebalance!$D$60,$F$2:$G$48,2,FALSE)+ROW()-2))=Rebalance!$D$60,INDIRECT(\"a\" & (VLOOKUP(Rebalance!$D$60,$F$2:$G$48,2,FALSE)+ROW()-2)),\"\")","v":{"$error":"#N/A"}},{"$f":"IF(INDIRECT(\"c\" & (VLOOKUP(Rebalance!$D$61,$F$2:$G$48,2,FALSE)+ROW()-2))=Rebalance!$D$61,INDIRECT(\"a\" & (VLOOKUP(Rebalance!$D$61,$F$2:$G$48,2,FALSE)+ROW()-2)),\"\")","v":{"$error":"#N/A"}},{"$f":"IF(INDIRECT(\"c\" & (VLOOKUP(Rebalance!$D$62,$F$2:$G$48,2,FALSE)+ROW()-2))=Rebalance!$D$62,INDIRECT(\"a\" & (VLOOKUP(Rebalance!$D$62,$F$2:$G$48,2,FALSE)+ROW()-2)),\"\")","v":{"$error":"#N/A"}},{"$f":"IF(INDIRECT(\"c\" & (VLOOKUP(Rebalance!$D$63,$F$2:$G$48,2,FALSE)+ROW()-2))=Rebalance!$D$63,INDIRECT(\"a\" & (VLOOKUP(Rebalance!$D$63,$F$2:$G$48,2,FALSE)+ROW()-2)),\"\")","v":{"$error":"#N/A"}},{"$f":"IF(INDIRECT(\"c\" & (VLOOKUP(Rebalance!$D$64,$F$2:$G$48,2,FALSE)+ROW()-2))=Rebalance!$D$64,INDIRECT(\"a\" & (VLOOKUP(Rebalance!$D$64,$F$2:$G$48,2,FALSE)+ROW()-2)),\"\")","v":{"$error":"#N/A"}},{"$f":"IF(INDIRECT(\"c\" & (VLOOKUP(Rebalance!$D$65,$F$2:$G$48,2,FALSE)+ROW()-2))=Rebalance!$D$65,INDIRECT(\"a\" & (VLOOKUP(Rebalance!$D$65,$F$2:$G$48,2,FALSE)+ROW()-2)),\"\")","v":{"$error":"#N/A"}},{"$f":"IF(INDIRECT(\"c\" & (VLOOKUP(Rebalance!$D$66,$F$2:$G$48,2,FALSE)+ROW()-2))=Rebalance!$D$66,INDIRECT(\"a\" & (VLOOKUP(Rebalance!$D$66,$F$2:$G$48,2,FALSE)+ROW()-2)),\"\")","v":{"$error":"#N/A"}}]
["Old Mutual Gold Fund Class A","GFB1C","Old Mutual Unit Trust Managers Limited",{"$f":"ROW()","v":415},null,null,{"$f":"VLOOKUP(F415,$C$2:$D$599,2,FALSE)","v":{"$error":"#N/A"}},{"$f":"IF(INDIRECT(\"c\" & (VLOOKUP(Rebalance!$D$26,$F$2:$G$48,2,FALSE)+ROW()-2))=Rebalance!$D$26,INDIRECT(\"a\" & (VLOOKUP(Rebalance!$D$26,$F$2:$G$48,2,FALSE)+ROW()-2)),\"\")","v":{"$error":"#N/A"}},{"$f":"IF(INDIRECT(\"c\" & (VLOOKUP(Rebalance!$D$27,$F$2:$G$48,2,FALSE)+ROW()-2))=Rebalance!$D$27,INDIRECT(\"a\" & (VLOOKUP(Rebalance!$D$27,$F$2:$G$48,2,FALSE)+ROW()-2)),\"\")","v":{"$error":"#N/A"}},{"$f":"IF(INDIRECT(\"c\" & (VLOOKUP(Rebalance!$D$28,$F$2:$G$48,2,FALSE)+ROW()-2))=Rebalance!$D$28,INDIRECT(\"a\" & (VLOOKUP(Rebalance!$D$28,$F$2:$G$48,2,FALSE)+ROW()-2)),\"\")","v":{"$error":"#N/A"}},{"$f":"IF(INDIRECT(\"c\" & (VLOOKUP(Rebalance!$D$29,$F$2:$G$48,2,FALSE)+ROW()-2))=Rebalance!$D$29,INDIRECT(\"a\" & (VLOOKUP(Rebalance!$D$29,$F$2:$G$48,2,FALSE)+ROW()-2)),\"\")","v":{"$error":"#N/A"}},{"$f":"IF(INDIRECT(\"c\" & (VLOOKUP(Rebalance!$D$30,$F$2:$G$48,2,FALSE)+ROW()-2))=Rebalance!$D$30,INDIRECT(\"a\" & (VLOOKUP(Rebalance!$D$30,$F$2:$G$48,2,FALSE)+ROW()-2)),\"\")","v":{"$error":"#N/A"}},{"$f":"IF(INDIRECT(\"c\" & (VLOOKUP(Rebalance!$D$31,$F$2:$G$48,2,FALSE)+ROW()-2))=Rebalance!$D$31,INDIRECT(\"a\" & (VLOOKUP(Rebalance!$D$31,$F$2:$G$48,2,FALSE)+ROW()-2)),\"\")","v":{"$error":"#N/A"}},{"$f":"IF(INDIRECT(\"c\" & (VLOOKUP(Rebalance!$D$32,$F$2:$G$48,2,FALSE)+ROW()-2))=Rebalance!$D$32,INDIRECT(\"a\" & (VLOOKUP(Rebalance!$D$32,$F$2:$G$48,2,FALSE)+ROW()-2)),\"\")","v":{"$error":"#N/A"}},{"$f":"IF(INDIRECT(\"c\" & (VLOOKUP(Rebalance!$D$33,$F$2:$G$48,2,FALSE)+ROW()-2))=Rebalance!$D$33,INDIRECT(\"a\" & (VLOOKUP(Rebalance!$D$33,$F$2:$G$48,2,FALSE)+ROW()-2)),\"\")","v":{"$error":"#N/A"}},{"$f":"IF(INDIRECT(\"c\" & (VLOOKUP(Rebalance!$D$34,$F$2:$G$48,2,FALSE)+ROW()-2))=Rebalance!$D$34,INDIRECT(\"a\" & (VLOOKUP(Rebalance!$D$34,$F$2:$G$48,2,FALSE)+ROW()-2)),\"\")","v":{"$error":"#N/A"}},{"$f":"IF(INDIRECT(\"c\" & (VLOOKUP(Rebalance!$D$35,$F$2:$G$48,2,FALSE)+ROW()-2))=Rebalance!$D$35,INDIRECT(\"a\" & (VLOOKUP(Rebalance!$D$35,$F$2:$G$48,2,FALSE)+ROW()-2)),\"\")","v":{"$error":"#N/A"}},{"$f":"IF(INDIRECT(\"c\" & (VLOOKUP(Rebalance!$D$36,$F$2:$G$48,2,FALSE)+ROW()-2))=Rebalance!$D$36,INDIRECT(\"a\" & (VLOOKUP(Rebalance!$D$36,$F$2:$G$48,2,FALSE)+ROW()-2)),\"\")","v":{"$error":"#N/A"}},{"$f":"IF(INDIRECT(\"c\" & (VLOOKUP(Rebalance!$D$37,$F$2:$G$48,2,FALSE)+ROW()-2))=Rebalance!$D$37,INDIRECT(\"a\" & (VLOOKUP(Rebalance!$D$37,$F$2:$G$48,2,FALSE)+ROW()-2)),\"\")","v":{"$error":"#N/A"}},{"$f":"IF(INDIRECT(\"c\" & (VLOOKUP(Rebalance!$D$38,$F$2:$G$48,2,FALSE)+ROW()-2))=Rebalance!$D$38,INDIRECT(\"a\" & (VLOOKUP(Rebalance!$D$38,$F$2:$G$48,2,FALSE)+ROW()-2)),\"\")","v":{"$error":"#N/A"}},{"$f":"IF(INDIRECT(\"c\" & (VLOOKUP(Rebalance!$D$39,$F$2:$G$48,2,FALSE)+ROW()-2))=Rebalance!$D$39,INDIRECT(\"a\" & (VLOOKUP(Rebalance!$D$39,$F$2:$G$48,2,FALSE)+ROW()-2)),\"\")","v":{"$error":"#N/A"}},{"$f":"IF(INDIRECT(\"c\" & (VLOOKUP(Rebalance!$D$40,$F$2:$G$48,2,FALSE)+ROW()-2))=Rebalance!$D$40,INDIRECT(\"a\" & (VLOOKUP(Rebalance!$D$40,$F$2:$G$48,2,FALSE)+ROW()-2)),\"\")","v":{"$error":"#N/A"}},{"$f":"IF(INDIRECT(\"c\" & (VLOOKUP(Rebalance!$D$52,$F$2:$G$48,2,FALSE)+ROW()-2))=Rebalance!$D$52,INDIRECT(\"a\" & (VLOOKUP(Rebalance!$D$52,$F$2:$G$48,2,FALSE)+ROW()-2)),\"\")","v":{"$error":"#N/A"}},{"$f":"IF(INDIRECT(\"c\" & (VLOOKUP(Rebalance!$D$53,$F$2:$G$48,2,FALSE)+ROW()-2))=Rebalance!$D$53,INDIRECT(\"a\" & (VLOOKUP(Rebalance!$D$53,$F$2:$G$48,2,FALSE)+ROW()-2)),\"\")","v":{"$error":"#N/A"}},{"$f":"IF(INDIRECT(\"c\" & (VLOOKUP(Rebalance!$D$54,$F$2:$G$48,2,FALSE)+ROW()-2))=Rebalance!$D$54,INDIRECT(\"a\" & (VLOOKUP(Rebalance!$D$54,$F$2:$G$48,2,FALSE)+ROW()-2)),\"\")","v":{"$error":"#N/A"}},{"$f":"IF(INDIRECT(\"c\" & (VLOOKUP(Rebalance!$D$55,$F$2:$G$48,2,FALSE)+ROW()-2))=Rebalance!$D$55,INDIRECT(\"a\" & (VLOOKUP(Rebalance!$D$55,$F$2:$G$48,2,FALSE)+ROW()-2)),\"\")","v":{"$error":"#N/A"}},{"$f":"IF(INDIRECT(\"c\" & (VLOOKUP(Rebalance!$D$56,$F$2:$G$48,2,FALSE)+ROW()-2))=Rebalance!$D$56,INDIRECT(\"a\" & (VLOOKUP(Rebalance!$D$56,$F$2:$G$48,2,FALSE)+ROW()-2)),\"\")","v":{"$error":"#N/A"}},{"$f":"IF(INDIRECT(\"c\" & (VLOOKUP(Rebalance!$D$57,$F$2:$G$48,2,FALSE)+ROW()-2))=Rebalance!$D$57,INDIRECT(\"a\" & (VLOOKUP(Rebalance!$D$57,$F$2:$G$48,2,FALSE)+ROW()-2)),\"\")","v":{"$error":"#N/A"}},{"$f":"IF(INDIRECT(\"c\" & (VLOOKUP(Rebalance!$D$58,$F$2:$G$48,2,FALSE)+ROW()-2))=Rebalance!$D$58,INDIRECT(\"a\" & (VLOOKUP(Rebalance!$D$58,$F$2:$G$48,2,FALSE)+ROW()-2)),\"\")","v":{"$error":"#N/A"}},{"$f":"IF(INDIRECT(\"c\" & (VLOOKUP(Rebalance!$D$59,$F$2:$G$48,2,FALSE)+ROW()-2))=Rebalance!$D$59,INDIRECT(\"a\" & (VLOOKUP(Rebalance!$D$59,$F$2:$G$48,2,FALSE)+ROW()-2)),\"\")","v":{"$error":"#N/A"}},{"$f":"IF(INDIRECT(\"c\" & (VLOOKUP(Rebalance!$D$60,$F$2:$G$48,2,FALSE)+ROW()-2))=Rebalance!$D$60,INDIRECT(\"a\" & (VLOOKUP(Rebalance!$D$60,$F$2:$G$48,2,FALSE)+ROW()-2)),\"\")","v":{"$error":"#N/A"}},{"$f":"IF(INDIRECT(\"c\" & (VLOOKUP(Rebalance!$D$61,$F$2:$G$48,2,FALSE)+ROW()-2))=Rebalance!$D$61,INDIRECT(\"a\" & (VLOOKUP(Rebalance!$D$61,$F$2:$G$48,2,FALSE)+ROW()-2)),\"\")","v":{"$error":"#N/A"}},{"$f":"IF(INDIRECT(\"c\" & (VLOOKUP(Rebalance!$D$62,$F$2:$G$48,2,FALSE)+ROW()-2))=Rebalance!$D$62,INDIRECT(\"a\" & (VLOOKUP(Rebalance!$D$62,$F$2:$G$48,2,FALSE)+ROW()-2)),\"\")","v":{"$error":"#N/A"}},{"$f":"IF(INDIRECT(\"c\" & (VLOOKUP(Rebalance!$D$63,$F$2:$G$48,2,FALSE)+ROW()-2))=Rebalance!$D$63,INDIRECT(\"a\" & (VLOOKUP(Rebalance!$D$63,$F$2:$G$48,2,FALSE)+ROW()-2)),\"\")","v":{"$error":"#N/A"}},{"$f":"IF(INDIRECT(\"c\" & (VLOOKUP(Rebalance!$D$64,$F$2:$G$48,2,FALSE)+ROW()-2))=Rebalance!$D$64,INDIRECT(\"a\" & (VLOOKUP(Rebalance!$D$64,$F$2:$G$48,2,FALSE)+ROW()-2)),\"\")","v":{"$error":"#N/A"}},{"$f":"IF(INDIRECT(\"c\" & (VLOOKUP(Rebalance!$D$65,$F$2:$G$48,2,FALSE)+ROW()-2))=Rebalance!$D$65,INDIRECT(\"a\" & (VLOOKUP(Rebalance!$D$65,$F$2:$G$48,2,FALSE)+ROW()-2)),\"\")","v":{"$error":"#N/A"}},{"$f":"IF(INDIRECT(\"c\" & (VLOOKUP(Rebalance!$D$66,$F$2:$G$48,2,FALSE)+ROW()-2))=Rebalance!$D$66,INDIRECT(\"a\" & (VLOOKUP(Rebalance!$D$66,$F$2:$G$48,2,FALSE)+ROW()-2)),\"\")","v":{"$error":"#N/A"}}]
["Old Mutual Growth Fund Class A","OMGRA","Old Mutual Unit Trust Managers Limited",{"$f":"ROW()","v":416},null,null,{"$f":"VLOOKUP(F416,$C$2:$D$599,2,FALSE)","v":{"$error":"#N/A"}},{"$f":"IF(INDIRECT(\"c\" & (VLOOKUP(Rebalance!$D$26,$F$2:$G$48,2,FALSE)+ROW()-2))=Rebalance!$D$26,INDIRECT(\"a\" & (VLOOKUP(Rebalance!$D$26,$F$2:$G$48,2,FALSE)+ROW()-2)),\"\")","v":{"$error":"#N/A"}},{"$f":"IF(INDIRECT(\"c\" & (VLOOKUP(Rebalance!$D$27,$F$2:$G$48,2,FALSE)+ROW()-2))=Rebalance!$D$27,INDIRECT(\"a\" & (VLOOKUP(Rebalance!$D$27,$F$2:$G$48,2,FALSE)+ROW()-2)),\"\")","v":{"$error":"#N/A"}},{"$f":"IF(INDIRECT(\"c\" & (VLOOKUP(Rebalance!$D$28,$F$2:$G$48,2,FALSE)+ROW()-2))=Rebalance!$D$28,INDIRECT(\"a\" & (VLOOKUP(Rebalance!$D$28,$F$2:$G$48,2,FALSE)+ROW()-2)),\"\")","v":{"$error":"#N/A"}},{"$f":"IF(INDIRECT(\"c\" & (VLOOKUP(Rebalance!$D$29,$F$2:$G$48,2,FALSE)+ROW()-2))=Rebalance!$D$29,INDIRECT(\"a\" & (VLOOKUP(Rebalance!$D$29,$F$2:$G$48,2,FALSE)+ROW()-2)),\"\")","v":{"$error":"#N/A"}},{"$f":"IF(INDIRECT(\"c\" & (VLOOKUP(Rebalance!$D$30,$F$2:$G$48,2,FALSE)+ROW()-2))=Rebalance!$D$30,INDIRECT(\"a\" & (VLOOKUP(Rebalance!$D$30,$F$2:$G$48,2,FALSE)+ROW()-2)),\"\")","v":{"$error":"#N/A"}},{"$f":"IF(INDIRECT(\"c\" & (VLOOKUP(Rebalance!$D$31,$F$2:$G$48,2,FALSE)+ROW()-2))=Rebalance!$D$31,INDIRECT(\"a\" & (VLOOKUP(Rebalance!$D$31,$F$2:$G$48,2,FALSE)+ROW()-2)),\"\")","v":{"$error":"#N/A"}},{"$f":"IF(INDIRECT(\"c\" & (VLOOKUP(Rebalance!$D$32,$F$2:$G$48,2,FALSE)+ROW()-2))=Rebalance!$D$32,INDIRECT(\"a\" & (VLOOKUP(Rebalance!$D$32,$F$2:$G$48,2,FALSE)+ROW()-2)),\"\")","v":{"$error":"#N/A"}},{"$f":"IF(INDIRECT(\"c\" & (VLOOKUP(Rebalance!$D$33,$F$2:$G$48,2,FALSE)+ROW()-2))=Rebalance!$D$33,INDIRECT(\"a\" & (VLOOKUP(Rebalance!$D$33,$F$2:$G$48,2,FALSE)+ROW()-2)),\"\")","v":{"$error":"#N/A"}},{"$f":"IF(INDIRECT(\"c\" & (VLOOKUP(Rebalance!$D$34,$F$2:$G$48,2,FALSE)+ROW()-2))=Rebalance!$D$34,INDIRECT(\"a\" & (VLOOKUP(Rebalance!$D$34,$F$2:$G$48,2,FALSE)+ROW()-2)),\"\")","v":{"$error":"#N/A"}},{"$f":"IF(INDIRECT(\"c\" & (VLOOKUP(Rebalance!$D$35,$F$2:$G$48,2,FALSE)+ROW()-2))=Rebalance!$D$35,INDIRECT(\"a\" & (VLOOKUP(Rebalance!$D$35,$F$2:$G$48,2,FALSE)+ROW()-2)),\"\")","v":{"$error":"#N/A"}},{"$f":"IF(INDIRECT(\"c\" & (VLOOKUP(Rebalance!$D$36,$F$2:$G$48,2,FALSE)+ROW()-2))=Rebalance!$D$36,INDIRECT(\"a\" & (VLOOKUP(Rebalance!$D$36,$F$2:$G$48,2,FALSE)+ROW()-2)),\"\")","v":{"$error":"#N/A"}},{"$f":"IF(INDIRECT(\"c\" & (VLOOKUP(Rebalance!$D$37,$F$2:$G$48,2,FALSE)+ROW()-2))=Rebalance!$D$37,INDIRECT(\"a\" & (VLOOKUP(Rebalance!$D$37,$F$2:$G$48,2,FALSE)+ROW()-2)),\"\")","v":{"$error":"#N/A"}},{"$f":"IF(INDIRECT(\"c\" & (VLOOKUP(Rebalance!$D$38,$F$2:$G$48,2,FALSE)+ROW()-2))=Rebalance!$D$38,INDIRECT(\"a\" & (VLOOKUP(Rebalance!$D$38,$F$2:$G$48,2,FALSE)+ROW()-2)),\"\")","v":{"$error":"#N/A"}},{"$f":"IF(INDIRECT(\"c\" & (VLOOKUP(Rebalance!$D$39,$F$2:$G$48,2,FALSE)+ROW()-2))=Rebalance!$D$39,INDIRECT(\"a\" & (VLOOKUP(Rebalance!$D$39,$F$2:$G$48,2,FALSE)+ROW()-2)),\"\")","v":{"$error":"#N/A"}},{"$f":"IF(INDIRECT(\"c\" & (VLOOKUP(Rebalance!$D$40,$F$2:$G$48,2,FALSE)+ROW()-2))=Rebalance!$D$40,INDIRECT(\"a\" & (VLOOKUP(Rebalance!$D$40,$F$2:$G$48,2,FALSE)+ROW()-2)),\"\")","v":{"$error":"#N/A"}},{"$f":"IF(INDIRECT(\"c\" & (VLOOKUP(Rebalance!$D$52,$F$2:$G$48,2,FALSE)+ROW()-2))=Rebalance!$D$52,INDIRECT(\"a\" & (VLOOKUP(Rebalance!$D$52,$F$2:$G$48,2,FALSE)+ROW()-2)),\"\")","v":{"$error":"#N/A"}},{"$f":"IF(INDIRECT(\"c\" & (VLOOKUP(Rebalance!$D$53,$F$2:$G$48,2,FALSE)+ROW()-2))=Rebalance!$D$53,INDIRECT(\"a\" & (VLOOKUP(Rebalance!$D$53,$F$2:$G$48,2,FALSE)+ROW()-2)),\"\")","v":{"$error":"#N/A"}},{"$f":"IF(INDIRECT(\"c\" & (VLOOKUP(Rebalance!$D$54,$F$2:$G$48,2,FALSE)+ROW()-2))=Rebalance!$D$54,INDIRECT(\"a\" & (VLOOKUP(Rebalance!$D$54,$F$2:$G$48,2,FALSE)+ROW()-2)),\"\")","v":{"$error":"#N/A"}},{"$f":"IF(INDIRECT(\"c\" & (VLOOKUP(Rebalance!$D$55,$F$2:$G$48,2,FALSE)+ROW()-2))=Rebalance!$D$55,INDIRECT(\"a\" & (VLOOKUP(Rebalance!$D$55,$F$2:$G$48,2,FALSE)+ROW()-2)),\"\")","v":{"$error":"#N/A"}},{"$f":"IF(INDIRECT(\"c\" & (VLOOKUP(Rebalance!$D$56,$F$2:$G$48,2,FALSE)+ROW()-2))=Rebalance!$D$56,INDIRECT(\"a\" & (VLOOKUP(Rebalance!$D$56,$F$2:$G$48,2,FALSE)+ROW()-2)),\"\")","v":{"$error":"#N/A"}},{"$f":"IF(INDIRECT(\"c\" & (VLOOKUP(Rebalance!$D$57,$F$2:$G$48,2,FALSE)+ROW()-2))=Rebalance!$D$57,INDIRECT(\"a\" & (VLOOKUP(Rebalance!$D$57,$F$2:$G$48,2,FALSE)+ROW()-2)),\"\")","v":{"$error":"#N/A"}},{"$f":"IF(INDIRECT(\"c\" & (VLOOKUP(Rebalance!$D$58,$F$2:$G$48,2,FALSE)+ROW()-2))=Rebalance!$D$58,INDIRECT(\"a\" & (VLOOKUP(Rebalance!$D$58,$F$2:$G$48,2,FALSE)+ROW()-2)),\"\")","v":{"$error":"#N/A"}},{"$f":"IF(INDIRECT(\"c\" & (VLOOKUP(Rebalance!$D$59,$F$2:$G$48,2,FALSE)+ROW()-2))=Rebalance!$D$59,INDIRECT(\"a\" & (VLOOKUP(Rebalance!$D$59,$F$2:$G$48,2,FALSE)+ROW()-2)),\"\")","v":{"$error":"#N/A"}},{"$f":"IF(INDIRECT(\"c\" & (VLOOKUP(Rebalance!$D$60,$F$2:$G$48,2,FALSE)+ROW()-2))=Rebalance!$D$60,INDIRECT(\"a\" & (VLOOKUP(Rebalance!$D$60,$F$2:$G$48,2,FALSE)+ROW()-2)),\"\")","v":{"$error":"#N/A"}},{"$f":"IF(INDIRECT(\"c\" & (VLOOKUP(Rebalance!$D$61,$F$2:$G$48,2,FALSE)+ROW()-2))=Rebalance!$D$61,INDIRECT(\"a\" & (VLOOKUP(Rebalance!$D$61,$F$2:$G$48,2,FALSE)+ROW()-2)),\"\")","v":{"$error":"#N/A"}},{"$f":"IF(INDIRECT(\"c\" & (VLOOKUP(Rebalance!$D$62,$F$2:$G$48,2,FALSE)+ROW()-2))=Rebalance!$D$62,INDIRECT(\"a\" & (VLOOKUP(Rebalance!$D$62,$F$2:$G$48,2,FALSE)+ROW()-2)),\"\")","v":{"$error":"#N/A"}},{"$f":"IF(INDIRECT(\"c\" & (VLOOKUP(Rebalance!$D$63,$F$2:$G$48,2,FALSE)+ROW()-2))=Rebalance!$D$63,INDIRECT(\"a\" & (VLOOKUP(Rebalance!$D$63,$F$2:$G$48,2,FALSE)+ROW()-2)),\"\")","v":{"$error":"#N/A"}},{"$f":"IF(INDIRECT(\"c\" & (VLOOKUP(Rebalance!$D$64,$F$2:$G$48,2,FALSE)+ROW()-2))=Rebalance!$D$64,INDIRECT(\"a\" & (VLOOKUP(Rebalance!$D$64,$F$2:$G$48,2,FALSE)+ROW()-2)),\"\")","v":{"$error":"#N/A"}},{"$f":"IF(INDIRECT(\"c\" & (VLOOKUP(Rebalance!$D$65,$F$2:$G$48,2,FALSE)+ROW()-2))=Rebalance!$D$65,INDIRECT(\"a\" & (VLOOKUP(Rebalance!$D$65,$F$2:$G$48,2,FALSE)+ROW()-2)),\"\")","v":{"$error":"#N/A"}},{"$f":"IF(INDIRECT(\"c\" & (VLOOKUP(Rebalance!$D$66,$F$2:$G$48,2,FALSE)+ROW()-2))=Rebalance!$D$66,INDIRECT(\"a\" & (VLOOKUP(Rebalance!$D$66,$F$2:$G$48,2,FALSE)+ROW()-2)),\"\")","v":{"$error":"#N/A"}}]
["Old Mutual High Yield Opportunity Fund A","OMHY","Old Mutual Unit Trust Managers Limited",{"$f":"ROW()","v":417},null,null,{"$f":"VLOOKUP(F417,$C$2:$D$599,2,FALSE)","v":{"$error":"#N/A"}},{"$f":"IF(INDIRECT(\"c\" & (VLOOKUP(Rebalance!$D$26,$F$2:$G$48,2,FALSE)+ROW()-2))=Rebalance!$D$26,INDIRECT(\"a\" & (VLOOKUP(Rebalance!$D$26,$F$2:$G$48,2,FALSE)+ROW()-2)),\"\")","v":{"$error":"#N/A"}},{"$f":"IF(INDIRECT(\"c\" & (VLOOKUP(Rebalance!$D$27,$F$2:$G$48,2,FALSE)+ROW()-2))=Rebalance!$D$27,INDIRECT(\"a\" & (VLOOKUP(Rebalance!$D$27,$F$2:$G$48,2,FALSE)+ROW()-2)),\"\")","v":{"$error":"#N/A"}},{"$f":"IF(INDIRECT(\"c\" & (VLOOKUP(Rebalance!$D$28,$F$2:$G$48,2,FALSE)+ROW()-2))=Rebalance!$D$28,INDIRECT(\"a\" & (VLOOKUP(Rebalance!$D$28,$F$2:$G$48,2,FALSE)+ROW()-2)),\"\")","v":{"$error":"#N/A"}},{"$f":"IF(INDIRECT(\"c\" & (VLOOKUP(Rebalance!$D$29,$F$2:$G$48,2,FALSE)+ROW()-2))=Rebalance!$D$29,INDIRECT(\"a\" & (VLOOKUP(Rebalance!$D$29,$F$2:$G$48,2,FALSE)+ROW()-2)),\"\")","v":{"$error":"#N/A"}},{"$f":"IF(INDIRECT(\"c\" & (VLOOKUP(Rebalance!$D$30,$F$2:$G$48,2,FALSE)+ROW()-2))=Rebalance!$D$30,INDIRECT(\"a\" & (VLOOKUP(Rebalance!$D$30,$F$2:$G$48,2,FALSE)+ROW()-2)),\"\")","v":{"$error":"#N/A"}},{"$f":"IF(INDIRECT(\"c\" & (VLOOKUP(Rebalance!$D$31,$F$2:$G$48,2,FALSE)+ROW()-2))=Rebalance!$D$31,INDIRECT(\"a\" & (VLOOKUP(Rebalance!$D$31,$F$2:$G$48,2,FALSE)+ROW()-2)),\"\")","v":{"$error":"#N/A"}},{"$f":"IF(INDIRECT(\"c\" & (VLOOKUP(Rebalance!$D$32,$F$2:$G$48,2,FALSE)+ROW()-2))=Rebalance!$D$32,INDIRECT(\"a\" & (VLOOKUP(Rebalance!$D$32,$F$2:$G$48,2,FALSE)+ROW()-2)),\"\")","v":{"$error":"#N/A"}},{"$f":"IF(INDIRECT(\"c\" & (VLOOKUP(Rebalance!$D$33,$F$2:$G$48,2,FALSE)+ROW()-2))=Rebalance!$D$33,INDIRECT(\"a\" & (VLOOKUP(Rebalance!$D$33,$F$2:$G$48,2,FALSE)+ROW()-2)),\"\")","v":{"$error":"#N/A"}},{"$f":"IF(INDIRECT(\"c\" & (VLOOKUP(Rebalance!$D$34,$F$2:$G$48,2,FALSE)+ROW()-2))=Rebalance!$D$34,INDIRECT(\"a\" & (VLOOKUP(Rebalance!$D$34,$F$2:$G$48,2,FALSE)+ROW()-2)),\"\")","v":{"$error":"#N/A"}},{"$f":"IF(INDIRECT(\"c\" & (VLOOKUP(Rebalance!$D$35,$F$2:$G$48,2,FALSE)+ROW()-2))=Rebalance!$D$35,INDIRECT(\"a\" & (VLOOKUP(Rebalance!$D$35,$F$2:$G$48,2,FALSE)+ROW()-2)),\"\")","v":{"$error":"#N/A"}},{"$f":"IF(INDIRECT(\"c\" & (VLOOKUP(Rebalance!$D$36,$F$2:$G$48,2,FALSE)+ROW()-2))=Rebalance!$D$36,INDIRECT(\"a\" & (VLOOKUP(Rebalance!$D$36,$F$2:$G$48,2,FALSE)+ROW()-2)),\"\")","v":{"$error":"#N/A"}},{"$f":"IF(INDIRECT(\"c\" & (VLOOKUP(Rebalance!$D$37,$F$2:$G$48,2,FALSE)+ROW()-2))=Rebalance!$D$37,INDIRECT(\"a\" & (VLOOKUP(Rebalance!$D$37,$F$2:$G$48,2,FALSE)+ROW()-2)),\"\")","v":{"$error":"#N/A"}},{"$f":"IF(INDIRECT(\"c\" & (VLOOKUP(Rebalance!$D$38,$F$2:$G$48,2,FALSE)+ROW()-2))=Rebalance!$D$38,INDIRECT(\"a\" & (VLOOKUP(Rebalance!$D$38,$F$2:$G$48,2,FALSE)+ROW()-2)),\"\")","v":{"$error":"#N/A"}},{"$f":"IF(INDIRECT(\"c\" & (VLOOKUP(Rebalance!$D$39,$F$2:$G$48,2,FALSE)+ROW()-2))=Rebalance!$D$39,INDIRECT(\"a\" & (VLOOKUP(Rebalance!$D$39,$F$2:$G$48,2,FALSE)+ROW()-2)),\"\")","v":{"$error":"#N/A"}},{"$f":"IF(INDIRECT(\"c\" & (VLOOKUP(Rebalance!$D$40,$F$2:$G$48,2,FALSE)+ROW()-2))=Rebalance!$D$40,INDIRECT(\"a\" & (VLOOKUP(Rebalance!$D$40,$F$2:$G$48,2,FALSE)+ROW()-2)),\"\")","v":{"$error":"#N/A"}},{"$f":"IF(INDIRECT(\"c\" & (VLOOKUP(Rebalance!$D$52,$F$2:$G$48,2,FALSE)+ROW()-2))=Rebalance!$D$52,INDIRECT(\"a\" & (VLOOKUP(Rebalance!$D$52,$F$2:$G$48,2,FALSE)+ROW()-2)),\"\")","v":{"$error":"#N/A"}},{"$f":"IF(INDIRECT(\"c\" & (VLOOKUP(Rebalance!$D$53,$F$2:$G$48,2,FALSE)+ROW()-2))=Rebalance!$D$53,INDIRECT(\"a\" & (VLOOKUP(Rebalance!$D$53,$F$2:$G$48,2,FALSE)+ROW()-2)),\"\")","v":{"$error":"#N/A"}},{"$f":"IF(INDIRECT(\"c\" & (VLOOKUP(Rebalance!$D$54,$F$2:$G$48,2,FALSE)+ROW()-2))=Rebalance!$D$54,INDIRECT(\"a\" & (VLOOKUP(Rebalance!$D$54,$F$2:$G$48,2,FALSE)+ROW()-2)),\"\")","v":{"$error":"#N/A"}},{"$f":"IF(INDIRECT(\"c\" & (VLOOKUP(Rebalance!$D$55,$F$2:$G$48,2,FALSE)+ROW()-2))=Rebalance!$D$55,INDIRECT(\"a\" & (VLOOKUP(Rebalance!$D$55,$F$2:$G$48,2,FALSE)+ROW()-2)),\"\")","v":{"$error":"#N/A"}},{"$f":"IF(INDIRECT(\"c\" & (VLOOKUP(Rebalance!$D$56,$F$2:$G$48,2,FALSE)+ROW()-2))=Rebalance!$D$56,INDIRECT(\"a\" & (VLOOKUP(Rebalance!$D$56,$F$2:$G$48,2,FALSE)+ROW()-2)),\"\")","v":{"$error":"#N/A"}},{"$f":"IF(INDIRECT(\"c\" & (VLOOKUP(Rebalance!$D$57,$F$2:$G$48,2,FALSE)+ROW()-2))=Rebalance!$D$57,INDIRECT(\"a\" & (VLOOKUP(Rebalance!$D$57,$F$2:$G$48,2,FALSE)+ROW()-2)),\"\")","v":{"$error":"#N/A"}},{"$f":"IF(INDIRECT(\"c\" & (VLOOKUP(Rebalance!$D$58,$F$2:$G$48,2,FALSE)+ROW()-2))=Rebalance!$D$58,INDIRECT(\"a\" & (VLOOKUP(Rebalance!$D$58,$F$2:$G$48,2,FALSE)+ROW()-2)),\"\")","v":{"$error":"#N/A"}},{"$f":"IF(INDIRECT(\"c\" & (VLOOKUP(Rebalance!$D$59,$F$2:$G$48,2,FALSE)+ROW()-2))=Rebalance!$D$59,INDIRECT(\"a\" & (VLOOKUP(Rebalance!$D$59,$F$2:$G$48,2,FALSE)+ROW()-2)),\"\")","v":{"$error":"#N/A"}},{"$f":"IF(INDIRECT(\"c\" & (VLOOKUP(Rebalance!$D$60,$F$2:$G$48,2,FALSE)+ROW()-2))=Rebalance!$D$60,INDIRECT(\"a\" & (VLOOKUP(Rebalance!$D$60,$F$2:$G$48,2,FALSE)+ROW()-2)),\"\")","v":{"$error":"#N/A"}},{"$f":"IF(INDIRECT(\"c\" & (VLOOKUP(Rebalance!$D$61,$F$2:$G$48,2,FALSE)+ROW()-2))=Rebalance!$D$61,INDIRECT(\"a\" & (VLOOKUP(Rebalance!$D$61,$F$2:$G$48,2,FALSE)+ROW()-2)),\"\")","v":{"$error":"#N/A"}},{"$f":"IF(INDIRECT(\"c\" & (VLOOKUP(Rebalance!$D$62,$F$2:$G$48,2,FALSE)+ROW()-2))=Rebalance!$D$62,INDIRECT(\"a\" & (VLOOKUP(Rebalance!$D$62,$F$2:$G$48,2,FALSE)+ROW()-2)),\"\")","v":{"$error":"#N/A"}},{"$f":"IF(INDIRECT(\"c\" & (VLOOKUP(Rebalance!$D$63,$F$2:$G$48,2,FALSE)+ROW()-2))=Rebalance!$D$63,INDIRECT(\"a\" & (VLOOKUP(Rebalance!$D$63,$F$2:$G$48,2,FALSE)+ROW()-2)),\"\")","v":{"$error":"#N/A"}},{"$f":"IF(INDIRECT(\"c\" & (VLOOKUP(Rebalance!$D$64,$F$2:$G$48,2,FALSE)+ROW()-2))=Rebalance!$D$64,INDIRECT(\"a\" & (VLOOKUP(Rebalance!$D$64,$F$2:$G$48,2,FALSE)+ROW()-2)),\"\")","v":{"$error":"#N/A"}},{"$f":"IF(INDIRECT(\"c\" & (VLOOKUP(Rebalance!$D$65,$F$2:$G$48,2,FALSE)+ROW()-2))=Rebalance!$D$65,INDIRECT(\"a\" & (VLOOKUP(Rebalance!$D$65,$F$2:$G$48,2,FALSE)+ROW()-2)),\"\")","v":{"$error":"#N/A"}},{"$f":"IF(INDIRECT(\"c\" & (VLOOKUP(Rebalance!$D$66,$F$2:$G$48,2,FALSE)+ROW()-2))=Rebalance!$D$66,INDIRECT(\"a\" & (VLOOKUP(Rebalance!$D$66,$F$2:$G$48,2,FALSE)+ROW()-2)),\"\")","v":{"$error":"#N/A"}}]
["Old Mutual High Yield Opportunity Fund B1","OMHY","Old Mutual Unit Trust Managers Limited",{"$f":"ROW()","v":418},null,null,{"$f":"VLOOKUP(F418,$C$2:$D$599,2,FALSE)","v":{"$error":"#N/A"}},{"$f":"IF(INDIRECT(\"c\" & (VLOOKUP(Rebalance!$D$26,$F$2:$G$48,2,FALSE)+ROW()-2))=Rebalance!$D$26,INDIRECT(\"a\" & (VLOOKUP(Rebalance!$D$26,$F$2:$G$48,2,FALSE)+ROW()-2)),\"\")","v":{"$error":"#N/A"}},{"$f":"IF(INDIRECT(\"c\" & (VLOOKUP(Rebalance!$D$27,$F$2:$G$48,2,FALSE)+ROW()-2))=Rebalance!$D$27,INDIRECT(\"a\" & (VLOOKUP(Rebalance!$D$27,$F$2:$G$48,2,FALSE)+ROW()-2)),\"\")","v":{"$error":"#N/A"}},{"$f":"IF(INDIRECT(\"c\" & (VLOOKUP(Rebalance!$D$28,$F$2:$G$48,2,FALSE)+ROW()-2))=Rebalance!$D$28,INDIRECT(\"a\" & (VLOOKUP(Rebalance!$D$28,$F$2:$G$48,2,FALSE)+ROW()-2)),\"\")","v":{"$error":"#N/A"}},{"$f":"IF(INDIRECT(\"c\" & (VLOOKUP(Rebalance!$D$29,$F$2:$G$48,2,FALSE)+ROW()-2))=Rebalance!$D$29,INDIRECT(\"a\" & (VLOOKUP(Rebalance!$D$29,$F$2:$G$48,2,FALSE)+ROW()-2)),\"\")","v":{"$error":"#N/A"}},{"$f":"IF(INDIRECT(\"c\" & (VLOOKUP(Rebalance!$D$30,$F$2:$G$48,2,FALSE)+ROW()-2))=Rebalance!$D$30,INDIRECT(\"a\" & (VLOOKUP(Rebalance!$D$30,$F$2:$G$48,2,FALSE)+ROW()-2)),\"\")","v":{"$error":"#N/A"}},{"$f":"IF(INDIRECT(\"c\" & (VLOOKUP(Rebalance!$D$31,$F$2:$G$48,2,FALSE)+ROW()-2))=Rebalance!$D$31,INDIRECT(\"a\" & (VLOOKUP(Rebalance!$D$31,$F$2:$G$48,2,FALSE)+ROW()-2)),\"\")","v":{"$error":"#N/A"}},{"$f":"IF(INDIRECT(\"c\" & (VLOOKUP(Rebalance!$D$32,$F$2:$G$48,2,FALSE)+ROW()-2))=Rebalance!$D$32,INDIRECT(\"a\" & (VLOOKUP(Rebalance!$D$32,$F$2:$G$48,2,FALSE)+ROW()-2)),\"\")","v":{"$error":"#N/A"}},{"$f":"IF(INDIRECT(\"c\" & (VLOOKUP(Rebalance!$D$33,$F$2:$G$48,2,FALSE)+ROW()-2))=Rebalance!$D$33,INDIRECT(\"a\" & (VLOOKUP(Rebalance!$D$33,$F$2:$G$48,2,FALSE)+ROW()-2)),\"\")","v":{"$error":"#N/A"}},{"$f":"IF(INDIRECT(\"c\" & (VLOOKUP(Rebalance!$D$34,$F$2:$G$48,2,FALSE)+ROW()-2))=Rebalance!$D$34,INDIRECT(\"a\" & (VLOOKUP(Rebalance!$D$34,$F$2:$G$48,2,FALSE)+ROW()-2)),\"\")","v":{"$error":"#N/A"}},{"$f":"IF(INDIRECT(\"c\" & (VLOOKUP(Rebalance!$D$35,$F$2:$G$48,2,FALSE)+ROW()-2))=Rebalance!$D$35,INDIRECT(\"a\" & (VLOOKUP(Rebalance!$D$35,$F$2:$G$48,2,FALSE)+ROW()-2)),\"\")","v":{"$error":"#N/A"}},{"$f":"IF(INDIRECT(\"c\" & (VLOOKUP(Rebalance!$D$36,$F$2:$G$48,2,FALSE)+ROW()-2))=Rebalance!$D$36,INDIRECT(\"a\" & (VLOOKUP(Rebalance!$D$36,$F$2:$G$48,2,FALSE)+ROW()-2)),\"\")","v":{"$error":"#N/A"}},{"$f":"IF(INDIRECT(\"c\" & (VLOOKUP(Rebalance!$D$37,$F$2:$G$48,2,FALSE)+ROW()-2))=Rebalance!$D$37,INDIRECT(\"a\" & (VLOOKUP(Rebalance!$D$37,$F$2:$G$48,2,FALSE)+ROW()-2)),\"\")","v":{"$error":"#N/A"}},{"$f":"IF(INDIRECT(\"c\" & (VLOOKUP(Rebalance!$D$38,$F$2:$G$48,2,FALSE)+ROW()-2))=Rebalance!$D$38,INDIRECT(\"a\" & (VLOOKUP(Rebalance!$D$38,$F$2:$G$48,2,FALSE)+ROW()-2)),\"\")","v":{"$error":"#N/A"}},{"$f":"IF(INDIRECT(\"c\" & (VLOOKUP(Rebalance!$D$39,$F$2:$G$48,2,FALSE)+ROW()-2))=Rebalance!$D$39,INDIRECT(\"a\" & (VLOOKUP(Rebalance!$D$39,$F$2:$G$48,2,FALSE)+ROW()-2)),\"\")","v":{"$error":"#N/A"}},{"$f":"IF(INDIRECT(\"c\" & (VLOOKUP(Rebalance!$D$40,$F$2:$G$48,2,FALSE)+ROW()-2))=Rebalance!$D$40,INDIRECT(\"a\" & (VLOOKUP(Rebalance!$D$40,$F$2:$G$48,2,FALSE)+ROW()-2)),\"\")","v":{"$error":"#N/A"}},{"$f":"IF(INDIRECT(\"c\" & (VLOOKUP(Rebalance!$D$52,$F$2:$G$48,2,FALSE)+ROW()-2))=Rebalance!$D$52,INDIRECT(\"a\" & (VLOOKUP(Rebalance!$D$52,$F$2:$G$48,2,FALSE)+ROW()-2)),\"\")","v":{"$error":"#N/A"}},{"$f":"IF(INDIRECT(\"c\" & (VLOOKUP(Rebalance!$D$53,$F$2:$G$48,2,FALSE)+ROW()-2))=Rebalance!$D$53,INDIRECT(\"a\" & (VLOOKUP(Rebalance!$D$53,$F$2:$G$48,2,FALSE)+ROW()-2)),\"\")","v":{"$error":"#N/A"}},{"$f":"IF(INDIRECT(\"c\" & (VLOOKUP(Rebalance!$D$54,$F$2:$G$48,2,FALSE)+ROW()-2))=Rebalance!$D$54,INDIRECT(\"a\" & (VLOOKUP(Rebalance!$D$54,$F$2:$G$48,2,FALSE)+ROW()-2)),\"\")","v":{"$error":"#N/A"}},{"$f":"IF(INDIRECT(\"c\" & (VLOOKUP(Rebalance!$D$55,$F$2:$G$48,2,FALSE)+ROW()-2))=Rebalance!$D$55,INDIRECT(\"a\" & (VLOOKUP(Rebalance!$D$55,$F$2:$G$48,2,FALSE)+ROW()-2)),\"\")","v":{"$error":"#N/A"}},{"$f":"IF(INDIRECT(\"c\" & (VLOOKUP(Rebalance!$D$56,$F$2:$G$48,2,FALSE)+ROW()-2))=Rebalance!$D$56,INDIRECT(\"a\" & (VLOOKUP(Rebalance!$D$56,$F$2:$G$48,2,FALSE)+ROW()-2)),\"\")","v":{"$error":"#N/A"}},{"$f":"IF(INDIRECT(\"c\" & (VLOOKUP(Rebalance!$D$57,$F$2:$G$48,2,FALSE)+ROW()-2))=Rebalance!$D$57,INDIRECT(\"a\" & (VLOOKUP(Rebalance!$D$57,$F$2:$G$48,2,FALSE)+ROW()-2)),\"\")","v":{"$error":"#N/A"}},{"$f":"IF(INDIRECT(\"c\" & (VLOOKUP(Rebalance!$D$58,$F$2:$G$48,2,FALSE)+ROW()-2))=Rebalance!$D$58,INDIRECT(\"a\" & (VLOOKUP(Rebalance!$D$58,$F$2:$G$48,2,FALSE)+ROW()-2)),\"\")","v":{"$error":"#N/A"}},{"$f":"IF(INDIRECT(\"c\" & (VLOOKUP(Rebalance!$D$59,$F$2:$G$48,2,FALSE)+ROW()-2))=Rebalance!$D$59,INDIRECT(\"a\" & (VLOOKUP(Rebalance!$D$59,$F$2:$G$48,2,FALSE)+ROW()-2)),\"\")","v":{"$error":"#N/A"}},{"$f":"IF(INDIRECT(\"c\" & (VLOOKUP(Rebalance!$D$60,$F$2:$G$48,2,FALSE)+ROW()-2))=Rebalance!$D$60,INDIRECT(\"a\" & (VLOOKUP(Rebalance!$D$60,$F$2:$G$48,2,FALSE)+ROW()-2)),\"\")","v":{"$error":"#N/A"}},{"$f":"IF(INDIRECT(\"c\" & (VLOOKUP(Rebalance!$D$61,$F$2:$G$48,2,FALSE)+ROW()-2))=Rebalance!$D$61,INDIRECT(\"a\" & (VLOOKUP(Rebalance!$D$61,$F$2:$G$48,2,FALSE)+ROW()-2)),\"\")","v":{"$error":"#N/A"}},{"$f":"IF(INDIRECT(\"c\" & (VLOOKUP(Rebalance!$D$62,$F$2:$G$48,2,FALSE)+ROW()-2))=Rebalance!$D$62,INDIRECT(\"a\" & (VLOOKUP(Rebalance!$D$62,$F$2:$G$48,2,FALSE)+ROW()-2)),\"\")","v":{"$error":"#N/A"}},{"$f":"IF(INDIRECT(\"c\" & (VLOOKUP(Rebalance!$D$63,$F$2:$G$48,2,FALSE)+ROW()-2))=Rebalance!$D$63,INDIRECT(\"a\" & (VLOOKUP(Rebalance!$D$63,$F$2:$G$48,2,FALSE)+ROW()-2)),\"\")","v":{"$error":"#N/A"}},{"$f":"IF(INDIRECT(\"c\" & (VLOOKUP(Rebalance!$D$64,$F$2:$G$48,2,FALSE)+ROW()-2))=Rebalance!$D$64,INDIRECT(\"a\" & (VLOOKUP(Rebalance!$D$64,$F$2:$G$48,2,FALSE)+ROW()-2)),\"\")","v":{"$error":"#N/A"}},{"$f":"IF(INDIRECT(\"c\" & (VLOOKUP(Rebalance!$D$65,$F$2:$G$48,2,FALSE)+ROW()-2))=Rebalance!$D$65,INDIRECT(\"a\" & (VLOOKUP(Rebalance!$D$65,$F$2:$G$48,2,FALSE)+ROW()-2)),\"\")","v":{"$error":"#N/A"}},{"$f":"IF(INDIRECT(\"c\" & (VLOOKUP(Rebalance!$D$66,$F$2:$G$48,2,FALSE)+ROW()-2))=Rebalance!$D$66,INDIRECT(\"a\" & (VLOOKUP(Rebalance!$D$66,$F$2:$G$48,2,FALSE)+ROW()-2)),\"\")","v":{"$error":"#N/A"}}]
["Old Mutual Income Fund","OMIB1","Old Mutual Unit Trust Managers Limited",{"$f":"ROW()","v":419},null,null,{"$f":"VLOOKUP(F419,$C$2:$D$599,2,FALSE)","v":{"$error":"#N/A"}},{"$f":"IF(INDIRECT(\"c\" & (VLOOKUP(Rebalance!$D$26,$F$2:$G$48,2,FALSE)+ROW()-2))=Rebalance!$D$26,INDIRECT(\"a\" & (VLOOKUP(Rebalance!$D$26,$F$2:$G$48,2,FALSE)+ROW()-2)),\"\")","v":{"$error":"#N/A"}},{"$f":"IF(INDIRECT(\"c\" & (VLOOKUP(Rebalance!$D$27,$F$2:$G$48,2,FALSE)+ROW()-2))=Rebalance!$D$27,INDIRECT(\"a\" & (VLOOKUP(Rebalance!$D$27,$F$2:$G$48,2,FALSE)+ROW()-2)),\"\")","v":{"$error":"#N/A"}},{"$f":"IF(INDIRECT(\"c\" & (VLOOKUP(Rebalance!$D$28,$F$2:$G$48,2,FALSE)+ROW()-2))=Rebalance!$D$28,INDIRECT(\"a\" & (VLOOKUP(Rebalance!$D$28,$F$2:$G$48,2,FALSE)+ROW()-2)),\"\")","v":{"$error":"#N/A"}},{"$f":"IF(INDIRECT(\"c\" & (VLOOKUP(Rebalance!$D$29,$F$2:$G$48,2,FALSE)+ROW()-2))=Rebalance!$D$29,INDIRECT(\"a\" & (VLOOKUP(Rebalance!$D$29,$F$2:$G$48,2,FALSE)+ROW()-2)),\"\")","v":{"$error":"#N/A"}},{"$f":"IF(INDIRECT(\"c\" & (VLOOKUP(Rebalance!$D$30,$F$2:$G$48,2,FALSE)+ROW()-2))=Rebalance!$D$30,INDIRECT(\"a\" & (VLOOKUP(Rebalance!$D$30,$F$2:$G$48,2,FALSE)+ROW()-2)),\"\")","v":{"$error":"#N/A"}},{"$f":"IF(INDIRECT(\"c\" & (VLOOKUP(Rebalance!$D$31,$F$2:$G$48,2,FALSE)+ROW()-2))=Rebalance!$D$31,INDIRECT(\"a\" & (VLOOKUP(Rebalance!$D$31,$F$2:$G$48,2,FALSE)+ROW()-2)),\"\")","v":{"$error":"#N/A"}},{"$f":"IF(INDIRECT(\"c\" & (VLOOKUP(Rebalance!$D$32,$F$2:$G$48,2,FALSE)+ROW()-2))=Rebalance!$D$32,INDIRECT(\"a\" & (VLOOKUP(Rebalance!$D$32,$F$2:$G$48,2,FALSE)+ROW()-2)),\"\")","v":{"$error":"#N/A"}},{"$f":"IF(INDIRECT(\"c\" & (VLOOKUP(Rebalance!$D$33,$F$2:$G$48,2,FALSE)+ROW()-2))=Rebalance!$D$33,INDIRECT(\"a\" & (VLOOKUP(Rebalance!$D$33,$F$2:$G$48,2,FALSE)+ROW()-2)),\"\")","v":{"$error":"#N/A"}},{"$f":"IF(INDIRECT(\"c\" & (VLOOKUP(Rebalance!$D$34,$F$2:$G$48,2,FALSE)+ROW()-2))=Rebalance!$D$34,INDIRECT(\"a\" & (VLOOKUP(Rebalance!$D$34,$F$2:$G$48,2,FALSE)+ROW()-2)),\"\")","v":{"$error":"#N/A"}},{"$f":"IF(INDIRECT(\"c\" & (VLOOKUP(Rebalance!$D$35,$F$2:$G$48,2,FALSE)+ROW()-2))=Rebalance!$D$35,INDIRECT(\"a\" & (VLOOKUP(Rebalance!$D$35,$F$2:$G$48,2,FALSE)+ROW()-2)),\"\")","v":{"$error":"#N/A"}},{"$f":"IF(INDIRECT(\"c\" & (VLOOKUP(Rebalance!$D$36,$F$2:$G$48,2,FALSE)+ROW()-2))=Rebalance!$D$36,INDIRECT(\"a\" & (VLOOKUP(Rebalance!$D$36,$F$2:$G$48,2,FALSE)+ROW()-2)),\"\")","v":{"$error":"#N/A"}},{"$f":"IF(INDIRECT(\"c\" & (VLOOKUP(Rebalance!$D$37,$F$2:$G$48,2,FALSE)+ROW()-2))=Rebalance!$D$37,INDIRECT(\"a\" & (VLOOKUP(Rebalance!$D$37,$F$2:$G$48,2,FALSE)+ROW()-2)),\"\")","v":{"$error":"#N/A"}},{"$f":"IF(INDIRECT(\"c\" & (VLOOKUP(Rebalance!$D$38,$F$2:$G$48,2,FALSE)+ROW()-2))=Rebalance!$D$38,INDIRECT(\"a\" & (VLOOKUP(Rebalance!$D$38,$F$2:$G$48,2,FALSE)+ROW()-2)),\"\")","v":{"$error":"#N/A"}},{"$f":"IF(INDIRECT(\"c\" & (VLOOKUP(Rebalance!$D$39,$F$2:$G$48,2,FALSE)+ROW()-2))=Rebalance!$D$39,INDIRECT(\"a\" & (VLOOKUP(Rebalance!$D$39,$F$2:$G$48,2,FALSE)+ROW()-2)),\"\")","v":{"$error":"#N/A"}},{"$f":"IF(INDIRECT(\"c\" & (VLOOKUP(Rebalance!$D$40,$F$2:$G$48,2,FALSE)+ROW()-2))=Rebalance!$D$40,INDIRECT(\"a\" & (VLOOKUP(Rebalance!$D$40,$F$2:$G$48,2,FALSE)+ROW()-2)),\"\")","v":{"$error":"#N/A"}},{"$f":"IF(INDIRECT(\"c\" & (VLOOKUP(Rebalance!$D$52,$F$2:$G$48,2,FALSE)+ROW()-2))=Rebalance!$D$52,INDIRECT(\"a\" & (VLOOKUP(Rebalance!$D$52,$F$2:$G$48,2,FALSE)+ROW()-2)),\"\")","v":{"$error":"#N/A"}},{"$f":"IF(INDIRECT(\"c\" & (VLOOKUP(Rebalance!$D$53,$F$2:$G$48,2,FALSE)+ROW()-2))=Rebalance!$D$53,INDIRECT(\"a\" & (VLOOKUP(Rebalance!$D$53,$F$2:$G$48,2,FALSE)+ROW()-2)),\"\")","v":{"$error":"#N/A"}},{"$f":"IF(INDIRECT(\"c\" & (VLOOKUP(Rebalance!$D$54,$F$2:$G$48,2,FALSE)+ROW()-2))=Rebalance!$D$54,INDIRECT(\"a\" & (VLOOKUP(Rebalance!$D$54,$F$2:$G$48,2,FALSE)+ROW()-2)),\"\")","v":{"$error":"#N/A"}},{"$f":"IF(INDIRECT(\"c\" & (VLOOKUP(Rebalance!$D$55,$F$2:$G$48,2,FALSE)+ROW()-2))=Rebalance!$D$55,INDIRECT(\"a\" & (VLOOKUP(Rebalance!$D$55,$F$2:$G$48,2,FALSE)+ROW()-2)),\"\")","v":{"$error":"#N/A"}},{"$f":"IF(INDIRECT(\"c\" & (VLOOKUP(Rebalance!$D$56,$F$2:$G$48,2,FALSE)+ROW()-2))=Rebalance!$D$56,INDIRECT(\"a\" & (VLOOKUP(Rebalance!$D$56,$F$2:$G$48,2,FALSE)+ROW()-2)),\"\")","v":{"$error":"#N/A"}},{"$f":"IF(INDIRECT(\"c\" & (VLOOKUP(Rebalance!$D$57,$F$2:$G$48,2,FALSE)+ROW()-2))=Rebalance!$D$57,INDIRECT(\"a\" & (VLOOKUP(Rebalance!$D$57,$F$2:$G$48,2,FALSE)+ROW()-2)),\"\")","v":{"$error":"#N/A"}},{"$f":"IF(INDIRECT(\"c\" & (VLOOKUP(Rebalance!$D$58,$F$2:$G$48,2,FALSE)+ROW()-2))=Rebalance!$D$58,INDIRECT(\"a\" & (VLOOKUP(Rebalance!$D$58,$F$2:$G$48,2,FALSE)+ROW()-2)),\"\")","v":{"$error":"#N/A"}},{"$f":"IF(INDIRECT(\"c\" & (VLOOKUP(Rebalance!$D$59,$F$2:$G$48,2,FALSE)+ROW()-2))=Rebalance!$D$59,INDIRECT(\"a\" & (VLOOKUP(Rebalance!$D$59,$F$2:$G$48,2,FALSE)+ROW()-2)),\"\")","v":{"$error":"#N/A"}},{"$f":"IF(INDIRECT(\"c\" & (VLOOKUP(Rebalance!$D$60,$F$2:$G$48,2,FALSE)+ROW()-2))=Rebalance!$D$60,INDIRECT(\"a\" & (VLOOKUP(Rebalance!$D$60,$F$2:$G$48,2,FALSE)+ROW()-2)),\"\")","v":{"$error":"#N/A"}},{"$f":"IF(INDIRECT(\"c\" & (VLOOKUP(Rebalance!$D$61,$F$2:$G$48,2,FALSE)+ROW()-2))=Rebalance!$D$61,INDIRECT(\"a\" & (VLOOKUP(Rebalance!$D$61,$F$2:$G$48,2,FALSE)+ROW()-2)),\"\")","v":{"$error":"#N/A"}},{"$f":"IF(INDIRECT(\"c\" & (VLOOKUP(Rebalance!$D$62,$F$2:$G$48,2,FALSE)+ROW()-2))=Rebalance!$D$62,INDIRECT(\"a\" & (VLOOKUP(Rebalance!$D$62,$F$2:$G$48,2,FALSE)+ROW()-2)),\"\")","v":{"$error":"#N/A"}},{"$f":"IF(INDIRECT(\"c\" & (VLOOKUP(Rebalance!$D$63,$F$2:$G$48,2,FALSE)+ROW()-2))=Rebalance!$D$63,INDIRECT(\"a\" & (VLOOKUP(Rebalance!$D$63,$F$2:$G$48,2,FALSE)+ROW()-2)),\"\")","v":{"$error":"#N/A"}},{"$f":"IF(INDIRECT(\"c\" & (VLOOKUP(Rebalance!$D$64,$F$2:$G$48,2,FALSE)+ROW()-2))=Rebalance!$D$64,INDIRECT(\"a\" & (VLOOKUP(Rebalance!$D$64,$F$2:$G$48,2,FALSE)+ROW()-2)),\"\")","v":{"$error":"#N/A"}},{"$f":"IF(INDIRECT(\"c\" & (VLOOKUP(Rebalance!$D$65,$F$2:$G$48,2,FALSE)+ROW()-2))=Rebalance!$D$65,INDIRECT(\"a\" & (VLOOKUP(Rebalance!$D$65,$F$2:$G$48,2,FALSE)+ROW()-2)),\"\")","v":{"$error":"#N/A"}},{"$f":"IF(INDIRECT(\"c\" & (VLOOKUP(Rebalance!$D$66,$F$2:$G$48,2,FALSE)+ROW()-2))=Rebalance!$D$66,INDIRECT(\"a\" & (VLOOKUP(Rebalance!$D$66,$F$2:$G$48,2,FALSE)+ROW()-2)),\"\")","v":{"$error":"#N/A"}}]
["Old Mutual Industrial Fund","OMCF","Old Mutual Unit Trust Managers Limited",{"$f":"ROW()","v":420},null,null,{"$f":"VLOOKUP(F420,$C$2:$D$599,2,FALSE)","v":{"$error":"#N/A"}},{"$f":"IF(INDIRECT(\"c\" & (VLOOKUP(Rebalance!$D$26,$F$2:$G$48,2,FALSE)+ROW()-2))=Rebalance!$D$26,INDIRECT(\"a\" & (VLOOKUP(Rebalance!$D$26,$F$2:$G$48,2,FALSE)+ROW()-2)),\"\")","v":{"$error":"#N/A"}},{"$f":"IF(INDIRECT(\"c\" & (VLOOKUP(Rebalance!$D$27,$F$2:$G$48,2,FALSE)+ROW()-2))=Rebalance!$D$27,INDIRECT(\"a\" & (VLOOKUP(Rebalance!$D$27,$F$2:$G$48,2,FALSE)+ROW()-2)),\"\")","v":{"$error":"#N/A"}},{"$f":"IF(INDIRECT(\"c\" & (VLOOKUP(Rebalance!$D$28,$F$2:$G$48,2,FALSE)+ROW()-2))=Rebalance!$D$28,INDIRECT(\"a\" & (VLOOKUP(Rebalance!$D$28,$F$2:$G$48,2,FALSE)+ROW()-2)),\"\")","v":{"$error":"#N/A"}},{"$f":"IF(INDIRECT(\"c\" & (VLOOKUP(Rebalance!$D$29,$F$2:$G$48,2,FALSE)+ROW()-2))=Rebalance!$D$29,INDIRECT(\"a\" & (VLOOKUP(Rebalance!$D$29,$F$2:$G$48,2,FALSE)+ROW()-2)),\"\")","v":{"$error":"#N/A"}},{"$f":"IF(INDIRECT(\"c\" & (VLOOKUP(Rebalance!$D$30,$F$2:$G$48,2,FALSE)+ROW()-2))=Rebalance!$D$30,INDIRECT(\"a\" & (VLOOKUP(Rebalance!$D$30,$F$2:$G$48,2,FALSE)+ROW()-2)),\"\")","v":{"$error":"#N/A"}},{"$f":"IF(INDIRECT(\"c\" & (VLOOKUP(Rebalance!$D$31,$F$2:$G$48,2,FALSE)+ROW()-2))=Rebalance!$D$31,INDIRECT(\"a\" & (VLOOKUP(Rebalance!$D$31,$F$2:$G$48,2,FALSE)+ROW()-2)),\"\")","v":{"$error":"#N/A"}},{"$f":"IF(INDIRECT(\"c\" & (VLOOKUP(Rebalance!$D$32,$F$2:$G$48,2,FALSE)+ROW()-2))=Rebalance!$D$32,INDIRECT(\"a\" & (VLOOKUP(Rebalance!$D$32,$F$2:$G$48,2,FALSE)+ROW()-2)),\"\")","v":{"$error":"#N/A"}},{"$f":"IF(INDIRECT(\"c\" & (VLOOKUP(Rebalance!$D$33,$F$2:$G$48,2,FALSE)+ROW()-2))=Rebalance!$D$33,INDIRECT(\"a\" & (VLOOKUP(Rebalance!$D$33,$F$2:$G$48,2,FALSE)+ROW()-2)),\"\")","v":{"$error":"#N/A"}},{"$f":"IF(INDIRECT(\"c\" & (VLOOKUP(Rebalance!$D$34,$F$2:$G$48,2,FALSE)+ROW()-2))=Rebalance!$D$34,INDIRECT(\"a\" & (VLOOKUP(Rebalance!$D$34,$F$2:$G$48,2,FALSE)+ROW()-2)),\"\")","v":{"$error":"#N/A"}},{"$f":"IF(INDIRECT(\"c\" & (VLOOKUP(Rebalance!$D$35,$F$2:$G$48,2,FALSE)+ROW()-2))=Rebalance!$D$35,INDIRECT(\"a\" & (VLOOKUP(Rebalance!$D$35,$F$2:$G$48,2,FALSE)+ROW()-2)),\"\")","v":{"$error":"#N/A"}},{"$f":"IF(INDIRECT(\"c\" & (VLOOKUP(Rebalance!$D$36,$F$2:$G$48,2,FALSE)+ROW()-2))=Rebalance!$D$36,INDIRECT(\"a\" & (VLOOKUP(Rebalance!$D$36,$F$2:$G$48,2,FALSE)+ROW()-2)),\"\")","v":{"$error":"#N/A"}},{"$f":"IF(INDIRECT(\"c\" & (VLOOKUP(Rebalance!$D$37,$F$2:$G$48,2,FALSE)+ROW()-2))=Rebalance!$D$37,INDIRECT(\"a\" & (VLOOKUP(Rebalance!$D$37,$F$2:$G$48,2,FALSE)+ROW()-2)),\"\")","v":{"$error":"#N/A"}},{"$f":"IF(INDIRECT(\"c\" & (VLOOKUP(Rebalance!$D$38,$F$2:$G$48,2,FALSE)+ROW()-2))=Rebalance!$D$38,INDIRECT(\"a\" & (VLOOKUP(Rebalance!$D$38,$F$2:$G$48,2,FALSE)+ROW()-2)),\"\")","v":{"$error":"#N/A"}},{"$f":"IF(INDIRECT(\"c\" & (VLOOKUP(Rebalance!$D$39,$F$2:$G$48,2,FALSE)+ROW()-2))=Rebalance!$D$39,INDIRECT(\"a\" & (VLOOKUP(Rebalance!$D$39,$F$2:$G$48,2,FALSE)+ROW()-2)),\"\")","v":{"$error":"#N/A"}},{"$f":"IF(INDIRECT(\"c\" & (VLOOKUP(Rebalance!$D$40,$F$2:$G$48,2,FALSE)+ROW()-2))=Rebalance!$D$40,INDIRECT(\"a\" & (VLOOKUP(Rebalance!$D$40,$F$2:$G$48,2,FALSE)+ROW()-2)),\"\")","v":{"$error":"#N/A"}},{"$f":"IF(INDIRECT(\"c\" & (VLOOKUP(Rebalance!$D$52,$F$2:$G$48,2,FALSE)+ROW()-2))=Rebalance!$D$52,INDIRECT(\"a\" & (VLOOKUP(Rebalance!$D$52,$F$2:$G$48,2,FALSE)+ROW()-2)),\"\")","v":{"$error":"#N/A"}},{"$f":"IF(INDIRECT(\"c\" & (VLOOKUP(Rebalance!$D$53,$F$2:$G$48,2,FALSE)+ROW()-2))=Rebalance!$D$53,INDIRECT(\"a\" & (VLOOKUP(Rebalance!$D$53,$F$2:$G$48,2,FALSE)+ROW()-2)),\"\")","v":{"$error":"#N/A"}},{"$f":"IF(INDIRECT(\"c\" & (VLOOKUP(Rebalance!$D$54,$F$2:$G$48,2,FALSE)+ROW()-2))=Rebalance!$D$54,INDIRECT(\"a\" & (VLOOKUP(Rebalance!$D$54,$F$2:$G$48,2,FALSE)+ROW()-2)),\"\")","v":{"$error":"#N/A"}},{"$f":"IF(INDIRECT(\"c\" & (VLOOKUP(Rebalance!$D$55,$F$2:$G$48,2,FALSE)+ROW()-2))=Rebalance!$D$55,INDIRECT(\"a\" & (VLOOKUP(Rebalance!$D$55,$F$2:$G$48,2,FALSE)+ROW()-2)),\"\")","v":{"$error":"#N/A"}},{"$f":"IF(INDIRECT(\"c\" & (VLOOKUP(Rebalance!$D$56,$F$2:$G$48,2,FALSE)+ROW()-2))=Rebalance!$D$56,INDIRECT(\"a\" & (VLOOKUP(Rebalance!$D$56,$F$2:$G$48,2,FALSE)+ROW()-2)),\"\")","v":{"$error":"#N/A"}},{"$f":"IF(INDIRECT(\"c\" & (VLOOKUP(Rebalance!$D$57,$F$2:$G$48,2,FALSE)+ROW()-2))=Rebalance!$D$57,INDIRECT(\"a\" & (VLOOKUP(Rebalance!$D$57,$F$2:$G$48,2,FALSE)+ROW()-2)),\"\")","v":{"$error":"#N/A"}},{"$f":"IF(INDIRECT(\"c\" & (VLOOKUP(Rebalance!$D$58,$F$2:$G$48,2,FALSE)+ROW()-2))=Rebalance!$D$58,INDIRECT(\"a\" & (VLOOKUP(Rebalance!$D$58,$F$2:$G$48,2,FALSE)+ROW()-2)),\"\")","v":{"$error":"#N/A"}},{"$f":"IF(INDIRECT(\"c\" & (VLOOKUP(Rebalance!$D$59,$F$2:$G$48,2,FALSE)+ROW()-2))=Rebalance!$D$59,INDIRECT(\"a\" & (VLOOKUP(Rebalance!$D$59,$F$2:$G$48,2,FALSE)+ROW()-2)),\"\")","v":{"$error":"#N/A"}},{"$f":"IF(INDIRECT(\"c\" & (VLOOKUP(Rebalance!$D$60,$F$2:$G$48,2,FALSE)+ROW()-2))=Rebalance!$D$60,INDIRECT(\"a\" & (VLOOKUP(Rebalance!$D$60,$F$2:$G$48,2,FALSE)+ROW()-2)),\"\")","v":{"$error":"#N/A"}},{"$f":"IF(INDIRECT(\"c\" & (VLOOKUP(Rebalance!$D$61,$F$2:$G$48,2,FALSE)+ROW()-2))=Rebalance!$D$61,INDIRECT(\"a\" & (VLOOKUP(Rebalance!$D$61,$F$2:$G$48,2,FALSE)+ROW()-2)),\"\")","v":{"$error":"#N/A"}},{"$f":"IF(INDIRECT(\"c\" & (VLOOKUP(Rebalance!$D$62,$F$2:$G$48,2,FALSE)+ROW()-2))=Rebalance!$D$62,INDIRECT(\"a\" & (VLOOKUP(Rebalance!$D$62,$F$2:$G$48,2,FALSE)+ROW()-2)),\"\")","v":{"$error":"#N/A"}},{"$f":"IF(INDIRECT(\"c\" & (VLOOKUP(Rebalance!$D$63,$F$2:$G$48,2,FALSE)+ROW()-2))=Rebalance!$D$63,INDIRECT(\"a\" & (VLOOKUP(Rebalance!$D$63,$F$2:$G$48,2,FALSE)+ROW()-2)),\"\")","v":{"$error":"#N/A"}},{"$f":"IF(INDIRECT(\"c\" & (VLOOKUP(Rebalance!$D$64,$F$2:$G$48,2,FALSE)+ROW()-2))=Rebalance!$D$64,INDIRECT(\"a\" & (VLOOKUP(Rebalance!$D$64,$F$2:$G$48,2,FALSE)+ROW()-2)),\"\")","v":{"$error":"#N/A"}},{"$f":"IF(INDIRECT(\"c\" & (VLOOKUP(Rebalance!$D$65,$F$2:$G$48,2,FALSE)+ROW()-2))=Rebalance!$D$65,INDIRECT(\"a\" & (VLOOKUP(Rebalance!$D$65,$F$2:$G$48,2,FALSE)+ROW()-2)),\"\")","v":{"$error":"#N/A"}},{"$f":"IF(INDIRECT(\"c\" & (VLOOKUP(Rebalance!$D$66,$F$2:$G$48,2,FALSE)+ROW()-2))=Rebalance!$D$66,INDIRECT(\"a\" & (VLOOKUP(Rebalance!$D$66,$F$2:$G$48,2,FALSE)+ROW()-2)),\"\")","v":{"$error":"#N/A"}}]
["Old Mutual International Growth FoF B","OMIG","Old Mutual Unit Trust Managers Limited",{"$f":"ROW()","v":421},null,null,{"$f":"VLOOKUP(F421,$C$2:$D$599,2,FALSE)","v":{"$error":"#N/A"}},{"$f":"IF(INDIRECT(\"c\" & (VLOOKUP(Rebalance!$D$26,$F$2:$G$48,2,FALSE)+ROW()-2))=Rebalance!$D$26,INDIRECT(\"a\" & (VLOOKUP(Rebalance!$D$26,$F$2:$G$48,2,FALSE)+ROW()-2)),\"\")","v":{"$error":"#N/A"}},{"$f":"IF(INDIRECT(\"c\" & (VLOOKUP(Rebalance!$D$27,$F$2:$G$48,2,FALSE)+ROW()-2))=Rebalance!$D$27,INDIRECT(\"a\" & (VLOOKUP(Rebalance!$D$27,$F$2:$G$48,2,FALSE)+ROW()-2)),\"\")","v":{"$error":"#N/A"}},{"$f":"IF(INDIRECT(\"c\" & (VLOOKUP(Rebalance!$D$28,$F$2:$G$48,2,FALSE)+ROW()-2))=Rebalance!$D$28,INDIRECT(\"a\" & (VLOOKUP(Rebalance!$D$28,$F$2:$G$48,2,FALSE)+ROW()-2)),\"\")","v":{"$error":"#N/A"}},{"$f":"IF(INDIRECT(\"c\" & (VLOOKUP(Rebalance!$D$29,$F$2:$G$48,2,FALSE)+ROW()-2))=Rebalance!$D$29,INDIRECT(\"a\" & (VLOOKUP(Rebalance!$D$29,$F$2:$G$48,2,FALSE)+ROW()-2)),\"\")","v":{"$error":"#N/A"}},{"$f":"IF(INDIRECT(\"c\" & (VLOOKUP(Rebalance!$D$30,$F$2:$G$48,2,FALSE)+ROW()-2))=Rebalance!$D$30,INDIRECT(\"a\" & (VLOOKUP(Rebalance!$D$30,$F$2:$G$48,2,FALSE)+ROW()-2)),\"\")","v":{"$error":"#N/A"}},{"$f":"IF(INDIRECT(\"c\" & (VLOOKUP(Rebalance!$D$31,$F$2:$G$48,2,FALSE)+ROW()-2))=Rebalance!$D$31,INDIRECT(\"a\" & (VLOOKUP(Rebalance!$D$31,$F$2:$G$48,2,FALSE)+ROW()-2)),\"\")","v":{"$error":"#N/A"}},{"$f":"IF(INDIRECT(\"c\" & (VLOOKUP(Rebalance!$D$32,$F$2:$G$48,2,FALSE)+ROW()-2))=Rebalance!$D$32,INDIRECT(\"a\" & (VLOOKUP(Rebalance!$D$32,$F$2:$G$48,2,FALSE)+ROW()-2)),\"\")","v":{"$error":"#N/A"}},{"$f":"IF(INDIRECT(\"c\" & (VLOOKUP(Rebalance!$D$33,$F$2:$G$48,2,FALSE)+ROW()-2))=Rebalance!$D$33,INDIRECT(\"a\" & (VLOOKUP(Rebalance!$D$33,$F$2:$G$48,2,FALSE)+ROW()-2)),\"\")","v":{"$error":"#N/A"}},{"$f":"IF(INDIRECT(\"c\" & (VLOOKUP(Rebalance!$D$34,$F$2:$G$48,2,FALSE)+ROW()-2))=Rebalance!$D$34,INDIRECT(\"a\" & (VLOOKUP(Rebalance!$D$34,$F$2:$G$48,2,FALSE)+ROW()-2)),\"\")","v":{"$error":"#N/A"}},{"$f":"IF(INDIRECT(\"c\" & (VLOOKUP(Rebalance!$D$35,$F$2:$G$48,2,FALSE)+ROW()-2))=Rebalance!$D$35,INDIRECT(\"a\" & (VLOOKUP(Rebalance!$D$35,$F$2:$G$48,2,FALSE)+ROW()-2)),\"\")","v":{"$error":"#N/A"}},{"$f":"IF(INDIRECT(\"c\" & (VLOOKUP(Rebalance!$D$36,$F$2:$G$48,2,FALSE)+ROW()-2))=Rebalance!$D$36,INDIRECT(\"a\" & (VLOOKUP(Rebalance!$D$36,$F$2:$G$48,2,FALSE)+ROW()-2)),\"\")","v":{"$error":"#N/A"}},{"$f":"IF(INDIRECT(\"c\" & (VLOOKUP(Rebalance!$D$37,$F$2:$G$48,2,FALSE)+ROW()-2))=Rebalance!$D$37,INDIRECT(\"a\" & (VLOOKUP(Rebalance!$D$37,$F$2:$G$48,2,FALSE)+ROW()-2)),\"\")","v":{"$error":"#N/A"}},{"$f":"IF(INDIRECT(\"c\" & (VLOOKUP(Rebalance!$D$38,$F$2:$G$48,2,FALSE)+ROW()-2))=Rebalance!$D$38,INDIRECT(\"a\" & (VLOOKUP(Rebalance!$D$38,$F$2:$G$48,2,FALSE)+ROW()-2)),\"\")","v":{"$error":"#N/A"}},{"$f":"IF(INDIRECT(\"c\" & (VLOOKUP(Rebalance!$D$39,$F$2:$G$48,2,FALSE)+ROW()-2))=Rebalance!$D$39,INDIRECT(\"a\" & (VLOOKUP(Rebalance!$D$39,$F$2:$G$48,2,FALSE)+ROW()-2)),\"\")","v":{"$error":"#N/A"}},{"$f":"IF(INDIRECT(\"c\" & (VLOOKUP(Rebalance!$D$40,$F$2:$G$48,2,FALSE)+ROW()-2))=Rebalance!$D$40,INDIRECT(\"a\" & (VLOOKUP(Rebalance!$D$40,$F$2:$G$48,2,FALSE)+ROW()-2)),\"\")","v":{"$error":"#N/A"}},{"$f":"IF(INDIRECT(\"c\" & (VLOOKUP(Rebalance!$D$52,$F$2:$G$48,2,FALSE)+ROW()-2))=Rebalance!$D$52,INDIRECT(\"a\" & (VLOOKUP(Rebalance!$D$52,$F$2:$G$48,2,FALSE)+ROW()-2)),\"\")","v":{"$error":"#N/A"}},{"$f":"IF(INDIRECT(\"c\" & (VLOOKUP(Rebalance!$D$53,$F$2:$G$48,2,FALSE)+ROW()-2))=Rebalance!$D$53,INDIRECT(\"a\" & (VLOOKUP(Rebalance!$D$53,$F$2:$G$48,2,FALSE)+ROW()-2)),\"\")","v":{"$error":"#N/A"}},{"$f":"IF(INDIRECT(\"c\" & (VLOOKUP(Rebalance!$D$54,$F$2:$G$48,2,FALSE)+ROW()-2))=Rebalance!$D$54,INDIRECT(\"a\" & (VLOOKUP(Rebalance!$D$54,$F$2:$G$48,2,FALSE)+ROW()-2)),\"\")","v":{"$error":"#N/A"}},{"$f":"IF(INDIRECT(\"c\" & (VLOOKUP(Rebalance!$D$55,$F$2:$G$48,2,FALSE)+ROW()-2))=Rebalance!$D$55,INDIRECT(\"a\" & (VLOOKUP(Rebalance!$D$55,$F$2:$G$48,2,FALSE)+ROW()-2)),\"\")","v":{"$error":"#N/A"}},{"$f":"IF(INDIRECT(\"c\" & (VLOOKUP(Rebalance!$D$56,$F$2:$G$48,2,FALSE)+ROW()-2))=Rebalance!$D$56,INDIRECT(\"a\" & (VLOOKUP(Rebalance!$D$56,$F$2:$G$48,2,FALSE)+ROW()-2)),\"\")","v":{"$error":"#N/A"}},{"$f":"IF(INDIRECT(\"c\" & (VLOOKUP(Rebalance!$D$57,$F$2:$G$48,2,FALSE)+ROW()-2))=Rebalance!$D$57,INDIRECT(\"a\" & (VLOOKUP(Rebalance!$D$57,$F$2:$G$48,2,FALSE)+ROW()-2)),\"\")","v":{"$error":"#N/A"}},{"$f":"IF(INDIRECT(\"c\" & (VLOOKUP(Rebalance!$D$58,$F$2:$G$48,2,FALSE)+ROW()-2))=Rebalance!$D$58,INDIRECT(\"a\" & (VLOOKUP(Rebalance!$D$58,$F$2:$G$48,2,FALSE)+ROW()-2)),\"\")","v":{"$error":"#N/A"}},{"$f":"IF(INDIRECT(\"c\" & (VLOOKUP(Rebalance!$D$59,$F$2:$G$48,2,FALSE)+ROW()-2))=Rebalance!$D$59,INDIRECT(\"a\" & (VLOOKUP(Rebalance!$D$59,$F$2:$G$48,2,FALSE)+ROW()-2)),\"\")","v":{"$error":"#N/A"}},{"$f":"IF(INDIRECT(\"c\" & (VLOOKUP(Rebalance!$D$60,$F$2:$G$48,2,FALSE)+ROW()-2))=Rebalance!$D$60,INDIRECT(\"a\" & (VLOOKUP(Rebalance!$D$60,$F$2:$G$48,2,FALSE)+ROW()-2)),\"\")","v":{"$error":"#N/A"}},{"$f":"IF(INDIRECT(\"c\" & (VLOOKUP(Rebalance!$D$61,$F$2:$G$48,2,FALSE)+ROW()-2))=Rebalance!$D$61,INDIRECT(\"a\" & (VLOOKUP(Rebalance!$D$61,$F$2:$G$48,2,FALSE)+ROW()-2)),\"\")","v":{"$error":"#N/A"}},{"$f":"IF(INDIRECT(\"c\" & (VLOOKUP(Rebalance!$D$62,$F$2:$G$48,2,FALSE)+ROW()-2))=Rebalance!$D$62,INDIRECT(\"a\" & (VLOOKUP(Rebalance!$D$62,$F$2:$G$48,2,FALSE)+ROW()-2)),\"\")","v":{"$error":"#N/A"}},{"$f":"IF(INDIRECT(\"c\" & (VLOOKUP(Rebalance!$D$63,$F$2:$G$48,2,FALSE)+ROW()-2))=Rebalance!$D$63,INDIRECT(\"a\" & (VLOOKUP(Rebalance!$D$63,$F$2:$G$48,2,FALSE)+ROW()-2)),\"\")","v":{"$error":"#N/A"}},{"$f":"IF(INDIRECT(\"c\" & (VLOOKUP(Rebalance!$D$64,$F$2:$G$48,2,FALSE)+ROW()-2))=Rebalance!$D$64,INDIRECT(\"a\" & (VLOOKUP(Rebalance!$D$64,$F$2:$G$48,2,FALSE)+ROW()-2)),\"\")","v":{"$error":"#N/A"}},{"$f":"IF(INDIRECT(\"c\" & (VLOOKUP(Rebalance!$D$65,$F$2:$G$48,2,FALSE)+ROW()-2))=Rebalance!$D$65,INDIRECT(\"a\" & (VLOOKUP(Rebalance!$D$65,$F$2:$G$48,2,FALSE)+ROW()-2)),\"\")","v":{"$error":"#N/A"}},{"$f":"IF(INDIRECT(\"c\" & (VLOOKUP(Rebalance!$D$66,$F$2:$G$48,2,FALSE)+ROW()-2))=Rebalance!$D$66,INDIRECT(\"a\" & (VLOOKUP(Rebalance!$D$66,$F$2:$G$48,2,FALSE)+ROW()-2)),\"\")","v":{"$error":"#N/A"}}]
["Old Mutual Investors Fund","ODIB1","Old Mutual Unit Trust Managers Limited",{"$f":"ROW()","v":422},null,null,{"$f":"VLOOKUP(F422,$C$2:$D$599,2,FALSE)","v":{"$error":"#N/A"}},{"$f":"IF(INDIRECT(\"c\" & (VLOOKUP(Rebalance!$D$26,$F$2:$G$48,2,FALSE)+ROW()-2))=Rebalance!$D$26,INDIRECT(\"a\" & (VLOOKUP(Rebalance!$D$26,$F$2:$G$48,2,FALSE)+ROW()-2)),\"\")","v":{"$error":"#N/A"}},{"$f":"IF(INDIRECT(\"c\" & (VLOOKUP(Rebalance!$D$27,$F$2:$G$48,2,FALSE)+ROW()-2))=Rebalance!$D$27,INDIRECT(\"a\" & (VLOOKUP(Rebalance!$D$27,$F$2:$G$48,2,FALSE)+ROW()-2)),\"\")","v":{"$error":"#N/A"}},{"$f":"IF(INDIRECT(\"c\" & (VLOOKUP(Rebalance!$D$28,$F$2:$G$48,2,FALSE)+ROW()-2))=Rebalance!$D$28,INDIRECT(\"a\" & (VLOOKUP(Rebalance!$D$28,$F$2:$G$48,2,FALSE)+ROW()-2)),\"\")","v":{"$error":"#N/A"}},{"$f":"IF(INDIRECT(\"c\" & (VLOOKUP(Rebalance!$D$29,$F$2:$G$48,2,FALSE)+ROW()-2))=Rebalance!$D$29,INDIRECT(\"a\" & (VLOOKUP(Rebalance!$D$29,$F$2:$G$48,2,FALSE)+ROW()-2)),\"\")","v":{"$error":"#N/A"}},{"$f":"IF(INDIRECT(\"c\" & (VLOOKUP(Rebalance!$D$30,$F$2:$G$48,2,FALSE)+ROW()-2))=Rebalance!$D$30,INDIRECT(\"a\" & (VLOOKUP(Rebalance!$D$30,$F$2:$G$48,2,FALSE)+ROW()-2)),\"\")","v":{"$error":"#N/A"}},{"$f":"IF(INDIRECT(\"c\" & (VLOOKUP(Rebalance!$D$31,$F$2:$G$48,2,FALSE)+ROW()-2))=Rebalance!$D$31,INDIRECT(\"a\" & (VLOOKUP(Rebalance!$D$31,$F$2:$G$48,2,FALSE)+ROW()-2)),\"\")","v":{"$error":"#N/A"}},{"$f":"IF(INDIRECT(\"c\" & (VLOOKUP(Rebalance!$D$32,$F$2:$G$48,2,FALSE)+ROW()-2))=Rebalance!$D$32,INDIRECT(\"a\" & (VLOOKUP(Rebalance!$D$32,$F$2:$G$48,2,FALSE)+ROW()-2)),\"\")","v":{"$error":"#N/A"}},{"$f":"IF(INDIRECT(\"c\" & (VLOOKUP(Rebalance!$D$33,$F$2:$G$48,2,FALSE)+ROW()-2))=Rebalance!$D$33,INDIRECT(\"a\" & (VLOOKUP(Rebalance!$D$33,$F$2:$G$48,2,FALSE)+ROW()-2)),\"\")","v":{"$error":"#N/A"}},{"$f":"IF(INDIRECT(\"c\" & (VLOOKUP(Rebalance!$D$34,$F$2:$G$48,2,FALSE)+ROW()-2))=Rebalance!$D$34,INDIRECT(\"a\" & (VLOOKUP(Rebalance!$D$34,$F$2:$G$48,2,FALSE)+ROW()-2)),\"\")","v":{"$error":"#N/A"}},{"$f":"IF(INDIRECT(\"c\" & (VLOOKUP(Rebalance!$D$35,$F$2:$G$48,2,FALSE)+ROW()-2))=Rebalance!$D$35,INDIRECT(\"a\" & (VLOOKUP(Rebalance!$D$35,$F$2:$G$48,2,FALSE)+ROW()-2)),\"\")","v":{"$error":"#N/A"}},{"$f":"IF(INDIRECT(\"c\" & (VLOOKUP(Rebalance!$D$36,$F$2:$G$48,2,FALSE)+ROW()-2))=Rebalance!$D$36,INDIRECT(\"a\" & (VLOOKUP(Rebalance!$D$36,$F$2:$G$48,2,FALSE)+ROW()-2)),\"\")","v":{"$error":"#N/A"}},{"$f":"IF(INDIRECT(\"c\" & (VLOOKUP(Rebalance!$D$37,$F$2:$G$48,2,FALSE)+ROW()-2))=Rebalance!$D$37,INDIRECT(\"a\" & (VLOOKUP(Rebalance!$D$37,$F$2:$G$48,2,FALSE)+ROW()-2)),\"\")","v":{"$error":"#N/A"}},{"$f":"IF(INDIRECT(\"c\" & (VLOOKUP(Rebalance!$D$38,$F$2:$G$48,2,FALSE)+ROW()-2))=Rebalance!$D$38,INDIRECT(\"a\" & (VLOOKUP(Rebalance!$D$38,$F$2:$G$48,2,FALSE)+ROW()-2)),\"\")","v":{"$error":"#N/A"}},{"$f":"IF(INDIRECT(\"c\" & (VLOOKUP(Rebalance!$D$39,$F$2:$G$48,2,FALSE)+ROW()-2))=Rebalance!$D$39,INDIRECT(\"a\" & (VLOOKUP(Rebalance!$D$39,$F$2:$G$48,2,FALSE)+ROW()-2)),\"\")","v":{"$error":"#N/A"}},{"$f":"IF(INDIRECT(\"c\" & (VLOOKUP(Rebalance!$D$40,$F$2:$G$48,2,FALSE)+ROW()-2))=Rebalance!$D$40,INDIRECT(\"a\" & (VLOOKUP(Rebalance!$D$40,$F$2:$G$48,2,FALSE)+ROW()-2)),\"\")","v":{"$error":"#N/A"}},{"$f":"IF(INDIRECT(\"c\" & (VLOOKUP(Rebalance!$D$52,$F$2:$G$48,2,FALSE)+ROW()-2))=Rebalance!$D$52,INDIRECT(\"a\" & (VLOOKUP(Rebalance!$D$52,$F$2:$G$48,2,FALSE)+ROW()-2)),\"\")","v":{"$error":"#N/A"}},{"$f":"IF(INDIRECT(\"c\" & (VLOOKUP(Rebalance!$D$53,$F$2:$G$48,2,FALSE)+ROW()-2))=Rebalance!$D$53,INDIRECT(\"a\" & (VLOOKUP(Rebalance!$D$53,$F$2:$G$48,2,FALSE)+ROW()-2)),\"\")","v":{"$error":"#N/A"}},{"$f":"IF(INDIRECT(\"c\" & (VLOOKUP(Rebalance!$D$54,$F$2:$G$48,2,FALSE)+ROW()-2))=Rebalance!$D$54,INDIRECT(\"a\" & (VLOOKUP(Rebalance!$D$54,$F$2:$G$48,2,FALSE)+ROW()-2)),\"\")","v":{"$error":"#N/A"}},{"$f":"IF(INDIRECT(\"c\" & (VLOOKUP(Rebalance!$D$55,$F$2:$G$48,2,FALSE)+ROW()-2))=Rebalance!$D$55,INDIRECT(\"a\" & (VLOOKUP(Rebalance!$D$55,$F$2:$G$48,2,FALSE)+ROW()-2)),\"\")","v":{"$error":"#N/A"}},{"$f":"IF(INDIRECT(\"c\" & (VLOOKUP(Rebalance!$D$56,$F$2:$G$48,2,FALSE)+ROW()-2))=Rebalance!$D$56,INDIRECT(\"a\" & (VLOOKUP(Rebalance!$D$56,$F$2:$G$48,2,FALSE)+ROW()-2)),\"\")","v":{"$error":"#N/A"}},{"$f":"IF(INDIRECT(\"c\" & (VLOOKUP(Rebalance!$D$57,$F$2:$G$48,2,FALSE)+ROW()-2))=Rebalance!$D$57,INDIRECT(\"a\" & (VLOOKUP(Rebalance!$D$57,$F$2:$G$48,2,FALSE)+ROW()-2)),\"\")","v":{"$error":"#N/A"}},{"$f":"IF(INDIRECT(\"c\" & (VLOOKUP(Rebalance!$D$58,$F$2:$G$48,2,FALSE)+ROW()-2))=Rebalance!$D$58,INDIRECT(\"a\" & (VLOOKUP(Rebalance!$D$58,$F$2:$G$48,2,FALSE)+ROW()-2)),\"\")","v":{"$error":"#N/A"}},{"$f":"IF(INDIRECT(\"c\" & (VLOOKUP(Rebalance!$D$59,$F$2:$G$48,2,FALSE)+ROW()-2))=Rebalance!$D$59,INDIRECT(\"a\" & (VLOOKUP(Rebalance!$D$59,$F$2:$G$48,2,FALSE)+ROW()-2)),\"\")","v":{"$error":"#N/A"}},{"$f":"IF(INDIRECT(\"c\" & (VLOOKUP(Rebalance!$D$60,$F$2:$G$48,2,FALSE)+ROW()-2))=Rebalance!$D$60,INDIRECT(\"a\" & (VLOOKUP(Rebalance!$D$60,$F$2:$G$48,2,FALSE)+ROW()-2)),\"\")","v":{"$error":"#N/A"}},{"$f":"IF(INDIRECT(\"c\" & (VLOOKUP(Rebalance!$D$61,$F$2:$G$48,2,FALSE)+ROW()-2))=Rebalance!$D$61,INDIRECT(\"a\" & (VLOOKUP(Rebalance!$D$61,$F$2:$G$48,2,FALSE)+ROW()-2)),\"\")","v":{"$error":"#N/A"}},{"$f":"IF(INDIRECT(\"c\" & (VLOOKUP(Rebalance!$D$62,$F$2:$G$48,2,FALSE)+ROW()-2))=Rebalance!$D$62,INDIRECT(\"a\" & (VLOOKUP(Rebalance!$D$62,$F$2:$G$48,2,FALSE)+ROW()-2)),\"\")","v":{"$error":"#N/A"}},{"$f":"IF(INDIRECT(\"c\" & (VLOOKUP(Rebalance!$D$63,$F$2:$G$48,2,FALSE)+ROW()-2))=Rebalance!$D$63,INDIRECT(\"a\" & (VLOOKUP(Rebalance!$D$63,$F$2:$G$48,2,FALSE)+ROW()-2)),\"\")","v":{"$error":"#N/A"}},{"$f":"IF(INDIRECT(\"c\" & (VLOOKUP(Rebalance!$D$64,$F$2:$G$48,2,FALSE)+ROW()-2))=Rebalance!$D$64,INDIRECT(\"a\" & (VLOOKUP(Rebalance!$D$64,$F$2:$G$48,2,FALSE)+ROW()-2)),\"\")","v":{"$error":"#N/A"}},{"$f":"IF(INDIRECT(\"c\" & (VLOOKUP(Rebalance!$D$65,$F$2:$G$48,2,FALSE)+ROW()-2))=Rebalance!$D$65,INDIRECT(\"a\" & (VLOOKUP(Rebalance!$D$65,$F$2:$G$48,2,FALSE)+ROW()-2)),\"\")","v":{"$error":"#N/A"}},{"$f":"IF(INDIRECT(\"c\" & (VLOOKUP(Rebalance!$D$66,$F$2:$G$48,2,FALSE)+ROW()-2))=Rebalance!$D$66,INDIRECT(\"a\" & (VLOOKUP(Rebalance!$D$66,$F$2:$G$48,2,FALSE)+ROW()-2)),\"\")","v":{"$error":"#N/A"}}]
["Old Mutual Investors Fund Class A","ODIB1","Old Mutual Unit Trust Managers Limited",{"$f":"ROW()","v":423},null,null,{"$f":"VLOOKUP(F423,$C$2:$D$599,2,FALSE)","v":{"$error":"#N/A"}},{"$f":"IF(INDIRECT(\"c\" & (VLOOKUP(Rebalance!$D$26,$F$2:$G$48,2,FALSE)+ROW()-2))=Rebalance!$D$26,INDIRECT(\"a\" & (VLOOKUP(Rebalance!$D$26,$F$2:$G$48,2,FALSE)+ROW()-2)),\"\")","v":{"$error":"#N/A"}},{"$f":"IF(INDIRECT(\"c\" & (VLOOKUP(Rebalance!$D$27,$F$2:$G$48,2,FALSE)+ROW()-2))=Rebalance!$D$27,INDIRECT(\"a\" & (VLOOKUP(Rebalance!$D$27,$F$2:$G$48,2,FALSE)+ROW()-2)),\"\")","v":{"$error":"#N/A"}},{"$f":"IF(INDIRECT(\"c\" & (VLOOKUP(Rebalance!$D$28,$F$2:$G$48,2,FALSE)+ROW()-2))=Rebalance!$D$28,INDIRECT(\"a\" & (VLOOKUP(Rebalance!$D$28,$F$2:$G$48,2,FALSE)+ROW()-2)),\"\")","v":{"$error":"#N/A"}},{"$f":"IF(INDIRECT(\"c\" & (VLOOKUP(Rebalance!$D$29,$F$2:$G$48,2,FALSE)+ROW()-2))=Rebalance!$D$29,INDIRECT(\"a\" & (VLOOKUP(Rebalance!$D$29,$F$2:$G$48,2,FALSE)+ROW()-2)),\"\")","v":{"$error":"#N/A"}},{"$f":"IF(INDIRECT(\"c\" & (VLOOKUP(Rebalance!$D$30,$F$2:$G$48,2,FALSE)+ROW()-2))=Rebalance!$D$30,INDIRECT(\"a\" & (VLOOKUP(Rebalance!$D$30,$F$2:$G$48,2,FALSE)+ROW()-2)),\"\")","v":{"$error":"#N/A"}},{"$f":"IF(INDIRECT(\"c\" & (VLOOKUP(Rebalance!$D$31,$F$2:$G$48,2,FALSE)+ROW()-2))=Rebalance!$D$31,INDIRECT(\"a\" & (VLOOKUP(Rebalance!$D$31,$F$2:$G$48,2,FALSE)+ROW()-2)),\"\")","v":{"$error":"#N/A"}},{"$f":"IF(INDIRECT(\"c\" & (VLOOKUP(Rebalance!$D$32,$F$2:$G$48,2,FALSE)+ROW()-2))=Rebalance!$D$32,INDIRECT(\"a\" & (VLOOKUP(Rebalance!$D$32,$F$2:$G$48,2,FALSE)+ROW()-2)),\"\")","v":{"$error":"#N/A"}},{"$f":"IF(INDIRECT(\"c\" & (VLOOKUP(Rebalance!$D$33,$F$2:$G$48,2,FALSE)+ROW()-2))=Rebalance!$D$33,INDIRECT(\"a\" & (VLOOKUP(Rebalance!$D$33,$F$2:$G$48,2,FALSE)+ROW()-2)),\"\")","v":{"$error":"#N/A"}},{"$f":"IF(INDIRECT(\"c\" & (VLOOKUP(Rebalance!$D$34,$F$2:$G$48,2,FALSE)+ROW()-2))=Rebalance!$D$34,INDIRECT(\"a\" & (VLOOKUP(Rebalance!$D$34,$F$2:$G$48,2,FALSE)+ROW()-2)),\"\")","v":{"$error":"#N/A"}},{"$f":"IF(INDIRECT(\"c\" & (VLOOKUP(Rebalance!$D$35,$F$2:$G$48,2,FALSE)+ROW()-2))=Rebalance!$D$35,INDIRECT(\"a\" & (VLOOKUP(Rebalance!$D$35,$F$2:$G$48,2,FALSE)+ROW()-2)),\"\")","v":{"$error":"#N/A"}},{"$f":"IF(INDIRECT(\"c\" & (VLOOKUP(Rebalance!$D$36,$F$2:$G$48,2,FALSE)+ROW()-2))=Rebalance!$D$36,INDIRECT(\"a\" & (VLOOKUP(Rebalance!$D$36,$F$2:$G$48,2,FALSE)+ROW()-2)),\"\")","v":{"$error":"#N/A"}},{"$f":"IF(INDIRECT(\"c\" & (VLOOKUP(Rebalance!$D$37,$F$2:$G$48,2,FALSE)+ROW()-2))=Rebalance!$D$37,INDIRECT(\"a\" & (VLOOKUP(Rebalance!$D$37,$F$2:$G$48,2,FALSE)+ROW()-2)),\"\")","v":{"$error":"#N/A"}},{"$f":"IF(INDIRECT(\"c\" & (VLOOKUP(Rebalance!$D$38,$F$2:$G$48,2,FALSE)+ROW()-2))=Rebalance!$D$38,INDIRECT(\"a\" & (VLOOKUP(Rebalance!$D$38,$F$2:$G$48,2,FALSE)+ROW()-2)),\"\")","v":{"$error":"#N/A"}},{"$f":"IF(INDIRECT(\"c\" & (VLOOKUP(Rebalance!$D$39,$F$2:$G$48,2,FALSE)+ROW()-2))=Rebalance!$D$39,INDIRECT(\"a\" & (VLOOKUP(Rebalance!$D$39,$F$2:$G$48,2,FALSE)+ROW()-2)),\"\")","v":{"$error":"#N/A"}},{"$f":"IF(INDIRECT(\"c\" & (VLOOKUP(Rebalance!$D$40,$F$2:$G$48,2,FALSE)+ROW()-2))=Rebalance!$D$40,INDIRECT(\"a\" & (VLOOKUP(Rebalance!$D$40,$F$2:$G$48,2,FALSE)+ROW()-2)),\"\")","v":{"$error":"#N/A"}},{"$f":"IF(INDIRECT(\"c\" & (VLOOKUP(Rebalance!$D$52,$F$2:$G$48,2,FALSE)+ROW()-2))=Rebalance!$D$52,INDIRECT(\"a\" & (VLOOKUP(Rebalance!$D$52,$F$2:$G$48,2,FALSE)+ROW()-2)),\"\")","v":{"$error":"#N/A"}},{"$f":"IF(INDIRECT(\"c\" & (VLOOKUP(Rebalance!$D$53,$F$2:$G$48,2,FALSE)+ROW()-2))=Rebalance!$D$53,INDIRECT(\"a\" & (VLOOKUP(Rebalance!$D$53,$F$2:$G$48,2,FALSE)+ROW()-2)),\"\")","v":{"$error":"#N/A"}},{"$f":"IF(INDIRECT(\"c\" & (VLOOKUP(Rebalance!$D$54,$F$2:$G$48,2,FALSE)+ROW()-2))=Rebalance!$D$54,INDIRECT(\"a\" & (VLOOKUP(Rebalance!$D$54,$F$2:$G$48,2,FALSE)+ROW()-2)),\"\")","v":{"$error":"#N/A"}},{"$f":"IF(INDIRECT(\"c\" & (VLOOKUP(Rebalance!$D$55,$F$2:$G$48,2,FALSE)+ROW()-2))=Rebalance!$D$55,INDIRECT(\"a\" & (VLOOKUP(Rebalance!$D$55,$F$2:$G$48,2,FALSE)+ROW()-2)),\"\")","v":{"$error":"#N/A"}},{"$f":"IF(INDIRECT(\"c\" & (VLOOKUP(Rebalance!$D$56,$F$2:$G$48,2,FALSE)+ROW()-2))=Rebalance!$D$56,INDIRECT(\"a\" & (VLOOKUP(Rebalance!$D$56,$F$2:$G$48,2,FALSE)+ROW()-2)),\"\")","v":{"$error":"#N/A"}},{"$f":"IF(INDIRECT(\"c\" & (VLOOKUP(Rebalance!$D$57,$F$2:$G$48,2,FALSE)+ROW()-2))=Rebalance!$D$57,INDIRECT(\"a\" & (VLOOKUP(Rebalance!$D$57,$F$2:$G$48,2,FALSE)+ROW()-2)),\"\")","v":{"$error":"#N/A"}},{"$f":"IF(INDIRECT(\"c\" & (VLOOKUP(Rebalance!$D$58,$F$2:$G$48,2,FALSE)+ROW()-2))=Rebalance!$D$58,INDIRECT(\"a\" & (VLOOKUP(Rebalance!$D$58,$F$2:$G$48,2,FALSE)+ROW()-2)),\"\")","v":{"$error":"#N/A"}},{"$f":"IF(INDIRECT(\"c\" & (VLOOKUP(Rebalance!$D$59,$F$2:$G$48,2,FALSE)+ROW()-2))=Rebalance!$D$59,INDIRECT(\"a\" & (VLOOKUP(Rebalance!$D$59,$F$2:$G$48,2,FALSE)+ROW()-2)),\"\")","v":{"$error":"#N/A"}},{"$f":"IF(INDIRECT(\"c\" & (VLOOKUP(Rebalance!$D$60,$F$2:$G$48,2,FALSE)+ROW()-2))=Rebalance!$D$60,INDIRECT(\"a\" & (VLOOKUP(Rebalance!$D$60,$F$2:$G$48,2,FALSE)+ROW()-2)),\"\")","v":{"$error":"#N/A"}},{"$f":"IF(INDIRECT(\"c\" & (VLOOKUP(Rebalance!$D$61,$F$2:$G$48,2,FALSE)+ROW()-2))=Rebalance!$D$61,INDIRECT(\"a\" & (VLOOKUP(Rebalance!$D$61,$F$2:$G$48,2,FALSE)+ROW()-2)),\"\")","v":{"$error":"#N/A"}},{"$f":"IF(INDIRECT(\"c\" & (VLOOKUP(Rebalance!$D$62,$F$2:$G$48,2,FALSE)+ROW()-2))=Rebalance!$D$62,INDIRECT(\"a\" & (VLOOKUP(Rebalance!$D$62,$F$2:$G$48,2,FALSE)+ROW()-2)),\"\")","v":{"$error":"#N/A"}},{"$f":"IF(INDIRECT(\"c\" & (VLOOKUP(Rebalance!$D$63,$F$2:$G$48,2,FALSE)+ROW()-2))=Rebalance!$D$63,INDIRECT(\"a\" & (VLOOKUP(Rebalance!$D$63,$F$2:$G$48,2,FALSE)+ROW()-2)),\"\")","v":{"$error":"#N/A"}},{"$f":"IF(INDIRECT(\"c\" & (VLOOKUP(Rebalance!$D$64,$F$2:$G$48,2,FALSE)+ROW()-2))=Rebalance!$D$64,INDIRECT(\"a\" & (VLOOKUP(Rebalance!$D$64,$F$2:$G$48,2,FALSE)+ROW()-2)),\"\")","v":{"$error":"#N/A"}},{"$f":"IF(INDIRECT(\"c\" & (VLOOKUP(Rebalance!$D$65,$F$2:$G$48,2,FALSE)+ROW()-2))=Rebalance!$D$65,INDIRECT(\"a\" & (VLOOKUP(Rebalance!$D$65,$F$2:$G$48,2,FALSE)+ROW()-2)),\"\")","v":{"$error":"#N/A"}},{"$f":"IF(INDIRECT(\"c\" & (VLOOKUP(Rebalance!$D$66,$F$2:$G$48,2,FALSE)+ROW()-2))=Rebalance!$D$66,INDIRECT(\"a\" & (VLOOKUP(Rebalance!$D$66,$F$2:$G$48,2,FALSE)+ROW()-2)),\"\")","v":{"$error":"#N/A"}}]
["Old Mutual Maximum Return Fund of Funds A","OMRFA","Old Mutual Unit Trust Managers Limited",{"$f":"ROW()","v":424},null,null,{"$f":"VLOOKUP(F424,$C$2:$D$599,2,FALSE)","v":{"$error":"#N/A"}},{"$f":"IF(INDIRECT(\"c\" & (VLOOKUP(Rebalance!$D$26,$F$2:$G$48,2,FALSE)+ROW()-2))=Rebalance!$D$26,INDIRECT(\"a\" & (VLOOKUP(Rebalance!$D$26,$F$2:$G$48,2,FALSE)+ROW()-2)),\"\")","v":{"$error":"#N/A"}},{"$f":"IF(INDIRECT(\"c\" & (VLOOKUP(Rebalance!$D$27,$F$2:$G$48,2,FALSE)+ROW()-2))=Rebalance!$D$27,INDIRECT(\"a\" & (VLOOKUP(Rebalance!$D$27,$F$2:$G$48,2,FALSE)+ROW()-2)),\"\")","v":{"$error":"#N/A"}},{"$f":"IF(INDIRECT(\"c\" & (VLOOKUP(Rebalance!$D$28,$F$2:$G$48,2,FALSE)+ROW()-2))=Rebalance!$D$28,INDIRECT(\"a\" & (VLOOKUP(Rebalance!$D$28,$F$2:$G$48,2,FALSE)+ROW()-2)),\"\")","v":{"$error":"#N/A"}},{"$f":"IF(INDIRECT(\"c\" & (VLOOKUP(Rebalance!$D$29,$F$2:$G$48,2,FALSE)+ROW()-2))=Rebalance!$D$29,INDIRECT(\"a\" & (VLOOKUP(Rebalance!$D$29,$F$2:$G$48,2,FALSE)+ROW()-2)),\"\")","v":{"$error":"#N/A"}},{"$f":"IF(INDIRECT(\"c\" & (VLOOKUP(Rebalance!$D$30,$F$2:$G$48,2,FALSE)+ROW()-2))=Rebalance!$D$30,INDIRECT(\"a\" & (VLOOKUP(Rebalance!$D$30,$F$2:$G$48,2,FALSE)+ROW()-2)),\"\")","v":{"$error":"#N/A"}},{"$f":"IF(INDIRECT(\"c\" & (VLOOKUP(Rebalance!$D$31,$F$2:$G$48,2,FALSE)+ROW()-2))=Rebalance!$D$31,INDIRECT(\"a\" & (VLOOKUP(Rebalance!$D$31,$F$2:$G$48,2,FALSE)+ROW()-2)),\"\")","v":{"$error":"#N/A"}},{"$f":"IF(INDIRECT(\"c\" & (VLOOKUP(Rebalance!$D$32,$F$2:$G$48,2,FALSE)+ROW()-2))=Rebalance!$D$32,INDIRECT(\"a\" & (VLOOKUP(Rebalance!$D$32,$F$2:$G$48,2,FALSE)+ROW()-2)),\"\")","v":{"$error":"#N/A"}},{"$f":"IF(INDIRECT(\"c\" & (VLOOKUP(Rebalance!$D$33,$F$2:$G$48,2,FALSE)+ROW()-2))=Rebalance!$D$33,INDIRECT(\"a\" & (VLOOKUP(Rebalance!$D$33,$F$2:$G$48,2,FALSE)+ROW()-2)),\"\")","v":{"$error":"#N/A"}},{"$f":"IF(INDIRECT(\"c\" & (VLOOKUP(Rebalance!$D$34,$F$2:$G$48,2,FALSE)+ROW()-2))=Rebalance!$D$34,INDIRECT(\"a\" & (VLOOKUP(Rebalance!$D$34,$F$2:$G$48,2,FALSE)+ROW()-2)),\"\")","v":{"$error":"#N/A"}},{"$f":"IF(INDIRECT(\"c\" & (VLOOKUP(Rebalance!$D$35,$F$2:$G$48,2,FALSE)+ROW()-2))=Rebalance!$D$35,INDIRECT(\"a\" & (VLOOKUP(Rebalance!$D$35,$F$2:$G$48,2,FALSE)+ROW()-2)),\"\")","v":{"$error":"#N/A"}},{"$f":"IF(INDIRECT(\"c\" & (VLOOKUP(Rebalance!$D$36,$F$2:$G$48,2,FALSE)+ROW()-2))=Rebalance!$D$36,INDIRECT(\"a\" & (VLOOKUP(Rebalance!$D$36,$F$2:$G$48,2,FALSE)+ROW()-2)),\"\")","v":{"$error":"#N/A"}},{"$f":"IF(INDIRECT(\"c\" & (VLOOKUP(Rebalance!$D$37,$F$2:$G$48,2,FALSE)+ROW()-2))=Rebalance!$D$37,INDIRECT(\"a\" & (VLOOKUP(Rebalance!$D$37,$F$2:$G$48,2,FALSE)+ROW()-2)),\"\")","v":{"$error":"#N/A"}},{"$f":"IF(INDIRECT(\"c\" & (VLOOKUP(Rebalance!$D$38,$F$2:$G$48,2,FALSE)+ROW()-2))=Rebalance!$D$38,INDIRECT(\"a\" & (VLOOKUP(Rebalance!$D$38,$F$2:$G$48,2,FALSE)+ROW()-2)),\"\")","v":{"$error":"#N/A"}},{"$f":"IF(INDIRECT(\"c\" & (VLOOKUP(Rebalance!$D$39,$F$2:$G$48,2,FALSE)+ROW()-2))=Rebalance!$D$39,INDIRECT(\"a\" & (VLOOKUP(Rebalance!$D$39,$F$2:$G$48,2,FALSE)+ROW()-2)),\"\")","v":{"$error":"#N/A"}},{"$f":"IF(INDIRECT(\"c\" & (VLOOKUP(Rebalance!$D$40,$F$2:$G$48,2,FALSE)+ROW()-2))=Rebalance!$D$40,INDIRECT(\"a\" & (VLOOKUP(Rebalance!$D$40,$F$2:$G$48,2,FALSE)+ROW()-2)),\"\")","v":{"$error":"#N/A"}},{"$f":"IF(INDIRECT(\"c\" & (VLOOKUP(Rebalance!$D$52,$F$2:$G$48,2,FALSE)+ROW()-2))=Rebalance!$D$52,INDIRECT(\"a\" & (VLOOKUP(Rebalance!$D$52,$F$2:$G$48,2,FALSE)+ROW()-2)),\"\")","v":{"$error":"#N/A"}},{"$f":"IF(INDIRECT(\"c\" & (VLOOKUP(Rebalance!$D$53,$F$2:$G$48,2,FALSE)+ROW()-2))=Rebalance!$D$53,INDIRECT(\"a\" & (VLOOKUP(Rebalance!$D$53,$F$2:$G$48,2,FALSE)+ROW()-2)),\"\")","v":{"$error":"#N/A"}},{"$f":"IF(INDIRECT(\"c\" & (VLOOKUP(Rebalance!$D$54,$F$2:$G$48,2,FALSE)+ROW()-2))=Rebalance!$D$54,INDIRECT(\"a\" & (VLOOKUP(Rebalance!$D$54,$F$2:$G$48,2,FALSE)+ROW()-2)),\"\")","v":{"$error":"#N/A"}},{"$f":"IF(INDIRECT(\"c\" & (VLOOKUP(Rebalance!$D$55,$F$2:$G$48,2,FALSE)+ROW()-2))=Rebalance!$D$55,INDIRECT(\"a\" & (VLOOKUP(Rebalance!$D$55,$F$2:$G$48,2,FALSE)+ROW()-2)),\"\")","v":{"$error":"#N/A"}},{"$f":"IF(INDIRECT(\"c\" & (VLOOKUP(Rebalance!$D$56,$F$2:$G$48,2,FALSE)+ROW()-2))=Rebalance!$D$56,INDIRECT(\"a\" & (VLOOKUP(Rebalance!$D$56,$F$2:$G$48,2,FALSE)+ROW()-2)),\"\")","v":{"$error":"#N/A"}},{"$f":"IF(INDIRECT(\"c\" & (VLOOKUP(Rebalance!$D$57,$F$2:$G$48,2,FALSE)+ROW()-2))=Rebalance!$D$57,INDIRECT(\"a\" & (VLOOKUP(Rebalance!$D$57,$F$2:$G$48,2,FALSE)+ROW()-2)),\"\")","v":{"$error":"#N/A"}},{"$f":"IF(INDIRECT(\"c\" & (VLOOKUP(Rebalance!$D$58,$F$2:$G$48,2,FALSE)+ROW()-2))=Rebalance!$D$58,INDIRECT(\"a\" & (VLOOKUP(Rebalance!$D$58,$F$2:$G$48,2,FALSE)+ROW()-2)),\"\")","v":{"$error":"#N/A"}},{"$f":"IF(INDIRECT(\"c\" & (VLOOKUP(Rebalance!$D$59,$F$2:$G$48,2,FALSE)+ROW()-2))=Rebalance!$D$59,INDIRECT(\"a\" & (VLOOKUP(Rebalance!$D$59,$F$2:$G$48,2,FALSE)+ROW()-2)),\"\")","v":{"$error":"#N/A"}},{"$f":"IF(INDIRECT(\"c\" & (VLOOKUP(Rebalance!$D$60,$F$2:$G$48,2,FALSE)+ROW()-2))=Rebalance!$D$60,INDIRECT(\"a\" & (VLOOKUP(Rebalance!$D$60,$F$2:$G$48,2,FALSE)+ROW()-2)),\"\")","v":{"$error":"#N/A"}},{"$f":"IF(INDIRECT(\"c\" & (VLOOKUP(Rebalance!$D$61,$F$2:$G$48,2,FALSE)+ROW()-2))=Rebalance!$D$61,INDIRECT(\"a\" & (VLOOKUP(Rebalance!$D$61,$F$2:$G$48,2,FALSE)+ROW()-2)),\"\")","v":{"$error":"#N/A"}},{"$f":"IF(INDIRECT(\"c\" & (VLOOKUP(Rebalance!$D$62,$F$2:$G$48,2,FALSE)+ROW()-2))=Rebalance!$D$62,INDIRECT(\"a\" & (VLOOKUP(Rebalance!$D$62,$F$2:$G$48,2,FALSE)+ROW()-2)),\"\")","v":{"$error":"#N/A"}},{"$f":"IF(INDIRECT(\"c\" & (VLOOKUP(Rebalance!$D$63,$F$2:$G$48,2,FALSE)+ROW()-2))=Rebalance!$D$63,INDIRECT(\"a\" & (VLOOKUP(Rebalance!$D$63,$F$2:$G$48,2,FALSE)+ROW()-2)),\"\")","v":{"$error":"#N/A"}},{"$f":"IF(INDIRECT(\"c\" & (VLOOKUP(Rebalance!$D$64,$F$2:$G$48,2,FALSE)+ROW()-2))=Rebalance!$D$64,INDIRECT(\"a\" & (VLOOKUP(Rebalance!$D$64,$F$2:$G$48,2,FALSE)+ROW()-2)),\"\")","v":{"$error":"#N/A"}},{"$f":"IF(INDIRECT(\"c\" & (VLOOKUP(Rebalance!$D$65,$F$2:$G$48,2,FALSE)+ROW()-2))=Rebalance!$D$65,INDIRECT(\"a\" & (VLOOKUP(Rebalance!$D$65,$F$2:$G$48,2,FALSE)+ROW()-2)),\"\")","v":{"$error":"#N/A"}},{"$f":"IF(INDIRECT(\"c\" & (VLOOKUP(Rebalance!$D$66,$F$2:$G$48,2,FALSE)+ROW()-2))=Rebalance!$D$66,INDIRECT(\"a\" & (VLOOKUP(Rebalance!$D$66,$F$2:$G$48,2,FALSE)+ROW()-2)),\"\")","v":{"$error":"#N/A"}}]
["Old Mutual Maximum Return Fund of Funds B1","OMRFA","Old Mutual Unit Trust Managers Limited",{"$f":"ROW()","v":425},null,null,{"$f":"VLOOKUP(F425,$C$2:$D$599,2,FALSE)","v":{"$error":"#N/A"}},{"$f":"IF(INDIRECT(\"c\" & (VLOOKUP(Rebalance!$D$26,$F$2:$G$48,2,FALSE)+ROW()-2))=Rebalance!$D$26,INDIRECT(\"a\" & (VLOOKUP(Rebalance!$D$26,$F$2:$G$48,2,FALSE)+ROW()-2)),\"\")","v":{"$error":"#N/A"}},{"$f":"IF(INDIRECT(\"c\" & (VLOOKUP(Rebalance!$D$27,$F$2:$G$48,2,FALSE)+ROW()-2))=Rebalance!$D$27,INDIRECT(\"a\" & (VLOOKUP(Rebalance!$D$27,$F$2:$G$48,2,FALSE)+ROW()-2)),\"\")","v":{"$error":"#N/A"}},{"$f":"IF(INDIRECT(\"c\" & (VLOOKUP(Rebalance!$D$28,$F$2:$G$48,2,FALSE)+ROW()-2))=Rebalance!$D$28,INDIRECT(\"a\" & (VLOOKUP(Rebalance!$D$28,$F$2:$G$48,2,FALSE)+ROW()-2)),\"\")","v":{"$error":"#N/A"}},{"$f":"IF(INDIRECT(\"c\" & (VLOOKUP(Rebalance!$D$29,$F$2:$G$48,2,FALSE)+ROW()-2))=Rebalance!$D$29,INDIRECT(\"a\" & (VLOOKUP(Rebalance!$D$29,$F$2:$G$48,2,FALSE)+ROW()-2)),\"\")","v":{"$error":"#N/A"}},{"$f":"IF(INDIRECT(\"c\" & (VLOOKUP(Rebalance!$D$30,$F$2:$G$48,2,FALSE)+ROW()-2))=Rebalance!$D$30,INDIRECT(\"a\" & (VLOOKUP(Rebalance!$D$30,$F$2:$G$48,2,FALSE)+ROW()-2)),\"\")","v":{"$error":"#N/A"}},{"$f":"IF(INDIRECT(\"c\" & (VLOOKUP(Rebalance!$D$31,$F$2:$G$48,2,FALSE)+ROW()-2))=Rebalance!$D$31,INDIRECT(\"a\" & (VLOOKUP(Rebalance!$D$31,$F$2:$G$48,2,FALSE)+ROW()-2)),\"\")","v":{"$error":"#N/A"}},{"$f":"IF(INDIRECT(\"c\" & (VLOOKUP(Rebalance!$D$32,$F$2:$G$48,2,FALSE)+ROW()-2))=Rebalance!$D$32,INDIRECT(\"a\" & (VLOOKUP(Rebalance!$D$32,$F$2:$G$48,2,FALSE)+ROW()-2)),\"\")","v":{"$error":"#N/A"}},{"$f":"IF(INDIRECT(\"c\" & (VLOOKUP(Rebalance!$D$33,$F$2:$G$48,2,FALSE)+ROW()-2))=Rebalance!$D$33,INDIRECT(\"a\" & (VLOOKUP(Rebalance!$D$33,$F$2:$G$48,2,FALSE)+ROW()-2)),\"\")","v":{"$error":"#N/A"}},{"$f":"IF(INDIRECT(\"c\" & (VLOOKUP(Rebalance!$D$34,$F$2:$G$48,2,FALSE)+ROW()-2))=Rebalance!$D$34,INDIRECT(\"a\" & (VLOOKUP(Rebalance!$D$34,$F$2:$G$48,2,FALSE)+ROW()-2)),\"\")","v":{"$error":"#N/A"}},{"$f":"IF(INDIRECT(\"c\" & (VLOOKUP(Rebalance!$D$35,$F$2:$G$48,2,FALSE)+ROW()-2))=Rebalance!$D$35,INDIRECT(\"a\" & (VLOOKUP(Rebalance!$D$35,$F$2:$G$48,2,FALSE)+ROW()-2)),\"\")","v":{"$error":"#N/A"}},{"$f":"IF(INDIRECT(\"c\" & (VLOOKUP(Rebalance!$D$36,$F$2:$G$48,2,FALSE)+ROW()-2))=Rebalance!$D$36,INDIRECT(\"a\" & (VLOOKUP(Rebalance!$D$36,$F$2:$G$48,2,FALSE)+ROW()-2)),\"\")","v":{"$error":"#N/A"}},{"$f":"IF(INDIRECT(\"c\" & (VLOOKUP(Rebalance!$D$37,$F$2:$G$48,2,FALSE)+ROW()-2))=Rebalance!$D$37,INDIRECT(\"a\" & (VLOOKUP(Rebalance!$D$37,$F$2:$G$48,2,FALSE)+ROW()-2)),\"\")","v":{"$error":"#N/A"}},{"$f":"IF(INDIRECT(\"c\" & (VLOOKUP(Rebalance!$D$38,$F$2:$G$48,2,FALSE)+ROW()-2))=Rebalance!$D$38,INDIRECT(\"a\" & (VLOOKUP(Rebalance!$D$38,$F$2:$G$48,2,FALSE)+ROW()-2)),\"\")","v":{"$error":"#N/A"}},{"$f":"IF(INDIRECT(\"c\" & (VLOOKUP(Rebalance!$D$39,$F$2:$G$48,2,FALSE)+ROW()-2))=Rebalance!$D$39,INDIRECT(\"a\" & (VLOOKUP(Rebalance!$D$39,$F$2:$G$48,2,FALSE)+ROW()-2)),\"\")","v":{"$error":"#N/A"}},{"$f":"IF(INDIRECT(\"c\" & (VLOOKUP(Rebalance!$D$40,$F$2:$G$48,2,FALSE)+ROW()-2))=Rebalance!$D$40,INDIRECT(\"a\" & (VLOOKUP(Rebalance!$D$40,$F$2:$G$48,2,FALSE)+ROW()-2)),\"\")","v":{"$error":"#N/A"}},{"$f":"IF(INDIRECT(\"c\" & (VLOOKUP(Rebalance!$D$52,$F$2:$G$48,2,FALSE)+ROW()-2))=Rebalance!$D$52,INDIRECT(\"a\" & (VLOOKUP(Rebalance!$D$52,$F$2:$G$48,2,FALSE)+ROW()-2)),\"\")","v":{"$error":"#N/A"}},{"$f":"IF(INDIRECT(\"c\" & (VLOOKUP(Rebalance!$D$53,$F$2:$G$48,2,FALSE)+ROW()-2))=Rebalance!$D$53,INDIRECT(\"a\" & (VLOOKUP(Rebalance!$D$53,$F$2:$G$48,2,FALSE)+ROW()-2)),\"\")","v":{"$error":"#N/A"}},{"$f":"IF(INDIRECT(\"c\" & (VLOOKUP(Rebalance!$D$54,$F$2:$G$48,2,FALSE)+ROW()-2))=Rebalance!$D$54,INDIRECT(\"a\" & (VLOOKUP(Rebalance!$D$54,$F$2:$G$48,2,FALSE)+ROW()-2)),\"\")","v":{"$error":"#N/A"}},{"$f":"IF(INDIRECT(\"c\" & (VLOOKUP(Rebalance!$D$55,$F$2:$G$48,2,FALSE)+ROW()-2))=Rebalance!$D$55,INDIRECT(\"a\" & (VLOOKUP(Rebalance!$D$55,$F$2:$G$48,2,FALSE)+ROW()-2)),\"\")","v":{"$error":"#N/A"}},{"$f":"IF(INDIRECT(\"c\" & (VLOOKUP(Rebalance!$D$56,$F$2:$G$48,2,FALSE)+ROW()-2))=Rebalance!$D$56,INDIRECT(\"a\" & (VLOOKUP(Rebalance!$D$56,$F$2:$G$48,2,FALSE)+ROW()-2)),\"\")","v":{"$error":"#N/A"}},{"$f":"IF(INDIRECT(\"c\" & (VLOOKUP(Rebalance!$D$57,$F$2:$G$48,2,FALSE)+ROW()-2))=Rebalance!$D$57,INDIRECT(\"a\" & (VLOOKUP(Rebalance!$D$57,$F$2:$G$48,2,FALSE)+ROW()-2)),\"\")","v":{"$error":"#N/A"}},{"$f":"IF(INDIRECT(\"c\" & (VLOOKUP(Rebalance!$D$58,$F$2:$G$48,2,FALSE)+ROW()-2))=Rebalance!$D$58,INDIRECT(\"a\" & (VLOOKUP(Rebalance!$D$58,$F$2:$G$48,2,FALSE)+ROW()-2)),\"\")","v":{"$error":"#N/A"}},{"$f":"IF(INDIRECT(\"c\" & (VLOOKUP(Rebalance!$D$59,$F$2:$G$48,2,FALSE)+ROW()-2))=Rebalance!$D$59,INDIRECT(\"a\" & (VLOOKUP(Rebalance!$D$59,$F$2:$G$48,2,FALSE)+ROW()-2)),\"\")","v":{"$error":"#N/A"}},{"$f":"IF(INDIRECT(\"c\" & (VLOOKUP(Rebalance!$D$60,$F$2:$G$48,2,FALSE)+ROW()-2))=Rebalance!$D$60,INDIRECT(\"a\" & (VLOOKUP(Rebalance!$D$60,$F$2:$G$48,2,FALSE)+ROW()-2)),\"\")","v":{"$error":"#N/A"}},{"$f":"IF(INDIRECT(\"c\" & (VLOOKUP(Rebalance!$D$61,$F$2:$G$48,2,FALSE)+ROW()-2))=Rebalance!$D$61,INDIRECT(\"a\" & (VLOOKUP(Rebalance!$D$61,$F$2:$G$48,2,FALSE)+ROW()-2)),\"\")","v":{"$error":"#N/A"}},{"$f":"IF(INDIRECT(\"c\" & (VLOOKUP(Rebalance!$D$62,$F$2:$G$48,2,FALSE)+ROW()-2))=Rebalance!$D$62,INDIRECT(\"a\" & (VLOOKUP(Rebalance!$D$62,$F$2:$G$48,2,FALSE)+ROW()-2)),\"\")","v":{"$error":"#N/A"}},{"$f":"IF(INDIRECT(\"c\" & (VLOOKUP(Rebalance!$D$63,$F$2:$G$48,2,FALSE)+ROW()-2))=Rebalance!$D$63,INDIRECT(\"a\" & (VLOOKUP(Rebalance!$D$63,$F$2:$G$48,2,FALSE)+ROW()-2)),\"\")","v":{"$error":"#N/A"}},{"$f":"IF(INDIRECT(\"c\" & (VLOOKUP(Rebalance!$D$64,$F$2:$G$48,2,FALSE)+ROW()-2))=Rebalance!$D$64,INDIRECT(\"a\" & (VLOOKUP(Rebalance!$D$64,$F$2:$G$48,2,FALSE)+ROW()-2)),\"\")","v":{"$error":"#N/A"}},{"$f":"IF(INDIRECT(\"c\" & (VLOOKUP(Rebalance!$D$65,$F$2:$G$48,2,FALSE)+ROW()-2))=Rebalance!$D$65,INDIRECT(\"a\" & (VLOOKUP(Rebalance!$D$65,$F$2:$G$48,2,FALSE)+ROW()-2)),\"\")","v":{"$error":"#N/A"}},{"$f":"IF(INDIRECT(\"c\" & (VLOOKUP(Rebalance!$D$66,$F$2:$G$48,2,FALSE)+ROW()-2))=Rebalance!$D$66,INDIRECT(\"a\" & (VLOOKUP(Rebalance!$D$66,$F$2:$G$48,2,FALSE)+ROW()-2)),\"\")","v":{"$error":"#N/A"}}]
["Old Mutual Mid & Small Cap Fund B1","OMSB1","Old Mutual Unit Trust Managers Limited",{"$f":"ROW()","v":426},null,null,{"$f":"VLOOKUP(F426,$C$2:$D$599,2,FALSE)","v":{"$error":"#N/A"}},{"$f":"IF(INDIRECT(\"c\" & (VLOOKUP(Rebalance!$D$26,$F$2:$G$48,2,FALSE)+ROW()-2))=Rebalance!$D$26,INDIRECT(\"a\" & (VLOOKUP(Rebalance!$D$26,$F$2:$G$48,2,FALSE)+ROW()-2)),\"\")","v":{"$error":"#N/A"}},{"$f":"IF(INDIRECT(\"c\" & (VLOOKUP(Rebalance!$D$27,$F$2:$G$48,2,FALSE)+ROW()-2))=Rebalance!$D$27,INDIRECT(\"a\" & (VLOOKUP(Rebalance!$D$27,$F$2:$G$48,2,FALSE)+ROW()-2)),\"\")","v":{"$error":"#N/A"}},{"$f":"IF(INDIRECT(\"c\" & (VLOOKUP(Rebalance!$D$28,$F$2:$G$48,2,FALSE)+ROW()-2))=Rebalance!$D$28,INDIRECT(\"a\" & (VLOOKUP(Rebalance!$D$28,$F$2:$G$48,2,FALSE)+ROW()-2)),\"\")","v":{"$error":"#N/A"}},{"$f":"IF(INDIRECT(\"c\" & (VLOOKUP(Rebalance!$D$29,$F$2:$G$48,2,FALSE)+ROW()-2))=Rebalance!$D$29,INDIRECT(\"a\" & (VLOOKUP(Rebalance!$D$29,$F$2:$G$48,2,FALSE)+ROW()-2)),\"\")","v":{"$error":"#N/A"}},{"$f":"IF(INDIRECT(\"c\" & (VLOOKUP(Rebalance!$D$30,$F$2:$G$48,2,FALSE)+ROW()-2))=Rebalance!$D$30,INDIRECT(\"a\" & (VLOOKUP(Rebalance!$D$30,$F$2:$G$48,2,FALSE)+ROW()-2)),\"\")","v":{"$error":"#N/A"}},{"$f":"IF(INDIRECT(\"c\" & (VLOOKUP(Rebalance!$D$31,$F$2:$G$48,2,FALSE)+ROW()-2))=Rebalance!$D$31,INDIRECT(\"a\" & (VLOOKUP(Rebalance!$D$31,$F$2:$G$48,2,FALSE)+ROW()-2)),\"\")","v":{"$error":"#N/A"}},{"$f":"IF(INDIRECT(\"c\" & (VLOOKUP(Rebalance!$D$32,$F$2:$G$48,2,FALSE)+ROW()-2))=Rebalance!$D$32,INDIRECT(\"a\" & (VLOOKUP(Rebalance!$D$32,$F$2:$G$48,2,FALSE)+ROW()-2)),\"\")","v":{"$error":"#N/A"}},{"$f":"IF(INDIRECT(\"c\" & (VLOOKUP(Rebalance!$D$33,$F$2:$G$48,2,FALSE)+ROW()-2))=Rebalance!$D$33,INDIRECT(\"a\" & (VLOOKUP(Rebalance!$D$33,$F$2:$G$48,2,FALSE)+ROW()-2)),\"\")","v":{"$error":"#N/A"}},{"$f":"IF(INDIRECT(\"c\" & (VLOOKUP(Rebalance!$D$34,$F$2:$G$48,2,FALSE)+ROW()-2))=Rebalance!$D$34,INDIRECT(\"a\" & (VLOOKUP(Rebalance!$D$34,$F$2:$G$48,2,FALSE)+ROW()-2)),\"\")","v":{"$error":"#N/A"}},{"$f":"IF(INDIRECT(\"c\" & (VLOOKUP(Rebalance!$D$35,$F$2:$G$48,2,FALSE)+ROW()-2))=Rebalance!$D$35,INDIRECT(\"a\" & (VLOOKUP(Rebalance!$D$35,$F$2:$G$48,2,FALSE)+ROW()-2)),\"\")","v":{"$error":"#N/A"}},{"$f":"IF(INDIRECT(\"c\" & (VLOOKUP(Rebalance!$D$36,$F$2:$G$48,2,FALSE)+ROW()-2))=Rebalance!$D$36,INDIRECT(\"a\" & (VLOOKUP(Rebalance!$D$36,$F$2:$G$48,2,FALSE)+ROW()-2)),\"\")","v":{"$error":"#N/A"}},{"$f":"IF(INDIRECT(\"c\" & (VLOOKUP(Rebalance!$D$37,$F$2:$G$48,2,FALSE)+ROW()-2))=Rebalance!$D$37,INDIRECT(\"a\" & (VLOOKUP(Rebalance!$D$37,$F$2:$G$48,2,FALSE)+ROW()-2)),\"\")","v":{"$error":"#N/A"}},{"$f":"IF(INDIRECT(\"c\" & (VLOOKUP(Rebalance!$D$38,$F$2:$G$48,2,FALSE)+ROW()-2))=Rebalance!$D$38,INDIRECT(\"a\" & (VLOOKUP(Rebalance!$D$38,$F$2:$G$48,2,FALSE)+ROW()-2)),\"\")","v":{"$error":"#N/A"}},{"$f":"IF(INDIRECT(\"c\" & (VLOOKUP(Rebalance!$D$39,$F$2:$G$48,2,FALSE)+ROW()-2))=Rebalance!$D$39,INDIRECT(\"a\" & (VLOOKUP(Rebalance!$D$39,$F$2:$G$48,2,FALSE)+ROW()-2)),\"\")","v":{"$error":"#N/A"}},{"$f":"IF(INDIRECT(\"c\" & (VLOOKUP(Rebalance!$D$40,$F$2:$G$48,2,FALSE)+ROW()-2))=Rebalance!$D$40,INDIRECT(\"a\" & (VLOOKUP(Rebalance!$D$40,$F$2:$G$48,2,FALSE)+ROW()-2)),\"\")","v":{"$error":"#N/A"}},{"$f":"IF(INDIRECT(\"c\" & (VLOOKUP(Rebalance!$D$52,$F$2:$G$48,2,FALSE)+ROW()-2))=Rebalance!$D$52,INDIRECT(\"a\" & (VLOOKUP(Rebalance!$D$52,$F$2:$G$48,2,FALSE)+ROW()-2)),\"\")","v":{"$error":"#N/A"}},{"$f":"IF(INDIRECT(\"c\" & (VLOOKUP(Rebalance!$D$53,$F$2:$G$48,2,FALSE)+ROW()-2))=Rebalance!$D$53,INDIRECT(\"a\" & (VLOOKUP(Rebalance!$D$53,$F$2:$G$48,2,FALSE)+ROW()-2)),\"\")","v":{"$error":"#N/A"}},{"$f":"IF(INDIRECT(\"c\" & (VLOOKUP(Rebalance!$D$54,$F$2:$G$48,2,FALSE)+ROW()-2))=Rebalance!$D$54,INDIRECT(\"a\" & (VLOOKUP(Rebalance!$D$54,$F$2:$G$48,2,FALSE)+ROW()-2)),\"\")","v":{"$error":"#N/A"}},{"$f":"IF(INDIRECT(\"c\" & (VLOOKUP(Rebalance!$D$55,$F$2:$G$48,2,FALSE)+ROW()-2))=Rebalance!$D$55,INDIRECT(\"a\" & (VLOOKUP(Rebalance!$D$55,$F$2:$G$48,2,FALSE)+ROW()-2)),\"\")","v":{"$error":"#N/A"}},{"$f":"IF(INDIRECT(\"c\" & (VLOOKUP(Rebalance!$D$56,$F$2:$G$48,2,FALSE)+ROW()-2))=Rebalance!$D$56,INDIRECT(\"a\" & (VLOOKUP(Rebalance!$D$56,$F$2:$G$48,2,FALSE)+ROW()-2)),\"\")","v":{"$error":"#N/A"}},{"$f":"IF(INDIRECT(\"c\" & (VLOOKUP(Rebalance!$D$57,$F$2:$G$48,2,FALSE)+ROW()-2))=Rebalance!$D$57,INDIRECT(\"a\" & (VLOOKUP(Rebalance!$D$57,$F$2:$G$48,2,FALSE)+ROW()-2)),\"\")","v":{"$error":"#N/A"}},{"$f":"IF(INDIRECT(\"c\" & (VLOOKUP(Rebalance!$D$58,$F$2:$G$48,2,FALSE)+ROW()-2))=Rebalance!$D$58,INDIRECT(\"a\" & (VLOOKUP(Rebalance!$D$58,$F$2:$G$48,2,FALSE)+ROW()-2)),\"\")","v":{"$error":"#N/A"}},{"$f":"IF(INDIRECT(\"c\" & (VLOOKUP(Rebalance!$D$59,$F$2:$G$48,2,FALSE)+ROW()-2))=Rebalance!$D$59,INDIRECT(\"a\" & (VLOOKUP(Rebalance!$D$59,$F$2:$G$48,2,FALSE)+ROW()-2)),\"\")","v":{"$error":"#N/A"}},{"$f":"IF(INDIRECT(\"c\" & (VLOOKUP(Rebalance!$D$60,$F$2:$G$48,2,FALSE)+ROW()-2))=Rebalance!$D$60,INDIRECT(\"a\" & (VLOOKUP(Rebalance!$D$60,$F$2:$G$48,2,FALSE)+ROW()-2)),\"\")","v":{"$error":"#N/A"}},{"$f":"IF(INDIRECT(\"c\" & (VLOOKUP(Rebalance!$D$61,$F$2:$G$48,2,FALSE)+ROW()-2))=Rebalance!$D$61,INDIRECT(\"a\" & (VLOOKUP(Rebalance!$D$61,$F$2:$G$48,2,FALSE)+ROW()-2)),\"\")","v":{"$error":"#N/A"}},{"$f":"IF(INDIRECT(\"c\" & (VLOOKUP(Rebalance!$D$62,$F$2:$G$48,2,FALSE)+ROW()-2))=Rebalance!$D$62,INDIRECT(\"a\" & (VLOOKUP(Rebalance!$D$62,$F$2:$G$48,2,FALSE)+ROW()-2)),\"\")","v":{"$error":"#N/A"}},{"$f":"IF(INDIRECT(\"c\" & (VLOOKUP(Rebalance!$D$63,$F$2:$G$48,2,FALSE)+ROW()-2))=Rebalance!$D$63,INDIRECT(\"a\" & (VLOOKUP(Rebalance!$D$63,$F$2:$G$48,2,FALSE)+ROW()-2)),\"\")","v":{"$error":"#N/A"}},{"$f":"IF(INDIRECT(\"c\" & (VLOOKUP(Rebalance!$D$64,$F$2:$G$48,2,FALSE)+ROW()-2))=Rebalance!$D$64,INDIRECT(\"a\" & (VLOOKUP(Rebalance!$D$64,$F$2:$G$48,2,FALSE)+ROW()-2)),\"\")","v":{"$error":"#N/A"}},{"$f":"IF(INDIRECT(\"c\" & (VLOOKUP(Rebalance!$D$65,$F$2:$G$48,2,FALSE)+ROW()-2))=Rebalance!$D$65,INDIRECT(\"a\" & (VLOOKUP(Rebalance!$D$65,$F$2:$G$48,2,FALSE)+ROW()-2)),\"\")","v":{"$error":"#N/A"}},{"$f":"IF(INDIRECT(\"c\" & (VLOOKUP(Rebalance!$D$66,$F$2:$G$48,2,FALSE)+ROW()-2))=Rebalance!$D$66,INDIRECT(\"a\" & (VLOOKUP(Rebalance!$D$66,$F$2:$G$48,2,FALSE)+ROW()-2)),\"\")","v":{"$error":"#N/A"}}]
["Old Mutual Mining and Resources Fund Class A","OMTM","Old Mutual Unit Trust Managers Limited",{"$f":"ROW()","v":427},null,null,{"$f":"VLOOKUP(F427,$C$2:$D$599,2,FALSE)","v":{"$error":"#N/A"}},{"$f":"IF(INDIRECT(\"c\" & (VLOOKUP(Rebalance!$D$26,$F$2:$G$48,2,FALSE)+ROW()-2))=Rebalance!$D$26,INDIRECT(\"a\" & (VLOOKUP(Rebalance!$D$26,$F$2:$G$48,2,FALSE)+ROW()-2)),\"\")","v":{"$error":"#N/A"}},{"$f":"IF(INDIRECT(\"c\" & (VLOOKUP(Rebalance!$D$27,$F$2:$G$48,2,FALSE)+ROW()-2))=Rebalance!$D$27,INDIRECT(\"a\" & (VLOOKUP(Rebalance!$D$27,$F$2:$G$48,2,FALSE)+ROW()-2)),\"\")","v":{"$error":"#N/A"}},{"$f":"IF(INDIRECT(\"c\" & (VLOOKUP(Rebalance!$D$28,$F$2:$G$48,2,FALSE)+ROW()-2))=Rebalance!$D$28,INDIRECT(\"a\" & (VLOOKUP(Rebalance!$D$28,$F$2:$G$48,2,FALSE)+ROW()-2)),\"\")","v":{"$error":"#N/A"}},{"$f":"IF(INDIRECT(\"c\" & (VLOOKUP(Rebalance!$D$29,$F$2:$G$48,2,FALSE)+ROW()-2))=Rebalance!$D$29,INDIRECT(\"a\" & (VLOOKUP(Rebalance!$D$29,$F$2:$G$48,2,FALSE)+ROW()-2)),\"\")","v":{"$error":"#N/A"}},{"$f":"IF(INDIRECT(\"c\" & (VLOOKUP(Rebalance!$D$30,$F$2:$G$48,2,FALSE)+ROW()-2))=Rebalance!$D$30,INDIRECT(\"a\" & (VLOOKUP(Rebalance!$D$30,$F$2:$G$48,2,FALSE)+ROW()-2)),\"\")","v":{"$error":"#N/A"}},{"$f":"IF(INDIRECT(\"c\" & (VLOOKUP(Rebalance!$D$31,$F$2:$G$48,2,FALSE)+ROW()-2))=Rebalance!$D$31,INDIRECT(\"a\" & (VLOOKUP(Rebalance!$D$31,$F$2:$G$48,2,FALSE)+ROW()-2)),\"\")","v":{"$error":"#N/A"}},{"$f":"IF(INDIRECT(\"c\" & (VLOOKUP(Rebalance!$D$32,$F$2:$G$48,2,FALSE)+ROW()-2))=Rebalance!$D$32,INDIRECT(\"a\" & (VLOOKUP(Rebalance!$D$32,$F$2:$G$48,2,FALSE)+ROW()-2)),\"\")","v":{"$error":"#N/A"}},{"$f":"IF(INDIRECT(\"c\" & (VLOOKUP(Rebalance!$D$33,$F$2:$G$48,2,FALSE)+ROW()-2))=Rebalance!$D$33,INDIRECT(\"a\" & (VLOOKUP(Rebalance!$D$33,$F$2:$G$48,2,FALSE)+ROW()-2)),\"\")","v":{"$error":"#N/A"}},{"$f":"IF(INDIRECT(\"c\" & (VLOOKUP(Rebalance!$D$34,$F$2:$G$48,2,FALSE)+ROW()-2))=Rebalance!$D$34,INDIRECT(\"a\" & (VLOOKUP(Rebalance!$D$34,$F$2:$G$48,2,FALSE)+ROW()-2)),\"\")","v":{"$error":"#N/A"}},{"$f":"IF(INDIRECT(\"c\" & (VLOOKUP(Rebalance!$D$35,$F$2:$G$48,2,FALSE)+ROW()-2))=Rebalance!$D$35,INDIRECT(\"a\" & (VLOOKUP(Rebalance!$D$35,$F$2:$G$48,2,FALSE)+ROW()-2)),\"\")","v":{"$error":"#N/A"}},{"$f":"IF(INDIRECT(\"c\" & (VLOOKUP(Rebalance!$D$36,$F$2:$G$48,2,FALSE)+ROW()-2))=Rebalance!$D$36,INDIRECT(\"a\" & (VLOOKUP(Rebalance!$D$36,$F$2:$G$48,2,FALSE)+ROW()-2)),\"\")","v":{"$error":"#N/A"}},{"$f":"IF(INDIRECT(\"c\" & (VLOOKUP(Rebalance!$D$37,$F$2:$G$48,2,FALSE)+ROW()-2))=Rebalance!$D$37,INDIRECT(\"a\" & (VLOOKUP(Rebalance!$D$37,$F$2:$G$48,2,FALSE)+ROW()-2)),\"\")","v":{"$error":"#N/A"}},{"$f":"IF(INDIRECT(\"c\" & (VLOOKUP(Rebalance!$D$38,$F$2:$G$48,2,FALSE)+ROW()-2))=Rebalance!$D$38,INDIRECT(\"a\" & (VLOOKUP(Rebalance!$D$38,$F$2:$G$48,2,FALSE)+ROW()-2)),\"\")","v":{"$error":"#N/A"}},{"$f":"IF(INDIRECT(\"c\" & (VLOOKUP(Rebalance!$D$39,$F$2:$G$48,2,FALSE)+ROW()-2))=Rebalance!$D$39,INDIRECT(\"a\" & (VLOOKUP(Rebalance!$D$39,$F$2:$G$48,2,FALSE)+ROW()-2)),\"\")","v":{"$error":"#N/A"}},{"$f":"IF(INDIRECT(\"c\" & (VLOOKUP(Rebalance!$D$40,$F$2:$G$48,2,FALSE)+ROW()-2))=Rebalance!$D$40,INDIRECT(\"a\" & (VLOOKUP(Rebalance!$D$40,$F$2:$G$48,2,FALSE)+ROW()-2)),\"\")","v":{"$error":"#N/A"}},{"$f":"IF(INDIRECT(\"c\" & (VLOOKUP(Rebalance!$D$52,$F$2:$G$48,2,FALSE)+ROW()-2))=Rebalance!$D$52,INDIRECT(\"a\" & (VLOOKUP(Rebalance!$D$52,$F$2:$G$48,2,FALSE)+ROW()-2)),\"\")","v":{"$error":"#N/A"}},{"$f":"IF(INDIRECT(\"c\" & (VLOOKUP(Rebalance!$D$53,$F$2:$G$48,2,FALSE)+ROW()-2))=Rebalance!$D$53,INDIRECT(\"a\" & (VLOOKUP(Rebalance!$D$53,$F$2:$G$48,2,FALSE)+ROW()-2)),\"\")","v":{"$error":"#N/A"}},{"$f":"IF(INDIRECT(\"c\" & (VLOOKUP(Rebalance!$D$54,$F$2:$G$48,2,FALSE)+ROW()-2))=Rebalance!$D$54,INDIRECT(\"a\" & (VLOOKUP(Rebalance!$D$54,$F$2:$G$48,2,FALSE)+ROW()-2)),\"\")","v":{"$error":"#N/A"}},{"$f":"IF(INDIRECT(\"c\" & (VLOOKUP(Rebalance!$D$55,$F$2:$G$48,2,FALSE)+ROW()-2))=Rebalance!$D$55,INDIRECT(\"a\" & (VLOOKUP(Rebalance!$D$55,$F$2:$G$48,2,FALSE)+ROW()-2)),\"\")","v":{"$error":"#N/A"}},{"$f":"IF(INDIRECT(\"c\" & (VLOOKUP(Rebalance!$D$56,$F$2:$G$48,2,FALSE)+ROW()-2))=Rebalance!$D$56,INDIRECT(\"a\" & (VLOOKUP(Rebalance!$D$56,$F$2:$G$48,2,FALSE)+ROW()-2)),\"\")","v":{"$error":"#N/A"}},{"$f":"IF(INDIRECT(\"c\" & (VLOOKUP(Rebalance!$D$57,$F$2:$G$48,2,FALSE)+ROW()-2))=Rebalance!$D$57,INDIRECT(\"a\" & (VLOOKUP(Rebalance!$D$57,$F$2:$G$48,2,FALSE)+ROW()-2)),\"\")","v":{"$error":"#N/A"}},{"$f":"IF(INDIRECT(\"c\" & (VLOOKUP(Rebalance!$D$58,$F$2:$G$48,2,FALSE)+ROW()-2))=Rebalance!$D$58,INDIRECT(\"a\" & (VLOOKUP(Rebalance!$D$58,$F$2:$G$48,2,FALSE)+ROW()-2)),\"\")","v":{"$error":"#N/A"}},{"$f":"IF(INDIRECT(\"c\" & (VLOOKUP(Rebalance!$D$59,$F$2:$G$48,2,FALSE)+ROW()-2))=Rebalance!$D$59,INDIRECT(\"a\" & (VLOOKUP(Rebalance!$D$59,$F$2:$G$48,2,FALSE)+ROW()-2)),\"\")","v":{"$error":"#N/A"}},{"$f":"IF(INDIRECT(\"c\" & (VLOOKUP(Rebalance!$D$60,$F$2:$G$48,2,FALSE)+ROW()-2))=Rebalance!$D$60,INDIRECT(\"a\" & (VLOOKUP(Rebalance!$D$60,$F$2:$G$48,2,FALSE)+ROW()-2)),\"\")","v":{"$error":"#N/A"}},{"$f":"IF(INDIRECT(\"c\" & (VLOOKUP(Rebalance!$D$61,$F$2:$G$48,2,FALSE)+ROW()-2))=Rebalance!$D$61,INDIRECT(\"a\" & (VLOOKUP(Rebalance!$D$61,$F$2:$G$48,2,FALSE)+ROW()-2)),\"\")","v":{"$error":"#N/A"}},{"$f":"IF(INDIRECT(\"c\" & (VLOOKUP(Rebalance!$D$62,$F$2:$G$48,2,FALSE)+ROW()-2))=Rebalance!$D$62,INDIRECT(\"a\" & (VLOOKUP(Rebalance!$D$62,$F$2:$G$48,2,FALSE)+ROW()-2)),\"\")","v":{"$error":"#N/A"}},{"$f":"IF(INDIRECT(\"c\" & (VLOOKUP(Rebalance!$D$63,$F$2:$G$48,2,FALSE)+ROW()-2))=Rebalance!$D$63,INDIRECT(\"a\" & (VLOOKUP(Rebalance!$D$63,$F$2:$G$48,2,FALSE)+ROW()-2)),\"\")","v":{"$error":"#N/A"}},{"$f":"IF(INDIRECT(\"c\" & (VLOOKUP(Rebalance!$D$64,$F$2:$G$48,2,FALSE)+ROW()-2))=Rebalance!$D$64,INDIRECT(\"a\" & (VLOOKUP(Rebalance!$D$64,$F$2:$G$48,2,FALSE)+ROW()-2)),\"\")","v":{"$error":"#N/A"}},{"$f":"IF(INDIRECT(\"c\" & (VLOOKUP(Rebalance!$D$65,$F$2:$G$48,2,FALSE)+ROW()-2))=Rebalance!$D$65,INDIRECT(\"a\" & (VLOOKUP(Rebalance!$D$65,$F$2:$G$48,2,FALSE)+ROW()-2)),\"\")","v":{"$error":"#N/A"}},{"$f":"IF(INDIRECT(\"c\" & (VLOOKUP(Rebalance!$D$66,$F$2:$G$48,2,FALSE)+ROW()-2))=Rebalance!$D$66,INDIRECT(\"a\" & (VLOOKUP(Rebalance!$D$66,$F$2:$G$48,2,FALSE)+ROW()-2)),\"\")","v":{"$error":"#N/A"}}]
["Old Mutual MSCI Emerging Markets ESG Index Feeder Fund B1","OCEMB1","Old Mutual Unit Trust Managers Limited",{"$f":"ROW()","v":428},null,null,{"$f":"VLOOKUP(F428,$C$2:$D$599,2,FALSE)","v":{"$error":"#N/A"}},{"$f":"IF(INDIRECT(\"c\" & (VLOOKUP(Rebalance!$D$26,$F$2:$G$48,2,FALSE)+ROW()-2))=Rebalance!$D$26,INDIRECT(\"a\" & (VLOOKUP(Rebalance!$D$26,$F$2:$G$48,2,FALSE)+ROW()-2)),\"\")","v":{"$error":"#N/A"}},{"$f":"IF(INDIRECT(\"c\" & (VLOOKUP(Rebalance!$D$27,$F$2:$G$48,2,FALSE)+ROW()-2))=Rebalance!$D$27,INDIRECT(\"a\" & (VLOOKUP(Rebalance!$D$27,$F$2:$G$48,2,FALSE)+ROW()-2)),\"\")","v":{"$error":"#N/A"}},{"$f":"IF(INDIRECT(\"c\" & (VLOOKUP(Rebalance!$D$28,$F$2:$G$48,2,FALSE)+ROW()-2))=Rebalance!$D$28,INDIRECT(\"a\" & (VLOOKUP(Rebalance!$D$28,$F$2:$G$48,2,FALSE)+ROW()-2)),\"\")","v":{"$error":"#N/A"}},{"$f":"IF(INDIRECT(\"c\" & (VLOOKUP(Rebalance!$D$29,$F$2:$G$48,2,FALSE)+ROW()-2))=Rebalance!$D$29,INDIRECT(\"a\" & (VLOOKUP(Rebalance!$D$29,$F$2:$G$48,2,FALSE)+ROW()-2)),\"\")","v":{"$error":"#N/A"}},{"$f":"IF(INDIRECT(\"c\" & (VLOOKUP(Rebalance!$D$30,$F$2:$G$48,2,FALSE)+ROW()-2))=Rebalance!$D$30,INDIRECT(\"a\" & (VLOOKUP(Rebalance!$D$30,$F$2:$G$48,2,FALSE)+ROW()-2)),\"\")","v":{"$error":"#N/A"}},{"$f":"IF(INDIRECT(\"c\" & (VLOOKUP(Rebalance!$D$31,$F$2:$G$48,2,FALSE)+ROW()-2))=Rebalance!$D$31,INDIRECT(\"a\" & (VLOOKUP(Rebalance!$D$31,$F$2:$G$48,2,FALSE)+ROW()-2)),\"\")","v":{"$error":"#N/A"}},{"$f":"IF(INDIRECT(\"c\" & (VLOOKUP(Rebalance!$D$32,$F$2:$G$48,2,FALSE)+ROW()-2))=Rebalance!$D$32,INDIRECT(\"a\" & (VLOOKUP(Rebalance!$D$32,$F$2:$G$48,2,FALSE)+ROW()-2)),\"\")","v":{"$error":"#N/A"}},{"$f":"IF(INDIRECT(\"c\" & (VLOOKUP(Rebalance!$D$33,$F$2:$G$48,2,FALSE)+ROW()-2))=Rebalance!$D$33,INDIRECT(\"a\" & (VLOOKUP(Rebalance!$D$33,$F$2:$G$48,2,FALSE)+ROW()-2)),\"\")","v":{"$error":"#N/A"}},{"$f":"IF(INDIRECT(\"c\" & (VLOOKUP(Rebalance!$D$34,$F$2:$G$48,2,FALSE)+ROW()-2))=Rebalance!$D$34,INDIRECT(\"a\" & (VLOOKUP(Rebalance!$D$34,$F$2:$G$48,2,FALSE)+ROW()-2)),\"\")","v":{"$error":"#N/A"}},{"$f":"IF(INDIRECT(\"c\" & (VLOOKUP(Rebalance!$D$35,$F$2:$G$48,2,FALSE)+ROW()-2))=Rebalance!$D$35,INDIRECT(\"a\" & (VLOOKUP(Rebalance!$D$35,$F$2:$G$48,2,FALSE)+ROW()-2)),\"\")","v":{"$error":"#N/A"}},{"$f":"IF(INDIRECT(\"c\" & (VLOOKUP(Rebalance!$D$36,$F$2:$G$48,2,FALSE)+ROW()-2))=Rebalance!$D$36,INDIRECT(\"a\" & (VLOOKUP(Rebalance!$D$36,$F$2:$G$48,2,FALSE)+ROW()-2)),\"\")","v":{"$error":"#N/A"}},{"$f":"IF(INDIRECT(\"c\" & (VLOOKUP(Rebalance!$D$37,$F$2:$G$48,2,FALSE)+ROW()-2))=Rebalance!$D$37,INDIRECT(\"a\" & (VLOOKUP(Rebalance!$D$37,$F$2:$G$48,2,FALSE)+ROW()-2)),\"\")","v":{"$error":"#N/A"}},{"$f":"IF(INDIRECT(\"c\" & (VLOOKUP(Rebalance!$D$38,$F$2:$G$48,2,FALSE)+ROW()-2))=Rebalance!$D$38,INDIRECT(\"a\" & (VLOOKUP(Rebalance!$D$38,$F$2:$G$48,2,FALSE)+ROW()-2)),\"\")","v":{"$error":"#N/A"}},{"$f":"IF(INDIRECT(\"c\" & (VLOOKUP(Rebalance!$D$39,$F$2:$G$48,2,FALSE)+ROW()-2))=Rebalance!$D$39,INDIRECT(\"a\" & (VLOOKUP(Rebalance!$D$39,$F$2:$G$48,2,FALSE)+ROW()-2)),\"\")","v":{"$error":"#N/A"}},{"$f":"IF(INDIRECT(\"c\" & (VLOOKUP(Rebalance!$D$40,$F$2:$G$48,2,FALSE)+ROW()-2))=Rebalance!$D$40,INDIRECT(\"a\" & (VLOOKUP(Rebalance!$D$40,$F$2:$G$48,2,FALSE)+ROW()-2)),\"\")","v":{"$error":"#N/A"}},{"$f":"IF(INDIRECT(\"c\" & (VLOOKUP(Rebalance!$D$52,$F$2:$G$48,2,FALSE)+ROW()-2))=Rebalance!$D$52,INDIRECT(\"a\" & (VLOOKUP(Rebalance!$D$52,$F$2:$G$48,2,FALSE)+ROW()-2)),\"\")","v":{"$error":"#N/A"}},{"$f":"IF(INDIRECT(\"c\" & (VLOOKUP(Rebalance!$D$53,$F$2:$G$48,2,FALSE)+ROW()-2))=Rebalance!$D$53,INDIRECT(\"a\" & (VLOOKUP(Rebalance!$D$53,$F$2:$G$48,2,FALSE)+ROW()-2)),\"\")","v":{"$error":"#N/A"}},{"$f":"IF(INDIRECT(\"c\" & (VLOOKUP(Rebalance!$D$54,$F$2:$G$48,2,FALSE)+ROW()-2))=Rebalance!$D$54,INDIRECT(\"a\" & (VLOOKUP(Rebalance!$D$54,$F$2:$G$48,2,FALSE)+ROW()-2)),\"\")","v":{"$error":"#N/A"}},{"$f":"IF(INDIRECT(\"c\" & (VLOOKUP(Rebalance!$D$55,$F$2:$G$48,2,FALSE)+ROW()-2))=Rebalance!$D$55,INDIRECT(\"a\" & (VLOOKUP(Rebalance!$D$55,$F$2:$G$48,2,FALSE)+ROW()-2)),\"\")","v":{"$error":"#N/A"}},{"$f":"IF(INDIRECT(\"c\" & (VLOOKUP(Rebalance!$D$56,$F$2:$G$48,2,FALSE)+ROW()-2))=Rebalance!$D$56,INDIRECT(\"a\" & (VLOOKUP(Rebalance!$D$56,$F$2:$G$48,2,FALSE)+ROW()-2)),\"\")","v":{"$error":"#N/A"}},{"$f":"IF(INDIRECT(\"c\" & (VLOOKUP(Rebalance!$D$57,$F$2:$G$48,2,FALSE)+ROW()-2))=Rebalance!$D$57,INDIRECT(\"a\" & (VLOOKUP(Rebalance!$D$57,$F$2:$G$48,2,FALSE)+ROW()-2)),\"\")","v":{"$error":"#N/A"}},{"$f":"IF(INDIRECT(\"c\" & (VLOOKUP(Rebalance!$D$58,$F$2:$G$48,2,FALSE)+ROW()-2))=Rebalance!$D$58,INDIRECT(\"a\" & (VLOOKUP(Rebalance!$D$58,$F$2:$G$48,2,FALSE)+ROW()-2)),\"\")","v":{"$error":"#N/A"}},{"$f":"IF(INDIRECT(\"c\" & (VLOOKUP(Rebalance!$D$59,$F$2:$G$48,2,FALSE)+ROW()-2))=Rebalance!$D$59,INDIRECT(\"a\" & (VLOOKUP(Rebalance!$D$59,$F$2:$G$48,2,FALSE)+ROW()-2)),\"\")","v":{"$error":"#N/A"}},{"$f":"IF(INDIRECT(\"c\" & (VLOOKUP(Rebalance!$D$60,$F$2:$G$48,2,FALSE)+ROW()-2))=Rebalance!$D$60,INDIRECT(\"a\" & (VLOOKUP(Rebalance!$D$60,$F$2:$G$48,2,FALSE)+ROW()-2)),\"\")","v":{"$error":"#N/A"}},{"$f":"IF(INDIRECT(\"c\" & (VLOOKUP(Rebalance!$D$61,$F$2:$G$48,2,FALSE)+ROW()-2))=Rebalance!$D$61,INDIRECT(\"a\" & (VLOOKUP(Rebalance!$D$61,$F$2:$G$48,2,FALSE)+ROW()-2)),\"\")","v":{"$error":"#N/A"}},{"$f":"IF(INDIRECT(\"c\" & (VLOOKUP(Rebalance!$D$62,$F$2:$G$48,2,FALSE)+ROW()-2))=Rebalance!$D$62,INDIRECT(\"a\" & (VLOOKUP(Rebalance!$D$62,$F$2:$G$48,2,FALSE)+ROW()-2)),\"\")","v":{"$error":"#N/A"}},{"$f":"IF(INDIRECT(\"c\" & (VLOOKUP(Rebalance!$D$63,$F$2:$G$48,2,FALSE)+ROW()-2))=Rebalance!$D$63,INDIRECT(\"a\" & (VLOOKUP(Rebalance!$D$63,$F$2:$G$48,2,FALSE)+ROW()-2)),\"\")","v":{"$error":"#N/A"}},{"$f":"IF(INDIRECT(\"c\" & (VLOOKUP(Rebalance!$D$64,$F$2:$G$48,2,FALSE)+ROW()-2))=Rebalance!$D$64,INDIRECT(\"a\" & (VLOOKUP(Rebalance!$D$64,$F$2:$G$48,2,FALSE)+ROW()-2)),\"\")","v":{"$error":"#N/A"}},{"$f":"IF(INDIRECT(\"c\" & (VLOOKUP(Rebalance!$D$65,$F$2:$G$48,2,FALSE)+ROW()-2))=Rebalance!$D$65,INDIRECT(\"a\" & (VLOOKUP(Rebalance!$D$65,$F$2:$G$48,2,FALSE)+ROW()-2)),\"\")","v":{"$error":"#N/A"}},{"$f":"IF(INDIRECT(\"c\" & (VLOOKUP(Rebalance!$D$66,$F$2:$G$48,2,FALSE)+ROW()-2))=Rebalance!$D$66,INDIRECT(\"a\" & (VLOOKUP(Rebalance!$D$66,$F$2:$G$48,2,FALSE)+ROW()-2)),\"\")","v":{"$error":"#N/A"}}]
["Old Mutual Multi-Managers Balanced Fund of Funds B4","SYBB4","Old Mutual Unit Trust Managers Limited",{"$f":"ROW()","v":429},null,null,{"$f":"VLOOKUP(F429,$C$2:$D$599,2,FALSE)","v":{"$error":"#N/A"}},{"$f":"IF(INDIRECT(\"c\" & (VLOOKUP(Rebalance!$D$26,$F$2:$G$48,2,FALSE)+ROW()-2))=Rebalance!$D$26,INDIRECT(\"a\" & (VLOOKUP(Rebalance!$D$26,$F$2:$G$48,2,FALSE)+ROW()-2)),\"\")","v":{"$error":"#N/A"}},{"$f":"IF(INDIRECT(\"c\" & (VLOOKUP(Rebalance!$D$27,$F$2:$G$48,2,FALSE)+ROW()-2))=Rebalance!$D$27,INDIRECT(\"a\" & (VLOOKUP(Rebalance!$D$27,$F$2:$G$48,2,FALSE)+ROW()-2)),\"\")","v":{"$error":"#N/A"}},{"$f":"IF(INDIRECT(\"c\" & (VLOOKUP(Rebalance!$D$28,$F$2:$G$48,2,FALSE)+ROW()-2))=Rebalance!$D$28,INDIRECT(\"a\" & (VLOOKUP(Rebalance!$D$28,$F$2:$G$48,2,FALSE)+ROW()-2)),\"\")","v":{"$error":"#N/A"}},{"$f":"IF(INDIRECT(\"c\" & (VLOOKUP(Rebalance!$D$29,$F$2:$G$48,2,FALSE)+ROW()-2))=Rebalance!$D$29,INDIRECT(\"a\" & (VLOOKUP(Rebalance!$D$29,$F$2:$G$48,2,FALSE)+ROW()-2)),\"\")","v":{"$error":"#N/A"}},{"$f":"IF(INDIRECT(\"c\" & (VLOOKUP(Rebalance!$D$30,$F$2:$G$48,2,FALSE)+ROW()-2))=Rebalance!$D$30,INDIRECT(\"a\" & (VLOOKUP(Rebalance!$D$30,$F$2:$G$48,2,FALSE)+ROW()-2)),\"\")","v":{"$error":"#N/A"}},{"$f":"IF(INDIRECT(\"c\" & (VLOOKUP(Rebalance!$D$31,$F$2:$G$48,2,FALSE)+ROW()-2))=Rebalance!$D$31,INDIRECT(\"a\" & (VLOOKUP(Rebalance!$D$31,$F$2:$G$48,2,FALSE)+ROW()-2)),\"\")","v":{"$error":"#N/A"}},{"$f":"IF(INDIRECT(\"c\" & (VLOOKUP(Rebalance!$D$32,$F$2:$G$48,2,FALSE)+ROW()-2))=Rebalance!$D$32,INDIRECT(\"a\" & (VLOOKUP(Rebalance!$D$32,$F$2:$G$48,2,FALSE)+ROW()-2)),\"\")","v":{"$error":"#N/A"}},{"$f":"IF(INDIRECT(\"c\" & (VLOOKUP(Rebalance!$D$33,$F$2:$G$48,2,FALSE)+ROW()-2))=Rebalance!$D$33,INDIRECT(\"a\" & (VLOOKUP(Rebalance!$D$33,$F$2:$G$48,2,FALSE)+ROW()-2)),\"\")","v":{"$error":"#N/A"}},{"$f":"IF(INDIRECT(\"c\" & (VLOOKUP(Rebalance!$D$34,$F$2:$G$48,2,FALSE)+ROW()-2))=Rebalance!$D$34,INDIRECT(\"a\" & (VLOOKUP(Rebalance!$D$34,$F$2:$G$48,2,FALSE)+ROW()-2)),\"\")","v":{"$error":"#N/A"}},{"$f":"IF(INDIRECT(\"c\" & (VLOOKUP(Rebalance!$D$35,$F$2:$G$48,2,FALSE)+ROW()-2))=Rebalance!$D$35,INDIRECT(\"a\" & (VLOOKUP(Rebalance!$D$35,$F$2:$G$48,2,FALSE)+ROW()-2)),\"\")","v":{"$error":"#N/A"}},{"$f":"IF(INDIRECT(\"c\" & (VLOOKUP(Rebalance!$D$36,$F$2:$G$48,2,FALSE)+ROW()-2))=Rebalance!$D$36,INDIRECT(\"a\" & (VLOOKUP(Rebalance!$D$36,$F$2:$G$48,2,FALSE)+ROW()-2)),\"\")","v":{"$error":"#N/A"}},{"$f":"IF(INDIRECT(\"c\" & (VLOOKUP(Rebalance!$D$37,$F$2:$G$48,2,FALSE)+ROW()-2))=Rebalance!$D$37,INDIRECT(\"a\" & (VLOOKUP(Rebalance!$D$37,$F$2:$G$48,2,FALSE)+ROW()-2)),\"\")","v":{"$error":"#N/A"}},{"$f":"IF(INDIRECT(\"c\" & (VLOOKUP(Rebalance!$D$38,$F$2:$G$48,2,FALSE)+ROW()-2))=Rebalance!$D$38,INDIRECT(\"a\" & (VLOOKUP(Rebalance!$D$38,$F$2:$G$48,2,FALSE)+ROW()-2)),\"\")","v":{"$error":"#N/A"}},{"$f":"IF(INDIRECT(\"c\" & (VLOOKUP(Rebalance!$D$39,$F$2:$G$48,2,FALSE)+ROW()-2))=Rebalance!$D$39,INDIRECT(\"a\" & (VLOOKUP(Rebalance!$D$39,$F$2:$G$48,2,FALSE)+ROW()-2)),\"\")","v":{"$error":"#N/A"}},{"$f":"IF(INDIRECT(\"c\" & (VLOOKUP(Rebalance!$D$40,$F$2:$G$48,2,FALSE)+ROW()-2))=Rebalance!$D$40,INDIRECT(\"a\" & (VLOOKUP(Rebalance!$D$40,$F$2:$G$48,2,FALSE)+ROW()-2)),\"\")","v":{"$error":"#N/A"}},{"$f":"IF(INDIRECT(\"c\" & (VLOOKUP(Rebalance!$D$52,$F$2:$G$48,2,FALSE)+ROW()-2))=Rebalance!$D$52,INDIRECT(\"a\" & (VLOOKUP(Rebalance!$D$52,$F$2:$G$48,2,FALSE)+ROW()-2)),\"\")","v":{"$error":"#N/A"}},{"$f":"IF(INDIRECT(\"c\" & (VLOOKUP(Rebalance!$D$53,$F$2:$G$48,2,FALSE)+ROW()-2))=Rebalance!$D$53,INDIRECT(\"a\" & (VLOOKUP(Rebalance!$D$53,$F$2:$G$48,2,FALSE)+ROW()-2)),\"\")","v":{"$error":"#N/A"}},{"$f":"IF(INDIRECT(\"c\" & (VLOOKUP(Rebalance!$D$54,$F$2:$G$48,2,FALSE)+ROW()-2))=Rebalance!$D$54,INDIRECT(\"a\" & (VLOOKUP(Rebalance!$D$54,$F$2:$G$48,2,FALSE)+ROW()-2)),\"\")","v":{"$error":"#N/A"}},{"$f":"IF(INDIRECT(\"c\" & (VLOOKUP(Rebalance!$D$55,$F$2:$G$48,2,FALSE)+ROW()-2))=Rebalance!$D$55,INDIRECT(\"a\" & (VLOOKUP(Rebalance!$D$55,$F$2:$G$48,2,FALSE)+ROW()-2)),\"\")","v":{"$error":"#N/A"}},{"$f":"IF(INDIRECT(\"c\" & (VLOOKUP(Rebalance!$D$56,$F$2:$G$48,2,FALSE)+ROW()-2))=Rebalance!$D$56,INDIRECT(\"a\" & (VLOOKUP(Rebalance!$D$56,$F$2:$G$48,2,FALSE)+ROW()-2)),\"\")","v":{"$error":"#N/A"}},{"$f":"IF(INDIRECT(\"c\" & (VLOOKUP(Rebalance!$D$57,$F$2:$G$48,2,FALSE)+ROW()-2))=Rebalance!$D$57,INDIRECT(\"a\" & (VLOOKUP(Rebalance!$D$57,$F$2:$G$48,2,FALSE)+ROW()-2)),\"\")","v":{"$error":"#N/A"}},{"$f":"IF(INDIRECT(\"c\" & (VLOOKUP(Rebalance!$D$58,$F$2:$G$48,2,FALSE)+ROW()-2))=Rebalance!$D$58,INDIRECT(\"a\" & (VLOOKUP(Rebalance!$D$58,$F$2:$G$48,2,FALSE)+ROW()-2)),\"\")","v":{"$error":"#N/A"}},{"$f":"IF(INDIRECT(\"c\" & (VLOOKUP(Rebalance!$D$59,$F$2:$G$48,2,FALSE)+ROW()-2))=Rebalance!$D$59,INDIRECT(\"a\" & (VLOOKUP(Rebalance!$D$59,$F$2:$G$48,2,FALSE)+ROW()-2)),\"\")","v":{"$error":"#N/A"}},{"$f":"IF(INDIRECT(\"c\" & (VLOOKUP(Rebalance!$D$60,$F$2:$G$48,2,FALSE)+ROW()-2))=Rebalance!$D$60,INDIRECT(\"a\" & (VLOOKUP(Rebalance!$D$60,$F$2:$G$48,2,FALSE)+ROW()-2)),\"\")","v":{"$error":"#N/A"}},{"$f":"IF(INDIRECT(\"c\" & (VLOOKUP(Rebalance!$D$61,$F$2:$G$48,2,FALSE)+ROW()-2))=Rebalance!$D$61,INDIRECT(\"a\" & (VLOOKUP(Rebalance!$D$61,$F$2:$G$48,2,FALSE)+ROW()-2)),\"\")","v":{"$error":"#N/A"}},{"$f":"IF(INDIRECT(\"c\" & (VLOOKUP(Rebalance!$D$62,$F$2:$G$48,2,FALSE)+ROW()-2))=Rebalance!$D$62,INDIRECT(\"a\" & (VLOOKUP(Rebalance!$D$62,$F$2:$G$48,2,FALSE)+ROW()-2)),\"\")","v":{"$error":"#N/A"}},{"$f":"IF(INDIRECT(\"c\" & (VLOOKUP(Rebalance!$D$63,$F$2:$G$48,2,FALSE)+ROW()-2))=Rebalance!$D$63,INDIRECT(\"a\" & (VLOOKUP(Rebalance!$D$63,$F$2:$G$48,2,FALSE)+ROW()-2)),\"\")","v":{"$error":"#N/A"}},{"$f":"IF(INDIRECT(\"c\" & (VLOOKUP(Rebalance!$D$64,$F$2:$G$48,2,FALSE)+ROW()-2))=Rebalance!$D$64,INDIRECT(\"a\" & (VLOOKUP(Rebalance!$D$64,$F$2:$G$48,2,FALSE)+ROW()-2)),\"\")","v":{"$error":"#N/A"}},{"$f":"IF(INDIRECT(\"c\" & (VLOOKUP(Rebalance!$D$65,$F$2:$G$48,2,FALSE)+ROW()-2))=Rebalance!$D$65,INDIRECT(\"a\" & (VLOOKUP(Rebalance!$D$65,$F$2:$G$48,2,FALSE)+ROW()-2)),\"\")","v":{"$error":"#N/A"}},{"$f":"IF(INDIRECT(\"c\" & (VLOOKUP(Rebalance!$D$66,$F$2:$G$48,2,FALSE)+ROW()-2))=Rebalance!$D$66,INDIRECT(\"a\" & (VLOOKUP(Rebalance!$D$66,$F$2:$G$48,2,FALSE)+ROW()-2)),\"\")","v":{"$error":"#N/A"}}]
["Old Mutual Real Income Fund A","MICA","Old Mutual Unit Trust Managers Limited",{"$f":"ROW()","v":430},null,null,{"$f":"VLOOKUP(F430,$C$2:$D$599,2,FALSE)","v":{"$error":"#N/A"}},{"$f":"IF(INDIRECT(\"c\" & (VLOOKUP(Rebalance!$D$26,$F$2:$G$48,2,FALSE)+ROW()-2))=Rebalance!$D$26,INDIRECT(\"a\" & (VLOOKUP(Rebalance!$D$26,$F$2:$G$48,2,FALSE)+ROW()-2)),\"\")","v":{"$error":"#N/A"}},{"$f":"IF(INDIRECT(\"c\" & (VLOOKUP(Rebalance!$D$27,$F$2:$G$48,2,FALSE)+ROW()-2))=Rebalance!$D$27,INDIRECT(\"a\" & (VLOOKUP(Rebalance!$D$27,$F$2:$G$48,2,FALSE)+ROW()-2)),\"\")","v":{"$error":"#N/A"}},{"$f":"IF(INDIRECT(\"c\" & (VLOOKUP(Rebalance!$D$28,$F$2:$G$48,2,FALSE)+ROW()-2))=Rebalance!$D$28,INDIRECT(\"a\" & (VLOOKUP(Rebalance!$D$28,$F$2:$G$48,2,FALSE)+ROW()-2)),\"\")","v":{"$error":"#N/A"}},{"$f":"IF(INDIRECT(\"c\" & (VLOOKUP(Rebalance!$D$29,$F$2:$G$48,2,FALSE)+ROW()-2))=Rebalance!$D$29,INDIRECT(\"a\" & (VLOOKUP(Rebalance!$D$29,$F$2:$G$48,2,FALSE)+ROW()-2)),\"\")","v":{"$error":"#N/A"}},{"$f":"IF(INDIRECT(\"c\" & (VLOOKUP(Rebalance!$D$30,$F$2:$G$48,2,FALSE)+ROW()-2))=Rebalance!$D$30,INDIRECT(\"a\" & (VLOOKUP(Rebalance!$D$30,$F$2:$G$48,2,FALSE)+ROW()-2)),\"\")","v":{"$error":"#N/A"}},{"$f":"IF(INDIRECT(\"c\" & (VLOOKUP(Rebalance!$D$31,$F$2:$G$48,2,FALSE)+ROW()-2))=Rebalance!$D$31,INDIRECT(\"a\" & (VLOOKUP(Rebalance!$D$31,$F$2:$G$48,2,FALSE)+ROW()-2)),\"\")","v":{"$error":"#N/A"}},{"$f":"IF(INDIRECT(\"c\" & (VLOOKUP(Rebalance!$D$32,$F$2:$G$48,2,FALSE)+ROW()-2))=Rebalance!$D$32,INDIRECT(\"a\" & (VLOOKUP(Rebalance!$D$32,$F$2:$G$48,2,FALSE)+ROW()-2)),\"\")","v":{"$error":"#N/A"}},{"$f":"IF(INDIRECT(\"c\" & (VLOOKUP(Rebalance!$D$33,$F$2:$G$48,2,FALSE)+ROW()-2))=Rebalance!$D$33,INDIRECT(\"a\" & (VLOOKUP(Rebalance!$D$33,$F$2:$G$48,2,FALSE)+ROW()-2)),\"\")","v":{"$error":"#N/A"}},{"$f":"IF(INDIRECT(\"c\" & (VLOOKUP(Rebalance!$D$34,$F$2:$G$48,2,FALSE)+ROW()-2))=Rebalance!$D$34,INDIRECT(\"a\" & (VLOOKUP(Rebalance!$D$34,$F$2:$G$48,2,FALSE)+ROW()-2)),\"\")","v":{"$error":"#N/A"}},{"$f":"IF(INDIRECT(\"c\" & (VLOOKUP(Rebalance!$D$35,$F$2:$G$48,2,FALSE)+ROW()-2))=Rebalance!$D$35,INDIRECT(\"a\" & (VLOOKUP(Rebalance!$D$35,$F$2:$G$48,2,FALSE)+ROW()-2)),\"\")","v":{"$error":"#N/A"}},{"$f":"IF(INDIRECT(\"c\" & (VLOOKUP(Rebalance!$D$36,$F$2:$G$48,2,FALSE)+ROW()-2))=Rebalance!$D$36,INDIRECT(\"a\" & (VLOOKUP(Rebalance!$D$36,$F$2:$G$48,2,FALSE)+ROW()-2)),\"\")","v":{"$error":"#N/A"}},{"$f":"IF(INDIRECT(\"c\" & (VLOOKUP(Rebalance!$D$37,$F$2:$G$48,2,FALSE)+ROW()-2))=Rebalance!$D$37,INDIRECT(\"a\" & (VLOOKUP(Rebalance!$D$37,$F$2:$G$48,2,FALSE)+ROW()-2)),\"\")","v":{"$error":"#N/A"}},{"$f":"IF(INDIRECT(\"c\" & (VLOOKUP(Rebalance!$D$38,$F$2:$G$48,2,FALSE)+ROW()-2))=Rebalance!$D$38,INDIRECT(\"a\" & (VLOOKUP(Rebalance!$D$38,$F$2:$G$48,2,FALSE)+ROW()-2)),\"\")","v":{"$error":"#N/A"}},{"$f":"IF(INDIRECT(\"c\" & (VLOOKUP(Rebalance!$D$39,$F$2:$G$48,2,FALSE)+ROW()-2))=Rebalance!$D$39,INDIRECT(\"a\" & (VLOOKUP(Rebalance!$D$39,$F$2:$G$48,2,FALSE)+ROW()-2)),\"\")","v":{"$error":"#N/A"}},{"$f":"IF(INDIRECT(\"c\" & (VLOOKUP(Rebalance!$D$40,$F$2:$G$48,2,FALSE)+ROW()-2))=Rebalance!$D$40,INDIRECT(\"a\" & (VLOOKUP(Rebalance!$D$40,$F$2:$G$48,2,FALSE)+ROW()-2)),\"\")","v":{"$error":"#N/A"}},{"$f":"IF(INDIRECT(\"c\" & (VLOOKUP(Rebalance!$D$52,$F$2:$G$48,2,FALSE)+ROW()-2))=Rebalance!$D$52,INDIRECT(\"a\" & (VLOOKUP(Rebalance!$D$52,$F$2:$G$48,2,FALSE)+ROW()-2)),\"\")","v":{"$error":"#N/A"}},{"$f":"IF(INDIRECT(\"c\" & (VLOOKUP(Rebalance!$D$53,$F$2:$G$48,2,FALSE)+ROW()-2))=Rebalance!$D$53,INDIRECT(\"a\" & (VLOOKUP(Rebalance!$D$53,$F$2:$G$48,2,FALSE)+ROW()-2)),\"\")","v":{"$error":"#N/A"}},{"$f":"IF(INDIRECT(\"c\" & (VLOOKUP(Rebalance!$D$54,$F$2:$G$48,2,FALSE)+ROW()-2))=Rebalance!$D$54,INDIRECT(\"a\" & (VLOOKUP(Rebalance!$D$54,$F$2:$G$48,2,FALSE)+ROW()-2)),\"\")","v":{"$error":"#N/A"}},{"$f":"IF(INDIRECT(\"c\" & (VLOOKUP(Rebalance!$D$55,$F$2:$G$48,2,FALSE)+ROW()-2))=Rebalance!$D$55,INDIRECT(\"a\" & (VLOOKUP(Rebalance!$D$55,$F$2:$G$48,2,FALSE)+ROW()-2)),\"\")","v":{"$error":"#N/A"}},{"$f":"IF(INDIRECT(\"c\" & (VLOOKUP(Rebalance!$D$56,$F$2:$G$48,2,FALSE)+ROW()-2))=Rebalance!$D$56,INDIRECT(\"a\" & (VLOOKUP(Rebalance!$D$56,$F$2:$G$48,2,FALSE)+ROW()-2)),\"\")","v":{"$error":"#N/A"}},{"$f":"IF(INDIRECT(\"c\" & (VLOOKUP(Rebalance!$D$57,$F$2:$G$48,2,FALSE)+ROW()-2))=Rebalance!$D$57,INDIRECT(\"a\" & (VLOOKUP(Rebalance!$D$57,$F$2:$G$48,2,FALSE)+ROW()-2)),\"\")","v":{"$error":"#N/A"}},{"$f":"IF(INDIRECT(\"c\" & (VLOOKUP(Rebalance!$D$58,$F$2:$G$48,2,FALSE)+ROW()-2))=Rebalance!$D$58,INDIRECT(\"a\" & (VLOOKUP(Rebalance!$D$58,$F$2:$G$48,2,FALSE)+ROW()-2)),\"\")","v":{"$error":"#N/A"}},{"$f":"IF(INDIRECT(\"c\" & (VLOOKUP(Rebalance!$D$59,$F$2:$G$48,2,FALSE)+ROW()-2))=Rebalance!$D$59,INDIRECT(\"a\" & (VLOOKUP(Rebalance!$D$59,$F$2:$G$48,2,FALSE)+ROW()-2)),\"\")","v":{"$error":"#N/A"}},{"$f":"IF(INDIRECT(\"c\" & (VLOOKUP(Rebalance!$D$60,$F$2:$G$48,2,FALSE)+ROW()-2))=Rebalance!$D$60,INDIRECT(\"a\" & (VLOOKUP(Rebalance!$D$60,$F$2:$G$48,2,FALSE)+ROW()-2)),\"\")","v":{"$error":"#N/A"}},{"$f":"IF(INDIRECT(\"c\" & (VLOOKUP(Rebalance!$D$61,$F$2:$G$48,2,FALSE)+ROW()-2))=Rebalance!$D$61,INDIRECT(\"a\" & (VLOOKUP(Rebalance!$D$61,$F$2:$G$48,2,FALSE)+ROW()-2)),\"\")","v":{"$error":"#N/A"}},{"$f":"IF(INDIRECT(\"c\" & (VLOOKUP(Rebalance!$D$62,$F$2:$G$48,2,FALSE)+ROW()-2))=Rebalance!$D$62,INDIRECT(\"a\" & (VLOOKUP(Rebalance!$D$62,$F$2:$G$48,2,FALSE)+ROW()-2)),\"\")","v":{"$error":"#N/A"}},{"$f":"IF(INDIRECT(\"c\" & (VLOOKUP(Rebalance!$D$63,$F$2:$G$48,2,FALSE)+ROW()-2))=Rebalance!$D$63,INDIRECT(\"a\" & (VLOOKUP(Rebalance!$D$63,$F$2:$G$48,2,FALSE)+ROW()-2)),\"\")","v":{"$error":"#N/A"}},{"$f":"IF(INDIRECT(\"c\" & (VLOOKUP(Rebalance!$D$64,$F$2:$G$48,2,FALSE)+ROW()-2))=Rebalance!$D$64,INDIRECT(\"a\" & (VLOOKUP(Rebalance!$D$64,$F$2:$G$48,2,FALSE)+ROW()-2)),\"\")","v":{"$error":"#N/A"}},{"$f":"IF(INDIRECT(\"c\" & (VLOOKUP(Rebalance!$D$65,$F$2:$G$48,2,FALSE)+ROW()-2))=Rebalance!$D$65,INDIRECT(\"a\" & (VLOOKUP(Rebalance!$D$65,$F$2:$G$48,2,FALSE)+ROW()-2)),\"\")","v":{"$error":"#N/A"}},{"$f":"IF(INDIRECT(\"c\" & (VLOOKUP(Rebalance!$D$66,$F$2:$G$48,2,FALSE)+ROW()-2))=Rebalance!$D$66,INDIRECT(\"a\" & (VLOOKUP(Rebalance!$D$66,$F$2:$G$48,2,FALSE)+ROW()-2)),\"\")","v":{"$error":"#N/A"}}]
["Old Mutual Real Income Fund B","MICA","Old Mutual Unit Trust Managers Limited",{"$f":"ROW()","v":431},null,null,{"$f":"VLOOKUP(F431,$C$2:$D$599,2,FALSE)","v":{"$error":"#N/A"}},{"$f":"IF(INDIRECT(\"c\" & (VLOOKUP(Rebalance!$D$26,$F$2:$G$48,2,FALSE)+ROW()-2))=Rebalance!$D$26,INDIRECT(\"a\" & (VLOOKUP(Rebalance!$D$26,$F$2:$G$48,2,FALSE)+ROW()-2)),\"\")","v":{"$error":"#N/A"}},{"$f":"IF(INDIRECT(\"c\" & (VLOOKUP(Rebalance!$D$27,$F$2:$G$48,2,FALSE)+ROW()-2))=Rebalance!$D$27,INDIRECT(\"a\" & (VLOOKUP(Rebalance!$D$27,$F$2:$G$48,2,FALSE)+ROW()-2)),\"\")","v":{"$error":"#N/A"}},{"$f":"IF(INDIRECT(\"c\" & (VLOOKUP(Rebalance!$D$28,$F$2:$G$48,2,FALSE)+ROW()-2))=Rebalance!$D$28,INDIRECT(\"a\" & (VLOOKUP(Rebalance!$D$28,$F$2:$G$48,2,FALSE)+ROW()-2)),\"\")","v":{"$error":"#N/A"}},{"$f":"IF(INDIRECT(\"c\" & (VLOOKUP(Rebalance!$D$29,$F$2:$G$48,2,FALSE)+ROW()-2))=Rebalance!$D$29,INDIRECT(\"a\" & (VLOOKUP(Rebalance!$D$29,$F$2:$G$48,2,FALSE)+ROW()-2)),\"\")","v":{"$error":"#N/A"}},{"$f":"IF(INDIRECT(\"c\" & (VLOOKUP(Rebalance!$D$30,$F$2:$G$48,2,FALSE)+ROW()-2))=Rebalance!$D$30,INDIRECT(\"a\" & (VLOOKUP(Rebalance!$D$30,$F$2:$G$48,2,FALSE)+ROW()-2)),\"\")","v":{"$error":"#N/A"}},{"$f":"IF(INDIRECT(\"c\" & (VLOOKUP(Rebalance!$D$31,$F$2:$G$48,2,FALSE)+ROW()-2))=Rebalance!$D$31,INDIRECT(\"a\" & (VLOOKUP(Rebalance!$D$31,$F$2:$G$48,2,FALSE)+ROW()-2)),\"\")","v":{"$error":"#N/A"}},{"$f":"IF(INDIRECT(\"c\" & (VLOOKUP(Rebalance!$D$32,$F$2:$G$48,2,FALSE)+ROW()-2))=Rebalance!$D$32,INDIRECT(\"a\" & (VLOOKUP(Rebalance!$D$32,$F$2:$G$48,2,FALSE)+ROW()-2)),\"\")","v":{"$error":"#N/A"}},{"$f":"IF(INDIRECT(\"c\" & (VLOOKUP(Rebalance!$D$33,$F$2:$G$48,2,FALSE)+ROW()-2))=Rebalance!$D$33,INDIRECT(\"a\" & (VLOOKUP(Rebalance!$D$33,$F$2:$G$48,2,FALSE)+ROW()-2)),\"\")","v":{"$error":"#N/A"}},{"$f":"IF(INDIRECT(\"c\" & (VLOOKUP(Rebalance!$D$34,$F$2:$G$48,2,FALSE)+ROW()-2))=Rebalance!$D$34,INDIRECT(\"a\" & (VLOOKUP(Rebalance!$D$34,$F$2:$G$48,2,FALSE)+ROW()-2)),\"\")","v":{"$error":"#N/A"}},{"$f":"IF(INDIRECT(\"c\" & (VLOOKUP(Rebalance!$D$35,$F$2:$G$48,2,FALSE)+ROW()-2))=Rebalance!$D$35,INDIRECT(\"a\" & (VLOOKUP(Rebalance!$D$35,$F$2:$G$48,2,FALSE)+ROW()-2)),\"\")","v":{"$error":"#N/A"}},{"$f":"IF(INDIRECT(\"c\" & (VLOOKUP(Rebalance!$D$36,$F$2:$G$48,2,FALSE)+ROW()-2))=Rebalance!$D$36,INDIRECT(\"a\" & (VLOOKUP(Rebalance!$D$36,$F$2:$G$48,2,FALSE)+ROW()-2)),\"\")","v":{"$error":"#N/A"}},{"$f":"IF(INDIRECT(\"c\" & (VLOOKUP(Rebalance!$D$37,$F$2:$G$48,2,FALSE)+ROW()-2))=Rebalance!$D$37,INDIRECT(\"a\" & (VLOOKUP(Rebalance!$D$37,$F$2:$G$48,2,FALSE)+ROW()-2)),\"\")","v":{"$error":"#N/A"}},{"$f":"IF(INDIRECT(\"c\" & (VLOOKUP(Rebalance!$D$38,$F$2:$G$48,2,FALSE)+ROW()-2))=Rebalance!$D$38,INDIRECT(\"a\" & (VLOOKUP(Rebalance!$D$38,$F$2:$G$48,2,FALSE)+ROW()-2)),\"\")","v":{"$error":"#N/A"}},{"$f":"IF(INDIRECT(\"c\" & (VLOOKUP(Rebalance!$D$39,$F$2:$G$48,2,FALSE)+ROW()-2))=Rebalance!$D$39,INDIRECT(\"a\" & (VLOOKUP(Rebalance!$D$39,$F$2:$G$48,2,FALSE)+ROW()-2)),\"\")","v":{"$error":"#N/A"}},{"$f":"IF(INDIRECT(\"c\" & (VLOOKUP(Rebalance!$D$40,$F$2:$G$48,2,FALSE)+ROW()-2))=Rebalance!$D$40,INDIRECT(\"a\" & (VLOOKUP(Rebalance!$D$40,$F$2:$G$48,2,FALSE)+ROW()-2)),\"\")","v":{"$error":"#N/A"}},{"$f":"IF(INDIRECT(\"c\" & (VLOOKUP(Rebalance!$D$52,$F$2:$G$48,2,FALSE)+ROW()-2))=Rebalance!$D$52,INDIRECT(\"a\" & (VLOOKUP(Rebalance!$D$52,$F$2:$G$48,2,FALSE)+ROW()-2)),\"\")","v":{"$error":"#N/A"}},{"$f":"IF(INDIRECT(\"c\" & (VLOOKUP(Rebalance!$D$53,$F$2:$G$48,2,FALSE)+ROW()-2))=Rebalance!$D$53,INDIRECT(\"a\" & (VLOOKUP(Rebalance!$D$53,$F$2:$G$48,2,FALSE)+ROW()-2)),\"\")","v":{"$error":"#N/A"}},{"$f":"IF(INDIRECT(\"c\" & (VLOOKUP(Rebalance!$D$54,$F$2:$G$48,2,FALSE)+ROW()-2))=Rebalance!$D$54,INDIRECT(\"a\" & (VLOOKUP(Rebalance!$D$54,$F$2:$G$48,2,FALSE)+ROW()-2)),\"\")","v":{"$error":"#N/A"}},{"$f":"IF(INDIRECT(\"c\" & (VLOOKUP(Rebalance!$D$55,$F$2:$G$48,2,FALSE)+ROW()-2))=Rebalance!$D$55,INDIRECT(\"a\" & (VLOOKUP(Rebalance!$D$55,$F$2:$G$48,2,FALSE)+ROW()-2)),\"\")","v":{"$error":"#N/A"}},{"$f":"IF(INDIRECT(\"c\" & (VLOOKUP(Rebalance!$D$56,$F$2:$G$48,2,FALSE)+ROW()-2))=Rebalance!$D$56,INDIRECT(\"a\" & (VLOOKUP(Rebalance!$D$56,$F$2:$G$48,2,FALSE)+ROW()-2)),\"\")","v":{"$error":"#N/A"}},{"$f":"IF(INDIRECT(\"c\" & (VLOOKUP(Rebalance!$D$57,$F$2:$G$48,2,FALSE)+ROW()-2))=Rebalance!$D$57,INDIRECT(\"a\" & (VLOOKUP(Rebalance!$D$57,$F$2:$G$48,2,FALSE)+ROW()-2)),\"\")","v":{"$error":"#N/A"}},{"$f":"IF(INDIRECT(\"c\" & (VLOOKUP(Rebalance!$D$58,$F$2:$G$48,2,FALSE)+ROW()-2))=Rebalance!$D$58,INDIRECT(\"a\" & (VLOOKUP(Rebalance!$D$58,$F$2:$G$48,2,FALSE)+ROW()-2)),\"\")","v":{"$error":"#N/A"}},{"$f":"IF(INDIRECT(\"c\" & (VLOOKUP(Rebalance!$D$59,$F$2:$G$48,2,FALSE)+ROW()-2))=Rebalance!$D$59,INDIRECT(\"a\" & (VLOOKUP(Rebalance!$D$59,$F$2:$G$48,2,FALSE)+ROW()-2)),\"\")","v":{"$error":"#N/A"}},{"$f":"IF(INDIRECT(\"c\" & (VLOOKUP(Rebalance!$D$60,$F$2:$G$48,2,FALSE)+ROW()-2))=Rebalance!$D$60,INDIRECT(\"a\" & (VLOOKUP(Rebalance!$D$60,$F$2:$G$48,2,FALSE)+ROW()-2)),\"\")","v":{"$error":"#N/A"}},{"$f":"IF(INDIRECT(\"c\" & (VLOOKUP(Rebalance!$D$61,$F$2:$G$48,2,FALSE)+ROW()-2))=Rebalance!$D$61,INDIRECT(\"a\" & (VLOOKUP(Rebalance!$D$61,$F$2:$G$48,2,FALSE)+ROW()-2)),\"\")","v":{"$error":"#N/A"}},{"$f":"IF(INDIRECT(\"c\" & (VLOOKUP(Rebalance!$D$62,$F$2:$G$48,2,FALSE)+ROW()-2))=Rebalance!$D$62,INDIRECT(\"a\" & (VLOOKUP(Rebalance!$D$62,$F$2:$G$48,2,FALSE)+ROW()-2)),\"\")","v":{"$error":"#N/A"}},{"$f":"IF(INDIRECT(\"c\" & (VLOOKUP(Rebalance!$D$63,$F$2:$G$48,2,FALSE)+ROW()-2))=Rebalance!$D$63,INDIRECT(\"a\" & (VLOOKUP(Rebalance!$D$63,$F$2:$G$48,2,FALSE)+ROW()-2)),\"\")","v":{"$error":"#N/A"}},{"$f":"IF(INDIRECT(\"c\" & (VLOOKUP(Rebalance!$D$64,$F$2:$G$48,2,FALSE)+ROW()-2))=Rebalance!$D$64,INDIRECT(\"a\" & (VLOOKUP(Rebalance!$D$64,$F$2:$G$48,2,FALSE)+ROW()-2)),\"\")","v":{"$error":"#N/A"}},{"$f":"IF(INDIRECT(\"c\" & (VLOOKUP(Rebalance!$D$65,$F$2:$G$48,2,FALSE)+ROW()-2))=Rebalance!$D$65,INDIRECT(\"a\" & (VLOOKUP(Rebalance!$D$65,$F$2:$G$48,2,FALSE)+ROW()-2)),\"\")","v":{"$error":"#N/A"}},{"$f":"IF(INDIRECT(\"c\" & (VLOOKUP(Rebalance!$D$66,$F$2:$G$48,2,FALSE)+ROW()-2))=Rebalance!$D$66,INDIRECT(\"a\" & (VLOOKUP(Rebalance!$D$66,$F$2:$G$48,2,FALSE)+ROW()-2)),\"\")","v":{"$error":"#N/A"}}]
["Old Mutual SA Quoted Property Fund B4","OSAB4","Old Mutual Unit Trust Managers Limited",{"$f":"ROW()","v":432},null,null,{"$f":"VLOOKUP(F432,$C$2:$D$599,2,FALSE)","v":{"$error":"#N/A"}},{"$f":"IF(INDIRECT(\"c\" & (VLOOKUP(Rebalance!$D$26,$F$2:$G$48,2,FALSE)+ROW()-2))=Rebalance!$D$26,INDIRECT(\"a\" & (VLOOKUP(Rebalance!$D$26,$F$2:$G$48,2,FALSE)+ROW()-2)),\"\")","v":{"$error":"#N/A"}},{"$f":"IF(INDIRECT(\"c\" & (VLOOKUP(Rebalance!$D$27,$F$2:$G$48,2,FALSE)+ROW()-2))=Rebalance!$D$27,INDIRECT(\"a\" & (VLOOKUP(Rebalance!$D$27,$F$2:$G$48,2,FALSE)+ROW()-2)),\"\")","v":{"$error":"#N/A"}},{"$f":"IF(INDIRECT(\"c\" & (VLOOKUP(Rebalance!$D$28,$F$2:$G$48,2,FALSE)+ROW()-2))=Rebalance!$D$28,INDIRECT(\"a\" & (VLOOKUP(Rebalance!$D$28,$F$2:$G$48,2,FALSE)+ROW()-2)),\"\")","v":{"$error":"#N/A"}},{"$f":"IF(INDIRECT(\"c\" & (VLOOKUP(Rebalance!$D$29,$F$2:$G$48,2,FALSE)+ROW()-2))=Rebalance!$D$29,INDIRECT(\"a\" & (VLOOKUP(Rebalance!$D$29,$F$2:$G$48,2,FALSE)+ROW()-2)),\"\")","v":{"$error":"#N/A"}},{"$f":"IF(INDIRECT(\"c\" & (VLOOKUP(Rebalance!$D$30,$F$2:$G$48,2,FALSE)+ROW()-2))=Rebalance!$D$30,INDIRECT(\"a\" & (VLOOKUP(Rebalance!$D$30,$F$2:$G$48,2,FALSE)+ROW()-2)),\"\")","v":{"$error":"#N/A"}},{"$f":"IF(INDIRECT(\"c\" & (VLOOKUP(Rebalance!$D$31,$F$2:$G$48,2,FALSE)+ROW()-2))=Rebalance!$D$31,INDIRECT(\"a\" & (VLOOKUP(Rebalance!$D$31,$F$2:$G$48,2,FALSE)+ROW()-2)),\"\")","v":{"$error":"#N/A"}},{"$f":"IF(INDIRECT(\"c\" & (VLOOKUP(Rebalance!$D$32,$F$2:$G$48,2,FALSE)+ROW()-2))=Rebalance!$D$32,INDIRECT(\"a\" & (VLOOKUP(Rebalance!$D$32,$F$2:$G$48,2,FALSE)+ROW()-2)),\"\")","v":{"$error":"#N/A"}},{"$f":"IF(INDIRECT(\"c\" & (VLOOKUP(Rebalance!$D$33,$F$2:$G$48,2,FALSE)+ROW()-2))=Rebalance!$D$33,INDIRECT(\"a\" & (VLOOKUP(Rebalance!$D$33,$F$2:$G$48,2,FALSE)+ROW()-2)),\"\")","v":{"$error":"#N/A"}},{"$f":"IF(INDIRECT(\"c\" & (VLOOKUP(Rebalance!$D$34,$F$2:$G$48,2,FALSE)+ROW()-2))=Rebalance!$D$34,INDIRECT(\"a\" & (VLOOKUP(Rebalance!$D$34,$F$2:$G$48,2,FALSE)+ROW()-2)),\"\")","v":{"$error":"#N/A"}},{"$f":"IF(INDIRECT(\"c\" & (VLOOKUP(Rebalance!$D$35,$F$2:$G$48,2,FALSE)+ROW()-2))=Rebalance!$D$35,INDIRECT(\"a\" & (VLOOKUP(Rebalance!$D$35,$F$2:$G$48,2,FALSE)+ROW()-2)),\"\")","v":{"$error":"#N/A"}},{"$f":"IF(INDIRECT(\"c\" & (VLOOKUP(Rebalance!$D$36,$F$2:$G$48,2,FALSE)+ROW()-2))=Rebalance!$D$36,INDIRECT(\"a\" & (VLOOKUP(Rebalance!$D$36,$F$2:$G$48,2,FALSE)+ROW()-2)),\"\")","v":{"$error":"#N/A"}},{"$f":"IF(INDIRECT(\"c\" & (VLOOKUP(Rebalance!$D$37,$F$2:$G$48,2,FALSE)+ROW()-2))=Rebalance!$D$37,INDIRECT(\"a\" & (VLOOKUP(Rebalance!$D$37,$F$2:$G$48,2,FALSE)+ROW()-2)),\"\")","v":{"$error":"#N/A"}},{"$f":"IF(INDIRECT(\"c\" & (VLOOKUP(Rebalance!$D$38,$F$2:$G$48,2,FALSE)+ROW()-2))=Rebalance!$D$38,INDIRECT(\"a\" & (VLOOKUP(Rebalance!$D$38,$F$2:$G$48,2,FALSE)+ROW()-2)),\"\")","v":{"$error":"#N/A"}},{"$f":"IF(INDIRECT(\"c\" & (VLOOKUP(Rebalance!$D$39,$F$2:$G$48,2,FALSE)+ROW()-2))=Rebalance!$D$39,INDIRECT(\"a\" & (VLOOKUP(Rebalance!$D$39,$F$2:$G$48,2,FALSE)+ROW()-2)),\"\")","v":{"$error":"#N/A"}},{"$f":"IF(INDIRECT(\"c\" & (VLOOKUP(Rebalance!$D$40,$F$2:$G$48,2,FALSE)+ROW()-2))=Rebalance!$D$40,INDIRECT(\"a\" & (VLOOKUP(Rebalance!$D$40,$F$2:$G$48,2,FALSE)+ROW()-2)),\"\")","v":{"$error":"#N/A"}},{"$f":"IF(INDIRECT(\"c\" & (VLOOKUP(Rebalance!$D$52,$F$2:$G$48,2,FALSE)+ROW()-2))=Rebalance!$D$52,INDIRECT(\"a\" & (VLOOKUP(Rebalance!$D$52,$F$2:$G$48,2,FALSE)+ROW()-2)),\"\")","v":{"$error":"#N/A"}},{"$f":"IF(INDIRECT(\"c\" & (VLOOKUP(Rebalance!$D$53,$F$2:$G$48,2,FALSE)+ROW()-2))=Rebalance!$D$53,INDIRECT(\"a\" & (VLOOKUP(Rebalance!$D$53,$F$2:$G$48,2,FALSE)+ROW()-2)),\"\")","v":{"$error":"#N/A"}},{"$f":"IF(INDIRECT(\"c\" & (VLOOKUP(Rebalance!$D$54,$F$2:$G$48,2,FALSE)+ROW()-2))=Rebalance!$D$54,INDIRECT(\"a\" & (VLOOKUP(Rebalance!$D$54,$F$2:$G$48,2,FALSE)+ROW()-2)),\"\")","v":{"$error":"#N/A"}},{"$f":"IF(INDIRECT(\"c\" & (VLOOKUP(Rebalance!$D$55,$F$2:$G$48,2,FALSE)+ROW()-2))=Rebalance!$D$55,INDIRECT(\"a\" & (VLOOKUP(Rebalance!$D$55,$F$2:$G$48,2,FALSE)+ROW()-2)),\"\")","v":{"$error":"#N/A"}},{"$f":"IF(INDIRECT(\"c\" & (VLOOKUP(Rebalance!$D$56,$F$2:$G$48,2,FALSE)+ROW()-2))=Rebalance!$D$56,INDIRECT(\"a\" & (VLOOKUP(Rebalance!$D$56,$F$2:$G$48,2,FALSE)+ROW()-2)),\"\")","v":{"$error":"#N/A"}},{"$f":"IF(INDIRECT(\"c\" & (VLOOKUP(Rebalance!$D$57,$F$2:$G$48,2,FALSE)+ROW()-2))=Rebalance!$D$57,INDIRECT(\"a\" & (VLOOKUP(Rebalance!$D$57,$F$2:$G$48,2,FALSE)+ROW()-2)),\"\")","v":{"$error":"#N/A"}},{"$f":"IF(INDIRECT(\"c\" & (VLOOKUP(Rebalance!$D$58,$F$2:$G$48,2,FALSE)+ROW()-2))=Rebalance!$D$58,INDIRECT(\"a\" & (VLOOKUP(Rebalance!$D$58,$F$2:$G$48,2,FALSE)+ROW()-2)),\"\")","v":{"$error":"#N/A"}},{"$f":"IF(INDIRECT(\"c\" & (VLOOKUP(Rebalance!$D$59,$F$2:$G$48,2,FALSE)+ROW()-2))=Rebalance!$D$59,INDIRECT(\"a\" & (VLOOKUP(Rebalance!$D$59,$F$2:$G$48,2,FALSE)+ROW()-2)),\"\")","v":{"$error":"#N/A"}},{"$f":"IF(INDIRECT(\"c\" & (VLOOKUP(Rebalance!$D$60,$F$2:$G$48,2,FALSE)+ROW()-2))=Rebalance!$D$60,INDIRECT(\"a\" & (VLOOKUP(Rebalance!$D$60,$F$2:$G$48,2,FALSE)+ROW()-2)),\"\")","v":{"$error":"#N/A"}},{"$f":"IF(INDIRECT(\"c\" & (VLOOKUP(Rebalance!$D$61,$F$2:$G$48,2,FALSE)+ROW()-2))=Rebalance!$D$61,INDIRECT(\"a\" & (VLOOKUP(Rebalance!$D$61,$F$2:$G$48,2,FALSE)+ROW()-2)),\"\")","v":{"$error":"#N/A"}},{"$f":"IF(INDIRECT(\"c\" & (VLOOKUP(Rebalance!$D$62,$F$2:$G$48,2,FALSE)+ROW()-2))=Rebalance!$D$62,INDIRECT(\"a\" & (VLOOKUP(Rebalance!$D$62,$F$2:$G$48,2,FALSE)+ROW()-2)),\"\")","v":{"$error":"#N/A"}},{"$f":"IF(INDIRECT(\"c\" & (VLOOKUP(Rebalance!$D$63,$F$2:$G$48,2,FALSE)+ROW()-2))=Rebalance!$D$63,INDIRECT(\"a\" & (VLOOKUP(Rebalance!$D$63,$F$2:$G$48,2,FALSE)+ROW()-2)),\"\")","v":{"$error":"#N/A"}},{"$f":"IF(INDIRECT(\"c\" & (VLOOKUP(Rebalance!$D$64,$F$2:$G$48,2,FALSE)+ROW()-2))=Rebalance!$D$64,INDIRECT(\"a\" & (VLOOKUP(Rebalance!$D$64,$F$2:$G$48,2,FALSE)+ROW()-2)),\"\")","v":{"$error":"#N/A"}},{"$f":"IF(INDIRECT(\"c\" & (VLOOKUP(Rebalance!$D$65,$F$2:$G$48,2,FALSE)+ROW()-2))=Rebalance!$D$65,INDIRECT(\"a\" & (VLOOKUP(Rebalance!$D$65,$F$2:$G$48,2,FALSE)+ROW()-2)),\"\")","v":{"$error":"#N/A"}},{"$f":"IF(INDIRECT(\"c\" & (VLOOKUP(Rebalance!$D$66,$F$2:$G$48,2,FALSE)+ROW()-2))=Rebalance!$D$66,INDIRECT(\"a\" & (VLOOKUP(Rebalance!$D$66,$F$2:$G$48,2,FALSE)+ROW()-2)),\"\")","v":{"$error":"#N/A"}}]
["Old Mutual SA Quoted Property Fund C","OSAB4","Old Mutual Unit Trust Managers Limited",{"$f":"ROW()","v":433},null,null,{"$f":"VLOOKUP(F433,$C$2:$D$599,2,FALSE)","v":{"$error":"#N/A"}},{"$f":"IF(INDIRECT(\"c\" & (VLOOKUP(Rebalance!$D$26,$F$2:$G$48,2,FALSE)+ROW()-2))=Rebalance!$D$26,INDIRECT(\"a\" & (VLOOKUP(Rebalance!$D$26,$F$2:$G$48,2,FALSE)+ROW()-2)),\"\")","v":{"$error":"#N/A"}},{"$f":"IF(INDIRECT(\"c\" & (VLOOKUP(Rebalance!$D$27,$F$2:$G$48,2,FALSE)+ROW()-2))=Rebalance!$D$27,INDIRECT(\"a\" & (VLOOKUP(Rebalance!$D$27,$F$2:$G$48,2,FALSE)+ROW()-2)),\"\")","v":{"$error":"#N/A"}},{"$f":"IF(INDIRECT(\"c\" & (VLOOKUP(Rebalance!$D$28,$F$2:$G$48,2,FALSE)+ROW()-2))=Rebalance!$D$28,INDIRECT(\"a\" & (VLOOKUP(Rebalance!$D$28,$F$2:$G$48,2,FALSE)+ROW()-2)),\"\")","v":{"$error":"#N/A"}},{"$f":"IF(INDIRECT(\"c\" & (VLOOKUP(Rebalance!$D$29,$F$2:$G$48,2,FALSE)+ROW()-2))=Rebalance!$D$29,INDIRECT(\"a\" & (VLOOKUP(Rebalance!$D$29,$F$2:$G$48,2,FALSE)+ROW()-2)),\"\")","v":{"$error":"#N/A"}},{"$f":"IF(INDIRECT(\"c\" & (VLOOKUP(Rebalance!$D$30,$F$2:$G$48,2,FALSE)+ROW()-2))=Rebalance!$D$30,INDIRECT(\"a\" & (VLOOKUP(Rebalance!$D$30,$F$2:$G$48,2,FALSE)+ROW()-2)),\"\")","v":{"$error":"#N/A"}},{"$f":"IF(INDIRECT(\"c\" & (VLOOKUP(Rebalance!$D$31,$F$2:$G$48,2,FALSE)+ROW()-2))=Rebalance!$D$31,INDIRECT(\"a\" & (VLOOKUP(Rebalance!$D$31,$F$2:$G$48,2,FALSE)+ROW()-2)),\"\")","v":{"$error":"#N/A"}},{"$f":"IF(INDIRECT(\"c\" & (VLOOKUP(Rebalance!$D$32,$F$2:$G$48,2,FALSE)+ROW()-2))=Rebalance!$D$32,INDIRECT(\"a\" & (VLOOKUP(Rebalance!$D$32,$F$2:$G$48,2,FALSE)+ROW()-2)),\"\")","v":{"$error":"#N/A"}},{"$f":"IF(INDIRECT(\"c\" & (VLOOKUP(Rebalance!$D$33,$F$2:$G$48,2,FALSE)+ROW()-2))=Rebalance!$D$33,INDIRECT(\"a\" & (VLOOKUP(Rebalance!$D$33,$F$2:$G$48,2,FALSE)+ROW()-2)),\"\")","v":{"$error":"#N/A"}},{"$f":"IF(INDIRECT(\"c\" & (VLOOKUP(Rebalance!$D$34,$F$2:$G$48,2,FALSE)+ROW()-2))=Rebalance!$D$34,INDIRECT(\"a\" & (VLOOKUP(Rebalance!$D$34,$F$2:$G$48,2,FALSE)+ROW()-2)),\"\")","v":{"$error":"#N/A"}},{"$f":"IF(INDIRECT(\"c\" & (VLOOKUP(Rebalance!$D$35,$F$2:$G$48,2,FALSE)+ROW()-2))=Rebalance!$D$35,INDIRECT(\"a\" & (VLOOKUP(Rebalance!$D$35,$F$2:$G$48,2,FALSE)+ROW()-2)),\"\")","v":{"$error":"#N/A"}},{"$f":"IF(INDIRECT(\"c\" & (VLOOKUP(Rebalance!$D$36,$F$2:$G$48,2,FALSE)+ROW()-2))=Rebalance!$D$36,INDIRECT(\"a\" & (VLOOKUP(Rebalance!$D$36,$F$2:$G$48,2,FALSE)+ROW()-2)),\"\")","v":{"$error":"#N/A"}},{"$f":"IF(INDIRECT(\"c\" & (VLOOKUP(Rebalance!$D$37,$F$2:$G$48,2,FALSE)+ROW()-2))=Rebalance!$D$37,INDIRECT(\"a\" & (VLOOKUP(Rebalance!$D$37,$F$2:$G$48,2,FALSE)+ROW()-2)),\"\")","v":{"$error":"#N/A"}},{"$f":"IF(INDIRECT(\"c\" & (VLOOKUP(Rebalance!$D$38,$F$2:$G$48,2,FALSE)+ROW()-2))=Rebalance!$D$38,INDIRECT(\"a\" & (VLOOKUP(Rebalance!$D$38,$F$2:$G$48,2,FALSE)+ROW()-2)),\"\")","v":{"$error":"#N/A"}},{"$f":"IF(INDIRECT(\"c\" & (VLOOKUP(Rebalance!$D$39,$F$2:$G$48,2,FALSE)+ROW()-2))=Rebalance!$D$39,INDIRECT(\"a\" & (VLOOKUP(Rebalance!$D$39,$F$2:$G$48,2,FALSE)+ROW()-2)),\"\")","v":{"$error":"#N/A"}},{"$f":"IF(INDIRECT(\"c\" & (VLOOKUP(Rebalance!$D$40,$F$2:$G$48,2,FALSE)+ROW()-2))=Rebalance!$D$40,INDIRECT(\"a\" & (VLOOKUP(Rebalance!$D$40,$F$2:$G$48,2,FALSE)+ROW()-2)),\"\")","v":{"$error":"#N/A"}},{"$f":"IF(INDIRECT(\"c\" & (VLOOKUP(Rebalance!$D$52,$F$2:$G$48,2,FALSE)+ROW()-2))=Rebalance!$D$52,INDIRECT(\"a\" & (VLOOKUP(Rebalance!$D$52,$F$2:$G$48,2,FALSE)+ROW()-2)),\"\")","v":{"$error":"#N/A"}},{"$f":"IF(INDIRECT(\"c\" & (VLOOKUP(Rebalance!$D$53,$F$2:$G$48,2,FALSE)+ROW()-2))=Rebalance!$D$53,INDIRECT(\"a\" & (VLOOKUP(Rebalance!$D$53,$F$2:$G$48,2,FALSE)+ROW()-2)),\"\")","v":{"$error":"#N/A"}},{"$f":"IF(INDIRECT(\"c\" & (VLOOKUP(Rebalance!$D$54,$F$2:$G$48,2,FALSE)+ROW()-2))=Rebalance!$D$54,INDIRECT(\"a\" & (VLOOKUP(Rebalance!$D$54,$F$2:$G$48,2,FALSE)+ROW()-2)),\"\")","v":{"$error":"#N/A"}},{"$f":"IF(INDIRECT(\"c\" & (VLOOKUP(Rebalance!$D$55,$F$2:$G$48,2,FALSE)+ROW()-2))=Rebalance!$D$55,INDIRECT(\"a\" & (VLOOKUP(Rebalance!$D$55,$F$2:$G$48,2,FALSE)+ROW()-2)),\"\")","v":{"$error":"#N/A"}},{"$f":"IF(INDIRECT(\"c\" & (VLOOKUP(Rebalance!$D$56,$F$2:$G$48,2,FALSE)+ROW()-2))=Rebalance!$D$56,INDIRECT(\"a\" & (VLOOKUP(Rebalance!$D$56,$F$2:$G$48,2,FALSE)+ROW()-2)),\"\")","v":{"$error":"#N/A"}},{"$f":"IF(INDIRECT(\"c\" & (VLOOKUP(Rebalance!$D$57,$F$2:$G$48,2,FALSE)+ROW()-2))=Rebalance!$D$57,INDIRECT(\"a\" & (VLOOKUP(Rebalance!$D$57,$F$2:$G$48,2,FALSE)+ROW()-2)),\"\")","v":{"$error":"#N/A"}},{"$f":"IF(INDIRECT(\"c\" & (VLOOKUP(Rebalance!$D$58,$F$2:$G$48,2,FALSE)+ROW()-2))=Rebalance!$D$58,INDIRECT(\"a\" & (VLOOKUP(Rebalance!$D$58,$F$2:$G$48,2,FALSE)+ROW()-2)),\"\")","v":{"$error":"#N/A"}},{"$f":"IF(INDIRECT(\"c\" & (VLOOKUP(Rebalance!$D$59,$F$2:$G$48,2,FALSE)+ROW()-2))=Rebalance!$D$59,INDIRECT(\"a\" & (VLOOKUP(Rebalance!$D$59,$F$2:$G$48,2,FALSE)+ROW()-2)),\"\")","v":{"$error":"#N/A"}},{"$f":"IF(INDIRECT(\"c\" & (VLOOKUP(Rebalance!$D$60,$F$2:$G$48,2,FALSE)+ROW()-2))=Rebalance!$D$60,INDIRECT(\"a\" & (VLOOKUP(Rebalance!$D$60,$F$2:$G$48,2,FALSE)+ROW()-2)),\"\")","v":{"$error":"#N/A"}},{"$f":"IF(INDIRECT(\"c\" & (VLOOKUP(Rebalance!$D$61,$F$2:$G$48,2,FALSE)+ROW()-2))=Rebalance!$D$61,INDIRECT(\"a\" & (VLOOKUP(Rebalance!$D$61,$F$2:$G$48,2,FALSE)+ROW()-2)),\"\")","v":{"$error":"#N/A"}},{"$f":"IF(INDIRECT(\"c\" & (VLOOKUP(Rebalance!$D$62,$F$2:$G$48,2,FALSE)+ROW()-2))=Rebalance!$D$62,INDIRECT(\"a\" & (VLOOKUP(Rebalance!$D$62,$F$2:$G$48,2,FALSE)+ROW()-2)),\"\")","v":{"$error":"#N/A"}},{"$f":"IF(INDIRECT(\"c\" & (VLOOKUP(Rebalance!$D$63,$F$2:$G$48,2,FALSE)+ROW()-2))=Rebalance!$D$63,INDIRECT(\"a\" & (VLOOKUP(Rebalance!$D$63,$F$2:$G$48,2,FALSE)+ROW()-2)),\"\")","v":{"$error":"#N/A"}},{"$f":"IF(INDIRECT(\"c\" & (VLOOKUP(Rebalance!$D$64,$F$2:$G$48,2,FALSE)+ROW()-2))=Rebalance!$D$64,INDIRECT(\"a\" & (VLOOKUP(Rebalance!$D$64,$F$2:$G$48,2,FALSE)+ROW()-2)),\"\")","v":{"$error":"#N/A"}},{"$f":"IF(INDIRECT(\"c\" & (VLOOKUP(Rebalance!$D$65,$F$2:$G$48,2,FALSE)+ROW()-2))=Rebalance!$D$65,INDIRECT(\"a\" & (VLOOKUP(Rebalance!$D$65,$F$2:$G$48,2,FALSE)+ROW()-2)),\"\")","v":{"$error":"#N/A"}},{"$f":"IF(INDIRECT(\"c\" & (VLOOKUP(Rebalance!$D$66,$F$2:$G$48,2,FALSE)+ROW()-2))=Rebalance!$D$66,INDIRECT(\"a\" & (VLOOKUP(Rebalance!$D$66,$F$2:$G$48,2,FALSE)+ROW()-2)),\"\")","v":{"$error":"#N/A"}}]
["Old Mutual Small Companies Fund Class A","OMCFA","Old Mutual Unit Trust Managers Limited",{"$f":"ROW()","v":434},null,null,{"$f":"VLOOKUP(F434,$C$2:$D$599,2,FALSE)","v":{"$error":"#N/A"}},{"$f":"IF(INDIRECT(\"c\" & (VLOOKUP(Rebalance!$D$26,$F$2:$G$48,2,FALSE)+ROW()-2))=Rebalance!$D$26,INDIRECT(\"a\" & (VLOOKUP(Rebalance!$D$26,$F$2:$G$48,2,FALSE)+ROW()-2)),\"\")","v":{"$error":"#N/A"}},{"$f":"IF(INDIRECT(\"c\" & (VLOOKUP(Rebalance!$D$27,$F$2:$G$48,2,FALSE)+ROW()-2))=Rebalance!$D$27,INDIRECT(\"a\" & (VLOOKUP(Rebalance!$D$27,$F$2:$G$48,2,FALSE)+ROW()-2)),\"\")","v":{"$error":"#N/A"}},{"$f":"IF(INDIRECT(\"c\" & (VLOOKUP(Rebalance!$D$28,$F$2:$G$48,2,FALSE)+ROW()-2))=Rebalance!$D$28,INDIRECT(\"a\" & (VLOOKUP(Rebalance!$D$28,$F$2:$G$48,2,FALSE)+ROW()-2)),\"\")","v":{"$error":"#N/A"}},{"$f":"IF(INDIRECT(\"c\" & (VLOOKUP(Rebalance!$D$29,$F$2:$G$48,2,FALSE)+ROW()-2))=Rebalance!$D$29,INDIRECT(\"a\" & (VLOOKUP(Rebalance!$D$29,$F$2:$G$48,2,FALSE)+ROW()-2)),\"\")","v":{"$error":"#N/A"}},{"$f":"IF(INDIRECT(\"c\" & (VLOOKUP(Rebalance!$D$30,$F$2:$G$48,2,FALSE)+ROW()-2))=Rebalance!$D$30,INDIRECT(\"a\" & (VLOOKUP(Rebalance!$D$30,$F$2:$G$48,2,FALSE)+ROW()-2)),\"\")","v":{"$error":"#N/A"}},{"$f":"IF(INDIRECT(\"c\" & (VLOOKUP(Rebalance!$D$31,$F$2:$G$48,2,FALSE)+ROW()-2))=Rebalance!$D$31,INDIRECT(\"a\" & (VLOOKUP(Rebalance!$D$31,$F$2:$G$48,2,FALSE)+ROW()-2)),\"\")","v":{"$error":"#N/A"}},{"$f":"IF(INDIRECT(\"c\" & (VLOOKUP(Rebalance!$D$32,$F$2:$G$48,2,FALSE)+ROW()-2))=Rebalance!$D$32,INDIRECT(\"a\" & (VLOOKUP(Rebalance!$D$32,$F$2:$G$48,2,FALSE)+ROW()-2)),\"\")","v":{"$error":"#N/A"}},{"$f":"IF(INDIRECT(\"c\" & (VLOOKUP(Rebalance!$D$33,$F$2:$G$48,2,FALSE)+ROW()-2))=Rebalance!$D$33,INDIRECT(\"a\" & (VLOOKUP(Rebalance!$D$33,$F$2:$G$48,2,FALSE)+ROW()-2)),\"\")","v":{"$error":"#N/A"}},{"$f":"IF(INDIRECT(\"c\" & (VLOOKUP(Rebalance!$D$34,$F$2:$G$48,2,FALSE)+ROW()-2))=Rebalance!$D$34,INDIRECT(\"a\" & (VLOOKUP(Rebalance!$D$34,$F$2:$G$48,2,FALSE)+ROW()-2)),\"\")","v":{"$error":"#N/A"}},{"$f":"IF(INDIRECT(\"c\" & (VLOOKUP(Rebalance!$D$35,$F$2:$G$48,2,FALSE)+ROW()-2))=Rebalance!$D$35,INDIRECT(\"a\" & (VLOOKUP(Rebalance!$D$35,$F$2:$G$48,2,FALSE)+ROW()-2)),\"\")","v":{"$error":"#N/A"}},{"$f":"IF(INDIRECT(\"c\" & (VLOOKUP(Rebalance!$D$36,$F$2:$G$48,2,FALSE)+ROW()-2))=Rebalance!$D$36,INDIRECT(\"a\" & (VLOOKUP(Rebalance!$D$36,$F$2:$G$48,2,FALSE)+ROW()-2)),\"\")","v":{"$error":"#N/A"}},{"$f":"IF(INDIRECT(\"c\" & (VLOOKUP(Rebalance!$D$37,$F$2:$G$48,2,FALSE)+ROW()-2))=Rebalance!$D$37,INDIRECT(\"a\" & (VLOOKUP(Rebalance!$D$37,$F$2:$G$48,2,FALSE)+ROW()-2)),\"\")","v":{"$error":"#N/A"}},{"$f":"IF(INDIRECT(\"c\" & (VLOOKUP(Rebalance!$D$38,$F$2:$G$48,2,FALSE)+ROW()-2))=Rebalance!$D$38,INDIRECT(\"a\" & (VLOOKUP(Rebalance!$D$38,$F$2:$G$48,2,FALSE)+ROW()-2)),\"\")","v":{"$error":"#N/A"}},{"$f":"IF(INDIRECT(\"c\" & (VLOOKUP(Rebalance!$D$39,$F$2:$G$48,2,FALSE)+ROW()-2))=Rebalance!$D$39,INDIRECT(\"a\" & (VLOOKUP(Rebalance!$D$39,$F$2:$G$48,2,FALSE)+ROW()-2)),\"\")","v":{"$error":"#N/A"}},{"$f":"IF(INDIRECT(\"c\" & (VLOOKUP(Rebalance!$D$40,$F$2:$G$48,2,FALSE)+ROW()-2))=Rebalance!$D$40,INDIRECT(\"a\" & (VLOOKUP(Rebalance!$D$40,$F$2:$G$48,2,FALSE)+ROW()-2)),\"\")","v":{"$error":"#N/A"}},{"$f":"IF(INDIRECT(\"c\" & (VLOOKUP(Rebalance!$D$52,$F$2:$G$48,2,FALSE)+ROW()-2))=Rebalance!$D$52,INDIRECT(\"a\" & (VLOOKUP(Rebalance!$D$52,$F$2:$G$48,2,FALSE)+ROW()-2)),\"\")","v":{"$error":"#N/A"}},{"$f":"IF(INDIRECT(\"c\" & (VLOOKUP(Rebalance!$D$53,$F$2:$G$48,2,FALSE)+ROW()-2))=Rebalance!$D$53,INDIRECT(\"a\" & (VLOOKUP(Rebalance!$D$53,$F$2:$G$48,2,FALSE)+ROW()-2)),\"\")","v":{"$error":"#N/A"}},{"$f":"IF(INDIRECT(\"c\" & (VLOOKUP(Rebalance!$D$54,$F$2:$G$48,2,FALSE)+ROW()-2))=Rebalance!$D$54,INDIRECT(\"a\" & (VLOOKUP(Rebalance!$D$54,$F$2:$G$48,2,FALSE)+ROW()-2)),\"\")","v":{"$error":"#N/A"}},{"$f":"IF(INDIRECT(\"c\" & (VLOOKUP(Rebalance!$D$55,$F$2:$G$48,2,FALSE)+ROW()-2))=Rebalance!$D$55,INDIRECT(\"a\" & (VLOOKUP(Rebalance!$D$55,$F$2:$G$48,2,FALSE)+ROW()-2)),\"\")","v":{"$error":"#N/A"}},{"$f":"IF(INDIRECT(\"c\" & (VLOOKUP(Rebalance!$D$56,$F$2:$G$48,2,FALSE)+ROW()-2))=Rebalance!$D$56,INDIRECT(\"a\" & (VLOOKUP(Rebalance!$D$56,$F$2:$G$48,2,FALSE)+ROW()-2)),\"\")","v":{"$error":"#N/A"}},{"$f":"IF(INDIRECT(\"c\" & (VLOOKUP(Rebalance!$D$57,$F$2:$G$48,2,FALSE)+ROW()-2))=Rebalance!$D$57,INDIRECT(\"a\" & (VLOOKUP(Rebalance!$D$57,$F$2:$G$48,2,FALSE)+ROW()-2)),\"\")","v":{"$error":"#N/A"}},{"$f":"IF(INDIRECT(\"c\" & (VLOOKUP(Rebalance!$D$58,$F$2:$G$48,2,FALSE)+ROW()-2))=Rebalance!$D$58,INDIRECT(\"a\" & (VLOOKUP(Rebalance!$D$58,$F$2:$G$48,2,FALSE)+ROW()-2)),\"\")","v":{"$error":"#N/A"}},{"$f":"IF(INDIRECT(\"c\" & (VLOOKUP(Rebalance!$D$59,$F$2:$G$48,2,FALSE)+ROW()-2))=Rebalance!$D$59,INDIRECT(\"a\" & (VLOOKUP(Rebalance!$D$59,$F$2:$G$48,2,FALSE)+ROW()-2)),\"\")","v":{"$error":"#N/A"}},{"$f":"IF(INDIRECT(\"c\" & (VLOOKUP(Rebalance!$D$60,$F$2:$G$48,2,FALSE)+ROW()-2))=Rebalance!$D$60,INDIRECT(\"a\" & (VLOOKUP(Rebalance!$D$60,$F$2:$G$48,2,FALSE)+ROW()-2)),\"\")","v":{"$error":"#N/A"}},{"$f":"IF(INDIRECT(\"c\" & (VLOOKUP(Rebalance!$D$61,$F$2:$G$48,2,FALSE)+ROW()-2))=Rebalance!$D$61,INDIRECT(\"a\" & (VLOOKUP(Rebalance!$D$61,$F$2:$G$48,2,FALSE)+ROW()-2)),\"\")","v":{"$error":"#N/A"}},{"$f":"IF(INDIRECT(\"c\" & (VLOOKUP(Rebalance!$D$62,$F$2:$G$48,2,FALSE)+ROW()-2))=Rebalance!$D$62,INDIRECT(\"a\" & (VLOOKUP(Rebalance!$D$62,$F$2:$G$48,2,FALSE)+ROW()-2)),\"\")","v":{"$error":"#N/A"}},{"$f":"IF(INDIRECT(\"c\" & (VLOOKUP(Rebalance!$D$63,$F$2:$G$48,2,FALSE)+ROW()-2))=Rebalance!$D$63,INDIRECT(\"a\" & (VLOOKUP(Rebalance!$D$63,$F$2:$G$48,2,FALSE)+ROW()-2)),\"\")","v":{"$error":"#N/A"}},{"$f":"IF(INDIRECT(\"c\" & (VLOOKUP(Rebalance!$D$64,$F$2:$G$48,2,FALSE)+ROW()-2))=Rebalance!$D$64,INDIRECT(\"a\" & (VLOOKUP(Rebalance!$D$64,$F$2:$G$48,2,FALSE)+ROW()-2)),\"\")","v":{"$error":"#N/A"}},{"$f":"IF(INDIRECT(\"c\" & (VLOOKUP(Rebalance!$D$65,$F$2:$G$48,2,FALSE)+ROW()-2))=Rebalance!$D$65,INDIRECT(\"a\" & (VLOOKUP(Rebalance!$D$65,$F$2:$G$48,2,FALSE)+ROW()-2)),\"\")","v":{"$error":"#N/A"}},{"$f":"IF(INDIRECT(\"c\" & (VLOOKUP(Rebalance!$D$66,$F$2:$G$48,2,FALSE)+ROW()-2))=Rebalance!$D$66,INDIRECT(\"a\" & (VLOOKUP(Rebalance!$D$66,$F$2:$G$48,2,FALSE)+ROW()-2)),\"\")","v":{"$error":"#N/A"}}]
["Old Mutual Top Companies Fund Class A","OMTFA","Old Mutual Unit Trust Managers Limited",{"$f":"ROW()","v":435},null,null,{"$f":"VLOOKUP(F435,$C$2:$D$599,2,FALSE)","v":{"$error":"#N/A"}},{"$error":"#N/A"},{"$error":"#N/A"},{"$error":"#N/A"},{"$error":"#N/A"},{"$error":"#N/A"},{"$error":"#N/A"},{"$error":"#N/A"},{"$error":"#N/A"},{"$error":"#N/A"},{"$error":"#N/A"},{"$error":"#N/A"},{"$error":"#N/A"},{"$error":"#N/A"},{"$error":"#N/A"},{"$error":"#N/A"},{"$error":"#N/A"},{"$error":"#N/A"},{"$error":"#N/A"},{"$error":"#N/A"},{"$error":"#N/A"},{"$error":"#N/A"},{"$error":"#N/A"},{"$error":"#N/A"},{"$error":"#N/A"},{"$error":"#N/A"},{"$error":"#N/A"},{"$error":"#N/A"},{"$error":"#N/A"},{"$error":"#N/A"},{"$error":"#N/A"}]
["27four Balanced Prescient Fund of Funds A6","BPFA6","Prescient Management Company Ltd",{"$f":"ROW()","v":436},null,null,{"$f":"VLOOKUP(F436,$C$2:$D$599,2,FALSE)","v":{"$error":"#N/A"}},{"$error":"#N/A"},{"$error":"#N/A"},{"$error":"#N/A"},{"$error":"#N/A"},{"$error":"#N/A"},{"$error":"#N/A"},{"$error":"#N/A"},{"$error":"#N/A"},{"$error":"#N/A"},{"$error":"#N/A"},{"$error":"#N/A"},{"$error":"#N/A"},{"$error":"#N/A"},{"$error":"#N/A"},{"$error":"#N/A"},{"$error":"#N/A"},{"$error":"#N/A"},{"$error":"#N/A"},{"$error":"#N/A"},{"$error":"#N/A"},{"$error":"#N/A"},{"$error":"#N/A"},{"$error":"#N/A"},{"$error":"#N/A"},{"$error":"#N/A"},{"$error":"#N/A"},{"$error":"#N/A"},{"$error":"#N/A"},{"$error":"#N/A"},{"$error":"#N/A"}]
["27four Stable Prescient Fund of Funds A6","SPFA6","Prescient Management Company Ltd",{"$f":"ROW()","v":437},null,null,{"$f":"VLOOKUP(F437,$C$2:$D$599,2,FALSE)","v":{"$error":"#N/A"}},{"$f":"IF(INDIRECT(\"c\" & (VLOOKUP(Rebalance!$D$26,$F$2:$G$48,2,FALSE)+ROW()-2))=Rebalance!$D$26,INDIRECT(\"a\" & (VLOOKUP(Rebalance!$D$26,$F$2:$G$48,2,FALSE)+ROW()-2)),\"\")","v":{"$error":"#N/A"}},{"$f":"IF(INDIRECT(\"c\" & (VLOOKUP(Rebalance!$D$27,$F$2:$G$48,2,FALSE)+ROW()-2))=Rebalance!$D$27,INDIRECT(\"a\" & (VLOOKUP(Rebalance!$D$27,$F$2:$G$48,2,FALSE)+ROW()-2)),\"\")","v":{"$error":"#N/A"}},{"$f":"IF(INDIRECT(\"c\" & (VLOOKUP(Rebalance!$D$28,$F$2:$G$48,2,FALSE)+ROW()-2))=Rebalance!$D$28,INDIRECT(\"a\" & (VLOOKUP(Rebalance!$D$28,$F$2:$G$48,2,FALSE)+ROW()-2)),\"\")","v":{"$error":"#N/A"}},{"$f":"IF(INDIRECT(\"c\" & (VLOOKUP(Rebalance!$D$29,$F$2:$G$48,2,FALSE)+ROW()-2))=Rebalance!$D$29,INDIRECT(\"a\" & (VLOOKUP(Rebalance!$D$29,$F$2:$G$48,2,FALSE)+ROW()-2)),\"\")","v":{"$error":"#N/A"}},{"$f":"IF(INDIRECT(\"c\" & (VLOOKUP(Rebalance!$D$30,$F$2:$G$48,2,FALSE)+ROW()-2))=Rebalance!$D$30,INDIRECT(\"a\" & (VLOOKUP(Rebalance!$D$30,$F$2:$G$48,2,FALSE)+ROW()-2)),\"\")","v":{"$error":"#N/A"}},{"$f":"IF(INDIRECT(\"c\" & (VLOOKUP(Rebalance!$D$31,$F$2:$G$48,2,FALSE)+ROW()-2))=Rebalance!$D$31,INDIRECT(\"a\" & (VLOOKUP(Rebalance!$D$31,$F$2:$G$48,2,FALSE)+ROW()-2)),\"\")","v":{"$error":"#N/A"}},{"$f":"IF(INDIRECT(\"c\" & (VLOOKUP(Rebalance!$D$32,$F$2:$G$48,2,FALSE)+ROW()-2))=Rebalance!$D$32,INDIRECT(\"a\" & (VLOOKUP(Rebalance!$D$32,$F$2:$G$48,2,FALSE)+ROW()-2)),\"\")","v":{"$error":"#N/A"}},{"$f":"IF(INDIRECT(\"c\" & (VLOOKUP(Rebalance!$D$33,$F$2:$G$48,2,FALSE)+ROW()-2))=Rebalance!$D$33,INDIRECT(\"a\" & (VLOOKUP(Rebalance!$D$33,$F$2:$G$48,2,FALSE)+ROW()-2)),\"\")","v":{"$error":"#N/A"}},{"$f":"IF(INDIRECT(\"c\" & (VLOOKUP(Rebalance!$D$34,$F$2:$G$48,2,FALSE)+ROW()-2))=Rebalance!$D$34,INDIRECT(\"a\" & (VLOOKUP(Rebalance!$D$34,$F$2:$G$48,2,FALSE)+ROW()-2)),\"\")","v":{"$error":"#N/A"}},{"$f":"IF(INDIRECT(\"c\" & (VLOOKUP(Rebalance!$D$35,$F$2:$G$48,2,FALSE)+ROW()-2))=Rebalance!$D$35,INDIRECT(\"a\" & (VLOOKUP(Rebalance!$D$35,$F$2:$G$48,2,FALSE)+ROW()-2)),\"\")","v":{"$error":"#N/A"}},{"$f":"IF(INDIRECT(\"c\" & (VLOOKUP(Rebalance!$D$36,$F$2:$G$48,2,FALSE)+ROW()-2))=Rebalance!$D$36,INDIRECT(\"a\" & (VLOOKUP(Rebalance!$D$36,$F$2:$G$48,2,FALSE)+ROW()-2)),\"\")","v":{"$error":"#N/A"}},{"$f":"IF(INDIRECT(\"c\" & (VLOOKUP(Rebalance!$D$37,$F$2:$G$48,2,FALSE)+ROW()-2))=Rebalance!$D$37,INDIRECT(\"a\" & (VLOOKUP(Rebalance!$D$37,$F$2:$G$48,2,FALSE)+ROW()-2)),\"\")","v":{"$error":"#N/A"}},{"$f":"IF(INDIRECT(\"c\" & (VLOOKUP(Rebalance!$D$38,$F$2:$G$48,2,FALSE)+ROW()-2))=Rebalance!$D$38,INDIRECT(\"a\" & (VLOOKUP(Rebalance!$D$38,$F$2:$G$48,2,FALSE)+ROW()-2)),\"\")","v":{"$error":"#N/A"}},{"$f":"IF(INDIRECT(\"c\" & (VLOOKUP(Rebalance!$D$39,$F$2:$G$48,2,FALSE)+ROW()-2))=Rebalance!$D$39,INDIRECT(\"a\" & (VLOOKUP(Rebalance!$D$39,$F$2:$G$48,2,FALSE)+ROW()-2)),\"\")","v":{"$error":"#N/A"}},{"$f":"IF(INDIRECT(\"c\" & (VLOOKUP(Rebalance!$D$40,$F$2:$G$48,2,FALSE)+ROW()-2))=Rebalance!$D$40,INDIRECT(\"a\" & (VLOOKUP(Rebalance!$D$40,$F$2:$G$48,2,FALSE)+ROW()-2)),\"\")","v":{"$error":"#N/A"}},{"$f":"IF(INDIRECT(\"c\" & (VLOOKUP(Rebalance!$D$52,$F$2:$G$48,2,FALSE)+ROW()-2))=Rebalance!$D$52,INDIRECT(\"a\" & (VLOOKUP(Rebalance!$D$52,$F$2:$G$48,2,FALSE)+ROW()-2)),\"\")","v":{"$error":"#N/A"}},{"$f":"IF(INDIRECT(\"c\" & (VLOOKUP(Rebalance!$D$53,$F$2:$G$48,2,FALSE)+ROW()-2))=Rebalance!$D$53,INDIRECT(\"a\" & (VLOOKUP(Rebalance!$D$53,$F$2:$G$48,2,FALSE)+ROW()-2)),\"\")","v":{"$error":"#N/A"}},{"$f":"IF(INDIRECT(\"c\" & (VLOOKUP(Rebalance!$D$54,$F$2:$G$48,2,FALSE)+ROW()-2))=Rebalance!$D$54,INDIRECT(\"a\" & (VLOOKUP(Rebalance!$D$54,$F$2:$G$48,2,FALSE)+ROW()-2)),\"\")","v":{"$error":"#N/A"}},{"$f":"IF(INDIRECT(\"c\" & (VLOOKUP(Rebalance!$D$55,$F$2:$G$48,2,FALSE)+ROW()-2))=Rebalance!$D$55,INDIRECT(\"a\" & (VLOOKUP(Rebalance!$D$55,$F$2:$G$48,2,FALSE)+ROW()-2)),\"\")","v":{"$error":"#N/A"}},{"$f":"IF(INDIRECT(\"c\" & (VLOOKUP(Rebalance!$D$56,$F$2:$G$48,2,FALSE)+ROW()-2))=Rebalance!$D$56,INDIRECT(\"a\" & (VLOOKUP(Rebalance!$D$56,$F$2:$G$48,2,FALSE)+ROW()-2)),\"\")","v":{"$error":"#N/A"}},{"$f":"IF(INDIRECT(\"c\" & (VLOOKUP(Rebalance!$D$57,$F$2:$G$48,2,FALSE)+ROW()-2))=Rebalance!$D$57,INDIRECT(\"a\" & (VLOOKUP(Rebalance!$D$57,$F$2:$G$48,2,FALSE)+ROW()-2)),\"\")","v":{"$error":"#N/A"}},{"$f":"IF(INDIRECT(\"c\" & (VLOOKUP(Rebalance!$D$58,$F$2:$G$48,2,FALSE)+ROW()-2))=Rebalance!$D$58,INDIRECT(\"a\" & (VLOOKUP(Rebalance!$D$58,$F$2:$G$48,2,FALSE)+ROW()-2)),\"\")","v":{"$error":"#N/A"}},{"$f":"IF(INDIRECT(\"c\" & (VLOOKUP(Rebalance!$D$59,$F$2:$G$48,2,FALSE)+ROW()-2))=Rebalance!$D$59,INDIRECT(\"a\" & (VLOOKUP(Rebalance!$D$59,$F$2:$G$48,2,FALSE)+ROW()-2)),\"\")","v":{"$error":"#N/A"}},{"$f":"IF(INDIRECT(\"c\" & (VLOOKUP(Rebalance!$D$60,$F$2:$G$48,2,FALSE)+ROW()-2))=Rebalance!$D$60,INDIRECT(\"a\" & (VLOOKUP(Rebalance!$D$60,$F$2:$G$48,2,FALSE)+ROW()-2)),\"\")","v":{"$error":"#N/A"}},{"$f":"IF(INDIRECT(\"c\" & (VLOOKUP(Rebalance!$D$61,$F$2:$G$48,2,FALSE)+ROW()-2))=Rebalance!$D$61,INDIRECT(\"a\" & (VLOOKUP(Rebalance!$D$61,$F$2:$G$48,2,FALSE)+ROW()-2)),\"\")","v":{"$error":"#N/A"}},{"$f":"IF(INDIRECT(\"c\" & (VLOOKUP(Rebalance!$D$62,$F$2:$G$48,2,FALSE)+ROW()-2))=Rebalance!$D$62,INDIRECT(\"a\" & (VLOOKUP(Rebalance!$D$62,$F$2:$G$48,2,FALSE)+ROW()-2)),\"\")","v":{"$error":"#N/A"}},{"$f":"IF(INDIRECT(\"c\" & (VLOOKUP(Rebalance!$D$63,$F$2:$G$48,2,FALSE)+ROW()-2))=Rebalance!$D$63,INDIRECT(\"a\" & (VLOOKUP(Rebalance!$D$63,$F$2:$G$48,2,FALSE)+ROW()-2)),\"\")","v":{"$error":"#N/A"}},{"$f":"IF(INDIRECT(\"c\" & (VLOOKUP(Rebalance!$D$64,$F$2:$G$48,2,FALSE)+ROW()-2))=Rebalance!$D$64,INDIRECT(\"a\" & (VLOOKUP(Rebalance!$D$64,$F$2:$G$48,2,FALSE)+ROW()-2)),\"\")","v":{"$error":"#N/A"}},{"$f":"IF(INDIRECT(\"c\" & (VLOOKUP(Rebalance!$D$65,$F$2:$G$48,2,FALSE)+ROW()-2))=Rebalance!$D$65,INDIRECT(\"a\" & (VLOOKUP(Rebalance!$D$65,$F$2:$G$48,2,FALSE)+ROW()-2)),\"\")","v":{"$error":"#N/A"}},{"$f":"IF(INDIRECT(\"c\" & (VLOOKUP(Rebalance!$D$66,$F$2:$G$48,2,FALSE)+ROW()-2))=Rebalance!$D$66,INDIRECT(\"a\" & (VLOOKUP(Rebalance!$D$66,$F$2:$G$48,2,FALSE)+ROW()-2)),\"\")","v":{"$error":"#N/A"}}]
["27Four Shariah Income Provider Fund A1","27SPA1","Prescient Management Company Ltd",{"$f":"ROW()","v":438},null,null,{"$f":"VLOOKUP(F438,$C$2:$D$599,2,FALSE)","v":{"$error":"#N/A"}},{"$f":"IF(INDIRECT(\"c\" & (VLOOKUP(Rebalance!$D$26,$F$2:$G$48,2,FALSE)+ROW()-2))=Rebalance!$D$26,INDIRECT(\"a\" & (VLOOKUP(Rebalance!$D$26,$F$2:$G$48,2,FALSE)+ROW()-2)),\"\")","v":{"$error":"#N/A"}},{"$f":"IF(INDIRECT(\"c\" & (VLOOKUP(Rebalance!$D$27,$F$2:$G$48,2,FALSE)+ROW()-2))=Rebalance!$D$27,INDIRECT(\"a\" & (VLOOKUP(Rebalance!$D$27,$F$2:$G$48,2,FALSE)+ROW()-2)),\"\")","v":{"$error":"#N/A"}},{"$f":"IF(INDIRECT(\"c\" & (VLOOKUP(Rebalance!$D$28,$F$2:$G$48,2,FALSE)+ROW()-2))=Rebalance!$D$28,INDIRECT(\"a\" & (VLOOKUP(Rebalance!$D$28,$F$2:$G$48,2,FALSE)+ROW()-2)),\"\")","v":{"$error":"#N/A"}},{"$f":"IF(INDIRECT(\"c\" & (VLOOKUP(Rebalance!$D$29,$F$2:$G$48,2,FALSE)+ROW()-2))=Rebalance!$D$29,INDIRECT(\"a\" & (VLOOKUP(Rebalance!$D$29,$F$2:$G$48,2,FALSE)+ROW()-2)),\"\")","v":{"$error":"#N/A"}},{"$f":"IF(INDIRECT(\"c\" & (VLOOKUP(Rebalance!$D$30,$F$2:$G$48,2,FALSE)+ROW()-2))=Rebalance!$D$30,INDIRECT(\"a\" & (VLOOKUP(Rebalance!$D$30,$F$2:$G$48,2,FALSE)+ROW()-2)),\"\")","v":{"$error":"#N/A"}},{"$f":"IF(INDIRECT(\"c\" & (VLOOKUP(Rebalance!$D$31,$F$2:$G$48,2,FALSE)+ROW()-2))=Rebalance!$D$31,INDIRECT(\"a\" & (VLOOKUP(Rebalance!$D$31,$F$2:$G$48,2,FALSE)+ROW()-2)),\"\")","v":{"$error":"#N/A"}},{"$f":"IF(INDIRECT(\"c\" & (VLOOKUP(Rebalance!$D$32,$F$2:$G$48,2,FALSE)+ROW()-2))=Rebalance!$D$32,INDIRECT(\"a\" & (VLOOKUP(Rebalance!$D$32,$F$2:$G$48,2,FALSE)+ROW()-2)),\"\")","v":{"$error":"#N/A"}},{"$f":"IF(INDIRECT(\"c\" & (VLOOKUP(Rebalance!$D$33,$F$2:$G$48,2,FALSE)+ROW()-2))=Rebalance!$D$33,INDIRECT(\"a\" & (VLOOKUP(Rebalance!$D$33,$F$2:$G$48,2,FALSE)+ROW()-2)),\"\")","v":{"$error":"#N/A"}},{"$f":"IF(INDIRECT(\"c\" & (VLOOKUP(Rebalance!$D$34,$F$2:$G$48,2,FALSE)+ROW()-2))=Rebalance!$D$34,INDIRECT(\"a\" & (VLOOKUP(Rebalance!$D$34,$F$2:$G$48,2,FALSE)+ROW()-2)),\"\")","v":{"$error":"#N/A"}},{"$f":"IF(INDIRECT(\"c\" & (VLOOKUP(Rebalance!$D$35,$F$2:$G$48,2,FALSE)+ROW()-2))=Rebalance!$D$35,INDIRECT(\"a\" & (VLOOKUP(Rebalance!$D$35,$F$2:$G$48,2,FALSE)+ROW()-2)),\"\")","v":{"$error":"#N/A"}},{"$f":"IF(INDIRECT(\"c\" & (VLOOKUP(Rebalance!$D$36,$F$2:$G$48,2,FALSE)+ROW()-2))=Rebalance!$D$36,INDIRECT(\"a\" & (VLOOKUP(Rebalance!$D$36,$F$2:$G$48,2,FALSE)+ROW()-2)),\"\")","v":{"$error":"#N/A"}},{"$f":"IF(INDIRECT(\"c\" & (VLOOKUP(Rebalance!$D$37,$F$2:$G$48,2,FALSE)+ROW()-2))=Rebalance!$D$37,INDIRECT(\"a\" & (VLOOKUP(Rebalance!$D$37,$F$2:$G$48,2,FALSE)+ROW()-2)),\"\")","v":{"$error":"#N/A"}},{"$f":"IF(INDIRECT(\"c\" & (VLOOKUP(Rebalance!$D$38,$F$2:$G$48,2,FALSE)+ROW()-2))=Rebalance!$D$38,INDIRECT(\"a\" & (VLOOKUP(Rebalance!$D$38,$F$2:$G$48,2,FALSE)+ROW()-2)),\"\")","v":{"$error":"#N/A"}},{"$f":"IF(INDIRECT(\"c\" & (VLOOKUP(Rebalance!$D$39,$F$2:$G$48,2,FALSE)+ROW()-2))=Rebalance!$D$39,INDIRECT(\"a\" & (VLOOKUP(Rebalance!$D$39,$F$2:$G$48,2,FALSE)+ROW()-2)),\"\")","v":{"$error":"#N/A"}},{"$f":"IF(INDIRECT(\"c\" & (VLOOKUP(Rebalance!$D$40,$F$2:$G$48,2,FALSE)+ROW()-2))=Rebalance!$D$40,INDIRECT(\"a\" & (VLOOKUP(Rebalance!$D$40,$F$2:$G$48,2,FALSE)+ROW()-2)),\"\")","v":{"$error":"#N/A"}},{"$f":"IF(INDIRECT(\"c\" & (VLOOKUP(Rebalance!$D$52,$F$2:$G$48,2,FALSE)+ROW()-2))=Rebalance!$D$52,INDIRECT(\"a\" & (VLOOKUP(Rebalance!$D$52,$F$2:$G$48,2,FALSE)+ROW()-2)),\"\")","v":{"$error":"#N/A"}},{"$f":"IF(INDIRECT(\"c\" & (VLOOKUP(Rebalance!$D$53,$F$2:$G$48,2,FALSE)+ROW()-2))=Rebalance!$D$53,INDIRECT(\"a\" & (VLOOKUP(Rebalance!$D$53,$F$2:$G$48,2,FALSE)+ROW()-2)),\"\")","v":{"$error":"#N/A"}},{"$f":"IF(INDIRECT(\"c\" & (VLOOKUP(Rebalance!$D$54,$F$2:$G$48,2,FALSE)+ROW()-2))=Rebalance!$D$54,INDIRECT(\"a\" & (VLOOKUP(Rebalance!$D$54,$F$2:$G$48,2,FALSE)+ROW()-2)),\"\")","v":{"$error":"#N/A"}},{"$f":"IF(INDIRECT(\"c\" & (VLOOKUP(Rebalance!$D$55,$F$2:$G$48,2,FALSE)+ROW()-2))=Rebalance!$D$55,INDIRECT(\"a\" & (VLOOKUP(Rebalance!$D$55,$F$2:$G$48,2,FALSE)+ROW()-2)),\"\")","v":{"$error":"#N/A"}},{"$f":"IF(INDIRECT(\"c\" & (VLOOKUP(Rebalance!$D$56,$F$2:$G$48,2,FALSE)+ROW()-2))=Rebalance!$D$56,INDIRECT(\"a\" & (VLOOKUP(Rebalance!$D$56,$F$2:$G$48,2,FALSE)+ROW()-2)),\"\")","v":{"$error":"#N/A"}},{"$f":"IF(INDIRECT(\"c\" & (VLOOKUP(Rebalance!$D$57,$F$2:$G$48,2,FALSE)+ROW()-2))=Rebalance!$D$57,INDIRECT(\"a\" & (VLOOKUP(Rebalance!$D$57,$F$2:$G$48,2,FALSE)+ROW()-2)),\"\")","v":{"$error":"#N/A"}},{"$f":"IF(INDIRECT(\"c\" & (VLOOKUP(Rebalance!$D$58,$F$2:$G$48,2,FALSE)+ROW()-2))=Rebalance!$D$58,INDIRECT(\"a\" & (VLOOKUP(Rebalance!$D$58,$F$2:$G$48,2,FALSE)+ROW()-2)),\"\")","v":{"$error":"#N/A"}},{"$f":"IF(INDIRECT(\"c\" & (VLOOKUP(Rebalance!$D$59,$F$2:$G$48,2,FALSE)+ROW()-2))=Rebalance!$D$59,INDIRECT(\"a\" & (VLOOKUP(Rebalance!$D$59,$F$2:$G$48,2,FALSE)+ROW()-2)),\"\")","v":{"$error":"#N/A"}},{"$f":"IF(INDIRECT(\"c\" & (VLOOKUP(Rebalance!$D$60,$F$2:$G$48,2,FALSE)+ROW()-2))=Rebalance!$D$60,INDIRECT(\"a\" & (VLOOKUP(Rebalance!$D$60,$F$2:$G$48,2,FALSE)+ROW()-2)),\"\")","v":{"$error":"#N/A"}},{"$f":"IF(INDIRECT(\"c\" & (VLOOKUP(Rebalance!$D$61,$F$2:$G$48,2,FALSE)+ROW()-2))=Rebalance!$D$61,INDIRECT(\"a\" & (VLOOKUP(Rebalance!$D$61,$F$2:$G$48,2,FALSE)+ROW()-2)),\"\")","v":{"$error":"#N/A"}},{"$f":"IF(INDIRECT(\"c\" & (VLOOKUP(Rebalance!$D$62,$F$2:$G$48,2,FALSE)+ROW()-2))=Rebalance!$D$62,INDIRECT(\"a\" & (VLOOKUP(Rebalance!$D$62,$F$2:$G$48,2,FALSE)+ROW()-2)),\"\")","v":{"$error":"#N/A"}},{"$f":"IF(INDIRECT(\"c\" & (VLOOKUP(Rebalance!$D$63,$F$2:$G$48,2,FALSE)+ROW()-2))=Rebalance!$D$63,INDIRECT(\"a\" & (VLOOKUP(Rebalance!$D$63,$F$2:$G$48,2,FALSE)+ROW()-2)),\"\")","v":{"$error":"#N/A"}},{"$f":"IF(INDIRECT(\"c\" & (VLOOKUP(Rebalance!$D$64,$F$2:$G$48,2,FALSE)+ROW()-2))=Rebalance!$D$64,INDIRECT(\"a\" & (VLOOKUP(Rebalance!$D$64,$F$2:$G$48,2,FALSE)+ROW()-2)),\"\")","v":{"$error":"#N/A"}},{"$f":"IF(INDIRECT(\"c\" & (VLOOKUP(Rebalance!$D$65,$F$2:$G$48,2,FALSE)+ROW()-2))=Rebalance!$D$65,INDIRECT(\"a\" & (VLOOKUP(Rebalance!$D$65,$F$2:$G$48,2,FALSE)+ROW()-2)),\"\")","v":{"$error":"#N/A"}},{"$f":"IF(INDIRECT(\"c\" & (VLOOKUP(Rebalance!$D$66,$F$2:$G$48,2,FALSE)+ROW()-2))=Rebalance!$D$66,INDIRECT(\"a\" & (VLOOKUP(Rebalance!$D$66,$F$2:$G$48,2,FALSE)+ROW()-2)),\"\")","v":{"$error":"#N/A"}}]
["27Four Shariah Balanced Prescient Fund of Funds A1","27SA1","Prescient Management Company Ltd",{"$f":"ROW()","v":439},null,null,{"$f":"VLOOKUP(F439,$C$2:$D$599,2,FALSE)","v":{"$error":"#N/A"}},{"$f":"IF(INDIRECT(\"c\" & (VLOOKUP(Rebalance!$D$26,$F$2:$G$48,2,FALSE)+ROW()-2))=Rebalance!$D$26,INDIRECT(\"a\" & (VLOOKUP(Rebalance!$D$26,$F$2:$G$48,2,FALSE)+ROW()-2)),\"\")","v":{"$error":"#N/A"}},{"$f":"IF(INDIRECT(\"c\" & (VLOOKUP(Rebalance!$D$27,$F$2:$G$48,2,FALSE)+ROW()-2))=Rebalance!$D$27,INDIRECT(\"a\" & (VLOOKUP(Rebalance!$D$27,$F$2:$G$48,2,FALSE)+ROW()-2)),\"\")","v":{"$error":"#N/A"}},{"$f":"IF(INDIRECT(\"c\" & (VLOOKUP(Rebalance!$D$28,$F$2:$G$48,2,FALSE)+ROW()-2))=Rebalance!$D$28,INDIRECT(\"a\" & (VLOOKUP(Rebalance!$D$28,$F$2:$G$48,2,FALSE)+ROW()-2)),\"\")","v":{"$error":"#N/A"}},{"$f":"IF(INDIRECT(\"c\" & (VLOOKUP(Rebalance!$D$29,$F$2:$G$48,2,FALSE)+ROW()-2))=Rebalance!$D$29,INDIRECT(\"a\" & (VLOOKUP(Rebalance!$D$29,$F$2:$G$48,2,FALSE)+ROW()-2)),\"\")","v":{"$error":"#N/A"}},{"$f":"IF(INDIRECT(\"c\" & (VLOOKUP(Rebalance!$D$30,$F$2:$G$48,2,FALSE)+ROW()-2))=Rebalance!$D$30,INDIRECT(\"a\" & (VLOOKUP(Rebalance!$D$30,$F$2:$G$48,2,FALSE)+ROW()-2)),\"\")","v":{"$error":"#N/A"}},{"$f":"IF(INDIRECT(\"c\" & (VLOOKUP(Rebalance!$D$31,$F$2:$G$48,2,FALSE)+ROW()-2))=Rebalance!$D$31,INDIRECT(\"a\" & (VLOOKUP(Rebalance!$D$31,$F$2:$G$48,2,FALSE)+ROW()-2)),\"\")","v":{"$error":"#N/A"}},{"$f":"IF(INDIRECT(\"c\" & (VLOOKUP(Rebalance!$D$32,$F$2:$G$48,2,FALSE)+ROW()-2))=Rebalance!$D$32,INDIRECT(\"a\" & (VLOOKUP(Rebalance!$D$32,$F$2:$G$48,2,FALSE)+ROW()-2)),\"\")","v":{"$error":"#N/A"}},{"$f":"IF(INDIRECT(\"c\" & (VLOOKUP(Rebalance!$D$33,$F$2:$G$48,2,FALSE)+ROW()-2))=Rebalance!$D$33,INDIRECT(\"a\" & (VLOOKUP(Rebalance!$D$33,$F$2:$G$48,2,FALSE)+ROW()-2)),\"\")","v":{"$error":"#N/A"}},{"$f":"IF(INDIRECT(\"c\" & (VLOOKUP(Rebalance!$D$34,$F$2:$G$48,2,FALSE)+ROW()-2))=Rebalance!$D$34,INDIRECT(\"a\" & (VLOOKUP(Rebalance!$D$34,$F$2:$G$48,2,FALSE)+ROW()-2)),\"\")","v":{"$error":"#N/A"}},{"$f":"IF(INDIRECT(\"c\" & (VLOOKUP(Rebalance!$D$35,$F$2:$G$48,2,FALSE)+ROW()-2))=Rebalance!$D$35,INDIRECT(\"a\" & (VLOOKUP(Rebalance!$D$35,$F$2:$G$48,2,FALSE)+ROW()-2)),\"\")","v":{"$error":"#N/A"}},{"$f":"IF(INDIRECT(\"c\" & (VLOOKUP(Rebalance!$D$36,$F$2:$G$48,2,FALSE)+ROW()-2))=Rebalance!$D$36,INDIRECT(\"a\" & (VLOOKUP(Rebalance!$D$36,$F$2:$G$48,2,FALSE)+ROW()-2)),\"\")","v":{"$error":"#N/A"}},{"$f":"IF(INDIRECT(\"c\" & (VLOOKUP(Rebalance!$D$37,$F$2:$G$48,2,FALSE)+ROW()-2))=Rebalance!$D$37,INDIRECT(\"a\" & (VLOOKUP(Rebalance!$D$37,$F$2:$G$48,2,FALSE)+ROW()-2)),\"\")","v":{"$error":"#N/A"}},{"$f":"IF(INDIRECT(\"c\" & (VLOOKUP(Rebalance!$D$38,$F$2:$G$48,2,FALSE)+ROW()-2))=Rebalance!$D$38,INDIRECT(\"a\" & (VLOOKUP(Rebalance!$D$38,$F$2:$G$48,2,FALSE)+ROW()-2)),\"\")","v":{"$error":"#N/A"}},{"$f":"IF(INDIRECT(\"c\" & (VLOOKUP(Rebalance!$D$39,$F$2:$G$48,2,FALSE)+ROW()-2))=Rebalance!$D$39,INDIRECT(\"a\" & (VLOOKUP(Rebalance!$D$39,$F$2:$G$48,2,FALSE)+ROW()-2)),\"\")","v":{"$error":"#N/A"}},{"$f":"IF(INDIRECT(\"c\" & (VLOOKUP(Rebalance!$D$40,$F$2:$G$48,2,FALSE)+ROW()-2))=Rebalance!$D$40,INDIRECT(\"a\" & (VLOOKUP(Rebalance!$D$40,$F$2:$G$48,2,FALSE)+ROW()-2)),\"\")","v":{"$error":"#N/A"}},{"$f":"IF(INDIRECT(\"c\" & (VLOOKUP(Rebalance!$D$52,$F$2:$G$48,2,FALSE)+ROW()-2))=Rebalance!$D$52,INDIRECT(\"a\" & (VLOOKUP(Rebalance!$D$52,$F$2:$G$48,2,FALSE)+ROW()-2)),\"\")","v":{"$error":"#N/A"}},{"$f":"IF(INDIRECT(\"c\" & (VLOOKUP(Rebalance!$D$53,$F$2:$G$48,2,FALSE)+ROW()-2))=Rebalance!$D$53,INDIRECT(\"a\" & (VLOOKUP(Rebalance!$D$53,$F$2:$G$48,2,FALSE)+ROW()-2)),\"\")","v":{"$error":"#N/A"}},{"$f":"IF(INDIRECT(\"c\" & (VLOOKUP(Rebalance!$D$54,$F$2:$G$48,2,FALSE)+ROW()-2))=Rebalance!$D$54,INDIRECT(\"a\" & (VLOOKUP(Rebalance!$D$54,$F$2:$G$48,2,FALSE)+ROW()-2)),\"\")","v":{"$error":"#N/A"}},{"$f":"IF(INDIRECT(\"c\" & (VLOOKUP(Rebalance!$D$55,$F$2:$G$48,2,FALSE)+ROW()-2))=Rebalance!$D$55,INDIRECT(\"a\" & (VLOOKUP(Rebalance!$D$55,$F$2:$G$48,2,FALSE)+ROW()-2)),\"\")","v":{"$error":"#N/A"}},{"$f":"IF(INDIRECT(\"c\" & (VLOOKUP(Rebalance!$D$56,$F$2:$G$48,2,FALSE)+ROW()-2))=Rebalance!$D$56,INDIRECT(\"a\" & (VLOOKUP(Rebalance!$D$56,$F$2:$G$48,2,FALSE)+ROW()-2)),\"\")","v":{"$error":"#N/A"}},{"$f":"IF(INDIRECT(\"c\" & (VLOOKUP(Rebalance!$D$57,$F$2:$G$48,2,FALSE)+ROW()-2))=Rebalance!$D$57,INDIRECT(\"a\" & (VLOOKUP(Rebalance!$D$57,$F$2:$G$48,2,FALSE)+ROW()-2)),\"\")","v":{"$error":"#N/A"}},{"$f":"IF(INDIRECT(\"c\" & (VLOOKUP(Rebalance!$D$58,$F$2:$G$48,2,FALSE)+ROW()-2))=Rebalance!$D$58,INDIRECT(\"a\" & (VLOOKUP(Rebalance!$D$58,$F$2:$G$48,2,FALSE)+ROW()-2)),\"\")","v":{"$error":"#N/A"}},{"$f":"IF(INDIRECT(\"c\" & (VLOOKUP(Rebalance!$D$59,$F$2:$G$48,2,FALSE)+ROW()-2))=Rebalance!$D$59,INDIRECT(\"a\" & (VLOOKUP(Rebalance!$D$59,$F$2:$G$48,2,FALSE)+ROW()-2)),\"\")","v":{"$error":"#N/A"}},{"$f":"IF(INDIRECT(\"c\" & (VLOOKUP(Rebalance!$D$60,$F$2:$G$48,2,FALSE)+ROW()-2))=Rebalance!$D$60,INDIRECT(\"a\" & (VLOOKUP(Rebalance!$D$60,$F$2:$G$48,2,FALSE)+ROW()-2)),\"\")","v":{"$error":"#N/A"}},{"$f":"IF(INDIRECT(\"c\" & (VLOOKUP(Rebalance!$D$61,$F$2:$G$48,2,FALSE)+ROW()-2))=Rebalance!$D$61,INDIRECT(\"a\" & (VLOOKUP(Rebalance!$D$61,$F$2:$G$48,2,FALSE)+ROW()-2)),\"\")","v":{"$error":"#N/A"}},{"$f":"IF(INDIRECT(\"c\" & (VLOOKUP(Rebalance!$D$62,$F$2:$G$48,2,FALSE)+ROW()-2))=Rebalance!$D$62,INDIRECT(\"a\" & (VLOOKUP(Rebalance!$D$62,$F$2:$G$48,2,FALSE)+ROW()-2)),\"\")","v":{"$error":"#N/A"}},{"$f":"IF(INDIRECT(\"c\" & (VLOOKUP(Rebalance!$D$63,$F$2:$G$48,2,FALSE)+ROW()-2))=Rebalance!$D$63,INDIRECT(\"a\" & (VLOOKUP(Rebalance!$D$63,$F$2:$G$48,2,FALSE)+ROW()-2)),\"\")","v":{"$error":"#N/A"}},{"$f":"IF(INDIRECT(\"c\" & (VLOOKUP(Rebalance!$D$64,$F$2:$G$48,2,FALSE)+ROW()-2))=Rebalance!$D$64,INDIRECT(\"a\" & (VLOOKUP(Rebalance!$D$64,$F$2:$G$48,2,FALSE)+ROW()-2)),\"\")","v":{"$error":"#N/A"}},{"$f":"IF(INDIRECT(\"c\" & (VLOOKUP(Rebalance!$D$65,$F$2:$G$48,2,FALSE)+ROW()-2))=Rebalance!$D$65,INDIRECT(\"a\" & (VLOOKUP(Rebalance!$D$65,$F$2:$G$48,2,FALSE)+ROW()-2)),\"\")","v":{"$error":"#N/A"}},{"$f":"IF(INDIRECT(\"c\" & (VLOOKUP(Rebalance!$D$66,$F$2:$G$48,2,FALSE)+ROW()-2))=Rebalance!$D$66,INDIRECT(\"a\" & (VLOOKUP(Rebalance!$D$66,$F$2:$G$48,2,FALSE)+ROW()-2)),\"\")","v":{"$error":"#N/A"}}]
["27four Shariah Active Equity Fund A1","27FA1","Prescient Management Company Ltd",{"$f":"ROW()","v":440},null,null,{"$f":"VLOOKUP(F440,$C$2:$D$599,2,FALSE)","v":{"$error":"#N/A"}},{"$f":"IF(INDIRECT(\"c\" & (VLOOKUP(Rebalance!$D$26,$F$2:$G$48,2,FALSE)+ROW()-2))=Rebalance!$D$26,INDIRECT(\"a\" & (VLOOKUP(Rebalance!$D$26,$F$2:$G$48,2,FALSE)+ROW()-2)),\"\")","v":{"$error":"#N/A"}},{"$f":"IF(INDIRECT(\"c\" & (VLOOKUP(Rebalance!$D$27,$F$2:$G$48,2,FALSE)+ROW()-2))=Rebalance!$D$27,INDIRECT(\"a\" & (VLOOKUP(Rebalance!$D$27,$F$2:$G$48,2,FALSE)+ROW()-2)),\"\")","v":{"$error":"#N/A"}},{"$f":"IF(INDIRECT(\"c\" & (VLOOKUP(Rebalance!$D$28,$F$2:$G$48,2,FALSE)+ROW()-2))=Rebalance!$D$28,INDIRECT(\"a\" & (VLOOKUP(Rebalance!$D$28,$F$2:$G$48,2,FALSE)+ROW()-2)),\"\")","v":{"$error":"#N/A"}},{"$f":"IF(INDIRECT(\"c\" & (VLOOKUP(Rebalance!$D$29,$F$2:$G$48,2,FALSE)+ROW()-2))=Rebalance!$D$29,INDIRECT(\"a\" & (VLOOKUP(Rebalance!$D$29,$F$2:$G$48,2,FALSE)+ROW()-2)),\"\")","v":{"$error":"#N/A"}},{"$f":"IF(INDIRECT(\"c\" & (VLOOKUP(Rebalance!$D$30,$F$2:$G$48,2,FALSE)+ROW()-2))=Rebalance!$D$30,INDIRECT(\"a\" & (VLOOKUP(Rebalance!$D$30,$F$2:$G$48,2,FALSE)+ROW()-2)),\"\")","v":{"$error":"#N/A"}},{"$f":"IF(INDIRECT(\"c\" & (VLOOKUP(Rebalance!$D$31,$F$2:$G$48,2,FALSE)+ROW()-2))=Rebalance!$D$31,INDIRECT(\"a\" & (VLOOKUP(Rebalance!$D$31,$F$2:$G$48,2,FALSE)+ROW()-2)),\"\")","v":{"$error":"#N/A"}},{"$f":"IF(INDIRECT(\"c\" & (VLOOKUP(Rebalance!$D$32,$F$2:$G$48,2,FALSE)+ROW()-2))=Rebalance!$D$32,INDIRECT(\"a\" & (VLOOKUP(Rebalance!$D$32,$F$2:$G$48,2,FALSE)+ROW()-2)),\"\")","v":{"$error":"#N/A"}},{"$f":"IF(INDIRECT(\"c\" & (VLOOKUP(Rebalance!$D$33,$F$2:$G$48,2,FALSE)+ROW()-2))=Rebalance!$D$33,INDIRECT(\"a\" & (VLOOKUP(Rebalance!$D$33,$F$2:$G$48,2,FALSE)+ROW()-2)),\"\")","v":{"$error":"#N/A"}},{"$f":"IF(INDIRECT(\"c\" & (VLOOKUP(Rebalance!$D$34,$F$2:$G$48,2,FALSE)+ROW()-2))=Rebalance!$D$34,INDIRECT(\"a\" & (VLOOKUP(Rebalance!$D$34,$F$2:$G$48,2,FALSE)+ROW()-2)),\"\")","v":{"$error":"#N/A"}},{"$f":"IF(INDIRECT(\"c\" & (VLOOKUP(Rebalance!$D$35,$F$2:$G$48,2,FALSE)+ROW()-2))=Rebalance!$D$35,INDIRECT(\"a\" & (VLOOKUP(Rebalance!$D$35,$F$2:$G$48,2,FALSE)+ROW()-2)),\"\")","v":{"$error":"#N/A"}},{"$f":"IF(INDIRECT(\"c\" & (VLOOKUP(Rebalance!$D$36,$F$2:$G$48,2,FALSE)+ROW()-2))=Rebalance!$D$36,INDIRECT(\"a\" & (VLOOKUP(Rebalance!$D$36,$F$2:$G$48,2,FALSE)+ROW()-2)),\"\")","v":{"$error":"#N/A"}},{"$f":"IF(INDIRECT(\"c\" & (VLOOKUP(Rebalance!$D$37,$F$2:$G$48,2,FALSE)+ROW()-2))=Rebalance!$D$37,INDIRECT(\"a\" & (VLOOKUP(Rebalance!$D$37,$F$2:$G$48,2,FALSE)+ROW()-2)),\"\")","v":{"$error":"#N/A"}},{"$f":"IF(INDIRECT(\"c\" & (VLOOKUP(Rebalance!$D$38,$F$2:$G$48,2,FALSE)+ROW()-2))=Rebalance!$D$38,INDIRECT(\"a\" & (VLOOKUP(Rebalance!$D$38,$F$2:$G$48,2,FALSE)+ROW()-2)),\"\")","v":{"$error":"#N/A"}},{"$f":"IF(INDIRECT(\"c\" & (VLOOKUP(Rebalance!$D$39,$F$2:$G$48,2,FALSE)+ROW()-2))=Rebalance!$D$39,INDIRECT(\"a\" & (VLOOKUP(Rebalance!$D$39,$F$2:$G$48,2,FALSE)+ROW()-2)),\"\")","v":{"$error":"#N/A"}},{"$f":"IF(INDIRECT(\"c\" & (VLOOKUP(Rebalance!$D$40,$F$2:$G$48,2,FALSE)+ROW()-2))=Rebalance!$D$40,INDIRECT(\"a\" & (VLOOKUP(Rebalance!$D$40,$F$2:$G$48,2,FALSE)+ROW()-2)),\"\")","v":{"$error":"#N/A"}},{"$f":"IF(INDIRECT(\"c\" & (VLOOKUP(Rebalance!$D$52,$F$2:$G$48,2,FALSE)+ROW()-2))=Rebalance!$D$52,INDIRECT(\"a\" & (VLOOKUP(Rebalance!$D$52,$F$2:$G$48,2,FALSE)+ROW()-2)),\"\")","v":{"$error":"#N/A"}},{"$f":"IF(INDIRECT(\"c\" & (VLOOKUP(Rebalance!$D$53,$F$2:$G$48,2,FALSE)+ROW()-2))=Rebalance!$D$53,INDIRECT(\"a\" & (VLOOKUP(Rebalance!$D$53,$F$2:$G$48,2,FALSE)+ROW()-2)),\"\")","v":{"$error":"#N/A"}},{"$f":"IF(INDIRECT(\"c\" & (VLOOKUP(Rebalance!$D$54,$F$2:$G$48,2,FALSE)+ROW()-2))=Rebalance!$D$54,INDIRECT(\"a\" & (VLOOKUP(Rebalance!$D$54,$F$2:$G$48,2,FALSE)+ROW()-2)),\"\")","v":{"$error":"#N/A"}},{"$f":"IF(INDIRECT(\"c\" & (VLOOKUP(Rebalance!$D$55,$F$2:$G$48,2,FALSE)+ROW()-2))=Rebalance!$D$55,INDIRECT(\"a\" & (VLOOKUP(Rebalance!$D$55,$F$2:$G$48,2,FALSE)+ROW()-2)),\"\")","v":{"$error":"#N/A"}},{"$f":"IF(INDIRECT(\"c\" & (VLOOKUP(Rebalance!$D$56,$F$2:$G$48,2,FALSE)+ROW()-2))=Rebalance!$D$56,INDIRECT(\"a\" & (VLOOKUP(Rebalance!$D$56,$F$2:$G$48,2,FALSE)+ROW()-2)),\"\")","v":{"$error":"#N/A"}},{"$f":"IF(INDIRECT(\"c\" & (VLOOKUP(Rebalance!$D$57,$F$2:$G$48,2,FALSE)+ROW()-2))=Rebalance!$D$57,INDIRECT(\"a\" & (VLOOKUP(Rebalance!$D$57,$F$2:$G$48,2,FALSE)+ROW()-2)),\"\")","v":{"$error":"#N/A"}},{"$f":"IF(INDIRECT(\"c\" & (VLOOKUP(Rebalance!$D$58,$F$2:$G$48,2,FALSE)+ROW()-2))=Rebalance!$D$58,INDIRECT(\"a\" & (VLOOKUP(Rebalance!$D$58,$F$2:$G$48,2,FALSE)+ROW()-2)),\"\")","v":{"$error":"#N/A"}},{"$f":"IF(INDIRECT(\"c\" & (VLOOKUP(Rebalance!$D$59,$F$2:$G$48,2,FALSE)+ROW()-2))=Rebalance!$D$59,INDIRECT(\"a\" & (VLOOKUP(Rebalance!$D$59,$F$2:$G$48,2,FALSE)+ROW()-2)),\"\")","v":{"$error":"#N/A"}},{"$f":"IF(INDIRECT(\"c\" & (VLOOKUP(Rebalance!$D$60,$F$2:$G$48,2,FALSE)+ROW()-2))=Rebalance!$D$60,INDIRECT(\"a\" & (VLOOKUP(Rebalance!$D$60,$F$2:$G$48,2,FALSE)+ROW()-2)),\"\")","v":{"$error":"#N/A"}},{"$f":"IF(INDIRECT(\"c\" & (VLOOKUP(Rebalance!$D$61,$F$2:$G$48,2,FALSE)+ROW()-2))=Rebalance!$D$61,INDIRECT(\"a\" & (VLOOKUP(Rebalance!$D$61,$F$2:$G$48,2,FALSE)+ROW()-2)),\"\")","v":{"$error":"#N/A"}},{"$f":"IF(INDIRECT(\"c\" & (VLOOKUP(Rebalance!$D$62,$F$2:$G$48,2,FALSE)+ROW()-2))=Rebalance!$D$62,INDIRECT(\"a\" & (VLOOKUP(Rebalance!$D$62,$F$2:$G$48,2,FALSE)+ROW()-2)),\"\")","v":{"$error":"#N/A"}},{"$f":"IF(INDIRECT(\"c\" & (VLOOKUP(Rebalance!$D$63,$F$2:$G$48,2,FALSE)+ROW()-2))=Rebalance!$D$63,INDIRECT(\"a\" & (VLOOKUP(Rebalance!$D$63,$F$2:$G$48,2,FALSE)+ROW()-2)),\"\")","v":{"$error":"#N/A"}},{"$f":"IF(INDIRECT(\"c\" & (VLOOKUP(Rebalance!$D$64,$F$2:$G$48,2,FALSE)+ROW()-2))=Rebalance!$D$64,INDIRECT(\"a\" & (VLOOKUP(Rebalance!$D$64,$F$2:$G$48,2,FALSE)+ROW()-2)),\"\")","v":{"$error":"#N/A"}},{"$f":"IF(INDIRECT(\"c\" & (VLOOKUP(Rebalance!$D$65,$F$2:$G$48,2,FALSE)+ROW()-2))=Rebalance!$D$65,INDIRECT(\"a\" & (VLOOKUP(Rebalance!$D$65,$F$2:$G$48,2,FALSE)+ROW()-2)),\"\")","v":{"$error":"#N/A"}},{"$f":"IF(INDIRECT(\"c\" & (VLOOKUP(Rebalance!$D$66,$F$2:$G$48,2,FALSE)+ROW()-2))=Rebalance!$D$66,INDIRECT(\"a\" & (VLOOKUP(Rebalance!$D$66,$F$2:$G$48,2,FALSE)+ROW()-2)),\"\")","v":{"$error":"#N/A"}}]
["ABAX Absolute Prescient Fund  A","ABRA","Prescient Management Company Ltd",{"$f":"ROW()","v":441},null,null,{"$f":"VLOOKUP(F441,$C$2:$D$599,2,FALSE)","v":{"$error":"#N/A"}},{"$f":"IF(INDIRECT(\"c\" & (VLOOKUP(Rebalance!$D$26,$F$2:$G$48,2,FALSE)+ROW()-2))=Rebalance!$D$26,INDIRECT(\"a\" & (VLOOKUP(Rebalance!$D$26,$F$2:$G$48,2,FALSE)+ROW()-2)),\"\")","v":{"$error":"#N/A"}},{"$f":"IF(INDIRECT(\"c\" & (VLOOKUP(Rebalance!$D$27,$F$2:$G$48,2,FALSE)+ROW()-2))=Rebalance!$D$27,INDIRECT(\"a\" & (VLOOKUP(Rebalance!$D$27,$F$2:$G$48,2,FALSE)+ROW()-2)),\"\")","v":{"$error":"#N/A"}},{"$f":"IF(INDIRECT(\"c\" & (VLOOKUP(Rebalance!$D$28,$F$2:$G$48,2,FALSE)+ROW()-2))=Rebalance!$D$28,INDIRECT(\"a\" & (VLOOKUP(Rebalance!$D$28,$F$2:$G$48,2,FALSE)+ROW()-2)),\"\")","v":{"$error":"#N/A"}},{"$f":"IF(INDIRECT(\"c\" & (VLOOKUP(Rebalance!$D$29,$F$2:$G$48,2,FALSE)+ROW()-2))=Rebalance!$D$29,INDIRECT(\"a\" & (VLOOKUP(Rebalance!$D$29,$F$2:$G$48,2,FALSE)+ROW()-2)),\"\")","v":{"$error":"#N/A"}},{"$f":"IF(INDIRECT(\"c\" & (VLOOKUP(Rebalance!$D$30,$F$2:$G$48,2,FALSE)+ROW()-2))=Rebalance!$D$30,INDIRECT(\"a\" & (VLOOKUP(Rebalance!$D$30,$F$2:$G$48,2,FALSE)+ROW()-2)),\"\")","v":{"$error":"#N/A"}},{"$f":"IF(INDIRECT(\"c\" & (VLOOKUP(Rebalance!$D$31,$F$2:$G$48,2,FALSE)+ROW()-2))=Rebalance!$D$31,INDIRECT(\"a\" & (VLOOKUP(Rebalance!$D$31,$F$2:$G$48,2,FALSE)+ROW()-2)),\"\")","v":{"$error":"#N/A"}},{"$f":"IF(INDIRECT(\"c\" & (VLOOKUP(Rebalance!$D$32,$F$2:$G$48,2,FALSE)+ROW()-2))=Rebalance!$D$32,INDIRECT(\"a\" & (VLOOKUP(Rebalance!$D$32,$F$2:$G$48,2,FALSE)+ROW()-2)),\"\")","v":{"$error":"#N/A"}},{"$f":"IF(INDIRECT(\"c\" & (VLOOKUP(Rebalance!$D$33,$F$2:$G$48,2,FALSE)+ROW()-2))=Rebalance!$D$33,INDIRECT(\"a\" & (VLOOKUP(Rebalance!$D$33,$F$2:$G$48,2,FALSE)+ROW()-2)),\"\")","v":{"$error":"#N/A"}},{"$f":"IF(INDIRECT(\"c\" & (VLOOKUP(Rebalance!$D$34,$F$2:$G$48,2,FALSE)+ROW()-2))=Rebalance!$D$34,INDIRECT(\"a\" & (VLOOKUP(Rebalance!$D$34,$F$2:$G$48,2,FALSE)+ROW()-2)),\"\")","v":{"$error":"#N/A"}},{"$f":"IF(INDIRECT(\"c\" & (VLOOKUP(Rebalance!$D$35,$F$2:$G$48,2,FALSE)+ROW()-2))=Rebalance!$D$35,INDIRECT(\"a\" & (VLOOKUP(Rebalance!$D$35,$F$2:$G$48,2,FALSE)+ROW()-2)),\"\")","v":{"$error":"#N/A"}},{"$f":"IF(INDIRECT(\"c\" & (VLOOKUP(Rebalance!$D$36,$F$2:$G$48,2,FALSE)+ROW()-2))=Rebalance!$D$36,INDIRECT(\"a\" & (VLOOKUP(Rebalance!$D$36,$F$2:$G$48,2,FALSE)+ROW()-2)),\"\")","v":{"$error":"#N/A"}},{"$f":"IF(INDIRECT(\"c\" & (VLOOKUP(Rebalance!$D$37,$F$2:$G$48,2,FALSE)+ROW()-2))=Rebalance!$D$37,INDIRECT(\"a\" & (VLOOKUP(Rebalance!$D$37,$F$2:$G$48,2,FALSE)+ROW()-2)),\"\")","v":{"$error":"#N/A"}},{"$f":"IF(INDIRECT(\"c\" & (VLOOKUP(Rebalance!$D$38,$F$2:$G$48,2,FALSE)+ROW()-2))=Rebalance!$D$38,INDIRECT(\"a\" & (VLOOKUP(Rebalance!$D$38,$F$2:$G$48,2,FALSE)+ROW()-2)),\"\")","v":{"$error":"#N/A"}},{"$f":"IF(INDIRECT(\"c\" & (VLOOKUP(Rebalance!$D$39,$F$2:$G$48,2,FALSE)+ROW()-2))=Rebalance!$D$39,INDIRECT(\"a\" & (VLOOKUP(Rebalance!$D$39,$F$2:$G$48,2,FALSE)+ROW()-2)),\"\")","v":{"$error":"#N/A"}},{"$f":"IF(INDIRECT(\"c\" & (VLOOKUP(Rebalance!$D$40,$F$2:$G$48,2,FALSE)+ROW()-2))=Rebalance!$D$40,INDIRECT(\"a\" & (VLOOKUP(Rebalance!$D$40,$F$2:$G$48,2,FALSE)+ROW()-2)),\"\")","v":{"$error":"#N/A"}},{"$f":"IF(INDIRECT(\"c\" & (VLOOKUP(Rebalance!$D$52,$F$2:$G$48,2,FALSE)+ROW()-2))=Rebalance!$D$52,INDIRECT(\"a\" & (VLOOKUP(Rebalance!$D$52,$F$2:$G$48,2,FALSE)+ROW()-2)),\"\")","v":{"$error":"#N/A"}},{"$f":"IF(INDIRECT(\"c\" & (VLOOKUP(Rebalance!$D$53,$F$2:$G$48,2,FALSE)+ROW()-2))=Rebalance!$D$53,INDIRECT(\"a\" & (VLOOKUP(Rebalance!$D$53,$F$2:$G$48,2,FALSE)+ROW()-2)),\"\")","v":{"$error":"#N/A"}},{"$f":"IF(INDIRECT(\"c\" & (VLOOKUP(Rebalance!$D$54,$F$2:$G$48,2,FALSE)+ROW()-2))=Rebalance!$D$54,INDIRECT(\"a\" & (VLOOKUP(Rebalance!$D$54,$F$2:$G$48,2,FALSE)+ROW()-2)),\"\")","v":{"$error":"#N/A"}},{"$f":"IF(INDIRECT(\"c\" & (VLOOKUP(Rebalance!$D$55,$F$2:$G$48,2,FALSE)+ROW()-2))=Rebalance!$D$55,INDIRECT(\"a\" & (VLOOKUP(Rebalance!$D$55,$F$2:$G$48,2,FALSE)+ROW()-2)),\"\")","v":{"$error":"#N/A"}},{"$f":"IF(INDIRECT(\"c\" & (VLOOKUP(Rebalance!$D$56,$F$2:$G$48,2,FALSE)+ROW()-2))=Rebalance!$D$56,INDIRECT(\"a\" & (VLOOKUP(Rebalance!$D$56,$F$2:$G$48,2,FALSE)+ROW()-2)),\"\")","v":{"$error":"#N/A"}},{"$f":"IF(INDIRECT(\"c\" & (VLOOKUP(Rebalance!$D$57,$F$2:$G$48,2,FALSE)+ROW()-2))=Rebalance!$D$57,INDIRECT(\"a\" & (VLOOKUP(Rebalance!$D$57,$F$2:$G$48,2,FALSE)+ROW()-2)),\"\")","v":{"$error":"#N/A"}},{"$f":"IF(INDIRECT(\"c\" & (VLOOKUP(Rebalance!$D$58,$F$2:$G$48,2,FALSE)+ROW()-2))=Rebalance!$D$58,INDIRECT(\"a\" & (VLOOKUP(Rebalance!$D$58,$F$2:$G$48,2,FALSE)+ROW()-2)),\"\")","v":{"$error":"#N/A"}},{"$f":"IF(INDIRECT(\"c\" & (VLOOKUP(Rebalance!$D$59,$F$2:$G$48,2,FALSE)+ROW()-2))=Rebalance!$D$59,INDIRECT(\"a\" & (VLOOKUP(Rebalance!$D$59,$F$2:$G$48,2,FALSE)+ROW()-2)),\"\")","v":{"$error":"#N/A"}},{"$f":"IF(INDIRECT(\"c\" & (VLOOKUP(Rebalance!$D$60,$F$2:$G$48,2,FALSE)+ROW()-2))=Rebalance!$D$60,INDIRECT(\"a\" & (VLOOKUP(Rebalance!$D$60,$F$2:$G$48,2,FALSE)+ROW()-2)),\"\")","v":{"$error":"#N/A"}},{"$f":"IF(INDIRECT(\"c\" & (VLOOKUP(Rebalance!$D$61,$F$2:$G$48,2,FALSE)+ROW()-2))=Rebalance!$D$61,INDIRECT(\"a\" & (VLOOKUP(Rebalance!$D$61,$F$2:$G$48,2,FALSE)+ROW()-2)),\"\")","v":{"$error":"#N/A"}},{"$f":"IF(INDIRECT(\"c\" & (VLOOKUP(Rebalance!$D$62,$F$2:$G$48,2,FALSE)+ROW()-2))=Rebalance!$D$62,INDIRECT(\"a\" & (VLOOKUP(Rebalance!$D$62,$F$2:$G$48,2,FALSE)+ROW()-2)),\"\")","v":{"$error":"#N/A"}},{"$f":"IF(INDIRECT(\"c\" & (VLOOKUP(Rebalance!$D$63,$F$2:$G$48,2,FALSE)+ROW()-2))=Rebalance!$D$63,INDIRECT(\"a\" & (VLOOKUP(Rebalance!$D$63,$F$2:$G$48,2,FALSE)+ROW()-2)),\"\")","v":{"$error":"#N/A"}},{"$f":"IF(INDIRECT(\"c\" & (VLOOKUP(Rebalance!$D$64,$F$2:$G$48,2,FALSE)+ROW()-2))=Rebalance!$D$64,INDIRECT(\"a\" & (VLOOKUP(Rebalance!$D$64,$F$2:$G$48,2,FALSE)+ROW()-2)),\"\")","v":{"$error":"#N/A"}},{"$f":"IF(INDIRECT(\"c\" & (VLOOKUP(Rebalance!$D$65,$F$2:$G$48,2,FALSE)+ROW()-2))=Rebalance!$D$65,INDIRECT(\"a\" & (VLOOKUP(Rebalance!$D$65,$F$2:$G$48,2,FALSE)+ROW()-2)),\"\")","v":{"$error":"#N/A"}},{"$f":"IF(INDIRECT(\"c\" & (VLOOKUP(Rebalance!$D$66,$F$2:$G$48,2,FALSE)+ROW()-2))=Rebalance!$D$66,INDIRECT(\"a\" & (VLOOKUP(Rebalance!$D$66,$F$2:$G$48,2,FALSE)+ROW()-2)),\"\")","v":{"$error":"#N/A"}}]
["ABAX Balanced Prescient Fund A1","AABA1","Prescient Management Company Ltd",{"$f":"ROW()","v":442},null,null,{"$f":"VLOOKUP(F442,$C$2:$D$599,2,FALSE)","v":{"$error":"#N/A"}},{"$f":"IF(INDIRECT(\"c\" & (VLOOKUP(Rebalance!$D$26,$F$2:$G$48,2,FALSE)+ROW()-2))=Rebalance!$D$26,INDIRECT(\"a\" & (VLOOKUP(Rebalance!$D$26,$F$2:$G$48,2,FALSE)+ROW()-2)),\"\")","v":{"$error":"#N/A"}},{"$f":"IF(INDIRECT(\"c\" & (VLOOKUP(Rebalance!$D$27,$F$2:$G$48,2,FALSE)+ROW()-2))=Rebalance!$D$27,INDIRECT(\"a\" & (VLOOKUP(Rebalance!$D$27,$F$2:$G$48,2,FALSE)+ROW()-2)),\"\")","v":{"$error":"#N/A"}},{"$f":"IF(INDIRECT(\"c\" & (VLOOKUP(Rebalance!$D$28,$F$2:$G$48,2,FALSE)+ROW()-2))=Rebalance!$D$28,INDIRECT(\"a\" & (VLOOKUP(Rebalance!$D$28,$F$2:$G$48,2,FALSE)+ROW()-2)),\"\")","v":{"$error":"#N/A"}},{"$f":"IF(INDIRECT(\"c\" & (VLOOKUP(Rebalance!$D$29,$F$2:$G$48,2,FALSE)+ROW()-2))=Rebalance!$D$29,INDIRECT(\"a\" & (VLOOKUP(Rebalance!$D$29,$F$2:$G$48,2,FALSE)+ROW()-2)),\"\")","v":{"$error":"#N/A"}},{"$f":"IF(INDIRECT(\"c\" & (VLOOKUP(Rebalance!$D$30,$F$2:$G$48,2,FALSE)+ROW()-2))=Rebalance!$D$30,INDIRECT(\"a\" & (VLOOKUP(Rebalance!$D$30,$F$2:$G$48,2,FALSE)+ROW()-2)),\"\")","v":{"$error":"#N/A"}},{"$f":"IF(INDIRECT(\"c\" & (VLOOKUP(Rebalance!$D$31,$F$2:$G$48,2,FALSE)+ROW()-2))=Rebalance!$D$31,INDIRECT(\"a\" & (VLOOKUP(Rebalance!$D$31,$F$2:$G$48,2,FALSE)+ROW()-2)),\"\")","v":{"$error":"#N/A"}},{"$f":"IF(INDIRECT(\"c\" & (VLOOKUP(Rebalance!$D$32,$F$2:$G$48,2,FALSE)+ROW()-2))=Rebalance!$D$32,INDIRECT(\"a\" & (VLOOKUP(Rebalance!$D$32,$F$2:$G$48,2,FALSE)+ROW()-2)),\"\")","v":{"$error":"#N/A"}},{"$f":"IF(INDIRECT(\"c\" & (VLOOKUP(Rebalance!$D$33,$F$2:$G$48,2,FALSE)+ROW()-2))=Rebalance!$D$33,INDIRECT(\"a\" & (VLOOKUP(Rebalance!$D$33,$F$2:$G$48,2,FALSE)+ROW()-2)),\"\")","v":{"$error":"#N/A"}},{"$f":"IF(INDIRECT(\"c\" & (VLOOKUP(Rebalance!$D$34,$F$2:$G$48,2,FALSE)+ROW()-2))=Rebalance!$D$34,INDIRECT(\"a\" & (VLOOKUP(Rebalance!$D$34,$F$2:$G$48,2,FALSE)+ROW()-2)),\"\")","v":{"$error":"#N/A"}},{"$f":"IF(INDIRECT(\"c\" & (VLOOKUP(Rebalance!$D$35,$F$2:$G$48,2,FALSE)+ROW()-2))=Rebalance!$D$35,INDIRECT(\"a\" & (VLOOKUP(Rebalance!$D$35,$F$2:$G$48,2,FALSE)+ROW()-2)),\"\")","v":{"$error":"#N/A"}},{"$f":"IF(INDIRECT(\"c\" & (VLOOKUP(Rebalance!$D$36,$F$2:$G$48,2,FALSE)+ROW()-2))=Rebalance!$D$36,INDIRECT(\"a\" & (VLOOKUP(Rebalance!$D$36,$F$2:$G$48,2,FALSE)+ROW()-2)),\"\")","v":{"$error":"#N/A"}},{"$f":"IF(INDIRECT(\"c\" & (VLOOKUP(Rebalance!$D$37,$F$2:$G$48,2,FALSE)+ROW()-2))=Rebalance!$D$37,INDIRECT(\"a\" & (VLOOKUP(Rebalance!$D$37,$F$2:$G$48,2,FALSE)+ROW()-2)),\"\")","v":{"$error":"#N/A"}},{"$f":"IF(INDIRECT(\"c\" & (VLOOKUP(Rebalance!$D$38,$F$2:$G$48,2,FALSE)+ROW()-2))=Rebalance!$D$38,INDIRECT(\"a\" & (VLOOKUP(Rebalance!$D$38,$F$2:$G$48,2,FALSE)+ROW()-2)),\"\")","v":{"$error":"#N/A"}},{"$f":"IF(INDIRECT(\"c\" & (VLOOKUP(Rebalance!$D$39,$F$2:$G$48,2,FALSE)+ROW()-2))=Rebalance!$D$39,INDIRECT(\"a\" & (VLOOKUP(Rebalance!$D$39,$F$2:$G$48,2,FALSE)+ROW()-2)),\"\")","v":{"$error":"#N/A"}},{"$f":"IF(INDIRECT(\"c\" & (VLOOKUP(Rebalance!$D$40,$F$2:$G$48,2,FALSE)+ROW()-2))=Rebalance!$D$40,INDIRECT(\"a\" & (VLOOKUP(Rebalance!$D$40,$F$2:$G$48,2,FALSE)+ROW()-2)),\"\")","v":{"$error":"#N/A"}},{"$f":"IF(INDIRECT(\"c\" & (VLOOKUP(Rebalance!$D$52,$F$2:$G$48,2,FALSE)+ROW()-2))=Rebalance!$D$52,INDIRECT(\"a\" & (VLOOKUP(Rebalance!$D$52,$F$2:$G$48,2,FALSE)+ROW()-2)),\"\")","v":{"$error":"#N/A"}},{"$f":"IF(INDIRECT(\"c\" & (VLOOKUP(Rebalance!$D$53,$F$2:$G$48,2,FALSE)+ROW()-2))=Rebalance!$D$53,INDIRECT(\"a\" & (VLOOKUP(Rebalance!$D$53,$F$2:$G$48,2,FALSE)+ROW()-2)),\"\")","v":{"$error":"#N/A"}},{"$f":"IF(INDIRECT(\"c\" & (VLOOKUP(Rebalance!$D$54,$F$2:$G$48,2,FALSE)+ROW()-2))=Rebalance!$D$54,INDIRECT(\"a\" & (VLOOKUP(Rebalance!$D$54,$F$2:$G$48,2,FALSE)+ROW()-2)),\"\")","v":{"$error":"#N/A"}},{"$f":"IF(INDIRECT(\"c\" & (VLOOKUP(Rebalance!$D$55,$F$2:$G$48,2,FALSE)+ROW()-2))=Rebalance!$D$55,INDIRECT(\"a\" & (VLOOKUP(Rebalance!$D$55,$F$2:$G$48,2,FALSE)+ROW()-2)),\"\")","v":{"$error":"#N/A"}},{"$f":"IF(INDIRECT(\"c\" & (VLOOKUP(Rebalance!$D$56,$F$2:$G$48,2,FALSE)+ROW()-2))=Rebalance!$D$56,INDIRECT(\"a\" & (VLOOKUP(Rebalance!$D$56,$F$2:$G$48,2,FALSE)+ROW()-2)),\"\")","v":{"$error":"#N/A"}},{"$f":"IF(INDIRECT(\"c\" & (VLOOKUP(Rebalance!$D$57,$F$2:$G$48,2,FALSE)+ROW()-2))=Rebalance!$D$57,INDIRECT(\"a\" & (VLOOKUP(Rebalance!$D$57,$F$2:$G$48,2,FALSE)+ROW()-2)),\"\")","v":{"$error":"#N/A"}},{"$f":"IF(INDIRECT(\"c\" & (VLOOKUP(Rebalance!$D$58,$F$2:$G$48,2,FALSE)+ROW()-2))=Rebalance!$D$58,INDIRECT(\"a\" & (VLOOKUP(Rebalance!$D$58,$F$2:$G$48,2,FALSE)+ROW()-2)),\"\")","v":{"$error":"#N/A"}},{"$f":"IF(INDIRECT(\"c\" & (VLOOKUP(Rebalance!$D$59,$F$2:$G$48,2,FALSE)+ROW()-2))=Rebalance!$D$59,INDIRECT(\"a\" & (VLOOKUP(Rebalance!$D$59,$F$2:$G$48,2,FALSE)+ROW()-2)),\"\")","v":{"$error":"#N/A"}},{"$f":"IF(INDIRECT(\"c\" & (VLOOKUP(Rebalance!$D$60,$F$2:$G$48,2,FALSE)+ROW()-2))=Rebalance!$D$60,INDIRECT(\"a\" & (VLOOKUP(Rebalance!$D$60,$F$2:$G$48,2,FALSE)+ROW()-2)),\"\")","v":{"$error":"#N/A"}},{"$f":"IF(INDIRECT(\"c\" & (VLOOKUP(Rebalance!$D$61,$F$2:$G$48,2,FALSE)+ROW()-2))=Rebalance!$D$61,INDIRECT(\"a\" & (VLOOKUP(Rebalance!$D$61,$F$2:$G$48,2,FALSE)+ROW()-2)),\"\")","v":{"$error":"#N/A"}},{"$f":"IF(INDIRECT(\"c\" & (VLOOKUP(Rebalance!$D$62,$F$2:$G$48,2,FALSE)+ROW()-2))=Rebalance!$D$62,INDIRECT(\"a\" & (VLOOKUP(Rebalance!$D$62,$F$2:$G$48,2,FALSE)+ROW()-2)),\"\")","v":{"$error":"#N/A"}},{"$f":"IF(INDIRECT(\"c\" & (VLOOKUP(Rebalance!$D$63,$F$2:$G$48,2,FALSE)+ROW()-2))=Rebalance!$D$63,INDIRECT(\"a\" & (VLOOKUP(Rebalance!$D$63,$F$2:$G$48,2,FALSE)+ROW()-2)),\"\")","v":{"$error":"#N/A"}},{"$f":"IF(INDIRECT(\"c\" & (VLOOKUP(Rebalance!$D$64,$F$2:$G$48,2,FALSE)+ROW()-2))=Rebalance!$D$64,INDIRECT(\"a\" & (VLOOKUP(Rebalance!$D$64,$F$2:$G$48,2,FALSE)+ROW()-2)),\"\")","v":{"$error":"#N/A"}},{"$f":"IF(INDIRECT(\"c\" & (VLOOKUP(Rebalance!$D$65,$F$2:$G$48,2,FALSE)+ROW()-2))=Rebalance!$D$65,INDIRECT(\"a\" & (VLOOKUP(Rebalance!$D$65,$F$2:$G$48,2,FALSE)+ROW()-2)),\"\")","v":{"$error":"#N/A"}},{"$f":"IF(INDIRECT(\"c\" & (VLOOKUP(Rebalance!$D$66,$F$2:$G$48,2,FALSE)+ROW()-2))=Rebalance!$D$66,INDIRECT(\"a\" & (VLOOKUP(Rebalance!$D$66,$F$2:$G$48,2,FALSE)+ROW()-2)),\"\")","v":{"$error":"#N/A"}}]
["ABAX Equity Prescient Fund B1","ABEB1","Prescient Management Company Ltd",{"$f":"ROW()","v":443},null,null,{"$f":"VLOOKUP(F443,$C$2:$D$599,2,FALSE)","v":{"$error":"#N/A"}},{"$f":"IF(INDIRECT(\"c\" & (VLOOKUP(Rebalance!$D$26,$F$2:$G$48,2,FALSE)+ROW()-2))=Rebalance!$D$26,INDIRECT(\"a\" & (VLOOKUP(Rebalance!$D$26,$F$2:$G$48,2,FALSE)+ROW()-2)),\"\")","v":{"$error":"#N/A"}},{"$f":"IF(INDIRECT(\"c\" & (VLOOKUP(Rebalance!$D$27,$F$2:$G$48,2,FALSE)+ROW()-2))=Rebalance!$D$27,INDIRECT(\"a\" & (VLOOKUP(Rebalance!$D$27,$F$2:$G$48,2,FALSE)+ROW()-2)),\"\")","v":{"$error":"#N/A"}},{"$f":"IF(INDIRECT(\"c\" & (VLOOKUP(Rebalance!$D$28,$F$2:$G$48,2,FALSE)+ROW()-2))=Rebalance!$D$28,INDIRECT(\"a\" & (VLOOKUP(Rebalance!$D$28,$F$2:$G$48,2,FALSE)+ROW()-2)),\"\")","v":{"$error":"#N/A"}},{"$f":"IF(INDIRECT(\"c\" & (VLOOKUP(Rebalance!$D$29,$F$2:$G$48,2,FALSE)+ROW()-2))=Rebalance!$D$29,INDIRECT(\"a\" & (VLOOKUP(Rebalance!$D$29,$F$2:$G$48,2,FALSE)+ROW()-2)),\"\")","v":{"$error":"#N/A"}},{"$f":"IF(INDIRECT(\"c\" & (VLOOKUP(Rebalance!$D$30,$F$2:$G$48,2,FALSE)+ROW()-2))=Rebalance!$D$30,INDIRECT(\"a\" & (VLOOKUP(Rebalance!$D$30,$F$2:$G$48,2,FALSE)+ROW()-2)),\"\")","v":{"$error":"#N/A"}},{"$f":"IF(INDIRECT(\"c\" & (VLOOKUP(Rebalance!$D$31,$F$2:$G$48,2,FALSE)+ROW()-2))=Rebalance!$D$31,INDIRECT(\"a\" & (VLOOKUP(Rebalance!$D$31,$F$2:$G$48,2,FALSE)+ROW()-2)),\"\")","v":{"$error":"#N/A"}},{"$f":"IF(INDIRECT(\"c\" & (VLOOKUP(Rebalance!$D$32,$F$2:$G$48,2,FALSE)+ROW()-2))=Rebalance!$D$32,INDIRECT(\"a\" & (VLOOKUP(Rebalance!$D$32,$F$2:$G$48,2,FALSE)+ROW()-2)),\"\")","v":{"$error":"#N/A"}},{"$f":"IF(INDIRECT(\"c\" & (VLOOKUP(Rebalance!$D$33,$F$2:$G$48,2,FALSE)+ROW()-2))=Rebalance!$D$33,INDIRECT(\"a\" & (VLOOKUP(Rebalance!$D$33,$F$2:$G$48,2,FALSE)+ROW()-2)),\"\")","v":{"$error":"#N/A"}},{"$f":"IF(INDIRECT(\"c\" & (VLOOKUP(Rebalance!$D$34,$F$2:$G$48,2,FALSE)+ROW()-2))=Rebalance!$D$34,INDIRECT(\"a\" & (VLOOKUP(Rebalance!$D$34,$F$2:$G$48,2,FALSE)+ROW()-2)),\"\")","v":{"$error":"#N/A"}},{"$f":"IF(INDIRECT(\"c\" & (VLOOKUP(Rebalance!$D$35,$F$2:$G$48,2,FALSE)+ROW()-2))=Rebalance!$D$35,INDIRECT(\"a\" & (VLOOKUP(Rebalance!$D$35,$F$2:$G$48,2,FALSE)+ROW()-2)),\"\")","v":{"$error":"#N/A"}},{"$f":"IF(INDIRECT(\"c\" & (VLOOKUP(Rebalance!$D$36,$F$2:$G$48,2,FALSE)+ROW()-2))=Rebalance!$D$36,INDIRECT(\"a\" & (VLOOKUP(Rebalance!$D$36,$F$2:$G$48,2,FALSE)+ROW()-2)),\"\")","v":{"$error":"#N/A"}},{"$f":"IF(INDIRECT(\"c\" & (VLOOKUP(Rebalance!$D$37,$F$2:$G$48,2,FALSE)+ROW()-2))=Rebalance!$D$37,INDIRECT(\"a\" & (VLOOKUP(Rebalance!$D$37,$F$2:$G$48,2,FALSE)+ROW()-2)),\"\")","v":{"$error":"#N/A"}},{"$f":"IF(INDIRECT(\"c\" & (VLOOKUP(Rebalance!$D$38,$F$2:$G$48,2,FALSE)+ROW()-2))=Rebalance!$D$38,INDIRECT(\"a\" & (VLOOKUP(Rebalance!$D$38,$F$2:$G$48,2,FALSE)+ROW()-2)),\"\")","v":{"$error":"#N/A"}},{"$f":"IF(INDIRECT(\"c\" & (VLOOKUP(Rebalance!$D$39,$F$2:$G$48,2,FALSE)+ROW()-2))=Rebalance!$D$39,INDIRECT(\"a\" & (VLOOKUP(Rebalance!$D$39,$F$2:$G$48,2,FALSE)+ROW()-2)),\"\")","v":{"$error":"#N/A"}},{"$f":"IF(INDIRECT(\"c\" & (VLOOKUP(Rebalance!$D$40,$F$2:$G$48,2,FALSE)+ROW()-2))=Rebalance!$D$40,INDIRECT(\"a\" & (VLOOKUP(Rebalance!$D$40,$F$2:$G$48,2,FALSE)+ROW()-2)),\"\")","v":{"$error":"#N/A"}},{"$f":"IF(INDIRECT(\"c\" & (VLOOKUP(Rebalance!$D$52,$F$2:$G$48,2,FALSE)+ROW()-2))=Rebalance!$D$52,INDIRECT(\"a\" & (VLOOKUP(Rebalance!$D$52,$F$2:$G$48,2,FALSE)+ROW()-2)),\"\")","v":{"$error":"#N/A"}},{"$f":"IF(INDIRECT(\"c\" & (VLOOKUP(Rebalance!$D$53,$F$2:$G$48,2,FALSE)+ROW()-2))=Rebalance!$D$53,INDIRECT(\"a\" & (VLOOKUP(Rebalance!$D$53,$F$2:$G$48,2,FALSE)+ROW()-2)),\"\")","v":{"$error":"#N/A"}},{"$f":"IF(INDIRECT(\"c\" & (VLOOKUP(Rebalance!$D$54,$F$2:$G$48,2,FALSE)+ROW()-2))=Rebalance!$D$54,INDIRECT(\"a\" & (VLOOKUP(Rebalance!$D$54,$F$2:$G$48,2,FALSE)+ROW()-2)),\"\")","v":{"$error":"#N/A"}},{"$f":"IF(INDIRECT(\"c\" & (VLOOKUP(Rebalance!$D$55,$F$2:$G$48,2,FALSE)+ROW()-2))=Rebalance!$D$55,INDIRECT(\"a\" & (VLOOKUP(Rebalance!$D$55,$F$2:$G$48,2,FALSE)+ROW()-2)),\"\")","v":{"$error":"#N/A"}},{"$f":"IF(INDIRECT(\"c\" & (VLOOKUP(Rebalance!$D$56,$F$2:$G$48,2,FALSE)+ROW()-2))=Rebalance!$D$56,INDIRECT(\"a\" & (VLOOKUP(Rebalance!$D$56,$F$2:$G$48,2,FALSE)+ROW()-2)),\"\")","v":{"$error":"#N/A"}},{"$f":"IF(INDIRECT(\"c\" & (VLOOKUP(Rebalance!$D$57,$F$2:$G$48,2,FALSE)+ROW()-2))=Rebalance!$D$57,INDIRECT(\"a\" & (VLOOKUP(Rebalance!$D$57,$F$2:$G$48,2,FALSE)+ROW()-2)),\"\")","v":{"$error":"#N/A"}},{"$f":"IF(INDIRECT(\"c\" & (VLOOKUP(Rebalance!$D$58,$F$2:$G$48,2,FALSE)+ROW()-2))=Rebalance!$D$58,INDIRECT(\"a\" & (VLOOKUP(Rebalance!$D$58,$F$2:$G$48,2,FALSE)+ROW()-2)),\"\")","v":{"$error":"#N/A"}},{"$f":"IF(INDIRECT(\"c\" & (VLOOKUP(Rebalance!$D$59,$F$2:$G$48,2,FALSE)+ROW()-2))=Rebalance!$D$59,INDIRECT(\"a\" & (VLOOKUP(Rebalance!$D$59,$F$2:$G$48,2,FALSE)+ROW()-2)),\"\")","v":{"$error":"#N/A"}},{"$f":"IF(INDIRECT(\"c\" & (VLOOKUP(Rebalance!$D$60,$F$2:$G$48,2,FALSE)+ROW()-2))=Rebalance!$D$60,INDIRECT(\"a\" & (VLOOKUP(Rebalance!$D$60,$F$2:$G$48,2,FALSE)+ROW()-2)),\"\")","v":{"$error":"#N/A"}},{"$f":"IF(INDIRECT(\"c\" & (VLOOKUP(Rebalance!$D$61,$F$2:$G$48,2,FALSE)+ROW()-2))=Rebalance!$D$61,INDIRECT(\"a\" & (VLOOKUP(Rebalance!$D$61,$F$2:$G$48,2,FALSE)+ROW()-2)),\"\")","v":{"$error":"#N/A"}},{"$f":"IF(INDIRECT(\"c\" & (VLOOKUP(Rebalance!$D$62,$F$2:$G$48,2,FALSE)+ROW()-2))=Rebalance!$D$62,INDIRECT(\"a\" & (VLOOKUP(Rebalance!$D$62,$F$2:$G$48,2,FALSE)+ROW()-2)),\"\")","v":{"$error":"#N/A"}},{"$f":"IF(INDIRECT(\"c\" & (VLOOKUP(Rebalance!$D$63,$F$2:$G$48,2,FALSE)+ROW()-2))=Rebalance!$D$63,INDIRECT(\"a\" & (VLOOKUP(Rebalance!$D$63,$F$2:$G$48,2,FALSE)+ROW()-2)),\"\")","v":{"$error":"#N/A"}},{"$f":"IF(INDIRECT(\"c\" & (VLOOKUP(Rebalance!$D$64,$F$2:$G$48,2,FALSE)+ROW()-2))=Rebalance!$D$64,INDIRECT(\"a\" & (VLOOKUP(Rebalance!$D$64,$F$2:$G$48,2,FALSE)+ROW()-2)),\"\")","v":{"$error":"#N/A"}},{"$f":"IF(INDIRECT(\"c\" & (VLOOKUP(Rebalance!$D$65,$F$2:$G$48,2,FALSE)+ROW()-2))=Rebalance!$D$65,INDIRECT(\"a\" & (VLOOKUP(Rebalance!$D$65,$F$2:$G$48,2,FALSE)+ROW()-2)),\"\")","v":{"$error":"#N/A"}},{"$f":"IF(INDIRECT(\"c\" & (VLOOKUP(Rebalance!$D$66,$F$2:$G$48,2,FALSE)+ROW()-2))=Rebalance!$D$66,INDIRECT(\"a\" & (VLOOKUP(Rebalance!$D$66,$F$2:$G$48,2,FALSE)+ROW()-2)),\"\")","v":{"$error":"#N/A"}}]
["Aylett Balanced Prescient Fund A1","AYPA1","Prescient Management Company Ltd",{"$f":"ROW()","v":444},null,null,{"$f":"VLOOKUP(F444,$C$2:$D$599,2,FALSE)","v":{"$error":"#N/A"}},{"$f":"IF(INDIRECT(\"c\" & (VLOOKUP(Rebalance!$D$26,$F$2:$G$48,2,FALSE)+ROW()-2))=Rebalance!$D$26,INDIRECT(\"a\" & (VLOOKUP(Rebalance!$D$26,$F$2:$G$48,2,FALSE)+ROW()-2)),\"\")","v":{"$error":"#N/A"}},{"$f":"IF(INDIRECT(\"c\" & (VLOOKUP(Rebalance!$D$27,$F$2:$G$48,2,FALSE)+ROW()-2))=Rebalance!$D$27,INDIRECT(\"a\" & (VLOOKUP(Rebalance!$D$27,$F$2:$G$48,2,FALSE)+ROW()-2)),\"\")","v":{"$error":"#N/A"}},{"$f":"IF(INDIRECT(\"c\" & (VLOOKUP(Rebalance!$D$28,$F$2:$G$48,2,FALSE)+ROW()-2))=Rebalance!$D$28,INDIRECT(\"a\" & (VLOOKUP(Rebalance!$D$28,$F$2:$G$48,2,FALSE)+ROW()-2)),\"\")","v":{"$error":"#N/A"}},{"$f":"IF(INDIRECT(\"c\" & (VLOOKUP(Rebalance!$D$29,$F$2:$G$48,2,FALSE)+ROW()-2))=Rebalance!$D$29,INDIRECT(\"a\" & (VLOOKUP(Rebalance!$D$29,$F$2:$G$48,2,FALSE)+ROW()-2)),\"\")","v":{"$error":"#N/A"}},{"$f":"IF(INDIRECT(\"c\" & (VLOOKUP(Rebalance!$D$30,$F$2:$G$48,2,FALSE)+ROW()-2))=Rebalance!$D$30,INDIRECT(\"a\" & (VLOOKUP(Rebalance!$D$30,$F$2:$G$48,2,FALSE)+ROW()-2)),\"\")","v":{"$error":"#N/A"}},{"$f":"IF(INDIRECT(\"c\" & (VLOOKUP(Rebalance!$D$31,$F$2:$G$48,2,FALSE)+ROW()-2))=Rebalance!$D$31,INDIRECT(\"a\" & (VLOOKUP(Rebalance!$D$31,$F$2:$G$48,2,FALSE)+ROW()-2)),\"\")","v":{"$error":"#N/A"}},{"$f":"IF(INDIRECT(\"c\" & (VLOOKUP(Rebalance!$D$32,$F$2:$G$48,2,FALSE)+ROW()-2))=Rebalance!$D$32,INDIRECT(\"a\" & (VLOOKUP(Rebalance!$D$32,$F$2:$G$48,2,FALSE)+ROW()-2)),\"\")","v":{"$error":"#N/A"}},{"$f":"IF(INDIRECT(\"c\" & (VLOOKUP(Rebalance!$D$33,$F$2:$G$48,2,FALSE)+ROW()-2))=Rebalance!$D$33,INDIRECT(\"a\" & (VLOOKUP(Rebalance!$D$33,$F$2:$G$48,2,FALSE)+ROW()-2)),\"\")","v":{"$error":"#N/A"}},{"$f":"IF(INDIRECT(\"c\" & (VLOOKUP(Rebalance!$D$34,$F$2:$G$48,2,FALSE)+ROW()-2))=Rebalance!$D$34,INDIRECT(\"a\" & (VLOOKUP(Rebalance!$D$34,$F$2:$G$48,2,FALSE)+ROW()-2)),\"\")","v":{"$error":"#N/A"}},{"$f":"IF(INDIRECT(\"c\" & (VLOOKUP(Rebalance!$D$35,$F$2:$G$48,2,FALSE)+ROW()-2))=Rebalance!$D$35,INDIRECT(\"a\" & (VLOOKUP(Rebalance!$D$35,$F$2:$G$48,2,FALSE)+ROW()-2)),\"\")","v":{"$error":"#N/A"}},{"$f":"IF(INDIRECT(\"c\" & (VLOOKUP(Rebalance!$D$36,$F$2:$G$48,2,FALSE)+ROW()-2))=Rebalance!$D$36,INDIRECT(\"a\" & (VLOOKUP(Rebalance!$D$36,$F$2:$G$48,2,FALSE)+ROW()-2)),\"\")","v":{"$error":"#N/A"}},{"$f":"IF(INDIRECT(\"c\" & (VLOOKUP(Rebalance!$D$37,$F$2:$G$48,2,FALSE)+ROW()-2))=Rebalance!$D$37,INDIRECT(\"a\" & (VLOOKUP(Rebalance!$D$37,$F$2:$G$48,2,FALSE)+ROW()-2)),\"\")","v":{"$error":"#N/A"}},{"$f":"IF(INDIRECT(\"c\" & (VLOOKUP(Rebalance!$D$38,$F$2:$G$48,2,FALSE)+ROW()-2))=Rebalance!$D$38,INDIRECT(\"a\" & (VLOOKUP(Rebalance!$D$38,$F$2:$G$48,2,FALSE)+ROW()-2)),\"\")","v":{"$error":"#N/A"}},{"$f":"IF(INDIRECT(\"c\" & (VLOOKUP(Rebalance!$D$39,$F$2:$G$48,2,FALSE)+ROW()-2))=Rebalance!$D$39,INDIRECT(\"a\" & (VLOOKUP(Rebalance!$D$39,$F$2:$G$48,2,FALSE)+ROW()-2)),\"\")","v":{"$error":"#N/A"}},{"$f":"IF(INDIRECT(\"c\" & (VLOOKUP(Rebalance!$D$40,$F$2:$G$48,2,FALSE)+ROW()-2))=Rebalance!$D$40,INDIRECT(\"a\" & (VLOOKUP(Rebalance!$D$40,$F$2:$G$48,2,FALSE)+ROW()-2)),\"\")","v":{"$error":"#N/A"}},{"$f":"IF(INDIRECT(\"c\" & (VLOOKUP(Rebalance!$D$52,$F$2:$G$48,2,FALSE)+ROW()-2))=Rebalance!$D$52,INDIRECT(\"a\" & (VLOOKUP(Rebalance!$D$52,$F$2:$G$48,2,FALSE)+ROW()-2)),\"\")","v":{"$error":"#N/A"}},{"$f":"IF(INDIRECT(\"c\" & (VLOOKUP(Rebalance!$D$53,$F$2:$G$48,2,FALSE)+ROW()-2))=Rebalance!$D$53,INDIRECT(\"a\" & (VLOOKUP(Rebalance!$D$53,$F$2:$G$48,2,FALSE)+ROW()-2)),\"\")","v":{"$error":"#N/A"}},{"$f":"IF(INDIRECT(\"c\" & (VLOOKUP(Rebalance!$D$54,$F$2:$G$48,2,FALSE)+ROW()-2))=Rebalance!$D$54,INDIRECT(\"a\" & (VLOOKUP(Rebalance!$D$54,$F$2:$G$48,2,FALSE)+ROW()-2)),\"\")","v":{"$error":"#N/A"}},{"$f":"IF(INDIRECT(\"c\" & (VLOOKUP(Rebalance!$D$55,$F$2:$G$48,2,FALSE)+ROW()-2))=Rebalance!$D$55,INDIRECT(\"a\" & (VLOOKUP(Rebalance!$D$55,$F$2:$G$48,2,FALSE)+ROW()-2)),\"\")","v":{"$error":"#N/A"}},{"$f":"IF(INDIRECT(\"c\" & (VLOOKUP(Rebalance!$D$56,$F$2:$G$48,2,FALSE)+ROW()-2))=Rebalance!$D$56,INDIRECT(\"a\" & (VLOOKUP(Rebalance!$D$56,$F$2:$G$48,2,FALSE)+ROW()-2)),\"\")","v":{"$error":"#N/A"}},{"$f":"IF(INDIRECT(\"c\" & (VLOOKUP(Rebalance!$D$57,$F$2:$G$48,2,FALSE)+ROW()-2))=Rebalance!$D$57,INDIRECT(\"a\" & (VLOOKUP(Rebalance!$D$57,$F$2:$G$48,2,FALSE)+ROW()-2)),\"\")","v":{"$error":"#N/A"}},{"$f":"IF(INDIRECT(\"c\" & (VLOOKUP(Rebalance!$D$58,$F$2:$G$48,2,FALSE)+ROW()-2))=Rebalance!$D$58,INDIRECT(\"a\" & (VLOOKUP(Rebalance!$D$58,$F$2:$G$48,2,FALSE)+ROW()-2)),\"\")","v":{"$error":"#N/A"}},{"$f":"IF(INDIRECT(\"c\" & (VLOOKUP(Rebalance!$D$59,$F$2:$G$48,2,FALSE)+ROW()-2))=Rebalance!$D$59,INDIRECT(\"a\" & (VLOOKUP(Rebalance!$D$59,$F$2:$G$48,2,FALSE)+ROW()-2)),\"\")","v":{"$error":"#N/A"}},{"$f":"IF(INDIRECT(\"c\" & (VLOOKUP(Rebalance!$D$60,$F$2:$G$48,2,FALSE)+ROW()-2))=Rebalance!$D$60,INDIRECT(\"a\" & (VLOOKUP(Rebalance!$D$60,$F$2:$G$48,2,FALSE)+ROW()-2)),\"\")","v":{"$error":"#N/A"}},{"$f":"IF(INDIRECT(\"c\" & (VLOOKUP(Rebalance!$D$61,$F$2:$G$48,2,FALSE)+ROW()-2))=Rebalance!$D$61,INDIRECT(\"a\" & (VLOOKUP(Rebalance!$D$61,$F$2:$G$48,2,FALSE)+ROW()-2)),\"\")","v":{"$error":"#N/A"}},{"$f":"IF(INDIRECT(\"c\" & (VLOOKUP(Rebalance!$D$62,$F$2:$G$48,2,FALSE)+ROW()-2))=Rebalance!$D$62,INDIRECT(\"a\" & (VLOOKUP(Rebalance!$D$62,$F$2:$G$48,2,FALSE)+ROW()-2)),\"\")","v":{"$error":"#N/A"}},{"$f":"IF(INDIRECT(\"c\" & (VLOOKUP(Rebalance!$D$63,$F$2:$G$48,2,FALSE)+ROW()-2))=Rebalance!$D$63,INDIRECT(\"a\" & (VLOOKUP(Rebalance!$D$63,$F$2:$G$48,2,FALSE)+ROW()-2)),\"\")","v":{"$error":"#N/A"}},{"$f":"IF(INDIRECT(\"c\" & (VLOOKUP(Rebalance!$D$64,$F$2:$G$48,2,FALSE)+ROW()-2))=Rebalance!$D$64,INDIRECT(\"a\" & (VLOOKUP(Rebalance!$D$64,$F$2:$G$48,2,FALSE)+ROW()-2)),\"\")","v":{"$error":"#N/A"}},{"$f":"IF(INDIRECT(\"c\" & (VLOOKUP(Rebalance!$D$65,$F$2:$G$48,2,FALSE)+ROW()-2))=Rebalance!$D$65,INDIRECT(\"a\" & (VLOOKUP(Rebalance!$D$65,$F$2:$G$48,2,FALSE)+ROW()-2)),\"\")","v":{"$error":"#N/A"}},{"$f":"IF(INDIRECT(\"c\" & (VLOOKUP(Rebalance!$D$66,$F$2:$G$48,2,FALSE)+ROW()-2))=Rebalance!$D$66,INDIRECT(\"a\" & (VLOOKUP(Rebalance!$D$66,$F$2:$G$48,2,FALSE)+ROW()-2)),\"\")","v":{"$error":"#N/A"}}]
["Aylett Equity Prescient Fund A1","AYEF","Prescient Management Company Ltd",{"$f":"ROW()","v":445},null,null,{"$f":"VLOOKUP(F445,$C$2:$D$599,2,FALSE)","v":{"$error":"#N/A"}},{"$f":"IF(INDIRECT(\"c\" & (VLOOKUP(Rebalance!$D$26,$F$2:$G$48,2,FALSE)+ROW()-2))=Rebalance!$D$26,INDIRECT(\"a\" & (VLOOKUP(Rebalance!$D$26,$F$2:$G$48,2,FALSE)+ROW()-2)),\"\")","v":{"$error":"#N/A"}},{"$f":"IF(INDIRECT(\"c\" & (VLOOKUP(Rebalance!$D$27,$F$2:$G$48,2,FALSE)+ROW()-2))=Rebalance!$D$27,INDIRECT(\"a\" & (VLOOKUP(Rebalance!$D$27,$F$2:$G$48,2,FALSE)+ROW()-2)),\"\")","v":{"$error":"#N/A"}},{"$f":"IF(INDIRECT(\"c\" & (VLOOKUP(Rebalance!$D$28,$F$2:$G$48,2,FALSE)+ROW()-2))=Rebalance!$D$28,INDIRECT(\"a\" & (VLOOKUP(Rebalance!$D$28,$F$2:$G$48,2,FALSE)+ROW()-2)),\"\")","v":{"$error":"#N/A"}},{"$f":"IF(INDIRECT(\"c\" & (VLOOKUP(Rebalance!$D$29,$F$2:$G$48,2,FALSE)+ROW()-2))=Rebalance!$D$29,INDIRECT(\"a\" & (VLOOKUP(Rebalance!$D$29,$F$2:$G$48,2,FALSE)+ROW()-2)),\"\")","v":{"$error":"#N/A"}},{"$f":"IF(INDIRECT(\"c\" & (VLOOKUP(Rebalance!$D$30,$F$2:$G$48,2,FALSE)+ROW()-2))=Rebalance!$D$30,INDIRECT(\"a\" & (VLOOKUP(Rebalance!$D$30,$F$2:$G$48,2,FALSE)+ROW()-2)),\"\")","v":{"$error":"#N/A"}},{"$f":"IF(INDIRECT(\"c\" & (VLOOKUP(Rebalance!$D$31,$F$2:$G$48,2,FALSE)+ROW()-2))=Rebalance!$D$31,INDIRECT(\"a\" & (VLOOKUP(Rebalance!$D$31,$F$2:$G$48,2,FALSE)+ROW()-2)),\"\")","v":{"$error":"#N/A"}},{"$f":"IF(INDIRECT(\"c\" & (VLOOKUP(Rebalance!$D$32,$F$2:$G$48,2,FALSE)+ROW()-2))=Rebalance!$D$32,INDIRECT(\"a\" & (VLOOKUP(Rebalance!$D$32,$F$2:$G$48,2,FALSE)+ROW()-2)),\"\")","v":{"$error":"#N/A"}},{"$f":"IF(INDIRECT(\"c\" & (VLOOKUP(Rebalance!$D$33,$F$2:$G$48,2,FALSE)+ROW()-2))=Rebalance!$D$33,INDIRECT(\"a\" & (VLOOKUP(Rebalance!$D$33,$F$2:$G$48,2,FALSE)+ROW()-2)),\"\")","v":{"$error":"#N/A"}},{"$f":"IF(INDIRECT(\"c\" & (VLOOKUP(Rebalance!$D$34,$F$2:$G$48,2,FALSE)+ROW()-2))=Rebalance!$D$34,INDIRECT(\"a\" & (VLOOKUP(Rebalance!$D$34,$F$2:$G$48,2,FALSE)+ROW()-2)),\"\")","v":{"$error":"#N/A"}},{"$f":"IF(INDIRECT(\"c\" & (VLOOKUP(Rebalance!$D$35,$F$2:$G$48,2,FALSE)+ROW()-2))=Rebalance!$D$35,INDIRECT(\"a\" & (VLOOKUP(Rebalance!$D$35,$F$2:$G$48,2,FALSE)+ROW()-2)),\"\")","v":{"$error":"#N/A"}},{"$f":"IF(INDIRECT(\"c\" & (VLOOKUP(Rebalance!$D$36,$F$2:$G$48,2,FALSE)+ROW()-2))=Rebalance!$D$36,INDIRECT(\"a\" & (VLOOKUP(Rebalance!$D$36,$F$2:$G$48,2,FALSE)+ROW()-2)),\"\")","v":{"$error":"#N/A"}},{"$f":"IF(INDIRECT(\"c\" & (VLOOKUP(Rebalance!$D$37,$F$2:$G$48,2,FALSE)+ROW()-2))=Rebalance!$D$37,INDIRECT(\"a\" & (VLOOKUP(Rebalance!$D$37,$F$2:$G$48,2,FALSE)+ROW()-2)),\"\")","v":{"$error":"#N/A"}},{"$f":"IF(INDIRECT(\"c\" & (VLOOKUP(Rebalance!$D$38,$F$2:$G$48,2,FALSE)+ROW()-2))=Rebalance!$D$38,INDIRECT(\"a\" & (VLOOKUP(Rebalance!$D$38,$F$2:$G$48,2,FALSE)+ROW()-2)),\"\")","v":{"$error":"#N/A"}},{"$f":"IF(INDIRECT(\"c\" & (VLOOKUP(Rebalance!$D$39,$F$2:$G$48,2,FALSE)+ROW()-2))=Rebalance!$D$39,INDIRECT(\"a\" & (VLOOKUP(Rebalance!$D$39,$F$2:$G$48,2,FALSE)+ROW()-2)),\"\")","v":{"$error":"#N/A"}},{"$f":"IF(INDIRECT(\"c\" & (VLOOKUP(Rebalance!$D$40,$F$2:$G$48,2,FALSE)+ROW()-2))=Rebalance!$D$40,INDIRECT(\"a\" & (VLOOKUP(Rebalance!$D$40,$F$2:$G$48,2,FALSE)+ROW()-2)),\"\")","v":{"$error":"#N/A"}},{"$f":"IF(INDIRECT(\"c\" & (VLOOKUP(Rebalance!$D$52,$F$2:$G$48,2,FALSE)+ROW()-2))=Rebalance!$D$52,INDIRECT(\"a\" & (VLOOKUP(Rebalance!$D$52,$F$2:$G$48,2,FALSE)+ROW()-2)),\"\")","v":{"$error":"#N/A"}},{"$f":"IF(INDIRECT(\"c\" & (VLOOKUP(Rebalance!$D$53,$F$2:$G$48,2,FALSE)+ROW()-2))=Rebalance!$D$53,INDIRECT(\"a\" & (VLOOKUP(Rebalance!$D$53,$F$2:$G$48,2,FALSE)+ROW()-2)),\"\")","v":{"$error":"#N/A"}},{"$f":"IF(INDIRECT(\"c\" & (VLOOKUP(Rebalance!$D$54,$F$2:$G$48,2,FALSE)+ROW()-2))=Rebalance!$D$54,INDIRECT(\"a\" & (VLOOKUP(Rebalance!$D$54,$F$2:$G$48,2,FALSE)+ROW()-2)),\"\")","v":{"$error":"#N/A"}},{"$f":"IF(INDIRECT(\"c\" & (VLOOKUP(Rebalance!$D$55,$F$2:$G$48,2,FALSE)+ROW()-2))=Rebalance!$D$55,INDIRECT(\"a\" & (VLOOKUP(Rebalance!$D$55,$F$2:$G$48,2,FALSE)+ROW()-2)),\"\")","v":{"$error":"#N/A"}},{"$f":"IF(INDIRECT(\"c\" & (VLOOKUP(Rebalance!$D$56,$F$2:$G$48,2,FALSE)+ROW()-2))=Rebalance!$D$56,INDIRECT(\"a\" & (VLOOKUP(Rebalance!$D$56,$F$2:$G$48,2,FALSE)+ROW()-2)),\"\")","v":{"$error":"#N/A"}},{"$f":"IF(INDIRECT(\"c\" & (VLOOKUP(Rebalance!$D$57,$F$2:$G$48,2,FALSE)+ROW()-2))=Rebalance!$D$57,INDIRECT(\"a\" & (VLOOKUP(Rebalance!$D$57,$F$2:$G$48,2,FALSE)+ROW()-2)),\"\")","v":{"$error":"#N/A"}},{"$f":"IF(INDIRECT(\"c\" & (VLOOKUP(Rebalance!$D$58,$F$2:$G$48,2,FALSE)+ROW()-2))=Rebalance!$D$58,INDIRECT(\"a\" & (VLOOKUP(Rebalance!$D$58,$F$2:$G$48,2,FALSE)+ROW()-2)),\"\")","v":{"$error":"#N/A"}},{"$f":"IF(INDIRECT(\"c\" & (VLOOKUP(Rebalance!$D$59,$F$2:$G$48,2,FALSE)+ROW()-2))=Rebalance!$D$59,INDIRECT(\"a\" & (VLOOKUP(Rebalance!$D$59,$F$2:$G$48,2,FALSE)+ROW()-2)),\"\")","v":{"$error":"#N/A"}},{"$f":"IF(INDIRECT(\"c\" & (VLOOKUP(Rebalance!$D$60,$F$2:$G$48,2,FALSE)+ROW()-2))=Rebalance!$D$60,INDIRECT(\"a\" & (VLOOKUP(Rebalance!$D$60,$F$2:$G$48,2,FALSE)+ROW()-2)),\"\")","v":{"$error":"#N/A"}},{"$f":"IF(INDIRECT(\"c\" & (VLOOKUP(Rebalance!$D$61,$F$2:$G$48,2,FALSE)+ROW()-2))=Rebalance!$D$61,INDIRECT(\"a\" & (VLOOKUP(Rebalance!$D$61,$F$2:$G$48,2,FALSE)+ROW()-2)),\"\")","v":{"$error":"#N/A"}},{"$f":"IF(INDIRECT(\"c\" & (VLOOKUP(Rebalance!$D$62,$F$2:$G$48,2,FALSE)+ROW()-2))=Rebalance!$D$62,INDIRECT(\"a\" & (VLOOKUP(Rebalance!$D$62,$F$2:$G$48,2,FALSE)+ROW()-2)),\"\")","v":{"$error":"#N/A"}},{"$f":"IF(INDIRECT(\"c\" & (VLOOKUP(Rebalance!$D$63,$F$2:$G$48,2,FALSE)+ROW()-2))=Rebalance!$D$63,INDIRECT(\"a\" & (VLOOKUP(Rebalance!$D$63,$F$2:$G$48,2,FALSE)+ROW()-2)),\"\")","v":{"$error":"#N/A"}},{"$f":"IF(INDIRECT(\"c\" & (VLOOKUP(Rebalance!$D$64,$F$2:$G$48,2,FALSE)+ROW()-2))=Rebalance!$D$64,INDIRECT(\"a\" & (VLOOKUP(Rebalance!$D$64,$F$2:$G$48,2,FALSE)+ROW()-2)),\"\")","v":{"$error":"#N/A"}},{"$f":"IF(INDIRECT(\"c\" & (VLOOKUP(Rebalance!$D$65,$F$2:$G$48,2,FALSE)+ROW()-2))=Rebalance!$D$65,INDIRECT(\"a\" & (VLOOKUP(Rebalance!$D$65,$F$2:$G$48,2,FALSE)+ROW()-2)),\"\")","v":{"$error":"#N/A"}},{"$f":"IF(INDIRECT(\"c\" & (VLOOKUP(Rebalance!$D$66,$F$2:$G$48,2,FALSE)+ROW()-2))=Rebalance!$D$66,INDIRECT(\"a\" & (VLOOKUP(Rebalance!$D$66,$F$2:$G$48,2,FALSE)+ROW()-2)),\"\")","v":{"$error":"#N/A"}}]
["ClucasGray Equilibrium Prescient Fund B2","CGPB2","Prescient Management Company Ltd",{"$f":"ROW()","v":446},null,null,{"$f":"VLOOKUP(F446,$C$2:$D$599,2,FALSE)","v":{"$error":"#N/A"}},{"$f":"IF(INDIRECT(\"c\" & (VLOOKUP(Rebalance!$D$26,$F$2:$G$48,2,FALSE)+ROW()-2))=Rebalance!$D$26,INDIRECT(\"a\" & (VLOOKUP(Rebalance!$D$26,$F$2:$G$48,2,FALSE)+ROW()-2)),\"\")","v":{"$error":"#N/A"}},{"$f":"IF(INDIRECT(\"c\" & (VLOOKUP(Rebalance!$D$27,$F$2:$G$48,2,FALSE)+ROW()-2))=Rebalance!$D$27,INDIRECT(\"a\" & (VLOOKUP(Rebalance!$D$27,$F$2:$G$48,2,FALSE)+ROW()-2)),\"\")","v":{"$error":"#N/A"}},{"$f":"IF(INDIRECT(\"c\" & (VLOOKUP(Rebalance!$D$28,$F$2:$G$48,2,FALSE)+ROW()-2))=Rebalance!$D$28,INDIRECT(\"a\" & (VLOOKUP(Rebalance!$D$28,$F$2:$G$48,2,FALSE)+ROW()-2)),\"\")","v":{"$error":"#N/A"}},{"$f":"IF(INDIRECT(\"c\" & (VLOOKUP(Rebalance!$D$29,$F$2:$G$48,2,FALSE)+ROW()-2))=Rebalance!$D$29,INDIRECT(\"a\" & (VLOOKUP(Rebalance!$D$29,$F$2:$G$48,2,FALSE)+ROW()-2)),\"\")","v":{"$error":"#N/A"}},{"$f":"IF(INDIRECT(\"c\" & (VLOOKUP(Rebalance!$D$30,$F$2:$G$48,2,FALSE)+ROW()-2))=Rebalance!$D$30,INDIRECT(\"a\" & (VLOOKUP(Rebalance!$D$30,$F$2:$G$48,2,FALSE)+ROW()-2)),\"\")","v":{"$error":"#N/A"}},{"$f":"IF(INDIRECT(\"c\" & (VLOOKUP(Rebalance!$D$31,$F$2:$G$48,2,FALSE)+ROW()-2))=Rebalance!$D$31,INDIRECT(\"a\" & (VLOOKUP(Rebalance!$D$31,$F$2:$G$48,2,FALSE)+ROW()-2)),\"\")","v":{"$error":"#N/A"}},{"$f":"IF(INDIRECT(\"c\" & (VLOOKUP(Rebalance!$D$32,$F$2:$G$48,2,FALSE)+ROW()-2))=Rebalance!$D$32,INDIRECT(\"a\" & (VLOOKUP(Rebalance!$D$32,$F$2:$G$48,2,FALSE)+ROW()-2)),\"\")","v":{"$error":"#N/A"}},{"$f":"IF(INDIRECT(\"c\" & (VLOOKUP(Rebalance!$D$33,$F$2:$G$48,2,FALSE)+ROW()-2))=Rebalance!$D$33,INDIRECT(\"a\" & (VLOOKUP(Rebalance!$D$33,$F$2:$G$48,2,FALSE)+ROW()-2)),\"\")","v":{"$error":"#N/A"}},{"$f":"IF(INDIRECT(\"c\" & (VLOOKUP(Rebalance!$D$34,$F$2:$G$48,2,FALSE)+ROW()-2))=Rebalance!$D$34,INDIRECT(\"a\" & (VLOOKUP(Rebalance!$D$34,$F$2:$G$48,2,FALSE)+ROW()-2)),\"\")","v":{"$error":"#N/A"}},{"$f":"IF(INDIRECT(\"c\" & (VLOOKUP(Rebalance!$D$35,$F$2:$G$48,2,FALSE)+ROW()-2))=Rebalance!$D$35,INDIRECT(\"a\" & (VLOOKUP(Rebalance!$D$35,$F$2:$G$48,2,FALSE)+ROW()-2)),\"\")","v":{"$error":"#N/A"}},{"$f":"IF(INDIRECT(\"c\" & (VLOOKUP(Rebalance!$D$36,$F$2:$G$48,2,FALSE)+ROW()-2))=Rebalance!$D$36,INDIRECT(\"a\" & (VLOOKUP(Rebalance!$D$36,$F$2:$G$48,2,FALSE)+ROW()-2)),\"\")","v":{"$error":"#N/A"}},{"$f":"IF(INDIRECT(\"c\" & (VLOOKUP(Rebalance!$D$37,$F$2:$G$48,2,FALSE)+ROW()-2))=Rebalance!$D$37,INDIRECT(\"a\" & (VLOOKUP(Rebalance!$D$37,$F$2:$G$48,2,FALSE)+ROW()-2)),\"\")","v":{"$error":"#N/A"}},{"$f":"IF(INDIRECT(\"c\" & (VLOOKUP(Rebalance!$D$38,$F$2:$G$48,2,FALSE)+ROW()-2))=Rebalance!$D$38,INDIRECT(\"a\" & (VLOOKUP(Rebalance!$D$38,$F$2:$G$48,2,FALSE)+ROW()-2)),\"\")","v":{"$error":"#N/A"}},{"$f":"IF(INDIRECT(\"c\" & (VLOOKUP(Rebalance!$D$39,$F$2:$G$48,2,FALSE)+ROW()-2))=Rebalance!$D$39,INDIRECT(\"a\" & (VLOOKUP(Rebalance!$D$39,$F$2:$G$48,2,FALSE)+ROW()-2)),\"\")","v":{"$error":"#N/A"}},{"$f":"IF(INDIRECT(\"c\" & (VLOOKUP(Rebalance!$D$40,$F$2:$G$48,2,FALSE)+ROW()-2))=Rebalance!$D$40,INDIRECT(\"a\" & (VLOOKUP(Rebalance!$D$40,$F$2:$G$48,2,FALSE)+ROW()-2)),\"\")","v":{"$error":"#N/A"}},{"$f":"IF(INDIRECT(\"c\" & (VLOOKUP(Rebalance!$D$52,$F$2:$G$48,2,FALSE)+ROW()-2))=Rebalance!$D$52,INDIRECT(\"a\" & (VLOOKUP(Rebalance!$D$52,$F$2:$G$48,2,FALSE)+ROW()-2)),\"\")","v":{"$error":"#N/A"}},{"$f":"IF(INDIRECT(\"c\" & (VLOOKUP(Rebalance!$D$53,$F$2:$G$48,2,FALSE)+ROW()-2))=Rebalance!$D$53,INDIRECT(\"a\" & (VLOOKUP(Rebalance!$D$53,$F$2:$G$48,2,FALSE)+ROW()-2)),\"\")","v":{"$error":"#N/A"}},{"$f":"IF(INDIRECT(\"c\" & (VLOOKUP(Rebalance!$D$54,$F$2:$G$48,2,FALSE)+ROW()-2))=Rebalance!$D$54,INDIRECT(\"a\" & (VLOOKUP(Rebalance!$D$54,$F$2:$G$48,2,FALSE)+ROW()-2)),\"\")","v":{"$error":"#N/A"}},{"$f":"IF(INDIRECT(\"c\" & (VLOOKUP(Rebalance!$D$55,$F$2:$G$48,2,FALSE)+ROW()-2))=Rebalance!$D$55,INDIRECT(\"a\" & (VLOOKUP(Rebalance!$D$55,$F$2:$G$48,2,FALSE)+ROW()-2)),\"\")","v":{"$error":"#N/A"}},{"$f":"IF(INDIRECT(\"c\" & (VLOOKUP(Rebalance!$D$56,$F$2:$G$48,2,FALSE)+ROW()-2))=Rebalance!$D$56,INDIRECT(\"a\" & (VLOOKUP(Rebalance!$D$56,$F$2:$G$48,2,FALSE)+ROW()-2)),\"\")","v":{"$error":"#N/A"}},{"$f":"IF(INDIRECT(\"c\" & (VLOOKUP(Rebalance!$D$57,$F$2:$G$48,2,FALSE)+ROW()-2))=Rebalance!$D$57,INDIRECT(\"a\" & (VLOOKUP(Rebalance!$D$57,$F$2:$G$48,2,FALSE)+ROW()-2)),\"\")","v":{"$error":"#N/A"}},{"$f":"IF(INDIRECT(\"c\" & (VLOOKUP(Rebalance!$D$58,$F$2:$G$48,2,FALSE)+ROW()-2))=Rebalance!$D$58,INDIRECT(\"a\" & (VLOOKUP(Rebalance!$D$58,$F$2:$G$48,2,FALSE)+ROW()-2)),\"\")","v":{"$error":"#N/A"}},{"$f":"IF(INDIRECT(\"c\" & (VLOOKUP(Rebalance!$D$59,$F$2:$G$48,2,FALSE)+ROW()-2))=Rebalance!$D$59,INDIRECT(\"a\" & (VLOOKUP(Rebalance!$D$59,$F$2:$G$48,2,FALSE)+ROW()-2)),\"\")","v":{"$error":"#N/A"}},{"$f":"IF(INDIRECT(\"c\" & (VLOOKUP(Rebalance!$D$60,$F$2:$G$48,2,FALSE)+ROW()-2))=Rebalance!$D$60,INDIRECT(\"a\" & (VLOOKUP(Rebalance!$D$60,$F$2:$G$48,2,FALSE)+ROW()-2)),\"\")","v":{"$error":"#N/A"}},{"$f":"IF(INDIRECT(\"c\" & (VLOOKUP(Rebalance!$D$61,$F$2:$G$48,2,FALSE)+ROW()-2))=Rebalance!$D$61,INDIRECT(\"a\" & (VLOOKUP(Rebalance!$D$61,$F$2:$G$48,2,FALSE)+ROW()-2)),\"\")","v":{"$error":"#N/A"}},{"$f":"IF(INDIRECT(\"c\" & (VLOOKUP(Rebalance!$D$62,$F$2:$G$48,2,FALSE)+ROW()-2))=Rebalance!$D$62,INDIRECT(\"a\" & (VLOOKUP(Rebalance!$D$62,$F$2:$G$48,2,FALSE)+ROW()-2)),\"\")","v":{"$error":"#N/A"}},{"$f":"IF(INDIRECT(\"c\" & (VLOOKUP(Rebalance!$D$63,$F$2:$G$48,2,FALSE)+ROW()-2))=Rebalance!$D$63,INDIRECT(\"a\" & (VLOOKUP(Rebalance!$D$63,$F$2:$G$48,2,FALSE)+ROW()-2)),\"\")","v":{"$error":"#N/A"}},{"$f":"IF(INDIRECT(\"c\" & (VLOOKUP(Rebalance!$D$64,$F$2:$G$48,2,FALSE)+ROW()-2))=Rebalance!$D$64,INDIRECT(\"a\" & (VLOOKUP(Rebalance!$D$64,$F$2:$G$48,2,FALSE)+ROW()-2)),\"\")","v":{"$error":"#N/A"}},{"$f":"IF(INDIRECT(\"c\" & (VLOOKUP(Rebalance!$D$65,$F$2:$G$48,2,FALSE)+ROW()-2))=Rebalance!$D$65,INDIRECT(\"a\" & (VLOOKUP(Rebalance!$D$65,$F$2:$G$48,2,FALSE)+ROW()-2)),\"\")","v":{"$error":"#N/A"}},{"$f":"IF(INDIRECT(\"c\" & (VLOOKUP(Rebalance!$D$66,$F$2:$G$48,2,FALSE)+ROW()-2))=Rebalance!$D$66,INDIRECT(\"a\" & (VLOOKUP(Rebalance!$D$66,$F$2:$G$48,2,FALSE)+ROW()-2)),\"\")","v":{"$error":"#N/A"}}]
["ClucasGray Equity Prescient Fund","CEFA1","Prescient Management Company Ltd",{"$f":"ROW()","v":447},null,null,{"$f":"VLOOKUP(F447,$C$2:$D$599,2,FALSE)","v":{"$error":"#N/A"}},{"$f":"IF(INDIRECT(\"c\" & (VLOOKUP(Rebalance!$D$26,$F$2:$G$48,2,FALSE)+ROW()-2))=Rebalance!$D$26,INDIRECT(\"a\" & (VLOOKUP(Rebalance!$D$26,$F$2:$G$48,2,FALSE)+ROW()-2)),\"\")","v":{"$error":"#N/A"}},{"$f":"IF(INDIRECT(\"c\" & (VLOOKUP(Rebalance!$D$27,$F$2:$G$48,2,FALSE)+ROW()-2))=Rebalance!$D$27,INDIRECT(\"a\" & (VLOOKUP(Rebalance!$D$27,$F$2:$G$48,2,FALSE)+ROW()-2)),\"\")","v":{"$error":"#N/A"}},{"$f":"IF(INDIRECT(\"c\" & (VLOOKUP(Rebalance!$D$28,$F$2:$G$48,2,FALSE)+ROW()-2))=Rebalance!$D$28,INDIRECT(\"a\" & (VLOOKUP(Rebalance!$D$28,$F$2:$G$48,2,FALSE)+ROW()-2)),\"\")","v":{"$error":"#N/A"}},{"$f":"IF(INDIRECT(\"c\" & (VLOOKUP(Rebalance!$D$29,$F$2:$G$48,2,FALSE)+ROW()-2))=Rebalance!$D$29,INDIRECT(\"a\" & (VLOOKUP(Rebalance!$D$29,$F$2:$G$48,2,FALSE)+ROW()-2)),\"\")","v":{"$error":"#N/A"}},{"$f":"IF(INDIRECT(\"c\" & (VLOOKUP(Rebalance!$D$30,$F$2:$G$48,2,FALSE)+ROW()-2))=Rebalance!$D$30,INDIRECT(\"a\" & (VLOOKUP(Rebalance!$D$30,$F$2:$G$48,2,FALSE)+ROW()-2)),\"\")","v":{"$error":"#N/A"}},{"$f":"IF(INDIRECT(\"c\" & (VLOOKUP(Rebalance!$D$31,$F$2:$G$48,2,FALSE)+ROW()-2))=Rebalance!$D$31,INDIRECT(\"a\" & (VLOOKUP(Rebalance!$D$31,$F$2:$G$48,2,FALSE)+ROW()-2)),\"\")","v":{"$error":"#N/A"}},{"$f":"IF(INDIRECT(\"c\" & (VLOOKUP(Rebalance!$D$32,$F$2:$G$48,2,FALSE)+ROW()-2))=Rebalance!$D$32,INDIRECT(\"a\" & (VLOOKUP(Rebalance!$D$32,$F$2:$G$48,2,FALSE)+ROW()-2)),\"\")","v":{"$error":"#N/A"}},{"$f":"IF(INDIRECT(\"c\" & (VLOOKUP(Rebalance!$D$33,$F$2:$G$48,2,FALSE)+ROW()-2))=Rebalance!$D$33,INDIRECT(\"a\" & (VLOOKUP(Rebalance!$D$33,$F$2:$G$48,2,FALSE)+ROW()-2)),\"\")","v":{"$error":"#N/A"}},{"$f":"IF(INDIRECT(\"c\" & (VLOOKUP(Rebalance!$D$34,$F$2:$G$48,2,FALSE)+ROW()-2))=Rebalance!$D$34,INDIRECT(\"a\" & (VLOOKUP(Rebalance!$D$34,$F$2:$G$48,2,FALSE)+ROW()-2)),\"\")","v":{"$error":"#N/A"}},{"$f":"IF(INDIRECT(\"c\" & (VLOOKUP(Rebalance!$D$35,$F$2:$G$48,2,FALSE)+ROW()-2))=Rebalance!$D$35,INDIRECT(\"a\" & (VLOOKUP(Rebalance!$D$35,$F$2:$G$48,2,FALSE)+ROW()-2)),\"\")","v":{"$error":"#N/A"}},{"$f":"IF(INDIRECT(\"c\" & (VLOOKUP(Rebalance!$D$36,$F$2:$G$48,2,FALSE)+ROW()-2))=Rebalance!$D$36,INDIRECT(\"a\" & (VLOOKUP(Rebalance!$D$36,$F$2:$G$48,2,FALSE)+ROW()-2)),\"\")","v":{"$error":"#N/A"}},{"$f":"IF(INDIRECT(\"c\" & (VLOOKUP(Rebalance!$D$37,$F$2:$G$48,2,FALSE)+ROW()-2))=Rebalance!$D$37,INDIRECT(\"a\" & (VLOOKUP(Rebalance!$D$37,$F$2:$G$48,2,FALSE)+ROW()-2)),\"\")","v":{"$error":"#N/A"}},{"$f":"IF(INDIRECT(\"c\" & (VLOOKUP(Rebalance!$D$38,$F$2:$G$48,2,FALSE)+ROW()-2))=Rebalance!$D$38,INDIRECT(\"a\" & (VLOOKUP(Rebalance!$D$38,$F$2:$G$48,2,FALSE)+ROW()-2)),\"\")","v":{"$error":"#N/A"}},{"$f":"IF(INDIRECT(\"c\" & (VLOOKUP(Rebalance!$D$39,$F$2:$G$48,2,FALSE)+ROW()-2))=Rebalance!$D$39,INDIRECT(\"a\" & (VLOOKUP(Rebalance!$D$39,$F$2:$G$48,2,FALSE)+ROW()-2)),\"\")","v":{"$error":"#N/A"}},{"$f":"IF(INDIRECT(\"c\" & (VLOOKUP(Rebalance!$D$40,$F$2:$G$48,2,FALSE)+ROW()-2))=Rebalance!$D$40,INDIRECT(\"a\" & (VLOOKUP(Rebalance!$D$40,$F$2:$G$48,2,FALSE)+ROW()-2)),\"\")","v":{"$error":"#N/A"}},{"$f":"IF(INDIRECT(\"c\" & (VLOOKUP(Rebalance!$D$52,$F$2:$G$48,2,FALSE)+ROW()-2))=Rebalance!$D$52,INDIRECT(\"a\" & (VLOOKUP(Rebalance!$D$52,$F$2:$G$48,2,FALSE)+ROW()-2)),\"\")","v":{"$error":"#N/A"}},{"$f":"IF(INDIRECT(\"c\" & (VLOOKUP(Rebalance!$D$53,$F$2:$G$48,2,FALSE)+ROW()-2))=Rebalance!$D$53,INDIRECT(\"a\" & (VLOOKUP(Rebalance!$D$53,$F$2:$G$48,2,FALSE)+ROW()-2)),\"\")","v":{"$error":"#N/A"}},{"$f":"IF(INDIRECT(\"c\" & (VLOOKUP(Rebalance!$D$54,$F$2:$G$48,2,FALSE)+ROW()-2))=Rebalance!$D$54,INDIRECT(\"a\" & (VLOOKUP(Rebalance!$D$54,$F$2:$G$48,2,FALSE)+ROW()-2)),\"\")","v":{"$error":"#N/A"}},{"$f":"IF(INDIRECT(\"c\" & (VLOOKUP(Rebalance!$D$55,$F$2:$G$48,2,FALSE)+ROW()-2))=Rebalance!$D$55,INDIRECT(\"a\" & (VLOOKUP(Rebalance!$D$55,$F$2:$G$48,2,FALSE)+ROW()-2)),\"\")","v":{"$error":"#N/A"}},{"$f":"IF(INDIRECT(\"c\" & (VLOOKUP(Rebalance!$D$56,$F$2:$G$48,2,FALSE)+ROW()-2))=Rebalance!$D$56,INDIRECT(\"a\" & (VLOOKUP(Rebalance!$D$56,$F$2:$G$48,2,FALSE)+ROW()-2)),\"\")","v":{"$error":"#N/A"}},{"$f":"IF(INDIRECT(\"c\" & (VLOOKUP(Rebalance!$D$57,$F$2:$G$48,2,FALSE)+ROW()-2))=Rebalance!$D$57,INDIRECT(\"a\" & (VLOOKUP(Rebalance!$D$57,$F$2:$G$48,2,FALSE)+ROW()-2)),\"\")","v":{"$error":"#N/A"}},{"$f":"IF(INDIRECT(\"c\" & (VLOOKUP(Rebalance!$D$58,$F$2:$G$48,2,FALSE)+ROW()-2))=Rebalance!$D$58,INDIRECT(\"a\" & (VLOOKUP(Rebalance!$D$58,$F$2:$G$48,2,FALSE)+ROW()-2)),\"\")","v":{"$error":"#N/A"}},{"$f":"IF(INDIRECT(\"c\" & (VLOOKUP(Rebalance!$D$59,$F$2:$G$48,2,FALSE)+ROW()-2))=Rebalance!$D$59,INDIRECT(\"a\" & (VLOOKUP(Rebalance!$D$59,$F$2:$G$48,2,FALSE)+ROW()-2)),\"\")","v":{"$error":"#N/A"}},{"$f":"IF(INDIRECT(\"c\" & (VLOOKUP(Rebalance!$D$60,$F$2:$G$48,2,FALSE)+ROW()-2))=Rebalance!$D$60,INDIRECT(\"a\" & (VLOOKUP(Rebalance!$D$60,$F$2:$G$48,2,FALSE)+ROW()-2)),\"\")","v":{"$error":"#N/A"}},{"$f":"IF(INDIRECT(\"c\" & (VLOOKUP(Rebalance!$D$61,$F$2:$G$48,2,FALSE)+ROW()-2))=Rebalance!$D$61,INDIRECT(\"a\" & (VLOOKUP(Rebalance!$D$61,$F$2:$G$48,2,FALSE)+ROW()-2)),\"\")","v":{"$error":"#N/A"}},{"$f":"IF(INDIRECT(\"c\" & (VLOOKUP(Rebalance!$D$62,$F$2:$G$48,2,FALSE)+ROW()-2))=Rebalance!$D$62,INDIRECT(\"a\" & (VLOOKUP(Rebalance!$D$62,$F$2:$G$48,2,FALSE)+ROW()-2)),\"\")","v":{"$error":"#N/A"}},{"$f":"IF(INDIRECT(\"c\" & (VLOOKUP(Rebalance!$D$63,$F$2:$G$48,2,FALSE)+ROW()-2))=Rebalance!$D$63,INDIRECT(\"a\" & (VLOOKUP(Rebalance!$D$63,$F$2:$G$48,2,FALSE)+ROW()-2)),\"\")","v":{"$error":"#N/A"}},{"$f":"IF(INDIRECT(\"c\" & (VLOOKUP(Rebalance!$D$64,$F$2:$G$48,2,FALSE)+ROW()-2))=Rebalance!$D$64,INDIRECT(\"a\" & (VLOOKUP(Rebalance!$D$64,$F$2:$G$48,2,FALSE)+ROW()-2)),\"\")","v":{"$error":"#N/A"}},{"$f":"IF(INDIRECT(\"c\" & (VLOOKUP(Rebalance!$D$65,$F$2:$G$48,2,FALSE)+ROW()-2))=Rebalance!$D$65,INDIRECT(\"a\" & (VLOOKUP(Rebalance!$D$65,$F$2:$G$48,2,FALSE)+ROW()-2)),\"\")","v":{"$error":"#N/A"}},{"$f":"IF(INDIRECT(\"c\" & (VLOOKUP(Rebalance!$D$66,$F$2:$G$48,2,FALSE)+ROW()-2))=Rebalance!$D$66,INDIRECT(\"a\" & (VLOOKUP(Rebalance!$D$66,$F$2:$G$48,2,FALSE)+ROW()-2)),\"\")","v":{"$error":"#N/A"}}]
["ClucasGray Future Titans Prescient Fund A3","CGFT","Prescient Management Company Ltd",{"$f":"ROW()","v":448},null,null,{"$f":"VLOOKUP(F448,$C$2:$D$599,2,FALSE)","v":{"$error":"#N/A"}},{"$f":"IF(INDIRECT(\"c\" & (VLOOKUP(Rebalance!$D$26,$F$2:$G$48,2,FALSE)+ROW()-2))=Rebalance!$D$26,INDIRECT(\"a\" & (VLOOKUP(Rebalance!$D$26,$F$2:$G$48,2,FALSE)+ROW()-2)),\"\")","v":{"$error":"#N/A"}},{"$f":"IF(INDIRECT(\"c\" & (VLOOKUP(Rebalance!$D$27,$F$2:$G$48,2,FALSE)+ROW()-2))=Rebalance!$D$27,INDIRECT(\"a\" & (VLOOKUP(Rebalance!$D$27,$F$2:$G$48,2,FALSE)+ROW()-2)),\"\")","v":{"$error":"#N/A"}},{"$f":"IF(INDIRECT(\"c\" & (VLOOKUP(Rebalance!$D$28,$F$2:$G$48,2,FALSE)+ROW()-2))=Rebalance!$D$28,INDIRECT(\"a\" & (VLOOKUP(Rebalance!$D$28,$F$2:$G$48,2,FALSE)+ROW()-2)),\"\")","v":{"$error":"#N/A"}},{"$f":"IF(INDIRECT(\"c\" & (VLOOKUP(Rebalance!$D$29,$F$2:$G$48,2,FALSE)+ROW()-2))=Rebalance!$D$29,INDIRECT(\"a\" & (VLOOKUP(Rebalance!$D$29,$F$2:$G$48,2,FALSE)+ROW()-2)),\"\")","v":{"$error":"#N/A"}},{"$f":"IF(INDIRECT(\"c\" & (VLOOKUP(Rebalance!$D$30,$F$2:$G$48,2,FALSE)+ROW()-2))=Rebalance!$D$30,INDIRECT(\"a\" & (VLOOKUP(Rebalance!$D$30,$F$2:$G$48,2,FALSE)+ROW()-2)),\"\")","v":{"$error":"#N/A"}},{"$f":"IF(INDIRECT(\"c\" & (VLOOKUP(Rebalance!$D$31,$F$2:$G$48,2,FALSE)+ROW()-2))=Rebalance!$D$31,INDIRECT(\"a\" & (VLOOKUP(Rebalance!$D$31,$F$2:$G$48,2,FALSE)+ROW()-2)),\"\")","v":{"$error":"#N/A"}},{"$f":"IF(INDIRECT(\"c\" & (VLOOKUP(Rebalance!$D$32,$F$2:$G$48,2,FALSE)+ROW()-2))=Rebalance!$D$32,INDIRECT(\"a\" & (VLOOKUP(Rebalance!$D$32,$F$2:$G$48,2,FALSE)+ROW()-2)),\"\")","v":{"$error":"#N/A"}},{"$f":"IF(INDIRECT(\"c\" & (VLOOKUP(Rebalance!$D$33,$F$2:$G$48,2,FALSE)+ROW()-2))=Rebalance!$D$33,INDIRECT(\"a\" & (VLOOKUP(Rebalance!$D$33,$F$2:$G$48,2,FALSE)+ROW()-2)),\"\")","v":{"$error":"#N/A"}},{"$f":"IF(INDIRECT(\"c\" & (VLOOKUP(Rebalance!$D$34,$F$2:$G$48,2,FALSE)+ROW()-2))=Rebalance!$D$34,INDIRECT(\"a\" & (VLOOKUP(Rebalance!$D$34,$F$2:$G$48,2,FALSE)+ROW()-2)),\"\")","v":{"$error":"#N/A"}},{"$f":"IF(INDIRECT(\"c\" & (VLOOKUP(Rebalance!$D$35,$F$2:$G$48,2,FALSE)+ROW()-2))=Rebalance!$D$35,INDIRECT(\"a\" & (VLOOKUP(Rebalance!$D$35,$F$2:$G$48,2,FALSE)+ROW()-2)),\"\")","v":{"$error":"#N/A"}},{"$f":"IF(INDIRECT(\"c\" & (VLOOKUP(Rebalance!$D$36,$F$2:$G$48,2,FALSE)+ROW()-2))=Rebalance!$D$36,INDIRECT(\"a\" & (VLOOKUP(Rebalance!$D$36,$F$2:$G$48,2,FALSE)+ROW()-2)),\"\")","v":{"$error":"#N/A"}},{"$f":"IF(INDIRECT(\"c\" & (VLOOKUP(Rebalance!$D$37,$F$2:$G$48,2,FALSE)+ROW()-2))=Rebalance!$D$37,INDIRECT(\"a\" & (VLOOKUP(Rebalance!$D$37,$F$2:$G$48,2,FALSE)+ROW()-2)),\"\")","v":{"$error":"#N/A"}},{"$f":"IF(INDIRECT(\"c\" & (VLOOKUP(Rebalance!$D$38,$F$2:$G$48,2,FALSE)+ROW()-2))=Rebalance!$D$38,INDIRECT(\"a\" & (VLOOKUP(Rebalance!$D$38,$F$2:$G$48,2,FALSE)+ROW()-2)),\"\")","v":{"$error":"#N/A"}},{"$f":"IF(INDIRECT(\"c\" & (VLOOKUP(Rebalance!$D$39,$F$2:$G$48,2,FALSE)+ROW()-2))=Rebalance!$D$39,INDIRECT(\"a\" & (VLOOKUP(Rebalance!$D$39,$F$2:$G$48,2,FALSE)+ROW()-2)),\"\")","v":{"$error":"#N/A"}},{"$f":"IF(INDIRECT(\"c\" & (VLOOKUP(Rebalance!$D$40,$F$2:$G$48,2,FALSE)+ROW()-2))=Rebalance!$D$40,INDIRECT(\"a\" & (VLOOKUP(Rebalance!$D$40,$F$2:$G$48,2,FALSE)+ROW()-2)),\"\")","v":{"$error":"#N/A"}},{"$f":"IF(INDIRECT(\"c\" & (VLOOKUP(Rebalance!$D$52,$F$2:$G$48,2,FALSE)+ROW()-2))=Rebalance!$D$52,INDIRECT(\"a\" & (VLOOKUP(Rebalance!$D$52,$F$2:$G$48,2,FALSE)+ROW()-2)),\"\")","v":{"$error":"#N/A"}},{"$f":"IF(INDIRECT(\"c\" & (VLOOKUP(Rebalance!$D$53,$F$2:$G$48,2,FALSE)+ROW()-2))=Rebalance!$D$53,INDIRECT(\"a\" & (VLOOKUP(Rebalance!$D$53,$F$2:$G$48,2,FALSE)+ROW()-2)),\"\")","v":{"$error":"#N/A"}},{"$f":"IF(INDIRECT(\"c\" & (VLOOKUP(Rebalance!$D$54,$F$2:$G$48,2,FALSE)+ROW()-2))=Rebalance!$D$54,INDIRECT(\"a\" & (VLOOKUP(Rebalance!$D$54,$F$2:$G$48,2,FALSE)+ROW()-2)),\"\")","v":{"$error":"#N/A"}},{"$f":"IF(INDIRECT(\"c\" & (VLOOKUP(Rebalance!$D$55,$F$2:$G$48,2,FALSE)+ROW()-2))=Rebalance!$D$55,INDIRECT(\"a\" & (VLOOKUP(Rebalance!$D$55,$F$2:$G$48,2,FALSE)+ROW()-2)),\"\")","v":{"$error":"#N/A"}},{"$f":"IF(INDIRECT(\"c\" & (VLOOKUP(Rebalance!$D$56,$F$2:$G$48,2,FALSE)+ROW()-2))=Rebalance!$D$56,INDIRECT(\"a\" & (VLOOKUP(Rebalance!$D$56,$F$2:$G$48,2,FALSE)+ROW()-2)),\"\")","v":{"$error":"#N/A"}},{"$f":"IF(INDIRECT(\"c\" & (VLOOKUP(Rebalance!$D$57,$F$2:$G$48,2,FALSE)+ROW()-2))=Rebalance!$D$57,INDIRECT(\"a\" & (VLOOKUP(Rebalance!$D$57,$F$2:$G$48,2,FALSE)+ROW()-2)),\"\")","v":{"$error":"#N/A"}},{"$f":"IF(INDIRECT(\"c\" & (VLOOKUP(Rebalance!$D$58,$F$2:$G$48,2,FALSE)+ROW()-2))=Rebalance!$D$58,INDIRECT(\"a\" & (VLOOKUP(Rebalance!$D$58,$F$2:$G$48,2,FALSE)+ROW()-2)),\"\")","v":{"$error":"#N/A"}},{"$f":"IF(INDIRECT(\"c\" & (VLOOKUP(Rebalance!$D$59,$F$2:$G$48,2,FALSE)+ROW()-2))=Rebalance!$D$59,INDIRECT(\"a\" & (VLOOKUP(Rebalance!$D$59,$F$2:$G$48,2,FALSE)+ROW()-2)),\"\")","v":{"$error":"#N/A"}},{"$f":"IF(INDIRECT(\"c\" & (VLOOKUP(Rebalance!$D$60,$F$2:$G$48,2,FALSE)+ROW()-2))=Rebalance!$D$60,INDIRECT(\"a\" & (VLOOKUP(Rebalance!$D$60,$F$2:$G$48,2,FALSE)+ROW()-2)),\"\")","v":{"$error":"#N/A"}},{"$f":"IF(INDIRECT(\"c\" & (VLOOKUP(Rebalance!$D$61,$F$2:$G$48,2,FALSE)+ROW()-2))=Rebalance!$D$61,INDIRECT(\"a\" & (VLOOKUP(Rebalance!$D$61,$F$2:$G$48,2,FALSE)+ROW()-2)),\"\")","v":{"$error":"#N/A"}},{"$f":"IF(INDIRECT(\"c\" & (VLOOKUP(Rebalance!$D$62,$F$2:$G$48,2,FALSE)+ROW()-2))=Rebalance!$D$62,INDIRECT(\"a\" & (VLOOKUP(Rebalance!$D$62,$F$2:$G$48,2,FALSE)+ROW()-2)),\"\")","v":{"$error":"#N/A"}},{"$f":"IF(INDIRECT(\"c\" & (VLOOKUP(Rebalance!$D$63,$F$2:$G$48,2,FALSE)+ROW()-2))=Rebalance!$D$63,INDIRECT(\"a\" & (VLOOKUP(Rebalance!$D$63,$F$2:$G$48,2,FALSE)+ROW()-2)),\"\")","v":{"$error":"#N/A"}},{"$f":"IF(INDIRECT(\"c\" & (VLOOKUP(Rebalance!$D$64,$F$2:$G$48,2,FALSE)+ROW()-2))=Rebalance!$D$64,INDIRECT(\"a\" & (VLOOKUP(Rebalance!$D$64,$F$2:$G$48,2,FALSE)+ROW()-2)),\"\")","v":{"$error":"#N/A"}},{"$f":"IF(INDIRECT(\"c\" & (VLOOKUP(Rebalance!$D$65,$F$2:$G$48,2,FALSE)+ROW()-2))=Rebalance!$D$65,INDIRECT(\"a\" & (VLOOKUP(Rebalance!$D$65,$F$2:$G$48,2,FALSE)+ROW()-2)),\"\")","v":{"$error":"#N/A"}},{"$f":"IF(INDIRECT(\"c\" & (VLOOKUP(Rebalance!$D$66,$F$2:$G$48,2,FALSE)+ROW()-2))=Rebalance!$D$66,INDIRECT(\"a\" & (VLOOKUP(Rebalance!$D$66,$F$2:$G$48,2,FALSE)+ROW()-2)),\"\")","v":{"$error":"#N/A"}}]
["Fairtree Equity Prescient Fund A2","FEPA2","Prescient Management Company Ltd",{"$f":"ROW()","v":449},null,null,{"$f":"VLOOKUP(F449,$C$2:$D$599,2,FALSE)","v":{"$error":"#N/A"}},{"$f":"IF(INDIRECT(\"c\" & (VLOOKUP(Rebalance!$D$26,$F$2:$G$48,2,FALSE)+ROW()-2))=Rebalance!$D$26,INDIRECT(\"a\" & (VLOOKUP(Rebalance!$D$26,$F$2:$G$48,2,FALSE)+ROW()-2)),\"\")","v":{"$error":"#N/A"}},{"$f":"IF(INDIRECT(\"c\" & (VLOOKUP(Rebalance!$D$27,$F$2:$G$48,2,FALSE)+ROW()-2))=Rebalance!$D$27,INDIRECT(\"a\" & (VLOOKUP(Rebalance!$D$27,$F$2:$G$48,2,FALSE)+ROW()-2)),\"\")","v":{"$error":"#N/A"}},{"$f":"IF(INDIRECT(\"c\" & (VLOOKUP(Rebalance!$D$28,$F$2:$G$48,2,FALSE)+ROW()-2))=Rebalance!$D$28,INDIRECT(\"a\" & (VLOOKUP(Rebalance!$D$28,$F$2:$G$48,2,FALSE)+ROW()-2)),\"\")","v":{"$error":"#N/A"}},{"$f":"IF(INDIRECT(\"c\" & (VLOOKUP(Rebalance!$D$29,$F$2:$G$48,2,FALSE)+ROW()-2))=Rebalance!$D$29,INDIRECT(\"a\" & (VLOOKUP(Rebalance!$D$29,$F$2:$G$48,2,FALSE)+ROW()-2)),\"\")","v":{"$error":"#N/A"}},{"$f":"IF(INDIRECT(\"c\" & (VLOOKUP(Rebalance!$D$30,$F$2:$G$48,2,FALSE)+ROW()-2))=Rebalance!$D$30,INDIRECT(\"a\" & (VLOOKUP(Rebalance!$D$30,$F$2:$G$48,2,FALSE)+ROW()-2)),\"\")","v":{"$error":"#N/A"}},{"$f":"IF(INDIRECT(\"c\" & (VLOOKUP(Rebalance!$D$31,$F$2:$G$48,2,FALSE)+ROW()-2))=Rebalance!$D$31,INDIRECT(\"a\" & (VLOOKUP(Rebalance!$D$31,$F$2:$G$48,2,FALSE)+ROW()-2)),\"\")","v":{"$error":"#N/A"}},{"$f":"IF(INDIRECT(\"c\" & (VLOOKUP(Rebalance!$D$32,$F$2:$G$48,2,FALSE)+ROW()-2))=Rebalance!$D$32,INDIRECT(\"a\" & (VLOOKUP(Rebalance!$D$32,$F$2:$G$48,2,FALSE)+ROW()-2)),\"\")","v":{"$error":"#N/A"}},{"$f":"IF(INDIRECT(\"c\" & (VLOOKUP(Rebalance!$D$33,$F$2:$G$48,2,FALSE)+ROW()-2))=Rebalance!$D$33,INDIRECT(\"a\" & (VLOOKUP(Rebalance!$D$33,$F$2:$G$48,2,FALSE)+ROW()-2)),\"\")","v":{"$error":"#N/A"}},{"$f":"IF(INDIRECT(\"c\" & (VLOOKUP(Rebalance!$D$34,$F$2:$G$48,2,FALSE)+ROW()-2))=Rebalance!$D$34,INDIRECT(\"a\" & (VLOOKUP(Rebalance!$D$34,$F$2:$G$48,2,FALSE)+ROW()-2)),\"\")","v":{"$error":"#N/A"}},{"$f":"IF(INDIRECT(\"c\" & (VLOOKUP(Rebalance!$D$35,$F$2:$G$48,2,FALSE)+ROW()-2))=Rebalance!$D$35,INDIRECT(\"a\" & (VLOOKUP(Rebalance!$D$35,$F$2:$G$48,2,FALSE)+ROW()-2)),\"\")","v":{"$error":"#N/A"}},{"$f":"IF(INDIRECT(\"c\" & (VLOOKUP(Rebalance!$D$36,$F$2:$G$48,2,FALSE)+ROW()-2))=Rebalance!$D$36,INDIRECT(\"a\" & (VLOOKUP(Rebalance!$D$36,$F$2:$G$48,2,FALSE)+ROW()-2)),\"\")","v":{"$error":"#N/A"}},{"$f":"IF(INDIRECT(\"c\" & (VLOOKUP(Rebalance!$D$37,$F$2:$G$48,2,FALSE)+ROW()-2))=Rebalance!$D$37,INDIRECT(\"a\" & (VLOOKUP(Rebalance!$D$37,$F$2:$G$48,2,FALSE)+ROW()-2)),\"\")","v":{"$error":"#N/A"}},{"$f":"IF(INDIRECT(\"c\" & (VLOOKUP(Rebalance!$D$38,$F$2:$G$48,2,FALSE)+ROW()-2))=Rebalance!$D$38,INDIRECT(\"a\" & (VLOOKUP(Rebalance!$D$38,$F$2:$G$48,2,FALSE)+ROW()-2)),\"\")","v":{"$error":"#N/A"}},{"$f":"IF(INDIRECT(\"c\" & (VLOOKUP(Rebalance!$D$39,$F$2:$G$48,2,FALSE)+ROW()-2))=Rebalance!$D$39,INDIRECT(\"a\" & (VLOOKUP(Rebalance!$D$39,$F$2:$G$48,2,FALSE)+ROW()-2)),\"\")","v":{"$error":"#N/A"}},{"$f":"IF(INDIRECT(\"c\" & (VLOOKUP(Rebalance!$D$40,$F$2:$G$48,2,FALSE)+ROW()-2))=Rebalance!$D$40,INDIRECT(\"a\" & (VLOOKUP(Rebalance!$D$40,$F$2:$G$48,2,FALSE)+ROW()-2)),\"\")","v":{"$error":"#N/A"}},{"$f":"IF(INDIRECT(\"c\" & (VLOOKUP(Rebalance!$D$52,$F$2:$G$48,2,FALSE)+ROW()-2))=Rebalance!$D$52,INDIRECT(\"a\" & (VLOOKUP(Rebalance!$D$52,$F$2:$G$48,2,FALSE)+ROW()-2)),\"\")","v":{"$error":"#N/A"}},{"$f":"IF(INDIRECT(\"c\" & (VLOOKUP(Rebalance!$D$53,$F$2:$G$48,2,FALSE)+ROW()-2))=Rebalance!$D$53,INDIRECT(\"a\" & (VLOOKUP(Rebalance!$D$53,$F$2:$G$48,2,FALSE)+ROW()-2)),\"\")","v":{"$error":"#N/A"}},{"$f":"IF(INDIRECT(\"c\" & (VLOOKUP(Rebalance!$D$54,$F$2:$G$48,2,FALSE)+ROW()-2))=Rebalance!$D$54,INDIRECT(\"a\" & (VLOOKUP(Rebalance!$D$54,$F$2:$G$48,2,FALSE)+ROW()-2)),\"\")","v":{"$error":"#N/A"}},{"$f":"IF(INDIRECT(\"c\" & (VLOOKUP(Rebalance!$D$55,$F$2:$G$48,2,FALSE)+ROW()-2))=Rebalance!$D$55,INDIRECT(\"a\" & (VLOOKUP(Rebalance!$D$55,$F$2:$G$48,2,FALSE)+ROW()-2)),\"\")","v":{"$error":"#N/A"}},{"$f":"IF(INDIRECT(\"c\" & (VLOOKUP(Rebalance!$D$56,$F$2:$G$48,2,FALSE)+ROW()-2))=Rebalance!$D$56,INDIRECT(\"a\" & (VLOOKUP(Rebalance!$D$56,$F$2:$G$48,2,FALSE)+ROW()-2)),\"\")","v":{"$error":"#N/A"}},{"$f":"IF(INDIRECT(\"c\" & (VLOOKUP(Rebalance!$D$57,$F$2:$G$48,2,FALSE)+ROW()-2))=Rebalance!$D$57,INDIRECT(\"a\" & (VLOOKUP(Rebalance!$D$57,$F$2:$G$48,2,FALSE)+ROW()-2)),\"\")","v":{"$error":"#N/A"}},{"$f":"IF(INDIRECT(\"c\" & (VLOOKUP(Rebalance!$D$58,$F$2:$G$48,2,FALSE)+ROW()-2))=Rebalance!$D$58,INDIRECT(\"a\" & (VLOOKUP(Rebalance!$D$58,$F$2:$G$48,2,FALSE)+ROW()-2)),\"\")","v":{"$error":"#N/A"}},{"$f":"IF(INDIRECT(\"c\" & (VLOOKUP(Rebalance!$D$59,$F$2:$G$48,2,FALSE)+ROW()-2))=Rebalance!$D$59,INDIRECT(\"a\" & (VLOOKUP(Rebalance!$D$59,$F$2:$G$48,2,FALSE)+ROW()-2)),\"\")","v":{"$error":"#N/A"}},{"$f":"IF(INDIRECT(\"c\" & (VLOOKUP(Rebalance!$D$60,$F$2:$G$48,2,FALSE)+ROW()-2))=Rebalance!$D$60,INDIRECT(\"a\" & (VLOOKUP(Rebalance!$D$60,$F$2:$G$48,2,FALSE)+ROW()-2)),\"\")","v":{"$error":"#N/A"}},{"$f":"IF(INDIRECT(\"c\" & (VLOOKUP(Rebalance!$D$61,$F$2:$G$48,2,FALSE)+ROW()-2))=Rebalance!$D$61,INDIRECT(\"a\" & (VLOOKUP(Rebalance!$D$61,$F$2:$G$48,2,FALSE)+ROW()-2)),\"\")","v":{"$error":"#N/A"}},{"$f":"IF(INDIRECT(\"c\" & (VLOOKUP(Rebalance!$D$62,$F$2:$G$48,2,FALSE)+ROW()-2))=Rebalance!$D$62,INDIRECT(\"a\" & (VLOOKUP(Rebalance!$D$62,$F$2:$G$48,2,FALSE)+ROW()-2)),\"\")","v":{"$error":"#N/A"}},{"$f":"IF(INDIRECT(\"c\" & (VLOOKUP(Rebalance!$D$63,$F$2:$G$48,2,FALSE)+ROW()-2))=Rebalance!$D$63,INDIRECT(\"a\" & (VLOOKUP(Rebalance!$D$63,$F$2:$G$48,2,FALSE)+ROW()-2)),\"\")","v":{"$error":"#N/A"}},{"$f":"IF(INDIRECT(\"c\" & (VLOOKUP(Rebalance!$D$64,$F$2:$G$48,2,FALSE)+ROW()-2))=Rebalance!$D$64,INDIRECT(\"a\" & (VLOOKUP(Rebalance!$D$64,$F$2:$G$48,2,FALSE)+ROW()-2)),\"\")","v":{"$error":"#N/A"}},{"$f":"IF(INDIRECT(\"c\" & (VLOOKUP(Rebalance!$D$65,$F$2:$G$48,2,FALSE)+ROW()-2))=Rebalance!$D$65,INDIRECT(\"a\" & (VLOOKUP(Rebalance!$D$65,$F$2:$G$48,2,FALSE)+ROW()-2)),\"\")","v":{"$error":"#N/A"}},{"$f":"IF(INDIRECT(\"c\" & (VLOOKUP(Rebalance!$D$66,$F$2:$G$48,2,FALSE)+ROW()-2))=Rebalance!$D$66,INDIRECT(\"a\" & (VLOOKUP(Rebalance!$D$66,$F$2:$G$48,2,FALSE)+ROW()-2)),\"\")","v":{"$error":"#N/A"}}]
["Fairtree Flexible Income Plus Prescient Fund A1","MIPCA","Prescient Management Company Ltd",{"$f":"ROW()","v":450},null,null,{"$f":"VLOOKUP(F450,$C$2:$D$599,2,FALSE)","v":{"$error":"#N/A"}},{"$f":"IF(INDIRECT(\"c\" & (VLOOKUP(Rebalance!$D$26,$F$2:$G$48,2,FALSE)+ROW()-2))=Rebalance!$D$26,INDIRECT(\"a\" & (VLOOKUP(Rebalance!$D$26,$F$2:$G$48,2,FALSE)+ROW()-2)),\"\")","v":{"$error":"#N/A"}},{"$f":"IF(INDIRECT(\"c\" & (VLOOKUP(Rebalance!$D$27,$F$2:$G$48,2,FALSE)+ROW()-2))=Rebalance!$D$27,INDIRECT(\"a\" & (VLOOKUP(Rebalance!$D$27,$F$2:$G$48,2,FALSE)+ROW()-2)),\"\")","v":{"$error":"#N/A"}},{"$f":"IF(INDIRECT(\"c\" & (VLOOKUP(Rebalance!$D$28,$F$2:$G$48,2,FALSE)+ROW()-2))=Rebalance!$D$28,INDIRECT(\"a\" & (VLOOKUP(Rebalance!$D$28,$F$2:$G$48,2,FALSE)+ROW()-2)),\"\")","v":{"$error":"#N/A"}},{"$f":"IF(INDIRECT(\"c\" & (VLOOKUP(Rebalance!$D$29,$F$2:$G$48,2,FALSE)+ROW()-2))=Rebalance!$D$29,INDIRECT(\"a\" & (VLOOKUP(Rebalance!$D$29,$F$2:$G$48,2,FALSE)+ROW()-2)),\"\")","v":{"$error":"#N/A"}},{"$f":"IF(INDIRECT(\"c\" & (VLOOKUP(Rebalance!$D$30,$F$2:$G$48,2,FALSE)+ROW()-2))=Rebalance!$D$30,INDIRECT(\"a\" & (VLOOKUP(Rebalance!$D$30,$F$2:$G$48,2,FALSE)+ROW()-2)),\"\")","v":{"$error":"#N/A"}},{"$f":"IF(INDIRECT(\"c\" & (VLOOKUP(Rebalance!$D$31,$F$2:$G$48,2,FALSE)+ROW()-2))=Rebalance!$D$31,INDIRECT(\"a\" & (VLOOKUP(Rebalance!$D$31,$F$2:$G$48,2,FALSE)+ROW()-2)),\"\")","v":{"$error":"#N/A"}},{"$f":"IF(INDIRECT(\"c\" & (VLOOKUP(Rebalance!$D$32,$F$2:$G$48,2,FALSE)+ROW()-2))=Rebalance!$D$32,INDIRECT(\"a\" & (VLOOKUP(Rebalance!$D$32,$F$2:$G$48,2,FALSE)+ROW()-2)),\"\")","v":{"$error":"#N/A"}},{"$f":"IF(INDIRECT(\"c\" & (VLOOKUP(Rebalance!$D$33,$F$2:$G$48,2,FALSE)+ROW()-2))=Rebalance!$D$33,INDIRECT(\"a\" & (VLOOKUP(Rebalance!$D$33,$F$2:$G$48,2,FALSE)+ROW()-2)),\"\")","v":{"$error":"#N/A"}},{"$f":"IF(INDIRECT(\"c\" & (VLOOKUP(Rebalance!$D$34,$F$2:$G$48,2,FALSE)+ROW()-2))=Rebalance!$D$34,INDIRECT(\"a\" & (VLOOKUP(Rebalance!$D$34,$F$2:$G$48,2,FALSE)+ROW()-2)),\"\")","v":{"$error":"#N/A"}},{"$f":"IF(INDIRECT(\"c\" & (VLOOKUP(Rebalance!$D$35,$F$2:$G$48,2,FALSE)+ROW()-2))=Rebalance!$D$35,INDIRECT(\"a\" & (VLOOKUP(Rebalance!$D$35,$F$2:$G$48,2,FALSE)+ROW()-2)),\"\")","v":{"$error":"#N/A"}},{"$f":"IF(INDIRECT(\"c\" & (VLOOKUP(Rebalance!$D$36,$F$2:$G$48,2,FALSE)+ROW()-2))=Rebalance!$D$36,INDIRECT(\"a\" & (VLOOKUP(Rebalance!$D$36,$F$2:$G$48,2,FALSE)+ROW()-2)),\"\")","v":{"$error":"#N/A"}},{"$f":"IF(INDIRECT(\"c\" & (VLOOKUP(Rebalance!$D$37,$F$2:$G$48,2,FALSE)+ROW()-2))=Rebalance!$D$37,INDIRECT(\"a\" & (VLOOKUP(Rebalance!$D$37,$F$2:$G$48,2,FALSE)+ROW()-2)),\"\")","v":{"$error":"#N/A"}},{"$f":"IF(INDIRECT(\"c\" & (VLOOKUP(Rebalance!$D$38,$F$2:$G$48,2,FALSE)+ROW()-2))=Rebalance!$D$38,INDIRECT(\"a\" & (VLOOKUP(Rebalance!$D$38,$F$2:$G$48,2,FALSE)+ROW()-2)),\"\")","v":{"$error":"#N/A"}},{"$f":"IF(INDIRECT(\"c\" & (VLOOKUP(Rebalance!$D$39,$F$2:$G$48,2,FALSE)+ROW()-2))=Rebalance!$D$39,INDIRECT(\"a\" & (VLOOKUP(Rebalance!$D$39,$F$2:$G$48,2,FALSE)+ROW()-2)),\"\")","v":{"$error":"#N/A"}},{"$f":"IF(INDIRECT(\"c\" & (VLOOKUP(Rebalance!$D$40,$F$2:$G$48,2,FALSE)+ROW()-2))=Rebalance!$D$40,INDIRECT(\"a\" & (VLOOKUP(Rebalance!$D$40,$F$2:$G$48,2,FALSE)+ROW()-2)),\"\")","v":{"$error":"#N/A"}},{"$f":"IF(INDIRECT(\"c\" & (VLOOKUP(Rebalance!$D$52,$F$2:$G$48,2,FALSE)+ROW()-2))=Rebalance!$D$52,INDIRECT(\"a\" & (VLOOKUP(Rebalance!$D$52,$F$2:$G$48,2,FALSE)+ROW()-2)),\"\")","v":{"$error":"#N/A"}},{"$f":"IF(INDIRECT(\"c\" & (VLOOKUP(Rebalance!$D$53,$F$2:$G$48,2,FALSE)+ROW()-2))=Rebalance!$D$53,INDIRECT(\"a\" & (VLOOKUP(Rebalance!$D$53,$F$2:$G$48,2,FALSE)+ROW()-2)),\"\")","v":{"$error":"#N/A"}},{"$f":"IF(INDIRECT(\"c\" & (VLOOKUP(Rebalance!$D$54,$F$2:$G$48,2,FALSE)+ROW()-2))=Rebalance!$D$54,INDIRECT(\"a\" & (VLOOKUP(Rebalance!$D$54,$F$2:$G$48,2,FALSE)+ROW()-2)),\"\")","v":{"$error":"#N/A"}},{"$f":"IF(INDIRECT(\"c\" & (VLOOKUP(Rebalance!$D$55,$F$2:$G$48,2,FALSE)+ROW()-2))=Rebalance!$D$55,INDIRECT(\"a\" & (VLOOKUP(Rebalance!$D$55,$F$2:$G$48,2,FALSE)+ROW()-2)),\"\")","v":{"$error":"#N/A"}},{"$f":"IF(INDIRECT(\"c\" & (VLOOKUP(Rebalance!$D$56,$F$2:$G$48,2,FALSE)+ROW()-2))=Rebalance!$D$56,INDIRECT(\"a\" & (VLOOKUP(Rebalance!$D$56,$F$2:$G$48,2,FALSE)+ROW()-2)),\"\")","v":{"$error":"#N/A"}},{"$f":"IF(INDIRECT(\"c\" & (VLOOKUP(Rebalance!$D$57,$F$2:$G$48,2,FALSE)+ROW()-2))=Rebalance!$D$57,INDIRECT(\"a\" & (VLOOKUP(Rebalance!$D$57,$F$2:$G$48,2,FALSE)+ROW()-2)),\"\")","v":{"$error":"#N/A"}},{"$f":"IF(INDIRECT(\"c\" & (VLOOKUP(Rebalance!$D$58,$F$2:$G$48,2,FALSE)+ROW()-2))=Rebalance!$D$58,INDIRECT(\"a\" & (VLOOKUP(Rebalance!$D$58,$F$2:$G$48,2,FALSE)+ROW()-2)),\"\")","v":{"$error":"#N/A"}},{"$f":"IF(INDIRECT(\"c\" & (VLOOKUP(Rebalance!$D$59,$F$2:$G$48,2,FALSE)+ROW()-2))=Rebalance!$D$59,INDIRECT(\"a\" & (VLOOKUP(Rebalance!$D$59,$F$2:$G$48,2,FALSE)+ROW()-2)),\"\")","v":{"$error":"#N/A"}},{"$f":"IF(INDIRECT(\"c\" & (VLOOKUP(Rebalance!$D$60,$F$2:$G$48,2,FALSE)+ROW()-2))=Rebalance!$D$60,INDIRECT(\"a\" & (VLOOKUP(Rebalance!$D$60,$F$2:$G$48,2,FALSE)+ROW()-2)),\"\")","v":{"$error":"#N/A"}},{"$f":"IF(INDIRECT(\"c\" & (VLOOKUP(Rebalance!$D$61,$F$2:$G$48,2,FALSE)+ROW()-2))=Rebalance!$D$61,INDIRECT(\"a\" & (VLOOKUP(Rebalance!$D$61,$F$2:$G$48,2,FALSE)+ROW()-2)),\"\")","v":{"$error":"#N/A"}},{"$f":"IF(INDIRECT(\"c\" & (VLOOKUP(Rebalance!$D$62,$F$2:$G$48,2,FALSE)+ROW()-2))=Rebalance!$D$62,INDIRECT(\"a\" & (VLOOKUP(Rebalance!$D$62,$F$2:$G$48,2,FALSE)+ROW()-2)),\"\")","v":{"$error":"#N/A"}},{"$f":"IF(INDIRECT(\"c\" & (VLOOKUP(Rebalance!$D$63,$F$2:$G$48,2,FALSE)+ROW()-2))=Rebalance!$D$63,INDIRECT(\"a\" & (VLOOKUP(Rebalance!$D$63,$F$2:$G$48,2,FALSE)+ROW()-2)),\"\")","v":{"$error":"#N/A"}},{"$f":"IF(INDIRECT(\"c\" & (VLOOKUP(Rebalance!$D$64,$F$2:$G$48,2,FALSE)+ROW()-2))=Rebalance!$D$64,INDIRECT(\"a\" & (VLOOKUP(Rebalance!$D$64,$F$2:$G$48,2,FALSE)+ROW()-2)),\"\")","v":{"$error":"#N/A"}},{"$f":"IF(INDIRECT(\"c\" & (VLOOKUP(Rebalance!$D$65,$F$2:$G$48,2,FALSE)+ROW()-2))=Rebalance!$D$65,INDIRECT(\"a\" & (VLOOKUP(Rebalance!$D$65,$F$2:$G$48,2,FALSE)+ROW()-2)),\"\")","v":{"$error":"#N/A"}},{"$f":"IF(INDIRECT(\"c\" & (VLOOKUP(Rebalance!$D$66,$F$2:$G$48,2,FALSE)+ROW()-2))=Rebalance!$D$66,INDIRECT(\"a\" & (VLOOKUP(Rebalance!$D$66,$F$2:$G$48,2,FALSE)+ROW()-2)),\"\")","v":{"$error":"#N/A"}}]
["Fairtree Global Smart Beta Prescient Fund A1","FGSA1","Prescient Management Company Ltd",{"$f":"ROW()","v":451},null,null,{"$f":"VLOOKUP(F451,$C$2:$D$599,2,FALSE)","v":{"$error":"#N/A"}},{"$f":"IF(INDIRECT(\"c\" & (VLOOKUP(Rebalance!$D$26,$F$2:$G$48,2,FALSE)+ROW()-2))=Rebalance!$D$26,INDIRECT(\"a\" & (VLOOKUP(Rebalance!$D$26,$F$2:$G$48,2,FALSE)+ROW()-2)),\"\")","v":{"$error":"#N/A"}},{"$f":"IF(INDIRECT(\"c\" & (VLOOKUP(Rebalance!$D$27,$F$2:$G$48,2,FALSE)+ROW()-2))=Rebalance!$D$27,INDIRECT(\"a\" & (VLOOKUP(Rebalance!$D$27,$F$2:$G$48,2,FALSE)+ROW()-2)),\"\")","v":{"$error":"#N/A"}},{"$f":"IF(INDIRECT(\"c\" & (VLOOKUP(Rebalance!$D$28,$F$2:$G$48,2,FALSE)+ROW()-2))=Rebalance!$D$28,INDIRECT(\"a\" & (VLOOKUP(Rebalance!$D$28,$F$2:$G$48,2,FALSE)+ROW()-2)),\"\")","v":{"$error":"#N/A"}},{"$f":"IF(INDIRECT(\"c\" & (VLOOKUP(Rebalance!$D$29,$F$2:$G$48,2,FALSE)+ROW()-2))=Rebalance!$D$29,INDIRECT(\"a\" & (VLOOKUP(Rebalance!$D$29,$F$2:$G$48,2,FALSE)+ROW()-2)),\"\")","v":{"$error":"#N/A"}},{"$f":"IF(INDIRECT(\"c\" & (VLOOKUP(Rebalance!$D$30,$F$2:$G$48,2,FALSE)+ROW()-2))=Rebalance!$D$30,INDIRECT(\"a\" & (VLOOKUP(Rebalance!$D$30,$F$2:$G$48,2,FALSE)+ROW()-2)),\"\")","v":{"$error":"#N/A"}},{"$f":"IF(INDIRECT(\"c\" & (VLOOKUP(Rebalance!$D$31,$F$2:$G$48,2,FALSE)+ROW()-2))=Rebalance!$D$31,INDIRECT(\"a\" & (VLOOKUP(Rebalance!$D$31,$F$2:$G$48,2,FALSE)+ROW()-2)),\"\")","v":{"$error":"#N/A"}},{"$f":"IF(INDIRECT(\"c\" & (VLOOKUP(Rebalance!$D$32,$F$2:$G$48,2,FALSE)+ROW()-2))=Rebalance!$D$32,INDIRECT(\"a\" & (VLOOKUP(Rebalance!$D$32,$F$2:$G$48,2,FALSE)+ROW()-2)),\"\")","v":{"$error":"#N/A"}},{"$f":"IF(INDIRECT(\"c\" & (VLOOKUP(Rebalance!$D$33,$F$2:$G$48,2,FALSE)+ROW()-2))=Rebalance!$D$33,INDIRECT(\"a\" & (VLOOKUP(Rebalance!$D$33,$F$2:$G$48,2,FALSE)+ROW()-2)),\"\")","v":{"$error":"#N/A"}},{"$f":"IF(INDIRECT(\"c\" & (VLOOKUP(Rebalance!$D$34,$F$2:$G$48,2,FALSE)+ROW()-2))=Rebalance!$D$34,INDIRECT(\"a\" & (VLOOKUP(Rebalance!$D$34,$F$2:$G$48,2,FALSE)+ROW()-2)),\"\")","v":{"$error":"#N/A"}},{"$f":"IF(INDIRECT(\"c\" & (VLOOKUP(Rebalance!$D$35,$F$2:$G$48,2,FALSE)+ROW()-2))=Rebalance!$D$35,INDIRECT(\"a\" & (VLOOKUP(Rebalance!$D$35,$F$2:$G$48,2,FALSE)+ROW()-2)),\"\")","v":{"$error":"#N/A"}},{"$f":"IF(INDIRECT(\"c\" & (VLOOKUP(Rebalance!$D$36,$F$2:$G$48,2,FALSE)+ROW()-2))=Rebalance!$D$36,INDIRECT(\"a\" & (VLOOKUP(Rebalance!$D$36,$F$2:$G$48,2,FALSE)+ROW()-2)),\"\")","v":{"$error":"#N/A"}},{"$f":"IF(INDIRECT(\"c\" & (VLOOKUP(Rebalance!$D$37,$F$2:$G$48,2,FALSE)+ROW()-2))=Rebalance!$D$37,INDIRECT(\"a\" & (VLOOKUP(Rebalance!$D$37,$F$2:$G$48,2,FALSE)+ROW()-2)),\"\")","v":{"$error":"#N/A"}},{"$f":"IF(INDIRECT(\"c\" & (VLOOKUP(Rebalance!$D$38,$F$2:$G$48,2,FALSE)+ROW()-2))=Rebalance!$D$38,INDIRECT(\"a\" & (VLOOKUP(Rebalance!$D$38,$F$2:$G$48,2,FALSE)+ROW()-2)),\"\")","v":{"$error":"#N/A"}},{"$f":"IF(INDIRECT(\"c\" & (VLOOKUP(Rebalance!$D$39,$F$2:$G$48,2,FALSE)+ROW()-2))=Rebalance!$D$39,INDIRECT(\"a\" & (VLOOKUP(Rebalance!$D$39,$F$2:$G$48,2,FALSE)+ROW()-2)),\"\")","v":{"$error":"#N/A"}},{"$f":"IF(INDIRECT(\"c\" & (VLOOKUP(Rebalance!$D$40,$F$2:$G$48,2,FALSE)+ROW()-2))=Rebalance!$D$40,INDIRECT(\"a\" & (VLOOKUP(Rebalance!$D$40,$F$2:$G$48,2,FALSE)+ROW()-2)),\"\")","v":{"$error":"#N/A"}},{"$f":"IF(INDIRECT(\"c\" & (VLOOKUP(Rebalance!$D$52,$F$2:$G$48,2,FALSE)+ROW()-2))=Rebalance!$D$52,INDIRECT(\"a\" & (VLOOKUP(Rebalance!$D$52,$F$2:$G$48,2,FALSE)+ROW()-2)),\"\")","v":{"$error":"#N/A"}},{"$f":"IF(INDIRECT(\"c\" & (VLOOKUP(Rebalance!$D$53,$F$2:$G$48,2,FALSE)+ROW()-2))=Rebalance!$D$53,INDIRECT(\"a\" & (VLOOKUP(Rebalance!$D$53,$F$2:$G$48,2,FALSE)+ROW()-2)),\"\")","v":{"$error":"#N/A"}},{"$f":"IF(INDIRECT(\"c\" & (VLOOKUP(Rebalance!$D$54,$F$2:$G$48,2,FALSE)+ROW()-2))=Rebalance!$D$54,INDIRECT(\"a\" & (VLOOKUP(Rebalance!$D$54,$F$2:$G$48,2,FALSE)+ROW()-2)),\"\")","v":{"$error":"#N/A"}},{"$f":"IF(INDIRECT(\"c\" & (VLOOKUP(Rebalance!$D$55,$F$2:$G$48,2,FALSE)+ROW()-2))=Rebalance!$D$55,INDIRECT(\"a\" & (VLOOKUP(Rebalance!$D$55,$F$2:$G$48,2,FALSE)+ROW()-2)),\"\")","v":{"$error":"#N/A"}},{"$f":"IF(INDIRECT(\"c\" & (VLOOKUP(Rebalance!$D$56,$F$2:$G$48,2,FALSE)+ROW()-2))=Rebalance!$D$56,INDIRECT(\"a\" & (VLOOKUP(Rebalance!$D$56,$F$2:$G$48,2,FALSE)+ROW()-2)),\"\")","v":{"$error":"#N/A"}},{"$f":"IF(INDIRECT(\"c\" & (VLOOKUP(Rebalance!$D$57,$F$2:$G$48,2,FALSE)+ROW()-2))=Rebalance!$D$57,INDIRECT(\"a\" & (VLOOKUP(Rebalance!$D$57,$F$2:$G$48,2,FALSE)+ROW()-2)),\"\")","v":{"$error":"#N/A"}},{"$f":"IF(INDIRECT(\"c\" & (VLOOKUP(Rebalance!$D$58,$F$2:$G$48,2,FALSE)+ROW()-2))=Rebalance!$D$58,INDIRECT(\"a\" & (VLOOKUP(Rebalance!$D$58,$F$2:$G$48,2,FALSE)+ROW()-2)),\"\")","v":{"$error":"#N/A"}},{"$f":"IF(INDIRECT(\"c\" & (VLOOKUP(Rebalance!$D$59,$F$2:$G$48,2,FALSE)+ROW()-2))=Rebalance!$D$59,INDIRECT(\"a\" & (VLOOKUP(Rebalance!$D$59,$F$2:$G$48,2,FALSE)+ROW()-2)),\"\")","v":{"$error":"#N/A"}},{"$f":"IF(INDIRECT(\"c\" & (VLOOKUP(Rebalance!$D$60,$F$2:$G$48,2,FALSE)+ROW()-2))=Rebalance!$D$60,INDIRECT(\"a\" & (VLOOKUP(Rebalance!$D$60,$F$2:$G$48,2,FALSE)+ROW()-2)),\"\")","v":{"$error":"#N/A"}},{"$f":"IF(INDIRECT(\"c\" & (VLOOKUP(Rebalance!$D$61,$F$2:$G$48,2,FALSE)+ROW()-2))=Rebalance!$D$61,INDIRECT(\"a\" & (VLOOKUP(Rebalance!$D$61,$F$2:$G$48,2,FALSE)+ROW()-2)),\"\")","v":{"$error":"#N/A"}},{"$f":"IF(INDIRECT(\"c\" & (VLOOKUP(Rebalance!$D$62,$F$2:$G$48,2,FALSE)+ROW()-2))=Rebalance!$D$62,INDIRECT(\"a\" & (VLOOKUP(Rebalance!$D$62,$F$2:$G$48,2,FALSE)+ROW()-2)),\"\")","v":{"$error":"#N/A"}},{"$f":"IF(INDIRECT(\"c\" & (VLOOKUP(Rebalance!$D$63,$F$2:$G$48,2,FALSE)+ROW()-2))=Rebalance!$D$63,INDIRECT(\"a\" & (VLOOKUP(Rebalance!$D$63,$F$2:$G$48,2,FALSE)+ROW()-2)),\"\")","v":{"$error":"#N/A"}},{"$f":"IF(INDIRECT(\"c\" & (VLOOKUP(Rebalance!$D$64,$F$2:$G$48,2,FALSE)+ROW()-2))=Rebalance!$D$64,INDIRECT(\"a\" & (VLOOKUP(Rebalance!$D$64,$F$2:$G$48,2,FALSE)+ROW()-2)),\"\")","v":{"$error":"#N/A"}},{"$f":"IF(INDIRECT(\"c\" & (VLOOKUP(Rebalance!$D$65,$F$2:$G$48,2,FALSE)+ROW()-2))=Rebalance!$D$65,INDIRECT(\"a\" & (VLOOKUP(Rebalance!$D$65,$F$2:$G$48,2,FALSE)+ROW()-2)),\"\")","v":{"$error":"#N/A"}},{"$f":"IF(INDIRECT(\"c\" & (VLOOKUP(Rebalance!$D$66,$F$2:$G$48,2,FALSE)+ROW()-2))=Rebalance!$D$66,INDIRECT(\"a\" & (VLOOKUP(Rebalance!$D$66,$F$2:$G$48,2,FALSE)+ROW()-2)),\"\")","v":{"$error":"#N/A"}}]
["Fairtree Worldwide Multi-Strategy Flexible Prescient A1","FMFPA1","Prescient Management Company Ltd",{"$f":"ROW()","v":452},null,null,{"$f":"VLOOKUP(F452,$C$2:$D$599,2,FALSE)","v":{"$error":"#N/A"}},{"$f":"IF(INDIRECT(\"c\" & (VLOOKUP(Rebalance!$D$26,$F$2:$G$48,2,FALSE)+ROW()-2))=Rebalance!$D$26,INDIRECT(\"a\" & (VLOOKUP(Rebalance!$D$26,$F$2:$G$48,2,FALSE)+ROW()-2)),\"\")","v":{"$error":"#N/A"}},{"$f":"IF(INDIRECT(\"c\" & (VLOOKUP(Rebalance!$D$27,$F$2:$G$48,2,FALSE)+ROW()-2))=Rebalance!$D$27,INDIRECT(\"a\" & (VLOOKUP(Rebalance!$D$27,$F$2:$G$48,2,FALSE)+ROW()-2)),\"\")","v":{"$error":"#N/A"}},{"$f":"IF(INDIRECT(\"c\" & (VLOOKUP(Rebalance!$D$28,$F$2:$G$48,2,FALSE)+ROW()-2))=Rebalance!$D$28,INDIRECT(\"a\" & (VLOOKUP(Rebalance!$D$28,$F$2:$G$48,2,FALSE)+ROW()-2)),\"\")","v":{"$error":"#N/A"}},{"$f":"IF(INDIRECT(\"c\" & (VLOOKUP(Rebalance!$D$29,$F$2:$G$48,2,FALSE)+ROW()-2))=Rebalance!$D$29,INDIRECT(\"a\" & (VLOOKUP(Rebalance!$D$29,$F$2:$G$48,2,FALSE)+ROW()-2)),\"\")","v":{"$error":"#N/A"}},{"$f":"IF(INDIRECT(\"c\" & (VLOOKUP(Rebalance!$D$30,$F$2:$G$48,2,FALSE)+ROW()-2))=Rebalance!$D$30,INDIRECT(\"a\" & (VLOOKUP(Rebalance!$D$30,$F$2:$G$48,2,FALSE)+ROW()-2)),\"\")","v":{"$error":"#N/A"}},{"$f":"IF(INDIRECT(\"c\" & (VLOOKUP(Rebalance!$D$31,$F$2:$G$48,2,FALSE)+ROW()-2))=Rebalance!$D$31,INDIRECT(\"a\" & (VLOOKUP(Rebalance!$D$31,$F$2:$G$48,2,FALSE)+ROW()-2)),\"\")","v":{"$error":"#N/A"}},{"$f":"IF(INDIRECT(\"c\" & (VLOOKUP(Rebalance!$D$32,$F$2:$G$48,2,FALSE)+ROW()-2))=Rebalance!$D$32,INDIRECT(\"a\" & (VLOOKUP(Rebalance!$D$32,$F$2:$G$48,2,FALSE)+ROW()-2)),\"\")","v":{"$error":"#N/A"}},{"$f":"IF(INDIRECT(\"c\" & (VLOOKUP(Rebalance!$D$33,$F$2:$G$48,2,FALSE)+ROW()-2))=Rebalance!$D$33,INDIRECT(\"a\" & (VLOOKUP(Rebalance!$D$33,$F$2:$G$48,2,FALSE)+ROW()-2)),\"\")","v":{"$error":"#N/A"}},{"$f":"IF(INDIRECT(\"c\" & (VLOOKUP(Rebalance!$D$34,$F$2:$G$48,2,FALSE)+ROW()-2))=Rebalance!$D$34,INDIRECT(\"a\" & (VLOOKUP(Rebalance!$D$34,$F$2:$G$48,2,FALSE)+ROW()-2)),\"\")","v":{"$error":"#N/A"}},{"$f":"IF(INDIRECT(\"c\" & (VLOOKUP(Rebalance!$D$35,$F$2:$G$48,2,FALSE)+ROW()-2))=Rebalance!$D$35,INDIRECT(\"a\" & (VLOOKUP(Rebalance!$D$35,$F$2:$G$48,2,FALSE)+ROW()-2)),\"\")","v":{"$error":"#N/A"}},{"$f":"IF(INDIRECT(\"c\" & (VLOOKUP(Rebalance!$D$36,$F$2:$G$48,2,FALSE)+ROW()-2))=Rebalance!$D$36,INDIRECT(\"a\" & (VLOOKUP(Rebalance!$D$36,$F$2:$G$48,2,FALSE)+ROW()-2)),\"\")","v":{"$error":"#N/A"}},{"$f":"IF(INDIRECT(\"c\" & (VLOOKUP(Rebalance!$D$37,$F$2:$G$48,2,FALSE)+ROW()-2))=Rebalance!$D$37,INDIRECT(\"a\" & (VLOOKUP(Rebalance!$D$37,$F$2:$G$48,2,FALSE)+ROW()-2)),\"\")","v":{"$error":"#N/A"}},{"$f":"IF(INDIRECT(\"c\" & (VLOOKUP(Rebalance!$D$38,$F$2:$G$48,2,FALSE)+ROW()-2))=Rebalance!$D$38,INDIRECT(\"a\" & (VLOOKUP(Rebalance!$D$38,$F$2:$G$48,2,FALSE)+ROW()-2)),\"\")","v":{"$error":"#N/A"}},{"$f":"IF(INDIRECT(\"c\" & (VLOOKUP(Rebalance!$D$39,$F$2:$G$48,2,FALSE)+ROW()-2))=Rebalance!$D$39,INDIRECT(\"a\" & (VLOOKUP(Rebalance!$D$39,$F$2:$G$48,2,FALSE)+ROW()-2)),\"\")","v":{"$error":"#N/A"}},{"$f":"IF(INDIRECT(\"c\" & (VLOOKUP(Rebalance!$D$40,$F$2:$G$48,2,FALSE)+ROW()-2))=Rebalance!$D$40,INDIRECT(\"a\" & (VLOOKUP(Rebalance!$D$40,$F$2:$G$48,2,FALSE)+ROW()-2)),\"\")","v":{"$error":"#N/A"}},{"$f":"IF(INDIRECT(\"c\" & (VLOOKUP(Rebalance!$D$52,$F$2:$G$48,2,FALSE)+ROW()-2))=Rebalance!$D$52,INDIRECT(\"a\" & (VLOOKUP(Rebalance!$D$52,$F$2:$G$48,2,FALSE)+ROW()-2)),\"\")","v":{"$error":"#N/A"}},{"$f":"IF(INDIRECT(\"c\" & (VLOOKUP(Rebalance!$D$53,$F$2:$G$48,2,FALSE)+ROW()-2))=Rebalance!$D$53,INDIRECT(\"a\" & (VLOOKUP(Rebalance!$D$53,$F$2:$G$48,2,FALSE)+ROW()-2)),\"\")","v":{"$error":"#N/A"}},{"$f":"IF(INDIRECT(\"c\" & (VLOOKUP(Rebalance!$D$54,$F$2:$G$48,2,FALSE)+ROW()-2))=Rebalance!$D$54,INDIRECT(\"a\" & (VLOOKUP(Rebalance!$D$54,$F$2:$G$48,2,FALSE)+ROW()-2)),\"\")","v":{"$error":"#N/A"}},{"$f":"IF(INDIRECT(\"c\" & (VLOOKUP(Rebalance!$D$55,$F$2:$G$48,2,FALSE)+ROW()-2))=Rebalance!$D$55,INDIRECT(\"a\" & (VLOOKUP(Rebalance!$D$55,$F$2:$G$48,2,FALSE)+ROW()-2)),\"\")","v":{"$error":"#N/A"}},{"$f":"IF(INDIRECT(\"c\" & (VLOOKUP(Rebalance!$D$56,$F$2:$G$48,2,FALSE)+ROW()-2))=Rebalance!$D$56,INDIRECT(\"a\" & (VLOOKUP(Rebalance!$D$56,$F$2:$G$48,2,FALSE)+ROW()-2)),\"\")","v":{"$error":"#N/A"}},{"$f":"IF(INDIRECT(\"c\" & (VLOOKUP(Rebalance!$D$57,$F$2:$G$48,2,FALSE)+ROW()-2))=Rebalance!$D$57,INDIRECT(\"a\" & (VLOOKUP(Rebalance!$D$57,$F$2:$G$48,2,FALSE)+ROW()-2)),\"\")","v":{"$error":"#N/A"}},{"$f":"IF(INDIRECT(\"c\" & (VLOOKUP(Rebalance!$D$58,$F$2:$G$48,2,FALSE)+ROW()-2))=Rebalance!$D$58,INDIRECT(\"a\" & (VLOOKUP(Rebalance!$D$58,$F$2:$G$48,2,FALSE)+ROW()-2)),\"\")","v":{"$error":"#N/A"}},{"$f":"IF(INDIRECT(\"c\" & (VLOOKUP(Rebalance!$D$59,$F$2:$G$48,2,FALSE)+ROW()-2))=Rebalance!$D$59,INDIRECT(\"a\" & (VLOOKUP(Rebalance!$D$59,$F$2:$G$48,2,FALSE)+ROW()-2)),\"\")","v":{"$error":"#N/A"}},{"$f":"IF(INDIRECT(\"c\" & (VLOOKUP(Rebalance!$D$60,$F$2:$G$48,2,FALSE)+ROW()-2))=Rebalance!$D$60,INDIRECT(\"a\" & (VLOOKUP(Rebalance!$D$60,$F$2:$G$48,2,FALSE)+ROW()-2)),\"\")","v":{"$error":"#N/A"}},{"$f":"IF(INDIRECT(\"c\" & (VLOOKUP(Rebalance!$D$61,$F$2:$G$48,2,FALSE)+ROW()-2))=Rebalance!$D$61,INDIRECT(\"a\" & (VLOOKUP(Rebalance!$D$61,$F$2:$G$48,2,FALSE)+ROW()-2)),\"\")","v":{"$error":"#N/A"}},{"$f":"IF(INDIRECT(\"c\" & (VLOOKUP(Rebalance!$D$62,$F$2:$G$48,2,FALSE)+ROW()-2))=Rebalance!$D$62,INDIRECT(\"a\" & (VLOOKUP(Rebalance!$D$62,$F$2:$G$48,2,FALSE)+ROW()-2)),\"\")","v":{"$error":"#N/A"}},{"$f":"IF(INDIRECT(\"c\" & (VLOOKUP(Rebalance!$D$63,$F$2:$G$48,2,FALSE)+ROW()-2))=Rebalance!$D$63,INDIRECT(\"a\" & (VLOOKUP(Rebalance!$D$63,$F$2:$G$48,2,FALSE)+ROW()-2)),\"\")","v":{"$error":"#N/A"}},{"$f":"IF(INDIRECT(\"c\" & (VLOOKUP(Rebalance!$D$64,$F$2:$G$48,2,FALSE)+ROW()-2))=Rebalance!$D$64,INDIRECT(\"a\" & (VLOOKUP(Rebalance!$D$64,$F$2:$G$48,2,FALSE)+ROW()-2)),\"\")","v":{"$error":"#N/A"}},{"$f":"IF(INDIRECT(\"c\" & (VLOOKUP(Rebalance!$D$65,$F$2:$G$48,2,FALSE)+ROW()-2))=Rebalance!$D$65,INDIRECT(\"a\" & (VLOOKUP(Rebalance!$D$65,$F$2:$G$48,2,FALSE)+ROW()-2)),\"\")","v":{"$error":"#N/A"}},{"$f":"IF(INDIRECT(\"c\" & (VLOOKUP(Rebalance!$D$66,$F$2:$G$48,2,FALSE)+ROW()-2))=Rebalance!$D$66,INDIRECT(\"a\" & (VLOOKUP(Rebalance!$D$66,$F$2:$G$48,2,FALSE)+ROW()-2)),\"\")","v":{"$error":"#N/A"}}]
["Dalebrook Equity Prescient Fund A3","NBIEA3","Prescient Management Company Ltd",{"$f":"ROW()","v":453},null,null,{"$f":"VLOOKUP(F453,$C$2:$D$599,2,FALSE)","v":{"$error":"#N/A"}},{"$f":"IF(INDIRECT(\"c\" & (VLOOKUP(Rebalance!$D$26,$F$2:$G$48,2,FALSE)+ROW()-2))=Rebalance!$D$26,INDIRECT(\"a\" & (VLOOKUP(Rebalance!$D$26,$F$2:$G$48,2,FALSE)+ROW()-2)),\"\")","v":{"$error":"#N/A"}},{"$f":"IF(INDIRECT(\"c\" & (VLOOKUP(Rebalance!$D$27,$F$2:$G$48,2,FALSE)+ROW()-2))=Rebalance!$D$27,INDIRECT(\"a\" & (VLOOKUP(Rebalance!$D$27,$F$2:$G$48,2,FALSE)+ROW()-2)),\"\")","v":{"$error":"#N/A"}},{"$f":"IF(INDIRECT(\"c\" & (VLOOKUP(Rebalance!$D$28,$F$2:$G$48,2,FALSE)+ROW()-2))=Rebalance!$D$28,INDIRECT(\"a\" & (VLOOKUP(Rebalance!$D$28,$F$2:$G$48,2,FALSE)+ROW()-2)),\"\")","v":{"$error":"#N/A"}},{"$f":"IF(INDIRECT(\"c\" & (VLOOKUP(Rebalance!$D$29,$F$2:$G$48,2,FALSE)+ROW()-2))=Rebalance!$D$29,INDIRECT(\"a\" & (VLOOKUP(Rebalance!$D$29,$F$2:$G$48,2,FALSE)+ROW()-2)),\"\")","v":{"$error":"#N/A"}},{"$f":"IF(INDIRECT(\"c\" & (VLOOKUP(Rebalance!$D$30,$F$2:$G$48,2,FALSE)+ROW()-2))=Rebalance!$D$30,INDIRECT(\"a\" & (VLOOKUP(Rebalance!$D$30,$F$2:$G$48,2,FALSE)+ROW()-2)),\"\")","v":{"$error":"#N/A"}},{"$f":"IF(INDIRECT(\"c\" & (VLOOKUP(Rebalance!$D$31,$F$2:$G$48,2,FALSE)+ROW()-2))=Rebalance!$D$31,INDIRECT(\"a\" & (VLOOKUP(Rebalance!$D$31,$F$2:$G$48,2,FALSE)+ROW()-2)),\"\")","v":{"$error":"#N/A"}},{"$f":"IF(INDIRECT(\"c\" & (VLOOKUP(Rebalance!$D$32,$F$2:$G$48,2,FALSE)+ROW()-2))=Rebalance!$D$32,INDIRECT(\"a\" & (VLOOKUP(Rebalance!$D$32,$F$2:$G$48,2,FALSE)+ROW()-2)),\"\")","v":{"$error":"#N/A"}},{"$f":"IF(INDIRECT(\"c\" & (VLOOKUP(Rebalance!$D$33,$F$2:$G$48,2,FALSE)+ROW()-2))=Rebalance!$D$33,INDIRECT(\"a\" & (VLOOKUP(Rebalance!$D$33,$F$2:$G$48,2,FALSE)+ROW()-2)),\"\")","v":{"$error":"#N/A"}},{"$f":"IF(INDIRECT(\"c\" & (VLOOKUP(Rebalance!$D$34,$F$2:$G$48,2,FALSE)+ROW()-2))=Rebalance!$D$34,INDIRECT(\"a\" & (VLOOKUP(Rebalance!$D$34,$F$2:$G$48,2,FALSE)+ROW()-2)),\"\")","v":{"$error":"#N/A"}},{"$f":"IF(INDIRECT(\"c\" & (VLOOKUP(Rebalance!$D$35,$F$2:$G$48,2,FALSE)+ROW()-2))=Rebalance!$D$35,INDIRECT(\"a\" & (VLOOKUP(Rebalance!$D$35,$F$2:$G$48,2,FALSE)+ROW()-2)),\"\")","v":{"$error":"#N/A"}},{"$f":"IF(INDIRECT(\"c\" & (VLOOKUP(Rebalance!$D$36,$F$2:$G$48,2,FALSE)+ROW()-2))=Rebalance!$D$36,INDIRECT(\"a\" & (VLOOKUP(Rebalance!$D$36,$F$2:$G$48,2,FALSE)+ROW()-2)),\"\")","v":{"$error":"#N/A"}},{"$f":"IF(INDIRECT(\"c\" & (VLOOKUP(Rebalance!$D$37,$F$2:$G$48,2,FALSE)+ROW()-2))=Rebalance!$D$37,INDIRECT(\"a\" & (VLOOKUP(Rebalance!$D$37,$F$2:$G$48,2,FALSE)+ROW()-2)),\"\")","v":{"$error":"#N/A"}},{"$f":"IF(INDIRECT(\"c\" & (VLOOKUP(Rebalance!$D$38,$F$2:$G$48,2,FALSE)+ROW()-2))=Rebalance!$D$38,INDIRECT(\"a\" & (VLOOKUP(Rebalance!$D$38,$F$2:$G$48,2,FALSE)+ROW()-2)),\"\")","v":{"$error":"#N/A"}},{"$f":"IF(INDIRECT(\"c\" & (VLOOKUP(Rebalance!$D$39,$F$2:$G$48,2,FALSE)+ROW()-2))=Rebalance!$D$39,INDIRECT(\"a\" & (VLOOKUP(Rebalance!$D$39,$F$2:$G$48,2,FALSE)+ROW()-2)),\"\")","v":{"$error":"#N/A"}},{"$f":"IF(INDIRECT(\"c\" & (VLOOKUP(Rebalance!$D$40,$F$2:$G$48,2,FALSE)+ROW()-2))=Rebalance!$D$40,INDIRECT(\"a\" & (VLOOKUP(Rebalance!$D$40,$F$2:$G$48,2,FALSE)+ROW()-2)),\"\")","v":{"$error":"#N/A"}},{"$f":"IF(INDIRECT(\"c\" & (VLOOKUP(Rebalance!$D$52,$F$2:$G$48,2,FALSE)+ROW()-2))=Rebalance!$D$52,INDIRECT(\"a\" & (VLOOKUP(Rebalance!$D$52,$F$2:$G$48,2,FALSE)+ROW()-2)),\"\")","v":{"$error":"#N/A"}},{"$f":"IF(INDIRECT(\"c\" & (VLOOKUP(Rebalance!$D$53,$F$2:$G$48,2,FALSE)+ROW()-2))=Rebalance!$D$53,INDIRECT(\"a\" & (VLOOKUP(Rebalance!$D$53,$F$2:$G$48,2,FALSE)+ROW()-2)),\"\")","v":{"$error":"#N/A"}},{"$f":"IF(INDIRECT(\"c\" & (VLOOKUP(Rebalance!$D$54,$F$2:$G$48,2,FALSE)+ROW()-2))=Rebalance!$D$54,INDIRECT(\"a\" & (VLOOKUP(Rebalance!$D$54,$F$2:$G$48,2,FALSE)+ROW()-2)),\"\")","v":{"$error":"#N/A"}},{"$f":"IF(INDIRECT(\"c\" & (VLOOKUP(Rebalance!$D$55,$F$2:$G$48,2,FALSE)+ROW()-2))=Rebalance!$D$55,INDIRECT(\"a\" & (VLOOKUP(Rebalance!$D$55,$F$2:$G$48,2,FALSE)+ROW()-2)),\"\")","v":{"$error":"#N/A"}},{"$f":"IF(INDIRECT(\"c\" & (VLOOKUP(Rebalance!$D$56,$F$2:$G$48,2,FALSE)+ROW()-2))=Rebalance!$D$56,INDIRECT(\"a\" & (VLOOKUP(Rebalance!$D$56,$F$2:$G$48,2,FALSE)+ROW()-2)),\"\")","v":{"$error":"#N/A"}},{"$f":"IF(INDIRECT(\"c\" & (VLOOKUP(Rebalance!$D$57,$F$2:$G$48,2,FALSE)+ROW()-2))=Rebalance!$D$57,INDIRECT(\"a\" & (VLOOKUP(Rebalance!$D$57,$F$2:$G$48,2,FALSE)+ROW()-2)),\"\")","v":{"$error":"#N/A"}},{"$f":"IF(INDIRECT(\"c\" & (VLOOKUP(Rebalance!$D$58,$F$2:$G$48,2,FALSE)+ROW()-2))=Rebalance!$D$58,INDIRECT(\"a\" & (VLOOKUP(Rebalance!$D$58,$F$2:$G$48,2,FALSE)+ROW()-2)),\"\")","v":{"$error":"#N/A"}},{"$f":"IF(INDIRECT(\"c\" & (VLOOKUP(Rebalance!$D$59,$F$2:$G$48,2,FALSE)+ROW()-2))=Rebalance!$D$59,INDIRECT(\"a\" & (VLOOKUP(Rebalance!$D$59,$F$2:$G$48,2,FALSE)+ROW()-2)),\"\")","v":{"$error":"#N/A"}},{"$f":"IF(INDIRECT(\"c\" & (VLOOKUP(Rebalance!$D$60,$F$2:$G$48,2,FALSE)+ROW()-2))=Rebalance!$D$60,INDIRECT(\"a\" & (VLOOKUP(Rebalance!$D$60,$F$2:$G$48,2,FALSE)+ROW()-2)),\"\")","v":{"$error":"#N/A"}},{"$f":"IF(INDIRECT(\"c\" & (VLOOKUP(Rebalance!$D$61,$F$2:$G$48,2,FALSE)+ROW()-2))=Rebalance!$D$61,INDIRECT(\"a\" & (VLOOKUP(Rebalance!$D$61,$F$2:$G$48,2,FALSE)+ROW()-2)),\"\")","v":{"$error":"#N/A"}},{"$f":"IF(INDIRECT(\"c\" & (VLOOKUP(Rebalance!$D$62,$F$2:$G$48,2,FALSE)+ROW()-2))=Rebalance!$D$62,INDIRECT(\"a\" & (VLOOKUP(Rebalance!$D$62,$F$2:$G$48,2,FALSE)+ROW()-2)),\"\")","v":{"$error":"#N/A"}},{"$f":"IF(INDIRECT(\"c\" & (VLOOKUP(Rebalance!$D$63,$F$2:$G$48,2,FALSE)+ROW()-2))=Rebalance!$D$63,INDIRECT(\"a\" & (VLOOKUP(Rebalance!$D$63,$F$2:$G$48,2,FALSE)+ROW()-2)),\"\")","v":{"$error":"#N/A"}},{"$f":"IF(INDIRECT(\"c\" & (VLOOKUP(Rebalance!$D$64,$F$2:$G$48,2,FALSE)+ROW()-2))=Rebalance!$D$64,INDIRECT(\"a\" & (VLOOKUP(Rebalance!$D$64,$F$2:$G$48,2,FALSE)+ROW()-2)),\"\")","v":{"$error":"#N/A"}},{"$f":"IF(INDIRECT(\"c\" & (VLOOKUP(Rebalance!$D$65,$F$2:$G$48,2,FALSE)+ROW()-2))=Rebalance!$D$65,INDIRECT(\"a\" & (VLOOKUP(Rebalance!$D$65,$F$2:$G$48,2,FALSE)+ROW()-2)),\"\")","v":{"$error":"#N/A"}},{"$f":"IF(INDIRECT(\"c\" & (VLOOKUP(Rebalance!$D$66,$F$2:$G$48,2,FALSE)+ROW()-2))=Rebalance!$D$66,INDIRECT(\"a\" & (VLOOKUP(Rebalance!$D$66,$F$2:$G$48,2,FALSE)+ROW()-2)),\"\")","v":{"$error":"#N/A"}}]
["Laurium Flexible Prescient Fund A1","LFPA1","Prescient Management Company Ltd",{"$f":"ROW()","v":454},null,null,{"$f":"VLOOKUP(F454,$C$2:$D$599,2,FALSE)","v":{"$error":"#N/A"}},{"$f":"IF(INDIRECT(\"c\" & (VLOOKUP(Rebalance!$D$26,$F$2:$G$48,2,FALSE)+ROW()-2))=Rebalance!$D$26,INDIRECT(\"a\" & (VLOOKUP(Rebalance!$D$26,$F$2:$G$48,2,FALSE)+ROW()-2)),\"\")","v":{"$error":"#N/A"}},{"$f":"IF(INDIRECT(\"c\" & (VLOOKUP(Rebalance!$D$27,$F$2:$G$48,2,FALSE)+ROW()-2))=Rebalance!$D$27,INDIRECT(\"a\" & (VLOOKUP(Rebalance!$D$27,$F$2:$G$48,2,FALSE)+ROW()-2)),\"\")","v":{"$error":"#N/A"}},{"$f":"IF(INDIRECT(\"c\" & (VLOOKUP(Rebalance!$D$28,$F$2:$G$48,2,FALSE)+ROW()-2))=Rebalance!$D$28,INDIRECT(\"a\" & (VLOOKUP(Rebalance!$D$28,$F$2:$G$48,2,FALSE)+ROW()-2)),\"\")","v":{"$error":"#N/A"}},{"$f":"IF(INDIRECT(\"c\" & (VLOOKUP(Rebalance!$D$29,$F$2:$G$48,2,FALSE)+ROW()-2))=Rebalance!$D$29,INDIRECT(\"a\" & (VLOOKUP(Rebalance!$D$29,$F$2:$G$48,2,FALSE)+ROW()-2)),\"\")","v":{"$error":"#N/A"}},{"$f":"IF(INDIRECT(\"c\" & (VLOOKUP(Rebalance!$D$30,$F$2:$G$48,2,FALSE)+ROW()-2))=Rebalance!$D$30,INDIRECT(\"a\" & (VLOOKUP(Rebalance!$D$30,$F$2:$G$48,2,FALSE)+ROW()-2)),\"\")","v":{"$error":"#N/A"}},{"$f":"IF(INDIRECT(\"c\" & (VLOOKUP(Rebalance!$D$31,$F$2:$G$48,2,FALSE)+ROW()-2))=Rebalance!$D$31,INDIRECT(\"a\" & (VLOOKUP(Rebalance!$D$31,$F$2:$G$48,2,FALSE)+ROW()-2)),\"\")","v":{"$error":"#N/A"}},{"$f":"IF(INDIRECT(\"c\" & (VLOOKUP(Rebalance!$D$32,$F$2:$G$48,2,FALSE)+ROW()-2))=Rebalance!$D$32,INDIRECT(\"a\" & (VLOOKUP(Rebalance!$D$32,$F$2:$G$48,2,FALSE)+ROW()-2)),\"\")","v":{"$error":"#N/A"}},{"$f":"IF(INDIRECT(\"c\" & (VLOOKUP(Rebalance!$D$33,$F$2:$G$48,2,FALSE)+ROW()-2))=Rebalance!$D$33,INDIRECT(\"a\" & (VLOOKUP(Rebalance!$D$33,$F$2:$G$48,2,FALSE)+ROW()-2)),\"\")","v":{"$error":"#N/A"}},{"$f":"IF(INDIRECT(\"c\" & (VLOOKUP(Rebalance!$D$34,$F$2:$G$48,2,FALSE)+ROW()-2))=Rebalance!$D$34,INDIRECT(\"a\" & (VLOOKUP(Rebalance!$D$34,$F$2:$G$48,2,FALSE)+ROW()-2)),\"\")","v":{"$error":"#N/A"}},{"$f":"IF(INDIRECT(\"c\" & (VLOOKUP(Rebalance!$D$35,$F$2:$G$48,2,FALSE)+ROW()-2))=Rebalance!$D$35,INDIRECT(\"a\" & (VLOOKUP(Rebalance!$D$35,$F$2:$G$48,2,FALSE)+ROW()-2)),\"\")","v":{"$error":"#N/A"}},{"$f":"IF(INDIRECT(\"c\" & (VLOOKUP(Rebalance!$D$36,$F$2:$G$48,2,FALSE)+ROW()-2))=Rebalance!$D$36,INDIRECT(\"a\" & (VLOOKUP(Rebalance!$D$36,$F$2:$G$48,2,FALSE)+ROW()-2)),\"\")","v":{"$error":"#N/A"}},{"$f":"IF(INDIRECT(\"c\" & (VLOOKUP(Rebalance!$D$37,$F$2:$G$48,2,FALSE)+ROW()-2))=Rebalance!$D$37,INDIRECT(\"a\" & (VLOOKUP(Rebalance!$D$37,$F$2:$G$48,2,FALSE)+ROW()-2)),\"\")","v":{"$error":"#N/A"}},{"$f":"IF(INDIRECT(\"c\" & (VLOOKUP(Rebalance!$D$38,$F$2:$G$48,2,FALSE)+ROW()-2))=Rebalance!$D$38,INDIRECT(\"a\" & (VLOOKUP(Rebalance!$D$38,$F$2:$G$48,2,FALSE)+ROW()-2)),\"\")","v":{"$error":"#N/A"}},{"$f":"IF(INDIRECT(\"c\" & (VLOOKUP(Rebalance!$D$39,$F$2:$G$48,2,FALSE)+ROW()-2))=Rebalance!$D$39,INDIRECT(\"a\" & (VLOOKUP(Rebalance!$D$39,$F$2:$G$48,2,FALSE)+ROW()-2)),\"\")","v":{"$error":"#N/A"}},{"$f":"IF(INDIRECT(\"c\" & (VLOOKUP(Rebalance!$D$40,$F$2:$G$48,2,FALSE)+ROW()-2))=Rebalance!$D$40,INDIRECT(\"a\" & (VLOOKUP(Rebalance!$D$40,$F$2:$G$48,2,FALSE)+ROW()-2)),\"\")","v":{"$error":"#N/A"}},{"$f":"IF(INDIRECT(\"c\" & (VLOOKUP(Rebalance!$D$52,$F$2:$G$48,2,FALSE)+ROW()-2))=Rebalance!$D$52,INDIRECT(\"a\" & (VLOOKUP(Rebalance!$D$52,$F$2:$G$48,2,FALSE)+ROW()-2)),\"\")","v":{"$error":"#N/A"}},{"$f":"IF(INDIRECT(\"c\" & (VLOOKUP(Rebalance!$D$53,$F$2:$G$48,2,FALSE)+ROW()-2))=Rebalance!$D$53,INDIRECT(\"a\" & (VLOOKUP(Rebalance!$D$53,$F$2:$G$48,2,FALSE)+ROW()-2)),\"\")","v":{"$error":"#N/A"}},{"$f":"IF(INDIRECT(\"c\" & (VLOOKUP(Rebalance!$D$54,$F$2:$G$48,2,FALSE)+ROW()-2))=Rebalance!$D$54,INDIRECT(\"a\" & (VLOOKUP(Rebalance!$D$54,$F$2:$G$48,2,FALSE)+ROW()-2)),\"\")","v":{"$error":"#N/A"}},{"$f":"IF(INDIRECT(\"c\" & (VLOOKUP(Rebalance!$D$55,$F$2:$G$48,2,FALSE)+ROW()-2))=Rebalance!$D$55,INDIRECT(\"a\" & (VLOOKUP(Rebalance!$D$55,$F$2:$G$48,2,FALSE)+ROW()-2)),\"\")","v":{"$error":"#N/A"}},{"$f":"IF(INDIRECT(\"c\" & (VLOOKUP(Rebalance!$D$56,$F$2:$G$48,2,FALSE)+ROW()-2))=Rebalance!$D$56,INDIRECT(\"a\" & (VLOOKUP(Rebalance!$D$56,$F$2:$G$48,2,FALSE)+ROW()-2)),\"\")","v":{"$error":"#N/A"}},{"$f":"IF(INDIRECT(\"c\" & (VLOOKUP(Rebalance!$D$57,$F$2:$G$48,2,FALSE)+ROW()-2))=Rebalance!$D$57,INDIRECT(\"a\" & (VLOOKUP(Rebalance!$D$57,$F$2:$G$48,2,FALSE)+ROW()-2)),\"\")","v":{"$error":"#N/A"}},{"$f":"IF(INDIRECT(\"c\" & (VLOOKUP(Rebalance!$D$58,$F$2:$G$48,2,FALSE)+ROW()-2))=Rebalance!$D$58,INDIRECT(\"a\" & (VLOOKUP(Rebalance!$D$58,$F$2:$G$48,2,FALSE)+ROW()-2)),\"\")","v":{"$error":"#N/A"}},{"$f":"IF(INDIRECT(\"c\" & (VLOOKUP(Rebalance!$D$59,$F$2:$G$48,2,FALSE)+ROW()-2))=Rebalance!$D$59,INDIRECT(\"a\" & (VLOOKUP(Rebalance!$D$59,$F$2:$G$48,2,FALSE)+ROW()-2)),\"\")","v":{"$error":"#N/A"}},{"$f":"IF(INDIRECT(\"c\" & (VLOOKUP(Rebalance!$D$60,$F$2:$G$48,2,FALSE)+ROW()-2))=Rebalance!$D$60,INDIRECT(\"a\" & (VLOOKUP(Rebalance!$D$60,$F$2:$G$48,2,FALSE)+ROW()-2)),\"\")","v":{"$error":"#N/A"}},{"$f":"IF(INDIRECT(\"c\" & (VLOOKUP(Rebalance!$D$61,$F$2:$G$48,2,FALSE)+ROW()-2))=Rebalance!$D$61,INDIRECT(\"a\" & (VLOOKUP(Rebalance!$D$61,$F$2:$G$48,2,FALSE)+ROW()-2)),\"\")","v":{"$error":"#N/A"}},{"$f":"IF(INDIRECT(\"c\" & (VLOOKUP(Rebalance!$D$62,$F$2:$G$48,2,FALSE)+ROW()-2))=Rebalance!$D$62,INDIRECT(\"a\" & (VLOOKUP(Rebalance!$D$62,$F$2:$G$48,2,FALSE)+ROW()-2)),\"\")","v":{"$error":"#N/A"}},{"$f":"IF(INDIRECT(\"c\" & (VLOOKUP(Rebalance!$D$63,$F$2:$G$48,2,FALSE)+ROW()-2))=Rebalance!$D$63,INDIRECT(\"a\" & (VLOOKUP(Rebalance!$D$63,$F$2:$G$48,2,FALSE)+ROW()-2)),\"\")","v":{"$error":"#N/A"}},{"$f":"IF(INDIRECT(\"c\" & (VLOOKUP(Rebalance!$D$64,$F$2:$G$48,2,FALSE)+ROW()-2))=Rebalance!$D$64,INDIRECT(\"a\" & (VLOOKUP(Rebalance!$D$64,$F$2:$G$48,2,FALSE)+ROW()-2)),\"\")","v":{"$error":"#N/A"}},{"$f":"IF(INDIRECT(\"c\" & (VLOOKUP(Rebalance!$D$65,$F$2:$G$48,2,FALSE)+ROW()-2))=Rebalance!$D$65,INDIRECT(\"a\" & (VLOOKUP(Rebalance!$D$65,$F$2:$G$48,2,FALSE)+ROW()-2)),\"\")","v":{"$error":"#N/A"}},{"$f":"IF(INDIRECT(\"c\" & (VLOOKUP(Rebalance!$D$66,$F$2:$G$48,2,FALSE)+ROW()-2))=Rebalance!$D$66,INDIRECT(\"a\" & (VLOOKUP(Rebalance!$D$66,$F$2:$G$48,2,FALSE)+ROW()-2)),\"\")","v":{"$error":"#N/A"}}]
["Laurium Flexible Prescient Fund B4","LFPA1","Prescient Management Company Ltd",{"$f":"ROW()","v":455},null,null,{"$f":"VLOOKUP(F455,$C$2:$D$599,2,FALSE)","v":{"$error":"#N/A"}},{"$f":"IF(INDIRECT(\"c\" & (VLOOKUP(Rebalance!$D$26,$F$2:$G$48,2,FALSE)+ROW()-2))=Rebalance!$D$26,INDIRECT(\"a\" & (VLOOKUP(Rebalance!$D$26,$F$2:$G$48,2,FALSE)+ROW()-2)),\"\")","v":{"$error":"#N/A"}},{"$f":"IF(INDIRECT(\"c\" & (VLOOKUP(Rebalance!$D$27,$F$2:$G$48,2,FALSE)+ROW()-2))=Rebalance!$D$27,INDIRECT(\"a\" & (VLOOKUP(Rebalance!$D$27,$F$2:$G$48,2,FALSE)+ROW()-2)),\"\")","v":{"$error":"#N/A"}},{"$f":"IF(INDIRECT(\"c\" & (VLOOKUP(Rebalance!$D$28,$F$2:$G$48,2,FALSE)+ROW()-2))=Rebalance!$D$28,INDIRECT(\"a\" & (VLOOKUP(Rebalance!$D$28,$F$2:$G$48,2,FALSE)+ROW()-2)),\"\")","v":{"$error":"#N/A"}},{"$f":"IF(INDIRECT(\"c\" & (VLOOKUP(Rebalance!$D$29,$F$2:$G$48,2,FALSE)+ROW()-2))=Rebalance!$D$29,INDIRECT(\"a\" & (VLOOKUP(Rebalance!$D$29,$F$2:$G$48,2,FALSE)+ROW()-2)),\"\")","v":{"$error":"#N/A"}},{"$f":"IF(INDIRECT(\"c\" & (VLOOKUP(Rebalance!$D$30,$F$2:$G$48,2,FALSE)+ROW()-2))=Rebalance!$D$30,INDIRECT(\"a\" & (VLOOKUP(Rebalance!$D$30,$F$2:$G$48,2,FALSE)+ROW()-2)),\"\")","v":{"$error":"#N/A"}},{"$f":"IF(INDIRECT(\"c\" & (VLOOKUP(Rebalance!$D$31,$F$2:$G$48,2,FALSE)+ROW()-2))=Rebalance!$D$31,INDIRECT(\"a\" & (VLOOKUP(Rebalance!$D$31,$F$2:$G$48,2,FALSE)+ROW()-2)),\"\")","v":{"$error":"#N/A"}},{"$f":"IF(INDIRECT(\"c\" & (VLOOKUP(Rebalance!$D$32,$F$2:$G$48,2,FALSE)+ROW()-2))=Rebalance!$D$32,INDIRECT(\"a\" & (VLOOKUP(Rebalance!$D$32,$F$2:$G$48,2,FALSE)+ROW()-2)),\"\")","v":{"$error":"#N/A"}},{"$f":"IF(INDIRECT(\"c\" & (VLOOKUP(Rebalance!$D$33,$F$2:$G$48,2,FALSE)+ROW()-2))=Rebalance!$D$33,INDIRECT(\"a\" & (VLOOKUP(Rebalance!$D$33,$F$2:$G$48,2,FALSE)+ROW()-2)),\"\")","v":{"$error":"#N/A"}},{"$f":"IF(INDIRECT(\"c\" & (VLOOKUP(Rebalance!$D$34,$F$2:$G$48,2,FALSE)+ROW()-2))=Rebalance!$D$34,INDIRECT(\"a\" & (VLOOKUP(Rebalance!$D$34,$F$2:$G$48,2,FALSE)+ROW()-2)),\"\")","v":{"$error":"#N/A"}},{"$f":"IF(INDIRECT(\"c\" & (VLOOKUP(Rebalance!$D$35,$F$2:$G$48,2,FALSE)+ROW()-2))=Rebalance!$D$35,INDIRECT(\"a\" & (VLOOKUP(Rebalance!$D$35,$F$2:$G$48,2,FALSE)+ROW()-2)),\"\")","v":{"$error":"#N/A"}},{"$f":"IF(INDIRECT(\"c\" & (VLOOKUP(Rebalance!$D$36,$F$2:$G$48,2,FALSE)+ROW()-2))=Rebalance!$D$36,INDIRECT(\"a\" & (VLOOKUP(Rebalance!$D$36,$F$2:$G$48,2,FALSE)+ROW()-2)),\"\")","v":{"$error":"#N/A"}},{"$f":"IF(INDIRECT(\"c\" & (VLOOKUP(Rebalance!$D$37,$F$2:$G$48,2,FALSE)+ROW()-2))=Rebalance!$D$37,INDIRECT(\"a\" & (VLOOKUP(Rebalance!$D$37,$F$2:$G$48,2,FALSE)+ROW()-2)),\"\")","v":{"$error":"#N/A"}},{"$f":"IF(INDIRECT(\"c\" & (VLOOKUP(Rebalance!$D$38,$F$2:$G$48,2,FALSE)+ROW()-2))=Rebalance!$D$38,INDIRECT(\"a\" & (VLOOKUP(Rebalance!$D$38,$F$2:$G$48,2,FALSE)+ROW()-2)),\"\")","v":{"$error":"#N/A"}},{"$f":"IF(INDIRECT(\"c\" & (VLOOKUP(Rebalance!$D$39,$F$2:$G$48,2,FALSE)+ROW()-2))=Rebalance!$D$39,INDIRECT(\"a\" & (VLOOKUP(Rebalance!$D$39,$F$2:$G$48,2,FALSE)+ROW()-2)),\"\")","v":{"$error":"#N/A"}},{"$f":"IF(INDIRECT(\"c\" & (VLOOKUP(Rebalance!$D$40,$F$2:$G$48,2,FALSE)+ROW()-2))=Rebalance!$D$40,INDIRECT(\"a\" & (VLOOKUP(Rebalance!$D$40,$F$2:$G$48,2,FALSE)+ROW()-2)),\"\")","v":{"$error":"#N/A"}},{"$f":"IF(INDIRECT(\"c\" & (VLOOKUP(Rebalance!$D$52,$F$2:$G$48,2,FALSE)+ROW()-2))=Rebalance!$D$52,INDIRECT(\"a\" & (VLOOKUP(Rebalance!$D$52,$F$2:$G$48,2,FALSE)+ROW()-2)),\"\")","v":{"$error":"#N/A"}},{"$f":"IF(INDIRECT(\"c\" & (VLOOKUP(Rebalance!$D$53,$F$2:$G$48,2,FALSE)+ROW()-2))=Rebalance!$D$53,INDIRECT(\"a\" & (VLOOKUP(Rebalance!$D$53,$F$2:$G$48,2,FALSE)+ROW()-2)),\"\")","v":{"$error":"#N/A"}},{"$f":"IF(INDIRECT(\"c\" & (VLOOKUP(Rebalance!$D$54,$F$2:$G$48,2,FALSE)+ROW()-2))=Rebalance!$D$54,INDIRECT(\"a\" & (VLOOKUP(Rebalance!$D$54,$F$2:$G$48,2,FALSE)+ROW()-2)),\"\")","v":{"$error":"#N/A"}},{"$f":"IF(INDIRECT(\"c\" & (VLOOKUP(Rebalance!$D$55,$F$2:$G$48,2,FALSE)+ROW()-2))=Rebalance!$D$55,INDIRECT(\"a\" & (VLOOKUP(Rebalance!$D$55,$F$2:$G$48,2,FALSE)+ROW()-2)),\"\")","v":{"$error":"#N/A"}},{"$f":"IF(INDIRECT(\"c\" & (VLOOKUP(Rebalance!$D$56,$F$2:$G$48,2,FALSE)+ROW()-2))=Rebalance!$D$56,INDIRECT(\"a\" & (VLOOKUP(Rebalance!$D$56,$F$2:$G$48,2,FALSE)+ROW()-2)),\"\")","v":{"$error":"#N/A"}},{"$f":"IF(INDIRECT(\"c\" & (VLOOKUP(Rebalance!$D$57,$F$2:$G$48,2,FALSE)+ROW()-2))=Rebalance!$D$57,INDIRECT(\"a\" & (VLOOKUP(Rebalance!$D$57,$F$2:$G$48,2,FALSE)+ROW()-2)),\"\")","v":{"$error":"#N/A"}},{"$f":"IF(INDIRECT(\"c\" & (VLOOKUP(Rebalance!$D$58,$F$2:$G$48,2,FALSE)+ROW()-2))=Rebalance!$D$58,INDIRECT(\"a\" & (VLOOKUP(Rebalance!$D$58,$F$2:$G$48,2,FALSE)+ROW()-2)),\"\")","v":{"$error":"#N/A"}},{"$f":"IF(INDIRECT(\"c\" & (VLOOKUP(Rebalance!$D$59,$F$2:$G$48,2,FALSE)+ROW()-2))=Rebalance!$D$59,INDIRECT(\"a\" & (VLOOKUP(Rebalance!$D$59,$F$2:$G$48,2,FALSE)+ROW()-2)),\"\")","v":{"$error":"#N/A"}},{"$f":"IF(INDIRECT(\"c\" & (VLOOKUP(Rebalance!$D$60,$F$2:$G$48,2,FALSE)+ROW()-2))=Rebalance!$D$60,INDIRECT(\"a\" & (VLOOKUP(Rebalance!$D$60,$F$2:$G$48,2,FALSE)+ROW()-2)),\"\")","v":{"$error":"#N/A"}},{"$f":"IF(INDIRECT(\"c\" & (VLOOKUP(Rebalance!$D$61,$F$2:$G$48,2,FALSE)+ROW()-2))=Rebalance!$D$61,INDIRECT(\"a\" & (VLOOKUP(Rebalance!$D$61,$F$2:$G$48,2,FALSE)+ROW()-2)),\"\")","v":{"$error":"#N/A"}},{"$f":"IF(INDIRECT(\"c\" & (VLOOKUP(Rebalance!$D$62,$F$2:$G$48,2,FALSE)+ROW()-2))=Rebalance!$D$62,INDIRECT(\"a\" & (VLOOKUP(Rebalance!$D$62,$F$2:$G$48,2,FALSE)+ROW()-2)),\"\")","v":{"$error":"#N/A"}},{"$f":"IF(INDIRECT(\"c\" & (VLOOKUP(Rebalance!$D$63,$F$2:$G$48,2,FALSE)+ROW()-2))=Rebalance!$D$63,INDIRECT(\"a\" & (VLOOKUP(Rebalance!$D$63,$F$2:$G$48,2,FALSE)+ROW()-2)),\"\")","v":{"$error":"#N/A"}},{"$f":"IF(INDIRECT(\"c\" & (VLOOKUP(Rebalance!$D$64,$F$2:$G$48,2,FALSE)+ROW()-2))=Rebalance!$D$64,INDIRECT(\"a\" & (VLOOKUP(Rebalance!$D$64,$F$2:$G$48,2,FALSE)+ROW()-2)),\"\")","v":{"$error":"#N/A"}},{"$f":"IF(INDIRECT(\"c\" & (VLOOKUP(Rebalance!$D$65,$F$2:$G$48,2,FALSE)+ROW()-2))=Rebalance!$D$65,INDIRECT(\"a\" & (VLOOKUP(Rebalance!$D$65,$F$2:$G$48,2,FALSE)+ROW()-2)),\"\")","v":{"$error":"#N/A"}},{"$f":"IF(INDIRECT(\"c\" & (VLOOKUP(Rebalance!$D$66,$F$2:$G$48,2,FALSE)+ROW()-2))=Rebalance!$D$66,INDIRECT(\"a\" & (VLOOKUP(Rebalance!$D$66,$F$2:$G$48,2,FALSE)+ROW()-2)),\"\")","v":{"$error":"#N/A"}}]
["Laurium Balanced Prescient Fund","LBPA2","Prescient Management Company Ltd",{"$f":"ROW()","v":456},null,null,{"$f":"VLOOKUP(F456,$C$2:$D$599,2,FALSE)","v":{"$error":"#N/A"}},{"$f":"IF(INDIRECT(\"c\" & (VLOOKUP(Rebalance!$D$26,$F$2:$G$48,2,FALSE)+ROW()-2))=Rebalance!$D$26,INDIRECT(\"a\" & (VLOOKUP(Rebalance!$D$26,$F$2:$G$48,2,FALSE)+ROW()-2)),\"\")","v":{"$error":"#N/A"}},{"$f":"IF(INDIRECT(\"c\" & (VLOOKUP(Rebalance!$D$27,$F$2:$G$48,2,FALSE)+ROW()-2))=Rebalance!$D$27,INDIRECT(\"a\" & (VLOOKUP(Rebalance!$D$27,$F$2:$G$48,2,FALSE)+ROW()-2)),\"\")","v":{"$error":"#N/A"}},{"$f":"IF(INDIRECT(\"c\" & (VLOOKUP(Rebalance!$D$28,$F$2:$G$48,2,FALSE)+ROW()-2))=Rebalance!$D$28,INDIRECT(\"a\" & (VLOOKUP(Rebalance!$D$28,$F$2:$G$48,2,FALSE)+ROW()-2)),\"\")","v":{"$error":"#N/A"}},{"$f":"IF(INDIRECT(\"c\" & (VLOOKUP(Rebalance!$D$29,$F$2:$G$48,2,FALSE)+ROW()-2))=Rebalance!$D$29,INDIRECT(\"a\" & (VLOOKUP(Rebalance!$D$29,$F$2:$G$48,2,FALSE)+ROW()-2)),\"\")","v":{"$error":"#N/A"}},{"$f":"IF(INDIRECT(\"c\" & (VLOOKUP(Rebalance!$D$30,$F$2:$G$48,2,FALSE)+ROW()-2))=Rebalance!$D$30,INDIRECT(\"a\" & (VLOOKUP(Rebalance!$D$30,$F$2:$G$48,2,FALSE)+ROW()-2)),\"\")","v":{"$error":"#N/A"}},{"$f":"IF(INDIRECT(\"c\" & (VLOOKUP(Rebalance!$D$31,$F$2:$G$48,2,FALSE)+ROW()-2))=Rebalance!$D$31,INDIRECT(\"a\" & (VLOOKUP(Rebalance!$D$31,$F$2:$G$48,2,FALSE)+ROW()-2)),\"\")","v":{"$error":"#N/A"}},{"$f":"IF(INDIRECT(\"c\" & (VLOOKUP(Rebalance!$D$32,$F$2:$G$48,2,FALSE)+ROW()-2))=Rebalance!$D$32,INDIRECT(\"a\" & (VLOOKUP(Rebalance!$D$32,$F$2:$G$48,2,FALSE)+ROW()-2)),\"\")","v":{"$error":"#N/A"}},{"$f":"IF(INDIRECT(\"c\" & (VLOOKUP(Rebalance!$D$33,$F$2:$G$48,2,FALSE)+ROW()-2))=Rebalance!$D$33,INDIRECT(\"a\" & (VLOOKUP(Rebalance!$D$33,$F$2:$G$48,2,FALSE)+ROW()-2)),\"\")","v":{"$error":"#N/A"}},{"$f":"IF(INDIRECT(\"c\" & (VLOOKUP(Rebalance!$D$34,$F$2:$G$48,2,FALSE)+ROW()-2))=Rebalance!$D$34,INDIRECT(\"a\" & (VLOOKUP(Rebalance!$D$34,$F$2:$G$48,2,FALSE)+ROW()-2)),\"\")","v":{"$error":"#N/A"}},{"$f":"IF(INDIRECT(\"c\" & (VLOOKUP(Rebalance!$D$35,$F$2:$G$48,2,FALSE)+ROW()-2))=Rebalance!$D$35,INDIRECT(\"a\" & (VLOOKUP(Rebalance!$D$35,$F$2:$G$48,2,FALSE)+ROW()-2)),\"\")","v":{"$error":"#N/A"}},{"$f":"IF(INDIRECT(\"c\" & (VLOOKUP(Rebalance!$D$36,$F$2:$G$48,2,FALSE)+ROW()-2))=Rebalance!$D$36,INDIRECT(\"a\" & (VLOOKUP(Rebalance!$D$36,$F$2:$G$48,2,FALSE)+ROW()-2)),\"\")","v":{"$error":"#N/A"}},{"$f":"IF(INDIRECT(\"c\" & (VLOOKUP(Rebalance!$D$37,$F$2:$G$48,2,FALSE)+ROW()-2))=Rebalance!$D$37,INDIRECT(\"a\" & (VLOOKUP(Rebalance!$D$37,$F$2:$G$48,2,FALSE)+ROW()-2)),\"\")","v":{"$error":"#N/A"}},{"$f":"IF(INDIRECT(\"c\" & (VLOOKUP(Rebalance!$D$38,$F$2:$G$48,2,FALSE)+ROW()-2))=Rebalance!$D$38,INDIRECT(\"a\" & (VLOOKUP(Rebalance!$D$38,$F$2:$G$48,2,FALSE)+ROW()-2)),\"\")","v":{"$error":"#N/A"}},{"$f":"IF(INDIRECT(\"c\" & (VLOOKUP(Rebalance!$D$39,$F$2:$G$48,2,FALSE)+ROW()-2))=Rebalance!$D$39,INDIRECT(\"a\" & (VLOOKUP(Rebalance!$D$39,$F$2:$G$48,2,FALSE)+ROW()-2)),\"\")","v":{"$error":"#N/A"}},{"$f":"IF(INDIRECT(\"c\" & (VLOOKUP(Rebalance!$D$40,$F$2:$G$48,2,FALSE)+ROW()-2))=Rebalance!$D$40,INDIRECT(\"a\" & (VLOOKUP(Rebalance!$D$40,$F$2:$G$48,2,FALSE)+ROW()-2)),\"\")","v":{"$error":"#N/A"}},{"$f":"IF(INDIRECT(\"c\" & (VLOOKUP(Rebalance!$D$52,$F$2:$G$48,2,FALSE)+ROW()-2))=Rebalance!$D$52,INDIRECT(\"a\" & (VLOOKUP(Rebalance!$D$52,$F$2:$G$48,2,FALSE)+ROW()-2)),\"\")","v":{"$error":"#N/A"}},{"$f":"IF(INDIRECT(\"c\" & (VLOOKUP(Rebalance!$D$53,$F$2:$G$48,2,FALSE)+ROW()-2))=Rebalance!$D$53,INDIRECT(\"a\" & (VLOOKUP(Rebalance!$D$53,$F$2:$G$48,2,FALSE)+ROW()-2)),\"\")","v":{"$error":"#N/A"}},{"$f":"IF(INDIRECT(\"c\" & (VLOOKUP(Rebalance!$D$54,$F$2:$G$48,2,FALSE)+ROW()-2))=Rebalance!$D$54,INDIRECT(\"a\" & (VLOOKUP(Rebalance!$D$54,$F$2:$G$48,2,FALSE)+ROW()-2)),\"\")","v":{"$error":"#N/A"}},{"$f":"IF(INDIRECT(\"c\" & (VLOOKUP(Rebalance!$D$55,$F$2:$G$48,2,FALSE)+ROW()-2))=Rebalance!$D$55,INDIRECT(\"a\" & (VLOOKUP(Rebalance!$D$55,$F$2:$G$48,2,FALSE)+ROW()-2)),\"\")","v":{"$error":"#N/A"}},{"$f":"IF(INDIRECT(\"c\" & (VLOOKUP(Rebalance!$D$56,$F$2:$G$48,2,FALSE)+ROW()-2))=Rebalance!$D$56,INDIRECT(\"a\" & (VLOOKUP(Rebalance!$D$56,$F$2:$G$48,2,FALSE)+ROW()-2)),\"\")","v":{"$error":"#N/A"}},{"$f":"IF(INDIRECT(\"c\" & (VLOOKUP(Rebalance!$D$57,$F$2:$G$48,2,FALSE)+ROW()-2))=Rebalance!$D$57,INDIRECT(\"a\" & (VLOOKUP(Rebalance!$D$57,$F$2:$G$48,2,FALSE)+ROW()-2)),\"\")","v":{"$error":"#N/A"}},{"$f":"IF(INDIRECT(\"c\" & (VLOOKUP(Rebalance!$D$58,$F$2:$G$48,2,FALSE)+ROW()-2))=Rebalance!$D$58,INDIRECT(\"a\" & (VLOOKUP(Rebalance!$D$58,$F$2:$G$48,2,FALSE)+ROW()-2)),\"\")","v":{"$error":"#N/A"}},{"$f":"IF(INDIRECT(\"c\" & (VLOOKUP(Rebalance!$D$59,$F$2:$G$48,2,FALSE)+ROW()-2))=Rebalance!$D$59,INDIRECT(\"a\" & (VLOOKUP(Rebalance!$D$59,$F$2:$G$48,2,FALSE)+ROW()-2)),\"\")","v":{"$error":"#N/A"}},{"$f":"IF(INDIRECT(\"c\" & (VLOOKUP(Rebalance!$D$60,$F$2:$G$48,2,FALSE)+ROW()-2))=Rebalance!$D$60,INDIRECT(\"a\" & (VLOOKUP(Rebalance!$D$60,$F$2:$G$48,2,FALSE)+ROW()-2)),\"\")","v":{"$error":"#N/A"}},{"$f":"IF(INDIRECT(\"c\" & (VLOOKUP(Rebalance!$D$61,$F$2:$G$48,2,FALSE)+ROW()-2))=Rebalance!$D$61,INDIRECT(\"a\" & (VLOOKUP(Rebalance!$D$61,$F$2:$G$48,2,FALSE)+ROW()-2)),\"\")","v":{"$error":"#N/A"}},{"$f":"IF(INDIRECT(\"c\" & (VLOOKUP(Rebalance!$D$62,$F$2:$G$48,2,FALSE)+ROW()-2))=Rebalance!$D$62,INDIRECT(\"a\" & (VLOOKUP(Rebalance!$D$62,$F$2:$G$48,2,FALSE)+ROW()-2)),\"\")","v":{"$error":"#N/A"}},{"$f":"IF(INDIRECT(\"c\" & (VLOOKUP(Rebalance!$D$63,$F$2:$G$48,2,FALSE)+ROW()-2))=Rebalance!$D$63,INDIRECT(\"a\" & (VLOOKUP(Rebalance!$D$63,$F$2:$G$48,2,FALSE)+ROW()-2)),\"\")","v":{"$error":"#N/A"}},{"$f":"IF(INDIRECT(\"c\" & (VLOOKUP(Rebalance!$D$64,$F$2:$G$48,2,FALSE)+ROW()-2))=Rebalance!$D$64,INDIRECT(\"a\" & (VLOOKUP(Rebalance!$D$64,$F$2:$G$48,2,FALSE)+ROW()-2)),\"\")","v":{"$error":"#N/A"}},{"$f":"IF(INDIRECT(\"c\" & (VLOOKUP(Rebalance!$D$65,$F$2:$G$48,2,FALSE)+ROW()-2))=Rebalance!$D$65,INDIRECT(\"a\" & (VLOOKUP(Rebalance!$D$65,$F$2:$G$48,2,FALSE)+ROW()-2)),\"\")","v":{"$error":"#N/A"}},{"$f":"IF(INDIRECT(\"c\" & (VLOOKUP(Rebalance!$D$66,$F$2:$G$48,2,FALSE)+ROW()-2))=Rebalance!$D$66,INDIRECT(\"a\" & (VLOOKUP(Rebalance!$D$66,$F$2:$G$48,2,FALSE)+ROW()-2)),\"\")","v":{"$error":"#N/A"}}]
["Laurium Equity Prescient Fund","LEPA1","Prescient Management Company Ltd",{"$f":"ROW()","v":457},null,null,{"$f":"VLOOKUP(F457,$C$2:$D$599,2,FALSE)","v":{"$error":"#N/A"}},{"$f":"IF(INDIRECT(\"c\" & (VLOOKUP(Rebalance!$D$26,$F$2:$G$48,2,FALSE)+ROW()-2))=Rebalance!$D$26,INDIRECT(\"a\" & (VLOOKUP(Rebalance!$D$26,$F$2:$G$48,2,FALSE)+ROW()-2)),\"\")","v":{"$error":"#N/A"}},{"$f":"IF(INDIRECT(\"c\" & (VLOOKUP(Rebalance!$D$27,$F$2:$G$48,2,FALSE)+ROW()-2))=Rebalance!$D$27,INDIRECT(\"a\" & (VLOOKUP(Rebalance!$D$27,$F$2:$G$48,2,FALSE)+ROW()-2)),\"\")","v":{"$error":"#N/A"}},{"$f":"IF(INDIRECT(\"c\" & (VLOOKUP(Rebalance!$D$28,$F$2:$G$48,2,FALSE)+ROW()-2))=Rebalance!$D$28,INDIRECT(\"a\" & (VLOOKUP(Rebalance!$D$28,$F$2:$G$48,2,FALSE)+ROW()-2)),\"\")","v":{"$error":"#N/A"}},{"$f":"IF(INDIRECT(\"c\" & (VLOOKUP(Rebalance!$D$29,$F$2:$G$48,2,FALSE)+ROW()-2))=Rebalance!$D$29,INDIRECT(\"a\" & (VLOOKUP(Rebalance!$D$29,$F$2:$G$48,2,FALSE)+ROW()-2)),\"\")","v":{"$error":"#N/A"}},{"$f":"IF(INDIRECT(\"c\" & (VLOOKUP(Rebalance!$D$30,$F$2:$G$48,2,FALSE)+ROW()-2))=Rebalance!$D$30,INDIRECT(\"a\" & (VLOOKUP(Rebalance!$D$30,$F$2:$G$48,2,FALSE)+ROW()-2)),\"\")","v":{"$error":"#N/A"}},{"$f":"IF(INDIRECT(\"c\" & (VLOOKUP(Rebalance!$D$31,$F$2:$G$48,2,FALSE)+ROW()-2))=Rebalance!$D$31,INDIRECT(\"a\" & (VLOOKUP(Rebalance!$D$31,$F$2:$G$48,2,FALSE)+ROW()-2)),\"\")","v":{"$error":"#N/A"}},{"$f":"IF(INDIRECT(\"c\" & (VLOOKUP(Rebalance!$D$32,$F$2:$G$48,2,FALSE)+ROW()-2))=Rebalance!$D$32,INDIRECT(\"a\" & (VLOOKUP(Rebalance!$D$32,$F$2:$G$48,2,FALSE)+ROW()-2)),\"\")","v":{"$error":"#N/A"}},{"$f":"IF(INDIRECT(\"c\" & (VLOOKUP(Rebalance!$D$33,$F$2:$G$48,2,FALSE)+ROW()-2))=Rebalance!$D$33,INDIRECT(\"a\" & (VLOOKUP(Rebalance!$D$33,$F$2:$G$48,2,FALSE)+ROW()-2)),\"\")","v":{"$error":"#N/A"}},{"$f":"IF(INDIRECT(\"c\" & (VLOOKUP(Rebalance!$D$34,$F$2:$G$48,2,FALSE)+ROW()-2))=Rebalance!$D$34,INDIRECT(\"a\" & (VLOOKUP(Rebalance!$D$34,$F$2:$G$48,2,FALSE)+ROW()-2)),\"\")","v":{"$error":"#N/A"}},{"$f":"IF(INDIRECT(\"c\" & (VLOOKUP(Rebalance!$D$35,$F$2:$G$48,2,FALSE)+ROW()-2))=Rebalance!$D$35,INDIRECT(\"a\" & (VLOOKUP(Rebalance!$D$35,$F$2:$G$48,2,FALSE)+ROW()-2)),\"\")","v":{"$error":"#N/A"}},{"$f":"IF(INDIRECT(\"c\" & (VLOOKUP(Rebalance!$D$36,$F$2:$G$48,2,FALSE)+ROW()-2))=Rebalance!$D$36,INDIRECT(\"a\" & (VLOOKUP(Rebalance!$D$36,$F$2:$G$48,2,FALSE)+ROW()-2)),\"\")","v":{"$error":"#N/A"}},{"$f":"IF(INDIRECT(\"c\" & (VLOOKUP(Rebalance!$D$37,$F$2:$G$48,2,FALSE)+ROW()-2))=Rebalance!$D$37,INDIRECT(\"a\" & (VLOOKUP(Rebalance!$D$37,$F$2:$G$48,2,FALSE)+ROW()-2)),\"\")","v":{"$error":"#N/A"}},{"$f":"IF(INDIRECT(\"c\" & (VLOOKUP(Rebalance!$D$38,$F$2:$G$48,2,FALSE)+ROW()-2))=Rebalance!$D$38,INDIRECT(\"a\" & (VLOOKUP(Rebalance!$D$38,$F$2:$G$48,2,FALSE)+ROW()-2)),\"\")","v":{"$error":"#N/A"}},{"$f":"IF(INDIRECT(\"c\" & (VLOOKUP(Rebalance!$D$39,$F$2:$G$48,2,FALSE)+ROW()-2))=Rebalance!$D$39,INDIRECT(\"a\" & (VLOOKUP(Rebalance!$D$39,$F$2:$G$48,2,FALSE)+ROW()-2)),\"\")","v":{"$error":"#N/A"}},{"$f":"IF(INDIRECT(\"c\" & (VLOOKUP(Rebalance!$D$40,$F$2:$G$48,2,FALSE)+ROW()-2))=Rebalance!$D$40,INDIRECT(\"a\" & (VLOOKUP(Rebalance!$D$40,$F$2:$G$48,2,FALSE)+ROW()-2)),\"\")","v":{"$error":"#N/A"}},{"$f":"IF(INDIRECT(\"c\" & (VLOOKUP(Rebalance!$D$52,$F$2:$G$48,2,FALSE)+ROW()-2))=Rebalance!$D$52,INDIRECT(\"a\" & (VLOOKUP(Rebalance!$D$52,$F$2:$G$48,2,FALSE)+ROW()-2)),\"\")","v":{"$error":"#N/A"}},{"$f":"IF(INDIRECT(\"c\" & (VLOOKUP(Rebalance!$D$53,$F$2:$G$48,2,FALSE)+ROW()-2))=Rebalance!$D$53,INDIRECT(\"a\" & (VLOOKUP(Rebalance!$D$53,$F$2:$G$48,2,FALSE)+ROW()-2)),\"\")","v":{"$error":"#N/A"}},{"$f":"IF(INDIRECT(\"c\" & (VLOOKUP(Rebalance!$D$54,$F$2:$G$48,2,FALSE)+ROW()-2))=Rebalance!$D$54,INDIRECT(\"a\" & (VLOOKUP(Rebalance!$D$54,$F$2:$G$48,2,FALSE)+ROW()-2)),\"\")","v":{"$error":"#N/A"}},{"$f":"IF(INDIRECT(\"c\" & (VLOOKUP(Rebalance!$D$55,$F$2:$G$48,2,FALSE)+ROW()-2))=Rebalance!$D$55,INDIRECT(\"a\" & (VLOOKUP(Rebalance!$D$55,$F$2:$G$48,2,FALSE)+ROW()-2)),\"\")","v":{"$error":"#N/A"}},{"$f":"IF(INDIRECT(\"c\" & (VLOOKUP(Rebalance!$D$56,$F$2:$G$48,2,FALSE)+ROW()-2))=Rebalance!$D$56,INDIRECT(\"a\" & (VLOOKUP(Rebalance!$D$56,$F$2:$G$48,2,FALSE)+ROW()-2)),\"\")","v":{"$error":"#N/A"}},{"$f":"IF(INDIRECT(\"c\" & (VLOOKUP(Rebalance!$D$57,$F$2:$G$48,2,FALSE)+ROW()-2))=Rebalance!$D$57,INDIRECT(\"a\" & (VLOOKUP(Rebalance!$D$57,$F$2:$G$48,2,FALSE)+ROW()-2)),\"\")","v":{"$error":"#N/A"}},{"$f":"IF(INDIRECT(\"c\" & (VLOOKUP(Rebalance!$D$58,$F$2:$G$48,2,FALSE)+ROW()-2))=Rebalance!$D$58,INDIRECT(\"a\" & (VLOOKUP(Rebalance!$D$58,$F$2:$G$48,2,FALSE)+ROW()-2)),\"\")","v":{"$error":"#N/A"}},{"$f":"IF(INDIRECT(\"c\" & (VLOOKUP(Rebalance!$D$59,$F$2:$G$48,2,FALSE)+ROW()-2))=Rebalance!$D$59,INDIRECT(\"a\" & (VLOOKUP(Rebalance!$D$59,$F$2:$G$48,2,FALSE)+ROW()-2)),\"\")","v":{"$error":"#N/A"}},{"$f":"IF(INDIRECT(\"c\" & (VLOOKUP(Rebalance!$D$60,$F$2:$G$48,2,FALSE)+ROW()-2))=Rebalance!$D$60,INDIRECT(\"a\" & (VLOOKUP(Rebalance!$D$60,$F$2:$G$48,2,FALSE)+ROW()-2)),\"\")","v":{"$error":"#N/A"}},{"$f":"IF(INDIRECT(\"c\" & (VLOOKUP(Rebalance!$D$61,$F$2:$G$48,2,FALSE)+ROW()-2))=Rebalance!$D$61,INDIRECT(\"a\" & (VLOOKUP(Rebalance!$D$61,$F$2:$G$48,2,FALSE)+ROW()-2)),\"\")","v":{"$error":"#N/A"}},{"$f":"IF(INDIRECT(\"c\" & (VLOOKUP(Rebalance!$D$62,$F$2:$G$48,2,FALSE)+ROW()-2))=Rebalance!$D$62,INDIRECT(\"a\" & (VLOOKUP(Rebalance!$D$62,$F$2:$G$48,2,FALSE)+ROW()-2)),\"\")","v":{"$error":"#N/A"}},{"$f":"IF(INDIRECT(\"c\" & (VLOOKUP(Rebalance!$D$63,$F$2:$G$48,2,FALSE)+ROW()-2))=Rebalance!$D$63,INDIRECT(\"a\" & (VLOOKUP(Rebalance!$D$63,$F$2:$G$48,2,FALSE)+ROW()-2)),\"\")","v":{"$error":"#N/A"}},{"$f":"IF(INDIRECT(\"c\" & (VLOOKUP(Rebalance!$D$64,$F$2:$G$48,2,FALSE)+ROW()-2))=Rebalance!$D$64,INDIRECT(\"a\" & (VLOOKUP(Rebalance!$D$64,$F$2:$G$48,2,FALSE)+ROW()-2)),\"\")","v":{"$error":"#N/A"}},{"$f":"IF(INDIRECT(\"c\" & (VLOOKUP(Rebalance!$D$65,$F$2:$G$48,2,FALSE)+ROW()-2))=Rebalance!$D$65,INDIRECT(\"a\" & (VLOOKUP(Rebalance!$D$65,$F$2:$G$48,2,FALSE)+ROW()-2)),\"\")","v":{"$error":"#N/A"}},{"$f":"IF(INDIRECT(\"c\" & (VLOOKUP(Rebalance!$D$66,$F$2:$G$48,2,FALSE)+ROW()-2))=Rebalance!$D$66,INDIRECT(\"a\" & (VLOOKUP(Rebalance!$D$66,$F$2:$G$48,2,FALSE)+ROW()-2)),\"\")","v":{"$error":"#N/A"}}]
["Prescient Absolute Balanced Fund A1","PBFF","Prescient Management Company Ltd",{"$f":"ROW()","v":458},null,null,{"$f":"VLOOKUP(F458,$C$2:$D$599,2,FALSE)","v":{"$error":"#N/A"}},{"$f":"IF(INDIRECT(\"c\" & (VLOOKUP(Rebalance!$D$26,$F$2:$G$48,2,FALSE)+ROW()-2))=Rebalance!$D$26,INDIRECT(\"a\" & (VLOOKUP(Rebalance!$D$26,$F$2:$G$48,2,FALSE)+ROW()-2)),\"\")","v":{"$error":"#N/A"}},{"$f":"IF(INDIRECT(\"c\" & (VLOOKUP(Rebalance!$D$27,$F$2:$G$48,2,FALSE)+ROW()-2))=Rebalance!$D$27,INDIRECT(\"a\" & (VLOOKUP(Rebalance!$D$27,$F$2:$G$48,2,FALSE)+ROW()-2)),\"\")","v":{"$error":"#N/A"}},{"$f":"IF(INDIRECT(\"c\" & (VLOOKUP(Rebalance!$D$28,$F$2:$G$48,2,FALSE)+ROW()-2))=Rebalance!$D$28,INDIRECT(\"a\" & (VLOOKUP(Rebalance!$D$28,$F$2:$G$48,2,FALSE)+ROW()-2)),\"\")","v":{"$error":"#N/A"}},{"$f":"IF(INDIRECT(\"c\" & (VLOOKUP(Rebalance!$D$29,$F$2:$G$48,2,FALSE)+ROW()-2))=Rebalance!$D$29,INDIRECT(\"a\" & (VLOOKUP(Rebalance!$D$29,$F$2:$G$48,2,FALSE)+ROW()-2)),\"\")","v":{"$error":"#N/A"}},{"$f":"IF(INDIRECT(\"c\" & (VLOOKUP(Rebalance!$D$30,$F$2:$G$48,2,FALSE)+ROW()-2))=Rebalance!$D$30,INDIRECT(\"a\" & (VLOOKUP(Rebalance!$D$30,$F$2:$G$48,2,FALSE)+ROW()-2)),\"\")","v":{"$error":"#N/A"}},{"$f":"IF(INDIRECT(\"c\" & (VLOOKUP(Rebalance!$D$31,$F$2:$G$48,2,FALSE)+ROW()-2))=Rebalance!$D$31,INDIRECT(\"a\" & (VLOOKUP(Rebalance!$D$31,$F$2:$G$48,2,FALSE)+ROW()-2)),\"\")","v":{"$error":"#N/A"}},{"$f":"IF(INDIRECT(\"c\" & (VLOOKUP(Rebalance!$D$32,$F$2:$G$48,2,FALSE)+ROW()-2))=Rebalance!$D$32,INDIRECT(\"a\" & (VLOOKUP(Rebalance!$D$32,$F$2:$G$48,2,FALSE)+ROW()-2)),\"\")","v":{"$error":"#N/A"}},{"$f":"IF(INDIRECT(\"c\" & (VLOOKUP(Rebalance!$D$33,$F$2:$G$48,2,FALSE)+ROW()-2))=Rebalance!$D$33,INDIRECT(\"a\" & (VLOOKUP(Rebalance!$D$33,$F$2:$G$48,2,FALSE)+ROW()-2)),\"\")","v":{"$error":"#N/A"}},{"$f":"IF(INDIRECT(\"c\" & (VLOOKUP(Rebalance!$D$34,$F$2:$G$48,2,FALSE)+ROW()-2))=Rebalance!$D$34,INDIRECT(\"a\" & (VLOOKUP(Rebalance!$D$34,$F$2:$G$48,2,FALSE)+ROW()-2)),\"\")","v":{"$error":"#N/A"}},{"$f":"IF(INDIRECT(\"c\" & (VLOOKUP(Rebalance!$D$35,$F$2:$G$48,2,FALSE)+ROW()-2))=Rebalance!$D$35,INDIRECT(\"a\" & (VLOOKUP(Rebalance!$D$35,$F$2:$G$48,2,FALSE)+ROW()-2)),\"\")","v":{"$error":"#N/A"}},{"$f":"IF(INDIRECT(\"c\" & (VLOOKUP(Rebalance!$D$36,$F$2:$G$48,2,FALSE)+ROW()-2))=Rebalance!$D$36,INDIRECT(\"a\" & (VLOOKUP(Rebalance!$D$36,$F$2:$G$48,2,FALSE)+ROW()-2)),\"\")","v":{"$error":"#N/A"}},{"$f":"IF(INDIRECT(\"c\" & (VLOOKUP(Rebalance!$D$37,$F$2:$G$48,2,FALSE)+ROW()-2))=Rebalance!$D$37,INDIRECT(\"a\" & (VLOOKUP(Rebalance!$D$37,$F$2:$G$48,2,FALSE)+ROW()-2)),\"\")","v":{"$error":"#N/A"}},{"$f":"IF(INDIRECT(\"c\" & (VLOOKUP(Rebalance!$D$38,$F$2:$G$48,2,FALSE)+ROW()-2))=Rebalance!$D$38,INDIRECT(\"a\" & (VLOOKUP(Rebalance!$D$38,$F$2:$G$48,2,FALSE)+ROW()-2)),\"\")","v":{"$error":"#N/A"}},{"$f":"IF(INDIRECT(\"c\" & (VLOOKUP(Rebalance!$D$39,$F$2:$G$48,2,FALSE)+ROW()-2))=Rebalance!$D$39,INDIRECT(\"a\" & (VLOOKUP(Rebalance!$D$39,$F$2:$G$48,2,FALSE)+ROW()-2)),\"\")","v":{"$error":"#N/A"}},{"$f":"IF(INDIRECT(\"c\" & (VLOOKUP(Rebalance!$D$40,$F$2:$G$48,2,FALSE)+ROW()-2))=Rebalance!$D$40,INDIRECT(\"a\" & (VLOOKUP(Rebalance!$D$40,$F$2:$G$48,2,FALSE)+ROW()-2)),\"\")","v":{"$error":"#N/A"}},{"$f":"IF(INDIRECT(\"c\" & (VLOOKUP(Rebalance!$D$52,$F$2:$G$48,2,FALSE)+ROW()-2))=Rebalance!$D$52,INDIRECT(\"a\" & (VLOOKUP(Rebalance!$D$52,$F$2:$G$48,2,FALSE)+ROW()-2)),\"\")","v":{"$error":"#N/A"}},{"$f":"IF(INDIRECT(\"c\" & (VLOOKUP(Rebalance!$D$53,$F$2:$G$48,2,FALSE)+ROW()-2))=Rebalance!$D$53,INDIRECT(\"a\" & (VLOOKUP(Rebalance!$D$53,$F$2:$G$48,2,FALSE)+ROW()-2)),\"\")","v":{"$error":"#N/A"}},{"$f":"IF(INDIRECT(\"c\" & (VLOOKUP(Rebalance!$D$54,$F$2:$G$48,2,FALSE)+ROW()-2))=Rebalance!$D$54,INDIRECT(\"a\" & (VLOOKUP(Rebalance!$D$54,$F$2:$G$48,2,FALSE)+ROW()-2)),\"\")","v":{"$error":"#N/A"}},{"$f":"IF(INDIRECT(\"c\" & (VLOOKUP(Rebalance!$D$55,$F$2:$G$48,2,FALSE)+ROW()-2))=Rebalance!$D$55,INDIRECT(\"a\" & (VLOOKUP(Rebalance!$D$55,$F$2:$G$48,2,FALSE)+ROW()-2)),\"\")","v":{"$error":"#N/A"}},{"$f":"IF(INDIRECT(\"c\" & (VLOOKUP(Rebalance!$D$56,$F$2:$G$48,2,FALSE)+ROW()-2))=Rebalance!$D$56,INDIRECT(\"a\" & (VLOOKUP(Rebalance!$D$56,$F$2:$G$48,2,FALSE)+ROW()-2)),\"\")","v":{"$error":"#N/A"}},{"$f":"IF(INDIRECT(\"c\" & (VLOOKUP(Rebalance!$D$57,$F$2:$G$48,2,FALSE)+ROW()-2))=Rebalance!$D$57,INDIRECT(\"a\" & (VLOOKUP(Rebalance!$D$57,$F$2:$G$48,2,FALSE)+ROW()-2)),\"\")","v":{"$error":"#N/A"}},{"$f":"IF(INDIRECT(\"c\" & (VLOOKUP(Rebalance!$D$58,$F$2:$G$48,2,FALSE)+ROW()-2))=Rebalance!$D$58,INDIRECT(\"a\" & (VLOOKUP(Rebalance!$D$58,$F$2:$G$48,2,FALSE)+ROW()-2)),\"\")","v":{"$error":"#N/A"}},{"$f":"IF(INDIRECT(\"c\" & (VLOOKUP(Rebalance!$D$59,$F$2:$G$48,2,FALSE)+ROW()-2))=Rebalance!$D$59,INDIRECT(\"a\" & (VLOOKUP(Rebalance!$D$59,$F$2:$G$48,2,FALSE)+ROW()-2)),\"\")","v":{"$error":"#N/A"}},{"$f":"IF(INDIRECT(\"c\" & (VLOOKUP(Rebalance!$D$60,$F$2:$G$48,2,FALSE)+ROW()-2))=Rebalance!$D$60,INDIRECT(\"a\" & (VLOOKUP(Rebalance!$D$60,$F$2:$G$48,2,FALSE)+ROW()-2)),\"\")","v":{"$error":"#N/A"}},{"$f":"IF(INDIRECT(\"c\" & (VLOOKUP(Rebalance!$D$61,$F$2:$G$48,2,FALSE)+ROW()-2))=Rebalance!$D$61,INDIRECT(\"a\" & (VLOOKUP(Rebalance!$D$61,$F$2:$G$48,2,FALSE)+ROW()-2)),\"\")","v":{"$error":"#N/A"}},{"$f":"IF(INDIRECT(\"c\" & (VLOOKUP(Rebalance!$D$62,$F$2:$G$48,2,FALSE)+ROW()-2))=Rebalance!$D$62,INDIRECT(\"a\" & (VLOOKUP(Rebalance!$D$62,$F$2:$G$48,2,FALSE)+ROW()-2)),\"\")","v":{"$error":"#N/A"}},{"$f":"IF(INDIRECT(\"c\" & (VLOOKUP(Rebalance!$D$63,$F$2:$G$48,2,FALSE)+ROW()-2))=Rebalance!$D$63,INDIRECT(\"a\" & (VLOOKUP(Rebalance!$D$63,$F$2:$G$48,2,FALSE)+ROW()-2)),\"\")","v":{"$error":"#N/A"}},{"$f":"IF(INDIRECT(\"c\" & (VLOOKUP(Rebalance!$D$64,$F$2:$G$48,2,FALSE)+ROW()-2))=Rebalance!$D$64,INDIRECT(\"a\" & (VLOOKUP(Rebalance!$D$64,$F$2:$G$48,2,FALSE)+ROW()-2)),\"\")","v":{"$error":"#N/A"}},{"$f":"IF(INDIRECT(\"c\" & (VLOOKUP(Rebalance!$D$65,$F$2:$G$48,2,FALSE)+ROW()-2))=Rebalance!$D$65,INDIRECT(\"a\" & (VLOOKUP(Rebalance!$D$65,$F$2:$G$48,2,FALSE)+ROW()-2)),\"\")","v":{"$error":"#N/A"}},{"$f":"IF(INDIRECT(\"c\" & (VLOOKUP(Rebalance!$D$66,$F$2:$G$48,2,FALSE)+ROW()-2))=Rebalance!$D$66,INDIRECT(\"a\" & (VLOOKUP(Rebalance!$D$66,$F$2:$G$48,2,FALSE)+ROW()-2)),\"\")","v":{"$error":"#N/A"}}]
["Prescient Absolute Defensive Fund A2","PADA2","Prescient Management Company Ltd",{"$f":"ROW()","v":459},null,null,{"$f":"VLOOKUP(F459,$C$2:$D$599,2,FALSE)","v":{"$error":"#N/A"}},{"$f":"IF(INDIRECT(\"c\" & (VLOOKUP(Rebalance!$D$26,$F$2:$G$48,2,FALSE)+ROW()-2))=Rebalance!$D$26,INDIRECT(\"a\" & (VLOOKUP(Rebalance!$D$26,$F$2:$G$48,2,FALSE)+ROW()-2)),\"\")","v":{"$error":"#N/A"}},{"$f":"IF(INDIRECT(\"c\" & (VLOOKUP(Rebalance!$D$27,$F$2:$G$48,2,FALSE)+ROW()-2))=Rebalance!$D$27,INDIRECT(\"a\" & (VLOOKUP(Rebalance!$D$27,$F$2:$G$48,2,FALSE)+ROW()-2)),\"\")","v":{"$error":"#N/A"}},{"$f":"IF(INDIRECT(\"c\" & (VLOOKUP(Rebalance!$D$28,$F$2:$G$48,2,FALSE)+ROW()-2))=Rebalance!$D$28,INDIRECT(\"a\" & (VLOOKUP(Rebalance!$D$28,$F$2:$G$48,2,FALSE)+ROW()-2)),\"\")","v":{"$error":"#N/A"}},{"$f":"IF(INDIRECT(\"c\" & (VLOOKUP(Rebalance!$D$29,$F$2:$G$48,2,FALSE)+ROW()-2))=Rebalance!$D$29,INDIRECT(\"a\" & (VLOOKUP(Rebalance!$D$29,$F$2:$G$48,2,FALSE)+ROW()-2)),\"\")","v":{"$error":"#N/A"}},{"$f":"IF(INDIRECT(\"c\" & (VLOOKUP(Rebalance!$D$30,$F$2:$G$48,2,FALSE)+ROW()-2))=Rebalance!$D$30,INDIRECT(\"a\" & (VLOOKUP(Rebalance!$D$30,$F$2:$G$48,2,FALSE)+ROW()-2)),\"\")","v":{"$error":"#N/A"}},{"$f":"IF(INDIRECT(\"c\" & (VLOOKUP(Rebalance!$D$31,$F$2:$G$48,2,FALSE)+ROW()-2))=Rebalance!$D$31,INDIRECT(\"a\" & (VLOOKUP(Rebalance!$D$31,$F$2:$G$48,2,FALSE)+ROW()-2)),\"\")","v":{"$error":"#N/A"}},{"$f":"IF(INDIRECT(\"c\" & (VLOOKUP(Rebalance!$D$32,$F$2:$G$48,2,FALSE)+ROW()-2))=Rebalance!$D$32,INDIRECT(\"a\" & (VLOOKUP(Rebalance!$D$32,$F$2:$G$48,2,FALSE)+ROW()-2)),\"\")","v":{"$error":"#N/A"}},{"$f":"IF(INDIRECT(\"c\" & (VLOOKUP(Rebalance!$D$33,$F$2:$G$48,2,FALSE)+ROW()-2))=Rebalance!$D$33,INDIRECT(\"a\" & (VLOOKUP(Rebalance!$D$33,$F$2:$G$48,2,FALSE)+ROW()-2)),\"\")","v":{"$error":"#N/A"}},{"$f":"IF(INDIRECT(\"c\" & (VLOOKUP(Rebalance!$D$34,$F$2:$G$48,2,FALSE)+ROW()-2))=Rebalance!$D$34,INDIRECT(\"a\" & (VLOOKUP(Rebalance!$D$34,$F$2:$G$48,2,FALSE)+ROW()-2)),\"\")","v":{"$error":"#N/A"}},{"$f":"IF(INDIRECT(\"c\" & (VLOOKUP(Rebalance!$D$35,$F$2:$G$48,2,FALSE)+ROW()-2))=Rebalance!$D$35,INDIRECT(\"a\" & (VLOOKUP(Rebalance!$D$35,$F$2:$G$48,2,FALSE)+ROW()-2)),\"\")","v":{"$error":"#N/A"}},{"$f":"IF(INDIRECT(\"c\" & (VLOOKUP(Rebalance!$D$36,$F$2:$G$48,2,FALSE)+ROW()-2))=Rebalance!$D$36,INDIRECT(\"a\" & (VLOOKUP(Rebalance!$D$36,$F$2:$G$48,2,FALSE)+ROW()-2)),\"\")","v":{"$error":"#N/A"}},{"$f":"IF(INDIRECT(\"c\" & (VLOOKUP(Rebalance!$D$37,$F$2:$G$48,2,FALSE)+ROW()-2))=Rebalance!$D$37,INDIRECT(\"a\" & (VLOOKUP(Rebalance!$D$37,$F$2:$G$48,2,FALSE)+ROW()-2)),\"\")","v":{"$error":"#N/A"}},{"$f":"IF(INDIRECT(\"c\" & (VLOOKUP(Rebalance!$D$38,$F$2:$G$48,2,FALSE)+ROW()-2))=Rebalance!$D$38,INDIRECT(\"a\" & (VLOOKUP(Rebalance!$D$38,$F$2:$G$48,2,FALSE)+ROW()-2)),\"\")","v":{"$error":"#N/A"}},{"$f":"IF(INDIRECT(\"c\" & (VLOOKUP(Rebalance!$D$39,$F$2:$G$48,2,FALSE)+ROW()-2))=Rebalance!$D$39,INDIRECT(\"a\" & (VLOOKUP(Rebalance!$D$39,$F$2:$G$48,2,FALSE)+ROW()-2)),\"\")","v":{"$error":"#N/A"}},{"$f":"IF(INDIRECT(\"c\" & (VLOOKUP(Rebalance!$D$40,$F$2:$G$48,2,FALSE)+ROW()-2))=Rebalance!$D$40,INDIRECT(\"a\" & (VLOOKUP(Rebalance!$D$40,$F$2:$G$48,2,FALSE)+ROW()-2)),\"\")","v":{"$error":"#N/A"}},{"$f":"IF(INDIRECT(\"c\" & (VLOOKUP(Rebalance!$D$52,$F$2:$G$48,2,FALSE)+ROW()-2))=Rebalance!$D$52,INDIRECT(\"a\" & (VLOOKUP(Rebalance!$D$52,$F$2:$G$48,2,FALSE)+ROW()-2)),\"\")","v":{"$error":"#N/A"}},{"$f":"IF(INDIRECT(\"c\" & (VLOOKUP(Rebalance!$D$53,$F$2:$G$48,2,FALSE)+ROW()-2))=Rebalance!$D$53,INDIRECT(\"a\" & (VLOOKUP(Rebalance!$D$53,$F$2:$G$48,2,FALSE)+ROW()-2)),\"\")","v":{"$error":"#N/A"}},{"$f":"IF(INDIRECT(\"c\" & (VLOOKUP(Rebalance!$D$54,$F$2:$G$48,2,FALSE)+ROW()-2))=Rebalance!$D$54,INDIRECT(\"a\" & (VLOOKUP(Rebalance!$D$54,$F$2:$G$48,2,FALSE)+ROW()-2)),\"\")","v":{"$error":"#N/A"}},{"$f":"IF(INDIRECT(\"c\" & (VLOOKUP(Rebalance!$D$55,$F$2:$G$48,2,FALSE)+ROW()-2))=Rebalance!$D$55,INDIRECT(\"a\" & (VLOOKUP(Rebalance!$D$55,$F$2:$G$48,2,FALSE)+ROW()-2)),\"\")","v":{"$error":"#N/A"}},{"$f":"IF(INDIRECT(\"c\" & (VLOOKUP(Rebalance!$D$56,$F$2:$G$48,2,FALSE)+ROW()-2))=Rebalance!$D$56,INDIRECT(\"a\" & (VLOOKUP(Rebalance!$D$56,$F$2:$G$48,2,FALSE)+ROW()-2)),\"\")","v":{"$error":"#N/A"}},{"$f":"IF(INDIRECT(\"c\" & (VLOOKUP(Rebalance!$D$57,$F$2:$G$48,2,FALSE)+ROW()-2))=Rebalance!$D$57,INDIRECT(\"a\" & (VLOOKUP(Rebalance!$D$57,$F$2:$G$48,2,FALSE)+ROW()-2)),\"\")","v":{"$error":"#N/A"}},{"$f":"IF(INDIRECT(\"c\" & (VLOOKUP(Rebalance!$D$58,$F$2:$G$48,2,FALSE)+ROW()-2))=Rebalance!$D$58,INDIRECT(\"a\" & (VLOOKUP(Rebalance!$D$58,$F$2:$G$48,2,FALSE)+ROW()-2)),\"\")","v":{"$error":"#N/A"}},{"$f":"IF(INDIRECT(\"c\" & (VLOOKUP(Rebalance!$D$59,$F$2:$G$48,2,FALSE)+ROW()-2))=Rebalance!$D$59,INDIRECT(\"a\" & (VLOOKUP(Rebalance!$D$59,$F$2:$G$48,2,FALSE)+ROW()-2)),\"\")","v":{"$error":"#N/A"}},{"$f":"IF(INDIRECT(\"c\" & (VLOOKUP(Rebalance!$D$60,$F$2:$G$48,2,FALSE)+ROW()-2))=Rebalance!$D$60,INDIRECT(\"a\" & (VLOOKUP(Rebalance!$D$60,$F$2:$G$48,2,FALSE)+ROW()-2)),\"\")","v":{"$error":"#N/A"}},{"$f":"IF(INDIRECT(\"c\" & (VLOOKUP(Rebalance!$D$61,$F$2:$G$48,2,FALSE)+ROW()-2))=Rebalance!$D$61,INDIRECT(\"a\" & (VLOOKUP(Rebalance!$D$61,$F$2:$G$48,2,FALSE)+ROW()-2)),\"\")","v":{"$error":"#N/A"}},{"$f":"IF(INDIRECT(\"c\" & (VLOOKUP(Rebalance!$D$62,$F$2:$G$48,2,FALSE)+ROW()-2))=Rebalance!$D$62,INDIRECT(\"a\" & (VLOOKUP(Rebalance!$D$62,$F$2:$G$48,2,FALSE)+ROW()-2)),\"\")","v":{"$error":"#N/A"}},{"$f":"IF(INDIRECT(\"c\" & (VLOOKUP(Rebalance!$D$63,$F$2:$G$48,2,FALSE)+ROW()-2))=Rebalance!$D$63,INDIRECT(\"a\" & (VLOOKUP(Rebalance!$D$63,$F$2:$G$48,2,FALSE)+ROW()-2)),\"\")","v":{"$error":"#N/A"}},{"$f":"IF(INDIRECT(\"c\" & (VLOOKUP(Rebalance!$D$64,$F$2:$G$48,2,FALSE)+ROW()-2))=Rebalance!$D$64,INDIRECT(\"a\" & (VLOOKUP(Rebalance!$D$64,$F$2:$G$48,2,FALSE)+ROW()-2)),\"\")","v":{"$error":"#N/A"}},{"$f":"IF(INDIRECT(\"c\" & (VLOOKUP(Rebalance!$D$65,$F$2:$G$48,2,FALSE)+ROW()-2))=Rebalance!$D$65,INDIRECT(\"a\" & (VLOOKUP(Rebalance!$D$65,$F$2:$G$48,2,FALSE)+ROW()-2)),\"\")","v":{"$error":"#N/A"}},{"$f":"IF(INDIRECT(\"c\" & (VLOOKUP(Rebalance!$D$66,$F$2:$G$48,2,FALSE)+ROW()-2))=Rebalance!$D$66,INDIRECT(\"a\" & (VLOOKUP(Rebalance!$D$66,$F$2:$G$48,2,FALSE)+ROW()-2)),\"\")","v":{"$error":"#N/A"}}]
["Prescient Balanced Fund A2","PRBA2","Prescient Management Company Ltd",{"$f":"ROW()","v":460},null,null,{"$f":"VLOOKUP(F460,$C$2:$D$599,2,FALSE)","v":{"$error":"#N/A"}},{"$f":"IF(INDIRECT(\"c\" & (VLOOKUP(Rebalance!$D$26,$F$2:$G$48,2,FALSE)+ROW()-2))=Rebalance!$D$26,INDIRECT(\"a\" & (VLOOKUP(Rebalance!$D$26,$F$2:$G$48,2,FALSE)+ROW()-2)),\"\")","v":{"$error":"#N/A"}},{"$f":"IF(INDIRECT(\"c\" & (VLOOKUP(Rebalance!$D$27,$F$2:$G$48,2,FALSE)+ROW()-2))=Rebalance!$D$27,INDIRECT(\"a\" & (VLOOKUP(Rebalance!$D$27,$F$2:$G$48,2,FALSE)+ROW()-2)),\"\")","v":{"$error":"#N/A"}},{"$f":"IF(INDIRECT(\"c\" & (VLOOKUP(Rebalance!$D$28,$F$2:$G$48,2,FALSE)+ROW()-2))=Rebalance!$D$28,INDIRECT(\"a\" & (VLOOKUP(Rebalance!$D$28,$F$2:$G$48,2,FALSE)+ROW()-2)),\"\")","v":{"$error":"#N/A"}},{"$f":"IF(INDIRECT(\"c\" & (VLOOKUP(Rebalance!$D$29,$F$2:$G$48,2,FALSE)+ROW()-2))=Rebalance!$D$29,INDIRECT(\"a\" & (VLOOKUP(Rebalance!$D$29,$F$2:$G$48,2,FALSE)+ROW()-2)),\"\")","v":{"$error":"#N/A"}},{"$f":"IF(INDIRECT(\"c\" & (VLOOKUP(Rebalance!$D$30,$F$2:$G$48,2,FALSE)+ROW()-2))=Rebalance!$D$30,INDIRECT(\"a\" & (VLOOKUP(Rebalance!$D$30,$F$2:$G$48,2,FALSE)+ROW()-2)),\"\")","v":{"$error":"#N/A"}},{"$f":"IF(INDIRECT(\"c\" & (VLOOKUP(Rebalance!$D$31,$F$2:$G$48,2,FALSE)+ROW()-2))=Rebalance!$D$31,INDIRECT(\"a\" & (VLOOKUP(Rebalance!$D$31,$F$2:$G$48,2,FALSE)+ROW()-2)),\"\")","v":{"$error":"#N/A"}},{"$f":"IF(INDIRECT(\"c\" & (VLOOKUP(Rebalance!$D$32,$F$2:$G$48,2,FALSE)+ROW()-2))=Rebalance!$D$32,INDIRECT(\"a\" & (VLOOKUP(Rebalance!$D$32,$F$2:$G$48,2,FALSE)+ROW()-2)),\"\")","v":{"$error":"#N/A"}},{"$f":"IF(INDIRECT(\"c\" & (VLOOKUP(Rebalance!$D$33,$F$2:$G$48,2,FALSE)+ROW()-2))=Rebalance!$D$33,INDIRECT(\"a\" & (VLOOKUP(Rebalance!$D$33,$F$2:$G$48,2,FALSE)+ROW()-2)),\"\")","v":{"$error":"#N/A"}},{"$f":"IF(INDIRECT(\"c\" & (VLOOKUP(Rebalance!$D$34,$F$2:$G$48,2,FALSE)+ROW()-2))=Rebalance!$D$34,INDIRECT(\"a\" & (VLOOKUP(Rebalance!$D$34,$F$2:$G$48,2,FALSE)+ROW()-2)),\"\")","v":{"$error":"#N/A"}},{"$f":"IF(INDIRECT(\"c\" & (VLOOKUP(Rebalance!$D$35,$F$2:$G$48,2,FALSE)+ROW()-2))=Rebalance!$D$35,INDIRECT(\"a\" & (VLOOKUP(Rebalance!$D$35,$F$2:$G$48,2,FALSE)+ROW()-2)),\"\")","v":{"$error":"#N/A"}},{"$f":"IF(INDIRECT(\"c\" & (VLOOKUP(Rebalance!$D$36,$F$2:$G$48,2,FALSE)+ROW()-2))=Rebalance!$D$36,INDIRECT(\"a\" & (VLOOKUP(Rebalance!$D$36,$F$2:$G$48,2,FALSE)+ROW()-2)),\"\")","v":{"$error":"#N/A"}},{"$f":"IF(INDIRECT(\"c\" & (VLOOKUP(Rebalance!$D$37,$F$2:$G$48,2,FALSE)+ROW()-2))=Rebalance!$D$37,INDIRECT(\"a\" & (VLOOKUP(Rebalance!$D$37,$F$2:$G$48,2,FALSE)+ROW()-2)),\"\")","v":{"$error":"#N/A"}},{"$f":"IF(INDIRECT(\"c\" & (VLOOKUP(Rebalance!$D$38,$F$2:$G$48,2,FALSE)+ROW()-2))=Rebalance!$D$38,INDIRECT(\"a\" & (VLOOKUP(Rebalance!$D$38,$F$2:$G$48,2,FALSE)+ROW()-2)),\"\")","v":{"$error":"#N/A"}},{"$f":"IF(INDIRECT(\"c\" & (VLOOKUP(Rebalance!$D$39,$F$2:$G$48,2,FALSE)+ROW()-2))=Rebalance!$D$39,INDIRECT(\"a\" & (VLOOKUP(Rebalance!$D$39,$F$2:$G$48,2,FALSE)+ROW()-2)),\"\")","v":{"$error":"#N/A"}},{"$f":"IF(INDIRECT(\"c\" & (VLOOKUP(Rebalance!$D$40,$F$2:$G$48,2,FALSE)+ROW()-2))=Rebalance!$D$40,INDIRECT(\"a\" & (VLOOKUP(Rebalance!$D$40,$F$2:$G$48,2,FALSE)+ROW()-2)),\"\")","v":{"$error":"#N/A"}},{"$f":"IF(INDIRECT(\"c\" & (VLOOKUP(Rebalance!$D$52,$F$2:$G$48,2,FALSE)+ROW()-2))=Rebalance!$D$52,INDIRECT(\"a\" & (VLOOKUP(Rebalance!$D$52,$F$2:$G$48,2,FALSE)+ROW()-2)),\"\")","v":{"$error":"#N/A"}},{"$f":"IF(INDIRECT(\"c\" & (VLOOKUP(Rebalance!$D$53,$F$2:$G$48,2,FALSE)+ROW()-2))=Rebalance!$D$53,INDIRECT(\"a\" & (VLOOKUP(Rebalance!$D$53,$F$2:$G$48,2,FALSE)+ROW()-2)),\"\")","v":{"$error":"#N/A"}},{"$f":"IF(INDIRECT(\"c\" & (VLOOKUP(Rebalance!$D$54,$F$2:$G$48,2,FALSE)+ROW()-2))=Rebalance!$D$54,INDIRECT(\"a\" & (VLOOKUP(Rebalance!$D$54,$F$2:$G$48,2,FALSE)+ROW()-2)),\"\")","v":{"$error":"#N/A"}},{"$f":"IF(INDIRECT(\"c\" & (VLOOKUP(Rebalance!$D$55,$F$2:$G$48,2,FALSE)+ROW()-2))=Rebalance!$D$55,INDIRECT(\"a\" & (VLOOKUP(Rebalance!$D$55,$F$2:$G$48,2,FALSE)+ROW()-2)),\"\")","v":{"$error":"#N/A"}},{"$f":"IF(INDIRECT(\"c\" & (VLOOKUP(Rebalance!$D$56,$F$2:$G$48,2,FALSE)+ROW()-2))=Rebalance!$D$56,INDIRECT(\"a\" & (VLOOKUP(Rebalance!$D$56,$F$2:$G$48,2,FALSE)+ROW()-2)),\"\")","v":{"$error":"#N/A"}},{"$f":"IF(INDIRECT(\"c\" & (VLOOKUP(Rebalance!$D$57,$F$2:$G$48,2,FALSE)+ROW()-2))=Rebalance!$D$57,INDIRECT(\"a\" & (VLOOKUP(Rebalance!$D$57,$F$2:$G$48,2,FALSE)+ROW()-2)),\"\")","v":{"$error":"#N/A"}},{"$f":"IF(INDIRECT(\"c\" & (VLOOKUP(Rebalance!$D$58,$F$2:$G$48,2,FALSE)+ROW()-2))=Rebalance!$D$58,INDIRECT(\"a\" & (VLOOKUP(Rebalance!$D$58,$F$2:$G$48,2,FALSE)+ROW()-2)),\"\")","v":{"$error":"#N/A"}},{"$f":"IF(INDIRECT(\"c\" & (VLOOKUP(Rebalance!$D$59,$F$2:$G$48,2,FALSE)+ROW()-2))=Rebalance!$D$59,INDIRECT(\"a\" & (VLOOKUP(Rebalance!$D$59,$F$2:$G$48,2,FALSE)+ROW()-2)),\"\")","v":{"$error":"#N/A"}},{"$f":"IF(INDIRECT(\"c\" & (VLOOKUP(Rebalance!$D$60,$F$2:$G$48,2,FALSE)+ROW()-2))=Rebalance!$D$60,INDIRECT(\"a\" & (VLOOKUP(Rebalance!$D$60,$F$2:$G$48,2,FALSE)+ROW()-2)),\"\")","v":{"$error":"#N/A"}},{"$f":"IF(INDIRECT(\"c\" & (VLOOKUP(Rebalance!$D$61,$F$2:$G$48,2,FALSE)+ROW()-2))=Rebalance!$D$61,INDIRECT(\"a\" & (VLOOKUP(Rebalance!$D$61,$F$2:$G$48,2,FALSE)+ROW()-2)),\"\")","v":{"$error":"#N/A"}},{"$f":"IF(INDIRECT(\"c\" & (VLOOKUP(Rebalance!$D$62,$F$2:$G$48,2,FALSE)+ROW()-2))=Rebalance!$D$62,INDIRECT(\"a\" & (VLOOKUP(Rebalance!$D$62,$F$2:$G$48,2,FALSE)+ROW()-2)),\"\")","v":{"$error":"#N/A"}},{"$f":"IF(INDIRECT(\"c\" & (VLOOKUP(Rebalance!$D$63,$F$2:$G$48,2,FALSE)+ROW()-2))=Rebalance!$D$63,INDIRECT(\"a\" & (VLOOKUP(Rebalance!$D$63,$F$2:$G$48,2,FALSE)+ROW()-2)),\"\")","v":{"$error":"#N/A"}},{"$f":"IF(INDIRECT(\"c\" & (VLOOKUP(Rebalance!$D$64,$F$2:$G$48,2,FALSE)+ROW()-2))=Rebalance!$D$64,INDIRECT(\"a\" & (VLOOKUP(Rebalance!$D$64,$F$2:$G$48,2,FALSE)+ROW()-2)),\"\")","v":{"$error":"#N/A"}},{"$f":"IF(INDIRECT(\"c\" & (VLOOKUP(Rebalance!$D$65,$F$2:$G$48,2,FALSE)+ROW()-2))=Rebalance!$D$65,INDIRECT(\"a\" & (VLOOKUP(Rebalance!$D$65,$F$2:$G$48,2,FALSE)+ROW()-2)),\"\")","v":{"$error":"#N/A"}},{"$f":"IF(INDIRECT(\"c\" & (VLOOKUP(Rebalance!$D$66,$F$2:$G$48,2,FALSE)+ROW()-2))=Rebalance!$D$66,INDIRECT(\"a\" & (VLOOKUP(Rebalance!$D$66,$F$2:$G$48,2,FALSE)+ROW()-2)),\"\")","v":{"$error":"#N/A"}}]
["Prescient Bond Quant Plus Fund B1","PBQF","Prescient Management Company Ltd",{"$f":"ROW()","v":461},null,null,{"$f":"VLOOKUP(F461,$C$2:$D$599,2,FALSE)","v":{"$error":"#N/A"}},{"$f":"IF(INDIRECT(\"c\" & (VLOOKUP(Rebalance!$D$26,$F$2:$G$48,2,FALSE)+ROW()-2))=Rebalance!$D$26,INDIRECT(\"a\" & (VLOOKUP(Rebalance!$D$26,$F$2:$G$48,2,FALSE)+ROW()-2)),\"\")","v":{"$error":"#N/A"}},{"$f":"IF(INDIRECT(\"c\" & (VLOOKUP(Rebalance!$D$27,$F$2:$G$48,2,FALSE)+ROW()-2))=Rebalance!$D$27,INDIRECT(\"a\" & (VLOOKUP(Rebalance!$D$27,$F$2:$G$48,2,FALSE)+ROW()-2)),\"\")","v":{"$error":"#N/A"}},{"$f":"IF(INDIRECT(\"c\" & (VLOOKUP(Rebalance!$D$28,$F$2:$G$48,2,FALSE)+ROW()-2))=Rebalance!$D$28,INDIRECT(\"a\" & (VLOOKUP(Rebalance!$D$28,$F$2:$G$48,2,FALSE)+ROW()-2)),\"\")","v":{"$error":"#N/A"}},{"$f":"IF(INDIRECT(\"c\" & (VLOOKUP(Rebalance!$D$29,$F$2:$G$48,2,FALSE)+ROW()-2))=Rebalance!$D$29,INDIRECT(\"a\" & (VLOOKUP(Rebalance!$D$29,$F$2:$G$48,2,FALSE)+ROW()-2)),\"\")","v":{"$error":"#N/A"}},{"$f":"IF(INDIRECT(\"c\" & (VLOOKUP(Rebalance!$D$30,$F$2:$G$48,2,FALSE)+ROW()-2))=Rebalance!$D$30,INDIRECT(\"a\" & (VLOOKUP(Rebalance!$D$30,$F$2:$G$48,2,FALSE)+ROW()-2)),\"\")","v":{"$error":"#N/A"}},{"$f":"IF(INDIRECT(\"c\" & (VLOOKUP(Rebalance!$D$31,$F$2:$G$48,2,FALSE)+ROW()-2))=Rebalance!$D$31,INDIRECT(\"a\" & (VLOOKUP(Rebalance!$D$31,$F$2:$G$48,2,FALSE)+ROW()-2)),\"\")","v":{"$error":"#N/A"}},{"$f":"IF(INDIRECT(\"c\" & (VLOOKUP(Rebalance!$D$32,$F$2:$G$48,2,FALSE)+ROW()-2))=Rebalance!$D$32,INDIRECT(\"a\" & (VLOOKUP(Rebalance!$D$32,$F$2:$G$48,2,FALSE)+ROW()-2)),\"\")","v":{"$error":"#N/A"}},{"$f":"IF(INDIRECT(\"c\" & (VLOOKUP(Rebalance!$D$33,$F$2:$G$48,2,FALSE)+ROW()-2))=Rebalance!$D$33,INDIRECT(\"a\" & (VLOOKUP(Rebalance!$D$33,$F$2:$G$48,2,FALSE)+ROW()-2)),\"\")","v":{"$error":"#N/A"}},{"$f":"IF(INDIRECT(\"c\" & (VLOOKUP(Rebalance!$D$34,$F$2:$G$48,2,FALSE)+ROW()-2))=Rebalance!$D$34,INDIRECT(\"a\" & (VLOOKUP(Rebalance!$D$34,$F$2:$G$48,2,FALSE)+ROW()-2)),\"\")","v":{"$error":"#N/A"}},{"$f":"IF(INDIRECT(\"c\" & (VLOOKUP(Rebalance!$D$35,$F$2:$G$48,2,FALSE)+ROW()-2))=Rebalance!$D$35,INDIRECT(\"a\" & (VLOOKUP(Rebalance!$D$35,$F$2:$G$48,2,FALSE)+ROW()-2)),\"\")","v":{"$error":"#N/A"}},{"$f":"IF(INDIRECT(\"c\" & (VLOOKUP(Rebalance!$D$36,$F$2:$G$48,2,FALSE)+ROW()-2))=Rebalance!$D$36,INDIRECT(\"a\" & (VLOOKUP(Rebalance!$D$36,$F$2:$G$48,2,FALSE)+ROW()-2)),\"\")","v":{"$error":"#N/A"}},{"$f":"IF(INDIRECT(\"c\" & (VLOOKUP(Rebalance!$D$37,$F$2:$G$48,2,FALSE)+ROW()-2))=Rebalance!$D$37,INDIRECT(\"a\" & (VLOOKUP(Rebalance!$D$37,$F$2:$G$48,2,FALSE)+ROW()-2)),\"\")","v":{"$error":"#N/A"}},{"$f":"IF(INDIRECT(\"c\" & (VLOOKUP(Rebalance!$D$38,$F$2:$G$48,2,FALSE)+ROW()-2))=Rebalance!$D$38,INDIRECT(\"a\" & (VLOOKUP(Rebalance!$D$38,$F$2:$G$48,2,FALSE)+ROW()-2)),\"\")","v":{"$error":"#N/A"}},{"$f":"IF(INDIRECT(\"c\" & (VLOOKUP(Rebalance!$D$39,$F$2:$G$48,2,FALSE)+ROW()-2))=Rebalance!$D$39,INDIRECT(\"a\" & (VLOOKUP(Rebalance!$D$39,$F$2:$G$48,2,FALSE)+ROW()-2)),\"\")","v":{"$error":"#N/A"}},{"$f":"IF(INDIRECT(\"c\" & (VLOOKUP(Rebalance!$D$40,$F$2:$G$48,2,FALSE)+ROW()-2))=Rebalance!$D$40,INDIRECT(\"a\" & (VLOOKUP(Rebalance!$D$40,$F$2:$G$48,2,FALSE)+ROW()-2)),\"\")","v":{"$error":"#N/A"}},{"$f":"IF(INDIRECT(\"c\" & (VLOOKUP(Rebalance!$D$52,$F$2:$G$48,2,FALSE)+ROW()-2))=Rebalance!$D$52,INDIRECT(\"a\" & (VLOOKUP(Rebalance!$D$52,$F$2:$G$48,2,FALSE)+ROW()-2)),\"\")","v":{"$error":"#N/A"}},{"$f":"IF(INDIRECT(\"c\" & (VLOOKUP(Rebalance!$D$53,$F$2:$G$48,2,FALSE)+ROW()-2))=Rebalance!$D$53,INDIRECT(\"a\" & (VLOOKUP(Rebalance!$D$53,$F$2:$G$48,2,FALSE)+ROW()-2)),\"\")","v":{"$error":"#N/A"}},{"$f":"IF(INDIRECT(\"c\" & (VLOOKUP(Rebalance!$D$54,$F$2:$G$48,2,FALSE)+ROW()-2))=Rebalance!$D$54,INDIRECT(\"a\" & (VLOOKUP(Rebalance!$D$54,$F$2:$G$48,2,FALSE)+ROW()-2)),\"\")","v":{"$error":"#N/A"}},{"$f":"IF(INDIRECT(\"c\" & (VLOOKUP(Rebalance!$D$55,$F$2:$G$48,2,FALSE)+ROW()-2))=Rebalance!$D$55,INDIRECT(\"a\" & (VLOOKUP(Rebalance!$D$55,$F$2:$G$48,2,FALSE)+ROW()-2)),\"\")","v":{"$error":"#N/A"}},{"$f":"IF(INDIRECT(\"c\" & (VLOOKUP(Rebalance!$D$56,$F$2:$G$48,2,FALSE)+ROW()-2))=Rebalance!$D$56,INDIRECT(\"a\" & (VLOOKUP(Rebalance!$D$56,$F$2:$G$48,2,FALSE)+ROW()-2)),\"\")","v":{"$error":"#N/A"}},{"$f":"IF(INDIRECT(\"c\" & (VLOOKUP(Rebalance!$D$57,$F$2:$G$48,2,FALSE)+ROW()-2))=Rebalance!$D$57,INDIRECT(\"a\" & (VLOOKUP(Rebalance!$D$57,$F$2:$G$48,2,FALSE)+ROW()-2)),\"\")","v":{"$error":"#N/A"}},{"$f":"IF(INDIRECT(\"c\" & (VLOOKUP(Rebalance!$D$58,$F$2:$G$48,2,FALSE)+ROW()-2))=Rebalance!$D$58,INDIRECT(\"a\" & (VLOOKUP(Rebalance!$D$58,$F$2:$G$48,2,FALSE)+ROW()-2)),\"\")","v":{"$error":"#N/A"}},{"$f":"IF(INDIRECT(\"c\" & (VLOOKUP(Rebalance!$D$59,$F$2:$G$48,2,FALSE)+ROW()-2))=Rebalance!$D$59,INDIRECT(\"a\" & (VLOOKUP(Rebalance!$D$59,$F$2:$G$48,2,FALSE)+ROW()-2)),\"\")","v":{"$error":"#N/A"}},{"$f":"IF(INDIRECT(\"c\" & (VLOOKUP(Rebalance!$D$60,$F$2:$G$48,2,FALSE)+ROW()-2))=Rebalance!$D$60,INDIRECT(\"a\" & (VLOOKUP(Rebalance!$D$60,$F$2:$G$48,2,FALSE)+ROW()-2)),\"\")","v":{"$error":"#N/A"}},{"$f":"IF(INDIRECT(\"c\" & (VLOOKUP(Rebalance!$D$61,$F$2:$G$48,2,FALSE)+ROW()-2))=Rebalance!$D$61,INDIRECT(\"a\" & (VLOOKUP(Rebalance!$D$61,$F$2:$G$48,2,FALSE)+ROW()-2)),\"\")","v":{"$error":"#N/A"}},{"$f":"IF(INDIRECT(\"c\" & (VLOOKUP(Rebalance!$D$62,$F$2:$G$48,2,FALSE)+ROW()-2))=Rebalance!$D$62,INDIRECT(\"a\" & (VLOOKUP(Rebalance!$D$62,$F$2:$G$48,2,FALSE)+ROW()-2)),\"\")","v":{"$error":"#N/A"}},{"$f":"IF(INDIRECT(\"c\" & (VLOOKUP(Rebalance!$D$63,$F$2:$G$48,2,FALSE)+ROW()-2))=Rebalance!$D$63,INDIRECT(\"a\" & (VLOOKUP(Rebalance!$D$63,$F$2:$G$48,2,FALSE)+ROW()-2)),\"\")","v":{"$error":"#N/A"}},{"$f":"IF(INDIRECT(\"c\" & (VLOOKUP(Rebalance!$D$64,$F$2:$G$48,2,FALSE)+ROW()-2))=Rebalance!$D$64,INDIRECT(\"a\" & (VLOOKUP(Rebalance!$D$64,$F$2:$G$48,2,FALSE)+ROW()-2)),\"\")","v":{"$error":"#N/A"}},{"$f":"IF(INDIRECT(\"c\" & (VLOOKUP(Rebalance!$D$65,$F$2:$G$48,2,FALSE)+ROW()-2))=Rebalance!$D$65,INDIRECT(\"a\" & (VLOOKUP(Rebalance!$D$65,$F$2:$G$48,2,FALSE)+ROW()-2)),\"\")","v":{"$error":"#N/A"}},{"$f":"IF(INDIRECT(\"c\" & (VLOOKUP(Rebalance!$D$66,$F$2:$G$48,2,FALSE)+ROW()-2))=Rebalance!$D$66,INDIRECT(\"a\" & (VLOOKUP(Rebalance!$D$66,$F$2:$G$48,2,FALSE)+ROW()-2)),\"\")","v":{"$error":"#N/A"}}]
["Prescient Core Equity Fund A2","PCEA2","Prescient Management Company Ltd",{"$f":"ROW()","v":462},null,null,{"$f":"VLOOKUP(F462,$C$2:$D$599,2,FALSE)","v":{"$error":"#N/A"}},{"$f":"IF(INDIRECT(\"c\" & (VLOOKUP(Rebalance!$D$26,$F$2:$G$48,2,FALSE)+ROW()-2))=Rebalance!$D$26,INDIRECT(\"a\" & (VLOOKUP(Rebalance!$D$26,$F$2:$G$48,2,FALSE)+ROW()-2)),\"\")","v":{"$error":"#N/A"}},{"$f":"IF(INDIRECT(\"c\" & (VLOOKUP(Rebalance!$D$27,$F$2:$G$48,2,FALSE)+ROW()-2))=Rebalance!$D$27,INDIRECT(\"a\" & (VLOOKUP(Rebalance!$D$27,$F$2:$G$48,2,FALSE)+ROW()-2)),\"\")","v":{"$error":"#N/A"}},{"$f":"IF(INDIRECT(\"c\" & (VLOOKUP(Rebalance!$D$28,$F$2:$G$48,2,FALSE)+ROW()-2))=Rebalance!$D$28,INDIRECT(\"a\" & (VLOOKUP(Rebalance!$D$28,$F$2:$G$48,2,FALSE)+ROW()-2)),\"\")","v":{"$error":"#N/A"}},{"$f":"IF(INDIRECT(\"c\" & (VLOOKUP(Rebalance!$D$29,$F$2:$G$48,2,FALSE)+ROW()-2))=Rebalance!$D$29,INDIRECT(\"a\" & (VLOOKUP(Rebalance!$D$29,$F$2:$G$48,2,FALSE)+ROW()-2)),\"\")","v":{"$error":"#N/A"}},{"$f":"IF(INDIRECT(\"c\" & (VLOOKUP(Rebalance!$D$30,$F$2:$G$48,2,FALSE)+ROW()-2))=Rebalance!$D$30,INDIRECT(\"a\" & (VLOOKUP(Rebalance!$D$30,$F$2:$G$48,2,FALSE)+ROW()-2)),\"\")","v":{"$error":"#N/A"}},{"$f":"IF(INDIRECT(\"c\" & (VLOOKUP(Rebalance!$D$31,$F$2:$G$48,2,FALSE)+ROW()-2))=Rebalance!$D$31,INDIRECT(\"a\" & (VLOOKUP(Rebalance!$D$31,$F$2:$G$48,2,FALSE)+ROW()-2)),\"\")","v":{"$error":"#N/A"}},{"$f":"IF(INDIRECT(\"c\" & (VLOOKUP(Rebalance!$D$32,$F$2:$G$48,2,FALSE)+ROW()-2))=Rebalance!$D$32,INDIRECT(\"a\" & (VLOOKUP(Rebalance!$D$32,$F$2:$G$48,2,FALSE)+ROW()-2)),\"\")","v":{"$error":"#N/A"}},{"$f":"IF(INDIRECT(\"c\" & (VLOOKUP(Rebalance!$D$33,$F$2:$G$48,2,FALSE)+ROW()-2))=Rebalance!$D$33,INDIRECT(\"a\" & (VLOOKUP(Rebalance!$D$33,$F$2:$G$48,2,FALSE)+ROW()-2)),\"\")","v":{"$error":"#N/A"}},{"$f":"IF(INDIRECT(\"c\" & (VLOOKUP(Rebalance!$D$34,$F$2:$G$48,2,FALSE)+ROW()-2))=Rebalance!$D$34,INDIRECT(\"a\" & (VLOOKUP(Rebalance!$D$34,$F$2:$G$48,2,FALSE)+ROW()-2)),\"\")","v":{"$error":"#N/A"}},{"$f":"IF(INDIRECT(\"c\" & (VLOOKUP(Rebalance!$D$35,$F$2:$G$48,2,FALSE)+ROW()-2))=Rebalance!$D$35,INDIRECT(\"a\" & (VLOOKUP(Rebalance!$D$35,$F$2:$G$48,2,FALSE)+ROW()-2)),\"\")","v":{"$error":"#N/A"}},{"$f":"IF(INDIRECT(\"c\" & (VLOOKUP(Rebalance!$D$36,$F$2:$G$48,2,FALSE)+ROW()-2))=Rebalance!$D$36,INDIRECT(\"a\" & (VLOOKUP(Rebalance!$D$36,$F$2:$G$48,2,FALSE)+ROW()-2)),\"\")","v":{"$error":"#N/A"}},{"$f":"IF(INDIRECT(\"c\" & (VLOOKUP(Rebalance!$D$37,$F$2:$G$48,2,FALSE)+ROW()-2))=Rebalance!$D$37,INDIRECT(\"a\" & (VLOOKUP(Rebalance!$D$37,$F$2:$G$48,2,FALSE)+ROW()-2)),\"\")","v":{"$error":"#N/A"}},{"$f":"IF(INDIRECT(\"c\" & (VLOOKUP(Rebalance!$D$38,$F$2:$G$48,2,FALSE)+ROW()-2))=Rebalance!$D$38,INDIRECT(\"a\" & (VLOOKUP(Rebalance!$D$38,$F$2:$G$48,2,FALSE)+ROW()-2)),\"\")","v":{"$error":"#N/A"}},{"$f":"IF(INDIRECT(\"c\" & (VLOOKUP(Rebalance!$D$39,$F$2:$G$48,2,FALSE)+ROW()-2))=Rebalance!$D$39,INDIRECT(\"a\" & (VLOOKUP(Rebalance!$D$39,$F$2:$G$48,2,FALSE)+ROW()-2)),\"\")","v":{"$error":"#N/A"}},{"$f":"IF(INDIRECT(\"c\" & (VLOOKUP(Rebalance!$D$40,$F$2:$G$48,2,FALSE)+ROW()-2))=Rebalance!$D$40,INDIRECT(\"a\" & (VLOOKUP(Rebalance!$D$40,$F$2:$G$48,2,FALSE)+ROW()-2)),\"\")","v":{"$error":"#N/A"}},{"$f":"IF(INDIRECT(\"c\" & (VLOOKUP(Rebalance!$D$52,$F$2:$G$48,2,FALSE)+ROW()-2))=Rebalance!$D$52,INDIRECT(\"a\" & (VLOOKUP(Rebalance!$D$52,$F$2:$G$48,2,FALSE)+ROW()-2)),\"\")","v":{"$error":"#N/A"}},{"$f":"IF(INDIRECT(\"c\" & (VLOOKUP(Rebalance!$D$53,$F$2:$G$48,2,FALSE)+ROW()-2))=Rebalance!$D$53,INDIRECT(\"a\" & (VLOOKUP(Rebalance!$D$53,$F$2:$G$48,2,FALSE)+ROW()-2)),\"\")","v":{"$error":"#N/A"}},{"$f":"IF(INDIRECT(\"c\" & (VLOOKUP(Rebalance!$D$54,$F$2:$G$48,2,FALSE)+ROW()-2))=Rebalance!$D$54,INDIRECT(\"a\" & (VLOOKUP(Rebalance!$D$54,$F$2:$G$48,2,FALSE)+ROW()-2)),\"\")","v":{"$error":"#N/A"}},{"$f":"IF(INDIRECT(\"c\" & (VLOOKUP(Rebalance!$D$55,$F$2:$G$48,2,FALSE)+ROW()-2))=Rebalance!$D$55,INDIRECT(\"a\" & (VLOOKUP(Rebalance!$D$55,$F$2:$G$48,2,FALSE)+ROW()-2)),\"\")","v":{"$error":"#N/A"}},{"$f":"IF(INDIRECT(\"c\" & (VLOOKUP(Rebalance!$D$56,$F$2:$G$48,2,FALSE)+ROW()-2))=Rebalance!$D$56,INDIRECT(\"a\" & (VLOOKUP(Rebalance!$D$56,$F$2:$G$48,2,FALSE)+ROW()-2)),\"\")","v":{"$error":"#N/A"}},{"$f":"IF(INDIRECT(\"c\" & (VLOOKUP(Rebalance!$D$57,$F$2:$G$48,2,FALSE)+ROW()-2))=Rebalance!$D$57,INDIRECT(\"a\" & (VLOOKUP(Rebalance!$D$57,$F$2:$G$48,2,FALSE)+ROW()-2)),\"\")","v":{"$error":"#N/A"}},{"$f":"IF(INDIRECT(\"c\" & (VLOOKUP(Rebalance!$D$58,$F$2:$G$48,2,FALSE)+ROW()-2))=Rebalance!$D$58,INDIRECT(\"a\" & (VLOOKUP(Rebalance!$D$58,$F$2:$G$48,2,FALSE)+ROW()-2)),\"\")","v":{"$error":"#N/A"}},{"$f":"IF(INDIRECT(\"c\" & (VLOOKUP(Rebalance!$D$59,$F$2:$G$48,2,FALSE)+ROW()-2))=Rebalance!$D$59,INDIRECT(\"a\" & (VLOOKUP(Rebalance!$D$59,$F$2:$G$48,2,FALSE)+ROW()-2)),\"\")","v":{"$error":"#N/A"}},{"$f":"IF(INDIRECT(\"c\" & (VLOOKUP(Rebalance!$D$60,$F$2:$G$48,2,FALSE)+ROW()-2))=Rebalance!$D$60,INDIRECT(\"a\" & (VLOOKUP(Rebalance!$D$60,$F$2:$G$48,2,FALSE)+ROW()-2)),\"\")","v":{"$error":"#N/A"}},{"$f":"IF(INDIRECT(\"c\" & (VLOOKUP(Rebalance!$D$61,$F$2:$G$48,2,FALSE)+ROW()-2))=Rebalance!$D$61,INDIRECT(\"a\" & (VLOOKUP(Rebalance!$D$61,$F$2:$G$48,2,FALSE)+ROW()-2)),\"\")","v":{"$error":"#N/A"}},{"$f":"IF(INDIRECT(\"c\" & (VLOOKUP(Rebalance!$D$62,$F$2:$G$48,2,FALSE)+ROW()-2))=Rebalance!$D$62,INDIRECT(\"a\" & (VLOOKUP(Rebalance!$D$62,$F$2:$G$48,2,FALSE)+ROW()-2)),\"\")","v":{"$error":"#N/A"}},{"$f":"IF(INDIRECT(\"c\" & (VLOOKUP(Rebalance!$D$63,$F$2:$G$48,2,FALSE)+ROW()-2))=Rebalance!$D$63,INDIRECT(\"a\" & (VLOOKUP(Rebalance!$D$63,$F$2:$G$48,2,FALSE)+ROW()-2)),\"\")","v":{"$error":"#N/A"}},{"$f":"IF(INDIRECT(\"c\" & (VLOOKUP(Rebalance!$D$64,$F$2:$G$48,2,FALSE)+ROW()-2))=Rebalance!$D$64,INDIRECT(\"a\" & (VLOOKUP(Rebalance!$D$64,$F$2:$G$48,2,FALSE)+ROW()-2)),\"\")","v":{"$error":"#N/A"}},{"$f":"IF(INDIRECT(\"c\" & (VLOOKUP(Rebalance!$D$65,$F$2:$G$48,2,FALSE)+ROW()-2))=Rebalance!$D$65,INDIRECT(\"a\" & (VLOOKUP(Rebalance!$D$65,$F$2:$G$48,2,FALSE)+ROW()-2)),\"\")","v":{"$error":"#N/A"}},{"$f":"IF(INDIRECT(\"c\" & (VLOOKUP(Rebalance!$D$66,$F$2:$G$48,2,FALSE)+ROW()-2))=Rebalance!$D$66,INDIRECT(\"a\" & (VLOOKUP(Rebalance!$D$66,$F$2:$G$48,2,FALSE)+ROW()-2)),\"\")","v":{"$error":"#N/A"}}]
["Prescient Global Growth Feeder Fund A2","PGGA2","Prescient Management Company Ltd",{"$f":"ROW()","v":463},null,null,{"$f":"VLOOKUP(F463,$C$2:$D$599,2,FALSE)","v":{"$error":"#N/A"}},{"$f":"IF(INDIRECT(\"c\" & (VLOOKUP(Rebalance!$D$26,$F$2:$G$48,2,FALSE)+ROW()-2))=Rebalance!$D$26,INDIRECT(\"a\" & (VLOOKUP(Rebalance!$D$26,$F$2:$G$48,2,FALSE)+ROW()-2)),\"\")","v":{"$error":"#N/A"}},{"$f":"IF(INDIRECT(\"c\" & (VLOOKUP(Rebalance!$D$27,$F$2:$G$48,2,FALSE)+ROW()-2))=Rebalance!$D$27,INDIRECT(\"a\" & (VLOOKUP(Rebalance!$D$27,$F$2:$G$48,2,FALSE)+ROW()-2)),\"\")","v":{"$error":"#N/A"}},{"$f":"IF(INDIRECT(\"c\" & (VLOOKUP(Rebalance!$D$28,$F$2:$G$48,2,FALSE)+ROW()-2))=Rebalance!$D$28,INDIRECT(\"a\" & (VLOOKUP(Rebalance!$D$28,$F$2:$G$48,2,FALSE)+ROW()-2)),\"\")","v":{"$error":"#N/A"}},{"$f":"IF(INDIRECT(\"c\" & (VLOOKUP(Rebalance!$D$29,$F$2:$G$48,2,FALSE)+ROW()-2))=Rebalance!$D$29,INDIRECT(\"a\" & (VLOOKUP(Rebalance!$D$29,$F$2:$G$48,2,FALSE)+ROW()-2)),\"\")","v":{"$error":"#N/A"}},{"$f":"IF(INDIRECT(\"c\" & (VLOOKUP(Rebalance!$D$30,$F$2:$G$48,2,FALSE)+ROW()-2))=Rebalance!$D$30,INDIRECT(\"a\" & (VLOOKUP(Rebalance!$D$30,$F$2:$G$48,2,FALSE)+ROW()-2)),\"\")","v":{"$error":"#N/A"}},{"$f":"IF(INDIRECT(\"c\" & (VLOOKUP(Rebalance!$D$31,$F$2:$G$48,2,FALSE)+ROW()-2))=Rebalance!$D$31,INDIRECT(\"a\" & (VLOOKUP(Rebalance!$D$31,$F$2:$G$48,2,FALSE)+ROW()-2)),\"\")","v":{"$error":"#N/A"}},{"$f":"IF(INDIRECT(\"c\" & (VLOOKUP(Rebalance!$D$32,$F$2:$G$48,2,FALSE)+ROW()-2))=Rebalance!$D$32,INDIRECT(\"a\" & (VLOOKUP(Rebalance!$D$32,$F$2:$G$48,2,FALSE)+ROW()-2)),\"\")","v":{"$error":"#N/A"}},{"$f":"IF(INDIRECT(\"c\" & (VLOOKUP(Rebalance!$D$33,$F$2:$G$48,2,FALSE)+ROW()-2))=Rebalance!$D$33,INDIRECT(\"a\" & (VLOOKUP(Rebalance!$D$33,$F$2:$G$48,2,FALSE)+ROW()-2)),\"\")","v":{"$error":"#N/A"}},{"$f":"IF(INDIRECT(\"c\" & (VLOOKUP(Rebalance!$D$34,$F$2:$G$48,2,FALSE)+ROW()-2))=Rebalance!$D$34,INDIRECT(\"a\" & (VLOOKUP(Rebalance!$D$34,$F$2:$G$48,2,FALSE)+ROW()-2)),\"\")","v":{"$error":"#N/A"}},{"$f":"IF(INDIRECT(\"c\" & (VLOOKUP(Rebalance!$D$35,$F$2:$G$48,2,FALSE)+ROW()-2))=Rebalance!$D$35,INDIRECT(\"a\" & (VLOOKUP(Rebalance!$D$35,$F$2:$G$48,2,FALSE)+ROW()-2)),\"\")","v":{"$error":"#N/A"}},{"$f":"IF(INDIRECT(\"c\" & (VLOOKUP(Rebalance!$D$36,$F$2:$G$48,2,FALSE)+ROW()-2))=Rebalance!$D$36,INDIRECT(\"a\" & (VLOOKUP(Rebalance!$D$36,$F$2:$G$48,2,FALSE)+ROW()-2)),\"\")","v":{"$error":"#N/A"}},{"$f":"IF(INDIRECT(\"c\" & (VLOOKUP(Rebalance!$D$37,$F$2:$G$48,2,FALSE)+ROW()-2))=Rebalance!$D$37,INDIRECT(\"a\" & (VLOOKUP(Rebalance!$D$37,$F$2:$G$48,2,FALSE)+ROW()-2)),\"\")","v":{"$error":"#N/A"}},{"$f":"IF(INDIRECT(\"c\" & (VLOOKUP(Rebalance!$D$38,$F$2:$G$48,2,FALSE)+ROW()-2))=Rebalance!$D$38,INDIRECT(\"a\" & (VLOOKUP(Rebalance!$D$38,$F$2:$G$48,2,FALSE)+ROW()-2)),\"\")","v":{"$error":"#N/A"}},{"$f":"IF(INDIRECT(\"c\" & (VLOOKUP(Rebalance!$D$39,$F$2:$G$48,2,FALSE)+ROW()-2))=Rebalance!$D$39,INDIRECT(\"a\" & (VLOOKUP(Rebalance!$D$39,$F$2:$G$48,2,FALSE)+ROW()-2)),\"\")","v":{"$error":"#N/A"}},{"$f":"IF(INDIRECT(\"c\" & (VLOOKUP(Rebalance!$D$40,$F$2:$G$48,2,FALSE)+ROW()-2))=Rebalance!$D$40,INDIRECT(\"a\" & (VLOOKUP(Rebalance!$D$40,$F$2:$G$48,2,FALSE)+ROW()-2)),\"\")","v":{"$error":"#N/A"}},{"$f":"IF(INDIRECT(\"c\" & (VLOOKUP(Rebalance!$D$52,$F$2:$G$48,2,FALSE)+ROW()-2))=Rebalance!$D$52,INDIRECT(\"a\" & (VLOOKUP(Rebalance!$D$52,$F$2:$G$48,2,FALSE)+ROW()-2)),\"\")","v":{"$error":"#N/A"}},{"$f":"IF(INDIRECT(\"c\" & (VLOOKUP(Rebalance!$D$53,$F$2:$G$48,2,FALSE)+ROW()-2))=Rebalance!$D$53,INDIRECT(\"a\" & (VLOOKUP(Rebalance!$D$53,$F$2:$G$48,2,FALSE)+ROW()-2)),\"\")","v":{"$error":"#N/A"}},{"$f":"IF(INDIRECT(\"c\" & (VLOOKUP(Rebalance!$D$54,$F$2:$G$48,2,FALSE)+ROW()-2))=Rebalance!$D$54,INDIRECT(\"a\" & (VLOOKUP(Rebalance!$D$54,$F$2:$G$48,2,FALSE)+ROW()-2)),\"\")","v":{"$error":"#N/A"}},{"$f":"IF(INDIRECT(\"c\" & (VLOOKUP(Rebalance!$D$55,$F$2:$G$48,2,FALSE)+ROW()-2))=Rebalance!$D$55,INDIRECT(\"a\" & (VLOOKUP(Rebalance!$D$55,$F$2:$G$48,2,FALSE)+ROW()-2)),\"\")","v":{"$error":"#N/A"}},{"$f":"IF(INDIRECT(\"c\" & (VLOOKUP(Rebalance!$D$56,$F$2:$G$48,2,FALSE)+ROW()-2))=Rebalance!$D$56,INDIRECT(\"a\" & (VLOOKUP(Rebalance!$D$56,$F$2:$G$48,2,FALSE)+ROW()-2)),\"\")","v":{"$error":"#N/A"}},{"$f":"IF(INDIRECT(\"c\" & (VLOOKUP(Rebalance!$D$57,$F$2:$G$48,2,FALSE)+ROW()-2))=Rebalance!$D$57,INDIRECT(\"a\" & (VLOOKUP(Rebalance!$D$57,$F$2:$G$48,2,FALSE)+ROW()-2)),\"\")","v":{"$error":"#N/A"}},{"$f":"IF(INDIRECT(\"c\" & (VLOOKUP(Rebalance!$D$58,$F$2:$G$48,2,FALSE)+ROW()-2))=Rebalance!$D$58,INDIRECT(\"a\" & (VLOOKUP(Rebalance!$D$58,$F$2:$G$48,2,FALSE)+ROW()-2)),\"\")","v":{"$error":"#N/A"}},{"$f":"IF(INDIRECT(\"c\" & (VLOOKUP(Rebalance!$D$59,$F$2:$G$48,2,FALSE)+ROW()-2))=Rebalance!$D$59,INDIRECT(\"a\" & (VLOOKUP(Rebalance!$D$59,$F$2:$G$48,2,FALSE)+ROW()-2)),\"\")","v":{"$error":"#N/A"}},{"$f":"IF(INDIRECT(\"c\" & (VLOOKUP(Rebalance!$D$60,$F$2:$G$48,2,FALSE)+ROW()-2))=Rebalance!$D$60,INDIRECT(\"a\" & (VLOOKUP(Rebalance!$D$60,$F$2:$G$48,2,FALSE)+ROW()-2)),\"\")","v":{"$error":"#N/A"}},{"$f":"IF(INDIRECT(\"c\" & (VLOOKUP(Rebalance!$D$61,$F$2:$G$48,2,FALSE)+ROW()-2))=Rebalance!$D$61,INDIRECT(\"a\" & (VLOOKUP(Rebalance!$D$61,$F$2:$G$48,2,FALSE)+ROW()-2)),\"\")","v":{"$error":"#N/A"}},{"$f":"IF(INDIRECT(\"c\" & (VLOOKUP(Rebalance!$D$62,$F$2:$G$48,2,FALSE)+ROW()-2))=Rebalance!$D$62,INDIRECT(\"a\" & (VLOOKUP(Rebalance!$D$62,$F$2:$G$48,2,FALSE)+ROW()-2)),\"\")","v":{"$error":"#N/A"}},{"$f":"IF(INDIRECT(\"c\" & (VLOOKUP(Rebalance!$D$63,$F$2:$G$48,2,FALSE)+ROW()-2))=Rebalance!$D$63,INDIRECT(\"a\" & (VLOOKUP(Rebalance!$D$63,$F$2:$G$48,2,FALSE)+ROW()-2)),\"\")","v":{"$error":"#N/A"}},{"$f":"IF(INDIRECT(\"c\" & (VLOOKUP(Rebalance!$D$64,$F$2:$G$48,2,FALSE)+ROW()-2))=Rebalance!$D$64,INDIRECT(\"a\" & (VLOOKUP(Rebalance!$D$64,$F$2:$G$48,2,FALSE)+ROW()-2)),\"\")","v":{"$error":"#N/A"}},{"$f":"IF(INDIRECT(\"c\" & (VLOOKUP(Rebalance!$D$65,$F$2:$G$48,2,FALSE)+ROW()-2))=Rebalance!$D$65,INDIRECT(\"a\" & (VLOOKUP(Rebalance!$D$65,$F$2:$G$48,2,FALSE)+ROW()-2)),\"\")","v":{"$error":"#N/A"}},{"$f":"IF(INDIRECT(\"c\" & (VLOOKUP(Rebalance!$D$66,$F$2:$G$48,2,FALSE)+ROW()-2))=Rebalance!$D$66,INDIRECT(\"a\" & (VLOOKUP(Rebalance!$D$66,$F$2:$G$48,2,FALSE)+ROW()-2)),\"\")","v":{"$error":"#N/A"}}]
["Prescient Income Provider Fund A2","PIPFB5","Prescient Management Company Ltd",{"$f":"ROW()","v":464},null,null,{"$f":"VLOOKUP(F464,$C$2:$D$599,2,FALSE)","v":{"$error":"#N/A"}},{"$f":"IF(INDIRECT(\"c\" & (VLOOKUP(Rebalance!$D$26,$F$2:$G$48,2,FALSE)+ROW()-2))=Rebalance!$D$26,INDIRECT(\"a\" & (VLOOKUP(Rebalance!$D$26,$F$2:$G$48,2,FALSE)+ROW()-2)),\"\")","v":{"$error":"#N/A"}},{"$f":"IF(INDIRECT(\"c\" & (VLOOKUP(Rebalance!$D$27,$F$2:$G$48,2,FALSE)+ROW()-2))=Rebalance!$D$27,INDIRECT(\"a\" & (VLOOKUP(Rebalance!$D$27,$F$2:$G$48,2,FALSE)+ROW()-2)),\"\")","v":{"$error":"#N/A"}},{"$f":"IF(INDIRECT(\"c\" & (VLOOKUP(Rebalance!$D$28,$F$2:$G$48,2,FALSE)+ROW()-2))=Rebalance!$D$28,INDIRECT(\"a\" & (VLOOKUP(Rebalance!$D$28,$F$2:$G$48,2,FALSE)+ROW()-2)),\"\")","v":{"$error":"#N/A"}},{"$f":"IF(INDIRECT(\"c\" & (VLOOKUP(Rebalance!$D$29,$F$2:$G$48,2,FALSE)+ROW()-2))=Rebalance!$D$29,INDIRECT(\"a\" & (VLOOKUP(Rebalance!$D$29,$F$2:$G$48,2,FALSE)+ROW()-2)),\"\")","v":{"$error":"#N/A"}},{"$f":"IF(INDIRECT(\"c\" & (VLOOKUP(Rebalance!$D$30,$F$2:$G$48,2,FALSE)+ROW()-2))=Rebalance!$D$30,INDIRECT(\"a\" & (VLOOKUP(Rebalance!$D$30,$F$2:$G$48,2,FALSE)+ROW()-2)),\"\")","v":{"$error":"#N/A"}},{"$f":"IF(INDIRECT(\"c\" & (VLOOKUP(Rebalance!$D$31,$F$2:$G$48,2,FALSE)+ROW()-2))=Rebalance!$D$31,INDIRECT(\"a\" & (VLOOKUP(Rebalance!$D$31,$F$2:$G$48,2,FALSE)+ROW()-2)),\"\")","v":{"$error":"#N/A"}},{"$f":"IF(INDIRECT(\"c\" & (VLOOKUP(Rebalance!$D$32,$F$2:$G$48,2,FALSE)+ROW()-2))=Rebalance!$D$32,INDIRECT(\"a\" & (VLOOKUP(Rebalance!$D$32,$F$2:$G$48,2,FALSE)+ROW()-2)),\"\")","v":{"$error":"#N/A"}},{"$f":"IF(INDIRECT(\"c\" & (VLOOKUP(Rebalance!$D$33,$F$2:$G$48,2,FALSE)+ROW()-2))=Rebalance!$D$33,INDIRECT(\"a\" & (VLOOKUP(Rebalance!$D$33,$F$2:$G$48,2,FALSE)+ROW()-2)),\"\")","v":{"$error":"#N/A"}},{"$f":"IF(INDIRECT(\"c\" & (VLOOKUP(Rebalance!$D$34,$F$2:$G$48,2,FALSE)+ROW()-2))=Rebalance!$D$34,INDIRECT(\"a\" & (VLOOKUP(Rebalance!$D$34,$F$2:$G$48,2,FALSE)+ROW()-2)),\"\")","v":{"$error":"#N/A"}},{"$f":"IF(INDIRECT(\"c\" & (VLOOKUP(Rebalance!$D$35,$F$2:$G$48,2,FALSE)+ROW()-2))=Rebalance!$D$35,INDIRECT(\"a\" & (VLOOKUP(Rebalance!$D$35,$F$2:$G$48,2,FALSE)+ROW()-2)),\"\")","v":{"$error":"#N/A"}},{"$f":"IF(INDIRECT(\"c\" & (VLOOKUP(Rebalance!$D$36,$F$2:$G$48,2,FALSE)+ROW()-2))=Rebalance!$D$36,INDIRECT(\"a\" & (VLOOKUP(Rebalance!$D$36,$F$2:$G$48,2,FALSE)+ROW()-2)),\"\")","v":{"$error":"#N/A"}},{"$f":"IF(INDIRECT(\"c\" & (VLOOKUP(Rebalance!$D$37,$F$2:$G$48,2,FALSE)+ROW()-2))=Rebalance!$D$37,INDIRECT(\"a\" & (VLOOKUP(Rebalance!$D$37,$F$2:$G$48,2,FALSE)+ROW()-2)),\"\")","v":{"$error":"#N/A"}},{"$f":"IF(INDIRECT(\"c\" & (VLOOKUP(Rebalance!$D$38,$F$2:$G$48,2,FALSE)+ROW()-2))=Rebalance!$D$38,INDIRECT(\"a\" & (VLOOKUP(Rebalance!$D$38,$F$2:$G$48,2,FALSE)+ROW()-2)),\"\")","v":{"$error":"#N/A"}},{"$f":"IF(INDIRECT(\"c\" & (VLOOKUP(Rebalance!$D$39,$F$2:$G$48,2,FALSE)+ROW()-2))=Rebalance!$D$39,INDIRECT(\"a\" & (VLOOKUP(Rebalance!$D$39,$F$2:$G$48,2,FALSE)+ROW()-2)),\"\")","v":{"$error":"#N/A"}},{"$f":"IF(INDIRECT(\"c\" & (VLOOKUP(Rebalance!$D$40,$F$2:$G$48,2,FALSE)+ROW()-2))=Rebalance!$D$40,INDIRECT(\"a\" & (VLOOKUP(Rebalance!$D$40,$F$2:$G$48,2,FALSE)+ROW()-2)),\"\")","v":{"$error":"#N/A"}},{"$f":"IF(INDIRECT(\"c\" & (VLOOKUP(Rebalance!$D$52,$F$2:$G$48,2,FALSE)+ROW()-2))=Rebalance!$D$52,INDIRECT(\"a\" & (VLOOKUP(Rebalance!$D$52,$F$2:$G$48,2,FALSE)+ROW()-2)),\"\")","v":{"$error":"#N/A"}},{"$f":"IF(INDIRECT(\"c\" & (VLOOKUP(Rebalance!$D$53,$F$2:$G$48,2,FALSE)+ROW()-2))=Rebalance!$D$53,INDIRECT(\"a\" & (VLOOKUP(Rebalance!$D$53,$F$2:$G$48,2,FALSE)+ROW()-2)),\"\")","v":{"$error":"#N/A"}},{"$f":"IF(INDIRECT(\"c\" & (VLOOKUP(Rebalance!$D$54,$F$2:$G$48,2,FALSE)+ROW()-2))=Rebalance!$D$54,INDIRECT(\"a\" & (VLOOKUP(Rebalance!$D$54,$F$2:$G$48,2,FALSE)+ROW()-2)),\"\")","v":{"$error":"#N/A"}},{"$f":"IF(INDIRECT(\"c\" & (VLOOKUP(Rebalance!$D$55,$F$2:$G$48,2,FALSE)+ROW()-2))=Rebalance!$D$55,INDIRECT(\"a\" & (VLOOKUP(Rebalance!$D$55,$F$2:$G$48,2,FALSE)+ROW()-2)),\"\")","v":{"$error":"#N/A"}},{"$f":"IF(INDIRECT(\"c\" & (VLOOKUP(Rebalance!$D$56,$F$2:$G$48,2,FALSE)+ROW()-2))=Rebalance!$D$56,INDIRECT(\"a\" & (VLOOKUP(Rebalance!$D$56,$F$2:$G$48,2,FALSE)+ROW()-2)),\"\")","v":{"$error":"#N/A"}},{"$f":"IF(INDIRECT(\"c\" & (VLOOKUP(Rebalance!$D$57,$F$2:$G$48,2,FALSE)+ROW()-2))=Rebalance!$D$57,INDIRECT(\"a\" & (VLOOKUP(Rebalance!$D$57,$F$2:$G$48,2,FALSE)+ROW()-2)),\"\")","v":{"$error":"#N/A"}},{"$f":"IF(INDIRECT(\"c\" & (VLOOKUP(Rebalance!$D$58,$F$2:$G$48,2,FALSE)+ROW()-2))=Rebalance!$D$58,INDIRECT(\"a\" & (VLOOKUP(Rebalance!$D$58,$F$2:$G$48,2,FALSE)+ROW()-2)),\"\")","v":{"$error":"#N/A"}},{"$f":"IF(INDIRECT(\"c\" & (VLOOKUP(Rebalance!$D$59,$F$2:$G$48,2,FALSE)+ROW()-2))=Rebalance!$D$59,INDIRECT(\"a\" & (VLOOKUP(Rebalance!$D$59,$F$2:$G$48,2,FALSE)+ROW()-2)),\"\")","v":{"$error":"#N/A"}},{"$f":"IF(INDIRECT(\"c\" & (VLOOKUP(Rebalance!$D$60,$F$2:$G$48,2,FALSE)+ROW()-2))=Rebalance!$D$60,INDIRECT(\"a\" & (VLOOKUP(Rebalance!$D$60,$F$2:$G$48,2,FALSE)+ROW()-2)),\"\")","v":{"$error":"#N/A"}},{"$f":"IF(INDIRECT(\"c\" & (VLOOKUP(Rebalance!$D$61,$F$2:$G$48,2,FALSE)+ROW()-2))=Rebalance!$D$61,INDIRECT(\"a\" & (VLOOKUP(Rebalance!$D$61,$F$2:$G$48,2,FALSE)+ROW()-2)),\"\")","v":{"$error":"#N/A"}},{"$f":"IF(INDIRECT(\"c\" & (VLOOKUP(Rebalance!$D$62,$F$2:$G$48,2,FALSE)+ROW()-2))=Rebalance!$D$62,INDIRECT(\"a\" & (VLOOKUP(Rebalance!$D$62,$F$2:$G$48,2,FALSE)+ROW()-2)),\"\")","v":{"$error":"#N/A"}},{"$f":"IF(INDIRECT(\"c\" & (VLOOKUP(Rebalance!$D$63,$F$2:$G$48,2,FALSE)+ROW()-2))=Rebalance!$D$63,INDIRECT(\"a\" & (VLOOKUP(Rebalance!$D$63,$F$2:$G$48,2,FALSE)+ROW()-2)),\"\")","v":{"$error":"#N/A"}},{"$f":"IF(INDIRECT(\"c\" & (VLOOKUP(Rebalance!$D$64,$F$2:$G$48,2,FALSE)+ROW()-2))=Rebalance!$D$64,INDIRECT(\"a\" & (VLOOKUP(Rebalance!$D$64,$F$2:$G$48,2,FALSE)+ROW()-2)),\"\")","v":{"$error":"#N/A"}},{"$f":"IF(INDIRECT(\"c\" & (VLOOKUP(Rebalance!$D$65,$F$2:$G$48,2,FALSE)+ROW()-2))=Rebalance!$D$65,INDIRECT(\"a\" & (VLOOKUP(Rebalance!$D$65,$F$2:$G$48,2,FALSE)+ROW()-2)),\"\")","v":{"$error":"#N/A"}},{"$f":"IF(INDIRECT(\"c\" & (VLOOKUP(Rebalance!$D$66,$F$2:$G$48,2,FALSE)+ROW()-2))=Rebalance!$D$66,INDIRECT(\"a\" & (VLOOKUP(Rebalance!$D$66,$F$2:$G$48,2,FALSE)+ROW()-2)),\"\")","v":{"$error":"#N/A"}}]
["Prescient Positive Return QuantPlus Fund A2","PPRQA2","Prescient Management Company Ltd",{"$f":"ROW()","v":465},null,null,{"$f":"VLOOKUP(F465,$C$2:$D$599,2,FALSE)","v":{"$error":"#N/A"}},{"$f":"IF(INDIRECT(\"c\" & (VLOOKUP(Rebalance!$D$26,$F$2:$G$48,2,FALSE)+ROW()-2))=Rebalance!$D$26,INDIRECT(\"a\" & (VLOOKUP(Rebalance!$D$26,$F$2:$G$48,2,FALSE)+ROW()-2)),\"\")","v":{"$error":"#N/A"}},{"$f":"IF(INDIRECT(\"c\" & (VLOOKUP(Rebalance!$D$27,$F$2:$G$48,2,FALSE)+ROW()-2))=Rebalance!$D$27,INDIRECT(\"a\" & (VLOOKUP(Rebalance!$D$27,$F$2:$G$48,2,FALSE)+ROW()-2)),\"\")","v":{"$error":"#N/A"}},{"$f":"IF(INDIRECT(\"c\" & (VLOOKUP(Rebalance!$D$28,$F$2:$G$48,2,FALSE)+ROW()-2))=Rebalance!$D$28,INDIRECT(\"a\" & (VLOOKUP(Rebalance!$D$28,$F$2:$G$48,2,FALSE)+ROW()-2)),\"\")","v":{"$error":"#N/A"}},{"$f":"IF(INDIRECT(\"c\" & (VLOOKUP(Rebalance!$D$29,$F$2:$G$48,2,FALSE)+ROW()-2))=Rebalance!$D$29,INDIRECT(\"a\" & (VLOOKUP(Rebalance!$D$29,$F$2:$G$48,2,FALSE)+ROW()-2)),\"\")","v":{"$error":"#N/A"}},{"$f":"IF(INDIRECT(\"c\" & (VLOOKUP(Rebalance!$D$30,$F$2:$G$48,2,FALSE)+ROW()-2))=Rebalance!$D$30,INDIRECT(\"a\" & (VLOOKUP(Rebalance!$D$30,$F$2:$G$48,2,FALSE)+ROW()-2)),\"\")","v":{"$error":"#N/A"}},{"$f":"IF(INDIRECT(\"c\" & (VLOOKUP(Rebalance!$D$31,$F$2:$G$48,2,FALSE)+ROW()-2))=Rebalance!$D$31,INDIRECT(\"a\" & (VLOOKUP(Rebalance!$D$31,$F$2:$G$48,2,FALSE)+ROW()-2)),\"\")","v":{"$error":"#N/A"}},{"$f":"IF(INDIRECT(\"c\" & (VLOOKUP(Rebalance!$D$32,$F$2:$G$48,2,FALSE)+ROW()-2))=Rebalance!$D$32,INDIRECT(\"a\" & (VLOOKUP(Rebalance!$D$32,$F$2:$G$48,2,FALSE)+ROW()-2)),\"\")","v":{"$error":"#N/A"}},{"$f":"IF(INDIRECT(\"c\" & (VLOOKUP(Rebalance!$D$33,$F$2:$G$48,2,FALSE)+ROW()-2))=Rebalance!$D$33,INDIRECT(\"a\" & (VLOOKUP(Rebalance!$D$33,$F$2:$G$48,2,FALSE)+ROW()-2)),\"\")","v":{"$error":"#N/A"}},{"$f":"IF(INDIRECT(\"c\" & (VLOOKUP(Rebalance!$D$34,$F$2:$G$48,2,FALSE)+ROW()-2))=Rebalance!$D$34,INDIRECT(\"a\" & (VLOOKUP(Rebalance!$D$34,$F$2:$G$48,2,FALSE)+ROW()-2)),\"\")","v":{"$error":"#N/A"}},{"$f":"IF(INDIRECT(\"c\" & (VLOOKUP(Rebalance!$D$35,$F$2:$G$48,2,FALSE)+ROW()-2))=Rebalance!$D$35,INDIRECT(\"a\" & (VLOOKUP(Rebalance!$D$35,$F$2:$G$48,2,FALSE)+ROW()-2)),\"\")","v":{"$error":"#N/A"}},{"$f":"IF(INDIRECT(\"c\" & (VLOOKUP(Rebalance!$D$36,$F$2:$G$48,2,FALSE)+ROW()-2))=Rebalance!$D$36,INDIRECT(\"a\" & (VLOOKUP(Rebalance!$D$36,$F$2:$G$48,2,FALSE)+ROW()-2)),\"\")","v":{"$error":"#N/A"}},{"$f":"IF(INDIRECT(\"c\" & (VLOOKUP(Rebalance!$D$37,$F$2:$G$48,2,FALSE)+ROW()-2))=Rebalance!$D$37,INDIRECT(\"a\" & (VLOOKUP(Rebalance!$D$37,$F$2:$G$48,2,FALSE)+ROW()-2)),\"\")","v":{"$error":"#N/A"}},{"$f":"IF(INDIRECT(\"c\" & (VLOOKUP(Rebalance!$D$38,$F$2:$G$48,2,FALSE)+ROW()-2))=Rebalance!$D$38,INDIRECT(\"a\" & (VLOOKUP(Rebalance!$D$38,$F$2:$G$48,2,FALSE)+ROW()-2)),\"\")","v":{"$error":"#N/A"}},{"$f":"IF(INDIRECT(\"c\" & (VLOOKUP(Rebalance!$D$39,$F$2:$G$48,2,FALSE)+ROW()-2))=Rebalance!$D$39,INDIRECT(\"a\" & (VLOOKUP(Rebalance!$D$39,$F$2:$G$48,2,FALSE)+ROW()-2)),\"\")","v":{"$error":"#N/A"}},{"$f":"IF(INDIRECT(\"c\" & (VLOOKUP(Rebalance!$D$40,$F$2:$G$48,2,FALSE)+ROW()-2))=Rebalance!$D$40,INDIRECT(\"a\" & (VLOOKUP(Rebalance!$D$40,$F$2:$G$48,2,FALSE)+ROW()-2)),\"\")","v":{"$error":"#N/A"}},{"$f":"IF(INDIRECT(\"c\" & (VLOOKUP(Rebalance!$D$52,$F$2:$G$48,2,FALSE)+ROW()-2))=Rebalance!$D$52,INDIRECT(\"a\" & (VLOOKUP(Rebalance!$D$52,$F$2:$G$48,2,FALSE)+ROW()-2)),\"\")","v":{"$error":"#N/A"}},{"$f":"IF(INDIRECT(\"c\" & (VLOOKUP(Rebalance!$D$53,$F$2:$G$48,2,FALSE)+ROW()-2))=Rebalance!$D$53,INDIRECT(\"a\" & (VLOOKUP(Rebalance!$D$53,$F$2:$G$48,2,FALSE)+ROW()-2)),\"\")","v":{"$error":"#N/A"}},{"$f":"IF(INDIRECT(\"c\" & (VLOOKUP(Rebalance!$D$54,$F$2:$G$48,2,FALSE)+ROW()-2))=Rebalance!$D$54,INDIRECT(\"a\" & (VLOOKUP(Rebalance!$D$54,$F$2:$G$48,2,FALSE)+ROW()-2)),\"\")","v":{"$error":"#N/A"}},{"$f":"IF(INDIRECT(\"c\" & (VLOOKUP(Rebalance!$D$55,$F$2:$G$48,2,FALSE)+ROW()-2))=Rebalance!$D$55,INDIRECT(\"a\" & (VLOOKUP(Rebalance!$D$55,$F$2:$G$48,2,FALSE)+ROW()-2)),\"\")","v":{"$error":"#N/A"}},{"$f":"IF(INDIRECT(\"c\" & (VLOOKUP(Rebalance!$D$56,$F$2:$G$48,2,FALSE)+ROW()-2))=Rebalance!$D$56,INDIRECT(\"a\" & (VLOOKUP(Rebalance!$D$56,$F$2:$G$48,2,FALSE)+ROW()-2)),\"\")","v":{"$error":"#N/A"}},{"$f":"IF(INDIRECT(\"c\" & (VLOOKUP(Rebalance!$D$57,$F$2:$G$48,2,FALSE)+ROW()-2))=Rebalance!$D$57,INDIRECT(\"a\" & (VLOOKUP(Rebalance!$D$57,$F$2:$G$48,2,FALSE)+ROW()-2)),\"\")","v":{"$error":"#N/A"}},{"$f":"IF(INDIRECT(\"c\" & (VLOOKUP(Rebalance!$D$58,$F$2:$G$48,2,FALSE)+ROW()-2))=Rebalance!$D$58,INDIRECT(\"a\" & (VLOOKUP(Rebalance!$D$58,$F$2:$G$48,2,FALSE)+ROW()-2)),\"\")","v":{"$error":"#N/A"}},{"$f":"IF(INDIRECT(\"c\" & (VLOOKUP(Rebalance!$D$59,$F$2:$G$48,2,FALSE)+ROW()-2))=Rebalance!$D$59,INDIRECT(\"a\" & (VLOOKUP(Rebalance!$D$59,$F$2:$G$48,2,FALSE)+ROW()-2)),\"\")","v":{"$error":"#N/A"}},{"$f":"IF(INDIRECT(\"c\" & (VLOOKUP(Rebalance!$D$60,$F$2:$G$48,2,FALSE)+ROW()-2))=Rebalance!$D$60,INDIRECT(\"a\" & (VLOOKUP(Rebalance!$D$60,$F$2:$G$48,2,FALSE)+ROW()-2)),\"\")","v":{"$error":"#N/A"}},{"$f":"IF(INDIRECT(\"c\" & (VLOOKUP(Rebalance!$D$61,$F$2:$G$48,2,FALSE)+ROW()-2))=Rebalance!$D$61,INDIRECT(\"a\" & (VLOOKUP(Rebalance!$D$61,$F$2:$G$48,2,FALSE)+ROW()-2)),\"\")","v":{"$error":"#N/A"}},{"$f":"IF(INDIRECT(\"c\" & (VLOOKUP(Rebalance!$D$62,$F$2:$G$48,2,FALSE)+ROW()-2))=Rebalance!$D$62,INDIRECT(\"a\" & (VLOOKUP(Rebalance!$D$62,$F$2:$G$48,2,FALSE)+ROW()-2)),\"\")","v":{"$error":"#N/A"}},{"$f":"IF(INDIRECT(\"c\" & (VLOOKUP(Rebalance!$D$63,$F$2:$G$48,2,FALSE)+ROW()-2))=Rebalance!$D$63,INDIRECT(\"a\" & (VLOOKUP(Rebalance!$D$63,$F$2:$G$48,2,FALSE)+ROW()-2)),\"\")","v":{"$error":"#N/A"}},{"$f":"IF(INDIRECT(\"c\" & (VLOOKUP(Rebalance!$D$64,$F$2:$G$48,2,FALSE)+ROW()-2))=Rebalance!$D$64,INDIRECT(\"a\" & (VLOOKUP(Rebalance!$D$64,$F$2:$G$48,2,FALSE)+ROW()-2)),\"\")","v":{"$error":"#N/A"}},{"$f":"IF(INDIRECT(\"c\" & (VLOOKUP(Rebalance!$D$65,$F$2:$G$48,2,FALSE)+ROW()-2))=Rebalance!$D$65,INDIRECT(\"a\" & (VLOOKUP(Rebalance!$D$65,$F$2:$G$48,2,FALSE)+ROW()-2)),\"\")","v":{"$error":"#N/A"}},{"$f":"IF(INDIRECT(\"c\" & (VLOOKUP(Rebalance!$D$66,$F$2:$G$48,2,FALSE)+ROW()-2))=Rebalance!$D$66,INDIRECT(\"a\" & (VLOOKUP(Rebalance!$D$66,$F$2:$G$48,2,FALSE)+ROW()-2)),\"\")","v":{"$error":"#N/A"}}]
["Seed Income Fund A1","SIFA1","Prescient Management Company Ltd",{"$f":"ROW()","v":466},null,null,{"$f":"VLOOKUP(F466,$C$2:$D$599,2,FALSE)","v":{"$error":"#N/A"}},{"$f":"IF(INDIRECT(\"c\" & (VLOOKUP(Rebalance!$D$26,$F$2:$G$48,2,FALSE)+ROW()-2))=Rebalance!$D$26,INDIRECT(\"a\" & (VLOOKUP(Rebalance!$D$26,$F$2:$G$48,2,FALSE)+ROW()-2)),\"\")","v":{"$error":"#N/A"}},{"$f":"IF(INDIRECT(\"c\" & (VLOOKUP(Rebalance!$D$27,$F$2:$G$48,2,FALSE)+ROW()-2))=Rebalance!$D$27,INDIRECT(\"a\" & (VLOOKUP(Rebalance!$D$27,$F$2:$G$48,2,FALSE)+ROW()-2)),\"\")","v":{"$error":"#N/A"}},{"$f":"IF(INDIRECT(\"c\" & (VLOOKUP(Rebalance!$D$28,$F$2:$G$48,2,FALSE)+ROW()-2))=Rebalance!$D$28,INDIRECT(\"a\" & (VLOOKUP(Rebalance!$D$28,$F$2:$G$48,2,FALSE)+ROW()-2)),\"\")","v":{"$error":"#N/A"}},{"$f":"IF(INDIRECT(\"c\" & (VLOOKUP(Rebalance!$D$29,$F$2:$G$48,2,FALSE)+ROW()-2))=Rebalance!$D$29,INDIRECT(\"a\" & (VLOOKUP(Rebalance!$D$29,$F$2:$G$48,2,FALSE)+ROW()-2)),\"\")","v":{"$error":"#N/A"}},{"$f":"IF(INDIRECT(\"c\" & (VLOOKUP(Rebalance!$D$30,$F$2:$G$48,2,FALSE)+ROW()-2))=Rebalance!$D$30,INDIRECT(\"a\" & (VLOOKUP(Rebalance!$D$30,$F$2:$G$48,2,FALSE)+ROW()-2)),\"\")","v":{"$error":"#N/A"}},{"$f":"IF(INDIRECT(\"c\" & (VLOOKUP(Rebalance!$D$31,$F$2:$G$48,2,FALSE)+ROW()-2))=Rebalance!$D$31,INDIRECT(\"a\" & (VLOOKUP(Rebalance!$D$31,$F$2:$G$48,2,FALSE)+ROW()-2)),\"\")","v":{"$error":"#N/A"}},{"$f":"IF(INDIRECT(\"c\" & (VLOOKUP(Rebalance!$D$32,$F$2:$G$48,2,FALSE)+ROW()-2))=Rebalance!$D$32,INDIRECT(\"a\" & (VLOOKUP(Rebalance!$D$32,$F$2:$G$48,2,FALSE)+ROW()-2)),\"\")","v":{"$error":"#N/A"}},{"$f":"IF(INDIRECT(\"c\" & (VLOOKUP(Rebalance!$D$33,$F$2:$G$48,2,FALSE)+ROW()-2))=Rebalance!$D$33,INDIRECT(\"a\" & (VLOOKUP(Rebalance!$D$33,$F$2:$G$48,2,FALSE)+ROW()-2)),\"\")","v":{"$error":"#N/A"}},{"$f":"IF(INDIRECT(\"c\" & (VLOOKUP(Rebalance!$D$34,$F$2:$G$48,2,FALSE)+ROW()-2))=Rebalance!$D$34,INDIRECT(\"a\" & (VLOOKUP(Rebalance!$D$34,$F$2:$G$48,2,FALSE)+ROW()-2)),\"\")","v":{"$error":"#N/A"}},{"$f":"IF(INDIRECT(\"c\" & (VLOOKUP(Rebalance!$D$35,$F$2:$G$48,2,FALSE)+ROW()-2))=Rebalance!$D$35,INDIRECT(\"a\" & (VLOOKUP(Rebalance!$D$35,$F$2:$G$48,2,FALSE)+ROW()-2)),\"\")","v":{"$error":"#N/A"}},{"$f":"IF(INDIRECT(\"c\" & (VLOOKUP(Rebalance!$D$36,$F$2:$G$48,2,FALSE)+ROW()-2))=Rebalance!$D$36,INDIRECT(\"a\" & (VLOOKUP(Rebalance!$D$36,$F$2:$G$48,2,FALSE)+ROW()-2)),\"\")","v":{"$error":"#N/A"}},{"$f":"IF(INDIRECT(\"c\" & (VLOOKUP(Rebalance!$D$37,$F$2:$G$48,2,FALSE)+ROW()-2))=Rebalance!$D$37,INDIRECT(\"a\" & (VLOOKUP(Rebalance!$D$37,$F$2:$G$48,2,FALSE)+ROW()-2)),\"\")","v":{"$error":"#N/A"}},{"$f":"IF(INDIRECT(\"c\" & (VLOOKUP(Rebalance!$D$38,$F$2:$G$48,2,FALSE)+ROW()-2))=Rebalance!$D$38,INDIRECT(\"a\" & (VLOOKUP(Rebalance!$D$38,$F$2:$G$48,2,FALSE)+ROW()-2)),\"\")","v":{"$error":"#N/A"}},{"$f":"IF(INDIRECT(\"c\" & (VLOOKUP(Rebalance!$D$39,$F$2:$G$48,2,FALSE)+ROW()-2))=Rebalance!$D$39,INDIRECT(\"a\" & (VLOOKUP(Rebalance!$D$39,$F$2:$G$48,2,FALSE)+ROW()-2)),\"\")","v":{"$error":"#N/A"}},{"$f":"IF(INDIRECT(\"c\" & (VLOOKUP(Rebalance!$D$40,$F$2:$G$48,2,FALSE)+ROW()-2))=Rebalance!$D$40,INDIRECT(\"a\" & (VLOOKUP(Rebalance!$D$40,$F$2:$G$48,2,FALSE)+ROW()-2)),\"\")","v":{"$error":"#N/A"}},{"$f":"IF(INDIRECT(\"c\" & (VLOOKUP(Rebalance!$D$52,$F$2:$G$48,2,FALSE)+ROW()-2))=Rebalance!$D$52,INDIRECT(\"a\" & (VLOOKUP(Rebalance!$D$52,$F$2:$G$48,2,FALSE)+ROW()-2)),\"\")","v":{"$error":"#N/A"}},{"$f":"IF(INDIRECT(\"c\" & (VLOOKUP(Rebalance!$D$53,$F$2:$G$48,2,FALSE)+ROW()-2))=Rebalance!$D$53,INDIRECT(\"a\" & (VLOOKUP(Rebalance!$D$53,$F$2:$G$48,2,FALSE)+ROW()-2)),\"\")","v":{"$error":"#N/A"}},{"$f":"IF(INDIRECT(\"c\" & (VLOOKUP(Rebalance!$D$54,$F$2:$G$48,2,FALSE)+ROW()-2))=Rebalance!$D$54,INDIRECT(\"a\" & (VLOOKUP(Rebalance!$D$54,$F$2:$G$48,2,FALSE)+ROW()-2)),\"\")","v":{"$error":"#N/A"}},{"$f":"IF(INDIRECT(\"c\" & (VLOOKUP(Rebalance!$D$55,$F$2:$G$48,2,FALSE)+ROW()-2))=Rebalance!$D$55,INDIRECT(\"a\" & (VLOOKUP(Rebalance!$D$55,$F$2:$G$48,2,FALSE)+ROW()-2)),\"\")","v":{"$error":"#N/A"}},{"$f":"IF(INDIRECT(\"c\" & (VLOOKUP(Rebalance!$D$56,$F$2:$G$48,2,FALSE)+ROW()-2))=Rebalance!$D$56,INDIRECT(\"a\" & (VLOOKUP(Rebalance!$D$56,$F$2:$G$48,2,FALSE)+ROW()-2)),\"\")","v":{"$error":"#N/A"}},{"$f":"IF(INDIRECT(\"c\" & (VLOOKUP(Rebalance!$D$57,$F$2:$G$48,2,FALSE)+ROW()-2))=Rebalance!$D$57,INDIRECT(\"a\" & (VLOOKUP(Rebalance!$D$57,$F$2:$G$48,2,FALSE)+ROW()-2)),\"\")","v":{"$error":"#N/A"}},{"$f":"IF(INDIRECT(\"c\" & (VLOOKUP(Rebalance!$D$58,$F$2:$G$48,2,FALSE)+ROW()-2))=Rebalance!$D$58,INDIRECT(\"a\" & (VLOOKUP(Rebalance!$D$58,$F$2:$G$48,2,FALSE)+ROW()-2)),\"\")","v":{"$error":"#N/A"}},{"$f":"IF(INDIRECT(\"c\" & (VLOOKUP(Rebalance!$D$59,$F$2:$G$48,2,FALSE)+ROW()-2))=Rebalance!$D$59,INDIRECT(\"a\" & (VLOOKUP(Rebalance!$D$59,$F$2:$G$48,2,FALSE)+ROW()-2)),\"\")","v":{"$error":"#N/A"}},{"$f":"IF(INDIRECT(\"c\" & (VLOOKUP(Rebalance!$D$60,$F$2:$G$48,2,FALSE)+ROW()-2))=Rebalance!$D$60,INDIRECT(\"a\" & (VLOOKUP(Rebalance!$D$60,$F$2:$G$48,2,FALSE)+ROW()-2)),\"\")","v":{"$error":"#N/A"}},{"$f":"IF(INDIRECT(\"c\" & (VLOOKUP(Rebalance!$D$61,$F$2:$G$48,2,FALSE)+ROW()-2))=Rebalance!$D$61,INDIRECT(\"a\" & (VLOOKUP(Rebalance!$D$61,$F$2:$G$48,2,FALSE)+ROW()-2)),\"\")","v":{"$error":"#N/A"}},{"$f":"IF(INDIRECT(\"c\" & (VLOOKUP(Rebalance!$D$62,$F$2:$G$48,2,FALSE)+ROW()-2))=Rebalance!$D$62,INDIRECT(\"a\" & (VLOOKUP(Rebalance!$D$62,$F$2:$G$48,2,FALSE)+ROW()-2)),\"\")","v":{"$error":"#N/A"}},{"$f":"IF(INDIRECT(\"c\" & (VLOOKUP(Rebalance!$D$63,$F$2:$G$48,2,FALSE)+ROW()-2))=Rebalance!$D$63,INDIRECT(\"a\" & (VLOOKUP(Rebalance!$D$63,$F$2:$G$48,2,FALSE)+ROW()-2)),\"\")","v":{"$error":"#N/A"}},{"$f":"IF(INDIRECT(\"c\" & (VLOOKUP(Rebalance!$D$64,$F$2:$G$48,2,FALSE)+ROW()-2))=Rebalance!$D$64,INDIRECT(\"a\" & (VLOOKUP(Rebalance!$D$64,$F$2:$G$48,2,FALSE)+ROW()-2)),\"\")","v":{"$error":"#N/A"}},{"$f":"IF(INDIRECT(\"c\" & (VLOOKUP(Rebalance!$D$65,$F$2:$G$48,2,FALSE)+ROW()-2))=Rebalance!$D$65,INDIRECT(\"a\" & (VLOOKUP(Rebalance!$D$65,$F$2:$G$48,2,FALSE)+ROW()-2)),\"\")","v":{"$error":"#N/A"}},{"$f":"IF(INDIRECT(\"c\" & (VLOOKUP(Rebalance!$D$66,$F$2:$G$48,2,FALSE)+ROW()-2))=Rebalance!$D$66,INDIRECT(\"a\" & (VLOOKUP(Rebalance!$D$66,$F$2:$G$48,2,FALSE)+ROW()-2)),\"\")","v":{"$error":"#N/A"}}]
["Seed Stable – A1","MSAR","Prescient Management Company Ltd",{"$f":"ROW()","v":467},null,null,{"$f":"VLOOKUP(F467,$C$2:$D$599,2,FALSE)","v":{"$error":"#N/A"}},{"$f":"IF(INDIRECT(\"c\" & (VLOOKUP(Rebalance!$D$26,$F$2:$G$48,2,FALSE)+ROW()-2))=Rebalance!$D$26,INDIRECT(\"a\" & (VLOOKUP(Rebalance!$D$26,$F$2:$G$48,2,FALSE)+ROW()-2)),\"\")","v":{"$error":"#N/A"}},{"$f":"IF(INDIRECT(\"c\" & (VLOOKUP(Rebalance!$D$27,$F$2:$G$48,2,FALSE)+ROW()-2))=Rebalance!$D$27,INDIRECT(\"a\" & (VLOOKUP(Rebalance!$D$27,$F$2:$G$48,2,FALSE)+ROW()-2)),\"\")","v":{"$error":"#N/A"}},{"$f":"IF(INDIRECT(\"c\" & (VLOOKUP(Rebalance!$D$28,$F$2:$G$48,2,FALSE)+ROW()-2))=Rebalance!$D$28,INDIRECT(\"a\" & (VLOOKUP(Rebalance!$D$28,$F$2:$G$48,2,FALSE)+ROW()-2)),\"\")","v":{"$error":"#N/A"}},{"$f":"IF(INDIRECT(\"c\" & (VLOOKUP(Rebalance!$D$29,$F$2:$G$48,2,FALSE)+ROW()-2))=Rebalance!$D$29,INDIRECT(\"a\" & (VLOOKUP(Rebalance!$D$29,$F$2:$G$48,2,FALSE)+ROW()-2)),\"\")","v":{"$error":"#N/A"}},{"$f":"IF(INDIRECT(\"c\" & (VLOOKUP(Rebalance!$D$30,$F$2:$G$48,2,FALSE)+ROW()-2))=Rebalance!$D$30,INDIRECT(\"a\" & (VLOOKUP(Rebalance!$D$30,$F$2:$G$48,2,FALSE)+ROW()-2)),\"\")","v":{"$error":"#N/A"}},{"$f":"IF(INDIRECT(\"c\" & (VLOOKUP(Rebalance!$D$31,$F$2:$G$48,2,FALSE)+ROW()-2))=Rebalance!$D$31,INDIRECT(\"a\" & (VLOOKUP(Rebalance!$D$31,$F$2:$G$48,2,FALSE)+ROW()-2)),\"\")","v":{"$error":"#N/A"}},{"$f":"IF(INDIRECT(\"c\" & (VLOOKUP(Rebalance!$D$32,$F$2:$G$48,2,FALSE)+ROW()-2))=Rebalance!$D$32,INDIRECT(\"a\" & (VLOOKUP(Rebalance!$D$32,$F$2:$G$48,2,FALSE)+ROW()-2)),\"\")","v":{"$error":"#N/A"}},{"$f":"IF(INDIRECT(\"c\" & (VLOOKUP(Rebalance!$D$33,$F$2:$G$48,2,FALSE)+ROW()-2))=Rebalance!$D$33,INDIRECT(\"a\" & (VLOOKUP(Rebalance!$D$33,$F$2:$G$48,2,FALSE)+ROW()-2)),\"\")","v":{"$error":"#N/A"}},{"$f":"IF(INDIRECT(\"c\" & (VLOOKUP(Rebalance!$D$34,$F$2:$G$48,2,FALSE)+ROW()-2))=Rebalance!$D$34,INDIRECT(\"a\" & (VLOOKUP(Rebalance!$D$34,$F$2:$G$48,2,FALSE)+ROW()-2)),\"\")","v":{"$error":"#N/A"}},{"$f":"IF(INDIRECT(\"c\" & (VLOOKUP(Rebalance!$D$35,$F$2:$G$48,2,FALSE)+ROW()-2))=Rebalance!$D$35,INDIRECT(\"a\" & (VLOOKUP(Rebalance!$D$35,$F$2:$G$48,2,FALSE)+ROW()-2)),\"\")","v":{"$error":"#N/A"}},{"$f":"IF(INDIRECT(\"c\" & (VLOOKUP(Rebalance!$D$36,$F$2:$G$48,2,FALSE)+ROW()-2))=Rebalance!$D$36,INDIRECT(\"a\" & (VLOOKUP(Rebalance!$D$36,$F$2:$G$48,2,FALSE)+ROW()-2)),\"\")","v":{"$error":"#N/A"}},{"$f":"IF(INDIRECT(\"c\" & (VLOOKUP(Rebalance!$D$37,$F$2:$G$48,2,FALSE)+ROW()-2))=Rebalance!$D$37,INDIRECT(\"a\" & (VLOOKUP(Rebalance!$D$37,$F$2:$G$48,2,FALSE)+ROW()-2)),\"\")","v":{"$error":"#N/A"}},{"$f":"IF(INDIRECT(\"c\" & (VLOOKUP(Rebalance!$D$38,$F$2:$G$48,2,FALSE)+ROW()-2))=Rebalance!$D$38,INDIRECT(\"a\" & (VLOOKUP(Rebalance!$D$38,$F$2:$G$48,2,FALSE)+ROW()-2)),\"\")","v":{"$error":"#N/A"}},{"$f":"IF(INDIRECT(\"c\" & (VLOOKUP(Rebalance!$D$39,$F$2:$G$48,2,FALSE)+ROW()-2))=Rebalance!$D$39,INDIRECT(\"a\" & (VLOOKUP(Rebalance!$D$39,$F$2:$G$48,2,FALSE)+ROW()-2)),\"\")","v":{"$error":"#N/A"}},{"$f":"IF(INDIRECT(\"c\" & (VLOOKUP(Rebalance!$D$40,$F$2:$G$48,2,FALSE)+ROW()-2))=Rebalance!$D$40,INDIRECT(\"a\" & (VLOOKUP(Rebalance!$D$40,$F$2:$G$48,2,FALSE)+ROW()-2)),\"\")","v":{"$error":"#N/A"}},{"$f":"IF(INDIRECT(\"c\" & (VLOOKUP(Rebalance!$D$52,$F$2:$G$48,2,FALSE)+ROW()-2))=Rebalance!$D$52,INDIRECT(\"a\" & (VLOOKUP(Rebalance!$D$52,$F$2:$G$48,2,FALSE)+ROW()-2)),\"\")","v":{"$error":"#N/A"}},{"$f":"IF(INDIRECT(\"c\" & (VLOOKUP(Rebalance!$D$53,$F$2:$G$48,2,FALSE)+ROW()-2))=Rebalance!$D$53,INDIRECT(\"a\" & (VLOOKUP(Rebalance!$D$53,$F$2:$G$48,2,FALSE)+ROW()-2)),\"\")","v":{"$error":"#N/A"}},{"$f":"IF(INDIRECT(\"c\" & (VLOOKUP(Rebalance!$D$54,$F$2:$G$48,2,FALSE)+ROW()-2))=Rebalance!$D$54,INDIRECT(\"a\" & (VLOOKUP(Rebalance!$D$54,$F$2:$G$48,2,FALSE)+ROW()-2)),\"\")","v":{"$error":"#N/A"}},{"$f":"IF(INDIRECT(\"c\" & (VLOOKUP(Rebalance!$D$55,$F$2:$G$48,2,FALSE)+ROW()-2))=Rebalance!$D$55,INDIRECT(\"a\" & (VLOOKUP(Rebalance!$D$55,$F$2:$G$48,2,FALSE)+ROW()-2)),\"\")","v":{"$error":"#N/A"}},{"$f":"IF(INDIRECT(\"c\" & (VLOOKUP(Rebalance!$D$56,$F$2:$G$48,2,FALSE)+ROW()-2))=Rebalance!$D$56,INDIRECT(\"a\" & (VLOOKUP(Rebalance!$D$56,$F$2:$G$48,2,FALSE)+ROW()-2)),\"\")","v":{"$error":"#N/A"}},{"$f":"IF(INDIRECT(\"c\" & (VLOOKUP(Rebalance!$D$57,$F$2:$G$48,2,FALSE)+ROW()-2))=Rebalance!$D$57,INDIRECT(\"a\" & (VLOOKUP(Rebalance!$D$57,$F$2:$G$48,2,FALSE)+ROW()-2)),\"\")","v":{"$error":"#N/A"}},{"$f":"IF(INDIRECT(\"c\" & (VLOOKUP(Rebalance!$D$58,$F$2:$G$48,2,FALSE)+ROW()-2))=Rebalance!$D$58,INDIRECT(\"a\" & (VLOOKUP(Rebalance!$D$58,$F$2:$G$48,2,FALSE)+ROW()-2)),\"\")","v":{"$error":"#N/A"}},{"$f":"IF(INDIRECT(\"c\" & (VLOOKUP(Rebalance!$D$59,$F$2:$G$48,2,FALSE)+ROW()-2))=Rebalance!$D$59,INDIRECT(\"a\" & (VLOOKUP(Rebalance!$D$59,$F$2:$G$48,2,FALSE)+ROW()-2)),\"\")","v":{"$error":"#N/A"}},{"$f":"IF(INDIRECT(\"c\" & (VLOOKUP(Rebalance!$D$60,$F$2:$G$48,2,FALSE)+ROW()-2))=Rebalance!$D$60,INDIRECT(\"a\" & (VLOOKUP(Rebalance!$D$60,$F$2:$G$48,2,FALSE)+ROW()-2)),\"\")","v":{"$error":"#N/A"}},{"$f":"IF(INDIRECT(\"c\" & (VLOOKUP(Rebalance!$D$61,$F$2:$G$48,2,FALSE)+ROW()-2))=Rebalance!$D$61,INDIRECT(\"a\" & (VLOOKUP(Rebalance!$D$61,$F$2:$G$48,2,FALSE)+ROW()-2)),\"\")","v":{"$error":"#N/A"}},{"$f":"IF(INDIRECT(\"c\" & (VLOOKUP(Rebalance!$D$62,$F$2:$G$48,2,FALSE)+ROW()-2))=Rebalance!$D$62,INDIRECT(\"a\" & (VLOOKUP(Rebalance!$D$62,$F$2:$G$48,2,FALSE)+ROW()-2)),\"\")","v":{"$error":"#N/A"}},{"$f":"IF(INDIRECT(\"c\" & (VLOOKUP(Rebalance!$D$63,$F$2:$G$48,2,FALSE)+ROW()-2))=Rebalance!$D$63,INDIRECT(\"a\" & (VLOOKUP(Rebalance!$D$63,$F$2:$G$48,2,FALSE)+ROW()-2)),\"\")","v":{"$error":"#N/A"}},{"$f":"IF(INDIRECT(\"c\" & (VLOOKUP(Rebalance!$D$64,$F$2:$G$48,2,FALSE)+ROW()-2))=Rebalance!$D$64,INDIRECT(\"a\" & (VLOOKUP(Rebalance!$D$64,$F$2:$G$48,2,FALSE)+ROW()-2)),\"\")","v":{"$error":"#N/A"}},{"$f":"IF(INDIRECT(\"c\" & (VLOOKUP(Rebalance!$D$65,$F$2:$G$48,2,FALSE)+ROW()-2))=Rebalance!$D$65,INDIRECT(\"a\" & (VLOOKUP(Rebalance!$D$65,$F$2:$G$48,2,FALSE)+ROW()-2)),\"\")","v":{"$error":"#N/A"}},{"$f":"IF(INDIRECT(\"c\" & (VLOOKUP(Rebalance!$D$66,$F$2:$G$48,2,FALSE)+ROW()-2))=Rebalance!$D$66,INDIRECT(\"a\" & (VLOOKUP(Rebalance!$D$66,$F$2:$G$48,2,FALSE)+ROW()-2)),\"\")","v":{"$error":"#N/A"}}]
["Seed Equity A1","SEFCA","Prescient Management Company Ltd",{"$f":"ROW()","v":468},null,null,{"$f":"VLOOKUP(F468,$C$2:$D$599,2,FALSE)","v":{"$error":"#N/A"}},{"$f":"IF(INDIRECT(\"c\" & (VLOOKUP(Rebalance!$D$26,$F$2:$G$48,2,FALSE)+ROW()-2))=Rebalance!$D$26,INDIRECT(\"a\" & (VLOOKUP(Rebalance!$D$26,$F$2:$G$48,2,FALSE)+ROW()-2)),\"\")","v":{"$error":"#N/A"}},{"$f":"IF(INDIRECT(\"c\" & (VLOOKUP(Rebalance!$D$27,$F$2:$G$48,2,FALSE)+ROW()-2))=Rebalance!$D$27,INDIRECT(\"a\" & (VLOOKUP(Rebalance!$D$27,$F$2:$G$48,2,FALSE)+ROW()-2)),\"\")","v":{"$error":"#N/A"}},{"$f":"IF(INDIRECT(\"c\" & (VLOOKUP(Rebalance!$D$28,$F$2:$G$48,2,FALSE)+ROW()-2))=Rebalance!$D$28,INDIRECT(\"a\" & (VLOOKUP(Rebalance!$D$28,$F$2:$G$48,2,FALSE)+ROW()-2)),\"\")","v":{"$error":"#N/A"}},{"$f":"IF(INDIRECT(\"c\" & (VLOOKUP(Rebalance!$D$29,$F$2:$G$48,2,FALSE)+ROW()-2))=Rebalance!$D$29,INDIRECT(\"a\" & (VLOOKUP(Rebalance!$D$29,$F$2:$G$48,2,FALSE)+ROW()-2)),\"\")","v":{"$error":"#N/A"}},{"$f":"IF(INDIRECT(\"c\" & (VLOOKUP(Rebalance!$D$30,$F$2:$G$48,2,FALSE)+ROW()-2))=Rebalance!$D$30,INDIRECT(\"a\" & (VLOOKUP(Rebalance!$D$30,$F$2:$G$48,2,FALSE)+ROW()-2)),\"\")","v":{"$error":"#N/A"}},{"$f":"IF(INDIRECT(\"c\" & (VLOOKUP(Rebalance!$D$31,$F$2:$G$48,2,FALSE)+ROW()-2))=Rebalance!$D$31,INDIRECT(\"a\" & (VLOOKUP(Rebalance!$D$31,$F$2:$G$48,2,FALSE)+ROW()-2)),\"\")","v":{"$error":"#N/A"}},{"$f":"IF(INDIRECT(\"c\" & (VLOOKUP(Rebalance!$D$32,$F$2:$G$48,2,FALSE)+ROW()-2))=Rebalance!$D$32,INDIRECT(\"a\" & (VLOOKUP(Rebalance!$D$32,$F$2:$G$48,2,FALSE)+ROW()-2)),\"\")","v":{"$error":"#N/A"}},{"$f":"IF(INDIRECT(\"c\" & (VLOOKUP(Rebalance!$D$33,$F$2:$G$48,2,FALSE)+ROW()-2))=Rebalance!$D$33,INDIRECT(\"a\" & (VLOOKUP(Rebalance!$D$33,$F$2:$G$48,2,FALSE)+ROW()-2)),\"\")","v":{"$error":"#N/A"}},{"$f":"IF(INDIRECT(\"c\" & (VLOOKUP(Rebalance!$D$34,$F$2:$G$48,2,FALSE)+ROW()-2))=Rebalance!$D$34,INDIRECT(\"a\" & (VLOOKUP(Rebalance!$D$34,$F$2:$G$48,2,FALSE)+ROW()-2)),\"\")","v":{"$error":"#N/A"}},{"$f":"IF(INDIRECT(\"c\" & (VLOOKUP(Rebalance!$D$35,$F$2:$G$48,2,FALSE)+ROW()-2))=Rebalance!$D$35,INDIRECT(\"a\" & (VLOOKUP(Rebalance!$D$35,$F$2:$G$48,2,FALSE)+ROW()-2)),\"\")","v":{"$error":"#N/A"}},{"$f":"IF(INDIRECT(\"c\" & (VLOOKUP(Rebalance!$D$36,$F$2:$G$48,2,FALSE)+ROW()-2))=Rebalance!$D$36,INDIRECT(\"a\" & (VLOOKUP(Rebalance!$D$36,$F$2:$G$48,2,FALSE)+ROW()-2)),\"\")","v":{"$error":"#N/A"}},{"$f":"IF(INDIRECT(\"c\" & (VLOOKUP(Rebalance!$D$37,$F$2:$G$48,2,FALSE)+ROW()-2))=Rebalance!$D$37,INDIRECT(\"a\" & (VLOOKUP(Rebalance!$D$37,$F$2:$G$48,2,FALSE)+ROW()-2)),\"\")","v":{"$error":"#N/A"}},{"$f":"IF(INDIRECT(\"c\" & (VLOOKUP(Rebalance!$D$38,$F$2:$G$48,2,FALSE)+ROW()-2))=Rebalance!$D$38,INDIRECT(\"a\" & (VLOOKUP(Rebalance!$D$38,$F$2:$G$48,2,FALSE)+ROW()-2)),\"\")","v":{"$error":"#N/A"}},{"$f":"IF(INDIRECT(\"c\" & (VLOOKUP(Rebalance!$D$39,$F$2:$G$48,2,FALSE)+ROW()-2))=Rebalance!$D$39,INDIRECT(\"a\" & (VLOOKUP(Rebalance!$D$39,$F$2:$G$48,2,FALSE)+ROW()-2)),\"\")","v":{"$error":"#N/A"}},{"$f":"IF(INDIRECT(\"c\" & (VLOOKUP(Rebalance!$D$40,$F$2:$G$48,2,FALSE)+ROW()-2))=Rebalance!$D$40,INDIRECT(\"a\" & (VLOOKUP(Rebalance!$D$40,$F$2:$G$48,2,FALSE)+ROW()-2)),\"\")","v":{"$error":"#N/A"}},{"$f":"IF(INDIRECT(\"c\" & (VLOOKUP(Rebalance!$D$52,$F$2:$G$48,2,FALSE)+ROW()-2))=Rebalance!$D$52,INDIRECT(\"a\" & (VLOOKUP(Rebalance!$D$52,$F$2:$G$48,2,FALSE)+ROW()-2)),\"\")","v":{"$error":"#N/A"}},{"$f":"IF(INDIRECT(\"c\" & (VLOOKUP(Rebalance!$D$53,$F$2:$G$48,2,FALSE)+ROW()-2))=Rebalance!$D$53,INDIRECT(\"a\" & (VLOOKUP(Rebalance!$D$53,$F$2:$G$48,2,FALSE)+ROW()-2)),\"\")","v":{"$error":"#N/A"}},{"$f":"IF(INDIRECT(\"c\" & (VLOOKUP(Rebalance!$D$54,$F$2:$G$48,2,FALSE)+ROW()-2))=Rebalance!$D$54,INDIRECT(\"a\" & (VLOOKUP(Rebalance!$D$54,$F$2:$G$48,2,FALSE)+ROW()-2)),\"\")","v":{"$error":"#N/A"}},{"$f":"IF(INDIRECT(\"c\" & (VLOOKUP(Rebalance!$D$55,$F$2:$G$48,2,FALSE)+ROW()-2))=Rebalance!$D$55,INDIRECT(\"a\" & (VLOOKUP(Rebalance!$D$55,$F$2:$G$48,2,FALSE)+ROW()-2)),\"\")","v":{"$error":"#N/A"}},{"$f":"IF(INDIRECT(\"c\" & (VLOOKUP(Rebalance!$D$56,$F$2:$G$48,2,FALSE)+ROW()-2))=Rebalance!$D$56,INDIRECT(\"a\" & (VLOOKUP(Rebalance!$D$56,$F$2:$G$48,2,FALSE)+ROW()-2)),\"\")","v":{"$error":"#N/A"}},{"$f":"IF(INDIRECT(\"c\" & (VLOOKUP(Rebalance!$D$57,$F$2:$G$48,2,FALSE)+ROW()-2))=Rebalance!$D$57,INDIRECT(\"a\" & (VLOOKUP(Rebalance!$D$57,$F$2:$G$48,2,FALSE)+ROW()-2)),\"\")","v":{"$error":"#N/A"}},{"$f":"IF(INDIRECT(\"c\" & (VLOOKUP(Rebalance!$D$58,$F$2:$G$48,2,FALSE)+ROW()-2))=Rebalance!$D$58,INDIRECT(\"a\" & (VLOOKUP(Rebalance!$D$58,$F$2:$G$48,2,FALSE)+ROW()-2)),\"\")","v":{"$error":"#N/A"}},{"$f":"IF(INDIRECT(\"c\" & (VLOOKUP(Rebalance!$D$59,$F$2:$G$48,2,FALSE)+ROW()-2))=Rebalance!$D$59,INDIRECT(\"a\" & (VLOOKUP(Rebalance!$D$59,$F$2:$G$48,2,FALSE)+ROW()-2)),\"\")","v":{"$error":"#N/A"}},{"$f":"IF(INDIRECT(\"c\" & (VLOOKUP(Rebalance!$D$60,$F$2:$G$48,2,FALSE)+ROW()-2))=Rebalance!$D$60,INDIRECT(\"a\" & (VLOOKUP(Rebalance!$D$60,$F$2:$G$48,2,FALSE)+ROW()-2)),\"\")","v":{"$error":"#N/A"}},{"$f":"IF(INDIRECT(\"c\" & (VLOOKUP(Rebalance!$D$61,$F$2:$G$48,2,FALSE)+ROW()-2))=Rebalance!$D$61,INDIRECT(\"a\" & (VLOOKUP(Rebalance!$D$61,$F$2:$G$48,2,FALSE)+ROW()-2)),\"\")","v":{"$error":"#N/A"}},{"$f":"IF(INDIRECT(\"c\" & (VLOOKUP(Rebalance!$D$62,$F$2:$G$48,2,FALSE)+ROW()-2))=Rebalance!$D$62,INDIRECT(\"a\" & (VLOOKUP(Rebalance!$D$62,$F$2:$G$48,2,FALSE)+ROW()-2)),\"\")","v":{"$error":"#N/A"}},{"$f":"IF(INDIRECT(\"c\" & (VLOOKUP(Rebalance!$D$63,$F$2:$G$48,2,FALSE)+ROW()-2))=Rebalance!$D$63,INDIRECT(\"a\" & (VLOOKUP(Rebalance!$D$63,$F$2:$G$48,2,FALSE)+ROW()-2)),\"\")","v":{"$error":"#N/A"}},{"$f":"IF(INDIRECT(\"c\" & (VLOOKUP(Rebalance!$D$64,$F$2:$G$48,2,FALSE)+ROW()-2))=Rebalance!$D$64,INDIRECT(\"a\" & (VLOOKUP(Rebalance!$D$64,$F$2:$G$48,2,FALSE)+ROW()-2)),\"\")","v":{"$error":"#N/A"}},{"$f":"IF(INDIRECT(\"c\" & (VLOOKUP(Rebalance!$D$65,$F$2:$G$48,2,FALSE)+ROW()-2))=Rebalance!$D$65,INDIRECT(\"a\" & (VLOOKUP(Rebalance!$D$65,$F$2:$G$48,2,FALSE)+ROW()-2)),\"\")","v":{"$error":"#N/A"}},{"$f":"IF(INDIRECT(\"c\" & (VLOOKUP(Rebalance!$D$66,$F$2:$G$48,2,FALSE)+ROW()-2))=Rebalance!$D$66,INDIRECT(\"a\" & (VLOOKUP(Rebalance!$D$66,$F$2:$G$48,2,FALSE)+ROW()-2)),\"\")","v":{"$error":"#N/A"}}]
["Seed Balanced – A1","MSEF","Prescient Management Company Ltd",{"$f":"ROW()","v":469},null,null,{"$f":"VLOOKUP(F469,$C$2:$D$599,2,FALSE)","v":{"$error":"#N/A"}},{"$f":"IF(INDIRECT(\"c\" & (VLOOKUP(Rebalance!$D$26,$F$2:$G$48,2,FALSE)+ROW()-2))=Rebalance!$D$26,INDIRECT(\"a\" & (VLOOKUP(Rebalance!$D$26,$F$2:$G$48,2,FALSE)+ROW()-2)),\"\")","v":{"$error":"#N/A"}},{"$f":"IF(INDIRECT(\"c\" & (VLOOKUP(Rebalance!$D$27,$F$2:$G$48,2,FALSE)+ROW()-2))=Rebalance!$D$27,INDIRECT(\"a\" & (VLOOKUP(Rebalance!$D$27,$F$2:$G$48,2,FALSE)+ROW()-2)),\"\")","v":{"$error":"#N/A"}},{"$f":"IF(INDIRECT(\"c\" & (VLOOKUP(Rebalance!$D$28,$F$2:$G$48,2,FALSE)+ROW()-2))=Rebalance!$D$28,INDIRECT(\"a\" & (VLOOKUP(Rebalance!$D$28,$F$2:$G$48,2,FALSE)+ROW()-2)),\"\")","v":{"$error":"#N/A"}},{"$f":"IF(INDIRECT(\"c\" & (VLOOKUP(Rebalance!$D$29,$F$2:$G$48,2,FALSE)+ROW()-2))=Rebalance!$D$29,INDIRECT(\"a\" & (VLOOKUP(Rebalance!$D$29,$F$2:$G$48,2,FALSE)+ROW()-2)),\"\")","v":{"$error":"#N/A"}},{"$f":"IF(INDIRECT(\"c\" & (VLOOKUP(Rebalance!$D$30,$F$2:$G$48,2,FALSE)+ROW()-2))=Rebalance!$D$30,INDIRECT(\"a\" & (VLOOKUP(Rebalance!$D$30,$F$2:$G$48,2,FALSE)+ROW()-2)),\"\")","v":{"$error":"#N/A"}},{"$f":"IF(INDIRECT(\"c\" & (VLOOKUP(Rebalance!$D$31,$F$2:$G$48,2,FALSE)+ROW()-2))=Rebalance!$D$31,INDIRECT(\"a\" & (VLOOKUP(Rebalance!$D$31,$F$2:$G$48,2,FALSE)+ROW()-2)),\"\")","v":{"$error":"#N/A"}},{"$f":"IF(INDIRECT(\"c\" & (VLOOKUP(Rebalance!$D$32,$F$2:$G$48,2,FALSE)+ROW()-2))=Rebalance!$D$32,INDIRECT(\"a\" & (VLOOKUP(Rebalance!$D$32,$F$2:$G$48,2,FALSE)+ROW()-2)),\"\")","v":{"$error":"#N/A"}},{"$f":"IF(INDIRECT(\"c\" & (VLOOKUP(Rebalance!$D$33,$F$2:$G$48,2,FALSE)+ROW()-2))=Rebalance!$D$33,INDIRECT(\"a\" & (VLOOKUP(Rebalance!$D$33,$F$2:$G$48,2,FALSE)+ROW()-2)),\"\")","v":{"$error":"#N/A"}},{"$f":"IF(INDIRECT(\"c\" & (VLOOKUP(Rebalance!$D$34,$F$2:$G$48,2,FALSE)+ROW()-2))=Rebalance!$D$34,INDIRECT(\"a\" & (VLOOKUP(Rebalance!$D$34,$F$2:$G$48,2,FALSE)+ROW()-2)),\"\")","v":{"$error":"#N/A"}},{"$f":"IF(INDIRECT(\"c\" & (VLOOKUP(Rebalance!$D$35,$F$2:$G$48,2,FALSE)+ROW()-2))=Rebalance!$D$35,INDIRECT(\"a\" & (VLOOKUP(Rebalance!$D$35,$F$2:$G$48,2,FALSE)+ROW()-2)),\"\")","v":{"$error":"#N/A"}},{"$f":"IF(INDIRECT(\"c\" & (VLOOKUP(Rebalance!$D$36,$F$2:$G$48,2,FALSE)+ROW()-2))=Rebalance!$D$36,INDIRECT(\"a\" & (VLOOKUP(Rebalance!$D$36,$F$2:$G$48,2,FALSE)+ROW()-2)),\"\")","v":{"$error":"#N/A"}},{"$f":"IF(INDIRECT(\"c\" & (VLOOKUP(Rebalance!$D$37,$F$2:$G$48,2,FALSE)+ROW()-2))=Rebalance!$D$37,INDIRECT(\"a\" & (VLOOKUP(Rebalance!$D$37,$F$2:$G$48,2,FALSE)+ROW()-2)),\"\")","v":{"$error":"#N/A"}},{"$f":"IF(INDIRECT(\"c\" & (VLOOKUP(Rebalance!$D$38,$F$2:$G$48,2,FALSE)+ROW()-2))=Rebalance!$D$38,INDIRECT(\"a\" & (VLOOKUP(Rebalance!$D$38,$F$2:$G$48,2,FALSE)+ROW()-2)),\"\")","v":{"$error":"#N/A"}},{"$f":"IF(INDIRECT(\"c\" & (VLOOKUP(Rebalance!$D$39,$F$2:$G$48,2,FALSE)+ROW()-2))=Rebalance!$D$39,INDIRECT(\"a\" & (VLOOKUP(Rebalance!$D$39,$F$2:$G$48,2,FALSE)+ROW()-2)),\"\")","v":{"$error":"#N/A"}},{"$f":"IF(INDIRECT(\"c\" & (VLOOKUP(Rebalance!$D$40,$F$2:$G$48,2,FALSE)+ROW()-2))=Rebalance!$D$40,INDIRECT(\"a\" & (VLOOKUP(Rebalance!$D$40,$F$2:$G$48,2,FALSE)+ROW()-2)),\"\")","v":{"$error":"#N/A"}},{"$f":"IF(INDIRECT(\"c\" & (VLOOKUP(Rebalance!$D$52,$F$2:$G$48,2,FALSE)+ROW()-2))=Rebalance!$D$52,INDIRECT(\"a\" & (VLOOKUP(Rebalance!$D$52,$F$2:$G$48,2,FALSE)+ROW()-2)),\"\")","v":{"$error":"#N/A"}},{"$f":"IF(INDIRECT(\"c\" & (VLOOKUP(Rebalance!$D$53,$F$2:$G$48,2,FALSE)+ROW()-2))=Rebalance!$D$53,INDIRECT(\"a\" & (VLOOKUP(Rebalance!$D$53,$F$2:$G$48,2,FALSE)+ROW()-2)),\"\")","v":{"$error":"#N/A"}},{"$f":"IF(INDIRECT(\"c\" & (VLOOKUP(Rebalance!$D$54,$F$2:$G$48,2,FALSE)+ROW()-2))=Rebalance!$D$54,INDIRECT(\"a\" & (VLOOKUP(Rebalance!$D$54,$F$2:$G$48,2,FALSE)+ROW()-2)),\"\")","v":{"$error":"#N/A"}},{"$f":"IF(INDIRECT(\"c\" & (VLOOKUP(Rebalance!$D$55,$F$2:$G$48,2,FALSE)+ROW()-2))=Rebalance!$D$55,INDIRECT(\"a\" & (VLOOKUP(Rebalance!$D$55,$F$2:$G$48,2,FALSE)+ROW()-2)),\"\")","v":{"$error":"#N/A"}},{"$f":"IF(INDIRECT(\"c\" & (VLOOKUP(Rebalance!$D$56,$F$2:$G$48,2,FALSE)+ROW()-2))=Rebalance!$D$56,INDIRECT(\"a\" & (VLOOKUP(Rebalance!$D$56,$F$2:$G$48,2,FALSE)+ROW()-2)),\"\")","v":{"$error":"#N/A"}},{"$f":"IF(INDIRECT(\"c\" & (VLOOKUP(Rebalance!$D$57,$F$2:$G$48,2,FALSE)+ROW()-2))=Rebalance!$D$57,INDIRECT(\"a\" & (VLOOKUP(Rebalance!$D$57,$F$2:$G$48,2,FALSE)+ROW()-2)),\"\")","v":{"$error":"#N/A"}},{"$f":"IF(INDIRECT(\"c\" & (VLOOKUP(Rebalance!$D$58,$F$2:$G$48,2,FALSE)+ROW()-2))=Rebalance!$D$58,INDIRECT(\"a\" & (VLOOKUP(Rebalance!$D$58,$F$2:$G$48,2,FALSE)+ROW()-2)),\"\")","v":{"$error":"#N/A"}},{"$f":"IF(INDIRECT(\"c\" & (VLOOKUP(Rebalance!$D$59,$F$2:$G$48,2,FALSE)+ROW()-2))=Rebalance!$D$59,INDIRECT(\"a\" & (VLOOKUP(Rebalance!$D$59,$F$2:$G$48,2,FALSE)+ROW()-2)),\"\")","v":{"$error":"#N/A"}},{"$f":"IF(INDIRECT(\"c\" & (VLOOKUP(Rebalance!$D$60,$F$2:$G$48,2,FALSE)+ROW()-2))=Rebalance!$D$60,INDIRECT(\"a\" & (VLOOKUP(Rebalance!$D$60,$F$2:$G$48,2,FALSE)+ROW()-2)),\"\")","v":{"$error":"#N/A"}},{"$f":"IF(INDIRECT(\"c\" & (VLOOKUP(Rebalance!$D$61,$F$2:$G$48,2,FALSE)+ROW()-2))=Rebalance!$D$61,INDIRECT(\"a\" & (VLOOKUP(Rebalance!$D$61,$F$2:$G$48,2,FALSE)+ROW()-2)),\"\")","v":{"$error":"#N/A"}},{"$f":"IF(INDIRECT(\"c\" & (VLOOKUP(Rebalance!$D$62,$F$2:$G$48,2,FALSE)+ROW()-2))=Rebalance!$D$62,INDIRECT(\"a\" & (VLOOKUP(Rebalance!$D$62,$F$2:$G$48,2,FALSE)+ROW()-2)),\"\")","v":{"$error":"#N/A"}},{"$f":"IF(INDIRECT(\"c\" & (VLOOKUP(Rebalance!$D$63,$F$2:$G$48,2,FALSE)+ROW()-2))=Rebalance!$D$63,INDIRECT(\"a\" & (VLOOKUP(Rebalance!$D$63,$F$2:$G$48,2,FALSE)+ROW()-2)),\"\")","v":{"$error":"#N/A"}},{"$f":"IF(INDIRECT(\"c\" & (VLOOKUP(Rebalance!$D$64,$F$2:$G$48,2,FALSE)+ROW()-2))=Rebalance!$D$64,INDIRECT(\"a\" & (VLOOKUP(Rebalance!$D$64,$F$2:$G$48,2,FALSE)+ROW()-2)),\"\")","v":{"$error":"#N/A"}},{"$f":"IF(INDIRECT(\"c\" & (VLOOKUP(Rebalance!$D$65,$F$2:$G$48,2,FALSE)+ROW()-2))=Rebalance!$D$65,INDIRECT(\"a\" & (VLOOKUP(Rebalance!$D$65,$F$2:$G$48,2,FALSE)+ROW()-2)),\"\")","v":{"$error":"#N/A"}},{"$f":"IF(INDIRECT(\"c\" & (VLOOKUP(Rebalance!$D$66,$F$2:$G$48,2,FALSE)+ROW()-2))=Rebalance!$D$66,INDIRECT(\"a\" & (VLOOKUP(Rebalance!$D$66,$F$2:$G$48,2,FALSE)+ROW()-2)),\"\")","v":{"$error":"#N/A"}}]
["Wellsfaber Balanced RECM Fund of Funds A","WFBALA","Prescient Management Company Ltd",{"$f":"ROW()","v":470},null,null,{"$f":"VLOOKUP(F470,$C$2:$D$599,2,FALSE)","v":{"$error":"#N/A"}},{"$f":"IF(INDIRECT(\"c\" & (VLOOKUP(Rebalance!$D$26,$F$2:$G$48,2,FALSE)+ROW()-2))=Rebalance!$D$26,INDIRECT(\"a\" & (VLOOKUP(Rebalance!$D$26,$F$2:$G$48,2,FALSE)+ROW()-2)),\"\")","v":{"$error":"#N/A"}},{"$f":"IF(INDIRECT(\"c\" & (VLOOKUP(Rebalance!$D$27,$F$2:$G$48,2,FALSE)+ROW()-2))=Rebalance!$D$27,INDIRECT(\"a\" & (VLOOKUP(Rebalance!$D$27,$F$2:$G$48,2,FALSE)+ROW()-2)),\"\")","v":{"$error":"#N/A"}},{"$f":"IF(INDIRECT(\"c\" & (VLOOKUP(Rebalance!$D$28,$F$2:$G$48,2,FALSE)+ROW()-2))=Rebalance!$D$28,INDIRECT(\"a\" & (VLOOKUP(Rebalance!$D$28,$F$2:$G$48,2,FALSE)+ROW()-2)),\"\")","v":{"$error":"#N/A"}},{"$f":"IF(INDIRECT(\"c\" & (VLOOKUP(Rebalance!$D$29,$F$2:$G$48,2,FALSE)+ROW()-2))=Rebalance!$D$29,INDIRECT(\"a\" & (VLOOKUP(Rebalance!$D$29,$F$2:$G$48,2,FALSE)+ROW()-2)),\"\")","v":{"$error":"#N/A"}},{"$f":"IF(INDIRECT(\"c\" & (VLOOKUP(Rebalance!$D$30,$F$2:$G$48,2,FALSE)+ROW()-2))=Rebalance!$D$30,INDIRECT(\"a\" & (VLOOKUP(Rebalance!$D$30,$F$2:$G$48,2,FALSE)+ROW()-2)),\"\")","v":{"$error":"#N/A"}},{"$f":"IF(INDIRECT(\"c\" & (VLOOKUP(Rebalance!$D$31,$F$2:$G$48,2,FALSE)+ROW()-2))=Rebalance!$D$31,INDIRECT(\"a\" & (VLOOKUP(Rebalance!$D$31,$F$2:$G$48,2,FALSE)+ROW()-2)),\"\")","v":{"$error":"#N/A"}},{"$f":"IF(INDIRECT(\"c\" & (VLOOKUP(Rebalance!$D$32,$F$2:$G$48,2,FALSE)+ROW()-2))=Rebalance!$D$32,INDIRECT(\"a\" & (VLOOKUP(Rebalance!$D$32,$F$2:$G$48,2,FALSE)+ROW()-2)),\"\")","v":{"$error":"#N/A"}},{"$f":"IF(INDIRECT(\"c\" & (VLOOKUP(Rebalance!$D$33,$F$2:$G$48,2,FALSE)+ROW()-2))=Rebalance!$D$33,INDIRECT(\"a\" & (VLOOKUP(Rebalance!$D$33,$F$2:$G$48,2,FALSE)+ROW()-2)),\"\")","v":{"$error":"#N/A"}},{"$f":"IF(INDIRECT(\"c\" & (VLOOKUP(Rebalance!$D$34,$F$2:$G$48,2,FALSE)+ROW()-2))=Rebalance!$D$34,INDIRECT(\"a\" & (VLOOKUP(Rebalance!$D$34,$F$2:$G$48,2,FALSE)+ROW()-2)),\"\")","v":{"$error":"#N/A"}},{"$f":"IF(INDIRECT(\"c\" & (VLOOKUP(Rebalance!$D$35,$F$2:$G$48,2,FALSE)+ROW()-2))=Rebalance!$D$35,INDIRECT(\"a\" & (VLOOKUP(Rebalance!$D$35,$F$2:$G$48,2,FALSE)+ROW()-2)),\"\")","v":{"$error":"#N/A"}},{"$f":"IF(INDIRECT(\"c\" & (VLOOKUP(Rebalance!$D$36,$F$2:$G$48,2,FALSE)+ROW()-2))=Rebalance!$D$36,INDIRECT(\"a\" & (VLOOKUP(Rebalance!$D$36,$F$2:$G$48,2,FALSE)+ROW()-2)),\"\")","v":{"$error":"#N/A"}},{"$f":"IF(INDIRECT(\"c\" & (VLOOKUP(Rebalance!$D$37,$F$2:$G$48,2,FALSE)+ROW()-2))=Rebalance!$D$37,INDIRECT(\"a\" & (VLOOKUP(Rebalance!$D$37,$F$2:$G$48,2,FALSE)+ROW()-2)),\"\")","v":{"$error":"#N/A"}},{"$f":"IF(INDIRECT(\"c\" & (VLOOKUP(Rebalance!$D$38,$F$2:$G$48,2,FALSE)+ROW()-2))=Rebalance!$D$38,INDIRECT(\"a\" & (VLOOKUP(Rebalance!$D$38,$F$2:$G$48,2,FALSE)+ROW()-2)),\"\")","v":{"$error":"#N/A"}},{"$f":"IF(INDIRECT(\"c\" & (VLOOKUP(Rebalance!$D$39,$F$2:$G$48,2,FALSE)+ROW()-2))=Rebalance!$D$39,INDIRECT(\"a\" & (VLOOKUP(Rebalance!$D$39,$F$2:$G$48,2,FALSE)+ROW()-2)),\"\")","v":{"$error":"#N/A"}},{"$f":"IF(INDIRECT(\"c\" & (VLOOKUP(Rebalance!$D$40,$F$2:$G$48,2,FALSE)+ROW()-2))=Rebalance!$D$40,INDIRECT(\"a\" & (VLOOKUP(Rebalance!$D$40,$F$2:$G$48,2,FALSE)+ROW()-2)),\"\")","v":{"$error":"#N/A"}},{"$f":"IF(INDIRECT(\"c\" & (VLOOKUP(Rebalance!$D$52,$F$2:$G$48,2,FALSE)+ROW()-2))=Rebalance!$D$52,INDIRECT(\"a\" & (VLOOKUP(Rebalance!$D$52,$F$2:$G$48,2,FALSE)+ROW()-2)),\"\")","v":{"$error":"#N/A"}},{"$f":"IF(INDIRECT(\"c\" & (VLOOKUP(Rebalance!$D$53,$F$2:$G$48,2,FALSE)+ROW()-2))=Rebalance!$D$53,INDIRECT(\"a\" & (VLOOKUP(Rebalance!$D$53,$F$2:$G$48,2,FALSE)+ROW()-2)),\"\")","v":{"$error":"#N/A"}},{"$f":"IF(INDIRECT(\"c\" & (VLOOKUP(Rebalance!$D$54,$F$2:$G$48,2,FALSE)+ROW()-2))=Rebalance!$D$54,INDIRECT(\"a\" & (VLOOKUP(Rebalance!$D$54,$F$2:$G$48,2,FALSE)+ROW()-2)),\"\")","v":{"$error":"#N/A"}},{"$f":"IF(INDIRECT(\"c\" & (VLOOKUP(Rebalance!$D$55,$F$2:$G$48,2,FALSE)+ROW()-2))=Rebalance!$D$55,INDIRECT(\"a\" & (VLOOKUP(Rebalance!$D$55,$F$2:$G$48,2,FALSE)+ROW()-2)),\"\")","v":{"$error":"#N/A"}},{"$f":"IF(INDIRECT(\"c\" & (VLOOKUP(Rebalance!$D$56,$F$2:$G$48,2,FALSE)+ROW()-2))=Rebalance!$D$56,INDIRECT(\"a\" & (VLOOKUP(Rebalance!$D$56,$F$2:$G$48,2,FALSE)+ROW()-2)),\"\")","v":{"$error":"#N/A"}},{"$f":"IF(INDIRECT(\"c\" & (VLOOKUP(Rebalance!$D$57,$F$2:$G$48,2,FALSE)+ROW()-2))=Rebalance!$D$57,INDIRECT(\"a\" & (VLOOKUP(Rebalance!$D$57,$F$2:$G$48,2,FALSE)+ROW()-2)),\"\")","v":{"$error":"#N/A"}},{"$f":"IF(INDIRECT(\"c\" & (VLOOKUP(Rebalance!$D$58,$F$2:$G$48,2,FALSE)+ROW()-2))=Rebalance!$D$58,INDIRECT(\"a\" & (VLOOKUP(Rebalance!$D$58,$F$2:$G$48,2,FALSE)+ROW()-2)),\"\")","v":{"$error":"#N/A"}},{"$f":"IF(INDIRECT(\"c\" & (VLOOKUP(Rebalance!$D$59,$F$2:$G$48,2,FALSE)+ROW()-2))=Rebalance!$D$59,INDIRECT(\"a\" & (VLOOKUP(Rebalance!$D$59,$F$2:$G$48,2,FALSE)+ROW()-2)),\"\")","v":{"$error":"#N/A"}},{"$f":"IF(INDIRECT(\"c\" & (VLOOKUP(Rebalance!$D$60,$F$2:$G$48,2,FALSE)+ROW()-2))=Rebalance!$D$60,INDIRECT(\"a\" & (VLOOKUP(Rebalance!$D$60,$F$2:$G$48,2,FALSE)+ROW()-2)),\"\")","v":{"$error":"#N/A"}},{"$f":"IF(INDIRECT(\"c\" & (VLOOKUP(Rebalance!$D$61,$F$2:$G$48,2,FALSE)+ROW()-2))=Rebalance!$D$61,INDIRECT(\"a\" & (VLOOKUP(Rebalance!$D$61,$F$2:$G$48,2,FALSE)+ROW()-2)),\"\")","v":{"$error":"#N/A"}},{"$f":"IF(INDIRECT(\"c\" & (VLOOKUP(Rebalance!$D$62,$F$2:$G$48,2,FALSE)+ROW()-2))=Rebalance!$D$62,INDIRECT(\"a\" & (VLOOKUP(Rebalance!$D$62,$F$2:$G$48,2,FALSE)+ROW()-2)),\"\")","v":{"$error":"#N/A"}},{"$f":"IF(INDIRECT(\"c\" & (VLOOKUP(Rebalance!$D$63,$F$2:$G$48,2,FALSE)+ROW()-2))=Rebalance!$D$63,INDIRECT(\"a\" & (VLOOKUP(Rebalance!$D$63,$F$2:$G$48,2,FALSE)+ROW()-2)),\"\")","v":{"$error":"#N/A"}},{"$f":"IF(INDIRECT(\"c\" & (VLOOKUP(Rebalance!$D$64,$F$2:$G$48,2,FALSE)+ROW()-2))=Rebalance!$D$64,INDIRECT(\"a\" & (VLOOKUP(Rebalance!$D$64,$F$2:$G$48,2,FALSE)+ROW()-2)),\"\")","v":{"$error":"#N/A"}},{"$f":"IF(INDIRECT(\"c\" & (VLOOKUP(Rebalance!$D$65,$F$2:$G$48,2,FALSE)+ROW()-2))=Rebalance!$D$65,INDIRECT(\"a\" & (VLOOKUP(Rebalance!$D$65,$F$2:$G$48,2,FALSE)+ROW()-2)),\"\")","v":{"$error":"#N/A"}},{"$f":"IF(INDIRECT(\"c\" & (VLOOKUP(Rebalance!$D$66,$F$2:$G$48,2,FALSE)+ROW()-2))=Rebalance!$D$66,INDIRECT(\"a\" & (VLOOKUP(Rebalance!$D$66,$F$2:$G$48,2,FALSE)+ROW()-2)),\"\")","v":{"$error":"#N/A"}}]
["Wellsfaber Stable RECM Fund of Funds A","WFSTAA","Prescient Management Company Ltd",{"$f":"ROW()","v":471},null,null,{"$f":"VLOOKUP(F471,$C$2:$D$599,2,FALSE)","v":{"$error":"#N/A"}},{"$f":"IF(INDIRECT(\"c\" & (VLOOKUP(Rebalance!$D$26,$F$2:$G$48,2,FALSE)+ROW()-2))=Rebalance!$D$26,INDIRECT(\"a\" & (VLOOKUP(Rebalance!$D$26,$F$2:$G$48,2,FALSE)+ROW()-2)),\"\")","v":{"$error":"#N/A"}},{"$f":"IF(INDIRECT(\"c\" & (VLOOKUP(Rebalance!$D$27,$F$2:$G$48,2,FALSE)+ROW()-2))=Rebalance!$D$27,INDIRECT(\"a\" & (VLOOKUP(Rebalance!$D$27,$F$2:$G$48,2,FALSE)+ROW()-2)),\"\")","v":{"$error":"#N/A"}},{"$f":"IF(INDIRECT(\"c\" & (VLOOKUP(Rebalance!$D$28,$F$2:$G$48,2,FALSE)+ROW()-2))=Rebalance!$D$28,INDIRECT(\"a\" & (VLOOKUP(Rebalance!$D$28,$F$2:$G$48,2,FALSE)+ROW()-2)),\"\")","v":{"$error":"#N/A"}},{"$f":"IF(INDIRECT(\"c\" & (VLOOKUP(Rebalance!$D$29,$F$2:$G$48,2,FALSE)+ROW()-2))=Rebalance!$D$29,INDIRECT(\"a\" & (VLOOKUP(Rebalance!$D$29,$F$2:$G$48,2,FALSE)+ROW()-2)),\"\")","v":{"$error":"#N/A"}},{"$f":"IF(INDIRECT(\"c\" & (VLOOKUP(Rebalance!$D$30,$F$2:$G$48,2,FALSE)+ROW()-2))=Rebalance!$D$30,INDIRECT(\"a\" & (VLOOKUP(Rebalance!$D$30,$F$2:$G$48,2,FALSE)+ROW()-2)),\"\")","v":{"$error":"#N/A"}},{"$f":"IF(INDIRECT(\"c\" & (VLOOKUP(Rebalance!$D$31,$F$2:$G$48,2,FALSE)+ROW()-2))=Rebalance!$D$31,INDIRECT(\"a\" & (VLOOKUP(Rebalance!$D$31,$F$2:$G$48,2,FALSE)+ROW()-2)),\"\")","v":{"$error":"#N/A"}},{"$f":"IF(INDIRECT(\"c\" & (VLOOKUP(Rebalance!$D$32,$F$2:$G$48,2,FALSE)+ROW()-2))=Rebalance!$D$32,INDIRECT(\"a\" & (VLOOKUP(Rebalance!$D$32,$F$2:$G$48,2,FALSE)+ROW()-2)),\"\")","v":{"$error":"#N/A"}},{"$f":"IF(INDIRECT(\"c\" & (VLOOKUP(Rebalance!$D$33,$F$2:$G$48,2,FALSE)+ROW()-2))=Rebalance!$D$33,INDIRECT(\"a\" & (VLOOKUP(Rebalance!$D$33,$F$2:$G$48,2,FALSE)+ROW()-2)),\"\")","v":{"$error":"#N/A"}},{"$f":"IF(INDIRECT(\"c\" & (VLOOKUP(Rebalance!$D$34,$F$2:$G$48,2,FALSE)+ROW()-2))=Rebalance!$D$34,INDIRECT(\"a\" & (VLOOKUP(Rebalance!$D$34,$F$2:$G$48,2,FALSE)+ROW()-2)),\"\")","v":{"$error":"#N/A"}},{"$f":"IF(INDIRECT(\"c\" & (VLOOKUP(Rebalance!$D$35,$F$2:$G$48,2,FALSE)+ROW()-2))=Rebalance!$D$35,INDIRECT(\"a\" & (VLOOKUP(Rebalance!$D$35,$F$2:$G$48,2,FALSE)+ROW()-2)),\"\")","v":{"$error":"#N/A"}},{"$f":"IF(INDIRECT(\"c\" & (VLOOKUP(Rebalance!$D$36,$F$2:$G$48,2,FALSE)+ROW()-2))=Rebalance!$D$36,INDIRECT(\"a\" & (VLOOKUP(Rebalance!$D$36,$F$2:$G$48,2,FALSE)+ROW()-2)),\"\")","v":{"$error":"#N/A"}},{"$f":"IF(INDIRECT(\"c\" & (VLOOKUP(Rebalance!$D$37,$F$2:$G$48,2,FALSE)+ROW()-2))=Rebalance!$D$37,INDIRECT(\"a\" & (VLOOKUP(Rebalance!$D$37,$F$2:$G$48,2,FALSE)+ROW()-2)),\"\")","v":{"$error":"#N/A"}},{"$f":"IF(INDIRECT(\"c\" & (VLOOKUP(Rebalance!$D$38,$F$2:$G$48,2,FALSE)+ROW()-2))=Rebalance!$D$38,INDIRECT(\"a\" & (VLOOKUP(Rebalance!$D$38,$F$2:$G$48,2,FALSE)+ROW()-2)),\"\")","v":{"$error":"#N/A"}},{"$f":"IF(INDIRECT(\"c\" & (VLOOKUP(Rebalance!$D$39,$F$2:$G$48,2,FALSE)+ROW()-2))=Rebalance!$D$39,INDIRECT(\"a\" & (VLOOKUP(Rebalance!$D$39,$F$2:$G$48,2,FALSE)+ROW()-2)),\"\")","v":{"$error":"#N/A"}},{"$f":"IF(INDIRECT(\"c\" & (VLOOKUP(Rebalance!$D$40,$F$2:$G$48,2,FALSE)+ROW()-2))=Rebalance!$D$40,INDIRECT(\"a\" & (VLOOKUP(Rebalance!$D$40,$F$2:$G$48,2,FALSE)+ROW()-2)),\"\")","v":{"$error":"#N/A"}},{"$f":"IF(INDIRECT(\"c\" & (VLOOKUP(Rebalance!$D$52,$F$2:$G$48,2,FALSE)+ROW()-2))=Rebalance!$D$52,INDIRECT(\"a\" & (VLOOKUP(Rebalance!$D$52,$F$2:$G$48,2,FALSE)+ROW()-2)),\"\")","v":{"$error":"#N/A"}},{"$f":"IF(INDIRECT(\"c\" & (VLOOKUP(Rebalance!$D$53,$F$2:$G$48,2,FALSE)+ROW()-2))=Rebalance!$D$53,INDIRECT(\"a\" & (VLOOKUP(Rebalance!$D$53,$F$2:$G$48,2,FALSE)+ROW()-2)),\"\")","v":{"$error":"#N/A"}},{"$f":"IF(INDIRECT(\"c\" & (VLOOKUP(Rebalance!$D$54,$F$2:$G$48,2,FALSE)+ROW()-2))=Rebalance!$D$54,INDIRECT(\"a\" & (VLOOKUP(Rebalance!$D$54,$F$2:$G$48,2,FALSE)+ROW()-2)),\"\")","v":{"$error":"#N/A"}},{"$f":"IF(INDIRECT(\"c\" & (VLOOKUP(Rebalance!$D$55,$F$2:$G$48,2,FALSE)+ROW()-2))=Rebalance!$D$55,INDIRECT(\"a\" & (VLOOKUP(Rebalance!$D$55,$F$2:$G$48,2,FALSE)+ROW()-2)),\"\")","v":{"$error":"#N/A"}},{"$f":"IF(INDIRECT(\"c\" & (VLOOKUP(Rebalance!$D$56,$F$2:$G$48,2,FALSE)+ROW()-2))=Rebalance!$D$56,INDIRECT(\"a\" & (VLOOKUP(Rebalance!$D$56,$F$2:$G$48,2,FALSE)+ROW()-2)),\"\")","v":{"$error":"#N/A"}},{"$f":"IF(INDIRECT(\"c\" & (VLOOKUP(Rebalance!$D$57,$F$2:$G$48,2,FALSE)+ROW()-2))=Rebalance!$D$57,INDIRECT(\"a\" & (VLOOKUP(Rebalance!$D$57,$F$2:$G$48,2,FALSE)+ROW()-2)),\"\")","v":{"$error":"#N/A"}},{"$f":"IF(INDIRECT(\"c\" & (VLOOKUP(Rebalance!$D$58,$F$2:$G$48,2,FALSE)+ROW()-2))=Rebalance!$D$58,INDIRECT(\"a\" & (VLOOKUP(Rebalance!$D$58,$F$2:$G$48,2,FALSE)+ROW()-2)),\"\")","v":{"$error":"#N/A"}},{"$f":"IF(INDIRECT(\"c\" & (VLOOKUP(Rebalance!$D$59,$F$2:$G$48,2,FALSE)+ROW()-2))=Rebalance!$D$59,INDIRECT(\"a\" & (VLOOKUP(Rebalance!$D$59,$F$2:$G$48,2,FALSE)+ROW()-2)),\"\")","v":{"$error":"#N/A"}},{"$f":"IF(INDIRECT(\"c\" & (VLOOKUP(Rebalance!$D$60,$F$2:$G$48,2,FALSE)+ROW()-2))=Rebalance!$D$60,INDIRECT(\"a\" & (VLOOKUP(Rebalance!$D$60,$F$2:$G$48,2,FALSE)+ROW()-2)),\"\")","v":{"$error":"#N/A"}},{"$f":"IF(INDIRECT(\"c\" & (VLOOKUP(Rebalance!$D$61,$F$2:$G$48,2,FALSE)+ROW()-2))=Rebalance!$D$61,INDIRECT(\"a\" & (VLOOKUP(Rebalance!$D$61,$F$2:$G$48,2,FALSE)+ROW()-2)),\"\")","v":{"$error":"#N/A"}},{"$f":"IF(INDIRECT(\"c\" & (VLOOKUP(Rebalance!$D$62,$F$2:$G$48,2,FALSE)+ROW()-2))=Rebalance!$D$62,INDIRECT(\"a\" & (VLOOKUP(Rebalance!$D$62,$F$2:$G$48,2,FALSE)+ROW()-2)),\"\")","v":{"$error":"#N/A"}},{"$f":"IF(INDIRECT(\"c\" & (VLOOKUP(Rebalance!$D$63,$F$2:$G$48,2,FALSE)+ROW()-2))=Rebalance!$D$63,INDIRECT(\"a\" & (VLOOKUP(Rebalance!$D$63,$F$2:$G$48,2,FALSE)+ROW()-2)),\"\")","v":{"$error":"#N/A"}},{"$f":"IF(INDIRECT(\"c\" & (VLOOKUP(Rebalance!$D$64,$F$2:$G$48,2,FALSE)+ROW()-2))=Rebalance!$D$64,INDIRECT(\"a\" & (VLOOKUP(Rebalance!$D$64,$F$2:$G$48,2,FALSE)+ROW()-2)),\"\")","v":{"$error":"#N/A"}},{"$f":"IF(INDIRECT(\"c\" & (VLOOKUP(Rebalance!$D$65,$F$2:$G$48,2,FALSE)+ROW()-2))=Rebalance!$D$65,INDIRECT(\"a\" & (VLOOKUP(Rebalance!$D$65,$F$2:$G$48,2,FALSE)+ROW()-2)),\"\")","v":{"$error":"#N/A"}},{"$f":"IF(INDIRECT(\"c\" & (VLOOKUP(Rebalance!$D$66,$F$2:$G$48,2,FALSE)+ROW()-2))=Rebalance!$D$66,INDIRECT(\"a\" & (VLOOKUP(Rebalance!$D$66,$F$2:$G$48,2,FALSE)+ROW()-2)),\"\")","v":{"$error":"#N/A"}}]
["Prudential Balanced Fund B","PRAB","Prudential Management",{"$f":"ROW()","v":472},null,null,{"$f":"VLOOKUP(F472,$C$2:$D$599,2,FALSE)","v":{"$error":"#N/A"}},{"$f":"IF(INDIRECT(\"c\" & (VLOOKUP(Rebalance!$D$26,$F$2:$G$48,2,FALSE)+ROW()-2))=Rebalance!$D$26,INDIRECT(\"a\" & (VLOOKUP(Rebalance!$D$26,$F$2:$G$48,2,FALSE)+ROW()-2)),\"\")","v":{"$error":"#N/A"}},{"$f":"IF(INDIRECT(\"c\" & (VLOOKUP(Rebalance!$D$27,$F$2:$G$48,2,FALSE)+ROW()-2))=Rebalance!$D$27,INDIRECT(\"a\" & (VLOOKUP(Rebalance!$D$27,$F$2:$G$48,2,FALSE)+ROW()-2)),\"\")","v":{"$error":"#N/A"}},{"$f":"IF(INDIRECT(\"c\" & (VLOOKUP(Rebalance!$D$28,$F$2:$G$48,2,FALSE)+ROW()-2))=Rebalance!$D$28,INDIRECT(\"a\" & (VLOOKUP(Rebalance!$D$28,$F$2:$G$48,2,FALSE)+ROW()-2)),\"\")","v":{"$error":"#N/A"}},{"$f":"IF(INDIRECT(\"c\" & (VLOOKUP(Rebalance!$D$29,$F$2:$G$48,2,FALSE)+ROW()-2))=Rebalance!$D$29,INDIRECT(\"a\" & (VLOOKUP(Rebalance!$D$29,$F$2:$G$48,2,FALSE)+ROW()-2)),\"\")","v":{"$error":"#N/A"}},{"$f":"IF(INDIRECT(\"c\" & (VLOOKUP(Rebalance!$D$30,$F$2:$G$48,2,FALSE)+ROW()-2))=Rebalance!$D$30,INDIRECT(\"a\" & (VLOOKUP(Rebalance!$D$30,$F$2:$G$48,2,FALSE)+ROW()-2)),\"\")","v":{"$error":"#N/A"}},{"$f":"IF(INDIRECT(\"c\" & (VLOOKUP(Rebalance!$D$31,$F$2:$G$48,2,FALSE)+ROW()-2))=Rebalance!$D$31,INDIRECT(\"a\" & (VLOOKUP(Rebalance!$D$31,$F$2:$G$48,2,FALSE)+ROW()-2)),\"\")","v":{"$error":"#N/A"}},{"$f":"IF(INDIRECT(\"c\" & (VLOOKUP(Rebalance!$D$32,$F$2:$G$48,2,FALSE)+ROW()-2))=Rebalance!$D$32,INDIRECT(\"a\" & (VLOOKUP(Rebalance!$D$32,$F$2:$G$48,2,FALSE)+ROW()-2)),\"\")","v":{"$error":"#N/A"}},{"$f":"IF(INDIRECT(\"c\" & (VLOOKUP(Rebalance!$D$33,$F$2:$G$48,2,FALSE)+ROW()-2))=Rebalance!$D$33,INDIRECT(\"a\" & (VLOOKUP(Rebalance!$D$33,$F$2:$G$48,2,FALSE)+ROW()-2)),\"\")","v":{"$error":"#N/A"}},{"$f":"IF(INDIRECT(\"c\" & (VLOOKUP(Rebalance!$D$34,$F$2:$G$48,2,FALSE)+ROW()-2))=Rebalance!$D$34,INDIRECT(\"a\" & (VLOOKUP(Rebalance!$D$34,$F$2:$G$48,2,FALSE)+ROW()-2)),\"\")","v":{"$error":"#N/A"}},{"$f":"IF(INDIRECT(\"c\" & (VLOOKUP(Rebalance!$D$35,$F$2:$G$48,2,FALSE)+ROW()-2))=Rebalance!$D$35,INDIRECT(\"a\" & (VLOOKUP(Rebalance!$D$35,$F$2:$G$48,2,FALSE)+ROW()-2)),\"\")","v":{"$error":"#N/A"}},{"$f":"IF(INDIRECT(\"c\" & (VLOOKUP(Rebalance!$D$36,$F$2:$G$48,2,FALSE)+ROW()-2))=Rebalance!$D$36,INDIRECT(\"a\" & (VLOOKUP(Rebalance!$D$36,$F$2:$G$48,2,FALSE)+ROW()-2)),\"\")","v":{"$error":"#N/A"}},{"$f":"IF(INDIRECT(\"c\" & (VLOOKUP(Rebalance!$D$37,$F$2:$G$48,2,FALSE)+ROW()-2))=Rebalance!$D$37,INDIRECT(\"a\" & (VLOOKUP(Rebalance!$D$37,$F$2:$G$48,2,FALSE)+ROW()-2)),\"\")","v":{"$error":"#N/A"}},{"$f":"IF(INDIRECT(\"c\" & (VLOOKUP(Rebalance!$D$38,$F$2:$G$48,2,FALSE)+ROW()-2))=Rebalance!$D$38,INDIRECT(\"a\" & (VLOOKUP(Rebalance!$D$38,$F$2:$G$48,2,FALSE)+ROW()-2)),\"\")","v":{"$error":"#N/A"}},{"$f":"IF(INDIRECT(\"c\" & (VLOOKUP(Rebalance!$D$39,$F$2:$G$48,2,FALSE)+ROW()-2))=Rebalance!$D$39,INDIRECT(\"a\" & (VLOOKUP(Rebalance!$D$39,$F$2:$G$48,2,FALSE)+ROW()-2)),\"\")","v":{"$error":"#N/A"}},{"$f":"IF(INDIRECT(\"c\" & (VLOOKUP(Rebalance!$D$40,$F$2:$G$48,2,FALSE)+ROW()-2))=Rebalance!$D$40,INDIRECT(\"a\" & (VLOOKUP(Rebalance!$D$40,$F$2:$G$48,2,FALSE)+ROW()-2)),\"\")","v":{"$error":"#N/A"}},{"$f":"IF(INDIRECT(\"c\" & (VLOOKUP(Rebalance!$D$52,$F$2:$G$48,2,FALSE)+ROW()-2))=Rebalance!$D$52,INDIRECT(\"a\" & (VLOOKUP(Rebalance!$D$52,$F$2:$G$48,2,FALSE)+ROW()-2)),\"\")","v":{"$error":"#N/A"}},{"$f":"IF(INDIRECT(\"c\" & (VLOOKUP(Rebalance!$D$53,$F$2:$G$48,2,FALSE)+ROW()-2))=Rebalance!$D$53,INDIRECT(\"a\" & (VLOOKUP(Rebalance!$D$53,$F$2:$G$48,2,FALSE)+ROW()-2)),\"\")","v":{"$error":"#N/A"}},{"$f":"IF(INDIRECT(\"c\" & (VLOOKUP(Rebalance!$D$54,$F$2:$G$48,2,FALSE)+ROW()-2))=Rebalance!$D$54,INDIRECT(\"a\" & (VLOOKUP(Rebalance!$D$54,$F$2:$G$48,2,FALSE)+ROW()-2)),\"\")","v":{"$error":"#N/A"}},{"$f":"IF(INDIRECT(\"c\" & (VLOOKUP(Rebalance!$D$55,$F$2:$G$48,2,FALSE)+ROW()-2))=Rebalance!$D$55,INDIRECT(\"a\" & (VLOOKUP(Rebalance!$D$55,$F$2:$G$48,2,FALSE)+ROW()-2)),\"\")","v":{"$error":"#N/A"}},{"$f":"IF(INDIRECT(\"c\" & (VLOOKUP(Rebalance!$D$56,$F$2:$G$48,2,FALSE)+ROW()-2))=Rebalance!$D$56,INDIRECT(\"a\" & (VLOOKUP(Rebalance!$D$56,$F$2:$G$48,2,FALSE)+ROW()-2)),\"\")","v":{"$error":"#N/A"}},{"$f":"IF(INDIRECT(\"c\" & (VLOOKUP(Rebalance!$D$57,$F$2:$G$48,2,FALSE)+ROW()-2))=Rebalance!$D$57,INDIRECT(\"a\" & (VLOOKUP(Rebalance!$D$57,$F$2:$G$48,2,FALSE)+ROW()-2)),\"\")","v":{"$error":"#N/A"}},{"$f":"IF(INDIRECT(\"c\" & (VLOOKUP(Rebalance!$D$58,$F$2:$G$48,2,FALSE)+ROW()-2))=Rebalance!$D$58,INDIRECT(\"a\" & (VLOOKUP(Rebalance!$D$58,$F$2:$G$48,2,FALSE)+ROW()-2)),\"\")","v":{"$error":"#N/A"}},{"$f":"IF(INDIRECT(\"c\" & (VLOOKUP(Rebalance!$D$59,$F$2:$G$48,2,FALSE)+ROW()-2))=Rebalance!$D$59,INDIRECT(\"a\" & (VLOOKUP(Rebalance!$D$59,$F$2:$G$48,2,FALSE)+ROW()-2)),\"\")","v":{"$error":"#N/A"}},{"$f":"IF(INDIRECT(\"c\" & (VLOOKUP(Rebalance!$D$60,$F$2:$G$48,2,FALSE)+ROW()-2))=Rebalance!$D$60,INDIRECT(\"a\" & (VLOOKUP(Rebalance!$D$60,$F$2:$G$48,2,FALSE)+ROW()-2)),\"\")","v":{"$error":"#N/A"}},{"$f":"IF(INDIRECT(\"c\" & (VLOOKUP(Rebalance!$D$61,$F$2:$G$48,2,FALSE)+ROW()-2))=Rebalance!$D$61,INDIRECT(\"a\" & (VLOOKUP(Rebalance!$D$61,$F$2:$G$48,2,FALSE)+ROW()-2)),\"\")","v":{"$error":"#N/A"}},{"$f":"IF(INDIRECT(\"c\" & (VLOOKUP(Rebalance!$D$62,$F$2:$G$48,2,FALSE)+ROW()-2))=Rebalance!$D$62,INDIRECT(\"a\" & (VLOOKUP(Rebalance!$D$62,$F$2:$G$48,2,FALSE)+ROW()-2)),\"\")","v":{"$error":"#N/A"}},{"$f":"IF(INDIRECT(\"c\" & (VLOOKUP(Rebalance!$D$63,$F$2:$G$48,2,FALSE)+ROW()-2))=Rebalance!$D$63,INDIRECT(\"a\" & (VLOOKUP(Rebalance!$D$63,$F$2:$G$48,2,FALSE)+ROW()-2)),\"\")","v":{"$error":"#N/A"}},{"$f":"IF(INDIRECT(\"c\" & (VLOOKUP(Rebalance!$D$64,$F$2:$G$48,2,FALSE)+ROW()-2))=Rebalance!$D$64,INDIRECT(\"a\" & (VLOOKUP(Rebalance!$D$64,$F$2:$G$48,2,FALSE)+ROW()-2)),\"\")","v":{"$error":"#N/A"}},{"$f":"IF(INDIRECT(\"c\" & (VLOOKUP(Rebalance!$D$65,$F$2:$G$48,2,FALSE)+ROW()-2))=Rebalance!$D$65,INDIRECT(\"a\" & (VLOOKUP(Rebalance!$D$65,$F$2:$G$48,2,FALSE)+ROW()-2)),\"\")","v":{"$error":"#N/A"}},{"$f":"IF(INDIRECT(\"c\" & (VLOOKUP(Rebalance!$D$66,$F$2:$G$48,2,FALSE)+ROW()-2))=Rebalance!$D$66,INDIRECT(\"a\" & (VLOOKUP(Rebalance!$D$66,$F$2:$G$48,2,FALSE)+ROW()-2)),\"\")","v":{"$error":"#N/A"}}]
["Prudential Dividend Maximiser Fund B","PDMB","Prudential Management",{"$f":"ROW()","v":473},null,null,{"$f":"VLOOKUP(F473,$C$2:$D$599,2,FALSE)","v":{"$error":"#N/A"}},{"$f":"IF(INDIRECT(\"c\" & (VLOOKUP(Rebalance!$D$26,$F$2:$G$48,2,FALSE)+ROW()-2))=Rebalance!$D$26,INDIRECT(\"a\" & (VLOOKUP(Rebalance!$D$26,$F$2:$G$48,2,FALSE)+ROW()-2)),\"\")","v":{"$error":"#N/A"}},{"$f":"IF(INDIRECT(\"c\" & (VLOOKUP(Rebalance!$D$27,$F$2:$G$48,2,FALSE)+ROW()-2))=Rebalance!$D$27,INDIRECT(\"a\" & (VLOOKUP(Rebalance!$D$27,$F$2:$G$48,2,FALSE)+ROW()-2)),\"\")","v":{"$error":"#N/A"}},{"$f":"IF(INDIRECT(\"c\" & (VLOOKUP(Rebalance!$D$28,$F$2:$G$48,2,FALSE)+ROW()-2))=Rebalance!$D$28,INDIRECT(\"a\" & (VLOOKUP(Rebalance!$D$28,$F$2:$G$48,2,FALSE)+ROW()-2)),\"\")","v":{"$error":"#N/A"}},{"$f":"IF(INDIRECT(\"c\" & (VLOOKUP(Rebalance!$D$29,$F$2:$G$48,2,FALSE)+ROW()-2))=Rebalance!$D$29,INDIRECT(\"a\" & (VLOOKUP(Rebalance!$D$29,$F$2:$G$48,2,FALSE)+ROW()-2)),\"\")","v":{"$error":"#N/A"}},{"$f":"IF(INDIRECT(\"c\" & (VLOOKUP(Rebalance!$D$30,$F$2:$G$48,2,FALSE)+ROW()-2))=Rebalance!$D$30,INDIRECT(\"a\" & (VLOOKUP(Rebalance!$D$30,$F$2:$G$48,2,FALSE)+ROW()-2)),\"\")","v":{"$error":"#N/A"}},{"$f":"IF(INDIRECT(\"c\" & (VLOOKUP(Rebalance!$D$31,$F$2:$G$48,2,FALSE)+ROW()-2))=Rebalance!$D$31,INDIRECT(\"a\" & (VLOOKUP(Rebalance!$D$31,$F$2:$G$48,2,FALSE)+ROW()-2)),\"\")","v":{"$error":"#N/A"}},{"$f":"IF(INDIRECT(\"c\" & (VLOOKUP(Rebalance!$D$32,$F$2:$G$48,2,FALSE)+ROW()-2))=Rebalance!$D$32,INDIRECT(\"a\" & (VLOOKUP(Rebalance!$D$32,$F$2:$G$48,2,FALSE)+ROW()-2)),\"\")","v":{"$error":"#N/A"}},{"$f":"IF(INDIRECT(\"c\" & (VLOOKUP(Rebalance!$D$33,$F$2:$G$48,2,FALSE)+ROW()-2))=Rebalance!$D$33,INDIRECT(\"a\" & (VLOOKUP(Rebalance!$D$33,$F$2:$G$48,2,FALSE)+ROW()-2)),\"\")","v":{"$error":"#N/A"}},{"$f":"IF(INDIRECT(\"c\" & (VLOOKUP(Rebalance!$D$34,$F$2:$G$48,2,FALSE)+ROW()-2))=Rebalance!$D$34,INDIRECT(\"a\" & (VLOOKUP(Rebalance!$D$34,$F$2:$G$48,2,FALSE)+ROW()-2)),\"\")","v":{"$error":"#N/A"}},{"$f":"IF(INDIRECT(\"c\" & (VLOOKUP(Rebalance!$D$35,$F$2:$G$48,2,FALSE)+ROW()-2))=Rebalance!$D$35,INDIRECT(\"a\" & (VLOOKUP(Rebalance!$D$35,$F$2:$G$48,2,FALSE)+ROW()-2)),\"\")","v":{"$error":"#N/A"}},{"$f":"IF(INDIRECT(\"c\" & (VLOOKUP(Rebalance!$D$36,$F$2:$G$48,2,FALSE)+ROW()-2))=Rebalance!$D$36,INDIRECT(\"a\" & (VLOOKUP(Rebalance!$D$36,$F$2:$G$48,2,FALSE)+ROW()-2)),\"\")","v":{"$error":"#N/A"}},{"$f":"IF(INDIRECT(\"c\" & (VLOOKUP(Rebalance!$D$37,$F$2:$G$48,2,FALSE)+ROW()-2))=Rebalance!$D$37,INDIRECT(\"a\" & (VLOOKUP(Rebalance!$D$37,$F$2:$G$48,2,FALSE)+ROW()-2)),\"\")","v":{"$error":"#N/A"}},{"$f":"IF(INDIRECT(\"c\" & (VLOOKUP(Rebalance!$D$38,$F$2:$G$48,2,FALSE)+ROW()-2))=Rebalance!$D$38,INDIRECT(\"a\" & (VLOOKUP(Rebalance!$D$38,$F$2:$G$48,2,FALSE)+ROW()-2)),\"\")","v":{"$error":"#N/A"}},{"$f":"IF(INDIRECT(\"c\" & (VLOOKUP(Rebalance!$D$39,$F$2:$G$48,2,FALSE)+ROW()-2))=Rebalance!$D$39,INDIRECT(\"a\" & (VLOOKUP(Rebalance!$D$39,$F$2:$G$48,2,FALSE)+ROW()-2)),\"\")","v":{"$error":"#N/A"}},{"$f":"IF(INDIRECT(\"c\" & (VLOOKUP(Rebalance!$D$40,$F$2:$G$48,2,FALSE)+ROW()-2))=Rebalance!$D$40,INDIRECT(\"a\" & (VLOOKUP(Rebalance!$D$40,$F$2:$G$48,2,FALSE)+ROW()-2)),\"\")","v":{"$error":"#N/A"}},{"$f":"IF(INDIRECT(\"c\" & (VLOOKUP(Rebalance!$D$52,$F$2:$G$48,2,FALSE)+ROW()-2))=Rebalance!$D$52,INDIRECT(\"a\" & (VLOOKUP(Rebalance!$D$52,$F$2:$G$48,2,FALSE)+ROW()-2)),\"\")","v":{"$error":"#N/A"}},{"$f":"IF(INDIRECT(\"c\" & (VLOOKUP(Rebalance!$D$53,$F$2:$G$48,2,FALSE)+ROW()-2))=Rebalance!$D$53,INDIRECT(\"a\" & (VLOOKUP(Rebalance!$D$53,$F$2:$G$48,2,FALSE)+ROW()-2)),\"\")","v":{"$error":"#N/A"}},{"$f":"IF(INDIRECT(\"c\" & (VLOOKUP(Rebalance!$D$54,$F$2:$G$48,2,FALSE)+ROW()-2))=Rebalance!$D$54,INDIRECT(\"a\" & (VLOOKUP(Rebalance!$D$54,$F$2:$G$48,2,FALSE)+ROW()-2)),\"\")","v":{"$error":"#N/A"}},{"$f":"IF(INDIRECT(\"c\" & (VLOOKUP(Rebalance!$D$55,$F$2:$G$48,2,FALSE)+ROW()-2))=Rebalance!$D$55,INDIRECT(\"a\" & (VLOOKUP(Rebalance!$D$55,$F$2:$G$48,2,FALSE)+ROW()-2)),\"\")","v":{"$error":"#N/A"}},{"$f":"IF(INDIRECT(\"c\" & (VLOOKUP(Rebalance!$D$56,$F$2:$G$48,2,FALSE)+ROW()-2))=Rebalance!$D$56,INDIRECT(\"a\" & (VLOOKUP(Rebalance!$D$56,$F$2:$G$48,2,FALSE)+ROW()-2)),\"\")","v":{"$error":"#N/A"}},{"$f":"IF(INDIRECT(\"c\" & (VLOOKUP(Rebalance!$D$57,$F$2:$G$48,2,FALSE)+ROW()-2))=Rebalance!$D$57,INDIRECT(\"a\" & (VLOOKUP(Rebalance!$D$57,$F$2:$G$48,2,FALSE)+ROW()-2)),\"\")","v":{"$error":"#N/A"}},{"$f":"IF(INDIRECT(\"c\" & (VLOOKUP(Rebalance!$D$58,$F$2:$G$48,2,FALSE)+ROW()-2))=Rebalance!$D$58,INDIRECT(\"a\" & (VLOOKUP(Rebalance!$D$58,$F$2:$G$48,2,FALSE)+ROW()-2)),\"\")","v":{"$error":"#N/A"}},{"$f":"IF(INDIRECT(\"c\" & (VLOOKUP(Rebalance!$D$59,$F$2:$G$48,2,FALSE)+ROW()-2))=Rebalance!$D$59,INDIRECT(\"a\" & (VLOOKUP(Rebalance!$D$59,$F$2:$G$48,2,FALSE)+ROW()-2)),\"\")","v":{"$error":"#N/A"}},{"$f":"IF(INDIRECT(\"c\" & (VLOOKUP(Rebalance!$D$60,$F$2:$G$48,2,FALSE)+ROW()-2))=Rebalance!$D$60,INDIRECT(\"a\" & (VLOOKUP(Rebalance!$D$60,$F$2:$G$48,2,FALSE)+ROW()-2)),\"\")","v":{"$error":"#N/A"}},{"$f":"IF(INDIRECT(\"c\" & (VLOOKUP(Rebalance!$D$61,$F$2:$G$48,2,FALSE)+ROW()-2))=Rebalance!$D$61,INDIRECT(\"a\" & (VLOOKUP(Rebalance!$D$61,$F$2:$G$48,2,FALSE)+ROW()-2)),\"\")","v":{"$error":"#N/A"}},{"$f":"IF(INDIRECT(\"c\" & (VLOOKUP(Rebalance!$D$62,$F$2:$G$48,2,FALSE)+ROW()-2))=Rebalance!$D$62,INDIRECT(\"a\" & (VLOOKUP(Rebalance!$D$62,$F$2:$G$48,2,FALSE)+ROW()-2)),\"\")","v":{"$error":"#N/A"}},{"$f":"IF(INDIRECT(\"c\" & (VLOOKUP(Rebalance!$D$63,$F$2:$G$48,2,FALSE)+ROW()-2))=Rebalance!$D$63,INDIRECT(\"a\" & (VLOOKUP(Rebalance!$D$63,$F$2:$G$48,2,FALSE)+ROW()-2)),\"\")","v":{"$error":"#N/A"}},{"$f":"IF(INDIRECT(\"c\" & (VLOOKUP(Rebalance!$D$64,$F$2:$G$48,2,FALSE)+ROW()-2))=Rebalance!$D$64,INDIRECT(\"a\" & (VLOOKUP(Rebalance!$D$64,$F$2:$G$48,2,FALSE)+ROW()-2)),\"\")","v":{"$error":"#N/A"}},{"$f":"IF(INDIRECT(\"c\" & (VLOOKUP(Rebalance!$D$65,$F$2:$G$48,2,FALSE)+ROW()-2))=Rebalance!$D$65,INDIRECT(\"a\" & (VLOOKUP(Rebalance!$D$65,$F$2:$G$48,2,FALSE)+ROW()-2)),\"\")","v":{"$error":"#N/A"}},{"$f":"IF(INDIRECT(\"c\" & (VLOOKUP(Rebalance!$D$66,$F$2:$G$48,2,FALSE)+ROW()-2))=Rebalance!$D$66,INDIRECT(\"a\" & (VLOOKUP(Rebalance!$D$66,$F$2:$G$48,2,FALSE)+ROW()-2)),\"\")","v":{"$error":"#N/A"}}]
["Prudential Enhanced Income Fund D","PEICD","Prudential Management",{"$f":"ROW()","v":474},null,null,{"$f":"VLOOKUP(F474,$C$2:$D$599,2,FALSE)","v":{"$error":"#N/A"}},{"$f":"IF(INDIRECT(\"c\" & (VLOOKUP(Rebalance!$D$26,$F$2:$G$48,2,FALSE)+ROW()-2))=Rebalance!$D$26,INDIRECT(\"a\" & (VLOOKUP(Rebalance!$D$26,$F$2:$G$48,2,FALSE)+ROW()-2)),\"\")","v":{"$error":"#N/A"}},{"$f":"IF(INDIRECT(\"c\" & (VLOOKUP(Rebalance!$D$27,$F$2:$G$48,2,FALSE)+ROW()-2))=Rebalance!$D$27,INDIRECT(\"a\" & (VLOOKUP(Rebalance!$D$27,$F$2:$G$48,2,FALSE)+ROW()-2)),\"\")","v":{"$error":"#N/A"}},{"$f":"IF(INDIRECT(\"c\" & (VLOOKUP(Rebalance!$D$28,$F$2:$G$48,2,FALSE)+ROW()-2))=Rebalance!$D$28,INDIRECT(\"a\" & (VLOOKUP(Rebalance!$D$28,$F$2:$G$48,2,FALSE)+ROW()-2)),\"\")","v":{"$error":"#N/A"}},{"$f":"IF(INDIRECT(\"c\" & (VLOOKUP(Rebalance!$D$29,$F$2:$G$48,2,FALSE)+ROW()-2))=Rebalance!$D$29,INDIRECT(\"a\" & (VLOOKUP(Rebalance!$D$29,$F$2:$G$48,2,FALSE)+ROW()-2)),\"\")","v":{"$error":"#N/A"}},{"$f":"IF(INDIRECT(\"c\" & (VLOOKUP(Rebalance!$D$30,$F$2:$G$48,2,FALSE)+ROW()-2))=Rebalance!$D$30,INDIRECT(\"a\" & (VLOOKUP(Rebalance!$D$30,$F$2:$G$48,2,FALSE)+ROW()-2)),\"\")","v":{"$error":"#N/A"}},{"$f":"IF(INDIRECT(\"c\" & (VLOOKUP(Rebalance!$D$31,$F$2:$G$48,2,FALSE)+ROW()-2))=Rebalance!$D$31,INDIRECT(\"a\" & (VLOOKUP(Rebalance!$D$31,$F$2:$G$48,2,FALSE)+ROW()-2)),\"\")","v":{"$error":"#N/A"}},{"$f":"IF(INDIRECT(\"c\" & (VLOOKUP(Rebalance!$D$32,$F$2:$G$48,2,FALSE)+ROW()-2))=Rebalance!$D$32,INDIRECT(\"a\" & (VLOOKUP(Rebalance!$D$32,$F$2:$G$48,2,FALSE)+ROW()-2)),\"\")","v":{"$error":"#N/A"}},{"$f":"IF(INDIRECT(\"c\" & (VLOOKUP(Rebalance!$D$33,$F$2:$G$48,2,FALSE)+ROW()-2))=Rebalance!$D$33,INDIRECT(\"a\" & (VLOOKUP(Rebalance!$D$33,$F$2:$G$48,2,FALSE)+ROW()-2)),\"\")","v":{"$error":"#N/A"}},{"$f":"IF(INDIRECT(\"c\" & (VLOOKUP(Rebalance!$D$34,$F$2:$G$48,2,FALSE)+ROW()-2))=Rebalance!$D$34,INDIRECT(\"a\" & (VLOOKUP(Rebalance!$D$34,$F$2:$G$48,2,FALSE)+ROW()-2)),\"\")","v":{"$error":"#N/A"}},{"$f":"IF(INDIRECT(\"c\" & (VLOOKUP(Rebalance!$D$35,$F$2:$G$48,2,FALSE)+ROW()-2))=Rebalance!$D$35,INDIRECT(\"a\" & (VLOOKUP(Rebalance!$D$35,$F$2:$G$48,2,FALSE)+ROW()-2)),\"\")","v":{"$error":"#N/A"}},{"$f":"IF(INDIRECT(\"c\" & (VLOOKUP(Rebalance!$D$36,$F$2:$G$48,2,FALSE)+ROW()-2))=Rebalance!$D$36,INDIRECT(\"a\" & (VLOOKUP(Rebalance!$D$36,$F$2:$G$48,2,FALSE)+ROW()-2)),\"\")","v":{"$error":"#N/A"}},{"$f":"IF(INDIRECT(\"c\" & (VLOOKUP(Rebalance!$D$37,$F$2:$G$48,2,FALSE)+ROW()-2))=Rebalance!$D$37,INDIRECT(\"a\" & (VLOOKUP(Rebalance!$D$37,$F$2:$G$48,2,FALSE)+ROW()-2)),\"\")","v":{"$error":"#N/A"}},{"$f":"IF(INDIRECT(\"c\" & (VLOOKUP(Rebalance!$D$38,$F$2:$G$48,2,FALSE)+ROW()-2))=Rebalance!$D$38,INDIRECT(\"a\" & (VLOOKUP(Rebalance!$D$38,$F$2:$G$48,2,FALSE)+ROW()-2)),\"\")","v":{"$error":"#N/A"}},{"$f":"IF(INDIRECT(\"c\" & (VLOOKUP(Rebalance!$D$39,$F$2:$G$48,2,FALSE)+ROW()-2))=Rebalance!$D$39,INDIRECT(\"a\" & (VLOOKUP(Rebalance!$D$39,$F$2:$G$48,2,FALSE)+ROW()-2)),\"\")","v":{"$error":"#N/A"}},{"$f":"IF(INDIRECT(\"c\" & (VLOOKUP(Rebalance!$D$40,$F$2:$G$48,2,FALSE)+ROW()-2))=Rebalance!$D$40,INDIRECT(\"a\" & (VLOOKUP(Rebalance!$D$40,$F$2:$G$48,2,FALSE)+ROW()-2)),\"\")","v":{"$error":"#N/A"}},{"$f":"IF(INDIRECT(\"c\" & (VLOOKUP(Rebalance!$D$52,$F$2:$G$48,2,FALSE)+ROW()-2))=Rebalance!$D$52,INDIRECT(\"a\" & (VLOOKUP(Rebalance!$D$52,$F$2:$G$48,2,FALSE)+ROW()-2)),\"\")","v":{"$error":"#N/A"}},{"$f":"IF(INDIRECT(\"c\" & (VLOOKUP(Rebalance!$D$53,$F$2:$G$48,2,FALSE)+ROW()-2))=Rebalance!$D$53,INDIRECT(\"a\" & (VLOOKUP(Rebalance!$D$53,$F$2:$G$48,2,FALSE)+ROW()-2)),\"\")","v":{"$error":"#N/A"}},{"$f":"IF(INDIRECT(\"c\" & (VLOOKUP(Rebalance!$D$54,$F$2:$G$48,2,FALSE)+ROW()-2))=Rebalance!$D$54,INDIRECT(\"a\" & (VLOOKUP(Rebalance!$D$54,$F$2:$G$48,2,FALSE)+ROW()-2)),\"\")","v":{"$error":"#N/A"}},{"$f":"IF(INDIRECT(\"c\" & (VLOOKUP(Rebalance!$D$55,$F$2:$G$48,2,FALSE)+ROW()-2))=Rebalance!$D$55,INDIRECT(\"a\" & (VLOOKUP(Rebalance!$D$55,$F$2:$G$48,2,FALSE)+ROW()-2)),\"\")","v":{"$error":"#N/A"}},{"$f":"IF(INDIRECT(\"c\" & (VLOOKUP(Rebalance!$D$56,$F$2:$G$48,2,FALSE)+ROW()-2))=Rebalance!$D$56,INDIRECT(\"a\" & (VLOOKUP(Rebalance!$D$56,$F$2:$G$48,2,FALSE)+ROW()-2)),\"\")","v":{"$error":"#N/A"}},{"$f":"IF(INDIRECT(\"c\" & (VLOOKUP(Rebalance!$D$57,$F$2:$G$48,2,FALSE)+ROW()-2))=Rebalance!$D$57,INDIRECT(\"a\" & (VLOOKUP(Rebalance!$D$57,$F$2:$G$48,2,FALSE)+ROW()-2)),\"\")","v":{"$error":"#N/A"}},{"$f":"IF(INDIRECT(\"c\" & (VLOOKUP(Rebalance!$D$58,$F$2:$G$48,2,FALSE)+ROW()-2))=Rebalance!$D$58,INDIRECT(\"a\" & (VLOOKUP(Rebalance!$D$58,$F$2:$G$48,2,FALSE)+ROW()-2)),\"\")","v":{"$error":"#N/A"}},{"$f":"IF(INDIRECT(\"c\" & (VLOOKUP(Rebalance!$D$59,$F$2:$G$48,2,FALSE)+ROW()-2))=Rebalance!$D$59,INDIRECT(\"a\" & (VLOOKUP(Rebalance!$D$59,$F$2:$G$48,2,FALSE)+ROW()-2)),\"\")","v":{"$error":"#N/A"}},{"$f":"IF(INDIRECT(\"c\" & (VLOOKUP(Rebalance!$D$60,$F$2:$G$48,2,FALSE)+ROW()-2))=Rebalance!$D$60,INDIRECT(\"a\" & (VLOOKUP(Rebalance!$D$60,$F$2:$G$48,2,FALSE)+ROW()-2)),\"\")","v":{"$error":"#N/A"}},{"$f":"IF(INDIRECT(\"c\" & (VLOOKUP(Rebalance!$D$61,$F$2:$G$48,2,FALSE)+ROW()-2))=Rebalance!$D$61,INDIRECT(\"a\" & (VLOOKUP(Rebalance!$D$61,$F$2:$G$48,2,FALSE)+ROW()-2)),\"\")","v":{"$error":"#N/A"}},{"$f":"IF(INDIRECT(\"c\" & (VLOOKUP(Rebalance!$D$62,$F$2:$G$48,2,FALSE)+ROW()-2))=Rebalance!$D$62,INDIRECT(\"a\" & (VLOOKUP(Rebalance!$D$62,$F$2:$G$48,2,FALSE)+ROW()-2)),\"\")","v":{"$error":"#N/A"}},{"$f":"IF(INDIRECT(\"c\" & (VLOOKUP(Rebalance!$D$63,$F$2:$G$48,2,FALSE)+ROW()-2))=Rebalance!$D$63,INDIRECT(\"a\" & (VLOOKUP(Rebalance!$D$63,$F$2:$G$48,2,FALSE)+ROW()-2)),\"\")","v":{"$error":"#N/A"}},{"$f":"IF(INDIRECT(\"c\" & (VLOOKUP(Rebalance!$D$64,$F$2:$G$48,2,FALSE)+ROW()-2))=Rebalance!$D$64,INDIRECT(\"a\" & (VLOOKUP(Rebalance!$D$64,$F$2:$G$48,2,FALSE)+ROW()-2)),\"\")","v":{"$error":"#N/A"}},{"$f":"IF(INDIRECT(\"c\" & (VLOOKUP(Rebalance!$D$65,$F$2:$G$48,2,FALSE)+ROW()-2))=Rebalance!$D$65,INDIRECT(\"a\" & (VLOOKUP(Rebalance!$D$65,$F$2:$G$48,2,FALSE)+ROW()-2)),\"\")","v":{"$error":"#N/A"}},{"$f":"IF(INDIRECT(\"c\" & (VLOOKUP(Rebalance!$D$66,$F$2:$G$48,2,FALSE)+ROW()-2))=Rebalance!$D$66,INDIRECT(\"a\" & (VLOOKUP(Rebalance!$D$66,$F$2:$G$48,2,FALSE)+ROW()-2)),\"\")","v":{"$error":"#N/A"}}]
["Prudential Enhanced SA Property Tracker Fund D","PEPI","Prudential Management",{"$f":"ROW()","v":475},null,null,{"$f":"VLOOKUP(F475,$C$2:$D$599,2,FALSE)","v":{"$error":"#N/A"}},{"$f":"IF(INDIRECT(\"c\" & (VLOOKUP(Rebalance!$D$26,$F$2:$G$48,2,FALSE)+ROW()-2))=Rebalance!$D$26,INDIRECT(\"a\" & (VLOOKUP(Rebalance!$D$26,$F$2:$G$48,2,FALSE)+ROW()-2)),\"\")","v":{"$error":"#N/A"}},{"$f":"IF(INDIRECT(\"c\" & (VLOOKUP(Rebalance!$D$27,$F$2:$G$48,2,FALSE)+ROW()-2))=Rebalance!$D$27,INDIRECT(\"a\" & (VLOOKUP(Rebalance!$D$27,$F$2:$G$48,2,FALSE)+ROW()-2)),\"\")","v":{"$error":"#N/A"}},{"$f":"IF(INDIRECT(\"c\" & (VLOOKUP(Rebalance!$D$28,$F$2:$G$48,2,FALSE)+ROW()-2))=Rebalance!$D$28,INDIRECT(\"a\" & (VLOOKUP(Rebalance!$D$28,$F$2:$G$48,2,FALSE)+ROW()-2)),\"\")","v":{"$error":"#N/A"}},{"$f":"IF(INDIRECT(\"c\" & (VLOOKUP(Rebalance!$D$29,$F$2:$G$48,2,FALSE)+ROW()-2))=Rebalance!$D$29,INDIRECT(\"a\" & (VLOOKUP(Rebalance!$D$29,$F$2:$G$48,2,FALSE)+ROW()-2)),\"\")","v":{"$error":"#N/A"}},{"$f":"IF(INDIRECT(\"c\" & (VLOOKUP(Rebalance!$D$30,$F$2:$G$48,2,FALSE)+ROW()-2))=Rebalance!$D$30,INDIRECT(\"a\" & (VLOOKUP(Rebalance!$D$30,$F$2:$G$48,2,FALSE)+ROW()-2)),\"\")","v":{"$error":"#N/A"}},{"$f":"IF(INDIRECT(\"c\" & (VLOOKUP(Rebalance!$D$31,$F$2:$G$48,2,FALSE)+ROW()-2))=Rebalance!$D$31,INDIRECT(\"a\" & (VLOOKUP(Rebalance!$D$31,$F$2:$G$48,2,FALSE)+ROW()-2)),\"\")","v":{"$error":"#N/A"}},{"$f":"IF(INDIRECT(\"c\" & (VLOOKUP(Rebalance!$D$32,$F$2:$G$48,2,FALSE)+ROW()-2))=Rebalance!$D$32,INDIRECT(\"a\" & (VLOOKUP(Rebalance!$D$32,$F$2:$G$48,2,FALSE)+ROW()-2)),\"\")","v":{"$error":"#N/A"}},{"$f":"IF(INDIRECT(\"c\" & (VLOOKUP(Rebalance!$D$33,$F$2:$G$48,2,FALSE)+ROW()-2))=Rebalance!$D$33,INDIRECT(\"a\" & (VLOOKUP(Rebalance!$D$33,$F$2:$G$48,2,FALSE)+ROW()-2)),\"\")","v":{"$error":"#N/A"}},{"$f":"IF(INDIRECT(\"c\" & (VLOOKUP(Rebalance!$D$34,$F$2:$G$48,2,FALSE)+ROW()-2))=Rebalance!$D$34,INDIRECT(\"a\" & (VLOOKUP(Rebalance!$D$34,$F$2:$G$48,2,FALSE)+ROW()-2)),\"\")","v":{"$error":"#N/A"}},{"$f":"IF(INDIRECT(\"c\" & (VLOOKUP(Rebalance!$D$35,$F$2:$G$48,2,FALSE)+ROW()-2))=Rebalance!$D$35,INDIRECT(\"a\" & (VLOOKUP(Rebalance!$D$35,$F$2:$G$48,2,FALSE)+ROW()-2)),\"\")","v":{"$error":"#N/A"}},{"$f":"IF(INDIRECT(\"c\" & (VLOOKUP(Rebalance!$D$36,$F$2:$G$48,2,FALSE)+ROW()-2))=Rebalance!$D$36,INDIRECT(\"a\" & (VLOOKUP(Rebalance!$D$36,$F$2:$G$48,2,FALSE)+ROW()-2)),\"\")","v":{"$error":"#N/A"}},{"$f":"IF(INDIRECT(\"c\" & (VLOOKUP(Rebalance!$D$37,$F$2:$G$48,2,FALSE)+ROW()-2))=Rebalance!$D$37,INDIRECT(\"a\" & (VLOOKUP(Rebalance!$D$37,$F$2:$G$48,2,FALSE)+ROW()-2)),\"\")","v":{"$error":"#N/A"}},{"$f":"IF(INDIRECT(\"c\" & (VLOOKUP(Rebalance!$D$38,$F$2:$G$48,2,FALSE)+ROW()-2))=Rebalance!$D$38,INDIRECT(\"a\" & (VLOOKUP(Rebalance!$D$38,$F$2:$G$48,2,FALSE)+ROW()-2)),\"\")","v":{"$error":"#N/A"}},{"$f":"IF(INDIRECT(\"c\" & (VLOOKUP(Rebalance!$D$39,$F$2:$G$48,2,FALSE)+ROW()-2))=Rebalance!$D$39,INDIRECT(\"a\" & (VLOOKUP(Rebalance!$D$39,$F$2:$G$48,2,FALSE)+ROW()-2)),\"\")","v":{"$error":"#N/A"}},{"$f":"IF(INDIRECT(\"c\" & (VLOOKUP(Rebalance!$D$40,$F$2:$G$48,2,FALSE)+ROW()-2))=Rebalance!$D$40,INDIRECT(\"a\" & (VLOOKUP(Rebalance!$D$40,$F$2:$G$48,2,FALSE)+ROW()-2)),\"\")","v":{"$error":"#N/A"}},{"$f":"IF(INDIRECT(\"c\" & (VLOOKUP(Rebalance!$D$52,$F$2:$G$48,2,FALSE)+ROW()-2))=Rebalance!$D$52,INDIRECT(\"a\" & (VLOOKUP(Rebalance!$D$52,$F$2:$G$48,2,FALSE)+ROW()-2)),\"\")","v":{"$error":"#N/A"}},{"$f":"IF(INDIRECT(\"c\" & (VLOOKUP(Rebalance!$D$53,$F$2:$G$48,2,FALSE)+ROW()-2))=Rebalance!$D$53,INDIRECT(\"a\" & (VLOOKUP(Rebalance!$D$53,$F$2:$G$48,2,FALSE)+ROW()-2)),\"\")","v":{"$error":"#N/A"}},{"$f":"IF(INDIRECT(\"c\" & (VLOOKUP(Rebalance!$D$54,$F$2:$G$48,2,FALSE)+ROW()-2))=Rebalance!$D$54,INDIRECT(\"a\" & (VLOOKUP(Rebalance!$D$54,$F$2:$G$48,2,FALSE)+ROW()-2)),\"\")","v":{"$error":"#N/A"}},{"$f":"IF(INDIRECT(\"c\" & (VLOOKUP(Rebalance!$D$55,$F$2:$G$48,2,FALSE)+ROW()-2))=Rebalance!$D$55,INDIRECT(\"a\" & (VLOOKUP(Rebalance!$D$55,$F$2:$G$48,2,FALSE)+ROW()-2)),\"\")","v":{"$error":"#N/A"}},{"$f":"IF(INDIRECT(\"c\" & (VLOOKUP(Rebalance!$D$56,$F$2:$G$48,2,FALSE)+ROW()-2))=Rebalance!$D$56,INDIRECT(\"a\" & (VLOOKUP(Rebalance!$D$56,$F$2:$G$48,2,FALSE)+ROW()-2)),\"\")","v":{"$error":"#N/A"}},{"$f":"IF(INDIRECT(\"c\" & (VLOOKUP(Rebalance!$D$57,$F$2:$G$48,2,FALSE)+ROW()-2))=Rebalance!$D$57,INDIRECT(\"a\" & (VLOOKUP(Rebalance!$D$57,$F$2:$G$48,2,FALSE)+ROW()-2)),\"\")","v":{"$error":"#N/A"}},{"$f":"IF(INDIRECT(\"c\" & (VLOOKUP(Rebalance!$D$58,$F$2:$G$48,2,FALSE)+ROW()-2))=Rebalance!$D$58,INDIRECT(\"a\" & (VLOOKUP(Rebalance!$D$58,$F$2:$G$48,2,FALSE)+ROW()-2)),\"\")","v":{"$error":"#N/A"}},{"$f":"IF(INDIRECT(\"c\" & (VLOOKUP(Rebalance!$D$59,$F$2:$G$48,2,FALSE)+ROW()-2))=Rebalance!$D$59,INDIRECT(\"a\" & (VLOOKUP(Rebalance!$D$59,$F$2:$G$48,2,FALSE)+ROW()-2)),\"\")","v":{"$error":"#N/A"}},{"$f":"IF(INDIRECT(\"c\" & (VLOOKUP(Rebalance!$D$60,$F$2:$G$48,2,FALSE)+ROW()-2))=Rebalance!$D$60,INDIRECT(\"a\" & (VLOOKUP(Rebalance!$D$60,$F$2:$G$48,2,FALSE)+ROW()-2)),\"\")","v":{"$error":"#N/A"}},{"$f":"IF(INDIRECT(\"c\" & (VLOOKUP(Rebalance!$D$61,$F$2:$G$48,2,FALSE)+ROW()-2))=Rebalance!$D$61,INDIRECT(\"a\" & (VLOOKUP(Rebalance!$D$61,$F$2:$G$48,2,FALSE)+ROW()-2)),\"\")","v":{"$error":"#N/A"}},{"$f":"IF(INDIRECT(\"c\" & (VLOOKUP(Rebalance!$D$62,$F$2:$G$48,2,FALSE)+ROW()-2))=Rebalance!$D$62,INDIRECT(\"a\" & (VLOOKUP(Rebalance!$D$62,$F$2:$G$48,2,FALSE)+ROW()-2)),\"\")","v":{"$error":"#N/A"}},{"$f":"IF(INDIRECT(\"c\" & (VLOOKUP(Rebalance!$D$63,$F$2:$G$48,2,FALSE)+ROW()-2))=Rebalance!$D$63,INDIRECT(\"a\" & (VLOOKUP(Rebalance!$D$63,$F$2:$G$48,2,FALSE)+ROW()-2)),\"\")","v":{"$error":"#N/A"}},{"$f":"IF(INDIRECT(\"c\" & (VLOOKUP(Rebalance!$D$64,$F$2:$G$48,2,FALSE)+ROW()-2))=Rebalance!$D$64,INDIRECT(\"a\" & (VLOOKUP(Rebalance!$D$64,$F$2:$G$48,2,FALSE)+ROW()-2)),\"\")","v":{"$error":"#N/A"}},{"$f":"IF(INDIRECT(\"c\" & (VLOOKUP(Rebalance!$D$65,$F$2:$G$48,2,FALSE)+ROW()-2))=Rebalance!$D$65,INDIRECT(\"a\" & (VLOOKUP(Rebalance!$D$65,$F$2:$G$48,2,FALSE)+ROW()-2)),\"\")","v":{"$error":"#N/A"}},{"$f":"IF(INDIRECT(\"c\" & (VLOOKUP(Rebalance!$D$66,$F$2:$G$48,2,FALSE)+ROW()-2))=Rebalance!$D$66,INDIRECT(\"a\" & (VLOOKUP(Rebalance!$D$66,$F$2:$G$48,2,FALSE)+ROW()-2)),\"\")","v":{"$error":"#N/A"}}]
["Prudential Equity Fund B","PEFB","Prudential Management",{"$f":"ROW()","v":476},null,null,{"$f":"VLOOKUP(F476,$C$2:$D$599,2,FALSE)","v":{"$error":"#N/A"}},{"$f":"IF(INDIRECT(\"c\" & (VLOOKUP(Rebalance!$D$26,$F$2:$G$48,2,FALSE)+ROW()-2))=Rebalance!$D$26,INDIRECT(\"a\" & (VLOOKUP(Rebalance!$D$26,$F$2:$G$48,2,FALSE)+ROW()-2)),\"\")","v":{"$error":"#N/A"}},{"$f":"IF(INDIRECT(\"c\" & (VLOOKUP(Rebalance!$D$27,$F$2:$G$48,2,FALSE)+ROW()-2))=Rebalance!$D$27,INDIRECT(\"a\" & (VLOOKUP(Rebalance!$D$27,$F$2:$G$48,2,FALSE)+ROW()-2)),\"\")","v":{"$error":"#N/A"}},{"$f":"IF(INDIRECT(\"c\" & (VLOOKUP(Rebalance!$D$28,$F$2:$G$48,2,FALSE)+ROW()-2))=Rebalance!$D$28,INDIRECT(\"a\" & (VLOOKUP(Rebalance!$D$28,$F$2:$G$48,2,FALSE)+ROW()-2)),\"\")","v":{"$error":"#N/A"}},{"$f":"IF(INDIRECT(\"c\" & (VLOOKUP(Rebalance!$D$29,$F$2:$G$48,2,FALSE)+ROW()-2))=Rebalance!$D$29,INDIRECT(\"a\" & (VLOOKUP(Rebalance!$D$29,$F$2:$G$48,2,FALSE)+ROW()-2)),\"\")","v":{"$error":"#N/A"}},{"$f":"IF(INDIRECT(\"c\" & (VLOOKUP(Rebalance!$D$30,$F$2:$G$48,2,FALSE)+ROW()-2))=Rebalance!$D$30,INDIRECT(\"a\" & (VLOOKUP(Rebalance!$D$30,$F$2:$G$48,2,FALSE)+ROW()-2)),\"\")","v":{"$error":"#N/A"}},{"$f":"IF(INDIRECT(\"c\" & (VLOOKUP(Rebalance!$D$31,$F$2:$G$48,2,FALSE)+ROW()-2))=Rebalance!$D$31,INDIRECT(\"a\" & (VLOOKUP(Rebalance!$D$31,$F$2:$G$48,2,FALSE)+ROW()-2)),\"\")","v":{"$error":"#N/A"}},{"$f":"IF(INDIRECT(\"c\" & (VLOOKUP(Rebalance!$D$32,$F$2:$G$48,2,FALSE)+ROW()-2))=Rebalance!$D$32,INDIRECT(\"a\" & (VLOOKUP(Rebalance!$D$32,$F$2:$G$48,2,FALSE)+ROW()-2)),\"\")","v":{"$error":"#N/A"}},{"$f":"IF(INDIRECT(\"c\" & (VLOOKUP(Rebalance!$D$33,$F$2:$G$48,2,FALSE)+ROW()-2))=Rebalance!$D$33,INDIRECT(\"a\" & (VLOOKUP(Rebalance!$D$33,$F$2:$G$48,2,FALSE)+ROW()-2)),\"\")","v":{"$error":"#N/A"}},{"$f":"IF(INDIRECT(\"c\" & (VLOOKUP(Rebalance!$D$34,$F$2:$G$48,2,FALSE)+ROW()-2))=Rebalance!$D$34,INDIRECT(\"a\" & (VLOOKUP(Rebalance!$D$34,$F$2:$G$48,2,FALSE)+ROW()-2)),\"\")","v":{"$error":"#N/A"}},{"$f":"IF(INDIRECT(\"c\" & (VLOOKUP(Rebalance!$D$35,$F$2:$G$48,2,FALSE)+ROW()-2))=Rebalance!$D$35,INDIRECT(\"a\" & (VLOOKUP(Rebalance!$D$35,$F$2:$G$48,2,FALSE)+ROW()-2)),\"\")","v":{"$error":"#N/A"}},{"$f":"IF(INDIRECT(\"c\" & (VLOOKUP(Rebalance!$D$36,$F$2:$G$48,2,FALSE)+ROW()-2))=Rebalance!$D$36,INDIRECT(\"a\" & (VLOOKUP(Rebalance!$D$36,$F$2:$G$48,2,FALSE)+ROW()-2)),\"\")","v":{"$error":"#N/A"}},{"$f":"IF(INDIRECT(\"c\" & (VLOOKUP(Rebalance!$D$37,$F$2:$G$48,2,FALSE)+ROW()-2))=Rebalance!$D$37,INDIRECT(\"a\" & (VLOOKUP(Rebalance!$D$37,$F$2:$G$48,2,FALSE)+ROW()-2)),\"\")","v":{"$error":"#N/A"}},{"$f":"IF(INDIRECT(\"c\" & (VLOOKUP(Rebalance!$D$38,$F$2:$G$48,2,FALSE)+ROW()-2))=Rebalance!$D$38,INDIRECT(\"a\" & (VLOOKUP(Rebalance!$D$38,$F$2:$G$48,2,FALSE)+ROW()-2)),\"\")","v":{"$error":"#N/A"}},{"$f":"IF(INDIRECT(\"c\" & (VLOOKUP(Rebalance!$D$39,$F$2:$G$48,2,FALSE)+ROW()-2))=Rebalance!$D$39,INDIRECT(\"a\" & (VLOOKUP(Rebalance!$D$39,$F$2:$G$48,2,FALSE)+ROW()-2)),\"\")","v":{"$error":"#N/A"}},{"$f":"IF(INDIRECT(\"c\" & (VLOOKUP(Rebalance!$D$40,$F$2:$G$48,2,FALSE)+ROW()-2))=Rebalance!$D$40,INDIRECT(\"a\" & (VLOOKUP(Rebalance!$D$40,$F$2:$G$48,2,FALSE)+ROW()-2)),\"\")","v":{"$error":"#N/A"}},{"$f":"IF(INDIRECT(\"c\" & (VLOOKUP(Rebalance!$D$52,$F$2:$G$48,2,FALSE)+ROW()-2))=Rebalance!$D$52,INDIRECT(\"a\" & (VLOOKUP(Rebalance!$D$52,$F$2:$G$48,2,FALSE)+ROW()-2)),\"\")","v":{"$error":"#N/A"}},{"$f":"IF(INDIRECT(\"c\" & (VLOOKUP(Rebalance!$D$53,$F$2:$G$48,2,FALSE)+ROW()-2))=Rebalance!$D$53,INDIRECT(\"a\" & (VLOOKUP(Rebalance!$D$53,$F$2:$G$48,2,FALSE)+ROW()-2)),\"\")","v":{"$error":"#N/A"}},{"$f":"IF(INDIRECT(\"c\" & (VLOOKUP(Rebalance!$D$54,$F$2:$G$48,2,FALSE)+ROW()-2))=Rebalance!$D$54,INDIRECT(\"a\" & (VLOOKUP(Rebalance!$D$54,$F$2:$G$48,2,FALSE)+ROW()-2)),\"\")","v":{"$error":"#N/A"}},{"$f":"IF(INDIRECT(\"c\" & (VLOOKUP(Rebalance!$D$55,$F$2:$G$48,2,FALSE)+ROW()-2))=Rebalance!$D$55,INDIRECT(\"a\" & (VLOOKUP(Rebalance!$D$55,$F$2:$G$48,2,FALSE)+ROW()-2)),\"\")","v":{"$error":"#N/A"}},{"$f":"IF(INDIRECT(\"c\" & (VLOOKUP(Rebalance!$D$56,$F$2:$G$48,2,FALSE)+ROW()-2))=Rebalance!$D$56,INDIRECT(\"a\" & (VLOOKUP(Rebalance!$D$56,$F$2:$G$48,2,FALSE)+ROW()-2)),\"\")","v":{"$error":"#N/A"}},{"$f":"IF(INDIRECT(\"c\" & (VLOOKUP(Rebalance!$D$57,$F$2:$G$48,2,FALSE)+ROW()-2))=Rebalance!$D$57,INDIRECT(\"a\" & (VLOOKUP(Rebalance!$D$57,$F$2:$G$48,2,FALSE)+ROW()-2)),\"\")","v":{"$error":"#N/A"}},{"$f":"IF(INDIRECT(\"c\" & (VLOOKUP(Rebalance!$D$58,$F$2:$G$48,2,FALSE)+ROW()-2))=Rebalance!$D$58,INDIRECT(\"a\" & (VLOOKUP(Rebalance!$D$58,$F$2:$G$48,2,FALSE)+ROW()-2)),\"\")","v":{"$error":"#N/A"}},{"$f":"IF(INDIRECT(\"c\" & (VLOOKUP(Rebalance!$D$59,$F$2:$G$48,2,FALSE)+ROW()-2))=Rebalance!$D$59,INDIRECT(\"a\" & (VLOOKUP(Rebalance!$D$59,$F$2:$G$48,2,FALSE)+ROW()-2)),\"\")","v":{"$error":"#N/A"}},{"$f":"IF(INDIRECT(\"c\" & (VLOOKUP(Rebalance!$D$60,$F$2:$G$48,2,FALSE)+ROW()-2))=Rebalance!$D$60,INDIRECT(\"a\" & (VLOOKUP(Rebalance!$D$60,$F$2:$G$48,2,FALSE)+ROW()-2)),\"\")","v":{"$error":"#N/A"}},{"$f":"IF(INDIRECT(\"c\" & (VLOOKUP(Rebalance!$D$61,$F$2:$G$48,2,FALSE)+ROW()-2))=Rebalance!$D$61,INDIRECT(\"a\" & (VLOOKUP(Rebalance!$D$61,$F$2:$G$48,2,FALSE)+ROW()-2)),\"\")","v":{"$error":"#N/A"}},{"$f":"IF(INDIRECT(\"c\" & (VLOOKUP(Rebalance!$D$62,$F$2:$G$48,2,FALSE)+ROW()-2))=Rebalance!$D$62,INDIRECT(\"a\" & (VLOOKUP(Rebalance!$D$62,$F$2:$G$48,2,FALSE)+ROW()-2)),\"\")","v":{"$error":"#N/A"}},{"$f":"IF(INDIRECT(\"c\" & (VLOOKUP(Rebalance!$D$63,$F$2:$G$48,2,FALSE)+ROW()-2))=Rebalance!$D$63,INDIRECT(\"a\" & (VLOOKUP(Rebalance!$D$63,$F$2:$G$48,2,FALSE)+ROW()-2)),\"\")","v":{"$error":"#N/A"}},{"$f":"IF(INDIRECT(\"c\" & (VLOOKUP(Rebalance!$D$64,$F$2:$G$48,2,FALSE)+ROW()-2))=Rebalance!$D$64,INDIRECT(\"a\" & (VLOOKUP(Rebalance!$D$64,$F$2:$G$48,2,FALSE)+ROW()-2)),\"\")","v":{"$error":"#N/A"}},{"$f":"IF(INDIRECT(\"c\" & (VLOOKUP(Rebalance!$D$65,$F$2:$G$48,2,FALSE)+ROW()-2))=Rebalance!$D$65,INDIRECT(\"a\" & (VLOOKUP(Rebalance!$D$65,$F$2:$G$48,2,FALSE)+ROW()-2)),\"\")","v":{"$error":"#N/A"}},{"$f":"IF(INDIRECT(\"c\" & (VLOOKUP(Rebalance!$D$66,$F$2:$G$48,2,FALSE)+ROW()-2))=Rebalance!$D$66,INDIRECT(\"a\" & (VLOOKUP(Rebalance!$D$66,$F$2:$G$48,2,FALSE)+ROW()-2)),\"\")","v":{"$error":"#N/A"}}]
["Prudential Inflation Plus Fund B","PRCB","Prudential Management",{"$f":"ROW()","v":477},null,null,{"$f":"VLOOKUP(F477,$C$2:$D$599,2,FALSE)","v":{"$error":"#N/A"}},{"$f":"IF(INDIRECT(\"c\" & (VLOOKUP(Rebalance!$D$26,$F$2:$G$48,2,FALSE)+ROW()-2))=Rebalance!$D$26,INDIRECT(\"a\" & (VLOOKUP(Rebalance!$D$26,$F$2:$G$48,2,FALSE)+ROW()-2)),\"\")","v":{"$error":"#N/A"}},{"$f":"IF(INDIRECT(\"c\" & (VLOOKUP(Rebalance!$D$27,$F$2:$G$48,2,FALSE)+ROW()-2))=Rebalance!$D$27,INDIRECT(\"a\" & (VLOOKUP(Rebalance!$D$27,$F$2:$G$48,2,FALSE)+ROW()-2)),\"\")","v":{"$error":"#N/A"}},{"$f":"IF(INDIRECT(\"c\" & (VLOOKUP(Rebalance!$D$28,$F$2:$G$48,2,FALSE)+ROW()-2))=Rebalance!$D$28,INDIRECT(\"a\" & (VLOOKUP(Rebalance!$D$28,$F$2:$G$48,2,FALSE)+ROW()-2)),\"\")","v":{"$error":"#N/A"}},{"$f":"IF(INDIRECT(\"c\" & (VLOOKUP(Rebalance!$D$29,$F$2:$G$48,2,FALSE)+ROW()-2))=Rebalance!$D$29,INDIRECT(\"a\" & (VLOOKUP(Rebalance!$D$29,$F$2:$G$48,2,FALSE)+ROW()-2)),\"\")","v":{"$error":"#N/A"}},{"$f":"IF(INDIRECT(\"c\" & (VLOOKUP(Rebalance!$D$30,$F$2:$G$48,2,FALSE)+ROW()-2))=Rebalance!$D$30,INDIRECT(\"a\" & (VLOOKUP(Rebalance!$D$30,$F$2:$G$48,2,FALSE)+ROW()-2)),\"\")","v":{"$error":"#N/A"}},{"$f":"IF(INDIRECT(\"c\" & (VLOOKUP(Rebalance!$D$31,$F$2:$G$48,2,FALSE)+ROW()-2))=Rebalance!$D$31,INDIRECT(\"a\" & (VLOOKUP(Rebalance!$D$31,$F$2:$G$48,2,FALSE)+ROW()-2)),\"\")","v":{"$error":"#N/A"}},{"$f":"IF(INDIRECT(\"c\" & (VLOOKUP(Rebalance!$D$32,$F$2:$G$48,2,FALSE)+ROW()-2))=Rebalance!$D$32,INDIRECT(\"a\" & (VLOOKUP(Rebalance!$D$32,$F$2:$G$48,2,FALSE)+ROW()-2)),\"\")","v":{"$error":"#N/A"}},{"$f":"IF(INDIRECT(\"c\" & (VLOOKUP(Rebalance!$D$33,$F$2:$G$48,2,FALSE)+ROW()-2))=Rebalance!$D$33,INDIRECT(\"a\" & (VLOOKUP(Rebalance!$D$33,$F$2:$G$48,2,FALSE)+ROW()-2)),\"\")","v":{"$error":"#N/A"}},{"$f":"IF(INDIRECT(\"c\" & (VLOOKUP(Rebalance!$D$34,$F$2:$G$48,2,FALSE)+ROW()-2))=Rebalance!$D$34,INDIRECT(\"a\" & (VLOOKUP(Rebalance!$D$34,$F$2:$G$48,2,FALSE)+ROW()-2)),\"\")","v":{"$error":"#N/A"}},{"$f":"IF(INDIRECT(\"c\" & (VLOOKUP(Rebalance!$D$35,$F$2:$G$48,2,FALSE)+ROW()-2))=Rebalance!$D$35,INDIRECT(\"a\" & (VLOOKUP(Rebalance!$D$35,$F$2:$G$48,2,FALSE)+ROW()-2)),\"\")","v":{"$error":"#N/A"}},{"$f":"IF(INDIRECT(\"c\" & (VLOOKUP(Rebalance!$D$36,$F$2:$G$48,2,FALSE)+ROW()-2))=Rebalance!$D$36,INDIRECT(\"a\" & (VLOOKUP(Rebalance!$D$36,$F$2:$G$48,2,FALSE)+ROW()-2)),\"\")","v":{"$error":"#N/A"}},{"$f":"IF(INDIRECT(\"c\" & (VLOOKUP(Rebalance!$D$37,$F$2:$G$48,2,FALSE)+ROW()-2))=Rebalance!$D$37,INDIRECT(\"a\" & (VLOOKUP(Rebalance!$D$37,$F$2:$G$48,2,FALSE)+ROW()-2)),\"\")","v":{"$error":"#N/A"}},{"$f":"IF(INDIRECT(\"c\" & (VLOOKUP(Rebalance!$D$38,$F$2:$G$48,2,FALSE)+ROW()-2))=Rebalance!$D$38,INDIRECT(\"a\" & (VLOOKUP(Rebalance!$D$38,$F$2:$G$48,2,FALSE)+ROW()-2)),\"\")","v":{"$error":"#N/A"}},{"$f":"IF(INDIRECT(\"c\" & (VLOOKUP(Rebalance!$D$39,$F$2:$G$48,2,FALSE)+ROW()-2))=Rebalance!$D$39,INDIRECT(\"a\" & (VLOOKUP(Rebalance!$D$39,$F$2:$G$48,2,FALSE)+ROW()-2)),\"\")","v":{"$error":"#N/A"}},{"$f":"IF(INDIRECT(\"c\" & (VLOOKUP(Rebalance!$D$40,$F$2:$G$48,2,FALSE)+ROW()-2))=Rebalance!$D$40,INDIRECT(\"a\" & (VLOOKUP(Rebalance!$D$40,$F$2:$G$48,2,FALSE)+ROW()-2)),\"\")","v":{"$error":"#N/A"}},{"$f":"IF(INDIRECT(\"c\" & (VLOOKUP(Rebalance!$D$52,$F$2:$G$48,2,FALSE)+ROW()-2))=Rebalance!$D$52,INDIRECT(\"a\" & (VLOOKUP(Rebalance!$D$52,$F$2:$G$48,2,FALSE)+ROW()-2)),\"\")","v":{"$error":"#N/A"}},{"$f":"IF(INDIRECT(\"c\" & (VLOOKUP(Rebalance!$D$53,$F$2:$G$48,2,FALSE)+ROW()-2))=Rebalance!$D$53,INDIRECT(\"a\" & (VLOOKUP(Rebalance!$D$53,$F$2:$G$48,2,FALSE)+ROW()-2)),\"\")","v":{"$error":"#N/A"}},{"$f":"IF(INDIRECT(\"c\" & (VLOOKUP(Rebalance!$D$54,$F$2:$G$48,2,FALSE)+ROW()-2))=Rebalance!$D$54,INDIRECT(\"a\" & (VLOOKUP(Rebalance!$D$54,$F$2:$G$48,2,FALSE)+ROW()-2)),\"\")","v":{"$error":"#N/A"}},{"$f":"IF(INDIRECT(\"c\" & (VLOOKUP(Rebalance!$D$55,$F$2:$G$48,2,FALSE)+ROW()-2))=Rebalance!$D$55,INDIRECT(\"a\" & (VLOOKUP(Rebalance!$D$55,$F$2:$G$48,2,FALSE)+ROW()-2)),\"\")","v":{"$error":"#N/A"}},{"$f":"IF(INDIRECT(\"c\" & (VLOOKUP(Rebalance!$D$56,$F$2:$G$48,2,FALSE)+ROW()-2))=Rebalance!$D$56,INDIRECT(\"a\" & (VLOOKUP(Rebalance!$D$56,$F$2:$G$48,2,FALSE)+ROW()-2)),\"\")","v":{"$error":"#N/A"}},{"$f":"IF(INDIRECT(\"c\" & (VLOOKUP(Rebalance!$D$57,$F$2:$G$48,2,FALSE)+ROW()-2))=Rebalance!$D$57,INDIRECT(\"a\" & (VLOOKUP(Rebalance!$D$57,$F$2:$G$48,2,FALSE)+ROW()-2)),\"\")","v":{"$error":"#N/A"}},{"$f":"IF(INDIRECT(\"c\" & (VLOOKUP(Rebalance!$D$58,$F$2:$G$48,2,FALSE)+ROW()-2))=Rebalance!$D$58,INDIRECT(\"a\" & (VLOOKUP(Rebalance!$D$58,$F$2:$G$48,2,FALSE)+ROW()-2)),\"\")","v":{"$error":"#N/A"}},{"$f":"IF(INDIRECT(\"c\" & (VLOOKUP(Rebalance!$D$59,$F$2:$G$48,2,FALSE)+ROW()-2))=Rebalance!$D$59,INDIRECT(\"a\" & (VLOOKUP(Rebalance!$D$59,$F$2:$G$48,2,FALSE)+ROW()-2)),\"\")","v":{"$error":"#N/A"}},{"$f":"IF(INDIRECT(\"c\" & (VLOOKUP(Rebalance!$D$60,$F$2:$G$48,2,FALSE)+ROW()-2))=Rebalance!$D$60,INDIRECT(\"a\" & (VLOOKUP(Rebalance!$D$60,$F$2:$G$48,2,FALSE)+ROW()-2)),\"\")","v":{"$error":"#N/A"}},{"$f":"IF(INDIRECT(\"c\" & (VLOOKUP(Rebalance!$D$61,$F$2:$G$48,2,FALSE)+ROW()-2))=Rebalance!$D$61,INDIRECT(\"a\" & (VLOOKUP(Rebalance!$D$61,$F$2:$G$48,2,FALSE)+ROW()-2)),\"\")","v":{"$error":"#N/A"}},{"$f":"IF(INDIRECT(\"c\" & (VLOOKUP(Rebalance!$D$62,$F$2:$G$48,2,FALSE)+ROW()-2))=Rebalance!$D$62,INDIRECT(\"a\" & (VLOOKUP(Rebalance!$D$62,$F$2:$G$48,2,FALSE)+ROW()-2)),\"\")","v":{"$error":"#N/A"}},{"$f":"IF(INDIRECT(\"c\" & (VLOOKUP(Rebalance!$D$63,$F$2:$G$48,2,FALSE)+ROW()-2))=Rebalance!$D$63,INDIRECT(\"a\" & (VLOOKUP(Rebalance!$D$63,$F$2:$G$48,2,FALSE)+ROW()-2)),\"\")","v":{"$error":"#N/A"}},{"$f":"IF(INDIRECT(\"c\" & (VLOOKUP(Rebalance!$D$64,$F$2:$G$48,2,FALSE)+ROW()-2))=Rebalance!$D$64,INDIRECT(\"a\" & (VLOOKUP(Rebalance!$D$64,$F$2:$G$48,2,FALSE)+ROW()-2)),\"\")","v":{"$error":"#N/A"}},{"$f":"IF(INDIRECT(\"c\" & (VLOOKUP(Rebalance!$D$65,$F$2:$G$48,2,FALSE)+ROW()-2))=Rebalance!$D$65,INDIRECT(\"a\" & (VLOOKUP(Rebalance!$D$65,$F$2:$G$48,2,FALSE)+ROW()-2)),\"\")","v":{"$error":"#N/A"}},{"$f":"IF(INDIRECT(\"c\" & (VLOOKUP(Rebalance!$D$66,$F$2:$G$48,2,FALSE)+ROW()-2))=Rebalance!$D$66,INDIRECT(\"a\" & (VLOOKUP(Rebalance!$D$66,$F$2:$G$48,2,FALSE)+ROW()-2)),\"\")","v":{"$error":"#N/A"}}]
["Prudential Inflation Plus Fund Class X","PRIP","Prudential Management",{"$f":"ROW()","v":478},null,null,{"$f":"VLOOKUP(F478,$C$2:$D$599,2,FALSE)","v":{"$error":"#N/A"}},{"$f":"IF(INDIRECT(\"c\" & (VLOOKUP(Rebalance!$D$26,$F$2:$G$48,2,FALSE)+ROW()-2))=Rebalance!$D$26,INDIRECT(\"a\" & (VLOOKUP(Rebalance!$D$26,$F$2:$G$48,2,FALSE)+ROW()-2)),\"\")","v":{"$error":"#N/A"}},{"$f":"IF(INDIRECT(\"c\" & (VLOOKUP(Rebalance!$D$27,$F$2:$G$48,2,FALSE)+ROW()-2))=Rebalance!$D$27,INDIRECT(\"a\" & (VLOOKUP(Rebalance!$D$27,$F$2:$G$48,2,FALSE)+ROW()-2)),\"\")","v":{"$error":"#N/A"}},{"$f":"IF(INDIRECT(\"c\" & (VLOOKUP(Rebalance!$D$28,$F$2:$G$48,2,FALSE)+ROW()-2))=Rebalance!$D$28,INDIRECT(\"a\" & (VLOOKUP(Rebalance!$D$28,$F$2:$G$48,2,FALSE)+ROW()-2)),\"\")","v":{"$error":"#N/A"}},{"$f":"IF(INDIRECT(\"c\" & (VLOOKUP(Rebalance!$D$29,$F$2:$G$48,2,FALSE)+ROW()-2))=Rebalance!$D$29,INDIRECT(\"a\" & (VLOOKUP(Rebalance!$D$29,$F$2:$G$48,2,FALSE)+ROW()-2)),\"\")","v":{"$error":"#N/A"}},{"$f":"IF(INDIRECT(\"c\" & (VLOOKUP(Rebalance!$D$30,$F$2:$G$48,2,FALSE)+ROW()-2))=Rebalance!$D$30,INDIRECT(\"a\" & (VLOOKUP(Rebalance!$D$30,$F$2:$G$48,2,FALSE)+ROW()-2)),\"\")","v":{"$error":"#N/A"}},{"$f":"IF(INDIRECT(\"c\" & (VLOOKUP(Rebalance!$D$31,$F$2:$G$48,2,FALSE)+ROW()-2))=Rebalance!$D$31,INDIRECT(\"a\" & (VLOOKUP(Rebalance!$D$31,$F$2:$G$48,2,FALSE)+ROW()-2)),\"\")","v":{"$error":"#N/A"}},{"$f":"IF(INDIRECT(\"c\" & (VLOOKUP(Rebalance!$D$32,$F$2:$G$48,2,FALSE)+ROW()-2))=Rebalance!$D$32,INDIRECT(\"a\" & (VLOOKUP(Rebalance!$D$32,$F$2:$G$48,2,FALSE)+ROW()-2)),\"\")","v":{"$error":"#N/A"}},{"$f":"IF(INDIRECT(\"c\" & (VLOOKUP(Rebalance!$D$33,$F$2:$G$48,2,FALSE)+ROW()-2))=Rebalance!$D$33,INDIRECT(\"a\" & (VLOOKUP(Rebalance!$D$33,$F$2:$G$48,2,FALSE)+ROW()-2)),\"\")","v":{"$error":"#N/A"}},{"$f":"IF(INDIRECT(\"c\" & (VLOOKUP(Rebalance!$D$34,$F$2:$G$48,2,FALSE)+ROW()-2))=Rebalance!$D$34,INDIRECT(\"a\" & (VLOOKUP(Rebalance!$D$34,$F$2:$G$48,2,FALSE)+ROW()-2)),\"\")","v":{"$error":"#N/A"}},{"$f":"IF(INDIRECT(\"c\" & (VLOOKUP(Rebalance!$D$35,$F$2:$G$48,2,FALSE)+ROW()-2))=Rebalance!$D$35,INDIRECT(\"a\" & (VLOOKUP(Rebalance!$D$35,$F$2:$G$48,2,FALSE)+ROW()-2)),\"\")","v":{"$error":"#N/A"}},{"$f":"IF(INDIRECT(\"c\" & (VLOOKUP(Rebalance!$D$36,$F$2:$G$48,2,FALSE)+ROW()-2))=Rebalance!$D$36,INDIRECT(\"a\" & (VLOOKUP(Rebalance!$D$36,$F$2:$G$48,2,FALSE)+ROW()-2)),\"\")","v":{"$error":"#N/A"}},{"$f":"IF(INDIRECT(\"c\" & (VLOOKUP(Rebalance!$D$37,$F$2:$G$48,2,FALSE)+ROW()-2))=Rebalance!$D$37,INDIRECT(\"a\" & (VLOOKUP(Rebalance!$D$37,$F$2:$G$48,2,FALSE)+ROW()-2)),\"\")","v":{"$error":"#N/A"}},{"$f":"IF(INDIRECT(\"c\" & (VLOOKUP(Rebalance!$D$38,$F$2:$G$48,2,FALSE)+ROW()-2))=Rebalance!$D$38,INDIRECT(\"a\" & (VLOOKUP(Rebalance!$D$38,$F$2:$G$48,2,FALSE)+ROW()-2)),\"\")","v":{"$error":"#N/A"}},{"$f":"IF(INDIRECT(\"c\" & (VLOOKUP(Rebalance!$D$39,$F$2:$G$48,2,FALSE)+ROW()-2))=Rebalance!$D$39,INDIRECT(\"a\" & (VLOOKUP(Rebalance!$D$39,$F$2:$G$48,2,FALSE)+ROW()-2)),\"\")","v":{"$error":"#N/A"}},{"$f":"IF(INDIRECT(\"c\" & (VLOOKUP(Rebalance!$D$40,$F$2:$G$48,2,FALSE)+ROW()-2))=Rebalance!$D$40,INDIRECT(\"a\" & (VLOOKUP(Rebalance!$D$40,$F$2:$G$48,2,FALSE)+ROW()-2)),\"\")","v":{"$error":"#N/A"}},{"$f":"IF(INDIRECT(\"c\" & (VLOOKUP(Rebalance!$D$52,$F$2:$G$48,2,FALSE)+ROW()-2))=Rebalance!$D$52,INDIRECT(\"a\" & (VLOOKUP(Rebalance!$D$52,$F$2:$G$48,2,FALSE)+ROW()-2)),\"\")","v":{"$error":"#N/A"}},{"$f":"IF(INDIRECT(\"c\" & (VLOOKUP(Rebalance!$D$53,$F$2:$G$48,2,FALSE)+ROW()-2))=Rebalance!$D$53,INDIRECT(\"a\" & (VLOOKUP(Rebalance!$D$53,$F$2:$G$48,2,FALSE)+ROW()-2)),\"\")","v":{"$error":"#N/A"}},{"$f":"IF(INDIRECT(\"c\" & (VLOOKUP(Rebalance!$D$54,$F$2:$G$48,2,FALSE)+ROW()-2))=Rebalance!$D$54,INDIRECT(\"a\" & (VLOOKUP(Rebalance!$D$54,$F$2:$G$48,2,FALSE)+ROW()-2)),\"\")","v":{"$error":"#N/A"}},{"$f":"IF(INDIRECT(\"c\" & (VLOOKUP(Rebalance!$D$55,$F$2:$G$48,2,FALSE)+ROW()-2))=Rebalance!$D$55,INDIRECT(\"a\" & (VLOOKUP(Rebalance!$D$55,$F$2:$G$48,2,FALSE)+ROW()-2)),\"\")","v":{"$error":"#N/A"}},{"$f":"IF(INDIRECT(\"c\" & (VLOOKUP(Rebalance!$D$56,$F$2:$G$48,2,FALSE)+ROW()-2))=Rebalance!$D$56,INDIRECT(\"a\" & (VLOOKUP(Rebalance!$D$56,$F$2:$G$48,2,FALSE)+ROW()-2)),\"\")","v":{"$error":"#N/A"}},{"$f":"IF(INDIRECT(\"c\" & (VLOOKUP(Rebalance!$D$57,$F$2:$G$48,2,FALSE)+ROW()-2))=Rebalance!$D$57,INDIRECT(\"a\" & (VLOOKUP(Rebalance!$D$57,$F$2:$G$48,2,FALSE)+ROW()-2)),\"\")","v":{"$error":"#N/A"}},{"$f":"IF(INDIRECT(\"c\" & (VLOOKUP(Rebalance!$D$58,$F$2:$G$48,2,FALSE)+ROW()-2))=Rebalance!$D$58,INDIRECT(\"a\" & (VLOOKUP(Rebalance!$D$58,$F$2:$G$48,2,FALSE)+ROW()-2)),\"\")","v":{"$error":"#N/A"}},{"$f":"IF(INDIRECT(\"c\" & (VLOOKUP(Rebalance!$D$59,$F$2:$G$48,2,FALSE)+ROW()-2))=Rebalance!$D$59,INDIRECT(\"a\" & (VLOOKUP(Rebalance!$D$59,$F$2:$G$48,2,FALSE)+ROW()-2)),\"\")","v":{"$error":"#N/A"}},{"$f":"IF(INDIRECT(\"c\" & (VLOOKUP(Rebalance!$D$60,$F$2:$G$48,2,FALSE)+ROW()-2))=Rebalance!$D$60,INDIRECT(\"a\" & (VLOOKUP(Rebalance!$D$60,$F$2:$G$48,2,FALSE)+ROW()-2)),\"\")","v":{"$error":"#N/A"}},{"$f":"IF(INDIRECT(\"c\" & (VLOOKUP(Rebalance!$D$61,$F$2:$G$48,2,FALSE)+ROW()-2))=Rebalance!$D$61,INDIRECT(\"a\" & (VLOOKUP(Rebalance!$D$61,$F$2:$G$48,2,FALSE)+ROW()-2)),\"\")","v":{"$error":"#N/A"}},{"$f":"IF(INDIRECT(\"c\" & (VLOOKUP(Rebalance!$D$62,$F$2:$G$48,2,FALSE)+ROW()-2))=Rebalance!$D$62,INDIRECT(\"a\" & (VLOOKUP(Rebalance!$D$62,$F$2:$G$48,2,FALSE)+ROW()-2)),\"\")","v":{"$error":"#N/A"}},{"$f":"IF(INDIRECT(\"c\" & (VLOOKUP(Rebalance!$D$63,$F$2:$G$48,2,FALSE)+ROW()-2))=Rebalance!$D$63,INDIRECT(\"a\" & (VLOOKUP(Rebalance!$D$63,$F$2:$G$48,2,FALSE)+ROW()-2)),\"\")","v":{"$error":"#N/A"}},{"$f":"IF(INDIRECT(\"c\" & (VLOOKUP(Rebalance!$D$64,$F$2:$G$48,2,FALSE)+ROW()-2))=Rebalance!$D$64,INDIRECT(\"a\" & (VLOOKUP(Rebalance!$D$64,$F$2:$G$48,2,FALSE)+ROW()-2)),\"\")","v":{"$error":"#N/A"}},{"$f":"IF(INDIRECT(\"c\" & (VLOOKUP(Rebalance!$D$65,$F$2:$G$48,2,FALSE)+ROW()-2))=Rebalance!$D$65,INDIRECT(\"a\" & (VLOOKUP(Rebalance!$D$65,$F$2:$G$48,2,FALSE)+ROW()-2)),\"\")","v":{"$error":"#N/A"}},{"$f":"IF(INDIRECT(\"c\" & (VLOOKUP(Rebalance!$D$66,$F$2:$G$48,2,FALSE)+ROW()-2))=Rebalance!$D$66,INDIRECT(\"a\" & (VLOOKUP(Rebalance!$D$66,$F$2:$G$48,2,FALSE)+ROW()-2)),\"\")","v":{"$error":"#N/A"}}]
["Prudential SA Equity Fund F","PCVCF","Prudential Management",{"$f":"ROW()","v":479},null,null,{"$f":"VLOOKUP(F479,$C$2:$D$599,2,FALSE)","v":{"$error":"#N/A"}},{"$f":"IF(INDIRECT(\"c\" & (VLOOKUP(Rebalance!$D$26,$F$2:$G$48,2,FALSE)+ROW()-2))=Rebalance!$D$26,INDIRECT(\"a\" & (VLOOKUP(Rebalance!$D$26,$F$2:$G$48,2,FALSE)+ROW()-2)),\"\")","v":{"$error":"#N/A"}},{"$f":"IF(INDIRECT(\"c\" & (VLOOKUP(Rebalance!$D$27,$F$2:$G$48,2,FALSE)+ROW()-2))=Rebalance!$D$27,INDIRECT(\"a\" & (VLOOKUP(Rebalance!$D$27,$F$2:$G$48,2,FALSE)+ROW()-2)),\"\")","v":{"$error":"#N/A"}},{"$f":"IF(INDIRECT(\"c\" & (VLOOKUP(Rebalance!$D$28,$F$2:$G$48,2,FALSE)+ROW()-2))=Rebalance!$D$28,INDIRECT(\"a\" & (VLOOKUP(Rebalance!$D$28,$F$2:$G$48,2,FALSE)+ROW()-2)),\"\")","v":{"$error":"#N/A"}},{"$f":"IF(INDIRECT(\"c\" & (VLOOKUP(Rebalance!$D$29,$F$2:$G$48,2,FALSE)+ROW()-2))=Rebalance!$D$29,INDIRECT(\"a\" & (VLOOKUP(Rebalance!$D$29,$F$2:$G$48,2,FALSE)+ROW()-2)),\"\")","v":{"$error":"#N/A"}},{"$f":"IF(INDIRECT(\"c\" & (VLOOKUP(Rebalance!$D$30,$F$2:$G$48,2,FALSE)+ROW()-2))=Rebalance!$D$30,INDIRECT(\"a\" & (VLOOKUP(Rebalance!$D$30,$F$2:$G$48,2,FALSE)+ROW()-2)),\"\")","v":{"$error":"#N/A"}},{"$f":"IF(INDIRECT(\"c\" & (VLOOKUP(Rebalance!$D$31,$F$2:$G$48,2,FALSE)+ROW()-2))=Rebalance!$D$31,INDIRECT(\"a\" & (VLOOKUP(Rebalance!$D$31,$F$2:$G$48,2,FALSE)+ROW()-2)),\"\")","v":{"$error":"#N/A"}},{"$f":"IF(INDIRECT(\"c\" & (VLOOKUP(Rebalance!$D$32,$F$2:$G$48,2,FALSE)+ROW()-2))=Rebalance!$D$32,INDIRECT(\"a\" & (VLOOKUP(Rebalance!$D$32,$F$2:$G$48,2,FALSE)+ROW()-2)),\"\")","v":{"$error":"#N/A"}},{"$f":"IF(INDIRECT(\"c\" & (VLOOKUP(Rebalance!$D$33,$F$2:$G$48,2,FALSE)+ROW()-2))=Rebalance!$D$33,INDIRECT(\"a\" & (VLOOKUP(Rebalance!$D$33,$F$2:$G$48,2,FALSE)+ROW()-2)),\"\")","v":{"$error":"#N/A"}},{"$f":"IF(INDIRECT(\"c\" & (VLOOKUP(Rebalance!$D$34,$F$2:$G$48,2,FALSE)+ROW()-2))=Rebalance!$D$34,INDIRECT(\"a\" & (VLOOKUP(Rebalance!$D$34,$F$2:$G$48,2,FALSE)+ROW()-2)),\"\")","v":{"$error":"#N/A"}},{"$f":"IF(INDIRECT(\"c\" & (VLOOKUP(Rebalance!$D$35,$F$2:$G$48,2,FALSE)+ROW()-2))=Rebalance!$D$35,INDIRECT(\"a\" & (VLOOKUP(Rebalance!$D$35,$F$2:$G$48,2,FALSE)+ROW()-2)),\"\")","v":{"$error":"#N/A"}},{"$f":"IF(INDIRECT(\"c\" & (VLOOKUP(Rebalance!$D$36,$F$2:$G$48,2,FALSE)+ROW()-2))=Rebalance!$D$36,INDIRECT(\"a\" & (VLOOKUP(Rebalance!$D$36,$F$2:$G$48,2,FALSE)+ROW()-2)),\"\")","v":{"$error":"#N/A"}},{"$f":"IF(INDIRECT(\"c\" & (VLOOKUP(Rebalance!$D$37,$F$2:$G$48,2,FALSE)+ROW()-2))=Rebalance!$D$37,INDIRECT(\"a\" & (VLOOKUP(Rebalance!$D$37,$F$2:$G$48,2,FALSE)+ROW()-2)),\"\")","v":{"$error":"#N/A"}},{"$f":"IF(INDIRECT(\"c\" & (VLOOKUP(Rebalance!$D$38,$F$2:$G$48,2,FALSE)+ROW()-2))=Rebalance!$D$38,INDIRECT(\"a\" & (VLOOKUP(Rebalance!$D$38,$F$2:$G$48,2,FALSE)+ROW()-2)),\"\")","v":{"$error":"#N/A"}},{"$f":"IF(INDIRECT(\"c\" & (VLOOKUP(Rebalance!$D$39,$F$2:$G$48,2,FALSE)+ROW()-2))=Rebalance!$D$39,INDIRECT(\"a\" & (VLOOKUP(Rebalance!$D$39,$F$2:$G$48,2,FALSE)+ROW()-2)),\"\")","v":{"$error":"#N/A"}},{"$f":"IF(INDIRECT(\"c\" & (VLOOKUP(Rebalance!$D$40,$F$2:$G$48,2,FALSE)+ROW()-2))=Rebalance!$D$40,INDIRECT(\"a\" & (VLOOKUP(Rebalance!$D$40,$F$2:$G$48,2,FALSE)+ROW()-2)),\"\")","v":{"$error":"#N/A"}},{"$f":"IF(INDIRECT(\"c\" & (VLOOKUP(Rebalance!$D$52,$F$2:$G$48,2,FALSE)+ROW()-2))=Rebalance!$D$52,INDIRECT(\"a\" & (VLOOKUP(Rebalance!$D$52,$F$2:$G$48,2,FALSE)+ROW()-2)),\"\")","v":{"$error":"#N/A"}},{"$f":"IF(INDIRECT(\"c\" & (VLOOKUP(Rebalance!$D$53,$F$2:$G$48,2,FALSE)+ROW()-2))=Rebalance!$D$53,INDIRECT(\"a\" & (VLOOKUP(Rebalance!$D$53,$F$2:$G$48,2,FALSE)+ROW()-2)),\"\")","v":{"$error":"#N/A"}},{"$f":"IF(INDIRECT(\"c\" & (VLOOKUP(Rebalance!$D$54,$F$2:$G$48,2,FALSE)+ROW()-2))=Rebalance!$D$54,INDIRECT(\"a\" & (VLOOKUP(Rebalance!$D$54,$F$2:$G$48,2,FALSE)+ROW()-2)),\"\")","v":{"$error":"#N/A"}},{"$f":"IF(INDIRECT(\"c\" & (VLOOKUP(Rebalance!$D$55,$F$2:$G$48,2,FALSE)+ROW()-2))=Rebalance!$D$55,INDIRECT(\"a\" & (VLOOKUP(Rebalance!$D$55,$F$2:$G$48,2,FALSE)+ROW()-2)),\"\")","v":{"$error":"#N/A"}},{"$f":"IF(INDIRECT(\"c\" & (VLOOKUP(Rebalance!$D$56,$F$2:$G$48,2,FALSE)+ROW()-2))=Rebalance!$D$56,INDIRECT(\"a\" & (VLOOKUP(Rebalance!$D$56,$F$2:$G$48,2,FALSE)+ROW()-2)),\"\")","v":{"$error":"#N/A"}},{"$f":"IF(INDIRECT(\"c\" & (VLOOKUP(Rebalance!$D$57,$F$2:$G$48,2,FALSE)+ROW()-2))=Rebalance!$D$57,INDIRECT(\"a\" & (VLOOKUP(Rebalance!$D$57,$F$2:$G$48,2,FALSE)+ROW()-2)),\"\")","v":{"$error":"#N/A"}},{"$f":"IF(INDIRECT(\"c\" & (VLOOKUP(Rebalance!$D$58,$F$2:$G$48,2,FALSE)+ROW()-2))=Rebalance!$D$58,INDIRECT(\"a\" & (VLOOKUP(Rebalance!$D$58,$F$2:$G$48,2,FALSE)+ROW()-2)),\"\")","v":{"$error":"#N/A"}},{"$f":"IF(INDIRECT(\"c\" & (VLOOKUP(Rebalance!$D$59,$F$2:$G$48,2,FALSE)+ROW()-2))=Rebalance!$D$59,INDIRECT(\"a\" & (VLOOKUP(Rebalance!$D$59,$F$2:$G$48,2,FALSE)+ROW()-2)),\"\")","v":{"$error":"#N/A"}},{"$f":"IF(INDIRECT(\"c\" & (VLOOKUP(Rebalance!$D$60,$F$2:$G$48,2,FALSE)+ROW()-2))=Rebalance!$D$60,INDIRECT(\"a\" & (VLOOKUP(Rebalance!$D$60,$F$2:$G$48,2,FALSE)+ROW()-2)),\"\")","v":{"$error":"#N/A"}},{"$f":"IF(INDIRECT(\"c\" & (VLOOKUP(Rebalance!$D$61,$F$2:$G$48,2,FALSE)+ROW()-2))=Rebalance!$D$61,INDIRECT(\"a\" & (VLOOKUP(Rebalance!$D$61,$F$2:$G$48,2,FALSE)+ROW()-2)),\"\")","v":{"$error":"#N/A"}},{"$f":"IF(INDIRECT(\"c\" & (VLOOKUP(Rebalance!$D$62,$F$2:$G$48,2,FALSE)+ROW()-2))=Rebalance!$D$62,INDIRECT(\"a\" & (VLOOKUP(Rebalance!$D$62,$F$2:$G$48,2,FALSE)+ROW()-2)),\"\")","v":{"$error":"#N/A"}},{"$f":"IF(INDIRECT(\"c\" & (VLOOKUP(Rebalance!$D$63,$F$2:$G$48,2,FALSE)+ROW()-2))=Rebalance!$D$63,INDIRECT(\"a\" & (VLOOKUP(Rebalance!$D$63,$F$2:$G$48,2,FALSE)+ROW()-2)),\"\")","v":{"$error":"#N/A"}},{"$f":"IF(INDIRECT(\"c\" & (VLOOKUP(Rebalance!$D$64,$F$2:$G$48,2,FALSE)+ROW()-2))=Rebalance!$D$64,INDIRECT(\"a\" & (VLOOKUP(Rebalance!$D$64,$F$2:$G$48,2,FALSE)+ROW()-2)),\"\")","v":{"$error":"#N/A"}},{"$f":"IF(INDIRECT(\"c\" & (VLOOKUP(Rebalance!$D$65,$F$2:$G$48,2,FALSE)+ROW()-2))=Rebalance!$D$65,INDIRECT(\"a\" & (VLOOKUP(Rebalance!$D$65,$F$2:$G$48,2,FALSE)+ROW()-2)),\"\")","v":{"$error":"#N/A"}},{"$f":"IF(INDIRECT(\"c\" & (VLOOKUP(Rebalance!$D$66,$F$2:$G$48,2,FALSE)+ROW()-2))=Rebalance!$D$66,INDIRECT(\"a\" & (VLOOKUP(Rebalance!$D$66,$F$2:$G$48,2,FALSE)+ROW()-2)),\"\")","v":{"$error":"#N/A"}}]
["Catalyst SA Property Equity Fund D","CSPEF","PSG Collective Investments Ltd",{"$f":"ROW()","v":480},null,null,{"$f":"VLOOKUP(F480,$C$2:$D$599,2,FALSE)","v":{"$error":"#N/A"}},{"$f":"IF(INDIRECT(\"c\" & (VLOOKUP(Rebalance!$D$26,$F$2:$G$48,2,FALSE)+ROW()-2))=Rebalance!$D$26,INDIRECT(\"a\" & (VLOOKUP(Rebalance!$D$26,$F$2:$G$48,2,FALSE)+ROW()-2)),\"\")","v":{"$error":"#N/A"}},{"$f":"IF(INDIRECT(\"c\" & (VLOOKUP(Rebalance!$D$27,$F$2:$G$48,2,FALSE)+ROW()-2))=Rebalance!$D$27,INDIRECT(\"a\" & (VLOOKUP(Rebalance!$D$27,$F$2:$G$48,2,FALSE)+ROW()-2)),\"\")","v":{"$error":"#N/A"}},{"$f":"IF(INDIRECT(\"c\" & (VLOOKUP(Rebalance!$D$28,$F$2:$G$48,2,FALSE)+ROW()-2))=Rebalance!$D$28,INDIRECT(\"a\" & (VLOOKUP(Rebalance!$D$28,$F$2:$G$48,2,FALSE)+ROW()-2)),\"\")","v":{"$error":"#N/A"}},{"$f":"IF(INDIRECT(\"c\" & (VLOOKUP(Rebalance!$D$29,$F$2:$G$48,2,FALSE)+ROW()-2))=Rebalance!$D$29,INDIRECT(\"a\" & (VLOOKUP(Rebalance!$D$29,$F$2:$G$48,2,FALSE)+ROW()-2)),\"\")","v":{"$error":"#N/A"}},{"$f":"IF(INDIRECT(\"c\" & (VLOOKUP(Rebalance!$D$30,$F$2:$G$48,2,FALSE)+ROW()-2))=Rebalance!$D$30,INDIRECT(\"a\" & (VLOOKUP(Rebalance!$D$30,$F$2:$G$48,2,FALSE)+ROW()-2)),\"\")","v":{"$error":"#N/A"}},{"$f":"IF(INDIRECT(\"c\" & (VLOOKUP(Rebalance!$D$31,$F$2:$G$48,2,FALSE)+ROW()-2))=Rebalance!$D$31,INDIRECT(\"a\" & (VLOOKUP(Rebalance!$D$31,$F$2:$G$48,2,FALSE)+ROW()-2)),\"\")","v":{"$error":"#N/A"}},{"$f":"IF(INDIRECT(\"c\" & (VLOOKUP(Rebalance!$D$32,$F$2:$G$48,2,FALSE)+ROW()-2))=Rebalance!$D$32,INDIRECT(\"a\" & (VLOOKUP(Rebalance!$D$32,$F$2:$G$48,2,FALSE)+ROW()-2)),\"\")","v":{"$error":"#N/A"}},{"$f":"IF(INDIRECT(\"c\" & (VLOOKUP(Rebalance!$D$33,$F$2:$G$48,2,FALSE)+ROW()-2))=Rebalance!$D$33,INDIRECT(\"a\" & (VLOOKUP(Rebalance!$D$33,$F$2:$G$48,2,FALSE)+ROW()-2)),\"\")","v":{"$error":"#N/A"}},{"$f":"IF(INDIRECT(\"c\" & (VLOOKUP(Rebalance!$D$34,$F$2:$G$48,2,FALSE)+ROW()-2))=Rebalance!$D$34,INDIRECT(\"a\" & (VLOOKUP(Rebalance!$D$34,$F$2:$G$48,2,FALSE)+ROW()-2)),\"\")","v":{"$error":"#N/A"}},{"$f":"IF(INDIRECT(\"c\" & (VLOOKUP(Rebalance!$D$35,$F$2:$G$48,2,FALSE)+ROW()-2))=Rebalance!$D$35,INDIRECT(\"a\" & (VLOOKUP(Rebalance!$D$35,$F$2:$G$48,2,FALSE)+ROW()-2)),\"\")","v":{"$error":"#N/A"}},{"$f":"IF(INDIRECT(\"c\" & (VLOOKUP(Rebalance!$D$36,$F$2:$G$48,2,FALSE)+ROW()-2))=Rebalance!$D$36,INDIRECT(\"a\" & (VLOOKUP(Rebalance!$D$36,$F$2:$G$48,2,FALSE)+ROW()-2)),\"\")","v":{"$error":"#N/A"}},{"$f":"IF(INDIRECT(\"c\" & (VLOOKUP(Rebalance!$D$37,$F$2:$G$48,2,FALSE)+ROW()-2))=Rebalance!$D$37,INDIRECT(\"a\" & (VLOOKUP(Rebalance!$D$37,$F$2:$G$48,2,FALSE)+ROW()-2)),\"\")","v":{"$error":"#N/A"}},{"$f":"IF(INDIRECT(\"c\" & (VLOOKUP(Rebalance!$D$38,$F$2:$G$48,2,FALSE)+ROW()-2))=Rebalance!$D$38,INDIRECT(\"a\" & (VLOOKUP(Rebalance!$D$38,$F$2:$G$48,2,FALSE)+ROW()-2)),\"\")","v":{"$error":"#N/A"}},{"$f":"IF(INDIRECT(\"c\" & (VLOOKUP(Rebalance!$D$39,$F$2:$G$48,2,FALSE)+ROW()-2))=Rebalance!$D$39,INDIRECT(\"a\" & (VLOOKUP(Rebalance!$D$39,$F$2:$G$48,2,FALSE)+ROW()-2)),\"\")","v":{"$error":"#N/A"}},{"$f":"IF(INDIRECT(\"c\" & (VLOOKUP(Rebalance!$D$40,$F$2:$G$48,2,FALSE)+ROW()-2))=Rebalance!$D$40,INDIRECT(\"a\" & (VLOOKUP(Rebalance!$D$40,$F$2:$G$48,2,FALSE)+ROW()-2)),\"\")","v":{"$error":"#N/A"}},{"$f":"IF(INDIRECT(\"c\" & (VLOOKUP(Rebalance!$D$52,$F$2:$G$48,2,FALSE)+ROW()-2))=Rebalance!$D$52,INDIRECT(\"a\" & (VLOOKUP(Rebalance!$D$52,$F$2:$G$48,2,FALSE)+ROW()-2)),\"\")","v":{"$error":"#N/A"}},{"$f":"IF(INDIRECT(\"c\" & (VLOOKUP(Rebalance!$D$53,$F$2:$G$48,2,FALSE)+ROW()-2))=Rebalance!$D$53,INDIRECT(\"a\" & (VLOOKUP(Rebalance!$D$53,$F$2:$G$48,2,FALSE)+ROW()-2)),\"\")","v":{"$error":"#N/A"}},{"$f":"IF(INDIRECT(\"c\" & (VLOOKUP(Rebalance!$D$54,$F$2:$G$48,2,FALSE)+ROW()-2))=Rebalance!$D$54,INDIRECT(\"a\" & (VLOOKUP(Rebalance!$D$54,$F$2:$G$48,2,FALSE)+ROW()-2)),\"\")","v":{"$error":"#N/A"}},{"$f":"IF(INDIRECT(\"c\" & (VLOOKUP(Rebalance!$D$55,$F$2:$G$48,2,FALSE)+ROW()-2))=Rebalance!$D$55,INDIRECT(\"a\" & (VLOOKUP(Rebalance!$D$55,$F$2:$G$48,2,FALSE)+ROW()-2)),\"\")","v":{"$error":"#N/A"}},{"$f":"IF(INDIRECT(\"c\" & (VLOOKUP(Rebalance!$D$56,$F$2:$G$48,2,FALSE)+ROW()-2))=Rebalance!$D$56,INDIRECT(\"a\" & (VLOOKUP(Rebalance!$D$56,$F$2:$G$48,2,FALSE)+ROW()-2)),\"\")","v":{"$error":"#N/A"}},{"$f":"IF(INDIRECT(\"c\" & (VLOOKUP(Rebalance!$D$57,$F$2:$G$48,2,FALSE)+ROW()-2))=Rebalance!$D$57,INDIRECT(\"a\" & (VLOOKUP(Rebalance!$D$57,$F$2:$G$48,2,FALSE)+ROW()-2)),\"\")","v":{"$error":"#N/A"}},{"$f":"IF(INDIRECT(\"c\" & (VLOOKUP(Rebalance!$D$58,$F$2:$G$48,2,FALSE)+ROW()-2))=Rebalance!$D$58,INDIRECT(\"a\" & (VLOOKUP(Rebalance!$D$58,$F$2:$G$48,2,FALSE)+ROW()-2)),\"\")","v":{"$error":"#N/A"}},{"$f":"IF(INDIRECT(\"c\" & (VLOOKUP(Rebalance!$D$59,$F$2:$G$48,2,FALSE)+ROW()-2))=Rebalance!$D$59,INDIRECT(\"a\" & (VLOOKUP(Rebalance!$D$59,$F$2:$G$48,2,FALSE)+ROW()-2)),\"\")","v":{"$error":"#N/A"}},{"$f":"IF(INDIRECT(\"c\" & (VLOOKUP(Rebalance!$D$60,$F$2:$G$48,2,FALSE)+ROW()-2))=Rebalance!$D$60,INDIRECT(\"a\" & (VLOOKUP(Rebalance!$D$60,$F$2:$G$48,2,FALSE)+ROW()-2)),\"\")","v":{"$error":"#N/A"}},{"$f":"IF(INDIRECT(\"c\" & (VLOOKUP(Rebalance!$D$61,$F$2:$G$48,2,FALSE)+ROW()-2))=Rebalance!$D$61,INDIRECT(\"a\" & (VLOOKUP(Rebalance!$D$61,$F$2:$G$48,2,FALSE)+ROW()-2)),\"\")","v":{"$error":"#N/A"}},{"$f":"IF(INDIRECT(\"c\" & (VLOOKUP(Rebalance!$D$62,$F$2:$G$48,2,FALSE)+ROW()-2))=Rebalance!$D$62,INDIRECT(\"a\" & (VLOOKUP(Rebalance!$D$62,$F$2:$G$48,2,FALSE)+ROW()-2)),\"\")","v":{"$error":"#N/A"}},{"$f":"IF(INDIRECT(\"c\" & (VLOOKUP(Rebalance!$D$63,$F$2:$G$48,2,FALSE)+ROW()-2))=Rebalance!$D$63,INDIRECT(\"a\" & (VLOOKUP(Rebalance!$D$63,$F$2:$G$48,2,FALSE)+ROW()-2)),\"\")","v":{"$error":"#N/A"}},{"$f":"IF(INDIRECT(\"c\" & (VLOOKUP(Rebalance!$D$64,$F$2:$G$48,2,FALSE)+ROW()-2))=Rebalance!$D$64,INDIRECT(\"a\" & (VLOOKUP(Rebalance!$D$64,$F$2:$G$48,2,FALSE)+ROW()-2)),\"\")","v":{"$error":"#N/A"}},{"$f":"IF(INDIRECT(\"c\" & (VLOOKUP(Rebalance!$D$65,$F$2:$G$48,2,FALSE)+ROW()-2))=Rebalance!$D$65,INDIRECT(\"a\" & (VLOOKUP(Rebalance!$D$65,$F$2:$G$48,2,FALSE)+ROW()-2)),\"\")","v":{"$error":"#N/A"}},{"$f":"IF(INDIRECT(\"c\" & (VLOOKUP(Rebalance!$D$66,$F$2:$G$48,2,FALSE)+ROW()-2))=Rebalance!$D$66,INDIRECT(\"a\" & (VLOOKUP(Rebalance!$D$66,$F$2:$G$48,2,FALSE)+ROW()-2)),\"\")","v":{"$error":"#N/A"}}]
["PSG Balanced Fund E","PBFE","PSG Collective Investments Ltd",{"$f":"ROW()","v":481},null,null,{"$f":"VLOOKUP(F481,$C$2:$D$599,2,FALSE)","v":{"$error":"#N/A"}},{"$f":"IF(INDIRECT(\"c\" & (VLOOKUP(Rebalance!$D$26,$F$2:$G$48,2,FALSE)+ROW()-2))=Rebalance!$D$26,INDIRECT(\"a\" & (VLOOKUP(Rebalance!$D$26,$F$2:$G$48,2,FALSE)+ROW()-2)),\"\")","v":{"$error":"#N/A"}},{"$f":"IF(INDIRECT(\"c\" & (VLOOKUP(Rebalance!$D$27,$F$2:$G$48,2,FALSE)+ROW()-2))=Rebalance!$D$27,INDIRECT(\"a\" & (VLOOKUP(Rebalance!$D$27,$F$2:$G$48,2,FALSE)+ROW()-2)),\"\")","v":{"$error":"#N/A"}},{"$f":"IF(INDIRECT(\"c\" & (VLOOKUP(Rebalance!$D$28,$F$2:$G$48,2,FALSE)+ROW()-2))=Rebalance!$D$28,INDIRECT(\"a\" & (VLOOKUP(Rebalance!$D$28,$F$2:$G$48,2,FALSE)+ROW()-2)),\"\")","v":{"$error":"#N/A"}},{"$f":"IF(INDIRECT(\"c\" & (VLOOKUP(Rebalance!$D$29,$F$2:$G$48,2,FALSE)+ROW()-2))=Rebalance!$D$29,INDIRECT(\"a\" & (VLOOKUP(Rebalance!$D$29,$F$2:$G$48,2,FALSE)+ROW()-2)),\"\")","v":{"$error":"#N/A"}},{"$f":"IF(INDIRECT(\"c\" & (VLOOKUP(Rebalance!$D$30,$F$2:$G$48,2,FALSE)+ROW()-2))=Rebalance!$D$30,INDIRECT(\"a\" & (VLOOKUP(Rebalance!$D$30,$F$2:$G$48,2,FALSE)+ROW()-2)),\"\")","v":{"$error":"#N/A"}},{"$f":"IF(INDIRECT(\"c\" & (VLOOKUP(Rebalance!$D$31,$F$2:$G$48,2,FALSE)+ROW()-2))=Rebalance!$D$31,INDIRECT(\"a\" & (VLOOKUP(Rebalance!$D$31,$F$2:$G$48,2,FALSE)+ROW()-2)),\"\")","v":{"$error":"#N/A"}},{"$f":"IF(INDIRECT(\"c\" & (VLOOKUP(Rebalance!$D$32,$F$2:$G$48,2,FALSE)+ROW()-2))=Rebalance!$D$32,INDIRECT(\"a\" & (VLOOKUP(Rebalance!$D$32,$F$2:$G$48,2,FALSE)+ROW()-2)),\"\")","v":{"$error":"#N/A"}},{"$f":"IF(INDIRECT(\"c\" & (VLOOKUP(Rebalance!$D$33,$F$2:$G$48,2,FALSE)+ROW()-2))=Rebalance!$D$33,INDIRECT(\"a\" & (VLOOKUP(Rebalance!$D$33,$F$2:$G$48,2,FALSE)+ROW()-2)),\"\")","v":{"$error":"#N/A"}},{"$f":"IF(INDIRECT(\"c\" & (VLOOKUP(Rebalance!$D$34,$F$2:$G$48,2,FALSE)+ROW()-2))=Rebalance!$D$34,INDIRECT(\"a\" & (VLOOKUP(Rebalance!$D$34,$F$2:$G$48,2,FALSE)+ROW()-2)),\"\")","v":{"$error":"#N/A"}},{"$f":"IF(INDIRECT(\"c\" & (VLOOKUP(Rebalance!$D$35,$F$2:$G$48,2,FALSE)+ROW()-2))=Rebalance!$D$35,INDIRECT(\"a\" & (VLOOKUP(Rebalance!$D$35,$F$2:$G$48,2,FALSE)+ROW()-2)),\"\")","v":{"$error":"#N/A"}},{"$f":"IF(INDIRECT(\"c\" & (VLOOKUP(Rebalance!$D$36,$F$2:$G$48,2,FALSE)+ROW()-2))=Rebalance!$D$36,INDIRECT(\"a\" & (VLOOKUP(Rebalance!$D$36,$F$2:$G$48,2,FALSE)+ROW()-2)),\"\")","v":{"$error":"#N/A"}},{"$f":"IF(INDIRECT(\"c\" & (VLOOKUP(Rebalance!$D$37,$F$2:$G$48,2,FALSE)+ROW()-2))=Rebalance!$D$37,INDIRECT(\"a\" & (VLOOKUP(Rebalance!$D$37,$F$2:$G$48,2,FALSE)+ROW()-2)),\"\")","v":{"$error":"#N/A"}},{"$f":"IF(INDIRECT(\"c\" & (VLOOKUP(Rebalance!$D$38,$F$2:$G$48,2,FALSE)+ROW()-2))=Rebalance!$D$38,INDIRECT(\"a\" & (VLOOKUP(Rebalance!$D$38,$F$2:$G$48,2,FALSE)+ROW()-2)),\"\")","v":{"$error":"#N/A"}},{"$f":"IF(INDIRECT(\"c\" & (VLOOKUP(Rebalance!$D$39,$F$2:$G$48,2,FALSE)+ROW()-2))=Rebalance!$D$39,INDIRECT(\"a\" & (VLOOKUP(Rebalance!$D$39,$F$2:$G$48,2,FALSE)+ROW()-2)),\"\")","v":{"$error":"#N/A"}},{"$f":"IF(INDIRECT(\"c\" & (VLOOKUP(Rebalance!$D$40,$F$2:$G$48,2,FALSE)+ROW()-2))=Rebalance!$D$40,INDIRECT(\"a\" & (VLOOKUP(Rebalance!$D$40,$F$2:$G$48,2,FALSE)+ROW()-2)),\"\")","v":{"$error":"#N/A"}},{"$f":"IF(INDIRECT(\"c\" & (VLOOKUP(Rebalance!$D$52,$F$2:$G$48,2,FALSE)+ROW()-2))=Rebalance!$D$52,INDIRECT(\"a\" & (VLOOKUP(Rebalance!$D$52,$F$2:$G$48,2,FALSE)+ROW()-2)),\"\")","v":{"$error":"#N/A"}},{"$f":"IF(INDIRECT(\"c\" & (VLOOKUP(Rebalance!$D$53,$F$2:$G$48,2,FALSE)+ROW()-2))=Rebalance!$D$53,INDIRECT(\"a\" & (VLOOKUP(Rebalance!$D$53,$F$2:$G$48,2,FALSE)+ROW()-2)),\"\")","v":{"$error":"#N/A"}},{"$f":"IF(INDIRECT(\"c\" & (VLOOKUP(Rebalance!$D$54,$F$2:$G$48,2,FALSE)+ROW()-2))=Rebalance!$D$54,INDIRECT(\"a\" & (VLOOKUP(Rebalance!$D$54,$F$2:$G$48,2,FALSE)+ROW()-2)),\"\")","v":{"$error":"#N/A"}},{"$f":"IF(INDIRECT(\"c\" & (VLOOKUP(Rebalance!$D$55,$F$2:$G$48,2,FALSE)+ROW()-2))=Rebalance!$D$55,INDIRECT(\"a\" & (VLOOKUP(Rebalance!$D$55,$F$2:$G$48,2,FALSE)+ROW()-2)),\"\")","v":{"$error":"#N/A"}},{"$f":"IF(INDIRECT(\"c\" & (VLOOKUP(Rebalance!$D$56,$F$2:$G$48,2,FALSE)+ROW()-2))=Rebalance!$D$56,INDIRECT(\"a\" & (VLOOKUP(Rebalance!$D$56,$F$2:$G$48,2,FALSE)+ROW()-2)),\"\")","v":{"$error":"#N/A"}},{"$f":"IF(INDIRECT(\"c\" & (VLOOKUP(Rebalance!$D$57,$F$2:$G$48,2,FALSE)+ROW()-2))=Rebalance!$D$57,INDIRECT(\"a\" & (VLOOKUP(Rebalance!$D$57,$F$2:$G$48,2,FALSE)+ROW()-2)),\"\")","v":{"$error":"#N/A"}},{"$f":"IF(INDIRECT(\"c\" & (VLOOKUP(Rebalance!$D$58,$F$2:$G$48,2,FALSE)+ROW()-2))=Rebalance!$D$58,INDIRECT(\"a\" & (VLOOKUP(Rebalance!$D$58,$F$2:$G$48,2,FALSE)+ROW()-2)),\"\")","v":{"$error":"#N/A"}},{"$f":"IF(INDIRECT(\"c\" & (VLOOKUP(Rebalance!$D$59,$F$2:$G$48,2,FALSE)+ROW()-2))=Rebalance!$D$59,INDIRECT(\"a\" & (VLOOKUP(Rebalance!$D$59,$F$2:$G$48,2,FALSE)+ROW()-2)),\"\")","v":{"$error":"#N/A"}},{"$f":"IF(INDIRECT(\"c\" & (VLOOKUP(Rebalance!$D$60,$F$2:$G$48,2,FALSE)+ROW()-2))=Rebalance!$D$60,INDIRECT(\"a\" & (VLOOKUP(Rebalance!$D$60,$F$2:$G$48,2,FALSE)+ROW()-2)),\"\")","v":{"$error":"#N/A"}},{"$f":"IF(INDIRECT(\"c\" & (VLOOKUP(Rebalance!$D$61,$F$2:$G$48,2,FALSE)+ROW()-2))=Rebalance!$D$61,INDIRECT(\"a\" & (VLOOKUP(Rebalance!$D$61,$F$2:$G$48,2,FALSE)+ROW()-2)),\"\")","v":{"$error":"#N/A"}},{"$f":"IF(INDIRECT(\"c\" & (VLOOKUP(Rebalance!$D$62,$F$2:$G$48,2,FALSE)+ROW()-2))=Rebalance!$D$62,INDIRECT(\"a\" & (VLOOKUP(Rebalance!$D$62,$F$2:$G$48,2,FALSE)+ROW()-2)),\"\")","v":{"$error":"#N/A"}},{"$f":"IF(INDIRECT(\"c\" & (VLOOKUP(Rebalance!$D$63,$F$2:$G$48,2,FALSE)+ROW()-2))=Rebalance!$D$63,INDIRECT(\"a\" & (VLOOKUP(Rebalance!$D$63,$F$2:$G$48,2,FALSE)+ROW()-2)),\"\")","v":{"$error":"#N/A"}},{"$f":"IF(INDIRECT(\"c\" & (VLOOKUP(Rebalance!$D$64,$F$2:$G$48,2,FALSE)+ROW()-2))=Rebalance!$D$64,INDIRECT(\"a\" & (VLOOKUP(Rebalance!$D$64,$F$2:$G$48,2,FALSE)+ROW()-2)),\"\")","v":{"$error":"#N/A"}},{"$f":"IF(INDIRECT(\"c\" & (VLOOKUP(Rebalance!$D$65,$F$2:$G$48,2,FALSE)+ROW()-2))=Rebalance!$D$65,INDIRECT(\"a\" & (VLOOKUP(Rebalance!$D$65,$F$2:$G$48,2,FALSE)+ROW()-2)),\"\")","v":{"$error":"#N/A"}},{"$f":"IF(INDIRECT(\"c\" & (VLOOKUP(Rebalance!$D$66,$F$2:$G$48,2,FALSE)+ROW()-2))=Rebalance!$D$66,INDIRECT(\"a\" & (VLOOKUP(Rebalance!$D$66,$F$2:$G$48,2,FALSE)+ROW()-2)),\"\")","v":{"$error":"#N/A"}}]
["PSG Destiny Multi Asset FoF","APMF","PSG Collective Investments Ltd",{"$f":"ROW()","v":482},null,null,{"$f":"VLOOKUP(F482,$C$2:$D$599,2,FALSE)","v":{"$error":"#N/A"}},{"$f":"IF(INDIRECT(\"c\" & (VLOOKUP(Rebalance!$D$26,$F$2:$G$48,2,FALSE)+ROW()-2))=Rebalance!$D$26,INDIRECT(\"a\" & (VLOOKUP(Rebalance!$D$26,$F$2:$G$48,2,FALSE)+ROW()-2)),\"\")","v":{"$error":"#N/A"}},{"$f":"IF(INDIRECT(\"c\" & (VLOOKUP(Rebalance!$D$27,$F$2:$G$48,2,FALSE)+ROW()-2))=Rebalance!$D$27,INDIRECT(\"a\" & (VLOOKUP(Rebalance!$D$27,$F$2:$G$48,2,FALSE)+ROW()-2)),\"\")","v":{"$error":"#N/A"}},{"$f":"IF(INDIRECT(\"c\" & (VLOOKUP(Rebalance!$D$28,$F$2:$G$48,2,FALSE)+ROW()-2))=Rebalance!$D$28,INDIRECT(\"a\" & (VLOOKUP(Rebalance!$D$28,$F$2:$G$48,2,FALSE)+ROW()-2)),\"\")","v":{"$error":"#N/A"}},{"$f":"IF(INDIRECT(\"c\" & (VLOOKUP(Rebalance!$D$29,$F$2:$G$48,2,FALSE)+ROW()-2))=Rebalance!$D$29,INDIRECT(\"a\" & (VLOOKUP(Rebalance!$D$29,$F$2:$G$48,2,FALSE)+ROW()-2)),\"\")","v":{"$error":"#N/A"}},{"$f":"IF(INDIRECT(\"c\" & (VLOOKUP(Rebalance!$D$30,$F$2:$G$48,2,FALSE)+ROW()-2))=Rebalance!$D$30,INDIRECT(\"a\" & (VLOOKUP(Rebalance!$D$30,$F$2:$G$48,2,FALSE)+ROW()-2)),\"\")","v":{"$error":"#N/A"}},{"$f":"IF(INDIRECT(\"c\" & (VLOOKUP(Rebalance!$D$31,$F$2:$G$48,2,FALSE)+ROW()-2))=Rebalance!$D$31,INDIRECT(\"a\" & (VLOOKUP(Rebalance!$D$31,$F$2:$G$48,2,FALSE)+ROW()-2)),\"\")","v":{"$error":"#N/A"}},{"$f":"IF(INDIRECT(\"c\" & (VLOOKUP(Rebalance!$D$32,$F$2:$G$48,2,FALSE)+ROW()-2))=Rebalance!$D$32,INDIRECT(\"a\" & (VLOOKUP(Rebalance!$D$32,$F$2:$G$48,2,FALSE)+ROW()-2)),\"\")","v":{"$error":"#N/A"}},{"$f":"IF(INDIRECT(\"c\" & (VLOOKUP(Rebalance!$D$33,$F$2:$G$48,2,FALSE)+ROW()-2))=Rebalance!$D$33,INDIRECT(\"a\" & (VLOOKUP(Rebalance!$D$33,$F$2:$G$48,2,FALSE)+ROW()-2)),\"\")","v":{"$error":"#N/A"}},{"$f":"IF(INDIRECT(\"c\" & (VLOOKUP(Rebalance!$D$34,$F$2:$G$48,2,FALSE)+ROW()-2))=Rebalance!$D$34,INDIRECT(\"a\" & (VLOOKUP(Rebalance!$D$34,$F$2:$G$48,2,FALSE)+ROW()-2)),\"\")","v":{"$error":"#N/A"}},{"$f":"IF(INDIRECT(\"c\" & (VLOOKUP(Rebalance!$D$35,$F$2:$G$48,2,FALSE)+ROW()-2))=Rebalance!$D$35,INDIRECT(\"a\" & (VLOOKUP(Rebalance!$D$35,$F$2:$G$48,2,FALSE)+ROW()-2)),\"\")","v":{"$error":"#N/A"}},{"$f":"IF(INDIRECT(\"c\" & (VLOOKUP(Rebalance!$D$36,$F$2:$G$48,2,FALSE)+ROW()-2))=Rebalance!$D$36,INDIRECT(\"a\" & (VLOOKUP(Rebalance!$D$36,$F$2:$G$48,2,FALSE)+ROW()-2)),\"\")","v":{"$error":"#N/A"}},{"$f":"IF(INDIRECT(\"c\" & (VLOOKUP(Rebalance!$D$37,$F$2:$G$48,2,FALSE)+ROW()-2))=Rebalance!$D$37,INDIRECT(\"a\" & (VLOOKUP(Rebalance!$D$37,$F$2:$G$48,2,FALSE)+ROW()-2)),\"\")","v":{"$error":"#N/A"}},{"$f":"IF(INDIRECT(\"c\" & (VLOOKUP(Rebalance!$D$38,$F$2:$G$48,2,FALSE)+ROW()-2))=Rebalance!$D$38,INDIRECT(\"a\" & (VLOOKUP(Rebalance!$D$38,$F$2:$G$48,2,FALSE)+ROW()-2)),\"\")","v":{"$error":"#N/A"}},{"$f":"IF(INDIRECT(\"c\" & (VLOOKUP(Rebalance!$D$39,$F$2:$G$48,2,FALSE)+ROW()-2))=Rebalance!$D$39,INDIRECT(\"a\" & (VLOOKUP(Rebalance!$D$39,$F$2:$G$48,2,FALSE)+ROW()-2)),\"\")","v":{"$error":"#N/A"}},{"$f":"IF(INDIRECT(\"c\" & (VLOOKUP(Rebalance!$D$40,$F$2:$G$48,2,FALSE)+ROW()-2))=Rebalance!$D$40,INDIRECT(\"a\" & (VLOOKUP(Rebalance!$D$40,$F$2:$G$48,2,FALSE)+ROW()-2)),\"\")","v":{"$error":"#N/A"}},{"$f":"IF(INDIRECT(\"c\" & (VLOOKUP(Rebalance!$D$52,$F$2:$G$48,2,FALSE)+ROW()-2))=Rebalance!$D$52,INDIRECT(\"a\" & (VLOOKUP(Rebalance!$D$52,$F$2:$G$48,2,FALSE)+ROW()-2)),\"\")","v":{"$error":"#N/A"}},{"$f":"IF(INDIRECT(\"c\" & (VLOOKUP(Rebalance!$D$53,$F$2:$G$48,2,FALSE)+ROW()-2))=Rebalance!$D$53,INDIRECT(\"a\" & (VLOOKUP(Rebalance!$D$53,$F$2:$G$48,2,FALSE)+ROW()-2)),\"\")","v":{"$error":"#N/A"}},{"$f":"IF(INDIRECT(\"c\" & (VLOOKUP(Rebalance!$D$54,$F$2:$G$48,2,FALSE)+ROW()-2))=Rebalance!$D$54,INDIRECT(\"a\" & (VLOOKUP(Rebalance!$D$54,$F$2:$G$48,2,FALSE)+ROW()-2)),\"\")","v":{"$error":"#N/A"}},{"$f":"IF(INDIRECT(\"c\" & (VLOOKUP(Rebalance!$D$55,$F$2:$G$48,2,FALSE)+ROW()-2))=Rebalance!$D$55,INDIRECT(\"a\" & (VLOOKUP(Rebalance!$D$55,$F$2:$G$48,2,FALSE)+ROW()-2)),\"\")","v":{"$error":"#N/A"}},{"$f":"IF(INDIRECT(\"c\" & (VLOOKUP(Rebalance!$D$56,$F$2:$G$48,2,FALSE)+ROW()-2))=Rebalance!$D$56,INDIRECT(\"a\" & (VLOOKUP(Rebalance!$D$56,$F$2:$G$48,2,FALSE)+ROW()-2)),\"\")","v":{"$error":"#N/A"}},{"$f":"IF(INDIRECT(\"c\" & (VLOOKUP(Rebalance!$D$57,$F$2:$G$48,2,FALSE)+ROW()-2))=Rebalance!$D$57,INDIRECT(\"a\" & (VLOOKUP(Rebalance!$D$57,$F$2:$G$48,2,FALSE)+ROW()-2)),\"\")","v":{"$error":"#N/A"}},{"$f":"IF(INDIRECT(\"c\" & (VLOOKUP(Rebalance!$D$58,$F$2:$G$48,2,FALSE)+ROW()-2))=Rebalance!$D$58,INDIRECT(\"a\" & (VLOOKUP(Rebalance!$D$58,$F$2:$G$48,2,FALSE)+ROW()-2)),\"\")","v":{"$error":"#N/A"}},{"$f":"IF(INDIRECT(\"c\" & (VLOOKUP(Rebalance!$D$59,$F$2:$G$48,2,FALSE)+ROW()-2))=Rebalance!$D$59,INDIRECT(\"a\" & (VLOOKUP(Rebalance!$D$59,$F$2:$G$48,2,FALSE)+ROW()-2)),\"\")","v":{"$error":"#N/A"}},{"$f":"IF(INDIRECT(\"c\" & (VLOOKUP(Rebalance!$D$60,$F$2:$G$48,2,FALSE)+ROW()-2))=Rebalance!$D$60,INDIRECT(\"a\" & (VLOOKUP(Rebalance!$D$60,$F$2:$G$48,2,FALSE)+ROW()-2)),\"\")","v":{"$error":"#N/A"}},{"$f":"IF(INDIRECT(\"c\" & (VLOOKUP(Rebalance!$D$61,$F$2:$G$48,2,FALSE)+ROW()-2))=Rebalance!$D$61,INDIRECT(\"a\" & (VLOOKUP(Rebalance!$D$61,$F$2:$G$48,2,FALSE)+ROW()-2)),\"\")","v":{"$error":"#N/A"}},{"$f":"IF(INDIRECT(\"c\" & (VLOOKUP(Rebalance!$D$62,$F$2:$G$48,2,FALSE)+ROW()-2))=Rebalance!$D$62,INDIRECT(\"a\" & (VLOOKUP(Rebalance!$D$62,$F$2:$G$48,2,FALSE)+ROW()-2)),\"\")","v":{"$error":"#N/A"}},{"$f":"IF(INDIRECT(\"c\" & (VLOOKUP(Rebalance!$D$63,$F$2:$G$48,2,FALSE)+ROW()-2))=Rebalance!$D$63,INDIRECT(\"a\" & (VLOOKUP(Rebalance!$D$63,$F$2:$G$48,2,FALSE)+ROW()-2)),\"\")","v":{"$error":"#N/A"}},{"$f":"IF(INDIRECT(\"c\" & (VLOOKUP(Rebalance!$D$64,$F$2:$G$48,2,FALSE)+ROW()-2))=Rebalance!$D$64,INDIRECT(\"a\" & (VLOOKUP(Rebalance!$D$64,$F$2:$G$48,2,FALSE)+ROW()-2)),\"\")","v":{"$error":"#N/A"}},{"$f":"IF(INDIRECT(\"c\" & (VLOOKUP(Rebalance!$D$65,$F$2:$G$48,2,FALSE)+ROW()-2))=Rebalance!$D$65,INDIRECT(\"a\" & (VLOOKUP(Rebalance!$D$65,$F$2:$G$48,2,FALSE)+ROW()-2)),\"\")","v":{"$error":"#N/A"}},{"$f":"IF(INDIRECT(\"c\" & (VLOOKUP(Rebalance!$D$66,$F$2:$G$48,2,FALSE)+ROW()-2))=Rebalance!$D$66,INDIRECT(\"a\" & (VLOOKUP(Rebalance!$D$66,$F$2:$G$48,2,FALSE)+ROW()-2)),\"\")","v":{"$error":"#N/A"}}]
["PSG Equity Fund E","PGEF","PSG Collective Investments Ltd",{"$f":"ROW()","v":483},null,null,{"$f":"VLOOKUP(F483,$C$2:$D$599,2,FALSE)","v":{"$error":"#N/A"}},{"$f":"IF(INDIRECT(\"c\" & (VLOOKUP(Rebalance!$D$26,$F$2:$G$48,2,FALSE)+ROW()-2))=Rebalance!$D$26,INDIRECT(\"a\" & (VLOOKUP(Rebalance!$D$26,$F$2:$G$48,2,FALSE)+ROW()-2)),\"\")","v":{"$error":"#N/A"}},{"$f":"IF(INDIRECT(\"c\" & (VLOOKUP(Rebalance!$D$27,$F$2:$G$48,2,FALSE)+ROW()-2))=Rebalance!$D$27,INDIRECT(\"a\" & (VLOOKUP(Rebalance!$D$27,$F$2:$G$48,2,FALSE)+ROW()-2)),\"\")","v":{"$error":"#N/A"}},{"$f":"IF(INDIRECT(\"c\" & (VLOOKUP(Rebalance!$D$28,$F$2:$G$48,2,FALSE)+ROW()-2))=Rebalance!$D$28,INDIRECT(\"a\" & (VLOOKUP(Rebalance!$D$28,$F$2:$G$48,2,FALSE)+ROW()-2)),\"\")","v":{"$error":"#N/A"}},{"$f":"IF(INDIRECT(\"c\" & (VLOOKUP(Rebalance!$D$29,$F$2:$G$48,2,FALSE)+ROW()-2))=Rebalance!$D$29,INDIRECT(\"a\" & (VLOOKUP(Rebalance!$D$29,$F$2:$G$48,2,FALSE)+ROW()-2)),\"\")","v":{"$error":"#N/A"}},{"$f":"IF(INDIRECT(\"c\" & (VLOOKUP(Rebalance!$D$30,$F$2:$G$48,2,FALSE)+ROW()-2))=Rebalance!$D$30,INDIRECT(\"a\" & (VLOOKUP(Rebalance!$D$30,$F$2:$G$48,2,FALSE)+ROW()-2)),\"\")","v":{"$error":"#N/A"}},{"$f":"IF(INDIRECT(\"c\" & (VLOOKUP(Rebalance!$D$31,$F$2:$G$48,2,FALSE)+ROW()-2))=Rebalance!$D$31,INDIRECT(\"a\" & (VLOOKUP(Rebalance!$D$31,$F$2:$G$48,2,FALSE)+ROW()-2)),\"\")","v":{"$error":"#N/A"}},{"$f":"IF(INDIRECT(\"c\" & (VLOOKUP(Rebalance!$D$32,$F$2:$G$48,2,FALSE)+ROW()-2))=Rebalance!$D$32,INDIRECT(\"a\" & (VLOOKUP(Rebalance!$D$32,$F$2:$G$48,2,FALSE)+ROW()-2)),\"\")","v":{"$error":"#N/A"}},{"$f":"IF(INDIRECT(\"c\" & (VLOOKUP(Rebalance!$D$33,$F$2:$G$48,2,FALSE)+ROW()-2))=Rebalance!$D$33,INDIRECT(\"a\" & (VLOOKUP(Rebalance!$D$33,$F$2:$G$48,2,FALSE)+ROW()-2)),\"\")","v":{"$error":"#N/A"}},{"$f":"IF(INDIRECT(\"c\" & (VLOOKUP(Rebalance!$D$34,$F$2:$G$48,2,FALSE)+ROW()-2))=Rebalance!$D$34,INDIRECT(\"a\" & (VLOOKUP(Rebalance!$D$34,$F$2:$G$48,2,FALSE)+ROW()-2)),\"\")","v":{"$error":"#N/A"}},{"$f":"IF(INDIRECT(\"c\" & (VLOOKUP(Rebalance!$D$35,$F$2:$G$48,2,FALSE)+ROW()-2))=Rebalance!$D$35,INDIRECT(\"a\" & (VLOOKUP(Rebalance!$D$35,$F$2:$G$48,2,FALSE)+ROW()-2)),\"\")","v":{"$error":"#N/A"}},{"$f":"IF(INDIRECT(\"c\" & (VLOOKUP(Rebalance!$D$36,$F$2:$G$48,2,FALSE)+ROW()-2))=Rebalance!$D$36,INDIRECT(\"a\" & (VLOOKUP(Rebalance!$D$36,$F$2:$G$48,2,FALSE)+ROW()-2)),\"\")","v":{"$error":"#N/A"}},{"$f":"IF(INDIRECT(\"c\" & (VLOOKUP(Rebalance!$D$37,$F$2:$G$48,2,FALSE)+ROW()-2))=Rebalance!$D$37,INDIRECT(\"a\" & (VLOOKUP(Rebalance!$D$37,$F$2:$G$48,2,FALSE)+ROW()-2)),\"\")","v":{"$error":"#N/A"}},{"$f":"IF(INDIRECT(\"c\" & (VLOOKUP(Rebalance!$D$38,$F$2:$G$48,2,FALSE)+ROW()-2))=Rebalance!$D$38,INDIRECT(\"a\" & (VLOOKUP(Rebalance!$D$38,$F$2:$G$48,2,FALSE)+ROW()-2)),\"\")","v":{"$error":"#N/A"}},{"$f":"IF(INDIRECT(\"c\" & (VLOOKUP(Rebalance!$D$39,$F$2:$G$48,2,FALSE)+ROW()-2))=Rebalance!$D$39,INDIRECT(\"a\" & (VLOOKUP(Rebalance!$D$39,$F$2:$G$48,2,FALSE)+ROW()-2)),\"\")","v":{"$error":"#N/A"}},{"$f":"IF(INDIRECT(\"c\" & (VLOOKUP(Rebalance!$D$40,$F$2:$G$48,2,FALSE)+ROW()-2))=Rebalance!$D$40,INDIRECT(\"a\" & (VLOOKUP(Rebalance!$D$40,$F$2:$G$48,2,FALSE)+ROW()-2)),\"\")","v":{"$error":"#N/A"}},{"$f":"IF(INDIRECT(\"c\" & (VLOOKUP(Rebalance!$D$52,$F$2:$G$48,2,FALSE)+ROW()-2))=Rebalance!$D$52,INDIRECT(\"a\" & (VLOOKUP(Rebalance!$D$52,$F$2:$G$48,2,FALSE)+ROW()-2)),\"\")","v":{"$error":"#N/A"}},{"$f":"IF(INDIRECT(\"c\" & (VLOOKUP(Rebalance!$D$53,$F$2:$G$48,2,FALSE)+ROW()-2))=Rebalance!$D$53,INDIRECT(\"a\" & (VLOOKUP(Rebalance!$D$53,$F$2:$G$48,2,FALSE)+ROW()-2)),\"\")","v":{"$error":"#N/A"}},{"$f":"IF(INDIRECT(\"c\" & (VLOOKUP(Rebalance!$D$54,$F$2:$G$48,2,FALSE)+ROW()-2))=Rebalance!$D$54,INDIRECT(\"a\" & (VLOOKUP(Rebalance!$D$54,$F$2:$G$48,2,FALSE)+ROW()-2)),\"\")","v":{"$error":"#N/A"}},{"$f":"IF(INDIRECT(\"c\" & (VLOOKUP(Rebalance!$D$55,$F$2:$G$48,2,FALSE)+ROW()-2))=Rebalance!$D$55,INDIRECT(\"a\" & (VLOOKUP(Rebalance!$D$55,$F$2:$G$48,2,FALSE)+ROW()-2)),\"\")","v":{"$error":"#N/A"}},{"$f":"IF(INDIRECT(\"c\" & (VLOOKUP(Rebalance!$D$56,$F$2:$G$48,2,FALSE)+ROW()-2))=Rebalance!$D$56,INDIRECT(\"a\" & (VLOOKUP(Rebalance!$D$56,$F$2:$G$48,2,FALSE)+ROW()-2)),\"\")","v":{"$error":"#N/A"}},{"$f":"IF(INDIRECT(\"c\" & (VLOOKUP(Rebalance!$D$57,$F$2:$G$48,2,FALSE)+ROW()-2))=Rebalance!$D$57,INDIRECT(\"a\" & (VLOOKUP(Rebalance!$D$57,$F$2:$G$48,2,FALSE)+ROW()-2)),\"\")","v":{"$error":"#N/A"}},{"$f":"IF(INDIRECT(\"c\" & (VLOOKUP(Rebalance!$D$58,$F$2:$G$48,2,FALSE)+ROW()-2))=Rebalance!$D$58,INDIRECT(\"a\" & (VLOOKUP(Rebalance!$D$58,$F$2:$G$48,2,FALSE)+ROW()-2)),\"\")","v":{"$error":"#N/A"}},{"$f":"IF(INDIRECT(\"c\" & (VLOOKUP(Rebalance!$D$59,$F$2:$G$48,2,FALSE)+ROW()-2))=Rebalance!$D$59,INDIRECT(\"a\" & (VLOOKUP(Rebalance!$D$59,$F$2:$G$48,2,FALSE)+ROW()-2)),\"\")","v":{"$error":"#N/A"}},{"$f":"IF(INDIRECT(\"c\" & (VLOOKUP(Rebalance!$D$60,$F$2:$G$48,2,FALSE)+ROW()-2))=Rebalance!$D$60,INDIRECT(\"a\" & (VLOOKUP(Rebalance!$D$60,$F$2:$G$48,2,FALSE)+ROW()-2)),\"\")","v":{"$error":"#N/A"}},{"$f":"IF(INDIRECT(\"c\" & (VLOOKUP(Rebalance!$D$61,$F$2:$G$48,2,FALSE)+ROW()-2))=Rebalance!$D$61,INDIRECT(\"a\" & (VLOOKUP(Rebalance!$D$61,$F$2:$G$48,2,FALSE)+ROW()-2)),\"\")","v":{"$error":"#N/A"}},{"$f":"IF(INDIRECT(\"c\" & (VLOOKUP(Rebalance!$D$62,$F$2:$G$48,2,FALSE)+ROW()-2))=Rebalance!$D$62,INDIRECT(\"a\" & (VLOOKUP(Rebalance!$D$62,$F$2:$G$48,2,FALSE)+ROW()-2)),\"\")","v":{"$error":"#N/A"}},{"$f":"IF(INDIRECT(\"c\" & (VLOOKUP(Rebalance!$D$63,$F$2:$G$48,2,FALSE)+ROW()-2))=Rebalance!$D$63,INDIRECT(\"a\" & (VLOOKUP(Rebalance!$D$63,$F$2:$G$48,2,FALSE)+ROW()-2)),\"\")","v":{"$error":"#N/A"}},{"$f":"IF(INDIRECT(\"c\" & (VLOOKUP(Rebalance!$D$64,$F$2:$G$48,2,FALSE)+ROW()-2))=Rebalance!$D$64,INDIRECT(\"a\" & (VLOOKUP(Rebalance!$D$64,$F$2:$G$48,2,FALSE)+ROW()-2)),\"\")","v":{"$error":"#N/A"}},{"$f":"IF(INDIRECT(\"c\" & (VLOOKUP(Rebalance!$D$65,$F$2:$G$48,2,FALSE)+ROW()-2))=Rebalance!$D$65,INDIRECT(\"a\" & (VLOOKUP(Rebalance!$D$65,$F$2:$G$48,2,FALSE)+ROW()-2)),\"\")","v":{"$error":"#N/A"}},{"$f":"IF(INDIRECT(\"c\" & (VLOOKUP(Rebalance!$D$66,$F$2:$G$48,2,FALSE)+ROW()-2))=Rebalance!$D$66,INDIRECT(\"a\" & (VLOOKUP(Rebalance!$D$66,$F$2:$G$48,2,FALSE)+ROW()-2)),\"\")","v":{"$error":"#N/A"}}]
["PSG Flexible Fund E","PFFE","PSG Collective Investments Ltd",{"$f":"ROW()","v":484},null,null,{"$f":"VLOOKUP(F484,$C$2:$D$599,2,FALSE)","v":{"$error":"#N/A"}},{"$f":"IF(INDIRECT(\"c\" & (VLOOKUP(Rebalance!$D$26,$F$2:$G$48,2,FALSE)+ROW()-2))=Rebalance!$D$26,INDIRECT(\"a\" & (VLOOKUP(Rebalance!$D$26,$F$2:$G$48,2,FALSE)+ROW()-2)),\"\")","v":{"$error":"#N/A"}},{"$f":"IF(INDIRECT(\"c\" & (VLOOKUP(Rebalance!$D$27,$F$2:$G$48,2,FALSE)+ROW()-2))=Rebalance!$D$27,INDIRECT(\"a\" & (VLOOKUP(Rebalance!$D$27,$F$2:$G$48,2,FALSE)+ROW()-2)),\"\")","v":{"$error":"#N/A"}},{"$f":"IF(INDIRECT(\"c\" & (VLOOKUP(Rebalance!$D$28,$F$2:$G$48,2,FALSE)+ROW()-2))=Rebalance!$D$28,INDIRECT(\"a\" & (VLOOKUP(Rebalance!$D$28,$F$2:$G$48,2,FALSE)+ROW()-2)),\"\")","v":{"$error":"#N/A"}},{"$f":"IF(INDIRECT(\"c\" & (VLOOKUP(Rebalance!$D$29,$F$2:$G$48,2,FALSE)+ROW()-2))=Rebalance!$D$29,INDIRECT(\"a\" & (VLOOKUP(Rebalance!$D$29,$F$2:$G$48,2,FALSE)+ROW()-2)),\"\")","v":{"$error":"#N/A"}},{"$f":"IF(INDIRECT(\"c\" & (VLOOKUP(Rebalance!$D$30,$F$2:$G$48,2,FALSE)+ROW()-2))=Rebalance!$D$30,INDIRECT(\"a\" & (VLOOKUP(Rebalance!$D$30,$F$2:$G$48,2,FALSE)+ROW()-2)),\"\")","v":{"$error":"#N/A"}},{"$f":"IF(INDIRECT(\"c\" & (VLOOKUP(Rebalance!$D$31,$F$2:$G$48,2,FALSE)+ROW()-2))=Rebalance!$D$31,INDIRECT(\"a\" & (VLOOKUP(Rebalance!$D$31,$F$2:$G$48,2,FALSE)+ROW()-2)),\"\")","v":{"$error":"#N/A"}},{"$f":"IF(INDIRECT(\"c\" & (VLOOKUP(Rebalance!$D$32,$F$2:$G$48,2,FALSE)+ROW()-2))=Rebalance!$D$32,INDIRECT(\"a\" & (VLOOKUP(Rebalance!$D$32,$F$2:$G$48,2,FALSE)+ROW()-2)),\"\")","v":{"$error":"#N/A"}},{"$f":"IF(INDIRECT(\"c\" & (VLOOKUP(Rebalance!$D$33,$F$2:$G$48,2,FALSE)+ROW()-2))=Rebalance!$D$33,INDIRECT(\"a\" & (VLOOKUP(Rebalance!$D$33,$F$2:$G$48,2,FALSE)+ROW()-2)),\"\")","v":{"$error":"#N/A"}},{"$f":"IF(INDIRECT(\"c\" & (VLOOKUP(Rebalance!$D$34,$F$2:$G$48,2,FALSE)+ROW()-2))=Rebalance!$D$34,INDIRECT(\"a\" & (VLOOKUP(Rebalance!$D$34,$F$2:$G$48,2,FALSE)+ROW()-2)),\"\")","v":{"$error":"#N/A"}},{"$f":"IF(INDIRECT(\"c\" & (VLOOKUP(Rebalance!$D$35,$F$2:$G$48,2,FALSE)+ROW()-2))=Rebalance!$D$35,INDIRECT(\"a\" & (VLOOKUP(Rebalance!$D$35,$F$2:$G$48,2,FALSE)+ROW()-2)),\"\")","v":{"$error":"#N/A"}},{"$f":"IF(INDIRECT(\"c\" & (VLOOKUP(Rebalance!$D$36,$F$2:$G$48,2,FALSE)+ROW()-2))=Rebalance!$D$36,INDIRECT(\"a\" & (VLOOKUP(Rebalance!$D$36,$F$2:$G$48,2,FALSE)+ROW()-2)),\"\")","v":{"$error":"#N/A"}},{"$f":"IF(INDIRECT(\"c\" & (VLOOKUP(Rebalance!$D$37,$F$2:$G$48,2,FALSE)+ROW()-2))=Rebalance!$D$37,INDIRECT(\"a\" & (VLOOKUP(Rebalance!$D$37,$F$2:$G$48,2,FALSE)+ROW()-2)),\"\")","v":{"$error":"#N/A"}},{"$f":"IF(INDIRECT(\"c\" & (VLOOKUP(Rebalance!$D$38,$F$2:$G$48,2,FALSE)+ROW()-2))=Rebalance!$D$38,INDIRECT(\"a\" & (VLOOKUP(Rebalance!$D$38,$F$2:$G$48,2,FALSE)+ROW()-2)),\"\")","v":{"$error":"#N/A"}},{"$f":"IF(INDIRECT(\"c\" & (VLOOKUP(Rebalance!$D$39,$F$2:$G$48,2,FALSE)+ROW()-2))=Rebalance!$D$39,INDIRECT(\"a\" & (VLOOKUP(Rebalance!$D$39,$F$2:$G$48,2,FALSE)+ROW()-2)),\"\")","v":{"$error":"#N/A"}},{"$f":"IF(INDIRECT(\"c\" & (VLOOKUP(Rebalance!$D$40,$F$2:$G$48,2,FALSE)+ROW()-2))=Rebalance!$D$40,INDIRECT(\"a\" & (VLOOKUP(Rebalance!$D$40,$F$2:$G$48,2,FALSE)+ROW()-2)),\"\")","v":{"$error":"#N/A"}},{"$f":"IF(INDIRECT(\"c\" & (VLOOKUP(Rebalance!$D$52,$F$2:$G$48,2,FALSE)+ROW()-2))=Rebalance!$D$52,INDIRECT(\"a\" & (VLOOKUP(Rebalance!$D$52,$F$2:$G$48,2,FALSE)+ROW()-2)),\"\")","v":{"$error":"#N/A"}},{"$f":"IF(INDIRECT(\"c\" & (VLOOKUP(Rebalance!$D$53,$F$2:$G$48,2,FALSE)+ROW()-2))=Rebalance!$D$53,INDIRECT(\"a\" & (VLOOKUP(Rebalance!$D$53,$F$2:$G$48,2,FALSE)+ROW()-2)),\"\")","v":{"$error":"#N/A"}},{"$f":"IF(INDIRECT(\"c\" & (VLOOKUP(Rebalance!$D$54,$F$2:$G$48,2,FALSE)+ROW()-2))=Rebalance!$D$54,INDIRECT(\"a\" & (VLOOKUP(Rebalance!$D$54,$F$2:$G$48,2,FALSE)+ROW()-2)),\"\")","v":{"$error":"#N/A"}},{"$f":"IF(INDIRECT(\"c\" & (VLOOKUP(Rebalance!$D$55,$F$2:$G$48,2,FALSE)+ROW()-2))=Rebalance!$D$55,INDIRECT(\"a\" & (VLOOKUP(Rebalance!$D$55,$F$2:$G$48,2,FALSE)+ROW()-2)),\"\")","v":{"$error":"#N/A"}},{"$f":"IF(INDIRECT(\"c\" & (VLOOKUP(Rebalance!$D$56,$F$2:$G$48,2,FALSE)+ROW()-2))=Rebalance!$D$56,INDIRECT(\"a\" & (VLOOKUP(Rebalance!$D$56,$F$2:$G$48,2,FALSE)+ROW()-2)),\"\")","v":{"$error":"#N/A"}},{"$f":"IF(INDIRECT(\"c\" & (VLOOKUP(Rebalance!$D$57,$F$2:$G$48,2,FALSE)+ROW()-2))=Rebalance!$D$57,INDIRECT(\"a\" & (VLOOKUP(Rebalance!$D$57,$F$2:$G$48,2,FALSE)+ROW()-2)),\"\")","v":{"$error":"#N/A"}},{"$f":"IF(INDIRECT(\"c\" & (VLOOKUP(Rebalance!$D$58,$F$2:$G$48,2,FALSE)+ROW()-2))=Rebalance!$D$58,INDIRECT(\"a\" & (VLOOKUP(Rebalance!$D$58,$F$2:$G$48,2,FALSE)+ROW()-2)),\"\")","v":{"$error":"#N/A"}},{"$f":"IF(INDIRECT(\"c\" & (VLOOKUP(Rebalance!$D$59,$F$2:$G$48,2,FALSE)+ROW()-2))=Rebalance!$D$59,INDIRECT(\"a\" & (VLOOKUP(Rebalance!$D$59,$F$2:$G$48,2,FALSE)+ROW()-2)),\"\")","v":{"$error":"#N/A"}},{"$f":"IF(INDIRECT(\"c\" & (VLOOKUP(Rebalance!$D$60,$F$2:$G$48,2,FALSE)+ROW()-2))=Rebalance!$D$60,INDIRECT(\"a\" & (VLOOKUP(Rebalance!$D$60,$F$2:$G$48,2,FALSE)+ROW()-2)),\"\")","v":{"$error":"#N/A"}},{"$f":"IF(INDIRECT(\"c\" & (VLOOKUP(Rebalance!$D$61,$F$2:$G$48,2,FALSE)+ROW()-2))=Rebalance!$D$61,INDIRECT(\"a\" & (VLOOKUP(Rebalance!$D$61,$F$2:$G$48,2,FALSE)+ROW()-2)),\"\")","v":{"$error":"#N/A"}},{"$f":"IF(INDIRECT(\"c\" & (VLOOKUP(Rebalance!$D$62,$F$2:$G$48,2,FALSE)+ROW()-2))=Rebalance!$D$62,INDIRECT(\"a\" & (VLOOKUP(Rebalance!$D$62,$F$2:$G$48,2,FALSE)+ROW()-2)),\"\")","v":{"$error":"#N/A"}},{"$f":"IF(INDIRECT(\"c\" & (VLOOKUP(Rebalance!$D$63,$F$2:$G$48,2,FALSE)+ROW()-2))=Rebalance!$D$63,INDIRECT(\"a\" & (VLOOKUP(Rebalance!$D$63,$F$2:$G$48,2,FALSE)+ROW()-2)),\"\")","v":{"$error":"#N/A"}},{"$f":"IF(INDIRECT(\"c\" & (VLOOKUP(Rebalance!$D$64,$F$2:$G$48,2,FALSE)+ROW()-2))=Rebalance!$D$64,INDIRECT(\"a\" & (VLOOKUP(Rebalance!$D$64,$F$2:$G$48,2,FALSE)+ROW()-2)),\"\")","v":{"$error":"#N/A"}},{"$f":"IF(INDIRECT(\"c\" & (VLOOKUP(Rebalance!$D$65,$F$2:$G$48,2,FALSE)+ROW()-2))=Rebalance!$D$65,INDIRECT(\"a\" & (VLOOKUP(Rebalance!$D$65,$F$2:$G$48,2,FALSE)+ROW()-2)),\"\")","v":{"$error":"#N/A"}},{"$f":"IF(INDIRECT(\"c\" & (VLOOKUP(Rebalance!$D$66,$F$2:$G$48,2,FALSE)+ROW()-2))=Rebalance!$D$66,INDIRECT(\"a\" & (VLOOKUP(Rebalance!$D$66,$F$2:$G$48,2,FALSE)+ROW()-2)),\"\")","v":{"$error":"#N/A"}}]
["PSG Global Flexible Feeder Fund B","PFFA","PSG Collective Investments Ltd",{"$f":"ROW()","v":485},null,null,{"$f":"VLOOKUP(F485,$C$2:$D$599,2,FALSE)","v":{"$error":"#N/A"}},{"$f":"IF(INDIRECT(\"c\" & (VLOOKUP(Rebalance!$D$26,$F$2:$G$48,2,FALSE)+ROW()-2))=Rebalance!$D$26,INDIRECT(\"a\" & (VLOOKUP(Rebalance!$D$26,$F$2:$G$48,2,FALSE)+ROW()-2)),\"\")","v":{"$error":"#N/A"}},{"$f":"IF(INDIRECT(\"c\" & (VLOOKUP(Rebalance!$D$27,$F$2:$G$48,2,FALSE)+ROW()-2))=Rebalance!$D$27,INDIRECT(\"a\" & (VLOOKUP(Rebalance!$D$27,$F$2:$G$48,2,FALSE)+ROW()-2)),\"\")","v":{"$error":"#N/A"}},{"$f":"IF(INDIRECT(\"c\" & (VLOOKUP(Rebalance!$D$28,$F$2:$G$48,2,FALSE)+ROW()-2))=Rebalance!$D$28,INDIRECT(\"a\" & (VLOOKUP(Rebalance!$D$28,$F$2:$G$48,2,FALSE)+ROW()-2)),\"\")","v":{"$error":"#N/A"}},{"$f":"IF(INDIRECT(\"c\" & (VLOOKUP(Rebalance!$D$29,$F$2:$G$48,2,FALSE)+ROW()-2))=Rebalance!$D$29,INDIRECT(\"a\" & (VLOOKUP(Rebalance!$D$29,$F$2:$G$48,2,FALSE)+ROW()-2)),\"\")","v":{"$error":"#N/A"}},{"$f":"IF(INDIRECT(\"c\" & (VLOOKUP(Rebalance!$D$30,$F$2:$G$48,2,FALSE)+ROW()-2))=Rebalance!$D$30,INDIRECT(\"a\" & (VLOOKUP(Rebalance!$D$30,$F$2:$G$48,2,FALSE)+ROW()-2)),\"\")","v":{"$error":"#N/A"}},{"$f":"IF(INDIRECT(\"c\" & (VLOOKUP(Rebalance!$D$31,$F$2:$G$48,2,FALSE)+ROW()-2))=Rebalance!$D$31,INDIRECT(\"a\" & (VLOOKUP(Rebalance!$D$31,$F$2:$G$48,2,FALSE)+ROW()-2)),\"\")","v":{"$error":"#N/A"}},{"$f":"IF(INDIRECT(\"c\" & (VLOOKUP(Rebalance!$D$32,$F$2:$G$48,2,FALSE)+ROW()-2))=Rebalance!$D$32,INDIRECT(\"a\" & (VLOOKUP(Rebalance!$D$32,$F$2:$G$48,2,FALSE)+ROW()-2)),\"\")","v":{"$error":"#N/A"}},{"$f":"IF(INDIRECT(\"c\" & (VLOOKUP(Rebalance!$D$33,$F$2:$G$48,2,FALSE)+ROW()-2))=Rebalance!$D$33,INDIRECT(\"a\" & (VLOOKUP(Rebalance!$D$33,$F$2:$G$48,2,FALSE)+ROW()-2)),\"\")","v":{"$error":"#N/A"}},{"$f":"IF(INDIRECT(\"c\" & (VLOOKUP(Rebalance!$D$34,$F$2:$G$48,2,FALSE)+ROW()-2))=Rebalance!$D$34,INDIRECT(\"a\" & (VLOOKUP(Rebalance!$D$34,$F$2:$G$48,2,FALSE)+ROW()-2)),\"\")","v":{"$error":"#N/A"}},{"$f":"IF(INDIRECT(\"c\" & (VLOOKUP(Rebalance!$D$35,$F$2:$G$48,2,FALSE)+ROW()-2))=Rebalance!$D$35,INDIRECT(\"a\" & (VLOOKUP(Rebalance!$D$35,$F$2:$G$48,2,FALSE)+ROW()-2)),\"\")","v":{"$error":"#N/A"}},{"$f":"IF(INDIRECT(\"c\" & (VLOOKUP(Rebalance!$D$36,$F$2:$G$48,2,FALSE)+ROW()-2))=Rebalance!$D$36,INDIRECT(\"a\" & (VLOOKUP(Rebalance!$D$36,$F$2:$G$48,2,FALSE)+ROW()-2)),\"\")","v":{"$error":"#N/A"}},{"$f":"IF(INDIRECT(\"c\" & (VLOOKUP(Rebalance!$D$37,$F$2:$G$48,2,FALSE)+ROW()-2))=Rebalance!$D$37,INDIRECT(\"a\" & (VLOOKUP(Rebalance!$D$37,$F$2:$G$48,2,FALSE)+ROW()-2)),\"\")","v":{"$error":"#N/A"}},{"$f":"IF(INDIRECT(\"c\" & (VLOOKUP(Rebalance!$D$38,$F$2:$G$48,2,FALSE)+ROW()-2))=Rebalance!$D$38,INDIRECT(\"a\" & (VLOOKUP(Rebalance!$D$38,$F$2:$G$48,2,FALSE)+ROW()-2)),\"\")","v":{"$error":"#N/A"}},{"$f":"IF(INDIRECT(\"c\" & (VLOOKUP(Rebalance!$D$39,$F$2:$G$48,2,FALSE)+ROW()-2))=Rebalance!$D$39,INDIRECT(\"a\" & (VLOOKUP(Rebalance!$D$39,$F$2:$G$48,2,FALSE)+ROW()-2)),\"\")","v":{"$error":"#N/A"}},{"$f":"IF(INDIRECT(\"c\" & (VLOOKUP(Rebalance!$D$40,$F$2:$G$48,2,FALSE)+ROW()-2))=Rebalance!$D$40,INDIRECT(\"a\" & (VLOOKUP(Rebalance!$D$40,$F$2:$G$48,2,FALSE)+ROW()-2)),\"\")","v":{"$error":"#N/A"}},{"$f":"IF(INDIRECT(\"c\" & (VLOOKUP(Rebalance!$D$52,$F$2:$G$48,2,FALSE)+ROW()-2))=Rebalance!$D$52,INDIRECT(\"a\" & (VLOOKUP(Rebalance!$D$52,$F$2:$G$48,2,FALSE)+ROW()-2)),\"\")","v":{"$error":"#N/A"}},{"$f":"IF(INDIRECT(\"c\" & (VLOOKUP(Rebalance!$D$53,$F$2:$G$48,2,FALSE)+ROW()-2))=Rebalance!$D$53,INDIRECT(\"a\" & (VLOOKUP(Rebalance!$D$53,$F$2:$G$48,2,FALSE)+ROW()-2)),\"\")","v":{"$error":"#N/A"}},{"$f":"IF(INDIRECT(\"c\" & (VLOOKUP(Rebalance!$D$54,$F$2:$G$48,2,FALSE)+ROW()-2))=Rebalance!$D$54,INDIRECT(\"a\" & (VLOOKUP(Rebalance!$D$54,$F$2:$G$48,2,FALSE)+ROW()-2)),\"\")","v":{"$error":"#N/A"}},{"$f":"IF(INDIRECT(\"c\" & (VLOOKUP(Rebalance!$D$55,$F$2:$G$48,2,FALSE)+ROW()-2))=Rebalance!$D$55,INDIRECT(\"a\" & (VLOOKUP(Rebalance!$D$55,$F$2:$G$48,2,FALSE)+ROW()-2)),\"\")","v":{"$error":"#N/A"}},{"$f":"IF(INDIRECT(\"c\" & (VLOOKUP(Rebalance!$D$56,$F$2:$G$48,2,FALSE)+ROW()-2))=Rebalance!$D$56,INDIRECT(\"a\" & (VLOOKUP(Rebalance!$D$56,$F$2:$G$48,2,FALSE)+ROW()-2)),\"\")","v":{"$error":"#N/A"}},{"$f":"IF(INDIRECT(\"c\" & (VLOOKUP(Rebalance!$D$57,$F$2:$G$48,2,FALSE)+ROW()-2))=Rebalance!$D$57,INDIRECT(\"a\" & (VLOOKUP(Rebalance!$D$57,$F$2:$G$48,2,FALSE)+ROW()-2)),\"\")","v":{"$error":"#N/A"}},{"$f":"IF(INDIRECT(\"c\" & (VLOOKUP(Rebalance!$D$58,$F$2:$G$48,2,FALSE)+ROW()-2))=Rebalance!$D$58,INDIRECT(\"a\" & (VLOOKUP(Rebalance!$D$58,$F$2:$G$48,2,FALSE)+ROW()-2)),\"\")","v":{"$error":"#N/A"}},{"$f":"IF(INDIRECT(\"c\" & (VLOOKUP(Rebalance!$D$59,$F$2:$G$48,2,FALSE)+ROW()-2))=Rebalance!$D$59,INDIRECT(\"a\" & (VLOOKUP(Rebalance!$D$59,$F$2:$G$48,2,FALSE)+ROW()-2)),\"\")","v":{"$error":"#N/A"}},{"$f":"IF(INDIRECT(\"c\" & (VLOOKUP(Rebalance!$D$60,$F$2:$G$48,2,FALSE)+ROW()-2))=Rebalance!$D$60,INDIRECT(\"a\" & (VLOOKUP(Rebalance!$D$60,$F$2:$G$48,2,FALSE)+ROW()-2)),\"\")","v":{"$error":"#N/A"}},{"$f":"IF(INDIRECT(\"c\" & (VLOOKUP(Rebalance!$D$61,$F$2:$G$48,2,FALSE)+ROW()-2))=Rebalance!$D$61,INDIRECT(\"a\" & (VLOOKUP(Rebalance!$D$61,$F$2:$G$48,2,FALSE)+ROW()-2)),\"\")","v":{"$error":"#N/A"}},{"$f":"IF(INDIRECT(\"c\" & (VLOOKUP(Rebalance!$D$62,$F$2:$G$48,2,FALSE)+ROW()-2))=Rebalance!$D$62,INDIRECT(\"a\" & (VLOOKUP(Rebalance!$D$62,$F$2:$G$48,2,FALSE)+ROW()-2)),\"\")","v":{"$error":"#N/A"}},{"$f":"IF(INDIRECT(\"c\" & (VLOOKUP(Rebalance!$D$63,$F$2:$G$48,2,FALSE)+ROW()-2))=Rebalance!$D$63,INDIRECT(\"a\" & (VLOOKUP(Rebalance!$D$63,$F$2:$G$48,2,FALSE)+ROW()-2)),\"\")","v":{"$error":"#N/A"}},{"$f":"IF(INDIRECT(\"c\" & (VLOOKUP(Rebalance!$D$64,$F$2:$G$48,2,FALSE)+ROW()-2))=Rebalance!$D$64,INDIRECT(\"a\" & (VLOOKUP(Rebalance!$D$64,$F$2:$G$48,2,FALSE)+ROW()-2)),\"\")","v":{"$error":"#N/A"}},{"$f":"IF(INDIRECT(\"c\" & (VLOOKUP(Rebalance!$D$65,$F$2:$G$48,2,FALSE)+ROW()-2))=Rebalance!$D$65,INDIRECT(\"a\" & (VLOOKUP(Rebalance!$D$65,$F$2:$G$48,2,FALSE)+ROW()-2)),\"\")","v":{"$error":"#N/A"}},{"$f":"IF(INDIRECT(\"c\" & (VLOOKUP(Rebalance!$D$66,$F$2:$G$48,2,FALSE)+ROW()-2))=Rebalance!$D$66,INDIRECT(\"a\" & (VLOOKUP(Rebalance!$D$66,$F$2:$G$48,2,FALSE)+ROW()-2)),\"\")","v":{"$error":"#N/A"}}]
["PSG Stable Fund E","PSSE","PSG Collective Investments Ltd",{"$f":"ROW()","v":486},null,null,{"$f":"VLOOKUP(F486,$C$2:$D$599,2,FALSE)","v":{"$error":"#N/A"}},{"$f":"IF(INDIRECT(\"c\" & (VLOOKUP(Rebalance!$D$26,$F$2:$G$48,2,FALSE)+ROW()-2))=Rebalance!$D$26,INDIRECT(\"a\" & (VLOOKUP(Rebalance!$D$26,$F$2:$G$48,2,FALSE)+ROW()-2)),\"\")","v":{"$error":"#N/A"}},{"$f":"IF(INDIRECT(\"c\" & (VLOOKUP(Rebalance!$D$27,$F$2:$G$48,2,FALSE)+ROW()-2))=Rebalance!$D$27,INDIRECT(\"a\" & (VLOOKUP(Rebalance!$D$27,$F$2:$G$48,2,FALSE)+ROW()-2)),\"\")","v":{"$error":"#N/A"}},{"$f":"IF(INDIRECT(\"c\" & (VLOOKUP(Rebalance!$D$28,$F$2:$G$48,2,FALSE)+ROW()-2))=Rebalance!$D$28,INDIRECT(\"a\" & (VLOOKUP(Rebalance!$D$28,$F$2:$G$48,2,FALSE)+ROW()-2)),\"\")","v":{"$error":"#N/A"}},{"$f":"IF(INDIRECT(\"c\" & (VLOOKUP(Rebalance!$D$29,$F$2:$G$48,2,FALSE)+ROW()-2))=Rebalance!$D$29,INDIRECT(\"a\" & (VLOOKUP(Rebalance!$D$29,$F$2:$G$48,2,FALSE)+ROW()-2)),\"\")","v":{"$error":"#N/A"}},{"$f":"IF(INDIRECT(\"c\" & (VLOOKUP(Rebalance!$D$30,$F$2:$G$48,2,FALSE)+ROW()-2))=Rebalance!$D$30,INDIRECT(\"a\" & (VLOOKUP(Rebalance!$D$30,$F$2:$G$48,2,FALSE)+ROW()-2)),\"\")","v":{"$error":"#N/A"}},{"$f":"IF(INDIRECT(\"c\" & (VLOOKUP(Rebalance!$D$31,$F$2:$G$48,2,FALSE)+ROW()-2))=Rebalance!$D$31,INDIRECT(\"a\" & (VLOOKUP(Rebalance!$D$31,$F$2:$G$48,2,FALSE)+ROW()-2)),\"\")","v":{"$error":"#N/A"}},{"$f":"IF(INDIRECT(\"c\" & (VLOOKUP(Rebalance!$D$32,$F$2:$G$48,2,FALSE)+ROW()-2))=Rebalance!$D$32,INDIRECT(\"a\" & (VLOOKUP(Rebalance!$D$32,$F$2:$G$48,2,FALSE)+ROW()-2)),\"\")","v":{"$error":"#N/A"}},{"$f":"IF(INDIRECT(\"c\" & (VLOOKUP(Rebalance!$D$33,$F$2:$G$48,2,FALSE)+ROW()-2))=Rebalance!$D$33,INDIRECT(\"a\" & (VLOOKUP(Rebalance!$D$33,$F$2:$G$48,2,FALSE)+ROW()-2)),\"\")","v":{"$error":"#N/A"}},{"$f":"IF(INDIRECT(\"c\" & (VLOOKUP(Rebalance!$D$34,$F$2:$G$48,2,FALSE)+ROW()-2))=Rebalance!$D$34,INDIRECT(\"a\" & (VLOOKUP(Rebalance!$D$34,$F$2:$G$48,2,FALSE)+ROW()-2)),\"\")","v":{"$error":"#N/A"}},{"$f":"IF(INDIRECT(\"c\" & (VLOOKUP(Rebalance!$D$35,$F$2:$G$48,2,FALSE)+ROW()-2))=Rebalance!$D$35,INDIRECT(\"a\" & (VLOOKUP(Rebalance!$D$35,$F$2:$G$48,2,FALSE)+ROW()-2)),\"\")","v":{"$error":"#N/A"}},{"$f":"IF(INDIRECT(\"c\" & (VLOOKUP(Rebalance!$D$36,$F$2:$G$48,2,FALSE)+ROW()-2))=Rebalance!$D$36,INDIRECT(\"a\" & (VLOOKUP(Rebalance!$D$36,$F$2:$G$48,2,FALSE)+ROW()-2)),\"\")","v":{"$error":"#N/A"}},{"$f":"IF(INDIRECT(\"c\" & (VLOOKUP(Rebalance!$D$37,$F$2:$G$48,2,FALSE)+ROW()-2))=Rebalance!$D$37,INDIRECT(\"a\" & (VLOOKUP(Rebalance!$D$37,$F$2:$G$48,2,FALSE)+ROW()-2)),\"\")","v":{"$error":"#N/A"}},{"$f":"IF(INDIRECT(\"c\" & (VLOOKUP(Rebalance!$D$38,$F$2:$G$48,2,FALSE)+ROW()-2))=Rebalance!$D$38,INDIRECT(\"a\" & (VLOOKUP(Rebalance!$D$38,$F$2:$G$48,2,FALSE)+ROW()-2)),\"\")","v":{"$error":"#N/A"}},{"$f":"IF(INDIRECT(\"c\" & (VLOOKUP(Rebalance!$D$39,$F$2:$G$48,2,FALSE)+ROW()-2))=Rebalance!$D$39,INDIRECT(\"a\" & (VLOOKUP(Rebalance!$D$39,$F$2:$G$48,2,FALSE)+ROW()-2)),\"\")","v":{"$error":"#N/A"}},{"$f":"IF(INDIRECT(\"c\" & (VLOOKUP(Rebalance!$D$40,$F$2:$G$48,2,FALSE)+ROW()-2))=Rebalance!$D$40,INDIRECT(\"a\" & (VLOOKUP(Rebalance!$D$40,$F$2:$G$48,2,FALSE)+ROW()-2)),\"\")","v":{"$error":"#N/A"}},{"$f":"IF(INDIRECT(\"c\" & (VLOOKUP(Rebalance!$D$52,$F$2:$G$48,2,FALSE)+ROW()-2))=Rebalance!$D$52,INDIRECT(\"a\" & (VLOOKUP(Rebalance!$D$52,$F$2:$G$48,2,FALSE)+ROW()-2)),\"\")","v":{"$error":"#N/A"}},{"$f":"IF(INDIRECT(\"c\" & (VLOOKUP(Rebalance!$D$53,$F$2:$G$48,2,FALSE)+ROW()-2))=Rebalance!$D$53,INDIRECT(\"a\" & (VLOOKUP(Rebalance!$D$53,$F$2:$G$48,2,FALSE)+ROW()-2)),\"\")","v":{"$error":"#N/A"}},{"$f":"IF(INDIRECT(\"c\" & (VLOOKUP(Rebalance!$D$54,$F$2:$G$48,2,FALSE)+ROW()-2))=Rebalance!$D$54,INDIRECT(\"a\" & (VLOOKUP(Rebalance!$D$54,$F$2:$G$48,2,FALSE)+ROW()-2)),\"\")","v":{"$error":"#N/A"}},{"$f":"IF(INDIRECT(\"c\" & (VLOOKUP(Rebalance!$D$55,$F$2:$G$48,2,FALSE)+ROW()-2))=Rebalance!$D$55,INDIRECT(\"a\" & (VLOOKUP(Rebalance!$D$55,$F$2:$G$48,2,FALSE)+ROW()-2)),\"\")","v":{"$error":"#N/A"}},{"$f":"IF(INDIRECT(\"c\" & (VLOOKUP(Rebalance!$D$56,$F$2:$G$48,2,FALSE)+ROW()-2))=Rebalance!$D$56,INDIRECT(\"a\" & (VLOOKUP(Rebalance!$D$56,$F$2:$G$48,2,FALSE)+ROW()-2)),\"\")","v":{"$error":"#N/A"}},{"$f":"IF(INDIRECT(\"c\" & (VLOOKUP(Rebalance!$D$57,$F$2:$G$48,2,FALSE)+ROW()-2))=Rebalance!$D$57,INDIRECT(\"a\" & (VLOOKUP(Rebalance!$D$57,$F$2:$G$48,2,FALSE)+ROW()-2)),\"\")","v":{"$error":"#N/A"}},{"$f":"IF(INDIRECT(\"c\" & (VLOOKUP(Rebalance!$D$58,$F$2:$G$48,2,FALSE)+ROW()-2))=Rebalance!$D$58,INDIRECT(\"a\" & (VLOOKUP(Rebalance!$D$58,$F$2:$G$48,2,FALSE)+ROW()-2)),\"\")","v":{"$error":"#N/A"}},{"$f":"IF(INDIRECT(\"c\" & (VLOOKUP(Rebalance!$D$59,$F$2:$G$48,2,FALSE)+ROW()-2))=Rebalance!$D$59,INDIRECT(\"a\" & (VLOOKUP(Rebalance!$D$59,$F$2:$G$48,2,FALSE)+ROW()-2)),\"\")","v":{"$error":"#N/A"}},{"$f":"IF(INDIRECT(\"c\" & (VLOOKUP(Rebalance!$D$60,$F$2:$G$48,2,FALSE)+ROW()-2))=Rebalance!$D$60,INDIRECT(\"a\" & (VLOOKUP(Rebalance!$D$60,$F$2:$G$48,2,FALSE)+ROW()-2)),\"\")","v":{"$error":"#N/A"}},{"$f":"IF(INDIRECT(\"c\" & (VLOOKUP(Rebalance!$D$61,$F$2:$G$48,2,FALSE)+ROW()-2))=Rebalance!$D$61,INDIRECT(\"a\" & (VLOOKUP(Rebalance!$D$61,$F$2:$G$48,2,FALSE)+ROW()-2)),\"\")","v":{"$error":"#N/A"}},{"$f":"IF(INDIRECT(\"c\" & (VLOOKUP(Rebalance!$D$62,$F$2:$G$48,2,FALSE)+ROW()-2))=Rebalance!$D$62,INDIRECT(\"a\" & (VLOOKUP(Rebalance!$D$62,$F$2:$G$48,2,FALSE)+ROW()-2)),\"\")","v":{"$error":"#N/A"}},{"$f":"IF(INDIRECT(\"c\" & (VLOOKUP(Rebalance!$D$63,$F$2:$G$48,2,FALSE)+ROW()-2))=Rebalance!$D$63,INDIRECT(\"a\" & (VLOOKUP(Rebalance!$D$63,$F$2:$G$48,2,FALSE)+ROW()-2)),\"\")","v":{"$error":"#N/A"}},{"$f":"IF(INDIRECT(\"c\" & (VLOOKUP(Rebalance!$D$64,$F$2:$G$48,2,FALSE)+ROW()-2))=Rebalance!$D$64,INDIRECT(\"a\" & (VLOOKUP(Rebalance!$D$64,$F$2:$G$48,2,FALSE)+ROW()-2)),\"\")","v":{"$error":"#N/A"}},{"$f":"IF(INDIRECT(\"c\" & (VLOOKUP(Rebalance!$D$65,$F$2:$G$48,2,FALSE)+ROW()-2))=Rebalance!$D$65,INDIRECT(\"a\" & (VLOOKUP(Rebalance!$D$65,$F$2:$G$48,2,FALSE)+ROW()-2)),\"\")","v":{"$error":"#N/A"}},{"$f":"IF(INDIRECT(\"c\" & (VLOOKUP(Rebalance!$D$66,$F$2:$G$48,2,FALSE)+ROW()-2))=Rebalance!$D$66,INDIRECT(\"a\" & (VLOOKUP(Rebalance!$D$66,$F$2:$G$48,2,FALSE)+ROW()-2)),\"\")","v":{"$error":"#N/A"}}]
["PSG Wealth Creator FoF A","PACD","PSG Collective Investments Ltd",{"$f":"ROW()","v":487},null,null,{"$f":"VLOOKUP(F487,$C$2:$D$599,2,FALSE)","v":{"$error":"#N/A"}},{"$f":"IF(INDIRECT(\"c\" & (VLOOKUP(Rebalance!$D$26,$F$2:$G$48,2,FALSE)+ROW()-2))=Rebalance!$D$26,INDIRECT(\"a\" & (VLOOKUP(Rebalance!$D$26,$F$2:$G$48,2,FALSE)+ROW()-2)),\"\")","v":{"$error":"#N/A"}},{"$f":"IF(INDIRECT(\"c\" & (VLOOKUP(Rebalance!$D$27,$F$2:$G$48,2,FALSE)+ROW()-2))=Rebalance!$D$27,INDIRECT(\"a\" & (VLOOKUP(Rebalance!$D$27,$F$2:$G$48,2,FALSE)+ROW()-2)),\"\")","v":{"$error":"#N/A"}},{"$f":"IF(INDIRECT(\"c\" & (VLOOKUP(Rebalance!$D$28,$F$2:$G$48,2,FALSE)+ROW()-2))=Rebalance!$D$28,INDIRECT(\"a\" & (VLOOKUP(Rebalance!$D$28,$F$2:$G$48,2,FALSE)+ROW()-2)),\"\")","v":{"$error":"#N/A"}},{"$f":"IF(INDIRECT(\"c\" & (VLOOKUP(Rebalance!$D$29,$F$2:$G$48,2,FALSE)+ROW()-2))=Rebalance!$D$29,INDIRECT(\"a\" & (VLOOKUP(Rebalance!$D$29,$F$2:$G$48,2,FALSE)+ROW()-2)),\"\")","v":{"$error":"#N/A"}},{"$f":"IF(INDIRECT(\"c\" & (VLOOKUP(Rebalance!$D$30,$F$2:$G$48,2,FALSE)+ROW()-2))=Rebalance!$D$30,INDIRECT(\"a\" & (VLOOKUP(Rebalance!$D$30,$F$2:$G$48,2,FALSE)+ROW()-2)),\"\")","v":{"$error":"#N/A"}},{"$f":"IF(INDIRECT(\"c\" & (VLOOKUP(Rebalance!$D$31,$F$2:$G$48,2,FALSE)+ROW()-2))=Rebalance!$D$31,INDIRECT(\"a\" & (VLOOKUP(Rebalance!$D$31,$F$2:$G$48,2,FALSE)+ROW()-2)),\"\")","v":{"$error":"#N/A"}},{"$f":"IF(INDIRECT(\"c\" & (VLOOKUP(Rebalance!$D$32,$F$2:$G$48,2,FALSE)+ROW()-2))=Rebalance!$D$32,INDIRECT(\"a\" & (VLOOKUP(Rebalance!$D$32,$F$2:$G$48,2,FALSE)+ROW()-2)),\"\")","v":{"$error":"#N/A"}},{"$f":"IF(INDIRECT(\"c\" & (VLOOKUP(Rebalance!$D$33,$F$2:$G$48,2,FALSE)+ROW()-2))=Rebalance!$D$33,INDIRECT(\"a\" & (VLOOKUP(Rebalance!$D$33,$F$2:$G$48,2,FALSE)+ROW()-2)),\"\")","v":{"$error":"#N/A"}},{"$f":"IF(INDIRECT(\"c\" & (VLOOKUP(Rebalance!$D$34,$F$2:$G$48,2,FALSE)+ROW()-2))=Rebalance!$D$34,INDIRECT(\"a\" & (VLOOKUP(Rebalance!$D$34,$F$2:$G$48,2,FALSE)+ROW()-2)),\"\")","v":{"$error":"#N/A"}},{"$f":"IF(INDIRECT(\"c\" & (VLOOKUP(Rebalance!$D$35,$F$2:$G$48,2,FALSE)+ROW()-2))=Rebalance!$D$35,INDIRECT(\"a\" & (VLOOKUP(Rebalance!$D$35,$F$2:$G$48,2,FALSE)+ROW()-2)),\"\")","v":{"$error":"#N/A"}},{"$f":"IF(INDIRECT(\"c\" & (VLOOKUP(Rebalance!$D$36,$F$2:$G$48,2,FALSE)+ROW()-2))=Rebalance!$D$36,INDIRECT(\"a\" & (VLOOKUP(Rebalance!$D$36,$F$2:$G$48,2,FALSE)+ROW()-2)),\"\")","v":{"$error":"#N/A"}},{"$f":"IF(INDIRECT(\"c\" & (VLOOKUP(Rebalance!$D$37,$F$2:$G$48,2,FALSE)+ROW()-2))=Rebalance!$D$37,INDIRECT(\"a\" & (VLOOKUP(Rebalance!$D$37,$F$2:$G$48,2,FALSE)+ROW()-2)),\"\")","v":{"$error":"#N/A"}},{"$f":"IF(INDIRECT(\"c\" & (VLOOKUP(Rebalance!$D$38,$F$2:$G$48,2,FALSE)+ROW()-2))=Rebalance!$D$38,INDIRECT(\"a\" & (VLOOKUP(Rebalance!$D$38,$F$2:$G$48,2,FALSE)+ROW()-2)),\"\")","v":{"$error":"#N/A"}},{"$f":"IF(INDIRECT(\"c\" & (VLOOKUP(Rebalance!$D$39,$F$2:$G$48,2,FALSE)+ROW()-2))=Rebalance!$D$39,INDIRECT(\"a\" & (VLOOKUP(Rebalance!$D$39,$F$2:$G$48,2,FALSE)+ROW()-2)),\"\")","v":{"$error":"#N/A"}},{"$f":"IF(INDIRECT(\"c\" & (VLOOKUP(Rebalance!$D$40,$F$2:$G$48,2,FALSE)+ROW()-2))=Rebalance!$D$40,INDIRECT(\"a\" & (VLOOKUP(Rebalance!$D$40,$F$2:$G$48,2,FALSE)+ROW()-2)),\"\")","v":{"$error":"#N/A"}},{"$f":"IF(INDIRECT(\"c\" & (VLOOKUP(Rebalance!$D$52,$F$2:$G$48,2,FALSE)+ROW()-2))=Rebalance!$D$52,INDIRECT(\"a\" & (VLOOKUP(Rebalance!$D$52,$F$2:$G$48,2,FALSE)+ROW()-2)),\"\")","v":{"$error":"#N/A"}},{"$f":"IF(INDIRECT(\"c\" & (VLOOKUP(Rebalance!$D$53,$F$2:$G$48,2,FALSE)+ROW()-2))=Rebalance!$D$53,INDIRECT(\"a\" & (VLOOKUP(Rebalance!$D$53,$F$2:$G$48,2,FALSE)+ROW()-2)),\"\")","v":{"$error":"#N/A"}},{"$f":"IF(INDIRECT(\"c\" & (VLOOKUP(Rebalance!$D$54,$F$2:$G$48,2,FALSE)+ROW()-2))=Rebalance!$D$54,INDIRECT(\"a\" & (VLOOKUP(Rebalance!$D$54,$F$2:$G$48,2,FALSE)+ROW()-2)),\"\")","v":{"$error":"#N/A"}},{"$f":"IF(INDIRECT(\"c\" & (VLOOKUP(Rebalance!$D$55,$F$2:$G$48,2,FALSE)+ROW()-2))=Rebalance!$D$55,INDIRECT(\"a\" & (VLOOKUP(Rebalance!$D$55,$F$2:$G$48,2,FALSE)+ROW()-2)),\"\")","v":{"$error":"#N/A"}},{"$f":"IF(INDIRECT(\"c\" & (VLOOKUP(Rebalance!$D$56,$F$2:$G$48,2,FALSE)+ROW()-2))=Rebalance!$D$56,INDIRECT(\"a\" & (VLOOKUP(Rebalance!$D$56,$F$2:$G$48,2,FALSE)+ROW()-2)),\"\")","v":{"$error":"#N/A"}},{"$f":"IF(INDIRECT(\"c\" & (VLOOKUP(Rebalance!$D$57,$F$2:$G$48,2,FALSE)+ROW()-2))=Rebalance!$D$57,INDIRECT(\"a\" & (VLOOKUP(Rebalance!$D$57,$F$2:$G$48,2,FALSE)+ROW()-2)),\"\")","v":{"$error":"#N/A"}},{"$f":"IF(INDIRECT(\"c\" & (VLOOKUP(Rebalance!$D$58,$F$2:$G$48,2,FALSE)+ROW()-2))=Rebalance!$D$58,INDIRECT(\"a\" & (VLOOKUP(Rebalance!$D$58,$F$2:$G$48,2,FALSE)+ROW()-2)),\"\")","v":{"$error":"#N/A"}},{"$f":"IF(INDIRECT(\"c\" & (VLOOKUP(Rebalance!$D$59,$F$2:$G$48,2,FALSE)+ROW()-2))=Rebalance!$D$59,INDIRECT(\"a\" & (VLOOKUP(Rebalance!$D$59,$F$2:$G$48,2,FALSE)+ROW()-2)),\"\")","v":{"$error":"#N/A"}},{"$f":"IF(INDIRECT(\"c\" & (VLOOKUP(Rebalance!$D$60,$F$2:$G$48,2,FALSE)+ROW()-2))=Rebalance!$D$60,INDIRECT(\"a\" & (VLOOKUP(Rebalance!$D$60,$F$2:$G$48,2,FALSE)+ROW()-2)),\"\")","v":{"$error":"#N/A"}},{"$f":"IF(INDIRECT(\"c\" & (VLOOKUP(Rebalance!$D$61,$F$2:$G$48,2,FALSE)+ROW()-2))=Rebalance!$D$61,INDIRECT(\"a\" & (VLOOKUP(Rebalance!$D$61,$F$2:$G$48,2,FALSE)+ROW()-2)),\"\")","v":{"$error":"#N/A"}},{"$f":"IF(INDIRECT(\"c\" & (VLOOKUP(Rebalance!$D$62,$F$2:$G$48,2,FALSE)+ROW()-2))=Rebalance!$D$62,INDIRECT(\"a\" & (VLOOKUP(Rebalance!$D$62,$F$2:$G$48,2,FALSE)+ROW()-2)),\"\")","v":{"$error":"#N/A"}},{"$f":"IF(INDIRECT(\"c\" & (VLOOKUP(Rebalance!$D$63,$F$2:$G$48,2,FALSE)+ROW()-2))=Rebalance!$D$63,INDIRECT(\"a\" & (VLOOKUP(Rebalance!$D$63,$F$2:$G$48,2,FALSE)+ROW()-2)),\"\")","v":{"$error":"#N/A"}},{"$f":"IF(INDIRECT(\"c\" & (VLOOKUP(Rebalance!$D$64,$F$2:$G$48,2,FALSE)+ROW()-2))=Rebalance!$D$64,INDIRECT(\"a\" & (VLOOKUP(Rebalance!$D$64,$F$2:$G$48,2,FALSE)+ROW()-2)),\"\")","v":{"$error":"#N/A"}},{"$f":"IF(INDIRECT(\"c\" & (VLOOKUP(Rebalance!$D$65,$F$2:$G$48,2,FALSE)+ROW()-2))=Rebalance!$D$65,INDIRECT(\"a\" & (VLOOKUP(Rebalance!$D$65,$F$2:$G$48,2,FALSE)+ROW()-2)),\"\")","v":{"$error":"#N/A"}},{"$f":"IF(INDIRECT(\"c\" & (VLOOKUP(Rebalance!$D$66,$F$2:$G$48,2,FALSE)+ROW()-2))=Rebalance!$D$66,INDIRECT(\"a\" & (VLOOKUP(Rebalance!$D$66,$F$2:$G$48,2,FALSE)+ROW()-2)),\"\")","v":{"$error":"#N/A"}}]
["PSG Wealth Creator FoF B","PACD","PSG Collective Investments Ltd",{"$f":"ROW()","v":488},null,null,{"$f":"VLOOKUP(F488,$C$2:$D$599,2,FALSE)","v":{"$error":"#N/A"}},{"$f":"IF(INDIRECT(\"c\" & (VLOOKUP(Rebalance!$D$26,$F$2:$G$48,2,FALSE)+ROW()-2))=Rebalance!$D$26,INDIRECT(\"a\" & (VLOOKUP(Rebalance!$D$26,$F$2:$G$48,2,FALSE)+ROW()-2)),\"\")","v":{"$error":"#N/A"}},{"$f":"IF(INDIRECT(\"c\" & (VLOOKUP(Rebalance!$D$27,$F$2:$G$48,2,FALSE)+ROW()-2))=Rebalance!$D$27,INDIRECT(\"a\" & (VLOOKUP(Rebalance!$D$27,$F$2:$G$48,2,FALSE)+ROW()-2)),\"\")","v":{"$error":"#N/A"}},{"$f":"IF(INDIRECT(\"c\" & (VLOOKUP(Rebalance!$D$28,$F$2:$G$48,2,FALSE)+ROW()-2))=Rebalance!$D$28,INDIRECT(\"a\" & (VLOOKUP(Rebalance!$D$28,$F$2:$G$48,2,FALSE)+ROW()-2)),\"\")","v":{"$error":"#N/A"}},{"$f":"IF(INDIRECT(\"c\" & (VLOOKUP(Rebalance!$D$29,$F$2:$G$48,2,FALSE)+ROW()-2))=Rebalance!$D$29,INDIRECT(\"a\" & (VLOOKUP(Rebalance!$D$29,$F$2:$G$48,2,FALSE)+ROW()-2)),\"\")","v":{"$error":"#N/A"}},{"$f":"IF(INDIRECT(\"c\" & (VLOOKUP(Rebalance!$D$30,$F$2:$G$48,2,FALSE)+ROW()-2))=Rebalance!$D$30,INDIRECT(\"a\" & (VLOOKUP(Rebalance!$D$30,$F$2:$G$48,2,FALSE)+ROW()-2)),\"\")","v":{"$error":"#N/A"}},{"$f":"IF(INDIRECT(\"c\" & (VLOOKUP(Rebalance!$D$31,$F$2:$G$48,2,FALSE)+ROW()-2))=Rebalance!$D$31,INDIRECT(\"a\" & (VLOOKUP(Rebalance!$D$31,$F$2:$G$48,2,FALSE)+ROW()-2)),\"\")","v":{"$error":"#N/A"}},{"$f":"IF(INDIRECT(\"c\" & (VLOOKUP(Rebalance!$D$32,$F$2:$G$48,2,FALSE)+ROW()-2))=Rebalance!$D$32,INDIRECT(\"a\" & (VLOOKUP(Rebalance!$D$32,$F$2:$G$48,2,FALSE)+ROW()-2)),\"\")","v":{"$error":"#N/A"}},{"$f":"IF(INDIRECT(\"c\" & (VLOOKUP(Rebalance!$D$33,$F$2:$G$48,2,FALSE)+ROW()-2))=Rebalance!$D$33,INDIRECT(\"a\" & (VLOOKUP(Rebalance!$D$33,$F$2:$G$48,2,FALSE)+ROW()-2)),\"\")","v":{"$error":"#N/A"}},{"$f":"IF(INDIRECT(\"c\" & (VLOOKUP(Rebalance!$D$34,$F$2:$G$48,2,FALSE)+ROW()-2))=Rebalance!$D$34,INDIRECT(\"a\" & (VLOOKUP(Rebalance!$D$34,$F$2:$G$48,2,FALSE)+ROW()-2)),\"\")","v":{"$error":"#N/A"}},{"$f":"IF(INDIRECT(\"c\" & (VLOOKUP(Rebalance!$D$35,$F$2:$G$48,2,FALSE)+ROW()-2))=Rebalance!$D$35,INDIRECT(\"a\" & (VLOOKUP(Rebalance!$D$35,$F$2:$G$48,2,FALSE)+ROW()-2)),\"\")","v":{"$error":"#N/A"}},{"$f":"IF(INDIRECT(\"c\" & (VLOOKUP(Rebalance!$D$36,$F$2:$G$48,2,FALSE)+ROW()-2))=Rebalance!$D$36,INDIRECT(\"a\" & (VLOOKUP(Rebalance!$D$36,$F$2:$G$48,2,FALSE)+ROW()-2)),\"\")","v":{"$error":"#N/A"}},{"$f":"IF(INDIRECT(\"c\" & (VLOOKUP(Rebalance!$D$37,$F$2:$G$48,2,FALSE)+ROW()-2))=Rebalance!$D$37,INDIRECT(\"a\" & (VLOOKUP(Rebalance!$D$37,$F$2:$G$48,2,FALSE)+ROW()-2)),\"\")","v":{"$error":"#N/A"}},{"$f":"IF(INDIRECT(\"c\" & (VLOOKUP(Rebalance!$D$38,$F$2:$G$48,2,FALSE)+ROW()-2))=Rebalance!$D$38,INDIRECT(\"a\" & (VLOOKUP(Rebalance!$D$38,$F$2:$G$48,2,FALSE)+ROW()-2)),\"\")","v":{"$error":"#N/A"}},{"$f":"IF(INDIRECT(\"c\" & (VLOOKUP(Rebalance!$D$39,$F$2:$G$48,2,FALSE)+ROW()-2))=Rebalance!$D$39,INDIRECT(\"a\" & (VLOOKUP(Rebalance!$D$39,$F$2:$G$48,2,FALSE)+ROW()-2)),\"\")","v":{"$error":"#N/A"}},{"$f":"IF(INDIRECT(\"c\" & (VLOOKUP(Rebalance!$D$40,$F$2:$G$48,2,FALSE)+ROW()-2))=Rebalance!$D$40,INDIRECT(\"a\" & (VLOOKUP(Rebalance!$D$40,$F$2:$G$48,2,FALSE)+ROW()-2)),\"\")","v":{"$error":"#N/A"}},{"$f":"IF(INDIRECT(\"c\" & (VLOOKUP(Rebalance!$D$52,$F$2:$G$48,2,FALSE)+ROW()-2))=Rebalance!$D$52,INDIRECT(\"a\" & (VLOOKUP(Rebalance!$D$52,$F$2:$G$48,2,FALSE)+ROW()-2)),\"\")","v":{"$error":"#N/A"}},{"$f":"IF(INDIRECT(\"c\" & (VLOOKUP(Rebalance!$D$53,$F$2:$G$48,2,FALSE)+ROW()-2))=Rebalance!$D$53,INDIRECT(\"a\" & (VLOOKUP(Rebalance!$D$53,$F$2:$G$48,2,FALSE)+ROW()-2)),\"\")","v":{"$error":"#N/A"}},{"$f":"IF(INDIRECT(\"c\" & (VLOOKUP(Rebalance!$D$54,$F$2:$G$48,2,FALSE)+ROW()-2))=Rebalance!$D$54,INDIRECT(\"a\" & (VLOOKUP(Rebalance!$D$54,$F$2:$G$48,2,FALSE)+ROW()-2)),\"\")","v":{"$error":"#N/A"}},{"$f":"IF(INDIRECT(\"c\" & (VLOOKUP(Rebalance!$D$55,$F$2:$G$48,2,FALSE)+ROW()-2))=Rebalance!$D$55,INDIRECT(\"a\" & (VLOOKUP(Rebalance!$D$55,$F$2:$G$48,2,FALSE)+ROW()-2)),\"\")","v":{"$error":"#N/A"}},{"$f":"IF(INDIRECT(\"c\" & (VLOOKUP(Rebalance!$D$56,$F$2:$G$48,2,FALSE)+ROW()-2))=Rebalance!$D$56,INDIRECT(\"a\" & (VLOOKUP(Rebalance!$D$56,$F$2:$G$48,2,FALSE)+ROW()-2)),\"\")","v":{"$error":"#N/A"}},{"$f":"IF(INDIRECT(\"c\" & (VLOOKUP(Rebalance!$D$57,$F$2:$G$48,2,FALSE)+ROW()-2))=Rebalance!$D$57,INDIRECT(\"a\" & (VLOOKUP(Rebalance!$D$57,$F$2:$G$48,2,FALSE)+ROW()-2)),\"\")","v":{"$error":"#N/A"}},{"$f":"IF(INDIRECT(\"c\" & (VLOOKUP(Rebalance!$D$58,$F$2:$G$48,2,FALSE)+ROW()-2))=Rebalance!$D$58,INDIRECT(\"a\" & (VLOOKUP(Rebalance!$D$58,$F$2:$G$48,2,FALSE)+ROW()-2)),\"\")","v":{"$error":"#N/A"}},{"$f":"IF(INDIRECT(\"c\" & (VLOOKUP(Rebalance!$D$59,$F$2:$G$48,2,FALSE)+ROW()-2))=Rebalance!$D$59,INDIRECT(\"a\" & (VLOOKUP(Rebalance!$D$59,$F$2:$G$48,2,FALSE)+ROW()-2)),\"\")","v":{"$error":"#N/A"}},{"$f":"IF(INDIRECT(\"c\" & (VLOOKUP(Rebalance!$D$60,$F$2:$G$48,2,FALSE)+ROW()-2))=Rebalance!$D$60,INDIRECT(\"a\" & (VLOOKUP(Rebalance!$D$60,$F$2:$G$48,2,FALSE)+ROW()-2)),\"\")","v":{"$error":"#N/A"}},{"$f":"IF(INDIRECT(\"c\" & (VLOOKUP(Rebalance!$D$61,$F$2:$G$48,2,FALSE)+ROW()-2))=Rebalance!$D$61,INDIRECT(\"a\" & (VLOOKUP(Rebalance!$D$61,$F$2:$G$48,2,FALSE)+ROW()-2)),\"\")","v":{"$error":"#N/A"}},{"$f":"IF(INDIRECT(\"c\" & (VLOOKUP(Rebalance!$D$62,$F$2:$G$48,2,FALSE)+ROW()-2))=Rebalance!$D$62,INDIRECT(\"a\" & (VLOOKUP(Rebalance!$D$62,$F$2:$G$48,2,FALSE)+ROW()-2)),\"\")","v":{"$error":"#N/A"}},{"$f":"IF(INDIRECT(\"c\" & (VLOOKUP(Rebalance!$D$63,$F$2:$G$48,2,FALSE)+ROW()-2))=Rebalance!$D$63,INDIRECT(\"a\" & (VLOOKUP(Rebalance!$D$63,$F$2:$G$48,2,FALSE)+ROW()-2)),\"\")","v":{"$error":"#N/A"}},{"$f":"IF(INDIRECT(\"c\" & (VLOOKUP(Rebalance!$D$64,$F$2:$G$48,2,FALSE)+ROW()-2))=Rebalance!$D$64,INDIRECT(\"a\" & (VLOOKUP(Rebalance!$D$64,$F$2:$G$48,2,FALSE)+ROW()-2)),\"\")","v":{"$error":"#N/A"}},{"$f":"IF(INDIRECT(\"c\" & (VLOOKUP(Rebalance!$D$65,$F$2:$G$48,2,FALSE)+ROW()-2))=Rebalance!$D$65,INDIRECT(\"a\" & (VLOOKUP(Rebalance!$D$65,$F$2:$G$48,2,FALSE)+ROW()-2)),\"\")","v":{"$error":"#N/A"}},{"$f":"IF(INDIRECT(\"c\" & (VLOOKUP(Rebalance!$D$66,$F$2:$G$48,2,FALSE)+ROW()-2))=Rebalance!$D$66,INDIRECT(\"a\" & (VLOOKUP(Rebalance!$D$66,$F$2:$G$48,2,FALSE)+ROW()-2)),\"\")","v":{"$error":"#N/A"}}]
["PSG Wealth Creator FoF D","PACD","PSG Collective Investments Ltd",{"$f":"ROW()","v":489},null,null,{"$f":"VLOOKUP(F489,$C$2:$D$599,2,FALSE)","v":{"$error":"#N/A"}},{"$f":"IF(INDIRECT(\"c\" & (VLOOKUP(Rebalance!$D$26,$F$2:$G$48,2,FALSE)+ROW()-2))=Rebalance!$D$26,INDIRECT(\"a\" & (VLOOKUP(Rebalance!$D$26,$F$2:$G$48,2,FALSE)+ROW()-2)),\"\")","v":{"$error":"#N/A"}},{"$f":"IF(INDIRECT(\"c\" & (VLOOKUP(Rebalance!$D$27,$F$2:$G$48,2,FALSE)+ROW()-2))=Rebalance!$D$27,INDIRECT(\"a\" & (VLOOKUP(Rebalance!$D$27,$F$2:$G$48,2,FALSE)+ROW()-2)),\"\")","v":{"$error":"#N/A"}},{"$f":"IF(INDIRECT(\"c\" & (VLOOKUP(Rebalance!$D$28,$F$2:$G$48,2,FALSE)+ROW()-2))=Rebalance!$D$28,INDIRECT(\"a\" & (VLOOKUP(Rebalance!$D$28,$F$2:$G$48,2,FALSE)+ROW()-2)),\"\")","v":{"$error":"#N/A"}},{"$f":"IF(INDIRECT(\"c\" & (VLOOKUP(Rebalance!$D$29,$F$2:$G$48,2,FALSE)+ROW()-2))=Rebalance!$D$29,INDIRECT(\"a\" & (VLOOKUP(Rebalance!$D$29,$F$2:$G$48,2,FALSE)+ROW()-2)),\"\")","v":{"$error":"#N/A"}},{"$f":"IF(INDIRECT(\"c\" & (VLOOKUP(Rebalance!$D$30,$F$2:$G$48,2,FALSE)+ROW()-2))=Rebalance!$D$30,INDIRECT(\"a\" & (VLOOKUP(Rebalance!$D$30,$F$2:$G$48,2,FALSE)+ROW()-2)),\"\")","v":{"$error":"#N/A"}},{"$f":"IF(INDIRECT(\"c\" & (VLOOKUP(Rebalance!$D$31,$F$2:$G$48,2,FALSE)+ROW()-2))=Rebalance!$D$31,INDIRECT(\"a\" & (VLOOKUP(Rebalance!$D$31,$F$2:$G$48,2,FALSE)+ROW()-2)),\"\")","v":{"$error":"#N/A"}},{"$f":"IF(INDIRECT(\"c\" & (VLOOKUP(Rebalance!$D$32,$F$2:$G$48,2,FALSE)+ROW()-2))=Rebalance!$D$32,INDIRECT(\"a\" & (VLOOKUP(Rebalance!$D$32,$F$2:$G$48,2,FALSE)+ROW()-2)),\"\")","v":{"$error":"#N/A"}},{"$f":"IF(INDIRECT(\"c\" & (VLOOKUP(Rebalance!$D$33,$F$2:$G$48,2,FALSE)+ROW()-2))=Rebalance!$D$33,INDIRECT(\"a\" & (VLOOKUP(Rebalance!$D$33,$F$2:$G$48,2,FALSE)+ROW()-2)),\"\")","v":{"$error":"#N/A"}},{"$f":"IF(INDIRECT(\"c\" & (VLOOKUP(Rebalance!$D$34,$F$2:$G$48,2,FALSE)+ROW()-2))=Rebalance!$D$34,INDIRECT(\"a\" & (VLOOKUP(Rebalance!$D$34,$F$2:$G$48,2,FALSE)+ROW()-2)),\"\")","v":{"$error":"#N/A"}},{"$f":"IF(INDIRECT(\"c\" & (VLOOKUP(Rebalance!$D$35,$F$2:$G$48,2,FALSE)+ROW()-2))=Rebalance!$D$35,INDIRECT(\"a\" & (VLOOKUP(Rebalance!$D$35,$F$2:$G$48,2,FALSE)+ROW()-2)),\"\")","v":{"$error":"#N/A"}},{"$f":"IF(INDIRECT(\"c\" & (VLOOKUP(Rebalance!$D$36,$F$2:$G$48,2,FALSE)+ROW()-2))=Rebalance!$D$36,INDIRECT(\"a\" & (VLOOKUP(Rebalance!$D$36,$F$2:$G$48,2,FALSE)+ROW()-2)),\"\")","v":{"$error":"#N/A"}},{"$f":"IF(INDIRECT(\"c\" & (VLOOKUP(Rebalance!$D$37,$F$2:$G$48,2,FALSE)+ROW()-2))=Rebalance!$D$37,INDIRECT(\"a\" & (VLOOKUP(Rebalance!$D$37,$F$2:$G$48,2,FALSE)+ROW()-2)),\"\")","v":{"$error":"#N/A"}},{"$f":"IF(INDIRECT(\"c\" & (VLOOKUP(Rebalance!$D$38,$F$2:$G$48,2,FALSE)+ROW()-2))=Rebalance!$D$38,INDIRECT(\"a\" & (VLOOKUP(Rebalance!$D$38,$F$2:$G$48,2,FALSE)+ROW()-2)),\"\")","v":{"$error":"#N/A"}},{"$f":"IF(INDIRECT(\"c\" & (VLOOKUP(Rebalance!$D$39,$F$2:$G$48,2,FALSE)+ROW()-2))=Rebalance!$D$39,INDIRECT(\"a\" & (VLOOKUP(Rebalance!$D$39,$F$2:$G$48,2,FALSE)+ROW()-2)),\"\")","v":{"$error":"#N/A"}},{"$f":"IF(INDIRECT(\"c\" & (VLOOKUP(Rebalance!$D$40,$F$2:$G$48,2,FALSE)+ROW()-2))=Rebalance!$D$40,INDIRECT(\"a\" & (VLOOKUP(Rebalance!$D$40,$F$2:$G$48,2,FALSE)+ROW()-2)),\"\")","v":{"$error":"#N/A"}},{"$f":"IF(INDIRECT(\"c\" & (VLOOKUP(Rebalance!$D$52,$F$2:$G$48,2,FALSE)+ROW()-2))=Rebalance!$D$52,INDIRECT(\"a\" & (VLOOKUP(Rebalance!$D$52,$F$2:$G$48,2,FALSE)+ROW()-2)),\"\")","v":{"$error":"#N/A"}},{"$f":"IF(INDIRECT(\"c\" & (VLOOKUP(Rebalance!$D$53,$F$2:$G$48,2,FALSE)+ROW()-2))=Rebalance!$D$53,INDIRECT(\"a\" & (VLOOKUP(Rebalance!$D$53,$F$2:$G$48,2,FALSE)+ROW()-2)),\"\")","v":{"$error":"#N/A"}},{"$f":"IF(INDIRECT(\"c\" & (VLOOKUP(Rebalance!$D$54,$F$2:$G$48,2,FALSE)+ROW()-2))=Rebalance!$D$54,INDIRECT(\"a\" & (VLOOKUP(Rebalance!$D$54,$F$2:$G$48,2,FALSE)+ROW()-2)),\"\")","v":{"$error":"#N/A"}},{"$f":"IF(INDIRECT(\"c\" & (VLOOKUP(Rebalance!$D$55,$F$2:$G$48,2,FALSE)+ROW()-2))=Rebalance!$D$55,INDIRECT(\"a\" & (VLOOKUP(Rebalance!$D$55,$F$2:$G$48,2,FALSE)+ROW()-2)),\"\")","v":{"$error":"#N/A"}},{"$f":"IF(INDIRECT(\"c\" & (VLOOKUP(Rebalance!$D$56,$F$2:$G$48,2,FALSE)+ROW()-2))=Rebalance!$D$56,INDIRECT(\"a\" & (VLOOKUP(Rebalance!$D$56,$F$2:$G$48,2,FALSE)+ROW()-2)),\"\")","v":{"$error":"#N/A"}},{"$f":"IF(INDIRECT(\"c\" & (VLOOKUP(Rebalance!$D$57,$F$2:$G$48,2,FALSE)+ROW()-2))=Rebalance!$D$57,INDIRECT(\"a\" & (VLOOKUP(Rebalance!$D$57,$F$2:$G$48,2,FALSE)+ROW()-2)),\"\")","v":{"$error":"#N/A"}},{"$f":"IF(INDIRECT(\"c\" & (VLOOKUP(Rebalance!$D$58,$F$2:$G$48,2,FALSE)+ROW()-2))=Rebalance!$D$58,INDIRECT(\"a\" & (VLOOKUP(Rebalance!$D$58,$F$2:$G$48,2,FALSE)+ROW()-2)),\"\")","v":{"$error":"#N/A"}},{"$f":"IF(INDIRECT(\"c\" & (VLOOKUP(Rebalance!$D$59,$F$2:$G$48,2,FALSE)+ROW()-2))=Rebalance!$D$59,INDIRECT(\"a\" & (VLOOKUP(Rebalance!$D$59,$F$2:$G$48,2,FALSE)+ROW()-2)),\"\")","v":{"$error":"#N/A"}},{"$f":"IF(INDIRECT(\"c\" & (VLOOKUP(Rebalance!$D$60,$F$2:$G$48,2,FALSE)+ROW()-2))=Rebalance!$D$60,INDIRECT(\"a\" & (VLOOKUP(Rebalance!$D$60,$F$2:$G$48,2,FALSE)+ROW()-2)),\"\")","v":{"$error":"#N/A"}},{"$f":"IF(INDIRECT(\"c\" & (VLOOKUP(Rebalance!$D$61,$F$2:$G$48,2,FALSE)+ROW()-2))=Rebalance!$D$61,INDIRECT(\"a\" & (VLOOKUP(Rebalance!$D$61,$F$2:$G$48,2,FALSE)+ROW()-2)),\"\")","v":{"$error":"#N/A"}},{"$f":"IF(INDIRECT(\"c\" & (VLOOKUP(Rebalance!$D$62,$F$2:$G$48,2,FALSE)+ROW()-2))=Rebalance!$D$62,INDIRECT(\"a\" & (VLOOKUP(Rebalance!$D$62,$F$2:$G$48,2,FALSE)+ROW()-2)),\"\")","v":{"$error":"#N/A"}},{"$f":"IF(INDIRECT(\"c\" & (VLOOKUP(Rebalance!$D$63,$F$2:$G$48,2,FALSE)+ROW()-2))=Rebalance!$D$63,INDIRECT(\"a\" & (VLOOKUP(Rebalance!$D$63,$F$2:$G$48,2,FALSE)+ROW()-2)),\"\")","v":{"$error":"#N/A"}},{"$f":"IF(INDIRECT(\"c\" & (VLOOKUP(Rebalance!$D$64,$F$2:$G$48,2,FALSE)+ROW()-2))=Rebalance!$D$64,INDIRECT(\"a\" & (VLOOKUP(Rebalance!$D$64,$F$2:$G$48,2,FALSE)+ROW()-2)),\"\")","v":{"$error":"#N/A"}},{"$f":"IF(INDIRECT(\"c\" & (VLOOKUP(Rebalance!$D$65,$F$2:$G$48,2,FALSE)+ROW()-2))=Rebalance!$D$65,INDIRECT(\"a\" & (VLOOKUP(Rebalance!$D$65,$F$2:$G$48,2,FALSE)+ROW()-2)),\"\")","v":{"$error":"#N/A"}},{"$f":"IF(INDIRECT(\"c\" & (VLOOKUP(Rebalance!$D$66,$F$2:$G$48,2,FALSE)+ROW()-2))=Rebalance!$D$66,INDIRECT(\"a\" & (VLOOKUP(Rebalance!$D$66,$F$2:$G$48,2,FALSE)+ROW()-2)),\"\")","v":{"$error":"#N/A"}}]
["PSG Wealth Global Moderate Feeder Fund A","PKID","PSG Collective Investments Ltd",{"$f":"ROW()","v":490},null,null,{"$f":"VLOOKUP(F490,$C$2:$D$599,2,FALSE)","v":{"$error":"#N/A"}},{"$f":"IF(INDIRECT(\"c\" & (VLOOKUP(Rebalance!$D$26,$F$2:$G$48,2,FALSE)+ROW()-2))=Rebalance!$D$26,INDIRECT(\"a\" & (VLOOKUP(Rebalance!$D$26,$F$2:$G$48,2,FALSE)+ROW()-2)),\"\")","v":{"$error":"#N/A"}},{"$f":"IF(INDIRECT(\"c\" & (VLOOKUP(Rebalance!$D$27,$F$2:$G$48,2,FALSE)+ROW()-2))=Rebalance!$D$27,INDIRECT(\"a\" & (VLOOKUP(Rebalance!$D$27,$F$2:$G$48,2,FALSE)+ROW()-2)),\"\")","v":{"$error":"#N/A"}},{"$f":"IF(INDIRECT(\"c\" & (VLOOKUP(Rebalance!$D$28,$F$2:$G$48,2,FALSE)+ROW()-2))=Rebalance!$D$28,INDIRECT(\"a\" & (VLOOKUP(Rebalance!$D$28,$F$2:$G$48,2,FALSE)+ROW()-2)),\"\")","v":{"$error":"#N/A"}},{"$f":"IF(INDIRECT(\"c\" & (VLOOKUP(Rebalance!$D$29,$F$2:$G$48,2,FALSE)+ROW()-2))=Rebalance!$D$29,INDIRECT(\"a\" & (VLOOKUP(Rebalance!$D$29,$F$2:$G$48,2,FALSE)+ROW()-2)),\"\")","v":{"$error":"#N/A"}},{"$f":"IF(INDIRECT(\"c\" & (VLOOKUP(Rebalance!$D$30,$F$2:$G$48,2,FALSE)+ROW()-2))=Rebalance!$D$30,INDIRECT(\"a\" & (VLOOKUP(Rebalance!$D$30,$F$2:$G$48,2,FALSE)+ROW()-2)),\"\")","v":{"$error":"#N/A"}},{"$f":"IF(INDIRECT(\"c\" & (VLOOKUP(Rebalance!$D$31,$F$2:$G$48,2,FALSE)+ROW()-2))=Rebalance!$D$31,INDIRECT(\"a\" & (VLOOKUP(Rebalance!$D$31,$F$2:$G$48,2,FALSE)+ROW()-2)),\"\")","v":{"$error":"#N/A"}},{"$f":"IF(INDIRECT(\"c\" & (VLOOKUP(Rebalance!$D$32,$F$2:$G$48,2,FALSE)+ROW()-2))=Rebalance!$D$32,INDIRECT(\"a\" & (VLOOKUP(Rebalance!$D$32,$F$2:$G$48,2,FALSE)+ROW()-2)),\"\")","v":{"$error":"#N/A"}},{"$f":"IF(INDIRECT(\"c\" & (VLOOKUP(Rebalance!$D$33,$F$2:$G$48,2,FALSE)+ROW()-2))=Rebalance!$D$33,INDIRECT(\"a\" & (VLOOKUP(Rebalance!$D$33,$F$2:$G$48,2,FALSE)+ROW()-2)),\"\")","v":{"$error":"#N/A"}},{"$f":"IF(INDIRECT(\"c\" & (VLOOKUP(Rebalance!$D$34,$F$2:$G$48,2,FALSE)+ROW()-2))=Rebalance!$D$34,INDIRECT(\"a\" & (VLOOKUP(Rebalance!$D$34,$F$2:$G$48,2,FALSE)+ROW()-2)),\"\")","v":{"$error":"#N/A"}},{"$f":"IF(INDIRECT(\"c\" & (VLOOKUP(Rebalance!$D$35,$F$2:$G$48,2,FALSE)+ROW()-2))=Rebalance!$D$35,INDIRECT(\"a\" & (VLOOKUP(Rebalance!$D$35,$F$2:$G$48,2,FALSE)+ROW()-2)),\"\")","v":{"$error":"#N/A"}},{"$f":"IF(INDIRECT(\"c\" & (VLOOKUP(Rebalance!$D$36,$F$2:$G$48,2,FALSE)+ROW()-2))=Rebalance!$D$36,INDIRECT(\"a\" & (VLOOKUP(Rebalance!$D$36,$F$2:$G$48,2,FALSE)+ROW()-2)),\"\")","v":{"$error":"#N/A"}},{"$f":"IF(INDIRECT(\"c\" & (VLOOKUP(Rebalance!$D$37,$F$2:$G$48,2,FALSE)+ROW()-2))=Rebalance!$D$37,INDIRECT(\"a\" & (VLOOKUP(Rebalance!$D$37,$F$2:$G$48,2,FALSE)+ROW()-2)),\"\")","v":{"$error":"#N/A"}},{"$f":"IF(INDIRECT(\"c\" & (VLOOKUP(Rebalance!$D$38,$F$2:$G$48,2,FALSE)+ROW()-2))=Rebalance!$D$38,INDIRECT(\"a\" & (VLOOKUP(Rebalance!$D$38,$F$2:$G$48,2,FALSE)+ROW()-2)),\"\")","v":{"$error":"#N/A"}},{"$f":"IF(INDIRECT(\"c\" & (VLOOKUP(Rebalance!$D$39,$F$2:$G$48,2,FALSE)+ROW()-2))=Rebalance!$D$39,INDIRECT(\"a\" & (VLOOKUP(Rebalance!$D$39,$F$2:$G$48,2,FALSE)+ROW()-2)),\"\")","v":{"$error":"#N/A"}},{"$f":"IF(INDIRECT(\"c\" & (VLOOKUP(Rebalance!$D$40,$F$2:$G$48,2,FALSE)+ROW()-2))=Rebalance!$D$40,INDIRECT(\"a\" & (VLOOKUP(Rebalance!$D$40,$F$2:$G$48,2,FALSE)+ROW()-2)),\"\")","v":{"$error":"#N/A"}},{"$f":"IF(INDIRECT(\"c\" & (VLOOKUP(Rebalance!$D$52,$F$2:$G$48,2,FALSE)+ROW()-2))=Rebalance!$D$52,INDIRECT(\"a\" & (VLOOKUP(Rebalance!$D$52,$F$2:$G$48,2,FALSE)+ROW()-2)),\"\")","v":{"$error":"#N/A"}},{"$f":"IF(INDIRECT(\"c\" & (VLOOKUP(Rebalance!$D$53,$F$2:$G$48,2,FALSE)+ROW()-2))=Rebalance!$D$53,INDIRECT(\"a\" & (VLOOKUP(Rebalance!$D$53,$F$2:$G$48,2,FALSE)+ROW()-2)),\"\")","v":{"$error":"#N/A"}},{"$f":"IF(INDIRECT(\"c\" & (VLOOKUP(Rebalance!$D$54,$F$2:$G$48,2,FALSE)+ROW()-2))=Rebalance!$D$54,INDIRECT(\"a\" & (VLOOKUP(Rebalance!$D$54,$F$2:$G$48,2,FALSE)+ROW()-2)),\"\")","v":{"$error":"#N/A"}},{"$f":"IF(INDIRECT(\"c\" & (VLOOKUP(Rebalance!$D$55,$F$2:$G$48,2,FALSE)+ROW()-2))=Rebalance!$D$55,INDIRECT(\"a\" & (VLOOKUP(Rebalance!$D$55,$F$2:$G$48,2,FALSE)+ROW()-2)),\"\")","v":{"$error":"#N/A"}},{"$f":"IF(INDIRECT(\"c\" & (VLOOKUP(Rebalance!$D$56,$F$2:$G$48,2,FALSE)+ROW()-2))=Rebalance!$D$56,INDIRECT(\"a\" & (VLOOKUP(Rebalance!$D$56,$F$2:$G$48,2,FALSE)+ROW()-2)),\"\")","v":{"$error":"#N/A"}},{"$f":"IF(INDIRECT(\"c\" & (VLOOKUP(Rebalance!$D$57,$F$2:$G$48,2,FALSE)+ROW()-2))=Rebalance!$D$57,INDIRECT(\"a\" & (VLOOKUP(Rebalance!$D$57,$F$2:$G$48,2,FALSE)+ROW()-2)),\"\")","v":{"$error":"#N/A"}},{"$f":"IF(INDIRECT(\"c\" & (VLOOKUP(Rebalance!$D$58,$F$2:$G$48,2,FALSE)+ROW()-2))=Rebalance!$D$58,INDIRECT(\"a\" & (VLOOKUP(Rebalance!$D$58,$F$2:$G$48,2,FALSE)+ROW()-2)),\"\")","v":{"$error":"#N/A"}},{"$f":"IF(INDIRECT(\"c\" & (VLOOKUP(Rebalance!$D$59,$F$2:$G$48,2,FALSE)+ROW()-2))=Rebalance!$D$59,INDIRECT(\"a\" & (VLOOKUP(Rebalance!$D$59,$F$2:$G$48,2,FALSE)+ROW()-2)),\"\")","v":{"$error":"#N/A"}},{"$f":"IF(INDIRECT(\"c\" & (VLOOKUP(Rebalance!$D$60,$F$2:$G$48,2,FALSE)+ROW()-2))=Rebalance!$D$60,INDIRECT(\"a\" & (VLOOKUP(Rebalance!$D$60,$F$2:$G$48,2,FALSE)+ROW()-2)),\"\")","v":{"$error":"#N/A"}},{"$f":"IF(INDIRECT(\"c\" & (VLOOKUP(Rebalance!$D$61,$F$2:$G$48,2,FALSE)+ROW()-2))=Rebalance!$D$61,INDIRECT(\"a\" & (VLOOKUP(Rebalance!$D$61,$F$2:$G$48,2,FALSE)+ROW()-2)),\"\")","v":{"$error":"#N/A"}},{"$f":"IF(INDIRECT(\"c\" & (VLOOKUP(Rebalance!$D$62,$F$2:$G$48,2,FALSE)+ROW()-2))=Rebalance!$D$62,INDIRECT(\"a\" & (VLOOKUP(Rebalance!$D$62,$F$2:$G$48,2,FALSE)+ROW()-2)),\"\")","v":{"$error":"#N/A"}},{"$f":"IF(INDIRECT(\"c\" & (VLOOKUP(Rebalance!$D$63,$F$2:$G$48,2,FALSE)+ROW()-2))=Rebalance!$D$63,INDIRECT(\"a\" & (VLOOKUP(Rebalance!$D$63,$F$2:$G$48,2,FALSE)+ROW()-2)),\"\")","v":{"$error":"#N/A"}},{"$f":"IF(INDIRECT(\"c\" & (VLOOKUP(Rebalance!$D$64,$F$2:$G$48,2,FALSE)+ROW()-2))=Rebalance!$D$64,INDIRECT(\"a\" & (VLOOKUP(Rebalance!$D$64,$F$2:$G$48,2,FALSE)+ROW()-2)),\"\")","v":{"$error":"#N/A"}},{"$f":"IF(INDIRECT(\"c\" & (VLOOKUP(Rebalance!$D$65,$F$2:$G$48,2,FALSE)+ROW()-2))=Rebalance!$D$65,INDIRECT(\"a\" & (VLOOKUP(Rebalance!$D$65,$F$2:$G$48,2,FALSE)+ROW()-2)),\"\")","v":{"$error":"#N/A"}},{"$f":"IF(INDIRECT(\"c\" & (VLOOKUP(Rebalance!$D$66,$F$2:$G$48,2,FALSE)+ROW()-2))=Rebalance!$D$66,INDIRECT(\"a\" & (VLOOKUP(Rebalance!$D$66,$F$2:$G$48,2,FALSE)+ROW()-2)),\"\")","v":{"$error":"#N/A"}}]
["PSG Wealth Income FoF A","PAID","PSG Collective Investments Ltd",{"$f":"ROW()","v":491},null,null,{"$f":"VLOOKUP(F491,$C$2:$D$599,2,FALSE)","v":{"$error":"#N/A"}},{"$f":"IF(INDIRECT(\"c\" & (VLOOKUP(Rebalance!$D$26,$F$2:$G$48,2,FALSE)+ROW()-2))=Rebalance!$D$26,INDIRECT(\"a\" & (VLOOKUP(Rebalance!$D$26,$F$2:$G$48,2,FALSE)+ROW()-2)),\"\")","v":{"$error":"#N/A"}},{"$f":"IF(INDIRECT(\"c\" & (VLOOKUP(Rebalance!$D$27,$F$2:$G$48,2,FALSE)+ROW()-2))=Rebalance!$D$27,INDIRECT(\"a\" & (VLOOKUP(Rebalance!$D$27,$F$2:$G$48,2,FALSE)+ROW()-2)),\"\")","v":{"$error":"#N/A"}},{"$f":"IF(INDIRECT(\"c\" & (VLOOKUP(Rebalance!$D$28,$F$2:$G$48,2,FALSE)+ROW()-2))=Rebalance!$D$28,INDIRECT(\"a\" & (VLOOKUP(Rebalance!$D$28,$F$2:$G$48,2,FALSE)+ROW()-2)),\"\")","v":{"$error":"#N/A"}},{"$f":"IF(INDIRECT(\"c\" & (VLOOKUP(Rebalance!$D$29,$F$2:$G$48,2,FALSE)+ROW()-2))=Rebalance!$D$29,INDIRECT(\"a\" & (VLOOKUP(Rebalance!$D$29,$F$2:$G$48,2,FALSE)+ROW()-2)),\"\")","v":{"$error":"#N/A"}},{"$f":"IF(INDIRECT(\"c\" & (VLOOKUP(Rebalance!$D$30,$F$2:$G$48,2,FALSE)+ROW()-2))=Rebalance!$D$30,INDIRECT(\"a\" & (VLOOKUP(Rebalance!$D$30,$F$2:$G$48,2,FALSE)+ROW()-2)),\"\")","v":{"$error":"#N/A"}},{"$f":"IF(INDIRECT(\"c\" & (VLOOKUP(Rebalance!$D$31,$F$2:$G$48,2,FALSE)+ROW()-2))=Rebalance!$D$31,INDIRECT(\"a\" & (VLOOKUP(Rebalance!$D$31,$F$2:$G$48,2,FALSE)+ROW()-2)),\"\")","v":{"$error":"#N/A"}},{"$f":"IF(INDIRECT(\"c\" & (VLOOKUP(Rebalance!$D$32,$F$2:$G$48,2,FALSE)+ROW()-2))=Rebalance!$D$32,INDIRECT(\"a\" & (VLOOKUP(Rebalance!$D$32,$F$2:$G$48,2,FALSE)+ROW()-2)),\"\")","v":{"$error":"#N/A"}},{"$f":"IF(INDIRECT(\"c\" & (VLOOKUP(Rebalance!$D$33,$F$2:$G$48,2,FALSE)+ROW()-2))=Rebalance!$D$33,INDIRECT(\"a\" & (VLOOKUP(Rebalance!$D$33,$F$2:$G$48,2,FALSE)+ROW()-2)),\"\")","v":{"$error":"#N/A"}},{"$f":"IF(INDIRECT(\"c\" & (VLOOKUP(Rebalance!$D$34,$F$2:$G$48,2,FALSE)+ROW()-2))=Rebalance!$D$34,INDIRECT(\"a\" & (VLOOKUP(Rebalance!$D$34,$F$2:$G$48,2,FALSE)+ROW()-2)),\"\")","v":{"$error":"#N/A"}},{"$f":"IF(INDIRECT(\"c\" & (VLOOKUP(Rebalance!$D$35,$F$2:$G$48,2,FALSE)+ROW()-2))=Rebalance!$D$35,INDIRECT(\"a\" & (VLOOKUP(Rebalance!$D$35,$F$2:$G$48,2,FALSE)+ROW()-2)),\"\")","v":{"$error":"#N/A"}},{"$f":"IF(INDIRECT(\"c\" & (VLOOKUP(Rebalance!$D$36,$F$2:$G$48,2,FALSE)+ROW()-2))=Rebalance!$D$36,INDIRECT(\"a\" & (VLOOKUP(Rebalance!$D$36,$F$2:$G$48,2,FALSE)+ROW()-2)),\"\")","v":{"$error":"#N/A"}},{"$f":"IF(INDIRECT(\"c\" & (VLOOKUP(Rebalance!$D$37,$F$2:$G$48,2,FALSE)+ROW()-2))=Rebalance!$D$37,INDIRECT(\"a\" & (VLOOKUP(Rebalance!$D$37,$F$2:$G$48,2,FALSE)+ROW()-2)),\"\")","v":{"$error":"#N/A"}},{"$f":"IF(INDIRECT(\"c\" & (VLOOKUP(Rebalance!$D$38,$F$2:$G$48,2,FALSE)+ROW()-2))=Rebalance!$D$38,INDIRECT(\"a\" & (VLOOKUP(Rebalance!$D$38,$F$2:$G$48,2,FALSE)+ROW()-2)),\"\")","v":{"$error":"#N/A"}},{"$f":"IF(INDIRECT(\"c\" & (VLOOKUP(Rebalance!$D$39,$F$2:$G$48,2,FALSE)+ROW()-2))=Rebalance!$D$39,INDIRECT(\"a\" & (VLOOKUP(Rebalance!$D$39,$F$2:$G$48,2,FALSE)+ROW()-2)),\"\")","v":{"$error":"#N/A"}},{"$f":"IF(INDIRECT(\"c\" & (VLOOKUP(Rebalance!$D$40,$F$2:$G$48,2,FALSE)+ROW()-2))=Rebalance!$D$40,INDIRECT(\"a\" & (VLOOKUP(Rebalance!$D$40,$F$2:$G$48,2,FALSE)+ROW()-2)),\"\")","v":{"$error":"#N/A"}},{"$f":"IF(INDIRECT(\"c\" & (VLOOKUP(Rebalance!$D$52,$F$2:$G$48,2,FALSE)+ROW()-2))=Rebalance!$D$52,INDIRECT(\"a\" & (VLOOKUP(Rebalance!$D$52,$F$2:$G$48,2,FALSE)+ROW()-2)),\"\")","v":{"$error":"#N/A"}},{"$f":"IF(INDIRECT(\"c\" & (VLOOKUP(Rebalance!$D$53,$F$2:$G$48,2,FALSE)+ROW()-2))=Rebalance!$D$53,INDIRECT(\"a\" & (VLOOKUP(Rebalance!$D$53,$F$2:$G$48,2,FALSE)+ROW()-2)),\"\")","v":{"$error":"#N/A"}},{"$f":"IF(INDIRECT(\"c\" & (VLOOKUP(Rebalance!$D$54,$F$2:$G$48,2,FALSE)+ROW()-2))=Rebalance!$D$54,INDIRECT(\"a\" & (VLOOKUP(Rebalance!$D$54,$F$2:$G$48,2,FALSE)+ROW()-2)),\"\")","v":{"$error":"#N/A"}},{"$f":"IF(INDIRECT(\"c\" & (VLOOKUP(Rebalance!$D$55,$F$2:$G$48,2,FALSE)+ROW()-2))=Rebalance!$D$55,INDIRECT(\"a\" & (VLOOKUP(Rebalance!$D$55,$F$2:$G$48,2,FALSE)+ROW()-2)),\"\")","v":{"$error":"#N/A"}},{"$f":"IF(INDIRECT(\"c\" & (VLOOKUP(Rebalance!$D$56,$F$2:$G$48,2,FALSE)+ROW()-2))=Rebalance!$D$56,INDIRECT(\"a\" & (VLOOKUP(Rebalance!$D$56,$F$2:$G$48,2,FALSE)+ROW()-2)),\"\")","v":{"$error":"#N/A"}},{"$f":"IF(INDIRECT(\"c\" & (VLOOKUP(Rebalance!$D$57,$F$2:$G$48,2,FALSE)+ROW()-2))=Rebalance!$D$57,INDIRECT(\"a\" & (VLOOKUP(Rebalance!$D$57,$F$2:$G$48,2,FALSE)+ROW()-2)),\"\")","v":{"$error":"#N/A"}},{"$f":"IF(INDIRECT(\"c\" & (VLOOKUP(Rebalance!$D$58,$F$2:$G$48,2,FALSE)+ROW()-2))=Rebalance!$D$58,INDIRECT(\"a\" & (VLOOKUP(Rebalance!$D$58,$F$2:$G$48,2,FALSE)+ROW()-2)),\"\")","v":{"$error":"#N/A"}},{"$f":"IF(INDIRECT(\"c\" & (VLOOKUP(Rebalance!$D$59,$F$2:$G$48,2,FALSE)+ROW()-2))=Rebalance!$D$59,INDIRECT(\"a\" & (VLOOKUP(Rebalance!$D$59,$F$2:$G$48,2,FALSE)+ROW()-2)),\"\")","v":{"$error":"#N/A"}},{"$f":"IF(INDIRECT(\"c\" & (VLOOKUP(Rebalance!$D$60,$F$2:$G$48,2,FALSE)+ROW()-2))=Rebalance!$D$60,INDIRECT(\"a\" & (VLOOKUP(Rebalance!$D$60,$F$2:$G$48,2,FALSE)+ROW()-2)),\"\")","v":{"$error":"#N/A"}},{"$f":"IF(INDIRECT(\"c\" & (VLOOKUP(Rebalance!$D$61,$F$2:$G$48,2,FALSE)+ROW()-2))=Rebalance!$D$61,INDIRECT(\"a\" & (VLOOKUP(Rebalance!$D$61,$F$2:$G$48,2,FALSE)+ROW()-2)),\"\")","v":{"$error":"#N/A"}},{"$f":"IF(INDIRECT(\"c\" & (VLOOKUP(Rebalance!$D$62,$F$2:$G$48,2,FALSE)+ROW()-2))=Rebalance!$D$62,INDIRECT(\"a\" & (VLOOKUP(Rebalance!$D$62,$F$2:$G$48,2,FALSE)+ROW()-2)),\"\")","v":{"$error":"#N/A"}},{"$f":"IF(INDIRECT(\"c\" & (VLOOKUP(Rebalance!$D$63,$F$2:$G$48,2,FALSE)+ROW()-2))=Rebalance!$D$63,INDIRECT(\"a\" & (VLOOKUP(Rebalance!$D$63,$F$2:$G$48,2,FALSE)+ROW()-2)),\"\")","v":{"$error":"#N/A"}},{"$f":"IF(INDIRECT(\"c\" & (VLOOKUP(Rebalance!$D$64,$F$2:$G$48,2,FALSE)+ROW()-2))=Rebalance!$D$64,INDIRECT(\"a\" & (VLOOKUP(Rebalance!$D$64,$F$2:$G$48,2,FALSE)+ROW()-2)),\"\")","v":{"$error":"#N/A"}},{"$f":"IF(INDIRECT(\"c\" & (VLOOKUP(Rebalance!$D$65,$F$2:$G$48,2,FALSE)+ROW()-2))=Rebalance!$D$65,INDIRECT(\"a\" & (VLOOKUP(Rebalance!$D$65,$F$2:$G$48,2,FALSE)+ROW()-2)),\"\")","v":{"$error":"#N/A"}},{"$f":"IF(INDIRECT(\"c\" & (VLOOKUP(Rebalance!$D$66,$F$2:$G$48,2,FALSE)+ROW()-2))=Rebalance!$D$66,INDIRECT(\"a\" & (VLOOKUP(Rebalance!$D$66,$F$2:$G$48,2,FALSE)+ROW()-2)),\"\")","v":{"$error":"#N/A"}}]
["PSG Wealth Income FoF B","PAID","PSG Collective Investments Ltd",{"$f":"ROW()","v":492},null,null,{"$f":"VLOOKUP(F492,$C$2:$D$599,2,FALSE)","v":{"$error":"#N/A"}},{"$f":"IF(INDIRECT(\"c\" & (VLOOKUP(Rebalance!$D$26,$F$2:$G$48,2,FALSE)+ROW()-2))=Rebalance!$D$26,INDIRECT(\"a\" & (VLOOKUP(Rebalance!$D$26,$F$2:$G$48,2,FALSE)+ROW()-2)),\"\")","v":{"$error":"#N/A"}},{"$f":"IF(INDIRECT(\"c\" & (VLOOKUP(Rebalance!$D$27,$F$2:$G$48,2,FALSE)+ROW()-2))=Rebalance!$D$27,INDIRECT(\"a\" & (VLOOKUP(Rebalance!$D$27,$F$2:$G$48,2,FALSE)+ROW()-2)),\"\")","v":{"$error":"#N/A"}},{"$f":"IF(INDIRECT(\"c\" & (VLOOKUP(Rebalance!$D$28,$F$2:$G$48,2,FALSE)+ROW()-2))=Rebalance!$D$28,INDIRECT(\"a\" & (VLOOKUP(Rebalance!$D$28,$F$2:$G$48,2,FALSE)+ROW()-2)),\"\")","v":{"$error":"#N/A"}},{"$f":"IF(INDIRECT(\"c\" & (VLOOKUP(Rebalance!$D$29,$F$2:$G$48,2,FALSE)+ROW()-2))=Rebalance!$D$29,INDIRECT(\"a\" & (VLOOKUP(Rebalance!$D$29,$F$2:$G$48,2,FALSE)+ROW()-2)),\"\")","v":{"$error":"#N/A"}},{"$f":"IF(INDIRECT(\"c\" & (VLOOKUP(Rebalance!$D$30,$F$2:$G$48,2,FALSE)+ROW()-2))=Rebalance!$D$30,INDIRECT(\"a\" & (VLOOKUP(Rebalance!$D$30,$F$2:$G$48,2,FALSE)+ROW()-2)),\"\")","v":{"$error":"#N/A"}},{"$f":"IF(INDIRECT(\"c\" & (VLOOKUP(Rebalance!$D$31,$F$2:$G$48,2,FALSE)+ROW()-2))=Rebalance!$D$31,INDIRECT(\"a\" & (VLOOKUP(Rebalance!$D$31,$F$2:$G$48,2,FALSE)+ROW()-2)),\"\")","v":{"$error":"#N/A"}},{"$f":"IF(INDIRECT(\"c\" & (VLOOKUP(Rebalance!$D$32,$F$2:$G$48,2,FALSE)+ROW()-2))=Rebalance!$D$32,INDIRECT(\"a\" & (VLOOKUP(Rebalance!$D$32,$F$2:$G$48,2,FALSE)+ROW()-2)),\"\")","v":{"$error":"#N/A"}},{"$f":"IF(INDIRECT(\"c\" & (VLOOKUP(Rebalance!$D$33,$F$2:$G$48,2,FALSE)+ROW()-2))=Rebalance!$D$33,INDIRECT(\"a\" & (VLOOKUP(Rebalance!$D$33,$F$2:$G$48,2,FALSE)+ROW()-2)),\"\")","v":{"$error":"#N/A"}},{"$f":"IF(INDIRECT(\"c\" & (VLOOKUP(Rebalance!$D$34,$F$2:$G$48,2,FALSE)+ROW()-2))=Rebalance!$D$34,INDIRECT(\"a\" & (VLOOKUP(Rebalance!$D$34,$F$2:$G$48,2,FALSE)+ROW()-2)),\"\")","v":{"$error":"#N/A"}},{"$f":"IF(INDIRECT(\"c\" & (VLOOKUP(Rebalance!$D$35,$F$2:$G$48,2,FALSE)+ROW()-2))=Rebalance!$D$35,INDIRECT(\"a\" & (VLOOKUP(Rebalance!$D$35,$F$2:$G$48,2,FALSE)+ROW()-2)),\"\")","v":{"$error":"#N/A"}},{"$f":"IF(INDIRECT(\"c\" & (VLOOKUP(Rebalance!$D$36,$F$2:$G$48,2,FALSE)+ROW()-2))=Rebalance!$D$36,INDIRECT(\"a\" & (VLOOKUP(Rebalance!$D$36,$F$2:$G$48,2,FALSE)+ROW()-2)),\"\")","v":{"$error":"#N/A"}},{"$f":"IF(INDIRECT(\"c\" & (VLOOKUP(Rebalance!$D$37,$F$2:$G$48,2,FALSE)+ROW()-2))=Rebalance!$D$37,INDIRECT(\"a\" & (VLOOKUP(Rebalance!$D$37,$F$2:$G$48,2,FALSE)+ROW()-2)),\"\")","v":{"$error":"#N/A"}},{"$f":"IF(INDIRECT(\"c\" & (VLOOKUP(Rebalance!$D$38,$F$2:$G$48,2,FALSE)+ROW()-2))=Rebalance!$D$38,INDIRECT(\"a\" & (VLOOKUP(Rebalance!$D$38,$F$2:$G$48,2,FALSE)+ROW()-2)),\"\")","v":{"$error":"#N/A"}},{"$f":"IF(INDIRECT(\"c\" & (VLOOKUP(Rebalance!$D$39,$F$2:$G$48,2,FALSE)+ROW()-2))=Rebalance!$D$39,INDIRECT(\"a\" & (VLOOKUP(Rebalance!$D$39,$F$2:$G$48,2,FALSE)+ROW()-2)),\"\")","v":{"$error":"#N/A"}},{"$f":"IF(INDIRECT(\"c\" & (VLOOKUP(Rebalance!$D$40,$F$2:$G$48,2,FALSE)+ROW()-2))=Rebalance!$D$40,INDIRECT(\"a\" & (VLOOKUP(Rebalance!$D$40,$F$2:$G$48,2,FALSE)+ROW()-2)),\"\")","v":{"$error":"#N/A"}},{"$f":"IF(INDIRECT(\"c\" & (VLOOKUP(Rebalance!$D$52,$F$2:$G$48,2,FALSE)+ROW()-2))=Rebalance!$D$52,INDIRECT(\"a\" & (VLOOKUP(Rebalance!$D$52,$F$2:$G$48,2,FALSE)+ROW()-2)),\"\")","v":{"$error":"#N/A"}},{"$f":"IF(INDIRECT(\"c\" & (VLOOKUP(Rebalance!$D$53,$F$2:$G$48,2,FALSE)+ROW()-2))=Rebalance!$D$53,INDIRECT(\"a\" & (VLOOKUP(Rebalance!$D$53,$F$2:$G$48,2,FALSE)+ROW()-2)),\"\")","v":{"$error":"#N/A"}},{"$f":"IF(INDIRECT(\"c\" & (VLOOKUP(Rebalance!$D$54,$F$2:$G$48,2,FALSE)+ROW()-2))=Rebalance!$D$54,INDIRECT(\"a\" & (VLOOKUP(Rebalance!$D$54,$F$2:$G$48,2,FALSE)+ROW()-2)),\"\")","v":{"$error":"#N/A"}},{"$f":"IF(INDIRECT(\"c\" & (VLOOKUP(Rebalance!$D$55,$F$2:$G$48,2,FALSE)+ROW()-2))=Rebalance!$D$55,INDIRECT(\"a\" & (VLOOKUP(Rebalance!$D$55,$F$2:$G$48,2,FALSE)+ROW()-2)),\"\")","v":{"$error":"#N/A"}},{"$f":"IF(INDIRECT(\"c\" & (VLOOKUP(Rebalance!$D$56,$F$2:$G$48,2,FALSE)+ROW()-2))=Rebalance!$D$56,INDIRECT(\"a\" & (VLOOKUP(Rebalance!$D$56,$F$2:$G$48,2,FALSE)+ROW()-2)),\"\")","v":{"$error":"#N/A"}},{"$f":"IF(INDIRECT(\"c\" & (VLOOKUP(Rebalance!$D$57,$F$2:$G$48,2,FALSE)+ROW()-2))=Rebalance!$D$57,INDIRECT(\"a\" & (VLOOKUP(Rebalance!$D$57,$F$2:$G$48,2,FALSE)+ROW()-2)),\"\")","v":{"$error":"#N/A"}},{"$f":"IF(INDIRECT(\"c\" & (VLOOKUP(Rebalance!$D$58,$F$2:$G$48,2,FALSE)+ROW()-2))=Rebalance!$D$58,INDIRECT(\"a\" & (VLOOKUP(Rebalance!$D$58,$F$2:$G$48,2,FALSE)+ROW()-2)),\"\")","v":{"$error":"#N/A"}},{"$f":"IF(INDIRECT(\"c\" & (VLOOKUP(Rebalance!$D$59,$F$2:$G$48,2,FALSE)+ROW()-2))=Rebalance!$D$59,INDIRECT(\"a\" & (VLOOKUP(Rebalance!$D$59,$F$2:$G$48,2,FALSE)+ROW()-2)),\"\")","v":{"$error":"#N/A"}},{"$f":"IF(INDIRECT(\"c\" & (VLOOKUP(Rebalance!$D$60,$F$2:$G$48,2,FALSE)+ROW()-2))=Rebalance!$D$60,INDIRECT(\"a\" & (VLOOKUP(Rebalance!$D$60,$F$2:$G$48,2,FALSE)+ROW()-2)),\"\")","v":{"$error":"#N/A"}},{"$f":"IF(INDIRECT(\"c\" & (VLOOKUP(Rebalance!$D$61,$F$2:$G$48,2,FALSE)+ROW()-2))=Rebalance!$D$61,INDIRECT(\"a\" & (VLOOKUP(Rebalance!$D$61,$F$2:$G$48,2,FALSE)+ROW()-2)),\"\")","v":{"$error":"#N/A"}},{"$f":"IF(INDIRECT(\"c\" & (VLOOKUP(Rebalance!$D$62,$F$2:$G$48,2,FALSE)+ROW()-2))=Rebalance!$D$62,INDIRECT(\"a\" & (VLOOKUP(Rebalance!$D$62,$F$2:$G$48,2,FALSE)+ROW()-2)),\"\")","v":{"$error":"#N/A"}},{"$f":"IF(INDIRECT(\"c\" & (VLOOKUP(Rebalance!$D$63,$F$2:$G$48,2,FALSE)+ROW()-2))=Rebalance!$D$63,INDIRECT(\"a\" & (VLOOKUP(Rebalance!$D$63,$F$2:$G$48,2,FALSE)+ROW()-2)),\"\")","v":{"$error":"#N/A"}},{"$f":"IF(INDIRECT(\"c\" & (VLOOKUP(Rebalance!$D$64,$F$2:$G$48,2,FALSE)+ROW()-2))=Rebalance!$D$64,INDIRECT(\"a\" & (VLOOKUP(Rebalance!$D$64,$F$2:$G$48,2,FALSE)+ROW()-2)),\"\")","v":{"$error":"#N/A"}},{"$f":"IF(INDIRECT(\"c\" & (VLOOKUP(Rebalance!$D$65,$F$2:$G$48,2,FALSE)+ROW()-2))=Rebalance!$D$65,INDIRECT(\"a\" & (VLOOKUP(Rebalance!$D$65,$F$2:$G$48,2,FALSE)+ROW()-2)),\"\")","v":{"$error":"#N/A"}},{"$f":"IF(INDIRECT(\"c\" & (VLOOKUP(Rebalance!$D$66,$F$2:$G$48,2,FALSE)+ROW()-2))=Rebalance!$D$66,INDIRECT(\"a\" & (VLOOKUP(Rebalance!$D$66,$F$2:$G$48,2,FALSE)+ROW()-2)),\"\")","v":{"$error":"#N/A"}}]
["PSG Wealth Income FoF D","PAID","PSG Collective Investments Ltd",{"$f":"ROW()","v":493},null,null,{"$f":"VLOOKUP(F493,$C$2:$D$599,2,FALSE)","v":{"$error":"#N/A"}},{"$f":"IF(INDIRECT(\"c\" & (VLOOKUP(Rebalance!$D$26,$F$2:$G$48,2,FALSE)+ROW()-2))=Rebalance!$D$26,INDIRECT(\"a\" & (VLOOKUP(Rebalance!$D$26,$F$2:$G$48,2,FALSE)+ROW()-2)),\"\")","v":{"$error":"#N/A"}},{"$f":"IF(INDIRECT(\"c\" & (VLOOKUP(Rebalance!$D$27,$F$2:$G$48,2,FALSE)+ROW()-2))=Rebalance!$D$27,INDIRECT(\"a\" & (VLOOKUP(Rebalance!$D$27,$F$2:$G$48,2,FALSE)+ROW()-2)),\"\")","v":{"$error":"#N/A"}},{"$f":"IF(INDIRECT(\"c\" & (VLOOKUP(Rebalance!$D$28,$F$2:$G$48,2,FALSE)+ROW()-2))=Rebalance!$D$28,INDIRECT(\"a\" & (VLOOKUP(Rebalance!$D$28,$F$2:$G$48,2,FALSE)+ROW()-2)),\"\")","v":{"$error":"#N/A"}},{"$f":"IF(INDIRECT(\"c\" & (VLOOKUP(Rebalance!$D$29,$F$2:$G$48,2,FALSE)+ROW()-2))=Rebalance!$D$29,INDIRECT(\"a\" & (VLOOKUP(Rebalance!$D$29,$F$2:$G$48,2,FALSE)+ROW()-2)),\"\")","v":{"$error":"#N/A"}},{"$f":"IF(INDIRECT(\"c\" & (VLOOKUP(Rebalance!$D$30,$F$2:$G$48,2,FALSE)+ROW()-2))=Rebalance!$D$30,INDIRECT(\"a\" & (VLOOKUP(Rebalance!$D$30,$F$2:$G$48,2,FALSE)+ROW()-2)),\"\")","v":{"$error":"#N/A"}},{"$f":"IF(INDIRECT(\"c\" & (VLOOKUP(Rebalance!$D$31,$F$2:$G$48,2,FALSE)+ROW()-2))=Rebalance!$D$31,INDIRECT(\"a\" & (VLOOKUP(Rebalance!$D$31,$F$2:$G$48,2,FALSE)+ROW()-2)),\"\")","v":{"$error":"#N/A"}},{"$f":"IF(INDIRECT(\"c\" & (VLOOKUP(Rebalance!$D$32,$F$2:$G$48,2,FALSE)+ROW()-2))=Rebalance!$D$32,INDIRECT(\"a\" & (VLOOKUP(Rebalance!$D$32,$F$2:$G$48,2,FALSE)+ROW()-2)),\"\")","v":{"$error":"#N/A"}},{"$f":"IF(INDIRECT(\"c\" & (VLOOKUP(Rebalance!$D$33,$F$2:$G$48,2,FALSE)+ROW()-2))=Rebalance!$D$33,INDIRECT(\"a\" & (VLOOKUP(Rebalance!$D$33,$F$2:$G$48,2,FALSE)+ROW()-2)),\"\")","v":{"$error":"#N/A"}},{"$f":"IF(INDIRECT(\"c\" & (VLOOKUP(Rebalance!$D$34,$F$2:$G$48,2,FALSE)+ROW()-2))=Rebalance!$D$34,INDIRECT(\"a\" & (VLOOKUP(Rebalance!$D$34,$F$2:$G$48,2,FALSE)+ROW()-2)),\"\")","v":{"$error":"#N/A"}},{"$f":"IF(INDIRECT(\"c\" & (VLOOKUP(Rebalance!$D$35,$F$2:$G$48,2,FALSE)+ROW()-2))=Rebalance!$D$35,INDIRECT(\"a\" & (VLOOKUP(Rebalance!$D$35,$F$2:$G$48,2,FALSE)+ROW()-2)),\"\")","v":{"$error":"#N/A"}},{"$f":"IF(INDIRECT(\"c\" & (VLOOKUP(Rebalance!$D$36,$F$2:$G$48,2,FALSE)+ROW()-2))=Rebalance!$D$36,INDIRECT(\"a\" & (VLOOKUP(Rebalance!$D$36,$F$2:$G$48,2,FALSE)+ROW()-2)),\"\")","v":{"$error":"#N/A"}},{"$f":"IF(INDIRECT(\"c\" & (VLOOKUP(Rebalance!$D$37,$F$2:$G$48,2,FALSE)+ROW()-2))=Rebalance!$D$37,INDIRECT(\"a\" & (VLOOKUP(Rebalance!$D$37,$F$2:$G$48,2,FALSE)+ROW()-2)),\"\")","v":{"$error":"#N/A"}},{"$f":"IF(INDIRECT(\"c\" & (VLOOKUP(Rebalance!$D$38,$F$2:$G$48,2,FALSE)+ROW()-2))=Rebalance!$D$38,INDIRECT(\"a\" & (VLOOKUP(Rebalance!$D$38,$F$2:$G$48,2,FALSE)+ROW()-2)),\"\")","v":{"$error":"#N/A"}},{"$f":"IF(INDIRECT(\"c\" & (VLOOKUP(Rebalance!$D$39,$F$2:$G$48,2,FALSE)+ROW()-2))=Rebalance!$D$39,INDIRECT(\"a\" & (VLOOKUP(Rebalance!$D$39,$F$2:$G$48,2,FALSE)+ROW()-2)),\"\")","v":{"$error":"#N/A"}},{"$f":"IF(INDIRECT(\"c\" & (VLOOKUP(Rebalance!$D$40,$F$2:$G$48,2,FALSE)+ROW()-2))=Rebalance!$D$40,INDIRECT(\"a\" & (VLOOKUP(Rebalance!$D$40,$F$2:$G$48,2,FALSE)+ROW()-2)),\"\")","v":{"$error":"#N/A"}},{"$f":"IF(INDIRECT(\"c\" & (VLOOKUP(Rebalance!$D$52,$F$2:$G$48,2,FALSE)+ROW()-2))=Rebalance!$D$52,INDIRECT(\"a\" & (VLOOKUP(Rebalance!$D$52,$F$2:$G$48,2,FALSE)+ROW()-2)),\"\")","v":{"$error":"#N/A"}},{"$f":"IF(INDIRECT(\"c\" & (VLOOKUP(Rebalance!$D$53,$F$2:$G$48,2,FALSE)+ROW()-2))=Rebalance!$D$53,INDIRECT(\"a\" & (VLOOKUP(Rebalance!$D$53,$F$2:$G$48,2,FALSE)+ROW()-2)),\"\")","v":{"$error":"#N/A"}},{"$f":"IF(INDIRECT(\"c\" & (VLOOKUP(Rebalance!$D$54,$F$2:$G$48,2,FALSE)+ROW()-2))=Rebalance!$D$54,INDIRECT(\"a\" & (VLOOKUP(Rebalance!$D$54,$F$2:$G$48,2,FALSE)+ROW()-2)),\"\")","v":{"$error":"#N/A"}},{"$f":"IF(INDIRECT(\"c\" & (VLOOKUP(Rebalance!$D$55,$F$2:$G$48,2,FALSE)+ROW()-2))=Rebalance!$D$55,INDIRECT(\"a\" & (VLOOKUP(Rebalance!$D$55,$F$2:$G$48,2,FALSE)+ROW()-2)),\"\")","v":{"$error":"#N/A"}},{"$f":"IF(INDIRECT(\"c\" & (VLOOKUP(Rebalance!$D$56,$F$2:$G$48,2,FALSE)+ROW()-2))=Rebalance!$D$56,INDIRECT(\"a\" & (VLOOKUP(Rebalance!$D$56,$F$2:$G$48,2,FALSE)+ROW()-2)),\"\")","v":{"$error":"#N/A"}},{"$f":"IF(INDIRECT(\"c\" & (VLOOKUP(Rebalance!$D$57,$F$2:$G$48,2,FALSE)+ROW()-2))=Rebalance!$D$57,INDIRECT(\"a\" & (VLOOKUP(Rebalance!$D$57,$F$2:$G$48,2,FALSE)+ROW()-2)),\"\")","v":{"$error":"#N/A"}},{"$f":"IF(INDIRECT(\"c\" & (VLOOKUP(Rebalance!$D$58,$F$2:$G$48,2,FALSE)+ROW()-2))=Rebalance!$D$58,INDIRECT(\"a\" & (VLOOKUP(Rebalance!$D$58,$F$2:$G$48,2,FALSE)+ROW()-2)),\"\")","v":{"$error":"#N/A"}},{"$f":"IF(INDIRECT(\"c\" & (VLOOKUP(Rebalance!$D$59,$F$2:$G$48,2,FALSE)+ROW()-2))=Rebalance!$D$59,INDIRECT(\"a\" & (VLOOKUP(Rebalance!$D$59,$F$2:$G$48,2,FALSE)+ROW()-2)),\"\")","v":{"$error":"#N/A"}},{"$f":"IF(INDIRECT(\"c\" & (VLOOKUP(Rebalance!$D$60,$F$2:$G$48,2,FALSE)+ROW()-2))=Rebalance!$D$60,INDIRECT(\"a\" & (VLOOKUP(Rebalance!$D$60,$F$2:$G$48,2,FALSE)+ROW()-2)),\"\")","v":{"$error":"#N/A"}},{"$f":"IF(INDIRECT(\"c\" & (VLOOKUP(Rebalance!$D$61,$F$2:$G$48,2,FALSE)+ROW()-2))=Rebalance!$D$61,INDIRECT(\"a\" & (VLOOKUP(Rebalance!$D$61,$F$2:$G$48,2,FALSE)+ROW()-2)),\"\")","v":{"$error":"#N/A"}},{"$f":"IF(INDIRECT(\"c\" & (VLOOKUP(Rebalance!$D$62,$F$2:$G$48,2,FALSE)+ROW()-2))=Rebalance!$D$62,INDIRECT(\"a\" & (VLOOKUP(Rebalance!$D$62,$F$2:$G$48,2,FALSE)+ROW()-2)),\"\")","v":{"$error":"#N/A"}},{"$f":"IF(INDIRECT(\"c\" & (VLOOKUP(Rebalance!$D$63,$F$2:$G$48,2,FALSE)+ROW()-2))=Rebalance!$D$63,INDIRECT(\"a\" & (VLOOKUP(Rebalance!$D$63,$F$2:$G$48,2,FALSE)+ROW()-2)),\"\")","v":{"$error":"#N/A"}},{"$f":"IF(INDIRECT(\"c\" & (VLOOKUP(Rebalance!$D$64,$F$2:$G$48,2,FALSE)+ROW()-2))=Rebalance!$D$64,INDIRECT(\"a\" & (VLOOKUP(Rebalance!$D$64,$F$2:$G$48,2,FALSE)+ROW()-2)),\"\")","v":{"$error":"#N/A"}},{"$f":"IF(INDIRECT(\"c\" & (VLOOKUP(Rebalance!$D$65,$F$2:$G$48,2,FALSE)+ROW()-2))=Rebalance!$D$65,INDIRECT(\"a\" & (VLOOKUP(Rebalance!$D$65,$F$2:$G$48,2,FALSE)+ROW()-2)),\"\")","v":{"$error":"#N/A"}},{"$f":"IF(INDIRECT(\"c\" & (VLOOKUP(Rebalance!$D$66,$F$2:$G$48,2,FALSE)+ROW()-2))=Rebalance!$D$66,INDIRECT(\"a\" & (VLOOKUP(Rebalance!$D$66,$F$2:$G$48,2,FALSE)+ROW()-2)),\"\")","v":{"$error":"#N/A"}}]
["PSG Wealth Moderate FoF A","PWMD","PSG Collective Investments Ltd",{"$f":"ROW()","v":494},null,null,{"$f":"VLOOKUP(F494,$C$2:$D$599,2,FALSE)","v":{"$error":"#N/A"}},{"$f":"IF(INDIRECT(\"c\" & (VLOOKUP(Rebalance!$D$26,$F$2:$G$48,2,FALSE)+ROW()-2))=Rebalance!$D$26,INDIRECT(\"a\" & (VLOOKUP(Rebalance!$D$26,$F$2:$G$48,2,FALSE)+ROW()-2)),\"\")","v":{"$error":"#N/A"}},{"$f":"IF(INDIRECT(\"c\" & (VLOOKUP(Rebalance!$D$27,$F$2:$G$48,2,FALSE)+ROW()-2))=Rebalance!$D$27,INDIRECT(\"a\" & (VLOOKUP(Rebalance!$D$27,$F$2:$G$48,2,FALSE)+ROW()-2)),\"\")","v":{"$error":"#N/A"}},{"$f":"IF(INDIRECT(\"c\" & (VLOOKUP(Rebalance!$D$28,$F$2:$G$48,2,FALSE)+ROW()-2))=Rebalance!$D$28,INDIRECT(\"a\" & (VLOOKUP(Rebalance!$D$28,$F$2:$G$48,2,FALSE)+ROW()-2)),\"\")","v":{"$error":"#N/A"}},{"$f":"IF(INDIRECT(\"c\" & (VLOOKUP(Rebalance!$D$29,$F$2:$G$48,2,FALSE)+ROW()-2))=Rebalance!$D$29,INDIRECT(\"a\" & (VLOOKUP(Rebalance!$D$29,$F$2:$G$48,2,FALSE)+ROW()-2)),\"\")","v":{"$error":"#N/A"}},{"$f":"IF(INDIRECT(\"c\" & (VLOOKUP(Rebalance!$D$30,$F$2:$G$48,2,FALSE)+ROW()-2))=Rebalance!$D$30,INDIRECT(\"a\" & (VLOOKUP(Rebalance!$D$30,$F$2:$G$48,2,FALSE)+ROW()-2)),\"\")","v":{"$error":"#N/A"}},{"$f":"IF(INDIRECT(\"c\" & (VLOOKUP(Rebalance!$D$31,$F$2:$G$48,2,FALSE)+ROW()-2))=Rebalance!$D$31,INDIRECT(\"a\" & (VLOOKUP(Rebalance!$D$31,$F$2:$G$48,2,FALSE)+ROW()-2)),\"\")","v":{"$error":"#N/A"}},{"$f":"IF(INDIRECT(\"c\" & (VLOOKUP(Rebalance!$D$32,$F$2:$G$48,2,FALSE)+ROW()-2))=Rebalance!$D$32,INDIRECT(\"a\" & (VLOOKUP(Rebalance!$D$32,$F$2:$G$48,2,FALSE)+ROW()-2)),\"\")","v":{"$error":"#N/A"}},{"$f":"IF(INDIRECT(\"c\" & (VLOOKUP(Rebalance!$D$33,$F$2:$G$48,2,FALSE)+ROW()-2))=Rebalance!$D$33,INDIRECT(\"a\" & (VLOOKUP(Rebalance!$D$33,$F$2:$G$48,2,FALSE)+ROW()-2)),\"\")","v":{"$error":"#N/A"}},{"$f":"IF(INDIRECT(\"c\" & (VLOOKUP(Rebalance!$D$34,$F$2:$G$48,2,FALSE)+ROW()-2))=Rebalance!$D$34,INDIRECT(\"a\" & (VLOOKUP(Rebalance!$D$34,$F$2:$G$48,2,FALSE)+ROW()-2)),\"\")","v":{"$error":"#N/A"}},{"$f":"IF(INDIRECT(\"c\" & (VLOOKUP(Rebalance!$D$35,$F$2:$G$48,2,FALSE)+ROW()-2))=Rebalance!$D$35,INDIRECT(\"a\" & (VLOOKUP(Rebalance!$D$35,$F$2:$G$48,2,FALSE)+ROW()-2)),\"\")","v":{"$error":"#N/A"}},{"$f":"IF(INDIRECT(\"c\" & (VLOOKUP(Rebalance!$D$36,$F$2:$G$48,2,FALSE)+ROW()-2))=Rebalance!$D$36,INDIRECT(\"a\" & (VLOOKUP(Rebalance!$D$36,$F$2:$G$48,2,FALSE)+ROW()-2)),\"\")","v":{"$error":"#N/A"}},{"$f":"IF(INDIRECT(\"c\" & (VLOOKUP(Rebalance!$D$37,$F$2:$G$48,2,FALSE)+ROW()-2))=Rebalance!$D$37,INDIRECT(\"a\" & (VLOOKUP(Rebalance!$D$37,$F$2:$G$48,2,FALSE)+ROW()-2)),\"\")","v":{"$error":"#N/A"}},{"$f":"IF(INDIRECT(\"c\" & (VLOOKUP(Rebalance!$D$38,$F$2:$G$48,2,FALSE)+ROW()-2))=Rebalance!$D$38,INDIRECT(\"a\" & (VLOOKUP(Rebalance!$D$38,$F$2:$G$48,2,FALSE)+ROW()-2)),\"\")","v":{"$error":"#N/A"}},{"$f":"IF(INDIRECT(\"c\" & (VLOOKUP(Rebalance!$D$39,$F$2:$G$48,2,FALSE)+ROW()-2))=Rebalance!$D$39,INDIRECT(\"a\" & (VLOOKUP(Rebalance!$D$39,$F$2:$G$48,2,FALSE)+ROW()-2)),\"\")","v":{"$error":"#N/A"}},{"$f":"IF(INDIRECT(\"c\" & (VLOOKUP(Rebalance!$D$40,$F$2:$G$48,2,FALSE)+ROW()-2))=Rebalance!$D$40,INDIRECT(\"a\" & (VLOOKUP(Rebalance!$D$40,$F$2:$G$48,2,FALSE)+ROW()-2)),\"\")","v":{"$error":"#N/A"}},{"$f":"IF(INDIRECT(\"c\" & (VLOOKUP(Rebalance!$D$52,$F$2:$G$48,2,FALSE)+ROW()-2))=Rebalance!$D$52,INDIRECT(\"a\" & (VLOOKUP(Rebalance!$D$52,$F$2:$G$48,2,FALSE)+ROW()-2)),\"\")","v":{"$error":"#N/A"}},{"$f":"IF(INDIRECT(\"c\" & (VLOOKUP(Rebalance!$D$53,$F$2:$G$48,2,FALSE)+ROW()-2))=Rebalance!$D$53,INDIRECT(\"a\" & (VLOOKUP(Rebalance!$D$53,$F$2:$G$48,2,FALSE)+ROW()-2)),\"\")","v":{"$error":"#N/A"}},{"$f":"IF(INDIRECT(\"c\" & (VLOOKUP(Rebalance!$D$54,$F$2:$G$48,2,FALSE)+ROW()-2))=Rebalance!$D$54,INDIRECT(\"a\" & (VLOOKUP(Rebalance!$D$54,$F$2:$G$48,2,FALSE)+ROW()-2)),\"\")","v":{"$error":"#N/A"}},{"$f":"IF(INDIRECT(\"c\" & (VLOOKUP(Rebalance!$D$55,$F$2:$G$48,2,FALSE)+ROW()-2))=Rebalance!$D$55,INDIRECT(\"a\" & (VLOOKUP(Rebalance!$D$55,$F$2:$G$48,2,FALSE)+ROW()-2)),\"\")","v":{"$error":"#N/A"}},{"$f":"IF(INDIRECT(\"c\" & (VLOOKUP(Rebalance!$D$56,$F$2:$G$48,2,FALSE)+ROW()-2))=Rebalance!$D$56,INDIRECT(\"a\" & (VLOOKUP(Rebalance!$D$56,$F$2:$G$48,2,FALSE)+ROW()-2)),\"\")","v":{"$error":"#N/A"}},{"$f":"IF(INDIRECT(\"c\" & (VLOOKUP(Rebalance!$D$57,$F$2:$G$48,2,FALSE)+ROW()-2))=Rebalance!$D$57,INDIRECT(\"a\" & (VLOOKUP(Rebalance!$D$57,$F$2:$G$48,2,FALSE)+ROW()-2)),\"\")","v":{"$error":"#N/A"}},{"$f":"IF(INDIRECT(\"c\" & (VLOOKUP(Rebalance!$D$58,$F$2:$G$48,2,FALSE)+ROW()-2))=Rebalance!$D$58,INDIRECT(\"a\" & (VLOOKUP(Rebalance!$D$58,$F$2:$G$48,2,FALSE)+ROW()-2)),\"\")","v":{"$error":"#N/A"}},{"$f":"IF(INDIRECT(\"c\" & (VLOOKUP(Rebalance!$D$59,$F$2:$G$48,2,FALSE)+ROW()-2))=Rebalance!$D$59,INDIRECT(\"a\" & (VLOOKUP(Rebalance!$D$59,$F$2:$G$48,2,FALSE)+ROW()-2)),\"\")","v":{"$error":"#N/A"}},{"$f":"IF(INDIRECT(\"c\" & (VLOOKUP(Rebalance!$D$60,$F$2:$G$48,2,FALSE)+ROW()-2))=Rebalance!$D$60,INDIRECT(\"a\" & (VLOOKUP(Rebalance!$D$60,$F$2:$G$48,2,FALSE)+ROW()-2)),\"\")","v":{"$error":"#N/A"}},{"$f":"IF(INDIRECT(\"c\" & (VLOOKUP(Rebalance!$D$61,$F$2:$G$48,2,FALSE)+ROW()-2))=Rebalance!$D$61,INDIRECT(\"a\" & (VLOOKUP(Rebalance!$D$61,$F$2:$G$48,2,FALSE)+ROW()-2)),\"\")","v":{"$error":"#N/A"}},{"$f":"IF(INDIRECT(\"c\" & (VLOOKUP(Rebalance!$D$62,$F$2:$G$48,2,FALSE)+ROW()-2))=Rebalance!$D$62,INDIRECT(\"a\" & (VLOOKUP(Rebalance!$D$62,$F$2:$G$48,2,FALSE)+ROW()-2)),\"\")","v":{"$error":"#N/A"}},{"$f":"IF(INDIRECT(\"c\" & (VLOOKUP(Rebalance!$D$63,$F$2:$G$48,2,FALSE)+ROW()-2))=Rebalance!$D$63,INDIRECT(\"a\" & (VLOOKUP(Rebalance!$D$63,$F$2:$G$48,2,FALSE)+ROW()-2)),\"\")","v":{"$error":"#N/A"}},{"$f":"IF(INDIRECT(\"c\" & (VLOOKUP(Rebalance!$D$64,$F$2:$G$48,2,FALSE)+ROW()-2))=Rebalance!$D$64,INDIRECT(\"a\" & (VLOOKUP(Rebalance!$D$64,$F$2:$G$48,2,FALSE)+ROW()-2)),\"\")","v":{"$error":"#N/A"}},{"$f":"IF(INDIRECT(\"c\" & (VLOOKUP(Rebalance!$D$65,$F$2:$G$48,2,FALSE)+ROW()-2))=Rebalance!$D$65,INDIRECT(\"a\" & (VLOOKUP(Rebalance!$D$65,$F$2:$G$48,2,FALSE)+ROW()-2)),\"\")","v":{"$error":"#N/A"}},{"$f":"IF(INDIRECT(\"c\" & (VLOOKUP(Rebalance!$D$66,$F$2:$G$48,2,FALSE)+ROW()-2))=Rebalance!$D$66,INDIRECT(\"a\" & (VLOOKUP(Rebalance!$D$66,$F$2:$G$48,2,FALSE)+ROW()-2)),\"\")","v":{"$error":"#N/A"}}]
["PSG Wealth Moderate FoF B","PWMD","PSG Collective Investments Ltd",{"$f":"ROW()","v":495},null,null,{"$f":"VLOOKUP(F495,$C$2:$D$599,2,FALSE)","v":{"$error":"#N/A"}},{"$f":"IF(INDIRECT(\"c\" & (VLOOKUP(Rebalance!$D$26,$F$2:$G$48,2,FALSE)+ROW()-2))=Rebalance!$D$26,INDIRECT(\"a\" & (VLOOKUP(Rebalance!$D$26,$F$2:$G$48,2,FALSE)+ROW()-2)),\"\")","v":{"$error":"#N/A"}},{"$f":"IF(INDIRECT(\"c\" & (VLOOKUP(Rebalance!$D$27,$F$2:$G$48,2,FALSE)+ROW()-2))=Rebalance!$D$27,INDIRECT(\"a\" & (VLOOKUP(Rebalance!$D$27,$F$2:$G$48,2,FALSE)+ROW()-2)),\"\")","v":{"$error":"#N/A"}},{"$f":"IF(INDIRECT(\"c\" & (VLOOKUP(Rebalance!$D$28,$F$2:$G$48,2,FALSE)+ROW()-2))=Rebalance!$D$28,INDIRECT(\"a\" & (VLOOKUP(Rebalance!$D$28,$F$2:$G$48,2,FALSE)+ROW()-2)),\"\")","v":{"$error":"#N/A"}},{"$f":"IF(INDIRECT(\"c\" & (VLOOKUP(Rebalance!$D$29,$F$2:$G$48,2,FALSE)+ROW()-2))=Rebalance!$D$29,INDIRECT(\"a\" & (VLOOKUP(Rebalance!$D$29,$F$2:$G$48,2,FALSE)+ROW()-2)),\"\")","v":{"$error":"#N/A"}},{"$f":"IF(INDIRECT(\"c\" & (VLOOKUP(Rebalance!$D$30,$F$2:$G$48,2,FALSE)+ROW()-2))=Rebalance!$D$30,INDIRECT(\"a\" & (VLOOKUP(Rebalance!$D$30,$F$2:$G$48,2,FALSE)+ROW()-2)),\"\")","v":{"$error":"#N/A"}},{"$f":"IF(INDIRECT(\"c\" & (VLOOKUP(Rebalance!$D$31,$F$2:$G$48,2,FALSE)+ROW()-2))=Rebalance!$D$31,INDIRECT(\"a\" & (VLOOKUP(Rebalance!$D$31,$F$2:$G$48,2,FALSE)+ROW()-2)),\"\")","v":{"$error":"#N/A"}},{"$f":"IF(INDIRECT(\"c\" & (VLOOKUP(Rebalance!$D$32,$F$2:$G$48,2,FALSE)+ROW()-2))=Rebalance!$D$32,INDIRECT(\"a\" & (VLOOKUP(Rebalance!$D$32,$F$2:$G$48,2,FALSE)+ROW()-2)),\"\")","v":{"$error":"#N/A"}},{"$f":"IF(INDIRECT(\"c\" & (VLOOKUP(Rebalance!$D$33,$F$2:$G$48,2,FALSE)+ROW()-2))=Rebalance!$D$33,INDIRECT(\"a\" & (VLOOKUP(Rebalance!$D$33,$F$2:$G$48,2,FALSE)+ROW()-2)),\"\")","v":{"$error":"#N/A"}},{"$f":"IF(INDIRECT(\"c\" & (VLOOKUP(Rebalance!$D$34,$F$2:$G$48,2,FALSE)+ROW()-2))=Rebalance!$D$34,INDIRECT(\"a\" & (VLOOKUP(Rebalance!$D$34,$F$2:$G$48,2,FALSE)+ROW()-2)),\"\")","v":{"$error":"#N/A"}},{"$f":"IF(INDIRECT(\"c\" & (VLOOKUP(Rebalance!$D$35,$F$2:$G$48,2,FALSE)+ROW()-2))=Rebalance!$D$35,INDIRECT(\"a\" & (VLOOKUP(Rebalance!$D$35,$F$2:$G$48,2,FALSE)+ROW()-2)),\"\")","v":{"$error":"#N/A"}},{"$f":"IF(INDIRECT(\"c\" & (VLOOKUP(Rebalance!$D$36,$F$2:$G$48,2,FALSE)+ROW()-2))=Rebalance!$D$36,INDIRECT(\"a\" & (VLOOKUP(Rebalance!$D$36,$F$2:$G$48,2,FALSE)+ROW()-2)),\"\")","v":{"$error":"#N/A"}},{"$f":"IF(INDIRECT(\"c\" & (VLOOKUP(Rebalance!$D$37,$F$2:$G$48,2,FALSE)+ROW()-2))=Rebalance!$D$37,INDIRECT(\"a\" & (VLOOKUP(Rebalance!$D$37,$F$2:$G$48,2,FALSE)+ROW()-2)),\"\")","v":{"$error":"#N/A"}},{"$f":"IF(INDIRECT(\"c\" & (VLOOKUP(Rebalance!$D$38,$F$2:$G$48,2,FALSE)+ROW()-2))=Rebalance!$D$38,INDIRECT(\"a\" & (VLOOKUP(Rebalance!$D$38,$F$2:$G$48,2,FALSE)+ROW()-2)),\"\")","v":{"$error":"#N/A"}},{"$f":"IF(INDIRECT(\"c\" & (VLOOKUP(Rebalance!$D$39,$F$2:$G$48,2,FALSE)+ROW()-2))=Rebalance!$D$39,INDIRECT(\"a\" & (VLOOKUP(Rebalance!$D$39,$F$2:$G$48,2,FALSE)+ROW()-2)),\"\")","v":{"$error":"#N/A"}},{"$f":"IF(INDIRECT(\"c\" & (VLOOKUP(Rebalance!$D$40,$F$2:$G$48,2,FALSE)+ROW()-2))=Rebalance!$D$40,INDIRECT(\"a\" & (VLOOKUP(Rebalance!$D$40,$F$2:$G$48,2,FALSE)+ROW()-2)),\"\")","v":{"$error":"#N/A"}},{"$f":"IF(INDIRECT(\"c\" & (VLOOKUP(Rebalance!$D$52,$F$2:$G$48,2,FALSE)+ROW()-2))=Rebalance!$D$52,INDIRECT(\"a\" & (VLOOKUP(Rebalance!$D$52,$F$2:$G$48,2,FALSE)+ROW()-2)),\"\")","v":{"$error":"#N/A"}},{"$f":"IF(INDIRECT(\"c\" & (VLOOKUP(Rebalance!$D$53,$F$2:$G$48,2,FALSE)+ROW()-2))=Rebalance!$D$53,INDIRECT(\"a\" & (VLOOKUP(Rebalance!$D$53,$F$2:$G$48,2,FALSE)+ROW()-2)),\"\")","v":{"$error":"#N/A"}},{"$f":"IF(INDIRECT(\"c\" & (VLOOKUP(Rebalance!$D$54,$F$2:$G$48,2,FALSE)+ROW()-2))=Rebalance!$D$54,INDIRECT(\"a\" & (VLOOKUP(Rebalance!$D$54,$F$2:$G$48,2,FALSE)+ROW()-2)),\"\")","v":{"$error":"#N/A"}},{"$f":"IF(INDIRECT(\"c\" & (VLOOKUP(Rebalance!$D$55,$F$2:$G$48,2,FALSE)+ROW()-2))=Rebalance!$D$55,INDIRECT(\"a\" & (VLOOKUP(Rebalance!$D$55,$F$2:$G$48,2,FALSE)+ROW()-2)),\"\")","v":{"$error":"#N/A"}},{"$f":"IF(INDIRECT(\"c\" & (VLOOKUP(Rebalance!$D$56,$F$2:$G$48,2,FALSE)+ROW()-2))=Rebalance!$D$56,INDIRECT(\"a\" & (VLOOKUP(Rebalance!$D$56,$F$2:$G$48,2,FALSE)+ROW()-2)),\"\")","v":{"$error":"#N/A"}},{"$f":"IF(INDIRECT(\"c\" & (VLOOKUP(Rebalance!$D$57,$F$2:$G$48,2,FALSE)+ROW()-2))=Rebalance!$D$57,INDIRECT(\"a\" & (VLOOKUP(Rebalance!$D$57,$F$2:$G$48,2,FALSE)+ROW()-2)),\"\")","v":{"$error":"#N/A"}},{"$f":"IF(INDIRECT(\"c\" & (VLOOKUP(Rebalance!$D$58,$F$2:$G$48,2,FALSE)+ROW()-2))=Rebalance!$D$58,INDIRECT(\"a\" & (VLOOKUP(Rebalance!$D$58,$F$2:$G$48,2,FALSE)+ROW()-2)),\"\")","v":{"$error":"#N/A"}},{"$f":"IF(INDIRECT(\"c\" & (VLOOKUP(Rebalance!$D$59,$F$2:$G$48,2,FALSE)+ROW()-2))=Rebalance!$D$59,INDIRECT(\"a\" & (VLOOKUP(Rebalance!$D$59,$F$2:$G$48,2,FALSE)+ROW()-2)),\"\")","v":{"$error":"#N/A"}},{"$f":"IF(INDIRECT(\"c\" & (VLOOKUP(Rebalance!$D$60,$F$2:$G$48,2,FALSE)+ROW()-2))=Rebalance!$D$60,INDIRECT(\"a\" & (VLOOKUP(Rebalance!$D$60,$F$2:$G$48,2,FALSE)+ROW()-2)),\"\")","v":{"$error":"#N/A"}},{"$f":"IF(INDIRECT(\"c\" & (VLOOKUP(Rebalance!$D$61,$F$2:$G$48,2,FALSE)+ROW()-2))=Rebalance!$D$61,INDIRECT(\"a\" & (VLOOKUP(Rebalance!$D$61,$F$2:$G$48,2,FALSE)+ROW()-2)),\"\")","v":{"$error":"#N/A"}},{"$f":"IF(INDIRECT(\"c\" & (VLOOKUP(Rebalance!$D$62,$F$2:$G$48,2,FALSE)+ROW()-2))=Rebalance!$D$62,INDIRECT(\"a\" & (VLOOKUP(Rebalance!$D$62,$F$2:$G$48,2,FALSE)+ROW()-2)),\"\")","v":{"$error":"#N/A"}},{"$f":"IF(INDIRECT(\"c\" & (VLOOKUP(Rebalance!$D$63,$F$2:$G$48,2,FALSE)+ROW()-2))=Rebalance!$D$63,INDIRECT(\"a\" & (VLOOKUP(Rebalance!$D$63,$F$2:$G$48,2,FALSE)+ROW()-2)),\"\")","v":{"$error":"#N/A"}},{"$f":"IF(INDIRECT(\"c\" & (VLOOKUP(Rebalance!$D$64,$F$2:$G$48,2,FALSE)+ROW()-2))=Rebalance!$D$64,INDIRECT(\"a\" & (VLOOKUP(Rebalance!$D$64,$F$2:$G$48,2,FALSE)+ROW()-2)),\"\")","v":{"$error":"#N/A"}},{"$f":"IF(INDIRECT(\"c\" & (VLOOKUP(Rebalance!$D$65,$F$2:$G$48,2,FALSE)+ROW()-2))=Rebalance!$D$65,INDIRECT(\"a\" & (VLOOKUP(Rebalance!$D$65,$F$2:$G$48,2,FALSE)+ROW()-2)),\"\")","v":{"$error":"#N/A"}},{"$f":"IF(INDIRECT(\"c\" & (VLOOKUP(Rebalance!$D$66,$F$2:$G$48,2,FALSE)+ROW()-2))=Rebalance!$D$66,INDIRECT(\"a\" & (VLOOKUP(Rebalance!$D$66,$F$2:$G$48,2,FALSE)+ROW()-2)),\"\")","v":{"$error":"#N/A"}}]
["PSG Wealth Moderate FoF D","PWMD","PSG Collective Investments Ltd",{"$f":"ROW()","v":496},null,null,{"$f":"VLOOKUP(F496,$C$2:$D$599,2,FALSE)","v":{"$error":"#N/A"}},{"$f":"IF(INDIRECT(\"c\" & (VLOOKUP(Rebalance!$D$26,$F$2:$G$48,2,FALSE)+ROW()-2))=Rebalance!$D$26,INDIRECT(\"a\" & (VLOOKUP(Rebalance!$D$26,$F$2:$G$48,2,FALSE)+ROW()-2)),\"\")","v":{"$error":"#N/A"}},{"$f":"IF(INDIRECT(\"c\" & (VLOOKUP(Rebalance!$D$27,$F$2:$G$48,2,FALSE)+ROW()-2))=Rebalance!$D$27,INDIRECT(\"a\" & (VLOOKUP(Rebalance!$D$27,$F$2:$G$48,2,FALSE)+ROW()-2)),\"\")","v":{"$error":"#N/A"}},{"$f":"IF(INDIRECT(\"c\" & (VLOOKUP(Rebalance!$D$28,$F$2:$G$48,2,FALSE)+ROW()-2))=Rebalance!$D$28,INDIRECT(\"a\" & (VLOOKUP(Rebalance!$D$28,$F$2:$G$48,2,FALSE)+ROW()-2)),\"\")","v":{"$error":"#N/A"}},{"$f":"IF(INDIRECT(\"c\" & (VLOOKUP(Rebalance!$D$29,$F$2:$G$48,2,FALSE)+ROW()-2))=Rebalance!$D$29,INDIRECT(\"a\" & (VLOOKUP(Rebalance!$D$29,$F$2:$G$48,2,FALSE)+ROW()-2)),\"\")","v":{"$error":"#N/A"}},{"$f":"IF(INDIRECT(\"c\" & (VLOOKUP(Rebalance!$D$30,$F$2:$G$48,2,FALSE)+ROW()-2))=Rebalance!$D$30,INDIRECT(\"a\" & (VLOOKUP(Rebalance!$D$30,$F$2:$G$48,2,FALSE)+ROW()-2)),\"\")","v":{"$error":"#N/A"}},{"$f":"IF(INDIRECT(\"c\" & (VLOOKUP(Rebalance!$D$31,$F$2:$G$48,2,FALSE)+ROW()-2))=Rebalance!$D$31,INDIRECT(\"a\" & (VLOOKUP(Rebalance!$D$31,$F$2:$G$48,2,FALSE)+ROW()-2)),\"\")","v":{"$error":"#N/A"}},{"$f":"IF(INDIRECT(\"c\" & (VLOOKUP(Rebalance!$D$32,$F$2:$G$48,2,FALSE)+ROW()-2))=Rebalance!$D$32,INDIRECT(\"a\" & (VLOOKUP(Rebalance!$D$32,$F$2:$G$48,2,FALSE)+ROW()-2)),\"\")","v":{"$error":"#N/A"}},{"$f":"IF(INDIRECT(\"c\" & (VLOOKUP(Rebalance!$D$33,$F$2:$G$48,2,FALSE)+ROW()-2))=Rebalance!$D$33,INDIRECT(\"a\" & (VLOOKUP(Rebalance!$D$33,$F$2:$G$48,2,FALSE)+ROW()-2)),\"\")","v":{"$error":"#N/A"}},{"$f":"IF(INDIRECT(\"c\" & (VLOOKUP(Rebalance!$D$34,$F$2:$G$48,2,FALSE)+ROW()-2))=Rebalance!$D$34,INDIRECT(\"a\" & (VLOOKUP(Rebalance!$D$34,$F$2:$G$48,2,FALSE)+ROW()-2)),\"\")","v":{"$error":"#N/A"}},{"$f":"IF(INDIRECT(\"c\" & (VLOOKUP(Rebalance!$D$35,$F$2:$G$48,2,FALSE)+ROW()-2))=Rebalance!$D$35,INDIRECT(\"a\" & (VLOOKUP(Rebalance!$D$35,$F$2:$G$48,2,FALSE)+ROW()-2)),\"\")","v":{"$error":"#N/A"}},{"$f":"IF(INDIRECT(\"c\" & (VLOOKUP(Rebalance!$D$36,$F$2:$G$48,2,FALSE)+ROW()-2))=Rebalance!$D$36,INDIRECT(\"a\" & (VLOOKUP(Rebalance!$D$36,$F$2:$G$48,2,FALSE)+ROW()-2)),\"\")","v":{"$error":"#N/A"}},{"$f":"IF(INDIRECT(\"c\" & (VLOOKUP(Rebalance!$D$37,$F$2:$G$48,2,FALSE)+ROW()-2))=Rebalance!$D$37,INDIRECT(\"a\" & (VLOOKUP(Rebalance!$D$37,$F$2:$G$48,2,FALSE)+ROW()-2)),\"\")","v":{"$error":"#N/A"}},{"$f":"IF(INDIRECT(\"c\" & (VLOOKUP(Rebalance!$D$38,$F$2:$G$48,2,FALSE)+ROW()-2))=Rebalance!$D$38,INDIRECT(\"a\" & (VLOOKUP(Rebalance!$D$38,$F$2:$G$48,2,FALSE)+ROW()-2)),\"\")","v":{"$error":"#N/A"}},{"$f":"IF(INDIRECT(\"c\" & (VLOOKUP(Rebalance!$D$39,$F$2:$G$48,2,FALSE)+ROW()-2))=Rebalance!$D$39,INDIRECT(\"a\" & (VLOOKUP(Rebalance!$D$39,$F$2:$G$48,2,FALSE)+ROW()-2)),\"\")","v":{"$error":"#N/A"}},{"$f":"IF(INDIRECT(\"c\" & (VLOOKUP(Rebalance!$D$40,$F$2:$G$48,2,FALSE)+ROW()-2))=Rebalance!$D$40,INDIRECT(\"a\" & (VLOOKUP(Rebalance!$D$40,$F$2:$G$48,2,FALSE)+ROW()-2)),\"\")","v":{"$error":"#N/A"}},{"$f":"IF(INDIRECT(\"c\" & (VLOOKUP(Rebalance!$D$52,$F$2:$G$48,2,FALSE)+ROW()-2))=Rebalance!$D$52,INDIRECT(\"a\" & (VLOOKUP(Rebalance!$D$52,$F$2:$G$48,2,FALSE)+ROW()-2)),\"\")","v":{"$error":"#N/A"}},{"$f":"IF(INDIRECT(\"c\" & (VLOOKUP(Rebalance!$D$53,$F$2:$G$48,2,FALSE)+ROW()-2))=Rebalance!$D$53,INDIRECT(\"a\" & (VLOOKUP(Rebalance!$D$53,$F$2:$G$48,2,FALSE)+ROW()-2)),\"\")","v":{"$error":"#N/A"}},{"$f":"IF(INDIRECT(\"c\" & (VLOOKUP(Rebalance!$D$54,$F$2:$G$48,2,FALSE)+ROW()-2))=Rebalance!$D$54,INDIRECT(\"a\" & (VLOOKUP(Rebalance!$D$54,$F$2:$G$48,2,FALSE)+ROW()-2)),\"\")","v":{"$error":"#N/A"}},{"$f":"IF(INDIRECT(\"c\" & (VLOOKUP(Rebalance!$D$55,$F$2:$G$48,2,FALSE)+ROW()-2))=Rebalance!$D$55,INDIRECT(\"a\" & (VLOOKUP(Rebalance!$D$55,$F$2:$G$48,2,FALSE)+ROW()-2)),\"\")","v":{"$error":"#N/A"}},{"$f":"IF(INDIRECT(\"c\" & (VLOOKUP(Rebalance!$D$56,$F$2:$G$48,2,FALSE)+ROW()-2))=Rebalance!$D$56,INDIRECT(\"a\" & (VLOOKUP(Rebalance!$D$56,$F$2:$G$48,2,FALSE)+ROW()-2)),\"\")","v":{"$error":"#N/A"}},{"$f":"IF(INDIRECT(\"c\" & (VLOOKUP(Rebalance!$D$57,$F$2:$G$48,2,FALSE)+ROW()-2))=Rebalance!$D$57,INDIRECT(\"a\" & (VLOOKUP(Rebalance!$D$57,$F$2:$G$48,2,FALSE)+ROW()-2)),\"\")","v":{"$error":"#N/A"}},{"$f":"IF(INDIRECT(\"c\" & (VLOOKUP(Rebalance!$D$58,$F$2:$G$48,2,FALSE)+ROW()-2))=Rebalance!$D$58,INDIRECT(\"a\" & (VLOOKUP(Rebalance!$D$58,$F$2:$G$48,2,FALSE)+ROW()-2)),\"\")","v":{"$error":"#N/A"}},{"$f":"IF(INDIRECT(\"c\" & (VLOOKUP(Rebalance!$D$59,$F$2:$G$48,2,FALSE)+ROW()-2))=Rebalance!$D$59,INDIRECT(\"a\" & (VLOOKUP(Rebalance!$D$59,$F$2:$G$48,2,FALSE)+ROW()-2)),\"\")","v":{"$error":"#N/A"}},{"$f":"IF(INDIRECT(\"c\" & (VLOOKUP(Rebalance!$D$60,$F$2:$G$48,2,FALSE)+ROW()-2))=Rebalance!$D$60,INDIRECT(\"a\" & (VLOOKUP(Rebalance!$D$60,$F$2:$G$48,2,FALSE)+ROW()-2)),\"\")","v":{"$error":"#N/A"}},{"$f":"IF(INDIRECT(\"c\" & (VLOOKUP(Rebalance!$D$61,$F$2:$G$48,2,FALSE)+ROW()-2))=Rebalance!$D$61,INDIRECT(\"a\" & (VLOOKUP(Rebalance!$D$61,$F$2:$G$48,2,FALSE)+ROW()-2)),\"\")","v":{"$error":"#N/A"}},{"$f":"IF(INDIRECT(\"c\" & (VLOOKUP(Rebalance!$D$62,$F$2:$G$48,2,FALSE)+ROW()-2))=Rebalance!$D$62,INDIRECT(\"a\" & (VLOOKUP(Rebalance!$D$62,$F$2:$G$48,2,FALSE)+ROW()-2)),\"\")","v":{"$error":"#N/A"}},{"$f":"IF(INDIRECT(\"c\" & (VLOOKUP(Rebalance!$D$63,$F$2:$G$48,2,FALSE)+ROW()-2))=Rebalance!$D$63,INDIRECT(\"a\" & (VLOOKUP(Rebalance!$D$63,$F$2:$G$48,2,FALSE)+ROW()-2)),\"\")","v":{"$error":"#N/A"}},{"$f":"IF(INDIRECT(\"c\" & (VLOOKUP(Rebalance!$D$64,$F$2:$G$48,2,FALSE)+ROW()-2))=Rebalance!$D$64,INDIRECT(\"a\" & (VLOOKUP(Rebalance!$D$64,$F$2:$G$48,2,FALSE)+ROW()-2)),\"\")","v":{"$error":"#N/A"}},{"$f":"IF(INDIRECT(\"c\" & (VLOOKUP(Rebalance!$D$65,$F$2:$G$48,2,FALSE)+ROW()-2))=Rebalance!$D$65,INDIRECT(\"a\" & (VLOOKUP(Rebalance!$D$65,$F$2:$G$48,2,FALSE)+ROW()-2)),\"\")","v":{"$error":"#N/A"}},{"$f":"IF(INDIRECT(\"c\" & (VLOOKUP(Rebalance!$D$66,$F$2:$G$48,2,FALSE)+ROW()-2))=Rebalance!$D$66,INDIRECT(\"a\" & (VLOOKUP(Rebalance!$D$66,$F$2:$G$48,2,FALSE)+ROW()-2)),\"\")","v":{"$error":"#N/A"}}]
["PSG Wealth Preserver FoF A","PAPD","PSG Collective Investments Ltd",{"$f":"ROW()","v":497},null,null,{"$f":"VLOOKUP(F497,$C$2:$D$599,2,FALSE)","v":{"$error":"#N/A"}},{"$f":"IF(INDIRECT(\"c\" & (VLOOKUP(Rebalance!$D$26,$F$2:$G$48,2,FALSE)+ROW()-2))=Rebalance!$D$26,INDIRECT(\"a\" & (VLOOKUP(Rebalance!$D$26,$F$2:$G$48,2,FALSE)+ROW()-2)),\"\")","v":{"$error":"#N/A"}},{"$f":"IF(INDIRECT(\"c\" & (VLOOKUP(Rebalance!$D$27,$F$2:$G$48,2,FALSE)+ROW()-2))=Rebalance!$D$27,INDIRECT(\"a\" & (VLOOKUP(Rebalance!$D$27,$F$2:$G$48,2,FALSE)+ROW()-2)),\"\")","v":{"$error":"#N/A"}},{"$f":"IF(INDIRECT(\"c\" & (VLOOKUP(Rebalance!$D$28,$F$2:$G$48,2,FALSE)+ROW()-2))=Rebalance!$D$28,INDIRECT(\"a\" & (VLOOKUP(Rebalance!$D$28,$F$2:$G$48,2,FALSE)+ROW()-2)),\"\")","v":{"$error":"#N/A"}},{"$f":"IF(INDIRECT(\"c\" & (VLOOKUP(Rebalance!$D$29,$F$2:$G$48,2,FALSE)+ROW()-2))=Rebalance!$D$29,INDIRECT(\"a\" & (VLOOKUP(Rebalance!$D$29,$F$2:$G$48,2,FALSE)+ROW()-2)),\"\")","v":{"$error":"#N/A"}},{"$f":"IF(INDIRECT(\"c\" & (VLOOKUP(Rebalance!$D$30,$F$2:$G$48,2,FALSE)+ROW()-2))=Rebalance!$D$30,INDIRECT(\"a\" & (VLOOKUP(Rebalance!$D$30,$F$2:$G$48,2,FALSE)+ROW()-2)),\"\")","v":{"$error":"#N/A"}},{"$f":"IF(INDIRECT(\"c\" & (VLOOKUP(Rebalance!$D$31,$F$2:$G$48,2,FALSE)+ROW()-2))=Rebalance!$D$31,INDIRECT(\"a\" & (VLOOKUP(Rebalance!$D$31,$F$2:$G$48,2,FALSE)+ROW()-2)),\"\")","v":{"$error":"#N/A"}},{"$f":"IF(INDIRECT(\"c\" & (VLOOKUP(Rebalance!$D$32,$F$2:$G$48,2,FALSE)+ROW()-2))=Rebalance!$D$32,INDIRECT(\"a\" & (VLOOKUP(Rebalance!$D$32,$F$2:$G$48,2,FALSE)+ROW()-2)),\"\")","v":{"$error":"#N/A"}},{"$f":"IF(INDIRECT(\"c\" & (VLOOKUP(Rebalance!$D$33,$F$2:$G$48,2,FALSE)+ROW()-2))=Rebalance!$D$33,INDIRECT(\"a\" & (VLOOKUP(Rebalance!$D$33,$F$2:$G$48,2,FALSE)+ROW()-2)),\"\")","v":{"$error":"#N/A"}},{"$f":"IF(INDIRECT(\"c\" & (VLOOKUP(Rebalance!$D$34,$F$2:$G$48,2,FALSE)+ROW()-2))=Rebalance!$D$34,INDIRECT(\"a\" & (VLOOKUP(Rebalance!$D$34,$F$2:$G$48,2,FALSE)+ROW()-2)),\"\")","v":{"$error":"#N/A"}},{"$f":"IF(INDIRECT(\"c\" & (VLOOKUP(Rebalance!$D$35,$F$2:$G$48,2,FALSE)+ROW()-2))=Rebalance!$D$35,INDIRECT(\"a\" & (VLOOKUP(Rebalance!$D$35,$F$2:$G$48,2,FALSE)+ROW()-2)),\"\")","v":{"$error":"#N/A"}},{"$f":"IF(INDIRECT(\"c\" & (VLOOKUP(Rebalance!$D$36,$F$2:$G$48,2,FALSE)+ROW()-2))=Rebalance!$D$36,INDIRECT(\"a\" & (VLOOKUP(Rebalance!$D$36,$F$2:$G$48,2,FALSE)+ROW()-2)),\"\")","v":{"$error":"#N/A"}},{"$f":"IF(INDIRECT(\"c\" & (VLOOKUP(Rebalance!$D$37,$F$2:$G$48,2,FALSE)+ROW()-2))=Rebalance!$D$37,INDIRECT(\"a\" & (VLOOKUP(Rebalance!$D$37,$F$2:$G$48,2,FALSE)+ROW()-2)),\"\")","v":{"$error":"#N/A"}},{"$f":"IF(INDIRECT(\"c\" & (VLOOKUP(Rebalance!$D$38,$F$2:$G$48,2,FALSE)+ROW()-2))=Rebalance!$D$38,INDIRECT(\"a\" & (VLOOKUP(Rebalance!$D$38,$F$2:$G$48,2,FALSE)+ROW()-2)),\"\")","v":{"$error":"#N/A"}},{"$f":"IF(INDIRECT(\"c\" & (VLOOKUP(Rebalance!$D$39,$F$2:$G$48,2,FALSE)+ROW()-2))=Rebalance!$D$39,INDIRECT(\"a\" & (VLOOKUP(Rebalance!$D$39,$F$2:$G$48,2,FALSE)+ROW()-2)),\"\")","v":{"$error":"#N/A"}},{"$f":"IF(INDIRECT(\"c\" & (VLOOKUP(Rebalance!$D$40,$F$2:$G$48,2,FALSE)+ROW()-2))=Rebalance!$D$40,INDIRECT(\"a\" & (VLOOKUP(Rebalance!$D$40,$F$2:$G$48,2,FALSE)+ROW()-2)),\"\")","v":{"$error":"#N/A"}},{"$f":"IF(INDIRECT(\"c\" & (VLOOKUP(Rebalance!$D$52,$F$2:$G$48,2,FALSE)+ROW()-2))=Rebalance!$D$52,INDIRECT(\"a\" & (VLOOKUP(Rebalance!$D$52,$F$2:$G$48,2,FALSE)+ROW()-2)),\"\")","v":{"$error":"#N/A"}},{"$f":"IF(INDIRECT(\"c\" & (VLOOKUP(Rebalance!$D$53,$F$2:$G$48,2,FALSE)+ROW()-2))=Rebalance!$D$53,INDIRECT(\"a\" & (VLOOKUP(Rebalance!$D$53,$F$2:$G$48,2,FALSE)+ROW()-2)),\"\")","v":{"$error":"#N/A"}},{"$f":"IF(INDIRECT(\"c\" & (VLOOKUP(Rebalance!$D$54,$F$2:$G$48,2,FALSE)+ROW()-2))=Rebalance!$D$54,INDIRECT(\"a\" & (VLOOKUP(Rebalance!$D$54,$F$2:$G$48,2,FALSE)+ROW()-2)),\"\")","v":{"$error":"#N/A"}},{"$f":"IF(INDIRECT(\"c\" & (VLOOKUP(Rebalance!$D$55,$F$2:$G$48,2,FALSE)+ROW()-2))=Rebalance!$D$55,INDIRECT(\"a\" & (VLOOKUP(Rebalance!$D$55,$F$2:$G$48,2,FALSE)+ROW()-2)),\"\")","v":{"$error":"#N/A"}},{"$f":"IF(INDIRECT(\"c\" & (VLOOKUP(Rebalance!$D$56,$F$2:$G$48,2,FALSE)+ROW()-2))=Rebalance!$D$56,INDIRECT(\"a\" & (VLOOKUP(Rebalance!$D$56,$F$2:$G$48,2,FALSE)+ROW()-2)),\"\")","v":{"$error":"#N/A"}},{"$f":"IF(INDIRECT(\"c\" & (VLOOKUP(Rebalance!$D$57,$F$2:$G$48,2,FALSE)+ROW()-2))=Rebalance!$D$57,INDIRECT(\"a\" & (VLOOKUP(Rebalance!$D$57,$F$2:$G$48,2,FALSE)+ROW()-2)),\"\")","v":{"$error":"#N/A"}},{"$f":"IF(INDIRECT(\"c\" & (VLOOKUP(Rebalance!$D$58,$F$2:$G$48,2,FALSE)+ROW()-2))=Rebalance!$D$58,INDIRECT(\"a\" & (VLOOKUP(Rebalance!$D$58,$F$2:$G$48,2,FALSE)+ROW()-2)),\"\")","v":{"$error":"#N/A"}},{"$f":"IF(INDIRECT(\"c\" & (VLOOKUP(Rebalance!$D$59,$F$2:$G$48,2,FALSE)+ROW()-2))=Rebalance!$D$59,INDIRECT(\"a\" & (VLOOKUP(Rebalance!$D$59,$F$2:$G$48,2,FALSE)+ROW()-2)),\"\")","v":{"$error":"#N/A"}},{"$f":"IF(INDIRECT(\"c\" & (VLOOKUP(Rebalance!$D$60,$F$2:$G$48,2,FALSE)+ROW()-2))=Rebalance!$D$60,INDIRECT(\"a\" & (VLOOKUP(Rebalance!$D$60,$F$2:$G$48,2,FALSE)+ROW()-2)),\"\")","v":{"$error":"#N/A"}},{"$f":"IF(INDIRECT(\"c\" & (VLOOKUP(Rebalance!$D$61,$F$2:$G$48,2,FALSE)+ROW()-2))=Rebalance!$D$61,INDIRECT(\"a\" & (VLOOKUP(Rebalance!$D$61,$F$2:$G$48,2,FALSE)+ROW()-2)),\"\")","v":{"$error":"#N/A"}},{"$f":"IF(INDIRECT(\"c\" & (VLOOKUP(Rebalance!$D$62,$F$2:$G$48,2,FALSE)+ROW()-2))=Rebalance!$D$62,INDIRECT(\"a\" & (VLOOKUP(Rebalance!$D$62,$F$2:$G$48,2,FALSE)+ROW()-2)),\"\")","v":{"$error":"#N/A"}},{"$f":"IF(INDIRECT(\"c\" & (VLOOKUP(Rebalance!$D$63,$F$2:$G$48,2,FALSE)+ROW()-2))=Rebalance!$D$63,INDIRECT(\"a\" & (VLOOKUP(Rebalance!$D$63,$F$2:$G$48,2,FALSE)+ROW()-2)),\"\")","v":{"$error":"#N/A"}},{"$f":"IF(INDIRECT(\"c\" & (VLOOKUP(Rebalance!$D$64,$F$2:$G$48,2,FALSE)+ROW()-2))=Rebalance!$D$64,INDIRECT(\"a\" & (VLOOKUP(Rebalance!$D$64,$F$2:$G$48,2,FALSE)+ROW()-2)),\"\")","v":{"$error":"#N/A"}},{"$f":"IF(INDIRECT(\"c\" & (VLOOKUP(Rebalance!$D$65,$F$2:$G$48,2,FALSE)+ROW()-2))=Rebalance!$D$65,INDIRECT(\"a\" & (VLOOKUP(Rebalance!$D$65,$F$2:$G$48,2,FALSE)+ROW()-2)),\"\")","v":{"$error":"#N/A"}},{"$f":"IF(INDIRECT(\"c\" & (VLOOKUP(Rebalance!$D$66,$F$2:$G$48,2,FALSE)+ROW()-2))=Rebalance!$D$66,INDIRECT(\"a\" & (VLOOKUP(Rebalance!$D$66,$F$2:$G$48,2,FALSE)+ROW()-2)),\"\")","v":{"$error":"#N/A"}}]
["PSG Wealth Preserver FoF B","PAPD","PSG Collective Investments Ltd",{"$f":"ROW()","v":498},null,null,{"$f":"VLOOKUP(F498,$C$2:$D$599,2,FALSE)","v":{"$error":"#N/A"}},{"$f":"IF(INDIRECT(\"c\" & (VLOOKUP(Rebalance!$D$26,$F$2:$G$48,2,FALSE)+ROW()-2))=Rebalance!$D$26,INDIRECT(\"a\" & (VLOOKUP(Rebalance!$D$26,$F$2:$G$48,2,FALSE)+ROW()-2)),\"\")","v":{"$error":"#N/A"}},{"$f":"IF(INDIRECT(\"c\" & (VLOOKUP(Rebalance!$D$27,$F$2:$G$48,2,FALSE)+ROW()-2))=Rebalance!$D$27,INDIRECT(\"a\" & (VLOOKUP(Rebalance!$D$27,$F$2:$G$48,2,FALSE)+ROW()-2)),\"\")","v":{"$error":"#N/A"}},{"$f":"IF(INDIRECT(\"c\" & (VLOOKUP(Rebalance!$D$28,$F$2:$G$48,2,FALSE)+ROW()-2))=Rebalance!$D$28,INDIRECT(\"a\" & (VLOOKUP(Rebalance!$D$28,$F$2:$G$48,2,FALSE)+ROW()-2)),\"\")","v":{"$error":"#N/A"}},{"$f":"IF(INDIRECT(\"c\" & (VLOOKUP(Rebalance!$D$29,$F$2:$G$48,2,FALSE)+ROW()-2))=Rebalance!$D$29,INDIRECT(\"a\" & (VLOOKUP(Rebalance!$D$29,$F$2:$G$48,2,FALSE)+ROW()-2)),\"\")","v":{"$error":"#N/A"}},{"$f":"IF(INDIRECT(\"c\" & (VLOOKUP(Rebalance!$D$30,$F$2:$G$48,2,FALSE)+ROW()-2))=Rebalance!$D$30,INDIRECT(\"a\" & (VLOOKUP(Rebalance!$D$30,$F$2:$G$48,2,FALSE)+ROW()-2)),\"\")","v":{"$error":"#N/A"}},{"$f":"IF(INDIRECT(\"c\" & (VLOOKUP(Rebalance!$D$31,$F$2:$G$48,2,FALSE)+ROW()-2))=Rebalance!$D$31,INDIRECT(\"a\" & (VLOOKUP(Rebalance!$D$31,$F$2:$G$48,2,FALSE)+ROW()-2)),\"\")","v":{"$error":"#N/A"}},{"$f":"IF(INDIRECT(\"c\" & (VLOOKUP(Rebalance!$D$32,$F$2:$G$48,2,FALSE)+ROW()-2))=Rebalance!$D$32,INDIRECT(\"a\" & (VLOOKUP(Rebalance!$D$32,$F$2:$G$48,2,FALSE)+ROW()-2)),\"\")","v":{"$error":"#N/A"}},{"$f":"IF(INDIRECT(\"c\" & (VLOOKUP(Rebalance!$D$33,$F$2:$G$48,2,FALSE)+ROW()-2))=Rebalance!$D$33,INDIRECT(\"a\" & (VLOOKUP(Rebalance!$D$33,$F$2:$G$48,2,FALSE)+ROW()-2)),\"\")","v":{"$error":"#N/A"}},{"$f":"IF(INDIRECT(\"c\" & (VLOOKUP(Rebalance!$D$34,$F$2:$G$48,2,FALSE)+ROW()-2))=Rebalance!$D$34,INDIRECT(\"a\" & (VLOOKUP(Rebalance!$D$34,$F$2:$G$48,2,FALSE)+ROW()-2)),\"\")","v":{"$error":"#N/A"}},{"$f":"IF(INDIRECT(\"c\" & (VLOOKUP(Rebalance!$D$35,$F$2:$G$48,2,FALSE)+ROW()-2))=Rebalance!$D$35,INDIRECT(\"a\" & (VLOOKUP(Rebalance!$D$35,$F$2:$G$48,2,FALSE)+ROW()-2)),\"\")","v":{"$error":"#N/A"}},{"$f":"IF(INDIRECT(\"c\" & (VLOOKUP(Rebalance!$D$36,$F$2:$G$48,2,FALSE)+ROW()-2))=Rebalance!$D$36,INDIRECT(\"a\" & (VLOOKUP(Rebalance!$D$36,$F$2:$G$48,2,FALSE)+ROW()-2)),\"\")","v":{"$error":"#N/A"}},{"$f":"IF(INDIRECT(\"c\" & (VLOOKUP(Rebalance!$D$37,$F$2:$G$48,2,FALSE)+ROW()-2))=Rebalance!$D$37,INDIRECT(\"a\" & (VLOOKUP(Rebalance!$D$37,$F$2:$G$48,2,FALSE)+ROW()-2)),\"\")","v":{"$error":"#N/A"}},{"$f":"IF(INDIRECT(\"c\" & (VLOOKUP(Rebalance!$D$38,$F$2:$G$48,2,FALSE)+ROW()-2))=Rebalance!$D$38,INDIRECT(\"a\" & (VLOOKUP(Rebalance!$D$38,$F$2:$G$48,2,FALSE)+ROW()-2)),\"\")","v":{"$error":"#N/A"}},{"$f":"IF(INDIRECT(\"c\" & (VLOOKUP(Rebalance!$D$39,$F$2:$G$48,2,FALSE)+ROW()-2))=Rebalance!$D$39,INDIRECT(\"a\" & (VLOOKUP(Rebalance!$D$39,$F$2:$G$48,2,FALSE)+ROW()-2)),\"\")","v":{"$error":"#N/A"}},{"$f":"IF(INDIRECT(\"c\" & (VLOOKUP(Rebalance!$D$40,$F$2:$G$48,2,FALSE)+ROW()-2))=Rebalance!$D$40,INDIRECT(\"a\" & (VLOOKUP(Rebalance!$D$40,$F$2:$G$48,2,FALSE)+ROW()-2)),\"\")","v":{"$error":"#N/A"}},{"$f":"IF(INDIRECT(\"c\" & (VLOOKUP(Rebalance!$D$52,$F$2:$G$48,2,FALSE)+ROW()-2))=Rebalance!$D$52,INDIRECT(\"a\" & (VLOOKUP(Rebalance!$D$52,$F$2:$G$48,2,FALSE)+ROW()-2)),\"\")","v":{"$error":"#N/A"}},{"$f":"IF(INDIRECT(\"c\" & (VLOOKUP(Rebalance!$D$53,$F$2:$G$48,2,FALSE)+ROW()-2))=Rebalance!$D$53,INDIRECT(\"a\" & (VLOOKUP(Rebalance!$D$53,$F$2:$G$48,2,FALSE)+ROW()-2)),\"\")","v":{"$error":"#N/A"}},{"$f":"IF(INDIRECT(\"c\" & (VLOOKUP(Rebalance!$D$54,$F$2:$G$48,2,FALSE)+ROW()-2))=Rebalance!$D$54,INDIRECT(\"a\" & (VLOOKUP(Rebalance!$D$54,$F$2:$G$48,2,FALSE)+ROW()-2)),\"\")","v":{"$error":"#N/A"}},{"$f":"IF(INDIRECT(\"c\" & (VLOOKUP(Rebalance!$D$55,$F$2:$G$48,2,FALSE)+ROW()-2))=Rebalance!$D$55,INDIRECT(\"a\" & (VLOOKUP(Rebalance!$D$55,$F$2:$G$48,2,FALSE)+ROW()-2)),\"\")","v":{"$error":"#N/A"}},{"$f":"IF(INDIRECT(\"c\" & (VLOOKUP(Rebalance!$D$56,$F$2:$G$48,2,FALSE)+ROW()-2))=Rebalance!$D$56,INDIRECT(\"a\" & (VLOOKUP(Rebalance!$D$56,$F$2:$G$48,2,FALSE)+ROW()-2)),\"\")","v":{"$error":"#N/A"}},{"$f":"IF(INDIRECT(\"c\" & (VLOOKUP(Rebalance!$D$57,$F$2:$G$48,2,FALSE)+ROW()-2))=Rebalance!$D$57,INDIRECT(\"a\" & (VLOOKUP(Rebalance!$D$57,$F$2:$G$48,2,FALSE)+ROW()-2)),\"\")","v":{"$error":"#N/A"}},{"$f":"IF(INDIRECT(\"c\" & (VLOOKUP(Rebalance!$D$58,$F$2:$G$48,2,FALSE)+ROW()-2))=Rebalance!$D$58,INDIRECT(\"a\" & (VLOOKUP(Rebalance!$D$58,$F$2:$G$48,2,FALSE)+ROW()-2)),\"\")","v":{"$error":"#N/A"}},{"$f":"IF(INDIRECT(\"c\" & (VLOOKUP(Rebalance!$D$59,$F$2:$G$48,2,FALSE)+ROW()-2))=Rebalance!$D$59,INDIRECT(\"a\" & (VLOOKUP(Rebalance!$D$59,$F$2:$G$48,2,FALSE)+ROW()-2)),\"\")","v":{"$error":"#N/A"}},{"$f":"IF(INDIRECT(\"c\" & (VLOOKUP(Rebalance!$D$60,$F$2:$G$48,2,FALSE)+ROW()-2))=Rebalance!$D$60,INDIRECT(\"a\" & (VLOOKUP(Rebalance!$D$60,$F$2:$G$48,2,FALSE)+ROW()-2)),\"\")","v":{"$error":"#N/A"}},{"$f":"IF(INDIRECT(\"c\" & (VLOOKUP(Rebalance!$D$61,$F$2:$G$48,2,FALSE)+ROW()-2))=Rebalance!$D$61,INDIRECT(\"a\" & (VLOOKUP(Rebalance!$D$61,$F$2:$G$48,2,FALSE)+ROW()-2)),\"\")","v":{"$error":"#N/A"}},{"$f":"IF(INDIRECT(\"c\" & (VLOOKUP(Rebalance!$D$62,$F$2:$G$48,2,FALSE)+ROW()-2))=Rebalance!$D$62,INDIRECT(\"a\" & (VLOOKUP(Rebalance!$D$62,$F$2:$G$48,2,FALSE)+ROW()-2)),\"\")","v":{"$error":"#N/A"}},{"$f":"IF(INDIRECT(\"c\" & (VLOOKUP(Rebalance!$D$63,$F$2:$G$48,2,FALSE)+ROW()-2))=Rebalance!$D$63,INDIRECT(\"a\" & (VLOOKUP(Rebalance!$D$63,$F$2:$G$48,2,FALSE)+ROW()-2)),\"\")","v":{"$error":"#N/A"}},{"$f":"IF(INDIRECT(\"c\" & (VLOOKUP(Rebalance!$D$64,$F$2:$G$48,2,FALSE)+ROW()-2))=Rebalance!$D$64,INDIRECT(\"a\" & (VLOOKUP(Rebalance!$D$64,$F$2:$G$48,2,FALSE)+ROW()-2)),\"\")","v":{"$error":"#N/A"}},{"$f":"IF(INDIRECT(\"c\" & (VLOOKUP(Rebalance!$D$65,$F$2:$G$48,2,FALSE)+ROW()-2))=Rebalance!$D$65,INDIRECT(\"a\" & (VLOOKUP(Rebalance!$D$65,$F$2:$G$48,2,FALSE)+ROW()-2)),\"\")","v":{"$error":"#N/A"}},{"$f":"IF(INDIRECT(\"c\" & (VLOOKUP(Rebalance!$D$66,$F$2:$G$48,2,FALSE)+ROW()-2))=Rebalance!$D$66,INDIRECT(\"a\" & (VLOOKUP(Rebalance!$D$66,$F$2:$G$48,2,FALSE)+ROW()-2)),\"\")","v":{"$error":"#N/A"}}]
["PSG Wealth Preserver FoF D","PAPD","PSG Collective Investments Ltd",{"$f":"ROW()","v":499},null,null,{"$f":"VLOOKUP(F499,$C$2:$D$599,2,FALSE)","v":{"$error":"#N/A"}},{"$f":"IF(INDIRECT(\"c\" & (VLOOKUP(Rebalance!$D$26,$F$2:$G$48,2,FALSE)+ROW()-2))=Rebalance!$D$26,INDIRECT(\"a\" & (VLOOKUP(Rebalance!$D$26,$F$2:$G$48,2,FALSE)+ROW()-2)),\"\")","v":{"$error":"#N/A"}},{"$f":"IF(INDIRECT(\"c\" & (VLOOKUP(Rebalance!$D$27,$F$2:$G$48,2,FALSE)+ROW()-2))=Rebalance!$D$27,INDIRECT(\"a\" & (VLOOKUP(Rebalance!$D$27,$F$2:$G$48,2,FALSE)+ROW()-2)),\"\")","v":{"$error":"#N/A"}},{"$f":"IF(INDIRECT(\"c\" & (VLOOKUP(Rebalance!$D$28,$F$2:$G$48,2,FALSE)+ROW()-2))=Rebalance!$D$28,INDIRECT(\"a\" & (VLOOKUP(Rebalance!$D$28,$F$2:$G$48,2,FALSE)+ROW()-2)),\"\")","v":{"$error":"#N/A"}},{"$f":"IF(INDIRECT(\"c\" & (VLOOKUP(Rebalance!$D$29,$F$2:$G$48,2,FALSE)+ROW()-2))=Rebalance!$D$29,INDIRECT(\"a\" & (VLOOKUP(Rebalance!$D$29,$F$2:$G$48,2,FALSE)+ROW()-2)),\"\")","v":{"$error":"#N/A"}},{"$f":"IF(INDIRECT(\"c\" & (VLOOKUP(Rebalance!$D$30,$F$2:$G$48,2,FALSE)+ROW()-2))=Rebalance!$D$30,INDIRECT(\"a\" & (VLOOKUP(Rebalance!$D$30,$F$2:$G$48,2,FALSE)+ROW()-2)),\"\")","v":{"$error":"#N/A"}},{"$f":"IF(INDIRECT(\"c\" & (VLOOKUP(Rebalance!$D$31,$F$2:$G$48,2,FALSE)+ROW()-2))=Rebalance!$D$31,INDIRECT(\"a\" & (VLOOKUP(Rebalance!$D$31,$F$2:$G$48,2,FALSE)+ROW()-2)),\"\")","v":{"$error":"#N/A"}},{"$f":"IF(INDIRECT(\"c\" & (VLOOKUP(Rebalance!$D$32,$F$2:$G$48,2,FALSE)+ROW()-2))=Rebalance!$D$32,INDIRECT(\"a\" & (VLOOKUP(Rebalance!$D$32,$F$2:$G$48,2,FALSE)+ROW()-2)),\"\")","v":{"$error":"#N/A"}},{"$f":"IF(INDIRECT(\"c\" & (VLOOKUP(Rebalance!$D$33,$F$2:$G$48,2,FALSE)+ROW()-2))=Rebalance!$D$33,INDIRECT(\"a\" & (VLOOKUP(Rebalance!$D$33,$F$2:$G$48,2,FALSE)+ROW()-2)),\"\")","v":{"$error":"#N/A"}},{"$f":"IF(INDIRECT(\"c\" & (VLOOKUP(Rebalance!$D$34,$F$2:$G$48,2,FALSE)+ROW()-2))=Rebalance!$D$34,INDIRECT(\"a\" & (VLOOKUP(Rebalance!$D$34,$F$2:$G$48,2,FALSE)+ROW()-2)),\"\")","v":{"$error":"#N/A"}},{"$f":"IF(INDIRECT(\"c\" & (VLOOKUP(Rebalance!$D$35,$F$2:$G$48,2,FALSE)+ROW()-2))=Rebalance!$D$35,INDIRECT(\"a\" & (VLOOKUP(Rebalance!$D$35,$F$2:$G$48,2,FALSE)+ROW()-2)),\"\")","v":{"$error":"#N/A"}},{"$f":"IF(INDIRECT(\"c\" & (VLOOKUP(Rebalance!$D$36,$F$2:$G$48,2,FALSE)+ROW()-2))=Rebalance!$D$36,INDIRECT(\"a\" & (VLOOKUP(Rebalance!$D$36,$F$2:$G$48,2,FALSE)+ROW()-2)),\"\")","v":{"$error":"#N/A"}},{"$f":"IF(INDIRECT(\"c\" & (VLOOKUP(Rebalance!$D$37,$F$2:$G$48,2,FALSE)+ROW()-2))=Rebalance!$D$37,INDIRECT(\"a\" & (VLOOKUP(Rebalance!$D$37,$F$2:$G$48,2,FALSE)+ROW()-2)),\"\")","v":{"$error":"#N/A"}},{"$f":"IF(INDIRECT(\"c\" & (VLOOKUP(Rebalance!$D$38,$F$2:$G$48,2,FALSE)+ROW()-2))=Rebalance!$D$38,INDIRECT(\"a\" & (VLOOKUP(Rebalance!$D$38,$F$2:$G$48,2,FALSE)+ROW()-2)),\"\")","v":{"$error":"#N/A"}},{"$f":"IF(INDIRECT(\"c\" & (VLOOKUP(Rebalance!$D$39,$F$2:$G$48,2,FALSE)+ROW()-2))=Rebalance!$D$39,INDIRECT(\"a\" & (VLOOKUP(Rebalance!$D$39,$F$2:$G$48,2,FALSE)+ROW()-2)),\"\")","v":{"$error":"#N/A"}},{"$f":"IF(INDIRECT(\"c\" & (VLOOKUP(Rebalance!$D$40,$F$2:$G$48,2,FALSE)+ROW()-2))=Rebalance!$D$40,INDIRECT(\"a\" & (VLOOKUP(Rebalance!$D$40,$F$2:$G$48,2,FALSE)+ROW()-2)),\"\")","v":{"$error":"#N/A"}},{"$f":"IF(INDIRECT(\"c\" & (VLOOKUP(Rebalance!$D$52,$F$2:$G$48,2,FALSE)+ROW()-2))=Rebalance!$D$52,INDIRECT(\"a\" & (VLOOKUP(Rebalance!$D$52,$F$2:$G$48,2,FALSE)+ROW()-2)),\"\")","v":{"$error":"#N/A"}},{"$f":"IF(INDIRECT(\"c\" & (VLOOKUP(Rebalance!$D$53,$F$2:$G$48,2,FALSE)+ROW()-2))=Rebalance!$D$53,INDIRECT(\"a\" & (VLOOKUP(Rebalance!$D$53,$F$2:$G$48,2,FALSE)+ROW()-2)),\"\")","v":{"$error":"#N/A"}},{"$f":"IF(INDIRECT(\"c\" & (VLOOKUP(Rebalance!$D$54,$F$2:$G$48,2,FALSE)+ROW()-2))=Rebalance!$D$54,INDIRECT(\"a\" & (VLOOKUP(Rebalance!$D$54,$F$2:$G$48,2,FALSE)+ROW()-2)),\"\")","v":{"$error":"#N/A"}},{"$f":"IF(INDIRECT(\"c\" & (VLOOKUP(Rebalance!$D$55,$F$2:$G$48,2,FALSE)+ROW()-2))=Rebalance!$D$55,INDIRECT(\"a\" & (VLOOKUP(Rebalance!$D$55,$F$2:$G$48,2,FALSE)+ROW()-2)),\"\")","v":{"$error":"#N/A"}},{"$f":"IF(INDIRECT(\"c\" & (VLOOKUP(Rebalance!$D$56,$F$2:$G$48,2,FALSE)+ROW()-2))=Rebalance!$D$56,INDIRECT(\"a\" & (VLOOKUP(Rebalance!$D$56,$F$2:$G$48,2,FALSE)+ROW()-2)),\"\")","v":{"$error":"#N/A"}},{"$f":"IF(INDIRECT(\"c\" & (VLOOKUP(Rebalance!$D$57,$F$2:$G$48,2,FALSE)+ROW()-2))=Rebalance!$D$57,INDIRECT(\"a\" & (VLOOKUP(Rebalance!$D$57,$F$2:$G$48,2,FALSE)+ROW()-2)),\"\")","v":{"$error":"#N/A"}},{"$f":"IF(INDIRECT(\"c\" & (VLOOKUP(Rebalance!$D$58,$F$2:$G$48,2,FALSE)+ROW()-2))=Rebalance!$D$58,INDIRECT(\"a\" & (VLOOKUP(Rebalance!$D$58,$F$2:$G$48,2,FALSE)+ROW()-2)),\"\")","v":{"$error":"#N/A"}},{"$f":"IF(INDIRECT(\"c\" & (VLOOKUP(Rebalance!$D$59,$F$2:$G$48,2,FALSE)+ROW()-2))=Rebalance!$D$59,INDIRECT(\"a\" & (VLOOKUP(Rebalance!$D$59,$F$2:$G$48,2,FALSE)+ROW()-2)),\"\")","v":{"$error":"#N/A"}},{"$f":"IF(INDIRECT(\"c\" & (VLOOKUP(Rebalance!$D$60,$F$2:$G$48,2,FALSE)+ROW()-2))=Rebalance!$D$60,INDIRECT(\"a\" & (VLOOKUP(Rebalance!$D$60,$F$2:$G$48,2,FALSE)+ROW()-2)),\"\")","v":{"$error":"#N/A"}},{"$f":"IF(INDIRECT(\"c\" & (VLOOKUP(Rebalance!$D$61,$F$2:$G$48,2,FALSE)+ROW()-2))=Rebalance!$D$61,INDIRECT(\"a\" & (VLOOKUP(Rebalance!$D$61,$F$2:$G$48,2,FALSE)+ROW()-2)),\"\")","v":{"$error":"#N/A"}},{"$f":"IF(INDIRECT(\"c\" & (VLOOKUP(Rebalance!$D$62,$F$2:$G$48,2,FALSE)+ROW()-2))=Rebalance!$D$62,INDIRECT(\"a\" & (VLOOKUP(Rebalance!$D$62,$F$2:$G$48,2,FALSE)+ROW()-2)),\"\")","v":{"$error":"#N/A"}},{"$f":"IF(INDIRECT(\"c\" & (VLOOKUP(Rebalance!$D$63,$F$2:$G$48,2,FALSE)+ROW()-2))=Rebalance!$D$63,INDIRECT(\"a\" & (VLOOKUP(Rebalance!$D$63,$F$2:$G$48,2,FALSE)+ROW()-2)),\"\")","v":{"$error":"#N/A"}},{"$f":"IF(INDIRECT(\"c\" & (VLOOKUP(Rebalance!$D$64,$F$2:$G$48,2,FALSE)+ROW()-2))=Rebalance!$D$64,INDIRECT(\"a\" & (VLOOKUP(Rebalance!$D$64,$F$2:$G$48,2,FALSE)+ROW()-2)),\"\")","v":{"$error":"#N/A"}},{"$f":"IF(INDIRECT(\"c\" & (VLOOKUP(Rebalance!$D$65,$F$2:$G$48,2,FALSE)+ROW()-2))=Rebalance!$D$65,INDIRECT(\"a\" & (VLOOKUP(Rebalance!$D$65,$F$2:$G$48,2,FALSE)+ROW()-2)),\"\")","v":{"$error":"#N/A"}},{"$f":"IF(INDIRECT(\"c\" & (VLOOKUP(Rebalance!$D$66,$F$2:$G$48,2,FALSE)+ROW()-2))=Rebalance!$D$66,INDIRECT(\"a\" & (VLOOKUP(Rebalance!$D$66,$F$2:$G$48,2,FALSE)+ROW()-2)),\"\")","v":{"$error":"#N/A"}}]
["Rezco Equity Fund C","REFCC","Rezco Collective Investments Ltd",{"$f":"ROW()","v":500},null,null,{"$f":"VLOOKUP(F500,$C$2:$D$599,2,FALSE)","v":{"$error":"#N/A"}},{"$f":"IF(INDIRECT(\"c\" & (VLOOKUP(Rebalance!$D$26,$F$2:$G$48,2,FALSE)+ROW()-2))=Rebalance!$D$26,INDIRECT(\"a\" & (VLOOKUP(Rebalance!$D$26,$F$2:$G$48,2,FALSE)+ROW()-2)),\"\")","v":{"$error":"#N/A"}},{"$f":"IF(INDIRECT(\"c\" & (VLOOKUP(Rebalance!$D$27,$F$2:$G$48,2,FALSE)+ROW()-2))=Rebalance!$D$27,INDIRECT(\"a\" & (VLOOKUP(Rebalance!$D$27,$F$2:$G$48,2,FALSE)+ROW()-2)),\"\")","v":{"$error":"#N/A"}},{"$f":"IF(INDIRECT(\"c\" & (VLOOKUP(Rebalance!$D$28,$F$2:$G$48,2,FALSE)+ROW()-2))=Rebalance!$D$28,INDIRECT(\"a\" & (VLOOKUP(Rebalance!$D$28,$F$2:$G$48,2,FALSE)+ROW()-2)),\"\")","v":{"$error":"#N/A"}},{"$f":"IF(INDIRECT(\"c\" & (VLOOKUP(Rebalance!$D$29,$F$2:$G$48,2,FALSE)+ROW()-2))=Rebalance!$D$29,INDIRECT(\"a\" & (VLOOKUP(Rebalance!$D$29,$F$2:$G$48,2,FALSE)+ROW()-2)),\"\")","v":{"$error":"#N/A"}},{"$f":"IF(INDIRECT(\"c\" & (VLOOKUP(Rebalance!$D$30,$F$2:$G$48,2,FALSE)+ROW()-2))=Rebalance!$D$30,INDIRECT(\"a\" & (VLOOKUP(Rebalance!$D$30,$F$2:$G$48,2,FALSE)+ROW()-2)),\"\")","v":{"$error":"#N/A"}},{"$f":"IF(INDIRECT(\"c\" & (VLOOKUP(Rebalance!$D$31,$F$2:$G$48,2,FALSE)+ROW()-2))=Rebalance!$D$31,INDIRECT(\"a\" & (VLOOKUP(Rebalance!$D$31,$F$2:$G$48,2,FALSE)+ROW()-2)),\"\")","v":{"$error":"#N/A"}},{"$f":"IF(INDIRECT(\"c\" & (VLOOKUP(Rebalance!$D$32,$F$2:$G$48,2,FALSE)+ROW()-2))=Rebalance!$D$32,INDIRECT(\"a\" & (VLOOKUP(Rebalance!$D$32,$F$2:$G$48,2,FALSE)+ROW()-2)),\"\")","v":{"$error":"#N/A"}},{"$f":"IF(INDIRECT(\"c\" & (VLOOKUP(Rebalance!$D$33,$F$2:$G$48,2,FALSE)+ROW()-2))=Rebalance!$D$33,INDIRECT(\"a\" & (VLOOKUP(Rebalance!$D$33,$F$2:$G$48,2,FALSE)+ROW()-2)),\"\")","v":{"$error":"#N/A"}},{"$f":"IF(INDIRECT(\"c\" & (VLOOKUP(Rebalance!$D$34,$F$2:$G$48,2,FALSE)+ROW()-2))=Rebalance!$D$34,INDIRECT(\"a\" & (VLOOKUP(Rebalance!$D$34,$F$2:$G$48,2,FALSE)+ROW()-2)),\"\")","v":{"$error":"#N/A"}},{"$f":"IF(INDIRECT(\"c\" & (VLOOKUP(Rebalance!$D$35,$F$2:$G$48,2,FALSE)+ROW()-2))=Rebalance!$D$35,INDIRECT(\"a\" & (VLOOKUP(Rebalance!$D$35,$F$2:$G$48,2,FALSE)+ROW()-2)),\"\")","v":{"$error":"#N/A"}},{"$f":"IF(INDIRECT(\"c\" & (VLOOKUP(Rebalance!$D$36,$F$2:$G$48,2,FALSE)+ROW()-2))=Rebalance!$D$36,INDIRECT(\"a\" & (VLOOKUP(Rebalance!$D$36,$F$2:$G$48,2,FALSE)+ROW()-2)),\"\")","v":{"$error":"#N/A"}},{"$f":"IF(INDIRECT(\"c\" & (VLOOKUP(Rebalance!$D$37,$F$2:$G$48,2,FALSE)+ROW()-2))=Rebalance!$D$37,INDIRECT(\"a\" & (VLOOKUP(Rebalance!$D$37,$F$2:$G$48,2,FALSE)+ROW()-2)),\"\")","v":{"$error":"#N/A"}},{"$f":"IF(INDIRECT(\"c\" & (VLOOKUP(Rebalance!$D$38,$F$2:$G$48,2,FALSE)+ROW()-2))=Rebalance!$D$38,INDIRECT(\"a\" & (VLOOKUP(Rebalance!$D$38,$F$2:$G$48,2,FALSE)+ROW()-2)),\"\")","v":{"$error":"#N/A"}},{"$f":"IF(INDIRECT(\"c\" & (VLOOKUP(Rebalance!$D$39,$F$2:$G$48,2,FALSE)+ROW()-2))=Rebalance!$D$39,INDIRECT(\"a\" & (VLOOKUP(Rebalance!$D$39,$F$2:$G$48,2,FALSE)+ROW()-2)),\"\")","v":{"$error":"#N/A"}},{"$f":"IF(INDIRECT(\"c\" & (VLOOKUP(Rebalance!$D$40,$F$2:$G$48,2,FALSE)+ROW()-2))=Rebalance!$D$40,INDIRECT(\"a\" & (VLOOKUP(Rebalance!$D$40,$F$2:$G$48,2,FALSE)+ROW()-2)),\"\")","v":{"$error":"#N/A"}},{"$f":"IF(INDIRECT(\"c\" & (VLOOKUP(Rebalance!$D$52,$F$2:$G$48,2,FALSE)+ROW()-2))=Rebalance!$D$52,INDIRECT(\"a\" & (VLOOKUP(Rebalance!$D$52,$F$2:$G$48,2,FALSE)+ROW()-2)),\"\")","v":{"$error":"#N/A"}},{"$f":"IF(INDIRECT(\"c\" & (VLOOKUP(Rebalance!$D$53,$F$2:$G$48,2,FALSE)+ROW()-2))=Rebalance!$D$53,INDIRECT(\"a\" & (VLOOKUP(Rebalance!$D$53,$F$2:$G$48,2,FALSE)+ROW()-2)),\"\")","v":{"$error":"#N/A"}},{"$f":"IF(INDIRECT(\"c\" & (VLOOKUP(Rebalance!$D$54,$F$2:$G$48,2,FALSE)+ROW()-2))=Rebalance!$D$54,INDIRECT(\"a\" & (VLOOKUP(Rebalance!$D$54,$F$2:$G$48,2,FALSE)+ROW()-2)),\"\")","v":{"$error":"#N/A"}},{"$f":"IF(INDIRECT(\"c\" & (VLOOKUP(Rebalance!$D$55,$F$2:$G$48,2,FALSE)+ROW()-2))=Rebalance!$D$55,INDIRECT(\"a\" & (VLOOKUP(Rebalance!$D$55,$F$2:$G$48,2,FALSE)+ROW()-2)),\"\")","v":{"$error":"#N/A"}},{"$f":"IF(INDIRECT(\"c\" & (VLOOKUP(Rebalance!$D$56,$F$2:$G$48,2,FALSE)+ROW()-2))=Rebalance!$D$56,INDIRECT(\"a\" & (VLOOKUP(Rebalance!$D$56,$F$2:$G$48,2,FALSE)+ROW()-2)),\"\")","v":{"$error":"#N/A"}},{"$f":"IF(INDIRECT(\"c\" & (VLOOKUP(Rebalance!$D$57,$F$2:$G$48,2,FALSE)+ROW()-2))=Rebalance!$D$57,INDIRECT(\"a\" & (VLOOKUP(Rebalance!$D$57,$F$2:$G$48,2,FALSE)+ROW()-2)),\"\")","v":{"$error":"#N/A"}},{"$f":"IF(INDIRECT(\"c\" & (VLOOKUP(Rebalance!$D$58,$F$2:$G$48,2,FALSE)+ROW()-2))=Rebalance!$D$58,INDIRECT(\"a\" & (VLOOKUP(Rebalance!$D$58,$F$2:$G$48,2,FALSE)+ROW()-2)),\"\")","v":{"$error":"#N/A"}},{"$f":"IF(INDIRECT(\"c\" & (VLOOKUP(Rebalance!$D$59,$F$2:$G$48,2,FALSE)+ROW()-2))=Rebalance!$D$59,INDIRECT(\"a\" & (VLOOKUP(Rebalance!$D$59,$F$2:$G$48,2,FALSE)+ROW()-2)),\"\")","v":{"$error":"#N/A"}},{"$f":"IF(INDIRECT(\"c\" & (VLOOKUP(Rebalance!$D$60,$F$2:$G$48,2,FALSE)+ROW()-2))=Rebalance!$D$60,INDIRECT(\"a\" & (VLOOKUP(Rebalance!$D$60,$F$2:$G$48,2,FALSE)+ROW()-2)),\"\")","v":{"$error":"#N/A"}},{"$f":"IF(INDIRECT(\"c\" & (VLOOKUP(Rebalance!$D$61,$F$2:$G$48,2,FALSE)+ROW()-2))=Rebalance!$D$61,INDIRECT(\"a\" & (VLOOKUP(Rebalance!$D$61,$F$2:$G$48,2,FALSE)+ROW()-2)),\"\")","v":{"$error":"#N/A"}},{"$f":"IF(INDIRECT(\"c\" & (VLOOKUP(Rebalance!$D$62,$F$2:$G$48,2,FALSE)+ROW()-2))=Rebalance!$D$62,INDIRECT(\"a\" & (VLOOKUP(Rebalance!$D$62,$F$2:$G$48,2,FALSE)+ROW()-2)),\"\")","v":{"$error":"#N/A"}},{"$f":"IF(INDIRECT(\"c\" & (VLOOKUP(Rebalance!$D$63,$F$2:$G$48,2,FALSE)+ROW()-2))=Rebalance!$D$63,INDIRECT(\"a\" & (VLOOKUP(Rebalance!$D$63,$F$2:$G$48,2,FALSE)+ROW()-2)),\"\")","v":{"$error":"#N/A"}},{"$f":"IF(INDIRECT(\"c\" & (VLOOKUP(Rebalance!$D$64,$F$2:$G$48,2,FALSE)+ROW()-2))=Rebalance!$D$64,INDIRECT(\"a\" & (VLOOKUP(Rebalance!$D$64,$F$2:$G$48,2,FALSE)+ROW()-2)),\"\")","v":{"$error":"#N/A"}},{"$f":"IF(INDIRECT(\"c\" & (VLOOKUP(Rebalance!$D$65,$F$2:$G$48,2,FALSE)+ROW()-2))=Rebalance!$D$65,INDIRECT(\"a\" & (VLOOKUP(Rebalance!$D$65,$F$2:$G$48,2,FALSE)+ROW()-2)),\"\")","v":{"$error":"#N/A"}},{"$f":"IF(INDIRECT(\"c\" & (VLOOKUP(Rebalance!$D$66,$F$2:$G$48,2,FALSE)+ROW()-2))=Rebalance!$D$66,INDIRECT(\"a\" & (VLOOKUP(Rebalance!$D$66,$F$2:$G$48,2,FALSE)+ROW()-2)),\"\")","v":{"$error":"#N/A"}}]
["Rezco Managed Plus C","RPFCC","Rezco Collective Investments Ltd",{"$f":"ROW()","v":501},null,null,{"$f":"VLOOKUP(F501,$C$2:$D$599,2,FALSE)","v":{"$error":"#N/A"}},{"$f":"IF(INDIRECT(\"c\" & (VLOOKUP(Rebalance!$D$26,$F$2:$G$48,2,FALSE)+ROW()-2))=Rebalance!$D$26,INDIRECT(\"a\" & (VLOOKUP(Rebalance!$D$26,$F$2:$G$48,2,FALSE)+ROW()-2)),\"\")","v":{"$error":"#N/A"}},{"$f":"IF(INDIRECT(\"c\" & (VLOOKUP(Rebalance!$D$27,$F$2:$G$48,2,FALSE)+ROW()-2))=Rebalance!$D$27,INDIRECT(\"a\" & (VLOOKUP(Rebalance!$D$27,$F$2:$G$48,2,FALSE)+ROW()-2)),\"\")","v":{"$error":"#N/A"}},{"$f":"IF(INDIRECT(\"c\" & (VLOOKUP(Rebalance!$D$28,$F$2:$G$48,2,FALSE)+ROW()-2))=Rebalance!$D$28,INDIRECT(\"a\" & (VLOOKUP(Rebalance!$D$28,$F$2:$G$48,2,FALSE)+ROW()-2)),\"\")","v":{"$error":"#N/A"}},{"$f":"IF(INDIRECT(\"c\" & (VLOOKUP(Rebalance!$D$29,$F$2:$G$48,2,FALSE)+ROW()-2))=Rebalance!$D$29,INDIRECT(\"a\" & (VLOOKUP(Rebalance!$D$29,$F$2:$G$48,2,FALSE)+ROW()-2)),\"\")","v":{"$error":"#N/A"}},{"$f":"IF(INDIRECT(\"c\" & (VLOOKUP(Rebalance!$D$30,$F$2:$G$48,2,FALSE)+ROW()-2))=Rebalance!$D$30,INDIRECT(\"a\" & (VLOOKUP(Rebalance!$D$30,$F$2:$G$48,2,FALSE)+ROW()-2)),\"\")","v":{"$error":"#N/A"}},{"$f":"IF(INDIRECT(\"c\" & (VLOOKUP(Rebalance!$D$31,$F$2:$G$48,2,FALSE)+ROW()-2))=Rebalance!$D$31,INDIRECT(\"a\" & (VLOOKUP(Rebalance!$D$31,$F$2:$G$48,2,FALSE)+ROW()-2)),\"\")","v":{"$error":"#N/A"}},{"$f":"IF(INDIRECT(\"c\" & (VLOOKUP(Rebalance!$D$32,$F$2:$G$48,2,FALSE)+ROW()-2))=Rebalance!$D$32,INDIRECT(\"a\" & (VLOOKUP(Rebalance!$D$32,$F$2:$G$48,2,FALSE)+ROW()-2)),\"\")","v":{"$error":"#N/A"}},{"$f":"IF(INDIRECT(\"c\" & (VLOOKUP(Rebalance!$D$33,$F$2:$G$48,2,FALSE)+ROW()-2))=Rebalance!$D$33,INDIRECT(\"a\" & (VLOOKUP(Rebalance!$D$33,$F$2:$G$48,2,FALSE)+ROW()-2)),\"\")","v":{"$error":"#N/A"}},{"$f":"IF(INDIRECT(\"c\" & (VLOOKUP(Rebalance!$D$34,$F$2:$G$48,2,FALSE)+ROW()-2))=Rebalance!$D$34,INDIRECT(\"a\" & (VLOOKUP(Rebalance!$D$34,$F$2:$G$48,2,FALSE)+ROW()-2)),\"\")","v":{"$error":"#N/A"}},{"$f":"IF(INDIRECT(\"c\" & (VLOOKUP(Rebalance!$D$35,$F$2:$G$48,2,FALSE)+ROW()-2))=Rebalance!$D$35,INDIRECT(\"a\" & (VLOOKUP(Rebalance!$D$35,$F$2:$G$48,2,FALSE)+ROW()-2)),\"\")","v":{"$error":"#N/A"}},{"$f":"IF(INDIRECT(\"c\" & (VLOOKUP(Rebalance!$D$36,$F$2:$G$48,2,FALSE)+ROW()-2))=Rebalance!$D$36,INDIRECT(\"a\" & (VLOOKUP(Rebalance!$D$36,$F$2:$G$48,2,FALSE)+ROW()-2)),\"\")","v":{"$error":"#N/A"}},{"$f":"IF(INDIRECT(\"c\" & (VLOOKUP(Rebalance!$D$37,$F$2:$G$48,2,FALSE)+ROW()-2))=Rebalance!$D$37,INDIRECT(\"a\" & (VLOOKUP(Rebalance!$D$37,$F$2:$G$48,2,FALSE)+ROW()-2)),\"\")","v":{"$error":"#N/A"}},{"$f":"IF(INDIRECT(\"c\" & (VLOOKUP(Rebalance!$D$38,$F$2:$G$48,2,FALSE)+ROW()-2))=Rebalance!$D$38,INDIRECT(\"a\" & (VLOOKUP(Rebalance!$D$38,$F$2:$G$48,2,FALSE)+ROW()-2)),\"\")","v":{"$error":"#N/A"}},{"$f":"IF(INDIRECT(\"c\" & (VLOOKUP(Rebalance!$D$39,$F$2:$G$48,2,FALSE)+ROW()-2))=Rebalance!$D$39,INDIRECT(\"a\" & (VLOOKUP(Rebalance!$D$39,$F$2:$G$48,2,FALSE)+ROW()-2)),\"\")","v":{"$error":"#N/A"}},{"$f":"IF(INDIRECT(\"c\" & (VLOOKUP(Rebalance!$D$40,$F$2:$G$48,2,FALSE)+ROW()-2))=Rebalance!$D$40,INDIRECT(\"a\" & (VLOOKUP(Rebalance!$D$40,$F$2:$G$48,2,FALSE)+ROW()-2)),\"\")","v":{"$error":"#N/A"}},{"$f":"IF(INDIRECT(\"c\" & (VLOOKUP(Rebalance!$D$52,$F$2:$G$48,2,FALSE)+ROW()-2))=Rebalance!$D$52,INDIRECT(\"a\" & (VLOOKUP(Rebalance!$D$52,$F$2:$G$48,2,FALSE)+ROW()-2)),\"\")","v":{"$error":"#N/A"}},{"$f":"IF(INDIRECT(\"c\" & (VLOOKUP(Rebalance!$D$53,$F$2:$G$48,2,FALSE)+ROW()-2))=Rebalance!$D$53,INDIRECT(\"a\" & (VLOOKUP(Rebalance!$D$53,$F$2:$G$48,2,FALSE)+ROW()-2)),\"\")","v":{"$error":"#N/A"}},{"$f":"IF(INDIRECT(\"c\" & (VLOOKUP(Rebalance!$D$54,$F$2:$G$48,2,FALSE)+ROW()-2))=Rebalance!$D$54,INDIRECT(\"a\" & (VLOOKUP(Rebalance!$D$54,$F$2:$G$48,2,FALSE)+ROW()-2)),\"\")","v":{"$error":"#N/A"}},{"$f":"IF(INDIRECT(\"c\" & (VLOOKUP(Rebalance!$D$55,$F$2:$G$48,2,FALSE)+ROW()-2))=Rebalance!$D$55,INDIRECT(\"a\" & (VLOOKUP(Rebalance!$D$55,$F$2:$G$48,2,FALSE)+ROW()-2)),\"\")","v":{"$error":"#N/A"}},{"$f":"IF(INDIRECT(\"c\" & (VLOOKUP(Rebalance!$D$56,$F$2:$G$48,2,FALSE)+ROW()-2))=Rebalance!$D$56,INDIRECT(\"a\" & (VLOOKUP(Rebalance!$D$56,$F$2:$G$48,2,FALSE)+ROW()-2)),\"\")","v":{"$error":"#N/A"}},{"$f":"IF(INDIRECT(\"c\" & (VLOOKUP(Rebalance!$D$57,$F$2:$G$48,2,FALSE)+ROW()-2))=Rebalance!$D$57,INDIRECT(\"a\" & (VLOOKUP(Rebalance!$D$57,$F$2:$G$48,2,FALSE)+ROW()-2)),\"\")","v":{"$error":"#N/A"}},{"$f":"IF(INDIRECT(\"c\" & (VLOOKUP(Rebalance!$D$58,$F$2:$G$48,2,FALSE)+ROW()-2))=Rebalance!$D$58,INDIRECT(\"a\" & (VLOOKUP(Rebalance!$D$58,$F$2:$G$48,2,FALSE)+ROW()-2)),\"\")","v":{"$error":"#N/A"}},{"$f":"IF(INDIRECT(\"c\" & (VLOOKUP(Rebalance!$D$59,$F$2:$G$48,2,FALSE)+ROW()-2))=Rebalance!$D$59,INDIRECT(\"a\" & (VLOOKUP(Rebalance!$D$59,$F$2:$G$48,2,FALSE)+ROW()-2)),\"\")","v":{"$error":"#N/A"}},{"$f":"IF(INDIRECT(\"c\" & (VLOOKUP(Rebalance!$D$60,$F$2:$G$48,2,FALSE)+ROW()-2))=Rebalance!$D$60,INDIRECT(\"a\" & (VLOOKUP(Rebalance!$D$60,$F$2:$G$48,2,FALSE)+ROW()-2)),\"\")","v":{"$error":"#N/A"}},{"$f":"IF(INDIRECT(\"c\" & (VLOOKUP(Rebalance!$D$61,$F$2:$G$48,2,FALSE)+ROW()-2))=Rebalance!$D$61,INDIRECT(\"a\" & (VLOOKUP(Rebalance!$D$61,$F$2:$G$48,2,FALSE)+ROW()-2)),\"\")","v":{"$error":"#N/A"}},{"$f":"IF(INDIRECT(\"c\" & (VLOOKUP(Rebalance!$D$62,$F$2:$G$48,2,FALSE)+ROW()-2))=Rebalance!$D$62,INDIRECT(\"a\" & (VLOOKUP(Rebalance!$D$62,$F$2:$G$48,2,FALSE)+ROW()-2)),\"\")","v":{"$error":"#N/A"}},{"$f":"IF(INDIRECT(\"c\" & (VLOOKUP(Rebalance!$D$63,$F$2:$G$48,2,FALSE)+ROW()-2))=Rebalance!$D$63,INDIRECT(\"a\" & (VLOOKUP(Rebalance!$D$63,$F$2:$G$48,2,FALSE)+ROW()-2)),\"\")","v":{"$error":"#N/A"}},{"$f":"IF(INDIRECT(\"c\" & (VLOOKUP(Rebalance!$D$64,$F$2:$G$48,2,FALSE)+ROW()-2))=Rebalance!$D$64,INDIRECT(\"a\" & (VLOOKUP(Rebalance!$D$64,$F$2:$G$48,2,FALSE)+ROW()-2)),\"\")","v":{"$error":"#N/A"}},{"$f":"IF(INDIRECT(\"c\" & (VLOOKUP(Rebalance!$D$65,$F$2:$G$48,2,FALSE)+ROW()-2))=Rebalance!$D$65,INDIRECT(\"a\" & (VLOOKUP(Rebalance!$D$65,$F$2:$G$48,2,FALSE)+ROW()-2)),\"\")","v":{"$error":"#N/A"}},{"$f":"IF(INDIRECT(\"c\" & (VLOOKUP(Rebalance!$D$66,$F$2:$G$48,2,FALSE)+ROW()-2))=Rebalance!$D$66,INDIRECT(\"a\" & (VLOOKUP(Rebalance!$D$66,$F$2:$G$48,2,FALSE)+ROW()-2)),\"\")","v":{"$error":"#N/A"}}]
["Rezco Stable Fund C","RESTC","Rezco Collective Investments Ltd",{"$f":"ROW()","v":502},null,null,{"$f":"VLOOKUP(F502,$C$2:$D$599,2,FALSE)","v":{"$error":"#N/A"}},{"$f":"IF(INDIRECT(\"c\" & (VLOOKUP(Rebalance!$D$26,$F$2:$G$48,2,FALSE)+ROW()-2))=Rebalance!$D$26,INDIRECT(\"a\" & (VLOOKUP(Rebalance!$D$26,$F$2:$G$48,2,FALSE)+ROW()-2)),\"\")","v":{"$error":"#N/A"}},{"$f":"IF(INDIRECT(\"c\" & (VLOOKUP(Rebalance!$D$27,$F$2:$G$48,2,FALSE)+ROW()-2))=Rebalance!$D$27,INDIRECT(\"a\" & (VLOOKUP(Rebalance!$D$27,$F$2:$G$48,2,FALSE)+ROW()-2)),\"\")","v":{"$error":"#N/A"}},{"$f":"IF(INDIRECT(\"c\" & (VLOOKUP(Rebalance!$D$28,$F$2:$G$48,2,FALSE)+ROW()-2))=Rebalance!$D$28,INDIRECT(\"a\" & (VLOOKUP(Rebalance!$D$28,$F$2:$G$48,2,FALSE)+ROW()-2)),\"\")","v":{"$error":"#N/A"}},{"$f":"IF(INDIRECT(\"c\" & (VLOOKUP(Rebalance!$D$29,$F$2:$G$48,2,FALSE)+ROW()-2))=Rebalance!$D$29,INDIRECT(\"a\" & (VLOOKUP(Rebalance!$D$29,$F$2:$G$48,2,FALSE)+ROW()-2)),\"\")","v":{"$error":"#N/A"}},{"$f":"IF(INDIRECT(\"c\" & (VLOOKUP(Rebalance!$D$30,$F$2:$G$48,2,FALSE)+ROW()-2))=Rebalance!$D$30,INDIRECT(\"a\" & (VLOOKUP(Rebalance!$D$30,$F$2:$G$48,2,FALSE)+ROW()-2)),\"\")","v":{"$error":"#N/A"}},{"$f":"IF(INDIRECT(\"c\" & (VLOOKUP(Rebalance!$D$31,$F$2:$G$48,2,FALSE)+ROW()-2))=Rebalance!$D$31,INDIRECT(\"a\" & (VLOOKUP(Rebalance!$D$31,$F$2:$G$48,2,FALSE)+ROW()-2)),\"\")","v":{"$error":"#N/A"}},{"$f":"IF(INDIRECT(\"c\" & (VLOOKUP(Rebalance!$D$32,$F$2:$G$48,2,FALSE)+ROW()-2))=Rebalance!$D$32,INDIRECT(\"a\" & (VLOOKUP(Rebalance!$D$32,$F$2:$G$48,2,FALSE)+ROW()-2)),\"\")","v":{"$error":"#N/A"}},{"$f":"IF(INDIRECT(\"c\" & (VLOOKUP(Rebalance!$D$33,$F$2:$G$48,2,FALSE)+ROW()-2))=Rebalance!$D$33,INDIRECT(\"a\" & (VLOOKUP(Rebalance!$D$33,$F$2:$G$48,2,FALSE)+ROW()-2)),\"\")","v":{"$error":"#N/A"}},{"$f":"IF(INDIRECT(\"c\" & (VLOOKUP(Rebalance!$D$34,$F$2:$G$48,2,FALSE)+ROW()-2))=Rebalance!$D$34,INDIRECT(\"a\" & (VLOOKUP(Rebalance!$D$34,$F$2:$G$48,2,FALSE)+ROW()-2)),\"\")","v":{"$error":"#N/A"}},{"$f":"IF(INDIRECT(\"c\" & (VLOOKUP(Rebalance!$D$35,$F$2:$G$48,2,FALSE)+ROW()-2))=Rebalance!$D$35,INDIRECT(\"a\" & (VLOOKUP(Rebalance!$D$35,$F$2:$G$48,2,FALSE)+ROW()-2)),\"\")","v":{"$error":"#N/A"}},{"$f":"IF(INDIRECT(\"c\" & (VLOOKUP(Rebalance!$D$36,$F$2:$G$48,2,FALSE)+ROW()-2))=Rebalance!$D$36,INDIRECT(\"a\" & (VLOOKUP(Rebalance!$D$36,$F$2:$G$48,2,FALSE)+ROW()-2)),\"\")","v":{"$error":"#N/A"}},{"$f":"IF(INDIRECT(\"c\" & (VLOOKUP(Rebalance!$D$37,$F$2:$G$48,2,FALSE)+ROW()-2))=Rebalance!$D$37,INDIRECT(\"a\" & (VLOOKUP(Rebalance!$D$37,$F$2:$G$48,2,FALSE)+ROW()-2)),\"\")","v":{"$error":"#N/A"}},{"$f":"IF(INDIRECT(\"c\" & (VLOOKUP(Rebalance!$D$38,$F$2:$G$48,2,FALSE)+ROW()-2))=Rebalance!$D$38,INDIRECT(\"a\" & (VLOOKUP(Rebalance!$D$38,$F$2:$G$48,2,FALSE)+ROW()-2)),\"\")","v":{"$error":"#N/A"}},{"$f":"IF(INDIRECT(\"c\" & (VLOOKUP(Rebalance!$D$39,$F$2:$G$48,2,FALSE)+ROW()-2))=Rebalance!$D$39,INDIRECT(\"a\" & (VLOOKUP(Rebalance!$D$39,$F$2:$G$48,2,FALSE)+ROW()-2)),\"\")","v":{"$error":"#N/A"}},{"$f":"IF(INDIRECT(\"c\" & (VLOOKUP(Rebalance!$D$40,$F$2:$G$48,2,FALSE)+ROW()-2))=Rebalance!$D$40,INDIRECT(\"a\" & (VLOOKUP(Rebalance!$D$40,$F$2:$G$48,2,FALSE)+ROW()-2)),\"\")","v":{"$error":"#N/A"}},{"$f":"IF(INDIRECT(\"c\" & (VLOOKUP(Rebalance!$D$52,$F$2:$G$48,2,FALSE)+ROW()-2))=Rebalance!$D$52,INDIRECT(\"a\" & (VLOOKUP(Rebalance!$D$52,$F$2:$G$48,2,FALSE)+ROW()-2)),\"\")","v":{"$error":"#N/A"}},{"$f":"IF(INDIRECT(\"c\" & (VLOOKUP(Rebalance!$D$53,$F$2:$G$48,2,FALSE)+ROW()-2))=Rebalance!$D$53,INDIRECT(\"a\" & (VLOOKUP(Rebalance!$D$53,$F$2:$G$48,2,FALSE)+ROW()-2)),\"\")","v":{"$error":"#N/A"}},{"$f":"IF(INDIRECT(\"c\" & (VLOOKUP(Rebalance!$D$54,$F$2:$G$48,2,FALSE)+ROW()-2))=Rebalance!$D$54,INDIRECT(\"a\" & (VLOOKUP(Rebalance!$D$54,$F$2:$G$48,2,FALSE)+ROW()-2)),\"\")","v":{"$error":"#N/A"}},{"$f":"IF(INDIRECT(\"c\" & (VLOOKUP(Rebalance!$D$55,$F$2:$G$48,2,FALSE)+ROW()-2))=Rebalance!$D$55,INDIRECT(\"a\" & (VLOOKUP(Rebalance!$D$55,$F$2:$G$48,2,FALSE)+ROW()-2)),\"\")","v":{"$error":"#N/A"}},{"$f":"IF(INDIRECT(\"c\" & (VLOOKUP(Rebalance!$D$56,$F$2:$G$48,2,FALSE)+ROW()-2))=Rebalance!$D$56,INDIRECT(\"a\" & (VLOOKUP(Rebalance!$D$56,$F$2:$G$48,2,FALSE)+ROW()-2)),\"\")","v":{"$error":"#N/A"}},{"$f":"IF(INDIRECT(\"c\" & (VLOOKUP(Rebalance!$D$57,$F$2:$G$48,2,FALSE)+ROW()-2))=Rebalance!$D$57,INDIRECT(\"a\" & (VLOOKUP(Rebalance!$D$57,$F$2:$G$48,2,FALSE)+ROW()-2)),\"\")","v":{"$error":"#N/A"}},{"$f":"IF(INDIRECT(\"c\" & (VLOOKUP(Rebalance!$D$58,$F$2:$G$48,2,FALSE)+ROW()-2))=Rebalance!$D$58,INDIRECT(\"a\" & (VLOOKUP(Rebalance!$D$58,$F$2:$G$48,2,FALSE)+ROW()-2)),\"\")","v":{"$error":"#N/A"}},{"$f":"IF(INDIRECT(\"c\" & (VLOOKUP(Rebalance!$D$59,$F$2:$G$48,2,FALSE)+ROW()-2))=Rebalance!$D$59,INDIRECT(\"a\" & (VLOOKUP(Rebalance!$D$59,$F$2:$G$48,2,FALSE)+ROW()-2)),\"\")","v":{"$error":"#N/A"}},{"$f":"IF(INDIRECT(\"c\" & (VLOOKUP(Rebalance!$D$60,$F$2:$G$48,2,FALSE)+ROW()-2))=Rebalance!$D$60,INDIRECT(\"a\" & (VLOOKUP(Rebalance!$D$60,$F$2:$G$48,2,FALSE)+ROW()-2)),\"\")","v":{"$error":"#N/A"}},{"$f":"IF(INDIRECT(\"c\" & (VLOOKUP(Rebalance!$D$61,$F$2:$G$48,2,FALSE)+ROW()-2))=Rebalance!$D$61,INDIRECT(\"a\" & (VLOOKUP(Rebalance!$D$61,$F$2:$G$48,2,FALSE)+ROW()-2)),\"\")","v":{"$error":"#N/A"}},{"$f":"IF(INDIRECT(\"c\" & (VLOOKUP(Rebalance!$D$62,$F$2:$G$48,2,FALSE)+ROW()-2))=Rebalance!$D$62,INDIRECT(\"a\" & (VLOOKUP(Rebalance!$D$62,$F$2:$G$48,2,FALSE)+ROW()-2)),\"\")","v":{"$error":"#N/A"}},{"$f":"IF(INDIRECT(\"c\" & (VLOOKUP(Rebalance!$D$63,$F$2:$G$48,2,FALSE)+ROW()-2))=Rebalance!$D$63,INDIRECT(\"a\" & (VLOOKUP(Rebalance!$D$63,$F$2:$G$48,2,FALSE)+ROW()-2)),\"\")","v":{"$error":"#N/A"}},{"$f":"IF(INDIRECT(\"c\" & (VLOOKUP(Rebalance!$D$64,$F$2:$G$48,2,FALSE)+ROW()-2))=Rebalance!$D$64,INDIRECT(\"a\" & (VLOOKUP(Rebalance!$D$64,$F$2:$G$48,2,FALSE)+ROW()-2)),\"\")","v":{"$error":"#N/A"}},{"$f":"IF(INDIRECT(\"c\" & (VLOOKUP(Rebalance!$D$65,$F$2:$G$48,2,FALSE)+ROW()-2))=Rebalance!$D$65,INDIRECT(\"a\" & (VLOOKUP(Rebalance!$D$65,$F$2:$G$48,2,FALSE)+ROW()-2)),\"\")","v":{"$error":"#N/A"}},{"$f":"IF(INDIRECT(\"c\" & (VLOOKUP(Rebalance!$D$66,$F$2:$G$48,2,FALSE)+ROW()-2))=Rebalance!$D$66,INDIRECT(\"a\" & (VLOOKUP(Rebalance!$D$66,$F$2:$G$48,2,FALSE)+ROW()-2)),\"\")","v":{"$error":"#N/A"}}]
["Rezco Value Trend Fund C","RVTCC","Rezco Collective Investments Ltd",{"$f":"ROW()","v":503},null,null,{"$f":"VLOOKUP(F503,$C$2:$D$599,2,FALSE)","v":{"$error":"#N/A"}},{"$f":"IF(INDIRECT(\"c\" & (VLOOKUP(Rebalance!$D$26,$F$2:$G$48,2,FALSE)+ROW()-2))=Rebalance!$D$26,INDIRECT(\"a\" & (VLOOKUP(Rebalance!$D$26,$F$2:$G$48,2,FALSE)+ROW()-2)),\"\")","v":{"$error":"#N/A"}},{"$f":"IF(INDIRECT(\"c\" & (VLOOKUP(Rebalance!$D$27,$F$2:$G$48,2,FALSE)+ROW()-2))=Rebalance!$D$27,INDIRECT(\"a\" & (VLOOKUP(Rebalance!$D$27,$F$2:$G$48,2,FALSE)+ROW()-2)),\"\")","v":{"$error":"#N/A"}},{"$f":"IF(INDIRECT(\"c\" & (VLOOKUP(Rebalance!$D$28,$F$2:$G$48,2,FALSE)+ROW()-2))=Rebalance!$D$28,INDIRECT(\"a\" & (VLOOKUP(Rebalance!$D$28,$F$2:$G$48,2,FALSE)+ROW()-2)),\"\")","v":{"$error":"#N/A"}},{"$f":"IF(INDIRECT(\"c\" & (VLOOKUP(Rebalance!$D$29,$F$2:$G$48,2,FALSE)+ROW()-2))=Rebalance!$D$29,INDIRECT(\"a\" & (VLOOKUP(Rebalance!$D$29,$F$2:$G$48,2,FALSE)+ROW()-2)),\"\")","v":{"$error":"#N/A"}},{"$f":"IF(INDIRECT(\"c\" & (VLOOKUP(Rebalance!$D$30,$F$2:$G$48,2,FALSE)+ROW()-2))=Rebalance!$D$30,INDIRECT(\"a\" & (VLOOKUP(Rebalance!$D$30,$F$2:$G$48,2,FALSE)+ROW()-2)),\"\")","v":{"$error":"#N/A"}},{"$f":"IF(INDIRECT(\"c\" & (VLOOKUP(Rebalance!$D$31,$F$2:$G$48,2,FALSE)+ROW()-2))=Rebalance!$D$31,INDIRECT(\"a\" & (VLOOKUP(Rebalance!$D$31,$F$2:$G$48,2,FALSE)+ROW()-2)),\"\")","v":{"$error":"#N/A"}},{"$f":"IF(INDIRECT(\"c\" & (VLOOKUP(Rebalance!$D$32,$F$2:$G$48,2,FALSE)+ROW()-2))=Rebalance!$D$32,INDIRECT(\"a\" & (VLOOKUP(Rebalance!$D$32,$F$2:$G$48,2,FALSE)+ROW()-2)),\"\")","v":{"$error":"#N/A"}},{"$f":"IF(INDIRECT(\"c\" & (VLOOKUP(Rebalance!$D$33,$F$2:$G$48,2,FALSE)+ROW()-2))=Rebalance!$D$33,INDIRECT(\"a\" & (VLOOKUP(Rebalance!$D$33,$F$2:$G$48,2,FALSE)+ROW()-2)),\"\")","v":{"$error":"#N/A"}},{"$f":"IF(INDIRECT(\"c\" & (VLOOKUP(Rebalance!$D$34,$F$2:$G$48,2,FALSE)+ROW()-2))=Rebalance!$D$34,INDIRECT(\"a\" & (VLOOKUP(Rebalance!$D$34,$F$2:$G$48,2,FALSE)+ROW()-2)),\"\")","v":{"$error":"#N/A"}},{"$f":"IF(INDIRECT(\"c\" & (VLOOKUP(Rebalance!$D$35,$F$2:$G$48,2,FALSE)+ROW()-2))=Rebalance!$D$35,INDIRECT(\"a\" & (VLOOKUP(Rebalance!$D$35,$F$2:$G$48,2,FALSE)+ROW()-2)),\"\")","v":{"$error":"#N/A"}},{"$f":"IF(INDIRECT(\"c\" & (VLOOKUP(Rebalance!$D$36,$F$2:$G$48,2,FALSE)+ROW()-2))=Rebalance!$D$36,INDIRECT(\"a\" & (VLOOKUP(Rebalance!$D$36,$F$2:$G$48,2,FALSE)+ROW()-2)),\"\")","v":{"$error":"#N/A"}},{"$f":"IF(INDIRECT(\"c\" & (VLOOKUP(Rebalance!$D$37,$F$2:$G$48,2,FALSE)+ROW()-2))=Rebalance!$D$37,INDIRECT(\"a\" & (VLOOKUP(Rebalance!$D$37,$F$2:$G$48,2,FALSE)+ROW()-2)),\"\")","v":{"$error":"#N/A"}},{"$f":"IF(INDIRECT(\"c\" & (VLOOKUP(Rebalance!$D$38,$F$2:$G$48,2,FALSE)+ROW()-2))=Rebalance!$D$38,INDIRECT(\"a\" & (VLOOKUP(Rebalance!$D$38,$F$2:$G$48,2,FALSE)+ROW()-2)),\"\")","v":{"$error":"#N/A"}},{"$f":"IF(INDIRECT(\"c\" & (VLOOKUP(Rebalance!$D$39,$F$2:$G$48,2,FALSE)+ROW()-2))=Rebalance!$D$39,INDIRECT(\"a\" & (VLOOKUP(Rebalance!$D$39,$F$2:$G$48,2,FALSE)+ROW()-2)),\"\")","v":{"$error":"#N/A"}},{"$f":"IF(INDIRECT(\"c\" & (VLOOKUP(Rebalance!$D$40,$F$2:$G$48,2,FALSE)+ROW()-2))=Rebalance!$D$40,INDIRECT(\"a\" & (VLOOKUP(Rebalance!$D$40,$F$2:$G$48,2,FALSE)+ROW()-2)),\"\")","v":{"$error":"#N/A"}},{"$f":"IF(INDIRECT(\"c\" & (VLOOKUP(Rebalance!$D$52,$F$2:$G$48,2,FALSE)+ROW()-2))=Rebalance!$D$52,INDIRECT(\"a\" & (VLOOKUP(Rebalance!$D$52,$F$2:$G$48,2,FALSE)+ROW()-2)),\"\")","v":{"$error":"#N/A"}},{"$f":"IF(INDIRECT(\"c\" & (VLOOKUP(Rebalance!$D$53,$F$2:$G$48,2,FALSE)+ROW()-2))=Rebalance!$D$53,INDIRECT(\"a\" & (VLOOKUP(Rebalance!$D$53,$F$2:$G$48,2,FALSE)+ROW()-2)),\"\")","v":{"$error":"#N/A"}},{"$f":"IF(INDIRECT(\"c\" & (VLOOKUP(Rebalance!$D$54,$F$2:$G$48,2,FALSE)+ROW()-2))=Rebalance!$D$54,INDIRECT(\"a\" & (VLOOKUP(Rebalance!$D$54,$F$2:$G$48,2,FALSE)+ROW()-2)),\"\")","v":{"$error":"#N/A"}},{"$f":"IF(INDIRECT(\"c\" & (VLOOKUP(Rebalance!$D$55,$F$2:$G$48,2,FALSE)+ROW()-2))=Rebalance!$D$55,INDIRECT(\"a\" & (VLOOKUP(Rebalance!$D$55,$F$2:$G$48,2,FALSE)+ROW()-2)),\"\")","v":{"$error":"#N/A"}},{"$f":"IF(INDIRECT(\"c\" & (VLOOKUP(Rebalance!$D$56,$F$2:$G$48,2,FALSE)+ROW()-2))=Rebalance!$D$56,INDIRECT(\"a\" & (VLOOKUP(Rebalance!$D$56,$F$2:$G$48,2,FALSE)+ROW()-2)),\"\")","v":{"$error":"#N/A"}},{"$f":"IF(INDIRECT(\"c\" & (VLOOKUP(Rebalance!$D$57,$F$2:$G$48,2,FALSE)+ROW()-2))=Rebalance!$D$57,INDIRECT(\"a\" & (VLOOKUP(Rebalance!$D$57,$F$2:$G$48,2,FALSE)+ROW()-2)),\"\")","v":{"$error":"#N/A"}},{"$f":"IF(INDIRECT(\"c\" & (VLOOKUP(Rebalance!$D$58,$F$2:$G$48,2,FALSE)+ROW()-2))=Rebalance!$D$58,INDIRECT(\"a\" & (VLOOKUP(Rebalance!$D$58,$F$2:$G$48,2,FALSE)+ROW()-2)),\"\")","v":{"$error":"#N/A"}},{"$f":"IF(INDIRECT(\"c\" & (VLOOKUP(Rebalance!$D$59,$F$2:$G$48,2,FALSE)+ROW()-2))=Rebalance!$D$59,INDIRECT(\"a\" & (VLOOKUP(Rebalance!$D$59,$F$2:$G$48,2,FALSE)+ROW()-2)),\"\")","v":{"$error":"#N/A"}},{"$f":"IF(INDIRECT(\"c\" & (VLOOKUP(Rebalance!$D$60,$F$2:$G$48,2,FALSE)+ROW()-2))=Rebalance!$D$60,INDIRECT(\"a\" & (VLOOKUP(Rebalance!$D$60,$F$2:$G$48,2,FALSE)+ROW()-2)),\"\")","v":{"$error":"#N/A"}},{"$f":"IF(INDIRECT(\"c\" & (VLOOKUP(Rebalance!$D$61,$F$2:$G$48,2,FALSE)+ROW()-2))=Rebalance!$D$61,INDIRECT(\"a\" & (VLOOKUP(Rebalance!$D$61,$F$2:$G$48,2,FALSE)+ROW()-2)),\"\")","v":{"$error":"#N/A"}},{"$f":"IF(INDIRECT(\"c\" & (VLOOKUP(Rebalance!$D$62,$F$2:$G$48,2,FALSE)+ROW()-2))=Rebalance!$D$62,INDIRECT(\"a\" & (VLOOKUP(Rebalance!$D$62,$F$2:$G$48,2,FALSE)+ROW()-2)),\"\")","v":{"$error":"#N/A"}},{"$f":"IF(INDIRECT(\"c\" & (VLOOKUP(Rebalance!$D$63,$F$2:$G$48,2,FALSE)+ROW()-2))=Rebalance!$D$63,INDIRECT(\"a\" & (VLOOKUP(Rebalance!$D$63,$F$2:$G$48,2,FALSE)+ROW()-2)),\"\")","v":{"$error":"#N/A"}},{"$f":"IF(INDIRECT(\"c\" & (VLOOKUP(Rebalance!$D$64,$F$2:$G$48,2,FALSE)+ROW()-2))=Rebalance!$D$64,INDIRECT(\"a\" & (VLOOKUP(Rebalance!$D$64,$F$2:$G$48,2,FALSE)+ROW()-2)),\"\")","v":{"$error":"#N/A"}},{"$f":"IF(INDIRECT(\"c\" & (VLOOKUP(Rebalance!$D$65,$F$2:$G$48,2,FALSE)+ROW()-2))=Rebalance!$D$65,INDIRECT(\"a\" & (VLOOKUP(Rebalance!$D$65,$F$2:$G$48,2,FALSE)+ROW()-2)),\"\")","v":{"$error":"#N/A"}},{"$f":"IF(INDIRECT(\"c\" & (VLOOKUP(Rebalance!$D$66,$F$2:$G$48,2,FALSE)+ROW()-2))=Rebalance!$D$66,INDIRECT(\"a\" & (VLOOKUP(Rebalance!$D$66,$F$2:$G$48,2,FALSE)+ROW()-2)),\"\")","v":{"$error":"#N/A"}}]
["Counterpoint SCI Balanced Plus Fund A1","MEBA1","Sanlam Collective Investments",{"$f":"ROW()","v":504},null,null,{"$f":"VLOOKUP(F504,$C$2:$D$599,2,FALSE)","v":{"$error":"#N/A"}},{"$f":"IF(INDIRECT(\"c\" & (VLOOKUP(Rebalance!$D$26,$F$2:$G$48,2,FALSE)+ROW()-2))=Rebalance!$D$26,INDIRECT(\"a\" & (VLOOKUP(Rebalance!$D$26,$F$2:$G$48,2,FALSE)+ROW()-2)),\"\")","v":{"$error":"#N/A"}},{"$f":"IF(INDIRECT(\"c\" & (VLOOKUP(Rebalance!$D$27,$F$2:$G$48,2,FALSE)+ROW()-2))=Rebalance!$D$27,INDIRECT(\"a\" & (VLOOKUP(Rebalance!$D$27,$F$2:$G$48,2,FALSE)+ROW()-2)),\"\")","v":{"$error":"#N/A"}},{"$f":"IF(INDIRECT(\"c\" & (VLOOKUP(Rebalance!$D$28,$F$2:$G$48,2,FALSE)+ROW()-2))=Rebalance!$D$28,INDIRECT(\"a\" & (VLOOKUP(Rebalance!$D$28,$F$2:$G$48,2,FALSE)+ROW()-2)),\"\")","v":{"$error":"#N/A"}},{"$f":"IF(INDIRECT(\"c\" & (VLOOKUP(Rebalance!$D$29,$F$2:$G$48,2,FALSE)+ROW()-2))=Rebalance!$D$29,INDIRECT(\"a\" & (VLOOKUP(Rebalance!$D$29,$F$2:$G$48,2,FALSE)+ROW()-2)),\"\")","v":{"$error":"#N/A"}},{"$f":"IF(INDIRECT(\"c\" & (VLOOKUP(Rebalance!$D$30,$F$2:$G$48,2,FALSE)+ROW()-2))=Rebalance!$D$30,INDIRECT(\"a\" & (VLOOKUP(Rebalance!$D$30,$F$2:$G$48,2,FALSE)+ROW()-2)),\"\")","v":{"$error":"#N/A"}},{"$f":"IF(INDIRECT(\"c\" & (VLOOKUP(Rebalance!$D$31,$F$2:$G$48,2,FALSE)+ROW()-2))=Rebalance!$D$31,INDIRECT(\"a\" & (VLOOKUP(Rebalance!$D$31,$F$2:$G$48,2,FALSE)+ROW()-2)),\"\")","v":{"$error":"#N/A"}},{"$f":"IF(INDIRECT(\"c\" & (VLOOKUP(Rebalance!$D$32,$F$2:$G$48,2,FALSE)+ROW()-2))=Rebalance!$D$32,INDIRECT(\"a\" & (VLOOKUP(Rebalance!$D$32,$F$2:$G$48,2,FALSE)+ROW()-2)),\"\")","v":{"$error":"#N/A"}},{"$f":"IF(INDIRECT(\"c\" & (VLOOKUP(Rebalance!$D$33,$F$2:$G$48,2,FALSE)+ROW()-2))=Rebalance!$D$33,INDIRECT(\"a\" & (VLOOKUP(Rebalance!$D$33,$F$2:$G$48,2,FALSE)+ROW()-2)),\"\")","v":{"$error":"#N/A"}},{"$f":"IF(INDIRECT(\"c\" & (VLOOKUP(Rebalance!$D$34,$F$2:$G$48,2,FALSE)+ROW()-2))=Rebalance!$D$34,INDIRECT(\"a\" & (VLOOKUP(Rebalance!$D$34,$F$2:$G$48,2,FALSE)+ROW()-2)),\"\")","v":{"$error":"#N/A"}},{"$f":"IF(INDIRECT(\"c\" & (VLOOKUP(Rebalance!$D$35,$F$2:$G$48,2,FALSE)+ROW()-2))=Rebalance!$D$35,INDIRECT(\"a\" & (VLOOKUP(Rebalance!$D$35,$F$2:$G$48,2,FALSE)+ROW()-2)),\"\")","v":{"$error":"#N/A"}},{"$f":"IF(INDIRECT(\"c\" & (VLOOKUP(Rebalance!$D$36,$F$2:$G$48,2,FALSE)+ROW()-2))=Rebalance!$D$36,INDIRECT(\"a\" & (VLOOKUP(Rebalance!$D$36,$F$2:$G$48,2,FALSE)+ROW()-2)),\"\")","v":{"$error":"#N/A"}},{"$f":"IF(INDIRECT(\"c\" & (VLOOKUP(Rebalance!$D$37,$F$2:$G$48,2,FALSE)+ROW()-2))=Rebalance!$D$37,INDIRECT(\"a\" & (VLOOKUP(Rebalance!$D$37,$F$2:$G$48,2,FALSE)+ROW()-2)),\"\")","v":{"$error":"#N/A"}},{"$f":"IF(INDIRECT(\"c\" & (VLOOKUP(Rebalance!$D$38,$F$2:$G$48,2,FALSE)+ROW()-2))=Rebalance!$D$38,INDIRECT(\"a\" & (VLOOKUP(Rebalance!$D$38,$F$2:$G$48,2,FALSE)+ROW()-2)),\"\")","v":{"$error":"#N/A"}},{"$f":"IF(INDIRECT(\"c\" & (VLOOKUP(Rebalance!$D$39,$F$2:$G$48,2,FALSE)+ROW()-2))=Rebalance!$D$39,INDIRECT(\"a\" & (VLOOKUP(Rebalance!$D$39,$F$2:$G$48,2,FALSE)+ROW()-2)),\"\")","v":{"$error":"#N/A"}},{"$f":"IF(INDIRECT(\"c\" & (VLOOKUP(Rebalance!$D$40,$F$2:$G$48,2,FALSE)+ROW()-2))=Rebalance!$D$40,INDIRECT(\"a\" & (VLOOKUP(Rebalance!$D$40,$F$2:$G$48,2,FALSE)+ROW()-2)),\"\")","v":{"$error":"#N/A"}},{"$f":"IF(INDIRECT(\"c\" & (VLOOKUP(Rebalance!$D$52,$F$2:$G$48,2,FALSE)+ROW()-2))=Rebalance!$D$52,INDIRECT(\"a\" & (VLOOKUP(Rebalance!$D$52,$F$2:$G$48,2,FALSE)+ROW()-2)),\"\")","v":{"$error":"#N/A"}},{"$f":"IF(INDIRECT(\"c\" & (VLOOKUP(Rebalance!$D$53,$F$2:$G$48,2,FALSE)+ROW()-2))=Rebalance!$D$53,INDIRECT(\"a\" & (VLOOKUP(Rebalance!$D$53,$F$2:$G$48,2,FALSE)+ROW()-2)),\"\")","v":{"$error":"#N/A"}},{"$f":"IF(INDIRECT(\"c\" & (VLOOKUP(Rebalance!$D$54,$F$2:$G$48,2,FALSE)+ROW()-2))=Rebalance!$D$54,INDIRECT(\"a\" & (VLOOKUP(Rebalance!$D$54,$F$2:$G$48,2,FALSE)+ROW()-2)),\"\")","v":{"$error":"#N/A"}},{"$f":"IF(INDIRECT(\"c\" & (VLOOKUP(Rebalance!$D$55,$F$2:$G$48,2,FALSE)+ROW()-2))=Rebalance!$D$55,INDIRECT(\"a\" & (VLOOKUP(Rebalance!$D$55,$F$2:$G$48,2,FALSE)+ROW()-2)),\"\")","v":{"$error":"#N/A"}},{"$f":"IF(INDIRECT(\"c\" & (VLOOKUP(Rebalance!$D$56,$F$2:$G$48,2,FALSE)+ROW()-2))=Rebalance!$D$56,INDIRECT(\"a\" & (VLOOKUP(Rebalance!$D$56,$F$2:$G$48,2,FALSE)+ROW()-2)),\"\")","v":{"$error":"#N/A"}},{"$f":"IF(INDIRECT(\"c\" & (VLOOKUP(Rebalance!$D$57,$F$2:$G$48,2,FALSE)+ROW()-2))=Rebalance!$D$57,INDIRECT(\"a\" & (VLOOKUP(Rebalance!$D$57,$F$2:$G$48,2,FALSE)+ROW()-2)),\"\")","v":{"$error":"#N/A"}},{"$f":"IF(INDIRECT(\"c\" & (VLOOKUP(Rebalance!$D$58,$F$2:$G$48,2,FALSE)+ROW()-2))=Rebalance!$D$58,INDIRECT(\"a\" & (VLOOKUP(Rebalance!$D$58,$F$2:$G$48,2,FALSE)+ROW()-2)),\"\")","v":{"$error":"#N/A"}},{"$f":"IF(INDIRECT(\"c\" & (VLOOKUP(Rebalance!$D$59,$F$2:$G$48,2,FALSE)+ROW()-2))=Rebalance!$D$59,INDIRECT(\"a\" & (VLOOKUP(Rebalance!$D$59,$F$2:$G$48,2,FALSE)+ROW()-2)),\"\")","v":{"$error":"#N/A"}},{"$f":"IF(INDIRECT(\"c\" & (VLOOKUP(Rebalance!$D$60,$F$2:$G$48,2,FALSE)+ROW()-2))=Rebalance!$D$60,INDIRECT(\"a\" & (VLOOKUP(Rebalance!$D$60,$F$2:$G$48,2,FALSE)+ROW()-2)),\"\")","v":{"$error":"#N/A"}},{"$f":"IF(INDIRECT(\"c\" & (VLOOKUP(Rebalance!$D$61,$F$2:$G$48,2,FALSE)+ROW()-2))=Rebalance!$D$61,INDIRECT(\"a\" & (VLOOKUP(Rebalance!$D$61,$F$2:$G$48,2,FALSE)+ROW()-2)),\"\")","v":{"$error":"#N/A"}},{"$f":"IF(INDIRECT(\"c\" & (VLOOKUP(Rebalance!$D$62,$F$2:$G$48,2,FALSE)+ROW()-2))=Rebalance!$D$62,INDIRECT(\"a\" & (VLOOKUP(Rebalance!$D$62,$F$2:$G$48,2,FALSE)+ROW()-2)),\"\")","v":{"$error":"#N/A"}},{"$f":"IF(INDIRECT(\"c\" & (VLOOKUP(Rebalance!$D$63,$F$2:$G$48,2,FALSE)+ROW()-2))=Rebalance!$D$63,INDIRECT(\"a\" & (VLOOKUP(Rebalance!$D$63,$F$2:$G$48,2,FALSE)+ROW()-2)),\"\")","v":{"$error":"#N/A"}},{"$f":"IF(INDIRECT(\"c\" & (VLOOKUP(Rebalance!$D$64,$F$2:$G$48,2,FALSE)+ROW()-2))=Rebalance!$D$64,INDIRECT(\"a\" & (VLOOKUP(Rebalance!$D$64,$F$2:$G$48,2,FALSE)+ROW()-2)),\"\")","v":{"$error":"#N/A"}},{"$f":"IF(INDIRECT(\"c\" & (VLOOKUP(Rebalance!$D$65,$F$2:$G$48,2,FALSE)+ROW()-2))=Rebalance!$D$65,INDIRECT(\"a\" & (VLOOKUP(Rebalance!$D$65,$F$2:$G$48,2,FALSE)+ROW()-2)),\"\")","v":{"$error":"#N/A"}},{"$f":"IF(INDIRECT(\"c\" & (VLOOKUP(Rebalance!$D$66,$F$2:$G$48,2,FALSE)+ROW()-2))=Rebalance!$D$66,INDIRECT(\"a\" & (VLOOKUP(Rebalance!$D$66,$F$2:$G$48,2,FALSE)+ROW()-2)),\"\")","v":{"$error":"#N/A"}}]
["Counterpoint SCI Cautious Fund A1","MCAA","Sanlam Collective Investments",{"$f":"ROW()","v":505},null,null,{"$f":"VLOOKUP(F505,$C$2:$D$599,2,FALSE)","v":{"$error":"#N/A"}},{"$f":"IF(INDIRECT(\"c\" & (VLOOKUP(Rebalance!$D$26,$F$2:$G$48,2,FALSE)+ROW()-2))=Rebalance!$D$26,INDIRECT(\"a\" & (VLOOKUP(Rebalance!$D$26,$F$2:$G$48,2,FALSE)+ROW()-2)),\"\")","v":{"$error":"#N/A"}},{"$f":"IF(INDIRECT(\"c\" & (VLOOKUP(Rebalance!$D$27,$F$2:$G$48,2,FALSE)+ROW()-2))=Rebalance!$D$27,INDIRECT(\"a\" & (VLOOKUP(Rebalance!$D$27,$F$2:$G$48,2,FALSE)+ROW()-2)),\"\")","v":{"$error":"#N/A"}},{"$f":"IF(INDIRECT(\"c\" & (VLOOKUP(Rebalance!$D$28,$F$2:$G$48,2,FALSE)+ROW()-2))=Rebalance!$D$28,INDIRECT(\"a\" & (VLOOKUP(Rebalance!$D$28,$F$2:$G$48,2,FALSE)+ROW()-2)),\"\")","v":{"$error":"#N/A"}},{"$f":"IF(INDIRECT(\"c\" & (VLOOKUP(Rebalance!$D$29,$F$2:$G$48,2,FALSE)+ROW()-2))=Rebalance!$D$29,INDIRECT(\"a\" & (VLOOKUP(Rebalance!$D$29,$F$2:$G$48,2,FALSE)+ROW()-2)),\"\")","v":{"$error":"#N/A"}},{"$f":"IF(INDIRECT(\"c\" & (VLOOKUP(Rebalance!$D$30,$F$2:$G$48,2,FALSE)+ROW()-2))=Rebalance!$D$30,INDIRECT(\"a\" & (VLOOKUP(Rebalance!$D$30,$F$2:$G$48,2,FALSE)+ROW()-2)),\"\")","v":{"$error":"#N/A"}},{"$f":"IF(INDIRECT(\"c\" & (VLOOKUP(Rebalance!$D$31,$F$2:$G$48,2,FALSE)+ROW()-2))=Rebalance!$D$31,INDIRECT(\"a\" & (VLOOKUP(Rebalance!$D$31,$F$2:$G$48,2,FALSE)+ROW()-2)),\"\")","v":{"$error":"#N/A"}},{"$f":"IF(INDIRECT(\"c\" & (VLOOKUP(Rebalance!$D$32,$F$2:$G$48,2,FALSE)+ROW()-2))=Rebalance!$D$32,INDIRECT(\"a\" & (VLOOKUP(Rebalance!$D$32,$F$2:$G$48,2,FALSE)+ROW()-2)),\"\")","v":{"$error":"#N/A"}},{"$f":"IF(INDIRECT(\"c\" & (VLOOKUP(Rebalance!$D$33,$F$2:$G$48,2,FALSE)+ROW()-2))=Rebalance!$D$33,INDIRECT(\"a\" & (VLOOKUP(Rebalance!$D$33,$F$2:$G$48,2,FALSE)+ROW()-2)),\"\")","v":{"$error":"#N/A"}},{"$f":"IF(INDIRECT(\"c\" & (VLOOKUP(Rebalance!$D$34,$F$2:$G$48,2,FALSE)+ROW()-2))=Rebalance!$D$34,INDIRECT(\"a\" & (VLOOKUP(Rebalance!$D$34,$F$2:$G$48,2,FALSE)+ROW()-2)),\"\")","v":{"$error":"#N/A"}},{"$f":"IF(INDIRECT(\"c\" & (VLOOKUP(Rebalance!$D$35,$F$2:$G$48,2,FALSE)+ROW()-2))=Rebalance!$D$35,INDIRECT(\"a\" & (VLOOKUP(Rebalance!$D$35,$F$2:$G$48,2,FALSE)+ROW()-2)),\"\")","v":{"$error":"#N/A"}},{"$f":"IF(INDIRECT(\"c\" & (VLOOKUP(Rebalance!$D$36,$F$2:$G$48,2,FALSE)+ROW()-2))=Rebalance!$D$36,INDIRECT(\"a\" & (VLOOKUP(Rebalance!$D$36,$F$2:$G$48,2,FALSE)+ROW()-2)),\"\")","v":{"$error":"#N/A"}},{"$f":"IF(INDIRECT(\"c\" & (VLOOKUP(Rebalance!$D$37,$F$2:$G$48,2,FALSE)+ROW()-2))=Rebalance!$D$37,INDIRECT(\"a\" & (VLOOKUP(Rebalance!$D$37,$F$2:$G$48,2,FALSE)+ROW()-2)),\"\")","v":{"$error":"#N/A"}},{"$f":"IF(INDIRECT(\"c\" & (VLOOKUP(Rebalance!$D$38,$F$2:$G$48,2,FALSE)+ROW()-2))=Rebalance!$D$38,INDIRECT(\"a\" & (VLOOKUP(Rebalance!$D$38,$F$2:$G$48,2,FALSE)+ROW()-2)),\"\")","v":{"$error":"#N/A"}},{"$f":"IF(INDIRECT(\"c\" & (VLOOKUP(Rebalance!$D$39,$F$2:$G$48,2,FALSE)+ROW()-2))=Rebalance!$D$39,INDIRECT(\"a\" & (VLOOKUP(Rebalance!$D$39,$F$2:$G$48,2,FALSE)+ROW()-2)),\"\")","v":{"$error":"#N/A"}},{"$f":"IF(INDIRECT(\"c\" & (VLOOKUP(Rebalance!$D$40,$F$2:$G$48,2,FALSE)+ROW()-2))=Rebalance!$D$40,INDIRECT(\"a\" & (VLOOKUP(Rebalance!$D$40,$F$2:$G$48,2,FALSE)+ROW()-2)),\"\")","v":{"$error":"#N/A"}},{"$f":"IF(INDIRECT(\"c\" & (VLOOKUP(Rebalance!$D$52,$F$2:$G$48,2,FALSE)+ROW()-2))=Rebalance!$D$52,INDIRECT(\"a\" & (VLOOKUP(Rebalance!$D$52,$F$2:$G$48,2,FALSE)+ROW()-2)),\"\")","v":{"$error":"#N/A"}},{"$f":"IF(INDIRECT(\"c\" & (VLOOKUP(Rebalance!$D$53,$F$2:$G$48,2,FALSE)+ROW()-2))=Rebalance!$D$53,INDIRECT(\"a\" & (VLOOKUP(Rebalance!$D$53,$F$2:$G$48,2,FALSE)+ROW()-2)),\"\")","v":{"$error":"#N/A"}},{"$f":"IF(INDIRECT(\"c\" & (VLOOKUP(Rebalance!$D$54,$F$2:$G$48,2,FALSE)+ROW()-2))=Rebalance!$D$54,INDIRECT(\"a\" & (VLOOKUP(Rebalance!$D$54,$F$2:$G$48,2,FALSE)+ROW()-2)),\"\")","v":{"$error":"#N/A"}},{"$f":"IF(INDIRECT(\"c\" & (VLOOKUP(Rebalance!$D$55,$F$2:$G$48,2,FALSE)+ROW()-2))=Rebalance!$D$55,INDIRECT(\"a\" & (VLOOKUP(Rebalance!$D$55,$F$2:$G$48,2,FALSE)+ROW()-2)),\"\")","v":{"$error":"#N/A"}},{"$f":"IF(INDIRECT(\"c\" & (VLOOKUP(Rebalance!$D$56,$F$2:$G$48,2,FALSE)+ROW()-2))=Rebalance!$D$56,INDIRECT(\"a\" & (VLOOKUP(Rebalance!$D$56,$F$2:$G$48,2,FALSE)+ROW()-2)),\"\")","v":{"$error":"#N/A"}},{"$f":"IF(INDIRECT(\"c\" & (VLOOKUP(Rebalance!$D$57,$F$2:$G$48,2,FALSE)+ROW()-2))=Rebalance!$D$57,INDIRECT(\"a\" & (VLOOKUP(Rebalance!$D$57,$F$2:$G$48,2,FALSE)+ROW()-2)),\"\")","v":{"$error":"#N/A"}},{"$f":"IF(INDIRECT(\"c\" & (VLOOKUP(Rebalance!$D$58,$F$2:$G$48,2,FALSE)+ROW()-2))=Rebalance!$D$58,INDIRECT(\"a\" & (VLOOKUP(Rebalance!$D$58,$F$2:$G$48,2,FALSE)+ROW()-2)),\"\")","v":{"$error":"#N/A"}},{"$f":"IF(INDIRECT(\"c\" & (VLOOKUP(Rebalance!$D$59,$F$2:$G$48,2,FALSE)+ROW()-2))=Rebalance!$D$59,INDIRECT(\"a\" & (VLOOKUP(Rebalance!$D$59,$F$2:$G$48,2,FALSE)+ROW()-2)),\"\")","v":{"$error":"#N/A"}},{"$f":"IF(INDIRECT(\"c\" & (VLOOKUP(Rebalance!$D$60,$F$2:$G$48,2,FALSE)+ROW()-2))=Rebalance!$D$60,INDIRECT(\"a\" & (VLOOKUP(Rebalance!$D$60,$F$2:$G$48,2,FALSE)+ROW()-2)),\"\")","v":{"$error":"#N/A"}},{"$f":"IF(INDIRECT(\"c\" & (VLOOKUP(Rebalance!$D$61,$F$2:$G$48,2,FALSE)+ROW()-2))=Rebalance!$D$61,INDIRECT(\"a\" & (VLOOKUP(Rebalance!$D$61,$F$2:$G$48,2,FALSE)+ROW()-2)),\"\")","v":{"$error":"#N/A"}},{"$f":"IF(INDIRECT(\"c\" & (VLOOKUP(Rebalance!$D$62,$F$2:$G$48,2,FALSE)+ROW()-2))=Rebalance!$D$62,INDIRECT(\"a\" & (VLOOKUP(Rebalance!$D$62,$F$2:$G$48,2,FALSE)+ROW()-2)),\"\")","v":{"$error":"#N/A"}},{"$f":"IF(INDIRECT(\"c\" & (VLOOKUP(Rebalance!$D$63,$F$2:$G$48,2,FALSE)+ROW()-2))=Rebalance!$D$63,INDIRECT(\"a\" & (VLOOKUP(Rebalance!$D$63,$F$2:$G$48,2,FALSE)+ROW()-2)),\"\")","v":{"$error":"#N/A"}},{"$f":"IF(INDIRECT(\"c\" & (VLOOKUP(Rebalance!$D$64,$F$2:$G$48,2,FALSE)+ROW()-2))=Rebalance!$D$64,INDIRECT(\"a\" & (VLOOKUP(Rebalance!$D$64,$F$2:$G$48,2,FALSE)+ROW()-2)),\"\")","v":{"$error":"#N/A"}},{"$f":"IF(INDIRECT(\"c\" & (VLOOKUP(Rebalance!$D$65,$F$2:$G$48,2,FALSE)+ROW()-2))=Rebalance!$D$65,INDIRECT(\"a\" & (VLOOKUP(Rebalance!$D$65,$F$2:$G$48,2,FALSE)+ROW()-2)),\"\")","v":{"$error":"#N/A"}},{"$f":"IF(INDIRECT(\"c\" & (VLOOKUP(Rebalance!$D$66,$F$2:$G$48,2,FALSE)+ROW()-2))=Rebalance!$D$66,INDIRECT(\"a\" & (VLOOKUP(Rebalance!$D$66,$F$2:$G$48,2,FALSE)+ROW()-2)),\"\")","v":{"$error":"#N/A"}}]
["Counterpoint SCI Enhanced Income Fund A1","MEIA","Sanlam Collective Investments",{"$f":"ROW()","v":506},null,null,{"$f":"VLOOKUP(F506,$C$2:$D$599,2,FALSE)","v":{"$error":"#N/A"}},{"$f":"IF(INDIRECT(\"c\" & (VLOOKUP(Rebalance!$D$26,$F$2:$G$48,2,FALSE)+ROW()-2))=Rebalance!$D$26,INDIRECT(\"a\" & (VLOOKUP(Rebalance!$D$26,$F$2:$G$48,2,FALSE)+ROW()-2)),\"\")","v":{"$error":"#N/A"}},{"$f":"IF(INDIRECT(\"c\" & (VLOOKUP(Rebalance!$D$27,$F$2:$G$48,2,FALSE)+ROW()-2))=Rebalance!$D$27,INDIRECT(\"a\" & (VLOOKUP(Rebalance!$D$27,$F$2:$G$48,2,FALSE)+ROW()-2)),\"\")","v":{"$error":"#N/A"}},{"$f":"IF(INDIRECT(\"c\" & (VLOOKUP(Rebalance!$D$28,$F$2:$G$48,2,FALSE)+ROW()-2))=Rebalance!$D$28,INDIRECT(\"a\" & (VLOOKUP(Rebalance!$D$28,$F$2:$G$48,2,FALSE)+ROW()-2)),\"\")","v":{"$error":"#N/A"}},{"$f":"IF(INDIRECT(\"c\" & (VLOOKUP(Rebalance!$D$29,$F$2:$G$48,2,FALSE)+ROW()-2))=Rebalance!$D$29,INDIRECT(\"a\" & (VLOOKUP(Rebalance!$D$29,$F$2:$G$48,2,FALSE)+ROW()-2)),\"\")","v":{"$error":"#N/A"}},{"$f":"IF(INDIRECT(\"c\" & (VLOOKUP(Rebalance!$D$30,$F$2:$G$48,2,FALSE)+ROW()-2))=Rebalance!$D$30,INDIRECT(\"a\" & (VLOOKUP(Rebalance!$D$30,$F$2:$G$48,2,FALSE)+ROW()-2)),\"\")","v":{"$error":"#N/A"}},{"$f":"IF(INDIRECT(\"c\" & (VLOOKUP(Rebalance!$D$31,$F$2:$G$48,2,FALSE)+ROW()-2))=Rebalance!$D$31,INDIRECT(\"a\" & (VLOOKUP(Rebalance!$D$31,$F$2:$G$48,2,FALSE)+ROW()-2)),\"\")","v":{"$error":"#N/A"}},{"$f":"IF(INDIRECT(\"c\" & (VLOOKUP(Rebalance!$D$32,$F$2:$G$48,2,FALSE)+ROW()-2))=Rebalance!$D$32,INDIRECT(\"a\" & (VLOOKUP(Rebalance!$D$32,$F$2:$G$48,2,FALSE)+ROW()-2)),\"\")","v":{"$error":"#N/A"}},{"$f":"IF(INDIRECT(\"c\" & (VLOOKUP(Rebalance!$D$33,$F$2:$G$48,2,FALSE)+ROW()-2))=Rebalance!$D$33,INDIRECT(\"a\" & (VLOOKUP(Rebalance!$D$33,$F$2:$G$48,2,FALSE)+ROW()-2)),\"\")","v":{"$error":"#N/A"}},{"$f":"IF(INDIRECT(\"c\" & (VLOOKUP(Rebalance!$D$34,$F$2:$G$48,2,FALSE)+ROW()-2))=Rebalance!$D$34,INDIRECT(\"a\" & (VLOOKUP(Rebalance!$D$34,$F$2:$G$48,2,FALSE)+ROW()-2)),\"\")","v":{"$error":"#N/A"}},{"$f":"IF(INDIRECT(\"c\" & (VLOOKUP(Rebalance!$D$35,$F$2:$G$48,2,FALSE)+ROW()-2))=Rebalance!$D$35,INDIRECT(\"a\" & (VLOOKUP(Rebalance!$D$35,$F$2:$G$48,2,FALSE)+ROW()-2)),\"\")","v":{"$error":"#N/A"}},{"$f":"IF(INDIRECT(\"c\" & (VLOOKUP(Rebalance!$D$36,$F$2:$G$48,2,FALSE)+ROW()-2))=Rebalance!$D$36,INDIRECT(\"a\" & (VLOOKUP(Rebalance!$D$36,$F$2:$G$48,2,FALSE)+ROW()-2)),\"\")","v":{"$error":"#N/A"}},{"$f":"IF(INDIRECT(\"c\" & (VLOOKUP(Rebalance!$D$37,$F$2:$G$48,2,FALSE)+ROW()-2))=Rebalance!$D$37,INDIRECT(\"a\" & (VLOOKUP(Rebalance!$D$37,$F$2:$G$48,2,FALSE)+ROW()-2)),\"\")","v":{"$error":"#N/A"}},{"$f":"IF(INDIRECT(\"c\" & (VLOOKUP(Rebalance!$D$38,$F$2:$G$48,2,FALSE)+ROW()-2))=Rebalance!$D$38,INDIRECT(\"a\" & (VLOOKUP(Rebalance!$D$38,$F$2:$G$48,2,FALSE)+ROW()-2)),\"\")","v":{"$error":"#N/A"}},{"$f":"IF(INDIRECT(\"c\" & (VLOOKUP(Rebalance!$D$39,$F$2:$G$48,2,FALSE)+ROW()-2))=Rebalance!$D$39,INDIRECT(\"a\" & (VLOOKUP(Rebalance!$D$39,$F$2:$G$48,2,FALSE)+ROW()-2)),\"\")","v":{"$error":"#N/A"}},{"$f":"IF(INDIRECT(\"c\" & (VLOOKUP(Rebalance!$D$40,$F$2:$G$48,2,FALSE)+ROW()-2))=Rebalance!$D$40,INDIRECT(\"a\" & (VLOOKUP(Rebalance!$D$40,$F$2:$G$48,2,FALSE)+ROW()-2)),\"\")","v":{"$error":"#N/A"}},{"$f":"IF(INDIRECT(\"c\" & (VLOOKUP(Rebalance!$D$52,$F$2:$G$48,2,FALSE)+ROW()-2))=Rebalance!$D$52,INDIRECT(\"a\" & (VLOOKUP(Rebalance!$D$52,$F$2:$G$48,2,FALSE)+ROW()-2)),\"\")","v":{"$error":"#N/A"}},{"$f":"IF(INDIRECT(\"c\" & (VLOOKUP(Rebalance!$D$53,$F$2:$G$48,2,FALSE)+ROW()-2))=Rebalance!$D$53,INDIRECT(\"a\" & (VLOOKUP(Rebalance!$D$53,$F$2:$G$48,2,FALSE)+ROW()-2)),\"\")","v":{"$error":"#N/A"}},{"$f":"IF(INDIRECT(\"c\" & (VLOOKUP(Rebalance!$D$54,$F$2:$G$48,2,FALSE)+ROW()-2))=Rebalance!$D$54,INDIRECT(\"a\" & (VLOOKUP(Rebalance!$D$54,$F$2:$G$48,2,FALSE)+ROW()-2)),\"\")","v":{"$error":"#N/A"}},{"$f":"IF(INDIRECT(\"c\" & (VLOOKUP(Rebalance!$D$55,$F$2:$G$48,2,FALSE)+ROW()-2))=Rebalance!$D$55,INDIRECT(\"a\" & (VLOOKUP(Rebalance!$D$55,$F$2:$G$48,2,FALSE)+ROW()-2)),\"\")","v":{"$error":"#N/A"}},{"$f":"IF(INDIRECT(\"c\" & (VLOOKUP(Rebalance!$D$56,$F$2:$G$48,2,FALSE)+ROW()-2))=Rebalance!$D$56,INDIRECT(\"a\" & (VLOOKUP(Rebalance!$D$56,$F$2:$G$48,2,FALSE)+ROW()-2)),\"\")","v":{"$error":"#N/A"}},{"$f":"IF(INDIRECT(\"c\" & (VLOOKUP(Rebalance!$D$57,$F$2:$G$48,2,FALSE)+ROW()-2))=Rebalance!$D$57,INDIRECT(\"a\" & (VLOOKUP(Rebalance!$D$57,$F$2:$G$48,2,FALSE)+ROW()-2)),\"\")","v":{"$error":"#N/A"}},{"$f":"IF(INDIRECT(\"c\" & (VLOOKUP(Rebalance!$D$58,$F$2:$G$48,2,FALSE)+ROW()-2))=Rebalance!$D$58,INDIRECT(\"a\" & (VLOOKUP(Rebalance!$D$58,$F$2:$G$48,2,FALSE)+ROW()-2)),\"\")","v":{"$error":"#N/A"}},{"$f":"IF(INDIRECT(\"c\" & (VLOOKUP(Rebalance!$D$59,$F$2:$G$48,2,FALSE)+ROW()-2))=Rebalance!$D$59,INDIRECT(\"a\" & (VLOOKUP(Rebalance!$D$59,$F$2:$G$48,2,FALSE)+ROW()-2)),\"\")","v":{"$error":"#N/A"}},{"$f":"IF(INDIRECT(\"c\" & (VLOOKUP(Rebalance!$D$60,$F$2:$G$48,2,FALSE)+ROW()-2))=Rebalance!$D$60,INDIRECT(\"a\" & (VLOOKUP(Rebalance!$D$60,$F$2:$G$48,2,FALSE)+ROW()-2)),\"\")","v":{"$error":"#N/A"}},{"$f":"IF(INDIRECT(\"c\" & (VLOOKUP(Rebalance!$D$61,$F$2:$G$48,2,FALSE)+ROW()-2))=Rebalance!$D$61,INDIRECT(\"a\" & (VLOOKUP(Rebalance!$D$61,$F$2:$G$48,2,FALSE)+ROW()-2)),\"\")","v":{"$error":"#N/A"}},{"$f":"IF(INDIRECT(\"c\" & (VLOOKUP(Rebalance!$D$62,$F$2:$G$48,2,FALSE)+ROW()-2))=Rebalance!$D$62,INDIRECT(\"a\" & (VLOOKUP(Rebalance!$D$62,$F$2:$G$48,2,FALSE)+ROW()-2)),\"\")","v":{"$error":"#N/A"}},{"$f":"IF(INDIRECT(\"c\" & (VLOOKUP(Rebalance!$D$63,$F$2:$G$48,2,FALSE)+ROW()-2))=Rebalance!$D$63,INDIRECT(\"a\" & (VLOOKUP(Rebalance!$D$63,$F$2:$G$48,2,FALSE)+ROW()-2)),\"\")","v":{"$error":"#N/A"}},{"$f":"IF(INDIRECT(\"c\" & (VLOOKUP(Rebalance!$D$64,$F$2:$G$48,2,FALSE)+ROW()-2))=Rebalance!$D$64,INDIRECT(\"a\" & (VLOOKUP(Rebalance!$D$64,$F$2:$G$48,2,FALSE)+ROW()-2)),\"\")","v":{"$error":"#N/A"}},{"$f":"IF(INDIRECT(\"c\" & (VLOOKUP(Rebalance!$D$65,$F$2:$G$48,2,FALSE)+ROW()-2))=Rebalance!$D$65,INDIRECT(\"a\" & (VLOOKUP(Rebalance!$D$65,$F$2:$G$48,2,FALSE)+ROW()-2)),\"\")","v":{"$error":"#N/A"}},{"$f":"IF(INDIRECT(\"c\" & (VLOOKUP(Rebalance!$D$66,$F$2:$G$48,2,FALSE)+ROW()-2))=Rebalance!$D$66,INDIRECT(\"a\" & (VLOOKUP(Rebalance!$D$66,$F$2:$G$48,2,FALSE)+ROW()-2)),\"\")","v":{"$error":"#N/A"}}]
["Counterpoint SCI High Yield Equity Fund A1","MEHA1","Sanlam Collective Investments",{"$f":"ROW()","v":507},null,null,{"$f":"VLOOKUP(F507,$C$2:$D$599,2,FALSE)","v":{"$error":"#N/A"}},{"$f":"IF(INDIRECT(\"c\" & (VLOOKUP(Rebalance!$D$26,$F$2:$G$48,2,FALSE)+ROW()-2))=Rebalance!$D$26,INDIRECT(\"a\" & (VLOOKUP(Rebalance!$D$26,$F$2:$G$48,2,FALSE)+ROW()-2)),\"\")","v":{"$error":"#N/A"}},{"$f":"IF(INDIRECT(\"c\" & (VLOOKUP(Rebalance!$D$27,$F$2:$G$48,2,FALSE)+ROW()-2))=Rebalance!$D$27,INDIRECT(\"a\" & (VLOOKUP(Rebalance!$D$27,$F$2:$G$48,2,FALSE)+ROW()-2)),\"\")","v":{"$error":"#N/A"}},{"$f":"IF(INDIRECT(\"c\" & (VLOOKUP(Rebalance!$D$28,$F$2:$G$48,2,FALSE)+ROW()-2))=Rebalance!$D$28,INDIRECT(\"a\" & (VLOOKUP(Rebalance!$D$28,$F$2:$G$48,2,FALSE)+ROW()-2)),\"\")","v":{"$error":"#N/A"}},{"$f":"IF(INDIRECT(\"c\" & (VLOOKUP(Rebalance!$D$29,$F$2:$G$48,2,FALSE)+ROW()-2))=Rebalance!$D$29,INDIRECT(\"a\" & (VLOOKUP(Rebalance!$D$29,$F$2:$G$48,2,FALSE)+ROW()-2)),\"\")","v":{"$error":"#N/A"}},{"$f":"IF(INDIRECT(\"c\" & (VLOOKUP(Rebalance!$D$30,$F$2:$G$48,2,FALSE)+ROW()-2))=Rebalance!$D$30,INDIRECT(\"a\" & (VLOOKUP(Rebalance!$D$30,$F$2:$G$48,2,FALSE)+ROW()-2)),\"\")","v":{"$error":"#N/A"}},{"$f":"IF(INDIRECT(\"c\" & (VLOOKUP(Rebalance!$D$31,$F$2:$G$48,2,FALSE)+ROW()-2))=Rebalance!$D$31,INDIRECT(\"a\" & (VLOOKUP(Rebalance!$D$31,$F$2:$G$48,2,FALSE)+ROW()-2)),\"\")","v":{"$error":"#N/A"}},{"$f":"IF(INDIRECT(\"c\" & (VLOOKUP(Rebalance!$D$32,$F$2:$G$48,2,FALSE)+ROW()-2))=Rebalance!$D$32,INDIRECT(\"a\" & (VLOOKUP(Rebalance!$D$32,$F$2:$G$48,2,FALSE)+ROW()-2)),\"\")","v":{"$error":"#N/A"}},{"$f":"IF(INDIRECT(\"c\" & (VLOOKUP(Rebalance!$D$33,$F$2:$G$48,2,FALSE)+ROW()-2))=Rebalance!$D$33,INDIRECT(\"a\" & (VLOOKUP(Rebalance!$D$33,$F$2:$G$48,2,FALSE)+ROW()-2)),\"\")","v":{"$error":"#N/A"}},{"$f":"IF(INDIRECT(\"c\" & (VLOOKUP(Rebalance!$D$34,$F$2:$G$48,2,FALSE)+ROW()-2))=Rebalance!$D$34,INDIRECT(\"a\" & (VLOOKUP(Rebalance!$D$34,$F$2:$G$48,2,FALSE)+ROW()-2)),\"\")","v":{"$error":"#N/A"}},{"$f":"IF(INDIRECT(\"c\" & (VLOOKUP(Rebalance!$D$35,$F$2:$G$48,2,FALSE)+ROW()-2))=Rebalance!$D$35,INDIRECT(\"a\" & (VLOOKUP(Rebalance!$D$35,$F$2:$G$48,2,FALSE)+ROW()-2)),\"\")","v":{"$error":"#N/A"}},{"$f":"IF(INDIRECT(\"c\" & (VLOOKUP(Rebalance!$D$36,$F$2:$G$48,2,FALSE)+ROW()-2))=Rebalance!$D$36,INDIRECT(\"a\" & (VLOOKUP(Rebalance!$D$36,$F$2:$G$48,2,FALSE)+ROW()-2)),\"\")","v":{"$error":"#N/A"}},{"$f":"IF(INDIRECT(\"c\" & (VLOOKUP(Rebalance!$D$37,$F$2:$G$48,2,FALSE)+ROW()-2))=Rebalance!$D$37,INDIRECT(\"a\" & (VLOOKUP(Rebalance!$D$37,$F$2:$G$48,2,FALSE)+ROW()-2)),\"\")","v":{"$error":"#N/A"}},{"$f":"IF(INDIRECT(\"c\" & (VLOOKUP(Rebalance!$D$38,$F$2:$G$48,2,FALSE)+ROW()-2))=Rebalance!$D$38,INDIRECT(\"a\" & (VLOOKUP(Rebalance!$D$38,$F$2:$G$48,2,FALSE)+ROW()-2)),\"\")","v":{"$error":"#N/A"}},{"$f":"IF(INDIRECT(\"c\" & (VLOOKUP(Rebalance!$D$39,$F$2:$G$48,2,FALSE)+ROW()-2))=Rebalance!$D$39,INDIRECT(\"a\" & (VLOOKUP(Rebalance!$D$39,$F$2:$G$48,2,FALSE)+ROW()-2)),\"\")","v":{"$error":"#N/A"}},{"$f":"IF(INDIRECT(\"c\" & (VLOOKUP(Rebalance!$D$40,$F$2:$G$48,2,FALSE)+ROW()-2))=Rebalance!$D$40,INDIRECT(\"a\" & (VLOOKUP(Rebalance!$D$40,$F$2:$G$48,2,FALSE)+ROW()-2)),\"\")","v":{"$error":"#N/A"}},{"$f":"IF(INDIRECT(\"c\" & (VLOOKUP(Rebalance!$D$52,$F$2:$G$48,2,FALSE)+ROW()-2))=Rebalance!$D$52,INDIRECT(\"a\" & (VLOOKUP(Rebalance!$D$52,$F$2:$G$48,2,FALSE)+ROW()-2)),\"\")","v":{"$error":"#N/A"}},{"$f":"IF(INDIRECT(\"c\" & (VLOOKUP(Rebalance!$D$53,$F$2:$G$48,2,FALSE)+ROW()-2))=Rebalance!$D$53,INDIRECT(\"a\" & (VLOOKUP(Rebalance!$D$53,$F$2:$G$48,2,FALSE)+ROW()-2)),\"\")","v":{"$error":"#N/A"}},{"$f":"IF(INDIRECT(\"c\" & (VLOOKUP(Rebalance!$D$54,$F$2:$G$48,2,FALSE)+ROW()-2))=Rebalance!$D$54,INDIRECT(\"a\" & (VLOOKUP(Rebalance!$D$54,$F$2:$G$48,2,FALSE)+ROW()-2)),\"\")","v":{"$error":"#N/A"}},{"$f":"IF(INDIRECT(\"c\" & (VLOOKUP(Rebalance!$D$55,$F$2:$G$48,2,FALSE)+ROW()-2))=Rebalance!$D$55,INDIRECT(\"a\" & (VLOOKUP(Rebalance!$D$55,$F$2:$G$48,2,FALSE)+ROW()-2)),\"\")","v":{"$error":"#N/A"}},{"$f":"IF(INDIRECT(\"c\" & (VLOOKUP(Rebalance!$D$56,$F$2:$G$48,2,FALSE)+ROW()-2))=Rebalance!$D$56,INDIRECT(\"a\" & (VLOOKUP(Rebalance!$D$56,$F$2:$G$48,2,FALSE)+ROW()-2)),\"\")","v":{"$error":"#N/A"}},{"$f":"IF(INDIRECT(\"c\" & (VLOOKUP(Rebalance!$D$57,$F$2:$G$48,2,FALSE)+ROW()-2))=Rebalance!$D$57,INDIRECT(\"a\" & (VLOOKUP(Rebalance!$D$57,$F$2:$G$48,2,FALSE)+ROW()-2)),\"\")","v":{"$error":"#N/A"}},{"$f":"IF(INDIRECT(\"c\" & (VLOOKUP(Rebalance!$D$58,$F$2:$G$48,2,FALSE)+ROW()-2))=Rebalance!$D$58,INDIRECT(\"a\" & (VLOOKUP(Rebalance!$D$58,$F$2:$G$48,2,FALSE)+ROW()-2)),\"\")","v":{"$error":"#N/A"}},{"$f":"IF(INDIRECT(\"c\" & (VLOOKUP(Rebalance!$D$59,$F$2:$G$48,2,FALSE)+ROW()-2))=Rebalance!$D$59,INDIRECT(\"a\" & (VLOOKUP(Rebalance!$D$59,$F$2:$G$48,2,FALSE)+ROW()-2)),\"\")","v":{"$error":"#N/A"}},{"$f":"IF(INDIRECT(\"c\" & (VLOOKUP(Rebalance!$D$60,$F$2:$G$48,2,FALSE)+ROW()-2))=Rebalance!$D$60,INDIRECT(\"a\" & (VLOOKUP(Rebalance!$D$60,$F$2:$G$48,2,FALSE)+ROW()-2)),\"\")","v":{"$error":"#N/A"}},{"$f":"IF(INDIRECT(\"c\" & (VLOOKUP(Rebalance!$D$61,$F$2:$G$48,2,FALSE)+ROW()-2))=Rebalance!$D$61,INDIRECT(\"a\" & (VLOOKUP(Rebalance!$D$61,$F$2:$G$48,2,FALSE)+ROW()-2)),\"\")","v":{"$error":"#N/A"}},{"$f":"IF(INDIRECT(\"c\" & (VLOOKUP(Rebalance!$D$62,$F$2:$G$48,2,FALSE)+ROW()-2))=Rebalance!$D$62,INDIRECT(\"a\" & (VLOOKUP(Rebalance!$D$62,$F$2:$G$48,2,FALSE)+ROW()-2)),\"\")","v":{"$error":"#N/A"}},{"$f":"IF(INDIRECT(\"c\" & (VLOOKUP(Rebalance!$D$63,$F$2:$G$48,2,FALSE)+ROW()-2))=Rebalance!$D$63,INDIRECT(\"a\" & (VLOOKUP(Rebalance!$D$63,$F$2:$G$48,2,FALSE)+ROW()-2)),\"\")","v":{"$error":"#N/A"}},{"$f":"IF(INDIRECT(\"c\" & (VLOOKUP(Rebalance!$D$64,$F$2:$G$48,2,FALSE)+ROW()-2))=Rebalance!$D$64,INDIRECT(\"a\" & (VLOOKUP(Rebalance!$D$64,$F$2:$G$48,2,FALSE)+ROW()-2)),\"\")","v":{"$error":"#N/A"}},{"$f":"IF(INDIRECT(\"c\" & (VLOOKUP(Rebalance!$D$65,$F$2:$G$48,2,FALSE)+ROW()-2))=Rebalance!$D$65,INDIRECT(\"a\" & (VLOOKUP(Rebalance!$D$65,$F$2:$G$48,2,FALSE)+ROW()-2)),\"\")","v":{"$error":"#N/A"}},{"$f":"IF(INDIRECT(\"c\" & (VLOOKUP(Rebalance!$D$66,$F$2:$G$48,2,FALSE)+ROW()-2))=Rebalance!$D$66,INDIRECT(\"a\" & (VLOOKUP(Rebalance!$D$66,$F$2:$G$48,2,FALSE)+ROW()-2)),\"\")","v":{"$error":"#N/A"}}]
["Counterpoint SCI Global Equity Feeder Fund B","CMGFB","Sanlam Collective Investments",{"$f":"ROW()","v":508},null,null,{"$f":"VLOOKUP(F508,$C$2:$D$599,2,FALSE)","v":{"$error":"#N/A"}},{"$f":"IF(INDIRECT(\"c\" & (VLOOKUP(Rebalance!$D$26,$F$2:$G$48,2,FALSE)+ROW()-2))=Rebalance!$D$26,INDIRECT(\"a\" & (VLOOKUP(Rebalance!$D$26,$F$2:$G$48,2,FALSE)+ROW()-2)),\"\")","v":{"$error":"#N/A"}},{"$f":"IF(INDIRECT(\"c\" & (VLOOKUP(Rebalance!$D$27,$F$2:$G$48,2,FALSE)+ROW()-2))=Rebalance!$D$27,INDIRECT(\"a\" & (VLOOKUP(Rebalance!$D$27,$F$2:$G$48,2,FALSE)+ROW()-2)),\"\")","v":{"$error":"#N/A"}},{"$f":"IF(INDIRECT(\"c\" & (VLOOKUP(Rebalance!$D$28,$F$2:$G$48,2,FALSE)+ROW()-2))=Rebalance!$D$28,INDIRECT(\"a\" & (VLOOKUP(Rebalance!$D$28,$F$2:$G$48,2,FALSE)+ROW()-2)),\"\")","v":{"$error":"#N/A"}},{"$f":"IF(INDIRECT(\"c\" & (VLOOKUP(Rebalance!$D$29,$F$2:$G$48,2,FALSE)+ROW()-2))=Rebalance!$D$29,INDIRECT(\"a\" & (VLOOKUP(Rebalance!$D$29,$F$2:$G$48,2,FALSE)+ROW()-2)),\"\")","v":{"$error":"#N/A"}},{"$f":"IF(INDIRECT(\"c\" & (VLOOKUP(Rebalance!$D$30,$F$2:$G$48,2,FALSE)+ROW()-2))=Rebalance!$D$30,INDIRECT(\"a\" & (VLOOKUP(Rebalance!$D$30,$F$2:$G$48,2,FALSE)+ROW()-2)),\"\")","v":{"$error":"#N/A"}},{"$f":"IF(INDIRECT(\"c\" & (VLOOKUP(Rebalance!$D$31,$F$2:$G$48,2,FALSE)+ROW()-2))=Rebalance!$D$31,INDIRECT(\"a\" & (VLOOKUP(Rebalance!$D$31,$F$2:$G$48,2,FALSE)+ROW()-2)),\"\")","v":{"$error":"#N/A"}},{"$f":"IF(INDIRECT(\"c\" & (VLOOKUP(Rebalance!$D$32,$F$2:$G$48,2,FALSE)+ROW()-2))=Rebalance!$D$32,INDIRECT(\"a\" & (VLOOKUP(Rebalance!$D$32,$F$2:$G$48,2,FALSE)+ROW()-2)),\"\")","v":{"$error":"#N/A"}},{"$f":"IF(INDIRECT(\"c\" & (VLOOKUP(Rebalance!$D$33,$F$2:$G$48,2,FALSE)+ROW()-2))=Rebalance!$D$33,INDIRECT(\"a\" & (VLOOKUP(Rebalance!$D$33,$F$2:$G$48,2,FALSE)+ROW()-2)),\"\")","v":{"$error":"#N/A"}},{"$f":"IF(INDIRECT(\"c\" & (VLOOKUP(Rebalance!$D$34,$F$2:$G$48,2,FALSE)+ROW()-2))=Rebalance!$D$34,INDIRECT(\"a\" & (VLOOKUP(Rebalance!$D$34,$F$2:$G$48,2,FALSE)+ROW()-2)),\"\")","v":{"$error":"#N/A"}},{"$f":"IF(INDIRECT(\"c\" & (VLOOKUP(Rebalance!$D$35,$F$2:$G$48,2,FALSE)+ROW()-2))=Rebalance!$D$35,INDIRECT(\"a\" & (VLOOKUP(Rebalance!$D$35,$F$2:$G$48,2,FALSE)+ROW()-2)),\"\")","v":{"$error":"#N/A"}},{"$f":"IF(INDIRECT(\"c\" & (VLOOKUP(Rebalance!$D$36,$F$2:$G$48,2,FALSE)+ROW()-2))=Rebalance!$D$36,INDIRECT(\"a\" & (VLOOKUP(Rebalance!$D$36,$F$2:$G$48,2,FALSE)+ROW()-2)),\"\")","v":{"$error":"#N/A"}},{"$f":"IF(INDIRECT(\"c\" & (VLOOKUP(Rebalance!$D$37,$F$2:$G$48,2,FALSE)+ROW()-2))=Rebalance!$D$37,INDIRECT(\"a\" & (VLOOKUP(Rebalance!$D$37,$F$2:$G$48,2,FALSE)+ROW()-2)),\"\")","v":{"$error":"#N/A"}},{"$f":"IF(INDIRECT(\"c\" & (VLOOKUP(Rebalance!$D$38,$F$2:$G$48,2,FALSE)+ROW()-2))=Rebalance!$D$38,INDIRECT(\"a\" & (VLOOKUP(Rebalance!$D$38,$F$2:$G$48,2,FALSE)+ROW()-2)),\"\")","v":{"$error":"#N/A"}},{"$f":"IF(INDIRECT(\"c\" & (VLOOKUP(Rebalance!$D$39,$F$2:$G$48,2,FALSE)+ROW()-2))=Rebalance!$D$39,INDIRECT(\"a\" & (VLOOKUP(Rebalance!$D$39,$F$2:$G$48,2,FALSE)+ROW()-2)),\"\")","v":{"$error":"#N/A"}},{"$f":"IF(INDIRECT(\"c\" & (VLOOKUP(Rebalance!$D$40,$F$2:$G$48,2,FALSE)+ROW()-2))=Rebalance!$D$40,INDIRECT(\"a\" & (VLOOKUP(Rebalance!$D$40,$F$2:$G$48,2,FALSE)+ROW()-2)),\"\")","v":{"$error":"#N/A"}},{"$f":"IF(INDIRECT(\"c\" & (VLOOKUP(Rebalance!$D$52,$F$2:$G$48,2,FALSE)+ROW()-2))=Rebalance!$D$52,INDIRECT(\"a\" & (VLOOKUP(Rebalance!$D$52,$F$2:$G$48,2,FALSE)+ROW()-2)),\"\")","v":{"$error":"#N/A"}},{"$f":"IF(INDIRECT(\"c\" & (VLOOKUP(Rebalance!$D$53,$F$2:$G$48,2,FALSE)+ROW()-2))=Rebalance!$D$53,INDIRECT(\"a\" & (VLOOKUP(Rebalance!$D$53,$F$2:$G$48,2,FALSE)+ROW()-2)),\"\")","v":{"$error":"#N/A"}},{"$f":"IF(INDIRECT(\"c\" & (VLOOKUP(Rebalance!$D$54,$F$2:$G$48,2,FALSE)+ROW()-2))=Rebalance!$D$54,INDIRECT(\"a\" & (VLOOKUP(Rebalance!$D$54,$F$2:$G$48,2,FALSE)+ROW()-2)),\"\")","v":{"$error":"#N/A"}},{"$f":"IF(INDIRECT(\"c\" & (VLOOKUP(Rebalance!$D$55,$F$2:$G$48,2,FALSE)+ROW()-2))=Rebalance!$D$55,INDIRECT(\"a\" & (VLOOKUP(Rebalance!$D$55,$F$2:$G$48,2,FALSE)+ROW()-2)),\"\")","v":{"$error":"#N/A"}},{"$f":"IF(INDIRECT(\"c\" & (VLOOKUP(Rebalance!$D$56,$F$2:$G$48,2,FALSE)+ROW()-2))=Rebalance!$D$56,INDIRECT(\"a\" & (VLOOKUP(Rebalance!$D$56,$F$2:$G$48,2,FALSE)+ROW()-2)),\"\")","v":{"$error":"#N/A"}},{"$f":"IF(INDIRECT(\"c\" & (VLOOKUP(Rebalance!$D$57,$F$2:$G$48,2,FALSE)+ROW()-2))=Rebalance!$D$57,INDIRECT(\"a\" & (VLOOKUP(Rebalance!$D$57,$F$2:$G$48,2,FALSE)+ROW()-2)),\"\")","v":{"$error":"#N/A"}},{"$f":"IF(INDIRECT(\"c\" & (VLOOKUP(Rebalance!$D$58,$F$2:$G$48,2,FALSE)+ROW()-2))=Rebalance!$D$58,INDIRECT(\"a\" & (VLOOKUP(Rebalance!$D$58,$F$2:$G$48,2,FALSE)+ROW()-2)),\"\")","v":{"$error":"#N/A"}},{"$f":"IF(INDIRECT(\"c\" & (VLOOKUP(Rebalance!$D$59,$F$2:$G$48,2,FALSE)+ROW()-2))=Rebalance!$D$59,INDIRECT(\"a\" & (VLOOKUP(Rebalance!$D$59,$F$2:$G$48,2,FALSE)+ROW()-2)),\"\")","v":{"$error":"#N/A"}},{"$f":"IF(INDIRECT(\"c\" & (VLOOKUP(Rebalance!$D$60,$F$2:$G$48,2,FALSE)+ROW()-2))=Rebalance!$D$60,INDIRECT(\"a\" & (VLOOKUP(Rebalance!$D$60,$F$2:$G$48,2,FALSE)+ROW()-2)),\"\")","v":{"$error":"#N/A"}},{"$f":"IF(INDIRECT(\"c\" & (VLOOKUP(Rebalance!$D$61,$F$2:$G$48,2,FALSE)+ROW()-2))=Rebalance!$D$61,INDIRECT(\"a\" & (VLOOKUP(Rebalance!$D$61,$F$2:$G$48,2,FALSE)+ROW()-2)),\"\")","v":{"$error":"#N/A"}},{"$f":"IF(INDIRECT(\"c\" & (VLOOKUP(Rebalance!$D$62,$F$2:$G$48,2,FALSE)+ROW()-2))=Rebalance!$D$62,INDIRECT(\"a\" & (VLOOKUP(Rebalance!$D$62,$F$2:$G$48,2,FALSE)+ROW()-2)),\"\")","v":{"$error":"#N/A"}},{"$f":"IF(INDIRECT(\"c\" & (VLOOKUP(Rebalance!$D$63,$F$2:$G$48,2,FALSE)+ROW()-2))=Rebalance!$D$63,INDIRECT(\"a\" & (VLOOKUP(Rebalance!$D$63,$F$2:$G$48,2,FALSE)+ROW()-2)),\"\")","v":{"$error":"#N/A"}},{"$f":"IF(INDIRECT(\"c\" & (VLOOKUP(Rebalance!$D$64,$F$2:$G$48,2,FALSE)+ROW()-2))=Rebalance!$D$64,INDIRECT(\"a\" & (VLOOKUP(Rebalance!$D$64,$F$2:$G$48,2,FALSE)+ROW()-2)),\"\")","v":{"$error":"#N/A"}},{"$f":"IF(INDIRECT(\"c\" & (VLOOKUP(Rebalance!$D$65,$F$2:$G$48,2,FALSE)+ROW()-2))=Rebalance!$D$65,INDIRECT(\"a\" & (VLOOKUP(Rebalance!$D$65,$F$2:$G$48,2,FALSE)+ROW()-2)),\"\")","v":{"$error":"#N/A"}},{"$f":"IF(INDIRECT(\"c\" & (VLOOKUP(Rebalance!$D$66,$F$2:$G$48,2,FALSE)+ROW()-2))=Rebalance!$D$66,INDIRECT(\"a\" & (VLOOKUP(Rebalance!$D$66,$F$2:$G$48,2,FALSE)+ROW()-2)),\"\")","v":{"$error":"#N/A"}}]
["Counterpoint SCI Moderate Fund A1","MEMA1","Sanlam Collective Investments",{"$f":"ROW()","v":509},null,null,{"$f":"VLOOKUP(F509,$C$2:$D$599,2,FALSE)","v":{"$error":"#N/A"}},{"$f":"IF(INDIRECT(\"c\" & (VLOOKUP(Rebalance!$D$26,$F$2:$G$48,2,FALSE)+ROW()-2))=Rebalance!$D$26,INDIRECT(\"a\" & (VLOOKUP(Rebalance!$D$26,$F$2:$G$48,2,FALSE)+ROW()-2)),\"\")","v":{"$error":"#N/A"}},{"$f":"IF(INDIRECT(\"c\" & (VLOOKUP(Rebalance!$D$27,$F$2:$G$48,2,FALSE)+ROW()-2))=Rebalance!$D$27,INDIRECT(\"a\" & (VLOOKUP(Rebalance!$D$27,$F$2:$G$48,2,FALSE)+ROW()-2)),\"\")","v":{"$error":"#N/A"}},{"$f":"IF(INDIRECT(\"c\" & (VLOOKUP(Rebalance!$D$28,$F$2:$G$48,2,FALSE)+ROW()-2))=Rebalance!$D$28,INDIRECT(\"a\" & (VLOOKUP(Rebalance!$D$28,$F$2:$G$48,2,FALSE)+ROW()-2)),\"\")","v":{"$error":"#N/A"}},{"$f":"IF(INDIRECT(\"c\" & (VLOOKUP(Rebalance!$D$29,$F$2:$G$48,2,FALSE)+ROW()-2))=Rebalance!$D$29,INDIRECT(\"a\" & (VLOOKUP(Rebalance!$D$29,$F$2:$G$48,2,FALSE)+ROW()-2)),\"\")","v":{"$error":"#N/A"}},{"$f":"IF(INDIRECT(\"c\" & (VLOOKUP(Rebalance!$D$30,$F$2:$G$48,2,FALSE)+ROW()-2))=Rebalance!$D$30,INDIRECT(\"a\" & (VLOOKUP(Rebalance!$D$30,$F$2:$G$48,2,FALSE)+ROW()-2)),\"\")","v":{"$error":"#N/A"}},{"$f":"IF(INDIRECT(\"c\" & (VLOOKUP(Rebalance!$D$31,$F$2:$G$48,2,FALSE)+ROW()-2))=Rebalance!$D$31,INDIRECT(\"a\" & (VLOOKUP(Rebalance!$D$31,$F$2:$G$48,2,FALSE)+ROW()-2)),\"\")","v":{"$error":"#N/A"}},{"$f":"IF(INDIRECT(\"c\" & (VLOOKUP(Rebalance!$D$32,$F$2:$G$48,2,FALSE)+ROW()-2))=Rebalance!$D$32,INDIRECT(\"a\" & (VLOOKUP(Rebalance!$D$32,$F$2:$G$48,2,FALSE)+ROW()-2)),\"\")","v":{"$error":"#N/A"}},{"$f":"IF(INDIRECT(\"c\" & (VLOOKUP(Rebalance!$D$33,$F$2:$G$48,2,FALSE)+ROW()-2))=Rebalance!$D$33,INDIRECT(\"a\" & (VLOOKUP(Rebalance!$D$33,$F$2:$G$48,2,FALSE)+ROW()-2)),\"\")","v":{"$error":"#N/A"}},{"$f":"IF(INDIRECT(\"c\" & (VLOOKUP(Rebalance!$D$34,$F$2:$G$48,2,FALSE)+ROW()-2))=Rebalance!$D$34,INDIRECT(\"a\" & (VLOOKUP(Rebalance!$D$34,$F$2:$G$48,2,FALSE)+ROW()-2)),\"\")","v":{"$error":"#N/A"}},{"$f":"IF(INDIRECT(\"c\" & (VLOOKUP(Rebalance!$D$35,$F$2:$G$48,2,FALSE)+ROW()-2))=Rebalance!$D$35,INDIRECT(\"a\" & (VLOOKUP(Rebalance!$D$35,$F$2:$G$48,2,FALSE)+ROW()-2)),\"\")","v":{"$error":"#N/A"}},{"$f":"IF(INDIRECT(\"c\" & (VLOOKUP(Rebalance!$D$36,$F$2:$G$48,2,FALSE)+ROW()-2))=Rebalance!$D$36,INDIRECT(\"a\" & (VLOOKUP(Rebalance!$D$36,$F$2:$G$48,2,FALSE)+ROW()-2)),\"\")","v":{"$error":"#N/A"}},{"$f":"IF(INDIRECT(\"c\" & (VLOOKUP(Rebalance!$D$37,$F$2:$G$48,2,FALSE)+ROW()-2))=Rebalance!$D$37,INDIRECT(\"a\" & (VLOOKUP(Rebalance!$D$37,$F$2:$G$48,2,FALSE)+ROW()-2)),\"\")","v":{"$error":"#N/A"}},{"$f":"IF(INDIRECT(\"c\" & (VLOOKUP(Rebalance!$D$38,$F$2:$G$48,2,FALSE)+ROW()-2))=Rebalance!$D$38,INDIRECT(\"a\" & (VLOOKUP(Rebalance!$D$38,$F$2:$G$48,2,FALSE)+ROW()-2)),\"\")","v":{"$error":"#N/A"}},{"$f":"IF(INDIRECT(\"c\" & (VLOOKUP(Rebalance!$D$39,$F$2:$G$48,2,FALSE)+ROW()-2))=Rebalance!$D$39,INDIRECT(\"a\" & (VLOOKUP(Rebalance!$D$39,$F$2:$G$48,2,FALSE)+ROW()-2)),\"\")","v":{"$error":"#N/A"}},{"$f":"IF(INDIRECT(\"c\" & (VLOOKUP(Rebalance!$D$40,$F$2:$G$48,2,FALSE)+ROW()-2))=Rebalance!$D$40,INDIRECT(\"a\" & (VLOOKUP(Rebalance!$D$40,$F$2:$G$48,2,FALSE)+ROW()-2)),\"\")","v":{"$error":"#N/A"}},{"$f":"IF(INDIRECT(\"c\" & (VLOOKUP(Rebalance!$D$52,$F$2:$G$48,2,FALSE)+ROW()-2))=Rebalance!$D$52,INDIRECT(\"a\" & (VLOOKUP(Rebalance!$D$52,$F$2:$G$48,2,FALSE)+ROW()-2)),\"\")","v":{"$error":"#N/A"}},{"$f":"IF(INDIRECT(\"c\" & (VLOOKUP(Rebalance!$D$53,$F$2:$G$48,2,FALSE)+ROW()-2))=Rebalance!$D$53,INDIRECT(\"a\" & (VLOOKUP(Rebalance!$D$53,$F$2:$G$48,2,FALSE)+ROW()-2)),\"\")","v":{"$error":"#N/A"}},{"$f":"IF(INDIRECT(\"c\" & (VLOOKUP(Rebalance!$D$54,$F$2:$G$48,2,FALSE)+ROW()-2))=Rebalance!$D$54,INDIRECT(\"a\" & (VLOOKUP(Rebalance!$D$54,$F$2:$G$48,2,FALSE)+ROW()-2)),\"\")","v":{"$error":"#N/A"}},{"$f":"IF(INDIRECT(\"c\" & (VLOOKUP(Rebalance!$D$55,$F$2:$G$48,2,FALSE)+ROW()-2))=Rebalance!$D$55,INDIRECT(\"a\" & (VLOOKUP(Rebalance!$D$55,$F$2:$G$48,2,FALSE)+ROW()-2)),\"\")","v":{"$error":"#N/A"}},{"$f":"IF(INDIRECT(\"c\" & (VLOOKUP(Rebalance!$D$56,$F$2:$G$48,2,FALSE)+ROW()-2))=Rebalance!$D$56,INDIRECT(\"a\" & (VLOOKUP(Rebalance!$D$56,$F$2:$G$48,2,FALSE)+ROW()-2)),\"\")","v":{"$error":"#N/A"}},{"$f":"IF(INDIRECT(\"c\" & (VLOOKUP(Rebalance!$D$57,$F$2:$G$48,2,FALSE)+ROW()-2))=Rebalance!$D$57,INDIRECT(\"a\" & (VLOOKUP(Rebalance!$D$57,$F$2:$G$48,2,FALSE)+ROW()-2)),\"\")","v":{"$error":"#N/A"}},{"$f":"IF(INDIRECT(\"c\" & (VLOOKUP(Rebalance!$D$58,$F$2:$G$48,2,FALSE)+ROW()-2))=Rebalance!$D$58,INDIRECT(\"a\" & (VLOOKUP(Rebalance!$D$58,$F$2:$G$48,2,FALSE)+ROW()-2)),\"\")","v":{"$error":"#N/A"}},{"$f":"IF(INDIRECT(\"c\" & (VLOOKUP(Rebalance!$D$59,$F$2:$G$48,2,FALSE)+ROW()-2))=Rebalance!$D$59,INDIRECT(\"a\" & (VLOOKUP(Rebalance!$D$59,$F$2:$G$48,2,FALSE)+ROW()-2)),\"\")","v":{"$error":"#N/A"}},{"$f":"IF(INDIRECT(\"c\" & (VLOOKUP(Rebalance!$D$60,$F$2:$G$48,2,FALSE)+ROW()-2))=Rebalance!$D$60,INDIRECT(\"a\" & (VLOOKUP(Rebalance!$D$60,$F$2:$G$48,2,FALSE)+ROW()-2)),\"\")","v":{"$error":"#N/A"}},{"$f":"IF(INDIRECT(\"c\" & (VLOOKUP(Rebalance!$D$61,$F$2:$G$48,2,FALSE)+ROW()-2))=Rebalance!$D$61,INDIRECT(\"a\" & (VLOOKUP(Rebalance!$D$61,$F$2:$G$48,2,FALSE)+ROW()-2)),\"\")","v":{"$error":"#N/A"}},{"$f":"IF(INDIRECT(\"c\" & (VLOOKUP(Rebalance!$D$62,$F$2:$G$48,2,FALSE)+ROW()-2))=Rebalance!$D$62,INDIRECT(\"a\" & (VLOOKUP(Rebalance!$D$62,$F$2:$G$48,2,FALSE)+ROW()-2)),\"\")","v":{"$error":"#N/A"}},{"$f":"IF(INDIRECT(\"c\" & (VLOOKUP(Rebalance!$D$63,$F$2:$G$48,2,FALSE)+ROW()-2))=Rebalance!$D$63,INDIRECT(\"a\" & (VLOOKUP(Rebalance!$D$63,$F$2:$G$48,2,FALSE)+ROW()-2)),\"\")","v":{"$error":"#N/A"}},{"$f":"IF(INDIRECT(\"c\" & (VLOOKUP(Rebalance!$D$64,$F$2:$G$48,2,FALSE)+ROW()-2))=Rebalance!$D$64,INDIRECT(\"a\" & (VLOOKUP(Rebalance!$D$64,$F$2:$G$48,2,FALSE)+ROW()-2)),\"\")","v":{"$error":"#N/A"}},{"$f":"IF(INDIRECT(\"c\" & (VLOOKUP(Rebalance!$D$65,$F$2:$G$48,2,FALSE)+ROW()-2))=Rebalance!$D$65,INDIRECT(\"a\" & (VLOOKUP(Rebalance!$D$65,$F$2:$G$48,2,FALSE)+ROW()-2)),\"\")","v":{"$error":"#N/A"}},{"$f":"IF(INDIRECT(\"c\" & (VLOOKUP(Rebalance!$D$66,$F$2:$G$48,2,FALSE)+ROW()-2))=Rebalance!$D$66,INDIRECT(\"a\" & (VLOOKUP(Rebalance!$D$66,$F$2:$G$48,2,FALSE)+ROW()-2)),\"\")","v":{"$error":"#N/A"}}]
["Counterpoint SCI Value Fund A1","MBHD","Sanlam Collective Investments",{"$f":"ROW()","v":510},null,null,{"$f":"VLOOKUP(F510,$C$2:$D$599,2,FALSE)","v":{"$error":"#N/A"}},{"$f":"IF(INDIRECT(\"c\" & (VLOOKUP(Rebalance!$D$26,$F$2:$G$48,2,FALSE)+ROW()-2))=Rebalance!$D$26,INDIRECT(\"a\" & (VLOOKUP(Rebalance!$D$26,$F$2:$G$48,2,FALSE)+ROW()-2)),\"\")","v":{"$error":"#N/A"}},{"$f":"IF(INDIRECT(\"c\" & (VLOOKUP(Rebalance!$D$27,$F$2:$G$48,2,FALSE)+ROW()-2))=Rebalance!$D$27,INDIRECT(\"a\" & (VLOOKUP(Rebalance!$D$27,$F$2:$G$48,2,FALSE)+ROW()-2)),\"\")","v":{"$error":"#N/A"}},{"$f":"IF(INDIRECT(\"c\" & (VLOOKUP(Rebalance!$D$28,$F$2:$G$48,2,FALSE)+ROW()-2))=Rebalance!$D$28,INDIRECT(\"a\" & (VLOOKUP(Rebalance!$D$28,$F$2:$G$48,2,FALSE)+ROW()-2)),\"\")","v":{"$error":"#N/A"}},{"$f":"IF(INDIRECT(\"c\" & (VLOOKUP(Rebalance!$D$29,$F$2:$G$48,2,FALSE)+ROW()-2))=Rebalance!$D$29,INDIRECT(\"a\" & (VLOOKUP(Rebalance!$D$29,$F$2:$G$48,2,FALSE)+ROW()-2)),\"\")","v":{"$error":"#N/A"}},{"$f":"IF(INDIRECT(\"c\" & (VLOOKUP(Rebalance!$D$30,$F$2:$G$48,2,FALSE)+ROW()-2))=Rebalance!$D$30,INDIRECT(\"a\" & (VLOOKUP(Rebalance!$D$30,$F$2:$G$48,2,FALSE)+ROW()-2)),\"\")","v":{"$error":"#N/A"}},{"$f":"IF(INDIRECT(\"c\" & (VLOOKUP(Rebalance!$D$31,$F$2:$G$48,2,FALSE)+ROW()-2))=Rebalance!$D$31,INDIRECT(\"a\" & (VLOOKUP(Rebalance!$D$31,$F$2:$G$48,2,FALSE)+ROW()-2)),\"\")","v":{"$error":"#N/A"}},{"$f":"IF(INDIRECT(\"c\" & (VLOOKUP(Rebalance!$D$32,$F$2:$G$48,2,FALSE)+ROW()-2))=Rebalance!$D$32,INDIRECT(\"a\" & (VLOOKUP(Rebalance!$D$32,$F$2:$G$48,2,FALSE)+ROW()-2)),\"\")","v":{"$error":"#N/A"}},{"$f":"IF(INDIRECT(\"c\" & (VLOOKUP(Rebalance!$D$33,$F$2:$G$48,2,FALSE)+ROW()-2))=Rebalance!$D$33,INDIRECT(\"a\" & (VLOOKUP(Rebalance!$D$33,$F$2:$G$48,2,FALSE)+ROW()-2)),\"\")","v":{"$error":"#N/A"}},{"$f":"IF(INDIRECT(\"c\" & (VLOOKUP(Rebalance!$D$34,$F$2:$G$48,2,FALSE)+ROW()-2))=Rebalance!$D$34,INDIRECT(\"a\" & (VLOOKUP(Rebalance!$D$34,$F$2:$G$48,2,FALSE)+ROW()-2)),\"\")","v":{"$error":"#N/A"}},{"$f":"IF(INDIRECT(\"c\" & (VLOOKUP(Rebalance!$D$35,$F$2:$G$48,2,FALSE)+ROW()-2))=Rebalance!$D$35,INDIRECT(\"a\" & (VLOOKUP(Rebalance!$D$35,$F$2:$G$48,2,FALSE)+ROW()-2)),\"\")","v":{"$error":"#N/A"}},{"$f":"IF(INDIRECT(\"c\" & (VLOOKUP(Rebalance!$D$36,$F$2:$G$48,2,FALSE)+ROW()-2))=Rebalance!$D$36,INDIRECT(\"a\" & (VLOOKUP(Rebalance!$D$36,$F$2:$G$48,2,FALSE)+ROW()-2)),\"\")","v":{"$error":"#N/A"}},{"$f":"IF(INDIRECT(\"c\" & (VLOOKUP(Rebalance!$D$37,$F$2:$G$48,2,FALSE)+ROW()-2))=Rebalance!$D$37,INDIRECT(\"a\" & (VLOOKUP(Rebalance!$D$37,$F$2:$G$48,2,FALSE)+ROW()-2)),\"\")","v":{"$error":"#N/A"}},{"$f":"IF(INDIRECT(\"c\" & (VLOOKUP(Rebalance!$D$38,$F$2:$G$48,2,FALSE)+ROW()-2))=Rebalance!$D$38,INDIRECT(\"a\" & (VLOOKUP(Rebalance!$D$38,$F$2:$G$48,2,FALSE)+ROW()-2)),\"\")","v":{"$error":"#N/A"}},{"$f":"IF(INDIRECT(\"c\" & (VLOOKUP(Rebalance!$D$39,$F$2:$G$48,2,FALSE)+ROW()-2))=Rebalance!$D$39,INDIRECT(\"a\" & (VLOOKUP(Rebalance!$D$39,$F$2:$G$48,2,FALSE)+ROW()-2)),\"\")","v":{"$error":"#N/A"}},{"$f":"IF(INDIRECT(\"c\" & (VLOOKUP(Rebalance!$D$40,$F$2:$G$48,2,FALSE)+ROW()-2))=Rebalance!$D$40,INDIRECT(\"a\" & (VLOOKUP(Rebalance!$D$40,$F$2:$G$48,2,FALSE)+ROW()-2)),\"\")","v":{"$error":"#N/A"}},{"$f":"IF(INDIRECT(\"c\" & (VLOOKUP(Rebalance!$D$52,$F$2:$G$48,2,FALSE)+ROW()-2))=Rebalance!$D$52,INDIRECT(\"a\" & (VLOOKUP(Rebalance!$D$52,$F$2:$G$48,2,FALSE)+ROW()-2)),\"\")","v":{"$error":"#N/A"}},{"$f":"IF(INDIRECT(\"c\" & (VLOOKUP(Rebalance!$D$53,$F$2:$G$48,2,FALSE)+ROW()-2))=Rebalance!$D$53,INDIRECT(\"a\" & (VLOOKUP(Rebalance!$D$53,$F$2:$G$48,2,FALSE)+ROW()-2)),\"\")","v":{"$error":"#N/A"}},{"$f":"IF(INDIRECT(\"c\" & (VLOOKUP(Rebalance!$D$54,$F$2:$G$48,2,FALSE)+ROW()-2))=Rebalance!$D$54,INDIRECT(\"a\" & (VLOOKUP(Rebalance!$D$54,$F$2:$G$48,2,FALSE)+ROW()-2)),\"\")","v":{"$error":"#N/A"}},{"$f":"IF(INDIRECT(\"c\" & (VLOOKUP(Rebalance!$D$55,$F$2:$G$48,2,FALSE)+ROW()-2))=Rebalance!$D$55,INDIRECT(\"a\" & (VLOOKUP(Rebalance!$D$55,$F$2:$G$48,2,FALSE)+ROW()-2)),\"\")","v":{"$error":"#N/A"}},{"$f":"IF(INDIRECT(\"c\" & (VLOOKUP(Rebalance!$D$56,$F$2:$G$48,2,FALSE)+ROW()-2))=Rebalance!$D$56,INDIRECT(\"a\" & (VLOOKUP(Rebalance!$D$56,$F$2:$G$48,2,FALSE)+ROW()-2)),\"\")","v":{"$error":"#N/A"}},{"$f":"IF(INDIRECT(\"c\" & (VLOOKUP(Rebalance!$D$57,$F$2:$G$48,2,FALSE)+ROW()-2))=Rebalance!$D$57,INDIRECT(\"a\" & (VLOOKUP(Rebalance!$D$57,$F$2:$G$48,2,FALSE)+ROW()-2)),\"\")","v":{"$error":"#N/A"}},{"$f":"IF(INDIRECT(\"c\" & (VLOOKUP(Rebalance!$D$58,$F$2:$G$48,2,FALSE)+ROW()-2))=Rebalance!$D$58,INDIRECT(\"a\" & (VLOOKUP(Rebalance!$D$58,$F$2:$G$48,2,FALSE)+ROW()-2)),\"\")","v":{"$error":"#N/A"}},{"$f":"IF(INDIRECT(\"c\" & (VLOOKUP(Rebalance!$D$59,$F$2:$G$48,2,FALSE)+ROW()-2))=Rebalance!$D$59,INDIRECT(\"a\" & (VLOOKUP(Rebalance!$D$59,$F$2:$G$48,2,FALSE)+ROW()-2)),\"\")","v":{"$error":"#N/A"}},{"$f":"IF(INDIRECT(\"c\" & (VLOOKUP(Rebalance!$D$60,$F$2:$G$48,2,FALSE)+ROW()-2))=Rebalance!$D$60,INDIRECT(\"a\" & (VLOOKUP(Rebalance!$D$60,$F$2:$G$48,2,FALSE)+ROW()-2)),\"\")","v":{"$error":"#N/A"}},{"$f":"IF(INDIRECT(\"c\" & (VLOOKUP(Rebalance!$D$61,$F$2:$G$48,2,FALSE)+ROW()-2))=Rebalance!$D$61,INDIRECT(\"a\" & (VLOOKUP(Rebalance!$D$61,$F$2:$G$48,2,FALSE)+ROW()-2)),\"\")","v":{"$error":"#N/A"}},{"$f":"IF(INDIRECT(\"c\" & (VLOOKUP(Rebalance!$D$62,$F$2:$G$48,2,FALSE)+ROW()-2))=Rebalance!$D$62,INDIRECT(\"a\" & (VLOOKUP(Rebalance!$D$62,$F$2:$G$48,2,FALSE)+ROW()-2)),\"\")","v":{"$error":"#N/A"}},{"$f":"IF(INDIRECT(\"c\" & (VLOOKUP(Rebalance!$D$63,$F$2:$G$48,2,FALSE)+ROW()-2))=Rebalance!$D$63,INDIRECT(\"a\" & (VLOOKUP(Rebalance!$D$63,$F$2:$G$48,2,FALSE)+ROW()-2)),\"\")","v":{"$error":"#N/A"}},{"$f":"IF(INDIRECT(\"c\" & (VLOOKUP(Rebalance!$D$64,$F$2:$G$48,2,FALSE)+ROW()-2))=Rebalance!$D$64,INDIRECT(\"a\" & (VLOOKUP(Rebalance!$D$64,$F$2:$G$48,2,FALSE)+ROW()-2)),\"\")","v":{"$error":"#N/A"}},{"$f":"IF(INDIRECT(\"c\" & (VLOOKUP(Rebalance!$D$65,$F$2:$G$48,2,FALSE)+ROW()-2))=Rebalance!$D$65,INDIRECT(\"a\" & (VLOOKUP(Rebalance!$D$65,$F$2:$G$48,2,FALSE)+ROW()-2)),\"\")","v":{"$error":"#N/A"}},{"$f":"IF(INDIRECT(\"c\" & (VLOOKUP(Rebalance!$D$66,$F$2:$G$48,2,FALSE)+ROW()-2))=Rebalance!$D$66,INDIRECT(\"a\" & (VLOOKUP(Rebalance!$D$66,$F$2:$G$48,2,FALSE)+ROW()-2)),\"\")","v":{"$error":"#N/A"}}]
["Denker SCI Global Equity Feeder Fund B2","SGBB2","Sanlam Collective Investments",{"$f":"ROW()","v":511},null,null,{"$f":"VLOOKUP(F511,$C$2:$D$599,2,FALSE)","v":{"$error":"#N/A"}},{"$f":"IF(INDIRECT(\"c\" & (VLOOKUP(Rebalance!$D$26,$F$2:$G$48,2,FALSE)+ROW()-2))=Rebalance!$D$26,INDIRECT(\"a\" & (VLOOKUP(Rebalance!$D$26,$F$2:$G$48,2,FALSE)+ROW()-2)),\"\")","v":{"$error":"#N/A"}},{"$f":"IF(INDIRECT(\"c\" & (VLOOKUP(Rebalance!$D$27,$F$2:$G$48,2,FALSE)+ROW()-2))=Rebalance!$D$27,INDIRECT(\"a\" & (VLOOKUP(Rebalance!$D$27,$F$2:$G$48,2,FALSE)+ROW()-2)),\"\")","v":{"$error":"#N/A"}},{"$f":"IF(INDIRECT(\"c\" & (VLOOKUP(Rebalance!$D$28,$F$2:$G$48,2,FALSE)+ROW()-2))=Rebalance!$D$28,INDIRECT(\"a\" & (VLOOKUP(Rebalance!$D$28,$F$2:$G$48,2,FALSE)+ROW()-2)),\"\")","v":{"$error":"#N/A"}},{"$f":"IF(INDIRECT(\"c\" & (VLOOKUP(Rebalance!$D$29,$F$2:$G$48,2,FALSE)+ROW()-2))=Rebalance!$D$29,INDIRECT(\"a\" & (VLOOKUP(Rebalance!$D$29,$F$2:$G$48,2,FALSE)+ROW()-2)),\"\")","v":{"$error":"#N/A"}},{"$f":"IF(INDIRECT(\"c\" & (VLOOKUP(Rebalance!$D$30,$F$2:$G$48,2,FALSE)+ROW()-2))=Rebalance!$D$30,INDIRECT(\"a\" & (VLOOKUP(Rebalance!$D$30,$F$2:$G$48,2,FALSE)+ROW()-2)),\"\")","v":{"$error":"#N/A"}},{"$f":"IF(INDIRECT(\"c\" & (VLOOKUP(Rebalance!$D$31,$F$2:$G$48,2,FALSE)+ROW()-2))=Rebalance!$D$31,INDIRECT(\"a\" & (VLOOKUP(Rebalance!$D$31,$F$2:$G$48,2,FALSE)+ROW()-2)),\"\")","v":{"$error":"#N/A"}},{"$f":"IF(INDIRECT(\"c\" & (VLOOKUP(Rebalance!$D$32,$F$2:$G$48,2,FALSE)+ROW()-2))=Rebalance!$D$32,INDIRECT(\"a\" & (VLOOKUP(Rebalance!$D$32,$F$2:$G$48,2,FALSE)+ROW()-2)),\"\")","v":{"$error":"#N/A"}},{"$f":"IF(INDIRECT(\"c\" & (VLOOKUP(Rebalance!$D$33,$F$2:$G$48,2,FALSE)+ROW()-2))=Rebalance!$D$33,INDIRECT(\"a\" & (VLOOKUP(Rebalance!$D$33,$F$2:$G$48,2,FALSE)+ROW()-2)),\"\")","v":{"$error":"#N/A"}},{"$f":"IF(INDIRECT(\"c\" & (VLOOKUP(Rebalance!$D$34,$F$2:$G$48,2,FALSE)+ROW()-2))=Rebalance!$D$34,INDIRECT(\"a\" & (VLOOKUP(Rebalance!$D$34,$F$2:$G$48,2,FALSE)+ROW()-2)),\"\")","v":{"$error":"#N/A"}},{"$f":"IF(INDIRECT(\"c\" & (VLOOKUP(Rebalance!$D$35,$F$2:$G$48,2,FALSE)+ROW()-2))=Rebalance!$D$35,INDIRECT(\"a\" & (VLOOKUP(Rebalance!$D$35,$F$2:$G$48,2,FALSE)+ROW()-2)),\"\")","v":{"$error":"#N/A"}},{"$f":"IF(INDIRECT(\"c\" & (VLOOKUP(Rebalance!$D$36,$F$2:$G$48,2,FALSE)+ROW()-2))=Rebalance!$D$36,INDIRECT(\"a\" & (VLOOKUP(Rebalance!$D$36,$F$2:$G$48,2,FALSE)+ROW()-2)),\"\")","v":{"$error":"#N/A"}},{"$f":"IF(INDIRECT(\"c\" & (VLOOKUP(Rebalance!$D$37,$F$2:$G$48,2,FALSE)+ROW()-2))=Rebalance!$D$37,INDIRECT(\"a\" & (VLOOKUP(Rebalance!$D$37,$F$2:$G$48,2,FALSE)+ROW()-2)),\"\")","v":{"$error":"#N/A"}},{"$f":"IF(INDIRECT(\"c\" & (VLOOKUP(Rebalance!$D$38,$F$2:$G$48,2,FALSE)+ROW()-2))=Rebalance!$D$38,INDIRECT(\"a\" & (VLOOKUP(Rebalance!$D$38,$F$2:$G$48,2,FALSE)+ROW()-2)),\"\")","v":{"$error":"#N/A"}},{"$f":"IF(INDIRECT(\"c\" & (VLOOKUP(Rebalance!$D$39,$F$2:$G$48,2,FALSE)+ROW()-2))=Rebalance!$D$39,INDIRECT(\"a\" & (VLOOKUP(Rebalance!$D$39,$F$2:$G$48,2,FALSE)+ROW()-2)),\"\")","v":{"$error":"#N/A"}},{"$f":"IF(INDIRECT(\"c\" & (VLOOKUP(Rebalance!$D$40,$F$2:$G$48,2,FALSE)+ROW()-2))=Rebalance!$D$40,INDIRECT(\"a\" & (VLOOKUP(Rebalance!$D$40,$F$2:$G$48,2,FALSE)+ROW()-2)),\"\")","v":{"$error":"#N/A"}},{"$f":"IF(INDIRECT(\"c\" & (VLOOKUP(Rebalance!$D$52,$F$2:$G$48,2,FALSE)+ROW()-2))=Rebalance!$D$52,INDIRECT(\"a\" & (VLOOKUP(Rebalance!$D$52,$F$2:$G$48,2,FALSE)+ROW()-2)),\"\")","v":{"$error":"#N/A"}},{"$f":"IF(INDIRECT(\"c\" & (VLOOKUP(Rebalance!$D$53,$F$2:$G$48,2,FALSE)+ROW()-2))=Rebalance!$D$53,INDIRECT(\"a\" & (VLOOKUP(Rebalance!$D$53,$F$2:$G$48,2,FALSE)+ROW()-2)),\"\")","v":{"$error":"#N/A"}},{"$f":"IF(INDIRECT(\"c\" & (VLOOKUP(Rebalance!$D$54,$F$2:$G$48,2,FALSE)+ROW()-2))=Rebalance!$D$54,INDIRECT(\"a\" & (VLOOKUP(Rebalance!$D$54,$F$2:$G$48,2,FALSE)+ROW()-2)),\"\")","v":{"$error":"#N/A"}},{"$f":"IF(INDIRECT(\"c\" & (VLOOKUP(Rebalance!$D$55,$F$2:$G$48,2,FALSE)+ROW()-2))=Rebalance!$D$55,INDIRECT(\"a\" & (VLOOKUP(Rebalance!$D$55,$F$2:$G$48,2,FALSE)+ROW()-2)),\"\")","v":{"$error":"#N/A"}},{"$f":"IF(INDIRECT(\"c\" & (VLOOKUP(Rebalance!$D$56,$F$2:$G$48,2,FALSE)+ROW()-2))=Rebalance!$D$56,INDIRECT(\"a\" & (VLOOKUP(Rebalance!$D$56,$F$2:$G$48,2,FALSE)+ROW()-2)),\"\")","v":{"$error":"#N/A"}},{"$f":"IF(INDIRECT(\"c\" & (VLOOKUP(Rebalance!$D$57,$F$2:$G$48,2,FALSE)+ROW()-2))=Rebalance!$D$57,INDIRECT(\"a\" & (VLOOKUP(Rebalance!$D$57,$F$2:$G$48,2,FALSE)+ROW()-2)),\"\")","v":{"$error":"#N/A"}},{"$f":"IF(INDIRECT(\"c\" & (VLOOKUP(Rebalance!$D$58,$F$2:$G$48,2,FALSE)+ROW()-2))=Rebalance!$D$58,INDIRECT(\"a\" & (VLOOKUP(Rebalance!$D$58,$F$2:$G$48,2,FALSE)+ROW()-2)),\"\")","v":{"$error":"#N/A"}},{"$f":"IF(INDIRECT(\"c\" & (VLOOKUP(Rebalance!$D$59,$F$2:$G$48,2,FALSE)+ROW()-2))=Rebalance!$D$59,INDIRECT(\"a\" & (VLOOKUP(Rebalance!$D$59,$F$2:$G$48,2,FALSE)+ROW()-2)),\"\")","v":{"$error":"#N/A"}},{"$f":"IF(INDIRECT(\"c\" & (VLOOKUP(Rebalance!$D$60,$F$2:$G$48,2,FALSE)+ROW()-2))=Rebalance!$D$60,INDIRECT(\"a\" & (VLOOKUP(Rebalance!$D$60,$F$2:$G$48,2,FALSE)+ROW()-2)),\"\")","v":{"$error":"#N/A"}},{"$f":"IF(INDIRECT(\"c\" & (VLOOKUP(Rebalance!$D$61,$F$2:$G$48,2,FALSE)+ROW()-2))=Rebalance!$D$61,INDIRECT(\"a\" & (VLOOKUP(Rebalance!$D$61,$F$2:$G$48,2,FALSE)+ROW()-2)),\"\")","v":{"$error":"#N/A"}},{"$f":"IF(INDIRECT(\"c\" & (VLOOKUP(Rebalance!$D$62,$F$2:$G$48,2,FALSE)+ROW()-2))=Rebalance!$D$62,INDIRECT(\"a\" & (VLOOKUP(Rebalance!$D$62,$F$2:$G$48,2,FALSE)+ROW()-2)),\"\")","v":{"$error":"#N/A"}},{"$f":"IF(INDIRECT(\"c\" & (VLOOKUP(Rebalance!$D$63,$F$2:$G$48,2,FALSE)+ROW()-2))=Rebalance!$D$63,INDIRECT(\"a\" & (VLOOKUP(Rebalance!$D$63,$F$2:$G$48,2,FALSE)+ROW()-2)),\"\")","v":{"$error":"#N/A"}},{"$f":"IF(INDIRECT(\"c\" & (VLOOKUP(Rebalance!$D$64,$F$2:$G$48,2,FALSE)+ROW()-2))=Rebalance!$D$64,INDIRECT(\"a\" & (VLOOKUP(Rebalance!$D$64,$F$2:$G$48,2,FALSE)+ROW()-2)),\"\")","v":{"$error":"#N/A"}},{"$f":"IF(INDIRECT(\"c\" & (VLOOKUP(Rebalance!$D$65,$F$2:$G$48,2,FALSE)+ROW()-2))=Rebalance!$D$65,INDIRECT(\"a\" & (VLOOKUP(Rebalance!$D$65,$F$2:$G$48,2,FALSE)+ROW()-2)),\"\")","v":{"$error":"#N/A"}},{"$f":"IF(INDIRECT(\"c\" & (VLOOKUP(Rebalance!$D$66,$F$2:$G$48,2,FALSE)+ROW()-2))=Rebalance!$D$66,INDIRECT(\"a\" & (VLOOKUP(Rebalance!$D$66,$F$2:$G$48,2,FALSE)+ROW()-2)),\"\")","v":{"$error":"#N/A"}}]
["Element Earth Equity SCI Fund C","FEEC","Sanlam Collective Investments",{"$f":"ROW()","v":512},null,null,{"$f":"VLOOKUP(F512,$C$2:$D$599,2,FALSE)","v":{"$error":"#N/A"}},{"$f":"IF(INDIRECT(\"c\" & (VLOOKUP(Rebalance!$D$26,$F$2:$G$48,2,FALSE)+ROW()-2))=Rebalance!$D$26,INDIRECT(\"a\" & (VLOOKUP(Rebalance!$D$26,$F$2:$G$48,2,FALSE)+ROW()-2)),\"\")","v":{"$error":"#N/A"}},{"$f":"IF(INDIRECT(\"c\" & (VLOOKUP(Rebalance!$D$27,$F$2:$G$48,2,FALSE)+ROW()-2))=Rebalance!$D$27,INDIRECT(\"a\" & (VLOOKUP(Rebalance!$D$27,$F$2:$G$48,2,FALSE)+ROW()-2)),\"\")","v":{"$error":"#N/A"}},{"$f":"IF(INDIRECT(\"c\" & (VLOOKUP(Rebalance!$D$28,$F$2:$G$48,2,FALSE)+ROW()-2))=Rebalance!$D$28,INDIRECT(\"a\" & (VLOOKUP(Rebalance!$D$28,$F$2:$G$48,2,FALSE)+ROW()-2)),\"\")","v":{"$error":"#N/A"}},{"$f":"IF(INDIRECT(\"c\" & (VLOOKUP(Rebalance!$D$29,$F$2:$G$48,2,FALSE)+ROW()-2))=Rebalance!$D$29,INDIRECT(\"a\" & (VLOOKUP(Rebalance!$D$29,$F$2:$G$48,2,FALSE)+ROW()-2)),\"\")","v":{"$error":"#N/A"}},{"$f":"IF(INDIRECT(\"c\" & (VLOOKUP(Rebalance!$D$30,$F$2:$G$48,2,FALSE)+ROW()-2))=Rebalance!$D$30,INDIRECT(\"a\" & (VLOOKUP(Rebalance!$D$30,$F$2:$G$48,2,FALSE)+ROW()-2)),\"\")","v":{"$error":"#N/A"}},{"$f":"IF(INDIRECT(\"c\" & (VLOOKUP(Rebalance!$D$31,$F$2:$G$48,2,FALSE)+ROW()-2))=Rebalance!$D$31,INDIRECT(\"a\" & (VLOOKUP(Rebalance!$D$31,$F$2:$G$48,2,FALSE)+ROW()-2)),\"\")","v":{"$error":"#N/A"}},{"$f":"IF(INDIRECT(\"c\" & (VLOOKUP(Rebalance!$D$32,$F$2:$G$48,2,FALSE)+ROW()-2))=Rebalance!$D$32,INDIRECT(\"a\" & (VLOOKUP(Rebalance!$D$32,$F$2:$G$48,2,FALSE)+ROW()-2)),\"\")","v":{"$error":"#N/A"}},{"$f":"IF(INDIRECT(\"c\" & (VLOOKUP(Rebalance!$D$33,$F$2:$G$48,2,FALSE)+ROW()-2))=Rebalance!$D$33,INDIRECT(\"a\" & (VLOOKUP(Rebalance!$D$33,$F$2:$G$48,2,FALSE)+ROW()-2)),\"\")","v":{"$error":"#N/A"}},{"$f":"IF(INDIRECT(\"c\" & (VLOOKUP(Rebalance!$D$34,$F$2:$G$48,2,FALSE)+ROW()-2))=Rebalance!$D$34,INDIRECT(\"a\" & (VLOOKUP(Rebalance!$D$34,$F$2:$G$48,2,FALSE)+ROW()-2)),\"\")","v":{"$error":"#N/A"}},{"$f":"IF(INDIRECT(\"c\" & (VLOOKUP(Rebalance!$D$35,$F$2:$G$48,2,FALSE)+ROW()-2))=Rebalance!$D$35,INDIRECT(\"a\" & (VLOOKUP(Rebalance!$D$35,$F$2:$G$48,2,FALSE)+ROW()-2)),\"\")","v":{"$error":"#N/A"}},{"$f":"IF(INDIRECT(\"c\" & (VLOOKUP(Rebalance!$D$36,$F$2:$G$48,2,FALSE)+ROW()-2))=Rebalance!$D$36,INDIRECT(\"a\" & (VLOOKUP(Rebalance!$D$36,$F$2:$G$48,2,FALSE)+ROW()-2)),\"\")","v":{"$error":"#N/A"}},{"$f":"IF(INDIRECT(\"c\" & (VLOOKUP(Rebalance!$D$37,$F$2:$G$48,2,FALSE)+ROW()-2))=Rebalance!$D$37,INDIRECT(\"a\" & (VLOOKUP(Rebalance!$D$37,$F$2:$G$48,2,FALSE)+ROW()-2)),\"\")","v":{"$error":"#N/A"}},{"$f":"IF(INDIRECT(\"c\" & (VLOOKUP(Rebalance!$D$38,$F$2:$G$48,2,FALSE)+ROW()-2))=Rebalance!$D$38,INDIRECT(\"a\" & (VLOOKUP(Rebalance!$D$38,$F$2:$G$48,2,FALSE)+ROW()-2)),\"\")","v":{"$error":"#N/A"}},{"$f":"IF(INDIRECT(\"c\" & (VLOOKUP(Rebalance!$D$39,$F$2:$G$48,2,FALSE)+ROW()-2))=Rebalance!$D$39,INDIRECT(\"a\" & (VLOOKUP(Rebalance!$D$39,$F$2:$G$48,2,FALSE)+ROW()-2)),\"\")","v":{"$error":"#N/A"}},{"$f":"IF(INDIRECT(\"c\" & (VLOOKUP(Rebalance!$D$40,$F$2:$G$48,2,FALSE)+ROW()-2))=Rebalance!$D$40,INDIRECT(\"a\" & (VLOOKUP(Rebalance!$D$40,$F$2:$G$48,2,FALSE)+ROW()-2)),\"\")","v":{"$error":"#N/A"}},{"$f":"IF(INDIRECT(\"c\" & (VLOOKUP(Rebalance!$D$52,$F$2:$G$48,2,FALSE)+ROW()-2))=Rebalance!$D$52,INDIRECT(\"a\" & (VLOOKUP(Rebalance!$D$52,$F$2:$G$48,2,FALSE)+ROW()-2)),\"\")","v":{"$error":"#N/A"}},{"$f":"IF(INDIRECT(\"c\" & (VLOOKUP(Rebalance!$D$53,$F$2:$G$48,2,FALSE)+ROW()-2))=Rebalance!$D$53,INDIRECT(\"a\" & (VLOOKUP(Rebalance!$D$53,$F$2:$G$48,2,FALSE)+ROW()-2)),\"\")","v":{"$error":"#N/A"}},{"$f":"IF(INDIRECT(\"c\" & (VLOOKUP(Rebalance!$D$54,$F$2:$G$48,2,FALSE)+ROW()-2))=Rebalance!$D$54,INDIRECT(\"a\" & (VLOOKUP(Rebalance!$D$54,$F$2:$G$48,2,FALSE)+ROW()-2)),\"\")","v":{"$error":"#N/A"}},{"$f":"IF(INDIRECT(\"c\" & (VLOOKUP(Rebalance!$D$55,$F$2:$G$48,2,FALSE)+ROW()-2))=Rebalance!$D$55,INDIRECT(\"a\" & (VLOOKUP(Rebalance!$D$55,$F$2:$G$48,2,FALSE)+ROW()-2)),\"\")","v":{"$error":"#N/A"}},{"$f":"IF(INDIRECT(\"c\" & (VLOOKUP(Rebalance!$D$56,$F$2:$G$48,2,FALSE)+ROW()-2))=Rebalance!$D$56,INDIRECT(\"a\" & (VLOOKUP(Rebalance!$D$56,$F$2:$G$48,2,FALSE)+ROW()-2)),\"\")","v":{"$error":"#N/A"}},{"$f":"IF(INDIRECT(\"c\" & (VLOOKUP(Rebalance!$D$57,$F$2:$G$48,2,FALSE)+ROW()-2))=Rebalance!$D$57,INDIRECT(\"a\" & (VLOOKUP(Rebalance!$D$57,$F$2:$G$48,2,FALSE)+ROW()-2)),\"\")","v":{"$error":"#N/A"}},{"$f":"IF(INDIRECT(\"c\" & (VLOOKUP(Rebalance!$D$58,$F$2:$G$48,2,FALSE)+ROW()-2))=Rebalance!$D$58,INDIRECT(\"a\" & (VLOOKUP(Rebalance!$D$58,$F$2:$G$48,2,FALSE)+ROW()-2)),\"\")","v":{"$error":"#N/A"}},{"$f":"IF(INDIRECT(\"c\" & (VLOOKUP(Rebalance!$D$59,$F$2:$G$48,2,FALSE)+ROW()-2))=Rebalance!$D$59,INDIRECT(\"a\" & (VLOOKUP(Rebalance!$D$59,$F$2:$G$48,2,FALSE)+ROW()-2)),\"\")","v":{"$error":"#N/A"}},{"$f":"IF(INDIRECT(\"c\" & (VLOOKUP(Rebalance!$D$60,$F$2:$G$48,2,FALSE)+ROW()-2))=Rebalance!$D$60,INDIRECT(\"a\" & (VLOOKUP(Rebalance!$D$60,$F$2:$G$48,2,FALSE)+ROW()-2)),\"\")","v":{"$error":"#N/A"}},{"$f":"IF(INDIRECT(\"c\" & (VLOOKUP(Rebalance!$D$61,$F$2:$G$48,2,FALSE)+ROW()-2))=Rebalance!$D$61,INDIRECT(\"a\" & (VLOOKUP(Rebalance!$D$61,$F$2:$G$48,2,FALSE)+ROW()-2)),\"\")","v":{"$error":"#N/A"}},{"$f":"IF(INDIRECT(\"c\" & (VLOOKUP(Rebalance!$D$62,$F$2:$G$48,2,FALSE)+ROW()-2))=Rebalance!$D$62,INDIRECT(\"a\" & (VLOOKUP(Rebalance!$D$62,$F$2:$G$48,2,FALSE)+ROW()-2)),\"\")","v":{"$error":"#N/A"}},{"$f":"IF(INDIRECT(\"c\" & (VLOOKUP(Rebalance!$D$63,$F$2:$G$48,2,FALSE)+ROW()-2))=Rebalance!$D$63,INDIRECT(\"a\" & (VLOOKUP(Rebalance!$D$63,$F$2:$G$48,2,FALSE)+ROW()-2)),\"\")","v":{"$error":"#N/A"}},{"$f":"IF(INDIRECT(\"c\" & (VLOOKUP(Rebalance!$D$64,$F$2:$G$48,2,FALSE)+ROW()-2))=Rebalance!$D$64,INDIRECT(\"a\" & (VLOOKUP(Rebalance!$D$64,$F$2:$G$48,2,FALSE)+ROW()-2)),\"\")","v":{"$error":"#N/A"}},{"$f":"IF(INDIRECT(\"c\" & (VLOOKUP(Rebalance!$D$65,$F$2:$G$48,2,FALSE)+ROW()-2))=Rebalance!$D$65,INDIRECT(\"a\" & (VLOOKUP(Rebalance!$D$65,$F$2:$G$48,2,FALSE)+ROW()-2)),\"\")","v":{"$error":"#N/A"}},{"$f":"IF(INDIRECT(\"c\" & (VLOOKUP(Rebalance!$D$66,$F$2:$G$48,2,FALSE)+ROW()-2))=Rebalance!$D$66,INDIRECT(\"a\" & (VLOOKUP(Rebalance!$D$66,$F$2:$G$48,2,FALSE)+ROW()-2)),\"\")","v":{"$error":"#N/A"}}]
["Element Flexible Fund SCI Fund C","FFFC","Sanlam Collective Investments",{"$f":"ROW()","v":513},null,null,{"$f":"VLOOKUP(F513,$C$2:$D$599,2,FALSE)","v":{"$error":"#N/A"}},{"$f":"IF(INDIRECT(\"c\" & (VLOOKUP(Rebalance!$D$26,$F$2:$G$48,2,FALSE)+ROW()-2))=Rebalance!$D$26,INDIRECT(\"a\" & (VLOOKUP(Rebalance!$D$26,$F$2:$G$48,2,FALSE)+ROW()-2)),\"\")","v":{"$error":"#N/A"}},{"$f":"IF(INDIRECT(\"c\" & (VLOOKUP(Rebalance!$D$27,$F$2:$G$48,2,FALSE)+ROW()-2))=Rebalance!$D$27,INDIRECT(\"a\" & (VLOOKUP(Rebalance!$D$27,$F$2:$G$48,2,FALSE)+ROW()-2)),\"\")","v":{"$error":"#N/A"}},{"$f":"IF(INDIRECT(\"c\" & (VLOOKUP(Rebalance!$D$28,$F$2:$G$48,2,FALSE)+ROW()-2))=Rebalance!$D$28,INDIRECT(\"a\" & (VLOOKUP(Rebalance!$D$28,$F$2:$G$48,2,FALSE)+ROW()-2)),\"\")","v":{"$error":"#N/A"}},{"$f":"IF(INDIRECT(\"c\" & (VLOOKUP(Rebalance!$D$29,$F$2:$G$48,2,FALSE)+ROW()-2))=Rebalance!$D$29,INDIRECT(\"a\" & (VLOOKUP(Rebalance!$D$29,$F$2:$G$48,2,FALSE)+ROW()-2)),\"\")","v":{"$error":"#N/A"}},{"$f":"IF(INDIRECT(\"c\" & (VLOOKUP(Rebalance!$D$30,$F$2:$G$48,2,FALSE)+ROW()-2))=Rebalance!$D$30,INDIRECT(\"a\" & (VLOOKUP(Rebalance!$D$30,$F$2:$G$48,2,FALSE)+ROW()-2)),\"\")","v":{"$error":"#N/A"}},{"$f":"IF(INDIRECT(\"c\" & (VLOOKUP(Rebalance!$D$31,$F$2:$G$48,2,FALSE)+ROW()-2))=Rebalance!$D$31,INDIRECT(\"a\" & (VLOOKUP(Rebalance!$D$31,$F$2:$G$48,2,FALSE)+ROW()-2)),\"\")","v":{"$error":"#N/A"}},{"$f":"IF(INDIRECT(\"c\" & (VLOOKUP(Rebalance!$D$32,$F$2:$G$48,2,FALSE)+ROW()-2))=Rebalance!$D$32,INDIRECT(\"a\" & (VLOOKUP(Rebalance!$D$32,$F$2:$G$48,2,FALSE)+ROW()-2)),\"\")","v":{"$error":"#N/A"}},{"$f":"IF(INDIRECT(\"c\" & (VLOOKUP(Rebalance!$D$33,$F$2:$G$48,2,FALSE)+ROW()-2))=Rebalance!$D$33,INDIRECT(\"a\" & (VLOOKUP(Rebalance!$D$33,$F$2:$G$48,2,FALSE)+ROW()-2)),\"\")","v":{"$error":"#N/A"}},{"$f":"IF(INDIRECT(\"c\" & (VLOOKUP(Rebalance!$D$34,$F$2:$G$48,2,FALSE)+ROW()-2))=Rebalance!$D$34,INDIRECT(\"a\" & (VLOOKUP(Rebalance!$D$34,$F$2:$G$48,2,FALSE)+ROW()-2)),\"\")","v":{"$error":"#N/A"}},{"$f":"IF(INDIRECT(\"c\" & (VLOOKUP(Rebalance!$D$35,$F$2:$G$48,2,FALSE)+ROW()-2))=Rebalance!$D$35,INDIRECT(\"a\" & (VLOOKUP(Rebalance!$D$35,$F$2:$G$48,2,FALSE)+ROW()-2)),\"\")","v":{"$error":"#N/A"}},{"$f":"IF(INDIRECT(\"c\" & (VLOOKUP(Rebalance!$D$36,$F$2:$G$48,2,FALSE)+ROW()-2))=Rebalance!$D$36,INDIRECT(\"a\" & (VLOOKUP(Rebalance!$D$36,$F$2:$G$48,2,FALSE)+ROW()-2)),\"\")","v":{"$error":"#N/A"}},{"$f":"IF(INDIRECT(\"c\" & (VLOOKUP(Rebalance!$D$37,$F$2:$G$48,2,FALSE)+ROW()-2))=Rebalance!$D$37,INDIRECT(\"a\" & (VLOOKUP(Rebalance!$D$37,$F$2:$G$48,2,FALSE)+ROW()-2)),\"\")","v":{"$error":"#N/A"}},{"$f":"IF(INDIRECT(\"c\" & (VLOOKUP(Rebalance!$D$38,$F$2:$G$48,2,FALSE)+ROW()-2))=Rebalance!$D$38,INDIRECT(\"a\" & (VLOOKUP(Rebalance!$D$38,$F$2:$G$48,2,FALSE)+ROW()-2)),\"\")","v":{"$error":"#N/A"}},{"$f":"IF(INDIRECT(\"c\" & (VLOOKUP(Rebalance!$D$39,$F$2:$G$48,2,FALSE)+ROW()-2))=Rebalance!$D$39,INDIRECT(\"a\" & (VLOOKUP(Rebalance!$D$39,$F$2:$G$48,2,FALSE)+ROW()-2)),\"\")","v":{"$error":"#N/A"}},{"$f":"IF(INDIRECT(\"c\" & (VLOOKUP(Rebalance!$D$40,$F$2:$G$48,2,FALSE)+ROW()-2))=Rebalance!$D$40,INDIRECT(\"a\" & (VLOOKUP(Rebalance!$D$40,$F$2:$G$48,2,FALSE)+ROW()-2)),\"\")","v":{"$error":"#N/A"}},{"$f":"IF(INDIRECT(\"c\" & (VLOOKUP(Rebalance!$D$52,$F$2:$G$48,2,FALSE)+ROW()-2))=Rebalance!$D$52,INDIRECT(\"a\" & (VLOOKUP(Rebalance!$D$52,$F$2:$G$48,2,FALSE)+ROW()-2)),\"\")","v":{"$error":"#N/A"}},{"$f":"IF(INDIRECT(\"c\" & (VLOOKUP(Rebalance!$D$53,$F$2:$G$48,2,FALSE)+ROW()-2))=Rebalance!$D$53,INDIRECT(\"a\" & (VLOOKUP(Rebalance!$D$53,$F$2:$G$48,2,FALSE)+ROW()-2)),\"\")","v":{"$error":"#N/A"}},{"$f":"IF(INDIRECT(\"c\" & (VLOOKUP(Rebalance!$D$54,$F$2:$G$48,2,FALSE)+ROW()-2))=Rebalance!$D$54,INDIRECT(\"a\" & (VLOOKUP(Rebalance!$D$54,$F$2:$G$48,2,FALSE)+ROW()-2)),\"\")","v":{"$error":"#N/A"}},{"$f":"IF(INDIRECT(\"c\" & (VLOOKUP(Rebalance!$D$55,$F$2:$G$48,2,FALSE)+ROW()-2))=Rebalance!$D$55,INDIRECT(\"a\" & (VLOOKUP(Rebalance!$D$55,$F$2:$G$48,2,FALSE)+ROW()-2)),\"\")","v":{"$error":"#N/A"}},{"$f":"IF(INDIRECT(\"c\" & (VLOOKUP(Rebalance!$D$56,$F$2:$G$48,2,FALSE)+ROW()-2))=Rebalance!$D$56,INDIRECT(\"a\" & (VLOOKUP(Rebalance!$D$56,$F$2:$G$48,2,FALSE)+ROW()-2)),\"\")","v":{"$error":"#N/A"}},{"$f":"IF(INDIRECT(\"c\" & (VLOOKUP(Rebalance!$D$57,$F$2:$G$48,2,FALSE)+ROW()-2))=Rebalance!$D$57,INDIRECT(\"a\" & (VLOOKUP(Rebalance!$D$57,$F$2:$G$48,2,FALSE)+ROW()-2)),\"\")","v":{"$error":"#N/A"}},{"$f":"IF(INDIRECT(\"c\" & (VLOOKUP(Rebalance!$D$58,$F$2:$G$48,2,FALSE)+ROW()-2))=Rebalance!$D$58,INDIRECT(\"a\" & (VLOOKUP(Rebalance!$D$58,$F$2:$G$48,2,FALSE)+ROW()-2)),\"\")","v":{"$error":"#N/A"}},{"$f":"IF(INDIRECT(\"c\" & (VLOOKUP(Rebalance!$D$59,$F$2:$G$48,2,FALSE)+ROW()-2))=Rebalance!$D$59,INDIRECT(\"a\" & (VLOOKUP(Rebalance!$D$59,$F$2:$G$48,2,FALSE)+ROW()-2)),\"\")","v":{"$error":"#N/A"}},{"$f":"IF(INDIRECT(\"c\" & (VLOOKUP(Rebalance!$D$60,$F$2:$G$48,2,FALSE)+ROW()-2))=Rebalance!$D$60,INDIRECT(\"a\" & (VLOOKUP(Rebalance!$D$60,$F$2:$G$48,2,FALSE)+ROW()-2)),\"\")","v":{"$error":"#N/A"}},{"$f":"IF(INDIRECT(\"c\" & (VLOOKUP(Rebalance!$D$61,$F$2:$G$48,2,FALSE)+ROW()-2))=Rebalance!$D$61,INDIRECT(\"a\" & (VLOOKUP(Rebalance!$D$61,$F$2:$G$48,2,FALSE)+ROW()-2)),\"\")","v":{"$error":"#N/A"}},{"$f":"IF(INDIRECT(\"c\" & (VLOOKUP(Rebalance!$D$62,$F$2:$G$48,2,FALSE)+ROW()-2))=Rebalance!$D$62,INDIRECT(\"a\" & (VLOOKUP(Rebalance!$D$62,$F$2:$G$48,2,FALSE)+ROW()-2)),\"\")","v":{"$error":"#N/A"}},{"$f":"IF(INDIRECT(\"c\" & (VLOOKUP(Rebalance!$D$63,$F$2:$G$48,2,FALSE)+ROW()-2))=Rebalance!$D$63,INDIRECT(\"a\" & (VLOOKUP(Rebalance!$D$63,$F$2:$G$48,2,FALSE)+ROW()-2)),\"\")","v":{"$error":"#N/A"}},{"$f":"IF(INDIRECT(\"c\" & (VLOOKUP(Rebalance!$D$64,$F$2:$G$48,2,FALSE)+ROW()-2))=Rebalance!$D$64,INDIRECT(\"a\" & (VLOOKUP(Rebalance!$D$64,$F$2:$G$48,2,FALSE)+ROW()-2)),\"\")","v":{"$error":"#N/A"}},{"$f":"IF(INDIRECT(\"c\" & (VLOOKUP(Rebalance!$D$65,$F$2:$G$48,2,FALSE)+ROW()-2))=Rebalance!$D$65,INDIRECT(\"a\" & (VLOOKUP(Rebalance!$D$65,$F$2:$G$48,2,FALSE)+ROW()-2)),\"\")","v":{"$error":"#N/A"}},{"$f":"IF(INDIRECT(\"c\" & (VLOOKUP(Rebalance!$D$66,$F$2:$G$48,2,FALSE)+ROW()-2))=Rebalance!$D$66,INDIRECT(\"a\" & (VLOOKUP(Rebalance!$D$66,$F$2:$G$48,2,FALSE)+ROW()-2)),\"\")","v":{"$error":"#N/A"}}]
["Granate Multi Income Fund B","RSMIB","Sanlam Collective Investments",{"$f":"ROW()","v":514},null,null,{"$f":"VLOOKUP(F514,$C$2:$D$599,2,FALSE)","v":{"$error":"#N/A"}},{"$f":"IF(INDIRECT(\"c\" & (VLOOKUP(Rebalance!$D$26,$F$2:$G$48,2,FALSE)+ROW()-2))=Rebalance!$D$26,INDIRECT(\"a\" & (VLOOKUP(Rebalance!$D$26,$F$2:$G$48,2,FALSE)+ROW()-2)),\"\")","v":{"$error":"#N/A"}},{"$f":"IF(INDIRECT(\"c\" & (VLOOKUP(Rebalance!$D$27,$F$2:$G$48,2,FALSE)+ROW()-2))=Rebalance!$D$27,INDIRECT(\"a\" & (VLOOKUP(Rebalance!$D$27,$F$2:$G$48,2,FALSE)+ROW()-2)),\"\")","v":{"$error":"#N/A"}},{"$f":"IF(INDIRECT(\"c\" & (VLOOKUP(Rebalance!$D$28,$F$2:$G$48,2,FALSE)+ROW()-2))=Rebalance!$D$28,INDIRECT(\"a\" & (VLOOKUP(Rebalance!$D$28,$F$2:$G$48,2,FALSE)+ROW()-2)),\"\")","v":{"$error":"#N/A"}},{"$f":"IF(INDIRECT(\"c\" & (VLOOKUP(Rebalance!$D$29,$F$2:$G$48,2,FALSE)+ROW()-2))=Rebalance!$D$29,INDIRECT(\"a\" & (VLOOKUP(Rebalance!$D$29,$F$2:$G$48,2,FALSE)+ROW()-2)),\"\")","v":{"$error":"#N/A"}},{"$f":"IF(INDIRECT(\"c\" & (VLOOKUP(Rebalance!$D$30,$F$2:$G$48,2,FALSE)+ROW()-2))=Rebalance!$D$30,INDIRECT(\"a\" & (VLOOKUP(Rebalance!$D$30,$F$2:$G$48,2,FALSE)+ROW()-2)),\"\")","v":{"$error":"#N/A"}},{"$f":"IF(INDIRECT(\"c\" & (VLOOKUP(Rebalance!$D$31,$F$2:$G$48,2,FALSE)+ROW()-2))=Rebalance!$D$31,INDIRECT(\"a\" & (VLOOKUP(Rebalance!$D$31,$F$2:$G$48,2,FALSE)+ROW()-2)),\"\")","v":{"$error":"#N/A"}},{"$f":"IF(INDIRECT(\"c\" & (VLOOKUP(Rebalance!$D$32,$F$2:$G$48,2,FALSE)+ROW()-2))=Rebalance!$D$32,INDIRECT(\"a\" & (VLOOKUP(Rebalance!$D$32,$F$2:$G$48,2,FALSE)+ROW()-2)),\"\")","v":{"$error":"#N/A"}},{"$f":"IF(INDIRECT(\"c\" & (VLOOKUP(Rebalance!$D$33,$F$2:$G$48,2,FALSE)+ROW()-2))=Rebalance!$D$33,INDIRECT(\"a\" & (VLOOKUP(Rebalance!$D$33,$F$2:$G$48,2,FALSE)+ROW()-2)),\"\")","v":{"$error":"#N/A"}},{"$f":"IF(INDIRECT(\"c\" & (VLOOKUP(Rebalance!$D$34,$F$2:$G$48,2,FALSE)+ROW()-2))=Rebalance!$D$34,INDIRECT(\"a\" & (VLOOKUP(Rebalance!$D$34,$F$2:$G$48,2,FALSE)+ROW()-2)),\"\")","v":{"$error":"#N/A"}},{"$f":"IF(INDIRECT(\"c\" & (VLOOKUP(Rebalance!$D$35,$F$2:$G$48,2,FALSE)+ROW()-2))=Rebalance!$D$35,INDIRECT(\"a\" & (VLOOKUP(Rebalance!$D$35,$F$2:$G$48,2,FALSE)+ROW()-2)),\"\")","v":{"$error":"#N/A"}},{"$f":"IF(INDIRECT(\"c\" & (VLOOKUP(Rebalance!$D$36,$F$2:$G$48,2,FALSE)+ROW()-2))=Rebalance!$D$36,INDIRECT(\"a\" & (VLOOKUP(Rebalance!$D$36,$F$2:$G$48,2,FALSE)+ROW()-2)),\"\")","v":{"$error":"#N/A"}},{"$f":"IF(INDIRECT(\"c\" & (VLOOKUP(Rebalance!$D$37,$F$2:$G$48,2,FALSE)+ROW()-2))=Rebalance!$D$37,INDIRECT(\"a\" & (VLOOKUP(Rebalance!$D$37,$F$2:$G$48,2,FALSE)+ROW()-2)),\"\")","v":{"$error":"#N/A"}},{"$f":"IF(INDIRECT(\"c\" & (VLOOKUP(Rebalance!$D$38,$F$2:$G$48,2,FALSE)+ROW()-2))=Rebalance!$D$38,INDIRECT(\"a\" & (VLOOKUP(Rebalance!$D$38,$F$2:$G$48,2,FALSE)+ROW()-2)),\"\")","v":{"$error":"#N/A"}},{"$f":"IF(INDIRECT(\"c\" & (VLOOKUP(Rebalance!$D$39,$F$2:$G$48,2,FALSE)+ROW()-2))=Rebalance!$D$39,INDIRECT(\"a\" & (VLOOKUP(Rebalance!$D$39,$F$2:$G$48,2,FALSE)+ROW()-2)),\"\")","v":{"$error":"#N/A"}},{"$f":"IF(INDIRECT(\"c\" & (VLOOKUP(Rebalance!$D$40,$F$2:$G$48,2,FALSE)+ROW()-2))=Rebalance!$D$40,INDIRECT(\"a\" & (VLOOKUP(Rebalance!$D$40,$F$2:$G$48,2,FALSE)+ROW()-2)),\"\")","v":{"$error":"#N/A"}},{"$f":"IF(INDIRECT(\"c\" & (VLOOKUP(Rebalance!$D$52,$F$2:$G$48,2,FALSE)+ROW()-2))=Rebalance!$D$52,INDIRECT(\"a\" & (VLOOKUP(Rebalance!$D$52,$F$2:$G$48,2,FALSE)+ROW()-2)),\"\")","v":{"$error":"#N/A"}},{"$f":"IF(INDIRECT(\"c\" & (VLOOKUP(Rebalance!$D$53,$F$2:$G$48,2,FALSE)+ROW()-2))=Rebalance!$D$53,INDIRECT(\"a\" & (VLOOKUP(Rebalance!$D$53,$F$2:$G$48,2,FALSE)+ROW()-2)),\"\")","v":{"$error":"#N/A"}},{"$f":"IF(INDIRECT(\"c\" & (VLOOKUP(Rebalance!$D$54,$F$2:$G$48,2,FALSE)+ROW()-2))=Rebalance!$D$54,INDIRECT(\"a\" & (VLOOKUP(Rebalance!$D$54,$F$2:$G$48,2,FALSE)+ROW()-2)),\"\")","v":{"$error":"#N/A"}},{"$f":"IF(INDIRECT(\"c\" & (VLOOKUP(Rebalance!$D$55,$F$2:$G$48,2,FALSE)+ROW()-2))=Rebalance!$D$55,INDIRECT(\"a\" & (VLOOKUP(Rebalance!$D$55,$F$2:$G$48,2,FALSE)+ROW()-2)),\"\")","v":{"$error":"#N/A"}},{"$f":"IF(INDIRECT(\"c\" & (VLOOKUP(Rebalance!$D$56,$F$2:$G$48,2,FALSE)+ROW()-2))=Rebalance!$D$56,INDIRECT(\"a\" & (VLOOKUP(Rebalance!$D$56,$F$2:$G$48,2,FALSE)+ROW()-2)),\"\")","v":{"$error":"#N/A"}},{"$f":"IF(INDIRECT(\"c\" & (VLOOKUP(Rebalance!$D$57,$F$2:$G$48,2,FALSE)+ROW()-2))=Rebalance!$D$57,INDIRECT(\"a\" & (VLOOKUP(Rebalance!$D$57,$F$2:$G$48,2,FALSE)+ROW()-2)),\"\")","v":{"$error":"#N/A"}},{"$f":"IF(INDIRECT(\"c\" & (VLOOKUP(Rebalance!$D$58,$F$2:$G$48,2,FALSE)+ROW()-2))=Rebalance!$D$58,INDIRECT(\"a\" & (VLOOKUP(Rebalance!$D$58,$F$2:$G$48,2,FALSE)+ROW()-2)),\"\")","v":{"$error":"#N/A"}},{"$f":"IF(INDIRECT(\"c\" & (VLOOKUP(Rebalance!$D$59,$F$2:$G$48,2,FALSE)+ROW()-2))=Rebalance!$D$59,INDIRECT(\"a\" & (VLOOKUP(Rebalance!$D$59,$F$2:$G$48,2,FALSE)+ROW()-2)),\"\")","v":{"$error":"#N/A"}},{"$f":"IF(INDIRECT(\"c\" & (VLOOKUP(Rebalance!$D$60,$F$2:$G$48,2,FALSE)+ROW()-2))=Rebalance!$D$60,INDIRECT(\"a\" & (VLOOKUP(Rebalance!$D$60,$F$2:$G$48,2,FALSE)+ROW()-2)),\"\")","v":{"$error":"#N/A"}},{"$f":"IF(INDIRECT(\"c\" & (VLOOKUP(Rebalance!$D$61,$F$2:$G$48,2,FALSE)+ROW()-2))=Rebalance!$D$61,INDIRECT(\"a\" & (VLOOKUP(Rebalance!$D$61,$F$2:$G$48,2,FALSE)+ROW()-2)),\"\")","v":{"$error":"#N/A"}},{"$f":"IF(INDIRECT(\"c\" & (VLOOKUP(Rebalance!$D$62,$F$2:$G$48,2,FALSE)+ROW()-2))=Rebalance!$D$62,INDIRECT(\"a\" & (VLOOKUP(Rebalance!$D$62,$F$2:$G$48,2,FALSE)+ROW()-2)),\"\")","v":{"$error":"#N/A"}},{"$f":"IF(INDIRECT(\"c\" & (VLOOKUP(Rebalance!$D$63,$F$2:$G$48,2,FALSE)+ROW()-2))=Rebalance!$D$63,INDIRECT(\"a\" & (VLOOKUP(Rebalance!$D$63,$F$2:$G$48,2,FALSE)+ROW()-2)),\"\")","v":{"$error":"#N/A"}},{"$f":"IF(INDIRECT(\"c\" & (VLOOKUP(Rebalance!$D$64,$F$2:$G$48,2,FALSE)+ROW()-2))=Rebalance!$D$64,INDIRECT(\"a\" & (VLOOKUP(Rebalance!$D$64,$F$2:$G$48,2,FALSE)+ROW()-2)),\"\")","v":{"$error":"#N/A"}},{"$f":"IF(INDIRECT(\"c\" & (VLOOKUP(Rebalance!$D$65,$F$2:$G$48,2,FALSE)+ROW()-2))=Rebalance!$D$65,INDIRECT(\"a\" & (VLOOKUP(Rebalance!$D$65,$F$2:$G$48,2,FALSE)+ROW()-2)),\"\")","v":{"$error":"#N/A"}},{"$f":"IF(INDIRECT(\"c\" & (VLOOKUP(Rebalance!$D$66,$F$2:$G$48,2,FALSE)+ROW()-2))=Rebalance!$D$66,INDIRECT(\"a\" & (VLOOKUP(Rebalance!$D$66,$F$2:$G$48,2,FALSE)+ROW()-2)),\"\")","v":{"$error":"#N/A"}}]
["Lynx SCI Balanced FoF B1","RBA1","Sanlam Collective Investments",{"$f":"ROW()","v":515},null,null,{"$f":"VLOOKUP(F515,$C$2:$D$599,2,FALSE)","v":{"$error":"#N/A"}},{"$f":"IF(INDIRECT(\"c\" & (VLOOKUP(Rebalance!$D$26,$F$2:$G$48,2,FALSE)+ROW()-2))=Rebalance!$D$26,INDIRECT(\"a\" & (VLOOKUP(Rebalance!$D$26,$F$2:$G$48,2,FALSE)+ROW()-2)),\"\")","v":{"$error":"#N/A"}},{"$f":"IF(INDIRECT(\"c\" & (VLOOKUP(Rebalance!$D$27,$F$2:$G$48,2,FALSE)+ROW()-2))=Rebalance!$D$27,INDIRECT(\"a\" & (VLOOKUP(Rebalance!$D$27,$F$2:$G$48,2,FALSE)+ROW()-2)),\"\")","v":{"$error":"#N/A"}},{"$f":"IF(INDIRECT(\"c\" & (VLOOKUP(Rebalance!$D$28,$F$2:$G$48,2,FALSE)+ROW()-2))=Rebalance!$D$28,INDIRECT(\"a\" & (VLOOKUP(Rebalance!$D$28,$F$2:$G$48,2,FALSE)+ROW()-2)),\"\")","v":{"$error":"#N/A"}},{"$f":"IF(INDIRECT(\"c\" & (VLOOKUP(Rebalance!$D$29,$F$2:$G$48,2,FALSE)+ROW()-2))=Rebalance!$D$29,INDIRECT(\"a\" & (VLOOKUP(Rebalance!$D$29,$F$2:$G$48,2,FALSE)+ROW()-2)),\"\")","v":{"$error":"#N/A"}},{"$f":"IF(INDIRECT(\"c\" & (VLOOKUP(Rebalance!$D$30,$F$2:$G$48,2,FALSE)+ROW()-2))=Rebalance!$D$30,INDIRECT(\"a\" & (VLOOKUP(Rebalance!$D$30,$F$2:$G$48,2,FALSE)+ROW()-2)),\"\")","v":{"$error":"#N/A"}},{"$f":"IF(INDIRECT(\"c\" & (VLOOKUP(Rebalance!$D$31,$F$2:$G$48,2,FALSE)+ROW()-2))=Rebalance!$D$31,INDIRECT(\"a\" & (VLOOKUP(Rebalance!$D$31,$F$2:$G$48,2,FALSE)+ROW()-2)),\"\")","v":{"$error":"#N/A"}},{"$f":"IF(INDIRECT(\"c\" & (VLOOKUP(Rebalance!$D$32,$F$2:$G$48,2,FALSE)+ROW()-2))=Rebalance!$D$32,INDIRECT(\"a\" & (VLOOKUP(Rebalance!$D$32,$F$2:$G$48,2,FALSE)+ROW()-2)),\"\")","v":{"$error":"#N/A"}},{"$f":"IF(INDIRECT(\"c\" & (VLOOKUP(Rebalance!$D$33,$F$2:$G$48,2,FALSE)+ROW()-2))=Rebalance!$D$33,INDIRECT(\"a\" & (VLOOKUP(Rebalance!$D$33,$F$2:$G$48,2,FALSE)+ROW()-2)),\"\")","v":{"$error":"#N/A"}},{"$f":"IF(INDIRECT(\"c\" & (VLOOKUP(Rebalance!$D$34,$F$2:$G$48,2,FALSE)+ROW()-2))=Rebalance!$D$34,INDIRECT(\"a\" & (VLOOKUP(Rebalance!$D$34,$F$2:$G$48,2,FALSE)+ROW()-2)),\"\")","v":{"$error":"#N/A"}},{"$f":"IF(INDIRECT(\"c\" & (VLOOKUP(Rebalance!$D$35,$F$2:$G$48,2,FALSE)+ROW()-2))=Rebalance!$D$35,INDIRECT(\"a\" & (VLOOKUP(Rebalance!$D$35,$F$2:$G$48,2,FALSE)+ROW()-2)),\"\")","v":{"$error":"#N/A"}},{"$f":"IF(INDIRECT(\"c\" & (VLOOKUP(Rebalance!$D$36,$F$2:$G$48,2,FALSE)+ROW()-2))=Rebalance!$D$36,INDIRECT(\"a\" & (VLOOKUP(Rebalance!$D$36,$F$2:$G$48,2,FALSE)+ROW()-2)),\"\")","v":{"$error":"#N/A"}},{"$f":"IF(INDIRECT(\"c\" & (VLOOKUP(Rebalance!$D$37,$F$2:$G$48,2,FALSE)+ROW()-2))=Rebalance!$D$37,INDIRECT(\"a\" & (VLOOKUP(Rebalance!$D$37,$F$2:$G$48,2,FALSE)+ROW()-2)),\"\")","v":{"$error":"#N/A"}},{"$f":"IF(INDIRECT(\"c\" & (VLOOKUP(Rebalance!$D$38,$F$2:$G$48,2,FALSE)+ROW()-2))=Rebalance!$D$38,INDIRECT(\"a\" & (VLOOKUP(Rebalance!$D$38,$F$2:$G$48,2,FALSE)+ROW()-2)),\"\")","v":{"$error":"#N/A"}},{"$f":"IF(INDIRECT(\"c\" & (VLOOKUP(Rebalance!$D$39,$F$2:$G$48,2,FALSE)+ROW()-2))=Rebalance!$D$39,INDIRECT(\"a\" & (VLOOKUP(Rebalance!$D$39,$F$2:$G$48,2,FALSE)+ROW()-2)),\"\")","v":{"$error":"#N/A"}},{"$f":"IF(INDIRECT(\"c\" & (VLOOKUP(Rebalance!$D$40,$F$2:$G$48,2,FALSE)+ROW()-2))=Rebalance!$D$40,INDIRECT(\"a\" & (VLOOKUP(Rebalance!$D$40,$F$2:$G$48,2,FALSE)+ROW()-2)),\"\")","v":{"$error":"#N/A"}},{"$f":"IF(INDIRECT(\"c\" & (VLOOKUP(Rebalance!$D$52,$F$2:$G$48,2,FALSE)+ROW()-2))=Rebalance!$D$52,INDIRECT(\"a\" & (VLOOKUP(Rebalance!$D$52,$F$2:$G$48,2,FALSE)+ROW()-2)),\"\")","v":{"$error":"#N/A"}},{"$f":"IF(INDIRECT(\"c\" & (VLOOKUP(Rebalance!$D$53,$F$2:$G$48,2,FALSE)+ROW()-2))=Rebalance!$D$53,INDIRECT(\"a\" & (VLOOKUP(Rebalance!$D$53,$F$2:$G$48,2,FALSE)+ROW()-2)),\"\")","v":{"$error":"#N/A"}},{"$f":"IF(INDIRECT(\"c\" & (VLOOKUP(Rebalance!$D$54,$F$2:$G$48,2,FALSE)+ROW()-2))=Rebalance!$D$54,INDIRECT(\"a\" & (VLOOKUP(Rebalance!$D$54,$F$2:$G$48,2,FALSE)+ROW()-2)),\"\")","v":{"$error":"#N/A"}},{"$f":"IF(INDIRECT(\"c\" & (VLOOKUP(Rebalance!$D$55,$F$2:$G$48,2,FALSE)+ROW()-2))=Rebalance!$D$55,INDIRECT(\"a\" & (VLOOKUP(Rebalance!$D$55,$F$2:$G$48,2,FALSE)+ROW()-2)),\"\")","v":{"$error":"#N/A"}},{"$f":"IF(INDIRECT(\"c\" & (VLOOKUP(Rebalance!$D$56,$F$2:$G$48,2,FALSE)+ROW()-2))=Rebalance!$D$56,INDIRECT(\"a\" & (VLOOKUP(Rebalance!$D$56,$F$2:$G$48,2,FALSE)+ROW()-2)),\"\")","v":{"$error":"#N/A"}},{"$f":"IF(INDIRECT(\"c\" & (VLOOKUP(Rebalance!$D$57,$F$2:$G$48,2,FALSE)+ROW()-2))=Rebalance!$D$57,INDIRECT(\"a\" & (VLOOKUP(Rebalance!$D$57,$F$2:$G$48,2,FALSE)+ROW()-2)),\"\")","v":{"$error":"#N/A"}},{"$f":"IF(INDIRECT(\"c\" & (VLOOKUP(Rebalance!$D$58,$F$2:$G$48,2,FALSE)+ROW()-2))=Rebalance!$D$58,INDIRECT(\"a\" & (VLOOKUP(Rebalance!$D$58,$F$2:$G$48,2,FALSE)+ROW()-2)),\"\")","v":{"$error":"#N/A"}},{"$f":"IF(INDIRECT(\"c\" & (VLOOKUP(Rebalance!$D$59,$F$2:$G$48,2,FALSE)+ROW()-2))=Rebalance!$D$59,INDIRECT(\"a\" & (VLOOKUP(Rebalance!$D$59,$F$2:$G$48,2,FALSE)+ROW()-2)),\"\")","v":{"$error":"#N/A"}},{"$f":"IF(INDIRECT(\"c\" & (VLOOKUP(Rebalance!$D$60,$F$2:$G$48,2,FALSE)+ROW()-2))=Rebalance!$D$60,INDIRECT(\"a\" & (VLOOKUP(Rebalance!$D$60,$F$2:$G$48,2,FALSE)+ROW()-2)),\"\")","v":{"$error":"#N/A"}},{"$f":"IF(INDIRECT(\"c\" & (VLOOKUP(Rebalance!$D$61,$F$2:$G$48,2,FALSE)+ROW()-2))=Rebalance!$D$61,INDIRECT(\"a\" & (VLOOKUP(Rebalance!$D$61,$F$2:$G$48,2,FALSE)+ROW()-2)),\"\")","v":{"$error":"#N/A"}},{"$f":"IF(INDIRECT(\"c\" & (VLOOKUP(Rebalance!$D$62,$F$2:$G$48,2,FALSE)+ROW()-2))=Rebalance!$D$62,INDIRECT(\"a\" & (VLOOKUP(Rebalance!$D$62,$F$2:$G$48,2,FALSE)+ROW()-2)),\"\")","v":{"$error":"#N/A"}},{"$f":"IF(INDIRECT(\"c\" & (VLOOKUP(Rebalance!$D$63,$F$2:$G$48,2,FALSE)+ROW()-2))=Rebalance!$D$63,INDIRECT(\"a\" & (VLOOKUP(Rebalance!$D$63,$F$2:$G$48,2,FALSE)+ROW()-2)),\"\")","v":{"$error":"#N/A"}},{"$f":"IF(INDIRECT(\"c\" & (VLOOKUP(Rebalance!$D$64,$F$2:$G$48,2,FALSE)+ROW()-2))=Rebalance!$D$64,INDIRECT(\"a\" & (VLOOKUP(Rebalance!$D$64,$F$2:$G$48,2,FALSE)+ROW()-2)),\"\")","v":{"$error":"#N/A"}},{"$f":"IF(INDIRECT(\"c\" & (VLOOKUP(Rebalance!$D$65,$F$2:$G$48,2,FALSE)+ROW()-2))=Rebalance!$D$65,INDIRECT(\"a\" & (VLOOKUP(Rebalance!$D$65,$F$2:$G$48,2,FALSE)+ROW()-2)),\"\")","v":{"$error":"#N/A"}},{"$f":"IF(INDIRECT(\"c\" & (VLOOKUP(Rebalance!$D$66,$F$2:$G$48,2,FALSE)+ROW()-2))=Rebalance!$D$66,INDIRECT(\"a\" & (VLOOKUP(Rebalance!$D$66,$F$2:$G$48,2,FALSE)+ROW()-2)),\"\")","v":{"$error":"#N/A"}}]
["Lynx SCI Cautious FoF B1","RWA1","Sanlam Collective Investments",{"$f":"ROW()","v":516},null,null,{"$f":"VLOOKUP(F516,$C$2:$D$599,2,FALSE)","v":{"$error":"#N/A"}},{"$f":"IF(INDIRECT(\"c\" & (VLOOKUP(Rebalance!$D$26,$F$2:$G$48,2,FALSE)+ROW()-2))=Rebalance!$D$26,INDIRECT(\"a\" & (VLOOKUP(Rebalance!$D$26,$F$2:$G$48,2,FALSE)+ROW()-2)),\"\")","v":{"$error":"#N/A"}},{"$f":"IF(INDIRECT(\"c\" & (VLOOKUP(Rebalance!$D$27,$F$2:$G$48,2,FALSE)+ROW()-2))=Rebalance!$D$27,INDIRECT(\"a\" & (VLOOKUP(Rebalance!$D$27,$F$2:$G$48,2,FALSE)+ROW()-2)),\"\")","v":{"$error":"#N/A"}},{"$f":"IF(INDIRECT(\"c\" & (VLOOKUP(Rebalance!$D$28,$F$2:$G$48,2,FALSE)+ROW()-2))=Rebalance!$D$28,INDIRECT(\"a\" & (VLOOKUP(Rebalance!$D$28,$F$2:$G$48,2,FALSE)+ROW()-2)),\"\")","v":{"$error":"#N/A"}},{"$f":"IF(INDIRECT(\"c\" & (VLOOKUP(Rebalance!$D$29,$F$2:$G$48,2,FALSE)+ROW()-2))=Rebalance!$D$29,INDIRECT(\"a\" & (VLOOKUP(Rebalance!$D$29,$F$2:$G$48,2,FALSE)+ROW()-2)),\"\")","v":{"$error":"#N/A"}},{"$f":"IF(INDIRECT(\"c\" & (VLOOKUP(Rebalance!$D$30,$F$2:$G$48,2,FALSE)+ROW()-2))=Rebalance!$D$30,INDIRECT(\"a\" & (VLOOKUP(Rebalance!$D$30,$F$2:$G$48,2,FALSE)+ROW()-2)),\"\")","v":{"$error":"#N/A"}},{"$f":"IF(INDIRECT(\"c\" & (VLOOKUP(Rebalance!$D$31,$F$2:$G$48,2,FALSE)+ROW()-2))=Rebalance!$D$31,INDIRECT(\"a\" & (VLOOKUP(Rebalance!$D$31,$F$2:$G$48,2,FALSE)+ROW()-2)),\"\")","v":{"$error":"#N/A"}},{"$f":"IF(INDIRECT(\"c\" & (VLOOKUP(Rebalance!$D$32,$F$2:$G$48,2,FALSE)+ROW()-2))=Rebalance!$D$32,INDIRECT(\"a\" & (VLOOKUP(Rebalance!$D$32,$F$2:$G$48,2,FALSE)+ROW()-2)),\"\")","v":{"$error":"#N/A"}},{"$f":"IF(INDIRECT(\"c\" & (VLOOKUP(Rebalance!$D$33,$F$2:$G$48,2,FALSE)+ROW()-2))=Rebalance!$D$33,INDIRECT(\"a\" & (VLOOKUP(Rebalance!$D$33,$F$2:$G$48,2,FALSE)+ROW()-2)),\"\")","v":{"$error":"#N/A"}},{"$f":"IF(INDIRECT(\"c\" & (VLOOKUP(Rebalance!$D$34,$F$2:$G$48,2,FALSE)+ROW()-2))=Rebalance!$D$34,INDIRECT(\"a\" & (VLOOKUP(Rebalance!$D$34,$F$2:$G$48,2,FALSE)+ROW()-2)),\"\")","v":{"$error":"#N/A"}},{"$f":"IF(INDIRECT(\"c\" & (VLOOKUP(Rebalance!$D$35,$F$2:$G$48,2,FALSE)+ROW()-2))=Rebalance!$D$35,INDIRECT(\"a\" & (VLOOKUP(Rebalance!$D$35,$F$2:$G$48,2,FALSE)+ROW()-2)),\"\")","v":{"$error":"#N/A"}},{"$f":"IF(INDIRECT(\"c\" & (VLOOKUP(Rebalance!$D$36,$F$2:$G$48,2,FALSE)+ROW()-2))=Rebalance!$D$36,INDIRECT(\"a\" & (VLOOKUP(Rebalance!$D$36,$F$2:$G$48,2,FALSE)+ROW()-2)),\"\")","v":{"$error":"#N/A"}},{"$f":"IF(INDIRECT(\"c\" & (VLOOKUP(Rebalance!$D$37,$F$2:$G$48,2,FALSE)+ROW()-2))=Rebalance!$D$37,INDIRECT(\"a\" & (VLOOKUP(Rebalance!$D$37,$F$2:$G$48,2,FALSE)+ROW()-2)),\"\")","v":{"$error":"#N/A"}},{"$f":"IF(INDIRECT(\"c\" & (VLOOKUP(Rebalance!$D$38,$F$2:$G$48,2,FALSE)+ROW()-2))=Rebalance!$D$38,INDIRECT(\"a\" & (VLOOKUP(Rebalance!$D$38,$F$2:$G$48,2,FALSE)+ROW()-2)),\"\")","v":{"$error":"#N/A"}},{"$f":"IF(INDIRECT(\"c\" & (VLOOKUP(Rebalance!$D$39,$F$2:$G$48,2,FALSE)+ROW()-2))=Rebalance!$D$39,INDIRECT(\"a\" & (VLOOKUP(Rebalance!$D$39,$F$2:$G$48,2,FALSE)+ROW()-2)),\"\")","v":{"$error":"#N/A"}},{"$f":"IF(INDIRECT(\"c\" & (VLOOKUP(Rebalance!$D$40,$F$2:$G$48,2,FALSE)+ROW()-2))=Rebalance!$D$40,INDIRECT(\"a\" & (VLOOKUP(Rebalance!$D$40,$F$2:$G$48,2,FALSE)+ROW()-2)),\"\")","v":{"$error":"#N/A"}},{"$f":"IF(INDIRECT(\"c\" & (VLOOKUP(Rebalance!$D$52,$F$2:$G$48,2,FALSE)+ROW()-2))=Rebalance!$D$52,INDIRECT(\"a\" & (VLOOKUP(Rebalance!$D$52,$F$2:$G$48,2,FALSE)+ROW()-2)),\"\")","v":{"$error":"#N/A"}},{"$f":"IF(INDIRECT(\"c\" & (VLOOKUP(Rebalance!$D$53,$F$2:$G$48,2,FALSE)+ROW()-2))=Rebalance!$D$53,INDIRECT(\"a\" & (VLOOKUP(Rebalance!$D$53,$F$2:$G$48,2,FALSE)+ROW()-2)),\"\")","v":{"$error":"#N/A"}},{"$f":"IF(INDIRECT(\"c\" & (VLOOKUP(Rebalance!$D$54,$F$2:$G$48,2,FALSE)+ROW()-2))=Rebalance!$D$54,INDIRECT(\"a\" & (VLOOKUP(Rebalance!$D$54,$F$2:$G$48,2,FALSE)+ROW()-2)),\"\")","v":{"$error":"#N/A"}},{"$f":"IF(INDIRECT(\"c\" & (VLOOKUP(Rebalance!$D$55,$F$2:$G$48,2,FALSE)+ROW()-2))=Rebalance!$D$55,INDIRECT(\"a\" & (VLOOKUP(Rebalance!$D$55,$F$2:$G$48,2,FALSE)+ROW()-2)),\"\")","v":{"$error":"#N/A"}},{"$f":"IF(INDIRECT(\"c\" & (VLOOKUP(Rebalance!$D$56,$F$2:$G$48,2,FALSE)+ROW()-2))=Rebalance!$D$56,INDIRECT(\"a\" & (VLOOKUP(Rebalance!$D$56,$F$2:$G$48,2,FALSE)+ROW()-2)),\"\")","v":{"$error":"#N/A"}},{"$f":"IF(INDIRECT(\"c\" & (VLOOKUP(Rebalance!$D$57,$F$2:$G$48,2,FALSE)+ROW()-2))=Rebalance!$D$57,INDIRECT(\"a\" & (VLOOKUP(Rebalance!$D$57,$F$2:$G$48,2,FALSE)+ROW()-2)),\"\")","v":{"$error":"#N/A"}},{"$f":"IF(INDIRECT(\"c\" & (VLOOKUP(Rebalance!$D$58,$F$2:$G$48,2,FALSE)+ROW()-2))=Rebalance!$D$58,INDIRECT(\"a\" & (VLOOKUP(Rebalance!$D$58,$F$2:$G$48,2,FALSE)+ROW()-2)),\"\")","v":{"$error":"#N/A"}},{"$f":"IF(INDIRECT(\"c\" & (VLOOKUP(Rebalance!$D$59,$F$2:$G$48,2,FALSE)+ROW()-2))=Rebalance!$D$59,INDIRECT(\"a\" & (VLOOKUP(Rebalance!$D$59,$F$2:$G$48,2,FALSE)+ROW()-2)),\"\")","v":{"$error":"#N/A"}},{"$f":"IF(INDIRECT(\"c\" & (VLOOKUP(Rebalance!$D$60,$F$2:$G$48,2,FALSE)+ROW()-2))=Rebalance!$D$60,INDIRECT(\"a\" & (VLOOKUP(Rebalance!$D$60,$F$2:$G$48,2,FALSE)+ROW()-2)),\"\")","v":{"$error":"#N/A"}},{"$f":"IF(INDIRECT(\"c\" & (VLOOKUP(Rebalance!$D$61,$F$2:$G$48,2,FALSE)+ROW()-2))=Rebalance!$D$61,INDIRECT(\"a\" & (VLOOKUP(Rebalance!$D$61,$F$2:$G$48,2,FALSE)+ROW()-2)),\"\")","v":{"$error":"#N/A"}},{"$f":"IF(INDIRECT(\"c\" & (VLOOKUP(Rebalance!$D$62,$F$2:$G$48,2,FALSE)+ROW()-2))=Rebalance!$D$62,INDIRECT(\"a\" & (VLOOKUP(Rebalance!$D$62,$F$2:$G$48,2,FALSE)+ROW()-2)),\"\")","v":{"$error":"#N/A"}},{"$f":"IF(INDIRECT(\"c\" & (VLOOKUP(Rebalance!$D$63,$F$2:$G$48,2,FALSE)+ROW()-2))=Rebalance!$D$63,INDIRECT(\"a\" & (VLOOKUP(Rebalance!$D$63,$F$2:$G$48,2,FALSE)+ROW()-2)),\"\")","v":{"$error":"#N/A"}},{"$f":"IF(INDIRECT(\"c\" & (VLOOKUP(Rebalance!$D$64,$F$2:$G$48,2,FALSE)+ROW()-2))=Rebalance!$D$64,INDIRECT(\"a\" & (VLOOKUP(Rebalance!$D$64,$F$2:$G$48,2,FALSE)+ROW()-2)),\"\")","v":{"$error":"#N/A"}},{"$f":"IF(INDIRECT(\"c\" & (VLOOKUP(Rebalance!$D$65,$F$2:$G$48,2,FALSE)+ROW()-2))=Rebalance!$D$65,INDIRECT(\"a\" & (VLOOKUP(Rebalance!$D$65,$F$2:$G$48,2,FALSE)+ROW()-2)),\"\")","v":{"$error":"#N/A"}},{"$f":"IF(INDIRECT(\"c\" & (VLOOKUP(Rebalance!$D$66,$F$2:$G$48,2,FALSE)+ROW()-2))=Rebalance!$D$66,INDIRECT(\"a\" & (VLOOKUP(Rebalance!$D$66,$F$2:$G$48,2,FALSE)+ROW()-2)),\"\")","v":{"$error":"#N/A"}}]
["Lynx SCI Global Diversified FoF B1","LYGA1","Sanlam Collective Investments",{"$f":"ROW()","v":517},null,null,{"$f":"VLOOKUP(F517,$C$2:$D$599,2,FALSE)","v":{"$error":"#N/A"}},{"$f":"IF(INDIRECT(\"c\" & (VLOOKUP(Rebalance!$D$26,$F$2:$G$48,2,FALSE)+ROW()-2))=Rebalance!$D$26,INDIRECT(\"a\" & (VLOOKUP(Rebalance!$D$26,$F$2:$G$48,2,FALSE)+ROW()-2)),\"\")","v":{"$error":"#N/A"}},{"$f":"IF(INDIRECT(\"c\" & (VLOOKUP(Rebalance!$D$27,$F$2:$G$48,2,FALSE)+ROW()-2))=Rebalance!$D$27,INDIRECT(\"a\" & (VLOOKUP(Rebalance!$D$27,$F$2:$G$48,2,FALSE)+ROW()-2)),\"\")","v":{"$error":"#N/A"}},{"$f":"IF(INDIRECT(\"c\" & (VLOOKUP(Rebalance!$D$28,$F$2:$G$48,2,FALSE)+ROW()-2))=Rebalance!$D$28,INDIRECT(\"a\" & (VLOOKUP(Rebalance!$D$28,$F$2:$G$48,2,FALSE)+ROW()-2)),\"\")","v":{"$error":"#N/A"}},{"$f":"IF(INDIRECT(\"c\" & (VLOOKUP(Rebalance!$D$29,$F$2:$G$48,2,FALSE)+ROW()-2))=Rebalance!$D$29,INDIRECT(\"a\" & (VLOOKUP(Rebalance!$D$29,$F$2:$G$48,2,FALSE)+ROW()-2)),\"\")","v":{"$error":"#N/A"}},{"$f":"IF(INDIRECT(\"c\" & (VLOOKUP(Rebalance!$D$30,$F$2:$G$48,2,FALSE)+ROW()-2))=Rebalance!$D$30,INDIRECT(\"a\" & (VLOOKUP(Rebalance!$D$30,$F$2:$G$48,2,FALSE)+ROW()-2)),\"\")","v":{"$error":"#N/A"}},{"$f":"IF(INDIRECT(\"c\" & (VLOOKUP(Rebalance!$D$31,$F$2:$G$48,2,FALSE)+ROW()-2))=Rebalance!$D$31,INDIRECT(\"a\" & (VLOOKUP(Rebalance!$D$31,$F$2:$G$48,2,FALSE)+ROW()-2)),\"\")","v":{"$error":"#N/A"}},{"$f":"IF(INDIRECT(\"c\" & (VLOOKUP(Rebalance!$D$32,$F$2:$G$48,2,FALSE)+ROW()-2))=Rebalance!$D$32,INDIRECT(\"a\" & (VLOOKUP(Rebalance!$D$32,$F$2:$G$48,2,FALSE)+ROW()-2)),\"\")","v":{"$error":"#N/A"}},{"$f":"IF(INDIRECT(\"c\" & (VLOOKUP(Rebalance!$D$33,$F$2:$G$48,2,FALSE)+ROW()-2))=Rebalance!$D$33,INDIRECT(\"a\" & (VLOOKUP(Rebalance!$D$33,$F$2:$G$48,2,FALSE)+ROW()-2)),\"\")","v":{"$error":"#N/A"}},{"$f":"IF(INDIRECT(\"c\" & (VLOOKUP(Rebalance!$D$34,$F$2:$G$48,2,FALSE)+ROW()-2))=Rebalance!$D$34,INDIRECT(\"a\" & (VLOOKUP(Rebalance!$D$34,$F$2:$G$48,2,FALSE)+ROW()-2)),\"\")","v":{"$error":"#N/A"}},{"$f":"IF(INDIRECT(\"c\" & (VLOOKUP(Rebalance!$D$35,$F$2:$G$48,2,FALSE)+ROW()-2))=Rebalance!$D$35,INDIRECT(\"a\" & (VLOOKUP(Rebalance!$D$35,$F$2:$G$48,2,FALSE)+ROW()-2)),\"\")","v":{"$error":"#N/A"}},{"$f":"IF(INDIRECT(\"c\" & (VLOOKUP(Rebalance!$D$36,$F$2:$G$48,2,FALSE)+ROW()-2))=Rebalance!$D$36,INDIRECT(\"a\" & (VLOOKUP(Rebalance!$D$36,$F$2:$G$48,2,FALSE)+ROW()-2)),\"\")","v":{"$error":"#N/A"}},{"$f":"IF(INDIRECT(\"c\" & (VLOOKUP(Rebalance!$D$37,$F$2:$G$48,2,FALSE)+ROW()-2))=Rebalance!$D$37,INDIRECT(\"a\" & (VLOOKUP(Rebalance!$D$37,$F$2:$G$48,2,FALSE)+ROW()-2)),\"\")","v":{"$error":"#N/A"}},{"$f":"IF(INDIRECT(\"c\" & (VLOOKUP(Rebalance!$D$38,$F$2:$G$48,2,FALSE)+ROW()-2))=Rebalance!$D$38,INDIRECT(\"a\" & (VLOOKUP(Rebalance!$D$38,$F$2:$G$48,2,FALSE)+ROW()-2)),\"\")","v":{"$error":"#N/A"}},{"$f":"IF(INDIRECT(\"c\" & (VLOOKUP(Rebalance!$D$39,$F$2:$G$48,2,FALSE)+ROW()-2))=Rebalance!$D$39,INDIRECT(\"a\" & (VLOOKUP(Rebalance!$D$39,$F$2:$G$48,2,FALSE)+ROW()-2)),\"\")","v":{"$error":"#N/A"}},{"$f":"IF(INDIRECT(\"c\" & (VLOOKUP(Rebalance!$D$40,$F$2:$G$48,2,FALSE)+ROW()-2))=Rebalance!$D$40,INDIRECT(\"a\" & (VLOOKUP(Rebalance!$D$40,$F$2:$G$48,2,FALSE)+ROW()-2)),\"\")","v":{"$error":"#N/A"}},{"$f":"IF(INDIRECT(\"c\" & (VLOOKUP(Rebalance!$D$52,$F$2:$G$48,2,FALSE)+ROW()-2))=Rebalance!$D$52,INDIRECT(\"a\" & (VLOOKUP(Rebalance!$D$52,$F$2:$G$48,2,FALSE)+ROW()-2)),\"\")","v":{"$error":"#N/A"}},{"$f":"IF(INDIRECT(\"c\" & (VLOOKUP(Rebalance!$D$53,$F$2:$G$48,2,FALSE)+ROW()-2))=Rebalance!$D$53,INDIRECT(\"a\" & (VLOOKUP(Rebalance!$D$53,$F$2:$G$48,2,FALSE)+ROW()-2)),\"\")","v":{"$error":"#N/A"}},{"$f":"IF(INDIRECT(\"c\" & (VLOOKUP(Rebalance!$D$54,$F$2:$G$48,2,FALSE)+ROW()-2))=Rebalance!$D$54,INDIRECT(\"a\" & (VLOOKUP(Rebalance!$D$54,$F$2:$G$48,2,FALSE)+ROW()-2)),\"\")","v":{"$error":"#N/A"}},{"$f":"IF(INDIRECT(\"c\" & (VLOOKUP(Rebalance!$D$55,$F$2:$G$48,2,FALSE)+ROW()-2))=Rebalance!$D$55,INDIRECT(\"a\" & (VLOOKUP(Rebalance!$D$55,$F$2:$G$48,2,FALSE)+ROW()-2)),\"\")","v":{"$error":"#N/A"}},{"$f":"IF(INDIRECT(\"c\" & (VLOOKUP(Rebalance!$D$56,$F$2:$G$48,2,FALSE)+ROW()-2))=Rebalance!$D$56,INDIRECT(\"a\" & (VLOOKUP(Rebalance!$D$56,$F$2:$G$48,2,FALSE)+ROW()-2)),\"\")","v":{"$error":"#N/A"}},{"$f":"IF(INDIRECT(\"c\" & (VLOOKUP(Rebalance!$D$57,$F$2:$G$48,2,FALSE)+ROW()-2))=Rebalance!$D$57,INDIRECT(\"a\" & (VLOOKUP(Rebalance!$D$57,$F$2:$G$48,2,FALSE)+ROW()-2)),\"\")","v":{"$error":"#N/A"}},{"$f":"IF(INDIRECT(\"c\" & (VLOOKUP(Rebalance!$D$58,$F$2:$G$48,2,FALSE)+ROW()-2))=Rebalance!$D$58,INDIRECT(\"a\" & (VLOOKUP(Rebalance!$D$58,$F$2:$G$48,2,FALSE)+ROW()-2)),\"\")","v":{"$error":"#N/A"}},{"$f":"IF(INDIRECT(\"c\" & (VLOOKUP(Rebalance!$D$59,$F$2:$G$48,2,FALSE)+ROW()-2))=Rebalance!$D$59,INDIRECT(\"a\" & (VLOOKUP(Rebalance!$D$59,$F$2:$G$48,2,FALSE)+ROW()-2)),\"\")","v":{"$error":"#N/A"}},{"$f":"IF(INDIRECT(\"c\" & (VLOOKUP(Rebalance!$D$60,$F$2:$G$48,2,FALSE)+ROW()-2))=Rebalance!$D$60,INDIRECT(\"a\" & (VLOOKUP(Rebalance!$D$60,$F$2:$G$48,2,FALSE)+ROW()-2)),\"\")","v":{"$error":"#N/A"}},{"$f":"IF(INDIRECT(\"c\" & (VLOOKUP(Rebalance!$D$61,$F$2:$G$48,2,FALSE)+ROW()-2))=Rebalance!$D$61,INDIRECT(\"a\" & (VLOOKUP(Rebalance!$D$61,$F$2:$G$48,2,FALSE)+ROW()-2)),\"\")","v":{"$error":"#N/A"}},{"$f":"IF(INDIRECT(\"c\" & (VLOOKUP(Rebalance!$D$62,$F$2:$G$48,2,FALSE)+ROW()-2))=Rebalance!$D$62,INDIRECT(\"a\" & (VLOOKUP(Rebalance!$D$62,$F$2:$G$48,2,FALSE)+ROW()-2)),\"\")","v":{"$error":"#N/A"}},{"$f":"IF(INDIRECT(\"c\" & (VLOOKUP(Rebalance!$D$63,$F$2:$G$48,2,FALSE)+ROW()-2))=Rebalance!$D$63,INDIRECT(\"a\" & (VLOOKUP(Rebalance!$D$63,$F$2:$G$48,2,FALSE)+ROW()-2)),\"\")","v":{"$error":"#N/A"}},{"$f":"IF(INDIRECT(\"c\" & (VLOOKUP(Rebalance!$D$64,$F$2:$G$48,2,FALSE)+ROW()-2))=Rebalance!$D$64,INDIRECT(\"a\" & (VLOOKUP(Rebalance!$D$64,$F$2:$G$48,2,FALSE)+ROW()-2)),\"\")","v":{"$error":"#N/A"}},{"$f":"IF(INDIRECT(\"c\" & (VLOOKUP(Rebalance!$D$65,$F$2:$G$48,2,FALSE)+ROW()-2))=Rebalance!$D$65,INDIRECT(\"a\" & (VLOOKUP(Rebalance!$D$65,$F$2:$G$48,2,FALSE)+ROW()-2)),\"\")","v":{"$error":"#N/A"}},{"$f":"IF(INDIRECT(\"c\" & (VLOOKUP(Rebalance!$D$66,$F$2:$G$48,2,FALSE)+ROW()-2))=Rebalance!$D$66,INDIRECT(\"a\" & (VLOOKUP(Rebalance!$D$66,$F$2:$G$48,2,FALSE)+ROW()-2)),\"\")","v":{"$error":"#N/A"}}]
["Lynx SCI Opportunities FoF C2","RWOCA","Sanlam Collective Investments",{"$f":"ROW()","v":518},null,null,{"$f":"VLOOKUP(F518,$C$2:$D$599,2,FALSE)","v":{"$error":"#N/A"}},{"$f":"IF(INDIRECT(\"c\" & (VLOOKUP(Rebalance!$D$26,$F$2:$G$48,2,FALSE)+ROW()-2))=Rebalance!$D$26,INDIRECT(\"a\" & (VLOOKUP(Rebalance!$D$26,$F$2:$G$48,2,FALSE)+ROW()-2)),\"\")","v":{"$error":"#N/A"}},{"$f":"IF(INDIRECT(\"c\" & (VLOOKUP(Rebalance!$D$27,$F$2:$G$48,2,FALSE)+ROW()-2))=Rebalance!$D$27,INDIRECT(\"a\" & (VLOOKUP(Rebalance!$D$27,$F$2:$G$48,2,FALSE)+ROW()-2)),\"\")","v":{"$error":"#N/A"}},{"$f":"IF(INDIRECT(\"c\" & (VLOOKUP(Rebalance!$D$28,$F$2:$G$48,2,FALSE)+ROW()-2))=Rebalance!$D$28,INDIRECT(\"a\" & (VLOOKUP(Rebalance!$D$28,$F$2:$G$48,2,FALSE)+ROW()-2)),\"\")","v":{"$error":"#N/A"}},{"$f":"IF(INDIRECT(\"c\" & (VLOOKUP(Rebalance!$D$29,$F$2:$G$48,2,FALSE)+ROW()-2))=Rebalance!$D$29,INDIRECT(\"a\" & (VLOOKUP(Rebalance!$D$29,$F$2:$G$48,2,FALSE)+ROW()-2)),\"\")","v":{"$error":"#N/A"}},{"$f":"IF(INDIRECT(\"c\" & (VLOOKUP(Rebalance!$D$30,$F$2:$G$48,2,FALSE)+ROW()-2))=Rebalance!$D$30,INDIRECT(\"a\" & (VLOOKUP(Rebalance!$D$30,$F$2:$G$48,2,FALSE)+ROW()-2)),\"\")","v":{"$error":"#N/A"}},{"$f":"IF(INDIRECT(\"c\" & (VLOOKUP(Rebalance!$D$31,$F$2:$G$48,2,FALSE)+ROW()-2))=Rebalance!$D$31,INDIRECT(\"a\" & (VLOOKUP(Rebalance!$D$31,$F$2:$G$48,2,FALSE)+ROW()-2)),\"\")","v":{"$error":"#N/A"}},{"$f":"IF(INDIRECT(\"c\" & (VLOOKUP(Rebalance!$D$32,$F$2:$G$48,2,FALSE)+ROW()-2))=Rebalance!$D$32,INDIRECT(\"a\" & (VLOOKUP(Rebalance!$D$32,$F$2:$G$48,2,FALSE)+ROW()-2)),\"\")","v":{"$error":"#N/A"}},{"$f":"IF(INDIRECT(\"c\" & (VLOOKUP(Rebalance!$D$33,$F$2:$G$48,2,FALSE)+ROW()-2))=Rebalance!$D$33,INDIRECT(\"a\" & (VLOOKUP(Rebalance!$D$33,$F$2:$G$48,2,FALSE)+ROW()-2)),\"\")","v":{"$error":"#N/A"}},{"$f":"IF(INDIRECT(\"c\" & (VLOOKUP(Rebalance!$D$34,$F$2:$G$48,2,FALSE)+ROW()-2))=Rebalance!$D$34,INDIRECT(\"a\" & (VLOOKUP(Rebalance!$D$34,$F$2:$G$48,2,FALSE)+ROW()-2)),\"\")","v":{"$error":"#N/A"}},{"$f":"IF(INDIRECT(\"c\" & (VLOOKUP(Rebalance!$D$35,$F$2:$G$48,2,FALSE)+ROW()-2))=Rebalance!$D$35,INDIRECT(\"a\" & (VLOOKUP(Rebalance!$D$35,$F$2:$G$48,2,FALSE)+ROW()-2)),\"\")","v":{"$error":"#N/A"}},{"$f":"IF(INDIRECT(\"c\" & (VLOOKUP(Rebalance!$D$36,$F$2:$G$48,2,FALSE)+ROW()-2))=Rebalance!$D$36,INDIRECT(\"a\" & (VLOOKUP(Rebalance!$D$36,$F$2:$G$48,2,FALSE)+ROW()-2)),\"\")","v":{"$error":"#N/A"}},{"$f":"IF(INDIRECT(\"c\" & (VLOOKUP(Rebalance!$D$37,$F$2:$G$48,2,FALSE)+ROW()-2))=Rebalance!$D$37,INDIRECT(\"a\" & (VLOOKUP(Rebalance!$D$37,$F$2:$G$48,2,FALSE)+ROW()-2)),\"\")","v":{"$error":"#N/A"}},{"$f":"IF(INDIRECT(\"c\" & (VLOOKUP(Rebalance!$D$38,$F$2:$G$48,2,FALSE)+ROW()-2))=Rebalance!$D$38,INDIRECT(\"a\" & (VLOOKUP(Rebalance!$D$38,$F$2:$G$48,2,FALSE)+ROW()-2)),\"\")","v":{"$error":"#N/A"}},{"$f":"IF(INDIRECT(\"c\" & (VLOOKUP(Rebalance!$D$39,$F$2:$G$48,2,FALSE)+ROW()-2))=Rebalance!$D$39,INDIRECT(\"a\" & (VLOOKUP(Rebalance!$D$39,$F$2:$G$48,2,FALSE)+ROW()-2)),\"\")","v":{"$error":"#N/A"}},{"$f":"IF(INDIRECT(\"c\" & (VLOOKUP(Rebalance!$D$40,$F$2:$G$48,2,FALSE)+ROW()-2))=Rebalance!$D$40,INDIRECT(\"a\" & (VLOOKUP(Rebalance!$D$40,$F$2:$G$48,2,FALSE)+ROW()-2)),\"\")","v":{"$error":"#N/A"}},{"$f":"IF(INDIRECT(\"c\" & (VLOOKUP(Rebalance!$D$52,$F$2:$G$48,2,FALSE)+ROW()-2))=Rebalance!$D$52,INDIRECT(\"a\" & (VLOOKUP(Rebalance!$D$52,$F$2:$G$48,2,FALSE)+ROW()-2)),\"\")","v":{"$error":"#N/A"}},{"$f":"IF(INDIRECT(\"c\" & (VLOOKUP(Rebalance!$D$53,$F$2:$G$48,2,FALSE)+ROW()-2))=Rebalance!$D$53,INDIRECT(\"a\" & (VLOOKUP(Rebalance!$D$53,$F$2:$G$48,2,FALSE)+ROW()-2)),\"\")","v":{"$error":"#N/A"}},{"$f":"IF(INDIRECT(\"c\" & (VLOOKUP(Rebalance!$D$54,$F$2:$G$48,2,FALSE)+ROW()-2))=Rebalance!$D$54,INDIRECT(\"a\" & (VLOOKUP(Rebalance!$D$54,$F$2:$G$48,2,FALSE)+ROW()-2)),\"\")","v":{"$error":"#N/A"}},{"$f":"IF(INDIRECT(\"c\" & (VLOOKUP(Rebalance!$D$55,$F$2:$G$48,2,FALSE)+ROW()-2))=Rebalance!$D$55,INDIRECT(\"a\" & (VLOOKUP(Rebalance!$D$55,$F$2:$G$48,2,FALSE)+ROW()-2)),\"\")","v":{"$error":"#N/A"}},{"$f":"IF(INDIRECT(\"c\" & (VLOOKUP(Rebalance!$D$56,$F$2:$G$48,2,FALSE)+ROW()-2))=Rebalance!$D$56,INDIRECT(\"a\" & (VLOOKUP(Rebalance!$D$56,$F$2:$G$48,2,FALSE)+ROW()-2)),\"\")","v":{"$error":"#N/A"}},{"$f":"IF(INDIRECT(\"c\" & (VLOOKUP(Rebalance!$D$57,$F$2:$G$48,2,FALSE)+ROW()-2))=Rebalance!$D$57,INDIRECT(\"a\" & (VLOOKUP(Rebalance!$D$57,$F$2:$G$48,2,FALSE)+ROW()-2)),\"\")","v":{"$error":"#N/A"}},{"$f":"IF(INDIRECT(\"c\" & (VLOOKUP(Rebalance!$D$58,$F$2:$G$48,2,FALSE)+ROW()-2))=Rebalance!$D$58,INDIRECT(\"a\" & (VLOOKUP(Rebalance!$D$58,$F$2:$G$48,2,FALSE)+ROW()-2)),\"\")","v":{"$error":"#N/A"}},{"$f":"IF(INDIRECT(\"c\" & (VLOOKUP(Rebalance!$D$59,$F$2:$G$48,2,FALSE)+ROW()-2))=Rebalance!$D$59,INDIRECT(\"a\" & (VLOOKUP(Rebalance!$D$59,$F$2:$G$48,2,FALSE)+ROW()-2)),\"\")","v":{"$error":"#N/A"}},{"$f":"IF(INDIRECT(\"c\" & (VLOOKUP(Rebalance!$D$60,$F$2:$G$48,2,FALSE)+ROW()-2))=Rebalance!$D$60,INDIRECT(\"a\" & (VLOOKUP(Rebalance!$D$60,$F$2:$G$48,2,FALSE)+ROW()-2)),\"\")","v":{"$error":"#N/A"}},{"$f":"IF(INDIRECT(\"c\" & (VLOOKUP(Rebalance!$D$61,$F$2:$G$48,2,FALSE)+ROW()-2))=Rebalance!$D$61,INDIRECT(\"a\" & (VLOOKUP(Rebalance!$D$61,$F$2:$G$48,2,FALSE)+ROW()-2)),\"\")","v":{"$error":"#N/A"}},{"$f":"IF(INDIRECT(\"c\" & (VLOOKUP(Rebalance!$D$62,$F$2:$G$48,2,FALSE)+ROW()-2))=Rebalance!$D$62,INDIRECT(\"a\" & (VLOOKUP(Rebalance!$D$62,$F$2:$G$48,2,FALSE)+ROW()-2)),\"\")","v":{"$error":"#N/A"}},{"$f":"IF(INDIRECT(\"c\" & (VLOOKUP(Rebalance!$D$63,$F$2:$G$48,2,FALSE)+ROW()-2))=Rebalance!$D$63,INDIRECT(\"a\" & (VLOOKUP(Rebalance!$D$63,$F$2:$G$48,2,FALSE)+ROW()-2)),\"\")","v":{"$error":"#N/A"}},{"$f":"IF(INDIRECT(\"c\" & (VLOOKUP(Rebalance!$D$64,$F$2:$G$48,2,FALSE)+ROW()-2))=Rebalance!$D$64,INDIRECT(\"a\" & (VLOOKUP(Rebalance!$D$64,$F$2:$G$48,2,FALSE)+ROW()-2)),\"\")","v":{"$error":"#N/A"}},{"$f":"IF(INDIRECT(\"c\" & (VLOOKUP(Rebalance!$D$65,$F$2:$G$48,2,FALSE)+ROW()-2))=Rebalance!$D$65,INDIRECT(\"a\" & (VLOOKUP(Rebalance!$D$65,$F$2:$G$48,2,FALSE)+ROW()-2)),\"\")","v":{"$error":"#N/A"}},{"$f":"IF(INDIRECT(\"c\" & (VLOOKUP(Rebalance!$D$66,$F$2:$G$48,2,FALSE)+ROW()-2))=Rebalance!$D$66,INDIRECT(\"a\" & (VLOOKUP(Rebalance!$D$66,$F$2:$G$48,2,FALSE)+ROW()-2)),\"\")","v":{"$error":"#N/A"}}]
["Amplify Sanlam Collective Investments Defensive Balanced Fund B3","SPLB3","Sanlam Collective Investments",{"$f":"ROW()","v":519},null,null,{"$f":"VLOOKUP(F519,$C$2:$D$599,2,FALSE)","v":{"$error":"#N/A"}},{"$f":"IF(INDIRECT(\"c\" & (VLOOKUP(Rebalance!$D$26,$F$2:$G$48,2,FALSE)+ROW()-2))=Rebalance!$D$26,INDIRECT(\"a\" & (VLOOKUP(Rebalance!$D$26,$F$2:$G$48,2,FALSE)+ROW()-2)),\"\")","v":{"$error":"#N/A"}},{"$f":"IF(INDIRECT(\"c\" & (VLOOKUP(Rebalance!$D$27,$F$2:$G$48,2,FALSE)+ROW()-2))=Rebalance!$D$27,INDIRECT(\"a\" & (VLOOKUP(Rebalance!$D$27,$F$2:$G$48,2,FALSE)+ROW()-2)),\"\")","v":{"$error":"#N/A"}},{"$f":"IF(INDIRECT(\"c\" & (VLOOKUP(Rebalance!$D$28,$F$2:$G$48,2,FALSE)+ROW()-2))=Rebalance!$D$28,INDIRECT(\"a\" & (VLOOKUP(Rebalance!$D$28,$F$2:$G$48,2,FALSE)+ROW()-2)),\"\")","v":{"$error":"#N/A"}},{"$f":"IF(INDIRECT(\"c\" & (VLOOKUP(Rebalance!$D$29,$F$2:$G$48,2,FALSE)+ROW()-2))=Rebalance!$D$29,INDIRECT(\"a\" & (VLOOKUP(Rebalance!$D$29,$F$2:$G$48,2,FALSE)+ROW()-2)),\"\")","v":{"$error":"#N/A"}},{"$f":"IF(INDIRECT(\"c\" & (VLOOKUP(Rebalance!$D$30,$F$2:$G$48,2,FALSE)+ROW()-2))=Rebalance!$D$30,INDIRECT(\"a\" & (VLOOKUP(Rebalance!$D$30,$F$2:$G$48,2,FALSE)+ROW()-2)),\"\")","v":{"$error":"#N/A"}},{"$f":"IF(INDIRECT(\"c\" & (VLOOKUP(Rebalance!$D$31,$F$2:$G$48,2,FALSE)+ROW()-2))=Rebalance!$D$31,INDIRECT(\"a\" & (VLOOKUP(Rebalance!$D$31,$F$2:$G$48,2,FALSE)+ROW()-2)),\"\")","v":{"$error":"#N/A"}},{"$f":"IF(INDIRECT(\"c\" & (VLOOKUP(Rebalance!$D$32,$F$2:$G$48,2,FALSE)+ROW()-2))=Rebalance!$D$32,INDIRECT(\"a\" & (VLOOKUP(Rebalance!$D$32,$F$2:$G$48,2,FALSE)+ROW()-2)),\"\")","v":{"$error":"#N/A"}},{"$f":"IF(INDIRECT(\"c\" & (VLOOKUP(Rebalance!$D$33,$F$2:$G$48,2,FALSE)+ROW()-2))=Rebalance!$D$33,INDIRECT(\"a\" & (VLOOKUP(Rebalance!$D$33,$F$2:$G$48,2,FALSE)+ROW()-2)),\"\")","v":{"$error":"#N/A"}},{"$f":"IF(INDIRECT(\"c\" & (VLOOKUP(Rebalance!$D$34,$F$2:$G$48,2,FALSE)+ROW()-2))=Rebalance!$D$34,INDIRECT(\"a\" & (VLOOKUP(Rebalance!$D$34,$F$2:$G$48,2,FALSE)+ROW()-2)),\"\")","v":{"$error":"#N/A"}},{"$f":"IF(INDIRECT(\"c\" & (VLOOKUP(Rebalance!$D$35,$F$2:$G$48,2,FALSE)+ROW()-2))=Rebalance!$D$35,INDIRECT(\"a\" & (VLOOKUP(Rebalance!$D$35,$F$2:$G$48,2,FALSE)+ROW()-2)),\"\")","v":{"$error":"#N/A"}},{"$f":"IF(INDIRECT(\"c\" & (VLOOKUP(Rebalance!$D$36,$F$2:$G$48,2,FALSE)+ROW()-2))=Rebalance!$D$36,INDIRECT(\"a\" & (VLOOKUP(Rebalance!$D$36,$F$2:$G$48,2,FALSE)+ROW()-2)),\"\")","v":{"$error":"#N/A"}},{"$f":"IF(INDIRECT(\"c\" & (VLOOKUP(Rebalance!$D$37,$F$2:$G$48,2,FALSE)+ROW()-2))=Rebalance!$D$37,INDIRECT(\"a\" & (VLOOKUP(Rebalance!$D$37,$F$2:$G$48,2,FALSE)+ROW()-2)),\"\")","v":{"$error":"#N/A"}},{"$f":"IF(INDIRECT(\"c\" & (VLOOKUP(Rebalance!$D$38,$F$2:$G$48,2,FALSE)+ROW()-2))=Rebalance!$D$38,INDIRECT(\"a\" & (VLOOKUP(Rebalance!$D$38,$F$2:$G$48,2,FALSE)+ROW()-2)),\"\")","v":{"$error":"#N/A"}},{"$f":"IF(INDIRECT(\"c\" & (VLOOKUP(Rebalance!$D$39,$F$2:$G$48,2,FALSE)+ROW()-2))=Rebalance!$D$39,INDIRECT(\"a\" & (VLOOKUP(Rebalance!$D$39,$F$2:$G$48,2,FALSE)+ROW()-2)),\"\")","v":{"$error":"#N/A"}},{"$f":"IF(INDIRECT(\"c\" & (VLOOKUP(Rebalance!$D$40,$F$2:$G$48,2,FALSE)+ROW()-2))=Rebalance!$D$40,INDIRECT(\"a\" & (VLOOKUP(Rebalance!$D$40,$F$2:$G$48,2,FALSE)+ROW()-2)),\"\")","v":{"$error":"#N/A"}},{"$f":"IF(INDIRECT(\"c\" & (VLOOKUP(Rebalance!$D$52,$F$2:$G$48,2,FALSE)+ROW()-2))=Rebalance!$D$52,INDIRECT(\"a\" & (VLOOKUP(Rebalance!$D$52,$F$2:$G$48,2,FALSE)+ROW()-2)),\"\")","v":{"$error":"#N/A"}},{"$f":"IF(INDIRECT(\"c\" & (VLOOKUP(Rebalance!$D$53,$F$2:$G$48,2,FALSE)+ROW()-2))=Rebalance!$D$53,INDIRECT(\"a\" & (VLOOKUP(Rebalance!$D$53,$F$2:$G$48,2,FALSE)+ROW()-2)),\"\")","v":{"$error":"#N/A"}},{"$f":"IF(INDIRECT(\"c\" & (VLOOKUP(Rebalance!$D$54,$F$2:$G$48,2,FALSE)+ROW()-2))=Rebalance!$D$54,INDIRECT(\"a\" & (VLOOKUP(Rebalance!$D$54,$F$2:$G$48,2,FALSE)+ROW()-2)),\"\")","v":{"$error":"#N/A"}},{"$f":"IF(INDIRECT(\"c\" & (VLOOKUP(Rebalance!$D$55,$F$2:$G$48,2,FALSE)+ROW()-2))=Rebalance!$D$55,INDIRECT(\"a\" & (VLOOKUP(Rebalance!$D$55,$F$2:$G$48,2,FALSE)+ROW()-2)),\"\")","v":{"$error":"#N/A"}},{"$f":"IF(INDIRECT(\"c\" & (VLOOKUP(Rebalance!$D$56,$F$2:$G$48,2,FALSE)+ROW()-2))=Rebalance!$D$56,INDIRECT(\"a\" & (VLOOKUP(Rebalance!$D$56,$F$2:$G$48,2,FALSE)+ROW()-2)),\"\")","v":{"$error":"#N/A"}},{"$f":"IF(INDIRECT(\"c\" & (VLOOKUP(Rebalance!$D$57,$F$2:$G$48,2,FALSE)+ROW()-2))=Rebalance!$D$57,INDIRECT(\"a\" & (VLOOKUP(Rebalance!$D$57,$F$2:$G$48,2,FALSE)+ROW()-2)),\"\")","v":{"$error":"#N/A"}},{"$f":"IF(INDIRECT(\"c\" & (VLOOKUP(Rebalance!$D$58,$F$2:$G$48,2,FALSE)+ROW()-2))=Rebalance!$D$58,INDIRECT(\"a\" & (VLOOKUP(Rebalance!$D$58,$F$2:$G$48,2,FALSE)+ROW()-2)),\"\")","v":{"$error":"#N/A"}},{"$f":"IF(INDIRECT(\"c\" & (VLOOKUP(Rebalance!$D$59,$F$2:$G$48,2,FALSE)+ROW()-2))=Rebalance!$D$59,INDIRECT(\"a\" & (VLOOKUP(Rebalance!$D$59,$F$2:$G$48,2,FALSE)+ROW()-2)),\"\")","v":{"$error":"#N/A"}},{"$f":"IF(INDIRECT(\"c\" & (VLOOKUP(Rebalance!$D$60,$F$2:$G$48,2,FALSE)+ROW()-2))=Rebalance!$D$60,INDIRECT(\"a\" & (VLOOKUP(Rebalance!$D$60,$F$2:$G$48,2,FALSE)+ROW()-2)),\"\")","v":{"$error":"#N/A"}},{"$f":"IF(INDIRECT(\"c\" & (VLOOKUP(Rebalance!$D$61,$F$2:$G$48,2,FALSE)+ROW()-2))=Rebalance!$D$61,INDIRECT(\"a\" & (VLOOKUP(Rebalance!$D$61,$F$2:$G$48,2,FALSE)+ROW()-2)),\"\")","v":{"$error":"#N/A"}},{"$f":"IF(INDIRECT(\"c\" & (VLOOKUP(Rebalance!$D$62,$F$2:$G$48,2,FALSE)+ROW()-2))=Rebalance!$D$62,INDIRECT(\"a\" & (VLOOKUP(Rebalance!$D$62,$F$2:$G$48,2,FALSE)+ROW()-2)),\"\")","v":{"$error":"#N/A"}},{"$f":"IF(INDIRECT(\"c\" & (VLOOKUP(Rebalance!$D$63,$F$2:$G$48,2,FALSE)+ROW()-2))=Rebalance!$D$63,INDIRECT(\"a\" & (VLOOKUP(Rebalance!$D$63,$F$2:$G$48,2,FALSE)+ROW()-2)),\"\")","v":{"$error":"#N/A"}},{"$f":"IF(INDIRECT(\"c\" & (VLOOKUP(Rebalance!$D$64,$F$2:$G$48,2,FALSE)+ROW()-2))=Rebalance!$D$64,INDIRECT(\"a\" & (VLOOKUP(Rebalance!$D$64,$F$2:$G$48,2,FALSE)+ROW()-2)),\"\")","v":{"$error":"#N/A"}},{"$f":"IF(INDIRECT(\"c\" & (VLOOKUP(Rebalance!$D$65,$F$2:$G$48,2,FALSE)+ROW()-2))=Rebalance!$D$65,INDIRECT(\"a\" & (VLOOKUP(Rebalance!$D$65,$F$2:$G$48,2,FALSE)+ROW()-2)),\"\")","v":{"$error":"#N/A"}},{"$f":"IF(INDIRECT(\"c\" & (VLOOKUP(Rebalance!$D$66,$F$2:$G$48,2,FALSE)+ROW()-2))=Rebalance!$D$66,INDIRECT(\"a\" & (VLOOKUP(Rebalance!$D$66,$F$2:$G$48,2,FALSE)+ROW()-2)),\"\")","v":{"$error":"#N/A"}}]
["Sanlam Asia Pacific FoF","SANA","Sanlam Collective Investments",{"$f":"ROW()","v":520},null,null,{"$f":"VLOOKUP(F520,$C$2:$D$599,2,FALSE)","v":{"$error":"#N/A"}},{"$f":"IF(INDIRECT(\"c\" & (VLOOKUP(Rebalance!$D$26,$F$2:$G$48,2,FALSE)+ROW()-2))=Rebalance!$D$26,INDIRECT(\"a\" & (VLOOKUP(Rebalance!$D$26,$F$2:$G$48,2,FALSE)+ROW()-2)),\"\")","v":{"$error":"#N/A"}},{"$f":"IF(INDIRECT(\"c\" & (VLOOKUP(Rebalance!$D$27,$F$2:$G$48,2,FALSE)+ROW()-2))=Rebalance!$D$27,INDIRECT(\"a\" & (VLOOKUP(Rebalance!$D$27,$F$2:$G$48,2,FALSE)+ROW()-2)),\"\")","v":{"$error":"#N/A"}},{"$f":"IF(INDIRECT(\"c\" & (VLOOKUP(Rebalance!$D$28,$F$2:$G$48,2,FALSE)+ROW()-2))=Rebalance!$D$28,INDIRECT(\"a\" & (VLOOKUP(Rebalance!$D$28,$F$2:$G$48,2,FALSE)+ROW()-2)),\"\")","v":{"$error":"#N/A"}},{"$f":"IF(INDIRECT(\"c\" & (VLOOKUP(Rebalance!$D$29,$F$2:$G$48,2,FALSE)+ROW()-2))=Rebalance!$D$29,INDIRECT(\"a\" & (VLOOKUP(Rebalance!$D$29,$F$2:$G$48,2,FALSE)+ROW()-2)),\"\")","v":{"$error":"#N/A"}},{"$f":"IF(INDIRECT(\"c\" & (VLOOKUP(Rebalance!$D$30,$F$2:$G$48,2,FALSE)+ROW()-2))=Rebalance!$D$30,INDIRECT(\"a\" & (VLOOKUP(Rebalance!$D$30,$F$2:$G$48,2,FALSE)+ROW()-2)),\"\")","v":{"$error":"#N/A"}},{"$f":"IF(INDIRECT(\"c\" & (VLOOKUP(Rebalance!$D$31,$F$2:$G$48,2,FALSE)+ROW()-2))=Rebalance!$D$31,INDIRECT(\"a\" & (VLOOKUP(Rebalance!$D$31,$F$2:$G$48,2,FALSE)+ROW()-2)),\"\")","v":{"$error":"#N/A"}},{"$f":"IF(INDIRECT(\"c\" & (VLOOKUP(Rebalance!$D$32,$F$2:$G$48,2,FALSE)+ROW()-2))=Rebalance!$D$32,INDIRECT(\"a\" & (VLOOKUP(Rebalance!$D$32,$F$2:$G$48,2,FALSE)+ROW()-2)),\"\")","v":{"$error":"#N/A"}},{"$f":"IF(INDIRECT(\"c\" & (VLOOKUP(Rebalance!$D$33,$F$2:$G$48,2,FALSE)+ROW()-2))=Rebalance!$D$33,INDIRECT(\"a\" & (VLOOKUP(Rebalance!$D$33,$F$2:$G$48,2,FALSE)+ROW()-2)),\"\")","v":{"$error":"#N/A"}},{"$f":"IF(INDIRECT(\"c\" & (VLOOKUP(Rebalance!$D$34,$F$2:$G$48,2,FALSE)+ROW()-2))=Rebalance!$D$34,INDIRECT(\"a\" & (VLOOKUP(Rebalance!$D$34,$F$2:$G$48,2,FALSE)+ROW()-2)),\"\")","v":{"$error":"#N/A"}},{"$f":"IF(INDIRECT(\"c\" & (VLOOKUP(Rebalance!$D$35,$F$2:$G$48,2,FALSE)+ROW()-2))=Rebalance!$D$35,INDIRECT(\"a\" & (VLOOKUP(Rebalance!$D$35,$F$2:$G$48,2,FALSE)+ROW()-2)),\"\")","v":{"$error":"#N/A"}},{"$f":"IF(INDIRECT(\"c\" & (VLOOKUP(Rebalance!$D$36,$F$2:$G$48,2,FALSE)+ROW()-2))=Rebalance!$D$36,INDIRECT(\"a\" & (VLOOKUP(Rebalance!$D$36,$F$2:$G$48,2,FALSE)+ROW()-2)),\"\")","v":{"$error":"#N/A"}},{"$f":"IF(INDIRECT(\"c\" & (VLOOKUP(Rebalance!$D$37,$F$2:$G$48,2,FALSE)+ROW()-2))=Rebalance!$D$37,INDIRECT(\"a\" & (VLOOKUP(Rebalance!$D$37,$F$2:$G$48,2,FALSE)+ROW()-2)),\"\")","v":{"$error":"#N/A"}},{"$f":"IF(INDIRECT(\"c\" & (VLOOKUP(Rebalance!$D$38,$F$2:$G$48,2,FALSE)+ROW()-2))=Rebalance!$D$38,INDIRECT(\"a\" & (VLOOKUP(Rebalance!$D$38,$F$2:$G$48,2,FALSE)+ROW()-2)),\"\")","v":{"$error":"#N/A"}},{"$f":"IF(INDIRECT(\"c\" & (VLOOKUP(Rebalance!$D$39,$F$2:$G$48,2,FALSE)+ROW()-2))=Rebalance!$D$39,INDIRECT(\"a\" & (VLOOKUP(Rebalance!$D$39,$F$2:$G$48,2,FALSE)+ROW()-2)),\"\")","v":{"$error":"#N/A"}},{"$f":"IF(INDIRECT(\"c\" & (VLOOKUP(Rebalance!$D$40,$F$2:$G$48,2,FALSE)+ROW()-2))=Rebalance!$D$40,INDIRECT(\"a\" & (VLOOKUP(Rebalance!$D$40,$F$2:$G$48,2,FALSE)+ROW()-2)),\"\")","v":{"$error":"#N/A"}},{"$f":"IF(INDIRECT(\"c\" & (VLOOKUP(Rebalance!$D$52,$F$2:$G$48,2,FALSE)+ROW()-2))=Rebalance!$D$52,INDIRECT(\"a\" & (VLOOKUP(Rebalance!$D$52,$F$2:$G$48,2,FALSE)+ROW()-2)),\"\")","v":{"$error":"#N/A"}},{"$f":"IF(INDIRECT(\"c\" & (VLOOKUP(Rebalance!$D$53,$F$2:$G$48,2,FALSE)+ROW()-2))=Rebalance!$D$53,INDIRECT(\"a\" & (VLOOKUP(Rebalance!$D$53,$F$2:$G$48,2,FALSE)+ROW()-2)),\"\")","v":{"$error":"#N/A"}},{"$f":"IF(INDIRECT(\"c\" & (VLOOKUP(Rebalance!$D$54,$F$2:$G$48,2,FALSE)+ROW()-2))=Rebalance!$D$54,INDIRECT(\"a\" & (VLOOKUP(Rebalance!$D$54,$F$2:$G$48,2,FALSE)+ROW()-2)),\"\")","v":{"$error":"#N/A"}},{"$f":"IF(INDIRECT(\"c\" & (VLOOKUP(Rebalance!$D$55,$F$2:$G$48,2,FALSE)+ROW()-2))=Rebalance!$D$55,INDIRECT(\"a\" & (VLOOKUP(Rebalance!$D$55,$F$2:$G$48,2,FALSE)+ROW()-2)),\"\")","v":{"$error":"#N/A"}},{"$f":"IF(INDIRECT(\"c\" & (VLOOKUP(Rebalance!$D$56,$F$2:$G$48,2,FALSE)+ROW()-2))=Rebalance!$D$56,INDIRECT(\"a\" & (VLOOKUP(Rebalance!$D$56,$F$2:$G$48,2,FALSE)+ROW()-2)),\"\")","v":{"$error":"#N/A"}},{"$f":"IF(INDIRECT(\"c\" & (VLOOKUP(Rebalance!$D$57,$F$2:$G$48,2,FALSE)+ROW()-2))=Rebalance!$D$57,INDIRECT(\"a\" & (VLOOKUP(Rebalance!$D$57,$F$2:$G$48,2,FALSE)+ROW()-2)),\"\")","v":{"$error":"#N/A"}},{"$f":"IF(INDIRECT(\"c\" & (VLOOKUP(Rebalance!$D$58,$F$2:$G$48,2,FALSE)+ROW()-2))=Rebalance!$D$58,INDIRECT(\"a\" & (VLOOKUP(Rebalance!$D$58,$F$2:$G$48,2,FALSE)+ROW()-2)),\"\")","v":{"$error":"#N/A"}},{"$f":"IF(INDIRECT(\"c\" & (VLOOKUP(Rebalance!$D$59,$F$2:$G$48,2,FALSE)+ROW()-2))=Rebalance!$D$59,INDIRECT(\"a\" & (VLOOKUP(Rebalance!$D$59,$F$2:$G$48,2,FALSE)+ROW()-2)),\"\")","v":{"$error":"#N/A"}},{"$f":"IF(INDIRECT(\"c\" & (VLOOKUP(Rebalance!$D$60,$F$2:$G$48,2,FALSE)+ROW()-2))=Rebalance!$D$60,INDIRECT(\"a\" & (VLOOKUP(Rebalance!$D$60,$F$2:$G$48,2,FALSE)+ROW()-2)),\"\")","v":{"$error":"#N/A"}},{"$f":"IF(INDIRECT(\"c\" & (VLOOKUP(Rebalance!$D$61,$F$2:$G$48,2,FALSE)+ROW()-2))=Rebalance!$D$61,INDIRECT(\"a\" & (VLOOKUP(Rebalance!$D$61,$F$2:$G$48,2,FALSE)+ROW()-2)),\"\")","v":{"$error":"#N/A"}},{"$f":"IF(INDIRECT(\"c\" & (VLOOKUP(Rebalance!$D$62,$F$2:$G$48,2,FALSE)+ROW()-2))=Rebalance!$D$62,INDIRECT(\"a\" & (VLOOKUP(Rebalance!$D$62,$F$2:$G$48,2,FALSE)+ROW()-2)),\"\")","v":{"$error":"#N/A"}},{"$f":"IF(INDIRECT(\"c\" & (VLOOKUP(Rebalance!$D$63,$F$2:$G$48,2,FALSE)+ROW()-2))=Rebalance!$D$63,INDIRECT(\"a\" & (VLOOKUP(Rebalance!$D$63,$F$2:$G$48,2,FALSE)+ROW()-2)),\"\")","v":{"$error":"#N/A"}},{"$f":"IF(INDIRECT(\"c\" & (VLOOKUP(Rebalance!$D$64,$F$2:$G$48,2,FALSE)+ROW()-2))=Rebalance!$D$64,INDIRECT(\"a\" & (VLOOKUP(Rebalance!$D$64,$F$2:$G$48,2,FALSE)+ROW()-2)),\"\")","v":{"$error":"#N/A"}},{"$f":"IF(INDIRECT(\"c\" & (VLOOKUP(Rebalance!$D$65,$F$2:$G$48,2,FALSE)+ROW()-2))=Rebalance!$D$65,INDIRECT(\"a\" & (VLOOKUP(Rebalance!$D$65,$F$2:$G$48,2,FALSE)+ROW()-2)),\"\")","v":{"$error":"#N/A"}},{"$f":"IF(INDIRECT(\"c\" & (VLOOKUP(Rebalance!$D$66,$F$2:$G$48,2,FALSE)+ROW()-2))=Rebalance!$D$66,INDIRECT(\"a\" & (VLOOKUP(Rebalance!$D$66,$F$2:$G$48,2,FALSE)+ROW()-2)),\"\")","v":{"$error":"#N/A"}}]
["Sanlam Global Cautious FoF A","SAIA","Sanlam Collective Investments",{"$f":"ROW()","v":521},null,null,{"$f":"VLOOKUP(F521,$C$2:$D$599,2,FALSE)","v":{"$error":"#N/A"}},{"$f":"IF(INDIRECT(\"c\" & (VLOOKUP(Rebalance!$D$26,$F$2:$G$48,2,FALSE)+ROW()-2))=Rebalance!$D$26,INDIRECT(\"a\" & (VLOOKUP(Rebalance!$D$26,$F$2:$G$48,2,FALSE)+ROW()-2)),\"\")","v":{"$error":"#N/A"}},{"$f":"IF(INDIRECT(\"c\" & (VLOOKUP(Rebalance!$D$27,$F$2:$G$48,2,FALSE)+ROW()-2))=Rebalance!$D$27,INDIRECT(\"a\" & (VLOOKUP(Rebalance!$D$27,$F$2:$G$48,2,FALSE)+ROW()-2)),\"\")","v":{"$error":"#N/A"}},{"$f":"IF(INDIRECT(\"c\" & (VLOOKUP(Rebalance!$D$28,$F$2:$G$48,2,FALSE)+ROW()-2))=Rebalance!$D$28,INDIRECT(\"a\" & (VLOOKUP(Rebalance!$D$28,$F$2:$G$48,2,FALSE)+ROW()-2)),\"\")","v":{"$error":"#N/A"}},{"$f":"IF(INDIRECT(\"c\" & (VLOOKUP(Rebalance!$D$29,$F$2:$G$48,2,FALSE)+ROW()-2))=Rebalance!$D$29,INDIRECT(\"a\" & (VLOOKUP(Rebalance!$D$29,$F$2:$G$48,2,FALSE)+ROW()-2)),\"\")","v":{"$error":"#N/A"}},{"$f":"IF(INDIRECT(\"c\" & (VLOOKUP(Rebalance!$D$30,$F$2:$G$48,2,FALSE)+ROW()-2))=Rebalance!$D$30,INDIRECT(\"a\" & (VLOOKUP(Rebalance!$D$30,$F$2:$G$48,2,FALSE)+ROW()-2)),\"\")","v":{"$error":"#N/A"}},{"$f":"IF(INDIRECT(\"c\" & (VLOOKUP(Rebalance!$D$31,$F$2:$G$48,2,FALSE)+ROW()-2))=Rebalance!$D$31,INDIRECT(\"a\" & (VLOOKUP(Rebalance!$D$31,$F$2:$G$48,2,FALSE)+ROW()-2)),\"\")","v":{"$error":"#N/A"}},{"$f":"IF(INDIRECT(\"c\" & (VLOOKUP(Rebalance!$D$32,$F$2:$G$48,2,FALSE)+ROW()-2))=Rebalance!$D$32,INDIRECT(\"a\" & (VLOOKUP(Rebalance!$D$32,$F$2:$G$48,2,FALSE)+ROW()-2)),\"\")","v":{"$error":"#N/A"}},{"$f":"IF(INDIRECT(\"c\" & (VLOOKUP(Rebalance!$D$33,$F$2:$G$48,2,FALSE)+ROW()-2))=Rebalance!$D$33,INDIRECT(\"a\" & (VLOOKUP(Rebalance!$D$33,$F$2:$G$48,2,FALSE)+ROW()-2)),\"\")","v":{"$error":"#N/A"}},{"$f":"IF(INDIRECT(\"c\" & (VLOOKUP(Rebalance!$D$34,$F$2:$G$48,2,FALSE)+ROW()-2))=Rebalance!$D$34,INDIRECT(\"a\" & (VLOOKUP(Rebalance!$D$34,$F$2:$G$48,2,FALSE)+ROW()-2)),\"\")","v":{"$error":"#N/A"}},{"$f":"IF(INDIRECT(\"c\" & (VLOOKUP(Rebalance!$D$35,$F$2:$G$48,2,FALSE)+ROW()-2))=Rebalance!$D$35,INDIRECT(\"a\" & (VLOOKUP(Rebalance!$D$35,$F$2:$G$48,2,FALSE)+ROW()-2)),\"\")","v":{"$error":"#N/A"}},{"$f":"IF(INDIRECT(\"c\" & (VLOOKUP(Rebalance!$D$36,$F$2:$G$48,2,FALSE)+ROW()-2))=Rebalance!$D$36,INDIRECT(\"a\" & (VLOOKUP(Rebalance!$D$36,$F$2:$G$48,2,FALSE)+ROW()-2)),\"\")","v":{"$error":"#N/A"}},{"$f":"IF(INDIRECT(\"c\" & (VLOOKUP(Rebalance!$D$37,$F$2:$G$48,2,FALSE)+ROW()-2))=Rebalance!$D$37,INDIRECT(\"a\" & (VLOOKUP(Rebalance!$D$37,$F$2:$G$48,2,FALSE)+ROW()-2)),\"\")","v":{"$error":"#N/A"}},{"$f":"IF(INDIRECT(\"c\" & (VLOOKUP(Rebalance!$D$38,$F$2:$G$48,2,FALSE)+ROW()-2))=Rebalance!$D$38,INDIRECT(\"a\" & (VLOOKUP(Rebalance!$D$38,$F$2:$G$48,2,FALSE)+ROW()-2)),\"\")","v":{"$error":"#N/A"}},{"$f":"IF(INDIRECT(\"c\" & (VLOOKUP(Rebalance!$D$39,$F$2:$G$48,2,FALSE)+ROW()-2))=Rebalance!$D$39,INDIRECT(\"a\" & (VLOOKUP(Rebalance!$D$39,$F$2:$G$48,2,FALSE)+ROW()-2)),\"\")","v":{"$error":"#N/A"}},{"$f":"IF(INDIRECT(\"c\" & (VLOOKUP(Rebalance!$D$40,$F$2:$G$48,2,FALSE)+ROW()-2))=Rebalance!$D$40,INDIRECT(\"a\" & (VLOOKUP(Rebalance!$D$40,$F$2:$G$48,2,FALSE)+ROW()-2)),\"\")","v":{"$error":"#N/A"}},{"$f":"IF(INDIRECT(\"c\" & (VLOOKUP(Rebalance!$D$52,$F$2:$G$48,2,FALSE)+ROW()-2))=Rebalance!$D$52,INDIRECT(\"a\" & (VLOOKUP(Rebalance!$D$52,$F$2:$G$48,2,FALSE)+ROW()-2)),\"\")","v":{"$error":"#N/A"}},{"$f":"IF(INDIRECT(\"c\" & (VLOOKUP(Rebalance!$D$53,$F$2:$G$48,2,FALSE)+ROW()-2))=Rebalance!$D$53,INDIRECT(\"a\" & (VLOOKUP(Rebalance!$D$53,$F$2:$G$48,2,FALSE)+ROW()-2)),\"\")","v":{"$error":"#N/A"}},{"$f":"IF(INDIRECT(\"c\" & (VLOOKUP(Rebalance!$D$54,$F$2:$G$48,2,FALSE)+ROW()-2))=Rebalance!$D$54,INDIRECT(\"a\" & (VLOOKUP(Rebalance!$D$54,$F$2:$G$48,2,FALSE)+ROW()-2)),\"\")","v":{"$error":"#N/A"}},{"$f":"IF(INDIRECT(\"c\" & (VLOOKUP(Rebalance!$D$55,$F$2:$G$48,2,FALSE)+ROW()-2))=Rebalance!$D$55,INDIRECT(\"a\" & (VLOOKUP(Rebalance!$D$55,$F$2:$G$48,2,FALSE)+ROW()-2)),\"\")","v":{"$error":"#N/A"}},{"$f":"IF(INDIRECT(\"c\" & (VLOOKUP(Rebalance!$D$56,$F$2:$G$48,2,FALSE)+ROW()-2))=Rebalance!$D$56,INDIRECT(\"a\" & (VLOOKUP(Rebalance!$D$56,$F$2:$G$48,2,FALSE)+ROW()-2)),\"\")","v":{"$error":"#N/A"}},{"$f":"IF(INDIRECT(\"c\" & (VLOOKUP(Rebalance!$D$57,$F$2:$G$48,2,FALSE)+ROW()-2))=Rebalance!$D$57,INDIRECT(\"a\" & (VLOOKUP(Rebalance!$D$57,$F$2:$G$48,2,FALSE)+ROW()-2)),\"\")","v":{"$error":"#N/A"}},{"$f":"IF(INDIRECT(\"c\" & (VLOOKUP(Rebalance!$D$58,$F$2:$G$48,2,FALSE)+ROW()-2))=Rebalance!$D$58,INDIRECT(\"a\" & (VLOOKUP(Rebalance!$D$58,$F$2:$G$48,2,FALSE)+ROW()-2)),\"\")","v":{"$error":"#N/A"}},{"$f":"IF(INDIRECT(\"c\" & (VLOOKUP(Rebalance!$D$59,$F$2:$G$48,2,FALSE)+ROW()-2))=Rebalance!$D$59,INDIRECT(\"a\" & (VLOOKUP(Rebalance!$D$59,$F$2:$G$48,2,FALSE)+ROW()-2)),\"\")","v":{"$error":"#N/A"}},{"$f":"IF(INDIRECT(\"c\" & (VLOOKUP(Rebalance!$D$60,$F$2:$G$48,2,FALSE)+ROW()-2))=Rebalance!$D$60,INDIRECT(\"a\" & (VLOOKUP(Rebalance!$D$60,$F$2:$G$48,2,FALSE)+ROW()-2)),\"\")","v":{"$error":"#N/A"}},{"$f":"IF(INDIRECT(\"c\" & (VLOOKUP(Rebalance!$D$61,$F$2:$G$48,2,FALSE)+ROW()-2))=Rebalance!$D$61,INDIRECT(\"a\" & (VLOOKUP(Rebalance!$D$61,$F$2:$G$48,2,FALSE)+ROW()-2)),\"\")","v":{"$error":"#N/A"}},{"$f":"IF(INDIRECT(\"c\" & (VLOOKUP(Rebalance!$D$62,$F$2:$G$48,2,FALSE)+ROW()-2))=Rebalance!$D$62,INDIRECT(\"a\" & (VLOOKUP(Rebalance!$D$62,$F$2:$G$48,2,FALSE)+ROW()-2)),\"\")","v":{"$error":"#N/A"}},{"$f":"IF(INDIRECT(\"c\" & (VLOOKUP(Rebalance!$D$63,$F$2:$G$48,2,FALSE)+ROW()-2))=Rebalance!$D$63,INDIRECT(\"a\" & (VLOOKUP(Rebalance!$D$63,$F$2:$G$48,2,FALSE)+ROW()-2)),\"\")","v":{"$error":"#N/A"}},{"$f":"IF(INDIRECT(\"c\" & (VLOOKUP(Rebalance!$D$64,$F$2:$G$48,2,FALSE)+ROW()-2))=Rebalance!$D$64,INDIRECT(\"a\" & (VLOOKUP(Rebalance!$D$64,$F$2:$G$48,2,FALSE)+ROW()-2)),\"\")","v":{"$error":"#N/A"}},{"$f":"IF(INDIRECT(\"c\" & (VLOOKUP(Rebalance!$D$65,$F$2:$G$48,2,FALSE)+ROW()-2))=Rebalance!$D$65,INDIRECT(\"a\" & (VLOOKUP(Rebalance!$D$65,$F$2:$G$48,2,FALSE)+ROW()-2)),\"\")","v":{"$error":"#N/A"}},{"$f":"IF(INDIRECT(\"c\" & (VLOOKUP(Rebalance!$D$66,$F$2:$G$48,2,FALSE)+ROW()-2))=Rebalance!$D$66,INDIRECT(\"a\" & (VLOOKUP(Rebalance!$D$66,$F$2:$G$48,2,FALSE)+ROW()-2)),\"\")","v":{"$error":"#N/A"}}]
["Sanlam Global Equity R","SORT","Sanlam Collective Investments",{"$f":"ROW()","v":522},null,null,{"$f":"VLOOKUP(F522,$C$2:$D$599,2,FALSE)","v":{"$error":"#N/A"}},{"$f":"IF(INDIRECT(\"c\" & (VLOOKUP(Rebalance!$D$26,$F$2:$G$48,2,FALSE)+ROW()-2))=Rebalance!$D$26,INDIRECT(\"a\" & (VLOOKUP(Rebalance!$D$26,$F$2:$G$48,2,FALSE)+ROW()-2)),\"\")","v":{"$error":"#N/A"}},{"$f":"IF(INDIRECT(\"c\" & (VLOOKUP(Rebalance!$D$27,$F$2:$G$48,2,FALSE)+ROW()-2))=Rebalance!$D$27,INDIRECT(\"a\" & (VLOOKUP(Rebalance!$D$27,$F$2:$G$48,2,FALSE)+ROW()-2)),\"\")","v":{"$error":"#N/A"}},{"$f":"IF(INDIRECT(\"c\" & (VLOOKUP(Rebalance!$D$28,$F$2:$G$48,2,FALSE)+ROW()-2))=Rebalance!$D$28,INDIRECT(\"a\" & (VLOOKUP(Rebalance!$D$28,$F$2:$G$48,2,FALSE)+ROW()-2)),\"\")","v":{"$error":"#N/A"}},{"$f":"IF(INDIRECT(\"c\" & (VLOOKUP(Rebalance!$D$29,$F$2:$G$48,2,FALSE)+ROW()-2))=Rebalance!$D$29,INDIRECT(\"a\" & (VLOOKUP(Rebalance!$D$29,$F$2:$G$48,2,FALSE)+ROW()-2)),\"\")","v":{"$error":"#N/A"}},{"$f":"IF(INDIRECT(\"c\" & (VLOOKUP(Rebalance!$D$30,$F$2:$G$48,2,FALSE)+ROW()-2))=Rebalance!$D$30,INDIRECT(\"a\" & (VLOOKUP(Rebalance!$D$30,$F$2:$G$48,2,FALSE)+ROW()-2)),\"\")","v":{"$error":"#N/A"}},{"$f":"IF(INDIRECT(\"c\" & (VLOOKUP(Rebalance!$D$31,$F$2:$G$48,2,FALSE)+ROW()-2))=Rebalance!$D$31,INDIRECT(\"a\" & (VLOOKUP(Rebalance!$D$31,$F$2:$G$48,2,FALSE)+ROW()-2)),\"\")","v":{"$error":"#N/A"}},{"$f":"IF(INDIRECT(\"c\" & (VLOOKUP(Rebalance!$D$32,$F$2:$G$48,2,FALSE)+ROW()-2))=Rebalance!$D$32,INDIRECT(\"a\" & (VLOOKUP(Rebalance!$D$32,$F$2:$G$48,2,FALSE)+ROW()-2)),\"\")","v":{"$error":"#N/A"}},{"$f":"IF(INDIRECT(\"c\" & (VLOOKUP(Rebalance!$D$33,$F$2:$G$48,2,FALSE)+ROW()-2))=Rebalance!$D$33,INDIRECT(\"a\" & (VLOOKUP(Rebalance!$D$33,$F$2:$G$48,2,FALSE)+ROW()-2)),\"\")","v":{"$error":"#N/A"}},{"$f":"IF(INDIRECT(\"c\" & (VLOOKUP(Rebalance!$D$34,$F$2:$G$48,2,FALSE)+ROW()-2))=Rebalance!$D$34,INDIRECT(\"a\" & (VLOOKUP(Rebalance!$D$34,$F$2:$G$48,2,FALSE)+ROW()-2)),\"\")","v":{"$error":"#N/A"}},{"$f":"IF(INDIRECT(\"c\" & (VLOOKUP(Rebalance!$D$35,$F$2:$G$48,2,FALSE)+ROW()-2))=Rebalance!$D$35,INDIRECT(\"a\" & (VLOOKUP(Rebalance!$D$35,$F$2:$G$48,2,FALSE)+ROW()-2)),\"\")","v":{"$error":"#N/A"}},{"$f":"IF(INDIRECT(\"c\" & (VLOOKUP(Rebalance!$D$36,$F$2:$G$48,2,FALSE)+ROW()-2))=Rebalance!$D$36,INDIRECT(\"a\" & (VLOOKUP(Rebalance!$D$36,$F$2:$G$48,2,FALSE)+ROW()-2)),\"\")","v":{"$error":"#N/A"}},{"$f":"IF(INDIRECT(\"c\" & (VLOOKUP(Rebalance!$D$37,$F$2:$G$48,2,FALSE)+ROW()-2))=Rebalance!$D$37,INDIRECT(\"a\" & (VLOOKUP(Rebalance!$D$37,$F$2:$G$48,2,FALSE)+ROW()-2)),\"\")","v":{"$error":"#N/A"}},{"$f":"IF(INDIRECT(\"c\" & (VLOOKUP(Rebalance!$D$38,$F$2:$G$48,2,FALSE)+ROW()-2))=Rebalance!$D$38,INDIRECT(\"a\" & (VLOOKUP(Rebalance!$D$38,$F$2:$G$48,2,FALSE)+ROW()-2)),\"\")","v":{"$error":"#N/A"}},{"$f":"IF(INDIRECT(\"c\" & (VLOOKUP(Rebalance!$D$39,$F$2:$G$48,2,FALSE)+ROW()-2))=Rebalance!$D$39,INDIRECT(\"a\" & (VLOOKUP(Rebalance!$D$39,$F$2:$G$48,2,FALSE)+ROW()-2)),\"\")","v":{"$error":"#N/A"}},{"$f":"IF(INDIRECT(\"c\" & (VLOOKUP(Rebalance!$D$40,$F$2:$G$48,2,FALSE)+ROW()-2))=Rebalance!$D$40,INDIRECT(\"a\" & (VLOOKUP(Rebalance!$D$40,$F$2:$G$48,2,FALSE)+ROW()-2)),\"\")","v":{"$error":"#N/A"}},{"$f":"IF(INDIRECT(\"c\" & (VLOOKUP(Rebalance!$D$52,$F$2:$G$48,2,FALSE)+ROW()-2))=Rebalance!$D$52,INDIRECT(\"a\" & (VLOOKUP(Rebalance!$D$52,$F$2:$G$48,2,FALSE)+ROW()-2)),\"\")","v":{"$error":"#N/A"}},{"$f":"IF(INDIRECT(\"c\" & (VLOOKUP(Rebalance!$D$53,$F$2:$G$48,2,FALSE)+ROW()-2))=Rebalance!$D$53,INDIRECT(\"a\" & (VLOOKUP(Rebalance!$D$53,$F$2:$G$48,2,FALSE)+ROW()-2)),\"\")","v":{"$error":"#N/A"}},{"$f":"IF(INDIRECT(\"c\" & (VLOOKUP(Rebalance!$D$54,$F$2:$G$48,2,FALSE)+ROW()-2))=Rebalance!$D$54,INDIRECT(\"a\" & (VLOOKUP(Rebalance!$D$54,$F$2:$G$48,2,FALSE)+ROW()-2)),\"\")","v":{"$error":"#N/A"}},{"$f":"IF(INDIRECT(\"c\" & (VLOOKUP(Rebalance!$D$55,$F$2:$G$48,2,FALSE)+ROW()-2))=Rebalance!$D$55,INDIRECT(\"a\" & (VLOOKUP(Rebalance!$D$55,$F$2:$G$48,2,FALSE)+ROW()-2)),\"\")","v":{"$error":"#N/A"}},{"$f":"IF(INDIRECT(\"c\" & (VLOOKUP(Rebalance!$D$56,$F$2:$G$48,2,FALSE)+ROW()-2))=Rebalance!$D$56,INDIRECT(\"a\" & (VLOOKUP(Rebalance!$D$56,$F$2:$G$48,2,FALSE)+ROW()-2)),\"\")","v":{"$error":"#N/A"}},{"$f":"IF(INDIRECT(\"c\" & (VLOOKUP(Rebalance!$D$57,$F$2:$G$48,2,FALSE)+ROW()-2))=Rebalance!$D$57,INDIRECT(\"a\" & (VLOOKUP(Rebalance!$D$57,$F$2:$G$48,2,FALSE)+ROW()-2)),\"\")","v":{"$error":"#N/A"}},{"$f":"IF(INDIRECT(\"c\" & (VLOOKUP(Rebalance!$D$58,$F$2:$G$48,2,FALSE)+ROW()-2))=Rebalance!$D$58,INDIRECT(\"a\" & (VLOOKUP(Rebalance!$D$58,$F$2:$G$48,2,FALSE)+ROW()-2)),\"\")","v":{"$error":"#N/A"}},{"$f":"IF(INDIRECT(\"c\" & (VLOOKUP(Rebalance!$D$59,$F$2:$G$48,2,FALSE)+ROW()-2))=Rebalance!$D$59,INDIRECT(\"a\" & (VLOOKUP(Rebalance!$D$59,$F$2:$G$48,2,FALSE)+ROW()-2)),\"\")","v":{"$error":"#N/A"}},{"$f":"IF(INDIRECT(\"c\" & (VLOOKUP(Rebalance!$D$60,$F$2:$G$48,2,FALSE)+ROW()-2))=Rebalance!$D$60,INDIRECT(\"a\" & (VLOOKUP(Rebalance!$D$60,$F$2:$G$48,2,FALSE)+ROW()-2)),\"\")","v":{"$error":"#N/A"}},{"$f":"IF(INDIRECT(\"c\" & (VLOOKUP(Rebalance!$D$61,$F$2:$G$48,2,FALSE)+ROW()-2))=Rebalance!$D$61,INDIRECT(\"a\" & (VLOOKUP(Rebalance!$D$61,$F$2:$G$48,2,FALSE)+ROW()-2)),\"\")","v":{"$error":"#N/A"}},{"$f":"IF(INDIRECT(\"c\" & (VLOOKUP(Rebalance!$D$62,$F$2:$G$48,2,FALSE)+ROW()-2))=Rebalance!$D$62,INDIRECT(\"a\" & (VLOOKUP(Rebalance!$D$62,$F$2:$G$48,2,FALSE)+ROW()-2)),\"\")","v":{"$error":"#N/A"}},{"$f":"IF(INDIRECT(\"c\" & (VLOOKUP(Rebalance!$D$63,$F$2:$G$48,2,FALSE)+ROW()-2))=Rebalance!$D$63,INDIRECT(\"a\" & (VLOOKUP(Rebalance!$D$63,$F$2:$G$48,2,FALSE)+ROW()-2)),\"\")","v":{"$error":"#N/A"}},{"$f":"IF(INDIRECT(\"c\" & (VLOOKUP(Rebalance!$D$64,$F$2:$G$48,2,FALSE)+ROW()-2))=Rebalance!$D$64,INDIRECT(\"a\" & (VLOOKUP(Rebalance!$D$64,$F$2:$G$48,2,FALSE)+ROW()-2)),\"\")","v":{"$error":"#N/A"}},{"$f":"IF(INDIRECT(\"c\" & (VLOOKUP(Rebalance!$D$65,$F$2:$G$48,2,FALSE)+ROW()-2))=Rebalance!$D$65,INDIRECT(\"a\" & (VLOOKUP(Rebalance!$D$65,$F$2:$G$48,2,FALSE)+ROW()-2)),\"\")","v":{"$error":"#N/A"}},{"$f":"IF(INDIRECT(\"c\" & (VLOOKUP(Rebalance!$D$66,$F$2:$G$48,2,FALSE)+ROW()-2))=Rebalance!$D$66,INDIRECT(\"a\" & (VLOOKUP(Rebalance!$D$66,$F$2:$G$48,2,FALSE)+ROW()-2)),\"\")","v":{"$error":"#N/A"}}]
["Sanlam Diversified Income Fund of Funds B3","SDFB3","Sanlam Collective Investments",{"$f":"ROW()","v":523},null,null,{"$f":"VLOOKUP(F523,$C$2:$D$599,2,FALSE)","v":{"$error":"#N/A"}},{"$f":"IF(INDIRECT(\"c\" & (VLOOKUP(Rebalance!$D$26,$F$2:$G$48,2,FALSE)+ROW()-2))=Rebalance!$D$26,INDIRECT(\"a\" & (VLOOKUP(Rebalance!$D$26,$F$2:$G$48,2,FALSE)+ROW()-2)),\"\")","v":{"$error":"#N/A"}},{"$f":"IF(INDIRECT(\"c\" & (VLOOKUP(Rebalance!$D$27,$F$2:$G$48,2,FALSE)+ROW()-2))=Rebalance!$D$27,INDIRECT(\"a\" & (VLOOKUP(Rebalance!$D$27,$F$2:$G$48,2,FALSE)+ROW()-2)),\"\")","v":{"$error":"#N/A"}},{"$f":"IF(INDIRECT(\"c\" & (VLOOKUP(Rebalance!$D$28,$F$2:$G$48,2,FALSE)+ROW()-2))=Rebalance!$D$28,INDIRECT(\"a\" & (VLOOKUP(Rebalance!$D$28,$F$2:$G$48,2,FALSE)+ROW()-2)),\"\")","v":{"$error":"#N/A"}},{"$f":"IF(INDIRECT(\"c\" & (VLOOKUP(Rebalance!$D$29,$F$2:$G$48,2,FALSE)+ROW()-2))=Rebalance!$D$29,INDIRECT(\"a\" & (VLOOKUP(Rebalance!$D$29,$F$2:$G$48,2,FALSE)+ROW()-2)),\"\")","v":{"$error":"#N/A"}},{"$f":"IF(INDIRECT(\"c\" & (VLOOKUP(Rebalance!$D$30,$F$2:$G$48,2,FALSE)+ROW()-2))=Rebalance!$D$30,INDIRECT(\"a\" & (VLOOKUP(Rebalance!$D$30,$F$2:$G$48,2,FALSE)+ROW()-2)),\"\")","v":{"$error":"#N/A"}},{"$f":"IF(INDIRECT(\"c\" & (VLOOKUP(Rebalance!$D$31,$F$2:$G$48,2,FALSE)+ROW()-2))=Rebalance!$D$31,INDIRECT(\"a\" & (VLOOKUP(Rebalance!$D$31,$F$2:$G$48,2,FALSE)+ROW()-2)),\"\")","v":{"$error":"#N/A"}},{"$f":"IF(INDIRECT(\"c\" & (VLOOKUP(Rebalance!$D$32,$F$2:$G$48,2,FALSE)+ROW()-2))=Rebalance!$D$32,INDIRECT(\"a\" & (VLOOKUP(Rebalance!$D$32,$F$2:$G$48,2,FALSE)+ROW()-2)),\"\")","v":{"$error":"#N/A"}},{"$f":"IF(INDIRECT(\"c\" & (VLOOKUP(Rebalance!$D$33,$F$2:$G$48,2,FALSE)+ROW()-2))=Rebalance!$D$33,INDIRECT(\"a\" & (VLOOKUP(Rebalance!$D$33,$F$2:$G$48,2,FALSE)+ROW()-2)),\"\")","v":{"$error":"#N/A"}},{"$f":"IF(INDIRECT(\"c\" & (VLOOKUP(Rebalance!$D$34,$F$2:$G$48,2,FALSE)+ROW()-2))=Rebalance!$D$34,INDIRECT(\"a\" & (VLOOKUP(Rebalance!$D$34,$F$2:$G$48,2,FALSE)+ROW()-2)),\"\")","v":{"$error":"#N/A"}},{"$f":"IF(INDIRECT(\"c\" & (VLOOKUP(Rebalance!$D$35,$F$2:$G$48,2,FALSE)+ROW()-2))=Rebalance!$D$35,INDIRECT(\"a\" & (VLOOKUP(Rebalance!$D$35,$F$2:$G$48,2,FALSE)+ROW()-2)),\"\")","v":{"$error":"#N/A"}},{"$f":"IF(INDIRECT(\"c\" & (VLOOKUP(Rebalance!$D$36,$F$2:$G$48,2,FALSE)+ROW()-2))=Rebalance!$D$36,INDIRECT(\"a\" & (VLOOKUP(Rebalance!$D$36,$F$2:$G$48,2,FALSE)+ROW()-2)),\"\")","v":{"$error":"#N/A"}},{"$f":"IF(INDIRECT(\"c\" & (VLOOKUP(Rebalance!$D$37,$F$2:$G$48,2,FALSE)+ROW()-2))=Rebalance!$D$37,INDIRECT(\"a\" & (VLOOKUP(Rebalance!$D$37,$F$2:$G$48,2,FALSE)+ROW()-2)),\"\")","v":{"$error":"#N/A"}},{"$f":"IF(INDIRECT(\"c\" & (VLOOKUP(Rebalance!$D$38,$F$2:$G$48,2,FALSE)+ROW()-2))=Rebalance!$D$38,INDIRECT(\"a\" & (VLOOKUP(Rebalance!$D$38,$F$2:$G$48,2,FALSE)+ROW()-2)),\"\")","v":{"$error":"#N/A"}},{"$f":"IF(INDIRECT(\"c\" & (VLOOKUP(Rebalance!$D$39,$F$2:$G$48,2,FALSE)+ROW()-2))=Rebalance!$D$39,INDIRECT(\"a\" & (VLOOKUP(Rebalance!$D$39,$F$2:$G$48,2,FALSE)+ROW()-2)),\"\")","v":{"$error":"#N/A"}},{"$f":"IF(INDIRECT(\"c\" & (VLOOKUP(Rebalance!$D$40,$F$2:$G$48,2,FALSE)+ROW()-2))=Rebalance!$D$40,INDIRECT(\"a\" & (VLOOKUP(Rebalance!$D$40,$F$2:$G$48,2,FALSE)+ROW()-2)),\"\")","v":{"$error":"#N/A"}},{"$f":"IF(INDIRECT(\"c\" & (VLOOKUP(Rebalance!$D$52,$F$2:$G$48,2,FALSE)+ROW()-2))=Rebalance!$D$52,INDIRECT(\"a\" & (VLOOKUP(Rebalance!$D$52,$F$2:$G$48,2,FALSE)+ROW()-2)),\"\")","v":{"$error":"#N/A"}},{"$f":"IF(INDIRECT(\"c\" & (VLOOKUP(Rebalance!$D$53,$F$2:$G$48,2,FALSE)+ROW()-2))=Rebalance!$D$53,INDIRECT(\"a\" & (VLOOKUP(Rebalance!$D$53,$F$2:$G$48,2,FALSE)+ROW()-2)),\"\")","v":{"$error":"#N/A"}},{"$f":"IF(INDIRECT(\"c\" & (VLOOKUP(Rebalance!$D$54,$F$2:$G$48,2,FALSE)+ROW()-2))=Rebalance!$D$54,INDIRECT(\"a\" & (VLOOKUP(Rebalance!$D$54,$F$2:$G$48,2,FALSE)+ROW()-2)),\"\")","v":{"$error":"#N/A"}},{"$f":"IF(INDIRECT(\"c\" & (VLOOKUP(Rebalance!$D$55,$F$2:$G$48,2,FALSE)+ROW()-2))=Rebalance!$D$55,INDIRECT(\"a\" & (VLOOKUP(Rebalance!$D$55,$F$2:$G$48,2,FALSE)+ROW()-2)),\"\")","v":{"$error":"#N/A"}},{"$f":"IF(INDIRECT(\"c\" & (VLOOKUP(Rebalance!$D$56,$F$2:$G$48,2,FALSE)+ROW()-2))=Rebalance!$D$56,INDIRECT(\"a\" & (VLOOKUP(Rebalance!$D$56,$F$2:$G$48,2,FALSE)+ROW()-2)),\"\")","v":{"$error":"#N/A"}},{"$f":"IF(INDIRECT(\"c\" & (VLOOKUP(Rebalance!$D$57,$F$2:$G$48,2,FALSE)+ROW()-2))=Rebalance!$D$57,INDIRECT(\"a\" & (VLOOKUP(Rebalance!$D$57,$F$2:$G$48,2,FALSE)+ROW()-2)),\"\")","v":{"$error":"#N/A"}},{"$f":"IF(INDIRECT(\"c\" & (VLOOKUP(Rebalance!$D$58,$F$2:$G$48,2,FALSE)+ROW()-2))=Rebalance!$D$58,INDIRECT(\"a\" & (VLOOKUP(Rebalance!$D$58,$F$2:$G$48,2,FALSE)+ROW()-2)),\"\")","v":{"$error":"#N/A"}},{"$f":"IF(INDIRECT(\"c\" & (VLOOKUP(Rebalance!$D$59,$F$2:$G$48,2,FALSE)+ROW()-2))=Rebalance!$D$59,INDIRECT(\"a\" & (VLOOKUP(Rebalance!$D$59,$F$2:$G$48,2,FALSE)+ROW()-2)),\"\")","v":{"$error":"#N/A"}},{"$f":"IF(INDIRECT(\"c\" & (VLOOKUP(Rebalance!$D$60,$F$2:$G$48,2,FALSE)+ROW()-2))=Rebalance!$D$60,INDIRECT(\"a\" & (VLOOKUP(Rebalance!$D$60,$F$2:$G$48,2,FALSE)+ROW()-2)),\"\")","v":{"$error":"#N/A"}},{"$f":"IF(INDIRECT(\"c\" & (VLOOKUP(Rebalance!$D$61,$F$2:$G$48,2,FALSE)+ROW()-2))=Rebalance!$D$61,INDIRECT(\"a\" & (VLOOKUP(Rebalance!$D$61,$F$2:$G$48,2,FALSE)+ROW()-2)),\"\")","v":{"$error":"#N/A"}},{"$f":"IF(INDIRECT(\"c\" & (VLOOKUP(Rebalance!$D$62,$F$2:$G$48,2,FALSE)+ROW()-2))=Rebalance!$D$62,INDIRECT(\"a\" & (VLOOKUP(Rebalance!$D$62,$F$2:$G$48,2,FALSE)+ROW()-2)),\"\")","v":{"$error":"#N/A"}},{"$f":"IF(INDIRECT(\"c\" & (VLOOKUP(Rebalance!$D$63,$F$2:$G$48,2,FALSE)+ROW()-2))=Rebalance!$D$63,INDIRECT(\"a\" & (VLOOKUP(Rebalance!$D$63,$F$2:$G$48,2,FALSE)+ROW()-2)),\"\")","v":{"$error":"#N/A"}},{"$f":"IF(INDIRECT(\"c\" & (VLOOKUP(Rebalance!$D$64,$F$2:$G$48,2,FALSE)+ROW()-2))=Rebalance!$D$64,INDIRECT(\"a\" & (VLOOKUP(Rebalance!$D$64,$F$2:$G$48,2,FALSE)+ROW()-2)),\"\")","v":{"$error":"#N/A"}},{"$f":"IF(INDIRECT(\"c\" & (VLOOKUP(Rebalance!$D$65,$F$2:$G$48,2,FALSE)+ROW()-2))=Rebalance!$D$65,INDIRECT(\"a\" & (VLOOKUP(Rebalance!$D$65,$F$2:$G$48,2,FALSE)+ROW()-2)),\"\")","v":{"$error":"#N/A"}},{"$f":"IF(INDIRECT(\"c\" & (VLOOKUP(Rebalance!$D$66,$F$2:$G$48,2,FALSE)+ROW()-2))=Rebalance!$D$66,INDIRECT(\"a\" & (VLOOKUP(Rebalance!$D$66,$F$2:$G$48,2,FALSE)+ROW()-2)),\"\")","v":{"$error":"#N/A"}}]
["Sanlam India Opportunities Feeder Fund","SNFF","Sanlam Collective Investments",{"$f":"ROW()","v":524},null,null,{"$f":"VLOOKUP(F524,$C$2:$D$599,2,FALSE)","v":{"$error":"#N/A"}},{"$f":"IF(INDIRECT(\"c\" & (VLOOKUP(Rebalance!$D$26,$F$2:$G$48,2,FALSE)+ROW()-2))=Rebalance!$D$26,INDIRECT(\"a\" & (VLOOKUP(Rebalance!$D$26,$F$2:$G$48,2,FALSE)+ROW()-2)),\"\")","v":{"$error":"#N/A"}},{"$f":"IF(INDIRECT(\"c\" & (VLOOKUP(Rebalance!$D$27,$F$2:$G$48,2,FALSE)+ROW()-2))=Rebalance!$D$27,INDIRECT(\"a\" & (VLOOKUP(Rebalance!$D$27,$F$2:$G$48,2,FALSE)+ROW()-2)),\"\")","v":{"$error":"#N/A"}},{"$f":"IF(INDIRECT(\"c\" & (VLOOKUP(Rebalance!$D$28,$F$2:$G$48,2,FALSE)+ROW()-2))=Rebalance!$D$28,INDIRECT(\"a\" & (VLOOKUP(Rebalance!$D$28,$F$2:$G$48,2,FALSE)+ROW()-2)),\"\")","v":{"$error":"#N/A"}},{"$f":"IF(INDIRECT(\"c\" & (VLOOKUP(Rebalance!$D$29,$F$2:$G$48,2,FALSE)+ROW()-2))=Rebalance!$D$29,INDIRECT(\"a\" & (VLOOKUP(Rebalance!$D$29,$F$2:$G$48,2,FALSE)+ROW()-2)),\"\")","v":{"$error":"#N/A"}},{"$f":"IF(INDIRECT(\"c\" & (VLOOKUP(Rebalance!$D$30,$F$2:$G$48,2,FALSE)+ROW()-2))=Rebalance!$D$30,INDIRECT(\"a\" & (VLOOKUP(Rebalance!$D$30,$F$2:$G$48,2,FALSE)+ROW()-2)),\"\")","v":{"$error":"#N/A"}},{"$f":"IF(INDIRECT(\"c\" & (VLOOKUP(Rebalance!$D$31,$F$2:$G$48,2,FALSE)+ROW()-2))=Rebalance!$D$31,INDIRECT(\"a\" & (VLOOKUP(Rebalance!$D$31,$F$2:$G$48,2,FALSE)+ROW()-2)),\"\")","v":{"$error":"#N/A"}},{"$f":"IF(INDIRECT(\"c\" & (VLOOKUP(Rebalance!$D$32,$F$2:$G$48,2,FALSE)+ROW()-2))=Rebalance!$D$32,INDIRECT(\"a\" & (VLOOKUP(Rebalance!$D$32,$F$2:$G$48,2,FALSE)+ROW()-2)),\"\")","v":{"$error":"#N/A"}},{"$f":"IF(INDIRECT(\"c\" & (VLOOKUP(Rebalance!$D$33,$F$2:$G$48,2,FALSE)+ROW()-2))=Rebalance!$D$33,INDIRECT(\"a\" & (VLOOKUP(Rebalance!$D$33,$F$2:$G$48,2,FALSE)+ROW()-2)),\"\")","v":{"$error":"#N/A"}},{"$f":"IF(INDIRECT(\"c\" & (VLOOKUP(Rebalance!$D$34,$F$2:$G$48,2,FALSE)+ROW()-2))=Rebalance!$D$34,INDIRECT(\"a\" & (VLOOKUP(Rebalance!$D$34,$F$2:$G$48,2,FALSE)+ROW()-2)),\"\")","v":{"$error":"#N/A"}},{"$f":"IF(INDIRECT(\"c\" & (VLOOKUP(Rebalance!$D$35,$F$2:$G$48,2,FALSE)+ROW()-2))=Rebalance!$D$35,INDIRECT(\"a\" & (VLOOKUP(Rebalance!$D$35,$F$2:$G$48,2,FALSE)+ROW()-2)),\"\")","v":{"$error":"#N/A"}},{"$f":"IF(INDIRECT(\"c\" & (VLOOKUP(Rebalance!$D$36,$F$2:$G$48,2,FALSE)+ROW()-2))=Rebalance!$D$36,INDIRECT(\"a\" & (VLOOKUP(Rebalance!$D$36,$F$2:$G$48,2,FALSE)+ROW()-2)),\"\")","v":{"$error":"#N/A"}},{"$f":"IF(INDIRECT(\"c\" & (VLOOKUP(Rebalance!$D$37,$F$2:$G$48,2,FALSE)+ROW()-2))=Rebalance!$D$37,INDIRECT(\"a\" & (VLOOKUP(Rebalance!$D$37,$F$2:$G$48,2,FALSE)+ROW()-2)),\"\")","v":{"$error":"#N/A"}},{"$f":"IF(INDIRECT(\"c\" & (VLOOKUP(Rebalance!$D$38,$F$2:$G$48,2,FALSE)+ROW()-2))=Rebalance!$D$38,INDIRECT(\"a\" & (VLOOKUP(Rebalance!$D$38,$F$2:$G$48,2,FALSE)+ROW()-2)),\"\")","v":{"$error":"#N/A"}},{"$f":"IF(INDIRECT(\"c\" & (VLOOKUP(Rebalance!$D$39,$F$2:$G$48,2,FALSE)+ROW()-2))=Rebalance!$D$39,INDIRECT(\"a\" & (VLOOKUP(Rebalance!$D$39,$F$2:$G$48,2,FALSE)+ROW()-2)),\"\")","v":{"$error":"#N/A"}},{"$f":"IF(INDIRECT(\"c\" & (VLOOKUP(Rebalance!$D$40,$F$2:$G$48,2,FALSE)+ROW()-2))=Rebalance!$D$40,INDIRECT(\"a\" & (VLOOKUP(Rebalance!$D$40,$F$2:$G$48,2,FALSE)+ROW()-2)),\"\")","v":{"$error":"#N/A"}},{"$f":"IF(INDIRECT(\"c\" & (VLOOKUP(Rebalance!$D$52,$F$2:$G$48,2,FALSE)+ROW()-2))=Rebalance!$D$52,INDIRECT(\"a\" & (VLOOKUP(Rebalance!$D$52,$F$2:$G$48,2,FALSE)+ROW()-2)),\"\")","v":{"$error":"#N/A"}},{"$f":"IF(INDIRECT(\"c\" & (VLOOKUP(Rebalance!$D$53,$F$2:$G$48,2,FALSE)+ROW()-2))=Rebalance!$D$53,INDIRECT(\"a\" & (VLOOKUP(Rebalance!$D$53,$F$2:$G$48,2,FALSE)+ROW()-2)),\"\")","v":{"$error":"#N/A"}},{"$f":"IF(INDIRECT(\"c\" & (VLOOKUP(Rebalance!$D$54,$F$2:$G$48,2,FALSE)+ROW()-2))=Rebalance!$D$54,INDIRECT(\"a\" & (VLOOKUP(Rebalance!$D$54,$F$2:$G$48,2,FALSE)+ROW()-2)),\"\")","v":{"$error":"#N/A"}},{"$f":"IF(INDIRECT(\"c\" & (VLOOKUP(Rebalance!$D$55,$F$2:$G$48,2,FALSE)+ROW()-2))=Rebalance!$D$55,INDIRECT(\"a\" & (VLOOKUP(Rebalance!$D$55,$F$2:$G$48,2,FALSE)+ROW()-2)),\"\")","v":{"$error":"#N/A"}},{"$f":"IF(INDIRECT(\"c\" & (VLOOKUP(Rebalance!$D$56,$F$2:$G$48,2,FALSE)+ROW()-2))=Rebalance!$D$56,INDIRECT(\"a\" & (VLOOKUP(Rebalance!$D$56,$F$2:$G$48,2,FALSE)+ROW()-2)),\"\")","v":{"$error":"#N/A"}},{"$f":"IF(INDIRECT(\"c\" & (VLOOKUP(Rebalance!$D$57,$F$2:$G$48,2,FALSE)+ROW()-2))=Rebalance!$D$57,INDIRECT(\"a\" & (VLOOKUP(Rebalance!$D$57,$F$2:$G$48,2,FALSE)+ROW()-2)),\"\")","v":{"$error":"#N/A"}},{"$f":"IF(INDIRECT(\"c\" & (VLOOKUP(Rebalance!$D$58,$F$2:$G$48,2,FALSE)+ROW()-2))=Rebalance!$D$58,INDIRECT(\"a\" & (VLOOKUP(Rebalance!$D$58,$F$2:$G$48,2,FALSE)+ROW()-2)),\"\")","v":{"$error":"#N/A"}},{"$f":"IF(INDIRECT(\"c\" & (VLOOKUP(Rebalance!$D$59,$F$2:$G$48,2,FALSE)+ROW()-2))=Rebalance!$D$59,INDIRECT(\"a\" & (VLOOKUP(Rebalance!$D$59,$F$2:$G$48,2,FALSE)+ROW()-2)),\"\")","v":{"$error":"#N/A"}},{"$f":"IF(INDIRECT(\"c\" & (VLOOKUP(Rebalance!$D$60,$F$2:$G$48,2,FALSE)+ROW()-2))=Rebalance!$D$60,INDIRECT(\"a\" & (VLOOKUP(Rebalance!$D$60,$F$2:$G$48,2,FALSE)+ROW()-2)),\"\")","v":{"$error":"#N/A"}},{"$f":"IF(INDIRECT(\"c\" & (VLOOKUP(Rebalance!$D$61,$F$2:$G$48,2,FALSE)+ROW()-2))=Rebalance!$D$61,INDIRECT(\"a\" & (VLOOKUP(Rebalance!$D$61,$F$2:$G$48,2,FALSE)+ROW()-2)),\"\")","v":{"$error":"#N/A"}},{"$f":"IF(INDIRECT(\"c\" & (VLOOKUP(Rebalance!$D$62,$F$2:$G$48,2,FALSE)+ROW()-2))=Rebalance!$D$62,INDIRECT(\"a\" & (VLOOKUP(Rebalance!$D$62,$F$2:$G$48,2,FALSE)+ROW()-2)),\"\")","v":{"$error":"#N/A"}},{"$f":"IF(INDIRECT(\"c\" & (VLOOKUP(Rebalance!$D$63,$F$2:$G$48,2,FALSE)+ROW()-2))=Rebalance!$D$63,INDIRECT(\"a\" & (VLOOKUP(Rebalance!$D$63,$F$2:$G$48,2,FALSE)+ROW()-2)),\"\")","v":{"$error":"#N/A"}},{"$f":"IF(INDIRECT(\"c\" & (VLOOKUP(Rebalance!$D$64,$F$2:$G$48,2,FALSE)+ROW()-2))=Rebalance!$D$64,INDIRECT(\"a\" & (VLOOKUP(Rebalance!$D$64,$F$2:$G$48,2,FALSE)+ROW()-2)),\"\")","v":{"$error":"#N/A"}},{"$f":"IF(INDIRECT(\"c\" & (VLOOKUP(Rebalance!$D$65,$F$2:$G$48,2,FALSE)+ROW()-2))=Rebalance!$D$65,INDIRECT(\"a\" & (VLOOKUP(Rebalance!$D$65,$F$2:$G$48,2,FALSE)+ROW()-2)),\"\")","v":{"$error":"#N/A"}},{"$f":"IF(INDIRECT(\"c\" & (VLOOKUP(Rebalance!$D$66,$F$2:$G$48,2,FALSE)+ROW()-2))=Rebalance!$D$66,INDIRECT(\"a\" & (VLOOKUP(Rebalance!$D$66,$F$2:$G$48,2,FALSE)+ROW()-2)),\"\")","v":{"$error":"#N/A"}}]
["Sanlam Sesfikile SCI Property Fund B2","SSPB2","Sanlam Collective Investments",{"$f":"ROW()","v":525},null,null,{"$f":"VLOOKUP(F525,$C$2:$D$599,2,FALSE)","v":{"$error":"#N/A"}},{"$f":"IF(INDIRECT(\"c\" & (VLOOKUP(Rebalance!$D$26,$F$2:$G$48,2,FALSE)+ROW()-2))=Rebalance!$D$26,INDIRECT(\"a\" & (VLOOKUP(Rebalance!$D$26,$F$2:$G$48,2,FALSE)+ROW()-2)),\"\")","v":{"$error":"#N/A"}},{"$f":"IF(INDIRECT(\"c\" & (VLOOKUP(Rebalance!$D$27,$F$2:$G$48,2,FALSE)+ROW()-2))=Rebalance!$D$27,INDIRECT(\"a\" & (VLOOKUP(Rebalance!$D$27,$F$2:$G$48,2,FALSE)+ROW()-2)),\"\")","v":{"$error":"#N/A"}},{"$f":"IF(INDIRECT(\"c\" & (VLOOKUP(Rebalance!$D$28,$F$2:$G$48,2,FALSE)+ROW()-2))=Rebalance!$D$28,INDIRECT(\"a\" & (VLOOKUP(Rebalance!$D$28,$F$2:$G$48,2,FALSE)+ROW()-2)),\"\")","v":{"$error":"#N/A"}},{"$f":"IF(INDIRECT(\"c\" & (VLOOKUP(Rebalance!$D$29,$F$2:$G$48,2,FALSE)+ROW()-2))=Rebalance!$D$29,INDIRECT(\"a\" & (VLOOKUP(Rebalance!$D$29,$F$2:$G$48,2,FALSE)+ROW()-2)),\"\")","v":{"$error":"#N/A"}},{"$f":"IF(INDIRECT(\"c\" & (VLOOKUP(Rebalance!$D$30,$F$2:$G$48,2,FALSE)+ROW()-2))=Rebalance!$D$30,INDIRECT(\"a\" & (VLOOKUP(Rebalance!$D$30,$F$2:$G$48,2,FALSE)+ROW()-2)),\"\")","v":{"$error":"#N/A"}},{"$f":"IF(INDIRECT(\"c\" & (VLOOKUP(Rebalance!$D$31,$F$2:$G$48,2,FALSE)+ROW()-2))=Rebalance!$D$31,INDIRECT(\"a\" & (VLOOKUP(Rebalance!$D$31,$F$2:$G$48,2,FALSE)+ROW()-2)),\"\")","v":{"$error":"#N/A"}},{"$f":"IF(INDIRECT(\"c\" & (VLOOKUP(Rebalance!$D$32,$F$2:$G$48,2,FALSE)+ROW()-2))=Rebalance!$D$32,INDIRECT(\"a\" & (VLOOKUP(Rebalance!$D$32,$F$2:$G$48,2,FALSE)+ROW()-2)),\"\")","v":{"$error":"#N/A"}},{"$f":"IF(INDIRECT(\"c\" & (VLOOKUP(Rebalance!$D$33,$F$2:$G$48,2,FALSE)+ROW()-2))=Rebalance!$D$33,INDIRECT(\"a\" & (VLOOKUP(Rebalance!$D$33,$F$2:$G$48,2,FALSE)+ROW()-2)),\"\")","v":{"$error":"#N/A"}},{"$f":"IF(INDIRECT(\"c\" & (VLOOKUP(Rebalance!$D$34,$F$2:$G$48,2,FALSE)+ROW()-2))=Rebalance!$D$34,INDIRECT(\"a\" & (VLOOKUP(Rebalance!$D$34,$F$2:$G$48,2,FALSE)+ROW()-2)),\"\")","v":{"$error":"#N/A"}},{"$f":"IF(INDIRECT(\"c\" & (VLOOKUP(Rebalance!$D$35,$F$2:$G$48,2,FALSE)+ROW()-2))=Rebalance!$D$35,INDIRECT(\"a\" & (VLOOKUP(Rebalance!$D$35,$F$2:$G$48,2,FALSE)+ROW()-2)),\"\")","v":{"$error":"#N/A"}},{"$f":"IF(INDIRECT(\"c\" & (VLOOKUP(Rebalance!$D$36,$F$2:$G$48,2,FALSE)+ROW()-2))=Rebalance!$D$36,INDIRECT(\"a\" & (VLOOKUP(Rebalance!$D$36,$F$2:$G$48,2,FALSE)+ROW()-2)),\"\")","v":{"$error":"#N/A"}},{"$f":"IF(INDIRECT(\"c\" & (VLOOKUP(Rebalance!$D$37,$F$2:$G$48,2,FALSE)+ROW()-2))=Rebalance!$D$37,INDIRECT(\"a\" & (VLOOKUP(Rebalance!$D$37,$F$2:$G$48,2,FALSE)+ROW()-2)),\"\")","v":{"$error":"#N/A"}},{"$f":"IF(INDIRECT(\"c\" & (VLOOKUP(Rebalance!$D$38,$F$2:$G$48,2,FALSE)+ROW()-2))=Rebalance!$D$38,INDIRECT(\"a\" & (VLOOKUP(Rebalance!$D$38,$F$2:$G$48,2,FALSE)+ROW()-2)),\"\")","v":{"$error":"#N/A"}},{"$f":"IF(INDIRECT(\"c\" & (VLOOKUP(Rebalance!$D$39,$F$2:$G$48,2,FALSE)+ROW()-2))=Rebalance!$D$39,INDIRECT(\"a\" & (VLOOKUP(Rebalance!$D$39,$F$2:$G$48,2,FALSE)+ROW()-2)),\"\")","v":{"$error":"#N/A"}},{"$f":"IF(INDIRECT(\"c\" & (VLOOKUP(Rebalance!$D$40,$F$2:$G$48,2,FALSE)+ROW()-2))=Rebalance!$D$40,INDIRECT(\"a\" & (VLOOKUP(Rebalance!$D$40,$F$2:$G$48,2,FALSE)+ROW()-2)),\"\")","v":{"$error":"#N/A"}},{"$f":"IF(INDIRECT(\"c\" & (VLOOKUP(Rebalance!$D$52,$F$2:$G$48,2,FALSE)+ROW()-2))=Rebalance!$D$52,INDIRECT(\"a\" & (VLOOKUP(Rebalance!$D$52,$F$2:$G$48,2,FALSE)+ROW()-2)),\"\")","v":{"$error":"#N/A"}},{"$f":"IF(INDIRECT(\"c\" & (VLOOKUP(Rebalance!$D$53,$F$2:$G$48,2,FALSE)+ROW()-2))=Rebalance!$D$53,INDIRECT(\"a\" & (VLOOKUP(Rebalance!$D$53,$F$2:$G$48,2,FALSE)+ROW()-2)),\"\")","v":{"$error":"#N/A"}},{"$f":"IF(INDIRECT(\"c\" & (VLOOKUP(Rebalance!$D$54,$F$2:$G$48,2,FALSE)+ROW()-2))=Rebalance!$D$54,INDIRECT(\"a\" & (VLOOKUP(Rebalance!$D$54,$F$2:$G$48,2,FALSE)+ROW()-2)),\"\")","v":{"$error":"#N/A"}},{"$f":"IF(INDIRECT(\"c\" & (VLOOKUP(Rebalance!$D$55,$F$2:$G$48,2,FALSE)+ROW()-2))=Rebalance!$D$55,INDIRECT(\"a\" & (VLOOKUP(Rebalance!$D$55,$F$2:$G$48,2,FALSE)+ROW()-2)),\"\")","v":{"$error":"#N/A"}},{"$f":"IF(INDIRECT(\"c\" & (VLOOKUP(Rebalance!$D$56,$F$2:$G$48,2,FALSE)+ROW()-2))=Rebalance!$D$56,INDIRECT(\"a\" & (VLOOKUP(Rebalance!$D$56,$F$2:$G$48,2,FALSE)+ROW()-2)),\"\")","v":{"$error":"#N/A"}},{"$f":"IF(INDIRECT(\"c\" & (VLOOKUP(Rebalance!$D$57,$F$2:$G$48,2,FALSE)+ROW()-2))=Rebalance!$D$57,INDIRECT(\"a\" & (VLOOKUP(Rebalance!$D$57,$F$2:$G$48,2,FALSE)+ROW()-2)),\"\")","v":{"$error":"#N/A"}},{"$f":"IF(INDIRECT(\"c\" & (VLOOKUP(Rebalance!$D$58,$F$2:$G$48,2,FALSE)+ROW()-2))=Rebalance!$D$58,INDIRECT(\"a\" & (VLOOKUP(Rebalance!$D$58,$F$2:$G$48,2,FALSE)+ROW()-2)),\"\")","v":{"$error":"#N/A"}},{"$f":"IF(INDIRECT(\"c\" & (VLOOKUP(Rebalance!$D$59,$F$2:$G$48,2,FALSE)+ROW()-2))=Rebalance!$D$59,INDIRECT(\"a\" & (VLOOKUP(Rebalance!$D$59,$F$2:$G$48,2,FALSE)+ROW()-2)),\"\")","v":{"$error":"#N/A"}},{"$f":"IF(INDIRECT(\"c\" & (VLOOKUP(Rebalance!$D$60,$F$2:$G$48,2,FALSE)+ROW()-2))=Rebalance!$D$60,INDIRECT(\"a\" & (VLOOKUP(Rebalance!$D$60,$F$2:$G$48,2,FALSE)+ROW()-2)),\"\")","v":{"$error":"#N/A"}},{"$f":"IF(INDIRECT(\"c\" & (VLOOKUP(Rebalance!$D$61,$F$2:$G$48,2,FALSE)+ROW()-2))=Rebalance!$D$61,INDIRECT(\"a\" & (VLOOKUP(Rebalance!$D$61,$F$2:$G$48,2,FALSE)+ROW()-2)),\"\")","v":{"$error":"#N/A"}},{"$f":"IF(INDIRECT(\"c\" & (VLOOKUP(Rebalance!$D$62,$F$2:$G$48,2,FALSE)+ROW()-2))=Rebalance!$D$62,INDIRECT(\"a\" & (VLOOKUP(Rebalance!$D$62,$F$2:$G$48,2,FALSE)+ROW()-2)),\"\")","v":{"$error":"#N/A"}},{"$f":"IF(INDIRECT(\"c\" & (VLOOKUP(Rebalance!$D$63,$F$2:$G$48,2,FALSE)+ROW()-2))=Rebalance!$D$63,INDIRECT(\"a\" & (VLOOKUP(Rebalance!$D$63,$F$2:$G$48,2,FALSE)+ROW()-2)),\"\")","v":{"$error":"#N/A"}},{"$f":"IF(INDIRECT(\"c\" & (VLOOKUP(Rebalance!$D$64,$F$2:$G$48,2,FALSE)+ROW()-2))=Rebalance!$D$64,INDIRECT(\"a\" & (VLOOKUP(Rebalance!$D$64,$F$2:$G$48,2,FALSE)+ROW()-2)),\"\")","v":{"$error":"#N/A"}},{"$f":"IF(INDIRECT(\"c\" & (VLOOKUP(Rebalance!$D$65,$F$2:$G$48,2,FALSE)+ROW()-2))=Rebalance!$D$65,INDIRECT(\"a\" & (VLOOKUP(Rebalance!$D$65,$F$2:$G$48,2,FALSE)+ROW()-2)),\"\")","v":{"$error":"#N/A"}},{"$f":"IF(INDIRECT(\"c\" & (VLOOKUP(Rebalance!$D$66,$F$2:$G$48,2,FALSE)+ROW()-2))=Rebalance!$D$66,INDIRECT(\"a\" & (VLOOKUP(Rebalance!$D$66,$F$2:$G$48,2,FALSE)+ROW()-2)),\"\")","v":{"$error":"#N/A"}}]
["Sentio SCI Hikma Shariah Balanced B1","SHB1","Sanlam Collective Investments",{"$f":"ROW()","v":526},null,null,{"$f":"VLOOKUP(F526,$C$2:$D$599,2,FALSE)","v":{"$error":"#N/A"}},{"$f":"IF(INDIRECT(\"c\" & (VLOOKUP(Rebalance!$D$26,$F$2:$G$48,2,FALSE)+ROW()-2))=Rebalance!$D$26,INDIRECT(\"a\" & (VLOOKUP(Rebalance!$D$26,$F$2:$G$48,2,FALSE)+ROW()-2)),\"\")","v":{"$error":"#N/A"}},{"$f":"IF(INDIRECT(\"c\" & (VLOOKUP(Rebalance!$D$27,$F$2:$G$48,2,FALSE)+ROW()-2))=Rebalance!$D$27,INDIRECT(\"a\" & (VLOOKUP(Rebalance!$D$27,$F$2:$G$48,2,FALSE)+ROW()-2)),\"\")","v":{"$error":"#N/A"}},{"$f":"IF(INDIRECT(\"c\" & (VLOOKUP(Rebalance!$D$28,$F$2:$G$48,2,FALSE)+ROW()-2))=Rebalance!$D$28,INDIRECT(\"a\" & (VLOOKUP(Rebalance!$D$28,$F$2:$G$48,2,FALSE)+ROW()-2)),\"\")","v":{"$error":"#N/A"}},{"$f":"IF(INDIRECT(\"c\" & (VLOOKUP(Rebalance!$D$29,$F$2:$G$48,2,FALSE)+ROW()-2))=Rebalance!$D$29,INDIRECT(\"a\" & (VLOOKUP(Rebalance!$D$29,$F$2:$G$48,2,FALSE)+ROW()-2)),\"\")","v":{"$error":"#N/A"}},{"$f":"IF(INDIRECT(\"c\" & (VLOOKUP(Rebalance!$D$30,$F$2:$G$48,2,FALSE)+ROW()-2))=Rebalance!$D$30,INDIRECT(\"a\" & (VLOOKUP(Rebalance!$D$30,$F$2:$G$48,2,FALSE)+ROW()-2)),\"\")","v":{"$error":"#N/A"}},{"$f":"IF(INDIRECT(\"c\" & (VLOOKUP(Rebalance!$D$31,$F$2:$G$48,2,FALSE)+ROW()-2))=Rebalance!$D$31,INDIRECT(\"a\" & (VLOOKUP(Rebalance!$D$31,$F$2:$G$48,2,FALSE)+ROW()-2)),\"\")","v":{"$error":"#N/A"}},{"$f":"IF(INDIRECT(\"c\" & (VLOOKUP(Rebalance!$D$32,$F$2:$G$48,2,FALSE)+ROW()-2))=Rebalance!$D$32,INDIRECT(\"a\" & (VLOOKUP(Rebalance!$D$32,$F$2:$G$48,2,FALSE)+ROW()-2)),\"\")","v":{"$error":"#N/A"}},{"$f":"IF(INDIRECT(\"c\" & (VLOOKUP(Rebalance!$D$33,$F$2:$G$48,2,FALSE)+ROW()-2))=Rebalance!$D$33,INDIRECT(\"a\" & (VLOOKUP(Rebalance!$D$33,$F$2:$G$48,2,FALSE)+ROW()-2)),\"\")","v":{"$error":"#N/A"}},{"$f":"IF(INDIRECT(\"c\" & (VLOOKUP(Rebalance!$D$34,$F$2:$G$48,2,FALSE)+ROW()-2))=Rebalance!$D$34,INDIRECT(\"a\" & (VLOOKUP(Rebalance!$D$34,$F$2:$G$48,2,FALSE)+ROW()-2)),\"\")","v":{"$error":"#N/A"}},{"$f":"IF(INDIRECT(\"c\" & (VLOOKUP(Rebalance!$D$35,$F$2:$G$48,2,FALSE)+ROW()-2))=Rebalance!$D$35,INDIRECT(\"a\" & (VLOOKUP(Rebalance!$D$35,$F$2:$G$48,2,FALSE)+ROW()-2)),\"\")","v":{"$error":"#N/A"}},{"$f":"IF(INDIRECT(\"c\" & (VLOOKUP(Rebalance!$D$36,$F$2:$G$48,2,FALSE)+ROW()-2))=Rebalance!$D$36,INDIRECT(\"a\" & (VLOOKUP(Rebalance!$D$36,$F$2:$G$48,2,FALSE)+ROW()-2)),\"\")","v":{"$error":"#N/A"}},{"$f":"IF(INDIRECT(\"c\" & (VLOOKUP(Rebalance!$D$37,$F$2:$G$48,2,FALSE)+ROW()-2))=Rebalance!$D$37,INDIRECT(\"a\" & (VLOOKUP(Rebalance!$D$37,$F$2:$G$48,2,FALSE)+ROW()-2)),\"\")","v":{"$error":"#N/A"}},{"$f":"IF(INDIRECT(\"c\" & (VLOOKUP(Rebalance!$D$38,$F$2:$G$48,2,FALSE)+ROW()-2))=Rebalance!$D$38,INDIRECT(\"a\" & (VLOOKUP(Rebalance!$D$38,$F$2:$G$48,2,FALSE)+ROW()-2)),\"\")","v":{"$error":"#N/A"}},{"$f":"IF(INDIRECT(\"c\" & (VLOOKUP(Rebalance!$D$39,$F$2:$G$48,2,FALSE)+ROW()-2))=Rebalance!$D$39,INDIRECT(\"a\" & (VLOOKUP(Rebalance!$D$39,$F$2:$G$48,2,FALSE)+ROW()-2)),\"\")","v":{"$error":"#N/A"}},{"$f":"IF(INDIRECT(\"c\" & (VLOOKUP(Rebalance!$D$40,$F$2:$G$48,2,FALSE)+ROW()-2))=Rebalance!$D$40,INDIRECT(\"a\" & (VLOOKUP(Rebalance!$D$40,$F$2:$G$48,2,FALSE)+ROW()-2)),\"\")","v":{"$error":"#N/A"}},{"$f":"IF(INDIRECT(\"c\" & (VLOOKUP(Rebalance!$D$52,$F$2:$G$48,2,FALSE)+ROW()-2))=Rebalance!$D$52,INDIRECT(\"a\" & (VLOOKUP(Rebalance!$D$52,$F$2:$G$48,2,FALSE)+ROW()-2)),\"\")","v":{"$error":"#N/A"}},{"$f":"IF(INDIRECT(\"c\" & (VLOOKUP(Rebalance!$D$53,$F$2:$G$48,2,FALSE)+ROW()-2))=Rebalance!$D$53,INDIRECT(\"a\" & (VLOOKUP(Rebalance!$D$53,$F$2:$G$48,2,FALSE)+ROW()-2)),\"\")","v":{"$error":"#N/A"}},{"$f":"IF(INDIRECT(\"c\" & (VLOOKUP(Rebalance!$D$54,$F$2:$G$48,2,FALSE)+ROW()-2))=Rebalance!$D$54,INDIRECT(\"a\" & (VLOOKUP(Rebalance!$D$54,$F$2:$G$48,2,FALSE)+ROW()-2)),\"\")","v":{"$error":"#N/A"}},{"$f":"IF(INDIRECT(\"c\" & (VLOOKUP(Rebalance!$D$55,$F$2:$G$48,2,FALSE)+ROW()-2))=Rebalance!$D$55,INDIRECT(\"a\" & (VLOOKUP(Rebalance!$D$55,$F$2:$G$48,2,FALSE)+ROW()-2)),\"\")","v":{"$error":"#N/A"}},{"$f":"IF(INDIRECT(\"c\" & (VLOOKUP(Rebalance!$D$56,$F$2:$G$48,2,FALSE)+ROW()-2))=Rebalance!$D$56,INDIRECT(\"a\" & (VLOOKUP(Rebalance!$D$56,$F$2:$G$48,2,FALSE)+ROW()-2)),\"\")","v":{"$error":"#N/A"}},{"$f":"IF(INDIRECT(\"c\" & (VLOOKUP(Rebalance!$D$57,$F$2:$G$48,2,FALSE)+ROW()-2))=Rebalance!$D$57,INDIRECT(\"a\" & (VLOOKUP(Rebalance!$D$57,$F$2:$G$48,2,FALSE)+ROW()-2)),\"\")","v":{"$error":"#N/A"}},{"$f":"IF(INDIRECT(\"c\" & (VLOOKUP(Rebalance!$D$58,$F$2:$G$48,2,FALSE)+ROW()-2))=Rebalance!$D$58,INDIRECT(\"a\" & (VLOOKUP(Rebalance!$D$58,$F$2:$G$48,2,FALSE)+ROW()-2)),\"\")","v":{"$error":"#N/A"}},{"$f":"IF(INDIRECT(\"c\" & (VLOOKUP(Rebalance!$D$59,$F$2:$G$48,2,FALSE)+ROW()-2))=Rebalance!$D$59,INDIRECT(\"a\" & (VLOOKUP(Rebalance!$D$59,$F$2:$G$48,2,FALSE)+ROW()-2)),\"\")","v":{"$error":"#N/A"}},{"$f":"IF(INDIRECT(\"c\" & (VLOOKUP(Rebalance!$D$60,$F$2:$G$48,2,FALSE)+ROW()-2))=Rebalance!$D$60,INDIRECT(\"a\" & (VLOOKUP(Rebalance!$D$60,$F$2:$G$48,2,FALSE)+ROW()-2)),\"\")","v":{"$error":"#N/A"}},{"$f":"IF(INDIRECT(\"c\" & (VLOOKUP(Rebalance!$D$61,$F$2:$G$48,2,FALSE)+ROW()-2))=Rebalance!$D$61,INDIRECT(\"a\" & (VLOOKUP(Rebalance!$D$61,$F$2:$G$48,2,FALSE)+ROW()-2)),\"\")","v":{"$error":"#N/A"}},{"$f":"IF(INDIRECT(\"c\" & (VLOOKUP(Rebalance!$D$62,$F$2:$G$48,2,FALSE)+ROW()-2))=Rebalance!$D$62,INDIRECT(\"a\" & (VLOOKUP(Rebalance!$D$62,$F$2:$G$48,2,FALSE)+ROW()-2)),\"\")","v":{"$error":"#N/A"}},{"$f":"IF(INDIRECT(\"c\" & (VLOOKUP(Rebalance!$D$63,$F$2:$G$48,2,FALSE)+ROW()-2))=Rebalance!$D$63,INDIRECT(\"a\" & (VLOOKUP(Rebalance!$D$63,$F$2:$G$48,2,FALSE)+ROW()-2)),\"\")","v":{"$error":"#N/A"}},{"$f":"IF(INDIRECT(\"c\" & (VLOOKUP(Rebalance!$D$64,$F$2:$G$48,2,FALSE)+ROW()-2))=Rebalance!$D$64,INDIRECT(\"a\" & (VLOOKUP(Rebalance!$D$64,$F$2:$G$48,2,FALSE)+ROW()-2)),\"\")","v":{"$error":"#N/A"}},{"$f":"IF(INDIRECT(\"c\" & (VLOOKUP(Rebalance!$D$65,$F$2:$G$48,2,FALSE)+ROW()-2))=Rebalance!$D$65,INDIRECT(\"a\" & (VLOOKUP(Rebalance!$D$65,$F$2:$G$48,2,FALSE)+ROW()-2)),\"\")","v":{"$error":"#N/A"}},{"$f":"IF(INDIRECT(\"c\" & (VLOOKUP(Rebalance!$D$66,$F$2:$G$48,2,FALSE)+ROW()-2))=Rebalance!$D$66,INDIRECT(\"a\" & (VLOOKUP(Rebalance!$D$66,$F$2:$G$48,2,FALSE)+ROW()-2)),\"\")","v":{"$error":"#N/A"}}]
["Sequoia BCI Managed Growth Fund of Funds A","BCIGFA","Sanlam Collective Investments",{"$f":"ROW()","v":527},null,null,{"$f":"VLOOKUP(F527,$C$2:$D$599,2,FALSE)","v":{"$error":"#N/A"}},{"$f":"IF(INDIRECT(\"c\" & (VLOOKUP(Rebalance!$D$26,$F$2:$G$48,2,FALSE)+ROW()-2))=Rebalance!$D$26,INDIRECT(\"a\" & (VLOOKUP(Rebalance!$D$26,$F$2:$G$48,2,FALSE)+ROW()-2)),\"\")","v":{"$error":"#N/A"}},{"$f":"IF(INDIRECT(\"c\" & (VLOOKUP(Rebalance!$D$27,$F$2:$G$48,2,FALSE)+ROW()-2))=Rebalance!$D$27,INDIRECT(\"a\" & (VLOOKUP(Rebalance!$D$27,$F$2:$G$48,2,FALSE)+ROW()-2)),\"\")","v":{"$error":"#N/A"}},{"$f":"IF(INDIRECT(\"c\" & (VLOOKUP(Rebalance!$D$28,$F$2:$G$48,2,FALSE)+ROW()-2))=Rebalance!$D$28,INDIRECT(\"a\" & (VLOOKUP(Rebalance!$D$28,$F$2:$G$48,2,FALSE)+ROW()-2)),\"\")","v":{"$error":"#N/A"}},{"$f":"IF(INDIRECT(\"c\" & (VLOOKUP(Rebalance!$D$29,$F$2:$G$48,2,FALSE)+ROW()-2))=Rebalance!$D$29,INDIRECT(\"a\" & (VLOOKUP(Rebalance!$D$29,$F$2:$G$48,2,FALSE)+ROW()-2)),\"\")","v":{"$error":"#N/A"}},{"$f":"IF(INDIRECT(\"c\" & (VLOOKUP(Rebalance!$D$30,$F$2:$G$48,2,FALSE)+ROW()-2))=Rebalance!$D$30,INDIRECT(\"a\" & (VLOOKUP(Rebalance!$D$30,$F$2:$G$48,2,FALSE)+ROW()-2)),\"\")","v":{"$error":"#N/A"}},{"$f":"IF(INDIRECT(\"c\" & (VLOOKUP(Rebalance!$D$31,$F$2:$G$48,2,FALSE)+ROW()-2))=Rebalance!$D$31,INDIRECT(\"a\" & (VLOOKUP(Rebalance!$D$31,$F$2:$G$48,2,FALSE)+ROW()-2)),\"\")","v":{"$error":"#N/A"}},{"$f":"IF(INDIRECT(\"c\" & (VLOOKUP(Rebalance!$D$32,$F$2:$G$48,2,FALSE)+ROW()-2))=Rebalance!$D$32,INDIRECT(\"a\" & (VLOOKUP(Rebalance!$D$32,$F$2:$G$48,2,FALSE)+ROW()-2)),\"\")","v":{"$error":"#N/A"}},{"$f":"IF(INDIRECT(\"c\" & (VLOOKUP(Rebalance!$D$33,$F$2:$G$48,2,FALSE)+ROW()-2))=Rebalance!$D$33,INDIRECT(\"a\" & (VLOOKUP(Rebalance!$D$33,$F$2:$G$48,2,FALSE)+ROW()-2)),\"\")","v":{"$error":"#N/A"}},{"$f":"IF(INDIRECT(\"c\" & (VLOOKUP(Rebalance!$D$34,$F$2:$G$48,2,FALSE)+ROW()-2))=Rebalance!$D$34,INDIRECT(\"a\" & (VLOOKUP(Rebalance!$D$34,$F$2:$G$48,2,FALSE)+ROW()-2)),\"\")","v":{"$error":"#N/A"}},{"$f":"IF(INDIRECT(\"c\" & (VLOOKUP(Rebalance!$D$35,$F$2:$G$48,2,FALSE)+ROW()-2))=Rebalance!$D$35,INDIRECT(\"a\" & (VLOOKUP(Rebalance!$D$35,$F$2:$G$48,2,FALSE)+ROW()-2)),\"\")","v":{"$error":"#N/A"}},{"$f":"IF(INDIRECT(\"c\" & (VLOOKUP(Rebalance!$D$36,$F$2:$G$48,2,FALSE)+ROW()-2))=Rebalance!$D$36,INDIRECT(\"a\" & (VLOOKUP(Rebalance!$D$36,$F$2:$G$48,2,FALSE)+ROW()-2)),\"\")","v":{"$error":"#N/A"}},{"$f":"IF(INDIRECT(\"c\" & (VLOOKUP(Rebalance!$D$37,$F$2:$G$48,2,FALSE)+ROW()-2))=Rebalance!$D$37,INDIRECT(\"a\" & (VLOOKUP(Rebalance!$D$37,$F$2:$G$48,2,FALSE)+ROW()-2)),\"\")","v":{"$error":"#N/A"}},{"$f":"IF(INDIRECT(\"c\" & (VLOOKUP(Rebalance!$D$38,$F$2:$G$48,2,FALSE)+ROW()-2))=Rebalance!$D$38,INDIRECT(\"a\" & (VLOOKUP(Rebalance!$D$38,$F$2:$G$48,2,FALSE)+ROW()-2)),\"\")","v":{"$error":"#N/A"}},{"$f":"IF(INDIRECT(\"c\" & (VLOOKUP(Rebalance!$D$39,$F$2:$G$48,2,FALSE)+ROW()-2))=Rebalance!$D$39,INDIRECT(\"a\" & (VLOOKUP(Rebalance!$D$39,$F$2:$G$48,2,FALSE)+ROW()-2)),\"\")","v":{"$error":"#N/A"}},{"$f":"IF(INDIRECT(\"c\" & (VLOOKUP(Rebalance!$D$40,$F$2:$G$48,2,FALSE)+ROW()-2))=Rebalance!$D$40,INDIRECT(\"a\" & (VLOOKUP(Rebalance!$D$40,$F$2:$G$48,2,FALSE)+ROW()-2)),\"\")","v":{"$error":"#N/A"}},{"$f":"IF(INDIRECT(\"c\" & (VLOOKUP(Rebalance!$D$52,$F$2:$G$48,2,FALSE)+ROW()-2))=Rebalance!$D$52,INDIRECT(\"a\" & (VLOOKUP(Rebalance!$D$52,$F$2:$G$48,2,FALSE)+ROW()-2)),\"\")","v":{"$error":"#N/A"}},{"$f":"IF(INDIRECT(\"c\" & (VLOOKUP(Rebalance!$D$53,$F$2:$G$48,2,FALSE)+ROW()-2))=Rebalance!$D$53,INDIRECT(\"a\" & (VLOOKUP(Rebalance!$D$53,$F$2:$G$48,2,FALSE)+ROW()-2)),\"\")","v":{"$error":"#N/A"}},{"$f":"IF(INDIRECT(\"c\" & (VLOOKUP(Rebalance!$D$54,$F$2:$G$48,2,FALSE)+ROW()-2))=Rebalance!$D$54,INDIRECT(\"a\" & (VLOOKUP(Rebalance!$D$54,$F$2:$G$48,2,FALSE)+ROW()-2)),\"\")","v":{"$error":"#N/A"}},{"$f":"IF(INDIRECT(\"c\" & (VLOOKUP(Rebalance!$D$55,$F$2:$G$48,2,FALSE)+ROW()-2))=Rebalance!$D$55,INDIRECT(\"a\" & (VLOOKUP(Rebalance!$D$55,$F$2:$G$48,2,FALSE)+ROW()-2)),\"\")","v":{"$error":"#N/A"}},{"$f":"IF(INDIRECT(\"c\" & (VLOOKUP(Rebalance!$D$56,$F$2:$G$48,2,FALSE)+ROW()-2))=Rebalance!$D$56,INDIRECT(\"a\" & (VLOOKUP(Rebalance!$D$56,$F$2:$G$48,2,FALSE)+ROW()-2)),\"\")","v":{"$error":"#N/A"}},{"$f":"IF(INDIRECT(\"c\" & (VLOOKUP(Rebalance!$D$57,$F$2:$G$48,2,FALSE)+ROW()-2))=Rebalance!$D$57,INDIRECT(\"a\" & (VLOOKUP(Rebalance!$D$57,$F$2:$G$48,2,FALSE)+ROW()-2)),\"\")","v":{"$error":"#N/A"}},{"$f":"IF(INDIRECT(\"c\" & (VLOOKUP(Rebalance!$D$58,$F$2:$G$48,2,FALSE)+ROW()-2))=Rebalance!$D$58,INDIRECT(\"a\" & (VLOOKUP(Rebalance!$D$58,$F$2:$G$48,2,FALSE)+ROW()-2)),\"\")","v":{"$error":"#N/A"}},{"$f":"IF(INDIRECT(\"c\" & (VLOOKUP(Rebalance!$D$59,$F$2:$G$48,2,FALSE)+ROW()-2))=Rebalance!$D$59,INDIRECT(\"a\" & (VLOOKUP(Rebalance!$D$59,$F$2:$G$48,2,FALSE)+ROW()-2)),\"\")","v":{"$error":"#N/A"}},{"$f":"IF(INDIRECT(\"c\" & (VLOOKUP(Rebalance!$D$60,$F$2:$G$48,2,FALSE)+ROW()-2))=Rebalance!$D$60,INDIRECT(\"a\" & (VLOOKUP(Rebalance!$D$60,$F$2:$G$48,2,FALSE)+ROW()-2)),\"\")","v":{"$error":"#N/A"}},{"$f":"IF(INDIRECT(\"c\" & (VLOOKUP(Rebalance!$D$61,$F$2:$G$48,2,FALSE)+ROW()-2))=Rebalance!$D$61,INDIRECT(\"a\" & (VLOOKUP(Rebalance!$D$61,$F$2:$G$48,2,FALSE)+ROW()-2)),\"\")","v":{"$error":"#N/A"}},{"$f":"IF(INDIRECT(\"c\" & (VLOOKUP(Rebalance!$D$62,$F$2:$G$48,2,FALSE)+ROW()-2))=Rebalance!$D$62,INDIRECT(\"a\" & (VLOOKUP(Rebalance!$D$62,$F$2:$G$48,2,FALSE)+ROW()-2)),\"\")","v":{"$error":"#N/A"}},{"$f":"IF(INDIRECT(\"c\" & (VLOOKUP(Rebalance!$D$63,$F$2:$G$48,2,FALSE)+ROW()-2))=Rebalance!$D$63,INDIRECT(\"a\" & (VLOOKUP(Rebalance!$D$63,$F$2:$G$48,2,FALSE)+ROW()-2)),\"\")","v":{"$error":"#N/A"}},{"$f":"IF(INDIRECT(\"c\" & (VLOOKUP(Rebalance!$D$64,$F$2:$G$48,2,FALSE)+ROW()-2))=Rebalance!$D$64,INDIRECT(\"a\" & (VLOOKUP(Rebalance!$D$64,$F$2:$G$48,2,FALSE)+ROW()-2)),\"\")","v":{"$error":"#N/A"}},{"$f":"IF(INDIRECT(\"c\" & (VLOOKUP(Rebalance!$D$65,$F$2:$G$48,2,FALSE)+ROW()-2))=Rebalance!$D$65,INDIRECT(\"a\" & (VLOOKUP(Rebalance!$D$65,$F$2:$G$48,2,FALSE)+ROW()-2)),\"\")","v":{"$error":"#N/A"}},{"$f":"IF(INDIRECT(\"c\" & (VLOOKUP(Rebalance!$D$66,$F$2:$G$48,2,FALSE)+ROW()-2))=Rebalance!$D$66,INDIRECT(\"a\" & (VLOOKUP(Rebalance!$D$66,$F$2:$G$48,2,FALSE)+ROW()-2)),\"\")","v":{"$error":"#N/A"}}]
["Sequoia BCI Stable Fund of Funds A","BCISFA","Sanlam Collective Investments",{"$f":"ROW()","v":528},null,null,{"$f":"VLOOKUP(F528,$C$2:$D$599,2,FALSE)","v":{"$error":"#N/A"}},{"$f":"IF(INDIRECT(\"c\" & (VLOOKUP(Rebalance!$D$26,$F$2:$G$48,2,FALSE)+ROW()-2))=Rebalance!$D$26,INDIRECT(\"a\" & (VLOOKUP(Rebalance!$D$26,$F$2:$G$48,2,FALSE)+ROW()-2)),\"\")","v":{"$error":"#N/A"}},{"$f":"IF(INDIRECT(\"c\" & (VLOOKUP(Rebalance!$D$27,$F$2:$G$48,2,FALSE)+ROW()-2))=Rebalance!$D$27,INDIRECT(\"a\" & (VLOOKUP(Rebalance!$D$27,$F$2:$G$48,2,FALSE)+ROW()-2)),\"\")","v":{"$error":"#N/A"}},{"$f":"IF(INDIRECT(\"c\" & (VLOOKUP(Rebalance!$D$28,$F$2:$G$48,2,FALSE)+ROW()-2))=Rebalance!$D$28,INDIRECT(\"a\" & (VLOOKUP(Rebalance!$D$28,$F$2:$G$48,2,FALSE)+ROW()-2)),\"\")","v":{"$error":"#N/A"}},{"$f":"IF(INDIRECT(\"c\" & (VLOOKUP(Rebalance!$D$29,$F$2:$G$48,2,FALSE)+ROW()-2))=Rebalance!$D$29,INDIRECT(\"a\" & (VLOOKUP(Rebalance!$D$29,$F$2:$G$48,2,FALSE)+ROW()-2)),\"\")","v":{"$error":"#N/A"}},{"$f":"IF(INDIRECT(\"c\" & (VLOOKUP(Rebalance!$D$30,$F$2:$G$48,2,FALSE)+ROW()-2))=Rebalance!$D$30,INDIRECT(\"a\" & (VLOOKUP(Rebalance!$D$30,$F$2:$G$48,2,FALSE)+ROW()-2)),\"\")","v":{"$error":"#N/A"}},{"$f":"IF(INDIRECT(\"c\" & (VLOOKUP(Rebalance!$D$31,$F$2:$G$48,2,FALSE)+ROW()-2))=Rebalance!$D$31,INDIRECT(\"a\" & (VLOOKUP(Rebalance!$D$31,$F$2:$G$48,2,FALSE)+ROW()-2)),\"\")","v":{"$error":"#N/A"}},{"$f":"IF(INDIRECT(\"c\" & (VLOOKUP(Rebalance!$D$32,$F$2:$G$48,2,FALSE)+ROW()-2))=Rebalance!$D$32,INDIRECT(\"a\" & (VLOOKUP(Rebalance!$D$32,$F$2:$G$48,2,FALSE)+ROW()-2)),\"\")","v":{"$error":"#N/A"}},{"$f":"IF(INDIRECT(\"c\" & (VLOOKUP(Rebalance!$D$33,$F$2:$G$48,2,FALSE)+ROW()-2))=Rebalance!$D$33,INDIRECT(\"a\" & (VLOOKUP(Rebalance!$D$33,$F$2:$G$48,2,FALSE)+ROW()-2)),\"\")","v":{"$error":"#N/A"}},{"$f":"IF(INDIRECT(\"c\" & (VLOOKUP(Rebalance!$D$34,$F$2:$G$48,2,FALSE)+ROW()-2))=Rebalance!$D$34,INDIRECT(\"a\" & (VLOOKUP(Rebalance!$D$34,$F$2:$G$48,2,FALSE)+ROW()-2)),\"\")","v":{"$error":"#N/A"}},{"$f":"IF(INDIRECT(\"c\" & (VLOOKUP(Rebalance!$D$35,$F$2:$G$48,2,FALSE)+ROW()-2))=Rebalance!$D$35,INDIRECT(\"a\" & (VLOOKUP(Rebalance!$D$35,$F$2:$G$48,2,FALSE)+ROW()-2)),\"\")","v":{"$error":"#N/A"}},{"$f":"IF(INDIRECT(\"c\" & (VLOOKUP(Rebalance!$D$36,$F$2:$G$48,2,FALSE)+ROW()-2))=Rebalance!$D$36,INDIRECT(\"a\" & (VLOOKUP(Rebalance!$D$36,$F$2:$G$48,2,FALSE)+ROW()-2)),\"\")","v":{"$error":"#N/A"}},{"$f":"IF(INDIRECT(\"c\" & (VLOOKUP(Rebalance!$D$37,$F$2:$G$48,2,FALSE)+ROW()-2))=Rebalance!$D$37,INDIRECT(\"a\" & (VLOOKUP(Rebalance!$D$37,$F$2:$G$48,2,FALSE)+ROW()-2)),\"\")","v":{"$error":"#N/A"}},{"$f":"IF(INDIRECT(\"c\" & (VLOOKUP(Rebalance!$D$38,$F$2:$G$48,2,FALSE)+ROW()-2))=Rebalance!$D$38,INDIRECT(\"a\" & (VLOOKUP(Rebalance!$D$38,$F$2:$G$48,2,FALSE)+ROW()-2)),\"\")","v":{"$error":"#N/A"}},{"$f":"IF(INDIRECT(\"c\" & (VLOOKUP(Rebalance!$D$39,$F$2:$G$48,2,FALSE)+ROW()-2))=Rebalance!$D$39,INDIRECT(\"a\" & (VLOOKUP(Rebalance!$D$39,$F$2:$G$48,2,FALSE)+ROW()-2)),\"\")","v":{"$error":"#N/A"}},{"$f":"IF(INDIRECT(\"c\" & (VLOOKUP(Rebalance!$D$40,$F$2:$G$48,2,FALSE)+ROW()-2))=Rebalance!$D$40,INDIRECT(\"a\" & (VLOOKUP(Rebalance!$D$40,$F$2:$G$48,2,FALSE)+ROW()-2)),\"\")","v":{"$error":"#N/A"}},{"$f":"IF(INDIRECT(\"c\" & (VLOOKUP(Rebalance!$D$52,$F$2:$G$48,2,FALSE)+ROW()-2))=Rebalance!$D$52,INDIRECT(\"a\" & (VLOOKUP(Rebalance!$D$52,$F$2:$G$48,2,FALSE)+ROW()-2)),\"\")","v":{"$error":"#N/A"}},{"$f":"IF(INDIRECT(\"c\" & (VLOOKUP(Rebalance!$D$53,$F$2:$G$48,2,FALSE)+ROW()-2))=Rebalance!$D$53,INDIRECT(\"a\" & (VLOOKUP(Rebalance!$D$53,$F$2:$G$48,2,FALSE)+ROW()-2)),\"\")","v":{"$error":"#N/A"}},{"$f":"IF(INDIRECT(\"c\" & (VLOOKUP(Rebalance!$D$54,$F$2:$G$48,2,FALSE)+ROW()-2))=Rebalance!$D$54,INDIRECT(\"a\" & (VLOOKUP(Rebalance!$D$54,$F$2:$G$48,2,FALSE)+ROW()-2)),\"\")","v":{"$error":"#N/A"}},{"$f":"IF(INDIRECT(\"c\" & (VLOOKUP(Rebalance!$D$55,$F$2:$G$48,2,FALSE)+ROW()-2))=Rebalance!$D$55,INDIRECT(\"a\" & (VLOOKUP(Rebalance!$D$55,$F$2:$G$48,2,FALSE)+ROW()-2)),\"\")","v":{"$error":"#N/A"}},{"$f":"IF(INDIRECT(\"c\" & (VLOOKUP(Rebalance!$D$56,$F$2:$G$48,2,FALSE)+ROW()-2))=Rebalance!$D$56,INDIRECT(\"a\" & (VLOOKUP(Rebalance!$D$56,$F$2:$G$48,2,FALSE)+ROW()-2)),\"\")","v":{"$error":"#N/A"}},{"$f":"IF(INDIRECT(\"c\" & (VLOOKUP(Rebalance!$D$57,$F$2:$G$48,2,FALSE)+ROW()-2))=Rebalance!$D$57,INDIRECT(\"a\" & (VLOOKUP(Rebalance!$D$57,$F$2:$G$48,2,FALSE)+ROW()-2)),\"\")","v":{"$error":"#N/A"}},{"$f":"IF(INDIRECT(\"c\" & (VLOOKUP(Rebalance!$D$58,$F$2:$G$48,2,FALSE)+ROW()-2))=Rebalance!$D$58,INDIRECT(\"a\" & (VLOOKUP(Rebalance!$D$58,$F$2:$G$48,2,FALSE)+ROW()-2)),\"\")","v":{"$error":"#N/A"}},{"$f":"IF(INDIRECT(\"c\" & (VLOOKUP(Rebalance!$D$59,$F$2:$G$48,2,FALSE)+ROW()-2))=Rebalance!$D$59,INDIRECT(\"a\" & (VLOOKUP(Rebalance!$D$59,$F$2:$G$48,2,FALSE)+ROW()-2)),\"\")","v":{"$error":"#N/A"}},{"$f":"IF(INDIRECT(\"c\" & (VLOOKUP(Rebalance!$D$60,$F$2:$G$48,2,FALSE)+ROW()-2))=Rebalance!$D$60,INDIRECT(\"a\" & (VLOOKUP(Rebalance!$D$60,$F$2:$G$48,2,FALSE)+ROW()-2)),\"\")","v":{"$error":"#N/A"}},{"$f":"IF(INDIRECT(\"c\" & (VLOOKUP(Rebalance!$D$61,$F$2:$G$48,2,FALSE)+ROW()-2))=Rebalance!$D$61,INDIRECT(\"a\" & (VLOOKUP(Rebalance!$D$61,$F$2:$G$48,2,FALSE)+ROW()-2)),\"\")","v":{"$error":"#N/A"}},{"$f":"IF(INDIRECT(\"c\" & (VLOOKUP(Rebalance!$D$62,$F$2:$G$48,2,FALSE)+ROW()-2))=Rebalance!$D$62,INDIRECT(\"a\" & (VLOOKUP(Rebalance!$D$62,$F$2:$G$48,2,FALSE)+ROW()-2)),\"\")","v":{"$error":"#N/A"}},{"$f":"IF(INDIRECT(\"c\" & (VLOOKUP(Rebalance!$D$63,$F$2:$G$48,2,FALSE)+ROW()-2))=Rebalance!$D$63,INDIRECT(\"a\" & (VLOOKUP(Rebalance!$D$63,$F$2:$G$48,2,FALSE)+ROW()-2)),\"\")","v":{"$error":"#N/A"}},{"$f":"IF(INDIRECT(\"c\" & (VLOOKUP(Rebalance!$D$64,$F$2:$G$48,2,FALSE)+ROW()-2))=Rebalance!$D$64,INDIRECT(\"a\" & (VLOOKUP(Rebalance!$D$64,$F$2:$G$48,2,FALSE)+ROW()-2)),\"\")","v":{"$error":"#N/A"}},{"$f":"IF(INDIRECT(\"c\" & (VLOOKUP(Rebalance!$D$65,$F$2:$G$48,2,FALSE)+ROW()-2))=Rebalance!$D$65,INDIRECT(\"a\" & (VLOOKUP(Rebalance!$D$65,$F$2:$G$48,2,FALSE)+ROW()-2)),\"\")","v":{"$error":"#N/A"}},{"$f":"IF(INDIRECT(\"c\" & (VLOOKUP(Rebalance!$D$66,$F$2:$G$48,2,FALSE)+ROW()-2))=Rebalance!$D$66,INDIRECT(\"a\" & (VLOOKUP(Rebalance!$D$66,$F$2:$G$48,2,FALSE)+ROW()-2)),\"\")","v":{"$error":"#N/A"}}]
["SIM Absolute Return Income Fund","SAAR","Sanlam Collective Investments",{"$f":"ROW()","v":529},null,null,{"$f":"VLOOKUP(F529,$C$2:$D$599,2,FALSE)","v":{"$error":"#N/A"}},{"$f":"IF(INDIRECT(\"c\" & (VLOOKUP(Rebalance!$D$26,$F$2:$G$48,2,FALSE)+ROW()-2))=Rebalance!$D$26,INDIRECT(\"a\" & (VLOOKUP(Rebalance!$D$26,$F$2:$G$48,2,FALSE)+ROW()-2)),\"\")","v":{"$error":"#N/A"}},{"$f":"IF(INDIRECT(\"c\" & (VLOOKUP(Rebalance!$D$27,$F$2:$G$48,2,FALSE)+ROW()-2))=Rebalance!$D$27,INDIRECT(\"a\" & (VLOOKUP(Rebalance!$D$27,$F$2:$G$48,2,FALSE)+ROW()-2)),\"\")","v":{"$error":"#N/A"}},{"$f":"IF(INDIRECT(\"c\" & (VLOOKUP(Rebalance!$D$28,$F$2:$G$48,2,FALSE)+ROW()-2))=Rebalance!$D$28,INDIRECT(\"a\" & (VLOOKUP(Rebalance!$D$28,$F$2:$G$48,2,FALSE)+ROW()-2)),\"\")","v":{"$error":"#N/A"}},{"$f":"IF(INDIRECT(\"c\" & (VLOOKUP(Rebalance!$D$29,$F$2:$G$48,2,FALSE)+ROW()-2))=Rebalance!$D$29,INDIRECT(\"a\" & (VLOOKUP(Rebalance!$D$29,$F$2:$G$48,2,FALSE)+ROW()-2)),\"\")","v":{"$error":"#N/A"}},{"$f":"IF(INDIRECT(\"c\" & (VLOOKUP(Rebalance!$D$30,$F$2:$G$48,2,FALSE)+ROW()-2))=Rebalance!$D$30,INDIRECT(\"a\" & (VLOOKUP(Rebalance!$D$30,$F$2:$G$48,2,FALSE)+ROW()-2)),\"\")","v":{"$error":"#N/A"}},{"$f":"IF(INDIRECT(\"c\" & (VLOOKUP(Rebalance!$D$31,$F$2:$G$48,2,FALSE)+ROW()-2))=Rebalance!$D$31,INDIRECT(\"a\" & (VLOOKUP(Rebalance!$D$31,$F$2:$G$48,2,FALSE)+ROW()-2)),\"\")","v":{"$error":"#N/A"}},{"$f":"IF(INDIRECT(\"c\" & (VLOOKUP(Rebalance!$D$32,$F$2:$G$48,2,FALSE)+ROW()-2))=Rebalance!$D$32,INDIRECT(\"a\" & (VLOOKUP(Rebalance!$D$32,$F$2:$G$48,2,FALSE)+ROW()-2)),\"\")","v":{"$error":"#N/A"}},{"$f":"IF(INDIRECT(\"c\" & (VLOOKUP(Rebalance!$D$33,$F$2:$G$48,2,FALSE)+ROW()-2))=Rebalance!$D$33,INDIRECT(\"a\" & (VLOOKUP(Rebalance!$D$33,$F$2:$G$48,2,FALSE)+ROW()-2)),\"\")","v":{"$error":"#N/A"}},{"$f":"IF(INDIRECT(\"c\" & (VLOOKUP(Rebalance!$D$34,$F$2:$G$48,2,FALSE)+ROW()-2))=Rebalance!$D$34,INDIRECT(\"a\" & (VLOOKUP(Rebalance!$D$34,$F$2:$G$48,2,FALSE)+ROW()-2)),\"\")","v":{"$error":"#N/A"}},{"$f":"IF(INDIRECT(\"c\" & (VLOOKUP(Rebalance!$D$35,$F$2:$G$48,2,FALSE)+ROW()-2))=Rebalance!$D$35,INDIRECT(\"a\" & (VLOOKUP(Rebalance!$D$35,$F$2:$G$48,2,FALSE)+ROW()-2)),\"\")","v":{"$error":"#N/A"}},{"$f":"IF(INDIRECT(\"c\" & (VLOOKUP(Rebalance!$D$36,$F$2:$G$48,2,FALSE)+ROW()-2))=Rebalance!$D$36,INDIRECT(\"a\" & (VLOOKUP(Rebalance!$D$36,$F$2:$G$48,2,FALSE)+ROW()-2)),\"\")","v":{"$error":"#N/A"}},{"$f":"IF(INDIRECT(\"c\" & (VLOOKUP(Rebalance!$D$37,$F$2:$G$48,2,FALSE)+ROW()-2))=Rebalance!$D$37,INDIRECT(\"a\" & (VLOOKUP(Rebalance!$D$37,$F$2:$G$48,2,FALSE)+ROW()-2)),\"\")","v":{"$error":"#N/A"}},{"$f":"IF(INDIRECT(\"c\" & (VLOOKUP(Rebalance!$D$38,$F$2:$G$48,2,FALSE)+ROW()-2))=Rebalance!$D$38,INDIRECT(\"a\" & (VLOOKUP(Rebalance!$D$38,$F$2:$G$48,2,FALSE)+ROW()-2)),\"\")","v":{"$error":"#N/A"}},{"$f":"IF(INDIRECT(\"c\" & (VLOOKUP(Rebalance!$D$39,$F$2:$G$48,2,FALSE)+ROW()-2))=Rebalance!$D$39,INDIRECT(\"a\" & (VLOOKUP(Rebalance!$D$39,$F$2:$G$48,2,FALSE)+ROW()-2)),\"\")","v":{"$error":"#N/A"}},{"$f":"IF(INDIRECT(\"c\" & (VLOOKUP(Rebalance!$D$40,$F$2:$G$48,2,FALSE)+ROW()-2))=Rebalance!$D$40,INDIRECT(\"a\" & (VLOOKUP(Rebalance!$D$40,$F$2:$G$48,2,FALSE)+ROW()-2)),\"\")","v":{"$error":"#N/A"}},{"$f":"IF(INDIRECT(\"c\" & (VLOOKUP(Rebalance!$D$52,$F$2:$G$48,2,FALSE)+ROW()-2))=Rebalance!$D$52,INDIRECT(\"a\" & (VLOOKUP(Rebalance!$D$52,$F$2:$G$48,2,FALSE)+ROW()-2)),\"\")","v":{"$error":"#N/A"}},{"$f":"IF(INDIRECT(\"c\" & (VLOOKUP(Rebalance!$D$53,$F$2:$G$48,2,FALSE)+ROW()-2))=Rebalance!$D$53,INDIRECT(\"a\" & (VLOOKUP(Rebalance!$D$53,$F$2:$G$48,2,FALSE)+ROW()-2)),\"\")","v":{"$error":"#N/A"}},{"$f":"IF(INDIRECT(\"c\" & (VLOOKUP(Rebalance!$D$54,$F$2:$G$48,2,FALSE)+ROW()-2))=Rebalance!$D$54,INDIRECT(\"a\" & (VLOOKUP(Rebalance!$D$54,$F$2:$G$48,2,FALSE)+ROW()-2)),\"\")","v":{"$error":"#N/A"}},{"$f":"IF(INDIRECT(\"c\" & (VLOOKUP(Rebalance!$D$55,$F$2:$G$48,2,FALSE)+ROW()-2))=Rebalance!$D$55,INDIRECT(\"a\" & (VLOOKUP(Rebalance!$D$55,$F$2:$G$48,2,FALSE)+ROW()-2)),\"\")","v":{"$error":"#N/A"}},{"$f":"IF(INDIRECT(\"c\" & (VLOOKUP(Rebalance!$D$56,$F$2:$G$48,2,FALSE)+ROW()-2))=Rebalance!$D$56,INDIRECT(\"a\" & (VLOOKUP(Rebalance!$D$56,$F$2:$G$48,2,FALSE)+ROW()-2)),\"\")","v":{"$error":"#N/A"}},{"$f":"IF(INDIRECT(\"c\" & (VLOOKUP(Rebalance!$D$57,$F$2:$G$48,2,FALSE)+ROW()-2))=Rebalance!$D$57,INDIRECT(\"a\" & (VLOOKUP(Rebalance!$D$57,$F$2:$G$48,2,FALSE)+ROW()-2)),\"\")","v":{"$error":"#N/A"}},{"$f":"IF(INDIRECT(\"c\" & (VLOOKUP(Rebalance!$D$58,$F$2:$G$48,2,FALSE)+ROW()-2))=Rebalance!$D$58,INDIRECT(\"a\" & (VLOOKUP(Rebalance!$D$58,$F$2:$G$48,2,FALSE)+ROW()-2)),\"\")","v":{"$error":"#N/A"}},{"$f":"IF(INDIRECT(\"c\" & (VLOOKUP(Rebalance!$D$59,$F$2:$G$48,2,FALSE)+ROW()-2))=Rebalance!$D$59,INDIRECT(\"a\" & (VLOOKUP(Rebalance!$D$59,$F$2:$G$48,2,FALSE)+ROW()-2)),\"\")","v":{"$error":"#N/A"}},{"$f":"IF(INDIRECT(\"c\" & (VLOOKUP(Rebalance!$D$60,$F$2:$G$48,2,FALSE)+ROW()-2))=Rebalance!$D$60,INDIRECT(\"a\" & (VLOOKUP(Rebalance!$D$60,$F$2:$G$48,2,FALSE)+ROW()-2)),\"\")","v":{"$error":"#N/A"}},{"$f":"IF(INDIRECT(\"c\" & (VLOOKUP(Rebalance!$D$61,$F$2:$G$48,2,FALSE)+ROW()-2))=Rebalance!$D$61,INDIRECT(\"a\" & (VLOOKUP(Rebalance!$D$61,$F$2:$G$48,2,FALSE)+ROW()-2)),\"\")","v":{"$error":"#N/A"}},{"$f":"IF(INDIRECT(\"c\" & (VLOOKUP(Rebalance!$D$62,$F$2:$G$48,2,FALSE)+ROW()-2))=Rebalance!$D$62,INDIRECT(\"a\" & (VLOOKUP(Rebalance!$D$62,$F$2:$G$48,2,FALSE)+ROW()-2)),\"\")","v":{"$error":"#N/A"}},{"$f":"IF(INDIRECT(\"c\" & (VLOOKUP(Rebalance!$D$63,$F$2:$G$48,2,FALSE)+ROW()-2))=Rebalance!$D$63,INDIRECT(\"a\" & (VLOOKUP(Rebalance!$D$63,$F$2:$G$48,2,FALSE)+ROW()-2)),\"\")","v":{"$error":"#N/A"}},{"$f":"IF(INDIRECT(\"c\" & (VLOOKUP(Rebalance!$D$64,$F$2:$G$48,2,FALSE)+ROW()-2))=Rebalance!$D$64,INDIRECT(\"a\" & (VLOOKUP(Rebalance!$D$64,$F$2:$G$48,2,FALSE)+ROW()-2)),\"\")","v":{"$error":"#N/A"}},{"$f":"IF(INDIRECT(\"c\" & (VLOOKUP(Rebalance!$D$65,$F$2:$G$48,2,FALSE)+ROW()-2))=Rebalance!$D$65,INDIRECT(\"a\" & (VLOOKUP(Rebalance!$D$65,$F$2:$G$48,2,FALSE)+ROW()-2)),\"\")","v":{"$error":"#N/A"}},{"$f":"IF(INDIRECT(\"c\" & (VLOOKUP(Rebalance!$D$66,$F$2:$G$48,2,FALSE)+ROW()-2))=Rebalance!$D$66,INDIRECT(\"a\" & (VLOOKUP(Rebalance!$D$66,$F$2:$G$48,2,FALSE)+ROW()-2)),\"\")","v":{"$error":"#N/A"}}]
["SIM Active Income Fund b4","SIAB5","Sanlam Collective Investments",{"$f":"ROW()","v":530},null,null,{"$f":"VLOOKUP(F530,$C$2:$D$599,2,FALSE)","v":{"$error":"#N/A"}},{"$f":"IF(INDIRECT(\"c\" & (VLOOKUP(Rebalance!$D$26,$F$2:$G$48,2,FALSE)+ROW()-2))=Rebalance!$D$26,INDIRECT(\"a\" & (VLOOKUP(Rebalance!$D$26,$F$2:$G$48,2,FALSE)+ROW()-2)),\"\")","v":{"$error":"#N/A"}},{"$f":"IF(INDIRECT(\"c\" & (VLOOKUP(Rebalance!$D$27,$F$2:$G$48,2,FALSE)+ROW()-2))=Rebalance!$D$27,INDIRECT(\"a\" & (VLOOKUP(Rebalance!$D$27,$F$2:$G$48,2,FALSE)+ROW()-2)),\"\")","v":{"$error":"#N/A"}},{"$f":"IF(INDIRECT(\"c\" & (VLOOKUP(Rebalance!$D$28,$F$2:$G$48,2,FALSE)+ROW()-2))=Rebalance!$D$28,INDIRECT(\"a\" & (VLOOKUP(Rebalance!$D$28,$F$2:$G$48,2,FALSE)+ROW()-2)),\"\")","v":{"$error":"#N/A"}},{"$f":"IF(INDIRECT(\"c\" & (VLOOKUP(Rebalance!$D$29,$F$2:$G$48,2,FALSE)+ROW()-2))=Rebalance!$D$29,INDIRECT(\"a\" & (VLOOKUP(Rebalance!$D$29,$F$2:$G$48,2,FALSE)+ROW()-2)),\"\")","v":{"$error":"#N/A"}},{"$f":"IF(INDIRECT(\"c\" & (VLOOKUP(Rebalance!$D$30,$F$2:$G$48,2,FALSE)+ROW()-2))=Rebalance!$D$30,INDIRECT(\"a\" & (VLOOKUP(Rebalance!$D$30,$F$2:$G$48,2,FALSE)+ROW()-2)),\"\")","v":{"$error":"#N/A"}},{"$f":"IF(INDIRECT(\"c\" & (VLOOKUP(Rebalance!$D$31,$F$2:$G$48,2,FALSE)+ROW()-2))=Rebalance!$D$31,INDIRECT(\"a\" & (VLOOKUP(Rebalance!$D$31,$F$2:$G$48,2,FALSE)+ROW()-2)),\"\")","v":{"$error":"#N/A"}},{"$f":"IF(INDIRECT(\"c\" & (VLOOKUP(Rebalance!$D$32,$F$2:$G$48,2,FALSE)+ROW()-2))=Rebalance!$D$32,INDIRECT(\"a\" & (VLOOKUP(Rebalance!$D$32,$F$2:$G$48,2,FALSE)+ROW()-2)),\"\")","v":{"$error":"#N/A"}},{"$f":"IF(INDIRECT(\"c\" & (VLOOKUP(Rebalance!$D$33,$F$2:$G$48,2,FALSE)+ROW()-2))=Rebalance!$D$33,INDIRECT(\"a\" & (VLOOKUP(Rebalance!$D$33,$F$2:$G$48,2,FALSE)+ROW()-2)),\"\")","v":{"$error":"#N/A"}},{"$f":"IF(INDIRECT(\"c\" & (VLOOKUP(Rebalance!$D$34,$F$2:$G$48,2,FALSE)+ROW()-2))=Rebalance!$D$34,INDIRECT(\"a\" & (VLOOKUP(Rebalance!$D$34,$F$2:$G$48,2,FALSE)+ROW()-2)),\"\")","v":{"$error":"#N/A"}},{"$f":"IF(INDIRECT(\"c\" & (VLOOKUP(Rebalance!$D$35,$F$2:$G$48,2,FALSE)+ROW()-2))=Rebalance!$D$35,INDIRECT(\"a\" & (VLOOKUP(Rebalance!$D$35,$F$2:$G$48,2,FALSE)+ROW()-2)),\"\")","v":{"$error":"#N/A"}},{"$f":"IF(INDIRECT(\"c\" & (VLOOKUP(Rebalance!$D$36,$F$2:$G$48,2,FALSE)+ROW()-2))=Rebalance!$D$36,INDIRECT(\"a\" & (VLOOKUP(Rebalance!$D$36,$F$2:$G$48,2,FALSE)+ROW()-2)),\"\")","v":{"$error":"#N/A"}},{"$f":"IF(INDIRECT(\"c\" & (VLOOKUP(Rebalance!$D$37,$F$2:$G$48,2,FALSE)+ROW()-2))=Rebalance!$D$37,INDIRECT(\"a\" & (VLOOKUP(Rebalance!$D$37,$F$2:$G$48,2,FALSE)+ROW()-2)),\"\")","v":{"$error":"#N/A"}},{"$f":"IF(INDIRECT(\"c\" & (VLOOKUP(Rebalance!$D$38,$F$2:$G$48,2,FALSE)+ROW()-2))=Rebalance!$D$38,INDIRECT(\"a\" & (VLOOKUP(Rebalance!$D$38,$F$2:$G$48,2,FALSE)+ROW()-2)),\"\")","v":{"$error":"#N/A"}},{"$f":"IF(INDIRECT(\"c\" & (VLOOKUP(Rebalance!$D$39,$F$2:$G$48,2,FALSE)+ROW()-2))=Rebalance!$D$39,INDIRECT(\"a\" & (VLOOKUP(Rebalance!$D$39,$F$2:$G$48,2,FALSE)+ROW()-2)),\"\")","v":{"$error":"#N/A"}},{"$f":"IF(INDIRECT(\"c\" & (VLOOKUP(Rebalance!$D$40,$F$2:$G$48,2,FALSE)+ROW()-2))=Rebalance!$D$40,INDIRECT(\"a\" & (VLOOKUP(Rebalance!$D$40,$F$2:$G$48,2,FALSE)+ROW()-2)),\"\")","v":{"$error":"#N/A"}},{"$f":"IF(INDIRECT(\"c\" & (VLOOKUP(Rebalance!$D$52,$F$2:$G$48,2,FALSE)+ROW()-2))=Rebalance!$D$52,INDIRECT(\"a\" & (VLOOKUP(Rebalance!$D$52,$F$2:$G$48,2,FALSE)+ROW()-2)),\"\")","v":{"$error":"#N/A"}},{"$f":"IF(INDIRECT(\"c\" & (VLOOKUP(Rebalance!$D$53,$F$2:$G$48,2,FALSE)+ROW()-2))=Rebalance!$D$53,INDIRECT(\"a\" & (VLOOKUP(Rebalance!$D$53,$F$2:$G$48,2,FALSE)+ROW()-2)),\"\")","v":{"$error":"#N/A"}},{"$f":"IF(INDIRECT(\"c\" & (VLOOKUP(Rebalance!$D$54,$F$2:$G$48,2,FALSE)+ROW()-2))=Rebalance!$D$54,INDIRECT(\"a\" & (VLOOKUP(Rebalance!$D$54,$F$2:$G$48,2,FALSE)+ROW()-2)),\"\")","v":{"$error":"#N/A"}},{"$f":"IF(INDIRECT(\"c\" & (VLOOKUP(Rebalance!$D$55,$F$2:$G$48,2,FALSE)+ROW()-2))=Rebalance!$D$55,INDIRECT(\"a\" & (VLOOKUP(Rebalance!$D$55,$F$2:$G$48,2,FALSE)+ROW()-2)),\"\")","v":{"$error":"#N/A"}},{"$f":"IF(INDIRECT(\"c\" & (VLOOKUP(Rebalance!$D$56,$F$2:$G$48,2,FALSE)+ROW()-2))=Rebalance!$D$56,INDIRECT(\"a\" & (VLOOKUP(Rebalance!$D$56,$F$2:$G$48,2,FALSE)+ROW()-2)),\"\")","v":{"$error":"#N/A"}},{"$f":"IF(INDIRECT(\"c\" & (VLOOKUP(Rebalance!$D$57,$F$2:$G$48,2,FALSE)+ROW()-2))=Rebalance!$D$57,INDIRECT(\"a\" & (VLOOKUP(Rebalance!$D$57,$F$2:$G$48,2,FALSE)+ROW()-2)),\"\")","v":{"$error":"#N/A"}},{"$f":"IF(INDIRECT(\"c\" & (VLOOKUP(Rebalance!$D$58,$F$2:$G$48,2,FALSE)+ROW()-2))=Rebalance!$D$58,INDIRECT(\"a\" & (VLOOKUP(Rebalance!$D$58,$F$2:$G$48,2,FALSE)+ROW()-2)),\"\")","v":{"$error":"#N/A"}},{"$f":"IF(INDIRECT(\"c\" & (VLOOKUP(Rebalance!$D$59,$F$2:$G$48,2,FALSE)+ROW()-2))=Rebalance!$D$59,INDIRECT(\"a\" & (VLOOKUP(Rebalance!$D$59,$F$2:$G$48,2,FALSE)+ROW()-2)),\"\")","v":{"$error":"#N/A"}},{"$f":"IF(INDIRECT(\"c\" & (VLOOKUP(Rebalance!$D$60,$F$2:$G$48,2,FALSE)+ROW()-2))=Rebalance!$D$60,INDIRECT(\"a\" & (VLOOKUP(Rebalance!$D$60,$F$2:$G$48,2,FALSE)+ROW()-2)),\"\")","v":{"$error":"#N/A"}},{"$f":"IF(INDIRECT(\"c\" & (VLOOKUP(Rebalance!$D$61,$F$2:$G$48,2,FALSE)+ROW()-2))=Rebalance!$D$61,INDIRECT(\"a\" & (VLOOKUP(Rebalance!$D$61,$F$2:$G$48,2,FALSE)+ROW()-2)),\"\")","v":{"$error":"#N/A"}},{"$f":"IF(INDIRECT(\"c\" & (VLOOKUP(Rebalance!$D$62,$F$2:$G$48,2,FALSE)+ROW()-2))=Rebalance!$D$62,INDIRECT(\"a\" & (VLOOKUP(Rebalance!$D$62,$F$2:$G$48,2,FALSE)+ROW()-2)),\"\")","v":{"$error":"#N/A"}},{"$f":"IF(INDIRECT(\"c\" & (VLOOKUP(Rebalance!$D$63,$F$2:$G$48,2,FALSE)+ROW()-2))=Rebalance!$D$63,INDIRECT(\"a\" & (VLOOKUP(Rebalance!$D$63,$F$2:$G$48,2,FALSE)+ROW()-2)),\"\")","v":{"$error":"#N/A"}},{"$f":"IF(INDIRECT(\"c\" & (VLOOKUP(Rebalance!$D$64,$F$2:$G$48,2,FALSE)+ROW()-2))=Rebalance!$D$64,INDIRECT(\"a\" & (VLOOKUP(Rebalance!$D$64,$F$2:$G$48,2,FALSE)+ROW()-2)),\"\")","v":{"$error":"#N/A"}},{"$f":"IF(INDIRECT(\"c\" & (VLOOKUP(Rebalance!$D$65,$F$2:$G$48,2,FALSE)+ROW()-2))=Rebalance!$D$65,INDIRECT(\"a\" & (VLOOKUP(Rebalance!$D$65,$F$2:$G$48,2,FALSE)+ROW()-2)),\"\")","v":{"$error":"#N/A"}},{"$f":"IF(INDIRECT(\"c\" & (VLOOKUP(Rebalance!$D$66,$F$2:$G$48,2,FALSE)+ROW()-2))=Rebalance!$D$66,INDIRECT(\"a\" & (VLOOKUP(Rebalance!$D$66,$F$2:$G$48,2,FALSE)+ROW()-2)),\"\")","v":{"$error":"#N/A"}}]
["SIM Active Income B5","SIAB5","Sanlam Collective Investments",{"$f":"ROW()","v":531},null,null,{"$f":"VLOOKUP(F531,$C$2:$D$599,2,FALSE)","v":{"$error":"#N/A"}},{"$f":"IF(INDIRECT(\"c\" & (VLOOKUP(Rebalance!$D$26,$F$2:$G$48,2,FALSE)+ROW()-2))=Rebalance!$D$26,INDIRECT(\"a\" & (VLOOKUP(Rebalance!$D$26,$F$2:$G$48,2,FALSE)+ROW()-2)),\"\")","v":{"$error":"#N/A"}},{"$f":"IF(INDIRECT(\"c\" & (VLOOKUP(Rebalance!$D$27,$F$2:$G$48,2,FALSE)+ROW()-2))=Rebalance!$D$27,INDIRECT(\"a\" & (VLOOKUP(Rebalance!$D$27,$F$2:$G$48,2,FALSE)+ROW()-2)),\"\")","v":{"$error":"#N/A"}},{"$f":"IF(INDIRECT(\"c\" & (VLOOKUP(Rebalance!$D$28,$F$2:$G$48,2,FALSE)+ROW()-2))=Rebalance!$D$28,INDIRECT(\"a\" & (VLOOKUP(Rebalance!$D$28,$F$2:$G$48,2,FALSE)+ROW()-2)),\"\")","v":{"$error":"#N/A"}},{"$f":"IF(INDIRECT(\"c\" & (VLOOKUP(Rebalance!$D$29,$F$2:$G$48,2,FALSE)+ROW()-2))=Rebalance!$D$29,INDIRECT(\"a\" & (VLOOKUP(Rebalance!$D$29,$F$2:$G$48,2,FALSE)+ROW()-2)),\"\")","v":{"$error":"#N/A"}},{"$f":"IF(INDIRECT(\"c\" & (VLOOKUP(Rebalance!$D$30,$F$2:$G$48,2,FALSE)+ROW()-2))=Rebalance!$D$30,INDIRECT(\"a\" & (VLOOKUP(Rebalance!$D$30,$F$2:$G$48,2,FALSE)+ROW()-2)),\"\")","v":{"$error":"#N/A"}},{"$f":"IF(INDIRECT(\"c\" & (VLOOKUP(Rebalance!$D$31,$F$2:$G$48,2,FALSE)+ROW()-2))=Rebalance!$D$31,INDIRECT(\"a\" & (VLOOKUP(Rebalance!$D$31,$F$2:$G$48,2,FALSE)+ROW()-2)),\"\")","v":{"$error":"#N/A"}},{"$f":"IF(INDIRECT(\"c\" & (VLOOKUP(Rebalance!$D$32,$F$2:$G$48,2,FALSE)+ROW()-2))=Rebalance!$D$32,INDIRECT(\"a\" & (VLOOKUP(Rebalance!$D$32,$F$2:$G$48,2,FALSE)+ROW()-2)),\"\")","v":{"$error":"#N/A"}},{"$f":"IF(INDIRECT(\"c\" & (VLOOKUP(Rebalance!$D$33,$F$2:$G$48,2,FALSE)+ROW()-2))=Rebalance!$D$33,INDIRECT(\"a\" & (VLOOKUP(Rebalance!$D$33,$F$2:$G$48,2,FALSE)+ROW()-2)),\"\")","v":{"$error":"#N/A"}},{"$f":"IF(INDIRECT(\"c\" & (VLOOKUP(Rebalance!$D$34,$F$2:$G$48,2,FALSE)+ROW()-2))=Rebalance!$D$34,INDIRECT(\"a\" & (VLOOKUP(Rebalance!$D$34,$F$2:$G$48,2,FALSE)+ROW()-2)),\"\")","v":{"$error":"#N/A"}},{"$f":"IF(INDIRECT(\"c\" & (VLOOKUP(Rebalance!$D$35,$F$2:$G$48,2,FALSE)+ROW()-2))=Rebalance!$D$35,INDIRECT(\"a\" & (VLOOKUP(Rebalance!$D$35,$F$2:$G$48,2,FALSE)+ROW()-2)),\"\")","v":{"$error":"#N/A"}},{"$f":"IF(INDIRECT(\"c\" & (VLOOKUP(Rebalance!$D$36,$F$2:$G$48,2,FALSE)+ROW()-2))=Rebalance!$D$36,INDIRECT(\"a\" & (VLOOKUP(Rebalance!$D$36,$F$2:$G$48,2,FALSE)+ROW()-2)),\"\")","v":{"$error":"#N/A"}},{"$f":"IF(INDIRECT(\"c\" & (VLOOKUP(Rebalance!$D$37,$F$2:$G$48,2,FALSE)+ROW()-2))=Rebalance!$D$37,INDIRECT(\"a\" & (VLOOKUP(Rebalance!$D$37,$F$2:$G$48,2,FALSE)+ROW()-2)),\"\")","v":{"$error":"#N/A"}},{"$f":"IF(INDIRECT(\"c\" & (VLOOKUP(Rebalance!$D$38,$F$2:$G$48,2,FALSE)+ROW()-2))=Rebalance!$D$38,INDIRECT(\"a\" & (VLOOKUP(Rebalance!$D$38,$F$2:$G$48,2,FALSE)+ROW()-2)),\"\")","v":{"$error":"#N/A"}},{"$f":"IF(INDIRECT(\"c\" & (VLOOKUP(Rebalance!$D$39,$F$2:$G$48,2,FALSE)+ROW()-2))=Rebalance!$D$39,INDIRECT(\"a\" & (VLOOKUP(Rebalance!$D$39,$F$2:$G$48,2,FALSE)+ROW()-2)),\"\")","v":{"$error":"#N/A"}},{"$f":"IF(INDIRECT(\"c\" & (VLOOKUP(Rebalance!$D$40,$F$2:$G$48,2,FALSE)+ROW()-2))=Rebalance!$D$40,INDIRECT(\"a\" & (VLOOKUP(Rebalance!$D$40,$F$2:$G$48,2,FALSE)+ROW()-2)),\"\")","v":{"$error":"#N/A"}},{"$f":"IF(INDIRECT(\"c\" & (VLOOKUP(Rebalance!$D$52,$F$2:$G$48,2,FALSE)+ROW()-2))=Rebalance!$D$52,INDIRECT(\"a\" & (VLOOKUP(Rebalance!$D$52,$F$2:$G$48,2,FALSE)+ROW()-2)),\"\")","v":{"$error":"#N/A"}},{"$f":"IF(INDIRECT(\"c\" & (VLOOKUP(Rebalance!$D$53,$F$2:$G$48,2,FALSE)+ROW()-2))=Rebalance!$D$53,INDIRECT(\"a\" & (VLOOKUP(Rebalance!$D$53,$F$2:$G$48,2,FALSE)+ROW()-2)),\"\")","v":{"$error":"#N/A"}},{"$f":"IF(INDIRECT(\"c\" & (VLOOKUP(Rebalance!$D$54,$F$2:$G$48,2,FALSE)+ROW()-2))=Rebalance!$D$54,INDIRECT(\"a\" & (VLOOKUP(Rebalance!$D$54,$F$2:$G$48,2,FALSE)+ROW()-2)),\"\")","v":{"$error":"#N/A"}},{"$f":"IF(INDIRECT(\"c\" & (VLOOKUP(Rebalance!$D$55,$F$2:$G$48,2,FALSE)+ROW()-2))=Rebalance!$D$55,INDIRECT(\"a\" & (VLOOKUP(Rebalance!$D$55,$F$2:$G$48,2,FALSE)+ROW()-2)),\"\")","v":{"$error":"#N/A"}},{"$f":"IF(INDIRECT(\"c\" & (VLOOKUP(Rebalance!$D$56,$F$2:$G$48,2,FALSE)+ROW()-2))=Rebalance!$D$56,INDIRECT(\"a\" & (VLOOKUP(Rebalance!$D$56,$F$2:$G$48,2,FALSE)+ROW()-2)),\"\")","v":{"$error":"#N/A"}},{"$f":"IF(INDIRECT(\"c\" & (VLOOKUP(Rebalance!$D$57,$F$2:$G$48,2,FALSE)+ROW()-2))=Rebalance!$D$57,INDIRECT(\"a\" & (VLOOKUP(Rebalance!$D$57,$F$2:$G$48,2,FALSE)+ROW()-2)),\"\")","v":{"$error":"#N/A"}},{"$f":"IF(INDIRECT(\"c\" & (VLOOKUP(Rebalance!$D$58,$F$2:$G$48,2,FALSE)+ROW()-2))=Rebalance!$D$58,INDIRECT(\"a\" & (VLOOKUP(Rebalance!$D$58,$F$2:$G$48,2,FALSE)+ROW()-2)),\"\")","v":{"$error":"#N/A"}},{"$f":"IF(INDIRECT(\"c\" & (VLOOKUP(Rebalance!$D$59,$F$2:$G$48,2,FALSE)+ROW()-2))=Rebalance!$D$59,INDIRECT(\"a\" & (VLOOKUP(Rebalance!$D$59,$F$2:$G$48,2,FALSE)+ROW()-2)),\"\")","v":{"$error":"#N/A"}},{"$f":"IF(INDIRECT(\"c\" & (VLOOKUP(Rebalance!$D$60,$F$2:$G$48,2,FALSE)+ROW()-2))=Rebalance!$D$60,INDIRECT(\"a\" & (VLOOKUP(Rebalance!$D$60,$F$2:$G$48,2,FALSE)+ROW()-2)),\"\")","v":{"$error":"#N/A"}},{"$f":"IF(INDIRECT(\"c\" & (VLOOKUP(Rebalance!$D$61,$F$2:$G$48,2,FALSE)+ROW()-2))=Rebalance!$D$61,INDIRECT(\"a\" & (VLOOKUP(Rebalance!$D$61,$F$2:$G$48,2,FALSE)+ROW()-2)),\"\")","v":{"$error":"#N/A"}},{"$f":"IF(INDIRECT(\"c\" & (VLOOKUP(Rebalance!$D$62,$F$2:$G$48,2,FALSE)+ROW()-2))=Rebalance!$D$62,INDIRECT(\"a\" & (VLOOKUP(Rebalance!$D$62,$F$2:$G$48,2,FALSE)+ROW()-2)),\"\")","v":{"$error":"#N/A"}},{"$f":"IF(INDIRECT(\"c\" & (VLOOKUP(Rebalance!$D$63,$F$2:$G$48,2,FALSE)+ROW()-2))=Rebalance!$D$63,INDIRECT(\"a\" & (VLOOKUP(Rebalance!$D$63,$F$2:$G$48,2,FALSE)+ROW()-2)),\"\")","v":{"$error":"#N/A"}},{"$f":"IF(INDIRECT(\"c\" & (VLOOKUP(Rebalance!$D$64,$F$2:$G$48,2,FALSE)+ROW()-2))=Rebalance!$D$64,INDIRECT(\"a\" & (VLOOKUP(Rebalance!$D$64,$F$2:$G$48,2,FALSE)+ROW()-2)),\"\")","v":{"$error":"#N/A"}},{"$f":"IF(INDIRECT(\"c\" & (VLOOKUP(Rebalance!$D$65,$F$2:$G$48,2,FALSE)+ROW()-2))=Rebalance!$D$65,INDIRECT(\"a\" & (VLOOKUP(Rebalance!$D$65,$F$2:$G$48,2,FALSE)+ROW()-2)),\"\")","v":{"$error":"#N/A"}},{"$f":"IF(INDIRECT(\"c\" & (VLOOKUP(Rebalance!$D$66,$F$2:$G$48,2,FALSE)+ROW()-2))=Rebalance!$D$66,INDIRECT(\"a\" & (VLOOKUP(Rebalance!$D$66,$F$2:$G$48,2,FALSE)+ROW()-2)),\"\")","v":{"$error":"#N/A"}}]
["SIM Balanced Fund B3","SBCB3","Sanlam Collective Investments",{"$f":"ROW()","v":532},null,null,{"$f":"VLOOKUP(F532,$C$2:$D$599,2,FALSE)","v":{"$error":"#N/A"}},{"$f":"IF(INDIRECT(\"c\" & (VLOOKUP(Rebalance!$D$26,$F$2:$G$48,2,FALSE)+ROW()-2))=Rebalance!$D$26,INDIRECT(\"a\" & (VLOOKUP(Rebalance!$D$26,$F$2:$G$48,2,FALSE)+ROW()-2)),\"\")","v":{"$error":"#N/A"}},{"$f":"IF(INDIRECT(\"c\" & (VLOOKUP(Rebalance!$D$27,$F$2:$G$48,2,FALSE)+ROW()-2))=Rebalance!$D$27,INDIRECT(\"a\" & (VLOOKUP(Rebalance!$D$27,$F$2:$G$48,2,FALSE)+ROW()-2)),\"\")","v":{"$error":"#N/A"}},{"$f":"IF(INDIRECT(\"c\" & (VLOOKUP(Rebalance!$D$28,$F$2:$G$48,2,FALSE)+ROW()-2))=Rebalance!$D$28,INDIRECT(\"a\" & (VLOOKUP(Rebalance!$D$28,$F$2:$G$48,2,FALSE)+ROW()-2)),\"\")","v":{"$error":"#N/A"}},{"$f":"IF(INDIRECT(\"c\" & (VLOOKUP(Rebalance!$D$29,$F$2:$G$48,2,FALSE)+ROW()-2))=Rebalance!$D$29,INDIRECT(\"a\" & (VLOOKUP(Rebalance!$D$29,$F$2:$G$48,2,FALSE)+ROW()-2)),\"\")","v":{"$error":"#N/A"}},{"$f":"IF(INDIRECT(\"c\" & (VLOOKUP(Rebalance!$D$30,$F$2:$G$48,2,FALSE)+ROW()-2))=Rebalance!$D$30,INDIRECT(\"a\" & (VLOOKUP(Rebalance!$D$30,$F$2:$G$48,2,FALSE)+ROW()-2)),\"\")","v":{"$error":"#N/A"}},{"$f":"IF(INDIRECT(\"c\" & (VLOOKUP(Rebalance!$D$31,$F$2:$G$48,2,FALSE)+ROW()-2))=Rebalance!$D$31,INDIRECT(\"a\" & (VLOOKUP(Rebalance!$D$31,$F$2:$G$48,2,FALSE)+ROW()-2)),\"\")","v":{"$error":"#N/A"}},{"$f":"IF(INDIRECT(\"c\" & (VLOOKUP(Rebalance!$D$32,$F$2:$G$48,2,FALSE)+ROW()-2))=Rebalance!$D$32,INDIRECT(\"a\" & (VLOOKUP(Rebalance!$D$32,$F$2:$G$48,2,FALSE)+ROW()-2)),\"\")","v":{"$error":"#N/A"}},{"$f":"IF(INDIRECT(\"c\" & (VLOOKUP(Rebalance!$D$33,$F$2:$G$48,2,FALSE)+ROW()-2))=Rebalance!$D$33,INDIRECT(\"a\" & (VLOOKUP(Rebalance!$D$33,$F$2:$G$48,2,FALSE)+ROW()-2)),\"\")","v":{"$error":"#N/A"}},{"$f":"IF(INDIRECT(\"c\" & (VLOOKUP(Rebalance!$D$34,$F$2:$G$48,2,FALSE)+ROW()-2))=Rebalance!$D$34,INDIRECT(\"a\" & (VLOOKUP(Rebalance!$D$34,$F$2:$G$48,2,FALSE)+ROW()-2)),\"\")","v":{"$error":"#N/A"}},{"$f":"IF(INDIRECT(\"c\" & (VLOOKUP(Rebalance!$D$35,$F$2:$G$48,2,FALSE)+ROW()-2))=Rebalance!$D$35,INDIRECT(\"a\" & (VLOOKUP(Rebalance!$D$35,$F$2:$G$48,2,FALSE)+ROW()-2)),\"\")","v":{"$error":"#N/A"}},{"$f":"IF(INDIRECT(\"c\" & (VLOOKUP(Rebalance!$D$36,$F$2:$G$48,2,FALSE)+ROW()-2))=Rebalance!$D$36,INDIRECT(\"a\" & (VLOOKUP(Rebalance!$D$36,$F$2:$G$48,2,FALSE)+ROW()-2)),\"\")","v":{"$error":"#N/A"}},{"$f":"IF(INDIRECT(\"c\" & (VLOOKUP(Rebalance!$D$37,$F$2:$G$48,2,FALSE)+ROW()-2))=Rebalance!$D$37,INDIRECT(\"a\" & (VLOOKUP(Rebalance!$D$37,$F$2:$G$48,2,FALSE)+ROW()-2)),\"\")","v":{"$error":"#N/A"}},{"$f":"IF(INDIRECT(\"c\" & (VLOOKUP(Rebalance!$D$38,$F$2:$G$48,2,FALSE)+ROW()-2))=Rebalance!$D$38,INDIRECT(\"a\" & (VLOOKUP(Rebalance!$D$38,$F$2:$G$48,2,FALSE)+ROW()-2)),\"\")","v":{"$error":"#N/A"}},{"$f":"IF(INDIRECT(\"c\" & (VLOOKUP(Rebalance!$D$39,$F$2:$G$48,2,FALSE)+ROW()-2))=Rebalance!$D$39,INDIRECT(\"a\" & (VLOOKUP(Rebalance!$D$39,$F$2:$G$48,2,FALSE)+ROW()-2)),\"\")","v":{"$error":"#N/A"}},{"$f":"IF(INDIRECT(\"c\" & (VLOOKUP(Rebalance!$D$40,$F$2:$G$48,2,FALSE)+ROW()-2))=Rebalance!$D$40,INDIRECT(\"a\" & (VLOOKUP(Rebalance!$D$40,$F$2:$G$48,2,FALSE)+ROW()-2)),\"\")","v":{"$error":"#N/A"}},{"$f":"IF(INDIRECT(\"c\" & (VLOOKUP(Rebalance!$D$52,$F$2:$G$48,2,FALSE)+ROW()-2))=Rebalance!$D$52,INDIRECT(\"a\" & (VLOOKUP(Rebalance!$D$52,$F$2:$G$48,2,FALSE)+ROW()-2)),\"\")","v":{"$error":"#N/A"}},{"$f":"IF(INDIRECT(\"c\" & (VLOOKUP(Rebalance!$D$53,$F$2:$G$48,2,FALSE)+ROW()-2))=Rebalance!$D$53,INDIRECT(\"a\" & (VLOOKUP(Rebalance!$D$53,$F$2:$G$48,2,FALSE)+ROW()-2)),\"\")","v":{"$error":"#N/A"}},{"$f":"IF(INDIRECT(\"c\" & (VLOOKUP(Rebalance!$D$54,$F$2:$G$48,2,FALSE)+ROW()-2))=Rebalance!$D$54,INDIRECT(\"a\" & (VLOOKUP(Rebalance!$D$54,$F$2:$G$48,2,FALSE)+ROW()-2)),\"\")","v":{"$error":"#N/A"}},{"$f":"IF(INDIRECT(\"c\" & (VLOOKUP(Rebalance!$D$55,$F$2:$G$48,2,FALSE)+ROW()-2))=Rebalance!$D$55,INDIRECT(\"a\" & (VLOOKUP(Rebalance!$D$55,$F$2:$G$48,2,FALSE)+ROW()-2)),\"\")","v":{"$error":"#N/A"}},{"$f":"IF(INDIRECT(\"c\" & (VLOOKUP(Rebalance!$D$56,$F$2:$G$48,2,FALSE)+ROW()-2))=Rebalance!$D$56,INDIRECT(\"a\" & (VLOOKUP(Rebalance!$D$56,$F$2:$G$48,2,FALSE)+ROW()-2)),\"\")","v":{"$error":"#N/A"}},{"$f":"IF(INDIRECT(\"c\" & (VLOOKUP(Rebalance!$D$57,$F$2:$G$48,2,FALSE)+ROW()-2))=Rebalance!$D$57,INDIRECT(\"a\" & (VLOOKUP(Rebalance!$D$57,$F$2:$G$48,2,FALSE)+ROW()-2)),\"\")","v":{"$error":"#N/A"}},{"$f":"IF(INDIRECT(\"c\" & (VLOOKUP(Rebalance!$D$58,$F$2:$G$48,2,FALSE)+ROW()-2))=Rebalance!$D$58,INDIRECT(\"a\" & (VLOOKUP(Rebalance!$D$58,$F$2:$G$48,2,FALSE)+ROW()-2)),\"\")","v":{"$error":"#N/A"}},{"$f":"IF(INDIRECT(\"c\" & (VLOOKUP(Rebalance!$D$59,$F$2:$G$48,2,FALSE)+ROW()-2))=Rebalance!$D$59,INDIRECT(\"a\" & (VLOOKUP(Rebalance!$D$59,$F$2:$G$48,2,FALSE)+ROW()-2)),\"\")","v":{"$error":"#N/A"}},{"$f":"IF(INDIRECT(\"c\" & (VLOOKUP(Rebalance!$D$60,$F$2:$G$48,2,FALSE)+ROW()-2))=Rebalance!$D$60,INDIRECT(\"a\" & (VLOOKUP(Rebalance!$D$60,$F$2:$G$48,2,FALSE)+ROW()-2)),\"\")","v":{"$error":"#N/A"}},{"$f":"IF(INDIRECT(\"c\" & (VLOOKUP(Rebalance!$D$61,$F$2:$G$48,2,FALSE)+ROW()-2))=Rebalance!$D$61,INDIRECT(\"a\" & (VLOOKUP(Rebalance!$D$61,$F$2:$G$48,2,FALSE)+ROW()-2)),\"\")","v":{"$error":"#N/A"}},{"$f":"IF(INDIRECT(\"c\" & (VLOOKUP(Rebalance!$D$62,$F$2:$G$48,2,FALSE)+ROW()-2))=Rebalance!$D$62,INDIRECT(\"a\" & (VLOOKUP(Rebalance!$D$62,$F$2:$G$48,2,FALSE)+ROW()-2)),\"\")","v":{"$error":"#N/A"}},{"$f":"IF(INDIRECT(\"c\" & (VLOOKUP(Rebalance!$D$63,$F$2:$G$48,2,FALSE)+ROW()-2))=Rebalance!$D$63,INDIRECT(\"a\" & (VLOOKUP(Rebalance!$D$63,$F$2:$G$48,2,FALSE)+ROW()-2)),\"\")","v":{"$error":"#N/A"}},{"$f":"IF(INDIRECT(\"c\" & (VLOOKUP(Rebalance!$D$64,$F$2:$G$48,2,FALSE)+ROW()-2))=Rebalance!$D$64,INDIRECT(\"a\" & (VLOOKUP(Rebalance!$D$64,$F$2:$G$48,2,FALSE)+ROW()-2)),\"\")","v":{"$error":"#N/A"}},{"$f":"IF(INDIRECT(\"c\" & (VLOOKUP(Rebalance!$D$65,$F$2:$G$48,2,FALSE)+ROW()-2))=Rebalance!$D$65,INDIRECT(\"a\" & (VLOOKUP(Rebalance!$D$65,$F$2:$G$48,2,FALSE)+ROW()-2)),\"\")","v":{"$error":"#N/A"}},{"$f":"IF(INDIRECT(\"c\" & (VLOOKUP(Rebalance!$D$66,$F$2:$G$48,2,FALSE)+ROW()-2))=Rebalance!$D$66,INDIRECT(\"a\" & (VLOOKUP(Rebalance!$D$66,$F$2:$G$48,2,FALSE)+ROW()-2)),\"\")","v":{"$error":"#N/A"}}]
["SIM Bond Plus Fund","SNGF","Sanlam Collective Investments",{"$f":"ROW()","v":533},null,null,{"$f":"VLOOKUP(F533,$C$2:$D$599,2,FALSE)","v":{"$error":"#N/A"}},{"$f":"IF(INDIRECT(\"c\" & (VLOOKUP(Rebalance!$D$26,$F$2:$G$48,2,FALSE)+ROW()-2))=Rebalance!$D$26,INDIRECT(\"a\" & (VLOOKUP(Rebalance!$D$26,$F$2:$G$48,2,FALSE)+ROW()-2)),\"\")","v":{"$error":"#N/A"}},{"$f":"IF(INDIRECT(\"c\" & (VLOOKUP(Rebalance!$D$27,$F$2:$G$48,2,FALSE)+ROW()-2))=Rebalance!$D$27,INDIRECT(\"a\" & (VLOOKUP(Rebalance!$D$27,$F$2:$G$48,2,FALSE)+ROW()-2)),\"\")","v":{"$error":"#N/A"}},{"$f":"IF(INDIRECT(\"c\" & (VLOOKUP(Rebalance!$D$28,$F$2:$G$48,2,FALSE)+ROW()-2))=Rebalance!$D$28,INDIRECT(\"a\" & (VLOOKUP(Rebalance!$D$28,$F$2:$G$48,2,FALSE)+ROW()-2)),\"\")","v":{"$error":"#N/A"}},{"$f":"IF(INDIRECT(\"c\" & (VLOOKUP(Rebalance!$D$29,$F$2:$G$48,2,FALSE)+ROW()-2))=Rebalance!$D$29,INDIRECT(\"a\" & (VLOOKUP(Rebalance!$D$29,$F$2:$G$48,2,FALSE)+ROW()-2)),\"\")","v":{"$error":"#N/A"}},{"$f":"IF(INDIRECT(\"c\" & (VLOOKUP(Rebalance!$D$30,$F$2:$G$48,2,FALSE)+ROW()-2))=Rebalance!$D$30,INDIRECT(\"a\" & (VLOOKUP(Rebalance!$D$30,$F$2:$G$48,2,FALSE)+ROW()-2)),\"\")","v":{"$error":"#N/A"}},{"$f":"IF(INDIRECT(\"c\" & (VLOOKUP(Rebalance!$D$31,$F$2:$G$48,2,FALSE)+ROW()-2))=Rebalance!$D$31,INDIRECT(\"a\" & (VLOOKUP(Rebalance!$D$31,$F$2:$G$48,2,FALSE)+ROW()-2)),\"\")","v":{"$error":"#N/A"}},{"$f":"IF(INDIRECT(\"c\" & (VLOOKUP(Rebalance!$D$32,$F$2:$G$48,2,FALSE)+ROW()-2))=Rebalance!$D$32,INDIRECT(\"a\" & (VLOOKUP(Rebalance!$D$32,$F$2:$G$48,2,FALSE)+ROW()-2)),\"\")","v":{"$error":"#N/A"}},{"$f":"IF(INDIRECT(\"c\" & (VLOOKUP(Rebalance!$D$33,$F$2:$G$48,2,FALSE)+ROW()-2))=Rebalance!$D$33,INDIRECT(\"a\" & (VLOOKUP(Rebalance!$D$33,$F$2:$G$48,2,FALSE)+ROW()-2)),\"\")","v":{"$error":"#N/A"}},{"$f":"IF(INDIRECT(\"c\" & (VLOOKUP(Rebalance!$D$34,$F$2:$G$48,2,FALSE)+ROW()-2))=Rebalance!$D$34,INDIRECT(\"a\" & (VLOOKUP(Rebalance!$D$34,$F$2:$G$48,2,FALSE)+ROW()-2)),\"\")","v":{"$error":"#N/A"}},{"$f":"IF(INDIRECT(\"c\" & (VLOOKUP(Rebalance!$D$35,$F$2:$G$48,2,FALSE)+ROW()-2))=Rebalance!$D$35,INDIRECT(\"a\" & (VLOOKUP(Rebalance!$D$35,$F$2:$G$48,2,FALSE)+ROW()-2)),\"\")","v":{"$error":"#N/A"}},{"$f":"IF(INDIRECT(\"c\" & (VLOOKUP(Rebalance!$D$36,$F$2:$G$48,2,FALSE)+ROW()-2))=Rebalance!$D$36,INDIRECT(\"a\" & (VLOOKUP(Rebalance!$D$36,$F$2:$G$48,2,FALSE)+ROW()-2)),\"\")","v":{"$error":"#N/A"}},{"$f":"IF(INDIRECT(\"c\" & (VLOOKUP(Rebalance!$D$37,$F$2:$G$48,2,FALSE)+ROW()-2))=Rebalance!$D$37,INDIRECT(\"a\" & (VLOOKUP(Rebalance!$D$37,$F$2:$G$48,2,FALSE)+ROW()-2)),\"\")","v":{"$error":"#N/A"}},{"$f":"IF(INDIRECT(\"c\" & (VLOOKUP(Rebalance!$D$38,$F$2:$G$48,2,FALSE)+ROW()-2))=Rebalance!$D$38,INDIRECT(\"a\" & (VLOOKUP(Rebalance!$D$38,$F$2:$G$48,2,FALSE)+ROW()-2)),\"\")","v":{"$error":"#N/A"}},{"$f":"IF(INDIRECT(\"c\" & (VLOOKUP(Rebalance!$D$39,$F$2:$G$48,2,FALSE)+ROW()-2))=Rebalance!$D$39,INDIRECT(\"a\" & (VLOOKUP(Rebalance!$D$39,$F$2:$G$48,2,FALSE)+ROW()-2)),\"\")","v":{"$error":"#N/A"}},{"$f":"IF(INDIRECT(\"c\" & (VLOOKUP(Rebalance!$D$40,$F$2:$G$48,2,FALSE)+ROW()-2))=Rebalance!$D$40,INDIRECT(\"a\" & (VLOOKUP(Rebalance!$D$40,$F$2:$G$48,2,FALSE)+ROW()-2)),\"\")","v":{"$error":"#N/A"}},{"$f":"IF(INDIRECT(\"c\" & (VLOOKUP(Rebalance!$D$52,$F$2:$G$48,2,FALSE)+ROW()-2))=Rebalance!$D$52,INDIRECT(\"a\" & (VLOOKUP(Rebalance!$D$52,$F$2:$G$48,2,FALSE)+ROW()-2)),\"\")","v":{"$error":"#N/A"}},{"$f":"IF(INDIRECT(\"c\" & (VLOOKUP(Rebalance!$D$53,$F$2:$G$48,2,FALSE)+ROW()-2))=Rebalance!$D$53,INDIRECT(\"a\" & (VLOOKUP(Rebalance!$D$53,$F$2:$G$48,2,FALSE)+ROW()-2)),\"\")","v":{"$error":"#N/A"}},{"$f":"IF(INDIRECT(\"c\" & (VLOOKUP(Rebalance!$D$54,$F$2:$G$48,2,FALSE)+ROW()-2))=Rebalance!$D$54,INDIRECT(\"a\" & (VLOOKUP(Rebalance!$D$54,$F$2:$G$48,2,FALSE)+ROW()-2)),\"\")","v":{"$error":"#N/A"}},{"$f":"IF(INDIRECT(\"c\" & (VLOOKUP(Rebalance!$D$55,$F$2:$G$48,2,FALSE)+ROW()-2))=Rebalance!$D$55,INDIRECT(\"a\" & (VLOOKUP(Rebalance!$D$55,$F$2:$G$48,2,FALSE)+ROW()-2)),\"\")","v":{"$error":"#N/A"}},{"$f":"IF(INDIRECT(\"c\" & (VLOOKUP(Rebalance!$D$56,$F$2:$G$48,2,FALSE)+ROW()-2))=Rebalance!$D$56,INDIRECT(\"a\" & (VLOOKUP(Rebalance!$D$56,$F$2:$G$48,2,FALSE)+ROW()-2)),\"\")","v":{"$error":"#N/A"}},{"$f":"IF(INDIRECT(\"c\" & (VLOOKUP(Rebalance!$D$57,$F$2:$G$48,2,FALSE)+ROW()-2))=Rebalance!$D$57,INDIRECT(\"a\" & (VLOOKUP(Rebalance!$D$57,$F$2:$G$48,2,FALSE)+ROW()-2)),\"\")","v":{"$error":"#N/A"}},{"$f":"IF(INDIRECT(\"c\" & (VLOOKUP(Rebalance!$D$58,$F$2:$G$48,2,FALSE)+ROW()-2))=Rebalance!$D$58,INDIRECT(\"a\" & (VLOOKUP(Rebalance!$D$58,$F$2:$G$48,2,FALSE)+ROW()-2)),\"\")","v":{"$error":"#N/A"}},{"$f":"IF(INDIRECT(\"c\" & (VLOOKUP(Rebalance!$D$59,$F$2:$G$48,2,FALSE)+ROW()-2))=Rebalance!$D$59,INDIRECT(\"a\" & (VLOOKUP(Rebalance!$D$59,$F$2:$G$48,2,FALSE)+ROW()-2)),\"\")","v":{"$error":"#N/A"}},{"$f":"IF(INDIRECT(\"c\" & (VLOOKUP(Rebalance!$D$60,$F$2:$G$48,2,FALSE)+ROW()-2))=Rebalance!$D$60,INDIRECT(\"a\" & (VLOOKUP(Rebalance!$D$60,$F$2:$G$48,2,FALSE)+ROW()-2)),\"\")","v":{"$error":"#N/A"}},{"$f":"IF(INDIRECT(\"c\" & (VLOOKUP(Rebalance!$D$61,$F$2:$G$48,2,FALSE)+ROW()-2))=Rebalance!$D$61,INDIRECT(\"a\" & (VLOOKUP(Rebalance!$D$61,$F$2:$G$48,2,FALSE)+ROW()-2)),\"\")","v":{"$error":"#N/A"}},{"$f":"IF(INDIRECT(\"c\" & (VLOOKUP(Rebalance!$D$62,$F$2:$G$48,2,FALSE)+ROW()-2))=Rebalance!$D$62,INDIRECT(\"a\" & (VLOOKUP(Rebalance!$D$62,$F$2:$G$48,2,FALSE)+ROW()-2)),\"\")","v":{"$error":"#N/A"}},{"$f":"IF(INDIRECT(\"c\" & (VLOOKUP(Rebalance!$D$63,$F$2:$G$48,2,FALSE)+ROW()-2))=Rebalance!$D$63,INDIRECT(\"a\" & (VLOOKUP(Rebalance!$D$63,$F$2:$G$48,2,FALSE)+ROW()-2)),\"\")","v":{"$error":"#N/A"}},{"$f":"IF(INDIRECT(\"c\" & (VLOOKUP(Rebalance!$D$64,$F$2:$G$48,2,FALSE)+ROW()-2))=Rebalance!$D$64,INDIRECT(\"a\" & (VLOOKUP(Rebalance!$D$64,$F$2:$G$48,2,FALSE)+ROW()-2)),\"\")","v":{"$error":"#N/A"}},{"$f":"IF(INDIRECT(\"c\" & (VLOOKUP(Rebalance!$D$65,$F$2:$G$48,2,FALSE)+ROW()-2))=Rebalance!$D$65,INDIRECT(\"a\" & (VLOOKUP(Rebalance!$D$65,$F$2:$G$48,2,FALSE)+ROW()-2)),\"\")","v":{"$error":"#N/A"}},{"$f":"IF(INDIRECT(\"c\" & (VLOOKUP(Rebalance!$D$66,$F$2:$G$48,2,FALSE)+ROW()-2))=Rebalance!$D$66,INDIRECT(\"a\" & (VLOOKUP(Rebalance!$D$66,$F$2:$G$48,2,FALSE)+ROW()-2)),\"\")","v":{"$error":"#N/A"}}]
["SIM Enhanced Yield Fund B1","SEYB1","Sanlam Collective Investments",{"$f":"ROW()","v":534},null,null,{"$f":"VLOOKUP(F534,$C$2:$D$599,2,FALSE)","v":{"$error":"#N/A"}},{"$f":"IF(INDIRECT(\"c\" & (VLOOKUP(Rebalance!$D$26,$F$2:$G$48,2,FALSE)+ROW()-2))=Rebalance!$D$26,INDIRECT(\"a\" & (VLOOKUP(Rebalance!$D$26,$F$2:$G$48,2,FALSE)+ROW()-2)),\"\")","v":{"$error":"#N/A"}},{"$f":"IF(INDIRECT(\"c\" & (VLOOKUP(Rebalance!$D$27,$F$2:$G$48,2,FALSE)+ROW()-2))=Rebalance!$D$27,INDIRECT(\"a\" & (VLOOKUP(Rebalance!$D$27,$F$2:$G$48,2,FALSE)+ROW()-2)),\"\")","v":{"$error":"#N/A"}},{"$f":"IF(INDIRECT(\"c\" & (VLOOKUP(Rebalance!$D$28,$F$2:$G$48,2,FALSE)+ROW()-2))=Rebalance!$D$28,INDIRECT(\"a\" & (VLOOKUP(Rebalance!$D$28,$F$2:$G$48,2,FALSE)+ROW()-2)),\"\")","v":{"$error":"#N/A"}},{"$f":"IF(INDIRECT(\"c\" & (VLOOKUP(Rebalance!$D$29,$F$2:$G$48,2,FALSE)+ROW()-2))=Rebalance!$D$29,INDIRECT(\"a\" & (VLOOKUP(Rebalance!$D$29,$F$2:$G$48,2,FALSE)+ROW()-2)),\"\")","v":{"$error":"#N/A"}},{"$f":"IF(INDIRECT(\"c\" & (VLOOKUP(Rebalance!$D$30,$F$2:$G$48,2,FALSE)+ROW()-2))=Rebalance!$D$30,INDIRECT(\"a\" & (VLOOKUP(Rebalance!$D$30,$F$2:$G$48,2,FALSE)+ROW()-2)),\"\")","v":{"$error":"#N/A"}},{"$f":"IF(INDIRECT(\"c\" & (VLOOKUP(Rebalance!$D$31,$F$2:$G$48,2,FALSE)+ROW()-2))=Rebalance!$D$31,INDIRECT(\"a\" & (VLOOKUP(Rebalance!$D$31,$F$2:$G$48,2,FALSE)+ROW()-2)),\"\")","v":{"$error":"#N/A"}},{"$f":"IF(INDIRECT(\"c\" & (VLOOKUP(Rebalance!$D$32,$F$2:$G$48,2,FALSE)+ROW()-2))=Rebalance!$D$32,INDIRECT(\"a\" & (VLOOKUP(Rebalance!$D$32,$F$2:$G$48,2,FALSE)+ROW()-2)),\"\")","v":{"$error":"#N/A"}},{"$f":"IF(INDIRECT(\"c\" & (VLOOKUP(Rebalance!$D$33,$F$2:$G$48,2,FALSE)+ROW()-2))=Rebalance!$D$33,INDIRECT(\"a\" & (VLOOKUP(Rebalance!$D$33,$F$2:$G$48,2,FALSE)+ROW()-2)),\"\")","v":{"$error":"#N/A"}},{"$f":"IF(INDIRECT(\"c\" & (VLOOKUP(Rebalance!$D$34,$F$2:$G$48,2,FALSE)+ROW()-2))=Rebalance!$D$34,INDIRECT(\"a\" & (VLOOKUP(Rebalance!$D$34,$F$2:$G$48,2,FALSE)+ROW()-2)),\"\")","v":{"$error":"#N/A"}},{"$f":"IF(INDIRECT(\"c\" & (VLOOKUP(Rebalance!$D$35,$F$2:$G$48,2,FALSE)+ROW()-2))=Rebalance!$D$35,INDIRECT(\"a\" & (VLOOKUP(Rebalance!$D$35,$F$2:$G$48,2,FALSE)+ROW()-2)),\"\")","v":{"$error":"#N/A"}},{"$f":"IF(INDIRECT(\"c\" & (VLOOKUP(Rebalance!$D$36,$F$2:$G$48,2,FALSE)+ROW()-2))=Rebalance!$D$36,INDIRECT(\"a\" & (VLOOKUP(Rebalance!$D$36,$F$2:$G$48,2,FALSE)+ROW()-2)),\"\")","v":{"$error":"#N/A"}},{"$f":"IF(INDIRECT(\"c\" & (VLOOKUP(Rebalance!$D$37,$F$2:$G$48,2,FALSE)+ROW()-2))=Rebalance!$D$37,INDIRECT(\"a\" & (VLOOKUP(Rebalance!$D$37,$F$2:$G$48,2,FALSE)+ROW()-2)),\"\")","v":{"$error":"#N/A"}},{"$f":"IF(INDIRECT(\"c\" & (VLOOKUP(Rebalance!$D$38,$F$2:$G$48,2,FALSE)+ROW()-2))=Rebalance!$D$38,INDIRECT(\"a\" & (VLOOKUP(Rebalance!$D$38,$F$2:$G$48,2,FALSE)+ROW()-2)),\"\")","v":{"$error":"#N/A"}},{"$f":"IF(INDIRECT(\"c\" & (VLOOKUP(Rebalance!$D$39,$F$2:$G$48,2,FALSE)+ROW()-2))=Rebalance!$D$39,INDIRECT(\"a\" & (VLOOKUP(Rebalance!$D$39,$F$2:$G$48,2,FALSE)+ROW()-2)),\"\")","v":{"$error":"#N/A"}},{"$f":"IF(INDIRECT(\"c\" & (VLOOKUP(Rebalance!$D$40,$F$2:$G$48,2,FALSE)+ROW()-2))=Rebalance!$D$40,INDIRECT(\"a\" & (VLOOKUP(Rebalance!$D$40,$F$2:$G$48,2,FALSE)+ROW()-2)),\"\")","v":{"$error":"#N/A"}},{"$f":"IF(INDIRECT(\"c\" & (VLOOKUP(Rebalance!$D$52,$F$2:$G$48,2,FALSE)+ROW()-2))=Rebalance!$D$52,INDIRECT(\"a\" & (VLOOKUP(Rebalance!$D$52,$F$2:$G$48,2,FALSE)+ROW()-2)),\"\")","v":{"$error":"#N/A"}},{"$f":"IF(INDIRECT(\"c\" & (VLOOKUP(Rebalance!$D$53,$F$2:$G$48,2,FALSE)+ROW()-2))=Rebalance!$D$53,INDIRECT(\"a\" & (VLOOKUP(Rebalance!$D$53,$F$2:$G$48,2,FALSE)+ROW()-2)),\"\")","v":{"$error":"#N/A"}},{"$f":"IF(INDIRECT(\"c\" & (VLOOKUP(Rebalance!$D$54,$F$2:$G$48,2,FALSE)+ROW()-2))=Rebalance!$D$54,INDIRECT(\"a\" & (VLOOKUP(Rebalance!$D$54,$F$2:$G$48,2,FALSE)+ROW()-2)),\"\")","v":{"$error":"#N/A"}},{"$f":"IF(INDIRECT(\"c\" & (VLOOKUP(Rebalance!$D$55,$F$2:$G$48,2,FALSE)+ROW()-2))=Rebalance!$D$55,INDIRECT(\"a\" & (VLOOKUP(Rebalance!$D$55,$F$2:$G$48,2,FALSE)+ROW()-2)),\"\")","v":{"$error":"#N/A"}},{"$f":"IF(INDIRECT(\"c\" & (VLOOKUP(Rebalance!$D$56,$F$2:$G$48,2,FALSE)+ROW()-2))=Rebalance!$D$56,INDIRECT(\"a\" & (VLOOKUP(Rebalance!$D$56,$F$2:$G$48,2,FALSE)+ROW()-2)),\"\")","v":{"$error":"#N/A"}},{"$f":"IF(INDIRECT(\"c\" & (VLOOKUP(Rebalance!$D$57,$F$2:$G$48,2,FALSE)+ROW()-2))=Rebalance!$D$57,INDIRECT(\"a\" & (VLOOKUP(Rebalance!$D$57,$F$2:$G$48,2,FALSE)+ROW()-2)),\"\")","v":{"$error":"#N/A"}},{"$f":"IF(INDIRECT(\"c\" & (VLOOKUP(Rebalance!$D$58,$F$2:$G$48,2,FALSE)+ROW()-2))=Rebalance!$D$58,INDIRECT(\"a\" & (VLOOKUP(Rebalance!$D$58,$F$2:$G$48,2,FALSE)+ROW()-2)),\"\")","v":{"$error":"#N/A"}},{"$f":"IF(INDIRECT(\"c\" & (VLOOKUP(Rebalance!$D$59,$F$2:$G$48,2,FALSE)+ROW()-2))=Rebalance!$D$59,INDIRECT(\"a\" & (VLOOKUP(Rebalance!$D$59,$F$2:$G$48,2,FALSE)+ROW()-2)),\"\")","v":{"$error":"#N/A"}},{"$f":"IF(INDIRECT(\"c\" & (VLOOKUP(Rebalance!$D$60,$F$2:$G$48,2,FALSE)+ROW()-2))=Rebalance!$D$60,INDIRECT(\"a\" & (VLOOKUP(Rebalance!$D$60,$F$2:$G$48,2,FALSE)+ROW()-2)),\"\")","v":{"$error":"#N/A"}},{"$f":"IF(INDIRECT(\"c\" & (VLOOKUP(Rebalance!$D$61,$F$2:$G$48,2,FALSE)+ROW()-2))=Rebalance!$D$61,INDIRECT(\"a\" & (VLOOKUP(Rebalance!$D$61,$F$2:$G$48,2,FALSE)+ROW()-2)),\"\")","v":{"$error":"#N/A"}},{"$f":"IF(INDIRECT(\"c\" & (VLOOKUP(Rebalance!$D$62,$F$2:$G$48,2,FALSE)+ROW()-2))=Rebalance!$D$62,INDIRECT(\"a\" & (VLOOKUP(Rebalance!$D$62,$F$2:$G$48,2,FALSE)+ROW()-2)),\"\")","v":{"$error":"#N/A"}},{"$f":"IF(INDIRECT(\"c\" & (VLOOKUP(Rebalance!$D$63,$F$2:$G$48,2,FALSE)+ROW()-2))=Rebalance!$D$63,INDIRECT(\"a\" & (VLOOKUP(Rebalance!$D$63,$F$2:$G$48,2,FALSE)+ROW()-2)),\"\")","v":{"$error":"#N/A"}},{"$f":"IF(INDIRECT(\"c\" & (VLOOKUP(Rebalance!$D$64,$F$2:$G$48,2,FALSE)+ROW()-2))=Rebalance!$D$64,INDIRECT(\"a\" & (VLOOKUP(Rebalance!$D$64,$F$2:$G$48,2,FALSE)+ROW()-2)),\"\")","v":{"$error":"#N/A"}},{"$f":"IF(INDIRECT(\"c\" & (VLOOKUP(Rebalance!$D$65,$F$2:$G$48,2,FALSE)+ROW()-2))=Rebalance!$D$65,INDIRECT(\"a\" & (VLOOKUP(Rebalance!$D$65,$F$2:$G$48,2,FALSE)+ROW()-2)),\"\")","v":{"$error":"#N/A"}},{"$f":"IF(INDIRECT(\"c\" & (VLOOKUP(Rebalance!$D$66,$F$2:$G$48,2,FALSE)+ROW()-2))=Rebalance!$D$66,INDIRECT(\"a\" & (VLOOKUP(Rebalance!$D$66,$F$2:$G$48,2,FALSE)+ROW()-2)),\"\")","v":{"$error":"#N/A"}}]
["SIM General Equity Fund B6","SGEB6","Sanlam Collective Investments",{"$f":"ROW()","v":535},null,null,{"$f":"VLOOKUP(F535,$C$2:$D$599,2,FALSE)","v":{"$error":"#N/A"}},{"$f":"IF(INDIRECT(\"c\" & (VLOOKUP(Rebalance!$D$26,$F$2:$G$48,2,FALSE)+ROW()-2))=Rebalance!$D$26,INDIRECT(\"a\" & (VLOOKUP(Rebalance!$D$26,$F$2:$G$48,2,FALSE)+ROW()-2)),\"\")","v":{"$error":"#N/A"}},{"$f":"IF(INDIRECT(\"c\" & (VLOOKUP(Rebalance!$D$27,$F$2:$G$48,2,FALSE)+ROW()-2))=Rebalance!$D$27,INDIRECT(\"a\" & (VLOOKUP(Rebalance!$D$27,$F$2:$G$48,2,FALSE)+ROW()-2)),\"\")","v":{"$error":"#N/A"}},{"$f":"IF(INDIRECT(\"c\" & (VLOOKUP(Rebalance!$D$28,$F$2:$G$48,2,FALSE)+ROW()-2))=Rebalance!$D$28,INDIRECT(\"a\" & (VLOOKUP(Rebalance!$D$28,$F$2:$G$48,2,FALSE)+ROW()-2)),\"\")","v":{"$error":"#N/A"}},{"$f":"IF(INDIRECT(\"c\" & (VLOOKUP(Rebalance!$D$29,$F$2:$G$48,2,FALSE)+ROW()-2))=Rebalance!$D$29,INDIRECT(\"a\" & (VLOOKUP(Rebalance!$D$29,$F$2:$G$48,2,FALSE)+ROW()-2)),\"\")","v":{"$error":"#N/A"}},{"$f":"IF(INDIRECT(\"c\" & (VLOOKUP(Rebalance!$D$30,$F$2:$G$48,2,FALSE)+ROW()-2))=Rebalance!$D$30,INDIRECT(\"a\" & (VLOOKUP(Rebalance!$D$30,$F$2:$G$48,2,FALSE)+ROW()-2)),\"\")","v":{"$error":"#N/A"}},{"$f":"IF(INDIRECT(\"c\" & (VLOOKUP(Rebalance!$D$31,$F$2:$G$48,2,FALSE)+ROW()-2))=Rebalance!$D$31,INDIRECT(\"a\" & (VLOOKUP(Rebalance!$D$31,$F$2:$G$48,2,FALSE)+ROW()-2)),\"\")","v":{"$error":"#N/A"}},{"$f":"IF(INDIRECT(\"c\" & (VLOOKUP(Rebalance!$D$32,$F$2:$G$48,2,FALSE)+ROW()-2))=Rebalance!$D$32,INDIRECT(\"a\" & (VLOOKUP(Rebalance!$D$32,$F$2:$G$48,2,FALSE)+ROW()-2)),\"\")","v":{"$error":"#N/A"}},{"$f":"IF(INDIRECT(\"c\" & (VLOOKUP(Rebalance!$D$33,$F$2:$G$48,2,FALSE)+ROW()-2))=Rebalance!$D$33,INDIRECT(\"a\" & (VLOOKUP(Rebalance!$D$33,$F$2:$G$48,2,FALSE)+ROW()-2)),\"\")","v":{"$error":"#N/A"}},{"$f":"IF(INDIRECT(\"c\" & (VLOOKUP(Rebalance!$D$34,$F$2:$G$48,2,FALSE)+ROW()-2))=Rebalance!$D$34,INDIRECT(\"a\" & (VLOOKUP(Rebalance!$D$34,$F$2:$G$48,2,FALSE)+ROW()-2)),\"\")","v":{"$error":"#N/A"}},{"$f":"IF(INDIRECT(\"c\" & (VLOOKUP(Rebalance!$D$35,$F$2:$G$48,2,FALSE)+ROW()-2))=Rebalance!$D$35,INDIRECT(\"a\" & (VLOOKUP(Rebalance!$D$35,$F$2:$G$48,2,FALSE)+ROW()-2)),\"\")","v":{"$error":"#N/A"}},{"$f":"IF(INDIRECT(\"c\" & (VLOOKUP(Rebalance!$D$36,$F$2:$G$48,2,FALSE)+ROW()-2))=Rebalance!$D$36,INDIRECT(\"a\" & (VLOOKUP(Rebalance!$D$36,$F$2:$G$48,2,FALSE)+ROW()-2)),\"\")","v":{"$error":"#N/A"}},{"$f":"IF(INDIRECT(\"c\" & (VLOOKUP(Rebalance!$D$37,$F$2:$G$48,2,FALSE)+ROW()-2))=Rebalance!$D$37,INDIRECT(\"a\" & (VLOOKUP(Rebalance!$D$37,$F$2:$G$48,2,FALSE)+ROW()-2)),\"\")","v":{"$error":"#N/A"}},{"$f":"IF(INDIRECT(\"c\" & (VLOOKUP(Rebalance!$D$38,$F$2:$G$48,2,FALSE)+ROW()-2))=Rebalance!$D$38,INDIRECT(\"a\" & (VLOOKUP(Rebalance!$D$38,$F$2:$G$48,2,FALSE)+ROW()-2)),\"\")","v":{"$error":"#N/A"}},{"$f":"IF(INDIRECT(\"c\" & (VLOOKUP(Rebalance!$D$39,$F$2:$G$48,2,FALSE)+ROW()-2))=Rebalance!$D$39,INDIRECT(\"a\" & (VLOOKUP(Rebalance!$D$39,$F$2:$G$48,2,FALSE)+ROW()-2)),\"\")","v":{"$error":"#N/A"}},{"$f":"IF(INDIRECT(\"c\" & (VLOOKUP(Rebalance!$D$40,$F$2:$G$48,2,FALSE)+ROW()-2))=Rebalance!$D$40,INDIRECT(\"a\" & (VLOOKUP(Rebalance!$D$40,$F$2:$G$48,2,FALSE)+ROW()-2)),\"\")","v":{"$error":"#N/A"}},{"$f":"IF(INDIRECT(\"c\" & (VLOOKUP(Rebalance!$D$52,$F$2:$G$48,2,FALSE)+ROW()-2))=Rebalance!$D$52,INDIRECT(\"a\" & (VLOOKUP(Rebalance!$D$52,$F$2:$G$48,2,FALSE)+ROW()-2)),\"\")","v":{"$error":"#N/A"}},{"$f":"IF(INDIRECT(\"c\" & (VLOOKUP(Rebalance!$D$53,$F$2:$G$48,2,FALSE)+ROW()-2))=Rebalance!$D$53,INDIRECT(\"a\" & (VLOOKUP(Rebalance!$D$53,$F$2:$G$48,2,FALSE)+ROW()-2)),\"\")","v":{"$error":"#N/A"}},{"$f":"IF(INDIRECT(\"c\" & (VLOOKUP(Rebalance!$D$54,$F$2:$G$48,2,FALSE)+ROW()-2))=Rebalance!$D$54,INDIRECT(\"a\" & (VLOOKUP(Rebalance!$D$54,$F$2:$G$48,2,FALSE)+ROW()-2)),\"\")","v":{"$error":"#N/A"}},{"$f":"IF(INDIRECT(\"c\" & (VLOOKUP(Rebalance!$D$55,$F$2:$G$48,2,FALSE)+ROW()-2))=Rebalance!$D$55,INDIRECT(\"a\" & (VLOOKUP(Rebalance!$D$55,$F$2:$G$48,2,FALSE)+ROW()-2)),\"\")","v":{"$error":"#N/A"}},{"$f":"IF(INDIRECT(\"c\" & (VLOOKUP(Rebalance!$D$56,$F$2:$G$48,2,FALSE)+ROW()-2))=Rebalance!$D$56,INDIRECT(\"a\" & (VLOOKUP(Rebalance!$D$56,$F$2:$G$48,2,FALSE)+ROW()-2)),\"\")","v":{"$error":"#N/A"}},{"$f":"IF(INDIRECT(\"c\" & (VLOOKUP(Rebalance!$D$57,$F$2:$G$48,2,FALSE)+ROW()-2))=Rebalance!$D$57,INDIRECT(\"a\" & (VLOOKUP(Rebalance!$D$57,$F$2:$G$48,2,FALSE)+ROW()-2)),\"\")","v":{"$error":"#N/A"}},{"$f":"IF(INDIRECT(\"c\" & (VLOOKUP(Rebalance!$D$58,$F$2:$G$48,2,FALSE)+ROW()-2))=Rebalance!$D$58,INDIRECT(\"a\" & (VLOOKUP(Rebalance!$D$58,$F$2:$G$48,2,FALSE)+ROW()-2)),\"\")","v":{"$error":"#N/A"}},{"$f":"IF(INDIRECT(\"c\" & (VLOOKUP(Rebalance!$D$59,$F$2:$G$48,2,FALSE)+ROW()-2))=Rebalance!$D$59,INDIRECT(\"a\" & (VLOOKUP(Rebalance!$D$59,$F$2:$G$48,2,FALSE)+ROW()-2)),\"\")","v":{"$error":"#N/A"}},{"$f":"IF(INDIRECT(\"c\" & (VLOOKUP(Rebalance!$D$60,$F$2:$G$48,2,FALSE)+ROW()-2))=Rebalance!$D$60,INDIRECT(\"a\" & (VLOOKUP(Rebalance!$D$60,$F$2:$G$48,2,FALSE)+ROW()-2)),\"\")","v":{"$error":"#N/A"}},{"$f":"IF(INDIRECT(\"c\" & (VLOOKUP(Rebalance!$D$61,$F$2:$G$48,2,FALSE)+ROW()-2))=Rebalance!$D$61,INDIRECT(\"a\" & (VLOOKUP(Rebalance!$D$61,$F$2:$G$48,2,FALSE)+ROW()-2)),\"\")","v":{"$error":"#N/A"}},{"$f":"IF(INDIRECT(\"c\" & (VLOOKUP(Rebalance!$D$62,$F$2:$G$48,2,FALSE)+ROW()-2))=Rebalance!$D$62,INDIRECT(\"a\" & (VLOOKUP(Rebalance!$D$62,$F$2:$G$48,2,FALSE)+ROW()-2)),\"\")","v":{"$error":"#N/A"}},{"$f":"IF(INDIRECT(\"c\" & (VLOOKUP(Rebalance!$D$63,$F$2:$G$48,2,FALSE)+ROW()-2))=Rebalance!$D$63,INDIRECT(\"a\" & (VLOOKUP(Rebalance!$D$63,$F$2:$G$48,2,FALSE)+ROW()-2)),\"\")","v":{"$error":"#N/A"}},{"$f":"IF(INDIRECT(\"c\" & (VLOOKUP(Rebalance!$D$64,$F$2:$G$48,2,FALSE)+ROW()-2))=Rebalance!$D$64,INDIRECT(\"a\" & (VLOOKUP(Rebalance!$D$64,$F$2:$G$48,2,FALSE)+ROW()-2)),\"\")","v":{"$error":"#N/A"}},{"$f":"IF(INDIRECT(\"c\" & (VLOOKUP(Rebalance!$D$65,$F$2:$G$48,2,FALSE)+ROW()-2))=Rebalance!$D$65,INDIRECT(\"a\" & (VLOOKUP(Rebalance!$D$65,$F$2:$G$48,2,FALSE)+ROW()-2)),\"\")","v":{"$error":"#N/A"}},{"$f":"IF(INDIRECT(\"c\" & (VLOOKUP(Rebalance!$D$66,$F$2:$G$48,2,FALSE)+ROW()-2))=Rebalance!$D$66,INDIRECT(\"a\" & (VLOOKUP(Rebalance!$D$66,$F$2:$G$48,2,FALSE)+ROW()-2)),\"\")","v":{"$error":"#N/A"}}]
["SIM Global Best Ideas Feeder Fund B2","SIGA1","Sanlam Collective Investments",{"$f":"ROW()","v":536},null,null,{"$f":"VLOOKUP(F536,$C$2:$D$599,2,FALSE)","v":{"$error":"#N/A"}},{"$f":"IF(INDIRECT(\"c\" & (VLOOKUP(Rebalance!$D$26,$F$2:$G$48,2,FALSE)+ROW()-2))=Rebalance!$D$26,INDIRECT(\"a\" & (VLOOKUP(Rebalance!$D$26,$F$2:$G$48,2,FALSE)+ROW()-2)),\"\")","v":{"$error":"#N/A"}},{"$f":"IF(INDIRECT(\"c\" & (VLOOKUP(Rebalance!$D$27,$F$2:$G$48,2,FALSE)+ROW()-2))=Rebalance!$D$27,INDIRECT(\"a\" & (VLOOKUP(Rebalance!$D$27,$F$2:$G$48,2,FALSE)+ROW()-2)),\"\")","v":{"$error":"#N/A"}},{"$f":"IF(INDIRECT(\"c\" & (VLOOKUP(Rebalance!$D$28,$F$2:$G$48,2,FALSE)+ROW()-2))=Rebalance!$D$28,INDIRECT(\"a\" & (VLOOKUP(Rebalance!$D$28,$F$2:$G$48,2,FALSE)+ROW()-2)),\"\")","v":{"$error":"#N/A"}},{"$f":"IF(INDIRECT(\"c\" & (VLOOKUP(Rebalance!$D$29,$F$2:$G$48,2,FALSE)+ROW()-2))=Rebalance!$D$29,INDIRECT(\"a\" & (VLOOKUP(Rebalance!$D$29,$F$2:$G$48,2,FALSE)+ROW()-2)),\"\")","v":{"$error":"#N/A"}},{"$f":"IF(INDIRECT(\"c\" & (VLOOKUP(Rebalance!$D$30,$F$2:$G$48,2,FALSE)+ROW()-2))=Rebalance!$D$30,INDIRECT(\"a\" & (VLOOKUP(Rebalance!$D$30,$F$2:$G$48,2,FALSE)+ROW()-2)),\"\")","v":{"$error":"#N/A"}},{"$f":"IF(INDIRECT(\"c\" & (VLOOKUP(Rebalance!$D$31,$F$2:$G$48,2,FALSE)+ROW()-2))=Rebalance!$D$31,INDIRECT(\"a\" & (VLOOKUP(Rebalance!$D$31,$F$2:$G$48,2,FALSE)+ROW()-2)),\"\")","v":{"$error":"#N/A"}},{"$f":"IF(INDIRECT(\"c\" & (VLOOKUP(Rebalance!$D$32,$F$2:$G$48,2,FALSE)+ROW()-2))=Rebalance!$D$32,INDIRECT(\"a\" & (VLOOKUP(Rebalance!$D$32,$F$2:$G$48,2,FALSE)+ROW()-2)),\"\")","v":{"$error":"#N/A"}},{"$f":"IF(INDIRECT(\"c\" & (VLOOKUP(Rebalance!$D$33,$F$2:$G$48,2,FALSE)+ROW()-2))=Rebalance!$D$33,INDIRECT(\"a\" & (VLOOKUP(Rebalance!$D$33,$F$2:$G$48,2,FALSE)+ROW()-2)),\"\")","v":{"$error":"#N/A"}},{"$f":"IF(INDIRECT(\"c\" & (VLOOKUP(Rebalance!$D$34,$F$2:$G$48,2,FALSE)+ROW()-2))=Rebalance!$D$34,INDIRECT(\"a\" & (VLOOKUP(Rebalance!$D$34,$F$2:$G$48,2,FALSE)+ROW()-2)),\"\")","v":{"$error":"#N/A"}},{"$f":"IF(INDIRECT(\"c\" & (VLOOKUP(Rebalance!$D$35,$F$2:$G$48,2,FALSE)+ROW()-2))=Rebalance!$D$35,INDIRECT(\"a\" & (VLOOKUP(Rebalance!$D$35,$F$2:$G$48,2,FALSE)+ROW()-2)),\"\")","v":{"$error":"#N/A"}},{"$f":"IF(INDIRECT(\"c\" & (VLOOKUP(Rebalance!$D$36,$F$2:$G$48,2,FALSE)+ROW()-2))=Rebalance!$D$36,INDIRECT(\"a\" & (VLOOKUP(Rebalance!$D$36,$F$2:$G$48,2,FALSE)+ROW()-2)),\"\")","v":{"$error":"#N/A"}},{"$f":"IF(INDIRECT(\"c\" & (VLOOKUP(Rebalance!$D$37,$F$2:$G$48,2,FALSE)+ROW()-2))=Rebalance!$D$37,INDIRECT(\"a\" & (VLOOKUP(Rebalance!$D$37,$F$2:$G$48,2,FALSE)+ROW()-2)),\"\")","v":{"$error":"#N/A"}},{"$f":"IF(INDIRECT(\"c\" & (VLOOKUP(Rebalance!$D$38,$F$2:$G$48,2,FALSE)+ROW()-2))=Rebalance!$D$38,INDIRECT(\"a\" & (VLOOKUP(Rebalance!$D$38,$F$2:$G$48,2,FALSE)+ROW()-2)),\"\")","v":{"$error":"#N/A"}},{"$f":"IF(INDIRECT(\"c\" & (VLOOKUP(Rebalance!$D$39,$F$2:$G$48,2,FALSE)+ROW()-2))=Rebalance!$D$39,INDIRECT(\"a\" & (VLOOKUP(Rebalance!$D$39,$F$2:$G$48,2,FALSE)+ROW()-2)),\"\")","v":{"$error":"#N/A"}},{"$f":"IF(INDIRECT(\"c\" & (VLOOKUP(Rebalance!$D$40,$F$2:$G$48,2,FALSE)+ROW()-2))=Rebalance!$D$40,INDIRECT(\"a\" & (VLOOKUP(Rebalance!$D$40,$F$2:$G$48,2,FALSE)+ROW()-2)),\"\")","v":{"$error":"#N/A"}},{"$f":"IF(INDIRECT(\"c\" & (VLOOKUP(Rebalance!$D$52,$F$2:$G$48,2,FALSE)+ROW()-2))=Rebalance!$D$52,INDIRECT(\"a\" & (VLOOKUP(Rebalance!$D$52,$F$2:$G$48,2,FALSE)+ROW()-2)),\"\")","v":{"$error":"#N/A"}},{"$f":"IF(INDIRECT(\"c\" & (VLOOKUP(Rebalance!$D$53,$F$2:$G$48,2,FALSE)+ROW()-2))=Rebalance!$D$53,INDIRECT(\"a\" & (VLOOKUP(Rebalance!$D$53,$F$2:$G$48,2,FALSE)+ROW()-2)),\"\")","v":{"$error":"#N/A"}},{"$f":"IF(INDIRECT(\"c\" & (VLOOKUP(Rebalance!$D$54,$F$2:$G$48,2,FALSE)+ROW()-2))=Rebalance!$D$54,INDIRECT(\"a\" & (VLOOKUP(Rebalance!$D$54,$F$2:$G$48,2,FALSE)+ROW()-2)),\"\")","v":{"$error":"#N/A"}},{"$f":"IF(INDIRECT(\"c\" & (VLOOKUP(Rebalance!$D$55,$F$2:$G$48,2,FALSE)+ROW()-2))=Rebalance!$D$55,INDIRECT(\"a\" & (VLOOKUP(Rebalance!$D$55,$F$2:$G$48,2,FALSE)+ROW()-2)),\"\")","v":{"$error":"#N/A"}},{"$f":"IF(INDIRECT(\"c\" & (VLOOKUP(Rebalance!$D$56,$F$2:$G$48,2,FALSE)+ROW()-2))=Rebalance!$D$56,INDIRECT(\"a\" & (VLOOKUP(Rebalance!$D$56,$F$2:$G$48,2,FALSE)+ROW()-2)),\"\")","v":{"$error":"#N/A"}},{"$f":"IF(INDIRECT(\"c\" & (VLOOKUP(Rebalance!$D$57,$F$2:$G$48,2,FALSE)+ROW()-2))=Rebalance!$D$57,INDIRECT(\"a\" & (VLOOKUP(Rebalance!$D$57,$F$2:$G$48,2,FALSE)+ROW()-2)),\"\")","v":{"$error":"#N/A"}},{"$f":"IF(INDIRECT(\"c\" & (VLOOKUP(Rebalance!$D$58,$F$2:$G$48,2,FALSE)+ROW()-2))=Rebalance!$D$58,INDIRECT(\"a\" & (VLOOKUP(Rebalance!$D$58,$F$2:$G$48,2,FALSE)+ROW()-2)),\"\")","v":{"$error":"#N/A"}},{"$f":"IF(INDIRECT(\"c\" & (VLOOKUP(Rebalance!$D$59,$F$2:$G$48,2,FALSE)+ROW()-2))=Rebalance!$D$59,INDIRECT(\"a\" & (VLOOKUP(Rebalance!$D$59,$F$2:$G$48,2,FALSE)+ROW()-2)),\"\")","v":{"$error":"#N/A"}},{"$f":"IF(INDIRECT(\"c\" & (VLOOKUP(Rebalance!$D$60,$F$2:$G$48,2,FALSE)+ROW()-2))=Rebalance!$D$60,INDIRECT(\"a\" & (VLOOKUP(Rebalance!$D$60,$F$2:$G$48,2,FALSE)+ROW()-2)),\"\")","v":{"$error":"#N/A"}},{"$f":"IF(INDIRECT(\"c\" & (VLOOKUP(Rebalance!$D$61,$F$2:$G$48,2,FALSE)+ROW()-2))=Rebalance!$D$61,INDIRECT(\"a\" & (VLOOKUP(Rebalance!$D$61,$F$2:$G$48,2,FALSE)+ROW()-2)),\"\")","v":{"$error":"#N/A"}},{"$f":"IF(INDIRECT(\"c\" & (VLOOKUP(Rebalance!$D$62,$F$2:$G$48,2,FALSE)+ROW()-2))=Rebalance!$D$62,INDIRECT(\"a\" & (VLOOKUP(Rebalance!$D$62,$F$2:$G$48,2,FALSE)+ROW()-2)),\"\")","v":{"$error":"#N/A"}},{"$f":"IF(INDIRECT(\"c\" & (VLOOKUP(Rebalance!$D$63,$F$2:$G$48,2,FALSE)+ROW()-2))=Rebalance!$D$63,INDIRECT(\"a\" & (VLOOKUP(Rebalance!$D$63,$F$2:$G$48,2,FALSE)+ROW()-2)),\"\")","v":{"$error":"#N/A"}},{"$f":"IF(INDIRECT(\"c\" & (VLOOKUP(Rebalance!$D$64,$F$2:$G$48,2,FALSE)+ROW()-2))=Rebalance!$D$64,INDIRECT(\"a\" & (VLOOKUP(Rebalance!$D$64,$F$2:$G$48,2,FALSE)+ROW()-2)),\"\")","v":{"$error":"#N/A"}},{"$f":"IF(INDIRECT(\"c\" & (VLOOKUP(Rebalance!$D$65,$F$2:$G$48,2,FALSE)+ROW()-2))=Rebalance!$D$65,INDIRECT(\"a\" & (VLOOKUP(Rebalance!$D$65,$F$2:$G$48,2,FALSE)+ROW()-2)),\"\")","v":{"$error":"#N/A"}},{"$f":"IF(INDIRECT(\"c\" & (VLOOKUP(Rebalance!$D$66,$F$2:$G$48,2,FALSE)+ROW()-2))=Rebalance!$D$66,INDIRECT(\"a\" & (VLOOKUP(Rebalance!$D$66,$F$2:$G$48,2,FALSE)+ROW()-2)),\"\")","v":{"$error":"#N/A"}}]
["SIM Global Best Ideas Fund A1","SIGA1","Sanlam Collective Investments",{"$f":"ROW()","v":537},null,null,{"$f":"VLOOKUP(F537,$C$2:$D$599,2,FALSE)","v":{"$error":"#N/A"}},{"$f":"IF(INDIRECT(\"c\" & (VLOOKUP(Rebalance!$D$26,$F$2:$G$48,2,FALSE)+ROW()-2))=Rebalance!$D$26,INDIRECT(\"a\" & (VLOOKUP(Rebalance!$D$26,$F$2:$G$48,2,FALSE)+ROW()-2)),\"\")","v":{"$error":"#N/A"}},{"$f":"IF(INDIRECT(\"c\" & (VLOOKUP(Rebalance!$D$27,$F$2:$G$48,2,FALSE)+ROW()-2))=Rebalance!$D$27,INDIRECT(\"a\" & (VLOOKUP(Rebalance!$D$27,$F$2:$G$48,2,FALSE)+ROW()-2)),\"\")","v":{"$error":"#N/A"}},{"$f":"IF(INDIRECT(\"c\" & (VLOOKUP(Rebalance!$D$28,$F$2:$G$48,2,FALSE)+ROW()-2))=Rebalance!$D$28,INDIRECT(\"a\" & (VLOOKUP(Rebalance!$D$28,$F$2:$G$48,2,FALSE)+ROW()-2)),\"\")","v":{"$error":"#N/A"}},{"$f":"IF(INDIRECT(\"c\" & (VLOOKUP(Rebalance!$D$29,$F$2:$G$48,2,FALSE)+ROW()-2))=Rebalance!$D$29,INDIRECT(\"a\" & (VLOOKUP(Rebalance!$D$29,$F$2:$G$48,2,FALSE)+ROW()-2)),\"\")","v":{"$error":"#N/A"}},{"$f":"IF(INDIRECT(\"c\" & (VLOOKUP(Rebalance!$D$30,$F$2:$G$48,2,FALSE)+ROW()-2))=Rebalance!$D$30,INDIRECT(\"a\" & (VLOOKUP(Rebalance!$D$30,$F$2:$G$48,2,FALSE)+ROW()-2)),\"\")","v":{"$error":"#N/A"}},{"$f":"IF(INDIRECT(\"c\" & (VLOOKUP(Rebalance!$D$31,$F$2:$G$48,2,FALSE)+ROW()-2))=Rebalance!$D$31,INDIRECT(\"a\" & (VLOOKUP(Rebalance!$D$31,$F$2:$G$48,2,FALSE)+ROW()-2)),\"\")","v":{"$error":"#N/A"}},{"$f":"IF(INDIRECT(\"c\" & (VLOOKUP(Rebalance!$D$32,$F$2:$G$48,2,FALSE)+ROW()-2))=Rebalance!$D$32,INDIRECT(\"a\" & (VLOOKUP(Rebalance!$D$32,$F$2:$G$48,2,FALSE)+ROW()-2)),\"\")","v":{"$error":"#N/A"}},{"$f":"IF(INDIRECT(\"c\" & (VLOOKUP(Rebalance!$D$33,$F$2:$G$48,2,FALSE)+ROW()-2))=Rebalance!$D$33,INDIRECT(\"a\" & (VLOOKUP(Rebalance!$D$33,$F$2:$G$48,2,FALSE)+ROW()-2)),\"\")","v":{"$error":"#N/A"}},{"$f":"IF(INDIRECT(\"c\" & (VLOOKUP(Rebalance!$D$34,$F$2:$G$48,2,FALSE)+ROW()-2))=Rebalance!$D$34,INDIRECT(\"a\" & (VLOOKUP(Rebalance!$D$34,$F$2:$G$48,2,FALSE)+ROW()-2)),\"\")","v":{"$error":"#N/A"}},{"$f":"IF(INDIRECT(\"c\" & (VLOOKUP(Rebalance!$D$35,$F$2:$G$48,2,FALSE)+ROW()-2))=Rebalance!$D$35,INDIRECT(\"a\" & (VLOOKUP(Rebalance!$D$35,$F$2:$G$48,2,FALSE)+ROW()-2)),\"\")","v":{"$error":"#N/A"}},{"$f":"IF(INDIRECT(\"c\" & (VLOOKUP(Rebalance!$D$36,$F$2:$G$48,2,FALSE)+ROW()-2))=Rebalance!$D$36,INDIRECT(\"a\" & (VLOOKUP(Rebalance!$D$36,$F$2:$G$48,2,FALSE)+ROW()-2)),\"\")","v":{"$error":"#N/A"}},{"$f":"IF(INDIRECT(\"c\" & (VLOOKUP(Rebalance!$D$37,$F$2:$G$48,2,FALSE)+ROW()-2))=Rebalance!$D$37,INDIRECT(\"a\" & (VLOOKUP(Rebalance!$D$37,$F$2:$G$48,2,FALSE)+ROW()-2)),\"\")","v":{"$error":"#N/A"}},{"$f":"IF(INDIRECT(\"c\" & (VLOOKUP(Rebalance!$D$38,$F$2:$G$48,2,FALSE)+ROW()-2))=Rebalance!$D$38,INDIRECT(\"a\" & (VLOOKUP(Rebalance!$D$38,$F$2:$G$48,2,FALSE)+ROW()-2)),\"\")","v":{"$error":"#N/A"}},{"$f":"IF(INDIRECT(\"c\" & (VLOOKUP(Rebalance!$D$39,$F$2:$G$48,2,FALSE)+ROW()-2))=Rebalance!$D$39,INDIRECT(\"a\" & (VLOOKUP(Rebalance!$D$39,$F$2:$G$48,2,FALSE)+ROW()-2)),\"\")","v":{"$error":"#N/A"}},{"$f":"IF(INDIRECT(\"c\" & (VLOOKUP(Rebalance!$D$40,$F$2:$G$48,2,FALSE)+ROW()-2))=Rebalance!$D$40,INDIRECT(\"a\" & (VLOOKUP(Rebalance!$D$40,$F$2:$G$48,2,FALSE)+ROW()-2)),\"\")","v":{"$error":"#N/A"}},{"$f":"IF(INDIRECT(\"c\" & (VLOOKUP(Rebalance!$D$52,$F$2:$G$48,2,FALSE)+ROW()-2))=Rebalance!$D$52,INDIRECT(\"a\" & (VLOOKUP(Rebalance!$D$52,$F$2:$G$48,2,FALSE)+ROW()-2)),\"\")","v":{"$error":"#N/A"}},{"$f":"IF(INDIRECT(\"c\" & (VLOOKUP(Rebalance!$D$53,$F$2:$G$48,2,FALSE)+ROW()-2))=Rebalance!$D$53,INDIRECT(\"a\" & (VLOOKUP(Rebalance!$D$53,$F$2:$G$48,2,FALSE)+ROW()-2)),\"\")","v":{"$error":"#N/A"}},{"$f":"IF(INDIRECT(\"c\" & (VLOOKUP(Rebalance!$D$54,$F$2:$G$48,2,FALSE)+ROW()-2))=Rebalance!$D$54,INDIRECT(\"a\" & (VLOOKUP(Rebalance!$D$54,$F$2:$G$48,2,FALSE)+ROW()-2)),\"\")","v":{"$error":"#N/A"}},{"$f":"IF(INDIRECT(\"c\" & (VLOOKUP(Rebalance!$D$55,$F$2:$G$48,2,FALSE)+ROW()-2))=Rebalance!$D$55,INDIRECT(\"a\" & (VLOOKUP(Rebalance!$D$55,$F$2:$G$48,2,FALSE)+ROW()-2)),\"\")","v":{"$error":"#N/A"}},{"$f":"IF(INDIRECT(\"c\" & (VLOOKUP(Rebalance!$D$56,$F$2:$G$48,2,FALSE)+ROW()-2))=Rebalance!$D$56,INDIRECT(\"a\" & (VLOOKUP(Rebalance!$D$56,$F$2:$G$48,2,FALSE)+ROW()-2)),\"\")","v":{"$error":"#N/A"}},{"$f":"IF(INDIRECT(\"c\" & (VLOOKUP(Rebalance!$D$57,$F$2:$G$48,2,FALSE)+ROW()-2))=Rebalance!$D$57,INDIRECT(\"a\" & (VLOOKUP(Rebalance!$D$57,$F$2:$G$48,2,FALSE)+ROW()-2)),\"\")","v":{"$error":"#N/A"}},{"$f":"IF(INDIRECT(\"c\" & (VLOOKUP(Rebalance!$D$58,$F$2:$G$48,2,FALSE)+ROW()-2))=Rebalance!$D$58,INDIRECT(\"a\" & (VLOOKUP(Rebalance!$D$58,$F$2:$G$48,2,FALSE)+ROW()-2)),\"\")","v":{"$error":"#N/A"}},{"$f":"IF(INDIRECT(\"c\" & (VLOOKUP(Rebalance!$D$59,$F$2:$G$48,2,FALSE)+ROW()-2))=Rebalance!$D$59,INDIRECT(\"a\" & (VLOOKUP(Rebalance!$D$59,$F$2:$G$48,2,FALSE)+ROW()-2)),\"\")","v":{"$error":"#N/A"}},{"$f":"IF(INDIRECT(\"c\" & (VLOOKUP(Rebalance!$D$60,$F$2:$G$48,2,FALSE)+ROW()-2))=Rebalance!$D$60,INDIRECT(\"a\" & (VLOOKUP(Rebalance!$D$60,$F$2:$G$48,2,FALSE)+ROW()-2)),\"\")","v":{"$error":"#N/A"}},{"$f":"IF(INDIRECT(\"c\" & (VLOOKUP(Rebalance!$D$61,$F$2:$G$48,2,FALSE)+ROW()-2))=Rebalance!$D$61,INDIRECT(\"a\" & (VLOOKUP(Rebalance!$D$61,$F$2:$G$48,2,FALSE)+ROW()-2)),\"\")","v":{"$error":"#N/A"}},{"$f":"IF(INDIRECT(\"c\" & (VLOOKUP(Rebalance!$D$62,$F$2:$G$48,2,FALSE)+ROW()-2))=Rebalance!$D$62,INDIRECT(\"a\" & (VLOOKUP(Rebalance!$D$62,$F$2:$G$48,2,FALSE)+ROW()-2)),\"\")","v":{"$error":"#N/A"}},{"$f":"IF(INDIRECT(\"c\" & (VLOOKUP(Rebalance!$D$63,$F$2:$G$48,2,FALSE)+ROW()-2))=Rebalance!$D$63,INDIRECT(\"a\" & (VLOOKUP(Rebalance!$D$63,$F$2:$G$48,2,FALSE)+ROW()-2)),\"\")","v":{"$error":"#N/A"}},{"$f":"IF(INDIRECT(\"c\" & (VLOOKUP(Rebalance!$D$64,$F$2:$G$48,2,FALSE)+ROW()-2))=Rebalance!$D$64,INDIRECT(\"a\" & (VLOOKUP(Rebalance!$D$64,$F$2:$G$48,2,FALSE)+ROW()-2)),\"\")","v":{"$error":"#N/A"}},{"$f":"IF(INDIRECT(\"c\" & (VLOOKUP(Rebalance!$D$65,$F$2:$G$48,2,FALSE)+ROW()-2))=Rebalance!$D$65,INDIRECT(\"a\" & (VLOOKUP(Rebalance!$D$65,$F$2:$G$48,2,FALSE)+ROW()-2)),\"\")","v":{"$error":"#N/A"}},{"$f":"IF(INDIRECT(\"c\" & (VLOOKUP(Rebalance!$D$66,$F$2:$G$48,2,FALSE)+ROW()-2))=Rebalance!$D$66,INDIRECT(\"a\" & (VLOOKUP(Rebalance!$D$66,$F$2:$G$48,2,FALSE)+ROW()-2)),\"\")","v":{"$error":"#N/A"}}]
["SIM Inflation Plus Fund B4","SAIB4","Sanlam Collective Investments",{"$f":"ROW()","v":538},null,null,{"$f":"VLOOKUP(F538,$C$2:$D$599,2,FALSE)","v":{"$error":"#N/A"}},{"$f":"IF(INDIRECT(\"c\" & (VLOOKUP(Rebalance!$D$26,$F$2:$G$48,2,FALSE)+ROW()-2))=Rebalance!$D$26,INDIRECT(\"a\" & (VLOOKUP(Rebalance!$D$26,$F$2:$G$48,2,FALSE)+ROW()-2)),\"\")","v":{"$error":"#N/A"}},{"$f":"IF(INDIRECT(\"c\" & (VLOOKUP(Rebalance!$D$27,$F$2:$G$48,2,FALSE)+ROW()-2))=Rebalance!$D$27,INDIRECT(\"a\" & (VLOOKUP(Rebalance!$D$27,$F$2:$G$48,2,FALSE)+ROW()-2)),\"\")","v":{"$error":"#N/A"}},{"$f":"IF(INDIRECT(\"c\" & (VLOOKUP(Rebalance!$D$28,$F$2:$G$48,2,FALSE)+ROW()-2))=Rebalance!$D$28,INDIRECT(\"a\" & (VLOOKUP(Rebalance!$D$28,$F$2:$G$48,2,FALSE)+ROW()-2)),\"\")","v":{"$error":"#N/A"}},{"$f":"IF(INDIRECT(\"c\" & (VLOOKUP(Rebalance!$D$29,$F$2:$G$48,2,FALSE)+ROW()-2))=Rebalance!$D$29,INDIRECT(\"a\" & (VLOOKUP(Rebalance!$D$29,$F$2:$G$48,2,FALSE)+ROW()-2)),\"\")","v":{"$error":"#N/A"}},{"$f":"IF(INDIRECT(\"c\" & (VLOOKUP(Rebalance!$D$30,$F$2:$G$48,2,FALSE)+ROW()-2))=Rebalance!$D$30,INDIRECT(\"a\" & (VLOOKUP(Rebalance!$D$30,$F$2:$G$48,2,FALSE)+ROW()-2)),\"\")","v":{"$error":"#N/A"}},{"$f":"IF(INDIRECT(\"c\" & (VLOOKUP(Rebalance!$D$31,$F$2:$G$48,2,FALSE)+ROW()-2))=Rebalance!$D$31,INDIRECT(\"a\" & (VLOOKUP(Rebalance!$D$31,$F$2:$G$48,2,FALSE)+ROW()-2)),\"\")","v":{"$error":"#N/A"}},{"$f":"IF(INDIRECT(\"c\" & (VLOOKUP(Rebalance!$D$32,$F$2:$G$48,2,FALSE)+ROW()-2))=Rebalance!$D$32,INDIRECT(\"a\" & (VLOOKUP(Rebalance!$D$32,$F$2:$G$48,2,FALSE)+ROW()-2)),\"\")","v":{"$error":"#N/A"}},{"$f":"IF(INDIRECT(\"c\" & (VLOOKUP(Rebalance!$D$33,$F$2:$G$48,2,FALSE)+ROW()-2))=Rebalance!$D$33,INDIRECT(\"a\" & (VLOOKUP(Rebalance!$D$33,$F$2:$G$48,2,FALSE)+ROW()-2)),\"\")","v":{"$error":"#N/A"}},{"$f":"IF(INDIRECT(\"c\" & (VLOOKUP(Rebalance!$D$34,$F$2:$G$48,2,FALSE)+ROW()-2))=Rebalance!$D$34,INDIRECT(\"a\" & (VLOOKUP(Rebalance!$D$34,$F$2:$G$48,2,FALSE)+ROW()-2)),\"\")","v":{"$error":"#N/A"}},{"$f":"IF(INDIRECT(\"c\" & (VLOOKUP(Rebalance!$D$35,$F$2:$G$48,2,FALSE)+ROW()-2))=Rebalance!$D$35,INDIRECT(\"a\" & (VLOOKUP(Rebalance!$D$35,$F$2:$G$48,2,FALSE)+ROW()-2)),\"\")","v":{"$error":"#N/A"}},{"$f":"IF(INDIRECT(\"c\" & (VLOOKUP(Rebalance!$D$36,$F$2:$G$48,2,FALSE)+ROW()-2))=Rebalance!$D$36,INDIRECT(\"a\" & (VLOOKUP(Rebalance!$D$36,$F$2:$G$48,2,FALSE)+ROW()-2)),\"\")","v":{"$error":"#N/A"}},{"$f":"IF(INDIRECT(\"c\" & (VLOOKUP(Rebalance!$D$37,$F$2:$G$48,2,FALSE)+ROW()-2))=Rebalance!$D$37,INDIRECT(\"a\" & (VLOOKUP(Rebalance!$D$37,$F$2:$G$48,2,FALSE)+ROW()-2)),\"\")","v":{"$error":"#N/A"}},{"$f":"IF(INDIRECT(\"c\" & (VLOOKUP(Rebalance!$D$38,$F$2:$G$48,2,FALSE)+ROW()-2))=Rebalance!$D$38,INDIRECT(\"a\" & (VLOOKUP(Rebalance!$D$38,$F$2:$G$48,2,FALSE)+ROW()-2)),\"\")","v":{"$error":"#N/A"}},{"$f":"IF(INDIRECT(\"c\" & (VLOOKUP(Rebalance!$D$39,$F$2:$G$48,2,FALSE)+ROW()-2))=Rebalance!$D$39,INDIRECT(\"a\" & (VLOOKUP(Rebalance!$D$39,$F$2:$G$48,2,FALSE)+ROW()-2)),\"\")","v":{"$error":"#N/A"}},{"$f":"IF(INDIRECT(\"c\" & (VLOOKUP(Rebalance!$D$40,$F$2:$G$48,2,FALSE)+ROW()-2))=Rebalance!$D$40,INDIRECT(\"a\" & (VLOOKUP(Rebalance!$D$40,$F$2:$G$48,2,FALSE)+ROW()-2)),\"\")","v":{"$error":"#N/A"}},{"$f":"IF(INDIRECT(\"c\" & (VLOOKUP(Rebalance!$D$52,$F$2:$G$48,2,FALSE)+ROW()-2))=Rebalance!$D$52,INDIRECT(\"a\" & (VLOOKUP(Rebalance!$D$52,$F$2:$G$48,2,FALSE)+ROW()-2)),\"\")","v":{"$error":"#N/A"}},{"$f":"IF(INDIRECT(\"c\" & (VLOOKUP(Rebalance!$D$53,$F$2:$G$48,2,FALSE)+ROW()-2))=Rebalance!$D$53,INDIRECT(\"a\" & (VLOOKUP(Rebalance!$D$53,$F$2:$G$48,2,FALSE)+ROW()-2)),\"\")","v":{"$error":"#N/A"}},{"$f":"IF(INDIRECT(\"c\" & (VLOOKUP(Rebalance!$D$54,$F$2:$G$48,2,FALSE)+ROW()-2))=Rebalance!$D$54,INDIRECT(\"a\" & (VLOOKUP(Rebalance!$D$54,$F$2:$G$48,2,FALSE)+ROW()-2)),\"\")","v":{"$error":"#N/A"}},{"$f":"IF(INDIRECT(\"c\" & (VLOOKUP(Rebalance!$D$55,$F$2:$G$48,2,FALSE)+ROW()-2))=Rebalance!$D$55,INDIRECT(\"a\" & (VLOOKUP(Rebalance!$D$55,$F$2:$G$48,2,FALSE)+ROW()-2)),\"\")","v":{"$error":"#N/A"}},{"$f":"IF(INDIRECT(\"c\" & (VLOOKUP(Rebalance!$D$56,$F$2:$G$48,2,FALSE)+ROW()-2))=Rebalance!$D$56,INDIRECT(\"a\" & (VLOOKUP(Rebalance!$D$56,$F$2:$G$48,2,FALSE)+ROW()-2)),\"\")","v":{"$error":"#N/A"}},{"$f":"IF(INDIRECT(\"c\" & (VLOOKUP(Rebalance!$D$57,$F$2:$G$48,2,FALSE)+ROW()-2))=Rebalance!$D$57,INDIRECT(\"a\" & (VLOOKUP(Rebalance!$D$57,$F$2:$G$48,2,FALSE)+ROW()-2)),\"\")","v":{"$error":"#N/A"}},{"$f":"IF(INDIRECT(\"c\" & (VLOOKUP(Rebalance!$D$58,$F$2:$G$48,2,FALSE)+ROW()-2))=Rebalance!$D$58,INDIRECT(\"a\" & (VLOOKUP(Rebalance!$D$58,$F$2:$G$48,2,FALSE)+ROW()-2)),\"\")","v":{"$error":"#N/A"}},{"$f":"IF(INDIRECT(\"c\" & (VLOOKUP(Rebalance!$D$59,$F$2:$G$48,2,FALSE)+ROW()-2))=Rebalance!$D$59,INDIRECT(\"a\" & (VLOOKUP(Rebalance!$D$59,$F$2:$G$48,2,FALSE)+ROW()-2)),\"\")","v":{"$error":"#N/A"}},{"$f":"IF(INDIRECT(\"c\" & (VLOOKUP(Rebalance!$D$60,$F$2:$G$48,2,FALSE)+ROW()-2))=Rebalance!$D$60,INDIRECT(\"a\" & (VLOOKUP(Rebalance!$D$60,$F$2:$G$48,2,FALSE)+ROW()-2)),\"\")","v":{"$error":"#N/A"}},{"$f":"IF(INDIRECT(\"c\" & (VLOOKUP(Rebalance!$D$61,$F$2:$G$48,2,FALSE)+ROW()-2))=Rebalance!$D$61,INDIRECT(\"a\" & (VLOOKUP(Rebalance!$D$61,$F$2:$G$48,2,FALSE)+ROW()-2)),\"\")","v":{"$error":"#N/A"}},{"$f":"IF(INDIRECT(\"c\" & (VLOOKUP(Rebalance!$D$62,$F$2:$G$48,2,FALSE)+ROW()-2))=Rebalance!$D$62,INDIRECT(\"a\" & (VLOOKUP(Rebalance!$D$62,$F$2:$G$48,2,FALSE)+ROW()-2)),\"\")","v":{"$error":"#N/A"}},{"$f":"IF(INDIRECT(\"c\" & (VLOOKUP(Rebalance!$D$63,$F$2:$G$48,2,FALSE)+ROW()-2))=Rebalance!$D$63,INDIRECT(\"a\" & (VLOOKUP(Rebalance!$D$63,$F$2:$G$48,2,FALSE)+ROW()-2)),\"\")","v":{"$error":"#N/A"}},{"$f":"IF(INDIRECT(\"c\" & (VLOOKUP(Rebalance!$D$64,$F$2:$G$48,2,FALSE)+ROW()-2))=Rebalance!$D$64,INDIRECT(\"a\" & (VLOOKUP(Rebalance!$D$64,$F$2:$G$48,2,FALSE)+ROW()-2)),\"\")","v":{"$error":"#N/A"}},{"$f":"IF(INDIRECT(\"c\" & (VLOOKUP(Rebalance!$D$65,$F$2:$G$48,2,FALSE)+ROW()-2))=Rebalance!$D$65,INDIRECT(\"a\" & (VLOOKUP(Rebalance!$D$65,$F$2:$G$48,2,FALSE)+ROW()-2)),\"\")","v":{"$error":"#N/A"}},{"$f":"IF(INDIRECT(\"c\" & (VLOOKUP(Rebalance!$D$66,$F$2:$G$48,2,FALSE)+ROW()-2))=Rebalance!$D$66,INDIRECT(\"a\" & (VLOOKUP(Rebalance!$D$66,$F$2:$G$48,2,FALSE)+ROW()-2)),\"\")","v":{"$error":"#N/A"}}]
["SIM Small Cap Fund R","SNST","Sanlam Collective Investments",{"$f":"ROW()","v":539},null,null,{"$f":"VLOOKUP(F539,$C$2:$D$599,2,FALSE)","v":{"$error":"#N/A"}},{"$f":"IF(INDIRECT(\"c\" & (VLOOKUP(Rebalance!$D$26,$F$2:$G$48,2,FALSE)+ROW()-2))=Rebalance!$D$26,INDIRECT(\"a\" & (VLOOKUP(Rebalance!$D$26,$F$2:$G$48,2,FALSE)+ROW()-2)),\"\")","v":{"$error":"#N/A"}},{"$f":"IF(INDIRECT(\"c\" & (VLOOKUP(Rebalance!$D$27,$F$2:$G$48,2,FALSE)+ROW()-2))=Rebalance!$D$27,INDIRECT(\"a\" & (VLOOKUP(Rebalance!$D$27,$F$2:$G$48,2,FALSE)+ROW()-2)),\"\")","v":{"$error":"#N/A"}},{"$f":"IF(INDIRECT(\"c\" & (VLOOKUP(Rebalance!$D$28,$F$2:$G$48,2,FALSE)+ROW()-2))=Rebalance!$D$28,INDIRECT(\"a\" & (VLOOKUP(Rebalance!$D$28,$F$2:$G$48,2,FALSE)+ROW()-2)),\"\")","v":{"$error":"#N/A"}},{"$f":"IF(INDIRECT(\"c\" & (VLOOKUP(Rebalance!$D$29,$F$2:$G$48,2,FALSE)+ROW()-2))=Rebalance!$D$29,INDIRECT(\"a\" & (VLOOKUP(Rebalance!$D$29,$F$2:$G$48,2,FALSE)+ROW()-2)),\"\")","v":{"$error":"#N/A"}},{"$f":"IF(INDIRECT(\"c\" & (VLOOKUP(Rebalance!$D$30,$F$2:$G$48,2,FALSE)+ROW()-2))=Rebalance!$D$30,INDIRECT(\"a\" & (VLOOKUP(Rebalance!$D$30,$F$2:$G$48,2,FALSE)+ROW()-2)),\"\")","v":{"$error":"#N/A"}},{"$f":"IF(INDIRECT(\"c\" & (VLOOKUP(Rebalance!$D$31,$F$2:$G$48,2,FALSE)+ROW()-2))=Rebalance!$D$31,INDIRECT(\"a\" & (VLOOKUP(Rebalance!$D$31,$F$2:$G$48,2,FALSE)+ROW()-2)),\"\")","v":{"$error":"#N/A"}},{"$f":"IF(INDIRECT(\"c\" & (VLOOKUP(Rebalance!$D$32,$F$2:$G$48,2,FALSE)+ROW()-2))=Rebalance!$D$32,INDIRECT(\"a\" & (VLOOKUP(Rebalance!$D$32,$F$2:$G$48,2,FALSE)+ROW()-2)),\"\")","v":{"$error":"#N/A"}},{"$f":"IF(INDIRECT(\"c\" & (VLOOKUP(Rebalance!$D$33,$F$2:$G$48,2,FALSE)+ROW()-2))=Rebalance!$D$33,INDIRECT(\"a\" & (VLOOKUP(Rebalance!$D$33,$F$2:$G$48,2,FALSE)+ROW()-2)),\"\")","v":{"$error":"#N/A"}},{"$f":"IF(INDIRECT(\"c\" & (VLOOKUP(Rebalance!$D$34,$F$2:$G$48,2,FALSE)+ROW()-2))=Rebalance!$D$34,INDIRECT(\"a\" & (VLOOKUP(Rebalance!$D$34,$F$2:$G$48,2,FALSE)+ROW()-2)),\"\")","v":{"$error":"#N/A"}},{"$f":"IF(INDIRECT(\"c\" & (VLOOKUP(Rebalance!$D$35,$F$2:$G$48,2,FALSE)+ROW()-2))=Rebalance!$D$35,INDIRECT(\"a\" & (VLOOKUP(Rebalance!$D$35,$F$2:$G$48,2,FALSE)+ROW()-2)),\"\")","v":{"$error":"#N/A"}},{"$f":"IF(INDIRECT(\"c\" & (VLOOKUP(Rebalance!$D$36,$F$2:$G$48,2,FALSE)+ROW()-2))=Rebalance!$D$36,INDIRECT(\"a\" & (VLOOKUP(Rebalance!$D$36,$F$2:$G$48,2,FALSE)+ROW()-2)),\"\")","v":{"$error":"#N/A"}},{"$f":"IF(INDIRECT(\"c\" & (VLOOKUP(Rebalance!$D$37,$F$2:$G$48,2,FALSE)+ROW()-2))=Rebalance!$D$37,INDIRECT(\"a\" & (VLOOKUP(Rebalance!$D$37,$F$2:$G$48,2,FALSE)+ROW()-2)),\"\")","v":{"$error":"#N/A"}},{"$f":"IF(INDIRECT(\"c\" & (VLOOKUP(Rebalance!$D$38,$F$2:$G$48,2,FALSE)+ROW()-2))=Rebalance!$D$38,INDIRECT(\"a\" & (VLOOKUP(Rebalance!$D$38,$F$2:$G$48,2,FALSE)+ROW()-2)),\"\")","v":{"$error":"#N/A"}},{"$f":"IF(INDIRECT(\"c\" & (VLOOKUP(Rebalance!$D$39,$F$2:$G$48,2,FALSE)+ROW()-2))=Rebalance!$D$39,INDIRECT(\"a\" & (VLOOKUP(Rebalance!$D$39,$F$2:$G$48,2,FALSE)+ROW()-2)),\"\")","v":{"$error":"#N/A"}},{"$f":"IF(INDIRECT(\"c\" & (VLOOKUP(Rebalance!$D$40,$F$2:$G$48,2,FALSE)+ROW()-2))=Rebalance!$D$40,INDIRECT(\"a\" & (VLOOKUP(Rebalance!$D$40,$F$2:$G$48,2,FALSE)+ROW()-2)),\"\")","v":{"$error":"#N/A"}},{"$f":"IF(INDIRECT(\"c\" & (VLOOKUP(Rebalance!$D$52,$F$2:$G$48,2,FALSE)+ROW()-2))=Rebalance!$D$52,INDIRECT(\"a\" & (VLOOKUP(Rebalance!$D$52,$F$2:$G$48,2,FALSE)+ROW()-2)),\"\")","v":{"$error":"#N/A"}},{"$f":"IF(INDIRECT(\"c\" & (VLOOKUP(Rebalance!$D$53,$F$2:$G$48,2,FALSE)+ROW()-2))=Rebalance!$D$53,INDIRECT(\"a\" & (VLOOKUP(Rebalance!$D$53,$F$2:$G$48,2,FALSE)+ROW()-2)),\"\")","v":{"$error":"#N/A"}},{"$f":"IF(INDIRECT(\"c\" & (VLOOKUP(Rebalance!$D$54,$F$2:$G$48,2,FALSE)+ROW()-2))=Rebalance!$D$54,INDIRECT(\"a\" & (VLOOKUP(Rebalance!$D$54,$F$2:$G$48,2,FALSE)+ROW()-2)),\"\")","v":{"$error":"#N/A"}},{"$f":"IF(INDIRECT(\"c\" & (VLOOKUP(Rebalance!$D$55,$F$2:$G$48,2,FALSE)+ROW()-2))=Rebalance!$D$55,INDIRECT(\"a\" & (VLOOKUP(Rebalance!$D$55,$F$2:$G$48,2,FALSE)+ROW()-2)),\"\")","v":{"$error":"#N/A"}},{"$f":"IF(INDIRECT(\"c\" & (VLOOKUP(Rebalance!$D$56,$F$2:$G$48,2,FALSE)+ROW()-2))=Rebalance!$D$56,INDIRECT(\"a\" & (VLOOKUP(Rebalance!$D$56,$F$2:$G$48,2,FALSE)+ROW()-2)),\"\")","v":{"$error":"#N/A"}},{"$f":"IF(INDIRECT(\"c\" & (VLOOKUP(Rebalance!$D$57,$F$2:$G$48,2,FALSE)+ROW()-2))=Rebalance!$D$57,INDIRECT(\"a\" & (VLOOKUP(Rebalance!$D$57,$F$2:$G$48,2,FALSE)+ROW()-2)),\"\")","v":{"$error":"#N/A"}},{"$f":"IF(INDIRECT(\"c\" & (VLOOKUP(Rebalance!$D$58,$F$2:$G$48,2,FALSE)+ROW()-2))=Rebalance!$D$58,INDIRECT(\"a\" & (VLOOKUP(Rebalance!$D$58,$F$2:$G$48,2,FALSE)+ROW()-2)),\"\")","v":{"$error":"#N/A"}},{"$f":"IF(INDIRECT(\"c\" & (VLOOKUP(Rebalance!$D$59,$F$2:$G$48,2,FALSE)+ROW()-2))=Rebalance!$D$59,INDIRECT(\"a\" & (VLOOKUP(Rebalance!$D$59,$F$2:$G$48,2,FALSE)+ROW()-2)),\"\")","v":{"$error":"#N/A"}},{"$f":"IF(INDIRECT(\"c\" & (VLOOKUP(Rebalance!$D$60,$F$2:$G$48,2,FALSE)+ROW()-2))=Rebalance!$D$60,INDIRECT(\"a\" & (VLOOKUP(Rebalance!$D$60,$F$2:$G$48,2,FALSE)+ROW()-2)),\"\")","v":{"$error":"#N/A"}},{"$f":"IF(INDIRECT(\"c\" & (VLOOKUP(Rebalance!$D$61,$F$2:$G$48,2,FALSE)+ROW()-2))=Rebalance!$D$61,INDIRECT(\"a\" & (VLOOKUP(Rebalance!$D$61,$F$2:$G$48,2,FALSE)+ROW()-2)),\"\")","v":{"$error":"#N/A"}},{"$f":"IF(INDIRECT(\"c\" & (VLOOKUP(Rebalance!$D$62,$F$2:$G$48,2,FALSE)+ROW()-2))=Rebalance!$D$62,INDIRECT(\"a\" & (VLOOKUP(Rebalance!$D$62,$F$2:$G$48,2,FALSE)+ROW()-2)),\"\")","v":{"$error":"#N/A"}},{"$f":"IF(INDIRECT(\"c\" & (VLOOKUP(Rebalance!$D$63,$F$2:$G$48,2,FALSE)+ROW()-2))=Rebalance!$D$63,INDIRECT(\"a\" & (VLOOKUP(Rebalance!$D$63,$F$2:$G$48,2,FALSE)+ROW()-2)),\"\")","v":{"$error":"#N/A"}},{"$f":"IF(INDIRECT(\"c\" & (VLOOKUP(Rebalance!$D$64,$F$2:$G$48,2,FALSE)+ROW()-2))=Rebalance!$D$64,INDIRECT(\"a\" & (VLOOKUP(Rebalance!$D$64,$F$2:$G$48,2,FALSE)+ROW()-2)),\"\")","v":{"$error":"#N/A"}},{"$f":"IF(INDIRECT(\"c\" & (VLOOKUP(Rebalance!$D$65,$F$2:$G$48,2,FALSE)+ROW()-2))=Rebalance!$D$65,INDIRECT(\"a\" & (VLOOKUP(Rebalance!$D$65,$F$2:$G$48,2,FALSE)+ROW()-2)),\"\")","v":{"$error":"#N/A"}},{"$f":"IF(INDIRECT(\"c\" & (VLOOKUP(Rebalance!$D$66,$F$2:$G$48,2,FALSE)+ROW()-2))=Rebalance!$D$66,INDIRECT(\"a\" & (VLOOKUP(Rebalance!$D$66,$F$2:$G$48,2,FALSE)+ROW()-2)),\"\")","v":{"$error":"#N/A"}}]
["SIM Top Choice Fund B4","STTB4","Sanlam Collective Investments",{"$f":"ROW()","v":540},null,null,{"$f":"VLOOKUP(F540,$C$2:$D$599,2,FALSE)","v":{"$error":"#N/A"}},{"$f":"IF(INDIRECT(\"c\" & (VLOOKUP(Rebalance!$D$26,$F$2:$G$48,2,FALSE)+ROW()-2))=Rebalance!$D$26,INDIRECT(\"a\" & (VLOOKUP(Rebalance!$D$26,$F$2:$G$48,2,FALSE)+ROW()-2)),\"\")","v":{"$error":"#N/A"}},{"$f":"IF(INDIRECT(\"c\" & (VLOOKUP(Rebalance!$D$27,$F$2:$G$48,2,FALSE)+ROW()-2))=Rebalance!$D$27,INDIRECT(\"a\" & (VLOOKUP(Rebalance!$D$27,$F$2:$G$48,2,FALSE)+ROW()-2)),\"\")","v":{"$error":"#N/A"}},{"$f":"IF(INDIRECT(\"c\" & (VLOOKUP(Rebalance!$D$28,$F$2:$G$48,2,FALSE)+ROW()-2))=Rebalance!$D$28,INDIRECT(\"a\" & (VLOOKUP(Rebalance!$D$28,$F$2:$G$48,2,FALSE)+ROW()-2)),\"\")","v":{"$error":"#N/A"}},{"$f":"IF(INDIRECT(\"c\" & (VLOOKUP(Rebalance!$D$29,$F$2:$G$48,2,FALSE)+ROW()-2))=Rebalance!$D$29,INDIRECT(\"a\" & (VLOOKUP(Rebalance!$D$29,$F$2:$G$48,2,FALSE)+ROW()-2)),\"\")","v":{"$error":"#N/A"}},{"$f":"IF(INDIRECT(\"c\" & (VLOOKUP(Rebalance!$D$30,$F$2:$G$48,2,FALSE)+ROW()-2))=Rebalance!$D$30,INDIRECT(\"a\" & (VLOOKUP(Rebalance!$D$30,$F$2:$G$48,2,FALSE)+ROW()-2)),\"\")","v":{"$error":"#N/A"}},{"$f":"IF(INDIRECT(\"c\" & (VLOOKUP(Rebalance!$D$31,$F$2:$G$48,2,FALSE)+ROW()-2))=Rebalance!$D$31,INDIRECT(\"a\" & (VLOOKUP(Rebalance!$D$31,$F$2:$G$48,2,FALSE)+ROW()-2)),\"\")","v":{"$error":"#N/A"}},{"$f":"IF(INDIRECT(\"c\" & (VLOOKUP(Rebalance!$D$32,$F$2:$G$48,2,FALSE)+ROW()-2))=Rebalance!$D$32,INDIRECT(\"a\" & (VLOOKUP(Rebalance!$D$32,$F$2:$G$48,2,FALSE)+ROW()-2)),\"\")","v":{"$error":"#N/A"}},{"$f":"IF(INDIRECT(\"c\" & (VLOOKUP(Rebalance!$D$33,$F$2:$G$48,2,FALSE)+ROW()-2))=Rebalance!$D$33,INDIRECT(\"a\" & (VLOOKUP(Rebalance!$D$33,$F$2:$G$48,2,FALSE)+ROW()-2)),\"\")","v":{"$error":"#N/A"}},{"$f":"IF(INDIRECT(\"c\" & (VLOOKUP(Rebalance!$D$34,$F$2:$G$48,2,FALSE)+ROW()-2))=Rebalance!$D$34,INDIRECT(\"a\" & (VLOOKUP(Rebalance!$D$34,$F$2:$G$48,2,FALSE)+ROW()-2)),\"\")","v":{"$error":"#N/A"}},{"$f":"IF(INDIRECT(\"c\" & (VLOOKUP(Rebalance!$D$35,$F$2:$G$48,2,FALSE)+ROW()-2))=Rebalance!$D$35,INDIRECT(\"a\" & (VLOOKUP(Rebalance!$D$35,$F$2:$G$48,2,FALSE)+ROW()-2)),\"\")","v":{"$error":"#N/A"}},{"$f":"IF(INDIRECT(\"c\" & (VLOOKUP(Rebalance!$D$36,$F$2:$G$48,2,FALSE)+ROW()-2))=Rebalance!$D$36,INDIRECT(\"a\" & (VLOOKUP(Rebalance!$D$36,$F$2:$G$48,2,FALSE)+ROW()-2)),\"\")","v":{"$error":"#N/A"}},{"$f":"IF(INDIRECT(\"c\" & (VLOOKUP(Rebalance!$D$37,$F$2:$G$48,2,FALSE)+ROW()-2))=Rebalance!$D$37,INDIRECT(\"a\" & (VLOOKUP(Rebalance!$D$37,$F$2:$G$48,2,FALSE)+ROW()-2)),\"\")","v":{"$error":"#N/A"}},{"$f":"IF(INDIRECT(\"c\" & (VLOOKUP(Rebalance!$D$38,$F$2:$G$48,2,FALSE)+ROW()-2))=Rebalance!$D$38,INDIRECT(\"a\" & (VLOOKUP(Rebalance!$D$38,$F$2:$G$48,2,FALSE)+ROW()-2)),\"\")","v":{"$error":"#N/A"}},{"$f":"IF(INDIRECT(\"c\" & (VLOOKUP(Rebalance!$D$39,$F$2:$G$48,2,FALSE)+ROW()-2))=Rebalance!$D$39,INDIRECT(\"a\" & (VLOOKUP(Rebalance!$D$39,$F$2:$G$48,2,FALSE)+ROW()-2)),\"\")","v":{"$error":"#N/A"}},{"$f":"IF(INDIRECT(\"c\" & (VLOOKUP(Rebalance!$D$40,$F$2:$G$48,2,FALSE)+ROW()-2))=Rebalance!$D$40,INDIRECT(\"a\" & (VLOOKUP(Rebalance!$D$40,$F$2:$G$48,2,FALSE)+ROW()-2)),\"\")","v":{"$error":"#N/A"}},{"$f":"IF(INDIRECT(\"c\" & (VLOOKUP(Rebalance!$D$52,$F$2:$G$48,2,FALSE)+ROW()-2))=Rebalance!$D$52,INDIRECT(\"a\" & (VLOOKUP(Rebalance!$D$52,$F$2:$G$48,2,FALSE)+ROW()-2)),\"\")","v":{"$error":"#N/A"}},{"$f":"IF(INDIRECT(\"c\" & (VLOOKUP(Rebalance!$D$53,$F$2:$G$48,2,FALSE)+ROW()-2))=Rebalance!$D$53,INDIRECT(\"a\" & (VLOOKUP(Rebalance!$D$53,$F$2:$G$48,2,FALSE)+ROW()-2)),\"\")","v":{"$error":"#N/A"}},{"$f":"IF(INDIRECT(\"c\" & (VLOOKUP(Rebalance!$D$54,$F$2:$G$48,2,FALSE)+ROW()-2))=Rebalance!$D$54,INDIRECT(\"a\" & (VLOOKUP(Rebalance!$D$54,$F$2:$G$48,2,FALSE)+ROW()-2)),\"\")","v":{"$error":"#N/A"}},{"$f":"IF(INDIRECT(\"c\" & (VLOOKUP(Rebalance!$D$55,$F$2:$G$48,2,FALSE)+ROW()-2))=Rebalance!$D$55,INDIRECT(\"a\" & (VLOOKUP(Rebalance!$D$55,$F$2:$G$48,2,FALSE)+ROW()-2)),\"\")","v":{"$error":"#N/A"}},{"$f":"IF(INDIRECT(\"c\" & (VLOOKUP(Rebalance!$D$56,$F$2:$G$48,2,FALSE)+ROW()-2))=Rebalance!$D$56,INDIRECT(\"a\" & (VLOOKUP(Rebalance!$D$56,$F$2:$G$48,2,FALSE)+ROW()-2)),\"\")","v":{"$error":"#N/A"}},{"$f":"IF(INDIRECT(\"c\" & (VLOOKUP(Rebalance!$D$57,$F$2:$G$48,2,FALSE)+ROW()-2))=Rebalance!$D$57,INDIRECT(\"a\" & (VLOOKUP(Rebalance!$D$57,$F$2:$G$48,2,FALSE)+ROW()-2)),\"\")","v":{"$error":"#N/A"}},{"$f":"IF(INDIRECT(\"c\" & (VLOOKUP(Rebalance!$D$58,$F$2:$G$48,2,FALSE)+ROW()-2))=Rebalance!$D$58,INDIRECT(\"a\" & (VLOOKUP(Rebalance!$D$58,$F$2:$G$48,2,FALSE)+ROW()-2)),\"\")","v":{"$error":"#N/A"}},{"$f":"IF(INDIRECT(\"c\" & (VLOOKUP(Rebalance!$D$59,$F$2:$G$48,2,FALSE)+ROW()-2))=Rebalance!$D$59,INDIRECT(\"a\" & (VLOOKUP(Rebalance!$D$59,$F$2:$G$48,2,FALSE)+ROW()-2)),\"\")","v":{"$error":"#N/A"}},{"$f":"IF(INDIRECT(\"c\" & (VLOOKUP(Rebalance!$D$60,$F$2:$G$48,2,FALSE)+ROW()-2))=Rebalance!$D$60,INDIRECT(\"a\" & (VLOOKUP(Rebalance!$D$60,$F$2:$G$48,2,FALSE)+ROW()-2)),\"\")","v":{"$error":"#N/A"}},{"$f":"IF(INDIRECT(\"c\" & (VLOOKUP(Rebalance!$D$61,$F$2:$G$48,2,FALSE)+ROW()-2))=Rebalance!$D$61,INDIRECT(\"a\" & (VLOOKUP(Rebalance!$D$61,$F$2:$G$48,2,FALSE)+ROW()-2)),\"\")","v":{"$error":"#N/A"}},{"$f":"IF(INDIRECT(\"c\" & (VLOOKUP(Rebalance!$D$62,$F$2:$G$48,2,FALSE)+ROW()-2))=Rebalance!$D$62,INDIRECT(\"a\" & (VLOOKUP(Rebalance!$D$62,$F$2:$G$48,2,FALSE)+ROW()-2)),\"\")","v":{"$error":"#N/A"}},{"$f":"IF(INDIRECT(\"c\" & (VLOOKUP(Rebalance!$D$63,$F$2:$G$48,2,FALSE)+ROW()-2))=Rebalance!$D$63,INDIRECT(\"a\" & (VLOOKUP(Rebalance!$D$63,$F$2:$G$48,2,FALSE)+ROW()-2)),\"\")","v":{"$error":"#N/A"}},{"$f":"IF(INDIRECT(\"c\" & (VLOOKUP(Rebalance!$D$64,$F$2:$G$48,2,FALSE)+ROW()-2))=Rebalance!$D$64,INDIRECT(\"a\" & (VLOOKUP(Rebalance!$D$64,$F$2:$G$48,2,FALSE)+ROW()-2)),\"\")","v":{"$error":"#N/A"}},{"$f":"IF(INDIRECT(\"c\" & (VLOOKUP(Rebalance!$D$65,$F$2:$G$48,2,FALSE)+ROW()-2))=Rebalance!$D$65,INDIRECT(\"a\" & (VLOOKUP(Rebalance!$D$65,$F$2:$G$48,2,FALSE)+ROW()-2)),\"\")","v":{"$error":"#N/A"}},{"$f":"IF(INDIRECT(\"c\" & (VLOOKUP(Rebalance!$D$66,$F$2:$G$48,2,FALSE)+ROW()-2))=Rebalance!$D$66,INDIRECT(\"a\" & (VLOOKUP(Rebalance!$D$66,$F$2:$G$48,2,FALSE)+ROW()-2)),\"\")","v":{"$error":"#N/A"}}]
["SIM Value Fund","SNVL","Sanlam Collective Investments",{"$f":"ROW()","v":541},null,null,{"$f":"VLOOKUP(F541,$C$2:$D$599,2,FALSE)","v":{"$error":"#N/A"}},{"$f":"IF(INDIRECT(\"c\" & (VLOOKUP(Rebalance!$D$26,$F$2:$G$48,2,FALSE)+ROW()-2))=Rebalance!$D$26,INDIRECT(\"a\" & (VLOOKUP(Rebalance!$D$26,$F$2:$G$48,2,FALSE)+ROW()-2)),\"\")","v":{"$error":"#N/A"}},{"$f":"IF(INDIRECT(\"c\" & (VLOOKUP(Rebalance!$D$27,$F$2:$G$48,2,FALSE)+ROW()-2))=Rebalance!$D$27,INDIRECT(\"a\" & (VLOOKUP(Rebalance!$D$27,$F$2:$G$48,2,FALSE)+ROW()-2)),\"\")","v":{"$error":"#N/A"}},{"$f":"IF(INDIRECT(\"c\" & (VLOOKUP(Rebalance!$D$28,$F$2:$G$48,2,FALSE)+ROW()-2))=Rebalance!$D$28,INDIRECT(\"a\" & (VLOOKUP(Rebalance!$D$28,$F$2:$G$48,2,FALSE)+ROW()-2)),\"\")","v":{"$error":"#N/A"}},{"$f":"IF(INDIRECT(\"c\" & (VLOOKUP(Rebalance!$D$29,$F$2:$G$48,2,FALSE)+ROW()-2))=Rebalance!$D$29,INDIRECT(\"a\" & (VLOOKUP(Rebalance!$D$29,$F$2:$G$48,2,FALSE)+ROW()-2)),\"\")","v":{"$error":"#N/A"}},{"$f":"IF(INDIRECT(\"c\" & (VLOOKUP(Rebalance!$D$30,$F$2:$G$48,2,FALSE)+ROW()-2))=Rebalance!$D$30,INDIRECT(\"a\" & (VLOOKUP(Rebalance!$D$30,$F$2:$G$48,2,FALSE)+ROW()-2)),\"\")","v":{"$error":"#N/A"}},{"$f":"IF(INDIRECT(\"c\" & (VLOOKUP(Rebalance!$D$31,$F$2:$G$48,2,FALSE)+ROW()-2))=Rebalance!$D$31,INDIRECT(\"a\" & (VLOOKUP(Rebalance!$D$31,$F$2:$G$48,2,FALSE)+ROW()-2)),\"\")","v":{"$error":"#N/A"}},{"$f":"IF(INDIRECT(\"c\" & (VLOOKUP(Rebalance!$D$32,$F$2:$G$48,2,FALSE)+ROW()-2))=Rebalance!$D$32,INDIRECT(\"a\" & (VLOOKUP(Rebalance!$D$32,$F$2:$G$48,2,FALSE)+ROW()-2)),\"\")","v":{"$error":"#N/A"}},{"$f":"IF(INDIRECT(\"c\" & (VLOOKUP(Rebalance!$D$33,$F$2:$G$48,2,FALSE)+ROW()-2))=Rebalance!$D$33,INDIRECT(\"a\" & (VLOOKUP(Rebalance!$D$33,$F$2:$G$48,2,FALSE)+ROW()-2)),\"\")","v":{"$error":"#N/A"}},{"$f":"IF(INDIRECT(\"c\" & (VLOOKUP(Rebalance!$D$34,$F$2:$G$48,2,FALSE)+ROW()-2))=Rebalance!$D$34,INDIRECT(\"a\" & (VLOOKUP(Rebalance!$D$34,$F$2:$G$48,2,FALSE)+ROW()-2)),\"\")","v":{"$error":"#N/A"}},{"$f":"IF(INDIRECT(\"c\" & (VLOOKUP(Rebalance!$D$35,$F$2:$G$48,2,FALSE)+ROW()-2))=Rebalance!$D$35,INDIRECT(\"a\" & (VLOOKUP(Rebalance!$D$35,$F$2:$G$48,2,FALSE)+ROW()-2)),\"\")","v":{"$error":"#N/A"}},{"$f":"IF(INDIRECT(\"c\" & (VLOOKUP(Rebalance!$D$36,$F$2:$G$48,2,FALSE)+ROW()-2))=Rebalance!$D$36,INDIRECT(\"a\" & (VLOOKUP(Rebalance!$D$36,$F$2:$G$48,2,FALSE)+ROW()-2)),\"\")","v":{"$error":"#N/A"}},{"$f":"IF(INDIRECT(\"c\" & (VLOOKUP(Rebalance!$D$37,$F$2:$G$48,2,FALSE)+ROW()-2))=Rebalance!$D$37,INDIRECT(\"a\" & (VLOOKUP(Rebalance!$D$37,$F$2:$G$48,2,FALSE)+ROW()-2)),\"\")","v":{"$error":"#N/A"}},{"$f":"IF(INDIRECT(\"c\" & (VLOOKUP(Rebalance!$D$38,$F$2:$G$48,2,FALSE)+ROW()-2))=Rebalance!$D$38,INDIRECT(\"a\" & (VLOOKUP(Rebalance!$D$38,$F$2:$G$48,2,FALSE)+ROW()-2)),\"\")","v":{"$error":"#N/A"}},{"$f":"IF(INDIRECT(\"c\" & (VLOOKUP(Rebalance!$D$39,$F$2:$G$48,2,FALSE)+ROW()-2))=Rebalance!$D$39,INDIRECT(\"a\" & (VLOOKUP(Rebalance!$D$39,$F$2:$G$48,2,FALSE)+ROW()-2)),\"\")","v":{"$error":"#N/A"}},{"$f":"IF(INDIRECT(\"c\" & (VLOOKUP(Rebalance!$D$40,$F$2:$G$48,2,FALSE)+ROW()-2))=Rebalance!$D$40,INDIRECT(\"a\" & (VLOOKUP(Rebalance!$D$40,$F$2:$G$48,2,FALSE)+ROW()-2)),\"\")","v":{"$error":"#N/A"}},{"$f":"IF(INDIRECT(\"c\" & (VLOOKUP(Rebalance!$D$52,$F$2:$G$48,2,FALSE)+ROW()-2))=Rebalance!$D$52,INDIRECT(\"a\" & (VLOOKUP(Rebalance!$D$52,$F$2:$G$48,2,FALSE)+ROW()-2)),\"\")","v":{"$error":"#N/A"}},{"$f":"IF(INDIRECT(\"c\" & (VLOOKUP(Rebalance!$D$53,$F$2:$G$48,2,FALSE)+ROW()-2))=Rebalance!$D$53,INDIRECT(\"a\" & (VLOOKUP(Rebalance!$D$53,$F$2:$G$48,2,FALSE)+ROW()-2)),\"\")","v":{"$error":"#N/A"}},{"$f":"IF(INDIRECT(\"c\" & (VLOOKUP(Rebalance!$D$54,$F$2:$G$48,2,FALSE)+ROW()-2))=Rebalance!$D$54,INDIRECT(\"a\" & (VLOOKUP(Rebalance!$D$54,$F$2:$G$48,2,FALSE)+ROW()-2)),\"\")","v":{"$error":"#N/A"}},{"$f":"IF(INDIRECT(\"c\" & (VLOOKUP(Rebalance!$D$55,$F$2:$G$48,2,FALSE)+ROW()-2))=Rebalance!$D$55,INDIRECT(\"a\" & (VLOOKUP(Rebalance!$D$55,$F$2:$G$48,2,FALSE)+ROW()-2)),\"\")","v":{"$error":"#N/A"}},{"$f":"IF(INDIRECT(\"c\" & (VLOOKUP(Rebalance!$D$56,$F$2:$G$48,2,FALSE)+ROW()-2))=Rebalance!$D$56,INDIRECT(\"a\" & (VLOOKUP(Rebalance!$D$56,$F$2:$G$48,2,FALSE)+ROW()-2)),\"\")","v":{"$error":"#N/A"}},{"$f":"IF(INDIRECT(\"c\" & (VLOOKUP(Rebalance!$D$57,$F$2:$G$48,2,FALSE)+ROW()-2))=Rebalance!$D$57,INDIRECT(\"a\" & (VLOOKUP(Rebalance!$D$57,$F$2:$G$48,2,FALSE)+ROW()-2)),\"\")","v":{"$error":"#N/A"}},{"$f":"IF(INDIRECT(\"c\" & (VLOOKUP(Rebalance!$D$58,$F$2:$G$48,2,FALSE)+ROW()-2))=Rebalance!$D$58,INDIRECT(\"a\" & (VLOOKUP(Rebalance!$D$58,$F$2:$G$48,2,FALSE)+ROW()-2)),\"\")","v":{"$error":"#N/A"}},{"$f":"IF(INDIRECT(\"c\" & (VLOOKUP(Rebalance!$D$59,$F$2:$G$48,2,FALSE)+ROW()-2))=Rebalance!$D$59,INDIRECT(\"a\" & (VLOOKUP(Rebalance!$D$59,$F$2:$G$48,2,FALSE)+ROW()-2)),\"\")","v":{"$error":"#N/A"}},{"$f":"IF(INDIRECT(\"c\" & (VLOOKUP(Rebalance!$D$60,$F$2:$G$48,2,FALSE)+ROW()-2))=Rebalance!$D$60,INDIRECT(\"a\" & (VLOOKUP(Rebalance!$D$60,$F$2:$G$48,2,FALSE)+ROW()-2)),\"\")","v":{"$error":"#N/A"}},{"$f":"IF(INDIRECT(\"c\" & (VLOOKUP(Rebalance!$D$61,$F$2:$G$48,2,FALSE)+ROW()-2))=Rebalance!$D$61,INDIRECT(\"a\" & (VLOOKUP(Rebalance!$D$61,$F$2:$G$48,2,FALSE)+ROW()-2)),\"\")","v":{"$error":"#N/A"}},{"$f":"IF(INDIRECT(\"c\" & (VLOOKUP(Rebalance!$D$62,$F$2:$G$48,2,FALSE)+ROW()-2))=Rebalance!$D$62,INDIRECT(\"a\" & (VLOOKUP(Rebalance!$D$62,$F$2:$G$48,2,FALSE)+ROW()-2)),\"\")","v":{"$error":"#N/A"}},{"$f":"IF(INDIRECT(\"c\" & (VLOOKUP(Rebalance!$D$63,$F$2:$G$48,2,FALSE)+ROW()-2))=Rebalance!$D$63,INDIRECT(\"a\" & (VLOOKUP(Rebalance!$D$63,$F$2:$G$48,2,FALSE)+ROW()-2)),\"\")","v":{"$error":"#N/A"}},{"$f":"IF(INDIRECT(\"c\" & (VLOOKUP(Rebalance!$D$64,$F$2:$G$48,2,FALSE)+ROW()-2))=Rebalance!$D$64,INDIRECT(\"a\" & (VLOOKUP(Rebalance!$D$64,$F$2:$G$48,2,FALSE)+ROW()-2)),\"\")","v":{"$error":"#N/A"}},{"$f":"IF(INDIRECT(\"c\" & (VLOOKUP(Rebalance!$D$65,$F$2:$G$48,2,FALSE)+ROW()-2))=Rebalance!$D$65,INDIRECT(\"a\" & (VLOOKUP(Rebalance!$D$65,$F$2:$G$48,2,FALSE)+ROW()-2)),\"\")","v":{"$error":"#N/A"}},{"$f":"IF(INDIRECT(\"c\" & (VLOOKUP(Rebalance!$D$66,$F$2:$G$48,2,FALSE)+ROW()-2))=Rebalance!$D$66,INDIRECT(\"a\" & (VLOOKUP(Rebalance!$D$66,$F$2:$G$48,2,FALSE)+ROW()-2)),\"\")","v":{"$error":"#N/A"}}]
["SIM Value Fund B6","SNVL","Sanlam Collective Investments",{"$f":"ROW()","v":542},null,null,{"$f":"VLOOKUP(F542,$C$2:$D$599,2,FALSE)","v":{"$error":"#N/A"}},{"$f":"IF(INDIRECT(\"c\" & (VLOOKUP(Rebalance!$D$26,$F$2:$G$48,2,FALSE)+ROW()-2))=Rebalance!$D$26,INDIRECT(\"a\" & (VLOOKUP(Rebalance!$D$26,$F$2:$G$48,2,FALSE)+ROW()-2)),\"\")","v":{"$error":"#N/A"}},{"$f":"IF(INDIRECT(\"c\" & (VLOOKUP(Rebalance!$D$27,$F$2:$G$48,2,FALSE)+ROW()-2))=Rebalance!$D$27,INDIRECT(\"a\" & (VLOOKUP(Rebalance!$D$27,$F$2:$G$48,2,FALSE)+ROW()-2)),\"\")","v":{"$error":"#N/A"}},{"$f":"IF(INDIRECT(\"c\" & (VLOOKUP(Rebalance!$D$28,$F$2:$G$48,2,FALSE)+ROW()-2))=Rebalance!$D$28,INDIRECT(\"a\" & (VLOOKUP(Rebalance!$D$28,$F$2:$G$48,2,FALSE)+ROW()-2)),\"\")","v":{"$error":"#N/A"}},{"$f":"IF(INDIRECT(\"c\" & (VLOOKUP(Rebalance!$D$29,$F$2:$G$48,2,FALSE)+ROW()-2))=Rebalance!$D$29,INDIRECT(\"a\" & (VLOOKUP(Rebalance!$D$29,$F$2:$G$48,2,FALSE)+ROW()-2)),\"\")","v":{"$error":"#N/A"}},{"$f":"IF(INDIRECT(\"c\" & (VLOOKUP(Rebalance!$D$30,$F$2:$G$48,2,FALSE)+ROW()-2))=Rebalance!$D$30,INDIRECT(\"a\" & (VLOOKUP(Rebalance!$D$30,$F$2:$G$48,2,FALSE)+ROW()-2)),\"\")","v":{"$error":"#N/A"}},{"$f":"IF(INDIRECT(\"c\" & (VLOOKUP(Rebalance!$D$31,$F$2:$G$48,2,FALSE)+ROW()-2))=Rebalance!$D$31,INDIRECT(\"a\" & (VLOOKUP(Rebalance!$D$31,$F$2:$G$48,2,FALSE)+ROW()-2)),\"\")","v":{"$error":"#N/A"}},{"$f":"IF(INDIRECT(\"c\" & (VLOOKUP(Rebalance!$D$32,$F$2:$G$48,2,FALSE)+ROW()-2))=Rebalance!$D$32,INDIRECT(\"a\" & (VLOOKUP(Rebalance!$D$32,$F$2:$G$48,2,FALSE)+ROW()-2)),\"\")","v":{"$error":"#N/A"}},{"$f":"IF(INDIRECT(\"c\" & (VLOOKUP(Rebalance!$D$33,$F$2:$G$48,2,FALSE)+ROW()-2))=Rebalance!$D$33,INDIRECT(\"a\" & (VLOOKUP(Rebalance!$D$33,$F$2:$G$48,2,FALSE)+ROW()-2)),\"\")","v":{"$error":"#N/A"}},{"$f":"IF(INDIRECT(\"c\" & (VLOOKUP(Rebalance!$D$34,$F$2:$G$48,2,FALSE)+ROW()-2))=Rebalance!$D$34,INDIRECT(\"a\" & (VLOOKUP(Rebalance!$D$34,$F$2:$G$48,2,FALSE)+ROW()-2)),\"\")","v":{"$error":"#N/A"}},{"$f":"IF(INDIRECT(\"c\" & (VLOOKUP(Rebalance!$D$35,$F$2:$G$48,2,FALSE)+ROW()-2))=Rebalance!$D$35,INDIRECT(\"a\" & (VLOOKUP(Rebalance!$D$35,$F$2:$G$48,2,FALSE)+ROW()-2)),\"\")","v":{"$error":"#N/A"}},{"$f":"IF(INDIRECT(\"c\" & (VLOOKUP(Rebalance!$D$36,$F$2:$G$48,2,FALSE)+ROW()-2))=Rebalance!$D$36,INDIRECT(\"a\" & (VLOOKUP(Rebalance!$D$36,$F$2:$G$48,2,FALSE)+ROW()-2)),\"\")","v":{"$error":"#N/A"}},{"$f":"IF(INDIRECT(\"c\" & (VLOOKUP(Rebalance!$D$37,$F$2:$G$48,2,FALSE)+ROW()-2))=Rebalance!$D$37,INDIRECT(\"a\" & (VLOOKUP(Rebalance!$D$37,$F$2:$G$48,2,FALSE)+ROW()-2)),\"\")","v":{"$error":"#N/A"}},{"$f":"IF(INDIRECT(\"c\" & (VLOOKUP(Rebalance!$D$38,$F$2:$G$48,2,FALSE)+ROW()-2))=Rebalance!$D$38,INDIRECT(\"a\" & (VLOOKUP(Rebalance!$D$38,$F$2:$G$48,2,FALSE)+ROW()-2)),\"\")","v":{"$error":"#N/A"}},{"$f":"IF(INDIRECT(\"c\" & (VLOOKUP(Rebalance!$D$39,$F$2:$G$48,2,FALSE)+ROW()-2))=Rebalance!$D$39,INDIRECT(\"a\" & (VLOOKUP(Rebalance!$D$39,$F$2:$G$48,2,FALSE)+ROW()-2)),\"\")","v":{"$error":"#N/A"}},{"$f":"IF(INDIRECT(\"c\" & (VLOOKUP(Rebalance!$D$40,$F$2:$G$48,2,FALSE)+ROW()-2))=Rebalance!$D$40,INDIRECT(\"a\" & (VLOOKUP(Rebalance!$D$40,$F$2:$G$48,2,FALSE)+ROW()-2)),\"\")","v":{"$error":"#N/A"}},{"$f":"IF(INDIRECT(\"c\" & (VLOOKUP(Rebalance!$D$52,$F$2:$G$48,2,FALSE)+ROW()-2))=Rebalance!$D$52,INDIRECT(\"a\" & (VLOOKUP(Rebalance!$D$52,$F$2:$G$48,2,FALSE)+ROW()-2)),\"\")","v":{"$error":"#N/A"}},{"$f":"IF(INDIRECT(\"c\" & (VLOOKUP(Rebalance!$D$53,$F$2:$G$48,2,FALSE)+ROW()-2))=Rebalance!$D$53,INDIRECT(\"a\" & (VLOOKUP(Rebalance!$D$53,$F$2:$G$48,2,FALSE)+ROW()-2)),\"\")","v":{"$error":"#N/A"}},{"$f":"IF(INDIRECT(\"c\" & (VLOOKUP(Rebalance!$D$54,$F$2:$G$48,2,FALSE)+ROW()-2))=Rebalance!$D$54,INDIRECT(\"a\" & (VLOOKUP(Rebalance!$D$54,$F$2:$G$48,2,FALSE)+ROW()-2)),\"\")","v":{"$error":"#N/A"}},{"$f":"IF(INDIRECT(\"c\" & (VLOOKUP(Rebalance!$D$55,$F$2:$G$48,2,FALSE)+ROW()-2))=Rebalance!$D$55,INDIRECT(\"a\" & (VLOOKUP(Rebalance!$D$55,$F$2:$G$48,2,FALSE)+ROW()-2)),\"\")","v":{"$error":"#N/A"}},{"$f":"IF(INDIRECT(\"c\" & (VLOOKUP(Rebalance!$D$56,$F$2:$G$48,2,FALSE)+ROW()-2))=Rebalance!$D$56,INDIRECT(\"a\" & (VLOOKUP(Rebalance!$D$56,$F$2:$G$48,2,FALSE)+ROW()-2)),\"\")","v":{"$error":"#N/A"}},{"$f":"IF(INDIRECT(\"c\" & (VLOOKUP(Rebalance!$D$57,$F$2:$G$48,2,FALSE)+ROW()-2))=Rebalance!$D$57,INDIRECT(\"a\" & (VLOOKUP(Rebalance!$D$57,$F$2:$G$48,2,FALSE)+ROW()-2)),\"\")","v":{"$error":"#N/A"}},{"$f":"IF(INDIRECT(\"c\" & (VLOOKUP(Rebalance!$D$58,$F$2:$G$48,2,FALSE)+ROW()-2))=Rebalance!$D$58,INDIRECT(\"a\" & (VLOOKUP(Rebalance!$D$58,$F$2:$G$48,2,FALSE)+ROW()-2)),\"\")","v":{"$error":"#N/A"}},{"$f":"IF(INDIRECT(\"c\" & (VLOOKUP(Rebalance!$D$59,$F$2:$G$48,2,FALSE)+ROW()-2))=Rebalance!$D$59,INDIRECT(\"a\" & (VLOOKUP(Rebalance!$D$59,$F$2:$G$48,2,FALSE)+ROW()-2)),\"\")","v":{"$error":"#N/A"}},{"$f":"IF(INDIRECT(\"c\" & (VLOOKUP(Rebalance!$D$60,$F$2:$G$48,2,FALSE)+ROW()-2))=Rebalance!$D$60,INDIRECT(\"a\" & (VLOOKUP(Rebalance!$D$60,$F$2:$G$48,2,FALSE)+ROW()-2)),\"\")","v":{"$error":"#N/A"}},{"$f":"IF(INDIRECT(\"c\" & (VLOOKUP(Rebalance!$D$61,$F$2:$G$48,2,FALSE)+ROW()-2))=Rebalance!$D$61,INDIRECT(\"a\" & (VLOOKUP(Rebalance!$D$61,$F$2:$G$48,2,FALSE)+ROW()-2)),\"\")","v":{"$error":"#N/A"}},{"$f":"IF(INDIRECT(\"c\" & (VLOOKUP(Rebalance!$D$62,$F$2:$G$48,2,FALSE)+ROW()-2))=Rebalance!$D$62,INDIRECT(\"a\" & (VLOOKUP(Rebalance!$D$62,$F$2:$G$48,2,FALSE)+ROW()-2)),\"\")","v":{"$error":"#N/A"}},{"$f":"IF(INDIRECT(\"c\" & (VLOOKUP(Rebalance!$D$63,$F$2:$G$48,2,FALSE)+ROW()-2))=Rebalance!$D$63,INDIRECT(\"a\" & (VLOOKUP(Rebalance!$D$63,$F$2:$G$48,2,FALSE)+ROW()-2)),\"\")","v":{"$error":"#N/A"}},{"$f":"IF(INDIRECT(\"c\" & (VLOOKUP(Rebalance!$D$64,$F$2:$G$48,2,FALSE)+ROW()-2))=Rebalance!$D$64,INDIRECT(\"a\" & (VLOOKUP(Rebalance!$D$64,$F$2:$G$48,2,FALSE)+ROW()-2)),\"\")","v":{"$error":"#N/A"}},{"$f":"IF(INDIRECT(\"c\" & (VLOOKUP(Rebalance!$D$65,$F$2:$G$48,2,FALSE)+ROW()-2))=Rebalance!$D$65,INDIRECT(\"a\" & (VLOOKUP(Rebalance!$D$65,$F$2:$G$48,2,FALSE)+ROW()-2)),\"\")","v":{"$error":"#N/A"}},{"$f":"IF(INDIRECT(\"c\" & (VLOOKUP(Rebalance!$D$66,$F$2:$G$48,2,FALSE)+ROW()-2))=Rebalance!$D$66,INDIRECT(\"a\" & (VLOOKUP(Rebalance!$D$66,$F$2:$G$48,2,FALSE)+ROW()-2)),\"\")","v":{"$error":"#N/A"}}]
["SMMI Equity Fund of Funds","SAFF","Sanlam Collective Investments",{"$f":"ROW()","v":543},null,null,{"$f":"VLOOKUP(F543,$C$2:$D$599,2,FALSE)","v":{"$error":"#N/A"}},{"$f":"IF(INDIRECT(\"c\" & (VLOOKUP(Rebalance!$D$26,$F$2:$G$48,2,FALSE)+ROW()-2))=Rebalance!$D$26,INDIRECT(\"a\" & (VLOOKUP(Rebalance!$D$26,$F$2:$G$48,2,FALSE)+ROW()-2)),\"\")","v":{"$error":"#N/A"}},{"$f":"IF(INDIRECT(\"c\" & (VLOOKUP(Rebalance!$D$27,$F$2:$G$48,2,FALSE)+ROW()-2))=Rebalance!$D$27,INDIRECT(\"a\" & (VLOOKUP(Rebalance!$D$27,$F$2:$G$48,2,FALSE)+ROW()-2)),\"\")","v":{"$error":"#N/A"}},{"$f":"IF(INDIRECT(\"c\" & (VLOOKUP(Rebalance!$D$28,$F$2:$G$48,2,FALSE)+ROW()-2))=Rebalance!$D$28,INDIRECT(\"a\" & (VLOOKUP(Rebalance!$D$28,$F$2:$G$48,2,FALSE)+ROW()-2)),\"\")","v":{"$error":"#N/A"}},{"$f":"IF(INDIRECT(\"c\" & (VLOOKUP(Rebalance!$D$29,$F$2:$G$48,2,FALSE)+ROW()-2))=Rebalance!$D$29,INDIRECT(\"a\" & (VLOOKUP(Rebalance!$D$29,$F$2:$G$48,2,FALSE)+ROW()-2)),\"\")","v":{"$error":"#N/A"}},{"$f":"IF(INDIRECT(\"c\" & (VLOOKUP(Rebalance!$D$30,$F$2:$G$48,2,FALSE)+ROW()-2))=Rebalance!$D$30,INDIRECT(\"a\" & (VLOOKUP(Rebalance!$D$30,$F$2:$G$48,2,FALSE)+ROW()-2)),\"\")","v":{"$error":"#N/A"}},{"$f":"IF(INDIRECT(\"c\" & (VLOOKUP(Rebalance!$D$31,$F$2:$G$48,2,FALSE)+ROW()-2))=Rebalance!$D$31,INDIRECT(\"a\" & (VLOOKUP(Rebalance!$D$31,$F$2:$G$48,2,FALSE)+ROW()-2)),\"\")","v":{"$error":"#N/A"}},{"$f":"IF(INDIRECT(\"c\" & (VLOOKUP(Rebalance!$D$32,$F$2:$G$48,2,FALSE)+ROW()-2))=Rebalance!$D$32,INDIRECT(\"a\" & (VLOOKUP(Rebalance!$D$32,$F$2:$G$48,2,FALSE)+ROW()-2)),\"\")","v":{"$error":"#N/A"}},{"$f":"IF(INDIRECT(\"c\" & (VLOOKUP(Rebalance!$D$33,$F$2:$G$48,2,FALSE)+ROW()-2))=Rebalance!$D$33,INDIRECT(\"a\" & (VLOOKUP(Rebalance!$D$33,$F$2:$G$48,2,FALSE)+ROW()-2)),\"\")","v":{"$error":"#N/A"}},{"$f":"IF(INDIRECT(\"c\" & (VLOOKUP(Rebalance!$D$34,$F$2:$G$48,2,FALSE)+ROW()-2))=Rebalance!$D$34,INDIRECT(\"a\" & (VLOOKUP(Rebalance!$D$34,$F$2:$G$48,2,FALSE)+ROW()-2)),\"\")","v":{"$error":"#N/A"}},{"$f":"IF(INDIRECT(\"c\" & (VLOOKUP(Rebalance!$D$35,$F$2:$G$48,2,FALSE)+ROW()-2))=Rebalance!$D$35,INDIRECT(\"a\" & (VLOOKUP(Rebalance!$D$35,$F$2:$G$48,2,FALSE)+ROW()-2)),\"\")","v":{"$error":"#N/A"}},{"$f":"IF(INDIRECT(\"c\" & (VLOOKUP(Rebalance!$D$36,$F$2:$G$48,2,FALSE)+ROW()-2))=Rebalance!$D$36,INDIRECT(\"a\" & (VLOOKUP(Rebalance!$D$36,$F$2:$G$48,2,FALSE)+ROW()-2)),\"\")","v":{"$error":"#N/A"}},{"$f":"IF(INDIRECT(\"c\" & (VLOOKUP(Rebalance!$D$37,$F$2:$G$48,2,FALSE)+ROW()-2))=Rebalance!$D$37,INDIRECT(\"a\" & (VLOOKUP(Rebalance!$D$37,$F$2:$G$48,2,FALSE)+ROW()-2)),\"\")","v":{"$error":"#N/A"}},{"$f":"IF(INDIRECT(\"c\" & (VLOOKUP(Rebalance!$D$38,$F$2:$G$48,2,FALSE)+ROW()-2))=Rebalance!$D$38,INDIRECT(\"a\" & (VLOOKUP(Rebalance!$D$38,$F$2:$G$48,2,FALSE)+ROW()-2)),\"\")","v":{"$error":"#N/A"}},{"$f":"IF(INDIRECT(\"c\" & (VLOOKUP(Rebalance!$D$39,$F$2:$G$48,2,FALSE)+ROW()-2))=Rebalance!$D$39,INDIRECT(\"a\" & (VLOOKUP(Rebalance!$D$39,$F$2:$G$48,2,FALSE)+ROW()-2)),\"\")","v":{"$error":"#N/A"}},{"$f":"IF(INDIRECT(\"c\" & (VLOOKUP(Rebalance!$D$40,$F$2:$G$48,2,FALSE)+ROW()-2))=Rebalance!$D$40,INDIRECT(\"a\" & (VLOOKUP(Rebalance!$D$40,$F$2:$G$48,2,FALSE)+ROW()-2)),\"\")","v":{"$error":"#N/A"}},{"$f":"IF(INDIRECT(\"c\" & (VLOOKUP(Rebalance!$D$52,$F$2:$G$48,2,FALSE)+ROW()-2))=Rebalance!$D$52,INDIRECT(\"a\" & (VLOOKUP(Rebalance!$D$52,$F$2:$G$48,2,FALSE)+ROW()-2)),\"\")","v":{"$error":"#N/A"}},{"$f":"IF(INDIRECT(\"c\" & (VLOOKUP(Rebalance!$D$53,$F$2:$G$48,2,FALSE)+ROW()-2))=Rebalance!$D$53,INDIRECT(\"a\" & (VLOOKUP(Rebalance!$D$53,$F$2:$G$48,2,FALSE)+ROW()-2)),\"\")","v":{"$error":"#N/A"}},{"$f":"IF(INDIRECT(\"c\" & (VLOOKUP(Rebalance!$D$54,$F$2:$G$48,2,FALSE)+ROW()-2))=Rebalance!$D$54,INDIRECT(\"a\" & (VLOOKUP(Rebalance!$D$54,$F$2:$G$48,2,FALSE)+ROW()-2)),\"\")","v":{"$error":"#N/A"}},{"$f":"IF(INDIRECT(\"c\" & (VLOOKUP(Rebalance!$D$55,$F$2:$G$48,2,FALSE)+ROW()-2))=Rebalance!$D$55,INDIRECT(\"a\" & (VLOOKUP(Rebalance!$D$55,$F$2:$G$48,2,FALSE)+ROW()-2)),\"\")","v":{"$error":"#N/A"}},{"$f":"IF(INDIRECT(\"c\" & (VLOOKUP(Rebalance!$D$56,$F$2:$G$48,2,FALSE)+ROW()-2))=Rebalance!$D$56,INDIRECT(\"a\" & (VLOOKUP(Rebalance!$D$56,$F$2:$G$48,2,FALSE)+ROW()-2)),\"\")","v":{"$error":"#N/A"}},{"$f":"IF(INDIRECT(\"c\" & (VLOOKUP(Rebalance!$D$57,$F$2:$G$48,2,FALSE)+ROW()-2))=Rebalance!$D$57,INDIRECT(\"a\" & (VLOOKUP(Rebalance!$D$57,$F$2:$G$48,2,FALSE)+ROW()-2)),\"\")","v":{"$error":"#N/A"}},{"$f":"IF(INDIRECT(\"c\" & (VLOOKUP(Rebalance!$D$58,$F$2:$G$48,2,FALSE)+ROW()-2))=Rebalance!$D$58,INDIRECT(\"a\" & (VLOOKUP(Rebalance!$D$58,$F$2:$G$48,2,FALSE)+ROW()-2)),\"\")","v":{"$error":"#N/A"}},{"$f":"IF(INDIRECT(\"c\" & (VLOOKUP(Rebalance!$D$59,$F$2:$G$48,2,FALSE)+ROW()-2))=Rebalance!$D$59,INDIRECT(\"a\" & (VLOOKUP(Rebalance!$D$59,$F$2:$G$48,2,FALSE)+ROW()-2)),\"\")","v":{"$error":"#N/A"}},{"$f":"IF(INDIRECT(\"c\" & (VLOOKUP(Rebalance!$D$60,$F$2:$G$48,2,FALSE)+ROW()-2))=Rebalance!$D$60,INDIRECT(\"a\" & (VLOOKUP(Rebalance!$D$60,$F$2:$G$48,2,FALSE)+ROW()-2)),\"\")","v":{"$error":"#N/A"}},{"$f":"IF(INDIRECT(\"c\" & (VLOOKUP(Rebalance!$D$61,$F$2:$G$48,2,FALSE)+ROW()-2))=Rebalance!$D$61,INDIRECT(\"a\" & (VLOOKUP(Rebalance!$D$61,$F$2:$G$48,2,FALSE)+ROW()-2)),\"\")","v":{"$error":"#N/A"}},{"$f":"IF(INDIRECT(\"c\" & (VLOOKUP(Rebalance!$D$62,$F$2:$G$48,2,FALSE)+ROW()-2))=Rebalance!$D$62,INDIRECT(\"a\" & (VLOOKUP(Rebalance!$D$62,$F$2:$G$48,2,FALSE)+ROW()-2)),\"\")","v":{"$error":"#N/A"}},{"$f":"IF(INDIRECT(\"c\" & (VLOOKUP(Rebalance!$D$63,$F$2:$G$48,2,FALSE)+ROW()-2))=Rebalance!$D$63,INDIRECT(\"a\" & (VLOOKUP(Rebalance!$D$63,$F$2:$G$48,2,FALSE)+ROW()-2)),\"\")","v":{"$error":"#N/A"}},{"$f":"IF(INDIRECT(\"c\" & (VLOOKUP(Rebalance!$D$64,$F$2:$G$48,2,FALSE)+ROW()-2))=Rebalance!$D$64,INDIRECT(\"a\" & (VLOOKUP(Rebalance!$D$64,$F$2:$G$48,2,FALSE)+ROW()-2)),\"\")","v":{"$error":"#N/A"}},{"$f":"IF(INDIRECT(\"c\" & (VLOOKUP(Rebalance!$D$65,$F$2:$G$48,2,FALSE)+ROW()-2))=Rebalance!$D$65,INDIRECT(\"a\" & (VLOOKUP(Rebalance!$D$65,$F$2:$G$48,2,FALSE)+ROW()-2)),\"\")","v":{"$error":"#N/A"}},{"$f":"IF(INDIRECT(\"c\" & (VLOOKUP(Rebalance!$D$66,$F$2:$G$48,2,FALSE)+ROW()-2))=Rebalance!$D$66,INDIRECT(\"a\" & (VLOOKUP(Rebalance!$D$66,$F$2:$G$48,2,FALSE)+ROW()-2)),\"\")","v":{"$error":"#N/A"}}]
["Satrix Alsi Index Fund B1","STAB1","Satrix Managers (RF) (Pty) Ltd",{"$f":"ROW()","v":544},null,null,{"$f":"VLOOKUP(F544,$C$2:$D$599,2,FALSE)","v":{"$error":"#N/A"}},{"$f":"IF(INDIRECT(\"c\" & (VLOOKUP(Rebalance!$D$26,$F$2:$G$48,2,FALSE)+ROW()-2))=Rebalance!$D$26,INDIRECT(\"a\" & (VLOOKUP(Rebalance!$D$26,$F$2:$G$48,2,FALSE)+ROW()-2)),\"\")","v":{"$error":"#N/A"}},{"$f":"IF(INDIRECT(\"c\" & (VLOOKUP(Rebalance!$D$27,$F$2:$G$48,2,FALSE)+ROW()-2))=Rebalance!$D$27,INDIRECT(\"a\" & (VLOOKUP(Rebalance!$D$27,$F$2:$G$48,2,FALSE)+ROW()-2)),\"\")","v":{"$error":"#N/A"}},{"$f":"IF(INDIRECT(\"c\" & (VLOOKUP(Rebalance!$D$28,$F$2:$G$48,2,FALSE)+ROW()-2))=Rebalance!$D$28,INDIRECT(\"a\" & (VLOOKUP(Rebalance!$D$28,$F$2:$G$48,2,FALSE)+ROW()-2)),\"\")","v":{"$error":"#N/A"}},{"$f":"IF(INDIRECT(\"c\" & (VLOOKUP(Rebalance!$D$29,$F$2:$G$48,2,FALSE)+ROW()-2))=Rebalance!$D$29,INDIRECT(\"a\" & (VLOOKUP(Rebalance!$D$29,$F$2:$G$48,2,FALSE)+ROW()-2)),\"\")","v":{"$error":"#N/A"}},{"$f":"IF(INDIRECT(\"c\" & (VLOOKUP(Rebalance!$D$30,$F$2:$G$48,2,FALSE)+ROW()-2))=Rebalance!$D$30,INDIRECT(\"a\" & (VLOOKUP(Rebalance!$D$30,$F$2:$G$48,2,FALSE)+ROW()-2)),\"\")","v":{"$error":"#N/A"}},{"$f":"IF(INDIRECT(\"c\" & (VLOOKUP(Rebalance!$D$31,$F$2:$G$48,2,FALSE)+ROW()-2))=Rebalance!$D$31,INDIRECT(\"a\" & (VLOOKUP(Rebalance!$D$31,$F$2:$G$48,2,FALSE)+ROW()-2)),\"\")","v":{"$error":"#N/A"}},{"$f":"IF(INDIRECT(\"c\" & (VLOOKUP(Rebalance!$D$32,$F$2:$G$48,2,FALSE)+ROW()-2))=Rebalance!$D$32,INDIRECT(\"a\" & (VLOOKUP(Rebalance!$D$32,$F$2:$G$48,2,FALSE)+ROW()-2)),\"\")","v":{"$error":"#N/A"}},{"$f":"IF(INDIRECT(\"c\" & (VLOOKUP(Rebalance!$D$33,$F$2:$G$48,2,FALSE)+ROW()-2))=Rebalance!$D$33,INDIRECT(\"a\" & (VLOOKUP(Rebalance!$D$33,$F$2:$G$48,2,FALSE)+ROW()-2)),\"\")","v":{"$error":"#N/A"}},{"$f":"IF(INDIRECT(\"c\" & (VLOOKUP(Rebalance!$D$34,$F$2:$G$48,2,FALSE)+ROW()-2))=Rebalance!$D$34,INDIRECT(\"a\" & (VLOOKUP(Rebalance!$D$34,$F$2:$G$48,2,FALSE)+ROW()-2)),\"\")","v":{"$error":"#N/A"}},{"$f":"IF(INDIRECT(\"c\" & (VLOOKUP(Rebalance!$D$35,$F$2:$G$48,2,FALSE)+ROW()-2))=Rebalance!$D$35,INDIRECT(\"a\" & (VLOOKUP(Rebalance!$D$35,$F$2:$G$48,2,FALSE)+ROW()-2)),\"\")","v":{"$error":"#N/A"}},{"$f":"IF(INDIRECT(\"c\" & (VLOOKUP(Rebalance!$D$36,$F$2:$G$48,2,FALSE)+ROW()-2))=Rebalance!$D$36,INDIRECT(\"a\" & (VLOOKUP(Rebalance!$D$36,$F$2:$G$48,2,FALSE)+ROW()-2)),\"\")","v":{"$error":"#N/A"}},{"$f":"IF(INDIRECT(\"c\" & (VLOOKUP(Rebalance!$D$37,$F$2:$G$48,2,FALSE)+ROW()-2))=Rebalance!$D$37,INDIRECT(\"a\" & (VLOOKUP(Rebalance!$D$37,$F$2:$G$48,2,FALSE)+ROW()-2)),\"\")","v":{"$error":"#N/A"}},{"$f":"IF(INDIRECT(\"c\" & (VLOOKUP(Rebalance!$D$38,$F$2:$G$48,2,FALSE)+ROW()-2))=Rebalance!$D$38,INDIRECT(\"a\" & (VLOOKUP(Rebalance!$D$38,$F$2:$G$48,2,FALSE)+ROW()-2)),\"\")","v":{"$error":"#N/A"}},{"$f":"IF(INDIRECT(\"c\" & (VLOOKUP(Rebalance!$D$39,$F$2:$G$48,2,FALSE)+ROW()-2))=Rebalance!$D$39,INDIRECT(\"a\" & (VLOOKUP(Rebalance!$D$39,$F$2:$G$48,2,FALSE)+ROW()-2)),\"\")","v":{"$error":"#N/A"}},{"$f":"IF(INDIRECT(\"c\" & (VLOOKUP(Rebalance!$D$40,$F$2:$G$48,2,FALSE)+ROW()-2))=Rebalance!$D$40,INDIRECT(\"a\" & (VLOOKUP(Rebalance!$D$40,$F$2:$G$48,2,FALSE)+ROW()-2)),\"\")","v":{"$error":"#N/A"}},{"$f":"IF(INDIRECT(\"c\" & (VLOOKUP(Rebalance!$D$52,$F$2:$G$48,2,FALSE)+ROW()-2))=Rebalance!$D$52,INDIRECT(\"a\" & (VLOOKUP(Rebalance!$D$52,$F$2:$G$48,2,FALSE)+ROW()-2)),\"\")","v":{"$error":"#N/A"}},{"$f":"IF(INDIRECT(\"c\" & (VLOOKUP(Rebalance!$D$53,$F$2:$G$48,2,FALSE)+ROW()-2))=Rebalance!$D$53,INDIRECT(\"a\" & (VLOOKUP(Rebalance!$D$53,$F$2:$G$48,2,FALSE)+ROW()-2)),\"\")","v":{"$error":"#N/A"}},{"$f":"IF(INDIRECT(\"c\" & (VLOOKUP(Rebalance!$D$54,$F$2:$G$48,2,FALSE)+ROW()-2))=Rebalance!$D$54,INDIRECT(\"a\" & (VLOOKUP(Rebalance!$D$54,$F$2:$G$48,2,FALSE)+ROW()-2)),\"\")","v":{"$error":"#N/A"}},{"$f":"IF(INDIRECT(\"c\" & (VLOOKUP(Rebalance!$D$55,$F$2:$G$48,2,FALSE)+ROW()-2))=Rebalance!$D$55,INDIRECT(\"a\" & (VLOOKUP(Rebalance!$D$55,$F$2:$G$48,2,FALSE)+ROW()-2)),\"\")","v":{"$error":"#N/A"}},{"$f":"IF(INDIRECT(\"c\" & (VLOOKUP(Rebalance!$D$56,$F$2:$G$48,2,FALSE)+ROW()-2))=Rebalance!$D$56,INDIRECT(\"a\" & (VLOOKUP(Rebalance!$D$56,$F$2:$G$48,2,FALSE)+ROW()-2)),\"\")","v":{"$error":"#N/A"}},{"$f":"IF(INDIRECT(\"c\" & (VLOOKUP(Rebalance!$D$57,$F$2:$G$48,2,FALSE)+ROW()-2))=Rebalance!$D$57,INDIRECT(\"a\" & (VLOOKUP(Rebalance!$D$57,$F$2:$G$48,2,FALSE)+ROW()-2)),\"\")","v":{"$error":"#N/A"}},{"$f":"IF(INDIRECT(\"c\" & (VLOOKUP(Rebalance!$D$58,$F$2:$G$48,2,FALSE)+ROW()-2))=Rebalance!$D$58,INDIRECT(\"a\" & (VLOOKUP(Rebalance!$D$58,$F$2:$G$48,2,FALSE)+ROW()-2)),\"\")","v":{"$error":"#N/A"}},{"$f":"IF(INDIRECT(\"c\" & (VLOOKUP(Rebalance!$D$59,$F$2:$G$48,2,FALSE)+ROW()-2))=Rebalance!$D$59,INDIRECT(\"a\" & (VLOOKUP(Rebalance!$D$59,$F$2:$G$48,2,FALSE)+ROW()-2)),\"\")","v":{"$error":"#N/A"}},{"$f":"IF(INDIRECT(\"c\" & (VLOOKUP(Rebalance!$D$60,$F$2:$G$48,2,FALSE)+ROW()-2))=Rebalance!$D$60,INDIRECT(\"a\" & (VLOOKUP(Rebalance!$D$60,$F$2:$G$48,2,FALSE)+ROW()-2)),\"\")","v":{"$error":"#N/A"}},{"$f":"IF(INDIRECT(\"c\" & (VLOOKUP(Rebalance!$D$61,$F$2:$G$48,2,FALSE)+ROW()-2))=Rebalance!$D$61,INDIRECT(\"a\" & (VLOOKUP(Rebalance!$D$61,$F$2:$G$48,2,FALSE)+ROW()-2)),\"\")","v":{"$error":"#N/A"}},{"$f":"IF(INDIRECT(\"c\" & (VLOOKUP(Rebalance!$D$62,$F$2:$G$48,2,FALSE)+ROW()-2))=Rebalance!$D$62,INDIRECT(\"a\" & (VLOOKUP(Rebalance!$D$62,$F$2:$G$48,2,FALSE)+ROW()-2)),\"\")","v":{"$error":"#N/A"}},{"$f":"IF(INDIRECT(\"c\" & (VLOOKUP(Rebalance!$D$63,$F$2:$G$48,2,FALSE)+ROW()-2))=Rebalance!$D$63,INDIRECT(\"a\" & (VLOOKUP(Rebalance!$D$63,$F$2:$G$48,2,FALSE)+ROW()-2)),\"\")","v":{"$error":"#N/A"}},{"$f":"IF(INDIRECT(\"c\" & (VLOOKUP(Rebalance!$D$64,$F$2:$G$48,2,FALSE)+ROW()-2))=Rebalance!$D$64,INDIRECT(\"a\" & (VLOOKUP(Rebalance!$D$64,$F$2:$G$48,2,FALSE)+ROW()-2)),\"\")","v":{"$error":"#N/A"}},{"$f":"IF(INDIRECT(\"c\" & (VLOOKUP(Rebalance!$D$65,$F$2:$G$48,2,FALSE)+ROW()-2))=Rebalance!$D$65,INDIRECT(\"a\" & (VLOOKUP(Rebalance!$D$65,$F$2:$G$48,2,FALSE)+ROW()-2)),\"\")","v":{"$error":"#N/A"}},{"$f":"IF(INDIRECT(\"c\" & (VLOOKUP(Rebalance!$D$66,$F$2:$G$48,2,FALSE)+ROW()-2))=Rebalance!$D$66,INDIRECT(\"a\" & (VLOOKUP(Rebalance!$D$66,$F$2:$G$48,2,FALSE)+ROW()-2)),\"\")","v":{"$error":"#N/A"}}]
["Satrix Balanced Index Fund B1","STIB1","Satrix Managers (RF) (Pty) Ltd",{"$f":"ROW()","v":545},null,null,{"$f":"VLOOKUP(F545,$C$2:$D$599,2,FALSE)","v":{"$error":"#N/A"}},{"$f":"IF(INDIRECT(\"c\" & (VLOOKUP(Rebalance!$D$26,$F$2:$G$48,2,FALSE)+ROW()-2))=Rebalance!$D$26,INDIRECT(\"a\" & (VLOOKUP(Rebalance!$D$26,$F$2:$G$48,2,FALSE)+ROW()-2)),\"\")","v":{"$error":"#N/A"}},{"$f":"IF(INDIRECT(\"c\" & (VLOOKUP(Rebalance!$D$27,$F$2:$G$48,2,FALSE)+ROW()-2))=Rebalance!$D$27,INDIRECT(\"a\" & (VLOOKUP(Rebalance!$D$27,$F$2:$G$48,2,FALSE)+ROW()-2)),\"\")","v":{"$error":"#N/A"}},{"$f":"IF(INDIRECT(\"c\" & (VLOOKUP(Rebalance!$D$28,$F$2:$G$48,2,FALSE)+ROW()-2))=Rebalance!$D$28,INDIRECT(\"a\" & (VLOOKUP(Rebalance!$D$28,$F$2:$G$48,2,FALSE)+ROW()-2)),\"\")","v":{"$error":"#N/A"}},{"$f":"IF(INDIRECT(\"c\" & (VLOOKUP(Rebalance!$D$29,$F$2:$G$48,2,FALSE)+ROW()-2))=Rebalance!$D$29,INDIRECT(\"a\" & (VLOOKUP(Rebalance!$D$29,$F$2:$G$48,2,FALSE)+ROW()-2)),\"\")","v":{"$error":"#N/A"}},{"$f":"IF(INDIRECT(\"c\" & (VLOOKUP(Rebalance!$D$30,$F$2:$G$48,2,FALSE)+ROW()-2))=Rebalance!$D$30,INDIRECT(\"a\" & (VLOOKUP(Rebalance!$D$30,$F$2:$G$48,2,FALSE)+ROW()-2)),\"\")","v":{"$error":"#N/A"}},{"$f":"IF(INDIRECT(\"c\" & (VLOOKUP(Rebalance!$D$31,$F$2:$G$48,2,FALSE)+ROW()-2))=Rebalance!$D$31,INDIRECT(\"a\" & (VLOOKUP(Rebalance!$D$31,$F$2:$G$48,2,FALSE)+ROW()-2)),\"\")","v":{"$error":"#N/A"}},{"$f":"IF(INDIRECT(\"c\" & (VLOOKUP(Rebalance!$D$32,$F$2:$G$48,2,FALSE)+ROW()-2))=Rebalance!$D$32,INDIRECT(\"a\" & (VLOOKUP(Rebalance!$D$32,$F$2:$G$48,2,FALSE)+ROW()-2)),\"\")","v":{"$error":"#N/A"}},{"$f":"IF(INDIRECT(\"c\" & (VLOOKUP(Rebalance!$D$33,$F$2:$G$48,2,FALSE)+ROW()-2))=Rebalance!$D$33,INDIRECT(\"a\" & (VLOOKUP(Rebalance!$D$33,$F$2:$G$48,2,FALSE)+ROW()-2)),\"\")","v":{"$error":"#N/A"}},{"$f":"IF(INDIRECT(\"c\" & (VLOOKUP(Rebalance!$D$34,$F$2:$G$48,2,FALSE)+ROW()-2))=Rebalance!$D$34,INDIRECT(\"a\" & (VLOOKUP(Rebalance!$D$34,$F$2:$G$48,2,FALSE)+ROW()-2)),\"\")","v":{"$error":"#N/A"}},{"$f":"IF(INDIRECT(\"c\" & (VLOOKUP(Rebalance!$D$35,$F$2:$G$48,2,FALSE)+ROW()-2))=Rebalance!$D$35,INDIRECT(\"a\" & (VLOOKUP(Rebalance!$D$35,$F$2:$G$48,2,FALSE)+ROW()-2)),\"\")","v":{"$error":"#N/A"}},{"$f":"IF(INDIRECT(\"c\" & (VLOOKUP(Rebalance!$D$36,$F$2:$G$48,2,FALSE)+ROW()-2))=Rebalance!$D$36,INDIRECT(\"a\" & (VLOOKUP(Rebalance!$D$36,$F$2:$G$48,2,FALSE)+ROW()-2)),\"\")","v":{"$error":"#N/A"}},{"$f":"IF(INDIRECT(\"c\" & (VLOOKUP(Rebalance!$D$37,$F$2:$G$48,2,FALSE)+ROW()-2))=Rebalance!$D$37,INDIRECT(\"a\" & (VLOOKUP(Rebalance!$D$37,$F$2:$G$48,2,FALSE)+ROW()-2)),\"\")","v":{"$error":"#N/A"}},{"$f":"IF(INDIRECT(\"c\" & (VLOOKUP(Rebalance!$D$38,$F$2:$G$48,2,FALSE)+ROW()-2))=Rebalance!$D$38,INDIRECT(\"a\" & (VLOOKUP(Rebalance!$D$38,$F$2:$G$48,2,FALSE)+ROW()-2)),\"\")","v":{"$error":"#N/A"}},{"$f":"IF(INDIRECT(\"c\" & (VLOOKUP(Rebalance!$D$39,$F$2:$G$48,2,FALSE)+ROW()-2))=Rebalance!$D$39,INDIRECT(\"a\" & (VLOOKUP(Rebalance!$D$39,$F$2:$G$48,2,FALSE)+ROW()-2)),\"\")","v":{"$error":"#N/A"}},{"$f":"IF(INDIRECT(\"c\" & (VLOOKUP(Rebalance!$D$40,$F$2:$G$48,2,FALSE)+ROW()-2))=Rebalance!$D$40,INDIRECT(\"a\" & (VLOOKUP(Rebalance!$D$40,$F$2:$G$48,2,FALSE)+ROW()-2)),\"\")","v":{"$error":"#N/A"}},{"$f":"IF(INDIRECT(\"c\" & (VLOOKUP(Rebalance!$D$52,$F$2:$G$48,2,FALSE)+ROW()-2))=Rebalance!$D$52,INDIRECT(\"a\" & (VLOOKUP(Rebalance!$D$52,$F$2:$G$48,2,FALSE)+ROW()-2)),\"\")","v":{"$error":"#N/A"}},{"$f":"IF(INDIRECT(\"c\" & (VLOOKUP(Rebalance!$D$53,$F$2:$G$48,2,FALSE)+ROW()-2))=Rebalance!$D$53,INDIRECT(\"a\" & (VLOOKUP(Rebalance!$D$53,$F$2:$G$48,2,FALSE)+ROW()-2)),\"\")","v":{"$error":"#N/A"}},{"$f":"IF(INDIRECT(\"c\" & (VLOOKUP(Rebalance!$D$54,$F$2:$G$48,2,FALSE)+ROW()-2))=Rebalance!$D$54,INDIRECT(\"a\" & (VLOOKUP(Rebalance!$D$54,$F$2:$G$48,2,FALSE)+ROW()-2)),\"\")","v":{"$error":"#N/A"}},{"$f":"IF(INDIRECT(\"c\" & (VLOOKUP(Rebalance!$D$55,$F$2:$G$48,2,FALSE)+ROW()-2))=Rebalance!$D$55,INDIRECT(\"a\" & (VLOOKUP(Rebalance!$D$55,$F$2:$G$48,2,FALSE)+ROW()-2)),\"\")","v":{"$error":"#N/A"}},{"$f":"IF(INDIRECT(\"c\" & (VLOOKUP(Rebalance!$D$56,$F$2:$G$48,2,FALSE)+ROW()-2))=Rebalance!$D$56,INDIRECT(\"a\" & (VLOOKUP(Rebalance!$D$56,$F$2:$G$48,2,FALSE)+ROW()-2)),\"\")","v":{"$error":"#N/A"}},{"$f":"IF(INDIRECT(\"c\" & (VLOOKUP(Rebalance!$D$57,$F$2:$G$48,2,FALSE)+ROW()-2))=Rebalance!$D$57,INDIRECT(\"a\" & (VLOOKUP(Rebalance!$D$57,$F$2:$G$48,2,FALSE)+ROW()-2)),\"\")","v":{"$error":"#N/A"}},{"$f":"IF(INDIRECT(\"c\" & (VLOOKUP(Rebalance!$D$58,$F$2:$G$48,2,FALSE)+ROW()-2))=Rebalance!$D$58,INDIRECT(\"a\" & (VLOOKUP(Rebalance!$D$58,$F$2:$G$48,2,FALSE)+ROW()-2)),\"\")","v":{"$error":"#N/A"}},{"$f":"IF(INDIRECT(\"c\" & (VLOOKUP(Rebalance!$D$59,$F$2:$G$48,2,FALSE)+ROW()-2))=Rebalance!$D$59,INDIRECT(\"a\" & (VLOOKUP(Rebalance!$D$59,$F$2:$G$48,2,FALSE)+ROW()-2)),\"\")","v":{"$error":"#N/A"}},{"$f":"IF(INDIRECT(\"c\" & (VLOOKUP(Rebalance!$D$60,$F$2:$G$48,2,FALSE)+ROW()-2))=Rebalance!$D$60,INDIRECT(\"a\" & (VLOOKUP(Rebalance!$D$60,$F$2:$G$48,2,FALSE)+ROW()-2)),\"\")","v":{"$error":"#N/A"}},{"$f":"IF(INDIRECT(\"c\" & (VLOOKUP(Rebalance!$D$61,$F$2:$G$48,2,FALSE)+ROW()-2))=Rebalance!$D$61,INDIRECT(\"a\" & (VLOOKUP(Rebalance!$D$61,$F$2:$G$48,2,FALSE)+ROW()-2)),\"\")","v":{"$error":"#N/A"}},{"$f":"IF(INDIRECT(\"c\" & (VLOOKUP(Rebalance!$D$62,$F$2:$G$48,2,FALSE)+ROW()-2))=Rebalance!$D$62,INDIRECT(\"a\" & (VLOOKUP(Rebalance!$D$62,$F$2:$G$48,2,FALSE)+ROW()-2)),\"\")","v":{"$error":"#N/A"}},{"$f":"IF(INDIRECT(\"c\" & (VLOOKUP(Rebalance!$D$63,$F$2:$G$48,2,FALSE)+ROW()-2))=Rebalance!$D$63,INDIRECT(\"a\" & (VLOOKUP(Rebalance!$D$63,$F$2:$G$48,2,FALSE)+ROW()-2)),\"\")","v":{"$error":"#N/A"}},{"$f":"IF(INDIRECT(\"c\" & (VLOOKUP(Rebalance!$D$64,$F$2:$G$48,2,FALSE)+ROW()-2))=Rebalance!$D$64,INDIRECT(\"a\" & (VLOOKUP(Rebalance!$D$64,$F$2:$G$48,2,FALSE)+ROW()-2)),\"\")","v":{"$error":"#N/A"}},{"$f":"IF(INDIRECT(\"c\" & (VLOOKUP(Rebalance!$D$65,$F$2:$G$48,2,FALSE)+ROW()-2))=Rebalance!$D$65,INDIRECT(\"a\" & (VLOOKUP(Rebalance!$D$65,$F$2:$G$48,2,FALSE)+ROW()-2)),\"\")","v":{"$error":"#N/A"}},{"$f":"IF(INDIRECT(\"c\" & (VLOOKUP(Rebalance!$D$66,$F$2:$G$48,2,FALSE)+ROW()-2))=Rebalance!$D$66,INDIRECT(\"a\" & (VLOOKUP(Rebalance!$D$66,$F$2:$G$48,2,FALSE)+ROW()-2)),\"\")","v":{"$error":"#N/A"}}]
["Satrix Bond Index Fund A2","SBIA2","Satrix Managers (RF) (Pty) Ltd",{"$f":"ROW()","v":546},null,null,{"$f":"VLOOKUP(F546,$C$2:$D$599,2,FALSE)","v":{"$error":"#N/A"}},{"$f":"IF(INDIRECT(\"c\" & (VLOOKUP(Rebalance!$D$26,$F$2:$G$48,2,FALSE)+ROW()-2))=Rebalance!$D$26,INDIRECT(\"a\" & (VLOOKUP(Rebalance!$D$26,$F$2:$G$48,2,FALSE)+ROW()-2)),\"\")","v":{"$error":"#N/A"}},{"$f":"IF(INDIRECT(\"c\" & (VLOOKUP(Rebalance!$D$27,$F$2:$G$48,2,FALSE)+ROW()-2))=Rebalance!$D$27,INDIRECT(\"a\" & (VLOOKUP(Rebalance!$D$27,$F$2:$G$48,2,FALSE)+ROW()-2)),\"\")","v":{"$error":"#N/A"}},{"$f":"IF(INDIRECT(\"c\" & (VLOOKUP(Rebalance!$D$28,$F$2:$G$48,2,FALSE)+ROW()-2))=Rebalance!$D$28,INDIRECT(\"a\" & (VLOOKUP(Rebalance!$D$28,$F$2:$G$48,2,FALSE)+ROW()-2)),\"\")","v":{"$error":"#N/A"}},{"$f":"IF(INDIRECT(\"c\" & (VLOOKUP(Rebalance!$D$29,$F$2:$G$48,2,FALSE)+ROW()-2))=Rebalance!$D$29,INDIRECT(\"a\" & (VLOOKUP(Rebalance!$D$29,$F$2:$G$48,2,FALSE)+ROW()-2)),\"\")","v":{"$error":"#N/A"}},{"$f":"IF(INDIRECT(\"c\" & (VLOOKUP(Rebalance!$D$30,$F$2:$G$48,2,FALSE)+ROW()-2))=Rebalance!$D$30,INDIRECT(\"a\" & (VLOOKUP(Rebalance!$D$30,$F$2:$G$48,2,FALSE)+ROW()-2)),\"\")","v":{"$error":"#N/A"}},{"$f":"IF(INDIRECT(\"c\" & (VLOOKUP(Rebalance!$D$31,$F$2:$G$48,2,FALSE)+ROW()-2))=Rebalance!$D$31,INDIRECT(\"a\" & (VLOOKUP(Rebalance!$D$31,$F$2:$G$48,2,FALSE)+ROW()-2)),\"\")","v":{"$error":"#N/A"}},{"$f":"IF(INDIRECT(\"c\" & (VLOOKUP(Rebalance!$D$32,$F$2:$G$48,2,FALSE)+ROW()-2))=Rebalance!$D$32,INDIRECT(\"a\" & (VLOOKUP(Rebalance!$D$32,$F$2:$G$48,2,FALSE)+ROW()-2)),\"\")","v":{"$error":"#N/A"}},{"$f":"IF(INDIRECT(\"c\" & (VLOOKUP(Rebalance!$D$33,$F$2:$G$48,2,FALSE)+ROW()-2))=Rebalance!$D$33,INDIRECT(\"a\" & (VLOOKUP(Rebalance!$D$33,$F$2:$G$48,2,FALSE)+ROW()-2)),\"\")","v":{"$error":"#N/A"}},{"$f":"IF(INDIRECT(\"c\" & (VLOOKUP(Rebalance!$D$34,$F$2:$G$48,2,FALSE)+ROW()-2))=Rebalance!$D$34,INDIRECT(\"a\" & (VLOOKUP(Rebalance!$D$34,$F$2:$G$48,2,FALSE)+ROW()-2)),\"\")","v":{"$error":"#N/A"}},{"$f":"IF(INDIRECT(\"c\" & (VLOOKUP(Rebalance!$D$35,$F$2:$G$48,2,FALSE)+ROW()-2))=Rebalance!$D$35,INDIRECT(\"a\" & (VLOOKUP(Rebalance!$D$35,$F$2:$G$48,2,FALSE)+ROW()-2)),\"\")","v":{"$error":"#N/A"}},{"$f":"IF(INDIRECT(\"c\" & (VLOOKUP(Rebalance!$D$36,$F$2:$G$48,2,FALSE)+ROW()-2))=Rebalance!$D$36,INDIRECT(\"a\" & (VLOOKUP(Rebalance!$D$36,$F$2:$G$48,2,FALSE)+ROW()-2)),\"\")","v":{"$error":"#N/A"}},{"$f":"IF(INDIRECT(\"c\" & (VLOOKUP(Rebalance!$D$37,$F$2:$G$48,2,FALSE)+ROW()-2))=Rebalance!$D$37,INDIRECT(\"a\" & (VLOOKUP(Rebalance!$D$37,$F$2:$G$48,2,FALSE)+ROW()-2)),\"\")","v":{"$error":"#N/A"}},{"$f":"IF(INDIRECT(\"c\" & (VLOOKUP(Rebalance!$D$38,$F$2:$G$48,2,FALSE)+ROW()-2))=Rebalance!$D$38,INDIRECT(\"a\" & (VLOOKUP(Rebalance!$D$38,$F$2:$G$48,2,FALSE)+ROW()-2)),\"\")","v":{"$error":"#N/A"}},{"$f":"IF(INDIRECT(\"c\" & (VLOOKUP(Rebalance!$D$39,$F$2:$G$48,2,FALSE)+ROW()-2))=Rebalance!$D$39,INDIRECT(\"a\" & (VLOOKUP(Rebalance!$D$39,$F$2:$G$48,2,FALSE)+ROW()-2)),\"\")","v":{"$error":"#N/A"}},{"$f":"IF(INDIRECT(\"c\" & (VLOOKUP(Rebalance!$D$40,$F$2:$G$48,2,FALSE)+ROW()-2))=Rebalance!$D$40,INDIRECT(\"a\" & (VLOOKUP(Rebalance!$D$40,$F$2:$G$48,2,FALSE)+ROW()-2)),\"\")","v":{"$error":"#N/A"}},{"$f":"IF(INDIRECT(\"c\" & (VLOOKUP(Rebalance!$D$52,$F$2:$G$48,2,FALSE)+ROW()-2))=Rebalance!$D$52,INDIRECT(\"a\" & (VLOOKUP(Rebalance!$D$52,$F$2:$G$48,2,FALSE)+ROW()-2)),\"\")","v":{"$error":"#N/A"}},{"$f":"IF(INDIRECT(\"c\" & (VLOOKUP(Rebalance!$D$53,$F$2:$G$48,2,FALSE)+ROW()-2))=Rebalance!$D$53,INDIRECT(\"a\" & (VLOOKUP(Rebalance!$D$53,$F$2:$G$48,2,FALSE)+ROW()-2)),\"\")","v":{"$error":"#N/A"}},{"$f":"IF(INDIRECT(\"c\" & (VLOOKUP(Rebalance!$D$54,$F$2:$G$48,2,FALSE)+ROW()-2))=Rebalance!$D$54,INDIRECT(\"a\" & (VLOOKUP(Rebalance!$D$54,$F$2:$G$48,2,FALSE)+ROW()-2)),\"\")","v":{"$error":"#N/A"}},{"$f":"IF(INDIRECT(\"c\" & (VLOOKUP(Rebalance!$D$55,$F$2:$G$48,2,FALSE)+ROW()-2))=Rebalance!$D$55,INDIRECT(\"a\" & (VLOOKUP(Rebalance!$D$55,$F$2:$G$48,2,FALSE)+ROW()-2)),\"\")","v":{"$error":"#N/A"}},{"$f":"IF(INDIRECT(\"c\" & (VLOOKUP(Rebalance!$D$56,$F$2:$G$48,2,FALSE)+ROW()-2))=Rebalance!$D$56,INDIRECT(\"a\" & (VLOOKUP(Rebalance!$D$56,$F$2:$G$48,2,FALSE)+ROW()-2)),\"\")","v":{"$error":"#N/A"}},{"$f":"IF(INDIRECT(\"c\" & (VLOOKUP(Rebalance!$D$57,$F$2:$G$48,2,FALSE)+ROW()-2))=Rebalance!$D$57,INDIRECT(\"a\" & (VLOOKUP(Rebalance!$D$57,$F$2:$G$48,2,FALSE)+ROW()-2)),\"\")","v":{"$error":"#N/A"}},{"$f":"IF(INDIRECT(\"c\" & (VLOOKUP(Rebalance!$D$58,$F$2:$G$48,2,FALSE)+ROW()-2))=Rebalance!$D$58,INDIRECT(\"a\" & (VLOOKUP(Rebalance!$D$58,$F$2:$G$48,2,FALSE)+ROW()-2)),\"\")","v":{"$error":"#N/A"}},{"$f":"IF(INDIRECT(\"c\" & (VLOOKUP(Rebalance!$D$59,$F$2:$G$48,2,FALSE)+ROW()-2))=Rebalance!$D$59,INDIRECT(\"a\" & (VLOOKUP(Rebalance!$D$59,$F$2:$G$48,2,FALSE)+ROW()-2)),\"\")","v":{"$error":"#N/A"}},{"$f":"IF(INDIRECT(\"c\" & (VLOOKUP(Rebalance!$D$60,$F$2:$G$48,2,FALSE)+ROW()-2))=Rebalance!$D$60,INDIRECT(\"a\" & (VLOOKUP(Rebalance!$D$60,$F$2:$G$48,2,FALSE)+ROW()-2)),\"\")","v":{"$error":"#N/A"}},{"$f":"IF(INDIRECT(\"c\" & (VLOOKUP(Rebalance!$D$61,$F$2:$G$48,2,FALSE)+ROW()-2))=Rebalance!$D$61,INDIRECT(\"a\" & (VLOOKUP(Rebalance!$D$61,$F$2:$G$48,2,FALSE)+ROW()-2)),\"\")","v":{"$error":"#N/A"}},{"$f":"IF(INDIRECT(\"c\" & (VLOOKUP(Rebalance!$D$62,$F$2:$G$48,2,FALSE)+ROW()-2))=Rebalance!$D$62,INDIRECT(\"a\" & (VLOOKUP(Rebalance!$D$62,$F$2:$G$48,2,FALSE)+ROW()-2)),\"\")","v":{"$error":"#N/A"}},{"$f":"IF(INDIRECT(\"c\" & (VLOOKUP(Rebalance!$D$63,$F$2:$G$48,2,FALSE)+ROW()-2))=Rebalance!$D$63,INDIRECT(\"a\" & (VLOOKUP(Rebalance!$D$63,$F$2:$G$48,2,FALSE)+ROW()-2)),\"\")","v":{"$error":"#N/A"}},{"$f":"IF(INDIRECT(\"c\" & (VLOOKUP(Rebalance!$D$64,$F$2:$G$48,2,FALSE)+ROW()-2))=Rebalance!$D$64,INDIRECT(\"a\" & (VLOOKUP(Rebalance!$D$64,$F$2:$G$48,2,FALSE)+ROW()-2)),\"\")","v":{"$error":"#N/A"}},{"$f":"IF(INDIRECT(\"c\" & (VLOOKUP(Rebalance!$D$65,$F$2:$G$48,2,FALSE)+ROW()-2))=Rebalance!$D$65,INDIRECT(\"a\" & (VLOOKUP(Rebalance!$D$65,$F$2:$G$48,2,FALSE)+ROW()-2)),\"\")","v":{"$error":"#N/A"}},{"$f":"IF(INDIRECT(\"c\" & (VLOOKUP(Rebalance!$D$66,$F$2:$G$48,2,FALSE)+ROW()-2))=Rebalance!$D$66,INDIRECT(\"a\" & (VLOOKUP(Rebalance!$D$66,$F$2:$G$48,2,FALSE)+ROW()-2)),\"\")","v":{"$error":"#N/A"}}]
["Satrix Dividend Plus Index Fund B1","STDB1","Satrix Managers (RF) (Pty) Ltd",{"$f":"ROW()","v":547},null,null,{"$f":"VLOOKUP(F547,$C$2:$D$599,2,FALSE)","v":{"$error":"#N/A"}},{"$f":"IF(INDIRECT(\"c\" & (VLOOKUP(Rebalance!$D$26,$F$2:$G$48,2,FALSE)+ROW()-2))=Rebalance!$D$26,INDIRECT(\"a\" & (VLOOKUP(Rebalance!$D$26,$F$2:$G$48,2,FALSE)+ROW()-2)),\"\")","v":{"$error":"#N/A"}},{"$f":"IF(INDIRECT(\"c\" & (VLOOKUP(Rebalance!$D$27,$F$2:$G$48,2,FALSE)+ROW()-2))=Rebalance!$D$27,INDIRECT(\"a\" & (VLOOKUP(Rebalance!$D$27,$F$2:$G$48,2,FALSE)+ROW()-2)),\"\")","v":{"$error":"#N/A"}},{"$f":"IF(INDIRECT(\"c\" & (VLOOKUP(Rebalance!$D$28,$F$2:$G$48,2,FALSE)+ROW()-2))=Rebalance!$D$28,INDIRECT(\"a\" & (VLOOKUP(Rebalance!$D$28,$F$2:$G$48,2,FALSE)+ROW()-2)),\"\")","v":{"$error":"#N/A"}},{"$f":"IF(INDIRECT(\"c\" & (VLOOKUP(Rebalance!$D$29,$F$2:$G$48,2,FALSE)+ROW()-2))=Rebalance!$D$29,INDIRECT(\"a\" & (VLOOKUP(Rebalance!$D$29,$F$2:$G$48,2,FALSE)+ROW()-2)),\"\")","v":{"$error":"#N/A"}},{"$f":"IF(INDIRECT(\"c\" & (VLOOKUP(Rebalance!$D$30,$F$2:$G$48,2,FALSE)+ROW()-2))=Rebalance!$D$30,INDIRECT(\"a\" & (VLOOKUP(Rebalance!$D$30,$F$2:$G$48,2,FALSE)+ROW()-2)),\"\")","v":{"$error":"#N/A"}},{"$f":"IF(INDIRECT(\"c\" & (VLOOKUP(Rebalance!$D$31,$F$2:$G$48,2,FALSE)+ROW()-2))=Rebalance!$D$31,INDIRECT(\"a\" & (VLOOKUP(Rebalance!$D$31,$F$2:$G$48,2,FALSE)+ROW()-2)),\"\")","v":{"$error":"#N/A"}},{"$f":"IF(INDIRECT(\"c\" & (VLOOKUP(Rebalance!$D$32,$F$2:$G$48,2,FALSE)+ROW()-2))=Rebalance!$D$32,INDIRECT(\"a\" & (VLOOKUP(Rebalance!$D$32,$F$2:$G$48,2,FALSE)+ROW()-2)),\"\")","v":{"$error":"#N/A"}},{"$f":"IF(INDIRECT(\"c\" & (VLOOKUP(Rebalance!$D$33,$F$2:$G$48,2,FALSE)+ROW()-2))=Rebalance!$D$33,INDIRECT(\"a\" & (VLOOKUP(Rebalance!$D$33,$F$2:$G$48,2,FALSE)+ROW()-2)),\"\")","v":{"$error":"#N/A"}},{"$f":"IF(INDIRECT(\"c\" & (VLOOKUP(Rebalance!$D$34,$F$2:$G$48,2,FALSE)+ROW()-2))=Rebalance!$D$34,INDIRECT(\"a\" & (VLOOKUP(Rebalance!$D$34,$F$2:$G$48,2,FALSE)+ROW()-2)),\"\")","v":{"$error":"#N/A"}},{"$f":"IF(INDIRECT(\"c\" & (VLOOKUP(Rebalance!$D$35,$F$2:$G$48,2,FALSE)+ROW()-2))=Rebalance!$D$35,INDIRECT(\"a\" & (VLOOKUP(Rebalance!$D$35,$F$2:$G$48,2,FALSE)+ROW()-2)),\"\")","v":{"$error":"#N/A"}},{"$f":"IF(INDIRECT(\"c\" & (VLOOKUP(Rebalance!$D$36,$F$2:$G$48,2,FALSE)+ROW()-2))=Rebalance!$D$36,INDIRECT(\"a\" & (VLOOKUP(Rebalance!$D$36,$F$2:$G$48,2,FALSE)+ROW()-2)),\"\")","v":{"$error":"#N/A"}},{"$f":"IF(INDIRECT(\"c\" & (VLOOKUP(Rebalance!$D$37,$F$2:$G$48,2,FALSE)+ROW()-2))=Rebalance!$D$37,INDIRECT(\"a\" & (VLOOKUP(Rebalance!$D$37,$F$2:$G$48,2,FALSE)+ROW()-2)),\"\")","v":{"$error":"#N/A"}},{"$f":"IF(INDIRECT(\"c\" & (VLOOKUP(Rebalance!$D$38,$F$2:$G$48,2,FALSE)+ROW()-2))=Rebalance!$D$38,INDIRECT(\"a\" & (VLOOKUP(Rebalance!$D$38,$F$2:$G$48,2,FALSE)+ROW()-2)),\"\")","v":{"$error":"#N/A"}},{"$f":"IF(INDIRECT(\"c\" & (VLOOKUP(Rebalance!$D$39,$F$2:$G$48,2,FALSE)+ROW()-2))=Rebalance!$D$39,INDIRECT(\"a\" & (VLOOKUP(Rebalance!$D$39,$F$2:$G$48,2,FALSE)+ROW()-2)),\"\")","v":{"$error":"#N/A"}},{"$f":"IF(INDIRECT(\"c\" & (VLOOKUP(Rebalance!$D$40,$F$2:$G$48,2,FALSE)+ROW()-2))=Rebalance!$D$40,INDIRECT(\"a\" & (VLOOKUP(Rebalance!$D$40,$F$2:$G$48,2,FALSE)+ROW()-2)),\"\")","v":{"$error":"#N/A"}},{"$f":"IF(INDIRECT(\"c\" & (VLOOKUP(Rebalance!$D$52,$F$2:$G$48,2,FALSE)+ROW()-2))=Rebalance!$D$52,INDIRECT(\"a\" & (VLOOKUP(Rebalance!$D$52,$F$2:$G$48,2,FALSE)+ROW()-2)),\"\")","v":{"$error":"#N/A"}},{"$f":"IF(INDIRECT(\"c\" & (VLOOKUP(Rebalance!$D$53,$F$2:$G$48,2,FALSE)+ROW()-2))=Rebalance!$D$53,INDIRECT(\"a\" & (VLOOKUP(Rebalance!$D$53,$F$2:$G$48,2,FALSE)+ROW()-2)),\"\")","v":{"$error":"#N/A"}},{"$f":"IF(INDIRECT(\"c\" & (VLOOKUP(Rebalance!$D$54,$F$2:$G$48,2,FALSE)+ROW()-2))=Rebalance!$D$54,INDIRECT(\"a\" & (VLOOKUP(Rebalance!$D$54,$F$2:$G$48,2,FALSE)+ROW()-2)),\"\")","v":{"$error":"#N/A"}},{"$f":"IF(INDIRECT(\"c\" & (VLOOKUP(Rebalance!$D$55,$F$2:$G$48,2,FALSE)+ROW()-2))=Rebalance!$D$55,INDIRECT(\"a\" & (VLOOKUP(Rebalance!$D$55,$F$2:$G$48,2,FALSE)+ROW()-2)),\"\")","v":{"$error":"#N/A"}},{"$f":"IF(INDIRECT(\"c\" & (VLOOKUP(Rebalance!$D$56,$F$2:$G$48,2,FALSE)+ROW()-2))=Rebalance!$D$56,INDIRECT(\"a\" & (VLOOKUP(Rebalance!$D$56,$F$2:$G$48,2,FALSE)+ROW()-2)),\"\")","v":{"$error":"#N/A"}},{"$f":"IF(INDIRECT(\"c\" & (VLOOKUP(Rebalance!$D$57,$F$2:$G$48,2,FALSE)+ROW()-2))=Rebalance!$D$57,INDIRECT(\"a\" & (VLOOKUP(Rebalance!$D$57,$F$2:$G$48,2,FALSE)+ROW()-2)),\"\")","v":{"$error":"#N/A"}},{"$f":"IF(INDIRECT(\"c\" & (VLOOKUP(Rebalance!$D$58,$F$2:$G$48,2,FALSE)+ROW()-2))=Rebalance!$D$58,INDIRECT(\"a\" & (VLOOKUP(Rebalance!$D$58,$F$2:$G$48,2,FALSE)+ROW()-2)),\"\")","v":{"$error":"#N/A"}},{"$f":"IF(INDIRECT(\"c\" & (VLOOKUP(Rebalance!$D$59,$F$2:$G$48,2,FALSE)+ROW()-2))=Rebalance!$D$59,INDIRECT(\"a\" & (VLOOKUP(Rebalance!$D$59,$F$2:$G$48,2,FALSE)+ROW()-2)),\"\")","v":{"$error":"#N/A"}},{"$f":"IF(INDIRECT(\"c\" & (VLOOKUP(Rebalance!$D$60,$F$2:$G$48,2,FALSE)+ROW()-2))=Rebalance!$D$60,INDIRECT(\"a\" & (VLOOKUP(Rebalance!$D$60,$F$2:$G$48,2,FALSE)+ROW()-2)),\"\")","v":{"$error":"#N/A"}},{"$f":"IF(INDIRECT(\"c\" & (VLOOKUP(Rebalance!$D$61,$F$2:$G$48,2,FALSE)+ROW()-2))=Rebalance!$D$61,INDIRECT(\"a\" & (VLOOKUP(Rebalance!$D$61,$F$2:$G$48,2,FALSE)+ROW()-2)),\"\")","v":{"$error":"#N/A"}},{"$f":"IF(INDIRECT(\"c\" & (VLOOKUP(Rebalance!$D$62,$F$2:$G$48,2,FALSE)+ROW()-2))=Rebalance!$D$62,INDIRECT(\"a\" & (VLOOKUP(Rebalance!$D$62,$F$2:$G$48,2,FALSE)+ROW()-2)),\"\")","v":{"$error":"#N/A"}},{"$f":"IF(INDIRECT(\"c\" & (VLOOKUP(Rebalance!$D$63,$F$2:$G$48,2,FALSE)+ROW()-2))=Rebalance!$D$63,INDIRECT(\"a\" & (VLOOKUP(Rebalance!$D$63,$F$2:$G$48,2,FALSE)+ROW()-2)),\"\")","v":{"$error":"#N/A"}},{"$f":"IF(INDIRECT(\"c\" & (VLOOKUP(Rebalance!$D$64,$F$2:$G$48,2,FALSE)+ROW()-2))=Rebalance!$D$64,INDIRECT(\"a\" & (VLOOKUP(Rebalance!$D$64,$F$2:$G$48,2,FALSE)+ROW()-2)),\"\")","v":{"$error":"#N/A"}},{"$f":"IF(INDIRECT(\"c\" & (VLOOKUP(Rebalance!$D$65,$F$2:$G$48,2,FALSE)+ROW()-2))=Rebalance!$D$65,INDIRECT(\"a\" & (VLOOKUP(Rebalance!$D$65,$F$2:$G$48,2,FALSE)+ROW()-2)),\"\")","v":{"$error":"#N/A"}},{"$f":"IF(INDIRECT(\"c\" & (VLOOKUP(Rebalance!$D$66,$F$2:$G$48,2,FALSE)+ROW()-2))=Rebalance!$D$66,INDIRECT(\"a\" & (VLOOKUP(Rebalance!$D$66,$F$2:$G$48,2,FALSE)+ROW()-2)),\"\")","v":{"$error":"#N/A"}}]
["Satrix Equally Weighted TOP 40 Index Fund B1","STWB1","Satrix Managers (RF) (Pty) Ltd",{"$f":"ROW()","v":548},null,null,{"$f":"VLOOKUP(F548,$C$2:$D$599,2,FALSE)","v":{"$error":"#N/A"}},{"$f":"IF(INDIRECT(\"c\" & (VLOOKUP(Rebalance!$D$26,$F$2:$G$48,2,FALSE)+ROW()-2))=Rebalance!$D$26,INDIRECT(\"a\" & (VLOOKUP(Rebalance!$D$26,$F$2:$G$48,2,FALSE)+ROW()-2)),\"\")","v":{"$error":"#N/A"}},{"$f":"IF(INDIRECT(\"c\" & (VLOOKUP(Rebalance!$D$27,$F$2:$G$48,2,FALSE)+ROW()-2))=Rebalance!$D$27,INDIRECT(\"a\" & (VLOOKUP(Rebalance!$D$27,$F$2:$G$48,2,FALSE)+ROW()-2)),\"\")","v":{"$error":"#N/A"}},{"$f":"IF(INDIRECT(\"c\" & (VLOOKUP(Rebalance!$D$28,$F$2:$G$48,2,FALSE)+ROW()-2))=Rebalance!$D$28,INDIRECT(\"a\" & (VLOOKUP(Rebalance!$D$28,$F$2:$G$48,2,FALSE)+ROW()-2)),\"\")","v":{"$error":"#N/A"}},{"$f":"IF(INDIRECT(\"c\" & (VLOOKUP(Rebalance!$D$29,$F$2:$G$48,2,FALSE)+ROW()-2))=Rebalance!$D$29,INDIRECT(\"a\" & (VLOOKUP(Rebalance!$D$29,$F$2:$G$48,2,FALSE)+ROW()-2)),\"\")","v":{"$error":"#N/A"}},{"$f":"IF(INDIRECT(\"c\" & (VLOOKUP(Rebalance!$D$30,$F$2:$G$48,2,FALSE)+ROW()-2))=Rebalance!$D$30,INDIRECT(\"a\" & (VLOOKUP(Rebalance!$D$30,$F$2:$G$48,2,FALSE)+ROW()-2)),\"\")","v":{"$error":"#N/A"}},{"$f":"IF(INDIRECT(\"c\" & (VLOOKUP(Rebalance!$D$31,$F$2:$G$48,2,FALSE)+ROW()-2))=Rebalance!$D$31,INDIRECT(\"a\" & (VLOOKUP(Rebalance!$D$31,$F$2:$G$48,2,FALSE)+ROW()-2)),\"\")","v":{"$error":"#N/A"}},{"$f":"IF(INDIRECT(\"c\" & (VLOOKUP(Rebalance!$D$32,$F$2:$G$48,2,FALSE)+ROW()-2))=Rebalance!$D$32,INDIRECT(\"a\" & (VLOOKUP(Rebalance!$D$32,$F$2:$G$48,2,FALSE)+ROW()-2)),\"\")","v":{"$error":"#N/A"}},{"$f":"IF(INDIRECT(\"c\" & (VLOOKUP(Rebalance!$D$33,$F$2:$G$48,2,FALSE)+ROW()-2))=Rebalance!$D$33,INDIRECT(\"a\" & (VLOOKUP(Rebalance!$D$33,$F$2:$G$48,2,FALSE)+ROW()-2)),\"\")","v":{"$error":"#N/A"}},{"$f":"IF(INDIRECT(\"c\" & (VLOOKUP(Rebalance!$D$34,$F$2:$G$48,2,FALSE)+ROW()-2))=Rebalance!$D$34,INDIRECT(\"a\" & (VLOOKUP(Rebalance!$D$34,$F$2:$G$48,2,FALSE)+ROW()-2)),\"\")","v":{"$error":"#N/A"}},{"$f":"IF(INDIRECT(\"c\" & (VLOOKUP(Rebalance!$D$35,$F$2:$G$48,2,FALSE)+ROW()-2))=Rebalance!$D$35,INDIRECT(\"a\" & (VLOOKUP(Rebalance!$D$35,$F$2:$G$48,2,FALSE)+ROW()-2)),\"\")","v":{"$error":"#N/A"}},{"$f":"IF(INDIRECT(\"c\" & (VLOOKUP(Rebalance!$D$36,$F$2:$G$48,2,FALSE)+ROW()-2))=Rebalance!$D$36,INDIRECT(\"a\" & (VLOOKUP(Rebalance!$D$36,$F$2:$G$48,2,FALSE)+ROW()-2)),\"\")","v":{"$error":"#N/A"}},{"$f":"IF(INDIRECT(\"c\" & (VLOOKUP(Rebalance!$D$37,$F$2:$G$48,2,FALSE)+ROW()-2))=Rebalance!$D$37,INDIRECT(\"a\" & (VLOOKUP(Rebalance!$D$37,$F$2:$G$48,2,FALSE)+ROW()-2)),\"\")","v":{"$error":"#N/A"}},{"$f":"IF(INDIRECT(\"c\" & (VLOOKUP(Rebalance!$D$38,$F$2:$G$48,2,FALSE)+ROW()-2))=Rebalance!$D$38,INDIRECT(\"a\" & (VLOOKUP(Rebalance!$D$38,$F$2:$G$48,2,FALSE)+ROW()-2)),\"\")","v":{"$error":"#N/A"}},{"$f":"IF(INDIRECT(\"c\" & (VLOOKUP(Rebalance!$D$39,$F$2:$G$48,2,FALSE)+ROW()-2))=Rebalance!$D$39,INDIRECT(\"a\" & (VLOOKUP(Rebalance!$D$39,$F$2:$G$48,2,FALSE)+ROW()-2)),\"\")","v":{"$error":"#N/A"}},{"$f":"IF(INDIRECT(\"c\" & (VLOOKUP(Rebalance!$D$40,$F$2:$G$48,2,FALSE)+ROW()-2))=Rebalance!$D$40,INDIRECT(\"a\" & (VLOOKUP(Rebalance!$D$40,$F$2:$G$48,2,FALSE)+ROW()-2)),\"\")","v":{"$error":"#N/A"}},{"$f":"IF(INDIRECT(\"c\" & (VLOOKUP(Rebalance!$D$52,$F$2:$G$48,2,FALSE)+ROW()-2))=Rebalance!$D$52,INDIRECT(\"a\" & (VLOOKUP(Rebalance!$D$52,$F$2:$G$48,2,FALSE)+ROW()-2)),\"\")","v":{"$error":"#N/A"}},{"$f":"IF(INDIRECT(\"c\" & (VLOOKUP(Rebalance!$D$53,$F$2:$G$48,2,FALSE)+ROW()-2))=Rebalance!$D$53,INDIRECT(\"a\" & (VLOOKUP(Rebalance!$D$53,$F$2:$G$48,2,FALSE)+ROW()-2)),\"\")","v":{"$error":"#N/A"}},{"$f":"IF(INDIRECT(\"c\" & (VLOOKUP(Rebalance!$D$54,$F$2:$G$48,2,FALSE)+ROW()-2))=Rebalance!$D$54,INDIRECT(\"a\" & (VLOOKUP(Rebalance!$D$54,$F$2:$G$48,2,FALSE)+ROW()-2)),\"\")","v":{"$error":"#N/A"}},{"$f":"IF(INDIRECT(\"c\" & (VLOOKUP(Rebalance!$D$55,$F$2:$G$48,2,FALSE)+ROW()-2))=Rebalance!$D$55,INDIRECT(\"a\" & (VLOOKUP(Rebalance!$D$55,$F$2:$G$48,2,FALSE)+ROW()-2)),\"\")","v":{"$error":"#N/A"}},{"$f":"IF(INDIRECT(\"c\" & (VLOOKUP(Rebalance!$D$56,$F$2:$G$48,2,FALSE)+ROW()-2))=Rebalance!$D$56,INDIRECT(\"a\" & (VLOOKUP(Rebalance!$D$56,$F$2:$G$48,2,FALSE)+ROW()-2)),\"\")","v":{"$error":"#N/A"}},{"$f":"IF(INDIRECT(\"c\" & (VLOOKUP(Rebalance!$D$57,$F$2:$G$48,2,FALSE)+ROW()-2))=Rebalance!$D$57,INDIRECT(\"a\" & (VLOOKUP(Rebalance!$D$57,$F$2:$G$48,2,FALSE)+ROW()-2)),\"\")","v":{"$error":"#N/A"}},{"$f":"IF(INDIRECT(\"c\" & (VLOOKUP(Rebalance!$D$58,$F$2:$G$48,2,FALSE)+ROW()-2))=Rebalance!$D$58,INDIRECT(\"a\" & (VLOOKUP(Rebalance!$D$58,$F$2:$G$48,2,FALSE)+ROW()-2)),\"\")","v":{"$error":"#N/A"}},{"$f":"IF(INDIRECT(\"c\" & (VLOOKUP(Rebalance!$D$59,$F$2:$G$48,2,FALSE)+ROW()-2))=Rebalance!$D$59,INDIRECT(\"a\" & (VLOOKUP(Rebalance!$D$59,$F$2:$G$48,2,FALSE)+ROW()-2)),\"\")","v":{"$error":"#N/A"}},{"$f":"IF(INDIRECT(\"c\" & (VLOOKUP(Rebalance!$D$60,$F$2:$G$48,2,FALSE)+ROW()-2))=Rebalance!$D$60,INDIRECT(\"a\" & (VLOOKUP(Rebalance!$D$60,$F$2:$G$48,2,FALSE)+ROW()-2)),\"\")","v":{"$error":"#N/A"}},{"$f":"IF(INDIRECT(\"c\" & (VLOOKUP(Rebalance!$D$61,$F$2:$G$48,2,FALSE)+ROW()-2))=Rebalance!$D$61,INDIRECT(\"a\" & (VLOOKUP(Rebalance!$D$61,$F$2:$G$48,2,FALSE)+ROW()-2)),\"\")","v":{"$error":"#N/A"}},{"$f":"IF(INDIRECT(\"c\" & (VLOOKUP(Rebalance!$D$62,$F$2:$G$48,2,FALSE)+ROW()-2))=Rebalance!$D$62,INDIRECT(\"a\" & (VLOOKUP(Rebalance!$D$62,$F$2:$G$48,2,FALSE)+ROW()-2)),\"\")","v":{"$error":"#N/A"}},{"$f":"IF(INDIRECT(\"c\" & (VLOOKUP(Rebalance!$D$63,$F$2:$G$48,2,FALSE)+ROW()-2))=Rebalance!$D$63,INDIRECT(\"a\" & (VLOOKUP(Rebalance!$D$63,$F$2:$G$48,2,FALSE)+ROW()-2)),\"\")","v":{"$error":"#N/A"}},{"$f":"IF(INDIRECT(\"c\" & (VLOOKUP(Rebalance!$D$64,$F$2:$G$48,2,FALSE)+ROW()-2))=Rebalance!$D$64,INDIRECT(\"a\" & (VLOOKUP(Rebalance!$D$64,$F$2:$G$48,2,FALSE)+ROW()-2)),\"\")","v":{"$error":"#N/A"}},{"$f":"IF(INDIRECT(\"c\" & (VLOOKUP(Rebalance!$D$65,$F$2:$G$48,2,FALSE)+ROW()-2))=Rebalance!$D$65,INDIRECT(\"a\" & (VLOOKUP(Rebalance!$D$65,$F$2:$G$48,2,FALSE)+ROW()-2)),\"\")","v":{"$error":"#N/A"}},{"$f":"IF(INDIRECT(\"c\" & (VLOOKUP(Rebalance!$D$66,$F$2:$G$48,2,FALSE)+ROW()-2))=Rebalance!$D$66,INDIRECT(\"a\" & (VLOOKUP(Rebalance!$D$66,$F$2:$G$48,2,FALSE)+ROW()-2)),\"\")","v":{"$error":"#N/A"}}]
["Satrix Low EQ Balanced Index fund B1","SLEB1","Satrix Managers (RF) (Pty) Ltd",{"$f":"ROW()","v":549},null,null,{"$f":"VLOOKUP(F549,$C$2:$D$599,2,FALSE)","v":{"$error":"#N/A"}},{"$f":"IF(INDIRECT(\"c\" & (VLOOKUP(Rebalance!$D$26,$F$2:$G$48,2,FALSE)+ROW()-2))=Rebalance!$D$26,INDIRECT(\"a\" & (VLOOKUP(Rebalance!$D$26,$F$2:$G$48,2,FALSE)+ROW()-2)),\"\")","v":{"$error":"#N/A"}},{"$f":"IF(INDIRECT(\"c\" & (VLOOKUP(Rebalance!$D$27,$F$2:$G$48,2,FALSE)+ROW()-2))=Rebalance!$D$27,INDIRECT(\"a\" & (VLOOKUP(Rebalance!$D$27,$F$2:$G$48,2,FALSE)+ROW()-2)),\"\")","v":{"$error":"#N/A"}},{"$f":"IF(INDIRECT(\"c\" & (VLOOKUP(Rebalance!$D$28,$F$2:$G$48,2,FALSE)+ROW()-2))=Rebalance!$D$28,INDIRECT(\"a\" & (VLOOKUP(Rebalance!$D$28,$F$2:$G$48,2,FALSE)+ROW()-2)),\"\")","v":{"$error":"#N/A"}},{"$f":"IF(INDIRECT(\"c\" & (VLOOKUP(Rebalance!$D$29,$F$2:$G$48,2,FALSE)+ROW()-2))=Rebalance!$D$29,INDIRECT(\"a\" & (VLOOKUP(Rebalance!$D$29,$F$2:$G$48,2,FALSE)+ROW()-2)),\"\")","v":{"$error":"#N/A"}},{"$f":"IF(INDIRECT(\"c\" & (VLOOKUP(Rebalance!$D$30,$F$2:$G$48,2,FALSE)+ROW()-2))=Rebalance!$D$30,INDIRECT(\"a\" & (VLOOKUP(Rebalance!$D$30,$F$2:$G$48,2,FALSE)+ROW()-2)),\"\")","v":{"$error":"#N/A"}},{"$f":"IF(INDIRECT(\"c\" & (VLOOKUP(Rebalance!$D$31,$F$2:$G$48,2,FALSE)+ROW()-2))=Rebalance!$D$31,INDIRECT(\"a\" & (VLOOKUP(Rebalance!$D$31,$F$2:$G$48,2,FALSE)+ROW()-2)),\"\")","v":{"$error":"#N/A"}},{"$f":"IF(INDIRECT(\"c\" & (VLOOKUP(Rebalance!$D$32,$F$2:$G$48,2,FALSE)+ROW()-2))=Rebalance!$D$32,INDIRECT(\"a\" & (VLOOKUP(Rebalance!$D$32,$F$2:$G$48,2,FALSE)+ROW()-2)),\"\")","v":{"$error":"#N/A"}},{"$f":"IF(INDIRECT(\"c\" & (VLOOKUP(Rebalance!$D$33,$F$2:$G$48,2,FALSE)+ROW()-2))=Rebalance!$D$33,INDIRECT(\"a\" & (VLOOKUP(Rebalance!$D$33,$F$2:$G$48,2,FALSE)+ROW()-2)),\"\")","v":{"$error":"#N/A"}},{"$f":"IF(INDIRECT(\"c\" & (VLOOKUP(Rebalance!$D$34,$F$2:$G$48,2,FALSE)+ROW()-2))=Rebalance!$D$34,INDIRECT(\"a\" & (VLOOKUP(Rebalance!$D$34,$F$2:$G$48,2,FALSE)+ROW()-2)),\"\")","v":{"$error":"#N/A"}},{"$f":"IF(INDIRECT(\"c\" & (VLOOKUP(Rebalance!$D$35,$F$2:$G$48,2,FALSE)+ROW()-2))=Rebalance!$D$35,INDIRECT(\"a\" & (VLOOKUP(Rebalance!$D$35,$F$2:$G$48,2,FALSE)+ROW()-2)),\"\")","v":{"$error":"#N/A"}},{"$f":"IF(INDIRECT(\"c\" & (VLOOKUP(Rebalance!$D$36,$F$2:$G$48,2,FALSE)+ROW()-2))=Rebalance!$D$36,INDIRECT(\"a\" & (VLOOKUP(Rebalance!$D$36,$F$2:$G$48,2,FALSE)+ROW()-2)),\"\")","v":{"$error":"#N/A"}},{"$f":"IF(INDIRECT(\"c\" & (VLOOKUP(Rebalance!$D$37,$F$2:$G$48,2,FALSE)+ROW()-2))=Rebalance!$D$37,INDIRECT(\"a\" & (VLOOKUP(Rebalance!$D$37,$F$2:$G$48,2,FALSE)+ROW()-2)),\"\")","v":{"$error":"#N/A"}},{"$f":"IF(INDIRECT(\"c\" & (VLOOKUP(Rebalance!$D$38,$F$2:$G$48,2,FALSE)+ROW()-2))=Rebalance!$D$38,INDIRECT(\"a\" & (VLOOKUP(Rebalance!$D$38,$F$2:$G$48,2,FALSE)+ROW()-2)),\"\")","v":{"$error":"#N/A"}},{"$f":"IF(INDIRECT(\"c\" & (VLOOKUP(Rebalance!$D$39,$F$2:$G$48,2,FALSE)+ROW()-2))=Rebalance!$D$39,INDIRECT(\"a\" & (VLOOKUP(Rebalance!$D$39,$F$2:$G$48,2,FALSE)+ROW()-2)),\"\")","v":{"$error":"#N/A"}},{"$f":"IF(INDIRECT(\"c\" & (VLOOKUP(Rebalance!$D$40,$F$2:$G$48,2,FALSE)+ROW()-2))=Rebalance!$D$40,INDIRECT(\"a\" & (VLOOKUP(Rebalance!$D$40,$F$2:$G$48,2,FALSE)+ROW()-2)),\"\")","v":{"$error":"#N/A"}},{"$f":"IF(INDIRECT(\"c\" & (VLOOKUP(Rebalance!$D$52,$F$2:$G$48,2,FALSE)+ROW()-2))=Rebalance!$D$52,INDIRECT(\"a\" & (VLOOKUP(Rebalance!$D$52,$F$2:$G$48,2,FALSE)+ROW()-2)),\"\")","v":{"$error":"#N/A"}},{"$f":"IF(INDIRECT(\"c\" & (VLOOKUP(Rebalance!$D$53,$F$2:$G$48,2,FALSE)+ROW()-2))=Rebalance!$D$53,INDIRECT(\"a\" & (VLOOKUP(Rebalance!$D$53,$F$2:$G$48,2,FALSE)+ROW()-2)),\"\")","v":{"$error":"#N/A"}},{"$f":"IF(INDIRECT(\"c\" & (VLOOKUP(Rebalance!$D$54,$F$2:$G$48,2,FALSE)+ROW()-2))=Rebalance!$D$54,INDIRECT(\"a\" & (VLOOKUP(Rebalance!$D$54,$F$2:$G$48,2,FALSE)+ROW()-2)),\"\")","v":{"$error":"#N/A"}},{"$f":"IF(INDIRECT(\"c\" & (VLOOKUP(Rebalance!$D$55,$F$2:$G$48,2,FALSE)+ROW()-2))=Rebalance!$D$55,INDIRECT(\"a\" & (VLOOKUP(Rebalance!$D$55,$F$2:$G$48,2,FALSE)+ROW()-2)),\"\")","v":{"$error":"#N/A"}},{"$f":"IF(INDIRECT(\"c\" & (VLOOKUP(Rebalance!$D$56,$F$2:$G$48,2,FALSE)+ROW()-2))=Rebalance!$D$56,INDIRECT(\"a\" & (VLOOKUP(Rebalance!$D$56,$F$2:$G$48,2,FALSE)+ROW()-2)),\"\")","v":{"$error":"#N/A"}},{"$f":"IF(INDIRECT(\"c\" & (VLOOKUP(Rebalance!$D$57,$F$2:$G$48,2,FALSE)+ROW()-2))=Rebalance!$D$57,INDIRECT(\"a\" & (VLOOKUP(Rebalance!$D$57,$F$2:$G$48,2,FALSE)+ROW()-2)),\"\")","v":{"$error":"#N/A"}},{"$f":"IF(INDIRECT(\"c\" & (VLOOKUP(Rebalance!$D$58,$F$2:$G$48,2,FALSE)+ROW()-2))=Rebalance!$D$58,INDIRECT(\"a\" & (VLOOKUP(Rebalance!$D$58,$F$2:$G$48,2,FALSE)+ROW()-2)),\"\")","v":{"$error":"#N/A"}},{"$f":"IF(INDIRECT(\"c\" & (VLOOKUP(Rebalance!$D$59,$F$2:$G$48,2,FALSE)+ROW()-2))=Rebalance!$D$59,INDIRECT(\"a\" & (VLOOKUP(Rebalance!$D$59,$F$2:$G$48,2,FALSE)+ROW()-2)),\"\")","v":{"$error":"#N/A"}},{"$f":"IF(INDIRECT(\"c\" & (VLOOKUP(Rebalance!$D$60,$F$2:$G$48,2,FALSE)+ROW()-2))=Rebalance!$D$60,INDIRECT(\"a\" & (VLOOKUP(Rebalance!$D$60,$F$2:$G$48,2,FALSE)+ROW()-2)),\"\")","v":{"$error":"#N/A"}},{"$f":"IF(INDIRECT(\"c\" & (VLOOKUP(Rebalance!$D$61,$F$2:$G$48,2,FALSE)+ROW()-2))=Rebalance!$D$61,INDIRECT(\"a\" & (VLOOKUP(Rebalance!$D$61,$F$2:$G$48,2,FALSE)+ROW()-2)),\"\")","v":{"$error":"#N/A"}},{"$f":"IF(INDIRECT(\"c\" & (VLOOKUP(Rebalance!$D$62,$F$2:$G$48,2,FALSE)+ROW()-2))=Rebalance!$D$62,INDIRECT(\"a\" & (VLOOKUP(Rebalance!$D$62,$F$2:$G$48,2,FALSE)+ROW()-2)),\"\")","v":{"$error":"#N/A"}},{"$f":"IF(INDIRECT(\"c\" & (VLOOKUP(Rebalance!$D$63,$F$2:$G$48,2,FALSE)+ROW()-2))=Rebalance!$D$63,INDIRECT(\"a\" & (VLOOKUP(Rebalance!$D$63,$F$2:$G$48,2,FALSE)+ROW()-2)),\"\")","v":{"$error":"#N/A"}},{"$f":"IF(INDIRECT(\"c\" & (VLOOKUP(Rebalance!$D$64,$F$2:$G$48,2,FALSE)+ROW()-2))=Rebalance!$D$64,INDIRECT(\"a\" & (VLOOKUP(Rebalance!$D$64,$F$2:$G$48,2,FALSE)+ROW()-2)),\"\")","v":{"$error":"#N/A"}},{"$f":"IF(INDIRECT(\"c\" & (VLOOKUP(Rebalance!$D$65,$F$2:$G$48,2,FALSE)+ROW()-2))=Rebalance!$D$65,INDIRECT(\"a\" & (VLOOKUP(Rebalance!$D$65,$F$2:$G$48,2,FALSE)+ROW()-2)),\"\")","v":{"$error":"#N/A"}},{"$f":"IF(INDIRECT(\"c\" & (VLOOKUP(Rebalance!$D$66,$F$2:$G$48,2,FALSE)+ROW()-2))=Rebalance!$D$66,INDIRECT(\"a\" & (VLOOKUP(Rebalance!$D$66,$F$2:$G$48,2,FALSE)+ROW()-2)),\"\")","v":{"$error":"#N/A"}}]
["Satrix MSCI World Equity Index Feeder Fund B2","SWEB2","Satrix Managers (RF) (Pty) Ltd",{"$f":"ROW()","v":550},null,null,{"$f":"VLOOKUP(F550,$C$2:$D$599,2,FALSE)","v":{"$error":"#N/A"}},{"$f":"IF(INDIRECT(\"c\" & (VLOOKUP(Rebalance!$D$26,$F$2:$G$48,2,FALSE)+ROW()-2))=Rebalance!$D$26,INDIRECT(\"a\" & (VLOOKUP(Rebalance!$D$26,$F$2:$G$48,2,FALSE)+ROW()-2)),\"\")","v":{"$error":"#N/A"}},{"$f":"IF(INDIRECT(\"c\" & (VLOOKUP(Rebalance!$D$27,$F$2:$G$48,2,FALSE)+ROW()-2))=Rebalance!$D$27,INDIRECT(\"a\" & (VLOOKUP(Rebalance!$D$27,$F$2:$G$48,2,FALSE)+ROW()-2)),\"\")","v":{"$error":"#N/A"}},{"$f":"IF(INDIRECT(\"c\" & (VLOOKUP(Rebalance!$D$28,$F$2:$G$48,2,FALSE)+ROW()-2))=Rebalance!$D$28,INDIRECT(\"a\" & (VLOOKUP(Rebalance!$D$28,$F$2:$G$48,2,FALSE)+ROW()-2)),\"\")","v":{"$error":"#N/A"}},{"$f":"IF(INDIRECT(\"c\" & (VLOOKUP(Rebalance!$D$29,$F$2:$G$48,2,FALSE)+ROW()-2))=Rebalance!$D$29,INDIRECT(\"a\" & (VLOOKUP(Rebalance!$D$29,$F$2:$G$48,2,FALSE)+ROW()-2)),\"\")","v":{"$error":"#N/A"}},{"$f":"IF(INDIRECT(\"c\" & (VLOOKUP(Rebalance!$D$30,$F$2:$G$48,2,FALSE)+ROW()-2))=Rebalance!$D$30,INDIRECT(\"a\" & (VLOOKUP(Rebalance!$D$30,$F$2:$G$48,2,FALSE)+ROW()-2)),\"\")","v":{"$error":"#N/A"}},{"$f":"IF(INDIRECT(\"c\" & (VLOOKUP(Rebalance!$D$31,$F$2:$G$48,2,FALSE)+ROW()-2))=Rebalance!$D$31,INDIRECT(\"a\" & (VLOOKUP(Rebalance!$D$31,$F$2:$G$48,2,FALSE)+ROW()-2)),\"\")","v":{"$error":"#N/A"}},{"$f":"IF(INDIRECT(\"c\" & (VLOOKUP(Rebalance!$D$32,$F$2:$G$48,2,FALSE)+ROW()-2))=Rebalance!$D$32,INDIRECT(\"a\" & (VLOOKUP(Rebalance!$D$32,$F$2:$G$48,2,FALSE)+ROW()-2)),\"\")","v":{"$error":"#N/A"}},{"$f":"IF(INDIRECT(\"c\" & (VLOOKUP(Rebalance!$D$33,$F$2:$G$48,2,FALSE)+ROW()-2))=Rebalance!$D$33,INDIRECT(\"a\" & (VLOOKUP(Rebalance!$D$33,$F$2:$G$48,2,FALSE)+ROW()-2)),\"\")","v":{"$error":"#N/A"}},{"$f":"IF(INDIRECT(\"c\" & (VLOOKUP(Rebalance!$D$34,$F$2:$G$48,2,FALSE)+ROW()-2))=Rebalance!$D$34,INDIRECT(\"a\" & (VLOOKUP(Rebalance!$D$34,$F$2:$G$48,2,FALSE)+ROW()-2)),\"\")","v":{"$error":"#N/A"}},{"$f":"IF(INDIRECT(\"c\" & (VLOOKUP(Rebalance!$D$35,$F$2:$G$48,2,FALSE)+ROW()-2))=Rebalance!$D$35,INDIRECT(\"a\" & (VLOOKUP(Rebalance!$D$35,$F$2:$G$48,2,FALSE)+ROW()-2)),\"\")","v":{"$error":"#N/A"}},{"$f":"IF(INDIRECT(\"c\" & (VLOOKUP(Rebalance!$D$36,$F$2:$G$48,2,FALSE)+ROW()-2))=Rebalance!$D$36,INDIRECT(\"a\" & (VLOOKUP(Rebalance!$D$36,$F$2:$G$48,2,FALSE)+ROW()-2)),\"\")","v":{"$error":"#N/A"}},{"$f":"IF(INDIRECT(\"c\" & (VLOOKUP(Rebalance!$D$37,$F$2:$G$48,2,FALSE)+ROW()-2))=Rebalance!$D$37,INDIRECT(\"a\" & (VLOOKUP(Rebalance!$D$37,$F$2:$G$48,2,FALSE)+ROW()-2)),\"\")","v":{"$error":"#N/A"}},{"$f":"IF(INDIRECT(\"c\" & (VLOOKUP(Rebalance!$D$38,$F$2:$G$48,2,FALSE)+ROW()-2))=Rebalance!$D$38,INDIRECT(\"a\" & (VLOOKUP(Rebalance!$D$38,$F$2:$G$48,2,FALSE)+ROW()-2)),\"\")","v":{"$error":"#N/A"}},{"$f":"IF(INDIRECT(\"c\" & (VLOOKUP(Rebalance!$D$39,$F$2:$G$48,2,FALSE)+ROW()-2))=Rebalance!$D$39,INDIRECT(\"a\" & (VLOOKUP(Rebalance!$D$39,$F$2:$G$48,2,FALSE)+ROW()-2)),\"\")","v":{"$error":"#N/A"}},{"$f":"IF(INDIRECT(\"c\" & (VLOOKUP(Rebalance!$D$40,$F$2:$G$48,2,FALSE)+ROW()-2))=Rebalance!$D$40,INDIRECT(\"a\" & (VLOOKUP(Rebalance!$D$40,$F$2:$G$48,2,FALSE)+ROW()-2)),\"\")","v":{"$error":"#N/A"}},{"$f":"IF(INDIRECT(\"c\" & (VLOOKUP(Rebalance!$D$52,$F$2:$G$48,2,FALSE)+ROW()-2))=Rebalance!$D$52,INDIRECT(\"a\" & (VLOOKUP(Rebalance!$D$52,$F$2:$G$48,2,FALSE)+ROW()-2)),\"\")","v":{"$error":"#N/A"}},{"$f":"IF(INDIRECT(\"c\" & (VLOOKUP(Rebalance!$D$53,$F$2:$G$48,2,FALSE)+ROW()-2))=Rebalance!$D$53,INDIRECT(\"a\" & (VLOOKUP(Rebalance!$D$53,$F$2:$G$48,2,FALSE)+ROW()-2)),\"\")","v":{"$error":"#N/A"}},{"$f":"IF(INDIRECT(\"c\" & (VLOOKUP(Rebalance!$D$54,$F$2:$G$48,2,FALSE)+ROW()-2))=Rebalance!$D$54,INDIRECT(\"a\" & (VLOOKUP(Rebalance!$D$54,$F$2:$G$48,2,FALSE)+ROW()-2)),\"\")","v":{"$error":"#N/A"}},{"$f":"IF(INDIRECT(\"c\" & (VLOOKUP(Rebalance!$D$55,$F$2:$G$48,2,FALSE)+ROW()-2))=Rebalance!$D$55,INDIRECT(\"a\" & (VLOOKUP(Rebalance!$D$55,$F$2:$G$48,2,FALSE)+ROW()-2)),\"\")","v":{"$error":"#N/A"}},{"$f":"IF(INDIRECT(\"c\" & (VLOOKUP(Rebalance!$D$56,$F$2:$G$48,2,FALSE)+ROW()-2))=Rebalance!$D$56,INDIRECT(\"a\" & (VLOOKUP(Rebalance!$D$56,$F$2:$G$48,2,FALSE)+ROW()-2)),\"\")","v":{"$error":"#N/A"}},{"$f":"IF(INDIRECT(\"c\" & (VLOOKUP(Rebalance!$D$57,$F$2:$G$48,2,FALSE)+ROW()-2))=Rebalance!$D$57,INDIRECT(\"a\" & (VLOOKUP(Rebalance!$D$57,$F$2:$G$48,2,FALSE)+ROW()-2)),\"\")","v":{"$error":"#N/A"}},{"$f":"IF(INDIRECT(\"c\" & (VLOOKUP(Rebalance!$D$58,$F$2:$G$48,2,FALSE)+ROW()-2))=Rebalance!$D$58,INDIRECT(\"a\" & (VLOOKUP(Rebalance!$D$58,$F$2:$G$48,2,FALSE)+ROW()-2)),\"\")","v":{"$error":"#N/A"}},{"$f":"IF(INDIRECT(\"c\" & (VLOOKUP(Rebalance!$D$59,$F$2:$G$48,2,FALSE)+ROW()-2))=Rebalance!$D$59,INDIRECT(\"a\" & (VLOOKUP(Rebalance!$D$59,$F$2:$G$48,2,FALSE)+ROW()-2)),\"\")","v":{"$error":"#N/A"}},{"$f":"IF(INDIRECT(\"c\" & (VLOOKUP(Rebalance!$D$60,$F$2:$G$48,2,FALSE)+ROW()-2))=Rebalance!$D$60,INDIRECT(\"a\" & (VLOOKUP(Rebalance!$D$60,$F$2:$G$48,2,FALSE)+ROW()-2)),\"\")","v":{"$error":"#N/A"}},{"$f":"IF(INDIRECT(\"c\" & (VLOOKUP(Rebalance!$D$61,$F$2:$G$48,2,FALSE)+ROW()-2))=Rebalance!$D$61,INDIRECT(\"a\" & (VLOOKUP(Rebalance!$D$61,$F$2:$G$48,2,FALSE)+ROW()-2)),\"\")","v":{"$error":"#N/A"}},{"$f":"IF(INDIRECT(\"c\" & (VLOOKUP(Rebalance!$D$62,$F$2:$G$48,2,FALSE)+ROW()-2))=Rebalance!$D$62,INDIRECT(\"a\" & (VLOOKUP(Rebalance!$D$62,$F$2:$G$48,2,FALSE)+ROW()-2)),\"\")","v":{"$error":"#N/A"}},{"$f":"IF(INDIRECT(\"c\" & (VLOOKUP(Rebalance!$D$63,$F$2:$G$48,2,FALSE)+ROW()-2))=Rebalance!$D$63,INDIRECT(\"a\" & (VLOOKUP(Rebalance!$D$63,$F$2:$G$48,2,FALSE)+ROW()-2)),\"\")","v":{"$error":"#N/A"}},{"$f":"IF(INDIRECT(\"c\" & (VLOOKUP(Rebalance!$D$64,$F$2:$G$48,2,FALSE)+ROW()-2))=Rebalance!$D$64,INDIRECT(\"a\" & (VLOOKUP(Rebalance!$D$64,$F$2:$G$48,2,FALSE)+ROW()-2)),\"\")","v":{"$error":"#N/A"}},{"$f":"IF(INDIRECT(\"c\" & (VLOOKUP(Rebalance!$D$65,$F$2:$G$48,2,FALSE)+ROW()-2))=Rebalance!$D$65,INDIRECT(\"a\" & (VLOOKUP(Rebalance!$D$65,$F$2:$G$48,2,FALSE)+ROW()-2)),\"\")","v":{"$error":"#N/A"}},{"$f":"IF(INDIRECT(\"c\" & (VLOOKUP(Rebalance!$D$66,$F$2:$G$48,2,FALSE)+ROW()-2))=Rebalance!$D$66,INDIRECT(\"a\" & (VLOOKUP(Rebalance!$D$66,$F$2:$G$48,2,FALSE)+ROW()-2)),\"\")","v":{"$error":"#N/A"}}]
["Satrix Property Index Fund B1","STPB1","Satrix Managers (RF) (Pty) Ltd",{"$f":"ROW()","v":551},null,null,{"$f":"VLOOKUP(F551,$C$2:$D$599,2,FALSE)","v":{"$error":"#N/A"}},{"$f":"IF(INDIRECT(\"c\" & (VLOOKUP(Rebalance!$D$26,$F$2:$G$48,2,FALSE)+ROW()-2))=Rebalance!$D$26,INDIRECT(\"a\" & (VLOOKUP(Rebalance!$D$26,$F$2:$G$48,2,FALSE)+ROW()-2)),\"\")","v":{"$error":"#N/A"}},{"$f":"IF(INDIRECT(\"c\" & (VLOOKUP(Rebalance!$D$27,$F$2:$G$48,2,FALSE)+ROW()-2))=Rebalance!$D$27,INDIRECT(\"a\" & (VLOOKUP(Rebalance!$D$27,$F$2:$G$48,2,FALSE)+ROW()-2)),\"\")","v":{"$error":"#N/A"}},{"$f":"IF(INDIRECT(\"c\" & (VLOOKUP(Rebalance!$D$28,$F$2:$G$48,2,FALSE)+ROW()-2))=Rebalance!$D$28,INDIRECT(\"a\" & (VLOOKUP(Rebalance!$D$28,$F$2:$G$48,2,FALSE)+ROW()-2)),\"\")","v":{"$error":"#N/A"}},{"$f":"IF(INDIRECT(\"c\" & (VLOOKUP(Rebalance!$D$29,$F$2:$G$48,2,FALSE)+ROW()-2))=Rebalance!$D$29,INDIRECT(\"a\" & (VLOOKUP(Rebalance!$D$29,$F$2:$G$48,2,FALSE)+ROW()-2)),\"\")","v":{"$error":"#N/A"}},{"$f":"IF(INDIRECT(\"c\" & (VLOOKUP(Rebalance!$D$30,$F$2:$G$48,2,FALSE)+ROW()-2))=Rebalance!$D$30,INDIRECT(\"a\" & (VLOOKUP(Rebalance!$D$30,$F$2:$G$48,2,FALSE)+ROW()-2)),\"\")","v":{"$error":"#N/A"}},{"$f":"IF(INDIRECT(\"c\" & (VLOOKUP(Rebalance!$D$31,$F$2:$G$48,2,FALSE)+ROW()-2))=Rebalance!$D$31,INDIRECT(\"a\" & (VLOOKUP(Rebalance!$D$31,$F$2:$G$48,2,FALSE)+ROW()-2)),\"\")","v":{"$error":"#N/A"}},{"$f":"IF(INDIRECT(\"c\" & (VLOOKUP(Rebalance!$D$32,$F$2:$G$48,2,FALSE)+ROW()-2))=Rebalance!$D$32,INDIRECT(\"a\" & (VLOOKUP(Rebalance!$D$32,$F$2:$G$48,2,FALSE)+ROW()-2)),\"\")","v":{"$error":"#N/A"}},{"$f":"IF(INDIRECT(\"c\" & (VLOOKUP(Rebalance!$D$33,$F$2:$G$48,2,FALSE)+ROW()-2))=Rebalance!$D$33,INDIRECT(\"a\" & (VLOOKUP(Rebalance!$D$33,$F$2:$G$48,2,FALSE)+ROW()-2)),\"\")","v":{"$error":"#N/A"}},{"$f":"IF(INDIRECT(\"c\" & (VLOOKUP(Rebalance!$D$34,$F$2:$G$48,2,FALSE)+ROW()-2))=Rebalance!$D$34,INDIRECT(\"a\" & (VLOOKUP(Rebalance!$D$34,$F$2:$G$48,2,FALSE)+ROW()-2)),\"\")","v":{"$error":"#N/A"}},{"$f":"IF(INDIRECT(\"c\" & (VLOOKUP(Rebalance!$D$35,$F$2:$G$48,2,FALSE)+ROW()-2))=Rebalance!$D$35,INDIRECT(\"a\" & (VLOOKUP(Rebalance!$D$35,$F$2:$G$48,2,FALSE)+ROW()-2)),\"\")","v":{"$error":"#N/A"}},{"$f":"IF(INDIRECT(\"c\" & (VLOOKUP(Rebalance!$D$36,$F$2:$G$48,2,FALSE)+ROW()-2))=Rebalance!$D$36,INDIRECT(\"a\" & (VLOOKUP(Rebalance!$D$36,$F$2:$G$48,2,FALSE)+ROW()-2)),\"\")","v":{"$error":"#N/A"}},{"$f":"IF(INDIRECT(\"c\" & (VLOOKUP(Rebalance!$D$37,$F$2:$G$48,2,FALSE)+ROW()-2))=Rebalance!$D$37,INDIRECT(\"a\" & (VLOOKUP(Rebalance!$D$37,$F$2:$G$48,2,FALSE)+ROW()-2)),\"\")","v":{"$error":"#N/A"}},{"$f":"IF(INDIRECT(\"c\" & (VLOOKUP(Rebalance!$D$38,$F$2:$G$48,2,FALSE)+ROW()-2))=Rebalance!$D$38,INDIRECT(\"a\" & (VLOOKUP(Rebalance!$D$38,$F$2:$G$48,2,FALSE)+ROW()-2)),\"\")","v":{"$error":"#N/A"}},{"$f":"IF(INDIRECT(\"c\" & (VLOOKUP(Rebalance!$D$39,$F$2:$G$48,2,FALSE)+ROW()-2))=Rebalance!$D$39,INDIRECT(\"a\" & (VLOOKUP(Rebalance!$D$39,$F$2:$G$48,2,FALSE)+ROW()-2)),\"\")","v":{"$error":"#N/A"}},{"$f":"IF(INDIRECT(\"c\" & (VLOOKUP(Rebalance!$D$40,$F$2:$G$48,2,FALSE)+ROW()-2))=Rebalance!$D$40,INDIRECT(\"a\" & (VLOOKUP(Rebalance!$D$40,$F$2:$G$48,2,FALSE)+ROW()-2)),\"\")","v":{"$error":"#N/A"}},{"$f":"IF(INDIRECT(\"c\" & (VLOOKUP(Rebalance!$D$52,$F$2:$G$48,2,FALSE)+ROW()-2))=Rebalance!$D$52,INDIRECT(\"a\" & (VLOOKUP(Rebalance!$D$52,$F$2:$G$48,2,FALSE)+ROW()-2)),\"\")","v":{"$error":"#N/A"}},{"$f":"IF(INDIRECT(\"c\" & (VLOOKUP(Rebalance!$D$53,$F$2:$G$48,2,FALSE)+ROW()-2))=Rebalance!$D$53,INDIRECT(\"a\" & (VLOOKUP(Rebalance!$D$53,$F$2:$G$48,2,FALSE)+ROW()-2)),\"\")","v":{"$error":"#N/A"}},{"$f":"IF(INDIRECT(\"c\" & (VLOOKUP(Rebalance!$D$54,$F$2:$G$48,2,FALSE)+ROW()-2))=Rebalance!$D$54,INDIRECT(\"a\" & (VLOOKUP(Rebalance!$D$54,$F$2:$G$48,2,FALSE)+ROW()-2)),\"\")","v":{"$error":"#N/A"}},{"$f":"IF(INDIRECT(\"c\" & (VLOOKUP(Rebalance!$D$55,$F$2:$G$48,2,FALSE)+ROW()-2))=Rebalance!$D$55,INDIRECT(\"a\" & (VLOOKUP(Rebalance!$D$55,$F$2:$G$48,2,FALSE)+ROW()-2)),\"\")","v":{"$error":"#N/A"}},{"$f":"IF(INDIRECT(\"c\" & (VLOOKUP(Rebalance!$D$56,$F$2:$G$48,2,FALSE)+ROW()-2))=Rebalance!$D$56,INDIRECT(\"a\" & (VLOOKUP(Rebalance!$D$56,$F$2:$G$48,2,FALSE)+ROW()-2)),\"\")","v":{"$error":"#N/A"}},{"$f":"IF(INDIRECT(\"c\" & (VLOOKUP(Rebalance!$D$57,$F$2:$G$48,2,FALSE)+ROW()-2))=Rebalance!$D$57,INDIRECT(\"a\" & (VLOOKUP(Rebalance!$D$57,$F$2:$G$48,2,FALSE)+ROW()-2)),\"\")","v":{"$error":"#N/A"}},{"$f":"IF(INDIRECT(\"c\" & (VLOOKUP(Rebalance!$D$58,$F$2:$G$48,2,FALSE)+ROW()-2))=Rebalance!$D$58,INDIRECT(\"a\" & (VLOOKUP(Rebalance!$D$58,$F$2:$G$48,2,FALSE)+ROW()-2)),\"\")","v":{"$error":"#N/A"}},{"$f":"IF(INDIRECT(\"c\" & (VLOOKUP(Rebalance!$D$59,$F$2:$G$48,2,FALSE)+ROW()-2))=Rebalance!$D$59,INDIRECT(\"a\" & (VLOOKUP(Rebalance!$D$59,$F$2:$G$48,2,FALSE)+ROW()-2)),\"\")","v":{"$error":"#N/A"}},{"$f":"IF(INDIRECT(\"c\" & (VLOOKUP(Rebalance!$D$60,$F$2:$G$48,2,FALSE)+ROW()-2))=Rebalance!$D$60,INDIRECT(\"a\" & (VLOOKUP(Rebalance!$D$60,$F$2:$G$48,2,FALSE)+ROW()-2)),\"\")","v":{"$error":"#N/A"}},{"$f":"IF(INDIRECT(\"c\" & (VLOOKUP(Rebalance!$D$61,$F$2:$G$48,2,FALSE)+ROW()-2))=Rebalance!$D$61,INDIRECT(\"a\" & (VLOOKUP(Rebalance!$D$61,$F$2:$G$48,2,FALSE)+ROW()-2)),\"\")","v":{"$error":"#N/A"}},{"$f":"IF(INDIRECT(\"c\" & (VLOOKUP(Rebalance!$D$62,$F$2:$G$48,2,FALSE)+ROW()-2))=Rebalance!$D$62,INDIRECT(\"a\" & (VLOOKUP(Rebalance!$D$62,$F$2:$G$48,2,FALSE)+ROW()-2)),\"\")","v":{"$error":"#N/A"}},{"$f":"IF(INDIRECT(\"c\" & (VLOOKUP(Rebalance!$D$63,$F$2:$G$48,2,FALSE)+ROW()-2))=Rebalance!$D$63,INDIRECT(\"a\" & (VLOOKUP(Rebalance!$D$63,$F$2:$G$48,2,FALSE)+ROW()-2)),\"\")","v":{"$error":"#N/A"}},{"$f":"IF(INDIRECT(\"c\" & (VLOOKUP(Rebalance!$D$64,$F$2:$G$48,2,FALSE)+ROW()-2))=Rebalance!$D$64,INDIRECT(\"a\" & (VLOOKUP(Rebalance!$D$64,$F$2:$G$48,2,FALSE)+ROW()-2)),\"\")","v":{"$error":"#N/A"}},{"$f":"IF(INDIRECT(\"c\" & (VLOOKUP(Rebalance!$D$65,$F$2:$G$48,2,FALSE)+ROW()-2))=Rebalance!$D$65,INDIRECT(\"a\" & (VLOOKUP(Rebalance!$D$65,$F$2:$G$48,2,FALSE)+ROW()-2)),\"\")","v":{"$error":"#N/A"}},{"$f":"IF(INDIRECT(\"c\" & (VLOOKUP(Rebalance!$D$66,$F$2:$G$48,2,FALSE)+ROW()-2))=Rebalance!$D$66,INDIRECT(\"a\" & (VLOOKUP(Rebalance!$D$66,$F$2:$G$48,2,FALSE)+ROW()-2)),\"\")","v":{"$error":"#N/A"}}]
["Satrix RAFI 40 Index Fund B1","STRB1","Satrix Managers (RF) (Pty) Ltd",{"$f":"ROW()","v":552},null,null,{"$f":"VLOOKUP(F552,$C$2:$D$599,2,FALSE)","v":{"$error":"#N/A"}},{"$f":"IF(INDIRECT(\"c\" & (VLOOKUP(Rebalance!$D$26,$F$2:$G$48,2,FALSE)+ROW()-2))=Rebalance!$D$26,INDIRECT(\"a\" & (VLOOKUP(Rebalance!$D$26,$F$2:$G$48,2,FALSE)+ROW()-2)),\"\")","v":{"$error":"#N/A"}},{"$f":"IF(INDIRECT(\"c\" & (VLOOKUP(Rebalance!$D$27,$F$2:$G$48,2,FALSE)+ROW()-2))=Rebalance!$D$27,INDIRECT(\"a\" & (VLOOKUP(Rebalance!$D$27,$F$2:$G$48,2,FALSE)+ROW()-2)),\"\")","v":{"$error":"#N/A"}},{"$f":"IF(INDIRECT(\"c\" & (VLOOKUP(Rebalance!$D$28,$F$2:$G$48,2,FALSE)+ROW()-2))=Rebalance!$D$28,INDIRECT(\"a\" & (VLOOKUP(Rebalance!$D$28,$F$2:$G$48,2,FALSE)+ROW()-2)),\"\")","v":{"$error":"#N/A"}},{"$f":"IF(INDIRECT(\"c\" & (VLOOKUP(Rebalance!$D$29,$F$2:$G$48,2,FALSE)+ROW()-2))=Rebalance!$D$29,INDIRECT(\"a\" & (VLOOKUP(Rebalance!$D$29,$F$2:$G$48,2,FALSE)+ROW()-2)),\"\")","v":{"$error":"#N/A"}},{"$f":"IF(INDIRECT(\"c\" & (VLOOKUP(Rebalance!$D$30,$F$2:$G$48,2,FALSE)+ROW()-2))=Rebalance!$D$30,INDIRECT(\"a\" & (VLOOKUP(Rebalance!$D$30,$F$2:$G$48,2,FALSE)+ROW()-2)),\"\")","v":{"$error":"#N/A"}},{"$f":"IF(INDIRECT(\"c\" & (VLOOKUP(Rebalance!$D$31,$F$2:$G$48,2,FALSE)+ROW()-2))=Rebalance!$D$31,INDIRECT(\"a\" & (VLOOKUP(Rebalance!$D$31,$F$2:$G$48,2,FALSE)+ROW()-2)),\"\")","v":{"$error":"#N/A"}},{"$f":"IF(INDIRECT(\"c\" & (VLOOKUP(Rebalance!$D$32,$F$2:$G$48,2,FALSE)+ROW()-2))=Rebalance!$D$32,INDIRECT(\"a\" & (VLOOKUP(Rebalance!$D$32,$F$2:$G$48,2,FALSE)+ROW()-2)),\"\")","v":{"$error":"#N/A"}},{"$f":"IF(INDIRECT(\"c\" & (VLOOKUP(Rebalance!$D$33,$F$2:$G$48,2,FALSE)+ROW()-2))=Rebalance!$D$33,INDIRECT(\"a\" & (VLOOKUP(Rebalance!$D$33,$F$2:$G$48,2,FALSE)+ROW()-2)),\"\")","v":{"$error":"#N/A"}},{"$f":"IF(INDIRECT(\"c\" & (VLOOKUP(Rebalance!$D$34,$F$2:$G$48,2,FALSE)+ROW()-2))=Rebalance!$D$34,INDIRECT(\"a\" & (VLOOKUP(Rebalance!$D$34,$F$2:$G$48,2,FALSE)+ROW()-2)),\"\")","v":{"$error":"#N/A"}},{"$f":"IF(INDIRECT(\"c\" & (VLOOKUP(Rebalance!$D$35,$F$2:$G$48,2,FALSE)+ROW()-2))=Rebalance!$D$35,INDIRECT(\"a\" & (VLOOKUP(Rebalance!$D$35,$F$2:$G$48,2,FALSE)+ROW()-2)),\"\")","v":{"$error":"#N/A"}},{"$f":"IF(INDIRECT(\"c\" & (VLOOKUP(Rebalance!$D$36,$F$2:$G$48,2,FALSE)+ROW()-2))=Rebalance!$D$36,INDIRECT(\"a\" & (VLOOKUP(Rebalance!$D$36,$F$2:$G$48,2,FALSE)+ROW()-2)),\"\")","v":{"$error":"#N/A"}},{"$f":"IF(INDIRECT(\"c\" & (VLOOKUP(Rebalance!$D$37,$F$2:$G$48,2,FALSE)+ROW()-2))=Rebalance!$D$37,INDIRECT(\"a\" & (VLOOKUP(Rebalance!$D$37,$F$2:$G$48,2,FALSE)+ROW()-2)),\"\")","v":{"$error":"#N/A"}},{"$f":"IF(INDIRECT(\"c\" & (VLOOKUP(Rebalance!$D$38,$F$2:$G$48,2,FALSE)+ROW()-2))=Rebalance!$D$38,INDIRECT(\"a\" & (VLOOKUP(Rebalance!$D$38,$F$2:$G$48,2,FALSE)+ROW()-2)),\"\")","v":{"$error":"#N/A"}},{"$f":"IF(INDIRECT(\"c\" & (VLOOKUP(Rebalance!$D$39,$F$2:$G$48,2,FALSE)+ROW()-2))=Rebalance!$D$39,INDIRECT(\"a\" & (VLOOKUP(Rebalance!$D$39,$F$2:$G$48,2,FALSE)+ROW()-2)),\"\")","v":{"$error":"#N/A"}},{"$f":"IF(INDIRECT(\"c\" & (VLOOKUP(Rebalance!$D$40,$F$2:$G$48,2,FALSE)+ROW()-2))=Rebalance!$D$40,INDIRECT(\"a\" & (VLOOKUP(Rebalance!$D$40,$F$2:$G$48,2,FALSE)+ROW()-2)),\"\")","v":{"$error":"#N/A"}},{"$f":"IF(INDIRECT(\"c\" & (VLOOKUP(Rebalance!$D$52,$F$2:$G$48,2,FALSE)+ROW()-2))=Rebalance!$D$52,INDIRECT(\"a\" & (VLOOKUP(Rebalance!$D$52,$F$2:$G$48,2,FALSE)+ROW()-2)),\"\")","v":{"$error":"#N/A"}},{"$f":"IF(INDIRECT(\"c\" & (VLOOKUP(Rebalance!$D$53,$F$2:$G$48,2,FALSE)+ROW()-2))=Rebalance!$D$53,INDIRECT(\"a\" & (VLOOKUP(Rebalance!$D$53,$F$2:$G$48,2,FALSE)+ROW()-2)),\"\")","v":{"$error":"#N/A"}},{"$f":"IF(INDIRECT(\"c\" & (VLOOKUP(Rebalance!$D$54,$F$2:$G$48,2,FALSE)+ROW()-2))=Rebalance!$D$54,INDIRECT(\"a\" & (VLOOKUP(Rebalance!$D$54,$F$2:$G$48,2,FALSE)+ROW()-2)),\"\")","v":{"$error":"#N/A"}},{"$f":"IF(INDIRECT(\"c\" & (VLOOKUP(Rebalance!$D$55,$F$2:$G$48,2,FALSE)+ROW()-2))=Rebalance!$D$55,INDIRECT(\"a\" & (VLOOKUP(Rebalance!$D$55,$F$2:$G$48,2,FALSE)+ROW()-2)),\"\")","v":{"$error":"#N/A"}},{"$f":"IF(INDIRECT(\"c\" & (VLOOKUP(Rebalance!$D$56,$F$2:$G$48,2,FALSE)+ROW()-2))=Rebalance!$D$56,INDIRECT(\"a\" & (VLOOKUP(Rebalance!$D$56,$F$2:$G$48,2,FALSE)+ROW()-2)),\"\")","v":{"$error":"#N/A"}},{"$f":"IF(INDIRECT(\"c\" & (VLOOKUP(Rebalance!$D$57,$F$2:$G$48,2,FALSE)+ROW()-2))=Rebalance!$D$57,INDIRECT(\"a\" & (VLOOKUP(Rebalance!$D$57,$F$2:$G$48,2,FALSE)+ROW()-2)),\"\")","v":{"$error":"#N/A"}},{"$f":"IF(INDIRECT(\"c\" & (VLOOKUP(Rebalance!$D$58,$F$2:$G$48,2,FALSE)+ROW()-2))=Rebalance!$D$58,INDIRECT(\"a\" & (VLOOKUP(Rebalance!$D$58,$F$2:$G$48,2,FALSE)+ROW()-2)),\"\")","v":{"$error":"#N/A"}},{"$f":"IF(INDIRECT(\"c\" & (VLOOKUP(Rebalance!$D$59,$F$2:$G$48,2,FALSE)+ROW()-2))=Rebalance!$D$59,INDIRECT(\"a\" & (VLOOKUP(Rebalance!$D$59,$F$2:$G$48,2,FALSE)+ROW()-2)),\"\")","v":{"$error":"#N/A"}},{"$f":"IF(INDIRECT(\"c\" & (VLOOKUP(Rebalance!$D$60,$F$2:$G$48,2,FALSE)+ROW()-2))=Rebalance!$D$60,INDIRECT(\"a\" & (VLOOKUP(Rebalance!$D$60,$F$2:$G$48,2,FALSE)+ROW()-2)),\"\")","v":{"$error":"#N/A"}},{"$f":"IF(INDIRECT(\"c\" & (VLOOKUP(Rebalance!$D$61,$F$2:$G$48,2,FALSE)+ROW()-2))=Rebalance!$D$61,INDIRECT(\"a\" & (VLOOKUP(Rebalance!$D$61,$F$2:$G$48,2,FALSE)+ROW()-2)),\"\")","v":{"$error":"#N/A"}},{"$f":"IF(INDIRECT(\"c\" & (VLOOKUP(Rebalance!$D$62,$F$2:$G$48,2,FALSE)+ROW()-2))=Rebalance!$D$62,INDIRECT(\"a\" & (VLOOKUP(Rebalance!$D$62,$F$2:$G$48,2,FALSE)+ROW()-2)),\"\")","v":{"$error":"#N/A"}},{"$f":"IF(INDIRECT(\"c\" & (VLOOKUP(Rebalance!$D$63,$F$2:$G$48,2,FALSE)+ROW()-2))=Rebalance!$D$63,INDIRECT(\"a\" & (VLOOKUP(Rebalance!$D$63,$F$2:$G$48,2,FALSE)+ROW()-2)),\"\")","v":{"$error":"#N/A"}},{"$f":"IF(INDIRECT(\"c\" & (VLOOKUP(Rebalance!$D$64,$F$2:$G$48,2,FALSE)+ROW()-2))=Rebalance!$D$64,INDIRECT(\"a\" & (VLOOKUP(Rebalance!$D$64,$F$2:$G$48,2,FALSE)+ROW()-2)),\"\")","v":{"$error":"#N/A"}},{"$f":"IF(INDIRECT(\"c\" & (VLOOKUP(Rebalance!$D$65,$F$2:$G$48,2,FALSE)+ROW()-2))=Rebalance!$D$65,INDIRECT(\"a\" & (VLOOKUP(Rebalance!$D$65,$F$2:$G$48,2,FALSE)+ROW()-2)),\"\")","v":{"$error":"#N/A"}},{"$f":"IF(INDIRECT(\"c\" & (VLOOKUP(Rebalance!$D$66,$F$2:$G$48,2,FALSE)+ROW()-2))=Rebalance!$D$66,INDIRECT(\"a\" & (VLOOKUP(Rebalance!$D$66,$F$2:$G$48,2,FALSE)+ROW()-2)),\"\")","v":{"$error":"#N/A"}}]
["Satrix Top 40 Index Fund B1","STFB1","Satrix Managers (RF) (Pty) Ltd",{"$f":"ROW()","v":553},null,null,{"$f":"VLOOKUP(F553,$C$2:$D$599,2,FALSE)","v":{"$error":"#N/A"}},{"$f":"IF(INDIRECT(\"c\" & (VLOOKUP(Rebalance!$D$26,$F$2:$G$48,2,FALSE)+ROW()-2))=Rebalance!$D$26,INDIRECT(\"a\" & (VLOOKUP(Rebalance!$D$26,$F$2:$G$48,2,FALSE)+ROW()-2)),\"\")","v":{"$error":"#N/A"}},{"$f":"IF(INDIRECT(\"c\" & (VLOOKUP(Rebalance!$D$27,$F$2:$G$48,2,FALSE)+ROW()-2))=Rebalance!$D$27,INDIRECT(\"a\" & (VLOOKUP(Rebalance!$D$27,$F$2:$G$48,2,FALSE)+ROW()-2)),\"\")","v":{"$error":"#N/A"}},{"$f":"IF(INDIRECT(\"c\" & (VLOOKUP(Rebalance!$D$28,$F$2:$G$48,2,FALSE)+ROW()-2))=Rebalance!$D$28,INDIRECT(\"a\" & (VLOOKUP(Rebalance!$D$28,$F$2:$G$48,2,FALSE)+ROW()-2)),\"\")","v":{"$error":"#N/A"}},{"$f":"IF(INDIRECT(\"c\" & (VLOOKUP(Rebalance!$D$29,$F$2:$G$48,2,FALSE)+ROW()-2))=Rebalance!$D$29,INDIRECT(\"a\" & (VLOOKUP(Rebalance!$D$29,$F$2:$G$48,2,FALSE)+ROW()-2)),\"\")","v":{"$error":"#N/A"}},{"$f":"IF(INDIRECT(\"c\" & (VLOOKUP(Rebalance!$D$30,$F$2:$G$48,2,FALSE)+ROW()-2))=Rebalance!$D$30,INDIRECT(\"a\" & (VLOOKUP(Rebalance!$D$30,$F$2:$G$48,2,FALSE)+ROW()-2)),\"\")","v":{"$error":"#N/A"}},{"$f":"IF(INDIRECT(\"c\" & (VLOOKUP(Rebalance!$D$31,$F$2:$G$48,2,FALSE)+ROW()-2))=Rebalance!$D$31,INDIRECT(\"a\" & (VLOOKUP(Rebalance!$D$31,$F$2:$G$48,2,FALSE)+ROW()-2)),\"\")","v":{"$error":"#N/A"}},{"$f":"IF(INDIRECT(\"c\" & (VLOOKUP(Rebalance!$D$32,$F$2:$G$48,2,FALSE)+ROW()-2))=Rebalance!$D$32,INDIRECT(\"a\" & (VLOOKUP(Rebalance!$D$32,$F$2:$G$48,2,FALSE)+ROW()-2)),\"\")","v":{"$error":"#N/A"}},{"$f":"IF(INDIRECT(\"c\" & (VLOOKUP(Rebalance!$D$33,$F$2:$G$48,2,FALSE)+ROW()-2))=Rebalance!$D$33,INDIRECT(\"a\" & (VLOOKUP(Rebalance!$D$33,$F$2:$G$48,2,FALSE)+ROW()-2)),\"\")","v":{"$error":"#N/A"}},{"$f":"IF(INDIRECT(\"c\" & (VLOOKUP(Rebalance!$D$34,$F$2:$G$48,2,FALSE)+ROW()-2))=Rebalance!$D$34,INDIRECT(\"a\" & (VLOOKUP(Rebalance!$D$34,$F$2:$G$48,2,FALSE)+ROW()-2)),\"\")","v":{"$error":"#N/A"}},{"$f":"IF(INDIRECT(\"c\" & (VLOOKUP(Rebalance!$D$35,$F$2:$G$48,2,FALSE)+ROW()-2))=Rebalance!$D$35,INDIRECT(\"a\" & (VLOOKUP(Rebalance!$D$35,$F$2:$G$48,2,FALSE)+ROW()-2)),\"\")","v":{"$error":"#N/A"}},{"$f":"IF(INDIRECT(\"c\" & (VLOOKUP(Rebalance!$D$36,$F$2:$G$48,2,FALSE)+ROW()-2))=Rebalance!$D$36,INDIRECT(\"a\" & (VLOOKUP(Rebalance!$D$36,$F$2:$G$48,2,FALSE)+ROW()-2)),\"\")","v":{"$error":"#N/A"}},{"$f":"IF(INDIRECT(\"c\" & (VLOOKUP(Rebalance!$D$37,$F$2:$G$48,2,FALSE)+ROW()-2))=Rebalance!$D$37,INDIRECT(\"a\" & (VLOOKUP(Rebalance!$D$37,$F$2:$G$48,2,FALSE)+ROW()-2)),\"\")","v":{"$error":"#N/A"}},{"$f":"IF(INDIRECT(\"c\" & (VLOOKUP(Rebalance!$D$38,$F$2:$G$48,2,FALSE)+ROW()-2))=Rebalance!$D$38,INDIRECT(\"a\" & (VLOOKUP(Rebalance!$D$38,$F$2:$G$48,2,FALSE)+ROW()-2)),\"\")","v":{"$error":"#N/A"}},{"$f":"IF(INDIRECT(\"c\" & (VLOOKUP(Rebalance!$D$39,$F$2:$G$48,2,FALSE)+ROW()-2))=Rebalance!$D$39,INDIRECT(\"a\" & (VLOOKUP(Rebalance!$D$39,$F$2:$G$48,2,FALSE)+ROW()-2)),\"\")","v":{"$error":"#N/A"}},{"$f":"IF(INDIRECT(\"c\" & (VLOOKUP(Rebalance!$D$40,$F$2:$G$48,2,FALSE)+ROW()-2))=Rebalance!$D$40,INDIRECT(\"a\" & (VLOOKUP(Rebalance!$D$40,$F$2:$G$48,2,FALSE)+ROW()-2)),\"\")","v":{"$error":"#N/A"}},{"$f":"IF(INDIRECT(\"c\" & (VLOOKUP(Rebalance!$D$52,$F$2:$G$48,2,FALSE)+ROW()-2))=Rebalance!$D$52,INDIRECT(\"a\" & (VLOOKUP(Rebalance!$D$52,$F$2:$G$48,2,FALSE)+ROW()-2)),\"\")","v":{"$error":"#N/A"}},{"$f":"IF(INDIRECT(\"c\" & (VLOOKUP(Rebalance!$D$53,$F$2:$G$48,2,FALSE)+ROW()-2))=Rebalance!$D$53,INDIRECT(\"a\" & (VLOOKUP(Rebalance!$D$53,$F$2:$G$48,2,FALSE)+ROW()-2)),\"\")","v":{"$error":"#N/A"}},{"$f":"IF(INDIRECT(\"c\" & (VLOOKUP(Rebalance!$D$54,$F$2:$G$48,2,FALSE)+ROW()-2))=Rebalance!$D$54,INDIRECT(\"a\" & (VLOOKUP(Rebalance!$D$54,$F$2:$G$48,2,FALSE)+ROW()-2)),\"\")","v":{"$error":"#N/A"}},{"$f":"IF(INDIRECT(\"c\" & (VLOOKUP(Rebalance!$D$55,$F$2:$G$48,2,FALSE)+ROW()-2))=Rebalance!$D$55,INDIRECT(\"a\" & (VLOOKUP(Rebalance!$D$55,$F$2:$G$48,2,FALSE)+ROW()-2)),\"\")","v":{"$error":"#N/A"}},{"$f":"IF(INDIRECT(\"c\" & (VLOOKUP(Rebalance!$D$56,$F$2:$G$48,2,FALSE)+ROW()-2))=Rebalance!$D$56,INDIRECT(\"a\" & (VLOOKUP(Rebalance!$D$56,$F$2:$G$48,2,FALSE)+ROW()-2)),\"\")","v":{"$error":"#N/A"}},{"$f":"IF(INDIRECT(\"c\" & (VLOOKUP(Rebalance!$D$57,$F$2:$G$48,2,FALSE)+ROW()-2))=Rebalance!$D$57,INDIRECT(\"a\" & (VLOOKUP(Rebalance!$D$57,$F$2:$G$48,2,FALSE)+ROW()-2)),\"\")","v":{"$error":"#N/A"}},{"$f":"IF(INDIRECT(\"c\" & (VLOOKUP(Rebalance!$D$58,$F$2:$G$48,2,FALSE)+ROW()-2))=Rebalance!$D$58,INDIRECT(\"a\" & (VLOOKUP(Rebalance!$D$58,$F$2:$G$48,2,FALSE)+ROW()-2)),\"\")","v":{"$error":"#N/A"}},{"$f":"IF(INDIRECT(\"c\" & (VLOOKUP(Rebalance!$D$59,$F$2:$G$48,2,FALSE)+ROW()-2))=Rebalance!$D$59,INDIRECT(\"a\" & (VLOOKUP(Rebalance!$D$59,$F$2:$G$48,2,FALSE)+ROW()-2)),\"\")","v":{"$error":"#N/A"}},{"$f":"IF(INDIRECT(\"c\" & (VLOOKUP(Rebalance!$D$60,$F$2:$G$48,2,FALSE)+ROW()-2))=Rebalance!$D$60,INDIRECT(\"a\" & (VLOOKUP(Rebalance!$D$60,$F$2:$G$48,2,FALSE)+ROW()-2)),\"\")","v":{"$error":"#N/A"}},{"$f":"IF(INDIRECT(\"c\" & (VLOOKUP(Rebalance!$D$61,$F$2:$G$48,2,FALSE)+ROW()-2))=Rebalance!$D$61,INDIRECT(\"a\" & (VLOOKUP(Rebalance!$D$61,$F$2:$G$48,2,FALSE)+ROW()-2)),\"\")","v":{"$error":"#N/A"}},{"$f":"IF(INDIRECT(\"c\" & (VLOOKUP(Rebalance!$D$62,$F$2:$G$48,2,FALSE)+ROW()-2))=Rebalance!$D$62,INDIRECT(\"a\" & (VLOOKUP(Rebalance!$D$62,$F$2:$G$48,2,FALSE)+ROW()-2)),\"\")","v":{"$error":"#N/A"}},{"$f":"IF(INDIRECT(\"c\" & (VLOOKUP(Rebalance!$D$63,$F$2:$G$48,2,FALSE)+ROW()-2))=Rebalance!$D$63,INDIRECT(\"a\" & (VLOOKUP(Rebalance!$D$63,$F$2:$G$48,2,FALSE)+ROW()-2)),\"\")","v":{"$error":"#N/A"}},{"$f":"IF(INDIRECT(\"c\" & (VLOOKUP(Rebalance!$D$64,$F$2:$G$48,2,FALSE)+ROW()-2))=Rebalance!$D$64,INDIRECT(\"a\" & (VLOOKUP(Rebalance!$D$64,$F$2:$G$48,2,FALSE)+ROW()-2)),\"\")","v":{"$error":"#N/A"}},{"$f":"IF(INDIRECT(\"c\" & (VLOOKUP(Rebalance!$D$65,$F$2:$G$48,2,FALSE)+ROW()-2))=Rebalance!$D$65,INDIRECT(\"a\" & (VLOOKUP(Rebalance!$D$65,$F$2:$G$48,2,FALSE)+ROW()-2)),\"\")","v":{"$error":"#N/A"}},{"$f":"IF(INDIRECT(\"c\" & (VLOOKUP(Rebalance!$D$66,$F$2:$G$48,2,FALSE)+ROW()-2))=Rebalance!$D$66,INDIRECT(\"a\" & (VLOOKUP(Rebalance!$D$66,$F$2:$G$48,2,FALSE)+ROW()-2)),\"\")","v":{"$error":"#N/A"}}]
["Sygnia 4th Industrial Revolution Global Equity Fund A","SIRGA","Sygnia Asset Management (Pty) Limited",{"$f":"ROW()","v":554},null,null,{"$f":"VLOOKUP(F554,$C$2:$D$599,2,FALSE)","v":{"$error":"#N/A"}},{"$f":"IF(INDIRECT(\"c\" & (VLOOKUP(Rebalance!$D$26,$F$2:$G$48,2,FALSE)+ROW()-2))=Rebalance!$D$26,INDIRECT(\"a\" & (VLOOKUP(Rebalance!$D$26,$F$2:$G$48,2,FALSE)+ROW()-2)),\"\")","v":{"$error":"#N/A"}},{"$f":"IF(INDIRECT(\"c\" & (VLOOKUP(Rebalance!$D$27,$F$2:$G$48,2,FALSE)+ROW()-2))=Rebalance!$D$27,INDIRECT(\"a\" & (VLOOKUP(Rebalance!$D$27,$F$2:$G$48,2,FALSE)+ROW()-2)),\"\")","v":{"$error":"#N/A"}},{"$f":"IF(INDIRECT(\"c\" & (VLOOKUP(Rebalance!$D$28,$F$2:$G$48,2,FALSE)+ROW()-2))=Rebalance!$D$28,INDIRECT(\"a\" & (VLOOKUP(Rebalance!$D$28,$F$2:$G$48,2,FALSE)+ROW()-2)),\"\")","v":{"$error":"#N/A"}},{"$f":"IF(INDIRECT(\"c\" & (VLOOKUP(Rebalance!$D$29,$F$2:$G$48,2,FALSE)+ROW()-2))=Rebalance!$D$29,INDIRECT(\"a\" & (VLOOKUP(Rebalance!$D$29,$F$2:$G$48,2,FALSE)+ROW()-2)),\"\")","v":{"$error":"#N/A"}},{"$f":"IF(INDIRECT(\"c\" & (VLOOKUP(Rebalance!$D$30,$F$2:$G$48,2,FALSE)+ROW()-2))=Rebalance!$D$30,INDIRECT(\"a\" & (VLOOKUP(Rebalance!$D$30,$F$2:$G$48,2,FALSE)+ROW()-2)),\"\")","v":{"$error":"#N/A"}},{"$f":"IF(INDIRECT(\"c\" & (VLOOKUP(Rebalance!$D$31,$F$2:$G$48,2,FALSE)+ROW()-2))=Rebalance!$D$31,INDIRECT(\"a\" & (VLOOKUP(Rebalance!$D$31,$F$2:$G$48,2,FALSE)+ROW()-2)),\"\")","v":{"$error":"#N/A"}},{"$f":"IF(INDIRECT(\"c\" & (VLOOKUP(Rebalance!$D$32,$F$2:$G$48,2,FALSE)+ROW()-2))=Rebalance!$D$32,INDIRECT(\"a\" & (VLOOKUP(Rebalance!$D$32,$F$2:$G$48,2,FALSE)+ROW()-2)),\"\")","v":{"$error":"#N/A"}},{"$f":"IF(INDIRECT(\"c\" & (VLOOKUP(Rebalance!$D$33,$F$2:$G$48,2,FALSE)+ROW()-2))=Rebalance!$D$33,INDIRECT(\"a\" & (VLOOKUP(Rebalance!$D$33,$F$2:$G$48,2,FALSE)+ROW()-2)),\"\")","v":{"$error":"#N/A"}},{"$f":"IF(INDIRECT(\"c\" & (VLOOKUP(Rebalance!$D$34,$F$2:$G$48,2,FALSE)+ROW()-2))=Rebalance!$D$34,INDIRECT(\"a\" & (VLOOKUP(Rebalance!$D$34,$F$2:$G$48,2,FALSE)+ROW()-2)),\"\")","v":{"$error":"#N/A"}},{"$f":"IF(INDIRECT(\"c\" & (VLOOKUP(Rebalance!$D$35,$F$2:$G$48,2,FALSE)+ROW()-2))=Rebalance!$D$35,INDIRECT(\"a\" & (VLOOKUP(Rebalance!$D$35,$F$2:$G$48,2,FALSE)+ROW()-2)),\"\")","v":{"$error":"#N/A"}},{"$f":"IF(INDIRECT(\"c\" & (VLOOKUP(Rebalance!$D$36,$F$2:$G$48,2,FALSE)+ROW()-2))=Rebalance!$D$36,INDIRECT(\"a\" & (VLOOKUP(Rebalance!$D$36,$F$2:$G$48,2,FALSE)+ROW()-2)),\"\")","v":{"$error":"#N/A"}},{"$f":"IF(INDIRECT(\"c\" & (VLOOKUP(Rebalance!$D$37,$F$2:$G$48,2,FALSE)+ROW()-2))=Rebalance!$D$37,INDIRECT(\"a\" & (VLOOKUP(Rebalance!$D$37,$F$2:$G$48,2,FALSE)+ROW()-2)),\"\")","v":{"$error":"#N/A"}},{"$f":"IF(INDIRECT(\"c\" & (VLOOKUP(Rebalance!$D$38,$F$2:$G$48,2,FALSE)+ROW()-2))=Rebalance!$D$38,INDIRECT(\"a\" & (VLOOKUP(Rebalance!$D$38,$F$2:$G$48,2,FALSE)+ROW()-2)),\"\")","v":{"$error":"#N/A"}},{"$f":"IF(INDIRECT(\"c\" & (VLOOKUP(Rebalance!$D$39,$F$2:$G$48,2,FALSE)+ROW()-2))=Rebalance!$D$39,INDIRECT(\"a\" & (VLOOKUP(Rebalance!$D$39,$F$2:$G$48,2,FALSE)+ROW()-2)),\"\")","v":{"$error":"#N/A"}},{"$f":"IF(INDIRECT(\"c\" & (VLOOKUP(Rebalance!$D$40,$F$2:$G$48,2,FALSE)+ROW()-2))=Rebalance!$D$40,INDIRECT(\"a\" & (VLOOKUP(Rebalance!$D$40,$F$2:$G$48,2,FALSE)+ROW()-2)),\"\")","v":{"$error":"#N/A"}},{"$f":"IF(INDIRECT(\"c\" & (VLOOKUP(Rebalance!$D$52,$F$2:$G$48,2,FALSE)+ROW()-2))=Rebalance!$D$52,INDIRECT(\"a\" & (VLOOKUP(Rebalance!$D$52,$F$2:$G$48,2,FALSE)+ROW()-2)),\"\")","v":{"$error":"#N/A"}},{"$f":"IF(INDIRECT(\"c\" & (VLOOKUP(Rebalance!$D$53,$F$2:$G$48,2,FALSE)+ROW()-2))=Rebalance!$D$53,INDIRECT(\"a\" & (VLOOKUP(Rebalance!$D$53,$F$2:$G$48,2,FALSE)+ROW()-2)),\"\")","v":{"$error":"#N/A"}},{"$f":"IF(INDIRECT(\"c\" & (VLOOKUP(Rebalance!$D$54,$F$2:$G$48,2,FALSE)+ROW()-2))=Rebalance!$D$54,INDIRECT(\"a\" & (VLOOKUP(Rebalance!$D$54,$F$2:$G$48,2,FALSE)+ROW()-2)),\"\")","v":{"$error":"#N/A"}},{"$f":"IF(INDIRECT(\"c\" & (VLOOKUP(Rebalance!$D$55,$F$2:$G$48,2,FALSE)+ROW()-2))=Rebalance!$D$55,INDIRECT(\"a\" & (VLOOKUP(Rebalance!$D$55,$F$2:$G$48,2,FALSE)+ROW()-2)),\"\")","v":{"$error":"#N/A"}},{"$f":"IF(INDIRECT(\"c\" & (VLOOKUP(Rebalance!$D$56,$F$2:$G$48,2,FALSE)+ROW()-2))=Rebalance!$D$56,INDIRECT(\"a\" & (VLOOKUP(Rebalance!$D$56,$F$2:$G$48,2,FALSE)+ROW()-2)),\"\")","v":{"$error":"#N/A"}},{"$f":"IF(INDIRECT(\"c\" & (VLOOKUP(Rebalance!$D$57,$F$2:$G$48,2,FALSE)+ROW()-2))=Rebalance!$D$57,INDIRECT(\"a\" & (VLOOKUP(Rebalance!$D$57,$F$2:$G$48,2,FALSE)+ROW()-2)),\"\")","v":{"$error":"#N/A"}},{"$f":"IF(INDIRECT(\"c\" & (VLOOKUP(Rebalance!$D$58,$F$2:$G$48,2,FALSE)+ROW()-2))=Rebalance!$D$58,INDIRECT(\"a\" & (VLOOKUP(Rebalance!$D$58,$F$2:$G$48,2,FALSE)+ROW()-2)),\"\")","v":{"$error":"#N/A"}},{"$f":"IF(INDIRECT(\"c\" & (VLOOKUP(Rebalance!$D$59,$F$2:$G$48,2,FALSE)+ROW()-2))=Rebalance!$D$59,INDIRECT(\"a\" & (VLOOKUP(Rebalance!$D$59,$F$2:$G$48,2,FALSE)+ROW()-2)),\"\")","v":{"$error":"#N/A"}},{"$f":"IF(INDIRECT(\"c\" & (VLOOKUP(Rebalance!$D$60,$F$2:$G$48,2,FALSE)+ROW()-2))=Rebalance!$D$60,INDIRECT(\"a\" & (VLOOKUP(Rebalance!$D$60,$F$2:$G$48,2,FALSE)+ROW()-2)),\"\")","v":{"$error":"#N/A"}},{"$f":"IF(INDIRECT(\"c\" & (VLOOKUP(Rebalance!$D$61,$F$2:$G$48,2,FALSE)+ROW()-2))=Rebalance!$D$61,INDIRECT(\"a\" & (VLOOKUP(Rebalance!$D$61,$F$2:$G$48,2,FALSE)+ROW()-2)),\"\")","v":{"$error":"#N/A"}},{"$f":"IF(INDIRECT(\"c\" & (VLOOKUP(Rebalance!$D$62,$F$2:$G$48,2,FALSE)+ROW()-2))=Rebalance!$D$62,INDIRECT(\"a\" & (VLOOKUP(Rebalance!$D$62,$F$2:$G$48,2,FALSE)+ROW()-2)),\"\")","v":{"$error":"#N/A"}},{"$f":"IF(INDIRECT(\"c\" & (VLOOKUP(Rebalance!$D$63,$F$2:$G$48,2,FALSE)+ROW()-2))=Rebalance!$D$63,INDIRECT(\"a\" & (VLOOKUP(Rebalance!$D$63,$F$2:$G$48,2,FALSE)+ROW()-2)),\"\")","v":{"$error":"#N/A"}},{"$f":"IF(INDIRECT(\"c\" & (VLOOKUP(Rebalance!$D$64,$F$2:$G$48,2,FALSE)+ROW()-2))=Rebalance!$D$64,INDIRECT(\"a\" & (VLOOKUP(Rebalance!$D$64,$F$2:$G$48,2,FALSE)+ROW()-2)),\"\")","v":{"$error":"#N/A"}},{"$f":"IF(INDIRECT(\"c\" & (VLOOKUP(Rebalance!$D$65,$F$2:$G$48,2,FALSE)+ROW()-2))=Rebalance!$D$65,INDIRECT(\"a\" & (VLOOKUP(Rebalance!$D$65,$F$2:$G$48,2,FALSE)+ROW()-2)),\"\")","v":{"$error":"#N/A"}},{"$f":"IF(INDIRECT(\"c\" & (VLOOKUP(Rebalance!$D$66,$F$2:$G$48,2,FALSE)+ROW()-2))=Rebalance!$D$66,INDIRECT(\"a\" & (VLOOKUP(Rebalance!$D$66,$F$2:$G$48,2,FALSE)+ROW()-2)),\"\")","v":{"$error":"#N/A"}}]
["SBG Securities Conservative PSP","PSP1","SBG Securities",{"$f":"ROW()","v":555},null,null,{"$f":"VLOOKUP(F555,$C$2:$D$599,2,FALSE)","v":{"$error":"#N/A"}},{"$f":"IF(INDIRECT(\"c\" & (VLOOKUP(Rebalance!$D$26,$F$2:$G$48,2,FALSE)+ROW()-2))=Rebalance!$D$26,INDIRECT(\"a\" & (VLOOKUP(Rebalance!$D$26,$F$2:$G$48,2,FALSE)+ROW()-2)),\"\")","v":{"$error":"#N/A"}},{"$f":"IF(INDIRECT(\"c\" & (VLOOKUP(Rebalance!$D$27,$F$2:$G$48,2,FALSE)+ROW()-2))=Rebalance!$D$27,INDIRECT(\"a\" & (VLOOKUP(Rebalance!$D$27,$F$2:$G$48,2,FALSE)+ROW()-2)),\"\")","v":{"$error":"#N/A"}},{"$f":"IF(INDIRECT(\"c\" & (VLOOKUP(Rebalance!$D$28,$F$2:$G$48,2,FALSE)+ROW()-2))=Rebalance!$D$28,INDIRECT(\"a\" & (VLOOKUP(Rebalance!$D$28,$F$2:$G$48,2,FALSE)+ROW()-2)),\"\")","v":{"$error":"#N/A"}},{"$f":"IF(INDIRECT(\"c\" & (VLOOKUP(Rebalance!$D$29,$F$2:$G$48,2,FALSE)+ROW()-2))=Rebalance!$D$29,INDIRECT(\"a\" & (VLOOKUP(Rebalance!$D$29,$F$2:$G$48,2,FALSE)+ROW()-2)),\"\")","v":{"$error":"#N/A"}},{"$f":"IF(INDIRECT(\"c\" & (VLOOKUP(Rebalance!$D$30,$F$2:$G$48,2,FALSE)+ROW()-2))=Rebalance!$D$30,INDIRECT(\"a\" & (VLOOKUP(Rebalance!$D$30,$F$2:$G$48,2,FALSE)+ROW()-2)),\"\")","v":{"$error":"#N/A"}},{"$f":"IF(INDIRECT(\"c\" & (VLOOKUP(Rebalance!$D$31,$F$2:$G$48,2,FALSE)+ROW()-2))=Rebalance!$D$31,INDIRECT(\"a\" & (VLOOKUP(Rebalance!$D$31,$F$2:$G$48,2,FALSE)+ROW()-2)),\"\")","v":{"$error":"#N/A"}},{"$f":"IF(INDIRECT(\"c\" & (VLOOKUP(Rebalance!$D$32,$F$2:$G$48,2,FALSE)+ROW()-2))=Rebalance!$D$32,INDIRECT(\"a\" & (VLOOKUP(Rebalance!$D$32,$F$2:$G$48,2,FALSE)+ROW()-2)),\"\")","v":{"$error":"#N/A"}},{"$f":"IF(INDIRECT(\"c\" & (VLOOKUP(Rebalance!$D$33,$F$2:$G$48,2,FALSE)+ROW()-2))=Rebalance!$D$33,INDIRECT(\"a\" & (VLOOKUP(Rebalance!$D$33,$F$2:$G$48,2,FALSE)+ROW()-2)),\"\")","v":{"$error":"#N/A"}},{"$f":"IF(INDIRECT(\"c\" & (VLOOKUP(Rebalance!$D$34,$F$2:$G$48,2,FALSE)+ROW()-2))=Rebalance!$D$34,INDIRECT(\"a\" & (VLOOKUP(Rebalance!$D$34,$F$2:$G$48,2,FALSE)+ROW()-2)),\"\")","v":{"$error":"#N/A"}},{"$f":"IF(INDIRECT(\"c\" & (VLOOKUP(Rebalance!$D$35,$F$2:$G$48,2,FALSE)+ROW()-2))=Rebalance!$D$35,INDIRECT(\"a\" & (VLOOKUP(Rebalance!$D$35,$F$2:$G$48,2,FALSE)+ROW()-2)),\"\")","v":{"$error":"#N/A"}},{"$f":"IF(INDIRECT(\"c\" & (VLOOKUP(Rebalance!$D$36,$F$2:$G$48,2,FALSE)+ROW()-2))=Rebalance!$D$36,INDIRECT(\"a\" & (VLOOKUP(Rebalance!$D$36,$F$2:$G$48,2,FALSE)+ROW()-2)),\"\")","v":{"$error":"#N/A"}},{"$f":"IF(INDIRECT(\"c\" & (VLOOKUP(Rebalance!$D$37,$F$2:$G$48,2,FALSE)+ROW()-2))=Rebalance!$D$37,INDIRECT(\"a\" & (VLOOKUP(Rebalance!$D$37,$F$2:$G$48,2,FALSE)+ROW()-2)),\"\")","v":{"$error":"#N/A"}},{"$f":"IF(INDIRECT(\"c\" & (VLOOKUP(Rebalance!$D$38,$F$2:$G$48,2,FALSE)+ROW()-2))=Rebalance!$D$38,INDIRECT(\"a\" & (VLOOKUP(Rebalance!$D$38,$F$2:$G$48,2,FALSE)+ROW()-2)),\"\")","v":{"$error":"#N/A"}},{"$f":"IF(INDIRECT(\"c\" & (VLOOKUP(Rebalance!$D$39,$F$2:$G$48,2,FALSE)+ROW()-2))=Rebalance!$D$39,INDIRECT(\"a\" & (VLOOKUP(Rebalance!$D$39,$F$2:$G$48,2,FALSE)+ROW()-2)),\"\")","v":{"$error":"#N/A"}},{"$f":"IF(INDIRECT(\"c\" & (VLOOKUP(Rebalance!$D$40,$F$2:$G$48,2,FALSE)+ROW()-2))=Rebalance!$D$40,INDIRECT(\"a\" & (VLOOKUP(Rebalance!$D$40,$F$2:$G$48,2,FALSE)+ROW()-2)),\"\")","v":{"$error":"#N/A"}},{"$f":"IF(INDIRECT(\"c\" & (VLOOKUP(Rebalance!$D$52,$F$2:$G$48,2,FALSE)+ROW()-2))=Rebalance!$D$52,INDIRECT(\"a\" & (VLOOKUP(Rebalance!$D$52,$F$2:$G$48,2,FALSE)+ROW()-2)),\"\")","v":{"$error":"#N/A"}},{"$f":"IF(INDIRECT(\"c\" & (VLOOKUP(Rebalance!$D$53,$F$2:$G$48,2,FALSE)+ROW()-2))=Rebalance!$D$53,INDIRECT(\"a\" & (VLOOKUP(Rebalance!$D$53,$F$2:$G$48,2,FALSE)+ROW()-2)),\"\")","v":{"$error":"#N/A"}},{"$f":"IF(INDIRECT(\"c\" & (VLOOKUP(Rebalance!$D$54,$F$2:$G$48,2,FALSE)+ROW()-2))=Rebalance!$D$54,INDIRECT(\"a\" & (VLOOKUP(Rebalance!$D$54,$F$2:$G$48,2,FALSE)+ROW()-2)),\"\")","v":{"$error":"#N/A"}},{"$f":"IF(INDIRECT(\"c\" & (VLOOKUP(Rebalance!$D$55,$F$2:$G$48,2,FALSE)+ROW()-2))=Rebalance!$D$55,INDIRECT(\"a\" & (VLOOKUP(Rebalance!$D$55,$F$2:$G$48,2,FALSE)+ROW()-2)),\"\")","v":{"$error":"#N/A"}},{"$f":"IF(INDIRECT(\"c\" & (VLOOKUP(Rebalance!$D$56,$F$2:$G$48,2,FALSE)+ROW()-2))=Rebalance!$D$56,INDIRECT(\"a\" & (VLOOKUP(Rebalance!$D$56,$F$2:$G$48,2,FALSE)+ROW()-2)),\"\")","v":{"$error":"#N/A"}},{"$f":"IF(INDIRECT(\"c\" & (VLOOKUP(Rebalance!$D$57,$F$2:$G$48,2,FALSE)+ROW()-2))=Rebalance!$D$57,INDIRECT(\"a\" & (VLOOKUP(Rebalance!$D$57,$F$2:$G$48,2,FALSE)+ROW()-2)),\"\")","v":{"$error":"#N/A"}},{"$f":"IF(INDIRECT(\"c\" & (VLOOKUP(Rebalance!$D$58,$F$2:$G$48,2,FALSE)+ROW()-2))=Rebalance!$D$58,INDIRECT(\"a\" & (VLOOKUP(Rebalance!$D$58,$F$2:$G$48,2,FALSE)+ROW()-2)),\"\")","v":{"$error":"#N/A"}},{"$f":"IF(INDIRECT(\"c\" & (VLOOKUP(Rebalance!$D$59,$F$2:$G$48,2,FALSE)+ROW()-2))=Rebalance!$D$59,INDIRECT(\"a\" & (VLOOKUP(Rebalance!$D$59,$F$2:$G$48,2,FALSE)+ROW()-2)),\"\")","v":{"$error":"#N/A"}},{"$f":"IF(INDIRECT(\"c\" & (VLOOKUP(Rebalance!$D$60,$F$2:$G$48,2,FALSE)+ROW()-2))=Rebalance!$D$60,INDIRECT(\"a\" & (VLOOKUP(Rebalance!$D$60,$F$2:$G$48,2,FALSE)+ROW()-2)),\"\")","v":{"$error":"#N/A"}},{"$f":"IF(INDIRECT(\"c\" & (VLOOKUP(Rebalance!$D$61,$F$2:$G$48,2,FALSE)+ROW()-2))=Rebalance!$D$61,INDIRECT(\"a\" & (VLOOKUP(Rebalance!$D$61,$F$2:$G$48,2,FALSE)+ROW()-2)),\"\")","v":{"$error":"#N/A"}},{"$f":"IF(INDIRECT(\"c\" & (VLOOKUP(Rebalance!$D$62,$F$2:$G$48,2,FALSE)+ROW()-2))=Rebalance!$D$62,INDIRECT(\"a\" & (VLOOKUP(Rebalance!$D$62,$F$2:$G$48,2,FALSE)+ROW()-2)),\"\")","v":{"$error":"#N/A"}},{"$f":"IF(INDIRECT(\"c\" & (VLOOKUP(Rebalance!$D$63,$F$2:$G$48,2,FALSE)+ROW()-2))=Rebalance!$D$63,INDIRECT(\"a\" & (VLOOKUP(Rebalance!$D$63,$F$2:$G$48,2,FALSE)+ROW()-2)),\"\")","v":{"$error":"#N/A"}},{"$f":"IF(INDIRECT(\"c\" & (VLOOKUP(Rebalance!$D$64,$F$2:$G$48,2,FALSE)+ROW()-2))=Rebalance!$D$64,INDIRECT(\"a\" & (VLOOKUP(Rebalance!$D$64,$F$2:$G$48,2,FALSE)+ROW()-2)),\"\")","v":{"$error":"#N/A"}},{"$f":"IF(INDIRECT(\"c\" & (VLOOKUP(Rebalance!$D$65,$F$2:$G$48,2,FALSE)+ROW()-2))=Rebalance!$D$65,INDIRECT(\"a\" & (VLOOKUP(Rebalance!$D$65,$F$2:$G$48,2,FALSE)+ROW()-2)),\"\")","v":{"$error":"#N/A"}},{"$f":"IF(INDIRECT(\"c\" & (VLOOKUP(Rebalance!$D$66,$F$2:$G$48,2,FALSE)+ROW()-2))=Rebalance!$D$66,INDIRECT(\"a\" & (VLOOKUP(Rebalance!$D$66,$F$2:$G$48,2,FALSE)+ROW()-2)),\"\")","v":{"$error":"#N/A"}}]
["SBG Securities Diversified PSP","PSP2","SBG Securities",{"$f":"ROW()","v":556},null,null,{"$f":"VLOOKUP(F556,$C$2:$D$599,2,FALSE)","v":{"$error":"#N/A"}},{"$f":"IF(INDIRECT(\"c\" & (VLOOKUP(Rebalance!$D$26,$F$2:$G$48,2,FALSE)+ROW()-2))=Rebalance!$D$26,INDIRECT(\"a\" & (VLOOKUP(Rebalance!$D$26,$F$2:$G$48,2,FALSE)+ROW()-2)),\"\")","v":{"$error":"#N/A"}},{"$f":"IF(INDIRECT(\"c\" & (VLOOKUP(Rebalance!$D$27,$F$2:$G$48,2,FALSE)+ROW()-2))=Rebalance!$D$27,INDIRECT(\"a\" & (VLOOKUP(Rebalance!$D$27,$F$2:$G$48,2,FALSE)+ROW()-2)),\"\")","v":{"$error":"#N/A"}},{"$f":"IF(INDIRECT(\"c\" & (VLOOKUP(Rebalance!$D$28,$F$2:$G$48,2,FALSE)+ROW()-2))=Rebalance!$D$28,INDIRECT(\"a\" & (VLOOKUP(Rebalance!$D$28,$F$2:$G$48,2,FALSE)+ROW()-2)),\"\")","v":{"$error":"#N/A"}},{"$f":"IF(INDIRECT(\"c\" & (VLOOKUP(Rebalance!$D$29,$F$2:$G$48,2,FALSE)+ROW()-2))=Rebalance!$D$29,INDIRECT(\"a\" & (VLOOKUP(Rebalance!$D$29,$F$2:$G$48,2,FALSE)+ROW()-2)),\"\")","v":{"$error":"#N/A"}},{"$f":"IF(INDIRECT(\"c\" & (VLOOKUP(Rebalance!$D$30,$F$2:$G$48,2,FALSE)+ROW()-2))=Rebalance!$D$30,INDIRECT(\"a\" & (VLOOKUP(Rebalance!$D$30,$F$2:$G$48,2,FALSE)+ROW()-2)),\"\")","v":{"$error":"#N/A"}},{"$f":"IF(INDIRECT(\"c\" & (VLOOKUP(Rebalance!$D$31,$F$2:$G$48,2,FALSE)+ROW()-2))=Rebalance!$D$31,INDIRECT(\"a\" & (VLOOKUP(Rebalance!$D$31,$F$2:$G$48,2,FALSE)+ROW()-2)),\"\")","v":{"$error":"#N/A"}},{"$f":"IF(INDIRECT(\"c\" & (VLOOKUP(Rebalance!$D$32,$F$2:$G$48,2,FALSE)+ROW()-2))=Rebalance!$D$32,INDIRECT(\"a\" & (VLOOKUP(Rebalance!$D$32,$F$2:$G$48,2,FALSE)+ROW()-2)),\"\")","v":{"$error":"#N/A"}},{"$f":"IF(INDIRECT(\"c\" & (VLOOKUP(Rebalance!$D$33,$F$2:$G$48,2,FALSE)+ROW()-2))=Rebalance!$D$33,INDIRECT(\"a\" & (VLOOKUP(Rebalance!$D$33,$F$2:$G$48,2,FALSE)+ROW()-2)),\"\")","v":{"$error":"#N/A"}},{"$f":"IF(INDIRECT(\"c\" & (VLOOKUP(Rebalance!$D$34,$F$2:$G$48,2,FALSE)+ROW()-2))=Rebalance!$D$34,INDIRECT(\"a\" & (VLOOKUP(Rebalance!$D$34,$F$2:$G$48,2,FALSE)+ROW()-2)),\"\")","v":{"$error":"#N/A"}},{"$f":"IF(INDIRECT(\"c\" & (VLOOKUP(Rebalance!$D$35,$F$2:$G$48,2,FALSE)+ROW()-2))=Rebalance!$D$35,INDIRECT(\"a\" & (VLOOKUP(Rebalance!$D$35,$F$2:$G$48,2,FALSE)+ROW()-2)),\"\")","v":{"$error":"#N/A"}},{"$f":"IF(INDIRECT(\"c\" & (VLOOKUP(Rebalance!$D$36,$F$2:$G$48,2,FALSE)+ROW()-2))=Rebalance!$D$36,INDIRECT(\"a\" & (VLOOKUP(Rebalance!$D$36,$F$2:$G$48,2,FALSE)+ROW()-2)),\"\")","v":{"$error":"#N/A"}},{"$f":"IF(INDIRECT(\"c\" & (VLOOKUP(Rebalance!$D$37,$F$2:$G$48,2,FALSE)+ROW()-2))=Rebalance!$D$37,INDIRECT(\"a\" & (VLOOKUP(Rebalance!$D$37,$F$2:$G$48,2,FALSE)+ROW()-2)),\"\")","v":{"$error":"#N/A"}},{"$f":"IF(INDIRECT(\"c\" & (VLOOKUP(Rebalance!$D$38,$F$2:$G$48,2,FALSE)+ROW()-2))=Rebalance!$D$38,INDIRECT(\"a\" & (VLOOKUP(Rebalance!$D$38,$F$2:$G$48,2,FALSE)+ROW()-2)),\"\")","v":{"$error":"#N/A"}},{"$f":"IF(INDIRECT(\"c\" & (VLOOKUP(Rebalance!$D$39,$F$2:$G$48,2,FALSE)+ROW()-2))=Rebalance!$D$39,INDIRECT(\"a\" & (VLOOKUP(Rebalance!$D$39,$F$2:$G$48,2,FALSE)+ROW()-2)),\"\")","v":{"$error":"#N/A"}},{"$f":"IF(INDIRECT(\"c\" & (VLOOKUP(Rebalance!$D$40,$F$2:$G$48,2,FALSE)+ROW()-2))=Rebalance!$D$40,INDIRECT(\"a\" & (VLOOKUP(Rebalance!$D$40,$F$2:$G$48,2,FALSE)+ROW()-2)),\"\")","v":{"$error":"#N/A"}},{"$f":"IF(INDIRECT(\"c\" & (VLOOKUP(Rebalance!$D$52,$F$2:$G$48,2,FALSE)+ROW()-2))=Rebalance!$D$52,INDIRECT(\"a\" & (VLOOKUP(Rebalance!$D$52,$F$2:$G$48,2,FALSE)+ROW()-2)),\"\")","v":{"$error":"#N/A"}},{"$f":"IF(INDIRECT(\"c\" & (VLOOKUP(Rebalance!$D$53,$F$2:$G$48,2,FALSE)+ROW()-2))=Rebalance!$D$53,INDIRECT(\"a\" & (VLOOKUP(Rebalance!$D$53,$F$2:$G$48,2,FALSE)+ROW()-2)),\"\")","v":{"$error":"#N/A"}},{"$f":"IF(INDIRECT(\"c\" & (VLOOKUP(Rebalance!$D$54,$F$2:$G$48,2,FALSE)+ROW()-2))=Rebalance!$D$54,INDIRECT(\"a\" & (VLOOKUP(Rebalance!$D$54,$F$2:$G$48,2,FALSE)+ROW()-2)),\"\")","v":{"$error":"#N/A"}},{"$f":"IF(INDIRECT(\"c\" & (VLOOKUP(Rebalance!$D$55,$F$2:$G$48,2,FALSE)+ROW()-2))=Rebalance!$D$55,INDIRECT(\"a\" & (VLOOKUP(Rebalance!$D$55,$F$2:$G$48,2,FALSE)+ROW()-2)),\"\")","v":{"$error":"#N/A"}},{"$f":"IF(INDIRECT(\"c\" & (VLOOKUP(Rebalance!$D$56,$F$2:$G$48,2,FALSE)+ROW()-2))=Rebalance!$D$56,INDIRECT(\"a\" & (VLOOKUP(Rebalance!$D$56,$F$2:$G$48,2,FALSE)+ROW()-2)),\"\")","v":{"$error":"#N/A"}},{"$f":"IF(INDIRECT(\"c\" & (VLOOKUP(Rebalance!$D$57,$F$2:$G$48,2,FALSE)+ROW()-2))=Rebalance!$D$57,INDIRECT(\"a\" & (VLOOKUP(Rebalance!$D$57,$F$2:$G$48,2,FALSE)+ROW()-2)),\"\")","v":{"$error":"#N/A"}},{"$f":"IF(INDIRECT(\"c\" & (VLOOKUP(Rebalance!$D$58,$F$2:$G$48,2,FALSE)+ROW()-2))=Rebalance!$D$58,INDIRECT(\"a\" & (VLOOKUP(Rebalance!$D$58,$F$2:$G$48,2,FALSE)+ROW()-2)),\"\")","v":{"$error":"#N/A"}},{"$f":"IF(INDIRECT(\"c\" & (VLOOKUP(Rebalance!$D$59,$F$2:$G$48,2,FALSE)+ROW()-2))=Rebalance!$D$59,INDIRECT(\"a\" & (VLOOKUP(Rebalance!$D$59,$F$2:$G$48,2,FALSE)+ROW()-2)),\"\")","v":{"$error":"#N/A"}},{"$f":"IF(INDIRECT(\"c\" & (VLOOKUP(Rebalance!$D$60,$F$2:$G$48,2,FALSE)+ROW()-2))=Rebalance!$D$60,INDIRECT(\"a\" & (VLOOKUP(Rebalance!$D$60,$F$2:$G$48,2,FALSE)+ROW()-2)),\"\")","v":{"$error":"#N/A"}},{"$f":"IF(INDIRECT(\"c\" & (VLOOKUP(Rebalance!$D$61,$F$2:$G$48,2,FALSE)+ROW()-2))=Rebalance!$D$61,INDIRECT(\"a\" & (VLOOKUP(Rebalance!$D$61,$F$2:$G$48,2,FALSE)+ROW()-2)),\"\")","v":{"$error":"#N/A"}},{"$f":"IF(INDIRECT(\"c\" & (VLOOKUP(Rebalance!$D$62,$F$2:$G$48,2,FALSE)+ROW()-2))=Rebalance!$D$62,INDIRECT(\"a\" & (VLOOKUP(Rebalance!$D$62,$F$2:$G$48,2,FALSE)+ROW()-2)),\"\")","v":{"$error":"#N/A"}},{"$f":"IF(INDIRECT(\"c\" & (VLOOKUP(Rebalance!$D$63,$F$2:$G$48,2,FALSE)+ROW()-2))=Rebalance!$D$63,INDIRECT(\"a\" & (VLOOKUP(Rebalance!$D$63,$F$2:$G$48,2,FALSE)+ROW()-2)),\"\")","v":{"$error":"#N/A"}},{"$f":"IF(INDIRECT(\"c\" & (VLOOKUP(Rebalance!$D$64,$F$2:$G$48,2,FALSE)+ROW()-2))=Rebalance!$D$64,INDIRECT(\"a\" & (VLOOKUP(Rebalance!$D$64,$F$2:$G$48,2,FALSE)+ROW()-2)),\"\")","v":{"$error":"#N/A"}},{"$f":"IF(INDIRECT(\"c\" & (VLOOKUP(Rebalance!$D$65,$F$2:$G$48,2,FALSE)+ROW()-2))=Rebalance!$D$65,INDIRECT(\"a\" & (VLOOKUP(Rebalance!$D$65,$F$2:$G$48,2,FALSE)+ROW()-2)),\"\")","v":{"$error":"#N/A"}},{"$f":"IF(INDIRECT(\"c\" & (VLOOKUP(Rebalance!$D$66,$F$2:$G$48,2,FALSE)+ROW()-2))=Rebalance!$D$66,INDIRECT(\"a\" & (VLOOKUP(Rebalance!$D$66,$F$2:$G$48,2,FALSE)+ROW()-2)),\"\")","v":{"$error":"#N/A"}}]
["SBG Securities High Dividend PSP","PSP4","SBG Securities",{"$f":"ROW()","v":557},null,null,{"$f":"VLOOKUP(F557,$C$2:$D$599,2,FALSE)","v":{"$error":"#N/A"}},{"$f":"IF(INDIRECT(\"c\" & (VLOOKUP(Rebalance!$D$26,$F$2:$G$48,2,FALSE)+ROW()-2))=Rebalance!$D$26,INDIRECT(\"a\" & (VLOOKUP(Rebalance!$D$26,$F$2:$G$48,2,FALSE)+ROW()-2)),\"\")","v":{"$error":"#N/A"}},{"$f":"IF(INDIRECT(\"c\" & (VLOOKUP(Rebalance!$D$27,$F$2:$G$48,2,FALSE)+ROW()-2))=Rebalance!$D$27,INDIRECT(\"a\" & (VLOOKUP(Rebalance!$D$27,$F$2:$G$48,2,FALSE)+ROW()-2)),\"\")","v":{"$error":"#N/A"}},{"$f":"IF(INDIRECT(\"c\" & (VLOOKUP(Rebalance!$D$28,$F$2:$G$48,2,FALSE)+ROW()-2))=Rebalance!$D$28,INDIRECT(\"a\" & (VLOOKUP(Rebalance!$D$28,$F$2:$G$48,2,FALSE)+ROW()-2)),\"\")","v":{"$error":"#N/A"}},{"$f":"IF(INDIRECT(\"c\" & (VLOOKUP(Rebalance!$D$29,$F$2:$G$48,2,FALSE)+ROW()-2))=Rebalance!$D$29,INDIRECT(\"a\" & (VLOOKUP(Rebalance!$D$29,$F$2:$G$48,2,FALSE)+ROW()-2)),\"\")","v":{"$error":"#N/A"}},{"$f":"IF(INDIRECT(\"c\" & (VLOOKUP(Rebalance!$D$30,$F$2:$G$48,2,FALSE)+ROW()-2))=Rebalance!$D$30,INDIRECT(\"a\" & (VLOOKUP(Rebalance!$D$30,$F$2:$G$48,2,FALSE)+ROW()-2)),\"\")","v":{"$error":"#N/A"}},{"$f":"IF(INDIRECT(\"c\" & (VLOOKUP(Rebalance!$D$31,$F$2:$G$48,2,FALSE)+ROW()-2))=Rebalance!$D$31,INDIRECT(\"a\" & (VLOOKUP(Rebalance!$D$31,$F$2:$G$48,2,FALSE)+ROW()-2)),\"\")","v":{"$error":"#N/A"}},{"$f":"IF(INDIRECT(\"c\" & (VLOOKUP(Rebalance!$D$32,$F$2:$G$48,2,FALSE)+ROW()-2))=Rebalance!$D$32,INDIRECT(\"a\" & (VLOOKUP(Rebalance!$D$32,$F$2:$G$48,2,FALSE)+ROW()-2)),\"\")","v":{"$error":"#N/A"}},{"$f":"IF(INDIRECT(\"c\" & (VLOOKUP(Rebalance!$D$33,$F$2:$G$48,2,FALSE)+ROW()-2))=Rebalance!$D$33,INDIRECT(\"a\" & (VLOOKUP(Rebalance!$D$33,$F$2:$G$48,2,FALSE)+ROW()-2)),\"\")","v":{"$error":"#N/A"}},{"$f":"IF(INDIRECT(\"c\" & (VLOOKUP(Rebalance!$D$34,$F$2:$G$48,2,FALSE)+ROW()-2))=Rebalance!$D$34,INDIRECT(\"a\" & (VLOOKUP(Rebalance!$D$34,$F$2:$G$48,2,FALSE)+ROW()-2)),\"\")","v":{"$error":"#N/A"}},{"$f":"IF(INDIRECT(\"c\" & (VLOOKUP(Rebalance!$D$35,$F$2:$G$48,2,FALSE)+ROW()-2))=Rebalance!$D$35,INDIRECT(\"a\" & (VLOOKUP(Rebalance!$D$35,$F$2:$G$48,2,FALSE)+ROW()-2)),\"\")","v":{"$error":"#N/A"}},{"$f":"IF(INDIRECT(\"c\" & (VLOOKUP(Rebalance!$D$36,$F$2:$G$48,2,FALSE)+ROW()-2))=Rebalance!$D$36,INDIRECT(\"a\" & (VLOOKUP(Rebalance!$D$36,$F$2:$G$48,2,FALSE)+ROW()-2)),\"\")","v":{"$error":"#N/A"}},{"$f":"IF(INDIRECT(\"c\" & (VLOOKUP(Rebalance!$D$37,$F$2:$G$48,2,FALSE)+ROW()-2))=Rebalance!$D$37,INDIRECT(\"a\" & (VLOOKUP(Rebalance!$D$37,$F$2:$G$48,2,FALSE)+ROW()-2)),\"\")","v":{"$error":"#N/A"}},{"$f":"IF(INDIRECT(\"c\" & (VLOOKUP(Rebalance!$D$38,$F$2:$G$48,2,FALSE)+ROW()-2))=Rebalance!$D$38,INDIRECT(\"a\" & (VLOOKUP(Rebalance!$D$38,$F$2:$G$48,2,FALSE)+ROW()-2)),\"\")","v":{"$error":"#N/A"}},{"$f":"IF(INDIRECT(\"c\" & (VLOOKUP(Rebalance!$D$39,$F$2:$G$48,2,FALSE)+ROW()-2))=Rebalance!$D$39,INDIRECT(\"a\" & (VLOOKUP(Rebalance!$D$39,$F$2:$G$48,2,FALSE)+ROW()-2)),\"\")","v":{"$error":"#N/A"}},{"$f":"IF(INDIRECT(\"c\" & (VLOOKUP(Rebalance!$D$40,$F$2:$G$48,2,FALSE)+ROW()-2))=Rebalance!$D$40,INDIRECT(\"a\" & (VLOOKUP(Rebalance!$D$40,$F$2:$G$48,2,FALSE)+ROW()-2)),\"\")","v":{"$error":"#N/A"}},{"$f":"IF(INDIRECT(\"c\" & (VLOOKUP(Rebalance!$D$52,$F$2:$G$48,2,FALSE)+ROW()-2))=Rebalance!$D$52,INDIRECT(\"a\" & (VLOOKUP(Rebalance!$D$52,$F$2:$G$48,2,FALSE)+ROW()-2)),\"\")","v":{"$error":"#N/A"}},{"$f":"IF(INDIRECT(\"c\" & (VLOOKUP(Rebalance!$D$53,$F$2:$G$48,2,FALSE)+ROW()-2))=Rebalance!$D$53,INDIRECT(\"a\" & (VLOOKUP(Rebalance!$D$53,$F$2:$G$48,2,FALSE)+ROW()-2)),\"\")","v":{"$error":"#N/A"}},{"$f":"IF(INDIRECT(\"c\" & (VLOOKUP(Rebalance!$D$54,$F$2:$G$48,2,FALSE)+ROW()-2))=Rebalance!$D$54,INDIRECT(\"a\" & (VLOOKUP(Rebalance!$D$54,$F$2:$G$48,2,FALSE)+ROW()-2)),\"\")","v":{"$error":"#N/A"}},{"$f":"IF(INDIRECT(\"c\" & (VLOOKUP(Rebalance!$D$55,$F$2:$G$48,2,FALSE)+ROW()-2))=Rebalance!$D$55,INDIRECT(\"a\" & (VLOOKUP(Rebalance!$D$55,$F$2:$G$48,2,FALSE)+ROW()-2)),\"\")","v":{"$error":"#N/A"}},{"$f":"IF(INDIRECT(\"c\" & (VLOOKUP(Rebalance!$D$56,$F$2:$G$48,2,FALSE)+ROW()-2))=Rebalance!$D$56,INDIRECT(\"a\" & (VLOOKUP(Rebalance!$D$56,$F$2:$G$48,2,FALSE)+ROW()-2)),\"\")","v":{"$error":"#N/A"}},{"$f":"IF(INDIRECT(\"c\" & (VLOOKUP(Rebalance!$D$57,$F$2:$G$48,2,FALSE)+ROW()-2))=Rebalance!$D$57,INDIRECT(\"a\" & (VLOOKUP(Rebalance!$D$57,$F$2:$G$48,2,FALSE)+ROW()-2)),\"\")","v":{"$error":"#N/A"}},{"$f":"IF(INDIRECT(\"c\" & (VLOOKUP(Rebalance!$D$58,$F$2:$G$48,2,FALSE)+ROW()-2))=Rebalance!$D$58,INDIRECT(\"a\" & (VLOOKUP(Rebalance!$D$58,$F$2:$G$48,2,FALSE)+ROW()-2)),\"\")","v":{"$error":"#N/A"}},{"$f":"IF(INDIRECT(\"c\" & (VLOOKUP(Rebalance!$D$59,$F$2:$G$48,2,FALSE)+ROW()-2))=Rebalance!$D$59,INDIRECT(\"a\" & (VLOOKUP(Rebalance!$D$59,$F$2:$G$48,2,FALSE)+ROW()-2)),\"\")","v":{"$error":"#N/A"}},{"$f":"IF(INDIRECT(\"c\" & (VLOOKUP(Rebalance!$D$60,$F$2:$G$48,2,FALSE)+ROW()-2))=Rebalance!$D$60,INDIRECT(\"a\" & (VLOOKUP(Rebalance!$D$60,$F$2:$G$48,2,FALSE)+ROW()-2)),\"\")","v":{"$error":"#N/A"}},{"$f":"IF(INDIRECT(\"c\" & (VLOOKUP(Rebalance!$D$61,$F$2:$G$48,2,FALSE)+ROW()-2))=Rebalance!$D$61,INDIRECT(\"a\" & (VLOOKUP(Rebalance!$D$61,$F$2:$G$48,2,FALSE)+ROW()-2)),\"\")","v":{"$error":"#N/A"}},{"$f":"IF(INDIRECT(\"c\" & (VLOOKUP(Rebalance!$D$62,$F$2:$G$48,2,FALSE)+ROW()-2))=Rebalance!$D$62,INDIRECT(\"a\" & (VLOOKUP(Rebalance!$D$62,$F$2:$G$48,2,FALSE)+ROW()-2)),\"\")","v":{"$error":"#N/A"}},{"$f":"IF(INDIRECT(\"c\" & (VLOOKUP(Rebalance!$D$63,$F$2:$G$48,2,FALSE)+ROW()-2))=Rebalance!$D$63,INDIRECT(\"a\" & (VLOOKUP(Rebalance!$D$63,$F$2:$G$48,2,FALSE)+ROW()-2)),\"\")","v":{"$error":"#N/A"}},{"$f":"IF(INDIRECT(\"c\" & (VLOOKUP(Rebalance!$D$64,$F$2:$G$48,2,FALSE)+ROW()-2))=Rebalance!$D$64,INDIRECT(\"a\" & (VLOOKUP(Rebalance!$D$64,$F$2:$G$48,2,FALSE)+ROW()-2)),\"\")","v":{"$error":"#N/A"}},{"$f":"IF(INDIRECT(\"c\" & (VLOOKUP(Rebalance!$D$65,$F$2:$G$48,2,FALSE)+ROW()-2))=Rebalance!$D$65,INDIRECT(\"a\" & (VLOOKUP(Rebalance!$D$65,$F$2:$G$48,2,FALSE)+ROW()-2)),\"\")","v":{"$error":"#N/A"}},{"$f":"IF(INDIRECT(\"c\" & (VLOOKUP(Rebalance!$D$66,$F$2:$G$48,2,FALSE)+ROW()-2))=Rebalance!$D$66,INDIRECT(\"a\" & (VLOOKUP(Rebalance!$D$66,$F$2:$G$48,2,FALSE)+ROW()-2)),\"\")","v":{"$error":"#N/A"}}]
["SBG Securities Income PSP","PSP3","SBG Securities",{"$f":"ROW()","v":558},null,null,{"$f":"VLOOKUP(F558,$C$2:$D$599,2,FALSE)","v":{"$error":"#N/A"}},{"$f":"IF(INDIRECT(\"c\" & (VLOOKUP(Rebalance!$D$26,$F$2:$G$48,2,FALSE)+ROW()-2))=Rebalance!$D$26,INDIRECT(\"a\" & (VLOOKUP(Rebalance!$D$26,$F$2:$G$48,2,FALSE)+ROW()-2)),\"\")","v":{"$error":"#N/A"}},{"$f":"IF(INDIRECT(\"c\" & (VLOOKUP(Rebalance!$D$27,$F$2:$G$48,2,FALSE)+ROW()-2))=Rebalance!$D$27,INDIRECT(\"a\" & (VLOOKUP(Rebalance!$D$27,$F$2:$G$48,2,FALSE)+ROW()-2)),\"\")","v":{"$error":"#N/A"}},{"$f":"IF(INDIRECT(\"c\" & (VLOOKUP(Rebalance!$D$28,$F$2:$G$48,2,FALSE)+ROW()-2))=Rebalance!$D$28,INDIRECT(\"a\" & (VLOOKUP(Rebalance!$D$28,$F$2:$G$48,2,FALSE)+ROW()-2)),\"\")","v":{"$error":"#N/A"}},{"$f":"IF(INDIRECT(\"c\" & (VLOOKUP(Rebalance!$D$29,$F$2:$G$48,2,FALSE)+ROW()-2))=Rebalance!$D$29,INDIRECT(\"a\" & (VLOOKUP(Rebalance!$D$29,$F$2:$G$48,2,FALSE)+ROW()-2)),\"\")","v":{"$error":"#N/A"}},{"$f":"IF(INDIRECT(\"c\" & (VLOOKUP(Rebalance!$D$30,$F$2:$G$48,2,FALSE)+ROW()-2))=Rebalance!$D$30,INDIRECT(\"a\" & (VLOOKUP(Rebalance!$D$30,$F$2:$G$48,2,FALSE)+ROW()-2)),\"\")","v":{"$error":"#N/A"}},{"$f":"IF(INDIRECT(\"c\" & (VLOOKUP(Rebalance!$D$31,$F$2:$G$48,2,FALSE)+ROW()-2))=Rebalance!$D$31,INDIRECT(\"a\" & (VLOOKUP(Rebalance!$D$31,$F$2:$G$48,2,FALSE)+ROW()-2)),\"\")","v":{"$error":"#N/A"}},{"$f":"IF(INDIRECT(\"c\" & (VLOOKUP(Rebalance!$D$32,$F$2:$G$48,2,FALSE)+ROW()-2))=Rebalance!$D$32,INDIRECT(\"a\" & (VLOOKUP(Rebalance!$D$32,$F$2:$G$48,2,FALSE)+ROW()-2)),\"\")","v":{"$error":"#N/A"}},{"$f":"IF(INDIRECT(\"c\" & (VLOOKUP(Rebalance!$D$33,$F$2:$G$48,2,FALSE)+ROW()-2))=Rebalance!$D$33,INDIRECT(\"a\" & (VLOOKUP(Rebalance!$D$33,$F$2:$G$48,2,FALSE)+ROW()-2)),\"\")","v":{"$error":"#N/A"}},{"$f":"IF(INDIRECT(\"c\" & (VLOOKUP(Rebalance!$D$34,$F$2:$G$48,2,FALSE)+ROW()-2))=Rebalance!$D$34,INDIRECT(\"a\" & (VLOOKUP(Rebalance!$D$34,$F$2:$G$48,2,FALSE)+ROW()-2)),\"\")","v":{"$error":"#N/A"}},{"$f":"IF(INDIRECT(\"c\" & (VLOOKUP(Rebalance!$D$35,$F$2:$G$48,2,FALSE)+ROW()-2))=Rebalance!$D$35,INDIRECT(\"a\" & (VLOOKUP(Rebalance!$D$35,$F$2:$G$48,2,FALSE)+ROW()-2)),\"\")","v":{"$error":"#N/A"}},{"$f":"IF(INDIRECT(\"c\" & (VLOOKUP(Rebalance!$D$36,$F$2:$G$48,2,FALSE)+ROW()-2))=Rebalance!$D$36,INDIRECT(\"a\" & (VLOOKUP(Rebalance!$D$36,$F$2:$G$48,2,FALSE)+ROW()-2)),\"\")","v":{"$error":"#N/A"}},{"$f":"IF(INDIRECT(\"c\" & (VLOOKUP(Rebalance!$D$37,$F$2:$G$48,2,FALSE)+ROW()-2))=Rebalance!$D$37,INDIRECT(\"a\" & (VLOOKUP(Rebalance!$D$37,$F$2:$G$48,2,FALSE)+ROW()-2)),\"\")","v":{"$error":"#N/A"}},{"$f":"IF(INDIRECT(\"c\" & (VLOOKUP(Rebalance!$D$38,$F$2:$G$48,2,FALSE)+ROW()-2))=Rebalance!$D$38,INDIRECT(\"a\" & (VLOOKUP(Rebalance!$D$38,$F$2:$G$48,2,FALSE)+ROW()-2)),\"\")","v":{"$error":"#N/A"}},{"$f":"IF(INDIRECT(\"c\" & (VLOOKUP(Rebalance!$D$39,$F$2:$G$48,2,FALSE)+ROW()-2))=Rebalance!$D$39,INDIRECT(\"a\" & (VLOOKUP(Rebalance!$D$39,$F$2:$G$48,2,FALSE)+ROW()-2)),\"\")","v":{"$error":"#N/A"}},{"$f":"IF(INDIRECT(\"c\" & (VLOOKUP(Rebalance!$D$40,$F$2:$G$48,2,FALSE)+ROW()-2))=Rebalance!$D$40,INDIRECT(\"a\" & (VLOOKUP(Rebalance!$D$40,$F$2:$G$48,2,FALSE)+ROW()-2)),\"\")","v":{"$error":"#N/A"}},{"$f":"IF(INDIRECT(\"c\" & (VLOOKUP(Rebalance!$D$52,$F$2:$G$48,2,FALSE)+ROW()-2))=Rebalance!$D$52,INDIRECT(\"a\" & (VLOOKUP(Rebalance!$D$52,$F$2:$G$48,2,FALSE)+ROW()-2)),\"\")","v":{"$error":"#N/A"}},{"$f":"IF(INDIRECT(\"c\" & (VLOOKUP(Rebalance!$D$53,$F$2:$G$48,2,FALSE)+ROW()-2))=Rebalance!$D$53,INDIRECT(\"a\" & (VLOOKUP(Rebalance!$D$53,$F$2:$G$48,2,FALSE)+ROW()-2)),\"\")","v":{"$error":"#N/A"}},{"$f":"IF(INDIRECT(\"c\" & (VLOOKUP(Rebalance!$D$54,$F$2:$G$48,2,FALSE)+ROW()-2))=Rebalance!$D$54,INDIRECT(\"a\" & (VLOOKUP(Rebalance!$D$54,$F$2:$G$48,2,FALSE)+ROW()-2)),\"\")","v":{"$error":"#N/A"}},{"$f":"IF(INDIRECT(\"c\" & (VLOOKUP(Rebalance!$D$55,$F$2:$G$48,2,FALSE)+ROW()-2))=Rebalance!$D$55,INDIRECT(\"a\" & (VLOOKUP(Rebalance!$D$55,$F$2:$G$48,2,FALSE)+ROW()-2)),\"\")","v":{"$error":"#N/A"}},{"$f":"IF(INDIRECT(\"c\" & (VLOOKUP(Rebalance!$D$56,$F$2:$G$48,2,FALSE)+ROW()-2))=Rebalance!$D$56,INDIRECT(\"a\" & (VLOOKUP(Rebalance!$D$56,$F$2:$G$48,2,FALSE)+ROW()-2)),\"\")","v":{"$error":"#N/A"}},{"$f":"IF(INDIRECT(\"c\" & (VLOOKUP(Rebalance!$D$57,$F$2:$G$48,2,FALSE)+ROW()-2))=Rebalance!$D$57,INDIRECT(\"a\" & (VLOOKUP(Rebalance!$D$57,$F$2:$G$48,2,FALSE)+ROW()-2)),\"\")","v":{"$error":"#N/A"}},{"$f":"IF(INDIRECT(\"c\" & (VLOOKUP(Rebalance!$D$58,$F$2:$G$48,2,FALSE)+ROW()-2))=Rebalance!$D$58,INDIRECT(\"a\" & (VLOOKUP(Rebalance!$D$58,$F$2:$G$48,2,FALSE)+ROW()-2)),\"\")","v":{"$error":"#N/A"}},{"$f":"IF(INDIRECT(\"c\" & (VLOOKUP(Rebalance!$D$59,$F$2:$G$48,2,FALSE)+ROW()-2))=Rebalance!$D$59,INDIRECT(\"a\" & (VLOOKUP(Rebalance!$D$59,$F$2:$G$48,2,FALSE)+ROW()-2)),\"\")","v":{"$error":"#N/A"}},{"$f":"IF(INDIRECT(\"c\" & (VLOOKUP(Rebalance!$D$60,$F$2:$G$48,2,FALSE)+ROW()-2))=Rebalance!$D$60,INDIRECT(\"a\" & (VLOOKUP(Rebalance!$D$60,$F$2:$G$48,2,FALSE)+ROW()-2)),\"\")","v":{"$error":"#N/A"}},{"$f":"IF(INDIRECT(\"c\" & (VLOOKUP(Rebalance!$D$61,$F$2:$G$48,2,FALSE)+ROW()-2))=Rebalance!$D$61,INDIRECT(\"a\" & (VLOOKUP(Rebalance!$D$61,$F$2:$G$48,2,FALSE)+ROW()-2)),\"\")","v":{"$error":"#N/A"}},{"$f":"IF(INDIRECT(\"c\" & (VLOOKUP(Rebalance!$D$62,$F$2:$G$48,2,FALSE)+ROW()-2))=Rebalance!$D$62,INDIRECT(\"a\" & (VLOOKUP(Rebalance!$D$62,$F$2:$G$48,2,FALSE)+ROW()-2)),\"\")","v":{"$error":"#N/A"}},{"$f":"IF(INDIRECT(\"c\" & (VLOOKUP(Rebalance!$D$63,$F$2:$G$48,2,FALSE)+ROW()-2))=Rebalance!$D$63,INDIRECT(\"a\" & (VLOOKUP(Rebalance!$D$63,$F$2:$G$48,2,FALSE)+ROW()-2)),\"\")","v":{"$error":"#N/A"}},{"$f":"IF(INDIRECT(\"c\" & (VLOOKUP(Rebalance!$D$64,$F$2:$G$48,2,FALSE)+ROW()-2))=Rebalance!$D$64,INDIRECT(\"a\" & (VLOOKUP(Rebalance!$D$64,$F$2:$G$48,2,FALSE)+ROW()-2)),\"\")","v":{"$error":"#N/A"}},{"$f":"IF(INDIRECT(\"c\" & (VLOOKUP(Rebalance!$D$65,$F$2:$G$48,2,FALSE)+ROW()-2))=Rebalance!$D$65,INDIRECT(\"a\" & (VLOOKUP(Rebalance!$D$65,$F$2:$G$48,2,FALSE)+ROW()-2)),\"\")","v":{"$error":"#N/A"}},{"$f":"IF(INDIRECT(\"c\" & (VLOOKUP(Rebalance!$D$66,$F$2:$G$48,2,FALSE)+ROW()-2))=Rebalance!$D$66,INDIRECT(\"a\" & (VLOOKUP(Rebalance!$D$66,$F$2:$G$48,2,FALSE)+ROW()-2)),\"\")","v":{"$error":"#N/A"}}]
["SBG Securities Listed Property PSP","PSP5","SBG Securities",{"$f":"ROW()","v":559},null,null,{"$f":"VLOOKUP(F559,$C$2:$D$599,2,FALSE)","v":{"$error":"#N/A"}},{"$f":"IF(INDIRECT(\"c\" & (VLOOKUP(Rebalance!$D$26,$F$2:$G$48,2,FALSE)+ROW()-2))=Rebalance!$D$26,INDIRECT(\"a\" & (VLOOKUP(Rebalance!$D$26,$F$2:$G$48,2,FALSE)+ROW()-2)),\"\")","v":{"$error":"#N/A"}},{"$f":"IF(INDIRECT(\"c\" & (VLOOKUP(Rebalance!$D$27,$F$2:$G$48,2,FALSE)+ROW()-2))=Rebalance!$D$27,INDIRECT(\"a\" & (VLOOKUP(Rebalance!$D$27,$F$2:$G$48,2,FALSE)+ROW()-2)),\"\")","v":{"$error":"#N/A"}},{"$f":"IF(INDIRECT(\"c\" & (VLOOKUP(Rebalance!$D$28,$F$2:$G$48,2,FALSE)+ROW()-2))=Rebalance!$D$28,INDIRECT(\"a\" & (VLOOKUP(Rebalance!$D$28,$F$2:$G$48,2,FALSE)+ROW()-2)),\"\")","v":{"$error":"#N/A"}},{"$f":"IF(INDIRECT(\"c\" & (VLOOKUP(Rebalance!$D$29,$F$2:$G$48,2,FALSE)+ROW()-2))=Rebalance!$D$29,INDIRECT(\"a\" & (VLOOKUP(Rebalance!$D$29,$F$2:$G$48,2,FALSE)+ROW()-2)),\"\")","v":{"$error":"#N/A"}},{"$f":"IF(INDIRECT(\"c\" & (VLOOKUP(Rebalance!$D$30,$F$2:$G$48,2,FALSE)+ROW()-2))=Rebalance!$D$30,INDIRECT(\"a\" & (VLOOKUP(Rebalance!$D$30,$F$2:$G$48,2,FALSE)+ROW()-2)),\"\")","v":{"$error":"#N/A"}},{"$f":"IF(INDIRECT(\"c\" & (VLOOKUP(Rebalance!$D$31,$F$2:$G$48,2,FALSE)+ROW()-2))=Rebalance!$D$31,INDIRECT(\"a\" & (VLOOKUP(Rebalance!$D$31,$F$2:$G$48,2,FALSE)+ROW()-2)),\"\")","v":{"$error":"#N/A"}},{"$f":"IF(INDIRECT(\"c\" & (VLOOKUP(Rebalance!$D$32,$F$2:$G$48,2,FALSE)+ROW()-2))=Rebalance!$D$32,INDIRECT(\"a\" & (VLOOKUP(Rebalance!$D$32,$F$2:$G$48,2,FALSE)+ROW()-2)),\"\")","v":{"$error":"#N/A"}},{"$f":"IF(INDIRECT(\"c\" & (VLOOKUP(Rebalance!$D$33,$F$2:$G$48,2,FALSE)+ROW()-2))=Rebalance!$D$33,INDIRECT(\"a\" & (VLOOKUP(Rebalance!$D$33,$F$2:$G$48,2,FALSE)+ROW()-2)),\"\")","v":{"$error":"#N/A"}},{"$f":"IF(INDIRECT(\"c\" & (VLOOKUP(Rebalance!$D$34,$F$2:$G$48,2,FALSE)+ROW()-2))=Rebalance!$D$34,INDIRECT(\"a\" & (VLOOKUP(Rebalance!$D$34,$F$2:$G$48,2,FALSE)+ROW()-2)),\"\")","v":{"$error":"#N/A"}},{"$f":"IF(INDIRECT(\"c\" & (VLOOKUP(Rebalance!$D$35,$F$2:$G$48,2,FALSE)+ROW()-2))=Rebalance!$D$35,INDIRECT(\"a\" & (VLOOKUP(Rebalance!$D$35,$F$2:$G$48,2,FALSE)+ROW()-2)),\"\")","v":{"$error":"#N/A"}},{"$f":"IF(INDIRECT(\"c\" & (VLOOKUP(Rebalance!$D$36,$F$2:$G$48,2,FALSE)+ROW()-2))=Rebalance!$D$36,INDIRECT(\"a\" & (VLOOKUP(Rebalance!$D$36,$F$2:$G$48,2,FALSE)+ROW()-2)),\"\")","v":{"$error":"#N/A"}},{"$f":"IF(INDIRECT(\"c\" & (VLOOKUP(Rebalance!$D$37,$F$2:$G$48,2,FALSE)+ROW()-2))=Rebalance!$D$37,INDIRECT(\"a\" & (VLOOKUP(Rebalance!$D$37,$F$2:$G$48,2,FALSE)+ROW()-2)),\"\")","v":{"$error":"#N/A"}},{"$f":"IF(INDIRECT(\"c\" & (VLOOKUP(Rebalance!$D$38,$F$2:$G$48,2,FALSE)+ROW()-2))=Rebalance!$D$38,INDIRECT(\"a\" & (VLOOKUP(Rebalance!$D$38,$F$2:$G$48,2,FALSE)+ROW()-2)),\"\")","v":{"$error":"#N/A"}},{"$f":"IF(INDIRECT(\"c\" & (VLOOKUP(Rebalance!$D$39,$F$2:$G$48,2,FALSE)+ROW()-2))=Rebalance!$D$39,INDIRECT(\"a\" & (VLOOKUP(Rebalance!$D$39,$F$2:$G$48,2,FALSE)+ROW()-2)),\"\")","v":{"$error":"#N/A"}},{"$f":"IF(INDIRECT(\"c\" & (VLOOKUP(Rebalance!$D$40,$F$2:$G$48,2,FALSE)+ROW()-2))=Rebalance!$D$40,INDIRECT(\"a\" & (VLOOKUP(Rebalance!$D$40,$F$2:$G$48,2,FALSE)+ROW()-2)),\"\")","v":{"$error":"#N/A"}},{"$f":"IF(INDIRECT(\"c\" & (VLOOKUP(Rebalance!$D$52,$F$2:$G$48,2,FALSE)+ROW()-2))=Rebalance!$D$52,INDIRECT(\"a\" & (VLOOKUP(Rebalance!$D$52,$F$2:$G$48,2,FALSE)+ROW()-2)),\"\")","v":{"$error":"#N/A"}},{"$f":"IF(INDIRECT(\"c\" & (VLOOKUP(Rebalance!$D$53,$F$2:$G$48,2,FALSE)+ROW()-2))=Rebalance!$D$53,INDIRECT(\"a\" & (VLOOKUP(Rebalance!$D$53,$F$2:$G$48,2,FALSE)+ROW()-2)),\"\")","v":{"$error":"#N/A"}},{"$f":"IF(INDIRECT(\"c\" & (VLOOKUP(Rebalance!$D$54,$F$2:$G$48,2,FALSE)+ROW()-2))=Rebalance!$D$54,INDIRECT(\"a\" & (VLOOKUP(Rebalance!$D$54,$F$2:$G$48,2,FALSE)+ROW()-2)),\"\")","v":{"$error":"#N/A"}},{"$f":"IF(INDIRECT(\"c\" & (VLOOKUP(Rebalance!$D$55,$F$2:$G$48,2,FALSE)+ROW()-2))=Rebalance!$D$55,INDIRECT(\"a\" & (VLOOKUP(Rebalance!$D$55,$F$2:$G$48,2,FALSE)+ROW()-2)),\"\")","v":{"$error":"#N/A"}},{"$f":"IF(INDIRECT(\"c\" & (VLOOKUP(Rebalance!$D$56,$F$2:$G$48,2,FALSE)+ROW()-2))=Rebalance!$D$56,INDIRECT(\"a\" & (VLOOKUP(Rebalance!$D$56,$F$2:$G$48,2,FALSE)+ROW()-2)),\"\")","v":{"$error":"#N/A"}},{"$f":"IF(INDIRECT(\"c\" & (VLOOKUP(Rebalance!$D$57,$F$2:$G$48,2,FALSE)+ROW()-2))=Rebalance!$D$57,INDIRECT(\"a\" & (VLOOKUP(Rebalance!$D$57,$F$2:$G$48,2,FALSE)+ROW()-2)),\"\")","v":{"$error":"#N/A"}},{"$f":"IF(INDIRECT(\"c\" & (VLOOKUP(Rebalance!$D$58,$F$2:$G$48,2,FALSE)+ROW()-2))=Rebalance!$D$58,INDIRECT(\"a\" & (VLOOKUP(Rebalance!$D$58,$F$2:$G$48,2,FALSE)+ROW()-2)),\"\")","v":{"$error":"#N/A"}},{"$f":"IF(INDIRECT(\"c\" & (VLOOKUP(Rebalance!$D$59,$F$2:$G$48,2,FALSE)+ROW()-2))=Rebalance!$D$59,INDIRECT(\"a\" & (VLOOKUP(Rebalance!$D$59,$F$2:$G$48,2,FALSE)+ROW()-2)),\"\")","v":{"$error":"#N/A"}},{"$f":"IF(INDIRECT(\"c\" & (VLOOKUP(Rebalance!$D$60,$F$2:$G$48,2,FALSE)+ROW()-2))=Rebalance!$D$60,INDIRECT(\"a\" & (VLOOKUP(Rebalance!$D$60,$F$2:$G$48,2,FALSE)+ROW()-2)),\"\")","v":{"$error":"#N/A"}},{"$f":"IF(INDIRECT(\"c\" & (VLOOKUP(Rebalance!$D$61,$F$2:$G$48,2,FALSE)+ROW()-2))=Rebalance!$D$61,INDIRECT(\"a\" & (VLOOKUP(Rebalance!$D$61,$F$2:$G$48,2,FALSE)+ROW()-2)),\"\")","v":{"$error":"#N/A"}},{"$f":"IF(INDIRECT(\"c\" & (VLOOKUP(Rebalance!$D$62,$F$2:$G$48,2,FALSE)+ROW()-2))=Rebalance!$D$62,INDIRECT(\"a\" & (VLOOKUP(Rebalance!$D$62,$F$2:$G$48,2,FALSE)+ROW()-2)),\"\")","v":{"$error":"#N/A"}},{"$f":"IF(INDIRECT(\"c\" & (VLOOKUP(Rebalance!$D$63,$F$2:$G$48,2,FALSE)+ROW()-2))=Rebalance!$D$63,INDIRECT(\"a\" & (VLOOKUP(Rebalance!$D$63,$F$2:$G$48,2,FALSE)+ROW()-2)),\"\")","v":{"$error":"#N/A"}},{"$f":"IF(INDIRECT(\"c\" & (VLOOKUP(Rebalance!$D$64,$F$2:$G$48,2,FALSE)+ROW()-2))=Rebalance!$D$64,INDIRECT(\"a\" & (VLOOKUP(Rebalance!$D$64,$F$2:$G$48,2,FALSE)+ROW()-2)),\"\")","v":{"$error":"#N/A"}},{"$f":"IF(INDIRECT(\"c\" & (VLOOKUP(Rebalance!$D$65,$F$2:$G$48,2,FALSE)+ROW()-2))=Rebalance!$D$65,INDIRECT(\"a\" & (VLOOKUP(Rebalance!$D$65,$F$2:$G$48,2,FALSE)+ROW()-2)),\"\")","v":{"$error":"#N/A"}},{"$f":"IF(INDIRECT(\"c\" & (VLOOKUP(Rebalance!$D$66,$F$2:$G$48,2,FALSE)+ROW()-2))=Rebalance!$D$66,INDIRECT(\"a\" & (VLOOKUP(Rebalance!$D$66,$F$2:$G$48,2,FALSE)+ROW()-2)),\"\")","v":{"$error":"#N/A"}}]
["Withdrawal ",null,"Withdrawal",{"$f":"ROW()","v":560},null,null,{"$f":"VLOOKUP(F560,$C$2:$D$599,2,FALSE)","v":{"$error":"#N/A"}},{"$f":"IF(INDIRECT(\"c\" & (VLOOKUP(Rebalance!$D$26,$F$2:$G$48,2,FALSE)+ROW()-2))=Rebalance!$D$26,INDIRECT(\"a\" & (VLOOKUP(Rebalance!$D$26,$F$2:$G$48,2,FALSE)+ROW()-2)),\"\")","v":{"$error":"#N/A"}},{"$f":"IF(INDIRECT(\"c\" & (VLOOKUP(Rebalance!$D$27,$F$2:$G$48,2,FALSE)+ROW()-2))=Rebalance!$D$27,INDIRECT(\"a\" & (VLOOKUP(Rebalance!$D$27,$F$2:$G$48,2,FALSE)+ROW()-2)),\"\")","v":{"$error":"#N/A"}},{"$f":"IF(INDIRECT(\"c\" & (VLOOKUP(Rebalance!$D$28,$F$2:$G$48,2,FALSE)+ROW()-2))=Rebalance!$D$28,INDIRECT(\"a\" & (VLOOKUP(Rebalance!$D$28,$F$2:$G$48,2,FALSE)+ROW()-2)),\"\")","v":{"$error":"#N/A"}},{"$f":"IF(INDIRECT(\"c\" & (VLOOKUP(Rebalance!$D$29,$F$2:$G$48,2,FALSE)+ROW()-2))=Rebalance!$D$29,INDIRECT(\"a\" & (VLOOKUP(Rebalance!$D$29,$F$2:$G$48,2,FALSE)+ROW()-2)),\"\")","v":{"$error":"#N/A"}},{"$f":"IF(INDIRECT(\"c\" & (VLOOKUP(Rebalance!$D$30,$F$2:$G$48,2,FALSE)+ROW()-2))=Rebalance!$D$30,INDIRECT(\"a\" & (VLOOKUP(Rebalance!$D$30,$F$2:$G$48,2,FALSE)+ROW()-2)),\"\")","v":{"$error":"#N/A"}},{"$f":"IF(INDIRECT(\"c\" & (VLOOKUP(Rebalance!$D$31,$F$2:$G$48,2,FALSE)+ROW()-2))=Rebalance!$D$31,INDIRECT(\"a\" & (VLOOKUP(Rebalance!$D$31,$F$2:$G$48,2,FALSE)+ROW()-2)),\"\")","v":{"$error":"#N/A"}},{"$f":"IF(INDIRECT(\"c\" & (VLOOKUP(Rebalance!$D$32,$F$2:$G$48,2,FALSE)+ROW()-2))=Rebalance!$D$32,INDIRECT(\"a\" & (VLOOKUP(Rebalance!$D$32,$F$2:$G$48,2,FALSE)+ROW()-2)),\"\")","v":{"$error":"#N/A"}},{"$f":"IF(INDIRECT(\"c\" & (VLOOKUP(Rebalance!$D$33,$F$2:$G$48,2,FALSE)+ROW()-2))=Rebalance!$D$33,INDIRECT(\"a\" & (VLOOKUP(Rebalance!$D$33,$F$2:$G$48,2,FALSE)+ROW()-2)),\"\")","v":{"$error":"#N/A"}},{"$f":"IF(INDIRECT(\"c\" & (VLOOKUP(Rebalance!$D$34,$F$2:$G$48,2,FALSE)+ROW()-2))=Rebalance!$D$34,INDIRECT(\"a\" & (VLOOKUP(Rebalance!$D$34,$F$2:$G$48,2,FALSE)+ROW()-2)),\"\")","v":{"$error":"#N/A"}},{"$f":"IF(INDIRECT(\"c\" & (VLOOKUP(Rebalance!$D$35,$F$2:$G$48,2,FALSE)+ROW()-2))=Rebalance!$D$35,INDIRECT(\"a\" & (VLOOKUP(Rebalance!$D$35,$F$2:$G$48,2,FALSE)+ROW()-2)),\"\")","v":{"$error":"#N/A"}},{"$f":"IF(INDIRECT(\"c\" & (VLOOKUP(Rebalance!$D$36,$F$2:$G$48,2,FALSE)+ROW()-2))=Rebalance!$D$36,INDIRECT(\"a\" & (VLOOKUP(Rebalance!$D$36,$F$2:$G$48,2,FALSE)+ROW()-2)),\"\")","v":{"$error":"#N/A"}},{"$f":"IF(INDIRECT(\"c\" & (VLOOKUP(Rebalance!$D$37,$F$2:$G$48,2,FALSE)+ROW()-2))=Rebalance!$D$37,INDIRECT(\"a\" & (VLOOKUP(Rebalance!$D$37,$F$2:$G$48,2,FALSE)+ROW()-2)),\"\")","v":{"$error":"#N/A"}},{"$f":"IF(INDIRECT(\"c\" & (VLOOKUP(Rebalance!$D$38,$F$2:$G$48,2,FALSE)+ROW()-2))=Rebalance!$D$38,INDIRECT(\"a\" & (VLOOKUP(Rebalance!$D$38,$F$2:$G$48,2,FALSE)+ROW()-2)),\"\")","v":{"$error":"#N/A"}},{"$f":"IF(INDIRECT(\"c\" & (VLOOKUP(Rebalance!$D$39,$F$2:$G$48,2,FALSE)+ROW()-2))=Rebalance!$D$39,INDIRECT(\"a\" & (VLOOKUP(Rebalance!$D$39,$F$2:$G$48,2,FALSE)+ROW()-2)),\"\")","v":{"$error":"#N/A"}},{"$f":"IF(INDIRECT(\"c\" & (VLOOKUP(Rebalance!$D$40,$F$2:$G$48,2,FALSE)+ROW()-2))=Rebalance!$D$40,INDIRECT(\"a\" & (VLOOKUP(Rebalance!$D$40,$F$2:$G$48,2,FALSE)+ROW()-2)),\"\")","v":{"$error":"#N/A"}},{"$f":"IF(INDIRECT(\"c\" & (VLOOKUP(Rebalance!$D$52,$F$2:$G$48,2,FALSE)+ROW()-2))=Rebalance!$D$52,INDIRECT(\"a\" & (VLOOKUP(Rebalance!$D$52,$F$2:$G$48,2,FALSE)+ROW()-2)),\"\")","v":{"$error":"#N/A"}},{"$f":"IF(INDIRECT(\"c\" & (VLOOKUP(Rebalance!$D$53,$F$2:$G$48,2,FALSE)+ROW()-2))=Rebalance!$D$53,INDIRECT(\"a\" & (VLOOKUP(Rebalance!$D$53,$F$2:$G$48,2,FALSE)+ROW()-2)),\"\")","v":{"$error":"#N/A"}},{"$f":"IF(INDIRECT(\"c\" & (VLOOKUP(Rebalance!$D$54,$F$2:$G$48,2,FALSE)+ROW()-2))=Rebalance!$D$54,INDIRECT(\"a\" & (VLOOKUP(Rebalance!$D$54,$F$2:$G$48,2,FALSE)+ROW()-2)),\"\")","v":{"$error":"#N/A"}},{"$f":"IF(INDIRECT(\"c\" & (VLOOKUP(Rebalance!$D$55,$F$2:$G$48,2,FALSE)+ROW()-2))=Rebalance!$D$55,INDIRECT(\"a\" & (VLOOKUP(Rebalance!$D$55,$F$2:$G$48,2,FALSE)+ROW()-2)),\"\")","v":{"$error":"#N/A"}},{"$f":"IF(INDIRECT(\"c\" & (VLOOKUP(Rebalance!$D$56,$F$2:$G$48,2,FALSE)+ROW()-2))=Rebalance!$D$56,INDIRECT(\"a\" & (VLOOKUP(Rebalance!$D$56,$F$2:$G$48,2,FALSE)+ROW()-2)),\"\")","v":{"$error":"#N/A"}},{"$f":"IF(INDIRECT(\"c\" & (VLOOKUP(Rebalance!$D$57,$F$2:$G$48,2,FALSE)+ROW()-2))=Rebalance!$D$57,INDIRECT(\"a\" & (VLOOKUP(Rebalance!$D$57,$F$2:$G$48,2,FALSE)+ROW()-2)),\"\")","v":{"$error":"#N/A"}},{"$f":"IF(INDIRECT(\"c\" & (VLOOKUP(Rebalance!$D$58,$F$2:$G$48,2,FALSE)+ROW()-2))=Rebalance!$D$58,INDIRECT(\"a\" & (VLOOKUP(Rebalance!$D$58,$F$2:$G$48,2,FALSE)+ROW()-2)),\"\")","v":{"$error":"#N/A"}},{"$f":"IF(INDIRECT(\"c\" & (VLOOKUP(Rebalance!$D$59,$F$2:$G$48,2,FALSE)+ROW()-2))=Rebalance!$D$59,INDIRECT(\"a\" & (VLOOKUP(Rebalance!$D$59,$F$2:$G$48,2,FALSE)+ROW()-2)),\"\")","v":{"$error":"#N/A"}},{"$f":"IF(INDIRECT(\"c\" & (VLOOKUP(Rebalance!$D$60,$F$2:$G$48,2,FALSE)+ROW()-2))=Rebalance!$D$60,INDIRECT(\"a\" & (VLOOKUP(Rebalance!$D$60,$F$2:$G$48,2,FALSE)+ROW()-2)),\"\")","v":{"$error":"#N/A"}},{"$f":"IF(INDIRECT(\"c\" & (VLOOKUP(Rebalance!$D$61,$F$2:$G$48,2,FALSE)+ROW()-2))=Rebalance!$D$61,INDIRECT(\"a\" & (VLOOKUP(Rebalance!$D$61,$F$2:$G$48,2,FALSE)+ROW()-2)),\"\")","v":{"$error":"#N/A"}},{"$f":"IF(INDIRECT(\"c\" & (VLOOKUP(Rebalance!$D$62,$F$2:$G$48,2,FALSE)+ROW()-2))=Rebalance!$D$62,INDIRECT(\"a\" & (VLOOKUP(Rebalance!$D$62,$F$2:$G$48,2,FALSE)+ROW()-2)),\"\")","v":{"$error":"#N/A"}},{"$f":"IF(INDIRECT(\"c\" & (VLOOKUP(Rebalance!$D$63,$F$2:$G$48,2,FALSE)+ROW()-2))=Rebalance!$D$63,INDIRECT(\"a\" & (VLOOKUP(Rebalance!$D$63,$F$2:$G$48,2,FALSE)+ROW()-2)),\"\")","v":{"$error":"#N/A"}},{"$f":"IF(INDIRECT(\"c\" & (VLOOKUP(Rebalance!$D$64,$F$2:$G$48,2,FALSE)+ROW()-2))=Rebalance!$D$64,INDIRECT(\"a\" & (VLOOKUP(Rebalance!$D$64,$F$2:$G$48,2,FALSE)+ROW()-2)),\"\")","v":{"$error":"#N/A"}},{"$f":"IF(INDIRECT(\"c\" & (VLOOKUP(Rebalance!$D$65,$F$2:$G$48,2,FALSE)+ROW()-2))=Rebalance!$D$65,INDIRECT(\"a\" & (VLOOKUP(Rebalance!$D$65,$F$2:$G$48,2,FALSE)+ROW()-2)),\"\")","v":{"$error":"#N/A"}},{"$f":"IF(INDIRECT(\"c\" & (VLOOKUP(Rebalance!$D$66,$F$2:$G$48,2,FALSE)+ROW()-2))=Rebalance!$D$66,INDIRECT(\"a\" & (VLOOKUP(Rebalance!$D$66,$F$2:$G$48,2,FALSE)+ROW()-2)),\"\")","v":{"$error":"#N/A"}}]
[null,null,null,{"$f":"ROW()","v":561},null,null,{"$f":"VLOOKUP(F561,$C$2:$D$599,2,FALSE)","v":{"$error":"#N/A"}},{"$f":"IF(INDIRECT(\"c\" & (VLOOKUP(Rebalance!$D$26,$F$2:$G$48,2,FALSE)+ROW()-2))=Rebalance!$D$26,INDIRECT(\"a\" & (VLOOKUP(Rebalance!$D$26,$F$2:$G$48,2,FALSE)+ROW()-2)),\"\")","v":{"$error":"#N/A"}},{"$f":"IF(INDIRECT(\"c\" & (VLOOKUP(Rebalance!$D$27,$F$2:$G$48,2,FALSE)+ROW()-2))=Rebalance!$D$27,INDIRECT(\"a\" & (VLOOKUP(Rebalance!$D$27,$F$2:$G$48,2,FALSE)+ROW()-2)),\"\")","v":{"$error":"#N/A"}},{"$f":"IF(INDIRECT(\"c\" & (VLOOKUP(Rebalance!$D$28,$F$2:$G$48,2,FALSE)+ROW()-2))=Rebalance!$D$28,INDIRECT(\"a\" & (VLOOKUP(Rebalance!$D$28,$F$2:$G$48,2,FALSE)+ROW()-2)),\"\")","v":{"$error":"#N/A"}},{"$f":"IF(INDIRECT(\"c\" & (VLOOKUP(Rebalance!$D$29,$F$2:$G$48,2,FALSE)+ROW()-2))=Rebalance!$D$29,INDIRECT(\"a\" & (VLOOKUP(Rebalance!$D$29,$F$2:$G$48,2,FALSE)+ROW()-2)),\"\")","v":{"$error":"#N/A"}},{"$f":"IF(INDIRECT(\"c\" & (VLOOKUP(Rebalance!$D$30,$F$2:$G$48,2,FALSE)+ROW()-2))=Rebalance!$D$30,INDIRECT(\"a\" & (VLOOKUP(Rebalance!$D$30,$F$2:$G$48,2,FALSE)+ROW()-2)),\"\")","v":{"$error":"#N/A"}},{"$f":"IF(INDIRECT(\"c\" & (VLOOKUP(Rebalance!$D$31,$F$2:$G$48,2,FALSE)+ROW()-2))=Rebalance!$D$31,INDIRECT(\"a\" & (VLOOKUP(Rebalance!$D$31,$F$2:$G$48,2,FALSE)+ROW()-2)),\"\")","v":{"$error":"#N/A"}},{"$f":"IF(INDIRECT(\"c\" & (VLOOKUP(Rebalance!$D$32,$F$2:$G$48,2,FALSE)+ROW()-2))=Rebalance!$D$32,INDIRECT(\"a\" & (VLOOKUP(Rebalance!$D$32,$F$2:$G$48,2,FALSE)+ROW()-2)),\"\")","v":{"$error":"#N/A"}},{"$f":"IF(INDIRECT(\"c\" & (VLOOKUP(Rebalance!$D$33,$F$2:$G$48,2,FALSE)+ROW()-2))=Rebalance!$D$33,INDIRECT(\"a\" & (VLOOKUP(Rebalance!$D$33,$F$2:$G$48,2,FALSE)+ROW()-2)),\"\")","v":{"$error":"#N/A"}},{"$f":"IF(INDIRECT(\"c\" & (VLOOKUP(Rebalance!$D$34,$F$2:$G$48,2,FALSE)+ROW()-2))=Rebalance!$D$34,INDIRECT(\"a\" & (VLOOKUP(Rebalance!$D$34,$F$2:$G$48,2,FALSE)+ROW()-2)),\"\")","v":{"$error":"#N/A"}},{"$f":"IF(INDIRECT(\"c\" & (VLOOKUP(Rebalance!$D$35,$F$2:$G$48,2,FALSE)+ROW()-2))=Rebalance!$D$35,INDIRECT(\"a\" & (VLOOKUP(Rebalance!$D$35,$F$2:$G$48,2,FALSE)+ROW()-2)),\"\")","v":{"$error":"#N/A"}},{"$f":"IF(INDIRECT(\"c\" & (VLOOKUP(Rebalance!$D$36,$F$2:$G$48,2,FALSE)+ROW()-2))=Rebalance!$D$36,INDIRECT(\"a\" & (VLOOKUP(Rebalance!$D$36,$F$2:$G$48,2,FALSE)+ROW()-2)),\"\")","v":{"$error":"#N/A"}},{"$f":"IF(INDIRECT(\"c\" & (VLOOKUP(Rebalance!$D$37,$F$2:$G$48,2,FALSE)+ROW()-2))=Rebalance!$D$37,INDIRECT(\"a\" & (VLOOKUP(Rebalance!$D$37,$F$2:$G$48,2,FALSE)+ROW()-2)),\"\")","v":{"$error":"#N/A"}},{"$f":"IF(INDIRECT(\"c\" & (VLOOKUP(Rebalance!$D$38,$F$2:$G$48,2,FALSE)+ROW()-2))=Rebalance!$D$38,INDIRECT(\"a\" & (VLOOKUP(Rebalance!$D$38,$F$2:$G$48,2,FALSE)+ROW()-2)),\"\")","v":{"$error":"#N/A"}},{"$f":"IF(INDIRECT(\"c\" & (VLOOKUP(Rebalance!$D$39,$F$2:$G$48,2,FALSE)+ROW()-2))=Rebalance!$D$39,INDIRECT(\"a\" & (VLOOKUP(Rebalance!$D$39,$F$2:$G$48,2,FALSE)+ROW()-2)),\"\")","v":{"$error":"#N/A"}},{"$f":"IF(INDIRECT(\"c\" & (VLOOKUP(Rebalance!$D$40,$F$2:$G$48,2,FALSE)+ROW()-2))=Rebalance!$D$40,INDIRECT(\"a\" & (VLOOKUP(Rebalance!$D$40,$F$2:$G$48,2,FALSE)+ROW()-2)),\"\")","v":{"$error":"#N/A"}},{"$f":"IF(INDIRECT(\"c\" & (VLOOKUP(Rebalance!$D$52,$F$2:$G$48,2,FALSE)+ROW()-2))=Rebalance!$D$52,INDIRECT(\"a\" & (VLOOKUP(Rebalance!$D$52,$F$2:$G$48,2,FALSE)+ROW()-2)),\"\")","v":{"$error":"#N/A"}},{"$f":"IF(INDIRECT(\"c\" & (VLOOKUP(Rebalance!$D$53,$F$2:$G$48,2,FALSE)+ROW()-2))=Rebalance!$D$53,INDIRECT(\"a\" & (VLOOKUP(Rebalance!$D$53,$F$2:$G$48,2,FALSE)+ROW()-2)),\"\")","v":{"$error":"#N/A"}},{"$f":"IF(INDIRECT(\"c\" & (VLOOKUP(Rebalance!$D$54,$F$2:$G$48,2,FALSE)+ROW()-2))=Rebalance!$D$54,INDIRECT(\"a\" & (VLOOKUP(Rebalance!$D$54,$F$2:$G$48,2,FALSE)+ROW()-2)),\"\")","v":{"$error":"#N/A"}},{"$f":"IF(INDIRECT(\"c\" & (VLOOKUP(Rebalance!$D$55,$F$2:$G$48,2,FALSE)+ROW()-2))=Rebalance!$D$55,INDIRECT(\"a\" & (VLOOKUP(Rebalance!$D$55,$F$2:$G$48,2,FALSE)+ROW()-2)),\"\")","v":{"$error":"#N/A"}},{"$f":"IF(INDIRECT(\"c\" & (VLOOKUP(Rebalance!$D$56,$F$2:$G$48,2,FALSE)+ROW()-2))=Rebalance!$D$56,INDIRECT(\"a\" & (VLOOKUP(Rebalance!$D$56,$F$2:$G$48,2,FALSE)+ROW()-2)),\"\")","v":{"$error":"#N/A"}},{"$f":"IF(INDIRECT(\"c\" & (VLOOKUP(Rebalance!$D$57,$F$2:$G$48,2,FALSE)+ROW()-2))=Rebalance!$D$57,INDIRECT(\"a\" & (VLOOKUP(Rebalance!$D$57,$F$2:$G$48,2,FALSE)+ROW()-2)),\"\")","v":{"$error":"#N/A"}},{"$f":"IF(INDIRECT(\"c\" & (VLOOKUP(Rebalance!$D$58,$F$2:$G$48,2,FALSE)+ROW()-2))=Rebalance!$D$58,INDIRECT(\"a\" & (VLOOKUP(Rebalance!$D$58,$F$2:$G$48,2,FALSE)+ROW()-2)),\"\")","v":{"$error":"#N/A"}},{"$f":"IF(INDIRECT(\"c\" & (VLOOKUP(Rebalance!$D$59,$F$2:$G$48,2,FALSE)+ROW()-2))=Rebalance!$D$59,INDIRECT(\"a\" & (VLOOKUP(Rebalance!$D$59,$F$2:$G$48,2,FALSE)+ROW()-2)),\"\")","v":{"$error":"#N/A"}},{"$f":"IF(INDIRECT(\"c\" & (VLOOKUP(Rebalance!$D$60,$F$2:$G$48,2,FALSE)+ROW()-2))=Rebalance!$D$60,INDIRECT(\"a\" & (VLOOKUP(Rebalance!$D$60,$F$2:$G$48,2,FALSE)+ROW()-2)),\"\")","v":{"$error":"#N/A"}},{"$f":"IF(INDIRECT(\"c\" & (VLOOKUP(Rebalance!$D$61,$F$2:$G$48,2,FALSE)+ROW()-2))=Rebalance!$D$61,INDIRECT(\"a\" & (VLOOKUP(Rebalance!$D$61,$F$2:$G$48,2,FALSE)+ROW()-2)),\"\")","v":{"$error":"#N/A"}},{"$f":"IF(INDIRECT(\"c\" & (VLOOKUP(Rebalance!$D$62,$F$2:$G$48,2,FALSE)+ROW()-2))=Rebalance!$D$62,INDIRECT(\"a\" & (VLOOKUP(Rebalance!$D$62,$F$2:$G$48,2,FALSE)+ROW()-2)),\"\")","v":{"$error":"#N/A"}},{"$f":"IF(INDIRECT(\"c\" & (VLOOKUP(Rebalance!$D$63,$F$2:$G$48,2,FALSE)+ROW()-2))=Rebalance!$D$63,INDIRECT(\"a\" & (VLOOKUP(Rebalance!$D$63,$F$2:$G$48,2,FALSE)+ROW()-2)),\"\")","v":{"$error":"#N/A"}},{"$f":"IF(INDIRECT(\"c\" & (VLOOKUP(Rebalance!$D$64,$F$2:$G$48,2,FALSE)+ROW()-2))=Rebalance!$D$64,INDIRECT(\"a\" & (VLOOKUP(Rebalance!$D$64,$F$2:$G$48,2,FALSE)+ROW()-2)),\"\")","v":{"$error":"#N/A"}},{"$f":"IF(INDIRECT(\"c\" & (VLOOKUP(Rebalance!$D$65,$F$2:$G$48,2,FALSE)+ROW()-2))=Rebalance!$D$65,INDIRECT(\"a\" & (VLOOKUP(Rebalance!$D$65,$F$2:$G$48,2,FALSE)+ROW()-2)),\"\")","v":{"$error":"#N/A"}},{"$f":"IF(INDIRECT(\"c\" & (VLOOKUP(Rebalance!$D$66,$F$2:$G$48,2,FALSE)+ROW()-2))=Rebalance!$D$66,INDIRECT(\"a\" & (VLOOKUP(Rebalance!$D$66,$F$2:$G$48,2,FALSE)+ROW()-2)),\"\")","v":{"$error":"#N/A"}}]
[null,null,null,{"$f":"ROW()","v":562},null,null,{"$f":"VLOOKUP(F562,$C$2:$D$599,2,FALSE)","v":{"$error":"#N/A"}},{"$f":"IF(INDIRECT(\"c\" & (VLOOKUP(Rebalance!$D$26,$F$2:$G$48,2,FALSE)+ROW()-2))=Rebalance!$D$26,INDIRECT(\"a\" & (VLOOKUP(Rebalance!$D$26,$F$2:$G$48,2,FALSE)+ROW()-2)),\"\")","v":{"$error":"#N/A"}},{"$f":"IF(INDIRECT(\"c\" & (VLOOKUP(Rebalance!$D$27,$F$2:$G$48,2,FALSE)+ROW()-2))=Rebalance!$D$27,INDIRECT(\"a\" & (VLOOKUP(Rebalance!$D$27,$F$2:$G$48,2,FALSE)+ROW()-2)),\"\")","v":{"$error":"#N/A"}},{"$f":"IF(INDIRECT(\"c\" & (VLOOKUP(Rebalance!$D$28,$F$2:$G$48,2,FALSE)+ROW()-2))=Rebalance!$D$28,INDIRECT(\"a\" & (VLOOKUP(Rebalance!$D$28,$F$2:$G$48,2,FALSE)+ROW()-2)),\"\")","v":{"$error":"#N/A"}},{"$f":"IF(INDIRECT(\"c\" & (VLOOKUP(Rebalance!$D$29,$F$2:$G$48,2,FALSE)+ROW()-2))=Rebalance!$D$29,INDIRECT(\"a\" & (VLOOKUP(Rebalance!$D$29,$F$2:$G$48,2,FALSE)+ROW()-2)),\"\")","v":{"$error":"#N/A"}},{"$f":"IF(INDIRECT(\"c\" & (VLOOKUP(Rebalance!$D$30,$F$2:$G$48,2,FALSE)+ROW()-2))=Rebalance!$D$30,INDIRECT(\"a\" & (VLOOKUP(Rebalance!$D$30,$F$2:$G$48,2,FALSE)+ROW()-2)),\"\")","v":{"$error":"#N/A"}},{"$f":"IF(INDIRECT(\"c\" & (VLOOKUP(Rebalance!$D$31,$F$2:$G$48,2,FALSE)+ROW()-2))=Rebalance!$D$31,INDIRECT(\"a\" & (VLOOKUP(Rebalance!$D$31,$F$2:$G$48,2,FALSE)+ROW()-2)),\"\")","v":{"$error":"#N/A"}},{"$f":"IF(INDIRECT(\"c\" & (VLOOKUP(Rebalance!$D$32,$F$2:$G$48,2,FALSE)+ROW()-2))=Rebalance!$D$32,INDIRECT(\"a\" & (VLOOKUP(Rebalance!$D$32,$F$2:$G$48,2,FALSE)+ROW()-2)),\"\")","v":{"$error":"#N/A"}},{"$f":"IF(INDIRECT(\"c\" & (VLOOKUP(Rebalance!$D$33,$F$2:$G$48,2,FALSE)+ROW()-2))=Rebalance!$D$33,INDIRECT(\"a\" & (VLOOKUP(Rebalance!$D$33,$F$2:$G$48,2,FALSE)+ROW()-2)),\"\")","v":{"$error":"#N/A"}},{"$f":"IF(INDIRECT(\"c\" & (VLOOKUP(Rebalance!$D$34,$F$2:$G$48,2,FALSE)+ROW()-2))=Rebalance!$D$34,INDIRECT(\"a\" & (VLOOKUP(Rebalance!$D$34,$F$2:$G$48,2,FALSE)+ROW()-2)),\"\")","v":{"$error":"#N/A"}},{"$f":"IF(INDIRECT(\"c\" & (VLOOKUP(Rebalance!$D$35,$F$2:$G$48,2,FALSE)+ROW()-2))=Rebalance!$D$35,INDIRECT(\"a\" & (VLOOKUP(Rebalance!$D$35,$F$2:$G$48,2,FALSE)+ROW()-2)),\"\")","v":{"$error":"#N/A"}},{"$f":"IF(INDIRECT(\"c\" & (VLOOKUP(Rebalance!$D$36,$F$2:$G$48,2,FALSE)+ROW()-2))=Rebalance!$D$36,INDIRECT(\"a\" & (VLOOKUP(Rebalance!$D$36,$F$2:$G$48,2,FALSE)+ROW()-2)),\"\")","v":{"$error":"#N/A"}},{"$f":"IF(INDIRECT(\"c\" & (VLOOKUP(Rebalance!$D$37,$F$2:$G$48,2,FALSE)+ROW()-2))=Rebalance!$D$37,INDIRECT(\"a\" & (VLOOKUP(Rebalance!$D$37,$F$2:$G$48,2,FALSE)+ROW()-2)),\"\")","v":{"$error":"#N/A"}},{"$f":"IF(INDIRECT(\"c\" & (VLOOKUP(Rebalance!$D$38,$F$2:$G$48,2,FALSE)+ROW()-2))=Rebalance!$D$38,INDIRECT(\"a\" & (VLOOKUP(Rebalance!$D$38,$F$2:$G$48,2,FALSE)+ROW()-2)),\"\")","v":{"$error":"#N/A"}},{"$f":"IF(INDIRECT(\"c\" & (VLOOKUP(Rebalance!$D$39,$F$2:$G$48,2,FALSE)+ROW()-2))=Rebalance!$D$39,INDIRECT(\"a\" & (VLOOKUP(Rebalance!$D$39,$F$2:$G$48,2,FALSE)+ROW()-2)),\"\")","v":{"$error":"#N/A"}},{"$f":"IF(INDIRECT(\"c\" & (VLOOKUP(Rebalance!$D$40,$F$2:$G$48,2,FALSE)+ROW()-2))=Rebalance!$D$40,INDIRECT(\"a\" & (VLOOKUP(Rebalance!$D$40,$F$2:$G$48,2,FALSE)+ROW()-2)),\"\")","v":{"$error":"#N/A"}},{"$f":"IF(INDIRECT(\"c\" & (VLOOKUP(Rebalance!$D$52,$F$2:$G$48,2,FALSE)+ROW()-2))=Rebalance!$D$52,INDIRECT(\"a\" & (VLOOKUP(Rebalance!$D$52,$F$2:$G$48,2,FALSE)+ROW()-2)),\"\")","v":{"$error":"#N/A"}},{"$f":"IF(INDIRECT(\"c\" & (VLOOKUP(Rebalance!$D$53,$F$2:$G$48,2,FALSE)+ROW()-2))=Rebalance!$D$53,INDIRECT(\"a\" & (VLOOKUP(Rebalance!$D$53,$F$2:$G$48,2,FALSE)+ROW()-2)),\"\")","v":{"$error":"#N/A"}},{"$f":"IF(INDIRECT(\"c\" & (VLOOKUP(Rebalance!$D$54,$F$2:$G$48,2,FALSE)+ROW()-2))=Rebalance!$D$54,INDIRECT(\"a\" & (VLOOKUP(Rebalance!$D$54,$F$2:$G$48,2,FALSE)+ROW()-2)),\"\")","v":{"$error":"#N/A"}},{"$f":"IF(INDIRECT(\"c\" & (VLOOKUP(Rebalance!$D$55,$F$2:$G$48,2,FALSE)+ROW()-2))=Rebalance!$D$55,INDIRECT(\"a\" & (VLOOKUP(Rebalance!$D$55,$F$2:$G$48,2,FALSE)+ROW()-2)),\"\")","v":{"$error":"#N/A"}},{"$f":"IF(INDIRECT(\"c\" & (VLOOKUP(Rebalance!$D$56,$F$2:$G$48,2,FALSE)+ROW()-2))=Rebalance!$D$56,INDIRECT(\"a\" & (VLOOKUP(Rebalance!$D$56,$F$2:$G$48,2,FALSE)+ROW()-2)),\"\")","v":{"$error":"#N/A"}},{"$f":"IF(INDIRECT(\"c\" & (VLOOKUP(Rebalance!$D$57,$F$2:$G$48,2,FALSE)+ROW()-2))=Rebalance!$D$57,INDIRECT(\"a\" & (VLOOKUP(Rebalance!$D$57,$F$2:$G$48,2,FALSE)+ROW()-2)),\"\")","v":{"$error":"#N/A"}},{"$f":"IF(INDIRECT(\"c\" & (VLOOKUP(Rebalance!$D$58,$F$2:$G$48,2,FALSE)+ROW()-2))=Rebalance!$D$58,INDIRECT(\"a\" & (VLOOKUP(Rebalance!$D$58,$F$2:$G$48,2,FALSE)+ROW()-2)),\"\")","v":{"$error":"#N/A"}},{"$f":"IF(INDIRECT(\"c\" & (VLOOKUP(Rebalance!$D$59,$F$2:$G$48,2,FALSE)+ROW()-2))=Rebalance!$D$59,INDIRECT(\"a\" & (VLOOKUP(Rebalance!$D$59,$F$2:$G$48,2,FALSE)+ROW()-2)),\"\")","v":{"$error":"#N/A"}},{"$f":"IF(INDIRECT(\"c\" & (VLOOKUP(Rebalance!$D$60,$F$2:$G$48,2,FALSE)+ROW()-2))=Rebalance!$D$60,INDIRECT(\"a\" & (VLOOKUP(Rebalance!$D$60,$F$2:$G$48,2,FALSE)+ROW()-2)),\"\")","v":{"$error":"#N/A"}},{"$f":"IF(INDIRECT(\"c\" & (VLOOKUP(Rebalance!$D$61,$F$2:$G$48,2,FALSE)+ROW()-2))=Rebalance!$D$61,INDIRECT(\"a\" & (VLOOKUP(Rebalance!$D$61,$F$2:$G$48,2,FALSE)+ROW()-2)),\"\")","v":{"$error":"#N/A"}},{"$f":"IF(INDIRECT(\"c\" & (VLOOKUP(Rebalance!$D$62,$F$2:$G$48,2,FALSE)+ROW()-2))=Rebalance!$D$62,INDIRECT(\"a\" & (VLOOKUP(Rebalance!$D$62,$F$2:$G$48,2,FALSE)+ROW()-2)),\"\")","v":{"$error":"#N/A"}},{"$f":"IF(INDIRECT(\"c\" & (VLOOKUP(Rebalance!$D$63,$F$2:$G$48,2,FALSE)+ROW()-2))=Rebalance!$D$63,INDIRECT(\"a\" & (VLOOKUP(Rebalance!$D$63,$F$2:$G$48,2,FALSE)+ROW()-2)),\"\")","v":{"$error":"#N/A"}},{"$f":"IF(INDIRECT(\"c\" & (VLOOKUP(Rebalance!$D$64,$F$2:$G$48,2,FALSE)+ROW()-2))=Rebalance!$D$64,INDIRECT(\"a\" & (VLOOKUP(Rebalance!$D$64,$F$2:$G$48,2,FALSE)+ROW()-2)),\"\")","v":{"$error":"#N/A"}},{"$f":"IF(INDIRECT(\"c\" & (VLOOKUP(Rebalance!$D$65,$F$2:$G$48,2,FALSE)+ROW()-2))=Rebalance!$D$65,INDIRECT(\"a\" & (VLOOKUP(Rebalance!$D$65,$F$2:$G$48,2,FALSE)+ROW()-2)),\"\")","v":{"$error":"#N/A"}},{"$f":"IF(INDIRECT(\"c\" & (VLOOKUP(Rebalance!$D$66,$F$2:$G$48,2,FALSE)+ROW()-2))=Rebalance!$D$66,INDIRECT(\"a\" & (VLOOKUP(Rebalance!$D$66,$F$2:$G$48,2,FALSE)+ROW()-2)),\"\")","v":{"$error":"#N/A"}}]
[null,null,null,{"$f":"ROW()","v":563},null,null,{"$f":"VLOOKUP(F563,$C$2:$D$599,2,FALSE)","v":{"$error":"#N/A"}},{"$f":"IF(INDIRECT(\"c\" & (VLOOKUP(Rebalance!$D$26,$F$2:$G$48,2,FALSE)+ROW()-2))=Rebalance!$D$26,INDIRECT(\"a\" & (VLOOKUP(Rebalance!$D$26,$F$2:$G$48,2,FALSE)+ROW()-2)),\"\")","v":{"$error":"#N/A"}},{"$f":"IF(INDIRECT(\"c\" & (VLOOKUP(Rebalance!$D$27,$F$2:$G$48,2,FALSE)+ROW()-2))=Rebalance!$D$27,INDIRECT(\"a\" & (VLOOKUP(Rebalance!$D$27,$F$2:$G$48,2,FALSE)+ROW()-2)),\"\")","v":{"$error":"#N/A"}},{"$f":"IF(INDIRECT(\"c\" & (VLOOKUP(Rebalance!$D$28,$F$2:$G$48,2,FALSE)+ROW()-2))=Rebalance!$D$28,INDIRECT(\"a\" & (VLOOKUP(Rebalance!$D$28,$F$2:$G$48,2,FALSE)+ROW()-2)),\"\")","v":{"$error":"#N/A"}},{"$f":"IF(INDIRECT(\"c\" & (VLOOKUP(Rebalance!$D$29,$F$2:$G$48,2,FALSE)+ROW()-2))=Rebalance!$D$29,INDIRECT(\"a\" & (VLOOKUP(Rebalance!$D$29,$F$2:$G$48,2,FALSE)+ROW()-2)),\"\")","v":{"$error":"#N/A"}},{"$f":"IF(INDIRECT(\"c\" & (VLOOKUP(Rebalance!$D$30,$F$2:$G$48,2,FALSE)+ROW()-2))=Rebalance!$D$30,INDIRECT(\"a\" & (VLOOKUP(Rebalance!$D$30,$F$2:$G$48,2,FALSE)+ROW()-2)),\"\")","v":{"$error":"#N/A"}},{"$f":"IF(INDIRECT(\"c\" & (VLOOKUP(Rebalance!$D$31,$F$2:$G$48,2,FALSE)+ROW()-2))=Rebalance!$D$31,INDIRECT(\"a\" & (VLOOKUP(Rebalance!$D$31,$F$2:$G$48,2,FALSE)+ROW()-2)),\"\")","v":{"$error":"#N/A"}},{"$f":"IF(INDIRECT(\"c\" & (VLOOKUP(Rebalance!$D$32,$F$2:$G$48,2,FALSE)+ROW()-2))=Rebalance!$D$32,INDIRECT(\"a\" & (VLOOKUP(Rebalance!$D$32,$F$2:$G$48,2,FALSE)+ROW()-2)),\"\")","v":{"$error":"#N/A"}},{"$f":"IF(INDIRECT(\"c\" & (VLOOKUP(Rebalance!$D$33,$F$2:$G$48,2,FALSE)+ROW()-2))=Rebalance!$D$33,INDIRECT(\"a\" & (VLOOKUP(Rebalance!$D$33,$F$2:$G$48,2,FALSE)+ROW()-2)),\"\")","v":{"$error":"#N/A"}},{"$f":"IF(INDIRECT(\"c\" & (VLOOKUP(Rebalance!$D$34,$F$2:$G$48,2,FALSE)+ROW()-2))=Rebalance!$D$34,INDIRECT(\"a\" & (VLOOKUP(Rebalance!$D$34,$F$2:$G$48,2,FALSE)+ROW()-2)),\"\")","v":{"$error":"#N/A"}},{"$f":"IF(INDIRECT(\"c\" & (VLOOKUP(Rebalance!$D$35,$F$2:$G$48,2,FALSE)+ROW()-2))=Rebalance!$D$35,INDIRECT(\"a\" & (VLOOKUP(Rebalance!$D$35,$F$2:$G$48,2,FALSE)+ROW()-2)),\"\")","v":{"$error":"#N/A"}},{"$f":"IF(INDIRECT(\"c\" & (VLOOKUP(Rebalance!$D$36,$F$2:$G$48,2,FALSE)+ROW()-2))=Rebalance!$D$36,INDIRECT(\"a\" & (VLOOKUP(Rebalance!$D$36,$F$2:$G$48,2,FALSE)+ROW()-2)),\"\")","v":{"$error":"#N/A"}},{"$f":"IF(INDIRECT(\"c\" & (VLOOKUP(Rebalance!$D$37,$F$2:$G$48,2,FALSE)+ROW()-2))=Rebalance!$D$37,INDIRECT(\"a\" & (VLOOKUP(Rebalance!$D$37,$F$2:$G$48,2,FALSE)+ROW()-2)),\"\")","v":{"$error":"#N/A"}},{"$f":"IF(INDIRECT(\"c\" & (VLOOKUP(Rebalance!$D$38,$F$2:$G$48,2,FALSE)+ROW()-2))=Rebalance!$D$38,INDIRECT(\"a\" & (VLOOKUP(Rebalance!$D$38,$F$2:$G$48,2,FALSE)+ROW()-2)),\"\")","v":{"$error":"#N/A"}},{"$f":"IF(INDIRECT(\"c\" & (VLOOKUP(Rebalance!$D$39,$F$2:$G$48,2,FALSE)+ROW()-2))=Rebalance!$D$39,INDIRECT(\"a\" & (VLOOKUP(Rebalance!$D$39,$F$2:$G$48,2,FALSE)+ROW()-2)),\"\")","v":{"$error":"#N/A"}},{"$f":"IF(INDIRECT(\"c\" & (VLOOKUP(Rebalance!$D$40,$F$2:$G$48,2,FALSE)+ROW()-2))=Rebalance!$D$40,INDIRECT(\"a\" & (VLOOKUP(Rebalance!$D$40,$F$2:$G$48,2,FALSE)+ROW()-2)),\"\")","v":{"$error":"#N/A"}},{"$f":"IF(INDIRECT(\"c\" & (VLOOKUP(Rebalance!$D$52,$F$2:$G$48,2,FALSE)+ROW()-2))=Rebalance!$D$52,INDIRECT(\"a\" & (VLOOKUP(Rebalance!$D$52,$F$2:$G$48,2,FALSE)+ROW()-2)),\"\")","v":{"$error":"#N/A"}},{"$f":"IF(INDIRECT(\"c\" & (VLOOKUP(Rebalance!$D$53,$F$2:$G$48,2,FALSE)+ROW()-2))=Rebalance!$D$53,INDIRECT(\"a\" & (VLOOKUP(Rebalance!$D$53,$F$2:$G$48,2,FALSE)+ROW()-2)),\"\")","v":{"$error":"#N/A"}},{"$f":"IF(INDIRECT(\"c\" & (VLOOKUP(Rebalance!$D$54,$F$2:$G$48,2,FALSE)+ROW()-2))=Rebalance!$D$54,INDIRECT(\"a\" & (VLOOKUP(Rebalance!$D$54,$F$2:$G$48,2,FALSE)+ROW()-2)),\"\")","v":{"$error":"#N/A"}},{"$f":"IF(INDIRECT(\"c\" & (VLOOKUP(Rebalance!$D$55,$F$2:$G$48,2,FALSE)+ROW()-2))=Rebalance!$D$55,INDIRECT(\"a\" & (VLOOKUP(Rebalance!$D$55,$F$2:$G$48,2,FALSE)+ROW()-2)),\"\")","v":{"$error":"#N/A"}},{"$f":"IF(INDIRECT(\"c\" & (VLOOKUP(Rebalance!$D$56,$F$2:$G$48,2,FALSE)+ROW()-2))=Rebalance!$D$56,INDIRECT(\"a\" & (VLOOKUP(Rebalance!$D$56,$F$2:$G$48,2,FALSE)+ROW()-2)),\"\")","v":{"$error":"#N/A"}},{"$f":"IF(INDIRECT(\"c\" & (VLOOKUP(Rebalance!$D$57,$F$2:$G$48,2,FALSE)+ROW()-2))=Rebalance!$D$57,INDIRECT(\"a\" & (VLOOKUP(Rebalance!$D$57,$F$2:$G$48,2,FALSE)+ROW()-2)),\"\")","v":{"$error":"#N/A"}},{"$f":"IF(INDIRECT(\"c\" & (VLOOKUP(Rebalance!$D$58,$F$2:$G$48,2,FALSE)+ROW()-2))=Rebalance!$D$58,INDIRECT(\"a\" & (VLOOKUP(Rebalance!$D$58,$F$2:$G$48,2,FALSE)+ROW()-2)),\"\")","v":{"$error":"#N/A"}},{"$f":"IF(INDIRECT(\"c\" & (VLOOKUP(Rebalance!$D$59,$F$2:$G$48,2,FALSE)+ROW()-2))=Rebalance!$D$59,INDIRECT(\"a\" & (VLOOKUP(Rebalance!$D$59,$F$2:$G$48,2,FALSE)+ROW()-2)),\"\")","v":{"$error":"#N/A"}},{"$f":"IF(INDIRECT(\"c\" & (VLOOKUP(Rebalance!$D$60,$F$2:$G$48,2,FALSE)+ROW()-2))=Rebalance!$D$60,INDIRECT(\"a\" & (VLOOKUP(Rebalance!$D$60,$F$2:$G$48,2,FALSE)+ROW()-2)),\"\")","v":{"$error":"#N/A"}},{"$f":"IF(INDIRECT(\"c\" & (VLOOKUP(Rebalance!$D$61,$F$2:$G$48,2,FALSE)+ROW()-2))=Rebalance!$D$61,INDIRECT(\"a\" & (VLOOKUP(Rebalance!$D$61,$F$2:$G$48,2,FALSE)+ROW()-2)),\"\")","v":{"$error":"#N/A"}},{"$f":"IF(INDIRECT(\"c\" & (VLOOKUP(Rebalance!$D$62,$F$2:$G$48,2,FALSE)+ROW()-2))=Rebalance!$D$62,INDIRECT(\"a\" & (VLOOKUP(Rebalance!$D$62,$F$2:$G$48,2,FALSE)+ROW()-2)),\"\")","v":{"$error":"#N/A"}},{"$f":"IF(INDIRECT(\"c\" & (VLOOKUP(Rebalance!$D$63,$F$2:$G$48,2,FALSE)+ROW()-2))=Rebalance!$D$63,INDIRECT(\"a\" & (VLOOKUP(Rebalance!$D$63,$F$2:$G$48,2,FALSE)+ROW()-2)),\"\")","v":{"$error":"#N/A"}},{"$f":"IF(INDIRECT(\"c\" & (VLOOKUP(Rebalance!$D$64,$F$2:$G$48,2,FALSE)+ROW()-2))=Rebalance!$D$64,INDIRECT(\"a\" & (VLOOKUP(Rebalance!$D$64,$F$2:$G$48,2,FALSE)+ROW()-2)),\"\")","v":{"$error":"#N/A"}},{"$f":"IF(INDIRECT(\"c\" & (VLOOKUP(Rebalance!$D$65,$F$2:$G$48,2,FALSE)+ROW()-2))=Rebalance!$D$65,INDIRECT(\"a\" & (VLOOKUP(Rebalance!$D$65,$F$2:$G$48,2,FALSE)+ROW()-2)),\"\")","v":{"$error":"#N/A"}},{"$f":"IF(INDIRECT(\"c\" & (VLOOKUP(Rebalance!$D$66,$F$2:$G$48,2,FALSE)+ROW()-2))=Rebalance!$D$66,INDIRECT(\"a\" & (VLOOKUP(Rebalance!$D$66,$F$2:$G$48,2,FALSE)+ROW()-2)),\"\")","v":{"$error":"#N/A"}}]
[null,null,null,{"$f":"ROW()","v":564},null,null,{"$f":"VLOOKUP(F564,$C$2:$D$599,2,FALSE)","v":{"$error":"#N/A"}},{"$f":"IF(INDIRECT(\"c\" & (VLOOKUP(Rebalance!$D$26,$F$2:$G$48,2,FALSE)+ROW()-2))=Rebalance!$D$26,INDIRECT(\"a\" & (VLOOKUP(Rebalance!$D$26,$F$2:$G$48,2,FALSE)+ROW()-2)),\"\")","v":{"$error":"#N/A"}},{"$f":"IF(INDIRECT(\"c\" & (VLOOKUP(Rebalance!$D$27,$F$2:$G$48,2,FALSE)+ROW()-2))=Rebalance!$D$27,INDIRECT(\"a\" & (VLOOKUP(Rebalance!$D$27,$F$2:$G$48,2,FALSE)+ROW()-2)),\"\")","v":{"$error":"#N/A"}},{"$f":"IF(INDIRECT(\"c\" & (VLOOKUP(Rebalance!$D$28,$F$2:$G$48,2,FALSE)+ROW()-2))=Rebalance!$D$28,INDIRECT(\"a\" & (VLOOKUP(Rebalance!$D$28,$F$2:$G$48,2,FALSE)+ROW()-2)),\"\")","v":{"$error":"#N/A"}},{"$f":"IF(INDIRECT(\"c\" & (VLOOKUP(Rebalance!$D$29,$F$2:$G$48,2,FALSE)+ROW()-2))=Rebalance!$D$29,INDIRECT(\"a\" & (VLOOKUP(Rebalance!$D$29,$F$2:$G$48,2,FALSE)+ROW()-2)),\"\")","v":{"$error":"#N/A"}},{"$f":"IF(INDIRECT(\"c\" & (VLOOKUP(Rebalance!$D$30,$F$2:$G$48,2,FALSE)+ROW()-2))=Rebalance!$D$30,INDIRECT(\"a\" & (VLOOKUP(Rebalance!$D$30,$F$2:$G$48,2,FALSE)+ROW()-2)),\"\")","v":{"$error":"#N/A"}},{"$f":"IF(INDIRECT(\"c\" & (VLOOKUP(Rebalance!$D$31,$F$2:$G$48,2,FALSE)+ROW()-2))=Rebalance!$D$31,INDIRECT(\"a\" & (VLOOKUP(Rebalance!$D$31,$F$2:$G$48,2,FALSE)+ROW()-2)),\"\")","v":{"$error":"#N/A"}},{"$f":"IF(INDIRECT(\"c\" & (VLOOKUP(Rebalance!$D$32,$F$2:$G$48,2,FALSE)+ROW()-2))=Rebalance!$D$32,INDIRECT(\"a\" & (VLOOKUP(Rebalance!$D$32,$F$2:$G$48,2,FALSE)+ROW()-2)),\"\")","v":{"$error":"#N/A"}},{"$f":"IF(INDIRECT(\"c\" & (VLOOKUP(Rebalance!$D$33,$F$2:$G$48,2,FALSE)+ROW()-2))=Rebalance!$D$33,INDIRECT(\"a\" & (VLOOKUP(Rebalance!$D$33,$F$2:$G$48,2,FALSE)+ROW()-2)),\"\")","v":{"$error":"#N/A"}},{"$f":"IF(INDIRECT(\"c\" & (VLOOKUP(Rebalance!$D$34,$F$2:$G$48,2,FALSE)+ROW()-2))=Rebalance!$D$34,INDIRECT(\"a\" & (VLOOKUP(Rebalance!$D$34,$F$2:$G$48,2,FALSE)+ROW()-2)),\"\")","v":{"$error":"#N/A"}},{"$f":"IF(INDIRECT(\"c\" & (VLOOKUP(Rebalance!$D$35,$F$2:$G$48,2,FALSE)+ROW()-2))=Rebalance!$D$35,INDIRECT(\"a\" & (VLOOKUP(Rebalance!$D$35,$F$2:$G$48,2,FALSE)+ROW()-2)),\"\")","v":{"$error":"#N/A"}},{"$f":"IF(INDIRECT(\"c\" & (VLOOKUP(Rebalance!$D$36,$F$2:$G$48,2,FALSE)+ROW()-2))=Rebalance!$D$36,INDIRECT(\"a\" & (VLOOKUP(Rebalance!$D$36,$F$2:$G$48,2,FALSE)+ROW()-2)),\"\")","v":{"$error":"#N/A"}},{"$f":"IF(INDIRECT(\"c\" & (VLOOKUP(Rebalance!$D$37,$F$2:$G$48,2,FALSE)+ROW()-2))=Rebalance!$D$37,INDIRECT(\"a\" & (VLOOKUP(Rebalance!$D$37,$F$2:$G$48,2,FALSE)+ROW()-2)),\"\")","v":{"$error":"#N/A"}},{"$f":"IF(INDIRECT(\"c\" & (VLOOKUP(Rebalance!$D$38,$F$2:$G$48,2,FALSE)+ROW()-2))=Rebalance!$D$38,INDIRECT(\"a\" & (VLOOKUP(Rebalance!$D$38,$F$2:$G$48,2,FALSE)+ROW()-2)),\"\")","v":{"$error":"#N/A"}},{"$f":"IF(INDIRECT(\"c\" & (VLOOKUP(Rebalance!$D$39,$F$2:$G$48,2,FALSE)+ROW()-2))=Rebalance!$D$39,INDIRECT(\"a\" & (VLOOKUP(Rebalance!$D$39,$F$2:$G$48,2,FALSE)+ROW()-2)),\"\")","v":{"$error":"#N/A"}},{"$f":"IF(INDIRECT(\"c\" & (VLOOKUP(Rebalance!$D$40,$F$2:$G$48,2,FALSE)+ROW()-2))=Rebalance!$D$40,INDIRECT(\"a\" & (VLOOKUP(Rebalance!$D$40,$F$2:$G$48,2,FALSE)+ROW()-2)),\"\")","v":{"$error":"#N/A"}},{"$f":"IF(INDIRECT(\"c\" & (VLOOKUP(Rebalance!$D$52,$F$2:$G$48,2,FALSE)+ROW()-2))=Rebalance!$D$52,INDIRECT(\"a\" & (VLOOKUP(Rebalance!$D$52,$F$2:$G$48,2,FALSE)+ROW()-2)),\"\")","v":{"$error":"#N/A"}},{"$f":"IF(INDIRECT(\"c\" & (VLOOKUP(Rebalance!$D$53,$F$2:$G$48,2,FALSE)+ROW()-2))=Rebalance!$D$53,INDIRECT(\"a\" & (VLOOKUP(Rebalance!$D$53,$F$2:$G$48,2,FALSE)+ROW()-2)),\"\")","v":{"$error":"#N/A"}},{"$f":"IF(INDIRECT(\"c\" & (VLOOKUP(Rebalance!$D$54,$F$2:$G$48,2,FALSE)+ROW()-2))=Rebalance!$D$54,INDIRECT(\"a\" & (VLOOKUP(Rebalance!$D$54,$F$2:$G$48,2,FALSE)+ROW()-2)),\"\")","v":{"$error":"#N/A"}},{"$f":"IF(INDIRECT(\"c\" & (VLOOKUP(Rebalance!$D$55,$F$2:$G$48,2,FALSE)+ROW()-2))=Rebalance!$D$55,INDIRECT(\"a\" & (VLOOKUP(Rebalance!$D$55,$F$2:$G$48,2,FALSE)+ROW()-2)),\"\")","v":{"$error":"#N/A"}},{"$f":"IF(INDIRECT(\"c\" & (VLOOKUP(Rebalance!$D$56,$F$2:$G$48,2,FALSE)+ROW()-2))=Rebalance!$D$56,INDIRECT(\"a\" & (VLOOKUP(Rebalance!$D$56,$F$2:$G$48,2,FALSE)+ROW()-2)),\"\")","v":{"$error":"#N/A"}},{"$f":"IF(INDIRECT(\"c\" & (VLOOKUP(Rebalance!$D$57,$F$2:$G$48,2,FALSE)+ROW()-2))=Rebalance!$D$57,INDIRECT(\"a\" & (VLOOKUP(Rebalance!$D$57,$F$2:$G$48,2,FALSE)+ROW()-2)),\"\")","v":{"$error":"#N/A"}},{"$f":"IF(INDIRECT(\"c\" & (VLOOKUP(Rebalance!$D$58,$F$2:$G$48,2,FALSE)+ROW()-2))=Rebalance!$D$58,INDIRECT(\"a\" & (VLOOKUP(Rebalance!$D$58,$F$2:$G$48,2,FALSE)+ROW()-2)),\"\")","v":{"$error":"#N/A"}},{"$f":"IF(INDIRECT(\"c\" & (VLOOKUP(Rebalance!$D$59,$F$2:$G$48,2,FALSE)+ROW()-2))=Rebalance!$D$59,INDIRECT(\"a\" & (VLOOKUP(Rebalance!$D$59,$F$2:$G$48,2,FALSE)+ROW()-2)),\"\")","v":{"$error":"#N/A"}},{"$f":"IF(INDIRECT(\"c\" & (VLOOKUP(Rebalance!$D$60,$F$2:$G$48,2,FALSE)+ROW()-2))=Rebalance!$D$60,INDIRECT(\"a\" & (VLOOKUP(Rebalance!$D$60,$F$2:$G$48,2,FALSE)+ROW()-2)),\"\")","v":{"$error":"#N/A"}},{"$f":"IF(INDIRECT(\"c\" & (VLOOKUP(Rebalance!$D$61,$F$2:$G$48,2,FALSE)+ROW()-2))=Rebalance!$D$61,INDIRECT(\"a\" & (VLOOKUP(Rebalance!$D$61,$F$2:$G$48,2,FALSE)+ROW()-2)),\"\")","v":{"$error":"#N/A"}},{"$f":"IF(INDIRECT(\"c\" & (VLOOKUP(Rebalance!$D$62,$F$2:$G$48,2,FALSE)+ROW()-2))=Rebalance!$D$62,INDIRECT(\"a\" & (VLOOKUP(Rebalance!$D$62,$F$2:$G$48,2,FALSE)+ROW()-2)),\"\")","v":{"$error":"#N/A"}},{"$f":"IF(INDIRECT(\"c\" & (VLOOKUP(Rebalance!$D$63,$F$2:$G$48,2,FALSE)+ROW()-2))=Rebalance!$D$63,INDIRECT(\"a\" & (VLOOKUP(Rebalance!$D$63,$F$2:$G$48,2,FALSE)+ROW()-2)),\"\")","v":{"$error":"#N/A"}},{"$f":"IF(INDIRECT(\"c\" & (VLOOKUP(Rebalance!$D$64,$F$2:$G$48,2,FALSE)+ROW()-2))=Rebalance!$D$64,INDIRECT(\"a\" & (VLOOKUP(Rebalance!$D$64,$F$2:$G$48,2,FALSE)+ROW()-2)),\"\")","v":{"$error":"#N/A"}},{"$f":"IF(INDIRECT(\"c\" & (VLOOKUP(Rebalance!$D$65,$F$2:$G$48,2,FALSE)+ROW()-2))=Rebalance!$D$65,INDIRECT(\"a\" & (VLOOKUP(Rebalance!$D$65,$F$2:$G$48,2,FALSE)+ROW()-2)),\"\")","v":{"$error":"#N/A"}},{"$f":"IF(INDIRECT(\"c\" & (VLOOKUP(Rebalance!$D$66,$F$2:$G$48,2,FALSE)+ROW()-2))=Rebalance!$D$66,INDIRECT(\"a\" & (VLOOKUP(Rebalance!$D$66,$F$2:$G$48,2,FALSE)+ROW()-2)),\"\")","v":{"$error":"#N/A"}}]
[null,null,null,{"$f":"ROW()","v":565},null,null,{"$f":"VLOOKUP(F565,$C$2:$D$599,2,FALSE)","v":{"$error":"#N/A"}},{"$f":"IF(INDIRECT(\"c\" & (VLOOKUP(Rebalance!$D$26,$F$2:$G$48,2,FALSE)+ROW()-2))=Rebalance!$D$26,INDIRECT(\"a\" & (VLOOKUP(Rebalance!$D$26,$F$2:$G$48,2,FALSE)+ROW()-2)),\"\")","v":{"$error":"#N/A"}},{"$f":"IF(INDIRECT(\"c\" & (VLOOKUP(Rebalance!$D$27,$F$2:$G$48,2,FALSE)+ROW()-2))=Rebalance!$D$27,INDIRECT(\"a\" & (VLOOKUP(Rebalance!$D$27,$F$2:$G$48,2,FALSE)+ROW()-2)),\"\")","v":{"$error":"#N/A"}},{"$f":"IF(INDIRECT(\"c\" & (VLOOKUP(Rebalance!$D$28,$F$2:$G$48,2,FALSE)+ROW()-2))=Rebalance!$D$28,INDIRECT(\"a\" & (VLOOKUP(Rebalance!$D$28,$F$2:$G$48,2,FALSE)+ROW()-2)),\"\")","v":{"$error":"#N/A"}},{"$f":"IF(INDIRECT(\"c\" & (VLOOKUP(Rebalance!$D$29,$F$2:$G$48,2,FALSE)+ROW()-2))=Rebalance!$D$29,INDIRECT(\"a\" & (VLOOKUP(Rebalance!$D$29,$F$2:$G$48,2,FALSE)+ROW()-2)),\"\")","v":{"$error":"#N/A"}},{"$f":"IF(INDIRECT(\"c\" & (VLOOKUP(Rebalance!$D$30,$F$2:$G$48,2,FALSE)+ROW()-2))=Rebalance!$D$30,INDIRECT(\"a\" & (VLOOKUP(Rebalance!$D$30,$F$2:$G$48,2,FALSE)+ROW()-2)),\"\")","v":{"$error":"#N/A"}},{"$f":"IF(INDIRECT(\"c\" & (VLOOKUP(Rebalance!$D$31,$F$2:$G$48,2,FALSE)+ROW()-2))=Rebalance!$D$31,INDIRECT(\"a\" & (VLOOKUP(Rebalance!$D$31,$F$2:$G$48,2,FALSE)+ROW()-2)),\"\")","v":{"$error":"#N/A"}},{"$f":"IF(INDIRECT(\"c\" & (VLOOKUP(Rebalance!$D$32,$F$2:$G$48,2,FALSE)+ROW()-2))=Rebalance!$D$32,INDIRECT(\"a\" & (VLOOKUP(Rebalance!$D$32,$F$2:$G$48,2,FALSE)+ROW()-2)),\"\")","v":{"$error":"#N/A"}},{"$f":"IF(INDIRECT(\"c\" & (VLOOKUP(Rebalance!$D$33,$F$2:$G$48,2,FALSE)+ROW()-2))=Rebalance!$D$33,INDIRECT(\"a\" & (VLOOKUP(Rebalance!$D$33,$F$2:$G$48,2,FALSE)+ROW()-2)),\"\")","v":{"$error":"#N/A"}},{"$f":"IF(INDIRECT(\"c\" & (VLOOKUP(Rebalance!$D$34,$F$2:$G$48,2,FALSE)+ROW()-2))=Rebalance!$D$34,INDIRECT(\"a\" & (VLOOKUP(Rebalance!$D$34,$F$2:$G$48,2,FALSE)+ROW()-2)),\"\")","v":{"$error":"#N/A"}},{"$f":"IF(INDIRECT(\"c\" & (VLOOKUP(Rebalance!$D$35,$F$2:$G$48,2,FALSE)+ROW()-2))=Rebalance!$D$35,INDIRECT(\"a\" & (VLOOKUP(Rebalance!$D$35,$F$2:$G$48,2,FALSE)+ROW()-2)),\"\")","v":{"$error":"#N/A"}},{"$f":"IF(INDIRECT(\"c\" & (VLOOKUP(Rebalance!$D$36,$F$2:$G$48,2,FALSE)+ROW()-2))=Rebalance!$D$36,INDIRECT(\"a\" & (VLOOKUP(Rebalance!$D$36,$F$2:$G$48,2,FALSE)+ROW()-2)),\"\")","v":{"$error":"#N/A"}},{"$f":"IF(INDIRECT(\"c\" & (VLOOKUP(Rebalance!$D$37,$F$2:$G$48,2,FALSE)+ROW()-2))=Rebalance!$D$37,INDIRECT(\"a\" & (VLOOKUP(Rebalance!$D$37,$F$2:$G$48,2,FALSE)+ROW()-2)),\"\")","v":{"$error":"#N/A"}},{"$f":"IF(INDIRECT(\"c\" & (VLOOKUP(Rebalance!$D$38,$F$2:$G$48,2,FALSE)+ROW()-2))=Rebalance!$D$38,INDIRECT(\"a\" & (VLOOKUP(Rebalance!$D$38,$F$2:$G$48,2,FALSE)+ROW()-2)),\"\")","v":{"$error":"#N/A"}},{"$f":"IF(INDIRECT(\"c\" & (VLOOKUP(Rebalance!$D$39,$F$2:$G$48,2,FALSE)+ROW()-2))=Rebalance!$D$39,INDIRECT(\"a\" & (VLOOKUP(Rebalance!$D$39,$F$2:$G$48,2,FALSE)+ROW()-2)),\"\")","v":{"$error":"#N/A"}},{"$f":"IF(INDIRECT(\"c\" & (VLOOKUP(Rebalance!$D$40,$F$2:$G$48,2,FALSE)+ROW()-2))=Rebalance!$D$40,INDIRECT(\"a\" & (VLOOKUP(Rebalance!$D$40,$F$2:$G$48,2,FALSE)+ROW()-2)),\"\")","v":{"$error":"#N/A"}},{"$f":"IF(INDIRECT(\"c\" & (VLOOKUP(Rebalance!$D$52,$F$2:$G$48,2,FALSE)+ROW()-2))=Rebalance!$D$52,INDIRECT(\"a\" & (VLOOKUP(Rebalance!$D$52,$F$2:$G$48,2,FALSE)+ROW()-2)),\"\")","v":{"$error":"#N/A"}},{"$f":"IF(INDIRECT(\"c\" & (VLOOKUP(Rebalance!$D$53,$F$2:$G$48,2,FALSE)+ROW()-2))=Rebalance!$D$53,INDIRECT(\"a\" & (VLOOKUP(Rebalance!$D$53,$F$2:$G$48,2,FALSE)+ROW()-2)),\"\")","v":{"$error":"#N/A"}},{"$f":"IF(INDIRECT(\"c\" & (VLOOKUP(Rebalance!$D$54,$F$2:$G$48,2,FALSE)+ROW()-2))=Rebalance!$D$54,INDIRECT(\"a\" & (VLOOKUP(Rebalance!$D$54,$F$2:$G$48,2,FALSE)+ROW()-2)),\"\")","v":{"$error":"#N/A"}},{"$f":"IF(INDIRECT(\"c\" & (VLOOKUP(Rebalance!$D$55,$F$2:$G$48,2,FALSE)+ROW()-2))=Rebalance!$D$55,INDIRECT(\"a\" & (VLOOKUP(Rebalance!$D$55,$F$2:$G$48,2,FALSE)+ROW()-2)),\"\")","v":{"$error":"#N/A"}},{"$f":"IF(INDIRECT(\"c\" & (VLOOKUP(Rebalance!$D$56,$F$2:$G$48,2,FALSE)+ROW()-2))=Rebalance!$D$56,INDIRECT(\"a\" & (VLOOKUP(Rebalance!$D$56,$F$2:$G$48,2,FALSE)+ROW()-2)),\"\")","v":{"$error":"#N/A"}},{"$f":"IF(INDIRECT(\"c\" & (VLOOKUP(Rebalance!$D$57,$F$2:$G$48,2,FALSE)+ROW()-2))=Rebalance!$D$57,INDIRECT(\"a\" & (VLOOKUP(Rebalance!$D$57,$F$2:$G$48,2,FALSE)+ROW()-2)),\"\")","v":{"$error":"#N/A"}},{"$f":"IF(INDIRECT(\"c\" & (VLOOKUP(Rebalance!$D$58,$F$2:$G$48,2,FALSE)+ROW()-2))=Rebalance!$D$58,INDIRECT(\"a\" & (VLOOKUP(Rebalance!$D$58,$F$2:$G$48,2,FALSE)+ROW()-2)),\"\")","v":{"$error":"#N/A"}},{"$f":"IF(INDIRECT(\"c\" & (VLOOKUP(Rebalance!$D$59,$F$2:$G$48,2,FALSE)+ROW()-2))=Rebalance!$D$59,INDIRECT(\"a\" & (VLOOKUP(Rebalance!$D$59,$F$2:$G$48,2,FALSE)+ROW()-2)),\"\")","v":{"$error":"#N/A"}},{"$f":"IF(INDIRECT(\"c\" & (VLOOKUP(Rebalance!$D$60,$F$2:$G$48,2,FALSE)+ROW()-2))=Rebalance!$D$60,INDIRECT(\"a\" & (VLOOKUP(Rebalance!$D$60,$F$2:$G$48,2,FALSE)+ROW()-2)),\"\")","v":{"$error":"#N/A"}},{"$f":"IF(INDIRECT(\"c\" & (VLOOKUP(Rebalance!$D$61,$F$2:$G$48,2,FALSE)+ROW()-2))=Rebalance!$D$61,INDIRECT(\"a\" & (VLOOKUP(Rebalance!$D$61,$F$2:$G$48,2,FALSE)+ROW()-2)),\"\")","v":{"$error":"#N/A"}},{"$f":"IF(INDIRECT(\"c\" & (VLOOKUP(Rebalance!$D$62,$F$2:$G$48,2,FALSE)+ROW()-2))=Rebalance!$D$62,INDIRECT(\"a\" & (VLOOKUP(Rebalance!$D$62,$F$2:$G$48,2,FALSE)+ROW()-2)),\"\")","v":{"$error":"#N/A"}},{"$f":"IF(INDIRECT(\"c\" & (VLOOKUP(Rebalance!$D$63,$F$2:$G$48,2,FALSE)+ROW()-2))=Rebalance!$D$63,INDIRECT(\"a\" & (VLOOKUP(Rebalance!$D$63,$F$2:$G$48,2,FALSE)+ROW()-2)),\"\")","v":{"$error":"#N/A"}},{"$f":"IF(INDIRECT(\"c\" & (VLOOKUP(Rebalance!$D$64,$F$2:$G$48,2,FALSE)+ROW()-2))=Rebalance!$D$64,INDIRECT(\"a\" & (VLOOKUP(Rebalance!$D$64,$F$2:$G$48,2,FALSE)+ROW()-2)),\"\")","v":{"$error":"#N/A"}},{"$f":"IF(INDIRECT(\"c\" & (VLOOKUP(Rebalance!$D$65,$F$2:$G$48,2,FALSE)+ROW()-2))=Rebalance!$D$65,INDIRECT(\"a\" & (VLOOKUP(Rebalance!$D$65,$F$2:$G$48,2,FALSE)+ROW()-2)),\"\")","v":{"$error":"#N/A"}},{"$f":"IF(INDIRECT(\"c\" & (VLOOKUP(Rebalance!$D$66,$F$2:$G$48,2,FALSE)+ROW()-2))=Rebalance!$D$66,INDIRECT(\"a\" & (VLOOKUP(Rebalance!$D$66,$F$2:$G$48,2,FALSE)+ROW()-2)),\"\")","v":{"$error":"#N/A"}}]
[null,null,null,{"$f":"ROW()","v":566},null,null,{"$f":"VLOOKUP(F566,$C$2:$D$599,2,FALSE)","v":{"$error":"#N/A"}},{"$f":"IF(INDIRECT(\"c\" & (VLOOKUP(Rebalance!$D$26,$F$2:$G$48,2,FALSE)+ROW()-2))=Rebalance!$D$26,INDIRECT(\"a\" & (VLOOKUP(Rebalance!$D$26,$F$2:$G$48,2,FALSE)+ROW()-2)),\"\")","v":{"$error":"#N/A"}},{"$f":"IF(INDIRECT(\"c\" & (VLOOKUP(Rebalance!$D$27,$F$2:$G$48,2,FALSE)+ROW()-2))=Rebalance!$D$27,INDIRECT(\"a\" & (VLOOKUP(Rebalance!$D$27,$F$2:$G$48,2,FALSE)+ROW()-2)),\"\")","v":{"$error":"#N/A"}},{"$f":"IF(INDIRECT(\"c\" & (VLOOKUP(Rebalance!$D$28,$F$2:$G$48,2,FALSE)+ROW()-2))=Rebalance!$D$28,INDIRECT(\"a\" & (VLOOKUP(Rebalance!$D$28,$F$2:$G$48,2,FALSE)+ROW()-2)),\"\")","v":{"$error":"#N/A"}},{"$f":"IF(INDIRECT(\"c\" & (VLOOKUP(Rebalance!$D$29,$F$2:$G$48,2,FALSE)+ROW()-2))=Rebalance!$D$29,INDIRECT(\"a\" & (VLOOKUP(Rebalance!$D$29,$F$2:$G$48,2,FALSE)+ROW()-2)),\"\")","v":{"$error":"#N/A"}},{"$f":"IF(INDIRECT(\"c\" & (VLOOKUP(Rebalance!$D$30,$F$2:$G$48,2,FALSE)+ROW()-2))=Rebalance!$D$30,INDIRECT(\"a\" & (VLOOKUP(Rebalance!$D$30,$F$2:$G$48,2,FALSE)+ROW()-2)),\"\")","v":{"$error":"#N/A"}},{"$f":"IF(INDIRECT(\"c\" & (VLOOKUP(Rebalance!$D$31,$F$2:$G$48,2,FALSE)+ROW()-2))=Rebalance!$D$31,INDIRECT(\"a\" & (VLOOKUP(Rebalance!$D$31,$F$2:$G$48,2,FALSE)+ROW()-2)),\"\")","v":{"$error":"#N/A"}},{"$f":"IF(INDIRECT(\"c\" & (VLOOKUP(Rebalance!$D$32,$F$2:$G$48,2,FALSE)+ROW()-2))=Rebalance!$D$32,INDIRECT(\"a\" & (VLOOKUP(Rebalance!$D$32,$F$2:$G$48,2,FALSE)+ROW()-2)),\"\")","v":{"$error":"#N/A"}},{"$f":"IF(INDIRECT(\"c\" & (VLOOKUP(Rebalance!$D$33,$F$2:$G$48,2,FALSE)+ROW()-2))=Rebalance!$D$33,INDIRECT(\"a\" & (VLOOKUP(Rebalance!$D$33,$F$2:$G$48,2,FALSE)+ROW()-2)),\"\")","v":{"$error":"#N/A"}},{"$f":"IF(INDIRECT(\"c\" & (VLOOKUP(Rebalance!$D$34,$F$2:$G$48,2,FALSE)+ROW()-2))=Rebalance!$D$34,INDIRECT(\"a\" & (VLOOKUP(Rebalance!$D$34,$F$2:$G$48,2,FALSE)+ROW()-2)),\"\")","v":{"$error":"#N/A"}},{"$f":"IF(INDIRECT(\"c\" & (VLOOKUP(Rebalance!$D$35,$F$2:$G$48,2,FALSE)+ROW()-2))=Rebalance!$D$35,INDIRECT(\"a\" & (VLOOKUP(Rebalance!$D$35,$F$2:$G$48,2,FALSE)+ROW()-2)),\"\")","v":{"$error":"#N/A"}},{"$f":"IF(INDIRECT(\"c\" & (VLOOKUP(Rebalance!$D$36,$F$2:$G$48,2,FALSE)+ROW()-2))=Rebalance!$D$36,INDIRECT(\"a\" & (VLOOKUP(Rebalance!$D$36,$F$2:$G$48,2,FALSE)+ROW()-2)),\"\")","v":{"$error":"#N/A"}},{"$f":"IF(INDIRECT(\"c\" & (VLOOKUP(Rebalance!$D$37,$F$2:$G$48,2,FALSE)+ROW()-2))=Rebalance!$D$37,INDIRECT(\"a\" & (VLOOKUP(Rebalance!$D$37,$F$2:$G$48,2,FALSE)+ROW()-2)),\"\")","v":{"$error":"#N/A"}},{"$f":"IF(INDIRECT(\"c\" & (VLOOKUP(Rebalance!$D$38,$F$2:$G$48,2,FALSE)+ROW()-2))=Rebalance!$D$38,INDIRECT(\"a\" & (VLOOKUP(Rebalance!$D$38,$F$2:$G$48,2,FALSE)+ROW()-2)),\"\")","v":{"$error":"#N/A"}},{"$f":"IF(INDIRECT(\"c\" & (VLOOKUP(Rebalance!$D$39,$F$2:$G$48,2,FALSE)+ROW()-2))=Rebalance!$D$39,INDIRECT(\"a\" & (VLOOKUP(Rebalance!$D$39,$F$2:$G$48,2,FALSE)+ROW()-2)),\"\")","v":{"$error":"#N/A"}},{"$f":"IF(INDIRECT(\"c\" & (VLOOKUP(Rebalance!$D$40,$F$2:$G$48,2,FALSE)+ROW()-2))=Rebalance!$D$40,INDIRECT(\"a\" & (VLOOKUP(Rebalance!$D$40,$F$2:$G$48,2,FALSE)+ROW()-2)),\"\")","v":{"$error":"#N/A"}},{"$f":"IF(INDIRECT(\"c\" & (VLOOKUP(Rebalance!$D$52,$F$2:$G$48,2,FALSE)+ROW()-2))=Rebalance!$D$52,INDIRECT(\"a\" & (VLOOKUP(Rebalance!$D$52,$F$2:$G$48,2,FALSE)+ROW()-2)),\"\")","v":{"$error":"#N/A"}},{"$f":"IF(INDIRECT(\"c\" & (VLOOKUP(Rebalance!$D$53,$F$2:$G$48,2,FALSE)+ROW()-2))=Rebalance!$D$53,INDIRECT(\"a\" & (VLOOKUP(Rebalance!$D$53,$F$2:$G$48,2,FALSE)+ROW()-2)),\"\")","v":{"$error":"#N/A"}},{"$f":"IF(INDIRECT(\"c\" & (VLOOKUP(Rebalance!$D$54,$F$2:$G$48,2,FALSE)+ROW()-2))=Rebalance!$D$54,INDIRECT(\"a\" & (VLOOKUP(Rebalance!$D$54,$F$2:$G$48,2,FALSE)+ROW()-2)),\"\")","v":{"$error":"#N/A"}},{"$f":"IF(INDIRECT(\"c\" & (VLOOKUP(Rebalance!$D$55,$F$2:$G$48,2,FALSE)+ROW()-2))=Rebalance!$D$55,INDIRECT(\"a\" & (VLOOKUP(Rebalance!$D$55,$F$2:$G$48,2,FALSE)+ROW()-2)),\"\")","v":{"$error":"#N/A"}},{"$f":"IF(INDIRECT(\"c\" & (VLOOKUP(Rebalance!$D$56,$F$2:$G$48,2,FALSE)+ROW()-2))=Rebalance!$D$56,INDIRECT(\"a\" & (VLOOKUP(Rebalance!$D$56,$F$2:$G$48,2,FALSE)+ROW()-2)),\"\")","v":{"$error":"#N/A"}},{"$f":"IF(INDIRECT(\"c\" & (VLOOKUP(Rebalance!$D$57,$F$2:$G$48,2,FALSE)+ROW()-2))=Rebalance!$D$57,INDIRECT(\"a\" & (VLOOKUP(Rebalance!$D$57,$F$2:$G$48,2,FALSE)+ROW()-2)),\"\")","v":{"$error":"#N/A"}},{"$f":"IF(INDIRECT(\"c\" & (VLOOKUP(Rebalance!$D$58,$F$2:$G$48,2,FALSE)+ROW()-2))=Rebalance!$D$58,INDIRECT(\"a\" & (VLOOKUP(Rebalance!$D$58,$F$2:$G$48,2,FALSE)+ROW()-2)),\"\")","v":{"$error":"#N/A"}},{"$f":"IF(INDIRECT(\"c\" & (VLOOKUP(Rebalance!$D$59,$F$2:$G$48,2,FALSE)+ROW()-2))=Rebalance!$D$59,INDIRECT(\"a\" & (VLOOKUP(Rebalance!$D$59,$F$2:$G$48,2,FALSE)+ROW()-2)),\"\")","v":{"$error":"#N/A"}},{"$f":"IF(INDIRECT(\"c\" & (VLOOKUP(Rebalance!$D$60,$F$2:$G$48,2,FALSE)+ROW()-2))=Rebalance!$D$60,INDIRECT(\"a\" & (VLOOKUP(Rebalance!$D$60,$F$2:$G$48,2,FALSE)+ROW()-2)),\"\")","v":{"$error":"#N/A"}},{"$f":"IF(INDIRECT(\"c\" & (VLOOKUP(Rebalance!$D$61,$F$2:$G$48,2,FALSE)+ROW()-2))=Rebalance!$D$61,INDIRECT(\"a\" & (VLOOKUP(Rebalance!$D$61,$F$2:$G$48,2,FALSE)+ROW()-2)),\"\")","v":{"$error":"#N/A"}},{"$f":"IF(INDIRECT(\"c\" & (VLOOKUP(Rebalance!$D$62,$F$2:$G$48,2,FALSE)+ROW()-2))=Rebalance!$D$62,INDIRECT(\"a\" & (VLOOKUP(Rebalance!$D$62,$F$2:$G$48,2,FALSE)+ROW()-2)),\"\")","v":{"$error":"#N/A"}},{"$f":"IF(INDIRECT(\"c\" & (VLOOKUP(Rebalance!$D$63,$F$2:$G$48,2,FALSE)+ROW()-2))=Rebalance!$D$63,INDIRECT(\"a\" & (VLOOKUP(Rebalance!$D$63,$F$2:$G$48,2,FALSE)+ROW()-2)),\"\")","v":{"$error":"#N/A"}},{"$f":"IF(INDIRECT(\"c\" & (VLOOKUP(Rebalance!$D$64,$F$2:$G$48,2,FALSE)+ROW()-2))=Rebalance!$D$64,INDIRECT(\"a\" & (VLOOKUP(Rebalance!$D$64,$F$2:$G$48,2,FALSE)+ROW()-2)),\"\")","v":{"$error":"#N/A"}},{"$f":"IF(INDIRECT(\"c\" & (VLOOKUP(Rebalance!$D$65,$F$2:$G$48,2,FALSE)+ROW()-2))=Rebalance!$D$65,INDIRECT(\"a\" & (VLOOKUP(Rebalance!$D$65,$F$2:$G$48,2,FALSE)+ROW()-2)),\"\")","v":{"$error":"#N/A"}},{"$f":"IF(INDIRECT(\"c\" & (VLOOKUP(Rebalance!$D$66,$F$2:$G$48,2,FALSE)+ROW()-2))=Rebalance!$D$66,INDIRECT(\"a\" & (VLOOKUP(Rebalance!$D$66,$F$2:$G$48,2,FALSE)+ROW()-2)),\"\")","v":{"$error":"#N/A"}}]
[null,null,null,{"$f":"ROW()","v":567},null,null,{"$f":"VLOOKUP(F567,$C$2:$D$599,2,FALSE)","v":{"$error":"#N/A"}},{"$f":"IF(INDIRECT(\"c\" & (VLOOKUP(Rebalance!$D$26,$F$2:$G$48,2,FALSE)+ROW()-2))=Rebalance!$D$26,INDIRECT(\"a\" & (VLOOKUP(Rebalance!$D$26,$F$2:$G$48,2,FALSE)+ROW()-2)),\"\")","v":{"$error":"#N/A"}},{"$f":"IF(INDIRECT(\"c\" & (VLOOKUP(Rebalance!$D$27,$F$2:$G$48,2,FALSE)+ROW()-2))=Rebalance!$D$27,INDIRECT(\"a\" & (VLOOKUP(Rebalance!$D$27,$F$2:$G$48,2,FALSE)+ROW()-2)),\"\")","v":{"$error":"#N/A"}},{"$f":"IF(INDIRECT(\"c\" & (VLOOKUP(Rebalance!$D$28,$F$2:$G$48,2,FALSE)+ROW()-2))=Rebalance!$D$28,INDIRECT(\"a\" & (VLOOKUP(Rebalance!$D$28,$F$2:$G$48,2,FALSE)+ROW()-2)),\"\")","v":{"$error":"#N/A"}},{"$f":"IF(INDIRECT(\"c\" & (VLOOKUP(Rebalance!$D$29,$F$2:$G$48,2,FALSE)+ROW()-2))=Rebalance!$D$29,INDIRECT(\"a\" & (VLOOKUP(Rebalance!$D$29,$F$2:$G$48,2,FALSE)+ROW()-2)),\"\")","v":{"$error":"#N/A"}},{"$f":"IF(INDIRECT(\"c\" & (VLOOKUP(Rebalance!$D$30,$F$2:$G$48,2,FALSE)+ROW()-2))=Rebalance!$D$30,INDIRECT(\"a\" & (VLOOKUP(Rebalance!$D$30,$F$2:$G$48,2,FALSE)+ROW()-2)),\"\")","v":{"$error":"#N/A"}},{"$f":"IF(INDIRECT(\"c\" & (VLOOKUP(Rebalance!$D$31,$F$2:$G$48,2,FALSE)+ROW()-2))=Rebalance!$D$31,INDIRECT(\"a\" & (VLOOKUP(Rebalance!$D$31,$F$2:$G$48,2,FALSE)+ROW()-2)),\"\")","v":{"$error":"#N/A"}},{"$f":"IF(INDIRECT(\"c\" & (VLOOKUP(Rebalance!$D$32,$F$2:$G$48,2,FALSE)+ROW()-2))=Rebalance!$D$32,INDIRECT(\"a\" & (VLOOKUP(Rebalance!$D$32,$F$2:$G$48,2,FALSE)+ROW()-2)),\"\")","v":{"$error":"#N/A"}},{"$f":"IF(INDIRECT(\"c\" & (VLOOKUP(Rebalance!$D$33,$F$2:$G$48,2,FALSE)+ROW()-2))=Rebalance!$D$33,INDIRECT(\"a\" & (VLOOKUP(Rebalance!$D$33,$F$2:$G$48,2,FALSE)+ROW()-2)),\"\")","v":{"$error":"#N/A"}},{"$f":"IF(INDIRECT(\"c\" & (VLOOKUP(Rebalance!$D$34,$F$2:$G$48,2,FALSE)+ROW()-2))=Rebalance!$D$34,INDIRECT(\"a\" & (VLOOKUP(Rebalance!$D$34,$F$2:$G$48,2,FALSE)+ROW()-2)),\"\")","v":{"$error":"#N/A"}},{"$f":"IF(INDIRECT(\"c\" & (VLOOKUP(Rebalance!$D$35,$F$2:$G$48,2,FALSE)+ROW()-2))=Rebalance!$D$35,INDIRECT(\"a\" & (VLOOKUP(Rebalance!$D$35,$F$2:$G$48,2,FALSE)+ROW()-2)),\"\")","v":{"$error":"#N/A"}},{"$f":"IF(INDIRECT(\"c\" & (VLOOKUP(Rebalance!$D$36,$F$2:$G$48,2,FALSE)+ROW()-2))=Rebalance!$D$36,INDIRECT(\"a\" & (VLOOKUP(Rebalance!$D$36,$F$2:$G$48,2,FALSE)+ROW()-2)),\"\")","v":{"$error":"#N/A"}},{"$f":"IF(INDIRECT(\"c\" & (VLOOKUP(Rebalance!$D$37,$F$2:$G$48,2,FALSE)+ROW()-2))=Rebalance!$D$37,INDIRECT(\"a\" & (VLOOKUP(Rebalance!$D$37,$F$2:$G$48,2,FALSE)+ROW()-2)),\"\")","v":{"$error":"#N/A"}},{"$f":"IF(INDIRECT(\"c\" & (VLOOKUP(Rebalance!$D$38,$F$2:$G$48,2,FALSE)+ROW()-2))=Rebalance!$D$38,INDIRECT(\"a\" & (VLOOKUP(Rebalance!$D$38,$F$2:$G$48,2,FALSE)+ROW()-2)),\"\")","v":{"$error":"#N/A"}},{"$f":"IF(INDIRECT(\"c\" & (VLOOKUP(Rebalance!$D$39,$F$2:$G$48,2,FALSE)+ROW()-2))=Rebalance!$D$39,INDIRECT(\"a\" & (VLOOKUP(Rebalance!$D$39,$F$2:$G$48,2,FALSE)+ROW()-2)),\"\")","v":{"$error":"#N/A"}},{"$f":"IF(INDIRECT(\"c\" & (VLOOKUP(Rebalance!$D$40,$F$2:$G$48,2,FALSE)+ROW()-2))=Rebalance!$D$40,INDIRECT(\"a\" & (VLOOKUP(Rebalance!$D$40,$F$2:$G$48,2,FALSE)+ROW()-2)),\"\")","v":{"$error":"#N/A"}},{"$f":"IF(INDIRECT(\"c\" & (VLOOKUP(Rebalance!$D$52,$F$2:$G$48,2,FALSE)+ROW()-2))=Rebalance!$D$52,INDIRECT(\"a\" & (VLOOKUP(Rebalance!$D$52,$F$2:$G$48,2,FALSE)+ROW()-2)),\"\")","v":{"$error":"#N/A"}},{"$f":"IF(INDIRECT(\"c\" & (VLOOKUP(Rebalance!$D$53,$F$2:$G$48,2,FALSE)+ROW()-2))=Rebalance!$D$53,INDIRECT(\"a\" & (VLOOKUP(Rebalance!$D$53,$F$2:$G$48,2,FALSE)+ROW()-2)),\"\")","v":{"$error":"#N/A"}},{"$f":"IF(INDIRECT(\"c\" & (VLOOKUP(Rebalance!$D$54,$F$2:$G$48,2,FALSE)+ROW()-2))=Rebalance!$D$54,INDIRECT(\"a\" & (VLOOKUP(Rebalance!$D$54,$F$2:$G$48,2,FALSE)+ROW()-2)),\"\")","v":{"$error":"#N/A"}},{"$f":"IF(INDIRECT(\"c\" & (VLOOKUP(Rebalance!$D$55,$F$2:$G$48,2,FALSE)+ROW()-2))=Rebalance!$D$55,INDIRECT(\"a\" & (VLOOKUP(Rebalance!$D$55,$F$2:$G$48,2,FALSE)+ROW()-2)),\"\")","v":{"$error":"#N/A"}},{"$f":"IF(INDIRECT(\"c\" & (VLOOKUP(Rebalance!$D$56,$F$2:$G$48,2,FALSE)+ROW()-2))=Rebalance!$D$56,INDIRECT(\"a\" & (VLOOKUP(Rebalance!$D$56,$F$2:$G$48,2,FALSE)+ROW()-2)),\"\")","v":{"$error":"#N/A"}},{"$f":"IF(INDIRECT(\"c\" & (VLOOKUP(Rebalance!$D$57,$F$2:$G$48,2,FALSE)+ROW()-2))=Rebalance!$D$57,INDIRECT(\"a\" & (VLOOKUP(Rebalance!$D$57,$F$2:$G$48,2,FALSE)+ROW()-2)),\"\")","v":{"$error":"#N/A"}},{"$f":"IF(INDIRECT(\"c\" & (VLOOKUP(Rebalance!$D$58,$F$2:$G$48,2,FALSE)+ROW()-2))=Rebalance!$D$58,INDIRECT(\"a\" & (VLOOKUP(Rebalance!$D$58,$F$2:$G$48,2,FALSE)+ROW()-2)),\"\")","v":{"$error":"#N/A"}},{"$f":"IF(INDIRECT(\"c\" & (VLOOKUP(Rebalance!$D$59,$F$2:$G$48,2,FALSE)+ROW()-2))=Rebalance!$D$59,INDIRECT(\"a\" & (VLOOKUP(Rebalance!$D$59,$F$2:$G$48,2,FALSE)+ROW()-2)),\"\")","v":{"$error":"#N/A"}},{"$f":"IF(INDIRECT(\"c\" & (VLOOKUP(Rebalance!$D$60,$F$2:$G$48,2,FALSE)+ROW()-2))=Rebalance!$D$60,INDIRECT(\"a\" & (VLOOKUP(Rebalance!$D$60,$F$2:$G$48,2,FALSE)+ROW()-2)),\"\")","v":{"$error":"#N/A"}},{"$f":"IF(INDIRECT(\"c\" & (VLOOKUP(Rebalance!$D$61,$F$2:$G$48,2,FALSE)+ROW()-2))=Rebalance!$D$61,INDIRECT(\"a\" & (VLOOKUP(Rebalance!$D$61,$F$2:$G$48,2,FALSE)+ROW()-2)),\"\")","v":{"$error":"#N/A"}},{"$f":"IF(INDIRECT(\"c\" & (VLOOKUP(Rebalance!$D$62,$F$2:$G$48,2,FALSE)+ROW()-2))=Rebalance!$D$62,INDIRECT(\"a\" & (VLOOKUP(Rebalance!$D$62,$F$2:$G$48,2,FALSE)+ROW()-2)),\"\")","v":{"$error":"#N/A"}},{"$f":"IF(INDIRECT(\"c\" & (VLOOKUP(Rebalance!$D$63,$F$2:$G$48,2,FALSE)+ROW()-2))=Rebalance!$D$63,INDIRECT(\"a\" & (VLOOKUP(Rebalance!$D$63,$F$2:$G$48,2,FALSE)+ROW()-2)),\"\")","v":{"$error":"#N/A"}},{"$f":"IF(INDIRECT(\"c\" & (VLOOKUP(Rebalance!$D$64,$F$2:$G$48,2,FALSE)+ROW()-2))=Rebalance!$D$64,INDIRECT(\"a\" & (VLOOKUP(Rebalance!$D$64,$F$2:$G$48,2,FALSE)+ROW()-2)),\"\")","v":{"$error":"#N/A"}},{"$f":"IF(INDIRECT(\"c\" & (VLOOKUP(Rebalance!$D$65,$F$2:$G$48,2,FALSE)+ROW()-2))=Rebalance!$D$65,INDIRECT(\"a\" & (VLOOKUP(Rebalance!$D$65,$F$2:$G$48,2,FALSE)+ROW()-2)),\"\")","v":{"$error":"#N/A"}},{"$f":"IF(INDIRECT(\"c\" & (VLOOKUP(Rebalance!$D$66,$F$2:$G$48,2,FALSE)+ROW()-2))=Rebalance!$D$66,INDIRECT(\"a\" & (VLOOKUP(Rebalance!$D$66,$F$2:$G$48,2,FALSE)+ROW()-2)),\"\")","v":{"$error":"#N/A"}}]
[null,null,null,{"$f":"ROW()","v":568},null,null,{"$f":"VLOOKUP(F568,$C$2:$D$599,2,FALSE)","v":{"$error":"#N/A"}},{"$f":"IF(INDIRECT(\"c\" & (VLOOKUP(Rebalance!$D$26,$F$2:$G$48,2,FALSE)+ROW()-2))=Rebalance!$D$26,INDIRECT(\"a\" & (VLOOKUP(Rebalance!$D$26,$F$2:$G$48,2,FALSE)+ROW()-2)),\"\")","v":{"$error":"#N/A"}},{"$f":"IF(INDIRECT(\"c\" & (VLOOKUP(Rebalance!$D$27,$F$2:$G$48,2,FALSE)+ROW()-2))=Rebalance!$D$27,INDIRECT(\"a\" & (VLOOKUP(Rebalance!$D$27,$F$2:$G$48,2,FALSE)+ROW()-2)),\"\")","v":{"$error":"#N/A"}},{"$f":"IF(INDIRECT(\"c\" & (VLOOKUP(Rebalance!$D$28,$F$2:$G$48,2,FALSE)+ROW()-2))=Rebalance!$D$28,INDIRECT(\"a\" & (VLOOKUP(Rebalance!$D$28,$F$2:$G$48,2,FALSE)+ROW()-2)),\"\")","v":{"$error":"#N/A"}},{"$f":"IF(INDIRECT(\"c\" & (VLOOKUP(Rebalance!$D$29,$F$2:$G$48,2,FALSE)+ROW()-2))=Rebalance!$D$29,INDIRECT(\"a\" & (VLOOKUP(Rebalance!$D$29,$F$2:$G$48,2,FALSE)+ROW()-2)),\"\")","v":{"$error":"#N/A"}},{"$f":"IF(INDIRECT(\"c\" & (VLOOKUP(Rebalance!$D$30,$F$2:$G$48,2,FALSE)+ROW()-2))=Rebalance!$D$30,INDIRECT(\"a\" & (VLOOKUP(Rebalance!$D$30,$F$2:$G$48,2,FALSE)+ROW()-2)),\"\")","v":{"$error":"#N/A"}},{"$f":"IF(INDIRECT(\"c\" & (VLOOKUP(Rebalance!$D$31,$F$2:$G$48,2,FALSE)+ROW()-2))=Rebalance!$D$31,INDIRECT(\"a\" & (VLOOKUP(Rebalance!$D$31,$F$2:$G$48,2,FALSE)+ROW()-2)),\"\")","v":{"$error":"#N/A"}},{"$f":"IF(INDIRECT(\"c\" & (VLOOKUP(Rebalance!$D$32,$F$2:$G$48,2,FALSE)+ROW()-2))=Rebalance!$D$32,INDIRECT(\"a\" & (VLOOKUP(Rebalance!$D$32,$F$2:$G$48,2,FALSE)+ROW()-2)),\"\")","v":{"$error":"#N/A"}},{"$f":"IF(INDIRECT(\"c\" & (VLOOKUP(Rebalance!$D$33,$F$2:$G$48,2,FALSE)+ROW()-2))=Rebalance!$D$33,INDIRECT(\"a\" & (VLOOKUP(Rebalance!$D$33,$F$2:$G$48,2,FALSE)+ROW()-2)),\"\")","v":{"$error":"#N/A"}},{"$f":"IF(INDIRECT(\"c\" & (VLOOKUP(Rebalance!$D$34,$F$2:$G$48,2,FALSE)+ROW()-2))=Rebalance!$D$34,INDIRECT(\"a\" & (VLOOKUP(Rebalance!$D$34,$F$2:$G$48,2,FALSE)+ROW()-2)),\"\")","v":{"$error":"#N/A"}},{"$f":"IF(INDIRECT(\"c\" & (VLOOKUP(Rebalance!$D$35,$F$2:$G$48,2,FALSE)+ROW()-2))=Rebalance!$D$35,INDIRECT(\"a\" & (VLOOKUP(Rebalance!$D$35,$F$2:$G$48,2,FALSE)+ROW()-2)),\"\")","v":{"$error":"#N/A"}},{"$f":"IF(INDIRECT(\"c\" & (VLOOKUP(Rebalance!$D$36,$F$2:$G$48,2,FALSE)+ROW()-2))=Rebalance!$D$36,INDIRECT(\"a\" & (VLOOKUP(Rebalance!$D$36,$F$2:$G$48,2,FALSE)+ROW()-2)),\"\")","v":{"$error":"#N/A"}},{"$f":"IF(INDIRECT(\"c\" & (VLOOKUP(Rebalance!$D$37,$F$2:$G$48,2,FALSE)+ROW()-2))=Rebalance!$D$37,INDIRECT(\"a\" & (VLOOKUP(Rebalance!$D$37,$F$2:$G$48,2,FALSE)+ROW()-2)),\"\")","v":{"$error":"#N/A"}},{"$f":"IF(INDIRECT(\"c\" & (VLOOKUP(Rebalance!$D$38,$F$2:$G$48,2,FALSE)+ROW()-2))=Rebalance!$D$38,INDIRECT(\"a\" & (VLOOKUP(Rebalance!$D$38,$F$2:$G$48,2,FALSE)+ROW()-2)),\"\")","v":{"$error":"#N/A"}},{"$f":"IF(INDIRECT(\"c\" & (VLOOKUP(Rebalance!$D$39,$F$2:$G$48,2,FALSE)+ROW()-2))=Rebalance!$D$39,INDIRECT(\"a\" & (VLOOKUP(Rebalance!$D$39,$F$2:$G$48,2,FALSE)+ROW()-2)),\"\")","v":{"$error":"#N/A"}},{"$f":"IF(INDIRECT(\"c\" & (VLOOKUP(Rebalance!$D$40,$F$2:$G$48,2,FALSE)+ROW()-2))=Rebalance!$D$40,INDIRECT(\"a\" & (VLOOKUP(Rebalance!$D$40,$F$2:$G$48,2,FALSE)+ROW()-2)),\"\")","v":{"$error":"#N/A"}},{"$f":"IF(INDIRECT(\"c\" & (VLOOKUP(Rebalance!$D$52,$F$2:$G$48,2,FALSE)+ROW()-2))=Rebalance!$D$52,INDIRECT(\"a\" & (VLOOKUP(Rebalance!$D$52,$F$2:$G$48,2,FALSE)+ROW()-2)),\"\")","v":{"$error":"#N/A"}},{"$f":"IF(INDIRECT(\"c\" & (VLOOKUP(Rebalance!$D$53,$F$2:$G$48,2,FALSE)+ROW()-2))=Rebalance!$D$53,INDIRECT(\"a\" & (VLOOKUP(Rebalance!$D$53,$F$2:$G$48,2,FALSE)+ROW()-2)),\"\")","v":{"$error":"#N/A"}},{"$f":"IF(INDIRECT(\"c\" & (VLOOKUP(Rebalance!$D$54,$F$2:$G$48,2,FALSE)+ROW()-2))=Rebalance!$D$54,INDIRECT(\"a\" & (VLOOKUP(Rebalance!$D$54,$F$2:$G$48,2,FALSE)+ROW()-2)),\"\")","v":{"$error":"#N/A"}},{"$f":"IF(INDIRECT(\"c\" & (VLOOKUP(Rebalance!$D$55,$F$2:$G$48,2,FALSE)+ROW()-2))=Rebalance!$D$55,INDIRECT(\"a\" & (VLOOKUP(Rebalance!$D$55,$F$2:$G$48,2,FALSE)+ROW()-2)),\"\")","v":{"$error":"#N/A"}},{"$f":"IF(INDIRECT(\"c\" & (VLOOKUP(Rebalance!$D$56,$F$2:$G$48,2,FALSE)+ROW()-2))=Rebalance!$D$56,INDIRECT(\"a\" & (VLOOKUP(Rebalance!$D$56,$F$2:$G$48,2,FALSE)+ROW()-2)),\"\")","v":{"$error":"#N/A"}},{"$f":"IF(INDIRECT(\"c\" & (VLOOKUP(Rebalance!$D$57,$F$2:$G$48,2,FALSE)+ROW()-2))=Rebalance!$D$57,INDIRECT(\"a\" & (VLOOKUP(Rebalance!$D$57,$F$2:$G$48,2,FALSE)+ROW()-2)),\"\")","v":{"$error":"#N/A"}},{"$f":"IF(INDIRECT(\"c\" & (VLOOKUP(Rebalance!$D$58,$F$2:$G$48,2,FALSE)+ROW()-2))=Rebalance!$D$58,INDIRECT(\"a\" & (VLOOKUP(Rebalance!$D$58,$F$2:$G$48,2,FALSE)+ROW()-2)),\"\")","v":{"$error":"#N/A"}},{"$f":"IF(INDIRECT(\"c\" & (VLOOKUP(Rebalance!$D$59,$F$2:$G$48,2,FALSE)+ROW()-2))=Rebalance!$D$59,INDIRECT(\"a\" & (VLOOKUP(Rebalance!$D$59,$F$2:$G$48,2,FALSE)+ROW()-2)),\"\")","v":{"$error":"#N/A"}},{"$f":"IF(INDIRECT(\"c\" & (VLOOKUP(Rebalance!$D$60,$F$2:$G$48,2,FALSE)+ROW()-2))=Rebalance!$D$60,INDIRECT(\"a\" & (VLOOKUP(Rebalance!$D$60,$F$2:$G$48,2,FALSE)+ROW()-2)),\"\")","v":{"$error":"#N/A"}},{"$f":"IF(INDIRECT(\"c\" & (VLOOKUP(Rebalance!$D$61,$F$2:$G$48,2,FALSE)+ROW()-2))=Rebalance!$D$61,INDIRECT(\"a\" & (VLOOKUP(Rebalance!$D$61,$F$2:$G$48,2,FALSE)+ROW()-2)),\"\")","v":{"$error":"#N/A"}},{"$f":"IF(INDIRECT(\"c\" & (VLOOKUP(Rebalance!$D$62,$F$2:$G$48,2,FALSE)+ROW()-2))=Rebalance!$D$62,INDIRECT(\"a\" & (VLOOKUP(Rebalance!$D$62,$F$2:$G$48,2,FALSE)+ROW()-2)),\"\")","v":{"$error":"#N/A"}},{"$f":"IF(INDIRECT(\"c\" & (VLOOKUP(Rebalance!$D$63,$F$2:$G$48,2,FALSE)+ROW()-2))=Rebalance!$D$63,INDIRECT(\"a\" & (VLOOKUP(Rebalance!$D$63,$F$2:$G$48,2,FALSE)+ROW()-2)),\"\")","v":{"$error":"#N/A"}},{"$f":"IF(INDIRECT(\"c\" & (VLOOKUP(Rebalance!$D$64,$F$2:$G$48,2,FALSE)+ROW()-2))=Rebalance!$D$64,INDIRECT(\"a\" & (VLOOKUP(Rebalance!$D$64,$F$2:$G$48,2,FALSE)+ROW()-2)),\"\")","v":{"$error":"#N/A"}},{"$f":"IF(INDIRECT(\"c\" & (VLOOKUP(Rebalance!$D$65,$F$2:$G$48,2,FALSE)+ROW()-2))=Rebalance!$D$65,INDIRECT(\"a\" & (VLOOKUP(Rebalance!$D$65,$F$2:$G$48,2,FALSE)+ROW()-2)),\"\")","v":{"$error":"#N/A"}},{"$f":"IF(INDIRECT(\"c\" & (VLOOKUP(Rebalance!$D$66,$F$2:$G$48,2,FALSE)+ROW()-2))=Rebalance!$D$66,INDIRECT(\"a\" & (VLOOKUP(Rebalance!$D$66,$F$2:$G$48,2,FALSE)+ROW()-2)),\"\")","v":{"$error":"#N/A"}}]
[null,null,null,{"$f":"ROW()","v":569},null,null,{"$f":"VLOOKUP(F569,$C$2:$D$599,2,FALSE)","v":{"$error":"#N/A"}},{"$f":"IF(INDIRECT(\"c\" & (VLOOKUP(Rebalance!$D$26,$F$2:$G$48,2,FALSE)+ROW()-2))=Rebalance!$D$26,INDIRECT(\"a\" & (VLOOKUP(Rebalance!$D$26,$F$2:$G$48,2,FALSE)+ROW()-2)),\"\")","v":{"$error":"#N/A"}},{"$f":"IF(INDIRECT(\"c\" & (VLOOKUP(Rebalance!$D$27,$F$2:$G$48,2,FALSE)+ROW()-2))=Rebalance!$D$27,INDIRECT(\"a\" & (VLOOKUP(Rebalance!$D$27,$F$2:$G$48,2,FALSE)+ROW()-2)),\"\")","v":{"$error":"#N/A"}},{"$f":"IF(INDIRECT(\"c\" & (VLOOKUP(Rebalance!$D$28,$F$2:$G$48,2,FALSE)+ROW()-2))=Rebalance!$D$28,INDIRECT(\"a\" & (VLOOKUP(Rebalance!$D$28,$F$2:$G$48,2,FALSE)+ROW()-2)),\"\")","v":{"$error":"#N/A"}},{"$f":"IF(INDIRECT(\"c\" & (VLOOKUP(Rebalance!$D$29,$F$2:$G$48,2,FALSE)+ROW()-2))=Rebalance!$D$29,INDIRECT(\"a\" & (VLOOKUP(Rebalance!$D$29,$F$2:$G$48,2,FALSE)+ROW()-2)),\"\")","v":{"$error":"#N/A"}},{"$f":"IF(INDIRECT(\"c\" & (VLOOKUP(Rebalance!$D$30,$F$2:$G$48,2,FALSE)+ROW()-2))=Rebalance!$D$30,INDIRECT(\"a\" & (VLOOKUP(Rebalance!$D$30,$F$2:$G$48,2,FALSE)+ROW()-2)),\"\")","v":{"$error":"#N/A"}},{"$f":"IF(INDIRECT(\"c\" & (VLOOKUP(Rebalance!$D$31,$F$2:$G$48,2,FALSE)+ROW()-2))=Rebalance!$D$31,INDIRECT(\"a\" & (VLOOKUP(Rebalance!$D$31,$F$2:$G$48,2,FALSE)+ROW()-2)),\"\")","v":{"$error":"#N/A"}},{"$f":"IF(INDIRECT(\"c\" & (VLOOKUP(Rebalance!$D$32,$F$2:$G$48,2,FALSE)+ROW()-2))=Rebalance!$D$32,INDIRECT(\"a\" & (VLOOKUP(Rebalance!$D$32,$F$2:$G$48,2,FALSE)+ROW()-2)),\"\")","v":{"$error":"#N/A"}},{"$f":"IF(INDIRECT(\"c\" & (VLOOKUP(Rebalance!$D$33,$F$2:$G$48,2,FALSE)+ROW()-2))=Rebalance!$D$33,INDIRECT(\"a\" & (VLOOKUP(Rebalance!$D$33,$F$2:$G$48,2,FALSE)+ROW()-2)),\"\")","v":{"$error":"#N/A"}},{"$f":"IF(INDIRECT(\"c\" & (VLOOKUP(Rebalance!$D$34,$F$2:$G$48,2,FALSE)+ROW()-2))=Rebalance!$D$34,INDIRECT(\"a\" & (VLOOKUP(Rebalance!$D$34,$F$2:$G$48,2,FALSE)+ROW()-2)),\"\")","v":{"$error":"#N/A"}},{"$f":"IF(INDIRECT(\"c\" & (VLOOKUP(Rebalance!$D$35,$F$2:$G$48,2,FALSE)+ROW()-2))=Rebalance!$D$35,INDIRECT(\"a\" & (VLOOKUP(Rebalance!$D$35,$F$2:$G$48,2,FALSE)+ROW()-2)),\"\")","v":{"$error":"#N/A"}},{"$f":"IF(INDIRECT(\"c\" & (VLOOKUP(Rebalance!$D$36,$F$2:$G$48,2,FALSE)+ROW()-2))=Rebalance!$D$36,INDIRECT(\"a\" & (VLOOKUP(Rebalance!$D$36,$F$2:$G$48,2,FALSE)+ROW()-2)),\"\")","v":{"$error":"#N/A"}},{"$f":"IF(INDIRECT(\"c\" & (VLOOKUP(Rebalance!$D$37,$F$2:$G$48,2,FALSE)+ROW()-2))=Rebalance!$D$37,INDIRECT(\"a\" & (VLOOKUP(Rebalance!$D$37,$F$2:$G$48,2,FALSE)+ROW()-2)),\"\")","v":{"$error":"#N/A"}},{"$f":"IF(INDIRECT(\"c\" & (VLOOKUP(Rebalance!$D$38,$F$2:$G$48,2,FALSE)+ROW()-2))=Rebalance!$D$38,INDIRECT(\"a\" & (VLOOKUP(Rebalance!$D$38,$F$2:$G$48,2,FALSE)+ROW()-2)),\"\")","v":{"$error":"#N/A"}},{"$f":"IF(INDIRECT(\"c\" & (VLOOKUP(Rebalance!$D$39,$F$2:$G$48,2,FALSE)+ROW()-2))=Rebalance!$D$39,INDIRECT(\"a\" & (VLOOKUP(Rebalance!$D$39,$F$2:$G$48,2,FALSE)+ROW()-2)),\"\")","v":{"$error":"#N/A"}},{"$f":"IF(INDIRECT(\"c\" & (VLOOKUP(Rebalance!$D$40,$F$2:$G$48,2,FALSE)+ROW()-2))=Rebalance!$D$40,INDIRECT(\"a\" & (VLOOKUP(Rebalance!$D$40,$F$2:$G$48,2,FALSE)+ROW()-2)),\"\")","v":{"$error":"#N/A"}},{"$f":"IF(INDIRECT(\"c\" & (VLOOKUP(Rebalance!$D$52,$F$2:$G$48,2,FALSE)+ROW()-2))=Rebalance!$D$52,INDIRECT(\"a\" & (VLOOKUP(Rebalance!$D$52,$F$2:$G$48,2,FALSE)+ROW()-2)),\"\")","v":{"$error":"#N/A"}},{"$f":"IF(INDIRECT(\"c\" & (VLOOKUP(Rebalance!$D$53,$F$2:$G$48,2,FALSE)+ROW()-2))=Rebalance!$D$53,INDIRECT(\"a\" & (VLOOKUP(Rebalance!$D$53,$F$2:$G$48,2,FALSE)+ROW()-2)),\"\")","v":{"$error":"#N/A"}},{"$f":"IF(INDIRECT(\"c\" & (VLOOKUP(Rebalance!$D$54,$F$2:$G$48,2,FALSE)+ROW()-2))=Rebalance!$D$54,INDIRECT(\"a\" & (VLOOKUP(Rebalance!$D$54,$F$2:$G$48,2,FALSE)+ROW()-2)),\"\")","v":{"$error":"#N/A"}},{"$f":"IF(INDIRECT(\"c\" & (VLOOKUP(Rebalance!$D$55,$F$2:$G$48,2,FALSE)+ROW()-2))=Rebalance!$D$55,INDIRECT(\"a\" & (VLOOKUP(Rebalance!$D$55,$F$2:$G$48,2,FALSE)+ROW()-2)),\"\")","v":{"$error":"#N/A"}},{"$f":"IF(INDIRECT(\"c\" & (VLOOKUP(Rebalance!$D$56,$F$2:$G$48,2,FALSE)+ROW()-2))=Rebalance!$D$56,INDIRECT(\"a\" & (VLOOKUP(Rebalance!$D$56,$F$2:$G$48,2,FALSE)+ROW()-2)),\"\")","v":{"$error":"#N/A"}},{"$f":"IF(INDIRECT(\"c\" & (VLOOKUP(Rebalance!$D$57,$F$2:$G$48,2,FALSE)+ROW()-2))=Rebalance!$D$57,INDIRECT(\"a\" & (VLOOKUP(Rebalance!$D$57,$F$2:$G$48,2,FALSE)+ROW()-2)),\"\")","v":{"$error":"#N/A"}},{"$f":"IF(INDIRECT(\"c\" & (VLOOKUP(Rebalance!$D$58,$F$2:$G$48,2,FALSE)+ROW()-2))=Rebalance!$D$58,INDIRECT(\"a\" & (VLOOKUP(Rebalance!$D$58,$F$2:$G$48,2,FALSE)+ROW()-2)),\"\")","v":{"$error":"#N/A"}},{"$f":"IF(INDIRECT(\"c\" & (VLOOKUP(Rebalance!$D$59,$F$2:$G$48,2,FALSE)+ROW()-2))=Rebalance!$D$59,INDIRECT(\"a\" & (VLOOKUP(Rebalance!$D$59,$F$2:$G$48,2,FALSE)+ROW()-2)),\"\")","v":{"$error":"#N/A"}},{"$f":"IF(INDIRECT(\"c\" & (VLOOKUP(Rebalance!$D$60,$F$2:$G$48,2,FALSE)+ROW()-2))=Rebalance!$D$60,INDIRECT(\"a\" & (VLOOKUP(Rebalance!$D$60,$F$2:$G$48,2,FALSE)+ROW()-2)),\"\")","v":{"$error":"#N/A"}},{"$f":"IF(INDIRECT(\"c\" & (VLOOKUP(Rebalance!$D$61,$F$2:$G$48,2,FALSE)+ROW()-2))=Rebalance!$D$61,INDIRECT(\"a\" & (VLOOKUP(Rebalance!$D$61,$F$2:$G$48,2,FALSE)+ROW()-2)),\"\")","v":{"$error":"#N/A"}},{"$f":"IF(INDIRECT(\"c\" & (VLOOKUP(Rebalance!$D$62,$F$2:$G$48,2,FALSE)+ROW()-2))=Rebalance!$D$62,INDIRECT(\"a\" & (VLOOKUP(Rebalance!$D$62,$F$2:$G$48,2,FALSE)+ROW()-2)),\"\")","v":{"$error":"#N/A"}},{"$f":"IF(INDIRECT(\"c\" & (VLOOKUP(Rebalance!$D$63,$F$2:$G$48,2,FALSE)+ROW()-2))=Rebalance!$D$63,INDIRECT(\"a\" & (VLOOKUP(Rebalance!$D$63,$F$2:$G$48,2,FALSE)+ROW()-2)),\"\")","v":{"$error":"#N/A"}},{"$f":"IF(INDIRECT(\"c\" & (VLOOKUP(Rebalance!$D$64,$F$2:$G$48,2,FALSE)+ROW()-2))=Rebalance!$D$64,INDIRECT(\"a\" & (VLOOKUP(Rebalance!$D$64,$F$2:$G$48,2,FALSE)+ROW()-2)),\"\")","v":{"$error":"#N/A"}},{"$f":"IF(INDIRECT(\"c\" & (VLOOKUP(Rebalance!$D$65,$F$2:$G$48,2,FALSE)+ROW()-2))=Rebalance!$D$65,INDIRECT(\"a\" & (VLOOKUP(Rebalance!$D$65,$F$2:$G$48,2,FALSE)+ROW()-2)),\"\")","v":{"$error":"#N/A"}},{"$f":"IF(INDIRECT(\"c\" & (VLOOKUP(Rebalance!$D$66,$F$2:$G$48,2,FALSE)+ROW()-2))=Rebalance!$D$66,INDIRECT(\"a\" & (VLOOKUP(Rebalance!$D$66,$F$2:$G$48,2,FALSE)+ROW()-2)),\"\")","v":{"$error":"#N/A"}}]
[null,null,null,{"$f":"ROW()","v":570},null,null,{"$f":"VLOOKUP(F570,$C$2:$D$599,2,FALSE)","v":{"$error":"#N/A"}},{"$f":"IF(INDIRECT(\"c\" & (VLOOKUP(Rebalance!$D$26,$F$2:$G$48,2,FALSE)+ROW()-2))=Rebalance!$D$26,INDIRECT(\"a\" & (VLOOKUP(Rebalance!$D$26,$F$2:$G$48,2,FALSE)+ROW()-2)),\"\")","v":{"$error":"#N/A"}},{"$f":"IF(INDIRECT(\"c\" & (VLOOKUP(Rebalance!$D$27,$F$2:$G$48,2,FALSE)+ROW()-2))=Rebalance!$D$27,INDIRECT(\"a\" & (VLOOKUP(Rebalance!$D$27,$F$2:$G$48,2,FALSE)+ROW()-2)),\"\")","v":{"$error":"#N/A"}},{"$f":"IF(INDIRECT(\"c\" & (VLOOKUP(Rebalance!$D$28,$F$2:$G$48,2,FALSE)+ROW()-2))=Rebalance!$D$28,INDIRECT(\"a\" & (VLOOKUP(Rebalance!$D$28,$F$2:$G$48,2,FALSE)+ROW()-2)),\"\")","v":{"$error":"#N/A"}},{"$f":"IF(INDIRECT(\"c\" & (VLOOKUP(Rebalance!$D$29,$F$2:$G$48,2,FALSE)+ROW()-2))=Rebalance!$D$29,INDIRECT(\"a\" & (VLOOKUP(Rebalance!$D$29,$F$2:$G$48,2,FALSE)+ROW()-2)),\"\")","v":{"$error":"#N/A"}},{"$f":"IF(INDIRECT(\"c\" & (VLOOKUP(Rebalance!$D$30,$F$2:$G$48,2,FALSE)+ROW()-2))=Rebalance!$D$30,INDIRECT(\"a\" & (VLOOKUP(Rebalance!$D$30,$F$2:$G$48,2,FALSE)+ROW()-2)),\"\")","v":{"$error":"#N/A"}},{"$f":"IF(INDIRECT(\"c\" & (VLOOKUP(Rebalance!$D$31,$F$2:$G$48,2,FALSE)+ROW()-2))=Rebalance!$D$31,INDIRECT(\"a\" & (VLOOKUP(Rebalance!$D$31,$F$2:$G$48,2,FALSE)+ROW()-2)),\"\")","v":{"$error":"#N/A"}},{"$f":"IF(INDIRECT(\"c\" & (VLOOKUP(Rebalance!$D$32,$F$2:$G$48,2,FALSE)+ROW()-2))=Rebalance!$D$32,INDIRECT(\"a\" & (VLOOKUP(Rebalance!$D$32,$F$2:$G$48,2,FALSE)+ROW()-2)),\"\")","v":{"$error":"#N/A"}},{"$f":"IF(INDIRECT(\"c\" & (VLOOKUP(Rebalance!$D$33,$F$2:$G$48,2,FALSE)+ROW()-2))=Rebalance!$D$33,INDIRECT(\"a\" & (VLOOKUP(Rebalance!$D$33,$F$2:$G$48,2,FALSE)+ROW()-2)),\"\")","v":{"$error":"#N/A"}},{"$f":"IF(INDIRECT(\"c\" & (VLOOKUP(Rebalance!$D$34,$F$2:$G$48,2,FALSE)+ROW()-2))=Rebalance!$D$34,INDIRECT(\"a\" & (VLOOKUP(Rebalance!$D$34,$F$2:$G$48,2,FALSE)+ROW()-2)),\"\")","v":{"$error":"#N/A"}},{"$f":"IF(INDIRECT(\"c\" & (VLOOKUP(Rebalance!$D$35,$F$2:$G$48,2,FALSE)+ROW()-2))=Rebalance!$D$35,INDIRECT(\"a\" & (VLOOKUP(Rebalance!$D$35,$F$2:$G$48,2,FALSE)+ROW()-2)),\"\")","v":{"$error":"#N/A"}},{"$f":"IF(INDIRECT(\"c\" & (VLOOKUP(Rebalance!$D$36,$F$2:$G$48,2,FALSE)+ROW()-2))=Rebalance!$D$36,INDIRECT(\"a\" & (VLOOKUP(Rebalance!$D$36,$F$2:$G$48,2,FALSE)+ROW()-2)),\"\")","v":{"$error":"#N/A"}},{"$f":"IF(INDIRECT(\"c\" & (VLOOKUP(Rebalance!$D$37,$F$2:$G$48,2,FALSE)+ROW()-2))=Rebalance!$D$37,INDIRECT(\"a\" & (VLOOKUP(Rebalance!$D$37,$F$2:$G$48,2,FALSE)+ROW()-2)),\"\")","v":{"$error":"#N/A"}},{"$f":"IF(INDIRECT(\"c\" & (VLOOKUP(Rebalance!$D$38,$F$2:$G$48,2,FALSE)+ROW()-2))=Rebalance!$D$38,INDIRECT(\"a\" & (VLOOKUP(Rebalance!$D$38,$F$2:$G$48,2,FALSE)+ROW()-2)),\"\")","v":{"$error":"#N/A"}},{"$f":"IF(INDIRECT(\"c\" & (VLOOKUP(Rebalance!$D$39,$F$2:$G$48,2,FALSE)+ROW()-2))=Rebalance!$D$39,INDIRECT(\"a\" & (VLOOKUP(Rebalance!$D$39,$F$2:$G$48,2,FALSE)+ROW()-2)),\"\")","v":{"$error":"#N/A"}},{"$f":"IF(INDIRECT(\"c\" & (VLOOKUP(Rebalance!$D$40,$F$2:$G$48,2,FALSE)+ROW()-2))=Rebalance!$D$40,INDIRECT(\"a\" & (VLOOKUP(Rebalance!$D$40,$F$2:$G$48,2,FALSE)+ROW()-2)),\"\")","v":{"$error":"#N/A"}},{"$f":"IF(INDIRECT(\"c\" & (VLOOKUP(Rebalance!$D$52,$F$2:$G$48,2,FALSE)+ROW()-2))=Rebalance!$D$52,INDIRECT(\"a\" & (VLOOKUP(Rebalance!$D$52,$F$2:$G$48,2,FALSE)+ROW()-2)),\"\")","v":{"$error":"#N/A"}},{"$f":"IF(INDIRECT(\"c\" & (VLOOKUP(Rebalance!$D$53,$F$2:$G$48,2,FALSE)+ROW()-2))=Rebalance!$D$53,INDIRECT(\"a\" & (VLOOKUP(Rebalance!$D$53,$F$2:$G$48,2,FALSE)+ROW()-2)),\"\")","v":{"$error":"#N/A"}},{"$f":"IF(INDIRECT(\"c\" & (VLOOKUP(Rebalance!$D$54,$F$2:$G$48,2,FALSE)+ROW()-2))=Rebalance!$D$54,INDIRECT(\"a\" & (VLOOKUP(Rebalance!$D$54,$F$2:$G$48,2,FALSE)+ROW()-2)),\"\")","v":{"$error":"#N/A"}},{"$f":"IF(INDIRECT(\"c\" & (VLOOKUP(Rebalance!$D$55,$F$2:$G$48,2,FALSE)+ROW()-2))=Rebalance!$D$55,INDIRECT(\"a\" & (VLOOKUP(Rebalance!$D$55,$F$2:$G$48,2,FALSE)+ROW()-2)),\"\")","v":{"$error":"#N/A"}},{"$f":"IF(INDIRECT(\"c\" & (VLOOKUP(Rebalance!$D$56,$F$2:$G$48,2,FALSE)+ROW()-2))=Rebalance!$D$56,INDIRECT(\"a\" & (VLOOKUP(Rebalance!$D$56,$F$2:$G$48,2,FALSE)+ROW()-2)),\"\")","v":{"$error":"#N/A"}},{"$f":"IF(INDIRECT(\"c\" & (VLOOKUP(Rebalance!$D$57,$F$2:$G$48,2,FALSE)+ROW()-2))=Rebalance!$D$57,INDIRECT(\"a\" & (VLOOKUP(Rebalance!$D$57,$F$2:$G$48,2,FALSE)+ROW()-2)),\"\")","v":{"$error":"#N/A"}},{"$f":"IF(INDIRECT(\"c\" & (VLOOKUP(Rebalance!$D$58,$F$2:$G$48,2,FALSE)+ROW()-2))=Rebalance!$D$58,INDIRECT(\"a\" & (VLOOKUP(Rebalance!$D$58,$F$2:$G$48,2,FALSE)+ROW()-2)),\"\")","v":{"$error":"#N/A"}},{"$f":"IF(INDIRECT(\"c\" & (VLOOKUP(Rebalance!$D$59,$F$2:$G$48,2,FALSE)+ROW()-2))=Rebalance!$D$59,INDIRECT(\"a\" & (VLOOKUP(Rebalance!$D$59,$F$2:$G$48,2,FALSE)+ROW()-2)),\"\")","v":{"$error":"#N/A"}},{"$f":"IF(INDIRECT(\"c\" & (VLOOKUP(Rebalance!$D$60,$F$2:$G$48,2,FALSE)+ROW()-2))=Rebalance!$D$60,INDIRECT(\"a\" & (VLOOKUP(Rebalance!$D$60,$F$2:$G$48,2,FALSE)+ROW()-2)),\"\")","v":{"$error":"#N/A"}},{"$f":"IF(INDIRECT(\"c\" & (VLOOKUP(Rebalance!$D$61,$F$2:$G$48,2,FALSE)+ROW()-2))=Rebalance!$D$61,INDIRECT(\"a\" & (VLOOKUP(Rebalance!$D$61,$F$2:$G$48,2,FALSE)+ROW()-2)),\"\")","v":{"$error":"#N/A"}},{"$f":"IF(INDIRECT(\"c\" & (VLOOKUP(Rebalance!$D$62,$F$2:$G$48,2,FALSE)+ROW()-2))=Rebalance!$D$62,INDIRECT(\"a\" & (VLOOKUP(Rebalance!$D$62,$F$2:$G$48,2,FALSE)+ROW()-2)),\"\")","v":{"$error":"#N/A"}},{"$f":"IF(INDIRECT(\"c\" & (VLOOKUP(Rebalance!$D$63,$F$2:$G$48,2,FALSE)+ROW()-2))=Rebalance!$D$63,INDIRECT(\"a\" & (VLOOKUP(Rebalance!$D$63,$F$2:$G$48,2,FALSE)+ROW()-2)),\"\")","v":{"$error":"#N/A"}},{"$f":"IF(INDIRECT(\"c\" & (VLOOKUP(Rebalance!$D$64,$F$2:$G$48,2,FALSE)+ROW()-2))=Rebalance!$D$64,INDIRECT(\"a\" & (VLOOKUP(Rebalance!$D$64,$F$2:$G$48,2,FALSE)+ROW()-2)),\"\")","v":{"$error":"#N/A"}},{"$f":"IF(INDIRECT(\"c\" & (VLOOKUP(Rebalance!$D$65,$F$2:$G$48,2,FALSE)+ROW()-2))=Rebalance!$D$65,INDIRECT(\"a\" & (VLOOKUP(Rebalance!$D$65,$F$2:$G$48,2,FALSE)+ROW()-2)),\"\")","v":{"$error":"#N/A"}},{"$f":"IF(INDIRECT(\"c\" & (VLOOKUP(Rebalance!$D$66,$F$2:$G$48,2,FALSE)+ROW()-2))=Rebalance!$D$66,INDIRECT(\"a\" & (VLOOKUP(Rebalance!$D$66,$F$2:$G$48,2,FALSE)+ROW()-2)),\"\")","v":{"$error":"#N/A"}}]
[null,null,null,{"$f":"ROW()","v":571},null,null,{"$f":"VLOOKUP(F571,$C$2:$D$599,2,FALSE)","v":{"$error":"#N/A"}},{"$f":"IF(INDIRECT(\"c\" & (VLOOKUP(Rebalance!$D$26,$F$2:$G$48,2,FALSE)+ROW()-2))=Rebalance!$D$26,INDIRECT(\"a\" & (VLOOKUP(Rebalance!$D$26,$F$2:$G$48,2,FALSE)+ROW()-2)),\"\")","v":{"$error":"#N/A"}},{"$f":"IF(INDIRECT(\"c\" & (VLOOKUP(Rebalance!$D$27,$F$2:$G$48,2,FALSE)+ROW()-2))=Rebalance!$D$27,INDIRECT(\"a\" & (VLOOKUP(Rebalance!$D$27,$F$2:$G$48,2,FALSE)+ROW()-2)),\"\")","v":{"$error":"#N/A"}},{"$f":"IF(INDIRECT(\"c\" & (VLOOKUP(Rebalance!$D$28,$F$2:$G$48,2,FALSE)+ROW()-2))=Rebalance!$D$28,INDIRECT(\"a\" & (VLOOKUP(Rebalance!$D$28,$F$2:$G$48,2,FALSE)+ROW()-2)),\"\")","v":{"$error":"#N/A"}},{"$f":"IF(INDIRECT(\"c\" & (VLOOKUP(Rebalance!$D$29,$F$2:$G$48,2,FALSE)+ROW()-2))=Rebalance!$D$29,INDIRECT(\"a\" & (VLOOKUP(Rebalance!$D$29,$F$2:$G$48,2,FALSE)+ROW()-2)),\"\")","v":{"$error":"#N/A"}},{"$f":"IF(INDIRECT(\"c\" & (VLOOKUP(Rebalance!$D$30,$F$2:$G$48,2,FALSE)+ROW()-2))=Rebalance!$D$30,INDIRECT(\"a\" & (VLOOKUP(Rebalance!$D$30,$F$2:$G$48,2,FALSE)+ROW()-2)),\"\")","v":{"$error":"#N/A"}},{"$f":"IF(INDIRECT(\"c\" & (VLOOKUP(Rebalance!$D$31,$F$2:$G$48,2,FALSE)+ROW()-2))=Rebalance!$D$31,INDIRECT(\"a\" & (VLOOKUP(Rebalance!$D$31,$F$2:$G$48,2,FALSE)+ROW()-2)),\"\")","v":{"$error":"#N/A"}},{"$f":"IF(INDIRECT(\"c\" & (VLOOKUP(Rebalance!$D$32,$F$2:$G$48,2,FALSE)+ROW()-2))=Rebalance!$D$32,INDIRECT(\"a\" & (VLOOKUP(Rebalance!$D$32,$F$2:$G$48,2,FALSE)+ROW()-2)),\"\")","v":{"$error":"#N/A"}},{"$f":"IF(INDIRECT(\"c\" & (VLOOKUP(Rebalance!$D$33,$F$2:$G$48,2,FALSE)+ROW()-2))=Rebalance!$D$33,INDIRECT(\"a\" & (VLOOKUP(Rebalance!$D$33,$F$2:$G$48,2,FALSE)+ROW()-2)),\"\")","v":{"$error":"#N/A"}},{"$f":"IF(INDIRECT(\"c\" & (VLOOKUP(Rebalance!$D$34,$F$2:$G$48,2,FALSE)+ROW()-2))=Rebalance!$D$34,INDIRECT(\"a\" & (VLOOKUP(Rebalance!$D$34,$F$2:$G$48,2,FALSE)+ROW()-2)),\"\")","v":{"$error":"#N/A"}},{"$f":"IF(INDIRECT(\"c\" & (VLOOKUP(Rebalance!$D$35,$F$2:$G$48,2,FALSE)+ROW()-2))=Rebalance!$D$35,INDIRECT(\"a\" & (VLOOKUP(Rebalance!$D$35,$F$2:$G$48,2,FALSE)+ROW()-2)),\"\")","v":{"$error":"#N/A"}},{"$f":"IF(INDIRECT(\"c\" & (VLOOKUP(Rebalance!$D$36,$F$2:$G$48,2,FALSE)+ROW()-2))=Rebalance!$D$36,INDIRECT(\"a\" & (VLOOKUP(Rebalance!$D$36,$F$2:$G$48,2,FALSE)+ROW()-2)),\"\")","v":{"$error":"#N/A"}},{"$f":"IF(INDIRECT(\"c\" & (VLOOKUP(Rebalance!$D$37,$F$2:$G$48,2,FALSE)+ROW()-2))=Rebalance!$D$37,INDIRECT(\"a\" & (VLOOKUP(Rebalance!$D$37,$F$2:$G$48,2,FALSE)+ROW()-2)),\"\")","v":{"$error":"#N/A"}},{"$f":"IF(INDIRECT(\"c\" & (VLOOKUP(Rebalance!$D$38,$F$2:$G$48,2,FALSE)+ROW()-2))=Rebalance!$D$38,INDIRECT(\"a\" & (VLOOKUP(Rebalance!$D$38,$F$2:$G$48,2,FALSE)+ROW()-2)),\"\")","v":{"$error":"#N/A"}},{"$f":"IF(INDIRECT(\"c\" & (VLOOKUP(Rebalance!$D$39,$F$2:$G$48,2,FALSE)+ROW()-2))=Rebalance!$D$39,INDIRECT(\"a\" & (VLOOKUP(Rebalance!$D$39,$F$2:$G$48,2,FALSE)+ROW()-2)),\"\")","v":{"$error":"#N/A"}},{"$f":"IF(INDIRECT(\"c\" & (VLOOKUP(Rebalance!$D$40,$F$2:$G$48,2,FALSE)+ROW()-2))=Rebalance!$D$40,INDIRECT(\"a\" & (VLOOKUP(Rebalance!$D$40,$F$2:$G$48,2,FALSE)+ROW()-2)),\"\")","v":{"$error":"#N/A"}},{"$f":"IF(INDIRECT(\"c\" & (VLOOKUP(Rebalance!$D$52,$F$2:$G$48,2,FALSE)+ROW()-2))=Rebalance!$D$52,INDIRECT(\"a\" & (VLOOKUP(Rebalance!$D$52,$F$2:$G$48,2,FALSE)+ROW()-2)),\"\")","v":{"$error":"#N/A"}},{"$f":"IF(INDIRECT(\"c\" & (VLOOKUP(Rebalance!$D$53,$F$2:$G$48,2,FALSE)+ROW()-2))=Rebalance!$D$53,INDIRECT(\"a\" & (VLOOKUP(Rebalance!$D$53,$F$2:$G$48,2,FALSE)+ROW()-2)),\"\")","v":{"$error":"#N/A"}},{"$f":"IF(INDIRECT(\"c\" & (VLOOKUP(Rebalance!$D$54,$F$2:$G$48,2,FALSE)+ROW()-2))=Rebalance!$D$54,INDIRECT(\"a\" & (VLOOKUP(Rebalance!$D$54,$F$2:$G$48,2,FALSE)+ROW()-2)),\"\")","v":{"$error":"#N/A"}},{"$f":"IF(INDIRECT(\"c\" & (VLOOKUP(Rebalance!$D$55,$F$2:$G$48,2,FALSE)+ROW()-2))=Rebalance!$D$55,INDIRECT(\"a\" & (VLOOKUP(Rebalance!$D$55,$F$2:$G$48,2,FALSE)+ROW()-2)),\"\")","v":{"$error":"#N/A"}},{"$f":"IF(INDIRECT(\"c\" & (VLOOKUP(Rebalance!$D$56,$F$2:$G$48,2,FALSE)+ROW()-2))=Rebalance!$D$56,INDIRECT(\"a\" & (VLOOKUP(Rebalance!$D$56,$F$2:$G$48,2,FALSE)+ROW()-2)),\"\")","v":{"$error":"#N/A"}},{"$f":"IF(INDIRECT(\"c\" & (VLOOKUP(Rebalance!$D$57,$F$2:$G$48,2,FALSE)+ROW()-2))=Rebalance!$D$57,INDIRECT(\"a\" & (VLOOKUP(Rebalance!$D$57,$F$2:$G$48,2,FALSE)+ROW()-2)),\"\")","v":{"$error":"#N/A"}},{"$f":"IF(INDIRECT(\"c\" & (VLOOKUP(Rebalance!$D$58,$F$2:$G$48,2,FALSE)+ROW()-2))=Rebalance!$D$58,INDIRECT(\"a\" & (VLOOKUP(Rebalance!$D$58,$F$2:$G$48,2,FALSE)+ROW()-2)),\"\")","v":{"$error":"#N/A"}},{"$f":"IF(INDIRECT(\"c\" & (VLOOKUP(Rebalance!$D$59,$F$2:$G$48,2,FALSE)+ROW()-2))=Rebalance!$D$59,INDIRECT(\"a\" & (VLOOKUP(Rebalance!$D$59,$F$2:$G$48,2,FALSE)+ROW()-2)),\"\")","v":{"$error":"#N/A"}},{"$f":"IF(INDIRECT(\"c\" & (VLOOKUP(Rebalance!$D$60,$F$2:$G$48,2,FALSE)+ROW()-2))=Rebalance!$D$60,INDIRECT(\"a\" & (VLOOKUP(Rebalance!$D$60,$F$2:$G$48,2,FALSE)+ROW()-2)),\"\")","v":{"$error":"#N/A"}},{"$f":"IF(INDIRECT(\"c\" & (VLOOKUP(Rebalance!$D$61,$F$2:$G$48,2,FALSE)+ROW()-2))=Rebalance!$D$61,INDIRECT(\"a\" & (VLOOKUP(Rebalance!$D$61,$F$2:$G$48,2,FALSE)+ROW()-2)),\"\")","v":{"$error":"#N/A"}},{"$f":"IF(INDIRECT(\"c\" & (VLOOKUP(Rebalance!$D$62,$F$2:$G$48,2,FALSE)+ROW()-2))=Rebalance!$D$62,INDIRECT(\"a\" & (VLOOKUP(Rebalance!$D$62,$F$2:$G$48,2,FALSE)+ROW()-2)),\"\")","v":{"$error":"#N/A"}},{"$f":"IF(INDIRECT(\"c\" & (VLOOKUP(Rebalance!$D$63,$F$2:$G$48,2,FALSE)+ROW()-2))=Rebalance!$D$63,INDIRECT(\"a\" & (VLOOKUP(Rebalance!$D$63,$F$2:$G$48,2,FALSE)+ROW()-2)),\"\")","v":{"$error":"#N/A"}},{"$f":"IF(INDIRECT(\"c\" & (VLOOKUP(Rebalance!$D$64,$F$2:$G$48,2,FALSE)+ROW()-2))=Rebalance!$D$64,INDIRECT(\"a\" & (VLOOKUP(Rebalance!$D$64,$F$2:$G$48,2,FALSE)+ROW()-2)),\"\")","v":{"$error":"#N/A"}},{"$f":"IF(INDIRECT(\"c\" & (VLOOKUP(Rebalance!$D$65,$F$2:$G$48,2,FALSE)+ROW()-2))=Rebalance!$D$65,INDIRECT(\"a\" & (VLOOKUP(Rebalance!$D$65,$F$2:$G$48,2,FALSE)+ROW()-2)),\"\")","v":{"$error":"#N/A"}},{"$f":"IF(INDIRECT(\"c\" & (VLOOKUP(Rebalance!$D$66,$F$2:$G$48,2,FALSE)+ROW()-2))=Rebalance!$D$66,INDIRECT(\"a\" & (VLOOKUP(Rebalance!$D$66,$F$2:$G$48,2,FALSE)+ROW()-2)),\"\")","v":{"$error":"#N/A"}}]
[null,null,null,{"$f":"ROW()","v":572},null,null,{"$f":"VLOOKUP(F572,$C$2:$D$599,2,FALSE)","v":{"$error":"#N/A"}},{"$f":"IF(INDIRECT(\"c\" & (VLOOKUP(Rebalance!$D$26,$F$2:$G$48,2,FALSE)+ROW()-2))=Rebalance!$D$26,INDIRECT(\"a\" & (VLOOKUP(Rebalance!$D$26,$F$2:$G$48,2,FALSE)+ROW()-2)),\"\")","v":{"$error":"#N/A"}},{"$f":"IF(INDIRECT(\"c\" & (VLOOKUP(Rebalance!$D$27,$F$2:$G$48,2,FALSE)+ROW()-2))=Rebalance!$D$27,INDIRECT(\"a\" & (VLOOKUP(Rebalance!$D$27,$F$2:$G$48,2,FALSE)+ROW()-2)),\"\")","v":{"$error":"#N/A"}},{"$f":"IF(INDIRECT(\"c\" & (VLOOKUP(Rebalance!$D$28,$F$2:$G$48,2,FALSE)+ROW()-2))=Rebalance!$D$28,INDIRECT(\"a\" & (VLOOKUP(Rebalance!$D$28,$F$2:$G$48,2,FALSE)+ROW()-2)),\"\")","v":{"$error":"#N/A"}},{"$f":"IF(INDIRECT(\"c\" & (VLOOKUP(Rebalance!$D$29,$F$2:$G$48,2,FALSE)+ROW()-2))=Rebalance!$D$29,INDIRECT(\"a\" & (VLOOKUP(Rebalance!$D$29,$F$2:$G$48,2,FALSE)+ROW()-2)),\"\")","v":{"$error":"#N/A"}},{"$f":"IF(INDIRECT(\"c\" & (VLOOKUP(Rebalance!$D$30,$F$2:$G$48,2,FALSE)+ROW()-2))=Rebalance!$D$30,INDIRECT(\"a\" & (VLOOKUP(Rebalance!$D$30,$F$2:$G$48,2,FALSE)+ROW()-2)),\"\")","v":{"$error":"#N/A"}},{"$f":"IF(INDIRECT(\"c\" & (VLOOKUP(Rebalance!$D$31,$F$2:$G$48,2,FALSE)+ROW()-2))=Rebalance!$D$31,INDIRECT(\"a\" & (VLOOKUP(Rebalance!$D$31,$F$2:$G$48,2,FALSE)+ROW()-2)),\"\")","v":{"$error":"#N/A"}},{"$f":"IF(INDIRECT(\"c\" & (VLOOKUP(Rebalance!$D$32,$F$2:$G$48,2,FALSE)+ROW()-2))=Rebalance!$D$32,INDIRECT(\"a\" & (VLOOKUP(Rebalance!$D$32,$F$2:$G$48,2,FALSE)+ROW()-2)),\"\")","v":{"$error":"#N/A"}},{"$f":"IF(INDIRECT(\"c\" & (VLOOKUP(Rebalance!$D$33,$F$2:$G$48,2,FALSE)+ROW()-2))=Rebalance!$D$33,INDIRECT(\"a\" & (VLOOKUP(Rebalance!$D$33,$F$2:$G$48,2,FALSE)+ROW()-2)),\"\")","v":{"$error":"#N/A"}},{"$f":"IF(INDIRECT(\"c\" & (VLOOKUP(Rebalance!$D$34,$F$2:$G$48,2,FALSE)+ROW()-2))=Rebalance!$D$34,INDIRECT(\"a\" & (VLOOKUP(Rebalance!$D$34,$F$2:$G$48,2,FALSE)+ROW()-2)),\"\")","v":{"$error":"#N/A"}},{"$f":"IF(INDIRECT(\"c\" & (VLOOKUP(Rebalance!$D$35,$F$2:$G$48,2,FALSE)+ROW()-2))=Rebalance!$D$35,INDIRECT(\"a\" & (VLOOKUP(Rebalance!$D$35,$F$2:$G$48,2,FALSE)+ROW()-2)),\"\")","v":{"$error":"#N/A"}},{"$f":"IF(INDIRECT(\"c\" & (VLOOKUP(Rebalance!$D$36,$F$2:$G$48,2,FALSE)+ROW()-2))=Rebalance!$D$36,INDIRECT(\"a\" & (VLOOKUP(Rebalance!$D$36,$F$2:$G$48,2,FALSE)+ROW()-2)),\"\")","v":{"$error":"#N/A"}},{"$f":"IF(INDIRECT(\"c\" & (VLOOKUP(Rebalance!$D$37,$F$2:$G$48,2,FALSE)+ROW()-2))=Rebalance!$D$37,INDIRECT(\"a\" & (VLOOKUP(Rebalance!$D$37,$F$2:$G$48,2,FALSE)+ROW()-2)),\"\")","v":{"$error":"#N/A"}},{"$f":"IF(INDIRECT(\"c\" & (VLOOKUP(Rebalance!$D$38,$F$2:$G$48,2,FALSE)+ROW()-2))=Rebalance!$D$38,INDIRECT(\"a\" & (VLOOKUP(Rebalance!$D$38,$F$2:$G$48,2,FALSE)+ROW()-2)),\"\")","v":{"$error":"#N/A"}},{"$f":"IF(INDIRECT(\"c\" & (VLOOKUP(Rebalance!$D$39,$F$2:$G$48,2,FALSE)+ROW()-2))=Rebalance!$D$39,INDIRECT(\"a\" & (VLOOKUP(Rebalance!$D$39,$F$2:$G$48,2,FALSE)+ROW()-2)),\"\")","v":{"$error":"#N/A"}},{"$f":"IF(INDIRECT(\"c\" & (VLOOKUP(Rebalance!$D$40,$F$2:$G$48,2,FALSE)+ROW()-2))=Rebalance!$D$40,INDIRECT(\"a\" & (VLOOKUP(Rebalance!$D$40,$F$2:$G$48,2,FALSE)+ROW()-2)),\"\")","v":{"$error":"#N/A"}},{"$f":"IF(INDIRECT(\"c\" & (VLOOKUP(Rebalance!$D$52,$F$2:$G$48,2,FALSE)+ROW()-2))=Rebalance!$D$52,INDIRECT(\"a\" & (VLOOKUP(Rebalance!$D$52,$F$2:$G$48,2,FALSE)+ROW()-2)),\"\")","v":{"$error":"#N/A"}},{"$f":"IF(INDIRECT(\"c\" & (VLOOKUP(Rebalance!$D$53,$F$2:$G$48,2,FALSE)+ROW()-2))=Rebalance!$D$53,INDIRECT(\"a\" & (VLOOKUP(Rebalance!$D$53,$F$2:$G$48,2,FALSE)+ROW()-2)),\"\")","v":{"$error":"#N/A"}},{"$f":"IF(INDIRECT(\"c\" & (VLOOKUP(Rebalance!$D$54,$F$2:$G$48,2,FALSE)+ROW()-2))=Rebalance!$D$54,INDIRECT(\"a\" & (VLOOKUP(Rebalance!$D$54,$F$2:$G$48,2,FALSE)+ROW()-2)),\"\")","v":{"$error":"#N/A"}},{"$f":"IF(INDIRECT(\"c\" & (VLOOKUP(Rebalance!$D$55,$F$2:$G$48,2,FALSE)+ROW()-2))=Rebalance!$D$55,INDIRECT(\"a\" & (VLOOKUP(Rebalance!$D$55,$F$2:$G$48,2,FALSE)+ROW()-2)),\"\")","v":{"$error":"#N/A"}},{"$f":"IF(INDIRECT(\"c\" & (VLOOKUP(Rebalance!$D$56,$F$2:$G$48,2,FALSE)+ROW()-2))=Rebalance!$D$56,INDIRECT(\"a\" & (VLOOKUP(Rebalance!$D$56,$F$2:$G$48,2,FALSE)+ROW()-2)),\"\")","v":{"$error":"#N/A"}},{"$f":"IF(INDIRECT(\"c\" & (VLOOKUP(Rebalance!$D$57,$F$2:$G$48,2,FALSE)+ROW()-2))=Rebalance!$D$57,INDIRECT(\"a\" & (VLOOKUP(Rebalance!$D$57,$F$2:$G$48,2,FALSE)+ROW()-2)),\"\")","v":{"$error":"#N/A"}},{"$f":"IF(INDIRECT(\"c\" & (VLOOKUP(Rebalance!$D$58,$F$2:$G$48,2,FALSE)+ROW()-2))=Rebalance!$D$58,INDIRECT(\"a\" & (VLOOKUP(Rebalance!$D$58,$F$2:$G$48,2,FALSE)+ROW()-2)),\"\")","v":{"$error":"#N/A"}},{"$f":"IF(INDIRECT(\"c\" & (VLOOKUP(Rebalance!$D$59,$F$2:$G$48,2,FALSE)+ROW()-2))=Rebalance!$D$59,INDIRECT(\"a\" & (VLOOKUP(Rebalance!$D$59,$F$2:$G$48,2,FALSE)+ROW()-2)),\"\")","v":{"$error":"#N/A"}},{"$f":"IF(INDIRECT(\"c\" & (VLOOKUP(Rebalance!$D$60,$F$2:$G$48,2,FALSE)+ROW()-2))=Rebalance!$D$60,INDIRECT(\"a\" & (VLOOKUP(Rebalance!$D$60,$F$2:$G$48,2,FALSE)+ROW()-2)),\"\")","v":{"$error":"#N/A"}},{"$f":"IF(INDIRECT(\"c\" & (VLOOKUP(Rebalance!$D$61,$F$2:$G$48,2,FALSE)+ROW()-2))=Rebalance!$D$61,INDIRECT(\"a\" & (VLOOKUP(Rebalance!$D$61,$F$2:$G$48,2,FALSE)+ROW()-2)),\"\")","v":{"$error":"#N/A"}},{"$f":"IF(INDIRECT(\"c\" & (VLOOKUP(Rebalance!$D$62,$F$2:$G$48,2,FALSE)+ROW()-2))=Rebalance!$D$62,INDIRECT(\"a\" & (VLOOKUP(Rebalance!$D$62,$F$2:$G$48,2,FALSE)+ROW()-2)),\"\")","v":{"$error":"#N/A"}},{"$f":"IF(INDIRECT(\"c\" & (VLOOKUP(Rebalance!$D$63,$F$2:$G$48,2,FALSE)+ROW()-2))=Rebalance!$D$63,INDIRECT(\"a\" & (VLOOKUP(Rebalance!$D$63,$F$2:$G$48,2,FALSE)+ROW()-2)),\"\")","v":{"$error":"#N/A"}},{"$f":"IF(INDIRECT(\"c\" & (VLOOKUP(Rebalance!$D$64,$F$2:$G$48,2,FALSE)+ROW()-2))=Rebalance!$D$64,INDIRECT(\"a\" & (VLOOKUP(Rebalance!$D$64,$F$2:$G$48,2,FALSE)+ROW()-2)),\"\")","v":{"$error":"#N/A"}},{"$f":"IF(INDIRECT(\"c\" & (VLOOKUP(Rebalance!$D$65,$F$2:$G$48,2,FALSE)+ROW()-2))=Rebalance!$D$65,INDIRECT(\"a\" & (VLOOKUP(Rebalance!$D$65,$F$2:$G$48,2,FALSE)+ROW()-2)),\"\")","v":{"$error":"#N/A"}},{"$f":"IF(INDIRECT(\"c\" & (VLOOKUP(Rebalance!$D$66,$F$2:$G$48,2,FALSE)+ROW()-2))=Rebalance!$D$66,INDIRECT(\"a\" & (VLOOKUP(Rebalance!$D$66,$F$2:$G$48,2,FALSE)+ROW()-2)),\"\")","v":{"$error":"#N/A"}}]
[null,null,null,{"$f":"ROW()","v":573},null,null,{"$f":"VLOOKUP(F573,$C$2:$D$599,2,FALSE)","v":{"$error":"#N/A"}},{"$f":"IF(INDIRECT(\"c\" & (VLOOKUP(Rebalance!$D$26,$F$2:$G$48,2,FALSE)+ROW()-2))=Rebalance!$D$26,INDIRECT(\"a\" & (VLOOKUP(Rebalance!$D$26,$F$2:$G$48,2,FALSE)+ROW()-2)),\"\")","v":{"$error":"#N/A"}},{"$f":"IF(INDIRECT(\"c\" & (VLOOKUP(Rebalance!$D$27,$F$2:$G$48,2,FALSE)+ROW()-2))=Rebalance!$D$27,INDIRECT(\"a\" & (VLOOKUP(Rebalance!$D$27,$F$2:$G$48,2,FALSE)+ROW()-2)),\"\")","v":{"$error":"#N/A"}},{"$f":"IF(INDIRECT(\"c\" & (VLOOKUP(Rebalance!$D$28,$F$2:$G$48,2,FALSE)+ROW()-2))=Rebalance!$D$28,INDIRECT(\"a\" & (VLOOKUP(Rebalance!$D$28,$F$2:$G$48,2,FALSE)+ROW()-2)),\"\")","v":{"$error":"#N/A"}},{"$f":"IF(INDIRECT(\"c\" & (VLOOKUP(Rebalance!$D$29,$F$2:$G$48,2,FALSE)+ROW()-2))=Rebalance!$D$29,INDIRECT(\"a\" & (VLOOKUP(Rebalance!$D$29,$F$2:$G$48,2,FALSE)+ROW()-2)),\"\")","v":{"$error":"#N/A"}},{"$f":"IF(INDIRECT(\"c\" & (VLOOKUP(Rebalance!$D$30,$F$2:$G$48,2,FALSE)+ROW()-2))=Rebalance!$D$30,INDIRECT(\"a\" & (VLOOKUP(Rebalance!$D$30,$F$2:$G$48,2,FALSE)+ROW()-2)),\"\")","v":{"$error":"#N/A"}},{"$f":"IF(INDIRECT(\"c\" & (VLOOKUP(Rebalance!$D$31,$F$2:$G$48,2,FALSE)+ROW()-2))=Rebalance!$D$31,INDIRECT(\"a\" & (VLOOKUP(Rebalance!$D$31,$F$2:$G$48,2,FALSE)+ROW()-2)),\"\")","v":{"$error":"#N/A"}},{"$f":"IF(INDIRECT(\"c\" & (VLOOKUP(Rebalance!$D$32,$F$2:$G$48,2,FALSE)+ROW()-2))=Rebalance!$D$32,INDIRECT(\"a\" & (VLOOKUP(Rebalance!$D$32,$F$2:$G$48,2,FALSE)+ROW()-2)),\"\")","v":{"$error":"#N/A"}},{"$f":"IF(INDIRECT(\"c\" & (VLOOKUP(Rebalance!$D$33,$F$2:$G$48,2,FALSE)+ROW()-2))=Rebalance!$D$33,INDIRECT(\"a\" & (VLOOKUP(Rebalance!$D$33,$F$2:$G$48,2,FALSE)+ROW()-2)),\"\")","v":{"$error":"#N/A"}},{"$f":"IF(INDIRECT(\"c\" & (VLOOKUP(Rebalance!$D$34,$F$2:$G$48,2,FALSE)+ROW()-2))=Rebalance!$D$34,INDIRECT(\"a\" & (VLOOKUP(Rebalance!$D$34,$F$2:$G$48,2,FALSE)+ROW()-2)),\"\")","v":{"$error":"#N/A"}},{"$f":"IF(INDIRECT(\"c\" & (VLOOKUP(Rebalance!$D$35,$F$2:$G$48,2,FALSE)+ROW()-2))=Rebalance!$D$35,INDIRECT(\"a\" & (VLOOKUP(Rebalance!$D$35,$F$2:$G$48,2,FALSE)+ROW()-2)),\"\")","v":{"$error":"#N/A"}},{"$f":"IF(INDIRECT(\"c\" & (VLOOKUP(Rebalance!$D$36,$F$2:$G$48,2,FALSE)+ROW()-2))=Rebalance!$D$36,INDIRECT(\"a\" & (VLOOKUP(Rebalance!$D$36,$F$2:$G$48,2,FALSE)+ROW()-2)),\"\")","v":{"$error":"#N/A"}},{"$f":"IF(INDIRECT(\"c\" & (VLOOKUP(Rebalance!$D$37,$F$2:$G$48,2,FALSE)+ROW()-2))=Rebalance!$D$37,INDIRECT(\"a\" & (VLOOKUP(Rebalance!$D$37,$F$2:$G$48,2,FALSE)+ROW()-2)),\"\")","v":{"$error":"#N/A"}},{"$f":"IF(INDIRECT(\"c\" & (VLOOKUP(Rebalance!$D$38,$F$2:$G$48,2,FALSE)+ROW()-2))=Rebalance!$D$38,INDIRECT(\"a\" & (VLOOKUP(Rebalance!$D$38,$F$2:$G$48,2,FALSE)+ROW()-2)),\"\")","v":{"$error":"#N/A"}},{"$f":"IF(INDIRECT(\"c\" & (VLOOKUP(Rebalance!$D$39,$F$2:$G$48,2,FALSE)+ROW()-2))=Rebalance!$D$39,INDIRECT(\"a\" & (VLOOKUP(Rebalance!$D$39,$F$2:$G$48,2,FALSE)+ROW()-2)),\"\")","v":{"$error":"#N/A"}},{"$f":"IF(INDIRECT(\"c\" & (VLOOKUP(Rebalance!$D$40,$F$2:$G$48,2,FALSE)+ROW()-2))=Rebalance!$D$40,INDIRECT(\"a\" & (VLOOKUP(Rebalance!$D$40,$F$2:$G$48,2,FALSE)+ROW()-2)),\"\")","v":{"$error":"#N/A"}},{"$f":"IF(INDIRECT(\"c\" & (VLOOKUP(Rebalance!$D$52,$F$2:$G$48,2,FALSE)+ROW()-2))=Rebalance!$D$52,INDIRECT(\"a\" & (VLOOKUP(Rebalance!$D$52,$F$2:$G$48,2,FALSE)+ROW()-2)),\"\")","v":{"$error":"#N/A"}},{"$f":"IF(INDIRECT(\"c\" & (VLOOKUP(Rebalance!$D$53,$F$2:$G$48,2,FALSE)+ROW()-2))=Rebalance!$D$53,INDIRECT(\"a\" & (VLOOKUP(Rebalance!$D$53,$F$2:$G$48,2,FALSE)+ROW()-2)),\"\")","v":{"$error":"#N/A"}},{"$f":"IF(INDIRECT(\"c\" & (VLOOKUP(Rebalance!$D$54,$F$2:$G$48,2,FALSE)+ROW()-2))=Rebalance!$D$54,INDIRECT(\"a\" & (VLOOKUP(Rebalance!$D$54,$F$2:$G$48,2,FALSE)+ROW()-2)),\"\")","v":{"$error":"#N/A"}},{"$f":"IF(INDIRECT(\"c\" & (VLOOKUP(Rebalance!$D$55,$F$2:$G$48,2,FALSE)+ROW()-2))=Rebalance!$D$55,INDIRECT(\"a\" & (VLOOKUP(Rebalance!$D$55,$F$2:$G$48,2,FALSE)+ROW()-2)),\"\")","v":{"$error":"#N/A"}},{"$f":"IF(INDIRECT(\"c\" & (VLOOKUP(Rebalance!$D$56,$F$2:$G$48,2,FALSE)+ROW()-2))=Rebalance!$D$56,INDIRECT(\"a\" & (VLOOKUP(Rebalance!$D$56,$F$2:$G$48,2,FALSE)+ROW()-2)),\"\")","v":{"$error":"#N/A"}},{"$f":"IF(INDIRECT(\"c\" & (VLOOKUP(Rebalance!$D$57,$F$2:$G$48,2,FALSE)+ROW()-2))=Rebalance!$D$57,INDIRECT(\"a\" & (VLOOKUP(Rebalance!$D$57,$F$2:$G$48,2,FALSE)+ROW()-2)),\"\")","v":{"$error":"#N/A"}},{"$f":"IF(INDIRECT(\"c\" & (VLOOKUP(Rebalance!$D$58,$F$2:$G$48,2,FALSE)+ROW()-2))=Rebalance!$D$58,INDIRECT(\"a\" & (VLOOKUP(Rebalance!$D$58,$F$2:$G$48,2,FALSE)+ROW()-2)),\"\")","v":{"$error":"#N/A"}},{"$f":"IF(INDIRECT(\"c\" & (VLOOKUP(Rebalance!$D$59,$F$2:$G$48,2,FALSE)+ROW()-2))=Rebalance!$D$59,INDIRECT(\"a\" & (VLOOKUP(Rebalance!$D$59,$F$2:$G$48,2,FALSE)+ROW()-2)),\"\")","v":{"$error":"#N/A"}},{"$f":"IF(INDIRECT(\"c\" & (VLOOKUP(Rebalance!$D$60,$F$2:$G$48,2,FALSE)+ROW()-2))=Rebalance!$D$60,INDIRECT(\"a\" & (VLOOKUP(Rebalance!$D$60,$F$2:$G$48,2,FALSE)+ROW()-2)),\"\")","v":{"$error":"#N/A"}},{"$f":"IF(INDIRECT(\"c\" & (VLOOKUP(Rebalance!$D$61,$F$2:$G$48,2,FALSE)+ROW()-2))=Rebalance!$D$61,INDIRECT(\"a\" & (VLOOKUP(Rebalance!$D$61,$F$2:$G$48,2,FALSE)+ROW()-2)),\"\")","v":{"$error":"#N/A"}},{"$f":"IF(INDIRECT(\"c\" & (VLOOKUP(Rebalance!$D$62,$F$2:$G$48,2,FALSE)+ROW()-2))=Rebalance!$D$62,INDIRECT(\"a\" & (VLOOKUP(Rebalance!$D$62,$F$2:$G$48,2,FALSE)+ROW()-2)),\"\")","v":{"$error":"#N/A"}},{"$f":"IF(INDIRECT(\"c\" & (VLOOKUP(Rebalance!$D$63,$F$2:$G$48,2,FALSE)+ROW()-2))=Rebalance!$D$63,INDIRECT(\"a\" & (VLOOKUP(Rebalance!$D$63,$F$2:$G$48,2,FALSE)+ROW()-2)),\"\")","v":{"$error":"#N/A"}},{"$f":"IF(INDIRECT(\"c\" & (VLOOKUP(Rebalance!$D$64,$F$2:$G$48,2,FALSE)+ROW()-2))=Rebalance!$D$64,INDIRECT(\"a\" & (VLOOKUP(Rebalance!$D$64,$F$2:$G$48,2,FALSE)+ROW()-2)),\"\")","v":{"$error":"#N/A"}},{"$f":"IF(INDIRECT(\"c\" & (VLOOKUP(Rebalance!$D$65,$F$2:$G$48,2,FALSE)+ROW()-2))=Rebalance!$D$65,INDIRECT(\"a\" & (VLOOKUP(Rebalance!$D$65,$F$2:$G$48,2,FALSE)+ROW()-2)),\"\")","v":{"$error":"#N/A"}},{"$f":"IF(INDIRECT(\"c\" & (VLOOKUP(Rebalance!$D$66,$F$2:$G$48,2,FALSE)+ROW()-2))=Rebalance!$D$66,INDIRECT(\"a\" & (VLOOKUP(Rebalance!$D$66,$F$2:$G$48,2,FALSE)+ROW()-2)),\"\")","v":{"$error":"#N/A"}}]
[null,null,null,{"$f":"ROW()","v":574},null,null,{"$f":"VLOOKUP(F574,$C$2:$D$599,2,FALSE)","v":{"$error":"#N/A"}},{"$f":"IF(INDIRECT(\"c\" & (VLOOKUP(Rebalance!$D$26,$F$2:$G$48,2,FALSE)+ROW()-2))=Rebalance!$D$26,INDIRECT(\"a\" & (VLOOKUP(Rebalance!$D$26,$F$2:$G$48,2,FALSE)+ROW()-2)),\"\")","v":{"$error":"#N/A"}},{"$f":"IF(INDIRECT(\"c\" & (VLOOKUP(Rebalance!$D$27,$F$2:$G$48,2,FALSE)+ROW()-2))=Rebalance!$D$27,INDIRECT(\"a\" & (VLOOKUP(Rebalance!$D$27,$F$2:$G$48,2,FALSE)+ROW()-2)),\"\")","v":{"$error":"#N/A"}},{"$f":"IF(INDIRECT(\"c\" & (VLOOKUP(Rebalance!$D$28,$F$2:$G$48,2,FALSE)+ROW()-2))=Rebalance!$D$28,INDIRECT(\"a\" & (VLOOKUP(Rebalance!$D$28,$F$2:$G$48,2,FALSE)+ROW()-2)),\"\")","v":{"$error":"#N/A"}},{"$f":"IF(INDIRECT(\"c\" & (VLOOKUP(Rebalance!$D$29,$F$2:$G$48,2,FALSE)+ROW()-2))=Rebalance!$D$29,INDIRECT(\"a\" & (VLOOKUP(Rebalance!$D$29,$F$2:$G$48,2,FALSE)+ROW()-2)),\"\")","v":{"$error":"#N/A"}},{"$f":"IF(INDIRECT(\"c\" & (VLOOKUP(Rebalance!$D$30,$F$2:$G$48,2,FALSE)+ROW()-2))=Rebalance!$D$30,INDIRECT(\"a\" & (VLOOKUP(Rebalance!$D$30,$F$2:$G$48,2,FALSE)+ROW()-2)),\"\")","v":{"$error":"#N/A"}},{"$f":"IF(INDIRECT(\"c\" & (VLOOKUP(Rebalance!$D$31,$F$2:$G$48,2,FALSE)+ROW()-2))=Rebalance!$D$31,INDIRECT(\"a\" & (VLOOKUP(Rebalance!$D$31,$F$2:$G$48,2,FALSE)+ROW()-2)),\"\")","v":{"$error":"#N/A"}},{"$f":"IF(INDIRECT(\"c\" & (VLOOKUP(Rebalance!$D$32,$F$2:$G$48,2,FALSE)+ROW()-2))=Rebalance!$D$32,INDIRECT(\"a\" & (VLOOKUP(Rebalance!$D$32,$F$2:$G$48,2,FALSE)+ROW()-2)),\"\")","v":{"$error":"#N/A"}},{"$f":"IF(INDIRECT(\"c\" & (VLOOKUP(Rebalance!$D$33,$F$2:$G$48,2,FALSE)+ROW()-2))=Rebalance!$D$33,INDIRECT(\"a\" & (VLOOKUP(Rebalance!$D$33,$F$2:$G$48,2,FALSE)+ROW()-2)),\"\")","v":{"$error":"#N/A"}},{"$f":"IF(INDIRECT(\"c\" & (VLOOKUP(Rebalance!$D$34,$F$2:$G$48,2,FALSE)+ROW()-2))=Rebalance!$D$34,INDIRECT(\"a\" & (VLOOKUP(Rebalance!$D$34,$F$2:$G$48,2,FALSE)+ROW()-2)),\"\")","v":{"$error":"#N/A"}},{"$f":"IF(INDIRECT(\"c\" & (VLOOKUP(Rebalance!$D$35,$F$2:$G$48,2,FALSE)+ROW()-2))=Rebalance!$D$35,INDIRECT(\"a\" & (VLOOKUP(Rebalance!$D$35,$F$2:$G$48,2,FALSE)+ROW()-2)),\"\")","v":{"$error":"#N/A"}},{"$f":"IF(INDIRECT(\"c\" & (VLOOKUP(Rebalance!$D$36,$F$2:$G$48,2,FALSE)+ROW()-2))=Rebalance!$D$36,INDIRECT(\"a\" & (VLOOKUP(Rebalance!$D$36,$F$2:$G$48,2,FALSE)+ROW()-2)),\"\")","v":{"$error":"#N/A"}},{"$f":"IF(INDIRECT(\"c\" & (VLOOKUP(Rebalance!$D$37,$F$2:$G$48,2,FALSE)+ROW()-2))=Rebalance!$D$37,INDIRECT(\"a\" & (VLOOKUP(Rebalance!$D$37,$F$2:$G$48,2,FALSE)+ROW()-2)),\"\")","v":{"$error":"#N/A"}},{"$f":"IF(INDIRECT(\"c\" & (VLOOKUP(Rebalance!$D$38,$F$2:$G$48,2,FALSE)+ROW()-2))=Rebalance!$D$38,INDIRECT(\"a\" & (VLOOKUP(Rebalance!$D$38,$F$2:$G$48,2,FALSE)+ROW()-2)),\"\")","v":{"$error":"#N/A"}},{"$f":"IF(INDIRECT(\"c\" & (VLOOKUP(Rebalance!$D$39,$F$2:$G$48,2,FALSE)+ROW()-2))=Rebalance!$D$39,INDIRECT(\"a\" & (VLOOKUP(Rebalance!$D$39,$F$2:$G$48,2,FALSE)+ROW()-2)),\"\")","v":{"$error":"#N/A"}},{"$f":"IF(INDIRECT(\"c\" & (VLOOKUP(Rebalance!$D$40,$F$2:$G$48,2,FALSE)+ROW()-2))=Rebalance!$D$40,INDIRECT(\"a\" & (VLOOKUP(Rebalance!$D$40,$F$2:$G$48,2,FALSE)+ROW()-2)),\"\")","v":{"$error":"#N/A"}},{"$f":"IF(INDIRECT(\"c\" & (VLOOKUP(Rebalance!$D$52,$F$2:$G$48,2,FALSE)+ROW()-2))=Rebalance!$D$52,INDIRECT(\"a\" & (VLOOKUP(Rebalance!$D$52,$F$2:$G$48,2,FALSE)+ROW()-2)),\"\")","v":{"$error":"#N/A"}},{"$f":"IF(INDIRECT(\"c\" & (VLOOKUP(Rebalance!$D$53,$F$2:$G$48,2,FALSE)+ROW()-2))=Rebalance!$D$53,INDIRECT(\"a\" & (VLOOKUP(Rebalance!$D$53,$F$2:$G$48,2,FALSE)+ROW()-2)),\"\")","v":{"$error":"#N/A"}},{"$f":"IF(INDIRECT(\"c\" & (VLOOKUP(Rebalance!$D$54,$F$2:$G$48,2,FALSE)+ROW()-2))=Rebalance!$D$54,INDIRECT(\"a\" & (VLOOKUP(Rebalance!$D$54,$F$2:$G$48,2,FALSE)+ROW()-2)),\"\")","v":{"$error":"#N/A"}},{"$f":"IF(INDIRECT(\"c\" & (VLOOKUP(Rebalance!$D$55,$F$2:$G$48,2,FALSE)+ROW()-2))=Rebalance!$D$55,INDIRECT(\"a\" & (VLOOKUP(Rebalance!$D$55,$F$2:$G$48,2,FALSE)+ROW()-2)),\"\")","v":{"$error":"#N/A"}},{"$f":"IF(INDIRECT(\"c\" & (VLOOKUP(Rebalance!$D$56,$F$2:$G$48,2,FALSE)+ROW()-2))=Rebalance!$D$56,INDIRECT(\"a\" & (VLOOKUP(Rebalance!$D$56,$F$2:$G$48,2,FALSE)+ROW()-2)),\"\")","v":{"$error":"#N/A"}},{"$f":"IF(INDIRECT(\"c\" & (VLOOKUP(Rebalance!$D$57,$F$2:$G$48,2,FALSE)+ROW()-2))=Rebalance!$D$57,INDIRECT(\"a\" & (VLOOKUP(Rebalance!$D$57,$F$2:$G$48,2,FALSE)+ROW()-2)),\"\")","v":{"$error":"#N/A"}},{"$f":"IF(INDIRECT(\"c\" & (VLOOKUP(Rebalance!$D$58,$F$2:$G$48,2,FALSE)+ROW()-2))=Rebalance!$D$58,INDIRECT(\"a\" & (VLOOKUP(Rebalance!$D$58,$F$2:$G$48,2,FALSE)+ROW()-2)),\"\")","v":{"$error":"#N/A"}},{"$f":"IF(INDIRECT(\"c\" & (VLOOKUP(Rebalance!$D$59,$F$2:$G$48,2,FALSE)+ROW()-2))=Rebalance!$D$59,INDIRECT(\"a\" & (VLOOKUP(Rebalance!$D$59,$F$2:$G$48,2,FALSE)+ROW()-2)),\"\")","v":{"$error":"#N/A"}},{"$f":"IF(INDIRECT(\"c\" & (VLOOKUP(Rebalance!$D$60,$F$2:$G$48,2,FALSE)+ROW()-2))=Rebalance!$D$60,INDIRECT(\"a\" & (VLOOKUP(Rebalance!$D$60,$F$2:$G$48,2,FALSE)+ROW()-2)),\"\")","v":{"$error":"#N/A"}},{"$f":"IF(INDIRECT(\"c\" & (VLOOKUP(Rebalance!$D$61,$F$2:$G$48,2,FALSE)+ROW()-2))=Rebalance!$D$61,INDIRECT(\"a\" & (VLOOKUP(Rebalance!$D$61,$F$2:$G$48,2,FALSE)+ROW()-2)),\"\")","v":{"$error":"#N/A"}},{"$f":"IF(INDIRECT(\"c\" & (VLOOKUP(Rebalance!$D$62,$F$2:$G$48,2,FALSE)+ROW()-2))=Rebalance!$D$62,INDIRECT(\"a\" & (VLOOKUP(Rebalance!$D$62,$F$2:$G$48,2,FALSE)+ROW()-2)),\"\")","v":{"$error":"#N/A"}},{"$f":"IF(INDIRECT(\"c\" & (VLOOKUP(Rebalance!$D$63,$F$2:$G$48,2,FALSE)+ROW()-2))=Rebalance!$D$63,INDIRECT(\"a\" & (VLOOKUP(Rebalance!$D$63,$F$2:$G$48,2,FALSE)+ROW()-2)),\"\")","v":{"$error":"#N/A"}},{"$f":"IF(INDIRECT(\"c\" & (VLOOKUP(Rebalance!$D$64,$F$2:$G$48,2,FALSE)+ROW()-2))=Rebalance!$D$64,INDIRECT(\"a\" & (VLOOKUP(Rebalance!$D$64,$F$2:$G$48,2,FALSE)+ROW()-2)),\"\")","v":{"$error":"#N/A"}},{"$f":"IF(INDIRECT(\"c\" & (VLOOKUP(Rebalance!$D$65,$F$2:$G$48,2,FALSE)+ROW()-2))=Rebalance!$D$65,INDIRECT(\"a\" & (VLOOKUP(Rebalance!$D$65,$F$2:$G$48,2,FALSE)+ROW()-2)),\"\")","v":{"$error":"#N/A"}},{"$f":"IF(INDIRECT(\"c\" & (VLOOKUP(Rebalance!$D$66,$F$2:$G$48,2,FALSE)+ROW()-2))=Rebalance!$D$66,INDIRECT(\"a\" & (VLOOKUP(Rebalance!$D$66,$F$2:$G$48,2,FALSE)+ROW()-2)),\"\")","v":{"$error":"#N/A"}}]
[null,null,null,{"$f":"ROW()","v":575},null,null,{"$f":"VLOOKUP(F575,$C$2:$D$599,2,FALSE)","v":{"$error":"#N/A"}},{"$f":"IF(INDIRECT(\"c\" & (VLOOKUP(Rebalance!$D$26,$F$2:$G$48,2,FALSE)+ROW()-2))=Rebalance!$D$26,INDIRECT(\"a\" & (VLOOKUP(Rebalance!$D$26,$F$2:$G$48,2,FALSE)+ROW()-2)),\"\")","v":{"$error":"#N/A"}},{"$f":"IF(INDIRECT(\"c\" & (VLOOKUP(Rebalance!$D$27,$F$2:$G$48,2,FALSE)+ROW()-2))=Rebalance!$D$27,INDIRECT(\"a\" & (VLOOKUP(Rebalance!$D$27,$F$2:$G$48,2,FALSE)+ROW()-2)),\"\")","v":{"$error":"#N/A"}},{"$f":"IF(INDIRECT(\"c\" & (VLOOKUP(Rebalance!$D$28,$F$2:$G$48,2,FALSE)+ROW()-2))=Rebalance!$D$28,INDIRECT(\"a\" & (VLOOKUP(Rebalance!$D$28,$F$2:$G$48,2,FALSE)+ROW()-2)),\"\")","v":{"$error":"#N/A"}},{"$f":"IF(INDIRECT(\"c\" & (VLOOKUP(Rebalance!$D$29,$F$2:$G$48,2,FALSE)+ROW()-2))=Rebalance!$D$29,INDIRECT(\"a\" & (VLOOKUP(Rebalance!$D$29,$F$2:$G$48,2,FALSE)+ROW()-2)),\"\")","v":{"$error":"#N/A"}},{"$f":"IF(INDIRECT(\"c\" & (VLOOKUP(Rebalance!$D$30,$F$2:$G$48,2,FALSE)+ROW()-2))=Rebalance!$D$30,INDIRECT(\"a\" & (VLOOKUP(Rebalance!$D$30,$F$2:$G$48,2,FALSE)+ROW()-2)),\"\")","v":{"$error":"#N/A"}},{"$f":"IF(INDIRECT(\"c\" & (VLOOKUP(Rebalance!$D$31,$F$2:$G$48,2,FALSE)+ROW()-2))=Rebalance!$D$31,INDIRECT(\"a\" & (VLOOKUP(Rebalance!$D$31,$F$2:$G$48,2,FALSE)+ROW()-2)),\"\")","v":{"$error":"#N/A"}},{"$f":"IF(INDIRECT(\"c\" & (VLOOKUP(Rebalance!$D$32,$F$2:$G$48,2,FALSE)+ROW()-2))=Rebalance!$D$32,INDIRECT(\"a\" & (VLOOKUP(Rebalance!$D$32,$F$2:$G$48,2,FALSE)+ROW()-2)),\"\")","v":{"$error":"#N/A"}},{"$f":"IF(INDIRECT(\"c\" & (VLOOKUP(Rebalance!$D$33,$F$2:$G$48,2,FALSE)+ROW()-2))=Rebalance!$D$33,INDIRECT(\"a\" & (VLOOKUP(Rebalance!$D$33,$F$2:$G$48,2,FALSE)+ROW()-2)),\"\")","v":{"$error":"#N/A"}},{"$f":"IF(INDIRECT(\"c\" & (VLOOKUP(Rebalance!$D$34,$F$2:$G$48,2,FALSE)+ROW()-2))=Rebalance!$D$34,INDIRECT(\"a\" & (VLOOKUP(Rebalance!$D$34,$F$2:$G$48,2,FALSE)+ROW()-2)),\"\")","v":{"$error":"#N/A"}},{"$f":"IF(INDIRECT(\"c\" & (VLOOKUP(Rebalance!$D$35,$F$2:$G$48,2,FALSE)+ROW()-2))=Rebalance!$D$35,INDIRECT(\"a\" & (VLOOKUP(Rebalance!$D$35,$F$2:$G$48,2,FALSE)+ROW()-2)),\"\")","v":{"$error":"#N/A"}},{"$f":"IF(INDIRECT(\"c\" & (VLOOKUP(Rebalance!$D$36,$F$2:$G$48,2,FALSE)+ROW()-2))=Rebalance!$D$36,INDIRECT(\"a\" & (VLOOKUP(Rebalance!$D$36,$F$2:$G$48,2,FALSE)+ROW()-2)),\"\")","v":{"$error":"#N/A"}},{"$f":"IF(INDIRECT(\"c\" & (VLOOKUP(Rebalance!$D$37,$F$2:$G$48,2,FALSE)+ROW()-2))=Rebalance!$D$37,INDIRECT(\"a\" & (VLOOKUP(Rebalance!$D$37,$F$2:$G$48,2,FALSE)+ROW()-2)),\"\")","v":{"$error":"#N/A"}},{"$f":"IF(INDIRECT(\"c\" & (VLOOKUP(Rebalance!$D$38,$F$2:$G$48,2,FALSE)+ROW()-2))=Rebalance!$D$38,INDIRECT(\"a\" & (VLOOKUP(Rebalance!$D$38,$F$2:$G$48,2,FALSE)+ROW()-2)),\"\")","v":{"$error":"#N/A"}},{"$f":"IF(INDIRECT(\"c\" & (VLOOKUP(Rebalance!$D$39,$F$2:$G$48,2,FALSE)+ROW()-2))=Rebalance!$D$39,INDIRECT(\"a\" & (VLOOKUP(Rebalance!$D$39,$F$2:$G$48,2,FALSE)+ROW()-2)),\"\")","v":{"$error":"#N/A"}},{"$f":"IF(INDIRECT(\"c\" & (VLOOKUP(Rebalance!$D$40,$F$2:$G$48,2,FALSE)+ROW()-2))=Rebalance!$D$40,INDIRECT(\"a\" & (VLOOKUP(Rebalance!$D$40,$F$2:$G$48,2,FALSE)+ROW()-2)),\"\")","v":{"$error":"#N/A"}},{"$f":"IF(INDIRECT(\"c\" & (VLOOKUP(Rebalance!$D$52,$F$2:$G$48,2,FALSE)+ROW()-2))=Rebalance!$D$52,INDIRECT(\"a\" & (VLOOKUP(Rebalance!$D$52,$F$2:$G$48,2,FALSE)+ROW()-2)),\"\")","v":{"$error":"#N/A"}},{"$f":"IF(INDIRECT(\"c\" & (VLOOKUP(Rebalance!$D$53,$F$2:$G$48,2,FALSE)+ROW()-2))=Rebalance!$D$53,INDIRECT(\"a\" & (VLOOKUP(Rebalance!$D$53,$F$2:$G$48,2,FALSE)+ROW()-2)),\"\")","v":{"$error":"#N/A"}},{"$f":"IF(INDIRECT(\"c\" & (VLOOKUP(Rebalance!$D$54,$F$2:$G$48,2,FALSE)+ROW()-2))=Rebalance!$D$54,INDIRECT(\"a\" & (VLOOKUP(Rebalance!$D$54,$F$2:$G$48,2,FALSE)+ROW()-2)),\"\")","v":{"$error":"#N/A"}},{"$f":"IF(INDIRECT(\"c\" & (VLOOKUP(Rebalance!$D$55,$F$2:$G$48,2,FALSE)+ROW()-2))=Rebalance!$D$55,INDIRECT(\"a\" & (VLOOKUP(Rebalance!$D$55,$F$2:$G$48,2,FALSE)+ROW()-2)),\"\")","v":{"$error":"#N/A"}},{"$f":"IF(INDIRECT(\"c\" & (VLOOKUP(Rebalance!$D$56,$F$2:$G$48,2,FALSE)+ROW()-2))=Rebalance!$D$56,INDIRECT(\"a\" & (VLOOKUP(Rebalance!$D$56,$F$2:$G$48,2,FALSE)+ROW()-2)),\"\")","v":{"$error":"#N/A"}},{"$f":"IF(INDIRECT(\"c\" & (VLOOKUP(Rebalance!$D$57,$F$2:$G$48,2,FALSE)+ROW()-2))=Rebalance!$D$57,INDIRECT(\"a\" & (VLOOKUP(Rebalance!$D$57,$F$2:$G$48,2,FALSE)+ROW()-2)),\"\")","v":{"$error":"#N/A"}},{"$f":"IF(INDIRECT(\"c\" & (VLOOKUP(Rebalance!$D$58,$F$2:$G$48,2,FALSE)+ROW()-2))=Rebalance!$D$58,INDIRECT(\"a\" & (VLOOKUP(Rebalance!$D$58,$F$2:$G$48,2,FALSE)+ROW()-2)),\"\")","v":{"$error":"#N/A"}},{"$f":"IF(INDIRECT(\"c\" & (VLOOKUP(Rebalance!$D$59,$F$2:$G$48,2,FALSE)+ROW()-2))=Rebalance!$D$59,INDIRECT(\"a\" & (VLOOKUP(Rebalance!$D$59,$F$2:$G$48,2,FALSE)+ROW()-2)),\"\")","v":{"$error":"#N/A"}},{"$f":"IF(INDIRECT(\"c\" & (VLOOKUP(Rebalance!$D$60,$F$2:$G$48,2,FALSE)+ROW()-2))=Rebalance!$D$60,INDIRECT(\"a\" & (VLOOKUP(Rebalance!$D$60,$F$2:$G$48,2,FALSE)+ROW()-2)),\"\")","v":{"$error":"#N/A"}},{"$f":"IF(INDIRECT(\"c\" & (VLOOKUP(Rebalance!$D$61,$F$2:$G$48,2,FALSE)+ROW()-2))=Rebalance!$D$61,INDIRECT(\"a\" & (VLOOKUP(Rebalance!$D$61,$F$2:$G$48,2,FALSE)+ROW()-2)),\"\")","v":{"$error":"#N/A"}},{"$f":"IF(INDIRECT(\"c\" & (VLOOKUP(Rebalance!$D$62,$F$2:$G$48,2,FALSE)+ROW()-2))=Rebalance!$D$62,INDIRECT(\"a\" & (VLOOKUP(Rebalance!$D$62,$F$2:$G$48,2,FALSE)+ROW()-2)),\"\")","v":{"$error":"#N/A"}},{"$f":"IF(INDIRECT(\"c\" & (VLOOKUP(Rebalance!$D$63,$F$2:$G$48,2,FALSE)+ROW()-2))=Rebalance!$D$63,INDIRECT(\"a\" & (VLOOKUP(Rebalance!$D$63,$F$2:$G$48,2,FALSE)+ROW()-2)),\"\")","v":{"$error":"#N/A"}},{"$f":"IF(INDIRECT(\"c\" & (VLOOKUP(Rebalance!$D$64,$F$2:$G$48,2,FALSE)+ROW()-2))=Rebalance!$D$64,INDIRECT(\"a\" & (VLOOKUP(Rebalance!$D$64,$F$2:$G$48,2,FALSE)+ROW()-2)),\"\")","v":{"$error":"#N/A"}},{"$f":"IF(INDIRECT(\"c\" & (VLOOKUP(Rebalance!$D$65,$F$2:$G$48,2,FALSE)+ROW()-2))=Rebalance!$D$65,INDIRECT(\"a\" & (VLOOKUP(Rebalance!$D$65,$F$2:$G$48,2,FALSE)+ROW()-2)),\"\")","v":{"$error":"#N/A"}},{"$f":"IF(INDIRECT(\"c\" & (VLOOKUP(Rebalance!$D$66,$F$2:$G$48,2,FALSE)+ROW()-2))=Rebalance!$D$66,INDIRECT(\"a\" & (VLOOKUP(Rebalance!$D$66,$F$2:$G$48,2,FALSE)+ROW()-2)),\"\")","v":{"$error":"#N/A"}}]
[null,null,null,{"$f":"ROW()","v":576},null,null,{"$f":"VLOOKUP(F576,$C$2:$D$599,2,FALSE)","v":{"$error":"#N/A"}},{"$f":"IF(INDIRECT(\"c\" & (VLOOKUP(Rebalance!$D$26,$F$2:$G$48,2,FALSE)+ROW()-2))=Rebalance!$D$26,INDIRECT(\"a\" & (VLOOKUP(Rebalance!$D$26,$F$2:$G$48,2,FALSE)+ROW()-2)),\"\")","v":{"$error":"#N/A"}},{"$f":"IF(INDIRECT(\"c\" & (VLOOKUP(Rebalance!$D$27,$F$2:$G$48,2,FALSE)+ROW()-2))=Rebalance!$D$27,INDIRECT(\"a\" & (VLOOKUP(Rebalance!$D$27,$F$2:$G$48,2,FALSE)+ROW()-2)),\"\")","v":{"$error":"#N/A"}},{"$f":"IF(INDIRECT(\"c\" & (VLOOKUP(Rebalance!$D$28,$F$2:$G$48,2,FALSE)+ROW()-2))=Rebalance!$D$28,INDIRECT(\"a\" & (VLOOKUP(Rebalance!$D$28,$F$2:$G$48,2,FALSE)+ROW()-2)),\"\")","v":{"$error":"#N/A"}},{"$f":"IF(INDIRECT(\"c\" & (VLOOKUP(Rebalance!$D$29,$F$2:$G$48,2,FALSE)+ROW()-2))=Rebalance!$D$29,INDIRECT(\"a\" & (VLOOKUP(Rebalance!$D$29,$F$2:$G$48,2,FALSE)+ROW()-2)),\"\")","v":{"$error":"#N/A"}},{"$f":"IF(INDIRECT(\"c\" & (VLOOKUP(Rebalance!$D$30,$F$2:$G$48,2,FALSE)+ROW()-2))=Rebalance!$D$30,INDIRECT(\"a\" & (VLOOKUP(Rebalance!$D$30,$F$2:$G$48,2,FALSE)+ROW()-2)),\"\")","v":{"$error":"#N/A"}},{"$f":"IF(INDIRECT(\"c\" & (VLOOKUP(Rebalance!$D$31,$F$2:$G$48,2,FALSE)+ROW()-2))=Rebalance!$D$31,INDIRECT(\"a\" & (VLOOKUP(Rebalance!$D$31,$F$2:$G$48,2,FALSE)+ROW()-2)),\"\")","v":{"$error":"#N/A"}},{"$f":"IF(INDIRECT(\"c\" & (VLOOKUP(Rebalance!$D$32,$F$2:$G$48,2,FALSE)+ROW()-2))=Rebalance!$D$32,INDIRECT(\"a\" & (VLOOKUP(Rebalance!$D$32,$F$2:$G$48,2,FALSE)+ROW()-2)),\"\")","v":{"$error":"#N/A"}},{"$f":"IF(INDIRECT(\"c\" & (VLOOKUP(Rebalance!$D$33,$F$2:$G$48,2,FALSE)+ROW()-2))=Rebalance!$D$33,INDIRECT(\"a\" & (VLOOKUP(Rebalance!$D$33,$F$2:$G$48,2,FALSE)+ROW()-2)),\"\")","v":{"$error":"#N/A"}},{"$f":"IF(INDIRECT(\"c\" & (VLOOKUP(Rebalance!$D$34,$F$2:$G$48,2,FALSE)+ROW()-2))=Rebalance!$D$34,INDIRECT(\"a\" & (VLOOKUP(Rebalance!$D$34,$F$2:$G$48,2,FALSE)+ROW()-2)),\"\")","v":{"$error":"#N/A"}},{"$f":"IF(INDIRECT(\"c\" & (VLOOKUP(Rebalance!$D$35,$F$2:$G$48,2,FALSE)+ROW()-2))=Rebalance!$D$35,INDIRECT(\"a\" & (VLOOKUP(Rebalance!$D$35,$F$2:$G$48,2,FALSE)+ROW()-2)),\"\")","v":{"$error":"#N/A"}},{"$f":"IF(INDIRECT(\"c\" & (VLOOKUP(Rebalance!$D$36,$F$2:$G$48,2,FALSE)+ROW()-2))=Rebalance!$D$36,INDIRECT(\"a\" & (VLOOKUP(Rebalance!$D$36,$F$2:$G$48,2,FALSE)+ROW()-2)),\"\")","v":{"$error":"#N/A"}},{"$f":"IF(INDIRECT(\"c\" & (VLOOKUP(Rebalance!$D$37,$F$2:$G$48,2,FALSE)+ROW()-2))=Rebalance!$D$37,INDIRECT(\"a\" & (VLOOKUP(Rebalance!$D$37,$F$2:$G$48,2,FALSE)+ROW()-2)),\"\")","v":{"$error":"#N/A"}},{"$f":"IF(INDIRECT(\"c\" & (VLOOKUP(Rebalance!$D$38,$F$2:$G$48,2,FALSE)+ROW()-2))=Rebalance!$D$38,INDIRECT(\"a\" & (VLOOKUP(Rebalance!$D$38,$F$2:$G$48,2,FALSE)+ROW()-2)),\"\")","v":{"$error":"#N/A"}},{"$f":"IF(INDIRECT(\"c\" & (VLOOKUP(Rebalance!$D$39,$F$2:$G$48,2,FALSE)+ROW()-2))=Rebalance!$D$39,INDIRECT(\"a\" & (VLOOKUP(Rebalance!$D$39,$F$2:$G$48,2,FALSE)+ROW()-2)),\"\")","v":{"$error":"#N/A"}},{"$f":"IF(INDIRECT(\"c\" & (VLOOKUP(Rebalance!$D$40,$F$2:$G$48,2,FALSE)+ROW()-2))=Rebalance!$D$40,INDIRECT(\"a\" & (VLOOKUP(Rebalance!$D$40,$F$2:$G$48,2,FALSE)+ROW()-2)),\"\")","v":{"$error":"#N/A"}},{"$f":"IF(INDIRECT(\"c\" & (VLOOKUP(Rebalance!$D$52,$F$2:$G$48,2,FALSE)+ROW()-2))=Rebalance!$D$52,INDIRECT(\"a\" & (VLOOKUP(Rebalance!$D$52,$F$2:$G$48,2,FALSE)+ROW()-2)),\"\")","v":{"$error":"#N/A"}},{"$f":"IF(INDIRECT(\"c\" & (VLOOKUP(Rebalance!$D$53,$F$2:$G$48,2,FALSE)+ROW()-2))=Rebalance!$D$53,INDIRECT(\"a\" & (VLOOKUP(Rebalance!$D$53,$F$2:$G$48,2,FALSE)+ROW()-2)),\"\")","v":{"$error":"#N/A"}},{"$f":"IF(INDIRECT(\"c\" & (VLOOKUP(Rebalance!$D$54,$F$2:$G$48,2,FALSE)+ROW()-2))=Rebalance!$D$54,INDIRECT(\"a\" & (VLOOKUP(Rebalance!$D$54,$F$2:$G$48,2,FALSE)+ROW()-2)),\"\")","v":{"$error":"#N/A"}},{"$f":"IF(INDIRECT(\"c\" & (VLOOKUP(Rebalance!$D$55,$F$2:$G$48,2,FALSE)+ROW()-2))=Rebalance!$D$55,INDIRECT(\"a\" & (VLOOKUP(Rebalance!$D$55,$F$2:$G$48,2,FALSE)+ROW()-2)),\"\")","v":{"$error":"#N/A"}},{"$f":"IF(INDIRECT(\"c\" & (VLOOKUP(Rebalance!$D$56,$F$2:$G$48,2,FALSE)+ROW()-2))=Rebalance!$D$56,INDIRECT(\"a\" & (VLOOKUP(Rebalance!$D$56,$F$2:$G$48,2,FALSE)+ROW()-2)),\"\")","v":{"$error":"#N/A"}},{"$f":"IF(INDIRECT(\"c\" & (VLOOKUP(Rebalance!$D$57,$F$2:$G$48,2,FALSE)+ROW()-2))=Rebalance!$D$57,INDIRECT(\"a\" & (VLOOKUP(Rebalance!$D$57,$F$2:$G$48,2,FALSE)+ROW()-2)),\"\")","v":{"$error":"#N/A"}},{"$f":"IF(INDIRECT(\"c\" & (VLOOKUP(Rebalance!$D$58,$F$2:$G$48,2,FALSE)+ROW()-2))=Rebalance!$D$58,INDIRECT(\"a\" & (VLOOKUP(Rebalance!$D$58,$F$2:$G$48,2,FALSE)+ROW()-2)),\"\")","v":{"$error":"#N/A"}},{"$f":"IF(INDIRECT(\"c\" & (VLOOKUP(Rebalance!$D$59,$F$2:$G$48,2,FALSE)+ROW()-2))=Rebalance!$D$59,INDIRECT(\"a\" & (VLOOKUP(Rebalance!$D$59,$F$2:$G$48,2,FALSE)+ROW()-2)),\"\")","v":{"$error":"#N/A"}},{"$f":"IF(INDIRECT(\"c\" & (VLOOKUP(Rebalance!$D$60,$F$2:$G$48,2,FALSE)+ROW()-2))=Rebalance!$D$60,INDIRECT(\"a\" & (VLOOKUP(Rebalance!$D$60,$F$2:$G$48,2,FALSE)+ROW()-2)),\"\")","v":{"$error":"#N/A"}},{"$f":"IF(INDIRECT(\"c\" & (VLOOKUP(Rebalance!$D$61,$F$2:$G$48,2,FALSE)+ROW()-2))=Rebalance!$D$61,INDIRECT(\"a\" & (VLOOKUP(Rebalance!$D$61,$F$2:$G$48,2,FALSE)+ROW()-2)),\"\")","v":{"$error":"#N/A"}},{"$f":"IF(INDIRECT(\"c\" & (VLOOKUP(Rebalance!$D$62,$F$2:$G$48,2,FALSE)+ROW()-2))=Rebalance!$D$62,INDIRECT(\"a\" & (VLOOKUP(Rebalance!$D$62,$F$2:$G$48,2,FALSE)+ROW()-2)),\"\")","v":{"$error":"#N/A"}},{"$f":"IF(INDIRECT(\"c\" & (VLOOKUP(Rebalance!$D$63,$F$2:$G$48,2,FALSE)+ROW()-2))=Rebalance!$D$63,INDIRECT(\"a\" & (VLOOKUP(Rebalance!$D$63,$F$2:$G$48,2,FALSE)+ROW()-2)),\"\")","v":{"$error":"#N/A"}},{"$f":"IF(INDIRECT(\"c\" & (VLOOKUP(Rebalance!$D$64,$F$2:$G$48,2,FALSE)+ROW()-2))=Rebalance!$D$64,INDIRECT(\"a\" & (VLOOKUP(Rebalance!$D$64,$F$2:$G$48,2,FALSE)+ROW()-2)),\"\")","v":{"$error":"#N/A"}},{"$f":"IF(INDIRECT(\"c\" & (VLOOKUP(Rebalance!$D$65,$F$2:$G$48,2,FALSE)+ROW()-2))=Rebalance!$D$65,INDIRECT(\"a\" & (VLOOKUP(Rebalance!$D$65,$F$2:$G$48,2,FALSE)+ROW()-2)),\"\")","v":{"$error":"#N/A"}},{"$f":"IF(INDIRECT(\"c\" & (VLOOKUP(Rebalance!$D$66,$F$2:$G$48,2,FALSE)+ROW()-2))=Rebalance!$D$66,INDIRECT(\"a\" & (VLOOKUP(Rebalance!$D$66,$F$2:$G$48,2,FALSE)+ROW()-2)),\"\")","v":{"$error":"#N/A"}}]
[null,null,null,{"$f":"ROW()","v":577},null,null,{"$f":"VLOOKUP(F577,$C$2:$D$599,2,FALSE)","v":{"$error":"#N/A"}},{"$f":"IF(INDIRECT(\"c\" & (VLOOKUP(Rebalance!$D$26,$F$2:$G$48,2,FALSE)+ROW()-2))=Rebalance!$D$26,INDIRECT(\"a\" & (VLOOKUP(Rebalance!$D$26,$F$2:$G$48,2,FALSE)+ROW()-2)),\"\")","v":{"$error":"#N/A"}},{"$f":"IF(INDIRECT(\"c\" & (VLOOKUP(Rebalance!$D$27,$F$2:$G$48,2,FALSE)+ROW()-2))=Rebalance!$D$27,INDIRECT(\"a\" & (VLOOKUP(Rebalance!$D$27,$F$2:$G$48,2,FALSE)+ROW()-2)),\"\")","v":{"$error":"#N/A"}},{"$f":"IF(INDIRECT(\"c\" & (VLOOKUP(Rebalance!$D$28,$F$2:$G$48,2,FALSE)+ROW()-2))=Rebalance!$D$28,INDIRECT(\"a\" & (VLOOKUP(Rebalance!$D$28,$F$2:$G$48,2,FALSE)+ROW()-2)),\"\")","v":{"$error":"#N/A"}},{"$f":"IF(INDIRECT(\"c\" & (VLOOKUP(Rebalance!$D$29,$F$2:$G$48,2,FALSE)+ROW()-2))=Rebalance!$D$29,INDIRECT(\"a\" & (VLOOKUP(Rebalance!$D$29,$F$2:$G$48,2,FALSE)+ROW()-2)),\"\")","v":{"$error":"#N/A"}},{"$f":"IF(INDIRECT(\"c\" & (VLOOKUP(Rebalance!$D$30,$F$2:$G$48,2,FALSE)+ROW()-2))=Rebalance!$D$30,INDIRECT(\"a\" & (VLOOKUP(Rebalance!$D$30,$F$2:$G$48,2,FALSE)+ROW()-2)),\"\")","v":{"$error":"#N/A"}},{"$f":"IF(INDIRECT(\"c\" & (VLOOKUP(Rebalance!$D$31,$F$2:$G$48,2,FALSE)+ROW()-2))=Rebalance!$D$31,INDIRECT(\"a\" & (VLOOKUP(Rebalance!$D$31,$F$2:$G$48,2,FALSE)+ROW()-2)),\"\")","v":{"$error":"#N/A"}},{"$f":"IF(INDIRECT(\"c\" & (VLOOKUP(Rebalance!$D$32,$F$2:$G$48,2,FALSE)+ROW()-2))=Rebalance!$D$32,INDIRECT(\"a\" & (VLOOKUP(Rebalance!$D$32,$F$2:$G$48,2,FALSE)+ROW()-2)),\"\")","v":{"$error":"#N/A"}},{"$f":"IF(INDIRECT(\"c\" & (VLOOKUP(Rebalance!$D$33,$F$2:$G$48,2,FALSE)+ROW()-2))=Rebalance!$D$33,INDIRECT(\"a\" & (VLOOKUP(Rebalance!$D$33,$F$2:$G$48,2,FALSE)+ROW()-2)),\"\")","v":{"$error":"#N/A"}},{"$f":"IF(INDIRECT(\"c\" & (VLOOKUP(Rebalance!$D$34,$F$2:$G$48,2,FALSE)+ROW()-2))=Rebalance!$D$34,INDIRECT(\"a\" & (VLOOKUP(Rebalance!$D$34,$F$2:$G$48,2,FALSE)+ROW()-2)),\"\")","v":{"$error":"#N/A"}},{"$f":"IF(INDIRECT(\"c\" & (VLOOKUP(Rebalance!$D$35,$F$2:$G$48,2,FALSE)+ROW()-2))=Rebalance!$D$35,INDIRECT(\"a\" & (VLOOKUP(Rebalance!$D$35,$F$2:$G$48,2,FALSE)+ROW()-2)),\"\")","v":{"$error":"#N/A"}},{"$f":"IF(INDIRECT(\"c\" & (VLOOKUP(Rebalance!$D$36,$F$2:$G$48,2,FALSE)+ROW()-2))=Rebalance!$D$36,INDIRECT(\"a\" & (VLOOKUP(Rebalance!$D$36,$F$2:$G$48,2,FALSE)+ROW()-2)),\"\")","v":{"$error":"#N/A"}},{"$f":"IF(INDIRECT(\"c\" & (VLOOKUP(Rebalance!$D$37,$F$2:$G$48,2,FALSE)+ROW()-2))=Rebalance!$D$37,INDIRECT(\"a\" & (VLOOKUP(Rebalance!$D$37,$F$2:$G$48,2,FALSE)+ROW()-2)),\"\")","v":{"$error":"#N/A"}},{"$f":"IF(INDIRECT(\"c\" & (VLOOKUP(Rebalance!$D$38,$F$2:$G$48,2,FALSE)+ROW()-2))=Rebalance!$D$38,INDIRECT(\"a\" & (VLOOKUP(Rebalance!$D$38,$F$2:$G$48,2,FALSE)+ROW()-2)),\"\")","v":{"$error":"#N/A"}},{"$f":"IF(INDIRECT(\"c\" & (VLOOKUP(Rebalance!$D$39,$F$2:$G$48,2,FALSE)+ROW()-2))=Rebalance!$D$39,INDIRECT(\"a\" & (VLOOKUP(Rebalance!$D$39,$F$2:$G$48,2,FALSE)+ROW()-2)),\"\")","v":{"$error":"#N/A"}},{"$f":"IF(INDIRECT(\"c\" & (VLOOKUP(Rebalance!$D$40,$F$2:$G$48,2,FALSE)+ROW()-2))=Rebalance!$D$40,INDIRECT(\"a\" & (VLOOKUP(Rebalance!$D$40,$F$2:$G$48,2,FALSE)+ROW()-2)),\"\")","v":{"$error":"#N/A"}},{"$f":"IF(INDIRECT(\"c\" & (VLOOKUP(Rebalance!$D$52,$F$2:$G$48,2,FALSE)+ROW()-2))=Rebalance!$D$52,INDIRECT(\"a\" & (VLOOKUP(Rebalance!$D$52,$F$2:$G$48,2,FALSE)+ROW()-2)),\"\")","v":{"$error":"#N/A"}},{"$f":"IF(INDIRECT(\"c\" & (VLOOKUP(Rebalance!$D$53,$F$2:$G$48,2,FALSE)+ROW()-2))=Rebalance!$D$53,INDIRECT(\"a\" & (VLOOKUP(Rebalance!$D$53,$F$2:$G$48,2,FALSE)+ROW()-2)),\"\")","v":{"$error":"#N/A"}},{"$f":"IF(INDIRECT(\"c\" & (VLOOKUP(Rebalance!$D$54,$F$2:$G$48,2,FALSE)+ROW()-2))=Rebalance!$D$54,INDIRECT(\"a\" & (VLOOKUP(Rebalance!$D$54,$F$2:$G$48,2,FALSE)+ROW()-2)),\"\")","v":{"$error":"#N/A"}},{"$f":"IF(INDIRECT(\"c\" & (VLOOKUP(Rebalance!$D$55,$F$2:$G$48,2,FALSE)+ROW()-2))=Rebalance!$D$55,INDIRECT(\"a\" & (VLOOKUP(Rebalance!$D$55,$F$2:$G$48,2,FALSE)+ROW()-2)),\"\")","v":{"$error":"#N/A"}},{"$f":"IF(INDIRECT(\"c\" & (VLOOKUP(Rebalance!$D$56,$F$2:$G$48,2,FALSE)+ROW()-2))=Rebalance!$D$56,INDIRECT(\"a\" & (VLOOKUP(Rebalance!$D$56,$F$2:$G$48,2,FALSE)+ROW()-2)),\"\")","v":{"$error":"#N/A"}},{"$f":"IF(INDIRECT(\"c\" & (VLOOKUP(Rebalance!$D$57,$F$2:$G$48,2,FALSE)+ROW()-2))=Rebalance!$D$57,INDIRECT(\"a\" & (VLOOKUP(Rebalance!$D$57,$F$2:$G$48,2,FALSE)+ROW()-2)),\"\")","v":{"$error":"#N/A"}},{"$f":"IF(INDIRECT(\"c\" & (VLOOKUP(Rebalance!$D$58,$F$2:$G$48,2,FALSE)+ROW()-2))=Rebalance!$D$58,INDIRECT(\"a\" & (VLOOKUP(Rebalance!$D$58,$F$2:$G$48,2,FALSE)+ROW()-2)),\"\")","v":{"$error":"#N/A"}},{"$f":"IF(INDIRECT(\"c\" & (VLOOKUP(Rebalance!$D$59,$F$2:$G$48,2,FALSE)+ROW()-2))=Rebalance!$D$59,INDIRECT(\"a\" & (VLOOKUP(Rebalance!$D$59,$F$2:$G$48,2,FALSE)+ROW()-2)),\"\")","v":{"$error":"#N/A"}},{"$f":"IF(INDIRECT(\"c\" & (VLOOKUP(Rebalance!$D$60,$F$2:$G$48,2,FALSE)+ROW()-2))=Rebalance!$D$60,INDIRECT(\"a\" & (VLOOKUP(Rebalance!$D$60,$F$2:$G$48,2,FALSE)+ROW()-2)),\"\")","v":{"$error":"#N/A"}},{"$f":"IF(INDIRECT(\"c\" & (VLOOKUP(Rebalance!$D$61,$F$2:$G$48,2,FALSE)+ROW()-2))=Rebalance!$D$61,INDIRECT(\"a\" & (VLOOKUP(Rebalance!$D$61,$F$2:$G$48,2,FALSE)+ROW()-2)),\"\")","v":{"$error":"#N/A"}},{"$f":"IF(INDIRECT(\"c\" & (VLOOKUP(Rebalance!$D$62,$F$2:$G$48,2,FALSE)+ROW()-2))=Rebalance!$D$62,INDIRECT(\"a\" & (VLOOKUP(Rebalance!$D$62,$F$2:$G$48,2,FALSE)+ROW()-2)),\"\")","v":{"$error":"#N/A"}},{"$f":"IF(INDIRECT(\"c\" & (VLOOKUP(Rebalance!$D$63,$F$2:$G$48,2,FALSE)+ROW()-2))=Rebalance!$D$63,INDIRECT(\"a\" & (VLOOKUP(Rebalance!$D$63,$F$2:$G$48,2,FALSE)+ROW()-2)),\"\")","v":{"$error":"#N/A"}},{"$f":"IF(INDIRECT(\"c\" & (VLOOKUP(Rebalance!$D$64,$F$2:$G$48,2,FALSE)+ROW()-2))=Rebalance!$D$64,INDIRECT(\"a\" & (VLOOKUP(Rebalance!$D$64,$F$2:$G$48,2,FALSE)+ROW()-2)),\"\")","v":{"$error":"#N/A"}},{"$f":"IF(INDIRECT(\"c\" & (VLOOKUP(Rebalance!$D$65,$F$2:$G$48,2,FALSE)+ROW()-2))=Rebalance!$D$65,INDIRECT(\"a\" & (VLOOKUP(Rebalance!$D$65,$F$2:$G$48,2,FALSE)+ROW()-2)),\"\")","v":{"$error":"#N/A"}},{"$f":"IF(INDIRECT(\"c\" & (VLOOKUP(Rebalance!$D$66,$F$2:$G$48,2,FALSE)+ROW()-2))=Rebalance!$D$66,INDIRECT(\"a\" & (VLOOKUP(Rebalance!$D$66,$F$2:$G$48,2,FALSE)+ROW()-2)),\"\")","v":{"$error":"#N/A"}}]
[null,null,null,{"$f":"ROW()","v":578},null,null,{"$f":"VLOOKUP(F578,$C$2:$D$599,2,FALSE)","v":{"$error":"#N/A"}},{"$f":"IF(INDIRECT(\"c\" & (VLOOKUP(Rebalance!$D$26,$F$2:$G$48,2,FALSE)+ROW()-2))=Rebalance!$D$26,INDIRECT(\"a\" & (VLOOKUP(Rebalance!$D$26,$F$2:$G$48,2,FALSE)+ROW()-2)),\"\")","v":{"$error":"#N/A"}},{"$f":"IF(INDIRECT(\"c\" & (VLOOKUP(Rebalance!$D$27,$F$2:$G$48,2,FALSE)+ROW()-2))=Rebalance!$D$27,INDIRECT(\"a\" & (VLOOKUP(Rebalance!$D$27,$F$2:$G$48,2,FALSE)+ROW()-2)),\"\")","v":{"$error":"#N/A"}},{"$f":"IF(INDIRECT(\"c\" & (VLOOKUP(Rebalance!$D$28,$F$2:$G$48,2,FALSE)+ROW()-2))=Rebalance!$D$28,INDIRECT(\"a\" & (VLOOKUP(Rebalance!$D$28,$F$2:$G$48,2,FALSE)+ROW()-2)),\"\")","v":{"$error":"#N/A"}},{"$f":"IF(INDIRECT(\"c\" & (VLOOKUP(Rebalance!$D$29,$F$2:$G$48,2,FALSE)+ROW()-2))=Rebalance!$D$29,INDIRECT(\"a\" & (VLOOKUP(Rebalance!$D$29,$F$2:$G$48,2,FALSE)+ROW()-2)),\"\")","v":{"$error":"#N/A"}},{"$f":"IF(INDIRECT(\"c\" & (VLOOKUP(Rebalance!$D$30,$F$2:$G$48,2,FALSE)+ROW()-2))=Rebalance!$D$30,INDIRECT(\"a\" & (VLOOKUP(Rebalance!$D$30,$F$2:$G$48,2,FALSE)+ROW()-2)),\"\")","v":{"$error":"#N/A"}},{"$f":"IF(INDIRECT(\"c\" & (VLOOKUP(Rebalance!$D$31,$F$2:$G$48,2,FALSE)+ROW()-2))=Rebalance!$D$31,INDIRECT(\"a\" & (VLOOKUP(Rebalance!$D$31,$F$2:$G$48,2,FALSE)+ROW()-2)),\"\")","v":{"$error":"#N/A"}},{"$f":"IF(INDIRECT(\"c\" & (VLOOKUP(Rebalance!$D$32,$F$2:$G$48,2,FALSE)+ROW()-2))=Rebalance!$D$32,INDIRECT(\"a\" & (VLOOKUP(Rebalance!$D$32,$F$2:$G$48,2,FALSE)+ROW()-2)),\"\")","v":{"$error":"#N/A"}},{"$f":"IF(INDIRECT(\"c\" & (VLOOKUP(Rebalance!$D$33,$F$2:$G$48,2,FALSE)+ROW()-2))=Rebalance!$D$33,INDIRECT(\"a\" & (VLOOKUP(Rebalance!$D$33,$F$2:$G$48,2,FALSE)+ROW()-2)),\"\")","v":{"$error":"#N/A"}},{"$f":"IF(INDIRECT(\"c\" & (VLOOKUP(Rebalance!$D$34,$F$2:$G$48,2,FALSE)+ROW()-2))=Rebalance!$D$34,INDIRECT(\"a\" & (VLOOKUP(Rebalance!$D$34,$F$2:$G$48,2,FALSE)+ROW()-2)),\"\")","v":{"$error":"#N/A"}},{"$f":"IF(INDIRECT(\"c\" & (VLOOKUP(Rebalance!$D$35,$F$2:$G$48,2,FALSE)+ROW()-2))=Rebalance!$D$35,INDIRECT(\"a\" & (VLOOKUP(Rebalance!$D$35,$F$2:$G$48,2,FALSE)+ROW()-2)),\"\")","v":{"$error":"#N/A"}},{"$f":"IF(INDIRECT(\"c\" & (VLOOKUP(Rebalance!$D$36,$F$2:$G$48,2,FALSE)+ROW()-2))=Rebalance!$D$36,INDIRECT(\"a\" & (VLOOKUP(Rebalance!$D$36,$F$2:$G$48,2,FALSE)+ROW()-2)),\"\")","v":{"$error":"#N/A"}},{"$f":"IF(INDIRECT(\"c\" & (VLOOKUP(Rebalance!$D$37,$F$2:$G$48,2,FALSE)+ROW()-2))=Rebalance!$D$37,INDIRECT(\"a\" & (VLOOKUP(Rebalance!$D$37,$F$2:$G$48,2,FALSE)+ROW()-2)),\"\")","v":{"$error":"#N/A"}},{"$f":"IF(INDIRECT(\"c\" & (VLOOKUP(Rebalance!$D$38,$F$2:$G$48,2,FALSE)+ROW()-2))=Rebalance!$D$38,INDIRECT(\"a\" & (VLOOKUP(Rebalance!$D$38,$F$2:$G$48,2,FALSE)+ROW()-2)),\"\")","v":{"$error":"#N/A"}},{"$f":"IF(INDIRECT(\"c\" & (VLOOKUP(Rebalance!$D$39,$F$2:$G$48,2,FALSE)+ROW()-2))=Rebalance!$D$39,INDIRECT(\"a\" & (VLOOKUP(Rebalance!$D$39,$F$2:$G$48,2,FALSE)+ROW()-2)),\"\")","v":{"$error":"#N/A"}},{"$f":"IF(INDIRECT(\"c\" & (VLOOKUP(Rebalance!$D$40,$F$2:$G$48,2,FALSE)+ROW()-2))=Rebalance!$D$40,INDIRECT(\"a\" & (VLOOKUP(Rebalance!$D$40,$F$2:$G$48,2,FALSE)+ROW()-2)),\"\")","v":{"$error":"#N/A"}},{"$f":"IF(INDIRECT(\"c\" & (VLOOKUP(Rebalance!$D$52,$F$2:$G$48,2,FALSE)+ROW()-2))=Rebalance!$D$52,INDIRECT(\"a\" & (VLOOKUP(Rebalance!$D$52,$F$2:$G$48,2,FALSE)+ROW()-2)),\"\")","v":{"$error":"#N/A"}},{"$f":"IF(INDIRECT(\"c\" & (VLOOKUP(Rebalance!$D$53,$F$2:$G$48,2,FALSE)+ROW()-2))=Rebalance!$D$53,INDIRECT(\"a\" & (VLOOKUP(Rebalance!$D$53,$F$2:$G$48,2,FALSE)+ROW()-2)),\"\")","v":{"$error":"#N/A"}},{"$f":"IF(INDIRECT(\"c\" & (VLOOKUP(Rebalance!$D$54,$F$2:$G$48,2,FALSE)+ROW()-2))=Rebalance!$D$54,INDIRECT(\"a\" & (VLOOKUP(Rebalance!$D$54,$F$2:$G$48,2,FALSE)+ROW()-2)),\"\")","v":{"$error":"#N/A"}},{"$f":"IF(INDIRECT(\"c\" & (VLOOKUP(Rebalance!$D$55,$F$2:$G$48,2,FALSE)+ROW()-2))=Rebalance!$D$55,INDIRECT(\"a\" & (VLOOKUP(Rebalance!$D$55,$F$2:$G$48,2,FALSE)+ROW()-2)),\"\")","v":{"$error":"#N/A"}},{"$f":"IF(INDIRECT(\"c\" & (VLOOKUP(Rebalance!$D$56,$F$2:$G$48,2,FALSE)+ROW()-2))=Rebalance!$D$56,INDIRECT(\"a\" & (VLOOKUP(Rebalance!$D$56,$F$2:$G$48,2,FALSE)+ROW()-2)),\"\")","v":{"$error":"#N/A"}},{"$f":"IF(INDIRECT(\"c\" & (VLOOKUP(Rebalance!$D$57,$F$2:$G$48,2,FALSE)+ROW()-2))=Rebalance!$D$57,INDIRECT(\"a\" & (VLOOKUP(Rebalance!$D$57,$F$2:$G$48,2,FALSE)+ROW()-2)),\"\")","v":{"$error":"#N/A"}},{"$f":"IF(INDIRECT(\"c\" & (VLOOKUP(Rebalance!$D$58,$F$2:$G$48,2,FALSE)+ROW()-2))=Rebalance!$D$58,INDIRECT(\"a\" & (VLOOKUP(Rebalance!$D$58,$F$2:$G$48,2,FALSE)+ROW()-2)),\"\")","v":{"$error":"#N/A"}},{"$f":"IF(INDIRECT(\"c\" & (VLOOKUP(Rebalance!$D$59,$F$2:$G$48,2,FALSE)+ROW()-2))=Rebalance!$D$59,INDIRECT(\"a\" & (VLOOKUP(Rebalance!$D$59,$F$2:$G$48,2,FALSE)+ROW()-2)),\"\")","v":{"$error":"#N/A"}},{"$f":"IF(INDIRECT(\"c\" & (VLOOKUP(Rebalance!$D$60,$F$2:$G$48,2,FALSE)+ROW()-2))=Rebalance!$D$60,INDIRECT(\"a\" & (VLOOKUP(Rebalance!$D$60,$F$2:$G$48,2,FALSE)+ROW()-2)),\"\")","v":{"$error":"#N/A"}},{"$f":"IF(INDIRECT(\"c\" & (VLOOKUP(Rebalance!$D$61,$F$2:$G$48,2,FALSE)+ROW()-2))=Rebalance!$D$61,INDIRECT(\"a\" & (VLOOKUP(Rebalance!$D$61,$F$2:$G$48,2,FALSE)+ROW()-2)),\"\")","v":{"$error":"#N/A"}},{"$f":"IF(INDIRECT(\"c\" & (VLOOKUP(Rebalance!$D$62,$F$2:$G$48,2,FALSE)+ROW()-2))=Rebalance!$D$62,INDIRECT(\"a\" & (VLOOKUP(Rebalance!$D$62,$F$2:$G$48,2,FALSE)+ROW()-2)),\"\")","v":{"$error":"#N/A"}},{"$f":"IF(INDIRECT(\"c\" & (VLOOKUP(Rebalance!$D$63,$F$2:$G$48,2,FALSE)+ROW()-2))=Rebalance!$D$63,INDIRECT(\"a\" & (VLOOKUP(Rebalance!$D$63,$F$2:$G$48,2,FALSE)+ROW()-2)),\"\")","v":{"$error":"#N/A"}},{"$f":"IF(INDIRECT(\"c\" & (VLOOKUP(Rebalance!$D$64,$F$2:$G$48,2,FALSE)+ROW()-2))=Rebalance!$D$64,INDIRECT(\"a\" & (VLOOKUP(Rebalance!$D$64,$F$2:$G$48,2,FALSE)+ROW()-2)),\"\")","v":{"$error":"#N/A"}},{"$f":"IF(INDIRECT(\"c\" & (VLOOKUP(Rebalance!$D$65,$F$2:$G$48,2,FALSE)+ROW()-2))=Rebalance!$D$65,INDIRECT(\"a\" & (VLOOKUP(Rebalance!$D$65,$F$2:$G$48,2,FALSE)+ROW()-2)),\"\")","v":{"$error":"#N/A"}},{"$f":"IF(INDIRECT(\"c\" & (VLOOKUP(Rebalance!$D$66,$F$2:$G$48,2,FALSE)+ROW()-2))=Rebalance!$D$66,INDIRECT(\"a\" & (VLOOKUP(Rebalance!$D$66,$F$2:$G$48,2,FALSE)+ROW()-2)),\"\")","v":{"$error":"#N/A"}}]
[null,null,null,{"$f":"ROW()","v":579},null,null,{"$f":"VLOOKUP(F579,$C$2:$D$599,2,FALSE)","v":{"$error":"#N/A"}},{"$f":"IF(INDIRECT(\"c\" & (VLOOKUP(Rebalance!$D$26,$F$2:$G$48,2,FALSE)+ROW()-2))=Rebalance!$D$26,INDIRECT(\"a\" & (VLOOKUP(Rebalance!$D$26,$F$2:$G$48,2,FALSE)+ROW()-2)),\"\")","v":{"$error":"#N/A"}},{"$f":"IF(INDIRECT(\"c\" & (VLOOKUP(Rebalance!$D$27,$F$2:$G$48,2,FALSE)+ROW()-2))=Rebalance!$D$27,INDIRECT(\"a\" & (VLOOKUP(Rebalance!$D$27,$F$2:$G$48,2,FALSE)+ROW()-2)),\"\")","v":{"$error":"#N/A"}},{"$f":"IF(INDIRECT(\"c\" & (VLOOKUP(Rebalance!$D$28,$F$2:$G$48,2,FALSE)+ROW()-2))=Rebalance!$D$28,INDIRECT(\"a\" & (VLOOKUP(Rebalance!$D$28,$F$2:$G$48,2,FALSE)+ROW()-2)),\"\")","v":{"$error":"#N/A"}},{"$f":"IF(INDIRECT(\"c\" & (VLOOKUP(Rebalance!$D$29,$F$2:$G$48,2,FALSE)+ROW()-2))=Rebalance!$D$29,INDIRECT(\"a\" & (VLOOKUP(Rebalance!$D$29,$F$2:$G$48,2,FALSE)+ROW()-2)),\"\")","v":{"$error":"#N/A"}},{"$f":"IF(INDIRECT(\"c\" & (VLOOKUP(Rebalance!$D$30,$F$2:$G$48,2,FALSE)+ROW()-2))=Rebalance!$D$30,INDIRECT(\"a\" & (VLOOKUP(Rebalance!$D$30,$F$2:$G$48,2,FALSE)+ROW()-2)),\"\")","v":{"$error":"#N/A"}},{"$f":"IF(INDIRECT(\"c\" & (VLOOKUP(Rebalance!$D$31,$F$2:$G$48,2,FALSE)+ROW()-2))=Rebalance!$D$31,INDIRECT(\"a\" & (VLOOKUP(Rebalance!$D$31,$F$2:$G$48,2,FALSE)+ROW()-2)),\"\")","v":{"$error":"#N/A"}},{"$f":"IF(INDIRECT(\"c\" & (VLOOKUP(Rebalance!$D$32,$F$2:$G$48,2,FALSE)+ROW()-2))=Rebalance!$D$32,INDIRECT(\"a\" & (VLOOKUP(Rebalance!$D$32,$F$2:$G$48,2,FALSE)+ROW()-2)),\"\")","v":{"$error":"#N/A"}},{"$f":"IF(INDIRECT(\"c\" & (VLOOKUP(Rebalance!$D$33,$F$2:$G$48,2,FALSE)+ROW()-2))=Rebalance!$D$33,INDIRECT(\"a\" & (VLOOKUP(Rebalance!$D$33,$F$2:$G$48,2,FALSE)+ROW()-2)),\"\")","v":{"$error":"#N/A"}},{"$f":"IF(INDIRECT(\"c\" & (VLOOKUP(Rebalance!$D$34,$F$2:$G$48,2,FALSE)+ROW()-2))=Rebalance!$D$34,INDIRECT(\"a\" & (VLOOKUP(Rebalance!$D$34,$F$2:$G$48,2,FALSE)+ROW()-2)),\"\")","v":{"$error":"#N/A"}},{"$f":"IF(INDIRECT(\"c\" & (VLOOKUP(Rebalance!$D$35,$F$2:$G$48,2,FALSE)+ROW()-2))=Rebalance!$D$35,INDIRECT(\"a\" & (VLOOKUP(Rebalance!$D$35,$F$2:$G$48,2,FALSE)+ROW()-2)),\"\")","v":{"$error":"#N/A"}},{"$f":"IF(INDIRECT(\"c\" & (VLOOKUP(Rebalance!$D$36,$F$2:$G$48,2,FALSE)+ROW()-2))=Rebalance!$D$36,INDIRECT(\"a\" & (VLOOKUP(Rebalance!$D$36,$F$2:$G$48,2,FALSE)+ROW()-2)),\"\")","v":{"$error":"#N/A"}},{"$f":"IF(INDIRECT(\"c\" & (VLOOKUP(Rebalance!$D$37,$F$2:$G$48,2,FALSE)+ROW()-2))=Rebalance!$D$37,INDIRECT(\"a\" & (VLOOKUP(Rebalance!$D$37,$F$2:$G$48,2,FALSE)+ROW()-2)),\"\")","v":{"$error":"#N/A"}},{"$f":"IF(INDIRECT(\"c\" & (VLOOKUP(Rebalance!$D$38,$F$2:$G$48,2,FALSE)+ROW()-2))=Rebalance!$D$38,INDIRECT(\"a\" & (VLOOKUP(Rebalance!$D$38,$F$2:$G$48,2,FALSE)+ROW()-2)),\"\")","v":{"$error":"#N/A"}},{"$f":"IF(INDIRECT(\"c\" & (VLOOKUP(Rebalance!$D$39,$F$2:$G$48,2,FALSE)+ROW()-2))=Rebalance!$D$39,INDIRECT(\"a\" & (VLOOKUP(Rebalance!$D$39,$F$2:$G$48,2,FALSE)+ROW()-2)),\"\")","v":{"$error":"#N/A"}},{"$f":"IF(INDIRECT(\"c\" & (VLOOKUP(Rebalance!$D$40,$F$2:$G$48,2,FALSE)+ROW()-2))=Rebalance!$D$40,INDIRECT(\"a\" & (VLOOKUP(Rebalance!$D$40,$F$2:$G$48,2,FALSE)+ROW()-2)),\"\")","v":{"$error":"#N/A"}},{"$f":"IF(INDIRECT(\"c\" & (VLOOKUP(Rebalance!$D$52,$F$2:$G$48,2,FALSE)+ROW()-2))=Rebalance!$D$52,INDIRECT(\"a\" & (VLOOKUP(Rebalance!$D$52,$F$2:$G$48,2,FALSE)+ROW()-2)),\"\")","v":{"$error":"#N/A"}},{"$f":"IF(INDIRECT(\"c\" & (VLOOKUP(Rebalance!$D$53,$F$2:$G$48,2,FALSE)+ROW()-2))=Rebalance!$D$53,INDIRECT(\"a\" & (VLOOKUP(Rebalance!$D$53,$F$2:$G$48,2,FALSE)+ROW()-2)),\"\")","v":{"$error":"#N/A"}},{"$f":"IF(INDIRECT(\"c\" & (VLOOKUP(Rebalance!$D$54,$F$2:$G$48,2,FALSE)+ROW()-2))=Rebalance!$D$54,INDIRECT(\"a\" & (VLOOKUP(Rebalance!$D$54,$F$2:$G$48,2,FALSE)+ROW()-2)),\"\")","v":{"$error":"#N/A"}},{"$f":"IF(INDIRECT(\"c\" & (VLOOKUP(Rebalance!$D$55,$F$2:$G$48,2,FALSE)+ROW()-2))=Rebalance!$D$55,INDIRECT(\"a\" & (VLOOKUP(Rebalance!$D$55,$F$2:$G$48,2,FALSE)+ROW()-2)),\"\")","v":{"$error":"#N/A"}},{"$f":"IF(INDIRECT(\"c\" & (VLOOKUP(Rebalance!$D$56,$F$2:$G$48,2,FALSE)+ROW()-2))=Rebalance!$D$56,INDIRECT(\"a\" & (VLOOKUP(Rebalance!$D$56,$F$2:$G$48,2,FALSE)+ROW()-2)),\"\")","v":{"$error":"#N/A"}},{"$f":"IF(INDIRECT(\"c\" & (VLOOKUP(Rebalance!$D$57,$F$2:$G$48,2,FALSE)+ROW()-2))=Rebalance!$D$57,INDIRECT(\"a\" & (VLOOKUP(Rebalance!$D$57,$F$2:$G$48,2,FALSE)+ROW()-2)),\"\")","v":{"$error":"#N/A"}},{"$f":"IF(INDIRECT(\"c\" & (VLOOKUP(Rebalance!$D$58,$F$2:$G$48,2,FALSE)+ROW()-2))=Rebalance!$D$58,INDIRECT(\"a\" & (VLOOKUP(Rebalance!$D$58,$F$2:$G$48,2,FALSE)+ROW()-2)),\"\")","v":{"$error":"#N/A"}},{"$f":"IF(INDIRECT(\"c\" & (VLOOKUP(Rebalance!$D$59,$F$2:$G$48,2,FALSE)+ROW()-2))=Rebalance!$D$59,INDIRECT(\"a\" & (VLOOKUP(Rebalance!$D$59,$F$2:$G$48,2,FALSE)+ROW()-2)),\"\")","v":{"$error":"#N/A"}},{"$f":"IF(INDIRECT(\"c\" & (VLOOKUP(Rebalance!$D$60,$F$2:$G$48,2,FALSE)+ROW()-2))=Rebalance!$D$60,INDIRECT(\"a\" & (VLOOKUP(Rebalance!$D$60,$F$2:$G$48,2,FALSE)+ROW()-2)),\"\")","v":{"$error":"#N/A"}},{"$f":"IF(INDIRECT(\"c\" & (VLOOKUP(Rebalance!$D$61,$F$2:$G$48,2,FALSE)+ROW()-2))=Rebalance!$D$61,INDIRECT(\"a\" & (VLOOKUP(Rebalance!$D$61,$F$2:$G$48,2,FALSE)+ROW()-2)),\"\")","v":{"$error":"#N/A"}},{"$f":"IF(INDIRECT(\"c\" & (VLOOKUP(Rebalance!$D$62,$F$2:$G$48,2,FALSE)+ROW()-2))=Rebalance!$D$62,INDIRECT(\"a\" & (VLOOKUP(Rebalance!$D$62,$F$2:$G$48,2,FALSE)+ROW()-2)),\"\")","v":{"$error":"#N/A"}},{"$f":"IF(INDIRECT(\"c\" & (VLOOKUP(Rebalance!$D$63,$F$2:$G$48,2,FALSE)+ROW()-2))=Rebalance!$D$63,INDIRECT(\"a\" & (VLOOKUP(Rebalance!$D$63,$F$2:$G$48,2,FALSE)+ROW()-2)),\"\")","v":{"$error":"#N/A"}},{"$f":"IF(INDIRECT(\"c\" & (VLOOKUP(Rebalance!$D$64,$F$2:$G$48,2,FALSE)+ROW()-2))=Rebalance!$D$64,INDIRECT(\"a\" & (VLOOKUP(Rebalance!$D$64,$F$2:$G$48,2,FALSE)+ROW()-2)),\"\")","v":{"$error":"#N/A"}},{"$f":"IF(INDIRECT(\"c\" & (VLOOKUP(Rebalance!$D$65,$F$2:$G$48,2,FALSE)+ROW()-2))=Rebalance!$D$65,INDIRECT(\"a\" & (VLOOKUP(Rebalance!$D$65,$F$2:$G$48,2,FALSE)+ROW()-2)),\"\")","v":{"$error":"#N/A"}},{"$f":"IF(INDIRECT(\"c\" & (VLOOKUP(Rebalance!$D$66,$F$2:$G$48,2,FALSE)+ROW()-2))=Rebalance!$D$66,INDIRECT(\"a\" & (VLOOKUP(Rebalance!$D$66,$F$2:$G$48,2,FALSE)+ROW()-2)),\"\")","v":{"$error":"#N/A"}}]
[null,null,null,{"$f":"ROW()","v":580},null,null,{"$f":"VLOOKUP(F580,$C$2:$D$599,2,FALSE)","v":{"$error":"#N/A"}},{"$f":"IF(INDIRECT(\"c\" & (VLOOKUP(Rebalance!$D$26,$F$2:$G$48,2,FALSE)+ROW()-2))=Rebalance!$D$26,INDIRECT(\"a\" & (VLOOKUP(Rebalance!$D$26,$F$2:$G$48,2,FALSE)+ROW()-2)),\"\")","v":{"$error":"#N/A"}},{"$f":"IF(INDIRECT(\"c\" & (VLOOKUP(Rebalance!$D$27,$F$2:$G$48,2,FALSE)+ROW()-2))=Rebalance!$D$27,INDIRECT(\"a\" & (VLOOKUP(Rebalance!$D$27,$F$2:$G$48,2,FALSE)+ROW()-2)),\"\")","v":{"$error":"#N/A"}},{"$f":"IF(INDIRECT(\"c\" & (VLOOKUP(Rebalance!$D$28,$F$2:$G$48,2,FALSE)+ROW()-2))=Rebalance!$D$28,INDIRECT(\"a\" & (VLOOKUP(Rebalance!$D$28,$F$2:$G$48,2,FALSE)+ROW()-2)),\"\")","v":{"$error":"#N/A"}},{"$f":"IF(INDIRECT(\"c\" & (VLOOKUP(Rebalance!$D$29,$F$2:$G$48,2,FALSE)+ROW()-2))=Rebalance!$D$29,INDIRECT(\"a\" & (VLOOKUP(Rebalance!$D$29,$F$2:$G$48,2,FALSE)+ROW()-2)),\"\")","v":{"$error":"#N/A"}},{"$f":"IF(INDIRECT(\"c\" & (VLOOKUP(Rebalance!$D$30,$F$2:$G$48,2,FALSE)+ROW()-2))=Rebalance!$D$30,INDIRECT(\"a\" & (VLOOKUP(Rebalance!$D$30,$F$2:$G$48,2,FALSE)+ROW()-2)),\"\")","v":{"$error":"#N/A"}},{"$f":"IF(INDIRECT(\"c\" & (VLOOKUP(Rebalance!$D$31,$F$2:$G$48,2,FALSE)+ROW()-2))=Rebalance!$D$31,INDIRECT(\"a\" & (VLOOKUP(Rebalance!$D$31,$F$2:$G$48,2,FALSE)+ROW()-2)),\"\")","v":{"$error":"#N/A"}},{"$f":"IF(INDIRECT(\"c\" & (VLOOKUP(Rebalance!$D$32,$F$2:$G$48,2,FALSE)+ROW()-2))=Rebalance!$D$32,INDIRECT(\"a\" & (VLOOKUP(Rebalance!$D$32,$F$2:$G$48,2,FALSE)+ROW()-2)),\"\")","v":{"$error":"#N/A"}},{"$f":"IF(INDIRECT(\"c\" & (VLOOKUP(Rebalance!$D$33,$F$2:$G$48,2,FALSE)+ROW()-2))=Rebalance!$D$33,INDIRECT(\"a\" & (VLOOKUP(Rebalance!$D$33,$F$2:$G$48,2,FALSE)+ROW()-2)),\"\")","v":{"$error":"#N/A"}},{"$f":"IF(INDIRECT(\"c\" & (VLOOKUP(Rebalance!$D$34,$F$2:$G$48,2,FALSE)+ROW()-2))=Rebalance!$D$34,INDIRECT(\"a\" & (VLOOKUP(Rebalance!$D$34,$F$2:$G$48,2,FALSE)+ROW()-2)),\"\")","v":{"$error":"#N/A"}},{"$f":"IF(INDIRECT(\"c\" & (VLOOKUP(Rebalance!$D$35,$F$2:$G$48,2,FALSE)+ROW()-2))=Rebalance!$D$35,INDIRECT(\"a\" & (VLOOKUP(Rebalance!$D$35,$F$2:$G$48,2,FALSE)+ROW()-2)),\"\")","v":{"$error":"#N/A"}},{"$f":"IF(INDIRECT(\"c\" & (VLOOKUP(Rebalance!$D$36,$F$2:$G$48,2,FALSE)+ROW()-2))=Rebalance!$D$36,INDIRECT(\"a\" & (VLOOKUP(Rebalance!$D$36,$F$2:$G$48,2,FALSE)+ROW()-2)),\"\")","v":{"$error":"#N/A"}},{"$f":"IF(INDIRECT(\"c\" & (VLOOKUP(Rebalance!$D$37,$F$2:$G$48,2,FALSE)+ROW()-2))=Rebalance!$D$37,INDIRECT(\"a\" & (VLOOKUP(Rebalance!$D$37,$F$2:$G$48,2,FALSE)+ROW()-2)),\"\")","v":{"$error":"#N/A"}},{"$f":"IF(INDIRECT(\"c\" & (VLOOKUP(Rebalance!$D$38,$F$2:$G$48,2,FALSE)+ROW()-2))=Rebalance!$D$38,INDIRECT(\"a\" & (VLOOKUP(Rebalance!$D$38,$F$2:$G$48,2,FALSE)+ROW()-2)),\"\")","v":{"$error":"#N/A"}},{"$f":"IF(INDIRECT(\"c\" & (VLOOKUP(Rebalance!$D$39,$F$2:$G$48,2,FALSE)+ROW()-2))=Rebalance!$D$39,INDIRECT(\"a\" & (VLOOKUP(Rebalance!$D$39,$F$2:$G$48,2,FALSE)+ROW()-2)),\"\")","v":{"$error":"#N/A"}},{"$f":"IF(INDIRECT(\"c\" & (VLOOKUP(Rebalance!$D$40,$F$2:$G$48,2,FALSE)+ROW()-2))=Rebalance!$D$40,INDIRECT(\"a\" & (VLOOKUP(Rebalance!$D$40,$F$2:$G$48,2,FALSE)+ROW()-2)),\"\")","v":{"$error":"#N/A"}},{"$f":"IF(INDIRECT(\"c\" & (VLOOKUP(Rebalance!$D$52,$F$2:$G$48,2,FALSE)+ROW()-2))=Rebalance!$D$52,INDIRECT(\"a\" & (VLOOKUP(Rebalance!$D$52,$F$2:$G$48,2,FALSE)+ROW()-2)),\"\")","v":{"$error":"#N/A"}},{"$f":"IF(INDIRECT(\"c\" & (VLOOKUP(Rebalance!$D$53,$F$2:$G$48,2,FALSE)+ROW()-2))=Rebalance!$D$53,INDIRECT(\"a\" & (VLOOKUP(Rebalance!$D$53,$F$2:$G$48,2,FALSE)+ROW()-2)),\"\")","v":{"$error":"#N/A"}},{"$f":"IF(INDIRECT(\"c\" & (VLOOKUP(Rebalance!$D$54,$F$2:$G$48,2,FALSE)+ROW()-2))=Rebalance!$D$54,INDIRECT(\"a\" & (VLOOKUP(Rebalance!$D$54,$F$2:$G$48,2,FALSE)+ROW()-2)),\"\")","v":{"$error":"#N/A"}},{"$f":"IF(INDIRECT(\"c\" & (VLOOKUP(Rebalance!$D$55,$F$2:$G$48,2,FALSE)+ROW()-2))=Rebalance!$D$55,INDIRECT(\"a\" & (VLOOKUP(Rebalance!$D$55,$F$2:$G$48,2,FALSE)+ROW()-2)),\"\")","v":{"$error":"#N/A"}},{"$f":"IF(INDIRECT(\"c\" & (VLOOKUP(Rebalance!$D$56,$F$2:$G$48,2,FALSE)+ROW()-2))=Rebalance!$D$56,INDIRECT(\"a\" & (VLOOKUP(Rebalance!$D$56,$F$2:$G$48,2,FALSE)+ROW()-2)),\"\")","v":{"$error":"#N/A"}},{"$f":"IF(INDIRECT(\"c\" & (VLOOKUP(Rebalance!$D$57,$F$2:$G$48,2,FALSE)+ROW()-2))=Rebalance!$D$57,INDIRECT(\"a\" & (VLOOKUP(Rebalance!$D$57,$F$2:$G$48,2,FALSE)+ROW()-2)),\"\")","v":{"$error":"#N/A"}},{"$f":"IF(INDIRECT(\"c\" & (VLOOKUP(Rebalance!$D$58,$F$2:$G$48,2,FALSE)+ROW()-2))=Rebalance!$D$58,INDIRECT(\"a\" & (VLOOKUP(Rebalance!$D$58,$F$2:$G$48,2,FALSE)+ROW()-2)),\"\")","v":{"$error":"#N/A"}},{"$f":"IF(INDIRECT(\"c\" & (VLOOKUP(Rebalance!$D$59,$F$2:$G$48,2,FALSE)+ROW()-2))=Rebalance!$D$59,INDIRECT(\"a\" & (VLOOKUP(Rebalance!$D$59,$F$2:$G$48,2,FALSE)+ROW()-2)),\"\")","v":{"$error":"#N/A"}},{"$f":"IF(INDIRECT(\"c\" & (VLOOKUP(Rebalance!$D$60,$F$2:$G$48,2,FALSE)+ROW()-2))=Rebalance!$D$60,INDIRECT(\"a\" & (VLOOKUP(Rebalance!$D$60,$F$2:$G$48,2,FALSE)+ROW()-2)),\"\")","v":{"$error":"#N/A"}},{"$f":"IF(INDIRECT(\"c\" & (VLOOKUP(Rebalance!$D$61,$F$2:$G$48,2,FALSE)+ROW()-2))=Rebalance!$D$61,INDIRECT(\"a\" & (VLOOKUP(Rebalance!$D$61,$F$2:$G$48,2,FALSE)+ROW()-2)),\"\")","v":{"$error":"#N/A"}},{"$f":"IF(INDIRECT(\"c\" & (VLOOKUP(Rebalance!$D$62,$F$2:$G$48,2,FALSE)+ROW()-2))=Rebalance!$D$62,INDIRECT(\"a\" & (VLOOKUP(Rebalance!$D$62,$F$2:$G$48,2,FALSE)+ROW()-2)),\"\")","v":{"$error":"#N/A"}},{"$f":"IF(INDIRECT(\"c\" & (VLOOKUP(Rebalance!$D$63,$F$2:$G$48,2,FALSE)+ROW()-2))=Rebalance!$D$63,INDIRECT(\"a\" & (VLOOKUP(Rebalance!$D$63,$F$2:$G$48,2,FALSE)+ROW()-2)),\"\")","v":{"$error":"#N/A"}},{"$f":"IF(INDIRECT(\"c\" & (VLOOKUP(Rebalance!$D$64,$F$2:$G$48,2,FALSE)+ROW()-2))=Rebalance!$D$64,INDIRECT(\"a\" & (VLOOKUP(Rebalance!$D$64,$F$2:$G$48,2,FALSE)+ROW()-2)),\"\")","v":{"$error":"#N/A"}},{"$f":"IF(INDIRECT(\"c\" & (VLOOKUP(Rebalance!$D$65,$F$2:$G$48,2,FALSE)+ROW()-2))=Rebalance!$D$65,INDIRECT(\"a\" & (VLOOKUP(Rebalance!$D$65,$F$2:$G$48,2,FALSE)+ROW()-2)),\"\")","v":{"$error":"#N/A"}},{"$f":"IF(INDIRECT(\"c\" & (VLOOKUP(Rebalance!$D$66,$F$2:$G$48,2,FALSE)+ROW()-2))=Rebalance!$D$66,INDIRECT(\"a\" & (VLOOKUP(Rebalance!$D$66,$F$2:$G$48,2,FALSE)+ROW()-2)),\"\")","v":{"$error":"#N/A"}}]
[null,null,null,{"$f":"ROW()","v":581},null,null,{"$f":"VLOOKUP(F581,$C$2:$D$599,2,FALSE)","v":{"$error":"#N/A"}},{"$f":"IF(INDIRECT(\"c\" & (VLOOKUP(Rebalance!$D$26,$F$2:$G$48,2,FALSE)+ROW()-2))=Rebalance!$D$26,INDIRECT(\"a\" & (VLOOKUP(Rebalance!$D$26,$F$2:$G$48,2,FALSE)+ROW()-2)),\"\")","v":{"$error":"#N/A"}},{"$f":"IF(INDIRECT(\"c\" & (VLOOKUP(Rebalance!$D$27,$F$2:$G$48,2,FALSE)+ROW()-2))=Rebalance!$D$27,INDIRECT(\"a\" & (VLOOKUP(Rebalance!$D$27,$F$2:$G$48,2,FALSE)+ROW()-2)),\"\")","v":{"$error":"#N/A"}},{"$f":"IF(INDIRECT(\"c\" & (VLOOKUP(Rebalance!$D$28,$F$2:$G$48,2,FALSE)+ROW()-2))=Rebalance!$D$28,INDIRECT(\"a\" & (VLOOKUP(Rebalance!$D$28,$F$2:$G$48,2,FALSE)+ROW()-2)),\"\")","v":{"$error":"#N/A"}},{"$f":"IF(INDIRECT(\"c\" & (VLOOKUP(Rebalance!$D$29,$F$2:$G$48,2,FALSE)+ROW()-2))=Rebalance!$D$29,INDIRECT(\"a\" & (VLOOKUP(Rebalance!$D$29,$F$2:$G$48,2,FALSE)+ROW()-2)),\"\")","v":{"$error":"#N/A"}},{"$f":"IF(INDIRECT(\"c\" & (VLOOKUP(Rebalance!$D$30,$F$2:$G$48,2,FALSE)+ROW()-2))=Rebalance!$D$30,INDIRECT(\"a\" & (VLOOKUP(Rebalance!$D$30,$F$2:$G$48,2,FALSE)+ROW()-2)),\"\")","v":{"$error":"#N/A"}},{"$f":"IF(INDIRECT(\"c\" & (VLOOKUP(Rebalance!$D$31,$F$2:$G$48,2,FALSE)+ROW()-2))=Rebalance!$D$31,INDIRECT(\"a\" & (VLOOKUP(Rebalance!$D$31,$F$2:$G$48,2,FALSE)+ROW()-2)),\"\")","v":{"$error":"#N/A"}},{"$f":"IF(INDIRECT(\"c\" & (VLOOKUP(Rebalance!$D$32,$F$2:$G$48,2,FALSE)+ROW()-2))=Rebalance!$D$32,INDIRECT(\"a\" & (VLOOKUP(Rebalance!$D$32,$F$2:$G$48,2,FALSE)+ROW()-2)),\"\")","v":{"$error":"#N/A"}},{"$f":"IF(INDIRECT(\"c\" & (VLOOKUP(Rebalance!$D$33,$F$2:$G$48,2,FALSE)+ROW()-2))=Rebalance!$D$33,INDIRECT(\"a\" & (VLOOKUP(Rebalance!$D$33,$F$2:$G$48,2,FALSE)+ROW()-2)),\"\")","v":{"$error":"#N/A"}},{"$f":"IF(INDIRECT(\"c\" & (VLOOKUP(Rebalance!$D$34,$F$2:$G$48,2,FALSE)+ROW()-2))=Rebalance!$D$34,INDIRECT(\"a\" & (VLOOKUP(Rebalance!$D$34,$F$2:$G$48,2,FALSE)+ROW()-2)),\"\")","v":{"$error":"#N/A"}},{"$f":"IF(INDIRECT(\"c\" & (VLOOKUP(Rebalance!$D$35,$F$2:$G$48,2,FALSE)+ROW()-2))=Rebalance!$D$35,INDIRECT(\"a\" & (VLOOKUP(Rebalance!$D$35,$F$2:$G$48,2,FALSE)+ROW()-2)),\"\")","v":{"$error":"#N/A"}},{"$f":"IF(INDIRECT(\"c\" & (VLOOKUP(Rebalance!$D$36,$F$2:$G$48,2,FALSE)+ROW()-2))=Rebalance!$D$36,INDIRECT(\"a\" & (VLOOKUP(Rebalance!$D$36,$F$2:$G$48,2,FALSE)+ROW()-2)),\"\")","v":{"$error":"#N/A"}},{"$f":"IF(INDIRECT(\"c\" & (VLOOKUP(Rebalance!$D$37,$F$2:$G$48,2,FALSE)+ROW()-2))=Rebalance!$D$37,INDIRECT(\"a\" & (VLOOKUP(Rebalance!$D$37,$F$2:$G$48,2,FALSE)+ROW()-2)),\"\")","v":{"$error":"#N/A"}},{"$f":"IF(INDIRECT(\"c\" & (VLOOKUP(Rebalance!$D$38,$F$2:$G$48,2,FALSE)+ROW()-2))=Rebalance!$D$38,INDIRECT(\"a\" & (VLOOKUP(Rebalance!$D$38,$F$2:$G$48,2,FALSE)+ROW()-2)),\"\")","v":{"$error":"#N/A"}},{"$f":"IF(INDIRECT(\"c\" & (VLOOKUP(Rebalance!$D$39,$F$2:$G$48,2,FALSE)+ROW()-2))=Rebalance!$D$39,INDIRECT(\"a\" & (VLOOKUP(Rebalance!$D$39,$F$2:$G$48,2,FALSE)+ROW()-2)),\"\")","v":{"$error":"#N/A"}},{"$f":"IF(INDIRECT(\"c\" & (VLOOKUP(Rebalance!$D$40,$F$2:$G$48,2,FALSE)+ROW()-2))=Rebalance!$D$40,INDIRECT(\"a\" & (VLOOKUP(Rebalance!$D$40,$F$2:$G$48,2,FALSE)+ROW()-2)),\"\")","v":{"$error":"#N/A"}},{"$f":"IF(INDIRECT(\"c\" & (VLOOKUP(Rebalance!$D$52,$F$2:$G$48,2,FALSE)+ROW()-2))=Rebalance!$D$52,INDIRECT(\"a\" & (VLOOKUP(Rebalance!$D$52,$F$2:$G$48,2,FALSE)+ROW()-2)),\"\")","v":{"$error":"#N/A"}},{"$f":"IF(INDIRECT(\"c\" & (VLOOKUP(Rebalance!$D$53,$F$2:$G$48,2,FALSE)+ROW()-2))=Rebalance!$D$53,INDIRECT(\"a\" & (VLOOKUP(Rebalance!$D$53,$F$2:$G$48,2,FALSE)+ROW()-2)),\"\")","v":{"$error":"#N/A"}},{"$f":"IF(INDIRECT(\"c\" & (VLOOKUP(Rebalance!$D$54,$F$2:$G$48,2,FALSE)+ROW()-2))=Rebalance!$D$54,INDIRECT(\"a\" & (VLOOKUP(Rebalance!$D$54,$F$2:$G$48,2,FALSE)+ROW()-2)),\"\")","v":{"$error":"#N/A"}},{"$f":"IF(INDIRECT(\"c\" & (VLOOKUP(Rebalance!$D$55,$F$2:$G$48,2,FALSE)+ROW()-2))=Rebalance!$D$55,INDIRECT(\"a\" & (VLOOKUP(Rebalance!$D$55,$F$2:$G$48,2,FALSE)+ROW()-2)),\"\")","v":{"$error":"#N/A"}},{"$f":"IF(INDIRECT(\"c\" & (VLOOKUP(Rebalance!$D$56,$F$2:$G$48,2,FALSE)+ROW()-2))=Rebalance!$D$56,INDIRECT(\"a\" & (VLOOKUP(Rebalance!$D$56,$F$2:$G$48,2,FALSE)+ROW()-2)),\"\")","v":{"$error":"#N/A"}},{"$f":"IF(INDIRECT(\"c\" & (VLOOKUP(Rebalance!$D$57,$F$2:$G$48,2,FALSE)+ROW()-2))=Rebalance!$D$57,INDIRECT(\"a\" & (VLOOKUP(Rebalance!$D$57,$F$2:$G$48,2,FALSE)+ROW()-2)),\"\")","v":{"$error":"#N/A"}},{"$f":"IF(INDIRECT(\"c\" & (VLOOKUP(Rebalance!$D$58,$F$2:$G$48,2,FALSE)+ROW()-2))=Rebalance!$D$58,INDIRECT(\"a\" & (VLOOKUP(Rebalance!$D$58,$F$2:$G$48,2,FALSE)+ROW()-2)),\"\")","v":{"$error":"#N/A"}},{"$f":"IF(INDIRECT(\"c\" & (VLOOKUP(Rebalance!$D$59,$F$2:$G$48,2,FALSE)+ROW()-2))=Rebalance!$D$59,INDIRECT(\"a\" & (VLOOKUP(Rebalance!$D$59,$F$2:$G$48,2,FALSE)+ROW()-2)),\"\")","v":{"$error":"#N/A"}},{"$f":"IF(INDIRECT(\"c\" & (VLOOKUP(Rebalance!$D$60,$F$2:$G$48,2,FALSE)+ROW()-2))=Rebalance!$D$60,INDIRECT(\"a\" & (VLOOKUP(Rebalance!$D$60,$F$2:$G$48,2,FALSE)+ROW()-2)),\"\")","v":{"$error":"#N/A"}},{"$f":"IF(INDIRECT(\"c\" & (VLOOKUP(Rebalance!$D$61,$F$2:$G$48,2,FALSE)+ROW()-2))=Rebalance!$D$61,INDIRECT(\"a\" & (VLOOKUP(Rebalance!$D$61,$F$2:$G$48,2,FALSE)+ROW()-2)),\"\")","v":{"$error":"#N/A"}},{"$f":"IF(INDIRECT(\"c\" & (VLOOKUP(Rebalance!$D$62,$F$2:$G$48,2,FALSE)+ROW()-2))=Rebalance!$D$62,INDIRECT(\"a\" & (VLOOKUP(Rebalance!$D$62,$F$2:$G$48,2,FALSE)+ROW()-2)),\"\")","v":{"$error":"#N/A"}},{"$f":"IF(INDIRECT(\"c\" & (VLOOKUP(Rebalance!$D$63,$F$2:$G$48,2,FALSE)+ROW()-2))=Rebalance!$D$63,INDIRECT(\"a\" & (VLOOKUP(Rebalance!$D$63,$F$2:$G$48,2,FALSE)+ROW()-2)),\"\")","v":{"$error":"#N/A"}},{"$f":"IF(INDIRECT(\"c\" & (VLOOKUP(Rebalance!$D$64,$F$2:$G$48,2,FALSE)+ROW()-2))=Rebalance!$D$64,INDIRECT(\"a\" & (VLOOKUP(Rebalance!$D$64,$F$2:$G$48,2,FALSE)+ROW()-2)),\"\")","v":{"$error":"#N/A"}},{"$f":"IF(INDIRECT(\"c\" & (VLOOKUP(Rebalance!$D$65,$F$2:$G$48,2,FALSE)+ROW()-2))=Rebalance!$D$65,INDIRECT(\"a\" & (VLOOKUP(Rebalance!$D$65,$F$2:$G$48,2,FALSE)+ROW()-2)),\"\")","v":{"$error":"#N/A"}},{"$f":"IF(INDIRECT(\"c\" & (VLOOKUP(Rebalance!$D$66,$F$2:$G$48,2,FALSE)+ROW()-2))=Rebalance!$D$66,INDIRECT(\"a\" & (VLOOKUP(Rebalance!$D$66,$F$2:$G$48,2,FALSE)+ROW()-2)),\"\")","v":{"$error":"#N/A"}}]
[null,null,null,{"$f":"ROW()","v":582},null,null,{"$f":"VLOOKUP(F582,$C$2:$D$599,2,FALSE)","v":{"$error":"#N/A"}},{"$f":"IF(INDIRECT(\"c\" & (VLOOKUP(Rebalance!$D$26,$F$2:$G$48,2,FALSE)+ROW()-2))=Rebalance!$D$26,INDIRECT(\"a\" & (VLOOKUP(Rebalance!$D$26,$F$2:$G$48,2,FALSE)+ROW()-2)),\"\")","v":{"$error":"#N/A"}},{"$f":"IF(INDIRECT(\"c\" & (VLOOKUP(Rebalance!$D$27,$F$2:$G$48,2,FALSE)+ROW()-2))=Rebalance!$D$27,INDIRECT(\"a\" & (VLOOKUP(Rebalance!$D$27,$F$2:$G$48,2,FALSE)+ROW()-2)),\"\")","v":{"$error":"#N/A"}},{"$f":"IF(INDIRECT(\"c\" & (VLOOKUP(Rebalance!$D$28,$F$2:$G$48,2,FALSE)+ROW()-2))=Rebalance!$D$28,INDIRECT(\"a\" & (VLOOKUP(Rebalance!$D$28,$F$2:$G$48,2,FALSE)+ROW()-2)),\"\")","v":{"$error":"#N/A"}},{"$f":"IF(INDIRECT(\"c\" & (VLOOKUP(Rebalance!$D$29,$F$2:$G$48,2,FALSE)+ROW()-2))=Rebalance!$D$29,INDIRECT(\"a\" & (VLOOKUP(Rebalance!$D$29,$F$2:$G$48,2,FALSE)+ROW()-2)),\"\")","v":{"$error":"#N/A"}},{"$f":"IF(INDIRECT(\"c\" & (VLOOKUP(Rebalance!$D$30,$F$2:$G$48,2,FALSE)+ROW()-2))=Rebalance!$D$30,INDIRECT(\"a\" & (VLOOKUP(Rebalance!$D$30,$F$2:$G$48,2,FALSE)+ROW()-2)),\"\")","v":{"$error":"#N/A"}},{"$f":"IF(INDIRECT(\"c\" & (VLOOKUP(Rebalance!$D$31,$F$2:$G$48,2,FALSE)+ROW()-2))=Rebalance!$D$31,INDIRECT(\"a\" & (VLOOKUP(Rebalance!$D$31,$F$2:$G$48,2,FALSE)+ROW()-2)),\"\")","v":{"$error":"#N/A"}},{"$f":"IF(INDIRECT(\"c\" & (VLOOKUP(Rebalance!$D$32,$F$2:$G$48,2,FALSE)+ROW()-2))=Rebalance!$D$32,INDIRECT(\"a\" & (VLOOKUP(Rebalance!$D$32,$F$2:$G$48,2,FALSE)+ROW()-2)),\"\")","v":{"$error":"#N/A"}},{"$f":"IF(INDIRECT(\"c\" & (VLOOKUP(Rebalance!$D$33,$F$2:$G$48,2,FALSE)+ROW()-2))=Rebalance!$D$33,INDIRECT(\"a\" & (VLOOKUP(Rebalance!$D$33,$F$2:$G$48,2,FALSE)+ROW()-2)),\"\")","v":{"$error":"#N/A"}},{"$f":"IF(INDIRECT(\"c\" & (VLOOKUP(Rebalance!$D$34,$F$2:$G$48,2,FALSE)+ROW()-2))=Rebalance!$D$34,INDIRECT(\"a\" & (VLOOKUP(Rebalance!$D$34,$F$2:$G$48,2,FALSE)+ROW()-2)),\"\")","v":{"$error":"#N/A"}},{"$f":"IF(INDIRECT(\"c\" & (VLOOKUP(Rebalance!$D$35,$F$2:$G$48,2,FALSE)+ROW()-2))=Rebalance!$D$35,INDIRECT(\"a\" & (VLOOKUP(Rebalance!$D$35,$F$2:$G$48,2,FALSE)+ROW()-2)),\"\")","v":{"$error":"#N/A"}},{"$f":"IF(INDIRECT(\"c\" & (VLOOKUP(Rebalance!$D$36,$F$2:$G$48,2,FALSE)+ROW()-2))=Rebalance!$D$36,INDIRECT(\"a\" & (VLOOKUP(Rebalance!$D$36,$F$2:$G$48,2,FALSE)+ROW()-2)),\"\")","v":{"$error":"#N/A"}},{"$f":"IF(INDIRECT(\"c\" & (VLOOKUP(Rebalance!$D$37,$F$2:$G$48,2,FALSE)+ROW()-2))=Rebalance!$D$37,INDIRECT(\"a\" & (VLOOKUP(Rebalance!$D$37,$F$2:$G$48,2,FALSE)+ROW()-2)),\"\")","v":{"$error":"#N/A"}},{"$f":"IF(INDIRECT(\"c\" & (VLOOKUP(Rebalance!$D$38,$F$2:$G$48,2,FALSE)+ROW()-2))=Rebalance!$D$38,INDIRECT(\"a\" & (VLOOKUP(Rebalance!$D$38,$F$2:$G$48,2,FALSE)+ROW()-2)),\"\")","v":{"$error":"#N/A"}},{"$f":"IF(INDIRECT(\"c\" & (VLOOKUP(Rebalance!$D$39,$F$2:$G$48,2,FALSE)+ROW()-2))=Rebalance!$D$39,INDIRECT(\"a\" & (VLOOKUP(Rebalance!$D$39,$F$2:$G$48,2,FALSE)+ROW()-2)),\"\")","v":{"$error":"#N/A"}},{"$f":"IF(INDIRECT(\"c\" & (VLOOKUP(Rebalance!$D$40,$F$2:$G$48,2,FALSE)+ROW()-2))=Rebalance!$D$40,INDIRECT(\"a\" & (VLOOKUP(Rebalance!$D$40,$F$2:$G$48,2,FALSE)+ROW()-2)),\"\")","v":{"$error":"#N/A"}},{"$f":"IF(INDIRECT(\"c\" & (VLOOKUP(Rebalance!$D$52,$F$2:$G$48,2,FALSE)+ROW()-2))=Rebalance!$D$52,INDIRECT(\"a\" & (VLOOKUP(Rebalance!$D$52,$F$2:$G$48,2,FALSE)+ROW()-2)),\"\")","v":{"$error":"#N/A"}},{"$f":"IF(INDIRECT(\"c\" & (VLOOKUP(Rebalance!$D$53,$F$2:$G$48,2,FALSE)+ROW()-2))=Rebalance!$D$53,INDIRECT(\"a\" & (VLOOKUP(Rebalance!$D$53,$F$2:$G$48,2,FALSE)+ROW()-2)),\"\")","v":{"$error":"#N/A"}},{"$f":"IF(INDIRECT(\"c\" & (VLOOKUP(Rebalance!$D$54,$F$2:$G$48,2,FALSE)+ROW()-2))=Rebalance!$D$54,INDIRECT(\"a\" & (VLOOKUP(Rebalance!$D$54,$F$2:$G$48,2,FALSE)+ROW()-2)),\"\")","v":{"$error":"#N/A"}},{"$f":"IF(INDIRECT(\"c\" & (VLOOKUP(Rebalance!$D$55,$F$2:$G$48,2,FALSE)+ROW()-2))=Rebalance!$D$55,INDIRECT(\"a\" & (VLOOKUP(Rebalance!$D$55,$F$2:$G$48,2,FALSE)+ROW()-2)),\"\")","v":{"$error":"#N/A"}},{"$f":"IF(INDIRECT(\"c\" & (VLOOKUP(Rebalance!$D$56,$F$2:$G$48,2,FALSE)+ROW()-2))=Rebalance!$D$56,INDIRECT(\"a\" & (VLOOKUP(Rebalance!$D$56,$F$2:$G$48,2,FALSE)+ROW()-2)),\"\")","v":{"$error":"#N/A"}},{"$f":"IF(INDIRECT(\"c\" & (VLOOKUP(Rebalance!$D$57,$F$2:$G$48,2,FALSE)+ROW()-2))=Rebalance!$D$57,INDIRECT(\"a\" & (VLOOKUP(Rebalance!$D$57,$F$2:$G$48,2,FALSE)+ROW()-2)),\"\")","v":{"$error":"#N/A"}},{"$f":"IF(INDIRECT(\"c\" & (VLOOKUP(Rebalance!$D$58,$F$2:$G$48,2,FALSE)+ROW()-2))=Rebalance!$D$58,INDIRECT(\"a\" & (VLOOKUP(Rebalance!$D$58,$F$2:$G$48,2,FALSE)+ROW()-2)),\"\")","v":{"$error":"#N/A"}},{"$f":"IF(INDIRECT(\"c\" & (VLOOKUP(Rebalance!$D$59,$F$2:$G$48,2,FALSE)+ROW()-2))=Rebalance!$D$59,INDIRECT(\"a\" & (VLOOKUP(Rebalance!$D$59,$F$2:$G$48,2,FALSE)+ROW()-2)),\"\")","v":{"$error":"#N/A"}},{"$f":"IF(INDIRECT(\"c\" & (VLOOKUP(Rebalance!$D$60,$F$2:$G$48,2,FALSE)+ROW()-2))=Rebalance!$D$60,INDIRECT(\"a\" & (VLOOKUP(Rebalance!$D$60,$F$2:$G$48,2,FALSE)+ROW()-2)),\"\")","v":{"$error":"#N/A"}},{"$f":"IF(INDIRECT(\"c\" & (VLOOKUP(Rebalance!$D$61,$F$2:$G$48,2,FALSE)+ROW()-2))=Rebalance!$D$61,INDIRECT(\"a\" & (VLOOKUP(Rebalance!$D$61,$F$2:$G$48,2,FALSE)+ROW()-2)),\"\")","v":{"$error":"#N/A"}},{"$f":"IF(INDIRECT(\"c\" & (VLOOKUP(Rebalance!$D$62,$F$2:$G$48,2,FALSE)+ROW()-2))=Rebalance!$D$62,INDIRECT(\"a\" & (VLOOKUP(Rebalance!$D$62,$F$2:$G$48,2,FALSE)+ROW()-2)),\"\")","v":{"$error":"#N/A"}},{"$f":"IF(INDIRECT(\"c\" & (VLOOKUP(Rebalance!$D$63,$F$2:$G$48,2,FALSE)+ROW()-2))=Rebalance!$D$63,INDIRECT(\"a\" & (VLOOKUP(Rebalance!$D$63,$F$2:$G$48,2,FALSE)+ROW()-2)),\"\")","v":{"$error":"#N/A"}},{"$f":"IF(INDIRECT(\"c\" & (VLOOKUP(Rebalance!$D$64,$F$2:$G$48,2,FALSE)+ROW()-2))=Rebalance!$D$64,INDIRECT(\"a\" & (VLOOKUP(Rebalance!$D$64,$F$2:$G$48,2,FALSE)+ROW()-2)),\"\")","v":{"$error":"#N/A"}},{"$f":"IF(INDIRECT(\"c\" & (VLOOKUP(Rebalance!$D$65,$F$2:$G$48,2,FALSE)+ROW()-2))=Rebalance!$D$65,INDIRECT(\"a\" & (VLOOKUP(Rebalance!$D$65,$F$2:$G$48,2,FALSE)+ROW()-2)),\"\")","v":{"$error":"#N/A"}},{"$f":"IF(INDIRECT(\"c\" & (VLOOKUP(Rebalance!$D$66,$F$2:$G$48,2,FALSE)+ROW()-2))=Rebalance!$D$66,INDIRECT(\"a\" & (VLOOKUP(Rebalance!$D$66,$F$2:$G$48,2,FALSE)+ROW()-2)),\"\")","v":{"$error":"#N/A"}}]
[null,null,null,{"$f":"ROW()","v":583},null,null,{"$f":"VLOOKUP(F583,$C$2:$D$599,2,FALSE)","v":{"$error":"#N/A"}},{"$f":"IF(INDIRECT(\"c\" & (VLOOKUP(Rebalance!$D$26,$F$2:$G$48,2,FALSE)+ROW()-2))=Rebalance!$D$26,INDIRECT(\"a\" & (VLOOKUP(Rebalance!$D$26,$F$2:$G$48,2,FALSE)+ROW()-2)),\"\")","v":{"$error":"#N/A"}},{"$f":"IF(INDIRECT(\"c\" & (VLOOKUP(Rebalance!$D$27,$F$2:$G$48,2,FALSE)+ROW()-2))=Rebalance!$D$27,INDIRECT(\"a\" & (VLOOKUP(Rebalance!$D$27,$F$2:$G$48,2,FALSE)+ROW()-2)),\"\")","v":{"$error":"#N/A"}},{"$f":"IF(INDIRECT(\"c\" & (VLOOKUP(Rebalance!$D$28,$F$2:$G$48,2,FALSE)+ROW()-2))=Rebalance!$D$28,INDIRECT(\"a\" & (VLOOKUP(Rebalance!$D$28,$F$2:$G$48,2,FALSE)+ROW()-2)),\"\")","v":{"$error":"#N/A"}},{"$f":"IF(INDIRECT(\"c\" & (VLOOKUP(Rebalance!$D$29,$F$2:$G$48,2,FALSE)+ROW()-2))=Rebalance!$D$29,INDIRECT(\"a\" & (VLOOKUP(Rebalance!$D$29,$F$2:$G$48,2,FALSE)+ROW()-2)),\"\")","v":{"$error":"#N/A"}},{"$f":"IF(INDIRECT(\"c\" & (VLOOKUP(Rebalance!$D$30,$F$2:$G$48,2,FALSE)+ROW()-2))=Rebalance!$D$30,INDIRECT(\"a\" & (VLOOKUP(Rebalance!$D$30,$F$2:$G$48,2,FALSE)+ROW()-2)),\"\")","v":{"$error":"#N/A"}},{"$f":"IF(INDIRECT(\"c\" & (VLOOKUP(Rebalance!$D$31,$F$2:$G$48,2,FALSE)+ROW()-2))=Rebalance!$D$31,INDIRECT(\"a\" & (VLOOKUP(Rebalance!$D$31,$F$2:$G$48,2,FALSE)+ROW()-2)),\"\")","v":{"$error":"#N/A"}},{"$f":"IF(INDIRECT(\"c\" & (VLOOKUP(Rebalance!$D$32,$F$2:$G$48,2,FALSE)+ROW()-2))=Rebalance!$D$32,INDIRECT(\"a\" & (VLOOKUP(Rebalance!$D$32,$F$2:$G$48,2,FALSE)+ROW()-2)),\"\")","v":{"$error":"#N/A"}},{"$f":"IF(INDIRECT(\"c\" & (VLOOKUP(Rebalance!$D$33,$F$2:$G$48,2,FALSE)+ROW()-2))=Rebalance!$D$33,INDIRECT(\"a\" & (VLOOKUP(Rebalance!$D$33,$F$2:$G$48,2,FALSE)+ROW()-2)),\"\")","v":{"$error":"#N/A"}},{"$f":"IF(INDIRECT(\"c\" & (VLOOKUP(Rebalance!$D$34,$F$2:$G$48,2,FALSE)+ROW()-2))=Rebalance!$D$34,INDIRECT(\"a\" & (VLOOKUP(Rebalance!$D$34,$F$2:$G$48,2,FALSE)+ROW()-2)),\"\")","v":{"$error":"#N/A"}},{"$f":"IF(INDIRECT(\"c\" & (VLOOKUP(Rebalance!$D$35,$F$2:$G$48,2,FALSE)+ROW()-2))=Rebalance!$D$35,INDIRECT(\"a\" & (VLOOKUP(Rebalance!$D$35,$F$2:$G$48,2,FALSE)+ROW()-2)),\"\")","v":{"$error":"#N/A"}},{"$f":"IF(INDIRECT(\"c\" & (VLOOKUP(Rebalance!$D$36,$F$2:$G$48,2,FALSE)+ROW()-2))=Rebalance!$D$36,INDIRECT(\"a\" & (VLOOKUP(Rebalance!$D$36,$F$2:$G$48,2,FALSE)+ROW()-2)),\"\")","v":{"$error":"#N/A"}},{"$f":"IF(INDIRECT(\"c\" & (VLOOKUP(Rebalance!$D$37,$F$2:$G$48,2,FALSE)+ROW()-2))=Rebalance!$D$37,INDIRECT(\"a\" & (VLOOKUP(Rebalance!$D$37,$F$2:$G$48,2,FALSE)+ROW()-2)),\"\")","v":{"$error":"#N/A"}},{"$f":"IF(INDIRECT(\"c\" & (VLOOKUP(Rebalance!$D$38,$F$2:$G$48,2,FALSE)+ROW()-2))=Rebalance!$D$38,INDIRECT(\"a\" & (VLOOKUP(Rebalance!$D$38,$F$2:$G$48,2,FALSE)+ROW()-2)),\"\")","v":{"$error":"#N/A"}},{"$f":"IF(INDIRECT(\"c\" & (VLOOKUP(Rebalance!$D$39,$F$2:$G$48,2,FALSE)+ROW()-2))=Rebalance!$D$39,INDIRECT(\"a\" & (VLOOKUP(Rebalance!$D$39,$F$2:$G$48,2,FALSE)+ROW()-2)),\"\")","v":{"$error":"#N/A"}},{"$f":"IF(INDIRECT(\"c\" & (VLOOKUP(Rebalance!$D$40,$F$2:$G$48,2,FALSE)+ROW()-2))=Rebalance!$D$40,INDIRECT(\"a\" & (VLOOKUP(Rebalance!$D$40,$F$2:$G$48,2,FALSE)+ROW()-2)),\"\")","v":{"$error":"#N/A"}},{"$f":"IF(INDIRECT(\"c\" & (VLOOKUP(Rebalance!$D$52,$F$2:$G$48,2,FALSE)+ROW()-2))=Rebalance!$D$52,INDIRECT(\"a\" & (VLOOKUP(Rebalance!$D$52,$F$2:$G$48,2,FALSE)+ROW()-2)),\"\")","v":{"$error":"#N/A"}},{"$f":"IF(INDIRECT(\"c\" & (VLOOKUP(Rebalance!$D$53,$F$2:$G$48,2,FALSE)+ROW()-2))=Rebalance!$D$53,INDIRECT(\"a\" & (VLOOKUP(Rebalance!$D$53,$F$2:$G$48,2,FALSE)+ROW()-2)),\"\")","v":{"$error":"#N/A"}},{"$f":"IF(INDIRECT(\"c\" & (VLOOKUP(Rebalance!$D$54,$F$2:$G$48,2,FALSE)+ROW()-2))=Rebalance!$D$54,INDIRECT(\"a\" & (VLOOKUP(Rebalance!$D$54,$F$2:$G$48,2,FALSE)+ROW()-2)),\"\")","v":{"$error":"#N/A"}},{"$f":"IF(INDIRECT(\"c\" & (VLOOKUP(Rebalance!$D$55,$F$2:$G$48,2,FALSE)+ROW()-2))=Rebalance!$D$55,INDIRECT(\"a\" & (VLOOKUP(Rebalance!$D$55,$F$2:$G$48,2,FALSE)+ROW()-2)),\"\")","v":{"$error":"#N/A"}},{"$f":"IF(INDIRECT(\"c\" & (VLOOKUP(Rebalance!$D$56,$F$2:$G$48,2,FALSE)+ROW()-2))=Rebalance!$D$56,INDIRECT(\"a\" & (VLOOKUP(Rebalance!$D$56,$F$2:$G$48,2,FALSE)+ROW()-2)),\"\")","v":{"$error":"#N/A"}},{"$f":"IF(INDIRECT(\"c\" & (VLOOKUP(Rebalance!$D$57,$F$2:$G$48,2,FALSE)+ROW()-2))=Rebalance!$D$57,INDIRECT(\"a\" & (VLOOKUP(Rebalance!$D$57,$F$2:$G$48,2,FALSE)+ROW()-2)),\"\")","v":{"$error":"#N/A"}},{"$f":"IF(INDIRECT(\"c\" & (VLOOKUP(Rebalance!$D$58,$F$2:$G$48,2,FALSE)+ROW()-2))=Rebalance!$D$58,INDIRECT(\"a\" & (VLOOKUP(Rebalance!$D$58,$F$2:$G$48,2,FALSE)+ROW()-2)),\"\")","v":{"$error":"#N/A"}},{"$f":"IF(INDIRECT(\"c\" & (VLOOKUP(Rebalance!$D$59,$F$2:$G$48,2,FALSE)+ROW()-2))=Rebalance!$D$59,INDIRECT(\"a\" & (VLOOKUP(Rebalance!$D$59,$F$2:$G$48,2,FALSE)+ROW()-2)),\"\")","v":{"$error":"#N/A"}},{"$f":"IF(INDIRECT(\"c\" & (VLOOKUP(Rebalance!$D$60,$F$2:$G$48,2,FALSE)+ROW()-2))=Rebalance!$D$60,INDIRECT(\"a\" & (VLOOKUP(Rebalance!$D$60,$F$2:$G$48,2,FALSE)+ROW()-2)),\"\")","v":{"$error":"#N/A"}},{"$f":"IF(INDIRECT(\"c\" & (VLOOKUP(Rebalance!$D$61,$F$2:$G$48,2,FALSE)+ROW()-2))=Rebalance!$D$61,INDIRECT(\"a\" & (VLOOKUP(Rebalance!$D$61,$F$2:$G$48,2,FALSE)+ROW()-2)),\"\")","v":{"$error":"#N/A"}},{"$f":"IF(INDIRECT(\"c\" & (VLOOKUP(Rebalance!$D$62,$F$2:$G$48,2,FALSE)+ROW()-2))=Rebalance!$D$62,INDIRECT(\"a\" & (VLOOKUP(Rebalance!$D$62,$F$2:$G$48,2,FALSE)+ROW()-2)),\"\")","v":{"$error":"#N/A"}},{"$f":"IF(INDIRECT(\"c\" & (VLOOKUP(Rebalance!$D$63,$F$2:$G$48,2,FALSE)+ROW()-2))=Rebalance!$D$63,INDIRECT(\"a\" & (VLOOKUP(Rebalance!$D$63,$F$2:$G$48,2,FALSE)+ROW()-2)),\"\")","v":{"$error":"#N/A"}},{"$f":"IF(INDIRECT(\"c\" & (VLOOKUP(Rebalance!$D$64,$F$2:$G$48,2,FALSE)+ROW()-2))=Rebalance!$D$64,INDIRECT(\"a\" & (VLOOKUP(Rebalance!$D$64,$F$2:$G$48,2,FALSE)+ROW()-2)),\"\")","v":{"$error":"#N/A"}},{"$f":"IF(INDIRECT(\"c\" & (VLOOKUP(Rebalance!$D$65,$F$2:$G$48,2,FALSE)+ROW()-2))=Rebalance!$D$65,INDIRECT(\"a\" & (VLOOKUP(Rebalance!$D$65,$F$2:$G$48,2,FALSE)+ROW()-2)),\"\")","v":{"$error":"#N/A"}},{"$f":"IF(INDIRECT(\"c\" & (VLOOKUP(Rebalance!$D$66,$F$2:$G$48,2,FALSE)+ROW()-2))=Rebalance!$D$66,INDIRECT(\"a\" & (VLOOKUP(Rebalance!$D$66,$F$2:$G$48,2,FALSE)+ROW()-2)),\"\")","v":{"$error":"#N/A"}}]
[null,null,null,{"$f":"ROW()","v":584},null,null,{"$f":"VLOOKUP(F584,$C$2:$D$599,2,FALSE)","v":{"$error":"#N/A"}},{"$f":"IF(INDIRECT(\"c\" & (VLOOKUP(Rebalance!$D$26,$F$2:$G$48,2,FALSE)+ROW()-2))=Rebalance!$D$26,INDIRECT(\"a\" & (VLOOKUP(Rebalance!$D$26,$F$2:$G$48,2,FALSE)+ROW()-2)),\"\")","v":{"$error":"#N/A"}},{"$f":"IF(INDIRECT(\"c\" & (VLOOKUP(Rebalance!$D$27,$F$2:$G$48,2,FALSE)+ROW()-2))=Rebalance!$D$27,INDIRECT(\"a\" & (VLOOKUP(Rebalance!$D$27,$F$2:$G$48,2,FALSE)+ROW()-2)),\"\")","v":{"$error":"#N/A"}},{"$f":"IF(INDIRECT(\"c\" & (VLOOKUP(Rebalance!$D$28,$F$2:$G$48,2,FALSE)+ROW()-2))=Rebalance!$D$28,INDIRECT(\"a\" & (VLOOKUP(Rebalance!$D$28,$F$2:$G$48,2,FALSE)+ROW()-2)),\"\")","v":{"$error":"#N/A"}},{"$f":"IF(INDIRECT(\"c\" & (VLOOKUP(Rebalance!$D$29,$F$2:$G$48,2,FALSE)+ROW()-2))=Rebalance!$D$29,INDIRECT(\"a\" & (VLOOKUP(Rebalance!$D$29,$F$2:$G$48,2,FALSE)+ROW()-2)),\"\")","v":{"$error":"#N/A"}},{"$f":"IF(INDIRECT(\"c\" & (VLOOKUP(Rebalance!$D$30,$F$2:$G$48,2,FALSE)+ROW()-2))=Rebalance!$D$30,INDIRECT(\"a\" & (VLOOKUP(Rebalance!$D$30,$F$2:$G$48,2,FALSE)+ROW()-2)),\"\")","v":{"$error":"#N/A"}},{"$f":"IF(INDIRECT(\"c\" & (VLOOKUP(Rebalance!$D$31,$F$2:$G$48,2,FALSE)+ROW()-2))=Rebalance!$D$31,INDIRECT(\"a\" & (VLOOKUP(Rebalance!$D$31,$F$2:$G$48,2,FALSE)+ROW()-2)),\"\")","v":{"$error":"#N/A"}},{"$f":"IF(INDIRECT(\"c\" & (VLOOKUP(Rebalance!$D$32,$F$2:$G$48,2,FALSE)+ROW()-2))=Rebalance!$D$32,INDIRECT(\"a\" & (VLOOKUP(Rebalance!$D$32,$F$2:$G$48,2,FALSE)+ROW()-2)),\"\")","v":{"$error":"#N/A"}},{"$f":"IF(INDIRECT(\"c\" & (VLOOKUP(Rebalance!$D$33,$F$2:$G$48,2,FALSE)+ROW()-2))=Rebalance!$D$33,INDIRECT(\"a\" & (VLOOKUP(Rebalance!$D$33,$F$2:$G$48,2,FALSE)+ROW()-2)),\"\")","v":{"$error":"#N/A"}},{"$f":"IF(INDIRECT(\"c\" & (VLOOKUP(Rebalance!$D$34,$F$2:$G$48,2,FALSE)+ROW()-2))=Rebalance!$D$34,INDIRECT(\"a\" & (VLOOKUP(Rebalance!$D$34,$F$2:$G$48,2,FALSE)+ROW()-2)),\"\")","v":{"$error":"#N/A"}},{"$f":"IF(INDIRECT(\"c\" & (VLOOKUP(Rebalance!$D$35,$F$2:$G$48,2,FALSE)+ROW()-2))=Rebalance!$D$35,INDIRECT(\"a\" & (VLOOKUP(Rebalance!$D$35,$F$2:$G$48,2,FALSE)+ROW()-2)),\"\")","v":{"$error":"#N/A"}},{"$f":"IF(INDIRECT(\"c\" & (VLOOKUP(Rebalance!$D$36,$F$2:$G$48,2,FALSE)+ROW()-2))=Rebalance!$D$36,INDIRECT(\"a\" & (VLOOKUP(Rebalance!$D$36,$F$2:$G$48,2,FALSE)+ROW()-2)),\"\")","v":{"$error":"#N/A"}},{"$f":"IF(INDIRECT(\"c\" & (VLOOKUP(Rebalance!$D$37,$F$2:$G$48,2,FALSE)+ROW()-2))=Rebalance!$D$37,INDIRECT(\"a\" & (VLOOKUP(Rebalance!$D$37,$F$2:$G$48,2,FALSE)+ROW()-2)),\"\")","v":{"$error":"#N/A"}},{"$f":"IF(INDIRECT(\"c\" & (VLOOKUP(Rebalance!$D$38,$F$2:$G$48,2,FALSE)+ROW()-2))=Rebalance!$D$38,INDIRECT(\"a\" & (VLOOKUP(Rebalance!$D$38,$F$2:$G$48,2,FALSE)+ROW()-2)),\"\")","v":{"$error":"#N/A"}},{"$f":"IF(INDIRECT(\"c\" & (VLOOKUP(Rebalance!$D$39,$F$2:$G$48,2,FALSE)+ROW()-2))=Rebalance!$D$39,INDIRECT(\"a\" & (VLOOKUP(Rebalance!$D$39,$F$2:$G$48,2,FALSE)+ROW()-2)),\"\")","v":{"$error":"#N/A"}},{"$f":"IF(INDIRECT(\"c\" & (VLOOKUP(Rebalance!$D$40,$F$2:$G$48,2,FALSE)+ROW()-2))=Rebalance!$D$40,INDIRECT(\"a\" & (VLOOKUP(Rebalance!$D$40,$F$2:$G$48,2,FALSE)+ROW()-2)),\"\")","v":{"$error":"#N/A"}},{"$f":"IF(INDIRECT(\"c\" & (VLOOKUP(Rebalance!$D$52,$F$2:$G$48,2,FALSE)+ROW()-2))=Rebalance!$D$52,INDIRECT(\"a\" & (VLOOKUP(Rebalance!$D$52,$F$2:$G$48,2,FALSE)+ROW()-2)),\"\")","v":{"$error":"#N/A"}},{"$f":"IF(INDIRECT(\"c\" & (VLOOKUP(Rebalance!$D$53,$F$2:$G$48,2,FALSE)+ROW()-2))=Rebalance!$D$53,INDIRECT(\"a\" & (VLOOKUP(Rebalance!$D$53,$F$2:$G$48,2,FALSE)+ROW()-2)),\"\")","v":{"$error":"#N/A"}},{"$f":"IF(INDIRECT(\"c\" & (VLOOKUP(Rebalance!$D$54,$F$2:$G$48,2,FALSE)+ROW()-2))=Rebalance!$D$54,INDIRECT(\"a\" & (VLOOKUP(Rebalance!$D$54,$F$2:$G$48,2,FALSE)+ROW()-2)),\"\")","v":{"$error":"#N/A"}},{"$f":"IF(INDIRECT(\"c\" & (VLOOKUP(Rebalance!$D$55,$F$2:$G$48,2,FALSE)+ROW()-2))=Rebalance!$D$55,INDIRECT(\"a\" & (VLOOKUP(Rebalance!$D$55,$F$2:$G$48,2,FALSE)+ROW()-2)),\"\")","v":{"$error":"#N/A"}},{"$f":"IF(INDIRECT(\"c\" & (VLOOKUP(Rebalance!$D$56,$F$2:$G$48,2,FALSE)+ROW()-2))=Rebalance!$D$56,INDIRECT(\"a\" & (VLOOKUP(Rebalance!$D$56,$F$2:$G$48,2,FALSE)+ROW()-2)),\"\")","v":{"$error":"#N/A"}},{"$f":"IF(INDIRECT(\"c\" & (VLOOKUP(Rebalance!$D$57,$F$2:$G$48,2,FALSE)+ROW()-2))=Rebalance!$D$57,INDIRECT(\"a\" & (VLOOKUP(Rebalance!$D$57,$F$2:$G$48,2,FALSE)+ROW()-2)),\"\")","v":{"$error":"#N/A"}},{"$f":"IF(INDIRECT(\"c\" & (VLOOKUP(Rebalance!$D$58,$F$2:$G$48,2,FALSE)+ROW()-2))=Rebalance!$D$58,INDIRECT(\"a\" & (VLOOKUP(Rebalance!$D$58,$F$2:$G$48,2,FALSE)+ROW()-2)),\"\")","v":{"$error":"#N/A"}},{"$f":"IF(INDIRECT(\"c\" & (VLOOKUP(Rebalance!$D$59,$F$2:$G$48,2,FALSE)+ROW()-2))=Rebalance!$D$59,INDIRECT(\"a\" & (VLOOKUP(Rebalance!$D$59,$F$2:$G$48,2,FALSE)+ROW()-2)),\"\")","v":{"$error":"#N/A"}},{"$f":"IF(INDIRECT(\"c\" & (VLOOKUP(Rebalance!$D$60,$F$2:$G$48,2,FALSE)+ROW()-2))=Rebalance!$D$60,INDIRECT(\"a\" & (VLOOKUP(Rebalance!$D$60,$F$2:$G$48,2,FALSE)+ROW()-2)),\"\")","v":{"$error":"#N/A"}},{"$f":"IF(INDIRECT(\"c\" & (VLOOKUP(Rebalance!$D$61,$F$2:$G$48,2,FALSE)+ROW()-2))=Rebalance!$D$61,INDIRECT(\"a\" & (VLOOKUP(Rebalance!$D$61,$F$2:$G$48,2,FALSE)+ROW()-2)),\"\")","v":{"$error":"#N/A"}},{"$f":"IF(INDIRECT(\"c\" & (VLOOKUP(Rebalance!$D$62,$F$2:$G$48,2,FALSE)+ROW()-2))=Rebalance!$D$62,INDIRECT(\"a\" & (VLOOKUP(Rebalance!$D$62,$F$2:$G$48,2,FALSE)+ROW()-2)),\"\")","v":{"$error":"#N/A"}},{"$f":"IF(INDIRECT(\"c\" & (VLOOKUP(Rebalance!$D$63,$F$2:$G$48,2,FALSE)+ROW()-2))=Rebalance!$D$63,INDIRECT(\"a\" & (VLOOKUP(Rebalance!$D$63,$F$2:$G$48,2,FALSE)+ROW()-2)),\"\")","v":{"$error":"#N/A"}},{"$f":"IF(INDIRECT(\"c\" & (VLOOKUP(Rebalance!$D$64,$F$2:$G$48,2,FALSE)+ROW()-2))=Rebalance!$D$64,INDIRECT(\"a\" & (VLOOKUP(Rebalance!$D$64,$F$2:$G$48,2,FALSE)+ROW()-2)),\"\")","v":{"$error":"#N/A"}},{"$f":"IF(INDIRECT(\"c\" & (VLOOKUP(Rebalance!$D$65,$F$2:$G$48,2,FALSE)+ROW()-2))=Rebalance!$D$65,INDIRECT(\"a\" & (VLOOKUP(Rebalance!$D$65,$F$2:$G$48,2,FALSE)+ROW()-2)),\"\")","v":{"$error":"#N/A"}},{"$f":"IF(INDIRECT(\"c\" & (VLOOKUP(Rebalance!$D$66,$F$2:$G$48,2,FALSE)+ROW()-2))=Rebalance!$D$66,INDIRECT(\"a\" & (VLOOKUP(Rebalance!$D$66,$F$2:$G$48,2,FALSE)+ROW()-2)),\"\")","v":{"$error":"#N/A"}}]
[null,null,null,{"$f":"ROW()","v":585},null,null,{"$f":"VLOOKUP(F585,$C$2:$D$599,2,FALSE)","v":{"$error":"#N/A"}},{"$f":"IF(INDIRECT(\"c\" & (VLOOKUP(Rebalance!$D$26,$F$2:$G$48,2,FALSE)+ROW()-2))=Rebalance!$D$26,INDIRECT(\"a\" & (VLOOKUP(Rebalance!$D$26,$F$2:$G$48,2,FALSE)+ROW()-2)),\"\")","v":{"$error":"#N/A"}},{"$f":"IF(INDIRECT(\"c\" & (VLOOKUP(Rebalance!$D$27,$F$2:$G$48,2,FALSE)+ROW()-2))=Rebalance!$D$27,INDIRECT(\"a\" & (VLOOKUP(Rebalance!$D$27,$F$2:$G$48,2,FALSE)+ROW()-2)),\"\")","v":{"$error":"#N/A"}},{"$f":"IF(INDIRECT(\"c\" & (VLOOKUP(Rebalance!$D$28,$F$2:$G$48,2,FALSE)+ROW()-2))=Rebalance!$D$28,INDIRECT(\"a\" & (VLOOKUP(Rebalance!$D$28,$F$2:$G$48,2,FALSE)+ROW()-2)),\"\")","v":{"$error":"#N/A"}},{"$f":"IF(INDIRECT(\"c\" & (VLOOKUP(Rebalance!$D$29,$F$2:$G$48,2,FALSE)+ROW()-2))=Rebalance!$D$29,INDIRECT(\"a\" & (VLOOKUP(Rebalance!$D$29,$F$2:$G$48,2,FALSE)+ROW()-2)),\"\")","v":{"$error":"#N/A"}},{"$f":"IF(INDIRECT(\"c\" & (VLOOKUP(Rebalance!$D$30,$F$2:$G$48,2,FALSE)+ROW()-2))=Rebalance!$D$30,INDIRECT(\"a\" & (VLOOKUP(Rebalance!$D$30,$F$2:$G$48,2,FALSE)+ROW()-2)),\"\")","v":{"$error":"#N/A"}},{"$f":"IF(INDIRECT(\"c\" & (VLOOKUP(Rebalance!$D$31,$F$2:$G$48,2,FALSE)+ROW()-2))=Rebalance!$D$31,INDIRECT(\"a\" & (VLOOKUP(Rebalance!$D$31,$F$2:$G$48,2,FALSE)+ROW()-2)),\"\")","v":{"$error":"#N/A"}},{"$f":"IF(INDIRECT(\"c\" & (VLOOKUP(Rebalance!$D$32,$F$2:$G$48,2,FALSE)+ROW()-2))=Rebalance!$D$32,INDIRECT(\"a\" & (VLOOKUP(Rebalance!$D$32,$F$2:$G$48,2,FALSE)+ROW()-2)),\"\")","v":{"$error":"#N/A"}},{"$f":"IF(INDIRECT(\"c\" & (VLOOKUP(Rebalance!$D$33,$F$2:$G$48,2,FALSE)+ROW()-2))=Rebalance!$D$33,INDIRECT(\"a\" & (VLOOKUP(Rebalance!$D$33,$F$2:$G$48,2,FALSE)+ROW()-2)),\"\")","v":{"$error":"#N/A"}},{"$f":"IF(INDIRECT(\"c\" & (VLOOKUP(Rebalance!$D$34,$F$2:$G$48,2,FALSE)+ROW()-2))=Rebalance!$D$34,INDIRECT(\"a\" & (VLOOKUP(Rebalance!$D$34,$F$2:$G$48,2,FALSE)+ROW()-2)),\"\")","v":{"$error":"#N/A"}},{"$f":"IF(INDIRECT(\"c\" & (VLOOKUP(Rebalance!$D$35,$F$2:$G$48,2,FALSE)+ROW()-2))=Rebalance!$D$35,INDIRECT(\"a\" & (VLOOKUP(Rebalance!$D$35,$F$2:$G$48,2,FALSE)+ROW()-2)),\"\")","v":{"$error":"#N/A"}},{"$f":"IF(INDIRECT(\"c\" & (VLOOKUP(Rebalance!$D$36,$F$2:$G$48,2,FALSE)+ROW()-2))=Rebalance!$D$36,INDIRECT(\"a\" & (VLOOKUP(Rebalance!$D$36,$F$2:$G$48,2,FALSE)+ROW()-2)),\"\")","v":{"$error":"#N/A"}},{"$f":"IF(INDIRECT(\"c\" & (VLOOKUP(Rebalance!$D$37,$F$2:$G$48,2,FALSE)+ROW()-2))=Rebalance!$D$37,INDIRECT(\"a\" & (VLOOKUP(Rebalance!$D$37,$F$2:$G$48,2,FALSE)+ROW()-2)),\"\")","v":{"$error":"#N/A"}},{"$f":"IF(INDIRECT(\"c\" & (VLOOKUP(Rebalance!$D$38,$F$2:$G$48,2,FALSE)+ROW()-2))=Rebalance!$D$38,INDIRECT(\"a\" & (VLOOKUP(Rebalance!$D$38,$F$2:$G$48,2,FALSE)+ROW()-2)),\"\")","v":{"$error":"#N/A"}},{"$f":"IF(INDIRECT(\"c\" & (VLOOKUP(Rebalance!$D$39,$F$2:$G$48,2,FALSE)+ROW()-2))=Rebalance!$D$39,INDIRECT(\"a\" & (VLOOKUP(Rebalance!$D$39,$F$2:$G$48,2,FALSE)+ROW()-2)),\"\")","v":{"$error":"#N/A"}},{"$f":"IF(INDIRECT(\"c\" & (VLOOKUP(Rebalance!$D$40,$F$2:$G$48,2,FALSE)+ROW()-2))=Rebalance!$D$40,INDIRECT(\"a\" & (VLOOKUP(Rebalance!$D$40,$F$2:$G$48,2,FALSE)+ROW()-2)),\"\")","v":{"$error":"#N/A"}},{"$f":"IF(INDIRECT(\"c\" & (VLOOKUP(Rebalance!$D$52,$F$2:$G$48,2,FALSE)+ROW()-2))=Rebalance!$D$52,INDIRECT(\"a\" & (VLOOKUP(Rebalance!$D$52,$F$2:$G$48,2,FALSE)+ROW()-2)),\"\")","v":{"$error":"#N/A"}},{"$f":"IF(INDIRECT(\"c\" & (VLOOKUP(Rebalance!$D$53,$F$2:$G$48,2,FALSE)+ROW()-2))=Rebalance!$D$53,INDIRECT(\"a\" & (VLOOKUP(Rebalance!$D$53,$F$2:$G$48,2,FALSE)+ROW()-2)),\"\")","v":{"$error":"#N/A"}},{"$f":"IF(INDIRECT(\"c\" & (VLOOKUP(Rebalance!$D$54,$F$2:$G$48,2,FALSE)+ROW()-2))=Rebalance!$D$54,INDIRECT(\"a\" & (VLOOKUP(Rebalance!$D$54,$F$2:$G$48,2,FALSE)+ROW()-2)),\"\")","v":{"$error":"#N/A"}},{"$f":"IF(INDIRECT(\"c\" & (VLOOKUP(Rebalance!$D$55,$F$2:$G$48,2,FALSE)+ROW()-2))=Rebalance!$D$55,INDIRECT(\"a\" & (VLOOKUP(Rebalance!$D$55,$F$2:$G$48,2,FALSE)+ROW()-2)),\"\")","v":{"$error":"#N/A"}},{"$f":"IF(INDIRECT(\"c\" & (VLOOKUP(Rebalance!$D$56,$F$2:$G$48,2,FALSE)+ROW()-2))=Rebalance!$D$56,INDIRECT(\"a\" & (VLOOKUP(Rebalance!$D$56,$F$2:$G$48,2,FALSE)+ROW()-2)),\"\")","v":{"$error":"#N/A"}},{"$f":"IF(INDIRECT(\"c\" & (VLOOKUP(Rebalance!$D$57,$F$2:$G$48,2,FALSE)+ROW()-2))=Rebalance!$D$57,INDIRECT(\"a\" & (VLOOKUP(Rebalance!$D$57,$F$2:$G$48,2,FALSE)+ROW()-2)),\"\")","v":{"$error":"#N/A"}},{"$f":"IF(INDIRECT(\"c\" & (VLOOKUP(Rebalance!$D$58,$F$2:$G$48,2,FALSE)+ROW()-2))=Rebalance!$D$58,INDIRECT(\"a\" & (VLOOKUP(Rebalance!$D$58,$F$2:$G$48,2,FALSE)+ROW()-2)),\"\")","v":{"$error":"#N/A"}},{"$f":"IF(INDIRECT(\"c\" & (VLOOKUP(Rebalance!$D$59,$F$2:$G$48,2,FALSE)+ROW()-2))=Rebalance!$D$59,INDIRECT(\"a\" & (VLOOKUP(Rebalance!$D$59,$F$2:$G$48,2,FALSE)+ROW()-2)),\"\")","v":{"$error":"#N/A"}},{"$f":"IF(INDIRECT(\"c\" & (VLOOKUP(Rebalance!$D$60,$F$2:$G$48,2,FALSE)+ROW()-2))=Rebalance!$D$60,INDIRECT(\"a\" & (VLOOKUP(Rebalance!$D$60,$F$2:$G$48,2,FALSE)+ROW()-2)),\"\")","v":{"$error":"#N/A"}},{"$f":"IF(INDIRECT(\"c\" & (VLOOKUP(Rebalance!$D$61,$F$2:$G$48,2,FALSE)+ROW()-2))=Rebalance!$D$61,INDIRECT(\"a\" & (VLOOKUP(Rebalance!$D$61,$F$2:$G$48,2,FALSE)+ROW()-2)),\"\")","v":{"$error":"#N/A"}},{"$f":"IF(INDIRECT(\"c\" & (VLOOKUP(Rebalance!$D$62,$F$2:$G$48,2,FALSE)+ROW()-2))=Rebalance!$D$62,INDIRECT(\"a\" & (VLOOKUP(Rebalance!$D$62,$F$2:$G$48,2,FALSE)+ROW()-2)),\"\")","v":{"$error":"#N/A"}},{"$f":"IF(INDIRECT(\"c\" & (VLOOKUP(Rebalance!$D$63,$F$2:$G$48,2,FALSE)+ROW()-2))=Rebalance!$D$63,INDIRECT(\"a\" & (VLOOKUP(Rebalance!$D$63,$F$2:$G$48,2,FALSE)+ROW()-2)),\"\")","v":{"$error":"#N/A"}},{"$f":"IF(INDIRECT(\"c\" & (VLOOKUP(Rebalance!$D$64,$F$2:$G$48,2,FALSE)+ROW()-2))=Rebalance!$D$64,INDIRECT(\"a\" & (VLOOKUP(Rebalance!$D$64,$F$2:$G$48,2,FALSE)+ROW()-2)),\"\")","v":{"$error":"#N/A"}},{"$f":"IF(INDIRECT(\"c\" & (VLOOKUP(Rebalance!$D$65,$F$2:$G$48,2,FALSE)+ROW()-2))=Rebalance!$D$65,INDIRECT(\"a\" & (VLOOKUP(Rebalance!$D$65,$F$2:$G$48,2,FALSE)+ROW()-2)),\"\")","v":{"$error":"#N/A"}},{"$f":"IF(INDIRECT(\"c\" & (VLOOKUP(Rebalance!$D$66,$F$2:$G$48,2,FALSE)+ROW()-2))=Rebalance!$D$66,INDIRECT(\"a\" & (VLOOKUP(Rebalance!$D$66,$F$2:$G$48,2,FALSE)+ROW()-2)),\"\")","v":{"$error":"#N/A"}}]
[null,null,null,{"$f":"ROW()","v":586},null,null,{"$f":"VLOOKUP(F586,$C$2:$D$599,2,FALSE)","v":{"$error":"#N/A"}},{"$f":"IF(INDIRECT(\"c\" & (VLOOKUP(Rebalance!$D$26,$F$2:$G$48,2,FALSE)+ROW()-2))=Rebalance!$D$26,INDIRECT(\"a\" & (VLOOKUP(Rebalance!$D$26,$F$2:$G$48,2,FALSE)+ROW()-2)),\"\")","v":{"$error":"#N/A"}},{"$f":"IF(INDIRECT(\"c\" & (VLOOKUP(Rebalance!$D$27,$F$2:$G$48,2,FALSE)+ROW()-2))=Rebalance!$D$27,INDIRECT(\"a\" & (VLOOKUP(Rebalance!$D$27,$F$2:$G$48,2,FALSE)+ROW()-2)),\"\")","v":{"$error":"#N/A"}},{"$f":"IF(INDIRECT(\"c\" & (VLOOKUP(Rebalance!$D$28,$F$2:$G$48,2,FALSE)+ROW()-2))=Rebalance!$D$28,INDIRECT(\"a\" & (VLOOKUP(Rebalance!$D$28,$F$2:$G$48,2,FALSE)+ROW()-2)),\"\")","v":{"$error":"#N/A"}},{"$f":"IF(INDIRECT(\"c\" & (VLOOKUP(Rebalance!$D$29,$F$2:$G$48,2,FALSE)+ROW()-2))=Rebalance!$D$29,INDIRECT(\"a\" & (VLOOKUP(Rebalance!$D$29,$F$2:$G$48,2,FALSE)+ROW()-2)),\"\")","v":{"$error":"#N/A"}},{"$f":"IF(INDIRECT(\"c\" & (VLOOKUP(Rebalance!$D$30,$F$2:$G$48,2,FALSE)+ROW()-2))=Rebalance!$D$30,INDIRECT(\"a\" & (VLOOKUP(Rebalance!$D$30,$F$2:$G$48,2,FALSE)+ROW()-2)),\"\")","v":{"$error":"#N/A"}},{"$f":"IF(INDIRECT(\"c\" & (VLOOKUP(Rebalance!$D$31,$F$2:$G$48,2,FALSE)+ROW()-2))=Rebalance!$D$31,INDIRECT(\"a\" & (VLOOKUP(Rebalance!$D$31,$F$2:$G$48,2,FALSE)+ROW()-2)),\"\")","v":{"$error":"#N/A"}},{"$f":"IF(INDIRECT(\"c\" & (VLOOKUP(Rebalance!$D$32,$F$2:$G$48,2,FALSE)+ROW()-2))=Rebalance!$D$32,INDIRECT(\"a\" & (VLOOKUP(Rebalance!$D$32,$F$2:$G$48,2,FALSE)+ROW()-2)),\"\")","v":{"$error":"#N/A"}},{"$f":"IF(INDIRECT(\"c\" & (VLOOKUP(Rebalance!$D$33,$F$2:$G$48,2,FALSE)+ROW()-2))=Rebalance!$D$33,INDIRECT(\"a\" & (VLOOKUP(Rebalance!$D$33,$F$2:$G$48,2,FALSE)+ROW()-2)),\"\")","v":{"$error":"#N/A"}},{"$f":"IF(INDIRECT(\"c\" & (VLOOKUP(Rebalance!$D$34,$F$2:$G$48,2,FALSE)+ROW()-2))=Rebalance!$D$34,INDIRECT(\"a\" & (VLOOKUP(Rebalance!$D$34,$F$2:$G$48,2,FALSE)+ROW()-2)),\"\")","v":{"$error":"#N/A"}},{"$f":"IF(INDIRECT(\"c\" & (VLOOKUP(Rebalance!$D$35,$F$2:$G$48,2,FALSE)+ROW()-2))=Rebalance!$D$35,INDIRECT(\"a\" & (VLOOKUP(Rebalance!$D$35,$F$2:$G$48,2,FALSE)+ROW()-2)),\"\")","v":{"$error":"#N/A"}},{"$f":"IF(INDIRECT(\"c\" & (VLOOKUP(Rebalance!$D$36,$F$2:$G$48,2,FALSE)+ROW()-2))=Rebalance!$D$36,INDIRECT(\"a\" & (VLOOKUP(Rebalance!$D$36,$F$2:$G$48,2,FALSE)+ROW()-2)),\"\")","v":{"$error":"#N/A"}},{"$f":"IF(INDIRECT(\"c\" & (VLOOKUP(Rebalance!$D$37,$F$2:$G$48,2,FALSE)+ROW()-2))=Rebalance!$D$37,INDIRECT(\"a\" & (VLOOKUP(Rebalance!$D$37,$F$2:$G$48,2,FALSE)+ROW()-2)),\"\")","v":{"$error":"#N/A"}},{"$f":"IF(INDIRECT(\"c\" & (VLOOKUP(Rebalance!$D$38,$F$2:$G$48,2,FALSE)+ROW()-2))=Rebalance!$D$38,INDIRECT(\"a\" & (VLOOKUP(Rebalance!$D$38,$F$2:$G$48,2,FALSE)+ROW()-2)),\"\")","v":{"$error":"#N/A"}},{"$f":"IF(INDIRECT(\"c\" & (VLOOKUP(Rebalance!$D$39,$F$2:$G$48,2,FALSE)+ROW()-2))=Rebalance!$D$39,INDIRECT(\"a\" & (VLOOKUP(Rebalance!$D$39,$F$2:$G$48,2,FALSE)+ROW()-2)),\"\")","v":{"$error":"#N/A"}},{"$f":"IF(INDIRECT(\"c\" & (VLOOKUP(Rebalance!$D$40,$F$2:$G$48,2,FALSE)+ROW()-2))=Rebalance!$D$40,INDIRECT(\"a\" & (VLOOKUP(Rebalance!$D$40,$F$2:$G$48,2,FALSE)+ROW()-2)),\"\")","v":{"$error":"#N/A"}},{"$f":"IF(INDIRECT(\"c\" & (VLOOKUP(Rebalance!$D$52,$F$2:$G$48,2,FALSE)+ROW()-2))=Rebalance!$D$52,INDIRECT(\"a\" & (VLOOKUP(Rebalance!$D$52,$F$2:$G$48,2,FALSE)+ROW()-2)),\"\")","v":{"$error":"#N/A"}},{"$f":"IF(INDIRECT(\"c\" & (VLOOKUP(Rebalance!$D$53,$F$2:$G$48,2,FALSE)+ROW()-2))=Rebalance!$D$53,INDIRECT(\"a\" & (VLOOKUP(Rebalance!$D$53,$F$2:$G$48,2,FALSE)+ROW()-2)),\"\")","v":{"$error":"#N/A"}},{"$f":"IF(INDIRECT(\"c\" & (VLOOKUP(Rebalance!$D$54,$F$2:$G$48,2,FALSE)+ROW()-2))=Rebalance!$D$54,INDIRECT(\"a\" & (VLOOKUP(Rebalance!$D$54,$F$2:$G$48,2,FALSE)+ROW()-2)),\"\")","v":{"$error":"#N/A"}},{"$f":"IF(INDIRECT(\"c\" & (VLOOKUP(Rebalance!$D$55,$F$2:$G$48,2,FALSE)+ROW()-2))=Rebalance!$D$55,INDIRECT(\"a\" & (VLOOKUP(Rebalance!$D$55,$F$2:$G$48,2,FALSE)+ROW()-2)),\"\")","v":{"$error":"#N/A"}},{"$f":"IF(INDIRECT(\"c\" & (VLOOKUP(Rebalance!$D$56,$F$2:$G$48,2,FALSE)+ROW()-2))=Rebalance!$D$56,INDIRECT(\"a\" & (VLOOKUP(Rebalance!$D$56,$F$2:$G$48,2,FALSE)+ROW()-2)),\"\")","v":{"$error":"#N/A"}},{"$f":"IF(INDIRECT(\"c\" & (VLOOKUP(Rebalance!$D$57,$F$2:$G$48,2,FALSE)+ROW()-2))=Rebalance!$D$57,INDIRECT(\"a\" & (VLOOKUP(Rebalance!$D$57,$F$2:$G$48,2,FALSE)+ROW()-2)),\"\")","v":{"$error":"#N/A"}},{"$f":"IF(INDIRECT(\"c\" & (VLOOKUP(Rebalance!$D$58,$F$2:$G$48,2,FALSE)+ROW()-2))=Rebalance!$D$58,INDIRECT(\"a\" & (VLOOKUP(Rebalance!$D$58,$F$2:$G$48,2,FALSE)+ROW()-2)),\"\")","v":{"$error":"#N/A"}},{"$f":"IF(INDIRECT(\"c\" & (VLOOKUP(Rebalance!$D$59,$F$2:$G$48,2,FALSE)+ROW()-2))=Rebalance!$D$59,INDIRECT(\"a\" & (VLOOKUP(Rebalance!$D$59,$F$2:$G$48,2,FALSE)+ROW()-2)),\"\")","v":{"$error":"#N/A"}},{"$f":"IF(INDIRECT(\"c\" & (VLOOKUP(Rebalance!$D$60,$F$2:$G$48,2,FALSE)+ROW()-2))=Rebalance!$D$60,INDIRECT(\"a\" & (VLOOKUP(Rebalance!$D$60,$F$2:$G$48,2,FALSE)+ROW()-2)),\"\")","v":{"$error":"#N/A"}},{"$f":"IF(INDIRECT(\"c\" & (VLOOKUP(Rebalance!$D$61,$F$2:$G$48,2,FALSE)+ROW()-2))=Rebalance!$D$61,INDIRECT(\"a\" & (VLOOKUP(Rebalance!$D$61,$F$2:$G$48,2,FALSE)+ROW()-2)),\"\")","v":{"$error":"#N/A"}},{"$f":"IF(INDIRECT(\"c\" & (VLOOKUP(Rebalance!$D$62,$F$2:$G$48,2,FALSE)+ROW()-2))=Rebalance!$D$62,INDIRECT(\"a\" & (VLOOKUP(Rebalance!$D$62,$F$2:$G$48,2,FALSE)+ROW()-2)),\"\")","v":{"$error":"#N/A"}},{"$f":"IF(INDIRECT(\"c\" & (VLOOKUP(Rebalance!$D$63,$F$2:$G$48,2,FALSE)+ROW()-2))=Rebalance!$D$63,INDIRECT(\"a\" & (VLOOKUP(Rebalance!$D$63,$F$2:$G$48,2,FALSE)+ROW()-2)),\"\")","v":{"$error":"#N/A"}},{"$f":"IF(INDIRECT(\"c\" & (VLOOKUP(Rebalance!$D$64,$F$2:$G$48,2,FALSE)+ROW()-2))=Rebalance!$D$64,INDIRECT(\"a\" & (VLOOKUP(Rebalance!$D$64,$F$2:$G$48,2,FALSE)+ROW()-2)),\"\")","v":{"$error":"#N/A"}},{"$f":"IF(INDIRECT(\"c\" & (VLOOKUP(Rebalance!$D$65,$F$2:$G$48,2,FALSE)+ROW()-2))=Rebalance!$D$65,INDIRECT(\"a\" & (VLOOKUP(Rebalance!$D$65,$F$2:$G$48,2,FALSE)+ROW()-2)),\"\")","v":{"$error":"#N/A"}},{"$f":"IF(INDIRECT(\"c\" & (VLOOKUP(Rebalance!$D$66,$F$2:$G$48,2,FALSE)+ROW()-2))=Rebalance!$D$66,INDIRECT(\"a\" & (VLOOKUP(Rebalance!$D$66,$F$2:$G$48,2,FALSE)+ROW()-2)),\"\")","v":{"$error":"#N/A"}}]
[null,null,null,{"$f":"ROW()","v":587},null,null,{"$f":"VLOOKUP(F587,$C$2:$D$599,2,FALSE)","v":{"$error":"#N/A"}},{"$f":"IF(INDIRECT(\"c\" & (VLOOKUP(Rebalance!$D$26,$F$2:$G$48,2,FALSE)+ROW()-2))=Rebalance!$D$26,INDIRECT(\"a\" & (VLOOKUP(Rebalance!$D$26,$F$2:$G$48,2,FALSE)+ROW()-2)),\"\")","v":{"$error":"#N/A"}},{"$f":"IF(INDIRECT(\"c\" & (VLOOKUP(Rebalance!$D$27,$F$2:$G$48,2,FALSE)+ROW()-2))=Rebalance!$D$27,INDIRECT(\"a\" & (VLOOKUP(Rebalance!$D$27,$F$2:$G$48,2,FALSE)+ROW()-2)),\"\")","v":{"$error":"#N/A"}},{"$f":"IF(INDIRECT(\"c\" & (VLOOKUP(Rebalance!$D$28,$F$2:$G$48,2,FALSE)+ROW()-2))=Rebalance!$D$28,INDIRECT(\"a\" & (VLOOKUP(Rebalance!$D$28,$F$2:$G$48,2,FALSE)+ROW()-2)),\"\")","v":{"$error":"#N/A"}},{"$f":"IF(INDIRECT(\"c\" & (VLOOKUP(Rebalance!$D$29,$F$2:$G$48,2,FALSE)+ROW()-2))=Rebalance!$D$29,INDIRECT(\"a\" & (VLOOKUP(Rebalance!$D$29,$F$2:$G$48,2,FALSE)+ROW()-2)),\"\")","v":{"$error":"#N/A"}},{"$f":"IF(INDIRECT(\"c\" & (VLOOKUP(Rebalance!$D$30,$F$2:$G$48,2,FALSE)+ROW()-2))=Rebalance!$D$30,INDIRECT(\"a\" & (VLOOKUP(Rebalance!$D$30,$F$2:$G$48,2,FALSE)+ROW()-2)),\"\")","v":{"$error":"#N/A"}},{"$f":"IF(INDIRECT(\"c\" & (VLOOKUP(Rebalance!$D$31,$F$2:$G$48,2,FALSE)+ROW()-2))=Rebalance!$D$31,INDIRECT(\"a\" & (VLOOKUP(Rebalance!$D$31,$F$2:$G$48,2,FALSE)+ROW()-2)),\"\")","v":{"$error":"#N/A"}},{"$f":"IF(INDIRECT(\"c\" & (VLOOKUP(Rebalance!$D$32,$F$2:$G$48,2,FALSE)+ROW()-2))=Rebalance!$D$32,INDIRECT(\"a\" & (VLOOKUP(Rebalance!$D$32,$F$2:$G$48,2,FALSE)+ROW()-2)),\"\")","v":{"$error":"#N/A"}},{"$f":"IF(INDIRECT(\"c\" & (VLOOKUP(Rebalance!$D$33,$F$2:$G$48,2,FALSE)+ROW()-2))=Rebalance!$D$33,INDIRECT(\"a\" & (VLOOKUP(Rebalance!$D$33,$F$2:$G$48,2,FALSE)+ROW()-2)),\"\")","v":{"$error":"#N/A"}},{"$f":"IF(INDIRECT(\"c\" & (VLOOKUP(Rebalance!$D$34,$F$2:$G$48,2,FALSE)+ROW()-2))=Rebalance!$D$34,INDIRECT(\"a\" & (VLOOKUP(Rebalance!$D$34,$F$2:$G$48,2,FALSE)+ROW()-2)),\"\")","v":{"$error":"#N/A"}},{"$f":"IF(INDIRECT(\"c\" & (VLOOKUP(Rebalance!$D$35,$F$2:$G$48,2,FALSE)+ROW()-2))=Rebalance!$D$35,INDIRECT(\"a\" & (VLOOKUP(Rebalance!$D$35,$F$2:$G$48,2,FALSE)+ROW()-2)),\"\")","v":{"$error":"#N/A"}},{"$f":"IF(INDIRECT(\"c\" & (VLOOKUP(Rebalance!$D$36,$F$2:$G$48,2,FALSE)+ROW()-2))=Rebalance!$D$36,INDIRECT(\"a\" & (VLOOKUP(Rebalance!$D$36,$F$2:$G$48,2,FALSE)+ROW()-2)),\"\")","v":{"$error":"#N/A"}},{"$f":"IF(INDIRECT(\"c\" & (VLOOKUP(Rebalance!$D$37,$F$2:$G$48,2,FALSE)+ROW()-2))=Rebalance!$D$37,INDIRECT(\"a\" & (VLOOKUP(Rebalance!$D$37,$F$2:$G$48,2,FALSE)+ROW()-2)),\"\")","v":{"$error":"#N/A"}},{"$f":"IF(INDIRECT(\"c\" & (VLOOKUP(Rebalance!$D$38,$F$2:$G$48,2,FALSE)+ROW()-2))=Rebalance!$D$38,INDIRECT(\"a\" & (VLOOKUP(Rebalance!$D$38,$F$2:$G$48,2,FALSE)+ROW()-2)),\"\")","v":{"$error":"#N/A"}},{"$f":"IF(INDIRECT(\"c\" & (VLOOKUP(Rebalance!$D$39,$F$2:$G$48,2,FALSE)+ROW()-2))=Rebalance!$D$39,INDIRECT(\"a\" & (VLOOKUP(Rebalance!$D$39,$F$2:$G$48,2,FALSE)+ROW()-2)),\"\")","v":{"$error":"#N/A"}},{"$f":"IF(INDIRECT(\"c\" & (VLOOKUP(Rebalance!$D$40,$F$2:$G$48,2,FALSE)+ROW()-2))=Rebalance!$D$40,INDIRECT(\"a\" & (VLOOKUP(Rebalance!$D$40,$F$2:$G$48,2,FALSE)+ROW()-2)),\"\")","v":{"$error":"#N/A"}},{"$f":"IF(INDIRECT(\"c\" & (VLOOKUP(Rebalance!$D$52,$F$2:$G$48,2,FALSE)+ROW()-2))=Rebalance!$D$52,INDIRECT(\"a\" & (VLOOKUP(Rebalance!$D$52,$F$2:$G$48,2,FALSE)+ROW()-2)),\"\")","v":{"$error":"#N/A"}},{"$f":"IF(INDIRECT(\"c\" & (VLOOKUP(Rebalance!$D$53,$F$2:$G$48,2,FALSE)+ROW()-2))=Rebalance!$D$53,INDIRECT(\"a\" & (VLOOKUP(Rebalance!$D$53,$F$2:$G$48,2,FALSE)+ROW()-2)),\"\")","v":{"$error":"#N/A"}},{"$f":"IF(INDIRECT(\"c\" & (VLOOKUP(Rebalance!$D$54,$F$2:$G$48,2,FALSE)+ROW()-2))=Rebalance!$D$54,INDIRECT(\"a\" & (VLOOKUP(Rebalance!$D$54,$F$2:$G$48,2,FALSE)+ROW()-2)),\"\")","v":{"$error":"#N/A"}},{"$f":"IF(INDIRECT(\"c\" & (VLOOKUP(Rebalance!$D$55,$F$2:$G$48,2,FALSE)+ROW()-2))=Rebalance!$D$55,INDIRECT(\"a\" & (VLOOKUP(Rebalance!$D$55,$F$2:$G$48,2,FALSE)+ROW()-2)),\"\")","v":{"$error":"#N/A"}},{"$f":"IF(INDIRECT(\"c\" & (VLOOKUP(Rebalance!$D$56,$F$2:$G$48,2,FALSE)+ROW()-2))=Rebalance!$D$56,INDIRECT(\"a\" & (VLOOKUP(Rebalance!$D$56,$F$2:$G$48,2,FALSE)+ROW()-2)),\"\")","v":{"$error":"#N/A"}},{"$f":"IF(INDIRECT(\"c\" & (VLOOKUP(Rebalance!$D$57,$F$2:$G$48,2,FALSE)+ROW()-2))=Rebalance!$D$57,INDIRECT(\"a\" & (VLOOKUP(Rebalance!$D$57,$F$2:$G$48,2,FALSE)+ROW()-2)),\"\")","v":{"$error":"#N/A"}},{"$f":"IF(INDIRECT(\"c\" & (VLOOKUP(Rebalance!$D$58,$F$2:$G$48,2,FALSE)+ROW()-2))=Rebalance!$D$58,INDIRECT(\"a\" & (VLOOKUP(Rebalance!$D$58,$F$2:$G$48,2,FALSE)+ROW()-2)),\"\")","v":{"$error":"#N/A"}},{"$f":"IF(INDIRECT(\"c\" & (VLOOKUP(Rebalance!$D$59,$F$2:$G$48,2,FALSE)+ROW()-2))=Rebalance!$D$59,INDIRECT(\"a\" & (VLOOKUP(Rebalance!$D$59,$F$2:$G$48,2,FALSE)+ROW()-2)),\"\")","v":{"$error":"#N/A"}},{"$f":"IF(INDIRECT(\"c\" & (VLOOKUP(Rebalance!$D$60,$F$2:$G$48,2,FALSE)+ROW()-2))=Rebalance!$D$60,INDIRECT(\"a\" & (VLOOKUP(Rebalance!$D$60,$F$2:$G$48,2,FALSE)+ROW()-2)),\"\")","v":{"$error":"#N/A"}},{"$f":"IF(INDIRECT(\"c\" & (VLOOKUP(Rebalance!$D$61,$F$2:$G$48,2,FALSE)+ROW()-2))=Rebalance!$D$61,INDIRECT(\"a\" & (VLOOKUP(Rebalance!$D$61,$F$2:$G$48,2,FALSE)+ROW()-2)),\"\")","v":{"$error":"#N/A"}},{"$f":"IF(INDIRECT(\"c\" & (VLOOKUP(Rebalance!$D$62,$F$2:$G$48,2,FALSE)+ROW()-2))=Rebalance!$D$62,INDIRECT(\"a\" & (VLOOKUP(Rebalance!$D$62,$F$2:$G$48,2,FALSE)+ROW()-2)),\"\")","v":{"$error":"#N/A"}},{"$f":"IF(INDIRECT(\"c\" & (VLOOKUP(Rebalance!$D$63,$F$2:$G$48,2,FALSE)+ROW()-2))=Rebalance!$D$63,INDIRECT(\"a\" & (VLOOKUP(Rebalance!$D$63,$F$2:$G$48,2,FALSE)+ROW()-2)),\"\")","v":{"$error":"#N/A"}},{"$f":"IF(INDIRECT(\"c\" & (VLOOKUP(Rebalance!$D$64,$F$2:$G$48,2,FALSE)+ROW()-2))=Rebalance!$D$64,INDIRECT(\"a\" & (VLOOKUP(Rebalance!$D$64,$F$2:$G$48,2,FALSE)+ROW()-2)),\"\")","v":{"$error":"#N/A"}},{"$f":"IF(INDIRECT(\"c\" & (VLOOKUP(Rebalance!$D$65,$F$2:$G$48,2,FALSE)+ROW()-2))=Rebalance!$D$65,INDIRECT(\"a\" & (VLOOKUP(Rebalance!$D$65,$F$2:$G$48,2,FALSE)+ROW()-2)),\"\")","v":{"$error":"#N/A"}},{"$f":"IF(INDIRECT(\"c\" & (VLOOKUP(Rebalance!$D$66,$F$2:$G$48,2,FALSE)+ROW()-2))=Rebalance!$D$66,INDIRECT(\"a\" & (VLOOKUP(Rebalance!$D$66,$F$2:$G$48,2,FALSE)+ROW()-2)),\"\")","v":{"$error":"#N/A"}}]
[null,null,null,{"$f":"ROW()","v":588},null,null,{"$f":"VLOOKUP(F588,$C$2:$D$599,2,FALSE)","v":{"$error":"#N/A"}},{"$f":"IF(INDIRECT(\"c\" & (VLOOKUP(Rebalance!$D$26,$F$2:$G$48,2,FALSE)+ROW()-2))=Rebalance!$D$26,INDIRECT(\"a\" & (VLOOKUP(Rebalance!$D$26,$F$2:$G$48,2,FALSE)+ROW()-2)),\"\")","v":{"$error":"#N/A"}},{"$f":"IF(INDIRECT(\"c\" & (VLOOKUP(Rebalance!$D$27,$F$2:$G$48,2,FALSE)+ROW()-2))=Rebalance!$D$27,INDIRECT(\"a\" & (VLOOKUP(Rebalance!$D$27,$F$2:$G$48,2,FALSE)+ROW()-2)),\"\")","v":{"$error":"#N/A"}},{"$f":"IF(INDIRECT(\"c\" & (VLOOKUP(Rebalance!$D$28,$F$2:$G$48,2,FALSE)+ROW()-2))=Rebalance!$D$28,INDIRECT(\"a\" & (VLOOKUP(Rebalance!$D$28,$F$2:$G$48,2,FALSE)+ROW()-2)),\"\")","v":{"$error":"#N/A"}},{"$f":"IF(INDIRECT(\"c\" & (VLOOKUP(Rebalance!$D$29,$F$2:$G$48,2,FALSE)+ROW()-2))=Rebalance!$D$29,INDIRECT(\"a\" & (VLOOKUP(Rebalance!$D$29,$F$2:$G$48,2,FALSE)+ROW()-2)),\"\")","v":{"$error":"#N/A"}},{"$f":"IF(INDIRECT(\"c\" & (VLOOKUP(Rebalance!$D$30,$F$2:$G$48,2,FALSE)+ROW()-2))=Rebalance!$D$30,INDIRECT(\"a\" & (VLOOKUP(Rebalance!$D$30,$F$2:$G$48,2,FALSE)+ROW()-2)),\"\")","v":{"$error":"#N/A"}},{"$f":"IF(INDIRECT(\"c\" & (VLOOKUP(Rebalance!$D$31,$F$2:$G$48,2,FALSE)+ROW()-2))=Rebalance!$D$31,INDIRECT(\"a\" & (VLOOKUP(Rebalance!$D$31,$F$2:$G$48,2,FALSE)+ROW()-2)),\"\")","v":{"$error":"#N/A"}},{"$f":"IF(INDIRECT(\"c\" & (VLOOKUP(Rebalance!$D$32,$F$2:$G$48,2,FALSE)+ROW()-2))=Rebalance!$D$32,INDIRECT(\"a\" & (VLOOKUP(Rebalance!$D$32,$F$2:$G$48,2,FALSE)+ROW()-2)),\"\")","v":{"$error":"#N/A"}},{"$f":"IF(INDIRECT(\"c\" & (VLOOKUP(Rebalance!$D$33,$F$2:$G$48,2,FALSE)+ROW()-2))=Rebalance!$D$33,INDIRECT(\"a\" & (VLOOKUP(Rebalance!$D$33,$F$2:$G$48,2,FALSE)+ROW()-2)),\"\")","v":{"$error":"#N/A"}},{"$f":"IF(INDIRECT(\"c\" & (VLOOKUP(Rebalance!$D$34,$F$2:$G$48,2,FALSE)+ROW()-2))=Rebalance!$D$34,INDIRECT(\"a\" & (VLOOKUP(Rebalance!$D$34,$F$2:$G$48,2,FALSE)+ROW()-2)),\"\")","v":{"$error":"#N/A"}},{"$f":"IF(INDIRECT(\"c\" & (VLOOKUP(Rebalance!$D$35,$F$2:$G$48,2,FALSE)+ROW()-2))=Rebalance!$D$35,INDIRECT(\"a\" & (VLOOKUP(Rebalance!$D$35,$F$2:$G$48,2,FALSE)+ROW()-2)),\"\")","v":{"$error":"#N/A"}},{"$f":"IF(INDIRECT(\"c\" & (VLOOKUP(Rebalance!$D$36,$F$2:$G$48,2,FALSE)+ROW()-2))=Rebalance!$D$36,INDIRECT(\"a\" & (VLOOKUP(Rebalance!$D$36,$F$2:$G$48,2,FALSE)+ROW()-2)),\"\")","v":{"$error":"#N/A"}},{"$f":"IF(INDIRECT(\"c\" & (VLOOKUP(Rebalance!$D$37,$F$2:$G$48,2,FALSE)+ROW()-2))=Rebalance!$D$37,INDIRECT(\"a\" & (VLOOKUP(Rebalance!$D$37,$F$2:$G$48,2,FALSE)+ROW()-2)),\"\")","v":{"$error":"#N/A"}},{"$f":"IF(INDIRECT(\"c\" & (VLOOKUP(Rebalance!$D$38,$F$2:$G$48,2,FALSE)+ROW()-2))=Rebalance!$D$38,INDIRECT(\"a\" & (VLOOKUP(Rebalance!$D$38,$F$2:$G$48,2,FALSE)+ROW()-2)),\"\")","v":{"$error":"#N/A"}},{"$f":"IF(INDIRECT(\"c\" & (VLOOKUP(Rebalance!$D$39,$F$2:$G$48,2,FALSE)+ROW()-2))=Rebalance!$D$39,INDIRECT(\"a\" & (VLOOKUP(Rebalance!$D$39,$F$2:$G$48,2,FALSE)+ROW()-2)),\"\")","v":{"$error":"#N/A"}},{"$f":"IF(INDIRECT(\"c\" & (VLOOKUP(Rebalance!$D$40,$F$2:$G$48,2,FALSE)+ROW()-2))=Rebalance!$D$40,INDIRECT(\"a\" & (VLOOKUP(Rebalance!$D$40,$F$2:$G$48,2,FALSE)+ROW()-2)),\"\")","v":{"$error":"#N/A"}},{"$f":"IF(INDIRECT(\"c\" & (VLOOKUP(Rebalance!$D$52,$F$2:$G$48,2,FALSE)+ROW()-2))=Rebalance!$D$52,INDIRECT(\"a\" & (VLOOKUP(Rebalance!$D$52,$F$2:$G$48,2,FALSE)+ROW()-2)),\"\")","v":{"$error":"#N/A"}},{"$f":"IF(INDIRECT(\"c\" & (VLOOKUP(Rebalance!$D$53,$F$2:$G$48,2,FALSE)+ROW()-2))=Rebalance!$D$53,INDIRECT(\"a\" & (VLOOKUP(Rebalance!$D$53,$F$2:$G$48,2,FALSE)+ROW()-2)),\"\")","v":{"$error":"#N/A"}},{"$f":"IF(INDIRECT(\"c\" & (VLOOKUP(Rebalance!$D$54,$F$2:$G$48,2,FALSE)+ROW()-2))=Rebalance!$D$54,INDIRECT(\"a\" & (VLOOKUP(Rebalance!$D$54,$F$2:$G$48,2,FALSE)+ROW()-2)),\"\")","v":{"$error":"#N/A"}},{"$f":"IF(INDIRECT(\"c\" & (VLOOKUP(Rebalance!$D$55,$F$2:$G$48,2,FALSE)+ROW()-2))=Rebalance!$D$55,INDIRECT(\"a\" & (VLOOKUP(Rebalance!$D$55,$F$2:$G$48,2,FALSE)+ROW()-2)),\"\")","v":{"$error":"#N/A"}},{"$f":"IF(INDIRECT(\"c\" & (VLOOKUP(Rebalance!$D$56,$F$2:$G$48,2,FALSE)+ROW()-2))=Rebalance!$D$56,INDIRECT(\"a\" & (VLOOKUP(Rebalance!$D$56,$F$2:$G$48,2,FALSE)+ROW()-2)),\"\")","v":{"$error":"#N/A"}},{"$f":"IF(INDIRECT(\"c\" & (VLOOKUP(Rebalance!$D$57,$F$2:$G$48,2,FALSE)+ROW()-2))=Rebalance!$D$57,INDIRECT(\"a\" & (VLOOKUP(Rebalance!$D$57,$F$2:$G$48,2,FALSE)+ROW()-2)),\"\")","v":{"$error":"#N/A"}},{"$f":"IF(INDIRECT(\"c\" & (VLOOKUP(Rebalance!$D$58,$F$2:$G$48,2,FALSE)+ROW()-2))=Rebalance!$D$58,INDIRECT(\"a\" & (VLOOKUP(Rebalance!$D$58,$F$2:$G$48,2,FALSE)+ROW()-2)),\"\")","v":{"$error":"#N/A"}},{"$f":"IF(INDIRECT(\"c\" & (VLOOKUP(Rebalance!$D$59,$F$2:$G$48,2,FALSE)+ROW()-2))=Rebalance!$D$59,INDIRECT(\"a\" & (VLOOKUP(Rebalance!$D$59,$F$2:$G$48,2,FALSE)+ROW()-2)),\"\")","v":{"$error":"#N/A"}},{"$f":"IF(INDIRECT(\"c\" & (VLOOKUP(Rebalance!$D$60,$F$2:$G$48,2,FALSE)+ROW()-2))=Rebalance!$D$60,INDIRECT(\"a\" & (VLOOKUP(Rebalance!$D$60,$F$2:$G$48,2,FALSE)+ROW()-2)),\"\")","v":{"$error":"#N/A"}},{"$f":"IF(INDIRECT(\"c\" & (VLOOKUP(Rebalance!$D$61,$F$2:$G$48,2,FALSE)+ROW()-2))=Rebalance!$D$61,INDIRECT(\"a\" & (VLOOKUP(Rebalance!$D$61,$F$2:$G$48,2,FALSE)+ROW()-2)),\"\")","v":{"$error":"#N/A"}},{"$f":"IF(INDIRECT(\"c\" & (VLOOKUP(Rebalance!$D$62,$F$2:$G$48,2,FALSE)+ROW()-2))=Rebalance!$D$62,INDIRECT(\"a\" & (VLOOKUP(Rebalance!$D$62,$F$2:$G$48,2,FALSE)+ROW()-2)),\"\")","v":{"$error":"#N/A"}},{"$f":"IF(INDIRECT(\"c\" & (VLOOKUP(Rebalance!$D$63,$F$2:$G$48,2,FALSE)+ROW()-2))=Rebalance!$D$63,INDIRECT(\"a\" & (VLOOKUP(Rebalance!$D$63,$F$2:$G$48,2,FALSE)+ROW()-2)),\"\")","v":{"$error":"#N/A"}},{"$f":"IF(INDIRECT(\"c\" & (VLOOKUP(Rebalance!$D$64,$F$2:$G$48,2,FALSE)+ROW()-2))=Rebalance!$D$64,INDIRECT(\"a\" & (VLOOKUP(Rebalance!$D$64,$F$2:$G$48,2,FALSE)+ROW()-2)),\"\")","v":{"$error":"#N/A"}},{"$f":"IF(INDIRECT(\"c\" & (VLOOKUP(Rebalance!$D$65,$F$2:$G$48,2,FALSE)+ROW()-2))=Rebalance!$D$65,INDIRECT(\"a\" & (VLOOKUP(Rebalance!$D$65,$F$2:$G$48,2,FALSE)+ROW()-2)),\"\")","v":{"$error":"#N/A"}},{"$f":"IF(INDIRECT(\"c\" & (VLOOKUP(Rebalance!$D$66,$F$2:$G$48,2,FALSE)+ROW()-2))=Rebalance!$D$66,INDIRECT(\"a\" & (VLOOKUP(Rebalance!$D$66,$F$2:$G$48,2,FALSE)+ROW()-2)),\"\")","v":{"$error":"#N/A"}}]
[null,null,null,{"$f":"ROW()","v":589},null,null,{"$f":"VLOOKUP(F589,$C$2:$D$599,2,FALSE)","v":{"$error":"#N/A"}},{"$f":"IF(INDIRECT(\"c\" & (VLOOKUP(Rebalance!$D$26,$F$2:$G$48,2,FALSE)+ROW()-2))=Rebalance!$D$26,INDIRECT(\"a\" & (VLOOKUP(Rebalance!$D$26,$F$2:$G$48,2,FALSE)+ROW()-2)),\"\")","v":{"$error":"#N/A"}},{"$f":"IF(INDIRECT(\"c\" & (VLOOKUP(Rebalance!$D$27,$F$2:$G$48,2,FALSE)+ROW()-2))=Rebalance!$D$27,INDIRECT(\"a\" & (VLOOKUP(Rebalance!$D$27,$F$2:$G$48,2,FALSE)+ROW()-2)),\"\")","v":{"$error":"#N/A"}},{"$f":"IF(INDIRECT(\"c\" & (VLOOKUP(Rebalance!$D$28,$F$2:$G$48,2,FALSE)+ROW()-2))=Rebalance!$D$28,INDIRECT(\"a\" & (VLOOKUP(Rebalance!$D$28,$F$2:$G$48,2,FALSE)+ROW()-2)),\"\")","v":{"$error":"#N/A"}},{"$f":"IF(INDIRECT(\"c\" & (VLOOKUP(Rebalance!$D$29,$F$2:$G$48,2,FALSE)+ROW()-2))=Rebalance!$D$29,INDIRECT(\"a\" & (VLOOKUP(Rebalance!$D$29,$F$2:$G$48,2,FALSE)+ROW()-2)),\"\")","v":{"$error":"#N/A"}},{"$f":"IF(INDIRECT(\"c\" & (VLOOKUP(Rebalance!$D$30,$F$2:$G$48,2,FALSE)+ROW()-2))=Rebalance!$D$30,INDIRECT(\"a\" & (VLOOKUP(Rebalance!$D$30,$F$2:$G$48,2,FALSE)+ROW()-2)),\"\")","v":{"$error":"#N/A"}},{"$f":"IF(INDIRECT(\"c\" & (VLOOKUP(Rebalance!$D$31,$F$2:$G$48,2,FALSE)+ROW()-2))=Rebalance!$D$31,INDIRECT(\"a\" & (VLOOKUP(Rebalance!$D$31,$F$2:$G$48,2,FALSE)+ROW()-2)),\"\")","v":{"$error":"#N/A"}},{"$f":"IF(INDIRECT(\"c\" & (VLOOKUP(Rebalance!$D$32,$F$2:$G$48,2,FALSE)+ROW()-2))=Rebalance!$D$32,INDIRECT(\"a\" & (VLOOKUP(Rebalance!$D$32,$F$2:$G$48,2,FALSE)+ROW()-2)),\"\")","v":{"$error":"#N/A"}},{"$f":"IF(INDIRECT(\"c\" & (VLOOKUP(Rebalance!$D$33,$F$2:$G$48,2,FALSE)+ROW()-2))=Rebalance!$D$33,INDIRECT(\"a\" & (VLOOKUP(Rebalance!$D$33,$F$2:$G$48,2,FALSE)+ROW()-2)),\"\")","v":{"$error":"#N/A"}},{"$f":"IF(INDIRECT(\"c\" & (VLOOKUP(Rebalance!$D$34,$F$2:$G$48,2,FALSE)+ROW()-2))=Rebalance!$D$34,INDIRECT(\"a\" & (VLOOKUP(Rebalance!$D$34,$F$2:$G$48,2,FALSE)+ROW()-2)),\"\")","v":{"$error":"#N/A"}},{"$f":"IF(INDIRECT(\"c\" & (VLOOKUP(Rebalance!$D$35,$F$2:$G$48,2,FALSE)+ROW()-2))=Rebalance!$D$35,INDIRECT(\"a\" & (VLOOKUP(Rebalance!$D$35,$F$2:$G$48,2,FALSE)+ROW()-2)),\"\")","v":{"$error":"#N/A"}},{"$f":"IF(INDIRECT(\"c\" & (VLOOKUP(Rebalance!$D$36,$F$2:$G$48,2,FALSE)+ROW()-2))=Rebalance!$D$36,INDIRECT(\"a\" & (VLOOKUP(Rebalance!$D$36,$F$2:$G$48,2,FALSE)+ROW()-2)),\"\")","v":{"$error":"#N/A"}},{"$f":"IF(INDIRECT(\"c\" & (VLOOKUP(Rebalance!$D$37,$F$2:$G$48,2,FALSE)+ROW()-2))=Rebalance!$D$37,INDIRECT(\"a\" & (VLOOKUP(Rebalance!$D$37,$F$2:$G$48,2,FALSE)+ROW()-2)),\"\")","v":{"$error":"#N/A"}},{"$f":"IF(INDIRECT(\"c\" & (VLOOKUP(Rebalance!$D$38,$F$2:$G$48,2,FALSE)+ROW()-2))=Rebalance!$D$38,INDIRECT(\"a\" & (VLOOKUP(Rebalance!$D$38,$F$2:$G$48,2,FALSE)+ROW()-2)),\"\")","v":{"$error":"#N/A"}},{"$f":"IF(INDIRECT(\"c\" & (VLOOKUP(Rebalance!$D$39,$F$2:$G$48,2,FALSE)+ROW()-2))=Rebalance!$D$39,INDIRECT(\"a\" & (VLOOKUP(Rebalance!$D$39,$F$2:$G$48,2,FALSE)+ROW()-2)),\"\")","v":{"$error":"#N/A"}},{"$f":"IF(INDIRECT(\"c\" & (VLOOKUP(Rebalance!$D$40,$F$2:$G$48,2,FALSE)+ROW()-2))=Rebalance!$D$40,INDIRECT(\"a\" & (VLOOKUP(Rebalance!$D$40,$F$2:$G$48,2,FALSE)+ROW()-2)),\"\")","v":{"$error":"#N/A"}},{"$f":"IF(INDIRECT(\"c\" & (VLOOKUP(Rebalance!$D$52,$F$2:$G$48,2,FALSE)+ROW()-2))=Rebalance!$D$52,INDIRECT(\"a\" & (VLOOKUP(Rebalance!$D$52,$F$2:$G$48,2,FALSE)+ROW()-2)),\"\")","v":{"$error":"#N/A"}},{"$f":"IF(INDIRECT(\"c\" & (VLOOKUP(Rebalance!$D$53,$F$2:$G$48,2,FALSE)+ROW()-2))=Rebalance!$D$53,INDIRECT(\"a\" & (VLOOKUP(Rebalance!$D$53,$F$2:$G$48,2,FALSE)+ROW()-2)),\"\")","v":{"$error":"#N/A"}},{"$f":"IF(INDIRECT(\"c\" & (VLOOKUP(Rebalance!$D$54,$F$2:$G$48,2,FALSE)+ROW()-2))=Rebalance!$D$54,INDIRECT(\"a\" & (VLOOKUP(Rebalance!$D$54,$F$2:$G$48,2,FALSE)+ROW()-2)),\"\")","v":{"$error":"#N/A"}},{"$f":"IF(INDIRECT(\"c\" & (VLOOKUP(Rebalance!$D$55,$F$2:$G$48,2,FALSE)+ROW()-2))=Rebalance!$D$55,INDIRECT(\"a\" & (VLOOKUP(Rebalance!$D$55,$F$2:$G$48,2,FALSE)+ROW()-2)),\"\")","v":{"$error":"#N/A"}},{"$f":"IF(INDIRECT(\"c\" & (VLOOKUP(Rebalance!$D$56,$F$2:$G$48,2,FALSE)+ROW()-2))=Rebalance!$D$56,INDIRECT(\"a\" & (VLOOKUP(Rebalance!$D$56,$F$2:$G$48,2,FALSE)+ROW()-2)),\"\")","v":{"$error":"#N/A"}},{"$f":"IF(INDIRECT(\"c\" & (VLOOKUP(Rebalance!$D$57,$F$2:$G$48,2,FALSE)+ROW()-2))=Rebalance!$D$57,INDIRECT(\"a\" & (VLOOKUP(Rebalance!$D$57,$F$2:$G$48,2,FALSE)+ROW()-2)),\"\")","v":{"$error":"#N/A"}},{"$f":"IF(INDIRECT(\"c\" & (VLOOKUP(Rebalance!$D$58,$F$2:$G$48,2,FALSE)+ROW()-2))=Rebalance!$D$58,INDIRECT(\"a\" & (VLOOKUP(Rebalance!$D$58,$F$2:$G$48,2,FALSE)+ROW()-2)),\"\")","v":{"$error":"#N/A"}},{"$f":"IF(INDIRECT(\"c\" & (VLOOKUP(Rebalance!$D$59,$F$2:$G$48,2,FALSE)+ROW()-2))=Rebalance!$D$59,INDIRECT(\"a\" & (VLOOKUP(Rebalance!$D$59,$F$2:$G$48,2,FALSE)+ROW()-2)),\"\")","v":{"$error":"#N/A"}},{"$f":"IF(INDIRECT(\"c\" & (VLOOKUP(Rebalance!$D$60,$F$2:$G$48,2,FALSE)+ROW()-2))=Rebalance!$D$60,INDIRECT(\"a\" & (VLOOKUP(Rebalance!$D$60,$F$2:$G$48,2,FALSE)+ROW()-2)),\"\")","v":{"$error":"#N/A"}},{"$f":"IF(INDIRECT(\"c\" & (VLOOKUP(Rebalance!$D$61,$F$2:$G$48,2,FALSE)+ROW()-2))=Rebalance!$D$61,INDIRECT(\"a\" & (VLOOKUP(Rebalance!$D$61,$F$2:$G$48,2,FALSE)+ROW()-2)),\"\")","v":{"$error":"#N/A"}},{"$f":"IF(INDIRECT(\"c\" & (VLOOKUP(Rebalance!$D$62,$F$2:$G$48,2,FALSE)+ROW()-2))=Rebalance!$D$62,INDIRECT(\"a\" & (VLOOKUP(Rebalance!$D$62,$F$2:$G$48,2,FALSE)+ROW()-2)),\"\")","v":{"$error":"#N/A"}},{"$f":"IF(INDIRECT(\"c\" & (VLOOKUP(Rebalance!$D$63,$F$2:$G$48,2,FALSE)+ROW()-2))=Rebalance!$D$63,INDIRECT(\"a\" & (VLOOKUP(Rebalance!$D$63,$F$2:$G$48,2,FALSE)+ROW()-2)),\"\")","v":{"$error":"#N/A"}},{"$f":"IF(INDIRECT(\"c\" & (VLOOKUP(Rebalance!$D$64,$F$2:$G$48,2,FALSE)+ROW()-2))=Rebalance!$D$64,INDIRECT(\"a\" & (VLOOKUP(Rebalance!$D$64,$F$2:$G$48,2,FALSE)+ROW()-2)),\"\")","v":{"$error":"#N/A"}},{"$f":"IF(INDIRECT(\"c\" & (VLOOKUP(Rebalance!$D$65,$F$2:$G$48,2,FALSE)+ROW()-2))=Rebalance!$D$65,INDIRECT(\"a\" & (VLOOKUP(Rebalance!$D$65,$F$2:$G$48,2,FALSE)+ROW()-2)),\"\")","v":{"$error":"#N/A"}},{"$f":"IF(INDIRECT(\"c\" & (VLOOKUP(Rebalance!$D$66,$F$2:$G$48,2,FALSE)+ROW()-2))=Rebalance!$D$66,INDIRECT(\"a\" & (VLOOKUP(Rebalance!$D$66,$F$2:$G$48,2,FALSE)+ROW()-2)),\"\")","v":{"$error":"#N/A"}}]
[null,null,null,{"$f":"ROW()","v":590},null,null,{"$f":"VLOOKUP(F590,$C$2:$D$599,2,FALSE)","v":{"$error":"#N/A"}},{"$f":"IF(INDIRECT(\"c\" & (VLOOKUP(Rebalance!$D$26,$F$2:$G$48,2,FALSE)+ROW()-2))=Rebalance!$D$26,INDIRECT(\"a\" & (VLOOKUP(Rebalance!$D$26,$F$2:$G$48,2,FALSE)+ROW()-2)),\"\")","v":{"$error":"#N/A"}},{"$f":"IF(INDIRECT(\"c\" & (VLOOKUP(Rebalance!$D$27,$F$2:$G$48,2,FALSE)+ROW()-2))=Rebalance!$D$27,INDIRECT(\"a\" & (VLOOKUP(Rebalance!$D$27,$F$2:$G$48,2,FALSE)+ROW()-2)),\"\")","v":{"$error":"#N/A"}},{"$f":"IF(INDIRECT(\"c\" & (VLOOKUP(Rebalance!$D$28,$F$2:$G$48,2,FALSE)+ROW()-2))=Rebalance!$D$28,INDIRECT(\"a\" & (VLOOKUP(Rebalance!$D$28,$F$2:$G$48,2,FALSE)+ROW()-2)),\"\")","v":{"$error":"#N/A"}},{"$f":"IF(INDIRECT(\"c\" & (VLOOKUP(Rebalance!$D$29,$F$2:$G$48,2,FALSE)+ROW()-2))=Rebalance!$D$29,INDIRECT(\"a\" & (VLOOKUP(Rebalance!$D$29,$F$2:$G$48,2,FALSE)+ROW()-2)),\"\")","v":{"$error":"#N/A"}},{"$f":"IF(INDIRECT(\"c\" & (VLOOKUP(Rebalance!$D$30,$F$2:$G$48,2,FALSE)+ROW()-2))=Rebalance!$D$30,INDIRECT(\"a\" & (VLOOKUP(Rebalance!$D$30,$F$2:$G$48,2,FALSE)+ROW()-2)),\"\")","v":{"$error":"#N/A"}},{"$f":"IF(INDIRECT(\"c\" & (VLOOKUP(Rebalance!$D$31,$F$2:$G$48,2,FALSE)+ROW()-2))=Rebalance!$D$31,INDIRECT(\"a\" & (VLOOKUP(Rebalance!$D$31,$F$2:$G$48,2,FALSE)+ROW()-2)),\"\")","v":{"$error":"#N/A"}},{"$f":"IF(INDIRECT(\"c\" & (VLOOKUP(Rebalance!$D$32,$F$2:$G$48,2,FALSE)+ROW()-2))=Rebalance!$D$32,INDIRECT(\"a\" & (VLOOKUP(Rebalance!$D$32,$F$2:$G$48,2,FALSE)+ROW()-2)),\"\")","v":{"$error":"#N/A"}},{"$f":"IF(INDIRECT(\"c\" & (VLOOKUP(Rebalance!$D$33,$F$2:$G$48,2,FALSE)+ROW()-2))=Rebalance!$D$33,INDIRECT(\"a\" & (VLOOKUP(Rebalance!$D$33,$F$2:$G$48,2,FALSE)+ROW()-2)),\"\")","v":{"$error":"#N/A"}},{"$f":"IF(INDIRECT(\"c\" & (VLOOKUP(Rebalance!$D$34,$F$2:$G$48,2,FALSE)+ROW()-2))=Rebalance!$D$34,INDIRECT(\"a\" & (VLOOKUP(Rebalance!$D$34,$F$2:$G$48,2,FALSE)+ROW()-2)),\"\")","v":{"$error":"#N/A"}},{"$f":"IF(INDIRECT(\"c\" & (VLOOKUP(Rebalance!$D$35,$F$2:$G$48,2,FALSE)+ROW()-2))=Rebalance!$D$35,INDIRECT(\"a\" & (VLOOKUP(Rebalance!$D$35,$F$2:$G$48,2,FALSE)+ROW()-2)),\"\")","v":{"$error":"#N/A"}},{"$f":"IF(INDIRECT(\"c\" & (VLOOKUP(Rebalance!$D$36,$F$2:$G$48,2,FALSE)+ROW()-2))=Rebalance!$D$36,INDIRECT(\"a\" & (VLOOKUP(Rebalance!$D$36,$F$2:$G$48,2,FALSE)+ROW()-2)),\"\")","v":{"$error":"#N/A"}},{"$f":"IF(INDIRECT(\"c\" & (VLOOKUP(Rebalance!$D$37,$F$2:$G$48,2,FALSE)+ROW()-2))=Rebalance!$D$37,INDIRECT(\"a\" & (VLOOKUP(Rebalance!$D$37,$F$2:$G$48,2,FALSE)+ROW()-2)),\"\")","v":{"$error":"#N/A"}},{"$f":"IF(INDIRECT(\"c\" & (VLOOKUP(Rebalance!$D$38,$F$2:$G$48,2,FALSE)+ROW()-2))=Rebalance!$D$38,INDIRECT(\"a\" & (VLOOKUP(Rebalance!$D$38,$F$2:$G$48,2,FALSE)+ROW()-2)),\"\")","v":{"$error":"#N/A"}},{"$f":"IF(INDIRECT(\"c\" & (VLOOKUP(Rebalance!$D$39,$F$2:$G$48,2,FALSE)+ROW()-2))=Rebalance!$D$39,INDIRECT(\"a\" & (VLOOKUP(Rebalance!$D$39,$F$2:$G$48,2,FALSE)+ROW()-2)),\"\")","v":{"$error":"#N/A"}},{"$f":"IF(INDIRECT(\"c\" & (VLOOKUP(Rebalance!$D$40,$F$2:$G$48,2,FALSE)+ROW()-2))=Rebalance!$D$40,INDIRECT(\"a\" & (VLOOKUP(Rebalance!$D$40,$F$2:$G$48,2,FALSE)+ROW()-2)),\"\")","v":{"$error":"#N/A"}},{"$f":"IF(INDIRECT(\"c\" & (VLOOKUP(Rebalance!$D$52,$F$2:$G$48,2,FALSE)+ROW()-2))=Rebalance!$D$52,INDIRECT(\"a\" & (VLOOKUP(Rebalance!$D$52,$F$2:$G$48,2,FALSE)+ROW()-2)),\"\")","v":{"$error":"#N/A"}},{"$f":"IF(INDIRECT(\"c\" & (VLOOKUP(Rebalance!$D$53,$F$2:$G$48,2,FALSE)+ROW()-2))=Rebalance!$D$53,INDIRECT(\"a\" & (VLOOKUP(Rebalance!$D$53,$F$2:$G$48,2,FALSE)+ROW()-2)),\"\")","v":{"$error":"#N/A"}},{"$f":"IF(INDIRECT(\"c\" & (VLOOKUP(Rebalance!$D$54,$F$2:$G$48,2,FALSE)+ROW()-2))=Rebalance!$D$54,INDIRECT(\"a\" & (VLOOKUP(Rebalance!$D$54,$F$2:$G$48,2,FALSE)+ROW()-2)),\"\")","v":{"$error":"#N/A"}},{"$f":"IF(INDIRECT(\"c\" & (VLOOKUP(Rebalance!$D$55,$F$2:$G$48,2,FALSE)+ROW()-2))=Rebalance!$D$55,INDIRECT(\"a\" & (VLOOKUP(Rebalance!$D$55,$F$2:$G$48,2,FALSE)+ROW()-2)),\"\")","v":{"$error":"#N/A"}},{"$f":"IF(INDIRECT(\"c\" & (VLOOKUP(Rebalance!$D$56,$F$2:$G$48,2,FALSE)+ROW()-2))=Rebalance!$D$56,INDIRECT(\"a\" & (VLOOKUP(Rebalance!$D$56,$F$2:$G$48,2,FALSE)+ROW()-2)),\"\")","v":{"$error":"#N/A"}},{"$f":"IF(INDIRECT(\"c\" & (VLOOKUP(Rebalance!$D$57,$F$2:$G$48,2,FALSE)+ROW()-2))=Rebalance!$D$57,INDIRECT(\"a\" & (VLOOKUP(Rebalance!$D$57,$F$2:$G$48,2,FALSE)+ROW()-2)),\"\")","v":{"$error":"#N/A"}},{"$f":"IF(INDIRECT(\"c\" & (VLOOKUP(Rebalance!$D$58,$F$2:$G$48,2,FALSE)+ROW()-2))=Rebalance!$D$58,INDIRECT(\"a\" & (VLOOKUP(Rebalance!$D$58,$F$2:$G$48,2,FALSE)+ROW()-2)),\"\")","v":{"$error":"#N/A"}},{"$f":"IF(INDIRECT(\"c\" & (VLOOKUP(Rebalance!$D$59,$F$2:$G$48,2,FALSE)+ROW()-2))=Rebalance!$D$59,INDIRECT(\"a\" & (VLOOKUP(Rebalance!$D$59,$F$2:$G$48,2,FALSE)+ROW()-2)),\"\")","v":{"$error":"#N/A"}},{"$f":"IF(INDIRECT(\"c\" & (VLOOKUP(Rebalance!$D$60,$F$2:$G$48,2,FALSE)+ROW()-2))=Rebalance!$D$60,INDIRECT(\"a\" & (VLOOKUP(Rebalance!$D$60,$F$2:$G$48,2,FALSE)+ROW()-2)),\"\")","v":{"$error":"#N/A"}},{"$f":"IF(INDIRECT(\"c\" & (VLOOKUP(Rebalance!$D$61,$F$2:$G$48,2,FALSE)+ROW()-2))=Rebalance!$D$61,INDIRECT(\"a\" & (VLOOKUP(Rebalance!$D$61,$F$2:$G$48,2,FALSE)+ROW()-2)),\"\")","v":{"$error":"#N/A"}},{"$f":"IF(INDIRECT(\"c\" & (VLOOKUP(Rebalance!$D$62,$F$2:$G$48,2,FALSE)+ROW()-2))=Rebalance!$D$62,INDIRECT(\"a\" & (VLOOKUP(Rebalance!$D$62,$F$2:$G$48,2,FALSE)+ROW()-2)),\"\")","v":{"$error":"#N/A"}},{"$f":"IF(INDIRECT(\"c\" & (VLOOKUP(Rebalance!$D$63,$F$2:$G$48,2,FALSE)+ROW()-2))=Rebalance!$D$63,INDIRECT(\"a\" & (VLOOKUP(Rebalance!$D$63,$F$2:$G$48,2,FALSE)+ROW()-2)),\"\")","v":{"$error":"#N/A"}},{"$f":"IF(INDIRECT(\"c\" & (VLOOKUP(Rebalance!$D$64,$F$2:$G$48,2,FALSE)+ROW()-2))=Rebalance!$D$64,INDIRECT(\"a\" & (VLOOKUP(Rebalance!$D$64,$F$2:$G$48,2,FALSE)+ROW()-2)),\"\")","v":{"$error":"#N/A"}},{"$f":"IF(INDIRECT(\"c\" & (VLOOKUP(Rebalance!$D$65,$F$2:$G$48,2,FALSE)+ROW()-2))=Rebalance!$D$65,INDIRECT(\"a\" & (VLOOKUP(Rebalance!$D$65,$F$2:$G$48,2,FALSE)+ROW()-2)),\"\")","v":{"$error":"#N/A"}},{"$f":"IF(INDIRECT(\"c\" & (VLOOKUP(Rebalance!$D$66,$F$2:$G$48,2,FALSE)+ROW()-2))=Rebalance!$D$66,INDIRECT(\"a\" & (VLOOKUP(Rebalance!$D$66,$F$2:$G$48,2,FALSE)+ROW()-2)),\"\")","v":{"$error":"#N/A"}}]
[null,null,null,{"$f":"ROW()","v":591},null,null,{"$f":"VLOOKUP(F591,$C$2:$D$599,2,FALSE)","v":{"$error":"#N/A"}},{"$f":"IF(INDIRECT(\"c\" & (VLOOKUP(Rebalance!$D$26,$F$2:$G$48,2,FALSE)+ROW()-2))=Rebalance!$D$26,INDIRECT(\"a\" & (VLOOKUP(Rebalance!$D$26,$F$2:$G$48,2,FALSE)+ROW()-2)),\"\")","v":{"$error":"#N/A"}},{"$f":"IF(INDIRECT(\"c\" & (VLOOKUP(Rebalance!$D$27,$F$2:$G$48,2,FALSE)+ROW()-2))=Rebalance!$D$27,INDIRECT(\"a\" & (VLOOKUP(Rebalance!$D$27,$F$2:$G$48,2,FALSE)+ROW()-2)),\"\")","v":{"$error":"#N/A"}},{"$f":"IF(INDIRECT(\"c\" & (VLOOKUP(Rebalance!$D$28,$F$2:$G$48,2,FALSE)+ROW()-2))=Rebalance!$D$28,INDIRECT(\"a\" & (VLOOKUP(Rebalance!$D$28,$F$2:$G$48,2,FALSE)+ROW()-2)),\"\")","v":{"$error":"#N/A"}},{"$f":"IF(INDIRECT(\"c\" & (VLOOKUP(Rebalance!$D$29,$F$2:$G$48,2,FALSE)+ROW()-2))=Rebalance!$D$29,INDIRECT(\"a\" & (VLOOKUP(Rebalance!$D$29,$F$2:$G$48,2,FALSE)+ROW()-2)),\"\")","v":{"$error":"#N/A"}},{"$f":"IF(INDIRECT(\"c\" & (VLOOKUP(Rebalance!$D$30,$F$2:$G$48,2,FALSE)+ROW()-2))=Rebalance!$D$30,INDIRECT(\"a\" & (VLOOKUP(Rebalance!$D$30,$F$2:$G$48,2,FALSE)+ROW()-2)),\"\")","v":{"$error":"#N/A"}},{"$f":"IF(INDIRECT(\"c\" & (VLOOKUP(Rebalance!$D$31,$F$2:$G$48,2,FALSE)+ROW()-2))=Rebalance!$D$31,INDIRECT(\"a\" & (VLOOKUP(Rebalance!$D$31,$F$2:$G$48,2,FALSE)+ROW()-2)),\"\")","v":{"$error":"#N/A"}},{"$f":"IF(INDIRECT(\"c\" & (VLOOKUP(Rebalance!$D$32,$F$2:$G$48,2,FALSE)+ROW()-2))=Rebalance!$D$32,INDIRECT(\"a\" & (VLOOKUP(Rebalance!$D$32,$F$2:$G$48,2,FALSE)+ROW()-2)),\"\")","v":{"$error":"#N/A"}},{"$f":"IF(INDIRECT(\"c\" & (VLOOKUP(Rebalance!$D$33,$F$2:$G$48,2,FALSE)+ROW()-2))=Rebalance!$D$33,INDIRECT(\"a\" & (VLOOKUP(Rebalance!$D$33,$F$2:$G$48,2,FALSE)+ROW()-2)),\"\")","v":{"$error":"#N/A"}},{"$f":"IF(INDIRECT(\"c\" & (VLOOKUP(Rebalance!$D$34,$F$2:$G$48,2,FALSE)+ROW()-2))=Rebalance!$D$34,INDIRECT(\"a\" & (VLOOKUP(Rebalance!$D$34,$F$2:$G$48,2,FALSE)+ROW()-2)),\"\")","v":{"$error":"#N/A"}},{"$f":"IF(INDIRECT(\"c\" & (VLOOKUP(Rebalance!$D$35,$F$2:$G$48,2,FALSE)+ROW()-2))=Rebalance!$D$35,INDIRECT(\"a\" & (VLOOKUP(Rebalance!$D$35,$F$2:$G$48,2,FALSE)+ROW()-2)),\"\")","v":{"$error":"#N/A"}},{"$f":"IF(INDIRECT(\"c\" & (VLOOKUP(Rebalance!$D$36,$F$2:$G$48,2,FALSE)+ROW()-2))=Rebalance!$D$36,INDIRECT(\"a\" & (VLOOKUP(Rebalance!$D$36,$F$2:$G$48,2,FALSE)+ROW()-2)),\"\")","v":{"$error":"#N/A"}},{"$f":"IF(INDIRECT(\"c\" & (VLOOKUP(Rebalance!$D$37,$F$2:$G$48,2,FALSE)+ROW()-2))=Rebalance!$D$37,INDIRECT(\"a\" & (VLOOKUP(Rebalance!$D$37,$F$2:$G$48,2,FALSE)+ROW()-2)),\"\")","v":{"$error":"#N/A"}},{"$f":"IF(INDIRECT(\"c\" & (VLOOKUP(Rebalance!$D$38,$F$2:$G$48,2,FALSE)+ROW()-2))=Rebalance!$D$38,INDIRECT(\"a\" & (VLOOKUP(Rebalance!$D$38,$F$2:$G$48,2,FALSE)+ROW()-2)),\"\")","v":{"$error":"#N/A"}},{"$f":"IF(INDIRECT(\"c\" & (VLOOKUP(Rebalance!$D$39,$F$2:$G$48,2,FALSE)+ROW()-2))=Rebalance!$D$39,INDIRECT(\"a\" & (VLOOKUP(Rebalance!$D$39,$F$2:$G$48,2,FALSE)+ROW()-2)),\"\")","v":{"$error":"#N/A"}},{"$f":"IF(INDIRECT(\"c\" & (VLOOKUP(Rebalance!$D$40,$F$2:$G$48,2,FALSE)+ROW()-2))=Rebalance!$D$40,INDIRECT(\"a\" & (VLOOKUP(Rebalance!$D$40,$F$2:$G$48,2,FALSE)+ROW()-2)),\"\")","v":{"$error":"#N/A"}},{"$f":"IF(INDIRECT(\"c\" & (VLOOKUP(Rebalance!$D$52,$F$2:$G$48,2,FALSE)+ROW()-2))=Rebalance!$D$52,INDIRECT(\"a\" & (VLOOKUP(Rebalance!$D$52,$F$2:$G$48,2,FALSE)+ROW()-2)),\"\")","v":{"$error":"#N/A"}},{"$f":"IF(INDIRECT(\"c\" & (VLOOKUP(Rebalance!$D$53,$F$2:$G$48,2,FALSE)+ROW()-2))=Rebalance!$D$53,INDIRECT(\"a\" & (VLOOKUP(Rebalance!$D$53,$F$2:$G$48,2,FALSE)+ROW()-2)),\"\")","v":{"$error":"#N/A"}},{"$f":"IF(INDIRECT(\"c\" & (VLOOKUP(Rebalance!$D$54,$F$2:$G$48,2,FALSE)+ROW()-2))=Rebalance!$D$54,INDIRECT(\"a\" & (VLOOKUP(Rebalance!$D$54,$F$2:$G$48,2,FALSE)+ROW()-2)),\"\")","v":{"$error":"#N/A"}},{"$f":"IF(INDIRECT(\"c\" & (VLOOKUP(Rebalance!$D$55,$F$2:$G$48,2,FALSE)+ROW()-2))=Rebalance!$D$55,INDIRECT(\"a\" & (VLOOKUP(Rebalance!$D$55,$F$2:$G$48,2,FALSE)+ROW()-2)),\"\")","v":{"$error":"#N/A"}},{"$f":"IF(INDIRECT(\"c\" & (VLOOKUP(Rebalance!$D$56,$F$2:$G$48,2,FALSE)+ROW()-2))=Rebalance!$D$56,INDIRECT(\"a\" & (VLOOKUP(Rebalance!$D$56,$F$2:$G$48,2,FALSE)+ROW()-2)),\"\")","v":{"$error":"#N/A"}},{"$f":"IF(INDIRECT(\"c\" & (VLOOKUP(Rebalance!$D$57,$F$2:$G$48,2,FALSE)+ROW()-2))=Rebalance!$D$57,INDIRECT(\"a\" & (VLOOKUP(Rebalance!$D$57,$F$2:$G$48,2,FALSE)+ROW()-2)),\"\")","v":{"$error":"#N/A"}},{"$f":"IF(INDIRECT(\"c\" & (VLOOKUP(Rebalance!$D$58,$F$2:$G$48,2,FALSE)+ROW()-2))=Rebalance!$D$58,INDIRECT(\"a\" & (VLOOKUP(Rebalance!$D$58,$F$2:$G$48,2,FALSE)+ROW()-2)),\"\")","v":{"$error":"#N/A"}},{"$f":"IF(INDIRECT(\"c\" & (VLOOKUP(Rebalance!$D$59,$F$2:$G$48,2,FALSE)+ROW()-2))=Rebalance!$D$59,INDIRECT(\"a\" & (VLOOKUP(Rebalance!$D$59,$F$2:$G$48,2,FALSE)+ROW()-2)),\"\")","v":{"$error":"#N/A"}},{"$f":"IF(INDIRECT(\"c\" & (VLOOKUP(Rebalance!$D$60,$F$2:$G$48,2,FALSE)+ROW()-2))=Rebalance!$D$60,INDIRECT(\"a\" & (VLOOKUP(Rebalance!$D$60,$F$2:$G$48,2,FALSE)+ROW()-2)),\"\")","v":{"$error":"#N/A"}},{"$f":"IF(INDIRECT(\"c\" & (VLOOKUP(Rebalance!$D$61,$F$2:$G$48,2,FALSE)+ROW()-2))=Rebalance!$D$61,INDIRECT(\"a\" & (VLOOKUP(Rebalance!$D$61,$F$2:$G$48,2,FALSE)+ROW()-2)),\"\")","v":{"$error":"#N/A"}},{"$f":"IF(INDIRECT(\"c\" & (VLOOKUP(Rebalance!$D$62,$F$2:$G$48,2,FALSE)+ROW()-2))=Rebalance!$D$62,INDIRECT(\"a\" & (VLOOKUP(Rebalance!$D$62,$F$2:$G$48,2,FALSE)+ROW()-2)),\"\")","v":{"$error":"#N/A"}},{"$f":"IF(INDIRECT(\"c\" & (VLOOKUP(Rebalance!$D$63,$F$2:$G$48,2,FALSE)+ROW()-2))=Rebalance!$D$63,INDIRECT(\"a\" & (VLOOKUP(Rebalance!$D$63,$F$2:$G$48,2,FALSE)+ROW()-2)),\"\")","v":{"$error":"#N/A"}},{"$f":"IF(INDIRECT(\"c\" & (VLOOKUP(Rebalance!$D$64,$F$2:$G$48,2,FALSE)+ROW()-2))=Rebalance!$D$64,INDIRECT(\"a\" & (VLOOKUP(Rebalance!$D$64,$F$2:$G$48,2,FALSE)+ROW()-2)),\"\")","v":{"$error":"#N/A"}},{"$f":"IF(INDIRECT(\"c\" & (VLOOKUP(Rebalance!$D$65,$F$2:$G$48,2,FALSE)+ROW()-2))=Rebalance!$D$65,INDIRECT(\"a\" & (VLOOKUP(Rebalance!$D$65,$F$2:$G$48,2,FALSE)+ROW()-2)),\"\")","v":{"$error":"#N/A"}},{"$f":"IF(INDIRECT(\"c\" & (VLOOKUP(Rebalance!$D$66,$F$2:$G$48,2,FALSE)+ROW()-2))=Rebalance!$D$66,INDIRECT(\"a\" & (VLOOKUP(Rebalance!$D$66,$F$2:$G$48,2,FALSE)+ROW()-2)),\"\")","v":{"$error":"#N/A"}}]
[null,null,null,{"$f":"ROW()","v":592},null,null,{"$f":"VLOOKUP(F592,$C$2:$D$599,2,FALSE)","v":{"$error":"#N/A"}},{"$f":"IF(INDIRECT(\"c\" & (VLOOKUP(Rebalance!$D$26,$F$2:$G$48,2,FALSE)+ROW()-2))=Rebalance!$D$26,INDIRECT(\"a\" & (VLOOKUP(Rebalance!$D$26,$F$2:$G$48,2,FALSE)+ROW()-2)),\"\")","v":{"$error":"#N/A"}},{"$f":"IF(INDIRECT(\"c\" & (VLOOKUP(Rebalance!$D$27,$F$2:$G$48,2,FALSE)+ROW()-2))=Rebalance!$D$27,INDIRECT(\"a\" & (VLOOKUP(Rebalance!$D$27,$F$2:$G$48,2,FALSE)+ROW()-2)),\"\")","v":{"$error":"#N/A"}},{"$f":"IF(INDIRECT(\"c\" & (VLOOKUP(Rebalance!$D$28,$F$2:$G$48,2,FALSE)+ROW()-2))=Rebalance!$D$28,INDIRECT(\"a\" & (VLOOKUP(Rebalance!$D$28,$F$2:$G$48,2,FALSE)+ROW()-2)),\"\")","v":{"$error":"#N/A"}},{"$f":"IF(INDIRECT(\"c\" & (VLOOKUP(Rebalance!$D$29,$F$2:$G$48,2,FALSE)+ROW()-2))=Rebalance!$D$29,INDIRECT(\"a\" & (VLOOKUP(Rebalance!$D$29,$F$2:$G$48,2,FALSE)+ROW()-2)),\"\")","v":{"$error":"#N/A"}},{"$f":"IF(INDIRECT(\"c\" & (VLOOKUP(Rebalance!$D$30,$F$2:$G$48,2,FALSE)+ROW()-2))=Rebalance!$D$30,INDIRECT(\"a\" & (VLOOKUP(Rebalance!$D$30,$F$2:$G$48,2,FALSE)+ROW()-2)),\"\")","v":{"$error":"#N/A"}},{"$f":"IF(INDIRECT(\"c\" & (VLOOKUP(Rebalance!$D$31,$F$2:$G$48,2,FALSE)+ROW()-2))=Rebalance!$D$31,INDIRECT(\"a\" & (VLOOKUP(Rebalance!$D$31,$F$2:$G$48,2,FALSE)+ROW()-2)),\"\")","v":{"$error":"#N/A"}},{"$f":"IF(INDIRECT(\"c\" & (VLOOKUP(Rebalance!$D$32,$F$2:$G$48,2,FALSE)+ROW()-2))=Rebalance!$D$32,INDIRECT(\"a\" & (VLOOKUP(Rebalance!$D$32,$F$2:$G$48,2,FALSE)+ROW()-2)),\"\")","v":{"$error":"#N/A"}},{"$f":"IF(INDIRECT(\"c\" & (VLOOKUP(Rebalance!$D$33,$F$2:$G$48,2,FALSE)+ROW()-2))=Rebalance!$D$33,INDIRECT(\"a\" & (VLOOKUP(Rebalance!$D$33,$F$2:$G$48,2,FALSE)+ROW()-2)),\"\")","v":{"$error":"#N/A"}},{"$f":"IF(INDIRECT(\"c\" & (VLOOKUP(Rebalance!$D$34,$F$2:$G$48,2,FALSE)+ROW()-2))=Rebalance!$D$34,INDIRECT(\"a\" & (VLOOKUP(Rebalance!$D$34,$F$2:$G$48,2,FALSE)+ROW()-2)),\"\")","v":{"$error":"#N/A"}},{"$f":"IF(INDIRECT(\"c\" & (VLOOKUP(Rebalance!$D$35,$F$2:$G$48,2,FALSE)+ROW()-2))=Rebalance!$D$35,INDIRECT(\"a\" & (VLOOKUP(Rebalance!$D$35,$F$2:$G$48,2,FALSE)+ROW()-2)),\"\")","v":{"$error":"#N/A"}},{"$f":"IF(INDIRECT(\"c\" & (VLOOKUP(Rebalance!$D$36,$F$2:$G$48,2,FALSE)+ROW()-2))=Rebalance!$D$36,INDIRECT(\"a\" & (VLOOKUP(Rebalance!$D$36,$F$2:$G$48,2,FALSE)+ROW()-2)),\"\")","v":{"$error":"#N/A"}},{"$f":"IF(INDIRECT(\"c\" & (VLOOKUP(Rebalance!$D$37,$F$2:$G$48,2,FALSE)+ROW()-2))=Rebalance!$D$37,INDIRECT(\"a\" & (VLOOKUP(Rebalance!$D$37,$F$2:$G$48,2,FALSE)+ROW()-2)),\"\")","v":{"$error":"#N/A"}},{"$f":"IF(INDIRECT(\"c\" & (VLOOKUP(Rebalance!$D$38,$F$2:$G$48,2,FALSE)+ROW()-2))=Rebalance!$D$38,INDIRECT(\"a\" & (VLOOKUP(Rebalance!$D$38,$F$2:$G$48,2,FALSE)+ROW()-2)),\"\")","v":{"$error":"#N/A"}},{"$f":"IF(INDIRECT(\"c\" & (VLOOKUP(Rebalance!$D$39,$F$2:$G$48,2,FALSE)+ROW()-2))=Rebalance!$D$39,INDIRECT(\"a\" & (VLOOKUP(Rebalance!$D$39,$F$2:$G$48,2,FALSE)+ROW()-2)),\"\")","v":{"$error":"#N/A"}},{"$f":"IF(INDIRECT(\"c\" & (VLOOKUP(Rebalance!$D$40,$F$2:$G$48,2,FALSE)+ROW()-2))=Rebalance!$D$40,INDIRECT(\"a\" & (VLOOKUP(Rebalance!$D$40,$F$2:$G$48,2,FALSE)+ROW()-2)),\"\")","v":{"$error":"#N/A"}},{"$f":"IF(INDIRECT(\"c\" & (VLOOKUP(Rebalance!$D$52,$F$2:$G$48,2,FALSE)+ROW()-2))=Rebalance!$D$52,INDIRECT(\"a\" & (VLOOKUP(Rebalance!$D$52,$F$2:$G$48,2,FALSE)+ROW()-2)),\"\")","v":{"$error":"#N/A"}},{"$f":"IF(INDIRECT(\"c\" & (VLOOKUP(Rebalance!$D$53,$F$2:$G$48,2,FALSE)+ROW()-2))=Rebalance!$D$53,INDIRECT(\"a\" & (VLOOKUP(Rebalance!$D$53,$F$2:$G$48,2,FALSE)+ROW()-2)),\"\")","v":{"$error":"#N/A"}},{"$f":"IF(INDIRECT(\"c\" & (VLOOKUP(Rebalance!$D$54,$F$2:$G$48,2,FALSE)+ROW()-2))=Rebalance!$D$54,INDIRECT(\"a\" & (VLOOKUP(Rebalance!$D$54,$F$2:$G$48,2,FALSE)+ROW()-2)),\"\")","v":{"$error":"#N/A"}},{"$f":"IF(INDIRECT(\"c\" & (VLOOKUP(Rebalance!$D$55,$F$2:$G$48,2,FALSE)+ROW()-2))=Rebalance!$D$55,INDIRECT(\"a\" & (VLOOKUP(Rebalance!$D$55,$F$2:$G$48,2,FALSE)+ROW()-2)),\"\")","v":{"$error":"#N/A"}},{"$f":"IF(INDIRECT(\"c\" & (VLOOKUP(Rebalance!$D$56,$F$2:$G$48,2,FALSE)+ROW()-2))=Rebalance!$D$56,INDIRECT(\"a\" & (VLOOKUP(Rebalance!$D$56,$F$2:$G$48,2,FALSE)+ROW()-2)),\"\")","v":{"$error":"#N/A"}},{"$f":"IF(INDIRECT(\"c\" & (VLOOKUP(Rebalance!$D$57,$F$2:$G$48,2,FALSE)+ROW()-2))=Rebalance!$D$57,INDIRECT(\"a\" & (VLOOKUP(Rebalance!$D$57,$F$2:$G$48,2,FALSE)+ROW()-2)),\"\")","v":{"$error":"#N/A"}},{"$f":"IF(INDIRECT(\"c\" & (VLOOKUP(Rebalance!$D$58,$F$2:$G$48,2,FALSE)+ROW()-2))=Rebalance!$D$58,INDIRECT(\"a\" & (VLOOKUP(Rebalance!$D$58,$F$2:$G$48,2,FALSE)+ROW()-2)),\"\")","v":{"$error":"#N/A"}},{"$f":"IF(INDIRECT(\"c\" & (VLOOKUP(Rebalance!$D$59,$F$2:$G$48,2,FALSE)+ROW()-2))=Rebalance!$D$59,INDIRECT(\"a\" & (VLOOKUP(Rebalance!$D$59,$F$2:$G$48,2,FALSE)+ROW()-2)),\"\")","v":{"$error":"#N/A"}},{"$f":"IF(INDIRECT(\"c\" & (VLOOKUP(Rebalance!$D$60,$F$2:$G$48,2,FALSE)+ROW()-2))=Rebalance!$D$60,INDIRECT(\"a\" & (VLOOKUP(Rebalance!$D$60,$F$2:$G$48,2,FALSE)+ROW()-2)),\"\")","v":{"$error":"#N/A"}},{"$f":"IF(INDIRECT(\"c\" & (VLOOKUP(Rebalance!$D$61,$F$2:$G$48,2,FALSE)+ROW()-2))=Rebalance!$D$61,INDIRECT(\"a\" & (VLOOKUP(Rebalance!$D$61,$F$2:$G$48,2,FALSE)+ROW()-2)),\"\")","v":{"$error":"#N/A"}},{"$f":"IF(INDIRECT(\"c\" & (VLOOKUP(Rebalance!$D$62,$F$2:$G$48,2,FALSE)+ROW()-2))=Rebalance!$D$62,INDIRECT(\"a\" & (VLOOKUP(Rebalance!$D$62,$F$2:$G$48,2,FALSE)+ROW()-2)),\"\")","v":{"$error":"#N/A"}},{"$f":"IF(INDIRECT(\"c\" & (VLOOKUP(Rebalance!$D$63,$F$2:$G$48,2,FALSE)+ROW()-2))=Rebalance!$D$63,INDIRECT(\"a\" & (VLOOKUP(Rebalance!$D$63,$F$2:$G$48,2,FALSE)+ROW()-2)),\"\")","v":{"$error":"#N/A"}},{"$f":"IF(INDIRECT(\"c\" & (VLOOKUP(Rebalance!$D$64,$F$2:$G$48,2,FALSE)+ROW()-2))=Rebalance!$D$64,INDIRECT(\"a\" & (VLOOKUP(Rebalance!$D$64,$F$2:$G$48,2,FALSE)+ROW()-2)),\"\")","v":{"$error":"#N/A"}},{"$f":"IF(INDIRECT(\"c\" & (VLOOKUP(Rebalance!$D$65,$F$2:$G$48,2,FALSE)+ROW()-2))=Rebalance!$D$65,INDIRECT(\"a\" & (VLOOKUP(Rebalance!$D$65,$F$2:$G$48,2,FALSE)+ROW()-2)),\"\")","v":{"$error":"#N/A"}},{"$f":"IF(INDIRECT(\"c\" & (VLOOKUP(Rebalance!$D$66,$F$2:$G$48,2,FALSE)+ROW()-2))=Rebalance!$D$66,INDIRECT(\"a\" & (VLOOKUP(Rebalance!$D$66,$F$2:$G$48,2,FALSE)+ROW()-2)),\"\")","v":{"$error":"#N/A"}}]
[null,null,null,{"$f":"ROW()","v":593},null,null,{"$f":"VLOOKUP(F593,$C$2:$D$599,2,FALSE)","v":{"$error":"#N/A"}},{"$f":"IF(INDIRECT(\"c\" & (VLOOKUP(Rebalance!$D$26,$F$2:$G$48,2,FALSE)+ROW()-2))=Rebalance!$D$26,INDIRECT(\"a\" & (VLOOKUP(Rebalance!$D$26,$F$2:$G$48,2,FALSE)+ROW()-2)),\"\")","v":{"$error":"#N/A"}},{"$f":"IF(INDIRECT(\"c\" & (VLOOKUP(Rebalance!$D$27,$F$2:$G$48,2,FALSE)+ROW()-2))=Rebalance!$D$27,INDIRECT(\"a\" & (VLOOKUP(Rebalance!$D$27,$F$2:$G$48,2,FALSE)+ROW()-2)),\"\")","v":{"$error":"#N/A"}},{"$f":"IF(INDIRECT(\"c\" & (VLOOKUP(Rebalance!$D$28,$F$2:$G$48,2,FALSE)+ROW()-2))=Rebalance!$D$28,INDIRECT(\"a\" & (VLOOKUP(Rebalance!$D$28,$F$2:$G$48,2,FALSE)+ROW()-2)),\"\")","v":{"$error":"#N/A"}},{"$f":"IF(INDIRECT(\"c\" & (VLOOKUP(Rebalance!$D$29,$F$2:$G$48,2,FALSE)+ROW()-2))=Rebalance!$D$29,INDIRECT(\"a\" & (VLOOKUP(Rebalance!$D$29,$F$2:$G$48,2,FALSE)+ROW()-2)),\"\")","v":{"$error":"#N/A"}},{"$f":"IF(INDIRECT(\"c\" & (VLOOKUP(Rebalance!$D$30,$F$2:$G$48,2,FALSE)+ROW()-2))=Rebalance!$D$30,INDIRECT(\"a\" & (VLOOKUP(Rebalance!$D$30,$F$2:$G$48,2,FALSE)+ROW()-2)),\"\")","v":{"$error":"#N/A"}},{"$f":"IF(INDIRECT(\"c\" & (VLOOKUP(Rebalance!$D$31,$F$2:$G$48,2,FALSE)+ROW()-2))=Rebalance!$D$31,INDIRECT(\"a\" & (VLOOKUP(Rebalance!$D$31,$F$2:$G$48,2,FALSE)+ROW()-2)),\"\")","v":{"$error":"#N/A"}},{"$f":"IF(INDIRECT(\"c\" & (VLOOKUP(Rebalance!$D$32,$F$2:$G$48,2,FALSE)+ROW()-2))=Rebalance!$D$32,INDIRECT(\"a\" & (VLOOKUP(Rebalance!$D$32,$F$2:$G$48,2,FALSE)+ROW()-2)),\"\")","v":{"$error":"#N/A"}},{"$f":"IF(INDIRECT(\"c\" & (VLOOKUP(Rebalance!$D$33,$F$2:$G$48,2,FALSE)+ROW()-2))=Rebalance!$D$33,INDIRECT(\"a\" & (VLOOKUP(Rebalance!$D$33,$F$2:$G$48,2,FALSE)+ROW()-2)),\"\")","v":{"$error":"#N/A"}},{"$f":"IF(INDIRECT(\"c\" & (VLOOKUP(Rebalance!$D$34,$F$2:$G$48,2,FALSE)+ROW()-2))=Rebalance!$D$34,INDIRECT(\"a\" & (VLOOKUP(Rebalance!$D$34,$F$2:$G$48,2,FALSE)+ROW()-2)),\"\")","v":{"$error":"#N/A"}},{"$f":"IF(INDIRECT(\"c\" & (VLOOKUP(Rebalance!$D$35,$F$2:$G$48,2,FALSE)+ROW()-2))=Rebalance!$D$35,INDIRECT(\"a\" & (VLOOKUP(Rebalance!$D$35,$F$2:$G$48,2,FALSE)+ROW()-2)),\"\")","v":{"$error":"#N/A"}},{"$f":"IF(INDIRECT(\"c\" & (VLOOKUP(Rebalance!$D$36,$F$2:$G$48,2,FALSE)+ROW()-2))=Rebalance!$D$36,INDIRECT(\"a\" & (VLOOKUP(Rebalance!$D$36,$F$2:$G$48,2,FALSE)+ROW()-2)),\"\")","v":{"$error":"#N/A"}},{"$f":"IF(INDIRECT(\"c\" & (VLOOKUP(Rebalance!$D$37,$F$2:$G$48,2,FALSE)+ROW()-2))=Rebalance!$D$37,INDIRECT(\"a\" & (VLOOKUP(Rebalance!$D$37,$F$2:$G$48,2,FALSE)+ROW()-2)),\"\")","v":{"$error":"#N/A"}},{"$f":"IF(INDIRECT(\"c\" & (VLOOKUP(Rebalance!$D$38,$F$2:$G$48,2,FALSE)+ROW()-2))=Rebalance!$D$38,INDIRECT(\"a\" & (VLOOKUP(Rebalance!$D$38,$F$2:$G$48,2,FALSE)+ROW()-2)),\"\")","v":{"$error":"#N/A"}},{"$f":"IF(INDIRECT(\"c\" & (VLOOKUP(Rebalance!$D$39,$F$2:$G$48,2,FALSE)+ROW()-2))=Rebalance!$D$39,INDIRECT(\"a\" & (VLOOKUP(Rebalance!$D$39,$F$2:$G$48,2,FALSE)+ROW()-2)),\"\")","v":{"$error":"#N/A"}},{"$f":"IF(INDIRECT(\"c\" & (VLOOKUP(Rebalance!$D$40,$F$2:$G$48,2,FALSE)+ROW()-2))=Rebalance!$D$40,INDIRECT(\"a\" & (VLOOKUP(Rebalance!$D$40,$F$2:$G$48,2,FALSE)+ROW()-2)),\"\")","v":{"$error":"#N/A"}},{"$f":"IF(INDIRECT(\"c\" & (VLOOKUP(Rebalance!$D$52,$F$2:$G$48,2,FALSE)+ROW()-2))=Rebalance!$D$52,INDIRECT(\"a\" & (VLOOKUP(Rebalance!$D$52,$F$2:$G$48,2,FALSE)+ROW()-2)),\"\")","v":{"$error":"#N/A"}},{"$f":"IF(INDIRECT(\"c\" & (VLOOKUP(Rebalance!$D$53,$F$2:$G$48,2,FALSE)+ROW()-2))=Rebalance!$D$53,INDIRECT(\"a\" & (VLOOKUP(Rebalance!$D$53,$F$2:$G$48,2,FALSE)+ROW()-2)),\"\")","v":{"$error":"#N/A"}},{"$f":"IF(INDIRECT(\"c\" & (VLOOKUP(Rebalance!$D$54,$F$2:$G$48,2,FALSE)+ROW()-2))=Rebalance!$D$54,INDIRECT(\"a\" & (VLOOKUP(Rebalance!$D$54,$F$2:$G$48,2,FALSE)+ROW()-2)),\"\")","v":{"$error":"#N/A"}},{"$f":"IF(INDIRECT(\"c\" & (VLOOKUP(Rebalance!$D$55,$F$2:$G$48,2,FALSE)+ROW()-2))=Rebalance!$D$55,INDIRECT(\"a\" & (VLOOKUP(Rebalance!$D$55,$F$2:$G$48,2,FALSE)+ROW()-2)),\"\")","v":{"$error":"#N/A"}},{"$f":"IF(INDIRECT(\"c\" & (VLOOKUP(Rebalance!$D$56,$F$2:$G$48,2,FALSE)+ROW()-2))=Rebalance!$D$56,INDIRECT(\"a\" & (VLOOKUP(Rebalance!$D$56,$F$2:$G$48,2,FALSE)+ROW()-2)),\"\")","v":{"$error":"#N/A"}},{"$f":"IF(INDIRECT(\"c\" & (VLOOKUP(Rebalance!$D$57,$F$2:$G$48,2,FALSE)+ROW()-2))=Rebalance!$D$57,INDIRECT(\"a\" & (VLOOKUP(Rebalance!$D$57,$F$2:$G$48,2,FALSE)+ROW()-2)),\"\")","v":{"$error":"#N/A"}},{"$f":"IF(INDIRECT(\"c\" & (VLOOKUP(Rebalance!$D$58,$F$2:$G$48,2,FALSE)+ROW()-2))=Rebalance!$D$58,INDIRECT(\"a\" & (VLOOKUP(Rebalance!$D$58,$F$2:$G$48,2,FALSE)+ROW()-2)),\"\")","v":{"$error":"#N/A"}},{"$f":"IF(INDIRECT(\"c\" & (VLOOKUP(Rebalance!$D$59,$F$2:$G$48,2,FALSE)+ROW()-2))=Rebalance!$D$59,INDIRECT(\"a\" & (VLOOKUP(Rebalance!$D$59,$F$2:$G$48,2,FALSE)+ROW()-2)),\"\")","v":{"$error":"#N/A"}},{"$f":"IF(INDIRECT(\"c\" & (VLOOKUP(Rebalance!$D$60,$F$2:$G$48,2,FALSE)+ROW()-2))=Rebalance!$D$60,INDIRECT(\"a\" & (VLOOKUP(Rebalance!$D$60,$F$2:$G$48,2,FALSE)+ROW()-2)),\"\")","v":{"$error":"#N/A"}},{"$f":"IF(INDIRECT(\"c\" & (VLOOKUP(Rebalance!$D$61,$F$2:$G$48,2,FALSE)+ROW()-2))=Rebalance!$D$61,INDIRECT(\"a\" & (VLOOKUP(Rebalance!$D$61,$F$2:$G$48,2,FALSE)+ROW()-2)),\"\")","v":{"$error":"#N/A"}},{"$f":"IF(INDIRECT(\"c\" & (VLOOKUP(Rebalance!$D$62,$F$2:$G$48,2,FALSE)+ROW()-2))=Rebalance!$D$62,INDIRECT(\"a\" & (VLOOKUP(Rebalance!$D$62,$F$2:$G$48,2,FALSE)+ROW()-2)),\"\")","v":{"$error":"#N/A"}},{"$f":"IF(INDIRECT(\"c\" & (VLOOKUP(Rebalance!$D$63,$F$2:$G$48,2,FALSE)+ROW()-2))=Rebalance!$D$63,INDIRECT(\"a\" & (VLOOKUP(Rebalance!$D$63,$F$2:$G$48,2,FALSE)+ROW()-2)),\"\")","v":{"$error":"#N/A"}},{"$f":"IF(INDIRECT(\"c\" & (VLOOKUP(Rebalance!$D$64,$F$2:$G$48,2,FALSE)+ROW()-2))=Rebalance!$D$64,INDIRECT(\"a\" & (VLOOKUP(Rebalance!$D$64,$F$2:$G$48,2,FALSE)+ROW()-2)),\"\")","v":{"$error":"#N/A"}},{"$f":"IF(INDIRECT(\"c\" & (VLOOKUP(Rebalance!$D$65,$F$2:$G$48,2,FALSE)+ROW()-2))=Rebalance!$D$65,INDIRECT(\"a\" & (VLOOKUP(Rebalance!$D$65,$F$2:$G$48,2,FALSE)+ROW()-2)),\"\")","v":{"$error":"#N/A"}},{"$f":"IF(INDIRECT(\"c\" & (VLOOKUP(Rebalance!$D$66,$F$2:$G$48,2,FALSE)+ROW()-2))=Rebalance!$D$66,INDIRECT(\"a\" & (VLOOKUP(Rebalance!$D$66,$F$2:$G$48,2,FALSE)+ROW()-2)),\"\")","v":{"$error":"#N/A"}}]
[null,null,null,{"$f":"ROW()","v":594},null,null,{"$f":"VLOOKUP(F594,$C$2:$D$599,2,FALSE)","v":{"$error":"#N/A"}},{"$f":"IF(INDIRECT(\"c\" & (VLOOKUP(Rebalance!$D$26,$F$2:$G$48,2,FALSE)+ROW()-2))=Rebalance!$D$26,INDIRECT(\"a\" & (VLOOKUP(Rebalance!$D$26,$F$2:$G$48,2,FALSE)+ROW()-2)),\"\")","v":{"$error":"#N/A"}},{"$f":"IF(INDIRECT(\"c\" & (VLOOKUP(Rebalance!$D$27,$F$2:$G$48,2,FALSE)+ROW()-2))=Rebalance!$D$27,INDIRECT(\"a\" & (VLOOKUP(Rebalance!$D$27,$F$2:$G$48,2,FALSE)+ROW()-2)),\"\")","v":{"$error":"#N/A"}},{"$f":"IF(INDIRECT(\"c\" & (VLOOKUP(Rebalance!$D$28,$F$2:$G$48,2,FALSE)+ROW()-2))=Rebalance!$D$28,INDIRECT(\"a\" & (VLOOKUP(Rebalance!$D$28,$F$2:$G$48,2,FALSE)+ROW()-2)),\"\")","v":{"$error":"#N/A"}},{"$f":"IF(INDIRECT(\"c\" & (VLOOKUP(Rebalance!$D$29,$F$2:$G$48,2,FALSE)+ROW()-2))=Rebalance!$D$29,INDIRECT(\"a\" & (VLOOKUP(Rebalance!$D$29,$F$2:$G$48,2,FALSE)+ROW()-2)),\"\")","v":{"$error":"#N/A"}},{"$f":"IF(INDIRECT(\"c\" & (VLOOKUP(Rebalance!$D$30,$F$2:$G$48,2,FALSE)+ROW()-2))=Rebalance!$D$30,INDIRECT(\"a\" & (VLOOKUP(Rebalance!$D$30,$F$2:$G$48,2,FALSE)+ROW()-2)),\"\")","v":{"$error":"#N/A"}},{"$f":"IF(INDIRECT(\"c\" & (VLOOKUP(Rebalance!$D$31,$F$2:$G$48,2,FALSE)+ROW()-2))=Rebalance!$D$31,INDIRECT(\"a\" & (VLOOKUP(Rebalance!$D$31,$F$2:$G$48,2,FALSE)+ROW()-2)),\"\")","v":{"$error":"#N/A"}},{"$f":"IF(INDIRECT(\"c\" & (VLOOKUP(Rebalance!$D$32,$F$2:$G$48,2,FALSE)+ROW()-2))=Rebalance!$D$32,INDIRECT(\"a\" & (VLOOKUP(Rebalance!$D$32,$F$2:$G$48,2,FALSE)+ROW()-2)),\"\")","v":{"$error":"#N/A"}},{"$f":"IF(INDIRECT(\"c\" & (VLOOKUP(Rebalance!$D$33,$F$2:$G$48,2,FALSE)+ROW()-2))=Rebalance!$D$33,INDIRECT(\"a\" & (VLOOKUP(Rebalance!$D$33,$F$2:$G$48,2,FALSE)+ROW()-2)),\"\")","v":{"$error":"#N/A"}},{"$f":"IF(INDIRECT(\"c\" & (VLOOKUP(Rebalance!$D$34,$F$2:$G$48,2,FALSE)+ROW()-2))=Rebalance!$D$34,INDIRECT(\"a\" & (VLOOKUP(Rebalance!$D$34,$F$2:$G$48,2,FALSE)+ROW()-2)),\"\")","v":{"$error":"#N/A"}},{"$f":"IF(INDIRECT(\"c\" & (VLOOKUP(Rebalance!$D$35,$F$2:$G$48,2,FALSE)+ROW()-2))=Rebalance!$D$35,INDIRECT(\"a\" & (VLOOKUP(Rebalance!$D$35,$F$2:$G$48,2,FALSE)+ROW()-2)),\"\")","v":{"$error":"#N/A"}},{"$f":"IF(INDIRECT(\"c\" & (VLOOKUP(Rebalance!$D$36,$F$2:$G$48,2,FALSE)+ROW()-2))=Rebalance!$D$36,INDIRECT(\"a\" & (VLOOKUP(Rebalance!$D$36,$F$2:$G$48,2,FALSE)+ROW()-2)),\"\")","v":{"$error":"#N/A"}},{"$f":"IF(INDIRECT(\"c\" & (VLOOKUP(Rebalance!$D$37,$F$2:$G$48,2,FALSE)+ROW()-2))=Rebalance!$D$37,INDIRECT(\"a\" & (VLOOKUP(Rebalance!$D$37,$F$2:$G$48,2,FALSE)+ROW()-2)),\"\")","v":{"$error":"#N/A"}},{"$f":"IF(INDIRECT(\"c\" & (VLOOKUP(Rebalance!$D$38,$F$2:$G$48,2,FALSE)+ROW()-2))=Rebalance!$D$38,INDIRECT(\"a\" & (VLOOKUP(Rebalance!$D$38,$F$2:$G$48,2,FALSE)+ROW()-2)),\"\")","v":{"$error":"#N/A"}},{"$f":"IF(INDIRECT(\"c\" & (VLOOKUP(Rebalance!$D$39,$F$2:$G$48,2,FALSE)+ROW()-2))=Rebalance!$D$39,INDIRECT(\"a\" & (VLOOKUP(Rebalance!$D$39,$F$2:$G$48,2,FALSE)+ROW()-2)),\"\")","v":{"$error":"#N/A"}},{"$f":"IF(INDIRECT(\"c\" & (VLOOKUP(Rebalance!$D$40,$F$2:$G$48,2,FALSE)+ROW()-2))=Rebalance!$D$40,INDIRECT(\"a\" & (VLOOKUP(Rebalance!$D$40,$F$2:$G$48,2,FALSE)+ROW()-2)),\"\")","v":{"$error":"#N/A"}},{"$f":"IF(INDIRECT(\"c\" & (VLOOKUP(Rebalance!$D$52,$F$2:$G$48,2,FALSE)+ROW()-2))=Rebalance!$D$52,INDIRECT(\"a\" & (VLOOKUP(Rebalance!$D$52,$F$2:$G$48,2,FALSE)+ROW()-2)),\"\")","v":{"$error":"#N/A"}},{"$f":"IF(INDIRECT(\"c\" & (VLOOKUP(Rebalance!$D$53,$F$2:$G$48,2,FALSE)+ROW()-2))=Rebalance!$D$53,INDIRECT(\"a\" & (VLOOKUP(Rebalance!$D$53,$F$2:$G$48,2,FALSE)+ROW()-2)),\"\")","v":{"$error":"#N/A"}},{"$f":"IF(INDIRECT(\"c\" & (VLOOKUP(Rebalance!$D$54,$F$2:$G$48,2,FALSE)+ROW()-2))=Rebalance!$D$54,INDIRECT(\"a\" & (VLOOKUP(Rebalance!$D$54,$F$2:$G$48,2,FALSE)+ROW()-2)),\"\")","v":{"$error":"#N/A"}},{"$f":"IF(INDIRECT(\"c\" & (VLOOKUP(Rebalance!$D$55,$F$2:$G$48,2,FALSE)+ROW()-2))=Rebalance!$D$55,INDIRECT(\"a\" & (VLOOKUP(Rebalance!$D$55,$F$2:$G$48,2,FALSE)+ROW()-2)),\"\")","v":{"$error":"#N/A"}},{"$f":"IF(INDIRECT(\"c\" & (VLOOKUP(Rebalance!$D$56,$F$2:$G$48,2,FALSE)+ROW()-2))=Rebalance!$D$56,INDIRECT(\"a\" & (VLOOKUP(Rebalance!$D$56,$F$2:$G$48,2,FALSE)+ROW()-2)),\"\")","v":{"$error":"#N/A"}},{"$f":"IF(INDIRECT(\"c\" & (VLOOKUP(Rebalance!$D$57,$F$2:$G$48,2,FALSE)+ROW()-2))=Rebalance!$D$57,INDIRECT(\"a\" & (VLOOKUP(Rebalance!$D$57,$F$2:$G$48,2,FALSE)+ROW()-2)),\"\")","v":{"$error":"#N/A"}},{"$f":"IF(INDIRECT(\"c\" & (VLOOKUP(Rebalance!$D$58,$F$2:$G$48,2,FALSE)+ROW()-2))=Rebalance!$D$58,INDIRECT(\"a\" & (VLOOKUP(Rebalance!$D$58,$F$2:$G$48,2,FALSE)+ROW()-2)),\"\")","v":{"$error":"#N/A"}},{"$f":"IF(INDIRECT(\"c\" & (VLOOKUP(Rebalance!$D$59,$F$2:$G$48,2,FALSE)+ROW()-2))=Rebalance!$D$59,INDIRECT(\"a\" & (VLOOKUP(Rebalance!$D$59,$F$2:$G$48,2,FALSE)+ROW()-2)),\"\")","v":{"$error":"#N/A"}},{"$f":"IF(INDIRECT(\"c\" & (VLOOKUP(Rebalance!$D$60,$F$2:$G$48,2,FALSE)+ROW()-2))=Rebalance!$D$60,INDIRECT(\"a\" & (VLOOKUP(Rebalance!$D$60,$F$2:$G$48,2,FALSE)+ROW()-2)),\"\")","v":{"$error":"#N/A"}},{"$f":"IF(INDIRECT(\"c\" & (VLOOKUP(Rebalance!$D$61,$F$2:$G$48,2,FALSE)+ROW()-2))=Rebalance!$D$61,INDIRECT(\"a\" & (VLOOKUP(Rebalance!$D$61,$F$2:$G$48,2,FALSE)+ROW()-2)),\"\")","v":{"$error":"#N/A"}},{"$f":"IF(INDIRECT(\"c\" & (VLOOKUP(Rebalance!$D$62,$F$2:$G$48,2,FALSE)+ROW()-2))=Rebalance!$D$62,INDIRECT(\"a\" & (VLOOKUP(Rebalance!$D$62,$F$2:$G$48,2,FALSE)+ROW()-2)),\"\")","v":{"$error":"#N/A"}},{"$f":"IF(INDIRECT(\"c\" & (VLOOKUP(Rebalance!$D$63,$F$2:$G$48,2,FALSE)+ROW()-2))=Rebalance!$D$63,INDIRECT(\"a\" & (VLOOKUP(Rebalance!$D$63,$F$2:$G$48,2,FALSE)+ROW()-2)),\"\")","v":{"$error":"#N/A"}},{"$f":"IF(INDIRECT(\"c\" & (VLOOKUP(Rebalance!$D$64,$F$2:$G$48,2,FALSE)+ROW()-2))=Rebalance!$D$64,INDIRECT(\"a\" & (VLOOKUP(Rebalance!$D$64,$F$2:$G$48,2,FALSE)+ROW()-2)),\"\")","v":{"$error":"#N/A"}},{"$f":"IF(INDIRECT(\"c\" & (VLOOKUP(Rebalance!$D$65,$F$2:$G$48,2,FALSE)+ROW()-2))=Rebalance!$D$65,INDIRECT(\"a\" & (VLOOKUP(Rebalance!$D$65,$F$2:$G$48,2,FALSE)+ROW()-2)),\"\")","v":{"$error":"#N/A"}},{"$f":"IF(INDIRECT(\"c\" & (VLOOKUP(Rebalance!$D$66,$F$2:$G$48,2,FALSE)+ROW()-2))=Rebalance!$D$66,INDIRECT(\"a\" & (VLOOKUP(Rebalance!$D$66,$F$2:$G$48,2,FALSE)+ROW()-2)),\"\")","v":{"$error":"#N/A"}}]
[null,null,null,{"$f":"ROW()","v":595},null,null,{"$f":"VLOOKUP(F595,$C$2:$D$599,2,FALSE)","v":{"$error":"#N/A"}},{"$f":"IF(INDIRECT(\"c\" & (VLOOKUP(Rebalance!$D$26,$F$2:$G$48,2,FALSE)+ROW()-2))=Rebalance!$D$26,INDIRECT(\"a\" & (VLOOKUP(Rebalance!$D$26,$F$2:$G$48,2,FALSE)+ROW()-2)),\"\")","v":{"$error":"#N/A"}},{"$f":"IF(INDIRECT(\"c\" & (VLOOKUP(Rebalance!$D$27,$F$2:$G$48,2,FALSE)+ROW()-2))=Rebalance!$D$27,INDIRECT(\"a\" & (VLOOKUP(Rebalance!$D$27,$F$2:$G$48,2,FALSE)+ROW()-2)),\"\")","v":{"$error":"#N/A"}},{"$f":"IF(INDIRECT(\"c\" & (VLOOKUP(Rebalance!$D$28,$F$2:$G$48,2,FALSE)+ROW()-2))=Rebalance!$D$28,INDIRECT(\"a\" & (VLOOKUP(Rebalance!$D$28,$F$2:$G$48,2,FALSE)+ROW()-2)),\"\")","v":{"$error":"#N/A"}},{"$f":"IF(INDIRECT(\"c\" & (VLOOKUP(Rebalance!$D$29,$F$2:$G$48,2,FALSE)+ROW()-2))=Rebalance!$D$29,INDIRECT(\"a\" & (VLOOKUP(Rebalance!$D$29,$F$2:$G$48,2,FALSE)+ROW()-2)),\"\")","v":{"$error":"#N/A"}},{"$f":"IF(INDIRECT(\"c\" & (VLOOKUP(Rebalance!$D$30,$F$2:$G$48,2,FALSE)+ROW()-2))=Rebalance!$D$30,INDIRECT(\"a\" & (VLOOKUP(Rebalance!$D$30,$F$2:$G$48,2,FALSE)+ROW()-2)),\"\")","v":{"$error":"#N/A"}},{"$f":"IF(INDIRECT(\"c\" & (VLOOKUP(Rebalance!$D$31,$F$2:$G$48,2,FALSE)+ROW()-2))=Rebalance!$D$31,INDIRECT(\"a\" & (VLOOKUP(Rebalance!$D$31,$F$2:$G$48,2,FALSE)+ROW()-2)),\"\")","v":{"$error":"#N/A"}},{"$f":"IF(INDIRECT(\"c\" & (VLOOKUP(Rebalance!$D$32,$F$2:$G$48,2,FALSE)+ROW()-2))=Rebalance!$D$32,INDIRECT(\"a\" & (VLOOKUP(Rebalance!$D$32,$F$2:$G$48,2,FALSE)+ROW()-2)),\"\")","v":{"$error":"#N/A"}},{"$f":"IF(INDIRECT(\"c\" & (VLOOKUP(Rebalance!$D$33,$F$2:$G$48,2,FALSE)+ROW()-2))=Rebalance!$D$33,INDIRECT(\"a\" & (VLOOKUP(Rebalance!$D$33,$F$2:$G$48,2,FALSE)+ROW()-2)),\"\")","v":{"$error":"#N/A"}},{"$f":"IF(INDIRECT(\"c\" & (VLOOKUP(Rebalance!$D$34,$F$2:$G$48,2,FALSE)+ROW()-2))=Rebalance!$D$34,INDIRECT(\"a\" & (VLOOKUP(Rebalance!$D$34,$F$2:$G$48,2,FALSE)+ROW()-2)),\"\")","v":{"$error":"#N/A"}},{"$f":"IF(INDIRECT(\"c\" & (VLOOKUP(Rebalance!$D$35,$F$2:$G$48,2,FALSE)+ROW()-2))=Rebalance!$D$35,INDIRECT(\"a\" & (VLOOKUP(Rebalance!$D$35,$F$2:$G$48,2,FALSE)+ROW()-2)),\"\")","v":{"$error":"#N/A"}},{"$f":"IF(INDIRECT(\"c\" & (VLOOKUP(Rebalance!$D$36,$F$2:$G$48,2,FALSE)+ROW()-2))=Rebalance!$D$36,INDIRECT(\"a\" & (VLOOKUP(Rebalance!$D$36,$F$2:$G$48,2,FALSE)+ROW()-2)),\"\")","v":{"$error":"#N/A"}},{"$f":"IF(INDIRECT(\"c\" & (VLOOKUP(Rebalance!$D$37,$F$2:$G$48,2,FALSE)+ROW()-2))=Rebalance!$D$37,INDIRECT(\"a\" & (VLOOKUP(Rebalance!$D$37,$F$2:$G$48,2,FALSE)+ROW()-2)),\"\")","v":{"$error":"#N/A"}},{"$f":"IF(INDIRECT(\"c\" & (VLOOKUP(Rebalance!$D$38,$F$2:$G$48,2,FALSE)+ROW()-2))=Rebalance!$D$38,INDIRECT(\"a\" & (VLOOKUP(Rebalance!$D$38,$F$2:$G$48,2,FALSE)+ROW()-2)),\"\")","v":{"$error":"#N/A"}},{"$f":"IF(INDIRECT(\"c\" & (VLOOKUP(Rebalance!$D$39,$F$2:$G$48,2,FALSE)+ROW()-2))=Rebalance!$D$39,INDIRECT(\"a\" & (VLOOKUP(Rebalance!$D$39,$F$2:$G$48,2,FALSE)+ROW()-2)),\"\")","v":{"$error":"#N/A"}},{"$f":"IF(INDIRECT(\"c\" & (VLOOKUP(Rebalance!$D$40,$F$2:$G$48,2,FALSE)+ROW()-2))=Rebalance!$D$40,INDIRECT(\"a\" & (VLOOKUP(Rebalance!$D$40,$F$2:$G$48,2,FALSE)+ROW()-2)),\"\")","v":{"$error":"#N/A"}},{"$f":"IF(INDIRECT(\"c\" & (VLOOKUP(Rebalance!$D$52,$F$2:$G$48,2,FALSE)+ROW()-2))=Rebalance!$D$52,INDIRECT(\"a\" & (VLOOKUP(Rebalance!$D$52,$F$2:$G$48,2,FALSE)+ROW()-2)),\"\")","v":{"$error":"#N/A"}},{"$f":"IF(INDIRECT(\"c\" & (VLOOKUP(Rebalance!$D$53,$F$2:$G$48,2,FALSE)+ROW()-2))=Rebalance!$D$53,INDIRECT(\"a\" & (VLOOKUP(Rebalance!$D$53,$F$2:$G$48,2,FALSE)+ROW()-2)),\"\")","v":{"$error":"#N/A"}},{"$f":"IF(INDIRECT(\"c\" & (VLOOKUP(Rebalance!$D$54,$F$2:$G$48,2,FALSE)+ROW()-2))=Rebalance!$D$54,INDIRECT(\"a\" & (VLOOKUP(Rebalance!$D$54,$F$2:$G$48,2,FALSE)+ROW()-2)),\"\")","v":{"$error":"#N/A"}},{"$f":"IF(INDIRECT(\"c\" & (VLOOKUP(Rebalance!$D$55,$F$2:$G$48,2,FALSE)+ROW()-2))=Rebalance!$D$55,INDIRECT(\"a\" & (VLOOKUP(Rebalance!$D$55,$F$2:$G$48,2,FALSE)+ROW()-2)),\"\")","v":{"$error":"#N/A"}},{"$f":"IF(INDIRECT(\"c\" & (VLOOKUP(Rebalance!$D$56,$F$2:$G$48,2,FALSE)+ROW()-2))=Rebalance!$D$56,INDIRECT(\"a\" & (VLOOKUP(Rebalance!$D$56,$F$2:$G$48,2,FALSE)+ROW()-2)),\"\")","v":{"$error":"#N/A"}},{"$f":"IF(INDIRECT(\"c\" & (VLOOKUP(Rebalance!$D$57,$F$2:$G$48,2,FALSE)+ROW()-2))=Rebalance!$D$57,INDIRECT(\"a\" & (VLOOKUP(Rebalance!$D$57,$F$2:$G$48,2,FALSE)+ROW()-2)),\"\")","v":{"$error":"#N/A"}},{"$f":"IF(INDIRECT(\"c\" & (VLOOKUP(Rebalance!$D$58,$F$2:$G$48,2,FALSE)+ROW()-2))=Rebalance!$D$58,INDIRECT(\"a\" & (VLOOKUP(Rebalance!$D$58,$F$2:$G$48,2,FALSE)+ROW()-2)),\"\")","v":{"$error":"#N/A"}},{"$f":"IF(INDIRECT(\"c\" & (VLOOKUP(Rebalance!$D$59,$F$2:$G$48,2,FALSE)+ROW()-2))=Rebalance!$D$59,INDIRECT(\"a\" & (VLOOKUP(Rebalance!$D$59,$F$2:$G$48,2,FALSE)+ROW()-2)),\"\")","v":{"$error":"#N/A"}},{"$f":"IF(INDIRECT(\"c\" & (VLOOKUP(Rebalance!$D$60,$F$2:$G$48,2,FALSE)+ROW()-2))=Rebalance!$D$60,INDIRECT(\"a\" & (VLOOKUP(Rebalance!$D$60,$F$2:$G$48,2,FALSE)+ROW()-2)),\"\")","v":{"$error":"#N/A"}},{"$f":"IF(INDIRECT(\"c\" & (VLOOKUP(Rebalance!$D$61,$F$2:$G$48,2,FALSE)+ROW()-2))=Rebalance!$D$61,INDIRECT(\"a\" & (VLOOKUP(Rebalance!$D$61,$F$2:$G$48,2,FALSE)+ROW()-2)),\"\")","v":{"$error":"#N/A"}},{"$f":"IF(INDIRECT(\"c\" & (VLOOKUP(Rebalance!$D$62,$F$2:$G$48,2,FALSE)+ROW()-2))=Rebalance!$D$62,INDIRECT(\"a\" & (VLOOKUP(Rebalance!$D$62,$F$2:$G$48,2,FALSE)+ROW()-2)),\"\")","v":{"$error":"#N/A"}},{"$f":"IF(INDIRECT(\"c\" & (VLOOKUP(Rebalance!$D$63,$F$2:$G$48,2,FALSE)+ROW()-2))=Rebalance!$D$63,INDIRECT(\"a\" & (VLOOKUP(Rebalance!$D$63,$F$2:$G$48,2,FALSE)+ROW()-2)),\"\")","v":{"$error":"#N/A"}},{"$f":"IF(INDIRECT(\"c\" & (VLOOKUP(Rebalance!$D$64,$F$2:$G$48,2,FALSE)+ROW()-2))=Rebalance!$D$64,INDIRECT(\"a\" & (VLOOKUP(Rebalance!$D$64,$F$2:$G$48,2,FALSE)+ROW()-2)),\"\")","v":{"$error":"#N/A"}},{"$f":"IF(INDIRECT(\"c\" & (VLOOKUP(Rebalance!$D$65,$F$2:$G$48,2,FALSE)+ROW()-2))=Rebalance!$D$65,INDIRECT(\"a\" & (VLOOKUP(Rebalance!$D$65,$F$2:$G$48,2,FALSE)+ROW()-2)),\"\")","v":{"$error":"#N/A"}},{"$f":"IF(INDIRECT(\"c\" & (VLOOKUP(Rebalance!$D$66,$F$2:$G$48,2,FALSE)+ROW()-2))=Rebalance!$D$66,INDIRECT(\"a\" & (VLOOKUP(Rebalance!$D$66,$F$2:$G$48,2,FALSE)+ROW()-2)),\"\")","v":{"$error":"#N/A"}}]
[null,null,null,{"$f":"ROW()","v":596},null,null,{"$f":"VLOOKUP(F596,$C$2:$D$599,2,FALSE)","v":{"$error":"#N/A"}},{"$f":"IF(INDIRECT(\"c\" & (VLOOKUP(Rebalance!$D$26,$F$2:$G$48,2,FALSE)+ROW()-2))=Rebalance!$D$26,INDIRECT(\"a\" & (VLOOKUP(Rebalance!$D$26,$F$2:$G$48,2,FALSE)+ROW()-2)),\"\")","v":{"$error":"#N/A"}},{"$f":"IF(INDIRECT(\"c\" & (VLOOKUP(Rebalance!$D$27,$F$2:$G$48,2,FALSE)+ROW()-2))=Rebalance!$D$27,INDIRECT(\"a\" & (VLOOKUP(Rebalance!$D$27,$F$2:$G$48,2,FALSE)+ROW()-2)),\"\")","v":{"$error":"#N/A"}},{"$f":"IF(INDIRECT(\"c\" & (VLOOKUP(Rebalance!$D$28,$F$2:$G$48,2,FALSE)+ROW()-2))=Rebalance!$D$28,INDIRECT(\"a\" & (VLOOKUP(Rebalance!$D$28,$F$2:$G$48,2,FALSE)+ROW()-2)),\"\")","v":{"$error":"#N/A"}},{"$f":"IF(INDIRECT(\"c\" & (VLOOKUP(Rebalance!$D$29,$F$2:$G$48,2,FALSE)+ROW()-2))=Rebalance!$D$29,INDIRECT(\"a\" & (VLOOKUP(Rebalance!$D$29,$F$2:$G$48,2,FALSE)+ROW()-2)),\"\")","v":{"$error":"#N/A"}},{"$f":"IF(INDIRECT(\"c\" & (VLOOKUP(Rebalance!$D$30,$F$2:$G$48,2,FALSE)+ROW()-2))=Rebalance!$D$30,INDIRECT(\"a\" & (VLOOKUP(Rebalance!$D$30,$F$2:$G$48,2,FALSE)+ROW()-2)),\"\")","v":{"$error":"#N/A"}},{"$f":"IF(INDIRECT(\"c\" & (VLOOKUP(Rebalance!$D$31,$F$2:$G$48,2,FALSE)+ROW()-2))=Rebalance!$D$31,INDIRECT(\"a\" & (VLOOKUP(Rebalance!$D$31,$F$2:$G$48,2,FALSE)+ROW()-2)),\"\")","v":{"$error":"#N/A"}},{"$f":"IF(INDIRECT(\"c\" & (VLOOKUP(Rebalance!$D$32,$F$2:$G$48,2,FALSE)+ROW()-2))=Rebalance!$D$32,INDIRECT(\"a\" & (VLOOKUP(Rebalance!$D$32,$F$2:$G$48,2,FALSE)+ROW()-2)),\"\")","v":{"$error":"#N/A"}},{"$f":"IF(INDIRECT(\"c\" & (VLOOKUP(Rebalance!$D$33,$F$2:$G$48,2,FALSE)+ROW()-2))=Rebalance!$D$33,INDIRECT(\"a\" & (VLOOKUP(Rebalance!$D$33,$F$2:$G$48,2,FALSE)+ROW()-2)),\"\")","v":{"$error":"#N/A"}},{"$f":"IF(INDIRECT(\"c\" & (VLOOKUP(Rebalance!$D$34,$F$2:$G$48,2,FALSE)+ROW()-2))=Rebalance!$D$34,INDIRECT(\"a\" & (VLOOKUP(Rebalance!$D$34,$F$2:$G$48,2,FALSE)+ROW()-2)),\"\")","v":{"$error":"#N/A"}},{"$f":"IF(INDIRECT(\"c\" & (VLOOKUP(Rebalance!$D$35,$F$2:$G$48,2,FALSE)+ROW()-2))=Rebalance!$D$35,INDIRECT(\"a\" & (VLOOKUP(Rebalance!$D$35,$F$2:$G$48,2,FALSE)+ROW()-2)),\"\")","v":{"$error":"#N/A"}},{"$f":"IF(INDIRECT(\"c\" & (VLOOKUP(Rebalance!$D$36,$F$2:$G$48,2,FALSE)+ROW()-2))=Rebalance!$D$36,INDIRECT(\"a\" & (VLOOKUP(Rebalance!$D$36,$F$2:$G$48,2,FALSE)+ROW()-2)),\"\")","v":{"$error":"#N/A"}},{"$f":"IF(INDIRECT(\"c\" & (VLOOKUP(Rebalance!$D$37,$F$2:$G$48,2,FALSE)+ROW()-2))=Rebalance!$D$37,INDIRECT(\"a\" & (VLOOKUP(Rebalance!$D$37,$F$2:$G$48,2,FALSE)+ROW()-2)),\"\")","v":{"$error":"#N/A"}},{"$f":"IF(INDIRECT(\"c\" & (VLOOKUP(Rebalance!$D$38,$F$2:$G$48,2,FALSE)+ROW()-2))=Rebalance!$D$38,INDIRECT(\"a\" & (VLOOKUP(Rebalance!$D$38,$F$2:$G$48,2,FALSE)+ROW()-2)),\"\")","v":{"$error":"#N/A"}},{"$f":"IF(INDIRECT(\"c\" & (VLOOKUP(Rebalance!$D$39,$F$2:$G$48,2,FALSE)+ROW()-2))=Rebalance!$D$39,INDIRECT(\"a\" & (VLOOKUP(Rebalance!$D$39,$F$2:$G$48,2,FALSE)+ROW()-2)),\"\")","v":{"$error":"#N/A"}},{"$f":"IF(INDIRECT(\"c\" & (VLOOKUP(Rebalance!$D$40,$F$2:$G$48,2,FALSE)+ROW()-2))=Rebalance!$D$40,INDIRECT(\"a\" & (VLOOKUP(Rebalance!$D$40,$F$2:$G$48,2,FALSE)+ROW()-2)),\"\")","v":{"$error":"#N/A"}},{"$f":"IF(INDIRECT(\"c\" & (VLOOKUP(Rebalance!$D$52,$F$2:$G$48,2,FALSE)+ROW()-2))=Rebalance!$D$52,INDIRECT(\"a\" & (VLOOKUP(Rebalance!$D$52,$F$2:$G$48,2,FALSE)+ROW()-2)),\"\")","v":{"$error":"#N/A"}},{"$f":"IF(INDIRECT(\"c\" & (VLOOKUP(Rebalance!$D$53,$F$2:$G$48,2,FALSE)+ROW()-2))=Rebalance!$D$53,INDIRECT(\"a\" & (VLOOKUP(Rebalance!$D$53,$F$2:$G$48,2,FALSE)+ROW()-2)),\"\")","v":{"$error":"#N/A"}},{"$f":"IF(INDIRECT(\"c\" & (VLOOKUP(Rebalance!$D$54,$F$2:$G$48,2,FALSE)+ROW()-2))=Rebalance!$D$54,INDIRECT(\"a\" & (VLOOKUP(Rebalance!$D$54,$F$2:$G$48,2,FALSE)+ROW()-2)),\"\")","v":{"$error":"#N/A"}},{"$f":"IF(INDIRECT(\"c\" & (VLOOKUP(Rebalance!$D$55,$F$2:$G$48,2,FALSE)+ROW()-2))=Rebalance!$D$55,INDIRECT(\"a\" & (VLOOKUP(Rebalance!$D$55,$F$2:$G$48,2,FALSE)+ROW()-2)),\"\")","v":{"$error":"#N/A"}},{"$f":"IF(INDIRECT(\"c\" & (VLOOKUP(Rebalance!$D$56,$F$2:$G$48,2,FALSE)+ROW()-2))=Rebalance!$D$56,INDIRECT(\"a\" & (VLOOKUP(Rebalance!$D$56,$F$2:$G$48,2,FALSE)+ROW()-2)),\"\")","v":{"$error":"#N/A"}},{"$f":"IF(INDIRECT(\"c\" & (VLOOKUP(Rebalance!$D$57,$F$2:$G$48,2,FALSE)+ROW()-2))=Rebalance!$D$57,INDIRECT(\"a\" & (VLOOKUP(Rebalance!$D$57,$F$2:$G$48,2,FALSE)+ROW()-2)),\"\")","v":{"$error":"#N/A"}},{"$f":"IF(INDIRECT(\"c\" & (VLOOKUP(Rebalance!$D$58,$F$2:$G$48,2,FALSE)+ROW()-2))=Rebalance!$D$58,INDIRECT(\"a\" & (VLOOKUP(Rebalance!$D$58,$F$2:$G$48,2,FALSE)+ROW()-2)),\"\")","v":{"$error":"#N/A"}},{"$f":"IF(INDIRECT(\"c\" & (VLOOKUP(Rebalance!$D$59,$F$2:$G$48,2,FALSE)+ROW()-2))=Rebalance!$D$59,INDIRECT(\"a\" & (VLOOKUP(Rebalance!$D$59,$F$2:$G$48,2,FALSE)+ROW()-2)),\"\")","v":{"$error":"#N/A"}},{"$f":"IF(INDIRECT(\"c\" & (VLOOKUP(Rebalance!$D$60,$F$2:$G$48,2,FALSE)+ROW()-2))=Rebalance!$D$60,INDIRECT(\"a\" & (VLOOKUP(Rebalance!$D$60,$F$2:$G$48,2,FALSE)+ROW()-2)),\"\")","v":{"$error":"#N/A"}},{"$f":"IF(INDIRECT(\"c\" & (VLOOKUP(Rebalance!$D$61,$F$2:$G$48,2,FALSE)+ROW()-2))=Rebalance!$D$61,INDIRECT(\"a\" & (VLOOKUP(Rebalance!$D$61,$F$2:$G$48,2,FALSE)+ROW()-2)),\"\")","v":{"$error":"#N/A"}},{"$f":"IF(INDIRECT(\"c\" & (VLOOKUP(Rebalance!$D$62,$F$2:$G$48,2,FALSE)+ROW()-2))=Rebalance!$D$62,INDIRECT(\"a\" & (VLOOKUP(Rebalance!$D$62,$F$2:$G$48,2,FALSE)+ROW()-2)),\"\")","v":{"$error":"#N/A"}},{"$f":"IF(INDIRECT(\"c\" & (VLOOKUP(Rebalance!$D$63,$F$2:$G$48,2,FALSE)+ROW()-2))=Rebalance!$D$63,INDIRECT(\"a\" & (VLOOKUP(Rebalance!$D$63,$F$2:$G$48,2,FALSE)+ROW()-2)),\"\")","v":{"$error":"#N/A"}},{"$f":"IF(INDIRECT(\"c\" & (VLOOKUP(Rebalance!$D$64,$F$2:$G$48,2,FALSE)+ROW()-2))=Rebalance!$D$64,INDIRECT(\"a\" & (VLOOKUP(Rebalance!$D$64,$F$2:$G$48,2,FALSE)+ROW()-2)),\"\")","v":{"$error":"#N/A"}},{"$f":"IF(INDIRECT(\"c\" & (VLOOKUP(Rebalance!$D$65,$F$2:$G$48,2,FALSE)+ROW()-2))=Rebalance!$D$65,INDIRECT(\"a\" & (VLOOKUP(Rebalance!$D$65,$F$2:$G$48,2,FALSE)+ROW()-2)),\"\")","v":{"$error":"#N/A"}},{"$f":"IF(INDIRECT(\"c\" & (VLOOKUP(Rebalance!$D$66,$F$2:$G$48,2,FALSE)+ROW()-2))=Rebalance!$D$66,INDIRECT(\"a\" & (VLOOKUP(Rebalance!$D$66,$F$2:$G$48,2,FALSE)+ROW()-2)),\"\")","v":{"$error":"#N/A"}}]
[null,null,null,{"$f":"ROW()","v":597},null,null,{"$f":"VLOOKUP(F597,$C$2:$D$599,2,FALSE)","v":{"$error":"#N/A"}},{"$f":"IF(INDIRECT(\"c\" & (VLOOKUP(Rebalance!$D$26,$F$2:$G$48,2,FALSE)+ROW()-2))=Rebalance!$D$26,INDIRECT(\"a\" & (VLOOKUP(Rebalance!$D$26,$F$2:$G$48,2,FALSE)+ROW()-2)),\"\")","v":{"$error":"#N/A"}},{"$f":"IF(INDIRECT(\"c\" & (VLOOKUP(Rebalance!$D$27,$F$2:$G$48,2,FALSE)+ROW()-2))=Rebalance!$D$27,INDIRECT(\"a\" & (VLOOKUP(Rebalance!$D$27,$F$2:$G$48,2,FALSE)+ROW()-2)),\"\")","v":{"$error":"#N/A"}},{"$f":"IF(INDIRECT(\"c\" & (VLOOKUP(Rebalance!$D$28,$F$2:$G$48,2,FALSE)+ROW()-2))=Rebalance!$D$28,INDIRECT(\"a\" & (VLOOKUP(Rebalance!$D$28,$F$2:$G$48,2,FALSE)+ROW()-2)),\"\")","v":{"$error":"#N/A"}},{"$f":"IF(INDIRECT(\"c\" & (VLOOKUP(Rebalance!$D$29,$F$2:$G$48,2,FALSE)+ROW()-2))=Rebalance!$D$29,INDIRECT(\"a\" & (VLOOKUP(Rebalance!$D$29,$F$2:$G$48,2,FALSE)+ROW()-2)),\"\")","v":{"$error":"#N/A"}},{"$f":"IF(INDIRECT(\"c\" & (VLOOKUP(Rebalance!$D$30,$F$2:$G$48,2,FALSE)+ROW()-2))=Rebalance!$D$30,INDIRECT(\"a\" & (VLOOKUP(Rebalance!$D$30,$F$2:$G$48,2,FALSE)+ROW()-2)),\"\")","v":{"$error":"#N/A"}},{"$f":"IF(INDIRECT(\"c\" & (VLOOKUP(Rebalance!$D$31,$F$2:$G$48,2,FALSE)+ROW()-2))=Rebalance!$D$31,INDIRECT(\"a\" & (VLOOKUP(Rebalance!$D$31,$F$2:$G$48,2,FALSE)+ROW()-2)),\"\")","v":{"$error":"#N/A"}},{"$f":"IF(INDIRECT(\"c\" & (VLOOKUP(Rebalance!$D$32,$F$2:$G$48,2,FALSE)+ROW()-2))=Rebalance!$D$32,INDIRECT(\"a\" & (VLOOKUP(Rebalance!$D$32,$F$2:$G$48,2,FALSE)+ROW()-2)),\"\")","v":{"$error":"#N/A"}},{"$f":"IF(INDIRECT(\"c\" & (VLOOKUP(Rebalance!$D$33,$F$2:$G$48,2,FALSE)+ROW()-2))=Rebalance!$D$33,INDIRECT(\"a\" & (VLOOKUP(Rebalance!$D$33,$F$2:$G$48,2,FALSE)+ROW()-2)),\"\")","v":{"$error":"#N/A"}},{"$f":"IF(INDIRECT(\"c\" & (VLOOKUP(Rebalance!$D$34,$F$2:$G$48,2,FALSE)+ROW()-2))=Rebalance!$D$34,INDIRECT(\"a\" & (VLOOKUP(Rebalance!$D$34,$F$2:$G$48,2,FALSE)+ROW()-2)),\"\")","v":{"$error":"#N/A"}},{"$f":"IF(INDIRECT(\"c\" & (VLOOKUP(Rebalance!$D$35,$F$2:$G$48,2,FALSE)+ROW()-2))=Rebalance!$D$35,INDIRECT(\"a\" & (VLOOKUP(Rebalance!$D$35,$F$2:$G$48,2,FALSE)+ROW()-2)),\"\")","v":{"$error":"#N/A"}},{"$f":"IF(INDIRECT(\"c\" & (VLOOKUP(Rebalance!$D$36,$F$2:$G$48,2,FALSE)+ROW()-2))=Rebalance!$D$36,INDIRECT(\"a\" & (VLOOKUP(Rebalance!$D$36,$F$2:$G$48,2,FALSE)+ROW()-2)),\"\")","v":{"$error":"#N/A"}},{"$f":"IF(INDIRECT(\"c\" & (VLOOKUP(Rebalance!$D$37,$F$2:$G$48,2,FALSE)+ROW()-2))=Rebalance!$D$37,INDIRECT(\"a\" & (VLOOKUP(Rebalance!$D$37,$F$2:$G$48,2,FALSE)+ROW()-2)),\"\")","v":{"$error":"#N/A"}},{"$f":"IF(INDIRECT(\"c\" & (VLOOKUP(Rebalance!$D$38,$F$2:$G$48,2,FALSE)+ROW()-2))=Rebalance!$D$38,INDIRECT(\"a\" & (VLOOKUP(Rebalance!$D$38,$F$2:$G$48,2,FALSE)+ROW()-2)),\"\")","v":{"$error":"#N/A"}},{"$f":"IF(INDIRECT(\"c\" & (VLOOKUP(Rebalance!$D$39,$F$2:$G$48,2,FALSE)+ROW()-2))=Rebalance!$D$39,INDIRECT(\"a\" & (VLOOKUP(Rebalance!$D$39,$F$2:$G$48,2,FALSE)+ROW()-2)),\"\")","v":{"$error":"#N/A"}},{"$f":"IF(INDIRECT(\"c\" & (VLOOKUP(Rebalance!$D$40,$F$2:$G$48,2,FALSE)+ROW()-2))=Rebalance!$D$40,INDIRECT(\"a\" & (VLOOKUP(Rebalance!$D$40,$F$2:$G$48,2,FALSE)+ROW()-2)),\"\")","v":{"$error":"#N/A"}},{"$f":"IF(INDIRECT(\"c\" & (VLOOKUP(Rebalance!$D$52,$F$2:$G$48,2,FALSE)+ROW()-2))=Rebalance!$D$52,INDIRECT(\"a\" & (VLOOKUP(Rebalance!$D$52,$F$2:$G$48,2,FALSE)+ROW()-2)),\"\")","v":{"$error":"#N/A"}},{"$f":"IF(INDIRECT(\"c\" & (VLOOKUP(Rebalance!$D$53,$F$2:$G$48,2,FALSE)+ROW()-2))=Rebalance!$D$53,INDIRECT(\"a\" & (VLOOKUP(Rebalance!$D$53,$F$2:$G$48,2,FALSE)+ROW()-2)),\"\")","v":{"$error":"#N/A"}},{"$f":"IF(INDIRECT(\"c\" & (VLOOKUP(Rebalance!$D$54,$F$2:$G$48,2,FALSE)+ROW()-2))=Rebalance!$D$54,INDIRECT(\"a\" & (VLOOKUP(Rebalance!$D$54,$F$2:$G$48,2,FALSE)+ROW()-2)),\"\")","v":{"$error":"#N/A"}},{"$f":"IF(INDIRECT(\"c\" & (VLOOKUP(Rebalance!$D$55,$F$2:$G$48,2,FALSE)+ROW()-2))=Rebalance!$D$55,INDIRECT(\"a\" & (VLOOKUP(Rebalance!$D$55,$F$2:$G$48,2,FALSE)+ROW()-2)),\"\")","v":{"$error":"#N/A"}},{"$f":"IF(INDIRECT(\"c\" & (VLOOKUP(Rebalance!$D$56,$F$2:$G$48,2,FALSE)+ROW()-2))=Rebalance!$D$56,INDIRECT(\"a\" & (VLOOKUP(Rebalance!$D$56,$F$2:$G$48,2,FALSE)+ROW()-2)),\"\")","v":{"$error":"#N/A"}},{"$f":"IF(INDIRECT(\"c\" & (VLOOKUP(Rebalance!$D$57,$F$2:$G$48,2,FALSE)+ROW()-2))=Rebalance!$D$57,INDIRECT(\"a\" & (VLOOKUP(Rebalance!$D$57,$F$2:$G$48,2,FALSE)+ROW()-2)),\"\")","v":{"$error":"#N/A"}},{"$f":"IF(INDIRECT(\"c\" & (VLOOKUP(Rebalance!$D$58,$F$2:$G$48,2,FALSE)+ROW()-2))=Rebalance!$D$58,INDIRECT(\"a\" & (VLOOKUP(Rebalance!$D$58,$F$2:$G$48,2,FALSE)+ROW()-2)),\"\")","v":{"$error":"#N/A"}},{"$f":"IF(INDIRECT(\"c\" & (VLOOKUP(Rebalance!$D$59,$F$2:$G$48,2,FALSE)+ROW()-2))=Rebalance!$D$59,INDIRECT(\"a\" & (VLOOKUP(Rebalance!$D$59,$F$2:$G$48,2,FALSE)+ROW()-2)),\"\")","v":{"$error":"#N/A"}},{"$f":"IF(INDIRECT(\"c\" & (VLOOKUP(Rebalance!$D$60,$F$2:$G$48,2,FALSE)+ROW()-2))=Rebalance!$D$60,INDIRECT(\"a\" & (VLOOKUP(Rebalance!$D$60,$F$2:$G$48,2,FALSE)+ROW()-2)),\"\")","v":{"$error":"#N/A"}},{"$f":"IF(INDIRECT(\"c\" & (VLOOKUP(Rebalance!$D$61,$F$2:$G$48,2,FALSE)+ROW()-2))=Rebalance!$D$61,INDIRECT(\"a\" & (VLOOKUP(Rebalance!$D$61,$F$2:$G$48,2,FALSE)+ROW()-2)),\"\")","v":{"$error":"#N/A"}},{"$f":"IF(INDIRECT(\"c\" & (VLOOKUP(Rebalance!$D$62,$F$2:$G$48,2,FALSE)+ROW()-2))=Rebalance!$D$62,INDIRECT(\"a\" & (VLOOKUP(Rebalance!$D$62,$F$2:$G$48,2,FALSE)+ROW()-2)),\"\")","v":{"$error":"#N/A"}},{"$f":"IF(INDIRECT(\"c\" & (VLOOKUP(Rebalance!$D$63,$F$2:$G$48,2,FALSE)+ROW()-2))=Rebalance!$D$63,INDIRECT(\"a\" & (VLOOKUP(Rebalance!$D$63,$F$2:$G$48,2,FALSE)+ROW()-2)),\"\")","v":{"$error":"#N/A"}},{"$f":"IF(INDIRECT(\"c\" & (VLOOKUP(Rebalance!$D$64,$F$2:$G$48,2,FALSE)+ROW()-2))=Rebalance!$D$64,INDIRECT(\"a\" & (VLOOKUP(Rebalance!$D$64,$F$2:$G$48,2,FALSE)+ROW()-2)),\"\")","v":{"$error":"#N/A"}},{"$f":"IF(INDIRECT(\"c\" & (VLOOKUP(Rebalance!$D$65,$F$2:$G$48,2,FALSE)+ROW()-2))=Rebalance!$D$65,INDIRECT(\"a\" & (VLOOKUP(Rebalance!$D$65,$F$2:$G$48,2,FALSE)+ROW()-2)),\"\")","v":{"$error":"#N/A"}},{"$f":"IF(INDIRECT(\"c\" & (VLOOKUP(Rebalance!$D$66,$F$2:$G$48,2,FALSE)+ROW()-2))=Rebalance!$D$66,INDIRECT(\"a\" & (VLOOKUP(Rebalance!$D$66,$F$2:$G$48,2,FALSE)+ROW()-2)),\"\")","v":{"$error":"#N/A"}}]
[null,null,null,{"$f":"ROW()","v":598},null,null,{"$f":"VLOOKUP(F598,$C$2:$D$599,2,FALSE)","v":{"$error":"#N/A"}},{"$f":"IF(INDIRECT(\"c\" & (VLOOKUP(Rebalance!$D$26,$F$2:$G$48,2,FALSE)+ROW()-2))=Rebalance!$D$26,INDIRECT(\"a\" & (VLOOKUP(Rebalance!$D$26,$F$2:$G$48,2,FALSE)+ROW()-2)),\"\")","v":{"$error":"#N/A"}},{"$f":"IF(INDIRECT(\"c\" & (VLOOKUP(Rebalance!$D$27,$F$2:$G$48,2,FALSE)+ROW()-2))=Rebalance!$D$27,INDIRECT(\"a\" & (VLOOKUP(Rebalance!$D$27,$F$2:$G$48,2,FALSE)+ROW()-2)),\"\")","v":{"$error":"#N/A"}},{"$f":"IF(INDIRECT(\"c\" & (VLOOKUP(Rebalance!$D$28,$F$2:$G$48,2,FALSE)+ROW()-2))=Rebalance!$D$28,INDIRECT(\"a\" & (VLOOKUP(Rebalance!$D$28,$F$2:$G$48,2,FALSE)+ROW()-2)),\"\")","v":{"$error":"#N/A"}},{"$f":"IF(INDIRECT(\"c\" & (VLOOKUP(Rebalance!$D$29,$F$2:$G$48,2,FALSE)+ROW()-2))=Rebalance!$D$29,INDIRECT(\"a\" & (VLOOKUP(Rebalance!$D$29,$F$2:$G$48,2,FALSE)+ROW()-2)),\"\")","v":{"$error":"#N/A"}},{"$f":"IF(INDIRECT(\"c\" & (VLOOKUP(Rebalance!$D$30,$F$2:$G$48,2,FALSE)+ROW()-2))=Rebalance!$D$30,INDIRECT(\"a\" & (VLOOKUP(Rebalance!$D$30,$F$2:$G$48,2,FALSE)+ROW()-2)),\"\")","v":{"$error":"#N/A"}},{"$f":"IF(INDIRECT(\"c\" & (VLOOKUP(Rebalance!$D$31,$F$2:$G$48,2,FALSE)+ROW()-2))=Rebalance!$D$31,INDIRECT(\"a\" & (VLOOKUP(Rebalance!$D$31,$F$2:$G$48,2,FALSE)+ROW()-2)),\"\")","v":{"$error":"#N/A"}},{"$f":"IF(INDIRECT(\"c\" & (VLOOKUP(Rebalance!$D$32,$F$2:$G$48,2,FALSE)+ROW()-2))=Rebalance!$D$32,INDIRECT(\"a\" & (VLOOKUP(Rebalance!$D$32,$F$2:$G$48,2,FALSE)+ROW()-2)),\"\")","v":{"$error":"#N/A"}},{"$f":"IF(INDIRECT(\"c\" & (VLOOKUP(Rebalance!$D$33,$F$2:$G$48,2,FALSE)+ROW()-2))=Rebalance!$D$33,INDIRECT(\"a\" & (VLOOKUP(Rebalance!$D$33,$F$2:$G$48,2,FALSE)+ROW()-2)),\"\")","v":{"$error":"#N/A"}},{"$f":"IF(INDIRECT(\"c\" & (VLOOKUP(Rebalance!$D$34,$F$2:$G$48,2,FALSE)+ROW()-2))=Rebalance!$D$34,INDIRECT(\"a\" & (VLOOKUP(Rebalance!$D$34,$F$2:$G$48,2,FALSE)+ROW()-2)),\"\")","v":{"$error":"#N/A"}},{"$f":"IF(INDIRECT(\"c\" & (VLOOKUP(Rebalance!$D$35,$F$2:$G$48,2,FALSE)+ROW()-2))=Rebalance!$D$35,INDIRECT(\"a\" & (VLOOKUP(Rebalance!$D$35,$F$2:$G$48,2,FALSE)+ROW()-2)),\"\")","v":{"$error":"#N/A"}},{"$f":"IF(INDIRECT(\"c\" & (VLOOKUP(Rebalance!$D$36,$F$2:$G$48,2,FALSE)+ROW()-2))=Rebalance!$D$36,INDIRECT(\"a\" & (VLOOKUP(Rebalance!$D$36,$F$2:$G$48,2,FALSE)+ROW()-2)),\"\")","v":{"$error":"#N/A"}},{"$f":"IF(INDIRECT(\"c\" & (VLOOKUP(Rebalance!$D$37,$F$2:$G$48,2,FALSE)+ROW()-2))=Rebalance!$D$37,INDIRECT(\"a\" & (VLOOKUP(Rebalance!$D$37,$F$2:$G$48,2,FALSE)+ROW()-2)),\"\")","v":{"$error":"#N/A"}},{"$f":"IF(INDIRECT(\"c\" & (VLOOKUP(Rebalance!$D$38,$F$2:$G$48,2,FALSE)+ROW()-2))=Rebalance!$D$38,INDIRECT(\"a\" & (VLOOKUP(Rebalance!$D$38,$F$2:$G$48,2,FALSE)+ROW()-2)),\"\")","v":{"$error":"#N/A"}},{"$f":"IF(INDIRECT(\"c\" & (VLOOKUP(Rebalance!$D$39,$F$2:$G$48,2,FALSE)+ROW()-2))=Rebalance!$D$39,INDIRECT(\"a\" & (VLOOKUP(Rebalance!$D$39,$F$2:$G$48,2,FALSE)+ROW()-2)),\"\")","v":{"$error":"#N/A"}},{"$f":"IF(INDIRECT(\"c\" & (VLOOKUP(Rebalance!$D$40,$F$2:$G$48,2,FALSE)+ROW()-2))=Rebalance!$D$40,INDIRECT(\"a\" & (VLOOKUP(Rebalance!$D$40,$F$2:$G$48,2,FALSE)+ROW()-2)),\"\")","v":{"$error":"#N/A"}},{"$f":"IF(INDIRECT(\"c\" & (VLOOKUP(Rebalance!$D$52,$F$2:$G$48,2,FALSE)+ROW()-2))=Rebalance!$D$52,INDIRECT(\"a\" & (VLOOKUP(Rebalance!$D$52,$F$2:$G$48,2,FALSE)+ROW()-2)),\"\")","v":{"$error":"#N/A"}},{"$f":"IF(INDIRECT(\"c\" & (VLOOKUP(Rebalance!$D$53,$F$2:$G$48,2,FALSE)+ROW()-2))=Rebalance!$D$53,INDIRECT(\"a\" & (VLOOKUP(Rebalance!$D$53,$F$2:$G$48,2,FALSE)+ROW()-2)),\"\")","v":{"$error":"#N/A"}},{"$f":"IF(INDIRECT(\"c\" & (VLOOKUP(Rebalance!$D$54,$F$2:$G$48,2,FALSE)+ROW()-2))=Rebalance!$D$54,INDIRECT(\"a\" & (VLOOKUP(Rebalance!$D$54,$F$2:$G$48,2,FALSE)+ROW()-2)),\"\")","v":{"$error":"#N/A"}},{"$f":"IF(INDIRECT(\"c\" & (VLOOKUP(Rebalance!$D$55,$F$2:$G$48,2,FALSE)+ROW()-2))=Rebalance!$D$55,INDIRECT(\"a\" & (VLOOKUP(Rebalance!$D$55,$F$2:$G$48,2,FALSE)+ROW()-2)),\"\")","v":{"$error":"#N/A"}},{"$f":"IF(INDIRECT(\"c\" & (VLOOKUP(Rebalance!$D$56,$F$2:$G$48,2,FALSE)+ROW()-2))=Rebalance!$D$56,INDIRECT(\"a\" & (VLOOKUP(Rebalance!$D$56,$F$2:$G$48,2,FALSE)+ROW()-2)),\"\")","v":{"$error":"#N/A"}},{"$f":"IF(INDIRECT(\"c\" & (VLOOKUP(Rebalance!$D$57,$F$2:$G$48,2,FALSE)+ROW()-2))=Rebalance!$D$57,INDIRECT(\"a\" & (VLOOKUP(Rebalance!$D$57,$F$2:$G$48,2,FALSE)+ROW()-2)),\"\")","v":{"$error":"#N/A"}},{"$f":"IF(INDIRECT(\"c\" & (VLOOKUP(Rebalance!$D$58,$F$2:$G$48,2,FALSE)+ROW()-2))=Rebalance!$D$58,INDIRECT(\"a\" & (VLOOKUP(Rebalance!$D$58,$F$2:$G$48,2,FALSE)+ROW()-2)),\"\")","v":{"$error":"#N/A"}},{"$f":"IF(INDIRECT(\"c\" & (VLOOKUP(Rebalance!$D$59,$F$2:$G$48,2,FALSE)+ROW()-2))=Rebalance!$D$59,INDIRECT(\"a\" & (VLOOKUP(Rebalance!$D$59,$F$2:$G$48,2,FALSE)+ROW()-2)),\"\")","v":{"$error":"#N/A"}},{"$f":"IF(INDIRECT(\"c\" & (VLOOKUP(Rebalance!$D$60,$F$2:$G$48,2,FALSE)+ROW()-2))=Rebalance!$D$60,INDIRECT(\"a\" & (VLOOKUP(Rebalance!$D$60,$F$2:$G$48,2,FALSE)+ROW()-2)),\"\")","v":{"$error":"#N/A"}},{"$f":"IF(INDIRECT(\"c\" & (VLOOKUP(Rebalance!$D$61,$F$2:$G$48,2,FALSE)+ROW()-2))=Rebalance!$D$61,INDIRECT(\"a\" & (VLOOKUP(Rebalance!$D$61,$F$2:$G$48,2,FALSE)+ROW()-2)),\"\")","v":{"$error":"#N/A"}},{"$f":"IF(INDIRECT(\"c\" & (VLOOKUP(Rebalance!$D$62,$F$2:$G$48,2,FALSE)+ROW()-2))=Rebalance!$D$62,INDIRECT(\"a\" & (VLOOKUP(Rebalance!$D$62,$F$2:$G$48,2,FALSE)+ROW()-2)),\"\")","v":{"$error":"#N/A"}},{"$f":"IF(INDIRECT(\"c\" & (VLOOKUP(Rebalance!$D$63,$F$2:$G$48,2,FALSE)+ROW()-2))=Rebalance!$D$63,INDIRECT(\"a\" & (VLOOKUP(Rebalance!$D$63,$F$2:$G$48,2,FALSE)+ROW()-2)),\"\")","v":{"$error":"#N/A"}},{"$f":"IF(INDIRECT(\"c\" & (VLOOKUP(Rebalance!$D$64,$F$2:$G$48,2,FALSE)+ROW()-2))=Rebalance!$D$64,INDIRECT(\"a\" & (VLOOKUP(Rebalance!$D$64,$F$2:$G$48,2,FALSE)+ROW()-2)),\"\")","v":{"$error":"#N/A"}},{"$f":"IF(INDIRECT(\"c\" & (VLOOKUP(Rebalance!$D$65,$F$2:$G$48,2,FALSE)+ROW()-2))=Rebalance!$D$65,INDIRECT(\"a\" & (VLOOKUP(Rebalance!$D$65,$F$2:$G$48,2,FALSE)+ROW()-2)),\"\")","v":{"$error":"#N/A"}},{"$f":"IF(INDIRECT(\"c\" & (VLOOKUP(Rebalance!$D$66,$F$2:$G$48,2,FALSE)+ROW()-2))=Rebalance!$D$66,INDIRECT(\"a\" & (VLOOKUP(Rebalance!$D$66,$F$2:$G$48,2,FALSE)+ROW()-2)),\"\")","v":{"$error":"#N/A"}}]
[null,null,null,{"$f":"ROW()","v":599},null,null,{"$f":"VLOOKUP(F599,$C$2:$D$599,2,FALSE)","v":{"$error":"#N/A"}},{"$f":"IF(INDIRECT(\"c\" & (VLOOKUP(Rebalance!$D$26,$F$2:$G$48,2,FALSE)+ROW()-2))=Rebalance!$D$26,INDIRECT(\"a\" & (VLOOKUP(Rebalance!$D$26,$F$2:$G$48,2,FALSE)+ROW()-2)),\"\")","v":{"$error":"#N/A"}},{"$f":"IF(INDIRECT(\"c\" & (VLOOKUP(Rebalance!$D$27,$F$2:$G$48,2,FALSE)+ROW()-2))=Rebalance!$D$27,INDIRECT(\"a\" & (VLOOKUP(Rebalance!$D$27,$F$2:$G$48,2,FALSE)+ROW()-2)),\"\")","v":{"$error":"#N/A"}},{"$f":"IF(INDIRECT(\"c\" & (VLOOKUP(Rebalance!$D$28,$F$2:$G$48,2,FALSE)+ROW()-2))=Rebalance!$D$28,INDIRECT(\"a\" & (VLOOKUP(Rebalance!$D$28,$F$2:$G$48,2,FALSE)+ROW()-2)),\"\")","v":{"$error":"#N/A"}},{"$f":"IF(INDIRECT(\"c\" & (VLOOKUP(Rebalance!$D$29,$F$2:$G$48,2,FALSE)+ROW()-2))=Rebalance!$D$29,INDIRECT(\"a\" & (VLOOKUP(Rebalance!$D$29,$F$2:$G$48,2,FALSE)+ROW()-2)),\"\")","v":{"$error":"#N/A"}},{"$f":"IF(INDIRECT(\"c\" & (VLOOKUP(Rebalance!$D$30,$F$2:$G$48,2,FALSE)+ROW()-2))=Rebalance!$D$30,INDIRECT(\"a\" & (VLOOKUP(Rebalance!$D$30,$F$2:$G$48,2,FALSE)+ROW()-2)),\"\")","v":{"$error":"#N/A"}},{"$f":"IF(INDIRECT(\"c\" & (VLOOKUP(Rebalance!$D$31,$F$2:$G$48,2,FALSE)+ROW()-2))=Rebalance!$D$31,INDIRECT(\"a\" & (VLOOKUP(Rebalance!$D$31,$F$2:$G$48,2,FALSE)+ROW()-2)),\"\")","v":{"$error":"#N/A"}},{"$f":"IF(INDIRECT(\"c\" & (VLOOKUP(Rebalance!$D$32,$F$2:$G$48,2,FALSE)+ROW()-2))=Rebalance!$D$32,INDIRECT(\"a\" & (VLOOKUP(Rebalance!$D$32,$F$2:$G$48,2,FALSE)+ROW()-2)),\"\")","v":{"$error":"#N/A"}},{"$f":"IF(INDIRECT(\"c\" & (VLOOKUP(Rebalance!$D$33,$F$2:$G$48,2,FALSE)+ROW()-2))=Rebalance!$D$33,INDIRECT(\"a\" & (VLOOKUP(Rebalance!$D$33,$F$2:$G$48,2,FALSE)+ROW()-2)),\"\")","v":{"$error":"#N/A"}},{"$f":"IF(INDIRECT(\"c\" & (VLOOKUP(Rebalance!$D$34,$F$2:$G$48,2,FALSE)+ROW()-2))=Rebalance!$D$34,INDIRECT(\"a\" & (VLOOKUP(Rebalance!$D$34,$F$2:$G$48,2,FALSE)+ROW()-2)),\"\")","v":{"$error":"#N/A"}},{"$f":"IF(INDIRECT(\"c\" & (VLOOKUP(Rebalance!$D$35,$F$2:$G$48,2,FALSE)+ROW()-2))=Rebalance!$D$35,INDIRECT(\"a\" & (VLOOKUP(Rebalance!$D$35,$F$2:$G$48,2,FALSE)+ROW()-2)),\"\")","v":{"$error":"#N/A"}},{"$f":"IF(INDIRECT(\"c\" & (VLOOKUP(Rebalance!$D$36,$F$2:$G$48,2,FALSE)+ROW()-2))=Rebalance!$D$36,INDIRECT(\"a\" & (VLOOKUP(Rebalance!$D$36,$F$2:$G$48,2,FALSE)+ROW()-2)),\"\")","v":{"$error":"#N/A"}},{"$f":"IF(INDIRECT(\"c\" & (VLOOKUP(Rebalance!$D$37,$F$2:$G$48,2,FALSE)+ROW()-2))=Rebalance!$D$37,INDIRECT(\"a\" & (VLOOKUP(Rebalance!$D$37,$F$2:$G$48,2,FALSE)+ROW()-2)),\"\")","v":{"$error":"#N/A"}},{"$f":"IF(INDIRECT(\"c\" & (VLOOKUP(Rebalance!$D$38,$F$2:$G$48,2,FALSE)+ROW()-2))=Rebalance!$D$38,INDIRECT(\"a\" & (VLOOKUP(Rebalance!$D$38,$F$2:$G$48,2,FALSE)+ROW()-2)),\"\")","v":{"$error":"#N/A"}},{"$f":"IF(INDIRECT(\"c\" & (VLOOKUP(Rebalance!$D$39,$F$2:$G$48,2,FALSE)+ROW()-2))=Rebalance!$D$39,INDIRECT(\"a\" & (VLOOKUP(Rebalance!$D$39,$F$2:$G$48,2,FALSE)+ROW()-2)),\"\")","v":{"$error":"#N/A"}},{"$f":"IF(INDIRECT(\"c\" & (VLOOKUP(Rebalance!$D$40,$F$2:$G$48,2,FALSE)+ROW()-2))=Rebalance!$D$40,INDIRECT(\"a\" & (VLOOKUP(Rebalance!$D$40,$F$2:$G$48,2,FALSE)+ROW()-2)),\"\")","v":{"$error":"#N/A"}},{"$f":"IF(INDIRECT(\"c\" & (VLOOKUP(Rebalance!$D$52,$F$2:$G$48,2,FALSE)+ROW()-2))=Rebalance!$D$52,INDIRECT(\"a\" & (VLOOKUP(Rebalance!$D$52,$F$2:$G$48,2,FALSE)+ROW()-2)),\"\")","v":{"$error":"#N/A"}},{"$f":"IF(INDIRECT(\"c\" & (VLOOKUP(Rebalance!$D$53,$F$2:$G$48,2,FALSE)+ROW()-2))=Rebalance!$D$53,INDIRECT(\"a\" & (VLOOKUP(Rebalance!$D$53,$F$2:$G$48,2,FALSE)+ROW()-2)),\"\")","v":{"$error":"#N/A"}},{"$f":"IF(INDIRECT(\"c\" & (VLOOKUP(Rebalance!$D$54,$F$2:$G$48,2,FALSE)+ROW()-2))=Rebalance!$D$54,INDIRECT(\"a\" & (VLOOKUP(Rebalance!$D$54,$F$2:$G$48,2,FALSE)+ROW()-2)),\"\")","v":{"$error":"#N/A"}},{"$f":"IF(INDIRECT(\"c\" & (VLOOKUP(Rebalance!$D$55,$F$2:$G$48,2,FALSE)+ROW()-2))=Rebalance!$D$55,INDIRECT(\"a\" & (VLOOKUP(Rebalance!$D$55,$F$2:$G$48,2,FALSE)+ROW()-2)),\"\")","v":{"$error":"#N/A"}},{"$f":"IF(INDIRECT(\"c\" & (VLOOKUP(Rebalance!$D$56,$F$2:$G$48,2,FALSE)+ROW()-2))=Rebalance!$D$56,INDIRECT(\"a\" & (VLOOKUP(Rebalance!$D$56,$F$2:$G$48,2,FALSE)+ROW()-2)),\"\")","v":{"$error":"#N/A"}},{"$f":"IF(INDIRECT(\"c\" & (VLOOKUP(Rebalance!$D$57,$F$2:$G$48,2,FALSE)+ROW()-2))=Rebalance!$D$57,INDIRECT(\"a\" & (VLOOKUP(Rebalance!$D$57,$F$2:$G$48,2,FALSE)+ROW()-2)),\"\")","v":{"$error":"#N/A"}},{"$f":"IF(INDIRECT(\"c\" & (VLOOKUP(Rebalance!$D$58,$F$2:$G$48,2,FALSE)+ROW()-2))=Rebalance!$D$58,INDIRECT(\"a\" & (VLOOKUP(Rebalance!$D$58,$F$2:$G$48,2,FALSE)+ROW()-2)),\"\")","v":{"$error":"#N/A"}},{"$f":"IF(INDIRECT(\"c\" & (VLOOKUP(Rebalance!$D$59,$F$2:$G$48,2,FALSE)+ROW()-2))=Rebalance!$D$59,INDIRECT(\"a\" & (VLOOKUP(Rebalance!$D$59,$F$2:$G$48,2,FALSE)+ROW()-2)),\"\")","v":{"$error":"#N/A"}},{"$f":"IF(INDIRECT(\"c\" & (VLOOKUP(Rebalance!$D$60,$F$2:$G$48,2,FALSE)+ROW()-2))=Rebalance!$D$60,INDIRECT(\"a\" & (VLOOKUP(Rebalance!$D$60,$F$2:$G$48,2,FALSE)+ROW()-2)),\"\")","v":{"$error":"#N/A"}},{"$f":"IF(INDIRECT(\"c\" & (VLOOKUP(Rebalance!$D$61,$F$2:$G$48,2,FALSE)+ROW()-2))=Rebalance!$D$61,INDIRECT(\"a\" & (VLOOKUP(Rebalance!$D$61,$F$2:$G$48,2,FALSE)+ROW()-2)),\"\")","v":{"$error":"#N/A"}},{"$f":"IF(INDIRECT(\"c\" & (VLOOKUP(Rebalance!$D$62,$F$2:$G$48,2,FALSE)+ROW()-2))=Rebalance!$D$62,INDIRECT(\"a\" & (VLOOKUP(Rebalance!$D$62,$F$2:$G$48,2,FALSE)+ROW()-2)),\"\")","v":{"$error":"#N/A"}},{"$f":"IF(INDIRECT(\"c\" & (VLOOKUP(Rebalance!$D$63,$F$2:$G$48,2,FALSE)+ROW()-2))=Rebalance!$D$63,INDIRECT(\"a\" & (VLOOKUP(Rebalance!$D$63,$F$2:$G$48,2,FALSE)+ROW()-2)),\"\")","v":{"$error":"#N/A"}},{"$f":"IF(INDIRECT(\"c\" & (VLOOKUP(Rebalance!$D$64,$F$2:$G$48,2,FALSE)+ROW()-2))=Rebalance!$D$64,INDIRECT(\"a\" & (VLOOKUP(Rebalance!$D$64,$F$2:$G$48,2,FALSE)+ROW()-2)),\"\")","v":{"$error":"#N/A"}},{"$f":"IF(INDIRECT(\"c\" & (VLOOKUP(Rebalance!$D$65,$F$2:$G$48,2,FALSE)+ROW()-2))=Rebalance!$D$65,INDIRECT(\"a\" & (VLOOKUP(Rebalance!$D$65,$F$2:$G$48,2,FALSE)+ROW()-2)),\"\")","v":{"$error":"#N/A"}},{"$f":"IF(INDIRECT(\"c\" & (VLOOKUP(Rebalance!$D$66,$F$2:$G$48,2,FALSE)+ROW()-2))=Rebalance!$D$66,INDIRECT(\"a\" & (VLOOKUP(Rebalance!$D$66,$F$2:$G$48,2,FALSE)+ROW()-2)),\"\")","v":{"$error":"#N/A"}}]
[null,null,null,{"$f":"ROW()","v":600},null,null,{"$f":"VLOOKUP(F600,$C$2:$D$599,2,FALSE)","v":{"$error":"#N/A"}},{"$f":"IF(INDIRECT(\"c\" & (VLOOKUP(Rebalance!$D$26,$F$2:$G$48,2,FALSE)+ROW()-2))=Rebalance!$D$26,INDIRECT(\"a\" & (VLOOKUP(Rebalance!$D$26,$F$2:$G$48,2,FALSE)+ROW()-2)),\"\")","v":{"$error":"#N/A"}},{"$f":"IF(INDIRECT(\"c\" & (VLOOKUP(Rebalance!$D$27,$F$2:$G$48,2,FALSE)+ROW()-2))=Rebalance!$D$27,INDIRECT(\"a\" & (VLOOKUP(Rebalance!$D$27,$F$2:$G$48,2,FALSE)+ROW()-2)),\"\")","v":{"$error":"#N/A"}},{"$f":"IF(INDIRECT(\"c\" & (VLOOKUP(Rebalance!$D$28,$F$2:$G$48,2,FALSE)+ROW()-2))=Rebalance!$D$28,INDIRECT(\"a\" & (VLOOKUP(Rebalance!$D$28,$F$2:$G$48,2,FALSE)+ROW()-2)),\"\")","v":{"$error":"#N/A"}},{"$f":"IF(INDIRECT(\"c\" & (VLOOKUP(Rebalance!$D$29,$F$2:$G$48,2,FALSE)+ROW()-2))=Rebalance!$D$29,INDIRECT(\"a\" & (VLOOKUP(Rebalance!$D$29,$F$2:$G$48,2,FALSE)+ROW()-2)),\"\")","v":{"$error":"#N/A"}},{"$f":"IF(INDIRECT(\"c\" & (VLOOKUP(Rebalance!$D$30,$F$2:$G$48,2,FALSE)+ROW()-2))=Rebalance!$D$30,INDIRECT(\"a\" & (VLOOKUP(Rebalance!$D$30,$F$2:$G$48,2,FALSE)+ROW()-2)),\"\")","v":{"$error":"#N/A"}},{"$f":"IF(INDIRECT(\"c\" & (VLOOKUP(Rebalance!$D$31,$F$2:$G$48,2,FALSE)+ROW()-2))=Rebalance!$D$31,INDIRECT(\"a\" & (VLOOKUP(Rebalance!$D$31,$F$2:$G$48,2,FALSE)+ROW()-2)),\"\")","v":{"$error":"#N/A"}},{"$f":"IF(INDIRECT(\"c\" & (VLOOKUP(Rebalance!$D$32,$F$2:$G$48,2,FALSE)+ROW()-2))=Rebalance!$D$32,INDIRECT(\"a\" & (VLOOKUP(Rebalance!$D$32,$F$2:$G$48,2,FALSE)+ROW()-2)),\"\")","v":{"$error":"#N/A"}},{"$f":"IF(INDIRECT(\"c\" & (VLOOKUP(Rebalance!$D$33,$F$2:$G$48,2,FALSE)+ROW()-2))=Rebalance!$D$33,INDIRECT(\"a\" & (VLOOKUP(Rebalance!$D$33,$F$2:$G$48,2,FALSE)+ROW()-2)),\"\")","v":{"$error":"#N/A"}},{"$f":"IF(INDIRECT(\"c\" & (VLOOKUP(Rebalance!$D$34,$F$2:$G$48,2,FALSE)+ROW()-2))=Rebalance!$D$34,INDIRECT(\"a\" & (VLOOKUP(Rebalance!$D$34,$F$2:$G$48,2,FALSE)+ROW()-2)),\"\")","v":{"$error":"#N/A"}},{"$f":"IF(INDIRECT(\"c\" & (VLOOKUP(Rebalance!$D$35,$F$2:$G$48,2,FALSE)+ROW()-2))=Rebalance!$D$35,INDIRECT(\"a\" & (VLOOKUP(Rebalance!$D$35,$F$2:$G$48,2,FALSE)+ROW()-2)),\"\")","v":{"$error":"#N/A"}},{"$f":"IF(INDIRECT(\"c\" & (VLOOKUP(Rebalance!$D$36,$F$2:$G$48,2,FALSE)+ROW()-2))=Rebalance!$D$36,INDIRECT(\"a\" & (VLOOKUP(Rebalance!$D$36,$F$2:$G$48,2,FALSE)+ROW()-2)),\"\")","v":{"$error":"#N/A"}},{"$f":"IF(INDIRECT(\"c\" & (VLOOKUP(Rebalance!$D$37,$F$2:$G$48,2,FALSE)+ROW()-2))=Rebalance!$D$37,INDIRECT(\"a\" & (VLOOKUP(Rebalance!$D$37,$F$2:$G$48,2,FALSE)+ROW()-2)),\"\")","v":{"$error":"#N/A"}},{"$f":"IF(INDIRECT(\"c\" & (VLOOKUP(Rebalance!$D$38,$F$2:$G$48,2,FALSE)+ROW()-2))=Rebalance!$D$38,INDIRECT(\"a\" & (VLOOKUP(Rebalance!$D$38,$F$2:$G$48,2,FALSE)+ROW()-2)),\"\")","v":{"$error":"#N/A"}},{"$f":"IF(INDIRECT(\"c\" & (VLOOKUP(Rebalance!$D$39,$F$2:$G$48,2,FALSE)+ROW()-2))=Rebalance!$D$39,INDIRECT(\"a\" & (VLOOKUP(Rebalance!$D$39,$F$2:$G$48,2,FALSE)+ROW()-2)),\"\")","v":{"$error":"#N/A"}},{"$f":"IF(INDIRECT(\"c\" & (VLOOKUP(Rebalance!$D$40,$F$2:$G$48,2,FALSE)+ROW()-2))=Rebalance!$D$40,INDIRECT(\"a\" & (VLOOKUP(Rebalance!$D$40,$F$2:$G$48,2,FALSE)+ROW()-2)),\"\")","v":{"$error":"#N/A"}},{"$f":"IF(INDIRECT(\"c\" & (VLOOKUP(Rebalance!$D$52,$F$2:$G$48,2,FALSE)+ROW()-2))=Rebalance!$D$52,INDIRECT(\"a\" & (VLOOKUP(Rebalance!$D$52,$F$2:$G$48,2,FALSE)+ROW()-2)),\"\")","v":{"$error":"#N/A"}},{"$f":"IF(INDIRECT(\"c\" & (VLOOKUP(Rebalance!$D$53,$F$2:$G$48,2,FALSE)+ROW()-2))=Rebalance!$D$53,INDIRECT(\"a\" & (VLOOKUP(Rebalance!$D$53,$F$2:$G$48,2,FALSE)+ROW()-2)),\"\")","v":{"$error":"#N/A"}},{"$f":"IF(INDIRECT(\"c\" & (VLOOKUP(Rebalance!$D$54,$F$2:$G$48,2,FALSE)+ROW()-2))=Rebalance!$D$54,INDIRECT(\"a\" & (VLOOKUP(Rebalance!$D$54,$F$2:$G$48,2,FALSE)+ROW()-2)),\"\")","v":{"$error":"#N/A"}},{"$f":"IF(INDIRECT(\"c\" & (VLOOKUP(Rebalance!$D$55,$F$2:$G$48,2,FALSE)+ROW()-2))=Rebalance!$D$55,INDIRECT(\"a\" & (VLOOKUP(Rebalance!$D$55,$F$2:$G$48,2,FALSE)+ROW()-2)),\"\")","v":{"$error":"#N/A"}},{"$f":"IF(INDIRECT(\"c\" & (VLOOKUP(Rebalance!$D$56,$F$2:$G$48,2,FALSE)+ROW()-2))=Rebalance!$D$56,INDIRECT(\"a\" & (VLOOKUP(Rebalance!$D$56,$F$2:$G$48,2,FALSE)+ROW()-2)),\"\")","v":{"$error":"#N/A"}},{"$f":"IF(INDIRECT(\"c\" & (VLOOKUP(Rebalance!$D$57,$F$2:$G$48,2,FALSE)+ROW()-2))=Rebalance!$D$57,INDIRECT(\"a\" & (VLOOKUP(Rebalance!$D$57,$F$2:$G$48,2,FALSE)+ROW()-2)),\"\")","v":{"$error":"#N/A"}},{"$f":"IF(INDIRECT(\"c\" & (VLOOKUP(Rebalance!$D$58,$F$2:$G$48,2,FALSE)+ROW()-2))=Rebalance!$D$58,INDIRECT(\"a\" & (VLOOKUP(Rebalance!$D$58,$F$2:$G$48,2,FALSE)+ROW()-2)),\"\")","v":{"$error":"#N/A"}},{"$f":"IF(INDIRECT(\"c\" & (VLOOKUP(Rebalance!$D$59,$F$2:$G$48,2,FALSE)+ROW()-2))=Rebalance!$D$59,INDIRECT(\"a\" & (VLOOKUP(Rebalance!$D$59,$F$2:$G$48,2,FALSE)+ROW()-2)),\"\")","v":{"$error":"#N/A"}},{"$f":"IF(INDIRECT(\"c\" & (VLOOKUP(Rebalance!$D$60,$F$2:$G$48,2,FALSE)+ROW()-2))=Rebalance!$D$60,INDIRECT(\"a\" & (VLOOKUP(Rebalance!$D$60,$F$2:$G$48,2,FALSE)+ROW()-2)),\"\")","v":{"$error":"#N/A"}},{"$f":"IF(INDIRECT(\"c\" & (VLOOKUP(Rebalance!$D$61,$F$2:$G$48,2,FALSE)+ROW()-2))=Rebalance!$D$61,INDIRECT(\"a\" & (VLOOKUP(Rebalance!$D$61,$F$2:$G$48,2,FALSE)+ROW()-2)),\"\")","v":{"$error":"#N/A"}},{"$f":"IF(INDIRECT(\"c\" & (VLOOKUP(Rebalance!$D$62,$F$2:$G$48,2,FALSE)+ROW()-2))=Rebalance!$D$62,INDIRECT(\"a\" & (VLOOKUP(Rebalance!$D$62,$F$2:$G$48,2,FALSE)+ROW()-2)),\"\")","v":{"$error":"#N/A"}},{"$f":"IF(INDIRECT(\"c\" & (VLOOKUP(Rebalance!$D$63,$F$2:$G$48,2,FALSE)+ROW()-2))=Rebalance!$D$63,INDIRECT(\"a\" & (VLOOKUP(Rebalance!$D$63,$F$2:$G$48,2,FALSE)+ROW()-2)),\"\")","v":{"$error":"#N/A"}},{"$f":"IF(INDIRECT(\"c\" & (VLOOKUP(Rebalance!$D$64,$F$2:$G$48,2,FALSE)+ROW()-2))=Rebalance!$D$64,INDIRECT(\"a\" & (VLOOKUP(Rebalance!$D$64,$F$2:$G$48,2,FALSE)+ROW()-2)),\"\")","v":{"$error":"#N/A"}},{"$f":"IF(INDIRECT(\"c\" & (VLOOKUP(Rebalance!$D$65,$F$2:$G$48,2,FALSE)+ROW()-2))=Rebalance!$D$65,INDIRECT(\"a\" & (VLOOKUP(Rebalance!$D$65,$F$2:$G$48,2,FALSE)+ROW()-2)),\"\")","v":{"$error":"#N/A"}},{"$f":"IF(INDIRECT(\"c\" & (VLOOKUP(Rebalance!$D$66,$F$2:$G$48,2,FALSE)+ROW()-2))=Rebalance!$D$66,INDIRECT(\"a\" & (VLOOKUP(Rebalance!$D$66,$F$2:$G$48,2,FALSE)+ROW()-2)),\"\")","v":{"$error":"#N/A"}}]
[null,null,null,{"$f":"ROW()","v":601},null,null,{"$f":"VLOOKUP(F601,$C$2:$D$599,2,FALSE)","v":{"$error":"#N/A"}},{"$f":"IF(INDIRECT(\"c\" & (VLOOKUP(Rebalance!$D$26,$F$2:$G$48,2,FALSE)+ROW()-2))=Rebalance!$D$26,INDIRECT(\"a\" & (VLOOKUP(Rebalance!$D$26,$F$2:$G$48,2,FALSE)+ROW()-2)),\"\")","v":{"$error":"#N/A"}},{"$f":"IF(INDIRECT(\"c\" & (VLOOKUP(Rebalance!$D$27,$F$2:$G$48,2,FALSE)+ROW()-2))=Rebalance!$D$27,INDIRECT(\"a\" & (VLOOKUP(Rebalance!$D$27,$F$2:$G$48,2,FALSE)+ROW()-2)),\"\")","v":{"$error":"#N/A"}},{"$f":"IF(INDIRECT(\"c\" & (VLOOKUP(Rebalance!$D$28,$F$2:$G$48,2,FALSE)+ROW()-2))=Rebalance!$D$28,INDIRECT(\"a\" & (VLOOKUP(Rebalance!$D$28,$F$2:$G$48,2,FALSE)+ROW()-2)),\"\")","v":{"$error":"#N/A"}},{"$f":"IF(INDIRECT(\"c\" & (VLOOKUP(Rebalance!$D$29,$F$2:$G$48,2,FALSE)+ROW()-2))=Rebalance!$D$29,INDIRECT(\"a\" & (VLOOKUP(Rebalance!$D$29,$F$2:$G$48,2,FALSE)+ROW()-2)),\"\")","v":{"$error":"#N/A"}},{"$f":"IF(INDIRECT(\"c\" & (VLOOKUP(Rebalance!$D$30,$F$2:$G$48,2,FALSE)+ROW()-2))=Rebalance!$D$30,INDIRECT(\"a\" & (VLOOKUP(Rebalance!$D$30,$F$2:$G$48,2,FALSE)+ROW()-2)),\"\")","v":{"$error":"#N/A"}},{"$f":"IF(INDIRECT(\"c\" & (VLOOKUP(Rebalance!$D$31,$F$2:$G$48,2,FALSE)+ROW()-2))=Rebalance!$D$31,INDIRECT(\"a\" & (VLOOKUP(Rebalance!$D$31,$F$2:$G$48,2,FALSE)+ROW()-2)),\"\")","v":{"$error":"#N/A"}},{"$f":"IF(INDIRECT(\"c\" & (VLOOKUP(Rebalance!$D$32,$F$2:$G$48,2,FALSE)+ROW()-2))=Rebalance!$D$32,INDIRECT(\"a\" & (VLOOKUP(Rebalance!$D$32,$F$2:$G$48,2,FALSE)+ROW()-2)),\"\")","v":{"$error":"#N/A"}},{"$f":"IF(INDIRECT(\"c\" & (VLOOKUP(Rebalance!$D$33,$F$2:$G$48,2,FALSE)+ROW()-2))=Rebalance!$D$33,INDIRECT(\"a\" & (VLOOKUP(Rebalance!$D$33,$F$2:$G$48,2,FALSE)+ROW()-2)),\"\")","v":{"$error":"#N/A"}},{"$f":"IF(INDIRECT(\"c\" & (VLOOKUP(Rebalance!$D$34,$F$2:$G$48,2,FALSE)+ROW()-2))=Rebalance!$D$34,INDIRECT(\"a\" & (VLOOKUP(Rebalance!$D$34,$F$2:$G$48,2,FALSE)+ROW()-2)),\"\")","v":{"$error":"#N/A"}},{"$f":"IF(INDIRECT(\"c\" & (VLOOKUP(Rebalance!$D$35,$F$2:$G$48,2,FALSE)+ROW()-2))=Rebalance!$D$35,INDIRECT(\"a\" & (VLOOKUP(Rebalance!$D$35,$F$2:$G$48,2,FALSE)+ROW()-2)),\"\")","v":{"$error":"#N/A"}},{"$f":"IF(INDIRECT(\"c\" & (VLOOKUP(Rebalance!$D$36,$F$2:$G$48,2,FALSE)+ROW()-2))=Rebalance!$D$36,INDIRECT(\"a\" & (VLOOKUP(Rebalance!$D$36,$F$2:$G$48,2,FALSE)+ROW()-2)),\"\")","v":{"$error":"#N/A"}},{"$f":"IF(INDIRECT(\"c\" & (VLOOKUP(Rebalance!$D$37,$F$2:$G$48,2,FALSE)+ROW()-2))=Rebalance!$D$37,INDIRECT(\"a\" & (VLOOKUP(Rebalance!$D$37,$F$2:$G$48,2,FALSE)+ROW()-2)),\"\")","v":{"$error":"#N/A"}},{"$f":"IF(INDIRECT(\"c\" & (VLOOKUP(Rebalance!$D$38,$F$2:$G$48,2,FALSE)+ROW()-2))=Rebalance!$D$38,INDIRECT(\"a\" & (VLOOKUP(Rebalance!$D$38,$F$2:$G$48,2,FALSE)+ROW()-2)),\"\")","v":{"$error":"#N/A"}},{"$f":"IF(INDIRECT(\"c\" & (VLOOKUP(Rebalance!$D$39,$F$2:$G$48,2,FALSE)+ROW()-2))=Rebalance!$D$39,INDIRECT(\"a\" & (VLOOKUP(Rebalance!$D$39,$F$2:$G$48,2,FALSE)+ROW()-2)),\"\")","v":{"$error":"#N/A"}},{"$f":"IF(INDIRECT(\"c\" & (VLOOKUP(Rebalance!$D$40,$F$2:$G$48,2,FALSE)+ROW()-2))=Rebalance!$D$40,INDIRECT(\"a\" & (VLOOKUP(Rebalance!$D$40,$F$2:$G$48,2,FALSE)+ROW()-2)),\"\")","v":{"$error":"#N/A"}},{"$f":"IF(INDIRECT(\"c\" & (VLOOKUP(Rebalance!$D$52,$F$2:$G$48,2,FALSE)+ROW()-2))=Rebalance!$D$52,INDIRECT(\"a\" & (VLOOKUP(Rebalance!$D$52,$F$2:$G$48,2,FALSE)+ROW()-2)),\"\")","v":{"$error":"#N/A"}},{"$f":"IF(INDIRECT(\"c\" & (VLOOKUP(Rebalance!$D$53,$F$2:$G$48,2,FALSE)+ROW()-2))=Rebalance!$D$53,INDIRECT(\"a\" & (VLOOKUP(Rebalance!$D$53,$F$2:$G$48,2,FALSE)+ROW()-2)),\"\")","v":{"$error":"#N/A"}},{"$f":"IF(INDIRECT(\"c\" & (VLOOKUP(Rebalance!$D$54,$F$2:$G$48,2,FALSE)+ROW()-2))=Rebalance!$D$54,INDIRECT(\"a\" & (VLOOKUP(Rebalance!$D$54,$F$2:$G$48,2,FALSE)+ROW()-2)),\"\")","v":{"$error":"#N/A"}},{"$f":"IF(INDIRECT(\"c\" & (VLOOKUP(Rebalance!$D$55,$F$2:$G$48,2,FALSE)+ROW()-2))=Rebalance!$D$55,INDIRECT(\"a\" & (VLOOKUP(Rebalance!$D$55,$F$2:$G$48,2,FALSE)+ROW()-2)),\"\")","v":{"$error":"#N/A"}},{"$f":"IF(INDIRECT(\"c\" & (VLOOKUP(Rebalance!$D$56,$F$2:$G$48,2,FALSE)+ROW()-2))=Rebalance!$D$56,INDIRECT(\"a\" & (VLOOKUP(Rebalance!$D$56,$F$2:$G$48,2,FALSE)+ROW()-2)),\"\")","v":{"$error":"#N/A"}},{"$f":"IF(INDIRECT(\"c\" & (VLOOKUP(Rebalance!$D$57,$F$2:$G$48,2,FALSE)+ROW()-2))=Rebalance!$D$57,INDIRECT(\"a\" & (VLOOKUP(Rebalance!$D$57,$F$2:$G$48,2,FALSE)+ROW()-2)),\"\")","v":{"$error":"#N/A"}},{"$f":"IF(INDIRECT(\"c\" & (VLOOKUP(Rebalance!$D$58,$F$2:$G$48,2,FALSE)+ROW()-2))=Rebalance!$D$58,INDIRECT(\"a\" & (VLOOKUP(Rebalance!$D$58,$F$2:$G$48,2,FALSE)+ROW()-2)),\"\")","v":{"$error":"#N/A"}},{"$f":"IF(INDIRECT(\"c\" & (VLOOKUP(Rebalance!$D$59,$F$2:$G$48,2,FALSE)+ROW()-2))=Rebalance!$D$59,INDIRECT(\"a\" & (VLOOKUP(Rebalance!$D$59,$F$2:$G$48,2,FALSE)+ROW()-2)),\"\")","v":{"$error":"#N/A"}},{"$f":"IF(INDIRECT(\"c\" & (VLOOKUP(Rebalance!$D$60,$F$2:$G$48,2,FALSE)+ROW()-2))=Rebalance!$D$60,INDIRECT(\"a\" & (VLOOKUP(Rebalance!$D$60,$F$2:$G$48,2,FALSE)+ROW()-2)),\"\")","v":{"$error":"#N/A"}},{"$f":"IF(INDIRECT(\"c\" & (VLOOKUP(Rebalance!$D$61,$F$2:$G$48,2,FALSE)+ROW()-2))=Rebalance!$D$61,INDIRECT(\"a\" & (VLOOKUP(Rebalance!$D$61,$F$2:$G$48,2,FALSE)+ROW()-2)),\"\")","v":{"$error":"#N/A"}},{"$f":"IF(INDIRECT(\"c\" & (VLOOKUP(Rebalance!$D$62,$F$2:$G$48,2,FALSE)+ROW()-2))=Rebalance!$D$62,INDIRECT(\"a\" & (VLOOKUP(Rebalance!$D$62,$F$2:$G$48,2,FALSE)+ROW()-2)),\"\")","v":{"$error":"#N/A"}},{"$f":"IF(INDIRECT(\"c\" & (VLOOKUP(Rebalance!$D$63,$F$2:$G$48,2,FALSE)+ROW()-2))=Rebalance!$D$63,INDIRECT(\"a\" & (VLOOKUP(Rebalance!$D$63,$F$2:$G$48,2,FALSE)+ROW()-2)),\"\")","v":{"$error":"#N/A"}},{"$f":"IF(INDIRECT(\"c\" & (VLOOKUP(Rebalance!$D$64,$F$2:$G$48,2,FALSE)+ROW()-2))=Rebalance!$D$64,INDIRECT(\"a\" & (VLOOKUP(Rebalance!$D$64,$F$2:$G$48,2,FALSE)+ROW()-2)),\"\")","v":{"$error":"#N/A"}},{"$f":"IF(INDIRECT(\"c\" & (VLOOKUP(Rebalance!$D$65,$F$2:$G$48,2,FALSE)+ROW()-2))=Rebalance!$D$65,INDIRECT(\"a\" & (VLOOKUP(Rebalance!$D$65,$F$2:$G$48,2,FALSE)+ROW()-2)),\"\")","v":{"$error":"#N/A"}},{"$f":"IF(INDIRECT(\"c\" & (VLOOKUP(Rebalance!$D$66,$F$2:$G$48,2,FALSE)+ROW()-2))=Rebalance!$D$66,INDIRECT(\"a\" & (VLOOKUP(Rebalance!$D$66,$F$2:$G$48,2,FALSE)+ROW()-2)),\"\")","v":{"$error":"#N/A"}}]
[null,null,null,{"$f":"ROW()","v":602},null,null,{"$f":"VLOOKUP(F602,$C$2:$D$599,2,FALSE)","v":{"$error":"#N/A"}},{"$f":"IF(INDIRECT(\"c\" & (VLOOKUP(Rebalance!$D$26,$F$2:$G$48,2,FALSE)+ROW()-2))=Rebalance!$D$26,INDIRECT(\"a\" & (VLOOKUP(Rebalance!$D$26,$F$2:$G$48,2,FALSE)+ROW()-2)),\"\")","v":{"$error":"#N/A"}},{"$f":"IF(INDIRECT(\"c\" & (VLOOKUP(Rebalance!$D$27,$F$2:$G$48,2,FALSE)+ROW()-2))=Rebalance!$D$27,INDIRECT(\"a\" & (VLOOKUP(Rebalance!$D$27,$F$2:$G$48,2,FALSE)+ROW()-2)),\"\")","v":{"$error":"#N/A"}},{"$f":"IF(INDIRECT(\"c\" & (VLOOKUP(Rebalance!$D$28,$F$2:$G$48,2,FALSE)+ROW()-2))=Rebalance!$D$28,INDIRECT(\"a\" & (VLOOKUP(Rebalance!$D$28,$F$2:$G$48,2,FALSE)+ROW()-2)),\"\")","v":{"$error":"#N/A"}},{"$f":"IF(INDIRECT(\"c\" & (VLOOKUP(Rebalance!$D$29,$F$2:$G$48,2,FALSE)+ROW()-2))=Rebalance!$D$29,INDIRECT(\"a\" & (VLOOKUP(Rebalance!$D$29,$F$2:$G$48,2,FALSE)+ROW()-2)),\"\")","v":{"$error":"#N/A"}},{"$f":"IF(INDIRECT(\"c\" & (VLOOKUP(Rebalance!$D$30,$F$2:$G$48,2,FALSE)+ROW()-2))=Rebalance!$D$30,INDIRECT(\"a\" & (VLOOKUP(Rebalance!$D$30,$F$2:$G$48,2,FALSE)+ROW()-2)),\"\")","v":{"$error":"#N/A"}},{"$f":"IF(INDIRECT(\"c\" & (VLOOKUP(Rebalance!$D$31,$F$2:$G$48,2,FALSE)+ROW()-2))=Rebalance!$D$31,INDIRECT(\"a\" & (VLOOKUP(Rebalance!$D$31,$F$2:$G$48,2,FALSE)+ROW()-2)),\"\")","v":{"$error":"#N/A"}},{"$f":"IF(INDIRECT(\"c\" & (VLOOKUP(Rebalance!$D$32,$F$2:$G$48,2,FALSE)+ROW()-2))=Rebalance!$D$32,INDIRECT(\"a\" & (VLOOKUP(Rebalance!$D$32,$F$2:$G$48,2,FALSE)+ROW()-2)),\"\")","v":{"$error":"#N/A"}},{"$f":"IF(INDIRECT(\"c\" & (VLOOKUP(Rebalance!$D$33,$F$2:$G$48,2,FALSE)+ROW()-2))=Rebalance!$D$33,INDIRECT(\"a\" & (VLOOKUP(Rebalance!$D$33,$F$2:$G$48,2,FALSE)+ROW()-2)),\"\")","v":{"$error":"#N/A"}},{"$f":"IF(INDIRECT(\"c\" & (VLOOKUP(Rebalance!$D$34,$F$2:$G$48,2,FALSE)+ROW()-2))=Rebalance!$D$34,INDIRECT(\"a\" & (VLOOKUP(Rebalance!$D$34,$F$2:$G$48,2,FALSE)+ROW()-2)),\"\")","v":{"$error":"#N/A"}},{"$f":"IF(INDIRECT(\"c\" & (VLOOKUP(Rebalance!$D$35,$F$2:$G$48,2,FALSE)+ROW()-2))=Rebalance!$D$35,INDIRECT(\"a\" & (VLOOKUP(Rebalance!$D$35,$F$2:$G$48,2,FALSE)+ROW()-2)),\"\")","v":{"$error":"#N/A"}},{"$f":"IF(INDIRECT(\"c\" & (VLOOKUP(Rebalance!$D$36,$F$2:$G$48,2,FALSE)+ROW()-2))=Rebalance!$D$36,INDIRECT(\"a\" & (VLOOKUP(Rebalance!$D$36,$F$2:$G$48,2,FALSE)+ROW()-2)),\"\")","v":{"$error":"#N/A"}},{"$f":"IF(INDIRECT(\"c\" & (VLOOKUP(Rebalance!$D$37,$F$2:$G$48,2,FALSE)+ROW()-2))=Rebalance!$D$37,INDIRECT(\"a\" & (VLOOKUP(Rebalance!$D$37,$F$2:$G$48,2,FALSE)+ROW()-2)),\"\")","v":{"$error":"#N/A"}},{"$f":"IF(INDIRECT(\"c\" & (VLOOKUP(Rebalance!$D$38,$F$2:$G$48,2,FALSE)+ROW()-2))=Rebalance!$D$38,INDIRECT(\"a\" & (VLOOKUP(Rebalance!$D$38,$F$2:$G$48,2,FALSE)+ROW()-2)),\"\")","v":{"$error":"#N/A"}},{"$f":"IF(INDIRECT(\"c\" & (VLOOKUP(Rebalance!$D$39,$F$2:$G$48,2,FALSE)+ROW()-2))=Rebalance!$D$39,INDIRECT(\"a\" & (VLOOKUP(Rebalance!$D$39,$F$2:$G$48,2,FALSE)+ROW()-2)),\"\")","v":{"$error":"#N/A"}},{"$f":"IF(INDIRECT(\"c\" & (VLOOKUP(Rebalance!$D$40,$F$2:$G$48,2,FALSE)+ROW()-2))=Rebalance!$D$40,INDIRECT(\"a\" & (VLOOKUP(Rebalance!$D$40,$F$2:$G$48,2,FALSE)+ROW()-2)),\"\")","v":{"$error":"#N/A"}},{"$f":"IF(INDIRECT(\"c\" & (VLOOKUP(Rebalance!$D$52,$F$2:$G$48,2,FALSE)+ROW()-2))=Rebalance!$D$52,INDIRECT(\"a\" & (VLOOKUP(Rebalance!$D$52,$F$2:$G$48,2,FALSE)+ROW()-2)),\"\")","v":{"$error":"#N/A"}},{"$f":"IF(INDIRECT(\"c\" & (VLOOKUP(Rebalance!$D$53,$F$2:$G$48,2,FALSE)+ROW()-2))=Rebalance!$D$53,INDIRECT(\"a\" & (VLOOKUP(Rebalance!$D$53,$F$2:$G$48,2,FALSE)+ROW()-2)),\"\")","v":{"$error":"#N/A"}},{"$f":"IF(INDIRECT(\"c\" & (VLOOKUP(Rebalance!$D$54,$F$2:$G$48,2,FALSE)+ROW()-2))=Rebalance!$D$54,INDIRECT(\"a\" & (VLOOKUP(Rebalance!$D$54,$F$2:$G$48,2,FALSE)+ROW()-2)),\"\")","v":{"$error":"#N/A"}},{"$f":"IF(INDIRECT(\"c\" & (VLOOKUP(Rebalance!$D$55,$F$2:$G$48,2,FALSE)+ROW()-2))=Rebalance!$D$55,INDIRECT(\"a\" & (VLOOKUP(Rebalance!$D$55,$F$2:$G$48,2,FALSE)+ROW()-2)),\"\")","v":{"$error":"#N/A"}},{"$f":"IF(INDIRECT(\"c\" & (VLOOKUP(Rebalance!$D$56,$F$2:$G$48,2,FALSE)+ROW()-2))=Rebalance!$D$56,INDIRECT(\"a\" & (VLOOKUP(Rebalance!$D$56,$F$2:$G$48,2,FALSE)+ROW()-2)),\"\")","v":{"$error":"#N/A"}},{"$f":"IF(INDIRECT(\"c\" & (VLOOKUP(Rebalance!$D$57,$F$2:$G$48,2,FALSE)+ROW()-2))=Rebalance!$D$57,INDIRECT(\"a\" & (VLOOKUP(Rebalance!$D$57,$F$2:$G$48,2,FALSE)+ROW()-2)),\"\")","v":{"$error":"#N/A"}},{"$f":"IF(INDIRECT(\"c\" & (VLOOKUP(Rebalance!$D$58,$F$2:$G$48,2,FALSE)+ROW()-2))=Rebalance!$D$58,INDIRECT(\"a\" & (VLOOKUP(Rebalance!$D$58,$F$2:$G$48,2,FALSE)+ROW()-2)),\"\")","v":{"$error":"#N/A"}},{"$f":"IF(INDIRECT(\"c\" & (VLOOKUP(Rebalance!$D$59,$F$2:$G$48,2,FALSE)+ROW()-2))=Rebalance!$D$59,INDIRECT(\"a\" & (VLOOKUP(Rebalance!$D$59,$F$2:$G$48,2,FALSE)+ROW()-2)),\"\")","v":{"$error":"#N/A"}},{"$f":"IF(INDIRECT(\"c\" & (VLOOKUP(Rebalance!$D$60,$F$2:$G$48,2,FALSE)+ROW()-2))=Rebalance!$D$60,INDIRECT(\"a\" & (VLOOKUP(Rebalance!$D$60,$F$2:$G$48,2,FALSE)+ROW()-2)),\"\")","v":{"$error":"#N/A"}},{"$f":"IF(INDIRECT(\"c\" & (VLOOKUP(Rebalance!$D$61,$F$2:$G$48,2,FALSE)+ROW()-2))=Rebalance!$D$61,INDIRECT(\"a\" & (VLOOKUP(Rebalance!$D$61,$F$2:$G$48,2,FALSE)+ROW()-2)),\"\")","v":{"$error":"#N/A"}},{"$f":"IF(INDIRECT(\"c\" & (VLOOKUP(Rebalance!$D$62,$F$2:$G$48,2,FALSE)+ROW()-2))=Rebalance!$D$62,INDIRECT(\"a\" & (VLOOKUP(Rebalance!$D$62,$F$2:$G$48,2,FALSE)+ROW()-2)),\"\")","v":{"$error":"#N/A"}},{"$f":"IF(INDIRECT(\"c\" & (VLOOKUP(Rebalance!$D$63,$F$2:$G$48,2,FALSE)+ROW()-2))=Rebalance!$D$63,INDIRECT(\"a\" & (VLOOKUP(Rebalance!$D$63,$F$2:$G$48,2,FALSE)+ROW()-2)),\"\")","v":{"$error":"#N/A"}},{"$f":"IF(INDIRECT(\"c\" & (VLOOKUP(Rebalance!$D$64,$F$2:$G$48,2,FALSE)+ROW()-2))=Rebalance!$D$64,INDIRECT(\"a\" & (VLOOKUP(Rebalance!$D$64,$F$2:$G$48,2,FALSE)+ROW()-2)),\"\")","v":{"$error":"#N/A"}},{"$f":"IF(INDIRECT(\"c\" & (VLOOKUP(Rebalance!$D$65,$F$2:$G$48,2,FALSE)+ROW()-2))=Rebalance!$D$65,INDIRECT(\"a\" & (VLOOKUP(Rebalance!$D$65,$F$2:$G$48,2,FALSE)+ROW()-2)),\"\")","v":{"$error":"#N/A"}},{"$f":"IF(INDIRECT(\"c\" & (VLOOKUP(Rebalance!$D$66,$F$2:$G$48,2,FALSE)+ROW()-2))=Rebalance!$D$66,INDIRECT(\"a\" & (VLOOKUP(Rebalance!$D$66,$F$2:$G$48,2,FALSE)+ROW()-2)),\"\")","v":{"$error":"#N/A"}}]
[null,null,null,{"$f":"ROW()","v":603},null,null,{"$f":"VLOOKUP(F603,$C$2:$D$599,2,FALSE)","v":{"$error":"#N/A"}},{"$f":"IF(INDIRECT(\"c\" & (VLOOKUP(Rebalance!$D$26,$F$2:$G$48,2,FALSE)+ROW()-2))=Rebalance!$D$26,INDIRECT(\"a\" & (VLOOKUP(Rebalance!$D$26,$F$2:$G$48,2,FALSE)+ROW()-2)),\"\")","v":{"$error":"#N/A"}},{"$f":"IF(INDIRECT(\"c\" & (VLOOKUP(Rebalance!$D$27,$F$2:$G$48,2,FALSE)+ROW()-2))=Rebalance!$D$27,INDIRECT(\"a\" & (VLOOKUP(Rebalance!$D$27,$F$2:$G$48,2,FALSE)+ROW()-2)),\"\")","v":{"$error":"#N/A"}},{"$f":"IF(INDIRECT(\"c\" & (VLOOKUP(Rebalance!$D$28,$F$2:$G$48,2,FALSE)+ROW()-2))=Rebalance!$D$28,INDIRECT(\"a\" & (VLOOKUP(Rebalance!$D$28,$F$2:$G$48,2,FALSE)+ROW()-2)),\"\")","v":{"$error":"#N/A"}},{"$f":"IF(INDIRECT(\"c\" & (VLOOKUP(Rebalance!$D$29,$F$2:$G$48,2,FALSE)+ROW()-2))=Rebalance!$D$29,INDIRECT(\"a\" & (VLOOKUP(Rebalance!$D$29,$F$2:$G$48,2,FALSE)+ROW()-2)),\"\")","v":{"$error":"#N/A"}},{"$f":"IF(INDIRECT(\"c\" & (VLOOKUP(Rebalance!$D$30,$F$2:$G$48,2,FALSE)+ROW()-2))=Rebalance!$D$30,INDIRECT(\"a\" & (VLOOKUP(Rebalance!$D$30,$F$2:$G$48,2,FALSE)+ROW()-2)),\"\")","v":{"$error":"#N/A"}},{"$f":"IF(INDIRECT(\"c\" & (VLOOKUP(Rebalance!$D$31,$F$2:$G$48,2,FALSE)+ROW()-2))=Rebalance!$D$31,INDIRECT(\"a\" & (VLOOKUP(Rebalance!$D$31,$F$2:$G$48,2,FALSE)+ROW()-2)),\"\")","v":{"$error":"#N/A"}},{"$f":"IF(INDIRECT(\"c\" & (VLOOKUP(Rebalance!$D$32,$F$2:$G$48,2,FALSE)+ROW()-2))=Rebalance!$D$32,INDIRECT(\"a\" & (VLOOKUP(Rebalance!$D$32,$F$2:$G$48,2,FALSE)+ROW()-2)),\"\")","v":{"$error":"#N/A"}},{"$f":"IF(INDIRECT(\"c\" & (VLOOKUP(Rebalance!$D$33,$F$2:$G$48,2,FALSE)+ROW()-2))=Rebalance!$D$33,INDIRECT(\"a\" & (VLOOKUP(Rebalance!$D$33,$F$2:$G$48,2,FALSE)+ROW()-2)),\"\")","v":{"$error":"#N/A"}},{"$f":"IF(INDIRECT(\"c\" & (VLOOKUP(Rebalance!$D$34,$F$2:$G$48,2,FALSE)+ROW()-2))=Rebalance!$D$34,INDIRECT(\"a\" & (VLOOKUP(Rebalance!$D$34,$F$2:$G$48,2,FALSE)+ROW()-2)),\"\")","v":{"$error":"#N/A"}},{"$f":"IF(INDIRECT(\"c\" & (VLOOKUP(Rebalance!$D$35,$F$2:$G$48,2,FALSE)+ROW()-2))=Rebalance!$D$35,INDIRECT(\"a\" & (VLOOKUP(Rebalance!$D$35,$F$2:$G$48,2,FALSE)+ROW()-2)),\"\")","v":{"$error":"#N/A"}},{"$f":"IF(INDIRECT(\"c\" & (VLOOKUP(Rebalance!$D$36,$F$2:$G$48,2,FALSE)+ROW()-2))=Rebalance!$D$36,INDIRECT(\"a\" & (VLOOKUP(Rebalance!$D$36,$F$2:$G$48,2,FALSE)+ROW()-2)),\"\")","v":{"$error":"#N/A"}},{"$f":"IF(INDIRECT(\"c\" & (VLOOKUP(Rebalance!$D$37,$F$2:$G$48,2,FALSE)+ROW()-2))=Rebalance!$D$37,INDIRECT(\"a\" & (VLOOKUP(Rebalance!$D$37,$F$2:$G$48,2,FALSE)+ROW()-2)),\"\")","v":{"$error":"#N/A"}},{"$f":"IF(INDIRECT(\"c\" & (VLOOKUP(Rebalance!$D$38,$F$2:$G$48,2,FALSE)+ROW()-2))=Rebalance!$D$38,INDIRECT(\"a\" & (VLOOKUP(Rebalance!$D$38,$F$2:$G$48,2,FALSE)+ROW()-2)),\"\")","v":{"$error":"#N/A"}},{"$f":"IF(INDIRECT(\"c\" & (VLOOKUP(Rebalance!$D$39,$F$2:$G$48,2,FALSE)+ROW()-2))=Rebalance!$D$39,INDIRECT(\"a\" & (VLOOKUP(Rebalance!$D$39,$F$2:$G$48,2,FALSE)+ROW()-2)),\"\")","v":{"$error":"#N/A"}},{"$f":"IF(INDIRECT(\"c\" & (VLOOKUP(Rebalance!$D$40,$F$2:$G$48,2,FALSE)+ROW()-2))=Rebalance!$D$40,INDIRECT(\"a\" & (VLOOKUP(Rebalance!$D$40,$F$2:$G$48,2,FALSE)+ROW()-2)),\"\")","v":{"$error":"#N/A"}},{"$f":"IF(INDIRECT(\"c\" & (VLOOKUP(Rebalance!$D$52,$F$2:$G$48,2,FALSE)+ROW()-2))=Rebalance!$D$52,INDIRECT(\"a\" & (VLOOKUP(Rebalance!$D$52,$F$2:$G$48,2,FALSE)+ROW()-2)),\"\")","v":{"$error":"#N/A"}},{"$f":"IF(INDIRECT(\"c\" & (VLOOKUP(Rebalance!$D$53,$F$2:$G$48,2,FALSE)+ROW()-2))=Rebalance!$D$53,INDIRECT(\"a\" & (VLOOKUP(Rebalance!$D$53,$F$2:$G$48,2,FALSE)+ROW()-2)),\"\")","v":{"$error":"#N/A"}},{"$f":"IF(INDIRECT(\"c\" & (VLOOKUP(Rebalance!$D$54,$F$2:$G$48,2,FALSE)+ROW()-2))=Rebalance!$D$54,INDIRECT(\"a\" & (VLOOKUP(Rebalance!$D$54,$F$2:$G$48,2,FALSE)+ROW()-2)),\"\")","v":{"$error":"#N/A"}},{"$f":"IF(INDIRECT(\"c\" & (VLOOKUP(Rebalance!$D$55,$F$2:$G$48,2,FALSE)+ROW()-2))=Rebalance!$D$55,INDIRECT(\"a\" & (VLOOKUP(Rebalance!$D$55,$F$2:$G$48,2,FALSE)+ROW()-2)),\"\")","v":{"$error":"#N/A"}},{"$f":"IF(INDIRECT(\"c\" & (VLOOKUP(Rebalance!$D$56,$F$2:$G$48,2,FALSE)+ROW()-2))=Rebalance!$D$56,INDIRECT(\"a\" & (VLOOKUP(Rebalance!$D$56,$F$2:$G$48,2,FALSE)+ROW()-2)),\"\")","v":{"$error":"#N/A"}},{"$f":"IF(INDIRECT(\"c\" & (VLOOKUP(Rebalance!$D$57,$F$2:$G$48,2,FALSE)+ROW()-2))=Rebalance!$D$57,INDIRECT(\"a\" & (VLOOKUP(Rebalance!$D$57,$F$2:$G$48,2,FALSE)+ROW()-2)),\"\")","v":{"$error":"#N/A"}},{"$f":"IF(INDIRECT(\"c\" & (VLOOKUP(Rebalance!$D$58,$F$2:$G$48,2,FALSE)+ROW()-2))=Rebalance!$D$58,INDIRECT(\"a\" & (VLOOKUP(Rebalance!$D$58,$F$2:$G$48,2,FALSE)+ROW()-2)),\"\")","v":{"$error":"#N/A"}},{"$f":"IF(INDIRECT(\"c\" & (VLOOKUP(Rebalance!$D$59,$F$2:$G$48,2,FALSE)+ROW()-2))=Rebalance!$D$59,INDIRECT(\"a\" & (VLOOKUP(Rebalance!$D$59,$F$2:$G$48,2,FALSE)+ROW()-2)),\"\")","v":{"$error":"#N/A"}},{"$f":"IF(INDIRECT(\"c\" & (VLOOKUP(Rebalance!$D$60,$F$2:$G$48,2,FALSE)+ROW()-2))=Rebalance!$D$60,INDIRECT(\"a\" & (VLOOKUP(Rebalance!$D$60,$F$2:$G$48,2,FALSE)+ROW()-2)),\"\")","v":{"$error":"#N/A"}},{"$f":"IF(INDIRECT(\"c\" & (VLOOKUP(Rebalance!$D$61,$F$2:$G$48,2,FALSE)+ROW()-2))=Rebalance!$D$61,INDIRECT(\"a\" & (VLOOKUP(Rebalance!$D$61,$F$2:$G$48,2,FALSE)+ROW()-2)),\"\")","v":{"$error":"#N/A"}},{"$f":"IF(INDIRECT(\"c\" & (VLOOKUP(Rebalance!$D$62,$F$2:$G$48,2,FALSE)+ROW()-2))=Rebalance!$D$62,INDIRECT(\"a\" & (VLOOKUP(Rebalance!$D$62,$F$2:$G$48,2,FALSE)+ROW()-2)),\"\")","v":{"$error":"#N/A"}},{"$f":"IF(INDIRECT(\"c\" & (VLOOKUP(Rebalance!$D$63,$F$2:$G$48,2,FALSE)+ROW()-2))=Rebalance!$D$63,INDIRECT(\"a\" & (VLOOKUP(Rebalance!$D$63,$F$2:$G$48,2,FALSE)+ROW()-2)),\"\")","v":{"$error":"#N/A"}},{"$f":"IF(INDIRECT(\"c\" & (VLOOKUP(Rebalance!$D$64,$F$2:$G$48,2,FALSE)+ROW()-2))=Rebalance!$D$64,INDIRECT(\"a\" & (VLOOKUP(Rebalance!$D$64,$F$2:$G$48,2,FALSE)+ROW()-2)),\"\")","v":{"$error":"#N/A"}},{"$f":"IF(INDIRECT(\"c\" & (VLOOKUP(Rebalance!$D$65,$F$2:$G$48,2,FALSE)+ROW()-2))=Rebalance!$D$65,INDIRECT(\"a\" & (VLOOKUP(Rebalance!$D$65,$F$2:$G$48,2,FALSE)+ROW()-2)),\"\")","v":{"$error":"#N/A"}},{"$f":"IF(INDIRECT(\"c\" & (VLOOKUP(Rebalance!$D$66,$F$2:$G$48,2,FALSE)+ROW()-2))=Rebalance!$D$66,INDIRECT(\"a\" & (VLOOKUP(Rebalance!$D$66,$F$2:$G$48,2,FALSE)+ROW()-2)),\"\")","v":{"$error":"#N/A"}}]
[null,null,null,{"$f":"ROW()","v":604},null,null,{"$f":"VLOOKUP(F604,$C$2:$D$599,2,FALSE)","v":{"$error":"#N/A"}},{"$f":"IF(INDIRECT(\"c\" & (VLOOKUP(Rebalance!$D$26,$F$2:$G$48,2,FALSE)+ROW()-2))=Rebalance!$D$26,INDIRECT(\"a\" & (VLOOKUP(Rebalance!$D$26,$F$2:$G$48,2,FALSE)+ROW()-2)),\"\")","v":{"$error":"#N/A"}},{"$f":"IF(INDIRECT(\"c\" & (VLOOKUP(Rebalance!$D$27,$F$2:$G$48,2,FALSE)+ROW()-2))=Rebalance!$D$27,INDIRECT(\"a\" & (VLOOKUP(Rebalance!$D$27,$F$2:$G$48,2,FALSE)+ROW()-2)),\"\")","v":{"$error":"#N/A"}},{"$f":"IF(INDIRECT(\"c\" & (VLOOKUP(Rebalance!$D$28,$F$2:$G$48,2,FALSE)+ROW()-2))=Rebalance!$D$28,INDIRECT(\"a\" & (VLOOKUP(Rebalance!$D$28,$F$2:$G$48,2,FALSE)+ROW()-2)),\"\")","v":{"$error":"#N/A"}},{"$f":"IF(INDIRECT(\"c\" & (VLOOKUP(Rebalance!$D$29,$F$2:$G$48,2,FALSE)+ROW()-2))=Rebalance!$D$29,INDIRECT(\"a\" & (VLOOKUP(Rebalance!$D$29,$F$2:$G$48,2,FALSE)+ROW()-2)),\"\")","v":{"$error":"#N/A"}},{"$f":"IF(INDIRECT(\"c\" & (VLOOKUP(Rebalance!$D$30,$F$2:$G$48,2,FALSE)+ROW()-2))=Rebalance!$D$30,INDIRECT(\"a\" & (VLOOKUP(Rebalance!$D$30,$F$2:$G$48,2,FALSE)+ROW()-2)),\"\")","v":{"$error":"#N/A"}},{"$f":"IF(INDIRECT(\"c\" & (VLOOKUP(Rebalance!$D$31,$F$2:$G$48,2,FALSE)+ROW()-2))=Rebalance!$D$31,INDIRECT(\"a\" & (VLOOKUP(Rebalance!$D$31,$F$2:$G$48,2,FALSE)+ROW()-2)),\"\")","v":{"$error":"#N/A"}},{"$f":"IF(INDIRECT(\"c\" & (VLOOKUP(Rebalance!$D$32,$F$2:$G$48,2,FALSE)+ROW()-2))=Rebalance!$D$32,INDIRECT(\"a\" & (VLOOKUP(Rebalance!$D$32,$F$2:$G$48,2,FALSE)+ROW()-2)),\"\")","v":{"$error":"#N/A"}},{"$f":"IF(INDIRECT(\"c\" & (VLOOKUP(Rebalance!$D$33,$F$2:$G$48,2,FALSE)+ROW()-2))=Rebalance!$D$33,INDIRECT(\"a\" & (VLOOKUP(Rebalance!$D$33,$F$2:$G$48,2,FALSE)+ROW()-2)),\"\")","v":{"$error":"#N/A"}},{"$f":"IF(INDIRECT(\"c\" & (VLOOKUP(Rebalance!$D$34,$F$2:$G$48,2,FALSE)+ROW()-2))=Rebalance!$D$34,INDIRECT(\"a\" & (VLOOKUP(Rebalance!$D$34,$F$2:$G$48,2,FALSE)+ROW()-2)),\"\")","v":{"$error":"#N/A"}},{"$f":"IF(INDIRECT(\"c\" & (VLOOKUP(Rebalance!$D$35,$F$2:$G$48,2,FALSE)+ROW()-2))=Rebalance!$D$35,INDIRECT(\"a\" & (VLOOKUP(Rebalance!$D$35,$F$2:$G$48,2,FALSE)+ROW()-2)),\"\")","v":{"$error":"#N/A"}},{"$f":"IF(INDIRECT(\"c\" & (VLOOKUP(Rebalance!$D$36,$F$2:$G$48,2,FALSE)+ROW()-2))=Rebalance!$D$36,INDIRECT(\"a\" & (VLOOKUP(Rebalance!$D$36,$F$2:$G$48,2,FALSE)+ROW()-2)),\"\")","v":{"$error":"#N/A"}},{"$f":"IF(INDIRECT(\"c\" & (VLOOKUP(Rebalance!$D$37,$F$2:$G$48,2,FALSE)+ROW()-2))=Rebalance!$D$37,INDIRECT(\"a\" & (VLOOKUP(Rebalance!$D$37,$F$2:$G$48,2,FALSE)+ROW()-2)),\"\")","v":{"$error":"#N/A"}},{"$f":"IF(INDIRECT(\"c\" & (VLOOKUP(Rebalance!$D$38,$F$2:$G$48,2,FALSE)+ROW()-2))=Rebalance!$D$38,INDIRECT(\"a\" & (VLOOKUP(Rebalance!$D$38,$F$2:$G$48,2,FALSE)+ROW()-2)),\"\")","v":{"$error":"#N/A"}},{"$f":"IF(INDIRECT(\"c\" & (VLOOKUP(Rebalance!$D$39,$F$2:$G$48,2,FALSE)+ROW()-2))=Rebalance!$D$39,INDIRECT(\"a\" & (VLOOKUP(Rebalance!$D$39,$F$2:$G$48,2,FALSE)+ROW()-2)),\"\")","v":{"$error":"#N/A"}},{"$f":"IF(INDIRECT(\"c\" & (VLOOKUP(Rebalance!$D$40,$F$2:$G$48,2,FALSE)+ROW()-2))=Rebalance!$D$40,INDIRECT(\"a\" & (VLOOKUP(Rebalance!$D$40,$F$2:$G$48,2,FALSE)+ROW()-2)),\"\")","v":{"$error":"#N/A"}},{"$f":"IF(INDIRECT(\"c\" & (VLOOKUP(Rebalance!$D$52,$F$2:$G$48,2,FALSE)+ROW()-2))=Rebalance!$D$52,INDIRECT(\"a\" & (VLOOKUP(Rebalance!$D$52,$F$2:$G$48,2,FALSE)+ROW()-2)),\"\")","v":{"$error":"#N/A"}},{"$f":"IF(INDIRECT(\"c\" & (VLOOKUP(Rebalance!$D$53,$F$2:$G$48,2,FALSE)+ROW()-2))=Rebalance!$D$53,INDIRECT(\"a\" & (VLOOKUP(Rebalance!$D$53,$F$2:$G$48,2,FALSE)+ROW()-2)),\"\")","v":{"$error":"#N/A"}},{"$f":"IF(INDIRECT(\"c\" & (VLOOKUP(Rebalance!$D$54,$F$2:$G$48,2,FALSE)+ROW()-2))=Rebalance!$D$54,INDIRECT(\"a\" & (VLOOKUP(Rebalance!$D$54,$F$2:$G$48,2,FALSE)+ROW()-2)),\"\")","v":{"$error":"#N/A"}},{"$f":"IF(INDIRECT(\"c\" & (VLOOKUP(Rebalance!$D$55,$F$2:$G$48,2,FALSE)+ROW()-2))=Rebalance!$D$55,INDIRECT(\"a\" & (VLOOKUP(Rebalance!$D$55,$F$2:$G$48,2,FALSE)+ROW()-2)),\"\")","v":{"$error":"#N/A"}},{"$f":"IF(INDIRECT(\"c\" & (VLOOKUP(Rebalance!$D$56,$F$2:$G$48,2,FALSE)+ROW()-2))=Rebalance!$D$56,INDIRECT(\"a\" & (VLOOKUP(Rebalance!$D$56,$F$2:$G$48,2,FALSE)+ROW()-2)),\"\")","v":{"$error":"#N/A"}},{"$f":"IF(INDIRECT(\"c\" & (VLOOKUP(Rebalance!$D$57,$F$2:$G$48,2,FALSE)+ROW()-2))=Rebalance!$D$57,INDIRECT(\"a\" & (VLOOKUP(Rebalance!$D$57,$F$2:$G$48,2,FALSE)+ROW()-2)),\"\")","v":{"$error":"#N/A"}},{"$f":"IF(INDIRECT(\"c\" & (VLOOKUP(Rebalance!$D$58,$F$2:$G$48,2,FALSE)+ROW()-2))=Rebalance!$D$58,INDIRECT(\"a\" & (VLOOKUP(Rebalance!$D$58,$F$2:$G$48,2,FALSE)+ROW()-2)),\"\")","v":{"$error":"#N/A"}},{"$f":"IF(INDIRECT(\"c\" & (VLOOKUP(Rebalance!$D$59,$F$2:$G$48,2,FALSE)+ROW()-2))=Rebalance!$D$59,INDIRECT(\"a\" & (VLOOKUP(Rebalance!$D$59,$F$2:$G$48,2,FALSE)+ROW()-2)),\"\")","v":{"$error":"#N/A"}},{"$f":"IF(INDIRECT(\"c\" & (VLOOKUP(Rebalance!$D$60,$F$2:$G$48,2,FALSE)+ROW()-2))=Rebalance!$D$60,INDIRECT(\"a\" & (VLOOKUP(Rebalance!$D$60,$F$2:$G$48,2,FALSE)+ROW()-2)),\"\")","v":{"$error":"#N/A"}},{"$f":"IF(INDIRECT(\"c\" & (VLOOKUP(Rebalance!$D$61,$F$2:$G$48,2,FALSE)+ROW()-2))=Rebalance!$D$61,INDIRECT(\"a\" & (VLOOKUP(Rebalance!$D$61,$F$2:$G$48,2,FALSE)+ROW()-2)),\"\")","v":{"$error":"#N/A"}},{"$f":"IF(INDIRECT(\"c\" & (VLOOKUP(Rebalance!$D$62,$F$2:$G$48,2,FALSE)+ROW()-2))=Rebalance!$D$62,INDIRECT(\"a\" & (VLOOKUP(Rebalance!$D$62,$F$2:$G$48,2,FALSE)+ROW()-2)),\"\")","v":{"$error":"#N/A"}},{"$f":"IF(INDIRECT(\"c\" & (VLOOKUP(Rebalance!$D$63,$F$2:$G$48,2,FALSE)+ROW()-2))=Rebalance!$D$63,INDIRECT(\"a\" & (VLOOKUP(Rebalance!$D$63,$F$2:$G$48,2,FALSE)+ROW()-2)),\"\")","v":{"$error":"#N/A"}},{"$f":"IF(INDIRECT(\"c\" & (VLOOKUP(Rebalance!$D$64,$F$2:$G$48,2,FALSE)+ROW()-2))=Rebalance!$D$64,INDIRECT(\"a\" & (VLOOKUP(Rebalance!$D$64,$F$2:$G$48,2,FALSE)+ROW()-2)),\"\")","v":{"$error":"#N/A"}},{"$f":"IF(INDIRECT(\"c\" & (VLOOKUP(Rebalance!$D$65,$F$2:$G$48,2,FALSE)+ROW()-2))=Rebalance!$D$65,INDIRECT(\"a\" & (VLOOKUP(Rebalance!$D$65,$F$2:$G$48,2,FALSE)+ROW()-2)),\"\")","v":{"$error":"#N/A"}},{"$f":"IF(INDIRECT(\"c\" & (VLOOKUP(Rebalance!$D$66,$F$2:$G$48,2,FALSE)+ROW()-2))=Rebalance!$D$66,INDIRECT(\"a\" & (VLOOKUP(Rebalance!$D$66,$F$2:$G$48,2,FALSE)+ROW()-2)),\"\")","v":{"$error":"#N/A"}}]
[null,null,null,{"$f":"ROW()","v":605},null,null,{"$f":"VLOOKUP(F605,$C$2:$D$599,2,FALSE)","v":{"$error":"#N/A"}},{"$f":"IF(INDIRECT(\"c\" & (VLOOKUP(Rebalance!$D$26,$F$2:$G$48,2,FALSE)+ROW()-2))=Rebalance!$D$26,INDIRECT(\"a\" & (VLOOKUP(Rebalance!$D$26,$F$2:$G$48,2,FALSE)+ROW()-2)),\"\")","v":{"$error":"#N/A"}},{"$f":"IF(INDIRECT(\"c\" & (VLOOKUP(Rebalance!$D$27,$F$2:$G$48,2,FALSE)+ROW()-2))=Rebalance!$D$27,INDIRECT(\"a\" & (VLOOKUP(Rebalance!$D$27,$F$2:$G$48,2,FALSE)+ROW()-2)),\"\")","v":{"$error":"#N/A"}},{"$f":"IF(INDIRECT(\"c\" & (VLOOKUP(Rebalance!$D$28,$F$2:$G$48,2,FALSE)+ROW()-2))=Rebalance!$D$28,INDIRECT(\"a\" & (VLOOKUP(Rebalance!$D$28,$F$2:$G$48,2,FALSE)+ROW()-2)),\"\")","v":{"$error":"#N/A"}},{"$f":"IF(INDIRECT(\"c\" & (VLOOKUP(Rebalance!$D$29,$F$2:$G$48,2,FALSE)+ROW()-2))=Rebalance!$D$29,INDIRECT(\"a\" & (VLOOKUP(Rebalance!$D$29,$F$2:$G$48,2,FALSE)+ROW()-2)),\"\")","v":{"$error":"#N/A"}},{"$f":"IF(INDIRECT(\"c\" & (VLOOKUP(Rebalance!$D$30,$F$2:$G$48,2,FALSE)+ROW()-2))=Rebalance!$D$30,INDIRECT(\"a\" & (VLOOKUP(Rebalance!$D$30,$F$2:$G$48,2,FALSE)+ROW()-2)),\"\")","v":{"$error":"#N/A"}},{"$f":"IF(INDIRECT(\"c\" & (VLOOKUP(Rebalance!$D$31,$F$2:$G$48,2,FALSE)+ROW()-2))=Rebalance!$D$31,INDIRECT(\"a\" & (VLOOKUP(Rebalance!$D$31,$F$2:$G$48,2,FALSE)+ROW()-2)),\"\")","v":{"$error":"#N/A"}},{"$f":"IF(INDIRECT(\"c\" & (VLOOKUP(Rebalance!$D$32,$F$2:$G$48,2,FALSE)+ROW()-2))=Rebalance!$D$32,INDIRECT(\"a\" & (VLOOKUP(Rebalance!$D$32,$F$2:$G$48,2,FALSE)+ROW()-2)),\"\")","v":{"$error":"#N/A"}},{"$f":"IF(INDIRECT(\"c\" & (VLOOKUP(Rebalance!$D$33,$F$2:$G$48,2,FALSE)+ROW()-2))=Rebalance!$D$33,INDIRECT(\"a\" & (VLOOKUP(Rebalance!$D$33,$F$2:$G$48,2,FALSE)+ROW()-2)),\"\")","v":{"$error":"#N/A"}},{"$f":"IF(INDIRECT(\"c\" & (VLOOKUP(Rebalance!$D$34,$F$2:$G$48,2,FALSE)+ROW()-2))=Rebalance!$D$34,INDIRECT(\"a\" & (VLOOKUP(Rebalance!$D$34,$F$2:$G$48,2,FALSE)+ROW()-2)),\"\")","v":{"$error":"#N/A"}},{"$f":"IF(INDIRECT(\"c\" & (VLOOKUP(Rebalance!$D$35,$F$2:$G$48,2,FALSE)+ROW()-2))=Rebalance!$D$35,INDIRECT(\"a\" & (VLOOKUP(Rebalance!$D$35,$F$2:$G$48,2,FALSE)+ROW()-2)),\"\")","v":{"$error":"#N/A"}},{"$f":"IF(INDIRECT(\"c\" & (VLOOKUP(Rebalance!$D$36,$F$2:$G$48,2,FALSE)+ROW()-2))=Rebalance!$D$36,INDIRECT(\"a\" & (VLOOKUP(Rebalance!$D$36,$F$2:$G$48,2,FALSE)+ROW()-2)),\"\")","v":{"$error":"#N/A"}},{"$f":"IF(INDIRECT(\"c\" & (VLOOKUP(Rebalance!$D$37,$F$2:$G$48,2,FALSE)+ROW()-2))=Rebalance!$D$37,INDIRECT(\"a\" & (VLOOKUP(Rebalance!$D$37,$F$2:$G$48,2,FALSE)+ROW()-2)),\"\")","v":{"$error":"#N/A"}},{"$f":"IF(INDIRECT(\"c\" & (VLOOKUP(Rebalance!$D$38,$F$2:$G$48,2,FALSE)+ROW()-2))=Rebalance!$D$38,INDIRECT(\"a\" & (VLOOKUP(Rebalance!$D$38,$F$2:$G$48,2,FALSE)+ROW()-2)),\"\")","v":{"$error":"#N/A"}},{"$f":"IF(INDIRECT(\"c\" & (VLOOKUP(Rebalance!$D$39,$F$2:$G$48,2,FALSE)+ROW()-2))=Rebalance!$D$39,INDIRECT(\"a\" & (VLOOKUP(Rebalance!$D$39,$F$2:$G$48,2,FALSE)+ROW()-2)),\"\")","v":{"$error":"#N/A"}},{"$f":"IF(INDIRECT(\"c\" & (VLOOKUP(Rebalance!$D$40,$F$2:$G$48,2,FALSE)+ROW()-2))=Rebalance!$D$40,INDIRECT(\"a\" & (VLOOKUP(Rebalance!$D$40,$F$2:$G$48,2,FALSE)+ROW()-2)),\"\")","v":{"$error":"#N/A"}},{"$f":"IF(INDIRECT(\"c\" & (VLOOKUP(Rebalance!$D$52,$F$2:$G$48,2,FALSE)+ROW()-2))=Rebalance!$D$52,INDIRECT(\"a\" & (VLOOKUP(Rebalance!$D$52,$F$2:$G$48,2,FALSE)+ROW()-2)),\"\")","v":{"$error":"#N/A"}},{"$f":"IF(INDIRECT(\"c\" & (VLOOKUP(Rebalance!$D$53,$F$2:$G$48,2,FALSE)+ROW()-2))=Rebalance!$D$53,INDIRECT(\"a\" & (VLOOKUP(Rebalance!$D$53,$F$2:$G$48,2,FALSE)+ROW()-2)),\"\")","v":{"$error":"#N/A"}},{"$f":"IF(INDIRECT(\"c\" & (VLOOKUP(Rebalance!$D$54,$F$2:$G$48,2,FALSE)+ROW()-2))=Rebalance!$D$54,INDIRECT(\"a\" & (VLOOKUP(Rebalance!$D$54,$F$2:$G$48,2,FALSE)+ROW()-2)),\"\")","v":{"$error":"#N/A"}},{"$f":"IF(INDIRECT(\"c\" & (VLOOKUP(Rebalance!$D$55,$F$2:$G$48,2,FALSE)+ROW()-2))=Rebalance!$D$55,INDIRECT(\"a\" & (VLOOKUP(Rebalance!$D$55,$F$2:$G$48,2,FALSE)+ROW()-2)),\"\")","v":{"$error":"#N/A"}},{"$f":"IF(INDIRECT(\"c\" & (VLOOKUP(Rebalance!$D$56,$F$2:$G$48,2,FALSE)+ROW()-2))=Rebalance!$D$56,INDIRECT(\"a\" & (VLOOKUP(Rebalance!$D$56,$F$2:$G$48,2,FALSE)+ROW()-2)),\"\")","v":{"$error":"#N/A"}},{"$f":"IF(INDIRECT(\"c\" & (VLOOKUP(Rebalance!$D$57,$F$2:$G$48,2,FALSE)+ROW()-2))=Rebalance!$D$57,INDIRECT(\"a\" & (VLOOKUP(Rebalance!$D$57,$F$2:$G$48,2,FALSE)+ROW()-2)),\"\")","v":{"$error":"#N/A"}},{"$f":"IF(INDIRECT(\"c\" & (VLOOKUP(Rebalance!$D$58,$F$2:$G$48,2,FALSE)+ROW()-2))=Rebalance!$D$58,INDIRECT(\"a\" & (VLOOKUP(Rebalance!$D$58,$F$2:$G$48,2,FALSE)+ROW()-2)),\"\")","v":{"$error":"#N/A"}},{"$f":"IF(INDIRECT(\"c\" & (VLOOKUP(Rebalance!$D$59,$F$2:$G$48,2,FALSE)+ROW()-2))=Rebalance!$D$59,INDIRECT(\"a\" & (VLOOKUP(Rebalance!$D$59,$F$2:$G$48,2,FALSE)+ROW()-2)),\"\")","v":{"$error":"#N/A"}},{"$f":"IF(INDIRECT(\"c\" & (VLOOKUP(Rebalance!$D$60,$F$2:$G$48,2,FALSE)+ROW()-2))=Rebalance!$D$60,INDIRECT(\"a\" & (VLOOKUP(Rebalance!$D$60,$F$2:$G$48,2,FALSE)+ROW()-2)),\"\")","v":{"$error":"#N/A"}},{"$f":"IF(INDIRECT(\"c\" & (VLOOKUP(Rebalance!$D$61,$F$2:$G$48,2,FALSE)+ROW()-2))=Rebalance!$D$61,INDIRECT(\"a\" & (VLOOKUP(Rebalance!$D$61,$F$2:$G$48,2,FALSE)+ROW()-2)),\"\")","v":{"$error":"#N/A"}},{"$f":"IF(INDIRECT(\"c\" & (VLOOKUP(Rebalance!$D$62,$F$2:$G$48,2,FALSE)+ROW()-2))=Rebalance!$D$62,INDIRECT(\"a\" & (VLOOKUP(Rebalance!$D$62,$F$2:$G$48,2,FALSE)+ROW()-2)),\"\")","v":{"$error":"#N/A"}},{"$f":"IF(INDIRECT(\"c\" & (VLOOKUP(Rebalance!$D$63,$F$2:$G$48,2,FALSE)+ROW()-2))=Rebalance!$D$63,INDIRECT(\"a\" & (VLOOKUP(Rebalance!$D$63,$F$2:$G$48,2,FALSE)+ROW()-2)),\"\")","v":{"$error":"#N/A"}},{"$f":"IF(INDIRECT(\"c\" & (VLOOKUP(Rebalance!$D$64,$F$2:$G$48,2,FALSE)+ROW()-2))=Rebalance!$D$64,INDIRECT(\"a\" & (VLOOKUP(Rebalance!$D$64,$F$2:$G$48,2,FALSE)+ROW()-2)),\"\")","v":{"$error":"#N/A"}},{"$f":"IF(INDIRECT(\"c\" & (VLOOKUP(Rebalance!$D$65,$F$2:$G$48,2,FALSE)+ROW()-2))=Rebalance!$D$65,INDIRECT(\"a\" & (VLOOKUP(Rebalance!$D$65,$F$2:$G$48,2,FALSE)+ROW()-2)),\"\")","v":{"$error":"#N/A"}},{"$f":"IF(INDIRECT(\"c\" & (VLOOKUP(Rebalance!$D$66,$F$2:$G$48,2,FALSE)+ROW()-2))=Rebalance!$D$66,INDIRECT(\"a\" & (VLOOKUP(Rebalance!$D$66,$F$2:$G$48,2,FALSE)+ROW()-2)),\"\")","v":{"$error":"#N/A"}}]
[null,null,null,{"$f":"ROW()","v":606},null,null,{"$f":"VLOOKUP(F606,$C$2:$D$599,2,FALSE)","v":{"$error":"#N/A"}},{"$f":"IF(INDIRECT(\"c\" & (VLOOKUP(Rebalance!$D$26,$F$2:$G$48,2,FALSE)+ROW()-2))=Rebalance!$D$26,INDIRECT(\"a\" & (VLOOKUP(Rebalance!$D$26,$F$2:$G$48,2,FALSE)+ROW()-2)),\"\")","v":{"$error":"#N/A"}},{"$f":"IF(INDIRECT(\"c\" & (VLOOKUP(Rebalance!$D$27,$F$2:$G$48,2,FALSE)+ROW()-2))=Rebalance!$D$27,INDIRECT(\"a\" & (VLOOKUP(Rebalance!$D$27,$F$2:$G$48,2,FALSE)+ROW()-2)),\"\")","v":{"$error":"#N/A"}},{"$f":"IF(INDIRECT(\"c\" & (VLOOKUP(Rebalance!$D$28,$F$2:$G$48,2,FALSE)+ROW()-2))=Rebalance!$D$28,INDIRECT(\"a\" & (VLOOKUP(Rebalance!$D$28,$F$2:$G$48,2,FALSE)+ROW()-2)),\"\")","v":{"$error":"#N/A"}},{"$f":"IF(INDIRECT(\"c\" & (VLOOKUP(Rebalance!$D$29,$F$2:$G$48,2,FALSE)+ROW()-2))=Rebalance!$D$29,INDIRECT(\"a\" & (VLOOKUP(Rebalance!$D$29,$F$2:$G$48,2,FALSE)+ROW()-2)),\"\")","v":{"$error":"#N/A"}},{"$f":"IF(INDIRECT(\"c\" & (VLOOKUP(Rebalance!$D$30,$F$2:$G$48,2,FALSE)+ROW()-2))=Rebalance!$D$30,INDIRECT(\"a\" & (VLOOKUP(Rebalance!$D$30,$F$2:$G$48,2,FALSE)+ROW()-2)),\"\")","v":{"$error":"#N/A"}},{"$f":"IF(INDIRECT(\"c\" & (VLOOKUP(Rebalance!$D$31,$F$2:$G$48,2,FALSE)+ROW()-2))=Rebalance!$D$31,INDIRECT(\"a\" & (VLOOKUP(Rebalance!$D$31,$F$2:$G$48,2,FALSE)+ROW()-2)),\"\")","v":{"$error":"#N/A"}},{"$f":"IF(INDIRECT(\"c\" & (VLOOKUP(Rebalance!$D$32,$F$2:$G$48,2,FALSE)+ROW()-2))=Rebalance!$D$32,INDIRECT(\"a\" & (VLOOKUP(Rebalance!$D$32,$F$2:$G$48,2,FALSE)+ROW()-2)),\"\")","v":{"$error":"#N/A"}},{"$f":"IF(INDIRECT(\"c\" & (VLOOKUP(Rebalance!$D$33,$F$2:$G$48,2,FALSE)+ROW()-2))=Rebalance!$D$33,INDIRECT(\"a\" & (VLOOKUP(Rebalance!$D$33,$F$2:$G$48,2,FALSE)+ROW()-2)),\"\")","v":{"$error":"#N/A"}},{"$f":"IF(INDIRECT(\"c\" & (VLOOKUP(Rebalance!$D$34,$F$2:$G$48,2,FALSE)+ROW()-2))=Rebalance!$D$34,INDIRECT(\"a\" & (VLOOKUP(Rebalance!$D$34,$F$2:$G$48,2,FALSE)+ROW()-2)),\"\")","v":{"$error":"#N/A"}},{"$f":"IF(INDIRECT(\"c\" & (VLOOKUP(Rebalance!$D$35,$F$2:$G$48,2,FALSE)+ROW()-2))=Rebalance!$D$35,INDIRECT(\"a\" & (VLOOKUP(Rebalance!$D$35,$F$2:$G$48,2,FALSE)+ROW()-2)),\"\")","v":{"$error":"#N/A"}},{"$f":"IF(INDIRECT(\"c\" & (VLOOKUP(Rebalance!$D$36,$F$2:$G$48,2,FALSE)+ROW()-2))=Rebalance!$D$36,INDIRECT(\"a\" & (VLOOKUP(Rebalance!$D$36,$F$2:$G$48,2,FALSE)+ROW()-2)),\"\")","v":{"$error":"#N/A"}},{"$f":"IF(INDIRECT(\"c\" & (VLOOKUP(Rebalance!$D$37,$F$2:$G$48,2,FALSE)+ROW()-2))=Rebalance!$D$37,INDIRECT(\"a\" & (VLOOKUP(Rebalance!$D$37,$F$2:$G$48,2,FALSE)+ROW()-2)),\"\")","v":{"$error":"#N/A"}},{"$f":"IF(INDIRECT(\"c\" & (VLOOKUP(Rebalance!$D$38,$F$2:$G$48,2,FALSE)+ROW()-2))=Rebalance!$D$38,INDIRECT(\"a\" & (VLOOKUP(Rebalance!$D$38,$F$2:$G$48,2,FALSE)+ROW()-2)),\"\")","v":{"$error":"#N/A"}},{"$f":"IF(INDIRECT(\"c\" & (VLOOKUP(Rebalance!$D$39,$F$2:$G$48,2,FALSE)+ROW()-2))=Rebalance!$D$39,INDIRECT(\"a\" & (VLOOKUP(Rebalance!$D$39,$F$2:$G$48,2,FALSE)+ROW()-2)),\"\")","v":{"$error":"#N/A"}},{"$f":"IF(INDIRECT(\"c\" & (VLOOKUP(Rebalance!$D$40,$F$2:$G$48,2,FALSE)+ROW()-2))=Rebalance!$D$40,INDIRECT(\"a\" & (VLOOKUP(Rebalance!$D$40,$F$2:$G$48,2,FALSE)+ROW()-2)),\"\")","v":{"$error":"#N/A"}},{"$f":"IF(INDIRECT(\"c\" & (VLOOKUP(Rebalance!$D$52,$F$2:$G$48,2,FALSE)+ROW()-2))=Rebalance!$D$52,INDIRECT(\"a\" & (VLOOKUP(Rebalance!$D$52,$F$2:$G$48,2,FALSE)+ROW()-2)),\"\")","v":{"$error":"#N/A"}},{"$f":"IF(INDIRECT(\"c\" & (VLOOKUP(Rebalance!$D$53,$F$2:$G$48,2,FALSE)+ROW()-2))=Rebalance!$D$53,INDIRECT(\"a\" & (VLOOKUP(Rebalance!$D$53,$F$2:$G$48,2,FALSE)+ROW()-2)),\"\")","v":{"$error":"#N/A"}},{"$f":"IF(INDIRECT(\"c\" & (VLOOKUP(Rebalance!$D$54,$F$2:$G$48,2,FALSE)+ROW()-2))=Rebalance!$D$54,INDIRECT(\"a\" & (VLOOKUP(Rebalance!$D$54,$F$2:$G$48,2,FALSE)+ROW()-2)),\"\")","v":{"$error":"#N/A"}},{"$f":"IF(INDIRECT(\"c\" & (VLOOKUP(Rebalance!$D$55,$F$2:$G$48,2,FALSE)+ROW()-2))=Rebalance!$D$55,INDIRECT(\"a\" & (VLOOKUP(Rebalance!$D$55,$F$2:$G$48,2,FALSE)+ROW()-2)),\"\")","v":{"$error":"#N/A"}},{"$f":"IF(INDIRECT(\"c\" & (VLOOKUP(Rebalance!$D$56,$F$2:$G$48,2,FALSE)+ROW()-2))=Rebalance!$D$56,INDIRECT(\"a\" & (VLOOKUP(Rebalance!$D$56,$F$2:$G$48,2,FALSE)+ROW()-2)),\"\")","v":{"$error":"#N/A"}},{"$f":"IF(INDIRECT(\"c\" & (VLOOKUP(Rebalance!$D$57,$F$2:$G$48,2,FALSE)+ROW()-2))=Rebalance!$D$57,INDIRECT(\"a\" & (VLOOKUP(Rebalance!$D$57,$F$2:$G$48,2,FALSE)+ROW()-2)),\"\")","v":{"$error":"#N/A"}},{"$f":"IF(INDIRECT(\"c\" & (VLOOKUP(Rebalance!$D$58,$F$2:$G$48,2,FALSE)+ROW()-2))=Rebalance!$D$58,INDIRECT(\"a\" & (VLOOKUP(Rebalance!$D$58,$F$2:$G$48,2,FALSE)+ROW()-2)),\"\")","v":{"$error":"#N/A"}},{"$f":"IF(INDIRECT(\"c\" & (VLOOKUP(Rebalance!$D$59,$F$2:$G$48,2,FALSE)+ROW()-2))=Rebalance!$D$59,INDIRECT(\"a\" & (VLOOKUP(Rebalance!$D$59,$F$2:$G$48,2,FALSE)+ROW()-2)),\"\")","v":{"$error":"#N/A"}},{"$f":"IF(INDIRECT(\"c\" & (VLOOKUP(Rebalance!$D$60,$F$2:$G$48,2,FALSE)+ROW()-2))=Rebalance!$D$60,INDIRECT(\"a\" & (VLOOKUP(Rebalance!$D$60,$F$2:$G$48,2,FALSE)+ROW()-2)),\"\")","v":{"$error":"#N/A"}},{"$f":"IF(INDIRECT(\"c\" & (VLOOKUP(Rebalance!$D$61,$F$2:$G$48,2,FALSE)+ROW()-2))=Rebalance!$D$61,INDIRECT(\"a\" & (VLOOKUP(Rebalance!$D$61,$F$2:$G$48,2,FALSE)+ROW()-2)),\"\")","v":{"$error":"#N/A"}},{"$f":"IF(INDIRECT(\"c\" & (VLOOKUP(Rebalance!$D$62,$F$2:$G$48,2,FALSE)+ROW()-2))=Rebalance!$D$62,INDIRECT(\"a\" & (VLOOKUP(Rebalance!$D$62,$F$2:$G$48,2,FALSE)+ROW()-2)),\"\")","v":{"$error":"#N/A"}},{"$f":"IF(INDIRECT(\"c\" & (VLOOKUP(Rebalance!$D$63,$F$2:$G$48,2,FALSE)+ROW()-2))=Rebalance!$D$63,INDIRECT(\"a\" & (VLOOKUP(Rebalance!$D$63,$F$2:$G$48,2,FALSE)+ROW()-2)),\"\")","v":{"$error":"#N/A"}},{"$f":"IF(INDIRECT(\"c\" & (VLOOKUP(Rebalance!$D$64,$F$2:$G$48,2,FALSE)+ROW()-2))=Rebalance!$D$64,INDIRECT(\"a\" & (VLOOKUP(Rebalance!$D$64,$F$2:$G$48,2,FALSE)+ROW()-2)),\"\")","v":{"$error":"#N/A"}},{"$f":"IF(INDIRECT(\"c\" & (VLOOKUP(Rebalance!$D$65,$F$2:$G$48,2,FALSE)+ROW()-2))=Rebalance!$D$65,INDIRECT(\"a\" & (VLOOKUP(Rebalance!$D$65,$F$2:$G$48,2,FALSE)+ROW()-2)),\"\")","v":{"$error":"#N/A"}},{"$f":"IF(INDIRECT(\"c\" & (VLOOKUP(Rebalance!$D$66,$F$2:$G$48,2,FALSE)+ROW()-2))=Rebalance!$D$66,INDIRECT(\"a\" & (VLOOKUP(Rebalance!$D$66,$F$2:$G$48,2,FALSE)+ROW()-2)),\"\")","v":{"$error":"#N/A"}}]
[null,null,null,{"$f":"ROW()","v":607},null,null,{"$f":"VLOOKUP(F607,$C$2:$D$599,2,FALSE)","v":{"$error":"#N/A"}},{"$f":"IF(INDIRECT(\"c\" & (VLOOKUP(Rebalance!$D$26,$F$2:$G$48,2,FALSE)+ROW()-2))=Rebalance!$D$26,INDIRECT(\"a\" & (VLOOKUP(Rebalance!$D$26,$F$2:$G$48,2,FALSE)+ROW()-2)),\"\")","v":{"$error":"#N/A"}},{"$f":"IF(INDIRECT(\"c\" & (VLOOKUP(Rebalance!$D$27,$F$2:$G$48,2,FALSE)+ROW()-2))=Rebalance!$D$27,INDIRECT(\"a\" & (VLOOKUP(Rebalance!$D$27,$F$2:$G$48,2,FALSE)+ROW()-2)),\"\")","v":{"$error":"#N/A"}},{"$f":"IF(INDIRECT(\"c\" & (VLOOKUP(Rebalance!$D$28,$F$2:$G$48,2,FALSE)+ROW()-2))=Rebalance!$D$28,INDIRECT(\"a\" & (VLOOKUP(Rebalance!$D$28,$F$2:$G$48,2,FALSE)+ROW()-2)),\"\")","v":{"$error":"#N/A"}},{"$f":"IF(INDIRECT(\"c\" & (VLOOKUP(Rebalance!$D$29,$F$2:$G$48,2,FALSE)+ROW()-2))=Rebalance!$D$29,INDIRECT(\"a\" & (VLOOKUP(Rebalance!$D$29,$F$2:$G$48,2,FALSE)+ROW()-2)),\"\")","v":{"$error":"#N/A"}},{"$f":"IF(INDIRECT(\"c\" & (VLOOKUP(Rebalance!$D$30,$F$2:$G$48,2,FALSE)+ROW()-2))=Rebalance!$D$30,INDIRECT(\"a\" & (VLOOKUP(Rebalance!$D$30,$F$2:$G$48,2,FALSE)+ROW()-2)),\"\")","v":{"$error":"#N/A"}},{"$f":"IF(INDIRECT(\"c\" & (VLOOKUP(Rebalance!$D$31,$F$2:$G$48,2,FALSE)+ROW()-2))=Rebalance!$D$31,INDIRECT(\"a\" & (VLOOKUP(Rebalance!$D$31,$F$2:$G$48,2,FALSE)+ROW()-2)),\"\")","v":{"$error":"#N/A"}},{"$f":"IF(INDIRECT(\"c\" & (VLOOKUP(Rebalance!$D$32,$F$2:$G$48,2,FALSE)+ROW()-2))=Rebalance!$D$32,INDIRECT(\"a\" & (VLOOKUP(Rebalance!$D$32,$F$2:$G$48,2,FALSE)+ROW()-2)),\"\")","v":{"$error":"#N/A"}},{"$f":"IF(INDIRECT(\"c\" & (VLOOKUP(Rebalance!$D$33,$F$2:$G$48,2,FALSE)+ROW()-2))=Rebalance!$D$33,INDIRECT(\"a\" & (VLOOKUP(Rebalance!$D$33,$F$2:$G$48,2,FALSE)+ROW()-2)),\"\")","v":{"$error":"#N/A"}},{"$f":"IF(INDIRECT(\"c\" & (VLOOKUP(Rebalance!$D$34,$F$2:$G$48,2,FALSE)+ROW()-2))=Rebalance!$D$34,INDIRECT(\"a\" & (VLOOKUP(Rebalance!$D$34,$F$2:$G$48,2,FALSE)+ROW()-2)),\"\")","v":{"$error":"#N/A"}},{"$f":"IF(INDIRECT(\"c\" & (VLOOKUP(Rebalance!$D$35,$F$2:$G$48,2,FALSE)+ROW()-2))=Rebalance!$D$35,INDIRECT(\"a\" & (VLOOKUP(Rebalance!$D$35,$F$2:$G$48,2,FALSE)+ROW()-2)),\"\")","v":{"$error":"#N/A"}},{"$f":"IF(INDIRECT(\"c\" & (VLOOKUP(Rebalance!$D$36,$F$2:$G$48,2,FALSE)+ROW()-2))=Rebalance!$D$36,INDIRECT(\"a\" & (VLOOKUP(Rebalance!$D$36,$F$2:$G$48,2,FALSE)+ROW()-2)),\"\")","v":{"$error":"#N/A"}},{"$f":"IF(INDIRECT(\"c\" & (VLOOKUP(Rebalance!$D$37,$F$2:$G$48,2,FALSE)+ROW()-2))=Rebalance!$D$37,INDIRECT(\"a\" & (VLOOKUP(Rebalance!$D$37,$F$2:$G$48,2,FALSE)+ROW()-2)),\"\")","v":{"$error":"#N/A"}},{"$f":"IF(INDIRECT(\"c\" & (VLOOKUP(Rebalance!$D$38,$F$2:$G$48,2,FALSE)+ROW()-2))=Rebalance!$D$38,INDIRECT(\"a\" & (VLOOKUP(Rebalance!$D$38,$F$2:$G$48,2,FALSE)+ROW()-2)),\"\")","v":{"$error":"#N/A"}},{"$f":"IF(INDIRECT(\"c\" & (VLOOKUP(Rebalance!$D$39,$F$2:$G$48,2,FALSE)+ROW()-2))=Rebalance!$D$39,INDIRECT(\"a\" & (VLOOKUP(Rebalance!$D$39,$F$2:$G$48,2,FALSE)+ROW()-2)),\"\")","v":{"$error":"#N/A"}},{"$f":"IF(INDIRECT(\"c\" & (VLOOKUP(Rebalance!$D$40,$F$2:$G$48,2,FALSE)+ROW()-2))=Rebalance!$D$40,INDIRECT(\"a\" & (VLOOKUP(Rebalance!$D$40,$F$2:$G$48,2,FALSE)+ROW()-2)),\"\")","v":{"$error":"#N/A"}},{"$f":"IF(INDIRECT(\"c\" & (VLOOKUP(Rebalance!$D$52,$F$2:$G$48,2,FALSE)+ROW()-2))=Rebalance!$D$52,INDIRECT(\"a\" & (VLOOKUP(Rebalance!$D$52,$F$2:$G$48,2,FALSE)+ROW()-2)),\"\")","v":{"$error":"#N/A"}},{"$f":"IF(INDIRECT(\"c\" & (VLOOKUP(Rebalance!$D$53,$F$2:$G$48,2,FALSE)+ROW()-2))=Rebalance!$D$53,INDIRECT(\"a\" & (VLOOKUP(Rebalance!$D$53,$F$2:$G$48,2,FALSE)+ROW()-2)),\"\")","v":{"$error":"#N/A"}},{"$f":"IF(INDIRECT(\"c\" & (VLOOKUP(Rebalance!$D$54,$F$2:$G$48,2,FALSE)+ROW()-2))=Rebalance!$D$54,INDIRECT(\"a\" & (VLOOKUP(Rebalance!$D$54,$F$2:$G$48,2,FALSE)+ROW()-2)),\"\")","v":{"$error":"#N/A"}},{"$f":"IF(INDIRECT(\"c\" & (VLOOKUP(Rebalance!$D$55,$F$2:$G$48,2,FALSE)+ROW()-2))=Rebalance!$D$55,INDIRECT(\"a\" & (VLOOKUP(Rebalance!$D$55,$F$2:$G$48,2,FALSE)+ROW()-2)),\"\")","v":{"$error":"#N/A"}},{"$f":"IF(INDIRECT(\"c\" & (VLOOKUP(Rebalance!$D$56,$F$2:$G$48,2,FALSE)+ROW()-2))=Rebalance!$D$56,INDIRECT(\"a\" & (VLOOKUP(Rebalance!$D$56,$F$2:$G$48,2,FALSE)+ROW()-2)),\"\")","v":{"$error":"#N/A"}},{"$f":"IF(INDIRECT(\"c\" & (VLOOKUP(Rebalance!$D$57,$F$2:$G$48,2,FALSE)+ROW()-2))=Rebalance!$D$57,INDIRECT(\"a\" & (VLOOKUP(Rebalance!$D$57,$F$2:$G$48,2,FALSE)+ROW()-2)),\"\")","v":{"$error":"#N/A"}},{"$f":"IF(INDIRECT(\"c\" & (VLOOKUP(Rebalance!$D$58,$F$2:$G$48,2,FALSE)+ROW()-2))=Rebalance!$D$58,INDIRECT(\"a\" & (VLOOKUP(Rebalance!$D$58,$F$2:$G$48,2,FALSE)+ROW()-2)),\"\")","v":{"$error":"#N/A"}},{"$f":"IF(INDIRECT(\"c\" & (VLOOKUP(Rebalance!$D$59,$F$2:$G$48,2,FALSE)+ROW()-2))=Rebalance!$D$59,INDIRECT(\"a\" & (VLOOKUP(Rebalance!$D$59,$F$2:$G$48,2,FALSE)+ROW()-2)),\"\")","v":{"$error":"#N/A"}},{"$f":"IF(INDIRECT(\"c\" & (VLOOKUP(Rebalance!$D$60,$F$2:$G$48,2,FALSE)+ROW()-2))=Rebalance!$D$60,INDIRECT(\"a\" & (VLOOKUP(Rebalance!$D$60,$F$2:$G$48,2,FALSE)+ROW()-2)),\"\")","v":{"$error":"#N/A"}},{"$f":"IF(INDIRECT(\"c\" & (VLOOKUP(Rebalance!$D$61,$F$2:$G$48,2,FALSE)+ROW()-2))=Rebalance!$D$61,INDIRECT(\"a\" & (VLOOKUP(Rebalance!$D$61,$F$2:$G$48,2,FALSE)+ROW()-2)),\"\")","v":{"$error":"#N/A"}},{"$f":"IF(INDIRECT(\"c\" & (VLOOKUP(Rebalance!$D$62,$F$2:$G$48,2,FALSE)+ROW()-2))=Rebalance!$D$62,INDIRECT(\"a\" & (VLOOKUP(Rebalance!$D$62,$F$2:$G$48,2,FALSE)+ROW()-2)),\"\")","v":{"$error":"#N/A"}},{"$f":"IF(INDIRECT(\"c\" & (VLOOKUP(Rebalance!$D$63,$F$2:$G$48,2,FALSE)+ROW()-2))=Rebalance!$D$63,INDIRECT(\"a\" & (VLOOKUP(Rebalance!$D$63,$F$2:$G$48,2,FALSE)+ROW()-2)),\"\")","v":{"$error":"#N/A"}},{"$f":"IF(INDIRECT(\"c\" & (VLOOKUP(Rebalance!$D$64,$F$2:$G$48,2,FALSE)+ROW()-2))=Rebalance!$D$64,INDIRECT(\"a\" & (VLOOKUP(Rebalance!$D$64,$F$2:$G$48,2,FALSE)+ROW()-2)),\"\")","v":{"$error":"#N/A"}},{"$f":"IF(INDIRECT(\"c\" & (VLOOKUP(Rebalance!$D$65,$F$2:$G$48,2,FALSE)+ROW()-2))=Rebalance!$D$65,INDIRECT(\"a\" & (VLOOKUP(Rebalance!$D$65,$F$2:$G$48,2,FALSE)+ROW()-2)),\"\")","v":{"$error":"#N/A"}},{"$f":"IF(INDIRECT(\"c\" & (VLOOKUP(Rebalance!$D$66,$F$2:$G$48,2,FALSE)+ROW()-2))=Rebalance!$D$66,INDIRECT(\"a\" & (VLOOKUP(Rebalance!$D$66,$F$2:$G$48,2,FALSE)+ROW()-2)),\"\")","v":{"$error":"#N/A"}}]
[null,null,null,{"$f":"ROW()","v":608},null,null,{"$f":"VLOOKUP(F608,$C$2:$D$599,2,FALSE)","v":{"$error":"#N/A"}},{"$f":"IF(INDIRECT(\"c\" & (VLOOKUP(Rebalance!$D$26,$F$2:$G$48,2,FALSE)+ROW()-2))=Rebalance!$D$26,INDIRECT(\"a\" & (VLOOKUP(Rebalance!$D$26,$F$2:$G$48,2,FALSE)+ROW()-2)),\"\")","v":{"$error":"#N/A"}},{"$f":"IF(INDIRECT(\"c\" & (VLOOKUP(Rebalance!$D$27,$F$2:$G$48,2,FALSE)+ROW()-2))=Rebalance!$D$27,INDIRECT(\"a\" & (VLOOKUP(Rebalance!$D$27,$F$2:$G$48,2,FALSE)+ROW()-2)),\"\")","v":{"$error":"#N/A"}},{"$f":"IF(INDIRECT(\"c\" & (VLOOKUP(Rebalance!$D$28,$F$2:$G$48,2,FALSE)+ROW()-2))=Rebalance!$D$28,INDIRECT(\"a\" & (VLOOKUP(Rebalance!$D$28,$F$2:$G$48,2,FALSE)+ROW()-2)),\"\")","v":{"$error":"#N/A"}},{"$f":"IF(INDIRECT(\"c\" & (VLOOKUP(Rebalance!$D$29,$F$2:$G$48,2,FALSE)+ROW()-2))=Rebalance!$D$29,INDIRECT(\"a\" & (VLOOKUP(Rebalance!$D$29,$F$2:$G$48,2,FALSE)+ROW()-2)),\"\")","v":{"$error":"#N/A"}},{"$f":"IF(INDIRECT(\"c\" & (VLOOKUP(Rebalance!$D$30,$F$2:$G$48,2,FALSE)+ROW()-2))=Rebalance!$D$30,INDIRECT(\"a\" & (VLOOKUP(Rebalance!$D$30,$F$2:$G$48,2,FALSE)+ROW()-2)),\"\")","v":{"$error":"#N/A"}},{"$f":"IF(INDIRECT(\"c\" & (VLOOKUP(Rebalance!$D$31,$F$2:$G$48,2,FALSE)+ROW()-2))=Rebalance!$D$31,INDIRECT(\"a\" & (VLOOKUP(Rebalance!$D$31,$F$2:$G$48,2,FALSE)+ROW()-2)),\"\")","v":{"$error":"#N/A"}},{"$f":"IF(INDIRECT(\"c\" & (VLOOKUP(Rebalance!$D$32,$F$2:$G$48,2,FALSE)+ROW()-2))=Rebalance!$D$32,INDIRECT(\"a\" & (VLOOKUP(Rebalance!$D$32,$F$2:$G$48,2,FALSE)+ROW()-2)),\"\")","v":{"$error":"#N/A"}},{"$f":"IF(INDIRECT(\"c\" & (VLOOKUP(Rebalance!$D$33,$F$2:$G$48,2,FALSE)+ROW()-2))=Rebalance!$D$33,INDIRECT(\"a\" & (VLOOKUP(Rebalance!$D$33,$F$2:$G$48,2,FALSE)+ROW()-2)),\"\")","v":{"$error":"#N/A"}},{"$f":"IF(INDIRECT(\"c\" & (VLOOKUP(Rebalance!$D$34,$F$2:$G$48,2,FALSE)+ROW()-2))=Rebalance!$D$34,INDIRECT(\"a\" & (VLOOKUP(Rebalance!$D$34,$F$2:$G$48,2,FALSE)+ROW()-2)),\"\")","v":{"$error":"#N/A"}},{"$f":"IF(INDIRECT(\"c\" & (VLOOKUP(Rebalance!$D$35,$F$2:$G$48,2,FALSE)+ROW()-2))=Rebalance!$D$35,INDIRECT(\"a\" & (VLOOKUP(Rebalance!$D$35,$F$2:$G$48,2,FALSE)+ROW()-2)),\"\")","v":{"$error":"#N/A"}},{"$f":"IF(INDIRECT(\"c\" & (VLOOKUP(Rebalance!$D$36,$F$2:$G$48,2,FALSE)+ROW()-2))=Rebalance!$D$36,INDIRECT(\"a\" & (VLOOKUP(Rebalance!$D$36,$F$2:$G$48,2,FALSE)+ROW()-2)),\"\")","v":{"$error":"#N/A"}},{"$f":"IF(INDIRECT(\"c\" & (VLOOKUP(Rebalance!$D$37,$F$2:$G$48,2,FALSE)+ROW()-2))=Rebalance!$D$37,INDIRECT(\"a\" & (VLOOKUP(Rebalance!$D$37,$F$2:$G$48,2,FALSE)+ROW()-2)),\"\")","v":{"$error":"#N/A"}},{"$f":"IF(INDIRECT(\"c\" & (VLOOKUP(Rebalance!$D$38,$F$2:$G$48,2,FALSE)+ROW()-2))=Rebalance!$D$38,INDIRECT(\"a\" & (VLOOKUP(Rebalance!$D$38,$F$2:$G$48,2,FALSE)+ROW()-2)),\"\")","v":{"$error":"#N/A"}},{"$f":"IF(INDIRECT(\"c\" & (VLOOKUP(Rebalance!$D$39,$F$2:$G$48,2,FALSE)+ROW()-2))=Rebalance!$D$39,INDIRECT(\"a\" & (VLOOKUP(Rebalance!$D$39,$F$2:$G$48,2,FALSE)+ROW()-2)),\"\")","v":{"$error":"#N/A"}},{"$f":"IF(INDIRECT(\"c\" & (VLOOKUP(Rebalance!$D$40,$F$2:$G$48,2,FALSE)+ROW()-2))=Rebalance!$D$40,INDIRECT(\"a\" & (VLOOKUP(Rebalance!$D$40,$F$2:$G$48,2,FALSE)+ROW()-2)),\"\")","v":{"$error":"#N/A"}},{"$f":"IF(INDIRECT(\"c\" & (VLOOKUP(Rebalance!$D$52,$F$2:$G$48,2,FALSE)+ROW()-2))=Rebalance!$D$52,INDIRECT(\"a\" & (VLOOKUP(Rebalance!$D$52,$F$2:$G$48,2,FALSE)+ROW()-2)),\"\")","v":{"$error":"#N/A"}},{"$f":"IF(INDIRECT(\"c\" & (VLOOKUP(Rebalance!$D$53,$F$2:$G$48,2,FALSE)+ROW()-2))=Rebalance!$D$53,INDIRECT(\"a\" & (VLOOKUP(Rebalance!$D$53,$F$2:$G$48,2,FALSE)+ROW()-2)),\"\")","v":{"$error":"#N/A"}},{"$f":"IF(INDIRECT(\"c\" & (VLOOKUP(Rebalance!$D$54,$F$2:$G$48,2,FALSE)+ROW()-2))=Rebalance!$D$54,INDIRECT(\"a\" & (VLOOKUP(Rebalance!$D$54,$F$2:$G$48,2,FALSE)+ROW()-2)),\"\")","v":{"$error":"#N/A"}},{"$f":"IF(INDIRECT(\"c\" & (VLOOKUP(Rebalance!$D$55,$F$2:$G$48,2,FALSE)+ROW()-2))=Rebalance!$D$55,INDIRECT(\"a\" & (VLOOKUP(Rebalance!$D$55,$F$2:$G$48,2,FALSE)+ROW()-2)),\"\")","v":{"$error":"#N/A"}},{"$f":"IF(INDIRECT(\"c\" & (VLOOKUP(Rebalance!$D$56,$F$2:$G$48,2,FALSE)+ROW()-2))=Rebalance!$D$56,INDIRECT(\"a\" & (VLOOKUP(Rebalance!$D$56,$F$2:$G$48,2,FALSE)+ROW()-2)),\"\")","v":{"$error":"#N/A"}},{"$f":"IF(INDIRECT(\"c\" & (VLOOKUP(Rebalance!$D$57,$F$2:$G$48,2,FALSE)+ROW()-2))=Rebalance!$D$57,INDIRECT(\"a\" & (VLOOKUP(Rebalance!$D$57,$F$2:$G$48,2,FALSE)+ROW()-2)),\"\")","v":{"$error":"#N/A"}},{"$f":"IF(INDIRECT(\"c\" & (VLOOKUP(Rebalance!$D$58,$F$2:$G$48,2,FALSE)+ROW()-2))=Rebalance!$D$58,INDIRECT(\"a\" & (VLOOKUP(Rebalance!$D$58,$F$2:$G$48,2,FALSE)+ROW()-2)),\"\")","v":{"$error":"#N/A"}},{"$f":"IF(INDIRECT(\"c\" & (VLOOKUP(Rebalance!$D$59,$F$2:$G$48,2,FALSE)+ROW()-2))=Rebalance!$D$59,INDIRECT(\"a\" & (VLOOKUP(Rebalance!$D$59,$F$2:$G$48,2,FALSE)+ROW()-2)),\"\")","v":{"$error":"#N/A"}},{"$f":"IF(INDIRECT(\"c\" & (VLOOKUP(Rebalance!$D$60,$F$2:$G$48,2,FALSE)+ROW()-2))=Rebalance!$D$60,INDIRECT(\"a\" & (VLOOKUP(Rebalance!$D$60,$F$2:$G$48,2,FALSE)+ROW()-2)),\"\")","v":{"$error":"#N/A"}},{"$f":"IF(INDIRECT(\"c\" & (VLOOKUP(Rebalance!$D$61,$F$2:$G$48,2,FALSE)+ROW()-2))=Rebalance!$D$61,INDIRECT(\"a\" & (VLOOKUP(Rebalance!$D$61,$F$2:$G$48,2,FALSE)+ROW()-2)),\"\")","v":{"$error":"#N/A"}},{"$f":"IF(INDIRECT(\"c\" & (VLOOKUP(Rebalance!$D$62,$F$2:$G$48,2,FALSE)+ROW()-2))=Rebalance!$D$62,INDIRECT(\"a\" & (VLOOKUP(Rebalance!$D$62,$F$2:$G$48,2,FALSE)+ROW()-2)),\"\")","v":{"$error":"#N/A"}},{"$f":"IF(INDIRECT(\"c\" & (VLOOKUP(Rebalance!$D$63,$F$2:$G$48,2,FALSE)+ROW()-2))=Rebalance!$D$63,INDIRECT(\"a\" & (VLOOKUP(Rebalance!$D$63,$F$2:$G$48,2,FALSE)+ROW()-2)),\"\")","v":{"$error":"#N/A"}},{"$f":"IF(INDIRECT(\"c\" & (VLOOKUP(Rebalance!$D$64,$F$2:$G$48,2,FALSE)+ROW()-2))=Rebalance!$D$64,INDIRECT(\"a\" & (VLOOKUP(Rebalance!$D$64,$F$2:$G$48,2,FALSE)+ROW()-2)),\"\")","v":{"$error":"#N/A"}},{"$f":"IF(INDIRECT(\"c\" & (VLOOKUP(Rebalance!$D$65,$F$2:$G$48,2,FALSE)+ROW()-2))=Rebalance!$D$65,INDIRECT(\"a\" & (VLOOKUP(Rebalance!$D$65,$F$2:$G$48,2,FALSE)+ROW()-2)),\"\")","v":{"$error":"#N/A"}},{"$f":"IF(INDIRECT(\"c\" & (VLOOKUP(Rebalance!$D$66,$F$2:$G$48,2,FALSE)+ROW()-2))=Rebalance!$D$66,INDIRECT(\"a\" & (VLOOKUP(Rebalance!$D$66,$F$2:$G$48,2,FALSE)+ROW()-2)),\"\")","v":{"$error":"#N/A"}}]
[null,null,null,{"$f":"ROW()","v":609},null,null,{"$f":"VLOOKUP(F609,$C$2:$D$599,2,FALSE)","v":{"$error":"#N/A"}},{"$f":"IF(INDIRECT(\"c\" & (VLOOKUP(Rebalance!$D$26,$F$2:$G$48,2,FALSE)+ROW()-2))=Rebalance!$D$26,INDIRECT(\"a\" & (VLOOKUP(Rebalance!$D$26,$F$2:$G$48,2,FALSE)+ROW()-2)),\"\")","v":{"$error":"#N/A"}},{"$f":"IF(INDIRECT(\"c\" & (VLOOKUP(Rebalance!$D$27,$F$2:$G$48,2,FALSE)+ROW()-2))=Rebalance!$D$27,INDIRECT(\"a\" & (VLOOKUP(Rebalance!$D$27,$F$2:$G$48,2,FALSE)+ROW()-2)),\"\")","v":{"$error":"#N/A"}},{"$f":"IF(INDIRECT(\"c\" & (VLOOKUP(Rebalance!$D$28,$F$2:$G$48,2,FALSE)+ROW()-2))=Rebalance!$D$28,INDIRECT(\"a\" & (VLOOKUP(Rebalance!$D$28,$F$2:$G$48,2,FALSE)+ROW()-2)),\"\")","v":{"$error":"#N/A"}},{"$f":"IF(INDIRECT(\"c\" & (VLOOKUP(Rebalance!$D$29,$F$2:$G$48,2,FALSE)+ROW()-2))=Rebalance!$D$29,INDIRECT(\"a\" & (VLOOKUP(Rebalance!$D$29,$F$2:$G$48,2,FALSE)+ROW()-2)),\"\")","v":{"$error":"#N/A"}},{"$f":"IF(INDIRECT(\"c\" & (VLOOKUP(Rebalance!$D$30,$F$2:$G$48,2,FALSE)+ROW()-2))=Rebalance!$D$30,INDIRECT(\"a\" & (VLOOKUP(Rebalance!$D$30,$F$2:$G$48,2,FALSE)+ROW()-2)),\"\")","v":{"$error":"#N/A"}},{"$f":"IF(INDIRECT(\"c\" & (VLOOKUP(Rebalance!$D$31,$F$2:$G$48,2,FALSE)+ROW()-2))=Rebalance!$D$31,INDIRECT(\"a\" & (VLOOKUP(Rebalance!$D$31,$F$2:$G$48,2,FALSE)+ROW()-2)),\"\")","v":{"$error":"#N/A"}},{"$f":"IF(INDIRECT(\"c\" & (VLOOKUP(Rebalance!$D$32,$F$2:$G$48,2,FALSE)+ROW()-2))=Rebalance!$D$32,INDIRECT(\"a\" & (VLOOKUP(Rebalance!$D$32,$F$2:$G$48,2,FALSE)+ROW()-2)),\"\")","v":{"$error":"#N/A"}},{"$f":"IF(INDIRECT(\"c\" & (VLOOKUP(Rebalance!$D$33,$F$2:$G$48,2,FALSE)+ROW()-2))=Rebalance!$D$33,INDIRECT(\"a\" & (VLOOKUP(Rebalance!$D$33,$F$2:$G$48,2,FALSE)+ROW()-2)),\"\")","v":{"$error":"#N/A"}},{"$f":"IF(INDIRECT(\"c\" & (VLOOKUP(Rebalance!$D$34,$F$2:$G$48,2,FALSE)+ROW()-2))=Rebalance!$D$34,INDIRECT(\"a\" & (VLOOKUP(Rebalance!$D$34,$F$2:$G$48,2,FALSE)+ROW()-2)),\"\")","v":{"$error":"#N/A"}},{"$f":"IF(INDIRECT(\"c\" & (VLOOKUP(Rebalance!$D$35,$F$2:$G$48,2,FALSE)+ROW()-2))=Rebalance!$D$35,INDIRECT(\"a\" & (VLOOKUP(Rebalance!$D$35,$F$2:$G$48,2,FALSE)+ROW()-2)),\"\")","v":{"$error":"#N/A"}},{"$f":"IF(INDIRECT(\"c\" & (VLOOKUP(Rebalance!$D$36,$F$2:$G$48,2,FALSE)+ROW()-2))=Rebalance!$D$36,INDIRECT(\"a\" & (VLOOKUP(Rebalance!$D$36,$F$2:$G$48,2,FALSE)+ROW()-2)),\"\")","v":{"$error":"#N/A"}},{"$f":"IF(INDIRECT(\"c\" & (VLOOKUP(Rebalance!$D$37,$F$2:$G$48,2,FALSE)+ROW()-2))=Rebalance!$D$37,INDIRECT(\"a\" & (VLOOKUP(Rebalance!$D$37,$F$2:$G$48,2,FALSE)+ROW()-2)),\"\")","v":{"$error":"#N/A"}},{"$f":"IF(INDIRECT(\"c\" & (VLOOKUP(Rebalance!$D$38,$F$2:$G$48,2,FALSE)+ROW()-2))=Rebalance!$D$38,INDIRECT(\"a\" & (VLOOKUP(Rebalance!$D$38,$F$2:$G$48,2,FALSE)+ROW()-2)),\"\")","v":{"$error":"#N/A"}},{"$f":"IF(INDIRECT(\"c\" & (VLOOKUP(Rebalance!$D$39,$F$2:$G$48,2,FALSE)+ROW()-2))=Rebalance!$D$39,INDIRECT(\"a\" & (VLOOKUP(Rebalance!$D$39,$F$2:$G$48,2,FALSE)+ROW()-2)),\"\")","v":{"$error":"#N/A"}},{"$f":"IF(INDIRECT(\"c\" & (VLOOKUP(Rebalance!$D$40,$F$2:$G$48,2,FALSE)+ROW()-2))=Rebalance!$D$40,INDIRECT(\"a\" & (VLOOKUP(Rebalance!$D$40,$F$2:$G$48,2,FALSE)+ROW()-2)),\"\")","v":{"$error":"#N/A"}},{"$f":"IF(INDIRECT(\"c\" & (VLOOKUP(Rebalance!$D$52,$F$2:$G$48,2,FALSE)+ROW()-2))=Rebalance!$D$52,INDIRECT(\"a\" & (VLOOKUP(Rebalance!$D$52,$F$2:$G$48,2,FALSE)+ROW()-2)),\"\")","v":{"$error":"#N/A"}},{"$f":"IF(INDIRECT(\"c\" & (VLOOKUP(Rebalance!$D$53,$F$2:$G$48,2,FALSE)+ROW()-2))=Rebalance!$D$53,INDIRECT(\"a\" & (VLOOKUP(Rebalance!$D$53,$F$2:$G$48,2,FALSE)+ROW()-2)),\"\")","v":{"$error":"#N/A"}},{"$f":"IF(INDIRECT(\"c\" & (VLOOKUP(Rebalance!$D$54,$F$2:$G$48,2,FALSE)+ROW()-2))=Rebalance!$D$54,INDIRECT(\"a\" & (VLOOKUP(Rebalance!$D$54,$F$2:$G$48,2,FALSE)+ROW()-2)),\"\")","v":{"$error":"#N/A"}},{"$f":"IF(INDIRECT(\"c\" & (VLOOKUP(Rebalance!$D$55,$F$2:$G$48,2,FALSE)+ROW()-2))=Rebalance!$D$55,INDIRECT(\"a\" & (VLOOKUP(Rebalance!$D$55,$F$2:$G$48,2,FALSE)+ROW()-2)),\"\")","v":{"$error":"#N/A"}},{"$f":"IF(INDIRECT(\"c\" & (VLOOKUP(Rebalance!$D$56,$F$2:$G$48,2,FALSE)+ROW()-2))=Rebalance!$D$56,INDIRECT(\"a\" & (VLOOKUP(Rebalance!$D$56,$F$2:$G$48,2,FALSE)+ROW()-2)),\"\")","v":{"$error":"#N/A"}},{"$f":"IF(INDIRECT(\"c\" & (VLOOKUP(Rebalance!$D$57,$F$2:$G$48,2,FALSE)+ROW()-2))=Rebalance!$D$57,INDIRECT(\"a\" & (VLOOKUP(Rebalance!$D$57,$F$2:$G$48,2,FALSE)+ROW()-2)),\"\")","v":{"$error":"#N/A"}},{"$f":"IF(INDIRECT(\"c\" & (VLOOKUP(Rebalance!$D$58,$F$2:$G$48,2,FALSE)+ROW()-2))=Rebalance!$D$58,INDIRECT(\"a\" & (VLOOKUP(Rebalance!$D$58,$F$2:$G$48,2,FALSE)+ROW()-2)),\"\")","v":{"$error":"#N/A"}},{"$f":"IF(INDIRECT(\"c\" & (VLOOKUP(Rebalance!$D$59,$F$2:$G$48,2,FALSE)+ROW()-2))=Rebalance!$D$59,INDIRECT(\"a\" & (VLOOKUP(Rebalance!$D$59,$F$2:$G$48,2,FALSE)+ROW()-2)),\"\")","v":{"$error":"#N/A"}},{"$f":"IF(INDIRECT(\"c\" & (VLOOKUP(Rebalance!$D$60,$F$2:$G$48,2,FALSE)+ROW()-2))=Rebalance!$D$60,INDIRECT(\"a\" & (VLOOKUP(Rebalance!$D$60,$F$2:$G$48,2,FALSE)+ROW()-2)),\"\")","v":{"$error":"#N/A"}},{"$f":"IF(INDIRECT(\"c\" & (VLOOKUP(Rebalance!$D$61,$F$2:$G$48,2,FALSE)+ROW()-2))=Rebalance!$D$61,INDIRECT(\"a\" & (VLOOKUP(Rebalance!$D$61,$F$2:$G$48,2,FALSE)+ROW()-2)),\"\")","v":{"$error":"#N/A"}},{"$f":"IF(INDIRECT(\"c\" & (VLOOKUP(Rebalance!$D$62,$F$2:$G$48,2,FALSE)+ROW()-2))=Rebalance!$D$62,INDIRECT(\"a\" & (VLOOKUP(Rebalance!$D$62,$F$2:$G$48,2,FALSE)+ROW()-2)),\"\")","v":{"$error":"#N/A"}},{"$f":"IF(INDIRECT(\"c\" & (VLOOKUP(Rebalance!$D$63,$F$2:$G$48,2,FALSE)+ROW()-2))=Rebalance!$D$63,INDIRECT(\"a\" & (VLOOKUP(Rebalance!$D$63,$F$2:$G$48,2,FALSE)+ROW()-2)),\"\")","v":{"$error":"#N/A"}},{"$f":"IF(INDIRECT(\"c\" & (VLOOKUP(Rebalance!$D$64,$F$2:$G$48,2,FALSE)+ROW()-2))=Rebalance!$D$64,INDIRECT(\"a\" & (VLOOKUP(Rebalance!$D$64,$F$2:$G$48,2,FALSE)+ROW()-2)),\"\")","v":{"$error":"#N/A"}},{"$f":"IF(INDIRECT(\"c\" & (VLOOKUP(Rebalance!$D$65,$F$2:$G$48,2,FALSE)+ROW()-2))=Rebalance!$D$65,INDIRECT(\"a\" & (VLOOKUP(Rebalance!$D$65,$F$2:$G$48,2,FALSE)+ROW()-2)),\"\")","v":{"$error":"#N/A"}},{"$f":"IF(INDIRECT(\"c\" & (VLOOKUP(Rebalance!$D$66,$F$2:$G$48,2,FALSE)+ROW()-2))=Rebalance!$D$66,INDIRECT(\"a\" & (VLOOKUP(Rebalance!$D$66,$F$2:$G$48,2,FALSE)+ROW()-2)),\"\")","v":{"$error":"#N/A"}}]
[null,null,null,{"$f":"ROW()","v":610},null,null,{"$f":"VLOOKUP(F610,$C$2:$D$599,2,FALSE)","v":{"$error":"#N/A"}},{"$f":"IF(INDIRECT(\"c\" & (VLOOKUP(Rebalance!$D$26,$F$2:$G$48,2,FALSE)+ROW()-2))=Rebalance!$D$26,INDIRECT(\"a\" & (VLOOKUP(Rebalance!$D$26,$F$2:$G$48,2,FALSE)+ROW()-2)),\"\")","v":{"$error":"#N/A"}},{"$f":"IF(INDIRECT(\"c\" & (VLOOKUP(Rebalance!$D$27,$F$2:$G$48,2,FALSE)+ROW()-2))=Rebalance!$D$27,INDIRECT(\"a\" & (VLOOKUP(Rebalance!$D$27,$F$2:$G$48,2,FALSE)+ROW()-2)),\"\")","v":{"$error":"#N/A"}},{"$f":"IF(INDIRECT(\"c\" & (VLOOKUP(Rebalance!$D$28,$F$2:$G$48,2,FALSE)+ROW()-2))=Rebalance!$D$28,INDIRECT(\"a\" & (VLOOKUP(Rebalance!$D$28,$F$2:$G$48,2,FALSE)+ROW()-2)),\"\")","v":{"$error":"#N/A"}},{"$f":"IF(INDIRECT(\"c\" & (VLOOKUP(Rebalance!$D$29,$F$2:$G$48,2,FALSE)+ROW()-2))=Rebalance!$D$29,INDIRECT(\"a\" & (VLOOKUP(Rebalance!$D$29,$F$2:$G$48,2,FALSE)+ROW()-2)),\"\")","v":{"$error":"#N/A"}},{"$f":"IF(INDIRECT(\"c\" & (VLOOKUP(Rebalance!$D$30,$F$2:$G$48,2,FALSE)+ROW()-2))=Rebalance!$D$30,INDIRECT(\"a\" & (VLOOKUP(Rebalance!$D$30,$F$2:$G$48,2,FALSE)+ROW()-2)),\"\")","v":{"$error":"#N/A"}},{"$f":"IF(INDIRECT(\"c\" & (VLOOKUP(Rebalance!$D$31,$F$2:$G$48,2,FALSE)+ROW()-2))=Rebalance!$D$31,INDIRECT(\"a\" & (VLOOKUP(Rebalance!$D$31,$F$2:$G$48,2,FALSE)+ROW()-2)),\"\")","v":{"$error":"#N/A"}},{"$f":"IF(INDIRECT(\"c\" & (VLOOKUP(Rebalance!$D$32,$F$2:$G$48,2,FALSE)+ROW()-2))=Rebalance!$D$32,INDIRECT(\"a\" & (VLOOKUP(Rebalance!$D$32,$F$2:$G$48,2,FALSE)+ROW()-2)),\"\")","v":{"$error":"#N/A"}},{"$f":"IF(INDIRECT(\"c\" & (VLOOKUP(Rebalance!$D$33,$F$2:$G$48,2,FALSE)+ROW()-2))=Rebalance!$D$33,INDIRECT(\"a\" & (VLOOKUP(Rebalance!$D$33,$F$2:$G$48,2,FALSE)+ROW()-2)),\"\")","v":{"$error":"#N/A"}},{"$f":"IF(INDIRECT(\"c\" & (VLOOKUP(Rebalance!$D$34,$F$2:$G$48,2,FALSE)+ROW()-2))=Rebalance!$D$34,INDIRECT(\"a\" & (VLOOKUP(Rebalance!$D$34,$F$2:$G$48,2,FALSE)+ROW()-2)),\"\")","v":{"$error":"#N/A"}},{"$f":"IF(INDIRECT(\"c\" & (VLOOKUP(Rebalance!$D$35,$F$2:$G$48,2,FALSE)+ROW()-2))=Rebalance!$D$35,INDIRECT(\"a\" & (VLOOKUP(Rebalance!$D$35,$F$2:$G$48,2,FALSE)+ROW()-2)),\"\")","v":{"$error":"#N/A"}},{"$f":"IF(INDIRECT(\"c\" & (VLOOKUP(Rebalance!$D$36,$F$2:$G$48,2,FALSE)+ROW()-2))=Rebalance!$D$36,INDIRECT(\"a\" & (VLOOKUP(Rebalance!$D$36,$F$2:$G$48,2,FALSE)+ROW()-2)),\"\")","v":{"$error":"#N/A"}},{"$f":"IF(INDIRECT(\"c\" & (VLOOKUP(Rebalance!$D$37,$F$2:$G$48,2,FALSE)+ROW()-2))=Rebalance!$D$37,INDIRECT(\"a\" & (VLOOKUP(Rebalance!$D$37,$F$2:$G$48,2,FALSE)+ROW()-2)),\"\")","v":{"$error":"#N/A"}},{"$f":"IF(INDIRECT(\"c\" & (VLOOKUP(Rebalance!$D$38,$F$2:$G$48,2,FALSE)+ROW()-2))=Rebalance!$D$38,INDIRECT(\"a\" & (VLOOKUP(Rebalance!$D$38,$F$2:$G$48,2,FALSE)+ROW()-2)),\"\")","v":{"$error":"#N/A"}},{"$f":"IF(INDIRECT(\"c\" & (VLOOKUP(Rebalance!$D$39,$F$2:$G$48,2,FALSE)+ROW()-2))=Rebalance!$D$39,INDIRECT(\"a\" & (VLOOKUP(Rebalance!$D$39,$F$2:$G$48,2,FALSE)+ROW()-2)),\"\")","v":{"$error":"#N/A"}},{"$f":"IF(INDIRECT(\"c\" & (VLOOKUP(Rebalance!$D$40,$F$2:$G$48,2,FALSE)+ROW()-2))=Rebalance!$D$40,INDIRECT(\"a\" & (VLOOKUP(Rebalance!$D$40,$F$2:$G$48,2,FALSE)+ROW()-2)),\"\")","v":{"$error":"#N/A"}},{"$f":"IF(INDIRECT(\"c\" & (VLOOKUP(Rebalance!$D$52,$F$2:$G$48,2,FALSE)+ROW()-2))=Rebalance!$D$52,INDIRECT(\"a\" & (VLOOKUP(Rebalance!$D$52,$F$2:$G$48,2,FALSE)+ROW()-2)),\"\")","v":{"$error":"#N/A"}},{"$f":"IF(INDIRECT(\"c\" & (VLOOKUP(Rebalance!$D$53,$F$2:$G$48,2,FALSE)+ROW()-2))=Rebalance!$D$53,INDIRECT(\"a\" & (VLOOKUP(Rebalance!$D$53,$F$2:$G$48,2,FALSE)+ROW()-2)),\"\")","v":{"$error":"#N/A"}},{"$f":"IF(INDIRECT(\"c\" & (VLOOKUP(Rebalance!$D$54,$F$2:$G$48,2,FALSE)+ROW()-2))=Rebalance!$D$54,INDIRECT(\"a\" & (VLOOKUP(Rebalance!$D$54,$F$2:$G$48,2,FALSE)+ROW()-2)),\"\")","v":{"$error":"#N/A"}},{"$f":"IF(INDIRECT(\"c\" & (VLOOKUP(Rebalance!$D$55,$F$2:$G$48,2,FALSE)+ROW()-2))=Rebalance!$D$55,INDIRECT(\"a\" & (VLOOKUP(Rebalance!$D$55,$F$2:$G$48,2,FALSE)+ROW()-2)),\"\")","v":{"$error":"#N/A"}},{"$f":"IF(INDIRECT(\"c\" & (VLOOKUP(Rebalance!$D$56,$F$2:$G$48,2,FALSE)+ROW()-2))=Rebalance!$D$56,INDIRECT(\"a\" & (VLOOKUP(Rebalance!$D$56,$F$2:$G$48,2,FALSE)+ROW()-2)),\"\")","v":{"$error":"#N/A"}},{"$f":"IF(INDIRECT(\"c\" & (VLOOKUP(Rebalance!$D$57,$F$2:$G$48,2,FALSE)+ROW()-2))=Rebalance!$D$57,INDIRECT(\"a\" & (VLOOKUP(Rebalance!$D$57,$F$2:$G$48,2,FALSE)+ROW()-2)),\"\")","v":{"$error":"#N/A"}},{"$f":"IF(INDIRECT(\"c\" & (VLOOKUP(Rebalance!$D$58,$F$2:$G$48,2,FALSE)+ROW()-2))=Rebalance!$D$58,INDIRECT(\"a\" & (VLOOKUP(Rebalance!$D$58,$F$2:$G$48,2,FALSE)+ROW()-2)),\"\")","v":{"$error":"#N/A"}},{"$f":"IF(INDIRECT(\"c\" & (VLOOKUP(Rebalance!$D$59,$F$2:$G$48,2,FALSE)+ROW()-2))=Rebalance!$D$59,INDIRECT(\"a\" & (VLOOKUP(Rebalance!$D$59,$F$2:$G$48,2,FALSE)+ROW()-2)),\"\")","v":{"$error":"#N/A"}},{"$f":"IF(INDIRECT(\"c\" & (VLOOKUP(Rebalance!$D$60,$F$2:$G$48,2,FALSE)+ROW()-2))=Rebalance!$D$60,INDIRECT(\"a\" & (VLOOKUP(Rebalance!$D$60,$F$2:$G$48,2,FALSE)+ROW()-2)),\"\")","v":{"$error":"#N/A"}},{"$f":"IF(INDIRECT(\"c\" & (VLOOKUP(Rebalance!$D$61,$F$2:$G$48,2,FALSE)+ROW()-2))=Rebalance!$D$61,INDIRECT(\"a\" & (VLOOKUP(Rebalance!$D$61,$F$2:$G$48,2,FALSE)+ROW()-2)),\"\")","v":{"$error":"#N/A"}},{"$f":"IF(INDIRECT(\"c\" & (VLOOKUP(Rebalance!$D$62,$F$2:$G$48,2,FALSE)+ROW()-2))=Rebalance!$D$62,INDIRECT(\"a\" & (VLOOKUP(Rebalance!$D$62,$F$2:$G$48,2,FALSE)+ROW()-2)),\"\")","v":{"$error":"#N/A"}},{"$f":"IF(INDIRECT(\"c\" & (VLOOKUP(Rebalance!$D$63,$F$2:$G$48,2,FALSE)+ROW()-2))=Rebalance!$D$63,INDIRECT(\"a\" & (VLOOKUP(Rebalance!$D$63,$F$2:$G$48,2,FALSE)+ROW()-2)),\"\")","v":{"$error":"#N/A"}},{"$f":"IF(INDIRECT(\"c\" & (VLOOKUP(Rebalance!$D$64,$F$2:$G$48,2,FALSE)+ROW()-2))=Rebalance!$D$64,INDIRECT(\"a\" & (VLOOKUP(Rebalance!$D$64,$F$2:$G$48,2,FALSE)+ROW()-2)),\"\")","v":{"$error":"#N/A"}},{"$f":"IF(INDIRECT(\"c\" & (VLOOKUP(Rebalance!$D$65,$F$2:$G$48,2,FALSE)+ROW()-2))=Rebalance!$D$65,INDIRECT(\"a\" & (VLOOKUP(Rebalance!$D$65,$F$2:$G$48,2,FALSE)+ROW()-2)),\"\")","v":{"$error":"#N/A"}},{"$f":"IF(INDIRECT(\"c\" & (VLOOKUP(Rebalance!$D$66,$F$2:$G$48,2,FALSE)+ROW()-2))=Rebalance!$D$66,INDIRECT(\"a\" & (VLOOKUP(Rebalance!$D$66,$F$2:$G$48,2,FALSE)+ROW()-2)),\"\")","v":{"$error":"#N/A"}}]
[null,null,null,{"$f":"ROW()","v":611},null,null,{"$f":"VLOOKUP(F611,$C$2:$D$599,2,FALSE)","v":{"$error":"#N/A"}},{"$f":"IF(INDIRECT(\"c\" & (VLOOKUP(Rebalance!$D$26,$F$2:$G$48,2,FALSE)+ROW()-2))=Rebalance!$D$26,INDIRECT(\"a\" & (VLOOKUP(Rebalance!$D$26,$F$2:$G$48,2,FALSE)+ROW()-2)),\"\")","v":{"$error":"#N/A"}},{"$f":"IF(INDIRECT(\"c\" & (VLOOKUP(Rebalance!$D$27,$F$2:$G$48,2,FALSE)+ROW()-2))=Rebalance!$D$27,INDIRECT(\"a\" & (VLOOKUP(Rebalance!$D$27,$F$2:$G$48,2,FALSE)+ROW()-2)),\"\")","v":{"$error":"#N/A"}},{"$f":"IF(INDIRECT(\"c\" & (VLOOKUP(Rebalance!$D$28,$F$2:$G$48,2,FALSE)+ROW()-2))=Rebalance!$D$28,INDIRECT(\"a\" & (VLOOKUP(Rebalance!$D$28,$F$2:$G$48,2,FALSE)+ROW()-2)),\"\")","v":{"$error":"#N/A"}},{"$f":"IF(INDIRECT(\"c\" & (VLOOKUP(Rebalance!$D$29,$F$2:$G$48,2,FALSE)+ROW()-2))=Rebalance!$D$29,INDIRECT(\"a\" & (VLOOKUP(Rebalance!$D$29,$F$2:$G$48,2,FALSE)+ROW()-2)),\"\")","v":{"$error":"#N/A"}},{"$f":"IF(INDIRECT(\"c\" & (VLOOKUP(Rebalance!$D$30,$F$2:$G$48,2,FALSE)+ROW()-2))=Rebalance!$D$30,INDIRECT(\"a\" & (VLOOKUP(Rebalance!$D$30,$F$2:$G$48,2,FALSE)+ROW()-2)),\"\")","v":{"$error":"#N/A"}},{"$f":"IF(INDIRECT(\"c\" & (VLOOKUP(Rebalance!$D$31,$F$2:$G$48,2,FALSE)+ROW()-2))=Rebalance!$D$31,INDIRECT(\"a\" & (VLOOKUP(Rebalance!$D$31,$F$2:$G$48,2,FALSE)+ROW()-2)),\"\")","v":{"$error":"#N/A"}},{"$f":"IF(INDIRECT(\"c\" & (VLOOKUP(Rebalance!$D$32,$F$2:$G$48,2,FALSE)+ROW()-2))=Rebalance!$D$32,INDIRECT(\"a\" & (VLOOKUP(Rebalance!$D$32,$F$2:$G$48,2,FALSE)+ROW()-2)),\"\")","v":{"$error":"#N/A"}},{"$f":"IF(INDIRECT(\"c\" & (VLOOKUP(Rebalance!$D$33,$F$2:$G$48,2,FALSE)+ROW()-2))=Rebalance!$D$33,INDIRECT(\"a\" & (VLOOKUP(Rebalance!$D$33,$F$2:$G$48,2,FALSE)+ROW()-2)),\"\")","v":{"$error":"#N/A"}},{"$f":"IF(INDIRECT(\"c\" & (VLOOKUP(Rebalance!$D$34,$F$2:$G$48,2,FALSE)+ROW()-2))=Rebalance!$D$34,INDIRECT(\"a\" & (VLOOKUP(Rebalance!$D$34,$F$2:$G$48,2,FALSE)+ROW()-2)),\"\")","v":{"$error":"#N/A"}},{"$f":"IF(INDIRECT(\"c\" & (VLOOKUP(Rebalance!$D$35,$F$2:$G$48,2,FALSE)+ROW()-2))=Rebalance!$D$35,INDIRECT(\"a\" & (VLOOKUP(Rebalance!$D$35,$F$2:$G$48,2,FALSE)+ROW()-2)),\"\")","v":{"$error":"#N/A"}},{"$f":"IF(INDIRECT(\"c\" & (VLOOKUP(Rebalance!$D$36,$F$2:$G$48,2,FALSE)+ROW()-2))=Rebalance!$D$36,INDIRECT(\"a\" & (VLOOKUP(Rebalance!$D$36,$F$2:$G$48,2,FALSE)+ROW()-2)),\"\")","v":{"$error":"#N/A"}},{"$f":"IF(INDIRECT(\"c\" & (VLOOKUP(Rebalance!$D$37,$F$2:$G$48,2,FALSE)+ROW()-2))=Rebalance!$D$37,INDIRECT(\"a\" & (VLOOKUP(Rebalance!$D$37,$F$2:$G$48,2,FALSE)+ROW()-2)),\"\")","v":{"$error":"#N/A"}},{"$f":"IF(INDIRECT(\"c\" & (VLOOKUP(Rebalance!$D$38,$F$2:$G$48,2,FALSE)+ROW()-2))=Rebalance!$D$38,INDIRECT(\"a\" & (VLOOKUP(Rebalance!$D$38,$F$2:$G$48,2,FALSE)+ROW()-2)),\"\")","v":{"$error":"#N/A"}},{"$f":"IF(INDIRECT(\"c\" & (VLOOKUP(Rebalance!$D$39,$F$2:$G$48,2,FALSE)+ROW()-2))=Rebalance!$D$39,INDIRECT(\"a\" & (VLOOKUP(Rebalance!$D$39,$F$2:$G$48,2,FALSE)+ROW()-2)),\"\")","v":{"$error":"#N/A"}},{"$f":"IF(INDIRECT(\"c\" & (VLOOKUP(Rebalance!$D$40,$F$2:$G$48,2,FALSE)+ROW()-2))=Rebalance!$D$40,INDIRECT(\"a\" & (VLOOKUP(Rebalance!$D$40,$F$2:$G$48,2,FALSE)+ROW()-2)),\"\")","v":{"$error":"#N/A"}},{"$f":"IF(INDIRECT(\"c\" & (VLOOKUP(Rebalance!$D$52,$F$2:$G$48,2,FALSE)+ROW()-2))=Rebalance!$D$52,INDIRECT(\"a\" & (VLOOKUP(Rebalance!$D$52,$F$2:$G$48,2,FALSE)+ROW()-2)),\"\")","v":{"$error":"#N/A"}},{"$f":"IF(INDIRECT(\"c\" & (VLOOKUP(Rebalance!$D$53,$F$2:$G$48,2,FALSE)+ROW()-2))=Rebalance!$D$53,INDIRECT(\"a\" & (VLOOKUP(Rebalance!$D$53,$F$2:$G$48,2,FALSE)+ROW()-2)),\"\")","v":{"$error":"#N/A"}},{"$f":"IF(INDIRECT(\"c\" & (VLOOKUP(Rebalance!$D$54,$F$2:$G$48,2,FALSE)+ROW()-2))=Rebalance!$D$54,INDIRECT(\"a\" & (VLOOKUP(Rebalance!$D$54,$F$2:$G$48,2,FALSE)+ROW()-2)),\"\")","v":{"$error":"#N/A"}},{"$f":"IF(INDIRECT(\"c\" & (VLOOKUP(Rebalance!$D$55,$F$2:$G$48,2,FALSE)+ROW()-2))=Rebalance!$D$55,INDIRECT(\"a\" & (VLOOKUP(Rebalance!$D$55,$F$2:$G$48,2,FALSE)+ROW()-2)),\"\")","v":{"$error":"#N/A"}},{"$f":"IF(INDIRECT(\"c\" & (VLOOKUP(Rebalance!$D$56,$F$2:$G$48,2,FALSE)+ROW()-2))=Rebalance!$D$56,INDIRECT(\"a\" & (VLOOKUP(Rebalance!$D$56,$F$2:$G$48,2,FALSE)+ROW()-2)),\"\")","v":{"$error":"#N/A"}},{"$f":"IF(INDIRECT(\"c\" & (VLOOKUP(Rebalance!$D$57,$F$2:$G$48,2,FALSE)+ROW()-2))=Rebalance!$D$57,INDIRECT(\"a\" & (VLOOKUP(Rebalance!$D$57,$F$2:$G$48,2,FALSE)+ROW()-2)),\"\")","v":{"$error":"#N/A"}},{"$f":"IF(INDIRECT(\"c\" & (VLOOKUP(Rebalance!$D$58,$F$2:$G$48,2,FALSE)+ROW()-2))=Rebalance!$D$58,INDIRECT(\"a\" & (VLOOKUP(Rebalance!$D$58,$F$2:$G$48,2,FALSE)+ROW()-2)),\"\")","v":{"$error":"#N/A"}},{"$f":"IF(INDIRECT(\"c\" & (VLOOKUP(Rebalance!$D$59,$F$2:$G$48,2,FALSE)+ROW()-2))=Rebalance!$D$59,INDIRECT(\"a\" & (VLOOKUP(Rebalance!$D$59,$F$2:$G$48,2,FALSE)+ROW()-2)),\"\")","v":{"$error":"#N/A"}},{"$f":"IF(INDIRECT(\"c\" & (VLOOKUP(Rebalance!$D$60,$F$2:$G$48,2,FALSE)+ROW()-2))=Rebalance!$D$60,INDIRECT(\"a\" & (VLOOKUP(Rebalance!$D$60,$F$2:$G$48,2,FALSE)+ROW()-2)),\"\")","v":{"$error":"#N/A"}},{"$f":"IF(INDIRECT(\"c\" & (VLOOKUP(Rebalance!$D$61,$F$2:$G$48,2,FALSE)+ROW()-2))=Rebalance!$D$61,INDIRECT(\"a\" & (VLOOKUP(Rebalance!$D$61,$F$2:$G$48,2,FALSE)+ROW()-2)),\"\")","v":{"$error":"#N/A"}},{"$f":"IF(INDIRECT(\"c\" & (VLOOKUP(Rebalance!$D$62,$F$2:$G$48,2,FALSE)+ROW()-2))=Rebalance!$D$62,INDIRECT(\"a\" & (VLOOKUP(Rebalance!$D$62,$F$2:$G$48,2,FALSE)+ROW()-2)),\"\")","v":{"$error":"#N/A"}},{"$f":"IF(INDIRECT(\"c\" & (VLOOKUP(Rebalance!$D$63,$F$2:$G$48,2,FALSE)+ROW()-2))=Rebalance!$D$63,INDIRECT(\"a\" & (VLOOKUP(Rebalance!$D$63,$F$2:$G$48,2,FALSE)+ROW()-2)),\"\")","v":{"$error":"#N/A"}},{"$f":"IF(INDIRECT(\"c\" & (VLOOKUP(Rebalance!$D$64,$F$2:$G$48,2,FALSE)+ROW()-2))=Rebalance!$D$64,INDIRECT(\"a\" & (VLOOKUP(Rebalance!$D$64,$F$2:$G$48,2,FALSE)+ROW()-2)),\"\")","v":{"$error":"#N/A"}},{"$f":"IF(INDIRECT(\"c\" & (VLOOKUP(Rebalance!$D$65,$F$2:$G$48,2,FALSE)+ROW()-2))=Rebalance!$D$65,INDIRECT(\"a\" & (VLOOKUP(Rebalance!$D$65,$F$2:$G$48,2,FALSE)+ROW()-2)),\"\")","v":{"$error":"#N/A"}},{"$f":"IF(INDIRECT(\"c\" & (VLOOKUP(Rebalance!$D$66,$F$2:$G$48,2,FALSE)+ROW()-2))=Rebalance!$D$66,INDIRECT(\"a\" & (VLOOKUP(Rebalance!$D$66,$F$2:$G$48,2,FALSE)+ROW()-2)),\"\")","v":{"$error":"#N/A"}}]
[null,null,null,{"$f":"ROW()","v":612},null,null,{"$f":"VLOOKUP(F612,$C$2:$D$599,2,FALSE)","v":{"$error":"#N/A"}},{"$f":"IF(INDIRECT(\"c\" & (VLOOKUP(Rebalance!$D$26,$F$2:$G$48,2,FALSE)+ROW()-2))=Rebalance!$D$26,INDIRECT(\"a\" & (VLOOKUP(Rebalance!$D$26,$F$2:$G$48,2,FALSE)+ROW()-2)),\"\")","v":{"$error":"#N/A"}},{"$f":"IF(INDIRECT(\"c\" & (VLOOKUP(Rebalance!$D$27,$F$2:$G$48,2,FALSE)+ROW()-2))=Rebalance!$D$27,INDIRECT(\"a\" & (VLOOKUP(Rebalance!$D$27,$F$2:$G$48,2,FALSE)+ROW()-2)),\"\")","v":{"$error":"#N/A"}},{"$f":"IF(INDIRECT(\"c\" & (VLOOKUP(Rebalance!$D$28,$F$2:$G$48,2,FALSE)+ROW()-2))=Rebalance!$D$28,INDIRECT(\"a\" & (VLOOKUP(Rebalance!$D$28,$F$2:$G$48,2,FALSE)+ROW()-2)),\"\")","v":{"$error":"#N/A"}},{"$f":"IF(INDIRECT(\"c\" & (VLOOKUP(Rebalance!$D$29,$F$2:$G$48,2,FALSE)+ROW()-2))=Rebalance!$D$29,INDIRECT(\"a\" & (VLOOKUP(Rebalance!$D$29,$F$2:$G$48,2,FALSE)+ROW()-2)),\"\")","v":{"$error":"#N/A"}},{"$f":"IF(INDIRECT(\"c\" & (VLOOKUP(Rebalance!$D$30,$F$2:$G$48,2,FALSE)+ROW()-2))=Rebalance!$D$30,INDIRECT(\"a\" & (VLOOKUP(Rebalance!$D$30,$F$2:$G$48,2,FALSE)+ROW()-2)),\"\")","v":{"$error":"#N/A"}},{"$f":"IF(INDIRECT(\"c\" & (VLOOKUP(Rebalance!$D$31,$F$2:$G$48,2,FALSE)+ROW()-2))=Rebalance!$D$31,INDIRECT(\"a\" & (VLOOKUP(Rebalance!$D$31,$F$2:$G$48,2,FALSE)+ROW()-2)),\"\")","v":{"$error":"#N/A"}},{"$f":"IF(INDIRECT(\"c\" & (VLOOKUP(Rebalance!$D$32,$F$2:$G$48,2,FALSE)+ROW()-2))=Rebalance!$D$32,INDIRECT(\"a\" & (VLOOKUP(Rebalance!$D$32,$F$2:$G$48,2,FALSE)+ROW()-2)),\"\")","v":{"$error":"#N/A"}},{"$f":"IF(INDIRECT(\"c\" & (VLOOKUP(Rebalance!$D$33,$F$2:$G$48,2,FALSE)+ROW()-2))=Rebalance!$D$33,INDIRECT(\"a\" & (VLOOKUP(Rebalance!$D$33,$F$2:$G$48,2,FALSE)+ROW()-2)),\"\")","v":{"$error":"#N/A"}},{"$f":"IF(INDIRECT(\"c\" & (VLOOKUP(Rebalance!$D$34,$F$2:$G$48,2,FALSE)+ROW()-2))=Rebalance!$D$34,INDIRECT(\"a\" & (VLOOKUP(Rebalance!$D$34,$F$2:$G$48,2,FALSE)+ROW()-2)),\"\")","v":{"$error":"#N/A"}},{"$f":"IF(INDIRECT(\"c\" & (VLOOKUP(Rebalance!$D$35,$F$2:$G$48,2,FALSE)+ROW()-2))=Rebalance!$D$35,INDIRECT(\"a\" & (VLOOKUP(Rebalance!$D$35,$F$2:$G$48,2,FALSE)+ROW()-2)),\"\")","v":{"$error":"#N/A"}},{"$f":"IF(INDIRECT(\"c\" & (VLOOKUP(Rebalance!$D$36,$F$2:$G$48,2,FALSE)+ROW()-2))=Rebalance!$D$36,INDIRECT(\"a\" & (VLOOKUP(Rebalance!$D$36,$F$2:$G$48,2,FALSE)+ROW()-2)),\"\")","v":{"$error":"#N/A"}},{"$f":"IF(INDIRECT(\"c\" & (VLOOKUP(Rebalance!$D$37,$F$2:$G$48,2,FALSE)+ROW()-2))=Rebalance!$D$37,INDIRECT(\"a\" & (VLOOKUP(Rebalance!$D$37,$F$2:$G$48,2,FALSE)+ROW()-2)),\"\")","v":{"$error":"#N/A"}},{"$f":"IF(INDIRECT(\"c\" & (VLOOKUP(Rebalance!$D$38,$F$2:$G$48,2,FALSE)+ROW()-2))=Rebalance!$D$38,INDIRECT(\"a\" & (VLOOKUP(Rebalance!$D$38,$F$2:$G$48,2,FALSE)+ROW()-2)),\"\")","v":{"$error":"#N/A"}},{"$f":"IF(INDIRECT(\"c\" & (VLOOKUP(Rebalance!$D$39,$F$2:$G$48,2,FALSE)+ROW()-2))=Rebalance!$D$39,INDIRECT(\"a\" & (VLOOKUP(Rebalance!$D$39,$F$2:$G$48,2,FALSE)+ROW()-2)),\"\")","v":{"$error":"#N/A"}},{"$f":"IF(INDIRECT(\"c\" & (VLOOKUP(Rebalance!$D$40,$F$2:$G$48,2,FALSE)+ROW()-2))=Rebalance!$D$40,INDIRECT(\"a\" & (VLOOKUP(Rebalance!$D$40,$F$2:$G$48,2,FALSE)+ROW()-2)),\"\")","v":{"$error":"#N/A"}},{"$f":"IF(INDIRECT(\"c\" & (VLOOKUP(Rebalance!$D$52,$F$2:$G$48,2,FALSE)+ROW()-2))=Rebalance!$D$52,INDIRECT(\"a\" & (VLOOKUP(Rebalance!$D$52,$F$2:$G$48,2,FALSE)+ROW()-2)),\"\")","v":{"$error":"#N/A"}},{"$f":"IF(INDIRECT(\"c\" & (VLOOKUP(Rebalance!$D$53,$F$2:$G$48,2,FALSE)+ROW()-2))=Rebalance!$D$53,INDIRECT(\"a\" & (VLOOKUP(Rebalance!$D$53,$F$2:$G$48,2,FALSE)+ROW()-2)),\"\")","v":{"$error":"#N/A"}},{"$f":"IF(INDIRECT(\"c\" & (VLOOKUP(Rebalance!$D$54,$F$2:$G$48,2,FALSE)+ROW()-2))=Rebalance!$D$54,INDIRECT(\"a\" & (VLOOKUP(Rebalance!$D$54,$F$2:$G$48,2,FALSE)+ROW()-2)),\"\")","v":{"$error":"#N/A"}},{"$f":"IF(INDIRECT(\"c\" & (VLOOKUP(Rebalance!$D$55,$F$2:$G$48,2,FALSE)+ROW()-2))=Rebalance!$D$55,INDIRECT(\"a\" & (VLOOKUP(Rebalance!$D$55,$F$2:$G$48,2,FALSE)+ROW()-2)),\"\")","v":{"$error":"#N/A"}},{"$f":"IF(INDIRECT(\"c\" & (VLOOKUP(Rebalance!$D$56,$F$2:$G$48,2,FALSE)+ROW()-2))=Rebalance!$D$56,INDIRECT(\"a\" & (VLOOKUP(Rebalance!$D$56,$F$2:$G$48,2,FALSE)+ROW()-2)),\"\")","v":{"$error":"#N/A"}},{"$f":"IF(INDIRECT(\"c\" & (VLOOKUP(Rebalance!$D$57,$F$2:$G$48,2,FALSE)+ROW()-2))=Rebalance!$D$57,INDIRECT(\"a\" & (VLOOKUP(Rebalance!$D$57,$F$2:$G$48,2,FALSE)+ROW()-2)),\"\")","v":{"$error":"#N/A"}},{"$f":"IF(INDIRECT(\"c\" & (VLOOKUP(Rebalance!$D$58,$F$2:$G$48,2,FALSE)+ROW()-2))=Rebalance!$D$58,INDIRECT(\"a\" & (VLOOKUP(Rebalance!$D$58,$F$2:$G$48,2,FALSE)+ROW()-2)),\"\")","v":{"$error":"#N/A"}},{"$f":"IF(INDIRECT(\"c\" & (VLOOKUP(Rebalance!$D$59,$F$2:$G$48,2,FALSE)+ROW()-2))=Rebalance!$D$59,INDIRECT(\"a\" & (VLOOKUP(Rebalance!$D$59,$F$2:$G$48,2,FALSE)+ROW()-2)),\"\")","v":{"$error":"#N/A"}},{"$f":"IF(INDIRECT(\"c\" & (VLOOKUP(Rebalance!$D$60,$F$2:$G$48,2,FALSE)+ROW()-2))=Rebalance!$D$60,INDIRECT(\"a\" & (VLOOKUP(Rebalance!$D$60,$F$2:$G$48,2,FALSE)+ROW()-2)),\"\")","v":{"$error":"#N/A"}},{"$f":"IF(INDIRECT(\"c\" & (VLOOKUP(Rebalance!$D$61,$F$2:$G$48,2,FALSE)+ROW()-2))=Rebalance!$D$61,INDIRECT(\"a\" & (VLOOKUP(Rebalance!$D$61,$F$2:$G$48,2,FALSE)+ROW()-2)),\"\")","v":{"$error":"#N/A"}},{"$f":"IF(INDIRECT(\"c\" & (VLOOKUP(Rebalance!$D$62,$F$2:$G$48,2,FALSE)+ROW()-2))=Rebalance!$D$62,INDIRECT(\"a\" & (VLOOKUP(Rebalance!$D$62,$F$2:$G$48,2,FALSE)+ROW()-2)),\"\")","v":{"$error":"#N/A"}},{"$f":"IF(INDIRECT(\"c\" & (VLOOKUP(Rebalance!$D$63,$F$2:$G$48,2,FALSE)+ROW()-2))=Rebalance!$D$63,INDIRECT(\"a\" & (VLOOKUP(Rebalance!$D$63,$F$2:$G$48,2,FALSE)+ROW()-2)),\"\")","v":{"$error":"#N/A"}},{"$f":"IF(INDIRECT(\"c\" & (VLOOKUP(Rebalance!$D$64,$F$2:$G$48,2,FALSE)+ROW()-2))=Rebalance!$D$64,INDIRECT(\"a\" & (VLOOKUP(Rebalance!$D$64,$F$2:$G$48,2,FALSE)+ROW()-2)),\"\")","v":{"$error":"#N/A"}},{"$f":"IF(INDIRECT(\"c\" & (VLOOKUP(Rebalance!$D$65,$F$2:$G$48,2,FALSE)+ROW()-2))=Rebalance!$D$65,INDIRECT(\"a\" & (VLOOKUP(Rebalance!$D$65,$F$2:$G$48,2,FALSE)+ROW()-2)),\"\")","v":{"$error":"#N/A"}},{"$f":"IF(INDIRECT(\"c\" & (VLOOKUP(Rebalance!$D$66,$F$2:$G$48,2,FALSE)+ROW()-2))=Rebalance!$D$66,INDIRECT(\"a\" & (VLOOKUP(Rebalance!$D$66,$F$2:$G$48,2,FALSE)+ROW()-2)),\"\")","v":{"$error":"#N/A"}}]
[null,null,null,{"$f":"ROW()","v":613},null,null,{"$f":"VLOOKUP(F613,$C$2:$D$599,2,FALSE)","v":{"$error":"#N/A"}},{"$f":"IF(INDIRECT(\"c\" & (VLOOKUP(Rebalance!$D$26,$F$2:$G$48,2,FALSE)+ROW()-2))=Rebalance!$D$26,INDIRECT(\"a\" & (VLOOKUP(Rebalance!$D$26,$F$2:$G$48,2,FALSE)+ROW()-2)),\"\")","v":{"$error":"#N/A"}},{"$f":"IF(INDIRECT(\"c\" & (VLOOKUP(Rebalance!$D$27,$F$2:$G$48,2,FALSE)+ROW()-2))=Rebalance!$D$27,INDIRECT(\"a\" & (VLOOKUP(Rebalance!$D$27,$F$2:$G$48,2,FALSE)+ROW()-2)),\"\")","v":{"$error":"#N/A"}},{"$f":"IF(INDIRECT(\"c\" & (VLOOKUP(Rebalance!$D$28,$F$2:$G$48,2,FALSE)+ROW()-2))=Rebalance!$D$28,INDIRECT(\"a\" & (VLOOKUP(Rebalance!$D$28,$F$2:$G$48,2,FALSE)+ROW()-2)),\"\")","v":{"$error":"#N/A"}},{"$f":"IF(INDIRECT(\"c\" & (VLOOKUP(Rebalance!$D$29,$F$2:$G$48,2,FALSE)+ROW()-2))=Rebalance!$D$29,INDIRECT(\"a\" & (VLOOKUP(Rebalance!$D$29,$F$2:$G$48,2,FALSE)+ROW()-2)),\"\")","v":{"$error":"#N/A"}},{"$f":"IF(INDIRECT(\"c\" & (VLOOKUP(Rebalance!$D$30,$F$2:$G$48,2,FALSE)+ROW()-2))=Rebalance!$D$30,INDIRECT(\"a\" & (VLOOKUP(Rebalance!$D$30,$F$2:$G$48,2,FALSE)+ROW()-2)),\"\")","v":{"$error":"#N/A"}},{"$f":"IF(INDIRECT(\"c\" & (VLOOKUP(Rebalance!$D$31,$F$2:$G$48,2,FALSE)+ROW()-2))=Rebalance!$D$31,INDIRECT(\"a\" & (VLOOKUP(Rebalance!$D$31,$F$2:$G$48,2,FALSE)+ROW()-2)),\"\")","v":{"$error":"#N/A"}},{"$f":"IF(INDIRECT(\"c\" & (VLOOKUP(Rebalance!$D$32,$F$2:$G$48,2,FALSE)+ROW()-2))=Rebalance!$D$32,INDIRECT(\"a\" & (VLOOKUP(Rebalance!$D$32,$F$2:$G$48,2,FALSE)+ROW()-2)),\"\")","v":{"$error":"#N/A"}},{"$f":"IF(INDIRECT(\"c\" & (VLOOKUP(Rebalance!$D$33,$F$2:$G$48,2,FALSE)+ROW()-2))=Rebalance!$D$33,INDIRECT(\"a\" & (VLOOKUP(Rebalance!$D$33,$F$2:$G$48,2,FALSE)+ROW()-2)),\"\")","v":{"$error":"#N/A"}},{"$f":"IF(INDIRECT(\"c\" & (VLOOKUP(Rebalance!$D$34,$F$2:$G$48,2,FALSE)+ROW()-2))=Rebalance!$D$34,INDIRECT(\"a\" & (VLOOKUP(Rebalance!$D$34,$F$2:$G$48,2,FALSE)+ROW()-2)),\"\")","v":{"$error":"#N/A"}},{"$f":"IF(INDIRECT(\"c\" & (VLOOKUP(Rebalance!$D$35,$F$2:$G$48,2,FALSE)+ROW()-2))=Rebalance!$D$35,INDIRECT(\"a\" & (VLOOKUP(Rebalance!$D$35,$F$2:$G$48,2,FALSE)+ROW()-2)),\"\")","v":{"$error":"#N/A"}},{"$f":"IF(INDIRECT(\"c\" & (VLOOKUP(Rebalance!$D$36,$F$2:$G$48,2,FALSE)+ROW()-2))=Rebalance!$D$36,INDIRECT(\"a\" & (VLOOKUP(Rebalance!$D$36,$F$2:$G$48,2,FALSE)+ROW()-2)),\"\")","v":{"$error":"#N/A"}},{"$f":"IF(INDIRECT(\"c\" & (VLOOKUP(Rebalance!$D$37,$F$2:$G$48,2,FALSE)+ROW()-2))=Rebalance!$D$37,INDIRECT(\"a\" & (VLOOKUP(Rebalance!$D$37,$F$2:$G$48,2,FALSE)+ROW()-2)),\"\")","v":{"$error":"#N/A"}},{"$f":"IF(INDIRECT(\"c\" & (VLOOKUP(Rebalance!$D$38,$F$2:$G$48,2,FALSE)+ROW()-2))=Rebalance!$D$38,INDIRECT(\"a\" & (VLOOKUP(Rebalance!$D$38,$F$2:$G$48,2,FALSE)+ROW()-2)),\"\")","v":{"$error":"#N/A"}},{"$f":"IF(INDIRECT(\"c\" & (VLOOKUP(Rebalance!$D$39,$F$2:$G$48,2,FALSE)+ROW()-2))=Rebalance!$D$39,INDIRECT(\"a\" & (VLOOKUP(Rebalance!$D$39,$F$2:$G$48,2,FALSE)+ROW()-2)),\"\")","v":{"$error":"#N/A"}},{"$f":"IF(INDIRECT(\"c\" & (VLOOKUP(Rebalance!$D$40,$F$2:$G$48,2,FALSE)+ROW()-2))=Rebalance!$D$40,INDIRECT(\"a\" & (VLOOKUP(Rebalance!$D$40,$F$2:$G$48,2,FALSE)+ROW()-2)),\"\")","v":{"$error":"#N/A"}},{"$f":"IF(INDIRECT(\"c\" & (VLOOKUP(Rebalance!$D$52,$F$2:$G$48,2,FALSE)+ROW()-2))=Rebalance!$D$52,INDIRECT(\"a\" & (VLOOKUP(Rebalance!$D$52,$F$2:$G$48,2,FALSE)+ROW()-2)),\"\")","v":{"$error":"#N/A"}},{"$f":"IF(INDIRECT(\"c\" & (VLOOKUP(Rebalance!$D$53,$F$2:$G$48,2,FALSE)+ROW()-2))=Rebalance!$D$53,INDIRECT(\"a\" & (VLOOKUP(Rebalance!$D$53,$F$2:$G$48,2,FALSE)+ROW()-2)),\"\")","v":{"$error":"#N/A"}},{"$f":"IF(INDIRECT(\"c\" & (VLOOKUP(Rebalance!$D$54,$F$2:$G$48,2,FALSE)+ROW()-2))=Rebalance!$D$54,INDIRECT(\"a\" & (VLOOKUP(Rebalance!$D$54,$F$2:$G$48,2,FALSE)+ROW()-2)),\"\")","v":{"$error":"#N/A"}},{"$f":"IF(INDIRECT(\"c\" & (VLOOKUP(Rebalance!$D$55,$F$2:$G$48,2,FALSE)+ROW()-2))=Rebalance!$D$55,INDIRECT(\"a\" & (VLOOKUP(Rebalance!$D$55,$F$2:$G$48,2,FALSE)+ROW()-2)),\"\")","v":{"$error":"#N/A"}},{"$f":"IF(INDIRECT(\"c\" & (VLOOKUP(Rebalance!$D$56,$F$2:$G$48,2,FALSE)+ROW()-2))=Rebalance!$D$56,INDIRECT(\"a\" & (VLOOKUP(Rebalance!$D$56,$F$2:$G$48,2,FALSE)+ROW()-2)),\"\")","v":{"$error":"#N/A"}},{"$f":"IF(INDIRECT(\"c\" & (VLOOKUP(Rebalance!$D$57,$F$2:$G$48,2,FALSE)+ROW()-2))=Rebalance!$D$57,INDIRECT(\"a\" & (VLOOKUP(Rebalance!$D$57,$F$2:$G$48,2,FALSE)+ROW()-2)),\"\")","v":{"$error":"#N/A"}},{"$f":"IF(INDIRECT(\"c\" & (VLOOKUP(Rebalance!$D$58,$F$2:$G$48,2,FALSE)+ROW()-2))=Rebalance!$D$58,INDIRECT(\"a\" & (VLOOKUP(Rebalance!$D$58,$F$2:$G$48,2,FALSE)+ROW()-2)),\"\")","v":{"$error":"#N/A"}},{"$f":"IF(INDIRECT(\"c\" & (VLOOKUP(Rebalance!$D$59,$F$2:$G$48,2,FALSE)+ROW()-2))=Rebalance!$D$59,INDIRECT(\"a\" & (VLOOKUP(Rebalance!$D$59,$F$2:$G$48,2,FALSE)+ROW()-2)),\"\")","v":{"$error":"#N/A"}},{"$f":"IF(INDIRECT(\"c\" & (VLOOKUP(Rebalance!$D$60,$F$2:$G$48,2,FALSE)+ROW()-2))=Rebalance!$D$60,INDIRECT(\"a\" & (VLOOKUP(Rebalance!$D$60,$F$2:$G$48,2,FALSE)+ROW()-2)),\"\")","v":{"$error":"#N/A"}},{"$f":"IF(INDIRECT(\"c\" & (VLOOKUP(Rebalance!$D$61,$F$2:$G$48,2,FALSE)+ROW()-2))=Rebalance!$D$61,INDIRECT(\"a\" & (VLOOKUP(Rebalance!$D$61,$F$2:$G$48,2,FALSE)+ROW()-2)),\"\")","v":{"$error":"#N/A"}},{"$f":"IF(INDIRECT(\"c\" & (VLOOKUP(Rebalance!$D$62,$F$2:$G$48,2,FALSE)+ROW()-2))=Rebalance!$D$62,INDIRECT(\"a\" & (VLOOKUP(Rebalance!$D$62,$F$2:$G$48,2,FALSE)+ROW()-2)),\"\")","v":{"$error":"#N/A"}},{"$f":"IF(INDIRECT(\"c\" & (VLOOKUP(Rebalance!$D$63,$F$2:$G$48,2,FALSE)+ROW()-2))=Rebalance!$D$63,INDIRECT(\"a\" & (VLOOKUP(Rebalance!$D$63,$F$2:$G$48,2,FALSE)+ROW()-2)),\"\")","v":{"$error":"#N/A"}},{"$f":"IF(INDIRECT(\"c\" & (VLOOKUP(Rebalance!$D$64,$F$2:$G$48,2,FALSE)+ROW()-2))=Rebalance!$D$64,INDIRECT(\"a\" & (VLOOKUP(Rebalance!$D$64,$F$2:$G$48,2,FALSE)+ROW()-2)),\"\")","v":{"$error":"#N/A"}},{"$f":"IF(INDIRECT(\"c\" & (VLOOKUP(Rebalance!$D$65,$F$2:$G$48,2,FALSE)+ROW()-2))=Rebalance!$D$65,INDIRECT(\"a\" & (VLOOKUP(Rebalance!$D$65,$F$2:$G$48,2,FALSE)+ROW()-2)),\"\")","v":{"$error":"#N/A"}},{"$f":"IF(INDIRECT(\"c\" & (VLOOKUP(Rebalance!$D$66,$F$2:$G$48,2,FALSE)+ROW()-2))=Rebalance!$D$66,INDIRECT(\"a\" & (VLOOKUP(Rebalance!$D$66,$F$2:$G$48,2,FALSE)+ROW()-2)),\"\")","v":{"$error":"#N/A"}}]
[null,null,null,{"$f":"ROW()","v":614},null,null,{"$f":"VLOOKUP(F614,$C$2:$D$599,2,FALSE)","v":{"$error":"#N/A"}},{"$f":"IF(INDIRECT(\"c\" & (VLOOKUP(Rebalance!$D$26,$F$2:$G$48,2,FALSE)+ROW()-2))=Rebalance!$D$26,INDIRECT(\"a\" & (VLOOKUP(Rebalance!$D$26,$F$2:$G$48,2,FALSE)+ROW()-2)),\"\")","v":{"$error":"#N/A"}},{"$f":"IF(INDIRECT(\"c\" & (VLOOKUP(Rebalance!$D$27,$F$2:$G$48,2,FALSE)+ROW()-2))=Rebalance!$D$27,INDIRECT(\"a\" & (VLOOKUP(Rebalance!$D$27,$F$2:$G$48,2,FALSE)+ROW()-2)),\"\")","v":{"$error":"#N/A"}},{"$f":"IF(INDIRECT(\"c\" & (VLOOKUP(Rebalance!$D$28,$F$2:$G$48,2,FALSE)+ROW()-2))=Rebalance!$D$28,INDIRECT(\"a\" & (VLOOKUP(Rebalance!$D$28,$F$2:$G$48,2,FALSE)+ROW()-2)),\"\")","v":{"$error":"#N/A"}},{"$f":"IF(INDIRECT(\"c\" & (VLOOKUP(Rebalance!$D$29,$F$2:$G$48,2,FALSE)+ROW()-2))=Rebalance!$D$29,INDIRECT(\"a\" & (VLOOKUP(Rebalance!$D$29,$F$2:$G$48,2,FALSE)+ROW()-2)),\"\")","v":{"$error":"#N/A"}},{"$f":"IF(INDIRECT(\"c\" & (VLOOKUP(Rebalance!$D$30,$F$2:$G$48,2,FALSE)+ROW()-2))=Rebalance!$D$30,INDIRECT(\"a\" & (VLOOKUP(Rebalance!$D$30,$F$2:$G$48,2,FALSE)+ROW()-2)),\"\")","v":{"$error":"#N/A"}},{"$f":"IF(INDIRECT(\"c\" & (VLOOKUP(Rebalance!$D$31,$F$2:$G$48,2,FALSE)+ROW()-2))=Rebalance!$D$31,INDIRECT(\"a\" & (VLOOKUP(Rebalance!$D$31,$F$2:$G$48,2,FALSE)+ROW()-2)),\"\")","v":{"$error":"#N/A"}},{"$f":"IF(INDIRECT(\"c\" & (VLOOKUP(Rebalance!$D$32,$F$2:$G$48,2,FALSE)+ROW()-2))=Rebalance!$D$32,INDIRECT(\"a\" & (VLOOKUP(Rebalance!$D$32,$F$2:$G$48,2,FALSE)+ROW()-2)),\"\")","v":{"$error":"#N/A"}},{"$f":"IF(INDIRECT(\"c\" & (VLOOKUP(Rebalance!$D$33,$F$2:$G$48,2,FALSE)+ROW()-2))=Rebalance!$D$33,INDIRECT(\"a\" & (VLOOKUP(Rebalance!$D$33,$F$2:$G$48,2,FALSE)+ROW()-2)),\"\")","v":{"$error":"#N/A"}},{"$f":"IF(INDIRECT(\"c\" & (VLOOKUP(Rebalance!$D$34,$F$2:$G$48,2,FALSE)+ROW()-2))=Rebalance!$D$34,INDIRECT(\"a\" & (VLOOKUP(Rebalance!$D$34,$F$2:$G$48,2,FALSE)+ROW()-2)),\"\")","v":{"$error":"#N/A"}},{"$f":"IF(INDIRECT(\"c\" & (VLOOKUP(Rebalance!$D$35,$F$2:$G$48,2,FALSE)+ROW()-2))=Rebalance!$D$35,INDIRECT(\"a\" & (VLOOKUP(Rebalance!$D$35,$F$2:$G$48,2,FALSE)+ROW()-2)),\"\")","v":{"$error":"#N/A"}},{"$f":"IF(INDIRECT(\"c\" & (VLOOKUP(Rebalance!$D$36,$F$2:$G$48,2,FALSE)+ROW()-2))=Rebalance!$D$36,INDIRECT(\"a\" & (VLOOKUP(Rebalance!$D$36,$F$2:$G$48,2,FALSE)+ROW()-2)),\"\")","v":{"$error":"#N/A"}},{"$f":"IF(INDIRECT(\"c\" & (VLOOKUP(Rebalance!$D$37,$F$2:$G$48,2,FALSE)+ROW()-2))=Rebalance!$D$37,INDIRECT(\"a\" & (VLOOKUP(Rebalance!$D$37,$F$2:$G$48,2,FALSE)+ROW()-2)),\"\")","v":{"$error":"#N/A"}},{"$f":"IF(INDIRECT(\"c\" & (VLOOKUP(Rebalance!$D$38,$F$2:$G$48,2,FALSE)+ROW()-2))=Rebalance!$D$38,INDIRECT(\"a\" & (VLOOKUP(Rebalance!$D$38,$F$2:$G$48,2,FALSE)+ROW()-2)),\"\")","v":{"$error":"#N/A"}},{"$f":"IF(INDIRECT(\"c\" & (VLOOKUP(Rebalance!$D$39,$F$2:$G$48,2,FALSE)+ROW()-2))=Rebalance!$D$39,INDIRECT(\"a\" & (VLOOKUP(Rebalance!$D$39,$F$2:$G$48,2,FALSE)+ROW()-2)),\"\")","v":{"$error":"#N/A"}},{"$f":"IF(INDIRECT(\"c\" & (VLOOKUP(Rebalance!$D$40,$F$2:$G$48,2,FALSE)+ROW()-2))=Rebalance!$D$40,INDIRECT(\"a\" & (VLOOKUP(Rebalance!$D$40,$F$2:$G$48,2,FALSE)+ROW()-2)),\"\")","v":{"$error":"#N/A"}},{"$f":"IF(INDIRECT(\"c\" & (VLOOKUP(Rebalance!$D$52,$F$2:$G$48,2,FALSE)+ROW()-2))=Rebalance!$D$52,INDIRECT(\"a\" & (VLOOKUP(Rebalance!$D$52,$F$2:$G$48,2,FALSE)+ROW()-2)),\"\")","v":{"$error":"#N/A"}},{"$f":"IF(INDIRECT(\"c\" & (VLOOKUP(Rebalance!$D$53,$F$2:$G$48,2,FALSE)+ROW()-2))=Rebalance!$D$53,INDIRECT(\"a\" & (VLOOKUP(Rebalance!$D$53,$F$2:$G$48,2,FALSE)+ROW()-2)),\"\")","v":{"$error":"#N/A"}},{"$f":"IF(INDIRECT(\"c\" & (VLOOKUP(Rebalance!$D$54,$F$2:$G$48,2,FALSE)+ROW()-2))=Rebalance!$D$54,INDIRECT(\"a\" & (VLOOKUP(Rebalance!$D$54,$F$2:$G$48,2,FALSE)+ROW()-2)),\"\")","v":{"$error":"#N/A"}},{"$f":"IF(INDIRECT(\"c\" & (VLOOKUP(Rebalance!$D$55,$F$2:$G$48,2,FALSE)+ROW()-2))=Rebalance!$D$55,INDIRECT(\"a\" & (VLOOKUP(Rebalance!$D$55,$F$2:$G$48,2,FALSE)+ROW()-2)),\"\")","v":{"$error":"#N/A"}},{"$f":"IF(INDIRECT(\"c\" & (VLOOKUP(Rebalance!$D$56,$F$2:$G$48,2,FALSE)+ROW()-2))=Rebalance!$D$56,INDIRECT(\"a\" & (VLOOKUP(Rebalance!$D$56,$F$2:$G$48,2,FALSE)+ROW()-2)),\"\")","v":{"$error":"#N/A"}},{"$f":"IF(INDIRECT(\"c\" & (VLOOKUP(Rebalance!$D$57,$F$2:$G$48,2,FALSE)+ROW()-2))=Rebalance!$D$57,INDIRECT(\"a\" & (VLOOKUP(Rebalance!$D$57,$F$2:$G$48,2,FALSE)+ROW()-2)),\"\")","v":{"$error":"#N/A"}},{"$f":"IF(INDIRECT(\"c\" & (VLOOKUP(Rebalance!$D$58,$F$2:$G$48,2,FALSE)+ROW()-2))=Rebalance!$D$58,INDIRECT(\"a\" & (VLOOKUP(Rebalance!$D$58,$F$2:$G$48,2,FALSE)+ROW()-2)),\"\")","v":{"$error":"#N/A"}},{"$f":"IF(INDIRECT(\"c\" & (VLOOKUP(Rebalance!$D$59,$F$2:$G$48,2,FALSE)+ROW()-2))=Rebalance!$D$59,INDIRECT(\"a\" & (VLOOKUP(Rebalance!$D$59,$F$2:$G$48,2,FALSE)+ROW()-2)),\"\")","v":{"$error":"#N/A"}},{"$f":"IF(INDIRECT(\"c\" & (VLOOKUP(Rebalance!$D$60,$F$2:$G$48,2,FALSE)+ROW()-2))=Rebalance!$D$60,INDIRECT(\"a\" & (VLOOKUP(Rebalance!$D$60,$F$2:$G$48,2,FALSE)+ROW()-2)),\"\")","v":{"$error":"#N/A"}},{"$f":"IF(INDIRECT(\"c\" & (VLOOKUP(Rebalance!$D$61,$F$2:$G$48,2,FALSE)+ROW()-2))=Rebalance!$D$61,INDIRECT(\"a\" & (VLOOKUP(Rebalance!$D$61,$F$2:$G$48,2,FALSE)+ROW()-2)),\"\")","v":{"$error":"#N/A"}},{"$f":"IF(INDIRECT(\"c\" & (VLOOKUP(Rebalance!$D$62,$F$2:$G$48,2,FALSE)+ROW()-2))=Rebalance!$D$62,INDIRECT(\"a\" & (VLOOKUP(Rebalance!$D$62,$F$2:$G$48,2,FALSE)+ROW()-2)),\"\")","v":{"$error":"#N/A"}},{"$f":"IF(INDIRECT(\"c\" & (VLOOKUP(Rebalance!$D$63,$F$2:$G$48,2,FALSE)+ROW()-2))=Rebalance!$D$63,INDIRECT(\"a\" & (VLOOKUP(Rebalance!$D$63,$F$2:$G$48,2,FALSE)+ROW()-2)),\"\")","v":{"$error":"#N/A"}},{"$f":"IF(INDIRECT(\"c\" & (VLOOKUP(Rebalance!$D$64,$F$2:$G$48,2,FALSE)+ROW()-2))=Rebalance!$D$64,INDIRECT(\"a\" & (VLOOKUP(Rebalance!$D$64,$F$2:$G$48,2,FALSE)+ROW()-2)),\"\")","v":{"$error":"#N/A"}},{"$f":"IF(INDIRECT(\"c\" & (VLOOKUP(Rebalance!$D$65,$F$2:$G$48,2,FALSE)+ROW()-2))=Rebalance!$D$65,INDIRECT(\"a\" & (VLOOKUP(Rebalance!$D$65,$F$2:$G$48,2,FALSE)+ROW()-2)),\"\")","v":{"$error":"#N/A"}},{"$f":"IF(INDIRECT(\"c\" & (VLOOKUP(Rebalance!$D$66,$F$2:$G$48,2,FALSE)+ROW()-2))=Rebalance!$D$66,INDIRECT(\"a\" & (VLOOKUP(Rebalance!$D$66,$F$2:$G$48,2,FALSE)+ROW()-2)),\"\")","v":{"$error":"#N/A"}}]
[null,null,null,{"$f":"ROW()","v":615},null,null,{"$f":"VLOOKUP(F615,$C$2:$D$599,2,FALSE)","v":{"$error":"#N/A"}},{"$f":"IF(INDIRECT(\"c\" & (VLOOKUP(Rebalance!$D$26,$F$2:$G$48,2,FALSE)+ROW()-2))=Rebalance!$D$26,INDIRECT(\"a\" & (VLOOKUP(Rebalance!$D$26,$F$2:$G$48,2,FALSE)+ROW()-2)),\"\")","v":{"$error":"#N/A"}},{"$f":"IF(INDIRECT(\"c\" & (VLOOKUP(Rebalance!$D$27,$F$2:$G$48,2,FALSE)+ROW()-2))=Rebalance!$D$27,INDIRECT(\"a\" & (VLOOKUP(Rebalance!$D$27,$F$2:$G$48,2,FALSE)+ROW()-2)),\"\")","v":{"$error":"#N/A"}},{"$f":"IF(INDIRECT(\"c\" & (VLOOKUP(Rebalance!$D$28,$F$2:$G$48,2,FALSE)+ROW()-2))=Rebalance!$D$28,INDIRECT(\"a\" & (VLOOKUP(Rebalance!$D$28,$F$2:$G$48,2,FALSE)+ROW()-2)),\"\")","v":{"$error":"#N/A"}},{"$f":"IF(INDIRECT(\"c\" & (VLOOKUP(Rebalance!$D$29,$F$2:$G$48,2,FALSE)+ROW()-2))=Rebalance!$D$29,INDIRECT(\"a\" & (VLOOKUP(Rebalance!$D$29,$F$2:$G$48,2,FALSE)+ROW()-2)),\"\")","v":{"$error":"#N/A"}},{"$f":"IF(INDIRECT(\"c\" & (VLOOKUP(Rebalance!$D$30,$F$2:$G$48,2,FALSE)+ROW()-2))=Rebalance!$D$30,INDIRECT(\"a\" & (VLOOKUP(Rebalance!$D$30,$F$2:$G$48,2,FALSE)+ROW()-2)),\"\")","v":{"$error":"#N/A"}},{"$f":"IF(INDIRECT(\"c\" & (VLOOKUP(Rebalance!$D$31,$F$2:$G$48,2,FALSE)+ROW()-2))=Rebalance!$D$31,INDIRECT(\"a\" & (VLOOKUP(Rebalance!$D$31,$F$2:$G$48,2,FALSE)+ROW()-2)),\"\")","v":{"$error":"#N/A"}},{"$f":"IF(INDIRECT(\"c\" & (VLOOKUP(Rebalance!$D$32,$F$2:$G$48,2,FALSE)+ROW()-2))=Rebalance!$D$32,INDIRECT(\"a\" & (VLOOKUP(Rebalance!$D$32,$F$2:$G$48,2,FALSE)+ROW()-2)),\"\")","v":{"$error":"#N/A"}},{"$f":"IF(INDIRECT(\"c\" & (VLOOKUP(Rebalance!$D$33,$F$2:$G$48,2,FALSE)+ROW()-2))=Rebalance!$D$33,INDIRECT(\"a\" & (VLOOKUP(Rebalance!$D$33,$F$2:$G$48,2,FALSE)+ROW()-2)),\"\")","v":{"$error":"#N/A"}},{"$f":"IF(INDIRECT(\"c\" & (VLOOKUP(Rebalance!$D$34,$F$2:$G$48,2,FALSE)+ROW()-2))=Rebalance!$D$34,INDIRECT(\"a\" & (VLOOKUP(Rebalance!$D$34,$F$2:$G$48,2,FALSE)+ROW()-2)),\"\")","v":{"$error":"#N/A"}},{"$f":"IF(INDIRECT(\"c\" & (VLOOKUP(Rebalance!$D$35,$F$2:$G$48,2,FALSE)+ROW()-2))=Rebalance!$D$35,INDIRECT(\"a\" & (VLOOKUP(Rebalance!$D$35,$F$2:$G$48,2,FALSE)+ROW()-2)),\"\")","v":{"$error":"#N/A"}},{"$f":"IF(INDIRECT(\"c\" & (VLOOKUP(Rebalance!$D$36,$F$2:$G$48,2,FALSE)+ROW()-2))=Rebalance!$D$36,INDIRECT(\"a\" & (VLOOKUP(Rebalance!$D$36,$F$2:$G$48,2,FALSE)+ROW()-2)),\"\")","v":{"$error":"#N/A"}},{"$f":"IF(INDIRECT(\"c\" & (VLOOKUP(Rebalance!$D$37,$F$2:$G$48,2,FALSE)+ROW()-2))=Rebalance!$D$37,INDIRECT(\"a\" & (VLOOKUP(Rebalance!$D$37,$F$2:$G$48,2,FALSE)+ROW()-2)),\"\")","v":{"$error":"#N/A"}},{"$f":"IF(INDIRECT(\"c\" & (VLOOKUP(Rebalance!$D$38,$F$2:$G$48,2,FALSE)+ROW()-2))=Rebalance!$D$38,INDIRECT(\"a\" & (VLOOKUP(Rebalance!$D$38,$F$2:$G$48,2,FALSE)+ROW()-2)),\"\")","v":{"$error":"#N/A"}},{"$f":"IF(INDIRECT(\"c\" & (VLOOKUP(Rebalance!$D$39,$F$2:$G$48,2,FALSE)+ROW()-2))=Rebalance!$D$39,INDIRECT(\"a\" & (VLOOKUP(Rebalance!$D$39,$F$2:$G$48,2,FALSE)+ROW()-2)),\"\")","v":{"$error":"#N/A"}},{"$f":"IF(INDIRECT(\"c\" & (VLOOKUP(Rebalance!$D$40,$F$2:$G$48,2,FALSE)+ROW()-2))=Rebalance!$D$40,INDIRECT(\"a\" & (VLOOKUP(Rebalance!$D$40,$F$2:$G$48,2,FALSE)+ROW()-2)),\"\")","v":{"$error":"#N/A"}},{"$f":"IF(INDIRECT(\"c\" & (VLOOKUP(Rebalance!$D$52,$F$2:$G$48,2,FALSE)+ROW()-2))=Rebalance!$D$52,INDIRECT(\"a\" & (VLOOKUP(Rebalance!$D$52,$F$2:$G$48,2,FALSE)+ROW()-2)),\"\")","v":{"$error":"#N/A"}},{"$f":"IF(INDIRECT(\"c\" & (VLOOKUP(Rebalance!$D$53,$F$2:$G$48,2,FALSE)+ROW()-2))=Rebalance!$D$53,INDIRECT(\"a\" & (VLOOKUP(Rebalance!$D$53,$F$2:$G$48,2,FALSE)+ROW()-2)),\"\")","v":{"$error":"#N/A"}},{"$f":"IF(INDIRECT(\"c\" & (VLOOKUP(Rebalance!$D$54,$F$2:$G$48,2,FALSE)+ROW()-2))=Rebalance!$D$54,INDIRECT(\"a\" & (VLOOKUP(Rebalance!$D$54,$F$2:$G$48,2,FALSE)+ROW()-2)),\"\")","v":{"$error":"#N/A"}},{"$f":"IF(INDIRECT(\"c\" & (VLOOKUP(Rebalance!$D$55,$F$2:$G$48,2,FALSE)+ROW()-2))=Rebalance!$D$55,INDIRECT(\"a\" & (VLOOKUP(Rebalance!$D$55,$F$2:$G$48,2,FALSE)+ROW()-2)),\"\")","v":{"$error":"#N/A"}},{"$f":"IF(INDIRECT(\"c\" & (VLOOKUP(Rebalance!$D$56,$F$2:$G$48,2,FALSE)+ROW()-2))=Rebalance!$D$56,INDIRECT(\"a\" & (VLOOKUP(Rebalance!$D$56,$F$2:$G$48,2,FALSE)+ROW()-2)),\"\")","v":{"$error":"#N/A"}},{"$f":"IF(INDIRECT(\"c\" & (VLOOKUP(Rebalance!$D$57,$F$2:$G$48,2,FALSE)+ROW()-2))=Rebalance!$D$57,INDIRECT(\"a\" & (VLOOKUP(Rebalance!$D$57,$F$2:$G$48,2,FALSE)+ROW()-2)),\"\")","v":{"$error":"#N/A"}},{"$f":"IF(INDIRECT(\"c\" & (VLOOKUP(Rebalance!$D$58,$F$2:$G$48,2,FALSE)+ROW()-2))=Rebalance!$D$58,INDIRECT(\"a\" & (VLOOKUP(Rebalance!$D$58,$F$2:$G$48,2,FALSE)+ROW()-2)),\"\")","v":{"$error":"#N/A"}},{"$f":"IF(INDIRECT(\"c\" & (VLOOKUP(Rebalance!$D$59,$F$2:$G$48,2,FALSE)+ROW()-2))=Rebalance!$D$59,INDIRECT(\"a\" & (VLOOKUP(Rebalance!$D$59,$F$2:$G$48,2,FALSE)+ROW()-2)),\"\")","v":{"$error":"#N/A"}},{"$f":"IF(INDIRECT(\"c\" & (VLOOKUP(Rebalance!$D$60,$F$2:$G$48,2,FALSE)+ROW()-2))=Rebalance!$D$60,INDIRECT(\"a\" & (VLOOKUP(Rebalance!$D$60,$F$2:$G$48,2,FALSE)+ROW()-2)),\"\")","v":{"$error":"#N/A"}},{"$f":"IF(INDIRECT(\"c\" & (VLOOKUP(Rebalance!$D$61,$F$2:$G$48,2,FALSE)+ROW()-2))=Rebalance!$D$61,INDIRECT(\"a\" & (VLOOKUP(Rebalance!$D$61,$F$2:$G$48,2,FALSE)+ROW()-2)),\"\")","v":{"$error":"#N/A"}},{"$f":"IF(INDIRECT(\"c\" & (VLOOKUP(Rebalance!$D$62,$F$2:$G$48,2,FALSE)+ROW()-2))=Rebalance!$D$62,INDIRECT(\"a\" & (VLOOKUP(Rebalance!$D$62,$F$2:$G$48,2,FALSE)+ROW()-2)),\"\")","v":{"$error":"#N/A"}},{"$f":"IF(INDIRECT(\"c\" & (VLOOKUP(Rebalance!$D$63,$F$2:$G$48,2,FALSE)+ROW()-2))=Rebalance!$D$63,INDIRECT(\"a\" & (VLOOKUP(Rebalance!$D$63,$F$2:$G$48,2,FALSE)+ROW()-2)),\"\")","v":{"$error":"#N/A"}},{"$f":"IF(INDIRECT(\"c\" & (VLOOKUP(Rebalance!$D$64,$F$2:$G$48,2,FALSE)+ROW()-2))=Rebalance!$D$64,INDIRECT(\"a\" & (VLOOKUP(Rebalance!$D$64,$F$2:$G$48,2,FALSE)+ROW()-2)),\"\")","v":{"$error":"#N/A"}},{"$f":"IF(INDIRECT(\"c\" & (VLOOKUP(Rebalance!$D$65,$F$2:$G$48,2,FALSE)+ROW()-2))=Rebalance!$D$65,INDIRECT(\"a\" & (VLOOKUP(Rebalance!$D$65,$F$2:$G$48,2,FALSE)+ROW()-2)),\"\")","v":{"$error":"#N/A"}},{"$f":"IF(INDIRECT(\"c\" & (VLOOKUP(Rebalance!$D$66,$F$2:$G$48,2,FALSE)+ROW()-2))=Rebalance!$D$66,INDIRECT(\"a\" & (VLOOKUP(Rebalance!$D$66,$F$2:$G$48,2,FALSE)+ROW()-2)),\"\")","v":{"$error":"#N/A"}}]
[null,null,null,{"$f":"ROW()","v":616},null,null,{"$f":"VLOOKUP(F616,$C$2:$D$599,2,FALSE)","v":{"$error":"#N/A"}},{"$f":"IF(INDIRECT(\"c\" & (VLOOKUP(Rebalance!$D$26,$F$2:$G$48,2,FALSE)+ROW()-2))=Rebalance!$D$26,INDIRECT(\"a\" & (VLOOKUP(Rebalance!$D$26,$F$2:$G$48,2,FALSE)+ROW()-2)),\"\")","v":{"$error":"#N/A"}},{"$f":"IF(INDIRECT(\"c\" & (VLOOKUP(Rebalance!$D$27,$F$2:$G$48,2,FALSE)+ROW()-2))=Rebalance!$D$27,INDIRECT(\"a\" & (VLOOKUP(Rebalance!$D$27,$F$2:$G$48,2,FALSE)+ROW()-2)),\"\")","v":{"$error":"#N/A"}},{"$f":"IF(INDIRECT(\"c\" & (VLOOKUP(Rebalance!$D$28,$F$2:$G$48,2,FALSE)+ROW()-2))=Rebalance!$D$28,INDIRECT(\"a\" & (VLOOKUP(Rebalance!$D$28,$F$2:$G$48,2,FALSE)+ROW()-2)),\"\")","v":{"$error":"#N/A"}},{"$f":"IF(INDIRECT(\"c\" & (VLOOKUP(Rebalance!$D$29,$F$2:$G$48,2,FALSE)+ROW()-2))=Rebalance!$D$29,INDIRECT(\"a\" & (VLOOKUP(Rebalance!$D$29,$F$2:$G$48,2,FALSE)+ROW()-2)),\"\")","v":{"$error":"#N/A"}},{"$f":"IF(INDIRECT(\"c\" & (VLOOKUP(Rebalance!$D$30,$F$2:$G$48,2,FALSE)+ROW()-2))=Rebalance!$D$30,INDIRECT(\"a\" & (VLOOKUP(Rebalance!$D$30,$F$2:$G$48,2,FALSE)+ROW()-2)),\"\")","v":{"$error":"#N/A"}},{"$f":"IF(INDIRECT(\"c\" & (VLOOKUP(Rebalance!$D$31,$F$2:$G$48,2,FALSE)+ROW()-2))=Rebalance!$D$31,INDIRECT(\"a\" & (VLOOKUP(Rebalance!$D$31,$F$2:$G$48,2,FALSE)+ROW()-2)),\"\")","v":{"$error":"#N/A"}},{"$f":"IF(INDIRECT(\"c\" & (VLOOKUP(Rebalance!$D$32,$F$2:$G$48,2,FALSE)+ROW()-2))=Rebalance!$D$32,INDIRECT(\"a\" & (VLOOKUP(Rebalance!$D$32,$F$2:$G$48,2,FALSE)+ROW()-2)),\"\")","v":{"$error":"#N/A"}},{"$f":"IF(INDIRECT(\"c\" & (VLOOKUP(Rebalance!$D$33,$F$2:$G$48,2,FALSE)+ROW()-2))=Rebalance!$D$33,INDIRECT(\"a\" & (VLOOKUP(Rebalance!$D$33,$F$2:$G$48,2,FALSE)+ROW()-2)),\"\")","v":{"$error":"#N/A"}},{"$f":"IF(INDIRECT(\"c\" & (VLOOKUP(Rebalance!$D$34,$F$2:$G$48,2,FALSE)+ROW()-2))=Rebalance!$D$34,INDIRECT(\"a\" & (VLOOKUP(Rebalance!$D$34,$F$2:$G$48,2,FALSE)+ROW()-2)),\"\")","v":{"$error":"#N/A"}},{"$f":"IF(INDIRECT(\"c\" & (VLOOKUP(Rebalance!$D$35,$F$2:$G$48,2,FALSE)+ROW()-2))=Rebalance!$D$35,INDIRECT(\"a\" & (VLOOKUP(Rebalance!$D$35,$F$2:$G$48,2,FALSE)+ROW()-2)),\"\")","v":{"$error":"#N/A"}},{"$f":"IF(INDIRECT(\"c\" & (VLOOKUP(Rebalance!$D$36,$F$2:$G$48,2,FALSE)+ROW()-2))=Rebalance!$D$36,INDIRECT(\"a\" & (VLOOKUP(Rebalance!$D$36,$F$2:$G$48,2,FALSE)+ROW()-2)),\"\")","v":{"$error":"#N/A"}},{"$f":"IF(INDIRECT(\"c\" & (VLOOKUP(Rebalance!$D$37,$F$2:$G$48,2,FALSE)+ROW()-2))=Rebalance!$D$37,INDIRECT(\"a\" & (VLOOKUP(Rebalance!$D$37,$F$2:$G$48,2,FALSE)+ROW()-2)),\"\")","v":{"$error":"#N/A"}},{"$f":"IF(INDIRECT(\"c\" & (VLOOKUP(Rebalance!$D$38,$F$2:$G$48,2,FALSE)+ROW()-2))=Rebalance!$D$38,INDIRECT(\"a\" & (VLOOKUP(Rebalance!$D$38,$F$2:$G$48,2,FALSE)+ROW()-2)),\"\")","v":{"$error":"#N/A"}},{"$f":"IF(INDIRECT(\"c\" & (VLOOKUP(Rebalance!$D$39,$F$2:$G$48,2,FALSE)+ROW()-2))=Rebalance!$D$39,INDIRECT(\"a\" & (VLOOKUP(Rebalance!$D$39,$F$2:$G$48,2,FALSE)+ROW()-2)),\"\")","v":{"$error":"#N/A"}},{"$f":"IF(INDIRECT(\"c\" & (VLOOKUP(Rebalance!$D$40,$F$2:$G$48,2,FALSE)+ROW()-2))=Rebalance!$D$40,INDIRECT(\"a\" & (VLOOKUP(Rebalance!$D$40,$F$2:$G$48,2,FALSE)+ROW()-2)),\"\")","v":{"$error":"#N/A"}},{"$f":"IF(INDIRECT(\"c\" & (VLOOKUP(Rebalance!$D$52,$F$2:$G$48,2,FALSE)+ROW()-2))=Rebalance!$D$52,INDIRECT(\"a\" & (VLOOKUP(Rebalance!$D$52,$F$2:$G$48,2,FALSE)+ROW()-2)),\"\")","v":{"$error":"#N/A"}},{"$f":"IF(INDIRECT(\"c\" & (VLOOKUP(Rebalance!$D$53,$F$2:$G$48,2,FALSE)+ROW()-2))=Rebalance!$D$53,INDIRECT(\"a\" & (VLOOKUP(Rebalance!$D$53,$F$2:$G$48,2,FALSE)+ROW()-2)),\"\")","v":{"$error":"#N/A"}},{"$f":"IF(INDIRECT(\"c\" & (VLOOKUP(Rebalance!$D$54,$F$2:$G$48,2,FALSE)+ROW()-2))=Rebalance!$D$54,INDIRECT(\"a\" & (VLOOKUP(Rebalance!$D$54,$F$2:$G$48,2,FALSE)+ROW()-2)),\"\")","v":{"$error":"#N/A"}},{"$f":"IF(INDIRECT(\"c\" & (VLOOKUP(Rebalance!$D$55,$F$2:$G$48,2,FALSE)+ROW()-2))=Rebalance!$D$55,INDIRECT(\"a\" & (VLOOKUP(Rebalance!$D$55,$F$2:$G$48,2,FALSE)+ROW()-2)),\"\")","v":{"$error":"#N/A"}},{"$f":"IF(INDIRECT(\"c\" & (VLOOKUP(Rebalance!$D$56,$F$2:$G$48,2,FALSE)+ROW()-2))=Rebalance!$D$56,INDIRECT(\"a\" & (VLOOKUP(Rebalance!$D$56,$F$2:$G$48,2,FALSE)+ROW()-2)),\"\")","v":{"$error":"#N/A"}},{"$f":"IF(INDIRECT(\"c\" & (VLOOKUP(Rebalance!$D$57,$F$2:$G$48,2,FALSE)+ROW()-2))=Rebalance!$D$57,INDIRECT(\"a\" & (VLOOKUP(Rebalance!$D$57,$F$2:$G$48,2,FALSE)+ROW()-2)),\"\")","v":{"$error":"#N/A"}},{"$f":"IF(INDIRECT(\"c\" & (VLOOKUP(Rebalance!$D$58,$F$2:$G$48,2,FALSE)+ROW()-2))=Rebalance!$D$58,INDIRECT(\"a\" & (VLOOKUP(Rebalance!$D$58,$F$2:$G$48,2,FALSE)+ROW()-2)),\"\")","v":{"$error":"#N/A"}},{"$f":"IF(INDIRECT(\"c\" & (VLOOKUP(Rebalance!$D$59,$F$2:$G$48,2,FALSE)+ROW()-2))=Rebalance!$D$59,INDIRECT(\"a\" & (VLOOKUP(Rebalance!$D$59,$F$2:$G$48,2,FALSE)+ROW()-2)),\"\")","v":{"$error":"#N/A"}},{"$f":"IF(INDIRECT(\"c\" & (VLOOKUP(Rebalance!$D$60,$F$2:$G$48,2,FALSE)+ROW()-2))=Rebalance!$D$60,INDIRECT(\"a\" & (VLOOKUP(Rebalance!$D$60,$F$2:$G$48,2,FALSE)+ROW()-2)),\"\")","v":{"$error":"#N/A"}},{"$f":"IF(INDIRECT(\"c\" & (VLOOKUP(Rebalance!$D$61,$F$2:$G$48,2,FALSE)+ROW()-2))=Rebalance!$D$61,INDIRECT(\"a\" & (VLOOKUP(Rebalance!$D$61,$F$2:$G$48,2,FALSE)+ROW()-2)),\"\")","v":{"$error":"#N/A"}},{"$f":"IF(INDIRECT(\"c\" & (VLOOKUP(Rebalance!$D$62,$F$2:$G$48,2,FALSE)+ROW()-2))=Rebalance!$D$62,INDIRECT(\"a\" & (VLOOKUP(Rebalance!$D$62,$F$2:$G$48,2,FALSE)+ROW()-2)),\"\")","v":{"$error":"#N/A"}},{"$f":"IF(INDIRECT(\"c\" & (VLOOKUP(Rebalance!$D$63,$F$2:$G$48,2,FALSE)+ROW()-2))=Rebalance!$D$63,INDIRECT(\"a\" & (VLOOKUP(Rebalance!$D$63,$F$2:$G$48,2,FALSE)+ROW()-2)),\"\")","v":{"$error":"#N/A"}},{"$f":"IF(INDIRECT(\"c\" & (VLOOKUP(Rebalance!$D$64,$F$2:$G$48,2,FALSE)+ROW()-2))=Rebalance!$D$64,INDIRECT(\"a\" & (VLOOKUP(Rebalance!$D$64,$F$2:$G$48,2,FALSE)+ROW()-2)),\"\")","v":{"$error":"#N/A"}},{"$f":"IF(INDIRECT(\"c\" & (VLOOKUP(Rebalance!$D$65,$F$2:$G$48,2,FALSE)+ROW()-2))=Rebalance!$D$65,INDIRECT(\"a\" & (VLOOKUP(Rebalance!$D$65,$F$2:$G$48,2,FALSE)+ROW()-2)),\"\")","v":{"$error":"#N/A"}},{"$f":"IF(INDIRECT(\"c\" & (VLOOKUP(Rebalance!$D$66,$F$2:$G$48,2,FALSE)+ROW()-2))=Rebalance!$D$66,INDIRECT(\"a\" & (VLOOKUP(Rebalance!$D$66,$F$2:$G$48,2,FALSE)+ROW()-2)),\"\")","v":{"$error":"#N/A"}}]
[null,null,null,{"$f":"ROW()","v":617},null,null,{"$f":"VLOOKUP(F617,$C$2:$D$599,2,FALSE)","v":{"$error":"#N/A"}},{"$f":"IF(INDIRECT(\"c\" & (VLOOKUP(Rebalance!$D$26,$F$2:$G$48,2,FALSE)+ROW()-2))=Rebalance!$D$26,INDIRECT(\"a\" & (VLOOKUP(Rebalance!$D$26,$F$2:$G$48,2,FALSE)+ROW()-2)),\"\")","v":{"$error":"#N/A"}},{"$f":"IF(INDIRECT(\"c\" & (VLOOKUP(Rebalance!$D$27,$F$2:$G$48,2,FALSE)+ROW()-2))=Rebalance!$D$27,INDIRECT(\"a\" & (VLOOKUP(Rebalance!$D$27,$F$2:$G$48,2,FALSE)+ROW()-2)),\"\")","v":{"$error":"#N/A"}},{"$f":"IF(INDIRECT(\"c\" & (VLOOKUP(Rebalance!$D$28,$F$2:$G$48,2,FALSE)+ROW()-2))=Rebalance!$D$28,INDIRECT(\"a\" & (VLOOKUP(Rebalance!$D$28,$F$2:$G$48,2,FALSE)+ROW()-2)),\"\")","v":{"$error":"#N/A"}},{"$f":"IF(INDIRECT(\"c\" & (VLOOKUP(Rebalance!$D$29,$F$2:$G$48,2,FALSE)+ROW()-2))=Rebalance!$D$29,INDIRECT(\"a\" & (VLOOKUP(Rebalance!$D$29,$F$2:$G$48,2,FALSE)+ROW()-2)),\"\")","v":{"$error":"#N/A"}},{"$f":"IF(INDIRECT(\"c\" & (VLOOKUP(Rebalance!$D$30,$F$2:$G$48,2,FALSE)+ROW()-2))=Rebalance!$D$30,INDIRECT(\"a\" & (VLOOKUP(Rebalance!$D$30,$F$2:$G$48,2,FALSE)+ROW()-2)),\"\")","v":{"$error":"#N/A"}},{"$f":"IF(INDIRECT(\"c\" & (VLOOKUP(Rebalance!$D$31,$F$2:$G$48,2,FALSE)+ROW()-2))=Rebalance!$D$31,INDIRECT(\"a\" & (VLOOKUP(Rebalance!$D$31,$F$2:$G$48,2,FALSE)+ROW()-2)),\"\")","v":{"$error":"#N/A"}},{"$f":"IF(INDIRECT(\"c\" & (VLOOKUP(Rebalance!$D$32,$F$2:$G$48,2,FALSE)+ROW()-2))=Rebalance!$D$32,INDIRECT(\"a\" & (VLOOKUP(Rebalance!$D$32,$F$2:$G$48,2,FALSE)+ROW()-2)),\"\")","v":{"$error":"#N/A"}},{"$f":"IF(INDIRECT(\"c\" & (VLOOKUP(Rebalance!$D$33,$F$2:$G$48,2,FALSE)+ROW()-2))=Rebalance!$D$33,INDIRECT(\"a\" & (VLOOKUP(Rebalance!$D$33,$F$2:$G$48,2,FALSE)+ROW()-2)),\"\")","v":{"$error":"#N/A"}},{"$f":"IF(INDIRECT(\"c\" & (VLOOKUP(Rebalance!$D$34,$F$2:$G$48,2,FALSE)+ROW()-2))=Rebalance!$D$34,INDIRECT(\"a\" & (VLOOKUP(Rebalance!$D$34,$F$2:$G$48,2,FALSE)+ROW()-2)),\"\")","v":{"$error":"#N/A"}},{"$f":"IF(INDIRECT(\"c\" & (VLOOKUP(Rebalance!$D$35,$F$2:$G$48,2,FALSE)+ROW()-2))=Rebalance!$D$35,INDIRECT(\"a\" & (VLOOKUP(Rebalance!$D$35,$F$2:$G$48,2,FALSE)+ROW()-2)),\"\")","v":{"$error":"#N/A"}},{"$f":"IF(INDIRECT(\"c\" & (VLOOKUP(Rebalance!$D$36,$F$2:$G$48,2,FALSE)+ROW()-2))=Rebalance!$D$36,INDIRECT(\"a\" & (VLOOKUP(Rebalance!$D$36,$F$2:$G$48,2,FALSE)+ROW()-2)),\"\")","v":{"$error":"#N/A"}},{"$f":"IF(INDIRECT(\"c\" & (VLOOKUP(Rebalance!$D$37,$F$2:$G$48,2,FALSE)+ROW()-2))=Rebalance!$D$37,INDIRECT(\"a\" & (VLOOKUP(Rebalance!$D$37,$F$2:$G$48,2,FALSE)+ROW()-2)),\"\")","v":{"$error":"#N/A"}},{"$f":"IF(INDIRECT(\"c\" & (VLOOKUP(Rebalance!$D$38,$F$2:$G$48,2,FALSE)+ROW()-2))=Rebalance!$D$38,INDIRECT(\"a\" & (VLOOKUP(Rebalance!$D$38,$F$2:$G$48,2,FALSE)+ROW()-2)),\"\")","v":{"$error":"#N/A"}},{"$f":"IF(INDIRECT(\"c\" & (VLOOKUP(Rebalance!$D$39,$F$2:$G$48,2,FALSE)+ROW()-2))=Rebalance!$D$39,INDIRECT(\"a\" & (VLOOKUP(Rebalance!$D$39,$F$2:$G$48,2,FALSE)+ROW()-2)),\"\")","v":{"$error":"#N/A"}},{"$f":"IF(INDIRECT(\"c\" & (VLOOKUP(Rebalance!$D$40,$F$2:$G$48,2,FALSE)+ROW()-2))=Rebalance!$D$40,INDIRECT(\"a\" & (VLOOKUP(Rebalance!$D$40,$F$2:$G$48,2,FALSE)+ROW()-2)),\"\")","v":{"$error":"#N/A"}},{"$f":"IF(INDIRECT(\"c\" & (VLOOKUP(Rebalance!$D$52,$F$2:$G$48,2,FALSE)+ROW()-2))=Rebalance!$D$52,INDIRECT(\"a\" & (VLOOKUP(Rebalance!$D$52,$F$2:$G$48,2,FALSE)+ROW()-2)),\"\")","v":{"$error":"#N/A"}},{"$f":"IF(INDIRECT(\"c\" & (VLOOKUP(Rebalance!$D$53,$F$2:$G$48,2,FALSE)+ROW()-2))=Rebalance!$D$53,INDIRECT(\"a\" & (VLOOKUP(Rebalance!$D$53,$F$2:$G$48,2,FALSE)+ROW()-2)),\"\")","v":{"$error":"#N/A"}},{"$f":"IF(INDIRECT(\"c\" & (VLOOKUP(Rebalance!$D$54,$F$2:$G$48,2,FALSE)+ROW()-2))=Rebalance!$D$54,INDIRECT(\"a\" & (VLOOKUP(Rebalance!$D$54,$F$2:$G$48,2,FALSE)+ROW()-2)),\"\")","v":{"$error":"#N/A"}},{"$f":"IF(INDIRECT(\"c\" & (VLOOKUP(Rebalance!$D$55,$F$2:$G$48,2,FALSE)+ROW()-2))=Rebalance!$D$55,INDIRECT(\"a\" & (VLOOKUP(Rebalance!$D$55,$F$2:$G$48,2,FALSE)+ROW()-2)),\"\")","v":{"$error":"#N/A"}},{"$f":"IF(INDIRECT(\"c\" & (VLOOKUP(Rebalance!$D$56,$F$2:$G$48,2,FALSE)+ROW()-2))=Rebalance!$D$56,INDIRECT(\"a\" & (VLOOKUP(Rebalance!$D$56,$F$2:$G$48,2,FALSE)+ROW()-2)),\"\")","v":{"$error":"#N/A"}},{"$f":"IF(INDIRECT(\"c\" & (VLOOKUP(Rebalance!$D$57,$F$2:$G$48,2,FALSE)+ROW()-2))=Rebalance!$D$57,INDIRECT(\"a\" & (VLOOKUP(Rebalance!$D$57,$F$2:$G$48,2,FALSE)+ROW()-2)),\"\")","v":{"$error":"#N/A"}},{"$f":"IF(INDIRECT(\"c\" & (VLOOKUP(Rebalance!$D$58,$F$2:$G$48,2,FALSE)+ROW()-2))=Rebalance!$D$58,INDIRECT(\"a\" & (VLOOKUP(Rebalance!$D$58,$F$2:$G$48,2,FALSE)+ROW()-2)),\"\")","v":{"$error":"#N/A"}},{"$f":"IF(INDIRECT(\"c\" & (VLOOKUP(Rebalance!$D$59,$F$2:$G$48,2,FALSE)+ROW()-2))=Rebalance!$D$59,INDIRECT(\"a\" & (VLOOKUP(Rebalance!$D$59,$F$2:$G$48,2,FALSE)+ROW()-2)),\"\")","v":{"$error":"#N/A"}},{"$f":"IF(INDIRECT(\"c\" & (VLOOKUP(Rebalance!$D$60,$F$2:$G$48,2,FALSE)+ROW()-2))=Rebalance!$D$60,INDIRECT(\"a\" & (VLOOKUP(Rebalance!$D$60,$F$2:$G$48,2,FALSE)+ROW()-2)),\"\")","v":{"$error":"#N/A"}},{"$f":"IF(INDIRECT(\"c\" & (VLOOKUP(Rebalance!$D$61,$F$2:$G$48,2,FALSE)+ROW()-2))=Rebalance!$D$61,INDIRECT(\"a\" & (VLOOKUP(Rebalance!$D$61,$F$2:$G$48,2,FALSE)+ROW()-2)),\"\")","v":{"$error":"#N/A"}},{"$f":"IF(INDIRECT(\"c\" & (VLOOKUP(Rebalance!$D$62,$F$2:$G$48,2,FALSE)+ROW()-2))=Rebalance!$D$62,INDIRECT(\"a\" & (VLOOKUP(Rebalance!$D$62,$F$2:$G$48,2,FALSE)+ROW()-2)),\"\")","v":{"$error":"#N/A"}},{"$f":"IF(INDIRECT(\"c\" & (VLOOKUP(Rebalance!$D$63,$F$2:$G$48,2,FALSE)+ROW()-2))=Rebalance!$D$63,INDIRECT(\"a\" & (VLOOKUP(Rebalance!$D$63,$F$2:$G$48,2,FALSE)+ROW()-2)),\"\")","v":{"$error":"#N/A"}},{"$f":"IF(INDIRECT(\"c\" & (VLOOKUP(Rebalance!$D$64,$F$2:$G$48,2,FALSE)+ROW()-2))=Rebalance!$D$64,INDIRECT(\"a\" & (VLOOKUP(Rebalance!$D$64,$F$2:$G$48,2,FALSE)+ROW()-2)),\"\")","v":{"$error":"#N/A"}},{"$f":"IF(INDIRECT(\"c\" & (VLOOKUP(Rebalance!$D$65,$F$2:$G$48,2,FALSE)+ROW()-2))=Rebalance!$D$65,INDIRECT(\"a\" & (VLOOKUP(Rebalance!$D$65,$F$2:$G$48,2,FALSE)+ROW()-2)),\"\")","v":{"$error":"#N/A"}},{"$f":"IF(INDIRECT(\"c\" & (VLOOKUP(Rebalance!$D$66,$F$2:$G$48,2,FALSE)+ROW()-2))=Rebalance!$D$66,INDIRECT(\"a\" & (VLOOKUP(Rebalance!$D$66,$F$2:$G$48,2,FALSE)+ROW()-2)),\"\")","v":{"$error":"#N/A"}}]
[null,null,null,{"$f":"ROW()","v":618},null,null,{"$f":"VLOOKUP(F618,$C$2:$D$599,2,FALSE)","v":{"$error":"#N/A"}},{"$f":"IF(INDIRECT(\"c\" & (VLOOKUP(Rebalance!$D$26,$F$2:$G$48,2,FALSE)+ROW()-2))=Rebalance!$D$26,INDIRECT(\"a\" & (VLOOKUP(Rebalance!$D$26,$F$2:$G$48,2,FALSE)+ROW()-2)),\"\")","v":{"$error":"#N/A"}},{"$f":"IF(INDIRECT(\"c\" & (VLOOKUP(Rebalance!$D$27,$F$2:$G$48,2,FALSE)+ROW()-2))=Rebalance!$D$27,INDIRECT(\"a\" & (VLOOKUP(Rebalance!$D$27,$F$2:$G$48,2,FALSE)+ROW()-2)),\"\")","v":{"$error":"#N/A"}},{"$f":"IF(INDIRECT(\"c\" & (VLOOKUP(Rebalance!$D$28,$F$2:$G$48,2,FALSE)+ROW()-2))=Rebalance!$D$28,INDIRECT(\"a\" & (VLOOKUP(Rebalance!$D$28,$F$2:$G$48,2,FALSE)+ROW()-2)),\"\")","v":{"$error":"#N/A"}},{"$f":"IF(INDIRECT(\"c\" & (VLOOKUP(Rebalance!$D$29,$F$2:$G$48,2,FALSE)+ROW()-2))=Rebalance!$D$29,INDIRECT(\"a\" & (VLOOKUP(Rebalance!$D$29,$F$2:$G$48,2,FALSE)+ROW()-2)),\"\")","v":{"$error":"#N/A"}},{"$f":"IF(INDIRECT(\"c\" & (VLOOKUP(Rebalance!$D$30,$F$2:$G$48,2,FALSE)+ROW()-2))=Rebalance!$D$30,INDIRECT(\"a\" & (VLOOKUP(Rebalance!$D$30,$F$2:$G$48,2,FALSE)+ROW()-2)),\"\")","v":{"$error":"#N/A"}},{"$f":"IF(INDIRECT(\"c\" & (VLOOKUP(Rebalance!$D$31,$F$2:$G$48,2,FALSE)+ROW()-2))=Rebalance!$D$31,INDIRECT(\"a\" & (VLOOKUP(Rebalance!$D$31,$F$2:$G$48,2,FALSE)+ROW()-2)),\"\")","v":{"$error":"#N/A"}},{"$f":"IF(INDIRECT(\"c\" & (VLOOKUP(Rebalance!$D$32,$F$2:$G$48,2,FALSE)+ROW()-2))=Rebalance!$D$32,INDIRECT(\"a\" & (VLOOKUP(Rebalance!$D$32,$F$2:$G$48,2,FALSE)+ROW()-2)),\"\")","v":{"$error":"#N/A"}},{"$f":"IF(INDIRECT(\"c\" & (VLOOKUP(Rebalance!$D$33,$F$2:$G$48,2,FALSE)+ROW()-2))=Rebalance!$D$33,INDIRECT(\"a\" & (VLOOKUP(Rebalance!$D$33,$F$2:$G$48,2,FALSE)+ROW()-2)),\"\")","v":{"$error":"#N/A"}},{"$f":"IF(INDIRECT(\"c\" & (VLOOKUP(Rebalance!$D$34,$F$2:$G$48,2,FALSE)+ROW()-2))=Rebalance!$D$34,INDIRECT(\"a\" & (VLOOKUP(Rebalance!$D$34,$F$2:$G$48,2,FALSE)+ROW()-2)),\"\")","v":{"$error":"#N/A"}},{"$f":"IF(INDIRECT(\"c\" & (VLOOKUP(Rebalance!$D$35,$F$2:$G$48,2,FALSE)+ROW()-2))=Rebalance!$D$35,INDIRECT(\"a\" & (VLOOKUP(Rebalance!$D$35,$F$2:$G$48,2,FALSE)+ROW()-2)),\"\")","v":{"$error":"#N/A"}},{"$f":"IF(INDIRECT(\"c\" & (VLOOKUP(Rebalance!$D$36,$F$2:$G$48,2,FALSE)+ROW()-2))=Rebalance!$D$36,INDIRECT(\"a\" & (VLOOKUP(Rebalance!$D$36,$F$2:$G$48,2,FALSE)+ROW()-2)),\"\")","v":{"$error":"#N/A"}},{"$f":"IF(INDIRECT(\"c\" & (VLOOKUP(Rebalance!$D$37,$F$2:$G$48,2,FALSE)+ROW()-2))=Rebalance!$D$37,INDIRECT(\"a\" & (VLOOKUP(Rebalance!$D$37,$F$2:$G$48,2,FALSE)+ROW()-2)),\"\")","v":{"$error":"#N/A"}},{"$f":"IF(INDIRECT(\"c\" & (VLOOKUP(Rebalance!$D$38,$F$2:$G$48,2,FALSE)+ROW()-2))=Rebalance!$D$38,INDIRECT(\"a\" & (VLOOKUP(Rebalance!$D$38,$F$2:$G$48,2,FALSE)+ROW()-2)),\"\")","v":{"$error":"#N/A"}},{"$f":"IF(INDIRECT(\"c\" & (VLOOKUP(Rebalance!$D$39,$F$2:$G$48,2,FALSE)+ROW()-2))=Rebalance!$D$39,INDIRECT(\"a\" & (VLOOKUP(Rebalance!$D$39,$F$2:$G$48,2,FALSE)+ROW()-2)),\"\")","v":{"$error":"#N/A"}},{"$f":"IF(INDIRECT(\"c\" & (VLOOKUP(Rebalance!$D$40,$F$2:$G$48,2,FALSE)+ROW()-2))=Rebalance!$D$40,INDIRECT(\"a\" & (VLOOKUP(Rebalance!$D$40,$F$2:$G$48,2,FALSE)+ROW()-2)),\"\")","v":{"$error":"#N/A"}},{"$f":"IF(INDIRECT(\"c\" & (VLOOKUP(Rebalance!$D$52,$F$2:$G$48,2,FALSE)+ROW()-2))=Rebalance!$D$52,INDIRECT(\"a\" & (VLOOKUP(Rebalance!$D$52,$F$2:$G$48,2,FALSE)+ROW()-2)),\"\")","v":{"$error":"#N/A"}},{"$f":"IF(INDIRECT(\"c\" & (VLOOKUP(Rebalance!$D$53,$F$2:$G$48,2,FALSE)+ROW()-2))=Rebalance!$D$53,INDIRECT(\"a\" & (VLOOKUP(Rebalance!$D$53,$F$2:$G$48,2,FALSE)+ROW()-2)),\"\")","v":{"$error":"#N/A"}},{"$f":"IF(INDIRECT(\"c\" & (VLOOKUP(Rebalance!$D$54,$F$2:$G$48,2,FALSE)+ROW()-2))=Rebalance!$D$54,INDIRECT(\"a\" & (VLOOKUP(Rebalance!$D$54,$F$2:$G$48,2,FALSE)+ROW()-2)),\"\")","v":{"$error":"#N/A"}},{"$f":"IF(INDIRECT(\"c\" & (VLOOKUP(Rebalance!$D$55,$F$2:$G$48,2,FALSE)+ROW()-2))=Rebalance!$D$55,INDIRECT(\"a\" & (VLOOKUP(Rebalance!$D$55,$F$2:$G$48,2,FALSE)+ROW()-2)),\"\")","v":{"$error":"#N/A"}},{"$f":"IF(INDIRECT(\"c\" & (VLOOKUP(Rebalance!$D$56,$F$2:$G$48,2,FALSE)+ROW()-2))=Rebalance!$D$56,INDIRECT(\"a\" & (VLOOKUP(Rebalance!$D$56,$F$2:$G$48,2,FALSE)+ROW()-2)),\"\")","v":{"$error":"#N/A"}},{"$f":"IF(INDIRECT(\"c\" & (VLOOKUP(Rebalance!$D$57,$F$2:$G$48,2,FALSE)+ROW()-2))=Rebalance!$D$57,INDIRECT(\"a\" & (VLOOKUP(Rebalance!$D$57,$F$2:$G$48,2,FALSE)+ROW()-2)),\"\")","v":{"$error":"#N/A"}},{"$f":"IF(INDIRECT(\"c\" & (VLOOKUP(Rebalance!$D$58,$F$2:$G$48,2,FALSE)+ROW()-2))=Rebalance!$D$58,INDIRECT(\"a\" & (VLOOKUP(Rebalance!$D$58,$F$2:$G$48,2,FALSE)+ROW()-2)),\"\")","v":{"$error":"#N/A"}},{"$f":"IF(INDIRECT(\"c\" & (VLOOKUP(Rebalance!$D$59,$F$2:$G$48,2,FALSE)+ROW()-2))=Rebalance!$D$59,INDIRECT(\"a\" & (VLOOKUP(Rebalance!$D$59,$F$2:$G$48,2,FALSE)+ROW()-2)),\"\")","v":{"$error":"#N/A"}},{"$f":"IF(INDIRECT(\"c\" & (VLOOKUP(Rebalance!$D$60,$F$2:$G$48,2,FALSE)+ROW()-2))=Rebalance!$D$60,INDIRECT(\"a\" & (VLOOKUP(Rebalance!$D$60,$F$2:$G$48,2,FALSE)+ROW()-2)),\"\")","v":{"$error":"#N/A"}},{"$f":"IF(INDIRECT(\"c\" & (VLOOKUP(Rebalance!$D$61,$F$2:$G$48,2,FALSE)+ROW()-2))=Rebalance!$D$61,INDIRECT(\"a\" & (VLOOKUP(Rebalance!$D$61,$F$2:$G$48,2,FALSE)+ROW()-2)),\"\")","v":{"$error":"#N/A"}},{"$f":"IF(INDIRECT(\"c\" & (VLOOKUP(Rebalance!$D$62,$F$2:$G$48,2,FALSE)+ROW()-2))=Rebalance!$D$62,INDIRECT(\"a\" & (VLOOKUP(Rebalance!$D$62,$F$2:$G$48,2,FALSE)+ROW()-2)),\"\")","v":{"$error":"#N/A"}},{"$f":"IF(INDIRECT(\"c\" & (VLOOKUP(Rebalance!$D$63,$F$2:$G$48,2,FALSE)+ROW()-2))=Rebalance!$D$63,INDIRECT(\"a\" & (VLOOKUP(Rebalance!$D$63,$F$2:$G$48,2,FALSE)+ROW()-2)),\"\")","v":{"$error":"#N/A"}},{"$f":"IF(INDIRECT(\"c\" & (VLOOKUP(Rebalance!$D$64,$F$2:$G$48,2,FALSE)+ROW()-2))=Rebalance!$D$64,INDIRECT(\"a\" & (VLOOKUP(Rebalance!$D$64,$F$2:$G$48,2,FALSE)+ROW()-2)),\"\")","v":{"$error":"#N/A"}},{"$f":"IF(INDIRECT(\"c\" & (VLOOKUP(Rebalance!$D$65,$F$2:$G$48,2,FALSE)+ROW()-2))=Rebalance!$D$65,INDIRECT(\"a\" & (VLOOKUP(Rebalance!$D$65,$F$2:$G$48,2,FALSE)+ROW()-2)),\"\")","v":{"$error":"#N/A"}},{"$f":"IF(INDIRECT(\"c\" & (VLOOKUP(Rebalance!$D$66,$F$2:$G$48,2,FALSE)+ROW()-2))=Rebalance!$D$66,INDIRECT(\"a\" & (VLOOKUP(Rebalance!$D$66,$F$2:$G$48,2,FALSE)+ROW()-2)),\"\")","v":{"$error":"#N/A"}}]
[null,null,null,{"$f":"ROW()","v":619},null,null,{"$f":"VLOOKUP(F619,$C$2:$D$599,2,FALSE)","v":{"$error":"#N/A"}},{"$f":"IF(INDIRECT(\"c\" & (VLOOKUP(Rebalance!$D$26,$F$2:$G$48,2,FALSE)+ROW()-2))=Rebalance!$D$26,INDIRECT(\"a\" & (VLOOKUP(Rebalance!$D$26,$F$2:$G$48,2,FALSE)+ROW()-2)),\"\")","v":{"$error":"#N/A"}},{"$f":"IF(INDIRECT(\"c\" & (VLOOKUP(Rebalance!$D$27,$F$2:$G$48,2,FALSE)+ROW()-2))=Rebalance!$D$27,INDIRECT(\"a\" & (VLOOKUP(Rebalance!$D$27,$F$2:$G$48,2,FALSE)+ROW()-2)),\"\")","v":{"$error":"#N/A"}},{"$f":"IF(INDIRECT(\"c\" & (VLOOKUP(Rebalance!$D$28,$F$2:$G$48,2,FALSE)+ROW()-2))=Rebalance!$D$28,INDIRECT(\"a\" & (VLOOKUP(Rebalance!$D$28,$F$2:$G$48,2,FALSE)+ROW()-2)),\"\")","v":{"$error":"#N/A"}},{"$f":"IF(INDIRECT(\"c\" & (VLOOKUP(Rebalance!$D$29,$F$2:$G$48,2,FALSE)+ROW()-2))=Rebalance!$D$29,INDIRECT(\"a\" & (VLOOKUP(Rebalance!$D$29,$F$2:$G$48,2,FALSE)+ROW()-2)),\"\")","v":{"$error":"#N/A"}},{"$f":"IF(INDIRECT(\"c\" & (VLOOKUP(Rebalance!$D$30,$F$2:$G$48,2,FALSE)+ROW()-2))=Rebalance!$D$30,INDIRECT(\"a\" & (VLOOKUP(Rebalance!$D$30,$F$2:$G$48,2,FALSE)+ROW()-2)),\"\")","v":{"$error":"#N/A"}},{"$f":"IF(INDIRECT(\"c\" & (VLOOKUP(Rebalance!$D$31,$F$2:$G$48,2,FALSE)+ROW()-2))=Rebalance!$D$31,INDIRECT(\"a\" & (VLOOKUP(Rebalance!$D$31,$F$2:$G$48,2,FALSE)+ROW()-2)),\"\")","v":{"$error":"#N/A"}},{"$f":"IF(INDIRECT(\"c\" & (VLOOKUP(Rebalance!$D$32,$F$2:$G$48,2,FALSE)+ROW()-2))=Rebalance!$D$32,INDIRECT(\"a\" & (VLOOKUP(Rebalance!$D$32,$F$2:$G$48,2,FALSE)+ROW()-2)),\"\")","v":{"$error":"#N/A"}},{"$f":"IF(INDIRECT(\"c\" & (VLOOKUP(Rebalance!$D$33,$F$2:$G$48,2,FALSE)+ROW()-2))=Rebalance!$D$33,INDIRECT(\"a\" & (VLOOKUP(Rebalance!$D$33,$F$2:$G$48,2,FALSE)+ROW()-2)),\"\")","v":{"$error":"#N/A"}},{"$f":"IF(INDIRECT(\"c\" & (VLOOKUP(Rebalance!$D$34,$F$2:$G$48,2,FALSE)+ROW()-2))=Rebalance!$D$34,INDIRECT(\"a\" & (VLOOKUP(Rebalance!$D$34,$F$2:$G$48,2,FALSE)+ROW()-2)),\"\")","v":{"$error":"#N/A"}},{"$f":"IF(INDIRECT(\"c\" & (VLOOKUP(Rebalance!$D$35,$F$2:$G$48,2,FALSE)+ROW()-2))=Rebalance!$D$35,INDIRECT(\"a\" & (VLOOKUP(Rebalance!$D$35,$F$2:$G$48,2,FALSE)+ROW()-2)),\"\")","v":{"$error":"#N/A"}},{"$f":"IF(INDIRECT(\"c\" & (VLOOKUP(Rebalance!$D$36,$F$2:$G$48,2,FALSE)+ROW()-2))=Rebalance!$D$36,INDIRECT(\"a\" & (VLOOKUP(Rebalance!$D$36,$F$2:$G$48,2,FALSE)+ROW()-2)),\"\")","v":{"$error":"#N/A"}},{"$f":"IF(INDIRECT(\"c\" & (VLOOKUP(Rebalance!$D$37,$F$2:$G$48,2,FALSE)+ROW()-2))=Rebalance!$D$37,INDIRECT(\"a\" & (VLOOKUP(Rebalance!$D$37,$F$2:$G$48,2,FALSE)+ROW()-2)),\"\")","v":{"$error":"#N/A"}},{"$f":"IF(INDIRECT(\"c\" & (VLOOKUP(Rebalance!$D$38,$F$2:$G$48,2,FALSE)+ROW()-2))=Rebalance!$D$38,INDIRECT(\"a\" & (VLOOKUP(Rebalance!$D$38,$F$2:$G$48,2,FALSE)+ROW()-2)),\"\")","v":{"$error":"#N/A"}},{"$f":"IF(INDIRECT(\"c\" & (VLOOKUP(Rebalance!$D$39,$F$2:$G$48,2,FALSE)+ROW()-2))=Rebalance!$D$39,INDIRECT(\"a\" & (VLOOKUP(Rebalance!$D$39,$F$2:$G$48,2,FALSE)+ROW()-2)),\"\")","v":{"$error":"#N/A"}},{"$f":"IF(INDIRECT(\"c\" & (VLOOKUP(Rebalance!$D$40,$F$2:$G$48,2,FALSE)+ROW()-2))=Rebalance!$D$40,INDIRECT(\"a\" & (VLOOKUP(Rebalance!$D$40,$F$2:$G$48,2,FALSE)+ROW()-2)),\"\")","v":{"$error":"#N/A"}},{"$f":"IF(INDIRECT(\"c\" & (VLOOKUP(Rebalance!$D$52,$F$2:$G$48,2,FALSE)+ROW()-2))=Rebalance!$D$52,INDIRECT(\"a\" & (VLOOKUP(Rebalance!$D$52,$F$2:$G$48,2,FALSE)+ROW()-2)),\"\")","v":{"$error":"#N/A"}},{"$f":"IF(INDIRECT(\"c\" & (VLOOKUP(Rebalance!$D$53,$F$2:$G$48,2,FALSE)+ROW()-2))=Rebalance!$D$53,INDIRECT(\"a\" & (VLOOKUP(Rebalance!$D$53,$F$2:$G$48,2,FALSE)+ROW()-2)),\"\")","v":{"$error":"#N/A"}},{"$f":"IF(INDIRECT(\"c\" & (VLOOKUP(Rebalance!$D$54,$F$2:$G$48,2,FALSE)+ROW()-2))=Rebalance!$D$54,INDIRECT(\"a\" & (VLOOKUP(Rebalance!$D$54,$F$2:$G$48,2,FALSE)+ROW()-2)),\"\")","v":{"$error":"#N/A"}},{"$f":"IF(INDIRECT(\"c\" & (VLOOKUP(Rebalance!$D$55,$F$2:$G$48,2,FALSE)+ROW()-2))=Rebalance!$D$55,INDIRECT(\"a\" & (VLOOKUP(Rebalance!$D$55,$F$2:$G$48,2,FALSE)+ROW()-2)),\"\")","v":{"$error":"#N/A"}},{"$f":"IF(INDIRECT(\"c\" & (VLOOKUP(Rebalance!$D$56,$F$2:$G$48,2,FALSE)+ROW()-2))=Rebalance!$D$56,INDIRECT(\"a\" & (VLOOKUP(Rebalance!$D$56,$F$2:$G$48,2,FALSE)+ROW()-2)),\"\")","v":{"$error":"#N/A"}},{"$f":"IF(INDIRECT(\"c\" & (VLOOKUP(Rebalance!$D$57,$F$2:$G$48,2,FALSE)+ROW()-2))=Rebalance!$D$57,INDIRECT(\"a\" & (VLOOKUP(Rebalance!$D$57,$F$2:$G$48,2,FALSE)+ROW()-2)),\"\")","v":{"$error":"#N/A"}},{"$f":"IF(INDIRECT(\"c\" & (VLOOKUP(Rebalance!$D$58,$F$2:$G$48,2,FALSE)+ROW()-2))=Rebalance!$D$58,INDIRECT(\"a\" & (VLOOKUP(Rebalance!$D$58,$F$2:$G$48,2,FALSE)+ROW()-2)),\"\")","v":{"$error":"#N/A"}},{"$f":"IF(INDIRECT(\"c\" & (VLOOKUP(Rebalance!$D$59,$F$2:$G$48,2,FALSE)+ROW()-2))=Rebalance!$D$59,INDIRECT(\"a\" & (VLOOKUP(Rebalance!$D$59,$F$2:$G$48,2,FALSE)+ROW()-2)),\"\")","v":{"$error":"#N/A"}},{"$f":"IF(INDIRECT(\"c\" & (VLOOKUP(Rebalance!$D$60,$F$2:$G$48,2,FALSE)+ROW()-2))=Rebalance!$D$60,INDIRECT(\"a\" & (VLOOKUP(Rebalance!$D$60,$F$2:$G$48,2,FALSE)+ROW()-2)),\"\")","v":{"$error":"#N/A"}},{"$f":"IF(INDIRECT(\"c\" & (VLOOKUP(Rebalance!$D$61,$F$2:$G$48,2,FALSE)+ROW()-2))=Rebalance!$D$61,INDIRECT(\"a\" & (VLOOKUP(Rebalance!$D$61,$F$2:$G$48,2,FALSE)+ROW()-2)),\"\")","v":{"$error":"#N/A"}},{"$f":"IF(INDIRECT(\"c\" & (VLOOKUP(Rebalance!$D$62,$F$2:$G$48,2,FALSE)+ROW()-2))=Rebalance!$D$62,INDIRECT(\"a\" & (VLOOKUP(Rebalance!$D$62,$F$2:$G$48,2,FALSE)+ROW()-2)),\"\")","v":{"$error":"#N/A"}},{"$f":"IF(INDIRECT(\"c\" & (VLOOKUP(Rebalance!$D$63,$F$2:$G$48,2,FALSE)+ROW()-2))=Rebalance!$D$63,INDIRECT(\"a\" & (VLOOKUP(Rebalance!$D$63,$F$2:$G$48,2,FALSE)+ROW()-2)),\"\")","v":{"$error":"#N/A"}},{"$f":"IF(INDIRECT(\"c\" & (VLOOKUP(Rebalance!$D$64,$F$2:$G$48,2,FALSE)+ROW()-2))=Rebalance!$D$64,INDIRECT(\"a\" & (VLOOKUP(Rebalance!$D$64,$F$2:$G$48,2,FALSE)+ROW()-2)),\"\")","v":{"$error":"#N/A"}},{"$f":"IF(INDIRECT(\"c\" & (VLOOKUP(Rebalance!$D$65,$F$2:$G$48,2,FALSE)+ROW()-2))=Rebalance!$D$65,INDIRECT(\"a\" & (VLOOKUP(Rebalance!$D$65,$F$2:$G$48,2,FALSE)+ROW()-2)),\"\")","v":{"$error":"#N/A"}},{"$f":"IF(INDIRECT(\"c\" & (VLOOKUP(Rebalance!$D$66,$F$2:$G$48,2,FALSE)+ROW()-2))=Rebalance!$D$66,INDIRECT(\"a\" & (VLOOKUP(Rebalance!$D$66,$F$2:$G$48,2,FALSE)+ROW()-2)),\"\")","v":{"$error":"#N/A"}}]
[null,null,null,{"$f":"ROW()","v":620},null,null,{"$f":"VLOOKUP(F620,$C$2:$D$599,2,FALSE)","v":{"$error":"#N/A"}},{"$f":"IF(INDIRECT(\"c\" & (VLOOKUP(Rebalance!$D$26,$F$2:$G$48,2,FALSE)+ROW()-2))=Rebalance!$D$26,INDIRECT(\"a\" & (VLOOKUP(Rebalance!$D$26,$F$2:$G$48,2,FALSE)+ROW()-2)),\"\")","v":{"$error":"#N/A"}},{"$f":"IF(INDIRECT(\"c\" & (VLOOKUP(Rebalance!$D$27,$F$2:$G$48,2,FALSE)+ROW()-2))=Rebalance!$D$27,INDIRECT(\"a\" & (VLOOKUP(Rebalance!$D$27,$F$2:$G$48,2,FALSE)+ROW()-2)),\"\")","v":{"$error":"#N/A"}},{"$f":"IF(INDIRECT(\"c\" & (VLOOKUP(Rebalance!$D$28,$F$2:$G$48,2,FALSE)+ROW()-2))=Rebalance!$D$28,INDIRECT(\"a\" & (VLOOKUP(Rebalance!$D$28,$F$2:$G$48,2,FALSE)+ROW()-2)),\"\")","v":{"$error":"#N/A"}},{"$f":"IF(INDIRECT(\"c\" & (VLOOKUP(Rebalance!$D$29,$F$2:$G$48,2,FALSE)+ROW()-2))=Rebalance!$D$29,INDIRECT(\"a\" & (VLOOKUP(Rebalance!$D$29,$F$2:$G$48,2,FALSE)+ROW()-2)),\"\")","v":{"$error":"#N/A"}},{"$f":"IF(INDIRECT(\"c\" & (VLOOKUP(Rebalance!$D$30,$F$2:$G$48,2,FALSE)+ROW()-2))=Rebalance!$D$30,INDIRECT(\"a\" & (VLOOKUP(Rebalance!$D$30,$F$2:$G$48,2,FALSE)+ROW()-2)),\"\")","v":{"$error":"#N/A"}},{"$f":"IF(INDIRECT(\"c\" & (VLOOKUP(Rebalance!$D$31,$F$2:$G$48,2,FALSE)+ROW()-2))=Rebalance!$D$31,INDIRECT(\"a\" & (VLOOKUP(Rebalance!$D$31,$F$2:$G$48,2,FALSE)+ROW()-2)),\"\")","v":{"$error":"#N/A"}},{"$f":"IF(INDIRECT(\"c\" & (VLOOKUP(Rebalance!$D$32,$F$2:$G$48,2,FALSE)+ROW()-2))=Rebalance!$D$32,INDIRECT(\"a\" & (VLOOKUP(Rebalance!$D$32,$F$2:$G$48,2,FALSE)+ROW()-2)),\"\")","v":{"$error":"#N/A"}},{"$f":"IF(INDIRECT(\"c\" & (VLOOKUP(Rebalance!$D$33,$F$2:$G$48,2,FALSE)+ROW()-2))=Rebalance!$D$33,INDIRECT(\"a\" & (VLOOKUP(Rebalance!$D$33,$F$2:$G$48,2,FALSE)+ROW()-2)),\"\")","v":{"$error":"#N/A"}},{"$f":"IF(INDIRECT(\"c\" & (VLOOKUP(Rebalance!$D$34,$F$2:$G$48,2,FALSE)+ROW()-2))=Rebalance!$D$34,INDIRECT(\"a\" & (VLOOKUP(Rebalance!$D$34,$F$2:$G$48,2,FALSE)+ROW()-2)),\"\")","v":{"$error":"#N/A"}},{"$f":"IF(INDIRECT(\"c\" & (VLOOKUP(Rebalance!$D$35,$F$2:$G$48,2,FALSE)+ROW()-2))=Rebalance!$D$35,INDIRECT(\"a\" & (VLOOKUP(Rebalance!$D$35,$F$2:$G$48,2,FALSE)+ROW()-2)),\"\")","v":{"$error":"#N/A"}},{"$f":"IF(INDIRECT(\"c\" & (VLOOKUP(Rebalance!$D$36,$F$2:$G$48,2,FALSE)+ROW()-2))=Rebalance!$D$36,INDIRECT(\"a\" & (VLOOKUP(Rebalance!$D$36,$F$2:$G$48,2,FALSE)+ROW()-2)),\"\")","v":{"$error":"#N/A"}},{"$f":"IF(INDIRECT(\"c\" & (VLOOKUP(Rebalance!$D$37,$F$2:$G$48,2,FALSE)+ROW()-2))=Rebalance!$D$37,INDIRECT(\"a\" & (VLOOKUP(Rebalance!$D$37,$F$2:$G$48,2,FALSE)+ROW()-2)),\"\")","v":{"$error":"#N/A"}},{"$f":"IF(INDIRECT(\"c\" & (VLOOKUP(Rebalance!$D$38,$F$2:$G$48,2,FALSE)+ROW()-2))=Rebalance!$D$38,INDIRECT(\"a\" & (VLOOKUP(Rebalance!$D$38,$F$2:$G$48,2,FALSE)+ROW()-2)),\"\")","v":{"$error":"#N/A"}},{"$f":"IF(INDIRECT(\"c\" & (VLOOKUP(Rebalance!$D$39,$F$2:$G$48,2,FALSE)+ROW()-2))=Rebalance!$D$39,INDIRECT(\"a\" & (VLOOKUP(Rebalance!$D$39,$F$2:$G$48,2,FALSE)+ROW()-2)),\"\")","v":{"$error":"#N/A"}},{"$f":"IF(INDIRECT(\"c\" & (VLOOKUP(Rebalance!$D$40,$F$2:$G$48,2,FALSE)+ROW()-2))=Rebalance!$D$40,INDIRECT(\"a\" & (VLOOKUP(Rebalance!$D$40,$F$2:$G$48,2,FALSE)+ROW()-2)),\"\")","v":{"$error":"#N/A"}},{"$f":"IF(INDIRECT(\"c\" & (VLOOKUP(Rebalance!$D$52,$F$2:$G$48,2,FALSE)+ROW()-2))=Rebalance!$D$52,INDIRECT(\"a\" & (VLOOKUP(Rebalance!$D$52,$F$2:$G$48,2,FALSE)+ROW()-2)),\"\")","v":{"$error":"#N/A"}},{"$f":"IF(INDIRECT(\"c\" & (VLOOKUP(Rebalance!$D$53,$F$2:$G$48,2,FALSE)+ROW()-2))=Rebalance!$D$53,INDIRECT(\"a\" & (VLOOKUP(Rebalance!$D$53,$F$2:$G$48,2,FALSE)+ROW()-2)),\"\")","v":{"$error":"#N/A"}},{"$f":"IF(INDIRECT(\"c\" & (VLOOKUP(Rebalance!$D$54,$F$2:$G$48,2,FALSE)+ROW()-2))=Rebalance!$D$54,INDIRECT(\"a\" & (VLOOKUP(Rebalance!$D$54,$F$2:$G$48,2,FALSE)+ROW()-2)),\"\")","v":{"$error":"#N/A"}},{"$f":"IF(INDIRECT(\"c\" & (VLOOKUP(Rebalance!$D$55,$F$2:$G$48,2,FALSE)+ROW()-2))=Rebalance!$D$55,INDIRECT(\"a\" & (VLOOKUP(Rebalance!$D$55,$F$2:$G$48,2,FALSE)+ROW()-2)),\"\")","v":{"$error":"#N/A"}},{"$f":"IF(INDIRECT(\"c\" & (VLOOKUP(Rebalance!$D$56,$F$2:$G$48,2,FALSE)+ROW()-2))=Rebalance!$D$56,INDIRECT(\"a\" & (VLOOKUP(Rebalance!$D$56,$F$2:$G$48,2,FALSE)+ROW()-2)),\"\")","v":{"$error":"#N/A"}},{"$f":"IF(INDIRECT(\"c\" & (VLOOKUP(Rebalance!$D$57,$F$2:$G$48,2,FALSE)+ROW()-2))=Rebalance!$D$57,INDIRECT(\"a\" & (VLOOKUP(Rebalance!$D$57,$F$2:$G$48,2,FALSE)+ROW()-2)),\"\")","v":{"$error":"#N/A"}},{"$f":"IF(INDIRECT(\"c\" & (VLOOKUP(Rebalance!$D$58,$F$2:$G$48,2,FALSE)+ROW()-2))=Rebalance!$D$58,INDIRECT(\"a\" & (VLOOKUP(Rebalance!$D$58,$F$2:$G$48,2,FALSE)+ROW()-2)),\"\")","v":{"$error":"#N/A"}},{"$f":"IF(INDIRECT(\"c\" & (VLOOKUP(Rebalance!$D$59,$F$2:$G$48,2,FALSE)+ROW()-2))=Rebalance!$D$59,INDIRECT(\"a\" & (VLOOKUP(Rebalance!$D$59,$F$2:$G$48,2,FALSE)+ROW()-2)),\"\")","v":{"$error":"#N/A"}},{"$f":"IF(INDIRECT(\"c\" & (VLOOKUP(Rebalance!$D$60,$F$2:$G$48,2,FALSE)+ROW()-2))=Rebalance!$D$60,INDIRECT(\"a\" & (VLOOKUP(Rebalance!$D$60,$F$2:$G$48,2,FALSE)+ROW()-2)),\"\")","v":{"$error":"#N/A"}},{"$f":"IF(INDIRECT(\"c\" & (VLOOKUP(Rebalance!$D$61,$F$2:$G$48,2,FALSE)+ROW()-2))=Rebalance!$D$61,INDIRECT(\"a\" & (VLOOKUP(Rebalance!$D$61,$F$2:$G$48,2,FALSE)+ROW()-2)),\"\")","v":{"$error":"#N/A"}},{"$f":"IF(INDIRECT(\"c\" & (VLOOKUP(Rebalance!$D$62,$F$2:$G$48,2,FALSE)+ROW()-2))=Rebalance!$D$62,INDIRECT(\"a\" & (VLOOKUP(Rebalance!$D$62,$F$2:$G$48,2,FALSE)+ROW()-2)),\"\")","v":{"$error":"#N/A"}},{"$f":"IF(INDIRECT(\"c\" & (VLOOKUP(Rebalance!$D$63,$F$2:$G$48,2,FALSE)+ROW()-2))=Rebalance!$D$63,INDIRECT(\"a\" & (VLOOKUP(Rebalance!$D$63,$F$2:$G$48,2,FALSE)+ROW()-2)),\"\")","v":{"$error":"#N/A"}},{"$f":"IF(INDIRECT(\"c\" & (VLOOKUP(Rebalance!$D$64,$F$2:$G$48,2,FALSE)+ROW()-2))=Rebalance!$D$64,INDIRECT(\"a\" & (VLOOKUP(Rebalance!$D$64,$F$2:$G$48,2,FALSE)+ROW()-2)),\"\")","v":{"$error":"#N/A"}},{"$f":"IF(INDIRECT(\"c\" & (VLOOKUP(Rebalance!$D$65,$F$2:$G$48,2,FALSE)+ROW()-2))=Rebalance!$D$65,INDIRECT(\"a\" & (VLOOKUP(Rebalance!$D$65,$F$2:$G$48,2,FALSE)+ROW()-2)),\"\")","v":{"$error":"#N/A"}},{"$f":"IF(INDIRECT(\"c\" & (VLOOKUP(Rebalance!$D$66,$F$2:$G$48,2,FALSE)+ROW()-2))=Rebalance!$D$66,INDIRECT(\"a\" & (VLOOKUP(Rebalance!$D$66,$F$2:$G$48,2,FALSE)+ROW()-2)),\"\")","v":{"$error":"#N/A"}}]
[null,null,null,{"$f":"ROW()","v":621},null,null,{"$f":"VLOOKUP(F621,$C$2:$D$599,2,FALSE)","v":{"$error":"#N/A"}},{"$f":"IF(INDIRECT(\"c\" & (VLOOKUP(Rebalance!$D$26,$F$2:$G$48,2,FALSE)+ROW()-2))=Rebalance!$D$26,INDIRECT(\"a\" & (VLOOKUP(Rebalance!$D$26,$F$2:$G$48,2,FALSE)+ROW()-2)),\"\")","v":{"$error":"#N/A"}},{"$f":"IF(INDIRECT(\"c\" & (VLOOKUP(Rebalance!$D$27,$F$2:$G$48,2,FALSE)+ROW()-2))=Rebalance!$D$27,INDIRECT(\"a\" & (VLOOKUP(Rebalance!$D$27,$F$2:$G$48,2,FALSE)+ROW()-2)),\"\")","v":{"$error":"#N/A"}},{"$f":"IF(INDIRECT(\"c\" & (VLOOKUP(Rebalance!$D$28,$F$2:$G$48,2,FALSE)+ROW()-2))=Rebalance!$D$28,INDIRECT(\"a\" & (VLOOKUP(Rebalance!$D$28,$F$2:$G$48,2,FALSE)+ROW()-2)),\"\")","v":{"$error":"#N/A"}},{"$f":"IF(INDIRECT(\"c\" & (VLOOKUP(Rebalance!$D$29,$F$2:$G$48,2,FALSE)+ROW()-2))=Rebalance!$D$29,INDIRECT(\"a\" & (VLOOKUP(Rebalance!$D$29,$F$2:$G$48,2,FALSE)+ROW()-2)),\"\")","v":{"$error":"#N/A"}},{"$f":"IF(INDIRECT(\"c\" & (VLOOKUP(Rebalance!$D$30,$F$2:$G$48,2,FALSE)+ROW()-2))=Rebalance!$D$30,INDIRECT(\"a\" & (VLOOKUP(Rebalance!$D$30,$F$2:$G$48,2,FALSE)+ROW()-2)),\"\")","v":{"$error":"#N/A"}},{"$f":"IF(INDIRECT(\"c\" & (VLOOKUP(Rebalance!$D$31,$F$2:$G$48,2,FALSE)+ROW()-2))=Rebalance!$D$31,INDIRECT(\"a\" & (VLOOKUP(Rebalance!$D$31,$F$2:$G$48,2,FALSE)+ROW()-2)),\"\")","v":{"$error":"#N/A"}},{"$f":"IF(INDIRECT(\"c\" & (VLOOKUP(Rebalance!$D$32,$F$2:$G$48,2,FALSE)+ROW()-2))=Rebalance!$D$32,INDIRECT(\"a\" & (VLOOKUP(Rebalance!$D$32,$F$2:$G$48,2,FALSE)+ROW()-2)),\"\")","v":{"$error":"#N/A"}},{"$f":"IF(INDIRECT(\"c\" & (VLOOKUP(Rebalance!$D$33,$F$2:$G$48,2,FALSE)+ROW()-2))=Rebalance!$D$33,INDIRECT(\"a\" & (VLOOKUP(Rebalance!$D$33,$F$2:$G$48,2,FALSE)+ROW()-2)),\"\")","v":{"$error":"#N/A"}},{"$f":"IF(INDIRECT(\"c\" & (VLOOKUP(Rebalance!$D$34,$F$2:$G$48,2,FALSE)+ROW()-2))=Rebalance!$D$34,INDIRECT(\"a\" & (VLOOKUP(Rebalance!$D$34,$F$2:$G$48,2,FALSE)+ROW()-2)),\"\")","v":{"$error":"#N/A"}},{"$f":"IF(INDIRECT(\"c\" & (VLOOKUP(Rebalance!$D$35,$F$2:$G$48,2,FALSE)+ROW()-2))=Rebalance!$D$35,INDIRECT(\"a\" & (VLOOKUP(Rebalance!$D$35,$F$2:$G$48,2,FALSE)+ROW()-2)),\"\")","v":{"$error":"#N/A"}},{"$f":"IF(INDIRECT(\"c\" & (VLOOKUP(Rebalance!$D$36,$F$2:$G$48,2,FALSE)+ROW()-2))=Rebalance!$D$36,INDIRECT(\"a\" & (VLOOKUP(Rebalance!$D$36,$F$2:$G$48,2,FALSE)+ROW()-2)),\"\")","v":{"$error":"#N/A"}},{"$f":"IF(INDIRECT(\"c\" & (VLOOKUP(Rebalance!$D$37,$F$2:$G$48,2,FALSE)+ROW()-2))=Rebalance!$D$37,INDIRECT(\"a\" & (VLOOKUP(Rebalance!$D$37,$F$2:$G$48,2,FALSE)+ROW()-2)),\"\")","v":{"$error":"#N/A"}},{"$f":"IF(INDIRECT(\"c\" & (VLOOKUP(Rebalance!$D$38,$F$2:$G$48,2,FALSE)+ROW()-2))=Rebalance!$D$38,INDIRECT(\"a\" & (VLOOKUP(Rebalance!$D$38,$F$2:$G$48,2,FALSE)+ROW()-2)),\"\")","v":{"$error":"#N/A"}},{"$f":"IF(INDIRECT(\"c\" & (VLOOKUP(Rebalance!$D$39,$F$2:$G$48,2,FALSE)+ROW()-2))=Rebalance!$D$39,INDIRECT(\"a\" & (VLOOKUP(Rebalance!$D$39,$F$2:$G$48,2,FALSE)+ROW()-2)),\"\")","v":{"$error":"#N/A"}},{"$f":"IF(INDIRECT(\"c\" & (VLOOKUP(Rebalance!$D$40,$F$2:$G$48,2,FALSE)+ROW()-2))=Rebalance!$D$40,INDIRECT(\"a\" & (VLOOKUP(Rebalance!$D$40,$F$2:$G$48,2,FALSE)+ROW()-2)),\"\")","v":{"$error":"#N/A"}},{"$f":"IF(INDIRECT(\"c\" & (VLOOKUP(Rebalance!$D$52,$F$2:$G$48,2,FALSE)+ROW()-2))=Rebalance!$D$52,INDIRECT(\"a\" & (VLOOKUP(Rebalance!$D$52,$F$2:$G$48,2,FALSE)+ROW()-2)),\"\")","v":{"$error":"#N/A"}},{"$f":"IF(INDIRECT(\"c\" & (VLOOKUP(Rebalance!$D$53,$F$2:$G$48,2,FALSE)+ROW()-2))=Rebalance!$D$53,INDIRECT(\"a\" & (VLOOKUP(Rebalance!$D$53,$F$2:$G$48,2,FALSE)+ROW()-2)),\"\")","v":{"$error":"#N/A"}},{"$f":"IF(INDIRECT(\"c\" & (VLOOKUP(Rebalance!$D$54,$F$2:$G$48,2,FALSE)+ROW()-2))=Rebalance!$D$54,INDIRECT(\"a\" & (VLOOKUP(Rebalance!$D$54,$F$2:$G$48,2,FALSE)+ROW()-2)),\"\")","v":{"$error":"#N/A"}},{"$f":"IF(INDIRECT(\"c\" & (VLOOKUP(Rebalance!$D$55,$F$2:$G$48,2,FALSE)+ROW()-2))=Rebalance!$D$55,INDIRECT(\"a\" & (VLOOKUP(Rebalance!$D$55,$F$2:$G$48,2,FALSE)+ROW()-2)),\"\")","v":{"$error":"#N/A"}},{"$f":"IF(INDIRECT(\"c\" & (VLOOKUP(Rebalance!$D$56,$F$2:$G$48,2,FALSE)+ROW()-2))=Rebalance!$D$56,INDIRECT(\"a\" & (VLOOKUP(Rebalance!$D$56,$F$2:$G$48,2,FALSE)+ROW()-2)),\"\")","v":{"$error":"#N/A"}},{"$f":"IF(INDIRECT(\"c\" & (VLOOKUP(Rebalance!$D$57,$F$2:$G$48,2,FALSE)+ROW()-2))=Rebalance!$D$57,INDIRECT(\"a\" & (VLOOKUP(Rebalance!$D$57,$F$2:$G$48,2,FALSE)+ROW()-2)),\"\")","v":{"$error":"#N/A"}},{"$f":"IF(INDIRECT(\"c\" & (VLOOKUP(Rebalance!$D$58,$F$2:$G$48,2,FALSE)+ROW()-2))=Rebalance!$D$58,INDIRECT(\"a\" & (VLOOKUP(Rebalance!$D$58,$F$2:$G$48,2,FALSE)+ROW()-2)),\"\")","v":{"$error":"#N/A"}},{"$f":"IF(INDIRECT(\"c\" & (VLOOKUP(Rebalance!$D$59,$F$2:$G$48,2,FALSE)+ROW()-2))=Rebalance!$D$59,INDIRECT(\"a\" & (VLOOKUP(Rebalance!$D$59,$F$2:$G$48,2,FALSE)+ROW()-2)),\"\")","v":{"$error":"#N/A"}},{"$f":"IF(INDIRECT(\"c\" & (VLOOKUP(Rebalance!$D$60,$F$2:$G$48,2,FALSE)+ROW()-2))=Rebalance!$D$60,INDIRECT(\"a\" & (VLOOKUP(Rebalance!$D$60,$F$2:$G$48,2,FALSE)+ROW()-2)),\"\")","v":{"$error":"#N/A"}},{"$f":"IF(INDIRECT(\"c\" & (VLOOKUP(Rebalance!$D$61,$F$2:$G$48,2,FALSE)+ROW()-2))=Rebalance!$D$61,INDIRECT(\"a\" & (VLOOKUP(Rebalance!$D$61,$F$2:$G$48,2,FALSE)+ROW()-2)),\"\")","v":{"$error":"#N/A"}},{"$f":"IF(INDIRECT(\"c\" & (VLOOKUP(Rebalance!$D$62,$F$2:$G$48,2,FALSE)+ROW()-2))=Rebalance!$D$62,INDIRECT(\"a\" & (VLOOKUP(Rebalance!$D$62,$F$2:$G$48,2,FALSE)+ROW()-2)),\"\")","v":{"$error":"#N/A"}},{"$f":"IF(INDIRECT(\"c\" & (VLOOKUP(Rebalance!$D$63,$F$2:$G$48,2,FALSE)+ROW()-2))=Rebalance!$D$63,INDIRECT(\"a\" & (VLOOKUP(Rebalance!$D$63,$F$2:$G$48,2,FALSE)+ROW()-2)),\"\")","v":{"$error":"#N/A"}},{"$f":"IF(INDIRECT(\"c\" & (VLOOKUP(Rebalance!$D$64,$F$2:$G$48,2,FALSE)+ROW()-2))=Rebalance!$D$64,INDIRECT(\"a\" & (VLOOKUP(Rebalance!$D$64,$F$2:$G$48,2,FALSE)+ROW()-2)),\"\")","v":{"$error":"#N/A"}},{"$f":"IF(INDIRECT(\"c\" & (VLOOKUP(Rebalance!$D$65,$F$2:$G$48,2,FALSE)+ROW()-2))=Rebalance!$D$65,INDIRECT(\"a\" & (VLOOKUP(Rebalance!$D$65,$F$2:$G$48,2,FALSE)+ROW()-2)),\"\")","v":{"$error":"#N/A"}},{"$f":"IF(INDIRECT(\"c\" & (VLOOKUP(Rebalance!$D$66,$F$2:$G$48,2,FALSE)+ROW()-2))=Rebalance!$D$66,INDIRECT(\"a\" & (VLOOKUP(Rebalance!$D$66,$F$2:$G$48,2,FALSE)+ROW()-2)),\"\")","v":{"$error":"#N/A"}}]
[null,null,null,{"$f":"ROW()","v":622},null,null,{"$f":"VLOOKUP(F622,$C$2:$D$599,2,FALSE)","v":{"$error":"#N/A"}},{"$f":"IF(INDIRECT(\"c\" & (VLOOKUP(Rebalance!$D$26,$F$2:$G$48,2,FALSE)+ROW()-2))=Rebalance!$D$26,INDIRECT(\"a\" & (VLOOKUP(Rebalance!$D$26,$F$2:$G$48,2,FALSE)+ROW()-2)),\"\")","v":{"$error":"#N/A"}},{"$f":"IF(INDIRECT(\"c\" & (VLOOKUP(Rebalance!$D$27,$F$2:$G$48,2,FALSE)+ROW()-2))=Rebalance!$D$27,INDIRECT(\"a\" & (VLOOKUP(Rebalance!$D$27,$F$2:$G$48,2,FALSE)+ROW()-2)),\"\")","v":{"$error":"#N/A"}},{"$f":"IF(INDIRECT(\"c\" & (VLOOKUP(Rebalance!$D$28,$F$2:$G$48,2,FALSE)+ROW()-2))=Rebalance!$D$28,INDIRECT(\"a\" & (VLOOKUP(Rebalance!$D$28,$F$2:$G$48,2,FALSE)+ROW()-2)),\"\")","v":{"$error":"#N/A"}},{"$f":"IF(INDIRECT(\"c\" & (VLOOKUP(Rebalance!$D$29,$F$2:$G$48,2,FALSE)+ROW()-2))=Rebalance!$D$29,INDIRECT(\"a\" & (VLOOKUP(Rebalance!$D$29,$F$2:$G$48,2,FALSE)+ROW()-2)),\"\")","v":{"$error":"#N/A"}},{"$f":"IF(INDIRECT(\"c\" & (VLOOKUP(Rebalance!$D$30,$F$2:$G$48,2,FALSE)+ROW()-2))=Rebalance!$D$30,INDIRECT(\"a\" & (VLOOKUP(Rebalance!$D$30,$F$2:$G$48,2,FALSE)+ROW()-2)),\"\")","v":{"$error":"#N/A"}},{"$f":"IF(INDIRECT(\"c\" & (VLOOKUP(Rebalance!$D$31,$F$2:$G$48,2,FALSE)+ROW()-2))=Rebalance!$D$31,INDIRECT(\"a\" & (VLOOKUP(Rebalance!$D$31,$F$2:$G$48,2,FALSE)+ROW()-2)),\"\")","v":{"$error":"#N/A"}},{"$f":"IF(INDIRECT(\"c\" & (VLOOKUP(Rebalance!$D$32,$F$2:$G$48,2,FALSE)+ROW()-2))=Rebalance!$D$32,INDIRECT(\"a\" & (VLOOKUP(Rebalance!$D$32,$F$2:$G$48,2,FALSE)+ROW()-2)),\"\")","v":{"$error":"#N/A"}},{"$f":"IF(INDIRECT(\"c\" & (VLOOKUP(Rebalance!$D$33,$F$2:$G$48,2,FALSE)+ROW()-2))=Rebalance!$D$33,INDIRECT(\"a\" & (VLOOKUP(Rebalance!$D$33,$F$2:$G$48,2,FALSE)+ROW()-2)),\"\")","v":{"$error":"#N/A"}},{"$f":"IF(INDIRECT(\"c\" & (VLOOKUP(Rebalance!$D$34,$F$2:$G$48,2,FALSE)+ROW()-2))=Rebalance!$D$34,INDIRECT(\"a\" & (VLOOKUP(Rebalance!$D$34,$F$2:$G$48,2,FALSE)+ROW()-2)),\"\")","v":{"$error":"#N/A"}},{"$f":"IF(INDIRECT(\"c\" & (VLOOKUP(Rebalance!$D$35,$F$2:$G$48,2,FALSE)+ROW()-2))=Rebalance!$D$35,INDIRECT(\"a\" & (VLOOKUP(Rebalance!$D$35,$F$2:$G$48,2,FALSE)+ROW()-2)),\"\")","v":{"$error":"#N/A"}},{"$f":"IF(INDIRECT(\"c\" & (VLOOKUP(Rebalance!$D$36,$F$2:$G$48,2,FALSE)+ROW()-2))=Rebalance!$D$36,INDIRECT(\"a\" & (VLOOKUP(Rebalance!$D$36,$F$2:$G$48,2,FALSE)+ROW()-2)),\"\")","v":{"$error":"#N/A"}},{"$f":"IF(INDIRECT(\"c\" & (VLOOKUP(Rebalance!$D$37,$F$2:$G$48,2,FALSE)+ROW()-2))=Rebalance!$D$37,INDIRECT(\"a\" & (VLOOKUP(Rebalance!$D$37,$F$2:$G$48,2,FALSE)+ROW()-2)),\"\")","v":{"$error":"#N/A"}},{"$f":"IF(INDIRECT(\"c\" & (VLOOKUP(Rebalance!$D$38,$F$2:$G$48,2,FALSE)+ROW()-2))=Rebalance!$D$38,INDIRECT(\"a\" & (VLOOKUP(Rebalance!$D$38,$F$2:$G$48,2,FALSE)+ROW()-2)),\"\")","v":{"$error":"#N/A"}},{"$f":"IF(INDIRECT(\"c\" & (VLOOKUP(Rebalance!$D$39,$F$2:$G$48,2,FALSE)+ROW()-2))=Rebalance!$D$39,INDIRECT(\"a\" & (VLOOKUP(Rebalance!$D$39,$F$2:$G$48,2,FALSE)+ROW()-2)),\"\")","v":{"$error":"#N/A"}},{"$f":"IF(INDIRECT(\"c\" & (VLOOKUP(Rebalance!$D$40,$F$2:$G$48,2,FALSE)+ROW()-2))=Rebalance!$D$40,INDIRECT(\"a\" & (VLOOKUP(Rebalance!$D$40,$F$2:$G$48,2,FALSE)+ROW()-2)),\"\")","v":{"$error":"#N/A"}},{"$f":"IF(INDIRECT(\"c\" & (VLOOKUP(Rebalance!$D$52,$F$2:$G$48,2,FALSE)+ROW()-2))=Rebalance!$D$52,INDIRECT(\"a\" & (VLOOKUP(Rebalance!$D$52,$F$2:$G$48,2,FALSE)+ROW()-2)),\"\")","v":{"$error":"#N/A"}},{"$f":"IF(INDIRECT(\"c\" & (VLOOKUP(Rebalance!$D$53,$F$2:$G$48,2,FALSE)+ROW()-2))=Rebalance!$D$53,INDIRECT(\"a\" & (VLOOKUP(Rebalance!$D$53,$F$2:$G$48,2,FALSE)+ROW()-2)),\"\")","v":{"$error":"#N/A"}},{"$f":"IF(INDIRECT(\"c\" & (VLOOKUP(Rebalance!$D$54,$F$2:$G$48,2,FALSE)+ROW()-2))=Rebalance!$D$54,INDIRECT(\"a\" & (VLOOKUP(Rebalance!$D$54,$F$2:$G$48,2,FALSE)+ROW()-2)),\"\")","v":{"$error":"#N/A"}},{"$f":"IF(INDIRECT(\"c\" & (VLOOKUP(Rebalance!$D$55,$F$2:$G$48,2,FALSE)+ROW()-2))=Rebalance!$D$55,INDIRECT(\"a\" & (VLOOKUP(Rebalance!$D$55,$F$2:$G$48,2,FALSE)+ROW()-2)),\"\")","v":{"$error":"#N/A"}},{"$f":"IF(INDIRECT(\"c\" & (VLOOKUP(Rebalance!$D$56,$F$2:$G$48,2,FALSE)+ROW()-2))=Rebalance!$D$56,INDIRECT(\"a\" & (VLOOKUP(Rebalance!$D$56,$F$2:$G$48,2,FALSE)+ROW()-2)),\"\")","v":{"$error":"#N/A"}},{"$f":"IF(INDIRECT(\"c\" & (VLOOKUP(Rebalance!$D$57,$F$2:$G$48,2,FALSE)+ROW()-2))=Rebalance!$D$57,INDIRECT(\"a\" & (VLOOKUP(Rebalance!$D$57,$F$2:$G$48,2,FALSE)+ROW()-2)),\"\")","v":{"$error":"#N/A"}},{"$f":"IF(INDIRECT(\"c\" & (VLOOKUP(Rebalance!$D$58,$F$2:$G$48,2,FALSE)+ROW()-2))=Rebalance!$D$58,INDIRECT(\"a\" & (VLOOKUP(Rebalance!$D$58,$F$2:$G$48,2,FALSE)+ROW()-2)),\"\")","v":{"$error":"#N/A"}},{"$f":"IF(INDIRECT(\"c\" & (VLOOKUP(Rebalance!$D$59,$F$2:$G$48,2,FALSE)+ROW()-2))=Rebalance!$D$59,INDIRECT(\"a\" & (VLOOKUP(Rebalance!$D$59,$F$2:$G$48,2,FALSE)+ROW()-2)),\"\")","v":{"$error":"#N/A"}},{"$f":"IF(INDIRECT(\"c\" & (VLOOKUP(Rebalance!$D$60,$F$2:$G$48,2,FALSE)+ROW()-2))=Rebalance!$D$60,INDIRECT(\"a\" & (VLOOKUP(Rebalance!$D$60,$F$2:$G$48,2,FALSE)+ROW()-2)),\"\")","v":{"$error":"#N/A"}},{"$f":"IF(INDIRECT(\"c\" & (VLOOKUP(Rebalance!$D$61,$F$2:$G$48,2,FALSE)+ROW()-2))=Rebalance!$D$61,INDIRECT(\"a\" & (VLOOKUP(Rebalance!$D$61,$F$2:$G$48,2,FALSE)+ROW()-2)),\"\")","v":{"$error":"#N/A"}},{"$f":"IF(INDIRECT(\"c\" & (VLOOKUP(Rebalance!$D$62,$F$2:$G$48,2,FALSE)+ROW()-2))=Rebalance!$D$62,INDIRECT(\"a\" & (VLOOKUP(Rebalance!$D$62,$F$2:$G$48,2,FALSE)+ROW()-2)),\"\")","v":{"$error":"#N/A"}},{"$f":"IF(INDIRECT(\"c\" & (VLOOKUP(Rebalance!$D$63,$F$2:$G$48,2,FALSE)+ROW()-2))=Rebalance!$D$63,INDIRECT(\"a\" & (VLOOKUP(Rebalance!$D$63,$F$2:$G$48,2,FALSE)+ROW()-2)),\"\")","v":{"$error":"#N/A"}},{"$f":"IF(INDIRECT(\"c\" & (VLOOKUP(Rebalance!$D$64,$F$2:$G$48,2,FALSE)+ROW()-2))=Rebalance!$D$64,INDIRECT(\"a\" & (VLOOKUP(Rebalance!$D$64,$F$2:$G$48,2,FALSE)+ROW()-2)),\"\")","v":{"$error":"#N/A"}},{"$f":"IF(INDIRECT(\"c\" & (VLOOKUP(Rebalance!$D$65,$F$2:$G$48,2,FALSE)+ROW()-2))=Rebalance!$D$65,INDIRECT(\"a\" & (VLOOKUP(Rebalance!$D$65,$F$2:$G$48,2,FALSE)+ROW()-2)),\"\")","v":{"$error":"#N/A"}},{"$f":"IF(INDIRECT(\"c\" & (VLOOKUP(Rebalance!$D$66,$F$2:$G$48,2,FALSE)+ROW()-2))=Rebalance!$D$66,INDIRECT(\"a\" & (VLOOKUP(Rebalance!$D$66,$F$2:$G$48,2,FALSE)+ROW()-2)),\"\")","v":{"$error":"#N/A"}}]
[null,null,null,{"$f":"ROW()","v":623},null,null,{"$f":"VLOOKUP(F623,$C$2:$D$599,2,FALSE)","v":{"$error":"#N/A"}},{"$f":"IF(INDIRECT(\"c\" & (VLOOKUP(Rebalance!$D$26,$F$2:$G$48,2,FALSE)+ROW()-2))=Rebalance!$D$26,INDIRECT(\"a\" & (VLOOKUP(Rebalance!$D$26,$F$2:$G$48,2,FALSE)+ROW()-2)),\"\")","v":{"$error":"#N/A"}},{"$f":"IF(INDIRECT(\"c\" & (VLOOKUP(Rebalance!$D$27,$F$2:$G$48,2,FALSE)+ROW()-2))=Rebalance!$D$27,INDIRECT(\"a\" & (VLOOKUP(Rebalance!$D$27,$F$2:$G$48,2,FALSE)+ROW()-2)),\"\")","v":{"$error":"#N/A"}},{"$f":"IF(INDIRECT(\"c\" & (VLOOKUP(Rebalance!$D$28,$F$2:$G$48,2,FALSE)+ROW()-2))=Rebalance!$D$28,INDIRECT(\"a\" & (VLOOKUP(Rebalance!$D$28,$F$2:$G$48,2,FALSE)+ROW()-2)),\"\")","v":{"$error":"#N/A"}},{"$f":"IF(INDIRECT(\"c\" & (VLOOKUP(Rebalance!$D$29,$F$2:$G$48,2,FALSE)+ROW()-2))=Rebalance!$D$29,INDIRECT(\"a\" & (VLOOKUP(Rebalance!$D$29,$F$2:$G$48,2,FALSE)+ROW()-2)),\"\")","v":{"$error":"#N/A"}},{"$f":"IF(INDIRECT(\"c\" & (VLOOKUP(Rebalance!$D$30,$F$2:$G$48,2,FALSE)+ROW()-2))=Rebalance!$D$30,INDIRECT(\"a\" & (VLOOKUP(Rebalance!$D$30,$F$2:$G$48,2,FALSE)+ROW()-2)),\"\")","v":{"$error":"#N/A"}},{"$f":"IF(INDIRECT(\"c\" & (VLOOKUP(Rebalance!$D$31,$F$2:$G$48,2,FALSE)+ROW()-2))=Rebalance!$D$31,INDIRECT(\"a\" & (VLOOKUP(Rebalance!$D$31,$F$2:$G$48,2,FALSE)+ROW()-2)),\"\")","v":{"$error":"#N/A"}},{"$f":"IF(INDIRECT(\"c\" & (VLOOKUP(Rebalance!$D$32,$F$2:$G$48,2,FALSE)+ROW()-2))=Rebalance!$D$32,INDIRECT(\"a\" & (VLOOKUP(Rebalance!$D$32,$F$2:$G$48,2,FALSE)+ROW()-2)),\"\")","v":{"$error":"#N/A"}},{"$f":"IF(INDIRECT(\"c\" & (VLOOKUP(Rebalance!$D$33,$F$2:$G$48,2,FALSE)+ROW()-2))=Rebalance!$D$33,INDIRECT(\"a\" & (VLOOKUP(Rebalance!$D$33,$F$2:$G$48,2,FALSE)+ROW()-2)),\"\")","v":{"$error":"#N/A"}},{"$f":"IF(INDIRECT(\"c\" & (VLOOKUP(Rebalance!$D$34,$F$2:$G$48,2,FALSE)+ROW()-2))=Rebalance!$D$34,INDIRECT(\"a\" & (VLOOKUP(Rebalance!$D$34,$F$2:$G$48,2,FALSE)+ROW()-2)),\"\")","v":{"$error":"#N/A"}},{"$f":"IF(INDIRECT(\"c\" & (VLOOKUP(Rebalance!$D$35,$F$2:$G$48,2,FALSE)+ROW()-2))=Rebalance!$D$35,INDIRECT(\"a\" & (VLOOKUP(Rebalance!$D$35,$F$2:$G$48,2,FALSE)+ROW()-2)),\"\")","v":{"$error":"#N/A"}},{"$f":"IF(INDIRECT(\"c\" & (VLOOKUP(Rebalance!$D$36,$F$2:$G$48,2,FALSE)+ROW()-2))=Rebalance!$D$36,INDIRECT(\"a\" & (VLOOKUP(Rebalance!$D$36,$F$2:$G$48,2,FALSE)+ROW()-2)),\"\")","v":{"$error":"#N/A"}},{"$f":"IF(INDIRECT(\"c\" & (VLOOKUP(Rebalance!$D$37,$F$2:$G$48,2,FALSE)+ROW()-2))=Rebalance!$D$37,INDIRECT(\"a\" & (VLOOKUP(Rebalance!$D$37,$F$2:$G$48,2,FALSE)+ROW()-2)),\"\")","v":{"$error":"#N/A"}},{"$f":"IF(INDIRECT(\"c\" & (VLOOKUP(Rebalance!$D$38,$F$2:$G$48,2,FALSE)+ROW()-2))=Rebalance!$D$38,INDIRECT(\"a\" & (VLOOKUP(Rebalance!$D$38,$F$2:$G$48,2,FALSE)+ROW()-2)),\"\")","v":{"$error":"#N/A"}},{"$f":"IF(INDIRECT(\"c\" & (VLOOKUP(Rebalance!$D$39,$F$2:$G$48,2,FALSE)+ROW()-2))=Rebalance!$D$39,INDIRECT(\"a\" & (VLOOKUP(Rebalance!$D$39,$F$2:$G$48,2,FALSE)+ROW()-2)),\"\")","v":{"$error":"#N/A"}},{"$f":"IF(INDIRECT(\"c\" & (VLOOKUP(Rebalance!$D$40,$F$2:$G$48,2,FALSE)+ROW()-2))=Rebalance!$D$40,INDIRECT(\"a\" & (VLOOKUP(Rebalance!$D$40,$F$2:$G$48,2,FALSE)+ROW()-2)),\"\")","v":{"$error":"#N/A"}},{"$f":"IF(INDIRECT(\"c\" & (VLOOKUP(Rebalance!$D$52,$F$2:$G$48,2,FALSE)+ROW()-2))=Rebalance!$D$52,INDIRECT(\"a\" & (VLOOKUP(Rebalance!$D$52,$F$2:$G$48,2,FALSE)+ROW()-2)),\"\")","v":{"$error":"#N/A"}},{"$f":"IF(INDIRECT(\"c\" & (VLOOKUP(Rebalance!$D$53,$F$2:$G$48,2,FALSE)+ROW()-2))=Rebalance!$D$53,INDIRECT(\"a\" & (VLOOKUP(Rebalance!$D$53,$F$2:$G$48,2,FALSE)+ROW()-2)),\"\")","v":{"$error":"#N/A"}},{"$f":"IF(INDIRECT(\"c\" & (VLOOKUP(Rebalance!$D$54,$F$2:$G$48,2,FALSE)+ROW()-2))=Rebalance!$D$54,INDIRECT(\"a\" & (VLOOKUP(Rebalance!$D$54,$F$2:$G$48,2,FALSE)+ROW()-2)),\"\")","v":{"$error":"#N/A"}},{"$f":"IF(INDIRECT(\"c\" & (VLOOKUP(Rebalance!$D$55,$F$2:$G$48,2,FALSE)+ROW()-2))=Rebalance!$D$55,INDIRECT(\"a\" & (VLOOKUP(Rebalance!$D$55,$F$2:$G$48,2,FALSE)+ROW()-2)),\"\")","v":{"$error":"#N/A"}},{"$f":"IF(INDIRECT(\"c\" & (VLOOKUP(Rebalance!$D$56,$F$2:$G$48,2,FALSE)+ROW()-2))=Rebalance!$D$56,INDIRECT(\"a\" & (VLOOKUP(Rebalance!$D$56,$F$2:$G$48,2,FALSE)+ROW()-2)),\"\")","v":{"$error":"#N/A"}},{"$f":"IF(INDIRECT(\"c\" & (VLOOKUP(Rebalance!$D$57,$F$2:$G$48,2,FALSE)+ROW()-2))=Rebalance!$D$57,INDIRECT(\"a\" & (VLOOKUP(Rebalance!$D$57,$F$2:$G$48,2,FALSE)+ROW()-2)),\"\")","v":{"$error":"#N/A"}},{"$f":"IF(INDIRECT(\"c\" & (VLOOKUP(Rebalance!$D$58,$F$2:$G$48,2,FALSE)+ROW()-2))=Rebalance!$D$58,INDIRECT(\"a\" & (VLOOKUP(Rebalance!$D$58,$F$2:$G$48,2,FALSE)+ROW()-2)),\"\")","v":{"$error":"#N/A"}},{"$f":"IF(INDIRECT(\"c\" & (VLOOKUP(Rebalance!$D$59,$F$2:$G$48,2,FALSE)+ROW()-2))=Rebalance!$D$59,INDIRECT(\"a\" & (VLOOKUP(Rebalance!$D$59,$F$2:$G$48,2,FALSE)+ROW()-2)),\"\")","v":{"$error":"#N/A"}},{"$f":"IF(INDIRECT(\"c\" & (VLOOKUP(Rebalance!$D$60,$F$2:$G$48,2,FALSE)+ROW()-2))=Rebalance!$D$60,INDIRECT(\"a\" & (VLOOKUP(Rebalance!$D$60,$F$2:$G$48,2,FALSE)+ROW()-2)),\"\")","v":{"$error":"#N/A"}},{"$f":"IF(INDIRECT(\"c\" & (VLOOKUP(Rebalance!$D$61,$F$2:$G$48,2,FALSE)+ROW()-2))=Rebalance!$D$61,INDIRECT(\"a\" & (VLOOKUP(Rebalance!$D$61,$F$2:$G$48,2,FALSE)+ROW()-2)),\"\")","v":{"$error":"#N/A"}},{"$f":"IF(INDIRECT(\"c\" & (VLOOKUP(Rebalance!$D$62,$F$2:$G$48,2,FALSE)+ROW()-2))=Rebalance!$D$62,INDIRECT(\"a\" & (VLOOKUP(Rebalance!$D$62,$F$2:$G$48,2,FALSE)+ROW()-2)),\"\")","v":{"$error":"#N/A"}},{"$f":"IF(INDIRECT(\"c\" & (VLOOKUP(Rebalance!$D$63,$F$2:$G$48,2,FALSE)+ROW()-2))=Rebalance!$D$63,INDIRECT(\"a\" & (VLOOKUP(Rebalance!$D$63,$F$2:$G$48,2,FALSE)+ROW()-2)),\"\")","v":{"$error":"#N/A"}},{"$f":"IF(INDIRECT(\"c\" & (VLOOKUP(Rebalance!$D$64,$F$2:$G$48,2,FALSE)+ROW()-2))=Rebalance!$D$64,INDIRECT(\"a\" & (VLOOKUP(Rebalance!$D$64,$F$2:$G$48,2,FALSE)+ROW()-2)),\"\")","v":{"$error":"#N/A"}},{"$f":"IF(INDIRECT(\"c\" & (VLOOKUP(Rebalance!$D$65,$F$2:$G$48,2,FALSE)+ROW()-2))=Rebalance!$D$65,INDIRECT(\"a\" & (VLOOKUP(Rebalance!$D$65,$F$2:$G$48,2,FALSE)+ROW()-2)),\"\")","v":{"$error":"#N/A"}},{"$f":"IF(INDIRECT(\"c\" & (VLOOKUP(Rebalance!$D$66,$F$2:$G$48,2,FALSE)+ROW()-2))=Rebalance!$D$66,INDIRECT(\"a\" & (VLOOKUP(Rebalance!$D$66,$F$2:$G$48,2,FALSE)+ROW()-2)),\"\")","v":{"$error":"#N/A"}}]
[null,null,null,{"$f":"ROW()","v":624},null,null,{"$f":"VLOOKUP(F624,$C$2:$D$599,2,FALSE)","v":{"$error":"#N/A"}},{"$f":"IF(INDIRECT(\"c\" & (VLOOKUP(Rebalance!$D$26,$F$2:$G$48,2,FALSE)+ROW()-2))=Rebalance!$D$26,INDIRECT(\"a\" & (VLOOKUP(Rebalance!$D$26,$F$2:$G$48,2,FALSE)+ROW()-2)),\"\")","v":{"$error":"#N/A"}},{"$f":"IF(INDIRECT(\"c\" & (VLOOKUP(Rebalance!$D$27,$F$2:$G$48,2,FALSE)+ROW()-2))=Rebalance!$D$27,INDIRECT(\"a\" & (VLOOKUP(Rebalance!$D$27,$F$2:$G$48,2,FALSE)+ROW()-2)),\"\")","v":{"$error":"#N/A"}},{"$f":"IF(INDIRECT(\"c\" & (VLOOKUP(Rebalance!$D$28,$F$2:$G$48,2,FALSE)+ROW()-2))=Rebalance!$D$28,INDIRECT(\"a\" & (VLOOKUP(Rebalance!$D$28,$F$2:$G$48,2,FALSE)+ROW()-2)),\"\")","v":{"$error":"#N/A"}},{"$f":"IF(INDIRECT(\"c\" & (VLOOKUP(Rebalance!$D$29,$F$2:$G$48,2,FALSE)+ROW()-2))=Rebalance!$D$29,INDIRECT(\"a\" & (VLOOKUP(Rebalance!$D$29,$F$2:$G$48,2,FALSE)+ROW()-2)),\"\")","v":{"$error":"#N/A"}},{"$f":"IF(INDIRECT(\"c\" & (VLOOKUP(Rebalance!$D$30,$F$2:$G$48,2,FALSE)+ROW()-2))=Rebalance!$D$30,INDIRECT(\"a\" & (VLOOKUP(Rebalance!$D$30,$F$2:$G$48,2,FALSE)+ROW()-2)),\"\")","v":{"$error":"#N/A"}},{"$f":"IF(INDIRECT(\"c\" & (VLOOKUP(Rebalance!$D$31,$F$2:$G$48,2,FALSE)+ROW()-2))=Rebalance!$D$31,INDIRECT(\"a\" & (VLOOKUP(Rebalance!$D$31,$F$2:$G$48,2,FALSE)+ROW()-2)),\"\")","v":{"$error":"#N/A"}},{"$f":"IF(INDIRECT(\"c\" & (VLOOKUP(Rebalance!$D$32,$F$2:$G$48,2,FALSE)+ROW()-2))=Rebalance!$D$32,INDIRECT(\"a\" & (VLOOKUP(Rebalance!$D$32,$F$2:$G$48,2,FALSE)+ROW()-2)),\"\")","v":{"$error":"#N/A"}},{"$f":"IF(INDIRECT(\"c\" & (VLOOKUP(Rebalance!$D$33,$F$2:$G$48,2,FALSE)+ROW()-2))=Rebalance!$D$33,INDIRECT(\"a\" & (VLOOKUP(Rebalance!$D$33,$F$2:$G$48,2,FALSE)+ROW()-2)),\"\")","v":{"$error":"#N/A"}},{"$f":"IF(INDIRECT(\"c\" & (VLOOKUP(Rebalance!$D$34,$F$2:$G$48,2,FALSE)+ROW()-2))=Rebalance!$D$34,INDIRECT(\"a\" & (VLOOKUP(Rebalance!$D$34,$F$2:$G$48,2,FALSE)+ROW()-2)),\"\")","v":{"$error":"#N/A"}},{"$f":"IF(INDIRECT(\"c\" & (VLOOKUP(Rebalance!$D$35,$F$2:$G$48,2,FALSE)+ROW()-2))=Rebalance!$D$35,INDIRECT(\"a\" & (VLOOKUP(Rebalance!$D$35,$F$2:$G$48,2,FALSE)+ROW()-2)),\"\")","v":{"$error":"#N/A"}},{"$f":"IF(INDIRECT(\"c\" & (VLOOKUP(Rebalance!$D$36,$F$2:$G$48,2,FALSE)+ROW()-2))=Rebalance!$D$36,INDIRECT(\"a\" & (VLOOKUP(Rebalance!$D$36,$F$2:$G$48,2,FALSE)+ROW()-2)),\"\")","v":{"$error":"#N/A"}},{"$f":"IF(INDIRECT(\"c\" & (VLOOKUP(Rebalance!$D$37,$F$2:$G$48,2,FALSE)+ROW()-2))=Rebalance!$D$37,INDIRECT(\"a\" & (VLOOKUP(Rebalance!$D$37,$F$2:$G$48,2,FALSE)+ROW()-2)),\"\")","v":{"$error":"#N/A"}},{"$f":"IF(INDIRECT(\"c\" & (VLOOKUP(Rebalance!$D$38,$F$2:$G$48,2,FALSE)+ROW()-2))=Rebalance!$D$38,INDIRECT(\"a\" & (VLOOKUP(Rebalance!$D$38,$F$2:$G$48,2,FALSE)+ROW()-2)),\"\")","v":{"$error":"#N/A"}},{"$f":"IF(INDIRECT(\"c\" & (VLOOKUP(Rebalance!$D$39,$F$2:$G$48,2,FALSE)+ROW()-2))=Rebalance!$D$39,INDIRECT(\"a\" & (VLOOKUP(Rebalance!$D$39,$F$2:$G$48,2,FALSE)+ROW()-2)),\"\")","v":{"$error":"#N/A"}},{"$f":"IF(INDIRECT(\"c\" & (VLOOKUP(Rebalance!$D$40,$F$2:$G$48,2,FALSE)+ROW()-2))=Rebalance!$D$40,INDIRECT(\"a\" & (VLOOKUP(Rebalance!$D$40,$F$2:$G$48,2,FALSE)+ROW()-2)),\"\")","v":{"$error":"#N/A"}},{"$f":"IF(INDIRECT(\"c\" & (VLOOKUP(Rebalance!$D$52,$F$2:$G$48,2,FALSE)+ROW()-2))=Rebalance!$D$52,INDIRECT(\"a\" & (VLOOKUP(Rebalance!$D$52,$F$2:$G$48,2,FALSE)+ROW()-2)),\"\")","v":{"$error":"#N/A"}},{"$f":"IF(INDIRECT(\"c\" & (VLOOKUP(Rebalance!$D$53,$F$2:$G$48,2,FALSE)+ROW()-2))=Rebalance!$D$53,INDIRECT(\"a\" & (VLOOKUP(Rebalance!$D$53,$F$2:$G$48,2,FALSE)+ROW()-2)),\"\")","v":{"$error":"#N/A"}},{"$f":"IF(INDIRECT(\"c\" & (VLOOKUP(Rebalance!$D$54,$F$2:$G$48,2,FALSE)+ROW()-2))=Rebalance!$D$54,INDIRECT(\"a\" & (VLOOKUP(Rebalance!$D$54,$F$2:$G$48,2,FALSE)+ROW()-2)),\"\")","v":{"$error":"#N/A"}},{"$f":"IF(INDIRECT(\"c\" & (VLOOKUP(Rebalance!$D$55,$F$2:$G$48,2,FALSE)+ROW()-2))=Rebalance!$D$55,INDIRECT(\"a\" & (VLOOKUP(Rebalance!$D$55,$F$2:$G$48,2,FALSE)+ROW()-2)),\"\")","v":{"$error":"#N/A"}},{"$f":"IF(INDIRECT(\"c\" & (VLOOKUP(Rebalance!$D$56,$F$2:$G$48,2,FALSE)+ROW()-2))=Rebalance!$D$56,INDIRECT(\"a\" & (VLOOKUP(Rebalance!$D$56,$F$2:$G$48,2,FALSE)+ROW()-2)),\"\")","v":{"$error":"#N/A"}},{"$f":"IF(INDIRECT(\"c\" & (VLOOKUP(Rebalance!$D$57,$F$2:$G$48,2,FALSE)+ROW()-2))=Rebalance!$D$57,INDIRECT(\"a\" & (VLOOKUP(Rebalance!$D$57,$F$2:$G$48,2,FALSE)+ROW()-2)),\"\")","v":{"$error":"#N/A"}},{"$f":"IF(INDIRECT(\"c\" & (VLOOKUP(Rebalance!$D$58,$F$2:$G$48,2,FALSE)+ROW()-2))=Rebalance!$D$58,INDIRECT(\"a\" & (VLOOKUP(Rebalance!$D$58,$F$2:$G$48,2,FALSE)+ROW()-2)),\"\")","v":{"$error":"#N/A"}},{"$f":"IF(INDIRECT(\"c\" & (VLOOKUP(Rebalance!$D$59,$F$2:$G$48,2,FALSE)+ROW()-2))=Rebalance!$D$59,INDIRECT(\"a\" & (VLOOKUP(Rebalance!$D$59,$F$2:$G$48,2,FALSE)+ROW()-2)),\"\")","v":{"$error":"#N/A"}},{"$f":"IF(INDIRECT(\"c\" & (VLOOKUP(Rebalance!$D$60,$F$2:$G$48,2,FALSE)+ROW()-2))=Rebalance!$D$60,INDIRECT(\"a\" & (VLOOKUP(Rebalance!$D$60,$F$2:$G$48,2,FALSE)+ROW()-2)),\"\")","v":{"$error":"#N/A"}},{"$f":"IF(INDIRECT(\"c\" & (VLOOKUP(Rebalance!$D$61,$F$2:$G$48,2,FALSE)+ROW()-2))=Rebalance!$D$61,INDIRECT(\"a\" & (VLOOKUP(Rebalance!$D$61,$F$2:$G$48,2,FALSE)+ROW()-2)),\"\")","v":{"$error":"#N/A"}},{"$f":"IF(INDIRECT(\"c\" & (VLOOKUP(Rebalance!$D$62,$F$2:$G$48,2,FALSE)+ROW()-2))=Rebalance!$D$62,INDIRECT(\"a\" & (VLOOKUP(Rebalance!$D$62,$F$2:$G$48,2,FALSE)+ROW()-2)),\"\")","v":{"$error":"#N/A"}},{"$f":"IF(INDIRECT(\"c\" & (VLOOKUP(Rebalance!$D$63,$F$2:$G$48,2,FALSE)+ROW()-2))=Rebalance!$D$63,INDIRECT(\"a\" & (VLOOKUP(Rebalance!$D$63,$F$2:$G$48,2,FALSE)+ROW()-2)),\"\")","v":{"$error":"#N/A"}},{"$f":"IF(INDIRECT(\"c\" & (VLOOKUP(Rebalance!$D$64,$F$2:$G$48,2,FALSE)+ROW()-2))=Rebalance!$D$64,INDIRECT(\"a\" & (VLOOKUP(Rebalance!$D$64,$F$2:$G$48,2,FALSE)+ROW()-2)),\"\")","v":{"$error":"#N/A"}},{"$f":"IF(INDIRECT(\"c\" & (VLOOKUP(Rebalance!$D$65,$F$2:$G$48,2,FALSE)+ROW()-2))=Rebalance!$D$65,INDIRECT(\"a\" & (VLOOKUP(Rebalance!$D$65,$F$2:$G$48,2,FALSE)+ROW()-2)),\"\")","v":{"$error":"#N/A"}},{"$f":"IF(INDIRECT(\"c\" & (VLOOKUP(Rebalance!$D$66,$F$2:$G$48,2,FALSE)+ROW()-2))=Rebalance!$D$66,INDIRECT(\"a\" & (VLOOKUP(Rebalance!$D$66,$F$2:$G$48,2,FALSE)+ROW()-2)),\"\")","v":{"$error":"#N/A"}}]
[null,null,null,{"$f":"ROW()","v":625},null,null,{"$f":"VLOOKUP(F625,$C$2:$D$599,2,FALSE)","v":{"$error":"#N/A"}},{"$f":"IF(INDIRECT(\"c\" & (VLOOKUP(Rebalance!$D$26,$F$2:$G$48,2,FALSE)+ROW()-2))=Rebalance!$D$26,INDIRECT(\"a\" & (VLOOKUP(Rebalance!$D$26,$F$2:$G$48,2,FALSE)+ROW()-2)),\"\")","v":{"$error":"#N/A"}},{"$f":"IF(INDIRECT(\"c\" & (VLOOKUP(Rebalance!$D$27,$F$2:$G$48,2,FALSE)+ROW()-2))=Rebalance!$D$27,INDIRECT(\"a\" & (VLOOKUP(Rebalance!$D$27,$F$2:$G$48,2,FALSE)+ROW()-2)),\"\")","v":{"$error":"#N/A"}},{"$f":"IF(INDIRECT(\"c\" & (VLOOKUP(Rebalance!$D$28,$F$2:$G$48,2,FALSE)+ROW()-2))=Rebalance!$D$28,INDIRECT(\"a\" & (VLOOKUP(Rebalance!$D$28,$F$2:$G$48,2,FALSE)+ROW()-2)),\"\")","v":{"$error":"#N/A"}},{"$f":"IF(INDIRECT(\"c\" & (VLOOKUP(Rebalance!$D$29,$F$2:$G$48,2,FALSE)+ROW()-2))=Rebalance!$D$29,INDIRECT(\"a\" & (VLOOKUP(Rebalance!$D$29,$F$2:$G$48,2,FALSE)+ROW()-2)),\"\")","v":{"$error":"#N/A"}},{"$f":"IF(INDIRECT(\"c\" & (VLOOKUP(Rebalance!$D$30,$F$2:$G$48,2,FALSE)+ROW()-2))=Rebalance!$D$30,INDIRECT(\"a\" & (VLOOKUP(Rebalance!$D$30,$F$2:$G$48,2,FALSE)+ROW()-2)),\"\")","v":{"$error":"#N/A"}},{"$f":"IF(INDIRECT(\"c\" & (VLOOKUP(Rebalance!$D$31,$F$2:$G$48,2,FALSE)+ROW()-2))=Rebalance!$D$31,INDIRECT(\"a\" & (VLOOKUP(Rebalance!$D$31,$F$2:$G$48,2,FALSE)+ROW()-2)),\"\")","v":{"$error":"#N/A"}},{"$f":"IF(INDIRECT(\"c\" & (VLOOKUP(Rebalance!$D$32,$F$2:$G$48,2,FALSE)+ROW()-2))=Rebalance!$D$32,INDIRECT(\"a\" & (VLOOKUP(Rebalance!$D$32,$F$2:$G$48,2,FALSE)+ROW()-2)),\"\")","v":{"$error":"#N/A"}},{"$f":"IF(INDIRECT(\"c\" & (VLOOKUP(Rebalance!$D$33,$F$2:$G$48,2,FALSE)+ROW()-2))=Rebalance!$D$33,INDIRECT(\"a\" & (VLOOKUP(Rebalance!$D$33,$F$2:$G$48,2,FALSE)+ROW()-2)),\"\")","v":{"$error":"#N/A"}},{"$f":"IF(INDIRECT(\"c\" & (VLOOKUP(Rebalance!$D$34,$F$2:$G$48,2,FALSE)+ROW()-2))=Rebalance!$D$34,INDIRECT(\"a\" & (VLOOKUP(Rebalance!$D$34,$F$2:$G$48,2,FALSE)+ROW()-2)),\"\")","v":{"$error":"#N/A"}},{"$f":"IF(INDIRECT(\"c\" & (VLOOKUP(Rebalance!$D$35,$F$2:$G$48,2,FALSE)+ROW()-2))=Rebalance!$D$35,INDIRECT(\"a\" & (VLOOKUP(Rebalance!$D$35,$F$2:$G$48,2,FALSE)+ROW()-2)),\"\")","v":{"$error":"#N/A"}},{"$f":"IF(INDIRECT(\"c\" & (VLOOKUP(Rebalance!$D$36,$F$2:$G$48,2,FALSE)+ROW()-2))=Rebalance!$D$36,INDIRECT(\"a\" & (VLOOKUP(Rebalance!$D$36,$F$2:$G$48,2,FALSE)+ROW()-2)),\"\")","v":{"$error":"#N/A"}},{"$f":"IF(INDIRECT(\"c\" & (VLOOKUP(Rebalance!$D$37,$F$2:$G$48,2,FALSE)+ROW()-2))=Rebalance!$D$37,INDIRECT(\"a\" & (VLOOKUP(Rebalance!$D$37,$F$2:$G$48,2,FALSE)+ROW()-2)),\"\")","v":{"$error":"#N/A"}},{"$f":"IF(INDIRECT(\"c\" & (VLOOKUP(Rebalance!$D$38,$F$2:$G$48,2,FALSE)+ROW()-2))=Rebalance!$D$38,INDIRECT(\"a\" & (VLOOKUP(Rebalance!$D$38,$F$2:$G$48,2,FALSE)+ROW()-2)),\"\")","v":{"$error":"#N/A"}},{"$f":"IF(INDIRECT(\"c\" & (VLOOKUP(Rebalance!$D$39,$F$2:$G$48,2,FALSE)+ROW()-2))=Rebalance!$D$39,INDIRECT(\"a\" & (VLOOKUP(Rebalance!$D$39,$F$2:$G$48,2,FALSE)+ROW()-2)),\"\")","v":{"$error":"#N/A"}},{"$f":"IF(INDIRECT(\"c\" & (VLOOKUP(Rebalance!$D$40,$F$2:$G$48,2,FALSE)+ROW()-2))=Rebalance!$D$40,INDIRECT(\"a\" & (VLOOKUP(Rebalance!$D$40,$F$2:$G$48,2,FALSE)+ROW()-2)),\"\")","v":{"$error":"#N/A"}},{"$f":"IF(INDIRECT(\"c\" & (VLOOKUP(Rebalance!$D$52,$F$2:$G$48,2,FALSE)+ROW()-2))=Rebalance!$D$52,INDIRECT(\"a\" & (VLOOKUP(Rebalance!$D$52,$F$2:$G$48,2,FALSE)+ROW()-2)),\"\")","v":{"$error":"#N/A"}},{"$f":"IF(INDIRECT(\"c\" & (VLOOKUP(Rebalance!$D$53,$F$2:$G$48,2,FALSE)+ROW()-2))=Rebalance!$D$53,INDIRECT(\"a\" & (VLOOKUP(Rebalance!$D$53,$F$2:$G$48,2,FALSE)+ROW()-2)),\"\")","v":{"$error":"#N/A"}},{"$f":"IF(INDIRECT(\"c\" & (VLOOKUP(Rebalance!$D$54,$F$2:$G$48,2,FALSE)+ROW()-2))=Rebalance!$D$54,INDIRECT(\"a\" & (VLOOKUP(Rebalance!$D$54,$F$2:$G$48,2,FALSE)+ROW()-2)),\"\")","v":{"$error":"#N/A"}},{"$f":"IF(INDIRECT(\"c\" & (VLOOKUP(Rebalance!$D$55,$F$2:$G$48,2,FALSE)+ROW()-2))=Rebalance!$D$55,INDIRECT(\"a\" & (VLOOKUP(Rebalance!$D$55,$F$2:$G$48,2,FALSE)+ROW()-2)),\"\")","v":{"$error":"#N/A"}},{"$f":"IF(INDIRECT(\"c\" & (VLOOKUP(Rebalance!$D$56,$F$2:$G$48,2,FALSE)+ROW()-2))=Rebalance!$D$56,INDIRECT(\"a\" & (VLOOKUP(Rebalance!$D$56,$F$2:$G$48,2,FALSE)+ROW()-2)),\"\")","v":{"$error":"#N/A"}},{"$f":"IF(INDIRECT(\"c\" & (VLOOKUP(Rebalance!$D$57,$F$2:$G$48,2,FALSE)+ROW()-2))=Rebalance!$D$57,INDIRECT(\"a\" & (VLOOKUP(Rebalance!$D$57,$F$2:$G$48,2,FALSE)+ROW()-2)),\"\")","v":{"$error":"#N/A"}},{"$f":"IF(INDIRECT(\"c\" & (VLOOKUP(Rebalance!$D$58,$F$2:$G$48,2,FALSE)+ROW()-2))=Rebalance!$D$58,INDIRECT(\"a\" & (VLOOKUP(Rebalance!$D$58,$F$2:$G$48,2,FALSE)+ROW()-2)),\"\")","v":{"$error":"#N/A"}},{"$f":"IF(INDIRECT(\"c\" & (VLOOKUP(Rebalance!$D$59,$F$2:$G$48,2,FALSE)+ROW()-2))=Rebalance!$D$59,INDIRECT(\"a\" & (VLOOKUP(Rebalance!$D$59,$F$2:$G$48,2,FALSE)+ROW()-2)),\"\")","v":{"$error":"#N/A"}},{"$f":"IF(INDIRECT(\"c\" & (VLOOKUP(Rebalance!$D$60,$F$2:$G$48,2,FALSE)+ROW()-2))=Rebalance!$D$60,INDIRECT(\"a\" & (VLOOKUP(Rebalance!$D$60,$F$2:$G$48,2,FALSE)+ROW()-2)),\"\")","v":{"$error":"#N/A"}},{"$f":"IF(INDIRECT(\"c\" & (VLOOKUP(Rebalance!$D$61,$F$2:$G$48,2,FALSE)+ROW()-2))=Rebalance!$D$61,INDIRECT(\"a\" & (VLOOKUP(Rebalance!$D$61,$F$2:$G$48,2,FALSE)+ROW()-2)),\"\")","v":{"$error":"#N/A"}},{"$f":"IF(INDIRECT(\"c\" & (VLOOKUP(Rebalance!$D$62,$F$2:$G$48,2,FALSE)+ROW()-2))=Rebalance!$D$62,INDIRECT(\"a\" & (VLOOKUP(Rebalance!$D$62,$F$2:$G$48,2,FALSE)+ROW()-2)),\"\")","v":{"$error":"#N/A"}},{"$f":"IF(INDIRECT(\"c\" & (VLOOKUP(Rebalance!$D$63,$F$2:$G$48,2,FALSE)+ROW()-2))=Rebalance!$D$63,INDIRECT(\"a\" & (VLOOKUP(Rebalance!$D$63,$F$2:$G$48,2,FALSE)+ROW()-2)),\"\")","v":{"$error":"#N/A"}},{"$f":"IF(INDIRECT(\"c\" & (VLOOKUP(Rebalance!$D$64,$F$2:$G$48,2,FALSE)+ROW()-2))=Rebalance!$D$64,INDIRECT(\"a\" & (VLOOKUP(Rebalance!$D$64,$F$2:$G$48,2,FALSE)+ROW()-2)),\"\")","v":{"$error":"#N/A"}},{"$f":"IF(INDIRECT(\"c\" & (VLOOKUP(Rebalance!$D$65,$F$2:$G$48,2,FALSE)+ROW()-2))=Rebalance!$D$65,INDIRECT(\"a\" & (VLOOKUP(Rebalance!$D$65,$F$2:$G$48,2,FALSE)+ROW()-2)),\"\")","v":{"$error":"#N/A"}},{"$f":"IF(INDIRECT(\"c\" & (VLOOKUP(Rebalance!$D$66,$F$2:$G$48,2,FALSE)+ROW()-2))=Rebalance!$D$66,INDIRECT(\"a\" & (VLOOKUP(Rebalance!$D$66,$F$2:$G$48,2,FALSE)+ROW()-2)),\"\")","v":{"$error":"#N/A"}}]
[null,null,null,{"$f":"ROW()","v":626},null,null,{"$f":"VLOOKUP(F626,$C$2:$D$599,2,FALSE)","v":{"$error":"#N/A"}},{"$f":"IF(INDIRECT(\"c\" & (VLOOKUP(Rebalance!$D$26,$F$2:$G$48,2,FALSE)+ROW()-2))=Rebalance!$D$26,INDIRECT(\"a\" & (VLOOKUP(Rebalance!$D$26,$F$2:$G$48,2,FALSE)+ROW()-2)),\"\")","v":{"$error":"#N/A"}},{"$f":"IF(INDIRECT(\"c\" & (VLOOKUP(Rebalance!$D$27,$F$2:$G$48,2,FALSE)+ROW()-2))=Rebalance!$D$27,INDIRECT(\"a\" & (VLOOKUP(Rebalance!$D$27,$F$2:$G$48,2,FALSE)+ROW()-2)),\"\")","v":{"$error":"#N/A"}},{"$f":"IF(INDIRECT(\"c\" & (VLOOKUP(Rebalance!$D$28,$F$2:$G$48,2,FALSE)+ROW()-2))=Rebalance!$D$28,INDIRECT(\"a\" & (VLOOKUP(Rebalance!$D$28,$F$2:$G$48,2,FALSE)+ROW()-2)),\"\")","v":{"$error":"#N/A"}},{"$f":"IF(INDIRECT(\"c\" & (VLOOKUP(Rebalance!$D$29,$F$2:$G$48,2,FALSE)+ROW()-2))=Rebalance!$D$29,INDIRECT(\"a\" & (VLOOKUP(Rebalance!$D$29,$F$2:$G$48,2,FALSE)+ROW()-2)),\"\")","v":{"$error":"#N/A"}},{"$f":"IF(INDIRECT(\"c\" & (VLOOKUP(Rebalance!$D$30,$F$2:$G$48,2,FALSE)+ROW()-2))=Rebalance!$D$30,INDIRECT(\"a\" & (VLOOKUP(Rebalance!$D$30,$F$2:$G$48,2,FALSE)+ROW()-2)),\"\")","v":{"$error":"#N/A"}},{"$f":"IF(INDIRECT(\"c\" & (VLOOKUP(Rebalance!$D$31,$F$2:$G$48,2,FALSE)+ROW()-2))=Rebalance!$D$31,INDIRECT(\"a\" & (VLOOKUP(Rebalance!$D$31,$F$2:$G$48,2,FALSE)+ROW()-2)),\"\")","v":{"$error":"#N/A"}},{"$f":"IF(INDIRECT(\"c\" & (VLOOKUP(Rebalance!$D$32,$F$2:$G$48,2,FALSE)+ROW()-2))=Rebalance!$D$32,INDIRECT(\"a\" & (VLOOKUP(Rebalance!$D$32,$F$2:$G$48,2,FALSE)+ROW()-2)),\"\")","v":{"$error":"#N/A"}},{"$f":"IF(INDIRECT(\"c\" & (VLOOKUP(Rebalance!$D$33,$F$2:$G$48,2,FALSE)+ROW()-2))=Rebalance!$D$33,INDIRECT(\"a\" & (VLOOKUP(Rebalance!$D$33,$F$2:$G$48,2,FALSE)+ROW()-2)),\"\")","v":{"$error":"#N/A"}},{"$f":"IF(INDIRECT(\"c\" & (VLOOKUP(Rebalance!$D$34,$F$2:$G$48,2,FALSE)+ROW()-2))=Rebalance!$D$34,INDIRECT(\"a\" & (VLOOKUP(Rebalance!$D$34,$F$2:$G$48,2,FALSE)+ROW()-2)),\"\")","v":{"$error":"#N/A"}},{"$f":"IF(INDIRECT(\"c\" & (VLOOKUP(Rebalance!$D$35,$F$2:$G$48,2,FALSE)+ROW()-2))=Rebalance!$D$35,INDIRECT(\"a\" & (VLOOKUP(Rebalance!$D$35,$F$2:$G$48,2,FALSE)+ROW()-2)),\"\")","v":{"$error":"#N/A"}},{"$f":"IF(INDIRECT(\"c\" & (VLOOKUP(Rebalance!$D$36,$F$2:$G$48,2,FALSE)+ROW()-2))=Rebalance!$D$36,INDIRECT(\"a\" & (VLOOKUP(Rebalance!$D$36,$F$2:$G$48,2,FALSE)+ROW()-2)),\"\")","v":{"$error":"#N/A"}},{"$f":"IF(INDIRECT(\"c\" & (VLOOKUP(Rebalance!$D$37,$F$2:$G$48,2,FALSE)+ROW()-2))=Rebalance!$D$37,INDIRECT(\"a\" & (VLOOKUP(Rebalance!$D$37,$F$2:$G$48,2,FALSE)+ROW()-2)),\"\")","v":{"$error":"#N/A"}},{"$f":"IF(INDIRECT(\"c\" & (VLOOKUP(Rebalance!$D$38,$F$2:$G$48,2,FALSE)+ROW()-2))=Rebalance!$D$38,INDIRECT(\"a\" & (VLOOKUP(Rebalance!$D$38,$F$2:$G$48,2,FALSE)+ROW()-2)),\"\")","v":{"$error":"#N/A"}},{"$f":"IF(INDIRECT(\"c\" & (VLOOKUP(Rebalance!$D$39,$F$2:$G$48,2,FALSE)+ROW()-2))=Rebalance!$D$39,INDIRECT(\"a\" & (VLOOKUP(Rebalance!$D$39,$F$2:$G$48,2,FALSE)+ROW()-2)),\"\")","v":{"$error":"#N/A"}},{"$f":"IF(INDIRECT(\"c\" & (VLOOKUP(Rebalance!$D$40,$F$2:$G$48,2,FALSE)+ROW()-2))=Rebalance!$D$40,INDIRECT(\"a\" & (VLOOKUP(Rebalance!$D$40,$F$2:$G$48,2,FALSE)+ROW()-2)),\"\")","v":{"$error":"#N/A"}},{"$f":"IF(INDIRECT(\"c\" & (VLOOKUP(Rebalance!$D$52,$F$2:$G$48,2,FALSE)+ROW()-2))=Rebalance!$D$52,INDIRECT(\"a\" & (VLOOKUP(Rebalance!$D$52,$F$2:$G$48,2,FALSE)+ROW()-2)),\"\")","v":{"$error":"#N/A"}},{"$f":"IF(INDIRECT(\"c\" & (VLOOKUP(Rebalance!$D$53,$F$2:$G$48,2,FALSE)+ROW()-2))=Rebalance!$D$53,INDIRECT(\"a\" & (VLOOKUP(Rebalance!$D$53,$F$2:$G$48,2,FALSE)+ROW()-2)),\"\")","v":{"$error":"#N/A"}},{"$f":"IF(INDIRECT(\"c\" & (VLOOKUP(Rebalance!$D$54,$F$2:$G$48,2,FALSE)+ROW()-2))=Rebalance!$D$54,INDIRECT(\"a\" & (VLOOKUP(Rebalance!$D$54,$F$2:$G$48,2,FALSE)+ROW()-2)),\"\")","v":{"$error":"#N/A"}},{"$f":"IF(INDIRECT(\"c\" & (VLOOKUP(Rebalance!$D$55,$F$2:$G$48,2,FALSE)+ROW()-2))=Rebalance!$D$55,INDIRECT(\"a\" & (VLOOKUP(Rebalance!$D$55,$F$2:$G$48,2,FALSE)+ROW()-2)),\"\")","v":{"$error":"#N/A"}},{"$f":"IF(INDIRECT(\"c\" & (VLOOKUP(Rebalance!$D$56,$F$2:$G$48,2,FALSE)+ROW()-2))=Rebalance!$D$56,INDIRECT(\"a\" & (VLOOKUP(Rebalance!$D$56,$F$2:$G$48,2,FALSE)+ROW()-2)),\"\")","v":{"$error":"#N/A"}},{"$f":"IF(INDIRECT(\"c\" & (VLOOKUP(Rebalance!$D$57,$F$2:$G$48,2,FALSE)+ROW()-2))=Rebalance!$D$57,INDIRECT(\"a\" & (VLOOKUP(Rebalance!$D$57,$F$2:$G$48,2,FALSE)+ROW()-2)),\"\")","v":{"$error":"#N/A"}},{"$f":"IF(INDIRECT(\"c\" & (VLOOKUP(Rebalance!$D$58,$F$2:$G$48,2,FALSE)+ROW()-2))=Rebalance!$D$58,INDIRECT(\"a\" & (VLOOKUP(Rebalance!$D$58,$F$2:$G$48,2,FALSE)+ROW()-2)),\"\")","v":{"$error":"#N/A"}},{"$f":"IF(INDIRECT(\"c\" & (VLOOKUP(Rebalance!$D$59,$F$2:$G$48,2,FALSE)+ROW()-2))=Rebalance!$D$59,INDIRECT(\"a\" & (VLOOKUP(Rebalance!$D$59,$F$2:$G$48,2,FALSE)+ROW()-2)),\"\")","v":{"$error":"#N/A"}},{"$f":"IF(INDIRECT(\"c\" & (VLOOKUP(Rebalance!$D$60,$F$2:$G$48,2,FALSE)+ROW()-2))=Rebalance!$D$60,INDIRECT(\"a\" & (VLOOKUP(Rebalance!$D$60,$F$2:$G$48,2,FALSE)+ROW()-2)),\"\")","v":{"$error":"#N/A"}},{"$f":"IF(INDIRECT(\"c\" & (VLOOKUP(Rebalance!$D$61,$F$2:$G$48,2,FALSE)+ROW()-2))=Rebalance!$D$61,INDIRECT(\"a\" & (VLOOKUP(Rebalance!$D$61,$F$2:$G$48,2,FALSE)+ROW()-2)),\"\")","v":{"$error":"#N/A"}},{"$f":"IF(INDIRECT(\"c\" & (VLOOKUP(Rebalance!$D$62,$F$2:$G$48,2,FALSE)+ROW()-2))=Rebalance!$D$62,INDIRECT(\"a\" & (VLOOKUP(Rebalance!$D$62,$F$2:$G$48,2,FALSE)+ROW()-2)),\"\")","v":{"$error":"#N/A"}},{"$f":"IF(INDIRECT(\"c\" & (VLOOKUP(Rebalance!$D$63,$F$2:$G$48,2,FALSE)+ROW()-2))=Rebalance!$D$63,INDIRECT(\"a\" & (VLOOKUP(Rebalance!$D$63,$F$2:$G$48,2,FALSE)+ROW()-2)),\"\")","v":{"$error":"#N/A"}},{"$f":"IF(INDIRECT(\"c\" & (VLOOKUP(Rebalance!$D$64,$F$2:$G$48,2,FALSE)+ROW()-2))=Rebalance!$D$64,INDIRECT(\"a\" & (VLOOKUP(Rebalance!$D$64,$F$2:$G$48,2,FALSE)+ROW()-2)),\"\")","v":{"$error":"#N/A"}},{"$f":"IF(INDIRECT(\"c\" & (VLOOKUP(Rebalance!$D$65,$F$2:$G$48,2,FALSE)+ROW()-2))=Rebalance!$D$65,INDIRECT(\"a\" & (VLOOKUP(Rebalance!$D$65,$F$2:$G$48,2,FALSE)+ROW()-2)),\"\")","v":{"$error":"#N/A"}},{"$f":"IF(INDIRECT(\"c\" & (VLOOKUP(Rebalance!$D$66,$F$2:$G$48,2,FALSE)+ROW()-2))=Rebalance!$D$66,INDIRECT(\"a\" & (VLOOKUP(Rebalance!$D$66,$F$2:$G$48,2,FALSE)+ROW()-2)),\"\")","v":{"$error":"#N/A"}}]
[null,null,null,{"$f":"ROW()","v":627},null,null,{"$f":"VLOOKUP(F627,$C$2:$D$599,2,FALSE)","v":{"$error":"#N/A"}},{"$f":"IF(INDIRECT(\"c\" & (VLOOKUP(Rebalance!$D$26,$F$2:$G$48,2,FALSE)+ROW()-2))=Rebalance!$D$26,INDIRECT(\"a\" & (VLOOKUP(Rebalance!$D$26,$F$2:$G$48,2,FALSE)+ROW()-2)),\"\")","v":{"$error":"#N/A"}},{"$f":"IF(INDIRECT(\"c\" & (VLOOKUP(Rebalance!$D$27,$F$2:$G$48,2,FALSE)+ROW()-2))=Rebalance!$D$27,INDIRECT(\"a\" & (VLOOKUP(Rebalance!$D$27,$F$2:$G$48,2,FALSE)+ROW()-2)),\"\")","v":{"$error":"#N/A"}},{"$f":"IF(INDIRECT(\"c\" & (VLOOKUP(Rebalance!$D$28,$F$2:$G$48,2,FALSE)+ROW()-2))=Rebalance!$D$28,INDIRECT(\"a\" & (VLOOKUP(Rebalance!$D$28,$F$2:$G$48,2,FALSE)+ROW()-2)),\"\")","v":{"$error":"#N/A"}},{"$f":"IF(INDIRECT(\"c\" & (VLOOKUP(Rebalance!$D$29,$F$2:$G$48,2,FALSE)+ROW()-2))=Rebalance!$D$29,INDIRECT(\"a\" & (VLOOKUP(Rebalance!$D$29,$F$2:$G$48,2,FALSE)+ROW()-2)),\"\")","v":{"$error":"#N/A"}},{"$f":"IF(INDIRECT(\"c\" & (VLOOKUP(Rebalance!$D$30,$F$2:$G$48,2,FALSE)+ROW()-2))=Rebalance!$D$30,INDIRECT(\"a\" & (VLOOKUP(Rebalance!$D$30,$F$2:$G$48,2,FALSE)+ROW()-2)),\"\")","v":{"$error":"#N/A"}},{"$f":"IF(INDIRECT(\"c\" & (VLOOKUP(Rebalance!$D$31,$F$2:$G$48,2,FALSE)+ROW()-2))=Rebalance!$D$31,INDIRECT(\"a\" & (VLOOKUP(Rebalance!$D$31,$F$2:$G$48,2,FALSE)+ROW()-2)),\"\")","v":{"$error":"#N/A"}},{"$f":"IF(INDIRECT(\"c\" & (VLOOKUP(Rebalance!$D$32,$F$2:$G$48,2,FALSE)+ROW()-2))=Rebalance!$D$32,INDIRECT(\"a\" & (VLOOKUP(Rebalance!$D$32,$F$2:$G$48,2,FALSE)+ROW()-2)),\"\")","v":{"$error":"#N/A"}},{"$f":"IF(INDIRECT(\"c\" & (VLOOKUP(Rebalance!$D$33,$F$2:$G$48,2,FALSE)+ROW()-2))=Rebalance!$D$33,INDIRECT(\"a\" & (VLOOKUP(Rebalance!$D$33,$F$2:$G$48,2,FALSE)+ROW()-2)),\"\")","v":{"$error":"#N/A"}},{"$f":"IF(INDIRECT(\"c\" & (VLOOKUP(Rebalance!$D$34,$F$2:$G$48,2,FALSE)+ROW()-2))=Rebalance!$D$34,INDIRECT(\"a\" & (VLOOKUP(Rebalance!$D$34,$F$2:$G$48,2,FALSE)+ROW()-2)),\"\")","v":{"$error":"#N/A"}},{"$f":"IF(INDIRECT(\"c\" & (VLOOKUP(Rebalance!$D$35,$F$2:$G$48,2,FALSE)+ROW()-2))=Rebalance!$D$35,INDIRECT(\"a\" & (VLOOKUP(Rebalance!$D$35,$F$2:$G$48,2,FALSE)+ROW()-2)),\"\")","v":{"$error":"#N/A"}},{"$f":"IF(INDIRECT(\"c\" & (VLOOKUP(Rebalance!$D$36,$F$2:$G$48,2,FALSE)+ROW()-2))=Rebalance!$D$36,INDIRECT(\"a\" & (VLOOKUP(Rebalance!$D$36,$F$2:$G$48,2,FALSE)+ROW()-2)),\"\")","v":{"$error":"#N/A"}},{"$f":"IF(INDIRECT(\"c\" & (VLOOKUP(Rebalance!$D$37,$F$2:$G$48,2,FALSE)+ROW()-2))=Rebalance!$D$37,INDIRECT(\"a\" & (VLOOKUP(Rebalance!$D$37,$F$2:$G$48,2,FALSE)+ROW()-2)),\"\")","v":{"$error":"#N/A"}},{"$f":"IF(INDIRECT(\"c\" & (VLOOKUP(Rebalance!$D$38,$F$2:$G$48,2,FALSE)+ROW()-2))=Rebalance!$D$38,INDIRECT(\"a\" & (VLOOKUP(Rebalance!$D$38,$F$2:$G$48,2,FALSE)+ROW()-2)),\"\")","v":{"$error":"#N/A"}},{"$f":"IF(INDIRECT(\"c\" & (VLOOKUP(Rebalance!$D$39,$F$2:$G$48,2,FALSE)+ROW()-2))=Rebalance!$D$39,INDIRECT(\"a\" & (VLOOKUP(Rebalance!$D$39,$F$2:$G$48,2,FALSE)+ROW()-2)),\"\")","v":{"$error":"#N/A"}},{"$f":"IF(INDIRECT(\"c\" & (VLOOKUP(Rebalance!$D$40,$F$2:$G$48,2,FALSE)+ROW()-2))=Rebalance!$D$40,INDIRECT(\"a\" & (VLOOKUP(Rebalance!$D$40,$F$2:$G$48,2,FALSE)+ROW()-2)),\"\")","v":{"$error":"#N/A"}},{"$f":"IF(INDIRECT(\"c\" & (VLOOKUP(Rebalance!$D$52,$F$2:$G$48,2,FALSE)+ROW()-2))=Rebalance!$D$52,INDIRECT(\"a\" & (VLOOKUP(Rebalance!$D$52,$F$2:$G$48,2,FALSE)+ROW()-2)),\"\")","v":{"$error":"#N/A"}},{"$f":"IF(INDIRECT(\"c\" & (VLOOKUP(Rebalance!$D$53,$F$2:$G$48,2,FALSE)+ROW()-2))=Rebalance!$D$53,INDIRECT(\"a\" & (VLOOKUP(Rebalance!$D$53,$F$2:$G$48,2,FALSE)+ROW()-2)),\"\")","v":{"$error":"#N/A"}},{"$f":"IF(INDIRECT(\"c\" & (VLOOKUP(Rebalance!$D$54,$F$2:$G$48,2,FALSE)+ROW()-2))=Rebalance!$D$54,INDIRECT(\"a\" & (VLOOKUP(Rebalance!$D$54,$F$2:$G$48,2,FALSE)+ROW()-2)),\"\")","v":{"$error":"#N/A"}},{"$f":"IF(INDIRECT(\"c\" & (VLOOKUP(Rebalance!$D$55,$F$2:$G$48,2,FALSE)+ROW()-2))=Rebalance!$D$55,INDIRECT(\"a\" & (VLOOKUP(Rebalance!$D$55,$F$2:$G$48,2,FALSE)+ROW()-2)),\"\")","v":{"$error":"#N/A"}},{"$f":"IF(INDIRECT(\"c\" & (VLOOKUP(Rebalance!$D$56,$F$2:$G$48,2,FALSE)+ROW()-2))=Rebalance!$D$56,INDIRECT(\"a\" & (VLOOKUP(Rebalance!$D$56,$F$2:$G$48,2,FALSE)+ROW()-2)),\"\")","v":{"$error":"#N/A"}},{"$f":"IF(INDIRECT(\"c\" & (VLOOKUP(Rebalance!$D$57,$F$2:$G$48,2,FALSE)+ROW()-2))=Rebalance!$D$57,INDIRECT(\"a\" & (VLOOKUP(Rebalance!$D$57,$F$2:$G$48,2,FALSE)+ROW()-2)),\"\")","v":{"$error":"#N/A"}},{"$f":"IF(INDIRECT(\"c\" & (VLOOKUP(Rebalance!$D$58,$F$2:$G$48,2,FALSE)+ROW()-2))=Rebalance!$D$58,INDIRECT(\"a\" & (VLOOKUP(Rebalance!$D$58,$F$2:$G$48,2,FALSE)+ROW()-2)),\"\")","v":{"$error":"#N/A"}},{"$f":"IF(INDIRECT(\"c\" & (VLOOKUP(Rebalance!$D$59,$F$2:$G$48,2,FALSE)+ROW()-2))=Rebalance!$D$59,INDIRECT(\"a\" & (VLOOKUP(Rebalance!$D$59,$F$2:$G$48,2,FALSE)+ROW()-2)),\"\")","v":{"$error":"#N/A"}},{"$f":"IF(INDIRECT(\"c\" & (VLOOKUP(Rebalance!$D$60,$F$2:$G$48,2,FALSE)+ROW()-2))=Rebalance!$D$60,INDIRECT(\"a\" & (VLOOKUP(Rebalance!$D$60,$F$2:$G$48,2,FALSE)+ROW()-2)),\"\")","v":{"$error":"#N/A"}},{"$f":"IF(INDIRECT(\"c\" & (VLOOKUP(Rebalance!$D$61,$F$2:$G$48,2,FALSE)+ROW()-2))=Rebalance!$D$61,INDIRECT(\"a\" & (VLOOKUP(Rebalance!$D$61,$F$2:$G$48,2,FALSE)+ROW()-2)),\"\")","v":{"$error":"#N/A"}},{"$f":"IF(INDIRECT(\"c\" & (VLOOKUP(Rebalance!$D$62,$F$2:$G$48,2,FALSE)+ROW()-2))=Rebalance!$D$62,INDIRECT(\"a\" & (VLOOKUP(Rebalance!$D$62,$F$2:$G$48,2,FALSE)+ROW()-2)),\"\")","v":{"$error":"#N/A"}},{"$f":"IF(INDIRECT(\"c\" & (VLOOKUP(Rebalance!$D$63,$F$2:$G$48,2,FALSE)+ROW()-2))=Rebalance!$D$63,INDIRECT(\"a\" & (VLOOKUP(Rebalance!$D$63,$F$2:$G$48,2,FALSE)+ROW()-2)),\"\")","v":{"$error":"#N/A"}},{"$f":"IF(INDIRECT(\"c\" & (VLOOKUP(Rebalance!$D$64,$F$2:$G$48,2,FALSE)+ROW()-2))=Rebalance!$D$64,INDIRECT(\"a\" & (VLOOKUP(Rebalance!$D$64,$F$2:$G$48,2,FALSE)+ROW()-2)),\"\")","v":{"$error":"#N/A"}},{"$f":"IF(INDIRECT(\"c\" & (VLOOKUP(Rebalance!$D$65,$F$2:$G$48,2,FALSE)+ROW()-2))=Rebalance!$D$65,INDIRECT(\"a\" & (VLOOKUP(Rebalance!$D$65,$F$2:$G$48,2,FALSE)+ROW()-2)),\"\")","v":{"$error":"#N/A"}},{"$f":"IF(INDIRECT(\"c\" & (VLOOKUP(Rebalance!$D$66,$F$2:$G$48,2,FALSE)+ROW()-2))=Rebalance!$D$66,INDIRECT(\"a\" & (VLOOKUP(Rebalance!$D$66,$F$2:$G$48,2,FALSE)+ROW()-2)),\"\")","v":{"$error":"#N/A"}}]
[null,null,null,{"$f":"ROW()","v":628},null,null,{"$f":"VLOOKUP(F628,$C$2:$D$599,2,FALSE)","v":{"$error":"#N/A"}},{"$f":"IF(INDIRECT(\"c\" & (VLOOKUP(Rebalance!$D$26,$F$2:$G$48,2,FALSE)+ROW()-2))=Rebalance!$D$26,INDIRECT(\"a\" & (VLOOKUP(Rebalance!$D$26,$F$2:$G$48,2,FALSE)+ROW()-2)),\"\")","v":{"$error":"#N/A"}},{"$f":"IF(INDIRECT(\"c\" & (VLOOKUP(Rebalance!$D$27,$F$2:$G$48,2,FALSE)+ROW()-2))=Rebalance!$D$27,INDIRECT(\"a\" & (VLOOKUP(Rebalance!$D$27,$F$2:$G$48,2,FALSE)+ROW()-2)),\"\")","v":{"$error":"#N/A"}},{"$f":"IF(INDIRECT(\"c\" & (VLOOKUP(Rebalance!$D$28,$F$2:$G$48,2,FALSE)+ROW()-2))=Rebalance!$D$28,INDIRECT(\"a\" & (VLOOKUP(Rebalance!$D$28,$F$2:$G$48,2,FALSE)+ROW()-2)),\"\")","v":{"$error":"#N/A"}},{"$f":"IF(INDIRECT(\"c\" & (VLOOKUP(Rebalance!$D$29,$F$2:$G$48,2,FALSE)+ROW()-2))=Rebalance!$D$29,INDIRECT(\"a\" & (VLOOKUP(Rebalance!$D$29,$F$2:$G$48,2,FALSE)+ROW()-2)),\"\")","v":{"$error":"#N/A"}},{"$f":"IF(INDIRECT(\"c\" & (VLOOKUP(Rebalance!$D$30,$F$2:$G$48,2,FALSE)+ROW()-2))=Rebalance!$D$30,INDIRECT(\"a\" & (VLOOKUP(Rebalance!$D$30,$F$2:$G$48,2,FALSE)+ROW()-2)),\"\")","v":{"$error":"#N/A"}},{"$f":"IF(INDIRECT(\"c\" & (VLOOKUP(Rebalance!$D$31,$F$2:$G$48,2,FALSE)+ROW()-2))=Rebalance!$D$31,INDIRECT(\"a\" & (VLOOKUP(Rebalance!$D$31,$F$2:$G$48,2,FALSE)+ROW()-2)),\"\")","v":{"$error":"#N/A"}},{"$f":"IF(INDIRECT(\"c\" & (VLOOKUP(Rebalance!$D$32,$F$2:$G$48,2,FALSE)+ROW()-2))=Rebalance!$D$32,INDIRECT(\"a\" & (VLOOKUP(Rebalance!$D$32,$F$2:$G$48,2,FALSE)+ROW()-2)),\"\")","v":{"$error":"#N/A"}},{"$f":"IF(INDIRECT(\"c\" & (VLOOKUP(Rebalance!$D$33,$F$2:$G$48,2,FALSE)+ROW()-2))=Rebalance!$D$33,INDIRECT(\"a\" & (VLOOKUP(Rebalance!$D$33,$F$2:$G$48,2,FALSE)+ROW()-2)),\"\")","v":{"$error":"#N/A"}},{"$f":"IF(INDIRECT(\"c\" & (VLOOKUP(Rebalance!$D$34,$F$2:$G$48,2,FALSE)+ROW()-2))=Rebalance!$D$34,INDIRECT(\"a\" & (VLOOKUP(Rebalance!$D$34,$F$2:$G$48,2,FALSE)+ROW()-2)),\"\")","v":{"$error":"#N/A"}},{"$f":"IF(INDIRECT(\"c\" & (VLOOKUP(Rebalance!$D$35,$F$2:$G$48,2,FALSE)+ROW()-2))=Rebalance!$D$35,INDIRECT(\"a\" & (VLOOKUP(Rebalance!$D$35,$F$2:$G$48,2,FALSE)+ROW()-2)),\"\")","v":{"$error":"#N/A"}},{"$f":"IF(INDIRECT(\"c\" & (VLOOKUP(Rebalance!$D$36,$F$2:$G$48,2,FALSE)+ROW()-2))=Rebalance!$D$36,INDIRECT(\"a\" & (VLOOKUP(Rebalance!$D$36,$F$2:$G$48,2,FALSE)+ROW()-2)),\"\")","v":{"$error":"#N/A"}},{"$f":"IF(INDIRECT(\"c\" & (VLOOKUP(Rebalance!$D$37,$F$2:$G$48,2,FALSE)+ROW()-2))=Rebalance!$D$37,INDIRECT(\"a\" & (VLOOKUP(Rebalance!$D$37,$F$2:$G$48,2,FALSE)+ROW()-2)),\"\")","v":{"$error":"#N/A"}},{"$f":"IF(INDIRECT(\"c\" & (VLOOKUP(Rebalance!$D$38,$F$2:$G$48,2,FALSE)+ROW()-2))=Rebalance!$D$38,INDIRECT(\"a\" & (VLOOKUP(Rebalance!$D$38,$F$2:$G$48,2,FALSE)+ROW()-2)),\"\")","v":{"$error":"#N/A"}},{"$f":"IF(INDIRECT(\"c\" & (VLOOKUP(Rebalance!$D$39,$F$2:$G$48,2,FALSE)+ROW()-2))=Rebalance!$D$39,INDIRECT(\"a\" & (VLOOKUP(Rebalance!$D$39,$F$2:$G$48,2,FALSE)+ROW()-2)),\"\")","v":{"$error":"#N/A"}},{"$f":"IF(INDIRECT(\"c\" & (VLOOKUP(Rebalance!$D$40,$F$2:$G$48,2,FALSE)+ROW()-2))=Rebalance!$D$40,INDIRECT(\"a\" & (VLOOKUP(Rebalance!$D$40,$F$2:$G$48,2,FALSE)+ROW()-2)),\"\")","v":{"$error":"#N/A"}},{"$f":"IF(INDIRECT(\"c\" & (VLOOKUP(Rebalance!$D$52,$F$2:$G$48,2,FALSE)+ROW()-2))=Rebalance!$D$52,INDIRECT(\"a\" & (VLOOKUP(Rebalance!$D$52,$F$2:$G$48,2,FALSE)+ROW()-2)),\"\")","v":{"$error":"#N/A"}},{"$f":"IF(INDIRECT(\"c\" & (VLOOKUP(Rebalance!$D$53,$F$2:$G$48,2,FALSE)+ROW()-2))=Rebalance!$D$53,INDIRECT(\"a\" & (VLOOKUP(Rebalance!$D$53,$F$2:$G$48,2,FALSE)+ROW()-2)),\"\")","v":{"$error":"#N/A"}},{"$f":"IF(INDIRECT(\"c\" & (VLOOKUP(Rebalance!$D$54,$F$2:$G$48,2,FALSE)+ROW()-2))=Rebalance!$D$54,INDIRECT(\"a\" & (VLOOKUP(Rebalance!$D$54,$F$2:$G$48,2,FALSE)+ROW()-2)),\"\")","v":{"$error":"#N/A"}},{"$f":"IF(INDIRECT(\"c\" & (VLOOKUP(Rebalance!$D$55,$F$2:$G$48,2,FALSE)+ROW()-2))=Rebalance!$D$55,INDIRECT(\"a\" & (VLOOKUP(Rebalance!$D$55,$F$2:$G$48,2,FALSE)+ROW()-2)),\"\")","v":{"$error":"#N/A"}},{"$f":"IF(INDIRECT(\"c\" & (VLOOKUP(Rebalance!$D$56,$F$2:$G$48,2,FALSE)+ROW()-2))=Rebalance!$D$56,INDIRECT(\"a\" & (VLOOKUP(Rebalance!$D$56,$F$2:$G$48,2,FALSE)+ROW()-2)),\"\")","v":{"$error":"#N/A"}},{"$f":"IF(INDIRECT(\"c\" & (VLOOKUP(Rebalance!$D$57,$F$2:$G$48,2,FALSE)+ROW()-2))=Rebalance!$D$57,INDIRECT(\"a\" & (VLOOKUP(Rebalance!$D$57,$F$2:$G$48,2,FALSE)+ROW()-2)),\"\")","v":{"$error":"#N/A"}},{"$f":"IF(INDIRECT(\"c\" & (VLOOKUP(Rebalance!$D$58,$F$2:$G$48,2,FALSE)+ROW()-2))=Rebalance!$D$58,INDIRECT(\"a\" & (VLOOKUP(Rebalance!$D$58,$F$2:$G$48,2,FALSE)+ROW()-2)),\"\")","v":{"$error":"#N/A"}},{"$f":"IF(INDIRECT(\"c\" & (VLOOKUP(Rebalance!$D$59,$F$2:$G$48,2,FALSE)+ROW()-2))=Rebalance!$D$59,INDIRECT(\"a\" & (VLOOKUP(Rebalance!$D$59,$F$2:$G$48,2,FALSE)+ROW()-2)),\"\")","v":{"$error":"#N/A"}},{"$f":"IF(INDIRECT(\"c\" & (VLOOKUP(Rebalance!$D$60,$F$2:$G$48,2,FALSE)+ROW()-2))=Rebalance!$D$60,INDIRECT(\"a\" & (VLOOKUP(Rebalance!$D$60,$F$2:$G$48,2,FALSE)+ROW()-2)),\"\")","v":{"$error":"#N/A"}},{"$f":"IF(INDIRECT(\"c\" & (VLOOKUP(Rebalance!$D$61,$F$2:$G$48,2,FALSE)+ROW()-2))=Rebalance!$D$61,INDIRECT(\"a\" & (VLOOKUP(Rebalance!$D$61,$F$2:$G$48,2,FALSE)+ROW()-2)),\"\")","v":{"$error":"#N/A"}},{"$f":"IF(INDIRECT(\"c\" & (VLOOKUP(Rebalance!$D$62,$F$2:$G$48,2,FALSE)+ROW()-2))=Rebalance!$D$62,INDIRECT(\"a\" & (VLOOKUP(Rebalance!$D$62,$F$2:$G$48,2,FALSE)+ROW()-2)),\"\")","v":{"$error":"#N/A"}},{"$f":"IF(INDIRECT(\"c\" & (VLOOKUP(Rebalance!$D$63,$F$2:$G$48,2,FALSE)+ROW()-2))=Rebalance!$D$63,INDIRECT(\"a\" & (VLOOKUP(Rebalance!$D$63,$F$2:$G$48,2,FALSE)+ROW()-2)),\"\")","v":{"$error":"#N/A"}},{"$f":"IF(INDIRECT(\"c\" & (VLOOKUP(Rebalance!$D$64,$F$2:$G$48,2,FALSE)+ROW()-2))=Rebalance!$D$64,INDIRECT(\"a\" & (VLOOKUP(Rebalance!$D$64,$F$2:$G$48,2,FALSE)+ROW()-2)),\"\")","v":{"$error":"#N/A"}},{"$f":"IF(INDIRECT(\"c\" & (VLOOKUP(Rebalance!$D$65,$F$2:$G$48,2,FALSE)+ROW()-2))=Rebalance!$D$65,INDIRECT(\"a\" & (VLOOKUP(Rebalance!$D$65,$F$2:$G$48,2,FALSE)+ROW()-2)),\"\")","v":{"$error":"#N/A"}},{"$f":"IF(INDIRECT(\"c\" & (VLOOKUP(Rebalance!$D$66,$F$2:$G$48,2,FALSE)+ROW()-2))=Rebalance!$D$66,INDIRECT(\"a\" & (VLOOKUP(Rebalance!$D$66,$F$2:$G$48,2,FALSE)+ROW()-2)),\"\")","v":{"$error":"#N/A"}}]
[null,null,null,{"$f":"ROW()","v":629},null,null,{"$f":"VLOOKUP(F629,$C$2:$D$599,2,FALSE)","v":{"$error":"#N/A"}},{"$f":"IF(INDIRECT(\"c\" & (VLOOKUP(Rebalance!$D$26,$F$2:$G$48,2,FALSE)+ROW()-2))=Rebalance!$D$26,INDIRECT(\"a\" & (VLOOKUP(Rebalance!$D$26,$F$2:$G$48,2,FALSE)+ROW()-2)),\"\")","v":{"$error":"#N/A"}},{"$f":"IF(INDIRECT(\"c\" & (VLOOKUP(Rebalance!$D$27,$F$2:$G$48,2,FALSE)+ROW()-2))=Rebalance!$D$27,INDIRECT(\"a\" & (VLOOKUP(Rebalance!$D$27,$F$2:$G$48,2,FALSE)+ROW()-2)),\"\")","v":{"$error":"#N/A"}},{"$f":"IF(INDIRECT(\"c\" & (VLOOKUP(Rebalance!$D$28,$F$2:$G$48,2,FALSE)+ROW()-2))=Rebalance!$D$28,INDIRECT(\"a\" & (VLOOKUP(Rebalance!$D$28,$F$2:$G$48,2,FALSE)+ROW()-2)),\"\")","v":{"$error":"#N/A"}},{"$f":"IF(INDIRECT(\"c\" & (VLOOKUP(Rebalance!$D$29,$F$2:$G$48,2,FALSE)+ROW()-2))=Rebalance!$D$29,INDIRECT(\"a\" & (VLOOKUP(Rebalance!$D$29,$F$2:$G$48,2,FALSE)+ROW()-2)),\"\")","v":{"$error":"#N/A"}},{"$f":"IF(INDIRECT(\"c\" & (VLOOKUP(Rebalance!$D$30,$F$2:$G$48,2,FALSE)+ROW()-2))=Rebalance!$D$30,INDIRECT(\"a\" & (VLOOKUP(Rebalance!$D$30,$F$2:$G$48,2,FALSE)+ROW()-2)),\"\")","v":{"$error":"#N/A"}},{"$f":"IF(INDIRECT(\"c\" & (VLOOKUP(Rebalance!$D$31,$F$2:$G$48,2,FALSE)+ROW()-2))=Rebalance!$D$31,INDIRECT(\"a\" & (VLOOKUP(Rebalance!$D$31,$F$2:$G$48,2,FALSE)+ROW()-2)),\"\")","v":{"$error":"#N/A"}},{"$f":"IF(INDIRECT(\"c\" & (VLOOKUP(Rebalance!$D$32,$F$2:$G$48,2,FALSE)+ROW()-2))=Rebalance!$D$32,INDIRECT(\"a\" & (VLOOKUP(Rebalance!$D$32,$F$2:$G$48,2,FALSE)+ROW()-2)),\"\")","v":{"$error":"#N/A"}},{"$f":"IF(INDIRECT(\"c\" & (VLOOKUP(Rebalance!$D$33,$F$2:$G$48,2,FALSE)+ROW()-2))=Rebalance!$D$33,INDIRECT(\"a\" & (VLOOKUP(Rebalance!$D$33,$F$2:$G$48,2,FALSE)+ROW()-2)),\"\")","v":{"$error":"#N/A"}},{"$f":"IF(INDIRECT(\"c\" & (VLOOKUP(Rebalance!$D$34,$F$2:$G$48,2,FALSE)+ROW()-2))=Rebalance!$D$34,INDIRECT(\"a\" & (VLOOKUP(Rebalance!$D$34,$F$2:$G$48,2,FALSE)+ROW()-2)),\"\")","v":{"$error":"#N/A"}},{"$f":"IF(INDIRECT(\"c\" & (VLOOKUP(Rebalance!$D$35,$F$2:$G$48,2,FALSE)+ROW()-2))=Rebalance!$D$35,INDIRECT(\"a\" & (VLOOKUP(Rebalance!$D$35,$F$2:$G$48,2,FALSE)+ROW()-2)),\"\")","v":{"$error":"#N/A"}},{"$f":"IF(INDIRECT(\"c\" & (VLOOKUP(Rebalance!$D$36,$F$2:$G$48,2,FALSE)+ROW()-2))=Rebalance!$D$36,INDIRECT(\"a\" & (VLOOKUP(Rebalance!$D$36,$F$2:$G$48,2,FALSE)+ROW()-2)),\"\")","v":{"$error":"#N/A"}},{"$f":"IF(INDIRECT(\"c\" & (VLOOKUP(Rebalance!$D$37,$F$2:$G$48,2,FALSE)+ROW()-2))=Rebalance!$D$37,INDIRECT(\"a\" & (VLOOKUP(Rebalance!$D$37,$F$2:$G$48,2,FALSE)+ROW()-2)),\"\")","v":{"$error":"#N/A"}},{"$f":"IF(INDIRECT(\"c\" & (VLOOKUP(Rebalance!$D$38,$F$2:$G$48,2,FALSE)+ROW()-2))=Rebalance!$D$38,INDIRECT(\"a\" & (VLOOKUP(Rebalance!$D$38,$F$2:$G$48,2,FALSE)+ROW()-2)),\"\")","v":{"$error":"#N/A"}},{"$f":"IF(INDIRECT(\"c\" & (VLOOKUP(Rebalance!$D$39,$F$2:$G$48,2,FALSE)+ROW()-2))=Rebalance!$D$39,INDIRECT(\"a\" & (VLOOKUP(Rebalance!$D$39,$F$2:$G$48,2,FALSE)+ROW()-2)),\"\")","v":{"$error":"#N/A"}},{"$f":"IF(INDIRECT(\"c\" & (VLOOKUP(Rebalance!$D$40,$F$2:$G$48,2,FALSE)+ROW()-2))=Rebalance!$D$40,INDIRECT(\"a\" & (VLOOKUP(Rebalance!$D$40,$F$2:$G$48,2,FALSE)+ROW()-2)),\"\")","v":{"$error":"#N/A"}},{"$f":"IF(INDIRECT(\"c\" & (VLOOKUP(Rebalance!$D$52,$F$2:$G$48,2,FALSE)+ROW()-2))=Rebalance!$D$52,INDIRECT(\"a\" & (VLOOKUP(Rebalance!$D$52,$F$2:$G$48,2,FALSE)+ROW()-2)),\"\")","v":{"$error":"#N/A"}},{"$f":"IF(INDIRECT(\"c\" & (VLOOKUP(Rebalance!$D$53,$F$2:$G$48,2,FALSE)+ROW()-2))=Rebalance!$D$53,INDIRECT(\"a\" & (VLOOKUP(Rebalance!$D$53,$F$2:$G$48,2,FALSE)+ROW()-2)),\"\")","v":{"$error":"#N/A"}},{"$f":"IF(INDIRECT(\"c\" & (VLOOKUP(Rebalance!$D$54,$F$2:$G$48,2,FALSE)+ROW()-2))=Rebalance!$D$54,INDIRECT(\"a\" & (VLOOKUP(Rebalance!$D$54,$F$2:$G$48,2,FALSE)+ROW()-2)),\"\")","v":{"$error":"#N/A"}},{"$f":"IF(INDIRECT(\"c\" & (VLOOKUP(Rebalance!$D$55,$F$2:$G$48,2,FALSE)+ROW()-2))=Rebalance!$D$55,INDIRECT(\"a\" & (VLOOKUP(Rebalance!$D$55,$F$2:$G$48,2,FALSE)+ROW()-2)),\"\")","v":{"$error":"#N/A"}},{"$f":"IF(INDIRECT(\"c\" & (VLOOKUP(Rebalance!$D$56,$F$2:$G$48,2,FALSE)+ROW()-2))=Rebalance!$D$56,INDIRECT(\"a\" & (VLOOKUP(Rebalance!$D$56,$F$2:$G$48,2,FALSE)+ROW()-2)),\"\")","v":{"$error":"#N/A"}},{"$f":"IF(INDIRECT(\"c\" & (VLOOKUP(Rebalance!$D$57,$F$2:$G$48,2,FALSE)+ROW()-2))=Rebalance!$D$57,INDIRECT(\"a\" & (VLOOKUP(Rebalance!$D$57,$F$2:$G$48,2,FALSE)+ROW()-2)),\"\")","v":{"$error":"#N/A"}},{"$f":"IF(INDIRECT(\"c\" & (VLOOKUP(Rebalance!$D$58,$F$2:$G$48,2,FALSE)+ROW()-2))=Rebalance!$D$58,INDIRECT(\"a\" & (VLOOKUP(Rebalance!$D$58,$F$2:$G$48,2,FALSE)+ROW()-2)),\"\")","v":{"$error":"#N/A"}},{"$f":"IF(INDIRECT(\"c\" & (VLOOKUP(Rebalance!$D$59,$F$2:$G$48,2,FALSE)+ROW()-2))=Rebalance!$D$59,INDIRECT(\"a\" & (VLOOKUP(Rebalance!$D$59,$F$2:$G$48,2,FALSE)+ROW()-2)),\"\")","v":{"$error":"#N/A"}},{"$f":"IF(INDIRECT(\"c\" & (VLOOKUP(Rebalance!$D$60,$F$2:$G$48,2,FALSE)+ROW()-2))=Rebalance!$D$60,INDIRECT(\"a\" & (VLOOKUP(Rebalance!$D$60,$F$2:$G$48,2,FALSE)+ROW()-2)),\"\")","v":{"$error":"#N/A"}},{"$f":"IF(INDIRECT(\"c\" & (VLOOKUP(Rebalance!$D$61,$F$2:$G$48,2,FALSE)+ROW()-2))=Rebalance!$D$61,INDIRECT(\"a\" & (VLOOKUP(Rebalance!$D$61,$F$2:$G$48,2,FALSE)+ROW()-2)),\"\")","v":{"$error":"#N/A"}},{"$f":"IF(INDIRECT(\"c\" & (VLOOKUP(Rebalance!$D$62,$F$2:$G$48,2,FALSE)+ROW()-2))=Rebalance!$D$62,INDIRECT(\"a\" & (VLOOKUP(Rebalance!$D$62,$F$2:$G$48,2,FALSE)+ROW()-2)),\"\")","v":{"$error":"#N/A"}},{"$f":"IF(INDIRECT(\"c\" & (VLOOKUP(Rebalance!$D$63,$F$2:$G$48,2,FALSE)+ROW()-2))=Rebalance!$D$63,INDIRECT(\"a\" & (VLOOKUP(Rebalance!$D$63,$F$2:$G$48,2,FALSE)+ROW()-2)),\"\")","v":{"$error":"#N/A"}},{"$f":"IF(INDIRECT(\"c\" & (VLOOKUP(Rebalance!$D$64,$F$2:$G$48,2,FALSE)+ROW()-2))=Rebalance!$D$64,INDIRECT(\"a\" & (VLOOKUP(Rebalance!$D$64,$F$2:$G$48,2,FALSE)+ROW()-2)),\"\")","v":{"$error":"#N/A"}},{"$f":"IF(INDIRECT(\"c\" & (VLOOKUP(Rebalance!$D$65,$F$2:$G$48,2,FALSE)+ROW()-2))=Rebalance!$D$65,INDIRECT(\"a\" & (VLOOKUP(Rebalance!$D$65,$F$2:$G$48,2,FALSE)+ROW()-2)),\"\")","v":{"$error":"#N/A"}},{"$f":"IF(INDIRECT(\"c\" & (VLOOKUP(Rebalance!$D$66,$F$2:$G$48,2,FALSE)+ROW()-2))=Rebalance!$D$66,INDIRECT(\"a\" & (VLOOKUP(Rebalance!$D$66,$F$2:$G$48,2,FALSE)+ROW()-2)),\"\")","v":{"$error":"#N/A"}}]
[null,null,null,{"$f":"ROW()","v":630},null,null,{"$f":"VLOOKUP(F630,$C$2:$D$599,2,FALSE)","v":{"$error":"#N/A"}},{"$f":"IF(INDIRECT(\"c\" & (VLOOKUP(Rebalance!$D$26,$F$2:$G$48,2,FALSE)+ROW()-2))=Rebalance!$D$26,INDIRECT(\"a\" & (VLOOKUP(Rebalance!$D$26,$F$2:$G$48,2,FALSE)+ROW()-2)),\"\")","v":{"$error":"#N/A"}},{"$f":"IF(INDIRECT(\"c\" & (VLOOKUP(Rebalance!$D$27,$F$2:$G$48,2,FALSE)+ROW()-2))=Rebalance!$D$27,INDIRECT(\"a\" & (VLOOKUP(Rebalance!$D$27,$F$2:$G$48,2,FALSE)+ROW()-2)),\"\")","v":{"$error":"#N/A"}},{"$f":"IF(INDIRECT(\"c\" & (VLOOKUP(Rebalance!$D$28,$F$2:$G$48,2,FALSE)+ROW()-2))=Rebalance!$D$28,INDIRECT(\"a\" & (VLOOKUP(Rebalance!$D$28,$F$2:$G$48,2,FALSE)+ROW()-2)),\"\")","v":{"$error":"#N/A"}},{"$f":"IF(INDIRECT(\"c\" & (VLOOKUP(Rebalance!$D$29,$F$2:$G$48,2,FALSE)+ROW()-2))=Rebalance!$D$29,INDIRECT(\"a\" & (VLOOKUP(Rebalance!$D$29,$F$2:$G$48,2,FALSE)+ROW()-2)),\"\")","v":{"$error":"#N/A"}},{"$f":"IF(INDIRECT(\"c\" & (VLOOKUP(Rebalance!$D$30,$F$2:$G$48,2,FALSE)+ROW()-2))=Rebalance!$D$30,INDIRECT(\"a\" & (VLOOKUP(Rebalance!$D$30,$F$2:$G$48,2,FALSE)+ROW()-2)),\"\")","v":{"$error":"#N/A"}},{"$f":"IF(INDIRECT(\"c\" & (VLOOKUP(Rebalance!$D$31,$F$2:$G$48,2,FALSE)+ROW()-2))=Rebalance!$D$31,INDIRECT(\"a\" & (VLOOKUP(Rebalance!$D$31,$F$2:$G$48,2,FALSE)+ROW()-2)),\"\")","v":{"$error":"#N/A"}},{"$f":"IF(INDIRECT(\"c\" & (VLOOKUP(Rebalance!$D$32,$F$2:$G$48,2,FALSE)+ROW()-2))=Rebalance!$D$32,INDIRECT(\"a\" & (VLOOKUP(Rebalance!$D$32,$F$2:$G$48,2,FALSE)+ROW()-2)),\"\")","v":{"$error":"#N/A"}},{"$f":"IF(INDIRECT(\"c\" & (VLOOKUP(Rebalance!$D$33,$F$2:$G$48,2,FALSE)+ROW()-2))=Rebalance!$D$33,INDIRECT(\"a\" & (VLOOKUP(Rebalance!$D$33,$F$2:$G$48,2,FALSE)+ROW()-2)),\"\")","v":{"$error":"#N/A"}},{"$f":"IF(INDIRECT(\"c\" & (VLOOKUP(Rebalance!$D$34,$F$2:$G$48,2,FALSE)+ROW()-2))=Rebalance!$D$34,INDIRECT(\"a\" & (VLOOKUP(Rebalance!$D$34,$F$2:$G$48,2,FALSE)+ROW()-2)),\"\")","v":{"$error":"#N/A"}},{"$f":"IF(INDIRECT(\"c\" & (VLOOKUP(Rebalance!$D$35,$F$2:$G$48,2,FALSE)+ROW()-2))=Rebalance!$D$35,INDIRECT(\"a\" & (VLOOKUP(Rebalance!$D$35,$F$2:$G$48,2,FALSE)+ROW()-2)),\"\")","v":{"$error":"#N/A"}},{"$f":"IF(INDIRECT(\"c\" & (VLOOKUP(Rebalance!$D$36,$F$2:$G$48,2,FALSE)+ROW()-2))=Rebalance!$D$36,INDIRECT(\"a\" & (VLOOKUP(Rebalance!$D$36,$F$2:$G$48,2,FALSE)+ROW()-2)),\"\")","v":{"$error":"#N/A"}},{"$f":"IF(INDIRECT(\"c\" & (VLOOKUP(Rebalance!$D$37,$F$2:$G$48,2,FALSE)+ROW()-2))=Rebalance!$D$37,INDIRECT(\"a\" & (VLOOKUP(Rebalance!$D$37,$F$2:$G$48,2,FALSE)+ROW()-2)),\"\")","v":{"$error":"#N/A"}},{"$f":"IF(INDIRECT(\"c\" & (VLOOKUP(Rebalance!$D$38,$F$2:$G$48,2,FALSE)+ROW()-2))=Rebalance!$D$38,INDIRECT(\"a\" & (VLOOKUP(Rebalance!$D$38,$F$2:$G$48,2,FALSE)+ROW()-2)),\"\")","v":{"$error":"#N/A"}},{"$f":"IF(INDIRECT(\"c\" & (VLOOKUP(Rebalance!$D$39,$F$2:$G$48,2,FALSE)+ROW()-2))=Rebalance!$D$39,INDIRECT(\"a\" & (VLOOKUP(Rebalance!$D$39,$F$2:$G$48,2,FALSE)+ROW()-2)),\"\")","v":{"$error":"#N/A"}},{"$f":"IF(INDIRECT(\"c\" & (VLOOKUP(Rebalance!$D$40,$F$2:$G$48,2,FALSE)+ROW()-2))=Rebalance!$D$40,INDIRECT(\"a\" & (VLOOKUP(Rebalance!$D$40,$F$2:$G$48,2,FALSE)+ROW()-2)),\"\")","v":{"$error":"#N/A"}},{"$f":"IF(INDIRECT(\"c\" & (VLOOKUP(Rebalance!$D$52,$F$2:$G$48,2,FALSE)+ROW()-2))=Rebalance!$D$52,INDIRECT(\"a\" & (VLOOKUP(Rebalance!$D$52,$F$2:$G$48,2,FALSE)+ROW()-2)),\"\")","v":{"$error":"#N/A"}},{"$f":"IF(INDIRECT(\"c\" & (VLOOKUP(Rebalance!$D$53,$F$2:$G$48,2,FALSE)+ROW()-2))=Rebalance!$D$53,INDIRECT(\"a\" & (VLOOKUP(Rebalance!$D$53,$F$2:$G$48,2,FALSE)+ROW()-2)),\"\")","v":{"$error":"#N/A"}},{"$f":"IF(INDIRECT(\"c\" & (VLOOKUP(Rebalance!$D$54,$F$2:$G$48,2,FALSE)+ROW()-2))=Rebalance!$D$54,INDIRECT(\"a\" & (VLOOKUP(Rebalance!$D$54,$F$2:$G$48,2,FALSE)+ROW()-2)),\"\")","v":{"$error":"#N/A"}},{"$f":"IF(INDIRECT(\"c\" & (VLOOKUP(Rebalance!$D$55,$F$2:$G$48,2,FALSE)+ROW()-2))=Rebalance!$D$55,INDIRECT(\"a\" & (VLOOKUP(Rebalance!$D$55,$F$2:$G$48,2,FALSE)+ROW()-2)),\"\")","v":{"$error":"#N/A"}},{"$f":"IF(INDIRECT(\"c\" & (VLOOKUP(Rebalance!$D$56,$F$2:$G$48,2,FALSE)+ROW()-2))=Rebalance!$D$56,INDIRECT(\"a\" & (VLOOKUP(Rebalance!$D$56,$F$2:$G$48,2,FALSE)+ROW()-2)),\"\")","v":{"$error":"#N/A"}},{"$f":"IF(INDIRECT(\"c\" & (VLOOKUP(Rebalance!$D$57,$F$2:$G$48,2,FALSE)+ROW()-2))=Rebalance!$D$57,INDIRECT(\"a\" & (VLOOKUP(Rebalance!$D$57,$F$2:$G$48,2,FALSE)+ROW()-2)),\"\")","v":{"$error":"#N/A"}},{"$f":"IF(INDIRECT(\"c\" & (VLOOKUP(Rebalance!$D$58,$F$2:$G$48,2,FALSE)+ROW()-2))=Rebalance!$D$58,INDIRECT(\"a\" & (VLOOKUP(Rebalance!$D$58,$F$2:$G$48,2,FALSE)+ROW()-2)),\"\")","v":{"$error":"#N/A"}},{"$f":"IF(INDIRECT(\"c\" & (VLOOKUP(Rebalance!$D$59,$F$2:$G$48,2,FALSE)+ROW()-2))=Rebalance!$D$59,INDIRECT(\"a\" & (VLOOKUP(Rebalance!$D$59,$F$2:$G$48,2,FALSE)+ROW()-2)),\"\")","v":{"$error":"#N/A"}},{"$f":"IF(INDIRECT(\"c\" & (VLOOKUP(Rebalance!$D$60,$F$2:$G$48,2,FALSE)+ROW()-2))=Rebalance!$D$60,INDIRECT(\"a\" & (VLOOKUP(Rebalance!$D$60,$F$2:$G$48,2,FALSE)+ROW()-2)),\"\")","v":{"$error":"#N/A"}},{"$f":"IF(INDIRECT(\"c\" & (VLOOKUP(Rebalance!$D$61,$F$2:$G$48,2,FALSE)+ROW()-2))=Rebalance!$D$61,INDIRECT(\"a\" & (VLOOKUP(Rebalance!$D$61,$F$2:$G$48,2,FALSE)+ROW()-2)),\"\")","v":{"$error":"#N/A"}},{"$f":"IF(INDIRECT(\"c\" & (VLOOKUP(Rebalance!$D$62,$F$2:$G$48,2,FALSE)+ROW()-2))=Rebalance!$D$62,INDIRECT(\"a\" & (VLOOKUP(Rebalance!$D$62,$F$2:$G$48,2,FALSE)+ROW()-2)),\"\")","v":{"$error":"#N/A"}},{"$f":"IF(INDIRECT(\"c\" & (VLOOKUP(Rebalance!$D$63,$F$2:$G$48,2,FALSE)+ROW()-2))=Rebalance!$D$63,INDIRECT(\"a\" & (VLOOKUP(Rebalance!$D$63,$F$2:$G$48,2,FALSE)+ROW()-2)),\"\")","v":{"$error":"#N/A"}},{"$f":"IF(INDIRECT(\"c\" & (VLOOKUP(Rebalance!$D$64,$F$2:$G$48,2,FALSE)+ROW()-2))=Rebalance!$D$64,INDIRECT(\"a\" & (VLOOKUP(Rebalance!$D$64,$F$2:$G$48,2,FALSE)+ROW()-2)),\"\")","v":{"$error":"#N/A"}},{"$f":"IF(INDIRECT(\"c\" & (VLOOKUP(Rebalance!$D$65,$F$2:$G$48,2,FALSE)+ROW()-2))=Rebalance!$D$65,INDIRECT(\"a\" & (VLOOKUP(Rebalance!$D$65,$F$2:$G$48,2,FALSE)+ROW()-2)),\"\")","v":{"$error":"#N/A"}},{"$f":"IF(INDIRECT(\"c\" & (VLOOKUP(Rebalance!$D$66,$F$2:$G$48,2,FALSE)+ROW()-2))=Rebalance!$D$66,INDIRECT(\"a\" & (VLOOKUP(Rebalance!$D$66,$F$2:$G$48,2,FALSE)+ROW()-2)),\"\")","v":{"$error":"#N/A"}}]
[null,null,null,{"$f":"ROW()","v":631},null,null,{"$f":"VLOOKUP(F631,$C$2:$D$599,2,FALSE)","v":{"$error":"#N/A"}},{"$f":"IF(INDIRECT(\"c\" & (VLOOKUP(Rebalance!$D$26,$F$2:$G$48,2,FALSE)+ROW()-2))=Rebalance!$D$26,INDIRECT(\"a\" & (VLOOKUP(Rebalance!$D$26,$F$2:$G$48,2,FALSE)+ROW()-2)),\"\")","v":{"$error":"#N/A"}},{"$f":"IF(INDIRECT(\"c\" & (VLOOKUP(Rebalance!$D$27,$F$2:$G$48,2,FALSE)+ROW()-2))=Rebalance!$D$27,INDIRECT(\"a\" & (VLOOKUP(Rebalance!$D$27,$F$2:$G$48,2,FALSE)+ROW()-2)),\"\")","v":{"$error":"#N/A"}},{"$f":"IF(INDIRECT(\"c\" & (VLOOKUP(Rebalance!$D$28,$F$2:$G$48,2,FALSE)+ROW()-2))=Rebalance!$D$28,INDIRECT(\"a\" & (VLOOKUP(Rebalance!$D$28,$F$2:$G$48,2,FALSE)+ROW()-2)),\"\")","v":{"$error":"#N/A"}},{"$f":"IF(INDIRECT(\"c\" & (VLOOKUP(Rebalance!$D$29,$F$2:$G$48,2,FALSE)+ROW()-2))=Rebalance!$D$29,INDIRECT(\"a\" & (VLOOKUP(Rebalance!$D$29,$F$2:$G$48,2,FALSE)+ROW()-2)),\"\")","v":{"$error":"#N/A"}},{"$f":"IF(INDIRECT(\"c\" & (VLOOKUP(Rebalance!$D$30,$F$2:$G$48,2,FALSE)+ROW()-2))=Rebalance!$D$30,INDIRECT(\"a\" & (VLOOKUP(Rebalance!$D$30,$F$2:$G$48,2,FALSE)+ROW()-2)),\"\")","v":{"$error":"#N/A"}},{"$f":"IF(INDIRECT(\"c\" & (VLOOKUP(Rebalance!$D$31,$F$2:$G$48,2,FALSE)+ROW()-2))=Rebalance!$D$31,INDIRECT(\"a\" & (VLOOKUP(Rebalance!$D$31,$F$2:$G$48,2,FALSE)+ROW()-2)),\"\")","v":{"$error":"#N/A"}},{"$f":"IF(INDIRECT(\"c\" & (VLOOKUP(Rebalance!$D$32,$F$2:$G$48,2,FALSE)+ROW()-2))=Rebalance!$D$32,INDIRECT(\"a\" & (VLOOKUP(Rebalance!$D$32,$F$2:$G$48,2,FALSE)+ROW()-2)),\"\")","v":{"$error":"#N/A"}},{"$f":"IF(INDIRECT(\"c\" & (VLOOKUP(Rebalance!$D$33,$F$2:$G$48,2,FALSE)+ROW()-2))=Rebalance!$D$33,INDIRECT(\"a\" & (VLOOKUP(Rebalance!$D$33,$F$2:$G$48,2,FALSE)+ROW()-2)),\"\")","v":{"$error":"#N/A"}},{"$f":"IF(INDIRECT(\"c\" & (VLOOKUP(Rebalance!$D$34,$F$2:$G$48,2,FALSE)+ROW()-2))=Rebalance!$D$34,INDIRECT(\"a\" & (VLOOKUP(Rebalance!$D$34,$F$2:$G$48,2,FALSE)+ROW()-2)),\"\")","v":{"$error":"#N/A"}},{"$f":"IF(INDIRECT(\"c\" & (VLOOKUP(Rebalance!$D$35,$F$2:$G$48,2,FALSE)+ROW()-2))=Rebalance!$D$35,INDIRECT(\"a\" & (VLOOKUP(Rebalance!$D$35,$F$2:$G$48,2,FALSE)+ROW()-2)),\"\")","v":{"$error":"#N/A"}},{"$f":"IF(INDIRECT(\"c\" & (VLOOKUP(Rebalance!$D$36,$F$2:$G$48,2,FALSE)+ROW()-2))=Rebalance!$D$36,INDIRECT(\"a\" & (VLOOKUP(Rebalance!$D$36,$F$2:$G$48,2,FALSE)+ROW()-2)),\"\")","v":{"$error":"#N/A"}},{"$f":"IF(INDIRECT(\"c\" & (VLOOKUP(Rebalance!$D$37,$F$2:$G$48,2,FALSE)+ROW()-2))=Rebalance!$D$37,INDIRECT(\"a\" & (VLOOKUP(Rebalance!$D$37,$F$2:$G$48,2,FALSE)+ROW()-2)),\"\")","v":{"$error":"#N/A"}},{"$f":"IF(INDIRECT(\"c\" & (VLOOKUP(Rebalance!$D$38,$F$2:$G$48,2,FALSE)+ROW()-2))=Rebalance!$D$38,INDIRECT(\"a\" & (VLOOKUP(Rebalance!$D$38,$F$2:$G$48,2,FALSE)+ROW()-2)),\"\")","v":{"$error":"#N/A"}},{"$f":"IF(INDIRECT(\"c\" & (VLOOKUP(Rebalance!$D$39,$F$2:$G$48,2,FALSE)+ROW()-2))=Rebalance!$D$39,INDIRECT(\"a\" & (VLOOKUP(Rebalance!$D$39,$F$2:$G$48,2,FALSE)+ROW()-2)),\"\")","v":{"$error":"#N/A"}},{"$f":"IF(INDIRECT(\"c\" & (VLOOKUP(Rebalance!$D$40,$F$2:$G$48,2,FALSE)+ROW()-2))=Rebalance!$D$40,INDIRECT(\"a\" & (VLOOKUP(Rebalance!$D$40,$F$2:$G$48,2,FALSE)+ROW()-2)),\"\")","v":{"$error":"#N/A"}},{"$f":"IF(INDIRECT(\"c\" & (VLOOKUP(Rebalance!$D$52,$F$2:$G$48,2,FALSE)+ROW()-2))=Rebalance!$D$52,INDIRECT(\"a\" & (VLOOKUP(Rebalance!$D$52,$F$2:$G$48,2,FALSE)+ROW()-2)),\"\")","v":{"$error":"#N/A"}},{"$f":"IF(INDIRECT(\"c\" & (VLOOKUP(Rebalance!$D$53,$F$2:$G$48,2,FALSE)+ROW()-2))=Rebalance!$D$53,INDIRECT(\"a\" & (VLOOKUP(Rebalance!$D$53,$F$2:$G$48,2,FALSE)+ROW()-2)),\"\")","v":{"$error":"#N/A"}},{"$f":"IF(INDIRECT(\"c\" & (VLOOKUP(Rebalance!$D$54,$F$2:$G$48,2,FALSE)+ROW()-2))=Rebalance!$D$54,INDIRECT(\"a\" & (VLOOKUP(Rebalance!$D$54,$F$2:$G$48,2,FALSE)+ROW()-2)),\"\")","v":{"$error":"#N/A"}},{"$f":"IF(INDIRECT(\"c\" & (VLOOKUP(Rebalance!$D$55,$F$2:$G$48,2,FALSE)+ROW()-2))=Rebalance!$D$55,INDIRECT(\"a\" & (VLOOKUP(Rebalance!$D$55,$F$2:$G$48,2,FALSE)+ROW()-2)),\"\")","v":{"$error":"#N/A"}},{"$f":"IF(INDIRECT(\"c\" & (VLOOKUP(Rebalance!$D$56,$F$2:$G$48,2,FALSE)+ROW()-2))=Rebalance!$D$56,INDIRECT(\"a\" & (VLOOKUP(Rebalance!$D$56,$F$2:$G$48,2,FALSE)+ROW()-2)),\"\")","v":{"$error":"#N/A"}},{"$f":"IF(INDIRECT(\"c\" & (VLOOKUP(Rebalance!$D$57,$F$2:$G$48,2,FALSE)+ROW()-2))=Rebalance!$D$57,INDIRECT(\"a\" & (VLOOKUP(Rebalance!$D$57,$F$2:$G$48,2,FALSE)+ROW()-2)),\"\")","v":{"$error":"#N/A"}},{"$f":"IF(INDIRECT(\"c\" & (VLOOKUP(Rebalance!$D$58,$F$2:$G$48,2,FALSE)+ROW()-2))=Rebalance!$D$58,INDIRECT(\"a\" & (VLOOKUP(Rebalance!$D$58,$F$2:$G$48,2,FALSE)+ROW()-2)),\"\")","v":{"$error":"#N/A"}},{"$f":"IF(INDIRECT(\"c\" & (VLOOKUP(Rebalance!$D$59,$F$2:$G$48,2,FALSE)+ROW()-2))=Rebalance!$D$59,INDIRECT(\"a\" & (VLOOKUP(Rebalance!$D$59,$F$2:$G$48,2,FALSE)+ROW()-2)),\"\")","v":{"$error":"#N/A"}},{"$f":"IF(INDIRECT(\"c\" & (VLOOKUP(Rebalance!$D$60,$F$2:$G$48,2,FALSE)+ROW()-2))=Rebalance!$D$60,INDIRECT(\"a\" & (VLOOKUP(Rebalance!$D$60,$F$2:$G$48,2,FALSE)+ROW()-2)),\"\")","v":{"$error":"#N/A"}},{"$f":"IF(INDIRECT(\"c\" & (VLOOKUP(Rebalance!$D$61,$F$2:$G$48,2,FALSE)+ROW()-2))=Rebalance!$D$61,INDIRECT(\"a\" & (VLOOKUP(Rebalance!$D$61,$F$2:$G$48,2,FALSE)+ROW()-2)),\"\")","v":{"$error":"#N/A"}},{"$f":"IF(INDIRECT(\"c\" & (VLOOKUP(Rebalance!$D$62,$F$2:$G$48,2,FALSE)+ROW()-2))=Rebalance!$D$62,INDIRECT(\"a\" & (VLOOKUP(Rebalance!$D$62,$F$2:$G$48,2,FALSE)+ROW()-2)),\"\")","v":{"$error":"#N/A"}},{"$f":"IF(INDIRECT(\"c\" & (VLOOKUP(Rebalance!$D$63,$F$2:$G$48,2,FALSE)+ROW()-2))=Rebalance!$D$63,INDIRECT(\"a\" & (VLOOKUP(Rebalance!$D$63,$F$2:$G$48,2,FALSE)+ROW()-2)),\"\")","v":{"$error":"#N/A"}},{"$f":"IF(INDIRECT(\"c\" & (VLOOKUP(Rebalance!$D$64,$F$2:$G$48,2,FALSE)+ROW()-2))=Rebalance!$D$64,INDIRECT(\"a\" & (VLOOKUP(Rebalance!$D$64,$F$2:$G$48,2,FALSE)+ROW()-2)),\"\")","v":{"$error":"#N/A"}},{"$f":"IF(INDIRECT(\"c\" & (VLOOKUP(Rebalance!$D$65,$F$2:$G$48,2,FALSE)+ROW()-2))=Rebalance!$D$65,INDIRECT(\"a\" & (VLOOKUP(Rebalance!$D$65,$F$2:$G$48,2,FALSE)+ROW()-2)),\"\")","v":{"$error":"#N/A"}},{"$f":"IF(INDIRECT(\"c\" & (VLOOKUP(Rebalance!$D$66,$F$2:$G$48,2,FALSE)+ROW()-2))=Rebalance!$D$66,INDIRECT(\"a\" & (VLOOKUP(Rebalance!$D$66,$F$2:$G$48,2,FALSE)+ROW()-2)),\"\")","v":{"$error":"#N/A"}}]
[null,null,null,{"$f":"ROW()","v":632},null,null,{"$f":"VLOOKUP(F632,$C$2:$D$599,2,FALSE)","v":{"$error":"#N/A"}},{"$f":"IF(INDIRECT(\"c\" & (VLOOKUP(Rebalance!$D$26,$F$2:$G$48,2,FALSE)+ROW()-2))=Rebalance!$D$26,INDIRECT(\"a\" & (VLOOKUP(Rebalance!$D$26,$F$2:$G$48,2,FALSE)+ROW()-2)),\"\")","v":{"$error":"#N/A"}},{"$f":"IF(INDIRECT(\"c\" & (VLOOKUP(Rebalance!$D$27,$F$2:$G$48,2,FALSE)+ROW()-2))=Rebalance!$D$27,INDIRECT(\"a\" & (VLOOKUP(Rebalance!$D$27,$F$2:$G$48,2,FALSE)+ROW()-2)),\"\")","v":{"$error":"#N/A"}},{"$f":"IF(INDIRECT(\"c\" & (VLOOKUP(Rebalance!$D$28,$F$2:$G$48,2,FALSE)+ROW()-2))=Rebalance!$D$28,INDIRECT(\"a\" & (VLOOKUP(Rebalance!$D$28,$F$2:$G$48,2,FALSE)+ROW()-2)),\"\")","v":{"$error":"#N/A"}},{"$f":"IF(INDIRECT(\"c\" & (VLOOKUP(Rebalance!$D$29,$F$2:$G$48,2,FALSE)+ROW()-2))=Rebalance!$D$29,INDIRECT(\"a\" & (VLOOKUP(Rebalance!$D$29,$F$2:$G$48,2,FALSE)+ROW()-2)),\"\")","v":{"$error":"#N/A"}},{"$f":"IF(INDIRECT(\"c\" & (VLOOKUP(Rebalance!$D$30,$F$2:$G$48,2,FALSE)+ROW()-2))=Rebalance!$D$30,INDIRECT(\"a\" & (VLOOKUP(Rebalance!$D$30,$F$2:$G$48,2,FALSE)+ROW()-2)),\"\")","v":{"$error":"#N/A"}},{"$f":"IF(INDIRECT(\"c\" & (VLOOKUP(Rebalance!$D$31,$F$2:$G$48,2,FALSE)+ROW()-2))=Rebalance!$D$31,INDIRECT(\"a\" & (VLOOKUP(Rebalance!$D$31,$F$2:$G$48,2,FALSE)+ROW()-2)),\"\")","v":{"$error":"#N/A"}},{"$f":"IF(INDIRECT(\"c\" & (VLOOKUP(Rebalance!$D$32,$F$2:$G$48,2,FALSE)+ROW()-2))=Rebalance!$D$32,INDIRECT(\"a\" & (VLOOKUP(Rebalance!$D$32,$F$2:$G$48,2,FALSE)+ROW()-2)),\"\")","v":{"$error":"#N/A"}},{"$f":"IF(INDIRECT(\"c\" & (VLOOKUP(Rebalance!$D$33,$F$2:$G$48,2,FALSE)+ROW()-2))=Rebalance!$D$33,INDIRECT(\"a\" & (VLOOKUP(Rebalance!$D$33,$F$2:$G$48,2,FALSE)+ROW()-2)),\"\")","v":{"$error":"#N/A"}},{"$f":"IF(INDIRECT(\"c\" & (VLOOKUP(Rebalance!$D$34,$F$2:$G$48,2,FALSE)+ROW()-2))=Rebalance!$D$34,INDIRECT(\"a\" & (VLOOKUP(Rebalance!$D$34,$F$2:$G$48,2,FALSE)+ROW()-2)),\"\")","v":{"$error":"#N/A"}},{"$f":"IF(INDIRECT(\"c\" & (VLOOKUP(Rebalance!$D$35,$F$2:$G$48,2,FALSE)+ROW()-2))=Rebalance!$D$35,INDIRECT(\"a\" & (VLOOKUP(Rebalance!$D$35,$F$2:$G$48,2,FALSE)+ROW()-2)),\"\")","v":{"$error":"#N/A"}},{"$f":"IF(INDIRECT(\"c\" & (VLOOKUP(Rebalance!$D$36,$F$2:$G$48,2,FALSE)+ROW()-2))=Rebalance!$D$36,INDIRECT(\"a\" & (VLOOKUP(Rebalance!$D$36,$F$2:$G$48,2,FALSE)+ROW()-2)),\"\")","v":{"$error":"#N/A"}},{"$f":"IF(INDIRECT(\"c\" & (VLOOKUP(Rebalance!$D$37,$F$2:$G$48,2,FALSE)+ROW()-2))=Rebalance!$D$37,INDIRECT(\"a\" & (VLOOKUP(Rebalance!$D$37,$F$2:$G$48,2,FALSE)+ROW()-2)),\"\")","v":{"$error":"#N/A"}},{"$f":"IF(INDIRECT(\"c\" & (VLOOKUP(Rebalance!$D$38,$F$2:$G$48,2,FALSE)+ROW()-2))=Rebalance!$D$38,INDIRECT(\"a\" & (VLOOKUP(Rebalance!$D$38,$F$2:$G$48,2,FALSE)+ROW()-2)),\"\")","v":{"$error":"#N/A"}},{"$f":"IF(INDIRECT(\"c\" & (VLOOKUP(Rebalance!$D$39,$F$2:$G$48,2,FALSE)+ROW()-2))=Rebalance!$D$39,INDIRECT(\"a\" & (VLOOKUP(Rebalance!$D$39,$F$2:$G$48,2,FALSE)+ROW()-2)),\"\")","v":{"$error":"#N/A"}},{"$f":"IF(INDIRECT(\"c\" & (VLOOKUP(Rebalance!$D$40,$F$2:$G$48,2,FALSE)+ROW()-2))=Rebalance!$D$40,INDIRECT(\"a\" & (VLOOKUP(Rebalance!$D$40,$F$2:$G$48,2,FALSE)+ROW()-2)),\"\")","v":{"$error":"#N/A"}},{"$f":"IF(INDIRECT(\"c\" & (VLOOKUP(Rebalance!$D$52,$F$2:$G$48,2,FALSE)+ROW()-2))=Rebalance!$D$52,INDIRECT(\"a\" & (VLOOKUP(Rebalance!$D$52,$F$2:$G$48,2,FALSE)+ROW()-2)),\"\")","v":{"$error":"#N/A"}},{"$f":"IF(INDIRECT(\"c\" & (VLOOKUP(Rebalance!$D$53,$F$2:$G$48,2,FALSE)+ROW()-2))=Rebalance!$D$53,INDIRECT(\"a\" & (VLOOKUP(Rebalance!$D$53,$F$2:$G$48,2,FALSE)+ROW()-2)),\"\")","v":{"$error":"#N/A"}},{"$f":"IF(INDIRECT(\"c\" & (VLOOKUP(Rebalance!$D$54,$F$2:$G$48,2,FALSE)+ROW()-2))=Rebalance!$D$54,INDIRECT(\"a\" & (VLOOKUP(Rebalance!$D$54,$F$2:$G$48,2,FALSE)+ROW()-2)),\"\")","v":{"$error":"#N/A"}},{"$f":"IF(INDIRECT(\"c\" & (VLOOKUP(Rebalance!$D$55,$F$2:$G$48,2,FALSE)+ROW()-2))=Rebalance!$D$55,INDIRECT(\"a\" & (VLOOKUP(Rebalance!$D$55,$F$2:$G$48,2,FALSE)+ROW()-2)),\"\")","v":{"$error":"#N/A"}},{"$f":"IF(INDIRECT(\"c\" & (VLOOKUP(Rebalance!$D$56,$F$2:$G$48,2,FALSE)+ROW()-2))=Rebalance!$D$56,INDIRECT(\"a\" & (VLOOKUP(Rebalance!$D$56,$F$2:$G$48,2,FALSE)+ROW()-2)),\"\")","v":{"$error":"#N/A"}},{"$f":"IF(INDIRECT(\"c\" & (VLOOKUP(Rebalance!$D$57,$F$2:$G$48,2,FALSE)+ROW()-2))=Rebalance!$D$57,INDIRECT(\"a\" & (VLOOKUP(Rebalance!$D$57,$F$2:$G$48,2,FALSE)+ROW()-2)),\"\")","v":{"$error":"#N/A"}},{"$f":"IF(INDIRECT(\"c\" & (VLOOKUP(Rebalance!$D$58,$F$2:$G$48,2,FALSE)+ROW()-2))=Rebalance!$D$58,INDIRECT(\"a\" & (VLOOKUP(Rebalance!$D$58,$F$2:$G$48,2,FALSE)+ROW()-2)),\"\")","v":{"$error":"#N/A"}},{"$f":"IF(INDIRECT(\"c\" & (VLOOKUP(Rebalance!$D$59,$F$2:$G$48,2,FALSE)+ROW()-2))=Rebalance!$D$59,INDIRECT(\"a\" & (VLOOKUP(Rebalance!$D$59,$F$2:$G$48,2,FALSE)+ROW()-2)),\"\")","v":{"$error":"#N/A"}},{"$f":"IF(INDIRECT(\"c\" & (VLOOKUP(Rebalance!$D$60,$F$2:$G$48,2,FALSE)+ROW()-2))=Rebalance!$D$60,INDIRECT(\"a\" & (VLOOKUP(Rebalance!$D$60,$F$2:$G$48,2,FALSE)+ROW()-2)),\"\")","v":{"$error":"#N/A"}},{"$f":"IF(INDIRECT(\"c\" & (VLOOKUP(Rebalance!$D$61,$F$2:$G$48,2,FALSE)+ROW()-2))=Rebalance!$D$61,INDIRECT(\"a\" & (VLOOKUP(Rebalance!$D$61,$F$2:$G$48,2,FALSE)+ROW()-2)),\"\")","v":{"$error":"#N/A"}},{"$f":"IF(INDIRECT(\"c\" & (VLOOKUP(Rebalance!$D$62,$F$2:$G$48,2,FALSE)+ROW()-2))=Rebalance!$D$62,INDIRECT(\"a\" & (VLOOKUP(Rebalance!$D$62,$F$2:$G$48,2,FALSE)+ROW()-2)),\"\")","v":{"$error":"#N/A"}},{"$f":"IF(INDIRECT(\"c\" & (VLOOKUP(Rebalance!$D$63,$F$2:$G$48,2,FALSE)+ROW()-2))=Rebalance!$D$63,INDIRECT(\"a\" & (VLOOKUP(Rebalance!$D$63,$F$2:$G$48,2,FALSE)+ROW()-2)),\"\")","v":{"$error":"#N/A"}},{"$f":"IF(INDIRECT(\"c\" & (VLOOKUP(Rebalance!$D$64,$F$2:$G$48,2,FALSE)+ROW()-2))=Rebalance!$D$64,INDIRECT(\"a\" & (VLOOKUP(Rebalance!$D$64,$F$2:$G$48,2,FALSE)+ROW()-2)),\"\")","v":{"$error":"#N/A"}},{"$f":"IF(INDIRECT(\"c\" & (VLOOKUP(Rebalance!$D$65,$F$2:$G$48,2,FALSE)+ROW()-2))=Rebalance!$D$65,INDIRECT(\"a\" & (VLOOKUP(Rebalance!$D$65,$F$2:$G$48,2,FALSE)+ROW()-2)),\"\")","v":{"$error":"#N/A"}},{"$f":"IF(INDIRECT(\"c\" & (VLOOKUP(Rebalance!$D$66,$F$2:$G$48,2,FALSE)+ROW()-2))=Rebalance!$D$66,INDIRECT(\"a\" & (VLOOKUP(Rebalance!$D$66,$F$2:$G$48,2,FALSE)+ROW()-2)),\"\")","v":{"$error":"#N/A"}}]
[null,null,null,{"$f":"ROW()","v":633},null,null,{"$f":"VLOOKUP(F633,$C$2:$D$599,2,FALSE)","v":{"$error":"#N/A"}},{"$f":"IF(INDIRECT(\"c\" & (VLOOKUP(Rebalance!$D$26,$F$2:$G$48,2,FALSE)+ROW()-2))=Rebalance!$D$26,INDIRECT(\"a\" & (VLOOKUP(Rebalance!$D$26,$F$2:$G$48,2,FALSE)+ROW()-2)),\"\")","v":{"$error":"#N/A"}},{"$f":"IF(INDIRECT(\"c\" & (VLOOKUP(Rebalance!$D$27,$F$2:$G$48,2,FALSE)+ROW()-2))=Rebalance!$D$27,INDIRECT(\"a\" & (VLOOKUP(Rebalance!$D$27,$F$2:$G$48,2,FALSE)+ROW()-2)),\"\")","v":{"$error":"#N/A"}},{"$f":"IF(INDIRECT(\"c\" & (VLOOKUP(Rebalance!$D$28,$F$2:$G$48,2,FALSE)+ROW()-2))=Rebalance!$D$28,INDIRECT(\"a\" & (VLOOKUP(Rebalance!$D$28,$F$2:$G$48,2,FALSE)+ROW()-2)),\"\")","v":{"$error":"#N/A"}},{"$f":"IF(INDIRECT(\"c\" & (VLOOKUP(Rebalance!$D$29,$F$2:$G$48,2,FALSE)+ROW()-2))=Rebalance!$D$29,INDIRECT(\"a\" & (VLOOKUP(Rebalance!$D$29,$F$2:$G$48,2,FALSE)+ROW()-2)),\"\")","v":{"$error":"#N/A"}},{"$f":"IF(INDIRECT(\"c\" & (VLOOKUP(Rebalance!$D$30,$F$2:$G$48,2,FALSE)+ROW()-2))=Rebalance!$D$30,INDIRECT(\"a\" & (VLOOKUP(Rebalance!$D$30,$F$2:$G$48,2,FALSE)+ROW()-2)),\"\")","v":{"$error":"#N/A"}},{"$f":"IF(INDIRECT(\"c\" & (VLOOKUP(Rebalance!$D$31,$F$2:$G$48,2,FALSE)+ROW()-2))=Rebalance!$D$31,INDIRECT(\"a\" & (VLOOKUP(Rebalance!$D$31,$F$2:$G$48,2,FALSE)+ROW()-2)),\"\")","v":{"$error":"#N/A"}},{"$f":"IF(INDIRECT(\"c\" & (VLOOKUP(Rebalance!$D$32,$F$2:$G$48,2,FALSE)+ROW()-2))=Rebalance!$D$32,INDIRECT(\"a\" & (VLOOKUP(Rebalance!$D$32,$F$2:$G$48,2,FALSE)+ROW()-2)),\"\")","v":{"$error":"#N/A"}},{"$f":"IF(INDIRECT(\"c\" & (VLOOKUP(Rebalance!$D$33,$F$2:$G$48,2,FALSE)+ROW()-2))=Rebalance!$D$33,INDIRECT(\"a\" & (VLOOKUP(Rebalance!$D$33,$F$2:$G$48,2,FALSE)+ROW()-2)),\"\")","v":{"$error":"#N/A"}},{"$f":"IF(INDIRECT(\"c\" & (VLOOKUP(Rebalance!$D$34,$F$2:$G$48,2,FALSE)+ROW()-2))=Rebalance!$D$34,INDIRECT(\"a\" & (VLOOKUP(Rebalance!$D$34,$F$2:$G$48,2,FALSE)+ROW()-2)),\"\")","v":{"$error":"#N/A"}},{"$f":"IF(INDIRECT(\"c\" & (VLOOKUP(Rebalance!$D$35,$F$2:$G$48,2,FALSE)+ROW()-2))=Rebalance!$D$35,INDIRECT(\"a\" & (VLOOKUP(Rebalance!$D$35,$F$2:$G$48,2,FALSE)+ROW()-2)),\"\")","v":{"$error":"#N/A"}},{"$f":"IF(INDIRECT(\"c\" & (VLOOKUP(Rebalance!$D$36,$F$2:$G$48,2,FALSE)+ROW()-2))=Rebalance!$D$36,INDIRECT(\"a\" & (VLOOKUP(Rebalance!$D$36,$F$2:$G$48,2,FALSE)+ROW()-2)),\"\")","v":{"$error":"#N/A"}},{"$f":"IF(INDIRECT(\"c\" & (VLOOKUP(Rebalance!$D$37,$F$2:$G$48,2,FALSE)+ROW()-2))=Rebalance!$D$37,INDIRECT(\"a\" & (VLOOKUP(Rebalance!$D$37,$F$2:$G$48,2,FALSE)+ROW()-2)),\"\")","v":{"$error":"#N/A"}},{"$f":"IF(INDIRECT(\"c\" & (VLOOKUP(Rebalance!$D$38,$F$2:$G$48,2,FALSE)+ROW()-2))=Rebalance!$D$38,INDIRECT(\"a\" & (VLOOKUP(Rebalance!$D$38,$F$2:$G$48,2,FALSE)+ROW()-2)),\"\")","v":{"$error":"#N/A"}},{"$f":"IF(INDIRECT(\"c\" & (VLOOKUP(Rebalance!$D$39,$F$2:$G$48,2,FALSE)+ROW()-2))=Rebalance!$D$39,INDIRECT(\"a\" & (VLOOKUP(Rebalance!$D$39,$F$2:$G$48,2,FALSE)+ROW()-2)),\"\")","v":{"$error":"#N/A"}},{"$f":"IF(INDIRECT(\"c\" & (VLOOKUP(Rebalance!$D$40,$F$2:$G$48,2,FALSE)+ROW()-2))=Rebalance!$D$40,INDIRECT(\"a\" & (VLOOKUP(Rebalance!$D$40,$F$2:$G$48,2,FALSE)+ROW()-2)),\"\")","v":{"$error":"#N/A"}},{"$f":"IF(INDIRECT(\"c\" & (VLOOKUP(Rebalance!$D$52,$F$2:$G$48,2,FALSE)+ROW()-2))=Rebalance!$D$52,INDIRECT(\"a\" & (VLOOKUP(Rebalance!$D$52,$F$2:$G$48,2,FALSE)+ROW()-2)),\"\")","v":{"$error":"#N/A"}},{"$f":"IF(INDIRECT(\"c\" & (VLOOKUP(Rebalance!$D$53,$F$2:$G$48,2,FALSE)+ROW()-2))=Rebalance!$D$53,INDIRECT(\"a\" & (VLOOKUP(Rebalance!$D$53,$F$2:$G$48,2,FALSE)+ROW()-2)),\"\")","v":{"$error":"#N/A"}},{"$f":"IF(INDIRECT(\"c\" & (VLOOKUP(Rebalance!$D$54,$F$2:$G$48,2,FALSE)+ROW()-2))=Rebalance!$D$54,INDIRECT(\"a\" & (VLOOKUP(Rebalance!$D$54,$F$2:$G$48,2,FALSE)+ROW()-2)),\"\")","v":{"$error":"#N/A"}},{"$f":"IF(INDIRECT(\"c\" & (VLOOKUP(Rebalance!$D$55,$F$2:$G$48,2,FALSE)+ROW()-2))=Rebalance!$D$55,INDIRECT(\"a\" & (VLOOKUP(Rebalance!$D$55,$F$2:$G$48,2,FALSE)+ROW()-2)),\"\")","v":{"$error":"#N/A"}},{"$f":"IF(INDIRECT(\"c\" & (VLOOKUP(Rebalance!$D$56,$F$2:$G$48,2,FALSE)+ROW()-2))=Rebalance!$D$56,INDIRECT(\"a\" & (VLOOKUP(Rebalance!$D$56,$F$2:$G$48,2,FALSE)+ROW()-2)),\"\")","v":{"$error":"#N/A"}},{"$f":"IF(INDIRECT(\"c\" & (VLOOKUP(Rebalance!$D$57,$F$2:$G$48,2,FALSE)+ROW()-2))=Rebalance!$D$57,INDIRECT(\"a\" & (VLOOKUP(Rebalance!$D$57,$F$2:$G$48,2,FALSE)+ROW()-2)),\"\")","v":{"$error":"#N/A"}},{"$f":"IF(INDIRECT(\"c\" & (VLOOKUP(Rebalance!$D$58,$F$2:$G$48,2,FALSE)+ROW()-2))=Rebalance!$D$58,INDIRECT(\"a\" & (VLOOKUP(Rebalance!$D$58,$F$2:$G$48,2,FALSE)+ROW()-2)),\"\")","v":{"$error":"#N/A"}},{"$f":"IF(INDIRECT(\"c\" & (VLOOKUP(Rebalance!$D$59,$F$2:$G$48,2,FALSE)+ROW()-2))=Rebalance!$D$59,INDIRECT(\"a\" & (VLOOKUP(Rebalance!$D$59,$F$2:$G$48,2,FALSE)+ROW()-2)),\"\")","v":{"$error":"#N/A"}},{"$f":"IF(INDIRECT(\"c\" & (VLOOKUP(Rebalance!$D$60,$F$2:$G$48,2,FALSE)+ROW()-2))=Rebalance!$D$60,INDIRECT(\"a\" & (VLOOKUP(Rebalance!$D$60,$F$2:$G$48,2,FALSE)+ROW()-2)),\"\")","v":{"$error":"#N/A"}},{"$f":"IF(INDIRECT(\"c\" & (VLOOKUP(Rebalance!$D$61,$F$2:$G$48,2,FALSE)+ROW()-2))=Rebalance!$D$61,INDIRECT(\"a\" & (VLOOKUP(Rebalance!$D$61,$F$2:$G$48,2,FALSE)+ROW()-2)),\"\")","v":{"$error":"#N/A"}},{"$f":"IF(INDIRECT(\"c\" & (VLOOKUP(Rebalance!$D$62,$F$2:$G$48,2,FALSE)+ROW()-2))=Rebalance!$D$62,INDIRECT(\"a\" & (VLOOKUP(Rebalance!$D$62,$F$2:$G$48,2,FALSE)+ROW()-2)),\"\")","v":{"$error":"#N/A"}},{"$f":"IF(INDIRECT(\"c\" & (VLOOKUP(Rebalance!$D$63,$F$2:$G$48,2,FALSE)+ROW()-2))=Rebalance!$D$63,INDIRECT(\"a\" & (VLOOKUP(Rebalance!$D$63,$F$2:$G$48,2,FALSE)+ROW()-2)),\"\")","v":{"$error":"#N/A"}},{"$f":"IF(INDIRECT(\"c\" & (VLOOKUP(Rebalance!$D$64,$F$2:$G$48,2,FALSE)+ROW()-2))=Rebalance!$D$64,INDIRECT(\"a\" & (VLOOKUP(Rebalance!$D$64,$F$2:$G$48,2,FALSE)+ROW()-2)),\"\")","v":{"$error":"#N/A"}},{"$f":"IF(INDIRECT(\"c\" & (VLOOKUP(Rebalance!$D$65,$F$2:$G$48,2,FALSE)+ROW()-2))=Rebalance!$D$65,INDIRECT(\"a\" & (VLOOKUP(Rebalance!$D$65,$F$2:$G$48,2,FALSE)+ROW()-2)),\"\")","v":{"$error":"#N/A"}},{"$f":"IF(INDIRECT(\"c\" & (VLOOKUP(Rebalance!$D$66,$F$2:$G$48,2,FALSE)+ROW()-2))=Rebalance!$D$66,INDIRECT(\"a\" & (VLOOKUP(Rebalance!$D$66,$F$2:$G$48,2,FALSE)+ROW()-2)),\"\")","v":{"$error":"#N/A"}}]
[null,null,null,{"$f":"ROW()","v":634},null,null,{"$f":"VLOOKUP(F634,$C$2:$D$599,2,FALSE)","v":{"$error":"#N/A"}},{"$f":"IF(INDIRECT(\"c\" & (VLOOKUP(Rebalance!$D$26,$F$2:$G$48,2,FALSE)+ROW()-2))=Rebalance!$D$26,INDIRECT(\"a\" & (VLOOKUP(Rebalance!$D$26,$F$2:$G$48,2,FALSE)+ROW()-2)),\"\")","v":{"$error":"#N/A"}},{"$f":"IF(INDIRECT(\"c\" & (VLOOKUP(Rebalance!$D$27,$F$2:$G$48,2,FALSE)+ROW()-2))=Rebalance!$D$27,INDIRECT(\"a\" & (VLOOKUP(Rebalance!$D$27,$F$2:$G$48,2,FALSE)+ROW()-2)),\"\")","v":{"$error":"#N/A"}},{"$f":"IF(INDIRECT(\"c\" & (VLOOKUP(Rebalance!$D$28,$F$2:$G$48,2,FALSE)+ROW()-2))=Rebalance!$D$28,INDIRECT(\"a\" & (VLOOKUP(Rebalance!$D$28,$F$2:$G$48,2,FALSE)+ROW()-2)),\"\")","v":{"$error":"#N/A"}},{"$f":"IF(INDIRECT(\"c\" & (VLOOKUP(Rebalance!$D$29,$F$2:$G$48,2,FALSE)+ROW()-2))=Rebalance!$D$29,INDIRECT(\"a\" & (VLOOKUP(Rebalance!$D$29,$F$2:$G$48,2,FALSE)+ROW()-2)),\"\")","v":{"$error":"#N/A"}},{"$f":"IF(INDIRECT(\"c\" & (VLOOKUP(Rebalance!$D$30,$F$2:$G$48,2,FALSE)+ROW()-2))=Rebalance!$D$30,INDIRECT(\"a\" & (VLOOKUP(Rebalance!$D$30,$F$2:$G$48,2,FALSE)+ROW()-2)),\"\")","v":{"$error":"#N/A"}},{"$f":"IF(INDIRECT(\"c\" & (VLOOKUP(Rebalance!$D$31,$F$2:$G$48,2,FALSE)+ROW()-2))=Rebalance!$D$31,INDIRECT(\"a\" & (VLOOKUP(Rebalance!$D$31,$F$2:$G$48,2,FALSE)+ROW()-2)),\"\")","v":{"$error":"#N/A"}},{"$f":"IF(INDIRECT(\"c\" & (VLOOKUP(Rebalance!$D$32,$F$2:$G$48,2,FALSE)+ROW()-2))=Rebalance!$D$32,INDIRECT(\"a\" & (VLOOKUP(Rebalance!$D$32,$F$2:$G$48,2,FALSE)+ROW()-2)),\"\")","v":{"$error":"#N/A"}},{"$f":"IF(INDIRECT(\"c\" & (VLOOKUP(Rebalance!$D$33,$F$2:$G$48,2,FALSE)+ROW()-2))=Rebalance!$D$33,INDIRECT(\"a\" & (VLOOKUP(Rebalance!$D$33,$F$2:$G$48,2,FALSE)+ROW()-2)),\"\")","v":{"$error":"#N/A"}},{"$f":"IF(INDIRECT(\"c\" & (VLOOKUP(Rebalance!$D$34,$F$2:$G$48,2,FALSE)+ROW()-2))=Rebalance!$D$34,INDIRECT(\"a\" & (VLOOKUP(Rebalance!$D$34,$F$2:$G$48,2,FALSE)+ROW()-2)),\"\")","v":{"$error":"#N/A"}},{"$f":"IF(INDIRECT(\"c\" & (VLOOKUP(Rebalance!$D$35,$F$2:$G$48,2,FALSE)+ROW()-2))=Rebalance!$D$35,INDIRECT(\"a\" & (VLOOKUP(Rebalance!$D$35,$F$2:$G$48,2,FALSE)+ROW()-2)),\"\")","v":{"$error":"#N/A"}},{"$f":"IF(INDIRECT(\"c\" & (VLOOKUP(Rebalance!$D$36,$F$2:$G$48,2,FALSE)+ROW()-2))=Rebalance!$D$36,INDIRECT(\"a\" & (VLOOKUP(Rebalance!$D$36,$F$2:$G$48,2,FALSE)+ROW()-2)),\"\")","v":{"$error":"#N/A"}},{"$f":"IF(INDIRECT(\"c\" & (VLOOKUP(Rebalance!$D$37,$F$2:$G$48,2,FALSE)+ROW()-2))=Rebalance!$D$37,INDIRECT(\"a\" & (VLOOKUP(Rebalance!$D$37,$F$2:$G$48,2,FALSE)+ROW()-2)),\"\")","v":{"$error":"#N/A"}},{"$f":"IF(INDIRECT(\"c\" & (VLOOKUP(Rebalance!$D$38,$F$2:$G$48,2,FALSE)+ROW()-2))=Rebalance!$D$38,INDIRECT(\"a\" & (VLOOKUP(Rebalance!$D$38,$F$2:$G$48,2,FALSE)+ROW()-2)),\"\")","v":{"$error":"#N/A"}},{"$f":"IF(INDIRECT(\"c\" & (VLOOKUP(Rebalance!$D$39,$F$2:$G$48,2,FALSE)+ROW()-2))=Rebalance!$D$39,INDIRECT(\"a\" & (VLOOKUP(Rebalance!$D$39,$F$2:$G$48,2,FALSE)+ROW()-2)),\"\")","v":{"$error":"#N/A"}},{"$f":"IF(INDIRECT(\"c\" & (VLOOKUP(Rebalance!$D$40,$F$2:$G$48,2,FALSE)+ROW()-2))=Rebalance!$D$40,INDIRECT(\"a\" & (VLOOKUP(Rebalance!$D$40,$F$2:$G$48,2,FALSE)+ROW()-2)),\"\")","v":{"$error":"#N/A"}},{"$f":"IF(INDIRECT(\"c\" & (VLOOKUP(Rebalance!$D$52,$F$2:$G$48,2,FALSE)+ROW()-2))=Rebalance!$D$52,INDIRECT(\"a\" & (VLOOKUP(Rebalance!$D$52,$F$2:$G$48,2,FALSE)+ROW()-2)),\"\")","v":{"$error":"#N/A"}},{"$f":"IF(INDIRECT(\"c\" & (VLOOKUP(Rebalance!$D$53,$F$2:$G$48,2,FALSE)+ROW()-2))=Rebalance!$D$53,INDIRECT(\"a\" & (VLOOKUP(Rebalance!$D$53,$F$2:$G$48,2,FALSE)+ROW()-2)),\"\")","v":{"$error":"#N/A"}},{"$f":"IF(INDIRECT(\"c\" & (VLOOKUP(Rebalance!$D$54,$F$2:$G$48,2,FALSE)+ROW()-2))=Rebalance!$D$54,INDIRECT(\"a\" & (VLOOKUP(Rebalance!$D$54,$F$2:$G$48,2,FALSE)+ROW()-2)),\"\")","v":{"$error":"#N/A"}},{"$f":"IF(INDIRECT(\"c\" & (VLOOKUP(Rebalance!$D$55,$F$2:$G$48,2,FALSE)+ROW()-2))=Rebalance!$D$55,INDIRECT(\"a\" & (VLOOKUP(Rebalance!$D$55,$F$2:$G$48,2,FALSE)+ROW()-2)),\"\")","v":{"$error":"#N/A"}},{"$f":"IF(INDIRECT(\"c\" & (VLOOKUP(Rebalance!$D$56,$F$2:$G$48,2,FALSE)+ROW()-2))=Rebalance!$D$56,INDIRECT(\"a\" & (VLOOKUP(Rebalance!$D$56,$F$2:$G$48,2,FALSE)+ROW()-2)),\"\")","v":{"$error":"#N/A"}},{"$f":"IF(INDIRECT(\"c\" & (VLOOKUP(Rebalance!$D$57,$F$2:$G$48,2,FALSE)+ROW()-2))=Rebalance!$D$57,INDIRECT(\"a\" & (VLOOKUP(Rebalance!$D$57,$F$2:$G$48,2,FALSE)+ROW()-2)),\"\")","v":{"$error":"#N/A"}},{"$f":"IF(INDIRECT(\"c\" & (VLOOKUP(Rebalance!$D$58,$F$2:$G$48,2,FALSE)+ROW()-2))=Rebalance!$D$58,INDIRECT(\"a\" & (VLOOKUP(Rebalance!$D$58,$F$2:$G$48,2,FALSE)+ROW()-2)),\"\")","v":{"$error":"#N/A"}},{"$f":"IF(INDIRECT(\"c\" & (VLOOKUP(Rebalance!$D$59,$F$2:$G$48,2,FALSE)+ROW()-2))=Rebalance!$D$59,INDIRECT(\"a\" & (VLOOKUP(Rebalance!$D$59,$F$2:$G$48,2,FALSE)+ROW()-2)),\"\")","v":{"$error":"#N/A"}},{"$f":"IF(INDIRECT(\"c\" & (VLOOKUP(Rebalance!$D$60,$F$2:$G$48,2,FALSE)+ROW()-2))=Rebalance!$D$60,INDIRECT(\"a\" & (VLOOKUP(Rebalance!$D$60,$F$2:$G$48,2,FALSE)+ROW()-2)),\"\")","v":{"$error":"#N/A"}},{"$f":"IF(INDIRECT(\"c\" & (VLOOKUP(Rebalance!$D$61,$F$2:$G$48,2,FALSE)+ROW()-2))=Rebalance!$D$61,INDIRECT(\"a\" & (VLOOKUP(Rebalance!$D$61,$F$2:$G$48,2,FALSE)+ROW()-2)),\"\")","v":{"$error":"#N/A"}},{"$f":"IF(INDIRECT(\"c\" & (VLOOKUP(Rebalance!$D$62,$F$2:$G$48,2,FALSE)+ROW()-2))=Rebalance!$D$62,INDIRECT(\"a\" & (VLOOKUP(Rebalance!$D$62,$F$2:$G$48,2,FALSE)+ROW()-2)),\"\")","v":{"$error":"#N/A"}},{"$f":"IF(INDIRECT(\"c\" & (VLOOKUP(Rebalance!$D$63,$F$2:$G$48,2,FALSE)+ROW()-2))=Rebalance!$D$63,INDIRECT(\"a\" & (VLOOKUP(Rebalance!$D$63,$F$2:$G$48,2,FALSE)+ROW()-2)),\"\")","v":{"$error":"#N/A"}},{"$f":"IF(INDIRECT(\"c\" & (VLOOKUP(Rebalance!$D$64,$F$2:$G$48,2,FALSE)+ROW()-2))=Rebalance!$D$64,INDIRECT(\"a\" & (VLOOKUP(Rebalance!$D$64,$F$2:$G$48,2,FALSE)+ROW()-2)),\"\")","v":{"$error":"#N/A"}},{"$f":"IF(INDIRECT(\"c\" & (VLOOKUP(Rebalance!$D$65,$F$2:$G$48,2,FALSE)+ROW()-2))=Rebalance!$D$65,INDIRECT(\"a\" & (VLOOKUP(Rebalance!$D$65,$F$2:$G$48,2,FALSE)+ROW()-2)),\"\")","v":{"$error":"#N/A"}},{"$f":"IF(INDIRECT(\"c\" & (VLOOKUP(Rebalance!$D$66,$F$2:$G$48,2,FALSE)+ROW()-2))=Rebalance!$D$66,INDIRECT(\"a\" & (VLOOKUP(Rebalance!$D$66,$F$2:$G$48,2,FALSE)+ROW()-2)),\"\")","v":{"$error":"#N/A"}}]
[null,null,null,{"$f":"ROW()","v":635},null,null,{"$f":"VLOOKUP(F635,$C$2:$D$599,2,FALSE)","v":{"$error":"#N/A"}},{"$f":"IF(INDIRECT(\"c\" & (VLOOKUP(Rebalance!$D$26,$F$2:$G$48,2,FALSE)+ROW()-2))=Rebalance!$D$26,INDIRECT(\"a\" & (VLOOKUP(Rebalance!$D$26,$F$2:$G$48,2,FALSE)+ROW()-2)),\"\")","v":{"$error":"#N/A"}},{"$f":"IF(INDIRECT(\"c\" & (VLOOKUP(Rebalance!$D$27,$F$2:$G$48,2,FALSE)+ROW()-2))=Rebalance!$D$27,INDIRECT(\"a\" & (VLOOKUP(Rebalance!$D$27,$F$2:$G$48,2,FALSE)+ROW()-2)),\"\")","v":{"$error":"#N/A"}},{"$f":"IF(INDIRECT(\"c\" & (VLOOKUP(Rebalance!$D$28,$F$2:$G$48,2,FALSE)+ROW()-2))=Rebalance!$D$28,INDIRECT(\"a\" & (VLOOKUP(Rebalance!$D$28,$F$2:$G$48,2,FALSE)+ROW()-2)),\"\")","v":{"$error":"#N/A"}},{"$f":"IF(INDIRECT(\"c\" & (VLOOKUP(Rebalance!$D$29,$F$2:$G$48,2,FALSE)+ROW()-2))=Rebalance!$D$29,INDIRECT(\"a\" & (VLOOKUP(Rebalance!$D$29,$F$2:$G$48,2,FALSE)+ROW()-2)),\"\")","v":{"$error":"#N/A"}},{"$f":"IF(INDIRECT(\"c\" & (VLOOKUP(Rebalance!$D$30,$F$2:$G$48,2,FALSE)+ROW()-2))=Rebalance!$D$30,INDIRECT(\"a\" & (VLOOKUP(Rebalance!$D$30,$F$2:$G$48,2,FALSE)+ROW()-2)),\"\")","v":{"$error":"#N/A"}},{"$f":"IF(INDIRECT(\"c\" & (VLOOKUP(Rebalance!$D$31,$F$2:$G$48,2,FALSE)+ROW()-2))=Rebalance!$D$31,INDIRECT(\"a\" & (VLOOKUP(Rebalance!$D$31,$F$2:$G$48,2,FALSE)+ROW()-2)),\"\")","v":{"$error":"#N/A"}},{"$f":"IF(INDIRECT(\"c\" & (VLOOKUP(Rebalance!$D$32,$F$2:$G$48,2,FALSE)+ROW()-2))=Rebalance!$D$32,INDIRECT(\"a\" & (VLOOKUP(Rebalance!$D$32,$F$2:$G$48,2,FALSE)+ROW()-2)),\"\")","v":{"$error":"#N/A"}},{"$f":"IF(INDIRECT(\"c\" & (VLOOKUP(Rebalance!$D$33,$F$2:$G$48,2,FALSE)+ROW()-2))=Rebalance!$D$33,INDIRECT(\"a\" & (VLOOKUP(Rebalance!$D$33,$F$2:$G$48,2,FALSE)+ROW()-2)),\"\")","v":{"$error":"#N/A"}},{"$f":"IF(INDIRECT(\"c\" & (VLOOKUP(Rebalance!$D$34,$F$2:$G$48,2,FALSE)+ROW()-2))=Rebalance!$D$34,INDIRECT(\"a\" & (VLOOKUP(Rebalance!$D$34,$F$2:$G$48,2,FALSE)+ROW()-2)),\"\")","v":{"$error":"#N/A"}},{"$f":"IF(INDIRECT(\"c\" & (VLOOKUP(Rebalance!$D$35,$F$2:$G$48,2,FALSE)+ROW()-2))=Rebalance!$D$35,INDIRECT(\"a\" & (VLOOKUP(Rebalance!$D$35,$F$2:$G$48,2,FALSE)+ROW()-2)),\"\")","v":{"$error":"#N/A"}},{"$f":"IF(INDIRECT(\"c\" & (VLOOKUP(Rebalance!$D$36,$F$2:$G$48,2,FALSE)+ROW()-2))=Rebalance!$D$36,INDIRECT(\"a\" & (VLOOKUP(Rebalance!$D$36,$F$2:$G$48,2,FALSE)+ROW()-2)),\"\")","v":{"$error":"#N/A"}},{"$f":"IF(INDIRECT(\"c\" & (VLOOKUP(Rebalance!$D$37,$F$2:$G$48,2,FALSE)+ROW()-2))=Rebalance!$D$37,INDIRECT(\"a\" & (VLOOKUP(Rebalance!$D$37,$F$2:$G$48,2,FALSE)+ROW()-2)),\"\")","v":{"$error":"#N/A"}},{"$f":"IF(INDIRECT(\"c\" & (VLOOKUP(Rebalance!$D$38,$F$2:$G$48,2,FALSE)+ROW()-2))=Rebalance!$D$38,INDIRECT(\"a\" & (VLOOKUP(Rebalance!$D$38,$F$2:$G$48,2,FALSE)+ROW()-2)),\"\")","v":{"$error":"#N/A"}},{"$f":"IF(INDIRECT(\"c\" & (VLOOKUP(Rebalance!$D$39,$F$2:$G$48,2,FALSE)+ROW()-2))=Rebalance!$D$39,INDIRECT(\"a\" & (VLOOKUP(Rebalance!$D$39,$F$2:$G$48,2,FALSE)+ROW()-2)),\"\")","v":{"$error":"#N/A"}},{"$f":"IF(INDIRECT(\"c\" & (VLOOKUP(Rebalance!$D$40,$F$2:$G$48,2,FALSE)+ROW()-2))=Rebalance!$D$40,INDIRECT(\"a\" & (VLOOKUP(Rebalance!$D$40,$F$2:$G$48,2,FALSE)+ROW()-2)),\"\")","v":{"$error":"#N/A"}},{"$f":"IF(INDIRECT(\"c\" & (VLOOKUP(Rebalance!$D$52,$F$2:$G$48,2,FALSE)+ROW()-2))=Rebalance!$D$52,INDIRECT(\"a\" & (VLOOKUP(Rebalance!$D$52,$F$2:$G$48,2,FALSE)+ROW()-2)),\"\")","v":{"$error":"#N/A"}},{"$f":"IF(INDIRECT(\"c\" & (VLOOKUP(Rebalance!$D$53,$F$2:$G$48,2,FALSE)+ROW()-2))=Rebalance!$D$53,INDIRECT(\"a\" & (VLOOKUP(Rebalance!$D$53,$F$2:$G$48,2,FALSE)+ROW()-2)),\"\")","v":{"$error":"#N/A"}},{"$f":"IF(INDIRECT(\"c\" & (VLOOKUP(Rebalance!$D$54,$F$2:$G$48,2,FALSE)+ROW()-2))=Rebalance!$D$54,INDIRECT(\"a\" & (VLOOKUP(Rebalance!$D$54,$F$2:$G$48,2,FALSE)+ROW()-2)),\"\")","v":{"$error":"#N/A"}},{"$f":"IF(INDIRECT(\"c\" & (VLOOKUP(Rebalance!$D$55,$F$2:$G$48,2,FALSE)+ROW()-2))=Rebalance!$D$55,INDIRECT(\"a\" & (VLOOKUP(Rebalance!$D$55,$F$2:$G$48,2,FALSE)+ROW()-2)),\"\")","v":{"$error":"#N/A"}},{"$f":"IF(INDIRECT(\"c\" & (VLOOKUP(Rebalance!$D$56,$F$2:$G$48,2,FALSE)+ROW()-2))=Rebalance!$D$56,INDIRECT(\"a\" & (VLOOKUP(Rebalance!$D$56,$F$2:$G$48,2,FALSE)+ROW()-2)),\"\")","v":{"$error":"#N/A"}},{"$f":"IF(INDIRECT(\"c\" & (VLOOKUP(Rebalance!$D$57,$F$2:$G$48,2,FALSE)+ROW()-2))=Rebalance!$D$57,INDIRECT(\"a\" & (VLOOKUP(Rebalance!$D$57,$F$2:$G$48,2,FALSE)+ROW()-2)),\"\")","v":{"$error":"#N/A"}},{"$f":"IF(INDIRECT(\"c\" & (VLOOKUP(Rebalance!$D$58,$F$2:$G$48,2,FALSE)+ROW()-2))=Rebalance!$D$58,INDIRECT(\"a\" & (VLOOKUP(Rebalance!$D$58,$F$2:$G$48,2,FALSE)+ROW()-2)),\"\")","v":{"$error":"#N/A"}},{"$f":"IF(INDIRECT(\"c\" & (VLOOKUP(Rebalance!$D$59,$F$2:$G$48,2,FALSE)+ROW()-2))=Rebalance!$D$59,INDIRECT(\"a\" & (VLOOKUP(Rebalance!$D$59,$F$2:$G$48,2,FALSE)+ROW()-2)),\"\")","v":{"$error":"#N/A"}},{"$f":"IF(INDIRECT(\"c\" & (VLOOKUP(Rebalance!$D$60,$F$2:$G$48,2,FALSE)+ROW()-2))=Rebalance!$D$60,INDIRECT(\"a\" & (VLOOKUP(Rebalance!$D$60,$F$2:$G$48,2,FALSE)+ROW()-2)),\"\")","v":{"$error":"#N/A"}},{"$f":"IF(INDIRECT(\"c\" & (VLOOKUP(Rebalance!$D$61,$F$2:$G$48,2,FALSE)+ROW()-2))=Rebalance!$D$61,INDIRECT(\"a\" & (VLOOKUP(Rebalance!$D$61,$F$2:$G$48,2,FALSE)+ROW()-2)),\"\")","v":{"$error":"#N/A"}},{"$f":"IF(INDIRECT(\"c\" & (VLOOKUP(Rebalance!$D$62,$F$2:$G$48,2,FALSE)+ROW()-2))=Rebalance!$D$62,INDIRECT(\"a\" & (VLOOKUP(Rebalance!$D$62,$F$2:$G$48,2,FALSE)+ROW()-2)),\"\")","v":{"$error":"#N/A"}},{"$f":"IF(INDIRECT(\"c\" & (VLOOKUP(Rebalance!$D$63,$F$2:$G$48,2,FALSE)+ROW()-2))=Rebalance!$D$63,INDIRECT(\"a\" & (VLOOKUP(Rebalance!$D$63,$F$2:$G$48,2,FALSE)+ROW()-2)),\"\")","v":{"$error":"#N/A"}},{"$f":"IF(INDIRECT(\"c\" & (VLOOKUP(Rebalance!$D$64,$F$2:$G$48,2,FALSE)+ROW()-2))=Rebalance!$D$64,INDIRECT(\"a\" & (VLOOKUP(Rebalance!$D$64,$F$2:$G$48,2,FALSE)+ROW()-2)),\"\")","v":{"$error":"#N/A"}},{"$f":"IF(INDIRECT(\"c\" & (VLOOKUP(Rebalance!$D$65,$F$2:$G$48,2,FALSE)+ROW()-2))=Rebalance!$D$65,INDIRECT(\"a\" & (VLOOKUP(Rebalance!$D$65,$F$2:$G$48,2,FALSE)+ROW()-2)),\"\")","v":{"$error":"#N/A"}},{"$f":"IF(INDIRECT(\"c\" & (VLOOKUP(Rebalance!$D$66,$F$2:$G$48,2,FALSE)+ROW()-2))=Rebalance!$D$66,INDIRECT(\"a\" & (VLOOKUP(Rebalance!$D$66,$F$2:$G$48,2,FALSE)+ROW()-2)),\"\")","v":{"$error":"#N/A"}}]
[null,null,null,{"$f":"ROW()","v":636},null,null,{"$f":"VLOOKUP(F636,$C$2:$D$599,2,FALSE)","v":{"$error":"#N/A"}},{"$f":"IF(INDIRECT(\"c\" & (VLOOKUP(Rebalance!$D$26,$F$2:$G$48,2,FALSE)+ROW()-2))=Rebalance!$D$26,INDIRECT(\"a\" & (VLOOKUP(Rebalance!$D$26,$F$2:$G$48,2,FALSE)+ROW()-2)),\"\")","v":{"$error":"#N/A"}},{"$f":"IF(INDIRECT(\"c\" & (VLOOKUP(Rebalance!$D$27,$F$2:$G$48,2,FALSE)+ROW()-2))=Rebalance!$D$27,INDIRECT(\"a\" & (VLOOKUP(Rebalance!$D$27,$F$2:$G$48,2,FALSE)+ROW()-2)),\"\")","v":{"$error":"#N/A"}},{"$f":"IF(INDIRECT(\"c\" & (VLOOKUP(Rebalance!$D$28,$F$2:$G$48,2,FALSE)+ROW()-2))=Rebalance!$D$28,INDIRECT(\"a\" & (VLOOKUP(Rebalance!$D$28,$F$2:$G$48,2,FALSE)+ROW()-2)),\"\")","v":{"$error":"#N/A"}},{"$f":"IF(INDIRECT(\"c\" & (VLOOKUP(Rebalance!$D$29,$F$2:$G$48,2,FALSE)+ROW()-2))=Rebalance!$D$29,INDIRECT(\"a\" & (VLOOKUP(Rebalance!$D$29,$F$2:$G$48,2,FALSE)+ROW()-2)),\"\")","v":{"$error":"#N/A"}},{"$f":"IF(INDIRECT(\"c\" & (VLOOKUP(Rebalance!$D$30,$F$2:$G$48,2,FALSE)+ROW()-2))=Rebalance!$D$30,INDIRECT(\"a\" & (VLOOKUP(Rebalance!$D$30,$F$2:$G$48,2,FALSE)+ROW()-2)),\"\")","v":{"$error":"#N/A"}},{"$f":"IF(INDIRECT(\"c\" & (VLOOKUP(Rebalance!$D$31,$F$2:$G$48,2,FALSE)+ROW()-2))=Rebalance!$D$31,INDIRECT(\"a\" & (VLOOKUP(Rebalance!$D$31,$F$2:$G$48,2,FALSE)+ROW()-2)),\"\")","v":{"$error":"#N/A"}},{"$f":"IF(INDIRECT(\"c\" & (VLOOKUP(Rebalance!$D$32,$F$2:$G$48,2,FALSE)+ROW()-2))=Rebalance!$D$32,INDIRECT(\"a\" & (VLOOKUP(Rebalance!$D$32,$F$2:$G$48,2,FALSE)+ROW()-2)),\"\")","v":{"$error":"#N/A"}},{"$f":"IF(INDIRECT(\"c\" & (VLOOKUP(Rebalance!$D$33,$F$2:$G$48,2,FALSE)+ROW()-2))=Rebalance!$D$33,INDIRECT(\"a\" & (VLOOKUP(Rebalance!$D$33,$F$2:$G$48,2,FALSE)+ROW()-2)),\"\")","v":{"$error":"#N/A"}},{"$f":"IF(INDIRECT(\"c\" & (VLOOKUP(Rebalance!$D$34,$F$2:$G$48,2,FALSE)+ROW()-2))=Rebalance!$D$34,INDIRECT(\"a\" & (VLOOKUP(Rebalance!$D$34,$F$2:$G$48,2,FALSE)+ROW()-2)),\"\")","v":{"$error":"#N/A"}},{"$f":"IF(INDIRECT(\"c\" & (VLOOKUP(Rebalance!$D$35,$F$2:$G$48,2,FALSE)+ROW()-2))=Rebalance!$D$35,INDIRECT(\"a\" & (VLOOKUP(Rebalance!$D$35,$F$2:$G$48,2,FALSE)+ROW()-2)),\"\")","v":{"$error":"#N/A"}},{"$f":"IF(INDIRECT(\"c\" & (VLOOKUP(Rebalance!$D$36,$F$2:$G$48,2,FALSE)+ROW()-2))=Rebalance!$D$36,INDIRECT(\"a\" & (VLOOKUP(Rebalance!$D$36,$F$2:$G$48,2,FALSE)+ROW()-2)),\"\")","v":{"$error":"#N/A"}},{"$f":"IF(INDIRECT(\"c\" & (VLOOKUP(Rebalance!$D$37,$F$2:$G$48,2,FALSE)+ROW()-2))=Rebalance!$D$37,INDIRECT(\"a\" & (VLOOKUP(Rebalance!$D$37,$F$2:$G$48,2,FALSE)+ROW()-2)),\"\")","v":{"$error":"#N/A"}},{"$f":"IF(INDIRECT(\"c\" & (VLOOKUP(Rebalance!$D$38,$F$2:$G$48,2,FALSE)+ROW()-2))=Rebalance!$D$38,INDIRECT(\"a\" & (VLOOKUP(Rebalance!$D$38,$F$2:$G$48,2,FALSE)+ROW()-2)),\"\")","v":{"$error":"#N/A"}},{"$f":"IF(INDIRECT(\"c\" & (VLOOKUP(Rebalance!$D$39,$F$2:$G$48,2,FALSE)+ROW()-2))=Rebalance!$D$39,INDIRECT(\"a\" & (VLOOKUP(Rebalance!$D$39,$F$2:$G$48,2,FALSE)+ROW()-2)),\"\")","v":{"$error":"#N/A"}},{"$f":"IF(INDIRECT(\"c\" & (VLOOKUP(Rebalance!$D$40,$F$2:$G$48,2,FALSE)+ROW()-2))=Rebalance!$D$40,INDIRECT(\"a\" & (VLOOKUP(Rebalance!$D$40,$F$2:$G$48,2,FALSE)+ROW()-2)),\"\")","v":{"$error":"#N/A"}},{"$f":"IF(INDIRECT(\"c\" & (VLOOKUP(Rebalance!$D$52,$F$2:$G$48,2,FALSE)+ROW()-2))=Rebalance!$D$52,INDIRECT(\"a\" & (VLOOKUP(Rebalance!$D$52,$F$2:$G$48,2,FALSE)+ROW()-2)),\"\")","v":{"$error":"#N/A"}},{"$f":"IF(INDIRECT(\"c\" & (VLOOKUP(Rebalance!$D$53,$F$2:$G$48,2,FALSE)+ROW()-2))=Rebalance!$D$53,INDIRECT(\"a\" & (VLOOKUP(Rebalance!$D$53,$F$2:$G$48,2,FALSE)+ROW()-2)),\"\")","v":{"$error":"#N/A"}},{"$f":"IF(INDIRECT(\"c\" & (VLOOKUP(Rebalance!$D$54,$F$2:$G$48,2,FALSE)+ROW()-2))=Rebalance!$D$54,INDIRECT(\"a\" & (VLOOKUP(Rebalance!$D$54,$F$2:$G$48,2,FALSE)+ROW()-2)),\"\")","v":{"$error":"#N/A"}},{"$f":"IF(INDIRECT(\"c\" & (VLOOKUP(Rebalance!$D$55,$F$2:$G$48,2,FALSE)+ROW()-2))=Rebalance!$D$55,INDIRECT(\"a\" & (VLOOKUP(Rebalance!$D$55,$F$2:$G$48,2,FALSE)+ROW()-2)),\"\")","v":{"$error":"#N/A"}},{"$f":"IF(INDIRECT(\"c\" & (VLOOKUP(Rebalance!$D$56,$F$2:$G$48,2,FALSE)+ROW()-2))=Rebalance!$D$56,INDIRECT(\"a\" & (VLOOKUP(Rebalance!$D$56,$F$2:$G$48,2,FALSE)+ROW()-2)),\"\")","v":{"$error":"#N/A"}},{"$f":"IF(INDIRECT(\"c\" & (VLOOKUP(Rebalance!$D$57,$F$2:$G$48,2,FALSE)+ROW()-2))=Rebalance!$D$57,INDIRECT(\"a\" & (VLOOKUP(Rebalance!$D$57,$F$2:$G$48,2,FALSE)+ROW()-2)),\"\")","v":{"$error":"#N/A"}},{"$f":"IF(INDIRECT(\"c\" & (VLOOKUP(Rebalance!$D$58,$F$2:$G$48,2,FALSE)+ROW()-2))=Rebalance!$D$58,INDIRECT(\"a\" & (VLOOKUP(Rebalance!$D$58,$F$2:$G$48,2,FALSE)+ROW()-2)),\"\")","v":{"$error":"#N/A"}},{"$f":"IF(INDIRECT(\"c\" & (VLOOKUP(Rebalance!$D$59,$F$2:$G$48,2,FALSE)+ROW()-2))=Rebalance!$D$59,INDIRECT(\"a\" & (VLOOKUP(Rebalance!$D$59,$F$2:$G$48,2,FALSE)+ROW()-2)),\"\")","v":{"$error":"#N/A"}},{"$f":"IF(INDIRECT(\"c\" & (VLOOKUP(Rebalance!$D$60,$F$2:$G$48,2,FALSE)+ROW()-2))=Rebalance!$D$60,INDIRECT(\"a\" & (VLOOKUP(Rebalance!$D$60,$F$2:$G$48,2,FALSE)+ROW()-2)),\"\")","v":{"$error":"#N/A"}},{"$f":"IF(INDIRECT(\"c\" & (VLOOKUP(Rebalance!$D$61,$F$2:$G$48,2,FALSE)+ROW()-2))=Rebalance!$D$61,INDIRECT(\"a\" & (VLOOKUP(Rebalance!$D$61,$F$2:$G$48,2,FALSE)+ROW()-2)),\"\")","v":{"$error":"#N/A"}},{"$f":"IF(INDIRECT(\"c\" & (VLOOKUP(Rebalance!$D$62,$F$2:$G$48,2,FALSE)+ROW()-2))=Rebalance!$D$62,INDIRECT(\"a\" & (VLOOKUP(Rebalance!$D$62,$F$2:$G$48,2,FALSE)+ROW()-2)),\"\")","v":{"$error":"#N/A"}},{"$f":"IF(INDIRECT(\"c\" & (VLOOKUP(Rebalance!$D$63,$F$2:$G$48,2,FALSE)+ROW()-2))=Rebalance!$D$63,INDIRECT(\"a\" & (VLOOKUP(Rebalance!$D$63,$F$2:$G$48,2,FALSE)+ROW()-2)),\"\")","v":{"$error":"#N/A"}},{"$f":"IF(INDIRECT(\"c\" & (VLOOKUP(Rebalance!$D$64,$F$2:$G$48,2,FALSE)+ROW()-2))=Rebalance!$D$64,INDIRECT(\"a\" & (VLOOKUP(Rebalance!$D$64,$F$2:$G$48,2,FALSE)+ROW()-2)),\"\")","v":{"$error":"#N/A"}},{"$f":"IF(INDIRECT(\"c\" & (VLOOKUP(Rebalance!$D$65,$F$2:$G$48,2,FALSE)+ROW()-2))=Rebalance!$D$65,INDIRECT(\"a\" & (VLOOKUP(Rebalance!$D$65,$F$2:$G$48,2,FALSE)+ROW()-2)),\"\")","v":{"$error":"#N/A"}},{"$f":"IF(INDIRECT(\"c\" & (VLOOKUP(Rebalance!$D$66,$F$2:$G$48,2,FALSE)+ROW()-2))=Rebalance!$D$66,INDIRECT(\"a\" & (VLOOKUP(Rebalance!$D$66,$F$2:$G$48,2,FALSE)+ROW()-2)),\"\")","v":{"$error":"#N/A"}}]
[null,null,null,{"$f":"ROW()","v":637},null,null,{"$f":"VLOOKUP(F637,$C$2:$D$599,2,FALSE)","v":{"$error":"#N/A"}},{"$f":"IF(INDIRECT(\"c\" & (VLOOKUP(Rebalance!$D$26,$F$2:$G$48,2,FALSE)+ROW()-2))=Rebalance!$D$26,INDIRECT(\"a\" & (VLOOKUP(Rebalance!$D$26,$F$2:$G$48,2,FALSE)+ROW()-2)),\"\")","v":{"$error":"#N/A"}},{"$f":"IF(INDIRECT(\"c\" & (VLOOKUP(Rebalance!$D$27,$F$2:$G$48,2,FALSE)+ROW()-2))=Rebalance!$D$27,INDIRECT(\"a\" & (VLOOKUP(Rebalance!$D$27,$F$2:$G$48,2,FALSE)+ROW()-2)),\"\")","v":{"$error":"#N/A"}},{"$f":"IF(INDIRECT(\"c\" & (VLOOKUP(Rebalance!$D$28,$F$2:$G$48,2,FALSE)+ROW()-2))=Rebalance!$D$28,INDIRECT(\"a\" & (VLOOKUP(Rebalance!$D$28,$F$2:$G$48,2,FALSE)+ROW()-2)),\"\")","v":{"$error":"#N/A"}},{"$f":"IF(INDIRECT(\"c\" & (VLOOKUP(Rebalance!$D$29,$F$2:$G$48,2,FALSE)+ROW()-2))=Rebalance!$D$29,INDIRECT(\"a\" & (VLOOKUP(Rebalance!$D$29,$F$2:$G$48,2,FALSE)+ROW()-2)),\"\")","v":{"$error":"#N/A"}},{"$f":"IF(INDIRECT(\"c\" & (VLOOKUP(Rebalance!$D$30,$F$2:$G$48,2,FALSE)+ROW()-2))=Rebalance!$D$30,INDIRECT(\"a\" & (VLOOKUP(Rebalance!$D$30,$F$2:$G$48,2,FALSE)+ROW()-2)),\"\")","v":{"$error":"#N/A"}},{"$f":"IF(INDIRECT(\"c\" & (VLOOKUP(Rebalance!$D$31,$F$2:$G$48,2,FALSE)+ROW()-2))=Rebalance!$D$31,INDIRECT(\"a\" & (VLOOKUP(Rebalance!$D$31,$F$2:$G$48,2,FALSE)+ROW()-2)),\"\")","v":{"$error":"#N/A"}},{"$f":"IF(INDIRECT(\"c\" & (VLOOKUP(Rebalance!$D$32,$F$2:$G$48,2,FALSE)+ROW()-2))=Rebalance!$D$32,INDIRECT(\"a\" & (VLOOKUP(Rebalance!$D$32,$F$2:$G$48,2,FALSE)+ROW()-2)),\"\")","v":{"$error":"#N/A"}},{"$f":"IF(INDIRECT(\"c\" & (VLOOKUP(Rebalance!$D$33,$F$2:$G$48,2,FALSE)+ROW()-2))=Rebalance!$D$33,INDIRECT(\"a\" & (VLOOKUP(Rebalance!$D$33,$F$2:$G$48,2,FALSE)+ROW()-2)),\"\")","v":{"$error":"#N/A"}},{"$f":"IF(INDIRECT(\"c\" & (VLOOKUP(Rebalance!$D$34,$F$2:$G$48,2,FALSE)+ROW()-2))=Rebalance!$D$34,INDIRECT(\"a\" & (VLOOKUP(Rebalance!$D$34,$F$2:$G$48,2,FALSE)+ROW()-2)),\"\")","v":{"$error":"#N/A"}},{"$f":"IF(INDIRECT(\"c\" & (VLOOKUP(Rebalance!$D$35,$F$2:$G$48,2,FALSE)+ROW()-2))=Rebalance!$D$35,INDIRECT(\"a\" & (VLOOKUP(Rebalance!$D$35,$F$2:$G$48,2,FALSE)+ROW()-2)),\"\")","v":{"$error":"#N/A"}},{"$f":"IF(INDIRECT(\"c\" & (VLOOKUP(Rebalance!$D$36,$F$2:$G$48,2,FALSE)+ROW()-2))=Rebalance!$D$36,INDIRECT(\"a\" & (VLOOKUP(Rebalance!$D$36,$F$2:$G$48,2,FALSE)+ROW()-2)),\"\")","v":{"$error":"#N/A"}},{"$f":"IF(INDIRECT(\"c\" & (VLOOKUP(Rebalance!$D$37,$F$2:$G$48,2,FALSE)+ROW()-2))=Rebalance!$D$37,INDIRECT(\"a\" & (VLOOKUP(Rebalance!$D$37,$F$2:$G$48,2,FALSE)+ROW()-2)),\"\")","v":{"$error":"#N/A"}},{"$f":"IF(INDIRECT(\"c\" & (VLOOKUP(Rebalance!$D$38,$F$2:$G$48,2,FALSE)+ROW()-2))=Rebalance!$D$38,INDIRECT(\"a\" & (VLOOKUP(Rebalance!$D$38,$F$2:$G$48,2,FALSE)+ROW()-2)),\"\")","v":{"$error":"#N/A"}},{"$f":"IF(INDIRECT(\"c\" & (VLOOKUP(Rebalance!$D$39,$F$2:$G$48,2,FALSE)+ROW()-2))=Rebalance!$D$39,INDIRECT(\"a\" & (VLOOKUP(Rebalance!$D$39,$F$2:$G$48,2,FALSE)+ROW()-2)),\"\")","v":{"$error":"#N/A"}},{"$f":"IF(INDIRECT(\"c\" & (VLOOKUP(Rebalance!$D$40,$F$2:$G$48,2,FALSE)+ROW()-2))=Rebalance!$D$40,INDIRECT(\"a\" & (VLOOKUP(Rebalance!$D$40,$F$2:$G$48,2,FALSE)+ROW()-2)),\"\")","v":{"$error":"#N/A"}},{"$f":"IF(INDIRECT(\"c\" & (VLOOKUP(Rebalance!$D$52,$F$2:$G$48,2,FALSE)+ROW()-2))=Rebalance!$D$52,INDIRECT(\"a\" & (VLOOKUP(Rebalance!$D$52,$F$2:$G$48,2,FALSE)+ROW()-2)),\"\")","v":{"$error":"#N/A"}},{"$f":"IF(INDIRECT(\"c\" & (VLOOKUP(Rebalance!$D$53,$F$2:$G$48,2,FALSE)+ROW()-2))=Rebalance!$D$53,INDIRECT(\"a\" & (VLOOKUP(Rebalance!$D$53,$F$2:$G$48,2,FALSE)+ROW()-2)),\"\")","v":{"$error":"#N/A"}},{"$f":"IF(INDIRECT(\"c\" & (VLOOKUP(Rebalance!$D$54,$F$2:$G$48,2,FALSE)+ROW()-2))=Rebalance!$D$54,INDIRECT(\"a\" & (VLOOKUP(Rebalance!$D$54,$F$2:$G$48,2,FALSE)+ROW()-2)),\"\")","v":{"$error":"#N/A"}},{"$f":"IF(INDIRECT(\"c\" & (VLOOKUP(Rebalance!$D$55,$F$2:$G$48,2,FALSE)+ROW()-2))=Rebalance!$D$55,INDIRECT(\"a\" & (VLOOKUP(Rebalance!$D$55,$F$2:$G$48,2,FALSE)+ROW()-2)),\"\")","v":{"$error":"#N/A"}},{"$f":"IF(INDIRECT(\"c\" & (VLOOKUP(Rebalance!$D$56,$F$2:$G$48,2,FALSE)+ROW()-2))=Rebalance!$D$56,INDIRECT(\"a\" & (VLOOKUP(Rebalance!$D$56,$F$2:$G$48,2,FALSE)+ROW()-2)),\"\")","v":{"$error":"#N/A"}},{"$f":"IF(INDIRECT(\"c\" & (VLOOKUP(Rebalance!$D$57,$F$2:$G$48,2,FALSE)+ROW()-2))=Rebalance!$D$57,INDIRECT(\"a\" & (VLOOKUP(Rebalance!$D$57,$F$2:$G$48,2,FALSE)+ROW()-2)),\"\")","v":{"$error":"#N/A"}},{"$f":"IF(INDIRECT(\"c\" & (VLOOKUP(Rebalance!$D$58,$F$2:$G$48,2,FALSE)+ROW()-2))=Rebalance!$D$58,INDIRECT(\"a\" & (VLOOKUP(Rebalance!$D$58,$F$2:$G$48,2,FALSE)+ROW()-2)),\"\")","v":{"$error":"#N/A"}},{"$f":"IF(INDIRECT(\"c\" & (VLOOKUP(Rebalance!$D$59,$F$2:$G$48,2,FALSE)+ROW()-2))=Rebalance!$D$59,INDIRECT(\"a\" & (VLOOKUP(Rebalance!$D$59,$F$2:$G$48,2,FALSE)+ROW()-2)),\"\")","v":{"$error":"#N/A"}},{"$f":"IF(INDIRECT(\"c\" & (VLOOKUP(Rebalance!$D$60,$F$2:$G$48,2,FALSE)+ROW()-2))=Rebalance!$D$60,INDIRECT(\"a\" & (VLOOKUP(Rebalance!$D$60,$F$2:$G$48,2,FALSE)+ROW()-2)),\"\")","v":{"$error":"#N/A"}},{"$f":"IF(INDIRECT(\"c\" & (VLOOKUP(Rebalance!$D$61,$F$2:$G$48,2,FALSE)+ROW()-2))=Rebalance!$D$61,INDIRECT(\"a\" & (VLOOKUP(Rebalance!$D$61,$F$2:$G$48,2,FALSE)+ROW()-2)),\"\")","v":{"$error":"#N/A"}},{"$f":"IF(INDIRECT(\"c\" & (VLOOKUP(Rebalance!$D$62,$F$2:$G$48,2,FALSE)+ROW()-2))=Rebalance!$D$62,INDIRECT(\"a\" & (VLOOKUP(Rebalance!$D$62,$F$2:$G$48,2,FALSE)+ROW()-2)),\"\")","v":{"$error":"#N/A"}},{"$f":"IF(INDIRECT(\"c\" & (VLOOKUP(Rebalance!$D$63,$F$2:$G$48,2,FALSE)+ROW()-2))=Rebalance!$D$63,INDIRECT(\"a\" & (VLOOKUP(Rebalance!$D$63,$F$2:$G$48,2,FALSE)+ROW()-2)),\"\")","v":{"$error":"#N/A"}},{"$f":"IF(INDIRECT(\"c\" & (VLOOKUP(Rebalance!$D$64,$F$2:$G$48,2,FALSE)+ROW()-2))=Rebalance!$D$64,INDIRECT(\"a\" & (VLOOKUP(Rebalance!$D$64,$F$2:$G$48,2,FALSE)+ROW()-2)),\"\")","v":{"$error":"#N/A"}},{"$f":"IF(INDIRECT(\"c\" & (VLOOKUP(Rebalance!$D$65,$F$2:$G$48,2,FALSE)+ROW()-2))=Rebalance!$D$65,INDIRECT(\"a\" & (VLOOKUP(Rebalance!$D$65,$F$2:$G$48,2,FALSE)+ROW()-2)),\"\")","v":{"$error":"#N/A"}},{"$f":"IF(INDIRECT(\"c\" & (VLOOKUP(Rebalance!$D$66,$F$2:$G$48,2,FALSE)+ROW()-2))=Rebalance!$D$66,INDIRECT(\"a\" & (VLOOKUP(Rebalance!$D$66,$F$2:$G$48,2,FALSE)+ROW()-2)),\"\")","v":{"$error":"#N/A"}}]
[null,null,null,{"$f":"ROW()","v":638},null,null,{"$f":"VLOOKUP(F638,$C$2:$D$599,2,FALSE)","v":{"$error":"#N/A"}},{"$f":"IF(INDIRECT(\"c\" & (VLOOKUP(Rebalance!$D$26,$F$2:$G$48,2,FALSE)+ROW()-2))=Rebalance!$D$26,INDIRECT(\"a\" & (VLOOKUP(Rebalance!$D$26,$F$2:$G$48,2,FALSE)+ROW()-2)),\"\")","v":{"$error":"#N/A"}},{"$f":"IF(INDIRECT(\"c\" & (VLOOKUP(Rebalance!$D$27,$F$2:$G$48,2,FALSE)+ROW()-2))=Rebalance!$D$27,INDIRECT(\"a\" & (VLOOKUP(Rebalance!$D$27,$F$2:$G$48,2,FALSE)+ROW()-2)),\"\")","v":{"$error":"#N/A"}},{"$f":"IF(INDIRECT(\"c\" & (VLOOKUP(Rebalance!$D$28,$F$2:$G$48,2,FALSE)+ROW()-2))=Rebalance!$D$28,INDIRECT(\"a\" & (VLOOKUP(Rebalance!$D$28,$F$2:$G$48,2,FALSE)+ROW()-2)),\"\")","v":{"$error":"#N/A"}},{"$f":"IF(INDIRECT(\"c\" & (VLOOKUP(Rebalance!$D$29,$F$2:$G$48,2,FALSE)+ROW()-2))=Rebalance!$D$29,INDIRECT(\"a\" & (VLOOKUP(Rebalance!$D$29,$F$2:$G$48,2,FALSE)+ROW()-2)),\"\")","v":{"$error":"#N/A"}},{"$f":"IF(INDIRECT(\"c\" & (VLOOKUP(Rebalance!$D$30,$F$2:$G$48,2,FALSE)+ROW()-2))=Rebalance!$D$30,INDIRECT(\"a\" & (VLOOKUP(Rebalance!$D$30,$F$2:$G$48,2,FALSE)+ROW()-2)),\"\")","v":{"$error":"#N/A"}},{"$f":"IF(INDIRECT(\"c\" & (VLOOKUP(Rebalance!$D$31,$F$2:$G$48,2,FALSE)+ROW()-2))=Rebalance!$D$31,INDIRECT(\"a\" & (VLOOKUP(Rebalance!$D$31,$F$2:$G$48,2,FALSE)+ROW()-2)),\"\")","v":{"$error":"#N/A"}},{"$f":"IF(INDIRECT(\"c\" & (VLOOKUP(Rebalance!$D$32,$F$2:$G$48,2,FALSE)+ROW()-2))=Rebalance!$D$32,INDIRECT(\"a\" & (VLOOKUP(Rebalance!$D$32,$F$2:$G$48,2,FALSE)+ROW()-2)),\"\")","v":{"$error":"#N/A"}},{"$f":"IF(INDIRECT(\"c\" & (VLOOKUP(Rebalance!$D$33,$F$2:$G$48,2,FALSE)+ROW()-2))=Rebalance!$D$33,INDIRECT(\"a\" & (VLOOKUP(Rebalance!$D$33,$F$2:$G$48,2,FALSE)+ROW()-2)),\"\")","v":{"$error":"#N/A"}},{"$f":"IF(INDIRECT(\"c\" & (VLOOKUP(Rebalance!$D$34,$F$2:$G$48,2,FALSE)+ROW()-2))=Rebalance!$D$34,INDIRECT(\"a\" & (VLOOKUP(Rebalance!$D$34,$F$2:$G$48,2,FALSE)+ROW()-2)),\"\")","v":{"$error":"#N/A"}},{"$f":"IF(INDIRECT(\"c\" & (VLOOKUP(Rebalance!$D$35,$F$2:$G$48,2,FALSE)+ROW()-2))=Rebalance!$D$35,INDIRECT(\"a\" & (VLOOKUP(Rebalance!$D$35,$F$2:$G$48,2,FALSE)+ROW()-2)),\"\")","v":{"$error":"#N/A"}},{"$f":"IF(INDIRECT(\"c\" & (VLOOKUP(Rebalance!$D$36,$F$2:$G$48,2,FALSE)+ROW()-2))=Rebalance!$D$36,INDIRECT(\"a\" & (VLOOKUP(Rebalance!$D$36,$F$2:$G$48,2,FALSE)+ROW()-2)),\"\")","v":{"$error":"#N/A"}},{"$f":"IF(INDIRECT(\"c\" & (VLOOKUP(Rebalance!$D$37,$F$2:$G$48,2,FALSE)+ROW()-2))=Rebalance!$D$37,INDIRECT(\"a\" & (VLOOKUP(Rebalance!$D$37,$F$2:$G$48,2,FALSE)+ROW()-2)),\"\")","v":{"$error":"#N/A"}},{"$f":"IF(INDIRECT(\"c\" & (VLOOKUP(Rebalance!$D$38,$F$2:$G$48,2,FALSE)+ROW()-2))=Rebalance!$D$38,INDIRECT(\"a\" & (VLOOKUP(Rebalance!$D$38,$F$2:$G$48,2,FALSE)+ROW()-2)),\"\")","v":{"$error":"#N/A"}},{"$f":"IF(INDIRECT(\"c\" & (VLOOKUP(Rebalance!$D$39,$F$2:$G$48,2,FALSE)+ROW()-2))=Rebalance!$D$39,INDIRECT(\"a\" & (VLOOKUP(Rebalance!$D$39,$F$2:$G$48,2,FALSE)+ROW()-2)),\"\")","v":{"$error":"#N/A"}},{"$f":"IF(INDIRECT(\"c\" & (VLOOKUP(Rebalance!$D$40,$F$2:$G$48,2,FALSE)+ROW()-2))=Rebalance!$D$40,INDIRECT(\"a\" & (VLOOKUP(Rebalance!$D$40,$F$2:$G$48,2,FALSE)+ROW()-2)),\"\")","v":{"$error":"#N/A"}},{"$f":"IF(INDIRECT(\"c\" & (VLOOKUP(Rebalance!$D$52,$F$2:$G$48,2,FALSE)+ROW()-2))=Rebalance!$D$52,INDIRECT(\"a\" & (VLOOKUP(Rebalance!$D$52,$F$2:$G$48,2,FALSE)+ROW()-2)),\"\")","v":{"$error":"#N/A"}},{"$f":"IF(INDIRECT(\"c\" & (VLOOKUP(Rebalance!$D$53,$F$2:$G$48,2,FALSE)+ROW()-2))=Rebalance!$D$53,INDIRECT(\"a\" & (VLOOKUP(Rebalance!$D$53,$F$2:$G$48,2,FALSE)+ROW()-2)),\"\")","v":{"$error":"#N/A"}},{"$f":"IF(INDIRECT(\"c\" & (VLOOKUP(Rebalance!$D$54,$F$2:$G$48,2,FALSE)+ROW()-2))=Rebalance!$D$54,INDIRECT(\"a\" & (VLOOKUP(Rebalance!$D$54,$F$2:$G$48,2,FALSE)+ROW()-2)),\"\")","v":{"$error":"#N/A"}},{"$f":"IF(INDIRECT(\"c\" & (VLOOKUP(Rebalance!$D$55,$F$2:$G$48,2,FALSE)+ROW()-2))=Rebalance!$D$55,INDIRECT(\"a\" & (VLOOKUP(Rebalance!$D$55,$F$2:$G$48,2,FALSE)+ROW()-2)),\"\")","v":{"$error":"#N/A"}},{"$f":"IF(INDIRECT(\"c\" & (VLOOKUP(Rebalance!$D$56,$F$2:$G$48,2,FALSE)+ROW()-2))=Rebalance!$D$56,INDIRECT(\"a\" & (VLOOKUP(Rebalance!$D$56,$F$2:$G$48,2,FALSE)+ROW()-2)),\"\")","v":{"$error":"#N/A"}},{"$f":"IF(INDIRECT(\"c\" & (VLOOKUP(Rebalance!$D$57,$F$2:$G$48,2,FALSE)+ROW()-2))=Rebalance!$D$57,INDIRECT(\"a\" & (VLOOKUP(Rebalance!$D$57,$F$2:$G$48,2,FALSE)+ROW()-2)),\"\")","v":{"$error":"#N/A"}},{"$f":"IF(INDIRECT(\"c\" & (VLOOKUP(Rebalance!$D$58,$F$2:$G$48,2,FALSE)+ROW()-2))=Rebalance!$D$58,INDIRECT(\"a\" & (VLOOKUP(Rebalance!$D$58,$F$2:$G$48,2,FALSE)+ROW()-2)),\"\")","v":{"$error":"#N/A"}},{"$f":"IF(INDIRECT(\"c\" & (VLOOKUP(Rebalance!$D$59,$F$2:$G$48,2,FALSE)+ROW()-2))=Rebalance!$D$59,INDIRECT(\"a\" & (VLOOKUP(Rebalance!$D$59,$F$2:$G$48,2,FALSE)+ROW()-2)),\"\")","v":{"$error":"#N/A"}},{"$f":"IF(INDIRECT(\"c\" & (VLOOKUP(Rebalance!$D$60,$F$2:$G$48,2,FALSE)+ROW()-2))=Rebalance!$D$60,INDIRECT(\"a\" & (VLOOKUP(Rebalance!$D$60,$F$2:$G$48,2,FALSE)+ROW()-2)),\"\")","v":{"$error":"#N/A"}},{"$f":"IF(INDIRECT(\"c\" & (VLOOKUP(Rebalance!$D$61,$F$2:$G$48,2,FALSE)+ROW()-2))=Rebalance!$D$61,INDIRECT(\"a\" & (VLOOKUP(Rebalance!$D$61,$F$2:$G$48,2,FALSE)+ROW()-2)),\"\")","v":{"$error":"#N/A"}},{"$f":"IF(INDIRECT(\"c\" & (VLOOKUP(Rebalance!$D$62,$F$2:$G$48,2,FALSE)+ROW()-2))=Rebalance!$D$62,INDIRECT(\"a\" & (VLOOKUP(Rebalance!$D$62,$F$2:$G$48,2,FALSE)+ROW()-2)),\"\")","v":{"$error":"#N/A"}},{"$f":"IF(INDIRECT(\"c\" & (VLOOKUP(Rebalance!$D$63,$F$2:$G$48,2,FALSE)+ROW()-2))=Rebalance!$D$63,INDIRECT(\"a\" & (VLOOKUP(Rebalance!$D$63,$F$2:$G$48,2,FALSE)+ROW()-2)),\"\")","v":{"$error":"#N/A"}},{"$f":"IF(INDIRECT(\"c\" & (VLOOKUP(Rebalance!$D$64,$F$2:$G$48,2,FALSE)+ROW()-2))=Rebalance!$D$64,INDIRECT(\"a\" & (VLOOKUP(Rebalance!$D$64,$F$2:$G$48,2,FALSE)+ROW()-2)),\"\")","v":{"$error":"#N/A"}},{"$f":"IF(INDIRECT(\"c\" & (VLOOKUP(Rebalance!$D$65,$F$2:$G$48,2,FALSE)+ROW()-2))=Rebalance!$D$65,INDIRECT(\"a\" & (VLOOKUP(Rebalance!$D$65,$F$2:$G$48,2,FALSE)+ROW()-2)),\"\")","v":{"$error":"#N/A"}},{"$f":"IF(INDIRECT(\"c\" & (VLOOKUP(Rebalance!$D$66,$F$2:$G$48,2,FALSE)+ROW()-2))=Rebalance!$D$66,INDIRECT(\"a\" & (VLOOKUP(Rebalance!$D$66,$F$2:$G$48,2,FALSE)+ROW()-2)),\"\")","v":{"$error":"#N/A"}}]
[null,null,null,{"$f":"ROW()","v":639},null,null,{"$f":"VLOOKUP(F639,$C$2:$D$599,2,FALSE)","v":{"$error":"#N/A"}},{"$f":"IF(INDIRECT(\"c\" & (VLOOKUP(Rebalance!$D$26,$F$2:$G$48,2,FALSE)+ROW()-2))=Rebalance!$D$26,INDIRECT(\"a\" & (VLOOKUP(Rebalance!$D$26,$F$2:$G$48,2,FALSE)+ROW()-2)),\"\")","v":{"$error":"#N/A"}},{"$f":"IF(INDIRECT(\"c\" & (VLOOKUP(Rebalance!$D$27,$F$2:$G$48,2,FALSE)+ROW()-2))=Rebalance!$D$27,INDIRECT(\"a\" & (VLOOKUP(Rebalance!$D$27,$F$2:$G$48,2,FALSE)+ROW()-2)),\"\")","v":{"$error":"#N/A"}},{"$f":"IF(INDIRECT(\"c\" & (VLOOKUP(Rebalance!$D$28,$F$2:$G$48,2,FALSE)+ROW()-2))=Rebalance!$D$28,INDIRECT(\"a\" & (VLOOKUP(Rebalance!$D$28,$F$2:$G$48,2,FALSE)+ROW()-2)),\"\")","v":{"$error":"#N/A"}},{"$f":"IF(INDIRECT(\"c\" & (VLOOKUP(Rebalance!$D$29,$F$2:$G$48,2,FALSE)+ROW()-2))=Rebalance!$D$29,INDIRECT(\"a\" & (VLOOKUP(Rebalance!$D$29,$F$2:$G$48,2,FALSE)+ROW()-2)),\"\")","v":{"$error":"#N/A"}},{"$f":"IF(INDIRECT(\"c\" & (VLOOKUP(Rebalance!$D$30,$F$2:$G$48,2,FALSE)+ROW()-2))=Rebalance!$D$30,INDIRECT(\"a\" & (VLOOKUP(Rebalance!$D$30,$F$2:$G$48,2,FALSE)+ROW()-2)),\"\")","v":{"$error":"#N/A"}},{"$f":"IF(INDIRECT(\"c\" & (VLOOKUP(Rebalance!$D$31,$F$2:$G$48,2,FALSE)+ROW()-2))=Rebalance!$D$31,INDIRECT(\"a\" & (VLOOKUP(Rebalance!$D$31,$F$2:$G$48,2,FALSE)+ROW()-2)),\"\")","v":{"$error":"#N/A"}},{"$f":"IF(INDIRECT(\"c\" & (VLOOKUP(Rebalance!$D$32,$F$2:$G$48,2,FALSE)+ROW()-2))=Rebalance!$D$32,INDIRECT(\"a\" & (VLOOKUP(Rebalance!$D$32,$F$2:$G$48,2,FALSE)+ROW()-2)),\"\")","v":{"$error":"#N/A"}},{"$f":"IF(INDIRECT(\"c\" & (VLOOKUP(Rebalance!$D$33,$F$2:$G$48,2,FALSE)+ROW()-2))=Rebalance!$D$33,INDIRECT(\"a\" & (VLOOKUP(Rebalance!$D$33,$F$2:$G$48,2,FALSE)+ROW()-2)),\"\")","v":{"$error":"#N/A"}},{"$f":"IF(INDIRECT(\"c\" & (VLOOKUP(Rebalance!$D$34,$F$2:$G$48,2,FALSE)+ROW()-2))=Rebalance!$D$34,INDIRECT(\"a\" & (VLOOKUP(Rebalance!$D$34,$F$2:$G$48,2,FALSE)+ROW()-2)),\"\")","v":{"$error":"#N/A"}},{"$f":"IF(INDIRECT(\"c\" & (VLOOKUP(Rebalance!$D$35,$F$2:$G$48,2,FALSE)+ROW()-2))=Rebalance!$D$35,INDIRECT(\"a\" & (VLOOKUP(Rebalance!$D$35,$F$2:$G$48,2,FALSE)+ROW()-2)),\"\")","v":{"$error":"#N/A"}},{"$f":"IF(INDIRECT(\"c\" & (VLOOKUP(Rebalance!$D$36,$F$2:$G$48,2,FALSE)+ROW()-2))=Rebalance!$D$36,INDIRECT(\"a\" & (VLOOKUP(Rebalance!$D$36,$F$2:$G$48,2,FALSE)+ROW()-2)),\"\")","v":{"$error":"#N/A"}},{"$f":"IF(INDIRECT(\"c\" & (VLOOKUP(Rebalance!$D$37,$F$2:$G$48,2,FALSE)+ROW()-2))=Rebalance!$D$37,INDIRECT(\"a\" & (VLOOKUP(Rebalance!$D$37,$F$2:$G$48,2,FALSE)+ROW()-2)),\"\")","v":{"$error":"#N/A"}},{"$f":"IF(INDIRECT(\"c\" & (VLOOKUP(Rebalance!$D$38,$F$2:$G$48,2,FALSE)+ROW()-2))=Rebalance!$D$38,INDIRECT(\"a\" & (VLOOKUP(Rebalance!$D$38,$F$2:$G$48,2,FALSE)+ROW()-2)),\"\")","v":{"$error":"#N/A"}},{"$f":"IF(INDIRECT(\"c\" & (VLOOKUP(Rebalance!$D$39,$F$2:$G$48,2,FALSE)+ROW()-2))=Rebalance!$D$39,INDIRECT(\"a\" & (VLOOKUP(Rebalance!$D$39,$F$2:$G$48,2,FALSE)+ROW()-2)),\"\")","v":{"$error":"#N/A"}},{"$f":"IF(INDIRECT(\"c\" & (VLOOKUP(Rebalance!$D$40,$F$2:$G$48,2,FALSE)+ROW()-2))=Rebalance!$D$40,INDIRECT(\"a\" & (VLOOKUP(Rebalance!$D$40,$F$2:$G$48,2,FALSE)+ROW()-2)),\"\")","v":{"$error":"#N/A"}},{"$f":"IF(INDIRECT(\"c\" & (VLOOKUP(Rebalance!$D$52,$F$2:$G$48,2,FALSE)+ROW()-2))=Rebalance!$D$52,INDIRECT(\"a\" & (VLOOKUP(Rebalance!$D$52,$F$2:$G$48,2,FALSE)+ROW()-2)),\"\")","v":{"$error":"#N/A"}},{"$f":"IF(INDIRECT(\"c\" & (VLOOKUP(Rebalance!$D$53,$F$2:$G$48,2,FALSE)+ROW()-2))=Rebalance!$D$53,INDIRECT(\"a\" & (VLOOKUP(Rebalance!$D$53,$F$2:$G$48,2,FALSE)+ROW()-2)),\"\")","v":{"$error":"#N/A"}},{"$f":"IF(INDIRECT(\"c\" & (VLOOKUP(Rebalance!$D$54,$F$2:$G$48,2,FALSE)+ROW()-2))=Rebalance!$D$54,INDIRECT(\"a\" & (VLOOKUP(Rebalance!$D$54,$F$2:$G$48,2,FALSE)+ROW()-2)),\"\")","v":{"$error":"#N/A"}},{"$f":"IF(INDIRECT(\"c\" & (VLOOKUP(Rebalance!$D$55,$F$2:$G$48,2,FALSE)+ROW()-2))=Rebalance!$D$55,INDIRECT(\"a\" & (VLOOKUP(Rebalance!$D$55,$F$2:$G$48,2,FALSE)+ROW()-2)),\"\")","v":{"$error":"#N/A"}},{"$f":"IF(INDIRECT(\"c\" & (VLOOKUP(Rebalance!$D$56,$F$2:$G$48,2,FALSE)+ROW()-2))=Rebalance!$D$56,INDIRECT(\"a\" & (VLOOKUP(Rebalance!$D$56,$F$2:$G$48,2,FALSE)+ROW()-2)),\"\")","v":{"$error":"#N/A"}},{"$f":"IF(INDIRECT(\"c\" & (VLOOKUP(Rebalance!$D$57,$F$2:$G$48,2,FALSE)+ROW()-2))=Rebalance!$D$57,INDIRECT(\"a\" & (VLOOKUP(Rebalance!$D$57,$F$2:$G$48,2,FALSE)+ROW()-2)),\"\")","v":{"$error":"#N/A"}},{"$f":"IF(INDIRECT(\"c\" & (VLOOKUP(Rebalance!$D$58,$F$2:$G$48,2,FALSE)+ROW()-2))=Rebalance!$D$58,INDIRECT(\"a\" & (VLOOKUP(Rebalance!$D$58,$F$2:$G$48,2,FALSE)+ROW()-2)),\"\")","v":{"$error":"#N/A"}},{"$f":"IF(INDIRECT(\"c\" & (VLOOKUP(Rebalance!$D$59,$F$2:$G$48,2,FALSE)+ROW()-2))=Rebalance!$D$59,INDIRECT(\"a\" & (VLOOKUP(Rebalance!$D$59,$F$2:$G$48,2,FALSE)+ROW()-2)),\"\")","v":{"$error":"#N/A"}},{"$f":"IF(INDIRECT(\"c\" & (VLOOKUP(Rebalance!$D$60,$F$2:$G$48,2,FALSE)+ROW()-2))=Rebalance!$D$60,INDIRECT(\"a\" & (VLOOKUP(Rebalance!$D$60,$F$2:$G$48,2,FALSE)+ROW()-2)),\"\")","v":{"$error":"#N/A"}},{"$f":"IF(INDIRECT(\"c\" & (VLOOKUP(Rebalance!$D$61,$F$2:$G$48,2,FALSE)+ROW()-2))=Rebalance!$D$61,INDIRECT(\"a\" & (VLOOKUP(Rebalance!$D$61,$F$2:$G$48,2,FALSE)+ROW()-2)),\"\")","v":{"$error":"#N/A"}},{"$f":"IF(INDIRECT(\"c\" & (VLOOKUP(Rebalance!$D$62,$F$2:$G$48,2,FALSE)+ROW()-2))=Rebalance!$D$62,INDIRECT(\"a\" & (VLOOKUP(Rebalance!$D$62,$F$2:$G$48,2,FALSE)+ROW()-2)),\"\")","v":{"$error":"#N/A"}},{"$f":"IF(INDIRECT(\"c\" & (VLOOKUP(Rebalance!$D$63,$F$2:$G$48,2,FALSE)+ROW()-2))=Rebalance!$D$63,INDIRECT(\"a\" & (VLOOKUP(Rebalance!$D$63,$F$2:$G$48,2,FALSE)+ROW()-2)),\"\")","v":{"$error":"#N/A"}},{"$f":"IF(INDIRECT(\"c\" & (VLOOKUP(Rebalance!$D$64,$F$2:$G$48,2,FALSE)+ROW()-2))=Rebalance!$D$64,INDIRECT(\"a\" & (VLOOKUP(Rebalance!$D$64,$F$2:$G$48,2,FALSE)+ROW()-2)),\"\")","v":{"$error":"#N/A"}},{"$f":"IF(INDIRECT(\"c\" & (VLOOKUP(Rebalance!$D$65,$F$2:$G$48,2,FALSE)+ROW()-2))=Rebalance!$D$65,INDIRECT(\"a\" & (VLOOKUP(Rebalance!$D$65,$F$2:$G$48,2,FALSE)+ROW()-2)),\"\")","v":{"$error":"#N/A"}},{"$f":"IF(INDIRECT(\"c\" & (VLOOKUP(Rebalance!$D$66,$F$2:$G$48,2,FALSE)+ROW()-2))=Rebalance!$D$66,INDIRECT(\"a\" & (VLOOKUP(Rebalance!$D$66,$F$2:$G$48,2,FALSE)+ROW()-2)),\"\")","v":{"$error":"#N/A"}}]
[null,null,null,{"$f":"ROW()","v":640},null,null,{"$f":"VLOOKUP(F640,$C$2:$D$599,2,FALSE)","v":{"$error":"#N/A"}},{"$f":"IF(INDIRECT(\"c\" & (VLOOKUP(Rebalance!$D$26,$F$2:$G$48,2,FALSE)+ROW()-2))=Rebalance!$D$26,INDIRECT(\"a\" & (VLOOKUP(Rebalance!$D$26,$F$2:$G$48,2,FALSE)+ROW()-2)),\"\")","v":{"$error":"#N/A"}},{"$f":"IF(INDIRECT(\"c\" & (VLOOKUP(Rebalance!$D$27,$F$2:$G$48,2,FALSE)+ROW()-2))=Rebalance!$D$27,INDIRECT(\"a\" & (VLOOKUP(Rebalance!$D$27,$F$2:$G$48,2,FALSE)+ROW()-2)),\"\")","v":{"$error":"#N/A"}},{"$f":"IF(INDIRECT(\"c\" & (VLOOKUP(Rebalance!$D$28,$F$2:$G$48,2,FALSE)+ROW()-2))=Rebalance!$D$28,INDIRECT(\"a\" & (VLOOKUP(Rebalance!$D$28,$F$2:$G$48,2,FALSE)+ROW()-2)),\"\")","v":{"$error":"#N/A"}},{"$f":"IF(INDIRECT(\"c\" & (VLOOKUP(Rebalance!$D$29,$F$2:$G$48,2,FALSE)+ROW()-2))=Rebalance!$D$29,INDIRECT(\"a\" & (VLOOKUP(Rebalance!$D$29,$F$2:$G$48,2,FALSE)+ROW()-2)),\"\")","v":{"$error":"#N/A"}},{"$f":"IF(INDIRECT(\"c\" & (VLOOKUP(Rebalance!$D$30,$F$2:$G$48,2,FALSE)+ROW()-2))=Rebalance!$D$30,INDIRECT(\"a\" & (VLOOKUP(Rebalance!$D$30,$F$2:$G$48,2,FALSE)+ROW()-2)),\"\")","v":{"$error":"#N/A"}},{"$f":"IF(INDIRECT(\"c\" & (VLOOKUP(Rebalance!$D$31,$F$2:$G$48,2,FALSE)+ROW()-2))=Rebalance!$D$31,INDIRECT(\"a\" & (VLOOKUP(Rebalance!$D$31,$F$2:$G$48,2,FALSE)+ROW()-2)),\"\")","v":{"$error":"#N/A"}},{"$f":"IF(INDIRECT(\"c\" & (VLOOKUP(Rebalance!$D$32,$F$2:$G$48,2,FALSE)+ROW()-2))=Rebalance!$D$32,INDIRECT(\"a\" & (VLOOKUP(Rebalance!$D$32,$F$2:$G$48,2,FALSE)+ROW()-2)),\"\")","v":{"$error":"#N/A"}},{"$f":"IF(INDIRECT(\"c\" & (VLOOKUP(Rebalance!$D$33,$F$2:$G$48,2,FALSE)+ROW()-2))=Rebalance!$D$33,INDIRECT(\"a\" & (VLOOKUP(Rebalance!$D$33,$F$2:$G$48,2,FALSE)+ROW()-2)),\"\")","v":{"$error":"#N/A"}},{"$f":"IF(INDIRECT(\"c\" & (VLOOKUP(Rebalance!$D$34,$F$2:$G$48,2,FALSE)+ROW()-2))=Rebalance!$D$34,INDIRECT(\"a\" & (VLOOKUP(Rebalance!$D$34,$F$2:$G$48,2,FALSE)+ROW()-2)),\"\")","v":{"$error":"#N/A"}},{"$f":"IF(INDIRECT(\"c\" & (VLOOKUP(Rebalance!$D$35,$F$2:$G$48,2,FALSE)+ROW()-2))=Rebalance!$D$35,INDIRECT(\"a\" & (VLOOKUP(Rebalance!$D$35,$F$2:$G$48,2,FALSE)+ROW()-2)),\"\")","v":{"$error":"#N/A"}},{"$f":"IF(INDIRECT(\"c\" & (VLOOKUP(Rebalance!$D$36,$F$2:$G$48,2,FALSE)+ROW()-2))=Rebalance!$D$36,INDIRECT(\"a\" & (VLOOKUP(Rebalance!$D$36,$F$2:$G$48,2,FALSE)+ROW()-2)),\"\")","v":{"$error":"#N/A"}},{"$f":"IF(INDIRECT(\"c\" & (VLOOKUP(Rebalance!$D$37,$F$2:$G$48,2,FALSE)+ROW()-2))=Rebalance!$D$37,INDIRECT(\"a\" & (VLOOKUP(Rebalance!$D$37,$F$2:$G$48,2,FALSE)+ROW()-2)),\"\")","v":{"$error":"#N/A"}},{"$f":"IF(INDIRECT(\"c\" & (VLOOKUP(Rebalance!$D$38,$F$2:$G$48,2,FALSE)+ROW()-2))=Rebalance!$D$38,INDIRECT(\"a\" & (VLOOKUP(Rebalance!$D$38,$F$2:$G$48,2,FALSE)+ROW()-2)),\"\")","v":{"$error":"#N/A"}},{"$f":"IF(INDIRECT(\"c\" & (VLOOKUP(Rebalance!$D$39,$F$2:$G$48,2,FALSE)+ROW()-2))=Rebalance!$D$39,INDIRECT(\"a\" & (VLOOKUP(Rebalance!$D$39,$F$2:$G$48,2,FALSE)+ROW()-2)),\"\")","v":{"$error":"#N/A"}},{"$f":"IF(INDIRECT(\"c\" & (VLOOKUP(Rebalance!$D$40,$F$2:$G$48,2,FALSE)+ROW()-2))=Rebalance!$D$40,INDIRECT(\"a\" & (VLOOKUP(Rebalance!$D$40,$F$2:$G$48,2,FALSE)+ROW()-2)),\"\")","v":{"$error":"#N/A"}},{"$f":"IF(INDIRECT(\"c\" & (VLOOKUP(Rebalance!$D$52,$F$2:$G$48,2,FALSE)+ROW()-2))=Rebalance!$D$52,INDIRECT(\"a\" & (VLOOKUP(Rebalance!$D$52,$F$2:$G$48,2,FALSE)+ROW()-2)),\"\")","v":{"$error":"#N/A"}},{"$f":"IF(INDIRECT(\"c\" & (VLOOKUP(Rebalance!$D$53,$F$2:$G$48,2,FALSE)+ROW()-2))=Rebalance!$D$53,INDIRECT(\"a\" & (VLOOKUP(Rebalance!$D$53,$F$2:$G$48,2,FALSE)+ROW()-2)),\"\")","v":{"$error":"#N/A"}},{"$f":"IF(INDIRECT(\"c\" & (VLOOKUP(Rebalance!$D$54,$F$2:$G$48,2,FALSE)+ROW()-2))=Rebalance!$D$54,INDIRECT(\"a\" & (VLOOKUP(Rebalance!$D$54,$F$2:$G$48,2,FALSE)+ROW()-2)),\"\")","v":{"$error":"#N/A"}},{"$f":"IF(INDIRECT(\"c\" & (VLOOKUP(Rebalance!$D$55,$F$2:$G$48,2,FALSE)+ROW()-2))=Rebalance!$D$55,INDIRECT(\"a\" & (VLOOKUP(Rebalance!$D$55,$F$2:$G$48,2,FALSE)+ROW()-2)),\"\")","v":{"$error":"#N/A"}},{"$f":"IF(INDIRECT(\"c\" & (VLOOKUP(Rebalance!$D$56,$F$2:$G$48,2,FALSE)+ROW()-2))=Rebalance!$D$56,INDIRECT(\"a\" & (VLOOKUP(Rebalance!$D$56,$F$2:$G$48,2,FALSE)+ROW()-2)),\"\")","v":{"$error":"#N/A"}},{"$f":"IF(INDIRECT(\"c\" & (VLOOKUP(Rebalance!$D$57,$F$2:$G$48,2,FALSE)+ROW()-2))=Rebalance!$D$57,INDIRECT(\"a\" & (VLOOKUP(Rebalance!$D$57,$F$2:$G$48,2,FALSE)+ROW()-2)),\"\")","v":{"$error":"#N/A"}},{"$f":"IF(INDIRECT(\"c\" & (VLOOKUP(Rebalance!$D$58,$F$2:$G$48,2,FALSE)+ROW()-2))=Rebalance!$D$58,INDIRECT(\"a\" & (VLOOKUP(Rebalance!$D$58,$F$2:$G$48,2,FALSE)+ROW()-2)),\"\")","v":{"$error":"#N/A"}},{"$f":"IF(INDIRECT(\"c\" & (VLOOKUP(Rebalance!$D$59,$F$2:$G$48,2,FALSE)+ROW()-2))=Rebalance!$D$59,INDIRECT(\"a\" & (VLOOKUP(Rebalance!$D$59,$F$2:$G$48,2,FALSE)+ROW()-2)),\"\")","v":{"$error":"#N/A"}},{"$f":"IF(INDIRECT(\"c\" & (VLOOKUP(Rebalance!$D$60,$F$2:$G$48,2,FALSE)+ROW()-2))=Rebalance!$D$60,INDIRECT(\"a\" & (VLOOKUP(Rebalance!$D$60,$F$2:$G$48,2,FALSE)+ROW()-2)),\"\")","v":{"$error":"#N/A"}},{"$f":"IF(INDIRECT(\"c\" & (VLOOKUP(Rebalance!$D$61,$F$2:$G$48,2,FALSE)+ROW()-2))=Rebalance!$D$61,INDIRECT(\"a\" & (VLOOKUP(Rebalance!$D$61,$F$2:$G$48,2,FALSE)+ROW()-2)),\"\")","v":{"$error":"#N/A"}},{"$f":"IF(INDIRECT(\"c\" & (VLOOKUP(Rebalance!$D$62,$F$2:$G$48,2,FALSE)+ROW()-2))=Rebalance!$D$62,INDIRECT(\"a\" & (VLOOKUP(Rebalance!$D$62,$F$2:$G$48,2,FALSE)+ROW()-2)),\"\")","v":{"$error":"#N/A"}},{"$f":"IF(INDIRECT(\"c\" & (VLOOKUP(Rebalance!$D$63,$F$2:$G$48,2,FALSE)+ROW()-2))=Rebalance!$D$63,INDIRECT(\"a\" & (VLOOKUP(Rebalance!$D$63,$F$2:$G$48,2,FALSE)+ROW()-2)),\"\")","v":{"$error":"#N/A"}},{"$f":"IF(INDIRECT(\"c\" & (VLOOKUP(Rebalance!$D$64,$F$2:$G$48,2,FALSE)+ROW()-2))=Rebalance!$D$64,INDIRECT(\"a\" & (VLOOKUP(Rebalance!$D$64,$F$2:$G$48,2,FALSE)+ROW()-2)),\"\")","v":{"$error":"#N/A"}},{"$f":"IF(INDIRECT(\"c\" & (VLOOKUP(Rebalance!$D$65,$F$2:$G$48,2,FALSE)+ROW()-2))=Rebalance!$D$65,INDIRECT(\"a\" & (VLOOKUP(Rebalance!$D$65,$F$2:$G$48,2,FALSE)+ROW()-2)),\"\")","v":{"$error":"#N/A"}},{"$f":"IF(INDIRECT(\"c\" & (VLOOKUP(Rebalance!$D$66,$F$2:$G$48,2,FALSE)+ROW()-2))=Rebalance!$D$66,INDIRECT(\"a\" & (VLOOKUP(Rebalance!$D$66,$F$2:$G$48,2,FALSE)+ROW()-2)),\"\")","v":{"$error":"#N/A"}}]
[null,null,null,{"$f":"ROW()","v":641},null,null,{"$f":"VLOOKUP(F641,$C$2:$D$599,2,FALSE)","v":{"$error":"#N/A"}},{"$f":"IF(INDIRECT(\"c\" & (VLOOKUP(Rebalance!$D$26,$F$2:$G$48,2,FALSE)+ROW()-2))=Rebalance!$D$26,INDIRECT(\"a\" & (VLOOKUP(Rebalance!$D$26,$F$2:$G$48,2,FALSE)+ROW()-2)),\"\")","v":{"$error":"#N/A"}},{"$f":"IF(INDIRECT(\"c\" & (VLOOKUP(Rebalance!$D$27,$F$2:$G$48,2,FALSE)+ROW()-2))=Rebalance!$D$27,INDIRECT(\"a\" & (VLOOKUP(Rebalance!$D$27,$F$2:$G$48,2,FALSE)+ROW()-2)),\"\")","v":{"$error":"#N/A"}},{"$f":"IF(INDIRECT(\"c\" & (VLOOKUP(Rebalance!$D$28,$F$2:$G$48,2,FALSE)+ROW()-2))=Rebalance!$D$28,INDIRECT(\"a\" & (VLOOKUP(Rebalance!$D$28,$F$2:$G$48,2,FALSE)+ROW()-2)),\"\")","v":{"$error":"#N/A"}},{"$f":"IF(INDIRECT(\"c\" & (VLOOKUP(Rebalance!$D$29,$F$2:$G$48,2,FALSE)+ROW()-2))=Rebalance!$D$29,INDIRECT(\"a\" & (VLOOKUP(Rebalance!$D$29,$F$2:$G$48,2,FALSE)+ROW()-2)),\"\")","v":{"$error":"#N/A"}},{"$f":"IF(INDIRECT(\"c\" & (VLOOKUP(Rebalance!$D$30,$F$2:$G$48,2,FALSE)+ROW()-2))=Rebalance!$D$30,INDIRECT(\"a\" & (VLOOKUP(Rebalance!$D$30,$F$2:$G$48,2,FALSE)+ROW()-2)),\"\")","v":{"$error":"#N/A"}},{"$f":"IF(INDIRECT(\"c\" & (VLOOKUP(Rebalance!$D$31,$F$2:$G$48,2,FALSE)+ROW()-2))=Rebalance!$D$31,INDIRECT(\"a\" & (VLOOKUP(Rebalance!$D$31,$F$2:$G$48,2,FALSE)+ROW()-2)),\"\")","v":{"$error":"#N/A"}},{"$f":"IF(INDIRECT(\"c\" & (VLOOKUP(Rebalance!$D$32,$F$2:$G$48,2,FALSE)+ROW()-2))=Rebalance!$D$32,INDIRECT(\"a\" & (VLOOKUP(Rebalance!$D$32,$F$2:$G$48,2,FALSE)+ROW()-2)),\"\")","v":{"$error":"#N/A"}},{"$f":"IF(INDIRECT(\"c\" & (VLOOKUP(Rebalance!$D$33,$F$2:$G$48,2,FALSE)+ROW()-2))=Rebalance!$D$33,INDIRECT(\"a\" & (VLOOKUP(Rebalance!$D$33,$F$2:$G$48,2,FALSE)+ROW()-2)),\"\")","v":{"$error":"#N/A"}},{"$f":"IF(INDIRECT(\"c\" & (VLOOKUP(Rebalance!$D$34,$F$2:$G$48,2,FALSE)+ROW()-2))=Rebalance!$D$34,INDIRECT(\"a\" & (VLOOKUP(Rebalance!$D$34,$F$2:$G$48,2,FALSE)+ROW()-2)),\"\")","v":{"$error":"#N/A"}},{"$f":"IF(INDIRECT(\"c\" & (VLOOKUP(Rebalance!$D$35,$F$2:$G$48,2,FALSE)+ROW()-2))=Rebalance!$D$35,INDIRECT(\"a\" & (VLOOKUP(Rebalance!$D$35,$F$2:$G$48,2,FALSE)+ROW()-2)),\"\")","v":{"$error":"#N/A"}},{"$f":"IF(INDIRECT(\"c\" & (VLOOKUP(Rebalance!$D$36,$F$2:$G$48,2,FALSE)+ROW()-2))=Rebalance!$D$36,INDIRECT(\"a\" & (VLOOKUP(Rebalance!$D$36,$F$2:$G$48,2,FALSE)+ROW()-2)),\"\")","v":{"$error":"#N/A"}},{"$f":"IF(INDIRECT(\"c\" & (VLOOKUP(Rebalance!$D$37,$F$2:$G$48,2,FALSE)+ROW()-2))=Rebalance!$D$37,INDIRECT(\"a\" & (VLOOKUP(Rebalance!$D$37,$F$2:$G$48,2,FALSE)+ROW()-2)),\"\")","v":{"$error":"#N/A"}},{"$f":"IF(INDIRECT(\"c\" & (VLOOKUP(Rebalance!$D$38,$F$2:$G$48,2,FALSE)+ROW()-2))=Rebalance!$D$38,INDIRECT(\"a\" & (VLOOKUP(Rebalance!$D$38,$F$2:$G$48,2,FALSE)+ROW()-2)),\"\")","v":{"$error":"#N/A"}},{"$f":"IF(INDIRECT(\"c\" & (VLOOKUP(Rebalance!$D$39,$F$2:$G$48,2,FALSE)+ROW()-2))=Rebalance!$D$39,INDIRECT(\"a\" & (VLOOKUP(Rebalance!$D$39,$F$2:$G$48,2,FALSE)+ROW()-2)),\"\")","v":{"$error":"#N/A"}},{"$f":"IF(INDIRECT(\"c\" & (VLOOKUP(Rebalance!$D$40,$F$2:$G$48,2,FALSE)+ROW()-2))=Rebalance!$D$40,INDIRECT(\"a\" & (VLOOKUP(Rebalance!$D$40,$F$2:$G$48,2,FALSE)+ROW()-2)),\"\")","v":{"$error":"#N/A"}},{"$f":"IF(INDIRECT(\"c\" & (VLOOKUP(Rebalance!$D$52,$F$2:$G$48,2,FALSE)+ROW()-2))=Rebalance!$D$52,INDIRECT(\"a\" & (VLOOKUP(Rebalance!$D$52,$F$2:$G$48,2,FALSE)+ROW()-2)),\"\")","v":{"$error":"#N/A"}},{"$f":"IF(INDIRECT(\"c\" & (VLOOKUP(Rebalance!$D$53,$F$2:$G$48,2,FALSE)+ROW()-2))=Rebalance!$D$53,INDIRECT(\"a\" & (VLOOKUP(Rebalance!$D$53,$F$2:$G$48,2,FALSE)+ROW()-2)),\"\")","v":{"$error":"#N/A"}},{"$f":"IF(INDIRECT(\"c\" & (VLOOKUP(Rebalance!$D$54,$F$2:$G$48,2,FALSE)+ROW()-2))=Rebalance!$D$54,INDIRECT(\"a\" & (VLOOKUP(Rebalance!$D$54,$F$2:$G$48,2,FALSE)+ROW()-2)),\"\")","v":{"$error":"#N/A"}},{"$f":"IF(INDIRECT(\"c\" & (VLOOKUP(Rebalance!$D$55,$F$2:$G$48,2,FALSE)+ROW()-2))=Rebalance!$D$55,INDIRECT(\"a\" & (VLOOKUP(Rebalance!$D$55,$F$2:$G$48,2,FALSE)+ROW()-2)),\"\")","v":{"$error":"#N/A"}},{"$f":"IF(INDIRECT(\"c\" & (VLOOKUP(Rebalance!$D$56,$F$2:$G$48,2,FALSE)+ROW()-2))=Rebalance!$D$56,INDIRECT(\"a\" & (VLOOKUP(Rebalance!$D$56,$F$2:$G$48,2,FALSE)+ROW()-2)),\"\")","v":{"$error":"#N/A"}},{"$f":"IF(INDIRECT(\"c\" & (VLOOKUP(Rebalance!$D$57,$F$2:$G$48,2,FALSE)+ROW()-2))=Rebalance!$D$57,INDIRECT(\"a\" & (VLOOKUP(Rebalance!$D$57,$F$2:$G$48,2,FALSE)+ROW()-2)),\"\")","v":{"$error":"#N/A"}},{"$f":"IF(INDIRECT(\"c\" & (VLOOKUP(Rebalance!$D$58,$F$2:$G$48,2,FALSE)+ROW()-2))=Rebalance!$D$58,INDIRECT(\"a\" & (VLOOKUP(Rebalance!$D$58,$F$2:$G$48,2,FALSE)+ROW()-2)),\"\")","v":{"$error":"#N/A"}},{"$f":"IF(INDIRECT(\"c\" & (VLOOKUP(Rebalance!$D$59,$F$2:$G$48,2,FALSE)+ROW()-2))=Rebalance!$D$59,INDIRECT(\"a\" & (VLOOKUP(Rebalance!$D$59,$F$2:$G$48,2,FALSE)+ROW()-2)),\"\")","v":{"$error":"#N/A"}},{"$f":"IF(INDIRECT(\"c\" & (VLOOKUP(Rebalance!$D$60,$F$2:$G$48,2,FALSE)+ROW()-2))=Rebalance!$D$60,INDIRECT(\"a\" & (VLOOKUP(Rebalance!$D$60,$F$2:$G$48,2,FALSE)+ROW()-2)),\"\")","v":{"$error":"#N/A"}},{"$f":"IF(INDIRECT(\"c\" & (VLOOKUP(Rebalance!$D$61,$F$2:$G$48,2,FALSE)+ROW()-2))=Rebalance!$D$61,INDIRECT(\"a\" & (VLOOKUP(Rebalance!$D$61,$F$2:$G$48,2,FALSE)+ROW()-2)),\"\")","v":{"$error":"#N/A"}},{"$f":"IF(INDIRECT(\"c\" & (VLOOKUP(Rebalance!$D$62,$F$2:$G$48,2,FALSE)+ROW()-2))=Rebalance!$D$62,INDIRECT(\"a\" & (VLOOKUP(Rebalance!$D$62,$F$2:$G$48,2,FALSE)+ROW()-2)),\"\")","v":{"$error":"#N/A"}},{"$f":"IF(INDIRECT(\"c\" & (VLOOKUP(Rebalance!$D$63,$F$2:$G$48,2,FALSE)+ROW()-2))=Rebalance!$D$63,INDIRECT(\"a\" & (VLOOKUP(Rebalance!$D$63,$F$2:$G$48,2,FALSE)+ROW()-2)),\"\")","v":{"$error":"#N/A"}},{"$f":"IF(INDIRECT(\"c\" & (VLOOKUP(Rebalance!$D$64,$F$2:$G$48,2,FALSE)+ROW()-2))=Rebalance!$D$64,INDIRECT(\"a\" & (VLOOKUP(Rebalance!$D$64,$F$2:$G$48,2,FALSE)+ROW()-2)),\"\")","v":{"$error":"#N/A"}},{"$f":"IF(INDIRECT(\"c\" & (VLOOKUP(Rebalance!$D$65,$F$2:$G$48,2,FALSE)+ROW()-2))=Rebalance!$D$65,INDIRECT(\"a\" & (VLOOKUP(Rebalance!$D$65,$F$2:$G$48,2,FALSE)+ROW()-2)),\"\")","v":{"$error":"#N/A"}},{"$f":"IF(INDIRECT(\"c\" & (VLOOKUP(Rebalance!$D$66,$F$2:$G$48,2,FALSE)+ROW()-2))=Rebalance!$D$66,INDIRECT(\"a\" & (VLOOKUP(Rebalance!$D$66,$F$2:$G$48,2,FALSE)+ROW()-2)),\"\")","v":{"$error":"#N/A"}}]
[null,null,null,{"$f":"ROW()","v":642},null,null,{"$f":"VLOOKUP(F642,$C$2:$D$599,2,FALSE)","v":{"$error":"#N/A"}},{"$f":"IF(INDIRECT(\"c\" & (VLOOKUP(Rebalance!$D$26,$F$2:$G$48,2,FALSE)+ROW()-2))=Rebalance!$D$26,INDIRECT(\"a\" & (VLOOKUP(Rebalance!$D$26,$F$2:$G$48,2,FALSE)+ROW()-2)),\"\")","v":{"$error":"#N/A"}},{"$f":"IF(INDIRECT(\"c\" & (VLOOKUP(Rebalance!$D$27,$F$2:$G$48,2,FALSE)+ROW()-2))=Rebalance!$D$27,INDIRECT(\"a\" & (VLOOKUP(Rebalance!$D$27,$F$2:$G$48,2,FALSE)+ROW()-2)),\"\")","v":{"$error":"#N/A"}},{"$f":"IF(INDIRECT(\"c\" & (VLOOKUP(Rebalance!$D$28,$F$2:$G$48,2,FALSE)+ROW()-2))=Rebalance!$D$28,INDIRECT(\"a\" & (VLOOKUP(Rebalance!$D$28,$F$2:$G$48,2,FALSE)+ROW()-2)),\"\")","v":{"$error":"#N/A"}},{"$f":"IF(INDIRECT(\"c\" & (VLOOKUP(Rebalance!$D$29,$F$2:$G$48,2,FALSE)+ROW()-2))=Rebalance!$D$29,INDIRECT(\"a\" & (VLOOKUP(Rebalance!$D$29,$F$2:$G$48,2,FALSE)+ROW()-2)),\"\")","v":{"$error":"#N/A"}},{"$f":"IF(INDIRECT(\"c\" & (VLOOKUP(Rebalance!$D$30,$F$2:$G$48,2,FALSE)+ROW()-2))=Rebalance!$D$30,INDIRECT(\"a\" & (VLOOKUP(Rebalance!$D$30,$F$2:$G$48,2,FALSE)+ROW()-2)),\"\")","v":{"$error":"#N/A"}},{"$f":"IF(INDIRECT(\"c\" & (VLOOKUP(Rebalance!$D$31,$F$2:$G$48,2,FALSE)+ROW()-2))=Rebalance!$D$31,INDIRECT(\"a\" & (VLOOKUP(Rebalance!$D$31,$F$2:$G$48,2,FALSE)+ROW()-2)),\"\")","v":{"$error":"#N/A"}},{"$f":"IF(INDIRECT(\"c\" & (VLOOKUP(Rebalance!$D$32,$F$2:$G$48,2,FALSE)+ROW()-2))=Rebalance!$D$32,INDIRECT(\"a\" & (VLOOKUP(Rebalance!$D$32,$F$2:$G$48,2,FALSE)+ROW()-2)),\"\")","v":{"$error":"#N/A"}},{"$f":"IF(INDIRECT(\"c\" & (VLOOKUP(Rebalance!$D$33,$F$2:$G$48,2,FALSE)+ROW()-2))=Rebalance!$D$33,INDIRECT(\"a\" & (VLOOKUP(Rebalance!$D$33,$F$2:$G$48,2,FALSE)+ROW()-2)),\"\")","v":{"$error":"#N/A"}},{"$f":"IF(INDIRECT(\"c\" & (VLOOKUP(Rebalance!$D$34,$F$2:$G$48,2,FALSE)+ROW()-2))=Rebalance!$D$34,INDIRECT(\"a\" & (VLOOKUP(Rebalance!$D$34,$F$2:$G$48,2,FALSE)+ROW()-2)),\"\")","v":{"$error":"#N/A"}},{"$f":"IF(INDIRECT(\"c\" & (VLOOKUP(Rebalance!$D$35,$F$2:$G$48,2,FALSE)+ROW()-2))=Rebalance!$D$35,INDIRECT(\"a\" & (VLOOKUP(Rebalance!$D$35,$F$2:$G$48,2,FALSE)+ROW()-2)),\"\")","v":{"$error":"#N/A"}},{"$f":"IF(INDIRECT(\"c\" & (VLOOKUP(Rebalance!$D$36,$F$2:$G$48,2,FALSE)+ROW()-2))=Rebalance!$D$36,INDIRECT(\"a\" & (VLOOKUP(Rebalance!$D$36,$F$2:$G$48,2,FALSE)+ROW()-2)),\"\")","v":{"$error":"#N/A"}},{"$f":"IF(INDIRECT(\"c\" & (VLOOKUP(Rebalance!$D$37,$F$2:$G$48,2,FALSE)+ROW()-2))=Rebalance!$D$37,INDIRECT(\"a\" & (VLOOKUP(Rebalance!$D$37,$F$2:$G$48,2,FALSE)+ROW()-2)),\"\")","v":{"$error":"#N/A"}},{"$f":"IF(INDIRECT(\"c\" & (VLOOKUP(Rebalance!$D$38,$F$2:$G$48,2,FALSE)+ROW()-2))=Rebalance!$D$38,INDIRECT(\"a\" & (VLOOKUP(Rebalance!$D$38,$F$2:$G$48,2,FALSE)+ROW()-2)),\"\")","v":{"$error":"#N/A"}},{"$f":"IF(INDIRECT(\"c\" & (VLOOKUP(Rebalance!$D$39,$F$2:$G$48,2,FALSE)+ROW()-2))=Rebalance!$D$39,INDIRECT(\"a\" & (VLOOKUP(Rebalance!$D$39,$F$2:$G$48,2,FALSE)+ROW()-2)),\"\")","v":{"$error":"#N/A"}},{"$f":"IF(INDIRECT(\"c\" & (VLOOKUP(Rebalance!$D$40,$F$2:$G$48,2,FALSE)+ROW()-2))=Rebalance!$D$40,INDIRECT(\"a\" & (VLOOKUP(Rebalance!$D$40,$F$2:$G$48,2,FALSE)+ROW()-2)),\"\")","v":{"$error":"#N/A"}},{"$f":"IF(INDIRECT(\"c\" & (VLOOKUP(Rebalance!$D$52,$F$2:$G$48,2,FALSE)+ROW()-2))=Rebalance!$D$52,INDIRECT(\"a\" & (VLOOKUP(Rebalance!$D$52,$F$2:$G$48,2,FALSE)+ROW()-2)),\"\")","v":{"$error":"#N/A"}},{"$f":"IF(INDIRECT(\"c\" & (VLOOKUP(Rebalance!$D$53,$F$2:$G$48,2,FALSE)+ROW()-2))=Rebalance!$D$53,INDIRECT(\"a\" & (VLOOKUP(Rebalance!$D$53,$F$2:$G$48,2,FALSE)+ROW()-2)),\"\")","v":{"$error":"#N/A"}},{"$f":"IF(INDIRECT(\"c\" & (VLOOKUP(Rebalance!$D$54,$F$2:$G$48,2,FALSE)+ROW()-2))=Rebalance!$D$54,INDIRECT(\"a\" & (VLOOKUP(Rebalance!$D$54,$F$2:$G$48,2,FALSE)+ROW()-2)),\"\")","v":{"$error":"#N/A"}},{"$f":"IF(INDIRECT(\"c\" & (VLOOKUP(Rebalance!$D$55,$F$2:$G$48,2,FALSE)+ROW()-2))=Rebalance!$D$55,INDIRECT(\"a\" & (VLOOKUP(Rebalance!$D$55,$F$2:$G$48,2,FALSE)+ROW()-2)),\"\")","v":{"$error":"#N/A"}},{"$f":"IF(INDIRECT(\"c\" & (VLOOKUP(Rebalance!$D$56,$F$2:$G$48,2,FALSE)+ROW()-2))=Rebalance!$D$56,INDIRECT(\"a\" & (VLOOKUP(Rebalance!$D$56,$F$2:$G$48,2,FALSE)+ROW()-2)),\"\")","v":{"$error":"#N/A"}},{"$f":"IF(INDIRECT(\"c\" & (VLOOKUP(Rebalance!$D$57,$F$2:$G$48,2,FALSE)+ROW()-2))=Rebalance!$D$57,INDIRECT(\"a\" & (VLOOKUP(Rebalance!$D$57,$F$2:$G$48,2,FALSE)+ROW()-2)),\"\")","v":{"$error":"#N/A"}},{"$f":"IF(INDIRECT(\"c\" & (VLOOKUP(Rebalance!$D$58,$F$2:$G$48,2,FALSE)+ROW()-2))=Rebalance!$D$58,INDIRECT(\"a\" & (VLOOKUP(Rebalance!$D$58,$F$2:$G$48,2,FALSE)+ROW()-2)),\"\")","v":{"$error":"#N/A"}},{"$f":"IF(INDIRECT(\"c\" & (VLOOKUP(Rebalance!$D$59,$F$2:$G$48,2,FALSE)+ROW()-2))=Rebalance!$D$59,INDIRECT(\"a\" & (VLOOKUP(Rebalance!$D$59,$F$2:$G$48,2,FALSE)+ROW()-2)),\"\")","v":{"$error":"#N/A"}},{"$f":"IF(INDIRECT(\"c\" & (VLOOKUP(Rebalance!$D$60,$F$2:$G$48,2,FALSE)+ROW()-2))=Rebalance!$D$60,INDIRECT(\"a\" & (VLOOKUP(Rebalance!$D$60,$F$2:$G$48,2,FALSE)+ROW()-2)),\"\")","v":{"$error":"#N/A"}},{"$f":"IF(INDIRECT(\"c\" & (VLOOKUP(Rebalance!$D$61,$F$2:$G$48,2,FALSE)+ROW()-2))=Rebalance!$D$61,INDIRECT(\"a\" & (VLOOKUP(Rebalance!$D$61,$F$2:$G$48,2,FALSE)+ROW()-2)),\"\")","v":{"$error":"#N/A"}},{"$f":"IF(INDIRECT(\"c\" & (VLOOKUP(Rebalance!$D$62,$F$2:$G$48,2,FALSE)+ROW()-2))=Rebalance!$D$62,INDIRECT(\"a\" & (VLOOKUP(Rebalance!$D$62,$F$2:$G$48,2,FALSE)+ROW()-2)),\"\")","v":{"$error":"#N/A"}},{"$f":"IF(INDIRECT(\"c\" & (VLOOKUP(Rebalance!$D$63,$F$2:$G$48,2,FALSE)+ROW()-2))=Rebalance!$D$63,INDIRECT(\"a\" & (VLOOKUP(Rebalance!$D$63,$F$2:$G$48,2,FALSE)+ROW()-2)),\"\")","v":{"$error":"#N/A"}},{"$f":"IF(INDIRECT(\"c\" & (VLOOKUP(Rebalance!$D$64,$F$2:$G$48,2,FALSE)+ROW()-2))=Rebalance!$D$64,INDIRECT(\"a\" & (VLOOKUP(Rebalance!$D$64,$F$2:$G$48,2,FALSE)+ROW()-2)),\"\")","v":{"$error":"#N/A"}},{"$f":"IF(INDIRECT(\"c\" & (VLOOKUP(Rebalance!$D$65,$F$2:$G$48,2,FALSE)+ROW()-2))=Rebalance!$D$65,INDIRECT(\"a\" & (VLOOKUP(Rebalance!$D$65,$F$2:$G$48,2,FALSE)+ROW()-2)),\"\")","v":{"$error":"#N/A"}},{"$f":"IF(INDIRECT(\"c\" & (VLOOKUP(Rebalance!$D$66,$F$2:$G$48,2,FALSE)+ROW()-2))=Rebalance!$D$66,INDIRECT(\"a\" & (VLOOKUP(Rebalance!$D$66,$F$2:$G$48,2,FALSE)+ROW()-2)),\"\")","v":{"$error":"#N/A"}}]
[null,null,null,{"$f":"ROW()","v":643},null,null,{"$f":"VLOOKUP(F643,$C$2:$D$599,2,FALSE)","v":{"$error":"#N/A"}},{"$f":"IF(INDIRECT(\"c\" & (VLOOKUP(Rebalance!$D$26,$F$2:$G$48,2,FALSE)+ROW()-2))=Rebalance!$D$26,INDIRECT(\"a\" & (VLOOKUP(Rebalance!$D$26,$F$2:$G$48,2,FALSE)+ROW()-2)),\"\")","v":{"$error":"#N/A"}},{"$f":"IF(INDIRECT(\"c\" & (VLOOKUP(Rebalance!$D$27,$F$2:$G$48,2,FALSE)+ROW()-2))=Rebalance!$D$27,INDIRECT(\"a\" & (VLOOKUP(Rebalance!$D$27,$F$2:$G$48,2,FALSE)+ROW()-2)),\"\")","v":{"$error":"#N/A"}},{"$f":"IF(INDIRECT(\"c\" & (VLOOKUP(Rebalance!$D$28,$F$2:$G$48,2,FALSE)+ROW()-2))=Rebalance!$D$28,INDIRECT(\"a\" & (VLOOKUP(Rebalance!$D$28,$F$2:$G$48,2,FALSE)+ROW()-2)),\"\")","v":{"$error":"#N/A"}},{"$f":"IF(INDIRECT(\"c\" & (VLOOKUP(Rebalance!$D$29,$F$2:$G$48,2,FALSE)+ROW()-2))=Rebalance!$D$29,INDIRECT(\"a\" & (VLOOKUP(Rebalance!$D$29,$F$2:$G$48,2,FALSE)+ROW()-2)),\"\")","v":{"$error":"#N/A"}},{"$f":"IF(INDIRECT(\"c\" & (VLOOKUP(Rebalance!$D$30,$F$2:$G$48,2,FALSE)+ROW()-2))=Rebalance!$D$30,INDIRECT(\"a\" & (VLOOKUP(Rebalance!$D$30,$F$2:$G$48,2,FALSE)+ROW()-2)),\"\")","v":{"$error":"#N/A"}},{"$f":"IF(INDIRECT(\"c\" & (VLOOKUP(Rebalance!$D$31,$F$2:$G$48,2,FALSE)+ROW()-2))=Rebalance!$D$31,INDIRECT(\"a\" & (VLOOKUP(Rebalance!$D$31,$F$2:$G$48,2,FALSE)+ROW()-2)),\"\")","v":{"$error":"#N/A"}},{"$f":"IF(INDIRECT(\"c\" & (VLOOKUP(Rebalance!$D$32,$F$2:$G$48,2,FALSE)+ROW()-2))=Rebalance!$D$32,INDIRECT(\"a\" & (VLOOKUP(Rebalance!$D$32,$F$2:$G$48,2,FALSE)+ROW()-2)),\"\")","v":{"$error":"#N/A"}},{"$f":"IF(INDIRECT(\"c\" & (VLOOKUP(Rebalance!$D$33,$F$2:$G$48,2,FALSE)+ROW()-2))=Rebalance!$D$33,INDIRECT(\"a\" & (VLOOKUP(Rebalance!$D$33,$F$2:$G$48,2,FALSE)+ROW()-2)),\"\")","v":{"$error":"#N/A"}},{"$f":"IF(INDIRECT(\"c\" & (VLOOKUP(Rebalance!$D$34,$F$2:$G$48,2,FALSE)+ROW()-2))=Rebalance!$D$34,INDIRECT(\"a\" & (VLOOKUP(Rebalance!$D$34,$F$2:$G$48,2,FALSE)+ROW()-2)),\"\")","v":{"$error":"#N/A"}},{"$f":"IF(INDIRECT(\"c\" & (VLOOKUP(Rebalance!$D$35,$F$2:$G$48,2,FALSE)+ROW()-2))=Rebalance!$D$35,INDIRECT(\"a\" & (VLOOKUP(Rebalance!$D$35,$F$2:$G$48,2,FALSE)+ROW()-2)),\"\")","v":{"$error":"#N/A"}},{"$f":"IF(INDIRECT(\"c\" & (VLOOKUP(Rebalance!$D$36,$F$2:$G$48,2,FALSE)+ROW()-2))=Rebalance!$D$36,INDIRECT(\"a\" & (VLOOKUP(Rebalance!$D$36,$F$2:$G$48,2,FALSE)+ROW()-2)),\"\")","v":{"$error":"#N/A"}},{"$f":"IF(INDIRECT(\"c\" & (VLOOKUP(Rebalance!$D$37,$F$2:$G$48,2,FALSE)+ROW()-2))=Rebalance!$D$37,INDIRECT(\"a\" & (VLOOKUP(Rebalance!$D$37,$F$2:$G$48,2,FALSE)+ROW()-2)),\"\")","v":{"$error":"#N/A"}},{"$f":"IF(INDIRECT(\"c\" & (VLOOKUP(Rebalance!$D$38,$F$2:$G$48,2,FALSE)+ROW()-2))=Rebalance!$D$38,INDIRECT(\"a\" & (VLOOKUP(Rebalance!$D$38,$F$2:$G$48,2,FALSE)+ROW()-2)),\"\")","v":{"$error":"#N/A"}},{"$f":"IF(INDIRECT(\"c\" & (VLOOKUP(Rebalance!$D$39,$F$2:$G$48,2,FALSE)+ROW()-2))=Rebalance!$D$39,INDIRECT(\"a\" & (VLOOKUP(Rebalance!$D$39,$F$2:$G$48,2,FALSE)+ROW()-2)),\"\")","v":{"$error":"#N/A"}},{"$f":"IF(INDIRECT(\"c\" & (VLOOKUP(Rebalance!$D$40,$F$2:$G$48,2,FALSE)+ROW()-2))=Rebalance!$D$40,INDIRECT(\"a\" & (VLOOKUP(Rebalance!$D$40,$F$2:$G$48,2,FALSE)+ROW()-2)),\"\")","v":{"$error":"#N/A"}},{"$f":"IF(INDIRECT(\"c\" & (VLOOKUP(Rebalance!$D$52,$F$2:$G$48,2,FALSE)+ROW()-2))=Rebalance!$D$52,INDIRECT(\"a\" & (VLOOKUP(Rebalance!$D$52,$F$2:$G$48,2,FALSE)+ROW()-2)),\"\")","v":{"$error":"#N/A"}},{"$f":"IF(INDIRECT(\"c\" & (VLOOKUP(Rebalance!$D$53,$F$2:$G$48,2,FALSE)+ROW()-2))=Rebalance!$D$53,INDIRECT(\"a\" & (VLOOKUP(Rebalance!$D$53,$F$2:$G$48,2,FALSE)+ROW()-2)),\"\")","v":{"$error":"#N/A"}},{"$f":"IF(INDIRECT(\"c\" & (VLOOKUP(Rebalance!$D$54,$F$2:$G$48,2,FALSE)+ROW()-2))=Rebalance!$D$54,INDIRECT(\"a\" & (VLOOKUP(Rebalance!$D$54,$F$2:$G$48,2,FALSE)+ROW()-2)),\"\")","v":{"$error":"#N/A"}},{"$f":"IF(INDIRECT(\"c\" & (VLOOKUP(Rebalance!$D$55,$F$2:$G$48,2,FALSE)+ROW()-2))=Rebalance!$D$55,INDIRECT(\"a\" & (VLOOKUP(Rebalance!$D$55,$F$2:$G$48,2,FALSE)+ROW()-2)),\"\")","v":{"$error":"#N/A"}},{"$f":"IF(INDIRECT(\"c\" & (VLOOKUP(Rebalance!$D$56,$F$2:$G$48,2,FALSE)+ROW()-2))=Rebalance!$D$56,INDIRECT(\"a\" & (VLOOKUP(Rebalance!$D$56,$F$2:$G$48,2,FALSE)+ROW()-2)),\"\")","v":{"$error":"#N/A"}},{"$f":"IF(INDIRECT(\"c\" & (VLOOKUP(Rebalance!$D$57,$F$2:$G$48,2,FALSE)+ROW()-2))=Rebalance!$D$57,INDIRECT(\"a\" & (VLOOKUP(Rebalance!$D$57,$F$2:$G$48,2,FALSE)+ROW()-2)),\"\")","v":{"$error":"#N/A"}},{"$f":"IF(INDIRECT(\"c\" & (VLOOKUP(Rebalance!$D$58,$F$2:$G$48,2,FALSE)+ROW()-2))=Rebalance!$D$58,INDIRECT(\"a\" & (VLOOKUP(Rebalance!$D$58,$F$2:$G$48,2,FALSE)+ROW()-2)),\"\")","v":{"$error":"#N/A"}},{"$f":"IF(INDIRECT(\"c\" & (VLOOKUP(Rebalance!$D$59,$F$2:$G$48,2,FALSE)+ROW()-2))=Rebalance!$D$59,INDIRECT(\"a\" & (VLOOKUP(Rebalance!$D$59,$F$2:$G$48,2,FALSE)+ROW()-2)),\"\")","v":{"$error":"#N/A"}},{"$f":"IF(INDIRECT(\"c\" & (VLOOKUP(Rebalance!$D$60,$F$2:$G$48,2,FALSE)+ROW()-2))=Rebalance!$D$60,INDIRECT(\"a\" & (VLOOKUP(Rebalance!$D$60,$F$2:$G$48,2,FALSE)+ROW()-2)),\"\")","v":{"$error":"#N/A"}},{"$f":"IF(INDIRECT(\"c\" & (VLOOKUP(Rebalance!$D$61,$F$2:$G$48,2,FALSE)+ROW()-2))=Rebalance!$D$61,INDIRECT(\"a\" & (VLOOKUP(Rebalance!$D$61,$F$2:$G$48,2,FALSE)+ROW()-2)),\"\")","v":{"$error":"#N/A"}},{"$f":"IF(INDIRECT(\"c\" & (VLOOKUP(Rebalance!$D$62,$F$2:$G$48,2,FALSE)+ROW()-2))=Rebalance!$D$62,INDIRECT(\"a\" & (VLOOKUP(Rebalance!$D$62,$F$2:$G$48,2,FALSE)+ROW()-2)),\"\")","v":{"$error":"#N/A"}},{"$f":"IF(INDIRECT(\"c\" & (VLOOKUP(Rebalance!$D$63,$F$2:$G$48,2,FALSE)+ROW()-2))=Rebalance!$D$63,INDIRECT(\"a\" & (VLOOKUP(Rebalance!$D$63,$F$2:$G$48,2,FALSE)+ROW()-2)),\"\")","v":{"$error":"#N/A"}},{"$f":"IF(INDIRECT(\"c\" & (VLOOKUP(Rebalance!$D$64,$F$2:$G$48,2,FALSE)+ROW()-2))=Rebalance!$D$64,INDIRECT(\"a\" & (VLOOKUP(Rebalance!$D$64,$F$2:$G$48,2,FALSE)+ROW()-2)),\"\")","v":{"$error":"#N/A"}},{"$f":"IF(INDIRECT(\"c\" & (VLOOKUP(Rebalance!$D$65,$F$2:$G$48,2,FALSE)+ROW()-2))=Rebalance!$D$65,INDIRECT(\"a\" & (VLOOKUP(Rebalance!$D$65,$F$2:$G$48,2,FALSE)+ROW()-2)),\"\")","v":{"$error":"#N/A"}},{"$f":"IF(INDIRECT(\"c\" & (VLOOKUP(Rebalance!$D$66,$F$2:$G$48,2,FALSE)+ROW()-2))=Rebalance!$D$66,INDIRECT(\"a\" & (VLOOKUP(Rebalance!$D$66,$F$2:$G$48,2,FALSE)+ROW()-2)),\"\")","v":{"$error":"#N/A"}}]
[null,null,null,{"$f":"ROW()","v":644},null,null,{"$f":"VLOOKUP(F644,$C$2:$D$599,2,FALSE)","v":{"$error":"#N/A"}},{"$f":"IF(INDIRECT(\"c\" & (VLOOKUP(Rebalance!$D$26,$F$2:$G$48,2,FALSE)+ROW()-2))=Rebalance!$D$26,INDIRECT(\"a\" & (VLOOKUP(Rebalance!$D$26,$F$2:$G$48,2,FALSE)+ROW()-2)),\"\")","v":{"$error":"#N/A"}},{"$f":"IF(INDIRECT(\"c\" & (VLOOKUP(Rebalance!$D$27,$F$2:$G$48,2,FALSE)+ROW()-2))=Rebalance!$D$27,INDIRECT(\"a\" & (VLOOKUP(Rebalance!$D$27,$F$2:$G$48,2,FALSE)+ROW()-2)),\"\")","v":{"$error":"#N/A"}},{"$f":"IF(INDIRECT(\"c\" & (VLOOKUP(Rebalance!$D$28,$F$2:$G$48,2,FALSE)+ROW()-2))=Rebalance!$D$28,INDIRECT(\"a\" & (VLOOKUP(Rebalance!$D$28,$F$2:$G$48,2,FALSE)+ROW()-2)),\"\")","v":{"$error":"#N/A"}},{"$f":"IF(INDIRECT(\"c\" & (VLOOKUP(Rebalance!$D$29,$F$2:$G$48,2,FALSE)+ROW()-2))=Rebalance!$D$29,INDIRECT(\"a\" & (VLOOKUP(Rebalance!$D$29,$F$2:$G$48,2,FALSE)+ROW()-2)),\"\")","v":{"$error":"#N/A"}},{"$f":"IF(INDIRECT(\"c\" & (VLOOKUP(Rebalance!$D$30,$F$2:$G$48,2,FALSE)+ROW()-2))=Rebalance!$D$30,INDIRECT(\"a\" & (VLOOKUP(Rebalance!$D$30,$F$2:$G$48,2,FALSE)+ROW()-2)),\"\")","v":{"$error":"#N/A"}},{"$f":"IF(INDIRECT(\"c\" & (VLOOKUP(Rebalance!$D$31,$F$2:$G$48,2,FALSE)+ROW()-2))=Rebalance!$D$31,INDIRECT(\"a\" & (VLOOKUP(Rebalance!$D$31,$F$2:$G$48,2,FALSE)+ROW()-2)),\"\")","v":{"$error":"#N/A"}},{"$f":"IF(INDIRECT(\"c\" & (VLOOKUP(Rebalance!$D$32,$F$2:$G$48,2,FALSE)+ROW()-2))=Rebalance!$D$32,INDIRECT(\"a\" & (VLOOKUP(Rebalance!$D$32,$F$2:$G$48,2,FALSE)+ROW()-2)),\"\")","v":{"$error":"#N/A"}},{"$f":"IF(INDIRECT(\"c\" & (VLOOKUP(Rebalance!$D$33,$F$2:$G$48,2,FALSE)+ROW()-2))=Rebalance!$D$33,INDIRECT(\"a\" & (VLOOKUP(Rebalance!$D$33,$F$2:$G$48,2,FALSE)+ROW()-2)),\"\")","v":{"$error":"#N/A"}},{"$f":"IF(INDIRECT(\"c\" & (VLOOKUP(Rebalance!$D$34,$F$2:$G$48,2,FALSE)+ROW()-2))=Rebalance!$D$34,INDIRECT(\"a\" & (VLOOKUP(Rebalance!$D$34,$F$2:$G$48,2,FALSE)+ROW()-2)),\"\")","v":{"$error":"#N/A"}},{"$f":"IF(INDIRECT(\"c\" & (VLOOKUP(Rebalance!$D$35,$F$2:$G$48,2,FALSE)+ROW()-2))=Rebalance!$D$35,INDIRECT(\"a\" & (VLOOKUP(Rebalance!$D$35,$F$2:$G$48,2,FALSE)+ROW()-2)),\"\")","v":{"$error":"#N/A"}},{"$f":"IF(INDIRECT(\"c\" & (VLOOKUP(Rebalance!$D$36,$F$2:$G$48,2,FALSE)+ROW()-2))=Rebalance!$D$36,INDIRECT(\"a\" & (VLOOKUP(Rebalance!$D$36,$F$2:$G$48,2,FALSE)+ROW()-2)),\"\")","v":{"$error":"#N/A"}},{"$f":"IF(INDIRECT(\"c\" & (VLOOKUP(Rebalance!$D$37,$F$2:$G$48,2,FALSE)+ROW()-2))=Rebalance!$D$37,INDIRECT(\"a\" & (VLOOKUP(Rebalance!$D$37,$F$2:$G$48,2,FALSE)+ROW()-2)),\"\")","v":{"$error":"#N/A"}},{"$f":"IF(INDIRECT(\"c\" & (VLOOKUP(Rebalance!$D$38,$F$2:$G$48,2,FALSE)+ROW()-2))=Rebalance!$D$38,INDIRECT(\"a\" & (VLOOKUP(Rebalance!$D$38,$F$2:$G$48,2,FALSE)+ROW()-2)),\"\")","v":{"$error":"#N/A"}},{"$f":"IF(INDIRECT(\"c\" & (VLOOKUP(Rebalance!$D$39,$F$2:$G$48,2,FALSE)+ROW()-2))=Rebalance!$D$39,INDIRECT(\"a\" & (VLOOKUP(Rebalance!$D$39,$F$2:$G$48,2,FALSE)+ROW()-2)),\"\")","v":{"$error":"#N/A"}},{"$f":"IF(INDIRECT(\"c\" & (VLOOKUP(Rebalance!$D$40,$F$2:$G$48,2,FALSE)+ROW()-2))=Rebalance!$D$40,INDIRECT(\"a\" & (VLOOKUP(Rebalance!$D$40,$F$2:$G$48,2,FALSE)+ROW()-2)),\"\")","v":{"$error":"#N/A"}},{"$f":"IF(INDIRECT(\"c\" & (VLOOKUP(Rebalance!$D$52,$F$2:$G$48,2,FALSE)+ROW()-2))=Rebalance!$D$52,INDIRECT(\"a\" & (VLOOKUP(Rebalance!$D$52,$F$2:$G$48,2,FALSE)+ROW()-2)),\"\")","v":{"$error":"#N/A"}},{"$f":"IF(INDIRECT(\"c\" & (VLOOKUP(Rebalance!$D$53,$F$2:$G$48,2,FALSE)+ROW()-2))=Rebalance!$D$53,INDIRECT(\"a\" & (VLOOKUP(Rebalance!$D$53,$F$2:$G$48,2,FALSE)+ROW()-2)),\"\")","v":{"$error":"#N/A"}},{"$f":"IF(INDIRECT(\"c\" & (VLOOKUP(Rebalance!$D$54,$F$2:$G$48,2,FALSE)+ROW()-2))=Rebalance!$D$54,INDIRECT(\"a\" & (VLOOKUP(Rebalance!$D$54,$F$2:$G$48,2,FALSE)+ROW()-2)),\"\")","v":{"$error":"#N/A"}},{"$f":"IF(INDIRECT(\"c\" & (VLOOKUP(Rebalance!$D$55,$F$2:$G$48,2,FALSE)+ROW()-2))=Rebalance!$D$55,INDIRECT(\"a\" & (VLOOKUP(Rebalance!$D$55,$F$2:$G$48,2,FALSE)+ROW()-2)),\"\")","v":{"$error":"#N/A"}},{"$f":"IF(INDIRECT(\"c\" & (VLOOKUP(Rebalance!$D$56,$F$2:$G$48,2,FALSE)+ROW()-2))=Rebalance!$D$56,INDIRECT(\"a\" & (VLOOKUP(Rebalance!$D$56,$F$2:$G$48,2,FALSE)+ROW()-2)),\"\")","v":{"$error":"#N/A"}},{"$f":"IF(INDIRECT(\"c\" & (VLOOKUP(Rebalance!$D$57,$F$2:$G$48,2,FALSE)+ROW()-2))=Rebalance!$D$57,INDIRECT(\"a\" & (VLOOKUP(Rebalance!$D$57,$F$2:$G$48,2,FALSE)+ROW()-2)),\"\")","v":{"$error":"#N/A"}},{"$f":"IF(INDIRECT(\"c\" & (VLOOKUP(Rebalance!$D$58,$F$2:$G$48,2,FALSE)+ROW()-2))=Rebalance!$D$58,INDIRECT(\"a\" & (VLOOKUP(Rebalance!$D$58,$F$2:$G$48,2,FALSE)+ROW()-2)),\"\")","v":{"$error":"#N/A"}},{"$f":"IF(INDIRECT(\"c\" & (VLOOKUP(Rebalance!$D$59,$F$2:$G$48,2,FALSE)+ROW()-2))=Rebalance!$D$59,INDIRECT(\"a\" & (VLOOKUP(Rebalance!$D$59,$F$2:$G$48,2,FALSE)+ROW()-2)),\"\")","v":{"$error":"#N/A"}},{"$f":"IF(INDIRECT(\"c\" & (VLOOKUP(Rebalance!$D$60,$F$2:$G$48,2,FALSE)+ROW()-2))=Rebalance!$D$60,INDIRECT(\"a\" & (VLOOKUP(Rebalance!$D$60,$F$2:$G$48,2,FALSE)+ROW()-2)),\"\")","v":{"$error":"#N/A"}},{"$f":"IF(INDIRECT(\"c\" & (VLOOKUP(Rebalance!$D$61,$F$2:$G$48,2,FALSE)+ROW()-2))=Rebalance!$D$61,INDIRECT(\"a\" & (VLOOKUP(Rebalance!$D$61,$F$2:$G$48,2,FALSE)+ROW()-2)),\"\")","v":{"$error":"#N/A"}},{"$f":"IF(INDIRECT(\"c\" & (VLOOKUP(Rebalance!$D$62,$F$2:$G$48,2,FALSE)+ROW()-2))=Rebalance!$D$62,INDIRECT(\"a\" & (VLOOKUP(Rebalance!$D$62,$F$2:$G$48,2,FALSE)+ROW()-2)),\"\")","v":{"$error":"#N/A"}},{"$f":"IF(INDIRECT(\"c\" & (VLOOKUP(Rebalance!$D$63,$F$2:$G$48,2,FALSE)+ROW()-2))=Rebalance!$D$63,INDIRECT(\"a\" & (VLOOKUP(Rebalance!$D$63,$F$2:$G$48,2,FALSE)+ROW()-2)),\"\")","v":{"$error":"#N/A"}},{"$f":"IF(INDIRECT(\"c\" & (VLOOKUP(Rebalance!$D$64,$F$2:$G$48,2,FALSE)+ROW()-2))=Rebalance!$D$64,INDIRECT(\"a\" & (VLOOKUP(Rebalance!$D$64,$F$2:$G$48,2,FALSE)+ROW()-2)),\"\")","v":{"$error":"#N/A"}},{"$f":"IF(INDIRECT(\"c\" & (VLOOKUP(Rebalance!$D$65,$F$2:$G$48,2,FALSE)+ROW()-2))=Rebalance!$D$65,INDIRECT(\"a\" & (VLOOKUP(Rebalance!$D$65,$F$2:$G$48,2,FALSE)+ROW()-2)),\"\")","v":{"$error":"#N/A"}},{"$f":"IF(INDIRECT(\"c\" & (VLOOKUP(Rebalance!$D$66,$F$2:$G$48,2,FALSE)+ROW()-2))=Rebalance!$D$66,INDIRECT(\"a\" & (VLOOKUP(Rebalance!$D$66,$F$2:$G$48,2,FALSE)+ROW()-2)),\"\")","v":{"$error":"#N/A"}}]
[null,null,null,{"$f":"ROW()","v":645},null,null,{"$f":"VLOOKUP(F645,$C$2:$D$599,2,FALSE)","v":{"$error":"#N/A"}},{"$f":"IF(INDIRECT(\"c\" & (VLOOKUP(Rebalance!$D$26,$F$2:$G$48,2,FALSE)+ROW()-2))=Rebalance!$D$26,INDIRECT(\"a\" & (VLOOKUP(Rebalance!$D$26,$F$2:$G$48,2,FALSE)+ROW()-2)),\"\")","v":{"$error":"#N/A"}},{"$f":"IF(INDIRECT(\"c\" & (VLOOKUP(Rebalance!$D$27,$F$2:$G$48,2,FALSE)+ROW()-2))=Rebalance!$D$27,INDIRECT(\"a\" & (VLOOKUP(Rebalance!$D$27,$F$2:$G$48,2,FALSE)+ROW()-2)),\"\")","v":{"$error":"#N/A"}},{"$f":"IF(INDIRECT(\"c\" & (VLOOKUP(Rebalance!$D$28,$F$2:$G$48,2,FALSE)+ROW()-2))=Rebalance!$D$28,INDIRECT(\"a\" & (VLOOKUP(Rebalance!$D$28,$F$2:$G$48,2,FALSE)+ROW()-2)),\"\")","v":{"$error":"#N/A"}},{"$f":"IF(INDIRECT(\"c\" & (VLOOKUP(Rebalance!$D$29,$F$2:$G$48,2,FALSE)+ROW()-2))=Rebalance!$D$29,INDIRECT(\"a\" & (VLOOKUP(Rebalance!$D$29,$F$2:$G$48,2,FALSE)+ROW()-2)),\"\")","v":{"$error":"#N/A"}},{"$f":"IF(INDIRECT(\"c\" & (VLOOKUP(Rebalance!$D$30,$F$2:$G$48,2,FALSE)+ROW()-2))=Rebalance!$D$30,INDIRECT(\"a\" & (VLOOKUP(Rebalance!$D$30,$F$2:$G$48,2,FALSE)+ROW()-2)),\"\")","v":{"$error":"#N/A"}},{"$f":"IF(INDIRECT(\"c\" & (VLOOKUP(Rebalance!$D$31,$F$2:$G$48,2,FALSE)+ROW()-2))=Rebalance!$D$31,INDIRECT(\"a\" & (VLOOKUP(Rebalance!$D$31,$F$2:$G$48,2,FALSE)+ROW()-2)),\"\")","v":{"$error":"#N/A"}},{"$f":"IF(INDIRECT(\"c\" & (VLOOKUP(Rebalance!$D$32,$F$2:$G$48,2,FALSE)+ROW()-2))=Rebalance!$D$32,INDIRECT(\"a\" & (VLOOKUP(Rebalance!$D$32,$F$2:$G$48,2,FALSE)+ROW()-2)),\"\")","v":{"$error":"#N/A"}},{"$f":"IF(INDIRECT(\"c\" & (VLOOKUP(Rebalance!$D$33,$F$2:$G$48,2,FALSE)+ROW()-2))=Rebalance!$D$33,INDIRECT(\"a\" & (VLOOKUP(Rebalance!$D$33,$F$2:$G$48,2,FALSE)+ROW()-2)),\"\")","v":{"$error":"#N/A"}},{"$f":"IF(INDIRECT(\"c\" & (VLOOKUP(Rebalance!$D$34,$F$2:$G$48,2,FALSE)+ROW()-2))=Rebalance!$D$34,INDIRECT(\"a\" & (VLOOKUP(Rebalance!$D$34,$F$2:$G$48,2,FALSE)+ROW()-2)),\"\")","v":{"$error":"#N/A"}},{"$f":"IF(INDIRECT(\"c\" & (VLOOKUP(Rebalance!$D$35,$F$2:$G$48,2,FALSE)+ROW()-2))=Rebalance!$D$35,INDIRECT(\"a\" & (VLOOKUP(Rebalance!$D$35,$F$2:$G$48,2,FALSE)+ROW()-2)),\"\")","v":{"$error":"#N/A"}},{"$f":"IF(INDIRECT(\"c\" & (VLOOKUP(Rebalance!$D$36,$F$2:$G$48,2,FALSE)+ROW()-2))=Rebalance!$D$36,INDIRECT(\"a\" & (VLOOKUP(Rebalance!$D$36,$F$2:$G$48,2,FALSE)+ROW()-2)),\"\")","v":{"$error":"#N/A"}},{"$f":"IF(INDIRECT(\"c\" & (VLOOKUP(Rebalance!$D$37,$F$2:$G$48,2,FALSE)+ROW()-2))=Rebalance!$D$37,INDIRECT(\"a\" & (VLOOKUP(Rebalance!$D$37,$F$2:$G$48,2,FALSE)+ROW()-2)),\"\")","v":{"$error":"#N/A"}},{"$f":"IF(INDIRECT(\"c\" & (VLOOKUP(Rebalance!$D$38,$F$2:$G$48,2,FALSE)+ROW()-2))=Rebalance!$D$38,INDIRECT(\"a\" & (VLOOKUP(Rebalance!$D$38,$F$2:$G$48,2,FALSE)+ROW()-2)),\"\")","v":{"$error":"#N/A"}},{"$f":"IF(INDIRECT(\"c\" & (VLOOKUP(Rebalance!$D$39,$F$2:$G$48,2,FALSE)+ROW()-2))=Rebalance!$D$39,INDIRECT(\"a\" & (VLOOKUP(Rebalance!$D$39,$F$2:$G$48,2,FALSE)+ROW()-2)),\"\")","v":{"$error":"#N/A"}},{"$f":"IF(INDIRECT(\"c\" & (VLOOKUP(Rebalance!$D$40,$F$2:$G$48,2,FALSE)+ROW()-2))=Rebalance!$D$40,INDIRECT(\"a\" & (VLOOKUP(Rebalance!$D$40,$F$2:$G$48,2,FALSE)+ROW()-2)),\"\")","v":{"$error":"#N/A"}},{"$f":"IF(INDIRECT(\"c\" & (VLOOKUP(Rebalance!$D$52,$F$2:$G$48,2,FALSE)+ROW()-2))=Rebalance!$D$52,INDIRECT(\"a\" & (VLOOKUP(Rebalance!$D$52,$F$2:$G$48,2,FALSE)+ROW()-2)),\"\")","v":{"$error":"#N/A"}},{"$f":"IF(INDIRECT(\"c\" & (VLOOKUP(Rebalance!$D$53,$F$2:$G$48,2,FALSE)+ROW()-2))=Rebalance!$D$53,INDIRECT(\"a\" & (VLOOKUP(Rebalance!$D$53,$F$2:$G$48,2,FALSE)+ROW()-2)),\"\")","v":{"$error":"#N/A"}},{"$f":"IF(INDIRECT(\"c\" & (VLOOKUP(Rebalance!$D$54,$F$2:$G$48,2,FALSE)+ROW()-2))=Rebalance!$D$54,INDIRECT(\"a\" & (VLOOKUP(Rebalance!$D$54,$F$2:$G$48,2,FALSE)+ROW()-2)),\"\")","v":{"$error":"#N/A"}},{"$f":"IF(INDIRECT(\"c\" & (VLOOKUP(Rebalance!$D$55,$F$2:$G$48,2,FALSE)+ROW()-2))=Rebalance!$D$55,INDIRECT(\"a\" & (VLOOKUP(Rebalance!$D$55,$F$2:$G$48,2,FALSE)+ROW()-2)),\"\")","v":{"$error":"#N/A"}},{"$f":"IF(INDIRECT(\"c\" & (VLOOKUP(Rebalance!$D$56,$F$2:$G$48,2,FALSE)+ROW()-2))=Rebalance!$D$56,INDIRECT(\"a\" & (VLOOKUP(Rebalance!$D$56,$F$2:$G$48,2,FALSE)+ROW()-2)),\"\")","v":{"$error":"#N/A"}},{"$f":"IF(INDIRECT(\"c\" & (VLOOKUP(Rebalance!$D$57,$F$2:$G$48,2,FALSE)+ROW()-2))=Rebalance!$D$57,INDIRECT(\"a\" & (VLOOKUP(Rebalance!$D$57,$F$2:$G$48,2,FALSE)+ROW()-2)),\"\")","v":{"$error":"#N/A"}},{"$f":"IF(INDIRECT(\"c\" & (VLOOKUP(Rebalance!$D$58,$F$2:$G$48,2,FALSE)+ROW()-2))=Rebalance!$D$58,INDIRECT(\"a\" & (VLOOKUP(Rebalance!$D$58,$F$2:$G$48,2,FALSE)+ROW()-2)),\"\")","v":{"$error":"#N/A"}},{"$f":"IF(INDIRECT(\"c\" & (VLOOKUP(Rebalance!$D$59,$F$2:$G$48,2,FALSE)+ROW()-2))=Rebalance!$D$59,INDIRECT(\"a\" & (VLOOKUP(Rebalance!$D$59,$F$2:$G$48,2,FALSE)+ROW()-2)),\"\")","v":{"$error":"#N/A"}},{"$f":"IF(INDIRECT(\"c\" & (VLOOKUP(Rebalance!$D$60,$F$2:$G$48,2,FALSE)+ROW()-2))=Rebalance!$D$60,INDIRECT(\"a\" & (VLOOKUP(Rebalance!$D$60,$F$2:$G$48,2,FALSE)+ROW()-2)),\"\")","v":{"$error":"#N/A"}},{"$f":"IF(INDIRECT(\"c\" & (VLOOKUP(Rebalance!$D$61,$F$2:$G$48,2,FALSE)+ROW()-2))=Rebalance!$D$61,INDIRECT(\"a\" & (VLOOKUP(Rebalance!$D$61,$F$2:$G$48,2,FALSE)+ROW()-2)),\"\")","v":{"$error":"#N/A"}},{"$f":"IF(INDIRECT(\"c\" & (VLOOKUP(Rebalance!$D$62,$F$2:$G$48,2,FALSE)+ROW()-2))=Rebalance!$D$62,INDIRECT(\"a\" & (VLOOKUP(Rebalance!$D$62,$F$2:$G$48,2,FALSE)+ROW()-2)),\"\")","v":{"$error":"#N/A"}},{"$f":"IF(INDIRECT(\"c\" & (VLOOKUP(Rebalance!$D$63,$F$2:$G$48,2,FALSE)+ROW()-2))=Rebalance!$D$63,INDIRECT(\"a\" & (VLOOKUP(Rebalance!$D$63,$F$2:$G$48,2,FALSE)+ROW()-2)),\"\")","v":{"$error":"#N/A"}},{"$f":"IF(INDIRECT(\"c\" & (VLOOKUP(Rebalance!$D$64,$F$2:$G$48,2,FALSE)+ROW()-2))=Rebalance!$D$64,INDIRECT(\"a\" & (VLOOKUP(Rebalance!$D$64,$F$2:$G$48,2,FALSE)+ROW()-2)),\"\")","v":{"$error":"#N/A"}},{"$f":"IF(INDIRECT(\"c\" & (VLOOKUP(Rebalance!$D$65,$F$2:$G$48,2,FALSE)+ROW()-2))=Rebalance!$D$65,INDIRECT(\"a\" & (VLOOKUP(Rebalance!$D$65,$F$2:$G$48,2,FALSE)+ROW()-2)),\"\")","v":{"$error":"#N/A"}},{"$f":"IF(INDIRECT(\"c\" & (VLOOKUP(Rebalance!$D$66,$F$2:$G$48,2,FALSE)+ROW()-2))=Rebalance!$D$66,INDIRECT(\"a\" & (VLOOKUP(Rebalance!$D$66,$F$2:$G$48,2,FALSE)+ROW()-2)),\"\")","v":{"$error":"#N/A"}}]
[null,null,null,{"$f":"ROW()","v":646},null,null,{"$f":"VLOOKUP(F646,$C$2:$D$599,2,FALSE)","v":{"$error":"#N/A"}},{"$f":"IF(INDIRECT(\"c\" & (VLOOKUP(Rebalance!$D$26,$F$2:$G$48,2,FALSE)+ROW()-2))=Rebalance!$D$26,INDIRECT(\"a\" & (VLOOKUP(Rebalance!$D$26,$F$2:$G$48,2,FALSE)+ROW()-2)),\"\")","v":{"$error":"#N/A"}},{"$f":"IF(INDIRECT(\"c\" & (VLOOKUP(Rebalance!$D$27,$F$2:$G$48,2,FALSE)+ROW()-2))=Rebalance!$D$27,INDIRECT(\"a\" & (VLOOKUP(Rebalance!$D$27,$F$2:$G$48,2,FALSE)+ROW()-2)),\"\")","v":{"$error":"#N/A"}},{"$f":"IF(INDIRECT(\"c\" & (VLOOKUP(Rebalance!$D$28,$F$2:$G$48,2,FALSE)+ROW()-2))=Rebalance!$D$28,INDIRECT(\"a\" & (VLOOKUP(Rebalance!$D$28,$F$2:$G$48,2,FALSE)+ROW()-2)),\"\")","v":{"$error":"#N/A"}},{"$f":"IF(INDIRECT(\"c\" & (VLOOKUP(Rebalance!$D$29,$F$2:$G$48,2,FALSE)+ROW()-2))=Rebalance!$D$29,INDIRECT(\"a\" & (VLOOKUP(Rebalance!$D$29,$F$2:$G$48,2,FALSE)+ROW()-2)),\"\")","v":{"$error":"#N/A"}},{"$f":"IF(INDIRECT(\"c\" & (VLOOKUP(Rebalance!$D$30,$F$2:$G$48,2,FALSE)+ROW()-2))=Rebalance!$D$30,INDIRECT(\"a\" & (VLOOKUP(Rebalance!$D$30,$F$2:$G$48,2,FALSE)+ROW()-2)),\"\")","v":{"$error":"#N/A"}},{"$f":"IF(INDIRECT(\"c\" & (VLOOKUP(Rebalance!$D$31,$F$2:$G$48,2,FALSE)+ROW()-2))=Rebalance!$D$31,INDIRECT(\"a\" & (VLOOKUP(Rebalance!$D$31,$F$2:$G$48,2,FALSE)+ROW()-2)),\"\")","v":{"$error":"#N/A"}},{"$f":"IF(INDIRECT(\"c\" & (VLOOKUP(Rebalance!$D$32,$F$2:$G$48,2,FALSE)+ROW()-2))=Rebalance!$D$32,INDIRECT(\"a\" & (VLOOKUP(Rebalance!$D$32,$F$2:$G$48,2,FALSE)+ROW()-2)),\"\")","v":{"$error":"#N/A"}},{"$f":"IF(INDIRECT(\"c\" & (VLOOKUP(Rebalance!$D$33,$F$2:$G$48,2,FALSE)+ROW()-2))=Rebalance!$D$33,INDIRECT(\"a\" & (VLOOKUP(Rebalance!$D$33,$F$2:$G$48,2,FALSE)+ROW()-2)),\"\")","v":{"$error":"#N/A"}},{"$f":"IF(INDIRECT(\"c\" & (VLOOKUP(Rebalance!$D$34,$F$2:$G$48,2,FALSE)+ROW()-2))=Rebalance!$D$34,INDIRECT(\"a\" & (VLOOKUP(Rebalance!$D$34,$F$2:$G$48,2,FALSE)+ROW()-2)),\"\")","v":{"$error":"#N/A"}},{"$f":"IF(INDIRECT(\"c\" & (VLOOKUP(Rebalance!$D$35,$F$2:$G$48,2,FALSE)+ROW()-2))=Rebalance!$D$35,INDIRECT(\"a\" & (VLOOKUP(Rebalance!$D$35,$F$2:$G$48,2,FALSE)+ROW()-2)),\"\")","v":{"$error":"#N/A"}},{"$f":"IF(INDIRECT(\"c\" & (VLOOKUP(Rebalance!$D$36,$F$2:$G$48,2,FALSE)+ROW()-2))=Rebalance!$D$36,INDIRECT(\"a\" & (VLOOKUP(Rebalance!$D$36,$F$2:$G$48,2,FALSE)+ROW()-2)),\"\")","v":{"$error":"#N/A"}},{"$f":"IF(INDIRECT(\"c\" & (VLOOKUP(Rebalance!$D$37,$F$2:$G$48,2,FALSE)+ROW()-2))=Rebalance!$D$37,INDIRECT(\"a\" & (VLOOKUP(Rebalance!$D$37,$F$2:$G$48,2,FALSE)+ROW()-2)),\"\")","v":{"$error":"#N/A"}},{"$f":"IF(INDIRECT(\"c\" & (VLOOKUP(Rebalance!$D$38,$F$2:$G$48,2,FALSE)+ROW()-2))=Rebalance!$D$38,INDIRECT(\"a\" & (VLOOKUP(Rebalance!$D$38,$F$2:$G$48,2,FALSE)+ROW()-2)),\"\")","v":{"$error":"#N/A"}},{"$f":"IF(INDIRECT(\"c\" & (VLOOKUP(Rebalance!$D$39,$F$2:$G$48,2,FALSE)+ROW()-2))=Rebalance!$D$39,INDIRECT(\"a\" & (VLOOKUP(Rebalance!$D$39,$F$2:$G$48,2,FALSE)+ROW()-2)),\"\")","v":{"$error":"#N/A"}},{"$f":"IF(INDIRECT(\"c\" & (VLOOKUP(Rebalance!$D$40,$F$2:$G$48,2,FALSE)+ROW()-2))=Rebalance!$D$40,INDIRECT(\"a\" & (VLOOKUP(Rebalance!$D$40,$F$2:$G$48,2,FALSE)+ROW()-2)),\"\")","v":{"$error":"#N/A"}},{"$f":"IF(INDIRECT(\"c\" & (VLOOKUP(Rebalance!$D$52,$F$2:$G$48,2,FALSE)+ROW()-2))=Rebalance!$D$52,INDIRECT(\"a\" & (VLOOKUP(Rebalance!$D$52,$F$2:$G$48,2,FALSE)+ROW()-2)),\"\")","v":{"$error":"#N/A"}},{"$f":"IF(INDIRECT(\"c\" & (VLOOKUP(Rebalance!$D$53,$F$2:$G$48,2,FALSE)+ROW()-2))=Rebalance!$D$53,INDIRECT(\"a\" & (VLOOKUP(Rebalance!$D$53,$F$2:$G$48,2,FALSE)+ROW()-2)),\"\")","v":{"$error":"#N/A"}},{"$f":"IF(INDIRECT(\"c\" & (VLOOKUP(Rebalance!$D$54,$F$2:$G$48,2,FALSE)+ROW()-2))=Rebalance!$D$54,INDIRECT(\"a\" & (VLOOKUP(Rebalance!$D$54,$F$2:$G$48,2,FALSE)+ROW()-2)),\"\")","v":{"$error":"#N/A"}},{"$f":"IF(INDIRECT(\"c\" & (VLOOKUP(Rebalance!$D$55,$F$2:$G$48,2,FALSE)+ROW()-2))=Rebalance!$D$55,INDIRECT(\"a\" & (VLOOKUP(Rebalance!$D$55,$F$2:$G$48,2,FALSE)+ROW()-2)),\"\")","v":{"$error":"#N/A"}},{"$f":"IF(INDIRECT(\"c\" & (VLOOKUP(Rebalance!$D$56,$F$2:$G$48,2,FALSE)+ROW()-2))=Rebalance!$D$56,INDIRECT(\"a\" & (VLOOKUP(Rebalance!$D$56,$F$2:$G$48,2,FALSE)+ROW()-2)),\"\")","v":{"$error":"#N/A"}},{"$f":"IF(INDIRECT(\"c\" & (VLOOKUP(Rebalance!$D$57,$F$2:$G$48,2,FALSE)+ROW()-2))=Rebalance!$D$57,INDIRECT(\"a\" & (VLOOKUP(Rebalance!$D$57,$F$2:$G$48,2,FALSE)+ROW()-2)),\"\")","v":{"$error":"#N/A"}},{"$f":"IF(INDIRECT(\"c\" & (VLOOKUP(Rebalance!$D$58,$F$2:$G$48,2,FALSE)+ROW()-2))=Rebalance!$D$58,INDIRECT(\"a\" & (VLOOKUP(Rebalance!$D$58,$F$2:$G$48,2,FALSE)+ROW()-2)),\"\")","v":{"$error":"#N/A"}},{"$f":"IF(INDIRECT(\"c\" & (VLOOKUP(Rebalance!$D$59,$F$2:$G$48,2,FALSE)+ROW()-2))=Rebalance!$D$59,INDIRECT(\"a\" & (VLOOKUP(Rebalance!$D$59,$F$2:$G$48,2,FALSE)+ROW()-2)),\"\")","v":{"$error":"#N/A"}},{"$f":"IF(INDIRECT(\"c\" & (VLOOKUP(Rebalance!$D$60,$F$2:$G$48,2,FALSE)+ROW()-2))=Rebalance!$D$60,INDIRECT(\"a\" & (VLOOKUP(Rebalance!$D$60,$F$2:$G$48,2,FALSE)+ROW()-2)),\"\")","v":{"$error":"#N/A"}},{"$f":"IF(INDIRECT(\"c\" & (VLOOKUP(Rebalance!$D$61,$F$2:$G$48,2,FALSE)+ROW()-2))=Rebalance!$D$61,INDIRECT(\"a\" & (VLOOKUP(Rebalance!$D$61,$F$2:$G$48,2,FALSE)+ROW()-2)),\"\")","v":{"$error":"#N/A"}},{"$f":"IF(INDIRECT(\"c\" & (VLOOKUP(Rebalance!$D$62,$F$2:$G$48,2,FALSE)+ROW()-2))=Rebalance!$D$62,INDIRECT(\"a\" & (VLOOKUP(Rebalance!$D$62,$F$2:$G$48,2,FALSE)+ROW()-2)),\"\")","v":{"$error":"#N/A"}},{"$f":"IF(INDIRECT(\"c\" & (VLOOKUP(Rebalance!$D$63,$F$2:$G$48,2,FALSE)+ROW()-2))=Rebalance!$D$63,INDIRECT(\"a\" & (VLOOKUP(Rebalance!$D$63,$F$2:$G$48,2,FALSE)+ROW()-2)),\"\")","v":{"$error":"#N/A"}},{"$f":"IF(INDIRECT(\"c\" & (VLOOKUP(Rebalance!$D$64,$F$2:$G$48,2,FALSE)+ROW()-2))=Rebalance!$D$64,INDIRECT(\"a\" & (VLOOKUP(Rebalance!$D$64,$F$2:$G$48,2,FALSE)+ROW()-2)),\"\")","v":{"$error":"#N/A"}},{"$f":"IF(INDIRECT(\"c\" & (VLOOKUP(Rebalance!$D$65,$F$2:$G$48,2,FALSE)+ROW()-2))=Rebalance!$D$65,INDIRECT(\"a\" & (VLOOKUP(Rebalance!$D$65,$F$2:$G$48,2,FALSE)+ROW()-2)),\"\")","v":{"$error":"#N/A"}},{"$f":"IF(INDIRECT(\"c\" & (VLOOKUP(Rebalance!$D$66,$F$2:$G$48,2,FALSE)+ROW()-2))=Rebalance!$D$66,INDIRECT(\"a\" & (VLOOKUP(Rebalance!$D$66,$F$2:$G$48,2,FALSE)+ROW()-2)),\"\")","v":{"$error":"#N/A"}}]
[null,null,null,{"$f":"ROW()","v":647},null,null,{"$f":"VLOOKUP(F647,$C$2:$D$599,2,FALSE)","v":{"$error":"#N/A"}},{"$f":"IF(INDIRECT(\"c\" & (VLOOKUP(Rebalance!$D$26,$F$2:$G$48,2,FALSE)+ROW()-2))=Rebalance!$D$26,INDIRECT(\"a\" & (VLOOKUP(Rebalance!$D$26,$F$2:$G$48,2,FALSE)+ROW()-2)),\"\")","v":{"$error":"#N/A"}},{"$f":"IF(INDIRECT(\"c\" & (VLOOKUP(Rebalance!$D$27,$F$2:$G$48,2,FALSE)+ROW()-2))=Rebalance!$D$27,INDIRECT(\"a\" & (VLOOKUP(Rebalance!$D$27,$F$2:$G$48,2,FALSE)+ROW()-2)),\"\")","v":{"$error":"#N/A"}},{"$f":"IF(INDIRECT(\"c\" & (VLOOKUP(Rebalance!$D$28,$F$2:$G$48,2,FALSE)+ROW()-2))=Rebalance!$D$28,INDIRECT(\"a\" & (VLOOKUP(Rebalance!$D$28,$F$2:$G$48,2,FALSE)+ROW()-2)),\"\")","v":{"$error":"#N/A"}},{"$f":"IF(INDIRECT(\"c\" & (VLOOKUP(Rebalance!$D$29,$F$2:$G$48,2,FALSE)+ROW()-2))=Rebalance!$D$29,INDIRECT(\"a\" & (VLOOKUP(Rebalance!$D$29,$F$2:$G$48,2,FALSE)+ROW()-2)),\"\")","v":{"$error":"#N/A"}},{"$f":"IF(INDIRECT(\"c\" & (VLOOKUP(Rebalance!$D$30,$F$2:$G$48,2,FALSE)+ROW()-2))=Rebalance!$D$30,INDIRECT(\"a\" & (VLOOKUP(Rebalance!$D$30,$F$2:$G$48,2,FALSE)+ROW()-2)),\"\")","v":{"$error":"#N/A"}},{"$f":"IF(INDIRECT(\"c\" & (VLOOKUP(Rebalance!$D$31,$F$2:$G$48,2,FALSE)+ROW()-2))=Rebalance!$D$31,INDIRECT(\"a\" & (VLOOKUP(Rebalance!$D$31,$F$2:$G$48,2,FALSE)+ROW()-2)),\"\")","v":{"$error":"#N/A"}},{"$f":"IF(INDIRECT(\"c\" & (VLOOKUP(Rebalance!$D$32,$F$2:$G$48,2,FALSE)+ROW()-2))=Rebalance!$D$32,INDIRECT(\"a\" & (VLOOKUP(Rebalance!$D$32,$F$2:$G$48,2,FALSE)+ROW()-2)),\"\")","v":{"$error":"#N/A"}},{"$f":"IF(INDIRECT(\"c\" & (VLOOKUP(Rebalance!$D$33,$F$2:$G$48,2,FALSE)+ROW()-2))=Rebalance!$D$33,INDIRECT(\"a\" & (VLOOKUP(Rebalance!$D$33,$F$2:$G$48,2,FALSE)+ROW()-2)),\"\")","v":{"$error":"#N/A"}},{"$f":"IF(INDIRECT(\"c\" & (VLOOKUP(Rebalance!$D$34,$F$2:$G$48,2,FALSE)+ROW()-2))=Rebalance!$D$34,INDIRECT(\"a\" & (VLOOKUP(Rebalance!$D$34,$F$2:$G$48,2,FALSE)+ROW()-2)),\"\")","v":{"$error":"#N/A"}},{"$f":"IF(INDIRECT(\"c\" & (VLOOKUP(Rebalance!$D$35,$F$2:$G$48,2,FALSE)+ROW()-2))=Rebalance!$D$35,INDIRECT(\"a\" & (VLOOKUP(Rebalance!$D$35,$F$2:$G$48,2,FALSE)+ROW()-2)),\"\")","v":{"$error":"#N/A"}},{"$f":"IF(INDIRECT(\"c\" & (VLOOKUP(Rebalance!$D$36,$F$2:$G$48,2,FALSE)+ROW()-2))=Rebalance!$D$36,INDIRECT(\"a\" & (VLOOKUP(Rebalance!$D$36,$F$2:$G$48,2,FALSE)+ROW()-2)),\"\")","v":{"$error":"#N/A"}},{"$f":"IF(INDIRECT(\"c\" & (VLOOKUP(Rebalance!$D$37,$F$2:$G$48,2,FALSE)+ROW()-2))=Rebalance!$D$37,INDIRECT(\"a\" & (VLOOKUP(Rebalance!$D$37,$F$2:$G$48,2,FALSE)+ROW()-2)),\"\")","v":{"$error":"#N/A"}},{"$f":"IF(INDIRECT(\"c\" & (VLOOKUP(Rebalance!$D$38,$F$2:$G$48,2,FALSE)+ROW()-2))=Rebalance!$D$38,INDIRECT(\"a\" & (VLOOKUP(Rebalance!$D$38,$F$2:$G$48,2,FALSE)+ROW()-2)),\"\")","v":{"$error":"#N/A"}},{"$f":"IF(INDIRECT(\"c\" & (VLOOKUP(Rebalance!$D$39,$F$2:$G$48,2,FALSE)+ROW()-2))=Rebalance!$D$39,INDIRECT(\"a\" & (VLOOKUP(Rebalance!$D$39,$F$2:$G$48,2,FALSE)+ROW()-2)),\"\")","v":{"$error":"#N/A"}},{"$f":"IF(INDIRECT(\"c\" & (VLOOKUP(Rebalance!$D$40,$F$2:$G$48,2,FALSE)+ROW()-2))=Rebalance!$D$40,INDIRECT(\"a\" & (VLOOKUP(Rebalance!$D$40,$F$2:$G$48,2,FALSE)+ROW()-2)),\"\")","v":{"$error":"#N/A"}},{"$f":"IF(INDIRECT(\"c\" & (VLOOKUP(Rebalance!$D$52,$F$2:$G$48,2,FALSE)+ROW()-2))=Rebalance!$D$52,INDIRECT(\"a\" & (VLOOKUP(Rebalance!$D$52,$F$2:$G$48,2,FALSE)+ROW()-2)),\"\")","v":{"$error":"#N/A"}},{"$f":"IF(INDIRECT(\"c\" & (VLOOKUP(Rebalance!$D$53,$F$2:$G$48,2,FALSE)+ROW()-2))=Rebalance!$D$53,INDIRECT(\"a\" & (VLOOKUP(Rebalance!$D$53,$F$2:$G$48,2,FALSE)+ROW()-2)),\"\")","v":{"$error":"#N/A"}},{"$f":"IF(INDIRECT(\"c\" & (VLOOKUP(Rebalance!$D$54,$F$2:$G$48,2,FALSE)+ROW()-2))=Rebalance!$D$54,INDIRECT(\"a\" & (VLOOKUP(Rebalance!$D$54,$F$2:$G$48,2,FALSE)+ROW()-2)),\"\")","v":{"$error":"#N/A"}},{"$f":"IF(INDIRECT(\"c\" & (VLOOKUP(Rebalance!$D$55,$F$2:$G$48,2,FALSE)+ROW()-2))=Rebalance!$D$55,INDIRECT(\"a\" & (VLOOKUP(Rebalance!$D$55,$F$2:$G$48,2,FALSE)+ROW()-2)),\"\")","v":{"$error":"#N/A"}},{"$f":"IF(INDIRECT(\"c\" & (VLOOKUP(Rebalance!$D$56,$F$2:$G$48,2,FALSE)+ROW()-2))=Rebalance!$D$56,INDIRECT(\"a\" & (VLOOKUP(Rebalance!$D$56,$F$2:$G$48,2,FALSE)+ROW()-2)),\"\")","v":{"$error":"#N/A"}},{"$f":"IF(INDIRECT(\"c\" & (VLOOKUP(Rebalance!$D$57,$F$2:$G$48,2,FALSE)+ROW()-2))=Rebalance!$D$57,INDIRECT(\"a\" & (VLOOKUP(Rebalance!$D$57,$F$2:$G$48,2,FALSE)+ROW()-2)),\"\")","v":{"$error":"#N/A"}},{"$f":"IF(INDIRECT(\"c\" & (VLOOKUP(Rebalance!$D$58,$F$2:$G$48,2,FALSE)+ROW()-2))=Rebalance!$D$58,INDIRECT(\"a\" & (VLOOKUP(Rebalance!$D$58,$F$2:$G$48,2,FALSE)+ROW()-2)),\"\")","v":{"$error":"#N/A"}},{"$f":"IF(INDIRECT(\"c\" & (VLOOKUP(Rebalance!$D$59,$F$2:$G$48,2,FALSE)+ROW()-2))=Rebalance!$D$59,INDIRECT(\"a\" & (VLOOKUP(Rebalance!$D$59,$F$2:$G$48,2,FALSE)+ROW()-2)),\"\")","v":{"$error":"#N/A"}},{"$f":"IF(INDIRECT(\"c\" & (VLOOKUP(Rebalance!$D$60,$F$2:$G$48,2,FALSE)+ROW()-2))=Rebalance!$D$60,INDIRECT(\"a\" & (VLOOKUP(Rebalance!$D$60,$F$2:$G$48,2,FALSE)+ROW()-2)),\"\")","v":{"$error":"#N/A"}},{"$f":"IF(INDIRECT(\"c\" & (VLOOKUP(Rebalance!$D$61,$F$2:$G$48,2,FALSE)+ROW()-2))=Rebalance!$D$61,INDIRECT(\"a\" & (VLOOKUP(Rebalance!$D$61,$F$2:$G$48,2,FALSE)+ROW()-2)),\"\")","v":{"$error":"#N/A"}},{"$f":"IF(INDIRECT(\"c\" & (VLOOKUP(Rebalance!$D$62,$F$2:$G$48,2,FALSE)+ROW()-2))=Rebalance!$D$62,INDIRECT(\"a\" & (VLOOKUP(Rebalance!$D$62,$F$2:$G$48,2,FALSE)+ROW()-2)),\"\")","v":{"$error":"#N/A"}},{"$f":"IF(INDIRECT(\"c\" & (VLOOKUP(Rebalance!$D$63,$F$2:$G$48,2,FALSE)+ROW()-2))=Rebalance!$D$63,INDIRECT(\"a\" & (VLOOKUP(Rebalance!$D$63,$F$2:$G$48,2,FALSE)+ROW()-2)),\"\")","v":{"$error":"#N/A"}},{"$f":"IF(INDIRECT(\"c\" & (VLOOKUP(Rebalance!$D$64,$F$2:$G$48,2,FALSE)+ROW()-2))=Rebalance!$D$64,INDIRECT(\"a\" & (VLOOKUP(Rebalance!$D$64,$F$2:$G$48,2,FALSE)+ROW()-2)),\"\")","v":{"$error":"#N/A"}},{"$f":"IF(INDIRECT(\"c\" & (VLOOKUP(Rebalance!$D$65,$F$2:$G$48,2,FALSE)+ROW()-2))=Rebalance!$D$65,INDIRECT(\"a\" & (VLOOKUP(Rebalance!$D$65,$F$2:$G$48,2,FALSE)+ROW()-2)),\"\")","v":{"$error":"#N/A"}},{"$f":"IF(INDIRECT(\"c\" & (VLOOKUP(Rebalance!$D$66,$F$2:$G$48,2,FALSE)+ROW()-2))=Rebalance!$D$66,INDIRECT(\"a\" & (VLOOKUP(Rebalance!$D$66,$F$2:$G$48,2,FALSE)+ROW()-2)),\"\")","v":{"$error":"#N/A"}}]
[null,null,null,{"$f":"ROW()","v":648},null,null,{"$f":"VLOOKUP(F648,$C$2:$D$599,2,FALSE)","v":{"$error":"#N/A"}},{"$f":"IF(INDIRECT(\"c\" & (VLOOKUP(Rebalance!$D$26,$F$2:$G$48,2,FALSE)+ROW()-2))=Rebalance!$D$26,INDIRECT(\"a\" & (VLOOKUP(Rebalance!$D$26,$F$2:$G$48,2,FALSE)+ROW()-2)),\"\")","v":{"$error":"#N/A"}},{"$f":"IF(INDIRECT(\"c\" & (VLOOKUP(Rebalance!$D$27,$F$2:$G$48,2,FALSE)+ROW()-2))=Rebalance!$D$27,INDIRECT(\"a\" & (VLOOKUP(Rebalance!$D$27,$F$2:$G$48,2,FALSE)+ROW()-2)),\"\")","v":{"$error":"#N/A"}},{"$f":"IF(INDIRECT(\"c\" & (VLOOKUP(Rebalance!$D$28,$F$2:$G$48,2,FALSE)+ROW()-2))=Rebalance!$D$28,INDIRECT(\"a\" & (VLOOKUP(Rebalance!$D$28,$F$2:$G$48,2,FALSE)+ROW()-2)),\"\")","v":{"$error":"#N/A"}},{"$f":"IF(INDIRECT(\"c\" & (VLOOKUP(Rebalance!$D$29,$F$2:$G$48,2,FALSE)+ROW()-2))=Rebalance!$D$29,INDIRECT(\"a\" & (VLOOKUP(Rebalance!$D$29,$F$2:$G$48,2,FALSE)+ROW()-2)),\"\")","v":{"$error":"#N/A"}},{"$f":"IF(INDIRECT(\"c\" & (VLOOKUP(Rebalance!$D$30,$F$2:$G$48,2,FALSE)+ROW()-2))=Rebalance!$D$30,INDIRECT(\"a\" & (VLOOKUP(Rebalance!$D$30,$F$2:$G$48,2,FALSE)+ROW()-2)),\"\")","v":{"$error":"#N/A"}},{"$f":"IF(INDIRECT(\"c\" & (VLOOKUP(Rebalance!$D$31,$F$2:$G$48,2,FALSE)+ROW()-2))=Rebalance!$D$31,INDIRECT(\"a\" & (VLOOKUP(Rebalance!$D$31,$F$2:$G$48,2,FALSE)+ROW()-2)),\"\")","v":{"$error":"#N/A"}},{"$f":"IF(INDIRECT(\"c\" & (VLOOKUP(Rebalance!$D$32,$F$2:$G$48,2,FALSE)+ROW()-2))=Rebalance!$D$32,INDIRECT(\"a\" & (VLOOKUP(Rebalance!$D$32,$F$2:$G$48,2,FALSE)+ROW()-2)),\"\")","v":{"$error":"#N/A"}},{"$f":"IF(INDIRECT(\"c\" & (VLOOKUP(Rebalance!$D$33,$F$2:$G$48,2,FALSE)+ROW()-2))=Rebalance!$D$33,INDIRECT(\"a\" & (VLOOKUP(Rebalance!$D$33,$F$2:$G$48,2,FALSE)+ROW()-2)),\"\")","v":{"$error":"#N/A"}},{"$f":"IF(INDIRECT(\"c\" & (VLOOKUP(Rebalance!$D$34,$F$2:$G$48,2,FALSE)+ROW()-2))=Rebalance!$D$34,INDIRECT(\"a\" & (VLOOKUP(Rebalance!$D$34,$F$2:$G$48,2,FALSE)+ROW()-2)),\"\")","v":{"$error":"#N/A"}},{"$f":"IF(INDIRECT(\"c\" & (VLOOKUP(Rebalance!$D$35,$F$2:$G$48,2,FALSE)+ROW()-2))=Rebalance!$D$35,INDIRECT(\"a\" & (VLOOKUP(Rebalance!$D$35,$F$2:$G$48,2,FALSE)+ROW()-2)),\"\")","v":{"$error":"#N/A"}},{"$f":"IF(INDIRECT(\"c\" & (VLOOKUP(Rebalance!$D$36,$F$2:$G$48,2,FALSE)+ROW()-2))=Rebalance!$D$36,INDIRECT(\"a\" & (VLOOKUP(Rebalance!$D$36,$F$2:$G$48,2,FALSE)+ROW()-2)),\"\")","v":{"$error":"#N/A"}},{"$f":"IF(INDIRECT(\"c\" & (VLOOKUP(Rebalance!$D$37,$F$2:$G$48,2,FALSE)+ROW()-2))=Rebalance!$D$37,INDIRECT(\"a\" & (VLOOKUP(Rebalance!$D$37,$F$2:$G$48,2,FALSE)+ROW()-2)),\"\")","v":{"$error":"#N/A"}},{"$f":"IF(INDIRECT(\"c\" & (VLOOKUP(Rebalance!$D$38,$F$2:$G$48,2,FALSE)+ROW()-2))=Rebalance!$D$38,INDIRECT(\"a\" & (VLOOKUP(Rebalance!$D$38,$F$2:$G$48,2,FALSE)+ROW()-2)),\"\")","v":{"$error":"#N/A"}},{"$f":"IF(INDIRECT(\"c\" & (VLOOKUP(Rebalance!$D$39,$F$2:$G$48,2,FALSE)+ROW()-2))=Rebalance!$D$39,INDIRECT(\"a\" & (VLOOKUP(Rebalance!$D$39,$F$2:$G$48,2,FALSE)+ROW()-2)),\"\")","v":{"$error":"#N/A"}},{"$f":"IF(INDIRECT(\"c\" & (VLOOKUP(Rebalance!$D$40,$F$2:$G$48,2,FALSE)+ROW()-2))=Rebalance!$D$40,INDIRECT(\"a\" & (VLOOKUP(Rebalance!$D$40,$F$2:$G$48,2,FALSE)+ROW()-2)),\"\")","v":{"$error":"#N/A"}},{"$f":"IF(INDIRECT(\"c\" & (VLOOKUP(Rebalance!$D$52,$F$2:$G$48,2,FALSE)+ROW()-2))=Rebalance!$D$52,INDIRECT(\"a\" & (VLOOKUP(Rebalance!$D$52,$F$2:$G$48,2,FALSE)+ROW()-2)),\"\")","v":{"$error":"#N/A"}},{"$f":"IF(INDIRECT(\"c\" & (VLOOKUP(Rebalance!$D$53,$F$2:$G$48,2,FALSE)+ROW()-2))=Rebalance!$D$53,INDIRECT(\"a\" & (VLOOKUP(Rebalance!$D$53,$F$2:$G$48,2,FALSE)+ROW()-2)),\"\")","v":{"$error":"#N/A"}},{"$f":"IF(INDIRECT(\"c\" & (VLOOKUP(Rebalance!$D$54,$F$2:$G$48,2,FALSE)+ROW()-2))=Rebalance!$D$54,INDIRECT(\"a\" & (VLOOKUP(Rebalance!$D$54,$F$2:$G$48,2,FALSE)+ROW()-2)),\"\")","v":{"$error":"#N/A"}},{"$f":"IF(INDIRECT(\"c\" & (VLOOKUP(Rebalance!$D$55,$F$2:$G$48,2,FALSE)+ROW()-2))=Rebalance!$D$55,INDIRECT(\"a\" & (VLOOKUP(Rebalance!$D$55,$F$2:$G$48,2,FALSE)+ROW()-2)),\"\")","v":{"$error":"#N/A"}},{"$f":"IF(INDIRECT(\"c\" & (VLOOKUP(Rebalance!$D$56,$F$2:$G$48,2,FALSE)+ROW()-2))=Rebalance!$D$56,INDIRECT(\"a\" & (VLOOKUP(Rebalance!$D$56,$F$2:$G$48,2,FALSE)+ROW()-2)),\"\")","v":{"$error":"#N/A"}},{"$f":"IF(INDIRECT(\"c\" & (VLOOKUP(Rebalance!$D$57,$F$2:$G$48,2,FALSE)+ROW()-2))=Rebalance!$D$57,INDIRECT(\"a\" & (VLOOKUP(Rebalance!$D$57,$F$2:$G$48,2,FALSE)+ROW()-2)),\"\")","v":{"$error":"#N/A"}},{"$f":"IF(INDIRECT(\"c\" & (VLOOKUP(Rebalance!$D$58,$F$2:$G$48,2,FALSE)+ROW()-2))=Rebalance!$D$58,INDIRECT(\"a\" & (VLOOKUP(Rebalance!$D$58,$F$2:$G$48,2,FALSE)+ROW()-2)),\"\")","v":{"$error":"#N/A"}},{"$f":"IF(INDIRECT(\"c\" & (VLOOKUP(Rebalance!$D$59,$F$2:$G$48,2,FALSE)+ROW()-2))=Rebalance!$D$59,INDIRECT(\"a\" & (VLOOKUP(Rebalance!$D$59,$F$2:$G$48,2,FALSE)+ROW()-2)),\"\")","v":{"$error":"#N/A"}},{"$f":"IF(INDIRECT(\"c\" & (VLOOKUP(Rebalance!$D$60,$F$2:$G$48,2,FALSE)+ROW()-2))=Rebalance!$D$60,INDIRECT(\"a\" & (VLOOKUP(Rebalance!$D$60,$F$2:$G$48,2,FALSE)+ROW()-2)),\"\")","v":{"$error":"#N/A"}},{"$f":"IF(INDIRECT(\"c\" & (VLOOKUP(Rebalance!$D$61,$F$2:$G$48,2,FALSE)+ROW()-2))=Rebalance!$D$61,INDIRECT(\"a\" & (VLOOKUP(Rebalance!$D$61,$F$2:$G$48,2,FALSE)+ROW()-2)),\"\")","v":{"$error":"#N/A"}},{"$f":"IF(INDIRECT(\"c\" & (VLOOKUP(Rebalance!$D$62,$F$2:$G$48,2,FALSE)+ROW()-2))=Rebalance!$D$62,INDIRECT(\"a\" & (VLOOKUP(Rebalance!$D$62,$F$2:$G$48,2,FALSE)+ROW()-2)),\"\")","v":{"$error":"#N/A"}},{"$f":"IF(INDIRECT(\"c\" & (VLOOKUP(Rebalance!$D$63,$F$2:$G$48,2,FALSE)+ROW()-2))=Rebalance!$D$63,INDIRECT(\"a\" & (VLOOKUP(Rebalance!$D$63,$F$2:$G$48,2,FALSE)+ROW()-2)),\"\")","v":{"$error":"#N/A"}},{"$f":"IF(INDIRECT(\"c\" & (VLOOKUP(Rebalance!$D$64,$F$2:$G$48,2,FALSE)+ROW()-2))=Rebalance!$D$64,INDIRECT(\"a\" & (VLOOKUP(Rebalance!$D$64,$F$2:$G$48,2,FALSE)+ROW()-2)),\"\")","v":{"$error":"#N/A"}},{"$f":"IF(INDIRECT(\"c\" & (VLOOKUP(Rebalance!$D$65,$F$2:$G$48,2,FALSE)+ROW()-2))=Rebalance!$D$65,INDIRECT(\"a\" & (VLOOKUP(Rebalance!$D$65,$F$2:$G$48,2,FALSE)+ROW()-2)),\"\")","v":{"$error":"#N/A"}},{"$f":"IF(INDIRECT(\"c\" & (VLOOKUP(Rebalance!$D$66,$F$2:$G$48,2,FALSE)+ROW()-2))=Rebalance!$D$66,INDIRECT(\"a\" & (VLOOKUP(Rebalance!$D$66,$F$2:$G$48,2,FALSE)+ROW()-2)),\"\")","v":{"$error":"#N/A"}}]
[null,null,null,{"$f":"ROW()","v":649},null,null,{"$f":"VLOOKUP(F649,$C$2:$D$599,2,FALSE)","v":{"$error":"#N/A"}},{"$f":"IF(INDIRECT(\"c\" & (VLOOKUP(Rebalance!$D$26,$F$2:$G$48,2,FALSE)+ROW()-2))=Rebalance!$D$26,INDIRECT(\"a\" & (VLOOKUP(Rebalance!$D$26,$F$2:$G$48,2,FALSE)+ROW()-2)),\"\")","v":{"$error":"#N/A"}},{"$f":"IF(INDIRECT(\"c\" & (VLOOKUP(Rebalance!$D$27,$F$2:$G$48,2,FALSE)+ROW()-2))=Rebalance!$D$27,INDIRECT(\"a\" & (VLOOKUP(Rebalance!$D$27,$F$2:$G$48,2,FALSE)+ROW()-2)),\"\")","v":{"$error":"#N/A"}},{"$f":"IF(INDIRECT(\"c\" & (VLOOKUP(Rebalance!$D$28,$F$2:$G$48,2,FALSE)+ROW()-2))=Rebalance!$D$28,INDIRECT(\"a\" & (VLOOKUP(Rebalance!$D$28,$F$2:$G$48,2,FALSE)+ROW()-2)),\"\")","v":{"$error":"#N/A"}},{"$f":"IF(INDIRECT(\"c\" & (VLOOKUP(Rebalance!$D$29,$F$2:$G$48,2,FALSE)+ROW()-2))=Rebalance!$D$29,INDIRECT(\"a\" & (VLOOKUP(Rebalance!$D$29,$F$2:$G$48,2,FALSE)+ROW()-2)),\"\")","v":{"$error":"#N/A"}},{"$f":"IF(INDIRECT(\"c\" & (VLOOKUP(Rebalance!$D$30,$F$2:$G$48,2,FALSE)+ROW()-2))=Rebalance!$D$30,INDIRECT(\"a\" & (VLOOKUP(Rebalance!$D$30,$F$2:$G$48,2,FALSE)+ROW()-2)),\"\")","v":{"$error":"#N/A"}},{"$f":"IF(INDIRECT(\"c\" & (VLOOKUP(Rebalance!$D$31,$F$2:$G$48,2,FALSE)+ROW()-2))=Rebalance!$D$31,INDIRECT(\"a\" & (VLOOKUP(Rebalance!$D$31,$F$2:$G$48,2,FALSE)+ROW()-2)),\"\")","v":{"$error":"#N/A"}},{"$f":"IF(INDIRECT(\"c\" & (VLOOKUP(Rebalance!$D$32,$F$2:$G$48,2,FALSE)+ROW()-2))=Rebalance!$D$32,INDIRECT(\"a\" & (VLOOKUP(Rebalance!$D$32,$F$2:$G$48,2,FALSE)+ROW()-2)),\"\")","v":{"$error":"#N/A"}},{"$f":"IF(INDIRECT(\"c\" & (VLOOKUP(Rebalance!$D$33,$F$2:$G$48,2,FALSE)+ROW()-2))=Rebalance!$D$33,INDIRECT(\"a\" & (VLOOKUP(Rebalance!$D$33,$F$2:$G$48,2,FALSE)+ROW()-2)),\"\")","v":{"$error":"#N/A"}},{"$f":"IF(INDIRECT(\"c\" & (VLOOKUP(Rebalance!$D$34,$F$2:$G$48,2,FALSE)+ROW()-2))=Rebalance!$D$34,INDIRECT(\"a\" & (VLOOKUP(Rebalance!$D$34,$F$2:$G$48,2,FALSE)+ROW()-2)),\"\")","v":{"$error":"#N/A"}},{"$f":"IF(INDIRECT(\"c\" & (VLOOKUP(Rebalance!$D$35,$F$2:$G$48,2,FALSE)+ROW()-2))=Rebalance!$D$35,INDIRECT(\"a\" & (VLOOKUP(Rebalance!$D$35,$F$2:$G$48,2,FALSE)+ROW()-2)),\"\")","v":{"$error":"#N/A"}},{"$f":"IF(INDIRECT(\"c\" & (VLOOKUP(Rebalance!$D$36,$F$2:$G$48,2,FALSE)+ROW()-2))=Rebalance!$D$36,INDIRECT(\"a\" & (VLOOKUP(Rebalance!$D$36,$F$2:$G$48,2,FALSE)+ROW()-2)),\"\")","v":{"$error":"#N/A"}},{"$f":"IF(INDIRECT(\"c\" & (VLOOKUP(Rebalance!$D$37,$F$2:$G$48,2,FALSE)+ROW()-2))=Rebalance!$D$37,INDIRECT(\"a\" & (VLOOKUP(Rebalance!$D$37,$F$2:$G$48,2,FALSE)+ROW()-2)),\"\")","v":{"$error":"#N/A"}},{"$f":"IF(INDIRECT(\"c\" & (VLOOKUP(Rebalance!$D$38,$F$2:$G$48,2,FALSE)+ROW()-2))=Rebalance!$D$38,INDIRECT(\"a\" & (VLOOKUP(Rebalance!$D$38,$F$2:$G$48,2,FALSE)+ROW()-2)),\"\")","v":{"$error":"#N/A"}},{"$f":"IF(INDIRECT(\"c\" & (VLOOKUP(Rebalance!$D$39,$F$2:$G$48,2,FALSE)+ROW()-2))=Rebalance!$D$39,INDIRECT(\"a\" & (VLOOKUP(Rebalance!$D$39,$F$2:$G$48,2,FALSE)+ROW()-2)),\"\")","v":{"$error":"#N/A"}},{"$f":"IF(INDIRECT(\"c\" & (VLOOKUP(Rebalance!$D$40,$F$2:$G$48,2,FALSE)+ROW()-2))=Rebalance!$D$40,INDIRECT(\"a\" & (VLOOKUP(Rebalance!$D$40,$F$2:$G$48,2,FALSE)+ROW()-2)),\"\")","v":{"$error":"#N/A"}},{"$f":"IF(INDIRECT(\"c\" & (VLOOKUP(Rebalance!$D$52,$F$2:$G$48,2,FALSE)+ROW()-2))=Rebalance!$D$52,INDIRECT(\"a\" & (VLOOKUP(Rebalance!$D$52,$F$2:$G$48,2,FALSE)+ROW()-2)),\"\")","v":{"$error":"#N/A"}},{"$f":"IF(INDIRECT(\"c\" & (VLOOKUP(Rebalance!$D$53,$F$2:$G$48,2,FALSE)+ROW()-2))=Rebalance!$D$53,INDIRECT(\"a\" & (VLOOKUP(Rebalance!$D$53,$F$2:$G$48,2,FALSE)+ROW()-2)),\"\")","v":{"$error":"#N/A"}},{"$f":"IF(INDIRECT(\"c\" & (VLOOKUP(Rebalance!$D$54,$F$2:$G$48,2,FALSE)+ROW()-2))=Rebalance!$D$54,INDIRECT(\"a\" & (VLOOKUP(Rebalance!$D$54,$F$2:$G$48,2,FALSE)+ROW()-2)),\"\")","v":{"$error":"#N/A"}},{"$f":"IF(INDIRECT(\"c\" & (VLOOKUP(Rebalance!$D$55,$F$2:$G$48,2,FALSE)+ROW()-2))=Rebalance!$D$55,INDIRECT(\"a\" & (VLOOKUP(Rebalance!$D$55,$F$2:$G$48,2,FALSE)+ROW()-2)),\"\")","v":{"$error":"#N/A"}},{"$f":"IF(INDIRECT(\"c\" & (VLOOKUP(Rebalance!$D$56,$F$2:$G$48,2,FALSE)+ROW()-2))=Rebalance!$D$56,INDIRECT(\"a\" & (VLOOKUP(Rebalance!$D$56,$F$2:$G$48,2,FALSE)+ROW()-2)),\"\")","v":{"$error":"#N/A"}},{"$f":"IF(INDIRECT(\"c\" & (VLOOKUP(Rebalance!$D$57,$F$2:$G$48,2,FALSE)+ROW()-2))=Rebalance!$D$57,INDIRECT(\"a\" & (VLOOKUP(Rebalance!$D$57,$F$2:$G$48,2,FALSE)+ROW()-2)),\"\")","v":{"$error":"#N/A"}},{"$f":"IF(INDIRECT(\"c\" & (VLOOKUP(Rebalance!$D$58,$F$2:$G$48,2,FALSE)+ROW()-2))=Rebalance!$D$58,INDIRECT(\"a\" & (VLOOKUP(Rebalance!$D$58,$F$2:$G$48,2,FALSE)+ROW()-2)),\"\")","v":{"$error":"#N/A"}},{"$f":"IF(INDIRECT(\"c\" & (VLOOKUP(Rebalance!$D$59,$F$2:$G$48,2,FALSE)+ROW()-2))=Rebalance!$D$59,INDIRECT(\"a\" & (VLOOKUP(Rebalance!$D$59,$F$2:$G$48,2,FALSE)+ROW()-2)),\"\")","v":{"$error":"#N/A"}},{"$f":"IF(INDIRECT(\"c\" & (VLOOKUP(Rebalance!$D$60,$F$2:$G$48,2,FALSE)+ROW()-2))=Rebalance!$D$60,INDIRECT(\"a\" & (VLOOKUP(Rebalance!$D$60,$F$2:$G$48,2,FALSE)+ROW()-2)),\"\")","v":{"$error":"#N/A"}},{"$f":"IF(INDIRECT(\"c\" & (VLOOKUP(Rebalance!$D$61,$F$2:$G$48,2,FALSE)+ROW()-2))=Rebalance!$D$61,INDIRECT(\"a\" & (VLOOKUP(Rebalance!$D$61,$F$2:$G$48,2,FALSE)+ROW()-2)),\"\")","v":{"$error":"#N/A"}},{"$f":"IF(INDIRECT(\"c\" & (VLOOKUP(Rebalance!$D$62,$F$2:$G$48,2,FALSE)+ROW()-2))=Rebalance!$D$62,INDIRECT(\"a\" & (VLOOKUP(Rebalance!$D$62,$F$2:$G$48,2,FALSE)+ROW()-2)),\"\")","v":{"$error":"#N/A"}},{"$f":"IF(INDIRECT(\"c\" & (VLOOKUP(Rebalance!$D$63,$F$2:$G$48,2,FALSE)+ROW()-2))=Rebalance!$D$63,INDIRECT(\"a\" & (VLOOKUP(Rebalance!$D$63,$F$2:$G$48,2,FALSE)+ROW()-2)),\"\")","v":{"$error":"#N/A"}},{"$f":"IF(INDIRECT(\"c\" & (VLOOKUP(Rebalance!$D$64,$F$2:$G$48,2,FALSE)+ROW()-2))=Rebalance!$D$64,INDIRECT(\"a\" & (VLOOKUP(Rebalance!$D$64,$F$2:$G$48,2,FALSE)+ROW()-2)),\"\")","v":{"$error":"#N/A"}},{"$f":"IF(INDIRECT(\"c\" & (VLOOKUP(Rebalance!$D$65,$F$2:$G$48,2,FALSE)+ROW()-2))=Rebalance!$D$65,INDIRECT(\"a\" & (VLOOKUP(Rebalance!$D$65,$F$2:$G$48,2,FALSE)+ROW()-2)),\"\")","v":{"$error":"#N/A"}},{"$f":"IF(INDIRECT(\"c\" & (VLOOKUP(Rebalance!$D$66,$F$2:$G$48,2,FALSE)+ROW()-2))=Rebalance!$D$66,INDIRECT(\"a\" & (VLOOKUP(Rebalance!$D$66,$F$2:$G$48,2,FALSE)+ROW()-2)),\"\")","v":{"$error":"#N/A"}}]
[null,null,null,{"$f":"ROW()","v":650},null,null,{"$f":"VLOOKUP(F650,$C$2:$D$599,2,FALSE)","v":{"$error":"#N/A"}},{"$f":"IF(INDIRECT(\"c\" & (VLOOKUP(Rebalance!$D$26,$F$2:$G$48,2,FALSE)+ROW()-2))=Rebalance!$D$26,INDIRECT(\"a\" & (VLOOKUP(Rebalance!$D$26,$F$2:$G$48,2,FALSE)+ROW()-2)),\"\")","v":{"$error":"#N/A"}},{"$f":"IF(INDIRECT(\"c\" & (VLOOKUP(Rebalance!$D$27,$F$2:$G$48,2,FALSE)+ROW()-2))=Rebalance!$D$27,INDIRECT(\"a\" & (VLOOKUP(Rebalance!$D$27,$F$2:$G$48,2,FALSE)+ROW()-2)),\"\")","v":{"$error":"#N/A"}},{"$f":"IF(INDIRECT(\"c\" & (VLOOKUP(Rebalance!$D$28,$F$2:$G$48,2,FALSE)+ROW()-2))=Rebalance!$D$28,INDIRECT(\"a\" & (VLOOKUP(Rebalance!$D$28,$F$2:$G$48,2,FALSE)+ROW()-2)),\"\")","v":{"$error":"#N/A"}},{"$f":"IF(INDIRECT(\"c\" & (VLOOKUP(Rebalance!$D$29,$F$2:$G$48,2,FALSE)+ROW()-2))=Rebalance!$D$29,INDIRECT(\"a\" & (VLOOKUP(Rebalance!$D$29,$F$2:$G$48,2,FALSE)+ROW()-2)),\"\")","v":{"$error":"#N/A"}},{"$f":"IF(INDIRECT(\"c\" & (VLOOKUP(Rebalance!$D$30,$F$2:$G$48,2,FALSE)+ROW()-2))=Rebalance!$D$30,INDIRECT(\"a\" & (VLOOKUP(Rebalance!$D$30,$F$2:$G$48,2,FALSE)+ROW()-2)),\"\")","v":{"$error":"#N/A"}},{"$f":"IF(INDIRECT(\"c\" & (VLOOKUP(Rebalance!$D$31,$F$2:$G$48,2,FALSE)+ROW()-2))=Rebalance!$D$31,INDIRECT(\"a\" & (VLOOKUP(Rebalance!$D$31,$F$2:$G$48,2,FALSE)+ROW()-2)),\"\")","v":{"$error":"#N/A"}},{"$f":"IF(INDIRECT(\"c\" & (VLOOKUP(Rebalance!$D$32,$F$2:$G$48,2,FALSE)+ROW()-2))=Rebalance!$D$32,INDIRECT(\"a\" & (VLOOKUP(Rebalance!$D$32,$F$2:$G$48,2,FALSE)+ROW()-2)),\"\")","v":{"$error":"#N/A"}},{"$f":"IF(INDIRECT(\"c\" & (VLOOKUP(Rebalance!$D$33,$F$2:$G$48,2,FALSE)+ROW()-2))=Rebalance!$D$33,INDIRECT(\"a\" & (VLOOKUP(Rebalance!$D$33,$F$2:$G$48,2,FALSE)+ROW()-2)),\"\")","v":{"$error":"#N/A"}},{"$f":"IF(INDIRECT(\"c\" & (VLOOKUP(Rebalance!$D$34,$F$2:$G$48,2,FALSE)+ROW()-2))=Rebalance!$D$34,INDIRECT(\"a\" & (VLOOKUP(Rebalance!$D$34,$F$2:$G$48,2,FALSE)+ROW()-2)),\"\")","v":{"$error":"#N/A"}},{"$f":"IF(INDIRECT(\"c\" & (VLOOKUP(Rebalance!$D$35,$F$2:$G$48,2,FALSE)+ROW()-2))=Rebalance!$D$35,INDIRECT(\"a\" & (VLOOKUP(Rebalance!$D$35,$F$2:$G$48,2,FALSE)+ROW()-2)),\"\")","v":{"$error":"#N/A"}},{"$f":"IF(INDIRECT(\"c\" & (VLOOKUP(Rebalance!$D$36,$F$2:$G$48,2,FALSE)+ROW()-2))=Rebalance!$D$36,INDIRECT(\"a\" & (VLOOKUP(Rebalance!$D$36,$F$2:$G$48,2,FALSE)+ROW()-2)),\"\")","v":{"$error":"#N/A"}},{"$f":"IF(INDIRECT(\"c\" & (VLOOKUP(Rebalance!$D$37,$F$2:$G$48,2,FALSE)+ROW()-2))=Rebalance!$D$37,INDIRECT(\"a\" & (VLOOKUP(Rebalance!$D$37,$F$2:$G$48,2,FALSE)+ROW()-2)),\"\")","v":{"$error":"#N/A"}},{"$f":"IF(INDIRECT(\"c\" & (VLOOKUP(Rebalance!$D$38,$F$2:$G$48,2,FALSE)+ROW()-2))=Rebalance!$D$38,INDIRECT(\"a\" & (VLOOKUP(Rebalance!$D$38,$F$2:$G$48,2,FALSE)+ROW()-2)),\"\")","v":{"$error":"#N/A"}},{"$f":"IF(INDIRECT(\"c\" & (VLOOKUP(Rebalance!$D$39,$F$2:$G$48,2,FALSE)+ROW()-2))=Rebalance!$D$39,INDIRECT(\"a\" & (VLOOKUP(Rebalance!$D$39,$F$2:$G$48,2,FALSE)+ROW()-2)),\"\")","v":{"$error":"#N/A"}},{"$f":"IF(INDIRECT(\"c\" & (VLOOKUP(Rebalance!$D$40,$F$2:$G$48,2,FALSE)+ROW()-2))=Rebalance!$D$40,INDIRECT(\"a\" & (VLOOKUP(Rebalance!$D$40,$F$2:$G$48,2,FALSE)+ROW()-2)),\"\")","v":{"$error":"#N/A"}},{"$f":"IF(INDIRECT(\"c\" & (VLOOKUP(Rebalance!$D$52,$F$2:$G$48,2,FALSE)+ROW()-2))=Rebalance!$D$52,INDIRECT(\"a\" & (VLOOKUP(Rebalance!$D$52,$F$2:$G$48,2,FALSE)+ROW()-2)),\"\")","v":{"$error":"#N/A"}},{"$f":"IF(INDIRECT(\"c\" & (VLOOKUP(Rebalance!$D$53,$F$2:$G$48,2,FALSE)+ROW()-2))=Rebalance!$D$53,INDIRECT(\"a\" & (VLOOKUP(Rebalance!$D$53,$F$2:$G$48,2,FALSE)+ROW()-2)),\"\")","v":{"$error":"#N/A"}},{"$f":"IF(INDIRECT(\"c\" & (VLOOKUP(Rebalance!$D$54,$F$2:$G$48,2,FALSE)+ROW()-2))=Rebalance!$D$54,INDIRECT(\"a\" & (VLOOKUP(Rebalance!$D$54,$F$2:$G$48,2,FALSE)+ROW()-2)),\"\")","v":{"$error":"#N/A"}},{"$f":"IF(INDIRECT(\"c\" & (VLOOKUP(Rebalance!$D$55,$F$2:$G$48,2,FALSE)+ROW()-2))=Rebalance!$D$55,INDIRECT(\"a\" & (VLOOKUP(Rebalance!$D$55,$F$2:$G$48,2,FALSE)+ROW()-2)),\"\")","v":{"$error":"#N/A"}},{"$f":"IF(INDIRECT(\"c\" & (VLOOKUP(Rebalance!$D$56,$F$2:$G$48,2,FALSE)+ROW()-2))=Rebalance!$D$56,INDIRECT(\"a\" & (VLOOKUP(Rebalance!$D$56,$F$2:$G$48,2,FALSE)+ROW()-2)),\"\")","v":{"$error":"#N/A"}},{"$f":"IF(INDIRECT(\"c\" & (VLOOKUP(Rebalance!$D$57,$F$2:$G$48,2,FALSE)+ROW()-2))=Rebalance!$D$57,INDIRECT(\"a\" & (VLOOKUP(Rebalance!$D$57,$F$2:$G$48,2,FALSE)+ROW()-2)),\"\")","v":{"$error":"#N/A"}},{"$f":"IF(INDIRECT(\"c\" & (VLOOKUP(Rebalance!$D$58,$F$2:$G$48,2,FALSE)+ROW()-2))=Rebalance!$D$58,INDIRECT(\"a\" & (VLOOKUP(Rebalance!$D$58,$F$2:$G$48,2,FALSE)+ROW()-2)),\"\")","v":{"$error":"#N/A"}},{"$f":"IF(INDIRECT(\"c\" & (VLOOKUP(Rebalance!$D$59,$F$2:$G$48,2,FALSE)+ROW()-2))=Rebalance!$D$59,INDIRECT(\"a\" & (VLOOKUP(Rebalance!$D$59,$F$2:$G$48,2,FALSE)+ROW()-2)),\"\")","v":{"$error":"#N/A"}},{"$f":"IF(INDIRECT(\"c\" & (VLOOKUP(Rebalance!$D$60,$F$2:$G$48,2,FALSE)+ROW()-2))=Rebalance!$D$60,INDIRECT(\"a\" & (VLOOKUP(Rebalance!$D$60,$F$2:$G$48,2,FALSE)+ROW()-2)),\"\")","v":{"$error":"#N/A"}},{"$f":"IF(INDIRECT(\"c\" & (VLOOKUP(Rebalance!$D$61,$F$2:$G$48,2,FALSE)+ROW()-2))=Rebalance!$D$61,INDIRECT(\"a\" & (VLOOKUP(Rebalance!$D$61,$F$2:$G$48,2,FALSE)+ROW()-2)),\"\")","v":{"$error":"#N/A"}},{"$f":"IF(INDIRECT(\"c\" & (VLOOKUP(Rebalance!$D$62,$F$2:$G$48,2,FALSE)+ROW()-2))=Rebalance!$D$62,INDIRECT(\"a\" & (VLOOKUP(Rebalance!$D$62,$F$2:$G$48,2,FALSE)+ROW()-2)),\"\")","v":{"$error":"#N/A"}},{"$f":"IF(INDIRECT(\"c\" & (VLOOKUP(Rebalance!$D$63,$F$2:$G$48,2,FALSE)+ROW()-2))=Rebalance!$D$63,INDIRECT(\"a\" & (VLOOKUP(Rebalance!$D$63,$F$2:$G$48,2,FALSE)+ROW()-2)),\"\")","v":{"$error":"#N/A"}},{"$f":"IF(INDIRECT(\"c\" & (VLOOKUP(Rebalance!$D$64,$F$2:$G$48,2,FALSE)+ROW()-2))=Rebalance!$D$64,INDIRECT(\"a\" & (VLOOKUP(Rebalance!$D$64,$F$2:$G$48,2,FALSE)+ROW()-2)),\"\")","v":{"$error":"#N/A"}},{"$f":"IF(INDIRECT(\"c\" & (VLOOKUP(Rebalance!$D$65,$F$2:$G$48,2,FALSE)+ROW()-2))=Rebalance!$D$65,INDIRECT(\"a\" & (VLOOKUP(Rebalance!$D$65,$F$2:$G$48,2,FALSE)+ROW()-2)),\"\")","v":{"$error":"#N/A"}},{"$f":"IF(INDIRECT(\"c\" & (VLOOKUP(Rebalance!$D$66,$F$2:$G$48,2,FALSE)+ROW()-2))=Rebalance!$D$66,INDIRECT(\"a\" & (VLOOKUP(Rebalance!$D$66,$F$2:$G$48,2,FALSE)+ROW()-2)),\"\")","v":{"$error":"#N/A"}}]
[null,null,null,{"$f":"ROW()","v":651},null,null,{"$f":"VLOOKUP(F651,$C$2:$D$599,2,FALSE)","v":{"$error":"#N/A"}},{"$f":"IF(INDIRECT(\"c\" & (VLOOKUP(Rebalance!$D$26,$F$2:$G$48,2,FALSE)+ROW()-2))=Rebalance!$D$26,INDIRECT(\"a\" & (VLOOKUP(Rebalance!$D$26,$F$2:$G$48,2,FALSE)+ROW()-2)),\"\")","v":{"$error":"#N/A"}},{"$f":"IF(INDIRECT(\"c\" & (VLOOKUP(Rebalance!$D$27,$F$2:$G$48,2,FALSE)+ROW()-2))=Rebalance!$D$27,INDIRECT(\"a\" & (VLOOKUP(Rebalance!$D$27,$F$2:$G$48,2,FALSE)+ROW()-2)),\"\")","v":{"$error":"#N/A"}},{"$f":"IF(INDIRECT(\"c\" & (VLOOKUP(Rebalance!$D$28,$F$2:$G$48,2,FALSE)+ROW()-2))=Rebalance!$D$28,INDIRECT(\"a\" & (VLOOKUP(Rebalance!$D$28,$F$2:$G$48,2,FALSE)+ROW()-2)),\"\")","v":{"$error":"#N/A"}},{"$f":"IF(INDIRECT(\"c\" & (VLOOKUP(Rebalance!$D$29,$F$2:$G$48,2,FALSE)+ROW()-2))=Rebalance!$D$29,INDIRECT(\"a\" & (VLOOKUP(Rebalance!$D$29,$F$2:$G$48,2,FALSE)+ROW()-2)),\"\")","v":{"$error":"#N/A"}},{"$f":"IF(INDIRECT(\"c\" & (VLOOKUP(Rebalance!$D$30,$F$2:$G$48,2,FALSE)+ROW()-2))=Rebalance!$D$30,INDIRECT(\"a\" & (VLOOKUP(Rebalance!$D$30,$F$2:$G$48,2,FALSE)+ROW()-2)),\"\")","v":{"$error":"#N/A"}},{"$f":"IF(INDIRECT(\"c\" & (VLOOKUP(Rebalance!$D$31,$F$2:$G$48,2,FALSE)+ROW()-2))=Rebalance!$D$31,INDIRECT(\"a\" & (VLOOKUP(Rebalance!$D$31,$F$2:$G$48,2,FALSE)+ROW()-2)),\"\")","v":{"$error":"#N/A"}},{"$f":"IF(INDIRECT(\"c\" & (VLOOKUP(Rebalance!$D$32,$F$2:$G$48,2,FALSE)+ROW()-2))=Rebalance!$D$32,INDIRECT(\"a\" & (VLOOKUP(Rebalance!$D$32,$F$2:$G$48,2,FALSE)+ROW()-2)),\"\")","v":{"$error":"#N/A"}},{"$f":"IF(INDIRECT(\"c\" & (VLOOKUP(Rebalance!$D$33,$F$2:$G$48,2,FALSE)+ROW()-2))=Rebalance!$D$33,INDIRECT(\"a\" & (VLOOKUP(Rebalance!$D$33,$F$2:$G$48,2,FALSE)+ROW()-2)),\"\")","v":{"$error":"#N/A"}},{"$f":"IF(INDIRECT(\"c\" & (VLOOKUP(Rebalance!$D$34,$F$2:$G$48,2,FALSE)+ROW()-2))=Rebalance!$D$34,INDIRECT(\"a\" & (VLOOKUP(Rebalance!$D$34,$F$2:$G$48,2,FALSE)+ROW()-2)),\"\")","v":{"$error":"#N/A"}},{"$f":"IF(INDIRECT(\"c\" & (VLOOKUP(Rebalance!$D$35,$F$2:$G$48,2,FALSE)+ROW()-2))=Rebalance!$D$35,INDIRECT(\"a\" & (VLOOKUP(Rebalance!$D$35,$F$2:$G$48,2,FALSE)+ROW()-2)),\"\")","v":{"$error":"#N/A"}},{"$f":"IF(INDIRECT(\"c\" & (VLOOKUP(Rebalance!$D$36,$F$2:$G$48,2,FALSE)+ROW()-2))=Rebalance!$D$36,INDIRECT(\"a\" & (VLOOKUP(Rebalance!$D$36,$F$2:$G$48,2,FALSE)+ROW()-2)),\"\")","v":{"$error":"#N/A"}},{"$f":"IF(INDIRECT(\"c\" & (VLOOKUP(Rebalance!$D$37,$F$2:$G$48,2,FALSE)+ROW()-2))=Rebalance!$D$37,INDIRECT(\"a\" & (VLOOKUP(Rebalance!$D$37,$F$2:$G$48,2,FALSE)+ROW()-2)),\"\")","v":{"$error":"#N/A"}},{"$f":"IF(INDIRECT(\"c\" & (VLOOKUP(Rebalance!$D$38,$F$2:$G$48,2,FALSE)+ROW()-2))=Rebalance!$D$38,INDIRECT(\"a\" & (VLOOKUP(Rebalance!$D$38,$F$2:$G$48,2,FALSE)+ROW()-2)),\"\")","v":{"$error":"#N/A"}},{"$f":"IF(INDIRECT(\"c\" & (VLOOKUP(Rebalance!$D$39,$F$2:$G$48,2,FALSE)+ROW()-2))=Rebalance!$D$39,INDIRECT(\"a\" & (VLOOKUP(Rebalance!$D$39,$F$2:$G$48,2,FALSE)+ROW()-2)),\"\")","v":{"$error":"#N/A"}},{"$f":"IF(INDIRECT(\"c\" & (VLOOKUP(Rebalance!$D$40,$F$2:$G$48,2,FALSE)+ROW()-2))=Rebalance!$D$40,INDIRECT(\"a\" & (VLOOKUP(Rebalance!$D$40,$F$2:$G$48,2,FALSE)+ROW()-2)),\"\")","v":{"$error":"#N/A"}},{"$f":"IF(INDIRECT(\"c\" & (VLOOKUP(Rebalance!$D$52,$F$2:$G$48,2,FALSE)+ROW()-2))=Rebalance!$D$52,INDIRECT(\"a\" & (VLOOKUP(Rebalance!$D$52,$F$2:$G$48,2,FALSE)+ROW()-2)),\"\")","v":{"$error":"#N/A"}},{"$f":"IF(INDIRECT(\"c\" & (VLOOKUP(Rebalance!$D$53,$F$2:$G$48,2,FALSE)+ROW()-2))=Rebalance!$D$53,INDIRECT(\"a\" & (VLOOKUP(Rebalance!$D$53,$F$2:$G$48,2,FALSE)+ROW()-2)),\"\")","v":{"$error":"#N/A"}},{"$f":"IF(INDIRECT(\"c\" & (VLOOKUP(Rebalance!$D$54,$F$2:$G$48,2,FALSE)+ROW()-2))=Rebalance!$D$54,INDIRECT(\"a\" & (VLOOKUP(Rebalance!$D$54,$F$2:$G$48,2,FALSE)+ROW()-2)),\"\")","v":{"$error":"#N/A"}},{"$f":"IF(INDIRECT(\"c\" & (VLOOKUP(Rebalance!$D$55,$F$2:$G$48,2,FALSE)+ROW()-2))=Rebalance!$D$55,INDIRECT(\"a\" & (VLOOKUP(Rebalance!$D$55,$F$2:$G$48,2,FALSE)+ROW()-2)),\"\")","v":{"$error":"#N/A"}},{"$f":"IF(INDIRECT(\"c\" & (VLOOKUP(Rebalance!$D$56,$F$2:$G$48,2,FALSE)+ROW()-2))=Rebalance!$D$56,INDIRECT(\"a\" & (VLOOKUP(Rebalance!$D$56,$F$2:$G$48,2,FALSE)+ROW()-2)),\"\")","v":{"$error":"#N/A"}},{"$f":"IF(INDIRECT(\"c\" & (VLOOKUP(Rebalance!$D$57,$F$2:$G$48,2,FALSE)+ROW()-2))=Rebalance!$D$57,INDIRECT(\"a\" & (VLOOKUP(Rebalance!$D$57,$F$2:$G$48,2,FALSE)+ROW()-2)),\"\")","v":{"$error":"#N/A"}},{"$f":"IF(INDIRECT(\"c\" & (VLOOKUP(Rebalance!$D$58,$F$2:$G$48,2,FALSE)+ROW()-2))=Rebalance!$D$58,INDIRECT(\"a\" & (VLOOKUP(Rebalance!$D$58,$F$2:$G$48,2,FALSE)+ROW()-2)),\"\")","v":{"$error":"#N/A"}},{"$f":"IF(INDIRECT(\"c\" & (VLOOKUP(Rebalance!$D$59,$F$2:$G$48,2,FALSE)+ROW()-2))=Rebalance!$D$59,INDIRECT(\"a\" & (VLOOKUP(Rebalance!$D$59,$F$2:$G$48,2,FALSE)+ROW()-2)),\"\")","v":{"$error":"#N/A"}},{"$f":"IF(INDIRECT(\"c\" & (VLOOKUP(Rebalance!$D$60,$F$2:$G$48,2,FALSE)+ROW()-2))=Rebalance!$D$60,INDIRECT(\"a\" & (VLOOKUP(Rebalance!$D$60,$F$2:$G$48,2,FALSE)+ROW()-2)),\"\")","v":{"$error":"#N/A"}},{"$f":"IF(INDIRECT(\"c\" & (VLOOKUP(Rebalance!$D$61,$F$2:$G$48,2,FALSE)+ROW()-2))=Rebalance!$D$61,INDIRECT(\"a\" & (VLOOKUP(Rebalance!$D$61,$F$2:$G$48,2,FALSE)+ROW()-2)),\"\")","v":{"$error":"#N/A"}},{"$f":"IF(INDIRECT(\"c\" & (VLOOKUP(Rebalance!$D$62,$F$2:$G$48,2,FALSE)+ROW()-2))=Rebalance!$D$62,INDIRECT(\"a\" & (VLOOKUP(Rebalance!$D$62,$F$2:$G$48,2,FALSE)+ROW()-2)),\"\")","v":{"$error":"#N/A"}},{"$f":"IF(INDIRECT(\"c\" & (VLOOKUP(Rebalance!$D$63,$F$2:$G$48,2,FALSE)+ROW()-2))=Rebalance!$D$63,INDIRECT(\"a\" & (VLOOKUP(Rebalance!$D$63,$F$2:$G$48,2,FALSE)+ROW()-2)),\"\")","v":{"$error":"#N/A"}},{"$f":"IF(INDIRECT(\"c\" & (VLOOKUP(Rebalance!$D$64,$F$2:$G$48,2,FALSE)+ROW()-2))=Rebalance!$D$64,INDIRECT(\"a\" & (VLOOKUP(Rebalance!$D$64,$F$2:$G$48,2,FALSE)+ROW()-2)),\"\")","v":{"$error":"#N/A"}},{"$f":"IF(INDIRECT(\"c\" & (VLOOKUP(Rebalance!$D$65,$F$2:$G$48,2,FALSE)+ROW()-2))=Rebalance!$D$65,INDIRECT(\"a\" & (VLOOKUP(Rebalance!$D$65,$F$2:$G$48,2,FALSE)+ROW()-2)),\"\")","v":{"$error":"#N/A"}},{"$f":"IF(INDIRECT(\"c\" & (VLOOKUP(Rebalance!$D$66,$F$2:$G$48,2,FALSE)+ROW()-2))=Rebalance!$D$66,INDIRECT(\"a\" & (VLOOKUP(Rebalance!$D$66,$F$2:$G$48,2,FALSE)+ROW()-2)),\"\")","v":{"$error":"#N/A"}}]
[null,null,null,{"$f":"ROW()","v":652},null,null,{"$f":"VLOOKUP(F652,$C$2:$D$599,2,FALSE)","v":{"$error":"#N/A"}},{"$f":"IF(INDIRECT(\"c\" & (VLOOKUP(Rebalance!$D$26,$F$2:$G$48,2,FALSE)+ROW()-2))=Rebalance!$D$26,INDIRECT(\"a\" & (VLOOKUP(Rebalance!$D$26,$F$2:$G$48,2,FALSE)+ROW()-2)),\"\")","v":{"$error":"#N/A"}},{"$f":"IF(INDIRECT(\"c\" & (VLOOKUP(Rebalance!$D$27,$F$2:$G$48,2,FALSE)+ROW()-2))=Rebalance!$D$27,INDIRECT(\"a\" & (VLOOKUP(Rebalance!$D$27,$F$2:$G$48,2,FALSE)+ROW()-2)),\"\")","v":{"$error":"#N/A"}},{"$f":"IF(INDIRECT(\"c\" & (VLOOKUP(Rebalance!$D$28,$F$2:$G$48,2,FALSE)+ROW()-2))=Rebalance!$D$28,INDIRECT(\"a\" & (VLOOKUP(Rebalance!$D$28,$F$2:$G$48,2,FALSE)+ROW()-2)),\"\")","v":{"$error":"#N/A"}},{"$f":"IF(INDIRECT(\"c\" & (VLOOKUP(Rebalance!$D$29,$F$2:$G$48,2,FALSE)+ROW()-2))=Rebalance!$D$29,INDIRECT(\"a\" & (VLOOKUP(Rebalance!$D$29,$F$2:$G$48,2,FALSE)+ROW()-2)),\"\")","v":{"$error":"#N/A"}},{"$f":"IF(INDIRECT(\"c\" & (VLOOKUP(Rebalance!$D$30,$F$2:$G$48,2,FALSE)+ROW()-2))=Rebalance!$D$30,INDIRECT(\"a\" & (VLOOKUP(Rebalance!$D$30,$F$2:$G$48,2,FALSE)+ROW()-2)),\"\")","v":{"$error":"#N/A"}},{"$f":"IF(INDIRECT(\"c\" & (VLOOKUP(Rebalance!$D$31,$F$2:$G$48,2,FALSE)+ROW()-2))=Rebalance!$D$31,INDIRECT(\"a\" & (VLOOKUP(Rebalance!$D$31,$F$2:$G$48,2,FALSE)+ROW()-2)),\"\")","v":{"$error":"#N/A"}},{"$f":"IF(INDIRECT(\"c\" & (VLOOKUP(Rebalance!$D$32,$F$2:$G$48,2,FALSE)+ROW()-2))=Rebalance!$D$32,INDIRECT(\"a\" & (VLOOKUP(Rebalance!$D$32,$F$2:$G$48,2,FALSE)+ROW()-2)),\"\")","v":{"$error":"#N/A"}},{"$f":"IF(INDIRECT(\"c\" & (VLOOKUP(Rebalance!$D$33,$F$2:$G$48,2,FALSE)+ROW()-2))=Rebalance!$D$33,INDIRECT(\"a\" & (VLOOKUP(Rebalance!$D$33,$F$2:$G$48,2,FALSE)+ROW()-2)),\"\")","v":{"$error":"#N/A"}},{"$f":"IF(INDIRECT(\"c\" & (VLOOKUP(Rebalance!$D$34,$F$2:$G$48,2,FALSE)+ROW()-2))=Rebalance!$D$34,INDIRECT(\"a\" & (VLOOKUP(Rebalance!$D$34,$F$2:$G$48,2,FALSE)+ROW()-2)),\"\")","v":{"$error":"#N/A"}},{"$f":"IF(INDIRECT(\"c\" & (VLOOKUP(Rebalance!$D$35,$F$2:$G$48,2,FALSE)+ROW()-2))=Rebalance!$D$35,INDIRECT(\"a\" & (VLOOKUP(Rebalance!$D$35,$F$2:$G$48,2,FALSE)+ROW()-2)),\"\")","v":{"$error":"#N/A"}},{"$f":"IF(INDIRECT(\"c\" & (VLOOKUP(Rebalance!$D$36,$F$2:$G$48,2,FALSE)+ROW()-2))=Rebalance!$D$36,INDIRECT(\"a\" & (VLOOKUP(Rebalance!$D$36,$F$2:$G$48,2,FALSE)+ROW()-2)),\"\")","v":{"$error":"#N/A"}},{"$f":"IF(INDIRECT(\"c\" & (VLOOKUP(Rebalance!$D$37,$F$2:$G$48,2,FALSE)+ROW()-2))=Rebalance!$D$37,INDIRECT(\"a\" & (VLOOKUP(Rebalance!$D$37,$F$2:$G$48,2,FALSE)+ROW()-2)),\"\")","v":{"$error":"#N/A"}},{"$f":"IF(INDIRECT(\"c\" & (VLOOKUP(Rebalance!$D$38,$F$2:$G$48,2,FALSE)+ROW()-2))=Rebalance!$D$38,INDIRECT(\"a\" & (VLOOKUP(Rebalance!$D$38,$F$2:$G$48,2,FALSE)+ROW()-2)),\"\")","v":{"$error":"#N/A"}},{"$f":"IF(INDIRECT(\"c\" & (VLOOKUP(Rebalance!$D$39,$F$2:$G$48,2,FALSE)+ROW()-2))=Rebalance!$D$39,INDIRECT(\"a\" & (VLOOKUP(Rebalance!$D$39,$F$2:$G$48,2,FALSE)+ROW()-2)),\"\")","v":{"$error":"#N/A"}},{"$f":"IF(INDIRECT(\"c\" & (VLOOKUP(Rebalance!$D$40,$F$2:$G$48,2,FALSE)+ROW()-2))=Rebalance!$D$40,INDIRECT(\"a\" & (VLOOKUP(Rebalance!$D$40,$F$2:$G$48,2,FALSE)+ROW()-2)),\"\")","v":{"$error":"#N/A"}},{"$f":"IF(INDIRECT(\"c\" & (VLOOKUP(Rebalance!$D$52,$F$2:$G$48,2,FALSE)+ROW()-2))=Rebalance!$D$52,INDIRECT(\"a\" & (VLOOKUP(Rebalance!$D$52,$F$2:$G$48,2,FALSE)+ROW()-2)),\"\")","v":{"$error":"#N/A"}},{"$f":"IF(INDIRECT(\"c\" & (VLOOKUP(Rebalance!$D$53,$F$2:$G$48,2,FALSE)+ROW()-2))=Rebalance!$D$53,INDIRECT(\"a\" & (VLOOKUP(Rebalance!$D$53,$F$2:$G$48,2,FALSE)+ROW()-2)),\"\")","v":{"$error":"#N/A"}},{"$f":"IF(INDIRECT(\"c\" & (VLOOKUP(Rebalance!$D$54,$F$2:$G$48,2,FALSE)+ROW()-2))=Rebalance!$D$54,INDIRECT(\"a\" & (VLOOKUP(Rebalance!$D$54,$F$2:$G$48,2,FALSE)+ROW()-2)),\"\")","v":{"$error":"#N/A"}},{"$f":"IF(INDIRECT(\"c\" & (VLOOKUP(Rebalance!$D$55,$F$2:$G$48,2,FALSE)+ROW()-2))=Rebalance!$D$55,INDIRECT(\"a\" & (VLOOKUP(Rebalance!$D$55,$F$2:$G$48,2,FALSE)+ROW()-2)),\"\")","v":{"$error":"#N/A"}},{"$f":"IF(INDIRECT(\"c\" & (VLOOKUP(Rebalance!$D$56,$F$2:$G$48,2,FALSE)+ROW()-2))=Rebalance!$D$56,INDIRECT(\"a\" & (VLOOKUP(Rebalance!$D$56,$F$2:$G$48,2,FALSE)+ROW()-2)),\"\")","v":{"$error":"#N/A"}},{"$f":"IF(INDIRECT(\"c\" & (VLOOKUP(Rebalance!$D$57,$F$2:$G$48,2,FALSE)+ROW()-2))=Rebalance!$D$57,INDIRECT(\"a\" & (VLOOKUP(Rebalance!$D$57,$F$2:$G$48,2,FALSE)+ROW()-2)),\"\")","v":{"$error":"#N/A"}},{"$f":"IF(INDIRECT(\"c\" & (VLOOKUP(Rebalance!$D$58,$F$2:$G$48,2,FALSE)+ROW()-2))=Rebalance!$D$58,INDIRECT(\"a\" & (VLOOKUP(Rebalance!$D$58,$F$2:$G$48,2,FALSE)+ROW()-2)),\"\")","v":{"$error":"#N/A"}},{"$f":"IF(INDIRECT(\"c\" & (VLOOKUP(Rebalance!$D$59,$F$2:$G$48,2,FALSE)+ROW()-2))=Rebalance!$D$59,INDIRECT(\"a\" & (VLOOKUP(Rebalance!$D$59,$F$2:$G$48,2,FALSE)+ROW()-2)),\"\")","v":{"$error":"#N/A"}},{"$f":"IF(INDIRECT(\"c\" & (VLOOKUP(Rebalance!$D$60,$F$2:$G$48,2,FALSE)+ROW()-2))=Rebalance!$D$60,INDIRECT(\"a\" & (VLOOKUP(Rebalance!$D$60,$F$2:$G$48,2,FALSE)+ROW()-2)),\"\")","v":{"$error":"#N/A"}},{"$f":"IF(INDIRECT(\"c\" & (VLOOKUP(Rebalance!$D$61,$F$2:$G$48,2,FALSE)+ROW()-2))=Rebalance!$D$61,INDIRECT(\"a\" & (VLOOKUP(Rebalance!$D$61,$F$2:$G$48,2,FALSE)+ROW()-2)),\"\")","v":{"$error":"#N/A"}},{"$f":"IF(INDIRECT(\"c\" & (VLOOKUP(Rebalance!$D$62,$F$2:$G$48,2,FALSE)+ROW()-2))=Rebalance!$D$62,INDIRECT(\"a\" & (VLOOKUP(Rebalance!$D$62,$F$2:$G$48,2,FALSE)+ROW()-2)),\"\")","v":{"$error":"#N/A"}},{"$f":"IF(INDIRECT(\"c\" & (VLOOKUP(Rebalance!$D$63,$F$2:$G$48,2,FALSE)+ROW()-2))=Rebalance!$D$63,INDIRECT(\"a\" & (VLOOKUP(Rebalance!$D$63,$F$2:$G$48,2,FALSE)+ROW()-2)),\"\")","v":{"$error":"#N/A"}},{"$f":"IF(INDIRECT(\"c\" & (VLOOKUP(Rebalance!$D$64,$F$2:$G$48,2,FALSE)+ROW()-2))=Rebalance!$D$64,INDIRECT(\"a\" & (VLOOKUP(Rebalance!$D$64,$F$2:$G$48,2,FALSE)+ROW()-2)),\"\")","v":{"$error":"#N/A"}},{"$f":"IF(INDIRECT(\"c\" & (VLOOKUP(Rebalance!$D$65,$F$2:$G$48,2,FALSE)+ROW()-2))=Rebalance!$D$65,INDIRECT(\"a\" & (VLOOKUP(Rebalance!$D$65,$F$2:$G$48,2,FALSE)+ROW()-2)),\"\")","v":{"$error":"#N/A"}},{"$f":"IF(INDIRECT(\"c\" & (VLOOKUP(Rebalance!$D$66,$F$2:$G$48,2,FALSE)+ROW()-2))=Rebalance!$D$66,INDIRECT(\"a\" & (VLOOKUP(Rebalance!$D$66,$F$2:$G$48,2,FALSE)+ROW()-2)),\"\")","v":{"$error":"#N/A"}}]
[null,null,null,{"$f":"ROW()","v":653},null,null,{"$f":"VLOOKUP(F653,$C$2:$D$599,2,FALSE)","v":{"$error":"#N/A"}},{"$f":"IF(INDIRECT(\"c\" & (VLOOKUP(Rebalance!$D$26,$F$2:$G$48,2,FALSE)+ROW()-2))=Rebalance!$D$26,INDIRECT(\"a\" & (VLOOKUP(Rebalance!$D$26,$F$2:$G$48,2,FALSE)+ROW()-2)),\"\")","v":{"$error":"#N/A"}},{"$f":"IF(INDIRECT(\"c\" & (VLOOKUP(Rebalance!$D$27,$F$2:$G$48,2,FALSE)+ROW()-2))=Rebalance!$D$27,INDIRECT(\"a\" & (VLOOKUP(Rebalance!$D$27,$F$2:$G$48,2,FALSE)+ROW()-2)),\"\")","v":{"$error":"#N/A"}},{"$f":"IF(INDIRECT(\"c\" & (VLOOKUP(Rebalance!$D$28,$F$2:$G$48,2,FALSE)+ROW()-2))=Rebalance!$D$28,INDIRECT(\"a\" & (VLOOKUP(Rebalance!$D$28,$F$2:$G$48,2,FALSE)+ROW()-2)),\"\")","v":{"$error":"#N/A"}},{"$f":"IF(INDIRECT(\"c\" & (VLOOKUP(Rebalance!$D$29,$F$2:$G$48,2,FALSE)+ROW()-2))=Rebalance!$D$29,INDIRECT(\"a\" & (VLOOKUP(Rebalance!$D$29,$F$2:$G$48,2,FALSE)+ROW()-2)),\"\")","v":{"$error":"#N/A"}},{"$f":"IF(INDIRECT(\"c\" & (VLOOKUP(Rebalance!$D$30,$F$2:$G$48,2,FALSE)+ROW()-2))=Rebalance!$D$30,INDIRECT(\"a\" & (VLOOKUP(Rebalance!$D$30,$F$2:$G$48,2,FALSE)+ROW()-2)),\"\")","v":{"$error":"#N/A"}},{"$f":"IF(INDIRECT(\"c\" & (VLOOKUP(Rebalance!$D$31,$F$2:$G$48,2,FALSE)+ROW()-2))=Rebalance!$D$31,INDIRECT(\"a\" & (VLOOKUP(Rebalance!$D$31,$F$2:$G$48,2,FALSE)+ROW()-2)),\"\")","v":{"$error":"#N/A"}},{"$f":"IF(INDIRECT(\"c\" & (VLOOKUP(Rebalance!$D$32,$F$2:$G$48,2,FALSE)+ROW()-2))=Rebalance!$D$32,INDIRECT(\"a\" & (VLOOKUP(Rebalance!$D$32,$F$2:$G$48,2,FALSE)+ROW()-2)),\"\")","v":{"$error":"#N/A"}},{"$f":"IF(INDIRECT(\"c\" & (VLOOKUP(Rebalance!$D$33,$F$2:$G$48,2,FALSE)+ROW()-2))=Rebalance!$D$33,INDIRECT(\"a\" & (VLOOKUP(Rebalance!$D$33,$F$2:$G$48,2,FALSE)+ROW()-2)),\"\")","v":{"$error":"#N/A"}},{"$f":"IF(INDIRECT(\"c\" & (VLOOKUP(Rebalance!$D$34,$F$2:$G$48,2,FALSE)+ROW()-2))=Rebalance!$D$34,INDIRECT(\"a\" & (VLOOKUP(Rebalance!$D$34,$F$2:$G$48,2,FALSE)+ROW()-2)),\"\")","v":{"$error":"#N/A"}},{"$f":"IF(INDIRECT(\"c\" & (VLOOKUP(Rebalance!$D$35,$F$2:$G$48,2,FALSE)+ROW()-2))=Rebalance!$D$35,INDIRECT(\"a\" & (VLOOKUP(Rebalance!$D$35,$F$2:$G$48,2,FALSE)+ROW()-2)),\"\")","v":{"$error":"#N/A"}},{"$f":"IF(INDIRECT(\"c\" & (VLOOKUP(Rebalance!$D$36,$F$2:$G$48,2,FALSE)+ROW()-2))=Rebalance!$D$36,INDIRECT(\"a\" & (VLOOKUP(Rebalance!$D$36,$F$2:$G$48,2,FALSE)+ROW()-2)),\"\")","v":{"$error":"#N/A"}},{"$f":"IF(INDIRECT(\"c\" & (VLOOKUP(Rebalance!$D$37,$F$2:$G$48,2,FALSE)+ROW()-2))=Rebalance!$D$37,INDIRECT(\"a\" & (VLOOKUP(Rebalance!$D$37,$F$2:$G$48,2,FALSE)+ROW()-2)),\"\")","v":{"$error":"#N/A"}},{"$f":"IF(INDIRECT(\"c\" & (VLOOKUP(Rebalance!$D$38,$F$2:$G$48,2,FALSE)+ROW()-2))=Rebalance!$D$38,INDIRECT(\"a\" & (VLOOKUP(Rebalance!$D$38,$F$2:$G$48,2,FALSE)+ROW()-2)),\"\")","v":{"$error":"#N/A"}},{"$f":"IF(INDIRECT(\"c\" & (VLOOKUP(Rebalance!$D$39,$F$2:$G$48,2,FALSE)+ROW()-2))=Rebalance!$D$39,INDIRECT(\"a\" & (VLOOKUP(Rebalance!$D$39,$F$2:$G$48,2,FALSE)+ROW()-2)),\"\")","v":{"$error":"#N/A"}},{"$f":"IF(INDIRECT(\"c\" & (VLOOKUP(Rebalance!$D$40,$F$2:$G$48,2,FALSE)+ROW()-2))=Rebalance!$D$40,INDIRECT(\"a\" & (VLOOKUP(Rebalance!$D$40,$F$2:$G$48,2,FALSE)+ROW()-2)),\"\")","v":{"$error":"#N/A"}},{"$f":"IF(INDIRECT(\"c\" & (VLOOKUP(Rebalance!$D$52,$F$2:$G$48,2,FALSE)+ROW()-2))=Rebalance!$D$52,INDIRECT(\"a\" & (VLOOKUP(Rebalance!$D$52,$F$2:$G$48,2,FALSE)+ROW()-2)),\"\")","v":{"$error":"#N/A"}},{"$f":"IF(INDIRECT(\"c\" & (VLOOKUP(Rebalance!$D$53,$F$2:$G$48,2,FALSE)+ROW()-2))=Rebalance!$D$53,INDIRECT(\"a\" & (VLOOKUP(Rebalance!$D$53,$F$2:$G$48,2,FALSE)+ROW()-2)),\"\")","v":{"$error":"#N/A"}},{"$f":"IF(INDIRECT(\"c\" & (VLOOKUP(Rebalance!$D$54,$F$2:$G$48,2,FALSE)+ROW()-2))=Rebalance!$D$54,INDIRECT(\"a\" & (VLOOKUP(Rebalance!$D$54,$F$2:$G$48,2,FALSE)+ROW()-2)),\"\")","v":{"$error":"#N/A"}},{"$f":"IF(INDIRECT(\"c\" & (VLOOKUP(Rebalance!$D$55,$F$2:$G$48,2,FALSE)+ROW()-2))=Rebalance!$D$55,INDIRECT(\"a\" & (VLOOKUP(Rebalance!$D$55,$F$2:$G$48,2,FALSE)+ROW()-2)),\"\")","v":{"$error":"#N/A"}},{"$f":"IF(INDIRECT(\"c\" & (VLOOKUP(Rebalance!$D$56,$F$2:$G$48,2,FALSE)+ROW()-2))=Rebalance!$D$56,INDIRECT(\"a\" & (VLOOKUP(Rebalance!$D$56,$F$2:$G$48,2,FALSE)+ROW()-2)),\"\")","v":{"$error":"#N/A"}},{"$f":"IF(INDIRECT(\"c\" & (VLOOKUP(Rebalance!$D$57,$F$2:$G$48,2,FALSE)+ROW()-2))=Rebalance!$D$57,INDIRECT(\"a\" & (VLOOKUP(Rebalance!$D$57,$F$2:$G$48,2,FALSE)+ROW()-2)),\"\")","v":{"$error":"#N/A"}},{"$f":"IF(INDIRECT(\"c\" & (VLOOKUP(Rebalance!$D$58,$F$2:$G$48,2,FALSE)+ROW()-2))=Rebalance!$D$58,INDIRECT(\"a\" & (VLOOKUP(Rebalance!$D$58,$F$2:$G$48,2,FALSE)+ROW()-2)),\"\")","v":{"$error":"#N/A"}},{"$f":"IF(INDIRECT(\"c\" & (VLOOKUP(Rebalance!$D$59,$F$2:$G$48,2,FALSE)+ROW()-2))=Rebalance!$D$59,INDIRECT(\"a\" & (VLOOKUP(Rebalance!$D$59,$F$2:$G$48,2,FALSE)+ROW()-2)),\"\")","v":{"$error":"#N/A"}},{"$f":"IF(INDIRECT(\"c\" & (VLOOKUP(Rebalance!$D$60,$F$2:$G$48,2,FALSE)+ROW()-2))=Rebalance!$D$60,INDIRECT(\"a\" & (VLOOKUP(Rebalance!$D$60,$F$2:$G$48,2,FALSE)+ROW()-2)),\"\")","v":{"$error":"#N/A"}},{"$f":"IF(INDIRECT(\"c\" & (VLOOKUP(Rebalance!$D$61,$F$2:$G$48,2,FALSE)+ROW()-2))=Rebalance!$D$61,INDIRECT(\"a\" & (VLOOKUP(Rebalance!$D$61,$F$2:$G$48,2,FALSE)+ROW()-2)),\"\")","v":{"$error":"#N/A"}},{"$f":"IF(INDIRECT(\"c\" & (VLOOKUP(Rebalance!$D$62,$F$2:$G$48,2,FALSE)+ROW()-2))=Rebalance!$D$62,INDIRECT(\"a\" & (VLOOKUP(Rebalance!$D$62,$F$2:$G$48,2,FALSE)+ROW()-2)),\"\")","v":{"$error":"#N/A"}},{"$f":"IF(INDIRECT(\"c\" & (VLOOKUP(Rebalance!$D$63,$F$2:$G$48,2,FALSE)+ROW()-2))=Rebalance!$D$63,INDIRECT(\"a\" & (VLOOKUP(Rebalance!$D$63,$F$2:$G$48,2,FALSE)+ROW()-2)),\"\")","v":{"$error":"#N/A"}},{"$f":"IF(INDIRECT(\"c\" & (VLOOKUP(Rebalance!$D$64,$F$2:$G$48,2,FALSE)+ROW()-2))=Rebalance!$D$64,INDIRECT(\"a\" & (VLOOKUP(Rebalance!$D$64,$F$2:$G$48,2,FALSE)+ROW()-2)),\"\")","v":{"$error":"#N/A"}},{"$f":"IF(INDIRECT(\"c\" & (VLOOKUP(Rebalance!$D$65,$F$2:$G$48,2,FALSE)+ROW()-2))=Rebalance!$D$65,INDIRECT(\"a\" & (VLOOKUP(Rebalance!$D$65,$F$2:$G$48,2,FALSE)+ROW()-2)),\"\")","v":{"$error":"#N/A"}},{"$f":"IF(INDIRECT(\"c\" & (VLOOKUP(Rebalance!$D$66,$F$2:$G$48,2,FALSE)+ROW()-2))=Rebalance!$D$66,INDIRECT(\"a\" & (VLOOKUP(Rebalance!$D$66,$F$2:$G$48,2,FALSE)+ROW()-2)),\"\")","v":{"$error":"#N/A"}}]
[null,null,null,{"$f":"ROW()","v":654},null,null,{"$f":"VLOOKUP(F654,$C$2:$D$599,2,FALSE)","v":{"$error":"#N/A"}},{"$f":"IF(INDIRECT(\"c\" & (VLOOKUP(Rebalance!$D$26,$F$2:$G$48,2,FALSE)+ROW()-2))=Rebalance!$D$26,INDIRECT(\"a\" & (VLOOKUP(Rebalance!$D$26,$F$2:$G$48,2,FALSE)+ROW()-2)),\"\")","v":{"$error":"#N/A"}},{"$f":"IF(INDIRECT(\"c\" & (VLOOKUP(Rebalance!$D$27,$F$2:$G$48,2,FALSE)+ROW()-2))=Rebalance!$D$27,INDIRECT(\"a\" & (VLOOKUP(Rebalance!$D$27,$F$2:$G$48,2,FALSE)+ROW()-2)),\"\")","v":{"$error":"#N/A"}},{"$f":"IF(INDIRECT(\"c\" & (VLOOKUP(Rebalance!$D$28,$F$2:$G$48,2,FALSE)+ROW()-2))=Rebalance!$D$28,INDIRECT(\"a\" & (VLOOKUP(Rebalance!$D$28,$F$2:$G$48,2,FALSE)+ROW()-2)),\"\")","v":{"$error":"#N/A"}},{"$f":"IF(INDIRECT(\"c\" & (VLOOKUP(Rebalance!$D$29,$F$2:$G$48,2,FALSE)+ROW()-2))=Rebalance!$D$29,INDIRECT(\"a\" & (VLOOKUP(Rebalance!$D$29,$F$2:$G$48,2,FALSE)+ROW()-2)),\"\")","v":{"$error":"#N/A"}},{"$f":"IF(INDIRECT(\"c\" & (VLOOKUP(Rebalance!$D$30,$F$2:$G$48,2,FALSE)+ROW()-2))=Rebalance!$D$30,INDIRECT(\"a\" & (VLOOKUP(Rebalance!$D$30,$F$2:$G$48,2,FALSE)+ROW()-2)),\"\")","v":{"$error":"#N/A"}},{"$f":"IF(INDIRECT(\"c\" & (VLOOKUP(Rebalance!$D$31,$F$2:$G$48,2,FALSE)+ROW()-2))=Rebalance!$D$31,INDIRECT(\"a\" & (VLOOKUP(Rebalance!$D$31,$F$2:$G$48,2,FALSE)+ROW()-2)),\"\")","v":{"$error":"#N/A"}},{"$f":"IF(INDIRECT(\"c\" & (VLOOKUP(Rebalance!$D$32,$F$2:$G$48,2,FALSE)+ROW()-2))=Rebalance!$D$32,INDIRECT(\"a\" & (VLOOKUP(Rebalance!$D$32,$F$2:$G$48,2,FALSE)+ROW()-2)),\"\")","v":{"$error":"#N/A"}},{"$f":"IF(INDIRECT(\"c\" & (VLOOKUP(Rebalance!$D$33,$F$2:$G$48,2,FALSE)+ROW()-2))=Rebalance!$D$33,INDIRECT(\"a\" & (VLOOKUP(Rebalance!$D$33,$F$2:$G$48,2,FALSE)+ROW()-2)),\"\")","v":{"$error":"#N/A"}},{"$f":"IF(INDIRECT(\"c\" & (VLOOKUP(Rebalance!$D$34,$F$2:$G$48,2,FALSE)+ROW()-2))=Rebalance!$D$34,INDIRECT(\"a\" & (VLOOKUP(Rebalance!$D$34,$F$2:$G$48,2,FALSE)+ROW()-2)),\"\")","v":{"$error":"#N/A"}},{"$f":"IF(INDIRECT(\"c\" & (VLOOKUP(Rebalance!$D$35,$F$2:$G$48,2,FALSE)+ROW()-2))=Rebalance!$D$35,INDIRECT(\"a\" & (VLOOKUP(Rebalance!$D$35,$F$2:$G$48,2,FALSE)+ROW()-2)),\"\")","v":{"$error":"#N/A"}},{"$f":"IF(INDIRECT(\"c\" & (VLOOKUP(Rebalance!$D$36,$F$2:$G$48,2,FALSE)+ROW()-2))=Rebalance!$D$36,INDIRECT(\"a\" & (VLOOKUP(Rebalance!$D$36,$F$2:$G$48,2,FALSE)+ROW()-2)),\"\")","v":{"$error":"#N/A"}},{"$f":"IF(INDIRECT(\"c\" & (VLOOKUP(Rebalance!$D$37,$F$2:$G$48,2,FALSE)+ROW()-2))=Rebalance!$D$37,INDIRECT(\"a\" & (VLOOKUP(Rebalance!$D$37,$F$2:$G$48,2,FALSE)+ROW()-2)),\"\")","v":{"$error":"#N/A"}},{"$f":"IF(INDIRECT(\"c\" & (VLOOKUP(Rebalance!$D$38,$F$2:$G$48,2,FALSE)+ROW()-2))=Rebalance!$D$38,INDIRECT(\"a\" & (VLOOKUP(Rebalance!$D$38,$F$2:$G$48,2,FALSE)+ROW()-2)),\"\")","v":{"$error":"#N/A"}},{"$f":"IF(INDIRECT(\"c\" & (VLOOKUP(Rebalance!$D$39,$F$2:$G$48,2,FALSE)+ROW()-2))=Rebalance!$D$39,INDIRECT(\"a\" & (VLOOKUP(Rebalance!$D$39,$F$2:$G$48,2,FALSE)+ROW()-2)),\"\")","v":{"$error":"#N/A"}},{"$f":"IF(INDIRECT(\"c\" & (VLOOKUP(Rebalance!$D$40,$F$2:$G$48,2,FALSE)+ROW()-2))=Rebalance!$D$40,INDIRECT(\"a\" & (VLOOKUP(Rebalance!$D$40,$F$2:$G$48,2,FALSE)+ROW()-2)),\"\")","v":{"$error":"#N/A"}},{"$f":"IF(INDIRECT(\"c\" & (VLOOKUP(Rebalance!$D$52,$F$2:$G$48,2,FALSE)+ROW()-2))=Rebalance!$D$52,INDIRECT(\"a\" & (VLOOKUP(Rebalance!$D$52,$F$2:$G$48,2,FALSE)+ROW()-2)),\"\")","v":{"$error":"#N/A"}},{"$f":"IF(INDIRECT(\"c\" & (VLOOKUP(Rebalance!$D$53,$F$2:$G$48,2,FALSE)+ROW()-2))=Rebalance!$D$53,INDIRECT(\"a\" & (VLOOKUP(Rebalance!$D$53,$F$2:$G$48,2,FALSE)+ROW()-2)),\"\")","v":{"$error":"#N/A"}},{"$f":"IF(INDIRECT(\"c\" & (VLOOKUP(Rebalance!$D$54,$F$2:$G$48,2,FALSE)+ROW()-2))=Rebalance!$D$54,INDIRECT(\"a\" & (VLOOKUP(Rebalance!$D$54,$F$2:$G$48,2,FALSE)+ROW()-2)),\"\")","v":{"$error":"#N/A"}},{"$f":"IF(INDIRECT(\"c\" & (VLOOKUP(Rebalance!$D$55,$F$2:$G$48,2,FALSE)+ROW()-2))=Rebalance!$D$55,INDIRECT(\"a\" & (VLOOKUP(Rebalance!$D$55,$F$2:$G$48,2,FALSE)+ROW()-2)),\"\")","v":{"$error":"#N/A"}},{"$f":"IF(INDIRECT(\"c\" & (VLOOKUP(Rebalance!$D$56,$F$2:$G$48,2,FALSE)+ROW()-2))=Rebalance!$D$56,INDIRECT(\"a\" & (VLOOKUP(Rebalance!$D$56,$F$2:$G$48,2,FALSE)+ROW()-2)),\"\")","v":{"$error":"#N/A"}},{"$f":"IF(INDIRECT(\"c\" & (VLOOKUP(Rebalance!$D$57,$F$2:$G$48,2,FALSE)+ROW()-2))=Rebalance!$D$57,INDIRECT(\"a\" & (VLOOKUP(Rebalance!$D$57,$F$2:$G$48,2,FALSE)+ROW()-2)),\"\")","v":{"$error":"#N/A"}},{"$f":"IF(INDIRECT(\"c\" & (VLOOKUP(Rebalance!$D$58,$F$2:$G$48,2,FALSE)+ROW()-2))=Rebalance!$D$58,INDIRECT(\"a\" & (VLOOKUP(Rebalance!$D$58,$F$2:$G$48,2,FALSE)+ROW()-2)),\"\")","v":{"$error":"#N/A"}},{"$f":"IF(INDIRECT(\"c\" & (VLOOKUP(Rebalance!$D$59,$F$2:$G$48,2,FALSE)+ROW()-2))=Rebalance!$D$59,INDIRECT(\"a\" & (VLOOKUP(Rebalance!$D$59,$F$2:$G$48,2,FALSE)+ROW()-2)),\"\")","v":{"$error":"#N/A"}},{"$f":"IF(INDIRECT(\"c\" & (VLOOKUP(Rebalance!$D$60,$F$2:$G$48,2,FALSE)+ROW()-2))=Rebalance!$D$60,INDIRECT(\"a\" & (VLOOKUP(Rebalance!$D$60,$F$2:$G$48,2,FALSE)+ROW()-2)),\"\")","v":{"$error":"#N/A"}},{"$f":"IF(INDIRECT(\"c\" & (VLOOKUP(Rebalance!$D$61,$F$2:$G$48,2,FALSE)+ROW()-2))=Rebalance!$D$61,INDIRECT(\"a\" & (VLOOKUP(Rebalance!$D$61,$F$2:$G$48,2,FALSE)+ROW()-2)),\"\")","v":{"$error":"#N/A"}},{"$f":"IF(INDIRECT(\"c\" & (VLOOKUP(Rebalance!$D$62,$F$2:$G$48,2,FALSE)+ROW()-2))=Rebalance!$D$62,INDIRECT(\"a\" & (VLOOKUP(Rebalance!$D$62,$F$2:$G$48,2,FALSE)+ROW()-2)),\"\")","v":{"$error":"#N/A"}},{"$f":"IF(INDIRECT(\"c\" & (VLOOKUP(Rebalance!$D$63,$F$2:$G$48,2,FALSE)+ROW()-2))=Rebalance!$D$63,INDIRECT(\"a\" & (VLOOKUP(Rebalance!$D$63,$F$2:$G$48,2,FALSE)+ROW()-2)),\"\")","v":{"$error":"#N/A"}},{"$f":"IF(INDIRECT(\"c\" & (VLOOKUP(Rebalance!$D$64,$F$2:$G$48,2,FALSE)+ROW()-2))=Rebalance!$D$64,INDIRECT(\"a\" & (VLOOKUP(Rebalance!$D$64,$F$2:$G$48,2,FALSE)+ROW()-2)),\"\")","v":{"$error":"#N/A"}},{"$f":"IF(INDIRECT(\"c\" & (VLOOKUP(Rebalance!$D$65,$F$2:$G$48,2,FALSE)+ROW()-2))=Rebalance!$D$65,INDIRECT(\"a\" & (VLOOKUP(Rebalance!$D$65,$F$2:$G$48,2,FALSE)+ROW()-2)),\"\")","v":{"$error":"#N/A"}},{"$f":"IF(INDIRECT(\"c\" & (VLOOKUP(Rebalance!$D$66,$F$2:$G$48,2,FALSE)+ROW()-2))=Rebalance!$D$66,INDIRECT(\"a\" & (VLOOKUP(Rebalance!$D$66,$F$2:$G$48,2,FALSE)+ROW()-2)),\"\")","v":{"$error":"#N/A"}}]
[null,null,null,{"$f":"ROW()","v":655},null,null,{"$f":"VLOOKUP(F655,$C$2:$D$599,2,FALSE)","v":{"$error":"#N/A"}},{"$f":"IF(INDIRECT(\"c\" & (VLOOKUP(Rebalance!$D$26,$F$2:$G$48,2,FALSE)+ROW()-2))=Rebalance!$D$26,INDIRECT(\"a\" & (VLOOKUP(Rebalance!$D$26,$F$2:$G$48,2,FALSE)+ROW()-2)),\"\")","v":{"$error":"#N/A"}},{"$f":"IF(INDIRECT(\"c\" & (VLOOKUP(Rebalance!$D$27,$F$2:$G$48,2,FALSE)+ROW()-2))=Rebalance!$D$27,INDIRECT(\"a\" & (VLOOKUP(Rebalance!$D$27,$F$2:$G$48,2,FALSE)+ROW()-2)),\"\")","v":{"$error":"#N/A"}},{"$f":"IF(INDIRECT(\"c\" & (VLOOKUP(Rebalance!$D$28,$F$2:$G$48,2,FALSE)+ROW()-2))=Rebalance!$D$28,INDIRECT(\"a\" & (VLOOKUP(Rebalance!$D$28,$F$2:$G$48,2,FALSE)+ROW()-2)),\"\")","v":{"$error":"#N/A"}},{"$f":"IF(INDIRECT(\"c\" & (VLOOKUP(Rebalance!$D$29,$F$2:$G$48,2,FALSE)+ROW()-2))=Rebalance!$D$29,INDIRECT(\"a\" & (VLOOKUP(Rebalance!$D$29,$F$2:$G$48,2,FALSE)+ROW()-2)),\"\")","v":{"$error":"#N/A"}},{"$f":"IF(INDIRECT(\"c\" & (VLOOKUP(Rebalance!$D$30,$F$2:$G$48,2,FALSE)+ROW()-2))=Rebalance!$D$30,INDIRECT(\"a\" & (VLOOKUP(Rebalance!$D$30,$F$2:$G$48,2,FALSE)+ROW()-2)),\"\")","v":{"$error":"#N/A"}},{"$f":"IF(INDIRECT(\"c\" & (VLOOKUP(Rebalance!$D$31,$F$2:$G$48,2,FALSE)+ROW()-2))=Rebalance!$D$31,INDIRECT(\"a\" & (VLOOKUP(Rebalance!$D$31,$F$2:$G$48,2,FALSE)+ROW()-2)),\"\")","v":{"$error":"#N/A"}},{"$f":"IF(INDIRECT(\"c\" & (VLOOKUP(Rebalance!$D$32,$F$2:$G$48,2,FALSE)+ROW()-2))=Rebalance!$D$32,INDIRECT(\"a\" & (VLOOKUP(Rebalance!$D$32,$F$2:$G$48,2,FALSE)+ROW()-2)),\"\")","v":{"$error":"#N/A"}},{"$f":"IF(INDIRECT(\"c\" & (VLOOKUP(Rebalance!$D$33,$F$2:$G$48,2,FALSE)+ROW()-2))=Rebalance!$D$33,INDIRECT(\"a\" & (VLOOKUP(Rebalance!$D$33,$F$2:$G$48,2,FALSE)+ROW()-2)),\"\")","v":{"$error":"#N/A"}},{"$f":"IF(INDIRECT(\"c\" & (VLOOKUP(Rebalance!$D$34,$F$2:$G$48,2,FALSE)+ROW()-2))=Rebalance!$D$34,INDIRECT(\"a\" & (VLOOKUP(Rebalance!$D$34,$F$2:$G$48,2,FALSE)+ROW()-2)),\"\")","v":{"$error":"#N/A"}},{"$f":"IF(INDIRECT(\"c\" & (VLOOKUP(Rebalance!$D$35,$F$2:$G$48,2,FALSE)+ROW()-2))=Rebalance!$D$35,INDIRECT(\"a\" & (VLOOKUP(Rebalance!$D$35,$F$2:$G$48,2,FALSE)+ROW()-2)),\"\")","v":{"$error":"#N/A"}},{"$f":"IF(INDIRECT(\"c\" & (VLOOKUP(Rebalance!$D$36,$F$2:$G$48,2,FALSE)+ROW()-2))=Rebalance!$D$36,INDIRECT(\"a\" & (VLOOKUP(Rebalance!$D$36,$F$2:$G$48,2,FALSE)+ROW()-2)),\"\")","v":{"$error":"#N/A"}},{"$f":"IF(INDIRECT(\"c\" & (VLOOKUP(Rebalance!$D$37,$F$2:$G$48,2,FALSE)+ROW()-2))=Rebalance!$D$37,INDIRECT(\"a\" & (VLOOKUP(Rebalance!$D$37,$F$2:$G$48,2,FALSE)+ROW()-2)),\"\")","v":{"$error":"#N/A"}},{"$f":"IF(INDIRECT(\"c\" & (VLOOKUP(Rebalance!$D$38,$F$2:$G$48,2,FALSE)+ROW()-2))=Rebalance!$D$38,INDIRECT(\"a\" & (VLOOKUP(Rebalance!$D$38,$F$2:$G$48,2,FALSE)+ROW()-2)),\"\")","v":{"$error":"#N/A"}},{"$f":"IF(INDIRECT(\"c\" & (VLOOKUP(Rebalance!$D$39,$F$2:$G$48,2,FALSE)+ROW()-2))=Rebalance!$D$39,INDIRECT(\"a\" & (VLOOKUP(Rebalance!$D$39,$F$2:$G$48,2,FALSE)+ROW()-2)),\"\")","v":{"$error":"#N/A"}},{"$f":"IF(INDIRECT(\"c\" & (VLOOKUP(Rebalance!$D$40,$F$2:$G$48,2,FALSE)+ROW()-2))=Rebalance!$D$40,INDIRECT(\"a\" & (VLOOKUP(Rebalance!$D$40,$F$2:$G$48,2,FALSE)+ROW()-2)),\"\")","v":{"$error":"#N/A"}},{"$f":"IF(INDIRECT(\"c\" & (VLOOKUP(Rebalance!$D$52,$F$2:$G$48,2,FALSE)+ROW()-2))=Rebalance!$D$52,INDIRECT(\"a\" & (VLOOKUP(Rebalance!$D$52,$F$2:$G$48,2,FALSE)+ROW()-2)),\"\")","v":{"$error":"#N/A"}},{"$f":"IF(INDIRECT(\"c\" & (VLOOKUP(Rebalance!$D$53,$F$2:$G$48,2,FALSE)+ROW()-2))=Rebalance!$D$53,INDIRECT(\"a\" & (VLOOKUP(Rebalance!$D$53,$F$2:$G$48,2,FALSE)+ROW()-2)),\"\")","v":{"$error":"#N/A"}},{"$f":"IF(INDIRECT(\"c\" & (VLOOKUP(Rebalance!$D$54,$F$2:$G$48,2,FALSE)+ROW()-2))=Rebalance!$D$54,INDIRECT(\"a\" & (VLOOKUP(Rebalance!$D$54,$F$2:$G$48,2,FALSE)+ROW()-2)),\"\")","v":{"$error":"#N/A"}},{"$f":"IF(INDIRECT(\"c\" & (VLOOKUP(Rebalance!$D$55,$F$2:$G$48,2,FALSE)+ROW()-2))=Rebalance!$D$55,INDIRECT(\"a\" & (VLOOKUP(Rebalance!$D$55,$F$2:$G$48,2,FALSE)+ROW()-2)),\"\")","v":{"$error":"#N/A"}},{"$f":"IF(INDIRECT(\"c\" & (VLOOKUP(Rebalance!$D$56,$F$2:$G$48,2,FALSE)+ROW()-2))=Rebalance!$D$56,INDIRECT(\"a\" & (VLOOKUP(Rebalance!$D$56,$F$2:$G$48,2,FALSE)+ROW()-2)),\"\")","v":{"$error":"#N/A"}},{"$f":"IF(INDIRECT(\"c\" & (VLOOKUP(Rebalance!$D$57,$F$2:$G$48,2,FALSE)+ROW()-2))=Rebalance!$D$57,INDIRECT(\"a\" & (VLOOKUP(Rebalance!$D$57,$F$2:$G$48,2,FALSE)+ROW()-2)),\"\")","v":{"$error":"#N/A"}},{"$f":"IF(INDIRECT(\"c\" & (VLOOKUP(Rebalance!$D$58,$F$2:$G$48,2,FALSE)+ROW()-2))=Rebalance!$D$58,INDIRECT(\"a\" & (VLOOKUP(Rebalance!$D$58,$F$2:$G$48,2,FALSE)+ROW()-2)),\"\")","v":{"$error":"#N/A"}},{"$f":"IF(INDIRECT(\"c\" & (VLOOKUP(Rebalance!$D$59,$F$2:$G$48,2,FALSE)+ROW()-2))=Rebalance!$D$59,INDIRECT(\"a\" & (VLOOKUP(Rebalance!$D$59,$F$2:$G$48,2,FALSE)+ROW()-2)),\"\")","v":{"$error":"#N/A"}},{"$f":"IF(INDIRECT(\"c\" & (VLOOKUP(Rebalance!$D$60,$F$2:$G$48,2,FALSE)+ROW()-2))=Rebalance!$D$60,INDIRECT(\"a\" & (VLOOKUP(Rebalance!$D$60,$F$2:$G$48,2,FALSE)+ROW()-2)),\"\")","v":{"$error":"#N/A"}},{"$f":"IF(INDIRECT(\"c\" & (VLOOKUP(Rebalance!$D$61,$F$2:$G$48,2,FALSE)+ROW()-2))=Rebalance!$D$61,INDIRECT(\"a\" & (VLOOKUP(Rebalance!$D$61,$F$2:$G$48,2,FALSE)+ROW()-2)),\"\")","v":{"$error":"#N/A"}},{"$f":"IF(INDIRECT(\"c\" & (VLOOKUP(Rebalance!$D$62,$F$2:$G$48,2,FALSE)+ROW()-2))=Rebalance!$D$62,INDIRECT(\"a\" & (VLOOKUP(Rebalance!$D$62,$F$2:$G$48,2,FALSE)+ROW()-2)),\"\")","v":{"$error":"#N/A"}},{"$f":"IF(INDIRECT(\"c\" & (VLOOKUP(Rebalance!$D$63,$F$2:$G$48,2,FALSE)+ROW()-2))=Rebalance!$D$63,INDIRECT(\"a\" & (VLOOKUP(Rebalance!$D$63,$F$2:$G$48,2,FALSE)+ROW()-2)),\"\")","v":{"$error":"#N/A"}},{"$f":"IF(INDIRECT(\"c\" & (VLOOKUP(Rebalance!$D$64,$F$2:$G$48,2,FALSE)+ROW()-2))=Rebalance!$D$64,INDIRECT(\"a\" & (VLOOKUP(Rebalance!$D$64,$F$2:$G$48,2,FALSE)+ROW()-2)),\"\")","v":{"$error":"#N/A"}},{"$f":"IF(INDIRECT(\"c\" & (VLOOKUP(Rebalance!$D$65,$F$2:$G$48,2,FALSE)+ROW()-2))=Rebalance!$D$65,INDIRECT(\"a\" & (VLOOKUP(Rebalance!$D$65,$F$2:$G$48,2,FALSE)+ROW()-2)),\"\")","v":{"$error":"#N/A"}},{"$f":"IF(INDIRECT(\"c\" & (VLOOKUP(Rebalance!$D$66,$F$2:$G$48,2,FALSE)+ROW()-2))=Rebalance!$D$66,INDIRECT(\"a\" & (VLOOKUP(Rebalance!$D$66,$F$2:$G$48,2,FALSE)+ROW()-2)),\"\")","v":{"$error":"#N/A"}}]
[null,null,null,{"$f":"ROW()","v":656},null,null,{"$f":"VLOOKUP(F656,$C$2:$D$599,2,FALSE)","v":{"$error":"#N/A"}},{"$f":"IF(INDIRECT(\"c\" & (VLOOKUP(Rebalance!$D$26,$F$2:$G$48,2,FALSE)+ROW()-2))=Rebalance!$D$26,INDIRECT(\"a\" & (VLOOKUP(Rebalance!$D$26,$F$2:$G$48,2,FALSE)+ROW()-2)),\"\")","v":{"$error":"#N/A"}},{"$f":"IF(INDIRECT(\"c\" & (VLOOKUP(Rebalance!$D$27,$F$2:$G$48,2,FALSE)+ROW()-2))=Rebalance!$D$27,INDIRECT(\"a\" & (VLOOKUP(Rebalance!$D$27,$F$2:$G$48,2,FALSE)+ROW()-2)),\"\")","v":{"$error":"#N/A"}},{"$f":"IF(INDIRECT(\"c\" & (VLOOKUP(Rebalance!$D$28,$F$2:$G$48,2,FALSE)+ROW()-2))=Rebalance!$D$28,INDIRECT(\"a\" & (VLOOKUP(Rebalance!$D$28,$F$2:$G$48,2,FALSE)+ROW()-2)),\"\")","v":{"$error":"#N/A"}},{"$f":"IF(INDIRECT(\"c\" & (VLOOKUP(Rebalance!$D$29,$F$2:$G$48,2,FALSE)+ROW()-2))=Rebalance!$D$29,INDIRECT(\"a\" & (VLOOKUP(Rebalance!$D$29,$F$2:$G$48,2,FALSE)+ROW()-2)),\"\")","v":{"$error":"#N/A"}},{"$f":"IF(INDIRECT(\"c\" & (VLOOKUP(Rebalance!$D$30,$F$2:$G$48,2,FALSE)+ROW()-2))=Rebalance!$D$30,INDIRECT(\"a\" & (VLOOKUP(Rebalance!$D$30,$F$2:$G$48,2,FALSE)+ROW()-2)),\"\")","v":{"$error":"#N/A"}},{"$f":"IF(INDIRECT(\"c\" & (VLOOKUP(Rebalance!$D$31,$F$2:$G$48,2,FALSE)+ROW()-2))=Rebalance!$D$31,INDIRECT(\"a\" & (VLOOKUP(Rebalance!$D$31,$F$2:$G$48,2,FALSE)+ROW()-2)),\"\")","v":{"$error":"#N/A"}},{"$f":"IF(INDIRECT(\"c\" & (VLOOKUP(Rebalance!$D$32,$F$2:$G$48,2,FALSE)+ROW()-2))=Rebalance!$D$32,INDIRECT(\"a\" & (VLOOKUP(Rebalance!$D$32,$F$2:$G$48,2,FALSE)+ROW()-2)),\"\")","v":{"$error":"#N/A"}},{"$f":"IF(INDIRECT(\"c\" & (VLOOKUP(Rebalance!$D$33,$F$2:$G$48,2,FALSE)+ROW()-2))=Rebalance!$D$33,INDIRECT(\"a\" & (VLOOKUP(Rebalance!$D$33,$F$2:$G$48,2,FALSE)+ROW()-2)),\"\")","v":{"$error":"#N/A"}},{"$f":"IF(INDIRECT(\"c\" & (VLOOKUP(Rebalance!$D$34,$F$2:$G$48,2,FALSE)+ROW()-2))=Rebalance!$D$34,INDIRECT(\"a\" & (VLOOKUP(Rebalance!$D$34,$F$2:$G$48,2,FALSE)+ROW()-2)),\"\")","v":{"$error":"#N/A"}},{"$f":"IF(INDIRECT(\"c\" & (VLOOKUP(Rebalance!$D$35,$F$2:$G$48,2,FALSE)+ROW()-2))=Rebalance!$D$35,INDIRECT(\"a\" & (VLOOKUP(Rebalance!$D$35,$F$2:$G$48,2,FALSE)+ROW()-2)),\"\")","v":{"$error":"#N/A"}},{"$f":"IF(INDIRECT(\"c\" & (VLOOKUP(Rebalance!$D$36,$F$2:$G$48,2,FALSE)+ROW()-2))=Rebalance!$D$36,INDIRECT(\"a\" & (VLOOKUP(Rebalance!$D$36,$F$2:$G$48,2,FALSE)+ROW()-2)),\"\")","v":{"$error":"#N/A"}},{"$f":"IF(INDIRECT(\"c\" & (VLOOKUP(Rebalance!$D$37,$F$2:$G$48,2,FALSE)+ROW()-2))=Rebalance!$D$37,INDIRECT(\"a\" & (VLOOKUP(Rebalance!$D$37,$F$2:$G$48,2,FALSE)+ROW()-2)),\"\")","v":{"$error":"#N/A"}},{"$f":"IF(INDIRECT(\"c\" & (VLOOKUP(Rebalance!$D$38,$F$2:$G$48,2,FALSE)+ROW()-2))=Rebalance!$D$38,INDIRECT(\"a\" & (VLOOKUP(Rebalance!$D$38,$F$2:$G$48,2,FALSE)+ROW()-2)),\"\")","v":{"$error":"#N/A"}},{"$f":"IF(INDIRECT(\"c\" & (VLOOKUP(Rebalance!$D$39,$F$2:$G$48,2,FALSE)+ROW()-2))=Rebalance!$D$39,INDIRECT(\"a\" & (VLOOKUP(Rebalance!$D$39,$F$2:$G$48,2,FALSE)+ROW()-2)),\"\")","v":{"$error":"#N/A"}},{"$f":"IF(INDIRECT(\"c\" & (VLOOKUP(Rebalance!$D$40,$F$2:$G$48,2,FALSE)+ROW()-2))=Rebalance!$D$40,INDIRECT(\"a\" & (VLOOKUP(Rebalance!$D$40,$F$2:$G$48,2,FALSE)+ROW()-2)),\"\")","v":{"$error":"#N/A"}},{"$f":"IF(INDIRECT(\"c\" & (VLOOKUP(Rebalance!$D$52,$F$2:$G$48,2,FALSE)+ROW()-2))=Rebalance!$D$52,INDIRECT(\"a\" & (VLOOKUP(Rebalance!$D$52,$F$2:$G$48,2,FALSE)+ROW()-2)),\"\")","v":{"$error":"#N/A"}},{"$f":"IF(INDIRECT(\"c\" & (VLOOKUP(Rebalance!$D$53,$F$2:$G$48,2,FALSE)+ROW()-2))=Rebalance!$D$53,INDIRECT(\"a\" & (VLOOKUP(Rebalance!$D$53,$F$2:$G$48,2,FALSE)+ROW()-2)),\"\")","v":{"$error":"#N/A"}},{"$f":"IF(INDIRECT(\"c\" & (VLOOKUP(Rebalance!$D$54,$F$2:$G$48,2,FALSE)+ROW()-2))=Rebalance!$D$54,INDIRECT(\"a\" & (VLOOKUP(Rebalance!$D$54,$F$2:$G$48,2,FALSE)+ROW()-2)),\"\")","v":{"$error":"#N/A"}},{"$f":"IF(INDIRECT(\"c\" & (VLOOKUP(Rebalance!$D$55,$F$2:$G$48,2,FALSE)+ROW()-2))=Rebalance!$D$55,INDIRECT(\"a\" & (VLOOKUP(Rebalance!$D$55,$F$2:$G$48,2,FALSE)+ROW()-2)),\"\")","v":{"$error":"#N/A"}},{"$f":"IF(INDIRECT(\"c\" & (VLOOKUP(Rebalance!$D$56,$F$2:$G$48,2,FALSE)+ROW()-2))=Rebalance!$D$56,INDIRECT(\"a\" & (VLOOKUP(Rebalance!$D$56,$F$2:$G$48,2,FALSE)+ROW()-2)),\"\")","v":{"$error":"#N/A"}},{"$f":"IF(INDIRECT(\"c\" & (VLOOKUP(Rebalance!$D$57,$F$2:$G$48,2,FALSE)+ROW()-2))=Rebalance!$D$57,INDIRECT(\"a\" & (VLOOKUP(Rebalance!$D$57,$F$2:$G$48,2,FALSE)+ROW()-2)),\"\")","v":{"$error":"#N/A"}},{"$f":"IF(INDIRECT(\"c\" & (VLOOKUP(Rebalance!$D$58,$F$2:$G$48,2,FALSE)+ROW()-2))=Rebalance!$D$58,INDIRECT(\"a\" & (VLOOKUP(Rebalance!$D$58,$F$2:$G$48,2,FALSE)+ROW()-2)),\"\")","v":{"$error":"#N/A"}},{"$f":"IF(INDIRECT(\"c\" & (VLOOKUP(Rebalance!$D$59,$F$2:$G$48,2,FALSE)+ROW()-2))=Rebalance!$D$59,INDIRECT(\"a\" & (VLOOKUP(Rebalance!$D$59,$F$2:$G$48,2,FALSE)+ROW()-2)),\"\")","v":{"$error":"#N/A"}},{"$f":"IF(INDIRECT(\"c\" & (VLOOKUP(Rebalance!$D$60,$F$2:$G$48,2,FALSE)+ROW()-2))=Rebalance!$D$60,INDIRECT(\"a\" & (VLOOKUP(Rebalance!$D$60,$F$2:$G$48,2,FALSE)+ROW()-2)),\"\")","v":{"$error":"#N/A"}},{"$f":"IF(INDIRECT(\"c\" & (VLOOKUP(Rebalance!$D$61,$F$2:$G$48,2,FALSE)+ROW()-2))=Rebalance!$D$61,INDIRECT(\"a\" & (VLOOKUP(Rebalance!$D$61,$F$2:$G$48,2,FALSE)+ROW()-2)),\"\")","v":{"$error":"#N/A"}},{"$f":"IF(INDIRECT(\"c\" & (VLOOKUP(Rebalance!$D$62,$F$2:$G$48,2,FALSE)+ROW()-2))=Rebalance!$D$62,INDIRECT(\"a\" & (VLOOKUP(Rebalance!$D$62,$F$2:$G$48,2,FALSE)+ROW()-2)),\"\")","v":{"$error":"#N/A"}},{"$f":"IF(INDIRECT(\"c\" & (VLOOKUP(Rebalance!$D$63,$F$2:$G$48,2,FALSE)+ROW()-2))=Rebalance!$D$63,INDIRECT(\"a\" & (VLOOKUP(Rebalance!$D$63,$F$2:$G$48,2,FALSE)+ROW()-2)),\"\")","v":{"$error":"#N/A"}},{"$f":"IF(INDIRECT(\"c\" & (VLOOKUP(Rebalance!$D$64,$F$2:$G$48,2,FALSE)+ROW()-2))=Rebalance!$D$64,INDIRECT(\"a\" & (VLOOKUP(Rebalance!$D$64,$F$2:$G$48,2,FALSE)+ROW()-2)),\"\")","v":{"$error":"#N/A"}},{"$f":"IF(INDIRECT(\"c\" & (VLOOKUP(Rebalance!$D$65,$F$2:$G$48,2,FALSE)+ROW()-2))=Rebalance!$D$65,INDIRECT(\"a\" & (VLOOKUP(Rebalance!$D$65,$F$2:$G$48,2,FALSE)+ROW()-2)),\"\")","v":{"$error":"#N/A"}},{"$f":"IF(INDIRECT(\"c\" & (VLOOKUP(Rebalance!$D$66,$F$2:$G$48,2,FALSE)+ROW()-2))=Rebalance!$D$66,INDIRECT(\"a\" & (VLOOKUP(Rebalance!$D$66,$F$2:$G$48,2,FALSE)+ROW()-2)),\"\")","v":{"$error":"#N/A"}}]
[null,null,null,{"$f":"ROW()","v":657},null,null,{"$f":"VLOOKUP(F657,$C$2:$D$599,2,FALSE)","v":{"$error":"#N/A"}},{"$f":"IF(INDIRECT(\"c\" & (VLOOKUP(Rebalance!$D$26,$F$2:$G$48,2,FALSE)+ROW()-2))=Rebalance!$D$26,INDIRECT(\"a\" & (VLOOKUP(Rebalance!$D$26,$F$2:$G$48,2,FALSE)+ROW()-2)),\"\")","v":{"$error":"#N/A"}},{"$f":"IF(INDIRECT(\"c\" & (VLOOKUP(Rebalance!$D$27,$F$2:$G$48,2,FALSE)+ROW()-2))=Rebalance!$D$27,INDIRECT(\"a\" & (VLOOKUP(Rebalance!$D$27,$F$2:$G$48,2,FALSE)+ROW()-2)),\"\")","v":{"$error":"#N/A"}},{"$f":"IF(INDIRECT(\"c\" & (VLOOKUP(Rebalance!$D$28,$F$2:$G$48,2,FALSE)+ROW()-2))=Rebalance!$D$28,INDIRECT(\"a\" & (VLOOKUP(Rebalance!$D$28,$F$2:$G$48,2,FALSE)+ROW()-2)),\"\")","v":{"$error":"#N/A"}},{"$f":"IF(INDIRECT(\"c\" & (VLOOKUP(Rebalance!$D$29,$F$2:$G$48,2,FALSE)+ROW()-2))=Rebalance!$D$29,INDIRECT(\"a\" & (VLOOKUP(Rebalance!$D$29,$F$2:$G$48,2,FALSE)+ROW()-2)),\"\")","v":{"$error":"#N/A"}},{"$f":"IF(INDIRECT(\"c\" & (VLOOKUP(Rebalance!$D$30,$F$2:$G$48,2,FALSE)+ROW()-2))=Rebalance!$D$30,INDIRECT(\"a\" & (VLOOKUP(Rebalance!$D$30,$F$2:$G$48,2,FALSE)+ROW()-2)),\"\")","v":{"$error":"#N/A"}},{"$f":"IF(INDIRECT(\"c\" & (VLOOKUP(Rebalance!$D$31,$F$2:$G$48,2,FALSE)+ROW()-2))=Rebalance!$D$31,INDIRECT(\"a\" & (VLOOKUP(Rebalance!$D$31,$F$2:$G$48,2,FALSE)+ROW()-2)),\"\")","v":{"$error":"#N/A"}},{"$f":"IF(INDIRECT(\"c\" & (VLOOKUP(Rebalance!$D$32,$F$2:$G$48,2,FALSE)+ROW()-2))=Rebalance!$D$32,INDIRECT(\"a\" & (VLOOKUP(Rebalance!$D$32,$F$2:$G$48,2,FALSE)+ROW()-2)),\"\")","v":{"$error":"#N/A"}},{"$f":"IF(INDIRECT(\"c\" & (VLOOKUP(Rebalance!$D$33,$F$2:$G$48,2,FALSE)+ROW()-2))=Rebalance!$D$33,INDIRECT(\"a\" & (VLOOKUP(Rebalance!$D$33,$F$2:$G$48,2,FALSE)+ROW()-2)),\"\")","v":{"$error":"#N/A"}},{"$f":"IF(INDIRECT(\"c\" & (VLOOKUP(Rebalance!$D$34,$F$2:$G$48,2,FALSE)+ROW()-2))=Rebalance!$D$34,INDIRECT(\"a\" & (VLOOKUP(Rebalance!$D$34,$F$2:$G$48,2,FALSE)+ROW()-2)),\"\")","v":{"$error":"#N/A"}},{"$f":"IF(INDIRECT(\"c\" & (VLOOKUP(Rebalance!$D$35,$F$2:$G$48,2,FALSE)+ROW()-2))=Rebalance!$D$35,INDIRECT(\"a\" & (VLOOKUP(Rebalance!$D$35,$F$2:$G$48,2,FALSE)+ROW()-2)),\"\")","v":{"$error":"#N/A"}},{"$f":"IF(INDIRECT(\"c\" & (VLOOKUP(Rebalance!$D$36,$F$2:$G$48,2,FALSE)+ROW()-2))=Rebalance!$D$36,INDIRECT(\"a\" & (VLOOKUP(Rebalance!$D$36,$F$2:$G$48,2,FALSE)+ROW()-2)),\"\")","v":{"$error":"#N/A"}},{"$f":"IF(INDIRECT(\"c\" & (VLOOKUP(Rebalance!$D$37,$F$2:$G$48,2,FALSE)+ROW()-2))=Rebalance!$D$37,INDIRECT(\"a\" & (VLOOKUP(Rebalance!$D$37,$F$2:$G$48,2,FALSE)+ROW()-2)),\"\")","v":{"$error":"#N/A"}},{"$f":"IF(INDIRECT(\"c\" & (VLOOKUP(Rebalance!$D$38,$F$2:$G$48,2,FALSE)+ROW()-2))=Rebalance!$D$38,INDIRECT(\"a\" & (VLOOKUP(Rebalance!$D$38,$F$2:$G$48,2,FALSE)+ROW()-2)),\"\")","v":{"$error":"#N/A"}},{"$f":"IF(INDIRECT(\"c\" & (VLOOKUP(Rebalance!$D$39,$F$2:$G$48,2,FALSE)+ROW()-2))=Rebalance!$D$39,INDIRECT(\"a\" & (VLOOKUP(Rebalance!$D$39,$F$2:$G$48,2,FALSE)+ROW()-2)),\"\")","v":{"$error":"#N/A"}},{"$f":"IF(INDIRECT(\"c\" & (VLOOKUP(Rebalance!$D$40,$F$2:$G$48,2,FALSE)+ROW()-2))=Rebalance!$D$40,INDIRECT(\"a\" & (VLOOKUP(Rebalance!$D$40,$F$2:$G$48,2,FALSE)+ROW()-2)),\"\")","v":{"$error":"#N/A"}},{"$f":"IF(INDIRECT(\"c\" & (VLOOKUP(Rebalance!$D$52,$F$2:$G$48,2,FALSE)+ROW()-2))=Rebalance!$D$52,INDIRECT(\"a\" & (VLOOKUP(Rebalance!$D$52,$F$2:$G$48,2,FALSE)+ROW()-2)),\"\")","v":{"$error":"#N/A"}},{"$f":"IF(INDIRECT(\"c\" & (VLOOKUP(Rebalance!$D$53,$F$2:$G$48,2,FALSE)+ROW()-2))=Rebalance!$D$53,INDIRECT(\"a\" & (VLOOKUP(Rebalance!$D$53,$F$2:$G$48,2,FALSE)+ROW()-2)),\"\")","v":{"$error":"#N/A"}},{"$f":"IF(INDIRECT(\"c\" & (VLOOKUP(Rebalance!$D$54,$F$2:$G$48,2,FALSE)+ROW()-2))=Rebalance!$D$54,INDIRECT(\"a\" & (VLOOKUP(Rebalance!$D$54,$F$2:$G$48,2,FALSE)+ROW()-2)),\"\")","v":{"$error":"#N/A"}},{"$f":"IF(INDIRECT(\"c\" & (VLOOKUP(Rebalance!$D$55,$F$2:$G$48,2,FALSE)+ROW()-2))=Rebalance!$D$55,INDIRECT(\"a\" & (VLOOKUP(Rebalance!$D$55,$F$2:$G$48,2,FALSE)+ROW()-2)),\"\")","v":{"$error":"#N/A"}},{"$f":"IF(INDIRECT(\"c\" & (VLOOKUP(Rebalance!$D$56,$F$2:$G$48,2,FALSE)+ROW()-2))=Rebalance!$D$56,INDIRECT(\"a\" & (VLOOKUP(Rebalance!$D$56,$F$2:$G$48,2,FALSE)+ROW()-2)),\"\")","v":{"$error":"#N/A"}},{"$f":"IF(INDIRECT(\"c\" & (VLOOKUP(Rebalance!$D$57,$F$2:$G$48,2,FALSE)+ROW()-2))=Rebalance!$D$57,INDIRECT(\"a\" & (VLOOKUP(Rebalance!$D$57,$F$2:$G$48,2,FALSE)+ROW()-2)),\"\")","v":{"$error":"#N/A"}},{"$f":"IF(INDIRECT(\"c\" & (VLOOKUP(Rebalance!$D$58,$F$2:$G$48,2,FALSE)+ROW()-2))=Rebalance!$D$58,INDIRECT(\"a\" & (VLOOKUP(Rebalance!$D$58,$F$2:$G$48,2,FALSE)+ROW()-2)),\"\")","v":{"$error":"#N/A"}},{"$f":"IF(INDIRECT(\"c\" & (VLOOKUP(Rebalance!$D$59,$F$2:$G$48,2,FALSE)+ROW()-2))=Rebalance!$D$59,INDIRECT(\"a\" & (VLOOKUP(Rebalance!$D$59,$F$2:$G$48,2,FALSE)+ROW()-2)),\"\")","v":{"$error":"#N/A"}},{"$f":"IF(INDIRECT(\"c\" & (VLOOKUP(Rebalance!$D$60,$F$2:$G$48,2,FALSE)+ROW()-2))=Rebalance!$D$60,INDIRECT(\"a\" & (VLOOKUP(Rebalance!$D$60,$F$2:$G$48,2,FALSE)+ROW()-2)),\"\")","v":{"$error":"#N/A"}},{"$f":"IF(INDIRECT(\"c\" & (VLOOKUP(Rebalance!$D$61,$F$2:$G$48,2,FALSE)+ROW()-2))=Rebalance!$D$61,INDIRECT(\"a\" & (VLOOKUP(Rebalance!$D$61,$F$2:$G$48,2,FALSE)+ROW()-2)),\"\")","v":{"$error":"#N/A"}},{"$f":"IF(INDIRECT(\"c\" & (VLOOKUP(Rebalance!$D$62,$F$2:$G$48,2,FALSE)+ROW()-2))=Rebalance!$D$62,INDIRECT(\"a\" & (VLOOKUP(Rebalance!$D$62,$F$2:$G$48,2,FALSE)+ROW()-2)),\"\")","v":{"$error":"#N/A"}},{"$f":"IF(INDIRECT(\"c\" & (VLOOKUP(Rebalance!$D$63,$F$2:$G$48,2,FALSE)+ROW()-2))=Rebalance!$D$63,INDIRECT(\"a\" & (VLOOKUP(Rebalance!$D$63,$F$2:$G$48,2,FALSE)+ROW()-2)),\"\")","v":{"$error":"#N/A"}},{"$f":"IF(INDIRECT(\"c\" & (VLOOKUP(Rebalance!$D$64,$F$2:$G$48,2,FALSE)+ROW()-2))=Rebalance!$D$64,INDIRECT(\"a\" & (VLOOKUP(Rebalance!$D$64,$F$2:$G$48,2,FALSE)+ROW()-2)),\"\")","v":{"$error":"#N/A"}},{"$f":"IF(INDIRECT(\"c\" & (VLOOKUP(Rebalance!$D$65,$F$2:$G$48,2,FALSE)+ROW()-2))=Rebalance!$D$65,INDIRECT(\"a\" & (VLOOKUP(Rebalance!$D$65,$F$2:$G$48,2,FALSE)+ROW()-2)),\"\")","v":{"$error":"#N/A"}},{"$f":"IF(INDIRECT(\"c\" & (VLOOKUP(Rebalance!$D$66,$F$2:$G$48,2,FALSE)+ROW()-2))=Rebalance!$D$66,INDIRECT(\"a\" & (VLOOKUP(Rebalance!$D$66,$F$2:$G$48,2,FALSE)+ROW()-2)),\"\")","v":{"$error":"#N/A"}}]
[null,null,null,{"$f":"ROW()","v":658},null,null,{"$f":"VLOOKUP(F658,$C$2:$D$599,2,FALSE)","v":{"$error":"#N/A"}},{"$f":"IF(INDIRECT(\"c\" & (VLOOKUP(Rebalance!$D$26,$F$2:$G$48,2,FALSE)+ROW()-2))=Rebalance!$D$26,INDIRECT(\"a\" & (VLOOKUP(Rebalance!$D$26,$F$2:$G$48,2,FALSE)+ROW()-2)),\"\")","v":{"$error":"#N/A"}},{"$f":"IF(INDIRECT(\"c\" & (VLOOKUP(Rebalance!$D$27,$F$2:$G$48,2,FALSE)+ROW()-2))=Rebalance!$D$27,INDIRECT(\"a\" & (VLOOKUP(Rebalance!$D$27,$F$2:$G$48,2,FALSE)+ROW()-2)),\"\")","v":{"$error":"#N/A"}},{"$f":"IF(INDIRECT(\"c\" & (VLOOKUP(Rebalance!$D$28,$F$2:$G$48,2,FALSE)+ROW()-2))=Rebalance!$D$28,INDIRECT(\"a\" & (VLOOKUP(Rebalance!$D$28,$F$2:$G$48,2,FALSE)+ROW()-2)),\"\")","v":{"$error":"#N/A"}},{"$f":"IF(INDIRECT(\"c\" & (VLOOKUP(Rebalance!$D$29,$F$2:$G$48,2,FALSE)+ROW()-2))=Rebalance!$D$29,INDIRECT(\"a\" & (VLOOKUP(Rebalance!$D$29,$F$2:$G$48,2,FALSE)+ROW()-2)),\"\")","v":{"$error":"#N/A"}},{"$f":"IF(INDIRECT(\"c\" & (VLOOKUP(Rebalance!$D$30,$F$2:$G$48,2,FALSE)+ROW()-2))=Rebalance!$D$30,INDIRECT(\"a\" & (VLOOKUP(Rebalance!$D$30,$F$2:$G$48,2,FALSE)+ROW()-2)),\"\")","v":{"$error":"#N/A"}},{"$f":"IF(INDIRECT(\"c\" & (VLOOKUP(Rebalance!$D$31,$F$2:$G$48,2,FALSE)+ROW()-2))=Rebalance!$D$31,INDIRECT(\"a\" & (VLOOKUP(Rebalance!$D$31,$F$2:$G$48,2,FALSE)+ROW()-2)),\"\")","v":{"$error":"#N/A"}},{"$f":"IF(INDIRECT(\"c\" & (VLOOKUP(Rebalance!$D$32,$F$2:$G$48,2,FALSE)+ROW()-2))=Rebalance!$D$32,INDIRECT(\"a\" & (VLOOKUP(Rebalance!$D$32,$F$2:$G$48,2,FALSE)+ROW()-2)),\"\")","v":{"$error":"#N/A"}},{"$f":"IF(INDIRECT(\"c\" & (VLOOKUP(Rebalance!$D$33,$F$2:$G$48,2,FALSE)+ROW()-2))=Rebalance!$D$33,INDIRECT(\"a\" & (VLOOKUP(Rebalance!$D$33,$F$2:$G$48,2,FALSE)+ROW()-2)),\"\")","v":{"$error":"#N/A"}},{"$f":"IF(INDIRECT(\"c\" & (VLOOKUP(Rebalance!$D$34,$F$2:$G$48,2,FALSE)+ROW()-2))=Rebalance!$D$34,INDIRECT(\"a\" & (VLOOKUP(Rebalance!$D$34,$F$2:$G$48,2,FALSE)+ROW()-2)),\"\")","v":{"$error":"#N/A"}},{"$f":"IF(INDIRECT(\"c\" & (VLOOKUP(Rebalance!$D$35,$F$2:$G$48,2,FALSE)+ROW()-2))=Rebalance!$D$35,INDIRECT(\"a\" & (VLOOKUP(Rebalance!$D$35,$F$2:$G$48,2,FALSE)+ROW()-2)),\"\")","v":{"$error":"#N/A"}},{"$f":"IF(INDIRECT(\"c\" & (VLOOKUP(Rebalance!$D$36,$F$2:$G$48,2,FALSE)+ROW()-2))=Rebalance!$D$36,INDIRECT(\"a\" & (VLOOKUP(Rebalance!$D$36,$F$2:$G$48,2,FALSE)+ROW()-2)),\"\")","v":{"$error":"#N/A"}},{"$f":"IF(INDIRECT(\"c\" & (VLOOKUP(Rebalance!$D$37,$F$2:$G$48,2,FALSE)+ROW()-2))=Rebalance!$D$37,INDIRECT(\"a\" & (VLOOKUP(Rebalance!$D$37,$F$2:$G$48,2,FALSE)+ROW()-2)),\"\")","v":{"$error":"#N/A"}},{"$f":"IF(INDIRECT(\"c\" & (VLOOKUP(Rebalance!$D$38,$F$2:$G$48,2,FALSE)+ROW()-2))=Rebalance!$D$38,INDIRECT(\"a\" & (VLOOKUP(Rebalance!$D$38,$F$2:$G$48,2,FALSE)+ROW()-2)),\"\")","v":{"$error":"#N/A"}},{"$f":"IF(INDIRECT(\"c\" & (VLOOKUP(Rebalance!$D$39,$F$2:$G$48,2,FALSE)+ROW()-2))=Rebalance!$D$39,INDIRECT(\"a\" & (VLOOKUP(Rebalance!$D$39,$F$2:$G$48,2,FALSE)+ROW()-2)),\"\")","v":{"$error":"#N/A"}},{"$f":"IF(INDIRECT(\"c\" & (VLOOKUP(Rebalance!$D$40,$F$2:$G$48,2,FALSE)+ROW()-2))=Rebalance!$D$40,INDIRECT(\"a\" & (VLOOKUP(Rebalance!$D$40,$F$2:$G$48,2,FALSE)+ROW()-2)),\"\")","v":{"$error":"#N/A"}},{"$f":"IF(INDIRECT(\"c\" & (VLOOKUP(Rebalance!$D$52,$F$2:$G$48,2,FALSE)+ROW()-2))=Rebalance!$D$52,INDIRECT(\"a\" & (VLOOKUP(Rebalance!$D$52,$F$2:$G$48,2,FALSE)+ROW()-2)),\"\")","v":{"$error":"#N/A"}},{"$f":"IF(INDIRECT(\"c\" & (VLOOKUP(Rebalance!$D$53,$F$2:$G$48,2,FALSE)+ROW()-2))=Rebalance!$D$53,INDIRECT(\"a\" & (VLOOKUP(Rebalance!$D$53,$F$2:$G$48,2,FALSE)+ROW()-2)),\"\")","v":{"$error":"#N/A"}},{"$f":"IF(INDIRECT(\"c\" & (VLOOKUP(Rebalance!$D$54,$F$2:$G$48,2,FALSE)+ROW()-2))=Rebalance!$D$54,INDIRECT(\"a\" & (VLOOKUP(Rebalance!$D$54,$F$2:$G$48,2,FALSE)+ROW()-2)),\"\")","v":{"$error":"#N/A"}},{"$f":"IF(INDIRECT(\"c\" & (VLOOKUP(Rebalance!$D$55,$F$2:$G$48,2,FALSE)+ROW()-2))=Rebalance!$D$55,INDIRECT(\"a\" & (VLOOKUP(Rebalance!$D$55,$F$2:$G$48,2,FALSE)+ROW()-2)),\"\")","v":{"$error":"#N/A"}},{"$f":"IF(INDIRECT(\"c\" & (VLOOKUP(Rebalance!$D$56,$F$2:$G$48,2,FALSE)+ROW()-2))=Rebalance!$D$56,INDIRECT(\"a\" & (VLOOKUP(Rebalance!$D$56,$F$2:$G$48,2,FALSE)+ROW()-2)),\"\")","v":{"$error":"#N/A"}},{"$f":"IF(INDIRECT(\"c\" & (VLOOKUP(Rebalance!$D$57,$F$2:$G$48,2,FALSE)+ROW()-2))=Rebalance!$D$57,INDIRECT(\"a\" & (VLOOKUP(Rebalance!$D$57,$F$2:$G$48,2,FALSE)+ROW()-2)),\"\")","v":{"$error":"#N/A"}},{"$f":"IF(INDIRECT(\"c\" & (VLOOKUP(Rebalance!$D$58,$F$2:$G$48,2,FALSE)+ROW()-2))=Rebalance!$D$58,INDIRECT(\"a\" & (VLOOKUP(Rebalance!$D$58,$F$2:$G$48,2,FALSE)+ROW()-2)),\"\")","v":{"$error":"#N/A"}},{"$f":"IF(INDIRECT(\"c\" & (VLOOKUP(Rebalance!$D$59,$F$2:$G$48,2,FALSE)+ROW()-2))=Rebalance!$D$59,INDIRECT(\"a\" & (VLOOKUP(Rebalance!$D$59,$F$2:$G$48,2,FALSE)+ROW()-2)),\"\")","v":{"$error":"#N/A"}},{"$f":"IF(INDIRECT(\"c\" & (VLOOKUP(Rebalance!$D$60,$F$2:$G$48,2,FALSE)+ROW()-2))=Rebalance!$D$60,INDIRECT(\"a\" & (VLOOKUP(Rebalance!$D$60,$F$2:$G$48,2,FALSE)+ROW()-2)),\"\")","v":{"$error":"#N/A"}},{"$f":"IF(INDIRECT(\"c\" & (VLOOKUP(Rebalance!$D$61,$F$2:$G$48,2,FALSE)+ROW()-2))=Rebalance!$D$61,INDIRECT(\"a\" & (VLOOKUP(Rebalance!$D$61,$F$2:$G$48,2,FALSE)+ROW()-2)),\"\")","v":{"$error":"#N/A"}},{"$f":"IF(INDIRECT(\"c\" & (VLOOKUP(Rebalance!$D$62,$F$2:$G$48,2,FALSE)+ROW()-2))=Rebalance!$D$62,INDIRECT(\"a\" & (VLOOKUP(Rebalance!$D$62,$F$2:$G$48,2,FALSE)+ROW()-2)),\"\")","v":{"$error":"#N/A"}},{"$f":"IF(INDIRECT(\"c\" & (VLOOKUP(Rebalance!$D$63,$F$2:$G$48,2,FALSE)+ROW()-2))=Rebalance!$D$63,INDIRECT(\"a\" & (VLOOKUP(Rebalance!$D$63,$F$2:$G$48,2,FALSE)+ROW()-2)),\"\")","v":{"$error":"#N/A"}},{"$f":"IF(INDIRECT(\"c\" & (VLOOKUP(Rebalance!$D$64,$F$2:$G$48,2,FALSE)+ROW()-2))=Rebalance!$D$64,INDIRECT(\"a\" & (VLOOKUP(Rebalance!$D$64,$F$2:$G$48,2,FALSE)+ROW()-2)),\"\")","v":{"$error":"#N/A"}},{"$f":"IF(INDIRECT(\"c\" & (VLOOKUP(Rebalance!$D$65,$F$2:$G$48,2,FALSE)+ROW()-2))=Rebalance!$D$65,INDIRECT(\"a\" & (VLOOKUP(Rebalance!$D$65,$F$2:$G$48,2,FALSE)+ROW()-2)),\"\")","v":{"$error":"#N/A"}},{"$f":"IF(INDIRECT(\"c\" & (VLOOKUP(Rebalance!$D$66,$F$2:$G$48,2,FALSE)+ROW()-2))=Rebalance!$D$66,INDIRECT(\"a\" & (VLOOKUP(Rebalance!$D$66,$F$2:$G$48,2,FALSE)+ROW()-2)),\"\")","v":{"$error":"#N/A"}}]
[null,null,null,{"$f":"ROW()","v":659},null,null,{"$f":"VLOOKUP(F659,$C$2:$D$599,2,FALSE)","v":{"$error":"#N/A"}},{"$f":"IF(INDIRECT(\"c\" & (VLOOKUP(Rebalance!$D$26,$F$2:$G$48,2,FALSE)+ROW()-2))=Rebalance!$D$26,INDIRECT(\"a\" & (VLOOKUP(Rebalance!$D$26,$F$2:$G$48,2,FALSE)+ROW()-2)),\"\")","v":{"$error":"#N/A"}},{"$f":"IF(INDIRECT(\"c\" & (VLOOKUP(Rebalance!$D$27,$F$2:$G$48,2,FALSE)+ROW()-2))=Rebalance!$D$27,INDIRECT(\"a\" & (VLOOKUP(Rebalance!$D$27,$F$2:$G$48,2,FALSE)+ROW()-2)),\"\")","v":{"$error":"#N/A"}},{"$f":"IF(INDIRECT(\"c\" & (VLOOKUP(Rebalance!$D$28,$F$2:$G$48,2,FALSE)+ROW()-2))=Rebalance!$D$28,INDIRECT(\"a\" & (VLOOKUP(Rebalance!$D$28,$F$2:$G$48,2,FALSE)+ROW()-2)),\"\")","v":{"$error":"#N/A"}},{"$f":"IF(INDIRECT(\"c\" & (VLOOKUP(Rebalance!$D$29,$F$2:$G$48,2,FALSE)+ROW()-2))=Rebalance!$D$29,INDIRECT(\"a\" & (VLOOKUP(Rebalance!$D$29,$F$2:$G$48,2,FALSE)+ROW()-2)),\"\")","v":{"$error":"#N/A"}},{"$f":"IF(INDIRECT(\"c\" & (VLOOKUP(Rebalance!$D$30,$F$2:$G$48,2,FALSE)+ROW()-2))=Rebalance!$D$30,INDIRECT(\"a\" & (VLOOKUP(Rebalance!$D$30,$F$2:$G$48,2,FALSE)+ROW()-2)),\"\")","v":{"$error":"#N/A"}},{"$f":"IF(INDIRECT(\"c\" & (VLOOKUP(Rebalance!$D$31,$F$2:$G$48,2,FALSE)+ROW()-2))=Rebalance!$D$31,INDIRECT(\"a\" & (VLOOKUP(Rebalance!$D$31,$F$2:$G$48,2,FALSE)+ROW()-2)),\"\")","v":{"$error":"#N/A"}},{"$f":"IF(INDIRECT(\"c\" & (VLOOKUP(Rebalance!$D$32,$F$2:$G$48,2,FALSE)+ROW()-2))=Rebalance!$D$32,INDIRECT(\"a\" & (VLOOKUP(Rebalance!$D$32,$F$2:$G$48,2,FALSE)+ROW()-2)),\"\")","v":{"$error":"#N/A"}},{"$f":"IF(INDIRECT(\"c\" & (VLOOKUP(Rebalance!$D$33,$F$2:$G$48,2,FALSE)+ROW()-2))=Rebalance!$D$33,INDIRECT(\"a\" & (VLOOKUP(Rebalance!$D$33,$F$2:$G$48,2,FALSE)+ROW()-2)),\"\")","v":{"$error":"#N/A"}},{"$f":"IF(INDIRECT(\"c\" & (VLOOKUP(Rebalance!$D$34,$F$2:$G$48,2,FALSE)+ROW()-2))=Rebalance!$D$34,INDIRECT(\"a\" & (VLOOKUP(Rebalance!$D$34,$F$2:$G$48,2,FALSE)+ROW()-2)),\"\")","v":{"$error":"#N/A"}},{"$f":"IF(INDIRECT(\"c\" & (VLOOKUP(Rebalance!$D$35,$F$2:$G$48,2,FALSE)+ROW()-2))=Rebalance!$D$35,INDIRECT(\"a\" & (VLOOKUP(Rebalance!$D$35,$F$2:$G$48,2,FALSE)+ROW()-2)),\"\")","v":{"$error":"#N/A"}},{"$f":"IF(INDIRECT(\"c\" & (VLOOKUP(Rebalance!$D$36,$F$2:$G$48,2,FALSE)+ROW()-2))=Rebalance!$D$36,INDIRECT(\"a\" & (VLOOKUP(Rebalance!$D$36,$F$2:$G$48,2,FALSE)+ROW()-2)),\"\")","v":{"$error":"#N/A"}},{"$f":"IF(INDIRECT(\"c\" & (VLOOKUP(Rebalance!$D$37,$F$2:$G$48,2,FALSE)+ROW()-2))=Rebalance!$D$37,INDIRECT(\"a\" & (VLOOKUP(Rebalance!$D$37,$F$2:$G$48,2,FALSE)+ROW()-2)),\"\")","v":{"$error":"#N/A"}},{"$f":"IF(INDIRECT(\"c\" & (VLOOKUP(Rebalance!$D$38,$F$2:$G$48,2,FALSE)+ROW()-2))=Rebalance!$D$38,INDIRECT(\"a\" & (VLOOKUP(Rebalance!$D$38,$F$2:$G$48,2,FALSE)+ROW()-2)),\"\")","v":{"$error":"#N/A"}},{"$f":"IF(INDIRECT(\"c\" & (VLOOKUP(Rebalance!$D$39,$F$2:$G$48,2,FALSE)+ROW()-2))=Rebalance!$D$39,INDIRECT(\"a\" & (VLOOKUP(Rebalance!$D$39,$F$2:$G$48,2,FALSE)+ROW()-2)),\"\")","v":{"$error":"#N/A"}},{"$f":"IF(INDIRECT(\"c\" & (VLOOKUP(Rebalance!$D$40,$F$2:$G$48,2,FALSE)+ROW()-2))=Rebalance!$D$40,INDIRECT(\"a\" & (VLOOKUP(Rebalance!$D$40,$F$2:$G$48,2,FALSE)+ROW()-2)),\"\")","v":{"$error":"#N/A"}},{"$f":"IF(INDIRECT(\"c\" & (VLOOKUP(Rebalance!$D$52,$F$2:$G$48,2,FALSE)+ROW()-2))=Rebalance!$D$52,INDIRECT(\"a\" & (VLOOKUP(Rebalance!$D$52,$F$2:$G$48,2,FALSE)+ROW()-2)),\"\")","v":{"$error":"#N/A"}},{"$f":"IF(INDIRECT(\"c\" & (VLOOKUP(Rebalance!$D$53,$F$2:$G$48,2,FALSE)+ROW()-2))=Rebalance!$D$53,INDIRECT(\"a\" & (VLOOKUP(Rebalance!$D$53,$F$2:$G$48,2,FALSE)+ROW()-2)),\"\")","v":{"$error":"#N/A"}},{"$f":"IF(INDIRECT(\"c\" & (VLOOKUP(Rebalance!$D$54,$F$2:$G$48,2,FALSE)+ROW()-2))=Rebalance!$D$54,INDIRECT(\"a\" & (VLOOKUP(Rebalance!$D$54,$F$2:$G$48,2,FALSE)+ROW()-2)),\"\")","v":{"$error":"#N/A"}},{"$f":"IF(INDIRECT(\"c\" & (VLOOKUP(Rebalance!$D$55,$F$2:$G$48,2,FALSE)+ROW()-2))=Rebalance!$D$55,INDIRECT(\"a\" & (VLOOKUP(Rebalance!$D$55,$F$2:$G$48,2,FALSE)+ROW()-2)),\"\")","v":{"$error":"#N/A"}},{"$f":"IF(INDIRECT(\"c\" & (VLOOKUP(Rebalance!$D$56,$F$2:$G$48,2,FALSE)+ROW()-2))=Rebalance!$D$56,INDIRECT(\"a\" & (VLOOKUP(Rebalance!$D$56,$F$2:$G$48,2,FALSE)+ROW()-2)),\"\")","v":{"$error":"#N/A"}},{"$f":"IF(INDIRECT(\"c\" & (VLOOKUP(Rebalance!$D$57,$F$2:$G$48,2,FALSE)+ROW()-2))=Rebalance!$D$57,INDIRECT(\"a\" & (VLOOKUP(Rebalance!$D$57,$F$2:$G$48,2,FALSE)+ROW()-2)),\"\")","v":{"$error":"#N/A"}},{"$f":"IF(INDIRECT(\"c\" & (VLOOKUP(Rebalance!$D$58,$F$2:$G$48,2,FALSE)+ROW()-2))=Rebalance!$D$58,INDIRECT(\"a\" & (VLOOKUP(Rebalance!$D$58,$F$2:$G$48,2,FALSE)+ROW()-2)),\"\")","v":{"$error":"#N/A"}},{"$f":"IF(INDIRECT(\"c\" & (VLOOKUP(Rebalance!$D$59,$F$2:$G$48,2,FALSE)+ROW()-2))=Rebalance!$D$59,INDIRECT(\"a\" & (VLOOKUP(Rebalance!$D$59,$F$2:$G$48,2,FALSE)+ROW()-2)),\"\")","v":{"$error":"#N/A"}},{"$f":"IF(INDIRECT(\"c\" & (VLOOKUP(Rebalance!$D$60,$F$2:$G$48,2,FALSE)+ROW()-2))=Rebalance!$D$60,INDIRECT(\"a\" & (VLOOKUP(Rebalance!$D$60,$F$2:$G$48,2,FALSE)+ROW()-2)),\"\")","v":{"$error":"#N/A"}},{"$f":"IF(INDIRECT(\"c\" & (VLOOKUP(Rebalance!$D$61,$F$2:$G$48,2,FALSE)+ROW()-2))=Rebalance!$D$61,INDIRECT(\"a\" & (VLOOKUP(Rebalance!$D$61,$F$2:$G$48,2,FALSE)+ROW()-2)),\"\")","v":{"$error":"#N/A"}},{"$f":"IF(INDIRECT(\"c\" & (VLOOKUP(Rebalance!$D$62,$F$2:$G$48,2,FALSE)+ROW()-2))=Rebalance!$D$62,INDIRECT(\"a\" & (VLOOKUP(Rebalance!$D$62,$F$2:$G$48,2,FALSE)+ROW()-2)),\"\")","v":{"$error":"#N/A"}},{"$f":"IF(INDIRECT(\"c\" & (VLOOKUP(Rebalance!$D$63,$F$2:$G$48,2,FALSE)+ROW()-2))=Rebalance!$D$63,INDIRECT(\"a\" & (VLOOKUP(Rebalance!$D$63,$F$2:$G$48,2,FALSE)+ROW()-2)),\"\")","v":{"$error":"#N/A"}},{"$f":"IF(INDIRECT(\"c\" & (VLOOKUP(Rebalance!$D$64,$F$2:$G$48,2,FALSE)+ROW()-2))=Rebalance!$D$64,INDIRECT(\"a\" & (VLOOKUP(Rebalance!$D$64,$F$2:$G$48,2,FALSE)+ROW()-2)),\"\")","v":{"$error":"#N/A"}},{"$f":"IF(INDIRECT(\"c\" & (VLOOKUP(Rebalance!$D$65,$F$2:$G$48,2,FALSE)+ROW()-2))=Rebalance!$D$65,INDIRECT(\"a\" & (VLOOKUP(Rebalance!$D$65,$F$2:$G$48,2,FALSE)+ROW()-2)),\"\")","v":{"$error":"#N/A"}},{"$f":"IF(INDIRECT(\"c\" & (VLOOKUP(Rebalance!$D$66,$F$2:$G$48,2,FALSE)+ROW()-2))=Rebalance!$D$66,INDIRECT(\"a\" & (VLOOKUP(Rebalance!$D$66,$F$2:$G$48,2,FALSE)+ROW()-2)),\"\")","v":{"$error":"#N/A"}}]
[null,null,null,{"$f":"ROW()","v":660},null,null,{"$f":"VLOOKUP(F660,$C$2:$D$599,2,FALSE)","v":{"$error":"#N/A"}},{"$f":"IF(INDIRECT(\"c\" & (VLOOKUP(Rebalance!$D$26,$F$2:$G$48,2,FALSE)+ROW()-2))=Rebalance!$D$26,INDIRECT(\"a\" & (VLOOKUP(Rebalance!$D$26,$F$2:$G$48,2,FALSE)+ROW()-2)),\"\")","v":{"$error":"#N/A"}},{"$f":"IF(INDIRECT(\"c\" & (VLOOKUP(Rebalance!$D$27,$F$2:$G$48,2,FALSE)+ROW()-2))=Rebalance!$D$27,INDIRECT(\"a\" & (VLOOKUP(Rebalance!$D$27,$F$2:$G$48,2,FALSE)+ROW()-2)),\"\")","v":{"$error":"#N/A"}},{"$f":"IF(INDIRECT(\"c\" & (VLOOKUP(Rebalance!$D$28,$F$2:$G$48,2,FALSE)+ROW()-2))=Rebalance!$D$28,INDIRECT(\"a\" & (VLOOKUP(Rebalance!$D$28,$F$2:$G$48,2,FALSE)+ROW()-2)),\"\")","v":{"$error":"#N/A"}},{"$f":"IF(INDIRECT(\"c\" & (VLOOKUP(Rebalance!$D$29,$F$2:$G$48,2,FALSE)+ROW()-2))=Rebalance!$D$29,INDIRECT(\"a\" & (VLOOKUP(Rebalance!$D$29,$F$2:$G$48,2,FALSE)+ROW()-2)),\"\")","v":{"$error":"#N/A"}},{"$f":"IF(INDIRECT(\"c\" & (VLOOKUP(Rebalance!$D$30,$F$2:$G$48,2,FALSE)+ROW()-2))=Rebalance!$D$30,INDIRECT(\"a\" & (VLOOKUP(Rebalance!$D$30,$F$2:$G$48,2,FALSE)+ROW()-2)),\"\")","v":{"$error":"#N/A"}},{"$f":"IF(INDIRECT(\"c\" & (VLOOKUP(Rebalance!$D$31,$F$2:$G$48,2,FALSE)+ROW()-2))=Rebalance!$D$31,INDIRECT(\"a\" & (VLOOKUP(Rebalance!$D$31,$F$2:$G$48,2,FALSE)+ROW()-2)),\"\")","v":{"$error":"#N/A"}},{"$f":"IF(INDIRECT(\"c\" & (VLOOKUP(Rebalance!$D$32,$F$2:$G$48,2,FALSE)+ROW()-2))=Rebalance!$D$32,INDIRECT(\"a\" & (VLOOKUP(Rebalance!$D$32,$F$2:$G$48,2,FALSE)+ROW()-2)),\"\")","v":{"$error":"#N/A"}},{"$f":"IF(INDIRECT(\"c\" & (VLOOKUP(Rebalance!$D$33,$F$2:$G$48,2,FALSE)+ROW()-2))=Rebalance!$D$33,INDIRECT(\"a\" & (VLOOKUP(Rebalance!$D$33,$F$2:$G$48,2,FALSE)+ROW()-2)),\"\")","v":{"$error":"#N/A"}},{"$f":"IF(INDIRECT(\"c\" & (VLOOKUP(Rebalance!$D$34,$F$2:$G$48,2,FALSE)+ROW()-2))=Rebalance!$D$34,INDIRECT(\"a\" & (VLOOKUP(Rebalance!$D$34,$F$2:$G$48,2,FALSE)+ROW()-2)),\"\")","v":{"$error":"#N/A"}},{"$f":"IF(INDIRECT(\"c\" & (VLOOKUP(Rebalance!$D$35,$F$2:$G$48,2,FALSE)+ROW()-2))=Rebalance!$D$35,INDIRECT(\"a\" & (VLOOKUP(Rebalance!$D$35,$F$2:$G$48,2,FALSE)+ROW()-2)),\"\")","v":{"$error":"#N/A"}},{"$f":"IF(INDIRECT(\"c\" & (VLOOKUP(Rebalance!$D$36,$F$2:$G$48,2,FALSE)+ROW()-2))=Rebalance!$D$36,INDIRECT(\"a\" & (VLOOKUP(Rebalance!$D$36,$F$2:$G$48,2,FALSE)+ROW()-2)),\"\")","v":{"$error":"#N/A"}},{"$f":"IF(INDIRECT(\"c\" & (VLOOKUP(Rebalance!$D$37,$F$2:$G$48,2,FALSE)+ROW()-2))=Rebalance!$D$37,INDIRECT(\"a\" & (VLOOKUP(Rebalance!$D$37,$F$2:$G$48,2,FALSE)+ROW()-2)),\"\")","v":{"$error":"#N/A"}},{"$f":"IF(INDIRECT(\"c\" & (VLOOKUP(Rebalance!$D$38,$F$2:$G$48,2,FALSE)+ROW()-2))=Rebalance!$D$38,INDIRECT(\"a\" & (VLOOKUP(Rebalance!$D$38,$F$2:$G$48,2,FALSE)+ROW()-2)),\"\")","v":{"$error":"#N/A"}},{"$f":"IF(INDIRECT(\"c\" & (VLOOKUP(Rebalance!$D$39,$F$2:$G$48,2,FALSE)+ROW()-2))=Rebalance!$D$39,INDIRECT(\"a\" & (VLOOKUP(Rebalance!$D$39,$F$2:$G$48,2,FALSE)+ROW()-2)),\"\")","v":{"$error":"#N/A"}},{"$f":"IF(INDIRECT(\"c\" & (VLOOKUP(Rebalance!$D$40,$F$2:$G$48,2,FALSE)+ROW()-2))=Rebalance!$D$40,INDIRECT(\"a\" & (VLOOKUP(Rebalance!$D$40,$F$2:$G$48,2,FALSE)+ROW()-2)),\"\")","v":{"$error":"#N/A"}},{"$f":"IF(INDIRECT(\"c\" & (VLOOKUP(Rebalance!$D$52,$F$2:$G$48,2,FALSE)+ROW()-2))=Rebalance!$D$52,INDIRECT(\"a\" & (VLOOKUP(Rebalance!$D$52,$F$2:$G$48,2,FALSE)+ROW()-2)),\"\")","v":{"$error":"#N/A"}},{"$f":"IF(INDIRECT(\"c\" & (VLOOKUP(Rebalance!$D$53,$F$2:$G$48,2,FALSE)+ROW()-2))=Rebalance!$D$53,INDIRECT(\"a\" & (VLOOKUP(Rebalance!$D$53,$F$2:$G$48,2,FALSE)+ROW()-2)),\"\")","v":{"$error":"#N/A"}},{"$f":"IF(INDIRECT(\"c\" & (VLOOKUP(Rebalance!$D$54,$F$2:$G$48,2,FALSE)+ROW()-2))=Rebalance!$D$54,INDIRECT(\"a\" & (VLOOKUP(Rebalance!$D$54,$F$2:$G$48,2,FALSE)+ROW()-2)),\"\")","v":{"$error":"#N/A"}},{"$f":"IF(INDIRECT(\"c\" & (VLOOKUP(Rebalance!$D$55,$F$2:$G$48,2,FALSE)+ROW()-2))=Rebalance!$D$55,INDIRECT(\"a\" & (VLOOKUP(Rebalance!$D$55,$F$2:$G$48,2,FALSE)+ROW()-2)),\"\")","v":{"$error":"#N/A"}},{"$f":"IF(INDIRECT(\"c\" & (VLOOKUP(Rebalance!$D$56,$F$2:$G$48,2,FALSE)+ROW()-2))=Rebalance!$D$56,INDIRECT(\"a\" & (VLOOKUP(Rebalance!$D$56,$F$2:$G$48,2,FALSE)+ROW()-2)),\"\")","v":{"$error":"#N/A"}},{"$f":"IF(INDIRECT(\"c\" & (VLOOKUP(Rebalance!$D$57,$F$2:$G$48,2,FALSE)+ROW()-2))=Rebalance!$D$57,INDIRECT(\"a\" & (VLOOKUP(Rebalance!$D$57,$F$2:$G$48,2,FALSE)+ROW()-2)),\"\")","v":{"$error":"#N/A"}},{"$f":"IF(INDIRECT(\"c\" & (VLOOKUP(Rebalance!$D$58,$F$2:$G$48,2,FALSE)+ROW()-2))=Rebalance!$D$58,INDIRECT(\"a\" & (VLOOKUP(Rebalance!$D$58,$F$2:$G$48,2,FALSE)+ROW()-2)),\"\")","v":{"$error":"#N/A"}},{"$f":"IF(INDIRECT(\"c\" & (VLOOKUP(Rebalance!$D$59,$F$2:$G$48,2,FALSE)+ROW()-2))=Rebalance!$D$59,INDIRECT(\"a\" & (VLOOKUP(Rebalance!$D$59,$F$2:$G$48,2,FALSE)+ROW()-2)),\"\")","v":{"$error":"#N/A"}},{"$f":"IF(INDIRECT(\"c\" & (VLOOKUP(Rebalance!$D$60,$F$2:$G$48,2,FALSE)+ROW()-2))=Rebalance!$D$60,INDIRECT(\"a\" & (VLOOKUP(Rebalance!$D$60,$F$2:$G$48,2,FALSE)+ROW()-2)),\"\")","v":{"$error":"#N/A"}},{"$f":"IF(INDIRECT(\"c\" & (VLOOKUP(Rebalance!$D$61,$F$2:$G$48,2,FALSE)+ROW()-2))=Rebalance!$D$61,INDIRECT(\"a\" & (VLOOKUP(Rebalance!$D$61,$F$2:$G$48,2,FALSE)+ROW()-2)),\"\")","v":{"$error":"#N/A"}},{"$f":"IF(INDIRECT(\"c\" & (VLOOKUP(Rebalance!$D$62,$F$2:$G$48,2,FALSE)+ROW()-2))=Rebalance!$D$62,INDIRECT(\"a\" & (VLOOKUP(Rebalance!$D$62,$F$2:$G$48,2,FALSE)+ROW()-2)),\"\")","v":{"$error":"#N/A"}},{"$f":"IF(INDIRECT(\"c\" & (VLOOKUP(Rebalance!$D$63,$F$2:$G$48,2,FALSE)+ROW()-2))=Rebalance!$D$63,INDIRECT(\"a\" & (VLOOKUP(Rebalance!$D$63,$F$2:$G$48,2,FALSE)+ROW()-2)),\"\")","v":{"$error":"#N/A"}},{"$f":"IF(INDIRECT(\"c\" & (VLOOKUP(Rebalance!$D$64,$F$2:$G$48,2,FALSE)+ROW()-2))=Rebalance!$D$64,INDIRECT(\"a\" & (VLOOKUP(Rebalance!$D$64,$F$2:$G$48,2,FALSE)+ROW()-2)),\"\")","v":{"$error":"#N/A"}},{"$f":"IF(INDIRECT(\"c\" & (VLOOKUP(Rebalance!$D$65,$F$2:$G$48,2,FALSE)+ROW()-2))=Rebalance!$D$65,INDIRECT(\"a\" & (VLOOKUP(Rebalance!$D$65,$F$2:$G$48,2,FALSE)+ROW()-2)),\"\")","v":{"$error":"#N/A"}},{"$f":"IF(INDIRECT(\"c\" & (VLOOKUP(Rebalance!$D$66,$F$2:$G$48,2,FALSE)+ROW()-2))=Rebalance!$D$66,INDIRECT(\"a\" & (VLOOKUP(Rebalance!$D$66,$F$2:$G$48,2,FALSE)+ROW()-2)),\"\")","v":{"$error":"#N/A"}}]
[null,null,null,{"$f":"ROW()","v":661},null,null,{"$f":"VLOOKUP(F661,$C$2:$D$599,2,FALSE)","v":{"$error":"#N/A"}},{"$f":"IF(INDIRECT(\"c\" & (VLOOKUP(Rebalance!$D$26,$F$2:$G$48,2,FALSE)+ROW()-2))=Rebalance!$D$26,INDIRECT(\"a\" & (VLOOKUP(Rebalance!$D$26,$F$2:$G$48,2,FALSE)+ROW()-2)),\"\")","v":{"$error":"#N/A"}},{"$f":"IF(INDIRECT(\"c\" & (VLOOKUP(Rebalance!$D$27,$F$2:$G$48,2,FALSE)+ROW()-2))=Rebalance!$D$27,INDIRECT(\"a\" & (VLOOKUP(Rebalance!$D$27,$F$2:$G$48,2,FALSE)+ROW()-2)),\"\")","v":{"$error":"#N/A"}},{"$f":"IF(INDIRECT(\"c\" & (VLOOKUP(Rebalance!$D$28,$F$2:$G$48,2,FALSE)+ROW()-2))=Rebalance!$D$28,INDIRECT(\"a\" & (VLOOKUP(Rebalance!$D$28,$F$2:$G$48,2,FALSE)+ROW()-2)),\"\")","v":{"$error":"#N/A"}},{"$f":"IF(INDIRECT(\"c\" & (VLOOKUP(Rebalance!$D$29,$F$2:$G$48,2,FALSE)+ROW()-2))=Rebalance!$D$29,INDIRECT(\"a\" & (VLOOKUP(Rebalance!$D$29,$F$2:$G$48,2,FALSE)+ROW()-2)),\"\")","v":{"$error":"#N/A"}},{"$f":"IF(INDIRECT(\"c\" & (VLOOKUP(Rebalance!$D$30,$F$2:$G$48,2,FALSE)+ROW()-2))=Rebalance!$D$30,INDIRECT(\"a\" & (VLOOKUP(Rebalance!$D$30,$F$2:$G$48,2,FALSE)+ROW()-2)),\"\")","v":{"$error":"#N/A"}},{"$f":"IF(INDIRECT(\"c\" & (VLOOKUP(Rebalance!$D$31,$F$2:$G$48,2,FALSE)+ROW()-2))=Rebalance!$D$31,INDIRECT(\"a\" & (VLOOKUP(Rebalance!$D$31,$F$2:$G$48,2,FALSE)+ROW()-2)),\"\")","v":{"$error":"#N/A"}},{"$f":"IF(INDIRECT(\"c\" & (VLOOKUP(Rebalance!$D$32,$F$2:$G$48,2,FALSE)+ROW()-2))=Rebalance!$D$32,INDIRECT(\"a\" & (VLOOKUP(Rebalance!$D$32,$F$2:$G$48,2,FALSE)+ROW()-2)),\"\")","v":{"$error":"#N/A"}},{"$f":"IF(INDIRECT(\"c\" & (VLOOKUP(Rebalance!$D$33,$F$2:$G$48,2,FALSE)+ROW()-2))=Rebalance!$D$33,INDIRECT(\"a\" & (VLOOKUP(Rebalance!$D$33,$F$2:$G$48,2,FALSE)+ROW()-2)),\"\")","v":{"$error":"#N/A"}},{"$f":"IF(INDIRECT(\"c\" & (VLOOKUP(Rebalance!$D$34,$F$2:$G$48,2,FALSE)+ROW()-2))=Rebalance!$D$34,INDIRECT(\"a\" & (VLOOKUP(Rebalance!$D$34,$F$2:$G$48,2,FALSE)+ROW()-2)),\"\")","v":{"$error":"#N/A"}},{"$f":"IF(INDIRECT(\"c\" & (VLOOKUP(Rebalance!$D$35,$F$2:$G$48,2,FALSE)+ROW()-2))=Rebalance!$D$35,INDIRECT(\"a\" & (VLOOKUP(Rebalance!$D$35,$F$2:$G$48,2,FALSE)+ROW()-2)),\"\")","v":{"$error":"#N/A"}},{"$f":"IF(INDIRECT(\"c\" & (VLOOKUP(Rebalance!$D$36,$F$2:$G$48,2,FALSE)+ROW()-2))=Rebalance!$D$36,INDIRECT(\"a\" & (VLOOKUP(Rebalance!$D$36,$F$2:$G$48,2,FALSE)+ROW()-2)),\"\")","v":{"$error":"#N/A"}},{"$f":"IF(INDIRECT(\"c\" & (VLOOKUP(Rebalance!$D$37,$F$2:$G$48,2,FALSE)+ROW()-2))=Rebalance!$D$37,INDIRECT(\"a\" & (VLOOKUP(Rebalance!$D$37,$F$2:$G$48,2,FALSE)+ROW()-2)),\"\")","v":{"$error":"#N/A"}},{"$f":"IF(INDIRECT(\"c\" & (VLOOKUP(Rebalance!$D$38,$F$2:$G$48,2,FALSE)+ROW()-2))=Rebalance!$D$38,INDIRECT(\"a\" & (VLOOKUP(Rebalance!$D$38,$F$2:$G$48,2,FALSE)+ROW()-2)),\"\")","v":{"$error":"#N/A"}},{"$f":"IF(INDIRECT(\"c\" & (VLOOKUP(Rebalance!$D$39,$F$2:$G$48,2,FALSE)+ROW()-2))=Rebalance!$D$39,INDIRECT(\"a\" & (VLOOKUP(Rebalance!$D$39,$F$2:$G$48,2,FALSE)+ROW()-2)),\"\")","v":{"$error":"#N/A"}},{"$f":"IF(INDIRECT(\"c\" & (VLOOKUP(Rebalance!$D$40,$F$2:$G$48,2,FALSE)+ROW()-2))=Rebalance!$D$40,INDIRECT(\"a\" & (VLOOKUP(Rebalance!$D$40,$F$2:$G$48,2,FALSE)+ROW()-2)),\"\")","v":{"$error":"#N/A"}},{"$f":"IF(INDIRECT(\"c\" & (VLOOKUP(Rebalance!$D$52,$F$2:$G$48,2,FALSE)+ROW()-2))=Rebalance!$D$52,INDIRECT(\"a\" & (VLOOKUP(Rebalance!$D$52,$F$2:$G$48,2,FALSE)+ROW()-2)),\"\")","v":{"$error":"#N/A"}},{"$f":"IF(INDIRECT(\"c\" & (VLOOKUP(Rebalance!$D$53,$F$2:$G$48,2,FALSE)+ROW()-2))=Rebalance!$D$53,INDIRECT(\"a\" & (VLOOKUP(Rebalance!$D$53,$F$2:$G$48,2,FALSE)+ROW()-2)),\"\")","v":{"$error":"#N/A"}},{"$f":"IF(INDIRECT(\"c\" & (VLOOKUP(Rebalance!$D$54,$F$2:$G$48,2,FALSE)+ROW()-2))=Rebalance!$D$54,INDIRECT(\"a\" & (VLOOKUP(Rebalance!$D$54,$F$2:$G$48,2,FALSE)+ROW()-2)),\"\")","v":{"$error":"#N/A"}},{"$f":"IF(INDIRECT(\"c\" & (VLOOKUP(Rebalance!$D$55,$F$2:$G$48,2,FALSE)+ROW()-2))=Rebalance!$D$55,INDIRECT(\"a\" & (VLOOKUP(Rebalance!$D$55,$F$2:$G$48,2,FALSE)+ROW()-2)),\"\")","v":{"$error":"#N/A"}},{"$f":"IF(INDIRECT(\"c\" & (VLOOKUP(Rebalance!$D$56,$F$2:$G$48,2,FALSE)+ROW()-2))=Rebalance!$D$56,INDIRECT(\"a\" & (VLOOKUP(Rebalance!$D$56,$F$2:$G$48,2,FALSE)+ROW()-2)),\"\")","v":{"$error":"#N/A"}},{"$f":"IF(INDIRECT(\"c\" & (VLOOKUP(Rebalance!$D$57,$F$2:$G$48,2,FALSE)+ROW()-2))=Rebalance!$D$57,INDIRECT(\"a\" & (VLOOKUP(Rebalance!$D$57,$F$2:$G$48,2,FALSE)+ROW()-2)),\"\")","v":{"$error":"#N/A"}},{"$f":"IF(INDIRECT(\"c\" & (VLOOKUP(Rebalance!$D$58,$F$2:$G$48,2,FALSE)+ROW()-2))=Rebalance!$D$58,INDIRECT(\"a\" & (VLOOKUP(Rebalance!$D$58,$F$2:$G$48,2,FALSE)+ROW()-2)),\"\")","v":{"$error":"#N/A"}},{"$f":"IF(INDIRECT(\"c\" & (VLOOKUP(Rebalance!$D$59,$F$2:$G$48,2,FALSE)+ROW()-2))=Rebalance!$D$59,INDIRECT(\"a\" & (VLOOKUP(Rebalance!$D$59,$F$2:$G$48,2,FALSE)+ROW()-2)),\"\")","v":{"$error":"#N/A"}},{"$f":"IF(INDIRECT(\"c\" & (VLOOKUP(Rebalance!$D$60,$F$2:$G$48,2,FALSE)+ROW()-2))=Rebalance!$D$60,INDIRECT(\"a\" & (VLOOKUP(Rebalance!$D$60,$F$2:$G$48,2,FALSE)+ROW()-2)),\"\")","v":{"$error":"#N/A"}},{"$f":"IF(INDIRECT(\"c\" & (VLOOKUP(Rebalance!$D$61,$F$2:$G$48,2,FALSE)+ROW()-2))=Rebalance!$D$61,INDIRECT(\"a\" & (VLOOKUP(Rebalance!$D$61,$F$2:$G$48,2,FALSE)+ROW()-2)),\"\")","v":{"$error":"#N/A"}},{"$f":"IF(INDIRECT(\"c\" & (VLOOKUP(Rebalance!$D$62,$F$2:$G$48,2,FALSE)+ROW()-2))=Rebalance!$D$62,INDIRECT(\"a\" & (VLOOKUP(Rebalance!$D$62,$F$2:$G$48,2,FALSE)+ROW()-2)),\"\")","v":{"$error":"#N/A"}},{"$f":"IF(INDIRECT(\"c\" & (VLOOKUP(Rebalance!$D$63,$F$2:$G$48,2,FALSE)+ROW()-2))=Rebalance!$D$63,INDIRECT(\"a\" & (VLOOKUP(Rebalance!$D$63,$F$2:$G$48,2,FALSE)+ROW()-2)),\"\")","v":{"$error":"#N/A"}},{"$f":"IF(INDIRECT(\"c\" & (VLOOKUP(Rebalance!$D$64,$F$2:$G$48,2,FALSE)+ROW()-2))=Rebalance!$D$64,INDIRECT(\"a\" & (VLOOKUP(Rebalance!$D$64,$F$2:$G$48,2,FALSE)+ROW()-2)),\"\")","v":{"$error":"#N/A"}},{"$f":"IF(INDIRECT(\"c\" & (VLOOKUP(Rebalance!$D$65,$F$2:$G$48,2,FALSE)+ROW()-2))=Rebalance!$D$65,INDIRECT(\"a\" & (VLOOKUP(Rebalance!$D$65,$F$2:$G$48,2,FALSE)+ROW()-2)),\"\")","v":{"$error":"#N/A"}},{"$f":"IF(INDIRECT(\"c\" & (VLOOKUP(Rebalance!$D$66,$F$2:$G$48,2,FALSE)+ROW()-2))=Rebalance!$D$66,INDIRECT(\"a\" & (VLOOKUP(Rebalance!$D$66,$F$2:$G$48,2,FALSE)+ROW()-2)),\"\")","v":{"$error":"#N/A"}}]
[null,null,null,{"$f":"ROW()","v":662},null,null,{"$f":"VLOOKUP(F662,$C$2:$D$599,2,FALSE)","v":{"$error":"#N/A"}},{"$f":"IF(INDIRECT(\"c\" & (VLOOKUP(Rebalance!$D$26,$F$2:$G$48,2,FALSE)+ROW()-2))=Rebalance!$D$26,INDIRECT(\"a\" & (VLOOKUP(Rebalance!$D$26,$F$2:$G$48,2,FALSE)+ROW()-2)),\"\")","v":{"$error":"#N/A"}},{"$f":"IF(INDIRECT(\"c\" & (VLOOKUP(Rebalance!$D$27,$F$2:$G$48,2,FALSE)+ROW()-2))=Rebalance!$D$27,INDIRECT(\"a\" & (VLOOKUP(Rebalance!$D$27,$F$2:$G$48,2,FALSE)+ROW()-2)),\"\")","v":{"$error":"#N/A"}},{"$f":"IF(INDIRECT(\"c\" & (VLOOKUP(Rebalance!$D$28,$F$2:$G$48,2,FALSE)+ROW()-2))=Rebalance!$D$28,INDIRECT(\"a\" & (VLOOKUP(Rebalance!$D$28,$F$2:$G$48,2,FALSE)+ROW()-2)),\"\")","v":{"$error":"#N/A"}},{"$f":"IF(INDIRECT(\"c\" & (VLOOKUP(Rebalance!$D$29,$F$2:$G$48,2,FALSE)+ROW()-2))=Rebalance!$D$29,INDIRECT(\"a\" & (VLOOKUP(Rebalance!$D$29,$F$2:$G$48,2,FALSE)+ROW()-2)),\"\")","v":{"$error":"#N/A"}},{"$f":"IF(INDIRECT(\"c\" & (VLOOKUP(Rebalance!$D$30,$F$2:$G$48,2,FALSE)+ROW()-2))=Rebalance!$D$30,INDIRECT(\"a\" & (VLOOKUP(Rebalance!$D$30,$F$2:$G$48,2,FALSE)+ROW()-2)),\"\")","v":{"$error":"#N/A"}},{"$f":"IF(INDIRECT(\"c\" & (VLOOKUP(Rebalance!$D$31,$F$2:$G$48,2,FALSE)+ROW()-2))=Rebalance!$D$31,INDIRECT(\"a\" & (VLOOKUP(Rebalance!$D$31,$F$2:$G$48,2,FALSE)+ROW()-2)),\"\")","v":{"$error":"#N/A"}},{"$f":"IF(INDIRECT(\"c\" & (VLOOKUP(Rebalance!$D$32,$F$2:$G$48,2,FALSE)+ROW()-2))=Rebalance!$D$32,INDIRECT(\"a\" & (VLOOKUP(Rebalance!$D$32,$F$2:$G$48,2,FALSE)+ROW()-2)),\"\")","v":{"$error":"#N/A"}},{"$f":"IF(INDIRECT(\"c\" & (VLOOKUP(Rebalance!$D$33,$F$2:$G$48,2,FALSE)+ROW()-2))=Rebalance!$D$33,INDIRECT(\"a\" & (VLOOKUP(Rebalance!$D$33,$F$2:$G$48,2,FALSE)+ROW()-2)),\"\")","v":{"$error":"#N/A"}},{"$f":"IF(INDIRECT(\"c\" & (VLOOKUP(Rebalance!$D$34,$F$2:$G$48,2,FALSE)+ROW()-2))=Rebalance!$D$34,INDIRECT(\"a\" & (VLOOKUP(Rebalance!$D$34,$F$2:$G$48,2,FALSE)+ROW()-2)),\"\")","v":{"$error":"#N/A"}},{"$f":"IF(INDIRECT(\"c\" & (VLOOKUP(Rebalance!$D$35,$F$2:$G$48,2,FALSE)+ROW()-2))=Rebalance!$D$35,INDIRECT(\"a\" & (VLOOKUP(Rebalance!$D$35,$F$2:$G$48,2,FALSE)+ROW()-2)),\"\")","v":{"$error":"#N/A"}},{"$f":"IF(INDIRECT(\"c\" & (VLOOKUP(Rebalance!$D$36,$F$2:$G$48,2,FALSE)+ROW()-2))=Rebalance!$D$36,INDIRECT(\"a\" & (VLOOKUP(Rebalance!$D$36,$F$2:$G$48,2,FALSE)+ROW()-2)),\"\")","v":{"$error":"#N/A"}},{"$f":"IF(INDIRECT(\"c\" & (VLOOKUP(Rebalance!$D$37,$F$2:$G$48,2,FALSE)+ROW()-2))=Rebalance!$D$37,INDIRECT(\"a\" & (VLOOKUP(Rebalance!$D$37,$F$2:$G$48,2,FALSE)+ROW()-2)),\"\")","v":{"$error":"#N/A"}},{"$f":"IF(INDIRECT(\"c\" & (VLOOKUP(Rebalance!$D$38,$F$2:$G$48,2,FALSE)+ROW()-2))=Rebalance!$D$38,INDIRECT(\"a\" & (VLOOKUP(Rebalance!$D$38,$F$2:$G$48,2,FALSE)+ROW()-2)),\"\")","v":{"$error":"#N/A"}},{"$f":"IF(INDIRECT(\"c\" & (VLOOKUP(Rebalance!$D$39,$F$2:$G$48,2,FALSE)+ROW()-2))=Rebalance!$D$39,INDIRECT(\"a\" & (VLOOKUP(Rebalance!$D$39,$F$2:$G$48,2,FALSE)+ROW()-2)),\"\")","v":{"$error":"#N/A"}},{"$f":"IF(INDIRECT(\"c\" & (VLOOKUP(Rebalance!$D$40,$F$2:$G$48,2,FALSE)+ROW()-2))=Rebalance!$D$40,INDIRECT(\"a\" & (VLOOKUP(Rebalance!$D$40,$F$2:$G$48,2,FALSE)+ROW()-2)),\"\")","v":{"$error":"#N/A"}},{"$f":"IF(INDIRECT(\"c\" & (VLOOKUP(Rebalance!$D$52,$F$2:$G$48,2,FALSE)+ROW()-2))=Rebalance!$D$52,INDIRECT(\"a\" & (VLOOKUP(Rebalance!$D$52,$F$2:$G$48,2,FALSE)+ROW()-2)),\"\")","v":{"$error":"#N/A"}},{"$f":"IF(INDIRECT(\"c\" & (VLOOKUP(Rebalance!$D$53,$F$2:$G$48,2,FALSE)+ROW()-2))=Rebalance!$D$53,INDIRECT(\"a\" & (VLOOKUP(Rebalance!$D$53,$F$2:$G$48,2,FALSE)+ROW()-2)),\"\")","v":{"$error":"#N/A"}},{"$f":"IF(INDIRECT(\"c\" & (VLOOKUP(Rebalance!$D$54,$F$2:$G$48,2,FALSE)+ROW()-2))=Rebalance!$D$54,INDIRECT(\"a\" & (VLOOKUP(Rebalance!$D$54,$F$2:$G$48,2,FALSE)+ROW()-2)),\"\")","v":{"$error":"#N/A"}},{"$f":"IF(INDIRECT(\"c\" & (VLOOKUP(Rebalance!$D$55,$F$2:$G$48,2,FALSE)+ROW()-2))=Rebalance!$D$55,INDIRECT(\"a\" & (VLOOKUP(Rebalance!$D$55,$F$2:$G$48,2,FALSE)+ROW()-2)),\"\")","v":{"$error":"#N/A"}},{"$f":"IF(INDIRECT(\"c\" & (VLOOKUP(Rebalance!$D$56,$F$2:$G$48,2,FALSE)+ROW()-2))=Rebalance!$D$56,INDIRECT(\"a\" & (VLOOKUP(Rebalance!$D$56,$F$2:$G$48,2,FALSE)+ROW()-2)),\"\")","v":{"$error":"#N/A"}},{"$f":"IF(INDIRECT(\"c\" & (VLOOKUP(Rebalance!$D$57,$F$2:$G$48,2,FALSE)+ROW()-2))=Rebalance!$D$57,INDIRECT(\"a\" & (VLOOKUP(Rebalance!$D$57,$F$2:$G$48,2,FALSE)+ROW()-2)),\"\")","v":{"$error":"#N/A"}},{"$f":"IF(INDIRECT(\"c\" & (VLOOKUP(Rebalance!$D$58,$F$2:$G$48,2,FALSE)+ROW()-2))=Rebalance!$D$58,INDIRECT(\"a\" & (VLOOKUP(Rebalance!$D$58,$F$2:$G$48,2,FALSE)+ROW()-2)),\"\")","v":{"$error":"#N/A"}},{"$f":"IF(INDIRECT(\"c\" & (VLOOKUP(Rebalance!$D$59,$F$2:$G$48,2,FALSE)+ROW()-2))=Rebalance!$D$59,INDIRECT(\"a\" & (VLOOKUP(Rebalance!$D$59,$F$2:$G$48,2,FALSE)+ROW()-2)),\"\")","v":{"$error":"#N/A"}},{"$f":"IF(INDIRECT(\"c\" & (VLOOKUP(Rebalance!$D$60,$F$2:$G$48,2,FALSE)+ROW()-2))=Rebalance!$D$60,INDIRECT(\"a\" & (VLOOKUP(Rebalance!$D$60,$F$2:$G$48,2,FALSE)+ROW()-2)),\"\")","v":{"$error":"#N/A"}},{"$f":"IF(INDIRECT(\"c\" & (VLOOKUP(Rebalance!$D$61,$F$2:$G$48,2,FALSE)+ROW()-2))=Rebalance!$D$61,INDIRECT(\"a\" & (VLOOKUP(Rebalance!$D$61,$F$2:$G$48,2,FALSE)+ROW()-2)),\"\")","v":{"$error":"#N/A"}},{"$f":"IF(INDIRECT(\"c\" & (VLOOKUP(Rebalance!$D$62,$F$2:$G$48,2,FALSE)+ROW()-2))=Rebalance!$D$62,INDIRECT(\"a\" & (VLOOKUP(Rebalance!$D$62,$F$2:$G$48,2,FALSE)+ROW()-2)),\"\")","v":{"$error":"#N/A"}},{"$f":"IF(INDIRECT(\"c\" & (VLOOKUP(Rebalance!$D$63,$F$2:$G$48,2,FALSE)+ROW()-2))=Rebalance!$D$63,INDIRECT(\"a\" & (VLOOKUP(Rebalance!$D$63,$F$2:$G$48,2,FALSE)+ROW()-2)),\"\")","v":{"$error":"#N/A"}},{"$f":"IF(INDIRECT(\"c\" & (VLOOKUP(Rebalance!$D$64,$F$2:$G$48,2,FALSE)+ROW()-2))=Rebalance!$D$64,INDIRECT(\"a\" & (VLOOKUP(Rebalance!$D$64,$F$2:$G$48,2,FALSE)+ROW()-2)),\"\")","v":{"$error":"#N/A"}},{"$f":"IF(INDIRECT(\"c\" & (VLOOKUP(Rebalance!$D$65,$F$2:$G$48,2,FALSE)+ROW()-2))=Rebalance!$D$65,INDIRECT(\"a\" & (VLOOKUP(Rebalance!$D$65,$F$2:$G$48,2,FALSE)+ROW()-2)),\"\")","v":{"$error":"#N/A"}},{"$f":"IF(INDIRECT(\"c\" & (VLOOKUP(Rebalance!$D$66,$F$2:$G$48,2,FALSE)+ROW()-2))=Rebalance!$D$66,INDIRECT(\"a\" & (VLOOKUP(Rebalance!$D$66,$F$2:$G$48,2,FALSE)+ROW()-2)),\"\")","v":{"$error":"#N/A"}}]
[null,null,null,{"$f":"ROW()","v":663},null,null,{"$f":"VLOOKUP(F663,$C$2:$D$599,2,FALSE)","v":{"$error":"#N/A"}},{"$f":"IF(INDIRECT(\"c\" & (VLOOKUP(Rebalance!$D$26,$F$2:$G$48,2,FALSE)+ROW()-2))=Rebalance!$D$26,INDIRECT(\"a\" & (VLOOKUP(Rebalance!$D$26,$F$2:$G$48,2,FALSE)+ROW()-2)),\"\")","v":{"$error":"#N/A"}},{"$f":"IF(INDIRECT(\"c\" & (VLOOKUP(Rebalance!$D$27,$F$2:$G$48,2,FALSE)+ROW()-2))=Rebalance!$D$27,INDIRECT(\"a\" & (VLOOKUP(Rebalance!$D$27,$F$2:$G$48,2,FALSE)+ROW()-2)),\"\")","v":{"$error":"#N/A"}},{"$f":"IF(INDIRECT(\"c\" & (VLOOKUP(Rebalance!$D$28,$F$2:$G$48,2,FALSE)+ROW()-2))=Rebalance!$D$28,INDIRECT(\"a\" & (VLOOKUP(Rebalance!$D$28,$F$2:$G$48,2,FALSE)+ROW()-2)),\"\")","v":{"$error":"#N/A"}},{"$f":"IF(INDIRECT(\"c\" & (VLOOKUP(Rebalance!$D$29,$F$2:$G$48,2,FALSE)+ROW()-2))=Rebalance!$D$29,INDIRECT(\"a\" & (VLOOKUP(Rebalance!$D$29,$F$2:$G$48,2,FALSE)+ROW()-2)),\"\")","v":{"$error":"#N/A"}},{"$f":"IF(INDIRECT(\"c\" & (VLOOKUP(Rebalance!$D$30,$F$2:$G$48,2,FALSE)+ROW()-2))=Rebalance!$D$30,INDIRECT(\"a\" & (VLOOKUP(Rebalance!$D$30,$F$2:$G$48,2,FALSE)+ROW()-2)),\"\")","v":{"$error":"#N/A"}},{"$f":"IF(INDIRECT(\"c\" & (VLOOKUP(Rebalance!$D$31,$F$2:$G$48,2,FALSE)+ROW()-2))=Rebalance!$D$31,INDIRECT(\"a\" & (VLOOKUP(Rebalance!$D$31,$F$2:$G$48,2,FALSE)+ROW()-2)),\"\")","v":{"$error":"#N/A"}},{"$f":"IF(INDIRECT(\"c\" & (VLOOKUP(Rebalance!$D$32,$F$2:$G$48,2,FALSE)+ROW()-2))=Rebalance!$D$32,INDIRECT(\"a\" & (VLOOKUP(Rebalance!$D$32,$F$2:$G$48,2,FALSE)+ROW()-2)),\"\")","v":{"$error":"#N/A"}},{"$f":"IF(INDIRECT(\"c\" & (VLOOKUP(Rebalance!$D$33,$F$2:$G$48,2,FALSE)+ROW()-2))=Rebalance!$D$33,INDIRECT(\"a\" & (VLOOKUP(Rebalance!$D$33,$F$2:$G$48,2,FALSE)+ROW()-2)),\"\")","v":{"$error":"#N/A"}},{"$f":"IF(INDIRECT(\"c\" & (VLOOKUP(Rebalance!$D$34,$F$2:$G$48,2,FALSE)+ROW()-2))=Rebalance!$D$34,INDIRECT(\"a\" & (VLOOKUP(Rebalance!$D$34,$F$2:$G$48,2,FALSE)+ROW()-2)),\"\")","v":{"$error":"#N/A"}},{"$f":"IF(INDIRECT(\"c\" & (VLOOKUP(Rebalance!$D$35,$F$2:$G$48,2,FALSE)+ROW()-2))=Rebalance!$D$35,INDIRECT(\"a\" & (VLOOKUP(Rebalance!$D$35,$F$2:$G$48,2,FALSE)+ROW()-2)),\"\")","v":{"$error":"#N/A"}},{"$f":"IF(INDIRECT(\"c\" & (VLOOKUP(Rebalance!$D$36,$F$2:$G$48,2,FALSE)+ROW()-2))=Rebalance!$D$36,INDIRECT(\"a\" & (VLOOKUP(Rebalance!$D$36,$F$2:$G$48,2,FALSE)+ROW()-2)),\"\")","v":{"$error":"#N/A"}},{"$f":"IF(INDIRECT(\"c\" & (VLOOKUP(Rebalance!$D$37,$F$2:$G$48,2,FALSE)+ROW()-2))=Rebalance!$D$37,INDIRECT(\"a\" & (VLOOKUP(Rebalance!$D$37,$F$2:$G$48,2,FALSE)+ROW()-2)),\"\")","v":{"$error":"#N/A"}},{"$f":"IF(INDIRECT(\"c\" & (VLOOKUP(Rebalance!$D$38,$F$2:$G$48,2,FALSE)+ROW()-2))=Rebalance!$D$38,INDIRECT(\"a\" & (VLOOKUP(Rebalance!$D$38,$F$2:$G$48,2,FALSE)+ROW()-2)),\"\")","v":{"$error":"#N/A"}},{"$f":"IF(INDIRECT(\"c\" & (VLOOKUP(Rebalance!$D$39,$F$2:$G$48,2,FALSE)+ROW()-2))=Rebalance!$D$39,INDIRECT(\"a\" & (VLOOKUP(Rebalance!$D$39,$F$2:$G$48,2,FALSE)+ROW()-2)),\"\")","v":{"$error":"#N/A"}},{"$f":"IF(INDIRECT(\"c\" & (VLOOKUP(Rebalance!$D$40,$F$2:$G$48,2,FALSE)+ROW()-2))=Rebalance!$D$40,INDIRECT(\"a\" & (VLOOKUP(Rebalance!$D$40,$F$2:$G$48,2,FALSE)+ROW()-2)),\"\")","v":{"$error":"#N/A"}},{"$f":"IF(INDIRECT(\"c\" & (VLOOKUP(Rebalance!$D$52,$F$2:$G$48,2,FALSE)+ROW()-2))=Rebalance!$D$52,INDIRECT(\"a\" & (VLOOKUP(Rebalance!$D$52,$F$2:$G$48,2,FALSE)+ROW()-2)),\"\")","v":{"$error":"#N/A"}},{"$f":"IF(INDIRECT(\"c\" & (VLOOKUP(Rebalance!$D$53,$F$2:$G$48,2,FALSE)+ROW()-2))=Rebalance!$D$53,INDIRECT(\"a\" & (VLOOKUP(Rebalance!$D$53,$F$2:$G$48,2,FALSE)+ROW()-2)),\"\")","v":{"$error":"#N/A"}},{"$f":"IF(INDIRECT(\"c\" & (VLOOKUP(Rebalance!$D$54,$F$2:$G$48,2,FALSE)+ROW()-2))=Rebalance!$D$54,INDIRECT(\"a\" & (VLOOKUP(Rebalance!$D$54,$F$2:$G$48,2,FALSE)+ROW()-2)),\"\")","v":{"$error":"#N/A"}},{"$f":"IF(INDIRECT(\"c\" & (VLOOKUP(Rebalance!$D$55,$F$2:$G$48,2,FALSE)+ROW()-2))=Rebalance!$D$55,INDIRECT(\"a\" & (VLOOKUP(Rebalance!$D$55,$F$2:$G$48,2,FALSE)+ROW()-2)),\"\")","v":{"$error":"#N/A"}},{"$f":"IF(INDIRECT(\"c\" & (VLOOKUP(Rebalance!$D$56,$F$2:$G$48,2,FALSE)+ROW()-2))=Rebalance!$D$56,INDIRECT(\"a\" & (VLOOKUP(Rebalance!$D$56,$F$2:$G$48,2,FALSE)+ROW()-2)),\"\")","v":{"$error":"#N/A"}},{"$f":"IF(INDIRECT(\"c\" & (VLOOKUP(Rebalance!$D$57,$F$2:$G$48,2,FALSE)+ROW()-2))=Rebalance!$D$57,INDIRECT(\"a\" & (VLOOKUP(Rebalance!$D$57,$F$2:$G$48,2,FALSE)+ROW()-2)),\"\")","v":{"$error":"#N/A"}},{"$f":"IF(INDIRECT(\"c\" & (VLOOKUP(Rebalance!$D$58,$F$2:$G$48,2,FALSE)+ROW()-2))=Rebalance!$D$58,INDIRECT(\"a\" & (VLOOKUP(Rebalance!$D$58,$F$2:$G$48,2,FALSE)+ROW()-2)),\"\")","v":{"$error":"#N/A"}},{"$f":"IF(INDIRECT(\"c\" & (VLOOKUP(Rebalance!$D$59,$F$2:$G$48,2,FALSE)+ROW()-2))=Rebalance!$D$59,INDIRECT(\"a\" & (VLOOKUP(Rebalance!$D$59,$F$2:$G$48,2,FALSE)+ROW()-2)),\"\")","v":{"$error":"#N/A"}},{"$f":"IF(INDIRECT(\"c\" & (VLOOKUP(Rebalance!$D$60,$F$2:$G$48,2,FALSE)+ROW()-2))=Rebalance!$D$60,INDIRECT(\"a\" & (VLOOKUP(Rebalance!$D$60,$F$2:$G$48,2,FALSE)+ROW()-2)),\"\")","v":{"$error":"#N/A"}},{"$f":"IF(INDIRECT(\"c\" & (VLOOKUP(Rebalance!$D$61,$F$2:$G$48,2,FALSE)+ROW()-2))=Rebalance!$D$61,INDIRECT(\"a\" & (VLOOKUP(Rebalance!$D$61,$F$2:$G$48,2,FALSE)+ROW()-2)),\"\")","v":{"$error":"#N/A"}},{"$f":"IF(INDIRECT(\"c\" & (VLOOKUP(Rebalance!$D$62,$F$2:$G$48,2,FALSE)+ROW()-2))=Rebalance!$D$62,INDIRECT(\"a\" & (VLOOKUP(Rebalance!$D$62,$F$2:$G$48,2,FALSE)+ROW()-2)),\"\")","v":{"$error":"#N/A"}},{"$f":"IF(INDIRECT(\"c\" & (VLOOKUP(Rebalance!$D$63,$F$2:$G$48,2,FALSE)+ROW()-2))=Rebalance!$D$63,INDIRECT(\"a\" & (VLOOKUP(Rebalance!$D$63,$F$2:$G$48,2,FALSE)+ROW()-2)),\"\")","v":{"$error":"#N/A"}},{"$f":"IF(INDIRECT(\"c\" & (VLOOKUP(Rebalance!$D$64,$F$2:$G$48,2,FALSE)+ROW()-2))=Rebalance!$D$64,INDIRECT(\"a\" & (VLOOKUP(Rebalance!$D$64,$F$2:$G$48,2,FALSE)+ROW()-2)),\"\")","v":{"$error":"#N/A"}},{"$f":"IF(INDIRECT(\"c\" & (VLOOKUP(Rebalance!$D$65,$F$2:$G$48,2,FALSE)+ROW()-2))=Rebalance!$D$65,INDIRECT(\"a\" & (VLOOKUP(Rebalance!$D$65,$F$2:$G$48,2,FALSE)+ROW()-2)),\"\")","v":{"$error":"#N/A"}},{"$f":"IF(INDIRECT(\"c\" & (VLOOKUP(Rebalance!$D$66,$F$2:$G$48,2,FALSE)+ROW()-2))=Rebalance!$D$66,INDIRECT(\"a\" & (VLOOKUP(Rebalance!$D$66,$F$2:$G$48,2,FALSE)+ROW()-2)),\"\")","v":{"$error":"#N/A"}}]
[null,null,null,{"$f":"ROW()","v":664},null,null,{"$f":"VLOOKUP(F664,$C$2:$D$599,2,FALSE)","v":{"$error":"#N/A"}},{"$f":"IF(INDIRECT(\"c\" & (VLOOKUP(Rebalance!$D$26,$F$2:$G$48,2,FALSE)+ROW()-2))=Rebalance!$D$26,INDIRECT(\"a\" & (VLOOKUP(Rebalance!$D$26,$F$2:$G$48,2,FALSE)+ROW()-2)),\"\")","v":{"$error":"#N/A"}},{"$f":"IF(INDIRECT(\"c\" & (VLOOKUP(Rebalance!$D$27,$F$2:$G$48,2,FALSE)+ROW()-2))=Rebalance!$D$27,INDIRECT(\"a\" & (VLOOKUP(Rebalance!$D$27,$F$2:$G$48,2,FALSE)+ROW()-2)),\"\")","v":{"$error":"#N/A"}},{"$f":"IF(INDIRECT(\"c\" & (VLOOKUP(Rebalance!$D$28,$F$2:$G$48,2,FALSE)+ROW()-2))=Rebalance!$D$28,INDIRECT(\"a\" & (VLOOKUP(Rebalance!$D$28,$F$2:$G$48,2,FALSE)+ROW()-2)),\"\")","v":{"$error":"#N/A"}},{"$f":"IF(INDIRECT(\"c\" & (VLOOKUP(Rebalance!$D$29,$F$2:$G$48,2,FALSE)+ROW()-2))=Rebalance!$D$29,INDIRECT(\"a\" & (VLOOKUP(Rebalance!$D$29,$F$2:$G$48,2,FALSE)+ROW()-2)),\"\")","v":{"$error":"#N/A"}},{"$f":"IF(INDIRECT(\"c\" & (VLOOKUP(Rebalance!$D$30,$F$2:$G$48,2,FALSE)+ROW()-2))=Rebalance!$D$30,INDIRECT(\"a\" & (VLOOKUP(Rebalance!$D$30,$F$2:$G$48,2,FALSE)+ROW()-2)),\"\")","v":{"$error":"#N/A"}},{"$f":"IF(INDIRECT(\"c\" & (VLOOKUP(Rebalance!$D$31,$F$2:$G$48,2,FALSE)+ROW()-2))=Rebalance!$D$31,INDIRECT(\"a\" & (VLOOKUP(Rebalance!$D$31,$F$2:$G$48,2,FALSE)+ROW()-2)),\"\")","v":{"$error":"#N/A"}},{"$f":"IF(INDIRECT(\"c\" & (VLOOKUP(Rebalance!$D$32,$F$2:$G$48,2,FALSE)+ROW()-2))=Rebalance!$D$32,INDIRECT(\"a\" & (VLOOKUP(Rebalance!$D$32,$F$2:$G$48,2,FALSE)+ROW()-2)),\"\")","v":{"$error":"#N/A"}},{"$f":"IF(INDIRECT(\"c\" & (VLOOKUP(Rebalance!$D$33,$F$2:$G$48,2,FALSE)+ROW()-2))=Rebalance!$D$33,INDIRECT(\"a\" & (VLOOKUP(Rebalance!$D$33,$F$2:$G$48,2,FALSE)+ROW()-2)),\"\")","v":{"$error":"#N/A"}},{"$f":"IF(INDIRECT(\"c\" & (VLOOKUP(Rebalance!$D$34,$F$2:$G$48,2,FALSE)+ROW()-2))=Rebalance!$D$34,INDIRECT(\"a\" & (VLOOKUP(Rebalance!$D$34,$F$2:$G$48,2,FALSE)+ROW()-2)),\"\")","v":{"$error":"#N/A"}},{"$f":"IF(INDIRECT(\"c\" & (VLOOKUP(Rebalance!$D$35,$F$2:$G$48,2,FALSE)+ROW()-2))=Rebalance!$D$35,INDIRECT(\"a\" & (VLOOKUP(Rebalance!$D$35,$F$2:$G$48,2,FALSE)+ROW()-2)),\"\")","v":{"$error":"#N/A"}},{"$f":"IF(INDIRECT(\"c\" & (VLOOKUP(Rebalance!$D$36,$F$2:$G$48,2,FALSE)+ROW()-2))=Rebalance!$D$36,INDIRECT(\"a\" & (VLOOKUP(Rebalance!$D$36,$F$2:$G$48,2,FALSE)+ROW()-2)),\"\")","v":{"$error":"#N/A"}},{"$f":"IF(INDIRECT(\"c\" & (VLOOKUP(Rebalance!$D$37,$F$2:$G$48,2,FALSE)+ROW()-2))=Rebalance!$D$37,INDIRECT(\"a\" & (VLOOKUP(Rebalance!$D$37,$F$2:$G$48,2,FALSE)+ROW()-2)),\"\")","v":{"$error":"#N/A"}},{"$f":"IF(INDIRECT(\"c\" & (VLOOKUP(Rebalance!$D$38,$F$2:$G$48,2,FALSE)+ROW()-2))=Rebalance!$D$38,INDIRECT(\"a\" & (VLOOKUP(Rebalance!$D$38,$F$2:$G$48,2,FALSE)+ROW()-2)),\"\")","v":{"$error":"#N/A"}},{"$f":"IF(INDIRECT(\"c\" & (VLOOKUP(Rebalance!$D$39,$F$2:$G$48,2,FALSE)+ROW()-2))=Rebalance!$D$39,INDIRECT(\"a\" & (VLOOKUP(Rebalance!$D$39,$F$2:$G$48,2,FALSE)+ROW()-2)),\"\")","v":{"$error":"#N/A"}},{"$f":"IF(INDIRECT(\"c\" & (VLOOKUP(Rebalance!$D$40,$F$2:$G$48,2,FALSE)+ROW()-2))=Rebalance!$D$40,INDIRECT(\"a\" & (VLOOKUP(Rebalance!$D$40,$F$2:$G$48,2,FALSE)+ROW()-2)),\"\")","v":{"$error":"#N/A"}},{"$f":"IF(INDIRECT(\"c\" & (VLOOKUP(Rebalance!$D$52,$F$2:$G$48,2,FALSE)+ROW()-2))=Rebalance!$D$52,INDIRECT(\"a\" & (VLOOKUP(Rebalance!$D$52,$F$2:$G$48,2,FALSE)+ROW()-2)),\"\")","v":{"$error":"#N/A"}},{"$f":"IF(INDIRECT(\"c\" & (VLOOKUP(Rebalance!$D$53,$F$2:$G$48,2,FALSE)+ROW()-2))=Rebalance!$D$53,INDIRECT(\"a\" & (VLOOKUP(Rebalance!$D$53,$F$2:$G$48,2,FALSE)+ROW()-2)),\"\")","v":{"$error":"#N/A"}},{"$f":"IF(INDIRECT(\"c\" & (VLOOKUP(Rebalance!$D$54,$F$2:$G$48,2,FALSE)+ROW()-2))=Rebalance!$D$54,INDIRECT(\"a\" & (VLOOKUP(Rebalance!$D$54,$F$2:$G$48,2,FALSE)+ROW()-2)),\"\")","v":{"$error":"#N/A"}},{"$f":"IF(INDIRECT(\"c\" & (VLOOKUP(Rebalance!$D$55,$F$2:$G$48,2,FALSE)+ROW()-2))=Rebalance!$D$55,INDIRECT(\"a\" & (VLOOKUP(Rebalance!$D$55,$F$2:$G$48,2,FALSE)+ROW()-2)),\"\")","v":{"$error":"#N/A"}},{"$f":"IF(INDIRECT(\"c\" & (VLOOKUP(Rebalance!$D$56,$F$2:$G$48,2,FALSE)+ROW()-2))=Rebalance!$D$56,INDIRECT(\"a\" & (VLOOKUP(Rebalance!$D$56,$F$2:$G$48,2,FALSE)+ROW()-2)),\"\")","v":{"$error":"#N/A"}},{"$f":"IF(INDIRECT(\"c\" & (VLOOKUP(Rebalance!$D$57,$F$2:$G$48,2,FALSE)+ROW()-2))=Rebalance!$D$57,INDIRECT(\"a\" & (VLOOKUP(Rebalance!$D$57,$F$2:$G$48,2,FALSE)+ROW()-2)),\"\")","v":{"$error":"#N/A"}},{"$f":"IF(INDIRECT(\"c\" & (VLOOKUP(Rebalance!$D$58,$F$2:$G$48,2,FALSE)+ROW()-2))=Rebalance!$D$58,INDIRECT(\"a\" & (VLOOKUP(Rebalance!$D$58,$F$2:$G$48,2,FALSE)+ROW()-2)),\"\")","v":{"$error":"#N/A"}},{"$f":"IF(INDIRECT(\"c\" & (VLOOKUP(Rebalance!$D$59,$F$2:$G$48,2,FALSE)+ROW()-2))=Rebalance!$D$59,INDIRECT(\"a\" & (VLOOKUP(Rebalance!$D$59,$F$2:$G$48,2,FALSE)+ROW()-2)),\"\")","v":{"$error":"#N/A"}},{"$f":"IF(INDIRECT(\"c\" & (VLOOKUP(Rebalance!$D$60,$F$2:$G$48,2,FALSE)+ROW()-2))=Rebalance!$D$60,INDIRECT(\"a\" & (VLOOKUP(Rebalance!$D$60,$F$2:$G$48,2,FALSE)+ROW()-2)),\"\")","v":{"$error":"#N/A"}},{"$f":"IF(INDIRECT(\"c\" & (VLOOKUP(Rebalance!$D$61,$F$2:$G$48,2,FALSE)+ROW()-2))=Rebalance!$D$61,INDIRECT(\"a\" & (VLOOKUP(Rebalance!$D$61,$F$2:$G$48,2,FALSE)+ROW()-2)),\"\")","v":{"$error":"#N/A"}},{"$f":"IF(INDIRECT(\"c\" & (VLOOKUP(Rebalance!$D$62,$F$2:$G$48,2,FALSE)+ROW()-2))=Rebalance!$D$62,INDIRECT(\"a\" & (VLOOKUP(Rebalance!$D$62,$F$2:$G$48,2,FALSE)+ROW()-2)),\"\")","v":{"$error":"#N/A"}},{"$f":"IF(INDIRECT(\"c\" & (VLOOKUP(Rebalance!$D$63,$F$2:$G$48,2,FALSE)+ROW()-2))=Rebalance!$D$63,INDIRECT(\"a\" & (VLOOKUP(Rebalance!$D$63,$F$2:$G$48,2,FALSE)+ROW()-2)),\"\")","v":{"$error":"#N/A"}},{"$f":"IF(INDIRECT(\"c\" & (VLOOKUP(Rebalance!$D$64,$F$2:$G$48,2,FALSE)+ROW()-2))=Rebalance!$D$64,INDIRECT(\"a\" & (VLOOKUP(Rebalance!$D$64,$F$2:$G$48,2,FALSE)+ROW()-2)),\"\")","v":{"$error":"#N/A"}},{"$f":"IF(INDIRECT(\"c\" & (VLOOKUP(Rebalance!$D$65,$F$2:$G$48,2,FALSE)+ROW()-2))=Rebalance!$D$65,INDIRECT(\"a\" & (VLOOKUP(Rebalance!$D$65,$F$2:$G$48,2,FALSE)+ROW()-2)),\"\")","v":{"$error":"#N/A"}},{"$f":"IF(INDIRECT(\"c\" & (VLOOKUP(Rebalance!$D$66,$F$2:$G$48,2,FALSE)+ROW()-2))=Rebalance!$D$66,INDIRECT(\"a\" & (VLOOKUP(Rebalance!$D$66,$F$2:$G$48,2,FALSE)+ROW()-2)),\"\")","v":{"$error":"#N/A"}}]
[null,null,null,{"$f":"ROW()","v":665},null,null,{"$f":"VLOOKUP(F665,$C$2:$D$599,2,FALSE)","v":{"$error":"#N/A"}},{"$f":"IF(INDIRECT(\"c\" & (VLOOKUP(Rebalance!$D$26,$F$2:$G$48,2,FALSE)+ROW()-2))=Rebalance!$D$26,INDIRECT(\"a\" & (VLOOKUP(Rebalance!$D$26,$F$2:$G$48,2,FALSE)+ROW()-2)),\"\")","v":{"$error":"#N/A"}},{"$f":"IF(INDIRECT(\"c\" & (VLOOKUP(Rebalance!$D$27,$F$2:$G$48,2,FALSE)+ROW()-2))=Rebalance!$D$27,INDIRECT(\"a\" & (VLOOKUP(Rebalance!$D$27,$F$2:$G$48,2,FALSE)+ROW()-2)),\"\")","v":{"$error":"#N/A"}},{"$f":"IF(INDIRECT(\"c\" & (VLOOKUP(Rebalance!$D$28,$F$2:$G$48,2,FALSE)+ROW()-2))=Rebalance!$D$28,INDIRECT(\"a\" & (VLOOKUP(Rebalance!$D$28,$F$2:$G$48,2,FALSE)+ROW()-2)),\"\")","v":{"$error":"#N/A"}},{"$f":"IF(INDIRECT(\"c\" & (VLOOKUP(Rebalance!$D$29,$F$2:$G$48,2,FALSE)+ROW()-2))=Rebalance!$D$29,INDIRECT(\"a\" & (VLOOKUP(Rebalance!$D$29,$F$2:$G$48,2,FALSE)+ROW()-2)),\"\")","v":{"$error":"#N/A"}},{"$f":"IF(INDIRECT(\"c\" & (VLOOKUP(Rebalance!$D$30,$F$2:$G$48,2,FALSE)+ROW()-2))=Rebalance!$D$30,INDIRECT(\"a\" & (VLOOKUP(Rebalance!$D$30,$F$2:$G$48,2,FALSE)+ROW()-2)),\"\")","v":{"$error":"#N/A"}},{"$f":"IF(INDIRECT(\"c\" & (VLOOKUP(Rebalance!$D$31,$F$2:$G$48,2,FALSE)+ROW()-2))=Rebalance!$D$31,INDIRECT(\"a\" & (VLOOKUP(Rebalance!$D$31,$F$2:$G$48,2,FALSE)+ROW()-2)),\"\")","v":{"$error":"#N/A"}},{"$f":"IF(INDIRECT(\"c\" & (VLOOKUP(Rebalance!$D$32,$F$2:$G$48,2,FALSE)+ROW()-2))=Rebalance!$D$32,INDIRECT(\"a\" & (VLOOKUP(Rebalance!$D$32,$F$2:$G$48,2,FALSE)+ROW()-2)),\"\")","v":{"$error":"#N/A"}},{"$f":"IF(INDIRECT(\"c\" & (VLOOKUP(Rebalance!$D$33,$F$2:$G$48,2,FALSE)+ROW()-2))=Rebalance!$D$33,INDIRECT(\"a\" & (VLOOKUP(Rebalance!$D$33,$F$2:$G$48,2,FALSE)+ROW()-2)),\"\")","v":{"$error":"#N/A"}},{"$f":"IF(INDIRECT(\"c\" & (VLOOKUP(Rebalance!$D$34,$F$2:$G$48,2,FALSE)+ROW()-2))=Rebalance!$D$34,INDIRECT(\"a\" & (VLOOKUP(Rebalance!$D$34,$F$2:$G$48,2,FALSE)+ROW()-2)),\"\")","v":{"$error":"#N/A"}},{"$f":"IF(INDIRECT(\"c\" & (VLOOKUP(Rebalance!$D$35,$F$2:$G$48,2,FALSE)+ROW()-2))=Rebalance!$D$35,INDIRECT(\"a\" & (VLOOKUP(Rebalance!$D$35,$F$2:$G$48,2,FALSE)+ROW()-2)),\"\")","v":{"$error":"#N/A"}},{"$f":"IF(INDIRECT(\"c\" & (VLOOKUP(Rebalance!$D$36,$F$2:$G$48,2,FALSE)+ROW()-2))=Rebalance!$D$36,INDIRECT(\"a\" & (VLOOKUP(Rebalance!$D$36,$F$2:$G$48,2,FALSE)+ROW()-2)),\"\")","v":{"$error":"#N/A"}},{"$f":"IF(INDIRECT(\"c\" & (VLOOKUP(Rebalance!$D$37,$F$2:$G$48,2,FALSE)+ROW()-2))=Rebalance!$D$37,INDIRECT(\"a\" & (VLOOKUP(Rebalance!$D$37,$F$2:$G$48,2,FALSE)+ROW()-2)),\"\")","v":{"$error":"#N/A"}},{"$f":"IF(INDIRECT(\"c\" & (VLOOKUP(Rebalance!$D$38,$F$2:$G$48,2,FALSE)+ROW()-2))=Rebalance!$D$38,INDIRECT(\"a\" & (VLOOKUP(Rebalance!$D$38,$F$2:$G$48,2,FALSE)+ROW()-2)),\"\")","v":{"$error":"#N/A"}},{"$f":"IF(INDIRECT(\"c\" & (VLOOKUP(Rebalance!$D$39,$F$2:$G$48,2,FALSE)+ROW()-2))=Rebalance!$D$39,INDIRECT(\"a\" & (VLOOKUP(Rebalance!$D$39,$F$2:$G$48,2,FALSE)+ROW()-2)),\"\")","v":{"$error":"#N/A"}},{"$f":"IF(INDIRECT(\"c\" & (VLOOKUP(Rebalance!$D$40,$F$2:$G$48,2,FALSE)+ROW()-2))=Rebalance!$D$40,INDIRECT(\"a\" & (VLOOKUP(Rebalance!$D$40,$F$2:$G$48,2,FALSE)+ROW()-2)),\"\")","v":{"$error":"#N/A"}},{"$f":"IF(INDIRECT(\"c\" & (VLOOKUP(Rebalance!$D$52,$F$2:$G$48,2,FALSE)+ROW()-2))=Rebalance!$D$52,INDIRECT(\"a\" & (VLOOKUP(Rebalance!$D$52,$F$2:$G$48,2,FALSE)+ROW()-2)),\"\")","v":{"$error":"#N/A"}},{"$f":"IF(INDIRECT(\"c\" & (VLOOKUP(Rebalance!$D$53,$F$2:$G$48,2,FALSE)+ROW()-2))=Rebalance!$D$53,INDIRECT(\"a\" & (VLOOKUP(Rebalance!$D$53,$F$2:$G$48,2,FALSE)+ROW()-2)),\"\")","v":{"$error":"#N/A"}},{"$f":"IF(INDIRECT(\"c\" & (VLOOKUP(Rebalance!$D$54,$F$2:$G$48,2,FALSE)+ROW()-2))=Rebalance!$D$54,INDIRECT(\"a\" & (VLOOKUP(Rebalance!$D$54,$F$2:$G$48,2,FALSE)+ROW()-2)),\"\")","v":{"$error":"#N/A"}},{"$f":"IF(INDIRECT(\"c\" & (VLOOKUP(Rebalance!$D$55,$F$2:$G$48,2,FALSE)+ROW()-2))=Rebalance!$D$55,INDIRECT(\"a\" & (VLOOKUP(Rebalance!$D$55,$F$2:$G$48,2,FALSE)+ROW()-2)),\"\")","v":{"$error":"#N/A"}},{"$f":"IF(INDIRECT(\"c\" & (VLOOKUP(Rebalance!$D$56,$F$2:$G$48,2,FALSE)+ROW()-2))=Rebalance!$D$56,INDIRECT(\"a\" & (VLOOKUP(Rebalance!$D$56,$F$2:$G$48,2,FALSE)+ROW()-2)),\"\")","v":{"$error":"#N/A"}},{"$f":"IF(INDIRECT(\"c\" & (VLOOKUP(Rebalance!$D$57,$F$2:$G$48,2,FALSE)+ROW()-2))=Rebalance!$D$57,INDIRECT(\"a\" & (VLOOKUP(Rebalance!$D$57,$F$2:$G$48,2,FALSE)+ROW()-2)),\"\")","v":{"$error":"#N/A"}},{"$f":"IF(INDIRECT(\"c\" & (VLOOKUP(Rebalance!$D$58,$F$2:$G$48,2,FALSE)+ROW()-2))=Rebalance!$D$58,INDIRECT(\"a\" & (VLOOKUP(Rebalance!$D$58,$F$2:$G$48,2,FALSE)+ROW()-2)),\"\")","v":{"$error":"#N/A"}},{"$f":"IF(INDIRECT(\"c\" & (VLOOKUP(Rebalance!$D$59,$F$2:$G$48,2,FALSE)+ROW()-2))=Rebalance!$D$59,INDIRECT(\"a\" & (VLOOKUP(Rebalance!$D$59,$F$2:$G$48,2,FALSE)+ROW()-2)),\"\")","v":{"$error":"#N/A"}},{"$f":"IF(INDIRECT(\"c\" & (VLOOKUP(Rebalance!$D$60,$F$2:$G$48,2,FALSE)+ROW()-2))=Rebalance!$D$60,INDIRECT(\"a\" & (VLOOKUP(Rebalance!$D$60,$F$2:$G$48,2,FALSE)+ROW()-2)),\"\")","v":{"$error":"#N/A"}},{"$f":"IF(INDIRECT(\"c\" & (VLOOKUP(Rebalance!$D$61,$F$2:$G$48,2,FALSE)+ROW()-2))=Rebalance!$D$61,INDIRECT(\"a\" & (VLOOKUP(Rebalance!$D$61,$F$2:$G$48,2,FALSE)+ROW()-2)),\"\")","v":{"$error":"#N/A"}},{"$f":"IF(INDIRECT(\"c\" & (VLOOKUP(Rebalance!$D$62,$F$2:$G$48,2,FALSE)+ROW()-2))=Rebalance!$D$62,INDIRECT(\"a\" & (VLOOKUP(Rebalance!$D$62,$F$2:$G$48,2,FALSE)+ROW()-2)),\"\")","v":{"$error":"#N/A"}},{"$f":"IF(INDIRECT(\"c\" & (VLOOKUP(Rebalance!$D$63,$F$2:$G$48,2,FALSE)+ROW()-2))=Rebalance!$D$63,INDIRECT(\"a\" & (VLOOKUP(Rebalance!$D$63,$F$2:$G$48,2,FALSE)+ROW()-2)),\"\")","v":{"$error":"#N/A"}},{"$f":"IF(INDIRECT(\"c\" & (VLOOKUP(Rebalance!$D$64,$F$2:$G$48,2,FALSE)+ROW()-2))=Rebalance!$D$64,INDIRECT(\"a\" & (VLOOKUP(Rebalance!$D$64,$F$2:$G$48,2,FALSE)+ROW()-2)),\"\")","v":{"$error":"#N/A"}},{"$f":"IF(INDIRECT(\"c\" & (VLOOKUP(Rebalance!$D$65,$F$2:$G$48,2,FALSE)+ROW()-2))=Rebalance!$D$65,INDIRECT(\"a\" & (VLOOKUP(Rebalance!$D$65,$F$2:$G$48,2,FALSE)+ROW()-2)),\"\")","v":{"$error":"#N/A"}},{"$f":"IF(INDIRECT(\"c\" & (VLOOKUP(Rebalance!$D$66,$F$2:$G$48,2,FALSE)+ROW()-2))=Rebalance!$D$66,INDIRECT(\"a\" & (VLOOKUP(Rebalance!$D$66,$F$2:$G$48,2,FALSE)+ROW()-2)),\"\")","v":{"$error":"#N/A"}}]
[null,null,null,{"$f":"ROW()","v":666},null,null,{"$f":"VLOOKUP(F666,$C$2:$D$599,2,FALSE)","v":{"$error":"#N/A"}},{"$f":"IF(INDIRECT(\"c\" & (VLOOKUP(Rebalance!$D$26,$F$2:$G$48,2,FALSE)+ROW()-2))=Rebalance!$D$26,INDIRECT(\"a\" & (VLOOKUP(Rebalance!$D$26,$F$2:$G$48,2,FALSE)+ROW()-2)),\"\")","v":{"$error":"#N/A"}},{"$f":"IF(INDIRECT(\"c\" & (VLOOKUP(Rebalance!$D$27,$F$2:$G$48,2,FALSE)+ROW()-2))=Rebalance!$D$27,INDIRECT(\"a\" & (VLOOKUP(Rebalance!$D$27,$F$2:$G$48,2,FALSE)+ROW()-2)),\"\")","v":{"$error":"#N/A"}},{"$f":"IF(INDIRECT(\"c\" & (VLOOKUP(Rebalance!$D$28,$F$2:$G$48,2,FALSE)+ROW()-2))=Rebalance!$D$28,INDIRECT(\"a\" & (VLOOKUP(Rebalance!$D$28,$F$2:$G$48,2,FALSE)+ROW()-2)),\"\")","v":{"$error":"#N/A"}},{"$f":"IF(INDIRECT(\"c\" & (VLOOKUP(Rebalance!$D$29,$F$2:$G$48,2,FALSE)+ROW()-2))=Rebalance!$D$29,INDIRECT(\"a\" & (VLOOKUP(Rebalance!$D$29,$F$2:$G$48,2,FALSE)+ROW()-2)),\"\")","v":{"$error":"#N/A"}},{"$f":"IF(INDIRECT(\"c\" & (VLOOKUP(Rebalance!$D$30,$F$2:$G$48,2,FALSE)+ROW()-2))=Rebalance!$D$30,INDIRECT(\"a\" & (VLOOKUP(Rebalance!$D$30,$F$2:$G$48,2,FALSE)+ROW()-2)),\"\")","v":{"$error":"#N/A"}},{"$f":"IF(INDIRECT(\"c\" & (VLOOKUP(Rebalance!$D$31,$F$2:$G$48,2,FALSE)+ROW()-2))=Rebalance!$D$31,INDIRECT(\"a\" & (VLOOKUP(Rebalance!$D$31,$F$2:$G$48,2,FALSE)+ROW()-2)),\"\")","v":{"$error":"#N/A"}},{"$f":"IF(INDIRECT(\"c\" & (VLOOKUP(Rebalance!$D$32,$F$2:$G$48,2,FALSE)+ROW()-2))=Rebalance!$D$32,INDIRECT(\"a\" & (VLOOKUP(Rebalance!$D$32,$F$2:$G$48,2,FALSE)+ROW()-2)),\"\")","v":{"$error":"#N/A"}},{"$f":"IF(INDIRECT(\"c\" & (VLOOKUP(Rebalance!$D$33,$F$2:$G$48,2,FALSE)+ROW()-2))=Rebalance!$D$33,INDIRECT(\"a\" & (VLOOKUP(Rebalance!$D$33,$F$2:$G$48,2,FALSE)+ROW()-2)),\"\")","v":{"$error":"#N/A"}},{"$f":"IF(INDIRECT(\"c\" & (VLOOKUP(Rebalance!$D$34,$F$2:$G$48,2,FALSE)+ROW()-2))=Rebalance!$D$34,INDIRECT(\"a\" & (VLOOKUP(Rebalance!$D$34,$F$2:$G$48,2,FALSE)+ROW()-2)),\"\")","v":{"$error":"#N/A"}},{"$f":"IF(INDIRECT(\"c\" & (VLOOKUP(Rebalance!$D$35,$F$2:$G$48,2,FALSE)+ROW()-2))=Rebalance!$D$35,INDIRECT(\"a\" & (VLOOKUP(Rebalance!$D$35,$F$2:$G$48,2,FALSE)+ROW()-2)),\"\")","v":{"$error":"#N/A"}},{"$f":"IF(INDIRECT(\"c\" & (VLOOKUP(Rebalance!$D$36,$F$2:$G$48,2,FALSE)+ROW()-2))=Rebalance!$D$36,INDIRECT(\"a\" & (VLOOKUP(Rebalance!$D$36,$F$2:$G$48,2,FALSE)+ROW()-2)),\"\")","v":{"$error":"#N/A"}},{"$f":"IF(INDIRECT(\"c\" & (VLOOKUP(Rebalance!$D$37,$F$2:$G$48,2,FALSE)+ROW()-2))=Rebalance!$D$37,INDIRECT(\"a\" & (VLOOKUP(Rebalance!$D$37,$F$2:$G$48,2,FALSE)+ROW()-2)),\"\")","v":{"$error":"#N/A"}},{"$f":"IF(INDIRECT(\"c\" & (VLOOKUP(Rebalance!$D$38,$F$2:$G$48,2,FALSE)+ROW()-2))=Rebalance!$D$38,INDIRECT(\"a\" & (VLOOKUP(Rebalance!$D$38,$F$2:$G$48,2,FALSE)+ROW()-2)),\"\")","v":{"$error":"#N/A"}},{"$f":"IF(INDIRECT(\"c\" & (VLOOKUP(Rebalance!$D$39,$F$2:$G$48,2,FALSE)+ROW()-2))=Rebalance!$D$39,INDIRECT(\"a\" & (VLOOKUP(Rebalance!$D$39,$F$2:$G$48,2,FALSE)+ROW()-2)),\"\")","v":{"$error":"#N/A"}},{"$f":"IF(INDIRECT(\"c\" & (VLOOKUP(Rebalance!$D$40,$F$2:$G$48,2,FALSE)+ROW()-2))=Rebalance!$D$40,INDIRECT(\"a\" & (VLOOKUP(Rebalance!$D$40,$F$2:$G$48,2,FALSE)+ROW()-2)),\"\")","v":{"$error":"#N/A"}},{"$f":"IF(INDIRECT(\"c\" & (VLOOKUP(Rebalance!$D$52,$F$2:$G$48,2,FALSE)+ROW()-2))=Rebalance!$D$52,INDIRECT(\"a\" & (VLOOKUP(Rebalance!$D$52,$F$2:$G$48,2,FALSE)+ROW()-2)),\"\")","v":{"$error":"#N/A"}},{"$f":"IF(INDIRECT(\"c\" & (VLOOKUP(Rebalance!$D$53,$F$2:$G$48,2,FALSE)+ROW()-2))=Rebalance!$D$53,INDIRECT(\"a\" & (VLOOKUP(Rebalance!$D$53,$F$2:$G$48,2,FALSE)+ROW()-2)),\"\")","v":{"$error":"#N/A"}},{"$f":"IF(INDIRECT(\"c\" & (VLOOKUP(Rebalance!$D$54,$F$2:$G$48,2,FALSE)+ROW()-2))=Rebalance!$D$54,INDIRECT(\"a\" & (VLOOKUP(Rebalance!$D$54,$F$2:$G$48,2,FALSE)+ROW()-2)),\"\")","v":{"$error":"#N/A"}},{"$f":"IF(INDIRECT(\"c\" & (VLOOKUP(Rebalance!$D$55,$F$2:$G$48,2,FALSE)+ROW()-2))=Rebalance!$D$55,INDIRECT(\"a\" & (VLOOKUP(Rebalance!$D$55,$F$2:$G$48,2,FALSE)+ROW()-2)),\"\")","v":{"$error":"#N/A"}},{"$f":"IF(INDIRECT(\"c\" & (VLOOKUP(Rebalance!$D$56,$F$2:$G$48,2,FALSE)+ROW()-2))=Rebalance!$D$56,INDIRECT(\"a\" & (VLOOKUP(Rebalance!$D$56,$F$2:$G$48,2,FALSE)+ROW()-2)),\"\")","v":{"$error":"#N/A"}},{"$f":"IF(INDIRECT(\"c\" & (VLOOKUP(Rebalance!$D$57,$F$2:$G$48,2,FALSE)+ROW()-2))=Rebalance!$D$57,INDIRECT(\"a\" & (VLOOKUP(Rebalance!$D$57,$F$2:$G$48,2,FALSE)+ROW()-2)),\"\")","v":{"$error":"#N/A"}},{"$f":"IF(INDIRECT(\"c\" & (VLOOKUP(Rebalance!$D$58,$F$2:$G$48,2,FALSE)+ROW()-2))=Rebalance!$D$58,INDIRECT(\"a\" & (VLOOKUP(Rebalance!$D$58,$F$2:$G$48,2,FALSE)+ROW()-2)),\"\")","v":{"$error":"#N/A"}},{"$f":"IF(INDIRECT(\"c\" & (VLOOKUP(Rebalance!$D$59,$F$2:$G$48,2,FALSE)+ROW()-2))=Rebalance!$D$59,INDIRECT(\"a\" & (VLOOKUP(Rebalance!$D$59,$F$2:$G$48,2,FALSE)+ROW()-2)),\"\")","v":{"$error":"#N/A"}},{"$f":"IF(INDIRECT(\"c\" & (VLOOKUP(Rebalance!$D$60,$F$2:$G$48,2,FALSE)+ROW()-2))=Rebalance!$D$60,INDIRECT(\"a\" & (VLOOKUP(Rebalance!$D$60,$F$2:$G$48,2,FALSE)+ROW()-2)),\"\")","v":{"$error":"#N/A"}},{"$f":"IF(INDIRECT(\"c\" & (VLOOKUP(Rebalance!$D$61,$F$2:$G$48,2,FALSE)+ROW()-2))=Rebalance!$D$61,INDIRECT(\"a\" & (VLOOKUP(Rebalance!$D$61,$F$2:$G$48,2,FALSE)+ROW()-2)),\"\")","v":{"$error":"#N/A"}},{"$f":"IF(INDIRECT(\"c\" & (VLOOKUP(Rebalance!$D$62,$F$2:$G$48,2,FALSE)+ROW()-2))=Rebalance!$D$62,INDIRECT(\"a\" & (VLOOKUP(Rebalance!$D$62,$F$2:$G$48,2,FALSE)+ROW()-2)),\"\")","v":{"$error":"#N/A"}},{"$f":"IF(INDIRECT(\"c\" & (VLOOKUP(Rebalance!$D$63,$F$2:$G$48,2,FALSE)+ROW()-2))=Rebalance!$D$63,INDIRECT(\"a\" & (VLOOKUP(Rebalance!$D$63,$F$2:$G$48,2,FALSE)+ROW()-2)),\"\")","v":{"$error":"#N/A"}},{"$f":"IF(INDIRECT(\"c\" & (VLOOKUP(Rebalance!$D$64,$F$2:$G$48,2,FALSE)+ROW()-2))=Rebalance!$D$64,INDIRECT(\"a\" & (VLOOKUP(Rebalance!$D$64,$F$2:$G$48,2,FALSE)+ROW()-2)),\"\")","v":{"$error":"#N/A"}},{"$f":"IF(INDIRECT(\"c\" & (VLOOKUP(Rebalance!$D$65,$F$2:$G$48,2,FALSE)+ROW()-2))=Rebalance!$D$65,INDIRECT(\"a\" & (VLOOKUP(Rebalance!$D$65,$F$2:$G$48,2,FALSE)+ROW()-2)),\"\")","v":{"$error":"#N/A"}},{"$f":"IF(INDIRECT(\"c\" & (VLOOKUP(Rebalance!$D$66,$F$2:$G$48,2,FALSE)+ROW()-2))=Rebalance!$D$66,INDIRECT(\"a\" & (VLOOKUP(Rebalance!$D$66,$F$2:$G$48,2,FALSE)+ROW()-2)),\"\")","v":{"$error":"#N/A"}}]
[null,null,null,{"$f":"ROW()","v":667},null,null,{"$f":"VLOOKUP(F667,$C$2:$D$599,2,FALSE)","v":{"$error":"#N/A"}},{"$f":"IF(INDIRECT(\"c\" & (VLOOKUP(Rebalance!$D$26,$F$2:$G$48,2,FALSE)+ROW()-2))=Rebalance!$D$26,INDIRECT(\"a\" & (VLOOKUP(Rebalance!$D$26,$F$2:$G$48,2,FALSE)+ROW()-2)),\"\")","v":{"$error":"#N/A"}},{"$f":"IF(INDIRECT(\"c\" & (VLOOKUP(Rebalance!$D$27,$F$2:$G$48,2,FALSE)+ROW()-2))=Rebalance!$D$27,INDIRECT(\"a\" & (VLOOKUP(Rebalance!$D$27,$F$2:$G$48,2,FALSE)+ROW()-2)),\"\")","v":{"$error":"#N/A"}},{"$f":"IF(INDIRECT(\"c\" & (VLOOKUP(Rebalance!$D$28,$F$2:$G$48,2,FALSE)+ROW()-2))=Rebalance!$D$28,INDIRECT(\"a\" & (VLOOKUP(Rebalance!$D$28,$F$2:$G$48,2,FALSE)+ROW()-2)),\"\")","v":{"$error":"#N/A"}},{"$f":"IF(INDIRECT(\"c\" & (VLOOKUP(Rebalance!$D$29,$F$2:$G$48,2,FALSE)+ROW()-2))=Rebalance!$D$29,INDIRECT(\"a\" & (VLOOKUP(Rebalance!$D$29,$F$2:$G$48,2,FALSE)+ROW()-2)),\"\")","v":{"$error":"#N/A"}},{"$f":"IF(INDIRECT(\"c\" & (VLOOKUP(Rebalance!$D$30,$F$2:$G$48,2,FALSE)+ROW()-2))=Rebalance!$D$30,INDIRECT(\"a\" & (VLOOKUP(Rebalance!$D$30,$F$2:$G$48,2,FALSE)+ROW()-2)),\"\")","v":{"$error":"#N/A"}},{"$f":"IF(INDIRECT(\"c\" & (VLOOKUP(Rebalance!$D$31,$F$2:$G$48,2,FALSE)+ROW()-2))=Rebalance!$D$31,INDIRECT(\"a\" & (VLOOKUP(Rebalance!$D$31,$F$2:$G$48,2,FALSE)+ROW()-2)),\"\")","v":{"$error":"#N/A"}},{"$f":"IF(INDIRECT(\"c\" & (VLOOKUP(Rebalance!$D$32,$F$2:$G$48,2,FALSE)+ROW()-2))=Rebalance!$D$32,INDIRECT(\"a\" & (VLOOKUP(Rebalance!$D$32,$F$2:$G$48,2,FALSE)+ROW()-2)),\"\")","v":{"$error":"#N/A"}},{"$f":"IF(INDIRECT(\"c\" & (VLOOKUP(Rebalance!$D$33,$F$2:$G$48,2,FALSE)+ROW()-2))=Rebalance!$D$33,INDIRECT(\"a\" & (VLOOKUP(Rebalance!$D$33,$F$2:$G$48,2,FALSE)+ROW()-2)),\"\")","v":{"$error":"#N/A"}},{"$f":"IF(INDIRECT(\"c\" & (VLOOKUP(Rebalance!$D$34,$F$2:$G$48,2,FALSE)+ROW()-2))=Rebalance!$D$34,INDIRECT(\"a\" & (VLOOKUP(Rebalance!$D$34,$F$2:$G$48,2,FALSE)+ROW()-2)),\"\")","v":{"$error":"#N/A"}},{"$f":"IF(INDIRECT(\"c\" & (VLOOKUP(Rebalance!$D$35,$F$2:$G$48,2,FALSE)+ROW()-2))=Rebalance!$D$35,INDIRECT(\"a\" & (VLOOKUP(Rebalance!$D$35,$F$2:$G$48,2,FALSE)+ROW()-2)),\"\")","v":{"$error":"#N/A"}},{"$f":"IF(INDIRECT(\"c\" & (VLOOKUP(Rebalance!$D$36,$F$2:$G$48,2,FALSE)+ROW()-2))=Rebalance!$D$36,INDIRECT(\"a\" & (VLOOKUP(Rebalance!$D$36,$F$2:$G$48,2,FALSE)+ROW()-2)),\"\")","v":{"$error":"#N/A"}},{"$f":"IF(INDIRECT(\"c\" & (VLOOKUP(Rebalance!$D$37,$F$2:$G$48,2,FALSE)+ROW()-2))=Rebalance!$D$37,INDIRECT(\"a\" & (VLOOKUP(Rebalance!$D$37,$F$2:$G$48,2,FALSE)+ROW()-2)),\"\")","v":{"$error":"#N/A"}},{"$f":"IF(INDIRECT(\"c\" & (VLOOKUP(Rebalance!$D$38,$F$2:$G$48,2,FALSE)+ROW()-2))=Rebalance!$D$38,INDIRECT(\"a\" & (VLOOKUP(Rebalance!$D$38,$F$2:$G$48,2,FALSE)+ROW()-2)),\"\")","v":{"$error":"#N/A"}},{"$f":"IF(INDIRECT(\"c\" & (VLOOKUP(Rebalance!$D$39,$F$2:$G$48,2,FALSE)+ROW()-2))=Rebalance!$D$39,INDIRECT(\"a\" & (VLOOKUP(Rebalance!$D$39,$F$2:$G$48,2,FALSE)+ROW()-2)),\"\")","v":{"$error":"#N/A"}},{"$f":"IF(INDIRECT(\"c\" & (VLOOKUP(Rebalance!$D$40,$F$2:$G$48,2,FALSE)+ROW()-2))=Rebalance!$D$40,INDIRECT(\"a\" & (VLOOKUP(Rebalance!$D$40,$F$2:$G$48,2,FALSE)+ROW()-2)),\"\")","v":{"$error":"#N/A"}},{"$f":"IF(INDIRECT(\"c\" & (VLOOKUP(Rebalance!$D$52,$F$2:$G$48,2,FALSE)+ROW()-2))=Rebalance!$D$52,INDIRECT(\"a\" & (VLOOKUP(Rebalance!$D$52,$F$2:$G$48,2,FALSE)+ROW()-2)),\"\")","v":{"$error":"#N/A"}},{"$f":"IF(INDIRECT(\"c\" & (VLOOKUP(Rebalance!$D$53,$F$2:$G$48,2,FALSE)+ROW()-2))=Rebalance!$D$53,INDIRECT(\"a\" & (VLOOKUP(Rebalance!$D$53,$F$2:$G$48,2,FALSE)+ROW()-2)),\"\")","v":{"$error":"#N/A"}},{"$f":"IF(INDIRECT(\"c\" & (VLOOKUP(Rebalance!$D$54,$F$2:$G$48,2,FALSE)+ROW()-2))=Rebalance!$D$54,INDIRECT(\"a\" & (VLOOKUP(Rebalance!$D$54,$F$2:$G$48,2,FALSE)+ROW()-2)),\"\")","v":{"$error":"#N/A"}},{"$f":"IF(INDIRECT(\"c\" & (VLOOKUP(Rebalance!$D$55,$F$2:$G$48,2,FALSE)+ROW()-2))=Rebalance!$D$55,INDIRECT(\"a\" & (VLOOKUP(Rebalance!$D$55,$F$2:$G$48,2,FALSE)+ROW()-2)),\"\")","v":{"$error":"#N/A"}},{"$f":"IF(INDIRECT(\"c\" & (VLOOKUP(Rebalance!$D$56,$F$2:$G$48,2,FALSE)+ROW()-2))=Rebalance!$D$56,INDIRECT(\"a\" & (VLOOKUP(Rebalance!$D$56,$F$2:$G$48,2,FALSE)+ROW()-2)),\"\")","v":{"$error":"#N/A"}},{"$f":"IF(INDIRECT(\"c\" & (VLOOKUP(Rebalance!$D$57,$F$2:$G$48,2,FALSE)+ROW()-2))=Rebalance!$D$57,INDIRECT(\"a\" & (VLOOKUP(Rebalance!$D$57,$F$2:$G$48,2,FALSE)+ROW()-2)),\"\")","v":{"$error":"#N/A"}},{"$f":"IF(INDIRECT(\"c\" & (VLOOKUP(Rebalance!$D$58,$F$2:$G$48,2,FALSE)+ROW()-2))=Rebalance!$D$58,INDIRECT(\"a\" & (VLOOKUP(Rebalance!$D$58,$F$2:$G$48,2,FALSE)+ROW()-2)),\"\")","v":{"$error":"#N/A"}},{"$f":"IF(INDIRECT(\"c\" & (VLOOKUP(Rebalance!$D$59,$F$2:$G$48,2,FALSE)+ROW()-2))=Rebalance!$D$59,INDIRECT(\"a\" & (VLOOKUP(Rebalance!$D$59,$F$2:$G$48,2,FALSE)+ROW()-2)),\"\")","v":{"$error":"#N/A"}},{"$f":"IF(INDIRECT(\"c\" & (VLOOKUP(Rebalance!$D$60,$F$2:$G$48,2,FALSE)+ROW()-2))=Rebalance!$D$60,INDIRECT(\"a\" & (VLOOKUP(Rebalance!$D$60,$F$2:$G$48,2,FALSE)+ROW()-2)),\"\")","v":{"$error":"#N/A"}},{"$f":"IF(INDIRECT(\"c\" & (VLOOKUP(Rebalance!$D$61,$F$2:$G$48,2,FALSE)+ROW()-2))=Rebalance!$D$61,INDIRECT(\"a\" & (VLOOKUP(Rebalance!$D$61,$F$2:$G$48,2,FALSE)+ROW()-2)),\"\")","v":{"$error":"#N/A"}},{"$f":"IF(INDIRECT(\"c\" & (VLOOKUP(Rebalance!$D$62,$F$2:$G$48,2,FALSE)+ROW()-2))=Rebalance!$D$62,INDIRECT(\"a\" & (VLOOKUP(Rebalance!$D$62,$F$2:$G$48,2,FALSE)+ROW()-2)),\"\")","v":{"$error":"#N/A"}},{"$f":"IF(INDIRECT(\"c\" & (VLOOKUP(Rebalance!$D$63,$F$2:$G$48,2,FALSE)+ROW()-2))=Rebalance!$D$63,INDIRECT(\"a\" & (VLOOKUP(Rebalance!$D$63,$F$2:$G$48,2,FALSE)+ROW()-2)),\"\")","v":{"$error":"#N/A"}},{"$f":"IF(INDIRECT(\"c\" & (VLOOKUP(Rebalance!$D$64,$F$2:$G$48,2,FALSE)+ROW()-2))=Rebalance!$D$64,INDIRECT(\"a\" & (VLOOKUP(Rebalance!$D$64,$F$2:$G$48,2,FALSE)+ROW()-2)),\"\")","v":{"$error":"#N/A"}},{"$f":"IF(INDIRECT(\"c\" & (VLOOKUP(Rebalance!$D$65,$F$2:$G$48,2,FALSE)+ROW()-2))=Rebalance!$D$65,INDIRECT(\"a\" & (VLOOKUP(Rebalance!$D$65,$F$2:$G$48,2,FALSE)+ROW()-2)),\"\")","v":{"$error":"#N/A"}},{"$f":"IF(INDIRECT(\"c\" & (VLOOKUP(Rebalance!$D$66,$F$2:$G$48,2,FALSE)+ROW()-2))=Rebalance!$D$66,INDIRECT(\"a\" & (VLOOKUP(Rebalance!$D$66,$F$2:$G$48,2,FALSE)+ROW()-2)),\"\")","v":{"$error":"#N/A"}}]
[null,null,null,{"$f":"ROW()","v":668},null,null,{"$f":"VLOOKUP(F668,$C$2:$D$599,2,FALSE)","v":{"$error":"#N/A"}},{"$f":"IF(INDIRECT(\"c\" & (VLOOKUP(Rebalance!$D$26,$F$2:$G$48,2,FALSE)+ROW()-2))=Rebalance!$D$26,INDIRECT(\"a\" & (VLOOKUP(Rebalance!$D$26,$F$2:$G$48,2,FALSE)+ROW()-2)),\"\")","v":{"$error":"#N/A"}},{"$f":"IF(INDIRECT(\"c\" & (VLOOKUP(Rebalance!$D$27,$F$2:$G$48,2,FALSE)+ROW()-2))=Rebalance!$D$27,INDIRECT(\"a\" & (VLOOKUP(Rebalance!$D$27,$F$2:$G$48,2,FALSE)+ROW()-2)),\"\")","v":{"$error":"#N/A"}},{"$f":"IF(INDIRECT(\"c\" & (VLOOKUP(Rebalance!$D$28,$F$2:$G$48,2,FALSE)+ROW()-2))=Rebalance!$D$28,INDIRECT(\"a\" & (VLOOKUP(Rebalance!$D$28,$F$2:$G$48,2,FALSE)+ROW()-2)),\"\")","v":{"$error":"#N/A"}},{"$f":"IF(INDIRECT(\"c\" & (VLOOKUP(Rebalance!$D$29,$F$2:$G$48,2,FALSE)+ROW()-2))=Rebalance!$D$29,INDIRECT(\"a\" & (VLOOKUP(Rebalance!$D$29,$F$2:$G$48,2,FALSE)+ROW()-2)),\"\")","v":{"$error":"#N/A"}},{"$f":"IF(INDIRECT(\"c\" & (VLOOKUP(Rebalance!$D$30,$F$2:$G$48,2,FALSE)+ROW()-2))=Rebalance!$D$30,INDIRECT(\"a\" & (VLOOKUP(Rebalance!$D$30,$F$2:$G$48,2,FALSE)+ROW()-2)),\"\")","v":{"$error":"#N/A"}},{"$f":"IF(INDIRECT(\"c\" & (VLOOKUP(Rebalance!$D$31,$F$2:$G$48,2,FALSE)+ROW()-2))=Rebalance!$D$31,INDIRECT(\"a\" & (VLOOKUP(Rebalance!$D$31,$F$2:$G$48,2,FALSE)+ROW()-2)),\"\")","v":{"$error":"#N/A"}},{"$f":"IF(INDIRECT(\"c\" & (VLOOKUP(Rebalance!$D$32,$F$2:$G$48,2,FALSE)+ROW()-2))=Rebalance!$D$32,INDIRECT(\"a\" & (VLOOKUP(Rebalance!$D$32,$F$2:$G$48,2,FALSE)+ROW()-2)),\"\")","v":{"$error":"#N/A"}},{"$f":"IF(INDIRECT(\"c\" & (VLOOKUP(Rebalance!$D$33,$F$2:$G$48,2,FALSE)+ROW()-2))=Rebalance!$D$33,INDIRECT(\"a\" & (VLOOKUP(Rebalance!$D$33,$F$2:$G$48,2,FALSE)+ROW()-2)),\"\")","v":{"$error":"#N/A"}},{"$f":"IF(INDIRECT(\"c\" & (VLOOKUP(Rebalance!$D$34,$F$2:$G$48,2,FALSE)+ROW()-2))=Rebalance!$D$34,INDIRECT(\"a\" & (VLOOKUP(Rebalance!$D$34,$F$2:$G$48,2,FALSE)+ROW()-2)),\"\")","v":{"$error":"#N/A"}},{"$f":"IF(INDIRECT(\"c\" & (VLOOKUP(Rebalance!$D$35,$F$2:$G$48,2,FALSE)+ROW()-2))=Rebalance!$D$35,INDIRECT(\"a\" & (VLOOKUP(Rebalance!$D$35,$F$2:$G$48,2,FALSE)+ROW()-2)),\"\")","v":{"$error":"#N/A"}},{"$f":"IF(INDIRECT(\"c\" & (VLOOKUP(Rebalance!$D$36,$F$2:$G$48,2,FALSE)+ROW()-2))=Rebalance!$D$36,INDIRECT(\"a\" & (VLOOKUP(Rebalance!$D$36,$F$2:$G$48,2,FALSE)+ROW()-2)),\"\")","v":{"$error":"#N/A"}},{"$f":"IF(INDIRECT(\"c\" & (VLOOKUP(Rebalance!$D$37,$F$2:$G$48,2,FALSE)+ROW()-2))=Rebalance!$D$37,INDIRECT(\"a\" & (VLOOKUP(Rebalance!$D$37,$F$2:$G$48,2,FALSE)+ROW()-2)),\"\")","v":{"$error":"#N/A"}},{"$f":"IF(INDIRECT(\"c\" & (VLOOKUP(Rebalance!$D$38,$F$2:$G$48,2,FALSE)+ROW()-2))=Rebalance!$D$38,INDIRECT(\"a\" & (VLOOKUP(Rebalance!$D$38,$F$2:$G$48,2,FALSE)+ROW()-2)),\"\")","v":{"$error":"#N/A"}},{"$f":"IF(INDIRECT(\"c\" & (VLOOKUP(Rebalance!$D$39,$F$2:$G$48,2,FALSE)+ROW()-2))=Rebalance!$D$39,INDIRECT(\"a\" & (VLOOKUP(Rebalance!$D$39,$F$2:$G$48,2,FALSE)+ROW()-2)),\"\")","v":{"$error":"#N/A"}},{"$f":"IF(INDIRECT(\"c\" & (VLOOKUP(Rebalance!$D$40,$F$2:$G$48,2,FALSE)+ROW()-2))=Rebalance!$D$40,INDIRECT(\"a\" & (VLOOKUP(Rebalance!$D$40,$F$2:$G$48,2,FALSE)+ROW()-2)),\"\")","v":{"$error":"#N/A"}},{"$f":"IF(INDIRECT(\"c\" & (VLOOKUP(Rebalance!$D$52,$F$2:$G$48,2,FALSE)+ROW()-2))=Rebalance!$D$52,INDIRECT(\"a\" & (VLOOKUP(Rebalance!$D$52,$F$2:$G$48,2,FALSE)+ROW()-2)),\"\")","v":{"$error":"#N/A"}},{"$f":"IF(INDIRECT(\"c\" & (VLOOKUP(Rebalance!$D$53,$F$2:$G$48,2,FALSE)+ROW()-2))=Rebalance!$D$53,INDIRECT(\"a\" & (VLOOKUP(Rebalance!$D$53,$F$2:$G$48,2,FALSE)+ROW()-2)),\"\")","v":{"$error":"#N/A"}},{"$f":"IF(INDIRECT(\"c\" & (VLOOKUP(Rebalance!$D$54,$F$2:$G$48,2,FALSE)+ROW()-2))=Rebalance!$D$54,INDIRECT(\"a\" & (VLOOKUP(Rebalance!$D$54,$F$2:$G$48,2,FALSE)+ROW()-2)),\"\")","v":{"$error":"#N/A"}},{"$f":"IF(INDIRECT(\"c\" & (VLOOKUP(Rebalance!$D$55,$F$2:$G$48,2,FALSE)+ROW()-2))=Rebalance!$D$55,INDIRECT(\"a\" & (VLOOKUP(Rebalance!$D$55,$F$2:$G$48,2,FALSE)+ROW()-2)),\"\")","v":{"$error":"#N/A"}},{"$f":"IF(INDIRECT(\"c\" & (VLOOKUP(Rebalance!$D$56,$F$2:$G$48,2,FALSE)+ROW()-2))=Rebalance!$D$56,INDIRECT(\"a\" & (VLOOKUP(Rebalance!$D$56,$F$2:$G$48,2,FALSE)+ROW()-2)),\"\")","v":{"$error":"#N/A"}},{"$f":"IF(INDIRECT(\"c\" & (VLOOKUP(Rebalance!$D$57,$F$2:$G$48,2,FALSE)+ROW()-2))=Rebalance!$D$57,INDIRECT(\"a\" & (VLOOKUP(Rebalance!$D$57,$F$2:$G$48,2,FALSE)+ROW()-2)),\"\")","v":{"$error":"#N/A"}},{"$f":"IF(INDIRECT(\"c\" & (VLOOKUP(Rebalance!$D$58,$F$2:$G$48,2,FALSE)+ROW()-2))=Rebalance!$D$58,INDIRECT(\"a\" & (VLOOKUP(Rebalance!$D$58,$F$2:$G$48,2,FALSE)+ROW()-2)),\"\")","v":{"$error":"#N/A"}},{"$f":"IF(INDIRECT(\"c\" & (VLOOKUP(Rebalance!$D$59,$F$2:$G$48,2,FALSE)+ROW()-2))=Rebalance!$D$59,INDIRECT(\"a\" & (VLOOKUP(Rebalance!$D$59,$F$2:$G$48,2,FALSE)+ROW()-2)),\"\")","v":{"$error":"#N/A"}},{"$f":"IF(INDIRECT(\"c\" & (VLOOKUP(Rebalance!$D$60,$F$2:$G$48,2,FALSE)+ROW()-2))=Rebalance!$D$60,INDIRECT(\"a\" & (VLOOKUP(Rebalance!$D$60,$F$2:$G$48,2,FALSE)+ROW()-2)),\"\")","v":{"$error":"#N/A"}},{"$f":"IF(INDIRECT(\"c\" & (VLOOKUP(Rebalance!$D$61,$F$2:$G$48,2,FALSE)+ROW()-2))=Rebalance!$D$61,INDIRECT(\"a\" & (VLOOKUP(Rebalance!$D$61,$F$2:$G$48,2,FALSE)+ROW()-2)),\"\")","v":{"$error":"#N/A"}},{"$f":"IF(INDIRECT(\"c\" & (VLOOKUP(Rebalance!$D$62,$F$2:$G$48,2,FALSE)+ROW()-2))=Rebalance!$D$62,INDIRECT(\"a\" & (VLOOKUP(Rebalance!$D$62,$F$2:$G$48,2,FALSE)+ROW()-2)),\"\")","v":{"$error":"#N/A"}},{"$f":"IF(INDIRECT(\"c\" & (VLOOKUP(Rebalance!$D$63,$F$2:$G$48,2,FALSE)+ROW()-2))=Rebalance!$D$63,INDIRECT(\"a\" & (VLOOKUP(Rebalance!$D$63,$F$2:$G$48,2,FALSE)+ROW()-2)),\"\")","v":{"$error":"#N/A"}},{"$f":"IF(INDIRECT(\"c\" & (VLOOKUP(Rebalance!$D$64,$F$2:$G$48,2,FALSE)+ROW()-2))=Rebalance!$D$64,INDIRECT(\"a\" & (VLOOKUP(Rebalance!$D$64,$F$2:$G$48,2,FALSE)+ROW()-2)),\"\")","v":{"$error":"#N/A"}},{"$f":"IF(INDIRECT(\"c\" & (VLOOKUP(Rebalance!$D$65,$F$2:$G$48,2,FALSE)+ROW()-2))=Rebalance!$D$65,INDIRECT(\"a\" & (VLOOKUP(Rebalance!$D$65,$F$2:$G$48,2,FALSE)+ROW()-2)),\"\")","v":{"$error":"#N/A"}},{"$f":"IF(INDIRECT(\"c\" & (VLOOKUP(Rebalance!$D$66,$F$2:$G$48,2,FALSE)+ROW()-2))=Rebalance!$D$66,INDIRECT(\"a\" & (VLOOKUP(Rebalance!$D$66,$F$2:$G$48,2,FALSE)+ROW()-2)),\"\")","v":{"$error":"#N/A"}}]
[null,null,null,{"$f":"ROW()","v":669},null,null,{"$f":"VLOOKUP(F669,$C$2:$D$599,2,FALSE)","v":{"$error":"#N/A"}},{"$f":"IF(INDIRECT(\"c\" & (VLOOKUP(Rebalance!$D$26,$F$2:$G$48,2,FALSE)+ROW()-2))=Rebalance!$D$26,INDIRECT(\"a\" & (VLOOKUP(Rebalance!$D$26,$F$2:$G$48,2,FALSE)+ROW()-2)),\"\")","v":{"$error":"#N/A"}},{"$f":"IF(INDIRECT(\"c\" & (VLOOKUP(Rebalance!$D$27,$F$2:$G$48,2,FALSE)+ROW()-2))=Rebalance!$D$27,INDIRECT(\"a\" & (VLOOKUP(Rebalance!$D$27,$F$2:$G$48,2,FALSE)+ROW()-2)),\"\")","v":{"$error":"#N/A"}},{"$f":"IF(INDIRECT(\"c\" & (VLOOKUP(Rebalance!$D$28,$F$2:$G$48,2,FALSE)+ROW()-2))=Rebalance!$D$28,INDIRECT(\"a\" & (VLOOKUP(Rebalance!$D$28,$F$2:$G$48,2,FALSE)+ROW()-2)),\"\")","v":{"$error":"#N/A"}},{"$f":"IF(INDIRECT(\"c\" & (VLOOKUP(Rebalance!$D$29,$F$2:$G$48,2,FALSE)+ROW()-2))=Rebalance!$D$29,INDIRECT(\"a\" & (VLOOKUP(Rebalance!$D$29,$F$2:$G$48,2,FALSE)+ROW()-2)),\"\")","v":{"$error":"#N/A"}},{"$f":"IF(INDIRECT(\"c\" & (VLOOKUP(Rebalance!$D$30,$F$2:$G$48,2,FALSE)+ROW()-2))=Rebalance!$D$30,INDIRECT(\"a\" & (VLOOKUP(Rebalance!$D$30,$F$2:$G$48,2,FALSE)+ROW()-2)),\"\")","v":{"$error":"#N/A"}},{"$f":"IF(INDIRECT(\"c\" & (VLOOKUP(Rebalance!$D$31,$F$2:$G$48,2,FALSE)+ROW()-2))=Rebalance!$D$31,INDIRECT(\"a\" & (VLOOKUP(Rebalance!$D$31,$F$2:$G$48,2,FALSE)+ROW()-2)),\"\")","v":{"$error":"#N/A"}},{"$f":"IF(INDIRECT(\"c\" & (VLOOKUP(Rebalance!$D$32,$F$2:$G$48,2,FALSE)+ROW()-2))=Rebalance!$D$32,INDIRECT(\"a\" & (VLOOKUP(Rebalance!$D$32,$F$2:$G$48,2,FALSE)+ROW()-2)),\"\")","v":{"$error":"#N/A"}},{"$f":"IF(INDIRECT(\"c\" & (VLOOKUP(Rebalance!$D$33,$F$2:$G$48,2,FALSE)+ROW()-2))=Rebalance!$D$33,INDIRECT(\"a\" & (VLOOKUP(Rebalance!$D$33,$F$2:$G$48,2,FALSE)+ROW()-2)),\"\")","v":{"$error":"#N/A"}},{"$f":"IF(INDIRECT(\"c\" & (VLOOKUP(Rebalance!$D$34,$F$2:$G$48,2,FALSE)+ROW()-2))=Rebalance!$D$34,INDIRECT(\"a\" & (VLOOKUP(Rebalance!$D$34,$F$2:$G$48,2,FALSE)+ROW()-2)),\"\")","v":{"$error":"#N/A"}},{"$f":"IF(INDIRECT(\"c\" & (VLOOKUP(Rebalance!$D$35,$F$2:$G$48,2,FALSE)+ROW()-2))=Rebalance!$D$35,INDIRECT(\"a\" & (VLOOKUP(Rebalance!$D$35,$F$2:$G$48,2,FALSE)+ROW()-2)),\"\")","v":{"$error":"#N/A"}},{"$f":"IF(INDIRECT(\"c\" & (VLOOKUP(Rebalance!$D$36,$F$2:$G$48,2,FALSE)+ROW()-2))=Rebalance!$D$36,INDIRECT(\"a\" & (VLOOKUP(Rebalance!$D$36,$F$2:$G$48,2,FALSE)+ROW()-2)),\"\")","v":{"$error":"#N/A"}},{"$f":"IF(INDIRECT(\"c\" & (VLOOKUP(Rebalance!$D$37,$F$2:$G$48,2,FALSE)+ROW()-2))=Rebalance!$D$37,INDIRECT(\"a\" & (VLOOKUP(Rebalance!$D$37,$F$2:$G$48,2,FALSE)+ROW()-2)),\"\")","v":{"$error":"#N/A"}},{"$f":"IF(INDIRECT(\"c\" & (VLOOKUP(Rebalance!$D$38,$F$2:$G$48,2,FALSE)+ROW()-2))=Rebalance!$D$38,INDIRECT(\"a\" & (VLOOKUP(Rebalance!$D$38,$F$2:$G$48,2,FALSE)+ROW()-2)),\"\")","v":{"$error":"#N/A"}},{"$f":"IF(INDIRECT(\"c\" & (VLOOKUP(Rebalance!$D$39,$F$2:$G$48,2,FALSE)+ROW()-2))=Rebalance!$D$39,INDIRECT(\"a\" & (VLOOKUP(Rebalance!$D$39,$F$2:$G$48,2,FALSE)+ROW()-2)),\"\")","v":{"$error":"#N/A"}},{"$f":"IF(INDIRECT(\"c\" & (VLOOKUP(Rebalance!$D$40,$F$2:$G$48,2,FALSE)+ROW()-2))=Rebalance!$D$40,INDIRECT(\"a\" & (VLOOKUP(Rebalance!$D$40,$F$2:$G$48,2,FALSE)+ROW()-2)),\"\")","v":{"$error":"#N/A"}},{"$f":"IF(INDIRECT(\"c\" & (VLOOKUP(Rebalance!$D$52,$F$2:$G$48,2,FALSE)+ROW()-2))=Rebalance!$D$52,INDIRECT(\"a\" & (VLOOKUP(Rebalance!$D$52,$F$2:$G$48,2,FALSE)+ROW()-2)),\"\")","v":{"$error":"#N/A"}},{"$f":"IF(INDIRECT(\"c\" & (VLOOKUP(Rebalance!$D$53,$F$2:$G$48,2,FALSE)+ROW()-2))=Rebalance!$D$53,INDIRECT(\"a\" & (VLOOKUP(Rebalance!$D$53,$F$2:$G$48,2,FALSE)+ROW()-2)),\"\")","v":{"$error":"#N/A"}},{"$f":"IF(INDIRECT(\"c\" & (VLOOKUP(Rebalance!$D$54,$F$2:$G$48,2,FALSE)+ROW()-2))=Rebalance!$D$54,INDIRECT(\"a\" & (VLOOKUP(Rebalance!$D$54,$F$2:$G$48,2,FALSE)+ROW()-2)),\"\")","v":{"$error":"#N/A"}},{"$f":"IF(INDIRECT(\"c\" & (VLOOKUP(Rebalance!$D$55,$F$2:$G$48,2,FALSE)+ROW()-2))=Rebalance!$D$55,INDIRECT(\"a\" & (VLOOKUP(Rebalance!$D$55,$F$2:$G$48,2,FALSE)+ROW()-2)),\"\")","v":{"$error":"#N/A"}},{"$f":"IF(INDIRECT(\"c\" & (VLOOKUP(Rebalance!$D$56,$F$2:$G$48,2,FALSE)+ROW()-2))=Rebalance!$D$56,INDIRECT(\"a\" & (VLOOKUP(Rebalance!$D$56,$F$2:$G$48,2,FALSE)+ROW()-2)),\"\")","v":{"$error":"#N/A"}},{"$f":"IF(INDIRECT(\"c\" & (VLOOKUP(Rebalance!$D$57,$F$2:$G$48,2,FALSE)+ROW()-2))=Rebalance!$D$57,INDIRECT(\"a\" & (VLOOKUP(Rebalance!$D$57,$F$2:$G$48,2,FALSE)+ROW()-2)),\"\")","v":{"$error":"#N/A"}},{"$f":"IF(INDIRECT(\"c\" & (VLOOKUP(Rebalance!$D$58,$F$2:$G$48,2,FALSE)+ROW()-2))=Rebalance!$D$58,INDIRECT(\"a\" & (VLOOKUP(Rebalance!$D$58,$F$2:$G$48,2,FALSE)+ROW()-2)),\"\")","v":{"$error":"#N/A"}},{"$f":"IF(INDIRECT(\"c\" & (VLOOKUP(Rebalance!$D$59,$F$2:$G$48,2,FALSE)+ROW()-2))=Rebalance!$D$59,INDIRECT(\"a\" & (VLOOKUP(Rebalance!$D$59,$F$2:$G$48,2,FALSE)+ROW()-2)),\"\")","v":{"$error":"#N/A"}},{"$f":"IF(INDIRECT(\"c\" & (VLOOKUP(Rebalance!$D$60,$F$2:$G$48,2,FALSE)+ROW()-2))=Rebalance!$D$60,INDIRECT(\"a\" & (VLOOKUP(Rebalance!$D$60,$F$2:$G$48,2,FALSE)+ROW()-2)),\"\")","v":{"$error":"#N/A"}},{"$f":"IF(INDIRECT(\"c\" & (VLOOKUP(Rebalance!$D$61,$F$2:$G$48,2,FALSE)+ROW()-2))=Rebalance!$D$61,INDIRECT(\"a\" & (VLOOKUP(Rebalance!$D$61,$F$2:$G$48,2,FALSE)+ROW()-2)),\"\")","v":{"$error":"#N/A"}},{"$f":"IF(INDIRECT(\"c\" & (VLOOKUP(Rebalance!$D$62,$F$2:$G$48,2,FALSE)+ROW()-2))=Rebalance!$D$62,INDIRECT(\"a\" & (VLOOKUP(Rebalance!$D$62,$F$2:$G$48,2,FALSE)+ROW()-2)),\"\")","v":{"$error":"#N/A"}},{"$f":"IF(INDIRECT(\"c\" & (VLOOKUP(Rebalance!$D$63,$F$2:$G$48,2,FALSE)+ROW()-2))=Rebalance!$D$63,INDIRECT(\"a\" & (VLOOKUP(Rebalance!$D$63,$F$2:$G$48,2,FALSE)+ROW()-2)),\"\")","v":{"$error":"#N/A"}},{"$f":"IF(INDIRECT(\"c\" & (VLOOKUP(Rebalance!$D$64,$F$2:$G$48,2,FALSE)+ROW()-2))=Rebalance!$D$64,INDIRECT(\"a\" & (VLOOKUP(Rebalance!$D$64,$F$2:$G$48,2,FALSE)+ROW()-2)),\"\")","v":{"$error":"#N/A"}},{"$f":"IF(INDIRECT(\"c\" & (VLOOKUP(Rebalance!$D$65,$F$2:$G$48,2,FALSE)+ROW()-2))=Rebalance!$D$65,INDIRECT(\"a\" & (VLOOKUP(Rebalance!$D$65,$F$2:$G$48,2,FALSE)+ROW()-2)),\"\")","v":{"$error":"#N/A"}},{"$f":"IF(INDIRECT(\"c\" & (VLOOKUP(Rebalance!$D$66,$F$2:$G$48,2,FALSE)+ROW()-2))=Rebalance!$D$66,INDIRECT(\"a\" & (VLOOKUP(Rebalance!$D$66,$F$2:$G$48,2,FALSE)+ROW()-2)),\"\")","v":{"$error":"#N/A"}}]
[null,null,null,{"$f":"ROW()","v":670},null,null,{"$f":"VLOOKUP(F670,$C$2:$D$599,2,FALSE)","v":{"$error":"#N/A"}},{"$f":"IF(INDIRECT(\"c\" & (VLOOKUP(Rebalance!$D$26,$F$2:$G$48,2,FALSE)+ROW()-2))=Rebalance!$D$26,INDIRECT(\"a\" & (VLOOKUP(Rebalance!$D$26,$F$2:$G$48,2,FALSE)+ROW()-2)),\"\")","v":{"$error":"#N/A"}},{"$f":"IF(INDIRECT(\"c\" & (VLOOKUP(Rebalance!$D$27,$F$2:$G$48,2,FALSE)+ROW()-2))=Rebalance!$D$27,INDIRECT(\"a\" & (VLOOKUP(Rebalance!$D$27,$F$2:$G$48,2,FALSE)+ROW()-2)),\"\")","v":{"$error":"#N/A"}},{"$f":"IF(INDIRECT(\"c\" & (VLOOKUP(Rebalance!$D$28,$F$2:$G$48,2,FALSE)+ROW()-2))=Rebalance!$D$28,INDIRECT(\"a\" & (VLOOKUP(Rebalance!$D$28,$F$2:$G$48,2,FALSE)+ROW()-2)),\"\")","v":{"$error":"#N/A"}},{"$f":"IF(INDIRECT(\"c\" & (VLOOKUP(Rebalance!$D$29,$F$2:$G$48,2,FALSE)+ROW()-2))=Rebalance!$D$29,INDIRECT(\"a\" & (VLOOKUP(Rebalance!$D$29,$F$2:$G$48,2,FALSE)+ROW()-2)),\"\")","v":{"$error":"#N/A"}},{"$f":"IF(INDIRECT(\"c\" & (VLOOKUP(Rebalance!$D$30,$F$2:$G$48,2,FALSE)+ROW()-2))=Rebalance!$D$30,INDIRECT(\"a\" & (VLOOKUP(Rebalance!$D$30,$F$2:$G$48,2,FALSE)+ROW()-2)),\"\")","v":{"$error":"#N/A"}},{"$f":"IF(INDIRECT(\"c\" & (VLOOKUP(Rebalance!$D$31,$F$2:$G$48,2,FALSE)+ROW()-2))=Rebalance!$D$31,INDIRECT(\"a\" & (VLOOKUP(Rebalance!$D$31,$F$2:$G$48,2,FALSE)+ROW()-2)),\"\")","v":{"$error":"#N/A"}},{"$f":"IF(INDIRECT(\"c\" & (VLOOKUP(Rebalance!$D$32,$F$2:$G$48,2,FALSE)+ROW()-2))=Rebalance!$D$32,INDIRECT(\"a\" & (VLOOKUP(Rebalance!$D$32,$F$2:$G$48,2,FALSE)+ROW()-2)),\"\")","v":{"$error":"#N/A"}},{"$f":"IF(INDIRECT(\"c\" & (VLOOKUP(Rebalance!$D$33,$F$2:$G$48,2,FALSE)+ROW()-2))=Rebalance!$D$33,INDIRECT(\"a\" & (VLOOKUP(Rebalance!$D$33,$F$2:$G$48,2,FALSE)+ROW()-2)),\"\")","v":{"$error":"#N/A"}},{"$f":"IF(INDIRECT(\"c\" & (VLOOKUP(Rebalance!$D$34,$F$2:$G$48,2,FALSE)+ROW()-2))=Rebalance!$D$34,INDIRECT(\"a\" & (VLOOKUP(Rebalance!$D$34,$F$2:$G$48,2,FALSE)+ROW()-2)),\"\")","v":{"$error":"#N/A"}},{"$f":"IF(INDIRECT(\"c\" & (VLOOKUP(Rebalance!$D$35,$F$2:$G$48,2,FALSE)+ROW()-2))=Rebalance!$D$35,INDIRECT(\"a\" & (VLOOKUP(Rebalance!$D$35,$F$2:$G$48,2,FALSE)+ROW()-2)),\"\")","v":{"$error":"#N/A"}},{"$f":"IF(INDIRECT(\"c\" & (VLOOKUP(Rebalance!$D$36,$F$2:$G$48,2,FALSE)+ROW()-2))=Rebalance!$D$36,INDIRECT(\"a\" & (VLOOKUP(Rebalance!$D$36,$F$2:$G$48,2,FALSE)+ROW()-2)),\"\")","v":{"$error":"#N/A"}},{"$f":"IF(INDIRECT(\"c\" & (VLOOKUP(Rebalance!$D$37,$F$2:$G$48,2,FALSE)+ROW()-2))=Rebalance!$D$37,INDIRECT(\"a\" & (VLOOKUP(Rebalance!$D$37,$F$2:$G$48,2,FALSE)+ROW()-2)),\"\")","v":{"$error":"#N/A"}},{"$f":"IF(INDIRECT(\"c\" & (VLOOKUP(Rebalance!$D$38,$F$2:$G$48,2,FALSE)+ROW()-2))=Rebalance!$D$38,INDIRECT(\"a\" & (VLOOKUP(Rebalance!$D$38,$F$2:$G$48,2,FALSE)+ROW()-2)),\"\")","v":{"$error":"#N/A"}},{"$f":"IF(INDIRECT(\"c\" & (VLOOKUP(Rebalance!$D$39,$F$2:$G$48,2,FALSE)+ROW()-2))=Rebalance!$D$39,INDIRECT(\"a\" & (VLOOKUP(Rebalance!$D$39,$F$2:$G$48,2,FALSE)+ROW()-2)),\"\")","v":{"$error":"#N/A"}},{"$f":"IF(INDIRECT(\"c\" & (VLOOKUP(Rebalance!$D$40,$F$2:$G$48,2,FALSE)+ROW()-2))=Rebalance!$D$40,INDIRECT(\"a\" & (VLOOKUP(Rebalance!$D$40,$F$2:$G$48,2,FALSE)+ROW()-2)),\"\")","v":{"$error":"#N/A"}},{"$f":"IF(INDIRECT(\"c\" & (VLOOKUP(Rebalance!$D$52,$F$2:$G$48,2,FALSE)+ROW()-2))=Rebalance!$D$52,INDIRECT(\"a\" & (VLOOKUP(Rebalance!$D$52,$F$2:$G$48,2,FALSE)+ROW()-2)),\"\")","v":{"$error":"#N/A"}},{"$f":"IF(INDIRECT(\"c\" & (VLOOKUP(Rebalance!$D$53,$F$2:$G$48,2,FALSE)+ROW()-2))=Rebalance!$D$53,INDIRECT(\"a\" & (VLOOKUP(Rebalance!$D$53,$F$2:$G$48,2,FALSE)+ROW()-2)),\"\")","v":{"$error":"#N/A"}},{"$f":"IF(INDIRECT(\"c\" & (VLOOKUP(Rebalance!$D$54,$F$2:$G$48,2,FALSE)+ROW()-2))=Rebalance!$D$54,INDIRECT(\"a\" & (VLOOKUP(Rebalance!$D$54,$F$2:$G$48,2,FALSE)+ROW()-2)),\"\")","v":{"$error":"#N/A"}},{"$f":"IF(INDIRECT(\"c\" & (VLOOKUP(Rebalance!$D$55,$F$2:$G$48,2,FALSE)+ROW()-2))=Rebalance!$D$55,INDIRECT(\"a\" & (VLOOKUP(Rebalance!$D$55,$F$2:$G$48,2,FALSE)+ROW()-2)),\"\")","v":{"$error":"#N/A"}},{"$f":"IF(INDIRECT(\"c\" & (VLOOKUP(Rebalance!$D$56,$F$2:$G$48,2,FALSE)+ROW()-2))=Rebalance!$D$56,INDIRECT(\"a\" & (VLOOKUP(Rebalance!$D$56,$F$2:$G$48,2,FALSE)+ROW()-2)),\"\")","v":{"$error":"#N/A"}},{"$f":"IF(INDIRECT(\"c\" & (VLOOKUP(Rebalance!$D$57,$F$2:$G$48,2,FALSE)+ROW()-2))=Rebalance!$D$57,INDIRECT(\"a\" & (VLOOKUP(Rebalance!$D$57,$F$2:$G$48,2,FALSE)+ROW()-2)),\"\")","v":{"$error":"#N/A"}},{"$f":"IF(INDIRECT(\"c\" & (VLOOKUP(Rebalance!$D$58,$F$2:$G$48,2,FALSE)+ROW()-2))=Rebalance!$D$58,INDIRECT(\"a\" & (VLOOKUP(Rebalance!$D$58,$F$2:$G$48,2,FALSE)+ROW()-2)),\"\")","v":{"$error":"#N/A"}},{"$f":"IF(INDIRECT(\"c\" & (VLOOKUP(Rebalance!$D$59,$F$2:$G$48,2,FALSE)+ROW()-2))=Rebalance!$D$59,INDIRECT(\"a\" & (VLOOKUP(Rebalance!$D$59,$F$2:$G$48,2,FALSE)+ROW()-2)),\"\")","v":{"$error":"#N/A"}},{"$f":"IF(INDIRECT(\"c\" & (VLOOKUP(Rebalance!$D$60,$F$2:$G$48,2,FALSE)+ROW()-2))=Rebalance!$D$60,INDIRECT(\"a\" & (VLOOKUP(Rebalance!$D$60,$F$2:$G$48,2,FALSE)+ROW()-2)),\"\")","v":{"$error":"#N/A"}},{"$f":"IF(INDIRECT(\"c\" & (VLOOKUP(Rebalance!$D$61,$F$2:$G$48,2,FALSE)+ROW()-2))=Rebalance!$D$61,INDIRECT(\"a\" & (VLOOKUP(Rebalance!$D$61,$F$2:$G$48,2,FALSE)+ROW()-2)),\"\")","v":{"$error":"#N/A"}},{"$f":"IF(INDIRECT(\"c\" & (VLOOKUP(Rebalance!$D$62,$F$2:$G$48,2,FALSE)+ROW()-2))=Rebalance!$D$62,INDIRECT(\"a\" & (VLOOKUP(Rebalance!$D$62,$F$2:$G$48,2,FALSE)+ROW()-2)),\"\")","v":{"$error":"#N/A"}},{"$f":"IF(INDIRECT(\"c\" & (VLOOKUP(Rebalance!$D$63,$F$2:$G$48,2,FALSE)+ROW()-2))=Rebalance!$D$63,INDIRECT(\"a\" & (VLOOKUP(Rebalance!$D$63,$F$2:$G$48,2,FALSE)+ROW()-2)),\"\")","v":{"$error":"#N/A"}},{"$f":"IF(INDIRECT(\"c\" & (VLOOKUP(Rebalance!$D$64,$F$2:$G$48,2,FALSE)+ROW()-2))=Rebalance!$D$64,INDIRECT(\"a\" & (VLOOKUP(Rebalance!$D$64,$F$2:$G$48,2,FALSE)+ROW()-2)),\"\")","v":{"$error":"#N/A"}},{"$f":"IF(INDIRECT(\"c\" & (VLOOKUP(Rebalance!$D$65,$F$2:$G$48,2,FALSE)+ROW()-2))=Rebalance!$D$65,INDIRECT(\"a\" & (VLOOKUP(Rebalance!$D$65,$F$2:$G$48,2,FALSE)+ROW()-2)),\"\")","v":{"$error":"#N/A"}},{"$f":"IF(INDIRECT(\"c\" & (VLOOKUP(Rebalance!$D$66,$F$2:$G$48,2,FALSE)+ROW()-2))=Rebalance!$D$66,INDIRECT(\"a\" & (VLOOKUP(Rebalance!$D$66,$F$2:$G$48,2,FALSE)+ROW()-2)),\"\")","v":{"$error":"#N/A"}}]
[null,null,null,{"$f":"ROW()","v":671},null,null,{"$f":"VLOOKUP(F671,$C$2:$D$599,2,FALSE)","v":{"$error":"#N/A"}},{"$f":"IF(INDIRECT(\"c\" & (VLOOKUP(Rebalance!$D$26,$F$2:$G$48,2,FALSE)+ROW()-2))=Rebalance!$D$26,INDIRECT(\"a\" & (VLOOKUP(Rebalance!$D$26,$F$2:$G$48,2,FALSE)+ROW()-2)),\"\")","v":{"$error":"#N/A"}},{"$f":"IF(INDIRECT(\"c\" & (VLOOKUP(Rebalance!$D$27,$F$2:$G$48,2,FALSE)+ROW()-2))=Rebalance!$D$27,INDIRECT(\"a\" & (VLOOKUP(Rebalance!$D$27,$F$2:$G$48,2,FALSE)+ROW()-2)),\"\")","v":{"$error":"#N/A"}},{"$f":"IF(INDIRECT(\"c\" & (VLOOKUP(Rebalance!$D$28,$F$2:$G$48,2,FALSE)+ROW()-2))=Rebalance!$D$28,INDIRECT(\"a\" & (VLOOKUP(Rebalance!$D$28,$F$2:$G$48,2,FALSE)+ROW()-2)),\"\")","v":{"$error":"#N/A"}},{"$f":"IF(INDIRECT(\"c\" & (VLOOKUP(Rebalance!$D$29,$F$2:$G$48,2,FALSE)+ROW()-2))=Rebalance!$D$29,INDIRECT(\"a\" & (VLOOKUP(Rebalance!$D$29,$F$2:$G$48,2,FALSE)+ROW()-2)),\"\")","v":{"$error":"#N/A"}},{"$f":"IF(INDIRECT(\"c\" & (VLOOKUP(Rebalance!$D$30,$F$2:$G$48,2,FALSE)+ROW()-2))=Rebalance!$D$30,INDIRECT(\"a\" & (VLOOKUP(Rebalance!$D$30,$F$2:$G$48,2,FALSE)+ROW()-2)),\"\")","v":{"$error":"#N/A"}},{"$f":"IF(INDIRECT(\"c\" & (VLOOKUP(Rebalance!$D$31,$F$2:$G$48,2,FALSE)+ROW()-2))=Rebalance!$D$31,INDIRECT(\"a\" & (VLOOKUP(Rebalance!$D$31,$F$2:$G$48,2,FALSE)+ROW()-2)),\"\")","v":{"$error":"#N/A"}},{"$f":"IF(INDIRECT(\"c\" & (VLOOKUP(Rebalance!$D$32,$F$2:$G$48,2,FALSE)+ROW()-2))=Rebalance!$D$32,INDIRECT(\"a\" & (VLOOKUP(Rebalance!$D$32,$F$2:$G$48,2,FALSE)+ROW()-2)),\"\")","v":{"$error":"#N/A"}},{"$f":"IF(INDIRECT(\"c\" & (VLOOKUP(Rebalance!$D$33,$F$2:$G$48,2,FALSE)+ROW()-2))=Rebalance!$D$33,INDIRECT(\"a\" & (VLOOKUP(Rebalance!$D$33,$F$2:$G$48,2,FALSE)+ROW()-2)),\"\")","v":{"$error":"#N/A"}},{"$f":"IF(INDIRECT(\"c\" & (VLOOKUP(Rebalance!$D$34,$F$2:$G$48,2,FALSE)+ROW()-2))=Rebalance!$D$34,INDIRECT(\"a\" & (VLOOKUP(Rebalance!$D$34,$F$2:$G$48,2,FALSE)+ROW()-2)),\"\")","v":{"$error":"#N/A"}},{"$f":"IF(INDIRECT(\"c\" & (VLOOKUP(Rebalance!$D$35,$F$2:$G$48,2,FALSE)+ROW()-2))=Rebalance!$D$35,INDIRECT(\"a\" & (VLOOKUP(Rebalance!$D$35,$F$2:$G$48,2,FALSE)+ROW()-2)),\"\")","v":{"$error":"#N/A"}},{"$f":"IF(INDIRECT(\"c\" & (VLOOKUP(Rebalance!$D$36,$F$2:$G$48,2,FALSE)+ROW()-2))=Rebalance!$D$36,INDIRECT(\"a\" & (VLOOKUP(Rebalance!$D$36,$F$2:$G$48,2,FALSE)+ROW()-2)),\"\")","v":{"$error":"#N/A"}},{"$f":"IF(INDIRECT(\"c\" & (VLOOKUP(Rebalance!$D$37,$F$2:$G$48,2,FALSE)+ROW()-2))=Rebalance!$D$37,INDIRECT(\"a\" & (VLOOKUP(Rebalance!$D$37,$F$2:$G$48,2,FALSE)+ROW()-2)),\"\")","v":{"$error":"#N/A"}},{"$f":"IF(INDIRECT(\"c\" & (VLOOKUP(Rebalance!$D$38,$F$2:$G$48,2,FALSE)+ROW()-2))=Rebalance!$D$38,INDIRECT(\"a\" & (VLOOKUP(Rebalance!$D$38,$F$2:$G$48,2,FALSE)+ROW()-2)),\"\")","v":{"$error":"#N/A"}},{"$f":"IF(INDIRECT(\"c\" & (VLOOKUP(Rebalance!$D$39,$F$2:$G$48,2,FALSE)+ROW()-2))=Rebalance!$D$39,INDIRECT(\"a\" & (VLOOKUP(Rebalance!$D$39,$F$2:$G$48,2,FALSE)+ROW()-2)),\"\")","v":{"$error":"#N/A"}},{"$f":"IF(INDIRECT(\"c\" & (VLOOKUP(Rebalance!$D$40,$F$2:$G$48,2,FALSE)+ROW()-2))=Rebalance!$D$40,INDIRECT(\"a\" & (VLOOKUP(Rebalance!$D$40,$F$2:$G$48,2,FALSE)+ROW()-2)),\"\")","v":{"$error":"#N/A"}},{"$f":"IF(INDIRECT(\"c\" & (VLOOKUP(Rebalance!$D$52,$F$2:$G$48,2,FALSE)+ROW()-2))=Rebalance!$D$52,INDIRECT(\"a\" & (VLOOKUP(Rebalance!$D$52,$F$2:$G$48,2,FALSE)+ROW()-2)),\"\")","v":{"$error":"#N/A"}},{"$f":"IF(INDIRECT(\"c\" & (VLOOKUP(Rebalance!$D$53,$F$2:$G$48,2,FALSE)+ROW()-2))=Rebalance!$D$53,INDIRECT(\"a\" & (VLOOKUP(Rebalance!$D$53,$F$2:$G$48,2,FALSE)+ROW()-2)),\"\")","v":{"$error":"#N/A"}},{"$f":"IF(INDIRECT(\"c\" & (VLOOKUP(Rebalance!$D$54,$F$2:$G$48,2,FALSE)+ROW()-2))=Rebalance!$D$54,INDIRECT(\"a\" & (VLOOKUP(Rebalance!$D$54,$F$2:$G$48,2,FALSE)+ROW()-2)),\"\")","v":{"$error":"#N/A"}},{"$f":"IF(INDIRECT(\"c\" & (VLOOKUP(Rebalance!$D$55,$F$2:$G$48,2,FALSE)+ROW()-2))=Rebalance!$D$55,INDIRECT(\"a\" & (VLOOKUP(Rebalance!$D$55,$F$2:$G$48,2,FALSE)+ROW()-2)),\"\")","v":{"$error":"#N/A"}},{"$f":"IF(INDIRECT(\"c\" & (VLOOKUP(Rebalance!$D$56,$F$2:$G$48,2,FALSE)+ROW()-2))=Rebalance!$D$56,INDIRECT(\"a\" & (VLOOKUP(Rebalance!$D$56,$F$2:$G$48,2,FALSE)+ROW()-2)),\"\")","v":{"$error":"#N/A"}},{"$f":"IF(INDIRECT(\"c\" & (VLOOKUP(Rebalance!$D$57,$F$2:$G$48,2,FALSE)+ROW()-2))=Rebalance!$D$57,INDIRECT(\"a\" & (VLOOKUP(Rebalance!$D$57,$F$2:$G$48,2,FALSE)+ROW()-2)),\"\")","v":{"$error":"#N/A"}},{"$f":"IF(INDIRECT(\"c\" & (VLOOKUP(Rebalance!$D$58,$F$2:$G$48,2,FALSE)+ROW()-2))=Rebalance!$D$58,INDIRECT(\"a\" & (VLOOKUP(Rebalance!$D$58,$F$2:$G$48,2,FALSE)+ROW()-2)),\"\")","v":{"$error":"#N/A"}},{"$f":"IF(INDIRECT(\"c\" & (VLOOKUP(Rebalance!$D$59,$F$2:$G$48,2,FALSE)+ROW()-2))=Rebalance!$D$59,INDIRECT(\"a\" & (VLOOKUP(Rebalance!$D$59,$F$2:$G$48,2,FALSE)+ROW()-2)),\"\")","v":{"$error":"#N/A"}},{"$f":"IF(INDIRECT(\"c\" & (VLOOKUP(Rebalance!$D$60,$F$2:$G$48,2,FALSE)+ROW()-2))=Rebalance!$D$60,INDIRECT(\"a\" & (VLOOKUP(Rebalance!$D$60,$F$2:$G$48,2,FALSE)+ROW()-2)),\"\")","v":{"$error":"#N/A"}},{"$f":"IF(INDIRECT(\"c\" & (VLOOKUP(Rebalance!$D$61,$F$2:$G$48,2,FALSE)+ROW()-2))=Rebalance!$D$61,INDIRECT(\"a\" & (VLOOKUP(Rebalance!$D$61,$F$2:$G$48,2,FALSE)+ROW()-2)),\"\")","v":{"$error":"#N/A"}},{"$f":"IF(INDIRECT(\"c\" & (VLOOKUP(Rebalance!$D$62,$F$2:$G$48,2,FALSE)+ROW()-2))=Rebalance!$D$62,INDIRECT(\"a\" & (VLOOKUP(Rebalance!$D$62,$F$2:$G$48,2,FALSE)+ROW()-2)),\"\")","v":{"$error":"#N/A"}},{"$f":"IF(INDIRECT(\"c\" & (VLOOKUP(Rebalance!$D$63,$F$2:$G$48,2,FALSE)+ROW()-2))=Rebalance!$D$63,INDIRECT(\"a\" & (VLOOKUP(Rebalance!$D$63,$F$2:$G$48,2,FALSE)+ROW()-2)),\"\")","v":{"$error":"#N/A"}},{"$f":"IF(INDIRECT(\"c\" & (VLOOKUP(Rebalance!$D$64,$F$2:$G$48,2,FALSE)+ROW()-2))=Rebalance!$D$64,INDIRECT(\"a\" & (VLOOKUP(Rebalance!$D$64,$F$2:$G$48,2,FALSE)+ROW()-2)),\"\")","v":{"$error":"#N/A"}},{"$f":"IF(INDIRECT(\"c\" & (VLOOKUP(Rebalance!$D$65,$F$2:$G$48,2,FALSE)+ROW()-2))=Rebalance!$D$65,INDIRECT(\"a\" & (VLOOKUP(Rebalance!$D$65,$F$2:$G$48,2,FALSE)+ROW()-2)),\"\")","v":{"$error":"#N/A"}},{"$f":"IF(INDIRECT(\"c\" & (VLOOKUP(Rebalance!$D$66,$F$2:$G$48,2,FALSE)+ROW()-2))=Rebalance!$D$66,INDIRECT(\"a\" & (VLOOKUP(Rebalance!$D$66,$F$2:$G$48,2,FALSE)+ROW()-2)),\"\")","v":{"$error":"#N/A"}}]
[null,null,null,{"$f":"ROW()","v":672},null,null,{"$f":"VLOOKUP(F672,$C$2:$D$599,2,FALSE)","v":{"$error":"#N/A"}},{"$f":"IF(INDIRECT(\"c\" & (VLOOKUP(Rebalance!$D$26,$F$2:$G$48,2,FALSE)+ROW()-2))=Rebalance!$D$26,INDIRECT(\"a\" & (VLOOKUP(Rebalance!$D$26,$F$2:$G$48,2,FALSE)+ROW()-2)),\"\")","v":{"$error":"#N/A"}},{"$f":"IF(INDIRECT(\"c\" & (VLOOKUP(Rebalance!$D$27,$F$2:$G$48,2,FALSE)+ROW()-2))=Rebalance!$D$27,INDIRECT(\"a\" & (VLOOKUP(Rebalance!$D$27,$F$2:$G$48,2,FALSE)+ROW()-2)),\"\")","v":{"$error":"#N/A"}},{"$f":"IF(INDIRECT(\"c\" & (VLOOKUP(Rebalance!$D$28,$F$2:$G$48,2,FALSE)+ROW()-2))=Rebalance!$D$28,INDIRECT(\"a\" & (VLOOKUP(Rebalance!$D$28,$F$2:$G$48,2,FALSE)+ROW()-2)),\"\")","v":{"$error":"#N/A"}},{"$f":"IF(INDIRECT(\"c\" & (VLOOKUP(Rebalance!$D$29,$F$2:$G$48,2,FALSE)+ROW()-2))=Rebalance!$D$29,INDIRECT(\"a\" & (VLOOKUP(Rebalance!$D$29,$F$2:$G$48,2,FALSE)+ROW()-2)),\"\")","v":{"$error":"#N/A"}},{"$f":"IF(INDIRECT(\"c\" & (VLOOKUP(Rebalance!$D$30,$F$2:$G$48,2,FALSE)+ROW()-2))=Rebalance!$D$30,INDIRECT(\"a\" & (VLOOKUP(Rebalance!$D$30,$F$2:$G$48,2,FALSE)+ROW()-2)),\"\")","v":{"$error":"#N/A"}},{"$f":"IF(INDIRECT(\"c\" & (VLOOKUP(Rebalance!$D$31,$F$2:$G$48,2,FALSE)+ROW()-2))=Rebalance!$D$31,INDIRECT(\"a\" & (VLOOKUP(Rebalance!$D$31,$F$2:$G$48,2,FALSE)+ROW()-2)),\"\")","v":{"$error":"#N/A"}},{"$f":"IF(INDIRECT(\"c\" & (VLOOKUP(Rebalance!$D$32,$F$2:$G$48,2,FALSE)+ROW()-2))=Rebalance!$D$32,INDIRECT(\"a\" & (VLOOKUP(Rebalance!$D$32,$F$2:$G$48,2,FALSE)+ROW()-2)),\"\")","v":{"$error":"#N/A"}},{"$f":"IF(INDIRECT(\"c\" & (VLOOKUP(Rebalance!$D$33,$F$2:$G$48,2,FALSE)+ROW()-2))=Rebalance!$D$33,INDIRECT(\"a\" & (VLOOKUP(Rebalance!$D$33,$F$2:$G$48,2,FALSE)+ROW()-2)),\"\")","v":{"$error":"#N/A"}},{"$f":"IF(INDIRECT(\"c\" & (VLOOKUP(Rebalance!$D$34,$F$2:$G$48,2,FALSE)+ROW()-2))=Rebalance!$D$34,INDIRECT(\"a\" & (VLOOKUP(Rebalance!$D$34,$F$2:$G$48,2,FALSE)+ROW()-2)),\"\")","v":{"$error":"#N/A"}},{"$f":"IF(INDIRECT(\"c\" & (VLOOKUP(Rebalance!$D$35,$F$2:$G$48,2,FALSE)+ROW()-2))=Rebalance!$D$35,INDIRECT(\"a\" & (VLOOKUP(Rebalance!$D$35,$F$2:$G$48,2,FALSE)+ROW()-2)),\"\")","v":{"$error":"#N/A"}},{"$f":"IF(INDIRECT(\"c\" & (VLOOKUP(Rebalance!$D$36,$F$2:$G$48,2,FALSE)+ROW()-2))=Rebalance!$D$36,INDIRECT(\"a\" & (VLOOKUP(Rebalance!$D$36,$F$2:$G$48,2,FALSE)+ROW()-2)),\"\")","v":{"$error":"#N/A"}},{"$f":"IF(INDIRECT(\"c\" & (VLOOKUP(Rebalance!$D$37,$F$2:$G$48,2,FALSE)+ROW()-2))=Rebalance!$D$37,INDIRECT(\"a\" & (VLOOKUP(Rebalance!$D$37,$F$2:$G$48,2,FALSE)+ROW()-2)),\"\")","v":{"$error":"#N/A"}},{"$f":"IF(INDIRECT(\"c\" & (VLOOKUP(Rebalance!$D$38,$F$2:$G$48,2,FALSE)+ROW()-2))=Rebalance!$D$38,INDIRECT(\"a\" & (VLOOKUP(Rebalance!$D$38,$F$2:$G$48,2,FALSE)+ROW()-2)),\"\")","v":{"$error":"#N/A"}},{"$f":"IF(INDIRECT(\"c\" & (VLOOKUP(Rebalance!$D$39,$F$2:$G$48,2,FALSE)+ROW()-2))=Rebalance!$D$39,INDIRECT(\"a\" & (VLOOKUP(Rebalance!$D$39,$F$2:$G$48,2,FALSE)+ROW()-2)),\"\")","v":{"$error":"#N/A"}},{"$f":"IF(INDIRECT(\"c\" & (VLOOKUP(Rebalance!$D$40,$F$2:$G$48,2,FALSE)+ROW()-2))=Rebalance!$D$40,INDIRECT(\"a\" & (VLOOKUP(Rebalance!$D$40,$F$2:$G$48,2,FALSE)+ROW()-2)),\"\")","v":{"$error":"#N/A"}},{"$f":"IF(INDIRECT(\"c\" & (VLOOKUP(Rebalance!$D$52,$F$2:$G$48,2,FALSE)+ROW()-2))=Rebalance!$D$52,INDIRECT(\"a\" & (VLOOKUP(Rebalance!$D$52,$F$2:$G$48,2,FALSE)+ROW()-2)),\"\")","v":{"$error":"#N/A"}},{"$f":"IF(INDIRECT(\"c\" & (VLOOKUP(Rebalance!$D$53,$F$2:$G$48,2,FALSE)+ROW()-2))=Rebalance!$D$53,INDIRECT(\"a\" & (VLOOKUP(Rebalance!$D$53,$F$2:$G$48,2,FALSE)+ROW()-2)),\"\")","v":{"$error":"#N/A"}},{"$f":"IF(INDIRECT(\"c\" & (VLOOKUP(Rebalance!$D$54,$F$2:$G$48,2,FALSE)+ROW()-2))=Rebalance!$D$54,INDIRECT(\"a\" & (VLOOKUP(Rebalance!$D$54,$F$2:$G$48,2,FALSE)+ROW()-2)),\"\")","v":{"$error":"#N/A"}},{"$f":"IF(INDIRECT(\"c\" & (VLOOKUP(Rebalance!$D$55,$F$2:$G$48,2,FALSE)+ROW()-2))=Rebalance!$D$55,INDIRECT(\"a\" & (VLOOKUP(Rebalance!$D$55,$F$2:$G$48,2,FALSE)+ROW()-2)),\"\")","v":{"$error":"#N/A"}},{"$f":"IF(INDIRECT(\"c\" & (VLOOKUP(Rebalance!$D$56,$F$2:$G$48,2,FALSE)+ROW()-2))=Rebalance!$D$56,INDIRECT(\"a\" & (VLOOKUP(Rebalance!$D$56,$F$2:$G$48,2,FALSE)+ROW()-2)),\"\")","v":{"$error":"#N/A"}},{"$f":"IF(INDIRECT(\"c\" & (VLOOKUP(Rebalance!$D$57,$F$2:$G$48,2,FALSE)+ROW()-2))=Rebalance!$D$57,INDIRECT(\"a\" & (VLOOKUP(Rebalance!$D$57,$F$2:$G$48,2,FALSE)+ROW()-2)),\"\")","v":{"$error":"#N/A"}},{"$f":"IF(INDIRECT(\"c\" & (VLOOKUP(Rebalance!$D$58,$F$2:$G$48,2,FALSE)+ROW()-2))=Rebalance!$D$58,INDIRECT(\"a\" & (VLOOKUP(Rebalance!$D$58,$F$2:$G$48,2,FALSE)+ROW()-2)),\"\")","v":{"$error":"#N/A"}},{"$f":"IF(INDIRECT(\"c\" & (VLOOKUP(Rebalance!$D$59,$F$2:$G$48,2,FALSE)+ROW()-2))=Rebalance!$D$59,INDIRECT(\"a\" & (VLOOKUP(Rebalance!$D$59,$F$2:$G$48,2,FALSE)+ROW()-2)),\"\")","v":{"$error":"#N/A"}},{"$f":"IF(INDIRECT(\"c\" & (VLOOKUP(Rebalance!$D$60,$F$2:$G$48,2,FALSE)+ROW()-2))=Rebalance!$D$60,INDIRECT(\"a\" & (VLOOKUP(Rebalance!$D$60,$F$2:$G$48,2,FALSE)+ROW()-2)),\"\")","v":{"$error":"#N/A"}},{"$f":"IF(INDIRECT(\"c\" & (VLOOKUP(Rebalance!$D$61,$F$2:$G$48,2,FALSE)+ROW()-2))=Rebalance!$D$61,INDIRECT(\"a\" & (VLOOKUP(Rebalance!$D$61,$F$2:$G$48,2,FALSE)+ROW()-2)),\"\")","v":{"$error":"#N/A"}},{"$f":"IF(INDIRECT(\"c\" & (VLOOKUP(Rebalance!$D$62,$F$2:$G$48,2,FALSE)+ROW()-2))=Rebalance!$D$62,INDIRECT(\"a\" & (VLOOKUP(Rebalance!$D$62,$F$2:$G$48,2,FALSE)+ROW()-2)),\"\")","v":{"$error":"#N/A"}},{"$f":"IF(INDIRECT(\"c\" & (VLOOKUP(Rebalance!$D$63,$F$2:$G$48,2,FALSE)+ROW()-2))=Rebalance!$D$63,INDIRECT(\"a\" & (VLOOKUP(Rebalance!$D$63,$F$2:$G$48,2,FALSE)+ROW()-2)),\"\")","v":{"$error":"#N/A"}},{"$f":"IF(INDIRECT(\"c\" & (VLOOKUP(Rebalance!$D$64,$F$2:$G$48,2,FALSE)+ROW()-2))=Rebalance!$D$64,INDIRECT(\"a\" & (VLOOKUP(Rebalance!$D$64,$F$2:$G$48,2,FALSE)+ROW()-2)),\"\")","v":{"$error":"#N/A"}},{"$f":"IF(INDIRECT(\"c\" & (VLOOKUP(Rebalance!$D$65,$F$2:$G$48,2,FALSE)+ROW()-2))=Rebalance!$D$65,INDIRECT(\"a\" & (VLOOKUP(Rebalance!$D$65,$F$2:$G$48,2,FALSE)+ROW()-2)),\"\")","v":{"$error":"#N/A"}},{"$f":"IF(INDIRECT(\"c\" & (VLOOKUP(Rebalance!$D$66,$F$2:$G$48,2,FALSE)+ROW()-2))=Rebalance!$D$66,INDIRECT(\"a\" & (VLOOKUP(Rebalance!$D$66,$F$2:$G$48,2,FALSE)+ROW()-2)),\"\")","v":{"$error":"#N/A"}}]
[null,null,null,{"$f":"ROW()","v":673},null,null,{"$f":"VLOOKUP(F673,$C$2:$D$599,2,FALSE)","v":{"$error":"#N/A"}},{"$f":"IF(INDIRECT(\"c\" & (VLOOKUP(Rebalance!$D$26,$F$2:$G$48,2,FALSE)+ROW()-2))=Rebalance!$D$26,INDIRECT(\"a\" & (VLOOKUP(Rebalance!$D$26,$F$2:$G$48,2,FALSE)+ROW()-2)),\"\")","v":{"$error":"#N/A"}},{"$f":"IF(INDIRECT(\"c\" & (VLOOKUP(Rebalance!$D$27,$F$2:$G$48,2,FALSE)+ROW()-2))=Rebalance!$D$27,INDIRECT(\"a\" & (VLOOKUP(Rebalance!$D$27,$F$2:$G$48,2,FALSE)+ROW()-2)),\"\")","v":{"$error":"#N/A"}},{"$f":"IF(INDIRECT(\"c\" & (VLOOKUP(Rebalance!$D$28,$F$2:$G$48,2,FALSE)+ROW()-2))=Rebalance!$D$28,INDIRECT(\"a\" & (VLOOKUP(Rebalance!$D$28,$F$2:$G$48,2,FALSE)+ROW()-2)),\"\")","v":{"$error":"#N/A"}},{"$f":"IF(INDIRECT(\"c\" & (VLOOKUP(Rebalance!$D$29,$F$2:$G$48,2,FALSE)+ROW()-2))=Rebalance!$D$29,INDIRECT(\"a\" & (VLOOKUP(Rebalance!$D$29,$F$2:$G$48,2,FALSE)+ROW()-2)),\"\")","v":{"$error":"#N/A"}},{"$f":"IF(INDIRECT(\"c\" & (VLOOKUP(Rebalance!$D$30,$F$2:$G$48,2,FALSE)+ROW()-2))=Rebalance!$D$30,INDIRECT(\"a\" & (VLOOKUP(Rebalance!$D$30,$F$2:$G$48,2,FALSE)+ROW()-2)),\"\")","v":{"$error":"#N/A"}},{"$f":"IF(INDIRECT(\"c\" & (VLOOKUP(Rebalance!$D$31,$F$2:$G$48,2,FALSE)+ROW()-2))=Rebalance!$D$31,INDIRECT(\"a\" & (VLOOKUP(Rebalance!$D$31,$F$2:$G$48,2,FALSE)+ROW()-2)),\"\")","v":{"$error":"#N/A"}},{"$f":"IF(INDIRECT(\"c\" & (VLOOKUP(Rebalance!$D$32,$F$2:$G$48,2,FALSE)+ROW()-2))=Rebalance!$D$32,INDIRECT(\"a\" & (VLOOKUP(Rebalance!$D$32,$F$2:$G$48,2,FALSE)+ROW()-2)),\"\")","v":{"$error":"#N/A"}},{"$f":"IF(INDIRECT(\"c\" & (VLOOKUP(Rebalance!$D$33,$F$2:$G$48,2,FALSE)+ROW()-2))=Rebalance!$D$33,INDIRECT(\"a\" & (VLOOKUP(Rebalance!$D$33,$F$2:$G$48,2,FALSE)+ROW()-2)),\"\")","v":{"$error":"#N/A"}},{"$f":"IF(INDIRECT(\"c\" & (VLOOKUP(Rebalance!$D$34,$F$2:$G$48,2,FALSE)+ROW()-2))=Rebalance!$D$34,INDIRECT(\"a\" & (VLOOKUP(Rebalance!$D$34,$F$2:$G$48,2,FALSE)+ROW()-2)),\"\")","v":{"$error":"#N/A"}},{"$f":"IF(INDIRECT(\"c\" & (VLOOKUP(Rebalance!$D$35,$F$2:$G$48,2,FALSE)+ROW()-2))=Rebalance!$D$35,INDIRECT(\"a\" & (VLOOKUP(Rebalance!$D$35,$F$2:$G$48,2,FALSE)+ROW()-2)),\"\")","v":{"$error":"#N/A"}},{"$f":"IF(INDIRECT(\"c\" & (VLOOKUP(Rebalance!$D$36,$F$2:$G$48,2,FALSE)+ROW()-2))=Rebalance!$D$36,INDIRECT(\"a\" & (VLOOKUP(Rebalance!$D$36,$F$2:$G$48,2,FALSE)+ROW()-2)),\"\")","v":{"$error":"#N/A"}},{"$f":"IF(INDIRECT(\"c\" & (VLOOKUP(Rebalance!$D$37,$F$2:$G$48,2,FALSE)+ROW()-2))=Rebalance!$D$37,INDIRECT(\"a\" & (VLOOKUP(Rebalance!$D$37,$F$2:$G$48,2,FALSE)+ROW()-2)),\"\")","v":{"$error":"#N/A"}},{"$f":"IF(INDIRECT(\"c\" & (VLOOKUP(Rebalance!$D$38,$F$2:$G$48,2,FALSE)+ROW()-2))=Rebalance!$D$38,INDIRECT(\"a\" & (VLOOKUP(Rebalance!$D$38,$F$2:$G$48,2,FALSE)+ROW()-2)),\"\")","v":{"$error":"#N/A"}},{"$f":"IF(INDIRECT(\"c\" & (VLOOKUP(Rebalance!$D$39,$F$2:$G$48,2,FALSE)+ROW()-2))=Rebalance!$D$39,INDIRECT(\"a\" & (VLOOKUP(Rebalance!$D$39,$F$2:$G$48,2,FALSE)+ROW()-2)),\"\")","v":{"$error":"#N/A"}},{"$f":"IF(INDIRECT(\"c\" & (VLOOKUP(Rebalance!$D$40,$F$2:$G$48,2,FALSE)+ROW()-2))=Rebalance!$D$40,INDIRECT(\"a\" & (VLOOKUP(Rebalance!$D$40,$F$2:$G$48,2,FALSE)+ROW()-2)),\"\")","v":{"$error":"#N/A"}},{"$f":"IF(INDIRECT(\"c\" & (VLOOKUP(Rebalance!$D$52,$F$2:$G$48,2,FALSE)+ROW()-2))=Rebalance!$D$52,INDIRECT(\"a\" & (VLOOKUP(Rebalance!$D$52,$F$2:$G$48,2,FALSE)+ROW()-2)),\"\")","v":{"$error":"#N/A"}},{"$f":"IF(INDIRECT(\"c\" & (VLOOKUP(Rebalance!$D$53,$F$2:$G$48,2,FALSE)+ROW()-2))=Rebalance!$D$53,INDIRECT(\"a\" & (VLOOKUP(Rebalance!$D$53,$F$2:$G$48,2,FALSE)+ROW()-2)),\"\")","v":{"$error":"#N/A"}},{"$f":"IF(INDIRECT(\"c\" & (VLOOKUP(Rebalance!$D$54,$F$2:$G$48,2,FALSE)+ROW()-2))=Rebalance!$D$54,INDIRECT(\"a\" & (VLOOKUP(Rebalance!$D$54,$F$2:$G$48,2,FALSE)+ROW()-2)),\"\")","v":{"$error":"#N/A"}},{"$f":"IF(INDIRECT(\"c\" & (VLOOKUP(Rebalance!$D$55,$F$2:$G$48,2,FALSE)+ROW()-2))=Rebalance!$D$55,INDIRECT(\"a\" & (VLOOKUP(Rebalance!$D$55,$F$2:$G$48,2,FALSE)+ROW()-2)),\"\")","v":{"$error":"#N/A"}},{"$f":"IF(INDIRECT(\"c\" & (VLOOKUP(Rebalance!$D$56,$F$2:$G$48,2,FALSE)+ROW()-2))=Rebalance!$D$56,INDIRECT(\"a\" & (VLOOKUP(Rebalance!$D$56,$F$2:$G$48,2,FALSE)+ROW()-2)),\"\")","v":{"$error":"#N/A"}},{"$f":"IF(INDIRECT(\"c\" & (VLOOKUP(Rebalance!$D$57,$F$2:$G$48,2,FALSE)+ROW()-2))=Rebalance!$D$57,INDIRECT(\"a\" & (VLOOKUP(Rebalance!$D$57,$F$2:$G$48,2,FALSE)+ROW()-2)),\"\")","v":{"$error":"#N/A"}},{"$f":"IF(INDIRECT(\"c\" & (VLOOKUP(Rebalance!$D$58,$F$2:$G$48,2,FALSE)+ROW()-2))=Rebalance!$D$58,INDIRECT(\"a\" & (VLOOKUP(Rebalance!$D$58,$F$2:$G$48,2,FALSE)+ROW()-2)),\"\")","v":{"$error":"#N/A"}},{"$f":"IF(INDIRECT(\"c\" & (VLOOKUP(Rebalance!$D$59,$F$2:$G$48,2,FALSE)+ROW()-2))=Rebalance!$D$59,INDIRECT(\"a\" & (VLOOKUP(Rebalance!$D$59,$F$2:$G$48,2,FALSE)+ROW()-2)),\"\")","v":{"$error":"#N/A"}},{"$f":"IF(INDIRECT(\"c\" & (VLOOKUP(Rebalance!$D$60,$F$2:$G$48,2,FALSE)+ROW()-2))=Rebalance!$D$60,INDIRECT(\"a\" & (VLOOKUP(Rebalance!$D$60,$F$2:$G$48,2,FALSE)+ROW()-2)),\"\")","v":{"$error":"#N/A"}},{"$f":"IF(INDIRECT(\"c\" & (VLOOKUP(Rebalance!$D$61,$F$2:$G$48,2,FALSE)+ROW()-2))=Rebalance!$D$61,INDIRECT(\"a\" & (VLOOKUP(Rebalance!$D$61,$F$2:$G$48,2,FALSE)+ROW()-2)),\"\")","v":{"$error":"#N/A"}},{"$f":"IF(INDIRECT(\"c\" & (VLOOKUP(Rebalance!$D$62,$F$2:$G$48,2,FALSE)+ROW()-2))=Rebalance!$D$62,INDIRECT(\"a\" & (VLOOKUP(Rebalance!$D$62,$F$2:$G$48,2,FALSE)+ROW()-2)),\"\")","v":{"$error":"#N/A"}},{"$f":"IF(INDIRECT(\"c\" & (VLOOKUP(Rebalance!$D$63,$F$2:$G$48,2,FALSE)+ROW()-2))=Rebalance!$D$63,INDIRECT(\"a\" & (VLOOKUP(Rebalance!$D$63,$F$2:$G$48,2,FALSE)+ROW()-2)),\"\")","v":{"$error":"#N/A"}},{"$f":"IF(INDIRECT(\"c\" & (VLOOKUP(Rebalance!$D$64,$F$2:$G$48,2,FALSE)+ROW()-2))=Rebalance!$D$64,INDIRECT(\"a\" & (VLOOKUP(Rebalance!$D$64,$F$2:$G$48,2,FALSE)+ROW()-2)),\"\")","v":{"$error":"#N/A"}},{"$f":"IF(INDIRECT(\"c\" & (VLOOKUP(Rebalance!$D$65,$F$2:$G$48,2,FALSE)+ROW()-2))=Rebalance!$D$65,INDIRECT(\"a\" & (VLOOKUP(Rebalance!$D$65,$F$2:$G$48,2,FALSE)+ROW()-2)),\"\")","v":{"$error":"#N/A"}},{"$f":"IF(INDIRECT(\"c\" & (VLOOKUP(Rebalance!$D$66,$F$2:$G$48,2,FALSE)+ROW()-2))=Rebalance!$D$66,INDIRECT(\"a\" & (VLOOKUP(Rebalance!$D$66,$F$2:$G$48,2,FALSE)+ROW()-2)),\"\")","v":{"$error":"#N/A"}}]
[null,null,null,{"$f":"ROW()","v":674},null,null,{"$f":"VLOOKUP(F674,$C$2:$D$599,2,FALSE)","v":{"$error":"#N/A"}},{"$f":"IF(INDIRECT(\"c\" & (VLOOKUP(Rebalance!$D$26,$F$2:$G$48,2,FALSE)+ROW()-2))=Rebalance!$D$26,INDIRECT(\"a\" & (VLOOKUP(Rebalance!$D$26,$F$2:$G$48,2,FALSE)+ROW()-2)),\"\")","v":{"$error":"#N/A"}},{"$f":"IF(INDIRECT(\"c\" & (VLOOKUP(Rebalance!$D$27,$F$2:$G$48,2,FALSE)+ROW()-2))=Rebalance!$D$27,INDIRECT(\"a\" & (VLOOKUP(Rebalance!$D$27,$F$2:$G$48,2,FALSE)+ROW()-2)),\"\")","v":{"$error":"#N/A"}},{"$f":"IF(INDIRECT(\"c\" & (VLOOKUP(Rebalance!$D$28,$F$2:$G$48,2,FALSE)+ROW()-2))=Rebalance!$D$28,INDIRECT(\"a\" & (VLOOKUP(Rebalance!$D$28,$F$2:$G$48,2,FALSE)+ROW()-2)),\"\")","v":{"$error":"#N/A"}},{"$f":"IF(INDIRECT(\"c\" & (VLOOKUP(Rebalance!$D$29,$F$2:$G$48,2,FALSE)+ROW()-2))=Rebalance!$D$29,INDIRECT(\"a\" & (VLOOKUP(Rebalance!$D$29,$F$2:$G$48,2,FALSE)+ROW()-2)),\"\")","v":{"$error":"#N/A"}},{"$f":"IF(INDIRECT(\"c\" & (VLOOKUP(Rebalance!$D$30,$F$2:$G$48,2,FALSE)+ROW()-2))=Rebalance!$D$30,INDIRECT(\"a\" & (VLOOKUP(Rebalance!$D$30,$F$2:$G$48,2,FALSE)+ROW()-2)),\"\")","v":{"$error":"#N/A"}},{"$f":"IF(INDIRECT(\"c\" & (VLOOKUP(Rebalance!$D$31,$F$2:$G$48,2,FALSE)+ROW()-2))=Rebalance!$D$31,INDIRECT(\"a\" & (VLOOKUP(Rebalance!$D$31,$F$2:$G$48,2,FALSE)+ROW()-2)),\"\")","v":{"$error":"#N/A"}},{"$f":"IF(INDIRECT(\"c\" & (VLOOKUP(Rebalance!$D$32,$F$2:$G$48,2,FALSE)+ROW()-2))=Rebalance!$D$32,INDIRECT(\"a\" & (VLOOKUP(Rebalance!$D$32,$F$2:$G$48,2,FALSE)+ROW()-2)),\"\")","v":{"$error":"#N/A"}},{"$f":"IF(INDIRECT(\"c\" & (VLOOKUP(Rebalance!$D$33,$F$2:$G$48,2,FALSE)+ROW()-2))=Rebalance!$D$33,INDIRECT(\"a\" & (VLOOKUP(Rebalance!$D$33,$F$2:$G$48,2,FALSE)+ROW()-2)),\"\")","v":{"$error":"#N/A"}},{"$f":"IF(INDIRECT(\"c\" & (VLOOKUP(Rebalance!$D$34,$F$2:$G$48,2,FALSE)+ROW()-2))=Rebalance!$D$34,INDIRECT(\"a\" & (VLOOKUP(Rebalance!$D$34,$F$2:$G$48,2,FALSE)+ROW()-2)),\"\")","v":{"$error":"#N/A"}},{"$f":"IF(INDIRECT(\"c\" & (VLOOKUP(Rebalance!$D$35,$F$2:$G$48,2,FALSE)+ROW()-2))=Rebalance!$D$35,INDIRECT(\"a\" & (VLOOKUP(Rebalance!$D$35,$F$2:$G$48,2,FALSE)+ROW()-2)),\"\")","v":{"$error":"#N/A"}},{"$f":"IF(INDIRECT(\"c\" & (VLOOKUP(Rebalance!$D$36,$F$2:$G$48,2,FALSE)+ROW()-2))=Rebalance!$D$36,INDIRECT(\"a\" & (VLOOKUP(Rebalance!$D$36,$F$2:$G$48,2,FALSE)+ROW()-2)),\"\")","v":{"$error":"#N/A"}},{"$f":"IF(INDIRECT(\"c\" & (VLOOKUP(Rebalance!$D$37,$F$2:$G$48,2,FALSE)+ROW()-2))=Rebalance!$D$37,INDIRECT(\"a\" & (VLOOKUP(Rebalance!$D$37,$F$2:$G$48,2,FALSE)+ROW()-2)),\"\")","v":{"$error":"#N/A"}},{"$f":"IF(INDIRECT(\"c\" & (VLOOKUP(Rebalance!$D$38,$F$2:$G$48,2,FALSE)+ROW()-2))=Rebalance!$D$38,INDIRECT(\"a\" & (VLOOKUP(Rebalance!$D$38,$F$2:$G$48,2,FALSE)+ROW()-2)),\"\")","v":{"$error":"#N/A"}},{"$f":"IF(INDIRECT(\"c\" & (VLOOKUP(Rebalance!$D$39,$F$2:$G$48,2,FALSE)+ROW()-2))=Rebalance!$D$39,INDIRECT(\"a\" & (VLOOKUP(Rebalance!$D$39,$F$2:$G$48,2,FALSE)+ROW()-2)),\"\")","v":{"$error":"#N/A"}},{"$f":"IF(INDIRECT(\"c\" & (VLOOKUP(Rebalance!$D$40,$F$2:$G$48,2,FALSE)+ROW()-2))=Rebalance!$D$40,INDIRECT(\"a\" & (VLOOKUP(Rebalance!$D$40,$F$2:$G$48,2,FALSE)+ROW()-2)),\"\")","v":{"$error":"#N/A"}},{"$f":"IF(INDIRECT(\"c\" & (VLOOKUP(Rebalance!$D$52,$F$2:$G$48,2,FALSE)+ROW()-2))=Rebalance!$D$52,INDIRECT(\"a\" & (VLOOKUP(Rebalance!$D$52,$F$2:$G$48,2,FALSE)+ROW()-2)),\"\")","v":{"$error":"#N/A"}},{"$f":"IF(INDIRECT(\"c\" & (VLOOKUP(Rebalance!$D$53,$F$2:$G$48,2,FALSE)+ROW()-2))=Rebalance!$D$53,INDIRECT(\"a\" & (VLOOKUP(Rebalance!$D$53,$F$2:$G$48,2,FALSE)+ROW()-2)),\"\")","v":{"$error":"#N/A"}},{"$f":"IF(INDIRECT(\"c\" & (VLOOKUP(Rebalance!$D$54,$F$2:$G$48,2,FALSE)+ROW()-2))=Rebalance!$D$54,INDIRECT(\"a\" & (VLOOKUP(Rebalance!$D$54,$F$2:$G$48,2,FALSE)+ROW()-2)),\"\")","v":{"$error":"#N/A"}},{"$f":"IF(INDIRECT(\"c\" & (VLOOKUP(Rebalance!$D$55,$F$2:$G$48,2,FALSE)+ROW()-2))=Rebalance!$D$55,INDIRECT(\"a\" & (VLOOKUP(Rebalance!$D$55,$F$2:$G$48,2,FALSE)+ROW()-2)),\"\")","v":{"$error":"#N/A"}},{"$f":"IF(INDIRECT(\"c\" & (VLOOKUP(Rebalance!$D$56,$F$2:$G$48,2,FALSE)+ROW()-2))=Rebalance!$D$56,INDIRECT(\"a\" & (VLOOKUP(Rebalance!$D$56,$F$2:$G$48,2,FALSE)+ROW()-2)),\"\")","v":{"$error":"#N/A"}},{"$f":"IF(INDIRECT(\"c\" & (VLOOKUP(Rebalance!$D$57,$F$2:$G$48,2,FALSE)+ROW()-2))=Rebalance!$D$57,INDIRECT(\"a\" & (VLOOKUP(Rebalance!$D$57,$F$2:$G$48,2,FALSE)+ROW()-2)),\"\")","v":{"$error":"#N/A"}},{"$f":"IF(INDIRECT(\"c\" & (VLOOKUP(Rebalance!$D$58,$F$2:$G$48,2,FALSE)+ROW()-2))=Rebalance!$D$58,INDIRECT(\"a\" & (VLOOKUP(Rebalance!$D$58,$F$2:$G$48,2,FALSE)+ROW()-2)),\"\")","v":{"$error":"#N/A"}},{"$f":"IF(INDIRECT(\"c\" & (VLOOKUP(Rebalance!$D$59,$F$2:$G$48,2,FALSE)+ROW()-2))=Rebalance!$D$59,INDIRECT(\"a\" & (VLOOKUP(Rebalance!$D$59,$F$2:$G$48,2,FALSE)+ROW()-2)),\"\")","v":{"$error":"#N/A"}},{"$f":"IF(INDIRECT(\"c\" & (VLOOKUP(Rebalance!$D$60,$F$2:$G$48,2,FALSE)+ROW()-2))=Rebalance!$D$60,INDIRECT(\"a\" & (VLOOKUP(Rebalance!$D$60,$F$2:$G$48,2,FALSE)+ROW()-2)),\"\")","v":{"$error":"#N/A"}},{"$f":"IF(INDIRECT(\"c\" & (VLOOKUP(Rebalance!$D$61,$F$2:$G$48,2,FALSE)+ROW()-2))=Rebalance!$D$61,INDIRECT(\"a\" & (VLOOKUP(Rebalance!$D$61,$F$2:$G$48,2,FALSE)+ROW()-2)),\"\")","v":{"$error":"#N/A"}},{"$f":"IF(INDIRECT(\"c\" & (VLOOKUP(Rebalance!$D$62,$F$2:$G$48,2,FALSE)+ROW()-2))=Rebalance!$D$62,INDIRECT(\"a\" & (VLOOKUP(Rebalance!$D$62,$F$2:$G$48,2,FALSE)+ROW()-2)),\"\")","v":{"$error":"#N/A"}},{"$f":"IF(INDIRECT(\"c\" & (VLOOKUP(Rebalance!$D$63,$F$2:$G$48,2,FALSE)+ROW()-2))=Rebalance!$D$63,INDIRECT(\"a\" & (VLOOKUP(Rebalance!$D$63,$F$2:$G$48,2,FALSE)+ROW()-2)),\"\")","v":{"$error":"#N/A"}},{"$f":"IF(INDIRECT(\"c\" & (VLOOKUP(Rebalance!$D$64,$F$2:$G$48,2,FALSE)+ROW()-2))=Rebalance!$D$64,INDIRECT(\"a\" & (VLOOKUP(Rebalance!$D$64,$F$2:$G$48,2,FALSE)+ROW()-2)),\"\")","v":{"$error":"#N/A"}},{"$f":"IF(INDIRECT(\"c\" & (VLOOKUP(Rebalance!$D$65,$F$2:$G$48,2,FALSE)+ROW()-2))=Rebalance!$D$65,INDIRECT(\"a\" & (VLOOKUP(Rebalance!$D$65,$F$2:$G$48,2,FALSE)+ROW()-2)),\"\")","v":{"$error":"#N/A"}},{"$f":"IF(INDIRECT(\"c\" & (VLOOKUP(Rebalance!$D$66,$F$2:$G$48,2,FALSE)+ROW()-2))=Rebalance!$D$66,INDIRECT(\"a\" & (VLOOKUP(Rebalance!$D$66,$F$2:$G$48,2,FALSE)+ROW()-2)),\"\")","v":{"$error":"#N/A"}}]
[null,null,null,{"$f":"ROW()","v":675},null,null,{"$f":"VLOOKUP(F675,$C$2:$D$599,2,FALSE)","v":{"$error":"#N/A"}},{"$f":"IF(INDIRECT(\"c\" & (VLOOKUP(Rebalance!$D$26,$F$2:$G$48,2,FALSE)+ROW()-2))=Rebalance!$D$26,INDIRECT(\"a\" & (VLOOKUP(Rebalance!$D$26,$F$2:$G$48,2,FALSE)+ROW()-2)),\"\")","v":{"$error":"#N/A"}},{"$f":"IF(INDIRECT(\"c\" & (VLOOKUP(Rebalance!$D$27,$F$2:$G$48,2,FALSE)+ROW()-2))=Rebalance!$D$27,INDIRECT(\"a\" & (VLOOKUP(Rebalance!$D$27,$F$2:$G$48,2,FALSE)+ROW()-2)),\"\")","v":{"$error":"#N/A"}},{"$f":"IF(INDIRECT(\"c\" & (VLOOKUP(Rebalance!$D$28,$F$2:$G$48,2,FALSE)+ROW()-2))=Rebalance!$D$28,INDIRECT(\"a\" & (VLOOKUP(Rebalance!$D$28,$F$2:$G$48,2,FALSE)+ROW()-2)),\"\")","v":{"$error":"#N/A"}},{"$f":"IF(INDIRECT(\"c\" & (VLOOKUP(Rebalance!$D$29,$F$2:$G$48,2,FALSE)+ROW()-2))=Rebalance!$D$29,INDIRECT(\"a\" & (VLOOKUP(Rebalance!$D$29,$F$2:$G$48,2,FALSE)+ROW()-2)),\"\")","v":{"$error":"#N/A"}},{"$f":"IF(INDIRECT(\"c\" & (VLOOKUP(Rebalance!$D$30,$F$2:$G$48,2,FALSE)+ROW()-2))=Rebalance!$D$30,INDIRECT(\"a\" & (VLOOKUP(Rebalance!$D$30,$F$2:$G$48,2,FALSE)+ROW()-2)),\"\")","v":{"$error":"#N/A"}},{"$f":"IF(INDIRECT(\"c\" & (VLOOKUP(Rebalance!$D$31,$F$2:$G$48,2,FALSE)+ROW()-2))=Rebalance!$D$31,INDIRECT(\"a\" & (VLOOKUP(Rebalance!$D$31,$F$2:$G$48,2,FALSE)+ROW()-2)),\"\")","v":{"$error":"#N/A"}},{"$f":"IF(INDIRECT(\"c\" & (VLOOKUP(Rebalance!$D$32,$F$2:$G$48,2,FALSE)+ROW()-2))=Rebalance!$D$32,INDIRECT(\"a\" & (VLOOKUP(Rebalance!$D$32,$F$2:$G$48,2,FALSE)+ROW()-2)),\"\")","v":{"$error":"#N/A"}},{"$f":"IF(INDIRECT(\"c\" & (VLOOKUP(Rebalance!$D$33,$F$2:$G$48,2,FALSE)+ROW()-2))=Rebalance!$D$33,INDIRECT(\"a\" & (VLOOKUP(Rebalance!$D$33,$F$2:$G$48,2,FALSE)+ROW()-2)),\"\")","v":{"$error":"#N/A"}},{"$f":"IF(INDIRECT(\"c\" & (VLOOKUP(Rebalance!$D$34,$F$2:$G$48,2,FALSE)+ROW()-2))=Rebalance!$D$34,INDIRECT(\"a\" & (VLOOKUP(Rebalance!$D$34,$F$2:$G$48,2,FALSE)+ROW()-2)),\"\")","v":{"$error":"#N/A"}},{"$f":"IF(INDIRECT(\"c\" & (VLOOKUP(Rebalance!$D$35,$F$2:$G$48,2,FALSE)+ROW()-2))=Rebalance!$D$35,INDIRECT(\"a\" & (VLOOKUP(Rebalance!$D$35,$F$2:$G$48,2,FALSE)+ROW()-2)),\"\")","v":{"$error":"#N/A"}},{"$f":"IF(INDIRECT(\"c\" & (VLOOKUP(Rebalance!$D$36,$F$2:$G$48,2,FALSE)+ROW()-2))=Rebalance!$D$36,INDIRECT(\"a\" & (VLOOKUP(Rebalance!$D$36,$F$2:$G$48,2,FALSE)+ROW()-2)),\"\")","v":{"$error":"#N/A"}},{"$f":"IF(INDIRECT(\"c\" & (VLOOKUP(Rebalance!$D$37,$F$2:$G$48,2,FALSE)+ROW()-2))=Rebalance!$D$37,INDIRECT(\"a\" & (VLOOKUP(Rebalance!$D$37,$F$2:$G$48,2,FALSE)+ROW()-2)),\"\")","v":{"$error":"#N/A"}},{"$f":"IF(INDIRECT(\"c\" & (VLOOKUP(Rebalance!$D$38,$F$2:$G$48,2,FALSE)+ROW()-2))=Rebalance!$D$38,INDIRECT(\"a\" & (VLOOKUP(Rebalance!$D$38,$F$2:$G$48,2,FALSE)+ROW()-2)),\"\")","v":{"$error":"#N/A"}},{"$f":"IF(INDIRECT(\"c\" & (VLOOKUP(Rebalance!$D$39,$F$2:$G$48,2,FALSE)+ROW()-2))=Rebalance!$D$39,INDIRECT(\"a\" & (VLOOKUP(Rebalance!$D$39,$F$2:$G$48,2,FALSE)+ROW()-2)),\"\")","v":{"$error":"#N/A"}},{"$f":"IF(INDIRECT(\"c\" & (VLOOKUP(Rebalance!$D$40,$F$2:$G$48,2,FALSE)+ROW()-2))=Rebalance!$D$40,INDIRECT(\"a\" & (VLOOKUP(Rebalance!$D$40,$F$2:$G$48,2,FALSE)+ROW()-2)),\"\")","v":{"$error":"#N/A"}},{"$f":"IF(INDIRECT(\"c\" & (VLOOKUP(Rebalance!$D$52,$F$2:$G$48,2,FALSE)+ROW()-2))=Rebalance!$D$52,INDIRECT(\"a\" & (VLOOKUP(Rebalance!$D$52,$F$2:$G$48,2,FALSE)+ROW()-2)),\"\")","v":{"$error":"#N/A"}},{"$f":"IF(INDIRECT(\"c\" & (VLOOKUP(Rebalance!$D$53,$F$2:$G$48,2,FALSE)+ROW()-2))=Rebalance!$D$53,INDIRECT(\"a\" & (VLOOKUP(Rebalance!$D$53,$F$2:$G$48,2,FALSE)+ROW()-2)),\"\")","v":{"$error":"#N/A"}},{"$f":"IF(INDIRECT(\"c\" & (VLOOKUP(Rebalance!$D$54,$F$2:$G$48,2,FALSE)+ROW()-2))=Rebalance!$D$54,INDIRECT(\"a\" & (VLOOKUP(Rebalance!$D$54,$F$2:$G$48,2,FALSE)+ROW()-2)),\"\")","v":{"$error":"#N/A"}},{"$f":"IF(INDIRECT(\"c\" & (VLOOKUP(Rebalance!$D$55,$F$2:$G$48,2,FALSE)+ROW()-2))=Rebalance!$D$55,INDIRECT(\"a\" & (VLOOKUP(Rebalance!$D$55,$F$2:$G$48,2,FALSE)+ROW()-2)),\"\")","v":{"$error":"#N/A"}},{"$f":"IF(INDIRECT(\"c\" & (VLOOKUP(Rebalance!$D$56,$F$2:$G$48,2,FALSE)+ROW()-2))=Rebalance!$D$56,INDIRECT(\"a\" & (VLOOKUP(Rebalance!$D$56,$F$2:$G$48,2,FALSE)+ROW()-2)),\"\")","v":{"$error":"#N/A"}},{"$f":"IF(INDIRECT(\"c\" & (VLOOKUP(Rebalance!$D$57,$F$2:$G$48,2,FALSE)+ROW()-2))=Rebalance!$D$57,INDIRECT(\"a\" & (VLOOKUP(Rebalance!$D$57,$F$2:$G$48,2,FALSE)+ROW()-2)),\"\")","v":{"$error":"#N/A"}},{"$f":"IF(INDIRECT(\"c\" & (VLOOKUP(Rebalance!$D$58,$F$2:$G$48,2,FALSE)+ROW()-2))=Rebalance!$D$58,INDIRECT(\"a\" & (VLOOKUP(Rebalance!$D$58,$F$2:$G$48,2,FALSE)+ROW()-2)),\"\")","v":{"$error":"#N/A"}},{"$f":"IF(INDIRECT(\"c\" & (VLOOKUP(Rebalance!$D$59,$F$2:$G$48,2,FALSE)+ROW()-2))=Rebalance!$D$59,INDIRECT(\"a\" & (VLOOKUP(Rebalance!$D$59,$F$2:$G$48,2,FALSE)+ROW()-2)),\"\")","v":{"$error":"#N/A"}},{"$f":"IF(INDIRECT(\"c\" & (VLOOKUP(Rebalance!$D$60,$F$2:$G$48,2,FALSE)+ROW()-2))=Rebalance!$D$60,INDIRECT(\"a\" & (VLOOKUP(Rebalance!$D$60,$F$2:$G$48,2,FALSE)+ROW()-2)),\"\")","v":{"$error":"#N/A"}},{"$f":"IF(INDIRECT(\"c\" & (VLOOKUP(Rebalance!$D$61,$F$2:$G$48,2,FALSE)+ROW()-2))=Rebalance!$D$61,INDIRECT(\"a\" & (VLOOKUP(Rebalance!$D$61,$F$2:$G$48,2,FALSE)+ROW()-2)),\"\")","v":{"$error":"#N/A"}},{"$f":"IF(INDIRECT(\"c\" & (VLOOKUP(Rebalance!$D$62,$F$2:$G$48,2,FALSE)+ROW()-2))=Rebalance!$D$62,INDIRECT(\"a\" & (VLOOKUP(Rebalance!$D$62,$F$2:$G$48,2,FALSE)+ROW()-2)),\"\")","v":{"$error":"#N/A"}},{"$f":"IF(INDIRECT(\"c\" & (VLOOKUP(Rebalance!$D$63,$F$2:$G$48,2,FALSE)+ROW()-2))=Rebalance!$D$63,INDIRECT(\"a\" & (VLOOKUP(Rebalance!$D$63,$F$2:$G$48,2,FALSE)+ROW()-2)),\"\")","v":{"$error":"#N/A"}},{"$f":"IF(INDIRECT(\"c\" & (VLOOKUP(Rebalance!$D$64,$F$2:$G$48,2,FALSE)+ROW()-2))=Rebalance!$D$64,INDIRECT(\"a\" & (VLOOKUP(Rebalance!$D$64,$F$2:$G$48,2,FALSE)+ROW()-2)),\"\")","v":{"$error":"#N/A"}},{"$f":"IF(INDIRECT(\"c\" & (VLOOKUP(Rebalance!$D$65,$F$2:$G$48,2,FALSE)+ROW()-2))=Rebalance!$D$65,INDIRECT(\"a\" & (VLOOKUP(Rebalance!$D$65,$F$2:$G$48,2,FALSE)+ROW()-2)),\"\")","v":{"$error":"#N/A"}},{"$f":"IF(INDIRECT(\"c\" & (VLOOKUP(Rebalance!$D$66,$F$2:$G$48,2,FALSE)+ROW()-2))=Rebalance!$D$66,INDIRECT(\"a\" & (VLOOKUP(Rebalance!$D$66,$F$2:$G$48,2,FALSE)+ROW()-2)),\"\")","v":{"$error":"#N/A"}}]
[null,null,null,{"$f":"ROW()","v":676},null,null,{"$f":"VLOOKUP(F676,$C$2:$D$599,2,FALSE)","v":{"$error":"#N/A"}},{"$f":"IF(INDIRECT(\"c\" & (VLOOKUP(Rebalance!$D$26,$F$2:$G$48,2,FALSE)+ROW()-2))=Rebalance!$D$26,INDIRECT(\"a\" & (VLOOKUP(Rebalance!$D$26,$F$2:$G$48,2,FALSE)+ROW()-2)),\"\")","v":{"$error":"#N/A"}},{"$f":"IF(INDIRECT(\"c\" & (VLOOKUP(Rebalance!$D$27,$F$2:$G$48,2,FALSE)+ROW()-2))=Rebalance!$D$27,INDIRECT(\"a\" & (VLOOKUP(Rebalance!$D$27,$F$2:$G$48,2,FALSE)+ROW()-2)),\"\")","v":{"$error":"#N/A"}},{"$f":"IF(INDIRECT(\"c\" & (VLOOKUP(Rebalance!$D$28,$F$2:$G$48,2,FALSE)+ROW()-2))=Rebalance!$D$28,INDIRECT(\"a\" & (VLOOKUP(Rebalance!$D$28,$F$2:$G$48,2,FALSE)+ROW()-2)),\"\")","v":{"$error":"#N/A"}},{"$f":"IF(INDIRECT(\"c\" & (VLOOKUP(Rebalance!$D$29,$F$2:$G$48,2,FALSE)+ROW()-2))=Rebalance!$D$29,INDIRECT(\"a\" & (VLOOKUP(Rebalance!$D$29,$F$2:$G$48,2,FALSE)+ROW()-2)),\"\")","v":{"$error":"#N/A"}},{"$f":"IF(INDIRECT(\"c\" & (VLOOKUP(Rebalance!$D$30,$F$2:$G$48,2,FALSE)+ROW()-2))=Rebalance!$D$30,INDIRECT(\"a\" & (VLOOKUP(Rebalance!$D$30,$F$2:$G$48,2,FALSE)+ROW()-2)),\"\")","v":{"$error":"#N/A"}},{"$f":"IF(INDIRECT(\"c\" & (VLOOKUP(Rebalance!$D$31,$F$2:$G$48,2,FALSE)+ROW()-2))=Rebalance!$D$31,INDIRECT(\"a\" & (VLOOKUP(Rebalance!$D$31,$F$2:$G$48,2,FALSE)+ROW()-2)),\"\")","v":{"$error":"#N/A"}},{"$f":"IF(INDIRECT(\"c\" & (VLOOKUP(Rebalance!$D$32,$F$2:$G$48,2,FALSE)+ROW()-2))=Rebalance!$D$32,INDIRECT(\"a\" & (VLOOKUP(Rebalance!$D$32,$F$2:$G$48,2,FALSE)+ROW()-2)),\"\")","v":{"$error":"#N/A"}},{"$f":"IF(INDIRECT(\"c\" & (VLOOKUP(Rebalance!$D$33,$F$2:$G$48,2,FALSE)+ROW()-2))=Rebalance!$D$33,INDIRECT(\"a\" & (VLOOKUP(Rebalance!$D$33,$F$2:$G$48,2,FALSE)+ROW()-2)),\"\")","v":{"$error":"#N/A"}},{"$f":"IF(INDIRECT(\"c\" & (VLOOKUP(Rebalance!$D$34,$F$2:$G$48,2,FALSE)+ROW()-2))=Rebalance!$D$34,INDIRECT(\"a\" & (VLOOKUP(Rebalance!$D$34,$F$2:$G$48,2,FALSE)+ROW()-2)),\"\")","v":{"$error":"#N/A"}},{"$f":"IF(INDIRECT(\"c\" & (VLOOKUP(Rebalance!$D$35,$F$2:$G$48,2,FALSE)+ROW()-2))=Rebalance!$D$35,INDIRECT(\"a\" & (VLOOKUP(Rebalance!$D$35,$F$2:$G$48,2,FALSE)+ROW()-2)),\"\")","v":{"$error":"#N/A"}},{"$f":"IF(INDIRECT(\"c\" & (VLOOKUP(Rebalance!$D$36,$F$2:$G$48,2,FALSE)+ROW()-2))=Rebalance!$D$36,INDIRECT(\"a\" & (VLOOKUP(Rebalance!$D$36,$F$2:$G$48,2,FALSE)+ROW()-2)),\"\")","v":{"$error":"#N/A"}},{"$f":"IF(INDIRECT(\"c\" & (VLOOKUP(Rebalance!$D$37,$F$2:$G$48,2,FALSE)+ROW()-2))=Rebalance!$D$37,INDIRECT(\"a\" & (VLOOKUP(Rebalance!$D$37,$F$2:$G$48,2,FALSE)+ROW()-2)),\"\")","v":{"$error":"#N/A"}},{"$f":"IF(INDIRECT(\"c\" & (VLOOKUP(Rebalance!$D$38,$F$2:$G$48,2,FALSE)+ROW()-2))=Rebalance!$D$38,INDIRECT(\"a\" & (VLOOKUP(Rebalance!$D$38,$F$2:$G$48,2,FALSE)+ROW()-2)),\"\")","v":{"$error":"#N/A"}},{"$f":"IF(INDIRECT(\"c\" & (VLOOKUP(Rebalance!$D$39,$F$2:$G$48,2,FALSE)+ROW()-2))=Rebalance!$D$39,INDIRECT(\"a\" & (VLOOKUP(Rebalance!$D$39,$F$2:$G$48,2,FALSE)+ROW()-2)),\"\")","v":{"$error":"#N/A"}},{"$f":"IF(INDIRECT(\"c\" & (VLOOKUP(Rebalance!$D$40,$F$2:$G$48,2,FALSE)+ROW()-2))=Rebalance!$D$40,INDIRECT(\"a\" & (VLOOKUP(Rebalance!$D$40,$F$2:$G$48,2,FALSE)+ROW()-2)),\"\")","v":{"$error":"#N/A"}},{"$f":"IF(INDIRECT(\"c\" & (VLOOKUP(Rebalance!$D$52,$F$2:$G$48,2,FALSE)+ROW()-2))=Rebalance!$D$52,INDIRECT(\"a\" & (VLOOKUP(Rebalance!$D$52,$F$2:$G$48,2,FALSE)+ROW()-2)),\"\")","v":{"$error":"#N/A"}},{"$f":"IF(INDIRECT(\"c\" & (VLOOKUP(Rebalance!$D$53,$F$2:$G$48,2,FALSE)+ROW()-2))=Rebalance!$D$53,INDIRECT(\"a\" & (VLOOKUP(Rebalance!$D$53,$F$2:$G$48,2,FALSE)+ROW()-2)),\"\")","v":{"$error":"#N/A"}},{"$f":"IF(INDIRECT(\"c\" & (VLOOKUP(Rebalance!$D$54,$F$2:$G$48,2,FALSE)+ROW()-2))=Rebalance!$D$54,INDIRECT(\"a\" & (VLOOKUP(Rebalance!$D$54,$F$2:$G$48,2,FALSE)+ROW()-2)),\"\")","v":{"$error":"#N/A"}},{"$f":"IF(INDIRECT(\"c\" & (VLOOKUP(Rebalance!$D$55,$F$2:$G$48,2,FALSE)+ROW()-2))=Rebalance!$D$55,INDIRECT(\"a\" & (VLOOKUP(Rebalance!$D$55,$F$2:$G$48,2,FALSE)+ROW()-2)),\"\")","v":{"$error":"#N/A"}},{"$f":"IF(INDIRECT(\"c\" & (VLOOKUP(Rebalance!$D$56,$F$2:$G$48,2,FALSE)+ROW()-2))=Rebalance!$D$56,INDIRECT(\"a\" & (VLOOKUP(Rebalance!$D$56,$F$2:$G$48,2,FALSE)+ROW()-2)),\"\")","v":{"$error":"#N/A"}},{"$f":"IF(INDIRECT(\"c\" & (VLOOKUP(Rebalance!$D$57,$F$2:$G$48,2,FALSE)+ROW()-2))=Rebalance!$D$57,INDIRECT(\"a\" & (VLOOKUP(Rebalance!$D$57,$F$2:$G$48,2,FALSE)+ROW()-2)),\"\")","v":{"$error":"#N/A"}},{"$f":"IF(INDIRECT(\"c\" & (VLOOKUP(Rebalance!$D$58,$F$2:$G$48,2,FALSE)+ROW()-2))=Rebalance!$D$58,INDIRECT(\"a\" & (VLOOKUP(Rebalance!$D$58,$F$2:$G$48,2,FALSE)+ROW()-2)),\"\")","v":{"$error":"#N/A"}},{"$f":"IF(INDIRECT(\"c\" & (VLOOKUP(Rebalance!$D$59,$F$2:$G$48,2,FALSE)+ROW()-2))=Rebalance!$D$59,INDIRECT(\"a\" & (VLOOKUP(Rebalance!$D$59,$F$2:$G$48,2,FALSE)+ROW()-2)),\"\")","v":{"$error":"#N/A"}},{"$f":"IF(INDIRECT(\"c\" & (VLOOKUP(Rebalance!$D$60,$F$2:$G$48,2,FALSE)+ROW()-2))=Rebalance!$D$60,INDIRECT(\"a\" & (VLOOKUP(Rebalance!$D$60,$F$2:$G$48,2,FALSE)+ROW()-2)),\"\")","v":{"$error":"#N/A"}},{"$f":"IF(INDIRECT(\"c\" & (VLOOKUP(Rebalance!$D$61,$F$2:$G$48,2,FALSE)+ROW()-2))=Rebalance!$D$61,INDIRECT(\"a\" & (VLOOKUP(Rebalance!$D$61,$F$2:$G$48,2,FALSE)+ROW()-2)),\"\")","v":{"$error":"#N/A"}},{"$f":"IF(INDIRECT(\"c\" & (VLOOKUP(Rebalance!$D$62,$F$2:$G$48,2,FALSE)+ROW()-2))=Rebalance!$D$62,INDIRECT(\"a\" & (VLOOKUP(Rebalance!$D$62,$F$2:$G$48,2,FALSE)+ROW()-2)),\"\")","v":{"$error":"#N/A"}},{"$f":"IF(INDIRECT(\"c\" & (VLOOKUP(Rebalance!$D$63,$F$2:$G$48,2,FALSE)+ROW()-2))=Rebalance!$D$63,INDIRECT(\"a\" & (VLOOKUP(Rebalance!$D$63,$F$2:$G$48,2,FALSE)+ROW()-2)),\"\")","v":{"$error":"#N/A"}},{"$f":"IF(INDIRECT(\"c\" & (VLOOKUP(Rebalance!$D$64,$F$2:$G$48,2,FALSE)+ROW()-2))=Rebalance!$D$64,INDIRECT(\"a\" & (VLOOKUP(Rebalance!$D$64,$F$2:$G$48,2,FALSE)+ROW()-2)),\"\")","v":{"$error":"#N/A"}},{"$f":"IF(INDIRECT(\"c\" & (VLOOKUP(Rebalance!$D$65,$F$2:$G$48,2,FALSE)+ROW()-2))=Rebalance!$D$65,INDIRECT(\"a\" & (VLOOKUP(Rebalance!$D$65,$F$2:$G$48,2,FALSE)+ROW()-2)),\"\")","v":{"$error":"#N/A"}},{"$f":"IF(INDIRECT(\"c\" & (VLOOKUP(Rebalance!$D$66,$F$2:$G$48,2,FALSE)+ROW()-2))=Rebalance!$D$66,INDIRECT(\"a\" & (VLOOKUP(Rebalance!$D$66,$F$2:$G$48,2,FALSE)+ROW()-2)),\"\")","v":{"$error":"#N/A"}}]
[null,null,null,{"$f":"ROW()","v":677},null,null,{"$f":"VLOOKUP(F677,$C$2:$D$599,2,FALSE)","v":{"$error":"#N/A"}},{"$f":"IF(INDIRECT(\"c\" & (VLOOKUP(Rebalance!$D$26,$F$2:$G$48,2,FALSE)+ROW()-2))=Rebalance!$D$26,INDIRECT(\"a\" & (VLOOKUP(Rebalance!$D$26,$F$2:$G$48,2,FALSE)+ROW()-2)),\"\")","v":{"$error":"#N/A"}},{"$f":"IF(INDIRECT(\"c\" & (VLOOKUP(Rebalance!$D$27,$F$2:$G$48,2,FALSE)+ROW()-2))=Rebalance!$D$27,INDIRECT(\"a\" & (VLOOKUP(Rebalance!$D$27,$F$2:$G$48,2,FALSE)+ROW()-2)),\"\")","v":{"$error":"#N/A"}},{"$f":"IF(INDIRECT(\"c\" & (VLOOKUP(Rebalance!$D$28,$F$2:$G$48,2,FALSE)+ROW()-2))=Rebalance!$D$28,INDIRECT(\"a\" & (VLOOKUP(Rebalance!$D$28,$F$2:$G$48,2,FALSE)+ROW()-2)),\"\")","v":{"$error":"#N/A"}},{"$f":"IF(INDIRECT(\"c\" & (VLOOKUP(Rebalance!$D$29,$F$2:$G$48,2,FALSE)+ROW()-2))=Rebalance!$D$29,INDIRECT(\"a\" & (VLOOKUP(Rebalance!$D$29,$F$2:$G$48,2,FALSE)+ROW()-2)),\"\")","v":{"$error":"#N/A"}},{"$f":"IF(INDIRECT(\"c\" & (VLOOKUP(Rebalance!$D$30,$F$2:$G$48,2,FALSE)+ROW()-2))=Rebalance!$D$30,INDIRECT(\"a\" & (VLOOKUP(Rebalance!$D$30,$F$2:$G$48,2,FALSE)+ROW()-2)),\"\")","v":{"$error":"#N/A"}},{"$f":"IF(INDIRECT(\"c\" & (VLOOKUP(Rebalance!$D$31,$F$2:$G$48,2,FALSE)+ROW()-2))=Rebalance!$D$31,INDIRECT(\"a\" & (VLOOKUP(Rebalance!$D$31,$F$2:$G$48,2,FALSE)+ROW()-2)),\"\")","v":{"$error":"#N/A"}},{"$f":"IF(INDIRECT(\"c\" & (VLOOKUP(Rebalance!$D$32,$F$2:$G$48,2,FALSE)+ROW()-2))=Rebalance!$D$32,INDIRECT(\"a\" & (VLOOKUP(Rebalance!$D$32,$F$2:$G$48,2,FALSE)+ROW()-2)),\"\")","v":{"$error":"#N/A"}},{"$f":"IF(INDIRECT(\"c\" & (VLOOKUP(Rebalance!$D$33,$F$2:$G$48,2,FALSE)+ROW()-2))=Rebalance!$D$33,INDIRECT(\"a\" & (VLOOKUP(Rebalance!$D$33,$F$2:$G$48,2,FALSE)+ROW()-2)),\"\")","v":{"$error":"#N/A"}},{"$f":"IF(INDIRECT(\"c\" & (VLOOKUP(Rebalance!$D$34,$F$2:$G$48,2,FALSE)+ROW()-2))=Rebalance!$D$34,INDIRECT(\"a\" & (VLOOKUP(Rebalance!$D$34,$F$2:$G$48,2,FALSE)+ROW()-2)),\"\")","v":{"$error":"#N/A"}},{"$f":"IF(INDIRECT(\"c\" & (VLOOKUP(Rebalance!$D$35,$F$2:$G$48,2,FALSE)+ROW()-2))=Rebalance!$D$35,INDIRECT(\"a\" & (VLOOKUP(Rebalance!$D$35,$F$2:$G$48,2,FALSE)+ROW()-2)),\"\")","v":{"$error":"#N/A"}},{"$f":"IF(INDIRECT(\"c\" & (VLOOKUP(Rebalance!$D$36,$F$2:$G$48,2,FALSE)+ROW()-2))=Rebalance!$D$36,INDIRECT(\"a\" & (VLOOKUP(Rebalance!$D$36,$F$2:$G$48,2,FALSE)+ROW()-2)),\"\")","v":{"$error":"#N/A"}},{"$f":"IF(INDIRECT(\"c\" & (VLOOKUP(Rebalance!$D$37,$F$2:$G$48,2,FALSE)+ROW()-2))=Rebalance!$D$37,INDIRECT(\"a\" & (VLOOKUP(Rebalance!$D$37,$F$2:$G$48,2,FALSE)+ROW()-2)),\"\")","v":{"$error":"#N/A"}},{"$f":"IF(INDIRECT(\"c\" & (VLOOKUP(Rebalance!$D$38,$F$2:$G$48,2,FALSE)+ROW()-2))=Rebalance!$D$38,INDIRECT(\"a\" & (VLOOKUP(Rebalance!$D$38,$F$2:$G$48,2,FALSE)+ROW()-2)),\"\")","v":{"$error":"#N/A"}},{"$f":"IF(INDIRECT(\"c\" & (VLOOKUP(Rebalance!$D$39,$F$2:$G$48,2,FALSE)+ROW()-2))=Rebalance!$D$39,INDIRECT(\"a\" & (VLOOKUP(Rebalance!$D$39,$F$2:$G$48,2,FALSE)+ROW()-2)),\"\")","v":{"$error":"#N/A"}},{"$f":"IF(INDIRECT(\"c\" & (VLOOKUP(Rebalance!$D$40,$F$2:$G$48,2,FALSE)+ROW()-2))=Rebalance!$D$40,INDIRECT(\"a\" & (VLOOKUP(Rebalance!$D$40,$F$2:$G$48,2,FALSE)+ROW()-2)),\"\")","v":{"$error":"#N/A"}},{"$f":"IF(INDIRECT(\"c\" & (VLOOKUP(Rebalance!$D$52,$F$2:$G$48,2,FALSE)+ROW()-2))=Rebalance!$D$52,INDIRECT(\"a\" & (VLOOKUP(Rebalance!$D$52,$F$2:$G$48,2,FALSE)+ROW()-2)),\"\")","v":{"$error":"#N/A"}},{"$f":"IF(INDIRECT(\"c\" & (VLOOKUP(Rebalance!$D$53,$F$2:$G$48,2,FALSE)+ROW()-2))=Rebalance!$D$53,INDIRECT(\"a\" & (VLOOKUP(Rebalance!$D$53,$F$2:$G$48,2,FALSE)+ROW()-2)),\"\")","v":{"$error":"#N/A"}},{"$f":"IF(INDIRECT(\"c\" & (VLOOKUP(Rebalance!$D$54,$F$2:$G$48,2,FALSE)+ROW()-2))=Rebalance!$D$54,INDIRECT(\"a\" & (VLOOKUP(Rebalance!$D$54,$F$2:$G$48,2,FALSE)+ROW()-2)),\"\")","v":{"$error":"#N/A"}},{"$f":"IF(INDIRECT(\"c\" & (VLOOKUP(Rebalance!$D$55,$F$2:$G$48,2,FALSE)+ROW()-2))=Rebalance!$D$55,INDIRECT(\"a\" & (VLOOKUP(Rebalance!$D$55,$F$2:$G$48,2,FALSE)+ROW()-2)),\"\")","v":{"$error":"#N/A"}},{"$f":"IF(INDIRECT(\"c\" & (VLOOKUP(Rebalance!$D$56,$F$2:$G$48,2,FALSE)+ROW()-2))=Rebalance!$D$56,INDIRECT(\"a\" & (VLOOKUP(Rebalance!$D$56,$F$2:$G$48,2,FALSE)+ROW()-2)),\"\")","v":{"$error":"#N/A"}},{"$f":"IF(INDIRECT(\"c\" & (VLOOKUP(Rebalance!$D$57,$F$2:$G$48,2,FALSE)+ROW()-2))=Rebalance!$D$57,INDIRECT(\"a\" & (VLOOKUP(Rebalance!$D$57,$F$2:$G$48,2,FALSE)+ROW()-2)),\"\")","v":{"$error":"#N/A"}},{"$f":"IF(INDIRECT(\"c\" & (VLOOKUP(Rebalance!$D$58,$F$2:$G$48,2,FALSE)+ROW()-2))=Rebalance!$D$58,INDIRECT(\"a\" & (VLOOKUP(Rebalance!$D$58,$F$2:$G$48,2,FALSE)+ROW()-2)),\"\")","v":{"$error":"#N/A"}},{"$f":"IF(INDIRECT(\"c\" & (VLOOKUP(Rebalance!$D$59,$F$2:$G$48,2,FALSE)+ROW()-2))=Rebalance!$D$59,INDIRECT(\"a\" & (VLOOKUP(Rebalance!$D$59,$F$2:$G$48,2,FALSE)+ROW()-2)),\"\")","v":{"$error":"#N/A"}},{"$f":"IF(INDIRECT(\"c\" & (VLOOKUP(Rebalance!$D$60,$F$2:$G$48,2,FALSE)+ROW()-2))=Rebalance!$D$60,INDIRECT(\"a\" & (VLOOKUP(Rebalance!$D$60,$F$2:$G$48,2,FALSE)+ROW()-2)),\"\")","v":{"$error":"#N/A"}},{"$f":"IF(INDIRECT(\"c\" & (VLOOKUP(Rebalance!$D$61,$F$2:$G$48,2,FALSE)+ROW()-2))=Rebalance!$D$61,INDIRECT(\"a\" & (VLOOKUP(Rebalance!$D$61,$F$2:$G$48,2,FALSE)+ROW()-2)),\"\")","v":{"$error":"#N/A"}},{"$f":"IF(INDIRECT(\"c\" & (VLOOKUP(Rebalance!$D$62,$F$2:$G$48,2,FALSE)+ROW()-2))=Rebalance!$D$62,INDIRECT(\"a\" & (VLOOKUP(Rebalance!$D$62,$F$2:$G$48,2,FALSE)+ROW()-2)),\"\")","v":{"$error":"#N/A"}},{"$f":"IF(INDIRECT(\"c\" & (VLOOKUP(Rebalance!$D$63,$F$2:$G$48,2,FALSE)+ROW()-2))=Rebalance!$D$63,INDIRECT(\"a\" & (VLOOKUP(Rebalance!$D$63,$F$2:$G$48,2,FALSE)+ROW()-2)),\"\")","v":{"$error":"#N/A"}},{"$f":"IF(INDIRECT(\"c\" & (VLOOKUP(Rebalance!$D$64,$F$2:$G$48,2,FALSE)+ROW()-2))=Rebalance!$D$64,INDIRECT(\"a\" & (VLOOKUP(Rebalance!$D$64,$F$2:$G$48,2,FALSE)+ROW()-2)),\"\")","v":{"$error":"#N/A"}},{"$f":"IF(INDIRECT(\"c\" & (VLOOKUP(Rebalance!$D$65,$F$2:$G$48,2,FALSE)+ROW()-2))=Rebalance!$D$65,INDIRECT(\"a\" & (VLOOKUP(Rebalance!$D$65,$F$2:$G$48,2,FALSE)+ROW()-2)),\"\")","v":{"$error":"#N/A"}},{"$f":"IF(INDIRECT(\"c\" & (VLOOKUP(Rebalance!$D$66,$F$2:$G$48,2,FALSE)+ROW()-2))=Rebalance!$D$66,INDIRECT(\"a\" & (VLOOKUP(Rebalance!$D$66,$F$2:$G$48,2,FALSE)+ROW()-2)),\"\")","v":{"$error":"#N/A"}}]
[null,null,null,{"$f":"ROW()","v":678},null,null,{"$f":"VLOOKUP(F678,$C$2:$D$599,2,FALSE)","v":{"$error":"#N/A"}},{"$f":"IF(INDIRECT(\"c\" & (VLOOKUP(Rebalance!$D$26,$F$2:$G$48,2,FALSE)+ROW()-2))=Rebalance!$D$26,INDIRECT(\"a\" & (VLOOKUP(Rebalance!$D$26,$F$2:$G$48,2,FALSE)+ROW()-2)),\"\")","v":{"$error":"#N/A"}},{"$f":"IF(INDIRECT(\"c\" & (VLOOKUP(Rebalance!$D$27,$F$2:$G$48,2,FALSE)+ROW()-2))=Rebalance!$D$27,INDIRECT(\"a\" & (VLOOKUP(Rebalance!$D$27,$F$2:$G$48,2,FALSE)+ROW()-2)),\"\")","v":{"$error":"#N/A"}},{"$f":"IF(INDIRECT(\"c\" & (VLOOKUP(Rebalance!$D$28,$F$2:$G$48,2,FALSE)+ROW()-2))=Rebalance!$D$28,INDIRECT(\"a\" & (VLOOKUP(Rebalance!$D$28,$F$2:$G$48,2,FALSE)+ROW()-2)),\"\")","v":{"$error":"#N/A"}},{"$f":"IF(INDIRECT(\"c\" & (VLOOKUP(Rebalance!$D$29,$F$2:$G$48,2,FALSE)+ROW()-2))=Rebalance!$D$29,INDIRECT(\"a\" & (VLOOKUP(Rebalance!$D$29,$F$2:$G$48,2,FALSE)+ROW()-2)),\"\")","v":{"$error":"#N/A"}},{"$f":"IF(INDIRECT(\"c\" & (VLOOKUP(Rebalance!$D$30,$F$2:$G$48,2,FALSE)+ROW()-2))=Rebalance!$D$30,INDIRECT(\"a\" & (VLOOKUP(Rebalance!$D$30,$F$2:$G$48,2,FALSE)+ROW()-2)),\"\")","v":{"$error":"#N/A"}},{"$f":"IF(INDIRECT(\"c\" & (VLOOKUP(Rebalance!$D$31,$F$2:$G$48,2,FALSE)+ROW()-2))=Rebalance!$D$31,INDIRECT(\"a\" & (VLOOKUP(Rebalance!$D$31,$F$2:$G$48,2,FALSE)+ROW()-2)),\"\")","v":{"$error":"#N/A"}},{"$f":"IF(INDIRECT(\"c\" & (VLOOKUP(Rebalance!$D$32,$F$2:$G$48,2,FALSE)+ROW()-2))=Rebalance!$D$32,INDIRECT(\"a\" & (VLOOKUP(Rebalance!$D$32,$F$2:$G$48,2,FALSE)+ROW()-2)),\"\")","v":{"$error":"#N/A"}},{"$f":"IF(INDIRECT(\"c\" & (VLOOKUP(Rebalance!$D$33,$F$2:$G$48,2,FALSE)+ROW()-2))=Rebalance!$D$33,INDIRECT(\"a\" & (VLOOKUP(Rebalance!$D$33,$F$2:$G$48,2,FALSE)+ROW()-2)),\"\")","v":{"$error":"#N/A"}},{"$f":"IF(INDIRECT(\"c\" & (VLOOKUP(Rebalance!$D$34,$F$2:$G$48,2,FALSE)+ROW()-2))=Rebalance!$D$34,INDIRECT(\"a\" & (VLOOKUP(Rebalance!$D$34,$F$2:$G$48,2,FALSE)+ROW()-2)),\"\")","v":{"$error":"#N/A"}},{"$f":"IF(INDIRECT(\"c\" & (VLOOKUP(Rebalance!$D$35,$F$2:$G$48,2,FALSE)+ROW()-2))=Rebalance!$D$35,INDIRECT(\"a\" & (VLOOKUP(Rebalance!$D$35,$F$2:$G$48,2,FALSE)+ROW()-2)),\"\")","v":{"$error":"#N/A"}},{"$f":"IF(INDIRECT(\"c\" & (VLOOKUP(Rebalance!$D$36,$F$2:$G$48,2,FALSE)+ROW()-2))=Rebalance!$D$36,INDIRECT(\"a\" & (VLOOKUP(Rebalance!$D$36,$F$2:$G$48,2,FALSE)+ROW()-2)),\"\")","v":{"$error":"#N/A"}},{"$f":"IF(INDIRECT(\"c\" & (VLOOKUP(Rebalance!$D$37,$F$2:$G$48,2,FALSE)+ROW()-2))=Rebalance!$D$37,INDIRECT(\"a\" & (VLOOKUP(Rebalance!$D$37,$F$2:$G$48,2,FALSE)+ROW()-2)),\"\")","v":{"$error":"#N/A"}},{"$f":"IF(INDIRECT(\"c\" & (VLOOKUP(Rebalance!$D$38,$F$2:$G$48,2,FALSE)+ROW()-2))=Rebalance!$D$38,INDIRECT(\"a\" & (VLOOKUP(Rebalance!$D$38,$F$2:$G$48,2,FALSE)+ROW()-2)),\"\")","v":{"$error":"#N/A"}},{"$f":"IF(INDIRECT(\"c\" & (VLOOKUP(Rebalance!$D$39,$F$2:$G$48,2,FALSE)+ROW()-2))=Rebalance!$D$39,INDIRECT(\"a\" & (VLOOKUP(Rebalance!$D$39,$F$2:$G$48,2,FALSE)+ROW()-2)),\"\")","v":{"$error":"#N/A"}},{"$f":"IF(INDIRECT(\"c\" & (VLOOKUP(Rebalance!$D$40,$F$2:$G$48,2,FALSE)+ROW()-2))=Rebalance!$D$40,INDIRECT(\"a\" & (VLOOKUP(Rebalance!$D$40,$F$2:$G$48,2,FALSE)+ROW()-2)),\"\")","v":{"$error":"#N/A"}},{"$f":"IF(INDIRECT(\"c\" & (VLOOKUP(Rebalance!$D$52,$F$2:$G$48,2,FALSE)+ROW()-2))=Rebalance!$D$52,INDIRECT(\"a\" & (VLOOKUP(Rebalance!$D$52,$F$2:$G$48,2,FALSE)+ROW()-2)),\"\")","v":{"$error":"#N/A"}},{"$f":"IF(INDIRECT(\"c\" & (VLOOKUP(Rebalance!$D$53,$F$2:$G$48,2,FALSE)+ROW()-2))=Rebalance!$D$53,INDIRECT(\"a\" & (VLOOKUP(Rebalance!$D$53,$F$2:$G$48,2,FALSE)+ROW()-2)),\"\")","v":{"$error":"#N/A"}},{"$f":"IF(INDIRECT(\"c\" & (VLOOKUP(Rebalance!$D$54,$F$2:$G$48,2,FALSE)+ROW()-2))=Rebalance!$D$54,INDIRECT(\"a\" & (VLOOKUP(Rebalance!$D$54,$F$2:$G$48,2,FALSE)+ROW()-2)),\"\")","v":{"$error":"#N/A"}},{"$f":"IF(INDIRECT(\"c\" & (VLOOKUP(Rebalance!$D$55,$F$2:$G$48,2,FALSE)+ROW()-2))=Rebalance!$D$55,INDIRECT(\"a\" & (VLOOKUP(Rebalance!$D$55,$F$2:$G$48,2,FALSE)+ROW()-2)),\"\")","v":{"$error":"#N/A"}},{"$f":"IF(INDIRECT(\"c\" & (VLOOKUP(Rebalance!$D$56,$F$2:$G$48,2,FALSE)+ROW()-2))=Rebalance!$D$56,INDIRECT(\"a\" & (VLOOKUP(Rebalance!$D$56,$F$2:$G$48,2,FALSE)+ROW()-2)),\"\")","v":{"$error":"#N/A"}},{"$f":"IF(INDIRECT(\"c\" & (VLOOKUP(Rebalance!$D$57,$F$2:$G$48,2,FALSE)+ROW()-2))=Rebalance!$D$57,INDIRECT(\"a\" & (VLOOKUP(Rebalance!$D$57,$F$2:$G$48,2,FALSE)+ROW()-2)),\"\")","v":{"$error":"#N/A"}},{"$f":"IF(INDIRECT(\"c\" & (VLOOKUP(Rebalance!$D$58,$F$2:$G$48,2,FALSE)+ROW()-2))=Rebalance!$D$58,INDIRECT(\"a\" & (VLOOKUP(Rebalance!$D$58,$F$2:$G$48,2,FALSE)+ROW()-2)),\"\")","v":{"$error":"#N/A"}},{"$f":"IF(INDIRECT(\"c\" & (VLOOKUP(Rebalance!$D$59,$F$2:$G$48,2,FALSE)+ROW()-2))=Rebalance!$D$59,INDIRECT(\"a\" & (VLOOKUP(Rebalance!$D$59,$F$2:$G$48,2,FALSE)+ROW()-2)),\"\")","v":{"$error":"#N/A"}},{"$f":"IF(INDIRECT(\"c\" & (VLOOKUP(Rebalance!$D$60,$F$2:$G$48,2,FALSE)+ROW()-2))=Rebalance!$D$60,INDIRECT(\"a\" & (VLOOKUP(Rebalance!$D$60,$F$2:$G$48,2,FALSE)+ROW()-2)),\"\")","v":{"$error":"#N/A"}},{"$f":"IF(INDIRECT(\"c\" & (VLOOKUP(Rebalance!$D$61,$F$2:$G$48,2,FALSE)+ROW()-2))=Rebalance!$D$61,INDIRECT(\"a\" & (VLOOKUP(Rebalance!$D$61,$F$2:$G$48,2,FALSE)+ROW()-2)),\"\")","v":{"$error":"#N/A"}},{"$f":"IF(INDIRECT(\"c\" & (VLOOKUP(Rebalance!$D$62,$F$2:$G$48,2,FALSE)+ROW()-2))=Rebalance!$D$62,INDIRECT(\"a\" & (VLOOKUP(Rebalance!$D$62,$F$2:$G$48,2,FALSE)+ROW()-2)),\"\")","v":{"$error":"#N/A"}},{"$f":"IF(INDIRECT(\"c\" & (VLOOKUP(Rebalance!$D$63,$F$2:$G$48,2,FALSE)+ROW()-2))=Rebalance!$D$63,INDIRECT(\"a\" & (VLOOKUP(Rebalance!$D$63,$F$2:$G$48,2,FALSE)+ROW()-2)),\"\")","v":{"$error":"#N/A"}},{"$f":"IF(INDIRECT(\"c\" & (VLOOKUP(Rebalance!$D$64,$F$2:$G$48,2,FALSE)+ROW()-2))=Rebalance!$D$64,INDIRECT(\"a\" & (VLOOKUP(Rebalance!$D$64,$F$2:$G$48,2,FALSE)+ROW()-2)),\"\")","v":{"$error":"#N/A"}},{"$f":"IF(INDIRECT(\"c\" & (VLOOKUP(Rebalance!$D$65,$F$2:$G$48,2,FALSE)+ROW()-2))=Rebalance!$D$65,INDIRECT(\"a\" & (VLOOKUP(Rebalance!$D$65,$F$2:$G$48,2,FALSE)+ROW()-2)),\"\")","v":{"$error":"#N/A"}},{"$f":"IF(INDIRECT(\"c\" & (VLOOKUP(Rebalance!$D$66,$F$2:$G$48,2,FALSE)+ROW()-2))=Rebalance!$D$66,INDIRECT(\"a\" & (VLOOKUP(Rebalance!$D$66,$F$2:$G$48,2,FALSE)+ROW()-2)),\"\")","v":{"$error":"#N/A"}}]
[null,null,null,{"$f":"ROW()","v":679},null,null,{"$f":"VLOOKUP(F679,$C$2:$D$599,2,FALSE)","v":{"$error":"#N/A"}},{"$f":"IF(INDIRECT(\"c\" & (VLOOKUP(Rebalance!$D$26,$F$2:$G$48,2,FALSE)+ROW()-2))=Rebalance!$D$26,INDIRECT(\"a\" & (VLOOKUP(Rebalance!$D$26,$F$2:$G$48,2,FALSE)+ROW()-2)),\"\")","v":{"$error":"#N/A"}},{"$f":"IF(INDIRECT(\"c\" & (VLOOKUP(Rebalance!$D$27,$F$2:$G$48,2,FALSE)+ROW()-2))=Rebalance!$D$27,INDIRECT(\"a\" & (VLOOKUP(Rebalance!$D$27,$F$2:$G$48,2,FALSE)+ROW()-2)),\"\")","v":{"$error":"#N/A"}},{"$f":"IF(INDIRECT(\"c\" & (VLOOKUP(Rebalance!$D$28,$F$2:$G$48,2,FALSE)+ROW()-2))=Rebalance!$D$28,INDIRECT(\"a\" & (VLOOKUP(Rebalance!$D$28,$F$2:$G$48,2,FALSE)+ROW()-2)),\"\")","v":{"$error":"#N/A"}},{"$f":"IF(INDIRECT(\"c\" & (VLOOKUP(Rebalance!$D$29,$F$2:$G$48,2,FALSE)+ROW()-2))=Rebalance!$D$29,INDIRECT(\"a\" & (VLOOKUP(Rebalance!$D$29,$F$2:$G$48,2,FALSE)+ROW()-2)),\"\")","v":{"$error":"#N/A"}},{"$f":"IF(INDIRECT(\"c\" & (VLOOKUP(Rebalance!$D$30,$F$2:$G$48,2,FALSE)+ROW()-2))=Rebalance!$D$30,INDIRECT(\"a\" & (VLOOKUP(Rebalance!$D$30,$F$2:$G$48,2,FALSE)+ROW()-2)),\"\")","v":{"$error":"#N/A"}},{"$f":"IF(INDIRECT(\"c\" & (VLOOKUP(Rebalance!$D$31,$F$2:$G$48,2,FALSE)+ROW()-2))=Rebalance!$D$31,INDIRECT(\"a\" & (VLOOKUP(Rebalance!$D$31,$F$2:$G$48,2,FALSE)+ROW()-2)),\"\")","v":{"$error":"#N/A"}},{"$f":"IF(INDIRECT(\"c\" & (VLOOKUP(Rebalance!$D$32,$F$2:$G$48,2,FALSE)+ROW()-2))=Rebalance!$D$32,INDIRECT(\"a\" & (VLOOKUP(Rebalance!$D$32,$F$2:$G$48,2,FALSE)+ROW()-2)),\"\")","v":{"$error":"#N/A"}},{"$f":"IF(INDIRECT(\"c\" & (VLOOKUP(Rebalance!$D$33,$F$2:$G$48,2,FALSE)+ROW()-2))=Rebalance!$D$33,INDIRECT(\"a\" & (VLOOKUP(Rebalance!$D$33,$F$2:$G$48,2,FALSE)+ROW()-2)),\"\")","v":{"$error":"#N/A"}},{"$f":"IF(INDIRECT(\"c\" & (VLOOKUP(Rebalance!$D$34,$F$2:$G$48,2,FALSE)+ROW()-2))=Rebalance!$D$34,INDIRECT(\"a\" & (VLOOKUP(Rebalance!$D$34,$F$2:$G$48,2,FALSE)+ROW()-2)),\"\")","v":{"$error":"#N/A"}},{"$f":"IF(INDIRECT(\"c\" & (VLOOKUP(Rebalance!$D$35,$F$2:$G$48,2,FALSE)+ROW()-2))=Rebalance!$D$35,INDIRECT(\"a\" & (VLOOKUP(Rebalance!$D$35,$F$2:$G$48,2,FALSE)+ROW()-2)),\"\")","v":{"$error":"#N/A"}},{"$f":"IF(INDIRECT(\"c\" & (VLOOKUP(Rebalance!$D$36,$F$2:$G$48,2,FALSE)+ROW()-2))=Rebalance!$D$36,INDIRECT(\"a\" & (VLOOKUP(Rebalance!$D$36,$F$2:$G$48,2,FALSE)+ROW()-2)),\"\")","v":{"$error":"#N/A"}},{"$f":"IF(INDIRECT(\"c\" & (VLOOKUP(Rebalance!$D$37,$F$2:$G$48,2,FALSE)+ROW()-2))=Rebalance!$D$37,INDIRECT(\"a\" & (VLOOKUP(Rebalance!$D$37,$F$2:$G$48,2,FALSE)+ROW()-2)),\"\")","v":{"$error":"#N/A"}},{"$f":"IF(INDIRECT(\"c\" & (VLOOKUP(Rebalance!$D$38,$F$2:$G$48,2,FALSE)+ROW()-2))=Rebalance!$D$38,INDIRECT(\"a\" & (VLOOKUP(Rebalance!$D$38,$F$2:$G$48,2,FALSE)+ROW()-2)),\"\")","v":{"$error":"#N/A"}},{"$f":"IF(INDIRECT(\"c\" & (VLOOKUP(Rebalance!$D$39,$F$2:$G$48,2,FALSE)+ROW()-2))=Rebalance!$D$39,INDIRECT(\"a\" & (VLOOKUP(Rebalance!$D$39,$F$2:$G$48,2,FALSE)+ROW()-2)),\"\")","v":{"$error":"#N/A"}},{"$f":"IF(INDIRECT(\"c\" & (VLOOKUP(Rebalance!$D$40,$F$2:$G$48,2,FALSE)+ROW()-2))=Rebalance!$D$40,INDIRECT(\"a\" & (VLOOKUP(Rebalance!$D$40,$F$2:$G$48,2,FALSE)+ROW()-2)),\"\")","v":{"$error":"#N/A"}},{"$f":"IF(INDIRECT(\"c\" & (VLOOKUP(Rebalance!$D$52,$F$2:$G$48,2,FALSE)+ROW()-2))=Rebalance!$D$52,INDIRECT(\"a\" & (VLOOKUP(Rebalance!$D$52,$F$2:$G$48,2,FALSE)+ROW()-2)),\"\")","v":{"$error":"#N/A"}},{"$f":"IF(INDIRECT(\"c\" & (VLOOKUP(Rebalance!$D$53,$F$2:$G$48,2,FALSE)+ROW()-2))=Rebalance!$D$53,INDIRECT(\"a\" & (VLOOKUP(Rebalance!$D$53,$F$2:$G$48,2,FALSE)+ROW()-2)),\"\")","v":{"$error":"#N/A"}},{"$f":"IF(INDIRECT(\"c\" & (VLOOKUP(Rebalance!$D$54,$F$2:$G$48,2,FALSE)+ROW()-2))=Rebalance!$D$54,INDIRECT(\"a\" & (VLOOKUP(Rebalance!$D$54,$F$2:$G$48,2,FALSE)+ROW()-2)),\"\")","v":{"$error":"#N/A"}},{"$f":"IF(INDIRECT(\"c\" & (VLOOKUP(Rebalance!$D$55,$F$2:$G$48,2,FALSE)+ROW()-2))=Rebalance!$D$55,INDIRECT(\"a\" & (VLOOKUP(Rebalance!$D$55,$F$2:$G$48,2,FALSE)+ROW()-2)),\"\")","v":{"$error":"#N/A"}},{"$f":"IF(INDIRECT(\"c\" & (VLOOKUP(Rebalance!$D$56,$F$2:$G$48,2,FALSE)+ROW()-2))=Rebalance!$D$56,INDIRECT(\"a\" & (VLOOKUP(Rebalance!$D$56,$F$2:$G$48,2,FALSE)+ROW()-2)),\"\")","v":{"$error":"#N/A"}},{"$f":"IF(INDIRECT(\"c\" & (VLOOKUP(Rebalance!$D$57,$F$2:$G$48,2,FALSE)+ROW()-2))=Rebalance!$D$57,INDIRECT(\"a\" & (VLOOKUP(Rebalance!$D$57,$F$2:$G$48,2,FALSE)+ROW()-2)),\"\")","v":{"$error":"#N/A"}},{"$f":"IF(INDIRECT(\"c\" & (VLOOKUP(Rebalance!$D$58,$F$2:$G$48,2,FALSE)+ROW()-2))=Rebalance!$D$58,INDIRECT(\"a\" & (VLOOKUP(Rebalance!$D$58,$F$2:$G$48,2,FALSE)+ROW()-2)),\"\")","v":{"$error":"#N/A"}},{"$f":"IF(INDIRECT(\"c\" & (VLOOKUP(Rebalance!$D$59,$F$2:$G$48,2,FALSE)+ROW()-2))=Rebalance!$D$59,INDIRECT(\"a\" & (VLOOKUP(Rebalance!$D$59,$F$2:$G$48,2,FALSE)+ROW()-2)),\"\")","v":{"$error":"#N/A"}},{"$f":"IF(INDIRECT(\"c\" & (VLOOKUP(Rebalance!$D$60,$F$2:$G$48,2,FALSE)+ROW()-2))=Rebalance!$D$60,INDIRECT(\"a\" & (VLOOKUP(Rebalance!$D$60,$F$2:$G$48,2,FALSE)+ROW()-2)),\"\")","v":{"$error":"#N/A"}},{"$f":"IF(INDIRECT(\"c\" & (VLOOKUP(Rebalance!$D$61,$F$2:$G$48,2,FALSE)+ROW()-2))=Rebalance!$D$61,INDIRECT(\"a\" & (VLOOKUP(Rebalance!$D$61,$F$2:$G$48,2,FALSE)+ROW()-2)),\"\")","v":{"$error":"#N/A"}},{"$f":"IF(INDIRECT(\"c\" & (VLOOKUP(Rebalance!$D$62,$F$2:$G$48,2,FALSE)+ROW()-2))=Rebalance!$D$62,INDIRECT(\"a\" & (VLOOKUP(Rebalance!$D$62,$F$2:$G$48,2,FALSE)+ROW()-2)),\"\")","v":{"$error":"#N/A"}},{"$f":"IF(INDIRECT(\"c\" & (VLOOKUP(Rebalance!$D$63,$F$2:$G$48,2,FALSE)+ROW()-2))=Rebalance!$D$63,INDIRECT(\"a\" & (VLOOKUP(Rebalance!$D$63,$F$2:$G$48,2,FALSE)+ROW()-2)),\"\")","v":{"$error":"#N/A"}},{"$f":"IF(INDIRECT(\"c\" & (VLOOKUP(Rebalance!$D$64,$F$2:$G$48,2,FALSE)+ROW()-2))=Rebalance!$D$64,INDIRECT(\"a\" & (VLOOKUP(Rebalance!$D$64,$F$2:$G$48,2,FALSE)+ROW()-2)),\"\")","v":{"$error":"#N/A"}},{"$f":"IF(INDIRECT(\"c\" & (VLOOKUP(Rebalance!$D$65,$F$2:$G$48,2,FALSE)+ROW()-2))=Rebalance!$D$65,INDIRECT(\"a\" & (VLOOKUP(Rebalance!$D$65,$F$2:$G$48,2,FALSE)+ROW()-2)),\"\")","v":{"$error":"#N/A"}},{"$f":"IF(INDIRECT(\"c\" & (VLOOKUP(Rebalance!$D$66,$F$2:$G$48,2,FALSE)+ROW()-2))=Rebalance!$D$66,INDIRECT(\"a\" & (VLOOKUP(Rebalance!$D$66,$F$2:$G$48,2,FALSE)+ROW()-2)),\"\")","v":{"$error":"#N/A"}}]
[null,null,null,{"$f":"ROW()","v":680},null,null,{"$f":"VLOOKUP(F680,$C$2:$D$599,2,FALSE)","v":{"$error":"#N/A"}},{"$f":"IF(INDIRECT(\"c\" & (VLOOKUP(Rebalance!$D$26,$F$2:$G$48,2,FALSE)+ROW()-2))=Rebalance!$D$26,INDIRECT(\"a\" & (VLOOKUP(Rebalance!$D$26,$F$2:$G$48,2,FALSE)+ROW()-2)),\"\")","v":{"$error":"#N/A"}},{"$f":"IF(INDIRECT(\"c\" & (VLOOKUP(Rebalance!$D$27,$F$2:$G$48,2,FALSE)+ROW()-2))=Rebalance!$D$27,INDIRECT(\"a\" & (VLOOKUP(Rebalance!$D$27,$F$2:$G$48,2,FALSE)+ROW()-2)),\"\")","v":{"$error":"#N/A"}},{"$f":"IF(INDIRECT(\"c\" & (VLOOKUP(Rebalance!$D$28,$F$2:$G$48,2,FALSE)+ROW()-2))=Rebalance!$D$28,INDIRECT(\"a\" & (VLOOKUP(Rebalance!$D$28,$F$2:$G$48,2,FALSE)+ROW()-2)),\"\")","v":{"$error":"#N/A"}},{"$f":"IF(INDIRECT(\"c\" & (VLOOKUP(Rebalance!$D$29,$F$2:$G$48,2,FALSE)+ROW()-2))=Rebalance!$D$29,INDIRECT(\"a\" & (VLOOKUP(Rebalance!$D$29,$F$2:$G$48,2,FALSE)+ROW()-2)),\"\")","v":{"$error":"#N/A"}},{"$f":"IF(INDIRECT(\"c\" & (VLOOKUP(Rebalance!$D$30,$F$2:$G$48,2,FALSE)+ROW()-2))=Rebalance!$D$30,INDIRECT(\"a\" & (VLOOKUP(Rebalance!$D$30,$F$2:$G$48,2,FALSE)+ROW()-2)),\"\")","v":{"$error":"#N/A"}},{"$f":"IF(INDIRECT(\"c\" & (VLOOKUP(Rebalance!$D$31,$F$2:$G$48,2,FALSE)+ROW()-2))=Rebalance!$D$31,INDIRECT(\"a\" & (VLOOKUP(Rebalance!$D$31,$F$2:$G$48,2,FALSE)+ROW()-2)),\"\")","v":{"$error":"#N/A"}},{"$f":"IF(INDIRECT(\"c\" & (VLOOKUP(Rebalance!$D$32,$F$2:$G$48,2,FALSE)+ROW()-2))=Rebalance!$D$32,INDIRECT(\"a\" & (VLOOKUP(Rebalance!$D$32,$F$2:$G$48,2,FALSE)+ROW()-2)),\"\")","v":{"$error":"#N/A"}},{"$f":"IF(INDIRECT(\"c\" & (VLOOKUP(Rebalance!$D$33,$F$2:$G$48,2,FALSE)+ROW()-2))=Rebalance!$D$33,INDIRECT(\"a\" & (VLOOKUP(Rebalance!$D$33,$F$2:$G$48,2,FALSE)+ROW()-2)),\"\")","v":{"$error":"#N/A"}},{"$f":"IF(INDIRECT(\"c\" & (VLOOKUP(Rebalance!$D$34,$F$2:$G$48,2,FALSE)+ROW()-2))=Rebalance!$D$34,INDIRECT(\"a\" & (VLOOKUP(Rebalance!$D$34,$F$2:$G$48,2,FALSE)+ROW()-2)),\"\")","v":{"$error":"#N/A"}},{"$f":"IF(INDIRECT(\"c\" & (VLOOKUP(Rebalance!$D$35,$F$2:$G$48,2,FALSE)+ROW()-2))=Rebalance!$D$35,INDIRECT(\"a\" & (VLOOKUP(Rebalance!$D$35,$F$2:$G$48,2,FALSE)+ROW()-2)),\"\")","v":{"$error":"#N/A"}},{"$f":"IF(INDIRECT(\"c\" & (VLOOKUP(Rebalance!$D$36,$F$2:$G$48,2,FALSE)+ROW()-2))=Rebalance!$D$36,INDIRECT(\"a\" & (VLOOKUP(Rebalance!$D$36,$F$2:$G$48,2,FALSE)+ROW()-2)),\"\")","v":{"$error":"#N/A"}},{"$f":"IF(INDIRECT(\"c\" & (VLOOKUP(Rebalance!$D$37,$F$2:$G$48,2,FALSE)+ROW()-2))=Rebalance!$D$37,INDIRECT(\"a\" & (VLOOKUP(Rebalance!$D$37,$F$2:$G$48,2,FALSE)+ROW()-2)),\"\")","v":{"$error":"#N/A"}},{"$f":"IF(INDIRECT(\"c\" & (VLOOKUP(Rebalance!$D$38,$F$2:$G$48,2,FALSE)+ROW()-2))=Rebalance!$D$38,INDIRECT(\"a\" & (VLOOKUP(Rebalance!$D$38,$F$2:$G$48,2,FALSE)+ROW()-2)),\"\")","v":{"$error":"#N/A"}},{"$f":"IF(INDIRECT(\"c\" & (VLOOKUP(Rebalance!$D$39,$F$2:$G$48,2,FALSE)+ROW()-2))=Rebalance!$D$39,INDIRECT(\"a\" & (VLOOKUP(Rebalance!$D$39,$F$2:$G$48,2,FALSE)+ROW()-2)),\"\")","v":{"$error":"#N/A"}},{"$f":"IF(INDIRECT(\"c\" & (VLOOKUP(Rebalance!$D$40,$F$2:$G$48,2,FALSE)+ROW()-2))=Rebalance!$D$40,INDIRECT(\"a\" & (VLOOKUP(Rebalance!$D$40,$F$2:$G$48,2,FALSE)+ROW()-2)),\"\")","v":{"$error":"#N/A"}},{"$f":"IF(INDIRECT(\"c\" & (VLOOKUP(Rebalance!$D$52,$F$2:$G$48,2,FALSE)+ROW()-2))=Rebalance!$D$52,INDIRECT(\"a\" & (VLOOKUP(Rebalance!$D$52,$F$2:$G$48,2,FALSE)+ROW()-2)),\"\")","v":{"$error":"#N/A"}},{"$f":"IF(INDIRECT(\"c\" & (VLOOKUP(Rebalance!$D$53,$F$2:$G$48,2,FALSE)+ROW()-2))=Rebalance!$D$53,INDIRECT(\"a\" & (VLOOKUP(Rebalance!$D$53,$F$2:$G$48,2,FALSE)+ROW()-2)),\"\")","v":{"$error":"#N/A"}},{"$f":"IF(INDIRECT(\"c\" & (VLOOKUP(Rebalance!$D$54,$F$2:$G$48,2,FALSE)+ROW()-2))=Rebalance!$D$54,INDIRECT(\"a\" & (VLOOKUP(Rebalance!$D$54,$F$2:$G$48,2,FALSE)+ROW()-2)),\"\")","v":{"$error":"#N/A"}},{"$f":"IF(INDIRECT(\"c\" & (VLOOKUP(Rebalance!$D$55,$F$2:$G$48,2,FALSE)+ROW()-2))=Rebalance!$D$55,INDIRECT(\"a\" & (VLOOKUP(Rebalance!$D$55,$F$2:$G$48,2,FALSE)+ROW()-2)),\"\")","v":{"$error":"#N/A"}},{"$f":"IF(INDIRECT(\"c\" & (VLOOKUP(Rebalance!$D$56,$F$2:$G$48,2,FALSE)+ROW()-2))=Rebalance!$D$56,INDIRECT(\"a\" & (VLOOKUP(Rebalance!$D$56,$F$2:$G$48,2,FALSE)+ROW()-2)),\"\")","v":{"$error":"#N/A"}},{"$f":"IF(INDIRECT(\"c\" & (VLOOKUP(Rebalance!$D$57,$F$2:$G$48,2,FALSE)+ROW()-2))=Rebalance!$D$57,INDIRECT(\"a\" & (VLOOKUP(Rebalance!$D$57,$F$2:$G$48,2,FALSE)+ROW()-2)),\"\")","v":{"$error":"#N/A"}},{"$f":"IF(INDIRECT(\"c\" & (VLOOKUP(Rebalance!$D$58,$F$2:$G$48,2,FALSE)+ROW()-2))=Rebalance!$D$58,INDIRECT(\"a\" & (VLOOKUP(Rebalance!$D$58,$F$2:$G$48,2,FALSE)+ROW()-2)),\"\")","v":{"$error":"#N/A"}},{"$f":"IF(INDIRECT(\"c\" & (VLOOKUP(Rebalance!$D$59,$F$2:$G$48,2,FALSE)+ROW()-2))=Rebalance!$D$59,INDIRECT(\"a\" & (VLOOKUP(Rebalance!$D$59,$F$2:$G$48,2,FALSE)+ROW()-2)),\"\")","v":{"$error":"#N/A"}},{"$f":"IF(INDIRECT(\"c\" & (VLOOKUP(Rebalance!$D$60,$F$2:$G$48,2,FALSE)+ROW()-2))=Rebalance!$D$60,INDIRECT(\"a\" & (VLOOKUP(Rebalance!$D$60,$F$2:$G$48,2,FALSE)+ROW()-2)),\"\")","v":{"$error":"#N/A"}},{"$f":"IF(INDIRECT(\"c\" & (VLOOKUP(Rebalance!$D$61,$F$2:$G$48,2,FALSE)+ROW()-2))=Rebalance!$D$61,INDIRECT(\"a\" & (VLOOKUP(Rebalance!$D$61,$F$2:$G$48,2,FALSE)+ROW()-2)),\"\")","v":{"$error":"#N/A"}},{"$f":"IF(INDIRECT(\"c\" & (VLOOKUP(Rebalance!$D$62,$F$2:$G$48,2,FALSE)+ROW()-2))=Rebalance!$D$62,INDIRECT(\"a\" & (VLOOKUP(Rebalance!$D$62,$F$2:$G$48,2,FALSE)+ROW()-2)),\"\")","v":{"$error":"#N/A"}},{"$f":"IF(INDIRECT(\"c\" & (VLOOKUP(Rebalance!$D$63,$F$2:$G$48,2,FALSE)+ROW()-2))=Rebalance!$D$63,INDIRECT(\"a\" & (VLOOKUP(Rebalance!$D$63,$F$2:$G$48,2,FALSE)+ROW()-2)),\"\")","v":{"$error":"#N/A"}},{"$f":"IF(INDIRECT(\"c\" & (VLOOKUP(Rebalance!$D$64,$F$2:$G$48,2,FALSE)+ROW()-2))=Rebalance!$D$64,INDIRECT(\"a\" & (VLOOKUP(Rebalance!$D$64,$F$2:$G$48,2,FALSE)+ROW()-2)),\"\")","v":{"$error":"#N/A"}},{"$f":"IF(INDIRECT(\"c\" & (VLOOKUP(Rebalance!$D$65,$F$2:$G$48,2,FALSE)+ROW()-2))=Rebalance!$D$65,INDIRECT(\"a\" & (VLOOKUP(Rebalance!$D$65,$F$2:$G$48,2,FALSE)+ROW()-2)),\"\")","v":{"$error":"#N/A"}},{"$f":"IF(INDIRECT(\"c\" & (VLOOKUP(Rebalance!$D$66,$F$2:$G$48,2,FALSE)+ROW()-2))=Rebalance!$D$66,INDIRECT(\"a\" & (VLOOKUP(Rebalance!$D$66,$F$2:$G$48,2,FALSE)+ROW()-2)),\"\")","v":{"$error":"#N/A"}}]
[null,null,null,{"$f":"ROW()","v":681},null,null,{"$f":"VLOOKUP(F681,$C$2:$D$599,2,FALSE)","v":{"$error":"#N/A"}},{"$f":"IF(INDIRECT(\"c\" & (VLOOKUP(Rebalance!$D$26,$F$2:$G$48,2,FALSE)+ROW()-2))=Rebalance!$D$26,INDIRECT(\"a\" & (VLOOKUP(Rebalance!$D$26,$F$2:$G$48,2,FALSE)+ROW()-2)),\"\")","v":{"$error":"#N/A"}},{"$f":"IF(INDIRECT(\"c\" & (VLOOKUP(Rebalance!$D$27,$F$2:$G$48,2,FALSE)+ROW()-2))=Rebalance!$D$27,INDIRECT(\"a\" & (VLOOKUP(Rebalance!$D$27,$F$2:$G$48,2,FALSE)+ROW()-2)),\"\")","v":{"$error":"#N/A"}},{"$f":"IF(INDIRECT(\"c\" & (VLOOKUP(Rebalance!$D$28,$F$2:$G$48,2,FALSE)+ROW()-2))=Rebalance!$D$28,INDIRECT(\"a\" & (VLOOKUP(Rebalance!$D$28,$F$2:$G$48,2,FALSE)+ROW()-2)),\"\")","v":{"$error":"#N/A"}},{"$f":"IF(INDIRECT(\"c\" & (VLOOKUP(Rebalance!$D$29,$F$2:$G$48,2,FALSE)+ROW()-2))=Rebalance!$D$29,INDIRECT(\"a\" & (VLOOKUP(Rebalance!$D$29,$F$2:$G$48,2,FALSE)+ROW()-2)),\"\")","v":{"$error":"#N/A"}},{"$f":"IF(INDIRECT(\"c\" & (VLOOKUP(Rebalance!$D$30,$F$2:$G$48,2,FALSE)+ROW()-2))=Rebalance!$D$30,INDIRECT(\"a\" & (VLOOKUP(Rebalance!$D$30,$F$2:$G$48,2,FALSE)+ROW()-2)),\"\")","v":{"$error":"#N/A"}},{"$f":"IF(INDIRECT(\"c\" & (VLOOKUP(Rebalance!$D$31,$F$2:$G$48,2,FALSE)+ROW()-2))=Rebalance!$D$31,INDIRECT(\"a\" & (VLOOKUP(Rebalance!$D$31,$F$2:$G$48,2,FALSE)+ROW()-2)),\"\")","v":{"$error":"#N/A"}},{"$f":"IF(INDIRECT(\"c\" & (VLOOKUP(Rebalance!$D$32,$F$2:$G$48,2,FALSE)+ROW()-2))=Rebalance!$D$32,INDIRECT(\"a\" & (VLOOKUP(Rebalance!$D$32,$F$2:$G$48,2,FALSE)+ROW()-2)),\"\")","v":{"$error":"#N/A"}},{"$f":"IF(INDIRECT(\"c\" & (VLOOKUP(Rebalance!$D$33,$F$2:$G$48,2,FALSE)+ROW()-2))=Rebalance!$D$33,INDIRECT(\"a\" & (VLOOKUP(Rebalance!$D$33,$F$2:$G$48,2,FALSE)+ROW()-2)),\"\")","v":{"$error":"#N/A"}},{"$f":"IF(INDIRECT(\"c\" & (VLOOKUP(Rebalance!$D$34,$F$2:$G$48,2,FALSE)+ROW()-2))=Rebalance!$D$34,INDIRECT(\"a\" & (VLOOKUP(Rebalance!$D$34,$F$2:$G$48,2,FALSE)+ROW()-2)),\"\")","v":{"$error":"#N/A"}},{"$f":"IF(INDIRECT(\"c\" & (VLOOKUP(Rebalance!$D$35,$F$2:$G$48,2,FALSE)+ROW()-2))=Rebalance!$D$35,INDIRECT(\"a\" & (VLOOKUP(Rebalance!$D$35,$F$2:$G$48,2,FALSE)+ROW()-2)),\"\")","v":{"$error":"#N/A"}},{"$f":"IF(INDIRECT(\"c\" & (VLOOKUP(Rebalance!$D$36,$F$2:$G$48,2,FALSE)+ROW()-2))=Rebalance!$D$36,INDIRECT(\"a\" & (VLOOKUP(Rebalance!$D$36,$F$2:$G$48,2,FALSE)+ROW()-2)),\"\")","v":{"$error":"#N/A"}},{"$f":"IF(INDIRECT(\"c\" & (VLOOKUP(Rebalance!$D$37,$F$2:$G$48,2,FALSE)+ROW()-2))=Rebalance!$D$37,INDIRECT(\"a\" & (VLOOKUP(Rebalance!$D$37,$F$2:$G$48,2,FALSE)+ROW()-2)),\"\")","v":{"$error":"#N/A"}},{"$f":"IF(INDIRECT(\"c\" & (VLOOKUP(Rebalance!$D$38,$F$2:$G$48,2,FALSE)+ROW()-2))=Rebalance!$D$38,INDIRECT(\"a\" & (VLOOKUP(Rebalance!$D$38,$F$2:$G$48,2,FALSE)+ROW()-2)),\"\")","v":{"$error":"#N/A"}},{"$f":"IF(INDIRECT(\"c\" & (VLOOKUP(Rebalance!$D$39,$F$2:$G$48,2,FALSE)+ROW()-2))=Rebalance!$D$39,INDIRECT(\"a\" & (VLOOKUP(Rebalance!$D$39,$F$2:$G$48,2,FALSE)+ROW()-2)),\"\")","v":{"$error":"#N/A"}},{"$f":"IF(INDIRECT(\"c\" & (VLOOKUP(Rebalance!$D$40,$F$2:$G$48,2,FALSE)+ROW()-2))=Rebalance!$D$40,INDIRECT(\"a\" & (VLOOKUP(Rebalance!$D$40,$F$2:$G$48,2,FALSE)+ROW()-2)),\"\")","v":{"$error":"#N/A"}},{"$f":"IF(INDIRECT(\"c\" & (VLOOKUP(Rebalance!$D$52,$F$2:$G$48,2,FALSE)+ROW()-2))=Rebalance!$D$52,INDIRECT(\"a\" & (VLOOKUP(Rebalance!$D$52,$F$2:$G$48,2,FALSE)+ROW()-2)),\"\")","v":{"$error":"#N/A"}},{"$f":"IF(INDIRECT(\"c\" & (VLOOKUP(Rebalance!$D$53,$F$2:$G$48,2,FALSE)+ROW()-2))=Rebalance!$D$53,INDIRECT(\"a\" & (VLOOKUP(Rebalance!$D$53,$F$2:$G$48,2,FALSE)+ROW()-2)),\"\")","v":{"$error":"#N/A"}},{"$f":"IF(INDIRECT(\"c\" & (VLOOKUP(Rebalance!$D$54,$F$2:$G$48,2,FALSE)+ROW()-2))=Rebalance!$D$54,INDIRECT(\"a\" & (VLOOKUP(Rebalance!$D$54,$F$2:$G$48,2,FALSE)+ROW()-2)),\"\")","v":{"$error":"#N/A"}},{"$f":"IF(INDIRECT(\"c\" & (VLOOKUP(Rebalance!$D$55,$F$2:$G$48,2,FALSE)+ROW()-2))=Rebalance!$D$55,INDIRECT(\"a\" & (VLOOKUP(Rebalance!$D$55,$F$2:$G$48,2,FALSE)+ROW()-2)),\"\")","v":{"$error":"#N/A"}},{"$f":"IF(INDIRECT(\"c\" & (VLOOKUP(Rebalance!$D$56,$F$2:$G$48,2,FALSE)+ROW()-2))=Rebalance!$D$56,INDIRECT(\"a\" & (VLOOKUP(Rebalance!$D$56,$F$2:$G$48,2,FALSE)+ROW()-2)),\"\")","v":{"$error":"#N/A"}},{"$f":"IF(INDIRECT(\"c\" & (VLOOKUP(Rebalance!$D$57,$F$2:$G$48,2,FALSE)+ROW()-2))=Rebalance!$D$57,INDIRECT(\"a\" & (VLOOKUP(Rebalance!$D$57,$F$2:$G$48,2,FALSE)+ROW()-2)),\"\")","v":{"$error":"#N/A"}},{"$f":"IF(INDIRECT(\"c\" & (VLOOKUP(Rebalance!$D$58,$F$2:$G$48,2,FALSE)+ROW()-2))=Rebalance!$D$58,INDIRECT(\"a\" & (VLOOKUP(Rebalance!$D$58,$F$2:$G$48,2,FALSE)+ROW()-2)),\"\")","v":{"$error":"#N/A"}},{"$f":"IF(INDIRECT(\"c\" & (VLOOKUP(Rebalance!$D$59,$F$2:$G$48,2,FALSE)+ROW()-2))=Rebalance!$D$59,INDIRECT(\"a\" & (VLOOKUP(Rebalance!$D$59,$F$2:$G$48,2,FALSE)+ROW()-2)),\"\")","v":{"$error":"#N/A"}},{"$f":"IF(INDIRECT(\"c\" & (VLOOKUP(Rebalance!$D$60,$F$2:$G$48,2,FALSE)+ROW()-2))=Rebalance!$D$60,INDIRECT(\"a\" & (VLOOKUP(Rebalance!$D$60,$F$2:$G$48,2,FALSE)+ROW()-2)),\"\")","v":{"$error":"#N/A"}},{"$f":"IF(INDIRECT(\"c\" & (VLOOKUP(Rebalance!$D$61,$F$2:$G$48,2,FALSE)+ROW()-2))=Rebalance!$D$61,INDIRECT(\"a\" & (VLOOKUP(Rebalance!$D$61,$F$2:$G$48,2,FALSE)+ROW()-2)),\"\")","v":{"$error":"#N/A"}},{"$f":"IF(INDIRECT(\"c\" & (VLOOKUP(Rebalance!$D$62,$F$2:$G$48,2,FALSE)+ROW()-2))=Rebalance!$D$62,INDIRECT(\"a\" & (VLOOKUP(Rebalance!$D$62,$F$2:$G$48,2,FALSE)+ROW()-2)),\"\")","v":{"$error":"#N/A"}},{"$f":"IF(INDIRECT(\"c\" & (VLOOKUP(Rebalance!$D$63,$F$2:$G$48,2,FALSE)+ROW()-2))=Rebalance!$D$63,INDIRECT(\"a\" & (VLOOKUP(Rebalance!$D$63,$F$2:$G$48,2,FALSE)+ROW()-2)),\"\")","v":{"$error":"#N/A"}},{"$f":"IF(INDIRECT(\"c\" & (VLOOKUP(Rebalance!$D$64,$F$2:$G$48,2,FALSE)+ROW()-2))=Rebalance!$D$64,INDIRECT(\"a\" & (VLOOKUP(Rebalance!$D$64,$F$2:$G$48,2,FALSE)+ROW()-2)),\"\")","v":{"$error":"#N/A"}},{"$f":"IF(INDIRECT(\"c\" & (VLOOKUP(Rebalance!$D$65,$F$2:$G$48,2,FALSE)+ROW()-2))=Rebalance!$D$65,INDIRECT(\"a\" & (VLOOKUP(Rebalance!$D$65,$F$2:$G$48,2,FALSE)+ROW()-2)),\"\")","v":{"$error":"#N/A"}},{"$f":"IF(INDIRECT(\"c\" & (VLOOKUP(Rebalance!$D$66,$F$2:$G$48,2,FALSE)+ROW()-2))=Rebalance!$D$66,INDIRECT(\"a\" & (VLOOKUP(Rebalance!$D$66,$F$2:$G$48,2,FALSE)+ROW()-2)),\"\")","v":{"$error":"#N/A"}}]
[null,null,null,{"$f":"ROW()","v":682},null,null,{"$f":"VLOOKUP(F682,$C$2:$D$599,2,FALSE)","v":{"$error":"#N/A"}},{"$f":"IF(INDIRECT(\"c\" & (VLOOKUP(Rebalance!$D$26,$F$2:$G$48,2,FALSE)+ROW()-2))=Rebalance!$D$26,INDIRECT(\"a\" & (VLOOKUP(Rebalance!$D$26,$F$2:$G$48,2,FALSE)+ROW()-2)),\"\")","v":{"$error":"#N/A"}},{"$f":"IF(INDIRECT(\"c\" & (VLOOKUP(Rebalance!$D$27,$F$2:$G$48,2,FALSE)+ROW()-2))=Rebalance!$D$27,INDIRECT(\"a\" & (VLOOKUP(Rebalance!$D$27,$F$2:$G$48,2,FALSE)+ROW()-2)),\"\")","v":{"$error":"#N/A"}},{"$f":"IF(INDIRECT(\"c\" & (VLOOKUP(Rebalance!$D$28,$F$2:$G$48,2,FALSE)+ROW()-2))=Rebalance!$D$28,INDIRECT(\"a\" & (VLOOKUP(Rebalance!$D$28,$F$2:$G$48,2,FALSE)+ROW()-2)),\"\")","v":{"$error":"#N/A"}},{"$f":"IF(INDIRECT(\"c\" & (VLOOKUP(Rebalance!$D$29,$F$2:$G$48,2,FALSE)+ROW()-2))=Rebalance!$D$29,INDIRECT(\"a\" & (VLOOKUP(Rebalance!$D$29,$F$2:$G$48,2,FALSE)+ROW()-2)),\"\")","v":{"$error":"#N/A"}},{"$f":"IF(INDIRECT(\"c\" & (VLOOKUP(Rebalance!$D$30,$F$2:$G$48,2,FALSE)+ROW()-2))=Rebalance!$D$30,INDIRECT(\"a\" & (VLOOKUP(Rebalance!$D$30,$F$2:$G$48,2,FALSE)+ROW()-2)),\"\")","v":{"$error":"#N/A"}},{"$f":"IF(INDIRECT(\"c\" & (VLOOKUP(Rebalance!$D$31,$F$2:$G$48,2,FALSE)+ROW()-2))=Rebalance!$D$31,INDIRECT(\"a\" & (VLOOKUP(Rebalance!$D$31,$F$2:$G$48,2,FALSE)+ROW()-2)),\"\")","v":{"$error":"#N/A"}},{"$f":"IF(INDIRECT(\"c\" & (VLOOKUP(Rebalance!$D$32,$F$2:$G$48,2,FALSE)+ROW()-2))=Rebalance!$D$32,INDIRECT(\"a\" & (VLOOKUP(Rebalance!$D$32,$F$2:$G$48,2,FALSE)+ROW()-2)),\"\")","v":{"$error":"#N/A"}},{"$f":"IF(INDIRECT(\"c\" & (VLOOKUP(Rebalance!$D$33,$F$2:$G$48,2,FALSE)+ROW()-2))=Rebalance!$D$33,INDIRECT(\"a\" & (VLOOKUP(Rebalance!$D$33,$F$2:$G$48,2,FALSE)+ROW()-2)),\"\")","v":{"$error":"#N/A"}},{"$f":"IF(INDIRECT(\"c\" & (VLOOKUP(Rebalance!$D$34,$F$2:$G$48,2,FALSE)+ROW()-2))=Rebalance!$D$34,INDIRECT(\"a\" & (VLOOKUP(Rebalance!$D$34,$F$2:$G$48,2,FALSE)+ROW()-2)),\"\")","v":{"$error":"#N/A"}},{"$f":"IF(INDIRECT(\"c\" & (VLOOKUP(Rebalance!$D$35,$F$2:$G$48,2,FALSE)+ROW()-2))=Rebalance!$D$35,INDIRECT(\"a\" & (VLOOKUP(Rebalance!$D$35,$F$2:$G$48,2,FALSE)+ROW()-2)),\"\")","v":{"$error":"#N/A"}},{"$f":"IF(INDIRECT(\"c\" & (VLOOKUP(Rebalance!$D$36,$F$2:$G$48,2,FALSE)+ROW()-2))=Rebalance!$D$36,INDIRECT(\"a\" & (VLOOKUP(Rebalance!$D$36,$F$2:$G$48,2,FALSE)+ROW()-2)),\"\")","v":{"$error":"#N/A"}},{"$f":"IF(INDIRECT(\"c\" & (VLOOKUP(Rebalance!$D$37,$F$2:$G$48,2,FALSE)+ROW()-2))=Rebalance!$D$37,INDIRECT(\"a\" & (VLOOKUP(Rebalance!$D$37,$F$2:$G$48,2,FALSE)+ROW()-2)),\"\")","v":{"$error":"#N/A"}},{"$f":"IF(INDIRECT(\"c\" & (VLOOKUP(Rebalance!$D$38,$F$2:$G$48,2,FALSE)+ROW()-2))=Rebalance!$D$38,INDIRECT(\"a\" & (VLOOKUP(Rebalance!$D$38,$F$2:$G$48,2,FALSE)+ROW()-2)),\"\")","v":{"$error":"#N/A"}},{"$f":"IF(INDIRECT(\"c\" & (VLOOKUP(Rebalance!$D$39,$F$2:$G$48,2,FALSE)+ROW()-2))=Rebalance!$D$39,INDIRECT(\"a\" & (VLOOKUP(Rebalance!$D$39,$F$2:$G$48,2,FALSE)+ROW()-2)),\"\")","v":{"$error":"#N/A"}},{"$f":"IF(INDIRECT(\"c\" & (VLOOKUP(Rebalance!$D$40,$F$2:$G$48,2,FALSE)+ROW()-2))=Rebalance!$D$40,INDIRECT(\"a\" & (VLOOKUP(Rebalance!$D$40,$F$2:$G$48,2,FALSE)+ROW()-2)),\"\")","v":{"$error":"#N/A"}},{"$f":"IF(INDIRECT(\"c\" & (VLOOKUP(Rebalance!$D$52,$F$2:$G$48,2,FALSE)+ROW()-2))=Rebalance!$D$52,INDIRECT(\"a\" & (VLOOKUP(Rebalance!$D$52,$F$2:$G$48,2,FALSE)+ROW()-2)),\"\")","v":{"$error":"#N/A"}},{"$f":"IF(INDIRECT(\"c\" & (VLOOKUP(Rebalance!$D$53,$F$2:$G$48,2,FALSE)+ROW()-2))=Rebalance!$D$53,INDIRECT(\"a\" & (VLOOKUP(Rebalance!$D$53,$F$2:$G$48,2,FALSE)+ROW()-2)),\"\")","v":{"$error":"#N/A"}},{"$f":"IF(INDIRECT(\"c\" & (VLOOKUP(Rebalance!$D$54,$F$2:$G$48,2,FALSE)+ROW()-2))=Rebalance!$D$54,INDIRECT(\"a\" & (VLOOKUP(Rebalance!$D$54,$F$2:$G$48,2,FALSE)+ROW()-2)),\"\")","v":{"$error":"#N/A"}},{"$f":"IF(INDIRECT(\"c\" & (VLOOKUP(Rebalance!$D$55,$F$2:$G$48,2,FALSE)+ROW()-2))=Rebalance!$D$55,INDIRECT(\"a\" & (VLOOKUP(Rebalance!$D$55,$F$2:$G$48,2,FALSE)+ROW()-2)),\"\")","v":{"$error":"#N/A"}},{"$f":"IF(INDIRECT(\"c\" & (VLOOKUP(Rebalance!$D$56,$F$2:$G$48,2,FALSE)+ROW()-2))=Rebalance!$D$56,INDIRECT(\"a\" & (VLOOKUP(Rebalance!$D$56,$F$2:$G$48,2,FALSE)+ROW()-2)),\"\")","v":{"$error":"#N/A"}},{"$f":"IF(INDIRECT(\"c\" & (VLOOKUP(Rebalance!$D$57,$F$2:$G$48,2,FALSE)+ROW()-2))=Rebalance!$D$57,INDIRECT(\"a\" & (VLOOKUP(Rebalance!$D$57,$F$2:$G$48,2,FALSE)+ROW()-2)),\"\")","v":{"$error":"#N/A"}},{"$f":"IF(INDIRECT(\"c\" & (VLOOKUP(Rebalance!$D$58,$F$2:$G$48,2,FALSE)+ROW()-2))=Rebalance!$D$58,INDIRECT(\"a\" & (VLOOKUP(Rebalance!$D$58,$F$2:$G$48,2,FALSE)+ROW()-2)),\"\")","v":{"$error":"#N/A"}},{"$f":"IF(INDIRECT(\"c\" & (VLOOKUP(Rebalance!$D$59,$F$2:$G$48,2,FALSE)+ROW()-2))=Rebalance!$D$59,INDIRECT(\"a\" & (VLOOKUP(Rebalance!$D$59,$F$2:$G$48,2,FALSE)+ROW()-2)),\"\")","v":{"$error":"#N/A"}},{"$f":"IF(INDIRECT(\"c\" & (VLOOKUP(Rebalance!$D$60,$F$2:$G$48,2,FALSE)+ROW()-2))=Rebalance!$D$60,INDIRECT(\"a\" & (VLOOKUP(Rebalance!$D$60,$F$2:$G$48,2,FALSE)+ROW()-2)),\"\")","v":{"$error":"#N/A"}},{"$f":"IF(INDIRECT(\"c\" & (VLOOKUP(Rebalance!$D$61,$F$2:$G$48,2,FALSE)+ROW()-2))=Rebalance!$D$61,INDIRECT(\"a\" & (VLOOKUP(Rebalance!$D$61,$F$2:$G$48,2,FALSE)+ROW()-2)),\"\")","v":{"$error":"#N/A"}},{"$f":"IF(INDIRECT(\"c\" & (VLOOKUP(Rebalance!$D$62,$F$2:$G$48,2,FALSE)+ROW()-2))=Rebalance!$D$62,INDIRECT(\"a\" & (VLOOKUP(Rebalance!$D$62,$F$2:$G$48,2,FALSE)+ROW()-2)),\"\")","v":{"$error":"#N/A"}},{"$f":"IF(INDIRECT(\"c\" & (VLOOKUP(Rebalance!$D$63,$F$2:$G$48,2,FALSE)+ROW()-2))=Rebalance!$D$63,INDIRECT(\"a\" & (VLOOKUP(Rebalance!$D$63,$F$2:$G$48,2,FALSE)+ROW()-2)),\"\")","v":{"$error":"#N/A"}},{"$f":"IF(INDIRECT(\"c\" & (VLOOKUP(Rebalance!$D$64,$F$2:$G$48,2,FALSE)+ROW()-2))=Rebalance!$D$64,INDIRECT(\"a\" & (VLOOKUP(Rebalance!$D$64,$F$2:$G$48,2,FALSE)+ROW()-2)),\"\")","v":{"$error":"#N/A"}},{"$f":"IF(INDIRECT(\"c\" & (VLOOKUP(Rebalance!$D$65,$F$2:$G$48,2,FALSE)+ROW()-2))=Rebalance!$D$65,INDIRECT(\"a\" & (VLOOKUP(Rebalance!$D$65,$F$2:$G$48,2,FALSE)+ROW()-2)),\"\")","v":{"$error":"#N/A"}},{"$f":"IF(INDIRECT(\"c\" & (VLOOKUP(Rebalance!$D$66,$F$2:$G$48,2,FALSE)+ROW()-2))=Rebalance!$D$66,INDIRECT(\"a\" & (VLOOKUP(Rebalance!$D$66,$F$2:$G$48,2,FALSE)+ROW()-2)),\"\")","v":{"$error":"#N/A"}}]
[null,null,null,{"$f":"ROW()","v":683},null,null,{"$f":"VLOOKUP(F683,$C$2:$D$599,2,FALSE)","v":{"$error":"#N/A"}},{"$f":"IF(INDIRECT(\"c\" & (VLOOKUP(Rebalance!$D$26,$F$2:$G$48,2,FALSE)+ROW()-2))=Rebalance!$D$26,INDIRECT(\"a\" & (VLOOKUP(Rebalance!$D$26,$F$2:$G$48,2,FALSE)+ROW()-2)),\"\")","v":{"$error":"#N/A"}},{"$f":"IF(INDIRECT(\"c\" & (VLOOKUP(Rebalance!$D$27,$F$2:$G$48,2,FALSE)+ROW()-2))=Rebalance!$D$27,INDIRECT(\"a\" & (VLOOKUP(Rebalance!$D$27,$F$2:$G$48,2,FALSE)+ROW()-2)),\"\")","v":{"$error":"#N/A"}},{"$f":"IF(INDIRECT(\"c\" & (VLOOKUP(Rebalance!$D$28,$F$2:$G$48,2,FALSE)+ROW()-2))=Rebalance!$D$28,INDIRECT(\"a\" & (VLOOKUP(Rebalance!$D$28,$F$2:$G$48,2,FALSE)+ROW()-2)),\"\")","v":{"$error":"#N/A"}},{"$f":"IF(INDIRECT(\"c\" & (VLOOKUP(Rebalance!$D$29,$F$2:$G$48,2,FALSE)+ROW()-2))=Rebalance!$D$29,INDIRECT(\"a\" & (VLOOKUP(Rebalance!$D$29,$F$2:$G$48,2,FALSE)+ROW()-2)),\"\")","v":{"$error":"#N/A"}},{"$f":"IF(INDIRECT(\"c\" & (VLOOKUP(Rebalance!$D$30,$F$2:$G$48,2,FALSE)+ROW()-2))=Rebalance!$D$30,INDIRECT(\"a\" & (VLOOKUP(Rebalance!$D$30,$F$2:$G$48,2,FALSE)+ROW()-2)),\"\")","v":{"$error":"#N/A"}},{"$f":"IF(INDIRECT(\"c\" & (VLOOKUP(Rebalance!$D$31,$F$2:$G$48,2,FALSE)+ROW()-2))=Rebalance!$D$31,INDIRECT(\"a\" & (VLOOKUP(Rebalance!$D$31,$F$2:$G$48,2,FALSE)+ROW()-2)),\"\")","v":{"$error":"#N/A"}},{"$f":"IF(INDIRECT(\"c\" & (VLOOKUP(Rebalance!$D$32,$F$2:$G$48,2,FALSE)+ROW()-2))=Rebalance!$D$32,INDIRECT(\"a\" & (VLOOKUP(Rebalance!$D$32,$F$2:$G$48,2,FALSE)+ROW()-2)),\"\")","v":{"$error":"#N/A"}},{"$f":"IF(INDIRECT(\"c\" & (VLOOKUP(Rebalance!$D$33,$F$2:$G$48,2,FALSE)+ROW()-2))=Rebalance!$D$33,INDIRECT(\"a\" & (VLOOKUP(Rebalance!$D$33,$F$2:$G$48,2,FALSE)+ROW()-2)),\"\")","v":{"$error":"#N/A"}},{"$f":"IF(INDIRECT(\"c\" & (VLOOKUP(Rebalance!$D$34,$F$2:$G$48,2,FALSE)+ROW()-2))=Rebalance!$D$34,INDIRECT(\"a\" & (VLOOKUP(Rebalance!$D$34,$F$2:$G$48,2,FALSE)+ROW()-2)),\"\")","v":{"$error":"#N/A"}},{"$f":"IF(INDIRECT(\"c\" & (VLOOKUP(Rebalance!$D$35,$F$2:$G$48,2,FALSE)+ROW()-2))=Rebalance!$D$35,INDIRECT(\"a\" & (VLOOKUP(Rebalance!$D$35,$F$2:$G$48,2,FALSE)+ROW()-2)),\"\")","v":{"$error":"#N/A"}},{"$f":"IF(INDIRECT(\"c\" & (VLOOKUP(Rebalance!$D$36,$F$2:$G$48,2,FALSE)+ROW()-2))=Rebalance!$D$36,INDIRECT(\"a\" & (VLOOKUP(Rebalance!$D$36,$F$2:$G$48,2,FALSE)+ROW()-2)),\"\")","v":{"$error":"#N/A"}},{"$f":"IF(INDIRECT(\"c\" & (VLOOKUP(Rebalance!$D$37,$F$2:$G$48,2,FALSE)+ROW()-2))=Rebalance!$D$37,INDIRECT(\"a\" & (VLOOKUP(Rebalance!$D$37,$F$2:$G$48,2,FALSE)+ROW()-2)),\"\")","v":{"$error":"#N/A"}},{"$f":"IF(INDIRECT(\"c\" & (VLOOKUP(Rebalance!$D$38,$F$2:$G$48,2,FALSE)+ROW()-2))=Rebalance!$D$38,INDIRECT(\"a\" & (VLOOKUP(Rebalance!$D$38,$F$2:$G$48,2,FALSE)+ROW()-2)),\"\")","v":{"$error":"#N/A"}},{"$f":"IF(INDIRECT(\"c\" & (VLOOKUP(Rebalance!$D$39,$F$2:$G$48,2,FALSE)+ROW()-2))=Rebalance!$D$39,INDIRECT(\"a\" & (VLOOKUP(Rebalance!$D$39,$F$2:$G$48,2,FALSE)+ROW()-2)),\"\")","v":{"$error":"#N/A"}},{"$f":"IF(INDIRECT(\"c\" & (VLOOKUP(Rebalance!$D$40,$F$2:$G$48,2,FALSE)+ROW()-2))=Rebalance!$D$40,INDIRECT(\"a\" & (VLOOKUP(Rebalance!$D$40,$F$2:$G$48,2,FALSE)+ROW()-2)),\"\")","v":{"$error":"#N/A"}},{"$f":"IF(INDIRECT(\"c\" & (VLOOKUP(Rebalance!$D$52,$F$2:$G$48,2,FALSE)+ROW()-2))=Rebalance!$D$52,INDIRECT(\"a\" & (VLOOKUP(Rebalance!$D$52,$F$2:$G$48,2,FALSE)+ROW()-2)),\"\")","v":{"$error":"#N/A"}},{"$f":"IF(INDIRECT(\"c\" & (VLOOKUP(Rebalance!$D$53,$F$2:$G$48,2,FALSE)+ROW()-2))=Rebalance!$D$53,INDIRECT(\"a\" & (VLOOKUP(Rebalance!$D$53,$F$2:$G$48,2,FALSE)+ROW()-2)),\"\")","v":{"$error":"#N/A"}},{"$f":"IF(INDIRECT(\"c\" & (VLOOKUP(Rebalance!$D$54,$F$2:$G$48,2,FALSE)+ROW()-2))=Rebalance!$D$54,INDIRECT(\"a\" & (VLOOKUP(Rebalance!$D$54,$F$2:$G$48,2,FALSE)+ROW()-2)),\"\")","v":{"$error":"#N/A"}},{"$f":"IF(INDIRECT(\"c\" & (VLOOKUP(Rebalance!$D$55,$F$2:$G$48,2,FALSE)+ROW()-2))=Rebalance!$D$55,INDIRECT(\"a\" & (VLOOKUP(Rebalance!$D$55,$F$2:$G$48,2,FALSE)+ROW()-2)),\"\")","v":{"$error":"#N/A"}},{"$f":"IF(INDIRECT(\"c\" & (VLOOKUP(Rebalance!$D$56,$F$2:$G$48,2,FALSE)+ROW()-2))=Rebalance!$D$56,INDIRECT(\"a\" & (VLOOKUP(Rebalance!$D$56,$F$2:$G$48,2,FALSE)+ROW()-2)),\"\")","v":{"$error":"#N/A"}},{"$f":"IF(INDIRECT(\"c\" & (VLOOKUP(Rebalance!$D$57,$F$2:$G$48,2,FALSE)+ROW()-2))=Rebalance!$D$57,INDIRECT(\"a\" & (VLOOKUP(Rebalance!$D$57,$F$2:$G$48,2,FALSE)+ROW()-2)),\"\")","v":{"$error":"#N/A"}},{"$f":"IF(INDIRECT(\"c\" & (VLOOKUP(Rebalance!$D$58,$F$2:$G$48,2,FALSE)+ROW()-2))=Rebalance!$D$58,INDIRECT(\"a\" & (VLOOKUP(Rebalance!$D$58,$F$2:$G$48,2,FALSE)+ROW()-2)),\"\")","v":{"$error":"#N/A"}},{"$f":"IF(INDIRECT(\"c\" & (VLOOKUP(Rebalance!$D$59,$F$2:$G$48,2,FALSE)+ROW()-2))=Rebalance!$D$59,INDIRECT(\"a\" & (VLOOKUP(Rebalance!$D$59,$F$2:$G$48,2,FALSE)+ROW()-2)),\"\")","v":{"$error":"#N/A"}},{"$f":"IF(INDIRECT(\"c\" & (VLOOKUP(Rebalance!$D$60,$F$2:$G$48,2,FALSE)+ROW()-2))=Rebalance!$D$60,INDIRECT(\"a\" & (VLOOKUP(Rebalance!$D$60,$F$2:$G$48,2,FALSE)+ROW()-2)),\"\")","v":{"$error":"#N/A"}},{"$f":"IF(INDIRECT(\"c\" & (VLOOKUP(Rebalance!$D$61,$F$2:$G$48,2,FALSE)+ROW()-2))=Rebalance!$D$61,INDIRECT(\"a\" & (VLOOKUP(Rebalance!$D$61,$F$2:$G$48,2,FALSE)+ROW()-2)),\"\")","v":{"$error":"#N/A"}},{"$f":"IF(INDIRECT(\"c\" & (VLOOKUP(Rebalance!$D$62,$F$2:$G$48,2,FALSE)+ROW()-2))=Rebalance!$D$62,INDIRECT(\"a\" & (VLOOKUP(Rebalance!$D$62,$F$2:$G$48,2,FALSE)+ROW()-2)),\"\")","v":{"$error":"#N/A"}},{"$f":"IF(INDIRECT(\"c\" & (VLOOKUP(Rebalance!$D$63,$F$2:$G$48,2,FALSE)+ROW()-2))=Rebalance!$D$63,INDIRECT(\"a\" & (VLOOKUP(Rebalance!$D$63,$F$2:$G$48,2,FALSE)+ROW()-2)),\"\")","v":{"$error":"#N/A"}},{"$f":"IF(INDIRECT(\"c\" & (VLOOKUP(Rebalance!$D$64,$F$2:$G$48,2,FALSE)+ROW()-2))=Rebalance!$D$64,INDIRECT(\"a\" & (VLOOKUP(Rebalance!$D$64,$F$2:$G$48,2,FALSE)+ROW()-2)),\"\")","v":{"$error":"#N/A"}},{"$f":"IF(INDIRECT(\"c\" & (VLOOKUP(Rebalance!$D$65,$F$2:$G$48,2,FALSE)+ROW()-2))=Rebalance!$D$65,INDIRECT(\"a\" & (VLOOKUP(Rebalance!$D$65,$F$2:$G$48,2,FALSE)+ROW()-2)),\"\")","v":{"$error":"#N/A"}},{"$f":"IF(INDIRECT(\"c\" & (VLOOKUP(Rebalance!$D$66,$F$2:$G$48,2,FALSE)+ROW()-2))=Rebalance!$D$66,INDIRECT(\"a\" & (VLOOKUP(Rebalance!$D$66,$F$2:$G$48,2,FALSE)+ROW()-2)),\"\")","v":{"$error":"#N/A"}}]
[null,null,null,{"$f":"ROW()","v":684},null,null,{"$f":"VLOOKUP(F684,$C$2:$D$599,2,FALSE)","v":{"$error":"#N/A"}},{"$f":"IF(INDIRECT(\"c\" & (VLOOKUP(Rebalance!$D$26,$F$2:$G$48,2,FALSE)+ROW()-2))=Rebalance!$D$26,INDIRECT(\"a\" & (VLOOKUP(Rebalance!$D$26,$F$2:$G$48,2,FALSE)+ROW()-2)),\"\")","v":{"$error":"#N/A"}},{"$f":"IF(INDIRECT(\"c\" & (VLOOKUP(Rebalance!$D$27,$F$2:$G$48,2,FALSE)+ROW()-2))=Rebalance!$D$27,INDIRECT(\"a\" & (VLOOKUP(Rebalance!$D$27,$F$2:$G$48,2,FALSE)+ROW()-2)),\"\")","v":{"$error":"#N/A"}},{"$f":"IF(INDIRECT(\"c\" & (VLOOKUP(Rebalance!$D$28,$F$2:$G$48,2,FALSE)+ROW()-2))=Rebalance!$D$28,INDIRECT(\"a\" & (VLOOKUP(Rebalance!$D$28,$F$2:$G$48,2,FALSE)+ROW()-2)),\"\")","v":{"$error":"#N/A"}},{"$f":"IF(INDIRECT(\"c\" & (VLOOKUP(Rebalance!$D$29,$F$2:$G$48,2,FALSE)+ROW()-2))=Rebalance!$D$29,INDIRECT(\"a\" & (VLOOKUP(Rebalance!$D$29,$F$2:$G$48,2,FALSE)+ROW()-2)),\"\")","v":{"$error":"#N/A"}},{"$f":"IF(INDIRECT(\"c\" & (VLOOKUP(Rebalance!$D$30,$F$2:$G$48,2,FALSE)+ROW()-2))=Rebalance!$D$30,INDIRECT(\"a\" & (VLOOKUP(Rebalance!$D$30,$F$2:$G$48,2,FALSE)+ROW()-2)),\"\")","v":{"$error":"#N/A"}},{"$f":"IF(INDIRECT(\"c\" & (VLOOKUP(Rebalance!$D$31,$F$2:$G$48,2,FALSE)+ROW()-2))=Rebalance!$D$31,INDIRECT(\"a\" & (VLOOKUP(Rebalance!$D$31,$F$2:$G$48,2,FALSE)+ROW()-2)),\"\")","v":{"$error":"#N/A"}},{"$f":"IF(INDIRECT(\"c\" & (VLOOKUP(Rebalance!$D$32,$F$2:$G$48,2,FALSE)+ROW()-2))=Rebalance!$D$32,INDIRECT(\"a\" & (VLOOKUP(Rebalance!$D$32,$F$2:$G$48,2,FALSE)+ROW()-2)),\"\")","v":{"$error":"#N/A"}},{"$f":"IF(INDIRECT(\"c\" & (VLOOKUP(Rebalance!$D$33,$F$2:$G$48,2,FALSE)+ROW()-2))=Rebalance!$D$33,INDIRECT(\"a\" & (VLOOKUP(Rebalance!$D$33,$F$2:$G$48,2,FALSE)+ROW()-2)),\"\")","v":{"$error":"#N/A"}},{"$f":"IF(INDIRECT(\"c\" & (VLOOKUP(Rebalance!$D$34,$F$2:$G$48,2,FALSE)+ROW()-2))=Rebalance!$D$34,INDIRECT(\"a\" & (VLOOKUP(Rebalance!$D$34,$F$2:$G$48,2,FALSE)+ROW()-2)),\"\")","v":{"$error":"#N/A"}},{"$f":"IF(INDIRECT(\"c\" & (VLOOKUP(Rebalance!$D$35,$F$2:$G$48,2,FALSE)+ROW()-2))=Rebalance!$D$35,INDIRECT(\"a\" & (VLOOKUP(Rebalance!$D$35,$F$2:$G$48,2,FALSE)+ROW()-2)),\"\")","v":{"$error":"#N/A"}},{"$f":"IF(INDIRECT(\"c\" & (VLOOKUP(Rebalance!$D$36,$F$2:$G$48,2,FALSE)+ROW()-2))=Rebalance!$D$36,INDIRECT(\"a\" & (VLOOKUP(Rebalance!$D$36,$F$2:$G$48,2,FALSE)+ROW()-2)),\"\")","v":{"$error":"#N/A"}},{"$f":"IF(INDIRECT(\"c\" & (VLOOKUP(Rebalance!$D$37,$F$2:$G$48,2,FALSE)+ROW()-2))=Rebalance!$D$37,INDIRECT(\"a\" & (VLOOKUP(Rebalance!$D$37,$F$2:$G$48,2,FALSE)+ROW()-2)),\"\")","v":{"$error":"#N/A"}},{"$f":"IF(INDIRECT(\"c\" & (VLOOKUP(Rebalance!$D$38,$F$2:$G$48,2,FALSE)+ROW()-2))=Rebalance!$D$38,INDIRECT(\"a\" & (VLOOKUP(Rebalance!$D$38,$F$2:$G$48,2,FALSE)+ROW()-2)),\"\")","v":{"$error":"#N/A"}},{"$f":"IF(INDIRECT(\"c\" & (VLOOKUP(Rebalance!$D$39,$F$2:$G$48,2,FALSE)+ROW()-2))=Rebalance!$D$39,INDIRECT(\"a\" & (VLOOKUP(Rebalance!$D$39,$F$2:$G$48,2,FALSE)+ROW()-2)),\"\")","v":{"$error":"#N/A"}},{"$f":"IF(INDIRECT(\"c\" & (VLOOKUP(Rebalance!$D$40,$F$2:$G$48,2,FALSE)+ROW()-2))=Rebalance!$D$40,INDIRECT(\"a\" & (VLOOKUP(Rebalance!$D$40,$F$2:$G$48,2,FALSE)+ROW()-2)),\"\")","v":{"$error":"#N/A"}},{"$f":"IF(INDIRECT(\"c\" & (VLOOKUP(Rebalance!$D$52,$F$2:$G$48,2,FALSE)+ROW()-2))=Rebalance!$D$52,INDIRECT(\"a\" & (VLOOKUP(Rebalance!$D$52,$F$2:$G$48,2,FALSE)+ROW()-2)),\"\")","v":{"$error":"#N/A"}},{"$f":"IF(INDIRECT(\"c\" & (VLOOKUP(Rebalance!$D$53,$F$2:$G$48,2,FALSE)+ROW()-2))=Rebalance!$D$53,INDIRECT(\"a\" & (VLOOKUP(Rebalance!$D$53,$F$2:$G$48,2,FALSE)+ROW()-2)),\"\")","v":{"$error":"#N/A"}},{"$f":"IF(INDIRECT(\"c\" & (VLOOKUP(Rebalance!$D$54,$F$2:$G$48,2,FALSE)+ROW()-2))=Rebalance!$D$54,INDIRECT(\"a\" & (VLOOKUP(Rebalance!$D$54,$F$2:$G$48,2,FALSE)+ROW()-2)),\"\")","v":{"$error":"#N/A"}},{"$f":"IF(INDIRECT(\"c\" & (VLOOKUP(Rebalance!$D$55,$F$2:$G$48,2,FALSE)+ROW()-2))=Rebalance!$D$55,INDIRECT(\"a\" & (VLOOKUP(Rebalance!$D$55,$F$2:$G$48,2,FALSE)+ROW()-2)),\"\")","v":{"$error":"#N/A"}},{"$f":"IF(INDIRECT(\"c\" & (VLOOKUP(Rebalance!$D$56,$F$2:$G$48,2,FALSE)+ROW()-2))=Rebalance!$D$56,INDIRECT(\"a\" & (VLOOKUP(Rebalance!$D$56,$F$2:$G$48,2,FALSE)+ROW()-2)),\"\")","v":{"$error":"#N/A"}},{"$f":"IF(INDIRECT(\"c\" & (VLOOKUP(Rebalance!$D$57,$F$2:$G$48,2,FALSE)+ROW()-2))=Rebalance!$D$57,INDIRECT(\"a\" & (VLOOKUP(Rebalance!$D$57,$F$2:$G$48,2,FALSE)+ROW()-2)),\"\")","v":{"$error":"#N/A"}},{"$f":"IF(INDIRECT(\"c\" & (VLOOKUP(Rebalance!$D$58,$F$2:$G$48,2,FALSE)+ROW()-2))=Rebalance!$D$58,INDIRECT(\"a\" & (VLOOKUP(Rebalance!$D$58,$F$2:$G$48,2,FALSE)+ROW()-2)),\"\")","v":{"$error":"#N/A"}},{"$f":"IF(INDIRECT(\"c\" & (VLOOKUP(Rebalance!$D$59,$F$2:$G$48,2,FALSE)+ROW()-2))=Rebalance!$D$59,INDIRECT(\"a\" & (VLOOKUP(Rebalance!$D$59,$F$2:$G$48,2,FALSE)+ROW()-2)),\"\")","v":{"$error":"#N/A"}},{"$f":"IF(INDIRECT(\"c\" & (VLOOKUP(Rebalance!$D$60,$F$2:$G$48,2,FALSE)+ROW()-2))=Rebalance!$D$60,INDIRECT(\"a\" & (VLOOKUP(Rebalance!$D$60,$F$2:$G$48,2,FALSE)+ROW()-2)),\"\")","v":{"$error":"#N/A"}},{"$f":"IF(INDIRECT(\"c\" & (VLOOKUP(Rebalance!$D$61,$F$2:$G$48,2,FALSE)+ROW()-2))=Rebalance!$D$61,INDIRECT(\"a\" & (VLOOKUP(Rebalance!$D$61,$F$2:$G$48,2,FALSE)+ROW()-2)),\"\")","v":{"$error":"#N/A"}},{"$f":"IF(INDIRECT(\"c\" & (VLOOKUP(Rebalance!$D$62,$F$2:$G$48,2,FALSE)+ROW()-2))=Rebalance!$D$62,INDIRECT(\"a\" & (VLOOKUP(Rebalance!$D$62,$F$2:$G$48,2,FALSE)+ROW()-2)),\"\")","v":{"$error":"#N/A"}},{"$f":"IF(INDIRECT(\"c\" & (VLOOKUP(Rebalance!$D$63,$F$2:$G$48,2,FALSE)+ROW()-2))=Rebalance!$D$63,INDIRECT(\"a\" & (VLOOKUP(Rebalance!$D$63,$F$2:$G$48,2,FALSE)+ROW()-2)),\"\")","v":{"$error":"#N/A"}},{"$f":"IF(INDIRECT(\"c\" & (VLOOKUP(Rebalance!$D$64,$F$2:$G$48,2,FALSE)+ROW()-2))=Rebalance!$D$64,INDIRECT(\"a\" & (VLOOKUP(Rebalance!$D$64,$F$2:$G$48,2,FALSE)+ROW()-2)),\"\")","v":{"$error":"#N/A"}},{"$f":"IF(INDIRECT(\"c\" & (VLOOKUP(Rebalance!$D$65,$F$2:$G$48,2,FALSE)+ROW()-2))=Rebalance!$D$65,INDIRECT(\"a\" & (VLOOKUP(Rebalance!$D$65,$F$2:$G$48,2,FALSE)+ROW()-2)),\"\")","v":{"$error":"#N/A"}},{"$f":"IF(INDIRECT(\"c\" & (VLOOKUP(Rebalance!$D$66,$F$2:$G$48,2,FALSE)+ROW()-2))=Rebalance!$D$66,INDIRECT(\"a\" & (VLOOKUP(Rebalance!$D$66,$F$2:$G$48,2,FALSE)+ROW()-2)),\"\")","v":{"$error":"#N/A"}}]
[null,null,null,{"$f":"ROW()","v":685},null,null,{"$f":"VLOOKUP(F685,$C$2:$D$599,2,FALSE)","v":{"$error":"#N/A"}},{"$f":"IF(INDIRECT(\"c\" & (VLOOKUP(Rebalance!$D$26,$F$2:$G$48,2,FALSE)+ROW()-2))=Rebalance!$D$26,INDIRECT(\"a\" & (VLOOKUP(Rebalance!$D$26,$F$2:$G$48,2,FALSE)+ROW()-2)),\"\")","v":{"$error":"#N/A"}},{"$f":"IF(INDIRECT(\"c\" & (VLOOKUP(Rebalance!$D$27,$F$2:$G$48,2,FALSE)+ROW()-2))=Rebalance!$D$27,INDIRECT(\"a\" & (VLOOKUP(Rebalance!$D$27,$F$2:$G$48,2,FALSE)+ROW()-2)),\"\")","v":{"$error":"#N/A"}},{"$f":"IF(INDIRECT(\"c\" & (VLOOKUP(Rebalance!$D$28,$F$2:$G$48,2,FALSE)+ROW()-2))=Rebalance!$D$28,INDIRECT(\"a\" & (VLOOKUP(Rebalance!$D$28,$F$2:$G$48,2,FALSE)+ROW()-2)),\"\")","v":{"$error":"#N/A"}},{"$f":"IF(INDIRECT(\"c\" & (VLOOKUP(Rebalance!$D$29,$F$2:$G$48,2,FALSE)+ROW()-2))=Rebalance!$D$29,INDIRECT(\"a\" & (VLOOKUP(Rebalance!$D$29,$F$2:$G$48,2,FALSE)+ROW()-2)),\"\")","v":{"$error":"#N/A"}},{"$f":"IF(INDIRECT(\"c\" & (VLOOKUP(Rebalance!$D$30,$F$2:$G$48,2,FALSE)+ROW()-2))=Rebalance!$D$30,INDIRECT(\"a\" & (VLOOKUP(Rebalance!$D$30,$F$2:$G$48,2,FALSE)+ROW()-2)),\"\")","v":{"$error":"#N/A"}},{"$f":"IF(INDIRECT(\"c\" & (VLOOKUP(Rebalance!$D$31,$F$2:$G$48,2,FALSE)+ROW()-2))=Rebalance!$D$31,INDIRECT(\"a\" & (VLOOKUP(Rebalance!$D$31,$F$2:$G$48,2,FALSE)+ROW()-2)),\"\")","v":{"$error":"#N/A"}},{"$f":"IF(INDIRECT(\"c\" & (VLOOKUP(Rebalance!$D$32,$F$2:$G$48,2,FALSE)+ROW()-2))=Rebalance!$D$32,INDIRECT(\"a\" & (VLOOKUP(Rebalance!$D$32,$F$2:$G$48,2,FALSE)+ROW()-2)),\"\")","v":{"$error":"#N/A"}},{"$f":"IF(INDIRECT(\"c\" & (VLOOKUP(Rebalance!$D$33,$F$2:$G$48,2,FALSE)+ROW()-2))=Rebalance!$D$33,INDIRECT(\"a\" & (VLOOKUP(Rebalance!$D$33,$F$2:$G$48,2,FALSE)+ROW()-2)),\"\")","v":{"$error":"#N/A"}},{"$f":"IF(INDIRECT(\"c\" & (VLOOKUP(Rebalance!$D$34,$F$2:$G$48,2,FALSE)+ROW()-2))=Rebalance!$D$34,INDIRECT(\"a\" & (VLOOKUP(Rebalance!$D$34,$F$2:$G$48,2,FALSE)+ROW()-2)),\"\")","v":{"$error":"#N/A"}},{"$f":"IF(INDIRECT(\"c\" & (VLOOKUP(Rebalance!$D$35,$F$2:$G$48,2,FALSE)+ROW()-2))=Rebalance!$D$35,INDIRECT(\"a\" & (VLOOKUP(Rebalance!$D$35,$F$2:$G$48,2,FALSE)+ROW()-2)),\"\")","v":{"$error":"#N/A"}},{"$f":"IF(INDIRECT(\"c\" & (VLOOKUP(Rebalance!$D$36,$F$2:$G$48,2,FALSE)+ROW()-2))=Rebalance!$D$36,INDIRECT(\"a\" & (VLOOKUP(Rebalance!$D$36,$F$2:$G$48,2,FALSE)+ROW()-2)),\"\")","v":{"$error":"#N/A"}},{"$f":"IF(INDIRECT(\"c\" & (VLOOKUP(Rebalance!$D$37,$F$2:$G$48,2,FALSE)+ROW()-2))=Rebalance!$D$37,INDIRECT(\"a\" & (VLOOKUP(Rebalance!$D$37,$F$2:$G$48,2,FALSE)+ROW()-2)),\"\")","v":{"$error":"#N/A"}},{"$f":"IF(INDIRECT(\"c\" & (VLOOKUP(Rebalance!$D$38,$F$2:$G$48,2,FALSE)+ROW()-2))=Rebalance!$D$38,INDIRECT(\"a\" & (VLOOKUP(Rebalance!$D$38,$F$2:$G$48,2,FALSE)+ROW()-2)),\"\")","v":{"$error":"#N/A"}},{"$f":"IF(INDIRECT(\"c\" & (VLOOKUP(Rebalance!$D$39,$F$2:$G$48,2,FALSE)+ROW()-2))=Rebalance!$D$39,INDIRECT(\"a\" & (VLOOKUP(Rebalance!$D$39,$F$2:$G$48,2,FALSE)+ROW()-2)),\"\")","v":{"$error":"#N/A"}},{"$f":"IF(INDIRECT(\"c\" & (VLOOKUP(Rebalance!$D$40,$F$2:$G$48,2,FALSE)+ROW()-2))=Rebalance!$D$40,INDIRECT(\"a\" & (VLOOKUP(Rebalance!$D$40,$F$2:$G$48,2,FALSE)+ROW()-2)),\"\")","v":{"$error":"#N/A"}},{"$f":"IF(INDIRECT(\"c\" & (VLOOKUP(Rebalance!$D$52,$F$2:$G$48,2,FALSE)+ROW()-2))=Rebalance!$D$52,INDIRECT(\"a\" & (VLOOKUP(Rebalance!$D$52,$F$2:$G$48,2,FALSE)+ROW()-2)),\"\")","v":{"$error":"#N/A"}},{"$f":"IF(INDIRECT(\"c\" & (VLOOKUP(Rebalance!$D$53,$F$2:$G$48,2,FALSE)+ROW()-2))=Rebalance!$D$53,INDIRECT(\"a\" & (VLOOKUP(Rebalance!$D$53,$F$2:$G$48,2,FALSE)+ROW()-2)),\"\")","v":{"$error":"#N/A"}},{"$f":"IF(INDIRECT(\"c\" & (VLOOKUP(Rebalance!$D$54,$F$2:$G$48,2,FALSE)+ROW()-2))=Rebalance!$D$54,INDIRECT(\"a\" & (VLOOKUP(Rebalance!$D$54,$F$2:$G$48,2,FALSE)+ROW()-2)),\"\")","v":{"$error":"#N/A"}},{"$f":"IF(INDIRECT(\"c\" & (VLOOKUP(Rebalance!$D$55,$F$2:$G$48,2,FALSE)+ROW()-2))=Rebalance!$D$55,INDIRECT(\"a\" & (VLOOKUP(Rebalance!$D$55,$F$2:$G$48,2,FALSE)+ROW()-2)),\"\")","v":{"$error":"#N/A"}},{"$f":"IF(INDIRECT(\"c\" & (VLOOKUP(Rebalance!$D$56,$F$2:$G$48,2,FALSE)+ROW()-2))=Rebalance!$D$56,INDIRECT(\"a\" & (VLOOKUP(Rebalance!$D$56,$F$2:$G$48,2,FALSE)+ROW()-2)),\"\")","v":{"$error":"#N/A"}},{"$f":"IF(INDIRECT(\"c\" & (VLOOKUP(Rebalance!$D$57,$F$2:$G$48,2,FALSE)+ROW()-2))=Rebalance!$D$57,INDIRECT(\"a\" & (VLOOKUP(Rebalance!$D$57,$F$2:$G$48,2,FALSE)+ROW()-2)),\"\")","v":{"$error":"#N/A"}},{"$f":"IF(INDIRECT(\"c\" & (VLOOKUP(Rebalance!$D$58,$F$2:$G$48,2,FALSE)+ROW()-2))=Rebalance!$D$58,INDIRECT(\"a\" & (VLOOKUP(Rebalance!$D$58,$F$2:$G$48,2,FALSE)+ROW()-2)),\"\")","v":{"$error":"#N/A"}},{"$f":"IF(INDIRECT(\"c\" & (VLOOKUP(Rebalance!$D$59,$F$2:$G$48,2,FALSE)+ROW()-2))=Rebalance!$D$59,INDIRECT(\"a\" & (VLOOKUP(Rebalance!$D$59,$F$2:$G$48,2,FALSE)+ROW()-2)),\"\")","v":{"$error":"#N/A"}},{"$f":"IF(INDIRECT(\"c\" & (VLOOKUP(Rebalance!$D$60,$F$2:$G$48,2,FALSE)+ROW()-2))=Rebalance!$D$60,INDIRECT(\"a\" & (VLOOKUP(Rebalance!$D$60,$F$2:$G$48,2,FALSE)+ROW()-2)),\"\")","v":{"$error":"#N/A"}},{"$f":"IF(INDIRECT(\"c\" & (VLOOKUP(Rebalance!$D$61,$F$2:$G$48,2,FALSE)+ROW()-2))=Rebalance!$D$61,INDIRECT(\"a\" & (VLOOKUP(Rebalance!$D$61,$F$2:$G$48,2,FALSE)+ROW()-2)),\"\")","v":{"$error":"#N/A"}},{"$f":"IF(INDIRECT(\"c\" & (VLOOKUP(Rebalance!$D$62,$F$2:$G$48,2,FALSE)+ROW()-2))=Rebalance!$D$62,INDIRECT(\"a\" & (VLOOKUP(Rebalance!$D$62,$F$2:$G$48,2,FALSE)+ROW()-2)),\"\")","v":{"$error":"#N/A"}},{"$f":"IF(INDIRECT(\"c\" & (VLOOKUP(Rebalance!$D$63,$F$2:$G$48,2,FALSE)+ROW()-2))=Rebalance!$D$63,INDIRECT(\"a\" & (VLOOKUP(Rebalance!$D$63,$F$2:$G$48,2,FALSE)+ROW()-2)),\"\")","v":{"$error":"#N/A"}},{"$f":"IF(INDIRECT(\"c\" & (VLOOKUP(Rebalance!$D$64,$F$2:$G$48,2,FALSE)+ROW()-2))=Rebalance!$D$64,INDIRECT(\"a\" & (VLOOKUP(Rebalance!$D$64,$F$2:$G$48,2,FALSE)+ROW()-2)),\"\")","v":{"$error":"#N/A"}},{"$f":"IF(INDIRECT(\"c\" & (VLOOKUP(Rebalance!$D$65,$F$2:$G$48,2,FALSE)+ROW()-2))=Rebalance!$D$65,INDIRECT(\"a\" & (VLOOKUP(Rebalance!$D$65,$F$2:$G$48,2,FALSE)+ROW()-2)),\"\")","v":{"$error":"#N/A"}},{"$f":"IF(INDIRECT(\"c\" & (VLOOKUP(Rebalance!$D$66,$F$2:$G$48,2,FALSE)+ROW()-2))=Rebalance!$D$66,INDIRECT(\"a\" & (VLOOKUP(Rebalance!$D$66,$F$2:$G$48,2,FALSE)+ROW()-2)),\"\")","v":{"$error":"#N/A"}}]
[null,null,null,{"$f":"ROW()","v":686},null,null,{"$f":"VLOOKUP(F686,$C$2:$D$599,2,FALSE)","v":{"$error":"#N/A"}},{"$f":"IF(INDIRECT(\"c\" & (VLOOKUP(Rebalance!$D$26,$F$2:$G$48,2,FALSE)+ROW()-2))=Rebalance!$D$26,INDIRECT(\"a\" & (VLOOKUP(Rebalance!$D$26,$F$2:$G$48,2,FALSE)+ROW()-2)),\"\")","v":{"$error":"#N/A"}},{"$f":"IF(INDIRECT(\"c\" & (VLOOKUP(Rebalance!$D$27,$F$2:$G$48,2,FALSE)+ROW()-2))=Rebalance!$D$27,INDIRECT(\"a\" & (VLOOKUP(Rebalance!$D$27,$F$2:$G$48,2,FALSE)+ROW()-2)),\"\")","v":{"$error":"#N/A"}},{"$f":"IF(INDIRECT(\"c\" & (VLOOKUP(Rebalance!$D$28,$F$2:$G$48,2,FALSE)+ROW()-2))=Rebalance!$D$28,INDIRECT(\"a\" & (VLOOKUP(Rebalance!$D$28,$F$2:$G$48,2,FALSE)+ROW()-2)),\"\")","v":{"$error":"#N/A"}},{"$f":"IF(INDIRECT(\"c\" & (VLOOKUP(Rebalance!$D$29,$F$2:$G$48,2,FALSE)+ROW()-2))=Rebalance!$D$29,INDIRECT(\"a\" & (VLOOKUP(Rebalance!$D$29,$F$2:$G$48,2,FALSE)+ROW()-2)),\"\")","v":{"$error":"#N/A"}},{"$f":"IF(INDIRECT(\"c\" & (VLOOKUP(Rebalance!$D$30,$F$2:$G$48,2,FALSE)+ROW()-2))=Rebalance!$D$30,INDIRECT(\"a\" & (VLOOKUP(Rebalance!$D$30,$F$2:$G$48,2,FALSE)+ROW()-2)),\"\")","v":{"$error":"#N/A"}},{"$f":"IF(INDIRECT(\"c\" & (VLOOKUP(Rebalance!$D$31,$F$2:$G$48,2,FALSE)+ROW()-2))=Rebalance!$D$31,INDIRECT(\"a\" & (VLOOKUP(Rebalance!$D$31,$F$2:$G$48,2,FALSE)+ROW()-2)),\"\")","v":{"$error":"#N/A"}},{"$f":"IF(INDIRECT(\"c\" & (VLOOKUP(Rebalance!$D$32,$F$2:$G$48,2,FALSE)+ROW()-2))=Rebalance!$D$32,INDIRECT(\"a\" & (VLOOKUP(Rebalance!$D$32,$F$2:$G$48,2,FALSE)+ROW()-2)),\"\")","v":{"$error":"#N/A"}},{"$f":"IF(INDIRECT(\"c\" & (VLOOKUP(Rebalance!$D$33,$F$2:$G$48,2,FALSE)+ROW()-2))=Rebalance!$D$33,INDIRECT(\"a\" & (VLOOKUP(Rebalance!$D$33,$F$2:$G$48,2,FALSE)+ROW()-2)),\"\")","v":{"$error":"#N/A"}},{"$f":"IF(INDIRECT(\"c\" & (VLOOKUP(Rebalance!$D$34,$F$2:$G$48,2,FALSE)+ROW()-2))=Rebalance!$D$34,INDIRECT(\"a\" & (VLOOKUP(Rebalance!$D$34,$F$2:$G$48,2,FALSE)+ROW()-2)),\"\")","v":{"$error":"#N/A"}},{"$f":"IF(INDIRECT(\"c\" & (VLOOKUP(Rebalance!$D$35,$F$2:$G$48,2,FALSE)+ROW()-2))=Rebalance!$D$35,INDIRECT(\"a\" & (VLOOKUP(Rebalance!$D$35,$F$2:$G$48,2,FALSE)+ROW()-2)),\"\")","v":{"$error":"#N/A"}},{"$f":"IF(INDIRECT(\"c\" & (VLOOKUP(Rebalance!$D$36,$F$2:$G$48,2,FALSE)+ROW()-2))=Rebalance!$D$36,INDIRECT(\"a\" & (VLOOKUP(Rebalance!$D$36,$F$2:$G$48,2,FALSE)+ROW()-2)),\"\")","v":{"$error":"#N/A"}},{"$f":"IF(INDIRECT(\"c\" & (VLOOKUP(Rebalance!$D$37,$F$2:$G$48,2,FALSE)+ROW()-2))=Rebalance!$D$37,INDIRECT(\"a\" & (VLOOKUP(Rebalance!$D$37,$F$2:$G$48,2,FALSE)+ROW()-2)),\"\")","v":{"$error":"#N/A"}},{"$f":"IF(INDIRECT(\"c\" & (VLOOKUP(Rebalance!$D$38,$F$2:$G$48,2,FALSE)+ROW()-2))=Rebalance!$D$38,INDIRECT(\"a\" & (VLOOKUP(Rebalance!$D$38,$F$2:$G$48,2,FALSE)+ROW()-2)),\"\")","v":{"$error":"#N/A"}},{"$f":"IF(INDIRECT(\"c\" & (VLOOKUP(Rebalance!$D$39,$F$2:$G$48,2,FALSE)+ROW()-2))=Rebalance!$D$39,INDIRECT(\"a\" & (VLOOKUP(Rebalance!$D$39,$F$2:$G$48,2,FALSE)+ROW()-2)),\"\")","v":{"$error":"#N/A"}},{"$f":"IF(INDIRECT(\"c\" & (VLOOKUP(Rebalance!$D$40,$F$2:$G$48,2,FALSE)+ROW()-2))=Rebalance!$D$40,INDIRECT(\"a\" & (VLOOKUP(Rebalance!$D$40,$F$2:$G$48,2,FALSE)+ROW()-2)),\"\")","v":{"$error":"#N/A"}},{"$f":"IF(INDIRECT(\"c\" & (VLOOKUP(Rebalance!$D$52,$F$2:$G$48,2,FALSE)+ROW()-2))=Rebalance!$D$52,INDIRECT(\"a\" & (VLOOKUP(Rebalance!$D$52,$F$2:$G$48,2,FALSE)+ROW()-2)),\"\")","v":{"$error":"#N/A"}},{"$f":"IF(INDIRECT(\"c\" & (VLOOKUP(Rebalance!$D$53,$F$2:$G$48,2,FALSE)+ROW()-2))=Rebalance!$D$53,INDIRECT(\"a\" & (VLOOKUP(Rebalance!$D$53,$F$2:$G$48,2,FALSE)+ROW()-2)),\"\")","v":{"$error":"#N/A"}},{"$f":"IF(INDIRECT(\"c\" & (VLOOKUP(Rebalance!$D$54,$F$2:$G$48,2,FALSE)+ROW()-2))=Rebalance!$D$54,INDIRECT(\"a\" & (VLOOKUP(Rebalance!$D$54,$F$2:$G$48,2,FALSE)+ROW()-2)),\"\")","v":{"$error":"#N/A"}},{"$f":"IF(INDIRECT(\"c\" & (VLOOKUP(Rebalance!$D$55,$F$2:$G$48,2,FALSE)+ROW()-2))=Rebalance!$D$55,INDIRECT(\"a\" & (VLOOKUP(Rebalance!$D$55,$F$2:$G$48,2,FALSE)+ROW()-2)),\"\")","v":{"$error":"#N/A"}},{"$f":"IF(INDIRECT(\"c\" & (VLOOKUP(Rebalance!$D$56,$F$2:$G$48,2,FALSE)+ROW()-2))=Rebalance!$D$56,INDIRECT(\"a\" & (VLOOKUP(Rebalance!$D$56,$F$2:$G$48,2,FALSE)+ROW()-2)),\"\")","v":{"$error":"#N/A"}},{"$f":"IF(INDIRECT(\"c\" & (VLOOKUP(Rebalance!$D$57,$F$2:$G$48,2,FALSE)+ROW()-2))=Rebalance!$D$57,INDIRECT(\"a\" & (VLOOKUP(Rebalance!$D$57,$F$2:$G$48,2,FALSE)+ROW()-2)),\"\")","v":{"$error":"#N/A"}},{"$f":"IF(INDIRECT(\"c\" & (VLOOKUP(Rebalance!$D$58,$F$2:$G$48,2,FALSE)+ROW()-2))=Rebalance!$D$58,INDIRECT(\"a\" & (VLOOKUP(Rebalance!$D$58,$F$2:$G$48,2,FALSE)+ROW()-2)),\"\")","v":{"$error":"#N/A"}},{"$f":"IF(INDIRECT(\"c\" & (VLOOKUP(Rebalance!$D$59,$F$2:$G$48,2,FALSE)+ROW()-2))=Rebalance!$D$59,INDIRECT(\"a\" & (VLOOKUP(Rebalance!$D$59,$F$2:$G$48,2,FALSE)+ROW()-2)),\"\")","v":{"$error":"#N/A"}},{"$f":"IF(INDIRECT(\"c\" & (VLOOKUP(Rebalance!$D$60,$F$2:$G$48,2,FALSE)+ROW()-2))=Rebalance!$D$60,INDIRECT(\"a\" & (VLOOKUP(Rebalance!$D$60,$F$2:$G$48,2,FALSE)+ROW()-2)),\"\")","v":{"$error":"#N/A"}},{"$f":"IF(INDIRECT(\"c\" & (VLOOKUP(Rebalance!$D$61,$F$2:$G$48,2,FALSE)+ROW()-2))=Rebalance!$D$61,INDIRECT(\"a\" & (VLOOKUP(Rebalance!$D$61,$F$2:$G$48,2,FALSE)+ROW()-2)),\"\")","v":{"$error":"#N/A"}},{"$f":"IF(INDIRECT(\"c\" & (VLOOKUP(Rebalance!$D$62,$F$2:$G$48,2,FALSE)+ROW()-2))=Rebalance!$D$62,INDIRECT(\"a\" & (VLOOKUP(Rebalance!$D$62,$F$2:$G$48,2,FALSE)+ROW()-2)),\"\")","v":{"$error":"#N/A"}},{"$f":"IF(INDIRECT(\"c\" & (VLOOKUP(Rebalance!$D$63,$F$2:$G$48,2,FALSE)+ROW()-2))=Rebalance!$D$63,INDIRECT(\"a\" & (VLOOKUP(Rebalance!$D$63,$F$2:$G$48,2,FALSE)+ROW()-2)),\"\")","v":{"$error":"#N/A"}},{"$f":"IF(INDIRECT(\"c\" & (VLOOKUP(Rebalance!$D$64,$F$2:$G$48,2,FALSE)+ROW()-2))=Rebalance!$D$64,INDIRECT(\"a\" & (VLOOKUP(Rebalance!$D$64,$F$2:$G$48,2,FALSE)+ROW()-2)),\"\")","v":{"$error":"#N/A"}},{"$f":"IF(INDIRECT(\"c\" & (VLOOKUP(Rebalance!$D$65,$F$2:$G$48,2,FALSE)+ROW()-2))=Rebalance!$D$65,INDIRECT(\"a\" & (VLOOKUP(Rebalance!$D$65,$F$2:$G$48,2,FALSE)+ROW()-2)),\"\")","v":{"$error":"#N/A"}},{"$f":"IF(INDIRECT(\"c\" & (VLOOKUP(Rebalance!$D$66,$F$2:$G$48,2,FALSE)+ROW()-2))=Rebalance!$D$66,INDIRECT(\"a\" & (VLOOKUP(Rebalance!$D$66,$F$2:$G$48,2,FALSE)+ROW()-2)),\"\")","v":{"$error":"#N/A"}}]
[null,null,null,null,null,null,{"$f":"VLOOKUP(F687,$C$2:$D$599,2,FALSE)","v":{"$error":"#N/A"}}]

{"sheet":"Funds - S","index":14,"n_rows":637,"n_cols":37,"rows_kept":637,"cut":false,"hidden":false,"merged":[]}
["Fund List Complete","Retail JSE Code","INVESTMENT_MANAGER",null,"Portfolio Range","INVESTMENT_MANAGER","Start Row","Selected Funds1","Selected Funds2","Selected Funds3","Selected Funds4","Selected Funds5","Selected Funds6","Selected Funds7","Selected Funds8","Selected Funds9","Selected Funds10","Selected Funds11","Selected Funds12","Selected Funds13","Selected Funds14","Selected Funds15","Selected Funds16","Selected Funds17","Selected Funds18","Selected Funds19","Selected Funds20","Selected Funds21","Selected Funds22","Selected Funds23","Selected Funds24","Selected Funds25","Selected Funds26","Selected Funds27","Selected Funds28","Selected Funds29","Selected Funds30"]
["Noble PP STANLIB All Weather FoF A","NSWA1","STANLIB Collective Investments",{"$f":"ROW()","v":2},null,"STANLIB Collective Investments",{"$f":"VLOOKUP(F2,$C$2:$D$637,2,FALSE)","v":2},{"$f":"IF(INDIRECT(\"c\" & (VLOOKUP(Switch!$D$26,$F$2:$G$44,2,FALSE)+ROW()-2))=Switch!$D$26,INDIRECT(\"a\" & (VLOOKUP(Switch!$D$26,$F$2:$G$44,2,FALSE)+ROW()-2)),\"\")","v":{"$error":"#N/A"}},{"$f":"IF(INDIRECT(\"c\" & (VLOOKUP(Switch!$D$27,$F$2:$G$44,2,FALSE)+ROW()-2))=Switch!$D$27,INDIRECT(\"a\" & (VLOOKUP(Switch!$D$27,$F$2:$G$44,2,FALSE)+ROW()-2)),\"\")","v":{"$error":"#N/A"}},{"$f":"IF(INDIRECT(\"c\" & (VLOOKUP(Switch!$D$28,$F$2:$G$44,2,FALSE)+ROW()-2))=Switch!$D$28,INDIRECT(\"a\" & (VLOOKUP(Switch!$D$28,$F$2:$G$44,2,FALSE)+ROW()-2)),\"\")","v":{"$error":"#N/A"}},{"$f":"IF(INDIRECT(\"c\" & (VLOOKUP(Switch!$D$29,$F$2:$G$44,2,FALSE)+ROW()-2))=Switch!$D$29,INDIRECT(\"a\" & (VLOOKUP(Switch!$D$29,$F$2:$G$44,2,FALSE)+ROW()-2)),\"\")","v":{"$error":"#N/A"}},{"$f":"IF(INDIRECT(\"c\" & (VLOOKUP(Switch!$D$30,$F$2:$G$44,2,FALSE)+ROW()-2))=Switch!$D$30,INDIRECT(\"a\" & (VLOOKUP(Switch!$D$30,$F$2:$G$44,2,FALSE)+ROW()-2)),\"\")","v":{"$error":"#N/A"}},{"$f":"IF(INDIRECT(\"c\" & (VLOOKUP(Switch!$D$31,$F$2:$G$44,2,FALSE)+ROW()-2))=Switch!$D$31,INDIRECT(\"a\" & (VLOOKUP(Switch!$D$31,$F$2:$G$44,2,FALSE)+ROW()-2)),\"\")","v":{"$error":"#N/A"}},{"$f":"IF(INDIRECT(\"c\" & (VLOOKUP(Switch!$D$32,$F$2:$G$44,2,FALSE)+ROW()-2))=Switch!$D$32,INDIRECT(\"a\" & (VLOOKUP(Switch!$D$32,$F$2:$G$44,2,FALSE)+ROW()-2)),\"\")","v":{"$error":"#N/A"}},{"$f":"IF(INDIRECT(\"c\" & (VLOOKUP(Switch!$D$33,$F$2:$G$44,2,FALSE)+ROW()-2))=Switch!$D$33,INDIRECT(\"a\" & (VLOOKUP(Switch!$D$33,$F$2:$G$44,2,FALSE)+ROW()-2)),\"\")","v":{"$error":"#N/A"}},{"$f":"IF(INDIRECT(\"c\" & (VLOOKUP(Switch!$D$34,$F$2:$G$44,2,FALSE)+ROW()-2))=Switch!$D$34,INDIRECT(\"a\" & (VLOOKUP(Switch!$D$34,$F$2:$G$44,2,FALSE)+ROW()-2)),\"\")","v":{"$error":"#N/A"}},{"$f":"IF(INDIRECT(\"c\" & (VLOOKUP(Switch!$D$35,$F$2:$G$44,2,FALSE)+ROW()-2))=Switch!$D$35,INDIRECT(\"a\" & (VLOOKUP(Switch!$D$35,$F$2:$G$44,2,FALSE)+ROW()-2)),\"\")","v":{"$error":"#N/A"}},{"$f":"IF(INDIRECT(\"c\" & (VLOOKUP(Switch!$D$36,$F$2:$G$44,2,FALSE)+ROW()-2))=Switch!$D$36,INDIRECT(\"a\" & (VLOOKUP(Switch!$D$36,$F$2:$G$44,2,FALSE)+ROW()-2)),\"\")","v":{"$error":"#N/A"}},{"$f":"IF(INDIRECT(\"c\" & (VLOOKUP(Switch!$D$37,$F$2:$G$44,2,FALSE)+ROW()-2))=Switch!$D$37,INDIRECT(\"a\" & (VLOOKUP(Switch!$D$37,$F$2:$G$44,2,FALSE)+ROW()-2)),\"\")","v":{"$error":"#N/A"}},{"$f":"IF(INDIRECT(\"c\" & (VLOOKUP(Switch!$D$38,$F$2:$G$44,2,FALSE)+ROW()-2))=Switch!$D$38,INDIRECT(\"a\" & (VLOOKUP(Switch!$D$38,$F$2:$G$44,2,FALSE)+ROW()-2)),\"\")","v":{"$error":"#N/A"}},{"$f":"IF(INDIRECT(\"c\" & (VLOOKUP(Switch!$D$39,$F$2:$G$44,2,FALSE)+ROW()-2))=Switch!$D$39,INDIRECT(\"a\" & (VLOOKUP(Switch!$D$39,$F$2:$G$44,2,FALSE)+ROW()-2)),\"\")","v":{"$error":"#N/A"}},{"$f":"IF(INDIRECT(\"c\" & (VLOOKUP(Switch!$D$40,$F$2:$G$44,2,FALSE)+ROW()-2))=Switch!$D$40,INDIRECT(\"a\" & (VLOOKUP(Switch!$D$40,$F$2:$G$44,2,FALSE)+ROW()-2)),\"\")","v":{"$error":"#N/A"}},{"$f":"IF(INDIRECT(\"c\" & (VLOOKUP(Switch!$D$52,$F$2:$G$44,2,FALSE)+ROW()-2))=Switch!$D$52,INDIRECT(\"a\" & (VLOOKUP(Switch!$D$52,$F$2:$G$44,2,FALSE)+ROW()-2)),\"\")","v":{"$error":"#N/A"}},{"$f":"IF(INDIRECT(\"c\" & (VLOOKUP(Switch!$D$53,$F$2:$G$44,2,FALSE)+ROW()-2))=Switch!$D$53,INDIRECT(\"a\" & (VLOOKUP(Switch!$D$53,$F$2:$G$44,2,FALSE)+ROW()-2)),\"\")","v":{"$error":"#N/A"}},{"$f":"IF(INDIRECT(\"c\" & (VLOOKUP(Switch!$D$54,$F$2:$G$44,2,FALSE)+ROW()-2))=Switch!$D$54,INDIRECT(\"a\" & (VLOOKUP(Switch!$D$54,$F$2:$G$44,2,FALSE)+ROW()-2)),\"\")","v":{"$error":"#N/A"}},{"$f":"IF(INDIRECT(\"c\" & (VLOOKUP(Switch!$D$55,$F$2:$G$44,2,FALSE)+ROW()-2))=Switch!$D$55,INDIRECT(\"a\" & (VLOOKUP(Switch!$D$55,$F$2:$G$44,2,FALSE)+ROW()-2)),\"\")","v":{"$error":"#N/A"}},{"$f":"IF(INDIRECT(\"c\" & (VLOOKUP(Switch!$D$56,$F$2:$G$44,2,FALSE)+ROW()-2))=Switch!$D$56,INDIRECT(\"a\" & (VLOOKUP(Switch!$D$56,$F$2:$G$44,2,FALSE)+ROW()-2)),\"\")","v":{"$error":"#N/A"}},{"$f":"IF(INDIRECT(\"c\" & (VLOOKUP(Switch!$D$57,$F$2:$G$44,2,FALSE)+ROW()-2))=Switch!$D$57,INDIRECT(\"a\" & (VLOOKUP(Switch!$D$57,$F$2:$G$44,2,FALSE)+ROW()-2)),\"\")","v":{"$error":"#N/A"}},{"$f":"IF(INDIRECT(\"c\" & (VLOOKUP(Switch!$D$58,$F$2:$G$44,2,FALSE)+ROW()-2))=Switch!$D$58,INDIRECT(\"a\" & (VLOOKUP(Switch!$D$58,$F$2:$G$44,2,FALSE)+ROW()-2)),\"\")","v":{"$error":"#N/A"}},{"$f":"IF(INDIRECT(\"c\" & (VLOOKUP(Switch!$D$59,$F$2:$G$44,2,FALSE)+ROW()-2))=Switch!$D$59,INDIRECT(\"a\" & (VLOOKUP(Switch!$D$59,$F$2:$G$44,2,FALSE)+ROW()-2)),\"\")","v":{"$error":"#N/A"}},{"$f":"IF(INDIRECT(\"c\" & (VLOOKUP(Switch!$D$60,$F$2:$G$44,2,FALSE)+ROW()-2))=Switch!$D$60,INDIRECT(\"a\" & (VLOOKUP(Switch!$D$60,$F$2:$G$44,2,FALSE)+ROW()-2)),\"\")","v":{"$error":"#N/A"}},{"$f":"IF(INDIRECT(\"c\" & (VLOOKUP(Switch!$D$61,$F$2:$G$44,2,FALSE)+ROW()-2))=Switch!$D$61,INDIRECT(\"a\" & (VLOOKUP(Switch!$D$61,$F$2:$G$44,2,FALSE)+ROW()-2)),\"\")","v":{"$error":"#N/A"}},{"$f":"IF(INDIRECT(\"c\" & (VLOOKUP(Switch!$D$62,$F$2:$G$44,2,FALSE)+ROW()-2))=Switch!$D$62,INDIRECT(\"a\" & (VLOOKUP(Switch!$D$62,$F$2:$G$44,2,FALSE)+ROW()-2)),\"\")","v":{"$error":"#N/A"}},{"$f":"IF(INDIRECT(\"c\" & (VLOOKUP(Switch!$D$63,$F$2:$G$44,2,FALSE)+ROW()-2))=Switch!$D$63,INDIRECT(\"a\" & (VLOOKUP(Switch!$D$63,$F$2:$G$44,2,FALSE)+ROW()-2)),\"\")","v":{"$error":"#N/A"}},{"$f":"IF(INDIRECT(\"c\" & (VLOOKUP(Switch!$D$64,$F$2:$G$44,2,FALSE)+ROW()-2))=Switch!$D$64,INDIRECT(\"a\" & (VLOOKUP(Switch!$D$64,$F$2:$G$44,2,FALSE)+ROW()-2)),\"\")","v":{"$error":"#N/A"}},{"$f":"IF(INDIRECT(\"c\" & (VLOOKUP(Switch!$D$65,$F$2:$G$44,2,FALSE)+ROW()-2))=Switch!$D$65,INDIRECT(\"a\" & (VLOOKUP(Switch!$D$65,$F$2:$G$44,2,FALSE)+ROW()-2)),\"\")","v":{"$error":"#N/A"}},{"$f":"IF(INDIRECT(\"c\" & (VLOOKUP(Switch!$D$66,$F$2:$G$44,2,FALSE)+ROW()-2))=Switch!$D$66,INDIRECT(\"a\" & (VLOOKUP(Switch!$D$66,$F$2:$G$44,2,FALSE)+ROW()-2)),\"\")","v":{"$error":"#N/A"}}]
["Noble PP STANLIB All Weather FoF A1","NSWA1","STANLIB Collective Investments",{"$f":"ROW()","v":3},null,"ABSA Fund Managers",{"$f":"VLOOKUP(F3,$C$2:$D$637,2,FALSE)","v":81},{"$f":"IF(INDIRECT(\"c\" & (VLOOKUP(Switch!$D$26,$F$2:$G$44,2,FALSE)+ROW()-2))=Switch!$D$26,INDIRECT(\"a\" & (VLOOKUP(Switch!$D$26,$F$2:$G$44,2,FALSE)+ROW()-2)),\"\")","v":{"$error":"#N/A"}},{"$f":"IF(INDIRECT(\"c\" & (VLOOKUP(Switch!$D$27,$F$2:$G$44,2,FALSE)+ROW()-2))=Switch!$D$27,INDIRECT(\"a\" & (VLOOKUP(Switch!$D$27,$F$2:$G$44,2,FALSE)+ROW()-2)),\"\")","v":{"$error":"#N/A"}},{"$f":"IF(INDIRECT(\"c\" & (VLOOKUP(Switch!$D$28,$F$2:$G$44,2,FALSE)+ROW()-2))=Switch!$D$28,INDIRECT(\"a\" & (VLOOKUP(Switch!$D$28,$F$2:$G$44,2,FALSE)+ROW()-2)),\"\")","v":{"$error":"#N/A"}},{"$f":"IF(INDIRECT(\"c\" & (VLOOKUP(Switch!$D$29,$F$2:$G$44,2,FALSE)+ROW()-2))=Switch!$D$29,INDIRECT(\"a\" & (VLOOKUP(Switch!$D$29,$F$2:$G$44,2,FALSE)+ROW()-2)),\"\")","v":{"$error":"#N/A"}},{"$f":"IF(INDIRECT(\"c\" & (VLOOKUP(Switch!$D$30,$F$2:$G$44,2,FALSE)+ROW()-2))=Switch!$D$30,INDIRECT(\"a\" & (VLOOKUP(Switch!$D$30,$F$2:$G$44,2,FALSE)+ROW()-2)),\"\")","v":{"$error":"#N/A"}},{"$f":"IF(INDIRECT(\"c\" & (VLOOKUP(Switch!$D$31,$F$2:$G$44,2,FALSE)+ROW()-2))=Switch!$D$31,INDIRECT(\"a\" & (VLOOKUP(Switch!$D$31,$F$2:$G$44,2,FALSE)+ROW()-2)),\"\")","v":{"$error":"#N/A"}},{"$f":"IF(INDIRECT(\"c\" & (VLOOKUP(Switch!$D$32,$F$2:$G$44,2,FALSE)+ROW()-2))=Switch!$D$32,INDIRECT(\"a\" & (VLOOKUP(Switch!$D$32,$F$2:$G$44,2,FALSE)+ROW()-2)),\"\")","v":{"$error":"#N/A"}},{"$f":"IF(INDIRECT(\"c\" & (VLOOKUP(Switch!$D$33,$F$2:$G$44,2,FALSE)+ROW()-2))=Switch!$D$33,INDIRECT(\"a\" & (VLOOKUP(Switch!$D$33,$F$2:$G$44,2,FALSE)+ROW()-2)),\"\")","v":{"$error":"#N/A"}},{"$f":"IF(INDIRECT(\"c\" & (VLOOKUP(Switch!$D$34,$F$2:$G$44,2,FALSE)+ROW()-2))=Switch!$D$34,INDIRECT(\"a\" & (VLOOKUP(Switch!$D$34,$F$2:$G$44,2,FALSE)+ROW()-2)),\"\")","v":{"$error":"#N/A"}},{"$f":"IF(INDIRECT(\"c\" & (VLOOKUP(Switch!$D$35,$F$2:$G$44,2,FALSE)+ROW()-2))=Switch!$D$35,INDIRECT(\"a\" & (VLOOKUP(Switch!$D$35,$F$2:$G$44,2,FALSE)+ROW()-2)),\"\")","v":{"$error":"#N/A"}},{"$f":"IF(INDIRECT(\"c\" & (VLOOKUP(Switch!$D$36,$F$2:$G$44,2,FALSE)+ROW()-2))=Switch!$D$36,INDIRECT(\"a\" & (VLOOKUP(Switch!$D$36,$F$2:$G$44,2,FALSE)+ROW()-2)),\"\")","v":{"$error":"#N/A"}},{"$f":"IF(INDIRECT(\"c\" & (VLOOKUP(Switch!$D$37,$F$2:$G$44,2,FALSE)+ROW()-2))=Switch!$D$37,INDIRECT(\"a\" & (VLOOKUP(Switch!$D$37,$F$2:$G$44,2,FALSE)+ROW()-2)),\"\")","v":{"$error":"#N/A"}},{"$f":"IF(INDIRECT(\"c\" & (VLOOKUP(Switch!$D$38,$F$2:$G$44,2,FALSE)+ROW()-2))=Switch!$D$38,INDIRECT(\"a\" & (VLOOKUP(Switch!$D$38,$F$2:$G$44,2,FALSE)+ROW()-2)),\"\")","v":{"$error":"#N/A"}},{"$f":"IF(INDIRECT(\"c\" & (VLOOKUP(Switch!$D$39,$F$2:$G$44,2,FALSE)+ROW()-2))=Switch!$D$39,INDIRECT(\"a\" & (VLOOKUP(Switch!$D$39,$F$2:$G$44,2,FALSE)+ROW()-2)),\"\")","v":{"$error":"#N/A"}},{"$f":"IF(INDIRECT(\"c\" & (VLOOKUP(Switch!$D$40,$F$2:$G$44,2,FALSE)+ROW()-2))=Switch!$D$40,INDIRECT(\"a\" & (VLOOKUP(Switch!$D$40,$F$2:$G$44,2,FALSE)+ROW()-2)),\"\")","v":{"$error":"#N/A"}},{"$f":"IF(INDIRECT(\"c\" & (VLOOKUP(Switch!$D$52,$F$2:$G$44,2,FALSE)+ROW()-2))=Switch!$D$52,INDIRECT(\"a\" & (VLOOKUP(Switch!$D$52,$F$2:$G$44,2,FALSE)+ROW()-2)),\"\")","v":{"$error":"#N/A"}},{"$f":"IF(INDIRECT(\"c\" & (VLOOKUP(Switch!$D$53,$F$2:$G$44,2,FALSE)+ROW()-2))=Switch!$D$53,INDIRECT(\"a\" & (VLOOKUP(Switch!$D$53,$F$2:$G$44,2,FALSE)+ROW()-2)),\"\")","v":{"$error":"#N/A"}},{"$f":"IF(INDIRECT(\"c\" & (VLOOKUP(Switch!$D$54,$F$2:$G$44,2,FALSE)+ROW()-2))=Switch!$D$54,INDIRECT(\"a\" & (VLOOKUP(Switch!$D$54,$F$2:$G$44,2,FALSE)+ROW()-2)),\"\")","v":{"$error":"#N/A"}},{"$f":"IF(INDIRECT(\"c\" & (VLOOKUP(Switch!$D$55,$F$2:$G$44,2,FALSE)+ROW()-2))=Switch!$D$55,INDIRECT(\"a\" & (VLOOKUP(Switch!$D$55,$F$2:$G$44,2,FALSE)+ROW()-2)),\"\")","v":{"$error":"#N/A"}},{"$f":"IF(INDIRECT(\"c\" & (VLOOKUP(Switch!$D$56,$F$2:$G$44,2,FALSE)+ROW()-2))=Switch!$D$56,INDIRECT(\"a\" & (VLOOKUP(Switch!$D$56,$F$2:$G$44,2,FALSE)+ROW()-2)),\"\")","v":{"$error":"#N/A"}},{"$f":"IF(INDIRECT(\"c\" & (VLOOKUP(Switch!$D$57,$F$2:$G$44,2,FALSE)+ROW()-2))=Switch!$D$57,INDIRECT(\"a\" & (VLOOKUP(Switch!$D$57,$F$2:$G$44,2,FALSE)+ROW()-2)),\"\")","v":{"$error":"#N/A"}},{"$f":"IF(INDIRECT(\"c\" & (VLOOKUP(Switch!$D$58,$F$2:$G$44,2,FALSE)+ROW()-2))=Switch!$D$58,INDIRECT(\"a\" & (VLOOKUP(Switch!$D$58,$F$2:$G$44,2,FALSE)+ROW()-2)),\"\")","v":{"$error":"#N/A"}},{"$f":"IF(INDIRECT(\"c\" & (VLOOKUP(Switch!$D$59,$F$2:$G$44,2,FALSE)+ROW()-2))=Switch!$D$59,INDIRECT(\"a\" & (VLOOKUP(Switch!$D$59,$F$2:$G$44,2,FALSE)+ROW()-2)),\"\")","v":{"$error":"#N/A"}},{"$f":"IF(INDIRECT(\"c\" & (VLOOKUP(Switch!$D$60,$F$2:$G$44,2,FALSE)+ROW()-2))=Switch!$D$60,INDIRECT(\"a\" & (VLOOKUP(Switch!$D$60,$F$2:$G$44,2,FALSE)+ROW()-2)),\"\")","v":{"$error":"#N/A"}},{"$f":"IF(INDIRECT(\"c\" & (VLOOKUP(Switch!$D$61,$F$2:$G$44,2,FALSE)+ROW()-2))=Switch!$D$61,INDIRECT(\"a\" & (VLOOKUP(Switch!$D$61,$F$2:$G$44,2,FALSE)+ROW()-2)),\"\")","v":{"$error":"#N/A"}},{"$f":"IF(INDIRECT(\"c\" & (VLOOKUP(Switch!$D$62,$F$2:$G$44,2,FALSE)+ROW()-2))=Switch!$D$62,INDIRECT(\"a\" & (VLOOKUP(Switch!$D$62,$F$2:$G$44,2,FALSE)+ROW()-2)),\"\")","v":{"$error":"#N/A"}},{"$f":"IF(INDIRECT(\"c\" & (VLOOKUP(Switch!$D$63,$F$2:$G$44,2,FALSE)+ROW()-2))=Switch!$D$63,INDIRECT(\"a\" & (VLOOKUP(Switch!$D$63,$F$2:$G$44,2,FALSE)+ROW()-2)),\"\")","v":{"$error":"#N/A"}},{"$f":"IF(INDIRECT(\"c\" & (VLOOKUP(Switch!$D$64,$F$2:$G$44,2,FALSE)+ROW()-2))=Switch!$D$64,INDIRECT(\"a\" & (VLOOKUP(Switch!$D$64,$F$2:$G$44,2,FALSE)+ROW()-2)),\"\")","v":{"$error":"#N/A"}},{"$f":"IF(INDIRECT(\"c\" & (VLOOKUP(Switch!$D$65,$F$2:$G$44,2,FALSE)+ROW()-2))=Switch!$D$65,INDIRECT(\"a\" & (VLOOKUP(Switch!$D$65,$F$2:$G$44,2,FALSE)+ROW()-2)),\"\")","v":{"$error":"#N/A"}},{"$f":"IF(INDIRECT(\"c\" & (VLOOKUP(Switch!$D$66,$F$2:$G$44,2,FALSE)+ROW()-2))=Switch!$D$66,INDIRECT(\"a\" & (VLOOKUP(Switch!$D$66,$F$2:$G$44,2,FALSE)+ROW()-2)),\"\")","v":{"$error":"#N/A"}}]
["Noble PP STANLIB Balanced FoF A1","NPBA1","STANLIB Collective Investments",{"$f":"ROW()","v":4},null,"Allan Gray Unit Trust Management Limited",{"$f":"VLOOKUP(F4,$C$2:$D$637,2,FALSE)","v":87},{"$f":"IF(INDIRECT(\"c\" & (VLOOKUP(Switch!$D$26,$F$2:$G$44,2,FALSE)+ROW()-2))=Switch!$D$26,INDIRECT(\"a\" & (VLOOKUP(Switch!$D$26,$F$2:$G$44,2,FALSE)+ROW()-2)),\"\")","v":{"$error":"#N/A"}},{"$f":"IF(INDIRECT(\"c\" & (VLOOKUP(Switch!$D$27,$F$2:$G$44,2,FALSE)+ROW()-2))=Switch!$D$27,INDIRECT(\"a\" & (VLOOKUP(Switch!$D$27,$F$2:$G$44,2,FALSE)+ROW()-2)),\"\")","v":{"$error":"#N/A"}},{"$f":"IF(INDIRECT(\"c\" & (VLOOKUP(Switch!$D$28,$F$2:$G$44,2,FALSE)+ROW()-2))=Switch!$D$28,INDIRECT(\"a\" & (VLOOKUP(Switch!$D$28,$F$2:$G$44,2,FALSE)+ROW()-2)),\"\")","v":{"$error":"#N/A"}},{"$f":"IF(INDIRECT(\"c\" & (VLOOKUP(Switch!$D$29,$F$2:$G$44,2,FALSE)+ROW()-2))=Switch!$D$29,INDIRECT(\"a\" & (VLOOKUP(Switch!$D$29,$F$2:$G$44,2,FALSE)+ROW()-2)),\"\")","v":{"$error":"#N/A"}},{"$f":"IF(INDIRECT(\"c\" & (VLOOKUP(Switch!$D$30,$F$2:$G$44,2,FALSE)+ROW()-2))=Switch!$D$30,INDIRECT(\"a\" & (VLOOKUP(Switch!$D$30,$F$2:$G$44,2,FALSE)+ROW()-2)),\"\")","v":{"$error":"#N/A"}},{"$f":"IF(INDIRECT(\"c\" & (VLOOKUP(Switch!$D$31,$F$2:$G$44,2,FALSE)+ROW()-2))=Switch!$D$31,INDIRECT(\"a\" & (VLOOKUP(Switch!$D$31,$F$2:$G$44,2,FALSE)+ROW()-2)),\"\")","v":{"$error":"#N/A"}},{"$f":"IF(INDIRECT(\"c\" & (VLOOKUP(Switch!$D$32,$F$2:$G$44,2,FALSE)+ROW()-2))=Switch!$D$32,INDIRECT(\"a\" & (VLOOKUP(Switch!$D$32,$F$2:$G$44,2,FALSE)+ROW()-2)),\"\")","v":{"$error":"#N/A"}},{"$f":"IF(INDIRECT(\"c\" & (VLOOKUP(Switch!$D$33,$F$2:$G$44,2,FALSE)+ROW()-2))=Switch!$D$33,INDIRECT(\"a\" & (VLOOKUP(Switch!$D$33,$F$2:$G$44,2,FALSE)+ROW()-2)),\"\")","v":{"$error":"#N/A"}},{"$f":"IF(INDIRECT(\"c\" & (VLOOKUP(Switch!$D$34,$F$2:$G$44,2,FALSE)+ROW()-2))=Switch!$D$34,INDIRECT(\"a\" & (VLOOKUP(Switch!$D$34,$F$2:$G$44,2,FALSE)+ROW()-2)),\"\")","v":{"$error":"#N/A"}},{"$f":"IF(INDIRECT(\"c\" & (VLOOKUP(Switch!$D$35,$F$2:$G$44,2,FALSE)+ROW()-2))=Switch!$D$35,INDIRECT(\"a\" & (VLOOKUP(Switch!$D$35,$F$2:$G$44,2,FALSE)+ROW()-2)),\"\")","v":{"$error":"#N/A"}},{"$f":"IF(INDIRECT(\"c\" & (VLOOKUP(Switch!$D$36,$F$2:$G$44,2,FALSE)+ROW()-2))=Switch!$D$36,INDIRECT(\"a\" & (VLOOKUP(Switch!$D$36,$F$2:$G$44,2,FALSE)+ROW()-2)),\"\")","v":{"$error":"#N/A"}},{"$f":"IF(INDIRECT(\"c\" & (VLOOKUP(Switch!$D$37,$F$2:$G$44,2,FALSE)+ROW()-2))=Switch!$D$37,INDIRECT(\"a\" & (VLOOKUP(Switch!$D$37,$F$2:$G$44,2,FALSE)+ROW()-2)),\"\")","v":{"$error":"#N/A"}},{"$f":"IF(INDIRECT(\"c\" & (VLOOKUP(Switch!$D$38,$F$2:$G$44,2,FALSE)+ROW()-2))=Switch!$D$38,INDIRECT(\"a\" & (VLOOKUP(Switch!$D$38,$F$2:$G$44,2,FALSE)+ROW()-2)),\"\")","v":{"$error":"#N/A"}},{"$f":"IF(INDIRECT(\"c\" & (VLOOKUP(Switch!$D$39,$F$2:$G$44,2,FALSE)+ROW()-2))=Switch!$D$39,INDIRECT(\"a\" & (VLOOKUP(Switch!$D$39,$F$2:$G$44,2,FALSE)+ROW()-2)),\"\")","v":{"$error":"#N/A"}},{"$f":"IF(INDIRECT(\"c\" & (VLOOKUP(Switch!$D$40,$F$2:$G$44,2,FALSE)+ROW()-2))=Switch!$D$40,INDIRECT(\"a\" & (VLOOKUP(Switch!$D$40,$F$2:$G$44,2,FALSE)+ROW()-2)),\"\")","v":{"$error":"#N/A"}},{"$f":"IF(INDIRECT(\"c\" & (VLOOKUP(Switch!$D$52,$F$2:$G$44,2,FALSE)+ROW()-2))=Switch!$D$52,INDIRECT(\"a\" & (VLOOKUP(Switch!$D$52,$F$2:$G$44,2,FALSE)+ROW()-2)),\"\")","v":{"$error":"#N/A"}},{"$f":"IF(INDIRECT(\"c\" & (VLOOKUP(Switch!$D$53,$F$2:$G$44,2,FALSE)+ROW()-2))=Switch!$D$53,INDIRECT(\"a\" & (VLOOKUP(Switch!$D$53,$F$2:$G$44,2,FALSE)+ROW()-2)),\"\")","v":{"$error":"#N/A"}},{"$f":"IF(INDIRECT(\"c\" & (VLOOKUP(Switch!$D$54,$F$2:$G$44,2,FALSE)+ROW()-2))=Switch!$D$54,INDIRECT(\"a\" & (VLOOKUP(Switch!$D$54,$F$2:$G$44,2,FALSE)+ROW()-2)),\"\")","v":{"$error":"#N/A"}},{"$f":"IF(INDIRECT(\"c\" & (VLOOKUP(Switch!$D$55,$F$2:$G$44,2,FALSE)+ROW()-2))=Switch!$D$55,INDIRECT(\"a\" & (VLOOKUP(Switch!$D$55,$F$2:$G$44,2,FALSE)+ROW()-2)),\"\")","v":{"$error":"#N/A"}},{"$f":"IF(INDIRECT(\"c\" & (VLOOKUP(Switch!$D$56,$F$2:$G$44,2,FALSE)+ROW()-2))=Switch!$D$56,INDIRECT(\"a\" & (VLOOKUP(Switch!$D$56,$F$2:$G$44,2,FALSE)+ROW()-2)),\"\")","v":{"$error":"#N/A"}},{"$f":"IF(INDIRECT(\"c\" & (VLOOKUP(Switch!$D$57,$F$2:$G$44,2,FALSE)+ROW()-2))=Switch!$D$57,INDIRECT(\"a\" & (VLOOKUP(Switch!$D$57,$F$2:$G$44,2,FALSE)+ROW()-2)),\"\")","v":{"$error":"#N/A"}},{"$f":"IF(INDIRECT(\"c\" & (VLOOKUP(Switch!$D$58,$F$2:$G$44,2,FALSE)+ROW()-2))=Switch!$D$58,INDIRECT(\"a\" & (VLOOKUP(Switch!$D$58,$F$2:$G$44,2,FALSE)+ROW()-2)),\"\")","v":{"$error":"#N/A"}},{"$f":"IF(INDIRECT(\"c\" & (VLOOKUP(Switch!$D$59,$F$2:$G$44,2,FALSE)+ROW()-2))=Switch!$D$59,INDIRECT(\"a\" & (VLOOKUP(Switch!$D$59,$F$2:$G$44,2,FALSE)+ROW()-2)),\"\")","v":{"$error":"#N/A"}},{"$f":"IF(INDIRECT(\"c\" & (VLOOKUP(Switch!$D$60,$F$2:$G$44,2,FALSE)+ROW()-2))=Switch!$D$60,INDIRECT(\"a\" & (VLOOKUP(Switch!$D$60,$F$2:$G$44,2,FALSE)+ROW()-2)),\"\")","v":{"$error":"#N/A"}},{"$f":"IF(INDIRECT(\"c\" & (VLOOKUP(Switch!$D$61,$F$2:$G$44,2,FALSE)+ROW()-2))=Switch!$D$61,INDIRECT(\"a\" & (VLOOKUP(Switch!$D$61,$F$2:$G$44,2,FALSE)+ROW()-2)),\"\")","v":{"$error":"#N/A"}},{"$f":"IF(INDIRECT(\"c\" & (VLOOKUP(Switch!$D$62,$F$2:$G$44,2,FALSE)+ROW()-2))=Switch!$D$62,INDIRECT(\"a\" & (VLOOKUP(Switch!$D$62,$F$2:$G$44,2,FALSE)+ROW()-2)),\"\")","v":{"$error":"#N/A"}},{"$f":"IF(INDIRECT(\"c\" & (VLOOKUP(Switch!$D$63,$F$2:$G$44,2,FALSE)+ROW()-2))=Switch!$D$63,INDIRECT(\"a\" & (VLOOKUP(Switch!$D$63,$F$2:$G$44,2,FALSE)+ROW()-2)),\"\")","v":{"$error":"#N/A"}},{"$f":"IF(INDIRECT(\"c\" & (VLOOKUP(Switch!$D$64,$F$2:$G$44,2,FALSE)+ROW()-2))=Switch!$D$64,INDIRECT(\"a\" & (VLOOKUP(Switch!$D$64,$F$2:$G$44,2,FALSE)+ROW()-2)),\"\")","v":{"$error":"#N/A"}},{"$f":"IF(INDIRECT(\"c\" & (VLOOKUP(Switch!$D$65,$F$2:$G$44,2,FALSE)+ROW()-2))=Switch!$D$65,INDIRECT(\"a\" & (VLOOKUP(Switch!$D$65,$F$2:$G$44,2,FALSE)+ROW()-2)),\"\")","v":{"$error":"#N/A"}},{"$f":"IF(INDIRECT(\"c\" & (VLOOKUP(Switch!$D$66,$F$2:$G$44,2,FALSE)+ROW()-2))=Switch!$D$66,INDIRECT(\"a\" & (VLOOKUP(Switch!$D$66,$F$2:$G$44,2,FALSE)+ROW()-2)),\"\")","v":{"$error":"#N/A"}}]
["Noble PP STANLIB Flexible Fund A1","NSFA1","STANLIB Collective Investments",{"$f":"ROW()","v":5},null,"Ashburton Management Company (RF) PTY LTD",{"$f":"VLOOKUP(F5,$C$2:$D$637,2,FALSE)","v":94},{"$f":"IF(INDIRECT(\"c\" & (VLOOKUP(Switch!$D$26,$F$2:$G$44,2,FALSE)+ROW()-2))=Switch!$D$26,INDIRECT(\"a\" & (VLOOKUP(Switch!$D$26,$F$2:$G$44,2,FALSE)+ROW()-2)),\"\")","v":{"$error":"#N/A"}},{"$f":"IF(INDIRECT(\"c\" & (VLOOKUP(Switch!$D$27,$F$2:$G$44,2,FALSE)+ROW()-2))=Switch!$D$27,INDIRECT(\"a\" & (VLOOKUP(Switch!$D$27,$F$2:$G$44,2,FALSE)+ROW()-2)),\"\")","v":{"$error":"#N/A"}},{"$f":"IF(INDIRECT(\"c\" & (VLOOKUP(Switch!$D$28,$F$2:$G$44,2,FALSE)+ROW()-2))=Switch!$D$28,INDIRECT(\"a\" & (VLOOKUP(Switch!$D$28,$F$2:$G$44,2,FALSE)+ROW()-2)),\"\")","v":{"$error":"#N/A"}},{"$f":"IF(INDIRECT(\"c\" & (VLOOKUP(Switch!$D$29,$F$2:$G$44,2,FALSE)+ROW()-2))=Switch!$D$29,INDIRECT(\"a\" & (VLOOKUP(Switch!$D$29,$F$2:$G$44,2,FALSE)+ROW()-2)),\"\")","v":{"$error":"#N/A"}},{"$f":"IF(INDIRECT(\"c\" & (VLOOKUP(Switch!$D$30,$F$2:$G$44,2,FALSE)+ROW()-2))=Switch!$D$30,INDIRECT(\"a\" & (VLOOKUP(Switch!$D$30,$F$2:$G$44,2,FALSE)+ROW()-2)),\"\")","v":{"$error":"#N/A"}},{"$f":"IF(INDIRECT(\"c\" & (VLOOKUP(Switch!$D$31,$F$2:$G$44,2,FALSE)+ROW()-2))=Switch!$D$31,INDIRECT(\"a\" & (VLOOKUP(Switch!$D$31,$F$2:$G$44,2,FALSE)+ROW()-2)),\"\")","v":{"$error":"#N/A"}},{"$f":"IF(INDIRECT(\"c\" & (VLOOKUP(Switch!$D$32,$F$2:$G$44,2,FALSE)+ROW()-2))=Switch!$D$32,INDIRECT(\"a\" & (VLOOKUP(Switch!$D$32,$F$2:$G$44,2,FALSE)+ROW()-2)),\"\")","v":{"$error":"#N/A"}},{"$f":"IF(INDIRECT(\"c\" & (VLOOKUP(Switch!$D$33,$F$2:$G$44,2,FALSE)+ROW()-2))=Switch!$D$33,INDIRECT(\"a\" & (VLOOKUP(Switch!$D$33,$F$2:$G$44,2,FALSE)+ROW()-2)),\"\")","v":{"$error":"#N/A"}},{"$f":"IF(INDIRECT(\"c\" & (VLOOKUP(Switch!$D$34,$F$2:$G$44,2,FALSE)+ROW()-2))=Switch!$D$34,INDIRECT(\"a\" & (VLOOKUP(Switch!$D$34,$F$2:$G$44,2,FALSE)+ROW()-2)),\"\")","v":{"$error":"#N/A"}},{"$f":"IF(INDIRECT(\"c\" & (VLOOKUP(Switch!$D$35,$F$2:$G$44,2,FALSE)+ROW()-2))=Switch!$D$35,INDIRECT(\"a\" & (VLOOKUP(Switch!$D$35,$F$2:$G$44,2,FALSE)+ROW()-2)),\"\")","v":{"$error":"#N/A"}},{"$f":"IF(INDIRECT(\"c\" & (VLOOKUP(Switch!$D$36,$F$2:$G$44,2,FALSE)+ROW()-2))=Switch!$D$36,INDIRECT(\"a\" & (VLOOKUP(Switch!$D$36,$F$2:$G$44,2,FALSE)+ROW()-2)),\"\")","v":{"$error":"#N/A"}},{"$f":"IF(INDIRECT(\"c\" & (VLOOKUP(Switch!$D$37,$F$2:$G$44,2,FALSE)+ROW()-2))=Switch!$D$37,INDIRECT(\"a\" & (VLOOKUP(Switch!$D$37,$F$2:$G$44,2,FALSE)+ROW()-2)),\"\")","v":{"$error":"#N/A"}},{"$f":"IF(INDIRECT(\"c\" & (VLOOKUP(Switch!$D$38,$F$2:$G$44,2,FALSE)+ROW()-2))=Switch!$D$38,INDIRECT(\"a\" & (VLOOKUP(Switch!$D$38,$F$2:$G$44,2,FALSE)+ROW()-2)),\"\")","v":{"$error":"#N/A"}},{"$f":"IF(INDIRECT(\"c\" & (VLOOKUP(Switch!$D$39,$F$2:$G$44,2,FALSE)+ROW()-2))=Switch!$D$39,INDIRECT(\"a\" & (VLOOKUP(Switch!$D$39,$F$2:$G$44,2,FALSE)+ROW()-2)),\"\")","v":{"$error":"#N/A"}},{"$f":"IF(INDIRECT(\"c\" & (VLOOKUP(Switch!$D$40,$F$2:$G$44,2,FALSE)+ROW()-2))=Switch!$D$40,INDIRECT(\"a\" & (VLOOKUP(Switch!$D$40,$F$2:$G$44,2,FALSE)+ROW()-2)),\"\")","v":{"$error":"#N/A"}},{"$f":"IF(INDIRECT(\"c\" & (VLOOKUP(Switch!$D$52,$F$2:$G$44,2,FALSE)+ROW()-2))=Switch!$D$52,INDIRECT(\"a\" & (VLOOKUP(Switch!$D$52,$F$2:$G$44,2,FALSE)+ROW()-2)),\"\")","v":{"$error":"#N/A"}},{"$f":"IF(INDIRECT(\"c\" & (VLOOKUP(Switch!$D$53,$F$2:$G$44,2,FALSE)+ROW()-2))=Switch!$D$53,INDIRECT(\"a\" & (VLOOKUP(Switch!$D$53,$F$2:$G$44,2,FALSE)+ROW()-2)),\"\")","v":{"$error":"#N/A"}},{"$f":"IF(INDIRECT(\"c\" & (VLOOKUP(Switch!$D$54,$F$2:$G$44,2,FALSE)+ROW()-2))=Switch!$D$54,INDIRECT(\"a\" & (VLOOKUP(Switch!$D$54,$F$2:$G$44,2,FALSE)+ROW()-2)),\"\")","v":{"$error":"#N/A"}},{"$f":"IF(INDIRECT(\"c\" & (VLOOKUP(Switch!$D$55,$F$2:$G$44,2,FALSE)+ROW()-2))=Switch!$D$55,INDIRECT(\"a\" & (VLOOKUP(Switch!$D$55,$F$2:$G$44,2,FALSE)+ROW()-2)),\"\")","v":{"$error":"#N/A"}},{"$f":"IF(INDIRECT(\"c\" & (VLOOKUP(Switch!$D$56,$F$2:$G$44,2,FALSE)+ROW()-2))=Switch!$D$56,INDIRECT(\"a\" & (VLOOKUP(Switch!$D$56,$F$2:$G$44,2,FALSE)+ROW()-2)),\"\")","v":{"$error":"#N/A"}},{"$f":"IF(INDIRECT(\"c\" & (VLOOKUP(Switch!$D$57,$F$2:$G$44,2,FALSE)+ROW()-2))=Switch!$D$57,INDIRECT(\"a\" & (VLOOKUP(Switch!$D$57,$F$2:$G$44,2,FALSE)+ROW()-2)),\"\")","v":{"$error":"#N/A"}},{"$f":"IF(INDIRECT(\"c\" & (VLOOKUP(Switch!$D$58,$F$2:$G$44,2,FALSE)+ROW()-2))=Switch!$D$58,INDIRECT(\"a\" & (VLOOKUP(Switch!$D$58,$F$2:$G$44,2,FALSE)+ROW()-2)),\"\")","v":{"$error":"#N/A"}},{"$f":"IF(INDIRECT(\"c\" & (VLOOKUP(Switch!$D$59,$F$2:$G$44,2,FALSE)+ROW()-2))=Switch!$D$59,INDIRECT(\"a\" & (VLOOKUP(Switch!$D$59,$F$2:$G$44,2,FALSE)+ROW()-2)),\"\")","v":{"$error":"#N/A"}},{"$f":"IF(INDIRECT(\"c\" & (VLOOKUP(Switch!$D$60,$F$2:$G$44,2,FALSE)+ROW()-2))=Switch!$D$60,INDIRECT(\"a\" & (VLOOKUP(Switch!$D$60,$F$2:$G$44,2,FALSE)+ROW()-2)),\"\")","v":{"$error":"#N/A"}},{"$f":"IF(INDIRECT(\"c\" & (VLOOKUP(Switch!$D$61,$F$2:$G$44,2,FALSE)+ROW()-2))=Switch!$D$61,INDIRECT(\"a\" & (VLOOKUP(Switch!$D$61,$F$2:$G$44,2,FALSE)+ROW()-2)),\"\")","v":{"$error":"#N/A"}},{"$f":"IF(INDIRECT(\"c\" & (VLOOKUP(Switch!$D$62,$F$2:$G$44,2,FALSE)+ROW()-2))=Switch!$D$62,INDIRECT(\"a\" & (VLOOKUP(Switch!$D$62,$F$2:$G$44,2,FALSE)+ROW()-2)),\"\")","v":{"$error":"#N/A"}},{"$f":"IF(INDIRECT(\"c\" & (VLOOKUP(Switch!$D$63,$F$2:$G$44,2,FALSE)+ROW()-2))=Switch!$D$63,INDIRECT(\"a\" & (VLOOKUP(Switch!$D$63,$F$2:$G$44,2,FALSE)+ROW()-2)),\"\")","v":{"$error":"#N/A"}},{"$f":"IF(INDIRECT(\"c\" & (VLOOKUP(Switch!$D$64,$F$2:$G$44,2,FALSE)+ROW()-2))=Switch!$D$64,INDIRECT(\"a\" & (VLOOKUP(Switch!$D$64,$F$2:$G$44,2,FALSE)+ROW()-2)),\"\")","v":{"$error":"#N/A"}},{"$f":"IF(INDIRECT(\"c\" & (VLOOKUP(Switch!$D$65,$F$2:$G$44,2,FALSE)+ROW()-2))=Switch!$D$65,INDIRECT(\"a\" & (VLOOKUP(Switch!$D$65,$F$2:$G$44,2,FALSE)+ROW()-2)),\"\")","v":{"$error":"#N/A"}},{"$f":"IF(INDIRECT(\"c\" & (VLOOKUP(Switch!$D$66,$F$2:$G$44,2,FALSE)+ROW()-2))=Switch!$D$66,INDIRECT(\"a\" & (VLOOKUP(Switch!$D$66,$F$2:$G$44,2,FALSE)+ROW()-2)),\"\")","v":{"$error":"#N/A"}}]
["Noble PP STANLIB Strategic Income FoF A","NPSA1","STANLIB Collective Investments",{"$f":"ROW()","v":6},null,"Boutique Collective Investments (Pty) Ltd",{"$f":"VLOOKUP(F6,$C$2:$D$637,2,FALSE)","v":96},{"$f":"IF(INDIRECT(\"c\" & (VLOOKUP(Switch!$D$26,$F$2:$G$44,2,FALSE)+ROW()-2))=Switch!$D$26,INDIRECT(\"a\" & (VLOOKUP(Switch!$D$26,$F$2:$G$44,2,FALSE)+ROW()-2)),\"\")","v":{"$error":"#N/A"}},{"$f":"IF(INDIRECT(\"c\" & (VLOOKUP(Switch!$D$27,$F$2:$G$44,2,FALSE)+ROW()-2))=Switch!$D$27,INDIRECT(\"a\" & (VLOOKUP(Switch!$D$27,$F$2:$G$44,2,FALSE)+ROW()-2)),\"\")","v":{"$error":"#N/A"}},{"$f":"IF(INDIRECT(\"c\" & (VLOOKUP(Switch!$D$28,$F$2:$G$44,2,FALSE)+ROW()-2))=Switch!$D$28,INDIRECT(\"a\" & (VLOOKUP(Switch!$D$28,$F$2:$G$44,2,FALSE)+ROW()-2)),\"\")","v":{"$error":"#N/A"}},{"$f":"IF(INDIRECT(\"c\" & (VLOOKUP(Switch!$D$29,$F$2:$G$44,2,FALSE)+ROW()-2))=Switch!$D$29,INDIRECT(\"a\" & (VLOOKUP(Switch!$D$29,$F$2:$G$44,2,FALSE)+ROW()-2)),\"\")","v":{"$error":"#N/A"}},{"$f":"IF(INDIRECT(\"c\" & (VLOOKUP(Switch!$D$30,$F$2:$G$44,2,FALSE)+ROW()-2))=Switch!$D$30,INDIRECT(\"a\" & (VLOOKUP(Switch!$D$30,$F$2:$G$44,2,FALSE)+ROW()-2)),\"\")","v":{"$error":"#N/A"}},{"$f":"IF(INDIRECT(\"c\" & (VLOOKUP(Switch!$D$31,$F$2:$G$44,2,FALSE)+ROW()-2))=Switch!$D$31,INDIRECT(\"a\" & (VLOOKUP(Switch!$D$31,$F$2:$G$44,2,FALSE)+ROW()-2)),\"\")","v":{"$error":"#N/A"}},{"$f":"IF(INDIRECT(\"c\" & (VLOOKUP(Switch!$D$32,$F$2:$G$44,2,FALSE)+ROW()-2))=Switch!$D$32,INDIRECT(\"a\" & (VLOOKUP(Switch!$D$32,$F$2:$G$44,2,FALSE)+ROW()-2)),\"\")","v":{"$error":"#N/A"}},{"$f":"IF(INDIRECT(\"c\" & (VLOOKUP(Switch!$D$33,$F$2:$G$44,2,FALSE)+ROW()-2))=Switch!$D$33,INDIRECT(\"a\" & (VLOOKUP(Switch!$D$33,$F$2:$G$44,2,FALSE)+ROW()-2)),\"\")","v":{"$error":"#N/A"}},{"$f":"IF(INDIRECT(\"c\" & (VLOOKUP(Switch!$D$34,$F$2:$G$44,2,FALSE)+ROW()-2))=Switch!$D$34,INDIRECT(\"a\" & (VLOOKUP(Switch!$D$34,$F$2:$G$44,2,FALSE)+ROW()-2)),\"\")","v":{"$error":"#N/A"}},{"$f":"IF(INDIRECT(\"c\" & (VLOOKUP(Switch!$D$35,$F$2:$G$44,2,FALSE)+ROW()-2))=Switch!$D$35,INDIRECT(\"a\" & (VLOOKUP(Switch!$D$35,$F$2:$G$44,2,FALSE)+ROW()-2)),\"\")","v":{"$error":"#N/A"}},{"$f":"IF(INDIRECT(\"c\" & (VLOOKUP(Switch!$D$36,$F$2:$G$44,2,FALSE)+ROW()-2))=Switch!$D$36,INDIRECT(\"a\" & (VLOOKUP(Switch!$D$36,$F$2:$G$44,2,FALSE)+ROW()-2)),\"\")","v":{"$error":"#N/A"}},{"$f":"IF(INDIRECT(\"c\" & (VLOOKUP(Switch!$D$37,$F$2:$G$44,2,FALSE)+ROW()-2))=Switch!$D$37,INDIRECT(\"a\" & (VLOOKUP(Switch!$D$37,$F$2:$G$44,2,FALSE)+ROW()-2)),\"\")","v":{"$error":"#N/A"}},{"$f":"IF(INDIRECT(\"c\" & (VLOOKUP(Switch!$D$38,$F$2:$G$44,2,FALSE)+ROW()-2))=Switch!$D$38,INDIRECT(\"a\" & (VLOOKUP(Switch!$D$38,$F$2:$G$44,2,FALSE)+ROW()-2)),\"\")","v":{"$error":"#N/A"}},{"$f":"IF(INDIRECT(\"c\" & (VLOOKUP(Switch!$D$39,$F$2:$G$44,2,FALSE)+ROW()-2))=Switch!$D$39,INDIRECT(\"a\" & (VLOOKUP(Switch!$D$39,$F$2:$G$44,2,FALSE)+ROW()-2)),\"\")","v":{"$error":"#N/A"}},{"$f":"IF(INDIRECT(\"c\" & (VLOOKUP(Switch!$D$40,$F$2:$G$44,2,FALSE)+ROW()-2))=Switch!$D$40,INDIRECT(\"a\" & (VLOOKUP(Switch!$D$40,$F$2:$G$44,2,FALSE)+ROW()-2)),\"\")","v":{"$error":"#N/A"}},{"$f":"IF(INDIRECT(\"c\" & (VLOOKUP(Switch!$D$52,$F$2:$G$44,2,FALSE)+ROW()-2))=Switch!$D$52,INDIRECT(\"a\" & (VLOOKUP(Switch!$D$52,$F$2:$G$44,2,FALSE)+ROW()-2)),\"\")","v":{"$error":"#N/A"}},{"$f":"IF(INDIRECT(\"c\" & (VLOOKUP(Switch!$D$53,$F$2:$G$44,2,FALSE)+ROW()-2))=Switch!$D$53,INDIRECT(\"a\" & (VLOOKUP(Switch!$D$53,$F$2:$G$44,2,FALSE)+ROW()-2)),\"\")","v":{"$error":"#N/A"}},{"$f":"IF(INDIRECT(\"c\" & (VLOOKUP(Switch!$D$54,$F$2:$G$44,2,FALSE)+ROW()-2))=Switch!$D$54,INDIRECT(\"a\" & (VLOOKUP(Switch!$D$54,$F$2:$G$44,2,FALSE)+ROW()-2)),\"\")","v":{"$error":"#N/A"}},{"$f":"IF(INDIRECT(\"c\" & (VLOOKUP(Switch!$D$55,$F$2:$G$44,2,FALSE)+ROW()-2))=Switch!$D$55,INDIRECT(\"a\" & (VLOOKUP(Switch!$D$55,$F$2:$G$44,2,FALSE)+ROW()-2)),\"\")","v":{"$error":"#N/A"}},{"$f":"IF(INDIRECT(\"c\" & (VLOOKUP(Switch!$D$56,$F$2:$G$44,2,FALSE)+ROW()-2))=Switch!$D$56,INDIRECT(\"a\" & (VLOOKUP(Switch!$D$56,$F$2:$G$44,2,FALSE)+ROW()-2)),\"\")","v":{"$error":"#N/A"}},{"$f":"IF(INDIRECT(\"c\" & (VLOOKUP(Switch!$D$57,$F$2:$G$44,2,FALSE)+ROW()-2))=Switch!$D$57,INDIRECT(\"a\" & (VLOOKUP(Switch!$D$57,$F$2:$G$44,2,FALSE)+ROW()-2)),\"\")","v":{"$error":"#N/A"}},{"$f":"IF(INDIRECT(\"c\" & (VLOOKUP(Switch!$D$58,$F$2:$G$44,2,FALSE)+ROW()-2))=Switch!$D$58,INDIRECT(\"a\" & (VLOOKUP(Switch!$D$58,$F$2:$G$44,2,FALSE)+ROW()-2)),\"\")","v":{"$error":"#N/A"}},{"$f":"IF(INDIRECT(\"c\" & (VLOOKUP(Switch!$D$59,$F$2:$G$44,2,FALSE)+ROW()-2))=Switch!$D$59,INDIRECT(\"a\" & (VLOOKUP(Switch!$D$59,$F$2:$G$44,2,FALSE)+ROW()-2)),\"\")","v":{"$error":"#N/A"}},{"$f":"IF(INDIRECT(\"c\" & (VLOOKUP(Switch!$D$60,$F$2:$G$44,2,FALSE)+ROW()-2))=Switch!$D$60,INDIRECT(\"a\" & (VLOOKUP(Switch!$D$60,$F$2:$G$44,2,FALSE)+ROW()-2)),\"\")","v":{"$error":"#N/A"}},{"$f":"IF(INDIRECT(\"c\" & (VLOOKUP(Switch!$D$61,$F$2:$G$44,2,FALSE)+ROW()-2))=Switch!$D$61,INDIRECT(\"a\" & (VLOOKUP(Switch!$D$61,$F$2:$G$44,2,FALSE)+ROW()-2)),\"\")","v":{"$error":"#N/A"}},{"$f":"IF(INDIRECT(\"c\" & (VLOOKUP(Switch!$D$62,$F$2:$G$44,2,FALSE)+ROW()-2))=Switch!$D$62,INDIRECT(\"a\" & (VLOOKUP(Switch!$D$62,$F$2:$G$44,2,FALSE)+ROW()-2)),\"\")","v":{"$error":"#N/A"}},{"$f":"IF(INDIRECT(\"c\" & (VLOOKUP(Switch!$D$63,$F$2:$G$44,2,FALSE)+ROW()-2))=Switch!$D$63,INDIRECT(\"a\" & (VLOOKUP(Switch!$D$63,$F$2:$G$44,2,FALSE)+ROW()-2)),\"\")","v":{"$error":"#N/A"}},{"$f":"IF(INDIRECT(\"c\" & (VLOOKUP(Switch!$D$64,$F$2:$G$44,2,FALSE)+ROW()-2))=Switch!$D$64,INDIRECT(\"a\" & (VLOOKUP(Switch!$D$64,$F$2:$G$44,2,FALSE)+ROW()-2)),\"\")","v":{"$error":"#N/A"}},{"$f":"IF(INDIRECT(\"c\" & (VLOOKUP(Switch!$D$65,$F$2:$G$44,2,FALSE)+ROW()-2))=Switch!$D$65,INDIRECT(\"a\" & (VLOOKUP(Switch!$D$65,$F$2:$G$44,2,FALSE)+ROW()-2)),\"\")","v":{"$error":"#N/A"}},{"$f":"IF(INDIRECT(\"c\" & (VLOOKUP(Switch!$D$66,$F$2:$G$44,2,FALSE)+ROW()-2))=Switch!$D$66,INDIRECT(\"a\" & (VLOOKUP(Switch!$D$66,$F$2:$G$44,2,FALSE)+ROW()-2)),\"\")","v":{"$error":"#N/A"}}]
["Noble PP STANLIB Strategic Income FoF A1","NPSA1","STANLIB Collective Investments",{"$f":"ROW()","v":7},null,"Bridge Collective Investments (Pty) Ltd",{"$f":"VLOOKUP(F7,$C$2:$D$637,2,FALSE)","v":201},{"$f":"IF(INDIRECT(\"c\" & (VLOOKUP(Switch!$D$26,$F$2:$G$44,2,FALSE)+ROW()-2))=Switch!$D$26,INDIRECT(\"a\" & (VLOOKUP(Switch!$D$26,$F$2:$G$44,2,FALSE)+ROW()-2)),\"\")","v":{"$error":"#N/A"}},{"$f":"IF(INDIRECT(\"c\" & (VLOOKUP(Switch!$D$27,$F$2:$G$44,2,FALSE)+ROW()-2))=Switch!$D$27,INDIRECT(\"a\" & (VLOOKUP(Switch!$D$27,$F$2:$G$44,2,FALSE)+ROW()-2)),\"\")","v":{"$error":"#N/A"}},{"$f":"IF(INDIRECT(\"c\" & (VLOOKUP(Switch!$D$28,$F$2:$G$44,2,FALSE)+ROW()-2))=Switch!$D$28,INDIRECT(\"a\" & (VLOOKUP(Switch!$D$28,$F$2:$G$44,2,FALSE)+ROW()-2)),\"\")","v":{"$error":"#N/A"}},{"$f":"IF(INDIRECT(\"c\" & (VLOOKUP(Switch!$D$29,$F$2:$G$44,2,FALSE)+ROW()-2))=Switch!$D$29,INDIRECT(\"a\" & (VLOOKUP(Switch!$D$29,$F$2:$G$44,2,FALSE)+ROW()-2)),\"\")","v":{"$error":"#N/A"}},{"$f":"IF(INDIRECT(\"c\" & (VLOOKUP(Switch!$D$30,$F$2:$G$44,2,FALSE)+ROW()-2))=Switch!$D$30,INDIRECT(\"a\" & (VLOOKUP(Switch!$D$30,$F$2:$G$44,2,FALSE)+ROW()-2)),\"\")","v":{"$error":"#N/A"}},{"$f":"IF(INDIRECT(\"c\" & (VLOOKUP(Switch!$D$31,$F$2:$G$44,2,FALSE)+ROW()-2))=Switch!$D$31,INDIRECT(\"a\" & (VLOOKUP(Switch!$D$31,$F$2:$G$44,2,FALSE)+ROW()-2)),\"\")","v":{"$error":"#N/A"}},{"$f":"IF(INDIRECT(\"c\" & (VLOOKUP(Switch!$D$32,$F$2:$G$44,2,FALSE)+ROW()-2))=Switch!$D$32,INDIRECT(\"a\" & (VLOOKUP(Switch!$D$32,$F$2:$G$44,2,FALSE)+ROW()-2)),\"\")","v":{"$error":"#N/A"}},{"$f":"IF(INDIRECT(\"c\" & (VLOOKUP(Switch!$D$33,$F$2:$G$44,2,FALSE)+ROW()-2))=Switch!$D$33,INDIRECT(\"a\" & (VLOOKUP(Switch!$D$33,$F$2:$G$44,2,FALSE)+ROW()-2)),\"\")","v":{"$error":"#N/A"}},{"$f":"IF(INDIRECT(\"c\" & (VLOOKUP(Switch!$D$34,$F$2:$G$44,2,FALSE)+ROW()-2))=Switch!$D$34,INDIRECT(\"a\" & (VLOOKUP(Switch!$D$34,$F$2:$G$44,2,FALSE)+ROW()-2)),\"\")","v":{"$error":"#N/A"}},{"$f":"IF(INDIRECT(\"c\" & (VLOOKUP(Switch!$D$35,$F$2:$G$44,2,FALSE)+ROW()-2))=Switch!$D$35,INDIRECT(\"a\" & (VLOOKUP(Switch!$D$35,$F$2:$G$44,2,FALSE)+ROW()-2)),\"\")","v":{"$error":"#N/A"}},{"$f":"IF(INDIRECT(\"c\" & (VLOOKUP(Switch!$D$36,$F$2:$G$44,2,FALSE)+ROW()-2))=Switch!$D$36,INDIRECT(\"a\" & (VLOOKUP(Switch!$D$36,$F$2:$G$44,2,FALSE)+ROW()-2)),\"\")","v":{"$error":"#N/A"}},{"$f":"IF(INDIRECT(\"c\" & (VLOOKUP(Switch!$D$37,$F$2:$G$44,2,FALSE)+ROW()-2))=Switch!$D$37,INDIRECT(\"a\" & (VLOOKUP(Switch!$D$37,$F$2:$G$44,2,FALSE)+ROW()-2)),\"\")","v":{"$error":"#N/A"}},{"$f":"IF(INDIRECT(\"c\" & (VLOOKUP(Switch!$D$38,$F$2:$G$44,2,FALSE)+ROW()-2))=Switch!$D$38,INDIRECT(\"a\" & (VLOOKUP(Switch!$D$38,$F$2:$G$44,2,FALSE)+ROW()-2)),\"\")","v":{"$error":"#N/A"}},{"$f":"IF(INDIRECT(\"c\" & (VLOOKUP(Switch!$D$39,$F$2:$G$44,2,FALSE)+ROW()-2))=Switch!$D$39,INDIRECT(\"a\" & (VLOOKUP(Switch!$D$39,$F$2:$G$44,2,FALSE)+ROW()-2)),\"\")","v":{"$error":"#N/A"}},{"$f":"IF(INDIRECT(\"c\" & (VLOOKUP(Switch!$D$40,$F$2:$G$44,2,FALSE)+ROW()-2))=Switch!$D$40,INDIRECT(\"a\" & (VLOOKUP(Switch!$D$40,$F$2:$G$44,2,FALSE)+ROW()-2)),\"\")","v":{"$error":"#N/A"}},{"$f":"IF(INDIRECT(\"c\" & (VLOOKUP(Switch!$D$52,$F$2:$G$44,2,FALSE)+ROW()-2))=Switch!$D$52,INDIRECT(\"a\" & (VLOOKUP(Switch!$D$52,$F$2:$G$44,2,FALSE)+ROW()-2)),\"\")","v":{"$error":"#N/A"}},{"$f":"IF(INDIRECT(\"c\" & (VLOOKUP(Switch!$D$53,$F$2:$G$44,2,FALSE)+ROW()-2))=Switch!$D$53,INDIRECT(\"a\" & (VLOOKUP(Switch!$D$53,$F$2:$G$44,2,FALSE)+ROW()-2)),\"\")","v":{"$error":"#N/A"}},{"$f":"IF(INDIRECT(\"c\" & (VLOOKUP(Switch!$D$54,$F$2:$G$44,2,FALSE)+ROW()-2))=Switch!$D$54,INDIRECT(\"a\" & (VLOOKUP(Switch!$D$54,$F$2:$G$44,2,FALSE)+ROW()-2)),\"\")","v":{"$error":"#N/A"}},{"$f":"IF(INDIRECT(\"c\" & (VLOOKUP(Switch!$D$55,$F$2:$G$44,2,FALSE)+ROW()-2))=Switch!$D$55,INDIRECT(\"a\" & (VLOOKUP(Switch!$D$55,$F$2:$G$44,2,FALSE)+ROW()-2)),\"\")","v":{"$error":"#N/A"}},{"$f":"IF(INDIRECT(\"c\" & (VLOOKUP(Switch!$D$56,$F$2:$G$44,2,FALSE)+ROW()-2))=Switch!$D$56,INDIRECT(\"a\" & (VLOOKUP(Switch!$D$56,$F$2:$G$44,2,FALSE)+ROW()-2)),\"\")","v":{"$error":"#N/A"}},{"$f":"IF(INDIRECT(\"c\" & (VLOOKUP(Switch!$D$57,$F$2:$G$44,2,FALSE)+ROW()-2))=Switch!$D$57,INDIRECT(\"a\" & (VLOOKUP(Switch!$D$57,$F$2:$G$44,2,FALSE)+ROW()-2)),\"\")","v":{"$error":"#N/A"}},{"$f":"IF(INDIRECT(\"c\" & (VLOOKUP(Switch!$D$58,$F$2:$G$44,2,FALSE)+ROW()-2))=Switch!$D$58,INDIRECT(\"a\" & (VLOOKUP(Switch!$D$58,$F$2:$G$44,2,FALSE)+ROW()-2)),\"\")","v":{"$error":"#N/A"}},{"$f":"IF(INDIRECT(\"c\" & (VLOOKUP(Switch!$D$59,$F$2:$G$44,2,FALSE)+ROW()-2))=Switch!$D$59,INDIRECT(\"a\" & (VLOOKUP(Switch!$D$59,$F$2:$G$44,2,FALSE)+ROW()-2)),\"\")","v":{"$error":"#N/A"}},{"$f":"IF(INDIRECT(\"c\" & (VLOOKUP(Switch!$D$60,$F$2:$G$44,2,FALSE)+ROW()-2))=Switch!$D$60,INDIRECT(\"a\" & (VLOOKUP(Switch!$D$60,$F$2:$G$44,2,FALSE)+ROW()-2)),\"\")","v":{"$error":"#N/A"}},{"$f":"IF(INDIRECT(\"c\" & (VLOOKUP(Switch!$D$61,$F$2:$G$44,2,FALSE)+ROW()-2))=Switch!$D$61,INDIRECT(\"a\" & (VLOOKUP(Switch!$D$61,$F$2:$G$44,2,FALSE)+ROW()-2)),\"\")","v":{"$error":"#N/A"}},{"$f":"IF(INDIRECT(\"c\" & (VLOOKUP(Switch!$D$62,$F$2:$G$44,2,FALSE)+ROW()-2))=Switch!$D$62,INDIRECT(\"a\" & (VLOOKUP(Switch!$D$62,$F$2:$G$44,2,FALSE)+ROW()-2)),\"\")","v":{"$error":"#N/A"}},{"$f":"IF(INDIRECT(\"c\" & (VLOOKUP(Switch!$D$63,$F$2:$G$44,2,FALSE)+ROW()-2))=Switch!$D$63,INDIRECT(\"a\" & (VLOOKUP(Switch!$D$63,$F$2:$G$44,2,FALSE)+ROW()-2)),\"\")","v":{"$error":"#N/A"}},{"$f":"IF(INDIRECT(\"c\" & (VLOOKUP(Switch!$D$64,$F$2:$G$44,2,FALSE)+ROW()-2))=Switch!$D$64,INDIRECT(\"a\" & (VLOOKUP(Switch!$D$64,$F$2:$G$44,2,FALSE)+ROW()-2)),\"\")","v":{"$error":"#N/A"}},{"$f":"IF(INDIRECT(\"c\" & (VLOOKUP(Switch!$D$65,$F$2:$G$44,2,FALSE)+ROW()-2))=Switch!$D$65,INDIRECT(\"a\" & (VLOOKUP(Switch!$D$65,$F$2:$G$44,2,FALSE)+ROW()-2)),\"\")","v":{"$error":"#N/A"}},{"$f":"IF(INDIRECT(\"c\" & (VLOOKUP(Switch!$D$66,$F$2:$G$44,2,FALSE)+ROW()-2))=Switch!$D$66,INDIRECT(\"a\" & (VLOOKUP(Switch!$D$66,$F$2:$G$44,2,FALSE)+ROW()-2)),\"\")","v":{"$error":"#N/A"}}]
["Noble PP STANLIB Wealth Creator FoF A1","NPPA1","STANLIB Collective Investments",{"$f":"ROW()","v":8},null,"Cadiz Collective Investments",{"$f":"VLOOKUP(F8,$C$2:$D$637,2,FALSE)","v":209},{"$f":"IF(INDIRECT(\"c\" & (VLOOKUP(Switch!$D$26,$F$2:$G$44,2,FALSE)+ROW()-2))=Switch!$D$26,INDIRECT(\"a\" & (VLOOKUP(Switch!$D$26,$F$2:$G$44,2,FALSE)+ROW()-2)),\"\")","v":{"$error":"#N/A"}},{"$f":"IF(INDIRECT(\"c\" & (VLOOKUP(Switch!$D$27,$F$2:$G$44,2,FALSE)+ROW()-2))=Switch!$D$27,INDIRECT(\"a\" & (VLOOKUP(Switch!$D$27,$F$2:$G$44,2,FALSE)+ROW()-2)),\"\")","v":{"$error":"#N/A"}},{"$f":"IF(INDIRECT(\"c\" & (VLOOKUP(Switch!$D$28,$F$2:$G$44,2,FALSE)+ROW()-2))=Switch!$D$28,INDIRECT(\"a\" & (VLOOKUP(Switch!$D$28,$F$2:$G$44,2,FALSE)+ROW()-2)),\"\")","v":{"$error":"#N/A"}},{"$f":"IF(INDIRECT(\"c\" & (VLOOKUP(Switch!$D$29,$F$2:$G$44,2,FALSE)+ROW()-2))=Switch!$D$29,INDIRECT(\"a\" & (VLOOKUP(Switch!$D$29,$F$2:$G$44,2,FALSE)+ROW()-2)),\"\")","v":{"$error":"#N/A"}},{"$f":"IF(INDIRECT(\"c\" & (VLOOKUP(Switch!$D$30,$F$2:$G$44,2,FALSE)+ROW()-2))=Switch!$D$30,INDIRECT(\"a\" & (VLOOKUP(Switch!$D$30,$F$2:$G$44,2,FALSE)+ROW()-2)),\"\")","v":{"$error":"#N/A"}},{"$f":"IF(INDIRECT(\"c\" & (VLOOKUP(Switch!$D$31,$F$2:$G$44,2,FALSE)+ROW()-2))=Switch!$D$31,INDIRECT(\"a\" & (VLOOKUP(Switch!$D$31,$F$2:$G$44,2,FALSE)+ROW()-2)),\"\")","v":{"$error":"#N/A"}},{"$f":"IF(INDIRECT(\"c\" & (VLOOKUP(Switch!$D$32,$F$2:$G$44,2,FALSE)+ROW()-2))=Switch!$D$32,INDIRECT(\"a\" & (VLOOKUP(Switch!$D$32,$F$2:$G$44,2,FALSE)+ROW()-2)),\"\")","v":{"$error":"#N/A"}},{"$f":"IF(INDIRECT(\"c\" & (VLOOKUP(Switch!$D$33,$F$2:$G$44,2,FALSE)+ROW()-2))=Switch!$D$33,INDIRECT(\"a\" & (VLOOKUP(Switch!$D$33,$F$2:$G$44,2,FALSE)+ROW()-2)),\"\")","v":{"$error":"#N/A"}},{"$f":"IF(INDIRECT(\"c\" & (VLOOKUP(Switch!$D$34,$F$2:$G$44,2,FALSE)+ROW()-2))=Switch!$D$34,INDIRECT(\"a\" & (VLOOKUP(Switch!$D$34,$F$2:$G$44,2,FALSE)+ROW()-2)),\"\")","v":{"$error":"#N/A"}},{"$f":"IF(INDIRECT(\"c\" & (VLOOKUP(Switch!$D$35,$F$2:$G$44,2,FALSE)+ROW()-2))=Switch!$D$35,INDIRECT(\"a\" & (VLOOKUP(Switch!$D$35,$F$2:$G$44,2,FALSE)+ROW()-2)),\"\")","v":{"$error":"#N/A"}},{"$f":"IF(INDIRECT(\"c\" & (VLOOKUP(Switch!$D$36,$F$2:$G$44,2,FALSE)+ROW()-2))=Switch!$D$36,INDIRECT(\"a\" & (VLOOKUP(Switch!$D$36,$F$2:$G$44,2,FALSE)+ROW()-2)),\"\")","v":{"$error":"#N/A"}},{"$f":"IF(INDIRECT(\"c\" & (VLOOKUP(Switch!$D$37,$F$2:$G$44,2,FALSE)+ROW()-2))=Switch!$D$37,INDIRECT(\"a\" & (VLOOKUP(Switch!$D$37,$F$2:$G$44,2,FALSE)+ROW()-2)),\"\")","v":{"$error":"#N/A"}},{"$f":"IF(INDIRECT(\"c\" & (VLOOKUP(Switch!$D$38,$F$2:$G$44,2,FALSE)+ROW()-2))=Switch!$D$38,INDIRECT(\"a\" & (VLOOKUP(Switch!$D$38,$F$2:$G$44,2,FALSE)+ROW()-2)),\"\")","v":{"$error":"#N/A"}},{"$f":"IF(INDIRECT(\"c\" & (VLOOKUP(Switch!$D$39,$F$2:$G$44,2,FALSE)+ROW()-2))=Switch!$D$39,INDIRECT(\"a\" & (VLOOKUP(Switch!$D$39,$F$2:$G$44,2,FALSE)+ROW()-2)),\"\")","v":{"$error":"#N/A"}},{"$f":"IF(INDIRECT(\"c\" & (VLOOKUP(Switch!$D$40,$F$2:$G$44,2,FALSE)+ROW()-2))=Switch!$D$40,INDIRECT(\"a\" & (VLOOKUP(Switch!$D$40,$F$2:$G$44,2,FALSE)+ROW()-2)),\"\")","v":{"$error":"#N/A"}},{"$f":"IF(INDIRECT(\"c\" & (VLOOKUP(Switch!$D$52,$F$2:$G$44,2,FALSE)+ROW()-2))=Switch!$D$52,INDIRECT(\"a\" & (VLOOKUP(Switch!$D$52,$F$2:$G$44,2,FALSE)+ROW()-2)),\"\")","v":{"$error":"#N/A"}},{"$f":"IF(INDIRECT(\"c\" & (VLOOKUP(Switch!$D$53,$F$2:$G$44,2,FALSE)+ROW()-2))=Switch!$D$53,INDIRECT(\"a\" & (VLOOKUP(Switch!$D$53,$F$2:$G$44,2,FALSE)+ROW()-2)),\"\")","v":{"$error":"#N/A"}},{"$f":"IF(INDIRECT(\"c\" & (VLOOKUP(Switch!$D$54,$F$2:$G$44,2,FALSE)+ROW()-2))=Switch!$D$54,INDIRECT(\"a\" & (VLOOKUP(Switch!$D$54,$F$2:$G$44,2,FALSE)+ROW()-2)),\"\")","v":{"$error":"#N/A"}},{"$f":"IF(INDIRECT(\"c\" & (VLOOKUP(Switch!$D$55,$F$2:$G$44,2,FALSE)+ROW()-2))=Switch!$D$55,INDIRECT(\"a\" & (VLOOKUP(Switch!$D$55,$F$2:$G$44,2,FALSE)+ROW()-2)),\"\")","v":{"$error":"#N/A"}},{"$f":"IF(INDIRECT(\"c\" & (VLOOKUP(Switch!$D$56,$F$2:$G$44,2,FALSE)+ROW()-2))=Switch!$D$56,INDIRECT(\"a\" & (VLOOKUP(Switch!$D$56,$F$2:$G$44,2,FALSE)+ROW()-2)),\"\")","v":{"$error":"#N/A"}},{"$f":"IF(INDIRECT(\"c\" & (VLOOKUP(Switch!$D$57,$F$2:$G$44,2,FALSE)+ROW()-2))=Switch!$D$57,INDIRECT(\"a\" & (VLOOKUP(Switch!$D$57,$F$2:$G$44,2,FALSE)+ROW()-2)),\"\")","v":{"$error":"#N/A"}},{"$f":"IF(INDIRECT(\"c\" & (VLOOKUP(Switch!$D$58,$F$2:$G$44,2,FALSE)+ROW()-2))=Switch!$D$58,INDIRECT(\"a\" & (VLOOKUP(Switch!$D$58,$F$2:$G$44,2,FALSE)+ROW()-2)),\"\")","v":{"$error":"#N/A"}},{"$f":"IF(INDIRECT(\"c\" & (VLOOKUP(Switch!$D$59,$F$2:$G$44,2,FALSE)+ROW()-2))=Switch!$D$59,INDIRECT(\"a\" & (VLOOKUP(Switch!$D$59,$F$2:$G$44,2,FALSE)+ROW()-2)),\"\")","v":{"$error":"#N/A"}},{"$f":"IF(INDIRECT(\"c\" & (VLOOKUP(Switch!$D$60,$F$2:$G$44,2,FALSE)+ROW()-2))=Switch!$D$60,INDIRECT(\"a\" & (VLOOKUP(Switch!$D$60,$F$2:$G$44,2,FALSE)+ROW()-2)),\"\")","v":{"$error":"#N/A"}},{"$f":"IF(INDIRECT(\"c\" & (VLOOKUP(Switch!$D$61,$F$2:$G$44,2,FALSE)+ROW()-2))=Switch!$D$61,INDIRECT(\"a\" & (VLOOKUP(Switch!$D$61,$F$2:$G$44,2,FALSE)+ROW()-2)),\"\")","v":{"$error":"#N/A"}},{"$f":"IF(INDIRECT(\"c\" & (VLOOKUP(Switch!$D$62,$F$2:$G$44,2,FALSE)+ROW()-2))=Switch!$D$62,INDIRECT(\"a\" & (VLOOKUP(Switch!$D$62,$F$2:$G$44,2,FALSE)+ROW()-2)),\"\")","v":{"$error":"#N/A"}},{"$f":"IF(INDIRECT(\"c\" & (VLOOKUP(Switch!$D$63,$F$2:$G$44,2,FALSE)+ROW()-2))=Switch!$D$63,INDIRECT(\"a\" & (VLOOKUP(Switch!$D$63,$F$2:$G$44,2,FALSE)+ROW()-2)),\"\")","v":{"$error":"#N/A"}},{"$f":"IF(INDIRECT(\"c\" & (VLOOKUP(Switch!$D$64,$F$2:$G$44,2,FALSE)+ROW()-2))=Switch!$D$64,INDIRECT(\"a\" & (VLOOKUP(Switch!$D$64,$F$2:$G$44,2,FALSE)+ROW()-2)),\"\")","v":{"$error":"#N/A"}},{"$f":"IF(INDIRECT(\"c\" & (VLOOKUP(Switch!$D$65,$F$2:$G$44,2,FALSE)+ROW()-2))=Switch!$D$65,INDIRECT(\"a\" & (VLOOKUP(Switch!$D$65,$F$2:$G$44,2,FALSE)+ROW()-2)),\"\")","v":{"$error":"#N/A"}},{"$f":"IF(INDIRECT(\"c\" & (VLOOKUP(Switch!$D$66,$F$2:$G$44,2,FALSE)+ROW()-2))=Switch!$D$66,INDIRECT(\"a\" & (VLOOKUP(Switch!$D$66,$F$2:$G$44,2,FALSE)+ROW()-2)),\"\")","v":{"$error":"#N/A"}}]
["Melville Douglas STANLIB Bond Fund A","MDBFA","STANLIB Collective Investments",{"$f":"ROW()","v":9},null,"Ci Collective Investments (RF) (PTY) Ltd",{"$f":"VLOOKUP(F9,$C$2:$D$637,2,FALSE)","v":214},{"$f":"IF(INDIRECT(\"c\" & (VLOOKUP(Switch!$D$26,$F$2:$G$44,2,FALSE)+ROW()-2))=Switch!$D$26,INDIRECT(\"a\" & (VLOOKUP(Switch!$D$26,$F$2:$G$44,2,FALSE)+ROW()-2)),\"\")","v":{"$error":"#N/A"}},{"$f":"IF(INDIRECT(\"c\" & (VLOOKUP(Switch!$D$27,$F$2:$G$44,2,FALSE)+ROW()-2))=Switch!$D$27,INDIRECT(\"a\" & (VLOOKUP(Switch!$D$27,$F$2:$G$44,2,FALSE)+ROW()-2)),\"\")","v":{"$error":"#N/A"}},{"$f":"IF(INDIRECT(\"c\" & (VLOOKUP(Switch!$D$28,$F$2:$G$44,2,FALSE)+ROW()-2))=Switch!$D$28,INDIRECT(\"a\" & (VLOOKUP(Switch!$D$28,$F$2:$G$44,2,FALSE)+ROW()-2)),\"\")","v":{"$error":"#N/A"}},{"$f":"IF(INDIRECT(\"c\" & (VLOOKUP(Switch!$D$29,$F$2:$G$44,2,FALSE)+ROW()-2))=Switch!$D$29,INDIRECT(\"a\" & (VLOOKUP(Switch!$D$29,$F$2:$G$44,2,FALSE)+ROW()-2)),\"\")","v":{"$error":"#N/A"}},{"$f":"IF(INDIRECT(\"c\" & (VLOOKUP(Switch!$D$30,$F$2:$G$44,2,FALSE)+ROW()-2))=Switch!$D$30,INDIRECT(\"a\" & (VLOOKUP(Switch!$D$30,$F$2:$G$44,2,FALSE)+ROW()-2)),\"\")","v":{"$error":"#N/A"}},{"$f":"IF(INDIRECT(\"c\" & (VLOOKUP(Switch!$D$31,$F$2:$G$44,2,FALSE)+ROW()-2))=Switch!$D$31,INDIRECT(\"a\" & (VLOOKUP(Switch!$D$31,$F$2:$G$44,2,FALSE)+ROW()-2)),\"\")","v":{"$error":"#N/A"}},{"$f":"IF(INDIRECT(\"c\" & (VLOOKUP(Switch!$D$32,$F$2:$G$44,2,FALSE)+ROW()-2))=Switch!$D$32,INDIRECT(\"a\" & (VLOOKUP(Switch!$D$32,$F$2:$G$44,2,FALSE)+ROW()-2)),\"\")","v":{"$error":"#N/A"}},{"$f":"IF(INDIRECT(\"c\" & (VLOOKUP(Switch!$D$33,$F$2:$G$44,2,FALSE)+ROW()-2))=Switch!$D$33,INDIRECT(\"a\" & (VLOOKUP(Switch!$D$33,$F$2:$G$44,2,FALSE)+ROW()-2)),\"\")","v":{"$error":"#N/A"}},{"$f":"IF(INDIRECT(\"c\" & (VLOOKUP(Switch!$D$34,$F$2:$G$44,2,FALSE)+ROW()-2))=Switch!$D$34,INDIRECT(\"a\" & (VLOOKUP(Switch!$D$34,$F$2:$G$44,2,FALSE)+ROW()-2)),\"\")","v":{"$error":"#N/A"}},{"$f":"IF(INDIRECT(\"c\" & (VLOOKUP(Switch!$D$35,$F$2:$G$44,2,FALSE)+ROW()-2))=Switch!$D$35,INDIRECT(\"a\" & (VLOOKUP(Switch!$D$35,$F$2:$G$44,2,FALSE)+ROW()-2)),\"\")","v":{"$error":"#N/A"}},{"$f":"IF(INDIRECT(\"c\" & (VLOOKUP(Switch!$D$36,$F$2:$G$44,2,FALSE)+ROW()-2))=Switch!$D$36,INDIRECT(\"a\" & (VLOOKUP(Switch!$D$36,$F$2:$G$44,2,FALSE)+ROW()-2)),\"\")","v":{"$error":"#N/A"}},{"$f":"IF(INDIRECT(\"c\" & (VLOOKUP(Switch!$D$37,$F$2:$G$44,2,FALSE)+ROW()-2))=Switch!$D$37,INDIRECT(\"a\" & (VLOOKUP(Switch!$D$37,$F$2:$G$44,2,FALSE)+ROW()-2)),\"\")","v":{"$error":"#N/A"}},{"$f":"IF(INDIRECT(\"c\" & (VLOOKUP(Switch!$D$38,$F$2:$G$44,2,FALSE)+ROW()-2))=Switch!$D$38,INDIRECT(\"a\" & (VLOOKUP(Switch!$D$38,$F$2:$G$44,2,FALSE)+ROW()-2)),\"\")","v":{"$error":"#N/A"}},{"$f":"IF(INDIRECT(\"c\" & (VLOOKUP(Switch!$D$39,$F$2:$G$44,2,FALSE)+ROW()-2))=Switch!$D$39,INDIRECT(\"a\" & (VLOOKUP(Switch!$D$39,$F$2:$G$44,2,FALSE)+ROW()-2)),\"\")","v":{"$error":"#N/A"}},{"$f":"IF(INDIRECT(\"c\" & (VLOOKUP(Switch!$D$40,$F$2:$G$44,2,FALSE)+ROW()-2))=Switch!$D$40,INDIRECT(\"a\" & (VLOOKUP(Switch!$D$40,$F$2:$G$44,2,FALSE)+ROW()-2)),\"\")","v":{"$error":"#N/A"}},{"$f":"IF(INDIRECT(\"c\" & (VLOOKUP(Switch!$D$52,$F$2:$G$44,2,FALSE)+ROW()-2))=Switch!$D$52,INDIRECT(\"a\" & (VLOOKUP(Switch!$D$52,$F$2:$G$44,2,FALSE)+ROW()-2)),\"\")","v":{"$error":"#N/A"}},{"$f":"IF(INDIRECT(\"c\" & (VLOOKUP(Switch!$D$53,$F$2:$G$44,2,FALSE)+ROW()-2))=Switch!$D$53,INDIRECT(\"a\" & (VLOOKUP(Switch!$D$53,$F$2:$G$44,2,FALSE)+ROW()-2)),\"\")","v":{"$error":"#N/A"}},{"$f":"IF(INDIRECT(\"c\" & (VLOOKUP(Switch!$D$54,$F$2:$G$44,2,FALSE)+ROW()-2))=Switch!$D$54,INDIRECT(\"a\" & (VLOOKUP(Switch!$D$54,$F$2:$G$44,2,FALSE)+ROW()-2)),\"\")","v":{"$error":"#N/A"}},{"$f":"IF(INDIRECT(\"c\" & (VLOOKUP(Switch!$D$55,$F$2:$G$44,2,FALSE)+ROW()-2))=Switch!$D$55,INDIRECT(\"a\" & (VLOOKUP(Switch!$D$55,$F$2:$G$44,2,FALSE)+ROW()-2)),\"\")","v":{"$error":"#N/A"}},{"$f":"IF(INDIRECT(\"c\" & (VLOOKUP(Switch!$D$56,$F$2:$G$44,2,FALSE)+ROW()-2))=Switch!$D$56,INDIRECT(\"a\" & (VLOOKUP(Switch!$D$56,$F$2:$G$44,2,FALSE)+ROW()-2)),\"\")","v":{"$error":"#N/A"}},{"$f":"IF(INDIRECT(\"c\" & (VLOOKUP(Switch!$D$57,$F$2:$G$44,2,FALSE)+ROW()-2))=Switch!$D$57,INDIRECT(\"a\" & (VLOOKUP(Switch!$D$57,$F$2:$G$44,2,FALSE)+ROW()-2)),\"\")","v":{"$error":"#N/A"}},{"$f":"IF(INDIRECT(\"c\" & (VLOOKUP(Switch!$D$58,$F$2:$G$44,2,FALSE)+ROW()-2))=Switch!$D$58,INDIRECT(\"a\" & (VLOOKUP(Switch!$D$58,$F$2:$G$44,2,FALSE)+ROW()-2)),\"\")","v":{"$error":"#N/A"}},{"$f":"IF(INDIRECT(\"c\" & (VLOOKUP(Switch!$D$59,$F$2:$G$44,2,FALSE)+ROW()-2))=Switch!$D$59,INDIRECT(\"a\" & (VLOOKUP(Switch!$D$59,$F$2:$G$44,2,FALSE)+ROW()-2)),\"\")","v":{"$error":"#N/A"}},{"$f":"IF(INDIRECT(\"c\" & (VLOOKUP(Switch!$D$60,$F$2:$G$44,2,FALSE)+ROW()-2))=Switch!$D$60,INDIRECT(\"a\" & (VLOOKUP(Switch!$D$60,$F$2:$G$44,2,FALSE)+ROW()-2)),\"\")","v":{"$error":"#N/A"}},{"$f":"IF(INDIRECT(\"c\" & (VLOOKUP(Switch!$D$61,$F$2:$G$44,2,FALSE)+ROW()-2))=Switch!$D$61,INDIRECT(\"a\" & (VLOOKUP(Switch!$D$61,$F$2:$G$44,2,FALSE)+ROW()-2)),\"\")","v":{"$error":"#N/A"}},{"$f":"IF(INDIRECT(\"c\" & (VLOOKUP(Switch!$D$62,$F$2:$G$44,2,FALSE)+ROW()-2))=Switch!$D$62,INDIRECT(\"a\" & (VLOOKUP(Switch!$D$62,$F$2:$G$44,2,FALSE)+ROW()-2)),\"\")","v":{"$error":"#N/A"}},{"$f":"IF(INDIRECT(\"c\" & (VLOOKUP(Switch!$D$63,$F$2:$G$44,2,FALSE)+ROW()-2))=Switch!$D$63,INDIRECT(\"a\" & (VLOOKUP(Switch!$D$63,$F$2:$G$44,2,FALSE)+ROW()-2)),\"\")","v":{"$error":"#N/A"}},{"$f":"IF(INDIRECT(\"c\" & (VLOOKUP(Switch!$D$64,$F$2:$G$44,2,FALSE)+ROW()-2))=Switch!$D$64,INDIRECT(\"a\" & (VLOOKUP(Switch!$D$64,$F$2:$G$44,2,FALSE)+ROW()-2)),\"\")","v":{"$error":"#N/A"}},{"$f":"IF(INDIRECT(\"c\" & (VLOOKUP(Switch!$D$65,$F$2:$G$44,2,FALSE)+ROW()-2))=Switch!$D$65,INDIRECT(\"a\" & (VLOOKUP(Switch!$D$65,$F$2:$G$44,2,FALSE)+ROW()-2)),\"\")","v":{"$error":"#N/A"}},{"$f":"IF(INDIRECT(\"c\" & (VLOOKUP(Switch!$D$66,$F$2:$G$44,2,FALSE)+ROW()-2))=Switch!$D$66,INDIRECT(\"a\" & (VLOOKUP(Switch!$D$66,$F$2:$G$44,2,FALSE)+ROW()-2)),\"\")","v":{"$error":"#N/A"}}]
["Melville Douglas STANLIB Balanced Fund A","MDDB1","STANLIB Collective Investments",{"$f":"ROW()","v":10},null,"Coronation Management Company",{"$f":"VLOOKUP(F10,$C$2:$D$637,2,FALSE)","v":222},{"$f":"IF(INDIRECT(\"c\" & (VLOOKUP(Switch!$D$26,$F$2:$G$44,2,FALSE)+ROW()-2))=Switch!$D$26,INDIRECT(\"a\" & (VLOOKUP(Switch!$D$26,$F$2:$G$44,2,FALSE)+ROW()-2)),\"\")","v":{"$error":"#N/A"}},{"$f":"IF(INDIRECT(\"c\" & (VLOOKUP(Switch!$D$27,$F$2:$G$44,2,FALSE)+ROW()-2))=Switch!$D$27,INDIRECT(\"a\" & (VLOOKUP(Switch!$D$27,$F$2:$G$44,2,FALSE)+ROW()-2)),\"\")","v":{"$error":"#N/A"}},{"$f":"IF(INDIRECT(\"c\" & (VLOOKUP(Switch!$D$28,$F$2:$G$44,2,FALSE)+ROW()-2))=Switch!$D$28,INDIRECT(\"a\" & (VLOOKUP(Switch!$D$28,$F$2:$G$44,2,FALSE)+ROW()-2)),\"\")","v":{"$error":"#N/A"}},{"$f":"IF(INDIRECT(\"c\" & (VLOOKUP(Switch!$D$29,$F$2:$G$44,2,FALSE)+ROW()-2))=Switch!$D$29,INDIRECT(\"a\" & (VLOOKUP(Switch!$D$29,$F$2:$G$44,2,FALSE)+ROW()-2)),\"\")","v":{"$error":"#N/A"}},{"$f":"IF(INDIRECT(\"c\" & (VLOOKUP(Switch!$D$30,$F$2:$G$44,2,FALSE)+ROW()-2))=Switch!$D$30,INDIRECT(\"a\" & (VLOOKUP(Switch!$D$30,$F$2:$G$44,2,FALSE)+ROW()-2)),\"\")","v":{"$error":"#N/A"}},{"$f":"IF(INDIRECT(\"c\" & (VLOOKUP(Switch!$D$31,$F$2:$G$44,2,FALSE)+ROW()-2))=Switch!$D$31,INDIRECT(\"a\" & (VLOOKUP(Switch!$D$31,$F$2:$G$44,2,FALSE)+ROW()-2)),\"\")","v":{"$error":"#N/A"}},{"$f":"IF(INDIRECT(\"c\" & (VLOOKUP(Switch!$D$32,$F$2:$G$44,2,FALSE)+ROW()-2))=Switch!$D$32,INDIRECT(\"a\" & (VLOOKUP(Switch!$D$32,$F$2:$G$44,2,FALSE)+ROW()-2)),\"\")","v":{"$error":"#N/A"}},{"$f":"IF(INDIRECT(\"c\" & (VLOOKUP(Switch!$D$33,$F$2:$G$44,2,FALSE)+ROW()-2))=Switch!$D$33,INDIRECT(\"a\" & (VLOOKUP(Switch!$D$33,$F$2:$G$44,2,FALSE)+ROW()-2)),\"\")","v":{"$error":"#N/A"}},{"$f":"IF(INDIRECT(\"c\" & (VLOOKUP(Switch!$D$34,$F$2:$G$44,2,FALSE)+ROW()-2))=Switch!$D$34,INDIRECT(\"a\" & (VLOOKUP(Switch!$D$34,$F$2:$G$44,2,FALSE)+ROW()-2)),\"\")","v":{"$error":"#N/A"}},{"$f":"IF(INDIRECT(\"c\" & (VLOOKUP(Switch!$D$35,$F$2:$G$44,2,FALSE)+ROW()-2))=Switch!$D$35,INDIRECT(\"a\" & (VLOOKUP(Switch!$D$35,$F$2:$G$44,2,FALSE)+ROW()-2)),\"\")","v":{"$error":"#N/A"}},{"$f":"IF(INDIRECT(\"c\" & (VLOOKUP(Switch!$D$36,$F$2:$G$44,2,FALSE)+ROW()-2))=Switch!$D$36,INDIRECT(\"a\" & (VLOOKUP(Switch!$D$36,$F$2:$G$44,2,FALSE)+ROW()-2)),\"\")","v":{"$error":"#N/A"}},{"$f":"IF(INDIRECT(\"c\" & (VLOOKUP(Switch!$D$37,$F$2:$G$44,2,FALSE)+ROW()-2))=Switch!$D$37,INDIRECT(\"a\" & (VLOOKUP(Switch!$D$37,$F$2:$G$44,2,FALSE)+ROW()-2)),\"\")","v":{"$error":"#N/A"}},{"$f":"IF(INDIRECT(\"c\" & (VLOOKUP(Switch!$D$38,$F$2:$G$44,2,FALSE)+ROW()-2))=Switch!$D$38,INDIRECT(\"a\" & (VLOOKUP(Switch!$D$38,$F$2:$G$44,2,FALSE)+ROW()-2)),\"\")","v":{"$error":"#N/A"}},{"$f":"IF(INDIRECT(\"c\" & (VLOOKUP(Switch!$D$39,$F$2:$G$44,2,FALSE)+ROW()-2))=Switch!$D$39,INDIRECT(\"a\" & (VLOOKUP(Switch!$D$39,$F$2:$G$44,2,FALSE)+ROW()-2)),\"\")","v":{"$error":"#N/A"}},{"$f":"IF(INDIRECT(\"c\" & (VLOOKUP(Switch!$D$40,$F$2:$G$44,2,FALSE)+ROW()-2))=Switch!$D$40,INDIRECT(\"a\" & (VLOOKUP(Switch!$D$40,$F$2:$G$44,2,FALSE)+ROW()-2)),\"\")","v":{"$error":"#N/A"}},{"$f":"IF(INDIRECT(\"c\" & (VLOOKUP(Switch!$D$52,$F$2:$G$44,2,FALSE)+ROW()-2))=Switch!$D$52,INDIRECT(\"a\" & (VLOOKUP(Switch!$D$52,$F$2:$G$44,2,FALSE)+ROW()-2)),\"\")","v":{"$error":"#N/A"}},{"$f":"IF(INDIRECT(\"c\" & (VLOOKUP(Switch!$D$53,$F$2:$G$44,2,FALSE)+ROW()-2))=Switch!$D$53,INDIRECT(\"a\" & (VLOOKUP(Switch!$D$53,$F$2:$G$44,2,FALSE)+ROW()-2)),\"\")","v":{"$error":"#N/A"}},{"$f":"IF(INDIRECT(\"c\" & (VLOOKUP(Switch!$D$54,$F$2:$G$44,2,FALSE)+ROW()-2))=Switch!$D$54,INDIRECT(\"a\" & (VLOOKUP(Switch!$D$54,$F$2:$G$44,2,FALSE)+ROW()-2)),\"\")","v":{"$error":"#N/A"}},{"$f":"IF(INDIRECT(\"c\" & (VLOOKUP(Switch!$D$55,$F$2:$G$44,2,FALSE)+ROW()-2))=Switch!$D$55,INDIRECT(\"a\" & (VLOOKUP(Switch!$D$55,$F$2:$G$44,2,FALSE)+ROW()-2)),\"\")","v":{"$error":"#N/A"}},{"$f":"IF(INDIRECT(\"c\" & (VLOOKUP(Switch!$D$56,$F$2:$G$44,2,FALSE)+ROW()-2))=Switch!$D$56,INDIRECT(\"a\" & (VLOOKUP(Switch!$D$56,$F$2:$G$44,2,FALSE)+ROW()-2)),\"\")","v":{"$error":"#N/A"}},{"$f":"IF(INDIRECT(\"c\" & (VLOOKUP(Switch!$D$57,$F$2:$G$44,2,FALSE)+ROW()-2))=Switch!$D$57,INDIRECT(\"a\" & (VLOOKUP(Switch!$D$57,$F$2:$G$44,2,FALSE)+ROW()-2)),\"\")","v":{"$error":"#N/A"}},{"$f":"IF(INDIRECT(\"c\" & (VLOOKUP(Switch!$D$58,$F$2:$G$44,2,FALSE)+ROW()-2))=Switch!$D$58,INDIRECT(\"a\" & (VLOOKUP(Switch!$D$58,$F$2:$G$44,2,FALSE)+ROW()-2)),\"\")","v":{"$error":"#N/A"}},{"$f":"IF(INDIRECT(\"c\" & (VLOOKUP(Switch!$D$59,$F$2:$G$44,2,FALSE)+ROW()-2))=Switch!$D$59,INDIRECT(\"a\" & (VLOOKUP(Switch!$D$59,$F$2:$G$44,2,FALSE)+ROW()-2)),\"\")","v":{"$error":"#N/A"}},{"$f":"IF(INDIRECT(\"c\" & (VLOOKUP(Switch!$D$60,$F$2:$G$44,2,FALSE)+ROW()-2))=Switch!$D$60,INDIRECT(\"a\" & (VLOOKUP(Switch!$D$60,$F$2:$G$44,2,FALSE)+ROW()-2)),\"\")","v":{"$error":"#N/A"}},{"$f":"IF(INDIRECT(\"c\" & (VLOOKUP(Switch!$D$61,$F$2:$G$44,2,FALSE)+ROW()-2))=Switch!$D$61,INDIRECT(\"a\" & (VLOOKUP(Switch!$D$61,$F$2:$G$44,2,FALSE)+ROW()-2)),\"\")","v":{"$error":"#N/A"}},{"$f":"IF(INDIRECT(\"c\" & (VLOOKUP(Switch!$D$62,$F$2:$G$44,2,FALSE)+ROW()-2))=Switch!$D$62,INDIRECT(\"a\" & (VLOOKUP(Switch!$D$62,$F$2:$G$44,2,FALSE)+ROW()-2)),\"\")","v":{"$error":"#N/A"}},{"$f":"IF(INDIRECT(\"c\" & (VLOOKUP(Switch!$D$63,$F$2:$G$44,2,FALSE)+ROW()-2))=Switch!$D$63,INDIRECT(\"a\" & (VLOOKUP(Switch!$D$63,$F$2:$G$44,2,FALSE)+ROW()-2)),\"\")","v":{"$error":"#N/A"}},{"$f":"IF(INDIRECT(\"c\" & (VLOOKUP(Switch!$D$64,$F$2:$G$44,2,FALSE)+ROW()-2))=Switch!$D$64,INDIRECT(\"a\" & (VLOOKUP(Switch!$D$64,$F$2:$G$44,2,FALSE)+ROW()-2)),\"\")","v":{"$error":"#N/A"}},{"$f":"IF(INDIRECT(\"c\" & (VLOOKUP(Switch!$D$65,$F$2:$G$44,2,FALSE)+ROW()-2))=Switch!$D$65,INDIRECT(\"a\" & (VLOOKUP(Switch!$D$65,$F$2:$G$44,2,FALSE)+ROW()-2)),\"\")","v":{"$error":"#N/A"}},{"$f":"IF(INDIRECT(\"c\" & (VLOOKUP(Switch!$D$66,$F$2:$G$44,2,FALSE)+ROW()-2))=Switch!$D$66,INDIRECT(\"a\" & (VLOOKUP(Switch!$D$66,$F$2:$G$44,2,FALSE)+ROW()-2)),\"\")","v":{"$error":"#N/A"}}]
["Melville Douglas STANLIB Medium Equity Fund of Fund A","MDSFA","STANLIB Collective Investments",{"$f":"ROW()","v":11},null,"DISCOVERY LIFE COLLECTIVE INVESTMENTS (PTY) LTD",{"$f":"VLOOKUP(F11,$C$2:$D$637,2,FALSE)","v":241},{"$f":"IF(INDIRECT(\"c\" & (VLOOKUP(Switch!$D$26,$F$2:$G$44,2,FALSE)+ROW()-2))=Switch!$D$26,INDIRECT(\"a\" & (VLOOKUP(Switch!$D$26,$F$2:$G$44,2,FALSE)+ROW()-2)),\"\")","v":{"$error":"#N/A"}},{"$f":"IF(INDIRECT(\"c\" & (VLOOKUP(Switch!$D$27,$F$2:$G$44,2,FALSE)+ROW()-2))=Switch!$D$27,INDIRECT(\"a\" & (VLOOKUP(Switch!$D$27,$F$2:$G$44,2,FALSE)+ROW()-2)),\"\")","v":{"$error":"#N/A"}},{"$f":"IF(INDIRECT(\"c\" & (VLOOKUP(Switch!$D$28,$F$2:$G$44,2,FALSE)+ROW()-2))=Switch!$D$28,INDIRECT(\"a\" & (VLOOKUP(Switch!$D$28,$F$2:$G$44,2,FALSE)+ROW()-2)),\"\")","v":{"$error":"#N/A"}},{"$f":"IF(INDIRECT(\"c\" & (VLOOKUP(Switch!$D$29,$F$2:$G$44,2,FALSE)+ROW()-2))=Switch!$D$29,INDIRECT(\"a\" & (VLOOKUP(Switch!$D$29,$F$2:$G$44,2,FALSE)+ROW()-2)),\"\")","v":{"$error":"#N/A"}},{"$f":"IF(INDIRECT(\"c\" & (VLOOKUP(Switch!$D$30,$F$2:$G$44,2,FALSE)+ROW()-2))=Switch!$D$30,INDIRECT(\"a\" & (VLOOKUP(Switch!$D$30,$F$2:$G$44,2,FALSE)+ROW()-2)),\"\")","v":{"$error":"#N/A"}},{"$f":"IF(INDIRECT(\"c\" & (VLOOKUP(Switch!$D$31,$F$2:$G$44,2,FALSE)+ROW()-2))=Switch!$D$31,INDIRECT(\"a\" & (VLOOKUP(Switch!$D$31,$F$2:$G$44,2,FALSE)+ROW()-2)),\"\")","v":{"$error":"#N/A"}},{"$f":"IF(INDIRECT(\"c\" & (VLOOKUP(Switch!$D$32,$F$2:$G$44,2,FALSE)+ROW()-2))=Switch!$D$32,INDIRECT(\"a\" & (VLOOKUP(Switch!$D$32,$F$2:$G$44,2,FALSE)+ROW()-2)),\"\")","v":{"$error":"#N/A"}},{"$f":"IF(INDIRECT(\"c\" & (VLOOKUP(Switch!$D$33,$F$2:$G$44,2,FALSE)+ROW()-2))=Switch!$D$33,INDIRECT(\"a\" & (VLOOKUP(Switch!$D$33,$F$2:$G$44,2,FALSE)+ROW()-2)),\"\")","v":{"$error":"#N/A"}},{"$f":"IF(INDIRECT(\"c\" & (VLOOKUP(Switch!$D$34,$F$2:$G$44,2,FALSE)+ROW()-2))=Switch!$D$34,INDIRECT(\"a\" & (VLOOKUP(Switch!$D$34,$F$2:$G$44,2,FALSE)+ROW()-2)),\"\")","v":{"$error":"#N/A"}},{"$f":"IF(INDIRECT(\"c\" & (VLOOKUP(Switch!$D$35,$F$2:$G$44,2,FALSE)+ROW()-2))=Switch!$D$35,INDIRECT(\"a\" & (VLOOKUP(Switch!$D$35,$F$2:$G$44,2,FALSE)+ROW()-2)),\"\")","v":{"$error":"#N/A"}},{"$f":"IF(INDIRECT(\"c\" & (VLOOKUP(Switch!$D$36,$F$2:$G$44,2,FALSE)+ROW()-2))=Switch!$D$36,INDIRECT(\"a\" & (VLOOKUP(Switch!$D$36,$F$2:$G$44,2,FALSE)+ROW()-2)),\"\")","v":{"$error":"#N/A"}},{"$f":"IF(INDIRECT(\"c\" & (VLOOKUP(Switch!$D$37,$F$2:$G$44,2,FALSE)+ROW()-2))=Switch!$D$37,INDIRECT(\"a\" & (VLOOKUP(Switch!$D$37,$F$2:$G$44,2,FALSE)+ROW()-2)),\"\")","v":{"$error":"#N/A"}},{"$f":"IF(INDIRECT(\"c\" & (VLOOKUP(Switch!$D$38,$F$2:$G$44,2,FALSE)+ROW()-2))=Switch!$D$38,INDIRECT(\"a\" & (VLOOKUP(Switch!$D$38,$F$2:$G$44,2,FALSE)+ROW()-2)),\"\")","v":{"$error":"#N/A"}},{"$f":"IF(INDIRECT(\"c\" & (VLOOKUP(Switch!$D$39,$F$2:$G$44,2,FALSE)+ROW()-2))=Switch!$D$39,INDIRECT(\"a\" & (VLOOKUP(Switch!$D$39,$F$2:$G$44,2,FALSE)+ROW()-2)),\"\")","v":{"$error":"#N/A"}},{"$f":"IF(INDIRECT(\"c\" & (VLOOKUP(Switch!$D$40,$F$2:$G$44,2,FALSE)+ROW()-2))=Switch!$D$40,INDIRECT(\"a\" & (VLOOKUP(Switch!$D$40,$F$2:$G$44,2,FALSE)+ROW()-2)),\"\")","v":{"$error":"#N/A"}},{"$f":"IF(INDIRECT(\"c\" & (VLOOKUP(Switch!$D$52,$F$2:$G$44,2,FALSE)+ROW()-2))=Switch!$D$52,INDIRECT(\"a\" & (VLOOKUP(Switch!$D$52,$F$2:$G$44,2,FALSE)+ROW()-2)),\"\")","v":{"$error":"#N/A"}},{"$f":"IF(INDIRECT(\"c\" & (VLOOKUP(Switch!$D$53,$F$2:$G$44,2,FALSE)+ROW()-2))=Switch!$D$53,INDIRECT(\"a\" & (VLOOKUP(Switch!$D$53,$F$2:$G$44,2,FALSE)+ROW()-2)),\"\")","v":{"$error":"#N/A"}},{"$f":"IF(INDIRECT(\"c\" & (VLOOKUP(Switch!$D$54,$F$2:$G$44,2,FALSE)+ROW()-2))=Switch!$D$54,INDIRECT(\"a\" & (VLOOKUP(Switch!$D$54,$F$2:$G$44,2,FALSE)+ROW()-2)),\"\")","v":{"$error":"#N/A"}},{"$f":"IF(INDIRECT(\"c\" & (VLOOKUP(Switch!$D$55,$F$2:$G$44,2,FALSE)+ROW()-2))=Switch!$D$55,INDIRECT(\"a\" & (VLOOKUP(Switch!$D$55,$F$2:$G$44,2,FALSE)+ROW()-2)),\"\")","v":{"$error":"#N/A"}},{"$f":"IF(INDIRECT(\"c\" & (VLOOKUP(Switch!$D$56,$F$2:$G$44,2,FALSE)+ROW()-2))=Switch!$D$56,INDIRECT(\"a\" & (VLOOKUP(Switch!$D$56,$F$2:$G$44,2,FALSE)+ROW()-2)),\"\")","v":{"$error":"#N/A"}},{"$f":"IF(INDIRECT(\"c\" & (VLOOKUP(Switch!$D$57,$F$2:$G$44,2,FALSE)+ROW()-2))=Switch!$D$57,INDIRECT(\"a\" & (VLOOKUP(Switch!$D$57,$F$2:$G$44,2,FALSE)+ROW()-2)),\"\")","v":{"$error":"#N/A"}},{"$f":"IF(INDIRECT(\"c\" & (VLOOKUP(Switch!$D$58,$F$2:$G$44,2,FALSE)+ROW()-2))=Switch!$D$58,INDIRECT(\"a\" & (VLOOKUP(Switch!$D$58,$F$2:$G$44,2,FALSE)+ROW()-2)),\"\")","v":{"$error":"#N/A"}},{"$f":"IF(INDIRECT(\"c\" & (VLOOKUP(Switch!$D$59,$F$2:$G$44,2,FALSE)+ROW()-2))=Switch!$D$59,INDIRECT(\"a\" & (VLOOKUP(Switch!$D$59,$F$2:$G$44,2,FALSE)+ROW()-2)),\"\")","v":{"$error":"#N/A"}},{"$f":"IF(INDIRECT(\"c\" & (VLOOKUP(Switch!$D$60,$F$2:$G$44,2,FALSE)+ROW()-2))=Switch!$D$60,INDIRECT(\"a\" & (VLOOKUP(Switch!$D$60,$F$2:$G$44,2,FALSE)+ROW()-2)),\"\")","v":{"$error":"#N/A"}},{"$f":"IF(INDIRECT(\"c\" & (VLOOKUP(Switch!$D$61,$F$2:$G$44,2,FALSE)+ROW()-2))=Switch!$D$61,INDIRECT(\"a\" & (VLOOKUP(Switch!$D$61,$F$2:$G$44,2,FALSE)+ROW()-2)),\"\")","v":{"$error":"#N/A"}},{"$f":"IF(INDIRECT(\"c\" & (VLOOKUP(Switch!$D$62,$F$2:$G$44,2,FALSE)+ROW()-2))=Switch!$D$62,INDIRECT(\"a\" & (VLOOKUP(Switch!$D$62,$F$2:$G$44,2,FALSE)+ROW()-2)),\"\")","v":{"$error":"#N/A"}},{"$f":"IF(INDIRECT(\"c\" & (VLOOKUP(Switch!$D$63,$F$2:$G$44,2,FALSE)+ROW()-2))=Switch!$D$63,INDIRECT(\"a\" & (VLOOKUP(Switch!$D$63,$F$2:$G$44,2,FALSE)+ROW()-2)),\"\")","v":{"$error":"#N/A"}},{"$f":"IF(INDIRECT(\"c\" & (VLOOKUP(Switch!$D$64,$F$2:$G$44,2,FALSE)+ROW()-2))=Switch!$D$64,INDIRECT(\"a\" & (VLOOKUP(Switch!$D$64,$F$2:$G$44,2,FALSE)+ROW()-2)),\"\")","v":{"$error":"#N/A"}},{"$f":"IF(INDIRECT(\"c\" & (VLOOKUP(Switch!$D$65,$F$2:$G$44,2,FALSE)+ROW()-2))=Switch!$D$65,INDIRECT(\"a\" & (VLOOKUP(Switch!$D$65,$F$2:$G$44,2,FALSE)+ROW()-2)),\"\")","v":{"$error":"#N/A"}},{"$f":"IF(INDIRECT(\"c\" & (VLOOKUP(Switch!$D$66,$F$2:$G$44,2,FALSE)+ROW()-2))=Switch!$D$66,INDIRECT(\"a\" & (VLOOKUP(Switch!$D$66,$F$2:$G$44,2,FALSE)+ROW()-2)),\"\")","v":{"$error":"#N/A"}}]
["Melville Douglas STANLIB Balanced Fund B1","MDDB1","STANLIB Collective Investments",{"$f":"ROW()","v":12},null,"Foord Unit Trusts Ltd",{"$f":"VLOOKUP(F12,$C$2:$D$637,2,FALSE)","v":248},{"$f":"IF(INDIRECT(\"c\" & (VLOOKUP(Switch!$D$26,$F$2:$G$44,2,FALSE)+ROW()-2))=Switch!$D$26,INDIRECT(\"a\" & (VLOOKUP(Switch!$D$26,$F$2:$G$44,2,FALSE)+ROW()-2)),\"\")","v":{"$error":"#N/A"}},{"$f":"IF(INDIRECT(\"c\" & (VLOOKUP(Switch!$D$27,$F$2:$G$44,2,FALSE)+ROW()-2))=Switch!$D$27,INDIRECT(\"a\" & (VLOOKUP(Switch!$D$27,$F$2:$G$44,2,FALSE)+ROW()-2)),\"\")","v":{"$error":"#N/A"}},{"$f":"IF(INDIRECT(\"c\" & (VLOOKUP(Switch!$D$28,$F$2:$G$44,2,FALSE)+ROW()-2))=Switch!$D$28,INDIRECT(\"a\" & (VLOOKUP(Switch!$D$28,$F$2:$G$44,2,FALSE)+ROW()-2)),\"\")","v":{"$error":"#N/A"}},{"$f":"IF(INDIRECT(\"c\" & (VLOOKUP(Switch!$D$29,$F$2:$G$44,2,FALSE)+ROW()-2))=Switch!$D$29,INDIRECT(\"a\" & (VLOOKUP(Switch!$D$29,$F$2:$G$44,2,FALSE)+ROW()-2)),\"\")","v":{"$error":"#N/A"}},{"$f":"IF(INDIRECT(\"c\" & (VLOOKUP(Switch!$D$30,$F$2:$G$44,2,FALSE)+ROW()-2))=Switch!$D$30,INDIRECT(\"a\" & (VLOOKUP(Switch!$D$30,$F$2:$G$44,2,FALSE)+ROW()-2)),\"\")","v":{"$error":"#N/A"}},{"$f":"IF(INDIRECT(\"c\" & (VLOOKUP(Switch!$D$31,$F$2:$G$44,2,FALSE)+ROW()-2))=Switch!$D$31,INDIRECT(\"a\" & (VLOOKUP(Switch!$D$31,$F$2:$G$44,2,FALSE)+ROW()-2)),\"\")","v":{"$error":"#N/A"}},{"$f":"IF(INDIRECT(\"c\" & (VLOOKUP(Switch!$D$32,$F$2:$G$44,2,FALSE)+ROW()-2))=Switch!$D$32,INDIRECT(\"a\" & (VLOOKUP(Switch!$D$32,$F$2:$G$44,2,FALSE)+ROW()-2)),\"\")","v":{"$error":"#N/A"}},{"$f":"IF(INDIRECT(\"c\" & (VLOOKUP(Switch!$D$33,$F$2:$G$44,2,FALSE)+ROW()-2))=Switch!$D$33,INDIRECT(\"a\" & (VLOOKUP(Switch!$D$33,$F$2:$G$44,2,FALSE)+ROW()-2)),\"\")","v":{"$error":"#N/A"}},{"$f":"IF(INDIRECT(\"c\" & (VLOOKUP(Switch!$D$34,$F$2:$G$44,2,FALSE)+ROW()-2))=Switch!$D$34,INDIRECT(\"a\" & (VLOOKUP(Switch!$D$34,$F$2:$G$44,2,FALSE)+ROW()-2)),\"\")","v":{"$error":"#N/A"}},{"$f":"IF(INDIRECT(\"c\" & (VLOOKUP(Switch!$D$35,$F$2:$G$44,2,FALSE)+ROW()-2))=Switch!$D$35,INDIRECT(\"a\" & (VLOOKUP(Switch!$D$35,$F$2:$G$44,2,FALSE)+ROW()-2)),\"\")","v":{"$error":"#N/A"}},{"$f":"IF(INDIRECT(\"c\" & (VLOOKUP(Switch!$D$36,$F$2:$G$44,2,FALSE)+ROW()-2))=Switch!$D$36,INDIRECT(\"a\" & (VLOOKUP(Switch!$D$36,$F$2:$G$44,2,FALSE)+ROW()-2)),\"\")","v":{"$error":"#N/A"}},{"$f":"IF(INDIRECT(\"c\" & (VLOOKUP(Switch!$D$37,$F$2:$G$44,2,FALSE)+ROW()-2))=Switch!$D$37,INDIRECT(\"a\" & (VLOOKUP(Switch!$D$37,$F$2:$G$44,2,FALSE)+ROW()-2)),\"\")","v":{"$error":"#N/A"}},{"$f":"IF(INDIRECT(\"c\" & (VLOOKUP(Switch!$D$38,$F$2:$G$44,2,FALSE)+ROW()-2))=Switch!$D$38,INDIRECT(\"a\" & (VLOOKUP(Switch!$D$38,$F$2:$G$44,2,FALSE)+ROW()-2)),\"\")","v":{"$error":"#N/A"}},{"$f":"IF(INDIRECT(\"c\" & (VLOOKUP(Switch!$D$39,$F$2:$G$44,2,FALSE)+ROW()-2))=Switch!$D$39,INDIRECT(\"a\" & (VLOOKUP(Switch!$D$39,$F$2:$G$44,2,FALSE)+ROW()-2)),\"\")","v":{"$error":"#N/A"}},{"$f":"IF(INDIRECT(\"c\" & (VLOOKUP(Switch!$D$40,$F$2:$G$44,2,FALSE)+ROW()-2))=Switch!$D$40,INDIRECT(\"a\" & (VLOOKUP(Switch!$D$40,$F$2:$G$44,2,FALSE)+ROW()-2)),\"\")","v":{"$error":"#N/A"}},{"$f":"IF(INDIRECT(\"c\" & (VLOOKUP(Switch!$D$52,$F$2:$G$44,2,FALSE)+ROW()-2))=Switch!$D$52,INDIRECT(\"a\" & (VLOOKUP(Switch!$D$52,$F$2:$G$44,2,FALSE)+ROW()-2)),\"\")","v":{"$error":"#N/A"}},{"$f":"IF(INDIRECT(\"c\" & (VLOOKUP(Switch!$D$53,$F$2:$G$44,2,FALSE)+ROW()-2))=Switch!$D$53,INDIRECT(\"a\" & (VLOOKUP(Switch!$D$53,$F$2:$G$44,2,FALSE)+ROW()-2)),\"\")","v":{"$error":"#N/A"}},{"$f":"IF(INDIRECT(\"c\" & (VLOOKUP(Switch!$D$54,$F$2:$G$44,2,FALSE)+ROW()-2))=Switch!$D$54,INDIRECT(\"a\" & (VLOOKUP(Switch!$D$54,$F$2:$G$44,2,FALSE)+ROW()-2)),\"\")","v":{"$error":"#N/A"}},{"$f":"IF(INDIRECT(\"c\" & (VLOOKUP(Switch!$D$55,$F$2:$G$44,2,FALSE)+ROW()-2))=Switch!$D$55,INDIRECT(\"a\" & (VLOOKUP(Switch!$D$55,$F$2:$G$44,2,FALSE)+ROW()-2)),\"\")","v":{"$error":"#N/A"}},{"$f":"IF(INDIRECT(\"c\" & (VLOOKUP(Switch!$D$56,$F$2:$G$44,2,FALSE)+ROW()-2))=Switch!$D$56,INDIRECT(\"a\" & (VLOOKUP(Switch!$D$56,$F$2:$G$44,2,FALSE)+ROW()-2)),\"\")","v":{"$error":"#N/A"}},{"$f":"IF(INDIRECT(\"c\" & (VLOOKUP(Switch!$D$57,$F$2:$G$44,2,FALSE)+ROW()-2))=Switch!$D$57,INDIRECT(\"a\" & (VLOOKUP(Switch!$D$57,$F$2:$G$44,2,FALSE)+ROW()-2)),\"\")","v":{"$error":"#N/A"}},{"$f":"IF(INDIRECT(\"c\" & (VLOOKUP(Switch!$D$58,$F$2:$G$44,2,FALSE)+ROW()-2))=Switch!$D$58,INDIRECT(\"a\" & (VLOOKUP(Switch!$D$58,$F$2:$G$44,2,FALSE)+ROW()-2)),\"\")","v":{"$error":"#N/A"}},{"$f":"IF(INDIRECT(\"c\" & (VLOOKUP(Switch!$D$59,$F$2:$G$44,2,FALSE)+ROW()-2))=Switch!$D$59,INDIRECT(\"a\" & (VLOOKUP(Switch!$D$59,$F$2:$G$44,2,FALSE)+ROW()-2)),\"\")","v":{"$error":"#N/A"}},{"$f":"IF(INDIRECT(\"c\" & (VLOOKUP(Switch!$D$60,$F$2:$G$44,2,FALSE)+ROW()-2))=Switch!$D$60,INDIRECT(\"a\" & (VLOOKUP(Switch!$D$60,$F$2:$G$44,2,FALSE)+ROW()-2)),\"\")","v":{"$error":"#N/A"}},{"$f":"IF(INDIRECT(\"c\" & (VLOOKUP(Switch!$D$61,$F$2:$G$44,2,FALSE)+ROW()-2))=Switch!$D$61,INDIRECT(\"a\" & (VLOOKUP(Switch!$D$61,$F$2:$G$44,2,FALSE)+ROW()-2)),\"\")","v":{"$error":"#N/A"}},{"$f":"IF(INDIRECT(\"c\" & (VLOOKUP(Switch!$D$62,$F$2:$G$44,2,FALSE)+ROW()-2))=Switch!$D$62,INDIRECT(\"a\" & (VLOOKUP(Switch!$D$62,$F$2:$G$44,2,FALSE)+ROW()-2)),\"\")","v":{"$error":"#N/A"}},{"$f":"IF(INDIRECT(\"c\" & (VLOOKUP(Switch!$D$63,$F$2:$G$44,2,FALSE)+ROW()-2))=Switch!$D$63,INDIRECT(\"a\" & (VLOOKUP(Switch!$D$63,$F$2:$G$44,2,FALSE)+ROW()-2)),\"\")","v":{"$error":"#N/A"}},{"$f":"IF(INDIRECT(\"c\" & (VLOOKUP(Switch!$D$64,$F$2:$G$44,2,FALSE)+ROW()-2))=Switch!$D$64,INDIRECT(\"a\" & (VLOOKUP(Switch!$D$64,$F$2:$G$44,2,FALSE)+ROW()-2)),\"\")","v":{"$error":"#N/A"}},{"$f":"IF(INDIRECT(\"c\" & (VLOOKUP(Switch!$D$65,$F$2:$G$44,2,FALSE)+ROW()-2))=Switch!$D$65,INDIRECT(\"a\" & (VLOOKUP(Switch!$D$65,$F$2:$G$44,2,FALSE)+ROW()-2)),\"\")","v":{"$error":"#N/A"}},{"$f":"IF(INDIRECT(\"c\" & (VLOOKUP(Switch!$D$66,$F$2:$G$44,2,FALSE)+ROW()-2))=Switch!$D$66,INDIRECT(\"a\" & (VLOOKUP(Switch!$D$66,$F$2:$G$44,2,FALSE)+ROW()-2)),\"\")","v":{"$error":"#N/A"}}]
["Melville Douglas STANLIB High Alpha Fund","MDHFA","STANLIB Collective Investments",{"$f":"ROW()","v":13},null,"Grant Thornton Capital (Pty) Ltd",{"$f":"VLOOKUP(F13,$C$2:$D$637,2,FALSE)","v":253},{"$f":"IF(INDIRECT(\"c\" & (VLOOKUP(Switch!$D$26,$F$2:$G$44,2,FALSE)+ROW()-2))=Switch!$D$26,INDIRECT(\"a\" & (VLOOKUP(Switch!$D$26,$F$2:$G$44,2,FALSE)+ROW()-2)),\"\")","v":{"$error":"#N/A"}},{"$f":"IF(INDIRECT(\"c\" & (VLOOKUP(Switch!$D$27,$F$2:$G$44,2,FALSE)+ROW()-2))=Switch!$D$27,INDIRECT(\"a\" & (VLOOKUP(Switch!$D$27,$F$2:$G$44,2,FALSE)+ROW()-2)),\"\")","v":{"$error":"#N/A"}},{"$f":"IF(INDIRECT(\"c\" & (VLOOKUP(Switch!$D$28,$F$2:$G$44,2,FALSE)+ROW()-2))=Switch!$D$28,INDIRECT(\"a\" & (VLOOKUP(Switch!$D$28,$F$2:$G$44,2,FALSE)+ROW()-2)),\"\")","v":{"$error":"#N/A"}},{"$f":"IF(INDIRECT(\"c\" & (VLOOKUP(Switch!$D$29,$F$2:$G$44,2,FALSE)+ROW()-2))=Switch!$D$29,INDIRECT(\"a\" & (VLOOKUP(Switch!$D$29,$F$2:$G$44,2,FALSE)+ROW()-2)),\"\")","v":{"$error":"#N/A"}},{"$f":"IF(INDIRECT(\"c\" & (VLOOKUP(Switch!$D$30,$F$2:$G$44,2,FALSE)+ROW()-2))=Switch!$D$30,INDIRECT(\"a\" & (VLOOKUP(Switch!$D$30,$F$2:$G$44,2,FALSE)+ROW()-2)),\"\")","v":{"$error":"#N/A"}},{"$f":"IF(INDIRECT(\"c\" & (VLOOKUP(Switch!$D$31,$F$2:$G$44,2,FALSE)+ROW()-2))=Switch!$D$31,INDIRECT(\"a\" & (VLOOKUP(Switch!$D$31,$F$2:$G$44,2,FALSE)+ROW()-2)),\"\")","v":{"$error":"#N/A"}},{"$f":"IF(INDIRECT(\"c\" & (VLOOKUP(Switch!$D$32,$F$2:$G$44,2,FALSE)+ROW()-2))=Switch!$D$32,INDIRECT(\"a\" & (VLOOKUP(Switch!$D$32,$F$2:$G$44,2,FALSE)+ROW()-2)),\"\")","v":{"$error":"#N/A"}},{"$f":"IF(INDIRECT(\"c\" & (VLOOKUP(Switch!$D$33,$F$2:$G$44,2,FALSE)+ROW()-2))=Switch!$D$33,INDIRECT(\"a\" & (VLOOKUP(Switch!$D$33,$F$2:$G$44,2,FALSE)+ROW()-2)),\"\")","v":{"$error":"#N/A"}},{"$f":"IF(INDIRECT(\"c\" & (VLOOKUP(Switch!$D$34,$F$2:$G$44,2,FALSE)+ROW()-2))=Switch!$D$34,INDIRECT(\"a\" & (VLOOKUP(Switch!$D$34,$F$2:$G$44,2,FALSE)+ROW()-2)),\"\")","v":{"$error":"#N/A"}},{"$f":"IF(INDIRECT(\"c\" & (VLOOKUP(Switch!$D$35,$F$2:$G$44,2,FALSE)+ROW()-2))=Switch!$D$35,INDIRECT(\"a\" & (VLOOKUP(Switch!$D$35,$F$2:$G$44,2,FALSE)+ROW()-2)),\"\")","v":{"$error":"#N/A"}},{"$f":"IF(INDIRECT(\"c\" & (VLOOKUP(Switch!$D$36,$F$2:$G$44,2,FALSE)+ROW()-2))=Switch!$D$36,INDIRECT(\"a\" & (VLOOKUP(Switch!$D$36,$F$2:$G$44,2,FALSE)+ROW()-2)),\"\")","v":{"$error":"#N/A"}},{"$f":"IF(INDIRECT(\"c\" & (VLOOKUP(Switch!$D$37,$F$2:$G$44,2,FALSE)+ROW()-2))=Switch!$D$37,INDIRECT(\"a\" & (VLOOKUP(Switch!$D$37,$F$2:$G$44,2,FALSE)+ROW()-2)),\"\")","v":{"$error":"#N/A"}},{"$f":"IF(INDIRECT(\"c\" & (VLOOKUP(Switch!$D$38,$F$2:$G$44,2,FALSE)+ROW()-2))=Switch!$D$38,INDIRECT(\"a\" & (VLOOKUP(Switch!$D$38,$F$2:$G$44,2,FALSE)+ROW()-2)),\"\")","v":{"$error":"#N/A"}},{"$f":"IF(INDIRECT(\"c\" & (VLOOKUP(Switch!$D$39,$F$2:$G$44,2,FALSE)+ROW()-2))=Switch!$D$39,INDIRECT(\"a\" & (VLOOKUP(Switch!$D$39,$F$2:$G$44,2,FALSE)+ROW()-2)),\"\")","v":{"$error":"#N/A"}},{"$f":"IF(INDIRECT(\"c\" & (VLOOKUP(Switch!$D$40,$F$2:$G$44,2,FALSE)+ROW()-2))=Switch!$D$40,INDIRECT(\"a\" & (VLOOKUP(Switch!$D$40,$F$2:$G$44,2,FALSE)+ROW()-2)),\"\")","v":{"$error":"#N/A"}},{"$f":"IF(INDIRECT(\"c\" & (VLOOKUP(Switch!$D$52,$F$2:$G$44,2,FALSE)+ROW()-2))=Switch!$D$52,INDIRECT(\"a\" & (VLOOKUP(Switch!$D$52,$F$2:$G$44,2,FALSE)+ROW()-2)),\"\")","v":{"$error":"#N/A"}},{"$f":"IF(INDIRECT(\"c\" & (VLOOKUP(Switch!$D$53,$F$2:$G$44,2,FALSE)+ROW()-2))=Switch!$D$53,INDIRECT(\"a\" & (VLOOKUP(Switch!$D$53,$F$2:$G$44,2,FALSE)+ROW()-2)),\"\")","v":{"$error":"#N/A"}},{"$f":"IF(INDIRECT(\"c\" & (VLOOKUP(Switch!$D$54,$F$2:$G$44,2,FALSE)+ROW()-2))=Switch!$D$54,INDIRECT(\"a\" & (VLOOKUP(Switch!$D$54,$F$2:$G$44,2,FALSE)+ROW()-2)),\"\")","v":{"$error":"#N/A"}},{"$f":"IF(INDIRECT(\"c\" & (VLOOKUP(Switch!$D$55,$F$2:$G$44,2,FALSE)+ROW()-2))=Switch!$D$55,INDIRECT(\"a\" & (VLOOKUP(Switch!$D$55,$F$2:$G$44,2,FALSE)+ROW()-2)),\"\")","v":{"$error":"#N/A"}},{"$f":"IF(INDIRECT(\"c\" & (VLOOKUP(Switch!$D$56,$F$2:$G$44,2,FALSE)+ROW()-2))=Switch!$D$56,INDIRECT(\"a\" & (VLOOKUP(Switch!$D$56,$F$2:$G$44,2,FALSE)+ROW()-2)),\"\")","v":{"$error":"#N/A"}},{"$f":"IF(INDIRECT(\"c\" & (VLOOKUP(Switch!$D$57,$F$2:$G$44,2,FALSE)+ROW()-2))=Switch!$D$57,INDIRECT(\"a\" & (VLOOKUP(Switch!$D$57,$F$2:$G$44,2,FALSE)+ROW()-2)),\"\")","v":{"$error":"#N/A"}},{"$f":"IF(INDIRECT(\"c\" & (VLOOKUP(Switch!$D$58,$F$2:$G$44,2,FALSE)+ROW()-2))=Switch!$D$58,INDIRECT(\"a\" & (VLOOKUP(Switch!$D$58,$F$2:$G$44,2,FALSE)+ROW()-2)),\"\")","v":{"$error":"#N/A"}},{"$f":"IF(INDIRECT(\"c\" & (VLOOKUP(Switch!$D$59,$F$2:$G$44,2,FALSE)+ROW()-2))=Switch!$D$59,INDIRECT(\"a\" & (VLOOKUP(Switch!$D$59,$F$2:$G$44,2,FALSE)+ROW()-2)),\"\")","v":{"$error":"#N/A"}},{"$f":"IF(INDIRECT(\"c\" & (VLOOKUP(Switch!$D$60,$F$2:$G$44,2,FALSE)+ROW()-2))=Switch!$D$60,INDIRECT(\"a\" & (VLOOKUP(Switch!$D$60,$F$2:$G$44,2,FALSE)+ROW()-2)),\"\")","v":{"$error":"#N/A"}},{"$f":"IF(INDIRECT(\"c\" & (VLOOKUP(Switch!$D$61,$F$2:$G$44,2,FALSE)+ROW()-2))=Switch!$D$61,INDIRECT(\"a\" & (VLOOKUP(Switch!$D$61,$F$2:$G$44,2,FALSE)+ROW()-2)),\"\")","v":{"$error":"#N/A"}},{"$f":"IF(INDIRECT(\"c\" & (VLOOKUP(Switch!$D$62,$F$2:$G$44,2,FALSE)+ROW()-2))=Switch!$D$62,INDIRECT(\"a\" & (VLOOKUP(Switch!$D$62,$F$2:$G$44,2,FALSE)+ROW()-2)),\"\")","v":{"$error":"#N/A"}},{"$f":"IF(INDIRECT(\"c\" & (VLOOKUP(Switch!$D$63,$F$2:$G$44,2,FALSE)+ROW()-2))=Switch!$D$63,INDIRECT(\"a\" & (VLOOKUP(Switch!$D$63,$F$2:$G$44,2,FALSE)+ROW()-2)),\"\")","v":{"$error":"#N/A"}},{"$f":"IF(INDIRECT(\"c\" & (VLOOKUP(Switch!$D$64,$F$2:$G$44,2,FALSE)+ROW()-2))=Switch!$D$64,INDIRECT(\"a\" & (VLOOKUP(Switch!$D$64,$F$2:$G$44,2,FALSE)+ROW()-2)),\"\")","v":{"$error":"#N/A"}},{"$f":"IF(INDIRECT(\"c\" & (VLOOKUP(Switch!$D$65,$F$2:$G$44,2,FALSE)+ROW()-2))=Switch!$D$65,INDIRECT(\"a\" & (VLOOKUP(Switch!$D$65,$F$2:$G$44,2,FALSE)+ROW()-2)),\"\")","v":{"$error":"#N/A"}},{"$f":"IF(INDIRECT(\"c\" & (VLOOKUP(Switch!$D$66,$F$2:$G$44,2,FALSE)+ROW()-2))=Switch!$D$66,INDIRECT(\"a\" & (VLOOKUP(Switch!$D$66,$F$2:$G$44,2,FALSE)+ROW()-2)),\"\")","v":{"$error":"#N/A"}}]
["Melville Douglas STANLIB High Alpha Fund B1","MDHFA","STANLIB Collective Investments",{"$f":"ROW()","v":14},null,"Gryphon Collective Investments (RF) (Pty) Ltd",{"$f":"VLOOKUP(F14,$C$2:$D$637,2,FALSE)","v":256},{"$f":"IF(INDIRECT(\"c\" & (VLOOKUP(Switch!$D$26,$F$2:$G$44,2,FALSE)+ROW()-2))=Switch!$D$26,INDIRECT(\"a\" & (VLOOKUP(Switch!$D$26,$F$2:$G$44,2,FALSE)+ROW()-2)),\"\")","v":{"$error":"#N/A"}},{"$f":"IF(INDIRECT(\"c\" & (VLOOKUP(Switch!$D$27,$F$2:$G$44,2,FALSE)+ROW()-2))=Switch!$D$27,INDIRECT(\"a\" & (VLOOKUP(Switch!$D$27,$F$2:$G$44,2,FALSE)+ROW()-2)),\"\")","v":{"$error":"#N/A"}},{"$f":"IF(INDIRECT(\"c\" & (VLOOKUP(Switch!$D$28,$F$2:$G$44,2,FALSE)+ROW()-2))=Switch!$D$28,INDIRECT(\"a\" & (VLOOKUP(Switch!$D$28,$F$2:$G$44,2,FALSE)+ROW()-2)),\"\")","v":{"$error":"#N/A"}},{"$f":"IF(INDIRECT(\"c\" & (VLOOKUP(Switch!$D$29,$F$2:$G$44,2,FALSE)+ROW()-2))=Switch!$D$29,INDIRECT(\"a\" & (VLOOKUP(Switch!$D$29,$F$2:$G$44,2,FALSE)+ROW()-2)),\"\")","v":{"$error":"#N/A"}},{"$f":"IF(INDIRECT(\"c\" & (VLOOKUP(Switch!$D$30,$F$2:$G$44,2,FALSE)+ROW()-2))=Switch!$D$30,INDIRECT(\"a\" & (VLOOKUP(Switch!$D$30,$F$2:$G$44,2,FALSE)+ROW()-2)),\"\")","v":{"$error":"#N/A"}},{"$f":"IF(INDIRECT(\"c\" & (VLOOKUP(Switch!$D$31,$F$2:$G$44,2,FALSE)+ROW()-2))=Switch!$D$31,INDIRECT(\"a\" & (VLOOKUP(Switch!$D$31,$F$2:$G$44,2,FALSE)+ROW()-2)),\"\")","v":{"$error":"#N/A"}},{"$f":"IF(INDIRECT(\"c\" & (VLOOKUP(Switch!$D$32,$F$2:$G$44,2,FALSE)+ROW()-2))=Switch!$D$32,INDIRECT(\"a\" & (VLOOKUP(Switch!$D$32,$F$2:$G$44,2,FALSE)+ROW()-2)),\"\")","v":{"$error":"#N/A"}},{"$f":"IF(INDIRECT(\"c\" & (VLOOKUP(Switch!$D$33,$F$2:$G$44,2,FALSE)+ROW()-2))=Switch!$D$33,INDIRECT(\"a\" & (VLOOKUP(Switch!$D$33,$F$2:$G$44,2,FALSE)+ROW()-2)),\"\")","v":{"$error":"#N/A"}},{"$f":"IF(INDIRECT(\"c\" & (VLOOKUP(Switch!$D$34,$F$2:$G$44,2,FALSE)+ROW()-2))=Switch!$D$34,INDIRECT(\"a\" & (VLOOKUP(Switch!$D$34,$F$2:$G$44,2,FALSE)+ROW()-2)),\"\")","v":{"$error":"#N/A"}},{"$f":"IF(INDIRECT(\"c\" & (VLOOKUP(Switch!$D$35,$F$2:$G$44,2,FALSE)+ROW()-2))=Switch!$D$35,INDIRECT(\"a\" & (VLOOKUP(Switch!$D$35,$F$2:$G$44,2,FALSE)+ROW()-2)),\"\")","v":{"$error":"#N/A"}},{"$f":"IF(INDIRECT(\"c\" & (VLOOKUP(Switch!$D$36,$F$2:$G$44,2,FALSE)+ROW()-2))=Switch!$D$36,INDIRECT(\"a\" & (VLOOKUP(Switch!$D$36,$F$2:$G$44,2,FALSE)+ROW()-2)),\"\")","v":{"$error":"#N/A"}},{"$f":"IF(INDIRECT(\"c\" & (VLOOKUP(Switch!$D$37,$F$2:$G$44,2,FALSE)+ROW()-2))=Switch!$D$37,INDIRECT(\"a\" & (VLOOKUP(Switch!$D$37,$F$2:$G$44,2,FALSE)+ROW()-2)),\"\")","v":{"$error":"#N/A"}},{"$f":"IF(INDIRECT(\"c\" & (VLOOKUP(Switch!$D$38,$F$2:$G$44,2,FALSE)+ROW()-2))=Switch!$D$38,INDIRECT(\"a\" & (VLOOKUP(Switch!$D$38,$F$2:$G$44,2,FALSE)+ROW()-2)),\"\")","v":{"$error":"#N/A"}},{"$f":"IF(INDIRECT(\"c\" & (VLOOKUP(Switch!$D$39,$F$2:$G$44,2,FALSE)+ROW()-2))=Switch!$D$39,INDIRECT(\"a\" & (VLOOKUP(Switch!$D$39,$F$2:$G$44,2,FALSE)+ROW()-2)),\"\")","v":{"$error":"#N/A"}},{"$f":"IF(INDIRECT(\"c\" & (VLOOKUP(Switch!$D$40,$F$2:$G$44,2,FALSE)+ROW()-2))=Switch!$D$40,INDIRECT(\"a\" & (VLOOKUP(Switch!$D$40,$F$2:$G$44,2,FALSE)+ROW()-2)),\"\")","v":{"$error":"#N/A"}},{"$f":"IF(INDIRECT(\"c\" & (VLOOKUP(Switch!$D$52,$F$2:$G$44,2,FALSE)+ROW()-2))=Switch!$D$52,INDIRECT(\"a\" & (VLOOKUP(Switch!$D$52,$F$2:$G$44,2,FALSE)+ROW()-2)),\"\")","v":{"$error":"#N/A"}},{"$f":"IF(INDIRECT(\"c\" & (VLOOKUP(Switch!$D$53,$F$2:$G$44,2,FALSE)+ROW()-2))=Switch!$D$53,INDIRECT(\"a\" & (VLOOKUP(Switch!$D$53,$F$2:$G$44,2,FALSE)+ROW()-2)),\"\")","v":{"$error":"#N/A"}},{"$f":"IF(INDIRECT(\"c\" & (VLOOKUP(Switch!$D$54,$F$2:$G$44,2,FALSE)+ROW()-2))=Switch!$D$54,INDIRECT(\"a\" & (VLOOKUP(Switch!$D$54,$F$2:$G$44,2,FALSE)+ROW()-2)),\"\")","v":{"$error":"#N/A"}},{"$f":"IF(INDIRECT(\"c\" & (VLOOKUP(Switch!$D$55,$F$2:$G$44,2,FALSE)+ROW()-2))=Switch!$D$55,INDIRECT(\"a\" & (VLOOKUP(Switch!$D$55,$F$2:$G$44,2,FALSE)+ROW()-2)),\"\")","v":{"$error":"#N/A"}},{"$f":"IF(INDIRECT(\"c\" & (VLOOKUP(Switch!$D$56,$F$2:$G$44,2,FALSE)+ROW()-2))=Switch!$D$56,INDIRECT(\"a\" & (VLOOKUP(Switch!$D$56,$F$2:$G$44,2,FALSE)+ROW()-2)),\"\")","v":{"$error":"#N/A"}},{"$f":"IF(INDIRECT(\"c\" & (VLOOKUP(Switch!$D$57,$F$2:$G$44,2,FALSE)+ROW()-2))=Switch!$D$57,INDIRECT(\"a\" & (VLOOKUP(Switch!$D$57,$F$2:$G$44,2,FALSE)+ROW()-2)),\"\")","v":{"$error":"#N/A"}},{"$f":"IF(INDIRECT(\"c\" & (VLOOKUP(Switch!$D$58,$F$2:$G$44,2,FALSE)+ROW()-2))=Switch!$D$58,INDIRECT(\"a\" & (VLOOKUP(Switch!$D$58,$F$2:$G$44,2,FALSE)+ROW()-2)),\"\")","v":{"$error":"#N/A"}},{"$f":"IF(INDIRECT(\"c\" & (VLOOKUP(Switch!$D$59,$F$2:$G$44,2,FALSE)+ROW()-2))=Switch!$D$59,INDIRECT(\"a\" & (VLOOKUP(Switch!$D$59,$F$2:$G$44,2,FALSE)+ROW()-2)),\"\")","v":{"$error":"#N/A"}},{"$f":"IF(INDIRECT(\"c\" & (VLOOKUP(Switch!$D$60,$F$2:$G$44,2,FALSE)+ROW()-2))=Switch!$D$60,INDIRECT(\"a\" & (VLOOKUP(Switch!$D$60,$F$2:$G$44,2,FALSE)+ROW()-2)),\"\")","v":{"$error":"#N/A"}},{"$f":"IF(INDIRECT(\"c\" & (VLOOKUP(Switch!$D$61,$F$2:$G$44,2,FALSE)+ROW()-2))=Switch!$D$61,INDIRECT(\"a\" & (VLOOKUP(Switch!$D$61,$F$2:$G$44,2,FALSE)+ROW()-2)),\"\")","v":{"$error":"#N/A"}},{"$f":"IF(INDIRECT(\"c\" & (VLOOKUP(Switch!$D$62,$F$2:$G$44,2,FALSE)+ROW()-2))=Switch!$D$62,INDIRECT(\"a\" & (VLOOKUP(Switch!$D$62,$F$2:$G$44,2,FALSE)+ROW()-2)),\"\")","v":{"$error":"#N/A"}},{"$f":"IF(INDIRECT(\"c\" & (VLOOKUP(Switch!$D$63,$F$2:$G$44,2,FALSE)+ROW()-2))=Switch!$D$63,INDIRECT(\"a\" & (VLOOKUP(Switch!$D$63,$F$2:$G$44,2,FALSE)+ROW()-2)),\"\")","v":{"$error":"#N/A"}},{"$f":"IF(INDIRECT(\"c\" & (VLOOKUP(Switch!$D$64,$F$2:$G$44,2,FALSE)+ROW()-2))=Switch!$D$64,INDIRECT(\"a\" & (VLOOKUP(Switch!$D$64,$F$2:$G$44,2,FALSE)+ROW()-2)),\"\")","v":{"$error":"#N/A"}},{"$f":"IF(INDIRECT(\"c\" & (VLOOKUP(Switch!$D$65,$F$2:$G$44,2,FALSE)+ROW()-2))=Switch!$D$65,INDIRECT(\"a\" & (VLOOKUP(Switch!$D$65,$F$2:$G$44,2,FALSE)+ROW()-2)),\"\")","v":{"$error":"#N/A"}},{"$f":"IF(INDIRECT(\"c\" & (VLOOKUP(Switch!$D$66,$F$2:$G$44,2,FALSE)+ROW()-2))=Switch!$D$66,INDIRECT(\"a\" & (VLOOKUP(Switch!$D$66,$F$2:$G$44,2,FALSE)+ROW()-2)),\"\")","v":{"$error":"#N/A"}}]
["1NVEST ALBI (NON TR) Index Tracker Fund B1","SITB1","STANLIB Collective Investments",{"$f":"ROW()","v":15},null,"Investec Fund Managers",{"$f":"VLOOKUP(F15,$C$2:$D$637,2,FALSE)","v":258},{"$f":"IF(INDIRECT(\"c\" & (VLOOKUP(Switch!$D$26,$F$2:$G$44,2,FALSE)+ROW()-2))=Switch!$D$26,INDIRECT(\"a\" & (VLOOKUP(Switch!$D$26,$F$2:$G$44,2,FALSE)+ROW()-2)),\"\")","v":{"$error":"#N/A"}},{"$f":"IF(INDIRECT(\"c\" & (VLOOKUP(Switch!$D$27,$F$2:$G$44,2,FALSE)+ROW()-2))=Switch!$D$27,INDIRECT(\"a\" & (VLOOKUP(Switch!$D$27,$F$2:$G$44,2,FALSE)+ROW()-2)),\"\")","v":{"$error":"#N/A"}},{"$f":"IF(INDIRECT(\"c\" & (VLOOKUP(Switch!$D$28,$F$2:$G$44,2,FALSE)+ROW()-2))=Switch!$D$28,INDIRECT(\"a\" & (VLOOKUP(Switch!$D$28,$F$2:$G$44,2,FALSE)+ROW()-2)),\"\")","v":{"$error":"#N/A"}},{"$f":"IF(INDIRECT(\"c\" & (VLOOKUP(Switch!$D$29,$F$2:$G$44,2,FALSE)+ROW()-2))=Switch!$D$29,INDIRECT(\"a\" & (VLOOKUP(Switch!$D$29,$F$2:$G$44,2,FALSE)+ROW()-2)),\"\")","v":{"$error":"#N/A"}},{"$f":"IF(INDIRECT(\"c\" & (VLOOKUP(Switch!$D$30,$F$2:$G$44,2,FALSE)+ROW()-2))=Switch!$D$30,INDIRECT(\"a\" & (VLOOKUP(Switch!$D$30,$F$2:$G$44,2,FALSE)+ROW()-2)),\"\")","v":{"$error":"#N/A"}},{"$f":"IF(INDIRECT(\"c\" & (VLOOKUP(Switch!$D$31,$F$2:$G$44,2,FALSE)+ROW()-2))=Switch!$D$31,INDIRECT(\"a\" & (VLOOKUP(Switch!$D$31,$F$2:$G$44,2,FALSE)+ROW()-2)),\"\")","v":{"$error":"#N/A"}},{"$f":"IF(INDIRECT(\"c\" & (VLOOKUP(Switch!$D$32,$F$2:$G$44,2,FALSE)+ROW()-2))=Switch!$D$32,INDIRECT(\"a\" & (VLOOKUP(Switch!$D$32,$F$2:$G$44,2,FALSE)+ROW()-2)),\"\")","v":{"$error":"#N/A"}},{"$f":"IF(INDIRECT(\"c\" & (VLOOKUP(Switch!$D$33,$F$2:$G$44,2,FALSE)+ROW()-2))=Switch!$D$33,INDIRECT(\"a\" & (VLOOKUP(Switch!$D$33,$F$2:$G$44,2,FALSE)+ROW()-2)),\"\")","v":{"$error":"#N/A"}},{"$f":"IF(INDIRECT(\"c\" & (VLOOKUP(Switch!$D$34,$F$2:$G$44,2,FALSE)+ROW()-2))=Switch!$D$34,INDIRECT(\"a\" & (VLOOKUP(Switch!$D$34,$F$2:$G$44,2,FALSE)+ROW()-2)),\"\")","v":{"$error":"#N/A"}},{"$f":"IF(INDIRECT(\"c\" & (VLOOKUP(Switch!$D$35,$F$2:$G$44,2,FALSE)+ROW()-2))=Switch!$D$35,INDIRECT(\"a\" & (VLOOKUP(Switch!$D$35,$F$2:$G$44,2,FALSE)+ROW()-2)),\"\")","v":{"$error":"#N/A"}},{"$f":"IF(INDIRECT(\"c\" & (VLOOKUP(Switch!$D$36,$F$2:$G$44,2,FALSE)+ROW()-2))=Switch!$D$36,INDIRECT(\"a\" & (VLOOKUP(Switch!$D$36,$F$2:$G$44,2,FALSE)+ROW()-2)),\"\")","v":{"$error":"#N/A"}},{"$f":"IF(INDIRECT(\"c\" & (VLOOKUP(Switch!$D$37,$F$2:$G$44,2,FALSE)+ROW()-2))=Switch!$D$37,INDIRECT(\"a\" & (VLOOKUP(Switch!$D$37,$F$2:$G$44,2,FALSE)+ROW()-2)),\"\")","v":{"$error":"#N/A"}},{"$f":"IF(INDIRECT(\"c\" & (VLOOKUP(Switch!$D$38,$F$2:$G$44,2,FALSE)+ROW()-2))=Switch!$D$38,INDIRECT(\"a\" & (VLOOKUP(Switch!$D$38,$F$2:$G$44,2,FALSE)+ROW()-2)),\"\")","v":{"$error":"#N/A"}},{"$f":"IF(INDIRECT(\"c\" & (VLOOKUP(Switch!$D$39,$F$2:$G$44,2,FALSE)+ROW()-2))=Switch!$D$39,INDIRECT(\"a\" & (VLOOKUP(Switch!$D$39,$F$2:$G$44,2,FALSE)+ROW()-2)),\"\")","v":{"$error":"#N/A"}},{"$f":"IF(INDIRECT(\"c\" & (VLOOKUP(Switch!$D$40,$F$2:$G$44,2,FALSE)+ROW()-2))=Switch!$D$40,INDIRECT(\"a\" & (VLOOKUP(Switch!$D$40,$F$2:$G$44,2,FALSE)+ROW()-2)),\"\")","v":{"$error":"#N/A"}},{"$f":"IF(INDIRECT(\"c\" & (VLOOKUP(Switch!$D$52,$F$2:$G$44,2,FALSE)+ROW()-2))=Switch!$D$52,INDIRECT(\"a\" & (VLOOKUP(Switch!$D$52,$F$2:$G$44,2,FALSE)+ROW()-2)),\"\")","v":{"$error":"#N/A"}},{"$f":"IF(INDIRECT(\"c\" & (VLOOKUP(Switch!$D$53,$F$2:$G$44,2,FALSE)+ROW()-2))=Switch!$D$53,INDIRECT(\"a\" & (VLOOKUP(Switch!$D$53,$F$2:$G$44,2,FALSE)+ROW()-2)),\"\")","v":{"$error":"#N/A"}},{"$f":"IF(INDIRECT(\"c\" & (VLOOKUP(Switch!$D$54,$F$2:$G$44,2,FALSE)+ROW()-2))=Switch!$D$54,INDIRECT(\"a\" & (VLOOKUP(Switch!$D$54,$F$2:$G$44,2,FALSE)+ROW()-2)),\"\")","v":{"$error":"#N/A"}},{"$f":"IF(INDIRECT(\"c\" & (VLOOKUP(Switch!$D$55,$F$2:$G$44,2,FALSE)+ROW()-2))=Switch!$D$55,INDIRECT(\"a\" & (VLOOKUP(Switch!$D$55,$F$2:$G$44,2,FALSE)+ROW()-2)),\"\")","v":{"$error":"#N/A"}},{"$f":"IF(INDIRECT(\"c\" & (VLOOKUP(Switch!$D$56,$F$2:$G$44,2,FALSE)+ROW()-2))=Switch!$D$56,INDIRECT(\"a\" & (VLOOKUP(Switch!$D$56,$F$2:$G$44,2,FALSE)+ROW()-2)),\"\")","v":{"$error":"#N/A"}},{"$f":"IF(INDIRECT(\"c\" & (VLOOKUP(Switch!$D$57,$F$2:$G$44,2,FALSE)+ROW()-2))=Switch!$D$57,INDIRECT(\"a\" & (VLOOKUP(Switch!$D$57,$F$2:$G$44,2,FALSE)+ROW()-2)),\"\")","v":{"$error":"#N/A"}},{"$f":"IF(INDIRECT(\"c\" & (VLOOKUP(Switch!$D$58,$F$2:$G$44,2,FALSE)+ROW()-2))=Switch!$D$58,INDIRECT(\"a\" & (VLOOKUP(Switch!$D$58,$F$2:$G$44,2,FALSE)+ROW()-2)),\"\")","v":{"$error":"#N/A"}},{"$f":"IF(INDIRECT(\"c\" & (VLOOKUP(Switch!$D$59,$F$2:$G$44,2,FALSE)+ROW()-2))=Switch!$D$59,INDIRECT(\"a\" & (VLOOKUP(Switch!$D$59,$F$2:$G$44,2,FALSE)+ROW()-2)),\"\")","v":{"$error":"#N/A"}},{"$f":"IF(INDIRECT(\"c\" & (VLOOKUP(Switch!$D$60,$F$2:$G$44,2,FALSE)+ROW()-2))=Switch!$D$60,INDIRECT(\"a\" & (VLOOKUP(Switch!$D$60,$F$2:$G$44,2,FALSE)+ROW()-2)),\"\")","v":{"$error":"#N/A"}},{"$f":"IF(INDIRECT(\"c\" & (VLOOKUP(Switch!$D$61,$F$2:$G$44,2,FALSE)+ROW()-2))=Switch!$D$61,INDIRECT(\"a\" & (VLOOKUP(Switch!$D$61,$F$2:$G$44,2,FALSE)+ROW()-2)),\"\")","v":{"$error":"#N/A"}},{"$f":"IF(INDIRECT(\"c\" & (VLOOKUP(Switch!$D$62,$F$2:$G$44,2,FALSE)+ROW()-2))=Switch!$D$62,INDIRECT(\"a\" & (VLOOKUP(Switch!$D$62,$F$2:$G$44,2,FALSE)+ROW()-2)),\"\")","v":{"$error":"#N/A"}},{"$f":"IF(INDIRECT(\"c\" & (VLOOKUP(Switch!$D$63,$F$2:$G$44,2,FALSE)+ROW()-2))=Switch!$D$63,INDIRECT(\"a\" & (VLOOKUP(Switch!$D$63,$F$2:$G$44,2,FALSE)+ROW()-2)),\"\")","v":{"$error":"#N/A"}},{"$f":"IF(INDIRECT(\"c\" & (VLOOKUP(Switch!$D$64,$F$2:$G$44,2,FALSE)+ROW()-2))=Switch!$D$64,INDIRECT(\"a\" & (VLOOKUP(Switch!$D$64,$F$2:$G$44,2,FALSE)+ROW()-2)),\"\")","v":{"$error":"#N/A"}},{"$f":"IF(INDIRECT(\"c\" & (VLOOKUP(Switch!$D$65,$F$2:$G$44,2,FALSE)+ROW()-2))=Switch!$D$65,INDIRECT(\"a\" & (VLOOKUP(Switch!$D$65,$F$2:$G$44,2,FALSE)+ROW()-2)),\"\")","v":{"$error":"#N/A"}},{"$f":"IF(INDIRECT(\"c\" & (VLOOKUP(Switch!$D$66,$F$2:$G$44,2,FALSE)+ROW()-2))=Switch!$D$66,INDIRECT(\"a\" & (VLOOKUP(Switch!$D$66,$F$2:$G$44,2,FALSE)+ROW()-2)),\"\")","v":{"$error":"#N/A"}}]
["1NVEST ALSI 40 Fund A","SLAFB1","STANLIB Collective Investments",{"$f":"ROW()","v":16},null,"IP Management Company (Pty) Ltd",{"$f":"VLOOKUP(F16,$C$2:$D$637,2,FALSE)","v":279},{"$f":"IF(INDIRECT(\"c\" & (VLOOKUP(Switch!$D$26,$F$2:$G$44,2,FALSE)+ROW()-2))=Switch!$D$26,INDIRECT(\"a\" & (VLOOKUP(Switch!$D$26,$F$2:$G$44,2,FALSE)+ROW()-2)),\"\")","v":{"$error":"#N/A"}},{"$f":"IF(INDIRECT(\"c\" & (VLOOKUP(Switch!$D$27,$F$2:$G$44,2,FALSE)+ROW()-2))=Switch!$D$27,INDIRECT(\"a\" & (VLOOKUP(Switch!$D$27,$F$2:$G$44,2,FALSE)+ROW()-2)),\"\")","v":{"$error":"#N/A"}},{"$f":"IF(INDIRECT(\"c\" & (VLOOKUP(Switch!$D$28,$F$2:$G$44,2,FALSE)+ROW()-2))=Switch!$D$28,INDIRECT(\"a\" & (VLOOKUP(Switch!$D$28,$F$2:$G$44,2,FALSE)+ROW()-2)),\"\")","v":{"$error":"#N/A"}},{"$f":"IF(INDIRECT(\"c\" & (VLOOKUP(Switch!$D$29,$F$2:$G$44,2,FALSE)+ROW()-2))=Switch!$D$29,INDIRECT(\"a\" & (VLOOKUP(Switch!$D$29,$F$2:$G$44,2,FALSE)+ROW()-2)),\"\")","v":{"$error":"#N/A"}},{"$f":"IF(INDIRECT(\"c\" & (VLOOKUP(Switch!$D$30,$F$2:$G$44,2,FALSE)+ROW()-2))=Switch!$D$30,INDIRECT(\"a\" & (VLOOKUP(Switch!$D$30,$F$2:$G$44,2,FALSE)+ROW()-2)),\"\")","v":{"$error":"#N/A"}},{"$f":"IF(INDIRECT(\"c\" & (VLOOKUP(Switch!$D$31,$F$2:$G$44,2,FALSE)+ROW()-2))=Switch!$D$31,INDIRECT(\"a\" & (VLOOKUP(Switch!$D$31,$F$2:$G$44,2,FALSE)+ROW()-2)),\"\")","v":{"$error":"#N/A"}},{"$f":"IF(INDIRECT(\"c\" & (VLOOKUP(Switch!$D$32,$F$2:$G$44,2,FALSE)+ROW()-2))=Switch!$D$32,INDIRECT(\"a\" & (VLOOKUP(Switch!$D$32,$F$2:$G$44,2,FALSE)+ROW()-2)),\"\")","v":{"$error":"#N/A"}},{"$f":"IF(INDIRECT(\"c\" & (VLOOKUP(Switch!$D$33,$F$2:$G$44,2,FALSE)+ROW()-2))=Switch!$D$33,INDIRECT(\"a\" & (VLOOKUP(Switch!$D$33,$F$2:$G$44,2,FALSE)+ROW()-2)),\"\")","v":{"$error":"#N/A"}},{"$f":"IF(INDIRECT(\"c\" & (VLOOKUP(Switch!$D$34,$F$2:$G$44,2,FALSE)+ROW()-2))=Switch!$D$34,INDIRECT(\"a\" & (VLOOKUP(Switch!$D$34,$F$2:$G$44,2,FALSE)+ROW()-2)),\"\")","v":{"$error":"#N/A"}},{"$f":"IF(INDIRECT(\"c\" & (VLOOKUP(Switch!$D$35,$F$2:$G$44,2,FALSE)+ROW()-2))=Switch!$D$35,INDIRECT(\"a\" & (VLOOKUP(Switch!$D$35,$F$2:$G$44,2,FALSE)+ROW()-2)),\"\")","v":{"$error":"#N/A"}},{"$f":"IF(INDIRECT(\"c\" & (VLOOKUP(Switch!$D$36,$F$2:$G$44,2,FALSE)+ROW()-2))=Switch!$D$36,INDIRECT(\"a\" & (VLOOKUP(Switch!$D$36,$F$2:$G$44,2,FALSE)+ROW()-2)),\"\")","v":{"$error":"#N/A"}},{"$f":"IF(INDIRECT(\"c\" & (VLOOKUP(Switch!$D$37,$F$2:$G$44,2,FALSE)+ROW()-2))=Switch!$D$37,INDIRECT(\"a\" & (VLOOKUP(Switch!$D$37,$F$2:$G$44,2,FALSE)+ROW()-2)),\"\")","v":{"$error":"#N/A"}},{"$f":"IF(INDIRECT(\"c\" & (VLOOKUP(Switch!$D$38,$F$2:$G$44,2,FALSE)+ROW()-2))=Switch!$D$38,INDIRECT(\"a\" & (VLOOKUP(Switch!$D$38,$F$2:$G$44,2,FALSE)+ROW()-2)),\"\")","v":{"$error":"#N/A"}},{"$f":"IF(INDIRECT(\"c\" & (VLOOKUP(Switch!$D$39,$F$2:$G$44,2,FALSE)+ROW()-2))=Switch!$D$39,INDIRECT(\"a\" & (VLOOKUP(Switch!$D$39,$F$2:$G$44,2,FALSE)+ROW()-2)),\"\")","v":{"$error":"#N/A"}},{"$f":"IF(INDIRECT(\"c\" & (VLOOKUP(Switch!$D$40,$F$2:$G$44,2,FALSE)+ROW()-2))=Switch!$D$40,INDIRECT(\"a\" & (VLOOKUP(Switch!$D$40,$F$2:$G$44,2,FALSE)+ROW()-2)),\"\")","v":{"$error":"#N/A"}},{"$f":"IF(INDIRECT(\"c\" & (VLOOKUP(Switch!$D$52,$F$2:$G$44,2,FALSE)+ROW()-2))=Switch!$D$52,INDIRECT(\"a\" & (VLOOKUP(Switch!$D$52,$F$2:$G$44,2,FALSE)+ROW()-2)),\"\")","v":{"$error":"#N/A"}},{"$f":"IF(INDIRECT(\"c\" & (VLOOKUP(Switch!$D$53,$F$2:$G$44,2,FALSE)+ROW()-2))=Switch!$D$53,INDIRECT(\"a\" & (VLOOKUP(Switch!$D$53,$F$2:$G$44,2,FALSE)+ROW()-2)),\"\")","v":{"$error":"#N/A"}},{"$f":"IF(INDIRECT(\"c\" & (VLOOKUP(Switch!$D$54,$F$2:$G$44,2,FALSE)+ROW()-2))=Switch!$D$54,INDIRECT(\"a\" & (VLOOKUP(Switch!$D$54,$F$2:$G$44,2,FALSE)+ROW()-2)),\"\")","v":{"$error":"#N/A"}},{"$f":"IF(INDIRECT(\"c\" & (VLOOKUP(Switch!$D$55,$F$2:$G$44,2,FALSE)+ROW()-2))=Switch!$D$55,INDIRECT(\"a\" & (VLOOKUP(Switch!$D$55,$F$2:$G$44,2,FALSE)+ROW()-2)),\"\")","v":{"$error":"#N/A"}},{"$f":"IF(INDIRECT(\"c\" & (VLOOKUP(Switch!$D$56,$F$2:$G$44,2,FALSE)+ROW()-2))=Switch!$D$56,INDIRECT(\"a\" & (VLOOKUP(Switch!$D$56,$F$2:$G$44,2,FALSE)+ROW()-2)),\"\")","v":{"$error":"#N/A"}},{"$f":"IF(INDIRECT(\"c\" & (VLOOKUP(Switch!$D$57,$F$2:$G$44,2,FALSE)+ROW()-2))=Switch!$D$57,INDIRECT(\"a\" & (VLOOKUP(Switch!$D$57,$F$2:$G$44,2,FALSE)+ROW()-2)),\"\")","v":{"$error":"#N/A"}},{"$f":"IF(INDIRECT(\"c\" & (VLOOKUP(Switch!$D$58,$F$2:$G$44,2,FALSE)+ROW()-2))=Switch!$D$58,INDIRECT(\"a\" & (VLOOKUP(Switch!$D$58,$F$2:$G$44,2,FALSE)+ROW()-2)),\"\")","v":{"$error":"#N/A"}},{"$f":"IF(INDIRECT(\"c\" & (VLOOKUP(Switch!$D$59,$F$2:$G$44,2,FALSE)+ROW()-2))=Switch!$D$59,INDIRECT(\"a\" & (VLOOKUP(Switch!$D$59,$F$2:$G$44,2,FALSE)+ROW()-2)),\"\")","v":{"$error":"#N/A"}},{"$f":"IF(INDIRECT(\"c\" & (VLOOKUP(Switch!$D$60,$F$2:$G$44,2,FALSE)+ROW()-2))=Switch!$D$60,INDIRECT(\"a\" & (VLOOKUP(Switch!$D$60,$F$2:$G$44,2,FALSE)+ROW()-2)),\"\")","v":{"$error":"#N/A"}},{"$f":"IF(INDIRECT(\"c\" & (VLOOKUP(Switch!$D$61,$F$2:$G$44,2,FALSE)+ROW()-2))=Switch!$D$61,INDIRECT(\"a\" & (VLOOKUP(Switch!$D$61,$F$2:$G$44,2,FALSE)+ROW()-2)),\"\")","v":{"$error":"#N/A"}},{"$f":"IF(INDIRECT(\"c\" & (VLOOKUP(Switch!$D$62,$F$2:$G$44,2,FALSE)+ROW()-2))=Switch!$D$62,INDIRECT(\"a\" & (VLOOKUP(Switch!$D$62,$F$2:$G$44,2,FALSE)+ROW()-2)),\"\")","v":{"$error":"#N/A"}},{"$f":"IF(INDIRECT(\"c\" & (VLOOKUP(Switch!$D$63,$F$2:$G$44,2,FALSE)+ROW()-2))=Switch!$D$63,INDIRECT(\"a\" & (VLOOKUP(Switch!$D$63,$F$2:$G$44,2,FALSE)+ROW()-2)),\"\")","v":{"$error":"#N/A"}},{"$f":"IF(INDIRECT(\"c\" & (VLOOKUP(Switch!$D$64,$F$2:$G$44,2,FALSE)+ROW()-2))=Switch!$D$64,INDIRECT(\"a\" & (VLOOKUP(Switch!$D$64,$F$2:$G$44,2,FALSE)+ROW()-2)),\"\")","v":{"$error":"#N/A"}},{"$f":"IF(INDIRECT(\"c\" & (VLOOKUP(Switch!$D$65,$F$2:$G$44,2,FALSE)+ROW()-2))=Switch!$D$65,INDIRECT(\"a\" & (VLOOKUP(Switch!$D$65,$F$2:$G$44,2,FALSE)+ROW()-2)),\"\")","v":{"$error":"#N/A"}},{"$f":"IF(INDIRECT(\"c\" & (VLOOKUP(Switch!$D$66,$F$2:$G$44,2,FALSE)+ROW()-2))=Switch!$D$66,INDIRECT(\"a\" & (VLOOKUP(Switch!$D$66,$F$2:$G$44,2,FALSE)+ROW()-2)),\"\")","v":{"$error":"#N/A"}}]
["1NVEST ALSI 40 Fund B1","SLAFB1","STANLIB Collective Investments",{"$f":"ROW()","v":17},null,"Kagiso Collective Investments Ltd",{"$f":"VLOOKUP(F17,$C$2:$D$637,2,FALSE)","v":296},{"$f":"IF(INDIRECT(\"c\" & (VLOOKUP(Switch!$D$26,$F$2:$G$44,2,FALSE)+ROW()-2))=Switch!$D$26,INDIRECT(\"a\" & (VLOOKUP(Switch!$D$26,$F$2:$G$44,2,FALSE)+ROW()-2)),\"\")","v":{"$error":"#N/A"}},{"$f":"IF(INDIRECT(\"c\" & (VLOOKUP(Switch!$D$27,$F$2:$G$44,2,FALSE)+ROW()-2))=Switch!$D$27,INDIRECT(\"a\" & (VLOOKUP(Switch!$D$27,$F$2:$G$44,2,FALSE)+ROW()-2)),\"\")","v":{"$error":"#N/A"}},{"$f":"IF(INDIRECT(\"c\" & (VLOOKUP(Switch!$D$28,$F$2:$G$44,2,FALSE)+ROW()-2))=Switch!$D$28,INDIRECT(\"a\" & (VLOOKUP(Switch!$D$28,$F$2:$G$44,2,FALSE)+ROW()-2)),\"\")","v":{"$error":"#N/A"}},{"$f":"IF(INDIRECT(\"c\" & (VLOOKUP(Switch!$D$29,$F$2:$G$44,2,FALSE)+ROW()-2))=Switch!$D$29,INDIRECT(\"a\" & (VLOOKUP(Switch!$D$29,$F$2:$G$44,2,FALSE)+ROW()-2)),\"\")","v":{"$error":"#N/A"}},{"$f":"IF(INDIRECT(\"c\" & (VLOOKUP(Switch!$D$30,$F$2:$G$44,2,FALSE)+ROW()-2))=Switch!$D$30,INDIRECT(\"a\" & (VLOOKUP(Switch!$D$30,$F$2:$G$44,2,FALSE)+ROW()-2)),\"\")","v":{"$error":"#N/A"}},{"$f":"IF(INDIRECT(\"c\" & (VLOOKUP(Switch!$D$31,$F$2:$G$44,2,FALSE)+ROW()-2))=Switch!$D$31,INDIRECT(\"a\" & (VLOOKUP(Switch!$D$31,$F$2:$G$44,2,FALSE)+ROW()-2)),\"\")","v":{"$error":"#N/A"}},{"$f":"IF(INDIRECT(\"c\" & (VLOOKUP(Switch!$D$32,$F$2:$G$44,2,FALSE)+ROW()-2))=Switch!$D$32,INDIRECT(\"a\" & (VLOOKUP(Switch!$D$32,$F$2:$G$44,2,FALSE)+ROW()-2)),\"\")","v":{"$error":"#N/A"}},{"$f":"IF(INDIRECT(\"c\" & (VLOOKUP(Switch!$D$33,$F$2:$G$44,2,FALSE)+ROW()-2))=Switch!$D$33,INDIRECT(\"a\" & (VLOOKUP(Switch!$D$33,$F$2:$G$44,2,FALSE)+ROW()-2)),\"\")","v":{"$error":"#N/A"}},{"$f":"IF(INDIRECT(\"c\" & (VLOOKUP(Switch!$D$34,$F$2:$G$44,2,FALSE)+ROW()-2))=Switch!$D$34,INDIRECT(\"a\" & (VLOOKUP(Switch!$D$34,$F$2:$G$44,2,FALSE)+ROW()-2)),\"\")","v":{"$error":"#N/A"}},{"$f":"IF(INDIRECT(\"c\" & (VLOOKUP(Switch!$D$35,$F$2:$G$44,2,FALSE)+ROW()-2))=Switch!$D$35,INDIRECT(\"a\" & (VLOOKUP(Switch!$D$35,$F$2:$G$44,2,FALSE)+ROW()-2)),\"\")","v":{"$error":"#N/A"}},{"$f":"IF(INDIRECT(\"c\" & (VLOOKUP(Switch!$D$36,$F$2:$G$44,2,FALSE)+ROW()-2))=Switch!$D$36,INDIRECT(\"a\" & (VLOOKUP(Switch!$D$36,$F$2:$G$44,2,FALSE)+ROW()-2)),\"\")","v":{"$error":"#N/A"}},{"$f":"IF(INDIRECT(\"c\" & (VLOOKUP(Switch!$D$37,$F$2:$G$44,2,FALSE)+ROW()-2))=Switch!$D$37,INDIRECT(\"a\" & (VLOOKUP(Switch!$D$37,$F$2:$G$44,2,FALSE)+ROW()-2)),\"\")","v":{"$error":"#N/A"}},{"$f":"IF(INDIRECT(\"c\" & (VLOOKUP(Switch!$D$38,$F$2:$G$44,2,FALSE)+ROW()-2))=Switch!$D$38,INDIRECT(\"a\" & (VLOOKUP(Switch!$D$38,$F$2:$G$44,2,FALSE)+ROW()-2)),\"\")","v":{"$error":"#N/A"}},{"$f":"IF(INDIRECT(\"c\" & (VLOOKUP(Switch!$D$39,$F$2:$G$44,2,FALSE)+ROW()-2))=Switch!$D$39,INDIRECT(\"a\" & (VLOOKUP(Switch!$D$39,$F$2:$G$44,2,FALSE)+ROW()-2)),\"\")","v":{"$error":"#N/A"}},{"$f":"IF(INDIRECT(\"c\" & (VLOOKUP(Switch!$D$40,$F$2:$G$44,2,FALSE)+ROW()-2))=Switch!$D$40,INDIRECT(\"a\" & (VLOOKUP(Switch!$D$40,$F$2:$G$44,2,FALSE)+ROW()-2)),\"\")","v":{"$error":"#N/A"}},{"$f":"IF(INDIRECT(\"c\" & (VLOOKUP(Switch!$D$52,$F$2:$G$44,2,FALSE)+ROW()-2))=Switch!$D$52,INDIRECT(\"a\" & (VLOOKUP(Switch!$D$52,$F$2:$G$44,2,FALSE)+ROW()-2)),\"\")","v":{"$error":"#N/A"}},{"$f":"IF(INDIRECT(\"c\" & (VLOOKUP(Switch!$D$53,$F$2:$G$44,2,FALSE)+ROW()-2))=Switch!$D$53,INDIRECT(\"a\" & (VLOOKUP(Switch!$D$53,$F$2:$G$44,2,FALSE)+ROW()-2)),\"\")","v":{"$error":"#N/A"}},{"$f":"IF(INDIRECT(\"c\" & (VLOOKUP(Switch!$D$54,$F$2:$G$44,2,FALSE)+ROW()-2))=Switch!$D$54,INDIRECT(\"a\" & (VLOOKUP(Switch!$D$54,$F$2:$G$44,2,FALSE)+ROW()-2)),\"\")","v":{"$error":"#N/A"}},{"$f":"IF(INDIRECT(\"c\" & (VLOOKUP(Switch!$D$55,$F$2:$G$44,2,FALSE)+ROW()-2))=Switch!$D$55,INDIRECT(\"a\" & (VLOOKUP(Switch!$D$55,$F$2:$G$44,2,FALSE)+ROW()-2)),\"\")","v":{"$error":"#N/A"}},{"$f":"IF(INDIRECT(\"c\" & (VLOOKUP(Switch!$D$56,$F$2:$G$44,2,FALSE)+ROW()-2))=Switch!$D$56,INDIRECT(\"a\" & (VLOOKUP(Switch!$D$56,$F$2:$G$44,2,FALSE)+ROW()-2)),\"\")","v":{"$error":"#N/A"}},{"$f":"IF(INDIRECT(\"c\" & (VLOOKUP(Switch!$D$57,$F$2:$G$44,2,FALSE)+ROW()-2))=Switch!$D$57,INDIRECT(\"a\" & (VLOOKUP(Switch!$D$57,$F$2:$G$44,2,FALSE)+ROW()-2)),\"\")","v":{"$error":"#N/A"}},{"$f":"IF(INDIRECT(\"c\" & (VLOOKUP(Switch!$D$58,$F$2:$G$44,2,FALSE)+ROW()-2))=Switch!$D$58,INDIRECT(\"a\" & (VLOOKUP(Switch!$D$58,$F$2:$G$44,2,FALSE)+ROW()-2)),\"\")","v":{"$error":"#N/A"}},{"$f":"IF(INDIRECT(\"c\" & (VLOOKUP(Switch!$D$59,$F$2:$G$44,2,FALSE)+ROW()-2))=Switch!$D$59,INDIRECT(\"a\" & (VLOOKUP(Switch!$D$59,$F$2:$G$44,2,FALSE)+ROW()-2)),\"\")","v":{"$error":"#N/A"}},{"$f":"IF(INDIRECT(\"c\" & (VLOOKUP(Switch!$D$60,$F$2:$G$44,2,FALSE)+ROW()-2))=Switch!$D$60,INDIRECT(\"a\" & (VLOOKUP(Switch!$D$60,$F$2:$G$44,2,FALSE)+ROW()-2)),\"\")","v":{"$error":"#N/A"}},{"$f":"IF(INDIRECT(\"c\" & (VLOOKUP(Switch!$D$61,$F$2:$G$44,2,FALSE)+ROW()-2))=Switch!$D$61,INDIRECT(\"a\" & (VLOOKUP(Switch!$D$61,$F$2:$G$44,2,FALSE)+ROW()-2)),\"\")","v":{"$error":"#N/A"}},{"$f":"IF(INDIRECT(\"c\" & (VLOOKUP(Switch!$D$62,$F$2:$G$44,2,FALSE)+ROW()-2))=Switch!$D$62,INDIRECT(\"a\" & (VLOOKUP(Switch!$D$62,$F$2:$G$44,2,FALSE)+ROW()-2)),\"\")","v":{"$error":"#N/A"}},{"$f":"IF(INDIRECT(\"c\" & (VLOOKUP(Switch!$D$63,$F$2:$G$44,2,FALSE)+ROW()-2))=Switch!$D$63,INDIRECT(\"a\" & (VLOOKUP(Switch!$D$63,$F$2:$G$44,2,FALSE)+ROW()-2)),\"\")","v":{"$error":"#N/A"}},{"$f":"IF(INDIRECT(\"c\" & (VLOOKUP(Switch!$D$64,$F$2:$G$44,2,FALSE)+ROW()-2))=Switch!$D$64,INDIRECT(\"a\" & (VLOOKUP(Switch!$D$64,$F$2:$G$44,2,FALSE)+ROW()-2)),\"\")","v":{"$error":"#N/A"}},{"$f":"IF(INDIRECT(\"c\" & (VLOOKUP(Switch!$D$65,$F$2:$G$44,2,FALSE)+ROW()-2))=Switch!$D$65,INDIRECT(\"a\" & (VLOOKUP(Switch!$D$65,$F$2:$G$44,2,FALSE)+ROW()-2)),\"\")","v":{"$error":"#N/A"}},{"$f":"IF(INDIRECT(\"c\" & (VLOOKUP(Switch!$D$66,$F$2:$G$44,2,FALSE)+ROW()-2))=Switch!$D$66,INDIRECT(\"a\" & (VLOOKUP(Switch!$D$66,$F$2:$G$44,2,FALSE)+ROW()-2)),\"\")","v":{"$error":"#N/A"}}]
["1NVEST Capped Property Index Tracker Fund B1","SCPB1","STANLIB Collective Investments",{"$f":"ROW()","v":18},null,"LibertyGroup",{"$f":"VLOOKUP(F18,$C$2:$D$637,2,FALSE)","v":302},{"$f":"IF(INDIRECT(\"c\" & (VLOOKUP(Switch!$D$26,$F$2:$G$44,2,FALSE)+ROW()-2))=Switch!$D$26,INDIRECT(\"a\" & (VLOOKUP(Switch!$D$26,$F$2:$G$44,2,FALSE)+ROW()-2)),\"\")","v":{"$error":"#N/A"}},{"$f":"IF(INDIRECT(\"c\" & (VLOOKUP(Switch!$D$27,$F$2:$G$44,2,FALSE)+ROW()-2))=Switch!$D$27,INDIRECT(\"a\" & (VLOOKUP(Switch!$D$27,$F$2:$G$44,2,FALSE)+ROW()-2)),\"\")","v":{"$error":"#N/A"}},{"$f":"IF(INDIRECT(\"c\" & (VLOOKUP(Switch!$D$28,$F$2:$G$44,2,FALSE)+ROW()-2))=Switch!$D$28,INDIRECT(\"a\" & (VLOOKUP(Switch!$D$28,$F$2:$G$44,2,FALSE)+ROW()-2)),\"\")","v":{"$error":"#N/A"}},{"$f":"IF(INDIRECT(\"c\" & (VLOOKUP(Switch!$D$29,$F$2:$G$44,2,FALSE)+ROW()-2))=Switch!$D$29,INDIRECT(\"a\" & (VLOOKUP(Switch!$D$29,$F$2:$G$44,2,FALSE)+ROW()-2)),\"\")","v":{"$error":"#N/A"}},{"$f":"IF(INDIRECT(\"c\" & (VLOOKUP(Switch!$D$30,$F$2:$G$44,2,FALSE)+ROW()-2))=Switch!$D$30,INDIRECT(\"a\" & (VLOOKUP(Switch!$D$30,$F$2:$G$44,2,FALSE)+ROW()-2)),\"\")","v":{"$error":"#N/A"}},{"$f":"IF(INDIRECT(\"c\" & (VLOOKUP(Switch!$D$31,$F$2:$G$44,2,FALSE)+ROW()-2))=Switch!$D$31,INDIRECT(\"a\" & (VLOOKUP(Switch!$D$31,$F$2:$G$44,2,FALSE)+ROW()-2)),\"\")","v":{"$error":"#N/A"}},{"$f":"IF(INDIRECT(\"c\" & (VLOOKUP(Switch!$D$32,$F$2:$G$44,2,FALSE)+ROW()-2))=Switch!$D$32,INDIRECT(\"a\" & (VLOOKUP(Switch!$D$32,$F$2:$G$44,2,FALSE)+ROW()-2)),\"\")","v":{"$error":"#N/A"}},{"$f":"IF(INDIRECT(\"c\" & (VLOOKUP(Switch!$D$33,$F$2:$G$44,2,FALSE)+ROW()-2))=Switch!$D$33,INDIRECT(\"a\" & (VLOOKUP(Switch!$D$33,$F$2:$G$44,2,FALSE)+ROW()-2)),\"\")","v":{"$error":"#N/A"}},{"$f":"IF(INDIRECT(\"c\" & (VLOOKUP(Switch!$D$34,$F$2:$G$44,2,FALSE)+ROW()-2))=Switch!$D$34,INDIRECT(\"a\" & (VLOOKUP(Switch!$D$34,$F$2:$G$44,2,FALSE)+ROW()-2)),\"\")","v":{"$error":"#N/A"}},{"$f":"IF(INDIRECT(\"c\" & (VLOOKUP(Switch!$D$35,$F$2:$G$44,2,FALSE)+ROW()-2))=Switch!$D$35,INDIRECT(\"a\" & (VLOOKUP(Switch!$D$35,$F$2:$G$44,2,FALSE)+ROW()-2)),\"\")","v":{"$error":"#N/A"}},{"$f":"IF(INDIRECT(\"c\" & (VLOOKUP(Switch!$D$36,$F$2:$G$44,2,FALSE)+ROW()-2))=Switch!$D$36,INDIRECT(\"a\" & (VLOOKUP(Switch!$D$36,$F$2:$G$44,2,FALSE)+ROW()-2)),\"\")","v":{"$error":"#N/A"}},{"$f":"IF(INDIRECT(\"c\" & (VLOOKUP(Switch!$D$37,$F$2:$G$44,2,FALSE)+ROW()-2))=Switch!$D$37,INDIRECT(\"a\" & (VLOOKUP(Switch!$D$37,$F$2:$G$44,2,FALSE)+ROW()-2)),\"\")","v":{"$error":"#N/A"}},{"$f":"IF(INDIRECT(\"c\" & (VLOOKUP(Switch!$D$38,$F$2:$G$44,2,FALSE)+ROW()-2))=Switch!$D$38,INDIRECT(\"a\" & (VLOOKUP(Switch!$D$38,$F$2:$G$44,2,FALSE)+ROW()-2)),\"\")","v":{"$error":"#N/A"}},{"$f":"IF(INDIRECT(\"c\" & (VLOOKUP(Switch!$D$39,$F$2:$G$44,2,FALSE)+ROW()-2))=Switch!$D$39,INDIRECT(\"a\" & (VLOOKUP(Switch!$D$39,$F$2:$G$44,2,FALSE)+ROW()-2)),\"\")","v":{"$error":"#N/A"}},{"$f":"IF(INDIRECT(\"c\" & (VLOOKUP(Switch!$D$40,$F$2:$G$44,2,FALSE)+ROW()-2))=Switch!$D$40,INDIRECT(\"a\" & (VLOOKUP(Switch!$D$40,$F$2:$G$44,2,FALSE)+ROW()-2)),\"\")","v":{"$error":"#N/A"}},{"$f":"IF(INDIRECT(\"c\" & (VLOOKUP(Switch!$D$52,$F$2:$G$44,2,FALSE)+ROW()-2))=Switch!$D$52,INDIRECT(\"a\" & (VLOOKUP(Switch!$D$52,$F$2:$G$44,2,FALSE)+ROW()-2)),\"\")","v":{"$error":"#N/A"}},{"$f":"IF(INDIRECT(\"c\" & (VLOOKUP(Switch!$D$53,$F$2:$G$44,2,FALSE)+ROW()-2))=Switch!$D$53,INDIRECT(\"a\" & (VLOOKUP(Switch!$D$53,$F$2:$G$44,2,FALSE)+ROW()-2)),\"\")","v":{"$error":"#N/A"}},{"$f":"IF(INDIRECT(\"c\" & (VLOOKUP(Switch!$D$54,$F$2:$G$44,2,FALSE)+ROW()-2))=Switch!$D$54,INDIRECT(\"a\" & (VLOOKUP(Switch!$D$54,$F$2:$G$44,2,FALSE)+ROW()-2)),\"\")","v":{"$error":"#N/A"}},{"$f":"IF(INDIRECT(\"c\" & (VLOOKUP(Switch!$D$55,$F$2:$G$44,2,FALSE)+ROW()-2))=Switch!$D$55,INDIRECT(\"a\" & (VLOOKUP(Switch!$D$55,$F$2:$G$44,2,FALSE)+ROW()-2)),\"\")","v":{"$error":"#N/A"}},{"$f":"IF(INDIRECT(\"c\" & (VLOOKUP(Switch!$D$56,$F$2:$G$44,2,FALSE)+ROW()-2))=Switch!$D$56,INDIRECT(\"a\" & (VLOOKUP(Switch!$D$56,$F$2:$G$44,2,FALSE)+ROW()-2)),\"\")","v":{"$error":"#N/A"}},{"$f":"IF(INDIRECT(\"c\" & (VLOOKUP(Switch!$D$57,$F$2:$G$44,2,FALSE)+ROW()-2))=Switch!$D$57,INDIRECT(\"a\" & (VLOOKUP(Switch!$D$57,$F$2:$G$44,2,FALSE)+ROW()-2)),\"\")","v":{"$error":"#N/A"}},{"$f":"IF(INDIRECT(\"c\" & (VLOOKUP(Switch!$D$58,$F$2:$G$44,2,FALSE)+ROW()-2))=Switch!$D$58,INDIRECT(\"a\" & (VLOOKUP(Switch!$D$58,$F$2:$G$44,2,FALSE)+ROW()-2)),\"\")","v":{"$error":"#N/A"}},{"$f":"IF(INDIRECT(\"c\" & (VLOOKUP(Switch!$D$59,$F$2:$G$44,2,FALSE)+ROW()-2))=Switch!$D$59,INDIRECT(\"a\" & (VLOOKUP(Switch!$D$59,$F$2:$G$44,2,FALSE)+ROW()-2)),\"\")","v":{"$error":"#N/A"}},{"$f":"IF(INDIRECT(\"c\" & (VLOOKUP(Switch!$D$60,$F$2:$G$44,2,FALSE)+ROW()-2))=Switch!$D$60,INDIRECT(\"a\" & (VLOOKUP(Switch!$D$60,$F$2:$G$44,2,FALSE)+ROW()-2)),\"\")","v":{"$error":"#N/A"}},{"$f":"IF(INDIRECT(\"c\" & (VLOOKUP(Switch!$D$61,$F$2:$G$44,2,FALSE)+ROW()-2))=Switch!$D$61,INDIRECT(\"a\" & (VLOOKUP(Switch!$D$61,$F$2:$G$44,2,FALSE)+ROW()-2)),\"\")","v":{"$error":"#N/A"}},{"$f":"IF(INDIRECT(\"c\" & (VLOOKUP(Switch!$D$62,$F$2:$G$44,2,FALSE)+ROW()-2))=Switch!$D$62,INDIRECT(\"a\" & (VLOOKUP(Switch!$D$62,$F$2:$G$44,2,FALSE)+ROW()-2)),\"\")","v":{"$error":"#N/A"}},{"$f":"IF(INDIRECT(\"c\" & (VLOOKUP(Switch!$D$63,$F$2:$G$44,2,FALSE)+ROW()-2))=Switch!$D$63,INDIRECT(\"a\" & (VLOOKUP(Switch!$D$63,$F$2:$G$44,2,FALSE)+ROW()-2)),\"\")","v":{"$error":"#N/A"}},{"$f":"IF(INDIRECT(\"c\" & (VLOOKUP(Switch!$D$64,$F$2:$G$44,2,FALSE)+ROW()-2))=Switch!$D$64,INDIRECT(\"a\" & (VLOOKUP(Switch!$D$64,$F$2:$G$44,2,FALSE)+ROW()-2)),\"\")","v":{"$error":"#N/A"}},{"$f":"IF(INDIRECT(\"c\" & (VLOOKUP(Switch!$D$65,$F$2:$G$44,2,FALSE)+ROW()-2))=Switch!$D$65,INDIRECT(\"a\" & (VLOOKUP(Switch!$D$65,$F$2:$G$44,2,FALSE)+ROW()-2)),\"\")","v":{"$error":"#N/A"}},{"$f":"IF(INDIRECT(\"c\" & (VLOOKUP(Switch!$D$66,$F$2:$G$44,2,FALSE)+ROW()-2))=Switch!$D$66,INDIRECT(\"a\" & (VLOOKUP(Switch!$D$66,$F$2:$G$44,2,FALSE)+ROW()-2)),\"\")","v":{"$error":"#N/A"}}]
["1NVEST Global Government Bond Index Feeder Fund B1","SLGIB1","STANLIB Collective Investments",{"$f":"ROW()","v":19},null,"Marriott Unit Trust Management Company Ltd",{"$f":"VLOOKUP(F19,$C$2:$D$637,2,FALSE)","v":304},{"$f":"IF(INDIRECT(\"c\" & (VLOOKUP(Switch!$D$26,$F$2:$G$44,2,FALSE)+ROW()-2))=Switch!$D$26,INDIRECT(\"a\" & (VLOOKUP(Switch!$D$26,$F$2:$G$44,2,FALSE)+ROW()-2)),\"\")","v":{"$error":"#N/A"}},{"$f":"IF(INDIRECT(\"c\" & (VLOOKUP(Switch!$D$27,$F$2:$G$44,2,FALSE)+ROW()-2))=Switch!$D$27,INDIRECT(\"a\" & (VLOOKUP(Switch!$D$27,$F$2:$G$44,2,FALSE)+ROW()-2)),\"\")","v":{"$error":"#N/A"}},{"$f":"IF(INDIRECT(\"c\" & (VLOOKUP(Switch!$D$28,$F$2:$G$44,2,FALSE)+ROW()-2))=Switch!$D$28,INDIRECT(\"a\" & (VLOOKUP(Switch!$D$28,$F$2:$G$44,2,FALSE)+ROW()-2)),\"\")","v":{"$error":"#N/A"}},{"$f":"IF(INDIRECT(\"c\" & (VLOOKUP(Switch!$D$29,$F$2:$G$44,2,FALSE)+ROW()-2))=Switch!$D$29,INDIRECT(\"a\" & (VLOOKUP(Switch!$D$29,$F$2:$G$44,2,FALSE)+ROW()-2)),\"\")","v":{"$error":"#N/A"}},{"$f":"IF(INDIRECT(\"c\" & (VLOOKUP(Switch!$D$30,$F$2:$G$44,2,FALSE)+ROW()-2))=Switch!$D$30,INDIRECT(\"a\" & (VLOOKUP(Switch!$D$30,$F$2:$G$44,2,FALSE)+ROW()-2)),\"\")","v":{"$error":"#N/A"}},{"$f":"IF(INDIRECT(\"c\" & (VLOOKUP(Switch!$D$31,$F$2:$G$44,2,FALSE)+ROW()-2))=Switch!$D$31,INDIRECT(\"a\" & (VLOOKUP(Switch!$D$31,$F$2:$G$44,2,FALSE)+ROW()-2)),\"\")","v":{"$error":"#N/A"}},{"$f":"IF(INDIRECT(\"c\" & (VLOOKUP(Switch!$D$32,$F$2:$G$44,2,FALSE)+ROW()-2))=Switch!$D$32,INDIRECT(\"a\" & (VLOOKUP(Switch!$D$32,$F$2:$G$44,2,FALSE)+ROW()-2)),\"\")","v":{"$error":"#N/A"}},{"$f":"IF(INDIRECT(\"c\" & (VLOOKUP(Switch!$D$33,$F$2:$G$44,2,FALSE)+ROW()-2))=Switch!$D$33,INDIRECT(\"a\" & (VLOOKUP(Switch!$D$33,$F$2:$G$44,2,FALSE)+ROW()-2)),\"\")","v":{"$error":"#N/A"}},{"$f":"IF(INDIRECT(\"c\" & (VLOOKUP(Switch!$D$34,$F$2:$G$44,2,FALSE)+ROW()-2))=Switch!$D$34,INDIRECT(\"a\" & (VLOOKUP(Switch!$D$34,$F$2:$G$44,2,FALSE)+ROW()-2)),\"\")","v":{"$error":"#N/A"}},{"$f":"IF(INDIRECT(\"c\" & (VLOOKUP(Switch!$D$35,$F$2:$G$44,2,FALSE)+ROW()-2))=Switch!$D$35,INDIRECT(\"a\" & (VLOOKUP(Switch!$D$35,$F$2:$G$44,2,FALSE)+ROW()-2)),\"\")","v":{"$error":"#N/A"}},{"$f":"IF(INDIRECT(\"c\" & (VLOOKUP(Switch!$D$36,$F$2:$G$44,2,FALSE)+ROW()-2))=Switch!$D$36,INDIRECT(\"a\" & (VLOOKUP(Switch!$D$36,$F$2:$G$44,2,FALSE)+ROW()-2)),\"\")","v":{"$error":"#N/A"}},{"$f":"IF(INDIRECT(\"c\" & (VLOOKUP(Switch!$D$37,$F$2:$G$44,2,FALSE)+ROW()-2))=Switch!$D$37,INDIRECT(\"a\" & (VLOOKUP(Switch!$D$37,$F$2:$G$44,2,FALSE)+ROW()-2)),\"\")","v":{"$error":"#N/A"}},{"$f":"IF(INDIRECT(\"c\" & (VLOOKUP(Switch!$D$38,$F$2:$G$44,2,FALSE)+ROW()-2))=Switch!$D$38,INDIRECT(\"a\" & (VLOOKUP(Switch!$D$38,$F$2:$G$44,2,FALSE)+ROW()-2)),\"\")","v":{"$error":"#N/A"}},{"$f":"IF(INDIRECT(\"c\" & (VLOOKUP(Switch!$D$39,$F$2:$G$44,2,FALSE)+ROW()-2))=Switch!$D$39,INDIRECT(\"a\" & (VLOOKUP(Switch!$D$39,$F$2:$G$44,2,FALSE)+ROW()-2)),\"\")","v":{"$error":"#N/A"}},{"$f":"IF(INDIRECT(\"c\" & (VLOOKUP(Switch!$D$40,$F$2:$G$44,2,FALSE)+ROW()-2))=Switch!$D$40,INDIRECT(\"a\" & (VLOOKUP(Switch!$D$40,$F$2:$G$44,2,FALSE)+ROW()-2)),\"\")","v":{"$error":"#N/A"}},{"$f":"IF(INDIRECT(\"c\" & (VLOOKUP(Switch!$D$52,$F$2:$G$44,2,FALSE)+ROW()-2))=Switch!$D$52,INDIRECT(\"a\" & (VLOOKUP(Switch!$D$52,$F$2:$G$44,2,FALSE)+ROW()-2)),\"\")","v":{"$error":"#N/A"}},{"$f":"IF(INDIRECT(\"c\" & (VLOOKUP(Switch!$D$53,$F$2:$G$44,2,FALSE)+ROW()-2))=Switch!$D$53,INDIRECT(\"a\" & (VLOOKUP(Switch!$D$53,$F$2:$G$44,2,FALSE)+ROW()-2)),\"\")","v":{"$error":"#N/A"}},{"$f":"IF(INDIRECT(\"c\" & (VLOOKUP(Switch!$D$54,$F$2:$G$44,2,FALSE)+ROW()-2))=Switch!$D$54,INDIRECT(\"a\" & (VLOOKUP(Switch!$D$54,$F$2:$G$44,2,FALSE)+ROW()-2)),\"\")","v":{"$error":"#N/A"}},{"$f":"IF(INDIRECT(\"c\" & (VLOOKUP(Switch!$D$55,$F$2:$G$44,2,FALSE)+ROW()-2))=Switch!$D$55,INDIRECT(\"a\" & (VLOOKUP(Switch!$D$55,$F$2:$G$44,2,FALSE)+ROW()-2)),\"\")","v":{"$error":"#N/A"}},{"$f":"IF(INDIRECT(\"c\" & (VLOOKUP(Switch!$D$56,$F$2:$G$44,2,FALSE)+ROW()-2))=Switch!$D$56,INDIRECT(\"a\" & (VLOOKUP(Switch!$D$56,$F$2:$G$44,2,FALSE)+ROW()-2)),\"\")","v":{"$error":"#N/A"}},{"$f":"IF(INDIRECT(\"c\" & (VLOOKUP(Switch!$D$57,$F$2:$G$44,2,FALSE)+ROW()-2))=Switch!$D$57,INDIRECT(\"a\" & (VLOOKUP(Switch!$D$57,$F$2:$G$44,2,FALSE)+ROW()-2)),\"\")","v":{"$error":"#N/A"}},{"$f":"IF(INDIRECT(\"c\" & (VLOOKUP(Switch!$D$58,$F$2:$G$44,2,FALSE)+ROW()-2))=Switch!$D$58,INDIRECT(\"a\" & (VLOOKUP(Switch!$D$58,$F$2:$G$44,2,FALSE)+ROW()-2)),\"\")","v":{"$error":"#N/A"}},{"$f":"IF(INDIRECT(\"c\" & (VLOOKUP(Switch!$D$59,$F$2:$G$44,2,FALSE)+ROW()-2))=Switch!$D$59,INDIRECT(\"a\" & (VLOOKUP(Switch!$D$59,$F$2:$G$44,2,FALSE)+ROW()-2)),\"\")","v":{"$error":"#N/A"}},{"$f":"IF(INDIRECT(\"c\" & (VLOOKUP(Switch!$D$60,$F$2:$G$44,2,FALSE)+ROW()-2))=Switch!$D$60,INDIRECT(\"a\" & (VLOOKUP(Switch!$D$60,$F$2:$G$44,2,FALSE)+ROW()-2)),\"\")","v":{"$error":"#N/A"}},{"$f":"IF(INDIRECT(\"c\" & (VLOOKUP(Switch!$D$61,$F$2:$G$44,2,FALSE)+ROW()-2))=Switch!$D$61,INDIRECT(\"a\" & (VLOOKUP(Switch!$D$61,$F$2:$G$44,2,FALSE)+ROW()-2)),\"\")","v":{"$error":"#N/A"}},{"$f":"IF(INDIRECT(\"c\" & (VLOOKUP(Switch!$D$62,$F$2:$G$44,2,FALSE)+ROW()-2))=Switch!$D$62,INDIRECT(\"a\" & (VLOOKUP(Switch!$D$62,$F$2:$G$44,2,FALSE)+ROW()-2)),\"\")","v":{"$error":"#N/A"}},{"$f":"IF(INDIRECT(\"c\" & (VLOOKUP(Switch!$D$63,$F$2:$G$44,2,FALSE)+ROW()-2))=Switch!$D$63,INDIRECT(\"a\" & (VLOOKUP(Switch!$D$63,$F$2:$G$44,2,FALSE)+ROW()-2)),\"\")","v":{"$error":"#N/A"}},{"$f":"IF(INDIRECT(\"c\" & (VLOOKUP(Switch!$D$64,$F$2:$G$44,2,FALSE)+ROW()-2))=Switch!$D$64,INDIRECT(\"a\" & (VLOOKUP(Switch!$D$64,$F$2:$G$44,2,FALSE)+ROW()-2)),\"\")","v":{"$error":"#N/A"}},{"$f":"IF(INDIRECT(\"c\" & (VLOOKUP(Switch!$D$65,$F$2:$G$44,2,FALSE)+ROW()-2))=Switch!$D$65,INDIRECT(\"a\" & (VLOOKUP(Switch!$D$65,$F$2:$G$44,2,FALSE)+ROW()-2)),\"\")","v":{"$error":"#N/A"}},{"$f":"IF(INDIRECT(\"c\" & (VLOOKUP(Switch!$D$66,$F$2:$G$44,2,FALSE)+ROW()-2))=Switch!$D$66,INDIRECT(\"a\" & (VLOOKUP(Switch!$D$66,$F$2:$G$44,2,FALSE)+ROW()-2)),\"\")","v":{"$error":"#N/A"}}]
["1NVEST Global REIT Index Feeder Fund B1","SLIFB1","STANLIB Collective Investments",{"$f":"ROW()","v":20},null,"Metropolitan Collective Investments",{"$f":"VLOOKUP(F20,$C$2:$D$637,2,FALSE)","v":313},{"$f":"IF(INDIRECT(\"c\" & (VLOOKUP(Switch!$D$26,$F$2:$G$44,2,FALSE)+ROW()-2))=Switch!$D$26,INDIRECT(\"a\" & (VLOOKUP(Switch!$D$26,$F$2:$G$44,2,FALSE)+ROW()-2)),\"\")","v":{"$error":"#N/A"}},{"$f":"IF(INDIRECT(\"c\" & (VLOOKUP(Switch!$D$27,$F$2:$G$44,2,FALSE)+ROW()-2))=Switch!$D$27,INDIRECT(\"a\" & (VLOOKUP(Switch!$D$27,$F$2:$G$44,2,FALSE)+ROW()-2)),\"\")","v":{"$error":"#N/A"}},{"$f":"IF(INDIRECT(\"c\" & (VLOOKUP(Switch!$D$28,$F$2:$G$44,2,FALSE)+ROW()-2))=Switch!$D$28,INDIRECT(\"a\" & (VLOOKUP(Switch!$D$28,$F$2:$G$44,2,FALSE)+ROW()-2)),\"\")","v":{"$error":"#N/A"}},{"$f":"IF(INDIRECT(\"c\" & (VLOOKUP(Switch!$D$29,$F$2:$G$44,2,FALSE)+ROW()-2))=Switch!$D$29,INDIRECT(\"a\" & (VLOOKUP(Switch!$D$29,$F$2:$G$44,2,FALSE)+ROW()-2)),\"\")","v":{"$error":"#N/A"}},{"$f":"IF(INDIRECT(\"c\" & (VLOOKUP(Switch!$D$30,$F$2:$G$44,2,FALSE)+ROW()-2))=Switch!$D$30,INDIRECT(\"a\" & (VLOOKUP(Switch!$D$30,$F$2:$G$44,2,FALSE)+ROW()-2)),\"\")","v":{"$error":"#N/A"}},{"$f":"IF(INDIRECT(\"c\" & (VLOOKUP(Switch!$D$31,$F$2:$G$44,2,FALSE)+ROW()-2))=Switch!$D$31,INDIRECT(\"a\" & (VLOOKUP(Switch!$D$31,$F$2:$G$44,2,FALSE)+ROW()-2)),\"\")","v":{"$error":"#N/A"}},{"$f":"IF(INDIRECT(\"c\" & (VLOOKUP(Switch!$D$32,$F$2:$G$44,2,FALSE)+ROW()-2))=Switch!$D$32,INDIRECT(\"a\" & (VLOOKUP(Switch!$D$32,$F$2:$G$44,2,FALSE)+ROW()-2)),\"\")","v":{"$error":"#N/A"}},{"$f":"IF(INDIRECT(\"c\" & (VLOOKUP(Switch!$D$33,$F$2:$G$44,2,FALSE)+ROW()-2))=Switch!$D$33,INDIRECT(\"a\" & (VLOOKUP(Switch!$D$33,$F$2:$G$44,2,FALSE)+ROW()-2)),\"\")","v":{"$error":"#N/A"}},{"$f":"IF(INDIRECT(\"c\" & (VLOOKUP(Switch!$D$34,$F$2:$G$44,2,FALSE)+ROW()-2))=Switch!$D$34,INDIRECT(\"a\" & (VLOOKUP(Switch!$D$34,$F$2:$G$44,2,FALSE)+ROW()-2)),\"\")","v":{"$error":"#N/A"}},{"$f":"IF(INDIRECT(\"c\" & (VLOOKUP(Switch!$D$35,$F$2:$G$44,2,FALSE)+ROW()-2))=Switch!$D$35,INDIRECT(\"a\" & (VLOOKUP(Switch!$D$35,$F$2:$G$44,2,FALSE)+ROW()-2)),\"\")","v":{"$error":"#N/A"}},{"$f":"IF(INDIRECT(\"c\" & (VLOOKUP(Switch!$D$36,$F$2:$G$44,2,FALSE)+ROW()-2))=Switch!$D$36,INDIRECT(\"a\" & (VLOOKUP(Switch!$D$36,$F$2:$G$44,2,FALSE)+ROW()-2)),\"\")","v":{"$error":"#N/A"}},{"$f":"IF(INDIRECT(\"c\" & (VLOOKUP(Switch!$D$37,$F$2:$G$44,2,FALSE)+ROW()-2))=Switch!$D$37,INDIRECT(\"a\" & (VLOOKUP(Switch!$D$37,$F$2:$G$44,2,FALSE)+ROW()-2)),\"\")","v":{"$error":"#N/A"}},{"$f":"IF(INDIRECT(\"c\" & (VLOOKUP(Switch!$D$38,$F$2:$G$44,2,FALSE)+ROW()-2))=Switch!$D$38,INDIRECT(\"a\" & (VLOOKUP(Switch!$D$38,$F$2:$G$44,2,FALSE)+ROW()-2)),\"\")","v":{"$error":"#N/A"}},{"$f":"IF(INDIRECT(\"c\" & (VLOOKUP(Switch!$D$39,$F$2:$G$44,2,FALSE)+ROW()-2))=Switch!$D$39,INDIRECT(\"a\" & (VLOOKUP(Switch!$D$39,$F$2:$G$44,2,FALSE)+ROW()-2)),\"\")","v":{"$error":"#N/A"}},{"$f":"IF(INDIRECT(\"c\" & (VLOOKUP(Switch!$D$40,$F$2:$G$44,2,FALSE)+ROW()-2))=Switch!$D$40,INDIRECT(\"a\" & (VLOOKUP(Switch!$D$40,$F$2:$G$44,2,FALSE)+ROW()-2)),\"\")","v":{"$error":"#N/A"}},{"$f":"IF(INDIRECT(\"c\" & (VLOOKUP(Switch!$D$52,$F$2:$G$44,2,FALSE)+ROW()-2))=Switch!$D$52,INDIRECT(\"a\" & (VLOOKUP(Switch!$D$52,$F$2:$G$44,2,FALSE)+ROW()-2)),\"\")","v":{"$error":"#N/A"}},{"$f":"IF(INDIRECT(\"c\" & (VLOOKUP(Switch!$D$53,$F$2:$G$44,2,FALSE)+ROW()-2))=Switch!$D$53,INDIRECT(\"a\" & (VLOOKUP(Switch!$D$53,$F$2:$G$44,2,FALSE)+ROW()-2)),\"\")","v":{"$error":"#N/A"}},{"$f":"IF(INDIRECT(\"c\" & (VLOOKUP(Switch!$D$54,$F$2:$G$44,2,FALSE)+ROW()-2))=Switch!$D$54,INDIRECT(\"a\" & (VLOOKUP(Switch!$D$54,$F$2:$G$44,2,FALSE)+ROW()-2)),\"\")","v":{"$error":"#N/A"}},{"$f":"IF(INDIRECT(\"c\" & (VLOOKUP(Switch!$D$55,$F$2:$G$44,2,FALSE)+ROW()-2))=Switch!$D$55,INDIRECT(\"a\" & (VLOOKUP(Switch!$D$55,$F$2:$G$44,2,FALSE)+ROW()-2)),\"\")","v":{"$error":"#N/A"}},{"$f":"IF(INDIRECT(\"c\" & (VLOOKUP(Switch!$D$56,$F$2:$G$44,2,FALSE)+ROW()-2))=Switch!$D$56,INDIRECT(\"a\" & (VLOOKUP(Switch!$D$56,$F$2:$G$44,2,FALSE)+ROW()-2)),\"\")","v":{"$error":"#N/A"}},{"$f":"IF(INDIRECT(\"c\" & (VLOOKUP(Switch!$D$57,$F$2:$G$44,2,FALSE)+ROW()-2))=Switch!$D$57,INDIRECT(\"a\" & (VLOOKUP(Switch!$D$57,$F$2:$G$44,2,FALSE)+ROW()-2)),\"\")","v":{"$error":"#N/A"}},{"$f":"IF(INDIRECT(\"c\" & (VLOOKUP(Switch!$D$58,$F$2:$G$44,2,FALSE)+ROW()-2))=Switch!$D$58,INDIRECT(\"a\" & (VLOOKUP(Switch!$D$58,$F$2:$G$44,2,FALSE)+ROW()-2)),\"\")","v":{"$error":"#N/A"}},{"$f":"IF(INDIRECT(\"c\" & (VLOOKUP(Switch!$D$59,$F$2:$G$44,2,FALSE)+ROW()-2))=Switch!$D$59,INDIRECT(\"a\" & (VLOOKUP(Switch!$D$59,$F$2:$G$44,2,FALSE)+ROW()-2)),\"\")","v":{"$error":"#N/A"}},{"$f":"IF(INDIRECT(\"c\" & (VLOOKUP(Switch!$D$60,$F$2:$G$44,2,FALSE)+ROW()-2))=Switch!$D$60,INDIRECT(\"a\" & (VLOOKUP(Switch!$D$60,$F$2:$G$44,2,FALSE)+ROW()-2)),\"\")","v":{"$error":"#N/A"}},{"$f":"IF(INDIRECT(\"c\" & (VLOOKUP(Switch!$D$61,$F$2:$G$44,2,FALSE)+ROW()-2))=Switch!$D$61,INDIRECT(\"a\" & (VLOOKUP(Switch!$D$61,$F$2:$G$44,2,FALSE)+ROW()-2)),\"\")","v":{"$error":"#N/A"}},{"$f":"IF(INDIRECT(\"c\" & (VLOOKUP(Switch!$D$62,$F$2:$G$44,2,FALSE)+ROW()-2))=Switch!$D$62,INDIRECT(\"a\" & (VLOOKUP(Switch!$D$62,$F$2:$G$44,2,FALSE)+ROW()-2)),\"\")","v":{"$error":"#N/A"}},{"$f":"IF(INDIRECT(\"c\" & (VLOOKUP(Switch!$D$63,$F$2:$G$44,2,FALSE)+ROW()-2))=Switch!$D$63,INDIRECT(\"a\" & (VLOOKUP(Switch!$D$63,$F$2:$G$44,2,FALSE)+ROW()-2)),\"\")","v":{"$error":"#N/A"}},{"$f":"IF(INDIRECT(\"c\" & (VLOOKUP(Switch!$D$64,$F$2:$G$44,2,FALSE)+ROW()-2))=Switch!$D$64,INDIRECT(\"a\" & (VLOOKUP(Switch!$D$64,$F$2:$G$44,2,FALSE)+ROW()-2)),\"\")","v":{"$error":"#N/A"}},{"$f":"IF(INDIRECT(\"c\" & (VLOOKUP(Switch!$D$65,$F$2:$G$44,2,FALSE)+ROW()-2))=Switch!$D$65,INDIRECT(\"a\" & (VLOOKUP(Switch!$D$65,$F$2:$G$44,2,FALSE)+ROW()-2)),\"\")","v":{"$error":"#N/A"}},{"$f":"IF(INDIRECT(\"c\" & (VLOOKUP(Switch!$D$66,$F$2:$G$44,2,FALSE)+ROW()-2))=Switch!$D$66,INDIRECT(\"a\" & (VLOOKUP(Switch!$D$66,$F$2:$G$44,2,FALSE)+ROW()-2)),\"\")","v":{"$error":"#N/A"}}]
["1NVEST High Equity Balanced Passive FoF B1","SHFB1","STANLIB Collective Investments",{"$f":"ROW()","v":21},null,"Momentum Collective Investments Ltd",{"$f":"VLOOKUP(F21,$C$2:$D$637,2,FALSE)","v":321},{"$f":"IF(INDIRECT(\"c\" & (VLOOKUP(Switch!$D$26,$F$2:$G$44,2,FALSE)+ROW()-2))=Switch!$D$26,INDIRECT(\"a\" & (VLOOKUP(Switch!$D$26,$F$2:$G$44,2,FALSE)+ROW()-2)),\"\")","v":{"$error":"#N/A"}},{"$f":"IF(INDIRECT(\"c\" & (VLOOKUP(Switch!$D$27,$F$2:$G$44,2,FALSE)+ROW()-2))=Switch!$D$27,INDIRECT(\"a\" & (VLOOKUP(Switch!$D$27,$F$2:$G$44,2,FALSE)+ROW()-2)),\"\")","v":{"$error":"#N/A"}},{"$f":"IF(INDIRECT(\"c\" & (VLOOKUP(Switch!$D$28,$F$2:$G$44,2,FALSE)+ROW()-2))=Switch!$D$28,INDIRECT(\"a\" & (VLOOKUP(Switch!$D$28,$F$2:$G$44,2,FALSE)+ROW()-2)),\"\")","v":{"$error":"#N/A"}},{"$f":"IF(INDIRECT(\"c\" & (VLOOKUP(Switch!$D$29,$F$2:$G$44,2,FALSE)+ROW()-2))=Switch!$D$29,INDIRECT(\"a\" & (VLOOKUP(Switch!$D$29,$F$2:$G$44,2,FALSE)+ROW()-2)),\"\")","v":{"$error":"#N/A"}},{"$f":"IF(INDIRECT(\"c\" & (VLOOKUP(Switch!$D$30,$F$2:$G$44,2,FALSE)+ROW()-2))=Switch!$D$30,INDIRECT(\"a\" & (VLOOKUP(Switch!$D$30,$F$2:$G$44,2,FALSE)+ROW()-2)),\"\")","v":{"$error":"#N/A"}},{"$f":"IF(INDIRECT(\"c\" & (VLOOKUP(Switch!$D$31,$F$2:$G$44,2,FALSE)+ROW()-2))=Switch!$D$31,INDIRECT(\"a\" & (VLOOKUP(Switch!$D$31,$F$2:$G$44,2,FALSE)+ROW()-2)),\"\")","v":{"$error":"#N/A"}},{"$f":"IF(INDIRECT(\"c\" & (VLOOKUP(Switch!$D$32,$F$2:$G$44,2,FALSE)+ROW()-2))=Switch!$D$32,INDIRECT(\"a\" & (VLOOKUP(Switch!$D$32,$F$2:$G$44,2,FALSE)+ROW()-2)),\"\")","v":{"$error":"#N/A"}},{"$f":"IF(INDIRECT(\"c\" & (VLOOKUP(Switch!$D$33,$F$2:$G$44,2,FALSE)+ROW()-2))=Switch!$D$33,INDIRECT(\"a\" & (VLOOKUP(Switch!$D$33,$F$2:$G$44,2,FALSE)+ROW()-2)),\"\")","v":{"$error":"#N/A"}},{"$f":"IF(INDIRECT(\"c\" & (VLOOKUP(Switch!$D$34,$F$2:$G$44,2,FALSE)+ROW()-2))=Switch!$D$34,INDIRECT(\"a\" & (VLOOKUP(Switch!$D$34,$F$2:$G$44,2,FALSE)+ROW()-2)),\"\")","v":{"$error":"#N/A"}},{"$f":"IF(INDIRECT(\"c\" & (VLOOKUP(Switch!$D$35,$F$2:$G$44,2,FALSE)+ROW()-2))=Switch!$D$35,INDIRECT(\"a\" & (VLOOKUP(Switch!$D$35,$F$2:$G$44,2,FALSE)+ROW()-2)),\"\")","v":{"$error":"#N/A"}},{"$f":"IF(INDIRECT(\"c\" & (VLOOKUP(Switch!$D$36,$F$2:$G$44,2,FALSE)+ROW()-2))=Switch!$D$36,INDIRECT(\"a\" & (VLOOKUP(Switch!$D$36,$F$2:$G$44,2,FALSE)+ROW()-2)),\"\")","v":{"$error":"#N/A"}},{"$f":"IF(INDIRECT(\"c\" & (VLOOKUP(Switch!$D$37,$F$2:$G$44,2,FALSE)+ROW()-2))=Switch!$D$37,INDIRECT(\"a\" & (VLOOKUP(Switch!$D$37,$F$2:$G$44,2,FALSE)+ROW()-2)),\"\")","v":{"$error":"#N/A"}},{"$f":"IF(INDIRECT(\"c\" & (VLOOKUP(Switch!$D$38,$F$2:$G$44,2,FALSE)+ROW()-2))=Switch!$D$38,INDIRECT(\"a\" & (VLOOKUP(Switch!$D$38,$F$2:$G$44,2,FALSE)+ROW()-2)),\"\")","v":{"$error":"#N/A"}},{"$f":"IF(INDIRECT(\"c\" & (VLOOKUP(Switch!$D$39,$F$2:$G$44,2,FALSE)+ROW()-2))=Switch!$D$39,INDIRECT(\"a\" & (VLOOKUP(Switch!$D$39,$F$2:$G$44,2,FALSE)+ROW()-2)),\"\")","v":{"$error":"#N/A"}},{"$f":"IF(INDIRECT(\"c\" & (VLOOKUP(Switch!$D$40,$F$2:$G$44,2,FALSE)+ROW()-2))=Switch!$D$40,INDIRECT(\"a\" & (VLOOKUP(Switch!$D$40,$F$2:$G$44,2,FALSE)+ROW()-2)),\"\")","v":{"$error":"#N/A"}},{"$f":"IF(INDIRECT(\"c\" & (VLOOKUP(Switch!$D$52,$F$2:$G$44,2,FALSE)+ROW()-2))=Switch!$D$52,INDIRECT(\"a\" & (VLOOKUP(Switch!$D$52,$F$2:$G$44,2,FALSE)+ROW()-2)),\"\")","v":{"$error":"#N/A"}},{"$f":"IF(INDIRECT(\"c\" & (VLOOKUP(Switch!$D$53,$F$2:$G$44,2,FALSE)+ROW()-2))=Switch!$D$53,INDIRECT(\"a\" & (VLOOKUP(Switch!$D$53,$F$2:$G$44,2,FALSE)+ROW()-2)),\"\")","v":{"$error":"#N/A"}},{"$f":"IF(INDIRECT(\"c\" & (VLOOKUP(Switch!$D$54,$F$2:$G$44,2,FALSE)+ROW()-2))=Switch!$D$54,INDIRECT(\"a\" & (VLOOKUP(Switch!$D$54,$F$2:$G$44,2,FALSE)+ROW()-2)),\"\")","v":{"$error":"#N/A"}},{"$f":"IF(INDIRECT(\"c\" & (VLOOKUP(Switch!$D$55,$F$2:$G$44,2,FALSE)+ROW()-2))=Switch!$D$55,INDIRECT(\"a\" & (VLOOKUP(Switch!$D$55,$F$2:$G$44,2,FALSE)+ROW()-2)),\"\")","v":{"$error":"#N/A"}},{"$f":"IF(INDIRECT(\"c\" & (VLOOKUP(Switch!$D$56,$F$2:$G$44,2,FALSE)+ROW()-2))=Switch!$D$56,INDIRECT(\"a\" & (VLOOKUP(Switch!$D$56,$F$2:$G$44,2,FALSE)+ROW()-2)),\"\")","v":{"$error":"#N/A"}},{"$f":"IF(INDIRECT(\"c\" & (VLOOKUP(Switch!$D$57,$F$2:$G$44,2,FALSE)+ROW()-2))=Switch!$D$57,INDIRECT(\"a\" & (VLOOKUP(Switch!$D$57,$F$2:$G$44,2,FALSE)+ROW()-2)),\"\")","v":{"$error":"#N/A"}},{"$f":"IF(INDIRECT(\"c\" & (VLOOKUP(Switch!$D$58,$F$2:$G$44,2,FALSE)+ROW()-2))=Switch!$D$58,INDIRECT(\"a\" & (VLOOKUP(Switch!$D$58,$F$2:$G$44,2,FALSE)+ROW()-2)),\"\")","v":{"$error":"#N/A"}},{"$f":"IF(INDIRECT(\"c\" & (VLOOKUP(Switch!$D$59,$F$2:$G$44,2,FALSE)+ROW()-2))=Switch!$D$59,INDIRECT(\"a\" & (VLOOKUP(Switch!$D$59,$F$2:$G$44,2,FALSE)+ROW()-2)),\"\")","v":{"$error":"#N/A"}},{"$f":"IF(INDIRECT(\"c\" & (VLOOKUP(Switch!$D$60,$F$2:$G$44,2,FALSE)+ROW()-2))=Switch!$D$60,INDIRECT(\"a\" & (VLOOKUP(Switch!$D$60,$F$2:$G$44,2,FALSE)+ROW()-2)),\"\")","v":{"$error":"#N/A"}},{"$f":"IF(INDIRECT(\"c\" & (VLOOKUP(Switch!$D$61,$F$2:$G$44,2,FALSE)+ROW()-2))=Switch!$D$61,INDIRECT(\"a\" & (VLOOKUP(Switch!$D$61,$F$2:$G$44,2,FALSE)+ROW()-2)),\"\")","v":{"$error":"#N/A"}},{"$f":"IF(INDIRECT(\"c\" & (VLOOKUP(Switch!$D$62,$F$2:$G$44,2,FALSE)+ROW()-2))=Switch!$D$62,INDIRECT(\"a\" & (VLOOKUP(Switch!$D$62,$F$2:$G$44,2,FALSE)+ROW()-2)),\"\")","v":{"$error":"#N/A"}},{"$f":"IF(INDIRECT(\"c\" & (VLOOKUP(Switch!$D$63,$F$2:$G$44,2,FALSE)+ROW()-2))=Switch!$D$63,INDIRECT(\"a\" & (VLOOKUP(Switch!$D$63,$F$2:$G$44,2,FALSE)+ROW()-2)),\"\")","v":{"$error":"#N/A"}},{"$f":"IF(INDIRECT(\"c\" & (VLOOKUP(Switch!$D$64,$F$2:$G$44,2,FALSE)+ROW()-2))=Switch!$D$64,INDIRECT(\"a\" & (VLOOKUP(Switch!$D$64,$F$2:$G$44,2,FALSE)+ROW()-2)),\"\")","v":{"$error":"#N/A"}},{"$f":"IF(INDIRECT(\"c\" & (VLOOKUP(Switch!$D$65,$F$2:$G$44,2,FALSE)+ROW()-2))=Switch!$D$65,INDIRECT(\"a\" & (VLOOKUP(Switch!$D$65,$F$2:$G$44,2,FALSE)+ROW()-2)),\"\")","v":{"$error":"#N/A"}},{"$f":"IF(INDIRECT(\"c\" & (VLOOKUP(Switch!$D$66,$F$2:$G$44,2,FALSE)+ROW()-2))=Switch!$D$66,INDIRECT(\"a\" & (VLOOKUP(Switch!$D$66,$F$2:$G$44,2,FALSE)+ROW()-2)),\"\")","v":{"$error":"#N/A"}}]
["1NVEST Index Fund  R","STIFB1","STANLIB Collective Investments",{"$f":"ROW()","v":22},null,"Nedgroup Collective Investments Ltd",{"$f":"VLOOKUP(F22,$C$2:$D$637,2,FALSE)","v":354},{"$f":"IF(INDIRECT(\"c\" & (VLOOKUP(Switch!$D$26,$F$2:$G$44,2,FALSE)+ROW()-2))=Switch!$D$26,INDIRECT(\"a\" & (VLOOKUP(Switch!$D$26,$F$2:$G$44,2,FALSE)+ROW()-2)),\"\")","v":{"$error":"#N/A"}},{"$f":"IF(INDIRECT(\"c\" & (VLOOKUP(Switch!$D$27,$F$2:$G$44,2,FALSE)+ROW()-2))=Switch!$D$27,INDIRECT(\"a\" & (VLOOKUP(Switch!$D$27,$F$2:$G$44,2,FALSE)+ROW()-2)),\"\")","v":{"$error":"#N/A"}},{"$f":"IF(INDIRECT(\"c\" & (VLOOKUP(Switch!$D$28,$F$2:$G$44,2,FALSE)+ROW()-2))=Switch!$D$28,INDIRECT(\"a\" & (VLOOKUP(Switch!$D$28,$F$2:$G$44,2,FALSE)+ROW()-2)),\"\")","v":{"$error":"#N/A"}},{"$f":"IF(INDIRECT(\"c\" & (VLOOKUP(Switch!$D$29,$F$2:$G$44,2,FALSE)+ROW()-2))=Switch!$D$29,INDIRECT(\"a\" & (VLOOKUP(Switch!$D$29,$F$2:$G$44,2,FALSE)+ROW()-2)),\"\")","v":{"$error":"#N/A"}},{"$f":"IF(INDIRECT(\"c\" & (VLOOKUP(Switch!$D$30,$F$2:$G$44,2,FALSE)+ROW()-2))=Switch!$D$30,INDIRECT(\"a\" & (VLOOKUP(Switch!$D$30,$F$2:$G$44,2,FALSE)+ROW()-2)),\"\")","v":{"$error":"#N/A"}},{"$f":"IF(INDIRECT(\"c\" & (VLOOKUP(Switch!$D$31,$F$2:$G$44,2,FALSE)+ROW()-2))=Switch!$D$31,INDIRECT(\"a\" & (VLOOKUP(Switch!$D$31,$F$2:$G$44,2,FALSE)+ROW()-2)),\"\")","v":{"$error":"#N/A"}},{"$f":"IF(INDIRECT(\"c\" & (VLOOKUP(Switch!$D$32,$F$2:$G$44,2,FALSE)+ROW()-2))=Switch!$D$32,INDIRECT(\"a\" & (VLOOKUP(Switch!$D$32,$F$2:$G$44,2,FALSE)+ROW()-2)),\"\")","v":{"$error":"#N/A"}},{"$f":"IF(INDIRECT(\"c\" & (VLOOKUP(Switch!$D$33,$F$2:$G$44,2,FALSE)+ROW()-2))=Switch!$D$33,INDIRECT(\"a\" & (VLOOKUP(Switch!$D$33,$F$2:$G$44,2,FALSE)+ROW()-2)),\"\")","v":{"$error":"#N/A"}},{"$f":"IF(INDIRECT(\"c\" & (VLOOKUP(Switch!$D$34,$F$2:$G$44,2,FALSE)+ROW()-2))=Switch!$D$34,INDIRECT(\"a\" & (VLOOKUP(Switch!$D$34,$F$2:$G$44,2,FALSE)+ROW()-2)),\"\")","v":{"$error":"#N/A"}},{"$f":"IF(INDIRECT(\"c\" & (VLOOKUP(Switch!$D$35,$F$2:$G$44,2,FALSE)+ROW()-2))=Switch!$D$35,INDIRECT(\"a\" & (VLOOKUP(Switch!$D$35,$F$2:$G$44,2,FALSE)+ROW()-2)),\"\")","v":{"$error":"#N/A"}},{"$f":"IF(INDIRECT(\"c\" & (VLOOKUP(Switch!$D$36,$F$2:$G$44,2,FALSE)+ROW()-2))=Switch!$D$36,INDIRECT(\"a\" & (VLOOKUP(Switch!$D$36,$F$2:$G$44,2,FALSE)+ROW()-2)),\"\")","v":{"$error":"#N/A"}},{"$f":"IF(INDIRECT(\"c\" & (VLOOKUP(Switch!$D$37,$F$2:$G$44,2,FALSE)+ROW()-2))=Switch!$D$37,INDIRECT(\"a\" & (VLOOKUP(Switch!$D$37,$F$2:$G$44,2,FALSE)+ROW()-2)),\"\")","v":{"$error":"#N/A"}},{"$f":"IF(INDIRECT(\"c\" & (VLOOKUP(Switch!$D$38,$F$2:$G$44,2,FALSE)+ROW()-2))=Switch!$D$38,INDIRECT(\"a\" & (VLOOKUP(Switch!$D$38,$F$2:$G$44,2,FALSE)+ROW()-2)),\"\")","v":{"$error":"#N/A"}},{"$f":"IF(INDIRECT(\"c\" & (VLOOKUP(Switch!$D$39,$F$2:$G$44,2,FALSE)+ROW()-2))=Switch!$D$39,INDIRECT(\"a\" & (VLOOKUP(Switch!$D$39,$F$2:$G$44,2,FALSE)+ROW()-2)),\"\")","v":{"$error":"#N/A"}},{"$f":"IF(INDIRECT(\"c\" & (VLOOKUP(Switch!$D$40,$F$2:$G$44,2,FALSE)+ROW()-2))=Switch!$D$40,INDIRECT(\"a\" & (VLOOKUP(Switch!$D$40,$F$2:$G$44,2,FALSE)+ROW()-2)),\"\")","v":{"$error":"#N/A"}},{"$f":"IF(INDIRECT(\"c\" & (VLOOKUP(Switch!$D$52,$F$2:$G$44,2,FALSE)+ROW()-2))=Switch!$D$52,INDIRECT(\"a\" & (VLOOKUP(Switch!$D$52,$F$2:$G$44,2,FALSE)+ROW()-2)),\"\")","v":{"$error":"#N/A"}},{"$f":"IF(INDIRECT(\"c\" & (VLOOKUP(Switch!$D$53,$F$2:$G$44,2,FALSE)+ROW()-2))=Switch!$D$53,INDIRECT(\"a\" & (VLOOKUP(Switch!$D$53,$F$2:$G$44,2,FALSE)+ROW()-2)),\"\")","v":{"$error":"#N/A"}},{"$f":"IF(INDIRECT(\"c\" & (VLOOKUP(Switch!$D$54,$F$2:$G$44,2,FALSE)+ROW()-2))=Switch!$D$54,INDIRECT(\"a\" & (VLOOKUP(Switch!$D$54,$F$2:$G$44,2,FALSE)+ROW()-2)),\"\")","v":{"$error":"#N/A"}},{"$f":"IF(INDIRECT(\"c\" & (VLOOKUP(Switch!$D$55,$F$2:$G$44,2,FALSE)+ROW()-2))=Switch!$D$55,INDIRECT(\"a\" & (VLOOKUP(Switch!$D$55,$F$2:$G$44,2,FALSE)+ROW()-2)),\"\")","v":{"$error":"#N/A"}},{"$f":"IF(INDIRECT(\"c\" & (VLOOKUP(Switch!$D$56,$F$2:$G$44,2,FALSE)+ROW()-2))=Switch!$D$56,INDIRECT(\"a\" & (VLOOKUP(Switch!$D$56,$F$2:$G$44,2,FALSE)+ROW()-2)),\"\")","v":{"$error":"#N/A"}},{"$f":"IF(INDIRECT(\"c\" & (VLOOKUP(Switch!$D$57,$F$2:$G$44,2,FALSE)+ROW()-2))=Switch!$D$57,INDIRECT(\"a\" & (VLOOKUP(Switch!$D$57,$F$2:$G$44,2,FALSE)+ROW()-2)),\"\")","v":{"$error":"#N/A"}},{"$f":"IF(INDIRECT(\"c\" & (VLOOKUP(Switch!$D$58,$F$2:$G$44,2,FALSE)+ROW()-2))=Switch!$D$58,INDIRECT(\"a\" & (VLOOKUP(Switch!$D$58,$F$2:$G$44,2,FALSE)+ROW()-2)),\"\")","v":{"$error":"#N/A"}},{"$f":"IF(INDIRECT(\"c\" & (VLOOKUP(Switch!$D$59,$F$2:$G$44,2,FALSE)+ROW()-2))=Switch!$D$59,INDIRECT(\"a\" & (VLOOKUP(Switch!$D$59,$F$2:$G$44,2,FALSE)+ROW()-2)),\"\")","v":{"$error":"#N/A"}},{"$f":"IF(INDIRECT(\"c\" & (VLOOKUP(Switch!$D$60,$F$2:$G$44,2,FALSE)+ROW()-2))=Switch!$D$60,INDIRECT(\"a\" & (VLOOKUP(Switch!$D$60,$F$2:$G$44,2,FALSE)+ROW()-2)),\"\")","v":{"$error":"#N/A"}},{"$f":"IF(INDIRECT(\"c\" & (VLOOKUP(Switch!$D$61,$F$2:$G$44,2,FALSE)+ROW()-2))=Switch!$D$61,INDIRECT(\"a\" & (VLOOKUP(Switch!$D$61,$F$2:$G$44,2,FALSE)+ROW()-2)),\"\")","v":{"$error":"#N/A"}},{"$f":"IF(INDIRECT(\"c\" & (VLOOKUP(Switch!$D$62,$F$2:$G$44,2,FALSE)+ROW()-2))=Switch!$D$62,INDIRECT(\"a\" & (VLOOKUP(Switch!$D$62,$F$2:$G$44,2,FALSE)+ROW()-2)),\"\")","v":{"$error":"#N/A"}},{"$f":"IF(INDIRECT(\"c\" & (VLOOKUP(Switch!$D$63,$F$2:$G$44,2,FALSE)+ROW()-2))=Switch!$D$63,INDIRECT(\"a\" & (VLOOKUP(Switch!$D$63,$F$2:$G$44,2,FALSE)+ROW()-2)),\"\")","v":{"$error":"#N/A"}},{"$f":"IF(INDIRECT(\"c\" & (VLOOKUP(Switch!$D$64,$F$2:$G$44,2,FALSE)+ROW()-2))=Switch!$D$64,INDIRECT(\"a\" & (VLOOKUP(Switch!$D$64,$F$2:$G$44,2,FALSE)+ROW()-2)),\"\")","v":{"$error":"#N/A"}},{"$f":"IF(INDIRECT(\"c\" & (VLOOKUP(Switch!$D$65,$F$2:$G$44,2,FALSE)+ROW()-2))=Switch!$D$65,INDIRECT(\"a\" & (VLOOKUP(Switch!$D$65,$F$2:$G$44,2,FALSE)+ROW()-2)),\"\")","v":{"$error":"#N/A"}},{"$f":"IF(INDIRECT(\"c\" & (VLOOKUP(Switch!$D$66,$F$2:$G$44,2,FALSE)+ROW()-2))=Switch!$D$66,INDIRECT(\"a\" & (VLOOKUP(Switch!$D$66,$F$2:$G$44,2,FALSE)+ROW()-2)),\"\")","v":{"$error":"#N/A"}}]
["1NVEST Index Fund B1","STIFB1","STANLIB Collective Investments",{"$f":"ROW()","v":23},null,"Oasis Crescent Management Company Ltd",{"$f":"VLOOKUP(F23,$C$2:$D$637,2,FALSE)","v":388},{"$f":"IF(INDIRECT(\"c\" & (VLOOKUP(Switch!$D$26,$F$2:$G$44,2,FALSE)+ROW()-2))=Switch!$D$26,INDIRECT(\"a\" & (VLOOKUP(Switch!$D$26,$F$2:$G$44,2,FALSE)+ROW()-2)),\"\")","v":{"$error":"#N/A"}},{"$f":"IF(INDIRECT(\"c\" & (VLOOKUP(Switch!$D$27,$F$2:$G$44,2,FALSE)+ROW()-2))=Switch!$D$27,INDIRECT(\"a\" & (VLOOKUP(Switch!$D$27,$F$2:$G$44,2,FALSE)+ROW()-2)),\"\")","v":{"$error":"#N/A"}},{"$f":"IF(INDIRECT(\"c\" & (VLOOKUP(Switch!$D$28,$F$2:$G$44,2,FALSE)+ROW()-2))=Switch!$D$28,INDIRECT(\"a\" & (VLOOKUP(Switch!$D$28,$F$2:$G$44,2,FALSE)+ROW()-2)),\"\")","v":{"$error":"#N/A"}},{"$f":"IF(INDIRECT(\"c\" & (VLOOKUP(Switch!$D$29,$F$2:$G$44,2,FALSE)+ROW()-2))=Switch!$D$29,INDIRECT(\"a\" & (VLOOKUP(Switch!$D$29,$F$2:$G$44,2,FALSE)+ROW()-2)),\"\")","v":{"$error":"#N/A"}},{"$f":"IF(INDIRECT(\"c\" & (VLOOKUP(Switch!$D$30,$F$2:$G$44,2,FALSE)+ROW()-2))=Switch!$D$30,INDIRECT(\"a\" & (VLOOKUP(Switch!$D$30,$F$2:$G$44,2,FALSE)+ROW()-2)),\"\")","v":{"$error":"#N/A"}},{"$f":"IF(INDIRECT(\"c\" & (VLOOKUP(Switch!$D$31,$F$2:$G$44,2,FALSE)+ROW()-2))=Switch!$D$31,INDIRECT(\"a\" & (VLOOKUP(Switch!$D$31,$F$2:$G$44,2,FALSE)+ROW()-2)),\"\")","v":{"$error":"#N/A"}},{"$f":"IF(INDIRECT(\"c\" & (VLOOKUP(Switch!$D$32,$F$2:$G$44,2,FALSE)+ROW()-2))=Switch!$D$32,INDIRECT(\"a\" & (VLOOKUP(Switch!$D$32,$F$2:$G$44,2,FALSE)+ROW()-2)),\"\")","v":{"$error":"#N/A"}},{"$f":"IF(INDIRECT(\"c\" & (VLOOKUP(Switch!$D$33,$F$2:$G$44,2,FALSE)+ROW()-2))=Switch!$D$33,INDIRECT(\"a\" & (VLOOKUP(Switch!$D$33,$F$2:$G$44,2,FALSE)+ROW()-2)),\"\")","v":{"$error":"#N/A"}},{"$f":"IF(INDIRECT(\"c\" & (VLOOKUP(Switch!$D$34,$F$2:$G$44,2,FALSE)+ROW()-2))=Switch!$D$34,INDIRECT(\"a\" & (VLOOKUP(Switch!$D$34,$F$2:$G$44,2,FALSE)+ROW()-2)),\"\")","v":{"$error":"#N/A"}},{"$f":"IF(INDIRECT(\"c\" & (VLOOKUP(Switch!$D$35,$F$2:$G$44,2,FALSE)+ROW()-2))=Switch!$D$35,INDIRECT(\"a\" & (VLOOKUP(Switch!$D$35,$F$2:$G$44,2,FALSE)+ROW()-2)),\"\")","v":{"$error":"#N/A"}},{"$f":"IF(INDIRECT(\"c\" & (VLOOKUP(Switch!$D$36,$F$2:$G$44,2,FALSE)+ROW()-2))=Switch!$D$36,INDIRECT(\"a\" & (VLOOKUP(Switch!$D$36,$F$2:$G$44,2,FALSE)+ROW()-2)),\"\")","v":{"$error":"#N/A"}},{"$f":"IF(INDIRECT(\"c\" & (VLOOKUP(Switch!$D$37,$F$2:$G$44,2,FALSE)+ROW()-2))=Switch!$D$37,INDIRECT(\"a\" & (VLOOKUP(Switch!$D$37,$F$2:$G$44,2,FALSE)+ROW()-2)),\"\")","v":{"$error":"#N/A"}},{"$f":"IF(INDIRECT(\"c\" & (VLOOKUP(Switch!$D$38,$F$2:$G$44,2,FALSE)+ROW()-2))=Switch!$D$38,INDIRECT(\"a\" & (VLOOKUP(Switch!$D$38,$F$2:$G$44,2,FALSE)+ROW()-2)),\"\")","v":{"$error":"#N/A"}},{"$f":"IF(INDIRECT(\"c\" & (VLOOKUP(Switch!$D$39,$F$2:$G$44,2,FALSE)+ROW()-2))=Switch!$D$39,INDIRECT(\"a\" & (VLOOKUP(Switch!$D$39,$F$2:$G$44,2,FALSE)+ROW()-2)),\"\")","v":{"$error":"#N/A"}},{"$f":"IF(INDIRECT(\"c\" & (VLOOKUP(Switch!$D$40,$F$2:$G$44,2,FALSE)+ROW()-2))=Switch!$D$40,INDIRECT(\"a\" & (VLOOKUP(Switch!$D$40,$F$2:$G$44,2,FALSE)+ROW()-2)),\"\")","v":{"$error":"#N/A"}},{"$f":"IF(INDIRECT(\"c\" & (VLOOKUP(Switch!$D$52,$F$2:$G$44,2,FALSE)+ROW()-2))=Switch!$D$52,INDIRECT(\"a\" & (VLOOKUP(Switch!$D$52,$F$2:$G$44,2,FALSE)+ROW()-2)),\"\")","v":{"$error":"#N/A"}},{"$f":"IF(INDIRECT(\"c\" & (VLOOKUP(Switch!$D$53,$F$2:$G$44,2,FALSE)+ROW()-2))=Switch!$D$53,INDIRECT(\"a\" & (VLOOKUP(Switch!$D$53,$F$2:$G$44,2,FALSE)+ROW()-2)),\"\")","v":{"$error":"#N/A"}},{"$f":"IF(INDIRECT(\"c\" & (VLOOKUP(Switch!$D$54,$F$2:$G$44,2,FALSE)+ROW()-2))=Switch!$D$54,INDIRECT(\"a\" & (VLOOKUP(Switch!$D$54,$F$2:$G$44,2,FALSE)+ROW()-2)),\"\")","v":{"$error":"#N/A"}},{"$f":"IF(INDIRECT(\"c\" & (VLOOKUP(Switch!$D$55,$F$2:$G$44,2,FALSE)+ROW()-2))=Switch!$D$55,INDIRECT(\"a\" & (VLOOKUP(Switch!$D$55,$F$2:$G$44,2,FALSE)+ROW()-2)),\"\")","v":{"$error":"#N/A"}},{"$f":"IF(INDIRECT(\"c\" & (VLOOKUP(Switch!$D$56,$F$2:$G$44,2,FALSE)+ROW()-2))=Switch!$D$56,INDIRECT(\"a\" & (VLOOKUP(Switch!$D$56,$F$2:$G$44,2,FALSE)+ROW()-2)),\"\")","v":{"$error":"#N/A"}},{"$f":"IF(INDIRECT(\"c\" & (VLOOKUP(Switch!$D$57,$F$2:$G$44,2,FALSE)+ROW()-2))=Switch!$D$57,INDIRECT(\"a\" & (VLOOKUP(Switch!$D$57,$F$2:$G$44,2,FALSE)+ROW()-2)),\"\")","v":{"$error":"#N/A"}},{"$f":"IF(INDIRECT(\"c\" & (VLOOKUP(Switch!$D$58,$F$2:$G$44,2,FALSE)+ROW()-2))=Switch!$D$58,INDIRECT(\"a\" & (VLOOKUP(Switch!$D$58,$F$2:$G$44,2,FALSE)+ROW()-2)),\"\")","v":{"$error":"#N/A"}},{"$f":"IF(INDIRECT(\"c\" & (VLOOKUP(Switch!$D$59,$F$2:$G$44,2,FALSE)+ROW()-2))=Switch!$D$59,INDIRECT(\"a\" & (VLOOKUP(Switch!$D$59,$F$2:$G$44,2,FALSE)+ROW()-2)),\"\")","v":{"$error":"#N/A"}},{"$f":"IF(INDIRECT(\"c\" & (VLOOKUP(Switch!$D$60,$F$2:$G$44,2,FALSE)+ROW()-2))=Switch!$D$60,INDIRECT(\"a\" & (VLOOKUP(Switch!$D$60,$F$2:$G$44,2,FALSE)+ROW()-2)),\"\")","v":{"$error":"#N/A"}},{"$f":"IF(INDIRECT(\"c\" & (VLOOKUP(Switch!$D$61,$F$2:$G$44,2,FALSE)+ROW()-2))=Switch!$D$61,INDIRECT(\"a\" & (VLOOKUP(Switch!$D$61,$F$2:$G$44,2,FALSE)+ROW()-2)),\"\")","v":{"$error":"#N/A"}},{"$f":"IF(INDIRECT(\"c\" & (VLOOKUP(Switch!$D$62,$F$2:$G$44,2,FALSE)+ROW()-2))=Switch!$D$62,INDIRECT(\"a\" & (VLOOKUP(Switch!$D$62,$F$2:$G$44,2,FALSE)+ROW()-2)),\"\")","v":{"$error":"#N/A"}},{"$f":"IF(INDIRECT(\"c\" & (VLOOKUP(Switch!$D$63,$F$2:$G$44,2,FALSE)+ROW()-2))=Switch!$D$63,INDIRECT(\"a\" & (VLOOKUP(Switch!$D$63,$F$2:$G$44,2,FALSE)+ROW()-2)),\"\")","v":{"$error":"#N/A"}},{"$f":"IF(INDIRECT(\"c\" & (VLOOKUP(Switch!$D$64,$F$2:$G$44,2,FALSE)+ROW()-2))=Switch!$D$64,INDIRECT(\"a\" & (VLOOKUP(Switch!$D$64,$F$2:$G$44,2,FALSE)+ROW()-2)),\"\")","v":{"$error":"#N/A"}},{"$f":"IF(INDIRECT(\"c\" & (VLOOKUP(Switch!$D$65,$F$2:$G$44,2,FALSE)+ROW()-2))=Switch!$D$65,INDIRECT(\"a\" & (VLOOKUP(Switch!$D$65,$F$2:$G$44,2,FALSE)+ROW()-2)),\"\")","v":{"$error":"#N/A"}},{"$f":"IF(INDIRECT(\"c\" & (VLOOKUP(Switch!$D$66,$F$2:$G$44,2,FALSE)+ROW()-2))=Switch!$D$66,INDIRECT(\"a\" & (VLOOKUP(Switch!$D$66,$F$2:$G$44,2,FALSE)+ROW()-2)),\"\")","v":{"$error":"#N/A"}}]
["1NVEST Inflation Linked Bond Index Tracker Fund B1","SLIB1","STANLIB Collective Investments",{"$f":"ROW()","v":24},null,"Old Mutual Unit Trust Managers Limited",{"$f":"VLOOKUP(F24,$C$2:$D$637,2,FALSE)","v":396},{"$f":"IF(INDIRECT(\"c\" & (VLOOKUP(Switch!$D$26,$F$2:$G$44,2,FALSE)+ROW()-2))=Switch!$D$26,INDIRECT(\"a\" & (VLOOKUP(Switch!$D$26,$F$2:$G$44,2,FALSE)+ROW()-2)),\"\")","v":{"$error":"#N/A"}},{"$f":"IF(INDIRECT(\"c\" & (VLOOKUP(Switch!$D$27,$F$2:$G$44,2,FALSE)+ROW()-2))=Switch!$D$27,INDIRECT(\"a\" & (VLOOKUP(Switch!$D$27,$F$2:$G$44,2,FALSE)+ROW()-2)),\"\")","v":{"$error":"#N/A"}},{"$f":"IF(INDIRECT(\"c\" & (VLOOKUP(Switch!$D$28,$F$2:$G$44,2,FALSE)+ROW()-2))=Switch!$D$28,INDIRECT(\"a\" & (VLOOKUP(Switch!$D$28,$F$2:$G$44,2,FALSE)+ROW()-2)),\"\")","v":{"$error":"#N/A"}},{"$f":"IF(INDIRECT(\"c\" & (VLOOKUP(Switch!$D$29,$F$2:$G$44,2,FALSE)+ROW()-2))=Switch!$D$29,INDIRECT(\"a\" & (VLOOKUP(Switch!$D$29,$F$2:$G$44,2,FALSE)+ROW()-2)),\"\")","v":{"$error":"#N/A"}},{"$f":"IF(INDIRECT(\"c\" & (VLOOKUP(Switch!$D$30,$F$2:$G$44,2,FALSE)+ROW()-2))=Switch!$D$30,INDIRECT(\"a\" & (VLOOKUP(Switch!$D$30,$F$2:$G$44,2,FALSE)+ROW()-2)),\"\")","v":{"$error":"#N/A"}},{"$f":"IF(INDIRECT(\"c\" & (VLOOKUP(Switch!$D$31,$F$2:$G$44,2,FALSE)+ROW()-2))=Switch!$D$31,INDIRECT(\"a\" & (VLOOKUP(Switch!$D$31,$F$2:$G$44,2,FALSE)+ROW()-2)),\"\")","v":{"$error":"#N/A"}},{"$f":"IF(INDIRECT(\"c\" & (VLOOKUP(Switch!$D$32,$F$2:$G$44,2,FALSE)+ROW()-2))=Switch!$D$32,INDIRECT(\"a\" & (VLOOKUP(Switch!$D$32,$F$2:$G$44,2,FALSE)+ROW()-2)),\"\")","v":{"$error":"#N/A"}},{"$f":"IF(INDIRECT(\"c\" & (VLOOKUP(Switch!$D$33,$F$2:$G$44,2,FALSE)+ROW()-2))=Switch!$D$33,INDIRECT(\"a\" & (VLOOKUP(Switch!$D$33,$F$2:$G$44,2,FALSE)+ROW()-2)),\"\")","v":{"$error":"#N/A"}},{"$f":"IF(INDIRECT(\"c\" & (VLOOKUP(Switch!$D$34,$F$2:$G$44,2,FALSE)+ROW()-2))=Switch!$D$34,INDIRECT(\"a\" & (VLOOKUP(Switch!$D$34,$F$2:$G$44,2,FALSE)+ROW()-2)),\"\")","v":{"$error":"#N/A"}},{"$f":"IF(INDIRECT(\"c\" & (VLOOKUP(Switch!$D$35,$F$2:$G$44,2,FALSE)+ROW()-2))=Switch!$D$35,INDIRECT(\"a\" & (VLOOKUP(Switch!$D$35,$F$2:$G$44,2,FALSE)+ROW()-2)),\"\")","v":{"$error":"#N/A"}},{"$f":"IF(INDIRECT(\"c\" & (VLOOKUP(Switch!$D$36,$F$2:$G$44,2,FALSE)+ROW()-2))=Switch!$D$36,INDIRECT(\"a\" & (VLOOKUP(Switch!$D$36,$F$2:$G$44,2,FALSE)+ROW()-2)),\"\")","v":{"$error":"#N/A"}},{"$f":"IF(INDIRECT(\"c\" & (VLOOKUP(Switch!$D$37,$F$2:$G$44,2,FALSE)+ROW()-2))=Switch!$D$37,INDIRECT(\"a\" & (VLOOKUP(Switch!$D$37,$F$2:$G$44,2,FALSE)+ROW()-2)),\"\")","v":{"$error":"#N/A"}},{"$f":"IF(INDIRECT(\"c\" & (VLOOKUP(Switch!$D$38,$F$2:$G$44,2,FALSE)+ROW()-2))=Switch!$D$38,INDIRECT(\"a\" & (VLOOKUP(Switch!$D$38,$F$2:$G$44,2,FALSE)+ROW()-2)),\"\")","v":{"$error":"#N/A"}},{"$f":"IF(INDIRECT(\"c\" & (VLOOKUP(Switch!$D$39,$F$2:$G$44,2,FALSE)+ROW()-2))=Switch!$D$39,INDIRECT(\"a\" & (VLOOKUP(Switch!$D$39,$F$2:$G$44,2,FALSE)+ROW()-2)),\"\")","v":{"$error":"#N/A"}},{"$f":"IF(INDIRECT(\"c\" & (VLOOKUP(Switch!$D$40,$F$2:$G$44,2,FALSE)+ROW()-2))=Switch!$D$40,INDIRECT(\"a\" & (VLOOKUP(Switch!$D$40,$F$2:$G$44,2,FALSE)+ROW()-2)),\"\")","v":{"$error":"#N/A"}},{"$f":"IF(INDIRECT(\"c\" & (VLOOKUP(Switch!$D$52,$F$2:$G$44,2,FALSE)+ROW()-2))=Switch!$D$52,INDIRECT(\"a\" & (VLOOKUP(Switch!$D$52,$F$2:$G$44,2,FALSE)+ROW()-2)),\"\")","v":{"$error":"#N/A"}},{"$f":"IF(INDIRECT(\"c\" & (VLOOKUP(Switch!$D$53,$F$2:$G$44,2,FALSE)+ROW()-2))=Switch!$D$53,INDIRECT(\"a\" & (VLOOKUP(Switch!$D$53,$F$2:$G$44,2,FALSE)+ROW()-2)),\"\")","v":{"$error":"#N/A"}},{"$f":"IF(INDIRECT(\"c\" & (VLOOKUP(Switch!$D$54,$F$2:$G$44,2,FALSE)+ROW()-2))=Switch!$D$54,INDIRECT(\"a\" & (VLOOKUP(Switch!$D$54,$F$2:$G$44,2,FALSE)+ROW()-2)),\"\")","v":{"$error":"#N/A"}},{"$f":"IF(INDIRECT(\"c\" & (VLOOKUP(Switch!$D$55,$F$2:$G$44,2,FALSE)+ROW()-2))=Switch!$D$55,INDIRECT(\"a\" & (VLOOKUP(Switch!$D$55,$F$2:$G$44,2,FALSE)+ROW()-2)),\"\")","v":{"$error":"#N/A"}},{"$f":"IF(INDIRECT(\"c\" & (VLOOKUP(Switch!$D$56,$F$2:$G$44,2,FALSE)+ROW()-2))=Switch!$D$56,INDIRECT(\"a\" & (VLOOKUP(Switch!$D$56,$F$2:$G$44,2,FALSE)+ROW()-2)),\"\")","v":{"$error":"#N/A"}},{"$f":"IF(INDIRECT(\"c\" & (VLOOKUP(Switch!$D$57,$F$2:$G$44,2,FALSE)+ROW()-2))=Switch!$D$57,INDIRECT(\"a\" & (VLOOKUP(Switch!$D$57,$F$2:$G$44,2,FALSE)+ROW()-2)),\"\")","v":{"$error":"#N/A"}},{"$f":"IF(INDIRECT(\"c\" & (VLOOKUP(Switch!$D$58,$F$2:$G$44,2,FALSE)+ROW()-2))=Switch!$D$58,INDIRECT(\"a\" & (VLOOKUP(Switch!$D$58,$F$2:$G$44,2,FALSE)+ROW()-2)),\"\")","v":{"$error":"#N/A"}},{"$f":"IF(INDIRECT(\"c\" & (VLOOKUP(Switch!$D$59,$F$2:$G$44,2,FALSE)+ROW()-2))=Switch!$D$59,INDIRECT(\"a\" & (VLOOKUP(Switch!$D$59,$F$2:$G$44,2,FALSE)+ROW()-2)),\"\")","v":{"$error":"#N/A"}},{"$f":"IF(INDIRECT(\"c\" & (VLOOKUP(Switch!$D$60,$F$2:$G$44,2,FALSE)+ROW()-2))=Switch!$D$60,INDIRECT(\"a\" & (VLOOKUP(Switch!$D$60,$F$2:$G$44,2,FALSE)+ROW()-2)),\"\")","v":{"$error":"#N/A"}},{"$f":"IF(INDIRECT(\"c\" & (VLOOKUP(Switch!$D$61,$F$2:$G$44,2,FALSE)+ROW()-2))=Switch!$D$61,INDIRECT(\"a\" & (VLOOKUP(Switch!$D$61,$F$2:$G$44,2,FALSE)+ROW()-2)),\"\")","v":{"$error":"#N/A"}},{"$f":"IF(INDIRECT(\"c\" & (VLOOKUP(Switch!$D$62,$F$2:$G$44,2,FALSE)+ROW()-2))=Switch!$D$62,INDIRECT(\"a\" & (VLOOKUP(Switch!$D$62,$F$2:$G$44,2,FALSE)+ROW()-2)),\"\")","v":{"$error":"#N/A"}},{"$f":"IF(INDIRECT(\"c\" & (VLOOKUP(Switch!$D$63,$F$2:$G$44,2,FALSE)+ROW()-2))=Switch!$D$63,INDIRECT(\"a\" & (VLOOKUP(Switch!$D$63,$F$2:$G$44,2,FALSE)+ROW()-2)),\"\")","v":{"$error":"#N/A"}},{"$f":"IF(INDIRECT(\"c\" & (VLOOKUP(Switch!$D$64,$F$2:$G$44,2,FALSE)+ROW()-2))=Switch!$D$64,INDIRECT(\"a\" & (VLOOKUP(Switch!$D$64,$F$2:$G$44,2,FALSE)+ROW()-2)),\"\")","v":{"$error":"#N/A"}},{"$f":"IF(INDIRECT(\"c\" & (VLOOKUP(Switch!$D$65,$F$2:$G$44,2,FALSE)+ROW()-2))=Switch!$D$65,INDIRECT(\"a\" & (VLOOKUP(Switch!$D$65,$F$2:$G$44,2,FALSE)+ROW()-2)),\"\")","v":{"$error":"#N/A"}},{"$f":"IF(INDIRECT(\"c\" & (VLOOKUP(Switch!$D$66,$F$2:$G$44,2,FALSE)+ROW()-2))=Switch!$D$66,INDIRECT(\"a\" & (VLOOKUP(Switch!$D$66,$F$2:$G$44,2,FALSE)+ROW()-2)),\"\")","v":{"$error":"#N/A"}}]
["1NVEST Low Equity Balanced Passive FoF B1","SBFB1","STANLIB Collective Investments",{"$f":"ROW()","v":25},null,"Prescient Management Company Ltd",{"$f":"VLOOKUP(F25,$C$2:$D$637,2,FALSE)","v":436},{"$f":"IF(INDIRECT(\"c\" & (VLOOKUP(Switch!$D$26,$F$2:$G$44,2,FALSE)+ROW()-2))=Switch!$D$26,INDIRECT(\"a\" & (VLOOKUP(Switch!$D$26,$F$2:$G$44,2,FALSE)+ROW()-2)),\"\")","v":{"$error":"#N/A"}},{"$f":"IF(INDIRECT(\"c\" & (VLOOKUP(Switch!$D$27,$F$2:$G$44,2,FALSE)+ROW()-2))=Switch!$D$27,INDIRECT(\"a\" & (VLOOKUP(Switch!$D$27,$F$2:$G$44,2,FALSE)+ROW()-2)),\"\")","v":{"$error":"#N/A"}},{"$f":"IF(INDIRECT(\"c\" & (VLOOKUP(Switch!$D$28,$F$2:$G$44,2,FALSE)+ROW()-2))=Switch!$D$28,INDIRECT(\"a\" & (VLOOKUP(Switch!$D$28,$F$2:$G$44,2,FALSE)+ROW()-2)),\"\")","v":{"$error":"#N/A"}},{"$f":"IF(INDIRECT(\"c\" & (VLOOKUP(Switch!$D$29,$F$2:$G$44,2,FALSE)+ROW()-2))=Switch!$D$29,INDIRECT(\"a\" & (VLOOKUP(Switch!$D$29,$F$2:$G$44,2,FALSE)+ROW()-2)),\"\")","v":{"$error":"#N/A"}},{"$f":"IF(INDIRECT(\"c\" & (VLOOKUP(Switch!$D$30,$F$2:$G$44,2,FALSE)+ROW()-2))=Switch!$D$30,INDIRECT(\"a\" & (VLOOKUP(Switch!$D$30,$F$2:$G$44,2,FALSE)+ROW()-2)),\"\")","v":{"$error":"#N/A"}},{"$f":"IF(INDIRECT(\"c\" & (VLOOKUP(Switch!$D$31,$F$2:$G$44,2,FALSE)+ROW()-2))=Switch!$D$31,INDIRECT(\"a\" & (VLOOKUP(Switch!$D$31,$F$2:$G$44,2,FALSE)+ROW()-2)),\"\")","v":{"$error":"#N/A"}},{"$f":"IF(INDIRECT(\"c\" & (VLOOKUP(Switch!$D$32,$F$2:$G$44,2,FALSE)+ROW()-2))=Switch!$D$32,INDIRECT(\"a\" & (VLOOKUP(Switch!$D$32,$F$2:$G$44,2,FALSE)+ROW()-2)),\"\")","v":{"$error":"#N/A"}},{"$f":"IF(INDIRECT(\"c\" & (VLOOKUP(Switch!$D$33,$F$2:$G$44,2,FALSE)+ROW()-2))=Switch!$D$33,INDIRECT(\"a\" & (VLOOKUP(Switch!$D$33,$F$2:$G$44,2,FALSE)+ROW()-2)),\"\")","v":{"$error":"#N/A"}},{"$f":"IF(INDIRECT(\"c\" & (VLOOKUP(Switch!$D$34,$F$2:$G$44,2,FALSE)+ROW()-2))=Switch!$D$34,INDIRECT(\"a\" & (VLOOKUP(Switch!$D$34,$F$2:$G$44,2,FALSE)+ROW()-2)),\"\")","v":{"$error":"#N/A"}},{"$f":"IF(INDIRECT(\"c\" & (VLOOKUP(Switch!$D$35,$F$2:$G$44,2,FALSE)+ROW()-2))=Switch!$D$35,INDIRECT(\"a\" & (VLOOKUP(Switch!$D$35,$F$2:$G$44,2,FALSE)+ROW()-2)),\"\")","v":{"$error":"#N/A"}},{"$f":"IF(INDIRECT(\"c\" & (VLOOKUP(Switch!$D$36,$F$2:$G$44,2,FALSE)+ROW()-2))=Switch!$D$36,INDIRECT(\"a\" & (VLOOKUP(Switch!$D$36,$F$2:$G$44,2,FALSE)+ROW()-2)),\"\")","v":{"$error":"#N/A"}},{"$f":"IF(INDIRECT(\"c\" & (VLOOKUP(Switch!$D$37,$F$2:$G$44,2,FALSE)+ROW()-2))=Switch!$D$37,INDIRECT(\"a\" & (VLOOKUP(Switch!$D$37,$F$2:$G$44,2,FALSE)+ROW()-2)),\"\")","v":{"$error":"#N/A"}},{"$f":"IF(INDIRECT(\"c\" & (VLOOKUP(Switch!$D$38,$F$2:$G$44,2,FALSE)+ROW()-2))=Switch!$D$38,INDIRECT(\"a\" & (VLOOKUP(Switch!$D$38,$F$2:$G$44,2,FALSE)+ROW()-2)),\"\")","v":{"$error":"#N/A"}},{"$f":"IF(INDIRECT(\"c\" & (VLOOKUP(Switch!$D$39,$F$2:$G$44,2,FALSE)+ROW()-2))=Switch!$D$39,INDIRECT(\"a\" & (VLOOKUP(Switch!$D$39,$F$2:$G$44,2,FALSE)+ROW()-2)),\"\")","v":{"$error":"#N/A"}},{"$f":"IF(INDIRECT(\"c\" & (VLOOKUP(Switch!$D$40,$F$2:$G$44,2,FALSE)+ROW()-2))=Switch!$D$40,INDIRECT(\"a\" & (VLOOKUP(Switch!$D$40,$F$2:$G$44,2,FALSE)+ROW()-2)),\"\")","v":{"$error":"#N/A"}},{"$f":"IF(INDIRECT(\"c\" & (VLOOKUP(Switch!$D$52,$F$2:$G$44,2,FALSE)+ROW()-2))=Switch!$D$52,INDIRECT(\"a\" & (VLOOKUP(Switch!$D$52,$F$2:$G$44,2,FALSE)+ROW()-2)),\"\")","v":{"$error":"#N/A"}},{"$f":"IF(INDIRECT(\"c\" & (VLOOKUP(Switch!$D$53,$F$2:$G$44,2,FALSE)+ROW()-2))=Switch!$D$53,INDIRECT(\"a\" & (VLOOKUP(Switch!$D$53,$F$2:$G$44,2,FALSE)+ROW()-2)),\"\")","v":{"$error":"#N/A"}},{"$f":"IF(INDIRECT(\"c\" & (VLOOKUP(Switch!$D$54,$F$2:$G$44,2,FALSE)+ROW()-2))=Switch!$D$54,INDIRECT(\"a\" & (VLOOKUP(Switch!$D$54,$F$2:$G$44,2,FALSE)+ROW()-2)),\"\")","v":{"$error":"#N/A"}},{"$f":"IF(INDIRECT(\"c\" & (VLOOKUP(Switch!$D$55,$F$2:$G$44,2,FALSE)+ROW()-2))=Switch!$D$55,INDIRECT(\"a\" & (VLOOKUP(Switch!$D$55,$F$2:$G$44,2,FALSE)+ROW()-2)),\"\")","v":{"$error":"#N/A"}},{"$f":"IF(INDIRECT(\"c\" & (VLOOKUP(Switch!$D$56,$F$2:$G$44,2,FALSE)+ROW()-2))=Switch!$D$56,INDIRECT(\"a\" & (VLOOKUP(Switch!$D$56,$F$2:$G$44,2,FALSE)+ROW()-2)),\"\")","v":{"$error":"#N/A"}},{"$f":"IF(INDIRECT(\"c\" & (VLOOKUP(Switch!$D$57,$F$2:$G$44,2,FALSE)+ROW()-2))=Switch!$D$57,INDIRECT(\"a\" & (VLOOKUP(Switch!$D$57,$F$2:$G$44,2,FALSE)+ROW()-2)),\"\")","v":{"$error":"#N/A"}},{"$f":"IF(INDIRECT(\"c\" & (VLOOKUP(Switch!$D$58,$F$2:$G$44,2,FALSE)+ROW()-2))=Switch!$D$58,INDIRECT(\"a\" & (VLOOKUP(Switch!$D$58,$F$2:$G$44,2,FALSE)+ROW()-2)),\"\")","v":{"$error":"#N/A"}},{"$f":"IF(INDIRECT(\"c\" & (VLOOKUP(Switch!$D$59,$F$2:$G$44,2,FALSE)+ROW()-2))=Switch!$D$59,INDIRECT(\"a\" & (VLOOKUP(Switch!$D$59,$F$2:$G$44,2,FALSE)+ROW()-2)),\"\")","v":{"$error":"#N/A"}},{"$f":"IF(INDIRECT(\"c\" & (VLOOKUP(Switch!$D$60,$F$2:$G$44,2,FALSE)+ROW()-2))=Switch!$D$60,INDIRECT(\"a\" & (VLOOKUP(Switch!$D$60,$F$2:$G$44,2,FALSE)+ROW()-2)),\"\")","v":{"$error":"#N/A"}},{"$f":"IF(INDIRECT(\"c\" & (VLOOKUP(Switch!$D$61,$F$2:$G$44,2,FALSE)+ROW()-2))=Switch!$D$61,INDIRECT(\"a\" & (VLOOKUP(Switch!$D$61,$F$2:$G$44,2,FALSE)+ROW()-2)),\"\")","v":{"$error":"#N/A"}},{"$f":"IF(INDIRECT(\"c\" & (VLOOKUP(Switch!$D$62,$F$2:$G$44,2,FALSE)+ROW()-2))=Switch!$D$62,INDIRECT(\"a\" & (VLOOKUP(Switch!$D$62,$F$2:$G$44,2,FALSE)+ROW()-2)),\"\")","v":{"$error":"#N/A"}},{"$f":"IF(INDIRECT(\"c\" & (VLOOKUP(Switch!$D$63,$F$2:$G$44,2,FALSE)+ROW()-2))=Switch!$D$63,INDIRECT(\"a\" & (VLOOKUP(Switch!$D$63,$F$2:$G$44,2,FALSE)+ROW()-2)),\"\")","v":{"$error":"#N/A"}},{"$f":"IF(INDIRECT(\"c\" & (VLOOKUP(Switch!$D$64,$F$2:$G$44,2,FALSE)+ROW()-2))=Switch!$D$64,INDIRECT(\"a\" & (VLOOKUP(Switch!$D$64,$F$2:$G$44,2,FALSE)+ROW()-2)),\"\")","v":{"$error":"#N/A"}},{"$f":"IF(INDIRECT(\"c\" & (VLOOKUP(Switch!$D$65,$F$2:$G$44,2,FALSE)+ROW()-2))=Switch!$D$65,INDIRECT(\"a\" & (VLOOKUP(Switch!$D$65,$F$2:$G$44,2,FALSE)+ROW()-2)),\"\")","v":{"$error":"#N/A"}},{"$f":"IF(INDIRECT(\"c\" & (VLOOKUP(Switch!$D$66,$F$2:$G$44,2,FALSE)+ROW()-2))=Switch!$D$66,INDIRECT(\"a\" & (VLOOKUP(Switch!$D$66,$F$2:$G$44,2,FALSE)+ROW()-2)),\"\")","v":{"$error":"#N/A"}}]
["1NVEST MSCI World Index Feeder Fund B1","SMWB1","STANLIB Collective Investments",{"$f":"ROW()","v":26},null,"Prudential Management",{"$f":"VLOOKUP(F26,$C$2:$D$637,2,FALSE)","v":472},{"$f":"IF(INDIRECT(\"c\" & (VLOOKUP(Switch!$D$26,$F$2:$G$44,2,FALSE)+ROW()-2))=Switch!$D$26,INDIRECT(\"a\" & (VLOOKUP(Switch!$D$26,$F$2:$G$44,2,FALSE)+ROW()-2)),\"\")","v":{"$error":"#N/A"}},{"$f":"IF(INDIRECT(\"c\" & (VLOOKUP(Switch!$D$27,$F$2:$G$44,2,FALSE)+ROW()-2))=Switch!$D$27,INDIRECT(\"a\" & (VLOOKUP(Switch!$D$27,$F$2:$G$44,2,FALSE)+ROW()-2)),\"\")","v":{"$error":"#N/A"}},{"$f":"IF(INDIRECT(\"c\" & (VLOOKUP(Switch!$D$28,$F$2:$G$44,2,FALSE)+ROW()-2))=Switch!$D$28,INDIRECT(\"a\" & (VLOOKUP(Switch!$D$28,$F$2:$G$44,2,FALSE)+ROW()-2)),\"\")","v":{"$error":"#N/A"}},{"$f":"IF(INDIRECT(\"c\" & (VLOOKUP(Switch!$D$29,$F$2:$G$44,2,FALSE)+ROW()-2))=Switch!$D$29,INDIRECT(\"a\" & (VLOOKUP(Switch!$D$29,$F$2:$G$44,2,FALSE)+ROW()-2)),\"\")","v":{"$error":"#N/A"}},{"$f":"IF(INDIRECT(\"c\" & (VLOOKUP(Switch!$D$30,$F$2:$G$44,2,FALSE)+ROW()-2))=Switch!$D$30,INDIRECT(\"a\" & (VLOOKUP(Switch!$D$30,$F$2:$G$44,2,FALSE)+ROW()-2)),\"\")","v":{"$error":"#N/A"}},{"$f":"IF(INDIRECT(\"c\" & (VLOOKUP(Switch!$D$31,$F$2:$G$44,2,FALSE)+ROW()-2))=Switch!$D$31,INDIRECT(\"a\" & (VLOOKUP(Switch!$D$31,$F$2:$G$44,2,FALSE)+ROW()-2)),\"\")","v":{"$error":"#N/A"}},{"$f":"IF(INDIRECT(\"c\" & (VLOOKUP(Switch!$D$32,$F$2:$G$44,2,FALSE)+ROW()-2))=Switch!$D$32,INDIRECT(\"a\" & (VLOOKUP(Switch!$D$32,$F$2:$G$44,2,FALSE)+ROW()-2)),\"\")","v":{"$error":"#N/A"}},{"$f":"IF(INDIRECT(\"c\" & (VLOOKUP(Switch!$D$33,$F$2:$G$44,2,FALSE)+ROW()-2))=Switch!$D$33,INDIRECT(\"a\" & (VLOOKUP(Switch!$D$33,$F$2:$G$44,2,FALSE)+ROW()-2)),\"\")","v":{"$error":"#N/A"}},{"$f":"IF(INDIRECT(\"c\" & (VLOOKUP(Switch!$D$34,$F$2:$G$44,2,FALSE)+ROW()-2))=Switch!$D$34,INDIRECT(\"a\" & (VLOOKUP(Switch!$D$34,$F$2:$G$44,2,FALSE)+ROW()-2)),\"\")","v":{"$error":"#N/A"}},{"$f":"IF(INDIRECT(\"c\" & (VLOOKUP(Switch!$D$35,$F$2:$G$44,2,FALSE)+ROW()-2))=Switch!$D$35,INDIRECT(\"a\" & (VLOOKUP(Switch!$D$35,$F$2:$G$44,2,FALSE)+ROW()-2)),\"\")","v":{"$error":"#N/A"}},{"$f":"IF(INDIRECT(\"c\" & (VLOOKUP(Switch!$D$36,$F$2:$G$44,2,FALSE)+ROW()-2))=Switch!$D$36,INDIRECT(\"a\" & (VLOOKUP(Switch!$D$36,$F$2:$G$44,2,FALSE)+ROW()-2)),\"\")","v":{"$error":"#N/A"}},{"$f":"IF(INDIRECT(\"c\" & (VLOOKUP(Switch!$D$37,$F$2:$G$44,2,FALSE)+ROW()-2))=Switch!$D$37,INDIRECT(\"a\" & (VLOOKUP(Switch!$D$37,$F$2:$G$44,2,FALSE)+ROW()-2)),\"\")","v":{"$error":"#N/A"}},{"$f":"IF(INDIRECT(\"c\" & (VLOOKUP(Switch!$D$38,$F$2:$G$44,2,FALSE)+ROW()-2))=Switch!$D$38,INDIRECT(\"a\" & (VLOOKUP(Switch!$D$38,$F$2:$G$44,2,FALSE)+ROW()-2)),\"\")","v":{"$error":"#N/A"}},{"$f":"IF(INDIRECT(\"c\" & (VLOOKUP(Switch!$D$39,$F$2:$G$44,2,FALSE)+ROW()-2))=Switch!$D$39,INDIRECT(\"a\" & (VLOOKUP(Switch!$D$39,$F$2:$G$44,2,FALSE)+ROW()-2)),\"\")","v":{"$error":"#N/A"}},{"$f":"IF(INDIRECT(\"c\" & (VLOOKUP(Switch!$D$40,$F$2:$G$44,2,FALSE)+ROW()-2))=Switch!$D$40,INDIRECT(\"a\" & (VLOOKUP(Switch!$D$40,$F$2:$G$44,2,FALSE)+ROW()-2)),\"\")","v":{"$error":"#N/A"}},{"$f":"IF(INDIRECT(\"c\" & (VLOOKUP(Switch!$D$52,$F$2:$G$44,2,FALSE)+ROW()-2))=Switch!$D$52,INDIRECT(\"a\" & (VLOOKUP(Switch!$D$52,$F$2:$G$44,2,FALSE)+ROW()-2)),\"\")","v":{"$error":"#N/A"}},{"$f":"IF(INDIRECT(\"c\" & (VLOOKUP(Switch!$D$53,$F$2:$G$44,2,FALSE)+ROW()-2))=Switch!$D$53,INDIRECT(\"a\" & (VLOOKUP(Switch!$D$53,$F$2:$G$44,2,FALSE)+ROW()-2)),\"\")","v":{"$error":"#N/A"}},{"$f":"IF(INDIRECT(\"c\" & (VLOOKUP(Switch!$D$54,$F$2:$G$44,2,FALSE)+ROW()-2))=Switch!$D$54,INDIRECT(\"a\" & (VLOOKUP(Switch!$D$54,$F$2:$G$44,2,FALSE)+ROW()-2)),\"\")","v":{"$error":"#N/A"}},{"$f":"IF(INDIRECT(\"c\" & (VLOOKUP(Switch!$D$55,$F$2:$G$44,2,FALSE)+ROW()-2))=Switch!$D$55,INDIRECT(\"a\" & (VLOOKUP(Switch!$D$55,$F$2:$G$44,2,FALSE)+ROW()-2)),\"\")","v":{"$error":"#N/A"}},{"$f":"IF(INDIRECT(\"c\" & (VLOOKUP(Switch!$D$56,$F$2:$G$44,2,FALSE)+ROW()-2))=Switch!$D$56,INDIRECT(\"a\" & (VLOOKUP(Switch!$D$56,$F$2:$G$44,2,FALSE)+ROW()-2)),\"\")","v":{"$error":"#N/A"}},{"$f":"IF(INDIRECT(\"c\" & (VLOOKUP(Switch!$D$57,$F$2:$G$44,2,FALSE)+ROW()-2))=Switch!$D$57,INDIRECT(\"a\" & (VLOOKUP(Switch!$D$57,$F$2:$G$44,2,FALSE)+ROW()-2)),\"\")","v":{"$error":"#N/A"}},{"$f":"IF(INDIRECT(\"c\" & (VLOOKUP(Switch!$D$58,$F$2:$G$44,2,FALSE)+ROW()-2))=Switch!$D$58,INDIRECT(\"a\" & (VLOOKUP(Switch!$D$58,$F$2:$G$44,2,FALSE)+ROW()-2)),\"\")","v":{"$error":"#N/A"}},{"$f":"IF(INDIRECT(\"c\" & (VLOOKUP(Switch!$D$59,$F$2:$G$44,2,FALSE)+ROW()-2))=Switch!$D$59,INDIRECT(\"a\" & (VLOOKUP(Switch!$D$59,$F$2:$G$44,2,FALSE)+ROW()-2)),\"\")","v":{"$error":"#N/A"}},{"$f":"IF(INDIRECT(\"c\" & (VLOOKUP(Switch!$D$60,$F$2:$G$44,2,FALSE)+ROW()-2))=Switch!$D$60,INDIRECT(\"a\" & (VLOOKUP(Switch!$D$60,$F$2:$G$44,2,FALSE)+ROW()-2)),\"\")","v":{"$error":"#N/A"}},{"$f":"IF(INDIRECT(\"c\" & (VLOOKUP(Switch!$D$61,$F$2:$G$44,2,FALSE)+ROW()-2))=Switch!$D$61,INDIRECT(\"a\" & (VLOOKUP(Switch!$D$61,$F$2:$G$44,2,FALSE)+ROW()-2)),\"\")","v":{"$error":"#N/A"}},{"$f":"IF(INDIRECT(\"c\" & (VLOOKUP(Switch!$D$62,$F$2:$G$44,2,FALSE)+ROW()-2))=Switch!$D$62,INDIRECT(\"a\" & (VLOOKUP(Switch!$D$62,$F$2:$G$44,2,FALSE)+ROW()-2)),\"\")","v":{"$error":"#N/A"}},{"$f":"IF(INDIRECT(\"c\" & (VLOOKUP(Switch!$D$63,$F$2:$G$44,2,FALSE)+ROW()-2))=Switch!$D$63,INDIRECT(\"a\" & (VLOOKUP(Switch!$D$63,$F$2:$G$44,2,FALSE)+ROW()-2)),\"\")","v":{"$error":"#N/A"}},{"$f":"IF(INDIRECT(\"c\" & (VLOOKUP(Switch!$D$64,$F$2:$G$44,2,FALSE)+ROW()-2))=Switch!$D$64,INDIRECT(\"a\" & (VLOOKUP(Switch!$D$64,$F$2:$G$44,2,FALSE)+ROW()-2)),\"\")","v":{"$error":"#N/A"}},{"$f":"IF(INDIRECT(\"c\" & (VLOOKUP(Switch!$D$65,$F$2:$G$44,2,FALSE)+ROW()-2))=Switch!$D$65,INDIRECT(\"a\" & (VLOOKUP(Switch!$D$65,$F$2:$G$44,2,FALSE)+ROW()-2)),\"\")","v":{"$error":"#N/A"}},{"$f":"IF(INDIRECT(\"c\" & (VLOOKUP(Switch!$D$66,$F$2:$G$44,2,FALSE)+ROW()-2))=Switch!$D$66,INDIRECT(\"a\" & (VLOOKUP(Switch!$D$66,$F$2:$G$44,2,FALSE)+ROW()-2)),\"\")","v":{"$error":"#N/A"}}]
["1NVEST S&P500 Index Feeder Fund B1","SLSIB1","STANLIB Collective Investments",{"$f":"ROW()","v":27},null,"PSG Collective Investments Ltd",{"$f":"VLOOKUP(F27,$C$2:$D$637,2,FALSE)","v":480},{"$f":"IF(INDIRECT(\"c\" & (VLOOKUP(Switch!$D$26,$F$2:$G$44,2,FALSE)+ROW()-2))=Switch!$D$26,INDIRECT(\"a\" & (VLOOKUP(Switch!$D$26,$F$2:$G$44,2,FALSE)+ROW()-2)),\"\")","v":{"$error":"#N/A"}},{"$f":"IF(INDIRECT(\"c\" & (VLOOKUP(Switch!$D$27,$F$2:$G$44,2,FALSE)+ROW()-2))=Switch!$D$27,INDIRECT(\"a\" & (VLOOKUP(Switch!$D$27,$F$2:$G$44,2,FALSE)+ROW()-2)),\"\")","v":{"$error":"#N/A"}},{"$f":"IF(INDIRECT(\"c\" & (VLOOKUP(Switch!$D$28,$F$2:$G$44,2,FALSE)+ROW()-2))=Switch!$D$28,INDIRECT(\"a\" & (VLOOKUP(Switch!$D$28,$F$2:$G$44,2,FALSE)+ROW()-2)),\"\")","v":{"$error":"#N/A"}},{"$f":"IF(INDIRECT(\"c\" & (VLOOKUP(Switch!$D$29,$F$2:$G$44,2,FALSE)+ROW()-2))=Switch!$D$29,INDIRECT(\"a\" & (VLOOKUP(Switch!$D$29,$F$2:$G$44,2,FALSE)+ROW()-2)),\"\")","v":{"$error":"#N/A"}},{"$f":"IF(INDIRECT(\"c\" & (VLOOKUP(Switch!$D$30,$F$2:$G$44,2,FALSE)+ROW()-2))=Switch!$D$30,INDIRECT(\"a\" & (VLOOKUP(Switch!$D$30,$F$2:$G$44,2,FALSE)+ROW()-2)),\"\")","v":{"$error":"#N/A"}},{"$f":"IF(INDIRECT(\"c\" & (VLOOKUP(Switch!$D$31,$F$2:$G$44,2,FALSE)+ROW()-2))=Switch!$D$31,INDIRECT(\"a\" & (VLOOKUP(Switch!$D$31,$F$2:$G$44,2,FALSE)+ROW()-2)),\"\")","v":{"$error":"#N/A"}},{"$f":"IF(INDIRECT(\"c\" & (VLOOKUP(Switch!$D$32,$F$2:$G$44,2,FALSE)+ROW()-2))=Switch!$D$32,INDIRECT(\"a\" & (VLOOKUP(Switch!$D$32,$F$2:$G$44,2,FALSE)+ROW()-2)),\"\")","v":{"$error":"#N/A"}},{"$f":"IF(INDIRECT(\"c\" & (VLOOKUP(Switch!$D$33,$F$2:$G$44,2,FALSE)+ROW()-2))=Switch!$D$33,INDIRECT(\"a\" & (VLOOKUP(Switch!$D$33,$F$2:$G$44,2,FALSE)+ROW()-2)),\"\")","v":{"$error":"#N/A"}},{"$f":"IF(INDIRECT(\"c\" & (VLOOKUP(Switch!$D$34,$F$2:$G$44,2,FALSE)+ROW()-2))=Switch!$D$34,INDIRECT(\"a\" & (VLOOKUP(Switch!$D$34,$F$2:$G$44,2,FALSE)+ROW()-2)),\"\")","v":{"$error":"#N/A"}},{"$f":"IF(INDIRECT(\"c\" & (VLOOKUP(Switch!$D$35,$F$2:$G$44,2,FALSE)+ROW()-2))=Switch!$D$35,INDIRECT(\"a\" & (VLOOKUP(Switch!$D$35,$F$2:$G$44,2,FALSE)+ROW()-2)),\"\")","v":{"$error":"#N/A"}},{"$f":"IF(INDIRECT(\"c\" & (VLOOKUP(Switch!$D$36,$F$2:$G$44,2,FALSE)+ROW()-2))=Switch!$D$36,INDIRECT(\"a\" & (VLOOKUP(Switch!$D$36,$F$2:$G$44,2,FALSE)+ROW()-2)),\"\")","v":{"$error":"#N/A"}},{"$f":"IF(INDIRECT(\"c\" & (VLOOKUP(Switch!$D$37,$F$2:$G$44,2,FALSE)+ROW()-2))=Switch!$D$37,INDIRECT(\"a\" & (VLOOKUP(Switch!$D$37,$F$2:$G$44,2,FALSE)+ROW()-2)),\"\")","v":{"$error":"#N/A"}},{"$f":"IF(INDIRECT(\"c\" & (VLOOKUP(Switch!$D$38,$F$2:$G$44,2,FALSE)+ROW()-2))=Switch!$D$38,INDIRECT(\"a\" & (VLOOKUP(Switch!$D$38,$F$2:$G$44,2,FALSE)+ROW()-2)),\"\")","v":{"$error":"#N/A"}},{"$f":"IF(INDIRECT(\"c\" & (VLOOKUP(Switch!$D$39,$F$2:$G$44,2,FALSE)+ROW()-2))=Switch!$D$39,INDIRECT(\"a\" & (VLOOKUP(Switch!$D$39,$F$2:$G$44,2,FALSE)+ROW()-2)),\"\")","v":{"$error":"#N/A"}},{"$f":"IF(INDIRECT(\"c\" & (VLOOKUP(Switch!$D$40,$F$2:$G$44,2,FALSE)+ROW()-2))=Switch!$D$40,INDIRECT(\"a\" & (VLOOKUP(Switch!$D$40,$F$2:$G$44,2,FALSE)+ROW()-2)),\"\")","v":{"$error":"#N/A"}},{"$f":"IF(INDIRECT(\"c\" & (VLOOKUP(Switch!$D$52,$F$2:$G$44,2,FALSE)+ROW()-2))=Switch!$D$52,INDIRECT(\"a\" & (VLOOKUP(Switch!$D$52,$F$2:$G$44,2,FALSE)+ROW()-2)),\"\")","v":{"$error":"#N/A"}},{"$f":"IF(INDIRECT(\"c\" & (VLOOKUP(Switch!$D$53,$F$2:$G$44,2,FALSE)+ROW()-2))=Switch!$D$53,INDIRECT(\"a\" & (VLOOKUP(Switch!$D$53,$F$2:$G$44,2,FALSE)+ROW()-2)),\"\")","v":{"$error":"#N/A"}},{"$f":"IF(INDIRECT(\"c\" & (VLOOKUP(Switch!$D$54,$F$2:$G$44,2,FALSE)+ROW()-2))=Switch!$D$54,INDIRECT(\"a\" & (VLOOKUP(Switch!$D$54,$F$2:$G$44,2,FALSE)+ROW()-2)),\"\")","v":{"$error":"#N/A"}},{"$f":"IF(INDIRECT(\"c\" & (VLOOKUP(Switch!$D$55,$F$2:$G$44,2,FALSE)+ROW()-2))=Switch!$D$55,INDIRECT(\"a\" & (VLOOKUP(Switch!$D$55,$F$2:$G$44,2,FALSE)+ROW()-2)),\"\")","v":{"$error":"#N/A"}},{"$f":"IF(INDIRECT(\"c\" & (VLOOKUP(Switch!$D$56,$F$2:$G$44,2,FALSE)+ROW()-2))=Switch!$D$56,INDIRECT(\"a\" & (VLOOKUP(Switch!$D$56,$F$2:$G$44,2,FALSE)+ROW()-2)),\"\")","v":{"$error":"#N/A"}},{"$f":"IF(INDIRECT(\"c\" & (VLOOKUP(Switch!$D$57,$F$2:$G$44,2,FALSE)+ROW()-2))=Switch!$D$57,INDIRECT(\"a\" & (VLOOKUP(Switch!$D$57,$F$2:$G$44,2,FALSE)+ROW()-2)),\"\")","v":{"$error":"#N/A"}},{"$f":"IF(INDIRECT(\"c\" & (VLOOKUP(Switch!$D$58,$F$2:$G$44,2,FALSE)+ROW()-2))=Switch!$D$58,INDIRECT(\"a\" & (VLOOKUP(Switch!$D$58,$F$2:$G$44,2,FALSE)+ROW()-2)),\"\")","v":{"$error":"#N/A"}},{"$f":"IF(INDIRECT(\"c\" & (VLOOKUP(Switch!$D$59,$F$2:$G$44,2,FALSE)+ROW()-2))=Switch!$D$59,INDIRECT(\"a\" & (VLOOKUP(Switch!$D$59,$F$2:$G$44,2,FALSE)+ROW()-2)),\"\")","v":{"$error":"#N/A"}},{"$f":"IF(INDIRECT(\"c\" & (VLOOKUP(Switch!$D$60,$F$2:$G$44,2,FALSE)+ROW()-2))=Switch!$D$60,INDIRECT(\"a\" & (VLOOKUP(Switch!$D$60,$F$2:$G$44,2,FALSE)+ROW()-2)),\"\")","v":{"$error":"#N/A"}},{"$f":"IF(INDIRECT(\"c\" & (VLOOKUP(Switch!$D$61,$F$2:$G$44,2,FALSE)+ROW()-2))=Switch!$D$61,INDIRECT(\"a\" & (VLOOKUP(Switch!$D$61,$F$2:$G$44,2,FALSE)+ROW()-2)),\"\")","v":{"$error":"#N/A"}},{"$f":"IF(INDIRECT(\"c\" & (VLOOKUP(Switch!$D$62,$F$2:$G$44,2,FALSE)+ROW()-2))=Switch!$D$62,INDIRECT(\"a\" & (VLOOKUP(Switch!$D$62,$F$2:$G$44,2,FALSE)+ROW()-2)),\"\")","v":{"$error":"#N/A"}},{"$f":"IF(INDIRECT(\"c\" & (VLOOKUP(Switch!$D$63,$F$2:$G$44,2,FALSE)+ROW()-2))=Switch!$D$63,INDIRECT(\"a\" & (VLOOKUP(Switch!$D$63,$F$2:$G$44,2,FALSE)+ROW()-2)),\"\")","v":{"$error":"#N/A"}},{"$f":"IF(INDIRECT(\"c\" & (VLOOKUP(Switch!$D$64,$F$2:$G$44,2,FALSE)+ROW()-2))=Switch!$D$64,INDIRECT(\"a\" & (VLOOKUP(Switch!$D$64,$F$2:$G$44,2,FALSE)+ROW()-2)),\"\")","v":{"$error":"#N/A"}},{"$f":"IF(INDIRECT(\"c\" & (VLOOKUP(Switch!$D$65,$F$2:$G$44,2,FALSE)+ROW()-2))=Switch!$D$65,INDIRECT(\"a\" & (VLOOKUP(Switch!$D$65,$F$2:$G$44,2,FALSE)+ROW()-2)),\"\")","v":{"$error":"#N/A"}},{"$f":"IF(INDIRECT(\"c\" & (VLOOKUP(Switch!$D$66,$F$2:$G$44,2,FALSE)+ROW()-2))=Switch!$D$66,INDIRECT(\"a\" & (VLOOKUP(Switch!$D$66,$F$2:$G$44,2,FALSE)+ROW()-2)),\"\")","v":{"$error":"#N/A"}}]
["1NVEST S&P500 Info Tech Index Feeder Fund B1","SLITB1","STANLIB Collective Investments",{"$f":"ROW()","v":28},null,"Rezco Collective Investments Ltd",{"$f":"VLOOKUP(F28,$C$2:$D$637,2,FALSE)","v":500},{"$f":"IF(INDIRECT(\"c\" & (VLOOKUP(Switch!$D$26,$F$2:$G$44,2,FALSE)+ROW()-2))=Switch!$D$26,INDIRECT(\"a\" & (VLOOKUP(Switch!$D$26,$F$2:$G$44,2,FALSE)+ROW()-2)),\"\")","v":{"$error":"#N/A"}},{"$f":"IF(INDIRECT(\"c\" & (VLOOKUP(Switch!$D$27,$F$2:$G$44,2,FALSE)+ROW()-2))=Switch!$D$27,INDIRECT(\"a\" & (VLOOKUP(Switch!$D$27,$F$2:$G$44,2,FALSE)+ROW()-2)),\"\")","v":{"$error":"#N/A"}},{"$f":"IF(INDIRECT(\"c\" & (VLOOKUP(Switch!$D$28,$F$2:$G$44,2,FALSE)+ROW()-2))=Switch!$D$28,INDIRECT(\"a\" & (VLOOKUP(Switch!$D$28,$F$2:$G$44,2,FALSE)+ROW()-2)),\"\")","v":{"$error":"#N/A"}},{"$f":"IF(INDIRECT(\"c\" & (VLOOKUP(Switch!$D$29,$F$2:$G$44,2,FALSE)+ROW()-2))=Switch!$D$29,INDIRECT(\"a\" & (VLOOKUP(Switch!$D$29,$F$2:$G$44,2,FALSE)+ROW()-2)),\"\")","v":{"$error":"#N/A"}},{"$f":"IF(INDIRECT(\"c\" & (VLOOKUP(Switch!$D$30,$F$2:$G$44,2,FALSE)+ROW()-2))=Switch!$D$30,INDIRECT(\"a\" & (VLOOKUP(Switch!$D$30,$F$2:$G$44,2,FALSE)+ROW()-2)),\"\")","v":{"$error":"#N/A"}},{"$f":"IF(INDIRECT(\"c\" & (VLOOKUP(Switch!$D$31,$F$2:$G$44,2,FALSE)+ROW()-2))=Switch!$D$31,INDIRECT(\"a\" & (VLOOKUP(Switch!$D$31,$F$2:$G$44,2,FALSE)+ROW()-2)),\"\")","v":{"$error":"#N/A"}},{"$f":"IF(INDIRECT(\"c\" & (VLOOKUP(Switch!$D$32,$F$2:$G$44,2,FALSE)+ROW()-2))=Switch!$D$32,INDIRECT(\"a\" & (VLOOKUP(Switch!$D$32,$F$2:$G$44,2,FALSE)+ROW()-2)),\"\")","v":{"$error":"#N/A"}},{"$f":"IF(INDIRECT(\"c\" & (VLOOKUP(Switch!$D$33,$F$2:$G$44,2,FALSE)+ROW()-2))=Switch!$D$33,INDIRECT(\"a\" & (VLOOKUP(Switch!$D$33,$F$2:$G$44,2,FALSE)+ROW()-2)),\"\")","v":{"$error":"#N/A"}},{"$f":"IF(INDIRECT(\"c\" & (VLOOKUP(Switch!$D$34,$F$2:$G$44,2,FALSE)+ROW()-2))=Switch!$D$34,INDIRECT(\"a\" & (VLOOKUP(Switch!$D$34,$F$2:$G$44,2,FALSE)+ROW()-2)),\"\")","v":{"$error":"#N/A"}},{"$f":"IF(INDIRECT(\"c\" & (VLOOKUP(Switch!$D$35,$F$2:$G$44,2,FALSE)+ROW()-2))=Switch!$D$35,INDIRECT(\"a\" & (VLOOKUP(Switch!$D$35,$F$2:$G$44,2,FALSE)+ROW()-2)),\"\")","v":{"$error":"#N/A"}},{"$f":"IF(INDIRECT(\"c\" & (VLOOKUP(Switch!$D$36,$F$2:$G$44,2,FALSE)+ROW()-2))=Switch!$D$36,INDIRECT(\"a\" & (VLOOKUP(Switch!$D$36,$F$2:$G$44,2,FALSE)+ROW()-2)),\"\")","v":{"$error":"#N/A"}},{"$f":"IF(INDIRECT(\"c\" & (VLOOKUP(Switch!$D$37,$F$2:$G$44,2,FALSE)+ROW()-2))=Switch!$D$37,INDIRECT(\"a\" & (VLOOKUP(Switch!$D$37,$F$2:$G$44,2,FALSE)+ROW()-2)),\"\")","v":{"$error":"#N/A"}},{"$f":"IF(INDIRECT(\"c\" & (VLOOKUP(Switch!$D$38,$F$2:$G$44,2,FALSE)+ROW()-2))=Switch!$D$38,INDIRECT(\"a\" & (VLOOKUP(Switch!$D$38,$F$2:$G$44,2,FALSE)+ROW()-2)),\"\")","v":{"$error":"#N/A"}},{"$f":"IF(INDIRECT(\"c\" & (VLOOKUP(Switch!$D$39,$F$2:$G$44,2,FALSE)+ROW()-2))=Switch!$D$39,INDIRECT(\"a\" & (VLOOKUP(Switch!$D$39,$F$2:$G$44,2,FALSE)+ROW()-2)),\"\")","v":{"$error":"#N/A"}},{"$f":"IF(INDIRECT(\"c\" & (VLOOKUP(Switch!$D$40,$F$2:$G$44,2,FALSE)+ROW()-2))=Switch!$D$40,INDIRECT(\"a\" & (VLOOKUP(Switch!$D$40,$F$2:$G$44,2,FALSE)+ROW()-2)),\"\")","v":{"$error":"#N/A"}},{"$f":"IF(INDIRECT(\"c\" & (VLOOKUP(Switch!$D$52,$F$2:$G$44,2,FALSE)+ROW()-2))=Switch!$D$52,INDIRECT(\"a\" & (VLOOKUP(Switch!$D$52,$F$2:$G$44,2,FALSE)+ROW()-2)),\"\")","v":{"$error":"#N/A"}},{"$f":"IF(INDIRECT(\"c\" & (VLOOKUP(Switch!$D$53,$F$2:$G$44,2,FALSE)+ROW()-2))=Switch!$D$53,INDIRECT(\"a\" & (VLOOKUP(Switch!$D$53,$F$2:$G$44,2,FALSE)+ROW()-2)),\"\")","v":{"$error":"#N/A"}},{"$f":"IF(INDIRECT(\"c\" & (VLOOKUP(Switch!$D$54,$F$2:$G$44,2,FALSE)+ROW()-2))=Switch!$D$54,INDIRECT(\"a\" & (VLOOKUP(Switch!$D$54,$F$2:$G$44,2,FALSE)+ROW()-2)),\"\")","v":{"$error":"#N/A"}},{"$f":"IF(INDIRECT(\"c\" & (VLOOKUP(Switch!$D$55,$F$2:$G$44,2,FALSE)+ROW()-2))=Switch!$D$55,INDIRECT(\"a\" & (VLOOKUP(Switch!$D$55,$F$2:$G$44,2,FALSE)+ROW()-2)),\"\")","v":{"$error":"#N/A"}},{"$f":"IF(INDIRECT(\"c\" & (VLOOKUP(Switch!$D$56,$F$2:$G$44,2,FALSE)+ROW()-2))=Switch!$D$56,INDIRECT(\"a\" & (VLOOKUP(Switch!$D$56,$F$2:$G$44,2,FALSE)+ROW()-2)),\"\")","v":{"$error":"#N/A"}},{"$f":"IF(INDIRECT(\"c\" & (VLOOKUP(Switch!$D$57,$F$2:$G$44,2,FALSE)+ROW()-2))=Switch!$D$57,INDIRECT(\"a\" & (VLOOKUP(Switch!$D$57,$F$2:$G$44,2,FALSE)+ROW()-2)),\"\")","v":{"$error":"#N/A"}},{"$f":"IF(INDIRECT(\"c\" & (VLOOKUP(Switch!$D$58,$F$2:$G$44,2,FALSE)+ROW()-2))=Switch!$D$58,INDIRECT(\"a\" & (VLOOKUP(Switch!$D$58,$F$2:$G$44,2,FALSE)+ROW()-2)),\"\")","v":{"$error":"#N/A"}},{"$f":"IF(INDIRECT(\"c\" & (VLOOKUP(Switch!$D$59,$F$2:$G$44,2,FALSE)+ROW()-2))=Switch!$D$59,INDIRECT(\"a\" & (VLOOKUP(Switch!$D$59,$F$2:$G$44,2,FALSE)+ROW()-2)),\"\")","v":{"$error":"#N/A"}},{"$f":"IF(INDIRECT(\"c\" & (VLOOKUP(Switch!$D$60,$F$2:$G$44,2,FALSE)+ROW()-2))=Switch!$D$60,INDIRECT(\"a\" & (VLOOKUP(Switch!$D$60,$F$2:$G$44,2,FALSE)+ROW()-2)),\"\")","v":{"$error":"#N/A"}},{"$f":"IF(INDIRECT(\"c\" & (VLOOKUP(Switch!$D$61,$F$2:$G$44,2,FALSE)+ROW()-2))=Switch!$D$61,INDIRECT(\"a\" & (VLOOKUP(Switch!$D$61,$F$2:$G$44,2,FALSE)+ROW()-2)),\"\")","v":{"$error":"#N/A"}},{"$f":"IF(INDIRECT(\"c\" & (VLOOKUP(Switch!$D$62,$F$2:$G$44,2,FALSE)+ROW()-2))=Switch!$D$62,INDIRECT(\"a\" & (VLOOKUP(Switch!$D$62,$F$2:$G$44,2,FALSE)+ROW()-2)),\"\")","v":{"$error":"#N/A"}},{"$f":"IF(INDIRECT(\"c\" & (VLOOKUP(Switch!$D$63,$F$2:$G$44,2,FALSE)+ROW()-2))=Switch!$D$63,INDIRECT(\"a\" & (VLOOKUP(Switch!$D$63,$F$2:$G$44,2,FALSE)+ROW()-2)),\"\")","v":{"$error":"#N/A"}},{"$f":"IF(INDIRECT(\"c\" & (VLOOKUP(Switch!$D$64,$F$2:$G$44,2,FALSE)+ROW()-2))=Switch!$D$64,INDIRECT(\"a\" & (VLOOKUP(Switch!$D$64,$F$2:$G$44,2,FALSE)+ROW()-2)),\"\")","v":{"$error":"#N/A"}},{"$f":"IF(INDIRECT(\"c\" & (VLOOKUP(Switch!$D$65,$F$2:$G$44,2,FALSE)+ROW()-2))=Switch!$D$65,INDIRECT(\"a\" & (VLOOKUP(Switch!$D$65,$F$2:$G$44,2,FALSE)+ROW()-2)),\"\")","v":{"$error":"#N/A"}},{"$f":"IF(INDIRECT(\"c\" & (VLOOKUP(Switch!$D$66,$F$2:$G$44,2,FALSE)+ROW()-2))=Switch!$D$66,INDIRECT(\"a\" & (VLOOKUP(Switch!$D$66,$F$2:$G$44,2,FALSE)+ROW()-2)),\"\")","v":{"$error":"#N/A"}}]
["1NVEST Sector Neutral Growth & Quality Index Tracker Fund B1","SSQB1","STANLIB Collective Investments",{"$f":"ROW()","v":29},null,"Sanlam Collective Investments",{"$f":"VLOOKUP(F29,$C$2:$D$637,2,FALSE)","v":504},{"$f":"IF(INDIRECT(\"c\" & (VLOOKUP(Switch!$D$26,$F$2:$G$44,2,FALSE)+ROW()-2))=Switch!$D$26,INDIRECT(\"a\" & (VLOOKUP(Switch!$D$26,$F$2:$G$44,2,FALSE)+ROW()-2)),\"\")","v":{"$error":"#N/A"}},{"$f":"IF(INDIRECT(\"c\" & (VLOOKUP(Switch!$D$27,$F$2:$G$44,2,FALSE)+ROW()-2))=Switch!$D$27,INDIRECT(\"a\" & (VLOOKUP(Switch!$D$27,$F$2:$G$44,2,FALSE)+ROW()-2)),\"\")","v":{"$error":"#N/A"}},{"$f":"IF(INDIRECT(\"c\" & (VLOOKUP(Switch!$D$28,$F$2:$G$44,2,FALSE)+ROW()-2))=Switch!$D$28,INDIRECT(\"a\" & (VLOOKUP(Switch!$D$28,$F$2:$G$44,2,FALSE)+ROW()-2)),\"\")","v":{"$error":"#N/A"}},{"$f":"IF(INDIRECT(\"c\" & (VLOOKUP(Switch!$D$29,$F$2:$G$44,2,FALSE)+ROW()-2))=Switch!$D$29,INDIRECT(\"a\" & (VLOOKUP(Switch!$D$29,$F$2:$G$44,2,FALSE)+ROW()-2)),\"\")","v":{"$error":"#N/A"}},{"$f":"IF(INDIRECT(\"c\" & (VLOOKUP(Switch!$D$30,$F$2:$G$44,2,FALSE)+ROW()-2))=Switch!$D$30,INDIRECT(\"a\" & (VLOOKUP(Switch!$D$30,$F$2:$G$44,2,FALSE)+ROW()-2)),\"\")","v":{"$error":"#N/A"}},{"$f":"IF(INDIRECT(\"c\" & (VLOOKUP(Switch!$D$31,$F$2:$G$44,2,FALSE)+ROW()-2))=Switch!$D$31,INDIRECT(\"a\" & (VLOOKUP(Switch!$D$31,$F$2:$G$44,2,FALSE)+ROW()-2)),\"\")","v":{"$error":"#N/A"}},{"$f":"IF(INDIRECT(\"c\" & (VLOOKUP(Switch!$D$32,$F$2:$G$44,2,FALSE)+ROW()-2))=Switch!$D$32,INDIRECT(\"a\" & (VLOOKUP(Switch!$D$32,$F$2:$G$44,2,FALSE)+ROW()-2)),\"\")","v":{"$error":"#N/A"}},{"$f":"IF(INDIRECT(\"c\" & (VLOOKUP(Switch!$D$33,$F$2:$G$44,2,FALSE)+ROW()-2))=Switch!$D$33,INDIRECT(\"a\" & (VLOOKUP(Switch!$D$33,$F$2:$G$44,2,FALSE)+ROW()-2)),\"\")","v":{"$error":"#N/A"}},{"$f":"IF(INDIRECT(\"c\" & (VLOOKUP(Switch!$D$34,$F$2:$G$44,2,FALSE)+ROW()-2))=Switch!$D$34,INDIRECT(\"a\" & (VLOOKUP(Switch!$D$34,$F$2:$G$44,2,FALSE)+ROW()-2)),\"\")","v":{"$error":"#N/A"}},{"$f":"IF(INDIRECT(\"c\" & (VLOOKUP(Switch!$D$35,$F$2:$G$44,2,FALSE)+ROW()-2))=Switch!$D$35,INDIRECT(\"a\" & (VLOOKUP(Switch!$D$35,$F$2:$G$44,2,FALSE)+ROW()-2)),\"\")","v":{"$error":"#N/A"}},{"$f":"IF(INDIRECT(\"c\" & (VLOOKUP(Switch!$D$36,$F$2:$G$44,2,FALSE)+ROW()-2))=Switch!$D$36,INDIRECT(\"a\" & (VLOOKUP(Switch!$D$36,$F$2:$G$44,2,FALSE)+ROW()-2)),\"\")","v":{"$error":"#N/A"}},{"$f":"IF(INDIRECT(\"c\" & (VLOOKUP(Switch!$D$37,$F$2:$G$44,2,FALSE)+ROW()-2))=Switch!$D$37,INDIRECT(\"a\" & (VLOOKUP(Switch!$D$37,$F$2:$G$44,2,FALSE)+ROW()-2)),\"\")","v":{"$error":"#N/A"}},{"$f":"IF(INDIRECT(\"c\" & (VLOOKUP(Switch!$D$38,$F$2:$G$44,2,FALSE)+ROW()-2))=Switch!$D$38,INDIRECT(\"a\" & (VLOOKUP(Switch!$D$38,$F$2:$G$44,2,FALSE)+ROW()-2)),\"\")","v":{"$error":"#N/A"}},{"$f":"IF(INDIRECT(\"c\" & (VLOOKUP(Switch!$D$39,$F$2:$G$44,2,FALSE)+ROW()-2))=Switch!$D$39,INDIRECT(\"a\" & (VLOOKUP(Switch!$D$39,$F$2:$G$44,2,FALSE)+ROW()-2)),\"\")","v":{"$error":"#N/A"}},{"$f":"IF(INDIRECT(\"c\" & (VLOOKUP(Switch!$D$40,$F$2:$G$44,2,FALSE)+ROW()-2))=Switch!$D$40,INDIRECT(\"a\" & (VLOOKUP(Switch!$D$40,$F$2:$G$44,2,FALSE)+ROW()-2)),\"\")","v":{"$error":"#N/A"}},{"$f":"IF(INDIRECT(\"c\" & (VLOOKUP(Switch!$D$52,$F$2:$G$44,2,FALSE)+ROW()-2))=Switch!$D$52,INDIRECT(\"a\" & (VLOOKUP(Switch!$D$52,$F$2:$G$44,2,FALSE)+ROW()-2)),\"\")","v":{"$error":"#N/A"}},{"$f":"IF(INDIRECT(\"c\" & (VLOOKUP(Switch!$D$53,$F$2:$G$44,2,FALSE)+ROW()-2))=Switch!$D$53,INDIRECT(\"a\" & (VLOOKUP(Switch!$D$53,$F$2:$G$44,2,FALSE)+ROW()-2)),\"\")","v":{"$error":"#N/A"}},{"$f":"IF(INDIRECT(\"c\" & (VLOOKUP(Switch!$D$54,$F$2:$G$44,2,FALSE)+ROW()-2))=Switch!$D$54,INDIRECT(\"a\" & (VLOOKUP(Switch!$D$54,$F$2:$G$44,2,FALSE)+ROW()-2)),\"\")","v":{"$error":"#N/A"}},{"$f":"IF(INDIRECT(\"c\" & (VLOOKUP(Switch!$D$55,$F$2:$G$44,2,FALSE)+ROW()-2))=Switch!$D$55,INDIRECT(\"a\" & (VLOOKUP(Switch!$D$55,$F$2:$G$44,2,FALSE)+ROW()-2)),\"\")","v":{"$error":"#N/A"}},{"$f":"IF(INDIRECT(\"c\" & (VLOOKUP(Switch!$D$56,$F$2:$G$44,2,FALSE)+ROW()-2))=Switch!$D$56,INDIRECT(\"a\" & (VLOOKUP(Switch!$D$56,$F$2:$G$44,2,FALSE)+ROW()-2)),\"\")","v":{"$error":"#N/A"}},{"$f":"IF(INDIRECT(\"c\" & (VLOOKUP(Switch!$D$57,$F$2:$G$44,2,FALSE)+ROW()-2))=Switch!$D$57,INDIRECT(\"a\" & (VLOOKUP(Switch!$D$57,$F$2:$G$44,2,FALSE)+ROW()-2)),\"\")","v":{"$error":"#N/A"}},{"$f":"IF(INDIRECT(\"c\" & (VLOOKUP(Switch!$D$58,$F$2:$G$44,2,FALSE)+ROW()-2))=Switch!$D$58,INDIRECT(\"a\" & (VLOOKUP(Switch!$D$58,$F$2:$G$44,2,FALSE)+ROW()-2)),\"\")","v":{"$error":"#N/A"}},{"$f":"IF(INDIRECT(\"c\" & (VLOOKUP(Switch!$D$59,$F$2:$G$44,2,FALSE)+ROW()-2))=Switch!$D$59,INDIRECT(\"a\" & (VLOOKUP(Switch!$D$59,$F$2:$G$44,2,FALSE)+ROW()-2)),\"\")","v":{"$error":"#N/A"}},{"$f":"IF(INDIRECT(\"c\" & (VLOOKUP(Switch!$D$60,$F$2:$G$44,2,FALSE)+ROW()-2))=Switch!$D$60,INDIRECT(\"a\" & (VLOOKUP(Switch!$D$60,$F$2:$G$44,2,FALSE)+ROW()-2)),\"\")","v":{"$error":"#N/A"}},{"$f":"IF(INDIRECT(\"c\" & (VLOOKUP(Switch!$D$61,$F$2:$G$44,2,FALSE)+ROW()-2))=Switch!$D$61,INDIRECT(\"a\" & (VLOOKUP(Switch!$D$61,$F$2:$G$44,2,FALSE)+ROW()-2)),\"\")","v":{"$error":"#N/A"}},{"$f":"IF(INDIRECT(\"c\" & (VLOOKUP(Switch!$D$62,$F$2:$G$44,2,FALSE)+ROW()-2))=Switch!$D$62,INDIRECT(\"a\" & (VLOOKUP(Switch!$D$62,$F$2:$G$44,2,FALSE)+ROW()-2)),\"\")","v":{"$error":"#N/A"}},{"$f":"IF(INDIRECT(\"c\" & (VLOOKUP(Switch!$D$63,$F$2:$G$44,2,FALSE)+ROW()-2))=Switch!$D$63,INDIRECT(\"a\" & (VLOOKUP(Switch!$D$63,$F$2:$G$44,2,FALSE)+ROW()-2)),\"\")","v":{"$error":"#N/A"}},{"$f":"IF(INDIRECT(\"c\" & (VLOOKUP(Switch!$D$64,$F$2:$G$44,2,FALSE)+ROW()-2))=Switch!$D$64,INDIRECT(\"a\" & (VLOOKUP(Switch!$D$64,$F$2:$G$44,2,FALSE)+ROW()-2)),\"\")","v":{"$error":"#N/A"}},{"$f":"IF(INDIRECT(\"c\" & (VLOOKUP(Switch!$D$65,$F$2:$G$44,2,FALSE)+ROW()-2))=Switch!$D$65,INDIRECT(\"a\" & (VLOOKUP(Switch!$D$65,$F$2:$G$44,2,FALSE)+ROW()-2)),\"\")","v":{"$error":"#N/A"}},{"$f":"IF(INDIRECT(\"c\" & (VLOOKUP(Switch!$D$66,$F$2:$G$44,2,FALSE)+ROW()-2))=Switch!$D$66,INDIRECT(\"a\" & (VLOOKUP(Switch!$D$66,$F$2:$G$44,2,FALSE)+ROW()-2)),\"\")","v":{"$error":"#N/A"}}]
["1NVEST Sector Neutral Momentum Index Tracker Fund B1","SSNB1","STANLIB Collective Investments",{"$f":"ROW()","v":30},null,"Satrix Managers (RF) (Pty) Ltd",{"$f":"VLOOKUP(F30,$C$2:$D$637,2,FALSE)","v":544},{"$f":"IF(INDIRECT(\"c\" & (VLOOKUP(Switch!$D$26,$F$2:$G$44,2,FALSE)+ROW()-2))=Switch!$D$26,INDIRECT(\"a\" & (VLOOKUP(Switch!$D$26,$F$2:$G$44,2,FALSE)+ROW()-2)),\"\")","v":{"$error":"#N/A"}},{"$f":"IF(INDIRECT(\"c\" & (VLOOKUP(Switch!$D$27,$F$2:$G$44,2,FALSE)+ROW()-2))=Switch!$D$27,INDIRECT(\"a\" & (VLOOKUP(Switch!$D$27,$F$2:$G$44,2,FALSE)+ROW()-2)),\"\")","v":{"$error":"#N/A"}},{"$f":"IF(INDIRECT(\"c\" & (VLOOKUP(Switch!$D$28,$F$2:$G$44,2,FALSE)+ROW()-2))=Switch!$D$28,INDIRECT(\"a\" & (VLOOKUP(Switch!$D$28,$F$2:$G$44,2,FALSE)+ROW()-2)),\"\")","v":{"$error":"#N/A"}},{"$f":"IF(INDIRECT(\"c\" & (VLOOKUP(Switch!$D$29,$F$2:$G$44,2,FALSE)+ROW()-2))=Switch!$D$29,INDIRECT(\"a\" & (VLOOKUP(Switch!$D$29,$F$2:$G$44,2,FALSE)+ROW()-2)),\"\")","v":{"$error":"#N/A"}},{"$f":"IF(INDIRECT(\"c\" & (VLOOKUP(Switch!$D$30,$F$2:$G$44,2,FALSE)+ROW()-2))=Switch!$D$30,INDIRECT(\"a\" & (VLOOKUP(Switch!$D$30,$F$2:$G$44,2,FALSE)+ROW()-2)),\"\")","v":{"$error":"#N/A"}},{"$f":"IF(INDIRECT(\"c\" & (VLOOKUP(Switch!$D$31,$F$2:$G$44,2,FALSE)+ROW()-2))=Switch!$D$31,INDIRECT(\"a\" & (VLOOKUP(Switch!$D$31,$F$2:$G$44,2,FALSE)+ROW()-2)),\"\")","v":{"$error":"#N/A"}},{"$f":"IF(INDIRECT(\"c\" & (VLOOKUP(Switch!$D$32,$F$2:$G$44,2,FALSE)+ROW()-2))=Switch!$D$32,INDIRECT(\"a\" & (VLOOKUP(Switch!$D$32,$F$2:$G$44,2,FALSE)+ROW()-2)),\"\")","v":{"$error":"#N/A"}},{"$f":"IF(INDIRECT(\"c\" & (VLOOKUP(Switch!$D$33,$F$2:$G$44,2,FALSE)+ROW()-2))=Switch!$D$33,INDIRECT(\"a\" & (VLOOKUP(Switch!$D$33,$F$2:$G$44,2,FALSE)+ROW()-2)),\"\")","v":{"$error":"#N/A"}},{"$f":"IF(INDIRECT(\"c\" & (VLOOKUP(Switch!$D$34,$F$2:$G$44,2,FALSE)+ROW()-2))=Switch!$D$34,INDIRECT(\"a\" & (VLOOKUP(Switch!$D$34,$F$2:$G$44,2,FALSE)+ROW()-2)),\"\")","v":{"$error":"#N/A"}},{"$f":"IF(INDIRECT(\"c\" & (VLOOKUP(Switch!$D$35,$F$2:$G$44,2,FALSE)+ROW()-2))=Switch!$D$35,INDIRECT(\"a\" & (VLOOKUP(Switch!$D$35,$F$2:$G$44,2,FALSE)+ROW()-2)),\"\")","v":{"$error":"#N/A"}},{"$f":"IF(INDIRECT(\"c\" & (VLOOKUP(Switch!$D$36,$F$2:$G$44,2,FALSE)+ROW()-2))=Switch!$D$36,INDIRECT(\"a\" & (VLOOKUP(Switch!$D$36,$F$2:$G$44,2,FALSE)+ROW()-2)),\"\")","v":{"$error":"#N/A"}},{"$f":"IF(INDIRECT(\"c\" & (VLOOKUP(Switch!$D$37,$F$2:$G$44,2,FALSE)+ROW()-2))=Switch!$D$37,INDIRECT(\"a\" & (VLOOKUP(Switch!$D$37,$F$2:$G$44,2,FALSE)+ROW()-2)),\"\")","v":{"$error":"#N/A"}},{"$f":"IF(INDIRECT(\"c\" & (VLOOKUP(Switch!$D$38,$F$2:$G$44,2,FALSE)+ROW()-2))=Switch!$D$38,INDIRECT(\"a\" & (VLOOKUP(Switch!$D$38,$F$2:$G$44,2,FALSE)+ROW()-2)),\"\")","v":{"$error":"#N/A"}},{"$f":"IF(INDIRECT(\"c\" & (VLOOKUP(Switch!$D$39,$F$2:$G$44,2,FALSE)+ROW()-2))=Switch!$D$39,INDIRECT(\"a\" & (VLOOKUP(Switch!$D$39,$F$2:$G$44,2,FALSE)+ROW()-2)),\"\")","v":{"$error":"#N/A"}},{"$f":"IF(INDIRECT(\"c\" & (VLOOKUP(Switch!$D$40,$F$2:$G$44,2,FALSE)+ROW()-2))=Switch!$D$40,INDIRECT(\"a\" & (VLOOKUP(Switch!$D$40,$F$2:$G$44,2,FALSE)+ROW()-2)),\"\")","v":{"$error":"#N/A"}},{"$f":"IF(INDIRECT(\"c\" & (VLOOKUP(Switch!$D$52,$F$2:$G$44,2,FALSE)+ROW()-2))=Switch!$D$52,INDIRECT(\"a\" & (VLOOKUP(Switch!$D$52,$F$2:$G$44,2,FALSE)+ROW()-2)),\"\")","v":{"$error":"#N/A"}},{"$f":"IF(INDIRECT(\"c\" & (VLOOKUP(Switch!$D$53,$F$2:$G$44,2,FALSE)+ROW()-2))=Switch!$D$53,INDIRECT(\"a\" & (VLOOKUP(Switch!$D$53,$F$2:$G$44,2,FALSE)+ROW()-2)),\"\")","v":{"$error":"#N/A"}},{"$f":"IF(INDIRECT(\"c\" & (VLOOKUP(Switch!$D$54,$F$2:$G$44,2,FALSE)+ROW()-2))=Switch!$D$54,INDIRECT(\"a\" & (VLOOKUP(Switch!$D$54,$F$2:$G$44,2,FALSE)+ROW()-2)),\"\")","v":{"$error":"#N/A"}},{"$f":"IF(INDIRECT(\"c\" & (VLOOKUP(Switch!$D$55,$F$2:$G$44,2,FALSE)+ROW()-2))=Switch!$D$55,INDIRECT(\"a\" & (VLOOKUP(Switch!$D$55,$F$2:$G$44,2,FALSE)+ROW()-2)),\"\")","v":{"$error":"#N/A"}},{"$f":"IF(INDIRECT(\"c\" & (VLOOKUP(Switch!$D$56,$F$2:$G$44,2,FALSE)+ROW()-2))=Switch!$D$56,INDIRECT(\"a\" & (VLOOKUP(Switch!$D$56,$F$2:$G$44,2,FALSE)+ROW()-2)),\"\")","v":{"$error":"#N/A"}},{"$f":"IF(INDIRECT(\"c\" & (VLOOKUP(Switch!$D$57,$F$2:$G$44,2,FALSE)+ROW()-2))=Switch!$D$57,INDIRECT(\"a\" & (VLOOKUP(Switch!$D$57,$F$2:$G$44,2,FALSE)+ROW()-2)),\"\")","v":{"$error":"#N/A"}},{"$f":"IF(INDIRECT(\"c\" & (VLOOKUP(Switch!$D$58,$F$2:$G$44,2,FALSE)+ROW()-2))=Switch!$D$58,INDIRECT(\"a\" & (VLOOKUP(Switch!$D$58,$F$2:$G$44,2,FALSE)+ROW()-2)),\"\")","v":{"$error":"#N/A"}},{"$f":"IF(INDIRECT(\"c\" & (VLOOKUP(Switch!$D$59,$F$2:$G$44,2,FALSE)+ROW()-2))=Switch!$D$59,INDIRECT(\"a\" & (VLOOKUP(Switch!$D$59,$F$2:$G$44,2,FALSE)+ROW()-2)),\"\")","v":{"$error":"#N/A"}},{"$f":"IF(INDIRECT(\"c\" & (VLOOKUP(Switch!$D$60,$F$2:$G$44,2,FALSE)+ROW()-2))=Switch!$D$60,INDIRECT(\"a\" & (VLOOKUP(Switch!$D$60,$F$2:$G$44,2,FALSE)+ROW()-2)),\"\")","v":{"$error":"#N/A"}},{"$f":"IF(INDIRECT(\"c\" & (VLOOKUP(Switch!$D$61,$F$2:$G$44,2,FALSE)+ROW()-2))=Switch!$D$61,INDIRECT(\"a\" & (VLOOKUP(Switch!$D$61,$F$2:$G$44,2,FALSE)+ROW()-2)),\"\")","v":{"$error":"#N/A"}},{"$f":"IF(INDIRECT(\"c\" & (VLOOKUP(Switch!$D$62,$F$2:$G$44,2,FALSE)+ROW()-2))=Switch!$D$62,INDIRECT(\"a\" & (VLOOKUP(Switch!$D$62,$F$2:$G$44,2,FALSE)+ROW()-2)),\"\")","v":{"$error":"#N/A"}},{"$f":"IF(INDIRECT(\"c\" & (VLOOKUP(Switch!$D$63,$F$2:$G$44,2,FALSE)+ROW()-2))=Switch!$D$63,INDIRECT(\"a\" & (VLOOKUP(Switch!$D$63,$F$2:$G$44,2,FALSE)+ROW()-2)),\"\")","v":{"$error":"#N/A"}},{"$f":"IF(INDIRECT(\"c\" & (VLOOKUP(Switch!$D$64,$F$2:$G$44,2,FALSE)+ROW()-2))=Switch!$D$64,INDIRECT(\"a\" & (VLOOKUP(Switch!$D$64,$F$2:$G$44,2,FALSE)+ROW()-2)),\"\")","v":{"$error":"#N/A"}},{"$f":"IF(INDIRECT(\"c\" & (VLOOKUP(Switch!$D$65,$F$2:$G$44,2,FALSE)+ROW()-2))=Switch!$D$65,INDIRECT(\"a\" & (VLOOKUP(Switch!$D$65,$F$2:$G$44,2,FALSE)+ROW()-2)),\"\")","v":{"$error":"#N/A"}},{"$f":"IF(INDIRECT(\"c\" & (VLOOKUP(Switch!$D$66,$F$2:$G$44,2,FALSE)+ROW()-2))=Switch!$D$66,INDIRECT(\"a\" & (VLOOKUP(Switch!$D$66,$F$2:$G$44,2,FALSE)+ROW()-2)),\"\")","v":{"$error":"#N/A"}}]
["1NVEST Sector Neutral Value Index Tracker Fund B1","SSVB1","STANLIB Collective Investments",{"$f":"ROW()","v":31},null,"Sygnia Asset Management (Pty) Limited",{"$f":"VLOOKUP(F31,$C$2:$D$637,2,FALSE)","v":554},{"$f":"IF(INDIRECT(\"c\" & (VLOOKUP(Switch!$D$26,$F$2:$G$44,2,FALSE)+ROW()-2))=Switch!$D$26,INDIRECT(\"a\" & (VLOOKUP(Switch!$D$26,$F$2:$G$44,2,FALSE)+ROW()-2)),\"\")","v":{"$error":"#N/A"}},{"$f":"IF(INDIRECT(\"c\" & (VLOOKUP(Switch!$D$27,$F$2:$G$44,2,FALSE)+ROW()-2))=Switch!$D$27,INDIRECT(\"a\" & (VLOOKUP(Switch!$D$27,$F$2:$G$44,2,FALSE)+ROW()-2)),\"\")","v":{"$error":"#N/A"}},{"$f":"IF(INDIRECT(\"c\" & (VLOOKUP(Switch!$D$28,$F$2:$G$44,2,FALSE)+ROW()-2))=Switch!$D$28,INDIRECT(\"a\" & (VLOOKUP(Switch!$D$28,$F$2:$G$44,2,FALSE)+ROW()-2)),\"\")","v":{"$error":"#N/A"}},{"$f":"IF(INDIRECT(\"c\" & (VLOOKUP(Switch!$D$29,$F$2:$G$44,2,FALSE)+ROW()-2))=Switch!$D$29,INDIRECT(\"a\" & (VLOOKUP(Switch!$D$29,$F$2:$G$44,2,FALSE)+ROW()-2)),\"\")","v":{"$error":"#N/A"}},{"$f":"IF(INDIRECT(\"c\" & (VLOOKUP(Switch!$D$30,$F$2:$G$44,2,FALSE)+ROW()-2))=Switch!$D$30,INDIRECT(\"a\" & (VLOOKUP(Switch!$D$30,$F$2:$G$44,2,FALSE)+ROW()-2)),\"\")","v":{"$error":"#N/A"}},{"$f":"IF(INDIRECT(\"c\" & (VLOOKUP(Switch!$D$31,$F$2:$G$44,2,FALSE)+ROW()-2))=Switch!$D$31,INDIRECT(\"a\" & (VLOOKUP(Switch!$D$31,$F$2:$G$44,2,FALSE)+ROW()-2)),\"\")","v":{"$error":"#N/A"}},{"$f":"IF(INDIRECT(\"c\" & (VLOOKUP(Switch!$D$32,$F$2:$G$44,2,FALSE)+ROW()-2))=Switch!$D$32,INDIRECT(\"a\" & (VLOOKUP(Switch!$D$32,$F$2:$G$44,2,FALSE)+ROW()-2)),\"\")","v":{"$error":"#N/A"}},{"$f":"IF(INDIRECT(\"c\" & (VLOOKUP(Switch!$D$33,$F$2:$G$44,2,FALSE)+ROW()-2))=Switch!$D$33,INDIRECT(\"a\" & (VLOOKUP(Switch!$D$33,$F$2:$G$44,2,FALSE)+ROW()-2)),\"\")","v":{"$error":"#N/A"}},{"$f":"IF(INDIRECT(\"c\" & (VLOOKUP(Switch!$D$34,$F$2:$G$44,2,FALSE)+ROW()-2))=Switch!$D$34,INDIRECT(\"a\" & (VLOOKUP(Switch!$D$34,$F$2:$G$44,2,FALSE)+ROW()-2)),\"\")","v":{"$error":"#N/A"}},{"$f":"IF(INDIRECT(\"c\" & (VLOOKUP(Switch!$D$35,$F$2:$G$44,2,FALSE)+ROW()-2))=Switch!$D$35,INDIRECT(\"a\" & (VLOOKUP(Switch!$D$35,$F$2:$G$44,2,FALSE)+ROW()-2)),\"\")","v":{"$error":"#N/A"}},{"$f":"IF(INDIRECT(\"c\" & (VLOOKUP(Switch!$D$36,$F$2:$G$44,2,FALSE)+ROW()-2))=Switch!$D$36,INDIRECT(\"a\" & (VLOOKUP(Switch!$D$36,$F$2:$G$44,2,FALSE)+ROW()-2)),\"\")","v":{"$error":"#N/A"}},{"$f":"IF(INDIRECT(\"c\" & (VLOOKUP(Switch!$D$37,$F$2:$G$44,2,FALSE)+ROW()-2))=Switch!$D$37,INDIRECT(\"a\" & (VLOOKUP(Switch!$D$37,$F$2:$G$44,2,FALSE)+ROW()-2)),\"\")","v":{"$error":"#N/A"}},{"$f":"IF(INDIRECT(\"c\" & (VLOOKUP(Switch!$D$38,$F$2:$G$44,2,FALSE)+ROW()-2))=Switch!$D$38,INDIRECT(\"a\" & (VLOOKUP(Switch!$D$38,$F$2:$G$44,2,FALSE)+ROW()-2)),\"\")","v":{"$error":"#N/A"}},{"$f":"IF(INDIRECT(\"c\" & (VLOOKUP(Switch!$D$39,$F$2:$G$44,2,FALSE)+ROW()-2))=Switch!$D$39,INDIRECT(\"a\" & (VLOOKUP(Switch!$D$39,$F$2:$G$44,2,FALSE)+ROW()-2)),\"\")","v":{"$error":"#N/A"}},{"$f":"IF(INDIRECT(\"c\" & (VLOOKUP(Switch!$D$40,$F$2:$G$44,2,FALSE)+ROW()-2))=Switch!$D$40,INDIRECT(\"a\" & (VLOOKUP(Switch!$D$40,$F$2:$G$44,2,FALSE)+ROW()-2)),\"\")","v":{"$error":"#N/A"}},{"$f":"IF(INDIRECT(\"c\" & (VLOOKUP(Switch!$D$52,$F$2:$G$44,2,FALSE)+ROW()-2))=Switch!$D$52,INDIRECT(\"a\" & (VLOOKUP(Switch!$D$52,$F$2:$G$44,2,FALSE)+ROW()-2)),\"\")","v":{"$error":"#N/A"}},{"$f":"IF(INDIRECT(\"c\" & (VLOOKUP(Switch!$D$53,$F$2:$G$44,2,FALSE)+ROW()-2))=Switch!$D$53,INDIRECT(\"a\" & (VLOOKUP(Switch!$D$53,$F$2:$G$44,2,FALSE)+ROW()-2)),\"\")","v":{"$error":"#N/A"}},{"$f":"IF(INDIRECT(\"c\" & (VLOOKUP(Switch!$D$54,$F$2:$G$44,2,FALSE)+ROW()-2))=Switch!$D$54,INDIRECT(\"a\" & (VLOOKUP(Switch!$D$54,$F$2:$G$44,2,FALSE)+ROW()-2)),\"\")","v":{"$error":"#N/A"}},{"$f":"IF(INDIRECT(\"c\" & (VLOOKUP(Switch!$D$55,$F$2:$G$44,2,FALSE)+ROW()-2))=Switch!$D$55,INDIRECT(\"a\" & (VLOOKUP(Switch!$D$55,$F$2:$G$44,2,FALSE)+ROW()-2)),\"\")","v":{"$error":"#N/A"}},{"$f":"IF(INDIRECT(\"c\" & (VLOOKUP(Switch!$D$56,$F$2:$G$44,2,FALSE)+ROW()-2))=Switch!$D$56,INDIRECT(\"a\" & (VLOOKUP(Switch!$D$56,$F$2:$G$44,2,FALSE)+ROW()-2)),\"\")","v":{"$error":"#N/A"}},{"$f":"IF(INDIRECT(\"c\" & (VLOOKUP(Switch!$D$57,$F$2:$G$44,2,FALSE)+ROW()-2))=Switch!$D$57,INDIRECT(\"a\" & (VLOOKUP(Switch!$D$57,$F$2:$G$44,2,FALSE)+ROW()-2)),\"\")","v":{"$error":"#N/A"}},{"$f":"IF(INDIRECT(\"c\" & (VLOOKUP(Switch!$D$58,$F$2:$G$44,2,FALSE)+ROW()-2))=Switch!$D$58,INDIRECT(\"a\" & (VLOOKUP(Switch!$D$58,$F$2:$G$44,2,FALSE)+ROW()-2)),\"\")","v":{"$error":"#N/A"}},{"$f":"IF(INDIRECT(\"c\" & (VLOOKUP(Switch!$D$59,$F$2:$G$44,2,FALSE)+ROW()-2))=Switch!$D$59,INDIRECT(\"a\" & (VLOOKUP(Switch!$D$59,$F$2:$G$44,2,FALSE)+ROW()-2)),\"\")","v":{"$error":"#N/A"}},{"$f":"IF(INDIRECT(\"c\" & (VLOOKUP(Switch!$D$60,$F$2:$G$44,2,FALSE)+ROW()-2))=Switch!$D$60,INDIRECT(\"a\" & (VLOOKUP(Switch!$D$60,$F$2:$G$44,2,FALSE)+ROW()-2)),\"\")","v":{"$error":"#N/A"}},{"$f":"IF(INDIRECT(\"c\" & (VLOOKUP(Switch!$D$61,$F$2:$G$44,2,FALSE)+ROW()-2))=Switch!$D$61,INDIRECT(\"a\" & (VLOOKUP(Switch!$D$61,$F$2:$G$44,2,FALSE)+ROW()-2)),\"\")","v":{"$error":"#N/A"}},{"$f":"IF(INDIRECT(\"c\" & (VLOOKUP(Switch!$D$62,$F$2:$G$44,2,FALSE)+ROW()-2))=Switch!$D$62,INDIRECT(\"a\" & (VLOOKUP(Switch!$D$62,$F$2:$G$44,2,FALSE)+ROW()-2)),\"\")","v":{"$error":"#N/A"}},{"$f":"IF(INDIRECT(\"c\" & (VLOOKUP(Switch!$D$63,$F$2:$G$44,2,FALSE)+ROW()-2))=Switch!$D$63,INDIRECT(\"a\" & (VLOOKUP(Switch!$D$63,$F$2:$G$44,2,FALSE)+ROW()-2)),\"\")","v":{"$error":"#N/A"}},{"$f":"IF(INDIRECT(\"c\" & (VLOOKUP(Switch!$D$64,$F$2:$G$44,2,FALSE)+ROW()-2))=Switch!$D$64,INDIRECT(\"a\" & (VLOOKUP(Switch!$D$64,$F$2:$G$44,2,FALSE)+ROW()-2)),\"\")","v":{"$error":"#N/A"}},{"$f":"IF(INDIRECT(\"c\" & (VLOOKUP(Switch!$D$65,$F$2:$G$44,2,FALSE)+ROW()-2))=Switch!$D$65,INDIRECT(\"a\" & (VLOOKUP(Switch!$D$65,$F$2:$G$44,2,FALSE)+ROW()-2)),\"\")","v":{"$error":"#N/A"}},{"$f":"IF(INDIRECT(\"c\" & (VLOOKUP(Switch!$D$66,$F$2:$G$44,2,FALSE)+ROW()-2))=Switch!$D$66,INDIRECT(\"a\" & (VLOOKUP(Switch!$D$66,$F$2:$G$44,2,FALSE)+ROW()-2)),\"\")","v":{"$error":"#N/A"}}]
["STANLIB Absolute Plus Fund A","SBAA","STANLIB Collective Investments",{"$f":"ROW()","v":32},null,"SBG Securities",{"$f":"VLOOKUP(F32,$C$2:$D$637,2,FALSE)","v":555},{"$f":"IF(INDIRECT(\"c\" & (VLOOKUP(Switch!$D$26,$F$2:$G$44,2,FALSE)+ROW()-2))=Switch!$D$26,INDIRECT(\"a\" & (VLOOKUP(Switch!$D$26,$F$2:$G$44,2,FALSE)+ROW()-2)),\"\")","v":{"$error":"#N/A"}},{"$f":"IF(INDIRECT(\"c\" & (VLOOKUP(Switch!$D$27,$F$2:$G$44,2,FALSE)+ROW()-2))=Switch!$D$27,INDIRECT(\"a\" & (VLOOKUP(Switch!$D$27,$F$2:$G$44,2,FALSE)+ROW()-2)),\"\")","v":{"$error":"#N/A"}},{"$f":"IF(INDIRECT(\"c\" & (VLOOKUP(Switch!$D$28,$F$2:$G$44,2,FALSE)+ROW()-2))=Switch!$D$28,INDIRECT(\"a\" & (VLOOKUP(Switch!$D$28,$F$2:$G$44,2,FALSE)+ROW()-2)),\"\")","v":{"$error":"#N/A"}},{"$f":"IF(INDIRECT(\"c\" & (VLOOKUP(Switch!$D$29,$F$2:$G$44,2,FALSE)+ROW()-2))=Switch!$D$29,INDIRECT(\"a\" & (VLOOKUP(Switch!$D$29,$F$2:$G$44,2,FALSE)+ROW()-2)),\"\")","v":{"$error":"#N/A"}},{"$f":"IF(INDIRECT(\"c\" & (VLOOKUP(Switch!$D$30,$F$2:$G$44,2,FALSE)+ROW()-2))=Switch!$D$30,INDIRECT(\"a\" & (VLOOKUP(Switch!$D$30,$F$2:$G$44,2,FALSE)+ROW()-2)),\"\")","v":{"$error":"#N/A"}},{"$f":"IF(INDIRECT(\"c\" & (VLOOKUP(Switch!$D$31,$F$2:$G$44,2,FALSE)+ROW()-2))=Switch!$D$31,INDIRECT(\"a\" & (VLOOKUP(Switch!$D$31,$F$2:$G$44,2,FALSE)+ROW()-2)),\"\")","v":{"$error":"#N/A"}},{"$f":"IF(INDIRECT(\"c\" & (VLOOKUP(Switch!$D$32,$F$2:$G$44,2,FALSE)+ROW()-2))=Switch!$D$32,INDIRECT(\"a\" & (VLOOKUP(Switch!$D$32,$F$2:$G$44,2,FALSE)+ROW()-2)),\"\")","v":{"$error":"#N/A"}},{"$f":"IF(INDIRECT(\"c\" & (VLOOKUP(Switch!$D$33,$F$2:$G$44,2,FALSE)+ROW()-2))=Switch!$D$33,INDIRECT(\"a\" & (VLOOKUP(Switch!$D$33,$F$2:$G$44,2,FALSE)+ROW()-2)),\"\")","v":{"$error":"#N/A"}},{"$f":"IF(INDIRECT(\"c\" & (VLOOKUP(Switch!$D$34,$F$2:$G$44,2,FALSE)+ROW()-2))=Switch!$D$34,INDIRECT(\"a\" & (VLOOKUP(Switch!$D$34,$F$2:$G$44,2,FALSE)+ROW()-2)),\"\")","v":{"$error":"#N/A"}},{"$f":"IF(INDIRECT(\"c\" & (VLOOKUP(Switch!$D$35,$F$2:$G$44,2,FALSE)+ROW()-2))=Switch!$D$35,INDIRECT(\"a\" & (VLOOKUP(Switch!$D$35,$F$2:$G$44,2,FALSE)+ROW()-2)),\"\")","v":{"$error":"#N/A"}},{"$f":"IF(INDIRECT(\"c\" & (VLOOKUP(Switch!$D$36,$F$2:$G$44,2,FALSE)+ROW()-2))=Switch!$D$36,INDIRECT(\"a\" & (VLOOKUP(Switch!$D$36,$F$2:$G$44,2,FALSE)+ROW()-2)),\"\")","v":{"$error":"#N/A"}},{"$f":"IF(INDIRECT(\"c\" & (VLOOKUP(Switch!$D$37,$F$2:$G$44,2,FALSE)+ROW()-2))=Switch!$D$37,INDIRECT(\"a\" & (VLOOKUP(Switch!$D$37,$F$2:$G$44,2,FALSE)+ROW()-2)),\"\")","v":{"$error":"#N/A"}},{"$f":"IF(INDIRECT(\"c\" & (VLOOKUP(Switch!$D$38,$F$2:$G$44,2,FALSE)+ROW()-2))=Switch!$D$38,INDIRECT(\"a\" & (VLOOKUP(Switch!$D$38,$F$2:$G$44,2,FALSE)+ROW()-2)),\"\")","v":{"$error":"#N/A"}},{"$f":"IF(INDIRECT(\"c\" & (VLOOKUP(Switch!$D$39,$F$2:$G$44,2,FALSE)+ROW()-2))=Switch!$D$39,INDIRECT(\"a\" & (VLOOKUP(Switch!$D$39,$F$2:$G$44,2,FALSE)+ROW()-2)),\"\")","v":{"$error":"#N/A"}},{"$f":"IF(INDIRECT(\"c\" & (VLOOKUP(Switch!$D$40,$F$2:$G$44,2,FALSE)+ROW()-2))=Switch!$D$40,INDIRECT(\"a\" & (VLOOKUP(Switch!$D$40,$F$2:$G$44,2,FALSE)+ROW()-2)),\"\")","v":{"$error":"#N/A"}},{"$f":"IF(INDIRECT(\"c\" & (VLOOKUP(Switch!$D$52,$F$2:$G$44,2,FALSE)+ROW()-2))=Switch!$D$52,INDIRECT(\"a\" & (VLOOKUP(Switch!$D$52,$F$2:$G$44,2,FALSE)+ROW()-2)),\"\")","v":{"$error":"#N/A"}},{"$f":"IF(INDIRECT(\"c\" & (VLOOKUP(Switch!$D$53,$F$2:$G$44,2,FALSE)+ROW()-2))=Switch!$D$53,INDIRECT(\"a\" & (VLOOKUP(Switch!$D$53,$F$2:$G$44,2,FALSE)+ROW()-2)),\"\")","v":{"$error":"#N/A"}},{"$f":"IF(INDIRECT(\"c\" & (VLOOKUP(Switch!$D$54,$F$2:$G$44,2,FALSE)+ROW()-2))=Switch!$D$54,INDIRECT(\"a\" & (VLOOKUP(Switch!$D$54,$F$2:$G$44,2,FALSE)+ROW()-2)),\"\")","v":{"$error":"#N/A"}},{"$f":"IF(INDIRECT(\"c\" & (VLOOKUP(Switch!$D$55,$F$2:$G$44,2,FALSE)+ROW()-2))=Switch!$D$55,INDIRECT(\"a\" & (VLOOKUP(Switch!$D$55,$F$2:$G$44,2,FALSE)+ROW()-2)),\"\")","v":{"$error":"#N/A"}},{"$f":"IF(INDIRECT(\"c\" & (VLOOKUP(Switch!$D$56,$F$2:$G$44,2,FALSE)+ROW()-2))=Switch!$D$56,INDIRECT(\"a\" & (VLOOKUP(Switch!$D$56,$F$2:$G$44,2,FALSE)+ROW()-2)),\"\")","v":{"$error":"#N/A"}},{"$f":"IF(INDIRECT(\"c\" & (VLOOKUP(Switch!$D$57,$F$2:$G$44,2,FALSE)+ROW()-2))=Switch!$D$57,INDIRECT(\"a\" & (VLOOKUP(Switch!$D$57,$F$2:$G$44,2,FALSE)+ROW()-2)),\"\")","v":{"$error":"#N/A"}},{"$f":"IF(INDIRECT(\"c\" & (VLOOKUP(Switch!$D$58,$F$2:$G$44,2,FALSE)+ROW()-2))=Switch!$D$58,INDIRECT(\"a\" & (VLOOKUP(Switch!$D$58,$F$2:$G$44,2,FALSE)+ROW()-2)),\"\")","v":{"$error":"#N/A"}},{"$f":"IF(INDIRECT(\"c\" & (VLOOKUP(Switch!$D$59,$F$2:$G$44,2,FALSE)+ROW()-2))=Switch!$D$59,INDIRECT(\"a\" & (VLOOKUP(Switch!$D$59,$F$2:$G$44,2,FALSE)+ROW()-2)),\"\")","v":{"$error":"#N/A"}},{"$f":"IF(INDIRECT(\"c\" & (VLOOKUP(Switch!$D$60,$F$2:$G$44,2,FALSE)+ROW()-2))=Switch!$D$60,INDIRECT(\"a\" & (VLOOKUP(Switch!$D$60,$F$2:$G$44,2,FALSE)+ROW()-2)),\"\")","v":{"$error":"#N/A"}},{"$f":"IF(INDIRECT(\"c\" & (VLOOKUP(Switch!$D$61,$F$2:$G$44,2,FALSE)+ROW()-2))=Switch!$D$61,INDIRECT(\"a\" & (VLOOKUP(Switch!$D$61,$F$2:$G$44,2,FALSE)+ROW()-2)),\"\")","v":{"$error":"#N/A"}},{"$f":"IF(INDIRECT(\"c\" & (VLOOKUP(Switch!$D$62,$F$2:$G$44,2,FALSE)+ROW()-2))=Switch!$D$62,INDIRECT(\"a\" & (VLOOKUP(Switch!$D$62,$F$2:$G$44,2,FALSE)+ROW()-2)),\"\")","v":{"$error":"#N/A"}},{"$f":"IF(INDIRECT(\"c\" & (VLOOKUP(Switch!$D$63,$F$2:$G$44,2,FALSE)+ROW()-2))=Switch!$D$63,INDIRECT(\"a\" & (VLOOKUP(Switch!$D$63,$F$2:$G$44,2,FALSE)+ROW()-2)),\"\")","v":{"$error":"#N/A"}},{"$f":"IF(INDIRECT(\"c\" & (VLOOKUP(Switch!$D$64,$F$2:$G$44,2,FALSE)+ROW()-2))=Switch!$D$64,INDIRECT(\"a\" & (VLOOKUP(Switch!$D$64,$F$2:$G$44,2,FALSE)+ROW()-2)),\"\")","v":{"$error":"#N/A"}},{"$f":"IF(INDIRECT(\"c\" & (VLOOKUP(Switch!$D$65,$F$2:$G$44,2,FALSE)+ROW()-2))=Switch!$D$65,INDIRECT(\"a\" & (VLOOKUP(Switch!$D$65,$F$2:$G$44,2,FALSE)+ROW()-2)),\"\")","v":{"$error":"#N/A"}},{"$f":"IF(INDIRECT(\"c\" & (VLOOKUP(Switch!$D$66,$F$2:$G$44,2,FALSE)+ROW()-2))=Switch!$D$66,INDIRECT(\"a\" & (VLOOKUP(Switch!$D$66,$F$2:$G$44,2,FALSE)+ROW()-2)),\"\")","v":{"$error":"#N/A"}}]
["STANLIB Absolute Plus Fund B1","SBAA","STANLIB Collective Investments",{"$f":"ROW()","v":33},null,"Withdrawal",{"$f":"VLOOKUP(F33,$C$2:$D$637,2,FALSE)","v":560},{"$f":"IF(INDIRECT(\"c\" & (VLOOKUP(Switch!$D$26,$F$2:$G$44,2,FALSE)+ROW()-2))=Switch!$D$26,INDIRECT(\"a\" & (VLOOKUP(Switch!$D$26,$F$2:$G$44,2,FALSE)+ROW()-2)),\"\")","v":{"$error":"#N/A"}},{"$f":"IF(INDIRECT(\"c\" & (VLOOKUP(Switch!$D$27,$F$2:$G$44,2,FALSE)+ROW()-2))=Switch!$D$27,INDIRECT(\"a\" & (VLOOKUP(Switch!$D$27,$F$2:$G$44,2,FALSE)+ROW()-2)),\"\")","v":{"$error":"#N/A"}},{"$f":"IF(INDIRECT(\"c\" & (VLOOKUP(Switch!$D$28,$F$2:$G$44,2,FALSE)+ROW()-2))=Switch!$D$28,INDIRECT(\"a\" & (VLOOKUP(Switch!$D$28,$F$2:$G$44,2,FALSE)+ROW()-2)),\"\")","v":{"$error":"#N/A"}},{"$f":"IF(INDIRECT(\"c\" & (VLOOKUP(Switch!$D$29,$F$2:$G$44,2,FALSE)+ROW()-2))=Switch!$D$29,INDIRECT(\"a\" & (VLOOKUP(Switch!$D$29,$F$2:$G$44,2,FALSE)+ROW()-2)),\"\")","v":{"$error":"#N/A"}},{"$f":"IF(INDIRECT(\"c\" & (VLOOKUP(Switch!$D$30,$F$2:$G$44,2,FALSE)+ROW()-2))=Switch!$D$30,INDIRECT(\"a\" & (VLOOKUP(Switch!$D$30,$F$2:$G$44,2,FALSE)+ROW()-2)),\"\")","v":{"$error":"#N/A"}},{"$f":"IF(INDIRECT(\"c\" & (VLOOKUP(Switch!$D$31,$F$2:$G$44,2,FALSE)+ROW()-2))=Switch!$D$31,INDIRECT(\"a\" & (VLOOKUP(Switch!$D$31,$F$2:$G$44,2,FALSE)+ROW()-2)),\"\")","v":{"$error":"#N/A"}},{"$f":"IF(INDIRECT(\"c\" & (VLOOKUP(Switch!$D$32,$F$2:$G$44,2,FALSE)+ROW()-2))=Switch!$D$32,INDIRECT(\"a\" & (VLOOKUP(Switch!$D$32,$F$2:$G$44,2,FALSE)+ROW()-2)),\"\")","v":{"$error":"#N/A"}},{"$f":"IF(INDIRECT(\"c\" & (VLOOKUP(Switch!$D$33,$F$2:$G$44,2,FALSE)+ROW()-2))=Switch!$D$33,INDIRECT(\"a\" & (VLOOKUP(Switch!$D$33,$F$2:$G$44,2,FALSE)+ROW()-2)),\"\")","v":{"$error":"#N/A"}},{"$f":"IF(INDIRECT(\"c\" & (VLOOKUP(Switch!$D$34,$F$2:$G$44,2,FALSE)+ROW()-2))=Switch!$D$34,INDIRECT(\"a\" & (VLOOKUP(Switch!$D$34,$F$2:$G$44,2,FALSE)+ROW()-2)),\"\")","v":{"$error":"#N/A"}},{"$f":"IF(INDIRECT(\"c\" & (VLOOKUP(Switch!$D$35,$F$2:$G$44,2,FALSE)+ROW()-2))=Switch!$D$35,INDIRECT(\"a\" & (VLOOKUP(Switch!$D$35,$F$2:$G$44,2,FALSE)+ROW()-2)),\"\")","v":{"$error":"#N/A"}},{"$f":"IF(INDIRECT(\"c\" & (VLOOKUP(Switch!$D$36,$F$2:$G$44,2,FALSE)+ROW()-2))=Switch!$D$36,INDIRECT(\"a\" & (VLOOKUP(Switch!$D$36,$F$2:$G$44,2,FALSE)+ROW()-2)),\"\")","v":{"$error":"#N/A"}},{"$f":"IF(INDIRECT(\"c\" & (VLOOKUP(Switch!$D$37,$F$2:$G$44,2,FALSE)+ROW()-2))=Switch!$D$37,INDIRECT(\"a\" & (VLOOKUP(Switch!$D$37,$F$2:$G$44,2,FALSE)+ROW()-2)),\"\")","v":{"$error":"#N/A"}},{"$f":"IF(INDIRECT(\"c\" & (VLOOKUP(Switch!$D$38,$F$2:$G$44,2,FALSE)+ROW()-2))=Switch!$D$38,INDIRECT(\"a\" & (VLOOKUP(Switch!$D$38,$F$2:$G$44,2,FALSE)+ROW()-2)),\"\")","v":{"$error":"#N/A"}},{"$f":"IF(INDIRECT(\"c\" & (VLOOKUP(Switch!$D$39,$F$2:$G$44,2,FALSE)+ROW()-2))=Switch!$D$39,INDIRECT(\"a\" & (VLOOKUP(Switch!$D$39,$F$2:$G$44,2,FALSE)+ROW()-2)),\"\")","v":{"$error":"#N/A"}},{"$f":"IF(INDIRECT(\"c\" & (VLOOKUP(Switch!$D$40,$F$2:$G$44,2,FALSE)+ROW()-2))=Switch!$D$40,INDIRECT(\"a\" & (VLOOKUP(Switch!$D$40,$F$2:$G$44,2,FALSE)+ROW()-2)),\"\")","v":{"$error":"#N/A"}},{"$f":"IF(INDIRECT(\"c\" & (VLOOKUP(Switch!$D$52,$F$2:$G$44,2,FALSE)+ROW()-2))=Switch!$D$52,INDIRECT(\"a\" & (VLOOKUP(Switch!$D$52,$F$2:$G$44,2,FALSE)+ROW()-2)),\"\")","v":{"$error":"#N/A"}},{"$f":"IF(INDIRECT(\"c\" & (VLOOKUP(Switch!$D$53,$F$2:$G$44,2,FALSE)+ROW()-2))=Switch!$D$53,INDIRECT(\"a\" & (VLOOKUP(Switch!$D$53,$F$2:$G$44,2,FALSE)+ROW()-2)),\"\")","v":{"$error":"#N/A"}},{"$f":"IF(INDIRECT(\"c\" & (VLOOKUP(Switch!$D$54,$F$2:$G$44,2,FALSE)+ROW()-2))=Switch!$D$54,INDIRECT(\"a\" & (VLOOKUP(Switch!$D$54,$F$2:$G$44,2,FALSE)+ROW()-2)),\"\")","v":{"$error":"#N/A"}},{"$f":"IF(INDIRECT(\"c\" & (VLOOKUP(Switch!$D$55,$F$2:$G$44,2,FALSE)+ROW()-2))=Switch!$D$55,INDIRECT(\"a\" & (VLOOKUP(Switch!$D$55,$F$2:$G$44,2,FALSE)+ROW()-2)),\"\")","v":{"$error":"#N/A"}},{"$f":"IF(INDIRECT(\"c\" & (VLOOKUP(Switch!$D$56,$F$2:$G$44,2,FALSE)+ROW()-2))=Switch!$D$56,INDIRECT(\"a\" & (VLOOKUP(Switch!$D$56,$F$2:$G$44,2,FALSE)+ROW()-2)),\"\")","v":{"$error":"#N/A"}},{"$f":"IF(INDIRECT(\"c\" & (VLOOKUP(Switch!$D$57,$F$2:$G$44,2,FALSE)+ROW()-2))=Switch!$D$57,INDIRECT(\"a\" & (VLOOKUP(Switch!$D$57,$F$2:$G$44,2,FALSE)+ROW()-2)),\"\")","v":{"$error":"#N/A"}},{"$f":"IF(INDIRECT(\"c\" & (VLOOKUP(Switch!$D$58,$F$2:$G$44,2,FALSE)+ROW()-2))=Switch!$D$58,INDIRECT(\"a\" & (VLOOKUP(Switch!$D$58,$F$2:$G$44,2,FALSE)+ROW()-2)),\"\")","v":{"$error":"#N/A"}},{"$f":"IF(INDIRECT(\"c\" & (VLOOKUP(Switch!$D$59,$F$2:$G$44,2,FALSE)+ROW()-2))=Switch!$D$59,INDIRECT(\"a\" & (VLOOKUP(Switch!$D$59,$F$2:$G$44,2,FALSE)+ROW()-2)),\"\")","v":{"$error":"#N/A"}},{"$f":"IF(INDIRECT(\"c\" & (VLOOKUP(Switch!$D$60,$F$2:$G$44,2,FALSE)+ROW()-2))=Switch!$D$60,INDIRECT(\"a\" & (VLOOKUP(Switch!$D$60,$F$2:$G$44,2,FALSE)+ROW()-2)),\"\")","v":{"$error":"#N/A"}},{"$f":"IF(INDIRECT(\"c\" & (VLOOKUP(Switch!$D$61,$F$2:$G$44,2,FALSE)+ROW()-2))=Switch!$D$61,INDIRECT(\"a\" & (VLOOKUP(Switch!$D$61,$F$2:$G$44,2,FALSE)+ROW()-2)),\"\")","v":{"$error":"#N/A"}},{"$f":"IF(INDIRECT(\"c\" & (VLOOKUP(Switch!$D$62,$F$2:$G$44,2,FALSE)+ROW()-2))=Switch!$D$62,INDIRECT(\"a\" & (VLOOKUP(Switch!$D$62,$F$2:$G$44,2,FALSE)+ROW()-2)),\"\")","v":{"$error":"#N/A"}},{"$f":"IF(INDIRECT(\"c\" & (VLOOKUP(Switch!$D$63,$F$2:$G$44,2,FALSE)+ROW()-2))=Switch!$D$63,INDIRECT(\"a\" & (VLOOKUP(Switch!$D$63,$F$2:$G$44,2,FALSE)+ROW()-2)),\"\")","v":{"$error":"#N/A"}},{"$f":"IF(INDIRECT(\"c\" & (VLOOKUP(Switch!$D$64,$F$2:$G$44,2,FALSE)+ROW()-2))=Switch!$D$64,INDIRECT(\"a\" & (VLOOKUP(Switch!$D$64,$F$2:$G$44,2,FALSE)+ROW()-2)),\"\")","v":{"$error":"#N/A"}},{"$f":"IF(INDIRECT(\"c\" & (VLOOKUP(Switch!$D$65,$F$2:$G$44,2,FALSE)+ROW()-2))=Switch!$D$65,INDIRECT(\"a\" & (VLOOKUP(Switch!$D$65,$F$2:$G$44,2,FALSE)+ROW()-2)),\"\")","v":{"$error":"#N/A"}},{"$f":"IF(INDIRECT(\"c\" & (VLOOKUP(Switch!$D$66,$F$2:$G$44,2,FALSE)+ROW()-2))=Switch!$D$66,INDIRECT(\"a\" & (VLOOKUP(Switch!$D$66,$F$2:$G$44,2,FALSE)+ROW()-2)),\"\")","v":{"$error":"#N/A"}}]
["STANLIB Africa Property Fund B2","STAB2","STANLIB Collective Investments",{"$f":"ROW()","v":34},null,null,{"$f":"VLOOKUP(F34,$C$2:$D$637,2,FALSE)","v":{"$error":"#N/A"}},{"$f":"IF(INDIRECT(\"c\" & (VLOOKUP(Switch!$D$26,$F$2:$G$44,2,FALSE)+ROW()-2))=Switch!$D$26,INDIRECT(\"a\" & (VLOOKUP(Switch!$D$26,$F$2:$G$44,2,FALSE)+ROW()-2)),\"\")","v":{"$error":"#N/A"}},{"$f":"IF(INDIRECT(\"c\" & (VLOOKUP(Switch!$D$27,$F$2:$G$44,2,FALSE)+ROW()-2))=Switch!$D$27,INDIRECT(\"a\" & (VLOOKUP(Switch!$D$27,$F$2:$G$44,2,FALSE)+ROW()-2)),\"\")","v":{"$error":"#N/A"}},{"$f":"IF(INDIRECT(\"c\" & (VLOOKUP(Switch!$D$28,$F$2:$G$44,2,FALSE)+ROW()-2))=Switch!$D$28,INDIRECT(\"a\" & (VLOOKUP(Switch!$D$28,$F$2:$G$44,2,FALSE)+ROW()-2)),\"\")","v":{"$error":"#N/A"}},{"$f":"IF(INDIRECT(\"c\" & (VLOOKUP(Switch!$D$29,$F$2:$G$44,2,FALSE)+ROW()-2))=Switch!$D$29,INDIRECT(\"a\" & (VLOOKUP(Switch!$D$29,$F$2:$G$44,2,FALSE)+ROW()-2)),\"\")","v":{"$error":"#N/A"}},{"$f":"IF(INDIRECT(\"c\" & (VLOOKUP(Switch!$D$30,$F$2:$G$44,2,FALSE)+ROW()-2))=Switch!$D$30,INDIRECT(\"a\" & (VLOOKUP(Switch!$D$30,$F$2:$G$44,2,FALSE)+ROW()-2)),\"\")","v":{"$error":"#N/A"}},{"$f":"IF(INDIRECT(\"c\" & (VLOOKUP(Switch!$D$31,$F$2:$G$44,2,FALSE)+ROW()-2))=Switch!$D$31,INDIRECT(\"a\" & (VLOOKUP(Switch!$D$31,$F$2:$G$44,2,FALSE)+ROW()-2)),\"\")","v":{"$error":"#N/A"}},{"$f":"IF(INDIRECT(\"c\" & (VLOOKUP(Switch!$D$32,$F$2:$G$44,2,FALSE)+ROW()-2))=Switch!$D$32,INDIRECT(\"a\" & (VLOOKUP(Switch!$D$32,$F$2:$G$44,2,FALSE)+ROW()-2)),\"\")","v":{"$error":"#N/A"}},{"$f":"IF(INDIRECT(\"c\" & (VLOOKUP(Switch!$D$33,$F$2:$G$44,2,FALSE)+ROW()-2))=Switch!$D$33,INDIRECT(\"a\" & (VLOOKUP(Switch!$D$33,$F$2:$G$44,2,FALSE)+ROW()-2)),\"\")","v":{"$error":"#N/A"}},{"$f":"IF(INDIRECT(\"c\" & (VLOOKUP(Switch!$D$34,$F$2:$G$44,2,FALSE)+ROW()-2))=Switch!$D$34,INDIRECT(\"a\" & (VLOOKUP(Switch!$D$34,$F$2:$G$44,2,FALSE)+ROW()-2)),\"\")","v":{"$error":"#N/A"}},{"$f":"IF(INDIRECT(\"c\" & (VLOOKUP(Switch!$D$35,$F$2:$G$44,2,FALSE)+ROW()-2))=Switch!$D$35,INDIRECT(\"a\" & (VLOOKUP(Switch!$D$35,$F$2:$G$44,2,FALSE)+ROW()-2)),\"\")","v":{"$error":"#N/A"}},{"$f":"IF(INDIRECT(\"c\" & (VLOOKUP(Switch!$D$36,$F$2:$G$44,2,FALSE)+ROW()-2))=Switch!$D$36,INDIRECT(\"a\" & (VLOOKUP(Switch!$D$36,$F$2:$G$44,2,FALSE)+ROW()-2)),\"\")","v":{"$error":"#N/A"}},{"$f":"IF(INDIRECT(\"c\" & (VLOOKUP(Switch!$D$37,$F$2:$G$44,2,FALSE)+ROW()-2))=Switch!$D$37,INDIRECT(\"a\" & (VLOOKUP(Switch!$D$37,$F$2:$G$44,2,FALSE)+ROW()-2)),\"\")","v":{"$error":"#N/A"}},{"$f":"IF(INDIRECT(\"c\" & (VLOOKUP(Switch!$D$38,$F$2:$G$44,2,FALSE)+ROW()-2))=Switch!$D$38,INDIRECT(\"a\" & (VLOOKUP(Switch!$D$38,$F$2:$G$44,2,FALSE)+ROW()-2)),\"\")","v":{"$error":"#N/A"}},{"$f":"IF(INDIRECT(\"c\" & (VLOOKUP(Switch!$D$39,$F$2:$G$44,2,FALSE)+ROW()-2))=Switch!$D$39,INDIRECT(\"a\" & (VLOOKUP(Switch!$D$39,$F$2:$G$44,2,FALSE)+ROW()-2)),\"\")","v":{"$error":"#N/A"}},{"$f":"IF(INDIRECT(\"c\" & (VLOOKUP(Switch!$D$40,$F$2:$G$44,2,FALSE)+ROW()-2))=Switch!$D$40,INDIRECT(\"a\" & (VLOOKUP(Switch!$D$40,$F$2:$G$44,2,FALSE)+ROW()-2)),\"\")","v":{"$error":"#N/A"}},{"$f":"IF(INDIRECT(\"c\" & (VLOOKUP(Switch!$D$52,$F$2:$G$44,2,FALSE)+ROW()-2))=Switch!$D$52,INDIRECT(\"a\" & (VLOOKUP(Switch!$D$52,$F$2:$G$44,2,FALSE)+ROW()-2)),\"\")","v":{"$error":"#N/A"}},{"$f":"IF(INDIRECT(\"c\" & (VLOOKUP(Switch!$D$53,$F$2:$G$44,2,FALSE)+ROW()-2))=Switch!$D$53,INDIRECT(\"a\" & (VLOOKUP(Switch!$D$53,$F$2:$G$44,2,FALSE)+ROW()-2)),\"\")","v":{"$error":"#N/A"}},{"$f":"IF(INDIRECT(\"c\" & (VLOOKUP(Switch!$D$54,$F$2:$G$44,2,FALSE)+ROW()-2))=Switch!$D$54,INDIRECT(\"a\" & (VLOOKUP(Switch!$D$54,$F$2:$G$44,2,FALSE)+ROW()-2)),\"\")","v":{"$error":"#N/A"}},{"$f":"IF(INDIRECT(\"c\" & (VLOOKUP(Switch!$D$55,$F$2:$G$44,2,FALSE)+ROW()-2))=Switch!$D$55,INDIRECT(\"a\" & (VLOOKUP(Switch!$D$55,$F$2:$G$44,2,FALSE)+ROW()-2)),\"\")","v":{"$error":"#N/A"}},{"$f":"IF(INDIRECT(\"c\" & (VLOOKUP(Switch!$D$56,$F$2:$G$44,2,FALSE)+ROW()-2))=Switch!$D$56,INDIRECT(\"a\" & (VLOOKUP(Switch!$D$56,$F$2:$G$44,2,FALSE)+ROW()-2)),\"\")","v":{"$error":"#N/A"}},{"$f":"IF(INDIRECT(\"c\" & (VLOOKUP(Switch!$D$57,$F$2:$G$44,2,FALSE)+ROW()-2))=Switch!$D$57,INDIRECT(\"a\" & (VLOOKUP(Switch!$D$57,$F$2:$G$44,2,FALSE)+ROW()-2)),\"\")","v":{"$error":"#N/A"}},{"$f":"IF(INDIRECT(\"c\" & (VLOOKUP(Switch!$D$58,$F$2:$G$44,2,FALSE)+ROW()-2))=Switch!$D$58,INDIRECT(\"a\" & (VLOOKUP(Switch!$D$58,$F$2:$G$44,2,FALSE)+ROW()-2)),\"\")","v":{"$error":"#N/A"}},{"$f":"IF(INDIRECT(\"c\" & (VLOOKUP(Switch!$D$59,$F$2:$G$44,2,FALSE)+ROW()-2))=Switch!$D$59,INDIRECT(\"a\" & (VLOOKUP(Switch!$D$59,$F$2:$G$44,2,FALSE)+ROW()-2)),\"\")","v":{"$error":"#N/A"}},{"$f":"IF(INDIRECT(\"c\" & (VLOOKUP(Switch!$D$60,$F$2:$G$44,2,FALSE)+ROW()-2))=Switch!$D$60,INDIRECT(\"a\" & (VLOOKUP(Switch!$D$60,$F$2:$G$44,2,FALSE)+ROW()-2)),\"\")","v":{"$error":"#N/A"}},{"$f":"IF(INDIRECT(\"c\" & (VLOOKUP(Switch!$D$61,$F$2:$G$44,2,FALSE)+ROW()-2))=Switch!$D$61,INDIRECT(\"a\" & (VLOOKUP(Switch!$D$61,$F$2:$G$44,2,FALSE)+ROW()-2)),\"\")","v":{"$error":"#N/A"}},{"$f":"IF(INDIRECT(\"c\" & (VLOOKUP(Switch!$D$62,$F$2:$G$44,2,FALSE)+ROW()-2))=Switch!$D$62,INDIRECT(\"a\" & (VLOOKUP(Switch!$D$62,$F$2:$G$44,2,FALSE)+ROW()-2)),\"\")","v":{"$error":"#N/A"}},{"$f":"IF(INDIRECT(\"c\" & (VLOOKUP(Switch!$D$63,$F$2:$G$44,2,FALSE)+ROW()-2))=Switch!$D$63,INDIRECT(\"a\" & (VLOOKUP(Switch!$D$63,$F$2:$G$44,2,FALSE)+ROW()-2)),\"\")","v":{"$error":"#N/A"}},{"$f":"IF(INDIRECT(\"c\" & (VLOOKUP(Switch!$D$64,$F$2:$G$44,2,FALSE)+ROW()-2))=Switch!$D$64,INDIRECT(\"a\" & (VLOOKUP(Switch!$D$64,$F$2:$G$44,2,FALSE)+ROW()-2)),\"\")","v":{"$error":"#N/A"}},{"$f":"IF(INDIRECT(\"c\" & (VLOOKUP(Switch!$D$65,$F$2:$G$44,2,FALSE)+ROW()-2))=Switch!$D$65,INDIRECT(\"a\" & (VLOOKUP(Switch!$D$65,$F$2:$G$44,2,FALSE)+ROW()-2)),\"\")","v":{"$error":"#N/A"}},{"$f":"IF(INDIRECT(\"c\" & (VLOOKUP(Switch!$D$66,$F$2:$G$44,2,FALSE)+ROW()-2))=Switch!$D$66,INDIRECT(\"a\" & (VLOOKUP(Switch!$D$66,$F$2:$G$44,2,FALSE)+ROW()-2)),\"\")","v":{"$error":"#N/A"}}]
["STANLIB Balanced Cautious Fund A","SBCFA","STANLIB Collective Investments",{"$f":"ROW()","v":35},null,null,{"$f":"VLOOKUP(F35,$C$2:$D$637,2,FALSE)","v":{"$error":"#N/A"}},{"$f":"IF(INDIRECT(\"c\" & (VLOOKUP(Switch!$D$26,$F$2:$G$44,2,FALSE)+ROW()-2))=Switch!$D$26,INDIRECT(\"a\" & (VLOOKUP(Switch!$D$26,$F$2:$G$44,2,FALSE)+ROW()-2)),\"\")","v":{"$error":"#N/A"}},{"$f":"IF(INDIRECT(\"c\" & (VLOOKUP(Switch!$D$27,$F$2:$G$44,2,FALSE)+ROW()-2))=Switch!$D$27,INDIRECT(\"a\" & (VLOOKUP(Switch!$D$27,$F$2:$G$44,2,FALSE)+ROW()-2)),\"\")","v":{"$error":"#N/A"}},{"$f":"IF(INDIRECT(\"c\" & (VLOOKUP(Switch!$D$28,$F$2:$G$44,2,FALSE)+ROW()-2))=Switch!$D$28,INDIRECT(\"a\" & (VLOOKUP(Switch!$D$28,$F$2:$G$44,2,FALSE)+ROW()-2)),\"\")","v":{"$error":"#N/A"}},{"$f":"IF(INDIRECT(\"c\" & (VLOOKUP(Switch!$D$29,$F$2:$G$44,2,FALSE)+ROW()-2))=Switch!$D$29,INDIRECT(\"a\" & (VLOOKUP(Switch!$D$29,$F$2:$G$44,2,FALSE)+ROW()-2)),\"\")","v":{"$error":"#N/A"}},{"$f":"IF(INDIRECT(\"c\" & (VLOOKUP(Switch!$D$30,$F$2:$G$44,2,FALSE)+ROW()-2))=Switch!$D$30,INDIRECT(\"a\" & (VLOOKUP(Switch!$D$30,$F$2:$G$44,2,FALSE)+ROW()-2)),\"\")","v":{"$error":"#N/A"}},{"$f":"IF(INDIRECT(\"c\" & (VLOOKUP(Switch!$D$31,$F$2:$G$44,2,FALSE)+ROW()-2))=Switch!$D$31,INDIRECT(\"a\" & (VLOOKUP(Switch!$D$31,$F$2:$G$44,2,FALSE)+ROW()-2)),\"\")","v":{"$error":"#N/A"}},{"$f":"IF(INDIRECT(\"c\" & (VLOOKUP(Switch!$D$32,$F$2:$G$44,2,FALSE)+ROW()-2))=Switch!$D$32,INDIRECT(\"a\" & (VLOOKUP(Switch!$D$32,$F$2:$G$44,2,FALSE)+ROW()-2)),\"\")","v":{"$error":"#N/A"}},{"$f":"IF(INDIRECT(\"c\" & (VLOOKUP(Switch!$D$33,$F$2:$G$44,2,FALSE)+ROW()-2))=Switch!$D$33,INDIRECT(\"a\" & (VLOOKUP(Switch!$D$33,$F$2:$G$44,2,FALSE)+ROW()-2)),\"\")","v":{"$error":"#N/A"}},{"$f":"IF(INDIRECT(\"c\" & (VLOOKUP(Switch!$D$34,$F$2:$G$44,2,FALSE)+ROW()-2))=Switch!$D$34,INDIRECT(\"a\" & (VLOOKUP(Switch!$D$34,$F$2:$G$44,2,FALSE)+ROW()-2)),\"\")","v":{"$error":"#N/A"}},{"$f":"IF(INDIRECT(\"c\" & (VLOOKUP(Switch!$D$35,$F$2:$G$44,2,FALSE)+ROW()-2))=Switch!$D$35,INDIRECT(\"a\" & (VLOOKUP(Switch!$D$35,$F$2:$G$44,2,FALSE)+ROW()-2)),\"\")","v":{"$error":"#N/A"}},{"$f":"IF(INDIRECT(\"c\" & (VLOOKUP(Switch!$D$36,$F$2:$G$44,2,FALSE)+ROW()-2))=Switch!$D$36,INDIRECT(\"a\" & (VLOOKUP(Switch!$D$36,$F$2:$G$44,2,FALSE)+ROW()-2)),\"\")","v":{"$error":"#N/A"}},{"$f":"IF(INDIRECT(\"c\" & (VLOOKUP(Switch!$D$37,$F$2:$G$44,2,FALSE)+ROW()-2))=Switch!$D$37,INDIRECT(\"a\" & (VLOOKUP(Switch!$D$37,$F$2:$G$44,2,FALSE)+ROW()-2)),\"\")","v":{"$error":"#N/A"}},{"$f":"IF(INDIRECT(\"c\" & (VLOOKUP(Switch!$D$38,$F$2:$G$44,2,FALSE)+ROW()-2))=Switch!$D$38,INDIRECT(\"a\" & (VLOOKUP(Switch!$D$38,$F$2:$G$44,2,FALSE)+ROW()-2)),\"\")","v":{"$error":"#N/A"}},{"$f":"IF(INDIRECT(\"c\" & (VLOOKUP(Switch!$D$39,$F$2:$G$44,2,FALSE)+ROW()-2))=Switch!$D$39,INDIRECT(\"a\" & (VLOOKUP(Switch!$D$39,$F$2:$G$44,2,FALSE)+ROW()-2)),\"\")","v":{"$error":"#N/A"}},{"$f":"IF(INDIRECT(\"c\" & (VLOOKUP(Switch!$D$40,$F$2:$G$44,2,FALSE)+ROW()-2))=Switch!$D$40,INDIRECT(\"a\" & (VLOOKUP(Switch!$D$40,$F$2:$G$44,2,FALSE)+ROW()-2)),\"\")","v":{"$error":"#N/A"}},{"$f":"IF(INDIRECT(\"c\" & (VLOOKUP(Switch!$D$52,$F$2:$G$44,2,FALSE)+ROW()-2))=Switch!$D$52,INDIRECT(\"a\" & (VLOOKUP(Switch!$D$52,$F$2:$G$44,2,FALSE)+ROW()-2)),\"\")","v":{"$error":"#N/A"}},{"$f":"IF(INDIRECT(\"c\" & (VLOOKUP(Switch!$D$53,$F$2:$G$44,2,FALSE)+ROW()-2))=Switch!$D$53,INDIRECT(\"a\" & (VLOOKUP(Switch!$D$53,$F$2:$G$44,2,FALSE)+ROW()-2)),\"\")","v":{"$error":"#N/A"}},{"$f":"IF(INDIRECT(\"c\" & (VLOOKUP(Switch!$D$54,$F$2:$G$44,2,FALSE)+ROW()-2))=Switch!$D$54,INDIRECT(\"a\" & (VLOOKUP(Switch!$D$54,$F$2:$G$44,2,FALSE)+ROW()-2)),\"\")","v":{"$error":"#N/A"}},{"$f":"IF(INDIRECT(\"c\" & (VLOOKUP(Switch!$D$55,$F$2:$G$44,2,FALSE)+ROW()-2))=Switch!$D$55,INDIRECT(\"a\" & (VLOOKUP(Switch!$D$55,$F$2:$G$44,2,FALSE)+ROW()-2)),\"\")","v":{"$error":"#N/A"}},{"$f":"IF(INDIRECT(\"c\" & (VLOOKUP(Switch!$D$56,$F$2:$G$44,2,FALSE)+ROW()-2))=Switch!$D$56,INDIRECT(\"a\" & (VLOOKUP(Switch!$D$56,$F$2:$G$44,2,FALSE)+ROW()-2)),\"\")","v":{"$error":"#N/A"}},{"$f":"IF(INDIRECT(\"c\" & (VLOOKUP(Switch!$D$57,$F$2:$G$44,2,FALSE)+ROW()-2))=Switch!$D$57,INDIRECT(\"a\" & (VLOOKUP(Switch!$D$57,$F$2:$G$44,2,FALSE)+ROW()-2)),\"\")","v":{"$error":"#N/A"}},{"$f":"IF(INDIRECT(\"c\" & (VLOOKUP(Switch!$D$58,$F$2:$G$44,2,FALSE)+ROW()-2))=Switch!$D$58,INDIRECT(\"a\" & (VLOOKUP(Switch!$D$58,$F$2:$G$44,2,FALSE)+ROW()-2)),\"\")","v":{"$error":"#N/A"}},{"$f":"IF(INDIRECT(\"c\" & (VLOOKUP(Switch!$D$59,$F$2:$G$44,2,FALSE)+ROW()-2))=Switch!$D$59,INDIRECT(\"a\" & (VLOOKUP(Switch!$D$59,$F$2:$G$44,2,FALSE)+ROW()-2)),\"\")","v":{"$error":"#N/A"}},{"$f":"IF(INDIRECT(\"c\" & (VLOOKUP(Switch!$D$60,$F$2:$G$44,2,FALSE)+ROW()-2))=Switch!$D$60,INDIRECT(\"a\" & (VLOOKUP(Switch!$D$60,$F$2:$G$44,2,FALSE)+ROW()-2)),\"\")","v":{"$error":"#N/A"}},{"$f":"IF(INDIRECT(\"c\" & (VLOOKUP(Switch!$D$61,$F$2:$G$44,2,FALSE)+ROW()-2))=Switch!$D$61,INDIRECT(\"a\" & (VLOOKUP(Switch!$D$61,$F$2:$G$44,2,FALSE)+ROW()-2)),\"\")","v":{"$error":"#N/A"}},{"$f":"IF(INDIRECT(\"c\" & (VLOOKUP(Switch!$D$62,$F$2:$G$44,2,FALSE)+ROW()-2))=Switch!$D$62,INDIRECT(\"a\" & (VLOOKUP(Switch!$D$62,$F$2:$G$44,2,FALSE)+ROW()-2)),\"\")","v":{"$error":"#N/A"}},{"$f":"IF(INDIRECT(\"c\" & (VLOOKUP(Switch!$D$63,$F$2:$G$44,2,FALSE)+ROW()-2))=Switch!$D$63,INDIRECT(\"a\" & (VLOOKUP(Switch!$D$63,$F$2:$G$44,2,FALSE)+ROW()-2)),\"\")","v":{"$error":"#N/A"}},{"$f":"IF(INDIRECT(\"c\" & (VLOOKUP(Switch!$D$64,$F$2:$G$44,2,FALSE)+ROW()-2))=Switch!$D$64,INDIRECT(\"a\" & (VLOOKUP(Switch!$D$64,$F$2:$G$44,2,FALSE)+ROW()-2)),\"\")","v":{"$error":"#N/A"}},{"$f":"IF(INDIRECT(\"c\" & (VLOOKUP(Switch!$D$65,$F$2:$G$44,2,FALSE)+ROW()-2))=Switch!$D$65,INDIRECT(\"a\" & (VLOOKUP(Switch!$D$65,$F$2:$G$44,2,FALSE)+ROW()-2)),\"\")","v":{"$error":"#N/A"}},{"$f":"IF(INDIRECT(\"c\" & (VLOOKUP(Switch!$D$66,$F$2:$G$44,2,FALSE)+ROW()-2))=Switch!$D$66,INDIRECT(\"a\" & (VLOOKUP(Switch!$D$66,$F$2:$G$44,2,FALSE)+ROW()-2)),\"\")","v":{"$error":"#N/A"}}]
["STANLIB Balanced Cautious Fund B1","SBCFA","STANLIB Collective Investments",{"$f":"ROW()","v":36},null,null,{"$f":"VLOOKUP(F36,$C$2:$D$637,2,FALSE)","v":{"$error":"#N/A"}},{"$f":"IF(INDIRECT(\"c\" & (VLOOKUP(Switch!$D$26,$F$2:$G$44,2,FALSE)+ROW()-2))=Switch!$D$26,INDIRECT(\"a\" & (VLOOKUP(Switch!$D$26,$F$2:$G$44,2,FALSE)+ROW()-2)),\"\")","v":{"$error":"#N/A"}},{"$f":"IF(INDIRECT(\"c\" & (VLOOKUP(Switch!$D$27,$F$2:$G$44,2,FALSE)+ROW()-2))=Switch!$D$27,INDIRECT(\"a\" & (VLOOKUP(Switch!$D$27,$F$2:$G$44,2,FALSE)+ROW()-2)),\"\")","v":{"$error":"#N/A"}},{"$f":"IF(INDIRECT(\"c\" & (VLOOKUP(Switch!$D$28,$F$2:$G$44,2,FALSE)+ROW()-2))=Switch!$D$28,INDIRECT(\"a\" & (VLOOKUP(Switch!$D$28,$F$2:$G$44,2,FALSE)+ROW()-2)),\"\")","v":{"$error":"#N/A"}},{"$f":"IF(INDIRECT(\"c\" & (VLOOKUP(Switch!$D$29,$F$2:$G$44,2,FALSE)+ROW()-2))=Switch!$D$29,INDIRECT(\"a\" & (VLOOKUP(Switch!$D$29,$F$2:$G$44,2,FALSE)+ROW()-2)),\"\")","v":{"$error":"#N/A"}},{"$f":"IF(INDIRECT(\"c\" & (VLOOKUP(Switch!$D$30,$F$2:$G$44,2,FALSE)+ROW()-2))=Switch!$D$30,INDIRECT(\"a\" & (VLOOKUP(Switch!$D$30,$F$2:$G$44,2,FALSE)+ROW()-2)),\"\")","v":{"$error":"#N/A"}},{"$f":"IF(INDIRECT(\"c\" & (VLOOKUP(Switch!$D$31,$F$2:$G$44,2,FALSE)+ROW()-2))=Switch!$D$31,INDIRECT(\"a\" & (VLOOKUP(Switch!$D$31,$F$2:$G$44,2,FALSE)+ROW()-2)),\"\")","v":{"$error":"#N/A"}},{"$f":"IF(INDIRECT(\"c\" & (VLOOKUP(Switch!$D$32,$F$2:$G$44,2,FALSE)+ROW()-2))=Switch!$D$32,INDIRECT(\"a\" & (VLOOKUP(Switch!$D$32,$F$2:$G$44,2,FALSE)+ROW()-2)),\"\")","v":{"$error":"#N/A"}},{"$f":"IF(INDIRECT(\"c\" & (VLOOKUP(Switch!$D$33,$F$2:$G$44,2,FALSE)+ROW()-2))=Switch!$D$33,INDIRECT(\"a\" & (VLOOKUP(Switch!$D$33,$F$2:$G$44,2,FALSE)+ROW()-2)),\"\")","v":{"$error":"#N/A"}},{"$f":"IF(INDIRECT(\"c\" & (VLOOKUP(Switch!$D$34,$F$2:$G$44,2,FALSE)+ROW()-2))=Switch!$D$34,INDIRECT(\"a\" & (VLOOKUP(Switch!$D$34,$F$2:$G$44,2,FALSE)+ROW()-2)),\"\")","v":{"$error":"#N/A"}},{"$f":"IF(INDIRECT(\"c\" & (VLOOKUP(Switch!$D$35,$F$2:$G$44,2,FALSE)+ROW()-2))=Switch!$D$35,INDIRECT(\"a\" & (VLOOKUP(Switch!$D$35,$F$2:$G$44,2,FALSE)+ROW()-2)),\"\")","v":{"$error":"#N/A"}},{"$f":"IF(INDIRECT(\"c\" & (VLOOKUP(Switch!$D$36,$F$2:$G$44,2,FALSE)+ROW()-2))=Switch!$D$36,INDIRECT(\"a\" & (VLOOKUP(Switch!$D$36,$F$2:$G$44,2,FALSE)+ROW()-2)),\"\")","v":{"$error":"#N/A"}},{"$f":"IF(INDIRECT(\"c\" & (VLOOKUP(Switch!$D$37,$F$2:$G$44,2,FALSE)+ROW()-2))=Switch!$D$37,INDIRECT(\"a\" & (VLOOKUP(Switch!$D$37,$F$2:$G$44,2,FALSE)+ROW()-2)),\"\")","v":{"$error":"#N/A"}},{"$f":"IF(INDIRECT(\"c\" & (VLOOKUP(Switch!$D$38,$F$2:$G$44,2,FALSE)+ROW()-2))=Switch!$D$38,INDIRECT(\"a\" & (VLOOKUP(Switch!$D$38,$F$2:$G$44,2,FALSE)+ROW()-2)),\"\")","v":{"$error":"#N/A"}},{"$f":"IF(INDIRECT(\"c\" & (VLOOKUP(Switch!$D$39,$F$2:$G$44,2,FALSE)+ROW()-2))=Switch!$D$39,INDIRECT(\"a\" & (VLOOKUP(Switch!$D$39,$F$2:$G$44,2,FALSE)+ROW()-2)),\"\")","v":{"$error":"#N/A"}},{"$f":"IF(INDIRECT(\"c\" & (VLOOKUP(Switch!$D$40,$F$2:$G$44,2,FALSE)+ROW()-2))=Switch!$D$40,INDIRECT(\"a\" & (VLOOKUP(Switch!$D$40,$F$2:$G$44,2,FALSE)+ROW()-2)),\"\")","v":{"$error":"#N/A"}},{"$f":"IF(INDIRECT(\"c\" & (VLOOKUP(Switch!$D$52,$F$2:$G$44,2,FALSE)+ROW()-2))=Switch!$D$52,INDIRECT(\"a\" & (VLOOKUP(Switch!$D$52,$F$2:$G$44,2,FALSE)+ROW()-2)),\"\")","v":{"$error":"#N/A"}},{"$f":"IF(INDIRECT(\"c\" & (VLOOKUP(Switch!$D$53,$F$2:$G$44,2,FALSE)+ROW()-2))=Switch!$D$53,INDIRECT(\"a\" & (VLOOKUP(Switch!$D$53,$F$2:$G$44,2,FALSE)+ROW()-2)),\"\")","v":{"$error":"#N/A"}},{"$f":"IF(INDIRECT(\"c\" & (VLOOKUP(Switch!$D$54,$F$2:$G$44,2,FALSE)+ROW()-2))=Switch!$D$54,INDIRECT(\"a\" & (VLOOKUP(Switch!$D$54,$F$2:$G$44,2,FALSE)+ROW()-2)),\"\")","v":{"$error":"#N/A"}},{"$f":"IF(INDIRECT(\"c\" & (VLOOKUP(Switch!$D$55,$F$2:$G$44,2,FALSE)+ROW()-2))=Switch!$D$55,INDIRECT(\"a\" & (VLOOKUP(Switch!$D$55,$F$2:$G$44,2,FALSE)+ROW()-2)),\"\")","v":{"$error":"#N/A"}},{"$f":"IF(INDIRECT(\"c\" & (VLOOKUP(Switch!$D$56,$F$2:$G$44,2,FALSE)+ROW()-2))=Switch!$D$56,INDIRECT(\"a\" & (VLOOKUP(Switch!$D$56,$F$2:$G$44,2,FALSE)+ROW()-2)),\"\")","v":{"$error":"#N/A"}},{"$f":"IF(INDIRECT(\"c\" & (VLOOKUP(Switch!$D$57,$F$2:$G$44,2,FALSE)+ROW()-2))=Switch!$D$57,INDIRECT(\"a\" & (VLOOKUP(Switch!$D$57,$F$2:$G$44,2,FALSE)+ROW()-2)),\"\")","v":{"$error":"#N/A"}},{"$f":"IF(INDIRECT(\"c\" & (VLOOKUP(Switch!$D$58,$F$2:$G$44,2,FALSE)+ROW()-2))=Switch!$D$58,INDIRECT(\"a\" & (VLOOKUP(Switch!$D$58,$F$2:$G$44,2,FALSE)+ROW()-2)),\"\")","v":{"$error":"#N/A"}},{"$f":"IF(INDIRECT(\"c\" & (VLOOKUP(Switch!$D$59,$F$2:$G$44,2,FALSE)+ROW()-2))=Switch!$D$59,INDIRECT(\"a\" & (VLOOKUP(Switch!$D$59,$F$2:$G$44,2,FALSE)+ROW()-2)),\"\")","v":{"$error":"#N/A"}},{"$f":"IF(INDIRECT(\"c\" & (VLOOKUP(Switch!$D$60,$F$2:$G$44,2,FALSE)+ROW()-2))=Switch!$D$60,INDIRECT(\"a\" & (VLOOKUP(Switch!$D$60,$F$2:$G$44,2,FALSE)+ROW()-2)),\"\")","v":{"$error":"#N/A"}},{"$f":"IF(INDIRECT(\"c\" & (VLOOKUP(Switch!$D$61,$F$2:$G$44,2,FALSE)+ROW()-2))=Switch!$D$61,INDIRECT(\"a\" & (VLOOKUP(Switch!$D$61,$F$2:$G$44,2,FALSE)+ROW()-2)),\"\")","v":{"$error":"#N/A"}},{"$f":"IF(INDIRECT(\"c\" & (VLOOKUP(Switch!$D$62,$F$2:$G$44,2,FALSE)+ROW()-2))=Switch!$D$62,INDIRECT(\"a\" & (VLOOKUP(Switch!$D$62,$F$2:$G$44,2,FALSE)+ROW()-2)),\"\")","v":{"$error":"#N/A"}},{"$f":"IF(INDIRECT(\"c\" & (VLOOKUP(Switch!$D$63,$F$2:$G$44,2,FALSE)+ROW()-2))=Switch!$D$63,INDIRECT(\"a\" & (VLOOKUP(Switch!$D$63,$F$2:$G$44,2,FALSE)+ROW()-2)),\"\")","v":{"$error":"#N/A"}},{"$f":"IF(INDIRECT(\"c\" & (VLOOKUP(Switch!$D$64,$F$2:$G$44,2,FALSE)+ROW()-2))=Switch!$D$64,INDIRECT(\"a\" & (VLOOKUP(Switch!$D$64,$F$2:$G$44,2,FALSE)+ROW()-2)),\"\")","v":{"$error":"#N/A"}},{"$f":"IF(INDIRECT(\"c\" & (VLOOKUP(Switch!$D$65,$F$2:$G$44,2,FALSE)+ROW()-2))=Switch!$D$65,INDIRECT(\"a\" & (VLOOKUP(Switch!$D$65,$F$2:$G$44,2,FALSE)+ROW()-2)),\"\")","v":{"$error":"#N/A"}},{"$f":"IF(INDIRECT(\"c\" & (VLOOKUP(Switch!$D$66,$F$2:$G$44,2,FALSE)+ROW()-2))=Switch!$D$66,INDIRECT(\"a\" & (VLOOKUP(Switch!$D$66,$F$2:$G$44,2,FALSE)+ROW()-2)),\"\")","v":{"$error":"#N/A"}}]
["STANLIB Balanced Fund A","LISA","STANLIB Collective Investments",{"$f":"ROW()","v":37},null,null,{"$f":"VLOOKUP(F37,$C$2:$D$637,2,FALSE)","v":{"$error":"#N/A"}},{"$f":"IF(INDIRECT(\"c\" & (VLOOKUP(Switch!$D$26,$F$2:$G$44,2,FALSE)+ROW()-2))=Switch!$D$26,INDIRECT(\"a\" & (VLOOKUP(Switch!$D$26,$F$2:$G$44,2,FALSE)+ROW()-2)),\"\")","v":{"$error":"#N/A"}},{"$f":"IF(INDIRECT(\"c\" & (VLOOKUP(Switch!$D$27,$F$2:$G$44,2,FALSE)+ROW()-2))=Switch!$D$27,INDIRECT(\"a\" & (VLOOKUP(Switch!$D$27,$F$2:$G$44,2,FALSE)+ROW()-2)),\"\")","v":{"$error":"#N/A"}},{"$f":"IF(INDIRECT(\"c\" & (VLOOKUP(Switch!$D$28,$F$2:$G$44,2,FALSE)+ROW()-2))=Switch!$D$28,INDIRECT(\"a\" & (VLOOKUP(Switch!$D$28,$F$2:$G$44,2,FALSE)+ROW()-2)),\"\")","v":{"$error":"#N/A"}},{"$f":"IF(INDIRECT(\"c\" & (VLOOKUP(Switch!$D$29,$F$2:$G$44,2,FALSE)+ROW()-2))=Switch!$D$29,INDIRECT(\"a\" & (VLOOKUP(Switch!$D$29,$F$2:$G$44,2,FALSE)+ROW()-2)),\"\")","v":{"$error":"#N/A"}},{"$f":"IF(INDIRECT(\"c\" & (VLOOKUP(Switch!$D$30,$F$2:$G$44,2,FALSE)+ROW()-2))=Switch!$D$30,INDIRECT(\"a\" & (VLOOKUP(Switch!$D$30,$F$2:$G$44,2,FALSE)+ROW()-2)),\"\")","v":{"$error":"#N/A"}},{"$f":"IF(INDIRECT(\"c\" & (VLOOKUP(Switch!$D$31,$F$2:$G$44,2,FALSE)+ROW()-2))=Switch!$D$31,INDIRECT(\"a\" & (VLOOKUP(Switch!$D$31,$F$2:$G$44,2,FALSE)+ROW()-2)),\"\")","v":{"$error":"#N/A"}},{"$f":"IF(INDIRECT(\"c\" & (VLOOKUP(Switch!$D$32,$F$2:$G$44,2,FALSE)+ROW()-2))=Switch!$D$32,INDIRECT(\"a\" & (VLOOKUP(Switch!$D$32,$F$2:$G$44,2,FALSE)+ROW()-2)),\"\")","v":{"$error":"#N/A"}},{"$f":"IF(INDIRECT(\"c\" & (VLOOKUP(Switch!$D$33,$F$2:$G$44,2,FALSE)+ROW()-2))=Switch!$D$33,INDIRECT(\"a\" & (VLOOKUP(Switch!$D$33,$F$2:$G$44,2,FALSE)+ROW()-2)),\"\")","v":{"$error":"#N/A"}},{"$f":"IF(INDIRECT(\"c\" & (VLOOKUP(Switch!$D$34,$F$2:$G$44,2,FALSE)+ROW()-2))=Switch!$D$34,INDIRECT(\"a\" & (VLOOKUP(Switch!$D$34,$F$2:$G$44,2,FALSE)+ROW()-2)),\"\")","v":{"$error":"#N/A"}},{"$f":"IF(INDIRECT(\"c\" & (VLOOKUP(Switch!$D$35,$F$2:$G$44,2,FALSE)+ROW()-2))=Switch!$D$35,INDIRECT(\"a\" & (VLOOKUP(Switch!$D$35,$F$2:$G$44,2,FALSE)+ROW()-2)),\"\")","v":{"$error":"#N/A"}},{"$f":"IF(INDIRECT(\"c\" & (VLOOKUP(Switch!$D$36,$F$2:$G$44,2,FALSE)+ROW()-2))=Switch!$D$36,INDIRECT(\"a\" & (VLOOKUP(Switch!$D$36,$F$2:$G$44,2,FALSE)+ROW()-2)),\"\")","v":{"$error":"#N/A"}},{"$f":"IF(INDIRECT(\"c\" & (VLOOKUP(Switch!$D$37,$F$2:$G$44,2,FALSE)+ROW()-2))=Switch!$D$37,INDIRECT(\"a\" & (VLOOKUP(Switch!$D$37,$F$2:$G$44,2,FALSE)+ROW()-2)),\"\")","v":{"$error":"#N/A"}},{"$f":"IF(INDIRECT(\"c\" & (VLOOKUP(Switch!$D$38,$F$2:$G$44,2,FALSE)+ROW()-2))=Switch!$D$38,INDIRECT(\"a\" & (VLOOKUP(Switch!$D$38,$F$2:$G$44,2,FALSE)+ROW()-2)),\"\")","v":{"$error":"#N/A"}},{"$f":"IF(INDIRECT(\"c\" & (VLOOKUP(Switch!$D$39,$F$2:$G$44,2,FALSE)+ROW()-2))=Switch!$D$39,INDIRECT(\"a\" & (VLOOKUP(Switch!$D$39,$F$2:$G$44,2,FALSE)+ROW()-2)),\"\")","v":{"$error":"#N/A"}},{"$f":"IF(INDIRECT(\"c\" & (VLOOKUP(Switch!$D$40,$F$2:$G$44,2,FALSE)+ROW()-2))=Switch!$D$40,INDIRECT(\"a\" & (VLOOKUP(Switch!$D$40,$F$2:$G$44,2,FALSE)+ROW()-2)),\"\")","v":{"$error":"#N/A"}},{"$f":"IF(INDIRECT(\"c\" & (VLOOKUP(Switch!$D$52,$F$2:$G$44,2,FALSE)+ROW()-2))=Switch!$D$52,INDIRECT(\"a\" & (VLOOKUP(Switch!$D$52,$F$2:$G$44,2,FALSE)+ROW()-2)),\"\")","v":{"$error":"#N/A"}},{"$f":"IF(INDIRECT(\"c\" & (VLOOKUP(Switch!$D$53,$F$2:$G$44,2,FALSE)+ROW()-2))=Switch!$D$53,INDIRECT(\"a\" & (VLOOKUP(Switch!$D$53,$F$2:$G$44,2,FALSE)+ROW()-2)),\"\")","v":{"$error":"#N/A"}},{"$f":"IF(INDIRECT(\"c\" & (VLOOKUP(Switch!$D$54,$F$2:$G$44,2,FALSE)+ROW()-2))=Switch!$D$54,INDIRECT(\"a\" & (VLOOKUP(Switch!$D$54,$F$2:$G$44,2,FALSE)+ROW()-2)),\"\")","v":{"$error":"#N/A"}},{"$f":"IF(INDIRECT(\"c\" & (VLOOKUP(Switch!$D$55,$F$2:$G$44,2,FALSE)+ROW()-2))=Switch!$D$55,INDIRECT(\"a\" & (VLOOKUP(Switch!$D$55,$F$2:$G$44,2,FALSE)+ROW()-2)),\"\")","v":{"$error":"#N/A"}},{"$f":"IF(INDIRECT(\"c\" & (VLOOKUP(Switch!$D$56,$F$2:$G$44,2,FALSE)+ROW()-2))=Switch!$D$56,INDIRECT(\"a\" & (VLOOKUP(Switch!$D$56,$F$2:$G$44,2,FALSE)+ROW()-2)),\"\")","v":{"$error":"#N/A"}},{"$f":"IF(INDIRECT(\"c\" & (VLOOKUP(Switch!$D$57,$F$2:$G$44,2,FALSE)+ROW()-2))=Switch!$D$57,INDIRECT(\"a\" & (VLOOKUP(Switch!$D$57,$F$2:$G$44,2,FALSE)+ROW()-2)),\"\")","v":{"$error":"#N/A"}},{"$f":"IF(INDIRECT(\"c\" & (VLOOKUP(Switch!$D$58,$F$2:$G$44,2,FALSE)+ROW()-2))=Switch!$D$58,INDIRECT(\"a\" & (VLOOKUP(Switch!$D$58,$F$2:$G$44,2,FALSE)+ROW()-2)),\"\")","v":{"$error":"#N/A"}},{"$f":"IF(INDIRECT(\"c\" & (VLOOKUP(Switch!$D$59,$F$2:$G$44,2,FALSE)+ROW()-2))=Switch!$D$59,INDIRECT(\"a\" & (VLOOKUP(Switch!$D$59,$F$2:$G$44,2,FALSE)+ROW()-2)),\"\")","v":{"$error":"#N/A"}},{"$f":"IF(INDIRECT(\"c\" & (VLOOKUP(Switch!$D$60,$F$2:$G$44,2,FALSE)+ROW()-2))=Switch!$D$60,INDIRECT(\"a\" & (VLOOKUP(Switch!$D$60,$F$2:$G$44,2,FALSE)+ROW()-2)),\"\")","v":{"$error":"#N/A"}},{"$f":"IF(INDIRECT(\"c\" & (VLOOKUP(Switch!$D$61,$F$2:$G$44,2,FALSE)+ROW()-2))=Switch!$D$61,INDIRECT(\"a\" & (VLOOKUP(Switch!$D$61,$F$2:$G$44,2,FALSE)+ROW()-2)),\"\")","v":{"$error":"#N/A"}},{"$f":"IF(INDIRECT(\"c\" & (VLOOKUP(Switch!$D$62,$F$2:$G$44,2,FALSE)+ROW()-2))=Switch!$D$62,INDIRECT(\"a\" & (VLOOKUP(Switch!$D$62,$F$2:$G$44,2,FALSE)+ROW()-2)),\"\")","v":{"$error":"#N/A"}},{"$f":"IF(INDIRECT(\"c\" & (VLOOKUP(Switch!$D$63,$F$2:$G$44,2,FALSE)+ROW()-2))=Switch!$D$63,INDIRECT(\"a\" & (VLOOKUP(Switch!$D$63,$F$2:$G$44,2,FALSE)+ROW()-2)),\"\")","v":{"$error":"#N/A"}},{"$f":"IF(INDIRECT(\"c\" & (VLOOKUP(Switch!$D$64,$F$2:$G$44,2,FALSE)+ROW()-2))=Switch!$D$64,INDIRECT(\"a\" & (VLOOKUP(Switch!$D$64,$F$2:$G$44,2,FALSE)+ROW()-2)),\"\")","v":{"$error":"#N/A"}},{"$f":"IF(INDIRECT(\"c\" & (VLOOKUP(Switch!$D$65,$F$2:$G$44,2,FALSE)+ROW()-2))=Switch!$D$65,INDIRECT(\"a\" & (VLOOKUP(Switch!$D$65,$F$2:$G$44,2,FALSE)+ROW()-2)),\"\")","v":{"$error":"#N/A"}},{"$f":"IF(INDIRECT(\"c\" & (VLOOKUP(Switch!$D$66,$F$2:$G$44,2,FALSE)+ROW()-2))=Switch!$D$66,INDIRECT(\"a\" & (VLOOKUP(Switch!$D$66,$F$2:$G$44,2,FALSE)+ROW()-2)),\"\")","v":{"$error":"#N/A"}}]
["STANLIB Balanced Fund B1","LISA","STANLIB Collective Investments",{"$f":"ROW()","v":38},null,null,{"$f":"VLOOKUP(F38,$C$2:$D$637,2,FALSE)","v":{"$error":"#N/A"}},{"$f":"IF(INDIRECT(\"c\" & (VLOOKUP(Switch!$D$26,$F$2:$G$44,2,FALSE)+ROW()-2))=Switch!$D$26,INDIRECT(\"a\" & (VLOOKUP(Switch!$D$26,$F$2:$G$44,2,FALSE)+ROW()-2)),\"\")","v":{"$error":"#N/A"}},{"$f":"IF(INDIRECT(\"c\" & (VLOOKUP(Switch!$D$27,$F$2:$G$44,2,FALSE)+ROW()-2))=Switch!$D$27,INDIRECT(\"a\" & (VLOOKUP(Switch!$D$27,$F$2:$G$44,2,FALSE)+ROW()-2)),\"\")","v":{"$error":"#N/A"}},{"$f":"IF(INDIRECT(\"c\" & (VLOOKUP(Switch!$D$28,$F$2:$G$44,2,FALSE)+ROW()-2))=Switch!$D$28,INDIRECT(\"a\" & (VLOOKUP(Switch!$D$28,$F$2:$G$44,2,FALSE)+ROW()-2)),\"\")","v":{"$error":"#N/A"}},{"$f":"IF(INDIRECT(\"c\" & (VLOOKUP(Switch!$D$29,$F$2:$G$44,2,FALSE)+ROW()-2))=Switch!$D$29,INDIRECT(\"a\" & (VLOOKUP(Switch!$D$29,$F$2:$G$44,2,FALSE)+ROW()-2)),\"\")","v":{"$error":"#N/A"}},{"$f":"IF(INDIRECT(\"c\" & (VLOOKUP(Switch!$D$30,$F$2:$G$44,2,FALSE)+ROW()-2))=Switch!$D$30,INDIRECT(\"a\" & (VLOOKUP(Switch!$D$30,$F$2:$G$44,2,FALSE)+ROW()-2)),\"\")","v":{"$error":"#N/A"}},{"$f":"IF(INDIRECT(\"c\" & (VLOOKUP(Switch!$D$31,$F$2:$G$44,2,FALSE)+ROW()-2))=Switch!$D$31,INDIRECT(\"a\" & (VLOOKUP(Switch!$D$31,$F$2:$G$44,2,FALSE)+ROW()-2)),\"\")","v":{"$error":"#N/A"}},{"$f":"IF(INDIRECT(\"c\" & (VLOOKUP(Switch!$D$32,$F$2:$G$44,2,FALSE)+ROW()-2))=Switch!$D$32,INDIRECT(\"a\" & (VLOOKUP(Switch!$D$32,$F$2:$G$44,2,FALSE)+ROW()-2)),\"\")","v":{"$error":"#N/A"}},{"$f":"IF(INDIRECT(\"c\" & (VLOOKUP(Switch!$D$33,$F$2:$G$44,2,FALSE)+ROW()-2))=Switch!$D$33,INDIRECT(\"a\" & (VLOOKUP(Switch!$D$33,$F$2:$G$44,2,FALSE)+ROW()-2)),\"\")","v":{"$error":"#N/A"}},{"$f":"IF(INDIRECT(\"c\" & (VLOOKUP(Switch!$D$34,$F$2:$G$44,2,FALSE)+ROW()-2))=Switch!$D$34,INDIRECT(\"a\" & (VLOOKUP(Switch!$D$34,$F$2:$G$44,2,FALSE)+ROW()-2)),\"\")","v":{"$error":"#N/A"}},{"$f":"IF(INDIRECT(\"c\" & (VLOOKUP(Switch!$D$35,$F$2:$G$44,2,FALSE)+ROW()-2))=Switch!$D$35,INDIRECT(\"a\" & (VLOOKUP(Switch!$D$35,$F$2:$G$44,2,FALSE)+ROW()-2)),\"\")","v":{"$error":"#N/A"}},{"$f":"IF(INDIRECT(\"c\" & (VLOOKUP(Switch!$D$36,$F$2:$G$44,2,FALSE)+ROW()-2))=Switch!$D$36,INDIRECT(\"a\" & (VLOOKUP(Switch!$D$36,$F$2:$G$44,2,FALSE)+ROW()-2)),\"\")","v":{"$error":"#N/A"}},{"$f":"IF(INDIRECT(\"c\" & (VLOOKUP(Switch!$D$37,$F$2:$G$44,2,FALSE)+ROW()-2))=Switch!$D$37,INDIRECT(\"a\" & (VLOOKUP(Switch!$D$37,$F$2:$G$44,2,FALSE)+ROW()-2)),\"\")","v":{"$error":"#N/A"}},{"$f":"IF(INDIRECT(\"c\" & (VLOOKUP(Switch!$D$38,$F$2:$G$44,2,FALSE)+ROW()-2))=Switch!$D$38,INDIRECT(\"a\" & (VLOOKUP(Switch!$D$38,$F$2:$G$44,2,FALSE)+ROW()-2)),\"\")","v":{"$error":"#N/A"}},{"$f":"IF(INDIRECT(\"c\" & (VLOOKUP(Switch!$D$39,$F$2:$G$44,2,FALSE)+ROW()-2))=Switch!$D$39,INDIRECT(\"a\" & (VLOOKUP(Switch!$D$39,$F$2:$G$44,2,FALSE)+ROW()-2)),\"\")","v":{"$error":"#N/A"}},{"$f":"IF(INDIRECT(\"c\" & (VLOOKUP(Switch!$D$40,$F$2:$G$44,2,FALSE)+ROW()-2))=Switch!$D$40,INDIRECT(\"a\" & (VLOOKUP(Switch!$D$40,$F$2:$G$44,2,FALSE)+ROW()-2)),\"\")","v":{"$error":"#N/A"}},{"$f":"IF(INDIRECT(\"c\" & (VLOOKUP(Switch!$D$52,$F$2:$G$44,2,FALSE)+ROW()-2))=Switch!$D$52,INDIRECT(\"a\" & (VLOOKUP(Switch!$D$52,$F$2:$G$44,2,FALSE)+ROW()-2)),\"\")","v":{"$error":"#N/A"}},{"$f":"IF(INDIRECT(\"c\" & (VLOOKUP(Switch!$D$53,$F$2:$G$44,2,FALSE)+ROW()-2))=Switch!$D$53,INDIRECT(\"a\" & (VLOOKUP(Switch!$D$53,$F$2:$G$44,2,FALSE)+ROW()-2)),\"\")","v":{"$error":"#N/A"}},{"$f":"IF(INDIRECT(\"c\" & (VLOOKUP(Switch!$D$54,$F$2:$G$44,2,FALSE)+ROW()-2))=Switch!$D$54,INDIRECT(\"a\" & (VLOOKUP(Switch!$D$54,$F$2:$G$44,2,FALSE)+ROW()-2)),\"\")","v":{"$error":"#N/A"}},{"$f":"IF(INDIRECT(\"c\" & (VLOOKUP(Switch!$D$55,$F$2:$G$44,2,FALSE)+ROW()-2))=Switch!$D$55,INDIRECT(\"a\" & (VLOOKUP(Switch!$D$55,$F$2:$G$44,2,FALSE)+ROW()-2)),\"\")","v":{"$error":"#N/A"}},{"$f":"IF(INDIRECT(\"c\" & (VLOOKUP(Switch!$D$56,$F$2:$G$44,2,FALSE)+ROW()-2))=Switch!$D$56,INDIRECT(\"a\" & (VLOOKUP(Switch!$D$56,$F$2:$G$44,2,FALSE)+ROW()-2)),\"\")","v":{"$error":"#N/A"}},{"$f":"IF(INDIRECT(\"c\" & (VLOOKUP(Switch!$D$57,$F$2:$G$44,2,FALSE)+ROW()-2))=Switch!$D$57,INDIRECT(\"a\" & (VLOOKUP(Switch!$D$57,$F$2:$G$44,2,FALSE)+ROW()-2)),\"\")","v":{"$error":"#N/A"}},{"$f":"IF(INDIRECT(\"c\" & (VLOOKUP(Switch!$D$58,$F$2:$G$44,2,FALSE)+ROW()-2))=Switch!$D$58,INDIRECT(\"a\" & (VLOOKUP(Switch!$D$58,$F$2:$G$44,2,FALSE)+ROW()-2)),\"\")","v":{"$error":"#N/A"}},{"$f":"IF(INDIRECT(\"c\" & (VLOOKUP(Switch!$D$59,$F$2:$G$44,2,FALSE)+ROW()-2))=Switch!$D$59,INDIRECT(\"a\" & (VLOOKUP(Switch!$D$59,$F$2:$G$44,2,FALSE)+ROW()-2)),\"\")","v":{"$error":"#N/A"}},{"$f":"IF(INDIRECT(\"c\" & (VLOOKUP(Switch!$D$60,$F$2:$G$44,2,FALSE)+ROW()-2))=Switch!$D$60,INDIRECT(\"a\" & (VLOOKUP(Switch!$D$60,$F$2:$G$44,2,FALSE)+ROW()-2)),\"\")","v":{"$error":"#N/A"}},{"$f":"IF(INDIRECT(\"c\" & (VLOOKUP(Switch!$D$61,$F$2:$G$44,2,FALSE)+ROW()-2))=Switch!$D$61,INDIRECT(\"a\" & (VLOOKUP(Switch!$D$61,$F$2:$G$44,2,FALSE)+ROW()-2)),\"\")","v":{"$error":"#N/A"}},{"$f":"IF(INDIRECT(\"c\" & (VLOOKUP(Switch!$D$62,$F$2:$G$44,2,FALSE)+ROW()-2))=Switch!$D$62,INDIRECT(\"a\" & (VLOOKUP(Switch!$D$62,$F$2:$G$44,2,FALSE)+ROW()-2)),\"\")","v":{"$error":"#N/A"}},{"$f":"IF(INDIRECT(\"c\" & (VLOOKUP(Switch!$D$63,$F$2:$G$44,2,FALSE)+ROW()-2))=Switch!$D$63,INDIRECT(\"a\" & (VLOOKUP(Switch!$D$63,$F$2:$G$44,2,FALSE)+ROW()-2)),\"\")","v":{"$error":"#N/A"}},{"$f":"IF(INDIRECT(\"c\" & (VLOOKUP(Switch!$D$64,$F$2:$G$44,2,FALSE)+ROW()-2))=Switch!$D$64,INDIRECT(\"a\" & (VLOOKUP(Switch!$D$64,$F$2:$G$44,2,FALSE)+ROW()-2)),\"\")","v":{"$error":"#N/A"}},{"$f":"IF(INDIRECT(\"c\" & (VLOOKUP(Switch!$D$65,$F$2:$G$44,2,FALSE)+ROW()-2))=Switch!$D$65,INDIRECT(\"a\" & (VLOOKUP(Switch!$D$65,$F$2:$G$44,2,FALSE)+ROW()-2)),\"\")","v":{"$error":"#N/A"}},{"$f":"IF(INDIRECT(\"c\" & (VLOOKUP(Switch!$D$66,$F$2:$G$44,2,FALSE)+ROW()-2))=Switch!$D$66,INDIRECT(\"a\" & (VLOOKUP(Switch!$D$66,$F$2:$G$44,2,FALSE)+ROW()-2)),\"\")","v":{"$error":"#N/A"}}]
["STANLIB Balanced Trustees FOF A","SBTF","STANLIB Collective Investments",{"$f":"ROW()","v":39},null,null,{"$f":"VLOOKUP(F39,$C$2:$D$637,2,FALSE)","v":{"$error":"#N/A"}},{"$f":"IF(INDIRECT(\"c\" & (VLOOKUP(Switch!$D$26,$F$2:$G$44,2,FALSE)+ROW()-2))=Switch!$D$26,INDIRECT(\"a\" & (VLOOKUP(Switch!$D$26,$F$2:$G$44,2,FALSE)+ROW()-2)),\"\")","v":{"$error":"#N/A"}},{"$f":"IF(INDIRECT(\"c\" & (VLOOKUP(Switch!$D$27,$F$2:$G$44,2,FALSE)+ROW()-2))=Switch!$D$27,INDIRECT(\"a\" & (VLOOKUP(Switch!$D$27,$F$2:$G$44,2,FALSE)+ROW()-2)),\"\")","v":{"$error":"#N/A"}},{"$f":"IF(INDIRECT(\"c\" & (VLOOKUP(Switch!$D$28,$F$2:$G$44,2,FALSE)+ROW()-2))=Switch!$D$28,INDIRECT(\"a\" & (VLOOKUP(Switch!$D$28,$F$2:$G$44,2,FALSE)+ROW()-2)),\"\")","v":{"$error":"#N/A"}},{"$f":"IF(INDIRECT(\"c\" & (VLOOKUP(Switch!$D$29,$F$2:$G$44,2,FALSE)+ROW()-2))=Switch!$D$29,INDIRECT(\"a\" & (VLOOKUP(Switch!$D$29,$F$2:$G$44,2,FALSE)+ROW()-2)),\"\")","v":{"$error":"#N/A"}},{"$f":"IF(INDIRECT(\"c\" & (VLOOKUP(Switch!$D$30,$F$2:$G$44,2,FALSE)+ROW()-2))=Switch!$D$30,INDIRECT(\"a\" & (VLOOKUP(Switch!$D$30,$F$2:$G$44,2,FALSE)+ROW()-2)),\"\")","v":{"$error":"#N/A"}},{"$f":"IF(INDIRECT(\"c\" & (VLOOKUP(Switch!$D$31,$F$2:$G$44,2,FALSE)+ROW()-2))=Switch!$D$31,INDIRECT(\"a\" & (VLOOKUP(Switch!$D$31,$F$2:$G$44,2,FALSE)+ROW()-2)),\"\")","v":{"$error":"#N/A"}},{"$f":"IF(INDIRECT(\"c\" & (VLOOKUP(Switch!$D$32,$F$2:$G$44,2,FALSE)+ROW()-2))=Switch!$D$32,INDIRECT(\"a\" & (VLOOKUP(Switch!$D$32,$F$2:$G$44,2,FALSE)+ROW()-2)),\"\")","v":{"$error":"#N/A"}},{"$f":"IF(INDIRECT(\"c\" & (VLOOKUP(Switch!$D$33,$F$2:$G$44,2,FALSE)+ROW()-2))=Switch!$D$33,INDIRECT(\"a\" & (VLOOKUP(Switch!$D$33,$F$2:$G$44,2,FALSE)+ROW()-2)),\"\")","v":{"$error":"#N/A"}},{"$f":"IF(INDIRECT(\"c\" & (VLOOKUP(Switch!$D$34,$F$2:$G$44,2,FALSE)+ROW()-2))=Switch!$D$34,INDIRECT(\"a\" & (VLOOKUP(Switch!$D$34,$F$2:$G$44,2,FALSE)+ROW()-2)),\"\")","v":{"$error":"#N/A"}},{"$f":"IF(INDIRECT(\"c\" & (VLOOKUP(Switch!$D$35,$F$2:$G$44,2,FALSE)+ROW()-2))=Switch!$D$35,INDIRECT(\"a\" & (VLOOKUP(Switch!$D$35,$F$2:$G$44,2,FALSE)+ROW()-2)),\"\")","v":{"$error":"#N/A"}},{"$f":"IF(INDIRECT(\"c\" & (VLOOKUP(Switch!$D$36,$F$2:$G$44,2,FALSE)+ROW()-2))=Switch!$D$36,INDIRECT(\"a\" & (VLOOKUP(Switch!$D$36,$F$2:$G$44,2,FALSE)+ROW()-2)),\"\")","v":{"$error":"#N/A"}},{"$f":"IF(INDIRECT(\"c\" & (VLOOKUP(Switch!$D$37,$F$2:$G$44,2,FALSE)+ROW()-2))=Switch!$D$37,INDIRECT(\"a\" & (VLOOKUP(Switch!$D$37,$F$2:$G$44,2,FALSE)+ROW()-2)),\"\")","v":{"$error":"#N/A"}},{"$f":"IF(INDIRECT(\"c\" & (VLOOKUP(Switch!$D$38,$F$2:$G$44,2,FALSE)+ROW()-2))=Switch!$D$38,INDIRECT(\"a\" & (VLOOKUP(Switch!$D$38,$F$2:$G$44,2,FALSE)+ROW()-2)),\"\")","v":{"$error":"#N/A"}},{"$f":"IF(INDIRECT(\"c\" & (VLOOKUP(Switch!$D$39,$F$2:$G$44,2,FALSE)+ROW()-2))=Switch!$D$39,INDIRECT(\"a\" & (VLOOKUP(Switch!$D$39,$F$2:$G$44,2,FALSE)+ROW()-2)),\"\")","v":{"$error":"#N/A"}},{"$f":"IF(INDIRECT(\"c\" & (VLOOKUP(Switch!$D$40,$F$2:$G$44,2,FALSE)+ROW()-2))=Switch!$D$40,INDIRECT(\"a\" & (VLOOKUP(Switch!$D$40,$F$2:$G$44,2,FALSE)+ROW()-2)),\"\")","v":{"$error":"#N/A"}},{"$f":"IF(INDIRECT(\"c\" & (VLOOKUP(Switch!$D$52,$F$2:$G$44,2,FALSE)+ROW()-2))=Switch!$D$52,INDIRECT(\"a\" & (VLOOKUP(Switch!$D$52,$F$2:$G$44,2,FALSE)+ROW()-2)),\"\")","v":{"$error":"#N/A"}},{"$f":"IF(INDIRECT(\"c\" & (VLOOKUP(Switch!$D$53,$F$2:$G$44,2,FALSE)+ROW()-2))=Switch!$D$53,INDIRECT(\"a\" & (VLOOKUP(Switch!$D$53,$F$2:$G$44,2,FALSE)+ROW()-2)),\"\")","v":{"$error":"#N/A"}},{"$f":"IF(INDIRECT(\"c\" & (VLOOKUP(Switch!$D$54,$F$2:$G$44,2,FALSE)+ROW()-2))=Switch!$D$54,INDIRECT(\"a\" & (VLOOKUP(Switch!$D$54,$F$2:$G$44,2,FALSE)+ROW()-2)),\"\")","v":{"$error":"#N/A"}},{"$f":"IF(INDIRECT(\"c\" & (VLOOKUP(Switch!$D$55,$F$2:$G$44,2,FALSE)+ROW()-2))=Switch!$D$55,INDIRECT(\"a\" & (VLOOKUP(Switch!$D$55,$F$2:$G$44,2,FALSE)+ROW()-2)),\"\")","v":{"$error":"#N/A"}},{"$f":"IF(INDIRECT(\"c\" & (VLOOKUP(Switch!$D$56,$F$2:$G$44,2,FALSE)+ROW()-2))=Switch!$D$56,INDIRECT(\"a\" & (VLOOKUP(Switch!$D$56,$F$2:$G$44,2,FALSE)+ROW()-2)),\"\")","v":{"$error":"#N/A"}},{"$f":"IF(INDIRECT(\"c\" & (VLOOKUP(Switch!$D$57,$F$2:$G$44,2,FALSE)+ROW()-2))=Switch!$D$57,INDIRECT(\"a\" & (VLOOKUP(Switch!$D$57,$F$2:$G$44,2,FALSE)+ROW()-2)),\"\")","v":{"$error":"#N/A"}},{"$f":"IF(INDIRECT(\"c\" & (VLOOKUP(Switch!$D$58,$F$2:$G$44,2,FALSE)+ROW()-2))=Switch!$D$58,INDIRECT(\"a\" & (VLOOKUP(Switch!$D$58,$F$2:$G$44,2,FALSE)+ROW()-2)),\"\")","v":{"$error":"#N/A"}},{"$f":"IF(INDIRECT(\"c\" & (VLOOKUP(Switch!$D$59,$F$2:$G$44,2,FALSE)+ROW()-2))=Switch!$D$59,INDIRECT(\"a\" & (VLOOKUP(Switch!$D$59,$F$2:$G$44,2,FALSE)+ROW()-2)),\"\")","v":{"$error":"#N/A"}},{"$f":"IF(INDIRECT(\"c\" & (VLOOKUP(Switch!$D$60,$F$2:$G$44,2,FALSE)+ROW()-2))=Switch!$D$60,INDIRECT(\"a\" & (VLOOKUP(Switch!$D$60,$F$2:$G$44,2,FALSE)+ROW()-2)),\"\")","v":{"$error":"#N/A"}},{"$f":"IF(INDIRECT(\"c\" & (VLOOKUP(Switch!$D$61,$F$2:$G$44,2,FALSE)+ROW()-2))=Switch!$D$61,INDIRECT(\"a\" & (VLOOKUP(Switch!$D$61,$F$2:$G$44,2,FALSE)+ROW()-2)),\"\")","v":{"$error":"#N/A"}},{"$f":"IF(INDIRECT(\"c\" & (VLOOKUP(Switch!$D$62,$F$2:$G$44,2,FALSE)+ROW()-2))=Switch!$D$62,INDIRECT(\"a\" & (VLOOKUP(Switch!$D$62,$F$2:$G$44,2,FALSE)+ROW()-2)),\"\")","v":{"$error":"#N/A"}},{"$f":"IF(INDIRECT(\"c\" & (VLOOKUP(Switch!$D$63,$F$2:$G$44,2,FALSE)+ROW()-2))=Switch!$D$63,INDIRECT(\"a\" & (VLOOKUP(Switch!$D$63,$F$2:$G$44,2,FALSE)+ROW()-2)),\"\")","v":{"$error":"#N/A"}},{"$f":"IF(INDIRECT(\"c\" & (VLOOKUP(Switch!$D$64,$F$2:$G$44,2,FALSE)+ROW()-2))=Switch!$D$64,INDIRECT(\"a\" & (VLOOKUP(Switch!$D$64,$F$2:$G$44,2,FALSE)+ROW()-2)),\"\")","v":{"$error":"#N/A"}},{"$f":"IF(INDIRECT(\"c\" & (VLOOKUP(Switch!$D$65,$F$2:$G$44,2,FALSE)+ROW()-2))=Switch!$D$65,INDIRECT(\"a\" & (VLOOKUP(Switch!$D$65,$F$2:$G$44,2,FALSE)+ROW()-2)),\"\")","v":{"$error":"#N/A"}},{"$f":"IF(INDIRECT(\"c\" & (VLOOKUP(Switch!$D$66,$F$2:$G$44,2,FALSE)+ROW()-2))=Switch!$D$66,INDIRECT(\"a\" & (VLOOKUP(Switch!$D$66,$F$2:$G$44,2,FALSE)+ROW()-2)),\"\")","v":{"$error":"#N/A"}}]
["STANLIB Bond Fund A","LBBF","STANLIB Collective Investments",{"$f":"ROW()","v":40},null,null,{"$f":"VLOOKUP(F40,$C$2:$D$637,2,FALSE)","v":{"$error":"#N/A"}},{"$f":"IF(INDIRECT(\"c\" & (VLOOKUP(Switch!$D$26,$F$2:$G$44,2,FALSE)+ROW()-2))=Switch!$D$26,INDIRECT(\"a\" & (VLOOKUP(Switch!$D$26,$F$2:$G$44,2,FALSE)+ROW()-2)),\"\")","v":{"$error":"#N/A"}},{"$f":"IF(INDIRECT(\"c\" & (VLOOKUP(Switch!$D$27,$F$2:$G$44,2,FALSE)+ROW()-2))=Switch!$D$27,INDIRECT(\"a\" & (VLOOKUP(Switch!$D$27,$F$2:$G$44,2,FALSE)+ROW()-2)),\"\")","v":{"$error":"#N/A"}},{"$f":"IF(INDIRECT(\"c\" & (VLOOKUP(Switch!$D$28,$F$2:$G$44,2,FALSE)+ROW()-2))=Switch!$D$28,INDIRECT(\"a\" & (VLOOKUP(Switch!$D$28,$F$2:$G$44,2,FALSE)+ROW()-2)),\"\")","v":{"$error":"#N/A"}},{"$f":"IF(INDIRECT(\"c\" & (VLOOKUP(Switch!$D$29,$F$2:$G$44,2,FALSE)+ROW()-2))=Switch!$D$29,INDIRECT(\"a\" & (VLOOKUP(Switch!$D$29,$F$2:$G$44,2,FALSE)+ROW()-2)),\"\")","v":{"$error":"#N/A"}},{"$f":"IF(INDIRECT(\"c\" & (VLOOKUP(Switch!$D$30,$F$2:$G$44,2,FALSE)+ROW()-2))=Switch!$D$30,INDIRECT(\"a\" & (VLOOKUP(Switch!$D$30,$F$2:$G$44,2,FALSE)+ROW()-2)),\"\")","v":{"$error":"#N/A"}},{"$f":"IF(INDIRECT(\"c\" & (VLOOKUP(Switch!$D$31,$F$2:$G$44,2,FALSE)+ROW()-2))=Switch!$D$31,INDIRECT(\"a\" & (VLOOKUP(Switch!$D$31,$F$2:$G$44,2,FALSE)+ROW()-2)),\"\")","v":{"$error":"#N/A"}},{"$f":"IF(INDIRECT(\"c\" & (VLOOKUP(Switch!$D$32,$F$2:$G$44,2,FALSE)+ROW()-2))=Switch!$D$32,INDIRECT(\"a\" & (VLOOKUP(Switch!$D$32,$F$2:$G$44,2,FALSE)+ROW()-2)),\"\")","v":{"$error":"#N/A"}},{"$f":"IF(INDIRECT(\"c\" & (VLOOKUP(Switch!$D$33,$F$2:$G$44,2,FALSE)+ROW()-2))=Switch!$D$33,INDIRECT(\"a\" & (VLOOKUP(Switch!$D$33,$F$2:$G$44,2,FALSE)+ROW()-2)),\"\")","v":{"$error":"#N/A"}},{"$f":"IF(INDIRECT(\"c\" & (VLOOKUP(Switch!$D$34,$F$2:$G$44,2,FALSE)+ROW()-2))=Switch!$D$34,INDIRECT(\"a\" & (VLOOKUP(Switch!$D$34,$F$2:$G$44,2,FALSE)+ROW()-2)),\"\")","v":{"$error":"#N/A"}},{"$f":"IF(INDIRECT(\"c\" & (VLOOKUP(Switch!$D$35,$F$2:$G$44,2,FALSE)+ROW()-2))=Switch!$D$35,INDIRECT(\"a\" & (VLOOKUP(Switch!$D$35,$F$2:$G$44,2,FALSE)+ROW()-2)),\"\")","v":{"$error":"#N/A"}},{"$f":"IF(INDIRECT(\"c\" & (VLOOKUP(Switch!$D$36,$F$2:$G$44,2,FALSE)+ROW()-2))=Switch!$D$36,INDIRECT(\"a\" & (VLOOKUP(Switch!$D$36,$F$2:$G$44,2,FALSE)+ROW()-2)),\"\")","v":{"$error":"#N/A"}},{"$f":"IF(INDIRECT(\"c\" & (VLOOKUP(Switch!$D$37,$F$2:$G$44,2,FALSE)+ROW()-2))=Switch!$D$37,INDIRECT(\"a\" & (VLOOKUP(Switch!$D$37,$F$2:$G$44,2,FALSE)+ROW()-2)),\"\")","v":{"$error":"#N/A"}},{"$f":"IF(INDIRECT(\"c\" & (VLOOKUP(Switch!$D$38,$F$2:$G$44,2,FALSE)+ROW()-2))=Switch!$D$38,INDIRECT(\"a\" & (VLOOKUP(Switch!$D$38,$F$2:$G$44,2,FALSE)+ROW()-2)),\"\")","v":{"$error":"#N/A"}},{"$f":"IF(INDIRECT(\"c\" & (VLOOKUP(Switch!$D$39,$F$2:$G$44,2,FALSE)+ROW()-2))=Switch!$D$39,INDIRECT(\"a\" & (VLOOKUP(Switch!$D$39,$F$2:$G$44,2,FALSE)+ROW()-2)),\"\")","v":{"$error":"#N/A"}},{"$f":"IF(INDIRECT(\"c\" & (VLOOKUP(Switch!$D$40,$F$2:$G$44,2,FALSE)+ROW()-2))=Switch!$D$40,INDIRECT(\"a\" & (VLOOKUP(Switch!$D$40,$F$2:$G$44,2,FALSE)+ROW()-2)),\"\")","v":{"$error":"#N/A"}},{"$f":"IF(INDIRECT(\"c\" & (VLOOKUP(Switch!$D$52,$F$2:$G$44,2,FALSE)+ROW()-2))=Switch!$D$52,INDIRECT(\"a\" & (VLOOKUP(Switch!$D$52,$F$2:$G$44,2,FALSE)+ROW()-2)),\"\")","v":{"$error":"#N/A"}},{"$f":"IF(INDIRECT(\"c\" & (VLOOKUP(Switch!$D$53,$F$2:$G$44,2,FALSE)+ROW()-2))=Switch!$D$53,INDIRECT(\"a\" & (VLOOKUP(Switch!$D$53,$F$2:$G$44,2,FALSE)+ROW()-2)),\"\")","v":{"$error":"#N/A"}},{"$f":"IF(INDIRECT(\"c\" & (VLOOKUP(Switch!$D$54,$F$2:$G$44,2,FALSE)+ROW()-2))=Switch!$D$54,INDIRECT(\"a\" & (VLOOKUP(Switch!$D$54,$F$2:$G$44,2,FALSE)+ROW()-2)),\"\")","v":{"$error":"#N/A"}},{"$f":"IF(INDIRECT(\"c\" & (VLOOKUP(Switch!$D$55,$F$2:$G$44,2,FALSE)+ROW()-2))=Switch!$D$55,INDIRECT(\"a\" & (VLOOKUP(Switch!$D$55,$F$2:$G$44,2,FALSE)+ROW()-2)),\"\")","v":{"$error":"#N/A"}},{"$f":"IF(INDIRECT(\"c\" & (VLOOKUP(Switch!$D$56,$F$2:$G$44,2,FALSE)+ROW()-2))=Switch!$D$56,INDIRECT(\"a\" & (VLOOKUP(Switch!$D$56,$F$2:$G$44,2,FALSE)+ROW()-2)),\"\")","v":{"$error":"#N/A"}},{"$f":"IF(INDIRECT(\"c\" & (VLOOKUP(Switch!$D$57,$F$2:$G$44,2,FALSE)+ROW()-2))=Switch!$D$57,INDIRECT(\"a\" & (VLOOKUP(Switch!$D$57,$F$2:$G$44,2,FALSE)+ROW()-2)),\"\")","v":{"$error":"#N/A"}},{"$f":"IF(INDIRECT(\"c\" & (VLOOKUP(Switch!$D$58,$F$2:$G$44,2,FALSE)+ROW()-2))=Switch!$D$58,INDIRECT(\"a\" & (VLOOKUP(Switch!$D$58,$F$2:$G$44,2,FALSE)+ROW()-2)),\"\")","v":{"$error":"#N/A"}},{"$f":"IF(INDIRECT(\"c\" & (VLOOKUP(Switch!$D$59,$F$2:$G$44,2,FALSE)+ROW()-2))=Switch!$D$59,INDIRECT(\"a\" & (VLOOKUP(Switch!$D$59,$F$2:$G$44,2,FALSE)+ROW()-2)),\"\")","v":{"$error":"#N/A"}},{"$f":"IF(INDIRECT(\"c\" & (VLOOKUP(Switch!$D$60,$F$2:$G$44,2,FALSE)+ROW()-2))=Switch!$D$60,INDIRECT(\"a\" & (VLOOKUP(Switch!$D$60,$F$2:$G$44,2,FALSE)+ROW()-2)),\"\")","v":{"$error":"#N/A"}},{"$f":"IF(INDIRECT(\"c\" & (VLOOKUP(Switch!$D$61,$F$2:$G$44,2,FALSE)+ROW()-2))=Switch!$D$61,INDIRECT(\"a\" & (VLOOKUP(Switch!$D$61,$F$2:$G$44,2,FALSE)+ROW()-2)),\"\")","v":{"$error":"#N/A"}},{"$f":"IF(INDIRECT(\"c\" & (VLOOKUP(Switch!$D$62,$F$2:$G$44,2,FALSE)+ROW()-2))=Switch!$D$62,INDIRECT(\"a\" & (VLOOKUP(Switch!$D$62,$F$2:$G$44,2,FALSE)+ROW()-2)),\"\")","v":{"$error":"#N/A"}},{"$f":"IF(INDIRECT(\"c\" & (VLOOKUP(Switch!$D$63,$F$2:$G$44,2,FALSE)+ROW()-2))=Switch!$D$63,INDIRECT(\"a\" & (VLOOKUP(Switch!$D$63,$F$2:$G$44,2,FALSE)+ROW()-2)),\"\")","v":{"$error":"#N/A"}},{"$f":"IF(INDIRECT(\"c\" & (VLOOKUP(Switch!$D$64,$F$2:$G$44,2,FALSE)+ROW()-2))=Switch!$D$64,INDIRECT(\"a\" & (VLOOKUP(Switch!$D$64,$F$2:$G$44,2,FALSE)+ROW()-2)),\"\")","v":{"$error":"#N/A"}},{"$f":"IF(INDIRECT(\"c\" & (VLOOKUP(Switch!$D$65,$F$2:$G$44,2,FALSE)+ROW()-2))=Switch!$D$65,INDIRECT(\"a\" & (VLOOKUP(Switch!$D$65,$F$2:$G$44,2,FALSE)+ROW()-2)),\"\")","v":{"$error":"#N/A"}},{"$f":"IF(INDIRECT(\"c\" & (VLOOKUP(Switch!$D$66,$F$2:$G$44,2,FALSE)+ROW()-2))=Switch!$D$66,INDIRECT(\"a\" & (VLOOKUP(Switch!$D$66,$F$2:$G$44,2,FALSE)+ROW()-2)),\"\")","v":{"$error":"#N/A"}}]
["STANLIB Bond Fund R","LBBF","STANLIB Collective Investments",{"$f":"ROW()","v":41},null,null,{"$f":"VLOOKUP(F41,$C$2:$D$637,2,FALSE)","v":{"$error":"#N/A"}},{"$f":"IF(INDIRECT(\"c\" & (VLOOKUP(Switch!$D$26,$F$2:$G$44,2,FALSE)+ROW()-2))=Switch!$D$26,INDIRECT(\"a\" & (VLOOKUP(Switch!$D$26,$F$2:$G$44,2,FALSE)+ROW()-2)),\"\")","v":{"$error":"#N/A"}},{"$f":"IF(INDIRECT(\"c\" & (VLOOKUP(Switch!$D$27,$F$2:$G$44,2,FALSE)+ROW()-2))=Switch!$D$27,INDIRECT(\"a\" & (VLOOKUP(Switch!$D$27,$F$2:$G$44,2,FALSE)+ROW()-2)),\"\")","v":{"$error":"#N/A"}},{"$f":"IF(INDIRECT(\"c\" & (VLOOKUP(Switch!$D$28,$F$2:$G$44,2,FALSE)+ROW()-2))=Switch!$D$28,INDIRECT(\"a\" & (VLOOKUP(Switch!$D$28,$F$2:$G$44,2,FALSE)+ROW()-2)),\"\")","v":{"$error":"#N/A"}},{"$f":"IF(INDIRECT(\"c\" & (VLOOKUP(Switch!$D$29,$F$2:$G$44,2,FALSE)+ROW()-2))=Switch!$D$29,INDIRECT(\"a\" & (VLOOKUP(Switch!$D$29,$F$2:$G$44,2,FALSE)+ROW()-2)),\"\")","v":{"$error":"#N/A"}},{"$f":"IF(INDIRECT(\"c\" & (VLOOKUP(Switch!$D$30,$F$2:$G$44,2,FALSE)+ROW()-2))=Switch!$D$30,INDIRECT(\"a\" & (VLOOKUP(Switch!$D$30,$F$2:$G$44,2,FALSE)+ROW()-2)),\"\")","v":{"$error":"#N/A"}},{"$f":"IF(INDIRECT(\"c\" & (VLOOKUP(Switch!$D$31,$F$2:$G$44,2,FALSE)+ROW()-2))=Switch!$D$31,INDIRECT(\"a\" & (VLOOKUP(Switch!$D$31,$F$2:$G$44,2,FALSE)+ROW()-2)),\"\")","v":{"$error":"#N/A"}},{"$f":"IF(INDIRECT(\"c\" & (VLOOKUP(Switch!$D$32,$F$2:$G$44,2,FALSE)+ROW()-2))=Switch!$D$32,INDIRECT(\"a\" & (VLOOKUP(Switch!$D$32,$F$2:$G$44,2,FALSE)+ROW()-2)),\"\")","v":{"$error":"#N/A"}},{"$f":"IF(INDIRECT(\"c\" & (VLOOKUP(Switch!$D$33,$F$2:$G$44,2,FALSE)+ROW()-2))=Switch!$D$33,INDIRECT(\"a\" & (VLOOKUP(Switch!$D$33,$F$2:$G$44,2,FALSE)+ROW()-2)),\"\")","v":{"$error":"#N/A"}},{"$f":"IF(INDIRECT(\"c\" & (VLOOKUP(Switch!$D$34,$F$2:$G$44,2,FALSE)+ROW()-2))=Switch!$D$34,INDIRECT(\"a\" & (VLOOKUP(Switch!$D$34,$F$2:$G$44,2,FALSE)+ROW()-2)),\"\")","v":{"$error":"#N/A"}},{"$f":"IF(INDIRECT(\"c\" & (VLOOKUP(Switch!$D$35,$F$2:$G$44,2,FALSE)+ROW()-2))=Switch!$D$35,INDIRECT(\"a\" & (VLOOKUP(Switch!$D$35,$F$2:$G$44,2,FALSE)+ROW()-2)),\"\")","v":{"$error":"#N/A"}},{"$f":"IF(INDIRECT(\"c\" & (VLOOKUP(Switch!$D$36,$F$2:$G$44,2,FALSE)+ROW()-2))=Switch!$D$36,INDIRECT(\"a\" & (VLOOKUP(Switch!$D$36,$F$2:$G$44,2,FALSE)+ROW()-2)),\"\")","v":{"$error":"#N/A"}},{"$f":"IF(INDIRECT(\"c\" & (VLOOKUP(Switch!$D$37,$F$2:$G$44,2,FALSE)+ROW()-2))=Switch!$D$37,INDIRECT(\"a\" & (VLOOKUP(Switch!$D$37,$F$2:$G$44,2,FALSE)+ROW()-2)),\"\")","v":{"$error":"#N/A"}},{"$f":"IF(INDIRECT(\"c\" & (VLOOKUP(Switch!$D$38,$F$2:$G$44,2,FALSE)+ROW()-2))=Switch!$D$38,INDIRECT(\"a\" & (VLOOKUP(Switch!$D$38,$F$2:$G$44,2,FALSE)+ROW()-2)),\"\")","v":{"$error":"#N/A"}},{"$f":"IF(INDIRECT(\"c\" & (VLOOKUP(Switch!$D$39,$F$2:$G$44,2,FALSE)+ROW()-2))=Switch!$D$39,INDIRECT(\"a\" & (VLOOKUP(Switch!$D$39,$F$2:$G$44,2,FALSE)+ROW()-2)),\"\")","v":{"$error":"#N/A"}},{"$f":"IF(INDIRECT(\"c\" & (VLOOKUP(Switch!$D$40,$F$2:$G$44,2,FALSE)+ROW()-2))=Switch!$D$40,INDIRECT(\"a\" & (VLOOKUP(Switch!$D$40,$F$2:$G$44,2,FALSE)+ROW()-2)),\"\")","v":{"$error":"#N/A"}},{"$f":"IF(INDIRECT(\"c\" & (VLOOKUP(Switch!$D$52,$F$2:$G$44,2,FALSE)+ROW()-2))=Switch!$D$52,INDIRECT(\"a\" & (VLOOKUP(Switch!$D$52,$F$2:$G$44,2,FALSE)+ROW()-2)),\"\")","v":{"$error":"#N/A"}},{"$f":"IF(INDIRECT(\"c\" & (VLOOKUP(Switch!$D$53,$F$2:$G$44,2,FALSE)+ROW()-2))=Switch!$D$53,INDIRECT(\"a\" & (VLOOKUP(Switch!$D$53,$F$2:$G$44,2,FALSE)+ROW()-2)),\"\")","v":{"$error":"#N/A"}},{"$f":"IF(INDIRECT(\"c\" & (VLOOKUP(Switch!$D$54,$F$2:$G$44,2,FALSE)+ROW()-2))=Switch!$D$54,INDIRECT(\"a\" & (VLOOKUP(Switch!$D$54,$F$2:$G$44,2,FALSE)+ROW()-2)),\"\")","v":{"$error":"#N/A"}},{"$f":"IF(INDIRECT(\"c\" & (VLOOKUP(Switch!$D$55,$F$2:$G$44,2,FALSE)+ROW()-2))=Switch!$D$55,INDIRECT(\"a\" & (VLOOKUP(Switch!$D$55,$F$2:$G$44,2,FALSE)+ROW()-2)),\"\")","v":{"$error":"#N/A"}},{"$f":"IF(INDIRECT(\"c\" & (VLOOKUP(Switch!$D$56,$F$2:$G$44,2,FALSE)+ROW()-2))=Switch!$D$56,INDIRECT(\"a\" & (VLOOKUP(Switch!$D$56,$F$2:$G$44,2,FALSE)+ROW()-2)),\"\")","v":{"$error":"#N/A"}},{"$f":"IF(INDIRECT(\"c\" & (VLOOKUP(Switch!$D$57,$F$2:$G$44,2,FALSE)+ROW()-2))=Switch!$D$57,INDIRECT(\"a\" & (VLOOKUP(Switch!$D$57,$F$2:$G$44,2,FALSE)+ROW()-2)),\"\")","v":{"$error":"#N/A"}},{"$f":"IF(INDIRECT(\"c\" & (VLOOKUP(Switch!$D$58,$F$2:$G$44,2,FALSE)+ROW()-2))=Switch!$D$58,INDIRECT(\"a\" & (VLOOKUP(Switch!$D$58,$F$2:$G$44,2,FALSE)+ROW()-2)),\"\")","v":{"$error":"#N/A"}},{"$f":"IF(INDIRECT(\"c\" & (VLOOKUP(Switch!$D$59,$F$2:$G$44,2,FALSE)+ROW()-2))=Switch!$D$59,INDIRECT(\"a\" & (VLOOKUP(Switch!$D$59,$F$2:$G$44,2,FALSE)+ROW()-2)),\"\")","v":{"$error":"#N/A"}},{"$f":"IF(INDIRECT(\"c\" & (VLOOKUP(Switch!$D$60,$F$2:$G$44,2,FALSE)+ROW()-2))=Switch!$D$60,INDIRECT(\"a\" & (VLOOKUP(Switch!$D$60,$F$2:$G$44,2,FALSE)+ROW()-2)),\"\")","v":{"$error":"#N/A"}},{"$f":"IF(INDIRECT(\"c\" & (VLOOKUP(Switch!$D$61,$F$2:$G$44,2,FALSE)+ROW()-2))=Switch!$D$61,INDIRECT(\"a\" & (VLOOKUP(Switch!$D$61,$F$2:$G$44,2,FALSE)+ROW()-2)),\"\")","v":{"$error":"#N/A"}},{"$f":"IF(INDIRECT(\"c\" & (VLOOKUP(Switch!$D$62,$F$2:$G$44,2,FALSE)+ROW()-2))=Switch!$D$62,INDIRECT(\"a\" & (VLOOKUP(Switch!$D$62,$F$2:$G$44,2,FALSE)+ROW()-2)),\"\")","v":{"$error":"#N/A"}},{"$f":"IF(INDIRECT(\"c\" & (VLOOKUP(Switch!$D$63,$F$2:$G$44,2,FALSE)+ROW()-2))=Switch!$D$63,INDIRECT(\"a\" & (VLOOKUP(Switch!$D$63,$F$2:$G$44,2,FALSE)+ROW()-2)),\"\")","v":{"$error":"#N/A"}},{"$f":"IF(INDIRECT(\"c\" & (VLOOKUP(Switch!$D$64,$F$2:$G$44,2,FALSE)+ROW()-2))=Switch!$D$64,INDIRECT(\"a\" & (VLOOKUP(Switch!$D$64,$F$2:$G$44,2,FALSE)+ROW()-2)),\"\")","v":{"$error":"#N/A"}},{"$f":"IF(INDIRECT(\"c\" & (VLOOKUP(Switch!$D$65,$F$2:$G$44,2,FALSE)+ROW()-2))=Switch!$D$65,INDIRECT(\"a\" & (VLOOKUP(Switch!$D$65,$F$2:$G$44,2,FALSE)+ROW()-2)),\"\")","v":{"$error":"#N/A"}},{"$f":"IF(INDIRECT(\"c\" & (VLOOKUP(Switch!$D$66,$F$2:$G$44,2,FALSE)+ROW()-2))=Switch!$D$66,INDIRECT(\"a\" & (VLOOKUP(Switch!$D$66,$F$2:$G$44,2,FALSE)+ROW()-2)),\"\")","v":{"$error":"#N/A"}}]
["STANLIB Corporate Money Market Fund B3","SBC3","STANLIB Collective Investments",{"$f":"ROW()","v":42},null,null,{"$f":"VLOOKUP(F42,$C$2:$D$637,2,FALSE)","v":{"$error":"#N/A"}},{"$f":"IF(INDIRECT(\"c\" & (VLOOKUP(Switch!$D$26,$F$2:$G$44,2,FALSE)+ROW()-2))=Switch!$D$26,INDIRECT(\"a\" & (VLOOKUP(Switch!$D$26,$F$2:$G$44,2,FALSE)+ROW()-2)),\"\")","v":{"$error":"#N/A"}},{"$f":"IF(INDIRECT(\"c\" & (VLOOKUP(Switch!$D$27,$F$2:$G$44,2,FALSE)+ROW()-2))=Switch!$D$27,INDIRECT(\"a\" & (VLOOKUP(Switch!$D$27,$F$2:$G$44,2,FALSE)+ROW()-2)),\"\")","v":{"$error":"#N/A"}},{"$f":"IF(INDIRECT(\"c\" & (VLOOKUP(Switch!$D$28,$F$2:$G$44,2,FALSE)+ROW()-2))=Switch!$D$28,INDIRECT(\"a\" & (VLOOKUP(Switch!$D$28,$F$2:$G$44,2,FALSE)+ROW()-2)),\"\")","v":{"$error":"#N/A"}},{"$f":"IF(INDIRECT(\"c\" & (VLOOKUP(Switch!$D$29,$F$2:$G$44,2,FALSE)+ROW()-2))=Switch!$D$29,INDIRECT(\"a\" & (VLOOKUP(Switch!$D$29,$F$2:$G$44,2,FALSE)+ROW()-2)),\"\")","v":{"$error":"#N/A"}},{"$f":"IF(INDIRECT(\"c\" & (VLOOKUP(Switch!$D$30,$F$2:$G$44,2,FALSE)+ROW()-2))=Switch!$D$30,INDIRECT(\"a\" & (VLOOKUP(Switch!$D$30,$F$2:$G$44,2,FALSE)+ROW()-2)),\"\")","v":{"$error":"#N/A"}},{"$f":"IF(INDIRECT(\"c\" & (VLOOKUP(Switch!$D$31,$F$2:$G$44,2,FALSE)+ROW()-2))=Switch!$D$31,INDIRECT(\"a\" & (VLOOKUP(Switch!$D$31,$F$2:$G$44,2,FALSE)+ROW()-2)),\"\")","v":{"$error":"#N/A"}},{"$f":"IF(INDIRECT(\"c\" & (VLOOKUP(Switch!$D$32,$F$2:$G$44,2,FALSE)+ROW()-2))=Switch!$D$32,INDIRECT(\"a\" & (VLOOKUP(Switch!$D$32,$F$2:$G$44,2,FALSE)+ROW()-2)),\"\")","v":{"$error":"#N/A"}},{"$f":"IF(INDIRECT(\"c\" & (VLOOKUP(Switch!$D$33,$F$2:$G$44,2,FALSE)+ROW()-2))=Switch!$D$33,INDIRECT(\"a\" & (VLOOKUP(Switch!$D$33,$F$2:$G$44,2,FALSE)+ROW()-2)),\"\")","v":{"$error":"#N/A"}},{"$f":"IF(INDIRECT(\"c\" & (VLOOKUP(Switch!$D$34,$F$2:$G$44,2,FALSE)+ROW()-2))=Switch!$D$34,INDIRECT(\"a\" & (VLOOKUP(Switch!$D$34,$F$2:$G$44,2,FALSE)+ROW()-2)),\"\")","v":{"$error":"#N/A"}},{"$f":"IF(INDIRECT(\"c\" & (VLOOKUP(Switch!$D$35,$F$2:$G$44,2,FALSE)+ROW()-2))=Switch!$D$35,INDIRECT(\"a\" & (VLOOKUP(Switch!$D$35,$F$2:$G$44,2,FALSE)+ROW()-2)),\"\")","v":{"$error":"#N/A"}},{"$f":"IF(INDIRECT(\"c\" & (VLOOKUP(Switch!$D$36,$F$2:$G$44,2,FALSE)+ROW()-2))=Switch!$D$36,INDIRECT(\"a\" & (VLOOKUP(Switch!$D$36,$F$2:$G$44,2,FALSE)+ROW()-2)),\"\")","v":{"$error":"#N/A"}},{"$f":"IF(INDIRECT(\"c\" & (VLOOKUP(Switch!$D$37,$F$2:$G$44,2,FALSE)+ROW()-2))=Switch!$D$37,INDIRECT(\"a\" & (VLOOKUP(Switch!$D$37,$F$2:$G$44,2,FALSE)+ROW()-2)),\"\")","v":{"$error":"#N/A"}},{"$f":"IF(INDIRECT(\"c\" & (VLOOKUP(Switch!$D$38,$F$2:$G$44,2,FALSE)+ROW()-2))=Switch!$D$38,INDIRECT(\"a\" & (VLOOKUP(Switch!$D$38,$F$2:$G$44,2,FALSE)+ROW()-2)),\"\")","v":{"$error":"#N/A"}},{"$f":"IF(INDIRECT(\"c\" & (VLOOKUP(Switch!$D$39,$F$2:$G$44,2,FALSE)+ROW()-2))=Switch!$D$39,INDIRECT(\"a\" & (VLOOKUP(Switch!$D$39,$F$2:$G$44,2,FALSE)+ROW()-2)),\"\")","v":{"$error":"#N/A"}},{"$f":"IF(INDIRECT(\"c\" & (VLOOKUP(Switch!$D$40,$F$2:$G$44,2,FALSE)+ROW()-2))=Switch!$D$40,INDIRECT(\"a\" & (VLOOKUP(Switch!$D$40,$F$2:$G$44,2,FALSE)+ROW()-2)),\"\")","v":{"$error":"#N/A"}},{"$f":"IF(INDIRECT(\"c\" & (VLOOKUP(Switch!$D$52,$F$2:$G$44,2,FALSE)+ROW()-2))=Switch!$D$52,INDIRECT(\"a\" & (VLOOKUP(Switch!$D$52,$F$2:$G$44,2,FALSE)+ROW()-2)),\"\")","v":{"$error":"#N/A"}},{"$f":"IF(INDIRECT(\"c\" & (VLOOKUP(Switch!$D$53,$F$2:$G$44,2,FALSE)+ROW()-2))=Switch!$D$53,INDIRECT(\"a\" & (VLOOKUP(Switch!$D$53,$F$2:$G$44,2,FALSE)+ROW()-2)),\"\")","v":{"$error":"#N/A"}},{"$f":"IF(INDIRECT(\"c\" & (VLOOKUP(Switch!$D$54,$F$2:$G$44,2,FALSE)+ROW()-2))=Switch!$D$54,INDIRECT(\"a\" & (VLOOKUP(Switch!$D$54,$F$2:$G$44,2,FALSE)+ROW()-2)),\"\")","v":{"$error":"#N/A"}},{"$f":"IF(INDIRECT(\"c\" & (VLOOKUP(Switch!$D$55,$F$2:$G$44,2,FALSE)+ROW()-2))=Switch!$D$55,INDIRECT(\"a\" & (VLOOKUP(Switch!$D$55,$F$2:$G$44,2,FALSE)+ROW()-2)),\"\")","v":{"$error":"#N/A"}},{"$f":"IF(INDIRECT(\"c\" & (VLOOKUP(Switch!$D$56,$F$2:$G$44,2,FALSE)+ROW()-2))=Switch!$D$56,INDIRECT(\"a\" & (VLOOKUP(Switch!$D$56,$F$2:$G$44,2,FALSE)+ROW()-2)),\"\")","v":{"$error":"#N/A"}},{"$f":"IF(INDIRECT(\"c\" & (VLOOKUP(Switch!$D$57,$F$2:$G$44,2,FALSE)+ROW()-2))=Switch!$D$57,INDIRECT(\"a\" & (VLOOKUP(Switch!$D$57,$F$2:$G$44,2,FALSE)+ROW()-2)),\"\")","v":{"$error":"#N/A"}},{"$f":"IF(INDIRECT(\"c\" & (VLOOKUP(Switch!$D$58,$F$2:$G$44,2,FALSE)+ROW()-2))=Switch!$D$58,INDIRECT(\"a\" & (VLOOKUP(Switch!$D$58,$F$2:$G$44,2,FALSE)+ROW()-2)),\"\")","v":{"$error":"#N/A"}},{"$f":"IF(INDIRECT(\"c\" & (VLOOKUP(Switch!$D$59,$F$2:$G$44,2,FALSE)+ROW()-2))=Switch!$D$59,INDIRECT(\"a\" & (VLOOKUP(Switch!$D$59,$F$2:$G$44,2,FALSE)+ROW()-2)),\"\")","v":{"$error":"#N/A"}},{"$f":"IF(INDIRECT(\"c\" & (VLOOKUP(Switch!$D$60,$F$2:$G$44,2,FALSE)+ROW()-2))=Switch!$D$60,INDIRECT(\"a\" & (VLOOKUP(Switch!$D$60,$F$2:$G$44,2,FALSE)+ROW()-2)),\"\")","v":{"$error":"#N/A"}},{"$f":"IF(INDIRECT(\"c\" & (VLOOKUP(Switch!$D$61,$F$2:$G$44,2,FALSE)+ROW()-2))=Switch!$D$61,INDIRECT(\"a\" & (VLOOKUP(Switch!$D$61,$F$2:$G$44,2,FALSE)+ROW()-2)),\"\")","v":{"$error":"#N/A"}},{"$f":"IF(INDIRECT(\"c\" & (VLOOKUP(Switch!$D$62,$F$2:$G$44,2,FALSE)+ROW()-2))=Switch!$D$62,INDIRECT(\"a\" & (VLOOKUP(Switch!$D$62,$F$2:$G$44,2,FALSE)+ROW()-2)),\"\")","v":{"$error":"#N/A"}},{"$f":"IF(INDIRECT(\"c\" & (VLOOKUP(Switch!$D$63,$F$2:$G$44,2,FALSE)+ROW()-2))=Switch!$D$63,INDIRECT(\"a\" & (VLOOKUP(Switch!$D$63,$F$2:$G$44,2,FALSE)+ROW()-2)),\"\")","v":{"$error":"#N/A"}},{"$f":"IF(INDIRECT(\"c\" & (VLOOKUP(Switch!$D$64,$F$2:$G$44,2,FALSE)+ROW()-2))=Switch!$D$64,INDIRECT(\"a\" & (VLOOKUP(Switch!$D$64,$F$2:$G$44,2,FALSE)+ROW()-2)),\"\")","v":{"$error":"#N/A"}},{"$f":"IF(INDIRECT(\"c\" & (VLOOKUP(Switch!$D$65,$F$2:$G$44,2,FALSE)+ROW()-2))=Switch!$D$65,INDIRECT(\"a\" & (VLOOKUP(Switch!$D$65,$F$2:$G$44,2,FALSE)+ROW()-2)),\"\")","v":{"$error":"#N/A"}},{"$f":"IF(INDIRECT(\"c\" & (VLOOKUP(Switch!$D$66,$F$2:$G$44,2,FALSE)+ROW()-2))=Switch!$D$66,INDIRECT(\"a\" & (VLOOKUP(Switch!$D$66,$F$2:$G$44,2,FALSE)+ROW()-2)),\"\")","v":{"$error":"#N/A"}}]
["STANLIB Enhanced Yield Fund A","SCPA","STANLIB Collective Investments",{"$f":"ROW()","v":43},null,null,{"$f":"VLOOKUP(F43,$C$2:$D$637,2,FALSE)","v":{"$error":"#N/A"}},{"$f":"IF(INDIRECT(\"c\" & (VLOOKUP(Switch!$D$26,$F$2:$G$44,2,FALSE)+ROW()-2))=Switch!$D$26,INDIRECT(\"a\" & (VLOOKUP(Switch!$D$26,$F$2:$G$44,2,FALSE)+ROW()-2)),\"\")","v":{"$error":"#N/A"}},{"$f":"IF(INDIRECT(\"c\" & (VLOOKUP(Switch!$D$27,$F$2:$G$44,2,FALSE)+ROW()-2))=Switch!$D$27,INDIRECT(\"a\" & (VLOOKUP(Switch!$D$27,$F$2:$G$44,2,FALSE)+ROW()-2)),\"\")","v":{"$error":"#N/A"}},{"$f":"IF(INDIRECT(\"c\" & (VLOOKUP(Switch!$D$28,$F$2:$G$44,2,FALSE)+ROW()-2))=Switch!$D$28,INDIRECT(\"a\" & (VLOOKUP(Switch!$D$28,$F$2:$G$44,2,FALSE)+ROW()-2)),\"\")","v":{"$error":"#N/A"}},{"$f":"IF(INDIRECT(\"c\" & (VLOOKUP(Switch!$D$29,$F$2:$G$44,2,FALSE)+ROW()-2))=Switch!$D$29,INDIRECT(\"a\" & (VLOOKUP(Switch!$D$29,$F$2:$G$44,2,FALSE)+ROW()-2)),\"\")","v":{"$error":"#N/A"}},{"$f":"IF(INDIRECT(\"c\" & (VLOOKUP(Switch!$D$30,$F$2:$G$44,2,FALSE)+ROW()-2))=Switch!$D$30,INDIRECT(\"a\" & (VLOOKUP(Switch!$D$30,$F$2:$G$44,2,FALSE)+ROW()-2)),\"\")","v":{"$error":"#N/A"}},{"$f":"IF(INDIRECT(\"c\" & (VLOOKUP(Switch!$D$31,$F$2:$G$44,2,FALSE)+ROW()-2))=Switch!$D$31,INDIRECT(\"a\" & (VLOOKUP(Switch!$D$31,$F$2:$G$44,2,FALSE)+ROW()-2)),\"\")","v":{"$error":"#N/A"}},{"$f":"IF(INDIRECT(\"c\" & (VLOOKUP(Switch!$D$32,$F$2:$G$44,2,FALSE)+ROW()-2))=Switch!$D$32,INDIRECT(\"a\" & (VLOOKUP(Switch!$D$32,$F$2:$G$44,2,FALSE)+ROW()-2)),\"\")","v":{"$error":"#N/A"}},{"$f":"IF(INDIRECT(\"c\" & (VLOOKUP(Switch!$D$33,$F$2:$G$44,2,FALSE)+ROW()-2))=Switch!$D$33,INDIRECT(\"a\" & (VLOOKUP(Switch!$D$33,$F$2:$G$44,2,FALSE)+ROW()-2)),\"\")","v":{"$error":"#N/A"}},{"$f":"IF(INDIRECT(\"c\" & (VLOOKUP(Switch!$D$34,$F$2:$G$44,2,FALSE)+ROW()-2))=Switch!$D$34,INDIRECT(\"a\" & (VLOOKUP(Switch!$D$34,$F$2:$G$44,2,FALSE)+ROW()-2)),\"\")","v":{"$error":"#N/A"}},{"$f":"IF(INDIRECT(\"c\" & (VLOOKUP(Switch!$D$35,$F$2:$G$44,2,FALSE)+ROW()-2))=Switch!$D$35,INDIRECT(\"a\" & (VLOOKUP(Switch!$D$35,$F$2:$G$44,2,FALSE)+ROW()-2)),\"\")","v":{"$error":"#N/A"}},{"$f":"IF(INDIRECT(\"c\" & (VLOOKUP(Switch!$D$36,$F$2:$G$44,2,FALSE)+ROW()-2))=Switch!$D$36,INDIRECT(\"a\" & (VLOOKUP(Switch!$D$36,$F$2:$G$44,2,FALSE)+ROW()-2)),\"\")","v":{"$error":"#N/A"}},{"$f":"IF(INDIRECT(\"c\" & (VLOOKUP(Switch!$D$37,$F$2:$G$44,2,FALSE)+ROW()-2))=Switch!$D$37,INDIRECT(\"a\" & (VLOOKUP(Switch!$D$37,$F$2:$G$44,2,FALSE)+ROW()-2)),\"\")","v":{"$error":"#N/A"}},{"$f":"IF(INDIRECT(\"c\" & (VLOOKUP(Switch!$D$38,$F$2:$G$44,2,FALSE)+ROW()-2))=Switch!$D$38,INDIRECT(\"a\" & (VLOOKUP(Switch!$D$38,$F$2:$G$44,2,FALSE)+ROW()-2)),\"\")","v":{"$error":"#N/A"}},{"$f":"IF(INDIRECT(\"c\" & (VLOOKUP(Switch!$D$39,$F$2:$G$44,2,FALSE)+ROW()-2))=Switch!$D$39,INDIRECT(\"a\" & (VLOOKUP(Switch!$D$39,$F$2:$G$44,2,FALSE)+ROW()-2)),\"\")","v":{"$error":"#N/A"}},{"$f":"IF(INDIRECT(\"c\" & (VLOOKUP(Switch!$D$40,$F$2:$G$44,2,FALSE)+ROW()-2))=Switch!$D$40,INDIRECT(\"a\" & (VLOOKUP(Switch!$D$40,$F$2:$G$44,2,FALSE)+ROW()-2)),\"\")","v":{"$error":"#N/A"}},{"$f":"IF(INDIRECT(\"c\" & (VLOOKUP(Switch!$D$52,$F$2:$G$44,2,FALSE)+ROW()-2))=Switch!$D$52,INDIRECT(\"a\" & (VLOOKUP(Switch!$D$52,$F$2:$G$44,2,FALSE)+ROW()-2)),\"\")","v":{"$error":"#N/A"}},{"$f":"IF(INDIRECT(\"c\" & (VLOOKUP(Switch!$D$53,$F$2:$G$44,2,FALSE)+ROW()-2))=Switch!$D$53,INDIRECT(\"a\" & (VLOOKUP(Switch!$D$53,$F$2:$G$44,2,FALSE)+ROW()-2)),\"\")","v":{"$error":"#N/A"}},{"$f":"IF(INDIRECT(\"c\" & (VLOOKUP(Switch!$D$54,$F$2:$G$44,2,FALSE)+ROW()-2))=Switch!$D$54,INDIRECT(\"a\" & (VLOOKUP(Switch!$D$54,$F$2:$G$44,2,FALSE)+ROW()-2)),\"\")","v":{"$error":"#N/A"}},{"$f":"IF(INDIRECT(\"c\" & (VLOOKUP(Switch!$D$55,$F$2:$G$44,2,FALSE)+ROW()-2))=Switch!$D$55,INDIRECT(\"a\" & (VLOOKUP(Switch!$D$55,$F$2:$G$44,2,FALSE)+ROW()-2)),\"\")","v":{"$error":"#N/A"}},{"$f":"IF(INDIRECT(\"c\" & (VLOOKUP(Switch!$D$56,$F$2:$G$44,2,FALSE)+ROW()-2))=Switch!$D$56,INDIRECT(\"a\" & (VLOOKUP(Switch!$D$56,$F$2:$G$44,2,FALSE)+ROW()-2)),\"\")","v":{"$error":"#N/A"}},{"$f":"IF(INDIRECT(\"c\" & (VLOOKUP(Switch!$D$57,$F$2:$G$44,2,FALSE)+ROW()-2))=Switch!$D$57,INDIRECT(\"a\" & (VLOOKUP(Switch!$D$57,$F$2:$G$44,2,FALSE)+ROW()-2)),\"\")","v":{"$error":"#N/A"}},{"$f":"IF(INDIRECT(\"c\" & (VLOOKUP(Switch!$D$58,$F$2:$G$44,2,FALSE)+ROW()-2))=Switch!$D$58,INDIRECT(\"a\" & (VLOOKUP(Switch!$D$58,$F$2:$G$44,2,FALSE)+ROW()-2)),\"\")","v":{"$error":"#N/A"}},{"$f":"IF(INDIRECT(\"c\" & (VLOOKUP(Switch!$D$59,$F$2:$G$44,2,FALSE)+ROW()-2))=Switch!$D$59,INDIRECT(\"a\" & (VLOOKUP(Switch!$D$59,$F$2:$G$44,2,FALSE)+ROW()-2)),\"\")","v":{"$error":"#N/A"}},{"$f":"IF(INDIRECT(\"c\" & (VLOOKUP(Switch!$D$60,$F$2:$G$44,2,FALSE)+ROW()-2))=Switch!$D$60,INDIRECT(\"a\" & (VLOOKUP(Switch!$D$60,$F$2:$G$44,2,FALSE)+ROW()-2)),\"\")","v":{"$error":"#N/A"}},{"$f":"IF(INDIRECT(\"c\" & (VLOOKUP(Switch!$D$61,$F$2:$G$44,2,FALSE)+ROW()-2))=Switch!$D$61,INDIRECT(\"a\" & (VLOOKUP(Switch!$D$61,$F$2:$G$44,2,FALSE)+ROW()-2)),\"\")","v":{"$error":"#N/A"}},{"$f":"IF(INDIRECT(\"c\" & (VLOOKUP(Switch!$D$62,$F$2:$G$44,2,FALSE)+ROW()-2))=Switch!$D$62,INDIRECT(\"a\" & (VLOOKUP(Switch!$D$62,$F$2:$G$44,2,FALSE)+ROW()-2)),\"\")","v":{"$error":"#N/A"}},{"$f":"IF(INDIRECT(\"c\" & (VLOOKUP(Switch!$D$63,$F$2:$G$44,2,FALSE)+ROW()-2))=Switch!$D$63,INDIRECT(\"a\" & (VLOOKUP(Switch!$D$63,$F$2:$G$44,2,FALSE)+ROW()-2)),\"\")","v":{"$error":"#N/A"}},{"$f":"IF(INDIRECT(\"c\" & (VLOOKUP(Switch!$D$64,$F$2:$G$44,2,FALSE)+ROW()-2))=Switch!$D$64,INDIRECT(\"a\" & (VLOOKUP(Switch!$D$64,$F$2:$G$44,2,FALSE)+ROW()-2)),\"\")","v":{"$error":"#N/A"}},{"$f":"IF(INDIRECT(\"c\" & (VLOOKUP(Switch!$D$65,$F$2:$G$44,2,FALSE)+ROW()-2))=Switch!$D$65,INDIRECT(\"a\" & (VLOOKUP(Switch!$D$65,$F$2:$G$44,2,FALSE)+ROW()-2)),\"\")","v":{"$error":"#N/A"}},{"$f":"IF(INDIRECT(\"c\" & (VLOOKUP(Switch!$D$66,$F$2:$G$44,2,FALSE)+ROW()-2))=Switch!$D$66,INDIRECT(\"a\" & (VLOOKUP(Switch!$D$66,$F$2:$G$44,2,FALSE)+ROW()-2)),\"\")","v":{"$error":"#N/A"}}]
["STANLIB Equity Fund A","LIWA","STANLIB Collective Investments",{"$f":"ROW()","v":44},null,null,{"$f":"VLOOKUP(F44,$C$2:$D$637,2,FALSE)","v":{"$error":"#N/A"}},{"$f":"IF(INDIRECT(\"c\" & (VLOOKUP(Switch!$D$26,$F$2:$G$44,2,FALSE)+ROW()-2))=Switch!$D$26,INDIRECT(\"a\" & (VLOOKUP(Switch!$D$26,$F$2:$G$44,2,FALSE)+ROW()-2)),\"\")","v":{"$error":"#N/A"}},{"$f":"IF(INDIRECT(\"c\" & (VLOOKUP(Switch!$D$27,$F$2:$G$44,2,FALSE)+ROW()-2))=Switch!$D$27,INDIRECT(\"a\" & (VLOOKUP(Switch!$D$27,$F$2:$G$44,2,FALSE)+ROW()-2)),\"\")","v":{"$error":"#N/A"}},{"$f":"IF(INDIRECT(\"c\" & (VLOOKUP(Switch!$D$28,$F$2:$G$44,2,FALSE)+ROW()-2))=Switch!$D$28,INDIRECT(\"a\" & (VLOOKUP(Switch!$D$28,$F$2:$G$44,2,FALSE)+ROW()-2)),\"\")","v":{"$error":"#N/A"}},{"$f":"IF(INDIRECT(\"c\" & (VLOOKUP(Switch!$D$29,$F$2:$G$44,2,FALSE)+ROW()-2))=Switch!$D$29,INDIRECT(\"a\" & (VLOOKUP(Switch!$D$29,$F$2:$G$44,2,FALSE)+ROW()-2)),\"\")","v":{"$error":"#N/A"}},{"$f":"IF(INDIRECT(\"c\" & (VLOOKUP(Switch!$D$30,$F$2:$G$44,2,FALSE)+ROW()-2))=Switch!$D$30,INDIRECT(\"a\" & (VLOOKUP(Switch!$D$30,$F$2:$G$44,2,FALSE)+ROW()-2)),\"\")","v":{"$error":"#N/A"}},{"$f":"IF(INDIRECT(\"c\" & (VLOOKUP(Switch!$D$31,$F$2:$G$44,2,FALSE)+ROW()-2))=Switch!$D$31,INDIRECT(\"a\" & (VLOOKUP(Switch!$D$31,$F$2:$G$44,2,FALSE)+ROW()-2)),\"\")","v":{"$error":"#N/A"}},{"$f":"IF(INDIRECT(\"c\" & (VLOOKUP(Switch!$D$32,$F$2:$G$44,2,FALSE)+ROW()-2))=Switch!$D$32,INDIRECT(\"a\" & (VLOOKUP(Switch!$D$32,$F$2:$G$44,2,FALSE)+ROW()-2)),\"\")","v":{"$error":"#N/A"}},{"$f":"IF(INDIRECT(\"c\" & (VLOOKUP(Switch!$D$33,$F$2:$G$44,2,FALSE)+ROW()-2))=Switch!$D$33,INDIRECT(\"a\" & (VLOOKUP(Switch!$D$33,$F$2:$G$44,2,FALSE)+ROW()-2)),\"\")","v":{"$error":"#N/A"}},{"$f":"IF(INDIRECT(\"c\" & (VLOOKUP(Switch!$D$34,$F$2:$G$44,2,FALSE)+ROW()-2))=Switch!$D$34,INDIRECT(\"a\" & (VLOOKUP(Switch!$D$34,$F$2:$G$44,2,FALSE)+ROW()-2)),\"\")","v":{"$error":"#N/A"}},{"$f":"IF(INDIRECT(\"c\" & (VLOOKUP(Switch!$D$35,$F$2:$G$44,2,FALSE)+ROW()-2))=Switch!$D$35,INDIRECT(\"a\" & (VLOOKUP(Switch!$D$35,$F$2:$G$44,2,FALSE)+ROW()-2)),\"\")","v":{"$error":"#N/A"}},{"$f":"IF(INDIRECT(\"c\" & (VLOOKUP(Switch!$D$36,$F$2:$G$44,2,FALSE)+ROW()-2))=Switch!$D$36,INDIRECT(\"a\" & (VLOOKUP(Switch!$D$36,$F$2:$G$44,2,FALSE)+ROW()-2)),\"\")","v":{"$error":"#N/A"}},{"$f":"IF(INDIRECT(\"c\" & (VLOOKUP(Switch!$D$37,$F$2:$G$44,2,FALSE)+ROW()-2))=Switch!$D$37,INDIRECT(\"a\" & (VLOOKUP(Switch!$D$37,$F$2:$G$44,2,FALSE)+ROW()-2)),\"\")","v":{"$error":"#N/A"}},{"$f":"IF(INDIRECT(\"c\" & (VLOOKUP(Switch!$D$38,$F$2:$G$44,2,FALSE)+ROW()-2))=Switch!$D$38,INDIRECT(\"a\" & (VLOOKUP(Switch!$D$38,$F$2:$G$44,2,FALSE)+ROW()-2)),\"\")","v":{"$error":"#N/A"}},{"$f":"IF(INDIRECT(\"c\" & (VLOOKUP(Switch!$D$39,$F$2:$G$44,2,FALSE)+ROW()-2))=Switch!$D$39,INDIRECT(\"a\" & (VLOOKUP(Switch!$D$39,$F$2:$G$44,2,FALSE)+ROW()-2)),\"\")","v":{"$error":"#N/A"}},{"$f":"IF(INDIRECT(\"c\" & (VLOOKUP(Switch!$D$40,$F$2:$G$44,2,FALSE)+ROW()-2))=Switch!$D$40,INDIRECT(\"a\" & (VLOOKUP(Switch!$D$40,$F$2:$G$44,2,FALSE)+ROW()-2)),\"\")","v":{"$error":"#N/A"}},{"$f":"IF(INDIRECT(\"c\" & (VLOOKUP(Switch!$D$52,$F$2:$G$44,2,FALSE)+ROW()-2))=Switch!$D$52,INDIRECT(\"a\" & (VLOOKUP(Switch!$D$52,$F$2:$G$44,2,FALSE)+ROW()-2)),\"\")","v":{"$error":"#N/A"}},{"$f":"IF(INDIRECT(\"c\" & (VLOOKUP(Switch!$D$53,$F$2:$G$44,2,FALSE)+ROW()-2))=Switch!$D$53,INDIRECT(\"a\" & (VLOOKUP(Switch!$D$53,$F$2:$G$44,2,FALSE)+ROW()-2)),\"\")","v":{"$error":"#N/A"}},{"$f":"IF(INDIRECT(\"c\" & (VLOOKUP(Switch!$D$54,$F$2:$G$44,2,FALSE)+ROW()-2))=Switch!$D$54,INDIRECT(\"a\" & (VLOOKUP(Switch!$D$54,$F$2:$G$44,2,FALSE)+ROW()-2)),\"\")","v":{"$error":"#N/A"}},{"$f":"IF(INDIRECT(\"c\" & (VLOOKUP(Switch!$D$55,$F$2:$G$44,2,FALSE)+ROW()-2))=Switch!$D$55,INDIRECT(\"a\" & (VLOOKUP(Switch!$D$55,$F$2:$G$44,2,FALSE)+ROW()-2)),\"\")","v":{"$error":"#N/A"}},{"$f":"IF(INDIRECT(\"c\" & (VLOOKUP(Switch!$D$56,$F$2:$G$44,2,FALSE)+ROW()-2))=Switch!$D$56,INDIRECT(\"a\" & (VLOOKUP(Switch!$D$56,$F$2:$G$44,2,FALSE)+ROW()-2)),\"\")","v":{"$error":"#N/A"}},{"$f":"IF(INDIRECT(\"c\" & (VLOOKUP(Switch!$D$57,$F$2:$G$44,2,FALSE)+ROW()-2))=Switch!$D$57,INDIRECT(\"a\" & (VLOOKUP(Switch!$D$57,$F$2:$G$44,2,FALSE)+ROW()-2)),\"\")","v":{"$error":"#N/A"}},{"$f":"IF(INDIRECT(\"c\" & (VLOOKUP(Switch!$D$58,$F$2:$G$44,2,FALSE)+ROW()-2))=Switch!$D$58,INDIRECT(\"a\" & (VLOOKUP(Switch!$D$58,$F$2:$G$44,2,FALSE)+ROW()-2)),\"\")","v":{"$error":"#N/A"}},{"$f":"IF(INDIRECT(\"c\" & (VLOOKUP(Switch!$D$59,$F$2:$G$44,2,FALSE)+ROW()-2))=Switch!$D$59,INDIRECT(\"a\" & (VLOOKUP(Switch!$D$59,$F$2:$G$44,2,FALSE)+ROW()-2)),\"\")","v":{"$error":"#N/A"}},{"$f":"IF(INDIRECT(\"c\" & (VLOOKUP(Switch!$D$60,$F$2:$G$44,2,FALSE)+ROW()-2))=Switch!$D$60,INDIRECT(\"a\" & (VLOOKUP(Switch!$D$60,$F$2:$G$44,2,FALSE)+ROW()-2)),\"\")","v":{"$error":"#N/A"}},{"$f":"IF(INDIRECT(\"c\" & (VLOOKUP(Switch!$D$61,$F$2:$G$44,2,FALSE)+ROW()-2))=Switch!$D$61,INDIRECT(\"a\" & (VLOOKUP(Switch!$D$61,$F$2:$G$44,2,FALSE)+ROW()-2)),\"\")","v":{"$error":"#N/A"}},{"$f":"IF(INDIRECT(\"c\" & (VLOOKUP(Switch!$D$62,$F$2:$G$44,2,FALSE)+ROW()-2))=Switch!$D$62,INDIRECT(\"a\" & (VLOOKUP(Switch!$D$62,$F$2:$G$44,2,FALSE)+ROW()-2)),\"\")","v":{"$error":"#N/A"}},{"$f":"IF(INDIRECT(\"c\" & (VLOOKUP(Switch!$D$63,$F$2:$G$44,2,FALSE)+ROW()-2))=Switch!$D$63,INDIRECT(\"a\" & (VLOOKUP(Switch!$D$63,$F$2:$G$44,2,FALSE)+ROW()-2)),\"\")","v":{"$error":"#N/A"}},{"$f":"IF(INDIRECT(\"c\" & (VLOOKUP(Switch!$D$64,$F$2:$G$44,2,FALSE)+ROW()-2))=Switch!$D$64,INDIRECT(\"a\" & (VLOOKUP(Switch!$D$64,$F$2:$G$44,2,FALSE)+ROW()-2)),\"\")","v":{"$error":"#N/A"}},{"$f":"IF(INDIRECT(\"c\" & (VLOOKUP(Switch!$D$65,$F$2:$G$44,2,FALSE)+ROW()-2))=Switch!$D$65,INDIRECT(\"a\" & (VLOOKUP(Switch!$D$65,$F$2:$G$44,2,FALSE)+ROW()-2)),\"\")","v":{"$error":"#N/A"}},{"$f":"IF(INDIRECT(\"c\" & (VLOOKUP(Switch!$D$66,$F$2:$G$44,2,FALSE)+ROW()-2))=Switch!$D$66,INDIRECT(\"a\" & (VLOOKUP(Switch!$D$66,$F$2:$G$44,2,FALSE)+ROW()-2)),\"\")","v":{"$error":"#N/A"}}]
["STANLIB Equity Fund R","LIWA","STANLIB Collective Investments",{"$f":"ROW()","v":45},null,null,{"$f":"VLOOKUP(F45,$C$2:$D$637,2,FALSE)","v":{"$error":"#N/A"}},{"$f":"IF(INDIRECT(\"c\" & (VLOOKUP(Switch!$D$26,$F$2:$G$44,2,FALSE)+ROW()-2))=Switch!$D$26,INDIRECT(\"a\" & (VLOOKUP(Switch!$D$26,$F$2:$G$44,2,FALSE)+ROW()-2)),\"\")","v":{"$error":"#N/A"}},{"$f":"IF(INDIRECT(\"c\" & (VLOOKUP(Switch!$D$27,$F$2:$G$44,2,FALSE)+ROW()-2))=Switch!$D$27,INDIRECT(\"a\" & (VLOOKUP(Switch!$D$27,$F$2:$G$44,2,FALSE)+ROW()-2)),\"\")","v":{"$error":"#N/A"}},{"$f":"IF(INDIRECT(\"c\" & (VLOOKUP(Switch!$D$28,$F$2:$G$44,2,FALSE)+ROW()-2))=Switch!$D$28,INDIRECT(\"a\" & (VLOOKUP(Switch!$D$28,$F$2:$G$44,2,FALSE)+ROW()-2)),\"\")","v":{"$error":"#N/A"}},{"$f":"IF(INDIRECT(\"c\" & (VLOOKUP(Switch!$D$29,$F$2:$G$44,2,FALSE)+ROW()-2))=Switch!$D$29,INDIRECT(\"a\" & (VLOOKUP(Switch!$D$29,$F$2:$G$44,2,FALSE)+ROW()-2)),\"\")","v":{"$error":"#N/A"}},{"$f":"IF(INDIRECT(\"c\" & (VLOOKUP(Switch!$D$30,$F$2:$G$44,2,FALSE)+ROW()-2))=Switch!$D$30,INDIRECT(\"a\" & (VLOOKUP(Switch!$D$30,$F$2:$G$44,2,FALSE)+ROW()-2)),\"\")","v":{"$error":"#N/A"}},{"$f":"IF(INDIRECT(\"c\" & (VLOOKUP(Switch!$D$31,$F$2:$G$44,2,FALSE)+ROW()-2))=Switch!$D$31,INDIRECT(\"a\" & (VLOOKUP(Switch!$D$31,$F$2:$G$44,2,FALSE)+ROW()-2)),\"\")","v":{"$error":"#N/A"}},{"$f":"IF(INDIRECT(\"c\" & (VLOOKUP(Switch!$D$32,$F$2:$G$44,2,FALSE)+ROW()-2))=Switch!$D$32,INDIRECT(\"a\" & (VLOOKUP(Switch!$D$32,$F$2:$G$44,2,FALSE)+ROW()-2)),\"\")","v":{"$error":"#N/A"}},{"$f":"IF(INDIRECT(\"c\" & (VLOOKUP(Switch!$D$33,$F$2:$G$44,2,FALSE)+ROW()-2))=Switch!$D$33,INDIRECT(\"a\" & (VLOOKUP(Switch!$D$33,$F$2:$G$44,2,FALSE)+ROW()-2)),\"\")","v":{"$error":"#N/A"}},{"$f":"IF(INDIRECT(\"c\" & (VLOOKUP(Switch!$D$34,$F$2:$G$44,2,FALSE)+ROW()-2))=Switch!$D$34,INDIRECT(\"a\" & (VLOOKUP(Switch!$D$34,$F$2:$G$44,2,FALSE)+ROW()-2)),\"\")","v":{"$error":"#N/A"}},{"$f":"IF(INDIRECT(\"c\" & (VLOOKUP(Switch!$D$35,$F$2:$G$44,2,FALSE)+ROW()-2))=Switch!$D$35,INDIRECT(\"a\" & (VLOOKUP(Switch!$D$35,$F$2:$G$44,2,FALSE)+ROW()-2)),\"\")","v":{"$error":"#N/A"}},{"$f":"IF(INDIRECT(\"c\" & (VLOOKUP(Switch!$D$36,$F$2:$G$44,2,FALSE)+ROW()-2))=Switch!$D$36,INDIRECT(\"a\" & (VLOOKUP(Switch!$D$36,$F$2:$G$44,2,FALSE)+ROW()-2)),\"\")","v":{"$error":"#N/A"}},{"$f":"IF(INDIRECT(\"c\" & (VLOOKUP(Switch!$D$37,$F$2:$G$44,2,FALSE)+ROW()-2))=Switch!$D$37,INDIRECT(\"a\" & (VLOOKUP(Switch!$D$37,$F$2:$G$44,2,FALSE)+ROW()-2)),\"\")","v":{"$error":"#N/A"}},{"$f":"IF(INDIRECT(\"c\" & (VLOOKUP(Switch!$D$38,$F$2:$G$44,2,FALSE)+ROW()-2))=Switch!$D$38,INDIRECT(\"a\" & (VLOOKUP(Switch!$D$38,$F$2:$G$44,2,FALSE)+ROW()-2)),\"\")","v":{"$error":"#N/A"}},{"$f":"IF(INDIRECT(\"c\" & (VLOOKUP(Switch!$D$39,$F$2:$G$44,2,FALSE)+ROW()-2))=Switch!$D$39,INDIRECT(\"a\" & (VLOOKUP(Switch!$D$39,$F$2:$G$44,2,FALSE)+ROW()-2)),\"\")","v":{"$error":"#N/A"}},{"$f":"IF(INDIRECT(\"c\" & (VLOOKUP(Switch!$D$40,$F$2:$G$44,2,FALSE)+ROW()-2))=Switch!$D$40,INDIRECT(\"a\" & (VLOOKUP(Switch!$D$40,$F$2:$G$44,2,FALSE)+ROW()-2)),\"\")","v":{"$error":"#N/A"}},{"$f":"IF(INDIRECT(\"c\" & (VLOOKUP(Switch!$D$52,$F$2:$G$44,2,FALSE)+ROW()-2))=Switch!$D$52,INDIRECT(\"a\" & (VLOOKUP(Switch!$D$52,$F$2:$G$44,2,FALSE)+ROW()-2)),\"\")","v":{"$error":"#N/A"}},{"$f":"IF(INDIRECT(\"c\" & (VLOOKUP(Switch!$D$53,$F$2:$G$44,2,FALSE)+ROW()-2))=Switch!$D$53,INDIRECT(\"a\" & (VLOOKUP(Switch!$D$53,$F$2:$G$44,2,FALSE)+ROW()-2)),\"\")","v":{"$error":"#N/A"}},{"$f":"IF(INDIRECT(\"c\" & (VLOOKUP(Switch!$D$54,$F$2:$G$44,2,FALSE)+ROW()-2))=Switch!$D$54,INDIRECT(\"a\" & (VLOOKUP(Switch!$D$54,$F$2:$G$44,2,FALSE)+ROW()-2)),\"\")","v":{"$error":"#N/A"}},{"$f":"IF(INDIRECT(\"c\" & (VLOOKUP(Switch!$D$55,$F$2:$G$44,2,FALSE)+ROW()-2))=Switch!$D$55,INDIRECT(\"a\" & (VLOOKUP(Switch!$D$55,$F$2:$G$44,2,FALSE)+ROW()-2)),\"\")","v":{"$error":"#N/A"}},{"$f":"IF(INDIRECT(\"c\" & (VLOOKUP(Switch!$D$56,$F$2:$G$44,2,FALSE)+ROW()-2))=Switch!$D$56,INDIRECT(\"a\" & (VLOOKUP(Switch!$D$56,$F$2:$G$44,2,FALSE)+ROW()-2)),\"\")","v":{"$error":"#N/A"}},{"$f":"IF(INDIRECT(\"c\" & (VLOOKUP(Switch!$D$57,$F$2:$G$44,2,FALSE)+ROW()-2))=Switch!$D$57,INDIRECT(\"a\" & (VLOOKUP(Switch!$D$57,$F$2:$G$44,2,FALSE)+ROW()-2)),\"\")","v":{"$error":"#N/A"}},{"$f":"IF(INDIRECT(\"c\" & (VLOOKUP(Switch!$D$58,$F$2:$G$44,2,FALSE)+ROW()-2))=Switch!$D$58,INDIRECT(\"a\" & (VLOOKUP(Switch!$D$58,$F$2:$G$44,2,FALSE)+ROW()-2)),\"\")","v":{"$error":"#N/A"}},{"$f":"IF(INDIRECT(\"c\" & (VLOOKUP(Switch!$D$59,$F$2:$G$44,2,FALSE)+ROW()-2))=Switch!$D$59,INDIRECT(\"a\" & (VLOOKUP(Switch!$D$59,$F$2:$G$44,2,FALSE)+ROW()-2)),\"\")","v":{"$error":"#N/A"}},{"$f":"IF(INDIRECT(\"c\" & (VLOOKUP(Switch!$D$60,$F$2:$G$44,2,FALSE)+ROW()-2))=Switch!$D$60,INDIRECT(\"a\" & (VLOOKUP(Switch!$D$60,$F$2:$G$44,2,FALSE)+ROW()-2)),\"\")","v":{"$error":"#N/A"}},{"$f":"IF(INDIRECT(\"c\" & (VLOOKUP(Switch!$D$61,$F$2:$G$44,2,FALSE)+ROW()-2))=Switch!$D$61,INDIRECT(\"a\" & (VLOOKUP(Switch!$D$61,$F$2:$G$44,2,FALSE)+ROW()-2)),\"\")","v":{"$error":"#N/A"}},{"$f":"IF(INDIRECT(\"c\" & (VLOOKUP(Switch!$D$62,$F$2:$G$44,2,FALSE)+ROW()-2))=Switch!$D$62,INDIRECT(\"a\" & (VLOOKUP(Switch!$D$62,$F$2:$G$44,2,FALSE)+ROW()-2)),\"\")","v":{"$error":"#N/A"}},{"$f":"IF(INDIRECT(\"c\" & (VLOOKUP(Switch!$D$63,$F$2:$G$44,2,FALSE)+ROW()-2))=Switch!$D$63,INDIRECT(\"a\" & (VLOOKUP(Switch!$D$63,$F$2:$G$44,2,FALSE)+ROW()-2)),\"\")","v":{"$error":"#N/A"}},{"$f":"IF(INDIRECT(\"c\" & (VLOOKUP(Switch!$D$64,$F$2:$G$44,2,FALSE)+ROW()-2))=Switch!$D$64,INDIRECT(\"a\" & (VLOOKUP(Switch!$D$64,$F$2:$G$44,2,FALSE)+ROW()-2)),\"\")","v":{"$error":"#N/A"}},{"$f":"IF(INDIRECT(\"c\" & (VLOOKUP(Switch!$D$65,$F$2:$G$44,2,FALSE)+ROW()-2))=Switch!$D$65,INDIRECT(\"a\" & (VLOOKUP(Switch!$D$65,$F$2:$G$44,2,FALSE)+ROW()-2)),\"\")","v":{"$error":"#N/A"}},{"$f":"IF(INDIRECT(\"c\" & (VLOOKUP(Switch!$D$66,$F$2:$G$44,2,FALSE)+ROW()-2))=Switch!$D$66,INDIRECT(\"a\" & (VLOOKUP(Switch!$D$66,$F$2:$G$44,2,FALSE)+ROW()-2)),\"\")","v":{"$error":"#N/A"}}]
["STANLIB European Equity Feeder Fund B3","SEEFB3","STANLIB Collective Investments",{"$f":"ROW()","v":46},null,null,{"$f":"VLOOKUP(F46,$C$2:$D$637,2,FALSE)","v":{"$error":"#N/A"}},{"$f":"IF(INDIRECT(\"c\" & (VLOOKUP(Switch!$D$26,$F$2:$G$44,2,FALSE)+ROW()-2))=Switch!$D$26,INDIRECT(\"a\" & (VLOOKUP(Switch!$D$26,$F$2:$G$44,2,FALSE)+ROW()-2)),\"\")","v":{"$error":"#N/A"}},{"$f":"IF(INDIRECT(\"c\" & (VLOOKUP(Switch!$D$27,$F$2:$G$44,2,FALSE)+ROW()-2))=Switch!$D$27,INDIRECT(\"a\" & (VLOOKUP(Switch!$D$27,$F$2:$G$44,2,FALSE)+ROW()-2)),\"\")","v":{"$error":"#N/A"}},{"$f":"IF(INDIRECT(\"c\" & (VLOOKUP(Switch!$D$28,$F$2:$G$44,2,FALSE)+ROW()-2))=Switch!$D$28,INDIRECT(\"a\" & (VLOOKUP(Switch!$D$28,$F$2:$G$44,2,FALSE)+ROW()-2)),\"\")","v":{"$error":"#N/A"}},{"$f":"IF(INDIRECT(\"c\" & (VLOOKUP(Switch!$D$29,$F$2:$G$44,2,FALSE)+ROW()-2))=Switch!$D$29,INDIRECT(\"a\" & (VLOOKUP(Switch!$D$29,$F$2:$G$44,2,FALSE)+ROW()-2)),\"\")","v":{"$error":"#N/A"}},{"$f":"IF(INDIRECT(\"c\" & (VLOOKUP(Switch!$D$30,$F$2:$G$44,2,FALSE)+ROW()-2))=Switch!$D$30,INDIRECT(\"a\" & (VLOOKUP(Switch!$D$30,$F$2:$G$44,2,FALSE)+ROW()-2)),\"\")","v":{"$error":"#N/A"}},{"$f":"IF(INDIRECT(\"c\" & (VLOOKUP(Switch!$D$31,$F$2:$G$44,2,FALSE)+ROW()-2))=Switch!$D$31,INDIRECT(\"a\" & (VLOOKUP(Switch!$D$31,$F$2:$G$44,2,FALSE)+ROW()-2)),\"\")","v":{"$error":"#N/A"}},{"$f":"IF(INDIRECT(\"c\" & (VLOOKUP(Switch!$D$32,$F$2:$G$44,2,FALSE)+ROW()-2))=Switch!$D$32,INDIRECT(\"a\" & (VLOOKUP(Switch!$D$32,$F$2:$G$44,2,FALSE)+ROW()-2)),\"\")","v":{"$error":"#N/A"}},{"$f":"IF(INDIRECT(\"c\" & (VLOOKUP(Switch!$D$33,$F$2:$G$44,2,FALSE)+ROW()-2))=Switch!$D$33,INDIRECT(\"a\" & (VLOOKUP(Switch!$D$33,$F$2:$G$44,2,FALSE)+ROW()-2)),\"\")","v":{"$error":"#N/A"}},{"$f":"IF(INDIRECT(\"c\" & (VLOOKUP(Switch!$D$34,$F$2:$G$44,2,FALSE)+ROW()-2))=Switch!$D$34,INDIRECT(\"a\" & (VLOOKUP(Switch!$D$34,$F$2:$G$44,2,FALSE)+ROW()-2)),\"\")","v":{"$error":"#N/A"}},{"$f":"IF(INDIRECT(\"c\" & (VLOOKUP(Switch!$D$35,$F$2:$G$44,2,FALSE)+ROW()-2))=Switch!$D$35,INDIRECT(\"a\" & (VLOOKUP(Switch!$D$35,$F$2:$G$44,2,FALSE)+ROW()-2)),\"\")","v":{"$error":"#N/A"}},{"$f":"IF(INDIRECT(\"c\" & (VLOOKUP(Switch!$D$36,$F$2:$G$44,2,FALSE)+ROW()-2))=Switch!$D$36,INDIRECT(\"a\" & (VLOOKUP(Switch!$D$36,$F$2:$G$44,2,FALSE)+ROW()-2)),\"\")","v":{"$error":"#N/A"}},{"$f":"IF(INDIRECT(\"c\" & (VLOOKUP(Switch!$D$37,$F$2:$G$44,2,FALSE)+ROW()-2))=Switch!$D$37,INDIRECT(\"a\" & (VLOOKUP(Switch!$D$37,$F$2:$G$44,2,FALSE)+ROW()-2)),\"\")","v":{"$error":"#N/A"}},{"$f":"IF(INDIRECT(\"c\" & (VLOOKUP(Switch!$D$38,$F$2:$G$44,2,FALSE)+ROW()-2))=Switch!$D$38,INDIRECT(\"a\" & (VLOOKUP(Switch!$D$38,$F$2:$G$44,2,FALSE)+ROW()-2)),\"\")","v":{"$error":"#N/A"}},{"$f":"IF(INDIRECT(\"c\" & (VLOOKUP(Switch!$D$39,$F$2:$G$44,2,FALSE)+ROW()-2))=Switch!$D$39,INDIRECT(\"a\" & (VLOOKUP(Switch!$D$39,$F$2:$G$44,2,FALSE)+ROW()-2)),\"\")","v":{"$error":"#N/A"}},{"$f":"IF(INDIRECT(\"c\" & (VLOOKUP(Switch!$D$40,$F$2:$G$44,2,FALSE)+ROW()-2))=Switch!$D$40,INDIRECT(\"a\" & (VLOOKUP(Switch!$D$40,$F$2:$G$44,2,FALSE)+ROW()-2)),\"\")","v":{"$error":"#N/A"}},{"$f":"IF(INDIRECT(\"c\" & (VLOOKUP(Switch!$D$52,$F$2:$G$44,2,FALSE)+ROW()-2))=Switch!$D$52,INDIRECT(\"a\" & (VLOOKUP(Switch!$D$52,$F$2:$G$44,2,FALSE)+ROW()-2)),\"\")","v":{"$error":"#N/A"}},{"$f":"IF(INDIRECT(\"c\" & (VLOOKUP(Switch!$D$53,$F$2:$G$44,2,FALSE)+ROW()-2))=Switch!$D$53,INDIRECT(\"a\" & (VLOOKUP(Switch!$D$53,$F$2:$G$44,2,FALSE)+ROW()-2)),\"\")","v":{"$error":"#N/A"}},{"$f":"IF(INDIRECT(\"c\" & (VLOOKUP(Switch!$D$54,$F$2:$G$44,2,FALSE)+ROW()-2))=Switch!$D$54,INDIRECT(\"a\" & (VLOOKUP(Switch!$D$54,$F$2:$G$44,2,FALSE)+ROW()-2)),\"\")","v":{"$error":"#N/A"}},{"$f":"IF(INDIRECT(\"c\" & (VLOOKUP(Switch!$D$55,$F$2:$G$44,2,FALSE)+ROW()-2))=Switch!$D$55,INDIRECT(\"a\" & (VLOOKUP(Switch!$D$55,$F$2:$G$44,2,FALSE)+ROW()-2)),\"\")","v":{"$error":"#N/A"}},{"$f":"IF(INDIRECT(\"c\" & (VLOOKUP(Switch!$D$56,$F$2:$G$44,2,FALSE)+ROW()-2))=Switch!$D$56,INDIRECT(\"a\" & (VLOOKUP(Switch!$D$56,$F$2:$G$44,2,FALSE)+ROW()-2)),\"\")","v":{"$error":"#N/A"}},{"$f":"IF(INDIRECT(\"c\" & (VLOOKUP(Switch!$D$57,$F$2:$G$44,2,FALSE)+ROW()-2))=Switch!$D$57,INDIRECT(\"a\" & (VLOOKUP(Switch!$D$57,$F$2:$G$44,2,FALSE)+ROW()-2)),\"\")","v":{"$error":"#N/A"}},{"$f":"IF(INDIRECT(\"c\" & (VLOOKUP(Switch!$D$58,$F$2:$G$44,2,FALSE)+ROW()-2))=Switch!$D$58,INDIRECT(\"a\" & (VLOOKUP(Switch!$D$58,$F$2:$G$44,2,FALSE)+ROW()-2)),\"\")","v":{"$error":"#N/A"}},{"$f":"IF(INDIRECT(\"c\" & (VLOOKUP(Switch!$D$59,$F$2:$G$44,2,FALSE)+ROW()-2))=Switch!$D$59,INDIRECT(\"a\" & (VLOOKUP(Switch!$D$59,$F$2:$G$44,2,FALSE)+ROW()-2)),\"\")","v":{"$error":"#N/A"}},{"$f":"IF(INDIRECT(\"c\" & (VLOOKUP(Switch!$D$60,$F$2:$G$44,2,FALSE)+ROW()-2))=Switch!$D$60,INDIRECT(\"a\" & (VLOOKUP(Switch!$D$60,$F$2:$G$44,2,FALSE)+ROW()-2)),\"\")","v":{"$error":"#N/A"}},{"$f":"IF(INDIRECT(\"c\" & (VLOOKUP(Switch!$D$61,$F$2:$G$44,2,FALSE)+ROW()-2))=Switch!$D$61,INDIRECT(\"a\" & (VLOOKUP(Switch!$D$61,$F$2:$G$44,2,FALSE)+ROW()-2)),\"\")","v":{"$error":"#N/A"}},{"$f":"IF(INDIRECT(\"c\" & (VLOOKUP(Switch!$D$62,$F$2:$G$44,2,FALSE)+ROW()-2))=Switch!$D$62,INDIRECT(\"a\" & (VLOOKUP(Switch!$D$62,$F$2:$G$44,2,FALSE)+ROW()-2)),\"\")","v":{"$error":"#N/A"}},{"$f":"IF(INDIRECT(\"c\" & (VLOOKUP(Switch!$D$63,$F$2:$G$44,2,FALSE)+ROW()-2))=Switch!$D$63,INDIRECT(\"a\" & (VLOOKUP(Switch!$D$63,$F$2:$G$44,2,FALSE)+ROW()-2)),\"\")","v":{"$error":"#N/A"}},{"$f":"IF(INDIRECT(\"c\" & (VLOOKUP(Switch!$D$64,$F$2:$G$44,2,FALSE)+ROW()-2))=Switch!$D$64,INDIRECT(\"a\" & (VLOOKUP(Switch!$D$64,$F$2:$G$44,2,FALSE)+ROW()-2)),\"\")","v":{"$error":"#N/A"}},{"$f":"IF(INDIRECT(\"c\" & (VLOOKUP(Switch!$D$65,$F$2:$G$44,2,FALSE)+ROW()-2))=Switch!$D$65,INDIRECT(\"a\" & (VLOOKUP(Switch!$D$65,$F$2:$G$44,2,FALSE)+ROW()-2)),\"\")","v":{"$error":"#N/A"}},{"$f":"IF(INDIRECT(\"c\" & (VLOOKUP(Switch!$D$66,$F$2:$G$44,2,FALSE)+ROW()-2))=Switch!$D$66,INDIRECT(\"a\" & (VLOOKUP(Switch!$D$66,$F$2:$G$44,2,FALSE)+ROW()-2)),\"\")","v":{"$error":"#N/A"}}]
["STANLIB Extra Income Fund  R","STDI","STANLIB Collective Investments",{"$f":"ROW()","v":47},null,null,{"$f":"VLOOKUP(F47,$C$2:$D$637,2,FALSE)","v":{"$error":"#N/A"}},{"$f":"IF(INDIRECT(\"c\" & (VLOOKUP(Switch!$D$26,$F$2:$G$44,2,FALSE)+ROW()-2))=Switch!$D$26,INDIRECT(\"a\" & (VLOOKUP(Switch!$D$26,$F$2:$G$44,2,FALSE)+ROW()-2)),\"\")","v":{"$error":"#N/A"}},{"$f":"IF(INDIRECT(\"c\" & (VLOOKUP(Switch!$D$27,$F$2:$G$44,2,FALSE)+ROW()-2))=Switch!$D$27,INDIRECT(\"a\" & (VLOOKUP(Switch!$D$27,$F$2:$G$44,2,FALSE)+ROW()-2)),\"\")","v":{"$error":"#N/A"}},{"$f":"IF(INDIRECT(\"c\" & (VLOOKUP(Switch!$D$28,$F$2:$G$44,2,FALSE)+ROW()-2))=Switch!$D$28,INDIRECT(\"a\" & (VLOOKUP(Switch!$D$28,$F$2:$G$44,2,FALSE)+ROW()-2)),\"\")","v":{"$error":"#N/A"}},{"$f":"IF(INDIRECT(\"c\" & (VLOOKUP(Switch!$D$29,$F$2:$G$44,2,FALSE)+ROW()-2))=Switch!$D$29,INDIRECT(\"a\" & (VLOOKUP(Switch!$D$29,$F$2:$G$44,2,FALSE)+ROW()-2)),\"\")","v":{"$error":"#N/A"}},{"$f":"IF(INDIRECT(\"c\" & (VLOOKUP(Switch!$D$30,$F$2:$G$44,2,FALSE)+ROW()-2))=Switch!$D$30,INDIRECT(\"a\" & (VLOOKUP(Switch!$D$30,$F$2:$G$44,2,FALSE)+ROW()-2)),\"\")","v":{"$error":"#N/A"}},{"$f":"IF(INDIRECT(\"c\" & (VLOOKUP(Switch!$D$31,$F$2:$G$44,2,FALSE)+ROW()-2))=Switch!$D$31,INDIRECT(\"a\" & (VLOOKUP(Switch!$D$31,$F$2:$G$44,2,FALSE)+ROW()-2)),\"\")","v":{"$error":"#N/A"}},{"$f":"IF(INDIRECT(\"c\" & (VLOOKUP(Switch!$D$32,$F$2:$G$44,2,FALSE)+ROW()-2))=Switch!$D$32,INDIRECT(\"a\" & (VLOOKUP(Switch!$D$32,$F$2:$G$44,2,FALSE)+ROW()-2)),\"\")","v":{"$error":"#N/A"}},{"$f":"IF(INDIRECT(\"c\" & (VLOOKUP(Switch!$D$33,$F$2:$G$44,2,FALSE)+ROW()-2))=Switch!$D$33,INDIRECT(\"a\" & (VLOOKUP(Switch!$D$33,$F$2:$G$44,2,FALSE)+ROW()-2)),\"\")","v":{"$error":"#N/A"}},{"$f":"IF(INDIRECT(\"c\" & (VLOOKUP(Switch!$D$34,$F$2:$G$44,2,FALSE)+ROW()-2))=Switch!$D$34,INDIRECT(\"a\" & (VLOOKUP(Switch!$D$34,$F$2:$G$44,2,FALSE)+ROW()-2)),\"\")","v":{"$error":"#N/A"}},{"$f":"IF(INDIRECT(\"c\" & (VLOOKUP(Switch!$D$35,$F$2:$G$44,2,FALSE)+ROW()-2))=Switch!$D$35,INDIRECT(\"a\" & (VLOOKUP(Switch!$D$35,$F$2:$G$44,2,FALSE)+ROW()-2)),\"\")","v":{"$error":"#N/A"}},{"$f":"IF(INDIRECT(\"c\" & (VLOOKUP(Switch!$D$36,$F$2:$G$44,2,FALSE)+ROW()-2))=Switch!$D$36,INDIRECT(\"a\" & (VLOOKUP(Switch!$D$36,$F$2:$G$44,2,FALSE)+ROW()-2)),\"\")","v":{"$error":"#N/A"}},{"$f":"IF(INDIRECT(\"c\" & (VLOOKUP(Switch!$D$37,$F$2:$G$44,2,FALSE)+ROW()-2))=Switch!$D$37,INDIRECT(\"a\" & (VLOOKUP(Switch!$D$37,$F$2:$G$44,2,FALSE)+ROW()-2)),\"\")","v":{"$error":"#N/A"}},{"$f":"IF(INDIRECT(\"c\" & (VLOOKUP(Switch!$D$38,$F$2:$G$44,2,FALSE)+ROW()-2))=Switch!$D$38,INDIRECT(\"a\" & (VLOOKUP(Switch!$D$38,$F$2:$G$44,2,FALSE)+ROW()-2)),\"\")","v":{"$error":"#N/A"}},{"$f":"IF(INDIRECT(\"c\" & (VLOOKUP(Switch!$D$39,$F$2:$G$44,2,FALSE)+ROW()-2))=Switch!$D$39,INDIRECT(\"a\" & (VLOOKUP(Switch!$D$39,$F$2:$G$44,2,FALSE)+ROW()-2)),\"\")","v":{"$error":"#N/A"}},{"$f":"IF(INDIRECT(\"c\" & (VLOOKUP(Switch!$D$40,$F$2:$G$44,2,FALSE)+ROW()-2))=Switch!$D$40,INDIRECT(\"a\" & (VLOOKUP(Switch!$D$40,$F$2:$G$44,2,FALSE)+ROW()-2)),\"\")","v":{"$error":"#N/A"}},{"$f":"IF(INDIRECT(\"c\" & (VLOOKUP(Switch!$D$52,$F$2:$G$44,2,FALSE)+ROW()-2))=Switch!$D$52,INDIRECT(\"a\" & (VLOOKUP(Switch!$D$52,$F$2:$G$44,2,FALSE)+ROW()-2)),\"\")","v":{"$error":"#N/A"}},{"$f":"IF(INDIRECT(\"c\" & (VLOOKUP(Switch!$D$53,$F$2:$G$44,2,FALSE)+ROW()-2))=Switch!$D$53,INDIRECT(\"a\" & (VLOOKUP(Switch!$D$53,$F$2:$G$44,2,FALSE)+ROW()-2)),\"\")","v":{"$error":"#N/A"}},{"$f":"IF(INDIRECT(\"c\" & (VLOOKUP(Switch!$D$54,$F$2:$G$44,2,FALSE)+ROW()-2))=Switch!$D$54,INDIRECT(\"a\" & (VLOOKUP(Switch!$D$54,$F$2:$G$44,2,FALSE)+ROW()-2)),\"\")","v":{"$error":"#N/A"}},{"$f":"IF(INDIRECT(\"c\" & (VLOOKUP(Switch!$D$55,$F$2:$G$44,2,FALSE)+ROW()-2))=Switch!$D$55,INDIRECT(\"a\" & (VLOOKUP(Switch!$D$55,$F$2:$G$44,2,FALSE)+ROW()-2)),\"\")","v":{"$error":"#N/A"}},{"$f":"IF(INDIRECT(\"c\" & (VLOOKUP(Switch!$D$56,$F$2:$G$44,2,FALSE)+ROW()-2))=Switch!$D$56,INDIRECT(\"a\" & (VLOOKUP(Switch!$D$56,$F$2:$G$44,2,FALSE)+ROW()-2)),\"\")","v":{"$error":"#N/A"}},{"$f":"IF(INDIRECT(\"c\" & (VLOOKUP(Switch!$D$57,$F$2:$G$44,2,FALSE)+ROW()-2))=Switch!$D$57,INDIRECT(\"a\" & (VLOOKUP(Switch!$D$57,$F$2:$G$44,2,FALSE)+ROW()-2)),\"\")","v":{"$error":"#N/A"}},{"$f":"IF(INDIRECT(\"c\" & (VLOOKUP(Switch!$D$58,$F$2:$G$44,2,FALSE)+ROW()-2))=Switch!$D$58,INDIRECT(\"a\" & (VLOOKUP(Switch!$D$58,$F$2:$G$44,2,FALSE)+ROW()-2)),\"\")","v":{"$error":"#N/A"}},{"$f":"IF(INDIRECT(\"c\" & (VLOOKUP(Switch!$D$59,$F$2:$G$44,2,FALSE)+ROW()-2))=Switch!$D$59,INDIRECT(\"a\" & (VLOOKUP(Switch!$D$59,$F$2:$G$44,2,FALSE)+ROW()-2)),\"\")","v":{"$error":"#N/A"}},{"$f":"IF(INDIRECT(\"c\" & (VLOOKUP(Switch!$D$60,$F$2:$G$44,2,FALSE)+ROW()-2))=Switch!$D$60,INDIRECT(\"a\" & (VLOOKUP(Switch!$D$60,$F$2:$G$44,2,FALSE)+ROW()-2)),\"\")","v":{"$error":"#N/A"}},{"$f":"IF(INDIRECT(\"c\" & (VLOOKUP(Switch!$D$61,$F$2:$G$44,2,FALSE)+ROW()-2))=Switch!$D$61,INDIRECT(\"a\" & (VLOOKUP(Switch!$D$61,$F$2:$G$44,2,FALSE)+ROW()-2)),\"\")","v":{"$error":"#N/A"}},{"$f":"IF(INDIRECT(\"c\" & (VLOOKUP(Switch!$D$62,$F$2:$G$44,2,FALSE)+ROW()-2))=Switch!$D$62,INDIRECT(\"a\" & (VLOOKUP(Switch!$D$62,$F$2:$G$44,2,FALSE)+ROW()-2)),\"\")","v":{"$error":"#N/A"}},{"$f":"IF(INDIRECT(\"c\" & (VLOOKUP(Switch!$D$63,$F$2:$G$44,2,FALSE)+ROW()-2))=Switch!$D$63,INDIRECT(\"a\" & (VLOOKUP(Switch!$D$63,$F$2:$G$44,2,FALSE)+ROW()-2)),\"\")","v":{"$error":"#N/A"}},{"$f":"IF(INDIRECT(\"c\" & (VLOOKUP(Switch!$D$64,$F$2:$G$44,2,FALSE)+ROW()-2))=Switch!$D$64,INDIRECT(\"a\" & (VLOOKUP(Switch!$D$64,$F$2:$G$44,2,FALSE)+ROW()-2)),\"\")","v":{"$error":"#N/A"}},{"$f":"IF(INDIRECT(\"c\" & (VLOOKUP(Switch!$D$65,$F$2:$G$44,2,FALSE)+ROW()-2))=Switch!$D$65,INDIRECT(\"a\" & (VLOOKUP(Switch!$D$65,$F$2:$G$44,2,FALSE)+ROW()-2)),\"\")","v":{"$error":"#N/A"}},{"$f":"IF(INDIRECT(\"c\" & (VLOOKUP(Switch!$D$66,$F$2:$G$44,2,FALSE)+ROW()-2))=Switch!$D$66,INDIRECT(\"a\" & (VLOOKUP(Switch!$D$66,$F$2:$G$44,2,FALSE)+ROW()-2)),\"\")","v":{"$error":"#N/A"}}]
["STANLIB Flexible Income A","STFA","STANLIB Collective Investments",{"$f":"ROW()","v":48},null,null,{"$f":"VLOOKUP(F48,$C$2:$D$637,2,FALSE)","v":{"$error":"#N/A"}},{"$f":"IF(INDIRECT(\"c\" & (VLOOKUP(Switch!$D$26,$F$2:$G$44,2,FALSE)+ROW()-2))=Switch!$D$26,INDIRECT(\"a\" & (VLOOKUP(Switch!$D$26,$F$2:$G$44,2,FALSE)+ROW()-2)),\"\")","v":{"$error":"#N/A"}},{"$f":"IF(INDIRECT(\"c\" & (VLOOKUP(Switch!$D$27,$F$2:$G$44,2,FALSE)+ROW()-2))=Switch!$D$27,INDIRECT(\"a\" & (VLOOKUP(Switch!$D$27,$F$2:$G$44,2,FALSE)+ROW()-2)),\"\")","v":{"$error":"#N/A"}},{"$f":"IF(INDIRECT(\"c\" & (VLOOKUP(Switch!$D$28,$F$2:$G$44,2,FALSE)+ROW()-2))=Switch!$D$28,INDIRECT(\"a\" & (VLOOKUP(Switch!$D$28,$F$2:$G$44,2,FALSE)+ROW()-2)),\"\")","v":{"$error":"#N/A"}},{"$f":"IF(INDIRECT(\"c\" & (VLOOKUP(Switch!$D$29,$F$2:$G$44,2,FALSE)+ROW()-2))=Switch!$D$29,INDIRECT(\"a\" & (VLOOKUP(Switch!$D$29,$F$2:$G$44,2,FALSE)+ROW()-2)),\"\")","v":{"$error":"#N/A"}},{"$f":"IF(INDIRECT(\"c\" & (VLOOKUP(Switch!$D$30,$F$2:$G$44,2,FALSE)+ROW()-2))=Switch!$D$30,INDIRECT(\"a\" & (VLOOKUP(Switch!$D$30,$F$2:$G$44,2,FALSE)+ROW()-2)),\"\")","v":{"$error":"#N/A"}},{"$f":"IF(INDIRECT(\"c\" & (VLOOKUP(Switch!$D$31,$F$2:$G$44,2,FALSE)+ROW()-2))=Switch!$D$31,INDIRECT(\"a\" & (VLOOKUP(Switch!$D$31,$F$2:$G$44,2,FALSE)+ROW()-2)),\"\")","v":{"$error":"#N/A"}},{"$f":"IF(INDIRECT(\"c\" & (VLOOKUP(Switch!$D$32,$F$2:$G$44,2,FALSE)+ROW()-2))=Switch!$D$32,INDIRECT(\"a\" & (VLOOKUP(Switch!$D$32,$F$2:$G$44,2,FALSE)+ROW()-2)),\"\")","v":{"$error":"#N/A"}},{"$f":"IF(INDIRECT(\"c\" & (VLOOKUP(Switch!$D$33,$F$2:$G$44,2,FALSE)+ROW()-2))=Switch!$D$33,INDIRECT(\"a\" & (VLOOKUP(Switch!$D$33,$F$2:$G$44,2,FALSE)+ROW()-2)),\"\")","v":{"$error":"#N/A"}},{"$f":"IF(INDIRECT(\"c\" & (VLOOKUP(Switch!$D$34,$F$2:$G$44,2,FALSE)+ROW()-2))=Switch!$D$34,INDIRECT(\"a\" & (VLOOKUP(Switch!$D$34,$F$2:$G$44,2,FALSE)+ROW()-2)),\"\")","v":{"$error":"#N/A"}},{"$f":"IF(INDIRECT(\"c\" & (VLOOKUP(Switch!$D$35,$F$2:$G$44,2,FALSE)+ROW()-2))=Switch!$D$35,INDIRECT(\"a\" & (VLOOKUP(Switch!$D$35,$F$2:$G$44,2,FALSE)+ROW()-2)),\"\")","v":{"$error":"#N/A"}},{"$f":"IF(INDIRECT(\"c\" & (VLOOKUP(Switch!$D$36,$F$2:$G$44,2,FALSE)+ROW()-2))=Switch!$D$36,INDIRECT(\"a\" & (VLOOKUP(Switch!$D$36,$F$2:$G$44,2,FALSE)+ROW()-2)),\"\")","v":{"$error":"#N/A"}},{"$f":"IF(INDIRECT(\"c\" & (VLOOKUP(Switch!$D$37,$F$2:$G$44,2,FALSE)+ROW()-2))=Switch!$D$37,INDIRECT(\"a\" & (VLOOKUP(Switch!$D$37,$F$2:$G$44,2,FALSE)+ROW()-2)),\"\")","v":{"$error":"#N/A"}},{"$f":"IF(INDIRECT(\"c\" & (VLOOKUP(Switch!$D$38,$F$2:$G$44,2,FALSE)+ROW()-2))=Switch!$D$38,INDIRECT(\"a\" & (VLOOKUP(Switch!$D$38,$F$2:$G$44,2,FALSE)+ROW()-2)),\"\")","v":{"$error":"#N/A"}},{"$f":"IF(INDIRECT(\"c\" & (VLOOKUP(Switch!$D$39,$F$2:$G$44,2,FALSE)+ROW()-2))=Switch!$D$39,INDIRECT(\"a\" & (VLOOKUP(Switch!$D$39,$F$2:$G$44,2,FALSE)+ROW()-2)),\"\")","v":{"$error":"#N/A"}},{"$f":"IF(INDIRECT(\"c\" & (VLOOKUP(Switch!$D$40,$F$2:$G$44,2,FALSE)+ROW()-2))=Switch!$D$40,INDIRECT(\"a\" & (VLOOKUP(Switch!$D$40,$F$2:$G$44,2,FALSE)+ROW()-2)),\"\")","v":{"$error":"#N/A"}},{"$f":"IF(INDIRECT(\"c\" & (VLOOKUP(Switch!$D$52,$F$2:$G$44,2,FALSE)+ROW()-2))=Switch!$D$52,INDIRECT(\"a\" & (VLOOKUP(Switch!$D$52,$F$2:$G$44,2,FALSE)+ROW()-2)),\"\")","v":{"$error":"#N/A"}},{"$f":"IF(INDIRECT(\"c\" & (VLOOKUP(Switch!$D$53,$F$2:$G$44,2,FALSE)+ROW()-2))=Switch!$D$53,INDIRECT(\"a\" & (VLOOKUP(Switch!$D$53,$F$2:$G$44,2,FALSE)+ROW()-2)),\"\")","v":{"$error":"#N/A"}},{"$f":"IF(INDIRECT(\"c\" & (VLOOKUP(Switch!$D$54,$F$2:$G$44,2,FALSE)+ROW()-2))=Switch!$D$54,INDIRECT(\"a\" & (VLOOKUP(Switch!$D$54,$F$2:$G$44,2,FALSE)+ROW()-2)),\"\")","v":{"$error":"#N/A"}},{"$f":"IF(INDIRECT(\"c\" & (VLOOKUP(Switch!$D$55,$F$2:$G$44,2,FALSE)+ROW()-2))=Switch!$D$55,INDIRECT(\"a\" & (VLOOKUP(Switch!$D$55,$F$2:$G$44,2,FALSE)+ROW()-2)),\"\")","v":{"$error":"#N/A"}},{"$f":"IF(INDIRECT(\"c\" & (VLOOKUP(Switch!$D$56,$F$2:$G$44,2,FALSE)+ROW()-2))=Switch!$D$56,INDIRECT(\"a\" & (VLOOKUP(Switch!$D$56,$F$2:$G$44,2,FALSE)+ROW()-2)),\"\")","v":{"$error":"#N/A"}},{"$f":"IF(INDIRECT(\"c\" & (VLOOKUP(Switch!$D$57,$F$2:$G$44,2,FALSE)+ROW()-2))=Switch!$D$57,INDIRECT(\"a\" & (VLOOKUP(Switch!$D$57,$F$2:$G$44,2,FALSE)+ROW()-2)),\"\")","v":{"$error":"#N/A"}},{"$f":"IF(INDIRECT(\"c\" & (VLOOKUP(Switch!$D$58,$F$2:$G$44,2,FALSE)+ROW()-2))=Switch!$D$58,INDIRECT(\"a\" & (VLOOKUP(Switch!$D$58,$F$2:$G$44,2,FALSE)+ROW()-2)),\"\")","v":{"$error":"#N/A"}},{"$f":"IF(INDIRECT(\"c\" & (VLOOKUP(Switch!$D$59,$F$2:$G$44,2,FALSE)+ROW()-2))=Switch!$D$59,INDIRECT(\"a\" & (VLOOKUP(Switch!$D$59,$F$2:$G$44,2,FALSE)+ROW()-2)),\"\")","v":{"$error":"#N/A"}},{"$f":"IF(INDIRECT(\"c\" & (VLOOKUP(Switch!$D$60,$F$2:$G$44,2,FALSE)+ROW()-2))=Switch!$D$60,INDIRECT(\"a\" & (VLOOKUP(Switch!$D$60,$F$2:$G$44,2,FALSE)+ROW()-2)),\"\")","v":{"$error":"#N/A"}},{"$f":"IF(INDIRECT(\"c\" & (VLOOKUP(Switch!$D$61,$F$2:$G$44,2,FALSE)+ROW()-2))=Switch!$D$61,INDIRECT(\"a\" & (VLOOKUP(Switch!$D$61,$F$2:$G$44,2,FALSE)+ROW()-2)),\"\")","v":{"$error":"#N/A"}},{"$f":"IF(INDIRECT(\"c\" & (VLOOKUP(Switch!$D$62,$F$2:$G$44,2,FALSE)+ROW()-2))=Switch!$D$62,INDIRECT(\"a\" & (VLOOKUP(Switch!$D$62,$F$2:$G$44,2,FALSE)+ROW()-2)),\"\")","v":{"$error":"#N/A"}},{"$f":"IF(INDIRECT(\"c\" & (VLOOKUP(Switch!$D$63,$F$2:$G$44,2,FALSE)+ROW()-2))=Switch!$D$63,INDIRECT(\"a\" & (VLOOKUP(Switch!$D$63,$F$2:$G$44,2,FALSE)+ROW()-2)),\"\")","v":{"$error":"#N/A"}},{"$f":"IF(INDIRECT(\"c\" & (VLOOKUP(Switch!$D$64,$F$2:$G$44,2,FALSE)+ROW()-2))=Switch!$D$64,INDIRECT(\"a\" & (VLOOKUP(Switch!$D$64,$F$2:$G$44,2,FALSE)+ROW()-2)),\"\")","v":{"$error":"#N/A"}},{"$f":"IF(INDIRECT(\"c\" & (VLOOKUP(Switch!$D$65,$F$2:$G$44,2,FALSE)+ROW()-2))=Switch!$D$65,INDIRECT(\"a\" & (VLOOKUP(Switch!$D$65,$F$2:$G$44,2,FALSE)+ROW()-2)),\"\")","v":{"$error":"#N/A"}},{"$f":"IF(INDIRECT(\"c\" & (VLOOKUP(Switch!$D$66,$F$2:$G$44,2,FALSE)+ROW()-2))=Switch!$D$66,INDIRECT(\"a\" & (VLOOKUP(Switch!$D$66,$F$2:$G$44,2,FALSE)+ROW()-2)),\"\")","v":{"$error":"#N/A"}}]
["STANLIB Flexible Income Fund B1","STFA","STANLIB Collective Investments",{"$f":"ROW()","v":49},null,null,{"$f":"VLOOKUP(F49,$C$2:$D$637,2,FALSE)","v":{"$error":"#N/A"}},{"$f":"IF(INDIRECT(\"c\" & (VLOOKUP(Switch!$D$26,$F$2:$G$44,2,FALSE)+ROW()-2))=Switch!$D$26,INDIRECT(\"a\" & (VLOOKUP(Switch!$D$26,$F$2:$G$44,2,FALSE)+ROW()-2)),\"\")","v":{"$error":"#N/A"}},{"$f":"IF(INDIRECT(\"c\" & (VLOOKUP(Switch!$D$27,$F$2:$G$44,2,FALSE)+ROW()-2))=Switch!$D$27,INDIRECT(\"a\" & (VLOOKUP(Switch!$D$27,$F$2:$G$44,2,FALSE)+ROW()-2)),\"\")","v":{"$error":"#N/A"}},{"$f":"IF(INDIRECT(\"c\" & (VLOOKUP(Switch!$D$28,$F$2:$G$44,2,FALSE)+ROW()-2))=Switch!$D$28,INDIRECT(\"a\" & (VLOOKUP(Switch!$D$28,$F$2:$G$44,2,FALSE)+ROW()-2)),\"\")","v":{"$error":"#N/A"}},{"$f":"IF(INDIRECT(\"c\" & (VLOOKUP(Switch!$D$29,$F$2:$G$44,2,FALSE)+ROW()-2))=Switch!$D$29,INDIRECT(\"a\" & (VLOOKUP(Switch!$D$29,$F$2:$G$44,2,FALSE)+ROW()-2)),\"\")","v":{"$error":"#N/A"}},{"$f":"IF(INDIRECT(\"c\" & (VLOOKUP(Switch!$D$30,$F$2:$G$44,2,FALSE)+ROW()-2))=Switch!$D$30,INDIRECT(\"a\" & (VLOOKUP(Switch!$D$30,$F$2:$G$44,2,FALSE)+ROW()-2)),\"\")","v":{"$error":"#N/A"}},{"$f":"IF(INDIRECT(\"c\" & (VLOOKUP(Switch!$D$31,$F$2:$G$44,2,FALSE)+ROW()-2))=Switch!$D$31,INDIRECT(\"a\" & (VLOOKUP(Switch!$D$31,$F$2:$G$44,2,FALSE)+ROW()-2)),\"\")","v":{"$error":"#N/A"}},{"$f":"IF(INDIRECT(\"c\" & (VLOOKUP(Switch!$D$32,$F$2:$G$44,2,FALSE)+ROW()-2))=Switch!$D$32,INDIRECT(\"a\" & (VLOOKUP(Switch!$D$32,$F$2:$G$44,2,FALSE)+ROW()-2)),\"\")","v":{"$error":"#N/A"}},{"$f":"IF(INDIRECT(\"c\" & (VLOOKUP(Switch!$D$33,$F$2:$G$44,2,FALSE)+ROW()-2))=Switch!$D$33,INDIRECT(\"a\" & (VLOOKUP(Switch!$D$33,$F$2:$G$44,2,FALSE)+ROW()-2)),\"\")","v":{"$error":"#N/A"}},{"$f":"IF(INDIRECT(\"c\" & (VLOOKUP(Switch!$D$34,$F$2:$G$44,2,FALSE)+ROW()-2))=Switch!$D$34,INDIRECT(\"a\" & (VLOOKUP(Switch!$D$34,$F$2:$G$44,2,FALSE)+ROW()-2)),\"\")","v":{"$error":"#N/A"}},{"$f":"IF(INDIRECT(\"c\" & (VLOOKUP(Switch!$D$35,$F$2:$G$44,2,FALSE)+ROW()-2))=Switch!$D$35,INDIRECT(\"a\" & (VLOOKUP(Switch!$D$35,$F$2:$G$44,2,FALSE)+ROW()-2)),\"\")","v":{"$error":"#N/A"}},{"$f":"IF(INDIRECT(\"c\" & (VLOOKUP(Switch!$D$36,$F$2:$G$44,2,FALSE)+ROW()-2))=Switch!$D$36,INDIRECT(\"a\" & (VLOOKUP(Switch!$D$36,$F$2:$G$44,2,FALSE)+ROW()-2)),\"\")","v":{"$error":"#N/A"}},{"$f":"IF(INDIRECT(\"c\" & (VLOOKUP(Switch!$D$37,$F$2:$G$44,2,FALSE)+ROW()-2))=Switch!$D$37,INDIRECT(\"a\" & (VLOOKUP(Switch!$D$37,$F$2:$G$44,2,FALSE)+ROW()-2)),\"\")","v":{"$error":"#N/A"}},{"$f":"IF(INDIRECT(\"c\" & (VLOOKUP(Switch!$D$38,$F$2:$G$44,2,FALSE)+ROW()-2))=Switch!$D$38,INDIRECT(\"a\" & (VLOOKUP(Switch!$D$38,$F$2:$G$44,2,FALSE)+ROW()-2)),\"\")","v":{"$error":"#N/A"}},{"$f":"IF(INDIRECT(\"c\" & (VLOOKUP(Switch!$D$39,$F$2:$G$44,2,FALSE)+ROW()-2))=Switch!$D$39,INDIRECT(\"a\" & (VLOOKUP(Switch!$D$39,$F$2:$G$44,2,FALSE)+ROW()-2)),\"\")","v":{"$error":"#N/A"}},{"$f":"IF(INDIRECT(\"c\" & (VLOOKUP(Switch!$D$40,$F$2:$G$44,2,FALSE)+ROW()-2))=Switch!$D$40,INDIRECT(\"a\" & (VLOOKUP(Switch!$D$40,$F$2:$G$44,2,FALSE)+ROW()-2)),\"\")","v":{"$error":"#N/A"}},{"$f":"IF(INDIRECT(\"c\" & (VLOOKUP(Switch!$D$52,$F$2:$G$44,2,FALSE)+ROW()-2))=Switch!$D$52,INDIRECT(\"a\" & (VLOOKUP(Switch!$D$52,$F$2:$G$44,2,FALSE)+ROW()-2)),\"\")","v":{"$error":"#N/A"}},{"$f":"IF(INDIRECT(\"c\" & (VLOOKUP(Switch!$D$53,$F$2:$G$44,2,FALSE)+ROW()-2))=Switch!$D$53,INDIRECT(\"a\" & (VLOOKUP(Switch!$D$53,$F$2:$G$44,2,FALSE)+ROW()-2)),\"\")","v":{"$error":"#N/A"}},{"$f":"IF(INDIRECT(\"c\" & (VLOOKUP(Switch!$D$54,$F$2:$G$44,2,FALSE)+ROW()-2))=Switch!$D$54,INDIRECT(\"a\" & (VLOOKUP(Switch!$D$54,$F$2:$G$44,2,FALSE)+ROW()-2)),\"\")","v":{"$error":"#N/A"}},{"$f":"IF(INDIRECT(\"c\" & (VLOOKUP(Switch!$D$55,$F$2:$G$44,2,FALSE)+ROW()-2))=Switch!$D$55,INDIRECT(\"a\" & (VLOOKUP(Switch!$D$55,$F$2:$G$44,2,FALSE)+ROW()-2)),\"\")","v":{"$error":"#N/A"}},{"$f":"IF(INDIRECT(\"c\" & (VLOOKUP(Switch!$D$56,$F$2:$G$44,2,FALSE)+ROW()-2))=Switch!$D$56,INDIRECT(\"a\" & (VLOOKUP(Switch!$D$56,$F$2:$G$44,2,FALSE)+ROW()-2)),\"\")","v":{"$error":"#N/A"}},{"$f":"IF(INDIRECT(\"c\" & (VLOOKUP(Switch!$D$57,$F$2:$G$44,2,FALSE)+ROW()-2))=Switch!$D$57,INDIRECT(\"a\" & (VLOOKUP(Switch!$D$57,$F$2:$G$44,2,FALSE)+ROW()-2)),\"\")","v":{"$error":"#N/A"}},{"$f":"IF(INDIRECT(\"c\" & (VLOOKUP(Switch!$D$58,$F$2:$G$44,2,FALSE)+ROW()-2))=Switch!$D$58,INDIRECT(\"a\" & (VLOOKUP(Switch!$D$58,$F$2:$G$44,2,FALSE)+ROW()-2)),\"\")","v":{"$error":"#N/A"}},{"$f":"IF(INDIRECT(\"c\" & (VLOOKUP(Switch!$D$59,$F$2:$G$44,2,FALSE)+ROW()-2))=Switch!$D$59,INDIRECT(\"a\" & (VLOOKUP(Switch!$D$59,$F$2:$G$44,2,FALSE)+ROW()-2)),\"\")","v":{"$error":"#N/A"}},{"$f":"IF(INDIRECT(\"c\" & (VLOOKUP(Switch!$D$60,$F$2:$G$44,2,FALSE)+ROW()-2))=Switch!$D$60,INDIRECT(\"a\" & (VLOOKUP(Switch!$D$60,$F$2:$G$44,2,FALSE)+ROW()-2)),\"\")","v":{"$error":"#N/A"}},{"$f":"IF(INDIRECT(\"c\" & (VLOOKUP(Switch!$D$61,$F$2:$G$44,2,FALSE)+ROW()-2))=Switch!$D$61,INDIRECT(\"a\" & (VLOOKUP(Switch!$D$61,$F$2:$G$44,2,FALSE)+ROW()-2)),\"\")","v":{"$error":"#N/A"}},{"$f":"IF(INDIRECT(\"c\" & (VLOOKUP(Switch!$D$62,$F$2:$G$44,2,FALSE)+ROW()-2))=Switch!$D$62,INDIRECT(\"a\" & (VLOOKUP(Switch!$D$62,$F$2:$G$44,2,FALSE)+ROW()-2)),\"\")","v":{"$error":"#N/A"}},{"$f":"IF(INDIRECT(\"c\" & (VLOOKUP(Switch!$D$63,$F$2:$G$44,2,FALSE)+ROW()-2))=Switch!$D$63,INDIRECT(\"a\" & (VLOOKUP(Switch!$D$63,$F$2:$G$44,2,FALSE)+ROW()-2)),\"\")","v":{"$error":"#N/A"}},{"$f":"IF(INDIRECT(\"c\" & (VLOOKUP(Switch!$D$64,$F$2:$G$44,2,FALSE)+ROW()-2))=Switch!$D$64,INDIRECT(\"a\" & (VLOOKUP(Switch!$D$64,$F$2:$G$44,2,FALSE)+ROW()-2)),\"\")","v":{"$error":"#N/A"}},{"$f":"IF(INDIRECT(\"c\" & (VLOOKUP(Switch!$D$65,$F$2:$G$44,2,FALSE)+ROW()-2))=Switch!$D$65,INDIRECT(\"a\" & (VLOOKUP(Switch!$D$65,$F$2:$G$44,2,FALSE)+ROW()-2)),\"\")","v":{"$error":"#N/A"}},{"$f":"IF(INDIRECT(\"c\" & (VLOOKUP(Switch!$D$66,$F$2:$G$44,2,FALSE)+ROW()-2))=Switch!$D$66,INDIRECT(\"a\" & (VLOOKUP(Switch!$D$66,$F$2:$G$44,2,FALSE)+ROW()-2)),\"\")","v":{"$error":"#N/A"}}]
["STANLIB Global Balanced Cautious Feeder Fund B3","SGCB3","STANLIB Collective Investments",{"$f":"ROW()","v":50},null,null,{"$f":"VLOOKUP(F50,$C$2:$D$637,2,FALSE)","v":{"$error":"#N/A"}},{"$f":"IF(INDIRECT(\"c\" & (VLOOKUP(Switch!$D$26,$F$2:$G$44,2,FALSE)+ROW()-2))=Switch!$D$26,INDIRECT(\"a\" & (VLOOKUP(Switch!$D$26,$F$2:$G$44,2,FALSE)+ROW()-2)),\"\")","v":{"$error":"#N/A"}},{"$f":"IF(INDIRECT(\"c\" & (VLOOKUP(Switch!$D$27,$F$2:$G$44,2,FALSE)+ROW()-2))=Switch!$D$27,INDIRECT(\"a\" & (VLOOKUP(Switch!$D$27,$F$2:$G$44,2,FALSE)+ROW()-2)),\"\")","v":{"$error":"#N/A"}},{"$f":"IF(INDIRECT(\"c\" & (VLOOKUP(Switch!$D$28,$F$2:$G$44,2,FALSE)+ROW()-2))=Switch!$D$28,INDIRECT(\"a\" & (VLOOKUP(Switch!$D$28,$F$2:$G$44,2,FALSE)+ROW()-2)),\"\")","v":{"$error":"#N/A"}},{"$f":"IF(INDIRECT(\"c\" & (VLOOKUP(Switch!$D$29,$F$2:$G$44,2,FALSE)+ROW()-2))=Switch!$D$29,INDIRECT(\"a\" & (VLOOKUP(Switch!$D$29,$F$2:$G$44,2,FALSE)+ROW()-2)),\"\")","v":{"$error":"#N/A"}},{"$f":"IF(INDIRECT(\"c\" & (VLOOKUP(Switch!$D$30,$F$2:$G$44,2,FALSE)+ROW()-2))=Switch!$D$30,INDIRECT(\"a\" & (VLOOKUP(Switch!$D$30,$F$2:$G$44,2,FALSE)+ROW()-2)),\"\")","v":{"$error":"#N/A"}},{"$f":"IF(INDIRECT(\"c\" & (VLOOKUP(Switch!$D$31,$F$2:$G$44,2,FALSE)+ROW()-2))=Switch!$D$31,INDIRECT(\"a\" & (VLOOKUP(Switch!$D$31,$F$2:$G$44,2,FALSE)+ROW()-2)),\"\")","v":{"$error":"#N/A"}},{"$f":"IF(INDIRECT(\"c\" & (VLOOKUP(Switch!$D$32,$F$2:$G$44,2,FALSE)+ROW()-2))=Switch!$D$32,INDIRECT(\"a\" & (VLOOKUP(Switch!$D$32,$F$2:$G$44,2,FALSE)+ROW()-2)),\"\")","v":{"$error":"#N/A"}},{"$f":"IF(INDIRECT(\"c\" & (VLOOKUP(Switch!$D$33,$F$2:$G$44,2,FALSE)+ROW()-2))=Switch!$D$33,INDIRECT(\"a\" & (VLOOKUP(Switch!$D$33,$F$2:$G$44,2,FALSE)+ROW()-2)),\"\")","v":{"$error":"#N/A"}},{"$f":"IF(INDIRECT(\"c\" & (VLOOKUP(Switch!$D$34,$F$2:$G$44,2,FALSE)+ROW()-2))=Switch!$D$34,INDIRECT(\"a\" & (VLOOKUP(Switch!$D$34,$F$2:$G$44,2,FALSE)+ROW()-2)),\"\")","v":{"$error":"#N/A"}},{"$f":"IF(INDIRECT(\"c\" & (VLOOKUP(Switch!$D$35,$F$2:$G$44,2,FALSE)+ROW()-2))=Switch!$D$35,INDIRECT(\"a\" & (VLOOKUP(Switch!$D$35,$F$2:$G$44,2,FALSE)+ROW()-2)),\"\")","v":{"$error":"#N/A"}},{"$f":"IF(INDIRECT(\"c\" & (VLOOKUP(Switch!$D$36,$F$2:$G$44,2,FALSE)+ROW()-2))=Switch!$D$36,INDIRECT(\"a\" & (VLOOKUP(Switch!$D$36,$F$2:$G$44,2,FALSE)+ROW()-2)),\"\")","v":{"$error":"#N/A"}},{"$f":"IF(INDIRECT(\"c\" & (VLOOKUP(Switch!$D$37,$F$2:$G$44,2,FALSE)+ROW()-2))=Switch!$D$37,INDIRECT(\"a\" & (VLOOKUP(Switch!$D$37,$F$2:$G$44,2,FALSE)+ROW()-2)),\"\")","v":{"$error":"#N/A"}},{"$f":"IF(INDIRECT(\"c\" & (VLOOKUP(Switch!$D$38,$F$2:$G$44,2,FALSE)+ROW()-2))=Switch!$D$38,INDIRECT(\"a\" & (VLOOKUP(Switch!$D$38,$F$2:$G$44,2,FALSE)+ROW()-2)),\"\")","v":{"$error":"#N/A"}},{"$f":"IF(INDIRECT(\"c\" & (VLOOKUP(Switch!$D$39,$F$2:$G$44,2,FALSE)+ROW()-2))=Switch!$D$39,INDIRECT(\"a\" & (VLOOKUP(Switch!$D$39,$F$2:$G$44,2,FALSE)+ROW()-2)),\"\")","v":{"$error":"#N/A"}},{"$f":"IF(INDIRECT(\"c\" & (VLOOKUP(Switch!$D$40,$F$2:$G$44,2,FALSE)+ROW()-2))=Switch!$D$40,INDIRECT(\"a\" & (VLOOKUP(Switch!$D$40,$F$2:$G$44,2,FALSE)+ROW()-2)),\"\")","v":{"$error":"#N/A"}},{"$f":"IF(INDIRECT(\"c\" & (VLOOKUP(Switch!$D$52,$F$2:$G$44,2,FALSE)+ROW()-2))=Switch!$D$52,INDIRECT(\"a\" & (VLOOKUP(Switch!$D$52,$F$2:$G$44,2,FALSE)+ROW()-2)),\"\")","v":{"$error":"#N/A"}},{"$f":"IF(INDIRECT(\"c\" & (VLOOKUP(Switch!$D$53,$F$2:$G$44,2,FALSE)+ROW()-2))=Switch!$D$53,INDIRECT(\"a\" & (VLOOKUP(Switch!$D$53,$F$2:$G$44,2,FALSE)+ROW()-2)),\"\")","v":{"$error":"#N/A"}},{"$f":"IF(INDIRECT(\"c\" & (VLOOKUP(Switch!$D$54,$F$2:$G$44,2,FALSE)+ROW()-2))=Switch!$D$54,INDIRECT(\"a\" & (VLOOKUP(Switch!$D$54,$F$2:$G$44,2,FALSE)+ROW()-2)),\"\")","v":{"$error":"#N/A"}},{"$f":"IF(INDIRECT(\"c\" & (VLOOKUP(Switch!$D$55,$F$2:$G$44,2,FALSE)+ROW()-2))=Switch!$D$55,INDIRECT(\"a\" & (VLOOKUP(Switch!$D$55,$F$2:$G$44,2,FALSE)+ROW()-2)),\"\")","v":{"$error":"#N/A"}},{"$f":"IF(INDIRECT(\"c\" & (VLOOKUP(Switch!$D$56,$F$2:$G$44,2,FALSE)+ROW()-2))=Switch!$D$56,INDIRECT(\"a\" & (VLOOKUP(Switch!$D$56,$F$2:$G$44,2,FALSE)+ROW()-2)),\"\")","v":{"$error":"#N/A"}},{"$f":"IF(INDIRECT(\"c\" & (VLOOKUP(Switch!$D$57,$F$2:$G$44,2,FALSE)+ROW()-2))=Switch!$D$57,INDIRECT(\"a\" & (VLOOKUP(Switch!$D$57,$F$2:$G$44,2,FALSE)+ROW()-2)),\"\")","v":{"$error":"#N/A"}},{"$f":"IF(INDIRECT(\"c\" & (VLOOKUP(Switch!$D$58,$F$2:$G$44,2,FALSE)+ROW()-2))=Switch!$D$58,INDIRECT(\"a\" & (VLOOKUP(Switch!$D$58,$F$2:$G$44,2,FALSE)+ROW()-2)),\"\")","v":{"$error":"#N/A"}},{"$f":"IF(INDIRECT(\"c\" & (VLOOKUP(Switch!$D$59,$F$2:$G$44,2,FALSE)+ROW()-2))=Switch!$D$59,INDIRECT(\"a\" & (VLOOKUP(Switch!$D$59,$F$2:$G$44,2,FALSE)+ROW()-2)),\"\")","v":{"$error":"#N/A"}},{"$f":"IF(INDIRECT(\"c\" & (VLOOKUP(Switch!$D$60,$F$2:$G$44,2,FALSE)+ROW()-2))=Switch!$D$60,INDIRECT(\"a\" & (VLOOKUP(Switch!$D$60,$F$2:$G$44,2,FALSE)+ROW()-2)),\"\")","v":{"$error":"#N/A"}},{"$f":"IF(INDIRECT(\"c\" & (VLOOKUP(Switch!$D$61,$F$2:$G$44,2,FALSE)+ROW()-2))=Switch!$D$61,INDIRECT(\"a\" & (VLOOKUP(Switch!$D$61,$F$2:$G$44,2,FALSE)+ROW()-2)),\"\")","v":{"$error":"#N/A"}},{"$f":"IF(INDIRECT(\"c\" & (VLOOKUP(Switch!$D$62,$F$2:$G$44,2,FALSE)+ROW()-2))=Switch!$D$62,INDIRECT(\"a\" & (VLOOKUP(Switch!$D$62,$F$2:$G$44,2,FALSE)+ROW()-2)),\"\")","v":{"$error":"#N/A"}},{"$f":"IF(INDIRECT(\"c\" & (VLOOKUP(Switch!$D$63,$F$2:$G$44,2,FALSE)+ROW()-2))=Switch!$D$63,INDIRECT(\"a\" & (VLOOKUP(Switch!$D$63,$F$2:$G$44,2,FALSE)+ROW()-2)),\"\")","v":{"$error":"#N/A"}},{"$f":"IF(INDIRECT(\"c\" & (VLOOKUP(Switch!$D$64,$F$2:$G$44,2,FALSE)+ROW()-2))=Switch!$D$64,INDIRECT(\"a\" & (VLOOKUP(Switch!$D$64,$F$2:$G$44,2,FALSE)+ROW()-2)),\"\")","v":{"$error":"#N/A"}},{"$f":"IF(INDIRECT(\"c\" & (VLOOKUP(Switch!$D$65,$F$2:$G$44,2,FALSE)+ROW()-2))=Switch!$D$65,INDIRECT(\"a\" & (VLOOKUP(Switch!$D$65,$F$2:$G$44,2,FALSE)+ROW()-2)),\"\")","v":{"$error":"#N/A"}},{"$f":"IF(INDIRECT(\"c\" & (VLOOKUP(Switch!$D$66,$F$2:$G$44,2,FALSE)+ROW()-2))=Switch!$D$66,INDIRECT(\"a\" & (VLOOKUP(Switch!$D$66,$F$2:$G$44,2,FALSE)+ROW()-2)),\"\")","v":{"$error":"#N/A"}}]
["STANLIB Global Balanced Feeder Fund B3","SGBB3","STANLIB Collective Investments",{"$f":"ROW()","v":51},null,null,{"$f":"VLOOKUP(F51,$C$2:$D$637,2,FALSE)","v":{"$error":"#N/A"}},{"$f":"IF(INDIRECT(\"c\" & (VLOOKUP(Switch!$D$26,$F$2:$G$44,2,FALSE)+ROW()-2))=Switch!$D$26,INDIRECT(\"a\" & (VLOOKUP(Switch!$D$26,$F$2:$G$44,2,FALSE)+ROW()-2)),\"\")","v":{"$error":"#N/A"}},{"$f":"IF(INDIRECT(\"c\" & (VLOOKUP(Switch!$D$27,$F$2:$G$44,2,FALSE)+ROW()-2))=Switch!$D$27,INDIRECT(\"a\" & (VLOOKUP(Switch!$D$27,$F$2:$G$44,2,FALSE)+ROW()-2)),\"\")","v":{"$error":"#N/A"}},{"$f":"IF(INDIRECT(\"c\" & (VLOOKUP(Switch!$D$28,$F$2:$G$44,2,FALSE)+ROW()-2))=Switch!$D$28,INDIRECT(\"a\" & (VLOOKUP(Switch!$D$28,$F$2:$G$44,2,FALSE)+ROW()-2)),\"\")","v":{"$error":"#N/A"}},{"$f":"IF(INDIRECT(\"c\" & (VLOOKUP(Switch!$D$29,$F$2:$G$44,2,FALSE)+ROW()-2))=Switch!$D$29,INDIRECT(\"a\" & (VLOOKUP(Switch!$D$29,$F$2:$G$44,2,FALSE)+ROW()-2)),\"\")","v":{"$error":"#N/A"}},{"$f":"IF(INDIRECT(\"c\" & (VLOOKUP(Switch!$D$30,$F$2:$G$44,2,FALSE)+ROW()-2))=Switch!$D$30,INDIRECT(\"a\" & (VLOOKUP(Switch!$D$30,$F$2:$G$44,2,FALSE)+ROW()-2)),\"\")","v":{"$error":"#N/A"}},{"$f":"IF(INDIRECT(\"c\" & (VLOOKUP(Switch!$D$31,$F$2:$G$44,2,FALSE)+ROW()-2))=Switch!$D$31,INDIRECT(\"a\" & (VLOOKUP(Switch!$D$31,$F$2:$G$44,2,FALSE)+ROW()-2)),\"\")","v":{"$error":"#N/A"}},{"$f":"IF(INDIRECT(\"c\" & (VLOOKUP(Switch!$D$32,$F$2:$G$44,2,FALSE)+ROW()-2))=Switch!$D$32,INDIRECT(\"a\" & (VLOOKUP(Switch!$D$32,$F$2:$G$44,2,FALSE)+ROW()-2)),\"\")","v":{"$error":"#N/A"}},{"$f":"IF(INDIRECT(\"c\" & (VLOOKUP(Switch!$D$33,$F$2:$G$44,2,FALSE)+ROW()-2))=Switch!$D$33,INDIRECT(\"a\" & (VLOOKUP(Switch!$D$33,$F$2:$G$44,2,FALSE)+ROW()-2)),\"\")","v":{"$error":"#N/A"}},{"$f":"IF(INDIRECT(\"c\" & (VLOOKUP(Switch!$D$34,$F$2:$G$44,2,FALSE)+ROW()-2))=Switch!$D$34,INDIRECT(\"a\" & (VLOOKUP(Switch!$D$34,$F$2:$G$44,2,FALSE)+ROW()-2)),\"\")","v":{"$error":"#N/A"}},{"$f":"IF(INDIRECT(\"c\" & (VLOOKUP(Switch!$D$35,$F$2:$G$44,2,FALSE)+ROW()-2))=Switch!$D$35,INDIRECT(\"a\" & (VLOOKUP(Switch!$D$35,$F$2:$G$44,2,FALSE)+ROW()-2)),\"\")","v":{"$error":"#N/A"}},{"$f":"IF(INDIRECT(\"c\" & (VLOOKUP(Switch!$D$36,$F$2:$G$44,2,FALSE)+ROW()-2))=Switch!$D$36,INDIRECT(\"a\" & (VLOOKUP(Switch!$D$36,$F$2:$G$44,2,FALSE)+ROW()-2)),\"\")","v":{"$error":"#N/A"}},{"$f":"IF(INDIRECT(\"c\" & (VLOOKUP(Switch!$D$37,$F$2:$G$44,2,FALSE)+ROW()-2))=Switch!$D$37,INDIRECT(\"a\" & (VLOOKUP(Switch!$D$37,$F$2:$G$44,2,FALSE)+ROW()-2)),\"\")","v":{"$error":"#N/A"}},{"$f":"IF(INDIRECT(\"c\" & (VLOOKUP(Switch!$D$38,$F$2:$G$44,2,FALSE)+ROW()-2))=Switch!$D$38,INDIRECT(\"a\" & (VLOOKUP(Switch!$D$38,$F$2:$G$44,2,FALSE)+ROW()-2)),\"\")","v":{"$error":"#N/A"}},{"$f":"IF(INDIRECT(\"c\" & (VLOOKUP(Switch!$D$39,$F$2:$G$44,2,FALSE)+ROW()-2))=Switch!$D$39,INDIRECT(\"a\" & (VLOOKUP(Switch!$D$39,$F$2:$G$44,2,FALSE)+ROW()-2)),\"\")","v":{"$error":"#N/A"}},{"$f":"IF(INDIRECT(\"c\" & (VLOOKUP(Switch!$D$40,$F$2:$G$44,2,FALSE)+ROW()-2))=Switch!$D$40,INDIRECT(\"a\" & (VLOOKUP(Switch!$D$40,$F$2:$G$44,2,FALSE)+ROW()-2)),\"\")","v":{"$error":"#N/A"}},{"$f":"IF(INDIRECT(\"c\" & (VLOOKUP(Switch!$D$52,$F$2:$G$44,2,FALSE)+ROW()-2))=Switch!$D$52,INDIRECT(\"a\" & (VLOOKUP(Switch!$D$52,$F$2:$G$44,2,FALSE)+ROW()-2)),\"\")","v":{"$error":"#N/A"}},{"$f":"IF(INDIRECT(\"c\" & (VLOOKUP(Switch!$D$53,$F$2:$G$44,2,FALSE)+ROW()-2))=Switch!$D$53,INDIRECT(\"a\" & (VLOOKUP(Switch!$D$53,$F$2:$G$44,2,FALSE)+ROW()-2)),\"\")","v":{"$error":"#N/A"}},{"$f":"IF(INDIRECT(\"c\" & (VLOOKUP(Switch!$D$54,$F$2:$G$44,2,FALSE)+ROW()-2))=Switch!$D$54,INDIRECT(\"a\" & (VLOOKUP(Switch!$D$54,$F$2:$G$44,2,FALSE)+ROW()-2)),\"\")","v":{"$error":"#N/A"}},{"$f":"IF(INDIRECT(\"c\" & (VLOOKUP(Switch!$D$55,$F$2:$G$44,2,FALSE)+ROW()-2))=Switch!$D$55,INDIRECT(\"a\" & (VLOOKUP(Switch!$D$55,$F$2:$G$44,2,FALSE)+ROW()-2)),\"\")","v":{"$error":"#N/A"}},{"$f":"IF(INDIRECT(\"c\" & (VLOOKUP(Switch!$D$56,$F$2:$G$44,2,FALSE)+ROW()-2))=Switch!$D$56,INDIRECT(\"a\" & (VLOOKUP(Switch!$D$56,$F$2:$G$44,2,FALSE)+ROW()-2)),\"\")","v":{"$error":"#N/A"}},{"$f":"IF(INDIRECT(\"c\" & (VLOOKUP(Switch!$D$57,$F$2:$G$44,2,FALSE)+ROW()-2))=Switch!$D$57,INDIRECT(\"a\" & (VLOOKUP(Switch!$D$57,$F$2:$G$44,2,FALSE)+ROW()-2)),\"\")","v":{"$error":"#N/A"}},{"$f":"IF(INDIRECT(\"c\" & (VLOOKUP(Switch!$D$58,$F$2:$G$44,2,FALSE)+ROW()-2))=Switch!$D$58,INDIRECT(\"a\" & (VLOOKUP(Switch!$D$58,$F$2:$G$44,2,FALSE)+ROW()-2)),\"\")","v":{"$error":"#N/A"}},{"$f":"IF(INDIRECT(\"c\" & (VLOOKUP(Switch!$D$59,$F$2:$G$44,2,FALSE)+ROW()-2))=Switch!$D$59,INDIRECT(\"a\" & (VLOOKUP(Switch!$D$59,$F$2:$G$44,2,FALSE)+ROW()-2)),\"\")","v":{"$error":"#N/A"}},{"$f":"IF(INDIRECT(\"c\" & (VLOOKUP(Switch!$D$60,$F$2:$G$44,2,FALSE)+ROW()-2))=Switch!$D$60,INDIRECT(\"a\" & (VLOOKUP(Switch!$D$60,$F$2:$G$44,2,FALSE)+ROW()-2)),\"\")","v":{"$error":"#N/A"}},{"$f":"IF(INDIRECT(\"c\" & (VLOOKUP(Switch!$D$61,$F$2:$G$44,2,FALSE)+ROW()-2))=Switch!$D$61,INDIRECT(\"a\" & (VLOOKUP(Switch!$D$61,$F$2:$G$44,2,FALSE)+ROW()-2)),\"\")","v":{"$error":"#N/A"}},{"$f":"IF(INDIRECT(\"c\" & (VLOOKUP(Switch!$D$62,$F$2:$G$44,2,FALSE)+ROW()-2))=Switch!$D$62,INDIRECT(\"a\" & (VLOOKUP(Switch!$D$62,$F$2:$G$44,2,FALSE)+ROW()-2)),\"\")","v":{"$error":"#N/A"}},{"$f":"IF(INDIRECT(\"c\" & (VLOOKUP(Switch!$D$63,$F$2:$G$44,2,FALSE)+ROW()-2))=Switch!$D$63,INDIRECT(\"a\" & (VLOOKUP(Switch!$D$63,$F$2:$G$44,2,FALSE)+ROW()-2)),\"\")","v":{"$error":"#N/A"}},{"$f":"IF(INDIRECT(\"c\" & (VLOOKUP(Switch!$D$64,$F$2:$G$44,2,FALSE)+ROW()-2))=Switch!$D$64,INDIRECT(\"a\" & (VLOOKUP(Switch!$D$64,$F$2:$G$44,2,FALSE)+ROW()-2)),\"\")","v":{"$error":"#N/A"}},{"$f":"IF(INDIRECT(\"c\" & (VLOOKUP(Switch!$D$65,$F$2:$G$44,2,FALSE)+ROW()-2))=Switch!$D$65,INDIRECT(\"a\" & (VLOOKUP(Switch!$D$65,$F$2:$G$44,2,FALSE)+ROW()-2)),\"\")","v":{"$error":"#N/A"}},{"$f":"IF(INDIRECT(\"c\" & (VLOOKUP(Switch!$D$66,$F$2:$G$44,2,FALSE)+ROW()-2))=Switch!$D$66,INDIRECT(\"a\" & (VLOOKUP(Switch!$D$66,$F$2:$G$44,2,FALSE)+ROW()-2)),\"\")","v":{"$error":"#N/A"}}]
["STANLIB Global Bond Feeder fund B3","SGBFB3","STANLIB Collective Investments",{"$f":"ROW()","v":52},null,null,{"$f":"VLOOKUP(F52,$C$2:$D$637,2,FALSE)","v":{"$error":"#N/A"}},{"$f":"IF(INDIRECT(\"c\" & (VLOOKUP(Switch!$D$26,$F$2:$G$44,2,FALSE)+ROW()-2))=Switch!$D$26,INDIRECT(\"a\" & (VLOOKUP(Switch!$D$26,$F$2:$G$44,2,FALSE)+ROW()-2)),\"\")","v":{"$error":"#N/A"}},{"$f":"IF(INDIRECT(\"c\" & (VLOOKUP(Switch!$D$27,$F$2:$G$44,2,FALSE)+ROW()-2))=Switch!$D$27,INDIRECT(\"a\" & (VLOOKUP(Switch!$D$27,$F$2:$G$44,2,FALSE)+ROW()-2)),\"\")","v":{"$error":"#N/A"}},{"$f":"IF(INDIRECT(\"c\" & (VLOOKUP(Switch!$D$28,$F$2:$G$44,2,FALSE)+ROW()-2))=Switch!$D$28,INDIRECT(\"a\" & (VLOOKUP(Switch!$D$28,$F$2:$G$44,2,FALSE)+ROW()-2)),\"\")","v":{"$error":"#N/A"}},{"$f":"IF(INDIRECT(\"c\" & (VLOOKUP(Switch!$D$29,$F$2:$G$44,2,FALSE)+ROW()-2))=Switch!$D$29,INDIRECT(\"a\" & (VLOOKUP(Switch!$D$29,$F$2:$G$44,2,FALSE)+ROW()-2)),\"\")","v":{"$error":"#N/A"}},{"$f":"IF(INDIRECT(\"c\" & (VLOOKUP(Switch!$D$30,$F$2:$G$44,2,FALSE)+ROW()-2))=Switch!$D$30,INDIRECT(\"a\" & (VLOOKUP(Switch!$D$30,$F$2:$G$44,2,FALSE)+ROW()-2)),\"\")","v":{"$error":"#N/A"}},{"$f":"IF(INDIRECT(\"c\" & (VLOOKUP(Switch!$D$31,$F$2:$G$44,2,FALSE)+ROW()-2))=Switch!$D$31,INDIRECT(\"a\" & (VLOOKUP(Switch!$D$31,$F$2:$G$44,2,FALSE)+ROW()-2)),\"\")","v":{"$error":"#N/A"}},{"$f":"IF(INDIRECT(\"c\" & (VLOOKUP(Switch!$D$32,$F$2:$G$44,2,FALSE)+ROW()-2))=Switch!$D$32,INDIRECT(\"a\" & (VLOOKUP(Switch!$D$32,$F$2:$G$44,2,FALSE)+ROW()-2)),\"\")","v":{"$error":"#N/A"}},{"$f":"IF(INDIRECT(\"c\" & (VLOOKUP(Switch!$D$33,$F$2:$G$44,2,FALSE)+ROW()-2))=Switch!$D$33,INDIRECT(\"a\" & (VLOOKUP(Switch!$D$33,$F$2:$G$44,2,FALSE)+ROW()-2)),\"\")","v":{"$error":"#N/A"}},{"$f":"IF(INDIRECT(\"c\" & (VLOOKUP(Switch!$D$34,$F$2:$G$44,2,FALSE)+ROW()-2))=Switch!$D$34,INDIRECT(\"a\" & (VLOOKUP(Switch!$D$34,$F$2:$G$44,2,FALSE)+ROW()-2)),\"\")","v":{"$error":"#N/A"}},{"$f":"IF(INDIRECT(\"c\" & (VLOOKUP(Switch!$D$35,$F$2:$G$44,2,FALSE)+ROW()-2))=Switch!$D$35,INDIRECT(\"a\" & (VLOOKUP(Switch!$D$35,$F$2:$G$44,2,FALSE)+ROW()-2)),\"\")","v":{"$error":"#N/A"}},{"$f":"IF(INDIRECT(\"c\" & (VLOOKUP(Switch!$D$36,$F$2:$G$44,2,FALSE)+ROW()-2))=Switch!$D$36,INDIRECT(\"a\" & (VLOOKUP(Switch!$D$36,$F$2:$G$44,2,FALSE)+ROW()-2)),\"\")","v":{"$error":"#N/A"}},{"$f":"IF(INDIRECT(\"c\" & (VLOOKUP(Switch!$D$37,$F$2:$G$44,2,FALSE)+ROW()-2))=Switch!$D$37,INDIRECT(\"a\" & (VLOOKUP(Switch!$D$37,$F$2:$G$44,2,FALSE)+ROW()-2)),\"\")","v":{"$error":"#N/A"}},{"$f":"IF(INDIRECT(\"c\" & (VLOOKUP(Switch!$D$38,$F$2:$G$44,2,FALSE)+ROW()-2))=Switch!$D$38,INDIRECT(\"a\" & (VLOOKUP(Switch!$D$38,$F$2:$G$44,2,FALSE)+ROW()-2)),\"\")","v":{"$error":"#N/A"}},{"$f":"IF(INDIRECT(\"c\" & (VLOOKUP(Switch!$D$39,$F$2:$G$44,2,FALSE)+ROW()-2))=Switch!$D$39,INDIRECT(\"a\" & (VLOOKUP(Switch!$D$39,$F$2:$G$44,2,FALSE)+ROW()-2)),\"\")","v":{"$error":"#N/A"}},{"$f":"IF(INDIRECT(\"c\" & (VLOOKUP(Switch!$D$40,$F$2:$G$44,2,FALSE)+ROW()-2))=Switch!$D$40,INDIRECT(\"a\" & (VLOOKUP(Switch!$D$40,$F$2:$G$44,2,FALSE)+ROW()-2)),\"\")","v":{"$error":"#N/A"}},{"$f":"IF(INDIRECT(\"c\" & (VLOOKUP(Switch!$D$52,$F$2:$G$44,2,FALSE)+ROW()-2))=Switch!$D$52,INDIRECT(\"a\" & (VLOOKUP(Switch!$D$52,$F$2:$G$44,2,FALSE)+ROW()-2)),\"\")","v":{"$error":"#N/A"}},{"$f":"IF(INDIRECT(\"c\" & (VLOOKUP(Switch!$D$53,$F$2:$G$44,2,FALSE)+ROW()-2))=Switch!$D$53,INDIRECT(\"a\" & (VLOOKUP(Switch!$D$53,$F$2:$G$44,2,FALSE)+ROW()-2)),\"\")","v":{"$error":"#N/A"}},{"$f":"IF(INDIRECT(\"c\" & (VLOOKUP(Switch!$D$54,$F$2:$G$44,2,FALSE)+ROW()-2))=Switch!$D$54,INDIRECT(\"a\" & (VLOOKUP(Switch!$D$54,$F$2:$G$44,2,FALSE)+ROW()-2)),\"\")","v":{"$error":"#N/A"}},{"$f":"IF(INDIRECT(\"c\" & (VLOOKUP(Switch!$D$55,$F$2:$G$44,2,FALSE)+ROW()-2))=Switch!$D$55,INDIRECT(\"a\" & (VLOOKUP(Switch!$D$55,$F$2:$G$44,2,FALSE)+ROW()-2)),\"\")","v":{"$error":"#N/A"}},{"$f":"IF(INDIRECT(\"c\" & (VLOOKUP(Switch!$D$56,$F$2:$G$44,2,FALSE)+ROW()-2))=Switch!$D$56,INDIRECT(\"a\" & (VLOOKUP(Switch!$D$56,$F$2:$G$44,2,FALSE)+ROW()-2)),\"\")","v":{"$error":"#N/A"}},{"$f":"IF(INDIRECT(\"c\" & (VLOOKUP(Switch!$D$57,$F$2:$G$44,2,FALSE)+ROW()-2))=Switch!$D$57,INDIRECT(\"a\" & (VLOOKUP(Switch!$D$57,$F$2:$G$44,2,FALSE)+ROW()-2)),\"\")","v":{"$error":"#N/A"}},{"$f":"IF(INDIRECT(\"c\" & (VLOOKUP(Switch!$D$58,$F$2:$G$44,2,FALSE)+ROW()-2))=Switch!$D$58,INDIRECT(\"a\" & (VLOOKUP(Switch!$D$58,$F$2:$G$44,2,FALSE)+ROW()-2)),\"\")","v":{"$error":"#N/A"}},{"$f":"IF(INDIRECT(\"c\" & (VLOOKUP(Switch!$D$59,$F$2:$G$44,2,FALSE)+ROW()-2))=Switch!$D$59,INDIRECT(\"a\" & (VLOOKUP(Switch!$D$59,$F$2:$G$44,2,FALSE)+ROW()-2)),\"\")","v":{"$error":"#N/A"}},{"$f":"IF(INDIRECT(\"c\" & (VLOOKUP(Switch!$D$60,$F$2:$G$44,2,FALSE)+ROW()-2))=Switch!$D$60,INDIRECT(\"a\" & (VLOOKUP(Switch!$D$60,$F$2:$G$44,2,FALSE)+ROW()-2)),\"\")","v":{"$error":"#N/A"}},{"$f":"IF(INDIRECT(\"c\" & (VLOOKUP(Switch!$D$61,$F$2:$G$44,2,FALSE)+ROW()-2))=Switch!$D$61,INDIRECT(\"a\" & (VLOOKUP(Switch!$D$61,$F$2:$G$44,2,FALSE)+ROW()-2)),\"\")","v":{"$error":"#N/A"}},{"$f":"IF(INDIRECT(\"c\" & (VLOOKUP(Switch!$D$62,$F$2:$G$44,2,FALSE)+ROW()-2))=Switch!$D$62,INDIRECT(\"a\" & (VLOOKUP(Switch!$D$62,$F$2:$G$44,2,FALSE)+ROW()-2)),\"\")","v":{"$error":"#N/A"}},{"$f":"IF(INDIRECT(\"c\" & (VLOOKUP(Switch!$D$63,$F$2:$G$44,2,FALSE)+ROW()-2))=Switch!$D$63,INDIRECT(\"a\" & (VLOOKUP(Switch!$D$63,$F$2:$G$44,2,FALSE)+ROW()-2)),\"\")","v":{"$error":"#N/A"}},{"$f":"IF(INDIRECT(\"c\" & (VLOOKUP(Switch!$D$64,$F$2:$G$44,2,FALSE)+ROW()-2))=Switch!$D$64,INDIRECT(\"a\" & (VLOOKUP(Switch!$D$64,$F$2:$G$44,2,FALSE)+ROW()-2)),\"\")","v":{"$error":"#N/A"}},{"$f":"IF(INDIRECT(\"c\" & (VLOOKUP(Switch!$D$65,$F$2:$G$44,2,FALSE)+ROW()-2))=Switch!$D$65,INDIRECT(\"a\" & (VLOOKUP(Switch!$D$65,$F$2:$G$44,2,FALSE)+ROW()-2)),\"\")","v":{"$error":"#N/A"}},{"$f":"IF(INDIRECT(\"c\" & (VLOOKUP(Switch!$D$66,$F$2:$G$44,2,FALSE)+ROW()-2))=Switch!$D$66,INDIRECT(\"a\" & (VLOOKUP(Switch!$D$66,$F$2:$G$44,2,FALSE)+ROW()-2)),\"\")","v":{"$error":"#N/A"}}]
["STANLIB Global Emerging Markets Property Feeder Fund B1","SGEB1","STANLIB Collective Investments",{"$f":"ROW()","v":53},null,null,{"$f":"VLOOKUP(F53,$C$2:$D$637,2,FALSE)","v":{"$error":"#N/A"}},{"$f":"IF(INDIRECT(\"c\" & (VLOOKUP(Switch!$D$26,$F$2:$G$44,2,FALSE)+ROW()-2))=Switch!$D$26,INDIRECT(\"a\" & (VLOOKUP(Switch!$D$26,$F$2:$G$44,2,FALSE)+ROW()-2)),\"\")","v":{"$error":"#N/A"}},{"$f":"IF(INDIRECT(\"c\" & (VLOOKUP(Switch!$D$27,$F$2:$G$44,2,FALSE)+ROW()-2))=Switch!$D$27,INDIRECT(\"a\" & (VLOOKUP(Switch!$D$27,$F$2:$G$44,2,FALSE)+ROW()-2)),\"\")","v":{"$error":"#N/A"}},{"$f":"IF(INDIRECT(\"c\" & (VLOOKUP(Switch!$D$28,$F$2:$G$44,2,FALSE)+ROW()-2))=Switch!$D$28,INDIRECT(\"a\" & (VLOOKUP(Switch!$D$28,$F$2:$G$44,2,FALSE)+ROW()-2)),\"\")","v":{"$error":"#N/A"}},{"$f":"IF(INDIRECT(\"c\" & (VLOOKUP(Switch!$D$29,$F$2:$G$44,2,FALSE)+ROW()-2))=Switch!$D$29,INDIRECT(\"a\" & (VLOOKUP(Switch!$D$29,$F$2:$G$44,2,FALSE)+ROW()-2)),\"\")","v":{"$error":"#N/A"}},{"$f":"IF(INDIRECT(\"c\" & (VLOOKUP(Switch!$D$30,$F$2:$G$44,2,FALSE)+ROW()-2))=Switch!$D$30,INDIRECT(\"a\" & (VLOOKUP(Switch!$D$30,$F$2:$G$44,2,FALSE)+ROW()-2)),\"\")","v":{"$error":"#N/A"}},{"$f":"IF(INDIRECT(\"c\" & (VLOOKUP(Switch!$D$31,$F$2:$G$44,2,FALSE)+ROW()-2))=Switch!$D$31,INDIRECT(\"a\" & (VLOOKUP(Switch!$D$31,$F$2:$G$44,2,FALSE)+ROW()-2)),\"\")","v":{"$error":"#N/A"}},{"$f":"IF(INDIRECT(\"c\" & (VLOOKUP(Switch!$D$32,$F$2:$G$44,2,FALSE)+ROW()-2))=Switch!$D$32,INDIRECT(\"a\" & (VLOOKUP(Switch!$D$32,$F$2:$G$44,2,FALSE)+ROW()-2)),\"\")","v":{"$error":"#N/A"}},{"$f":"IF(INDIRECT(\"c\" & (VLOOKUP(Switch!$D$33,$F$2:$G$44,2,FALSE)+ROW()-2))=Switch!$D$33,INDIRECT(\"a\" & (VLOOKUP(Switch!$D$33,$F$2:$G$44,2,FALSE)+ROW()-2)),\"\")","v":{"$error":"#N/A"}},{"$f":"IF(INDIRECT(\"c\" & (VLOOKUP(Switch!$D$34,$F$2:$G$44,2,FALSE)+ROW()-2))=Switch!$D$34,INDIRECT(\"a\" & (VLOOKUP(Switch!$D$34,$F$2:$G$44,2,FALSE)+ROW()-2)),\"\")","v":{"$error":"#N/A"}},{"$f":"IF(INDIRECT(\"c\" & (VLOOKUP(Switch!$D$35,$F$2:$G$44,2,FALSE)+ROW()-2))=Switch!$D$35,INDIRECT(\"a\" & (VLOOKUP(Switch!$D$35,$F$2:$G$44,2,FALSE)+ROW()-2)),\"\")","v":{"$error":"#N/A"}},{"$f":"IF(INDIRECT(\"c\" & (VLOOKUP(Switch!$D$36,$F$2:$G$44,2,FALSE)+ROW()-2))=Switch!$D$36,INDIRECT(\"a\" & (VLOOKUP(Switch!$D$36,$F$2:$G$44,2,FALSE)+ROW()-2)),\"\")","v":{"$error":"#N/A"}},{"$f":"IF(INDIRECT(\"c\" & (VLOOKUP(Switch!$D$37,$F$2:$G$44,2,FALSE)+ROW()-2))=Switch!$D$37,INDIRECT(\"a\" & (VLOOKUP(Switch!$D$37,$F$2:$G$44,2,FALSE)+ROW()-2)),\"\")","v":{"$error":"#N/A"}},{"$f":"IF(INDIRECT(\"c\" & (VLOOKUP(Switch!$D$38,$F$2:$G$44,2,FALSE)+ROW()-2))=Switch!$D$38,INDIRECT(\"a\" & (VLOOKUP(Switch!$D$38,$F$2:$G$44,2,FALSE)+ROW()-2)),\"\")","v":{"$error":"#N/A"}},{"$f":"IF(INDIRECT(\"c\" & (VLOOKUP(Switch!$D$39,$F$2:$G$44,2,FALSE)+ROW()-2))=Switch!$D$39,INDIRECT(\"a\" & (VLOOKUP(Switch!$D$39,$F$2:$G$44,2,FALSE)+ROW()-2)),\"\")","v":{"$error":"#N/A"}},{"$f":"IF(INDIRECT(\"c\" & (VLOOKUP(Switch!$D$40,$F$2:$G$44,2,FALSE)+ROW()-2))=Switch!$D$40,INDIRECT(\"a\" & (VLOOKUP(Switch!$D$40,$F$2:$G$44,2,FALSE)+ROW()-2)),\"\")","v":{"$error":"#N/A"}},{"$f":"IF(INDIRECT(\"c\" & (VLOOKUP(Switch!$D$52,$F$2:$G$44,2,FALSE)+ROW()-2))=Switch!$D$52,INDIRECT(\"a\" & (VLOOKUP(Switch!$D$52,$F$2:$G$44,2,FALSE)+ROW()-2)),\"\")","v":{"$error":"#N/A"}},{"$f":"IF(INDIRECT(\"c\" & (VLOOKUP(Switch!$D$53,$F$2:$G$44,2,FALSE)+ROW()-2))=Switch!$D$53,INDIRECT(\"a\" & (VLOOKUP(Switch!$D$53,$F$2:$G$44,2,FALSE)+ROW()-2)),\"\")","v":{"$error":"#N/A"}},{"$f":"IF(INDIRECT(\"c\" & (VLOOKUP(Switch!$D$54,$F$2:$G$44,2,FALSE)+ROW()-2))=Switch!$D$54,INDIRECT(\"a\" & (VLOOKUP(Switch!$D$54,$F$2:$G$44,2,FALSE)+ROW()-2)),\"\")","v":{"$error":"#N/A"}},{"$f":"IF(INDIRECT(\"c\" & (VLOOKUP(Switch!$D$55,$F$2:$G$44,2,FALSE)+ROW()-2))=Switch!$D$55,INDIRECT(\"a\" & (VLOOKUP(Switch!$D$55,$F$2:$G$44,2,FALSE)+ROW()-2)),\"\")","v":{"$error":"#N/A"}},{"$f":"IF(INDIRECT(\"c\" & (VLOOKUP(Switch!$D$56,$F$2:$G$44,2,FALSE)+ROW()-2))=Switch!$D$56,INDIRECT(\"a\" & (VLOOKUP(Switch!$D$56,$F$2:$G$44,2,FALSE)+ROW()-2)),\"\")","v":{"$error":"#N/A"}},{"$f":"IF(INDIRECT(\"c\" & (VLOOKUP(Switch!$D$57,$F$2:$G$44,2,FALSE)+ROW()-2))=Switch!$D$57,INDIRECT(\"a\" & (VLOOKUP(Switch!$D$57,$F$2:$G$44,2,FALSE)+ROW()-2)),\"\")","v":{"$error":"#N/A"}},{"$f":"IF(INDIRECT(\"c\" & (VLOOKUP(Switch!$D$58,$F$2:$G$44,2,FALSE)+ROW()-2))=Switch!$D$58,INDIRECT(\"a\" & (VLOOKUP(Switch!$D$58,$F$2:$G$44,2,FALSE)+ROW()-2)),\"\")","v":{"$error":"#N/A"}},{"$f":"IF(INDIRECT(\"c\" & (VLOOKUP(Switch!$D$59,$F$2:$G$44,2,FALSE)+ROW()-2))=Switch!$D$59,INDIRECT(\"a\" & (VLOOKUP(Switch!$D$59,$F$2:$G$44,2,FALSE)+ROW()-2)),\"\")","v":{"$error":"#N/A"}},{"$f":"IF(INDIRECT(\"c\" & (VLOOKUP(Switch!$D$60,$F$2:$G$44,2,FALSE)+ROW()-2))=Switch!$D$60,INDIRECT(\"a\" & (VLOOKUP(Switch!$D$60,$F$2:$G$44,2,FALSE)+ROW()-2)),\"\")","v":{"$error":"#N/A"}},{"$f":"IF(INDIRECT(\"c\" & (VLOOKUP(Switch!$D$61,$F$2:$G$44,2,FALSE)+ROW()-2))=Switch!$D$61,INDIRECT(\"a\" & (VLOOKUP(Switch!$D$61,$F$2:$G$44,2,FALSE)+ROW()-2)),\"\")","v":{"$error":"#N/A"}},{"$f":"IF(INDIRECT(\"c\" & (VLOOKUP(Switch!$D$62,$F$2:$G$44,2,FALSE)+ROW()-2))=Switch!$D$62,INDIRECT(\"a\" & (VLOOKUP(Switch!$D$62,$F$2:$G$44,2,FALSE)+ROW()-2)),\"\")","v":{"$error":"#N/A"}},{"$f":"IF(INDIRECT(\"c\" & (VLOOKUP(Switch!$D$63,$F$2:$G$44,2,FALSE)+ROW()-2))=Switch!$D$63,INDIRECT(\"a\" & (VLOOKUP(Switch!$D$63,$F$2:$G$44,2,FALSE)+ROW()-2)),\"\")","v":{"$error":"#N/A"}},{"$f":"IF(INDIRECT(\"c\" & (VLOOKUP(Switch!$D$64,$F$2:$G$44,2,FALSE)+ROW()-2))=Switch!$D$64,INDIRECT(\"a\" & (VLOOKUP(Switch!$D$64,$F$2:$G$44,2,FALSE)+ROW()-2)),\"\")","v":{"$error":"#N/A"}},{"$f":"IF(INDIRECT(\"c\" & (VLOOKUP(Switch!$D$65,$F$2:$G$44,2,FALSE)+ROW()-2))=Switch!$D$65,INDIRECT(\"a\" & (VLOOKUP(Switch!$D$65,$F$2:$G$44,2,FALSE)+ROW()-2)),\"\")","v":{"$error":"#N/A"}},{"$f":"IF(INDIRECT(\"c\" & (VLOOKUP(Switch!$D$66,$F$2:$G$44,2,FALSE)+ROW()-2))=Switch!$D$66,INDIRECT(\"a\" & (VLOOKUP(Switch!$D$66,$F$2:$G$44,2,FALSE)+ROW()-2)),\"\")","v":{"$error":"#N/A"}}]
["STANLIB Global Equity Feeder Fund B3","SGFB3","STANLIB Collective Investments",{"$f":"ROW()","v":54},null,null,{"$f":"VLOOKUP(F54,$C$2:$D$637,2,FALSE)","v":{"$error":"#N/A"}},{"$f":"IF(INDIRECT(\"c\" & (VLOOKUP(Switch!$D$26,$F$2:$G$44,2,FALSE)+ROW()-2))=Switch!$D$26,INDIRECT(\"a\" & (VLOOKUP(Switch!$D$26,$F$2:$G$44,2,FALSE)+ROW()-2)),\"\")","v":{"$error":"#N/A"}},{"$f":"IF(INDIRECT(\"c\" & (VLOOKUP(Switch!$D$27,$F$2:$G$44,2,FALSE)+ROW()-2))=Switch!$D$27,INDIRECT(\"a\" & (VLOOKUP(Switch!$D$27,$F$2:$G$44,2,FALSE)+ROW()-2)),\"\")","v":{"$error":"#N/A"}},{"$f":"IF(INDIRECT(\"c\" & (VLOOKUP(Switch!$D$28,$F$2:$G$44,2,FALSE)+ROW()-2))=Switch!$D$28,INDIRECT(\"a\" & (VLOOKUP(Switch!$D$28,$F$2:$G$44,2,FALSE)+ROW()-2)),\"\")","v":{"$error":"#N/A"}},{"$f":"IF(INDIRECT(\"c\" & (VLOOKUP(Switch!$D$29,$F$2:$G$44,2,FALSE)+ROW()-2))=Switch!$D$29,INDIRECT(\"a\" & (VLOOKUP(Switch!$D$29,$F$2:$G$44,2,FALSE)+ROW()-2)),\"\")","v":{"$error":"#N/A"}},{"$f":"IF(INDIRECT(\"c\" & (VLOOKUP(Switch!$D$30,$F$2:$G$44,2,FALSE)+ROW()-2))=Switch!$D$30,INDIRECT(\"a\" & (VLOOKUP(Switch!$D$30,$F$2:$G$44,2,FALSE)+ROW()-2)),\"\")","v":{"$error":"#N/A"}},{"$f":"IF(INDIRECT(\"c\" & (VLOOKUP(Switch!$D$31,$F$2:$G$44,2,FALSE)+ROW()-2))=Switch!$D$31,INDIRECT(\"a\" & (VLOOKUP(Switch!$D$31,$F$2:$G$44,2,FALSE)+ROW()-2)),\"\")","v":{"$error":"#N/A"}},{"$f":"IF(INDIRECT(\"c\" & (VLOOKUP(Switch!$D$32,$F$2:$G$44,2,FALSE)+ROW()-2))=Switch!$D$32,INDIRECT(\"a\" & (VLOOKUP(Switch!$D$32,$F$2:$G$44,2,FALSE)+ROW()-2)),\"\")","v":{"$error":"#N/A"}},{"$f":"IF(INDIRECT(\"c\" & (VLOOKUP(Switch!$D$33,$F$2:$G$44,2,FALSE)+ROW()-2))=Switch!$D$33,INDIRECT(\"a\" & (VLOOKUP(Switch!$D$33,$F$2:$G$44,2,FALSE)+ROW()-2)),\"\")","v":{"$error":"#N/A"}},{"$f":"IF(INDIRECT(\"c\" & (VLOOKUP(Switch!$D$34,$F$2:$G$44,2,FALSE)+ROW()-2))=Switch!$D$34,INDIRECT(\"a\" & (VLOOKUP(Switch!$D$34,$F$2:$G$44,2,FALSE)+ROW()-2)),\"\")","v":{"$error":"#N/A"}},{"$f":"IF(INDIRECT(\"c\" & (VLOOKUP(Switch!$D$35,$F$2:$G$44,2,FALSE)+ROW()-2))=Switch!$D$35,INDIRECT(\"a\" & (VLOOKUP(Switch!$D$35,$F$2:$G$44,2,FALSE)+ROW()-2)),\"\")","v":{"$error":"#N/A"}},{"$f":"IF(INDIRECT(\"c\" & (VLOOKUP(Switch!$D$36,$F$2:$G$44,2,FALSE)+ROW()-2))=Switch!$D$36,INDIRECT(\"a\" & (VLOOKUP(Switch!$D$36,$F$2:$G$44,2,FALSE)+ROW()-2)),\"\")","v":{"$error":"#N/A"}},{"$f":"IF(INDIRECT(\"c\" & (VLOOKUP(Switch!$D$37,$F$2:$G$44,2,FALSE)+ROW()-2))=Switch!$D$37,INDIRECT(\"a\" & (VLOOKUP(Switch!$D$37,$F$2:$G$44,2,FALSE)+ROW()-2)),\"\")","v":{"$error":"#N/A"}},{"$f":"IF(INDIRECT(\"c\" & (VLOOKUP(Switch!$D$38,$F$2:$G$44,2,FALSE)+ROW()-2))=Switch!$D$38,INDIRECT(\"a\" & (VLOOKUP(Switch!$D$38,$F$2:$G$44,2,FALSE)+ROW()-2)),\"\")","v":{"$error":"#N/A"}},{"$f":"IF(INDIRECT(\"c\" & (VLOOKUP(Switch!$D$39,$F$2:$G$44,2,FALSE)+ROW()-2))=Switch!$D$39,INDIRECT(\"a\" & (VLOOKUP(Switch!$D$39,$F$2:$G$44,2,FALSE)+ROW()-2)),\"\")","v":{"$error":"#N/A"}},{"$f":"IF(INDIRECT(\"c\" & (VLOOKUP(Switch!$D$40,$F$2:$G$44,2,FALSE)+ROW()-2))=Switch!$D$40,INDIRECT(\"a\" & (VLOOKUP(Switch!$D$40,$F$2:$G$44,2,FALSE)+ROW()-2)),\"\")","v":{"$error":"#N/A"}},{"$f":"IF(INDIRECT(\"c\" & (VLOOKUP(Switch!$D$52,$F$2:$G$44,2,FALSE)+ROW()-2))=Switch!$D$52,INDIRECT(\"a\" & (VLOOKUP(Switch!$D$52,$F$2:$G$44,2,FALSE)+ROW()-2)),\"\")","v":{"$error":"#N/A"}},{"$f":"IF(INDIRECT(\"c\" & (VLOOKUP(Switch!$D$53,$F$2:$G$44,2,FALSE)+ROW()-2))=Switch!$D$53,INDIRECT(\"a\" & (VLOOKUP(Switch!$D$53,$F$2:$G$44,2,FALSE)+ROW()-2)),\"\")","v":{"$error":"#N/A"}},{"$f":"IF(INDIRECT(\"c\" & (VLOOKUP(Switch!$D$54,$F$2:$G$44,2,FALSE)+ROW()-2))=Switch!$D$54,INDIRECT(\"a\" & (VLOOKUP(Switch!$D$54,$F$2:$G$44,2,FALSE)+ROW()-2)),\"\")","v":{"$error":"#N/A"}},{"$f":"IF(INDIRECT(\"c\" & (VLOOKUP(Switch!$D$55,$F$2:$G$44,2,FALSE)+ROW()-2))=Switch!$D$55,INDIRECT(\"a\" & (VLOOKUP(Switch!$D$55,$F$2:$G$44,2,FALSE)+ROW()-2)),\"\")","v":{"$error":"#N/A"}},{"$f":"IF(INDIRECT(\"c\" & (VLOOKUP(Switch!$D$56,$F$2:$G$44,2,FALSE)+ROW()-2))=Switch!$D$56,INDIRECT(\"a\" & (VLOOKUP(Switch!$D$56,$F$2:$G$44,2,FALSE)+ROW()-2)),\"\")","v":{"$error":"#N/A"}},{"$f":"IF(INDIRECT(\"c\" & (VLOOKUP(Switch!$D$57,$F$2:$G$44,2,FALSE)+ROW()-2))=Switch!$D$57,INDIRECT(\"a\" & (VLOOKUP(Switch!$D$57,$F$2:$G$44,2,FALSE)+ROW()-2)),\"\")","v":{"$error":"#N/A"}},{"$f":"IF(INDIRECT(\"c\" & (VLOOKUP(Switch!$D$58,$F$2:$G$44,2,FALSE)+ROW()-2))=Switch!$D$58,INDIRECT(\"a\" & (VLOOKUP(Switch!$D$58,$F$2:$G$44,2,FALSE)+ROW()-2)),\"\")","v":{"$error":"#N/A"}},{"$f":"IF(INDIRECT(\"c\" & (VLOOKUP(Switch!$D$59,$F$2:$G$44,2,FALSE)+ROW()-2))=Switch!$D$59,INDIRECT(\"a\" & (VLOOKUP(Switch!$D$59,$F$2:$G$44,2,FALSE)+ROW()-2)),\"\")","v":{"$error":"#N/A"}},{"$f":"IF(INDIRECT(\"c\" & (VLOOKUP(Switch!$D$60,$F$2:$G$44,2,FALSE)+ROW()-2))=Switch!$D$60,INDIRECT(\"a\" & (VLOOKUP(Switch!$D$60,$F$2:$G$44,2,FALSE)+ROW()-2)),\"\")","v":{"$error":"#N/A"}},{"$f":"IF(INDIRECT(\"c\" & (VLOOKUP(Switch!$D$61,$F$2:$G$44,2,FALSE)+ROW()-2))=Switch!$D$61,INDIRECT(\"a\" & (VLOOKUP(Switch!$D$61,$F$2:$G$44,2,FALSE)+ROW()-2)),\"\")","v":{"$error":"#N/A"}},{"$f":"IF(INDIRECT(\"c\" & (VLOOKUP(Switch!$D$62,$F$2:$G$44,2,FALSE)+ROW()-2))=Switch!$D$62,INDIRECT(\"a\" & (VLOOKUP(Switch!$D$62,$F$2:$G$44,2,FALSE)+ROW()-2)),\"\")","v":{"$error":"#N/A"}},{"$f":"IF(INDIRECT(\"c\" & (VLOOKUP(Switch!$D$63,$F$2:$G$44,2,FALSE)+ROW()-2))=Switch!$D$63,INDIRECT(\"a\" & (VLOOKUP(Switch!$D$63,$F$2:$G$44,2,FALSE)+ROW()-2)),\"\")","v":{"$error":"#N/A"}},{"$f":"IF(INDIRECT(\"c\" & (VLOOKUP(Switch!$D$64,$F$2:$G$44,2,FALSE)+ROW()-2))=Switch!$D$64,INDIRECT(\"a\" & (VLOOKUP(Switch!$D$64,$F$2:$G$44,2,FALSE)+ROW()-2)),\"\")","v":{"$error":"#N/A"}},{"$f":"IF(INDIRECT(\"c\" & (VLOOKUP(Switch!$D$65,$F$2:$G$44,2,FALSE)+ROW()-2))=Switch!$D$65,INDIRECT(\"a\" & (VLOOKUP(Switch!$D$65,$F$2:$G$44,2,FALSE)+ROW()-2)),\"\")","v":{"$error":"#N/A"}},{"$f":"IF(INDIRECT(\"c\" & (VLOOKUP(Switch!$D$66,$F$2:$G$44,2,FALSE)+ROW()-2))=Switch!$D$66,INDIRECT(\"a\" & (VLOOKUP(Switch!$D$66,$F$2:$G$44,2,FALSE)+ROW()-2)),\"\")","v":{"$error":"#N/A"}}]
["STANLIB Global Property Feeder Fund B3","SGPB3","STANLIB Collective Investments",{"$f":"ROW()","v":55},null,null,{"$f":"VLOOKUP(F55,$C$2:$D$637,2,FALSE)","v":{"$error":"#N/A"}},{"$f":"IF(INDIRECT(\"c\" & (VLOOKUP(Switch!$D$26,$F$2:$G$44,2,FALSE)+ROW()-2))=Switch!$D$26,INDIRECT(\"a\" & (VLOOKUP(Switch!$D$26,$F$2:$G$44,2,FALSE)+ROW()-2)),\"\")","v":{"$error":"#N/A"}},{"$f":"IF(INDIRECT(\"c\" & (VLOOKUP(Switch!$D$27,$F$2:$G$44,2,FALSE)+ROW()-2))=Switch!$D$27,INDIRECT(\"a\" & (VLOOKUP(Switch!$D$27,$F$2:$G$44,2,FALSE)+ROW()-2)),\"\")","v":{"$error":"#N/A"}},{"$f":"IF(INDIRECT(\"c\" & (VLOOKUP(Switch!$D$28,$F$2:$G$44,2,FALSE)+ROW()-2))=Switch!$D$28,INDIRECT(\"a\" & (VLOOKUP(Switch!$D$28,$F$2:$G$44,2,FALSE)+ROW()-2)),\"\")","v":{"$error":"#N/A"}},{"$f":"IF(INDIRECT(\"c\" & (VLOOKUP(Switch!$D$29,$F$2:$G$44,2,FALSE)+ROW()-2))=Switch!$D$29,INDIRECT(\"a\" & (VLOOKUP(Switch!$D$29,$F$2:$G$44,2,FALSE)+ROW()-2)),\"\")","v":{"$error":"#N/A"}},{"$f":"IF(INDIRECT(\"c\" & (VLOOKUP(Switch!$D$30,$F$2:$G$44,2,FALSE)+ROW()-2))=Switch!$D$30,INDIRECT(\"a\" & (VLOOKUP(Switch!$D$30,$F$2:$G$44,2,FALSE)+ROW()-2)),\"\")","v":{"$error":"#N/A"}},{"$f":"IF(INDIRECT(\"c\" & (VLOOKUP(Switch!$D$31,$F$2:$G$44,2,FALSE)+ROW()-2))=Switch!$D$31,INDIRECT(\"a\" & (VLOOKUP(Switch!$D$31,$F$2:$G$44,2,FALSE)+ROW()-2)),\"\")","v":{"$error":"#N/A"}},{"$f":"IF(INDIRECT(\"c\" & (VLOOKUP(Switch!$D$32,$F$2:$G$44,2,FALSE)+ROW()-2))=Switch!$D$32,INDIRECT(\"a\" & (VLOOKUP(Switch!$D$32,$F$2:$G$44,2,FALSE)+ROW()-2)),\"\")","v":{"$error":"#N/A"}},{"$f":"IF(INDIRECT(\"c\" & (VLOOKUP(Switch!$D$33,$F$2:$G$44,2,FALSE)+ROW()-2))=Switch!$D$33,INDIRECT(\"a\" & (VLOOKUP(Switch!$D$33,$F$2:$G$44,2,FALSE)+ROW()-2)),\"\")","v":{"$error":"#N/A"}},{"$f":"IF(INDIRECT(\"c\" & (VLOOKUP(Switch!$D$34,$F$2:$G$44,2,FALSE)+ROW()-2))=Switch!$D$34,INDIRECT(\"a\" & (VLOOKUP(Switch!$D$34,$F$2:$G$44,2,FALSE)+ROW()-2)),\"\")","v":{"$error":"#N/A"}},{"$f":"IF(INDIRECT(\"c\" & (VLOOKUP(Switch!$D$35,$F$2:$G$44,2,FALSE)+ROW()-2))=Switch!$D$35,INDIRECT(\"a\" & (VLOOKUP(Switch!$D$35,$F$2:$G$44,2,FALSE)+ROW()-2)),\"\")","v":{"$error":"#N/A"}},{"$f":"IF(INDIRECT(\"c\" & (VLOOKUP(Switch!$D$36,$F$2:$G$44,2,FALSE)+ROW()-2))=Switch!$D$36,INDIRECT(\"a\" & (VLOOKUP(Switch!$D$36,$F$2:$G$44,2,FALSE)+ROW()-2)),\"\")","v":{"$error":"#N/A"}},{"$f":"IF(INDIRECT(\"c\" & (VLOOKUP(Switch!$D$37,$F$2:$G$44,2,FALSE)+ROW()-2))=Switch!$D$37,INDIRECT(\"a\" & (VLOOKUP(Switch!$D$37,$F$2:$G$44,2,FALSE)+ROW()-2)),\"\")","v":{"$error":"#N/A"}},{"$f":"IF(INDIRECT(\"c\" & (VLOOKUP(Switch!$D$38,$F$2:$G$44,2,FALSE)+ROW()-2))=Switch!$D$38,INDIRECT(\"a\" & (VLOOKUP(Switch!$D$38,$F$2:$G$44,2,FALSE)+ROW()-2)),\"\")","v":{"$error":"#N/A"}},{"$f":"IF(INDIRECT(\"c\" & (VLOOKUP(Switch!$D$39,$F$2:$G$44,2,FALSE)+ROW()-2))=Switch!$D$39,INDIRECT(\"a\" & (VLOOKUP(Switch!$D$39,$F$2:$G$44,2,FALSE)+ROW()-2)),\"\")","v":{"$error":"#N/A"}},{"$f":"IF(INDIRECT(\"c\" & (VLOOKUP(Switch!$D$40,$F$2:$G$44,2,FALSE)+ROW()-2))=Switch!$D$40,INDIRECT(\"a\" & (VLOOKUP(Switch!$D$40,$F$2:$G$44,2,FALSE)+ROW()-2)),\"\")","v":{"$error":"#N/A"}},{"$f":"IF(INDIRECT(\"c\" & (VLOOKUP(Switch!$D$52,$F$2:$G$44,2,FALSE)+ROW()-2))=Switch!$D$52,INDIRECT(\"a\" & (VLOOKUP(Switch!$D$52,$F$2:$G$44,2,FALSE)+ROW()-2)),\"\")","v":{"$error":"#N/A"}},{"$f":"IF(INDIRECT(\"c\" & (VLOOKUP(Switch!$D$53,$F$2:$G$44,2,FALSE)+ROW()-2))=Switch!$D$53,INDIRECT(\"a\" & (VLOOKUP(Switch!$D$53,$F$2:$G$44,2,FALSE)+ROW()-2)),\"\")","v":{"$error":"#N/A"}},{"$f":"IF(INDIRECT(\"c\" & (VLOOKUP(Switch!$D$54,$F$2:$G$44,2,FALSE)+ROW()-2))=Switch!$D$54,INDIRECT(\"a\" & (VLOOKUP(Switch!$D$54,$F$2:$G$44,2,FALSE)+ROW()-2)),\"\")","v":{"$error":"#N/A"}},{"$f":"IF(INDIRECT(\"c\" & (VLOOKUP(Switch!$D$55,$F$2:$G$44,2,FALSE)+ROW()-2))=Switch!$D$55,INDIRECT(\"a\" & (VLOOKUP(Switch!$D$55,$F$2:$G$44,2,FALSE)+ROW()-2)),\"\")","v":{"$error":"#N/A"}},{"$f":"IF(INDIRECT(\"c\" & (VLOOKUP(Switch!$D$56,$F$2:$G$44,2,FALSE)+ROW()-2))=Switch!$D$56,INDIRECT(\"a\" & (VLOOKUP(Switch!$D$56,$F$2:$G$44,2,FALSE)+ROW()-2)),\"\")","v":{"$error":"#N/A"}},{"$f":"IF(INDIRECT(\"c\" & (VLOOKUP(Switch!$D$57,$F$2:$G$44,2,FALSE)+ROW()-2))=Switch!$D$57,INDIRECT(\"a\" & (VLOOKUP(Switch!$D$57,$F$2:$G$44,2,FALSE)+ROW()-2)),\"\")","v":{"$error":"#N/A"}},{"$f":"IF(INDIRECT(\"c\" & (VLOOKUP(Switch!$D$58,$F$2:$G$44,2,FALSE)+ROW()-2))=Switch!$D$58,INDIRECT(\"a\" & (VLOOKUP(Switch!$D$58,$F$2:$G$44,2,FALSE)+ROW()-2)),\"\")","v":{"$error":"#N/A"}},{"$f":"IF(INDIRECT(\"c\" & (VLOOKUP(Switch!$D$59,$F$2:$G$44,2,FALSE)+ROW()-2))=Switch!$D$59,INDIRECT(\"a\" & (VLOOKUP(Switch!$D$59,$F$2:$G$44,2,FALSE)+ROW()-2)),\"\")","v":{"$error":"#N/A"}},{"$f":"IF(INDIRECT(\"c\" & (VLOOKUP(Switch!$D$60,$F$2:$G$44,2,FALSE)+ROW()-2))=Switch!$D$60,INDIRECT(\"a\" & (VLOOKUP(Switch!$D$60,$F$2:$G$44,2,FALSE)+ROW()-2)),\"\")","v":{"$error":"#N/A"}},{"$f":"IF(INDIRECT(\"c\" & (VLOOKUP(Switch!$D$61,$F$2:$G$44,2,FALSE)+ROW()-2))=Switch!$D$61,INDIRECT(\"a\" & (VLOOKUP(Switch!$D$61,$F$2:$G$44,2,FALSE)+ROW()-2)),\"\")","v":{"$error":"#N/A"}},{"$f":"IF(INDIRECT(\"c\" & (VLOOKUP(Switch!$D$62,$F$2:$G$44,2,FALSE)+ROW()-2))=Switch!$D$62,INDIRECT(\"a\" & (VLOOKUP(Switch!$D$62,$F$2:$G$44,2,FALSE)+ROW()-2)),\"\")","v":{"$error":"#N/A"}},{"$f":"IF(INDIRECT(\"c\" & (VLOOKUP(Switch!$D$63,$F$2:$G$44,2,FALSE)+ROW()-2))=Switch!$D$63,INDIRECT(\"a\" & (VLOOKUP(Switch!$D$63,$F$2:$G$44,2,FALSE)+ROW()-2)),\"\")","v":{"$error":"#N/A"}},{"$f":"IF(INDIRECT(\"c\" & (VLOOKUP(Switch!$D$64,$F$2:$G$44,2,FALSE)+ROW()-2))=Switch!$D$64,INDIRECT(\"a\" & (VLOOKUP(Switch!$D$64,$F$2:$G$44,2,FALSE)+ROW()-2)),\"\")","v":{"$error":"#N/A"}},{"$f":"IF(INDIRECT(\"c\" & (VLOOKUP(Switch!$D$65,$F$2:$G$44,2,FALSE)+ROW()-2))=Switch!$D$65,INDIRECT(\"a\" & (VLOOKUP(Switch!$D$65,$F$2:$G$44,2,FALSE)+ROW()-2)),\"\")","v":{"$error":"#N/A"}},{"$f":"IF(INDIRECT(\"c\" & (VLOOKUP(Switch!$D$66,$F$2:$G$44,2,FALSE)+ROW()-2))=Switch!$D$66,INDIRECT(\"a\" & (VLOOKUP(Switch!$D$66,$F$2:$G$44,2,FALSE)+ROW()-2)),\"\")","v":{"$error":"#N/A"}}]
["STANLIB Income Fund B2","GDBI","STANLIB Collective Investments",{"$f":"ROW()","v":56},null,null,{"$f":"VLOOKUP(F56,$C$2:$D$637,2,FALSE)","v":{"$error":"#N/A"}},{"$f":"IF(INDIRECT(\"c\" & (VLOOKUP(Switch!$D$26,$F$2:$G$44,2,FALSE)+ROW()-2))=Switch!$D$26,INDIRECT(\"a\" & (VLOOKUP(Switch!$D$26,$F$2:$G$44,2,FALSE)+ROW()-2)),\"\")","v":{"$error":"#N/A"}},{"$f":"IF(INDIRECT(\"c\" & (VLOOKUP(Switch!$D$27,$F$2:$G$44,2,FALSE)+ROW()-2))=Switch!$D$27,INDIRECT(\"a\" & (VLOOKUP(Switch!$D$27,$F$2:$G$44,2,FALSE)+ROW()-2)),\"\")","v":{"$error":"#N/A"}},{"$f":"IF(INDIRECT(\"c\" & (VLOOKUP(Switch!$D$28,$F$2:$G$44,2,FALSE)+ROW()-2))=Switch!$D$28,INDIRECT(\"a\" & (VLOOKUP(Switch!$D$28,$F$2:$G$44,2,FALSE)+ROW()-2)),\"\")","v":{"$error":"#N/A"}},{"$f":"IF(INDIRECT(\"c\" & (VLOOKUP(Switch!$D$29,$F$2:$G$44,2,FALSE)+ROW()-2))=Switch!$D$29,INDIRECT(\"a\" & (VLOOKUP(Switch!$D$29,$F$2:$G$44,2,FALSE)+ROW()-2)),\"\")","v":{"$error":"#N/A"}},{"$f":"IF(INDIRECT(\"c\" & (VLOOKUP(Switch!$D$30,$F$2:$G$44,2,FALSE)+ROW()-2))=Switch!$D$30,INDIRECT(\"a\" & (VLOOKUP(Switch!$D$30,$F$2:$G$44,2,FALSE)+ROW()-2)),\"\")","v":{"$error":"#N/A"}},{"$f":"IF(INDIRECT(\"c\" & (VLOOKUP(Switch!$D$31,$F$2:$G$44,2,FALSE)+ROW()-2))=Switch!$D$31,INDIRECT(\"a\" & (VLOOKUP(Switch!$D$31,$F$2:$G$44,2,FALSE)+ROW()-2)),\"\")","v":{"$error":"#N/A"}},{"$f":"IF(INDIRECT(\"c\" & (VLOOKUP(Switch!$D$32,$F$2:$G$44,2,FALSE)+ROW()-2))=Switch!$D$32,INDIRECT(\"a\" & (VLOOKUP(Switch!$D$32,$F$2:$G$44,2,FALSE)+ROW()-2)),\"\")","v":{"$error":"#N/A"}},{"$f":"IF(INDIRECT(\"c\" & (VLOOKUP(Switch!$D$33,$F$2:$G$44,2,FALSE)+ROW()-2))=Switch!$D$33,INDIRECT(\"a\" & (VLOOKUP(Switch!$D$33,$F$2:$G$44,2,FALSE)+ROW()-2)),\"\")","v":{"$error":"#N/A"}},{"$f":"IF(INDIRECT(\"c\" & (VLOOKUP(Switch!$D$34,$F$2:$G$44,2,FALSE)+ROW()-2))=Switch!$D$34,INDIRECT(\"a\" & (VLOOKUP(Switch!$D$34,$F$2:$G$44,2,FALSE)+ROW()-2)),\"\")","v":{"$error":"#N/A"}},{"$f":"IF(INDIRECT(\"c\" & (VLOOKUP(Switch!$D$35,$F$2:$G$44,2,FALSE)+ROW()-2))=Switch!$D$35,INDIRECT(\"a\" & (VLOOKUP(Switch!$D$35,$F$2:$G$44,2,FALSE)+ROW()-2)),\"\")","v":{"$error":"#N/A"}},{"$f":"IF(INDIRECT(\"c\" & (VLOOKUP(Switch!$D$36,$F$2:$G$44,2,FALSE)+ROW()-2))=Switch!$D$36,INDIRECT(\"a\" & (VLOOKUP(Switch!$D$36,$F$2:$G$44,2,FALSE)+ROW()-2)),\"\")","v":{"$error":"#N/A"}},{"$f":"IF(INDIRECT(\"c\" & (VLOOKUP(Switch!$D$37,$F$2:$G$44,2,FALSE)+ROW()-2))=Switch!$D$37,INDIRECT(\"a\" & (VLOOKUP(Switch!$D$37,$F$2:$G$44,2,FALSE)+ROW()-2)),\"\")","v":{"$error":"#N/A"}},{"$f":"IF(INDIRECT(\"c\" & (VLOOKUP(Switch!$D$38,$F$2:$G$44,2,FALSE)+ROW()-2))=Switch!$D$38,INDIRECT(\"a\" & (VLOOKUP(Switch!$D$38,$F$2:$G$44,2,FALSE)+ROW()-2)),\"\")","v":{"$error":"#N/A"}},{"$f":"IF(INDIRECT(\"c\" & (VLOOKUP(Switch!$D$39,$F$2:$G$44,2,FALSE)+ROW()-2))=Switch!$D$39,INDIRECT(\"a\" & (VLOOKUP(Switch!$D$39,$F$2:$G$44,2,FALSE)+ROW()-2)),\"\")","v":{"$error":"#N/A"}},{"$f":"IF(INDIRECT(\"c\" & (VLOOKUP(Switch!$D$40,$F$2:$G$44,2,FALSE)+ROW()-2))=Switch!$D$40,INDIRECT(\"a\" & (VLOOKUP(Switch!$D$40,$F$2:$G$44,2,FALSE)+ROW()-2)),\"\")","v":{"$error":"#N/A"}},{"$f":"IF(INDIRECT(\"c\" & (VLOOKUP(Switch!$D$52,$F$2:$G$44,2,FALSE)+ROW()-2))=Switch!$D$52,INDIRECT(\"a\" & (VLOOKUP(Switch!$D$52,$F$2:$G$44,2,FALSE)+ROW()-2)),\"\")","v":{"$error":"#N/A"}},{"$f":"IF(INDIRECT(\"c\" & (VLOOKUP(Switch!$D$53,$F$2:$G$44,2,FALSE)+ROW()-2))=Switch!$D$53,INDIRECT(\"a\" & (VLOOKUP(Switch!$D$53,$F$2:$G$44,2,FALSE)+ROW()-2)),\"\")","v":{"$error":"#N/A"}},{"$f":"IF(INDIRECT(\"c\" & (VLOOKUP(Switch!$D$54,$F$2:$G$44,2,FALSE)+ROW()-2))=Switch!$D$54,INDIRECT(\"a\" & (VLOOKUP(Switch!$D$54,$F$2:$G$44,2,FALSE)+ROW()-2)),\"\")","v":{"$error":"#N/A"}},{"$f":"IF(INDIRECT(\"c\" & (VLOOKUP(Switch!$D$55,$F$2:$G$44,2,FALSE)+ROW()-2))=Switch!$D$55,INDIRECT(\"a\" & (VLOOKUP(Switch!$D$55,$F$2:$G$44,2,FALSE)+ROW()-2)),\"\")","v":{"$error":"#N/A"}},{"$f":"IF(INDIRECT(\"c\" & (VLOOKUP(Switch!$D$56,$F$2:$G$44,2,FALSE)+ROW()-2))=Switch!$D$56,INDIRECT(\"a\" & (VLOOKUP(Switch!$D$56,$F$2:$G$44,2,FALSE)+ROW()-2)),\"\")","v":{"$error":"#N/A"}},{"$f":"IF(INDIRECT(\"c\" & (VLOOKUP(Switch!$D$57,$F$2:$G$44,2,FALSE)+ROW()-2))=Switch!$D$57,INDIRECT(\"a\" & (VLOOKUP(Switch!$D$57,$F$2:$G$44,2,FALSE)+ROW()-2)),\"\")","v":{"$error":"#N/A"}},{"$f":"IF(INDIRECT(\"c\" & (VLOOKUP(Switch!$D$58,$F$2:$G$44,2,FALSE)+ROW()-2))=Switch!$D$58,INDIRECT(\"a\" & (VLOOKUP(Switch!$D$58,$F$2:$G$44,2,FALSE)+ROW()-2)),\"\")","v":{"$error":"#N/A"}},{"$f":"IF(INDIRECT(\"c\" & (VLOOKUP(Switch!$D$59,$F$2:$G$44,2,FALSE)+ROW()-2))=Switch!$D$59,INDIRECT(\"a\" & (VLOOKUP(Switch!$D$59,$F$2:$G$44,2,FALSE)+ROW()-2)),\"\")","v":{"$error":"#N/A"}},{"$f":"IF(INDIRECT(\"c\" & (VLOOKUP(Switch!$D$60,$F$2:$G$44,2,FALSE)+ROW()-2))=Switch!$D$60,INDIRECT(\"a\" & (VLOOKUP(Switch!$D$60,$F$2:$G$44,2,FALSE)+ROW()-2)),\"\")","v":{"$error":"#N/A"}},{"$f":"IF(INDIRECT(\"c\" & (VLOOKUP(Switch!$D$61,$F$2:$G$44,2,FALSE)+ROW()-2))=Switch!$D$61,INDIRECT(\"a\" & (VLOOKUP(Switch!$D$61,$F$2:$G$44,2,FALSE)+ROW()-2)),\"\")","v":{"$error":"#N/A"}},{"$f":"IF(INDIRECT(\"c\" & (VLOOKUP(Switch!$D$62,$F$2:$G$44,2,FALSE)+ROW()-2))=Switch!$D$62,INDIRECT(\"a\" & (VLOOKUP(Switch!$D$62,$F$2:$G$44,2,FALSE)+ROW()-2)),\"\")","v":{"$error":"#N/A"}},{"$f":"IF(INDIRECT(\"c\" & (VLOOKUP(Switch!$D$63,$F$2:$G$44,2,FALSE)+ROW()-2))=Switch!$D$63,INDIRECT(\"a\" & (VLOOKUP(Switch!$D$63,$F$2:$G$44,2,FALSE)+ROW()-2)),\"\")","v":{"$error":"#N/A"}},{"$f":"IF(INDIRECT(\"c\" & (VLOOKUP(Switch!$D$64,$F$2:$G$44,2,FALSE)+ROW()-2))=Switch!$D$64,INDIRECT(\"a\" & (VLOOKUP(Switch!$D$64,$F$2:$G$44,2,FALSE)+ROW()-2)),\"\")","v":{"$error":"#N/A"}},{"$f":"IF(INDIRECT(\"c\" & (VLOOKUP(Switch!$D$65,$F$2:$G$44,2,FALSE)+ROW()-2))=Switch!$D$65,INDIRECT(\"a\" & (VLOOKUP(Switch!$D$65,$F$2:$G$44,2,FALSE)+ROW()-2)),\"\")","v":{"$error":"#N/A"}},{"$f":"IF(INDIRECT(\"c\" & (VLOOKUP(Switch!$D$66,$F$2:$G$44,2,FALSE)+ROW()-2))=Switch!$D$66,INDIRECT(\"a\" & (VLOOKUP(Switch!$D$66,$F$2:$G$44,2,FALSE)+ROW()-2)),\"\")","v":{"$error":"#N/A"}}]
["STANLIB Income Fund B6","GDBI","STANLIB Collective Investments",{"$f":"ROW()","v":57},null,null,{"$f":"VLOOKUP(F57,$C$2:$D$637,2,FALSE)","v":{"$error":"#N/A"}},{"$f":"IF(INDIRECT(\"c\" & (VLOOKUP(Switch!$D$26,$F$2:$G$44,2,FALSE)+ROW()-2))=Switch!$D$26,INDIRECT(\"a\" & (VLOOKUP(Switch!$D$26,$F$2:$G$44,2,FALSE)+ROW()-2)),\"\")","v":{"$error":"#N/A"}},{"$f":"IF(INDIRECT(\"c\" & (VLOOKUP(Switch!$D$27,$F$2:$G$44,2,FALSE)+ROW()-2))=Switch!$D$27,INDIRECT(\"a\" & (VLOOKUP(Switch!$D$27,$F$2:$G$44,2,FALSE)+ROW()-2)),\"\")","v":{"$error":"#N/A"}},{"$f":"IF(INDIRECT(\"c\" & (VLOOKUP(Switch!$D$28,$F$2:$G$44,2,FALSE)+ROW()-2))=Switch!$D$28,INDIRECT(\"a\" & (VLOOKUP(Switch!$D$28,$F$2:$G$44,2,FALSE)+ROW()-2)),\"\")","v":{"$error":"#N/A"}},{"$f":"IF(INDIRECT(\"c\" & (VLOOKUP(Switch!$D$29,$F$2:$G$44,2,FALSE)+ROW()-2))=Switch!$D$29,INDIRECT(\"a\" & (VLOOKUP(Switch!$D$29,$F$2:$G$44,2,FALSE)+ROW()-2)),\"\")","v":{"$error":"#N/A"}},{"$f":"IF(INDIRECT(\"c\" & (VLOOKUP(Switch!$D$30,$F$2:$G$44,2,FALSE)+ROW()-2))=Switch!$D$30,INDIRECT(\"a\" & (VLOOKUP(Switch!$D$30,$F$2:$G$44,2,FALSE)+ROW()-2)),\"\")","v":{"$error":"#N/A"}},{"$f":"IF(INDIRECT(\"c\" & (VLOOKUP(Switch!$D$31,$F$2:$G$44,2,FALSE)+ROW()-2))=Switch!$D$31,INDIRECT(\"a\" & (VLOOKUP(Switch!$D$31,$F$2:$G$44,2,FALSE)+ROW()-2)),\"\")","v":{"$error":"#N/A"}},{"$f":"IF(INDIRECT(\"c\" & (VLOOKUP(Switch!$D$32,$F$2:$G$44,2,FALSE)+ROW()-2))=Switch!$D$32,INDIRECT(\"a\" & (VLOOKUP(Switch!$D$32,$F$2:$G$44,2,FALSE)+ROW()-2)),\"\")","v":{"$error":"#N/A"}},{"$f":"IF(INDIRECT(\"c\" & (VLOOKUP(Switch!$D$33,$F$2:$G$44,2,FALSE)+ROW()-2))=Switch!$D$33,INDIRECT(\"a\" & (VLOOKUP(Switch!$D$33,$F$2:$G$44,2,FALSE)+ROW()-2)),\"\")","v":{"$error":"#N/A"}},{"$f":"IF(INDIRECT(\"c\" & (VLOOKUP(Switch!$D$34,$F$2:$G$44,2,FALSE)+ROW()-2))=Switch!$D$34,INDIRECT(\"a\" & (VLOOKUP(Switch!$D$34,$F$2:$G$44,2,FALSE)+ROW()-2)),\"\")","v":{"$error":"#N/A"}},{"$f":"IF(INDIRECT(\"c\" & (VLOOKUP(Switch!$D$35,$F$2:$G$44,2,FALSE)+ROW()-2))=Switch!$D$35,INDIRECT(\"a\" & (VLOOKUP(Switch!$D$35,$F$2:$G$44,2,FALSE)+ROW()-2)),\"\")","v":{"$error":"#N/A"}},{"$f":"IF(INDIRECT(\"c\" & (VLOOKUP(Switch!$D$36,$F$2:$G$44,2,FALSE)+ROW()-2))=Switch!$D$36,INDIRECT(\"a\" & (VLOOKUP(Switch!$D$36,$F$2:$G$44,2,FALSE)+ROW()-2)),\"\")","v":{"$error":"#N/A"}},{"$f":"IF(INDIRECT(\"c\" & (VLOOKUP(Switch!$D$37,$F$2:$G$44,2,FALSE)+ROW()-2))=Switch!$D$37,INDIRECT(\"a\" & (VLOOKUP(Switch!$D$37,$F$2:$G$44,2,FALSE)+ROW()-2)),\"\")","v":{"$error":"#N/A"}},{"$f":"IF(INDIRECT(\"c\" & (VLOOKUP(Switch!$D$38,$F$2:$G$44,2,FALSE)+ROW()-2))=Switch!$D$38,INDIRECT(\"a\" & (VLOOKUP(Switch!$D$38,$F$2:$G$44,2,FALSE)+ROW()-2)),\"\")","v":{"$error":"#N/A"}},{"$f":"IF(INDIRECT(\"c\" & (VLOOKUP(Switch!$D$39,$F$2:$G$44,2,FALSE)+ROW()-2))=Switch!$D$39,INDIRECT(\"a\" & (VLOOKUP(Switch!$D$39,$F$2:$G$44,2,FALSE)+ROW()-2)),\"\")","v":{"$error":"#N/A"}},{"$f":"IF(INDIRECT(\"c\" & (VLOOKUP(Switch!$D$40,$F$2:$G$44,2,FALSE)+ROW()-2))=Switch!$D$40,INDIRECT(\"a\" & (VLOOKUP(Switch!$D$40,$F$2:$G$44,2,FALSE)+ROW()-2)),\"\")","v":{"$error":"#N/A"}},{"$f":"IF(INDIRECT(\"c\" & (VLOOKUP(Switch!$D$52,$F$2:$G$44,2,FALSE)+ROW()-2))=Switch!$D$52,INDIRECT(\"a\" & (VLOOKUP(Switch!$D$52,$F$2:$G$44,2,FALSE)+ROW()-2)),\"\")","v":{"$error":"#N/A"}},{"$f":"IF(INDIRECT(\"c\" & (VLOOKUP(Switch!$D$53,$F$2:$G$44,2,FALSE)+ROW()-2))=Switch!$D$53,INDIRECT(\"a\" & (VLOOKUP(Switch!$D$53,$F$2:$G$44,2,FALSE)+ROW()-2)),\"\")","v":{"$error":"#N/A"}},{"$f":"IF(INDIRECT(\"c\" & (VLOOKUP(Switch!$D$54,$F$2:$G$44,2,FALSE)+ROW()-2))=Switch!$D$54,INDIRECT(\"a\" & (VLOOKUP(Switch!$D$54,$F$2:$G$44,2,FALSE)+ROW()-2)),\"\")","v":{"$error":"#N/A"}},{"$f":"IF(INDIRECT(\"c\" & (VLOOKUP(Switch!$D$55,$F$2:$G$44,2,FALSE)+ROW()-2))=Switch!$D$55,INDIRECT(\"a\" & (VLOOKUP(Switch!$D$55,$F$2:$G$44,2,FALSE)+ROW()-2)),\"\")","v":{"$error":"#N/A"}},{"$f":"IF(INDIRECT(\"c\" & (VLOOKUP(Switch!$D$56,$F$2:$G$44,2,FALSE)+ROW()-2))=Switch!$D$56,INDIRECT(\"a\" & (VLOOKUP(Switch!$D$56,$F$2:$G$44,2,FALSE)+ROW()-2)),\"\")","v":{"$error":"#N/A"}},{"$f":"IF(INDIRECT(\"c\" & (VLOOKUP(Switch!$D$57,$F$2:$G$44,2,FALSE)+ROW()-2))=Switch!$D$57,INDIRECT(\"a\" & (VLOOKUP(Switch!$D$57,$F$2:$G$44,2,FALSE)+ROW()-2)),\"\")","v":{"$error":"#N/A"}},{"$f":"IF(INDIRECT(\"c\" & (VLOOKUP(Switch!$D$58,$F$2:$G$44,2,FALSE)+ROW()-2))=Switch!$D$58,INDIRECT(\"a\" & (VLOOKUP(Switch!$D$58,$F$2:$G$44,2,FALSE)+ROW()-2)),\"\")","v":{"$error":"#N/A"}},{"$f":"IF(INDIRECT(\"c\" & (VLOOKUP(Switch!$D$59,$F$2:$G$44,2,FALSE)+ROW()-2))=Switch!$D$59,INDIRECT(\"a\" & (VLOOKUP(Switch!$D$59,$F$2:$G$44,2,FALSE)+ROW()-2)),\"\")","v":{"$error":"#N/A"}},{"$f":"IF(INDIRECT(\"c\" & (VLOOKUP(Switch!$D$60,$F$2:$G$44,2,FALSE)+ROW()-2))=Switch!$D$60,INDIRECT(\"a\" & (VLOOKUP(Switch!$D$60,$F$2:$G$44,2,FALSE)+ROW()-2)),\"\")","v":{"$error":"#N/A"}},{"$f":"IF(INDIRECT(\"c\" & (VLOOKUP(Switch!$D$61,$F$2:$G$44,2,FALSE)+ROW()-2))=Switch!$D$61,INDIRECT(\"a\" & (VLOOKUP(Switch!$D$61,$F$2:$G$44,2,FALSE)+ROW()-2)),\"\")","v":{"$error":"#N/A"}},{"$f":"IF(INDIRECT(\"c\" & (VLOOKUP(Switch!$D$62,$F$2:$G$44,2,FALSE)+ROW()-2))=Switch!$D$62,INDIRECT(\"a\" & (VLOOKUP(Switch!$D$62,$F$2:$G$44,2,FALSE)+ROW()-2)),\"\")","v":{"$error":"#N/A"}},{"$f":"IF(INDIRECT(\"c\" & (VLOOKUP(Switch!$D$63,$F$2:$G$44,2,FALSE)+ROW()-2))=Switch!$D$63,INDIRECT(\"a\" & (VLOOKUP(Switch!$D$63,$F$2:$G$44,2,FALSE)+ROW()-2)),\"\")","v":{"$error":"#N/A"}},{"$f":"IF(INDIRECT(\"c\" & (VLOOKUP(Switch!$D$64,$F$2:$G$44,2,FALSE)+ROW()-2))=Switch!$D$64,INDIRECT(\"a\" & (VLOOKUP(Switch!$D$64,$F$2:$G$44,2,FALSE)+ROW()-2)),\"\")","v":{"$error":"#N/A"}},{"$f":"IF(INDIRECT(\"c\" & (VLOOKUP(Switch!$D$65,$F$2:$G$44,2,FALSE)+ROW()-2))=Switch!$D$65,INDIRECT(\"a\" & (VLOOKUP(Switch!$D$65,$F$2:$G$44,2,FALSE)+ROW()-2)),\"\")","v":{"$error":"#N/A"}},{"$f":"IF(INDIRECT(\"c\" & (VLOOKUP(Switch!$D$66,$F$2:$G$44,2,FALSE)+ROW()-2))=Switch!$D$66,INDIRECT(\"a\" & (VLOOKUP(Switch!$D$66,$F$2:$G$44,2,FALSE)+ROW()-2)),\"\")","v":{"$error":"#N/A"}}]
["STANLIB Income Fund R","GDBI","STANLIB Collective Investments",{"$f":"ROW()","v":58},null,null,{"$f":"VLOOKUP(F58,$C$2:$D$637,2,FALSE)","v":{"$error":"#N/A"}},{"$f":"IF(INDIRECT(\"c\" & (VLOOKUP(Switch!$D$26,$F$2:$G$44,2,FALSE)+ROW()-2))=Switch!$D$26,INDIRECT(\"a\" & (VLOOKUP(Switch!$D$26,$F$2:$G$44,2,FALSE)+ROW()-2)),\"\")","v":{"$error":"#N/A"}},{"$f":"IF(INDIRECT(\"c\" & (VLOOKUP(Switch!$D$27,$F$2:$G$44,2,FALSE)+ROW()-2))=Switch!$D$27,INDIRECT(\"a\" & (VLOOKUP(Switch!$D$27,$F$2:$G$44,2,FALSE)+ROW()-2)),\"\")","v":{"$error":"#N/A"}},{"$f":"IF(INDIRECT(\"c\" & (VLOOKUP(Switch!$D$28,$F$2:$G$44,2,FALSE)+ROW()-2))=Switch!$D$28,INDIRECT(\"a\" & (VLOOKUP(Switch!$D$28,$F$2:$G$44,2,FALSE)+ROW()-2)),\"\")","v":{"$error":"#N/A"}},{"$f":"IF(INDIRECT(\"c\" & (VLOOKUP(Switch!$D$29,$F$2:$G$44,2,FALSE)+ROW()-2))=Switch!$D$29,INDIRECT(\"a\" & (VLOOKUP(Switch!$D$29,$F$2:$G$44,2,FALSE)+ROW()-2)),\"\")","v":{"$error":"#N/A"}},{"$f":"IF(INDIRECT(\"c\" & (VLOOKUP(Switch!$D$30,$F$2:$G$44,2,FALSE)+ROW()-2))=Switch!$D$30,INDIRECT(\"a\" & (VLOOKUP(Switch!$D$30,$F$2:$G$44,2,FALSE)+ROW()-2)),\"\")","v":{"$error":"#N/A"}},{"$f":"IF(INDIRECT(\"c\" & (VLOOKUP(Switch!$D$31,$F$2:$G$44,2,FALSE)+ROW()-2))=Switch!$D$31,INDIRECT(\"a\" & (VLOOKUP(Switch!$D$31,$F$2:$G$44,2,FALSE)+ROW()-2)),\"\")","v":{"$error":"#N/A"}},{"$f":"IF(INDIRECT(\"c\" & (VLOOKUP(Switch!$D$32,$F$2:$G$44,2,FALSE)+ROW()-2))=Switch!$D$32,INDIRECT(\"a\" & (VLOOKUP(Switch!$D$32,$F$2:$G$44,2,FALSE)+ROW()-2)),\"\")","v":{"$error":"#N/A"}},{"$f":"IF(INDIRECT(\"c\" & (VLOOKUP(Switch!$D$33,$F$2:$G$44,2,FALSE)+ROW()-2))=Switch!$D$33,INDIRECT(\"a\" & (VLOOKUP(Switch!$D$33,$F$2:$G$44,2,FALSE)+ROW()-2)),\"\")","v":{"$error":"#N/A"}},{"$f":"IF(INDIRECT(\"c\" & (VLOOKUP(Switch!$D$34,$F$2:$G$44,2,FALSE)+ROW()-2))=Switch!$D$34,INDIRECT(\"a\" & (VLOOKUP(Switch!$D$34,$F$2:$G$44,2,FALSE)+ROW()-2)),\"\")","v":{"$error":"#N/A"}},{"$f":"IF(INDIRECT(\"c\" & (VLOOKUP(Switch!$D$35,$F$2:$G$44,2,FALSE)+ROW()-2))=Switch!$D$35,INDIRECT(\"a\" & (VLOOKUP(Switch!$D$35,$F$2:$G$44,2,FALSE)+ROW()-2)),\"\")","v":{"$error":"#N/A"}},{"$f":"IF(INDIRECT(\"c\" & (VLOOKUP(Switch!$D$36,$F$2:$G$44,2,FALSE)+ROW()-2))=Switch!$D$36,INDIRECT(\"a\" & (VLOOKUP(Switch!$D$36,$F$2:$G$44,2,FALSE)+ROW()-2)),\"\")","v":{"$error":"#N/A"}},{"$f":"IF(INDIRECT(\"c\" & (VLOOKUP(Switch!$D$37,$F$2:$G$44,2,FALSE)+ROW()-2))=Switch!$D$37,INDIRECT(\"a\" & (VLOOKUP(Switch!$D$37,$F$2:$G$44,2,FALSE)+ROW()-2)),\"\")","v":{"$error":"#N/A"}},{"$f":"IF(INDIRECT(\"c\" & (VLOOKUP(Switch!$D$38,$F$2:$G$44,2,FALSE)+ROW()-2))=Switch!$D$38,INDIRECT(\"a\" & (VLOOKUP(Switch!$D$38,$F$2:$G$44,2,FALSE)+ROW()-2)),\"\")","v":{"$error":"#N/A"}},{"$f":"IF(INDIRECT(\"c\" & (VLOOKUP(Switch!$D$39,$F$2:$G$44,2,FALSE)+ROW()-2))=Switch!$D$39,INDIRECT(\"a\" & (VLOOKUP(Switch!$D$39,$F$2:$G$44,2,FALSE)+ROW()-2)),\"\")","v":{"$error":"#N/A"}},{"$f":"IF(INDIRECT(\"c\" & (VLOOKUP(Switch!$D$40,$F$2:$G$44,2,FALSE)+ROW()-2))=Switch!$D$40,INDIRECT(\"a\" & (VLOOKUP(Switch!$D$40,$F$2:$G$44,2,FALSE)+ROW()-2)),\"\")","v":{"$error":"#N/A"}},{"$f":"IF(INDIRECT(\"c\" & (VLOOKUP(Switch!$D$52,$F$2:$G$44,2,FALSE)+ROW()-2))=Switch!$D$52,INDIRECT(\"a\" & (VLOOKUP(Switch!$D$52,$F$2:$G$44,2,FALSE)+ROW()-2)),\"\")","v":{"$error":"#N/A"}},{"$f":"IF(INDIRECT(\"c\" & (VLOOKUP(Switch!$D$53,$F$2:$G$44,2,FALSE)+ROW()-2))=Switch!$D$53,INDIRECT(\"a\" & (VLOOKUP(Switch!$D$53,$F$2:$G$44,2,FALSE)+ROW()-2)),\"\")","v":{"$error":"#N/A"}},{"$f":"IF(INDIRECT(\"c\" & (VLOOKUP(Switch!$D$54,$F$2:$G$44,2,FALSE)+ROW()-2))=Switch!$D$54,INDIRECT(\"a\" & (VLOOKUP(Switch!$D$54,$F$2:$G$44,2,FALSE)+ROW()-2)),\"\")","v":{"$error":"#N/A"}},{"$f":"IF(INDIRECT(\"c\" & (VLOOKUP(Switch!$D$55,$F$2:$G$44,2,FALSE)+ROW()-2))=Switch!$D$55,INDIRECT(\"a\" & (VLOOKUP(Switch!$D$55,$F$2:$G$44,2,FALSE)+ROW()-2)),\"\")","v":{"$error":"#N/A"}},{"$f":"IF(INDIRECT(\"c\" & (VLOOKUP(Switch!$D$56,$F$2:$G$44,2,FALSE)+ROW()-2))=Switch!$D$56,INDIRECT(\"a\" & (VLOOKUP(Switch!$D$56,$F$2:$G$44,2,FALSE)+ROW()-2)),\"\")","v":{"$error":"#N/A"}},{"$f":"IF(INDIRECT(\"c\" & (VLOOKUP(Switch!$D$57,$F$2:$G$44,2,FALSE)+ROW()-2))=Switch!$D$57,INDIRECT(\"a\" & (VLOOKUP(Switch!$D$57,$F$2:$G$44,2,FALSE)+ROW()-2)),\"\")","v":{"$error":"#N/A"}},{"$f":"IF(INDIRECT(\"c\" & (VLOOKUP(Switch!$D$58,$F$2:$G$44,2,FALSE)+ROW()-2))=Switch!$D$58,INDIRECT(\"a\" & (VLOOKUP(Switch!$D$58,$F$2:$G$44,2,FALSE)+ROW()-2)),\"\")","v":{"$error":"#N/A"}},{"$f":"IF(INDIRECT(\"c\" & (VLOOKUP(Switch!$D$59,$F$2:$G$44,2,FALSE)+ROW()-2))=Switch!$D$59,INDIRECT(\"a\" & (VLOOKUP(Switch!$D$59,$F$2:$G$44,2,FALSE)+ROW()-2)),\"\")","v":{"$error":"#N/A"}},{"$f":"IF(INDIRECT(\"c\" & (VLOOKUP(Switch!$D$60,$F$2:$G$44,2,FALSE)+ROW()-2))=Switch!$D$60,INDIRECT(\"a\" & (VLOOKUP(Switch!$D$60,$F$2:$G$44,2,FALSE)+ROW()-2)),\"\")","v":{"$error":"#N/A"}},{"$f":"IF(INDIRECT(\"c\" & (VLOOKUP(Switch!$D$61,$F$2:$G$44,2,FALSE)+ROW()-2))=Switch!$D$61,INDIRECT(\"a\" & (VLOOKUP(Switch!$D$61,$F$2:$G$44,2,FALSE)+ROW()-2)),\"\")","v":{"$error":"#N/A"}},{"$f":"IF(INDIRECT(\"c\" & (VLOOKUP(Switch!$D$62,$F$2:$G$44,2,FALSE)+ROW()-2))=Switch!$D$62,INDIRECT(\"a\" & (VLOOKUP(Switch!$D$62,$F$2:$G$44,2,FALSE)+ROW()-2)),\"\")","v":{"$error":"#N/A"}},{"$f":"IF(INDIRECT(\"c\" & (VLOOKUP(Switch!$D$63,$F$2:$G$44,2,FALSE)+ROW()-2))=Switch!$D$63,INDIRECT(\"a\" & (VLOOKUP(Switch!$D$63,$F$2:$G$44,2,FALSE)+ROW()-2)),\"\")","v":{"$error":"#N/A"}},{"$f":"IF(INDIRECT(\"c\" & (VLOOKUP(Switch!$D$64,$F$2:$G$44,2,FALSE)+ROW()-2))=Switch!$D$64,INDIRECT(\"a\" & (VLOOKUP(Switch!$D$64,$F$2:$G$44,2,FALSE)+ROW()-2)),\"\")","v":{"$error":"#N/A"}},{"$f":"IF(INDIRECT(\"c\" & (VLOOKUP(Switch!$D$65,$F$2:$G$44,2,FALSE)+ROW()-2))=Switch!$D$65,INDIRECT(\"a\" & (VLOOKUP(Switch!$D$65,$F$2:$G$44,2,FALSE)+ROW()-2)),\"\")","v":{"$error":"#N/A"}},{"$f":"IF(INDIRECT(\"c\" & (VLOOKUP(Switch!$D$66,$F$2:$G$44,2,FALSE)+ROW()-2))=Switch!$D$66,INDIRECT(\"a\" & (VLOOKUP(Switch!$D$66,$F$2:$G$44,2,FALSE)+ROW()-2)),\"\")","v":{"$error":"#N/A"}}]
["STANLIB Institutional Money Market Fund B1","STMM","STANLIB Collective Investments",{"$f":"ROW()","v":59},null,null,{"$f":"VLOOKUP(F59,$C$2:$D$637,2,FALSE)","v":{"$error":"#N/A"}},{"$f":"IF(INDIRECT(\"c\" & (VLOOKUP(Switch!$D$26,$F$2:$G$44,2,FALSE)+ROW()-2))=Switch!$D$26,INDIRECT(\"a\" & (VLOOKUP(Switch!$D$26,$F$2:$G$44,2,FALSE)+ROW()-2)),\"\")","v":{"$error":"#N/A"}},{"$f":"IF(INDIRECT(\"c\" & (VLOOKUP(Switch!$D$27,$F$2:$G$44,2,FALSE)+ROW()-2))=Switch!$D$27,INDIRECT(\"a\" & (VLOOKUP(Switch!$D$27,$F$2:$G$44,2,FALSE)+ROW()-2)),\"\")","v":{"$error":"#N/A"}},{"$f":"IF(INDIRECT(\"c\" & (VLOOKUP(Switch!$D$28,$F$2:$G$44,2,FALSE)+ROW()-2))=Switch!$D$28,INDIRECT(\"a\" & (VLOOKUP(Switch!$D$28,$F$2:$G$44,2,FALSE)+ROW()-2)),\"\")","v":{"$error":"#N/A"}},{"$f":"IF(INDIRECT(\"c\" & (VLOOKUP(Switch!$D$29,$F$2:$G$44,2,FALSE)+ROW()-2))=Switch!$D$29,INDIRECT(\"a\" & (VLOOKUP(Switch!$D$29,$F$2:$G$44,2,FALSE)+ROW()-2)),\"\")","v":{"$error":"#N/A"}},{"$f":"IF(INDIRECT(\"c\" & (VLOOKUP(Switch!$D$30,$F$2:$G$44,2,FALSE)+ROW()-2))=Switch!$D$30,INDIRECT(\"a\" & (VLOOKUP(Switch!$D$30,$F$2:$G$44,2,FALSE)+ROW()-2)),\"\")","v":{"$error":"#N/A"}},{"$f":"IF(INDIRECT(\"c\" & (VLOOKUP(Switch!$D$31,$F$2:$G$44,2,FALSE)+ROW()-2))=Switch!$D$31,INDIRECT(\"a\" & (VLOOKUP(Switch!$D$31,$F$2:$G$44,2,FALSE)+ROW()-2)),\"\")","v":{"$error":"#N/A"}},{"$f":"IF(INDIRECT(\"c\" & (VLOOKUP(Switch!$D$32,$F$2:$G$44,2,FALSE)+ROW()-2))=Switch!$D$32,INDIRECT(\"a\" & (VLOOKUP(Switch!$D$32,$F$2:$G$44,2,FALSE)+ROW()-2)),\"\")","v":{"$error":"#N/A"}},{"$f":"IF(INDIRECT(\"c\" & (VLOOKUP(Switch!$D$33,$F$2:$G$44,2,FALSE)+ROW()-2))=Switch!$D$33,INDIRECT(\"a\" & (VLOOKUP(Switch!$D$33,$F$2:$G$44,2,FALSE)+ROW()-2)),\"\")","v":{"$error":"#N/A"}},{"$f":"IF(INDIRECT(\"c\" & (VLOOKUP(Switch!$D$34,$F$2:$G$44,2,FALSE)+ROW()-2))=Switch!$D$34,INDIRECT(\"a\" & (VLOOKUP(Switch!$D$34,$F$2:$G$44,2,FALSE)+ROW()-2)),\"\")","v":{"$error":"#N/A"}},{"$f":"IF(INDIRECT(\"c\" & (VLOOKUP(Switch!$D$35,$F$2:$G$44,2,FALSE)+ROW()-2))=Switch!$D$35,INDIRECT(\"a\" & (VLOOKUP(Switch!$D$35,$F$2:$G$44,2,FALSE)+ROW()-2)),\"\")","v":{"$error":"#N/A"}},{"$f":"IF(INDIRECT(\"c\" & (VLOOKUP(Switch!$D$36,$F$2:$G$44,2,FALSE)+ROW()-2))=Switch!$D$36,INDIRECT(\"a\" & (VLOOKUP(Switch!$D$36,$F$2:$G$44,2,FALSE)+ROW()-2)),\"\")","v":{"$error":"#N/A"}},{"$f":"IF(INDIRECT(\"c\" & (VLOOKUP(Switch!$D$37,$F$2:$G$44,2,FALSE)+ROW()-2))=Switch!$D$37,INDIRECT(\"a\" & (VLOOKUP(Switch!$D$37,$F$2:$G$44,2,FALSE)+ROW()-2)),\"\")","v":{"$error":"#N/A"}},{"$f":"IF(INDIRECT(\"c\" & (VLOOKUP(Switch!$D$38,$F$2:$G$44,2,FALSE)+ROW()-2))=Switch!$D$38,INDIRECT(\"a\" & (VLOOKUP(Switch!$D$38,$F$2:$G$44,2,FALSE)+ROW()-2)),\"\")","v":{"$error":"#N/A"}},{"$f":"IF(INDIRECT(\"c\" & (VLOOKUP(Switch!$D$39,$F$2:$G$44,2,FALSE)+ROW()-2))=Switch!$D$39,INDIRECT(\"a\" & (VLOOKUP(Switch!$D$39,$F$2:$G$44,2,FALSE)+ROW()-2)),\"\")","v":{"$error":"#N/A"}},{"$f":"IF(INDIRECT(\"c\" & (VLOOKUP(Switch!$D$40,$F$2:$G$44,2,FALSE)+ROW()-2))=Switch!$D$40,INDIRECT(\"a\" & (VLOOKUP(Switch!$D$40,$F$2:$G$44,2,FALSE)+ROW()-2)),\"\")","v":{"$error":"#N/A"}},{"$f":"IF(INDIRECT(\"c\" & (VLOOKUP(Switch!$D$52,$F$2:$G$44,2,FALSE)+ROW()-2))=Switch!$D$52,INDIRECT(\"a\" & (VLOOKUP(Switch!$D$52,$F$2:$G$44,2,FALSE)+ROW()-2)),\"\")","v":{"$error":"#N/A"}},{"$f":"IF(INDIRECT(\"c\" & (VLOOKUP(Switch!$D$53,$F$2:$G$44,2,FALSE)+ROW()-2))=Switch!$D$53,INDIRECT(\"a\" & (VLOOKUP(Switch!$D$53,$F$2:$G$44,2,FALSE)+ROW()-2)),\"\")","v":{"$error":"#N/A"}},{"$f":"IF(INDIRECT(\"c\" & (VLOOKUP(Switch!$D$54,$F$2:$G$44,2,FALSE)+ROW()-2))=Switch!$D$54,INDIRECT(\"a\" & (VLOOKUP(Switch!$D$54,$F$2:$G$44,2,FALSE)+ROW()-2)),\"\")","v":{"$error":"#N/A"}},{"$f":"IF(INDIRECT(\"c\" & (VLOOKUP(Switch!$D$55,$F$2:$G$44,2,FALSE)+ROW()-2))=Switch!$D$55,INDIRECT(\"a\" & (VLOOKUP(Switch!$D$55,$F$2:$G$44,2,FALSE)+ROW()-2)),\"\")","v":{"$error":"#N/A"}},{"$f":"IF(INDIRECT(\"c\" & (VLOOKUP(Switch!$D$56,$F$2:$G$44,2,FALSE)+ROW()-2))=Switch!$D$56,INDIRECT(\"a\" & (VLOOKUP(Switch!$D$56,$F$2:$G$44,2,FALSE)+ROW()-2)),\"\")","v":{"$error":"#N/A"}},{"$f":"IF(INDIRECT(\"c\" & (VLOOKUP(Switch!$D$57,$F$2:$G$44,2,FALSE)+ROW()-2))=Switch!$D$57,INDIRECT(\"a\" & (VLOOKUP(Switch!$D$57,$F$2:$G$44,2,FALSE)+ROW()-2)),\"\")","v":{"$error":"#N/A"}},{"$f":"IF(INDIRECT(\"c\" & (VLOOKUP(Switch!$D$58,$F$2:$G$44,2,FALSE)+ROW()-2))=Switch!$D$58,INDIRECT(\"a\" & (VLOOKUP(Switch!$D$58,$F$2:$G$44,2,FALSE)+ROW()-2)),\"\")","v":{"$error":"#N/A"}},{"$f":"IF(INDIRECT(\"c\" & (VLOOKUP(Switch!$D$59,$F$2:$G$44,2,FALSE)+ROW()-2))=Switch!$D$59,INDIRECT(\"a\" & (VLOOKUP(Switch!$D$59,$F$2:$G$44,2,FALSE)+ROW()-2)),\"\")","v":{"$error":"#N/A"}},{"$f":"IF(INDIRECT(\"c\" & (VLOOKUP(Switch!$D$60,$F$2:$G$44,2,FALSE)+ROW()-2))=Switch!$D$60,INDIRECT(\"a\" & (VLOOKUP(Switch!$D$60,$F$2:$G$44,2,FALSE)+ROW()-2)),\"\")","v":{"$error":"#N/A"}},{"$f":"IF(INDIRECT(\"c\" & (VLOOKUP(Switch!$D$61,$F$2:$G$44,2,FALSE)+ROW()-2))=Switch!$D$61,INDIRECT(\"a\" & (VLOOKUP(Switch!$D$61,$F$2:$G$44,2,FALSE)+ROW()-2)),\"\")","v":{"$error":"#N/A"}},{"$f":"IF(INDIRECT(\"c\" & (VLOOKUP(Switch!$D$62,$F$2:$G$44,2,FALSE)+ROW()-2))=Switch!$D$62,INDIRECT(\"a\" & (VLOOKUP(Switch!$D$62,$F$2:$G$44,2,FALSE)+ROW()-2)),\"\")","v":{"$error":"#N/A"}},{"$f":"IF(INDIRECT(\"c\" & (VLOOKUP(Switch!$D$63,$F$2:$G$44,2,FALSE)+ROW()-2))=Switch!$D$63,INDIRECT(\"a\" & (VLOOKUP(Switch!$D$63,$F$2:$G$44,2,FALSE)+ROW()-2)),\"\")","v":{"$error":"#N/A"}},{"$f":"IF(INDIRECT(\"c\" & (VLOOKUP(Switch!$D$64,$F$2:$G$44,2,FALSE)+ROW()-2))=Switch!$D$64,INDIRECT(\"a\" & (VLOOKUP(Switch!$D$64,$F$2:$G$44,2,FALSE)+ROW()-2)),\"\")","v":{"$error":"#N/A"}},{"$f":"IF(INDIRECT(\"c\" & (VLOOKUP(Switch!$D$65,$F$2:$G$44,2,FALSE)+ROW()-2))=Switch!$D$65,INDIRECT(\"a\" & (VLOOKUP(Switch!$D$65,$F$2:$G$44,2,FALSE)+ROW()-2)),\"\")","v":{"$error":"#N/A"}},{"$f":"IF(INDIRECT(\"c\" & (VLOOKUP(Switch!$D$66,$F$2:$G$44,2,FALSE)+ROW()-2))=Switch!$D$66,INDIRECT(\"a\" & (VLOOKUP(Switch!$D$66,$F$2:$G$44,2,FALSE)+ROW()-2)),\"\")","v":{"$error":"#N/A"}}]
["STANLIB Institutional Money Market Fund B13","STMM","STANLIB Collective Investments",{"$f":"ROW()","v":60},null,null,{"$f":"VLOOKUP(F60,$C$2:$D$637,2,FALSE)","v":{"$error":"#N/A"}},{"$f":"IF(INDIRECT(\"c\" & (VLOOKUP(Switch!$D$26,$F$2:$G$44,2,FALSE)+ROW()-2))=Switch!$D$26,INDIRECT(\"a\" & (VLOOKUP(Switch!$D$26,$F$2:$G$44,2,FALSE)+ROW()-2)),\"\")","v":{"$error":"#N/A"}},{"$f":"IF(INDIRECT(\"c\" & (VLOOKUP(Switch!$D$27,$F$2:$G$44,2,FALSE)+ROW()-2))=Switch!$D$27,INDIRECT(\"a\" & (VLOOKUP(Switch!$D$27,$F$2:$G$44,2,FALSE)+ROW()-2)),\"\")","v":{"$error":"#N/A"}},{"$f":"IF(INDIRECT(\"c\" & (VLOOKUP(Switch!$D$28,$F$2:$G$44,2,FALSE)+ROW()-2))=Switch!$D$28,INDIRECT(\"a\" & (VLOOKUP(Switch!$D$28,$F$2:$G$44,2,FALSE)+ROW()-2)),\"\")","v":{"$error":"#N/A"}},{"$f":"IF(INDIRECT(\"c\" & (VLOOKUP(Switch!$D$29,$F$2:$G$44,2,FALSE)+ROW()-2))=Switch!$D$29,INDIRECT(\"a\" & (VLOOKUP(Switch!$D$29,$F$2:$G$44,2,FALSE)+ROW()-2)),\"\")","v":{"$error":"#N/A"}},{"$f":"IF(INDIRECT(\"c\" & (VLOOKUP(Switch!$D$30,$F$2:$G$44,2,FALSE)+ROW()-2))=Switch!$D$30,INDIRECT(\"a\" & (VLOOKUP(Switch!$D$30,$F$2:$G$44,2,FALSE)+ROW()-2)),\"\")","v":{"$error":"#N/A"}},{"$f":"IF(INDIRECT(\"c\" & (VLOOKUP(Switch!$D$31,$F$2:$G$44,2,FALSE)+ROW()-2))=Switch!$D$31,INDIRECT(\"a\" & (VLOOKUP(Switch!$D$31,$F$2:$G$44,2,FALSE)+ROW()-2)),\"\")","v":{"$error":"#N/A"}},{"$f":"IF(INDIRECT(\"c\" & (VLOOKUP(Switch!$D$32,$F$2:$G$44,2,FALSE)+ROW()-2))=Switch!$D$32,INDIRECT(\"a\" & (VLOOKUP(Switch!$D$32,$F$2:$G$44,2,FALSE)+ROW()-2)),\"\")","v":{"$error":"#N/A"}},{"$f":"IF(INDIRECT(\"c\" & (VLOOKUP(Switch!$D$33,$F$2:$G$44,2,FALSE)+ROW()-2))=Switch!$D$33,INDIRECT(\"a\" & (VLOOKUP(Switch!$D$33,$F$2:$G$44,2,FALSE)+ROW()-2)),\"\")","v":{"$error":"#N/A"}},{"$f":"IF(INDIRECT(\"c\" & (VLOOKUP(Switch!$D$34,$F$2:$G$44,2,FALSE)+ROW()-2))=Switch!$D$34,INDIRECT(\"a\" & (VLOOKUP(Switch!$D$34,$F$2:$G$44,2,FALSE)+ROW()-2)),\"\")","v":{"$error":"#N/A"}},{"$f":"IF(INDIRECT(\"c\" & (VLOOKUP(Switch!$D$35,$F$2:$G$44,2,FALSE)+ROW()-2))=Switch!$D$35,INDIRECT(\"a\" & (VLOOKUP(Switch!$D$35,$F$2:$G$44,2,FALSE)+ROW()-2)),\"\")","v":{"$error":"#N/A"}},{"$f":"IF(INDIRECT(\"c\" & (VLOOKUP(Switch!$D$36,$F$2:$G$44,2,FALSE)+ROW()-2))=Switch!$D$36,INDIRECT(\"a\" & (VLOOKUP(Switch!$D$36,$F$2:$G$44,2,FALSE)+ROW()-2)),\"\")","v":{"$error":"#N/A"}},{"$f":"IF(INDIRECT(\"c\" & (VLOOKUP(Switch!$D$37,$F$2:$G$44,2,FALSE)+ROW()-2))=Switch!$D$37,INDIRECT(\"a\" & (VLOOKUP(Switch!$D$37,$F$2:$G$44,2,FALSE)+ROW()-2)),\"\")","v":{"$error":"#N/A"}},{"$f":"IF(INDIRECT(\"c\" & (VLOOKUP(Switch!$D$38,$F$2:$G$44,2,FALSE)+ROW()-2))=Switch!$D$38,INDIRECT(\"a\" & (VLOOKUP(Switch!$D$38,$F$2:$G$44,2,FALSE)+ROW()-2)),\"\")","v":{"$error":"#N/A"}},{"$f":"IF(INDIRECT(\"c\" & (VLOOKUP(Switch!$D$39,$F$2:$G$44,2,FALSE)+ROW()-2))=Switch!$D$39,INDIRECT(\"a\" & (VLOOKUP(Switch!$D$39,$F$2:$G$44,2,FALSE)+ROW()-2)),\"\")","v":{"$error":"#N/A"}},{"$f":"IF(INDIRECT(\"c\" & (VLOOKUP(Switch!$D$40,$F$2:$G$44,2,FALSE)+ROW()-2))=Switch!$D$40,INDIRECT(\"a\" & (VLOOKUP(Switch!$D$40,$F$2:$G$44,2,FALSE)+ROW()-2)),\"\")","v":{"$error":"#N/A"}},{"$f":"IF(INDIRECT(\"c\" & (VLOOKUP(Switch!$D$52,$F$2:$G$44,2,FALSE)+ROW()-2))=Switch!$D$52,INDIRECT(\"a\" & (VLOOKUP(Switch!$D$52,$F$2:$G$44,2,FALSE)+ROW()-2)),\"\")","v":{"$error":"#N/A"}},{"$f":"IF(INDIRECT(\"c\" & (VLOOKUP(Switch!$D$53,$F$2:$G$44,2,FALSE)+ROW()-2))=Switch!$D$53,INDIRECT(\"a\" & (VLOOKUP(Switch!$D$53,$F$2:$G$44,2,FALSE)+ROW()-2)),\"\")","v":{"$error":"#N/A"}},{"$f":"IF(INDIRECT(\"c\" & (VLOOKUP(Switch!$D$54,$F$2:$G$44,2,FALSE)+ROW()-2))=Switch!$D$54,INDIRECT(\"a\" & (VLOOKUP(Switch!$D$54,$F$2:$G$44,2,FALSE)+ROW()-2)),\"\")","v":{"$error":"#N/A"}},{"$f":"IF(INDIRECT(\"c\" & (VLOOKUP(Switch!$D$55,$F$2:$G$44,2,FALSE)+ROW()-2))=Switch!$D$55,INDIRECT(\"a\" & (VLOOKUP(Switch!$D$55,$F$2:$G$44,2,FALSE)+ROW()-2)),\"\")","v":{"$error":"#N/A"}},{"$f":"IF(INDIRECT(\"c\" & (VLOOKUP(Switch!$D$56,$F$2:$G$44,2,FALSE)+ROW()-2))=Switch!$D$56,INDIRECT(\"a\" & (VLOOKUP(Switch!$D$56,$F$2:$G$44,2,FALSE)+ROW()-2)),\"\")","v":{"$error":"#N/A"}},{"$f":"IF(INDIRECT(\"c\" & (VLOOKUP(Switch!$D$57,$F$2:$G$44,2,FALSE)+ROW()-2))=Switch!$D$57,INDIRECT(\"a\" & (VLOOKUP(Switch!$D$57,$F$2:$G$44,2,FALSE)+ROW()-2)),\"\")","v":{"$error":"#N/A"}},{"$f":"IF(INDIRECT(\"c\" & (VLOOKUP(Switch!$D$58,$F$2:$G$44,2,FALSE)+ROW()-2))=Switch!$D$58,INDIRECT(\"a\" & (VLOOKUP(Switch!$D$58,$F$2:$G$44,2,FALSE)+ROW()-2)),\"\")","v":{"$error":"#N/A"}},{"$f":"IF(INDIRECT(\"c\" & (VLOOKUP(Switch!$D$59,$F$2:$G$44,2,FALSE)+ROW()-2))=Switch!$D$59,INDIRECT(\"a\" & (VLOOKUP(Switch!$D$59,$F$2:$G$44,2,FALSE)+ROW()-2)),\"\")","v":{"$error":"#N/A"}},{"$f":"IF(INDIRECT(\"c\" & (VLOOKUP(Switch!$D$60,$F$2:$G$44,2,FALSE)+ROW()-2))=Switch!$D$60,INDIRECT(\"a\" & (VLOOKUP(Switch!$D$60,$F$2:$G$44,2,FALSE)+ROW()-2)),\"\")","v":{"$error":"#N/A"}},{"$f":"IF(INDIRECT(\"c\" & (VLOOKUP(Switch!$D$61,$F$2:$G$44,2,FALSE)+ROW()-2))=Switch!$D$61,INDIRECT(\"a\" & (VLOOKUP(Switch!$D$61,$F$2:$G$44,2,FALSE)+ROW()-2)),\"\")","v":{"$error":"#N/A"}},{"$f":"IF(INDIRECT(\"c\" & (VLOOKUP(Switch!$D$62,$F$2:$G$44,2,FALSE)+ROW()-2))=Switch!$D$62,INDIRECT(\"a\" & (VLOOKUP(Switch!$D$62,$F$2:$G$44,2,FALSE)+ROW()-2)),\"\")","v":{"$error":"#N/A"}},{"$f":"IF(INDIRECT(\"c\" & (VLOOKUP(Switch!$D$63,$F$2:$G$44,2,FALSE)+ROW()-2))=Switch!$D$63,INDIRECT(\"a\" & (VLOOKUP(Switch!$D$63,$F$2:$G$44,2,FALSE)+ROW()-2)),\"\")","v":{"$error":"#N/A"}},{"$f":"IF(INDIRECT(\"c\" & (VLOOKUP(Switch!$D$64,$F$2:$G$44,2,FALSE)+ROW()-2))=Switch!$D$64,INDIRECT(\"a\" & (VLOOKUP(Switch!$D$64,$F$2:$G$44,2,FALSE)+ROW()-2)),\"\")","v":{"$error":"#N/A"}},{"$f":"IF(INDIRECT(\"c\" & (VLOOKUP(Switch!$D$65,$F$2:$G$44,2,FALSE)+ROW()-2))=Switch!$D$65,INDIRECT(\"a\" & (VLOOKUP(Switch!$D$65,$F$2:$G$44,2,FALSE)+ROW()-2)),\"\")","v":{"$error":"#N/A"}},{"$f":"IF(INDIRECT(\"c\" & (VLOOKUP(Switch!$D$66,$F$2:$G$44,2,FALSE)+ROW()-2))=Switch!$D$66,INDIRECT(\"a\" & (VLOOKUP(Switch!$D$66,$F$2:$G$44,2,FALSE)+ROW()-2)),\"\")","v":{"$error":"#N/A"}}]
["STANLIB MM Absolute Income B1","STI1","STANLIB Collective Investments",{"$f":"ROW()","v":61},null,null,{"$f":"VLOOKUP(F61,$C$2:$D$637,2,FALSE)","v":{"$error":"#N/A"}},{"$f":"IF(INDIRECT(\"c\" & (VLOOKUP(Switch!$D$26,$F$2:$G$44,2,FALSE)+ROW()-2))=Switch!$D$26,INDIRECT(\"a\" & (VLOOKUP(Switch!$D$26,$F$2:$G$44,2,FALSE)+ROW()-2)),\"\")","v":{"$error":"#N/A"}},{"$f":"IF(INDIRECT(\"c\" & (VLOOKUP(Switch!$D$27,$F$2:$G$44,2,FALSE)+ROW()-2))=Switch!$D$27,INDIRECT(\"a\" & (VLOOKUP(Switch!$D$27,$F$2:$G$44,2,FALSE)+ROW()-2)),\"\")","v":{"$error":"#N/A"}},{"$f":"IF(INDIRECT(\"c\" & (VLOOKUP(Switch!$D$28,$F$2:$G$44,2,FALSE)+ROW()-2))=Switch!$D$28,INDIRECT(\"a\" & (VLOOKUP(Switch!$D$28,$F$2:$G$44,2,FALSE)+ROW()-2)),\"\")","v":{"$error":"#N/A"}},{"$f":"IF(INDIRECT(\"c\" & (VLOOKUP(Switch!$D$29,$F$2:$G$44,2,FALSE)+ROW()-2))=Switch!$D$29,INDIRECT(\"a\" & (VLOOKUP(Switch!$D$29,$F$2:$G$44,2,FALSE)+ROW()-2)),\"\")","v":{"$error":"#N/A"}},{"$f":"IF(INDIRECT(\"c\" & (VLOOKUP(Switch!$D$30,$F$2:$G$44,2,FALSE)+ROW()-2))=Switch!$D$30,INDIRECT(\"a\" & (VLOOKUP(Switch!$D$30,$F$2:$G$44,2,FALSE)+ROW()-2)),\"\")","v":{"$error":"#N/A"}},{"$f":"IF(INDIRECT(\"c\" & (VLOOKUP(Switch!$D$31,$F$2:$G$44,2,FALSE)+ROW()-2))=Switch!$D$31,INDIRECT(\"a\" & (VLOOKUP(Switch!$D$31,$F$2:$G$44,2,FALSE)+ROW()-2)),\"\")","v":{"$error":"#N/A"}},{"$f":"IF(INDIRECT(\"c\" & (VLOOKUP(Switch!$D$32,$F$2:$G$44,2,FALSE)+ROW()-2))=Switch!$D$32,INDIRECT(\"a\" & (VLOOKUP(Switch!$D$32,$F$2:$G$44,2,FALSE)+ROW()-2)),\"\")","v":{"$error":"#N/A"}},{"$f":"IF(INDIRECT(\"c\" & (VLOOKUP(Switch!$D$33,$F$2:$G$44,2,FALSE)+ROW()-2))=Switch!$D$33,INDIRECT(\"a\" & (VLOOKUP(Switch!$D$33,$F$2:$G$44,2,FALSE)+ROW()-2)),\"\")","v":{"$error":"#N/A"}},{"$f":"IF(INDIRECT(\"c\" & (VLOOKUP(Switch!$D$34,$F$2:$G$44,2,FALSE)+ROW()-2))=Switch!$D$34,INDIRECT(\"a\" & (VLOOKUP(Switch!$D$34,$F$2:$G$44,2,FALSE)+ROW()-2)),\"\")","v":{"$error":"#N/A"}},{"$f":"IF(INDIRECT(\"c\" & (VLOOKUP(Switch!$D$35,$F$2:$G$44,2,FALSE)+ROW()-2))=Switch!$D$35,INDIRECT(\"a\" & (VLOOKUP(Switch!$D$35,$F$2:$G$44,2,FALSE)+ROW()-2)),\"\")","v":{"$error":"#N/A"}},{"$f":"IF(INDIRECT(\"c\" & (VLOOKUP(Switch!$D$36,$F$2:$G$44,2,FALSE)+ROW()-2))=Switch!$D$36,INDIRECT(\"a\" & (VLOOKUP(Switch!$D$36,$F$2:$G$44,2,FALSE)+ROW()-2)),\"\")","v":{"$error":"#N/A"}},{"$f":"IF(INDIRECT(\"c\" & (VLOOKUP(Switch!$D$37,$F$2:$G$44,2,FALSE)+ROW()-2))=Switch!$D$37,INDIRECT(\"a\" & (VLOOKUP(Switch!$D$37,$F$2:$G$44,2,FALSE)+ROW()-2)),\"\")","v":{"$error":"#N/A"}},{"$f":"IF(INDIRECT(\"c\" & (VLOOKUP(Switch!$D$38,$F$2:$G$44,2,FALSE)+ROW()-2))=Switch!$D$38,INDIRECT(\"a\" & (VLOOKUP(Switch!$D$38,$F$2:$G$44,2,FALSE)+ROW()-2)),\"\")","v":{"$error":"#N/A"}},{"$f":"IF(INDIRECT(\"c\" & (VLOOKUP(Switch!$D$39,$F$2:$G$44,2,FALSE)+ROW()-2))=Switch!$D$39,INDIRECT(\"a\" & (VLOOKUP(Switch!$D$39,$F$2:$G$44,2,FALSE)+ROW()-2)),\"\")","v":{"$error":"#N/A"}},{"$f":"IF(INDIRECT(\"c\" & (VLOOKUP(Switch!$D$40,$F$2:$G$44,2,FALSE)+ROW()-2))=Switch!$D$40,INDIRECT(\"a\" & (VLOOKUP(Switch!$D$40,$F$2:$G$44,2,FALSE)+ROW()-2)),\"\")","v":{"$error":"#N/A"}},{"$f":"IF(INDIRECT(\"c\" & (VLOOKUP(Switch!$D$52,$F$2:$G$44,2,FALSE)+ROW()-2))=Switch!$D$52,INDIRECT(\"a\" & (VLOOKUP(Switch!$D$52,$F$2:$G$44,2,FALSE)+ROW()-2)),\"\")","v":{"$error":"#N/A"}},{"$f":"IF(INDIRECT(\"c\" & (VLOOKUP(Switch!$D$53,$F$2:$G$44,2,FALSE)+ROW()-2))=Switch!$D$53,INDIRECT(\"a\" & (VLOOKUP(Switch!$D$53,$F$2:$G$44,2,FALSE)+ROW()-2)),\"\")","v":{"$error":"#N/A"}},{"$f":"IF(INDIRECT(\"c\" & (VLOOKUP(Switch!$D$54,$F$2:$G$44,2,FALSE)+ROW()-2))=Switch!$D$54,INDIRECT(\"a\" & (VLOOKUP(Switch!$D$54,$F$2:$G$44,2,FALSE)+ROW()-2)),\"\")","v":{"$error":"#N/A"}},{"$f":"IF(INDIRECT(\"c\" & (VLOOKUP(Switch!$D$55,$F$2:$G$44,2,FALSE)+ROW()-2))=Switch!$D$55,INDIRECT(\"a\" & (VLOOKUP(Switch!$D$55,$F$2:$G$44,2,FALSE)+ROW()-2)),\"\")","v":{"$error":"#N/A"}},{"$f":"IF(INDIRECT(\"c\" & (VLOOKUP(Switch!$D$56,$F$2:$G$44,2,FALSE)+ROW()-2))=Switch!$D$56,INDIRECT(\"a\" & (VLOOKUP(Switch!$D$56,$F$2:$G$44,2,FALSE)+ROW()-2)),\"\")","v":{"$error":"#N/A"}},{"$f":"IF(INDIRECT(\"c\" & (VLOOKUP(Switch!$D$57,$F$2:$G$44,2,FALSE)+ROW()-2))=Switch!$D$57,INDIRECT(\"a\" & (VLOOKUP(Switch!$D$57,$F$2:$G$44,2,FALSE)+ROW()-2)),\"\")","v":{"$error":"#N/A"}},{"$f":"IF(INDIRECT(\"c\" & (VLOOKUP(Switch!$D$58,$F$2:$G$44,2,FALSE)+ROW()-2))=Switch!$D$58,INDIRECT(\"a\" & (VLOOKUP(Switch!$D$58,$F$2:$G$44,2,FALSE)+ROW()-2)),\"\")","v":{"$error":"#N/A"}},{"$f":"IF(INDIRECT(\"c\" & (VLOOKUP(Switch!$D$59,$F$2:$G$44,2,FALSE)+ROW()-2))=Switch!$D$59,INDIRECT(\"a\" & (VLOOKUP(Switch!$D$59,$F$2:$G$44,2,FALSE)+ROW()-2)),\"\")","v":{"$error":"#N/A"}},{"$f":"IF(INDIRECT(\"c\" & (VLOOKUP(Switch!$D$60,$F$2:$G$44,2,FALSE)+ROW()-2))=Switch!$D$60,INDIRECT(\"a\" & (VLOOKUP(Switch!$D$60,$F$2:$G$44,2,FALSE)+ROW()-2)),\"\")","v":{"$error":"#N/A"}},{"$f":"IF(INDIRECT(\"c\" & (VLOOKUP(Switch!$D$61,$F$2:$G$44,2,FALSE)+ROW()-2))=Switch!$D$61,INDIRECT(\"a\" & (VLOOKUP(Switch!$D$61,$F$2:$G$44,2,FALSE)+ROW()-2)),\"\")","v":{"$error":"#N/A"}},{"$f":"IF(INDIRECT(\"c\" & (VLOOKUP(Switch!$D$62,$F$2:$G$44,2,FALSE)+ROW()-2))=Switch!$D$62,INDIRECT(\"a\" & (VLOOKUP(Switch!$D$62,$F$2:$G$44,2,FALSE)+ROW()-2)),\"\")","v":{"$error":"#N/A"}},{"$f":"IF(INDIRECT(\"c\" & (VLOOKUP(Switch!$D$63,$F$2:$G$44,2,FALSE)+ROW()-2))=Switch!$D$63,INDIRECT(\"a\" & (VLOOKUP(Switch!$D$63,$F$2:$G$44,2,FALSE)+ROW()-2)),\"\")","v":{"$error":"#N/A"}},{"$f":"IF(INDIRECT(\"c\" & (VLOOKUP(Switch!$D$64,$F$2:$G$44,2,FALSE)+ROW()-2))=Switch!$D$64,INDIRECT(\"a\" & (VLOOKUP(Switch!$D$64,$F$2:$G$44,2,FALSE)+ROW()-2)),\"\")","v":{"$error":"#N/A"}},{"$f":"IF(INDIRECT(\"c\" & (VLOOKUP(Switch!$D$65,$F$2:$G$44,2,FALSE)+ROW()-2))=Switch!$D$65,INDIRECT(\"a\" & (VLOOKUP(Switch!$D$65,$F$2:$G$44,2,FALSE)+ROW()-2)),\"\")","v":{"$error":"#N/A"}},{"$f":"IF(INDIRECT(\"c\" & (VLOOKUP(Switch!$D$66,$F$2:$G$44,2,FALSE)+ROW()-2))=Switch!$D$66,INDIRECT(\"a\" & (VLOOKUP(Switch!$D$66,$F$2:$G$44,2,FALSE)+ROW()-2)),\"\")","v":{"$error":"#N/A"}}]
["STANLIB MM Balanced Fund B1","STH1","STANLIB Collective Investments",{"$f":"ROW()","v":62},null,null,{"$f":"VLOOKUP(F62,$C$2:$D$637,2,FALSE)","v":{"$error":"#N/A"}},{"$f":"IF(INDIRECT(\"c\" & (VLOOKUP(Switch!$D$26,$F$2:$G$44,2,FALSE)+ROW()-2))=Switch!$D$26,INDIRECT(\"a\" & (VLOOKUP(Switch!$D$26,$F$2:$G$44,2,FALSE)+ROW()-2)),\"\")","v":{"$error":"#N/A"}},{"$f":"IF(INDIRECT(\"c\" & (VLOOKUP(Switch!$D$27,$F$2:$G$44,2,FALSE)+ROW()-2))=Switch!$D$27,INDIRECT(\"a\" & (VLOOKUP(Switch!$D$27,$F$2:$G$44,2,FALSE)+ROW()-2)),\"\")","v":{"$error":"#N/A"}},{"$f":"IF(INDIRECT(\"c\" & (VLOOKUP(Switch!$D$28,$F$2:$G$44,2,FALSE)+ROW()-2))=Switch!$D$28,INDIRECT(\"a\" & (VLOOKUP(Switch!$D$28,$F$2:$G$44,2,FALSE)+ROW()-2)),\"\")","v":{"$error":"#N/A"}},{"$f":"IF(INDIRECT(\"c\" & (VLOOKUP(Switch!$D$29,$F$2:$G$44,2,FALSE)+ROW()-2))=Switch!$D$29,INDIRECT(\"a\" & (VLOOKUP(Switch!$D$29,$F$2:$G$44,2,FALSE)+ROW()-2)),\"\")","v":{"$error":"#N/A"}},{"$f":"IF(INDIRECT(\"c\" & (VLOOKUP(Switch!$D$30,$F$2:$G$44,2,FALSE)+ROW()-2))=Switch!$D$30,INDIRECT(\"a\" & (VLOOKUP(Switch!$D$30,$F$2:$G$44,2,FALSE)+ROW()-2)),\"\")","v":{"$error":"#N/A"}},{"$f":"IF(INDIRECT(\"c\" & (VLOOKUP(Switch!$D$31,$F$2:$G$44,2,FALSE)+ROW()-2))=Switch!$D$31,INDIRECT(\"a\" & (VLOOKUP(Switch!$D$31,$F$2:$G$44,2,FALSE)+ROW()-2)),\"\")","v":{"$error":"#N/A"}},{"$f":"IF(INDIRECT(\"c\" & (VLOOKUP(Switch!$D$32,$F$2:$G$44,2,FALSE)+ROW()-2))=Switch!$D$32,INDIRECT(\"a\" & (VLOOKUP(Switch!$D$32,$F$2:$G$44,2,FALSE)+ROW()-2)),\"\")","v":{"$error":"#N/A"}},{"$f":"IF(INDIRECT(\"c\" & (VLOOKUP(Switch!$D$33,$F$2:$G$44,2,FALSE)+ROW()-2))=Switch!$D$33,INDIRECT(\"a\" & (VLOOKUP(Switch!$D$33,$F$2:$G$44,2,FALSE)+ROW()-2)),\"\")","v":{"$error":"#N/A"}},{"$f":"IF(INDIRECT(\"c\" & (VLOOKUP(Switch!$D$34,$F$2:$G$44,2,FALSE)+ROW()-2))=Switch!$D$34,INDIRECT(\"a\" & (VLOOKUP(Switch!$D$34,$F$2:$G$44,2,FALSE)+ROW()-2)),\"\")","v":{"$error":"#N/A"}},{"$f":"IF(INDIRECT(\"c\" & (VLOOKUP(Switch!$D$35,$F$2:$G$44,2,FALSE)+ROW()-2))=Switch!$D$35,INDIRECT(\"a\" & (VLOOKUP(Switch!$D$35,$F$2:$G$44,2,FALSE)+ROW()-2)),\"\")","v":{"$error":"#N/A"}},{"$f":"IF(INDIRECT(\"c\" & (VLOOKUP(Switch!$D$36,$F$2:$G$44,2,FALSE)+ROW()-2))=Switch!$D$36,INDIRECT(\"a\" & (VLOOKUP(Switch!$D$36,$F$2:$G$44,2,FALSE)+ROW()-2)),\"\")","v":{"$error":"#N/A"}},{"$f":"IF(INDIRECT(\"c\" & (VLOOKUP(Switch!$D$37,$F$2:$G$44,2,FALSE)+ROW()-2))=Switch!$D$37,INDIRECT(\"a\" & (VLOOKUP(Switch!$D$37,$F$2:$G$44,2,FALSE)+ROW()-2)),\"\")","v":{"$error":"#N/A"}},{"$f":"IF(INDIRECT(\"c\" & (VLOOKUP(Switch!$D$38,$F$2:$G$44,2,FALSE)+ROW()-2))=Switch!$D$38,INDIRECT(\"a\" & (VLOOKUP(Switch!$D$38,$F$2:$G$44,2,FALSE)+ROW()-2)),\"\")","v":{"$error":"#N/A"}},{"$f":"IF(INDIRECT(\"c\" & (VLOOKUP(Switch!$D$39,$F$2:$G$44,2,FALSE)+ROW()-2))=Switch!$D$39,INDIRECT(\"a\" & (VLOOKUP(Switch!$D$39,$F$2:$G$44,2,FALSE)+ROW()-2)),\"\")","v":{"$error":"#N/A"}},{"$f":"IF(INDIRECT(\"c\" & (VLOOKUP(Switch!$D$40,$F$2:$G$44,2,FALSE)+ROW()-2))=Switch!$D$40,INDIRECT(\"a\" & (VLOOKUP(Switch!$D$40,$F$2:$G$44,2,FALSE)+ROW()-2)),\"\")","v":{"$error":"#N/A"}},{"$f":"IF(INDIRECT(\"c\" & (VLOOKUP(Switch!$D$52,$F$2:$G$44,2,FALSE)+ROW()-2))=Switch!$D$52,INDIRECT(\"a\" & (VLOOKUP(Switch!$D$52,$F$2:$G$44,2,FALSE)+ROW()-2)),\"\")","v":{"$error":"#N/A"}},{"$f":"IF(INDIRECT(\"c\" & (VLOOKUP(Switch!$D$53,$F$2:$G$44,2,FALSE)+ROW()-2))=Switch!$D$53,INDIRECT(\"a\" & (VLOOKUP(Switch!$D$53,$F$2:$G$44,2,FALSE)+ROW()-2)),\"\")","v":{"$error":"#N/A"}},{"$f":"IF(INDIRECT(\"c\" & (VLOOKUP(Switch!$D$54,$F$2:$G$44,2,FALSE)+ROW()-2))=Switch!$D$54,INDIRECT(\"a\" & (VLOOKUP(Switch!$D$54,$F$2:$G$44,2,FALSE)+ROW()-2)),\"\")","v":{"$error":"#N/A"}},{"$f":"IF(INDIRECT(\"c\" & (VLOOKUP(Switch!$D$55,$F$2:$G$44,2,FALSE)+ROW()-2))=Switch!$D$55,INDIRECT(\"a\" & (VLOOKUP(Switch!$D$55,$F$2:$G$44,2,FALSE)+ROW()-2)),\"\")","v":{"$error":"#N/A"}},{"$f":"IF(INDIRECT(\"c\" & (VLOOKUP(Switch!$D$56,$F$2:$G$44,2,FALSE)+ROW()-2))=Switch!$D$56,INDIRECT(\"a\" & (VLOOKUP(Switch!$D$56,$F$2:$G$44,2,FALSE)+ROW()-2)),\"\")","v":{"$error":"#N/A"}},{"$f":"IF(INDIRECT(\"c\" & (VLOOKUP(Switch!$D$57,$F$2:$G$44,2,FALSE)+ROW()-2))=Switch!$D$57,INDIRECT(\"a\" & (VLOOKUP(Switch!$D$57,$F$2:$G$44,2,FALSE)+ROW()-2)),\"\")","v":{"$error":"#N/A"}},{"$f":"IF(INDIRECT(\"c\" & (VLOOKUP(Switch!$D$58,$F$2:$G$44,2,FALSE)+ROW()-2))=Switch!$D$58,INDIRECT(\"a\" & (VLOOKUP(Switch!$D$58,$F$2:$G$44,2,FALSE)+ROW()-2)),\"\")","v":{"$error":"#N/A"}},{"$f":"IF(INDIRECT(\"c\" & (VLOOKUP(Switch!$D$59,$F$2:$G$44,2,FALSE)+ROW()-2))=Switch!$D$59,INDIRECT(\"a\" & (VLOOKUP(Switch!$D$59,$F$2:$G$44,2,FALSE)+ROW()-2)),\"\")","v":{"$error":"#N/A"}},{"$f":"IF(INDIRECT(\"c\" & (VLOOKUP(Switch!$D$60,$F$2:$G$44,2,FALSE)+ROW()-2))=Switch!$D$60,INDIRECT(\"a\" & (VLOOKUP(Switch!$D$60,$F$2:$G$44,2,FALSE)+ROW()-2)),\"\")","v":{"$error":"#N/A"}},{"$f":"IF(INDIRECT(\"c\" & (VLOOKUP(Switch!$D$61,$F$2:$G$44,2,FALSE)+ROW()-2))=Switch!$D$61,INDIRECT(\"a\" & (VLOOKUP(Switch!$D$61,$F$2:$G$44,2,FALSE)+ROW()-2)),\"\")","v":{"$error":"#N/A"}},{"$f":"IF(INDIRECT(\"c\" & (VLOOKUP(Switch!$D$62,$F$2:$G$44,2,FALSE)+ROW()-2))=Switch!$D$62,INDIRECT(\"a\" & (VLOOKUP(Switch!$D$62,$F$2:$G$44,2,FALSE)+ROW()-2)),\"\")","v":{"$error":"#N/A"}},{"$f":"IF(INDIRECT(\"c\" & (VLOOKUP(Switch!$D$63,$F$2:$G$44,2,FALSE)+ROW()-2))=Switch!$D$63,INDIRECT(\"a\" & (VLOOKUP(Switch!$D$63,$F$2:$G$44,2,FALSE)+ROW()-2)),\"\")","v":{"$error":"#N/A"}},{"$f":"IF(INDIRECT(\"c\" & (VLOOKUP(Switch!$D$64,$F$2:$G$44,2,FALSE)+ROW()-2))=Switch!$D$64,INDIRECT(\"a\" & (VLOOKUP(Switch!$D$64,$F$2:$G$44,2,FALSE)+ROW()-2)),\"\")","v":{"$error":"#N/A"}},{"$f":"IF(INDIRECT(\"c\" & (VLOOKUP(Switch!$D$65,$F$2:$G$44,2,FALSE)+ROW()-2))=Switch!$D$65,INDIRECT(\"a\" & (VLOOKUP(Switch!$D$65,$F$2:$G$44,2,FALSE)+ROW()-2)),\"\")","v":{"$error":"#N/A"}},{"$f":"IF(INDIRECT(\"c\" & (VLOOKUP(Switch!$D$66,$F$2:$G$44,2,FALSE)+ROW()-2))=Switch!$D$66,INDIRECT(\"a\" & (VLOOKUP(Switch!$D$66,$F$2:$G$44,2,FALSE)+ROW()-2)),\"\")","v":{"$error":"#N/A"}}]
["STANLIB MM Equity Fund B1","GDSE","STANLIB Collective Investments",{"$f":"ROW()","v":63},null,null,{"$f":"VLOOKUP(F63,$C$2:$D$637,2,FALSE)","v":{"$error":"#N/A"}},{"$f":"IF(INDIRECT(\"c\" & (VLOOKUP(Switch!$D$26,$F$2:$G$44,2,FALSE)+ROW()-2))=Switch!$D$26,INDIRECT(\"a\" & (VLOOKUP(Switch!$D$26,$F$2:$G$44,2,FALSE)+ROW()-2)),\"\")","v":{"$error":"#N/A"}},{"$f":"IF(INDIRECT(\"c\" & (VLOOKUP(Switch!$D$27,$F$2:$G$44,2,FALSE)+ROW()-2))=Switch!$D$27,INDIRECT(\"a\" & (VLOOKUP(Switch!$D$27,$F$2:$G$44,2,FALSE)+ROW()-2)),\"\")","v":{"$error":"#N/A"}},{"$f":"IF(INDIRECT(\"c\" & (VLOOKUP(Switch!$D$28,$F$2:$G$44,2,FALSE)+ROW()-2))=Switch!$D$28,INDIRECT(\"a\" & (VLOOKUP(Switch!$D$28,$F$2:$G$44,2,FALSE)+ROW()-2)),\"\")","v":{"$error":"#N/A"}},{"$f":"IF(INDIRECT(\"c\" & (VLOOKUP(Switch!$D$29,$F$2:$G$44,2,FALSE)+ROW()-2))=Switch!$D$29,INDIRECT(\"a\" & (VLOOKUP(Switch!$D$29,$F$2:$G$44,2,FALSE)+ROW()-2)),\"\")","v":{"$error":"#N/A"}},{"$f":"IF(INDIRECT(\"c\" & (VLOOKUP(Switch!$D$30,$F$2:$G$44,2,FALSE)+ROW()-2))=Switch!$D$30,INDIRECT(\"a\" & (VLOOKUP(Switch!$D$30,$F$2:$G$44,2,FALSE)+ROW()-2)),\"\")","v":{"$error":"#N/A"}},{"$f":"IF(INDIRECT(\"c\" & (VLOOKUP(Switch!$D$31,$F$2:$G$44,2,FALSE)+ROW()-2))=Switch!$D$31,INDIRECT(\"a\" & (VLOOKUP(Switch!$D$31,$F$2:$G$44,2,FALSE)+ROW()-2)),\"\")","v":{"$error":"#N/A"}},{"$f":"IF(INDIRECT(\"c\" & (VLOOKUP(Switch!$D$32,$F$2:$G$44,2,FALSE)+ROW()-2))=Switch!$D$32,INDIRECT(\"a\" & (VLOOKUP(Switch!$D$32,$F$2:$G$44,2,FALSE)+ROW()-2)),\"\")","v":{"$error":"#N/A"}},{"$f":"IF(INDIRECT(\"c\" & (VLOOKUP(Switch!$D$33,$F$2:$G$44,2,FALSE)+ROW()-2))=Switch!$D$33,INDIRECT(\"a\" & (VLOOKUP(Switch!$D$33,$F$2:$G$44,2,FALSE)+ROW()-2)),\"\")","v":{"$error":"#N/A"}},{"$f":"IF(INDIRECT(\"c\" & (VLOOKUP(Switch!$D$34,$F$2:$G$44,2,FALSE)+ROW()-2))=Switch!$D$34,INDIRECT(\"a\" & (VLOOKUP(Switch!$D$34,$F$2:$G$44,2,FALSE)+ROW()-2)),\"\")","v":{"$error":"#N/A"}},{"$f":"IF(INDIRECT(\"c\" & (VLOOKUP(Switch!$D$35,$F$2:$G$44,2,FALSE)+ROW()-2))=Switch!$D$35,INDIRECT(\"a\" & (VLOOKUP(Switch!$D$35,$F$2:$G$44,2,FALSE)+ROW()-2)),\"\")","v":{"$error":"#N/A"}},{"$f":"IF(INDIRECT(\"c\" & (VLOOKUP(Switch!$D$36,$F$2:$G$44,2,FALSE)+ROW()-2))=Switch!$D$36,INDIRECT(\"a\" & (VLOOKUP(Switch!$D$36,$F$2:$G$44,2,FALSE)+ROW()-2)),\"\")","v":{"$error":"#N/A"}},{"$f":"IF(INDIRECT(\"c\" & (VLOOKUP(Switch!$D$37,$F$2:$G$44,2,FALSE)+ROW()-2))=Switch!$D$37,INDIRECT(\"a\" & (VLOOKUP(Switch!$D$37,$F$2:$G$44,2,FALSE)+ROW()-2)),\"\")","v":{"$error":"#N/A"}},{"$f":"IF(INDIRECT(\"c\" & (VLOOKUP(Switch!$D$38,$F$2:$G$44,2,FALSE)+ROW()-2))=Switch!$D$38,INDIRECT(\"a\" & (VLOOKUP(Switch!$D$38,$F$2:$G$44,2,FALSE)+ROW()-2)),\"\")","v":{"$error":"#N/A"}},{"$f":"IF(INDIRECT(\"c\" & (VLOOKUP(Switch!$D$39,$F$2:$G$44,2,FALSE)+ROW()-2))=Switch!$D$39,INDIRECT(\"a\" & (VLOOKUP(Switch!$D$39,$F$2:$G$44,2,FALSE)+ROW()-2)),\"\")","v":{"$error":"#N/A"}},{"$f":"IF(INDIRECT(\"c\" & (VLOOKUP(Switch!$D$40,$F$2:$G$44,2,FALSE)+ROW()-2))=Switch!$D$40,INDIRECT(\"a\" & (VLOOKUP(Switch!$D$40,$F$2:$G$44,2,FALSE)+ROW()-2)),\"\")","v":{"$error":"#N/A"}},{"$f":"IF(INDIRECT(\"c\" & (VLOOKUP(Switch!$D$52,$F$2:$G$44,2,FALSE)+ROW()-2))=Switch!$D$52,INDIRECT(\"a\" & (VLOOKUP(Switch!$D$52,$F$2:$G$44,2,FALSE)+ROW()-2)),\"\")","v":{"$error":"#N/A"}},{"$f":"IF(INDIRECT(\"c\" & (VLOOKUP(Switch!$D$53,$F$2:$G$44,2,FALSE)+ROW()-2))=Switch!$D$53,INDIRECT(\"a\" & (VLOOKUP(Switch!$D$53,$F$2:$G$44,2,FALSE)+ROW()-2)),\"\")","v":{"$error":"#N/A"}},{"$f":"IF(INDIRECT(\"c\" & (VLOOKUP(Switch!$D$54,$F$2:$G$44,2,FALSE)+ROW()-2))=Switch!$D$54,INDIRECT(\"a\" & (VLOOKUP(Switch!$D$54,$F$2:$G$44,2,FALSE)+ROW()-2)),\"\")","v":{"$error":"#N/A"}},{"$f":"IF(INDIRECT(\"c\" & (VLOOKUP(Switch!$D$55,$F$2:$G$44,2,FALSE)+ROW()-2))=Switch!$D$55,INDIRECT(\"a\" & (VLOOKUP(Switch!$D$55,$F$2:$G$44,2,FALSE)+ROW()-2)),\"\")","v":{"$error":"#N/A"}},{"$f":"IF(INDIRECT(\"c\" & (VLOOKUP(Switch!$D$56,$F$2:$G$44,2,FALSE)+ROW()-2))=Switch!$D$56,INDIRECT(\"a\" & (VLOOKUP(Switch!$D$56,$F$2:$G$44,2,FALSE)+ROW()-2)),\"\")","v":{"$error":"#N/A"}},{"$f":"IF(INDIRECT(\"c\" & (VLOOKUP(Switch!$D$57,$F$2:$G$44,2,FALSE)+ROW()-2))=Switch!$D$57,INDIRECT(\"a\" & (VLOOKUP(Switch!$D$57,$F$2:$G$44,2,FALSE)+ROW()-2)),\"\")","v":{"$error":"#N/A"}},{"$f":"IF(INDIRECT(\"c\" & (VLOOKUP(Switch!$D$58,$F$2:$G$44,2,FALSE)+ROW()-2))=Switch!$D$58,INDIRECT(\"a\" & (VLOOKUP(Switch!$D$58,$F$2:$G$44,2,FALSE)+ROW()-2)),\"\")","v":{"$error":"#N/A"}},{"$f":"IF(INDIRECT(\"c\" & (VLOOKUP(Switch!$D$59,$F$2:$G$44,2,FALSE)+ROW()-2))=Switch!$D$59,INDIRECT(\"a\" & (VLOOKUP(Switch!$D$59,$F$2:$G$44,2,FALSE)+ROW()-2)),\"\")","v":{"$error":"#N/A"}},{"$f":"IF(INDIRECT(\"c\" & (VLOOKUP(Switch!$D$60,$F$2:$G$44,2,FALSE)+ROW()-2))=Switch!$D$60,INDIRECT(\"a\" & (VLOOKUP(Switch!$D$60,$F$2:$G$44,2,FALSE)+ROW()-2)),\"\")","v":{"$error":"#N/A"}},{"$f":"IF(INDIRECT(\"c\" & (VLOOKUP(Switch!$D$61,$F$2:$G$44,2,FALSE)+ROW()-2))=Switch!$D$61,INDIRECT(\"a\" & (VLOOKUP(Switch!$D$61,$F$2:$G$44,2,FALSE)+ROW()-2)),\"\")","v":{"$error":"#N/A"}},{"$f":"IF(INDIRECT(\"c\" & (VLOOKUP(Switch!$D$62,$F$2:$G$44,2,FALSE)+ROW()-2))=Switch!$D$62,INDIRECT(\"a\" & (VLOOKUP(Switch!$D$62,$F$2:$G$44,2,FALSE)+ROW()-2)),\"\")","v":{"$error":"#N/A"}},{"$f":"IF(INDIRECT(\"c\" & (VLOOKUP(Switch!$D$63,$F$2:$G$44,2,FALSE)+ROW()-2))=Switch!$D$63,INDIRECT(\"a\" & (VLOOKUP(Switch!$D$63,$F$2:$G$44,2,FALSE)+ROW()-2)),\"\")","v":{"$error":"#N/A"}},{"$f":"IF(INDIRECT(\"c\" & (VLOOKUP(Switch!$D$64,$F$2:$G$44,2,FALSE)+ROW()-2))=Switch!$D$64,INDIRECT(\"a\" & (VLOOKUP(Switch!$D$64,$F$2:$G$44,2,FALSE)+ROW()-2)),\"\")","v":{"$error":"#N/A"}},{"$f":"IF(INDIRECT(\"c\" & (VLOOKUP(Switch!$D$65,$F$2:$G$44,2,FALSE)+ROW()-2))=Switch!$D$65,INDIRECT(\"a\" & (VLOOKUP(Switch!$D$65,$F$2:$G$44,2,FALSE)+ROW()-2)),\"\")","v":{"$error":"#N/A"}},{"$f":"IF(INDIRECT(\"c\" & (VLOOKUP(Switch!$D$66,$F$2:$G$44,2,FALSE)+ROW()-2))=Switch!$D$66,INDIRECT(\"a\" & (VLOOKUP(Switch!$D$66,$F$2:$G$44,2,FALSE)+ROW()-2)),\"\")","v":{"$error":"#N/A"}}]
["STANLIB MM Flexible Property Fund B1","SMCB","STANLIB Collective Investments",{"$f":"ROW()","v":64},null,null,{"$f":"VLOOKUP(F64,$C$2:$D$637,2,FALSE)","v":{"$error":"#N/A"}},{"$f":"IF(INDIRECT(\"c\" & (VLOOKUP(Switch!$D$26,$F$2:$G$44,2,FALSE)+ROW()-2))=Switch!$D$26,INDIRECT(\"a\" & (VLOOKUP(Switch!$D$26,$F$2:$G$44,2,FALSE)+ROW()-2)),\"\")","v":{"$error":"#N/A"}},{"$f":"IF(INDIRECT(\"c\" & (VLOOKUP(Switch!$D$27,$F$2:$G$44,2,FALSE)+ROW()-2))=Switch!$D$27,INDIRECT(\"a\" & (VLOOKUP(Switch!$D$27,$F$2:$G$44,2,FALSE)+ROW()-2)),\"\")","v":{"$error":"#N/A"}},{"$f":"IF(INDIRECT(\"c\" & (VLOOKUP(Switch!$D$28,$F$2:$G$44,2,FALSE)+ROW()-2))=Switch!$D$28,INDIRECT(\"a\" & (VLOOKUP(Switch!$D$28,$F$2:$G$44,2,FALSE)+ROW()-2)),\"\")","v":{"$error":"#N/A"}},{"$f":"IF(INDIRECT(\"c\" & (VLOOKUP(Switch!$D$29,$F$2:$G$44,2,FALSE)+ROW()-2))=Switch!$D$29,INDIRECT(\"a\" & (VLOOKUP(Switch!$D$29,$F$2:$G$44,2,FALSE)+ROW()-2)),\"\")","v":{"$error":"#N/A"}},{"$f":"IF(INDIRECT(\"c\" & (VLOOKUP(Switch!$D$30,$F$2:$G$44,2,FALSE)+ROW()-2))=Switch!$D$30,INDIRECT(\"a\" & (VLOOKUP(Switch!$D$30,$F$2:$G$44,2,FALSE)+ROW()-2)),\"\")","v":{"$error":"#N/A"}},{"$f":"IF(INDIRECT(\"c\" & (VLOOKUP(Switch!$D$31,$F$2:$G$44,2,FALSE)+ROW()-2))=Switch!$D$31,INDIRECT(\"a\" & (VLOOKUP(Switch!$D$31,$F$2:$G$44,2,FALSE)+ROW()-2)),\"\")","v":{"$error":"#N/A"}},{"$f":"IF(INDIRECT(\"c\" & (VLOOKUP(Switch!$D$32,$F$2:$G$44,2,FALSE)+ROW()-2))=Switch!$D$32,INDIRECT(\"a\" & (VLOOKUP(Switch!$D$32,$F$2:$G$44,2,FALSE)+ROW()-2)),\"\")","v":{"$error":"#N/A"}},{"$f":"IF(INDIRECT(\"c\" & (VLOOKUP(Switch!$D$33,$F$2:$G$44,2,FALSE)+ROW()-2))=Switch!$D$33,INDIRECT(\"a\" & (VLOOKUP(Switch!$D$33,$F$2:$G$44,2,FALSE)+ROW()-2)),\"\")","v":{"$error":"#N/A"}},{"$f":"IF(INDIRECT(\"c\" & (VLOOKUP(Switch!$D$34,$F$2:$G$44,2,FALSE)+ROW()-2))=Switch!$D$34,INDIRECT(\"a\" & (VLOOKUP(Switch!$D$34,$F$2:$G$44,2,FALSE)+ROW()-2)),\"\")","v":{"$error":"#N/A"}},{"$f":"IF(INDIRECT(\"c\" & (VLOOKUP(Switch!$D$35,$F$2:$G$44,2,FALSE)+ROW()-2))=Switch!$D$35,INDIRECT(\"a\" & (VLOOKUP(Switch!$D$35,$F$2:$G$44,2,FALSE)+ROW()-2)),\"\")","v":{"$error":"#N/A"}},{"$f":"IF(INDIRECT(\"c\" & (VLOOKUP(Switch!$D$36,$F$2:$G$44,2,FALSE)+ROW()-2))=Switch!$D$36,INDIRECT(\"a\" & (VLOOKUP(Switch!$D$36,$F$2:$G$44,2,FALSE)+ROW()-2)),\"\")","v":{"$error":"#N/A"}},{"$f":"IF(INDIRECT(\"c\" & (VLOOKUP(Switch!$D$37,$F$2:$G$44,2,FALSE)+ROW()-2))=Switch!$D$37,INDIRECT(\"a\" & (VLOOKUP(Switch!$D$37,$F$2:$G$44,2,FALSE)+ROW()-2)),\"\")","v":{"$error":"#N/A"}},{"$f":"IF(INDIRECT(\"c\" & (VLOOKUP(Switch!$D$38,$F$2:$G$44,2,FALSE)+ROW()-2))=Switch!$D$38,INDIRECT(\"a\" & (VLOOKUP(Switch!$D$38,$F$2:$G$44,2,FALSE)+ROW()-2)),\"\")","v":{"$error":"#N/A"}},{"$f":"IF(INDIRECT(\"c\" & (VLOOKUP(Switch!$D$39,$F$2:$G$44,2,FALSE)+ROW()-2))=Switch!$D$39,INDIRECT(\"a\" & (VLOOKUP(Switch!$D$39,$F$2:$G$44,2,FALSE)+ROW()-2)),\"\")","v":{"$error":"#N/A"}},{"$f":"IF(INDIRECT(\"c\" & (VLOOKUP(Switch!$D$40,$F$2:$G$44,2,FALSE)+ROW()-2))=Switch!$D$40,INDIRECT(\"a\" & (VLOOKUP(Switch!$D$40,$F$2:$G$44,2,FALSE)+ROW()-2)),\"\")","v":{"$error":"#N/A"}},{"$f":"IF(INDIRECT(\"c\" & (VLOOKUP(Switch!$D$52,$F$2:$G$44,2,FALSE)+ROW()-2))=Switch!$D$52,INDIRECT(\"a\" & (VLOOKUP(Switch!$D$52,$F$2:$G$44,2,FALSE)+ROW()-2)),\"\")","v":{"$error":"#N/A"}},{"$f":"IF(INDIRECT(\"c\" & (VLOOKUP(Switch!$D$53,$F$2:$G$44,2,FALSE)+ROW()-2))=Switch!$D$53,INDIRECT(\"a\" & (VLOOKUP(Switch!$D$53,$F$2:$G$44,2,FALSE)+ROW()-2)),\"\")","v":{"$error":"#N/A"}},{"$f":"IF(INDIRECT(\"c\" & (VLOOKUP(Switch!$D$54,$F$2:$G$44,2,FALSE)+ROW()-2))=Switch!$D$54,INDIRECT(\"a\" & (VLOOKUP(Switch!$D$54,$F$2:$G$44,2,FALSE)+ROW()-2)),\"\")","v":{"$error":"#N/A"}},{"$f":"IF(INDIRECT(\"c\" & (VLOOKUP(Switch!$D$55,$F$2:$G$44,2,FALSE)+ROW()-2))=Switch!$D$55,INDIRECT(\"a\" & (VLOOKUP(Switch!$D$55,$F$2:$G$44,2,FALSE)+ROW()-2)),\"\")","v":{"$error":"#N/A"}},{"$f":"IF(INDIRECT(\"c\" & (VLOOKUP(Switch!$D$56,$F$2:$G$44,2,FALSE)+ROW()-2))=Switch!$D$56,INDIRECT(\"a\" & (VLOOKUP(Switch!$D$56,$F$2:$G$44,2,FALSE)+ROW()-2)),\"\")","v":{"$error":"#N/A"}},{"$f":"IF(INDIRECT(\"c\" & (VLOOKUP(Switch!$D$57,$F$2:$G$44,2,FALSE)+ROW()-2))=Switch!$D$57,INDIRECT(\"a\" & (VLOOKUP(Switch!$D$57,$F$2:$G$44,2,FALSE)+ROW()-2)),\"\")","v":{"$error":"#N/A"}},{"$f":"IF(INDIRECT(\"c\" & (VLOOKUP(Switch!$D$58,$F$2:$G$44,2,FALSE)+ROW()-2))=Switch!$D$58,INDIRECT(\"a\" & (VLOOKUP(Switch!$D$58,$F$2:$G$44,2,FALSE)+ROW()-2)),\"\")","v":{"$error":"#N/A"}},{"$f":"IF(INDIRECT(\"c\" & (VLOOKUP(Switch!$D$59,$F$2:$G$44,2,FALSE)+ROW()-2))=Switch!$D$59,INDIRECT(\"a\" & (VLOOKUP(Switch!$D$59,$F$2:$G$44,2,FALSE)+ROW()-2)),\"\")","v":{"$error":"#N/A"}},{"$f":"IF(INDIRECT(\"c\" & (VLOOKUP(Switch!$D$60,$F$2:$G$44,2,FALSE)+ROW()-2))=Switch!$D$60,INDIRECT(\"a\" & (VLOOKUP(Switch!$D$60,$F$2:$G$44,2,FALSE)+ROW()-2)),\"\")","v":{"$error":"#N/A"}},{"$f":"IF(INDIRECT(\"c\" & (VLOOKUP(Switch!$D$61,$F$2:$G$44,2,FALSE)+ROW()-2))=Switch!$D$61,INDIRECT(\"a\" & (VLOOKUP(Switch!$D$61,$F$2:$G$44,2,FALSE)+ROW()-2)),\"\")","v":{"$error":"#N/A"}},{"$f":"IF(INDIRECT(\"c\" & (VLOOKUP(Switch!$D$62,$F$2:$G$44,2,FALSE)+ROW()-2))=Switch!$D$62,INDIRECT(\"a\" & (VLOOKUP(Switch!$D$62,$F$2:$G$44,2,FALSE)+ROW()-2)),\"\")","v":{"$error":"#N/A"}},{"$f":"IF(INDIRECT(\"c\" & (VLOOKUP(Switch!$D$63,$F$2:$G$44,2,FALSE)+ROW()-2))=Switch!$D$63,INDIRECT(\"a\" & (VLOOKUP(Switch!$D$63,$F$2:$G$44,2,FALSE)+ROW()-2)),\"\")","v":{"$error":"#N/A"}},{"$f":"IF(INDIRECT(\"c\" & (VLOOKUP(Switch!$D$64,$F$2:$G$44,2,FALSE)+ROW()-2))=Switch!$D$64,INDIRECT(\"a\" & (VLOOKUP(Switch!$D$64,$F$2:$G$44,2,FALSE)+ROW()-2)),\"\")","v":{"$error":"#N/A"}},{"$f":"IF(INDIRECT(\"c\" & (VLOOKUP(Switch!$D$65,$F$2:$G$44,2,FALSE)+ROW()-2))=Switch!$D$65,INDIRECT(\"a\" & (VLOOKUP(Switch!$D$65,$F$2:$G$44,2,FALSE)+ROW()-2)),\"\")","v":{"$error":"#N/A"}},{"$f":"IF(INDIRECT(\"c\" & (VLOOKUP(Switch!$D$66,$F$2:$G$44,2,FALSE)+ROW()-2))=Switch!$D$66,INDIRECT(\"a\" & (VLOOKUP(Switch!$D$66,$F$2:$G$44,2,FALSE)+ROW()-2)),\"\")","v":{"$error":"#N/A"}}]
["STANLIB MM Global Equity Feeder Fund B1","LIMC","STANLIB Collective Investments",{"$f":"ROW()","v":65},null,null,{"$f":"VLOOKUP(F65,$C$2:$D$637,2,FALSE)","v":{"$error":"#N/A"}},{"$f":"IF(INDIRECT(\"c\" & (VLOOKUP(Switch!$D$26,$F$2:$G$44,2,FALSE)+ROW()-2))=Switch!$D$26,INDIRECT(\"a\" & (VLOOKUP(Switch!$D$26,$F$2:$G$44,2,FALSE)+ROW()-2)),\"\")","v":{"$error":"#N/A"}},{"$f":"IF(INDIRECT(\"c\" & (VLOOKUP(Switch!$D$27,$F$2:$G$44,2,FALSE)+ROW()-2))=Switch!$D$27,INDIRECT(\"a\" & (VLOOKUP(Switch!$D$27,$F$2:$G$44,2,FALSE)+ROW()-2)),\"\")","v":{"$error":"#N/A"}},{"$f":"IF(INDIRECT(\"c\" & (VLOOKUP(Switch!$D$28,$F$2:$G$44,2,FALSE)+ROW()-2))=Switch!$D$28,INDIRECT(\"a\" & (VLOOKUP(Switch!$D$28,$F$2:$G$44,2,FALSE)+ROW()-2)),\"\")","v":{"$error":"#N/A"}},{"$f":"IF(INDIRECT(\"c\" & (VLOOKUP(Switch!$D$29,$F$2:$G$44,2,FALSE)+ROW()-2))=Switch!$D$29,INDIRECT(\"a\" & (VLOOKUP(Switch!$D$29,$F$2:$G$44,2,FALSE)+ROW()-2)),\"\")","v":{"$error":"#N/A"}},{"$f":"IF(INDIRECT(\"c\" & (VLOOKUP(Switch!$D$30,$F$2:$G$44,2,FALSE)+ROW()-2))=Switch!$D$30,INDIRECT(\"a\" & (VLOOKUP(Switch!$D$30,$F$2:$G$44,2,FALSE)+ROW()-2)),\"\")","v":{"$error":"#N/A"}},{"$f":"IF(INDIRECT(\"c\" & (VLOOKUP(Switch!$D$31,$F$2:$G$44,2,FALSE)+ROW()-2))=Switch!$D$31,INDIRECT(\"a\" & (VLOOKUP(Switch!$D$31,$F$2:$G$44,2,FALSE)+ROW()-2)),\"\")","v":{"$error":"#N/A"}},{"$f":"IF(INDIRECT(\"c\" & (VLOOKUP(Switch!$D$32,$F$2:$G$44,2,FALSE)+ROW()-2))=Switch!$D$32,INDIRECT(\"a\" & (VLOOKUP(Switch!$D$32,$F$2:$G$44,2,FALSE)+ROW()-2)),\"\")","v":{"$error":"#N/A"}},{"$f":"IF(INDIRECT(\"c\" & (VLOOKUP(Switch!$D$33,$F$2:$G$44,2,FALSE)+ROW()-2))=Switch!$D$33,INDIRECT(\"a\" & (VLOOKUP(Switch!$D$33,$F$2:$G$44,2,FALSE)+ROW()-2)),\"\")","v":{"$error":"#N/A"}},{"$f":"IF(INDIRECT(\"c\" & (VLOOKUP(Switch!$D$34,$F$2:$G$44,2,FALSE)+ROW()-2))=Switch!$D$34,INDIRECT(\"a\" & (VLOOKUP(Switch!$D$34,$F$2:$G$44,2,FALSE)+ROW()-2)),\"\")","v":{"$error":"#N/A"}},{"$f":"IF(INDIRECT(\"c\" & (VLOOKUP(Switch!$D$35,$F$2:$G$44,2,FALSE)+ROW()-2))=Switch!$D$35,INDIRECT(\"a\" & (VLOOKUP(Switch!$D$35,$F$2:$G$44,2,FALSE)+ROW()-2)),\"\")","v":{"$error":"#N/A"}},{"$f":"IF(INDIRECT(\"c\" & (VLOOKUP(Switch!$D$36,$F$2:$G$44,2,FALSE)+ROW()-2))=Switch!$D$36,INDIRECT(\"a\" & (VLOOKUP(Switch!$D$36,$F$2:$G$44,2,FALSE)+ROW()-2)),\"\")","v":{"$error":"#N/A"}},{"$f":"IF(INDIRECT(\"c\" & (VLOOKUP(Switch!$D$37,$F$2:$G$44,2,FALSE)+ROW()-2))=Switch!$D$37,INDIRECT(\"a\" & (VLOOKUP(Switch!$D$37,$F$2:$G$44,2,FALSE)+ROW()-2)),\"\")","v":{"$error":"#N/A"}},{"$f":"IF(INDIRECT(\"c\" & (VLOOKUP(Switch!$D$38,$F$2:$G$44,2,FALSE)+ROW()-2))=Switch!$D$38,INDIRECT(\"a\" & (VLOOKUP(Switch!$D$38,$F$2:$G$44,2,FALSE)+ROW()-2)),\"\")","v":{"$error":"#N/A"}},{"$f":"IF(INDIRECT(\"c\" & (VLOOKUP(Switch!$D$39,$F$2:$G$44,2,FALSE)+ROW()-2))=Switch!$D$39,INDIRECT(\"a\" & (VLOOKUP(Switch!$D$39,$F$2:$G$44,2,FALSE)+ROW()-2)),\"\")","v":{"$error":"#N/A"}},{"$f":"IF(INDIRECT(\"c\" & (VLOOKUP(Switch!$D$40,$F$2:$G$44,2,FALSE)+ROW()-2))=Switch!$D$40,INDIRECT(\"a\" & (VLOOKUP(Switch!$D$40,$F$2:$G$44,2,FALSE)+ROW()-2)),\"\")","v":{"$error":"#N/A"}},{"$f":"IF(INDIRECT(\"c\" & (VLOOKUP(Switch!$D$52,$F$2:$G$44,2,FALSE)+ROW()-2))=Switch!$D$52,INDIRECT(\"a\" & (VLOOKUP(Switch!$D$52,$F$2:$G$44,2,FALSE)+ROW()-2)),\"\")","v":{"$error":"#N/A"}},{"$f":"IF(INDIRECT(\"c\" & (VLOOKUP(Switch!$D$53,$F$2:$G$44,2,FALSE)+ROW()-2))=Switch!$D$53,INDIRECT(\"a\" & (VLOOKUP(Switch!$D$53,$F$2:$G$44,2,FALSE)+ROW()-2)),\"\")","v":{"$error":"#N/A"}},{"$f":"IF(INDIRECT(\"c\" & (VLOOKUP(Switch!$D$54,$F$2:$G$44,2,FALSE)+ROW()-2))=Switch!$D$54,INDIRECT(\"a\" & (VLOOKUP(Switch!$D$54,$F$2:$G$44,2,FALSE)+ROW()-2)),\"\")","v":{"$error":"#N/A"}},{"$f":"IF(INDIRECT(\"c\" & (VLOOKUP(Switch!$D$55,$F$2:$G$44,2,FALSE)+ROW()-2))=Switch!$D$55,INDIRECT(\"a\" & (VLOOKUP(Switch!$D$55,$F$2:$G$44,2,FALSE)+ROW()-2)),\"\")","v":{"$error":"#N/A"}},{"$f":"IF(INDIRECT(\"c\" & (VLOOKUP(Switch!$D$56,$F$2:$G$44,2,FALSE)+ROW()-2))=Switch!$D$56,INDIRECT(\"a\" & (VLOOKUP(Switch!$D$56,$F$2:$G$44,2,FALSE)+ROW()-2)),\"\")","v":{"$error":"#N/A"}},{"$f":"IF(INDIRECT(\"c\" & (VLOOKUP(Switch!$D$57,$F$2:$G$44,2,FALSE)+ROW()-2))=Switch!$D$57,INDIRECT(\"a\" & (VLOOKUP(Switch!$D$57,$F$2:$G$44,2,FALSE)+ROW()-2)),\"\")","v":{"$error":"#N/A"}},{"$f":"IF(INDIRECT(\"c\" & (VLOOKUP(Switch!$D$58,$F$2:$G$44,2,FALSE)+ROW()-2))=Switch!$D$58,INDIRECT(\"a\" & (VLOOKUP(Switch!$D$58,$F$2:$G$44,2,FALSE)+ROW()-2)),\"\")","v":{"$error":"#N/A"}},{"$f":"IF(INDIRECT(\"c\" & (VLOOKUP(Switch!$D$59,$F$2:$G$44,2,FALSE)+ROW()-2))=Switch!$D$59,INDIRECT(\"a\" & (VLOOKUP(Switch!$D$59,$F$2:$G$44,2,FALSE)+ROW()-2)),\"\")","v":{"$error":"#N/A"}},{"$f":"IF(INDIRECT(\"c\" & (VLOOKUP(Switch!$D$60,$F$2:$G$44,2,FALSE)+ROW()-2))=Switch!$D$60,INDIRECT(\"a\" & (VLOOKUP(Switch!$D$60,$F$2:$G$44,2,FALSE)+ROW()-2)),\"\")","v":{"$error":"#N/A"}},{"$f":"IF(INDIRECT(\"c\" & (VLOOKUP(Switch!$D$61,$F$2:$G$44,2,FALSE)+ROW()-2))=Switch!$D$61,INDIRECT(\"a\" & (VLOOKUP(Switch!$D$61,$F$2:$G$44,2,FALSE)+ROW()-2)),\"\")","v":{"$error":"#N/A"}},{"$f":"IF(INDIRECT(\"c\" & (VLOOKUP(Switch!$D$62,$F$2:$G$44,2,FALSE)+ROW()-2))=Switch!$D$62,INDIRECT(\"a\" & (VLOOKUP(Switch!$D$62,$F$2:$G$44,2,FALSE)+ROW()-2)),\"\")","v":{"$error":"#N/A"}},{"$f":"IF(INDIRECT(\"c\" & (VLOOKUP(Switch!$D$63,$F$2:$G$44,2,FALSE)+ROW()-2))=Switch!$D$63,INDIRECT(\"a\" & (VLOOKUP(Switch!$D$63,$F$2:$G$44,2,FALSE)+ROW()-2)),\"\")","v":{"$error":"#N/A"}},{"$f":"IF(INDIRECT(\"c\" & (VLOOKUP(Switch!$D$64,$F$2:$G$44,2,FALSE)+ROW()-2))=Switch!$D$64,INDIRECT(\"a\" & (VLOOKUP(Switch!$D$64,$F$2:$G$44,2,FALSE)+ROW()-2)),\"\")","v":{"$error":"#N/A"}},{"$f":"IF(INDIRECT(\"c\" & (VLOOKUP(Switch!$D$65,$F$2:$G$44,2,FALSE)+ROW()-2))=Switch!$D$65,INDIRECT(\"a\" & (VLOOKUP(Switch!$D$65,$F$2:$G$44,2,FALSE)+ROW()-2)),\"\")","v":{"$error":"#N/A"}},{"$f":"IF(INDIRECT(\"c\" & (VLOOKUP(Switch!$D$66,$F$2:$G$44,2,FALSE)+ROW()-2))=Switch!$D$66,INDIRECT(\"a\" & (VLOOKUP(Switch!$D$66,$F$2:$G$44,2,FALSE)+ROW()-2)),\"\")","v":{"$error":"#N/A"}}]
["STANLIB MM Low Equity FOF B1","STL1","STANLIB Collective Investments",{"$f":"ROW()","v":66},null,null,{"$f":"VLOOKUP(F66,$C$2:$D$637,2,FALSE)","v":{"$error":"#N/A"}},{"$f":"IF(INDIRECT(\"c\" & (VLOOKUP(Switch!$D$26,$F$2:$G$44,2,FALSE)+ROW()-2))=Switch!$D$26,INDIRECT(\"a\" & (VLOOKUP(Switch!$D$26,$F$2:$G$44,2,FALSE)+ROW()-2)),\"\")","v":{"$error":"#N/A"}},{"$f":"IF(INDIRECT(\"c\" & (VLOOKUP(Switch!$D$27,$F$2:$G$44,2,FALSE)+ROW()-2))=Switch!$D$27,INDIRECT(\"a\" & (VLOOKUP(Switch!$D$27,$F$2:$G$44,2,FALSE)+ROW()-2)),\"\")","v":{"$error":"#N/A"}},{"$f":"IF(INDIRECT(\"c\" & (VLOOKUP(Switch!$D$28,$F$2:$G$44,2,FALSE)+ROW()-2))=Switch!$D$28,INDIRECT(\"a\" & (VLOOKUP(Switch!$D$28,$F$2:$G$44,2,FALSE)+ROW()-2)),\"\")","v":{"$error":"#N/A"}},{"$f":"IF(INDIRECT(\"c\" & (VLOOKUP(Switch!$D$29,$F$2:$G$44,2,FALSE)+ROW()-2))=Switch!$D$29,INDIRECT(\"a\" & (VLOOKUP(Switch!$D$29,$F$2:$G$44,2,FALSE)+ROW()-2)),\"\")","v":{"$error":"#N/A"}},{"$f":"IF(INDIRECT(\"c\" & (VLOOKUP(Switch!$D$30,$F$2:$G$44,2,FALSE)+ROW()-2))=Switch!$D$30,INDIRECT(\"a\" & (VLOOKUP(Switch!$D$30,$F$2:$G$44,2,FALSE)+ROW()-2)),\"\")","v":{"$error":"#N/A"}},{"$f":"IF(INDIRECT(\"c\" & (VLOOKUP(Switch!$D$31,$F$2:$G$44,2,FALSE)+ROW()-2))=Switch!$D$31,INDIRECT(\"a\" & (VLOOKUP(Switch!$D$31,$F$2:$G$44,2,FALSE)+ROW()-2)),\"\")","v":{"$error":"#N/A"}},{"$f":"IF(INDIRECT(\"c\" & (VLOOKUP(Switch!$D$32,$F$2:$G$44,2,FALSE)+ROW()-2))=Switch!$D$32,INDIRECT(\"a\" & (VLOOKUP(Switch!$D$32,$F$2:$G$44,2,FALSE)+ROW()-2)),\"\")","v":{"$error":"#N/A"}},{"$f":"IF(INDIRECT(\"c\" & (VLOOKUP(Switch!$D$33,$F$2:$G$44,2,FALSE)+ROW()-2))=Switch!$D$33,INDIRECT(\"a\" & (VLOOKUP(Switch!$D$33,$F$2:$G$44,2,FALSE)+ROW()-2)),\"\")","v":{"$error":"#N/A"}},{"$f":"IF(INDIRECT(\"c\" & (VLOOKUP(Switch!$D$34,$F$2:$G$44,2,FALSE)+ROW()-2))=Switch!$D$34,INDIRECT(\"a\" & (VLOOKUP(Switch!$D$34,$F$2:$G$44,2,FALSE)+ROW()-2)),\"\")","v":{"$error":"#N/A"}},{"$f":"IF(INDIRECT(\"c\" & (VLOOKUP(Switch!$D$35,$F$2:$G$44,2,FALSE)+ROW()-2))=Switch!$D$35,INDIRECT(\"a\" & (VLOOKUP(Switch!$D$35,$F$2:$G$44,2,FALSE)+ROW()-2)),\"\")","v":{"$error":"#N/A"}},{"$f":"IF(INDIRECT(\"c\" & (VLOOKUP(Switch!$D$36,$F$2:$G$44,2,FALSE)+ROW()-2))=Switch!$D$36,INDIRECT(\"a\" & (VLOOKUP(Switch!$D$36,$F$2:$G$44,2,FALSE)+ROW()-2)),\"\")","v":{"$error":"#N/A"}},{"$f":"IF(INDIRECT(\"c\" & (VLOOKUP(Switch!$D$37,$F$2:$G$44,2,FALSE)+ROW()-2))=Switch!$D$37,INDIRECT(\"a\" & (VLOOKUP(Switch!$D$37,$F$2:$G$44,2,FALSE)+ROW()-2)),\"\")","v":{"$error":"#N/A"}},{"$f":"IF(INDIRECT(\"c\" & (VLOOKUP(Switch!$D$38,$F$2:$G$44,2,FALSE)+ROW()-2))=Switch!$D$38,INDIRECT(\"a\" & (VLOOKUP(Switch!$D$38,$F$2:$G$44,2,FALSE)+ROW()-2)),\"\")","v":{"$error":"#N/A"}},{"$f":"IF(INDIRECT(\"c\" & (VLOOKUP(Switch!$D$39,$F$2:$G$44,2,FALSE)+ROW()-2))=Switch!$D$39,INDIRECT(\"a\" & (VLOOKUP(Switch!$D$39,$F$2:$G$44,2,FALSE)+ROW()-2)),\"\")","v":{"$error":"#N/A"}},{"$f":"IF(INDIRECT(\"c\" & (VLOOKUP(Switch!$D$40,$F$2:$G$44,2,FALSE)+ROW()-2))=Switch!$D$40,INDIRECT(\"a\" & (VLOOKUP(Switch!$D$40,$F$2:$G$44,2,FALSE)+ROW()-2)),\"\")","v":{"$error":"#N/A"}},{"$f":"IF(INDIRECT(\"c\" & (VLOOKUP(Switch!$D$52,$F$2:$G$44,2,FALSE)+ROW()-2))=Switch!$D$52,INDIRECT(\"a\" & (VLOOKUP(Switch!$D$52,$F$2:$G$44,2,FALSE)+ROW()-2)),\"\")","v":{"$error":"#N/A"}},{"$f":"IF(INDIRECT(\"c\" & (VLOOKUP(Switch!$D$53,$F$2:$G$44,2,FALSE)+ROW()-2))=Switch!$D$53,INDIRECT(\"a\" & (VLOOKUP(Switch!$D$53,$F$2:$G$44,2,FALSE)+ROW()-2)),\"\")","v":{"$error":"#N/A"}},{"$f":"IF(INDIRECT(\"c\" & (VLOOKUP(Switch!$D$54,$F$2:$G$44,2,FALSE)+ROW()-2))=Switch!$D$54,INDIRECT(\"a\" & (VLOOKUP(Switch!$D$54,$F$2:$G$44,2,FALSE)+ROW()-2)),\"\")","v":{"$error":"#N/A"}},{"$f":"IF(INDIRECT(\"c\" & (VLOOKUP(Switch!$D$55,$F$2:$G$44,2,FALSE)+ROW()-2))=Switch!$D$55,INDIRECT(\"a\" & (VLOOKUP(Switch!$D$55,$F$2:$G$44,2,FALSE)+ROW()-2)),\"\")","v":{"$error":"#N/A"}},{"$f":"IF(INDIRECT(\"c\" & (VLOOKUP(Switch!$D$56,$F$2:$G$44,2,FALSE)+ROW()-2))=Switch!$D$56,INDIRECT(\"a\" & (VLOOKUP(Switch!$D$56,$F$2:$G$44,2,FALSE)+ROW()-2)),\"\")","v":{"$error":"#N/A"}},{"$f":"IF(INDIRECT(\"c\" & (VLOOKUP(Switch!$D$57,$F$2:$G$44,2,FALSE)+ROW()-2))=Switch!$D$57,INDIRECT(\"a\" & (VLOOKUP(Switch!$D$57,$F$2:$G$44,2,FALSE)+ROW()-2)),\"\")","v":{"$error":"#N/A"}},{"$f":"IF(INDIRECT(\"c\" & (VLOOKUP(Switch!$D$58,$F$2:$G$44,2,FALSE)+ROW()-2))=Switch!$D$58,INDIRECT(\"a\" & (VLOOKUP(Switch!$D$58,$F$2:$G$44,2,FALSE)+ROW()-2)),\"\")","v":{"$error":"#N/A"}},{"$f":"IF(INDIRECT(\"c\" & (VLOOKUP(Switch!$D$59,$F$2:$G$44,2,FALSE)+ROW()-2))=Switch!$D$59,INDIRECT(\"a\" & (VLOOKUP(Switch!$D$59,$F$2:$G$44,2,FALSE)+ROW()-2)),\"\")","v":{"$error":"#N/A"}},{"$f":"IF(INDIRECT(\"c\" & (VLOOKUP(Switch!$D$60,$F$2:$G$44,2,FALSE)+ROW()-2))=Switch!$D$60,INDIRECT(\"a\" & (VLOOKUP(Switch!$D$60,$F$2:$G$44,2,FALSE)+ROW()-2)),\"\")","v":{"$error":"#N/A"}},{"$f":"IF(INDIRECT(\"c\" & (VLOOKUP(Switch!$D$61,$F$2:$G$44,2,FALSE)+ROW()-2))=Switch!$D$61,INDIRECT(\"a\" & (VLOOKUP(Switch!$D$61,$F$2:$G$44,2,FALSE)+ROW()-2)),\"\")","v":{"$error":"#N/A"}},{"$f":"IF(INDIRECT(\"c\" & (VLOOKUP(Switch!$D$62,$F$2:$G$44,2,FALSE)+ROW()-2))=Switch!$D$62,INDIRECT(\"a\" & (VLOOKUP(Switch!$D$62,$F$2:$G$44,2,FALSE)+ROW()-2)),\"\")","v":{"$error":"#N/A"}},{"$f":"IF(INDIRECT(\"c\" & (VLOOKUP(Switch!$D$63,$F$2:$G$44,2,FALSE)+ROW()-2))=Switch!$D$63,INDIRECT(\"a\" & (VLOOKUP(Switch!$D$63,$F$2:$G$44,2,FALSE)+ROW()-2)),\"\")","v":{"$error":"#N/A"}},{"$f":"IF(INDIRECT(\"c\" & (VLOOKUP(Switch!$D$64,$F$2:$G$44,2,FALSE)+ROW()-2))=Switch!$D$64,INDIRECT(\"a\" & (VLOOKUP(Switch!$D$64,$F$2:$G$44,2,FALSE)+ROW()-2)),\"\")","v":{"$error":"#N/A"}},{"$f":"IF(INDIRECT(\"c\" & (VLOOKUP(Switch!$D$65,$F$2:$G$44,2,FALSE)+ROW()-2))=Switch!$D$65,INDIRECT(\"a\" & (VLOOKUP(Switch!$D$65,$F$2:$G$44,2,FALSE)+ROW()-2)),\"\")","v":{"$error":"#N/A"}},{"$f":"IF(INDIRECT(\"c\" & (VLOOKUP(Switch!$D$66,$F$2:$G$44,2,FALSE)+ROW()-2))=Switch!$D$66,INDIRECT(\"a\" & (VLOOKUP(Switch!$D$66,$F$2:$G$44,2,FALSE)+ROW()-2)),\"\")","v":{"$error":"#N/A"}}]
["STANLIB MM Medium Equity FOF B1","STM1","STANLIB Collective Investments",{"$f":"ROW()","v":67},null,null,{"$f":"VLOOKUP(F67,$C$2:$D$637,2,FALSE)","v":{"$error":"#N/A"}},{"$f":"IF(INDIRECT(\"c\" & (VLOOKUP(Switch!$D$26,$F$2:$G$44,2,FALSE)+ROW()-2))=Switch!$D$26,INDIRECT(\"a\" & (VLOOKUP(Switch!$D$26,$F$2:$G$44,2,FALSE)+ROW()-2)),\"\")","v":{"$error":"#N/A"}},{"$f":"IF(INDIRECT(\"c\" & (VLOOKUP(Switch!$D$27,$F$2:$G$44,2,FALSE)+ROW()-2))=Switch!$D$27,INDIRECT(\"a\" & (VLOOKUP(Switch!$D$27,$F$2:$G$44,2,FALSE)+ROW()-2)),\"\")","v":{"$error":"#N/A"}},{"$f":"IF(INDIRECT(\"c\" & (VLOOKUP(Switch!$D$28,$F$2:$G$44,2,FALSE)+ROW()-2))=Switch!$D$28,INDIRECT(\"a\" & (VLOOKUP(Switch!$D$28,$F$2:$G$44,2,FALSE)+ROW()-2)),\"\")","v":{"$error":"#N/A"}},{"$f":"IF(INDIRECT(\"c\" & (VLOOKUP(Switch!$D$29,$F$2:$G$44,2,FALSE)+ROW()-2))=Switch!$D$29,INDIRECT(\"a\" & (VLOOKUP(Switch!$D$29,$F$2:$G$44,2,FALSE)+ROW()-2)),\"\")","v":{"$error":"#N/A"}},{"$f":"IF(INDIRECT(\"c\" & (VLOOKUP(Switch!$D$30,$F$2:$G$44,2,FALSE)+ROW()-2))=Switch!$D$30,INDIRECT(\"a\" & (VLOOKUP(Switch!$D$30,$F$2:$G$44,2,FALSE)+ROW()-2)),\"\")","v":{"$error":"#N/A"}},{"$f":"IF(INDIRECT(\"c\" & (VLOOKUP(Switch!$D$31,$F$2:$G$44,2,FALSE)+ROW()-2))=Switch!$D$31,INDIRECT(\"a\" & (VLOOKUP(Switch!$D$31,$F$2:$G$44,2,FALSE)+ROW()-2)),\"\")","v":{"$error":"#N/A"}},{"$f":"IF(INDIRECT(\"c\" & (VLOOKUP(Switch!$D$32,$F$2:$G$44,2,FALSE)+ROW()-2))=Switch!$D$32,INDIRECT(\"a\" & (VLOOKUP(Switch!$D$32,$F$2:$G$44,2,FALSE)+ROW()-2)),\"\")","v":{"$error":"#N/A"}},{"$f":"IF(INDIRECT(\"c\" & (VLOOKUP(Switch!$D$33,$F$2:$G$44,2,FALSE)+ROW()-2))=Switch!$D$33,INDIRECT(\"a\" & (VLOOKUP(Switch!$D$33,$F$2:$G$44,2,FALSE)+ROW()-2)),\"\")","v":{"$error":"#N/A"}},{"$f":"IF(INDIRECT(\"c\" & (VLOOKUP(Switch!$D$34,$F$2:$G$44,2,FALSE)+ROW()-2))=Switch!$D$34,INDIRECT(\"a\" & (VLOOKUP(Switch!$D$34,$F$2:$G$44,2,FALSE)+ROW()-2)),\"\")","v":{"$error":"#N/A"}},{"$f":"IF(INDIRECT(\"c\" & (VLOOKUP(Switch!$D$35,$F$2:$G$44,2,FALSE)+ROW()-2))=Switch!$D$35,INDIRECT(\"a\" & (VLOOKUP(Switch!$D$35,$F$2:$G$44,2,FALSE)+ROW()-2)),\"\")","v":{"$error":"#N/A"}},{"$f":"IF(INDIRECT(\"c\" & (VLOOKUP(Switch!$D$36,$F$2:$G$44,2,FALSE)+ROW()-2))=Switch!$D$36,INDIRECT(\"a\" & (VLOOKUP(Switch!$D$36,$F$2:$G$44,2,FALSE)+ROW()-2)),\"\")","v":{"$error":"#N/A"}},{"$f":"IF(INDIRECT(\"c\" & (VLOOKUP(Switch!$D$37,$F$2:$G$44,2,FALSE)+ROW()-2))=Switch!$D$37,INDIRECT(\"a\" & (VLOOKUP(Switch!$D$37,$F$2:$G$44,2,FALSE)+ROW()-2)),\"\")","v":{"$error":"#N/A"}},{"$f":"IF(INDIRECT(\"c\" & (VLOOKUP(Switch!$D$38,$F$2:$G$44,2,FALSE)+ROW()-2))=Switch!$D$38,INDIRECT(\"a\" & (VLOOKUP(Switch!$D$38,$F$2:$G$44,2,FALSE)+ROW()-2)),\"\")","v":{"$error":"#N/A"}},{"$f":"IF(INDIRECT(\"c\" & (VLOOKUP(Switch!$D$39,$F$2:$G$44,2,FALSE)+ROW()-2))=Switch!$D$39,INDIRECT(\"a\" & (VLOOKUP(Switch!$D$39,$F$2:$G$44,2,FALSE)+ROW()-2)),\"\")","v":{"$error":"#N/A"}},{"$f":"IF(INDIRECT(\"c\" & (VLOOKUP(Switch!$D$40,$F$2:$G$44,2,FALSE)+ROW()-2))=Switch!$D$40,INDIRECT(\"a\" & (VLOOKUP(Switch!$D$40,$F$2:$G$44,2,FALSE)+ROW()-2)),\"\")","v":{"$error":"#N/A"}},{"$f":"IF(INDIRECT(\"c\" & (VLOOKUP(Switch!$D$52,$F$2:$G$44,2,FALSE)+ROW()-2))=Switch!$D$52,INDIRECT(\"a\" & (VLOOKUP(Switch!$D$52,$F$2:$G$44,2,FALSE)+ROW()-2)),\"\")","v":{"$error":"#N/A"}},{"$f":"IF(INDIRECT(\"c\" & (VLOOKUP(Switch!$D$53,$F$2:$G$44,2,FALSE)+ROW()-2))=Switch!$D$53,INDIRECT(\"a\" & (VLOOKUP(Switch!$D$53,$F$2:$G$44,2,FALSE)+ROW()-2)),\"\")","v":{"$error":"#N/A"}},{"$f":"IF(INDIRECT(\"c\" & (VLOOKUP(Switch!$D$54,$F$2:$G$44,2,FALSE)+ROW()-2))=Switch!$D$54,INDIRECT(\"a\" & (VLOOKUP(Switch!$D$54,$F$2:$G$44,2,FALSE)+ROW()-2)),\"\")","v":{"$error":"#N/A"}},{"$f":"IF(INDIRECT(\"c\" & (VLOOKUP(Switch!$D$55,$F$2:$G$44,2,FALSE)+ROW()-2))=Switch!$D$55,INDIRECT(\"a\" & (VLOOKUP(Switch!$D$55,$F$2:$G$44,2,FALSE)+ROW()-2)),\"\")","v":{"$error":"#N/A"}},{"$f":"IF(INDIRECT(\"c\" & (VLOOKUP(Switch!$D$56,$F$2:$G$44,2,FALSE)+ROW()-2))=Switch!$D$56,INDIRECT(\"a\" & (VLOOKUP(Switch!$D$56,$F$2:$G$44,2,FALSE)+ROW()-2)),\"\")","v":{"$error":"#N/A"}},{"$f":"IF(INDIRECT(\"c\" & (VLOOKUP(Switch!$D$57,$F$2:$G$44,2,FALSE)+ROW()-2))=Switch!$D$57,INDIRECT(\"a\" & (VLOOKUP(Switch!$D$57,$F$2:$G$44,2,FALSE)+ROW()-2)),\"\")","v":{"$error":"#N/A"}},{"$f":"IF(INDIRECT(\"c\" & (VLOOKUP(Switch!$D$58,$F$2:$G$44,2,FALSE)+ROW()-2))=Switch!$D$58,INDIRECT(\"a\" & (VLOOKUP(Switch!$D$58,$F$2:$G$44,2,FALSE)+ROW()-2)),\"\")","v":{"$error":"#N/A"}},{"$f":"IF(INDIRECT(\"c\" & (VLOOKUP(Switch!$D$59,$F$2:$G$44,2,FALSE)+ROW()-2))=Switch!$D$59,INDIRECT(\"a\" & (VLOOKUP(Switch!$D$59,$F$2:$G$44,2,FALSE)+ROW()-2)),\"\")","v":{"$error":"#N/A"}},{"$f":"IF(INDIRECT(\"c\" & (VLOOKUP(Switch!$D$60,$F$2:$G$44,2,FALSE)+ROW()-2))=Switch!$D$60,INDIRECT(\"a\" & (VLOOKUP(Switch!$D$60,$F$2:$G$44,2,FALSE)+ROW()-2)),\"\")","v":{"$error":"#N/A"}},{"$f":"IF(INDIRECT(\"c\" & (VLOOKUP(Switch!$D$61,$F$2:$G$44,2,FALSE)+ROW()-2))=Switch!$D$61,INDIRECT(\"a\" & (VLOOKUP(Switch!$D$61,$F$2:$G$44,2,FALSE)+ROW()-2)),\"\")","v":{"$error":"#N/A"}},{"$f":"IF(INDIRECT(\"c\" & (VLOOKUP(Switch!$D$62,$F$2:$G$44,2,FALSE)+ROW()-2))=Switch!$D$62,INDIRECT(\"a\" & (VLOOKUP(Switch!$D$62,$F$2:$G$44,2,FALSE)+ROW()-2)),\"\")","v":{"$error":"#N/A"}},{"$f":"IF(INDIRECT(\"c\" & (VLOOKUP(Switch!$D$63,$F$2:$G$44,2,FALSE)+ROW()-2))=Switch!$D$63,INDIRECT(\"a\" & (VLOOKUP(Switch!$D$63,$F$2:$G$44,2,FALSE)+ROW()-2)),\"\")","v":{"$error":"#N/A"}},{"$f":"IF(INDIRECT(\"c\" & (VLOOKUP(Switch!$D$64,$F$2:$G$44,2,FALSE)+ROW()-2))=Switch!$D$64,INDIRECT(\"a\" & (VLOOKUP(Switch!$D$64,$F$2:$G$44,2,FALSE)+ROW()-2)),\"\")","v":{"$error":"#N/A"}},{"$f":"IF(INDIRECT(\"c\" & (VLOOKUP(Switch!$D$65,$F$2:$G$44,2,FALSE)+ROW()-2))=Switch!$D$65,INDIRECT(\"a\" & (VLOOKUP(Switch!$D$65,$F$2:$G$44,2,FALSE)+ROW()-2)),\"\")","v":{"$error":"#N/A"}},{"$f":"IF(INDIRECT(\"c\" & (VLOOKUP(Switch!$D$66,$F$2:$G$44,2,FALSE)+ROW()-2))=Switch!$D$66,INDIRECT(\"a\" & (VLOOKUP(Switch!$D$66,$F$2:$G$44,2,FALSE)+ROW()-2)),\"\")","v":{"$error":"#N/A"}}]
["STANLIB MM Property Fund B1","STP1","STANLIB Collective Investments",{"$f":"ROW()","v":68},null,null,{"$f":"VLOOKUP(F68,$C$2:$D$637,2,FALSE)","v":{"$error":"#N/A"}},{"$f":"IF(INDIRECT(\"c\" & (VLOOKUP(Switch!$D$26,$F$2:$G$44,2,FALSE)+ROW()-2))=Switch!$D$26,INDIRECT(\"a\" & (VLOOKUP(Switch!$D$26,$F$2:$G$44,2,FALSE)+ROW()-2)),\"\")","v":{"$error":"#N/A"}},{"$f":"IF(INDIRECT(\"c\" & (VLOOKUP(Switch!$D$27,$F$2:$G$44,2,FALSE)+ROW()-2))=Switch!$D$27,INDIRECT(\"a\" & (VLOOKUP(Switch!$D$27,$F$2:$G$44,2,FALSE)+ROW()-2)),\"\")","v":{"$error":"#N/A"}},{"$f":"IF(INDIRECT(\"c\" & (VLOOKUP(Switch!$D$28,$F$2:$G$44,2,FALSE)+ROW()-2))=Switch!$D$28,INDIRECT(\"a\" & (VLOOKUP(Switch!$D$28,$F$2:$G$44,2,FALSE)+ROW()-2)),\"\")","v":{"$error":"#N/A"}},{"$f":"IF(INDIRECT(\"c\" & (VLOOKUP(Switch!$D$29,$F$2:$G$44,2,FALSE)+ROW()-2))=Switch!$D$29,INDIRECT(\"a\" & (VLOOKUP(Switch!$D$29,$F$2:$G$44,2,FALSE)+ROW()-2)),\"\")","v":{"$error":"#N/A"}},{"$f":"IF(INDIRECT(\"c\" & (VLOOKUP(Switch!$D$30,$F$2:$G$44,2,FALSE)+ROW()-2))=Switch!$D$30,INDIRECT(\"a\" & (VLOOKUP(Switch!$D$30,$F$2:$G$44,2,FALSE)+ROW()-2)),\"\")","v":{"$error":"#N/A"}},{"$f":"IF(INDIRECT(\"c\" & (VLOOKUP(Switch!$D$31,$F$2:$G$44,2,FALSE)+ROW()-2))=Switch!$D$31,INDIRECT(\"a\" & (VLOOKUP(Switch!$D$31,$F$2:$G$44,2,FALSE)+ROW()-2)),\"\")","v":{"$error":"#N/A"}},{"$f":"IF(INDIRECT(\"c\" & (VLOOKUP(Switch!$D$32,$F$2:$G$44,2,FALSE)+ROW()-2))=Switch!$D$32,INDIRECT(\"a\" & (VLOOKUP(Switch!$D$32,$F$2:$G$44,2,FALSE)+ROW()-2)),\"\")","v":{"$error":"#N/A"}},{"$f":"IF(INDIRECT(\"c\" & (VLOOKUP(Switch!$D$33,$F$2:$G$44,2,FALSE)+ROW()-2))=Switch!$D$33,INDIRECT(\"a\" & (VLOOKUP(Switch!$D$33,$F$2:$G$44,2,FALSE)+ROW()-2)),\"\")","v":{"$error":"#N/A"}},{"$f":"IF(INDIRECT(\"c\" & (VLOOKUP(Switch!$D$34,$F$2:$G$44,2,FALSE)+ROW()-2))=Switch!$D$34,INDIRECT(\"a\" & (VLOOKUP(Switch!$D$34,$F$2:$G$44,2,FALSE)+ROW()-2)),\"\")","v":{"$error":"#N/A"}},{"$f":"IF(INDIRECT(\"c\" & (VLOOKUP(Switch!$D$35,$F$2:$G$44,2,FALSE)+ROW()-2))=Switch!$D$35,INDIRECT(\"a\" & (VLOOKUP(Switch!$D$35,$F$2:$G$44,2,FALSE)+ROW()-2)),\"\")","v":{"$error":"#N/A"}},{"$f":"IF(INDIRECT(\"c\" & (VLOOKUP(Switch!$D$36,$F$2:$G$44,2,FALSE)+ROW()-2))=Switch!$D$36,INDIRECT(\"a\" & (VLOOKUP(Switch!$D$36,$F$2:$G$44,2,FALSE)+ROW()-2)),\"\")","v":{"$error":"#N/A"}},{"$f":"IF(INDIRECT(\"c\" & (VLOOKUP(Switch!$D$37,$F$2:$G$44,2,FALSE)+ROW()-2))=Switch!$D$37,INDIRECT(\"a\" & (VLOOKUP(Switch!$D$37,$F$2:$G$44,2,FALSE)+ROW()-2)),\"\")","v":{"$error":"#N/A"}},{"$f":"IF(INDIRECT(\"c\" & (VLOOKUP(Switch!$D$38,$F$2:$G$44,2,FALSE)+ROW()-2))=Switch!$D$38,INDIRECT(\"a\" & (VLOOKUP(Switch!$D$38,$F$2:$G$44,2,FALSE)+ROW()-2)),\"\")","v":{"$error":"#N/A"}},{"$f":"IF(INDIRECT(\"c\" & (VLOOKUP(Switch!$D$39,$F$2:$G$44,2,FALSE)+ROW()-2))=Switch!$D$39,INDIRECT(\"a\" & (VLOOKUP(Switch!$D$39,$F$2:$G$44,2,FALSE)+ROW()-2)),\"\")","v":{"$error":"#N/A"}},{"$f":"IF(INDIRECT(\"c\" & (VLOOKUP(Switch!$D$40,$F$2:$G$44,2,FALSE)+ROW()-2))=Switch!$D$40,INDIRECT(\"a\" & (VLOOKUP(Switch!$D$40,$F$2:$G$44,2,FALSE)+ROW()-2)),\"\")","v":{"$error":"#N/A"}},{"$f":"IF(INDIRECT(\"c\" & (VLOOKUP(Switch!$D$52,$F$2:$G$44,2,FALSE)+ROW()-2))=Switch!$D$52,INDIRECT(\"a\" & (VLOOKUP(Switch!$D$52,$F$2:$G$44,2,FALSE)+ROW()-2)),\"\")","v":{"$error":"#N/A"}},{"$f":"IF(INDIRECT(\"c\" & (VLOOKUP(Switch!$D$53,$F$2:$G$44,2,FALSE)+ROW()-2))=Switch!$D$53,INDIRECT(\"a\" & (VLOOKUP(Switch!$D$53,$F$2:$G$44,2,FALSE)+ROW()-2)),\"\")","v":{"$error":"#N/A"}},{"$f":"IF(INDIRECT(\"c\" & (VLOOKUP(Switch!$D$54,$F$2:$G$44,2,FALSE)+ROW()-2))=Switch!$D$54,INDIRECT(\"a\" & (VLOOKUP(Switch!$D$54,$F$2:$G$44,2,FALSE)+ROW()-2)),\"\")","v":{"$error":"#N/A"}},{"$f":"IF(INDIRECT(\"c\" & (VLOOKUP(Switch!$D$55,$F$2:$G$44,2,FALSE)+ROW()-2))=Switch!$D$55,INDIRECT(\"a\" & (VLOOKUP(Switch!$D$55,$F$2:$G$44,2,FALSE)+ROW()-2)),\"\")","v":{"$error":"#N/A"}},{"$f":"IF(INDIRECT(\"c\" & (VLOOKUP(Switch!$D$56,$F$2:$G$44,2,FALSE)+ROW()-2))=Switch!$D$56,INDIRECT(\"a\" & (VLOOKUP(Switch!$D$56,$F$2:$G$44,2,FALSE)+ROW()-2)),\"\")","v":{"$error":"#N/A"}},{"$f":"IF(INDIRECT(\"c\" & (VLOOKUP(Switch!$D$57,$F$2:$G$44,2,FALSE)+ROW()-2))=Switch!$D$57,INDIRECT(\"a\" & (VLOOKUP(Switch!$D$57,$F$2:$G$44,2,FALSE)+ROW()-2)),\"\")","v":{"$error":"#N/A"}},{"$f":"IF(INDIRECT(\"c\" & (VLOOKUP(Switch!$D$58,$F$2:$G$44,2,FALSE)+ROW()-2))=Switch!$D$58,INDIRECT(\"a\" & (VLOOKUP(Switch!$D$58,$F$2:$G$44,2,FALSE)+ROW()-2)),\"\")","v":{"$error":"#N/A"}},{"$f":"IF(INDIRECT(\"c\" & (VLOOKUP(Switch!$D$59,$F$2:$G$44,2,FALSE)+ROW()-2))=Switch!$D$59,INDIRECT(\"a\" & (VLOOKUP(Switch!$D$59,$F$2:$G$44,2,FALSE)+ROW()-2)),\"\")","v":{"$error":"#N/A"}},{"$f":"IF(INDIRECT(\"c\" & (VLOOKUP(Switch!$D$60,$F$2:$G$44,2,FALSE)+ROW()-2))=Switch!$D$60,INDIRECT(\"a\" & (VLOOKUP(Switch!$D$60,$F$2:$G$44,2,FALSE)+ROW()-2)),\"\")","v":{"$error":"#N/A"}},{"$f":"IF(INDIRECT(\"c\" & (VLOOKUP(Switch!$D$61,$F$2:$G$44,2,FALSE)+ROW()-2))=Switch!$D$61,INDIRECT(\"a\" & (VLOOKUP(Switch!$D$61,$F$2:$G$44,2,FALSE)+ROW()-2)),\"\")","v":{"$error":"#N/A"}},{"$f":"IF(INDIRECT(\"c\" & (VLOOKUP(Switch!$D$62,$F$2:$G$44,2,FALSE)+ROW()-2))=Switch!$D$62,INDIRECT(\"a\" & (VLOOKUP(Switch!$D$62,$F$2:$G$44,2,FALSE)+ROW()-2)),\"\")","v":{"$error":"#N/A"}},{"$f":"IF(INDIRECT(\"c\" & (VLOOKUP(Switch!$D$63,$F$2:$G$44,2,FALSE)+ROW()-2))=Switch!$D$63,INDIRECT(\"a\" & (VLOOKUP(Switch!$D$63,$F$2:$G$44,2,FALSE)+ROW()-2)),\"\")","v":{"$error":"#N/A"}},{"$f":"IF(INDIRECT(\"c\" & (VLOOKUP(Switch!$D$64,$F$2:$G$44,2,FALSE)+ROW()-2))=Switch!$D$64,INDIRECT(\"a\" & (VLOOKUP(Switch!$D$64,$F$2:$G$44,2,FALSE)+ROW()-2)),\"\")","v":{"$error":"#N/A"}},{"$f":"IF(INDIRECT(\"c\" & (VLOOKUP(Switch!$D$65,$F$2:$G$44,2,FALSE)+ROW()-2))=Switch!$D$65,INDIRECT(\"a\" & (VLOOKUP(Switch!$D$65,$F$2:$G$44,2,FALSE)+ROW()-2)),\"\")","v":{"$error":"#N/A"}},{"$f":"IF(INDIRECT(\"c\" & (VLOOKUP(Switch!$D$66,$F$2:$G$44,2,FALSE)+ROW()-2))=Switch!$D$66,INDIRECT(\"a\" & (VLOOKUP(Switch!$D$66,$F$2:$G$44,2,FALSE)+ROW()-2)),\"\")","v":{"$error":"#N/A"}}]
["STANLIB MM Real Return Fund B1","SMB1","STANLIB Collective Investments",{"$f":"ROW()","v":69},null,null,{"$f":"VLOOKUP(F69,$C$2:$D$637,2,FALSE)","v":{"$error":"#N/A"}},{"$f":"IF(INDIRECT(\"c\" & (VLOOKUP(Switch!$D$26,$F$2:$G$44,2,FALSE)+ROW()-2))=Switch!$D$26,INDIRECT(\"a\" & (VLOOKUP(Switch!$D$26,$F$2:$G$44,2,FALSE)+ROW()-2)),\"\")","v":{"$error":"#N/A"}},{"$f":"IF(INDIRECT(\"c\" & (VLOOKUP(Switch!$D$27,$F$2:$G$44,2,FALSE)+ROW()-2))=Switch!$D$27,INDIRECT(\"a\" & (VLOOKUP(Switch!$D$27,$F$2:$G$44,2,FALSE)+ROW()-2)),\"\")","v":{"$error":"#N/A"}},{"$f":"IF(INDIRECT(\"c\" & (VLOOKUP(Switch!$D$28,$F$2:$G$44,2,FALSE)+ROW()-2))=Switch!$D$28,INDIRECT(\"a\" & (VLOOKUP(Switch!$D$28,$F$2:$G$44,2,FALSE)+ROW()-2)),\"\")","v":{"$error":"#N/A"}},{"$f":"IF(INDIRECT(\"c\" & (VLOOKUP(Switch!$D$29,$F$2:$G$44,2,FALSE)+ROW()-2))=Switch!$D$29,INDIRECT(\"a\" & (VLOOKUP(Switch!$D$29,$F$2:$G$44,2,FALSE)+ROW()-2)),\"\")","v":{"$error":"#N/A"}},{"$f":"IF(INDIRECT(\"c\" & (VLOOKUP(Switch!$D$30,$F$2:$G$44,2,FALSE)+ROW()-2))=Switch!$D$30,INDIRECT(\"a\" & (VLOOKUP(Switch!$D$30,$F$2:$G$44,2,FALSE)+ROW()-2)),\"\")","v":{"$error":"#N/A"}},{"$f":"IF(INDIRECT(\"c\" & (VLOOKUP(Switch!$D$31,$F$2:$G$44,2,FALSE)+ROW()-2))=Switch!$D$31,INDIRECT(\"a\" & (VLOOKUP(Switch!$D$31,$F$2:$G$44,2,FALSE)+ROW()-2)),\"\")","v":{"$error":"#N/A"}},{"$f":"IF(INDIRECT(\"c\" & (VLOOKUP(Switch!$D$32,$F$2:$G$44,2,FALSE)+ROW()-2))=Switch!$D$32,INDIRECT(\"a\" & (VLOOKUP(Switch!$D$32,$F$2:$G$44,2,FALSE)+ROW()-2)),\"\")","v":{"$error":"#N/A"}},{"$f":"IF(INDIRECT(\"c\" & (VLOOKUP(Switch!$D$33,$F$2:$G$44,2,FALSE)+ROW()-2))=Switch!$D$33,INDIRECT(\"a\" & (VLOOKUP(Switch!$D$33,$F$2:$G$44,2,FALSE)+ROW()-2)),\"\")","v":{"$error":"#N/A"}},{"$f":"IF(INDIRECT(\"c\" & (VLOOKUP(Switch!$D$34,$F$2:$G$44,2,FALSE)+ROW()-2))=Switch!$D$34,INDIRECT(\"a\" & (VLOOKUP(Switch!$D$34,$F$2:$G$44,2,FALSE)+ROW()-2)),\"\")","v":{"$error":"#N/A"}},{"$f":"IF(INDIRECT(\"c\" & (VLOOKUP(Switch!$D$35,$F$2:$G$44,2,FALSE)+ROW()-2))=Switch!$D$35,INDIRECT(\"a\" & (VLOOKUP(Switch!$D$35,$F$2:$G$44,2,FALSE)+ROW()-2)),\"\")","v":{"$error":"#N/A"}},{"$f":"IF(INDIRECT(\"c\" & (VLOOKUP(Switch!$D$36,$F$2:$G$44,2,FALSE)+ROW()-2))=Switch!$D$36,INDIRECT(\"a\" & (VLOOKUP(Switch!$D$36,$F$2:$G$44,2,FALSE)+ROW()-2)),\"\")","v":{"$error":"#N/A"}},{"$f":"IF(INDIRECT(\"c\" & (VLOOKUP(Switch!$D$37,$F$2:$G$44,2,FALSE)+ROW()-2))=Switch!$D$37,INDIRECT(\"a\" & (VLOOKUP(Switch!$D$37,$F$2:$G$44,2,FALSE)+ROW()-2)),\"\")","v":{"$error":"#N/A"}},{"$f":"IF(INDIRECT(\"c\" & (VLOOKUP(Switch!$D$38,$F$2:$G$44,2,FALSE)+ROW()-2))=Switch!$D$38,INDIRECT(\"a\" & (VLOOKUP(Switch!$D$38,$F$2:$G$44,2,FALSE)+ROW()-2)),\"\")","v":{"$error":"#N/A"}},{"$f":"IF(INDIRECT(\"c\" & (VLOOKUP(Switch!$D$39,$F$2:$G$44,2,FALSE)+ROW()-2))=Switch!$D$39,INDIRECT(\"a\" & (VLOOKUP(Switch!$D$39,$F$2:$G$44,2,FALSE)+ROW()-2)),\"\")","v":{"$error":"#N/A"}},{"$f":"IF(INDIRECT(\"c\" & (VLOOKUP(Switch!$D$40,$F$2:$G$44,2,FALSE)+ROW()-2))=Switch!$D$40,INDIRECT(\"a\" & (VLOOKUP(Switch!$D$40,$F$2:$G$44,2,FALSE)+ROW()-2)),\"\")","v":{"$error":"#N/A"}},{"$f":"IF(INDIRECT(\"c\" & (VLOOKUP(Switch!$D$52,$F$2:$G$44,2,FALSE)+ROW()-2))=Switch!$D$52,INDIRECT(\"a\" & (VLOOKUP(Switch!$D$52,$F$2:$G$44,2,FALSE)+ROW()-2)),\"\")","v":{"$error":"#N/A"}},{"$f":"IF(INDIRECT(\"c\" & (VLOOKUP(Switch!$D$53,$F$2:$G$44,2,FALSE)+ROW()-2))=Switch!$D$53,INDIRECT(\"a\" & (VLOOKUP(Switch!$D$53,$F$2:$G$44,2,FALSE)+ROW()-2)),\"\")","v":{"$error":"#N/A"}},{"$f":"IF(INDIRECT(\"c\" & (VLOOKUP(Switch!$D$54,$F$2:$G$44,2,FALSE)+ROW()-2))=Switch!$D$54,INDIRECT(\"a\" & (VLOOKUP(Switch!$D$54,$F$2:$G$44,2,FALSE)+ROW()-2)),\"\")","v":{"$error":"#N/A"}},{"$f":"IF(INDIRECT(\"c\" & (VLOOKUP(Switch!$D$55,$F$2:$G$44,2,FALSE)+ROW()-2))=Switch!$D$55,INDIRECT(\"a\" & (VLOOKUP(Switch!$D$55,$F$2:$G$44,2,FALSE)+ROW()-2)),\"\")","v":{"$error":"#N/A"}},{"$f":"IF(INDIRECT(\"c\" & (VLOOKUP(Switch!$D$56,$F$2:$G$44,2,FALSE)+ROW()-2))=Switch!$D$56,INDIRECT(\"a\" & (VLOOKUP(Switch!$D$56,$F$2:$G$44,2,FALSE)+ROW()-2)),\"\")","v":{"$error":"#N/A"}},{"$f":"IF(INDIRECT(\"c\" & (VLOOKUP(Switch!$D$57,$F$2:$G$44,2,FALSE)+ROW()-2))=Switch!$D$57,INDIRECT(\"a\" & (VLOOKUP(Switch!$D$57,$F$2:$G$44,2,FALSE)+ROW()-2)),\"\")","v":{"$error":"#N/A"}},{"$f":"IF(INDIRECT(\"c\" & (VLOOKUP(Switch!$D$58,$F$2:$G$44,2,FALSE)+ROW()-2))=Switch!$D$58,INDIRECT(\"a\" & (VLOOKUP(Switch!$D$58,$F$2:$G$44,2,FALSE)+ROW()-2)),\"\")","v":{"$error":"#N/A"}},{"$f":"IF(INDIRECT(\"c\" & (VLOOKUP(Switch!$D$59,$F$2:$G$44,2,FALSE)+ROW()-2))=Switch!$D$59,INDIRECT(\"a\" & (VLOOKUP(Switch!$D$59,$F$2:$G$44,2,FALSE)+ROW()-2)),\"\")","v":{"$error":"#N/A"}},{"$f":"IF(INDIRECT(\"c\" & (VLOOKUP(Switch!$D$60,$F$2:$G$44,2,FALSE)+ROW()-2))=Switch!$D$60,INDIRECT(\"a\" & (VLOOKUP(Switch!$D$60,$F$2:$G$44,2,FALSE)+ROW()-2)),\"\")","v":{"$error":"#N/A"}},{"$f":"IF(INDIRECT(\"c\" & (VLOOKUP(Switch!$D$61,$F$2:$G$44,2,FALSE)+ROW()-2))=Switch!$D$61,INDIRECT(\"a\" & (VLOOKUP(Switch!$D$61,$F$2:$G$44,2,FALSE)+ROW()-2)),\"\")","v":{"$error":"#N/A"}},{"$f":"IF(INDIRECT(\"c\" & (VLOOKUP(Switch!$D$62,$F$2:$G$44,2,FALSE)+ROW()-2))=Switch!$D$62,INDIRECT(\"a\" & (VLOOKUP(Switch!$D$62,$F$2:$G$44,2,FALSE)+ROW()-2)),\"\")","v":{"$error":"#N/A"}},{"$f":"IF(INDIRECT(\"c\" & (VLOOKUP(Switch!$D$63,$F$2:$G$44,2,FALSE)+ROW()-2))=Switch!$D$63,INDIRECT(\"a\" & (VLOOKUP(Switch!$D$63,$F$2:$G$44,2,FALSE)+ROW()-2)),\"\")","v":{"$error":"#N/A"}},{"$f":"IF(INDIRECT(\"c\" & (VLOOKUP(Switch!$D$64,$F$2:$G$44,2,FALSE)+ROW()-2))=Switch!$D$64,INDIRECT(\"a\" & (VLOOKUP(Switch!$D$64,$F$2:$G$44,2,FALSE)+ROW()-2)),\"\")","v":{"$error":"#N/A"}},{"$f":"IF(INDIRECT(\"c\" & (VLOOKUP(Switch!$D$65,$F$2:$G$44,2,FALSE)+ROW()-2))=Switch!$D$65,INDIRECT(\"a\" & (VLOOKUP(Switch!$D$65,$F$2:$G$44,2,FALSE)+ROW()-2)),\"\")","v":{"$error":"#N/A"}},{"$f":"IF(INDIRECT(\"c\" & (VLOOKUP(Switch!$D$66,$F$2:$G$44,2,FALSE)+ROW()-2))=Switch!$D$66,INDIRECT(\"a\" & (VLOOKUP(Switch!$D$66,$F$2:$G$44,2,FALSE)+ROW()-2)),\"\")","v":{"$error":"#N/A"}}]
["STANLIB Money Market Fund B5","STMM","STANLIB Collective Investments",{"$f":"ROW()","v":70},null,null,{"$f":"VLOOKUP(F70,$C$2:$D$637,2,FALSE)","v":{"$error":"#N/A"}},{"$f":"IF(INDIRECT(\"c\" & (VLOOKUP(Switch!$D$26,$F$2:$G$44,2,FALSE)+ROW()-2))=Switch!$D$26,INDIRECT(\"a\" & (VLOOKUP(Switch!$D$26,$F$2:$G$44,2,FALSE)+ROW()-2)),\"\")","v":{"$error":"#N/A"}},{"$f":"IF(INDIRECT(\"c\" & (VLOOKUP(Switch!$D$27,$F$2:$G$44,2,FALSE)+ROW()-2))=Switch!$D$27,INDIRECT(\"a\" & (VLOOKUP(Switch!$D$27,$F$2:$G$44,2,FALSE)+ROW()-2)),\"\")","v":{"$error":"#N/A"}},{"$f":"IF(INDIRECT(\"c\" & (VLOOKUP(Switch!$D$28,$F$2:$G$44,2,FALSE)+ROW()-2))=Switch!$D$28,INDIRECT(\"a\" & (VLOOKUP(Switch!$D$28,$F$2:$G$44,2,FALSE)+ROW()-2)),\"\")","v":{"$error":"#N/A"}},{"$f":"IF(INDIRECT(\"c\" & (VLOOKUP(Switch!$D$29,$F$2:$G$44,2,FALSE)+ROW()-2))=Switch!$D$29,INDIRECT(\"a\" & (VLOOKUP(Switch!$D$29,$F$2:$G$44,2,FALSE)+ROW()-2)),\"\")","v":{"$error":"#N/A"}},{"$f":"IF(INDIRECT(\"c\" & (VLOOKUP(Switch!$D$30,$F$2:$G$44,2,FALSE)+ROW()-2))=Switch!$D$30,INDIRECT(\"a\" & (VLOOKUP(Switch!$D$30,$F$2:$G$44,2,FALSE)+ROW()-2)),\"\")","v":{"$error":"#N/A"}},{"$f":"IF(INDIRECT(\"c\" & (VLOOKUP(Switch!$D$31,$F$2:$G$44,2,FALSE)+ROW()-2))=Switch!$D$31,INDIRECT(\"a\" & (VLOOKUP(Switch!$D$31,$F$2:$G$44,2,FALSE)+ROW()-2)),\"\")","v":{"$error":"#N/A"}},{"$f":"IF(INDIRECT(\"c\" & (VLOOKUP(Switch!$D$32,$F$2:$G$44,2,FALSE)+ROW()-2))=Switch!$D$32,INDIRECT(\"a\" & (VLOOKUP(Switch!$D$32,$F$2:$G$44,2,FALSE)+ROW()-2)),\"\")","v":{"$error":"#N/A"}},{"$f":"IF(INDIRECT(\"c\" & (VLOOKUP(Switch!$D$33,$F$2:$G$44,2,FALSE)+ROW()-2))=Switch!$D$33,INDIRECT(\"a\" & (VLOOKUP(Switch!$D$33,$F$2:$G$44,2,FALSE)+ROW()-2)),\"\")","v":{"$error":"#N/A"}},{"$f":"IF(INDIRECT(\"c\" & (VLOOKUP(Switch!$D$34,$F$2:$G$44,2,FALSE)+ROW()-2))=Switch!$D$34,INDIRECT(\"a\" & (VLOOKUP(Switch!$D$34,$F$2:$G$44,2,FALSE)+ROW()-2)),\"\")","v":{"$error":"#N/A"}},{"$f":"IF(INDIRECT(\"c\" & (VLOOKUP(Switch!$D$35,$F$2:$G$44,2,FALSE)+ROW()-2))=Switch!$D$35,INDIRECT(\"a\" & (VLOOKUP(Switch!$D$35,$F$2:$G$44,2,FALSE)+ROW()-2)),\"\")","v":{"$error":"#N/A"}},{"$f":"IF(INDIRECT(\"c\" & (VLOOKUP(Switch!$D$36,$F$2:$G$44,2,FALSE)+ROW()-2))=Switch!$D$36,INDIRECT(\"a\" & (VLOOKUP(Switch!$D$36,$F$2:$G$44,2,FALSE)+ROW()-2)),\"\")","v":{"$error":"#N/A"}},{"$f":"IF(INDIRECT(\"c\" & (VLOOKUP(Switch!$D$37,$F$2:$G$44,2,FALSE)+ROW()-2))=Switch!$D$37,INDIRECT(\"a\" & (VLOOKUP(Switch!$D$37,$F$2:$G$44,2,FALSE)+ROW()-2)),\"\")","v":{"$error":"#N/A"}},{"$f":"IF(INDIRECT(\"c\" & (VLOOKUP(Switch!$D$38,$F$2:$G$44,2,FALSE)+ROW()-2))=Switch!$D$38,INDIRECT(\"a\" & (VLOOKUP(Switch!$D$38,$F$2:$G$44,2,FALSE)+ROW()-2)),\"\")","v":{"$error":"#N/A"}},{"$f":"IF(INDIRECT(\"c\" & (VLOOKUP(Switch!$D$39,$F$2:$G$44,2,FALSE)+ROW()-2))=Switch!$D$39,INDIRECT(\"a\" & (VLOOKUP(Switch!$D$39,$F$2:$G$44,2,FALSE)+ROW()-2)),\"\")","v":{"$error":"#N/A"}},{"$f":"IF(INDIRECT(\"c\" & (VLOOKUP(Switch!$D$40,$F$2:$G$44,2,FALSE)+ROW()-2))=Switch!$D$40,INDIRECT(\"a\" & (VLOOKUP(Switch!$D$40,$F$2:$G$44,2,FALSE)+ROW()-2)),\"\")","v":{"$error":"#N/A"}},{"$f":"IF(INDIRECT(\"c\" & (VLOOKUP(Switch!$D$52,$F$2:$G$44,2,FALSE)+ROW()-2))=Switch!$D$52,INDIRECT(\"a\" & (VLOOKUP(Switch!$D$52,$F$2:$G$44,2,FALSE)+ROW()-2)),\"\")","v":{"$error":"#N/A"}},{"$f":"IF(INDIRECT(\"c\" & (VLOOKUP(Switch!$D$53,$F$2:$G$44,2,FALSE)+ROW()-2))=Switch!$D$53,INDIRECT(\"a\" & (VLOOKUP(Switch!$D$53,$F$2:$G$44,2,FALSE)+ROW()-2)),\"\")","v":{"$error":"#N/A"}},{"$f":"IF(INDIRECT(\"c\" & (VLOOKUP(Switch!$D$54,$F$2:$G$44,2,FALSE)+ROW()-2))=Switch!$D$54,INDIRECT(\"a\" & (VLOOKUP(Switch!$D$54,$F$2:$G$44,2,FALSE)+ROW()-2)),\"\")","v":{"$error":"#N/A"}},{"$f":"IF(INDIRECT(\"c\" & (VLOOKUP(Switch!$D$55,$F$2:$G$44,2,FALSE)+ROW()-2))=Switch!$D$55,INDIRECT(\"a\" & (VLOOKUP(Switch!$D$55,$F$2:$G$44,2,FALSE)+ROW()-2)),\"\")","v":{"$error":"#N/A"}},{"$f":"IF(INDIRECT(\"c\" & (VLOOKUP(Switch!$D$56,$F$2:$G$44,2,FALSE)+ROW()-2))=Switch!$D$56,INDIRECT(\"a\" & (VLOOKUP(Switch!$D$56,$F$2:$G$44,2,FALSE)+ROW()-2)),\"\")","v":{"$error":"#N/A"}},{"$f":"IF(INDIRECT(\"c\" & (VLOOKUP(Switch!$D$57,$F$2:$G$44,2,FALSE)+ROW()-2))=Switch!$D$57,INDIRECT(\"a\" & (VLOOKUP(Switch!$D$57,$F$2:$G$44,2,FALSE)+ROW()-2)),\"\")","v":{"$error":"#N/A"}},{"$f":"IF(INDIRECT(\"c\" & (VLOOKUP(Switch!$D$58,$F$2:$G$44,2,FALSE)+ROW()-2))=Switch!$D$58,INDIRECT(\"a\" & (VLOOKUP(Switch!$D$58,$F$2:$G$44,2,FALSE)+ROW()-2)),\"\")","v":{"$error":"#N/A"}},{"$f":"IF(INDIRECT(\"c\" & (VLOOKUP(Switch!$D$59,$F$2:$G$44,2,FALSE)+ROW()-2))=Switch!$D$59,INDIRECT(\"a\" & (VLOOKUP(Switch!$D$59,$F$2:$G$44,2,FALSE)+ROW()-2)),\"\")","v":{"$error":"#N/A"}},{"$f":"IF(INDIRECT(\"c\" & (VLOOKUP(Switch!$D$60,$F$2:$G$44,2,FALSE)+ROW()-2))=Switch!$D$60,INDIRECT(\"a\" & (VLOOKUP(Switch!$D$60,$F$2:$G$44,2,FALSE)+ROW()-2)),\"\")","v":{"$error":"#N/A"}},{"$f":"IF(INDIRECT(\"c\" & (VLOOKUP(Switch!$D$61,$F$2:$G$44,2,FALSE)+ROW()-2))=Switch!$D$61,INDIRECT(\"a\" & (VLOOKUP(Switch!$D$61,$F$2:$G$44,2,FALSE)+ROW()-2)),\"\")","v":{"$error":"#N/A"}},{"$f":"IF(INDIRECT(\"c\" & (VLOOKUP(Switch!$D$62,$F$2:$G$44,2,FALSE)+ROW()-2))=Switch!$D$62,INDIRECT(\"a\" & (VLOOKUP(Switch!$D$62,$F$2:$G$44,2,FALSE)+ROW()-2)),\"\")","v":{"$error":"#N/A"}},{"$f":"IF(INDIRECT(\"c\" & (VLOOKUP(Switch!$D$63,$F$2:$G$44,2,FALSE)+ROW()-2))=Switch!$D$63,INDIRECT(\"a\" & (VLOOKUP(Switch!$D$63,$F$2:$G$44,2,FALSE)+ROW()-2)),\"\")","v":{"$error":"#N/A"}},{"$f":"IF(INDIRECT(\"c\" & (VLOOKUP(Switch!$D$64,$F$2:$G$44,2,FALSE)+ROW()-2))=Switch!$D$64,INDIRECT(\"a\" & (VLOOKUP(Switch!$D$64,$F$2:$G$44,2,FALSE)+ROW()-2)),\"\")","v":{"$error":"#N/A"}},{"$f":"IF(INDIRECT(\"c\" & (VLOOKUP(Switch!$D$65,$F$2:$G$44,2,FALSE)+ROW()-2))=Switch!$D$65,INDIRECT(\"a\" & (VLOOKUP(Switch!$D$65,$F$2:$G$44,2,FALSE)+ROW()-2)),\"\")","v":{"$error":"#N/A"}},{"$f":"IF(INDIRECT(\"c\" & (VLOOKUP(Switch!$D$66,$F$2:$G$44,2,FALSE)+ROW()-2))=Switch!$D$66,INDIRECT(\"a\" & (VLOOKUP(Switch!$D$66,$F$2:$G$44,2,FALSE)+ROW()-2)),\"\")","v":{"$error":"#N/A"}}]
["STANLIB Money Market Fund R","STMM","STANLIB Collective Investments",{"$f":"ROW()","v":71},null,null,{"$f":"VLOOKUP(F71,$C$2:$D$637,2,FALSE)","v":{"$error":"#N/A"}},{"$f":"IF(INDIRECT(\"c\" & (VLOOKUP(Switch!$D$26,$F$2:$G$44,2,FALSE)+ROW()-2))=Switch!$D$26,INDIRECT(\"a\" & (VLOOKUP(Switch!$D$26,$F$2:$G$44,2,FALSE)+ROW()-2)),\"\")","v":{"$error":"#N/A"}},{"$f":"IF(INDIRECT(\"c\" & (VLOOKUP(Switch!$D$27,$F$2:$G$44,2,FALSE)+ROW()-2))=Switch!$D$27,INDIRECT(\"a\" & (VLOOKUP(Switch!$D$27,$F$2:$G$44,2,FALSE)+ROW()-2)),\"\")","v":{"$error":"#N/A"}},{"$f":"IF(INDIRECT(\"c\" & (VLOOKUP(Switch!$D$28,$F$2:$G$44,2,FALSE)+ROW()-2))=Switch!$D$28,INDIRECT(\"a\" & (VLOOKUP(Switch!$D$28,$F$2:$G$44,2,FALSE)+ROW()-2)),\"\")","v":{"$error":"#N/A"}},{"$f":"IF(INDIRECT(\"c\" & (VLOOKUP(Switch!$D$29,$F$2:$G$44,2,FALSE)+ROW()-2))=Switch!$D$29,INDIRECT(\"a\" & (VLOOKUP(Switch!$D$29,$F$2:$G$44,2,FALSE)+ROW()-2)),\"\")","v":{"$error":"#N/A"}},{"$f":"IF(INDIRECT(\"c\" & (VLOOKUP(Switch!$D$30,$F$2:$G$44,2,FALSE)+ROW()-2))=Switch!$D$30,INDIRECT(\"a\" & (VLOOKUP(Switch!$D$30,$F$2:$G$44,2,FALSE)+ROW()-2)),\"\")","v":{"$error":"#N/A"}},{"$f":"IF(INDIRECT(\"c\" & (VLOOKUP(Switch!$D$31,$F$2:$G$44,2,FALSE)+ROW()-2))=Switch!$D$31,INDIRECT(\"a\" & (VLOOKUP(Switch!$D$31,$F$2:$G$44,2,FALSE)+ROW()-2)),\"\")","v":{"$error":"#N/A"}},{"$f":"IF(INDIRECT(\"c\" & (VLOOKUP(Switch!$D$32,$F$2:$G$44,2,FALSE)+ROW()-2))=Switch!$D$32,INDIRECT(\"a\" & (VLOOKUP(Switch!$D$32,$F$2:$G$44,2,FALSE)+ROW()-2)),\"\")","v":{"$error":"#N/A"}},{"$f":"IF(INDIRECT(\"c\" & (VLOOKUP(Switch!$D$33,$F$2:$G$44,2,FALSE)+ROW()-2))=Switch!$D$33,INDIRECT(\"a\" & (VLOOKUP(Switch!$D$33,$F$2:$G$44,2,FALSE)+ROW()-2)),\"\")","v":{"$error":"#N/A"}},{"$f":"IF(INDIRECT(\"c\" & (VLOOKUP(Switch!$D$34,$F$2:$G$44,2,FALSE)+ROW()-2))=Switch!$D$34,INDIRECT(\"a\" & (VLOOKUP(Switch!$D$34,$F$2:$G$44,2,FALSE)+ROW()-2)),\"\")","v":{"$error":"#N/A"}},{"$f":"IF(INDIRECT(\"c\" & (VLOOKUP(Switch!$D$35,$F$2:$G$44,2,FALSE)+ROW()-2))=Switch!$D$35,INDIRECT(\"a\" & (VLOOKUP(Switch!$D$35,$F$2:$G$44,2,FALSE)+ROW()-2)),\"\")","v":{"$error":"#N/A"}},{"$f":"IF(INDIRECT(\"c\" & (VLOOKUP(Switch!$D$36,$F$2:$G$44,2,FALSE)+ROW()-2))=Switch!$D$36,INDIRECT(\"a\" & (VLOOKUP(Switch!$D$36,$F$2:$G$44,2,FALSE)+ROW()-2)),\"\")","v":{"$error":"#N/A"}},{"$f":"IF(INDIRECT(\"c\" & (VLOOKUP(Switch!$D$37,$F$2:$G$44,2,FALSE)+ROW()-2))=Switch!$D$37,INDIRECT(\"a\" & (VLOOKUP(Switch!$D$37,$F$2:$G$44,2,FALSE)+ROW()-2)),\"\")","v":{"$error":"#N/A"}},{"$f":"IF(INDIRECT(\"c\" & (VLOOKUP(Switch!$D$38,$F$2:$G$44,2,FALSE)+ROW()-2))=Switch!$D$38,INDIRECT(\"a\" & (VLOOKUP(Switch!$D$38,$F$2:$G$44,2,FALSE)+ROW()-2)),\"\")","v":{"$error":"#N/A"}},{"$f":"IF(INDIRECT(\"c\" & (VLOOKUP(Switch!$D$39,$F$2:$G$44,2,FALSE)+ROW()-2))=Switch!$D$39,INDIRECT(\"a\" & (VLOOKUP(Switch!$D$39,$F$2:$G$44,2,FALSE)+ROW()-2)),\"\")","v":{"$error":"#N/A"}},{"$f":"IF(INDIRECT(\"c\" & (VLOOKUP(Switch!$D$40,$F$2:$G$44,2,FALSE)+ROW()-2))=Switch!$D$40,INDIRECT(\"a\" & (VLOOKUP(Switch!$D$40,$F$2:$G$44,2,FALSE)+ROW()-2)),\"\")","v":{"$error":"#N/A"}},{"$f":"IF(INDIRECT(\"c\" & (VLOOKUP(Switch!$D$52,$F$2:$G$44,2,FALSE)+ROW()-2))=Switch!$D$52,INDIRECT(\"a\" & (VLOOKUP(Switch!$D$52,$F$2:$G$44,2,FALSE)+ROW()-2)),\"\")","v":{"$error":"#N/A"}},{"$f":"IF(INDIRECT(\"c\" & (VLOOKUP(Switch!$D$53,$F$2:$G$44,2,FALSE)+ROW()-2))=Switch!$D$53,INDIRECT(\"a\" & (VLOOKUP(Switch!$D$53,$F$2:$G$44,2,FALSE)+ROW()-2)),\"\")","v":{"$error":"#N/A"}},{"$f":"IF(INDIRECT(\"c\" & (VLOOKUP(Switch!$D$54,$F$2:$G$44,2,FALSE)+ROW()-2))=Switch!$D$54,INDIRECT(\"a\" & (VLOOKUP(Switch!$D$54,$F$2:$G$44,2,FALSE)+ROW()-2)),\"\")","v":{"$error":"#N/A"}},{"$f":"IF(INDIRECT(\"c\" & (VLOOKUP(Switch!$D$55,$F$2:$G$44,2,FALSE)+ROW()-2))=Switch!$D$55,INDIRECT(\"a\" & (VLOOKUP(Switch!$D$55,$F$2:$G$44,2,FALSE)+ROW()-2)),\"\")","v":{"$error":"#N/A"}},{"$f":"IF(INDIRECT(\"c\" & (VLOOKUP(Switch!$D$56,$F$2:$G$44,2,FALSE)+ROW()-2))=Switch!$D$56,INDIRECT(\"a\" & (VLOOKUP(Switch!$D$56,$F$2:$G$44,2,FALSE)+ROW()-2)),\"\")","v":{"$error":"#N/A"}},{"$f":"IF(INDIRECT(\"c\" & (VLOOKUP(Switch!$D$57,$F$2:$G$44,2,FALSE)+ROW()-2))=Switch!$D$57,INDIRECT(\"a\" & (VLOOKUP(Switch!$D$57,$F$2:$G$44,2,FALSE)+ROW()-2)),\"\")","v":{"$error":"#N/A"}},{"$f":"IF(INDIRECT(\"c\" & (VLOOKUP(Switch!$D$58,$F$2:$G$44,2,FALSE)+ROW()-2))=Switch!$D$58,INDIRECT(\"a\" & (VLOOKUP(Switch!$D$58,$F$2:$G$44,2,FALSE)+ROW()-2)),\"\")","v":{"$error":"#N/A"}},{"$f":"IF(INDIRECT(\"c\" & (VLOOKUP(Switch!$D$59,$F$2:$G$44,2,FALSE)+ROW()-2))=Switch!$D$59,INDIRECT(\"a\" & (VLOOKUP(Switch!$D$59,$F$2:$G$44,2,FALSE)+ROW()-2)),\"\")","v":{"$error":"#N/A"}},{"$f":"IF(INDIRECT(\"c\" & (VLOOKUP(Switch!$D$60,$F$2:$G$44,2,FALSE)+ROW()-2))=Switch!$D$60,INDIRECT(\"a\" & (VLOOKUP(Switch!$D$60,$F$2:$G$44,2,FALSE)+ROW()-2)),\"\")","v":{"$error":"#N/A"}},{"$f":"IF(INDIRECT(\"c\" & (VLOOKUP(Switch!$D$61,$F$2:$G$44,2,FALSE)+ROW()-2))=Switch!$D$61,INDIRECT(\"a\" & (VLOOKUP(Switch!$D$61,$F$2:$G$44,2,FALSE)+ROW()-2)),\"\")","v":{"$error":"#N/A"}},{"$f":"IF(INDIRECT(\"c\" & (VLOOKUP(Switch!$D$62,$F$2:$G$44,2,FALSE)+ROW()-2))=Switch!$D$62,INDIRECT(\"a\" & (VLOOKUP(Switch!$D$62,$F$2:$G$44,2,FALSE)+ROW()-2)),\"\")","v":{"$error":"#N/A"}},{"$f":"IF(INDIRECT(\"c\" & (VLOOKUP(Switch!$D$63,$F$2:$G$44,2,FALSE)+ROW()-2))=Switch!$D$63,INDIRECT(\"a\" & (VLOOKUP(Switch!$D$63,$F$2:$G$44,2,FALSE)+ROW()-2)),\"\")","v":{"$error":"#N/A"}},{"$f":"IF(INDIRECT(\"c\" & (VLOOKUP(Switch!$D$64,$F$2:$G$44,2,FALSE)+ROW()-2))=Switch!$D$64,INDIRECT(\"a\" & (VLOOKUP(Switch!$D$64,$F$2:$G$44,2,FALSE)+ROW()-2)),\"\")","v":{"$error":"#N/A"}},{"$f":"IF(INDIRECT(\"c\" & (VLOOKUP(Switch!$D$65,$F$2:$G$44,2,FALSE)+ROW()-2))=Switch!$D$65,INDIRECT(\"a\" & (VLOOKUP(Switch!$D$65,$F$2:$G$44,2,FALSE)+ROW()-2)),\"\")","v":{"$error":"#N/A"}},{"$f":"IF(INDIRECT(\"c\" & (VLOOKUP(Switch!$D$66,$F$2:$G$44,2,FALSE)+ROW()-2))=Switch!$D$66,INDIRECT(\"a\" & (VLOOKUP(Switch!$D$66,$F$2:$G$44,2,FALSE)+ROW()-2)),\"\")","v":{"$error":"#N/A"}}]
["STANLIB Multi-Manager Defensive Balanced Fund B1","SMDB1","STANLIB Collective Investments",{"$f":"ROW()","v":72},null,null,{"$f":"VLOOKUP(F72,$C$2:$D$637,2,FALSE)","v":{"$error":"#N/A"}},{"$f":"IF(INDIRECT(\"c\" & (VLOOKUP(Switch!$D$26,$F$2:$G$44,2,FALSE)+ROW()-2))=Switch!$D$26,INDIRECT(\"a\" & (VLOOKUP(Switch!$D$26,$F$2:$G$44,2,FALSE)+ROW()-2)),\"\")","v":{"$error":"#N/A"}},{"$f":"IF(INDIRECT(\"c\" & (VLOOKUP(Switch!$D$27,$F$2:$G$44,2,FALSE)+ROW()-2))=Switch!$D$27,INDIRECT(\"a\" & (VLOOKUP(Switch!$D$27,$F$2:$G$44,2,FALSE)+ROW()-2)),\"\")","v":{"$error":"#N/A"}},{"$f":"IF(INDIRECT(\"c\" & (VLOOKUP(Switch!$D$28,$F$2:$G$44,2,FALSE)+ROW()-2))=Switch!$D$28,INDIRECT(\"a\" & (VLOOKUP(Switch!$D$28,$F$2:$G$44,2,FALSE)+ROW()-2)),\"\")","v":{"$error":"#N/A"}},{"$f":"IF(INDIRECT(\"c\" & (VLOOKUP(Switch!$D$29,$F$2:$G$44,2,FALSE)+ROW()-2))=Switch!$D$29,INDIRECT(\"a\" & (VLOOKUP(Switch!$D$29,$F$2:$G$44,2,FALSE)+ROW()-2)),\"\")","v":{"$error":"#N/A"}},{"$f":"IF(INDIRECT(\"c\" & (VLOOKUP(Switch!$D$30,$F$2:$G$44,2,FALSE)+ROW()-2))=Switch!$D$30,INDIRECT(\"a\" & (VLOOKUP(Switch!$D$30,$F$2:$G$44,2,FALSE)+ROW()-2)),\"\")","v":{"$error":"#N/A"}},{"$f":"IF(INDIRECT(\"c\" & (VLOOKUP(Switch!$D$31,$F$2:$G$44,2,FALSE)+ROW()-2))=Switch!$D$31,INDIRECT(\"a\" & (VLOOKUP(Switch!$D$31,$F$2:$G$44,2,FALSE)+ROW()-2)),\"\")","v":{"$error":"#N/A"}},{"$f":"IF(INDIRECT(\"c\" & (VLOOKUP(Switch!$D$32,$F$2:$G$44,2,FALSE)+ROW()-2))=Switch!$D$32,INDIRECT(\"a\" & (VLOOKUP(Switch!$D$32,$F$2:$G$44,2,FALSE)+ROW()-2)),\"\")","v":{"$error":"#N/A"}},{"$f":"IF(INDIRECT(\"c\" & (VLOOKUP(Switch!$D$33,$F$2:$G$44,2,FALSE)+ROW()-2))=Switch!$D$33,INDIRECT(\"a\" & (VLOOKUP(Switch!$D$33,$F$2:$G$44,2,FALSE)+ROW()-2)),\"\")","v":{"$error":"#N/A"}},{"$f":"IF(INDIRECT(\"c\" & (VLOOKUP(Switch!$D$34,$F$2:$G$44,2,FALSE)+ROW()-2))=Switch!$D$34,INDIRECT(\"a\" & (VLOOKUP(Switch!$D$34,$F$2:$G$44,2,FALSE)+ROW()-2)),\"\")","v":{"$error":"#N/A"}},{"$f":"IF(INDIRECT(\"c\" & (VLOOKUP(Switch!$D$35,$F$2:$G$44,2,FALSE)+ROW()-2))=Switch!$D$35,INDIRECT(\"a\" & (VLOOKUP(Switch!$D$35,$F$2:$G$44,2,FALSE)+ROW()-2)),\"\")","v":{"$error":"#N/A"}},{"$f":"IF(INDIRECT(\"c\" & (VLOOKUP(Switch!$D$36,$F$2:$G$44,2,FALSE)+ROW()-2))=Switch!$D$36,INDIRECT(\"a\" & (VLOOKUP(Switch!$D$36,$F$2:$G$44,2,FALSE)+ROW()-2)),\"\")","v":{"$error":"#N/A"}},{"$f":"IF(INDIRECT(\"c\" & (VLOOKUP(Switch!$D$37,$F$2:$G$44,2,FALSE)+ROW()-2))=Switch!$D$37,INDIRECT(\"a\" & (VLOOKUP(Switch!$D$37,$F$2:$G$44,2,FALSE)+ROW()-2)),\"\")","v":{"$error":"#N/A"}},{"$f":"IF(INDIRECT(\"c\" & (VLOOKUP(Switch!$D$38,$F$2:$G$44,2,FALSE)+ROW()-2))=Switch!$D$38,INDIRECT(\"a\" & (VLOOKUP(Switch!$D$38,$F$2:$G$44,2,FALSE)+ROW()-2)),\"\")","v":{"$error":"#N/A"}},{"$f":"IF(INDIRECT(\"c\" & (VLOOKUP(Switch!$D$39,$F$2:$G$44,2,FALSE)+ROW()-2))=Switch!$D$39,INDIRECT(\"a\" & (VLOOKUP(Switch!$D$39,$F$2:$G$44,2,FALSE)+ROW()-2)),\"\")","v":{"$error":"#N/A"}},{"$f":"IF(INDIRECT(\"c\" & (VLOOKUP(Switch!$D$40,$F$2:$G$44,2,FALSE)+ROW()-2))=Switch!$D$40,INDIRECT(\"a\" & (VLOOKUP(Switch!$D$40,$F$2:$G$44,2,FALSE)+ROW()-2)),\"\")","v":{"$error":"#N/A"}},{"$f":"IF(INDIRECT(\"c\" & (VLOOKUP(Switch!$D$52,$F$2:$G$44,2,FALSE)+ROW()-2))=Switch!$D$52,INDIRECT(\"a\" & (VLOOKUP(Switch!$D$52,$F$2:$G$44,2,FALSE)+ROW()-2)),\"\")","v":{"$error":"#N/A"}},{"$f":"IF(INDIRECT(\"c\" & (VLOOKUP(Switch!$D$53,$F$2:$G$44,2,FALSE)+ROW()-2))=Switch!$D$53,INDIRECT(\"a\" & (VLOOKUP(Switch!$D$53,$F$2:$G$44,2,FALSE)+ROW()-2)),\"\")","v":{"$error":"#N/A"}},{"$f":"IF(INDIRECT(\"c\" & (VLOOKUP(Switch!$D$54,$F$2:$G$44,2,FALSE)+ROW()-2))=Switch!$D$54,INDIRECT(\"a\" & (VLOOKUP(Switch!$D$54,$F$2:$G$44,2,FALSE)+ROW()-2)),\"\")","v":{"$error":"#N/A"}},{"$f":"IF(INDIRECT(\"c\" & (VLOOKUP(Switch!$D$55,$F$2:$G$44,2,FALSE)+ROW()-2))=Switch!$D$55,INDIRECT(\"a\" & (VLOOKUP(Switch!$D$55,$F$2:$G$44,2,FALSE)+ROW()-2)),\"\")","v":{"$error":"#N/A"}},{"$f":"IF(INDIRECT(\"c\" & (VLOOKUP(Switch!$D$56,$F$2:$G$44,2,FALSE)+ROW()-2))=Switch!$D$56,INDIRECT(\"a\" & (VLOOKUP(Switch!$D$56,$F$2:$G$44,2,FALSE)+ROW()-2)),\"\")","v":{"$error":"#N/A"}},{"$f":"IF(INDIRECT(\"c\" & (VLOOKUP(Switch!$D$57,$F$2:$G$44,2,FALSE)+ROW()-2))=Switch!$D$57,INDIRECT(\"a\" & (VLOOKUP(Switch!$D$57,$F$2:$G$44,2,FALSE)+ROW()-2)),\"\")","v":{"$error":"#N/A"}},{"$f":"IF(INDIRECT(\"c\" & (VLOOKUP(Switch!$D$58,$F$2:$G$44,2,FALSE)+ROW()-2))=Switch!$D$58,INDIRECT(\"a\" & (VLOOKUP(Switch!$D$58,$F$2:$G$44,2,FALSE)+ROW()-2)),\"\")","v":{"$error":"#N/A"}},{"$f":"IF(INDIRECT(\"c\" & (VLOOKUP(Switch!$D$59,$F$2:$G$44,2,FALSE)+ROW()-2))=Switch!$D$59,INDIRECT(\"a\" & (VLOOKUP(Switch!$D$59,$F$2:$G$44,2,FALSE)+ROW()-2)),\"\")","v":{"$error":"#N/A"}},{"$f":"IF(INDIRECT(\"c\" & (VLOOKUP(Switch!$D$60,$F$2:$G$44,2,FALSE)+ROW()-2))=Switch!$D$60,INDIRECT(\"a\" & (VLOOKUP(Switch!$D$60,$F$2:$G$44,2,FALSE)+ROW()-2)),\"\")","v":{"$error":"#N/A"}},{"$f":"IF(INDIRECT(\"c\" & (VLOOKUP(Switch!$D$61,$F$2:$G$44,2,FALSE)+ROW()-2))=Switch!$D$61,INDIRECT(\"a\" & (VLOOKUP(Switch!$D$61,$F$2:$G$44,2,FALSE)+ROW()-2)),\"\")","v":{"$error":"#N/A"}},{"$f":"IF(INDIRECT(\"c\" & (VLOOKUP(Switch!$D$62,$F$2:$G$44,2,FALSE)+ROW()-2))=Switch!$D$62,INDIRECT(\"a\" & (VLOOKUP(Switch!$D$62,$F$2:$G$44,2,FALSE)+ROW()-2)),\"\")","v":{"$error":"#N/A"}},{"$f":"IF(INDIRECT(\"c\" & (VLOOKUP(Switch!$D$63,$F$2:$G$44,2,FALSE)+ROW()-2))=Switch!$D$63,INDIRECT(\"a\" & (VLOOKUP(Switch!$D$63,$F$2:$G$44,2,FALSE)+ROW()-2)),\"\")","v":{"$error":"#N/A"}},{"$f":"IF(INDIRECT(\"c\" & (VLOOKUP(Switch!$D$64,$F$2:$G$44,2,FALSE)+ROW()-2))=Switch!$D$64,INDIRECT(\"a\" & (VLOOKUP(Switch!$D$64,$F$2:$G$44,2,FALSE)+ROW()-2)),\"\")","v":{"$error":"#N/A"}},{"$f":"IF(INDIRECT(\"c\" & (VLOOKUP(Switch!$D$65,$F$2:$G$44,2,FALSE)+ROW()-2))=Switch!$D$65,INDIRECT(\"a\" & (VLOOKUP(Switch!$D$65,$F$2:$G$44,2,FALSE)+ROW()-2)),\"\")","v":{"$error":"#N/A"}},{"$f":"IF(INDIRECT(\"c\" & (VLOOKUP(Switch!$D$66,$F$2:$G$44,2,FALSE)+ROW()-2))=Switch!$D$66,INDIRECT(\"a\" & (VLOOKUP(Switch!$D$66,$F$2:$G$44,2,FALSE)+ROW()-2)),\"\")","v":{"$error":"#N/A"}}]
["STANLIB Multi-Manager High Equity FoF B1","SBIA","STANLIB Collective Investments",{"$f":"ROW()","v":73},null,null,{"$f":"VLOOKUP(F73,$C$2:$D$637,2,FALSE)","v":{"$error":"#N/A"}},{"$f":"IF(INDIRECT(\"c\" & (VLOOKUP(Switch!$D$26,$F$2:$G$44,2,FALSE)+ROW()-2))=Switch!$D$26,INDIRECT(\"a\" & (VLOOKUP(Switch!$D$26,$F$2:$G$44,2,FALSE)+ROW()-2)),\"\")","v":{"$error":"#N/A"}},{"$f":"IF(INDIRECT(\"c\" & (VLOOKUP(Switch!$D$27,$F$2:$G$44,2,FALSE)+ROW()-2))=Switch!$D$27,INDIRECT(\"a\" & (VLOOKUP(Switch!$D$27,$F$2:$G$44,2,FALSE)+ROW()-2)),\"\")","v":{"$error":"#N/A"}},{"$f":"IF(INDIRECT(\"c\" & (VLOOKUP(Switch!$D$28,$F$2:$G$44,2,FALSE)+ROW()-2))=Switch!$D$28,INDIRECT(\"a\" & (VLOOKUP(Switch!$D$28,$F$2:$G$44,2,FALSE)+ROW()-2)),\"\")","v":{"$error":"#N/A"}},{"$f":"IF(INDIRECT(\"c\" & (VLOOKUP(Switch!$D$29,$F$2:$G$44,2,FALSE)+ROW()-2))=Switch!$D$29,INDIRECT(\"a\" & (VLOOKUP(Switch!$D$29,$F$2:$G$44,2,FALSE)+ROW()-2)),\"\")","v":{"$error":"#N/A"}},{"$f":"IF(INDIRECT(\"c\" & (VLOOKUP(Switch!$D$30,$F$2:$G$44,2,FALSE)+ROW()-2))=Switch!$D$30,INDIRECT(\"a\" & (VLOOKUP(Switch!$D$30,$F$2:$G$44,2,FALSE)+ROW()-2)),\"\")","v":{"$error":"#N/A"}},{"$f":"IF(INDIRECT(\"c\" & (VLOOKUP(Switch!$D$31,$F$2:$G$44,2,FALSE)+ROW()-2))=Switch!$D$31,INDIRECT(\"a\" & (VLOOKUP(Switch!$D$31,$F$2:$G$44,2,FALSE)+ROW()-2)),\"\")","v":{"$error":"#N/A"}},{"$f":"IF(INDIRECT(\"c\" & (VLOOKUP(Switch!$D$32,$F$2:$G$44,2,FALSE)+ROW()-2))=Switch!$D$32,INDIRECT(\"a\" & (VLOOKUP(Switch!$D$32,$F$2:$G$44,2,FALSE)+ROW()-2)),\"\")","v":{"$error":"#N/A"}},{"$f":"IF(INDIRECT(\"c\" & (VLOOKUP(Switch!$D$33,$F$2:$G$44,2,FALSE)+ROW()-2))=Switch!$D$33,INDIRECT(\"a\" & (VLOOKUP(Switch!$D$33,$F$2:$G$44,2,FALSE)+ROW()-2)),\"\")","v":{"$error":"#N/A"}},{"$f":"IF(INDIRECT(\"c\" & (VLOOKUP(Switch!$D$34,$F$2:$G$44,2,FALSE)+ROW()-2))=Switch!$D$34,INDIRECT(\"a\" & (VLOOKUP(Switch!$D$34,$F$2:$G$44,2,FALSE)+ROW()-2)),\"\")","v":{"$error":"#N/A"}},{"$f":"IF(INDIRECT(\"c\" & (VLOOKUP(Switch!$D$35,$F$2:$G$44,2,FALSE)+ROW()-2))=Switch!$D$35,INDIRECT(\"a\" & (VLOOKUP(Switch!$D$35,$F$2:$G$44,2,FALSE)+ROW()-2)),\"\")","v":{"$error":"#N/A"}},{"$f":"IF(INDIRECT(\"c\" & (VLOOKUP(Switch!$D$36,$F$2:$G$44,2,FALSE)+ROW()-2))=Switch!$D$36,INDIRECT(\"a\" & (VLOOKUP(Switch!$D$36,$F$2:$G$44,2,FALSE)+ROW()-2)),\"\")","v":{"$error":"#N/A"}},{"$f":"IF(INDIRECT(\"c\" & (VLOOKUP(Switch!$D$37,$F$2:$G$44,2,FALSE)+ROW()-2))=Switch!$D$37,INDIRECT(\"a\" & (VLOOKUP(Switch!$D$37,$F$2:$G$44,2,FALSE)+ROW()-2)),\"\")","v":{"$error":"#N/A"}},{"$f":"IF(INDIRECT(\"c\" & (VLOOKUP(Switch!$D$38,$F$2:$G$44,2,FALSE)+ROW()-2))=Switch!$D$38,INDIRECT(\"a\" & (VLOOKUP(Switch!$D$38,$F$2:$G$44,2,FALSE)+ROW()-2)),\"\")","v":{"$error":"#N/A"}},{"$f":"IF(INDIRECT(\"c\" & (VLOOKUP(Switch!$D$39,$F$2:$G$44,2,FALSE)+ROW()-2))=Switch!$D$39,INDIRECT(\"a\" & (VLOOKUP(Switch!$D$39,$F$2:$G$44,2,FALSE)+ROW()-2)),\"\")","v":{"$error":"#N/A"}},{"$f":"IF(INDIRECT(\"c\" & (VLOOKUP(Switch!$D$40,$F$2:$G$44,2,FALSE)+ROW()-2))=Switch!$D$40,INDIRECT(\"a\" & (VLOOKUP(Switch!$D$40,$F$2:$G$44,2,FALSE)+ROW()-2)),\"\")","v":{"$error":"#N/A"}},{"$f":"IF(INDIRECT(\"c\" & (VLOOKUP(Switch!$D$52,$F$2:$G$44,2,FALSE)+ROW()-2))=Switch!$D$52,INDIRECT(\"a\" & (VLOOKUP(Switch!$D$52,$F$2:$G$44,2,FALSE)+ROW()-2)),\"\")","v":{"$error":"#N/A"}},{"$f":"IF(INDIRECT(\"c\" & (VLOOKUP(Switch!$D$53,$F$2:$G$44,2,FALSE)+ROW()-2))=Switch!$D$53,INDIRECT(\"a\" & (VLOOKUP(Switch!$D$53,$F$2:$G$44,2,FALSE)+ROW()-2)),\"\")","v":{"$error":"#N/A"}},{"$f":"IF(INDIRECT(\"c\" & (VLOOKUP(Switch!$D$54,$F$2:$G$44,2,FALSE)+ROW()-2))=Switch!$D$54,INDIRECT(\"a\" & (VLOOKUP(Switch!$D$54,$F$2:$G$44,2,FALSE)+ROW()-2)),\"\")","v":{"$error":"#N/A"}},{"$f":"IF(INDIRECT(\"c\" & (VLOOKUP(Switch!$D$55,$F$2:$G$44,2,FALSE)+ROW()-2))=Switch!$D$55,INDIRECT(\"a\" & (VLOOKUP(Switch!$D$55,$F$2:$G$44,2,FALSE)+ROW()-2)),\"\")","v":{"$error":"#N/A"}},{"$f":"IF(INDIRECT(\"c\" & (VLOOKUP(Switch!$D$56,$F$2:$G$44,2,FALSE)+ROW()-2))=Switch!$D$56,INDIRECT(\"a\" & (VLOOKUP(Switch!$D$56,$F$2:$G$44,2,FALSE)+ROW()-2)),\"\")","v":{"$error":"#N/A"}},{"$f":"IF(INDIRECT(\"c\" & (VLOOKUP(Switch!$D$57,$F$2:$G$44,2,FALSE)+ROW()-2))=Switch!$D$57,INDIRECT(\"a\" & (VLOOKUP(Switch!$D$57,$F$2:$G$44,2,FALSE)+ROW()-2)),\"\")","v":{"$error":"#N/A"}},{"$f":"IF(INDIRECT(\"c\" & (VLOOKUP(Switch!$D$58,$F$2:$G$44,2,FALSE)+ROW()-2))=Switch!$D$58,INDIRECT(\"a\" & (VLOOKUP(Switch!$D$58,$F$2:$G$44,2,FALSE)+ROW()-2)),\"\")","v":{"$error":"#N/A"}},{"$f":"IF(INDIRECT(\"c\" & (VLOOKUP(Switch!$D$59,$F$2:$G$44,2,FALSE)+ROW()-2))=Switch!$D$59,INDIRECT(\"a\" & (VLOOKUP(Switch!$D$59,$F$2:$G$44,2,FALSE)+ROW()-2)),\"\")","v":{"$error":"#N/A"}},{"$f":"IF(INDIRECT(\"c\" & (VLOOKUP(Switch!$D$60,$F$2:$G$44,2,FALSE)+ROW()-2))=Switch!$D$60,INDIRECT(\"a\" & (VLOOKUP(Switch!$D$60,$F$2:$G$44,2,FALSE)+ROW()-2)),\"\")","v":{"$error":"#N/A"}},{"$f":"IF(INDIRECT(\"c\" & (VLOOKUP(Switch!$D$61,$F$2:$G$44,2,FALSE)+ROW()-2))=Switch!$D$61,INDIRECT(\"a\" & (VLOOKUP(Switch!$D$61,$F$2:$G$44,2,FALSE)+ROW()-2)),\"\")","v":{"$error":"#N/A"}},{"$f":"IF(INDIRECT(\"c\" & (VLOOKUP(Switch!$D$62,$F$2:$G$44,2,FALSE)+ROW()-2))=Switch!$D$62,INDIRECT(\"a\" & (VLOOKUP(Switch!$D$62,$F$2:$G$44,2,FALSE)+ROW()-2)),\"\")","v":{"$error":"#N/A"}},{"$f":"IF(INDIRECT(\"c\" & (VLOOKUP(Switch!$D$63,$F$2:$G$44,2,FALSE)+ROW()-2))=Switch!$D$63,INDIRECT(\"a\" & (VLOOKUP(Switch!$D$63,$F$2:$G$44,2,FALSE)+ROW()-2)),\"\")","v":{"$error":"#N/A"}},{"$f":"IF(INDIRECT(\"c\" & (VLOOKUP(Switch!$D$64,$F$2:$G$44,2,FALSE)+ROW()-2))=Switch!$D$64,INDIRECT(\"a\" & (VLOOKUP(Switch!$D$64,$F$2:$G$44,2,FALSE)+ROW()-2)),\"\")","v":{"$error":"#N/A"}},{"$f":"IF(INDIRECT(\"c\" & (VLOOKUP(Switch!$D$65,$F$2:$G$44,2,FALSE)+ROW()-2))=Switch!$D$65,INDIRECT(\"a\" & (VLOOKUP(Switch!$D$65,$F$2:$G$44,2,FALSE)+ROW()-2)),\"\")","v":{"$error":"#N/A"}},{"$f":"IF(INDIRECT(\"c\" & (VLOOKUP(Switch!$D$66,$F$2:$G$44,2,FALSE)+ROW()-2))=Switch!$D$66,INDIRECT(\"a\" & (VLOOKUP(Switch!$D$66,$F$2:$G$44,2,FALSE)+ROW()-2)),\"\")","v":{"$error":"#N/A"}}]
["STANLIB Multi-Manager Medium-High Equity FoF B1","SBMF","STANLIB Collective Investments",{"$f":"ROW()","v":74},null,null,{"$f":"VLOOKUP(F74,$C$2:$D$637,2,FALSE)","v":{"$error":"#N/A"}},{"$f":"IF(INDIRECT(\"c\" & (VLOOKUP(Switch!$D$26,$F$2:$G$44,2,FALSE)+ROW()-2))=Switch!$D$26,INDIRECT(\"a\" & (VLOOKUP(Switch!$D$26,$F$2:$G$44,2,FALSE)+ROW()-2)),\"\")","v":{"$error":"#N/A"}},{"$f":"IF(INDIRECT(\"c\" & (VLOOKUP(Switch!$D$27,$F$2:$G$44,2,FALSE)+ROW()-2))=Switch!$D$27,INDIRECT(\"a\" & (VLOOKUP(Switch!$D$27,$F$2:$G$44,2,FALSE)+ROW()-2)),\"\")","v":{"$error":"#N/A"}},{"$f":"IF(INDIRECT(\"c\" & (VLOOKUP(Switch!$D$28,$F$2:$G$44,2,FALSE)+ROW()-2))=Switch!$D$28,INDIRECT(\"a\" & (VLOOKUP(Switch!$D$28,$F$2:$G$44,2,FALSE)+ROW()-2)),\"\")","v":{"$error":"#N/A"}},{"$f":"IF(INDIRECT(\"c\" & (VLOOKUP(Switch!$D$29,$F$2:$G$44,2,FALSE)+ROW()-2))=Switch!$D$29,INDIRECT(\"a\" & (VLOOKUP(Switch!$D$29,$F$2:$G$44,2,FALSE)+ROW()-2)),\"\")","v":{"$error":"#N/A"}},{"$f":"IF(INDIRECT(\"c\" & (VLOOKUP(Switch!$D$30,$F$2:$G$44,2,FALSE)+ROW()-2))=Switch!$D$30,INDIRECT(\"a\" & (VLOOKUP(Switch!$D$30,$F$2:$G$44,2,FALSE)+ROW()-2)),\"\")","v":{"$error":"#N/A"}},{"$f":"IF(INDIRECT(\"c\" & (VLOOKUP(Switch!$D$31,$F$2:$G$44,2,FALSE)+ROW()-2))=Switch!$D$31,INDIRECT(\"a\" & (VLOOKUP(Switch!$D$31,$F$2:$G$44,2,FALSE)+ROW()-2)),\"\")","v":{"$error":"#N/A"}},{"$f":"IF(INDIRECT(\"c\" & (VLOOKUP(Switch!$D$32,$F$2:$G$44,2,FALSE)+ROW()-2))=Switch!$D$32,INDIRECT(\"a\" & (VLOOKUP(Switch!$D$32,$F$2:$G$44,2,FALSE)+ROW()-2)),\"\")","v":{"$error":"#N/A"}},{"$f":"IF(INDIRECT(\"c\" & (VLOOKUP(Switch!$D$33,$F$2:$G$44,2,FALSE)+ROW()-2))=Switch!$D$33,INDIRECT(\"a\" & (VLOOKUP(Switch!$D$33,$F$2:$G$44,2,FALSE)+ROW()-2)),\"\")","v":{"$error":"#N/A"}},{"$f":"IF(INDIRECT(\"c\" & (VLOOKUP(Switch!$D$34,$F$2:$G$44,2,FALSE)+ROW()-2))=Switch!$D$34,INDIRECT(\"a\" & (VLOOKUP(Switch!$D$34,$F$2:$G$44,2,FALSE)+ROW()-2)),\"\")","v":{"$error":"#N/A"}},{"$f":"IF(INDIRECT(\"c\" & (VLOOKUP(Switch!$D$35,$F$2:$G$44,2,FALSE)+ROW()-2))=Switch!$D$35,INDIRECT(\"a\" & (VLOOKUP(Switch!$D$35,$F$2:$G$44,2,FALSE)+ROW()-2)),\"\")","v":{"$error":"#N/A"}},{"$f":"IF(INDIRECT(\"c\" & (VLOOKUP(Switch!$D$36,$F$2:$G$44,2,FALSE)+ROW()-2))=Switch!$D$36,INDIRECT(\"a\" & (VLOOKUP(Switch!$D$36,$F$2:$G$44,2,FALSE)+ROW()-2)),\"\")","v":{"$error":"#N/A"}},{"$f":"IF(INDIRECT(\"c\" & (VLOOKUP(Switch!$D$37,$F$2:$G$44,2,FALSE)+ROW()-2))=Switch!$D$37,INDIRECT(\"a\" & (VLOOKUP(Switch!$D$37,$F$2:$G$44,2,FALSE)+ROW()-2)),\"\")","v":{"$error":"#N/A"}},{"$f":"IF(INDIRECT(\"c\" & (VLOOKUP(Switch!$D$38,$F$2:$G$44,2,FALSE)+ROW()-2))=Switch!$D$38,INDIRECT(\"a\" & (VLOOKUP(Switch!$D$38,$F$2:$G$44,2,FALSE)+ROW()-2)),\"\")","v":{"$error":"#N/A"}},{"$f":"IF(INDIRECT(\"c\" & (VLOOKUP(Switch!$D$39,$F$2:$G$44,2,FALSE)+ROW()-2))=Switch!$D$39,INDIRECT(\"a\" & (VLOOKUP(Switch!$D$39,$F$2:$G$44,2,FALSE)+ROW()-2)),\"\")","v":{"$error":"#N/A"}},{"$f":"IF(INDIRECT(\"c\" & (VLOOKUP(Switch!$D$40,$F$2:$G$44,2,FALSE)+ROW()-2))=Switch!$D$40,INDIRECT(\"a\" & (VLOOKUP(Switch!$D$40,$F$2:$G$44,2,FALSE)+ROW()-2)),\"\")","v":{"$error":"#N/A"}},{"$f":"IF(INDIRECT(\"c\" & (VLOOKUP(Switch!$D$52,$F$2:$G$44,2,FALSE)+ROW()-2))=Switch!$D$52,INDIRECT(\"a\" & (VLOOKUP(Switch!$D$52,$F$2:$G$44,2,FALSE)+ROW()-2)),\"\")","v":{"$error":"#N/A"}},{"$f":"IF(INDIRECT(\"c\" & (VLOOKUP(Switch!$D$53,$F$2:$G$44,2,FALSE)+ROW()-2))=Switch!$D$53,INDIRECT(\"a\" & (VLOOKUP(Switch!$D$53,$F$2:$G$44,2,FALSE)+ROW()-2)),\"\")","v":{"$error":"#N/A"}},{"$f":"IF(INDIRECT(\"c\" & (VLOOKUP(Switch!$D$54,$F$2:$G$44,2,FALSE)+ROW()-2))=Switch!$D$54,INDIRECT(\"a\" & (VLOOKUP(Switch!$D$54,$F$2:$G$44,2,FALSE)+ROW()-2)),\"\")","v":{"$error":"#N/A"}},{"$f":"IF(INDIRECT(\"c\" & (VLOOKUP(Switch!$D$55,$F$2:$G$44,2,FALSE)+ROW()-2))=Switch!$D$55,INDIRECT(\"a\" & (VLOOKUP(Switch!$D$55,$F$2:$G$44,2,FALSE)+ROW()-2)),\"\")","v":{"$error":"#N/A"}},{"$f":"IF(INDIRECT(\"c\" & (VLOOKUP(Switch!$D$56,$F$2:$G$44,2,FALSE)+ROW()-2))=Switch!$D$56,INDIRECT(\"a\" & (VLOOKUP(Switch!$D$56,$F$2:$G$44,2,FALSE)+ROW()-2)),\"\")","v":{"$error":"#N/A"}},{"$f":"IF(INDIRECT(\"c\" & (VLOOKUP(Switch!$D$57,$F$2:$G$44,2,FALSE)+ROW()-2))=Switch!$D$57,INDIRECT(\"a\" & (VLOOKUP(Switch!$D$57,$F$2:$G$44,2,FALSE)+ROW()-2)),\"\")","v":{"$error":"#N/A"}},{"$f":"IF(INDIRECT(\"c\" & (VLOOKUP(Switch!$D$58,$F$2:$G$44,2,FALSE)+ROW()-2))=Switch!$D$58,INDIRECT(\"a\" & (VLOOKUP(Switch!$D$58,$F$2:$G$44,2,FALSE)+ROW()-2)),\"\")","v":{"$error":"#N/A"}},{"$f":"IF(INDIRECT(\"c\" & (VLOOKUP(Switch!$D$59,$F$2:$G$44,2,FALSE)+ROW()-2))=Switch!$D$59,INDIRECT(\"a\" & (VLOOKUP(Switch!$D$59,$F$2:$G$44,2,FALSE)+ROW()-2)),\"\")","v":{"$error":"#N/A"}},{"$f":"IF(INDIRECT(\"c\" & (VLOOKUP(Switch!$D$60,$F$2:$G$44,2,FALSE)+ROW()-2))=Switch!$D$60,INDIRECT(\"a\" & (VLOOKUP(Switch!$D$60,$F$2:$G$44,2,FALSE)+ROW()-2)),\"\")","v":{"$error":"#N/A"}},{"$f":"IF(INDIRECT(\"c\" & (VLOOKUP(Switch!$D$61,$F$2:$G$44,2,FALSE)+ROW()-2))=Switch!$D$61,INDIRECT(\"a\" & (VLOOKUP(Switch!$D$61,$F$2:$G$44,2,FALSE)+ROW()-2)),\"\")","v":{"$error":"#N/A"}},{"$f":"IF(INDIRECT(\"c\" & (VLOOKUP(Switch!$D$62,$F$2:$G$44,2,FALSE)+ROW()-2))=Switch!$D$62,INDIRECT(\"a\" & (VLOOKUP(Switch!$D$62,$F$2:$G$44,2,FALSE)+ROW()-2)),\"\")","v":{"$error":"#N/A"}},{"$f":"IF(INDIRECT(\"c\" & (VLOOKUP(Switch!$D$63,$F$2:$G$44,2,FALSE)+ROW()-2))=Switch!$D$63,INDIRECT(\"a\" & (VLOOKUP(Switch!$D$63,$F$2:$G$44,2,FALSE)+ROW()-2)),\"\")","v":{"$error":"#N/A"}},{"$f":"IF(INDIRECT(\"c\" & (VLOOKUP(Switch!$D$64,$F$2:$G$44,2,FALSE)+ROW()-2))=Switch!$D$64,INDIRECT(\"a\" & (VLOOKUP(Switch!$D$64,$F$2:$G$44,2,FALSE)+ROW()-2)),\"\")","v":{"$error":"#N/A"}},{"$f":"IF(INDIRECT(\"c\" & (VLOOKUP(Switch!$D$65,$F$2:$G$44,2,FALSE)+ROW()-2))=Switch!$D$65,INDIRECT(\"a\" & (VLOOKUP(Switch!$D$65,$F$2:$G$44,2,FALSE)+ROW()-2)),\"\")","v":{"$error":"#N/A"}},{"$f":"IF(INDIRECT(\"c\" & (VLOOKUP(Switch!$D$66,$F$2:$G$44,2,FALSE)+ROW()-2))=Switch!$D$66,INDIRECT(\"a\" & (VLOOKUP(Switch!$D$66,$F$2:$G$44,2,FALSE)+ROW()-2)),\"\")","v":{"$error":"#N/A"}}]
["STANLIB Multi-Manager Shari'ah Balanced Fund of Funds B1","STSB4","STANLIB Collective Investments",{"$f":"ROW()","v":75},null,null,{"$f":"VLOOKUP(F75,$C$2:$D$637,2,FALSE)","v":{"$error":"#N/A"}},{"$f":"IF(INDIRECT(\"c\" & (VLOOKUP(Switch!$D$26,$F$2:$G$44,2,FALSE)+ROW()-2))=Switch!$D$26,INDIRECT(\"a\" & (VLOOKUP(Switch!$D$26,$F$2:$G$44,2,FALSE)+ROW()-2)),\"\")","v":{"$error":"#N/A"}},{"$f":"IF(INDIRECT(\"c\" & (VLOOKUP(Switch!$D$27,$F$2:$G$44,2,FALSE)+ROW()-2))=Switch!$D$27,INDIRECT(\"a\" & (VLOOKUP(Switch!$D$27,$F$2:$G$44,2,FALSE)+ROW()-2)),\"\")","v":{"$error":"#N/A"}},{"$f":"IF(INDIRECT(\"c\" & (VLOOKUP(Switch!$D$28,$F$2:$G$44,2,FALSE)+ROW()-2))=Switch!$D$28,INDIRECT(\"a\" & (VLOOKUP(Switch!$D$28,$F$2:$G$44,2,FALSE)+ROW()-2)),\"\")","v":{"$error":"#N/A"}},{"$f":"IF(INDIRECT(\"c\" & (VLOOKUP(Switch!$D$29,$F$2:$G$44,2,FALSE)+ROW()-2))=Switch!$D$29,INDIRECT(\"a\" & (VLOOKUP(Switch!$D$29,$F$2:$G$44,2,FALSE)+ROW()-2)),\"\")","v":{"$error":"#N/A"}},{"$f":"IF(INDIRECT(\"c\" & (VLOOKUP(Switch!$D$30,$F$2:$G$44,2,FALSE)+ROW()-2))=Switch!$D$30,INDIRECT(\"a\" & (VLOOKUP(Switch!$D$30,$F$2:$G$44,2,FALSE)+ROW()-2)),\"\")","v":{"$error":"#N/A"}},{"$f":"IF(INDIRECT(\"c\" & (VLOOKUP(Switch!$D$31,$F$2:$G$44,2,FALSE)+ROW()-2))=Switch!$D$31,INDIRECT(\"a\" & (VLOOKUP(Switch!$D$31,$F$2:$G$44,2,FALSE)+ROW()-2)),\"\")","v":{"$error":"#N/A"}},{"$f":"IF(INDIRECT(\"c\" & (VLOOKUP(Switch!$D$32,$F$2:$G$44,2,FALSE)+ROW()-2))=Switch!$D$32,INDIRECT(\"a\" & (VLOOKUP(Switch!$D$32,$F$2:$G$44,2,FALSE)+ROW()-2)),\"\")","v":{"$error":"#N/A"}},{"$f":"IF(INDIRECT(\"c\" & (VLOOKUP(Switch!$D$33,$F$2:$G$44,2,FALSE)+ROW()-2))=Switch!$D$33,INDIRECT(\"a\" & (VLOOKUP(Switch!$D$33,$F$2:$G$44,2,FALSE)+ROW()-2)),\"\")","v":{"$error":"#N/A"}},{"$f":"IF(INDIRECT(\"c\" & (VLOOKUP(Switch!$D$34,$F$2:$G$44,2,FALSE)+ROW()-2))=Switch!$D$34,INDIRECT(\"a\" & (VLOOKUP(Switch!$D$34,$F$2:$G$44,2,FALSE)+ROW()-2)),\"\")","v":{"$error":"#N/A"}},{"$f":"IF(INDIRECT(\"c\" & (VLOOKUP(Switch!$D$35,$F$2:$G$44,2,FALSE)+ROW()-2))=Switch!$D$35,INDIRECT(\"a\" & (VLOOKUP(Switch!$D$35,$F$2:$G$44,2,FALSE)+ROW()-2)),\"\")","v":{"$error":"#N/A"}},{"$f":"IF(INDIRECT(\"c\" & (VLOOKUP(Switch!$D$36,$F$2:$G$44,2,FALSE)+ROW()-2))=Switch!$D$36,INDIRECT(\"a\" & (VLOOKUP(Switch!$D$36,$F$2:$G$44,2,FALSE)+ROW()-2)),\"\")","v":{"$error":"#N/A"}},{"$f":"IF(INDIRECT(\"c\" & (VLOOKUP(Switch!$D$37,$F$2:$G$44,2,FALSE)+ROW()-2))=Switch!$D$37,INDIRECT(\"a\" & (VLOOKUP(Switch!$D$37,$F$2:$G$44,2,FALSE)+ROW()-2)),\"\")","v":{"$error":"#N/A"}},{"$f":"IF(INDIRECT(\"c\" & (VLOOKUP(Switch!$D$38,$F$2:$G$44,2,FALSE)+ROW()-2))=Switch!$D$38,INDIRECT(\"a\" & (VLOOKUP(Switch!$D$38,$F$2:$G$44,2,FALSE)+ROW()-2)),\"\")","v":{"$error":"#N/A"}},{"$f":"IF(INDIRECT(\"c\" & (VLOOKUP(Switch!$D$39,$F$2:$G$44,2,FALSE)+ROW()-2))=Switch!$D$39,INDIRECT(\"a\" & (VLOOKUP(Switch!$D$39,$F$2:$G$44,2,FALSE)+ROW()-2)),\"\")","v":{"$error":"#N/A"}},{"$f":"IF(INDIRECT(\"c\" & (VLOOKUP(Switch!$D$40,$F$2:$G$44,2,FALSE)+ROW()-2))=Switch!$D$40,INDIRECT(\"a\" & (VLOOKUP(Switch!$D$40,$F$2:$G$44,2,FALSE)+ROW()-2)),\"\")","v":{"$error":"#N/A"}},{"$f":"IF(INDIRECT(\"c\" & (VLOOKUP(Switch!$D$52,$F$2:$G$44,2,FALSE)+ROW()-2))=Switch!$D$52,INDIRECT(\"a\" & (VLOOKUP(Switch!$D$52,$F$2:$G$44,2,FALSE)+ROW()-2)),\"\")","v":{"$error":"#N/A"}},{"$f":"IF(INDIRECT(\"c\" & (VLOOKUP(Switch!$D$53,$F$2:$G$44,2,FALSE)+ROW()-2))=Switch!$D$53,INDIRECT(\"a\" & (VLOOKUP(Switch!$D$53,$F$2:$G$44,2,FALSE)+ROW()-2)),\"\")","v":{"$error":"#N/A"}},{"$f":"IF(INDIRECT(\"c\" & (VLOOKUP(Switch!$D$54,$F$2:$G$44,2,FALSE)+ROW()-2))=Switch!$D$54,INDIRECT(\"a\" & (VLOOKUP(Switch!$D$54,$F$2:$G$44,2,FALSE)+ROW()-2)),\"\")","v":{"$error":"#N/A"}},{"$f":"IF(INDIRECT(\"c\" & (VLOOKUP(Switch!$D$55,$F$2:$G$44,2,FALSE)+ROW()-2))=Switch!$D$55,INDIRECT(\"a\" & (VLOOKUP(Switch!$D$55,$F$2:$G$44,2,FALSE)+ROW()-2)),\"\")","v":{"$error":"#N/A"}},{"$f":"IF(INDIRECT(\"c\" & (VLOOKUP(Switch!$D$56,$F$2:$G$44,2,FALSE)+ROW()-2))=Switch!$D$56,INDIRECT(\"a\" & (VLOOKUP(Switch!$D$56,$F$2:$G$44,2,FALSE)+ROW()-2)),\"\")","v":{"$error":"#N/A"}},{"$f":"IF(INDIRECT(\"c\" & (VLOOKUP(Switch!$D$57,$F$2:$G$44,2,FALSE)+ROW()-2))=Switch!$D$57,INDIRECT(\"a\" & (VLOOKUP(Switch!$D$57,$F$2:$G$44,2,FALSE)+ROW()-2)),\"\")","v":{"$error":"#N/A"}},{"$f":"IF(INDIRECT(\"c\" & (VLOOKUP(Switch!$D$58,$F$2:$G$44,2,FALSE)+ROW()-2))=Switch!$D$58,INDIRECT(\"a\" & (VLOOKUP(Switch!$D$58,$F$2:$G$44,2,FALSE)+ROW()-2)),\"\")","v":{"$error":"#N/A"}},{"$f":"IF(INDIRECT(\"c\" & (VLOOKUP(Switch!$D$59,$F$2:$G$44,2,FALSE)+ROW()-2))=Switch!$D$59,INDIRECT(\"a\" & (VLOOKUP(Switch!$D$59,$F$2:$G$44,2,FALSE)+ROW()-2)),\"\")","v":{"$error":"#N/A"}},{"$f":"IF(INDIRECT(\"c\" & (VLOOKUP(Switch!$D$60,$F$2:$G$44,2,FALSE)+ROW()-2))=Switch!$D$60,INDIRECT(\"a\" & (VLOOKUP(Switch!$D$60,$F$2:$G$44,2,FALSE)+ROW()-2)),\"\")","v":{"$error":"#N/A"}},{"$f":"IF(INDIRECT(\"c\" & (VLOOKUP(Switch!$D$61,$F$2:$G$44,2,FALSE)+ROW()-2))=Switch!$D$61,INDIRECT(\"a\" & (VLOOKUP(Switch!$D$61,$F$2:$G$44,2,FALSE)+ROW()-2)),\"\")","v":{"$error":"#N/A"}},{"$f":"IF(INDIRECT(\"c\" & (VLOOKUP(Switch!$D$62,$F$2:$G$44,2,FALSE)+ROW()-2))=Switch!$D$62,INDIRECT(\"a\" & (VLOOKUP(Switch!$D$62,$F$2:$G$44,2,FALSE)+ROW()-2)),\"\")","v":{"$error":"#N/A"}},{"$f":"IF(INDIRECT(\"c\" & (VLOOKUP(Switch!$D$63,$F$2:$G$44,2,FALSE)+ROW()-2))=Switch!$D$63,INDIRECT(\"a\" & (VLOOKUP(Switch!$D$63,$F$2:$G$44,2,FALSE)+ROW()-2)),\"\")","v":{"$error":"#N/A"}},{"$f":"IF(INDIRECT(\"c\" & (VLOOKUP(Switch!$D$64,$F$2:$G$44,2,FALSE)+ROW()-2))=Switch!$D$64,INDIRECT(\"a\" & (VLOOKUP(Switch!$D$64,$F$2:$G$44,2,FALSE)+ROW()-2)),\"\")","v":{"$error":"#N/A"}},{"$f":"IF(INDIRECT(\"c\" & (VLOOKUP(Switch!$D$65,$F$2:$G$44,2,FALSE)+ROW()-2))=Switch!$D$65,INDIRECT(\"a\" & (VLOOKUP(Switch!$D$65,$F$2:$G$44,2,FALSE)+ROW()-2)),\"\")","v":{"$error":"#N/A"}},{"$f":"IF(INDIRECT(\"c\" & (VLOOKUP(Switch!$D$66,$F$2:$G$44,2,FALSE)+ROW()-2))=Switch!$D$66,INDIRECT(\"a\" & (VLOOKUP(Switch!$D$66,$F$2:$G$44,2,FALSE)+ROW()-2)),\"\")","v":{"$error":"#N/A"}}]
["STANLIB Property Income Fund  A","STPI","STANLIB Collective Investments",{"$f":"ROW()","v":76},null,null,{"$f":"VLOOKUP(F76,$C$2:$D$637,2,FALSE)","v":{"$error":"#N/A"}},{"$f":"IF(INDIRECT(\"c\" & (VLOOKUP(Switch!$D$26,$F$2:$G$44,2,FALSE)+ROW()-2))=Switch!$D$26,INDIRECT(\"a\" & (VLOOKUP(Switch!$D$26,$F$2:$G$44,2,FALSE)+ROW()-2)),\"\")","v":{"$error":"#N/A"}},{"$f":"IF(INDIRECT(\"c\" & (VLOOKUP(Switch!$D$27,$F$2:$G$44,2,FALSE)+ROW()-2))=Switch!$D$27,INDIRECT(\"a\" & (VLOOKUP(Switch!$D$27,$F$2:$G$44,2,FALSE)+ROW()-2)),\"\")","v":{"$error":"#N/A"}},{"$f":"IF(INDIRECT(\"c\" & (VLOOKUP(Switch!$D$28,$F$2:$G$44,2,FALSE)+ROW()-2))=Switch!$D$28,INDIRECT(\"a\" & (VLOOKUP(Switch!$D$28,$F$2:$G$44,2,FALSE)+ROW()-2)),\"\")","v":{"$error":"#N/A"}},{"$f":"IF(INDIRECT(\"c\" & (VLOOKUP(Switch!$D$29,$F$2:$G$44,2,FALSE)+ROW()-2))=Switch!$D$29,INDIRECT(\"a\" & (VLOOKUP(Switch!$D$29,$F$2:$G$44,2,FALSE)+ROW()-2)),\"\")","v":{"$error":"#N/A"}},{"$f":"IF(INDIRECT(\"c\" & (VLOOKUP(Switch!$D$30,$F$2:$G$44,2,FALSE)+ROW()-2))=Switch!$D$30,INDIRECT(\"a\" & (VLOOKUP(Switch!$D$30,$F$2:$G$44,2,FALSE)+ROW()-2)),\"\")","v":{"$error":"#N/A"}},{"$f":"IF(INDIRECT(\"c\" & (VLOOKUP(Switch!$D$31,$F$2:$G$44,2,FALSE)+ROW()-2))=Switch!$D$31,INDIRECT(\"a\" & (VLOOKUP(Switch!$D$31,$F$2:$G$44,2,FALSE)+ROW()-2)),\"\")","v":{"$error":"#N/A"}},{"$f":"IF(INDIRECT(\"c\" & (VLOOKUP(Switch!$D$32,$F$2:$G$44,2,FALSE)+ROW()-2))=Switch!$D$32,INDIRECT(\"a\" & (VLOOKUP(Switch!$D$32,$F$2:$G$44,2,FALSE)+ROW()-2)),\"\")","v":{"$error":"#N/A"}},{"$f":"IF(INDIRECT(\"c\" & (VLOOKUP(Switch!$D$33,$F$2:$G$44,2,FALSE)+ROW()-2))=Switch!$D$33,INDIRECT(\"a\" & (VLOOKUP(Switch!$D$33,$F$2:$G$44,2,FALSE)+ROW()-2)),\"\")","v":{"$error":"#N/A"}},{"$f":"IF(INDIRECT(\"c\" & (VLOOKUP(Switch!$D$34,$F$2:$G$44,2,FALSE)+ROW()-2))=Switch!$D$34,INDIRECT(\"a\" & (VLOOKUP(Switch!$D$34,$F$2:$G$44,2,FALSE)+ROW()-2)),\"\")","v":{"$error":"#N/A"}},{"$f":"IF(INDIRECT(\"c\" & (VLOOKUP(Switch!$D$35,$F$2:$G$44,2,FALSE)+ROW()-2))=Switch!$D$35,INDIRECT(\"a\" & (VLOOKUP(Switch!$D$35,$F$2:$G$44,2,FALSE)+ROW()-2)),\"\")","v":{"$error":"#N/A"}},{"$f":"IF(INDIRECT(\"c\" & (VLOOKUP(Switch!$D$36,$F$2:$G$44,2,FALSE)+ROW()-2))=Switch!$D$36,INDIRECT(\"a\" & (VLOOKUP(Switch!$D$36,$F$2:$G$44,2,FALSE)+ROW()-2)),\"\")","v":{"$error":"#N/A"}},{"$f":"IF(INDIRECT(\"c\" & (VLOOKUP(Switch!$D$37,$F$2:$G$44,2,FALSE)+ROW()-2))=Switch!$D$37,INDIRECT(\"a\" & (VLOOKUP(Switch!$D$37,$F$2:$G$44,2,FALSE)+ROW()-2)),\"\")","v":{"$error":"#N/A"}},{"$f":"IF(INDIRECT(\"c\" & (VLOOKUP(Switch!$D$38,$F$2:$G$44,2,FALSE)+ROW()-2))=Switch!$D$38,INDIRECT(\"a\" & (VLOOKUP(Switch!$D$38,$F$2:$G$44,2,FALSE)+ROW()-2)),\"\")","v":{"$error":"#N/A"}},{"$f":"IF(INDIRECT(\"c\" & (VLOOKUP(Switch!$D$39,$F$2:$G$44,2,FALSE)+ROW()-2))=Switch!$D$39,INDIRECT(\"a\" & (VLOOKUP(Switch!$D$39,$F$2:$G$44,2,FALSE)+ROW()-2)),\"\")","v":{"$error":"#N/A"}},{"$f":"IF(INDIRECT(\"c\" & (VLOOKUP(Switch!$D$40,$F$2:$G$44,2,FALSE)+ROW()-2))=Switch!$D$40,INDIRECT(\"a\" & (VLOOKUP(Switch!$D$40,$F$2:$G$44,2,FALSE)+ROW()-2)),\"\")","v":{"$error":"#N/A"}},{"$f":"IF(INDIRECT(\"c\" & (VLOOKUP(Switch!$D$52,$F$2:$G$44,2,FALSE)+ROW()-2))=Switch!$D$52,INDIRECT(\"a\" & (VLOOKUP(Switch!$D$52,$F$2:$G$44,2,FALSE)+ROW()-2)),\"\")","v":{"$error":"#N/A"}},{"$f":"IF(INDIRECT(\"c\" & (VLOOKUP(Switch!$D$53,$F$2:$G$44,2,FALSE)+ROW()-2))=Switch!$D$53,INDIRECT(\"a\" & (VLOOKUP(Switch!$D$53,$F$2:$G$44,2,FALSE)+ROW()-2)),\"\")","v":{"$error":"#N/A"}},{"$f":"IF(INDIRECT(\"c\" & (VLOOKUP(Switch!$D$54,$F$2:$G$44,2,FALSE)+ROW()-2))=Switch!$D$54,INDIRECT(\"a\" & (VLOOKUP(Switch!$D$54,$F$2:$G$44,2,FALSE)+ROW()-2)),\"\")","v":{"$error":"#N/A"}},{"$f":"IF(INDIRECT(\"c\" & (VLOOKUP(Switch!$D$55,$F$2:$G$44,2,FALSE)+ROW()-2))=Switch!$D$55,INDIRECT(\"a\" & (VLOOKUP(Switch!$D$55,$F$2:$G$44,2,FALSE)+ROW()-2)),\"\")","v":{"$error":"#N/A"}},{"$f":"IF(INDIRECT(\"c\" & (VLOOKUP(Switch!$D$56,$F$2:$G$44,2,FALSE)+ROW()-2))=Switch!$D$56,INDIRECT(\"a\" & (VLOOKUP(Switch!$D$56,$F$2:$G$44,2,FALSE)+ROW()-2)),\"\")","v":{"$error":"#N/A"}},{"$f":"IF(INDIRECT(\"c\" & (VLOOKUP(Switch!$D$57,$F$2:$G$44,2,FALSE)+ROW()-2))=Switch!$D$57,INDIRECT(\"a\" & (VLOOKUP(Switch!$D$57,$F$2:$G$44,2,FALSE)+ROW()-2)),\"\")","v":{"$error":"#N/A"}},{"$f":"IF(INDIRECT(\"c\" & (VLOOKUP(Switch!$D$58,$F$2:$G$44,2,FALSE)+ROW()-2))=Switch!$D$58,INDIRECT(\"a\" & (VLOOKUP(Switch!$D$58,$F$2:$G$44,2,FALSE)+ROW()-2)),\"\")","v":{"$error":"#N/A"}},{"$f":"IF(INDIRECT(\"c\" & (VLOOKUP(Switch!$D$59,$F$2:$G$44,2,FALSE)+ROW()-2))=Switch!$D$59,INDIRECT(\"a\" & (VLOOKUP(Switch!$D$59,$F$2:$G$44,2,FALSE)+ROW()-2)),\"\")","v":{"$error":"#N/A"}},{"$f":"IF(INDIRECT(\"c\" & (VLOOKUP(Switch!$D$60,$F$2:$G$44,2,FALSE)+ROW()-2))=Switch!$D$60,INDIRECT(\"a\" & (VLOOKUP(Switch!$D$60,$F$2:$G$44,2,FALSE)+ROW()-2)),\"\")","v":{"$error":"#N/A"}},{"$f":"IF(INDIRECT(\"c\" & (VLOOKUP(Switch!$D$61,$F$2:$G$44,2,FALSE)+ROW()-2))=Switch!$D$61,INDIRECT(\"a\" & (VLOOKUP(Switch!$D$61,$F$2:$G$44,2,FALSE)+ROW()-2)),\"\")","v":{"$error":"#N/A"}},{"$f":"IF(INDIRECT(\"c\" & (VLOOKUP(Switch!$D$62,$F$2:$G$44,2,FALSE)+ROW()-2))=Switch!$D$62,INDIRECT(\"a\" & (VLOOKUP(Switch!$D$62,$F$2:$G$44,2,FALSE)+ROW()-2)),\"\")","v":{"$error":"#N/A"}},{"$f":"IF(INDIRECT(\"c\" & (VLOOKUP(Switch!$D$63,$F$2:$G$44,2,FALSE)+ROW()-2))=Switch!$D$63,INDIRECT(\"a\" & (VLOOKUP(Switch!$D$63,$F$2:$G$44,2,FALSE)+ROW()-2)),\"\")","v":{"$error":"#N/A"}},{"$f":"IF(INDIRECT(\"c\" & (VLOOKUP(Switch!$D$64,$F$2:$G$44,2,FALSE)+ROW()-2))=Switch!$D$64,INDIRECT(\"a\" & (VLOOKUP(Switch!$D$64,$F$2:$G$44,2,FALSE)+ROW()-2)),\"\")","v":{"$error":"#N/A"}},{"$f":"IF(INDIRECT(\"c\" & (VLOOKUP(Switch!$D$65,$F$2:$G$44,2,FALSE)+ROW()-2))=Switch!$D$65,INDIRECT(\"a\" & (VLOOKUP(Switch!$D$65,$F$2:$G$44,2,FALSE)+ROW()-2)),\"\")","v":{"$error":"#N/A"}},{"$f":"IF(INDIRECT(\"c\" & (VLOOKUP(Switch!$D$66,$F$2:$G$44,2,FALSE)+ROW()-2))=Switch!$D$66,INDIRECT(\"a\" & (VLOOKUP(Switch!$D$66,$F$2:$G$44,2,FALSE)+ROW()-2)),\"\")","v":{"$error":"#N/A"}}]
["STANLIB Property Income Fund B1","STPI","STANLIB Collective Investments",{"$f":"ROW()","v":77},null,null,{"$f":"VLOOKUP(F77,$C$2:$D$637,2,FALSE)","v":{"$error":"#N/A"}},{"$f":"IF(INDIRECT(\"c\" & (VLOOKUP(Switch!$D$26,$F$2:$G$44,2,FALSE)+ROW()-2))=Switch!$D$26,INDIRECT(\"a\" & (VLOOKUP(Switch!$D$26,$F$2:$G$44,2,FALSE)+ROW()-2)),\"\")","v":{"$error":"#N/A"}},{"$f":"IF(INDIRECT(\"c\" & (VLOOKUP(Switch!$D$27,$F$2:$G$44,2,FALSE)+ROW()-2))=Switch!$D$27,INDIRECT(\"a\" & (VLOOKUP(Switch!$D$27,$F$2:$G$44,2,FALSE)+ROW()-2)),\"\")","v":{"$error":"#N/A"}},{"$f":"IF(INDIRECT(\"c\" & (VLOOKUP(Switch!$D$28,$F$2:$G$44,2,FALSE)+ROW()-2))=Switch!$D$28,INDIRECT(\"a\" & (VLOOKUP(Switch!$D$28,$F$2:$G$44,2,FALSE)+ROW()-2)),\"\")","v":{"$error":"#N/A"}},{"$f":"IF(INDIRECT(\"c\" & (VLOOKUP(Switch!$D$29,$F$2:$G$44,2,FALSE)+ROW()-2))=Switch!$D$29,INDIRECT(\"a\" & (VLOOKUP(Switch!$D$29,$F$2:$G$44,2,FALSE)+ROW()-2)),\"\")","v":{"$error":"#N/A"}},{"$f":"IF(INDIRECT(\"c\" & (VLOOKUP(Switch!$D$30,$F$2:$G$44,2,FALSE)+ROW()-2))=Switch!$D$30,INDIRECT(\"a\" & (VLOOKUP(Switch!$D$30,$F$2:$G$44,2,FALSE)+ROW()-2)),\"\")","v":{"$error":"#N/A"}},{"$f":"IF(INDIRECT(\"c\" & (VLOOKUP(Switch!$D$31,$F$2:$G$44,2,FALSE)+ROW()-2))=Switch!$D$31,INDIRECT(\"a\" & (VLOOKUP(Switch!$D$31,$F$2:$G$44,2,FALSE)+ROW()-2)),\"\")","v":{"$error":"#N/A"}},{"$f":"IF(INDIRECT(\"c\" & (VLOOKUP(Switch!$D$32,$F$2:$G$44,2,FALSE)+ROW()-2))=Switch!$D$32,INDIRECT(\"a\" & (VLOOKUP(Switch!$D$32,$F$2:$G$44,2,FALSE)+ROW()-2)),\"\")","v":{"$error":"#N/A"}},{"$f":"IF(INDIRECT(\"c\" & (VLOOKUP(Switch!$D$33,$F$2:$G$44,2,FALSE)+ROW()-2))=Switch!$D$33,INDIRECT(\"a\" & (VLOOKUP(Switch!$D$33,$F$2:$G$44,2,FALSE)+ROW()-2)),\"\")","v":{"$error":"#N/A"}},{"$f":"IF(INDIRECT(\"c\" & (VLOOKUP(Switch!$D$34,$F$2:$G$44,2,FALSE)+ROW()-2))=Switch!$D$34,INDIRECT(\"a\" & (VLOOKUP(Switch!$D$34,$F$2:$G$44,2,FALSE)+ROW()-2)),\"\")","v":{"$error":"#N/A"}},{"$f":"IF(INDIRECT(\"c\" & (VLOOKUP(Switch!$D$35,$F$2:$G$44,2,FALSE)+ROW()-2))=Switch!$D$35,INDIRECT(\"a\" & (VLOOKUP(Switch!$D$35,$F$2:$G$44,2,FALSE)+ROW()-2)),\"\")","v":{"$error":"#N/A"}},{"$f":"IF(INDIRECT(\"c\" & (VLOOKUP(Switch!$D$36,$F$2:$G$44,2,FALSE)+ROW()-2))=Switch!$D$36,INDIRECT(\"a\" & (VLOOKUP(Switch!$D$36,$F$2:$G$44,2,FALSE)+ROW()-2)),\"\")","v":{"$error":"#N/A"}},{"$f":"IF(INDIRECT(\"c\" & (VLOOKUP(Switch!$D$37,$F$2:$G$44,2,FALSE)+ROW()-2))=Switch!$D$37,INDIRECT(\"a\" & (VLOOKUP(Switch!$D$37,$F$2:$G$44,2,FALSE)+ROW()-2)),\"\")","v":{"$error":"#N/A"}},{"$f":"IF(INDIRECT(\"c\" & (VLOOKUP(Switch!$D$38,$F$2:$G$44,2,FALSE)+ROW()-2))=Switch!$D$38,INDIRECT(\"a\" & (VLOOKUP(Switch!$D$38,$F$2:$G$44,2,FALSE)+ROW()-2)),\"\")","v":{"$error":"#N/A"}},{"$f":"IF(INDIRECT(\"c\" & (VLOOKUP(Switch!$D$39,$F$2:$G$44,2,FALSE)+ROW()-2))=Switch!$D$39,INDIRECT(\"a\" & (VLOOKUP(Switch!$D$39,$F$2:$G$44,2,FALSE)+ROW()-2)),\"\")","v":{"$error":"#N/A"}},{"$f":"IF(INDIRECT(\"c\" & (VLOOKUP(Switch!$D$40,$F$2:$G$44,2,FALSE)+ROW()-2))=Switch!$D$40,INDIRECT(\"a\" & (VLOOKUP(Switch!$D$40,$F$2:$G$44,2,FALSE)+ROW()-2)),\"\")","v":{"$error":"#N/A"}},{"$f":"IF(INDIRECT(\"c\" & (VLOOKUP(Switch!$D$52,$F$2:$G$44,2,FALSE)+ROW()-2))=Switch!$D$52,INDIRECT(\"a\" & (VLOOKUP(Switch!$D$52,$F$2:$G$44,2,FALSE)+ROW()-2)),\"\")","v":{"$error":"#N/A"}},{"$f":"IF(INDIRECT(\"c\" & (VLOOKUP(Switch!$D$53,$F$2:$G$44,2,FALSE)+ROW()-2))=Switch!$D$53,INDIRECT(\"a\" & (VLOOKUP(Switch!$D$53,$F$2:$G$44,2,FALSE)+ROW()-2)),\"\")","v":{"$error":"#N/A"}},{"$f":"IF(INDIRECT(\"c\" & (VLOOKUP(Switch!$D$54,$F$2:$G$44,2,FALSE)+ROW()-2))=Switch!$D$54,INDIRECT(\"a\" & (VLOOKUP(Switch!$D$54,$F$2:$G$44,2,FALSE)+ROW()-2)),\"\")","v":{"$error":"#N/A"}},{"$f":"IF(INDIRECT(\"c\" & (VLOOKUP(Switch!$D$55,$F$2:$G$44,2,FALSE)+ROW()-2))=Switch!$D$55,INDIRECT(\"a\" & (VLOOKUP(Switch!$D$55,$F$2:$G$44,2,FALSE)+ROW()-2)),\"\")","v":{"$error":"#N/A"}},{"$f":"IF(INDIRECT(\"c\" & (VLOOKUP(Switch!$D$56,$F$2:$G$44,2,FALSE)+ROW()-2))=Switch!$D$56,INDIRECT(\"a\" & (VLOOKUP(Switch!$D$56,$F$2:$G$44,2,FALSE)+ROW()-2)),\"\")","v":{"$error":"#N/A"}},{"$f":"IF(INDIRECT(\"c\" & (VLOOKUP(Switch!$D$57,$F$2:$G$44,2,FALSE)+ROW()-2))=Switch!$D$57,INDIRECT(\"a\" & (VLOOKUP(Switch!$D$57,$F$2:$G$44,2,FALSE)+ROW()-2)),\"\")","v":{"$error":"#N/A"}},{"$f":"IF(INDIRECT(\"c\" & (VLOOKUP(Switch!$D$58,$F$2:$G$44,2,FALSE)+ROW()-2))=Switch!$D$58,INDIRECT(\"a\" & (VLOOKUP(Switch!$D$58,$F$2:$G$44,2,FALSE)+ROW()-2)),\"\")","v":{"$error":"#N/A"}},{"$f":"IF(INDIRECT(\"c\" & (VLOOKUP(Switch!$D$59,$F$2:$G$44,2,FALSE)+ROW()-2))=Switch!$D$59,INDIRECT(\"a\" & (VLOOKUP(Switch!$D$59,$F$2:$G$44,2,FALSE)+ROW()-2)),\"\")","v":{"$error":"#N/A"}},{"$f":"IF(INDIRECT(\"c\" & (VLOOKUP(Switch!$D$60,$F$2:$G$44,2,FALSE)+ROW()-2))=Switch!$D$60,INDIRECT(\"a\" & (VLOOKUP(Switch!$D$60,$F$2:$G$44,2,FALSE)+ROW()-2)),\"\")","v":{"$error":"#N/A"}},{"$f":"IF(INDIRECT(\"c\" & (VLOOKUP(Switch!$D$61,$F$2:$G$44,2,FALSE)+ROW()-2))=Switch!$D$61,INDIRECT(\"a\" & (VLOOKUP(Switch!$D$61,$F$2:$G$44,2,FALSE)+ROW()-2)),\"\")","v":{"$error":"#N/A"}},{"$f":"IF(INDIRECT(\"c\" & (VLOOKUP(Switch!$D$62,$F$2:$G$44,2,FALSE)+ROW()-2))=Switch!$D$62,INDIRECT(\"a\" & (VLOOKUP(Switch!$D$62,$F$2:$G$44,2,FALSE)+ROW()-2)),\"\")","v":{"$error":"#N/A"}},{"$f":"IF(INDIRECT(\"c\" & (VLOOKUP(Switch!$D$63,$F$2:$G$44,2,FALSE)+ROW()-2))=Switch!$D$63,INDIRECT(\"a\" & (VLOOKUP(Switch!$D$63,$F$2:$G$44,2,FALSE)+ROW()-2)),\"\")","v":{"$error":"#N/A"}},{"$f":"IF(INDIRECT(\"c\" & (VLOOKUP(Switch!$D$64,$F$2:$G$44,2,FALSE)+ROW()-2))=Switch!$D$64,INDIRECT(\"a\" & (VLOOKUP(Switch!$D$64,$F$2:$G$44,2,FALSE)+ROW()-2)),\"\")","v":{"$error":"#N/A"}},{"$f":"IF(INDIRECT(\"c\" & (VLOOKUP(Switch!$D$65,$F$2:$G$44,2,FALSE)+ROW()-2))=Switch!$D$65,INDIRECT(\"a\" & (VLOOKUP(Switch!$D$65,$F$2:$G$44,2,FALSE)+ROW()-2)),\"\")","v":{"$error":"#N/A"}},{"$f":"IF(INDIRECT(\"c\" & (VLOOKUP(Switch!$D$66,$F$2:$G$44,2,FALSE)+ROW()-2))=Switch!$D$66,INDIRECT(\"a\" & (VLOOKUP(Switch!$D$66,$F$2:$G$44,2,FALSE)+ROW()-2)),\"\")","v":{"$error":"#N/A"}}]
["STANLIB SA Equity Fund A","LIPA","STANLIB Collective Investments",{"$f":"ROW()","v":78},null,null,{"$f":"VLOOKUP(F78,$C$2:$D$637,2,FALSE)","v":{"$error":"#N/A"}},{"$f":"IF(INDIRECT(\"c\" & (VLOOKUP(Switch!$D$26,$F$2:$G$44,2,FALSE)+ROW()-2))=Switch!$D$26,INDIRECT(\"a\" & (VLOOKUP(Switch!$D$26,$F$2:$G$44,2,FALSE)+ROW()-2)),\"\")","v":{"$error":"#N/A"}},{"$f":"IF(INDIRECT(\"c\" & (VLOOKUP(Switch!$D$27,$F$2:$G$44,2,FALSE)+ROW()-2))=Switch!$D$27,INDIRECT(\"a\" & (VLOOKUP(Switch!$D$27,$F$2:$G$44,2,FALSE)+ROW()-2)),\"\")","v":{"$error":"#N/A"}},{"$f":"IF(INDIRECT(\"c\" & (VLOOKUP(Switch!$D$28,$F$2:$G$44,2,FALSE)+ROW()-2))=Switch!$D$28,INDIRECT(\"a\" & (VLOOKUP(Switch!$D$28,$F$2:$G$44,2,FALSE)+ROW()-2)),\"\")","v":{"$error":"#N/A"}},{"$f":"IF(INDIRECT(\"c\" & (VLOOKUP(Switch!$D$29,$F$2:$G$44,2,FALSE)+ROW()-2))=Switch!$D$29,INDIRECT(\"a\" & (VLOOKUP(Switch!$D$29,$F$2:$G$44,2,FALSE)+ROW()-2)),\"\")","v":{"$error":"#N/A"}},{"$f":"IF(INDIRECT(\"c\" & (VLOOKUP(Switch!$D$30,$F$2:$G$44,2,FALSE)+ROW()-2))=Switch!$D$30,INDIRECT(\"a\" & (VLOOKUP(Switch!$D$30,$F$2:$G$44,2,FALSE)+ROW()-2)),\"\")","v":{"$error":"#N/A"}},{"$f":"IF(INDIRECT(\"c\" & (VLOOKUP(Switch!$D$31,$F$2:$G$44,2,FALSE)+ROW()-2))=Switch!$D$31,INDIRECT(\"a\" & (VLOOKUP(Switch!$D$31,$F$2:$G$44,2,FALSE)+ROW()-2)),\"\")","v":{"$error":"#N/A"}},{"$f":"IF(INDIRECT(\"c\" & (VLOOKUP(Switch!$D$32,$F$2:$G$44,2,FALSE)+ROW()-2))=Switch!$D$32,INDIRECT(\"a\" & (VLOOKUP(Switch!$D$32,$F$2:$G$44,2,FALSE)+ROW()-2)),\"\")","v":{"$error":"#N/A"}},{"$f":"IF(INDIRECT(\"c\" & (VLOOKUP(Switch!$D$33,$F$2:$G$44,2,FALSE)+ROW()-2))=Switch!$D$33,INDIRECT(\"a\" & (VLOOKUP(Switch!$D$33,$F$2:$G$44,2,FALSE)+ROW()-2)),\"\")","v":{"$error":"#N/A"}},{"$f":"IF(INDIRECT(\"c\" & (VLOOKUP(Switch!$D$34,$F$2:$G$44,2,FALSE)+ROW()-2))=Switch!$D$34,INDIRECT(\"a\" & (VLOOKUP(Switch!$D$34,$F$2:$G$44,2,FALSE)+ROW()-2)),\"\")","v":{"$error":"#N/A"}},{"$f":"IF(INDIRECT(\"c\" & (VLOOKUP(Switch!$D$35,$F$2:$G$44,2,FALSE)+ROW()-2))=Switch!$D$35,INDIRECT(\"a\" & (VLOOKUP(Switch!$D$35,$F$2:$G$44,2,FALSE)+ROW()-2)),\"\")","v":{"$error":"#N/A"}},{"$f":"IF(INDIRECT(\"c\" & (VLOOKUP(Switch!$D$36,$F$2:$G$44,2,FALSE)+ROW()-2))=Switch!$D$36,INDIRECT(\"a\" & (VLOOKUP(Switch!$D$36,$F$2:$G$44,2,FALSE)+ROW()-2)),\"\")","v":{"$error":"#N/A"}},{"$f":"IF(INDIRECT(\"c\" & (VLOOKUP(Switch!$D$37,$F$2:$G$44,2,FALSE)+ROW()-2))=Switch!$D$37,INDIRECT(\"a\" & (VLOOKUP(Switch!$D$37,$F$2:$G$44,2,FALSE)+ROW()-2)),\"\")","v":{"$error":"#N/A"}},{"$f":"IF(INDIRECT(\"c\" & (VLOOKUP(Switch!$D$38,$F$2:$G$44,2,FALSE)+ROW()-2))=Switch!$D$38,INDIRECT(\"a\" & (VLOOKUP(Switch!$D$38,$F$2:$G$44,2,FALSE)+ROW()-2)),\"\")","v":{"$error":"#N/A"}},{"$f":"IF(INDIRECT(\"c\" & (VLOOKUP(Switch!$D$39,$F$2:$G$44,2,FALSE)+ROW()-2))=Switch!$D$39,INDIRECT(\"a\" & (VLOOKUP(Switch!$D$39,$F$2:$G$44,2,FALSE)+ROW()-2)),\"\")","v":{"$error":"#N/A"}},{"$f":"IF(INDIRECT(\"c\" & (VLOOKUP(Switch!$D$40,$F$2:$G$44,2,FALSE)+ROW()-2))=Switch!$D$40,INDIRECT(\"a\" & (VLOOKUP(Switch!$D$40,$F$2:$G$44,2,FALSE)+ROW()-2)),\"\")","v":{"$error":"#N/A"}},{"$f":"IF(INDIRECT(\"c\" & (VLOOKUP(Switch!$D$52,$F$2:$G$44,2,FALSE)+ROW()-2))=Switch!$D$52,INDIRECT(\"a\" & (VLOOKUP(Switch!$D$52,$F$2:$G$44,2,FALSE)+ROW()-2)),\"\")","v":{"$error":"#N/A"}},{"$f":"IF(INDIRECT(\"c\" & (VLOOKUP(Switch!$D$53,$F$2:$G$44,2,FALSE)+ROW()-2))=Switch!$D$53,INDIRECT(\"a\" & (VLOOKUP(Switch!$D$53,$F$2:$G$44,2,FALSE)+ROW()-2)),\"\")","v":{"$error":"#N/A"}},{"$f":"IF(INDIRECT(\"c\" & (VLOOKUP(Switch!$D$54,$F$2:$G$44,2,FALSE)+ROW()-2))=Switch!$D$54,INDIRECT(\"a\" & (VLOOKUP(Switch!$D$54,$F$2:$G$44,2,FALSE)+ROW()-2)),\"\")","v":{"$error":"#N/A"}},{"$f":"IF(INDIRECT(\"c\" & (VLOOKUP(Switch!$D$55,$F$2:$G$44,2,FALSE)+ROW()-2))=Switch!$D$55,INDIRECT(\"a\" & (VLOOKUP(Switch!$D$55,$F$2:$G$44,2,FALSE)+ROW()-2)),\"\")","v":{"$error":"#N/A"}},{"$f":"IF(INDIRECT(\"c\" & (VLOOKUP(Switch!$D$56,$F$2:$G$44,2,FALSE)+ROW()-2))=Switch!$D$56,INDIRECT(\"a\" & (VLOOKUP(Switch!$D$56,$F$2:$G$44,2,FALSE)+ROW()-2)),\"\")","v":{"$error":"#N/A"}},{"$f":"IF(INDIRECT(\"c\" & (VLOOKUP(Switch!$D$57,$F$2:$G$44,2,FALSE)+ROW()-2))=Switch!$D$57,INDIRECT(\"a\" & (VLOOKUP(Switch!$D$57,$F$2:$G$44,2,FALSE)+ROW()-2)),\"\")","v":{"$error":"#N/A"}},{"$f":"IF(INDIRECT(\"c\" & (VLOOKUP(Switch!$D$58,$F$2:$G$44,2,FALSE)+ROW()-2))=Switch!$D$58,INDIRECT(\"a\" & (VLOOKUP(Switch!$D$58,$F$2:$G$44,2,FALSE)+ROW()-2)),\"\")","v":{"$error":"#N/A"}},{"$f":"IF(INDIRECT(\"c\" & (VLOOKUP(Switch!$D$59,$F$2:$G$44,2,FALSE)+ROW()-2))=Switch!$D$59,INDIRECT(\"a\" & (VLOOKUP(Switch!$D$59,$F$2:$G$44,2,FALSE)+ROW()-2)),\"\")","v":{"$error":"#N/A"}},{"$f":"IF(INDIRECT(\"c\" & (VLOOKUP(Switch!$D$60,$F$2:$G$44,2,FALSE)+ROW()-2))=Switch!$D$60,INDIRECT(\"a\" & (VLOOKUP(Switch!$D$60,$F$2:$G$44,2,FALSE)+ROW()-2)),\"\")","v":{"$error":"#N/A"}},{"$f":"IF(INDIRECT(\"c\" & (VLOOKUP(Switch!$D$61,$F$2:$G$44,2,FALSE)+ROW()-2))=Switch!$D$61,INDIRECT(\"a\" & (VLOOKUP(Switch!$D$61,$F$2:$G$44,2,FALSE)+ROW()-2)),\"\")","v":{"$error":"#N/A"}},{"$f":"IF(INDIRECT(\"c\" & (VLOOKUP(Switch!$D$62,$F$2:$G$44,2,FALSE)+ROW()-2))=Switch!$D$62,INDIRECT(\"a\" & (VLOOKUP(Switch!$D$62,$F$2:$G$44,2,FALSE)+ROW()-2)),\"\")","v":{"$error":"#N/A"}},{"$f":"IF(INDIRECT(\"c\" & (VLOOKUP(Switch!$D$63,$F$2:$G$44,2,FALSE)+ROW()-2))=Switch!$D$63,INDIRECT(\"a\" & (VLOOKUP(Switch!$D$63,$F$2:$G$44,2,FALSE)+ROW()-2)),\"\")","v":{"$error":"#N/A"}},{"$f":"IF(INDIRECT(\"c\" & (VLOOKUP(Switch!$D$64,$F$2:$G$44,2,FALSE)+ROW()-2))=Switch!$D$64,INDIRECT(\"a\" & (VLOOKUP(Switch!$D$64,$F$2:$G$44,2,FALSE)+ROW()-2)),\"\")","v":{"$error":"#N/A"}},{"$f":"IF(INDIRECT(\"c\" & (VLOOKUP(Switch!$D$65,$F$2:$G$44,2,FALSE)+ROW()-2))=Switch!$D$65,INDIRECT(\"a\" & (VLOOKUP(Switch!$D$65,$F$2:$G$44,2,FALSE)+ROW()-2)),\"\")","v":{"$error":"#N/A"}},{"$f":"IF(INDIRECT(\"c\" & (VLOOKUP(Switch!$D$66,$F$2:$G$44,2,FALSE)+ROW()-2))=Switch!$D$66,INDIRECT(\"a\" & (VLOOKUP(Switch!$D$66,$F$2:$G$44,2,FALSE)+ROW()-2)),\"\")","v":{"$error":"#N/A"}}]
["STANLIB SA Equity Fund R","LIPA","STANLIB Collective Investments",{"$f":"ROW()","v":79},null,null,{"$f":"VLOOKUP(F79,$C$2:$D$637,2,FALSE)","v":{"$error":"#N/A"}},{"$f":"IF(INDIRECT(\"c\" & (VLOOKUP(Switch!$D$26,$F$2:$G$44,2,FALSE)+ROW()-2))=Switch!$D$26,INDIRECT(\"a\" & (VLOOKUP(Switch!$D$26,$F$2:$G$44,2,FALSE)+ROW()-2)),\"\")","v":{"$error":"#N/A"}},{"$f":"IF(INDIRECT(\"c\" & (VLOOKUP(Switch!$D$27,$F$2:$G$44,2,FALSE)+ROW()-2))=Switch!$D$27,INDIRECT(\"a\" & (VLOOKUP(Switch!$D$27,$F$2:$G$44,2,FALSE)+ROW()-2)),\"\")","v":{"$error":"#N/A"}},{"$f":"IF(INDIRECT(\"c\" & (VLOOKUP(Switch!$D$28,$F$2:$G$44,2,FALSE)+ROW()-2))=Switch!$D$28,INDIRECT(\"a\" & (VLOOKUP(Switch!$D$28,$F$2:$G$44,2,FALSE)+ROW()-2)),\"\")","v":{"$error":"#N/A"}},{"$f":"IF(INDIRECT(\"c\" & (VLOOKUP(Switch!$D$29,$F$2:$G$44,2,FALSE)+ROW()-2))=Switch!$D$29,INDIRECT(\"a\" & (VLOOKUP(Switch!$D$29,$F$2:$G$44,2,FALSE)+ROW()-2)),\"\")","v":{"$error":"#N/A"}},{"$f":"IF(INDIRECT(\"c\" & (VLOOKUP(Switch!$D$30,$F$2:$G$44,2,FALSE)+ROW()-2))=Switch!$D$30,INDIRECT(\"a\" & (VLOOKUP(Switch!$D$30,$F$2:$G$44,2,FALSE)+ROW()-2)),\"\")","v":{"$error":"#N/A"}},{"$f":"IF(INDIRECT(\"c\" & (VLOOKUP(Switch!$D$31,$F$2:$G$44,2,FALSE)+ROW()-2))=Switch!$D$31,INDIRECT(\"a\" & (VLOOKUP(Switch!$D$31,$F$2:$G$44,2,FALSE)+ROW()-2)),\"\")","v":{"$error":"#N/A"}},{"$f":"IF(INDIRECT(\"c\" & (VLOOKUP(Switch!$D$32,$F$2:$G$44,2,FALSE)+ROW()-2))=Switch!$D$32,INDIRECT(\"a\" & (VLOOKUP(Switch!$D$32,$F$2:$G$44,2,FALSE)+ROW()-2)),\"\")","v":{"$error":"#N/A"}},{"$f":"IF(INDIRECT(\"c\" & (VLOOKUP(Switch!$D$33,$F$2:$G$44,2,FALSE)+ROW()-2))=Switch!$D$33,INDIRECT(\"a\" & (VLOOKUP(Switch!$D$33,$F$2:$G$44,2,FALSE)+ROW()-2)),\"\")","v":{"$error":"#N/A"}},{"$f":"IF(INDIRECT(\"c\" & (VLOOKUP(Switch!$D$34,$F$2:$G$44,2,FALSE)+ROW()-2))=Switch!$D$34,INDIRECT(\"a\" & (VLOOKUP(Switch!$D$34,$F$2:$G$44,2,FALSE)+ROW()-2)),\"\")","v":{"$error":"#N/A"}},{"$f":"IF(INDIRECT(\"c\" & (VLOOKUP(Switch!$D$35,$F$2:$G$44,2,FALSE)+ROW()-2))=Switch!$D$35,INDIRECT(\"a\" & (VLOOKUP(Switch!$D$35,$F$2:$G$44,2,FALSE)+ROW()-2)),\"\")","v":{"$error":"#N/A"}},{"$f":"IF(INDIRECT(\"c\" & (VLOOKUP(Switch!$D$36,$F$2:$G$44,2,FALSE)+ROW()-2))=Switch!$D$36,INDIRECT(\"a\" & (VLOOKUP(Switch!$D$36,$F$2:$G$44,2,FALSE)+ROW()-2)),\"\")","v":{"$error":"#N/A"}},{"$f":"IF(INDIRECT(\"c\" & (VLOOKUP(Switch!$D$37,$F$2:$G$44,2,FALSE)+ROW()-2))=Switch!$D$37,INDIRECT(\"a\" & (VLOOKUP(Switch!$D$37,$F$2:$G$44,2,FALSE)+ROW()-2)),\"\")","v":{"$error":"#N/A"}},{"$f":"IF(INDIRECT(\"c\" & (VLOOKUP(Switch!$D$38,$F$2:$G$44,2,FALSE)+ROW()-2))=Switch!$D$38,INDIRECT(\"a\" & (VLOOKUP(Switch!$D$38,$F$2:$G$44,2,FALSE)+ROW()-2)),\"\")","v":{"$error":"#N/A"}},{"$f":"IF(INDIRECT(\"c\" & (VLOOKUP(Switch!$D$39,$F$2:$G$44,2,FALSE)+ROW()-2))=Switch!$D$39,INDIRECT(\"a\" & (VLOOKUP(Switch!$D$39,$F$2:$G$44,2,FALSE)+ROW()-2)),\"\")","v":{"$error":"#N/A"}},{"$f":"IF(INDIRECT(\"c\" & (VLOOKUP(Switch!$D$40,$F$2:$G$44,2,FALSE)+ROW()-2))=Switch!$D$40,INDIRECT(\"a\" & (VLOOKUP(Switch!$D$40,$F$2:$G$44,2,FALSE)+ROW()-2)),\"\")","v":{"$error":"#N/A"}},{"$f":"IF(INDIRECT(\"c\" & (VLOOKUP(Switch!$D$52,$F$2:$G$44,2,FALSE)+ROW()-2))=Switch!$D$52,INDIRECT(\"a\" & (VLOOKUP(Switch!$D$52,$F$2:$G$44,2,FALSE)+ROW()-2)),\"\")","v":{"$error":"#N/A"}},{"$f":"IF(INDIRECT(\"c\" & (VLOOKUP(Switch!$D$53,$F$2:$G$44,2,FALSE)+ROW()-2))=Switch!$D$53,INDIRECT(\"a\" & (VLOOKUP(Switch!$D$53,$F$2:$G$44,2,FALSE)+ROW()-2)),\"\")","v":{"$error":"#N/A"}},{"$f":"IF(INDIRECT(\"c\" & (VLOOKUP(Switch!$D$54,$F$2:$G$44,2,FALSE)+ROW()-2))=Switch!$D$54,INDIRECT(\"a\" & (VLOOKUP(Switch!$D$54,$F$2:$G$44,2,FALSE)+ROW()-2)),\"\")","v":{"$error":"#N/A"}},{"$f":"IF(INDIRECT(\"c\" & (VLOOKUP(Switch!$D$55,$F$2:$G$44,2,FALSE)+ROW()-2))=Switch!$D$55,INDIRECT(\"a\" & (VLOOKUP(Switch!$D$55,$F$2:$G$44,2,FALSE)+ROW()-2)),\"\")","v":{"$error":"#N/A"}},{"$f":"IF(INDIRECT(\"c\" & (VLOOKUP(Switch!$D$56,$F$2:$G$44,2,FALSE)+ROW()-2))=Switch!$D$56,INDIRECT(\"a\" & (VLOOKUP(Switch!$D$56,$F$2:$G$44,2,FALSE)+ROW()-2)),\"\")","v":{"$error":"#N/A"}},{"$f":"IF(INDIRECT(\"c\" & (VLOOKUP(Switch!$D$57,$F$2:$G$44,2,FALSE)+ROW()-2))=Switch!$D$57,INDIRECT(\"a\" & (VLOOKUP(Switch!$D$57,$F$2:$G$44,2,FALSE)+ROW()-2)),\"\")","v":{"$error":"#N/A"}},{"$f":"IF(INDIRECT(\"c\" & (VLOOKUP(Switch!$D$58,$F$2:$G$44,2,FALSE)+ROW()-2))=Switch!$D$58,INDIRECT(\"a\" & (VLOOKUP(Switch!$D$58,$F$2:$G$44,2,FALSE)+ROW()-2)),\"\")","v":{"$error":"#N/A"}},{"$f":"IF(INDIRECT(\"c\" & (VLOOKUP(Switch!$D$59,$F$2:$G$44,2,FALSE)+ROW()-2))=Switch!$D$59,INDIRECT(\"a\" & (VLOOKUP(Switch!$D$59,$F$2:$G$44,2,FALSE)+ROW()-2)),\"\")","v":{"$error":"#N/A"}},{"$f":"IF(INDIRECT(\"c\" & (VLOOKUP(Switch!$D$60,$F$2:$G$44,2,FALSE)+ROW()-2))=Switch!$D$60,INDIRECT(\"a\" & (VLOOKUP(Switch!$D$60,$F$2:$G$44,2,FALSE)+ROW()-2)),\"\")","v":{"$error":"#N/A"}},{"$f":"IF(INDIRECT(\"c\" & (VLOOKUP(Switch!$D$61,$F$2:$G$44,2,FALSE)+ROW()-2))=Switch!$D$61,INDIRECT(\"a\" & (VLOOKUP(Switch!$D$61,$F$2:$G$44,2,FALSE)+ROW()-2)),\"\")","v":{"$error":"#N/A"}},{"$f":"IF(INDIRECT(\"c\" & (VLOOKUP(Switch!$D$62,$F$2:$G$44,2,FALSE)+ROW()-2))=Switch!$D$62,INDIRECT(\"a\" & (VLOOKUP(Switch!$D$62,$F$2:$G$44,2,FALSE)+ROW()-2)),\"\")","v":{"$error":"#N/A"}},{"$f":"IF(INDIRECT(\"c\" & (VLOOKUP(Switch!$D$63,$F$2:$G$44,2,FALSE)+ROW()-2))=Switch!$D$63,INDIRECT(\"a\" & (VLOOKUP(Switch!$D$63,$F$2:$G$44,2,FALSE)+ROW()-2)),\"\")","v":{"$error":"#N/A"}},{"$f":"IF(INDIRECT(\"c\" & (VLOOKUP(Switch!$D$64,$F$2:$G$44,2,FALSE)+ROW()-2))=Switch!$D$64,INDIRECT(\"a\" & (VLOOKUP(Switch!$D$64,$F$2:$G$44,2,FALSE)+ROW()-2)),\"\")","v":{"$error":"#N/A"}},{"$f":"IF(INDIRECT(\"c\" & (VLOOKUP(Switch!$D$65,$F$2:$G$44,2,FALSE)+ROW()-2))=Switch!$D$65,INDIRECT(\"a\" & (VLOOKUP(Switch!$D$65,$F$2:$G$44,2,FALSE)+ROW()-2)),\"\")","v":{"$error":"#N/A"}},{"$f":"IF(INDIRECT(\"c\" & (VLOOKUP(Switch!$D$66,$F$2:$G$44,2,FALSE)+ROW()-2))=Switch!$D$66,INDIRECT(\"a\" & (VLOOKUP(Switch!$D$66,$F$2:$G$44,2,FALSE)+ROW()-2)),\"\")","v":{"$error":"#N/A"}}]
["STANLIB US Dollar Currency FoF A","STCF","STANLIB Collective Investments",{"$f":"ROW()","v":80},null,null,{"$f":"VLOOKUP(F80,$C$2:$D$637,2,FALSE)","v":{"$error":"#N/A"}},{"$f":"IF(INDIRECT(\"c\" & (VLOOKUP(Switch!$D$26,$F$2:$G$44,2,FALSE)+ROW()-2))=Switch!$D$26,INDIRECT(\"a\" & (VLOOKUP(Switch!$D$26,$F$2:$G$44,2,FALSE)+ROW()-2)),\"\")","v":{"$error":"#N/A"}},{"$f":"IF(INDIRECT(\"c\" & (VLOOKUP(Switch!$D$27,$F$2:$G$44,2,FALSE)+ROW()-2))=Switch!$D$27,INDIRECT(\"a\" & (VLOOKUP(Switch!$D$27,$F$2:$G$44,2,FALSE)+ROW()-2)),\"\")","v":{"$error":"#N/A"}},{"$f":"IF(INDIRECT(\"c\" & (VLOOKUP(Switch!$D$28,$F$2:$G$44,2,FALSE)+ROW()-2))=Switch!$D$28,INDIRECT(\"a\" & (VLOOKUP(Switch!$D$28,$F$2:$G$44,2,FALSE)+ROW()-2)),\"\")","v":{"$error":"#N/A"}},{"$f":"IF(INDIRECT(\"c\" & (VLOOKUP(Switch!$D$29,$F$2:$G$44,2,FALSE)+ROW()-2))=Switch!$D$29,INDIRECT(\"a\" & (VLOOKUP(Switch!$D$29,$F$2:$G$44,2,FALSE)+ROW()-2)),\"\")","v":{"$error":"#N/A"}},{"$f":"IF(INDIRECT(\"c\" & (VLOOKUP(Switch!$D$30,$F$2:$G$44,2,FALSE)+ROW()-2))=Switch!$D$30,INDIRECT(\"a\" & (VLOOKUP(Switch!$D$30,$F$2:$G$44,2,FALSE)+ROW()-2)),\"\")","v":{"$error":"#N/A"}},{"$f":"IF(INDIRECT(\"c\" & (VLOOKUP(Switch!$D$31,$F$2:$G$44,2,FALSE)+ROW()-2))=Switch!$D$31,INDIRECT(\"a\" & (VLOOKUP(Switch!$D$31,$F$2:$G$44,2,FALSE)+ROW()-2)),\"\")","v":{"$error":"#N/A"}},{"$f":"IF(INDIRECT(\"c\" & (VLOOKUP(Switch!$D$32,$F$2:$G$44,2,FALSE)+ROW()-2))=Switch!$D$32,INDIRECT(\"a\" & (VLOOKUP(Switch!$D$32,$F$2:$G$44,2,FALSE)+ROW()-2)),\"\")","v":{"$error":"#N/A"}},{"$f":"IF(INDIRECT(\"c\" & (VLOOKUP(Switch!$D$33,$F$2:$G$44,2,FALSE)+ROW()-2))=Switch!$D$33,INDIRECT(\"a\" & (VLOOKUP(Switch!$D$33,$F$2:$G$44,2,FALSE)+ROW()-2)),\"\")","v":{"$error":"#N/A"}},{"$f":"IF(INDIRECT(\"c\" & (VLOOKUP(Switch!$D$34,$F$2:$G$44,2,FALSE)+ROW()-2))=Switch!$D$34,INDIRECT(\"a\" & (VLOOKUP(Switch!$D$34,$F$2:$G$44,2,FALSE)+ROW()-2)),\"\")","v":{"$error":"#N/A"}},{"$f":"IF(INDIRECT(\"c\" & (VLOOKUP(Switch!$D$35,$F$2:$G$44,2,FALSE)+ROW()-2))=Switch!$D$35,INDIRECT(\"a\" & (VLOOKUP(Switch!$D$35,$F$2:$G$44,2,FALSE)+ROW()-2)),\"\")","v":{"$error":"#N/A"}},{"$f":"IF(INDIRECT(\"c\" & (VLOOKUP(Switch!$D$36,$F$2:$G$44,2,FALSE)+ROW()-2))=Switch!$D$36,INDIRECT(\"a\" & (VLOOKUP(Switch!$D$36,$F$2:$G$44,2,FALSE)+ROW()-2)),\"\")","v":{"$error":"#N/A"}},{"$f":"IF(INDIRECT(\"c\" & (VLOOKUP(Switch!$D$37,$F$2:$G$44,2,FALSE)+ROW()-2))=Switch!$D$37,INDIRECT(\"a\" & (VLOOKUP(Switch!$D$37,$F$2:$G$44,2,FALSE)+ROW()-2)),\"\")","v":{"$error":"#N/A"}},{"$f":"IF(INDIRECT(\"c\" & (VLOOKUP(Switch!$D$38,$F$2:$G$44,2,FALSE)+ROW()-2))=Switch!$D$38,INDIRECT(\"a\" & (VLOOKUP(Switch!$D$38,$F$2:$G$44,2,FALSE)+ROW()-2)),\"\")","v":{"$error":"#N/A"}},{"$f":"IF(INDIRECT(\"c\" & (VLOOKUP(Switch!$D$39,$F$2:$G$44,2,FALSE)+ROW()-2))=Switch!$D$39,INDIRECT(\"a\" & (VLOOKUP(Switch!$D$39,$F$2:$G$44,2,FALSE)+ROW()-2)),\"\")","v":{"$error":"#N/A"}},{"$f":"IF(INDIRECT(\"c\" & (VLOOKUP(Switch!$D$40,$F$2:$G$44,2,FALSE)+ROW()-2))=Switch!$D$40,INDIRECT(\"a\" & (VLOOKUP(Switch!$D$40,$F$2:$G$44,2,FALSE)+ROW()-2)),\"\")","v":{"$error":"#N/A"}},{"$f":"IF(INDIRECT(\"c\" & (VLOOKUP(Switch!$D$52,$F$2:$G$44,2,FALSE)+ROW()-2))=Switch!$D$52,INDIRECT(\"a\" & (VLOOKUP(Switch!$D$52,$F$2:$G$44,2,FALSE)+ROW()-2)),\"\")","v":{"$error":"#N/A"}},{"$f":"IF(INDIRECT(\"c\" & (VLOOKUP(Switch!$D$53,$F$2:$G$44,2,FALSE)+ROW()-2))=Switch!$D$53,INDIRECT(\"a\" & (VLOOKUP(Switch!$D$53,$F$2:$G$44,2,FALSE)+ROW()-2)),\"\")","v":{"$error":"#N/A"}},{"$f":"IF(INDIRECT(\"c\" & (VLOOKUP(Switch!$D$54,$F$2:$G$44,2,FALSE)+ROW()-2))=Switch!$D$54,INDIRECT(\"a\" & (VLOOKUP(Switch!$D$54,$F$2:$G$44,2,FALSE)+ROW()-2)),\"\")","v":{"$error":"#N/A"}},{"$f":"IF(INDIRECT(\"c\" & (VLOOKUP(Switch!$D$55,$F$2:$G$44,2,FALSE)+ROW()-2))=Switch!$D$55,INDIRECT(\"a\" & (VLOOKUP(Switch!$D$55,$F$2:$G$44,2,FALSE)+ROW()-2)),\"\")","v":{"$error":"#N/A"}},{"$f":"IF(INDIRECT(\"c\" & (VLOOKUP(Switch!$D$56,$F$2:$G$44,2,FALSE)+ROW()-2))=Switch!$D$56,INDIRECT(\"a\" & (VLOOKUP(Switch!$D$56,$F$2:$G$44,2,FALSE)+ROW()-2)),\"\")","v":{"$error":"#N/A"}},{"$f":"IF(INDIRECT(\"c\" & (VLOOKUP(Switch!$D$57,$F$2:$G$44,2,FALSE)+ROW()-2))=Switch!$D$57,INDIRECT(\"a\" & (VLOOKUP(Switch!$D$57,$F$2:$G$44,2,FALSE)+ROW()-2)),\"\")","v":{"$error":"#N/A"}},{"$f":"IF(INDIRECT(\"c\" & (VLOOKUP(Switch!$D$58,$F$2:$G$44,2,FALSE)+ROW()-2))=Switch!$D$58,INDIRECT(\"a\" & (VLOOKUP(Switch!$D$58,$F$2:$G$44,2,FALSE)+ROW()-2)),\"\")","v":{"$error":"#N/A"}},{"$f":"IF(INDIRECT(\"c\" & (VLOOKUP(Switch!$D$59,$F$2:$G$44,2,FALSE)+ROW()-2))=Switch!$D$59,INDIRECT(\"a\" & (VLOOKUP(Switch!$D$59,$F$2:$G$44,2,FALSE)+ROW()-2)),\"\")","v":{"$error":"#N/A"}},{"$f":"IF(INDIRECT(\"c\" & (VLOOKUP(Switch!$D$60,$F$2:$G$44,2,FALSE)+ROW()-2))=Switch!$D$60,INDIRECT(\"a\" & (VLOOKUP(Switch!$D$60,$F$2:$G$44,2,FALSE)+ROW()-2)),\"\")","v":{"$error":"#N/A"}},{"$f":"IF(INDIRECT(\"c\" & (VLOOKUP(Switch!$D$61,$F$2:$G$44,2,FALSE)+ROW()-2))=Switch!$D$61,INDIRECT(\"a\" & (VLOOKUP(Switch!$D$61,$F$2:$G$44,2,FALSE)+ROW()-2)),\"\")","v":{"$error":"#N/A"}},{"$f":"IF(INDIRECT(\"c\" & (VLOOKUP(Switch!$D$62,$F$2:$G$44,2,FALSE)+ROW()-2))=Switch!$D$62,INDIRECT(\"a\" & (VLOOKUP(Switch!$D$62,$F$2:$G$44,2,FALSE)+ROW()-2)),\"\")","v":{"$error":"#N/A"}},{"$f":"IF(INDIRECT(\"c\" & (VLOOKUP(Switch!$D$63,$F$2:$G$44,2,FALSE)+ROW()-2))=Switch!$D$63,INDIRECT(\"a\" & (VLOOKUP(Switch!$D$63,$F$2:$G$44,2,FALSE)+ROW()-2)),\"\")","v":{"$error":"#N/A"}},{"$f":"IF(INDIRECT(\"c\" & (VLOOKUP(Switch!$D$64,$F$2:$G$44,2,FALSE)+ROW()-2))=Switch!$D$64,INDIRECT(\"a\" & (VLOOKUP(Switch!$D$64,$F$2:$G$44,2,FALSE)+ROW()-2)),\"\")","v":{"$error":"#N/A"}},{"$f":"IF(INDIRECT(\"c\" & (VLOOKUP(Switch!$D$65,$F$2:$G$44,2,FALSE)+ROW()-2))=Switch!$D$65,INDIRECT(\"a\" & (VLOOKUP(Switch!$D$65,$F$2:$G$44,2,FALSE)+ROW()-2)),\"\")","v":{"$error":"#N/A"}},{"$f":"IF(INDIRECT(\"c\" & (VLOOKUP(Switch!$D$66,$F$2:$G$44,2,FALSE)+ROW()-2))=Switch!$D$66,INDIRECT(\"a\" & (VLOOKUP(Switch!$D$66,$F$2:$G$44,2,FALSE)+ROW()-2)),\"\")","v":{"$error":"#N/A"}}]
["ABSA Absolute Fund C1","AAFC1","ABSA Fund Managers",{"$f":"ROW()","v":81},null,null,{"$f":"VLOOKUP(F81,$C$2:$D$637,2,FALSE)","v":{"$error":"#N/A"}},{"$f":"IF(INDIRECT(\"c\" & (VLOOKUP(Switch!$D$26,$F$2:$G$44,2,FALSE)+ROW()-2))=Switch!$D$26,INDIRECT(\"a\" & (VLOOKUP(Switch!$D$26,$F$2:$G$44,2,FALSE)+ROW()-2)),\"\")","v":{"$error":"#N/A"}},{"$f":"IF(INDIRECT(\"c\" & (VLOOKUP(Switch!$D$27,$F$2:$G$44,2,FALSE)+ROW()-2))=Switch!$D$27,INDIRECT(\"a\" & (VLOOKUP(Switch!$D$27,$F$2:$G$44,2,FALSE)+ROW()-2)),\"\")","v":{"$error":"#N/A"}},{"$f":"IF(INDIRECT(\"c\" & (VLOOKUP(Switch!$D$28,$F$2:$G$44,2,FALSE)+ROW()-2))=Switch!$D$28,INDIRECT(\"a\" & (VLOOKUP(Switch!$D$28,$F$2:$G$44,2,FALSE)+ROW()-2)),\"\")","v":{"$error":"#N/A"}},{"$f":"IF(INDIRECT(\"c\" & (VLOOKUP(Switch!$D$29,$F$2:$G$44,2,FALSE)+ROW()-2))=Switch!$D$29,INDIRECT(\"a\" & (VLOOKUP(Switch!$D$29,$F$2:$G$44,2,FALSE)+ROW()-2)),\"\")","v":{"$error":"#N/A"}},{"$f":"IF(INDIRECT(\"c\" & (VLOOKUP(Switch!$D$30,$F$2:$G$44,2,FALSE)+ROW()-2))=Switch!$D$30,INDIRECT(\"a\" & (VLOOKUP(Switch!$D$30,$F$2:$G$44,2,FALSE)+ROW()-2)),\"\")","v":{"$error":"#N/A"}},{"$f":"IF(INDIRECT(\"c\" & (VLOOKUP(Switch!$D$31,$F$2:$G$44,2,FALSE)+ROW()-2))=Switch!$D$31,INDIRECT(\"a\" & (VLOOKUP(Switch!$D$31,$F$2:$G$44,2,FALSE)+ROW()-2)),\"\")","v":{"$error":"#N/A"}},{"$f":"IF(INDIRECT(\"c\" & (VLOOKUP(Switch!$D$32,$F$2:$G$44,2,FALSE)+ROW()-2))=Switch!$D$32,INDIRECT(\"a\" & (VLOOKUP(Switch!$D$32,$F$2:$G$44,2,FALSE)+ROW()-2)),\"\")","v":{"$error":"#N/A"}},{"$f":"IF(INDIRECT(\"c\" & (VLOOKUP(Switch!$D$33,$F$2:$G$44,2,FALSE)+ROW()-2))=Switch!$D$33,INDIRECT(\"a\" & (VLOOKUP(Switch!$D$33,$F$2:$G$44,2,FALSE)+ROW()-2)),\"\")","v":{"$error":"#N/A"}},{"$f":"IF(INDIRECT(\"c\" & (VLOOKUP(Switch!$D$34,$F$2:$G$44,2,FALSE)+ROW()-2))=Switch!$D$34,INDIRECT(\"a\" & (VLOOKUP(Switch!$D$34,$F$2:$G$44,2,FALSE)+ROW()-2)),\"\")","v":{"$error":"#N/A"}},{"$f":"IF(INDIRECT(\"c\" & (VLOOKUP(Switch!$D$35,$F$2:$G$44,2,FALSE)+ROW()-2))=Switch!$D$35,INDIRECT(\"a\" & (VLOOKUP(Switch!$D$35,$F$2:$G$44,2,FALSE)+ROW()-2)),\"\")","v":{"$error":"#N/A"}},{"$f":"IF(INDIRECT(\"c\" & (VLOOKUP(Switch!$D$36,$F$2:$G$44,2,FALSE)+ROW()-2))=Switch!$D$36,INDIRECT(\"a\" & (VLOOKUP(Switch!$D$36,$F$2:$G$44,2,FALSE)+ROW()-2)),\"\")","v":{"$error":"#N/A"}},{"$f":"IF(INDIRECT(\"c\" & (VLOOKUP(Switch!$D$37,$F$2:$G$44,2,FALSE)+ROW()-2))=Switch!$D$37,INDIRECT(\"a\" & (VLOOKUP(Switch!$D$37,$F$2:$G$44,2,FALSE)+ROW()-2)),\"\")","v":{"$error":"#N/A"}},{"$f":"IF(INDIRECT(\"c\" & (VLOOKUP(Switch!$D$38,$F$2:$G$44,2,FALSE)+ROW()-2))=Switch!$D$38,INDIRECT(\"a\" & (VLOOKUP(Switch!$D$38,$F$2:$G$44,2,FALSE)+ROW()-2)),\"\")","v":{"$error":"#N/A"}},{"$f":"IF(INDIRECT(\"c\" & (VLOOKUP(Switch!$D$39,$F$2:$G$44,2,FALSE)+ROW()-2))=Switch!$D$39,INDIRECT(\"a\" & (VLOOKUP(Switch!$D$39,$F$2:$G$44,2,FALSE)+ROW()-2)),\"\")","v":{"$error":"#N/A"}},{"$f":"IF(INDIRECT(\"c\" & (VLOOKUP(Switch!$D$40,$F$2:$G$44,2,FALSE)+ROW()-2))=Switch!$D$40,INDIRECT(\"a\" & (VLOOKUP(Switch!$D$40,$F$2:$G$44,2,FALSE)+ROW()-2)),\"\")","v":{"$error":"#N/A"}},{"$f":"IF(INDIRECT(\"c\" & (VLOOKUP(Switch!$D$52,$F$2:$G$44,2,FALSE)+ROW()-2))=Switch!$D$52,INDIRECT(\"a\" & (VLOOKUP(Switch!$D$52,$F$2:$G$44,2,FALSE)+ROW()-2)),\"\")","v":{"$error":"#N/A"}},{"$f":"IF(INDIRECT(\"c\" & (VLOOKUP(Switch!$D$53,$F$2:$G$44,2,FALSE)+ROW()-2))=Switch!$D$53,INDIRECT(\"a\" & (VLOOKUP(Switch!$D$53,$F$2:$G$44,2,FALSE)+ROW()-2)),\"\")","v":{"$error":"#N/A"}},{"$f":"IF(INDIRECT(\"c\" & (VLOOKUP(Switch!$D$54,$F$2:$G$44,2,FALSE)+ROW()-2))=Switch!$D$54,INDIRECT(\"a\" & (VLOOKUP(Switch!$D$54,$F$2:$G$44,2,FALSE)+ROW()-2)),\"\")","v":{"$error":"#N/A"}},{"$f":"IF(INDIRECT(\"c\" & (VLOOKUP(Switch!$D$55,$F$2:$G$44,2,FALSE)+ROW()-2))=Switch!$D$55,INDIRECT(\"a\" & (VLOOKUP(Switch!$D$55,$F$2:$G$44,2,FALSE)+ROW()-2)),\"\")","v":{"$error":"#N/A"}},{"$f":"IF(INDIRECT(\"c\" & (VLOOKUP(Switch!$D$56,$F$2:$G$44,2,FALSE)+ROW()-2))=Switch!$D$56,INDIRECT(\"a\" & (VLOOKUP(Switch!$D$56,$F$2:$G$44,2,FALSE)+ROW()-2)),\"\")","v":{"$error":"#N/A"}},{"$f":"IF(INDIRECT(\"c\" & (VLOOKUP(Switch!$D$57,$F$2:$G$44,2,FALSE)+ROW()-2))=Switch!$D$57,INDIRECT(\"a\" & (VLOOKUP(Switch!$D$57,$F$2:$G$44,2,FALSE)+ROW()-2)),\"\")","v":{"$error":"#N/A"}},{"$f":"IF(INDIRECT(\"c\" & (VLOOKUP(Switch!$D$58,$F$2:$G$44,2,FALSE)+ROW()-2))=Switch!$D$58,INDIRECT(\"a\" & (VLOOKUP(Switch!$D$58,$F$2:$G$44,2,FALSE)+ROW()-2)),\"\")","v":{"$error":"#N/A"}},{"$f":"IF(INDIRECT(\"c\" & (VLOOKUP(Switch!$D$59,$F$2:$G$44,2,FALSE)+ROW()-2))=Switch!$D$59,INDIRECT(\"a\" & (VLOOKUP(Switch!$D$59,$F$2:$G$44,2,FALSE)+ROW()-2)),\"\")","v":{"$error":"#N/A"}},{"$f":"IF(INDIRECT(\"c\" & (VLOOKUP(Switch!$D$60,$F$2:$G$44,2,FALSE)+ROW()-2))=Switch!$D$60,INDIRECT(\"a\" & (VLOOKUP(Switch!$D$60,$F$2:$G$44,2,FALSE)+ROW()-2)),\"\")","v":{"$error":"#N/A"}},{"$f":"IF(INDIRECT(\"c\" & (VLOOKUP(Switch!$D$61,$F$2:$G$44,2,FALSE)+ROW()-2))=Switch!$D$61,INDIRECT(\"a\" & (VLOOKUP(Switch!$D$61,$F$2:$G$44,2,FALSE)+ROW()-2)),\"\")","v":{"$error":"#N/A"}},{"$f":"IF(INDIRECT(\"c\" & (VLOOKUP(Switch!$D$62,$F$2:$G$44,2,FALSE)+ROW()-2))=Switch!$D$62,INDIRECT(\"a\" & (VLOOKUP(Switch!$D$62,$F$2:$G$44,2,FALSE)+ROW()-2)),\"\")","v":{"$error":"#N/A"}},{"$f":"IF(INDIRECT(\"c\" & (VLOOKUP(Switch!$D$63,$F$2:$G$44,2,FALSE)+ROW()-2))=Switch!$D$63,INDIRECT(\"a\" & (VLOOKUP(Switch!$D$63,$F$2:$G$44,2,FALSE)+ROW()-2)),\"\")","v":{"$error":"#N/A"}},{"$f":"IF(INDIRECT(\"c\" & (VLOOKUP(Switch!$D$64,$F$2:$G$44,2,FALSE)+ROW()-2))=Switch!$D$64,INDIRECT(\"a\" & (VLOOKUP(Switch!$D$64,$F$2:$G$44,2,FALSE)+ROW()-2)),\"\")","v":{"$error":"#N/A"}},{"$f":"IF(INDIRECT(\"c\" & (VLOOKUP(Switch!$D$65,$F$2:$G$44,2,FALSE)+ROW()-2))=Switch!$D$65,INDIRECT(\"a\" & (VLOOKUP(Switch!$D$65,$F$2:$G$44,2,FALSE)+ROW()-2)),\"\")","v":{"$error":"#N/A"}},{"$f":"IF(INDIRECT(\"c\" & (VLOOKUP(Switch!$D$66,$F$2:$G$44,2,FALSE)+ROW()-2))=Switch!$D$66,INDIRECT(\"a\" & (VLOOKUP(Switch!$D$66,$F$2:$G$44,2,FALSE)+ROW()-2)),\"\")","v":{"$error":"#N/A"}}]
["ABSA Balanced Fund C1","ABFC1","ABSA Fund Managers",{"$f":"ROW()","v":82},null,null,{"$f":"VLOOKUP(F82,$C$2:$D$637,2,FALSE)","v":{"$error":"#N/A"}},{"$f":"IF(INDIRECT(\"c\" & (VLOOKUP(Switch!$D$26,$F$2:$G$44,2,FALSE)+ROW()-2))=Switch!$D$26,INDIRECT(\"a\" & (VLOOKUP(Switch!$D$26,$F$2:$G$44,2,FALSE)+ROW()-2)),\"\")","v":{"$error":"#N/A"}},{"$f":"IF(INDIRECT(\"c\" & (VLOOKUP(Switch!$D$27,$F$2:$G$44,2,FALSE)+ROW()-2))=Switch!$D$27,INDIRECT(\"a\" & (VLOOKUP(Switch!$D$27,$F$2:$G$44,2,FALSE)+ROW()-2)),\"\")","v":{"$error":"#N/A"}},{"$f":"IF(INDIRECT(\"c\" & (VLOOKUP(Switch!$D$28,$F$2:$G$44,2,FALSE)+ROW()-2))=Switch!$D$28,INDIRECT(\"a\" & (VLOOKUP(Switch!$D$28,$F$2:$G$44,2,FALSE)+ROW()-2)),\"\")","v":{"$error":"#N/A"}},{"$f":"IF(INDIRECT(\"c\" & (VLOOKUP(Switch!$D$29,$F$2:$G$44,2,FALSE)+ROW()-2))=Switch!$D$29,INDIRECT(\"a\" & (VLOOKUP(Switch!$D$29,$F$2:$G$44,2,FALSE)+ROW()-2)),\"\")","v":{"$error":"#N/A"}},{"$f":"IF(INDIRECT(\"c\" & (VLOOKUP(Switch!$D$30,$F$2:$G$44,2,FALSE)+ROW()-2))=Switch!$D$30,INDIRECT(\"a\" & (VLOOKUP(Switch!$D$30,$F$2:$G$44,2,FALSE)+ROW()-2)),\"\")","v":{"$error":"#N/A"}},{"$f":"IF(INDIRECT(\"c\" & (VLOOKUP(Switch!$D$31,$F$2:$G$44,2,FALSE)+ROW()-2))=Switch!$D$31,INDIRECT(\"a\" & (VLOOKUP(Switch!$D$31,$F$2:$G$44,2,FALSE)+ROW()-2)),\"\")","v":{"$error":"#N/A"}},{"$f":"IF(INDIRECT(\"c\" & (VLOOKUP(Switch!$D$32,$F$2:$G$44,2,FALSE)+ROW()-2))=Switch!$D$32,INDIRECT(\"a\" & (VLOOKUP(Switch!$D$32,$F$2:$G$44,2,FALSE)+ROW()-2)),\"\")","v":{"$error":"#N/A"}},{"$f":"IF(INDIRECT(\"c\" & (VLOOKUP(Switch!$D$33,$F$2:$G$44,2,FALSE)+ROW()-2))=Switch!$D$33,INDIRECT(\"a\" & (VLOOKUP(Switch!$D$33,$F$2:$G$44,2,FALSE)+ROW()-2)),\"\")","v":{"$error":"#N/A"}},{"$f":"IF(INDIRECT(\"c\" & (VLOOKUP(Switch!$D$34,$F$2:$G$44,2,FALSE)+ROW()-2))=Switch!$D$34,INDIRECT(\"a\" & (VLOOKUP(Switch!$D$34,$F$2:$G$44,2,FALSE)+ROW()-2)),\"\")","v":{"$error":"#N/A"}},{"$f":"IF(INDIRECT(\"c\" & (VLOOKUP(Switch!$D$35,$F$2:$G$44,2,FALSE)+ROW()-2))=Switch!$D$35,INDIRECT(\"a\" & (VLOOKUP(Switch!$D$35,$F$2:$G$44,2,FALSE)+ROW()-2)),\"\")","v":{"$error":"#N/A"}},{"$f":"IF(INDIRECT(\"c\" & (VLOOKUP(Switch!$D$36,$F$2:$G$44,2,FALSE)+ROW()-2))=Switch!$D$36,INDIRECT(\"a\" & (VLOOKUP(Switch!$D$36,$F$2:$G$44,2,FALSE)+ROW()-2)),\"\")","v":{"$error":"#N/A"}},{"$f":"IF(INDIRECT(\"c\" & (VLOOKUP(Switch!$D$37,$F$2:$G$44,2,FALSE)+ROW()-2))=Switch!$D$37,INDIRECT(\"a\" & (VLOOKUP(Switch!$D$37,$F$2:$G$44,2,FALSE)+ROW()-2)),\"\")","v":{"$error":"#N/A"}},{"$f":"IF(INDIRECT(\"c\" & (VLOOKUP(Switch!$D$38,$F$2:$G$44,2,FALSE)+ROW()-2))=Switch!$D$38,INDIRECT(\"a\" & (VLOOKUP(Switch!$D$38,$F$2:$G$44,2,FALSE)+ROW()-2)),\"\")","v":{"$error":"#N/A"}},{"$f":"IF(INDIRECT(\"c\" & (VLOOKUP(Switch!$D$39,$F$2:$G$44,2,FALSE)+ROW()-2))=Switch!$D$39,INDIRECT(\"a\" & (VLOOKUP(Switch!$D$39,$F$2:$G$44,2,FALSE)+ROW()-2)),\"\")","v":{"$error":"#N/A"}},{"$f":"IF(INDIRECT(\"c\" & (VLOOKUP(Switch!$D$40,$F$2:$G$44,2,FALSE)+ROW()-2))=Switch!$D$40,INDIRECT(\"a\" & (VLOOKUP(Switch!$D$40,$F$2:$G$44,2,FALSE)+ROW()-2)),\"\")","v":{"$error":"#N/A"}},{"$f":"IF(INDIRECT(\"c\" & (VLOOKUP(Switch!$D$52,$F$2:$G$44,2,FALSE)+ROW()-2))=Switch!$D$52,INDIRECT(\"a\" & (VLOOKUP(Switch!$D$52,$F$2:$G$44,2,FALSE)+ROW()-2)),\"\")","v":{"$error":"#N/A"}},{"$f":"IF(INDIRECT(\"c\" & (VLOOKUP(Switch!$D$53,$F$2:$G$44,2,FALSE)+ROW()-2))=Switch!$D$53,INDIRECT(\"a\" & (VLOOKUP(Switch!$D$53,$F$2:$G$44,2,FALSE)+ROW()-2)),\"\")","v":{"$error":"#N/A"}},{"$f":"IF(INDIRECT(\"c\" & (VLOOKUP(Switch!$D$54,$F$2:$G$44,2,FALSE)+ROW()-2))=Switch!$D$54,INDIRECT(\"a\" & (VLOOKUP(Switch!$D$54,$F$2:$G$44,2,FALSE)+ROW()-2)),\"\")","v":{"$error":"#N/A"}},{"$f":"IF(INDIRECT(\"c\" & (VLOOKUP(Switch!$D$55,$F$2:$G$44,2,FALSE)+ROW()-2))=Switch!$D$55,INDIRECT(\"a\" & (VLOOKUP(Switch!$D$55,$F$2:$G$44,2,FALSE)+ROW()-2)),\"\")","v":{"$error":"#N/A"}},{"$f":"IF(INDIRECT(\"c\" & (VLOOKUP(Switch!$D$56,$F$2:$G$44,2,FALSE)+ROW()-2))=Switch!$D$56,INDIRECT(\"a\" & (VLOOKUP(Switch!$D$56,$F$2:$G$44,2,FALSE)+ROW()-2)),\"\")","v":{"$error":"#N/A"}},{"$f":"IF(INDIRECT(\"c\" & (VLOOKUP(Switch!$D$57,$F$2:$G$44,2,FALSE)+ROW()-2))=Switch!$D$57,INDIRECT(\"a\" & (VLOOKUP(Switch!$D$57,$F$2:$G$44,2,FALSE)+ROW()-2)),\"\")","v":{"$error":"#N/A"}},{"$f":"IF(INDIRECT(\"c\" & (VLOOKUP(Switch!$D$58,$F$2:$G$44,2,FALSE)+ROW()-2))=Switch!$D$58,INDIRECT(\"a\" & (VLOOKUP(Switch!$D$58,$F$2:$G$44,2,FALSE)+ROW()-2)),\"\")","v":{"$error":"#N/A"}},{"$f":"IF(INDIRECT(\"c\" & (VLOOKUP(Switch!$D$59,$F$2:$G$44,2,FALSE)+ROW()-2))=Switch!$D$59,INDIRECT(\"a\" & (VLOOKUP(Switch!$D$59,$F$2:$G$44,2,FALSE)+ROW()-2)),\"\")","v":{"$error":"#N/A"}},{"$f":"IF(INDIRECT(\"c\" & (VLOOKUP(Switch!$D$60,$F$2:$G$44,2,FALSE)+ROW()-2))=Switch!$D$60,INDIRECT(\"a\" & (VLOOKUP(Switch!$D$60,$F$2:$G$44,2,FALSE)+ROW()-2)),\"\")","v":{"$error":"#N/A"}},{"$f":"IF(INDIRECT(\"c\" & (VLOOKUP(Switch!$D$61,$F$2:$G$44,2,FALSE)+ROW()-2))=Switch!$D$61,INDIRECT(\"a\" & (VLOOKUP(Switch!$D$61,$F$2:$G$44,2,FALSE)+ROW()-2)),\"\")","v":{"$error":"#N/A"}},{"$f":"IF(INDIRECT(\"c\" & (VLOOKUP(Switch!$D$62,$F$2:$G$44,2,FALSE)+ROW()-2))=Switch!$D$62,INDIRECT(\"a\" & (VLOOKUP(Switch!$D$62,$F$2:$G$44,2,FALSE)+ROW()-2)),\"\")","v":{"$error":"#N/A"}},{"$f":"IF(INDIRECT(\"c\" & (VLOOKUP(Switch!$D$63,$F$2:$G$44,2,FALSE)+ROW()-2))=Switch!$D$63,INDIRECT(\"a\" & (VLOOKUP(Switch!$D$63,$F$2:$G$44,2,FALSE)+ROW()-2)),\"\")","v":{"$error":"#N/A"}},{"$f":"IF(INDIRECT(\"c\" & (VLOOKUP(Switch!$D$64,$F$2:$G$44,2,FALSE)+ROW()-2))=Switch!$D$64,INDIRECT(\"a\" & (VLOOKUP(Switch!$D$64,$F$2:$G$44,2,FALSE)+ROW()-2)),\"\")","v":{"$error":"#N/A"}},{"$f":"IF(INDIRECT(\"c\" & (VLOOKUP(Switch!$D$65,$F$2:$G$44,2,FALSE)+ROW()-2))=Switch!$D$65,INDIRECT(\"a\" & (VLOOKUP(Switch!$D$65,$F$2:$G$44,2,FALSE)+ROW()-2)),\"\")","v":{"$error":"#N/A"}},{"$f":"IF(INDIRECT(\"c\" & (VLOOKUP(Switch!$D$66,$F$2:$G$44,2,FALSE)+ROW()-2))=Switch!$D$66,INDIRECT(\"a\" & (VLOOKUP(Switch!$D$66,$F$2:$G$44,2,FALSE)+ROW()-2)),\"\")","v":{"$error":"#N/A"}}]
["Absa Bond Fund C","ABBCC","ABSA Fund Managers",{"$f":"ROW()","v":83},null,null,{"$f":"VLOOKUP(F83,$C$2:$D$637,2,FALSE)","v":{"$error":"#N/A"}},{"$f":"IF(INDIRECT(\"c\" & (VLOOKUP(Switch!$D$26,$F$2:$G$44,2,FALSE)+ROW()-2))=Switch!$D$26,INDIRECT(\"a\" & (VLOOKUP(Switch!$D$26,$F$2:$G$44,2,FALSE)+ROW()-2)),\"\")","v":{"$error":"#N/A"}},{"$f":"IF(INDIRECT(\"c\" & (VLOOKUP(Switch!$D$27,$F$2:$G$44,2,FALSE)+ROW()-2))=Switch!$D$27,INDIRECT(\"a\" & (VLOOKUP(Switch!$D$27,$F$2:$G$44,2,FALSE)+ROW()-2)),\"\")","v":{"$error":"#N/A"}},{"$f":"IF(INDIRECT(\"c\" & (VLOOKUP(Switch!$D$28,$F$2:$G$44,2,FALSE)+ROW()-2))=Switch!$D$28,INDIRECT(\"a\" & (VLOOKUP(Switch!$D$28,$F$2:$G$44,2,FALSE)+ROW()-2)),\"\")","v":{"$error":"#N/A"}},{"$f":"IF(INDIRECT(\"c\" & (VLOOKUP(Switch!$D$29,$F$2:$G$44,2,FALSE)+ROW()-2))=Switch!$D$29,INDIRECT(\"a\" & (VLOOKUP(Switch!$D$29,$F$2:$G$44,2,FALSE)+ROW()-2)),\"\")","v":{"$error":"#N/A"}},{"$f":"IF(INDIRECT(\"c\" & (VLOOKUP(Switch!$D$30,$F$2:$G$44,2,FALSE)+ROW()-2))=Switch!$D$30,INDIRECT(\"a\" & (VLOOKUP(Switch!$D$30,$F$2:$G$44,2,FALSE)+ROW()-2)),\"\")","v":{"$error":"#N/A"}},{"$f":"IF(INDIRECT(\"c\" & (VLOOKUP(Switch!$D$31,$F$2:$G$44,2,FALSE)+ROW()-2))=Switch!$D$31,INDIRECT(\"a\" & (VLOOKUP(Switch!$D$31,$F$2:$G$44,2,FALSE)+ROW()-2)),\"\")","v":{"$error":"#N/A"}},{"$f":"IF(INDIRECT(\"c\" & (VLOOKUP(Switch!$D$32,$F$2:$G$44,2,FALSE)+ROW()-2))=Switch!$D$32,INDIRECT(\"a\" & (VLOOKUP(Switch!$D$32,$F$2:$G$44,2,FALSE)+ROW()-2)),\"\")","v":{"$error":"#N/A"}},{"$f":"IF(INDIRECT(\"c\" & (VLOOKUP(Switch!$D$33,$F$2:$G$44,2,FALSE)+ROW()-2))=Switch!$D$33,INDIRECT(\"a\" & (VLOOKUP(Switch!$D$33,$F$2:$G$44,2,FALSE)+ROW()-2)),\"\")","v":{"$error":"#N/A"}},{"$f":"IF(INDIRECT(\"c\" & (VLOOKUP(Switch!$D$34,$F$2:$G$44,2,FALSE)+ROW()-2))=Switch!$D$34,INDIRECT(\"a\" & (VLOOKUP(Switch!$D$34,$F$2:$G$44,2,FALSE)+ROW()-2)),\"\")","v":{"$error":"#N/A"}},{"$f":"IF(INDIRECT(\"c\" & (VLOOKUP(Switch!$D$35,$F$2:$G$44,2,FALSE)+ROW()-2))=Switch!$D$35,INDIRECT(\"a\" & (VLOOKUP(Switch!$D$35,$F$2:$G$44,2,FALSE)+ROW()-2)),\"\")","v":{"$error":"#N/A"}},{"$f":"IF(INDIRECT(\"c\" & (VLOOKUP(Switch!$D$36,$F$2:$G$44,2,FALSE)+ROW()-2))=Switch!$D$36,INDIRECT(\"a\" & (VLOOKUP(Switch!$D$36,$F$2:$G$44,2,FALSE)+ROW()-2)),\"\")","v":{"$error":"#N/A"}},{"$f":"IF(INDIRECT(\"c\" & (VLOOKUP(Switch!$D$37,$F$2:$G$44,2,FALSE)+ROW()-2))=Switch!$D$37,INDIRECT(\"a\" & (VLOOKUP(Switch!$D$37,$F$2:$G$44,2,FALSE)+ROW()-2)),\"\")","v":{"$error":"#N/A"}},{"$f":"IF(INDIRECT(\"c\" & (VLOOKUP(Switch!$D$38,$F$2:$G$44,2,FALSE)+ROW()-2))=Switch!$D$38,INDIRECT(\"a\" & (VLOOKUP(Switch!$D$38,$F$2:$G$44,2,FALSE)+ROW()-2)),\"\")","v":{"$error":"#N/A"}},{"$f":"IF(INDIRECT(\"c\" & (VLOOKUP(Switch!$D$39,$F$2:$G$44,2,FALSE)+ROW()-2))=Switch!$D$39,INDIRECT(\"a\" & (VLOOKUP(Switch!$D$39,$F$2:$G$44,2,FALSE)+ROW()-2)),\"\")","v":{"$error":"#N/A"}},{"$f":"IF(INDIRECT(\"c\" & (VLOOKUP(Switch!$D$40,$F$2:$G$44,2,FALSE)+ROW()-2))=Switch!$D$40,INDIRECT(\"a\" & (VLOOKUP(Switch!$D$40,$F$2:$G$44,2,FALSE)+ROW()-2)),\"\")","v":{"$error":"#N/A"}},{"$f":"IF(INDIRECT(\"c\" & (VLOOKUP(Switch!$D$52,$F$2:$G$44,2,FALSE)+ROW()-2))=Switch!$D$52,INDIRECT(\"a\" & (VLOOKUP(Switch!$D$52,$F$2:$G$44,2,FALSE)+ROW()-2)),\"\")","v":{"$error":"#N/A"}},{"$f":"IF(INDIRECT(\"c\" & (VLOOKUP(Switch!$D$53,$F$2:$G$44,2,FALSE)+ROW()-2))=Switch!$D$53,INDIRECT(\"a\" & (VLOOKUP(Switch!$D$53,$F$2:$G$44,2,FALSE)+ROW()-2)),\"\")","v":{"$error":"#N/A"}},{"$f":"IF(INDIRECT(\"c\" & (VLOOKUP(Switch!$D$54,$F$2:$G$44,2,FALSE)+ROW()-2))=Switch!$D$54,INDIRECT(\"a\" & (VLOOKUP(Switch!$D$54,$F$2:$G$44,2,FALSE)+ROW()-2)),\"\")","v":{"$error":"#N/A"}},{"$f":"IF(INDIRECT(\"c\" & (VLOOKUP(Switch!$D$55,$F$2:$G$44,2,FALSE)+ROW()-2))=Switch!$D$55,INDIRECT(\"a\" & (VLOOKUP(Switch!$D$55,$F$2:$G$44,2,FALSE)+ROW()-2)),\"\")","v":{"$error":"#N/A"}},{"$f":"IF(INDIRECT(\"c\" & (VLOOKUP(Switch!$D$56,$F$2:$G$44,2,FALSE)+ROW()-2))=Switch!$D$56,INDIRECT(\"a\" & (VLOOKUP(Switch!$D$56,$F$2:$G$44,2,FALSE)+ROW()-2)),\"\")","v":{"$error":"#N/A"}},{"$f":"IF(INDIRECT(\"c\" & (VLOOKUP(Switch!$D$57,$F$2:$G$44,2,FALSE)+ROW()-2))=Switch!$D$57,INDIRECT(\"a\" & (VLOOKUP(Switch!$D$57,$F$2:$G$44,2,FALSE)+ROW()-2)),\"\")","v":{"$error":"#N/A"}},{"$f":"IF(INDIRECT(\"c\" & (VLOOKUP(Switch!$D$58,$F$2:$G$44,2,FALSE)+ROW()-2))=Switch!$D$58,INDIRECT(\"a\" & (VLOOKUP(Switch!$D$58,$F$2:$G$44,2,FALSE)+ROW()-2)),\"\")","v":{"$error":"#N/A"}},{"$f":"IF(INDIRECT(\"c\" & (VLOOKUP(Switch!$D$59,$F$2:$G$44,2,FALSE)+ROW()-2))=Switch!$D$59,INDIRECT(\"a\" & (VLOOKUP(Switch!$D$59,$F$2:$G$44,2,FALSE)+ROW()-2)),\"\")","v":{"$error":"#N/A"}},{"$f":"IF(INDIRECT(\"c\" & (VLOOKUP(Switch!$D$60,$F$2:$G$44,2,FALSE)+ROW()-2))=Switch!$D$60,INDIRECT(\"a\" & (VLOOKUP(Switch!$D$60,$F$2:$G$44,2,FALSE)+ROW()-2)),\"\")","v":{"$error":"#N/A"}},{"$f":"IF(INDIRECT(\"c\" & (VLOOKUP(Switch!$D$61,$F$2:$G$44,2,FALSE)+ROW()-2))=Switch!$D$61,INDIRECT(\"a\" & (VLOOKUP(Switch!$D$61,$F$2:$G$44,2,FALSE)+ROW()-2)),\"\")","v":{"$error":"#N/A"}},{"$f":"IF(INDIRECT(\"c\" & (VLOOKUP(Switch!$D$62,$F$2:$G$44,2,FALSE)+ROW()-2))=Switch!$D$62,INDIRECT(\"a\" & (VLOOKUP(Switch!$D$62,$F$2:$G$44,2,FALSE)+ROW()-2)),\"\")","v":{"$error":"#N/A"}},{"$f":"IF(INDIRECT(\"c\" & (VLOOKUP(Switch!$D$63,$F$2:$G$44,2,FALSE)+ROW()-2))=Switch!$D$63,INDIRECT(\"a\" & (VLOOKUP(Switch!$D$63,$F$2:$G$44,2,FALSE)+ROW()-2)),\"\")","v":{"$error":"#N/A"}},{"$f":"IF(INDIRECT(\"c\" & (VLOOKUP(Switch!$D$64,$F$2:$G$44,2,FALSE)+ROW()-2))=Switch!$D$64,INDIRECT(\"a\" & (VLOOKUP(Switch!$D$64,$F$2:$G$44,2,FALSE)+ROW()-2)),\"\")","v":{"$error":"#N/A"}},{"$f":"IF(INDIRECT(\"c\" & (VLOOKUP(Switch!$D$65,$F$2:$G$44,2,FALSE)+ROW()-2))=Switch!$D$65,INDIRECT(\"a\" & (VLOOKUP(Switch!$D$65,$F$2:$G$44,2,FALSE)+ROW()-2)),\"\")","v":{"$error":"#N/A"}},{"$f":"IF(INDIRECT(\"c\" & (VLOOKUP(Switch!$D$66,$F$2:$G$44,2,FALSE)+ROW()-2))=Switch!$D$66,INDIRECT(\"a\" & (VLOOKUP(Switch!$D$66,$F$2:$G$44,2,FALSE)+ROW()-2)),\"\")","v":{"$error":"#N/A"}}]
["ABSA Global Value Feeder fund R","ABST","ABSA Fund Managers",{"$f":"ROW()","v":84},null,null,{"$f":"VLOOKUP(F84,$C$2:$D$637,2,FALSE)","v":{"$error":"#N/A"}},{"$f":"IF(INDIRECT(\"c\" & (VLOOKUP(Switch!$D$26,$F$2:$G$44,2,FALSE)+ROW()-2))=Switch!$D$26,INDIRECT(\"a\" & (VLOOKUP(Switch!$D$26,$F$2:$G$44,2,FALSE)+ROW()-2)),\"\")","v":{"$error":"#N/A"}},{"$f":"IF(INDIRECT(\"c\" & (VLOOKUP(Switch!$D$27,$F$2:$G$44,2,FALSE)+ROW()-2))=Switch!$D$27,INDIRECT(\"a\" & (VLOOKUP(Switch!$D$27,$F$2:$G$44,2,FALSE)+ROW()-2)),\"\")","v":{"$error":"#N/A"}},{"$f":"IF(INDIRECT(\"c\" & (VLOOKUP(Switch!$D$28,$F$2:$G$44,2,FALSE)+ROW()-2))=Switch!$D$28,INDIRECT(\"a\" & (VLOOKUP(Switch!$D$28,$F$2:$G$44,2,FALSE)+ROW()-2)),\"\")","v":{"$error":"#N/A"}},{"$f":"IF(INDIRECT(\"c\" & (VLOOKUP(Switch!$D$29,$F$2:$G$44,2,FALSE)+ROW()-2))=Switch!$D$29,INDIRECT(\"a\" & (VLOOKUP(Switch!$D$29,$F$2:$G$44,2,FALSE)+ROW()-2)),\"\")","v":{"$error":"#N/A"}},{"$f":"IF(INDIRECT(\"c\" & (VLOOKUP(Switch!$D$30,$F$2:$G$44,2,FALSE)+ROW()-2))=Switch!$D$30,INDIRECT(\"a\" & (VLOOKUP(Switch!$D$30,$F$2:$G$44,2,FALSE)+ROW()-2)),\"\")","v":{"$error":"#N/A"}},{"$f":"IF(INDIRECT(\"c\" & (VLOOKUP(Switch!$D$31,$F$2:$G$44,2,FALSE)+ROW()-2))=Switch!$D$31,INDIRECT(\"a\" & (VLOOKUP(Switch!$D$31,$F$2:$G$44,2,FALSE)+ROW()-2)),\"\")","v":{"$error":"#N/A"}},{"$f":"IF(INDIRECT(\"c\" & (VLOOKUP(Switch!$D$32,$F$2:$G$44,2,FALSE)+ROW()-2))=Switch!$D$32,INDIRECT(\"a\" & (VLOOKUP(Switch!$D$32,$F$2:$G$44,2,FALSE)+ROW()-2)),\"\")","v":{"$error":"#N/A"}},{"$f":"IF(INDIRECT(\"c\" & (VLOOKUP(Switch!$D$33,$F$2:$G$44,2,FALSE)+ROW()-2))=Switch!$D$33,INDIRECT(\"a\" & (VLOOKUP(Switch!$D$33,$F$2:$G$44,2,FALSE)+ROW()-2)),\"\")","v":{"$error":"#N/A"}},{"$f":"IF(INDIRECT(\"c\" & (VLOOKUP(Switch!$D$34,$F$2:$G$44,2,FALSE)+ROW()-2))=Switch!$D$34,INDIRECT(\"a\" & (VLOOKUP(Switch!$D$34,$F$2:$G$44,2,FALSE)+ROW()-2)),\"\")","v":{"$error":"#N/A"}},{"$f":"IF(INDIRECT(\"c\" & (VLOOKUP(Switch!$D$35,$F$2:$G$44,2,FALSE)+ROW()-2))=Switch!$D$35,INDIRECT(\"a\" & (VLOOKUP(Switch!$D$35,$F$2:$G$44,2,FALSE)+ROW()-2)),\"\")","v":{"$error":"#N/A"}},{"$f":"IF(INDIRECT(\"c\" & (VLOOKUP(Switch!$D$36,$F$2:$G$44,2,FALSE)+ROW()-2))=Switch!$D$36,INDIRECT(\"a\" & (VLOOKUP(Switch!$D$36,$F$2:$G$44,2,FALSE)+ROW()-2)),\"\")","v":{"$error":"#N/A"}},{"$f":"IF(INDIRECT(\"c\" & (VLOOKUP(Switch!$D$37,$F$2:$G$44,2,FALSE)+ROW()-2))=Switch!$D$37,INDIRECT(\"a\" & (VLOOKUP(Switch!$D$37,$F$2:$G$44,2,FALSE)+ROW()-2)),\"\")","v":{"$error":"#N/A"}},{"$f":"IF(INDIRECT(\"c\" & (VLOOKUP(Switch!$D$38,$F$2:$G$44,2,FALSE)+ROW()-2))=Switch!$D$38,INDIRECT(\"a\" & (VLOOKUP(Switch!$D$38,$F$2:$G$44,2,FALSE)+ROW()-2)),\"\")","v":{"$error":"#N/A"}},{"$f":"IF(INDIRECT(\"c\" & (VLOOKUP(Switch!$D$39,$F$2:$G$44,2,FALSE)+ROW()-2))=Switch!$D$39,INDIRECT(\"a\" & (VLOOKUP(Switch!$D$39,$F$2:$G$44,2,FALSE)+ROW()-2)),\"\")","v":{"$error":"#N/A"}},{"$f":"IF(INDIRECT(\"c\" & (VLOOKUP(Switch!$D$40,$F$2:$G$44,2,FALSE)+ROW()-2))=Switch!$D$40,INDIRECT(\"a\" & (VLOOKUP(Switch!$D$40,$F$2:$G$44,2,FALSE)+ROW()-2)),\"\")","v":{"$error":"#N/A"}},{"$f":"IF(INDIRECT(\"c\" & (VLOOKUP(Switch!$D$52,$F$2:$G$44,2,FALSE)+ROW()-2))=Switch!$D$52,INDIRECT(\"a\" & (VLOOKUP(Switch!$D$52,$F$2:$G$44,2,FALSE)+ROW()-2)),\"\")","v":{"$error":"#N/A"}},{"$f":"IF(INDIRECT(\"c\" & (VLOOKUP(Switch!$D$53,$F$2:$G$44,2,FALSE)+ROW()-2))=Switch!$D$53,INDIRECT(\"a\" & (VLOOKUP(Switch!$D$53,$F$2:$G$44,2,FALSE)+ROW()-2)),\"\")","v":{"$error":"#N/A"}},{"$f":"IF(INDIRECT(\"c\" & (VLOOKUP(Switch!$D$54,$F$2:$G$44,2,FALSE)+ROW()-2))=Switch!$D$54,INDIRECT(\"a\" & (VLOOKUP(Switch!$D$54,$F$2:$G$44,2,FALSE)+ROW()-2)),\"\")","v":{"$error":"#N/A"}},{"$f":"IF(INDIRECT(\"c\" & (VLOOKUP(Switch!$D$55,$F$2:$G$44,2,FALSE)+ROW()-2))=Switch!$D$55,INDIRECT(\"a\" & (VLOOKUP(Switch!$D$55,$F$2:$G$44,2,FALSE)+ROW()-2)),\"\")","v":{"$error":"#N/A"}},{"$f":"IF(INDIRECT(\"c\" & (VLOOKUP(Switch!$D$56,$F$2:$G$44,2,FALSE)+ROW()-2))=Switch!$D$56,INDIRECT(\"a\" & (VLOOKUP(Switch!$D$56,$F$2:$G$44,2,FALSE)+ROW()-2)),\"\")","v":{"$error":"#N/A"}},{"$f":"IF(INDIRECT(\"c\" & (VLOOKUP(Switch!$D$57,$F$2:$G$44,2,FALSE)+ROW()-2))=Switch!$D$57,INDIRECT(\"a\" & (VLOOKUP(Switch!$D$57,$F$2:$G$44,2,FALSE)+ROW()-2)),\"\")","v":{"$error":"#N/A"}},{"$f":"IF(INDIRECT(\"c\" & (VLOOKUP(Switch!$D$58,$F$2:$G$44,2,FALSE)+ROW()-2))=Switch!$D$58,INDIRECT(\"a\" & (VLOOKUP(Switch!$D$58,$F$2:$G$44,2,FALSE)+ROW()-2)),\"\")","v":{"$error":"#N/A"}},{"$f":"IF(INDIRECT(\"c\" & (VLOOKUP(Switch!$D$59,$F$2:$G$44,2,FALSE)+ROW()-2))=Switch!$D$59,INDIRECT(\"a\" & (VLOOKUP(Switch!$D$59,$F$2:$G$44,2,FALSE)+ROW()-2)),\"\")","v":{"$error":"#N/A"}},{"$f":"IF(INDIRECT(\"c\" & (VLOOKUP(Switch!$D$60,$F$2:$G$44,2,FALSE)+ROW()-2))=Switch!$D$60,INDIRECT(\"a\" & (VLOOKUP(Switch!$D$60,$F$2:$G$44,2,FALSE)+ROW()-2)),\"\")","v":{"$error":"#N/A"}},{"$f":"IF(INDIRECT(\"c\" & (VLOOKUP(Switch!$D$61,$F$2:$G$44,2,FALSE)+ROW()-2))=Switch!$D$61,INDIRECT(\"a\" & (VLOOKUP(Switch!$D$61,$F$2:$G$44,2,FALSE)+ROW()-2)),\"\")","v":{"$error":"#N/A"}},{"$f":"IF(INDIRECT(\"c\" & (VLOOKUP(Switch!$D$62,$F$2:$G$44,2,FALSE)+ROW()-2))=Switch!$D$62,INDIRECT(\"a\" & (VLOOKUP(Switch!$D$62,$F$2:$G$44,2,FALSE)+ROW()-2)),\"\")","v":{"$error":"#N/A"}},{"$f":"IF(INDIRECT(\"c\" & (VLOOKUP(Switch!$D$63,$F$2:$G$44,2,FALSE)+ROW()-2))=Switch!$D$63,INDIRECT(\"a\" & (VLOOKUP(Switch!$D$63,$F$2:$G$44,2,FALSE)+ROW()-2)),\"\")","v":{"$error":"#N/A"}},{"$f":"IF(INDIRECT(\"c\" & (VLOOKUP(Switch!$D$64,$F$2:$G$44,2,FALSE)+ROW()-2))=Switch!$D$64,INDIRECT(\"a\" & (VLOOKUP(Switch!$D$64,$F$2:$G$44,2,FALSE)+ROW()-2)),\"\")","v":{"$error":"#N/A"}},{"$f":"IF(INDIRECT(\"c\" & (VLOOKUP(Switch!$D$65,$F$2:$G$44,2,FALSE)+ROW()-2))=Switch!$D$65,INDIRECT(\"a\" & (VLOOKUP(Switch!$D$65,$F$2:$G$44,2,FALSE)+ROW()-2)),\"\")","v":{"$error":"#N/A"}},{"$f":"IF(INDIRECT(\"c\" & (VLOOKUP(Switch!$D$66,$F$2:$G$44,2,FALSE)+ROW()-2))=Switch!$D$66,INDIRECT(\"a\" & (VLOOKUP(Switch!$D$66,$F$2:$G$44,2,FALSE)+ROW()-2)),\"\")","v":{"$error":"#N/A"}}]
["ABSA Property Equity Fund C1","ABPC1","ABSA Fund Managers",{"$f":"ROW()","v":85},null,null,{"$f":"VLOOKUP(F85,$C$2:$D$637,2,FALSE)","v":{"$error":"#N/A"}},{"$f":"IF(INDIRECT(\"c\" & (VLOOKUP(Switch!$D$26,$F$2:$G$44,2,FALSE)+ROW()-2))=Switch!$D$26,INDIRECT(\"a\" & (VLOOKUP(Switch!$D$26,$F$2:$G$44,2,FALSE)+ROW()-2)),\"\")","v":{"$error":"#N/A"}},{"$f":"IF(INDIRECT(\"c\" & (VLOOKUP(Switch!$D$27,$F$2:$G$44,2,FALSE)+ROW()-2))=Switch!$D$27,INDIRECT(\"a\" & (VLOOKUP(Switch!$D$27,$F$2:$G$44,2,FALSE)+ROW()-2)),\"\")","v":{"$error":"#N/A"}},{"$f":"IF(INDIRECT(\"c\" & (VLOOKUP(Switch!$D$28,$F$2:$G$44,2,FALSE)+ROW()-2))=Switch!$D$28,INDIRECT(\"a\" & (VLOOKUP(Switch!$D$28,$F$2:$G$44,2,FALSE)+ROW()-2)),\"\")","v":{"$error":"#N/A"}},{"$f":"IF(INDIRECT(\"c\" & (VLOOKUP(Switch!$D$29,$F$2:$G$44,2,FALSE)+ROW()-2))=Switch!$D$29,INDIRECT(\"a\" & (VLOOKUP(Switch!$D$29,$F$2:$G$44,2,FALSE)+ROW()-2)),\"\")","v":{"$error":"#N/A"}},{"$f":"IF(INDIRECT(\"c\" & (VLOOKUP(Switch!$D$30,$F$2:$G$44,2,FALSE)+ROW()-2))=Switch!$D$30,INDIRECT(\"a\" & (VLOOKUP(Switch!$D$30,$F$2:$G$44,2,FALSE)+ROW()-2)),\"\")","v":{"$error":"#N/A"}},{"$f":"IF(INDIRECT(\"c\" & (VLOOKUP(Switch!$D$31,$F$2:$G$44,2,FALSE)+ROW()-2))=Switch!$D$31,INDIRECT(\"a\" & (VLOOKUP(Switch!$D$31,$F$2:$G$44,2,FALSE)+ROW()-2)),\"\")","v":{"$error":"#N/A"}},{"$f":"IF(INDIRECT(\"c\" & (VLOOKUP(Switch!$D$32,$F$2:$G$44,2,FALSE)+ROW()-2))=Switch!$D$32,INDIRECT(\"a\" & (VLOOKUP(Switch!$D$32,$F$2:$G$44,2,FALSE)+ROW()-2)),\"\")","v":{"$error":"#N/A"}},{"$f":"IF(INDIRECT(\"c\" & (VLOOKUP(Switch!$D$33,$F$2:$G$44,2,FALSE)+ROW()-2))=Switch!$D$33,INDIRECT(\"a\" & (VLOOKUP(Switch!$D$33,$F$2:$G$44,2,FALSE)+ROW()-2)),\"\")","v":{"$error":"#N/A"}},{"$f":"IF(INDIRECT(\"c\" & (VLOOKUP(Switch!$D$34,$F$2:$G$44,2,FALSE)+ROW()-2))=Switch!$D$34,INDIRECT(\"a\" & (VLOOKUP(Switch!$D$34,$F$2:$G$44,2,FALSE)+ROW()-2)),\"\")","v":{"$error":"#N/A"}},{"$f":"IF(INDIRECT(\"c\" & (VLOOKUP(Switch!$D$35,$F$2:$G$44,2,FALSE)+ROW()-2))=Switch!$D$35,INDIRECT(\"a\" & (VLOOKUP(Switch!$D$35,$F$2:$G$44,2,FALSE)+ROW()-2)),\"\")","v":{"$error":"#N/A"}},{"$f":"IF(INDIRECT(\"c\" & (VLOOKUP(Switch!$D$36,$F$2:$G$44,2,FALSE)+ROW()-2))=Switch!$D$36,INDIRECT(\"a\" & (VLOOKUP(Switch!$D$36,$F$2:$G$44,2,FALSE)+ROW()-2)),\"\")","v":{"$error":"#N/A"}},{"$f":"IF(INDIRECT(\"c\" & (VLOOKUP(Switch!$D$37,$F$2:$G$44,2,FALSE)+ROW()-2))=Switch!$D$37,INDIRECT(\"a\" & (VLOOKUP(Switch!$D$37,$F$2:$G$44,2,FALSE)+ROW()-2)),\"\")","v":{"$error":"#N/A"}},{"$f":"IF(INDIRECT(\"c\" & (VLOOKUP(Switch!$D$38,$F$2:$G$44,2,FALSE)+ROW()-2))=Switch!$D$38,INDIRECT(\"a\" & (VLOOKUP(Switch!$D$38,$F$2:$G$44,2,FALSE)+ROW()-2)),\"\")","v":{"$error":"#N/A"}},{"$f":"IF(INDIRECT(\"c\" & (VLOOKUP(Switch!$D$39,$F$2:$G$44,2,FALSE)+ROW()-2))=Switch!$D$39,INDIRECT(\"a\" & (VLOOKUP(Switch!$D$39,$F$2:$G$44,2,FALSE)+ROW()-2)),\"\")","v":{"$error":"#N/A"}},{"$f":"IF(INDIRECT(\"c\" & (VLOOKUP(Switch!$D$40,$F$2:$G$44,2,FALSE)+ROW()-2))=Switch!$D$40,INDIRECT(\"a\" & (VLOOKUP(Switch!$D$40,$F$2:$G$44,2,FALSE)+ROW()-2)),\"\")","v":{"$error":"#N/A"}},{"$f":"IF(INDIRECT(\"c\" & (VLOOKUP(Switch!$D$52,$F$2:$G$44,2,FALSE)+ROW()-2))=Switch!$D$52,INDIRECT(\"a\" & (VLOOKUP(Switch!$D$52,$F$2:$G$44,2,FALSE)+ROW()-2)),\"\")","v":{"$error":"#N/A"}},{"$f":"IF(INDIRECT(\"c\" & (VLOOKUP(Switch!$D$53,$F$2:$G$44,2,FALSE)+ROW()-2))=Switch!$D$53,INDIRECT(\"a\" & (VLOOKUP(Switch!$D$53,$F$2:$G$44,2,FALSE)+ROW()-2)),\"\")","v":{"$error":"#N/A"}},{"$f":"IF(INDIRECT(\"c\" & (VLOOKUP(Switch!$D$54,$F$2:$G$44,2,FALSE)+ROW()-2))=Switch!$D$54,INDIRECT(\"a\" & (VLOOKUP(Switch!$D$54,$F$2:$G$44,2,FALSE)+ROW()-2)),\"\")","v":{"$error":"#N/A"}},{"$f":"IF(INDIRECT(\"c\" & (VLOOKUP(Switch!$D$55,$F$2:$G$44,2,FALSE)+ROW()-2))=Switch!$D$55,INDIRECT(\"a\" & (VLOOKUP(Switch!$D$55,$F$2:$G$44,2,FALSE)+ROW()-2)),\"\")","v":{"$error":"#N/A"}},{"$f":"IF(INDIRECT(\"c\" & (VLOOKUP(Switch!$D$56,$F$2:$G$44,2,FALSE)+ROW()-2))=Switch!$D$56,INDIRECT(\"a\" & (VLOOKUP(Switch!$D$56,$F$2:$G$44,2,FALSE)+ROW()-2)),\"\")","v":{"$error":"#N/A"}},{"$f":"IF(INDIRECT(\"c\" & (VLOOKUP(Switch!$D$57,$F$2:$G$44,2,FALSE)+ROW()-2))=Switch!$D$57,INDIRECT(\"a\" & (VLOOKUP(Switch!$D$57,$F$2:$G$44,2,FALSE)+ROW()-2)),\"\")","v":{"$error":"#N/A"}},{"$f":"IF(INDIRECT(\"c\" & (VLOOKUP(Switch!$D$58,$F$2:$G$44,2,FALSE)+ROW()-2))=Switch!$D$58,INDIRECT(\"a\" & (VLOOKUP(Switch!$D$58,$F$2:$G$44,2,FALSE)+ROW()-2)),\"\")","v":{"$error":"#N/A"}},{"$f":"IF(INDIRECT(\"c\" & (VLOOKUP(Switch!$D$59,$F$2:$G$44,2,FALSE)+ROW()-2))=Switch!$D$59,INDIRECT(\"a\" & (VLOOKUP(Switch!$D$59,$F$2:$G$44,2,FALSE)+ROW()-2)),\"\")","v":{"$error":"#N/A"}},{"$f":"IF(INDIRECT(\"c\" & (VLOOKUP(Switch!$D$60,$F$2:$G$44,2,FALSE)+ROW()-2))=Switch!$D$60,INDIRECT(\"a\" & (VLOOKUP(Switch!$D$60,$F$2:$G$44,2,FALSE)+ROW()-2)),\"\")","v":{"$error":"#N/A"}},{"$f":"IF(INDIRECT(\"c\" & (VLOOKUP(Switch!$D$61,$F$2:$G$44,2,FALSE)+ROW()-2))=Switch!$D$61,INDIRECT(\"a\" & (VLOOKUP(Switch!$D$61,$F$2:$G$44,2,FALSE)+ROW()-2)),\"\")","v":{"$error":"#N/A"}},{"$f":"IF(INDIRECT(\"c\" & (VLOOKUP(Switch!$D$62,$F$2:$G$44,2,FALSE)+ROW()-2))=Switch!$D$62,INDIRECT(\"a\" & (VLOOKUP(Switch!$D$62,$F$2:$G$44,2,FALSE)+ROW()-2)),\"\")","v":{"$error":"#N/A"}},{"$f":"IF(INDIRECT(\"c\" & (VLOOKUP(Switch!$D$63,$F$2:$G$44,2,FALSE)+ROW()-2))=Switch!$D$63,INDIRECT(\"a\" & (VLOOKUP(Switch!$D$63,$F$2:$G$44,2,FALSE)+ROW()-2)),\"\")","v":{"$error":"#N/A"}},{"$f":"IF(INDIRECT(\"c\" & (VLOOKUP(Switch!$D$64,$F$2:$G$44,2,FALSE)+ROW()-2))=Switch!$D$64,INDIRECT(\"a\" & (VLOOKUP(Switch!$D$64,$F$2:$G$44,2,FALSE)+ROW()-2)),\"\")","v":{"$error":"#N/A"}},{"$f":"IF(INDIRECT(\"c\" & (VLOOKUP(Switch!$D$65,$F$2:$G$44,2,FALSE)+ROW()-2))=Switch!$D$65,INDIRECT(\"a\" & (VLOOKUP(Switch!$D$65,$F$2:$G$44,2,FALSE)+ROW()-2)),\"\")","v":{"$error":"#N/A"}},{"$f":"IF(INDIRECT(\"c\" & (VLOOKUP(Switch!$D$66,$F$2:$G$44,2,FALSE)+ROW()-2))=Switch!$D$66,INDIRECT(\"a\" & (VLOOKUP(Switch!$D$66,$F$2:$G$44,2,FALSE)+ROW()-2)),\"\")","v":{"$error":"#N/A"}}]
["ABSA Select Equity Fund C1","ASEC1","ABSA Fund Managers",{"$f":"ROW()","v":86},null,null,{"$f":"VLOOKUP(F86,$C$2:$D$637,2,FALSE)","v":{"$error":"#N/A"}},{"$f":"IF(INDIRECT(\"c\" & (VLOOKUP(Switch!$D$26,$F$2:$G$44,2,FALSE)+ROW()-2))=Switch!$D$26,INDIRECT(\"a\" & (VLOOKUP(Switch!$D$26,$F$2:$G$44,2,FALSE)+ROW()-2)),\"\")","v":{"$error":"#N/A"}},{"$f":"IF(INDIRECT(\"c\" & (VLOOKUP(Switch!$D$27,$F$2:$G$44,2,FALSE)+ROW()-2))=Switch!$D$27,INDIRECT(\"a\" & (VLOOKUP(Switch!$D$27,$F$2:$G$44,2,FALSE)+ROW()-2)),\"\")","v":{"$error":"#N/A"}},{"$f":"IF(INDIRECT(\"c\" & (VLOOKUP(Switch!$D$28,$F$2:$G$44,2,FALSE)+ROW()-2))=Switch!$D$28,INDIRECT(\"a\" & (VLOOKUP(Switch!$D$28,$F$2:$G$44,2,FALSE)+ROW()-2)),\"\")","v":{"$error":"#N/A"}},{"$f":"IF(INDIRECT(\"c\" & (VLOOKUP(Switch!$D$29,$F$2:$G$44,2,FALSE)+ROW()-2))=Switch!$D$29,INDIRECT(\"a\" & (VLOOKUP(Switch!$D$29,$F$2:$G$44,2,FALSE)+ROW()-2)),\"\")","v":{"$error":"#N/A"}},{"$f":"IF(INDIRECT(\"c\" & (VLOOKUP(Switch!$D$30,$F$2:$G$44,2,FALSE)+ROW()-2))=Switch!$D$30,INDIRECT(\"a\" & (VLOOKUP(Switch!$D$30,$F$2:$G$44,2,FALSE)+ROW()-2)),\"\")","v":{"$error":"#N/A"}},{"$f":"IF(INDIRECT(\"c\" & (VLOOKUP(Switch!$D$31,$F$2:$G$44,2,FALSE)+ROW()-2))=Switch!$D$31,INDIRECT(\"a\" & (VLOOKUP(Switch!$D$31,$F$2:$G$44,2,FALSE)+ROW()-2)),\"\")","v":{"$error":"#N/A"}},{"$f":"IF(INDIRECT(\"c\" & (VLOOKUP(Switch!$D$32,$F$2:$G$44,2,FALSE)+ROW()-2))=Switch!$D$32,INDIRECT(\"a\" & (VLOOKUP(Switch!$D$32,$F$2:$G$44,2,FALSE)+ROW()-2)),\"\")","v":{"$error":"#N/A"}},{"$f":"IF(INDIRECT(\"c\" & (VLOOKUP(Switch!$D$33,$F$2:$G$44,2,FALSE)+ROW()-2))=Switch!$D$33,INDIRECT(\"a\" & (VLOOKUP(Switch!$D$33,$F$2:$G$44,2,FALSE)+ROW()-2)),\"\")","v":{"$error":"#N/A"}},{"$f":"IF(INDIRECT(\"c\" & (VLOOKUP(Switch!$D$34,$F$2:$G$44,2,FALSE)+ROW()-2))=Switch!$D$34,INDIRECT(\"a\" & (VLOOKUP(Switch!$D$34,$F$2:$G$44,2,FALSE)+ROW()-2)),\"\")","v":{"$error":"#N/A"}},{"$f":"IF(INDIRECT(\"c\" & (VLOOKUP(Switch!$D$35,$F$2:$G$44,2,FALSE)+ROW()-2))=Switch!$D$35,INDIRECT(\"a\" & (VLOOKUP(Switch!$D$35,$F$2:$G$44,2,FALSE)+ROW()-2)),\"\")","v":{"$error":"#N/A"}},{"$f":"IF(INDIRECT(\"c\" & (VLOOKUP(Switch!$D$36,$F$2:$G$44,2,FALSE)+ROW()-2))=Switch!$D$36,INDIRECT(\"a\" & (VLOOKUP(Switch!$D$36,$F$2:$G$44,2,FALSE)+ROW()-2)),\"\")","v":{"$error":"#N/A"}},{"$f":"IF(INDIRECT(\"c\" & (VLOOKUP(Switch!$D$37,$F$2:$G$44,2,FALSE)+ROW()-2))=Switch!$D$37,INDIRECT(\"a\" & (VLOOKUP(Switch!$D$37,$F$2:$G$44,2,FALSE)+ROW()-2)),\"\")","v":{"$error":"#N/A"}},{"$f":"IF(INDIRECT(\"c\" & (VLOOKUP(Switch!$D$38,$F$2:$G$44,2,FALSE)+ROW()-2))=Switch!$D$38,INDIRECT(\"a\" & (VLOOKUP(Switch!$D$38,$F$2:$G$44,2,FALSE)+ROW()-2)),\"\")","v":{"$error":"#N/A"}},{"$f":"IF(INDIRECT(\"c\" & (VLOOKUP(Switch!$D$39,$F$2:$G$44,2,FALSE)+ROW()-2))=Switch!$D$39,INDIRECT(\"a\" & (VLOOKUP(Switch!$D$39,$F$2:$G$44,2,FALSE)+ROW()-2)),\"\")","v":{"$error":"#N/A"}},{"$f":"IF(INDIRECT(\"c\" & (VLOOKUP(Switch!$D$40,$F$2:$G$44,2,FALSE)+ROW()-2))=Switch!$D$40,INDIRECT(\"a\" & (VLOOKUP(Switch!$D$40,$F$2:$G$44,2,FALSE)+ROW()-2)),\"\")","v":{"$error":"#N/A"}},{"$f":"IF(INDIRECT(\"c\" & (VLOOKUP(Switch!$D$52,$F$2:$G$44,2,FALSE)+ROW()-2))=Switch!$D$52,INDIRECT(\"a\" & (VLOOKUP(Switch!$D$52,$F$2:$G$44,2,FALSE)+ROW()-2)),\"\")","v":{"$error":"#N/A"}},{"$f":"IF(INDIRECT(\"c\" & (VLOOKUP(Switch!$D$53,$F$2:$G$44,2,FALSE)+ROW()-2))=Switch!$D$53,INDIRECT(\"a\" & (VLOOKUP(Switch!$D$53,$F$2:$G$44,2,FALSE)+ROW()-2)),\"\")","v":{"$error":"#N/A"}},{"$f":"IF(INDIRECT(\"c\" & (VLOOKUP(Switch!$D$54,$F$2:$G$44,2,FALSE)+ROW()-2))=Switch!$D$54,INDIRECT(\"a\" & (VLOOKUP(Switch!$D$54,$F$2:$G$44,2,FALSE)+ROW()-2)),\"\")","v":{"$error":"#N/A"}},{"$f":"IF(INDIRECT(\"c\" & (VLOOKUP(Switch!$D$55,$F$2:$G$44,2,FALSE)+ROW()-2))=Switch!$D$55,INDIRECT(\"a\" & (VLOOKUP(Switch!$D$55,$F$2:$G$44,2,FALSE)+ROW()-2)),\"\")","v":{"$error":"#N/A"}},{"$f":"IF(INDIRECT(\"c\" & (VLOOKUP(Switch!$D$56,$F$2:$G$44,2,FALSE)+ROW()-2))=Switch!$D$56,INDIRECT(\"a\" & (VLOOKUP(Switch!$D$56,$F$2:$G$44,2,FALSE)+ROW()-2)),\"\")","v":{"$error":"#N/A"}},{"$f":"IF(INDIRECT(\"c\" & (VLOOKUP(Switch!$D$57,$F$2:$G$44,2,FALSE)+ROW()-2))=Switch!$D$57,INDIRECT(\"a\" & (VLOOKUP(Switch!$D$57,$F$2:$G$44,2,FALSE)+ROW()-2)),\"\")","v":{"$error":"#N/A"}},{"$f":"IF(INDIRECT(\"c\" & (VLOOKUP(Switch!$D$58,$F$2:$G$44,2,FALSE)+ROW()-2))=Switch!$D$58,INDIRECT(\"a\" & (VLOOKUP(Switch!$D$58,$F$2:$G$44,2,FALSE)+ROW()-2)),\"\")","v":{"$error":"#N/A"}},{"$f":"IF(INDIRECT(\"c\" & (VLOOKUP(Switch!$D$59,$F$2:$G$44,2,FALSE)+ROW()-2))=Switch!$D$59,INDIRECT(\"a\" & (VLOOKUP(Switch!$D$59,$F$2:$G$44,2,FALSE)+ROW()-2)),\"\")","v":{"$error":"#N/A"}},{"$f":"IF(INDIRECT(\"c\" & (VLOOKUP(Switch!$D$60,$F$2:$G$44,2,FALSE)+ROW()-2))=Switch!$D$60,INDIRECT(\"a\" & (VLOOKUP(Switch!$D$60,$F$2:$G$44,2,FALSE)+ROW()-2)),\"\")","v":{"$error":"#N/A"}},{"$f":"IF(INDIRECT(\"c\" & (VLOOKUP(Switch!$D$61,$F$2:$G$44,2,FALSE)+ROW()-2))=Switch!$D$61,INDIRECT(\"a\" & (VLOOKUP(Switch!$D$61,$F$2:$G$44,2,FALSE)+ROW()-2)),\"\")","v":{"$error":"#N/A"}},{"$f":"IF(INDIRECT(\"c\" & (VLOOKUP(Switch!$D$62,$F$2:$G$44,2,FALSE)+ROW()-2))=Switch!$D$62,INDIRECT(\"a\" & (VLOOKUP(Switch!$D$62,$F$2:$G$44,2,FALSE)+ROW()-2)),\"\")","v":{"$error":"#N/A"}},{"$f":"IF(INDIRECT(\"c\" & (VLOOKUP(Switch!$D$63,$F$2:$G$44,2,FALSE)+ROW()-2))=Switch!$D$63,INDIRECT(\"a\" & (VLOOKUP(Switch!$D$63,$F$2:$G$44,2,FALSE)+ROW()-2)),\"\")","v":{"$error":"#N/A"}},{"$f":"IF(INDIRECT(\"c\" & (VLOOKUP(Switch!$D$64,$F$2:$G$44,2,FALSE)+ROW()-2))=Switch!$D$64,INDIRECT(\"a\" & (VLOOKUP(Switch!$D$64,$F$2:$G$44,2,FALSE)+ROW()-2)),\"\")","v":{"$error":"#N/A"}},{"$f":"IF(INDIRECT(\"c\" & (VLOOKUP(Switch!$D$65,$F$2:$G$44,2,FALSE)+ROW()-2))=Switch!$D$65,INDIRECT(\"a\" & (VLOOKUP(Switch!$D$65,$F$2:$G$44,2,FALSE)+ROW()-2)),\"\")","v":{"$error":"#N/A"}},{"$f":"IF(INDIRECT(\"c\" & (VLOOKUP(Switch!$D$66,$F$2:$G$44,2,FALSE)+ROW()-2))=Switch!$D$66,INDIRECT(\"a\" & (VLOOKUP(Switch!$D$66,$F$2:$G$44,2,FALSE)+ROW()-2)),\"\")","v":{"$error":"#N/A"}}]
["Allan Gray Balanced Fund C","AGBC","Allan Gray Unit Trust Management Limited",{"$f":"ROW()","v":87},null,null,{"$f":"VLOOKUP(F87,$C$2:$D$637,2,FALSE)","v":{"$error":"#N/A"}},{"$f":"IF(INDIRECT(\"c\" & (VLOOKUP(Switch!$D$26,$F$2:$G$44,2,FALSE)+ROW()-2))=Switch!$D$26,INDIRECT(\"a\" & (VLOOKUP(Switch!$D$26,$F$2:$G$44,2,FALSE)+ROW()-2)),\"\")","v":{"$error":"#N/A"}},{"$f":"IF(INDIRECT(\"c\" & (VLOOKUP(Switch!$D$27,$F$2:$G$44,2,FALSE)+ROW()-2))=Switch!$D$27,INDIRECT(\"a\" & (VLOOKUP(Switch!$D$27,$F$2:$G$44,2,FALSE)+ROW()-2)),\"\")","v":{"$error":"#N/A"}},{"$f":"IF(INDIRECT(\"c\" & (VLOOKUP(Switch!$D$28,$F$2:$G$44,2,FALSE)+ROW()-2))=Switch!$D$28,INDIRECT(\"a\" & (VLOOKUP(Switch!$D$28,$F$2:$G$44,2,FALSE)+ROW()-2)),\"\")","v":{"$error":"#N/A"}},{"$f":"IF(INDIRECT(\"c\" & (VLOOKUP(Switch!$D$29,$F$2:$G$44,2,FALSE)+ROW()-2))=Switch!$D$29,INDIRECT(\"a\" & (VLOOKUP(Switch!$D$29,$F$2:$G$44,2,FALSE)+ROW()-2)),\"\")","v":{"$error":"#N/A"}},{"$f":"IF(INDIRECT(\"c\" & (VLOOKUP(Switch!$D$30,$F$2:$G$44,2,FALSE)+ROW()-2))=Switch!$D$30,INDIRECT(\"a\" & (VLOOKUP(Switch!$D$30,$F$2:$G$44,2,FALSE)+ROW()-2)),\"\")","v":{"$error":"#N/A"}},{"$f":"IF(INDIRECT(\"c\" & (VLOOKUP(Switch!$D$31,$F$2:$G$44,2,FALSE)+ROW()-2))=Switch!$D$31,INDIRECT(\"a\" & (VLOOKUP(Switch!$D$31,$F$2:$G$44,2,FALSE)+ROW()-2)),\"\")","v":{"$error":"#N/A"}},{"$f":"IF(INDIRECT(\"c\" & (VLOOKUP(Switch!$D$32,$F$2:$G$44,2,FALSE)+ROW()-2))=Switch!$D$32,INDIRECT(\"a\" & (VLOOKUP(Switch!$D$32,$F$2:$G$44,2,FALSE)+ROW()-2)),\"\")","v":{"$error":"#N/A"}},{"$f":"IF(INDIRECT(\"c\" & (VLOOKUP(Switch!$D$33,$F$2:$G$44,2,FALSE)+ROW()-2))=Switch!$D$33,INDIRECT(\"a\" & (VLOOKUP(Switch!$D$33,$F$2:$G$44,2,FALSE)+ROW()-2)),\"\")","v":{"$error":"#N/A"}},{"$f":"IF(INDIRECT(\"c\" & (VLOOKUP(Switch!$D$34,$F$2:$G$44,2,FALSE)+ROW()-2))=Switch!$D$34,INDIRECT(\"a\" & (VLOOKUP(Switch!$D$34,$F$2:$G$44,2,FALSE)+ROW()-2)),\"\")","v":{"$error":"#N/A"}},{"$f":"IF(INDIRECT(\"c\" & (VLOOKUP(Switch!$D$35,$F$2:$G$44,2,FALSE)+ROW()-2))=Switch!$D$35,INDIRECT(\"a\" & (VLOOKUP(Switch!$D$35,$F$2:$G$44,2,FALSE)+ROW()-2)),\"\")","v":{"$error":"#N/A"}},{"$f":"IF(INDIRECT(\"c\" & (VLOOKUP(Switch!$D$36,$F$2:$G$44,2,FALSE)+ROW()-2))=Switch!$D$36,INDIRECT(\"a\" & (VLOOKUP(Switch!$D$36,$F$2:$G$44,2,FALSE)+ROW()-2)),\"\")","v":{"$error":"#N/A"}},{"$f":"IF(INDIRECT(\"c\" & (VLOOKUP(Switch!$D$37,$F$2:$G$44,2,FALSE)+ROW()-2))=Switch!$D$37,INDIRECT(\"a\" & (VLOOKUP(Switch!$D$37,$F$2:$G$44,2,FALSE)+ROW()-2)),\"\")","v":{"$error":"#N/A"}},{"$f":"IF(INDIRECT(\"c\" & (VLOOKUP(Switch!$D$38,$F$2:$G$44,2,FALSE)+ROW()-2))=Switch!$D$38,INDIRECT(\"a\" & (VLOOKUP(Switch!$D$38,$F$2:$G$44,2,FALSE)+ROW()-2)),\"\")","v":{"$error":"#N/A"}},{"$f":"IF(INDIRECT(\"c\" & (VLOOKUP(Switch!$D$39,$F$2:$G$44,2,FALSE)+ROW()-2))=Switch!$D$39,INDIRECT(\"a\" & (VLOOKUP(Switch!$D$39,$F$2:$G$44,2,FALSE)+ROW()-2)),\"\")","v":{"$error":"#N/A"}},{"$f":"IF(INDIRECT(\"c\" & (VLOOKUP(Switch!$D$40,$F$2:$G$44,2,FALSE)+ROW()-2))=Switch!$D$40,INDIRECT(\"a\" & (VLOOKUP(Switch!$D$40,$F$2:$G$44,2,FALSE)+ROW()-2)),\"\")","v":{"$error":"#N/A"}},{"$f":"IF(INDIRECT(\"c\" & (VLOOKUP(Switch!$D$52,$F$2:$G$44,2,FALSE)+ROW()-2))=Switch!$D$52,INDIRECT(\"a\" & (VLOOKUP(Switch!$D$52,$F$2:$G$44,2,FALSE)+ROW()-2)),\"\")","v":{"$error":"#N/A"}},{"$f":"IF(INDIRECT(\"c\" & (VLOOKUP(Switch!$D$53,$F$2:$G$44,2,FALSE)+ROW()-2))=Switch!$D$53,INDIRECT(\"a\" & (VLOOKUP(Switch!$D$53,$F$2:$G$44,2,FALSE)+ROW()-2)),\"\")","v":{"$error":"#N/A"}},{"$f":"IF(INDIRECT(\"c\" & (VLOOKUP(Switch!$D$54,$F$2:$G$44,2,FALSE)+ROW()-2))=Switch!$D$54,INDIRECT(\"a\" & (VLOOKUP(Switch!$D$54,$F$2:$G$44,2,FALSE)+ROW()-2)),\"\")","v":{"$error":"#N/A"}},{"$f":"IF(INDIRECT(\"c\" & (VLOOKUP(Switch!$D$55,$F$2:$G$44,2,FALSE)+ROW()-2))=Switch!$D$55,INDIRECT(\"a\" & (VLOOKUP(Switch!$D$55,$F$2:$G$44,2,FALSE)+ROW()-2)),\"\")","v":{"$error":"#N/A"}},{"$f":"IF(INDIRECT(\"c\" & (VLOOKUP(Switch!$D$56,$F$2:$G$44,2,FALSE)+ROW()-2))=Switch!$D$56,INDIRECT(\"a\" & (VLOOKUP(Switch!$D$56,$F$2:$G$44,2,FALSE)+ROW()-2)),\"\")","v":{"$error":"#N/A"}},{"$f":"IF(INDIRECT(\"c\" & (VLOOKUP(Switch!$D$57,$F$2:$G$44,2,FALSE)+ROW()-2))=Switch!$D$57,INDIRECT(\"a\" & (VLOOKUP(Switch!$D$57,$F$2:$G$44,2,FALSE)+ROW()-2)),\"\")","v":{"$error":"#N/A"}},{"$f":"IF(INDIRECT(\"c\" & (VLOOKUP(Switch!$D$58,$F$2:$G$44,2,FALSE)+ROW()-2))=Switch!$D$58,INDIRECT(\"a\" & (VLOOKUP(Switch!$D$58,$F$2:$G$44,2,FALSE)+ROW()-2)),\"\")","v":{"$error":"#N/A"}},{"$f":"IF(INDIRECT(\"c\" & (VLOOKUP(Switch!$D$59,$F$2:$G$44,2,FALSE)+ROW()-2))=Switch!$D$59,INDIRECT(\"a\" & (VLOOKUP(Switch!$D$59,$F$2:$G$44,2,FALSE)+ROW()-2)),\"\")","v":{"$error":"#N/A"}},{"$f":"IF(INDIRECT(\"c\" & (VLOOKUP(Switch!$D$60,$F$2:$G$44,2,FALSE)+ROW()-2))=Switch!$D$60,INDIRECT(\"a\" & (VLOOKUP(Switch!$D$60,$F$2:$G$44,2,FALSE)+ROW()-2)),\"\")","v":{"$error":"#N/A"}},{"$f":"IF(INDIRECT(\"c\" & (VLOOKUP(Switch!$D$61,$F$2:$G$44,2,FALSE)+ROW()-2))=Switch!$D$61,INDIRECT(\"a\" & (VLOOKUP(Switch!$D$61,$F$2:$G$44,2,FALSE)+ROW()-2)),\"\")","v":{"$error":"#N/A"}},{"$f":"IF(INDIRECT(\"c\" & (VLOOKUP(Switch!$D$62,$F$2:$G$44,2,FALSE)+ROW()-2))=Switch!$D$62,INDIRECT(\"a\" & (VLOOKUP(Switch!$D$62,$F$2:$G$44,2,FALSE)+ROW()-2)),\"\")","v":{"$error":"#N/A"}},{"$f":"IF(INDIRECT(\"c\" & (VLOOKUP(Switch!$D$63,$F$2:$G$44,2,FALSE)+ROW()-2))=Switch!$D$63,INDIRECT(\"a\" & (VLOOKUP(Switch!$D$63,$F$2:$G$44,2,FALSE)+ROW()-2)),\"\")","v":{"$error":"#N/A"}},{"$f":"IF(INDIRECT(\"c\" & (VLOOKUP(Switch!$D$64,$F$2:$G$44,2,FALSE)+ROW()-2))=Switch!$D$64,INDIRECT(\"a\" & (VLOOKUP(Switch!$D$64,$F$2:$G$44,2,FALSE)+ROW()-2)),\"\")","v":{"$error":"#N/A"}},{"$f":"IF(INDIRECT(\"c\" & (VLOOKUP(Switch!$D$65,$F$2:$G$44,2,FALSE)+ROW()-2))=Switch!$D$65,INDIRECT(\"a\" & (VLOOKUP(Switch!$D$65,$F$2:$G$44,2,FALSE)+ROW()-2)),\"\")","v":{"$error":"#N/A"}},{"$f":"IF(INDIRECT(\"c\" & (VLOOKUP(Switch!$D$66,$F$2:$G$44,2,FALSE)+ROW()-2))=Switch!$D$66,INDIRECT(\"a\" & (VLOOKUP(Switch!$D$66,$F$2:$G$44,2,FALSE)+ROW()-2)),\"\")","v":{"$error":"#N/A"}}]
["Allan Gray Bond Fund A","AGBD","Allan Gray Unit Trust Management Limited",{"$f":"ROW()","v":88},null,null,{"$f":"VLOOKUP(F88,$C$2:$D$637,2,FALSE)","v":{"$error":"#N/A"}},{"$f":"IF(INDIRECT(\"c\" & (VLOOKUP(Switch!$D$26,$F$2:$G$44,2,FALSE)+ROW()-2))=Switch!$D$26,INDIRECT(\"a\" & (VLOOKUP(Switch!$D$26,$F$2:$G$44,2,FALSE)+ROW()-2)),\"\")","v":{"$error":"#N/A"}},{"$f":"IF(INDIRECT(\"c\" & (VLOOKUP(Switch!$D$27,$F$2:$G$44,2,FALSE)+ROW()-2))=Switch!$D$27,INDIRECT(\"a\" & (VLOOKUP(Switch!$D$27,$F$2:$G$44,2,FALSE)+ROW()-2)),\"\")","v":{"$error":"#N/A"}},{"$f":"IF(INDIRECT(\"c\" & (VLOOKUP(Switch!$D$28,$F$2:$G$44,2,FALSE)+ROW()-2))=Switch!$D$28,INDIRECT(\"a\" & (VLOOKUP(Switch!$D$28,$F$2:$G$44,2,FALSE)+ROW()-2)),\"\")","v":{"$error":"#N/A"}},{"$f":"IF(INDIRECT(\"c\" & (VLOOKUP(Switch!$D$29,$F$2:$G$44,2,FALSE)+ROW()-2))=Switch!$D$29,INDIRECT(\"a\" & (VLOOKUP(Switch!$D$29,$F$2:$G$44,2,FALSE)+ROW()-2)),\"\")","v":{"$error":"#N/A"}},{"$f":"IF(INDIRECT(\"c\" & (VLOOKUP(Switch!$D$30,$F$2:$G$44,2,FALSE)+ROW()-2))=Switch!$D$30,INDIRECT(\"a\" & (VLOOKUP(Switch!$D$30,$F$2:$G$44,2,FALSE)+ROW()-2)),\"\")","v":{"$error":"#N/A"}},{"$f":"IF(INDIRECT(\"c\" & (VLOOKUP(Switch!$D$31,$F$2:$G$44,2,FALSE)+ROW()-2))=Switch!$D$31,INDIRECT(\"a\" & (VLOOKUP(Switch!$D$31,$F$2:$G$44,2,FALSE)+ROW()-2)),\"\")","v":{"$error":"#N/A"}},{"$f":"IF(INDIRECT(\"c\" & (VLOOKUP(Switch!$D$32,$F$2:$G$44,2,FALSE)+ROW()-2))=Switch!$D$32,INDIRECT(\"a\" & (VLOOKUP(Switch!$D$32,$F$2:$G$44,2,FALSE)+ROW()-2)),\"\")","v":{"$error":"#N/A"}},{"$f":"IF(INDIRECT(\"c\" & (VLOOKUP(Switch!$D$33,$F$2:$G$44,2,FALSE)+ROW()-2))=Switch!$D$33,INDIRECT(\"a\" & (VLOOKUP(Switch!$D$33,$F$2:$G$44,2,FALSE)+ROW()-2)),\"\")","v":{"$error":"#N/A"}},{"$f":"IF(INDIRECT(\"c\" & (VLOOKUP(Switch!$D$34,$F$2:$G$44,2,FALSE)+ROW()-2))=Switch!$D$34,INDIRECT(\"a\" & (VLOOKUP(Switch!$D$34,$F$2:$G$44,2,FALSE)+ROW()-2)),\"\")","v":{"$error":"#N/A"}},{"$f":"IF(INDIRECT(\"c\" & (VLOOKUP(Switch!$D$35,$F$2:$G$44,2,FALSE)+ROW()-2))=Switch!$D$35,INDIRECT(\"a\" & (VLOOKUP(Switch!$D$35,$F$2:$G$44,2,FALSE)+ROW()-2)),\"\")","v":{"$error":"#N/A"}},{"$f":"IF(INDIRECT(\"c\" & (VLOOKUP(Switch!$D$36,$F$2:$G$44,2,FALSE)+ROW()-2))=Switch!$D$36,INDIRECT(\"a\" & (VLOOKUP(Switch!$D$36,$F$2:$G$44,2,FALSE)+ROW()-2)),\"\")","v":{"$error":"#N/A"}},{"$f":"IF(INDIRECT(\"c\" & (VLOOKUP(Switch!$D$37,$F$2:$G$44,2,FALSE)+ROW()-2))=Switch!$D$37,INDIRECT(\"a\" & (VLOOKUP(Switch!$D$37,$F$2:$G$44,2,FALSE)+ROW()-2)),\"\")","v":{"$error":"#N/A"}},{"$f":"IF(INDIRECT(\"c\" & (VLOOKUP(Switch!$D$38,$F$2:$G$44,2,FALSE)+ROW()-2))=Switch!$D$38,INDIRECT(\"a\" & (VLOOKUP(Switch!$D$38,$F$2:$G$44,2,FALSE)+ROW()-2)),\"\")","v":{"$error":"#N/A"}},{"$f":"IF(INDIRECT(\"c\" & (VLOOKUP(Switch!$D$39,$F$2:$G$44,2,FALSE)+ROW()-2))=Switch!$D$39,INDIRECT(\"a\" & (VLOOKUP(Switch!$D$39,$F$2:$G$44,2,FALSE)+ROW()-2)),\"\")","v":{"$error":"#N/A"}},{"$f":"IF(INDIRECT(\"c\" & (VLOOKUP(Switch!$D$40,$F$2:$G$44,2,FALSE)+ROW()-2))=Switch!$D$40,INDIRECT(\"a\" & (VLOOKUP(Switch!$D$40,$F$2:$G$44,2,FALSE)+ROW()-2)),\"\")","v":{"$error":"#N/A"}},{"$f":"IF(INDIRECT(\"c\" & (VLOOKUP(Switch!$D$52,$F$2:$G$44,2,FALSE)+ROW()-2))=Switch!$D$52,INDIRECT(\"a\" & (VLOOKUP(Switch!$D$52,$F$2:$G$44,2,FALSE)+ROW()-2)),\"\")","v":{"$error":"#N/A"}},{"$f":"IF(INDIRECT(\"c\" & (VLOOKUP(Switch!$D$53,$F$2:$G$44,2,FALSE)+ROW()-2))=Switch!$D$53,INDIRECT(\"a\" & (VLOOKUP(Switch!$D$53,$F$2:$G$44,2,FALSE)+ROW()-2)),\"\")","v":{"$error":"#N/A"}},{"$f":"IF(INDIRECT(\"c\" & (VLOOKUP(Switch!$D$54,$F$2:$G$44,2,FALSE)+ROW()-2))=Switch!$D$54,INDIRECT(\"a\" & (VLOOKUP(Switch!$D$54,$F$2:$G$44,2,FALSE)+ROW()-2)),\"\")","v":{"$error":"#N/A"}},{"$f":"IF(INDIRECT(\"c\" & (VLOOKUP(Switch!$D$55,$F$2:$G$44,2,FALSE)+ROW()-2))=Switch!$D$55,INDIRECT(\"a\" & (VLOOKUP(Switch!$D$55,$F$2:$G$44,2,FALSE)+ROW()-2)),\"\")","v":{"$error":"#N/A"}},{"$f":"IF(INDIRECT(\"c\" & (VLOOKUP(Switch!$D$56,$F$2:$G$44,2,FALSE)+ROW()-2))=Switch!$D$56,INDIRECT(\"a\" & (VLOOKUP(Switch!$D$56,$F$2:$G$44,2,FALSE)+ROW()-2)),\"\")","v":{"$error":"#N/A"}},{"$f":"IF(INDIRECT(\"c\" & (VLOOKUP(Switch!$D$57,$F$2:$G$44,2,FALSE)+ROW()-2))=Switch!$D$57,INDIRECT(\"a\" & (VLOOKUP(Switch!$D$57,$F$2:$G$44,2,FALSE)+ROW()-2)),\"\")","v":{"$error":"#N/A"}},{"$f":"IF(INDIRECT(\"c\" & (VLOOKUP(Switch!$D$58,$F$2:$G$44,2,FALSE)+ROW()-2))=Switch!$D$58,INDIRECT(\"a\" & (VLOOKUP(Switch!$D$58,$F$2:$G$44,2,FALSE)+ROW()-2)),\"\")","v":{"$error":"#N/A"}},{"$f":"IF(INDIRECT(\"c\" & (VLOOKUP(Switch!$D$59,$F$2:$G$44,2,FALSE)+ROW()-2))=Switch!$D$59,INDIRECT(\"a\" & (VLOOKUP(Switch!$D$59,$F$2:$G$44,2,FALSE)+ROW()-2)),\"\")","v":{"$error":"#N/A"}},{"$f":"IF(INDIRECT(\"c\" & (VLOOKUP(Switch!$D$60,$F$2:$G$44,2,FALSE)+ROW()-2))=Switch!$D$60,INDIRECT(\"a\" & (VLOOKUP(Switch!$D$60,$F$2:$G$44,2,FALSE)+ROW()-2)),\"\")","v":{"$error":"#N/A"}},{"$f":"IF(INDIRECT(\"c\" & (VLOOKUP(Switch!$D$61,$F$2:$G$44,2,FALSE)+ROW()-2))=Switch!$D$61,INDIRECT(\"a\" & (VLOOKUP(Switch!$D$61,$F$2:$G$44,2,FALSE)+ROW()-2)),\"\")","v":{"$error":"#N/A"}},{"$f":"IF(INDIRECT(\"c\" & (VLOOKUP(Switch!$D$62,$F$2:$G$44,2,FALSE)+ROW()-2))=Switch!$D$62,INDIRECT(\"a\" & (VLOOKUP(Switch!$D$62,$F$2:$G$44,2,FALSE)+ROW()-2)),\"\")","v":{"$error":"#N/A"}},{"$f":"IF(INDIRECT(\"c\" & (VLOOKUP(Switch!$D$63,$F$2:$G$44,2,FALSE)+ROW()-2))=Switch!$D$63,INDIRECT(\"a\" & (VLOOKUP(Switch!$D$63,$F$2:$G$44,2,FALSE)+ROW()-2)),\"\")","v":{"$error":"#N/A"}},{"$f":"IF(INDIRECT(\"c\" & (VLOOKUP(Switch!$D$64,$F$2:$G$44,2,FALSE)+ROW()-2))=Switch!$D$64,INDIRECT(\"a\" & (VLOOKUP(Switch!$D$64,$F$2:$G$44,2,FALSE)+ROW()-2)),\"\")","v":{"$error":"#N/A"}},{"$f":"IF(INDIRECT(\"c\" & (VLOOKUP(Switch!$D$65,$F$2:$G$44,2,FALSE)+ROW()-2))=Switch!$D$65,INDIRECT(\"a\" & (VLOOKUP(Switch!$D$65,$F$2:$G$44,2,FALSE)+ROW()-2)),\"\")","v":{"$error":"#N/A"}},{"$f":"IF(INDIRECT(\"c\" & (VLOOKUP(Switch!$D$66,$F$2:$G$44,2,FALSE)+ROW()-2))=Switch!$D$66,INDIRECT(\"a\" & (VLOOKUP(Switch!$D$66,$F$2:$G$44,2,FALSE)+ROW()-2)),\"\")","v":{"$error":"#N/A"}}]
["Allan Gray Equity Fund C","AGEC","Allan Gray Unit Trust Management Limited",{"$f":"ROW()","v":89},null,null,{"$f":"VLOOKUP(F89,$C$2:$D$637,2,FALSE)","v":{"$error":"#N/A"}},{"$f":"IF(INDIRECT(\"c\" & (VLOOKUP(Switch!$D$26,$F$2:$G$44,2,FALSE)+ROW()-2))=Switch!$D$26,INDIRECT(\"a\" & (VLOOKUP(Switch!$D$26,$F$2:$G$44,2,FALSE)+ROW()-2)),\"\")","v":{"$error":"#N/A"}},{"$f":"IF(INDIRECT(\"c\" & (VLOOKUP(Switch!$D$27,$F$2:$G$44,2,FALSE)+ROW()-2))=Switch!$D$27,INDIRECT(\"a\" & (VLOOKUP(Switch!$D$27,$F$2:$G$44,2,FALSE)+ROW()-2)),\"\")","v":{"$error":"#N/A"}},{"$f":"IF(INDIRECT(\"c\" & (VLOOKUP(Switch!$D$28,$F$2:$G$44,2,FALSE)+ROW()-2))=Switch!$D$28,INDIRECT(\"a\" & (VLOOKUP(Switch!$D$28,$F$2:$G$44,2,FALSE)+ROW()-2)),\"\")","v":{"$error":"#N/A"}},{"$f":"IF(INDIRECT(\"c\" & (VLOOKUP(Switch!$D$29,$F$2:$G$44,2,FALSE)+ROW()-2))=Switch!$D$29,INDIRECT(\"a\" & (VLOOKUP(Switch!$D$29,$F$2:$G$44,2,FALSE)+ROW()-2)),\"\")","v":{"$error":"#N/A"}},{"$f":"IF(INDIRECT(\"c\" & (VLOOKUP(Switch!$D$30,$F$2:$G$44,2,FALSE)+ROW()-2))=Switch!$D$30,INDIRECT(\"a\" & (VLOOKUP(Switch!$D$30,$F$2:$G$44,2,FALSE)+ROW()-2)),\"\")","v":{"$error":"#N/A"}},{"$f":"IF(INDIRECT(\"c\" & (VLOOKUP(Switch!$D$31,$F$2:$G$44,2,FALSE)+ROW()-2))=Switch!$D$31,INDIRECT(\"a\" & (VLOOKUP(Switch!$D$31,$F$2:$G$44,2,FALSE)+ROW()-2)),\"\")","v":{"$error":"#N/A"}},{"$f":"IF(INDIRECT(\"c\" & (VLOOKUP(Switch!$D$32,$F$2:$G$44,2,FALSE)+ROW()-2))=Switch!$D$32,INDIRECT(\"a\" & (VLOOKUP(Switch!$D$32,$F$2:$G$44,2,FALSE)+ROW()-2)),\"\")","v":{"$error":"#N/A"}},{"$f":"IF(INDIRECT(\"c\" & (VLOOKUP(Switch!$D$33,$F$2:$G$44,2,FALSE)+ROW()-2))=Switch!$D$33,INDIRECT(\"a\" & (VLOOKUP(Switch!$D$33,$F$2:$G$44,2,FALSE)+ROW()-2)),\"\")","v":{"$error":"#N/A"}},{"$f":"IF(INDIRECT(\"c\" & (VLOOKUP(Switch!$D$34,$F$2:$G$44,2,FALSE)+ROW()-2))=Switch!$D$34,INDIRECT(\"a\" & (VLOOKUP(Switch!$D$34,$F$2:$G$44,2,FALSE)+ROW()-2)),\"\")","v":{"$error":"#N/A"}},{"$f":"IF(INDIRECT(\"c\" & (VLOOKUP(Switch!$D$35,$F$2:$G$44,2,FALSE)+ROW()-2))=Switch!$D$35,INDIRECT(\"a\" & (VLOOKUP(Switch!$D$35,$F$2:$G$44,2,FALSE)+ROW()-2)),\"\")","v":{"$error":"#N/A"}},{"$f":"IF(INDIRECT(\"c\" & (VLOOKUP(Switch!$D$36,$F$2:$G$44,2,FALSE)+ROW()-2))=Switch!$D$36,INDIRECT(\"a\" & (VLOOKUP(Switch!$D$36,$F$2:$G$44,2,FALSE)+ROW()-2)),\"\")","v":{"$error":"#N/A"}},{"$f":"IF(INDIRECT(\"c\" & (VLOOKUP(Switch!$D$37,$F$2:$G$44,2,FALSE)+ROW()-2))=Switch!$D$37,INDIRECT(\"a\" & (VLOOKUP(Switch!$D$37,$F$2:$G$44,2,FALSE)+ROW()-2)),\"\")","v":{"$error":"#N/A"}},{"$f":"IF(INDIRECT(\"c\" & (VLOOKUP(Switch!$D$38,$F$2:$G$44,2,FALSE)+ROW()-2))=Switch!$D$38,INDIRECT(\"a\" & (VLOOKUP(Switch!$D$38,$F$2:$G$44,2,FALSE)+ROW()-2)),\"\")","v":{"$error":"#N/A"}},{"$f":"IF(INDIRECT(\"c\" & (VLOOKUP(Switch!$D$39,$F$2:$G$44,2,FALSE)+ROW()-2))=Switch!$D$39,INDIRECT(\"a\" & (VLOOKUP(Switch!$D$39,$F$2:$G$44,2,FALSE)+ROW()-2)),\"\")","v":{"$error":"#N/A"}},{"$f":"IF(INDIRECT(\"c\" & (VLOOKUP(Switch!$D$40,$F$2:$G$44,2,FALSE)+ROW()-2))=Switch!$D$40,INDIRECT(\"a\" & (VLOOKUP(Switch!$D$40,$F$2:$G$44,2,FALSE)+ROW()-2)),\"\")","v":{"$error":"#N/A"}},{"$f":"IF(INDIRECT(\"c\" & (VLOOKUP(Switch!$D$52,$F$2:$G$44,2,FALSE)+ROW()-2))=Switch!$D$52,INDIRECT(\"a\" & (VLOOKUP(Switch!$D$52,$F$2:$G$44,2,FALSE)+ROW()-2)),\"\")","v":{"$error":"#N/A"}},{"$f":"IF(INDIRECT(\"c\" & (VLOOKUP(Switch!$D$53,$F$2:$G$44,2,FALSE)+ROW()-2))=Switch!$D$53,INDIRECT(\"a\" & (VLOOKUP(Switch!$D$53,$F$2:$G$44,2,FALSE)+ROW()-2)),\"\")","v":{"$error":"#N/A"}},{"$f":"IF(INDIRECT(\"c\" & (VLOOKUP(Switch!$D$54,$F$2:$G$44,2,FALSE)+ROW()-2))=Switch!$D$54,INDIRECT(\"a\" & (VLOOKUP(Switch!$D$54,$F$2:$G$44,2,FALSE)+ROW()-2)),\"\")","v":{"$error":"#N/A"}},{"$f":"IF(INDIRECT(\"c\" & (VLOOKUP(Switch!$D$55,$F$2:$G$44,2,FALSE)+ROW()-2))=Switch!$D$55,INDIRECT(\"a\" & (VLOOKUP(Switch!$D$55,$F$2:$G$44,2,FALSE)+ROW()-2)),\"\")","v":{"$error":"#N/A"}},{"$f":"IF(INDIRECT(\"c\" & (VLOOKUP(Switch!$D$56,$F$2:$G$44,2,FALSE)+ROW()-2))=Switch!$D$56,INDIRECT(\"a\" & (VLOOKUP(Switch!$D$56,$F$2:$G$44,2,FALSE)+ROW()-2)),\"\")","v":{"$error":"#N/A"}},{"$f":"IF(INDIRECT(\"c\" & (VLOOKUP(Switch!$D$57,$F$2:$G$44,2,FALSE)+ROW()-2))=Switch!$D$57,INDIRECT(\"a\" & (VLOOKUP(Switch!$D$57,$F$2:$G$44,2,FALSE)+ROW()-2)),\"\")","v":{"$error":"#N/A"}},{"$f":"IF(INDIRECT(\"c\" & (VLOOKUP(Switch!$D$58,$F$2:$G$44,2,FALSE)+ROW()-2))=Switch!$D$58,INDIRECT(\"a\" & (VLOOKUP(Switch!$D$58,$F$2:$G$44,2,FALSE)+ROW()-2)),\"\")","v":{"$error":"#N/A"}},{"$f":"IF(INDIRECT(\"c\" & (VLOOKUP(Switch!$D$59,$F$2:$G$44,2,FALSE)+ROW()-2))=Switch!$D$59,INDIRECT(\"a\" & (VLOOKUP(Switch!$D$59,$F$2:$G$44,2,FALSE)+ROW()-2)),\"\")","v":{"$error":"#N/A"}},{"$f":"IF(INDIRECT(\"c\" & (VLOOKUP(Switch!$D$60,$F$2:$G$44,2,FALSE)+ROW()-2))=Switch!$D$60,INDIRECT(\"a\" & (VLOOKUP(Switch!$D$60,$F$2:$G$44,2,FALSE)+ROW()-2)),\"\")","v":{"$error":"#N/A"}},{"$f":"IF(INDIRECT(\"c\" & (VLOOKUP(Switch!$D$61,$F$2:$G$44,2,FALSE)+ROW()-2))=Switch!$D$61,INDIRECT(\"a\" & (VLOOKUP(Switch!$D$61,$F$2:$G$44,2,FALSE)+ROW()-2)),\"\")","v":{"$error":"#N/A"}},{"$f":"IF(INDIRECT(\"c\" & (VLOOKUP(Switch!$D$62,$F$2:$G$44,2,FALSE)+ROW()-2))=Switch!$D$62,INDIRECT(\"a\" & (VLOOKUP(Switch!$D$62,$F$2:$G$44,2,FALSE)+ROW()-2)),\"\")","v":{"$error":"#N/A"}},{"$f":"IF(INDIRECT(\"c\" & (VLOOKUP(Switch!$D$63,$F$2:$G$44,2,FALSE)+ROW()-2))=Switch!$D$63,INDIRECT(\"a\" & (VLOOKUP(Switch!$D$63,$F$2:$G$44,2,FALSE)+ROW()-2)),\"\")","v":{"$error":"#N/A"}},{"$f":"IF(INDIRECT(\"c\" & (VLOOKUP(Switch!$D$64,$F$2:$G$44,2,FALSE)+ROW()-2))=Switch!$D$64,INDIRECT(\"a\" & (VLOOKUP(Switch!$D$64,$F$2:$G$44,2,FALSE)+ROW()-2)),\"\")","v":{"$error":"#N/A"}},{"$f":"IF(INDIRECT(\"c\" & (VLOOKUP(Switch!$D$65,$F$2:$G$44,2,FALSE)+ROW()-2))=Switch!$D$65,INDIRECT(\"a\" & (VLOOKUP(Switch!$D$65,$F$2:$G$44,2,FALSE)+ROW()-2)),\"\")","v":{"$error":"#N/A"}},{"$f":"IF(INDIRECT(\"c\" & (VLOOKUP(Switch!$D$66,$F$2:$G$44,2,FALSE)+ROW()-2))=Switch!$D$66,INDIRECT(\"a\" & (VLOOKUP(Switch!$D$66,$F$2:$G$44,2,FALSE)+ROW()-2)),\"\")","v":{"$error":"#N/A"}}]
["Allan Gray Optimal C","AGOC","Allan Gray Unit Trust Management Limited",{"$f":"ROW()","v":90},null,null,{"$f":"VLOOKUP(F90,$C$2:$D$637,2,FALSE)","v":{"$error":"#N/A"}},{"$f":"IF(INDIRECT(\"c\" & (VLOOKUP(Switch!$D$26,$F$2:$G$44,2,FALSE)+ROW()-2))=Switch!$D$26,INDIRECT(\"a\" & (VLOOKUP(Switch!$D$26,$F$2:$G$44,2,FALSE)+ROW()-2)),\"\")","v":{"$error":"#N/A"}},{"$f":"IF(INDIRECT(\"c\" & (VLOOKUP(Switch!$D$27,$F$2:$G$44,2,FALSE)+ROW()-2))=Switch!$D$27,INDIRECT(\"a\" & (VLOOKUP(Switch!$D$27,$F$2:$G$44,2,FALSE)+ROW()-2)),\"\")","v":{"$error":"#N/A"}},{"$f":"IF(INDIRECT(\"c\" & (VLOOKUP(Switch!$D$28,$F$2:$G$44,2,FALSE)+ROW()-2))=Switch!$D$28,INDIRECT(\"a\" & (VLOOKUP(Switch!$D$28,$F$2:$G$44,2,FALSE)+ROW()-2)),\"\")","v":{"$error":"#N/A"}},{"$f":"IF(INDIRECT(\"c\" & (VLOOKUP(Switch!$D$29,$F$2:$G$44,2,FALSE)+ROW()-2))=Switch!$D$29,INDIRECT(\"a\" & (VLOOKUP(Switch!$D$29,$F$2:$G$44,2,FALSE)+ROW()-2)),\"\")","v":{"$error":"#N/A"}},{"$f":"IF(INDIRECT(\"c\" & (VLOOKUP(Switch!$D$30,$F$2:$G$44,2,FALSE)+ROW()-2))=Switch!$D$30,INDIRECT(\"a\" & (VLOOKUP(Switch!$D$30,$F$2:$G$44,2,FALSE)+ROW()-2)),\"\")","v":{"$error":"#N/A"}},{"$f":"IF(INDIRECT(\"c\" & (VLOOKUP(Switch!$D$31,$F$2:$G$44,2,FALSE)+ROW()-2))=Switch!$D$31,INDIRECT(\"a\" & (VLOOKUP(Switch!$D$31,$F$2:$G$44,2,FALSE)+ROW()-2)),\"\")","v":{"$error":"#N/A"}},{"$f":"IF(INDIRECT(\"c\" & (VLOOKUP(Switch!$D$32,$F$2:$G$44,2,FALSE)+ROW()-2))=Switch!$D$32,INDIRECT(\"a\" & (VLOOKUP(Switch!$D$32,$F$2:$G$44,2,FALSE)+ROW()-2)),\"\")","v":{"$error":"#N/A"}},{"$f":"IF(INDIRECT(\"c\" & (VLOOKUP(Switch!$D$33,$F$2:$G$44,2,FALSE)+ROW()-2))=Switch!$D$33,INDIRECT(\"a\" & (VLOOKUP(Switch!$D$33,$F$2:$G$44,2,FALSE)+ROW()-2)),\"\")","v":{"$error":"#N/A"}},{"$f":"IF(INDIRECT(\"c\" & (VLOOKUP(Switch!$D$34,$F$2:$G$44,2,FALSE)+ROW()-2))=Switch!$D$34,INDIRECT(\"a\" & (VLOOKUP(Switch!$D$34,$F$2:$G$44,2,FALSE)+ROW()-2)),\"\")","v":{"$error":"#N/A"}},{"$f":"IF(INDIRECT(\"c\" & (VLOOKUP(Switch!$D$35,$F$2:$G$44,2,FALSE)+ROW()-2))=Switch!$D$35,INDIRECT(\"a\" & (VLOOKUP(Switch!$D$35,$F$2:$G$44,2,FALSE)+ROW()-2)),\"\")","v":{"$error":"#N/A"}},{"$f":"IF(INDIRECT(\"c\" & (VLOOKUP(Switch!$D$36,$F$2:$G$44,2,FALSE)+ROW()-2))=Switch!$D$36,INDIRECT(\"a\" & (VLOOKUP(Switch!$D$36,$F$2:$G$44,2,FALSE)+ROW()-2)),\"\")","v":{"$error":"#N/A"}},{"$f":"IF(INDIRECT(\"c\" & (VLOOKUP(Switch!$D$37,$F$2:$G$44,2,FALSE)+ROW()-2))=Switch!$D$37,INDIRECT(\"a\" & (VLOOKUP(Switch!$D$37,$F$2:$G$44,2,FALSE)+ROW()-2)),\"\")","v":{"$error":"#N/A"}},{"$f":"IF(INDIRECT(\"c\" & (VLOOKUP(Switch!$D$38,$F$2:$G$44,2,FALSE)+ROW()-2))=Switch!$D$38,INDIRECT(\"a\" & (VLOOKUP(Switch!$D$38,$F$2:$G$44,2,FALSE)+ROW()-2)),\"\")","v":{"$error":"#N/A"}},{"$f":"IF(INDIRECT(\"c\" & (VLOOKUP(Switch!$D$39,$F$2:$G$44,2,FALSE)+ROW()-2))=Switch!$D$39,INDIRECT(\"a\" & (VLOOKUP(Switch!$D$39,$F$2:$G$44,2,FALSE)+ROW()-2)),\"\")","v":{"$error":"#N/A"}},{"$f":"IF(INDIRECT(\"c\" & (VLOOKUP(Switch!$D$40,$F$2:$G$44,2,FALSE)+ROW()-2))=Switch!$D$40,INDIRECT(\"a\" & (VLOOKUP(Switch!$D$40,$F$2:$G$44,2,FALSE)+ROW()-2)),\"\")","v":{"$error":"#N/A"}},{"$f":"IF(INDIRECT(\"c\" & (VLOOKUP(Switch!$D$52,$F$2:$G$44,2,FALSE)+ROW()-2))=Switch!$D$52,INDIRECT(\"a\" & (VLOOKUP(Switch!$D$52,$F$2:$G$44,2,FALSE)+ROW()-2)),\"\")","v":{"$error":"#N/A"}},{"$f":"IF(INDIRECT(\"c\" & (VLOOKUP(Switch!$D$53,$F$2:$G$44,2,FALSE)+ROW()-2))=Switch!$D$53,INDIRECT(\"a\" & (VLOOKUP(Switch!$D$53,$F$2:$G$44,2,FALSE)+ROW()-2)),\"\")","v":{"$error":"#N/A"}},{"$f":"IF(INDIRECT(\"c\" & (VLOOKUP(Switch!$D$54,$F$2:$G$44,2,FALSE)+ROW()-2))=Switch!$D$54,INDIRECT(\"a\" & (VLOOKUP(Switch!$D$54,$F$2:$G$44,2,FALSE)+ROW()-2)),\"\")","v":{"$error":"#N/A"}},{"$f":"IF(INDIRECT(\"c\" & (VLOOKUP(Switch!$D$55,$F$2:$G$44,2,FALSE)+ROW()-2))=Switch!$D$55,INDIRECT(\"a\" & (VLOOKUP(Switch!$D$55,$F$2:$G$44,2,FALSE)+ROW()-2)),\"\")","v":{"$error":"#N/A"}},{"$f":"IF(INDIRECT(\"c\" & (VLOOKUP(Switch!$D$56,$F$2:$G$44,2,FALSE)+ROW()-2))=Switch!$D$56,INDIRECT(\"a\" & (VLOOKUP(Switch!$D$56,$F$2:$G$44,2,FALSE)+ROW()-2)),\"\")","v":{"$error":"#N/A"}},{"$f":"IF(INDIRECT(\"c\" & (VLOOKUP(Switch!$D$57,$F$2:$G$44,2,FALSE)+ROW()-2))=Switch!$D$57,INDIRECT(\"a\" & (VLOOKUP(Switch!$D$57,$F$2:$G$44,2,FALSE)+ROW()-2)),\"\")","v":{"$error":"#N/A"}},{"$f":"IF(INDIRECT(\"c\" & (VLOOKUP(Switch!$D$58,$F$2:$G$44,2,FALSE)+ROW()-2))=Switch!$D$58,INDIRECT(\"a\" & (VLOOKUP(Switch!$D$58,$F$2:$G$44,2,FALSE)+ROW()-2)),\"\")","v":{"$error":"#N/A"}},{"$f":"IF(INDIRECT(\"c\" & (VLOOKUP(Switch!$D$59,$F$2:$G$44,2,FALSE)+ROW()-2))=Switch!$D$59,INDIRECT(\"a\" & (VLOOKUP(Switch!$D$59,$F$2:$G$44,2,FALSE)+ROW()-2)),\"\")","v":{"$error":"#N/A"}},{"$f":"IF(INDIRECT(\"c\" & (VLOOKUP(Switch!$D$60,$F$2:$G$44,2,FALSE)+ROW()-2))=Switch!$D$60,INDIRECT(\"a\" & (VLOOKUP(Switch!$D$60,$F$2:$G$44,2,FALSE)+ROW()-2)),\"\")","v":{"$error":"#N/A"}},{"$f":"IF(INDIRECT(\"c\" & (VLOOKUP(Switch!$D$61,$F$2:$G$44,2,FALSE)+ROW()-2))=Switch!$D$61,INDIRECT(\"a\" & (VLOOKUP(Switch!$D$61,$F$2:$G$44,2,FALSE)+ROW()-2)),\"\")","v":{"$error":"#N/A"}},{"$f":"IF(INDIRECT(\"c\" & (VLOOKUP(Switch!$D$62,$F$2:$G$44,2,FALSE)+ROW()-2))=Switch!$D$62,INDIRECT(\"a\" & (VLOOKUP(Switch!$D$62,$F$2:$G$44,2,FALSE)+ROW()-2)),\"\")","v":{"$error":"#N/A"}},{"$f":"IF(INDIRECT(\"c\" & (VLOOKUP(Switch!$D$63,$F$2:$G$44,2,FALSE)+ROW()-2))=Switch!$D$63,INDIRECT(\"a\" & (VLOOKUP(Switch!$D$63,$F$2:$G$44,2,FALSE)+ROW()-2)),\"\")","v":{"$error":"#N/A"}},{"$f":"IF(INDIRECT(\"c\" & (VLOOKUP(Switch!$D$64,$F$2:$G$44,2,FALSE)+ROW()-2))=Switch!$D$64,INDIRECT(\"a\" & (VLOOKUP(Switch!$D$64,$F$2:$G$44,2,FALSE)+ROW()-2)),\"\")","v":{"$error":"#N/A"}},{"$f":"IF(INDIRECT(\"c\" & (VLOOKUP(Switch!$D$65,$F$2:$G$44,2,FALSE)+ROW()-2))=Switch!$D$65,INDIRECT(\"a\" & (VLOOKUP(Switch!$D$65,$F$2:$G$44,2,FALSE)+ROW()-2)),\"\")","v":{"$error":"#N/A"}},{"$f":"IF(INDIRECT(\"c\" & (VLOOKUP(Switch!$D$66,$F$2:$G$44,2,FALSE)+ROW()-2))=Switch!$D$66,INDIRECT(\"a\" & (VLOOKUP(Switch!$D$66,$F$2:$G$44,2,FALSE)+ROW()-2)),\"\")","v":{"$error":"#N/A"}}]
["Allan Gray Orbis Global Equity Feeder Fund A","AGOE","Allan Gray Unit Trust Management Limited",{"$f":"ROW()","v":91},null,null,{"$f":"VLOOKUP(F91,$C$2:$D$637,2,FALSE)","v":{"$error":"#N/A"}},{"$f":"IF(INDIRECT(\"c\" & (VLOOKUP(Switch!$D$26,$F$2:$G$44,2,FALSE)+ROW()-2))=Switch!$D$26,INDIRECT(\"a\" & (VLOOKUP(Switch!$D$26,$F$2:$G$44,2,FALSE)+ROW()-2)),\"\")","v":{"$error":"#N/A"}},{"$f":"IF(INDIRECT(\"c\" & (VLOOKUP(Switch!$D$27,$F$2:$G$44,2,FALSE)+ROW()-2))=Switch!$D$27,INDIRECT(\"a\" & (VLOOKUP(Switch!$D$27,$F$2:$G$44,2,FALSE)+ROW()-2)),\"\")","v":{"$error":"#N/A"}},{"$f":"IF(INDIRECT(\"c\" & (VLOOKUP(Switch!$D$28,$F$2:$G$44,2,FALSE)+ROW()-2))=Switch!$D$28,INDIRECT(\"a\" & (VLOOKUP(Switch!$D$28,$F$2:$G$44,2,FALSE)+ROW()-2)),\"\")","v":{"$error":"#N/A"}},{"$f":"IF(INDIRECT(\"c\" & (VLOOKUP(Switch!$D$29,$F$2:$G$44,2,FALSE)+ROW()-2))=Switch!$D$29,INDIRECT(\"a\" & (VLOOKUP(Switch!$D$29,$F$2:$G$44,2,FALSE)+ROW()-2)),\"\")","v":{"$error":"#N/A"}},{"$f":"IF(INDIRECT(\"c\" & (VLOOKUP(Switch!$D$30,$F$2:$G$44,2,FALSE)+ROW()-2))=Switch!$D$30,INDIRECT(\"a\" & (VLOOKUP(Switch!$D$30,$F$2:$G$44,2,FALSE)+ROW()-2)),\"\")","v":{"$error":"#N/A"}},{"$f":"IF(INDIRECT(\"c\" & (VLOOKUP(Switch!$D$31,$F$2:$G$44,2,FALSE)+ROW()-2))=Switch!$D$31,INDIRECT(\"a\" & (VLOOKUP(Switch!$D$31,$F$2:$G$44,2,FALSE)+ROW()-2)),\"\")","v":{"$error":"#N/A"}},{"$f":"IF(INDIRECT(\"c\" & (VLOOKUP(Switch!$D$32,$F$2:$G$44,2,FALSE)+ROW()-2))=Switch!$D$32,INDIRECT(\"a\" & (VLOOKUP(Switch!$D$32,$F$2:$G$44,2,FALSE)+ROW()-2)),\"\")","v":{"$error":"#N/A"}},{"$f":"IF(INDIRECT(\"c\" & (VLOOKUP(Switch!$D$33,$F$2:$G$44,2,FALSE)+ROW()-2))=Switch!$D$33,INDIRECT(\"a\" & (VLOOKUP(Switch!$D$33,$F$2:$G$44,2,FALSE)+ROW()-2)),\"\")","v":{"$error":"#N/A"}},{"$f":"IF(INDIRECT(\"c\" & (VLOOKUP(Switch!$D$34,$F$2:$G$44,2,FALSE)+ROW()-2))=Switch!$D$34,INDIRECT(\"a\" & (VLOOKUP(Switch!$D$34,$F$2:$G$44,2,FALSE)+ROW()-2)),\"\")","v":{"$error":"#N/A"}},{"$f":"IF(INDIRECT(\"c\" & (VLOOKUP(Switch!$D$35,$F$2:$G$44,2,FALSE)+ROW()-2))=Switch!$D$35,INDIRECT(\"a\" & (VLOOKUP(Switch!$D$35,$F$2:$G$44,2,FALSE)+ROW()-2)),\"\")","v":{"$error":"#N/A"}},{"$f":"IF(INDIRECT(\"c\" & (VLOOKUP(Switch!$D$36,$F$2:$G$44,2,FALSE)+ROW()-2))=Switch!$D$36,INDIRECT(\"a\" & (VLOOKUP(Switch!$D$36,$F$2:$G$44,2,FALSE)+ROW()-2)),\"\")","v":{"$error":"#N/A"}},{"$f":"IF(INDIRECT(\"c\" & (VLOOKUP(Switch!$D$37,$F$2:$G$44,2,FALSE)+ROW()-2))=Switch!$D$37,INDIRECT(\"a\" & (VLOOKUP(Switch!$D$37,$F$2:$G$44,2,FALSE)+ROW()-2)),\"\")","v":{"$error":"#N/A"}},{"$f":"IF(INDIRECT(\"c\" & (VLOOKUP(Switch!$D$38,$F$2:$G$44,2,FALSE)+ROW()-2))=Switch!$D$38,INDIRECT(\"a\" & (VLOOKUP(Switch!$D$38,$F$2:$G$44,2,FALSE)+ROW()-2)),\"\")","v":{"$error":"#N/A"}},{"$f":"IF(INDIRECT(\"c\" & (VLOOKUP(Switch!$D$39,$F$2:$G$44,2,FALSE)+ROW()-2))=Switch!$D$39,INDIRECT(\"a\" & (VLOOKUP(Switch!$D$39,$F$2:$G$44,2,FALSE)+ROW()-2)),\"\")","v":{"$error":"#N/A"}},{"$f":"IF(INDIRECT(\"c\" & (VLOOKUP(Switch!$D$40,$F$2:$G$44,2,FALSE)+ROW()-2))=Switch!$D$40,INDIRECT(\"a\" & (VLOOKUP(Switch!$D$40,$F$2:$G$44,2,FALSE)+ROW()-2)),\"\")","v":{"$error":"#N/A"}},{"$f":"IF(INDIRECT(\"c\" & (VLOOKUP(Switch!$D$52,$F$2:$G$44,2,FALSE)+ROW()-2))=Switch!$D$52,INDIRECT(\"a\" & (VLOOKUP(Switch!$D$52,$F$2:$G$44,2,FALSE)+ROW()-2)),\"\")","v":{"$error":"#N/A"}},{"$f":"IF(INDIRECT(\"c\" & (VLOOKUP(Switch!$D$53,$F$2:$G$44,2,FALSE)+ROW()-2))=Switch!$D$53,INDIRECT(\"a\" & (VLOOKUP(Switch!$D$53,$F$2:$G$44,2,FALSE)+ROW()-2)),\"\")","v":{"$error":"#N/A"}},{"$f":"IF(INDIRECT(\"c\" & (VLOOKUP(Switch!$D$54,$F$2:$G$44,2,FALSE)+ROW()-2))=Switch!$D$54,INDIRECT(\"a\" & (VLOOKUP(Switch!$D$54,$F$2:$G$44,2,FALSE)+ROW()-2)),\"\")","v":{"$error":"#N/A"}},{"$f":"IF(INDIRECT(\"c\" & (VLOOKUP(Switch!$D$55,$F$2:$G$44,2,FALSE)+ROW()-2))=Switch!$D$55,INDIRECT(\"a\" & (VLOOKUP(Switch!$D$55,$F$2:$G$44,2,FALSE)+ROW()-2)),\"\")","v":{"$error":"#N/A"}},{"$f":"IF(INDIRECT(\"c\" & (VLOOKUP(Switch!$D$56,$F$2:$G$44,2,FALSE)+ROW()-2))=Switch!$D$56,INDIRECT(\"a\" & (VLOOKUP(Switch!$D$56,$F$2:$G$44,2,FALSE)+ROW()-2)),\"\")","v":{"$error":"#N/A"}},{"$f":"IF(INDIRECT(\"c\" & (VLOOKUP(Switch!$D$57,$F$2:$G$44,2,FALSE)+ROW()-2))=Switch!$D$57,INDIRECT(\"a\" & (VLOOKUP(Switch!$D$57,$F$2:$G$44,2,FALSE)+ROW()-2)),\"\")","v":{"$error":"#N/A"}},{"$f":"IF(INDIRECT(\"c\" & (VLOOKUP(Switch!$D$58,$F$2:$G$44,2,FALSE)+ROW()-2))=Switch!$D$58,INDIRECT(\"a\" & (VLOOKUP(Switch!$D$58,$F$2:$G$44,2,FALSE)+ROW()-2)),\"\")","v":{"$error":"#N/A"}},{"$f":"IF(INDIRECT(\"c\" & (VLOOKUP(Switch!$D$59,$F$2:$G$44,2,FALSE)+ROW()-2))=Switch!$D$59,INDIRECT(\"a\" & (VLOOKUP(Switch!$D$59,$F$2:$G$44,2,FALSE)+ROW()-2)),\"\")","v":{"$error":"#N/A"}},{"$f":"IF(INDIRECT(\"c\" & (VLOOKUP(Switch!$D$60,$F$2:$G$44,2,FALSE)+ROW()-2))=Switch!$D$60,INDIRECT(\"a\" & (VLOOKUP(Switch!$D$60,$F$2:$G$44,2,FALSE)+ROW()-2)),\"\")","v":{"$error":"#N/A"}},{"$f":"IF(INDIRECT(\"c\" & (VLOOKUP(Switch!$D$61,$F$2:$G$44,2,FALSE)+ROW()-2))=Switch!$D$61,INDIRECT(\"a\" & (VLOOKUP(Switch!$D$61,$F$2:$G$44,2,FALSE)+ROW()-2)),\"\")","v":{"$error":"#N/A"}},{"$f":"IF(INDIRECT(\"c\" & (VLOOKUP(Switch!$D$62,$F$2:$G$44,2,FALSE)+ROW()-2))=Switch!$D$62,INDIRECT(\"a\" & (VLOOKUP(Switch!$D$62,$F$2:$G$44,2,FALSE)+ROW()-2)),\"\")","v":{"$error":"#N/A"}},{"$f":"IF(INDIRECT(\"c\" & (VLOOKUP(Switch!$D$63,$F$2:$G$44,2,FALSE)+ROW()-2))=Switch!$D$63,INDIRECT(\"a\" & (VLOOKUP(Switch!$D$63,$F$2:$G$44,2,FALSE)+ROW()-2)),\"\")","v":{"$error":"#N/A"}},{"$f":"IF(INDIRECT(\"c\" & (VLOOKUP(Switch!$D$64,$F$2:$G$44,2,FALSE)+ROW()-2))=Switch!$D$64,INDIRECT(\"a\" & (VLOOKUP(Switch!$D$64,$F$2:$G$44,2,FALSE)+ROW()-2)),\"\")","v":{"$error":"#N/A"}},{"$f":"IF(INDIRECT(\"c\" & (VLOOKUP(Switch!$D$65,$F$2:$G$44,2,FALSE)+ROW()-2))=Switch!$D$65,INDIRECT(\"a\" & (VLOOKUP(Switch!$D$65,$F$2:$G$44,2,FALSE)+ROW()-2)),\"\")","v":{"$error":"#N/A"}},{"$f":"IF(INDIRECT(\"c\" & (VLOOKUP(Switch!$D$66,$F$2:$G$44,2,FALSE)+ROW()-2))=Switch!$D$66,INDIRECT(\"a\" & (VLOOKUP(Switch!$D$66,$F$2:$G$44,2,FALSE)+ROW()-2)),\"\")","v":{"$error":"#N/A"}}]
["Allan Gray Orbis Global FoF A","AGGF","Allan Gray Unit Trust Management Limited",{"$f":"ROW()","v":92},null,null,{"$f":"VLOOKUP(F92,$C$2:$D$637,2,FALSE)","v":{"$error":"#N/A"}},{"$f":"IF(INDIRECT(\"c\" & (VLOOKUP(Switch!$D$26,$F$2:$G$44,2,FALSE)+ROW()-2))=Switch!$D$26,INDIRECT(\"a\" & (VLOOKUP(Switch!$D$26,$F$2:$G$44,2,FALSE)+ROW()-2)),\"\")","v":{"$error":"#N/A"}},{"$f":"IF(INDIRECT(\"c\" & (VLOOKUP(Switch!$D$27,$F$2:$G$44,2,FALSE)+ROW()-2))=Switch!$D$27,INDIRECT(\"a\" & (VLOOKUP(Switch!$D$27,$F$2:$G$44,2,FALSE)+ROW()-2)),\"\")","v":{"$error":"#N/A"}},{"$f":"IF(INDIRECT(\"c\" & (VLOOKUP(Switch!$D$28,$F$2:$G$44,2,FALSE)+ROW()-2))=Switch!$D$28,INDIRECT(\"a\" & (VLOOKUP(Switch!$D$28,$F$2:$G$44,2,FALSE)+ROW()-2)),\"\")","v":{"$error":"#N/A"}},{"$f":"IF(INDIRECT(\"c\" & (VLOOKUP(Switch!$D$29,$F$2:$G$44,2,FALSE)+ROW()-2))=Switch!$D$29,INDIRECT(\"a\" & (VLOOKUP(Switch!$D$29,$F$2:$G$44,2,FALSE)+ROW()-2)),\"\")","v":{"$error":"#N/A"}},{"$f":"IF(INDIRECT(\"c\" & (VLOOKUP(Switch!$D$30,$F$2:$G$44,2,FALSE)+ROW()-2))=Switch!$D$30,INDIRECT(\"a\" & (VLOOKUP(Switch!$D$30,$F$2:$G$44,2,FALSE)+ROW()-2)),\"\")","v":{"$error":"#N/A"}},{"$f":"IF(INDIRECT(\"c\" & (VLOOKUP(Switch!$D$31,$F$2:$G$44,2,FALSE)+ROW()-2))=Switch!$D$31,INDIRECT(\"a\" & (VLOOKUP(Switch!$D$31,$F$2:$G$44,2,FALSE)+ROW()-2)),\"\")","v":{"$error":"#N/A"}},{"$f":"IF(INDIRECT(\"c\" & (VLOOKUP(Switch!$D$32,$F$2:$G$44,2,FALSE)+ROW()-2))=Switch!$D$32,INDIRECT(\"a\" & (VLOOKUP(Switch!$D$32,$F$2:$G$44,2,FALSE)+ROW()-2)),\"\")","v":{"$error":"#N/A"}},{"$f":"IF(INDIRECT(\"c\" & (VLOOKUP(Switch!$D$33,$F$2:$G$44,2,FALSE)+ROW()-2))=Switch!$D$33,INDIRECT(\"a\" & (VLOOKUP(Switch!$D$33,$F$2:$G$44,2,FALSE)+ROW()-2)),\"\")","v":{"$error":"#N/A"}},{"$f":"IF(INDIRECT(\"c\" & (VLOOKUP(Switch!$D$34,$F$2:$G$44,2,FALSE)+ROW()-2))=Switch!$D$34,INDIRECT(\"a\" & (VLOOKUP(Switch!$D$34,$F$2:$G$44,2,FALSE)+ROW()-2)),\"\")","v":{"$error":"#N/A"}},{"$f":"IF(INDIRECT(\"c\" & (VLOOKUP(Switch!$D$35,$F$2:$G$44,2,FALSE)+ROW()-2))=Switch!$D$35,INDIRECT(\"a\" & (VLOOKUP(Switch!$D$35,$F$2:$G$44,2,FALSE)+ROW()-2)),\"\")","v":{"$error":"#N/A"}},{"$f":"IF(INDIRECT(\"c\" & (VLOOKUP(Switch!$D$36,$F$2:$G$44,2,FALSE)+ROW()-2))=Switch!$D$36,INDIRECT(\"a\" & (VLOOKUP(Switch!$D$36,$F$2:$G$44,2,FALSE)+ROW()-2)),\"\")","v":{"$error":"#N/A"}},{"$f":"IF(INDIRECT(\"c\" & (VLOOKUP(Switch!$D$37,$F$2:$G$44,2,FALSE)+ROW()-2))=Switch!$D$37,INDIRECT(\"a\" & (VLOOKUP(Switch!$D$37,$F$2:$G$44,2,FALSE)+ROW()-2)),\"\")","v":{"$error":"#N/A"}},{"$f":"IF(INDIRECT(\"c\" & (VLOOKUP(Switch!$D$38,$F$2:$G$44,2,FALSE)+ROW()-2))=Switch!$D$38,INDIRECT(\"a\" & (VLOOKUP(Switch!$D$38,$F$2:$G$44,2,FALSE)+ROW()-2)),\"\")","v":{"$error":"#N/A"}},{"$f":"IF(INDIRECT(\"c\" & (VLOOKUP(Switch!$D$39,$F$2:$G$44,2,FALSE)+ROW()-2))=Switch!$D$39,INDIRECT(\"a\" & (VLOOKUP(Switch!$D$39,$F$2:$G$44,2,FALSE)+ROW()-2)),\"\")","v":{"$error":"#N/A"}},{"$f":"IF(INDIRECT(\"c\" & (VLOOKUP(Switch!$D$40,$F$2:$G$44,2,FALSE)+ROW()-2))=Switch!$D$40,INDIRECT(\"a\" & (VLOOKUP(Switch!$D$40,$F$2:$G$44,2,FALSE)+ROW()-2)),\"\")","v":{"$error":"#N/A"}},{"$f":"IF(INDIRECT(\"c\" & (VLOOKUP(Switch!$D$52,$F$2:$G$44,2,FALSE)+ROW()-2))=Switch!$D$52,INDIRECT(\"a\" & (VLOOKUP(Switch!$D$52,$F$2:$G$44,2,FALSE)+ROW()-2)),\"\")","v":{"$error":"#N/A"}},{"$f":"IF(INDIRECT(\"c\" & (VLOOKUP(Switch!$D$53,$F$2:$G$44,2,FALSE)+ROW()-2))=Switch!$D$53,INDIRECT(\"a\" & (VLOOKUP(Switch!$D$53,$F$2:$G$44,2,FALSE)+ROW()-2)),\"\")","v":{"$error":"#N/A"}},{"$f":"IF(INDIRECT(\"c\" & (VLOOKUP(Switch!$D$54,$F$2:$G$44,2,FALSE)+ROW()-2))=Switch!$D$54,INDIRECT(\"a\" & (VLOOKUP(Switch!$D$54,$F$2:$G$44,2,FALSE)+ROW()-2)),\"\")","v":{"$error":"#N/A"}},{"$f":"IF(INDIRECT(\"c\" & (VLOOKUP(Switch!$D$55,$F$2:$G$44,2,FALSE)+ROW()-2))=Switch!$D$55,INDIRECT(\"a\" & (VLOOKUP(Switch!$D$55,$F$2:$G$44,2,FALSE)+ROW()-2)),\"\")","v":{"$error":"#N/A"}},{"$f":"IF(INDIRECT(\"c\" & (VLOOKUP(Switch!$D$56,$F$2:$G$44,2,FALSE)+ROW()-2))=Switch!$D$56,INDIRECT(\"a\" & (VLOOKUP(Switch!$D$56,$F$2:$G$44,2,FALSE)+ROW()-2)),\"\")","v":{"$error":"#N/A"}},{"$f":"IF(INDIRECT(\"c\" & (VLOOKUP(Switch!$D$57,$F$2:$G$44,2,FALSE)+ROW()-2))=Switch!$D$57,INDIRECT(\"a\" & (VLOOKUP(Switch!$D$57,$F$2:$G$44,2,FALSE)+ROW()-2)),\"\")","v":{"$error":"#N/A"}},{"$f":"IF(INDIRECT(\"c\" & (VLOOKUP(Switch!$D$58,$F$2:$G$44,2,FALSE)+ROW()-2))=Switch!$D$58,INDIRECT(\"a\" & (VLOOKUP(Switch!$D$58,$F$2:$G$44,2,FALSE)+ROW()-2)),\"\")","v":{"$error":"#N/A"}},{"$f":"IF(INDIRECT(\"c\" & (VLOOKUP(Switch!$D$59,$F$2:$G$44,2,FALSE)+ROW()-2))=Switch!$D$59,INDIRECT(\"a\" & (VLOOKUP(Switch!$D$59,$F$2:$G$44,2,FALSE)+ROW()-2)),\"\")","v":{"$error":"#N/A"}},{"$f":"IF(INDIRECT(\"c\" & (VLOOKUP(Switch!$D$60,$F$2:$G$44,2,FALSE)+ROW()-2))=Switch!$D$60,INDIRECT(\"a\" & (VLOOKUP(Switch!$D$60,$F$2:$G$44,2,FALSE)+ROW()-2)),\"\")","v":{"$error":"#N/A"}},{"$f":"IF(INDIRECT(\"c\" & (VLOOKUP(Switch!$D$61,$F$2:$G$44,2,FALSE)+ROW()-2))=Switch!$D$61,INDIRECT(\"a\" & (VLOOKUP(Switch!$D$61,$F$2:$G$44,2,FALSE)+ROW()-2)),\"\")","v":{"$error":"#N/A"}},{"$f":"IF(INDIRECT(\"c\" & (VLOOKUP(Switch!$D$62,$F$2:$G$44,2,FALSE)+ROW()-2))=Switch!$D$62,INDIRECT(\"a\" & (VLOOKUP(Switch!$D$62,$F$2:$G$44,2,FALSE)+ROW()-2)),\"\")","v":{"$error":"#N/A"}},{"$f":"IF(INDIRECT(\"c\" & (VLOOKUP(Switch!$D$63,$F$2:$G$44,2,FALSE)+ROW()-2))=Switch!$D$63,INDIRECT(\"a\" & (VLOOKUP(Switch!$D$63,$F$2:$G$44,2,FALSE)+ROW()-2)),\"\")","v":{"$error":"#N/A"}},{"$f":"IF(INDIRECT(\"c\" & (VLOOKUP(Switch!$D$64,$F$2:$G$44,2,FALSE)+ROW()-2))=Switch!$D$64,INDIRECT(\"a\" & (VLOOKUP(Switch!$D$64,$F$2:$G$44,2,FALSE)+ROW()-2)),\"\")","v":{"$error":"#N/A"}},{"$f":"IF(INDIRECT(\"c\" & (VLOOKUP(Switch!$D$65,$F$2:$G$44,2,FALSE)+ROW()-2))=Switch!$D$65,INDIRECT(\"a\" & (VLOOKUP(Switch!$D$65,$F$2:$G$44,2,FALSE)+ROW()-2)),\"\")","v":{"$error":"#N/A"}},{"$f":"IF(INDIRECT(\"c\" & (VLOOKUP(Switch!$D$66,$F$2:$G$44,2,FALSE)+ROW()-2))=Switch!$D$66,INDIRECT(\"a\" & (VLOOKUP(Switch!$D$66,$F$2:$G$44,2,FALSE)+ROW()-2)),\"\")","v":{"$error":"#N/A"}}]
["Allan Gray Stable Fund C","AGSC","Allan Gray Unit Trust Management Limited",{"$f":"ROW()","v":93},null,null,{"$f":"VLOOKUP(F93,$C$2:$D$637,2,FALSE)","v":{"$error":"#N/A"}},{"$f":"IF(INDIRECT(\"c\" & (VLOOKUP(Switch!$D$26,$F$2:$G$44,2,FALSE)+ROW()-2))=Switch!$D$26,INDIRECT(\"a\" & (VLOOKUP(Switch!$D$26,$F$2:$G$44,2,FALSE)+ROW()-2)),\"\")","v":{"$error":"#N/A"}},{"$f":"IF(INDIRECT(\"c\" & (VLOOKUP(Switch!$D$27,$F$2:$G$44,2,FALSE)+ROW()-2))=Switch!$D$27,INDIRECT(\"a\" & (VLOOKUP(Switch!$D$27,$F$2:$G$44,2,FALSE)+ROW()-2)),\"\")","v":{"$error":"#N/A"}},{"$f":"IF(INDIRECT(\"c\" & (VLOOKUP(Switch!$D$28,$F$2:$G$44,2,FALSE)+ROW()-2))=Switch!$D$28,INDIRECT(\"a\" & (VLOOKUP(Switch!$D$28,$F$2:$G$44,2,FALSE)+ROW()-2)),\"\")","v":{"$error":"#N/A"}},{"$f":"IF(INDIRECT(\"c\" & (VLOOKUP(Switch!$D$29,$F$2:$G$44,2,FALSE)+ROW()-2))=Switch!$D$29,INDIRECT(\"a\" & (VLOOKUP(Switch!$D$29,$F$2:$G$44,2,FALSE)+ROW()-2)),\"\")","v":{"$error":"#N/A"}},{"$f":"IF(INDIRECT(\"c\" & (VLOOKUP(Switch!$D$30,$F$2:$G$44,2,FALSE)+ROW()-2))=Switch!$D$30,INDIRECT(\"a\" & (VLOOKUP(Switch!$D$30,$F$2:$G$44,2,FALSE)+ROW()-2)),\"\")","v":{"$error":"#N/A"}},{"$f":"IF(INDIRECT(\"c\" & (VLOOKUP(Switch!$D$31,$F$2:$G$44,2,FALSE)+ROW()-2))=Switch!$D$31,INDIRECT(\"a\" & (VLOOKUP(Switch!$D$31,$F$2:$G$44,2,FALSE)+ROW()-2)),\"\")","v":{"$error":"#N/A"}},{"$f":"IF(INDIRECT(\"c\" & (VLOOKUP(Switch!$D$32,$F$2:$G$44,2,FALSE)+ROW()-2))=Switch!$D$32,INDIRECT(\"a\" & (VLOOKUP(Switch!$D$32,$F$2:$G$44,2,FALSE)+ROW()-2)),\"\")","v":{"$error":"#N/A"}},{"$f":"IF(INDIRECT(\"c\" & (VLOOKUP(Switch!$D$33,$F$2:$G$44,2,FALSE)+ROW()-2))=Switch!$D$33,INDIRECT(\"a\" & (VLOOKUP(Switch!$D$33,$F$2:$G$44,2,FALSE)+ROW()-2)),\"\")","v":{"$error":"#N/A"}},{"$f":"IF(INDIRECT(\"c\" & (VLOOKUP(Switch!$D$34,$F$2:$G$44,2,FALSE)+ROW()-2))=Switch!$D$34,INDIRECT(\"a\" & (VLOOKUP(Switch!$D$34,$F$2:$G$44,2,FALSE)+ROW()-2)),\"\")","v":{"$error":"#N/A"}},{"$f":"IF(INDIRECT(\"c\" & (VLOOKUP(Switch!$D$35,$F$2:$G$44,2,FALSE)+ROW()-2))=Switch!$D$35,INDIRECT(\"a\" & (VLOOKUP(Switch!$D$35,$F$2:$G$44,2,FALSE)+ROW()-2)),\"\")","v":{"$error":"#N/A"}},{"$f":"IF(INDIRECT(\"c\" & (VLOOKUP(Switch!$D$36,$F$2:$G$44,2,FALSE)+ROW()-2))=Switch!$D$36,INDIRECT(\"a\" & (VLOOKUP(Switch!$D$36,$F$2:$G$44,2,FALSE)+ROW()-2)),\"\")","v":{"$error":"#N/A"}},{"$f":"IF(INDIRECT(\"c\" & (VLOOKUP(Switch!$D$37,$F$2:$G$44,2,FALSE)+ROW()-2))=Switch!$D$37,INDIRECT(\"a\" & (VLOOKUP(Switch!$D$37,$F$2:$G$44,2,FALSE)+ROW()-2)),\"\")","v":{"$error":"#N/A"}},{"$f":"IF(INDIRECT(\"c\" & (VLOOKUP(Switch!$D$38,$F$2:$G$44,2,FALSE)+ROW()-2))=Switch!$D$38,INDIRECT(\"a\" & (VLOOKUP(Switch!$D$38,$F$2:$G$44,2,FALSE)+ROW()-2)),\"\")","v":{"$error":"#N/A"}},{"$f":"IF(INDIRECT(\"c\" & (VLOOKUP(Switch!$D$39,$F$2:$G$44,2,FALSE)+ROW()-2))=Switch!$D$39,INDIRECT(\"a\" & (VLOOKUP(Switch!$D$39,$F$2:$G$44,2,FALSE)+ROW()-2)),\"\")","v":{"$error":"#N/A"}},{"$f":"IF(INDIRECT(\"c\" & (VLOOKUP(Switch!$D$40,$F$2:$G$44,2,FALSE)+ROW()-2))=Switch!$D$40,INDIRECT(\"a\" & (VLOOKUP(Switch!$D$40,$F$2:$G$44,2,FALSE)+ROW()-2)),\"\")","v":{"$error":"#N/A"}},{"$f":"IF(INDIRECT(\"c\" & (VLOOKUP(Switch!$D$52,$F$2:$G$44,2,FALSE)+ROW()-2))=Switch!$D$52,INDIRECT(\"a\" & (VLOOKUP(Switch!$D$52,$F$2:$G$44,2,FALSE)+ROW()-2)),\"\")","v":{"$error":"#N/A"}},{"$f":"IF(INDIRECT(\"c\" & (VLOOKUP(Switch!$D$53,$F$2:$G$44,2,FALSE)+ROW()-2))=Switch!$D$53,INDIRECT(\"a\" & (VLOOKUP(Switch!$D$53,$F$2:$G$44,2,FALSE)+ROW()-2)),\"\")","v":{"$error":"#N/A"}},{"$f":"IF(INDIRECT(\"c\" & (VLOOKUP(Switch!$D$54,$F$2:$G$44,2,FALSE)+ROW()-2))=Switch!$D$54,INDIRECT(\"a\" & (VLOOKUP(Switch!$D$54,$F$2:$G$44,2,FALSE)+ROW()-2)),\"\")","v":{"$error":"#N/A"}},{"$f":"IF(INDIRECT(\"c\" & (VLOOKUP(Switch!$D$55,$F$2:$G$44,2,FALSE)+ROW()-2))=Switch!$D$55,INDIRECT(\"a\" & (VLOOKUP(Switch!$D$55,$F$2:$G$44,2,FALSE)+ROW()-2)),\"\")","v":{"$error":"#N/A"}},{"$f":"IF(INDIRECT(\"c\" & (VLOOKUP(Switch!$D$56,$F$2:$G$44,2,FALSE)+ROW()-2))=Switch!$D$56,INDIRECT(\"a\" & (VLOOKUP(Switch!$D$56,$F$2:$G$44,2,FALSE)+ROW()-2)),\"\")","v":{"$error":"#N/A"}},{"$f":"IF(INDIRECT(\"c\" & (VLOOKUP(Switch!$D$57,$F$2:$G$44,2,FALSE)+ROW()-2))=Switch!$D$57,INDIRECT(\"a\" & (VLOOKUP(Switch!$D$57,$F$2:$G$44,2,FALSE)+ROW()-2)),\"\")","v":{"$error":"#N/A"}},{"$f":"IF(INDIRECT(\"c\" & (VLOOKUP(Switch!$D$58,$F$2:$G$44,2,FALSE)+ROW()-2))=Switch!$D$58,INDIRECT(\"a\" & (VLOOKUP(Switch!$D$58,$F$2:$G$44,2,FALSE)+ROW()-2)),\"\")","v":{"$error":"#N/A"}},{"$f":"IF(INDIRECT(\"c\" & (VLOOKUP(Switch!$D$59,$F$2:$G$44,2,FALSE)+ROW()-2))=Switch!$D$59,INDIRECT(\"a\" & (VLOOKUP(Switch!$D$59,$F$2:$G$44,2,FALSE)+ROW()-2)),\"\")","v":{"$error":"#N/A"}},{"$f":"IF(INDIRECT(\"c\" & (VLOOKUP(Switch!$D$60,$F$2:$G$44,2,FALSE)+ROW()-2))=Switch!$D$60,INDIRECT(\"a\" & (VLOOKUP(Switch!$D$60,$F$2:$G$44,2,FALSE)+ROW()-2)),\"\")","v":{"$error":"#N/A"}},{"$f":"IF(INDIRECT(\"c\" & (VLOOKUP(Switch!$D$61,$F$2:$G$44,2,FALSE)+ROW()-2))=Switch!$D$61,INDIRECT(\"a\" & (VLOOKUP(Switch!$D$61,$F$2:$G$44,2,FALSE)+ROW()-2)),\"\")","v":{"$error":"#N/A"}},{"$f":"IF(INDIRECT(\"c\" & (VLOOKUP(Switch!$D$62,$F$2:$G$44,2,FALSE)+ROW()-2))=Switch!$D$62,INDIRECT(\"a\" & (VLOOKUP(Switch!$D$62,$F$2:$G$44,2,FALSE)+ROW()-2)),\"\")","v":{"$error":"#N/A"}},{"$f":"IF(INDIRECT(\"c\" & (VLOOKUP(Switch!$D$63,$F$2:$G$44,2,FALSE)+ROW()-2))=Switch!$D$63,INDIRECT(\"a\" & (VLOOKUP(Switch!$D$63,$F$2:$G$44,2,FALSE)+ROW()-2)),\"\")","v":{"$error":"#N/A"}},{"$f":"IF(INDIRECT(\"c\" & (VLOOKUP(Switch!$D$64,$F$2:$G$44,2,FALSE)+ROW()-2))=Switch!$D$64,INDIRECT(\"a\" & (VLOOKUP(Switch!$D$64,$F$2:$G$44,2,FALSE)+ROW()-2)),\"\")","v":{"$error":"#N/A"}},{"$f":"IF(INDIRECT(\"c\" & (VLOOKUP(Switch!$D$65,$F$2:$G$44,2,FALSE)+ROW()-2))=Switch!$D$65,INDIRECT(\"a\" & (VLOOKUP(Switch!$D$65,$F$2:$G$44,2,FALSE)+ROW()-2)),\"\")","v":{"$error":"#N/A"}},{"$f":"IF(INDIRECT(\"c\" & (VLOOKUP(Switch!$D$66,$F$2:$G$44,2,FALSE)+ROW()-2))=Switch!$D$66,INDIRECT(\"a\" & (VLOOKUP(Switch!$D$66,$F$2:$G$44,2,FALSE)+ROW()-2)),\"\")","v":{"$error":"#N/A"}}]
["Ashburton Diversified Income Fund A","ASIFA","Ashburton Management Company (RF) PTY LTD",{"$f":"ROW()","v":94},null,null,{"$f":"VLOOKUP(F94,$C$2:$D$637,2,FALSE)","v":{"$error":"#N/A"}},{"$f":"IF(INDIRECT(\"c\" & (VLOOKUP(Switch!$D$26,$F$2:$G$44,2,FALSE)+ROW()-2))=Switch!$D$26,INDIRECT(\"a\" & (VLOOKUP(Switch!$D$26,$F$2:$G$44,2,FALSE)+ROW()-2)),\"\")","v":{"$error":"#N/A"}},{"$f":"IF(INDIRECT(\"c\" & (VLOOKUP(Switch!$D$27,$F$2:$G$44,2,FALSE)+ROW()-2))=Switch!$D$27,INDIRECT(\"a\" & (VLOOKUP(Switch!$D$27,$F$2:$G$44,2,FALSE)+ROW()-2)),\"\")","v":{"$error":"#N/A"}},{"$f":"IF(INDIRECT(\"c\" & (VLOOKUP(Switch!$D$28,$F$2:$G$44,2,FALSE)+ROW()-2))=Switch!$D$28,INDIRECT(\"a\" & (VLOOKUP(Switch!$D$28,$F$2:$G$44,2,FALSE)+ROW()-2)),\"\")","v":{"$error":"#N/A"}},{"$f":"IF(INDIRECT(\"c\" & (VLOOKUP(Switch!$D$29,$F$2:$G$44,2,FALSE)+ROW()-2))=Switch!$D$29,INDIRECT(\"a\" & (VLOOKUP(Switch!$D$29,$F$2:$G$44,2,FALSE)+ROW()-2)),\"\")","v":{"$error":"#N/A"}},{"$f":"IF(INDIRECT(\"c\" & (VLOOKUP(Switch!$D$30,$F$2:$G$44,2,FALSE)+ROW()-2))=Switch!$D$30,INDIRECT(\"a\" & (VLOOKUP(Switch!$D$30,$F$2:$G$44,2,FALSE)+ROW()-2)),\"\")","v":{"$error":"#N/A"}},{"$f":"IF(INDIRECT(\"c\" & (VLOOKUP(Switch!$D$31,$F$2:$G$44,2,FALSE)+ROW()-2))=Switch!$D$31,INDIRECT(\"a\" & (VLOOKUP(Switch!$D$31,$F$2:$G$44,2,FALSE)+ROW()-2)),\"\")","v":{"$error":"#N/A"}},{"$f":"IF(INDIRECT(\"c\" & (VLOOKUP(Switch!$D$32,$F$2:$G$44,2,FALSE)+ROW()-2))=Switch!$D$32,INDIRECT(\"a\" & (VLOOKUP(Switch!$D$32,$F$2:$G$44,2,FALSE)+ROW()-2)),\"\")","v":{"$error":"#N/A"}},{"$f":"IF(INDIRECT(\"c\" & (VLOOKUP(Switch!$D$33,$F$2:$G$44,2,FALSE)+ROW()-2))=Switch!$D$33,INDIRECT(\"a\" & (VLOOKUP(Switch!$D$33,$F$2:$G$44,2,FALSE)+ROW()-2)),\"\")","v":{"$error":"#N/A"}},{"$f":"IF(INDIRECT(\"c\" & (VLOOKUP(Switch!$D$34,$F$2:$G$44,2,FALSE)+ROW()-2))=Switch!$D$34,INDIRECT(\"a\" & (VLOOKUP(Switch!$D$34,$F$2:$G$44,2,FALSE)+ROW()-2)),\"\")","v":{"$error":"#N/A"}},{"$f":"IF(INDIRECT(\"c\" & (VLOOKUP(Switch!$D$35,$F$2:$G$44,2,FALSE)+ROW()-2))=Switch!$D$35,INDIRECT(\"a\" & (VLOOKUP(Switch!$D$35,$F$2:$G$44,2,FALSE)+ROW()-2)),\"\")","v":{"$error":"#N/A"}},{"$f":"IF(INDIRECT(\"c\" & (VLOOKUP(Switch!$D$36,$F$2:$G$44,2,FALSE)+ROW()-2))=Switch!$D$36,INDIRECT(\"a\" & (VLOOKUP(Switch!$D$36,$F$2:$G$44,2,FALSE)+ROW()-2)),\"\")","v":{"$error":"#N/A"}},{"$f":"IF(INDIRECT(\"c\" & (VLOOKUP(Switch!$D$37,$F$2:$G$44,2,FALSE)+ROW()-2))=Switch!$D$37,INDIRECT(\"a\" & (VLOOKUP(Switch!$D$37,$F$2:$G$44,2,FALSE)+ROW()-2)),\"\")","v":{"$error":"#N/A"}},{"$f":"IF(INDIRECT(\"c\" & (VLOOKUP(Switch!$D$38,$F$2:$G$44,2,FALSE)+ROW()-2))=Switch!$D$38,INDIRECT(\"a\" & (VLOOKUP(Switch!$D$38,$F$2:$G$44,2,FALSE)+ROW()-2)),\"\")","v":{"$error":"#N/A"}},{"$f":"IF(INDIRECT(\"c\" & (VLOOKUP(Switch!$D$39,$F$2:$G$44,2,FALSE)+ROW()-2))=Switch!$D$39,INDIRECT(\"a\" & (VLOOKUP(Switch!$D$39,$F$2:$G$44,2,FALSE)+ROW()-2)),\"\")","v":{"$error":"#N/A"}},{"$f":"IF(INDIRECT(\"c\" & (VLOOKUP(Switch!$D$40,$F$2:$G$44,2,FALSE)+ROW()-2))=Switch!$D$40,INDIRECT(\"a\" & (VLOOKUP(Switch!$D$40,$F$2:$G$44,2,FALSE)+ROW()-2)),\"\")","v":{"$error":"#N/A"}},{"$f":"IF(INDIRECT(\"c\" & (VLOOKUP(Switch!$D$52,$F$2:$G$44,2,FALSE)+ROW()-2))=Switch!$D$52,INDIRECT(\"a\" & (VLOOKUP(Switch!$D$52,$F$2:$G$44,2,FALSE)+ROW()-2)),\"\")","v":{"$error":"#N/A"}},{"$f":"IF(INDIRECT(\"c\" & (VLOOKUP(Switch!$D$53,$F$2:$G$44,2,FALSE)+ROW()-2))=Switch!$D$53,INDIRECT(\"a\" & (VLOOKUP(Switch!$D$53,$F$2:$G$44,2,FALSE)+ROW()-2)),\"\")","v":{"$error":"#N/A"}},{"$f":"IF(INDIRECT(\"c\" & (VLOOKUP(Switch!$D$54,$F$2:$G$44,2,FALSE)+ROW()-2))=Switch!$D$54,INDIRECT(\"a\" & (VLOOKUP(Switch!$D$54,$F$2:$G$44,2,FALSE)+ROW()-2)),\"\")","v":{"$error":"#N/A"}},{"$f":"IF(INDIRECT(\"c\" & (VLOOKUP(Switch!$D$55,$F$2:$G$44,2,FALSE)+ROW()-2))=Switch!$D$55,INDIRECT(\"a\" & (VLOOKUP(Switch!$D$55,$F$2:$G$44,2,FALSE)+ROW()-2)),\"\")","v":{"$error":"#N/A"}},{"$f":"IF(INDIRECT(\"c\" & (VLOOKUP(Switch!$D$56,$F$2:$G$44,2,FALSE)+ROW()-2))=Switch!$D$56,INDIRECT(\"a\" & (VLOOKUP(Switch!$D$56,$F$2:$G$44,2,FALSE)+ROW()-2)),\"\")","v":{"$error":"#N/A"}},{"$f":"IF(INDIRECT(\"c\" & (VLOOKUP(Switch!$D$57,$F$2:$G$44,2,FALSE)+ROW()-2))=Switch!$D$57,INDIRECT(\"a\" & (VLOOKUP(Switch!$D$57,$F$2:$G$44,2,FALSE)+ROW()-2)),\"\")","v":{"$error":"#N/A"}},{"$f":"IF(INDIRECT(\"c\" & (VLOOKUP(Switch!$D$58,$F$2:$G$44,2,FALSE)+ROW()-2))=Switch!$D$58,INDIRECT(\"a\" & (VLOOKUP(Switch!$D$58,$F$2:$G$44,2,FALSE)+ROW()-2)),\"\")","v":{"$error":"#N/A"}},{"$f":"IF(INDIRECT(\"c\" & (VLOOKUP(Switch!$D$59,$F$2:$G$44,2,FALSE)+ROW()-2))=Switch!$D$59,INDIRECT(\"a\" & (VLOOKUP(Switch!$D$59,$F$2:$G$44,2,FALSE)+ROW()-2)),\"\")","v":{"$error":"#N/A"}},{"$f":"IF(INDIRECT(\"c\" & (VLOOKUP(Switch!$D$60,$F$2:$G$44,2,FALSE)+ROW()-2))=Switch!$D$60,INDIRECT(\"a\" & (VLOOKUP(Switch!$D$60,$F$2:$G$44,2,FALSE)+ROW()-2)),\"\")","v":{"$error":"#N/A"}},{"$f":"IF(INDIRECT(\"c\" & (VLOOKUP(Switch!$D$61,$F$2:$G$44,2,FALSE)+ROW()-2))=Switch!$D$61,INDIRECT(\"a\" & (VLOOKUP(Switch!$D$61,$F$2:$G$44,2,FALSE)+ROW()-2)),\"\")","v":{"$error":"#N/A"}},{"$f":"IF(INDIRECT(\"c\" & (VLOOKUP(Switch!$D$62,$F$2:$G$44,2,FALSE)+ROW()-2))=Switch!$D$62,INDIRECT(\"a\" & (VLOOKUP(Switch!$D$62,$F$2:$G$44,2,FALSE)+ROW()-2)),\"\")","v":{"$error":"#N/A"}},{"$f":"IF(INDIRECT(\"c\" & (VLOOKUP(Switch!$D$63,$F$2:$G$44,2,FALSE)+ROW()-2))=Switch!$D$63,INDIRECT(\"a\" & (VLOOKUP(Switch!$D$63,$F$2:$G$44,2,FALSE)+ROW()-2)),\"\")","v":{"$error":"#N/A"}},{"$f":"IF(INDIRECT(\"c\" & (VLOOKUP(Switch!$D$64,$F$2:$G$44,2,FALSE)+ROW()-2))=Switch!$D$64,INDIRECT(\"a\" & (VLOOKUP(Switch!$D$64,$F$2:$G$44,2,FALSE)+ROW()-2)),\"\")","v":{"$error":"#N/A"}},{"$f":"IF(INDIRECT(\"c\" & (VLOOKUP(Switch!$D$65,$F$2:$G$44,2,FALSE)+ROW()-2))=Switch!$D$65,INDIRECT(\"a\" & (VLOOKUP(Switch!$D$65,$F$2:$G$44,2,FALSE)+ROW()-2)),\"\")","v":{"$error":"#N/A"}},{"$f":"IF(INDIRECT(\"c\" & (VLOOKUP(Switch!$D$66,$F$2:$G$44,2,FALSE)+ROW()-2))=Switch!$D$66,INDIRECT(\"a\" & (VLOOKUP(Switch!$D$66,$F$2:$G$44,2,FALSE)+ROW()-2)),\"\")","v":{"$error":"#N/A"}}]
["Ashburton Stable Income Fund L","ASILC","Ashburton Management Company (RF) PTY LTD",{"$f":"ROW()","v":95},null,null,{"$f":"VLOOKUP(F95,$C$2:$D$637,2,FALSE)","v":{"$error":"#N/A"}},{"$f":"IF(INDIRECT(\"c\" & (VLOOKUP(Switch!$D$26,$F$2:$G$44,2,FALSE)+ROW()-2))=Switch!$D$26,INDIRECT(\"a\" & (VLOOKUP(Switch!$D$26,$F$2:$G$44,2,FALSE)+ROW()-2)),\"\")","v":{"$error":"#N/A"}},{"$f":"IF(INDIRECT(\"c\" & (VLOOKUP(Switch!$D$27,$F$2:$G$44,2,FALSE)+ROW()-2))=Switch!$D$27,INDIRECT(\"a\" & (VLOOKUP(Switch!$D$27,$F$2:$G$44,2,FALSE)+ROW()-2)),\"\")","v":{"$error":"#N/A"}},{"$f":"IF(INDIRECT(\"c\" & (VLOOKUP(Switch!$D$28,$F$2:$G$44,2,FALSE)+ROW()-2))=Switch!$D$28,INDIRECT(\"a\" & (VLOOKUP(Switch!$D$28,$F$2:$G$44,2,FALSE)+ROW()-2)),\"\")","v":{"$error":"#N/A"}},{"$f":"IF(INDIRECT(\"c\" & (VLOOKUP(Switch!$D$29,$F$2:$G$44,2,FALSE)+ROW()-2))=Switch!$D$29,INDIRECT(\"a\" & (VLOOKUP(Switch!$D$29,$F$2:$G$44,2,FALSE)+ROW()-2)),\"\")","v":{"$error":"#N/A"}},{"$f":"IF(INDIRECT(\"c\" & (VLOOKUP(Switch!$D$30,$F$2:$G$44,2,FALSE)+ROW()-2))=Switch!$D$30,INDIRECT(\"a\" & (VLOOKUP(Switch!$D$30,$F$2:$G$44,2,FALSE)+ROW()-2)),\"\")","v":{"$error":"#N/A"}},{"$f":"IF(INDIRECT(\"c\" & (VLOOKUP(Switch!$D$31,$F$2:$G$44,2,FALSE)+ROW()-2))=Switch!$D$31,INDIRECT(\"a\" & (VLOOKUP(Switch!$D$31,$F$2:$G$44,2,FALSE)+ROW()-2)),\"\")","v":{"$error":"#N/A"}},{"$f":"IF(INDIRECT(\"c\" & (VLOOKUP(Switch!$D$32,$F$2:$G$44,2,FALSE)+ROW()-2))=Switch!$D$32,INDIRECT(\"a\" & (VLOOKUP(Switch!$D$32,$F$2:$G$44,2,FALSE)+ROW()-2)),\"\")","v":{"$error":"#N/A"}},{"$f":"IF(INDIRECT(\"c\" & (VLOOKUP(Switch!$D$33,$F$2:$G$44,2,FALSE)+ROW()-2))=Switch!$D$33,INDIRECT(\"a\" & (VLOOKUP(Switch!$D$33,$F$2:$G$44,2,FALSE)+ROW()-2)),\"\")","v":{"$error":"#N/A"}},{"$f":"IF(INDIRECT(\"c\" & (VLOOKUP(Switch!$D$34,$F$2:$G$44,2,FALSE)+ROW()-2))=Switch!$D$34,INDIRECT(\"a\" & (VLOOKUP(Switch!$D$34,$F$2:$G$44,2,FALSE)+ROW()-2)),\"\")","v":{"$error":"#N/A"}},{"$f":"IF(INDIRECT(\"c\" & (VLOOKUP(Switch!$D$35,$F$2:$G$44,2,FALSE)+ROW()-2))=Switch!$D$35,INDIRECT(\"a\" & (VLOOKUP(Switch!$D$35,$F$2:$G$44,2,FALSE)+ROW()-2)),\"\")","v":{"$error":"#N/A"}},{"$f":"IF(INDIRECT(\"c\" & (VLOOKUP(Switch!$D$36,$F$2:$G$44,2,FALSE)+ROW()-2))=Switch!$D$36,INDIRECT(\"a\" & (VLOOKUP(Switch!$D$36,$F$2:$G$44,2,FALSE)+ROW()-2)),\"\")","v":{"$error":"#N/A"}},{"$f":"IF(INDIRECT(\"c\" & (VLOOKUP(Switch!$D$37,$F$2:$G$44,2,FALSE)+ROW()-2))=Switch!$D$37,INDIRECT(\"a\" & (VLOOKUP(Switch!$D$37,$F$2:$G$44,2,FALSE)+ROW()-2)),\"\")","v":{"$error":"#N/A"}},{"$f":"IF(INDIRECT(\"c\" & (VLOOKUP(Switch!$D$38,$F$2:$G$44,2,FALSE)+ROW()-2))=Switch!$D$38,INDIRECT(\"a\" & (VLOOKUP(Switch!$D$38,$F$2:$G$44,2,FALSE)+ROW()-2)),\"\")","v":{"$error":"#N/A"}},{"$f":"IF(INDIRECT(\"c\" & (VLOOKUP(Switch!$D$39,$F$2:$G$44,2,FALSE)+ROW()-2))=Switch!$D$39,INDIRECT(\"a\" & (VLOOKUP(Switch!$D$39,$F$2:$G$44,2,FALSE)+ROW()-2)),\"\")","v":{"$error":"#N/A"}},{"$f":"IF(INDIRECT(\"c\" & (VLOOKUP(Switch!$D$40,$F$2:$G$44,2,FALSE)+ROW()-2))=Switch!$D$40,INDIRECT(\"a\" & (VLOOKUP(Switch!$D$40,$F$2:$G$44,2,FALSE)+ROW()-2)),\"\")","v":{"$error":"#N/A"}},{"$f":"IF(INDIRECT(\"c\" & (VLOOKUP(Switch!$D$52,$F$2:$G$44,2,FALSE)+ROW()-2))=Switch!$D$52,INDIRECT(\"a\" & (VLOOKUP(Switch!$D$52,$F$2:$G$44,2,FALSE)+ROW()-2)),\"\")","v":{"$error":"#N/A"}},{"$f":"IF(INDIRECT(\"c\" & (VLOOKUP(Switch!$D$53,$F$2:$G$44,2,FALSE)+ROW()-2))=Switch!$D$53,INDIRECT(\"a\" & (VLOOKUP(Switch!$D$53,$F$2:$G$44,2,FALSE)+ROW()-2)),\"\")","v":{"$error":"#N/A"}},{"$f":"IF(INDIRECT(\"c\" & (VLOOKUP(Switch!$D$54,$F$2:$G$44,2,FALSE)+ROW()-2))=Switch!$D$54,INDIRECT(\"a\" & (VLOOKUP(Switch!$D$54,$F$2:$G$44,2,FALSE)+ROW()-2)),\"\")","v":{"$error":"#N/A"}},{"$f":"IF(INDIRECT(\"c\" & (VLOOKUP(Switch!$D$55,$F$2:$G$44,2,FALSE)+ROW()-2))=Switch!$D$55,INDIRECT(\"a\" & (VLOOKUP(Switch!$D$55,$F$2:$G$44,2,FALSE)+ROW()-2)),\"\")","v":{"$error":"#N/A"}},{"$f":"IF(INDIRECT(\"c\" & (VLOOKUP(Switch!$D$56,$F$2:$G$44,2,FALSE)+ROW()-2))=Switch!$D$56,INDIRECT(\"a\" & (VLOOKUP(Switch!$D$56,$F$2:$G$44,2,FALSE)+ROW()-2)),\"\")","v":{"$error":"#N/A"}},{"$f":"IF(INDIRECT(\"c\" & (VLOOKUP(Switch!$D$57,$F$2:$G$44,2,FALSE)+ROW()-2))=Switch!$D$57,INDIRECT(\"a\" & (VLOOKUP(Switch!$D$57,$F$2:$G$44,2,FALSE)+ROW()-2)),\"\")","v":{"$error":"#N/A"}},{"$f":"IF(INDIRECT(\"c\" & (VLOOKUP(Switch!$D$58,$F$2:$G$44,2,FALSE)+ROW()-2))=Switch!$D$58,INDIRECT(\"a\" & (VLOOKUP(Switch!$D$58,$F$2:$G$44,2,FALSE)+ROW()-2)),\"\")","v":{"$error":"#N/A"}},{"$f":"IF(INDIRECT(\"c\" & (VLOOKUP(Switch!$D$59,$F$2:$G$44,2,FALSE)+ROW()-2))=Switch!$D$59,INDIRECT(\"a\" & (VLOOKUP(Switch!$D$59,$F$2:$G$44,2,FALSE)+ROW()-2)),\"\")","v":{"$error":"#N/A"}},{"$f":"IF(INDIRECT(\"c\" & (VLOOKUP(Switch!$D$60,$F$2:$G$44,2,FALSE)+ROW()-2))=Switch!$D$60,INDIRECT(\"a\" & (VLOOKUP(Switch!$D$60,$F$2:$G$44,2,FALSE)+ROW()-2)),\"\")","v":{"$error":"#N/A"}},{"$f":"IF(INDIRECT(\"c\" & (VLOOKUP(Switch!$D$61,$F$2:$G$44,2,FALSE)+ROW()-2))=Switch!$D$61,INDIRECT(\"a\" & (VLOOKUP(Switch!$D$61,$F$2:$G$44,2,FALSE)+ROW()-2)),\"\")","v":{"$error":"#N/A"}},{"$f":"IF(INDIRECT(\"c\" & (VLOOKUP(Switch!$D$62,$F$2:$G$44,2,FALSE)+ROW()-2))=Switch!$D$62,INDIRECT(\"a\" & (VLOOKUP(Switch!$D$62,$F$2:$G$44,2,FALSE)+ROW()-2)),\"\")","v":{"$error":"#N/A"}},{"$f":"IF(INDIRECT(\"c\" & (VLOOKUP(Switch!$D$63,$F$2:$G$44,2,FALSE)+ROW()-2))=Switch!$D$63,INDIRECT(\"a\" & (VLOOKUP(Switch!$D$63,$F$2:$G$44,2,FALSE)+ROW()-2)),\"\")","v":{"$error":"#N/A"}},{"$f":"IF(INDIRECT(\"c\" & (VLOOKUP(Switch!$D$64,$F$2:$G$44,2,FALSE)+ROW()-2))=Switch!$D$64,INDIRECT(\"a\" & (VLOOKUP(Switch!$D$64,$F$2:$G$44,2,FALSE)+ROW()-2)),\"\")","v":{"$error":"#N/A"}},{"$f":"IF(INDIRECT(\"c\" & (VLOOKUP(Switch!$D$65,$F$2:$G$44,2,FALSE)+ROW()-2))=Switch!$D$65,INDIRECT(\"a\" & (VLOOKUP(Switch!$D$65,$F$2:$G$44,2,FALSE)+ROW()-2)),\"\")","v":{"$error":"#N/A"}},{"$f":"IF(INDIRECT(\"c\" & (VLOOKUP(Switch!$D$66,$F$2:$G$44,2,FALSE)+ROW()-2))=Switch!$D$66,INDIRECT(\"a\" & (VLOOKUP(Switch!$D$66,$F$2:$G$44,2,FALSE)+ROW()-2)),\"\")","v":{"$error":"#N/A"}}]
["36One BCI Flexible Opportunity Fund C","TSFCC","Boutique Collective Investments (Pty) Ltd",{"$f":"ROW()","v":96},null,null,{"$f":"VLOOKUP(F96,$C$2:$D$637,2,FALSE)","v":{"$error":"#N/A"}},{"$f":"IF(INDIRECT(\"c\" & (VLOOKUP(Switch!$D$26,$F$2:$G$44,2,FALSE)+ROW()-2))=Switch!$D$26,INDIRECT(\"a\" & (VLOOKUP(Switch!$D$26,$F$2:$G$44,2,FALSE)+ROW()-2)),\"\")","v":{"$error":"#N/A"}},{"$f":"IF(INDIRECT(\"c\" & (VLOOKUP(Switch!$D$27,$F$2:$G$44,2,FALSE)+ROW()-2))=Switch!$D$27,INDIRECT(\"a\" & (VLOOKUP(Switch!$D$27,$F$2:$G$44,2,FALSE)+ROW()-2)),\"\")","v":{"$error":"#N/A"}},{"$f":"IF(INDIRECT(\"c\" & (VLOOKUP(Switch!$D$28,$F$2:$G$44,2,FALSE)+ROW()-2))=Switch!$D$28,INDIRECT(\"a\" & (VLOOKUP(Switch!$D$28,$F$2:$G$44,2,FALSE)+ROW()-2)),\"\")","v":{"$error":"#N/A"}},{"$f":"IF(INDIRECT(\"c\" & (VLOOKUP(Switch!$D$29,$F$2:$G$44,2,FALSE)+ROW()-2))=Switch!$D$29,INDIRECT(\"a\" & (VLOOKUP(Switch!$D$29,$F$2:$G$44,2,FALSE)+ROW()-2)),\"\")","v":{"$error":"#N/A"}},{"$f":"IF(INDIRECT(\"c\" & (VLOOKUP(Switch!$D$30,$F$2:$G$44,2,FALSE)+ROW()-2))=Switch!$D$30,INDIRECT(\"a\" & (VLOOKUP(Switch!$D$30,$F$2:$G$44,2,FALSE)+ROW()-2)),\"\")","v":{"$error":"#N/A"}},{"$f":"IF(INDIRECT(\"c\" & (VLOOKUP(Switch!$D$31,$F$2:$G$44,2,FALSE)+ROW()-2))=Switch!$D$31,INDIRECT(\"a\" & (VLOOKUP(Switch!$D$31,$F$2:$G$44,2,FALSE)+ROW()-2)),\"\")","v":{"$error":"#N/A"}},{"$f":"IF(INDIRECT(\"c\" & (VLOOKUP(Switch!$D$32,$F$2:$G$44,2,FALSE)+ROW()-2))=Switch!$D$32,INDIRECT(\"a\" & (VLOOKUP(Switch!$D$32,$F$2:$G$44,2,FALSE)+ROW()-2)),\"\")","v":{"$error":"#N/A"}},{"$f":"IF(INDIRECT(\"c\" & (VLOOKUP(Switch!$D$33,$F$2:$G$44,2,FALSE)+ROW()-2))=Switch!$D$33,INDIRECT(\"a\" & (VLOOKUP(Switch!$D$33,$F$2:$G$44,2,FALSE)+ROW()-2)),\"\")","v":{"$error":"#N/A"}},{"$f":"IF(INDIRECT(\"c\" & (VLOOKUP(Switch!$D$34,$F$2:$G$44,2,FALSE)+ROW()-2))=Switch!$D$34,INDIRECT(\"a\" & (VLOOKUP(Switch!$D$34,$F$2:$G$44,2,FALSE)+ROW()-2)),\"\")","v":{"$error":"#N/A"}},{"$f":"IF(INDIRECT(\"c\" & (VLOOKUP(Switch!$D$35,$F$2:$G$44,2,FALSE)+ROW()-2))=Switch!$D$35,INDIRECT(\"a\" & (VLOOKUP(Switch!$D$35,$F$2:$G$44,2,FALSE)+ROW()-2)),\"\")","v":{"$error":"#N/A"}},{"$f":"IF(INDIRECT(\"c\" & (VLOOKUP(Switch!$D$36,$F$2:$G$44,2,FALSE)+ROW()-2))=Switch!$D$36,INDIRECT(\"a\" & (VLOOKUP(Switch!$D$36,$F$2:$G$44,2,FALSE)+ROW()-2)),\"\")","v":{"$error":"#N/A"}},{"$f":"IF(INDIRECT(\"c\" & (VLOOKUP(Switch!$D$37,$F$2:$G$44,2,FALSE)+ROW()-2))=Switch!$D$37,INDIRECT(\"a\" & (VLOOKUP(Switch!$D$37,$F$2:$G$44,2,FALSE)+ROW()-2)),\"\")","v":{"$error":"#N/A"}},{"$f":"IF(INDIRECT(\"c\" & (VLOOKUP(Switch!$D$38,$F$2:$G$44,2,FALSE)+ROW()-2))=Switch!$D$38,INDIRECT(\"a\" & (VLOOKUP(Switch!$D$38,$F$2:$G$44,2,FALSE)+ROW()-2)),\"\")","v":{"$error":"#N/A"}},{"$f":"IF(INDIRECT(\"c\" & (VLOOKUP(Switch!$D$39,$F$2:$G$44,2,FALSE)+ROW()-2))=Switch!$D$39,INDIRECT(\"a\" & (VLOOKUP(Switch!$D$39,$F$2:$G$44,2,FALSE)+ROW()-2)),\"\")","v":{"$error":"#N/A"}},{"$f":"IF(INDIRECT(\"c\" & (VLOOKUP(Switch!$D$40,$F$2:$G$44,2,FALSE)+ROW()-2))=Switch!$D$40,INDIRECT(\"a\" & (VLOOKUP(Switch!$D$40,$F$2:$G$44,2,FALSE)+ROW()-2)),\"\")","v":{"$error":"#N/A"}},{"$f":"IF(INDIRECT(\"c\" & (VLOOKUP(Switch!$D$52,$F$2:$G$44,2,FALSE)+ROW()-2))=Switch!$D$52,INDIRECT(\"a\" & (VLOOKUP(Switch!$D$52,$F$2:$G$44,2,FALSE)+ROW()-2)),\"\")","v":{"$error":"#N/A"}},{"$f":"IF(INDIRECT(\"c\" & (VLOOKUP(Switch!$D$53,$F$2:$G$44,2,FALSE)+ROW()-2))=Switch!$D$53,INDIRECT(\"a\" & (VLOOKUP(Switch!$D$53,$F$2:$G$44,2,FALSE)+ROW()-2)),\"\")","v":{"$error":"#N/A"}},{"$f":"IF(INDIRECT(\"c\" & (VLOOKUP(Switch!$D$54,$F$2:$G$44,2,FALSE)+ROW()-2))=Switch!$D$54,INDIRECT(\"a\" & (VLOOKUP(Switch!$D$54,$F$2:$G$44,2,FALSE)+ROW()-2)),\"\")","v":{"$error":"#N/A"}},{"$f":"IF(INDIRECT(\"c\" & (VLOOKUP(Switch!$D$55,$F$2:$G$44,2,FALSE)+ROW()-2))=Switch!$D$55,INDIRECT(\"a\" & (VLOOKUP(Switch!$D$55,$F$2:$G$44,2,FALSE)+ROW()-2)),\"\")","v":{"$error":"#N/A"}},{"$f":"IF(INDIRECT(\"c\" & (VLOOKUP(Switch!$D$56,$F$2:$G$44,2,FALSE)+ROW()-2))=Switch!$D$56,INDIRECT(\"a\" & (VLOOKUP(Switch!$D$56,$F$2:$G$44,2,FALSE)+ROW()-2)),\"\")","v":{"$error":"#N/A"}},{"$f":"IF(INDIRECT(\"c\" & (VLOOKUP(Switch!$D$57,$F$2:$G$44,2,FALSE)+ROW()-2))=Switch!$D$57,INDIRECT(\"a\" & (VLOOKUP(Switch!$D$57,$F$2:$G$44,2,FALSE)+ROW()-2)),\"\")","v":{"$error":"#N/A"}},{"$f":"IF(INDIRECT(\"c\" & (VLOOKUP(Switch!$D$58,$F$2:$G$44,2,FALSE)+ROW()-2))=Switch!$D$58,INDIRECT(\"a\" & (VLOOKUP(Switch!$D$58,$F$2:$G$44,2,FALSE)+ROW()-2)),\"\")","v":{"$error":"#N/A"}},{"$f":"IF(INDIRECT(\"c\" & (VLOOKUP(Switch!$D$59,$F$2:$G$44,2,FALSE)+ROW()-2))=Switch!$D$59,INDIRECT(\"a\" & (VLOOKUP(Switch!$D$59,$F$2:$G$44,2,FALSE)+ROW()-2)),\"\")","v":{"$error":"#N/A"}},{"$f":"IF(INDIRECT(\"c\" & (VLOOKUP(Switch!$D$60,$F$2:$G$44,2,FALSE)+ROW()-2))=Switch!$D$60,INDIRECT(\"a\" & (VLOOKUP(Switch!$D$60,$F$2:$G$44,2,FALSE)+ROW()-2)),\"\")","v":{"$error":"#N/A"}},{"$f":"IF(INDIRECT(\"c\" & (VLOOKUP(Switch!$D$61,$F$2:$G$44,2,FALSE)+ROW()-2))=Switch!$D$61,INDIRECT(\"a\" & (VLOOKUP(Switch!$D$61,$F$2:$G$44,2,FALSE)+ROW()-2)),\"\")","v":{"$error":"#N/A"}},{"$f":"IF(INDIRECT(\"c\" & (VLOOKUP(Switch!$D$62,$F$2:$G$44,2,FALSE)+ROW()-2))=Switch!$D$62,INDIRECT(\"a\" & (VLOOKUP(Switch!$D$62,$F$2:$G$44,2,FALSE)+ROW()-2)),\"\")","v":{"$error":"#N/A"}},{"$f":"IF(INDIRECT(\"c\" & (VLOOKUP(Switch!$D$63,$F$2:$G$44,2,FALSE)+ROW()-2))=Switch!$D$63,INDIRECT(\"a\" & (VLOOKUP(Switch!$D$63,$F$2:$G$44,2,FALSE)+ROW()-2)),\"\")","v":{"$error":"#N/A"}},{"$f":"IF(INDIRECT(\"c\" & (VLOOKUP(Switch!$D$64,$F$2:$G$44,2,FALSE)+ROW()-2))=Switch!$D$64,INDIRECT(\"a\" & (VLOOKUP(Switch!$D$64,$F$2:$G$44,2,FALSE)+ROW()-2)),\"\")","v":{"$error":"#N/A"}},{"$f":"IF(INDIRECT(\"c\" & (VLOOKUP(Switch!$D$65,$F$2:$G$44,2,FALSE)+ROW()-2))=Switch!$D$65,INDIRECT(\"a\" & (VLOOKUP(Switch!$D$65,$F$2:$G$44,2,FALSE)+ROW()-2)),\"\")","v":{"$error":"#N/A"}},{"$f":"IF(INDIRECT(\"c\" & (VLOOKUP(Switch!$D$66,$F$2:$G$44,2,FALSE)+ROW()-2))=Switch!$D$66,INDIRECT(\"a\" & (VLOOKUP(Switch!$D$66,$F$2:$G$44,2,FALSE)+ROW()-2)),\"\")","v":{"$error":"#N/A"}}]
["Amity BCI Flexible Growth FoF A","MAFG","Boutique Collective Investments (Pty) Ltd",{"$f":"ROW()","v":97},null,null,{"$f":"VLOOKUP(F97,$C$2:$D$637,2,FALSE)","v":{"$error":"#N/A"}},{"$f":"IF(INDIRECT(\"c\" & (VLOOKUP(Switch!$D$26,$F$2:$G$44,2,FALSE)+ROW()-2))=Switch!$D$26,INDIRECT(\"a\" & (VLOOKUP(Switch!$D$26,$F$2:$G$44,2,FALSE)+ROW()-2)),\"\")","v":{"$error":"#N/A"}},{"$f":"IF(INDIRECT(\"c\" & (VLOOKUP(Switch!$D$27,$F$2:$G$44,2,FALSE)+ROW()-2))=Switch!$D$27,INDIRECT(\"a\" & (VLOOKUP(Switch!$D$27,$F$2:$G$44,2,FALSE)+ROW()-2)),\"\")","v":{"$error":"#N/A"}},{"$f":"IF(INDIRECT(\"c\" & (VLOOKUP(Switch!$D$28,$F$2:$G$44,2,FALSE)+ROW()-2))=Switch!$D$28,INDIRECT(\"a\" & (VLOOKUP(Switch!$D$28,$F$2:$G$44,2,FALSE)+ROW()-2)),\"\")","v":{"$error":"#N/A"}},{"$f":"IF(INDIRECT(\"c\" & (VLOOKUP(Switch!$D$29,$F$2:$G$44,2,FALSE)+ROW()-2))=Switch!$D$29,INDIRECT(\"a\" & (VLOOKUP(Switch!$D$29,$F$2:$G$44,2,FALSE)+ROW()-2)),\"\")","v":{"$error":"#N/A"}},{"$f":"IF(INDIRECT(\"c\" & (VLOOKUP(Switch!$D$30,$F$2:$G$44,2,FALSE)+ROW()-2))=Switch!$D$30,INDIRECT(\"a\" & (VLOOKUP(Switch!$D$30,$F$2:$G$44,2,FALSE)+ROW()-2)),\"\")","v":{"$error":"#N/A"}},{"$f":"IF(INDIRECT(\"c\" & (VLOOKUP(Switch!$D$31,$F$2:$G$44,2,FALSE)+ROW()-2))=Switch!$D$31,INDIRECT(\"a\" & (VLOOKUP(Switch!$D$31,$F$2:$G$44,2,FALSE)+ROW()-2)),\"\")","v":{"$error":"#N/A"}},{"$f":"IF(INDIRECT(\"c\" & (VLOOKUP(Switch!$D$32,$F$2:$G$44,2,FALSE)+ROW()-2))=Switch!$D$32,INDIRECT(\"a\" & (VLOOKUP(Switch!$D$32,$F$2:$G$44,2,FALSE)+ROW()-2)),\"\")","v":{"$error":"#N/A"}},{"$f":"IF(INDIRECT(\"c\" & (VLOOKUP(Switch!$D$33,$F$2:$G$44,2,FALSE)+ROW()-2))=Switch!$D$33,INDIRECT(\"a\" & (VLOOKUP(Switch!$D$33,$F$2:$G$44,2,FALSE)+ROW()-2)),\"\")","v":{"$error":"#N/A"}},{"$f":"IF(INDIRECT(\"c\" & (VLOOKUP(Switch!$D$34,$F$2:$G$44,2,FALSE)+ROW()-2))=Switch!$D$34,INDIRECT(\"a\" & (VLOOKUP(Switch!$D$34,$F$2:$G$44,2,FALSE)+ROW()-2)),\"\")","v":{"$error":"#N/A"}},{"$f":"IF(INDIRECT(\"c\" & (VLOOKUP(Switch!$D$35,$F$2:$G$44,2,FALSE)+ROW()-2))=Switch!$D$35,INDIRECT(\"a\" & (VLOOKUP(Switch!$D$35,$F$2:$G$44,2,FALSE)+ROW()-2)),\"\")","v":{"$error":"#N/A"}},{"$f":"IF(INDIRECT(\"c\" & (VLOOKUP(Switch!$D$36,$F$2:$G$44,2,FALSE)+ROW()-2))=Switch!$D$36,INDIRECT(\"a\" & (VLOOKUP(Switch!$D$36,$F$2:$G$44,2,FALSE)+ROW()-2)),\"\")","v":{"$error":"#N/A"}},{"$f":"IF(INDIRECT(\"c\" & (VLOOKUP(Switch!$D$37,$F$2:$G$44,2,FALSE)+ROW()-2))=Switch!$D$37,INDIRECT(\"a\" & (VLOOKUP(Switch!$D$37,$F$2:$G$44,2,FALSE)+ROW()-2)),\"\")","v":{"$error":"#N/A"}},{"$f":"IF(INDIRECT(\"c\" & (VLOOKUP(Switch!$D$38,$F$2:$G$44,2,FALSE)+ROW()-2))=Switch!$D$38,INDIRECT(\"a\" & (VLOOKUP(Switch!$D$38,$F$2:$G$44,2,FALSE)+ROW()-2)),\"\")","v":{"$error":"#N/A"}},{"$f":"IF(INDIRECT(\"c\" & (VLOOKUP(Switch!$D$39,$F$2:$G$44,2,FALSE)+ROW()-2))=Switch!$D$39,INDIRECT(\"a\" & (VLOOKUP(Switch!$D$39,$F$2:$G$44,2,FALSE)+ROW()-2)),\"\")","v":{"$error":"#N/A"}},{"$f":"IF(INDIRECT(\"c\" & (VLOOKUP(Switch!$D$40,$F$2:$G$44,2,FALSE)+ROW()-2))=Switch!$D$40,INDIRECT(\"a\" & (VLOOKUP(Switch!$D$40,$F$2:$G$44,2,FALSE)+ROW()-2)),\"\")","v":{"$error":"#N/A"}},{"$f":"IF(INDIRECT(\"c\" & (VLOOKUP(Switch!$D$52,$F$2:$G$44,2,FALSE)+ROW()-2))=Switch!$D$52,INDIRECT(\"a\" & (VLOOKUP(Switch!$D$52,$F$2:$G$44,2,FALSE)+ROW()-2)),\"\")","v":{"$error":"#N/A"}},{"$f":"IF(INDIRECT(\"c\" & (VLOOKUP(Switch!$D$53,$F$2:$G$44,2,FALSE)+ROW()-2))=Switch!$D$53,INDIRECT(\"a\" & (VLOOKUP(Switch!$D$53,$F$2:$G$44,2,FALSE)+ROW()-2)),\"\")","v":{"$error":"#N/A"}},{"$f":"IF(INDIRECT(\"c\" & (VLOOKUP(Switch!$D$54,$F$2:$G$44,2,FALSE)+ROW()-2))=Switch!$D$54,INDIRECT(\"a\" & (VLOOKUP(Switch!$D$54,$F$2:$G$44,2,FALSE)+ROW()-2)),\"\")","v":{"$error":"#N/A"}},{"$f":"IF(INDIRECT(\"c\" & (VLOOKUP(Switch!$D$55,$F$2:$G$44,2,FALSE)+ROW()-2))=Switch!$D$55,INDIRECT(\"a\" & (VLOOKUP(Switch!$D$55,$F$2:$G$44,2,FALSE)+ROW()-2)),\"\")","v":{"$error":"#N/A"}},{"$f":"IF(INDIRECT(\"c\" & (VLOOKUP(Switch!$D$56,$F$2:$G$44,2,FALSE)+ROW()-2))=Switch!$D$56,INDIRECT(\"a\" & (VLOOKUP(Switch!$D$56,$F$2:$G$44,2,FALSE)+ROW()-2)),\"\")","v":{"$error":"#N/A"}},{"$f":"IF(INDIRECT(\"c\" & (VLOOKUP(Switch!$D$57,$F$2:$G$44,2,FALSE)+ROW()-2))=Switch!$D$57,INDIRECT(\"a\" & (VLOOKUP(Switch!$D$57,$F$2:$G$44,2,FALSE)+ROW()-2)),\"\")","v":{"$error":"#N/A"}},{"$f":"IF(INDIRECT(\"c\" & (VLOOKUP(Switch!$D$58,$F$2:$G$44,2,FALSE)+ROW()-2))=Switch!$D$58,INDIRECT(\"a\" & (VLOOKUP(Switch!$D$58,$F$2:$G$44,2,FALSE)+ROW()-2)),\"\")","v":{"$error":"#N/A"}},{"$f":"IF(INDIRECT(\"c\" & (VLOOKUP(Switch!$D$59,$F$2:$G$44,2,FALSE)+ROW()-2))=Switch!$D$59,INDIRECT(\"a\" & (VLOOKUP(Switch!$D$59,$F$2:$G$44,2,FALSE)+ROW()-2)),\"\")","v":{"$error":"#N/A"}},{"$f":"IF(INDIRECT(\"c\" & (VLOOKUP(Switch!$D$60,$F$2:$G$44,2,FALSE)+ROW()-2))=Switch!$D$60,INDIRECT(\"a\" & (VLOOKUP(Switch!$D$60,$F$2:$G$44,2,FALSE)+ROW()-2)),\"\")","v":{"$error":"#N/A"}},{"$f":"IF(INDIRECT(\"c\" & (VLOOKUP(Switch!$D$61,$F$2:$G$44,2,FALSE)+ROW()-2))=Switch!$D$61,INDIRECT(\"a\" & (VLOOKUP(Switch!$D$61,$F$2:$G$44,2,FALSE)+ROW()-2)),\"\")","v":{"$error":"#N/A"}},{"$f":"IF(INDIRECT(\"c\" & (VLOOKUP(Switch!$D$62,$F$2:$G$44,2,FALSE)+ROW()-2))=Switch!$D$62,INDIRECT(\"a\" & (VLOOKUP(Switch!$D$62,$F$2:$G$44,2,FALSE)+ROW()-2)),\"\")","v":{"$error":"#N/A"}},{"$f":"IF(INDIRECT(\"c\" & (VLOOKUP(Switch!$D$63,$F$2:$G$44,2,FALSE)+ROW()-2))=Switch!$D$63,INDIRECT(\"a\" & (VLOOKUP(Switch!$D$63,$F$2:$G$44,2,FALSE)+ROW()-2)),\"\")","v":{"$error":"#N/A"}},{"$f":"IF(INDIRECT(\"c\" & (VLOOKUP(Switch!$D$64,$F$2:$G$44,2,FALSE)+ROW()-2))=Switch!$D$64,INDIRECT(\"a\" & (VLOOKUP(Switch!$D$64,$F$2:$G$44,2,FALSE)+ROW()-2)),\"\")","v":{"$error":"#N/A"}},{"$f":"IF(INDIRECT(\"c\" & (VLOOKUP(Switch!$D$65,$F$2:$G$44,2,FALSE)+ROW()-2))=Switch!$D$65,INDIRECT(\"a\" & (VLOOKUP(Switch!$D$65,$F$2:$G$44,2,FALSE)+ROW()-2)),\"\")","v":{"$error":"#N/A"}},{"$f":"IF(INDIRECT(\"c\" & (VLOOKUP(Switch!$D$66,$F$2:$G$44,2,FALSE)+ROW()-2))=Switch!$D$66,INDIRECT(\"a\" & (VLOOKUP(Switch!$D$66,$F$2:$G$44,2,FALSE)+ROW()-2)),\"\")","v":{"$error":"#N/A"}}]
["Amity BCI Global Diversified Fund of Funds A","AGDFA","Boutique Collective Investments (Pty) Ltd",{"$f":"ROW()","v":98},null,null,{"$f":"VLOOKUP(F98,$C$2:$D$637,2,FALSE)","v":{"$error":"#N/A"}},{"$f":"IF(INDIRECT(\"c\" & (VLOOKUP(Switch!$D$26,$F$2:$G$44,2,FALSE)+ROW()-2))=Switch!$D$26,INDIRECT(\"a\" & (VLOOKUP(Switch!$D$26,$F$2:$G$44,2,FALSE)+ROW()-2)),\"\")","v":{"$error":"#N/A"}},{"$f":"IF(INDIRECT(\"c\" & (VLOOKUP(Switch!$D$27,$F$2:$G$44,2,FALSE)+ROW()-2))=Switch!$D$27,INDIRECT(\"a\" & (VLOOKUP(Switch!$D$27,$F$2:$G$44,2,FALSE)+ROW()-2)),\"\")","v":{"$error":"#N/A"}},{"$f":"IF(INDIRECT(\"c\" & (VLOOKUP(Switch!$D$28,$F$2:$G$44,2,FALSE)+ROW()-2))=Switch!$D$28,INDIRECT(\"a\" & (VLOOKUP(Switch!$D$28,$F$2:$G$44,2,FALSE)+ROW()-2)),\"\")","v":{"$error":"#N/A"}},{"$f":"IF(INDIRECT(\"c\" & (VLOOKUP(Switch!$D$29,$F$2:$G$44,2,FALSE)+ROW()-2))=Switch!$D$29,INDIRECT(\"a\" & (VLOOKUP(Switch!$D$29,$F$2:$G$44,2,FALSE)+ROW()-2)),\"\")","v":{"$error":"#N/A"}},{"$f":"IF(INDIRECT(\"c\" & (VLOOKUP(Switch!$D$30,$F$2:$G$44,2,FALSE)+ROW()-2))=Switch!$D$30,INDIRECT(\"a\" & (VLOOKUP(Switch!$D$30,$F$2:$G$44,2,FALSE)+ROW()-2)),\"\")","v":{"$error":"#N/A"}},{"$f":"IF(INDIRECT(\"c\" & (VLOOKUP(Switch!$D$31,$F$2:$G$44,2,FALSE)+ROW()-2))=Switch!$D$31,INDIRECT(\"a\" & (VLOOKUP(Switch!$D$31,$F$2:$G$44,2,FALSE)+ROW()-2)),\"\")","v":{"$error":"#N/A"}},{"$f":"IF(INDIRECT(\"c\" & (VLOOKUP(Switch!$D$32,$F$2:$G$44,2,FALSE)+ROW()-2))=Switch!$D$32,INDIRECT(\"a\" & (VLOOKUP(Switch!$D$32,$F$2:$G$44,2,FALSE)+ROW()-2)),\"\")","v":{"$error":"#N/A"}},{"$f":"IF(INDIRECT(\"c\" & (VLOOKUP(Switch!$D$33,$F$2:$G$44,2,FALSE)+ROW()-2))=Switch!$D$33,INDIRECT(\"a\" & (VLOOKUP(Switch!$D$33,$F$2:$G$44,2,FALSE)+ROW()-2)),\"\")","v":{"$error":"#N/A"}},{"$f":"IF(INDIRECT(\"c\" & (VLOOKUP(Switch!$D$34,$F$2:$G$44,2,FALSE)+ROW()-2))=Switch!$D$34,INDIRECT(\"a\" & (VLOOKUP(Switch!$D$34,$F$2:$G$44,2,FALSE)+ROW()-2)),\"\")","v":{"$error":"#N/A"}},{"$f":"IF(INDIRECT(\"c\" & (VLOOKUP(Switch!$D$35,$F$2:$G$44,2,FALSE)+ROW()-2))=Switch!$D$35,INDIRECT(\"a\" & (VLOOKUP(Switch!$D$35,$F$2:$G$44,2,FALSE)+ROW()-2)),\"\")","v":{"$error":"#N/A"}},{"$f":"IF(INDIRECT(\"c\" & (VLOOKUP(Switch!$D$36,$F$2:$G$44,2,FALSE)+ROW()-2))=Switch!$D$36,INDIRECT(\"a\" & (VLOOKUP(Switch!$D$36,$F$2:$G$44,2,FALSE)+ROW()-2)),\"\")","v":{"$error":"#N/A"}},{"$f":"IF(INDIRECT(\"c\" & (VLOOKUP(Switch!$D$37,$F$2:$G$44,2,FALSE)+ROW()-2))=Switch!$D$37,INDIRECT(\"a\" & (VLOOKUP(Switch!$D$37,$F$2:$G$44,2,FALSE)+ROW()-2)),\"\")","v":{"$error":"#N/A"}},{"$f":"IF(INDIRECT(\"c\" & (VLOOKUP(Switch!$D$38,$F$2:$G$44,2,FALSE)+ROW()-2))=Switch!$D$38,INDIRECT(\"a\" & (VLOOKUP(Switch!$D$38,$F$2:$G$44,2,FALSE)+ROW()-2)),\"\")","v":{"$error":"#N/A"}},{"$f":"IF(INDIRECT(\"c\" & (VLOOKUP(Switch!$D$39,$F$2:$G$44,2,FALSE)+ROW()-2))=Switch!$D$39,INDIRECT(\"a\" & (VLOOKUP(Switch!$D$39,$F$2:$G$44,2,FALSE)+ROW()-2)),\"\")","v":{"$error":"#N/A"}},{"$f":"IF(INDIRECT(\"c\" & (VLOOKUP(Switch!$D$40,$F$2:$G$44,2,FALSE)+ROW()-2))=Switch!$D$40,INDIRECT(\"a\" & (VLOOKUP(Switch!$D$40,$F$2:$G$44,2,FALSE)+ROW()-2)),\"\")","v":{"$error":"#N/A"}},{"$f":"IF(INDIRECT(\"c\" & (VLOOKUP(Switch!$D$52,$F$2:$G$44,2,FALSE)+ROW()-2))=Switch!$D$52,INDIRECT(\"a\" & (VLOOKUP(Switch!$D$52,$F$2:$G$44,2,FALSE)+ROW()-2)),\"\")","v":{"$error":"#N/A"}},{"$f":"IF(INDIRECT(\"c\" & (VLOOKUP(Switch!$D$53,$F$2:$G$44,2,FALSE)+ROW()-2))=Switch!$D$53,INDIRECT(\"a\" & (VLOOKUP(Switch!$D$53,$F$2:$G$44,2,FALSE)+ROW()-2)),\"\")","v":{"$error":"#N/A"}},{"$f":"IF(INDIRECT(\"c\" & (VLOOKUP(Switch!$D$54,$F$2:$G$44,2,FALSE)+ROW()-2))=Switch!$D$54,INDIRECT(\"a\" & (VLOOKUP(Switch!$D$54,$F$2:$G$44,2,FALSE)+ROW()-2)),\"\")","v":{"$error":"#N/A"}},{"$f":"IF(INDIRECT(\"c\" & (VLOOKUP(Switch!$D$55,$F$2:$G$44,2,FALSE)+ROW()-2))=Switch!$D$55,INDIRECT(\"a\" & (VLOOKUP(Switch!$D$55,$F$2:$G$44,2,FALSE)+ROW()-2)),\"\")","v":{"$error":"#N/A"}},{"$f":"IF(INDIRECT(\"c\" & (VLOOKUP(Switch!$D$56,$F$2:$G$44,2,FALSE)+ROW()-2))=Switch!$D$56,INDIRECT(\"a\" & (VLOOKUP(Switch!$D$56,$F$2:$G$44,2,FALSE)+ROW()-2)),\"\")","v":{"$error":"#N/A"}},{"$f":"IF(INDIRECT(\"c\" & (VLOOKUP(Switch!$D$57,$F$2:$G$44,2,FALSE)+ROW()-2))=Switch!$D$57,INDIRECT(\"a\" & (VLOOKUP(Switch!$D$57,$F$2:$G$44,2,FALSE)+ROW()-2)),\"\")","v":{"$error":"#N/A"}},{"$f":"IF(INDIRECT(\"c\" & (VLOOKUP(Switch!$D$58,$F$2:$G$44,2,FALSE)+ROW()-2))=Switch!$D$58,INDIRECT(\"a\" & (VLOOKUP(Switch!$D$58,$F$2:$G$44,2,FALSE)+ROW()-2)),\"\")","v":{"$error":"#N/A"}},{"$f":"IF(INDIRECT(\"c\" & (VLOOKUP(Switch!$D$59,$F$2:$G$44,2,FALSE)+ROW()-2))=Switch!$D$59,INDIRECT(\"a\" & (VLOOKUP(Switch!$D$59,$F$2:$G$44,2,FALSE)+ROW()-2)),\"\")","v":{"$error":"#N/A"}},{"$f":"IF(INDIRECT(\"c\" & (VLOOKUP(Switch!$D$60,$F$2:$G$44,2,FALSE)+ROW()-2))=Switch!$D$60,INDIRECT(\"a\" & (VLOOKUP(Switch!$D$60,$F$2:$G$44,2,FALSE)+ROW()-2)),\"\")","v":{"$error":"#N/A"}},{"$f":"IF(INDIRECT(\"c\" & (VLOOKUP(Switch!$D$61,$F$2:$G$44,2,FALSE)+ROW()-2))=Switch!$D$61,INDIRECT(\"a\" & (VLOOKUP(Switch!$D$61,$F$2:$G$44,2,FALSE)+ROW()-2)),\"\")","v":{"$error":"#N/A"}},{"$f":"IF(INDIRECT(\"c\" & (VLOOKUP(Switch!$D$62,$F$2:$G$44,2,FALSE)+ROW()-2))=Switch!$D$62,INDIRECT(\"a\" & (VLOOKUP(Switch!$D$62,$F$2:$G$44,2,FALSE)+ROW()-2)),\"\")","v":{"$error":"#N/A"}},{"$f":"IF(INDIRECT(\"c\" & (VLOOKUP(Switch!$D$63,$F$2:$G$44,2,FALSE)+ROW()-2))=Switch!$D$63,INDIRECT(\"a\" & (VLOOKUP(Switch!$D$63,$F$2:$G$44,2,FALSE)+ROW()-2)),\"\")","v":{"$error":"#N/A"}},{"$f":"IF(INDIRECT(\"c\" & (VLOOKUP(Switch!$D$64,$F$2:$G$44,2,FALSE)+ROW()-2))=Switch!$D$64,INDIRECT(\"a\" & (VLOOKUP(Switch!$D$64,$F$2:$G$44,2,FALSE)+ROW()-2)),\"\")","v":{"$error":"#N/A"}},{"$f":"IF(INDIRECT(\"c\" & (VLOOKUP(Switch!$D$65,$F$2:$G$44,2,FALSE)+ROW()-2))=Switch!$D$65,INDIRECT(\"a\" & (VLOOKUP(Switch!$D$65,$F$2:$G$44,2,FALSE)+ROW()-2)),\"\")","v":{"$error":"#N/A"}},{"$f":"IF(INDIRECT(\"c\" & (VLOOKUP(Switch!$D$66,$F$2:$G$44,2,FALSE)+ROW()-2))=Switch!$D$66,INDIRECT(\"a\" & (VLOOKUP(Switch!$D$66,$F$2:$G$44,2,FALSE)+ROW()-2)),\"\")","v":{"$error":"#N/A"}}]
["Amity BCI Prudent FoF A","MAPF","Boutique Collective Investments (Pty) Ltd",{"$f":"ROW()","v":99},null,null,{"$f":"VLOOKUP(F99,$C$2:$D$637,2,FALSE)","v":{"$error":"#N/A"}},{"$f":"IF(INDIRECT(\"c\" & (VLOOKUP(Switch!$D$26,$F$2:$G$44,2,FALSE)+ROW()-2))=Switch!$D$26,INDIRECT(\"a\" & (VLOOKUP(Switch!$D$26,$F$2:$G$44,2,FALSE)+ROW()-2)),\"\")","v":{"$error":"#N/A"}},{"$f":"IF(INDIRECT(\"c\" & (VLOOKUP(Switch!$D$27,$F$2:$G$44,2,FALSE)+ROW()-2))=Switch!$D$27,INDIRECT(\"a\" & (VLOOKUP(Switch!$D$27,$F$2:$G$44,2,FALSE)+ROW()-2)),\"\")","v":{"$error":"#N/A"}},{"$f":"IF(INDIRECT(\"c\" & (VLOOKUP(Switch!$D$28,$F$2:$G$44,2,FALSE)+ROW()-2))=Switch!$D$28,INDIRECT(\"a\" & (VLOOKUP(Switch!$D$28,$F$2:$G$44,2,FALSE)+ROW()-2)),\"\")","v":{"$error":"#N/A"}},{"$f":"IF(INDIRECT(\"c\" & (VLOOKUP(Switch!$D$29,$F$2:$G$44,2,FALSE)+ROW()-2))=Switch!$D$29,INDIRECT(\"a\" & (VLOOKUP(Switch!$D$29,$F$2:$G$44,2,FALSE)+ROW()-2)),\"\")","v":{"$error":"#N/A"}},{"$f":"IF(INDIRECT(\"c\" & (VLOOKUP(Switch!$D$30,$F$2:$G$44,2,FALSE)+ROW()-2))=Switch!$D$30,INDIRECT(\"a\" & (VLOOKUP(Switch!$D$30,$F$2:$G$44,2,FALSE)+ROW()-2)),\"\")","v":{"$error":"#N/A"}},{"$f":"IF(INDIRECT(\"c\" & (VLOOKUP(Switch!$D$31,$F$2:$G$44,2,FALSE)+ROW()-2))=Switch!$D$31,INDIRECT(\"a\" & (VLOOKUP(Switch!$D$31,$F$2:$G$44,2,FALSE)+ROW()-2)),\"\")","v":{"$error":"#N/A"}},{"$f":"IF(INDIRECT(\"c\" & (VLOOKUP(Switch!$D$32,$F$2:$G$44,2,FALSE)+ROW()-2))=Switch!$D$32,INDIRECT(\"a\" & (VLOOKUP(Switch!$D$32,$F$2:$G$44,2,FALSE)+ROW()-2)),\"\")","v":{"$error":"#N/A"}},{"$f":"IF(INDIRECT(\"c\" & (VLOOKUP(Switch!$D$33,$F$2:$G$44,2,FALSE)+ROW()-2))=Switch!$D$33,INDIRECT(\"a\" & (VLOOKUP(Switch!$D$33,$F$2:$G$44,2,FALSE)+ROW()-2)),\"\")","v":{"$error":"#N/A"}},{"$f":"IF(INDIRECT(\"c\" & (VLOOKUP(Switch!$D$34,$F$2:$G$44,2,FALSE)+ROW()-2))=Switch!$D$34,INDIRECT(\"a\" & (VLOOKUP(Switch!$D$34,$F$2:$G$44,2,FALSE)+ROW()-2)),\"\")","v":{"$error":"#N/A"}},{"$f":"IF(INDIRECT(\"c\" & (VLOOKUP(Switch!$D$35,$F$2:$G$44,2,FALSE)+ROW()-2))=Switch!$D$35,INDIRECT(\"a\" & (VLOOKUP(Switch!$D$35,$F$2:$G$44,2,FALSE)+ROW()-2)),\"\")","v":{"$error":"#N/A"}},{"$f":"IF(INDIRECT(\"c\" & (VLOOKUP(Switch!$D$36,$F$2:$G$44,2,FALSE)+ROW()-2))=Switch!$D$36,INDIRECT(\"a\" & (VLOOKUP(Switch!$D$36,$F$2:$G$44,2,FALSE)+ROW()-2)),\"\")","v":{"$error":"#N/A"}},{"$f":"IF(INDIRECT(\"c\" & (VLOOKUP(Switch!$D$37,$F$2:$G$44,2,FALSE)+ROW()-2))=Switch!$D$37,INDIRECT(\"a\" & (VLOOKUP(Switch!$D$37,$F$2:$G$44,2,FALSE)+ROW()-2)),\"\")","v":{"$error":"#N/A"}},{"$f":"IF(INDIRECT(\"c\" & (VLOOKUP(Switch!$D$38,$F$2:$G$44,2,FALSE)+ROW()-2))=Switch!$D$38,INDIRECT(\"a\" & (VLOOKUP(Switch!$D$38,$F$2:$G$44,2,FALSE)+ROW()-2)),\"\")","v":{"$error":"#N/A"}},{"$f":"IF(INDIRECT(\"c\" & (VLOOKUP(Switch!$D$39,$F$2:$G$44,2,FALSE)+ROW()-2))=Switch!$D$39,INDIRECT(\"a\" & (VLOOKUP(Switch!$D$39,$F$2:$G$44,2,FALSE)+ROW()-2)),\"\")","v":{"$error":"#N/A"}},{"$f":"IF(INDIRECT(\"c\" & (VLOOKUP(Switch!$D$40,$F$2:$G$44,2,FALSE)+ROW()-2))=Switch!$D$40,INDIRECT(\"a\" & (VLOOKUP(Switch!$D$40,$F$2:$G$44,2,FALSE)+ROW()-2)),\"\")","v":{"$error":"#N/A"}},{"$f":"IF(INDIRECT(\"c\" & (VLOOKUP(Switch!$D$52,$F$2:$G$44,2,FALSE)+ROW()-2))=Switch!$D$52,INDIRECT(\"a\" & (VLOOKUP(Switch!$D$52,$F$2:$G$44,2,FALSE)+ROW()-2)),\"\")","v":{"$error":"#N/A"}},{"$f":"IF(INDIRECT(\"c\" & (VLOOKUP(Switch!$D$53,$F$2:$G$44,2,FALSE)+ROW()-2))=Switch!$D$53,INDIRECT(\"a\" & (VLOOKUP(Switch!$D$53,$F$2:$G$44,2,FALSE)+ROW()-2)),\"\")","v":{"$error":"#N/A"}},{"$f":"IF(INDIRECT(\"c\" & (VLOOKUP(Switch!$D$54,$F$2:$G$44,2,FALSE)+ROW()-2))=Switch!$D$54,INDIRECT(\"a\" & (VLOOKUP(Switch!$D$54,$F$2:$G$44,2,FALSE)+ROW()-2)),\"\")","v":{"$error":"#N/A"}},{"$f":"IF(INDIRECT(\"c\" & (VLOOKUP(Switch!$D$55,$F$2:$G$44,2,FALSE)+ROW()-2))=Switch!$D$55,INDIRECT(\"a\" & (VLOOKUP(Switch!$D$55,$F$2:$G$44,2,FALSE)+ROW()-2)),\"\")","v":{"$error":"#N/A"}},{"$f":"IF(INDIRECT(\"c\" & (VLOOKUP(Switch!$D$56,$F$2:$G$44,2,FALSE)+ROW()-2))=Switch!$D$56,INDIRECT(\"a\" & (VLOOKUP(Switch!$D$56,$F$2:$G$44,2,FALSE)+ROW()-2)),\"\")","v":{"$error":"#N/A"}},{"$f":"IF(INDIRECT(\"c\" & (VLOOKUP(Switch!$D$57,$F$2:$G$44,2,FALSE)+ROW()-2))=Switch!$D$57,INDIRECT(\"a\" & (VLOOKUP(Switch!$D$57,$F$2:$G$44,2,FALSE)+ROW()-2)),\"\")","v":{"$error":"#N/A"}},{"$f":"IF(INDIRECT(\"c\" & (VLOOKUP(Switch!$D$58,$F$2:$G$44,2,FALSE)+ROW()-2))=Switch!$D$58,INDIRECT(\"a\" & (VLOOKUP(Switch!$D$58,$F$2:$G$44,2,FALSE)+ROW()-2)),\"\")","v":{"$error":"#N/A"}},{"$f":"IF(INDIRECT(\"c\" & (VLOOKUP(Switch!$D$59,$F$2:$G$44,2,FALSE)+ROW()-2))=Switch!$D$59,INDIRECT(\"a\" & (VLOOKUP(Switch!$D$59,$F$2:$G$44,2,FALSE)+ROW()-2)),\"\")","v":{"$error":"#N/A"}},{"$f":"IF(INDIRECT(\"c\" & (VLOOKUP(Switch!$D$60,$F$2:$G$44,2,FALSE)+ROW()-2))=Switch!$D$60,INDIRECT(\"a\" & (VLOOKUP(Switch!$D$60,$F$2:$G$44,2,FALSE)+ROW()-2)),\"\")","v":{"$error":"#N/A"}},{"$f":"IF(INDIRECT(\"c\" & (VLOOKUP(Switch!$D$61,$F$2:$G$44,2,FALSE)+ROW()-2))=Switch!$D$61,INDIRECT(\"a\" & (VLOOKUP(Switch!$D$61,$F$2:$G$44,2,FALSE)+ROW()-2)),\"\")","v":{"$error":"#N/A"}},{"$f":"IF(INDIRECT(\"c\" & (VLOOKUP(Switch!$D$62,$F$2:$G$44,2,FALSE)+ROW()-2))=Switch!$D$62,INDIRECT(\"a\" & (VLOOKUP(Switch!$D$62,$F$2:$G$44,2,FALSE)+ROW()-2)),\"\")","v":{"$error":"#N/A"}},{"$f":"IF(INDIRECT(\"c\" & (VLOOKUP(Switch!$D$63,$F$2:$G$44,2,FALSE)+ROW()-2))=Switch!$D$63,INDIRECT(\"a\" & (VLOOKUP(Switch!$D$63,$F$2:$G$44,2,FALSE)+ROW()-2)),\"\")","v":{"$error":"#N/A"}},{"$f":"IF(INDIRECT(\"c\" & (VLOOKUP(Switch!$D$64,$F$2:$G$44,2,FALSE)+ROW()-2))=Switch!$D$64,INDIRECT(\"a\" & (VLOOKUP(Switch!$D$64,$F$2:$G$44,2,FALSE)+ROW()-2)),\"\")","v":{"$error":"#N/A"}},{"$f":"IF(INDIRECT(\"c\" & (VLOOKUP(Switch!$D$65,$F$2:$G$44,2,FALSE)+ROW()-2))=Switch!$D$65,INDIRECT(\"a\" & (VLOOKUP(Switch!$D$65,$F$2:$G$44,2,FALSE)+ROW()-2)),\"\")","v":{"$error":"#N/A"}},{"$f":"IF(INDIRECT(\"c\" & (VLOOKUP(Switch!$D$66,$F$2:$G$44,2,FALSE)+ROW()-2))=Switch!$D$66,INDIRECT(\"a\" & (VLOOKUP(Switch!$D$66,$F$2:$G$44,2,FALSE)+ROW()-2)),\"\")","v":{"$error":"#N/A"}}]
["Amity BCI Managed Select A","ABMSA","Boutique Collective Investments (Pty) Ltd",{"$f":"ROW()","v":100},null,null,{"$f":"VLOOKUP(F100,$C$2:$D$637,2,FALSE)","v":{"$error":"#N/A"}},{"$f":"IF(INDIRECT(\"c\" & (VLOOKUP(Switch!$D$26,$F$2:$G$44,2,FALSE)+ROW()-2))=Switch!$D$26,INDIRECT(\"a\" & (VLOOKUP(Switch!$D$26,$F$2:$G$44,2,FALSE)+ROW()-2)),\"\")","v":{"$error":"#N/A"}},{"$f":"IF(INDIRECT(\"c\" & (VLOOKUP(Switch!$D$27,$F$2:$G$44,2,FALSE)+ROW()-2))=Switch!$D$27,INDIRECT(\"a\" & (VLOOKUP(Switch!$D$27,$F$2:$G$44,2,FALSE)+ROW()-2)),\"\")","v":{"$error":"#N/A"}},{"$f":"IF(INDIRECT(\"c\" & (VLOOKUP(Switch!$D$28,$F$2:$G$44,2,FALSE)+ROW()-2))=Switch!$D$28,INDIRECT(\"a\" & (VLOOKUP(Switch!$D$28,$F$2:$G$44,2,FALSE)+ROW()-2)),\"\")","v":{"$error":"#N/A"}},{"$f":"IF(INDIRECT(\"c\" & (VLOOKUP(Switch!$D$29,$F$2:$G$44,2,FALSE)+ROW()-2))=Switch!$D$29,INDIRECT(\"a\" & (VLOOKUP(Switch!$D$29,$F$2:$G$44,2,FALSE)+ROW()-2)),\"\")","v":{"$error":"#N/A"}},{"$f":"IF(INDIRECT(\"c\" & (VLOOKUP(Switch!$D$30,$F$2:$G$44,2,FALSE)+ROW()-2))=Switch!$D$30,INDIRECT(\"a\" & (VLOOKUP(Switch!$D$30,$F$2:$G$44,2,FALSE)+ROW()-2)),\"\")","v":{"$error":"#N/A"}},{"$f":"IF(INDIRECT(\"c\" & (VLOOKUP(Switch!$D$31,$F$2:$G$44,2,FALSE)+ROW()-2))=Switch!$D$31,INDIRECT(\"a\" & (VLOOKUP(Switch!$D$31,$F$2:$G$44,2,FALSE)+ROW()-2)),\"\")","v":{"$error":"#N/A"}},{"$f":"IF(INDIRECT(\"c\" & (VLOOKUP(Switch!$D$32,$F$2:$G$44,2,FALSE)+ROW()-2))=Switch!$D$32,INDIRECT(\"a\" & (VLOOKUP(Switch!$D$32,$F$2:$G$44,2,FALSE)+ROW()-2)),\"\")","v":{"$error":"#N/A"}},{"$f":"IF(INDIRECT(\"c\" & (VLOOKUP(Switch!$D$33,$F$2:$G$44,2,FALSE)+ROW()-2))=Switch!$D$33,INDIRECT(\"a\" & (VLOOKUP(Switch!$D$33,$F$2:$G$44,2,FALSE)+ROW()-2)),\"\")","v":{"$error":"#N/A"}},{"$f":"IF(INDIRECT(\"c\" & (VLOOKUP(Switch!$D$34,$F$2:$G$44,2,FALSE)+ROW()-2))=Switch!$D$34,INDIRECT(\"a\" & (VLOOKUP(Switch!$D$34,$F$2:$G$44,2,FALSE)+ROW()-2)),\"\")","v":{"$error":"#N/A"}},{"$f":"IF(INDIRECT(\"c\" & (VLOOKUP(Switch!$D$35,$F$2:$G$44,2,FALSE)+ROW()-2))=Switch!$D$35,INDIRECT(\"a\" & (VLOOKUP(Switch!$D$35,$F$2:$G$44,2,FALSE)+ROW()-2)),\"\")","v":{"$error":"#N/A"}},{"$f":"IF(INDIRECT(\"c\" & (VLOOKUP(Switch!$D$36,$F$2:$G$44,2,FALSE)+ROW()-2))=Switch!$D$36,INDIRECT(\"a\" & (VLOOKUP(Switch!$D$36,$F$2:$G$44,2,FALSE)+ROW()-2)),\"\")","v":{"$error":"#N/A"}},{"$f":"IF(INDIRECT(\"c\" & (VLOOKUP(Switch!$D$37,$F$2:$G$44,2,FALSE)+ROW()-2))=Switch!$D$37,INDIRECT(\"a\" & (VLOOKUP(Switch!$D$37,$F$2:$G$44,2,FALSE)+ROW()-2)),\"\")","v":{"$error":"#N/A"}},{"$f":"IF(INDIRECT(\"c\" & (VLOOKUP(Switch!$D$38,$F$2:$G$44,2,FALSE)+ROW()-2))=Switch!$D$38,INDIRECT(\"a\" & (VLOOKUP(Switch!$D$38,$F$2:$G$44,2,FALSE)+ROW()-2)),\"\")","v":{"$error":"#N/A"}},{"$f":"IF(INDIRECT(\"c\" & (VLOOKUP(Switch!$D$39,$F$2:$G$44,2,FALSE)+ROW()-2))=Switch!$D$39,INDIRECT(\"a\" & (VLOOKUP(Switch!$D$39,$F$2:$G$44,2,FALSE)+ROW()-2)),\"\")","v":{"$error":"#N/A"}},{"$f":"IF(INDIRECT(\"c\" & (VLOOKUP(Switch!$D$40,$F$2:$G$44,2,FALSE)+ROW()-2))=Switch!$D$40,INDIRECT(\"a\" & (VLOOKUP(Switch!$D$40,$F$2:$G$44,2,FALSE)+ROW()-2)),\"\")","v":{"$error":"#N/A"}},{"$f":"IF(INDIRECT(\"c\" & (VLOOKUP(Switch!$D$52,$F$2:$G$44,2,FALSE)+ROW()-2))=Switch!$D$52,INDIRECT(\"a\" & (VLOOKUP(Switch!$D$52,$F$2:$G$44,2,FALSE)+ROW()-2)),\"\")","v":{"$error":"#N/A"}},{"$f":"IF(INDIRECT(\"c\" & (VLOOKUP(Switch!$D$53,$F$2:$G$44,2,FALSE)+ROW()-2))=Switch!$D$53,INDIRECT(\"a\" & (VLOOKUP(Switch!$D$53,$F$2:$G$44,2,FALSE)+ROW()-2)),\"\")","v":{"$error":"#N/A"}},{"$f":"IF(INDIRECT(\"c\" & (VLOOKUP(Switch!$D$54,$F$2:$G$44,2,FALSE)+ROW()-2))=Switch!$D$54,INDIRECT(\"a\" & (VLOOKUP(Switch!$D$54,$F$2:$G$44,2,FALSE)+ROW()-2)),\"\")","v":{"$error":"#N/A"}},{"$f":"IF(INDIRECT(\"c\" & (VLOOKUP(Switch!$D$55,$F$2:$G$44,2,FALSE)+ROW()-2))=Switch!$D$55,INDIRECT(\"a\" & (VLOOKUP(Switch!$D$55,$F$2:$G$44,2,FALSE)+ROW()-2)),\"\")","v":{"$error":"#N/A"}},{"$f":"IF(INDIRECT(\"c\" & (VLOOKUP(Switch!$D$56,$F$2:$G$44,2,FALSE)+ROW()-2))=Switch!$D$56,INDIRECT(\"a\" & (VLOOKUP(Switch!$D$56,$F$2:$G$44,2,FALSE)+ROW()-2)),\"\")","v":{"$error":"#N/A"}},{"$f":"IF(INDIRECT(\"c\" & (VLOOKUP(Switch!$D$57,$F$2:$G$44,2,FALSE)+ROW()-2))=Switch!$D$57,INDIRECT(\"a\" & (VLOOKUP(Switch!$D$57,$F$2:$G$44,2,FALSE)+ROW()-2)),\"\")","v":{"$error":"#N/A"}},{"$f":"IF(INDIRECT(\"c\" & (VLOOKUP(Switch!$D$58,$F$2:$G$44,2,FALSE)+ROW()-2))=Switch!$D$58,INDIRECT(\"a\" & (VLOOKUP(Switch!$D$58,$F$2:$G$44,2,FALSE)+ROW()-2)),\"\")","v":{"$error":"#N/A"}},{"$f":"IF(INDIRECT(\"c\" & (VLOOKUP(Switch!$D$59,$F$2:$G$44,2,FALSE)+ROW()-2))=Switch!$D$59,INDIRECT(\"a\" & (VLOOKUP(Switch!$D$59,$F$2:$G$44,2,FALSE)+ROW()-2)),\"\")","v":{"$error":"#N/A"}},{"$f":"IF(INDIRECT(\"c\" & (VLOOKUP(Switch!$D$60,$F$2:$G$44,2,FALSE)+ROW()-2))=Switch!$D$60,INDIRECT(\"a\" & (VLOOKUP(Switch!$D$60,$F$2:$G$44,2,FALSE)+ROW()-2)),\"\")","v":{"$error":"#N/A"}},{"$f":"IF(INDIRECT(\"c\" & (VLOOKUP(Switch!$D$61,$F$2:$G$44,2,FALSE)+ROW()-2))=Switch!$D$61,INDIRECT(\"a\" & (VLOOKUP(Switch!$D$61,$F$2:$G$44,2,FALSE)+ROW()-2)),\"\")","v":{"$error":"#N/A"}},{"$f":"IF(INDIRECT(\"c\" & (VLOOKUP(Switch!$D$62,$F$2:$G$44,2,FALSE)+ROW()-2))=Switch!$D$62,INDIRECT(\"a\" & (VLOOKUP(Switch!$D$62,$F$2:$G$44,2,FALSE)+ROW()-2)),\"\")","v":{"$error":"#N/A"}},{"$f":"IF(INDIRECT(\"c\" & (VLOOKUP(Switch!$D$63,$F$2:$G$44,2,FALSE)+ROW()-2))=Switch!$D$63,INDIRECT(\"a\" & (VLOOKUP(Switch!$D$63,$F$2:$G$44,2,FALSE)+ROW()-2)),\"\")","v":{"$error":"#N/A"}},{"$f":"IF(INDIRECT(\"c\" & (VLOOKUP(Switch!$D$64,$F$2:$G$44,2,FALSE)+ROW()-2))=Switch!$D$64,INDIRECT(\"a\" & (VLOOKUP(Switch!$D$64,$F$2:$G$44,2,FALSE)+ROW()-2)),\"\")","v":{"$error":"#N/A"}},{"$f":"IF(INDIRECT(\"c\" & (VLOOKUP(Switch!$D$65,$F$2:$G$44,2,FALSE)+ROW()-2))=Switch!$D$65,INDIRECT(\"a\" & (VLOOKUP(Switch!$D$65,$F$2:$G$44,2,FALSE)+ROW()-2)),\"\")","v":{"$error":"#N/A"}},{"$f":"IF(INDIRECT(\"c\" & (VLOOKUP(Switch!$D$66,$F$2:$G$44,2,FALSE)+ROW()-2))=Switch!$D$66,INDIRECT(\"a\" & (VLOOKUP(Switch!$D$66,$F$2:$G$44,2,FALSE)+ROW()-2)),\"\")","v":{"$error":"#N/A"}}]
["Amity BCI Steady Growth Fund A","ABSSA","Boutique Collective Investments (Pty) Ltd",{"$f":"ROW()","v":101},null,null,{"$f":"VLOOKUP(F101,$C$2:$D$637,2,FALSE)","v":{"$error":"#N/A"}},{"$f":"IF(INDIRECT(\"c\" & (VLOOKUP(Switch!$D$26,$F$2:$G$44,2,FALSE)+ROW()-2))=Switch!$D$26,INDIRECT(\"a\" & (VLOOKUP(Switch!$D$26,$F$2:$G$44,2,FALSE)+ROW()-2)),\"\")","v":{"$error":"#N/A"}},{"$f":"IF(INDIRECT(\"c\" & (VLOOKUP(Switch!$D$27,$F$2:$G$44,2,FALSE)+ROW()-2))=Switch!$D$27,INDIRECT(\"a\" & (VLOOKUP(Switch!$D$27,$F$2:$G$44,2,FALSE)+ROW()-2)),\"\")","v":{"$error":"#N/A"}},{"$f":"IF(INDIRECT(\"c\" & (VLOOKUP(Switch!$D$28,$F$2:$G$44,2,FALSE)+ROW()-2))=Switch!$D$28,INDIRECT(\"a\" & (VLOOKUP(Switch!$D$28,$F$2:$G$44,2,FALSE)+ROW()-2)),\"\")","v":{"$error":"#N/A"}},{"$f":"IF(INDIRECT(\"c\" & (VLOOKUP(Switch!$D$29,$F$2:$G$44,2,FALSE)+ROW()-2))=Switch!$D$29,INDIRECT(\"a\" & (VLOOKUP(Switch!$D$29,$F$2:$G$44,2,FALSE)+ROW()-2)),\"\")","v":{"$error":"#N/A"}},{"$f":"IF(INDIRECT(\"c\" & (VLOOKUP(Switch!$D$30,$F$2:$G$44,2,FALSE)+ROW()-2))=Switch!$D$30,INDIRECT(\"a\" & (VLOOKUP(Switch!$D$30,$F$2:$G$44,2,FALSE)+ROW()-2)),\"\")","v":{"$error":"#N/A"}},{"$f":"IF(INDIRECT(\"c\" & (VLOOKUP(Switch!$D$31,$F$2:$G$44,2,FALSE)+ROW()-2))=Switch!$D$31,INDIRECT(\"a\" & (VLOOKUP(Switch!$D$31,$F$2:$G$44,2,FALSE)+ROW()-2)),\"\")","v":{"$error":"#N/A"}},{"$f":"IF(INDIRECT(\"c\" & (VLOOKUP(Switch!$D$32,$F$2:$G$44,2,FALSE)+ROW()-2))=Switch!$D$32,INDIRECT(\"a\" & (VLOOKUP(Switch!$D$32,$F$2:$G$44,2,FALSE)+ROW()-2)),\"\")","v":{"$error":"#N/A"}},{"$f":"IF(INDIRECT(\"c\" & (VLOOKUP(Switch!$D$33,$F$2:$G$44,2,FALSE)+ROW()-2))=Switch!$D$33,INDIRECT(\"a\" & (VLOOKUP(Switch!$D$33,$F$2:$G$44,2,FALSE)+ROW()-2)),\"\")","v":{"$error":"#N/A"}},{"$f":"IF(INDIRECT(\"c\" & (VLOOKUP(Switch!$D$34,$F$2:$G$44,2,FALSE)+ROW()-2))=Switch!$D$34,INDIRECT(\"a\" & (VLOOKUP(Switch!$D$34,$F$2:$G$44,2,FALSE)+ROW()-2)),\"\")","v":{"$error":"#N/A"}},{"$f":"IF(INDIRECT(\"c\" & (VLOOKUP(Switch!$D$35,$F$2:$G$44,2,FALSE)+ROW()-2))=Switch!$D$35,INDIRECT(\"a\" & (VLOOKUP(Switch!$D$35,$F$2:$G$44,2,FALSE)+ROW()-2)),\"\")","v":{"$error":"#N/A"}},{"$f":"IF(INDIRECT(\"c\" & (VLOOKUP(Switch!$D$36,$F$2:$G$44,2,FALSE)+ROW()-2))=Switch!$D$36,INDIRECT(\"a\" & (VLOOKUP(Switch!$D$36,$F$2:$G$44,2,FALSE)+ROW()-2)),\"\")","v":{"$error":"#N/A"}},{"$f":"IF(INDIRECT(\"c\" & (VLOOKUP(Switch!$D$37,$F$2:$G$44,2,FALSE)+ROW()-2))=Switch!$D$37,INDIRECT(\"a\" & (VLOOKUP(Switch!$D$37,$F$2:$G$44,2,FALSE)+ROW()-2)),\"\")","v":{"$error":"#N/A"}},{"$f":"IF(INDIRECT(\"c\" & (VLOOKUP(Switch!$D$38,$F$2:$G$44,2,FALSE)+ROW()-2))=Switch!$D$38,INDIRECT(\"a\" & (VLOOKUP(Switch!$D$38,$F$2:$G$44,2,FALSE)+ROW()-2)),\"\")","v":{"$error":"#N/A"}},{"$f":"IF(INDIRECT(\"c\" & (VLOOKUP(Switch!$D$39,$F$2:$G$44,2,FALSE)+ROW()-2))=Switch!$D$39,INDIRECT(\"a\" & (VLOOKUP(Switch!$D$39,$F$2:$G$44,2,FALSE)+ROW()-2)),\"\")","v":{"$error":"#N/A"}},{"$f":"IF(INDIRECT(\"c\" & (VLOOKUP(Switch!$D$40,$F$2:$G$44,2,FALSE)+ROW()-2))=Switch!$D$40,INDIRECT(\"a\" & (VLOOKUP(Switch!$D$40,$F$2:$G$44,2,FALSE)+ROW()-2)),\"\")","v":{"$error":"#N/A"}},{"$f":"IF(INDIRECT(\"c\" & (VLOOKUP(Switch!$D$52,$F$2:$G$44,2,FALSE)+ROW()-2))=Switch!$D$52,INDIRECT(\"a\" & (VLOOKUP(Switch!$D$52,$F$2:$G$44,2,FALSE)+ROW()-2)),\"\")","v":{"$error":"#N/A"}},{"$f":"IF(INDIRECT(\"c\" & (VLOOKUP(Switch!$D$53,$F$2:$G$44,2,FALSE)+ROW()-2))=Switch!$D$53,INDIRECT(\"a\" & (VLOOKUP(Switch!$D$53,$F$2:$G$44,2,FALSE)+ROW()-2)),\"\")","v":{"$error":"#N/A"}},{"$f":"IF(INDIRECT(\"c\" & (VLOOKUP(Switch!$D$54,$F$2:$G$44,2,FALSE)+ROW()-2))=Switch!$D$54,INDIRECT(\"a\" & (VLOOKUP(Switch!$D$54,$F$2:$G$44,2,FALSE)+ROW()-2)),\"\")","v":{"$error":"#N/A"}},{"$f":"IF(INDIRECT(\"c\" & (VLOOKUP(Switch!$D$55,$F$2:$G$44,2,FALSE)+ROW()-2))=Switch!$D$55,INDIRECT(\"a\" & (VLOOKUP(Switch!$D$55,$F$2:$G$44,2,FALSE)+ROW()-2)),\"\")","v":{"$error":"#N/A"}},{"$f":"IF(INDIRECT(\"c\" & (VLOOKUP(Switch!$D$56,$F$2:$G$44,2,FALSE)+ROW()-2))=Switch!$D$56,INDIRECT(\"a\" & (VLOOKUP(Switch!$D$56,$F$2:$G$44,2,FALSE)+ROW()-2)),\"\")","v":{"$error":"#N/A"}},{"$f":"IF(INDIRECT(\"c\" & (VLOOKUP(Switch!$D$57,$F$2:$G$44,2,FALSE)+ROW()-2))=Switch!$D$57,INDIRECT(\"a\" & (VLOOKUP(Switch!$D$57,$F$2:$G$44,2,FALSE)+ROW()-2)),\"\")","v":{"$error":"#N/A"}},{"$f":"IF(INDIRECT(\"c\" & (VLOOKUP(Switch!$D$58,$F$2:$G$44,2,FALSE)+ROW()-2))=Switch!$D$58,INDIRECT(\"a\" & (VLOOKUP(Switch!$D$58,$F$2:$G$44,2,FALSE)+ROW()-2)),\"\")","v":{"$error":"#N/A"}},{"$f":"IF(INDIRECT(\"c\" & (VLOOKUP(Switch!$D$59,$F$2:$G$44,2,FALSE)+ROW()-2))=Switch!$D$59,INDIRECT(\"a\" & (VLOOKUP(Switch!$D$59,$F$2:$G$44,2,FALSE)+ROW()-2)),\"\")","v":{"$error":"#N/A"}},{"$f":"IF(INDIRECT(\"c\" & (VLOOKUP(Switch!$D$60,$F$2:$G$44,2,FALSE)+ROW()-2))=Switch!$D$60,INDIRECT(\"a\" & (VLOOKUP(Switch!$D$60,$F$2:$G$44,2,FALSE)+ROW()-2)),\"\")","v":{"$error":"#N/A"}},{"$f":"IF(INDIRECT(\"c\" & (VLOOKUP(Switch!$D$61,$F$2:$G$44,2,FALSE)+ROW()-2))=Switch!$D$61,INDIRECT(\"a\" & (VLOOKUP(Switch!$D$61,$F$2:$G$44,2,FALSE)+ROW()-2)),\"\")","v":{"$error":"#N/A"}},{"$f":"IF(INDIRECT(\"c\" & (VLOOKUP(Switch!$D$62,$F$2:$G$44,2,FALSE)+ROW()-2))=Switch!$D$62,INDIRECT(\"a\" & (VLOOKUP(Switch!$D$62,$F$2:$G$44,2,FALSE)+ROW()-2)),\"\")","v":{"$error":"#N/A"}},{"$f":"IF(INDIRECT(\"c\" & (VLOOKUP(Switch!$D$63,$F$2:$G$44,2,FALSE)+ROW()-2))=Switch!$D$63,INDIRECT(\"a\" & (VLOOKUP(Switch!$D$63,$F$2:$G$44,2,FALSE)+ROW()-2)),\"\")","v":{"$error":"#N/A"}},{"$f":"IF(INDIRECT(\"c\" & (VLOOKUP(Switch!$D$64,$F$2:$G$44,2,FALSE)+ROW()-2))=Switch!$D$64,INDIRECT(\"a\" & (VLOOKUP(Switch!$D$64,$F$2:$G$44,2,FALSE)+ROW()-2)),\"\")","v":{"$error":"#N/A"}},{"$f":"IF(INDIRECT(\"c\" & (VLOOKUP(Switch!$D$65,$F$2:$G$44,2,FALSE)+ROW()-2))=Switch!$D$65,INDIRECT(\"a\" & (VLOOKUP(Switch!$D$65,$F$2:$G$44,2,FALSE)+ROW()-2)),\"\")","v":{"$error":"#N/A"}},{"$f":"IF(INDIRECT(\"c\" & (VLOOKUP(Switch!$D$66,$F$2:$G$44,2,FALSE)+ROW()-2))=Switch!$D$66,INDIRECT(\"a\" & (VLOOKUP(Switch!$D$66,$F$2:$G$44,2,FALSE)+ROW()-2)),\"\")","v":{"$error":"#N/A"}}]
["Analytics Ci Balanced FoF B","ANABB","Boutique Collective Investments (Pty) Ltd",{"$f":"ROW()","v":102},null,null,{"$f":"VLOOKUP(F102,$C$2:$D$637,2,FALSE)","v":{"$error":"#N/A"}},{"$f":"IF(INDIRECT(\"c\" & (VLOOKUP(Switch!$D$26,$F$2:$G$44,2,FALSE)+ROW()-2))=Switch!$D$26,INDIRECT(\"a\" & (VLOOKUP(Switch!$D$26,$F$2:$G$44,2,FALSE)+ROW()-2)),\"\")","v":{"$error":"#N/A"}},{"$f":"IF(INDIRECT(\"c\" & (VLOOKUP(Switch!$D$27,$F$2:$G$44,2,FALSE)+ROW()-2))=Switch!$D$27,INDIRECT(\"a\" & (VLOOKUP(Switch!$D$27,$F$2:$G$44,2,FALSE)+ROW()-2)),\"\")","v":{"$error":"#N/A"}},{"$f":"IF(INDIRECT(\"c\" & (VLOOKUP(Switch!$D$28,$F$2:$G$44,2,FALSE)+ROW()-2))=Switch!$D$28,INDIRECT(\"a\" & (VLOOKUP(Switch!$D$28,$F$2:$G$44,2,FALSE)+ROW()-2)),\"\")","v":{"$error":"#N/A"}},{"$f":"IF(INDIRECT(\"c\" & (VLOOKUP(Switch!$D$29,$F$2:$G$44,2,FALSE)+ROW()-2))=Switch!$D$29,INDIRECT(\"a\" & (VLOOKUP(Switch!$D$29,$F$2:$G$44,2,FALSE)+ROW()-2)),\"\")","v":{"$error":"#N/A"}},{"$f":"IF(INDIRECT(\"c\" & (VLOOKUP(Switch!$D$30,$F$2:$G$44,2,FALSE)+ROW()-2))=Switch!$D$30,INDIRECT(\"a\" & (VLOOKUP(Switch!$D$30,$F$2:$G$44,2,FALSE)+ROW()-2)),\"\")","v":{"$error":"#N/A"}},{"$f":"IF(INDIRECT(\"c\" & (VLOOKUP(Switch!$D$31,$F$2:$G$44,2,FALSE)+ROW()-2))=Switch!$D$31,INDIRECT(\"a\" & (VLOOKUP(Switch!$D$31,$F$2:$G$44,2,FALSE)+ROW()-2)),\"\")","v":{"$error":"#N/A"}},{"$f":"IF(INDIRECT(\"c\" & (VLOOKUP(Switch!$D$32,$F$2:$G$44,2,FALSE)+ROW()-2))=Switch!$D$32,INDIRECT(\"a\" & (VLOOKUP(Switch!$D$32,$F$2:$G$44,2,FALSE)+ROW()-2)),\"\")","v":{"$error":"#N/A"}},{"$f":"IF(INDIRECT(\"c\" & (VLOOKUP(Switch!$D$33,$F$2:$G$44,2,FALSE)+ROW()-2))=Switch!$D$33,INDIRECT(\"a\" & (VLOOKUP(Switch!$D$33,$F$2:$G$44,2,FALSE)+ROW()-2)),\"\")","v":{"$error":"#N/A"}},{"$f":"IF(INDIRECT(\"c\" & (VLOOKUP(Switch!$D$34,$F$2:$G$44,2,FALSE)+ROW()-2))=Switch!$D$34,INDIRECT(\"a\" & (VLOOKUP(Switch!$D$34,$F$2:$G$44,2,FALSE)+ROW()-2)),\"\")","v":{"$error":"#N/A"}},{"$f":"IF(INDIRECT(\"c\" & (VLOOKUP(Switch!$D$35,$F$2:$G$44,2,FALSE)+ROW()-2))=Switch!$D$35,INDIRECT(\"a\" & (VLOOKUP(Switch!$D$35,$F$2:$G$44,2,FALSE)+ROW()-2)),\"\")","v":{"$error":"#N/A"}},{"$f":"IF(INDIRECT(\"c\" & (VLOOKUP(Switch!$D$36,$F$2:$G$44,2,FALSE)+ROW()-2))=Switch!$D$36,INDIRECT(\"a\" & (VLOOKUP(Switch!$D$36,$F$2:$G$44,2,FALSE)+ROW()-2)),\"\")","v":{"$error":"#N/A"}},{"$f":"IF(INDIRECT(\"c\" & (VLOOKUP(Switch!$D$37,$F$2:$G$44,2,FALSE)+ROW()-2))=Switch!$D$37,INDIRECT(\"a\" & (VLOOKUP(Switch!$D$37,$F$2:$G$44,2,FALSE)+ROW()-2)),\"\")","v":{"$error":"#N/A"}},{"$f":"IF(INDIRECT(\"c\" & (VLOOKUP(Switch!$D$38,$F$2:$G$44,2,FALSE)+ROW()-2))=Switch!$D$38,INDIRECT(\"a\" & (VLOOKUP(Switch!$D$38,$F$2:$G$44,2,FALSE)+ROW()-2)),\"\")","v":{"$error":"#N/A"}},{"$f":"IF(INDIRECT(\"c\" & (VLOOKUP(Switch!$D$39,$F$2:$G$44,2,FALSE)+ROW()-2))=Switch!$D$39,INDIRECT(\"a\" & (VLOOKUP(Switch!$D$39,$F$2:$G$44,2,FALSE)+ROW()-2)),\"\")","v":{"$error":"#N/A"}},{"$f":"IF(INDIRECT(\"c\" & (VLOOKUP(Switch!$D$40,$F$2:$G$44,2,FALSE)+ROW()-2))=Switch!$D$40,INDIRECT(\"a\" & (VLOOKUP(Switch!$D$40,$F$2:$G$44,2,FALSE)+ROW()-2)),\"\")","v":{"$error":"#N/A"}},{"$f":"IF(INDIRECT(\"c\" & (VLOOKUP(Switch!$D$52,$F$2:$G$44,2,FALSE)+ROW()-2))=Switch!$D$52,INDIRECT(\"a\" & (VLOOKUP(Switch!$D$52,$F$2:$G$44,2,FALSE)+ROW()-2)),\"\")","v":{"$error":"#N/A"}},{"$f":"IF(INDIRECT(\"c\" & (VLOOKUP(Switch!$D$53,$F$2:$G$44,2,FALSE)+ROW()-2))=Switch!$D$53,INDIRECT(\"a\" & (VLOOKUP(Switch!$D$53,$F$2:$G$44,2,FALSE)+ROW()-2)),\"\")","v":{"$error":"#N/A"}},{"$f":"IF(INDIRECT(\"c\" & (VLOOKUP(Switch!$D$54,$F$2:$G$44,2,FALSE)+ROW()-2))=Switch!$D$54,INDIRECT(\"a\" & (VLOOKUP(Switch!$D$54,$F$2:$G$44,2,FALSE)+ROW()-2)),\"\")","v":{"$error":"#N/A"}},{"$f":"IF(INDIRECT(\"c\" & (VLOOKUP(Switch!$D$55,$F$2:$G$44,2,FALSE)+ROW()-2))=Switch!$D$55,INDIRECT(\"a\" & (VLOOKUP(Switch!$D$55,$F$2:$G$44,2,FALSE)+ROW()-2)),\"\")","v":{"$error":"#N/A"}},{"$f":"IF(INDIRECT(\"c\" & (VLOOKUP(Switch!$D$56,$F$2:$G$44,2,FALSE)+ROW()-2))=Switch!$D$56,INDIRECT(\"a\" & (VLOOKUP(Switch!$D$56,$F$2:$G$44,2,FALSE)+ROW()-2)),\"\")","v":{"$error":"#N/A"}},{"$f":"IF(INDIRECT(\"c\" & (VLOOKUP(Switch!$D$57,$F$2:$G$44,2,FALSE)+ROW()-2))=Switch!$D$57,INDIRECT(\"a\" & (VLOOKUP(Switch!$D$57,$F$2:$G$44,2,FALSE)+ROW()-2)),\"\")","v":{"$error":"#N/A"}},{"$f":"IF(INDIRECT(\"c\" & (VLOOKUP(Switch!$D$58,$F$2:$G$44,2,FALSE)+ROW()-2))=Switch!$D$58,INDIRECT(\"a\" & (VLOOKUP(Switch!$D$58,$F$2:$G$44,2,FALSE)+ROW()-2)),\"\")","v":{"$error":"#N/A"}},{"$f":"IF(INDIRECT(\"c\" & (VLOOKUP(Switch!$D$59,$F$2:$G$44,2,FALSE)+ROW()-2))=Switch!$D$59,INDIRECT(\"a\" & (VLOOKUP(Switch!$D$59,$F$2:$G$44,2,FALSE)+ROW()-2)),\"\")","v":{"$error":"#N/A"}},{"$f":"IF(INDIRECT(\"c\" & (VLOOKUP(Switch!$D$60,$F$2:$G$44,2,FALSE)+ROW()-2))=Switch!$D$60,INDIRECT(\"a\" & (VLOOKUP(Switch!$D$60,$F$2:$G$44,2,FALSE)+ROW()-2)),\"\")","v":{"$error":"#N/A"}},{"$f":"IF(INDIRECT(\"c\" & (VLOOKUP(Switch!$D$61,$F$2:$G$44,2,FALSE)+ROW()-2))=Switch!$D$61,INDIRECT(\"a\" & (VLOOKUP(Switch!$D$61,$F$2:$G$44,2,FALSE)+ROW()-2)),\"\")","v":{"$error":"#N/A"}},{"$f":"IF(INDIRECT(\"c\" & (VLOOKUP(Switch!$D$62,$F$2:$G$44,2,FALSE)+ROW()-2))=Switch!$D$62,INDIRECT(\"a\" & (VLOOKUP(Switch!$D$62,$F$2:$G$44,2,FALSE)+ROW()-2)),\"\")","v":{"$error":"#N/A"}},{"$f":"IF(INDIRECT(\"c\" & (VLOOKUP(Switch!$D$63,$F$2:$G$44,2,FALSE)+ROW()-2))=Switch!$D$63,INDIRECT(\"a\" & (VLOOKUP(Switch!$D$63,$F$2:$G$44,2,FALSE)+ROW()-2)),\"\")","v":{"$error":"#N/A"}},{"$f":"IF(INDIRECT(\"c\" & (VLOOKUP(Switch!$D$64,$F$2:$G$44,2,FALSE)+ROW()-2))=Switch!$D$64,INDIRECT(\"a\" & (VLOOKUP(Switch!$D$64,$F$2:$G$44,2,FALSE)+ROW()-2)),\"\")","v":{"$error":"#N/A"}},{"$f":"IF(INDIRECT(\"c\" & (VLOOKUP(Switch!$D$65,$F$2:$G$44,2,FALSE)+ROW()-2))=Switch!$D$65,INDIRECT(\"a\" & (VLOOKUP(Switch!$D$65,$F$2:$G$44,2,FALSE)+ROW()-2)),\"\")","v":{"$error":"#N/A"}},{"$f":"IF(INDIRECT(\"c\" & (VLOOKUP(Switch!$D$66,$F$2:$G$44,2,FALSE)+ROW()-2))=Switch!$D$66,INDIRECT(\"a\" & (VLOOKUP(Switch!$D$66,$F$2:$G$44,2,FALSE)+ROW()-2)),\"\")","v":{"$error":"#N/A"}}]
["Analytics Ci Cautious FoF B","ANCCB","Boutique Collective Investments (Pty) Ltd",{"$f":"ROW()","v":103},null,null,{"$f":"VLOOKUP(F103,$C$2:$D$637,2,FALSE)","v":{"$error":"#N/A"}},{"$f":"IF(INDIRECT(\"c\" & (VLOOKUP(Switch!$D$26,$F$2:$G$44,2,FALSE)+ROW()-2))=Switch!$D$26,INDIRECT(\"a\" & (VLOOKUP(Switch!$D$26,$F$2:$G$44,2,FALSE)+ROW()-2)),\"\")","v":{"$error":"#N/A"}},{"$f":"IF(INDIRECT(\"c\" & (VLOOKUP(Switch!$D$27,$F$2:$G$44,2,FALSE)+ROW()-2))=Switch!$D$27,INDIRECT(\"a\" & (VLOOKUP(Switch!$D$27,$F$2:$G$44,2,FALSE)+ROW()-2)),\"\")","v":{"$error":"#N/A"}},{"$f":"IF(INDIRECT(\"c\" & (VLOOKUP(Switch!$D$28,$F$2:$G$44,2,FALSE)+ROW()-2))=Switch!$D$28,INDIRECT(\"a\" & (VLOOKUP(Switch!$D$28,$F$2:$G$44,2,FALSE)+ROW()-2)),\"\")","v":{"$error":"#N/A"}},{"$f":"IF(INDIRECT(\"c\" & (VLOOKUP(Switch!$D$29,$F$2:$G$44,2,FALSE)+ROW()-2))=Switch!$D$29,INDIRECT(\"a\" & (VLOOKUP(Switch!$D$29,$F$2:$G$44,2,FALSE)+ROW()-2)),\"\")","v":{"$error":"#N/A"}},{"$f":"IF(INDIRECT(\"c\" & (VLOOKUP(Switch!$D$30,$F$2:$G$44,2,FALSE)+ROW()-2))=Switch!$D$30,INDIRECT(\"a\" & (VLOOKUP(Switch!$D$30,$F$2:$G$44,2,FALSE)+ROW()-2)),\"\")","v":{"$error":"#N/A"}},{"$f":"IF(INDIRECT(\"c\" & (VLOOKUP(Switch!$D$31,$F$2:$G$44,2,FALSE)+ROW()-2))=Switch!$D$31,INDIRECT(\"a\" & (VLOOKUP(Switch!$D$31,$F$2:$G$44,2,FALSE)+ROW()-2)),\"\")","v":{"$error":"#N/A"}},{"$f":"IF(INDIRECT(\"c\" & (VLOOKUP(Switch!$D$32,$F$2:$G$44,2,FALSE)+ROW()-2))=Switch!$D$32,INDIRECT(\"a\" & (VLOOKUP(Switch!$D$32,$F$2:$G$44,2,FALSE)+ROW()-2)),\"\")","v":{"$error":"#N/A"}},{"$f":"IF(INDIRECT(\"c\" & (VLOOKUP(Switch!$D$33,$F$2:$G$44,2,FALSE)+ROW()-2))=Switch!$D$33,INDIRECT(\"a\" & (VLOOKUP(Switch!$D$33,$F$2:$G$44,2,FALSE)+ROW()-2)),\"\")","v":{"$error":"#N/A"}},{"$f":"IF(INDIRECT(\"c\" & (VLOOKUP(Switch!$D$34,$F$2:$G$44,2,FALSE)+ROW()-2))=Switch!$D$34,INDIRECT(\"a\" & (VLOOKUP(Switch!$D$34,$F$2:$G$44,2,FALSE)+ROW()-2)),\"\")","v":{"$error":"#N/A"}},{"$f":"IF(INDIRECT(\"c\" & (VLOOKUP(Switch!$D$35,$F$2:$G$44,2,FALSE)+ROW()-2))=Switch!$D$35,INDIRECT(\"a\" & (VLOOKUP(Switch!$D$35,$F$2:$G$44,2,FALSE)+ROW()-2)),\"\")","v":{"$error":"#N/A"}},{"$f":"IF(INDIRECT(\"c\" & (VLOOKUP(Switch!$D$36,$F$2:$G$44,2,FALSE)+ROW()-2))=Switch!$D$36,INDIRECT(\"a\" & (VLOOKUP(Switch!$D$36,$F$2:$G$44,2,FALSE)+ROW()-2)),\"\")","v":{"$error":"#N/A"}},{"$f":"IF(INDIRECT(\"c\" & (VLOOKUP(Switch!$D$37,$F$2:$G$44,2,FALSE)+ROW()-2))=Switch!$D$37,INDIRECT(\"a\" & (VLOOKUP(Switch!$D$37,$F$2:$G$44,2,FALSE)+ROW()-2)),\"\")","v":{"$error":"#N/A"}},{"$f":"IF(INDIRECT(\"c\" & (VLOOKUP(Switch!$D$38,$F$2:$G$44,2,FALSE)+ROW()-2))=Switch!$D$38,INDIRECT(\"a\" & (VLOOKUP(Switch!$D$38,$F$2:$G$44,2,FALSE)+ROW()-2)),\"\")","v":{"$error":"#N/A"}},{"$f":"IF(INDIRECT(\"c\" & (VLOOKUP(Switch!$D$39,$F$2:$G$44,2,FALSE)+ROW()-2))=Switch!$D$39,INDIRECT(\"a\" & (VLOOKUP(Switch!$D$39,$F$2:$G$44,2,FALSE)+ROW()-2)),\"\")","v":{"$error":"#N/A"}},{"$f":"IF(INDIRECT(\"c\" & (VLOOKUP(Switch!$D$40,$F$2:$G$44,2,FALSE)+ROW()-2))=Switch!$D$40,INDIRECT(\"a\" & (VLOOKUP(Switch!$D$40,$F$2:$G$44,2,FALSE)+ROW()-2)),\"\")","v":{"$error":"#N/A"}},{"$f":"IF(INDIRECT(\"c\" & (VLOOKUP(Switch!$D$52,$F$2:$G$44,2,FALSE)+ROW()-2))=Switch!$D$52,INDIRECT(\"a\" & (VLOOKUP(Switch!$D$52,$F$2:$G$44,2,FALSE)+ROW()-2)),\"\")","v":{"$error":"#N/A"}},{"$f":"IF(INDIRECT(\"c\" & (VLOOKUP(Switch!$D$53,$F$2:$G$44,2,FALSE)+ROW()-2))=Switch!$D$53,INDIRECT(\"a\" & (VLOOKUP(Switch!$D$53,$F$2:$G$44,2,FALSE)+ROW()-2)),\"\")","v":{"$error":"#N/A"}},{"$f":"IF(INDIRECT(\"c\" & (VLOOKUP(Switch!$D$54,$F$2:$G$44,2,FALSE)+ROW()-2))=Switch!$D$54,INDIRECT(\"a\" & (VLOOKUP(Switch!$D$54,$F$2:$G$44,2,FALSE)+ROW()-2)),\"\")","v":{"$error":"#N/A"}},{"$f":"IF(INDIRECT(\"c\" & (VLOOKUP(Switch!$D$55,$F$2:$G$44,2,FALSE)+ROW()-2))=Switch!$D$55,INDIRECT(\"a\" & (VLOOKUP(Switch!$D$55,$F$2:$G$44,2,FALSE)+ROW()-2)),\"\")","v":{"$error":"#N/A"}},{"$f":"IF(INDIRECT(\"c\" & (VLOOKUP(Switch!$D$56,$F$2:$G$44,2,FALSE)+ROW()-2))=Switch!$D$56,INDIRECT(\"a\" & (VLOOKUP(Switch!$D$56,$F$2:$G$44,2,FALSE)+ROW()-2)),\"\")","v":{"$error":"#N/A"}},{"$f":"IF(INDIRECT(\"c\" & (VLOOKUP(Switch!$D$57,$F$2:$G$44,2,FALSE)+ROW()-2))=Switch!$D$57,INDIRECT(\"a\" & (VLOOKUP(Switch!$D$57,$F$2:$G$44,2,FALSE)+ROW()-2)),\"\")","v":{"$error":"#N/A"}},{"$f":"IF(INDIRECT(\"c\" & (VLOOKUP(Switch!$D$58,$F$2:$G$44,2,FALSE)+ROW()-2))=Switch!$D$58,INDIRECT(\"a\" & (VLOOKUP(Switch!$D$58,$F$2:$G$44,2,FALSE)+ROW()-2)),\"\")","v":{"$error":"#N/A"}},{"$f":"IF(INDIRECT(\"c\" & (VLOOKUP(Switch!$D$59,$F$2:$G$44,2,FALSE)+ROW()-2))=Switch!$D$59,INDIRECT(\"a\" & (VLOOKUP(Switch!$D$59,$F$2:$G$44,2,FALSE)+ROW()-2)),\"\")","v":{"$error":"#N/A"}},{"$f":"IF(INDIRECT(\"c\" & (VLOOKUP(Switch!$D$60,$F$2:$G$44,2,FALSE)+ROW()-2))=Switch!$D$60,INDIRECT(\"a\" & (VLOOKUP(Switch!$D$60,$F$2:$G$44,2,FALSE)+ROW()-2)),\"\")","v":{"$error":"#N/A"}},{"$f":"IF(INDIRECT(\"c\" & (VLOOKUP(Switch!$D$61,$F$2:$G$44,2,FALSE)+ROW()-2))=Switch!$D$61,INDIRECT(\"a\" & (VLOOKUP(Switch!$D$61,$F$2:$G$44,2,FALSE)+ROW()-2)),\"\")","v":{"$error":"#N/A"}},{"$f":"IF(INDIRECT(\"c\" & (VLOOKUP(Switch!$D$62,$F$2:$G$44,2,FALSE)+ROW()-2))=Switch!$D$62,INDIRECT(\"a\" & (VLOOKUP(Switch!$D$62,$F$2:$G$44,2,FALSE)+ROW()-2)),\"\")","v":{"$error":"#N/A"}},{"$f":"IF(INDIRECT(\"c\" & (VLOOKUP(Switch!$D$63,$F$2:$G$44,2,FALSE)+ROW()-2))=Switch!$D$63,INDIRECT(\"a\" & (VLOOKUP(Switch!$D$63,$F$2:$G$44,2,FALSE)+ROW()-2)),\"\")","v":{"$error":"#N/A"}},{"$f":"IF(INDIRECT(\"c\" & (VLOOKUP(Switch!$D$64,$F$2:$G$44,2,FALSE)+ROW()-2))=Switch!$D$64,INDIRECT(\"a\" & (VLOOKUP(Switch!$D$64,$F$2:$G$44,2,FALSE)+ROW()-2)),\"\")","v":{"$error":"#N/A"}},{"$f":"IF(INDIRECT(\"c\" & (VLOOKUP(Switch!$D$65,$F$2:$G$44,2,FALSE)+ROW()-2))=Switch!$D$65,INDIRECT(\"a\" & (VLOOKUP(Switch!$D$65,$F$2:$G$44,2,FALSE)+ROW()-2)),\"\")","v":{"$error":"#N/A"}},{"$f":"IF(INDIRECT(\"c\" & (VLOOKUP(Switch!$D$66,$F$2:$G$44,2,FALSE)+ROW()-2))=Switch!$D$66,INDIRECT(\"a\" & (VLOOKUP(Switch!$D$66,$F$2:$G$44,2,FALSE)+ROW()-2)),\"\")","v":{"$error":"#N/A"}}]
["Analytics Ci Managed Equity Fund B","AAMEB","Boutique Collective Investments (Pty) Ltd",{"$f":"ROW()","v":104},null,null,{"$f":"VLOOKUP(F104,$C$2:$D$637,2,FALSE)","v":{"$error":"#N/A"}},{"$f":"IF(INDIRECT(\"c\" & (VLOOKUP(Switch!$D$26,$F$2:$G$44,2,FALSE)+ROW()-2))=Switch!$D$26,INDIRECT(\"a\" & (VLOOKUP(Switch!$D$26,$F$2:$G$44,2,FALSE)+ROW()-2)),\"\")","v":{"$error":"#N/A"}},{"$f":"IF(INDIRECT(\"c\" & (VLOOKUP(Switch!$D$27,$F$2:$G$44,2,FALSE)+ROW()-2))=Switch!$D$27,INDIRECT(\"a\" & (VLOOKUP(Switch!$D$27,$F$2:$G$44,2,FALSE)+ROW()-2)),\"\")","v":{"$error":"#N/A"}},{"$f":"IF(INDIRECT(\"c\" & (VLOOKUP(Switch!$D$28,$F$2:$G$44,2,FALSE)+ROW()-2))=Switch!$D$28,INDIRECT(\"a\" & (VLOOKUP(Switch!$D$28,$F$2:$G$44,2,FALSE)+ROW()-2)),\"\")","v":{"$error":"#N/A"}},{"$f":"IF(INDIRECT(\"c\" & (VLOOKUP(Switch!$D$29,$F$2:$G$44,2,FALSE)+ROW()-2))=Switch!$D$29,INDIRECT(\"a\" & (VLOOKUP(Switch!$D$29,$F$2:$G$44,2,FALSE)+ROW()-2)),\"\")","v":{"$error":"#N/A"}},{"$f":"IF(INDIRECT(\"c\" & (VLOOKUP(Switch!$D$30,$F$2:$G$44,2,FALSE)+ROW()-2))=Switch!$D$30,INDIRECT(\"a\" & (VLOOKUP(Switch!$D$30,$F$2:$G$44,2,FALSE)+ROW()-2)),\"\")","v":{"$error":"#N/A"}},{"$f":"IF(INDIRECT(\"c\" & (VLOOKUP(Switch!$D$31,$F$2:$G$44,2,FALSE)+ROW()-2))=Switch!$D$31,INDIRECT(\"a\" & (VLOOKUP(Switch!$D$31,$F$2:$G$44,2,FALSE)+ROW()-2)),\"\")","v":{"$error":"#N/A"}},{"$f":"IF(INDIRECT(\"c\" & (VLOOKUP(Switch!$D$32,$F$2:$G$44,2,FALSE)+ROW()-2))=Switch!$D$32,INDIRECT(\"a\" & (VLOOKUP(Switch!$D$32,$F$2:$G$44,2,FALSE)+ROW()-2)),\"\")","v":{"$error":"#N/A"}},{"$f":"IF(INDIRECT(\"c\" & (VLOOKUP(Switch!$D$33,$F$2:$G$44,2,FALSE)+ROW()-2))=Switch!$D$33,INDIRECT(\"a\" & (VLOOKUP(Switch!$D$33,$F$2:$G$44,2,FALSE)+ROW()-2)),\"\")","v":{"$error":"#N/A"}},{"$f":"IF(INDIRECT(\"c\" & (VLOOKUP(Switch!$D$34,$F$2:$G$44,2,FALSE)+ROW()-2))=Switch!$D$34,INDIRECT(\"a\" & (VLOOKUP(Switch!$D$34,$F$2:$G$44,2,FALSE)+ROW()-2)),\"\")","v":{"$error":"#N/A"}},{"$f":"IF(INDIRECT(\"c\" & (VLOOKUP(Switch!$D$35,$F$2:$G$44,2,FALSE)+ROW()-2))=Switch!$D$35,INDIRECT(\"a\" & (VLOOKUP(Switch!$D$35,$F$2:$G$44,2,FALSE)+ROW()-2)),\"\")","v":{"$error":"#N/A"}},{"$f":"IF(INDIRECT(\"c\" & (VLOOKUP(Switch!$D$36,$F$2:$G$44,2,FALSE)+ROW()-2))=Switch!$D$36,INDIRECT(\"a\" & (VLOOKUP(Switch!$D$36,$F$2:$G$44,2,FALSE)+ROW()-2)),\"\")","v":{"$error":"#N/A"}},{"$f":"IF(INDIRECT(\"c\" & (VLOOKUP(Switch!$D$37,$F$2:$G$44,2,FALSE)+ROW()-2))=Switch!$D$37,INDIRECT(\"a\" & (VLOOKUP(Switch!$D$37,$F$2:$G$44,2,FALSE)+ROW()-2)),\"\")","v":{"$error":"#N/A"}},{"$f":"IF(INDIRECT(\"c\" & (VLOOKUP(Switch!$D$38,$F$2:$G$44,2,FALSE)+ROW()-2))=Switch!$D$38,INDIRECT(\"a\" & (VLOOKUP(Switch!$D$38,$F$2:$G$44,2,FALSE)+ROW()-2)),\"\")","v":{"$error":"#N/A"}},{"$f":"IF(INDIRECT(\"c\" & (VLOOKUP(Switch!$D$39,$F$2:$G$44,2,FALSE)+ROW()-2))=Switch!$D$39,INDIRECT(\"a\" & (VLOOKUP(Switch!$D$39,$F$2:$G$44,2,FALSE)+ROW()-2)),\"\")","v":{"$error":"#N/A"}},{"$f":"IF(INDIRECT(\"c\" & (VLOOKUP(Switch!$D$40,$F$2:$G$44,2,FALSE)+ROW()-2))=Switch!$D$40,INDIRECT(\"a\" & (VLOOKUP(Switch!$D$40,$F$2:$G$44,2,FALSE)+ROW()-2)),\"\")","v":{"$error":"#N/A"}},{"$f":"IF(INDIRECT(\"c\" & (VLOOKUP(Switch!$D$52,$F$2:$G$44,2,FALSE)+ROW()-2))=Switch!$D$52,INDIRECT(\"a\" & (VLOOKUP(Switch!$D$52,$F$2:$G$44,2,FALSE)+ROW()-2)),\"\")","v":{"$error":"#N/A"}},{"$f":"IF(INDIRECT(\"c\" & (VLOOKUP(Switch!$D$53,$F$2:$G$44,2,FALSE)+ROW()-2))=Switch!$D$53,INDIRECT(\"a\" & (VLOOKUP(Switch!$D$53,$F$2:$G$44,2,FALSE)+ROW()-2)),\"\")","v":{"$error":"#N/A"}},{"$f":"IF(INDIRECT(\"c\" & (VLOOKUP(Switch!$D$54,$F$2:$G$44,2,FALSE)+ROW()-2))=Switch!$D$54,INDIRECT(\"a\" & (VLOOKUP(Switch!$D$54,$F$2:$G$44,2,FALSE)+ROW()-2)),\"\")","v":{"$error":"#N/A"}},{"$f":"IF(INDIRECT(\"c\" & (VLOOKUP(Switch!$D$55,$F$2:$G$44,2,FALSE)+ROW()-2))=Switch!$D$55,INDIRECT(\"a\" & (VLOOKUP(Switch!$D$55,$F$2:$G$44,2,FALSE)+ROW()-2)),\"\")","v":{"$error":"#N/A"}},{"$f":"IF(INDIRECT(\"c\" & (VLOOKUP(Switch!$D$56,$F$2:$G$44,2,FALSE)+ROW()-2))=Switch!$D$56,INDIRECT(\"a\" & (VLOOKUP(Switch!$D$56,$F$2:$G$44,2,FALSE)+ROW()-2)),\"\")","v":{"$error":"#N/A"}},{"$f":"IF(INDIRECT(\"c\" & (VLOOKUP(Switch!$D$57,$F$2:$G$44,2,FALSE)+ROW()-2))=Switch!$D$57,INDIRECT(\"a\" & (VLOOKUP(Switch!$D$57,$F$2:$G$44,2,FALSE)+ROW()-2)),\"\")","v":{"$error":"#N/A"}},{"$f":"IF(INDIRECT(\"c\" & (VLOOKUP(Switch!$D$58,$F$2:$G$44,2,FALSE)+ROW()-2))=Switch!$D$58,INDIRECT(\"a\" & (VLOOKUP(Switch!$D$58,$F$2:$G$44,2,FALSE)+ROW()-2)),\"\")","v":{"$error":"#N/A"}},{"$f":"IF(INDIRECT(\"c\" & (VLOOKUP(Switch!$D$59,$F$2:$G$44,2,FALSE)+ROW()-2))=Switch!$D$59,INDIRECT(\"a\" & (VLOOKUP(Switch!$D$59,$F$2:$G$44,2,FALSE)+ROW()-2)),\"\")","v":{"$error":"#N/A"}},{"$f":"IF(INDIRECT(\"c\" & (VLOOKUP(Switch!$D$60,$F$2:$G$44,2,FALSE)+ROW()-2))=Switch!$D$60,INDIRECT(\"a\" & (VLOOKUP(Switch!$D$60,$F$2:$G$44,2,FALSE)+ROW()-2)),\"\")","v":{"$error":"#N/A"}},{"$f":"IF(INDIRECT(\"c\" & (VLOOKUP(Switch!$D$61,$F$2:$G$44,2,FALSE)+ROW()-2))=Switch!$D$61,INDIRECT(\"a\" & (VLOOKUP(Switch!$D$61,$F$2:$G$44,2,FALSE)+ROW()-2)),\"\")","v":{"$error":"#N/A"}},{"$f":"IF(INDIRECT(\"c\" & (VLOOKUP(Switch!$D$62,$F$2:$G$44,2,FALSE)+ROW()-2))=Switch!$D$62,INDIRECT(\"a\" & (VLOOKUP(Switch!$D$62,$F$2:$G$44,2,FALSE)+ROW()-2)),\"\")","v":{"$error":"#N/A"}},{"$f":"IF(INDIRECT(\"c\" & (VLOOKUP(Switch!$D$63,$F$2:$G$44,2,FALSE)+ROW()-2))=Switch!$D$63,INDIRECT(\"a\" & (VLOOKUP(Switch!$D$63,$F$2:$G$44,2,FALSE)+ROW()-2)),\"\")","v":{"$error":"#N/A"}},{"$f":"IF(INDIRECT(\"c\" & (VLOOKUP(Switch!$D$64,$F$2:$G$44,2,FALSE)+ROW()-2))=Switch!$D$64,INDIRECT(\"a\" & (VLOOKUP(Switch!$D$64,$F$2:$G$44,2,FALSE)+ROW()-2)),\"\")","v":{"$error":"#N/A"}},{"$f":"IF(INDIRECT(\"c\" & (VLOOKUP(Switch!$D$65,$F$2:$G$44,2,FALSE)+ROW()-2))=Switch!$D$65,INDIRECT(\"a\" & (VLOOKUP(Switch!$D$65,$F$2:$G$44,2,FALSE)+ROW()-2)),\"\")","v":{"$error":"#N/A"}},{"$f":"IF(INDIRECT(\"c\" & (VLOOKUP(Switch!$D$66,$F$2:$G$44,2,FALSE)+ROW()-2))=Switch!$D$66,INDIRECT(\"a\" & (VLOOKUP(Switch!$D$66,$F$2:$G$44,2,FALSE)+ROW()-2)),\"\")","v":{"$error":"#N/A"}}]
["Analytics Ci Moderate FoF B","ANAMB","Boutique Collective Investments (Pty) Ltd",{"$f":"ROW()","v":105},null,null,{"$f":"VLOOKUP(F105,$C$2:$D$637,2,FALSE)","v":{"$error":"#N/A"}},{"$f":"IF(INDIRECT(\"c\" & (VLOOKUP(Switch!$D$26,$F$2:$G$44,2,FALSE)+ROW()-2))=Switch!$D$26,INDIRECT(\"a\" & (VLOOKUP(Switch!$D$26,$F$2:$G$44,2,FALSE)+ROW()-2)),\"\")","v":{"$error":"#N/A"}},{"$f":"IF(INDIRECT(\"c\" & (VLOOKUP(Switch!$D$27,$F$2:$G$44,2,FALSE)+ROW()-2))=Switch!$D$27,INDIRECT(\"a\" & (VLOOKUP(Switch!$D$27,$F$2:$G$44,2,FALSE)+ROW()-2)),\"\")","v":{"$error":"#N/A"}},{"$f":"IF(INDIRECT(\"c\" & (VLOOKUP(Switch!$D$28,$F$2:$G$44,2,FALSE)+ROW()-2))=Switch!$D$28,INDIRECT(\"a\" & (VLOOKUP(Switch!$D$28,$F$2:$G$44,2,FALSE)+ROW()-2)),\"\")","v":{"$error":"#N/A"}},{"$f":"IF(INDIRECT(\"c\" & (VLOOKUP(Switch!$D$29,$F$2:$G$44,2,FALSE)+ROW()-2))=Switch!$D$29,INDIRECT(\"a\" & (VLOOKUP(Switch!$D$29,$F$2:$G$44,2,FALSE)+ROW()-2)),\"\")","v":{"$error":"#N/A"}},{"$f":"IF(INDIRECT(\"c\" & (VLOOKUP(Switch!$D$30,$F$2:$G$44,2,FALSE)+ROW()-2))=Switch!$D$30,INDIRECT(\"a\" & (VLOOKUP(Switch!$D$30,$F$2:$G$44,2,FALSE)+ROW()-2)),\"\")","v":{"$error":"#N/A"}},{"$f":"IF(INDIRECT(\"c\" & (VLOOKUP(Switch!$D$31,$F$2:$G$44,2,FALSE)+ROW()-2))=Switch!$D$31,INDIRECT(\"a\" & (VLOOKUP(Switch!$D$31,$F$2:$G$44,2,FALSE)+ROW()-2)),\"\")","v":{"$error":"#N/A"}},{"$f":"IF(INDIRECT(\"c\" & (VLOOKUP(Switch!$D$32,$F$2:$G$44,2,FALSE)+ROW()-2))=Switch!$D$32,INDIRECT(\"a\" & (VLOOKUP(Switch!$D$32,$F$2:$G$44,2,FALSE)+ROW()-2)),\"\")","v":{"$error":"#N/A"}},{"$f":"IF(INDIRECT(\"c\" & (VLOOKUP(Switch!$D$33,$F$2:$G$44,2,FALSE)+ROW()-2))=Switch!$D$33,INDIRECT(\"a\" & (VLOOKUP(Switch!$D$33,$F$2:$G$44,2,FALSE)+ROW()-2)),\"\")","v":{"$error":"#N/A"}},{"$f":"IF(INDIRECT(\"c\" & (VLOOKUP(Switch!$D$34,$F$2:$G$44,2,FALSE)+ROW()-2))=Switch!$D$34,INDIRECT(\"a\" & (VLOOKUP(Switch!$D$34,$F$2:$G$44,2,FALSE)+ROW()-2)),\"\")","v":{"$error":"#N/A"}},{"$f":"IF(INDIRECT(\"c\" & (VLOOKUP(Switch!$D$35,$F$2:$G$44,2,FALSE)+ROW()-2))=Switch!$D$35,INDIRECT(\"a\" & (VLOOKUP(Switch!$D$35,$F$2:$G$44,2,FALSE)+ROW()-2)),\"\")","v":{"$error":"#N/A"}},{"$f":"IF(INDIRECT(\"c\" & (VLOOKUP(Switch!$D$36,$F$2:$G$44,2,FALSE)+ROW()-2))=Switch!$D$36,INDIRECT(\"a\" & (VLOOKUP(Switch!$D$36,$F$2:$G$44,2,FALSE)+ROW()-2)),\"\")","v":{"$error":"#N/A"}},{"$f":"IF(INDIRECT(\"c\" & (VLOOKUP(Switch!$D$37,$F$2:$G$44,2,FALSE)+ROW()-2))=Switch!$D$37,INDIRECT(\"a\" & (VLOOKUP(Switch!$D$37,$F$2:$G$44,2,FALSE)+ROW()-2)),\"\")","v":{"$error":"#N/A"}},{"$f":"IF(INDIRECT(\"c\" & (VLOOKUP(Switch!$D$38,$F$2:$G$44,2,FALSE)+ROW()-2))=Switch!$D$38,INDIRECT(\"a\" & (VLOOKUP(Switch!$D$38,$F$2:$G$44,2,FALSE)+ROW()-2)),\"\")","v":{"$error":"#N/A"}},{"$f":"IF(INDIRECT(\"c\" & (VLOOKUP(Switch!$D$39,$F$2:$G$44,2,FALSE)+ROW()-2))=Switch!$D$39,INDIRECT(\"a\" & (VLOOKUP(Switch!$D$39,$F$2:$G$44,2,FALSE)+ROW()-2)),\"\")","v":{"$error":"#N/A"}},{"$f":"IF(INDIRECT(\"c\" & (VLOOKUP(Switch!$D$40,$F$2:$G$44,2,FALSE)+ROW()-2))=Switch!$D$40,INDIRECT(\"a\" & (VLOOKUP(Switch!$D$40,$F$2:$G$44,2,FALSE)+ROW()-2)),\"\")","v":{"$error":"#N/A"}},{"$f":"IF(INDIRECT(\"c\" & (VLOOKUP(Switch!$D$52,$F$2:$G$44,2,FALSE)+ROW()-2))=Switch!$D$52,INDIRECT(\"a\" & (VLOOKUP(Switch!$D$52,$F$2:$G$44,2,FALSE)+ROW()-2)),\"\")","v":{"$error":"#N/A"}},{"$f":"IF(INDIRECT(\"c\" & (VLOOKUP(Switch!$D$53,$F$2:$G$44,2,FALSE)+ROW()-2))=Switch!$D$53,INDIRECT(\"a\" & (VLOOKUP(Switch!$D$53,$F$2:$G$44,2,FALSE)+ROW()-2)),\"\")","v":{"$error":"#N/A"}},{"$f":"IF(INDIRECT(\"c\" & (VLOOKUP(Switch!$D$54,$F$2:$G$44,2,FALSE)+ROW()-2))=Switch!$D$54,INDIRECT(\"a\" & (VLOOKUP(Switch!$D$54,$F$2:$G$44,2,FALSE)+ROW()-2)),\"\")","v":{"$error":"#N/A"}},{"$f":"IF(INDIRECT(\"c\" & (VLOOKUP(Switch!$D$55,$F$2:$G$44,2,FALSE)+ROW()-2))=Switch!$D$55,INDIRECT(\"a\" & (VLOOKUP(Switch!$D$55,$F$2:$G$44,2,FALSE)+ROW()-2)),\"\")","v":{"$error":"#N/A"}},{"$f":"IF(INDIRECT(\"c\" & (VLOOKUP(Switch!$D$56,$F$2:$G$44,2,FALSE)+ROW()-2))=Switch!$D$56,INDIRECT(\"a\" & (VLOOKUP(Switch!$D$56,$F$2:$G$44,2,FALSE)+ROW()-2)),\"\")","v":{"$error":"#N/A"}},{"$f":"IF(INDIRECT(\"c\" & (VLOOKUP(Switch!$D$57,$F$2:$G$44,2,FALSE)+ROW()-2))=Switch!$D$57,INDIRECT(\"a\" & (VLOOKUP(Switch!$D$57,$F$2:$G$44,2,FALSE)+ROW()-2)),\"\")","v":{"$error":"#N/A"}},{"$f":"IF(INDIRECT(\"c\" & (VLOOKUP(Switch!$D$58,$F$2:$G$44,2,FALSE)+ROW()-2))=Switch!$D$58,INDIRECT(\"a\" & (VLOOKUP(Switch!$D$58,$F$2:$G$44,2,FALSE)+ROW()-2)),\"\")","v":{"$error":"#N/A"}},{"$f":"IF(INDIRECT(\"c\" & (VLOOKUP(Switch!$D$59,$F$2:$G$44,2,FALSE)+ROW()-2))=Switch!$D$59,INDIRECT(\"a\" & (VLOOKUP(Switch!$D$59,$F$2:$G$44,2,FALSE)+ROW()-2)),\"\")","v":{"$error":"#N/A"}},{"$f":"IF(INDIRECT(\"c\" & (VLOOKUP(Switch!$D$60,$F$2:$G$44,2,FALSE)+ROW()-2))=Switch!$D$60,INDIRECT(\"a\" & (VLOOKUP(Switch!$D$60,$F$2:$G$44,2,FALSE)+ROW()-2)),\"\")","v":{"$error":"#N/A"}},{"$f":"IF(INDIRECT(\"c\" & (VLOOKUP(Switch!$D$61,$F$2:$G$44,2,FALSE)+ROW()-2))=Switch!$D$61,INDIRECT(\"a\" & (VLOOKUP(Switch!$D$61,$F$2:$G$44,2,FALSE)+ROW()-2)),\"\")","v":{"$error":"#N/A"}},{"$f":"IF(INDIRECT(\"c\" & (VLOOKUP(Switch!$D$62,$F$2:$G$44,2,FALSE)+ROW()-2))=Switch!$D$62,INDIRECT(\"a\" & (VLOOKUP(Switch!$D$62,$F$2:$G$44,2,FALSE)+ROW()-2)),\"\")","v":{"$error":"#N/A"}},{"$f":"IF(INDIRECT(\"c\" & (VLOOKUP(Switch!$D$63,$F$2:$G$44,2,FALSE)+ROW()-2))=Switch!$D$63,INDIRECT(\"a\" & (VLOOKUP(Switch!$D$63,$F$2:$G$44,2,FALSE)+ROW()-2)),\"\")","v":{"$error":"#N/A"}},{"$f":"IF(INDIRECT(\"c\" & (VLOOKUP(Switch!$D$64,$F$2:$G$44,2,FALSE)+ROW()-2))=Switch!$D$64,INDIRECT(\"a\" & (VLOOKUP(Switch!$D$64,$F$2:$G$44,2,FALSE)+ROW()-2)),\"\")","v":{"$error":"#N/A"}},{"$f":"IF(INDIRECT(\"c\" & (VLOOKUP(Switch!$D$65,$F$2:$G$44,2,FALSE)+ROW()-2))=Switch!$D$65,INDIRECT(\"a\" & (VLOOKUP(Switch!$D$65,$F$2:$G$44,2,FALSE)+ROW()-2)),\"\")","v":{"$error":"#N/A"}},{"$f":"IF(INDIRECT(\"c\" & (VLOOKUP(Switch!$D$66,$F$2:$G$44,2,FALSE)+ROW()-2))=Switch!$D$66,INDIRECT(\"a\" & (VLOOKUP(Switch!$D$66,$F$2:$G$44,2,FALSE)+ROW()-2)),\"\")","v":{"$error":"#N/A"}}]
["Analytics Ci Worldwide Flexible FoF B","AWWFB","Boutique Collective Investments (Pty) Ltd",{"$f":"ROW()","v":106},null,null,{"$f":"VLOOKUP(F106,$C$2:$D$637,2,FALSE)","v":{"$error":"#N/A"}},{"$f":"IF(INDIRECT(\"c\" & (VLOOKUP(Switch!$D$26,$F$2:$G$44,2,FALSE)+ROW()-2))=Switch!$D$26,INDIRECT(\"a\" & (VLOOKUP(Switch!$D$26,$F$2:$G$44,2,FALSE)+ROW()-2)),\"\")","v":{"$error":"#N/A"}},{"$f":"IF(INDIRECT(\"c\" & (VLOOKUP(Switch!$D$27,$F$2:$G$44,2,FALSE)+ROW()-2))=Switch!$D$27,INDIRECT(\"a\" & (VLOOKUP(Switch!$D$27,$F$2:$G$44,2,FALSE)+ROW()-2)),\"\")","v":{"$error":"#N/A"}},{"$f":"IF(INDIRECT(\"c\" & (VLOOKUP(Switch!$D$28,$F$2:$G$44,2,FALSE)+ROW()-2))=Switch!$D$28,INDIRECT(\"a\" & (VLOOKUP(Switch!$D$28,$F$2:$G$44,2,FALSE)+ROW()-2)),\"\")","v":{"$error":"#N/A"}},{"$f":"IF(INDIRECT(\"c\" & (VLOOKUP(Switch!$D$29,$F$2:$G$44,2,FALSE)+ROW()-2))=Switch!$D$29,INDIRECT(\"a\" & (VLOOKUP(Switch!$D$29,$F$2:$G$44,2,FALSE)+ROW()-2)),\"\")","v":{"$error":"#N/A"}},{"$f":"IF(INDIRECT(\"c\" & (VLOOKUP(Switch!$D$30,$F$2:$G$44,2,FALSE)+ROW()-2))=Switch!$D$30,INDIRECT(\"a\" & (VLOOKUP(Switch!$D$30,$F$2:$G$44,2,FALSE)+ROW()-2)),\"\")","v":{"$error":"#N/A"}},{"$f":"IF(INDIRECT(\"c\" & (VLOOKUP(Switch!$D$31,$F$2:$G$44,2,FALSE)+ROW()-2))=Switch!$D$31,INDIRECT(\"a\" & (VLOOKUP(Switch!$D$31,$F$2:$G$44,2,FALSE)+ROW()-2)),\"\")","v":{"$error":"#N/A"}},{"$f":"IF(INDIRECT(\"c\" & (VLOOKUP(Switch!$D$32,$F$2:$G$44,2,FALSE)+ROW()-2))=Switch!$D$32,INDIRECT(\"a\" & (VLOOKUP(Switch!$D$32,$F$2:$G$44,2,FALSE)+ROW()-2)),\"\")","v":{"$error":"#N/A"}},{"$f":"IF(INDIRECT(\"c\" & (VLOOKUP(Switch!$D$33,$F$2:$G$44,2,FALSE)+ROW()-2))=Switch!$D$33,INDIRECT(\"a\" & (VLOOKUP(Switch!$D$33,$F$2:$G$44,2,FALSE)+ROW()-2)),\"\")","v":{"$error":"#N/A"}},{"$f":"IF(INDIRECT(\"c\" & (VLOOKUP(Switch!$D$34,$F$2:$G$44,2,FALSE)+ROW()-2))=Switch!$D$34,INDIRECT(\"a\" & (VLOOKUP(Switch!$D$34,$F$2:$G$44,2,FALSE)+ROW()-2)),\"\")","v":{"$error":"#N/A"}},{"$f":"IF(INDIRECT(\"c\" & (VLOOKUP(Switch!$D$35,$F$2:$G$44,2,FALSE)+ROW()-2))=Switch!$D$35,INDIRECT(\"a\" & (VLOOKUP(Switch!$D$35,$F$2:$G$44,2,FALSE)+ROW()-2)),\"\")","v":{"$error":"#N/A"}},{"$f":"IF(INDIRECT(\"c\" & (VLOOKUP(Switch!$D$36,$F$2:$G$44,2,FALSE)+ROW()-2))=Switch!$D$36,INDIRECT(\"a\" & (VLOOKUP(Switch!$D$36,$F$2:$G$44,2,FALSE)+ROW()-2)),\"\")","v":{"$error":"#N/A"}},{"$f":"IF(INDIRECT(\"c\" & (VLOOKUP(Switch!$D$37,$F$2:$G$44,2,FALSE)+ROW()-2))=Switch!$D$37,INDIRECT(\"a\" & (VLOOKUP(Switch!$D$37,$F$2:$G$44,2,FALSE)+ROW()-2)),\"\")","v":{"$error":"#N/A"}},{"$f":"IF(INDIRECT(\"c\" & (VLOOKUP(Switch!$D$38,$F$2:$G$44,2,FALSE)+ROW()-2))=Switch!$D$38,INDIRECT(\"a\" & (VLOOKUP(Switch!$D$38,$F$2:$G$44,2,FALSE)+ROW()-2)),\"\")","v":{"$error":"#N/A"}},{"$f":"IF(INDIRECT(\"c\" & (VLOOKUP(Switch!$D$39,$F$2:$G$44,2,FALSE)+ROW()-2))=Switch!$D$39,INDIRECT(\"a\" & (VLOOKUP(Switch!$D$39,$F$2:$G$44,2,FALSE)+ROW()-2)),\"\")","v":{"$error":"#N/A"}},{"$f":"IF(INDIRECT(\"c\" & (VLOOKUP(Switch!$D$40,$F$2:$G$44,2,FALSE)+ROW()-2))=Switch!$D$40,INDIRECT(\"a\" & (VLOOKUP(Switch!$D$40,$F$2:$G$44,2,FALSE)+ROW()-2)),\"\")","v":{"$error":"#N/A"}},{"$f":"IF(INDIRECT(\"c\" & (VLOOKUP(Switch!$D$52,$F$2:$G$44,2,FALSE)+ROW()-2))=Switch!$D$52,INDIRECT(\"a\" & (VLOOKUP(Switch!$D$52,$F$2:$G$44,2,FALSE)+ROW()-2)),\"\")","v":{"$error":"#N/A"}},{"$f":"IF(INDIRECT(\"c\" & (VLOOKUP(Switch!$D$53,$F$2:$G$44,2,FALSE)+ROW()-2))=Switch!$D$53,INDIRECT(\"a\" & (VLOOKUP(Switch!$D$53,$F$2:$G$44,2,FALSE)+ROW()-2)),\"\")","v":{"$error":"#N/A"}},{"$f":"IF(INDIRECT(\"c\" & (VLOOKUP(Switch!$D$54,$F$2:$G$44,2,FALSE)+ROW()-2))=Switch!$D$54,INDIRECT(\"a\" & (VLOOKUP(Switch!$D$54,$F$2:$G$44,2,FALSE)+ROW()-2)),\"\")","v":{"$error":"#N/A"}},{"$f":"IF(INDIRECT(\"c\" & (VLOOKUP(Switch!$D$55,$F$2:$G$44,2,FALSE)+ROW()-2))=Switch!$D$55,INDIRECT(\"a\" & (VLOOKUP(Switch!$D$55,$F$2:$G$44,2,FALSE)+ROW()-2)),\"\")","v":{"$error":"#N/A"}},{"$f":"IF(INDIRECT(\"c\" & (VLOOKUP(Switch!$D$56,$F$2:$G$44,2,FALSE)+ROW()-2))=Switch!$D$56,INDIRECT(\"a\" & (VLOOKUP(Switch!$D$56,$F$2:$G$44,2,FALSE)+ROW()-2)),\"\")","v":{"$error":"#N/A"}},{"$f":"IF(INDIRECT(\"c\" & (VLOOKUP(Switch!$D$57,$F$2:$G$44,2,FALSE)+ROW()-2))=Switch!$D$57,INDIRECT(\"a\" & (VLOOKUP(Switch!$D$57,$F$2:$G$44,2,FALSE)+ROW()-2)),\"\")","v":{"$error":"#N/A"}},{"$f":"IF(INDIRECT(\"c\" & (VLOOKUP(Switch!$D$58,$F$2:$G$44,2,FALSE)+ROW()-2))=Switch!$D$58,INDIRECT(\"a\" & (VLOOKUP(Switch!$D$58,$F$2:$G$44,2,FALSE)+ROW()-2)),\"\")","v":{"$error":"#N/A"}},{"$f":"IF(INDIRECT(\"c\" & (VLOOKUP(Switch!$D$59,$F$2:$G$44,2,FALSE)+ROW()-2))=Switch!$D$59,INDIRECT(\"a\" & (VLOOKUP(Switch!$D$59,$F$2:$G$44,2,FALSE)+ROW()-2)),\"\")","v":{"$error":"#N/A"}},{"$f":"IF(INDIRECT(\"c\" & (VLOOKUP(Switch!$D$60,$F$2:$G$44,2,FALSE)+ROW()-2))=Switch!$D$60,INDIRECT(\"a\" & (VLOOKUP(Switch!$D$60,$F$2:$G$44,2,FALSE)+ROW()-2)),\"\")","v":{"$error":"#N/A"}},{"$f":"IF(INDIRECT(\"c\" & (VLOOKUP(Switch!$D$61,$F$2:$G$44,2,FALSE)+ROW()-2))=Switch!$D$61,INDIRECT(\"a\" & (VLOOKUP(Switch!$D$61,$F$2:$G$44,2,FALSE)+ROW()-2)),\"\")","v":{"$error":"#N/A"}},{"$f":"IF(INDIRECT(\"c\" & (VLOOKUP(Switch!$D$62,$F$2:$G$44,2,FALSE)+ROW()-2))=Switch!$D$62,INDIRECT(\"a\" & (VLOOKUP(Switch!$D$62,$F$2:$G$44,2,FALSE)+ROW()-2)),\"\")","v":{"$error":"#N/A"}},{"$f":"IF(INDIRECT(\"c\" & (VLOOKUP(Switch!$D$63,$F$2:$G$44,2,FALSE)+ROW()-2))=Switch!$D$63,INDIRECT(\"a\" & (VLOOKUP(Switch!$D$63,$F$2:$G$44,2,FALSE)+ROW()-2)),\"\")","v":{"$error":"#N/A"}},{"$f":"IF(INDIRECT(\"c\" & (VLOOKUP(Switch!$D$64,$F$2:$G$44,2,FALSE)+ROW()-2))=Switch!$D$64,INDIRECT(\"a\" & (VLOOKUP(Switch!$D$64,$F$2:$G$44,2,FALSE)+ROW()-2)),\"\")","v":{"$error":"#N/A"}},{"$f":"IF(INDIRECT(\"c\" & (VLOOKUP(Switch!$D$65,$F$2:$G$44,2,FALSE)+ROW()-2))=Switch!$D$65,INDIRECT(\"a\" & (VLOOKUP(Switch!$D$65,$F$2:$G$44,2,FALSE)+ROW()-2)),\"\")","v":{"$error":"#N/A"}},{"$f":"IF(INDIRECT(\"c\" & (VLOOKUP(Switch!$D$66,$F$2:$G$44,2,FALSE)+ROW()-2))=Switch!$D$66,INDIRECT(\"a\" & (VLOOKUP(Switch!$D$66,$F$2:$G$44,2,FALSE)+ROW()-2)),\"\")","v":{"$error":"#N/A"}}]
["Anchor BCI Africa Flexible Income Fund A","ABAIA","Boutique Collective Investments (Pty) Ltd",{"$f":"ROW()","v":107},null,null,{"$f":"VLOOKUP(F107,$C$2:$D$637,2,FALSE)","v":{"$error":"#N/A"}},{"$f":"IF(INDIRECT(\"c\" & (VLOOKUP(Switch!$D$26,$F$2:$G$44,2,FALSE)+ROW()-2))=Switch!$D$26,INDIRECT(\"a\" & (VLOOKUP(Switch!$D$26,$F$2:$G$44,2,FALSE)+ROW()-2)),\"\")","v":{"$error":"#N/A"}},{"$f":"IF(INDIRECT(\"c\" & (VLOOKUP(Switch!$D$27,$F$2:$G$44,2,FALSE)+ROW()-2))=Switch!$D$27,INDIRECT(\"a\" & (VLOOKUP(Switch!$D$27,$F$2:$G$44,2,FALSE)+ROW()-2)),\"\")","v":{"$error":"#N/A"}},{"$f":"IF(INDIRECT(\"c\" & (VLOOKUP(Switch!$D$28,$F$2:$G$44,2,FALSE)+ROW()-2))=Switch!$D$28,INDIRECT(\"a\" & (VLOOKUP(Switch!$D$28,$F$2:$G$44,2,FALSE)+ROW()-2)),\"\")","v":{"$error":"#N/A"}},{"$f":"IF(INDIRECT(\"c\" & (VLOOKUP(Switch!$D$29,$F$2:$G$44,2,FALSE)+ROW()-2))=Switch!$D$29,INDIRECT(\"a\" & (VLOOKUP(Switch!$D$29,$F$2:$G$44,2,FALSE)+ROW()-2)),\"\")","v":{"$error":"#N/A"}},{"$f":"IF(INDIRECT(\"c\" & (VLOOKUP(Switch!$D$30,$F$2:$G$44,2,FALSE)+ROW()-2))=Switch!$D$30,INDIRECT(\"a\" & (VLOOKUP(Switch!$D$30,$F$2:$G$44,2,FALSE)+ROW()-2)),\"\")","v":{"$error":"#N/A"}},{"$f":"IF(INDIRECT(\"c\" & (VLOOKUP(Switch!$D$31,$F$2:$G$44,2,FALSE)+ROW()-2))=Switch!$D$31,INDIRECT(\"a\" & (VLOOKUP(Switch!$D$31,$F$2:$G$44,2,FALSE)+ROW()-2)),\"\")","v":{"$error":"#N/A"}},{"$f":"IF(INDIRECT(\"c\" & (VLOOKUP(Switch!$D$32,$F$2:$G$44,2,FALSE)+ROW()-2))=Switch!$D$32,INDIRECT(\"a\" & (VLOOKUP(Switch!$D$32,$F$2:$G$44,2,FALSE)+ROW()-2)),\"\")","v":{"$error":"#N/A"}},{"$f":"IF(INDIRECT(\"c\" & (VLOOKUP(Switch!$D$33,$F$2:$G$44,2,FALSE)+ROW()-2))=Switch!$D$33,INDIRECT(\"a\" & (VLOOKUP(Switch!$D$33,$F$2:$G$44,2,FALSE)+ROW()-2)),\"\")","v":{"$error":"#N/A"}},{"$f":"IF(INDIRECT(\"c\" & (VLOOKUP(Switch!$D$34,$F$2:$G$44,2,FALSE)+ROW()-2))=Switch!$D$34,INDIRECT(\"a\" & (VLOOKUP(Switch!$D$34,$F$2:$G$44,2,FALSE)+ROW()-2)),\"\")","v":{"$error":"#N/A"}},{"$f":"IF(INDIRECT(\"c\" & (VLOOKUP(Switch!$D$35,$F$2:$G$44,2,FALSE)+ROW()-2))=Switch!$D$35,INDIRECT(\"a\" & (VLOOKUP(Switch!$D$35,$F$2:$G$44,2,FALSE)+ROW()-2)),\"\")","v":{"$error":"#N/A"}},{"$f":"IF(INDIRECT(\"c\" & (VLOOKUP(Switch!$D$36,$F$2:$G$44,2,FALSE)+ROW()-2))=Switch!$D$36,INDIRECT(\"a\" & (VLOOKUP(Switch!$D$36,$F$2:$G$44,2,FALSE)+ROW()-2)),\"\")","v":{"$error":"#N/A"}},{"$f":"IF(INDIRECT(\"c\" & (VLOOKUP(Switch!$D$37,$F$2:$G$44,2,FALSE)+ROW()-2))=Switch!$D$37,INDIRECT(\"a\" & (VLOOKUP(Switch!$D$37,$F$2:$G$44,2,FALSE)+ROW()-2)),\"\")","v":{"$error":"#N/A"}},{"$f":"IF(INDIRECT(\"c\" & (VLOOKUP(Switch!$D$38,$F$2:$G$44,2,FALSE)+ROW()-2))=Switch!$D$38,INDIRECT(\"a\" & (VLOOKUP(Switch!$D$38,$F$2:$G$44,2,FALSE)+ROW()-2)),\"\")","v":{"$error":"#N/A"}},{"$f":"IF(INDIRECT(\"c\" & (VLOOKUP(Switch!$D$39,$F$2:$G$44,2,FALSE)+ROW()-2))=Switch!$D$39,INDIRECT(\"a\" & (VLOOKUP(Switch!$D$39,$F$2:$G$44,2,FALSE)+ROW()-2)),\"\")","v":{"$error":"#N/A"}},{"$f":"IF(INDIRECT(\"c\" & (VLOOKUP(Switch!$D$40,$F$2:$G$44,2,FALSE)+ROW()-2))=Switch!$D$40,INDIRECT(\"a\" & (VLOOKUP(Switch!$D$40,$F$2:$G$44,2,FALSE)+ROW()-2)),\"\")","v":{"$error":"#N/A"}},{"$f":"IF(INDIRECT(\"c\" & (VLOOKUP(Switch!$D$52,$F$2:$G$44,2,FALSE)+ROW()-2))=Switch!$D$52,INDIRECT(\"a\" & (VLOOKUP(Switch!$D$52,$F$2:$G$44,2,FALSE)+ROW()-2)),\"\")","v":{"$error":"#N/A"}},{"$f":"IF(INDIRECT(\"c\" & (VLOOKUP(Switch!$D$53,$F$2:$G$44,2,FALSE)+ROW()-2))=Switch!$D$53,INDIRECT(\"a\" & (VLOOKUP(Switch!$D$53,$F$2:$G$44,2,FALSE)+ROW()-2)),\"\")","v":{"$error":"#N/A"}},{"$f":"IF(INDIRECT(\"c\" & (VLOOKUP(Switch!$D$54,$F$2:$G$44,2,FALSE)+ROW()-2))=Switch!$D$54,INDIRECT(\"a\" & (VLOOKUP(Switch!$D$54,$F$2:$G$44,2,FALSE)+ROW()-2)),\"\")","v":{"$error":"#N/A"}},{"$f":"IF(INDIRECT(\"c\" & (VLOOKUP(Switch!$D$55,$F$2:$G$44,2,FALSE)+ROW()-2))=Switch!$D$55,INDIRECT(\"a\" & (VLOOKUP(Switch!$D$55,$F$2:$G$44,2,FALSE)+ROW()-2)),\"\")","v":{"$error":"#N/A"}},{"$f":"IF(INDIRECT(\"c\" & (VLOOKUP(Switch!$D$56,$F$2:$G$44,2,FALSE)+ROW()-2))=Switch!$D$56,INDIRECT(\"a\" & (VLOOKUP(Switch!$D$56,$F$2:$G$44,2,FALSE)+ROW()-2)),\"\")","v":{"$error":"#N/A"}},{"$f":"IF(INDIRECT(\"c\" & (VLOOKUP(Switch!$D$57,$F$2:$G$44,2,FALSE)+ROW()-2))=Switch!$D$57,INDIRECT(\"a\" & (VLOOKUP(Switch!$D$57,$F$2:$G$44,2,FALSE)+ROW()-2)),\"\")","v":{"$error":"#N/A"}},{"$f":"IF(INDIRECT(\"c\" & (VLOOKUP(Switch!$D$58,$F$2:$G$44,2,FALSE)+ROW()-2))=Switch!$D$58,INDIRECT(\"a\" & (VLOOKUP(Switch!$D$58,$F$2:$G$44,2,FALSE)+ROW()-2)),\"\")","v":{"$error":"#N/A"}},{"$f":"IF(INDIRECT(\"c\" & (VLOOKUP(Switch!$D$59,$F$2:$G$44,2,FALSE)+ROW()-2))=Switch!$D$59,INDIRECT(\"a\" & (VLOOKUP(Switch!$D$59,$F$2:$G$44,2,FALSE)+ROW()-2)),\"\")","v":{"$error":"#N/A"}},{"$f":"IF(INDIRECT(\"c\" & (VLOOKUP(Switch!$D$60,$F$2:$G$44,2,FALSE)+ROW()-2))=Switch!$D$60,INDIRECT(\"a\" & (VLOOKUP(Switch!$D$60,$F$2:$G$44,2,FALSE)+ROW()-2)),\"\")","v":{"$error":"#N/A"}},{"$f":"IF(INDIRECT(\"c\" & (VLOOKUP(Switch!$D$61,$F$2:$G$44,2,FALSE)+ROW()-2))=Switch!$D$61,INDIRECT(\"a\" & (VLOOKUP(Switch!$D$61,$F$2:$G$44,2,FALSE)+ROW()-2)),\"\")","v":{"$error":"#N/A"}},{"$f":"IF(INDIRECT(\"c\" & (VLOOKUP(Switch!$D$62,$F$2:$G$44,2,FALSE)+ROW()-2))=Switch!$D$62,INDIRECT(\"a\" & (VLOOKUP(Switch!$D$62,$F$2:$G$44,2,FALSE)+ROW()-2)),\"\")","v":{"$error":"#N/A"}},{"$f":"IF(INDIRECT(\"c\" & (VLOOKUP(Switch!$D$63,$F$2:$G$44,2,FALSE)+ROW()-2))=Switch!$D$63,INDIRECT(\"a\" & (VLOOKUP(Switch!$D$63,$F$2:$G$44,2,FALSE)+ROW()-2)),\"\")","v":{"$error":"#N/A"}},{"$f":"IF(INDIRECT(\"c\" & (VLOOKUP(Switch!$D$64,$F$2:$G$44,2,FALSE)+ROW()-2))=Switch!$D$64,INDIRECT(\"a\" & (VLOOKUP(Switch!$D$64,$F$2:$G$44,2,FALSE)+ROW()-2)),\"\")","v":{"$error":"#N/A"}},{"$f":"IF(INDIRECT(\"c\" & (VLOOKUP(Switch!$D$65,$F$2:$G$44,2,FALSE)+ROW()-2))=Switch!$D$65,INDIRECT(\"a\" & (VLOOKUP(Switch!$D$65,$F$2:$G$44,2,FALSE)+ROW()-2)),\"\")","v":{"$error":"#N/A"}},{"$f":"IF(INDIRECT(\"c\" & (VLOOKUP(Switch!$D$66,$F$2:$G$44,2,FALSE)+ROW()-2))=Switch!$D$66,INDIRECT(\"a\" & (VLOOKUP(Switch!$D$66,$F$2:$G$44,2,FALSE)+ROW()-2)),\"\")","v":{"$error":"#N/A"}}]
["Anchor BCI Diversified Growth Fund B","ABDGB","Boutique Collective Investments (Pty) Ltd",{"$f":"ROW()","v":108},null,null,{"$f":"VLOOKUP(F108,$C$2:$D$637,2,FALSE)","v":{"$error":"#N/A"}},{"$f":"IF(INDIRECT(\"c\" & (VLOOKUP(Switch!$D$26,$F$2:$G$44,2,FALSE)+ROW()-2))=Switch!$D$26,INDIRECT(\"a\" & (VLOOKUP(Switch!$D$26,$F$2:$G$44,2,FALSE)+ROW()-2)),\"\")","v":{"$error":"#N/A"}},{"$f":"IF(INDIRECT(\"c\" & (VLOOKUP(Switch!$D$27,$F$2:$G$44,2,FALSE)+ROW()-2))=Switch!$D$27,INDIRECT(\"a\" & (VLOOKUP(Switch!$D$27,$F$2:$G$44,2,FALSE)+ROW()-2)),\"\")","v":{"$error":"#N/A"}},{"$f":"IF(INDIRECT(\"c\" & (VLOOKUP(Switch!$D$28,$F$2:$G$44,2,FALSE)+ROW()-2))=Switch!$D$28,INDIRECT(\"a\" & (VLOOKUP(Switch!$D$28,$F$2:$G$44,2,FALSE)+ROW()-2)),\"\")","v":{"$error":"#N/A"}},{"$f":"IF(INDIRECT(\"c\" & (VLOOKUP(Switch!$D$29,$F$2:$G$44,2,FALSE)+ROW()-2))=Switch!$D$29,INDIRECT(\"a\" & (VLOOKUP(Switch!$D$29,$F$2:$G$44,2,FALSE)+ROW()-2)),\"\")","v":{"$error":"#N/A"}},{"$f":"IF(INDIRECT(\"c\" & (VLOOKUP(Switch!$D$30,$F$2:$G$44,2,FALSE)+ROW()-2))=Switch!$D$30,INDIRECT(\"a\" & (VLOOKUP(Switch!$D$30,$F$2:$G$44,2,FALSE)+ROW()-2)),\"\")","v":{"$error":"#N/A"}},{"$f":"IF(INDIRECT(\"c\" & (VLOOKUP(Switch!$D$31,$F$2:$G$44,2,FALSE)+ROW()-2))=Switch!$D$31,INDIRECT(\"a\" & (VLOOKUP(Switch!$D$31,$F$2:$G$44,2,FALSE)+ROW()-2)),\"\")","v":{"$error":"#N/A"}},{"$f":"IF(INDIRECT(\"c\" & (VLOOKUP(Switch!$D$32,$F$2:$G$44,2,FALSE)+ROW()-2))=Switch!$D$32,INDIRECT(\"a\" & (VLOOKUP(Switch!$D$32,$F$2:$G$44,2,FALSE)+ROW()-2)),\"\")","v":{"$error":"#N/A"}},{"$f":"IF(INDIRECT(\"c\" & (VLOOKUP(Switch!$D$33,$F$2:$G$44,2,FALSE)+ROW()-2))=Switch!$D$33,INDIRECT(\"a\" & (VLOOKUP(Switch!$D$33,$F$2:$G$44,2,FALSE)+ROW()-2)),\"\")","v":{"$error":"#N/A"}},{"$f":"IF(INDIRECT(\"c\" & (VLOOKUP(Switch!$D$34,$F$2:$G$44,2,FALSE)+ROW()-2))=Switch!$D$34,INDIRECT(\"a\" & (VLOOKUP(Switch!$D$34,$F$2:$G$44,2,FALSE)+ROW()-2)),\"\")","v":{"$error":"#N/A"}},{"$f":"IF(INDIRECT(\"c\" & (VLOOKUP(Switch!$D$35,$F$2:$G$44,2,FALSE)+ROW()-2))=Switch!$D$35,INDIRECT(\"a\" & (VLOOKUP(Switch!$D$35,$F$2:$G$44,2,FALSE)+ROW()-2)),\"\")","v":{"$error":"#N/A"}},{"$f":"IF(INDIRECT(\"c\" & (VLOOKUP(Switch!$D$36,$F$2:$G$44,2,FALSE)+ROW()-2))=Switch!$D$36,INDIRECT(\"a\" & (VLOOKUP(Switch!$D$36,$F$2:$G$44,2,FALSE)+ROW()-2)),\"\")","v":{"$error":"#N/A"}},{"$f":"IF(INDIRECT(\"c\" & (VLOOKUP(Switch!$D$37,$F$2:$G$44,2,FALSE)+ROW()-2))=Switch!$D$37,INDIRECT(\"a\" & (VLOOKUP(Switch!$D$37,$F$2:$G$44,2,FALSE)+ROW()-2)),\"\")","v":{"$error":"#N/A"}},{"$f":"IF(INDIRECT(\"c\" & (VLOOKUP(Switch!$D$38,$F$2:$G$44,2,FALSE)+ROW()-2))=Switch!$D$38,INDIRECT(\"a\" & (VLOOKUP(Switch!$D$38,$F$2:$G$44,2,FALSE)+ROW()-2)),\"\")","v":{"$error":"#N/A"}},{"$f":"IF(INDIRECT(\"c\" & (VLOOKUP(Switch!$D$39,$F$2:$G$44,2,FALSE)+ROW()-2))=Switch!$D$39,INDIRECT(\"a\" & (VLOOKUP(Switch!$D$39,$F$2:$G$44,2,FALSE)+ROW()-2)),\"\")","v":{"$error":"#N/A"}},{"$f":"IF(INDIRECT(\"c\" & (VLOOKUP(Switch!$D$40,$F$2:$G$44,2,FALSE)+ROW()-2))=Switch!$D$40,INDIRECT(\"a\" & (VLOOKUP(Switch!$D$40,$F$2:$G$44,2,FALSE)+ROW()-2)),\"\")","v":{"$error":"#N/A"}},{"$f":"IF(INDIRECT(\"c\" & (VLOOKUP(Switch!$D$52,$F$2:$G$44,2,FALSE)+ROW()-2))=Switch!$D$52,INDIRECT(\"a\" & (VLOOKUP(Switch!$D$52,$F$2:$G$44,2,FALSE)+ROW()-2)),\"\")","v":{"$error":"#N/A"}},{"$f":"IF(INDIRECT(\"c\" & (VLOOKUP(Switch!$D$53,$F$2:$G$44,2,FALSE)+ROW()-2))=Switch!$D$53,INDIRECT(\"a\" & (VLOOKUP(Switch!$D$53,$F$2:$G$44,2,FALSE)+ROW()-2)),\"\")","v":{"$error":"#N/A"}},{"$f":"IF(INDIRECT(\"c\" & (VLOOKUP(Switch!$D$54,$F$2:$G$44,2,FALSE)+ROW()-2))=Switch!$D$54,INDIRECT(\"a\" & (VLOOKUP(Switch!$D$54,$F$2:$G$44,2,FALSE)+ROW()-2)),\"\")","v":{"$error":"#N/A"}},{"$f":"IF(INDIRECT(\"c\" & (VLOOKUP(Switch!$D$55,$F$2:$G$44,2,FALSE)+ROW()-2))=Switch!$D$55,INDIRECT(\"a\" & (VLOOKUP(Switch!$D$55,$F$2:$G$44,2,FALSE)+ROW()-2)),\"\")","v":{"$error":"#N/A"}},{"$f":"IF(INDIRECT(\"c\" & (VLOOKUP(Switch!$D$56,$F$2:$G$44,2,FALSE)+ROW()-2))=Switch!$D$56,INDIRECT(\"a\" & (VLOOKUP(Switch!$D$56,$F$2:$G$44,2,FALSE)+ROW()-2)),\"\")","v":{"$error":"#N/A"}},{"$f":"IF(INDIRECT(\"c\" & (VLOOKUP(Switch!$D$57,$F$2:$G$44,2,FALSE)+ROW()-2))=Switch!$D$57,INDIRECT(\"a\" & (VLOOKUP(Switch!$D$57,$F$2:$G$44,2,FALSE)+ROW()-2)),\"\")","v":{"$error":"#N/A"}},{"$f":"IF(INDIRECT(\"c\" & (VLOOKUP(Switch!$D$58,$F$2:$G$44,2,FALSE)+ROW()-2))=Switch!$D$58,INDIRECT(\"a\" & (VLOOKUP(Switch!$D$58,$F$2:$G$44,2,FALSE)+ROW()-2)),\"\")","v":{"$error":"#N/A"}},{"$f":"IF(INDIRECT(\"c\" & (VLOOKUP(Switch!$D$59,$F$2:$G$44,2,FALSE)+ROW()-2))=Switch!$D$59,INDIRECT(\"a\" & (VLOOKUP(Switch!$D$59,$F$2:$G$44,2,FALSE)+ROW()-2)),\"\")","v":{"$error":"#N/A"}},{"$f":"IF(INDIRECT(\"c\" & (VLOOKUP(Switch!$D$60,$F$2:$G$44,2,FALSE)+ROW()-2))=Switch!$D$60,INDIRECT(\"a\" & (VLOOKUP(Switch!$D$60,$F$2:$G$44,2,FALSE)+ROW()-2)),\"\")","v":{"$error":"#N/A"}},{"$f":"IF(INDIRECT(\"c\" & (VLOOKUP(Switch!$D$61,$F$2:$G$44,2,FALSE)+ROW()-2))=Switch!$D$61,INDIRECT(\"a\" & (VLOOKUP(Switch!$D$61,$F$2:$G$44,2,FALSE)+ROW()-2)),\"\")","v":{"$error":"#N/A"}},{"$f":"IF(INDIRECT(\"c\" & (VLOOKUP(Switch!$D$62,$F$2:$G$44,2,FALSE)+ROW()-2))=Switch!$D$62,INDIRECT(\"a\" & (VLOOKUP(Switch!$D$62,$F$2:$G$44,2,FALSE)+ROW()-2)),\"\")","v":{"$error":"#N/A"}},{"$f":"IF(INDIRECT(\"c\" & (VLOOKUP(Switch!$D$63,$F$2:$G$44,2,FALSE)+ROW()-2))=Switch!$D$63,INDIRECT(\"a\" & (VLOOKUP(Switch!$D$63,$F$2:$G$44,2,FALSE)+ROW()-2)),\"\")","v":{"$error":"#N/A"}},{"$f":"IF(INDIRECT(\"c\" & (VLOOKUP(Switch!$D$64,$F$2:$G$44,2,FALSE)+ROW()-2))=Switch!$D$64,INDIRECT(\"a\" & (VLOOKUP(Switch!$D$64,$F$2:$G$44,2,FALSE)+ROW()-2)),\"\")","v":{"$error":"#N/A"}},{"$f":"IF(INDIRECT(\"c\" & (VLOOKUP(Switch!$D$65,$F$2:$G$44,2,FALSE)+ROW()-2))=Switch!$D$65,INDIRECT(\"a\" & (VLOOKUP(Switch!$D$65,$F$2:$G$44,2,FALSE)+ROW()-2)),\"\")","v":{"$error":"#N/A"}},{"$f":"IF(INDIRECT(\"c\" & (VLOOKUP(Switch!$D$66,$F$2:$G$44,2,FALSE)+ROW()-2))=Switch!$D$66,INDIRECT(\"a\" & (VLOOKUP(Switch!$D$66,$F$2:$G$44,2,FALSE)+ROW()-2)),\"\")","v":{"$error":"#N/A"}}]
["Anchor BCI Equity Fund B","AMEFB","Boutique Collective Investments (Pty) Ltd",{"$f":"ROW()","v":109},null,null,{"$f":"VLOOKUP(F109,$C$2:$D$637,2,FALSE)","v":{"$error":"#N/A"}},{"$f":"IF(INDIRECT(\"c\" & (VLOOKUP(Switch!$D$26,$F$2:$G$44,2,FALSE)+ROW()-2))=Switch!$D$26,INDIRECT(\"a\" & (VLOOKUP(Switch!$D$26,$F$2:$G$44,2,FALSE)+ROW()-2)),\"\")","v":{"$error":"#N/A"}},{"$f":"IF(INDIRECT(\"c\" & (VLOOKUP(Switch!$D$27,$F$2:$G$44,2,FALSE)+ROW()-2))=Switch!$D$27,INDIRECT(\"a\" & (VLOOKUP(Switch!$D$27,$F$2:$G$44,2,FALSE)+ROW()-2)),\"\")","v":{"$error":"#N/A"}},{"$f":"IF(INDIRECT(\"c\" & (VLOOKUP(Switch!$D$28,$F$2:$G$44,2,FALSE)+ROW()-2))=Switch!$D$28,INDIRECT(\"a\" & (VLOOKUP(Switch!$D$28,$F$2:$G$44,2,FALSE)+ROW()-2)),\"\")","v":{"$error":"#N/A"}},{"$f":"IF(INDIRECT(\"c\" & (VLOOKUP(Switch!$D$29,$F$2:$G$44,2,FALSE)+ROW()-2))=Switch!$D$29,INDIRECT(\"a\" & (VLOOKUP(Switch!$D$29,$F$2:$G$44,2,FALSE)+ROW()-2)),\"\")","v":{"$error":"#N/A"}},{"$f":"IF(INDIRECT(\"c\" & (VLOOKUP(Switch!$D$30,$F$2:$G$44,2,FALSE)+ROW()-2))=Switch!$D$30,INDIRECT(\"a\" & (VLOOKUP(Switch!$D$30,$F$2:$G$44,2,FALSE)+ROW()-2)),\"\")","v":{"$error":"#N/A"}},{"$f":"IF(INDIRECT(\"c\" & (VLOOKUP(Switch!$D$31,$F$2:$G$44,2,FALSE)+ROW()-2))=Switch!$D$31,INDIRECT(\"a\" & (VLOOKUP(Switch!$D$31,$F$2:$G$44,2,FALSE)+ROW()-2)),\"\")","v":{"$error":"#N/A"}},{"$f":"IF(INDIRECT(\"c\" & (VLOOKUP(Switch!$D$32,$F$2:$G$44,2,FALSE)+ROW()-2))=Switch!$D$32,INDIRECT(\"a\" & (VLOOKUP(Switch!$D$32,$F$2:$G$44,2,FALSE)+ROW()-2)),\"\")","v":{"$error":"#N/A"}},{"$f":"IF(INDIRECT(\"c\" & (VLOOKUP(Switch!$D$33,$F$2:$G$44,2,FALSE)+ROW()-2))=Switch!$D$33,INDIRECT(\"a\" & (VLOOKUP(Switch!$D$33,$F$2:$G$44,2,FALSE)+ROW()-2)),\"\")","v":{"$error":"#N/A"}},{"$f":"IF(INDIRECT(\"c\" & (VLOOKUP(Switch!$D$34,$F$2:$G$44,2,FALSE)+ROW()-2))=Switch!$D$34,INDIRECT(\"a\" & (VLOOKUP(Switch!$D$34,$F$2:$G$44,2,FALSE)+ROW()-2)),\"\")","v":{"$error":"#N/A"}},{"$f":"IF(INDIRECT(\"c\" & (VLOOKUP(Switch!$D$35,$F$2:$G$44,2,FALSE)+ROW()-2))=Switch!$D$35,INDIRECT(\"a\" & (VLOOKUP(Switch!$D$35,$F$2:$G$44,2,FALSE)+ROW()-2)),\"\")","v":{"$error":"#N/A"}},{"$f":"IF(INDIRECT(\"c\" & (VLOOKUP(Switch!$D$36,$F$2:$G$44,2,FALSE)+ROW()-2))=Switch!$D$36,INDIRECT(\"a\" & (VLOOKUP(Switch!$D$36,$F$2:$G$44,2,FALSE)+ROW()-2)),\"\")","v":{"$error":"#N/A"}},{"$f":"IF(INDIRECT(\"c\" & (VLOOKUP(Switch!$D$37,$F$2:$G$44,2,FALSE)+ROW()-2))=Switch!$D$37,INDIRECT(\"a\" & (VLOOKUP(Switch!$D$37,$F$2:$G$44,2,FALSE)+ROW()-2)),\"\")","v":{"$error":"#N/A"}},{"$f":"IF(INDIRECT(\"c\" & (VLOOKUP(Switch!$D$38,$F$2:$G$44,2,FALSE)+ROW()-2))=Switch!$D$38,INDIRECT(\"a\" & (VLOOKUP(Switch!$D$38,$F$2:$G$44,2,FALSE)+ROW()-2)),\"\")","v":{"$error":"#N/A"}},{"$f":"IF(INDIRECT(\"c\" & (VLOOKUP(Switch!$D$39,$F$2:$G$44,2,FALSE)+ROW()-2))=Switch!$D$39,INDIRECT(\"a\" & (VLOOKUP(Switch!$D$39,$F$2:$G$44,2,FALSE)+ROW()-2)),\"\")","v":{"$error":"#N/A"}},{"$f":"IF(INDIRECT(\"c\" & (VLOOKUP(Switch!$D$40,$F$2:$G$44,2,FALSE)+ROW()-2))=Switch!$D$40,INDIRECT(\"a\" & (VLOOKUP(Switch!$D$40,$F$2:$G$44,2,FALSE)+ROW()-2)),\"\")","v":{"$error":"#N/A"}},{"$f":"IF(INDIRECT(\"c\" & (VLOOKUP(Switch!$D$52,$F$2:$G$44,2,FALSE)+ROW()-2))=Switch!$D$52,INDIRECT(\"a\" & (VLOOKUP(Switch!$D$52,$F$2:$G$44,2,FALSE)+ROW()-2)),\"\")","v":{"$error":"#N/A"}},{"$f":"IF(INDIRECT(\"c\" & (VLOOKUP(Switch!$D$53,$F$2:$G$44,2,FALSE)+ROW()-2))=Switch!$D$53,INDIRECT(\"a\" & (VLOOKUP(Switch!$D$53,$F$2:$G$44,2,FALSE)+ROW()-2)),\"\")","v":{"$error":"#N/A"}},{"$f":"IF(INDIRECT(\"c\" & (VLOOKUP(Switch!$D$54,$F$2:$G$44,2,FALSE)+ROW()-2))=Switch!$D$54,INDIRECT(\"a\" & (VLOOKUP(Switch!$D$54,$F$2:$G$44,2,FALSE)+ROW()-2)),\"\")","v":{"$error":"#N/A"}},{"$f":"IF(INDIRECT(\"c\" & (VLOOKUP(Switch!$D$55,$F$2:$G$44,2,FALSE)+ROW()-2))=Switch!$D$55,INDIRECT(\"a\" & (VLOOKUP(Switch!$D$55,$F$2:$G$44,2,FALSE)+ROW()-2)),\"\")","v":{"$error":"#N/A"}},{"$f":"IF(INDIRECT(\"c\" & (VLOOKUP(Switch!$D$56,$F$2:$G$44,2,FALSE)+ROW()-2))=Switch!$D$56,INDIRECT(\"a\" & (VLOOKUP(Switch!$D$56,$F$2:$G$44,2,FALSE)+ROW()-2)),\"\")","v":{"$error":"#N/A"}},{"$f":"IF(INDIRECT(\"c\" & (VLOOKUP(Switch!$D$57,$F$2:$G$44,2,FALSE)+ROW()-2))=Switch!$D$57,INDIRECT(\"a\" & (VLOOKUP(Switch!$D$57,$F$2:$G$44,2,FALSE)+ROW()-2)),\"\")","v":{"$error":"#N/A"}},{"$f":"IF(INDIRECT(\"c\" & (VLOOKUP(Switch!$D$58,$F$2:$G$44,2,FALSE)+ROW()-2))=Switch!$D$58,INDIRECT(\"a\" & (VLOOKUP(Switch!$D$58,$F$2:$G$44,2,FALSE)+ROW()-2)),\"\")","v":{"$error":"#N/A"}},{"$f":"IF(INDIRECT(\"c\" & (VLOOKUP(Switch!$D$59,$F$2:$G$44,2,FALSE)+ROW()-2))=Switch!$D$59,INDIRECT(\"a\" & (VLOOKUP(Switch!$D$59,$F$2:$G$44,2,FALSE)+ROW()-2)),\"\")","v":{"$error":"#N/A"}},{"$f":"IF(INDIRECT(\"c\" & (VLOOKUP(Switch!$D$60,$F$2:$G$44,2,FALSE)+ROW()-2))=Switch!$D$60,INDIRECT(\"a\" & (VLOOKUP(Switch!$D$60,$F$2:$G$44,2,FALSE)+ROW()-2)),\"\")","v":{"$error":"#N/A"}},{"$f":"IF(INDIRECT(\"c\" & (VLOOKUP(Switch!$D$61,$F$2:$G$44,2,FALSE)+ROW()-2))=Switch!$D$61,INDIRECT(\"a\" & (VLOOKUP(Switch!$D$61,$F$2:$G$44,2,FALSE)+ROW()-2)),\"\")","v":{"$error":"#N/A"}},{"$f":"IF(INDIRECT(\"c\" & (VLOOKUP(Switch!$D$62,$F$2:$G$44,2,FALSE)+ROW()-2))=Switch!$D$62,INDIRECT(\"a\" & (VLOOKUP(Switch!$D$62,$F$2:$G$44,2,FALSE)+ROW()-2)),\"\")","v":{"$error":"#N/A"}},{"$f":"IF(INDIRECT(\"c\" & (VLOOKUP(Switch!$D$63,$F$2:$G$44,2,FALSE)+ROW()-2))=Switch!$D$63,INDIRECT(\"a\" & (VLOOKUP(Switch!$D$63,$F$2:$G$44,2,FALSE)+ROW()-2)),\"\")","v":{"$error":"#N/A"}},{"$f":"IF(INDIRECT(\"c\" & (VLOOKUP(Switch!$D$64,$F$2:$G$44,2,FALSE)+ROW()-2))=Switch!$D$64,INDIRECT(\"a\" & (VLOOKUP(Switch!$D$64,$F$2:$G$44,2,FALSE)+ROW()-2)),\"\")","v":{"$error":"#N/A"}},{"$f":"IF(INDIRECT(\"c\" & (VLOOKUP(Switch!$D$65,$F$2:$G$44,2,FALSE)+ROW()-2))=Switch!$D$65,INDIRECT(\"a\" & (VLOOKUP(Switch!$D$65,$F$2:$G$44,2,FALSE)+ROW()-2)),\"\")","v":{"$error":"#N/A"}},{"$f":"IF(INDIRECT(\"c\" & (VLOOKUP(Switch!$D$66,$F$2:$G$44,2,FALSE)+ROW()-2))=Switch!$D$66,INDIRECT(\"a\" & (VLOOKUP(Switch!$D$66,$F$2:$G$44,2,FALSE)+ROW()-2)),\"\")","v":{"$error":"#N/A"}}]
["Anchor BCI Flexible Income Fund C","ABFIC","Boutique Collective Investments (Pty) Ltd",{"$f":"ROW()","v":110},null,null,{"$f":"VLOOKUP(F110,$C$2:$D$637,2,FALSE)","v":{"$error":"#N/A"}},{"$f":"IF(INDIRECT(\"c\" & (VLOOKUP(Switch!$D$26,$F$2:$G$44,2,FALSE)+ROW()-2))=Switch!$D$26,INDIRECT(\"a\" & (VLOOKUP(Switch!$D$26,$F$2:$G$44,2,FALSE)+ROW()-2)),\"\")","v":{"$error":"#N/A"}},{"$f":"IF(INDIRECT(\"c\" & (VLOOKUP(Switch!$D$27,$F$2:$G$44,2,FALSE)+ROW()-2))=Switch!$D$27,INDIRECT(\"a\" & (VLOOKUP(Switch!$D$27,$F$2:$G$44,2,FALSE)+ROW()-2)),\"\")","v":{"$error":"#N/A"}},{"$f":"IF(INDIRECT(\"c\" & (VLOOKUP(Switch!$D$28,$F$2:$G$44,2,FALSE)+ROW()-2))=Switch!$D$28,INDIRECT(\"a\" & (VLOOKUP(Switch!$D$28,$F$2:$G$44,2,FALSE)+ROW()-2)),\"\")","v":{"$error":"#N/A"}},{"$f":"IF(INDIRECT(\"c\" & (VLOOKUP(Switch!$D$29,$F$2:$G$44,2,FALSE)+ROW()-2))=Switch!$D$29,INDIRECT(\"a\" & (VLOOKUP(Switch!$D$29,$F$2:$G$44,2,FALSE)+ROW()-2)),\"\")","v":{"$error":"#N/A"}},{"$f":"IF(INDIRECT(\"c\" & (VLOOKUP(Switch!$D$30,$F$2:$G$44,2,FALSE)+ROW()-2))=Switch!$D$30,INDIRECT(\"a\" & (VLOOKUP(Switch!$D$30,$F$2:$G$44,2,FALSE)+ROW()-2)),\"\")","v":{"$error":"#N/A"}},{"$f":"IF(INDIRECT(\"c\" & (VLOOKUP(Switch!$D$31,$F$2:$G$44,2,FALSE)+ROW()-2))=Switch!$D$31,INDIRECT(\"a\" & (VLOOKUP(Switch!$D$31,$F$2:$G$44,2,FALSE)+ROW()-2)),\"\")","v":{"$error":"#N/A"}},{"$f":"IF(INDIRECT(\"c\" & (VLOOKUP(Switch!$D$32,$F$2:$G$44,2,FALSE)+ROW()-2))=Switch!$D$32,INDIRECT(\"a\" & (VLOOKUP(Switch!$D$32,$F$2:$G$44,2,FALSE)+ROW()-2)),\"\")","v":{"$error":"#N/A"}},{"$f":"IF(INDIRECT(\"c\" & (VLOOKUP(Switch!$D$33,$F$2:$G$44,2,FALSE)+ROW()-2))=Switch!$D$33,INDIRECT(\"a\" & (VLOOKUP(Switch!$D$33,$F$2:$G$44,2,FALSE)+ROW()-2)),\"\")","v":{"$error":"#N/A"}},{"$f":"IF(INDIRECT(\"c\" & (VLOOKUP(Switch!$D$34,$F$2:$G$44,2,FALSE)+ROW()-2))=Switch!$D$34,INDIRECT(\"a\" & (VLOOKUP(Switch!$D$34,$F$2:$G$44,2,FALSE)+ROW()-2)),\"\")","v":{"$error":"#N/A"}},{"$f":"IF(INDIRECT(\"c\" & (VLOOKUP(Switch!$D$35,$F$2:$G$44,2,FALSE)+ROW()-2))=Switch!$D$35,INDIRECT(\"a\" & (VLOOKUP(Switch!$D$35,$F$2:$G$44,2,FALSE)+ROW()-2)),\"\")","v":{"$error":"#N/A"}},{"$f":"IF(INDIRECT(\"c\" & (VLOOKUP(Switch!$D$36,$F$2:$G$44,2,FALSE)+ROW()-2))=Switch!$D$36,INDIRECT(\"a\" & (VLOOKUP(Switch!$D$36,$F$2:$G$44,2,FALSE)+ROW()-2)),\"\")","v":{"$error":"#N/A"}},{"$f":"IF(INDIRECT(\"c\" & (VLOOKUP(Switch!$D$37,$F$2:$G$44,2,FALSE)+ROW()-2))=Switch!$D$37,INDIRECT(\"a\" & (VLOOKUP(Switch!$D$37,$F$2:$G$44,2,FALSE)+ROW()-2)),\"\")","v":{"$error":"#N/A"}},{"$f":"IF(INDIRECT(\"c\" & (VLOOKUP(Switch!$D$38,$F$2:$G$44,2,FALSE)+ROW()-2))=Switch!$D$38,INDIRECT(\"a\" & (VLOOKUP(Switch!$D$38,$F$2:$G$44,2,FALSE)+ROW()-2)),\"\")","v":{"$error":"#N/A"}},{"$f":"IF(INDIRECT(\"c\" & (VLOOKUP(Switch!$D$39,$F$2:$G$44,2,FALSE)+ROW()-2))=Switch!$D$39,INDIRECT(\"a\" & (VLOOKUP(Switch!$D$39,$F$2:$G$44,2,FALSE)+ROW()-2)),\"\")","v":{"$error":"#N/A"}},{"$f":"IF(INDIRECT(\"c\" & (VLOOKUP(Switch!$D$40,$F$2:$G$44,2,FALSE)+ROW()-2))=Switch!$D$40,INDIRECT(\"a\" & (VLOOKUP(Switch!$D$40,$F$2:$G$44,2,FALSE)+ROW()-2)),\"\")","v":{"$error":"#N/A"}},{"$f":"IF(INDIRECT(\"c\" & (VLOOKUP(Switch!$D$52,$F$2:$G$44,2,FALSE)+ROW()-2))=Switch!$D$52,INDIRECT(\"a\" & (VLOOKUP(Switch!$D$52,$F$2:$G$44,2,FALSE)+ROW()-2)),\"\")","v":{"$error":"#N/A"}},{"$f":"IF(INDIRECT(\"c\" & (VLOOKUP(Switch!$D$53,$F$2:$G$44,2,FALSE)+ROW()-2))=Switch!$D$53,INDIRECT(\"a\" & (VLOOKUP(Switch!$D$53,$F$2:$G$44,2,FALSE)+ROW()-2)),\"\")","v":{"$error":"#N/A"}},{"$f":"IF(INDIRECT(\"c\" & (VLOOKUP(Switch!$D$54,$F$2:$G$44,2,FALSE)+ROW()-2))=Switch!$D$54,INDIRECT(\"a\" & (VLOOKUP(Switch!$D$54,$F$2:$G$44,2,FALSE)+ROW()-2)),\"\")","v":{"$error":"#N/A"}},{"$f":"IF(INDIRECT(\"c\" & (VLOOKUP(Switch!$D$55,$F$2:$G$44,2,FALSE)+ROW()-2))=Switch!$D$55,INDIRECT(\"a\" & (VLOOKUP(Switch!$D$55,$F$2:$G$44,2,FALSE)+ROW()-2)),\"\")","v":{"$error":"#N/A"}},{"$f":"IF(INDIRECT(\"c\" & (VLOOKUP(Switch!$D$56,$F$2:$G$44,2,FALSE)+ROW()-2))=Switch!$D$56,INDIRECT(\"a\" & (VLOOKUP(Switch!$D$56,$F$2:$G$44,2,FALSE)+ROW()-2)),\"\")","v":{"$error":"#N/A"}},{"$f":"IF(INDIRECT(\"c\" & (VLOOKUP(Switch!$D$57,$F$2:$G$44,2,FALSE)+ROW()-2))=Switch!$D$57,INDIRECT(\"a\" & (VLOOKUP(Switch!$D$57,$F$2:$G$44,2,FALSE)+ROW()-2)),\"\")","v":{"$error":"#N/A"}},{"$f":"IF(INDIRECT(\"c\" & (VLOOKUP(Switch!$D$58,$F$2:$G$44,2,FALSE)+ROW()-2))=Switch!$D$58,INDIRECT(\"a\" & (VLOOKUP(Switch!$D$58,$F$2:$G$44,2,FALSE)+ROW()-2)),\"\")","v":{"$error":"#N/A"}},{"$f":"IF(INDIRECT(\"c\" & (VLOOKUP(Switch!$D$59,$F$2:$G$44,2,FALSE)+ROW()-2))=Switch!$D$59,INDIRECT(\"a\" & (VLOOKUP(Switch!$D$59,$F$2:$G$44,2,FALSE)+ROW()-2)),\"\")","v":{"$error":"#N/A"}},{"$f":"IF(INDIRECT(\"c\" & (VLOOKUP(Switch!$D$60,$F$2:$G$44,2,FALSE)+ROW()-2))=Switch!$D$60,INDIRECT(\"a\" & (VLOOKUP(Switch!$D$60,$F$2:$G$44,2,FALSE)+ROW()-2)),\"\")","v":{"$error":"#N/A"}},{"$f":"IF(INDIRECT(\"c\" & (VLOOKUP(Switch!$D$61,$F$2:$G$44,2,FALSE)+ROW()-2))=Switch!$D$61,INDIRECT(\"a\" & (VLOOKUP(Switch!$D$61,$F$2:$G$44,2,FALSE)+ROW()-2)),\"\")","v":{"$error":"#N/A"}},{"$f":"IF(INDIRECT(\"c\" & (VLOOKUP(Switch!$D$62,$F$2:$G$44,2,FALSE)+ROW()-2))=Switch!$D$62,INDIRECT(\"a\" & (VLOOKUP(Switch!$D$62,$F$2:$G$44,2,FALSE)+ROW()-2)),\"\")","v":{"$error":"#N/A"}},{"$f":"IF(INDIRECT(\"c\" & (VLOOKUP(Switch!$D$63,$F$2:$G$44,2,FALSE)+ROW()-2))=Switch!$D$63,INDIRECT(\"a\" & (VLOOKUP(Switch!$D$63,$F$2:$G$44,2,FALSE)+ROW()-2)),\"\")","v":{"$error":"#N/A"}},{"$f":"IF(INDIRECT(\"c\" & (VLOOKUP(Switch!$D$64,$F$2:$G$44,2,FALSE)+ROW()-2))=Switch!$D$64,INDIRECT(\"a\" & (VLOOKUP(Switch!$D$64,$F$2:$G$44,2,FALSE)+ROW()-2)),\"\")","v":{"$error":"#N/A"}},{"$f":"IF(INDIRECT(\"c\" & (VLOOKUP(Switch!$D$65,$F$2:$G$44,2,FALSE)+ROW()-2))=Switch!$D$65,INDIRECT(\"a\" & (VLOOKUP(Switch!$D$65,$F$2:$G$44,2,FALSE)+ROW()-2)),\"\")","v":{"$error":"#N/A"}},{"$f":"IF(INDIRECT(\"c\" & (VLOOKUP(Switch!$D$66,$F$2:$G$44,2,FALSE)+ROW()-2))=Switch!$D$66,INDIRECT(\"a\" & (VLOOKUP(Switch!$D$66,$F$2:$G$44,2,FALSE)+ROW()-2)),\"\")","v":{"$error":"#N/A"}}]
["Anchor BCI Equity Fund A","AMEFA","Boutique Collective Investments (Pty) Ltd",{"$f":"ROW()","v":111},null,null,{"$f":"VLOOKUP(F111,$C$2:$D$637,2,FALSE)","v":{"$error":"#N/A"}},{"$f":"IF(INDIRECT(\"c\" & (VLOOKUP(Switch!$D$26,$F$2:$G$44,2,FALSE)+ROW()-2))=Switch!$D$26,INDIRECT(\"a\" & (VLOOKUP(Switch!$D$26,$F$2:$G$44,2,FALSE)+ROW()-2)),\"\")","v":{"$error":"#N/A"}},{"$f":"IF(INDIRECT(\"c\" & (VLOOKUP(Switch!$D$27,$F$2:$G$44,2,FALSE)+ROW()-2))=Switch!$D$27,INDIRECT(\"a\" & (VLOOKUP(Switch!$D$27,$F$2:$G$44,2,FALSE)+ROW()-2)),\"\")","v":{"$error":"#N/A"}},{"$f":"IF(INDIRECT(\"c\" & (VLOOKUP(Switch!$D$28,$F$2:$G$44,2,FALSE)+ROW()-2))=Switch!$D$28,INDIRECT(\"a\" & (VLOOKUP(Switch!$D$28,$F$2:$G$44,2,FALSE)+ROW()-2)),\"\")","v":{"$error":"#N/A"}},{"$f":"IF(INDIRECT(\"c\" & (VLOOKUP(Switch!$D$29,$F$2:$G$44,2,FALSE)+ROW()-2))=Switch!$D$29,INDIRECT(\"a\" & (VLOOKUP(Switch!$D$29,$F$2:$G$44,2,FALSE)+ROW()-2)),\"\")","v":{"$error":"#N/A"}},{"$f":"IF(INDIRECT(\"c\" & (VLOOKUP(Switch!$D$30,$F$2:$G$44,2,FALSE)+ROW()-2))=Switch!$D$30,INDIRECT(\"a\" & (VLOOKUP(Switch!$D$30,$F$2:$G$44,2,FALSE)+ROW()-2)),\"\")","v":{"$error":"#N/A"}},{"$f":"IF(INDIRECT(\"c\" & (VLOOKUP(Switch!$D$31,$F$2:$G$44,2,FALSE)+ROW()-2))=Switch!$D$31,INDIRECT(\"a\" & (VLOOKUP(Switch!$D$31,$F$2:$G$44,2,FALSE)+ROW()-2)),\"\")","v":{"$error":"#N/A"}},{"$f":"IF(INDIRECT(\"c\" & (VLOOKUP(Switch!$D$32,$F$2:$G$44,2,FALSE)+ROW()-2))=Switch!$D$32,INDIRECT(\"a\" & (VLOOKUP(Switch!$D$32,$F$2:$G$44,2,FALSE)+ROW()-2)),\"\")","v":{"$error":"#N/A"}},{"$f":"IF(INDIRECT(\"c\" & (VLOOKUP(Switch!$D$33,$F$2:$G$44,2,FALSE)+ROW()-2))=Switch!$D$33,INDIRECT(\"a\" & (VLOOKUP(Switch!$D$33,$F$2:$G$44,2,FALSE)+ROW()-2)),\"\")","v":{"$error":"#N/A"}},{"$f":"IF(INDIRECT(\"c\" & (VLOOKUP(Switch!$D$34,$F$2:$G$44,2,FALSE)+ROW()-2))=Switch!$D$34,INDIRECT(\"a\" & (VLOOKUP(Switch!$D$34,$F$2:$G$44,2,FALSE)+ROW()-2)),\"\")","v":{"$error":"#N/A"}},{"$f":"IF(INDIRECT(\"c\" & (VLOOKUP(Switch!$D$35,$F$2:$G$44,2,FALSE)+ROW()-2))=Switch!$D$35,INDIRECT(\"a\" & (VLOOKUP(Switch!$D$35,$F$2:$G$44,2,FALSE)+ROW()-2)),\"\")","v":{"$error":"#N/A"}},{"$f":"IF(INDIRECT(\"c\" & (VLOOKUP(Switch!$D$36,$F$2:$G$44,2,FALSE)+ROW()-2))=Switch!$D$36,INDIRECT(\"a\" & (VLOOKUP(Switch!$D$36,$F$2:$G$44,2,FALSE)+ROW()-2)),\"\")","v":{"$error":"#N/A"}},{"$f":"IF(INDIRECT(\"c\" & (VLOOKUP(Switch!$D$37,$F$2:$G$44,2,FALSE)+ROW()-2))=Switch!$D$37,INDIRECT(\"a\" & (VLOOKUP(Switch!$D$37,$F$2:$G$44,2,FALSE)+ROW()-2)),\"\")","v":{"$error":"#N/A"}},{"$f":"IF(INDIRECT(\"c\" & (VLOOKUP(Switch!$D$38,$F$2:$G$44,2,FALSE)+ROW()-2))=Switch!$D$38,INDIRECT(\"a\" & (VLOOKUP(Switch!$D$38,$F$2:$G$44,2,FALSE)+ROW()-2)),\"\")","v":{"$error":"#N/A"}},{"$f":"IF(INDIRECT(\"c\" & (VLOOKUP(Switch!$D$39,$F$2:$G$44,2,FALSE)+ROW()-2))=Switch!$D$39,INDIRECT(\"a\" & (VLOOKUP(Switch!$D$39,$F$2:$G$44,2,FALSE)+ROW()-2)),\"\")","v":{"$error":"#N/A"}},{"$f":"IF(INDIRECT(\"c\" & (VLOOKUP(Switch!$D$40,$F$2:$G$44,2,FALSE)+ROW()-2))=Switch!$D$40,INDIRECT(\"a\" & (VLOOKUP(Switch!$D$40,$F$2:$G$44,2,FALSE)+ROW()-2)),\"\")","v":{"$error":"#N/A"}},{"$f":"IF(INDIRECT(\"c\" & (VLOOKUP(Switch!$D$52,$F$2:$G$44,2,FALSE)+ROW()-2))=Switch!$D$52,INDIRECT(\"a\" & (VLOOKUP(Switch!$D$52,$F$2:$G$44,2,FALSE)+ROW()-2)),\"\")","v":{"$error":"#N/A"}},{"$f":"IF(INDIRECT(\"c\" & (VLOOKUP(Switch!$D$53,$F$2:$G$44,2,FALSE)+ROW()-2))=Switch!$D$53,INDIRECT(\"a\" & (VLOOKUP(Switch!$D$53,$F$2:$G$44,2,FALSE)+ROW()-2)),\"\")","v":{"$error":"#N/A"}},{"$f":"IF(INDIRECT(\"c\" & (VLOOKUP(Switch!$D$54,$F$2:$G$44,2,FALSE)+ROW()-2))=Switch!$D$54,INDIRECT(\"a\" & (VLOOKUP(Switch!$D$54,$F$2:$G$44,2,FALSE)+ROW()-2)),\"\")","v":{"$error":"#N/A"}},{"$f":"IF(INDIRECT(\"c\" & (VLOOKUP(Switch!$D$55,$F$2:$G$44,2,FALSE)+ROW()-2))=Switch!$D$55,INDIRECT(\"a\" & (VLOOKUP(Switch!$D$55,$F$2:$G$44,2,FALSE)+ROW()-2)),\"\")","v":{"$error":"#N/A"}},{"$f":"IF(INDIRECT(\"c\" & (VLOOKUP(Switch!$D$56,$F$2:$G$44,2,FALSE)+ROW()-2))=Switch!$D$56,INDIRECT(\"a\" & (VLOOKUP(Switch!$D$56,$F$2:$G$44,2,FALSE)+ROW()-2)),\"\")","v":{"$error":"#N/A"}},{"$f":"IF(INDIRECT(\"c\" & (VLOOKUP(Switch!$D$57,$F$2:$G$44,2,FALSE)+ROW()-2))=Switch!$D$57,INDIRECT(\"a\" & (VLOOKUP(Switch!$D$57,$F$2:$G$44,2,FALSE)+ROW()-2)),\"\")","v":{"$error":"#N/A"}},{"$f":"IF(INDIRECT(\"c\" & (VLOOKUP(Switch!$D$58,$F$2:$G$44,2,FALSE)+ROW()-2))=Switch!$D$58,INDIRECT(\"a\" & (VLOOKUP(Switch!$D$58,$F$2:$G$44,2,FALSE)+ROW()-2)),\"\")","v":{"$error":"#N/A"}},{"$f":"IF(INDIRECT(\"c\" & (VLOOKUP(Switch!$D$59,$F$2:$G$44,2,FALSE)+ROW()-2))=Switch!$D$59,INDIRECT(\"a\" & (VLOOKUP(Switch!$D$59,$F$2:$G$44,2,FALSE)+ROW()-2)),\"\")","v":{"$error":"#N/A"}},{"$f":"IF(INDIRECT(\"c\" & (VLOOKUP(Switch!$D$60,$F$2:$G$44,2,FALSE)+ROW()-2))=Switch!$D$60,INDIRECT(\"a\" & (VLOOKUP(Switch!$D$60,$F$2:$G$44,2,FALSE)+ROW()-2)),\"\")","v":{"$error":"#N/A"}},{"$f":"IF(INDIRECT(\"c\" & (VLOOKUP(Switch!$D$61,$F$2:$G$44,2,FALSE)+ROW()-2))=Switch!$D$61,INDIRECT(\"a\" & (VLOOKUP(Switch!$D$61,$F$2:$G$44,2,FALSE)+ROW()-2)),\"\")","v":{"$error":"#N/A"}},{"$f":"IF(INDIRECT(\"c\" & (VLOOKUP(Switch!$D$62,$F$2:$G$44,2,FALSE)+ROW()-2))=Switch!$D$62,INDIRECT(\"a\" & (VLOOKUP(Switch!$D$62,$F$2:$G$44,2,FALSE)+ROW()-2)),\"\")","v":{"$error":"#N/A"}},{"$f":"IF(INDIRECT(\"c\" & (VLOOKUP(Switch!$D$63,$F$2:$G$44,2,FALSE)+ROW()-2))=Switch!$D$63,INDIRECT(\"a\" & (VLOOKUP(Switch!$D$63,$F$2:$G$44,2,FALSE)+ROW()-2)),\"\")","v":{"$error":"#N/A"}},{"$f":"IF(INDIRECT(\"c\" & (VLOOKUP(Switch!$D$64,$F$2:$G$44,2,FALSE)+ROW()-2))=Switch!$D$64,INDIRECT(\"a\" & (VLOOKUP(Switch!$D$64,$F$2:$G$44,2,FALSE)+ROW()-2)),\"\")","v":{"$error":"#N/A"}},{"$f":"IF(INDIRECT(\"c\" & (VLOOKUP(Switch!$D$65,$F$2:$G$44,2,FALSE)+ROW()-2))=Switch!$D$65,INDIRECT(\"a\" & (VLOOKUP(Switch!$D$65,$F$2:$G$44,2,FALSE)+ROW()-2)),\"\")","v":{"$error":"#N/A"}},{"$f":"IF(INDIRECT(\"c\" & (VLOOKUP(Switch!$D$66,$F$2:$G$44,2,FALSE)+ROW()-2))=Switch!$D$66,INDIRECT(\"a\" & (VLOOKUP(Switch!$D$66,$F$2:$G$44,2,FALSE)+ROW()-2)),\"\")","v":{"$error":"#N/A"}}]
["Anchor BCI Flexible Income Fund A","ABFIA","Boutique Collective Investments (Pty) Ltd",{"$f":"ROW()","v":112},null,null,{"$f":"VLOOKUP(F112,$C$2:$D$637,2,FALSE)","v":{"$error":"#N/A"}},{"$f":"IF(INDIRECT(\"c\" & (VLOOKUP(Switch!$D$26,$F$2:$G$44,2,FALSE)+ROW()-2))=Switch!$D$26,INDIRECT(\"a\" & (VLOOKUP(Switch!$D$26,$F$2:$G$44,2,FALSE)+ROW()-2)),\"\")","v":{"$error":"#N/A"}},{"$f":"IF(INDIRECT(\"c\" & (VLOOKUP(Switch!$D$27,$F$2:$G$44,2,FALSE)+ROW()-2))=Switch!$D$27,INDIRECT(\"a\" & (VLOOKUP(Switch!$D$27,$F$2:$G$44,2,FALSE)+ROW()-2)),\"\")","v":{"$error":"#N/A"}},{"$f":"IF(INDIRECT(\"c\" & (VLOOKUP(Switch!$D$28,$F$2:$G$44,2,FALSE)+ROW()-2))=Switch!$D$28,INDIRECT(\"a\" & (VLOOKUP(Switch!$D$28,$F$2:$G$44,2,FALSE)+ROW()-2)),\"\")","v":{"$error":"#N/A"}},{"$f":"IF(INDIRECT(\"c\" & (VLOOKUP(Switch!$D$29,$F$2:$G$44,2,FALSE)+ROW()-2))=Switch!$D$29,INDIRECT(\"a\" & (VLOOKUP(Switch!$D$29,$F$2:$G$44,2,FALSE)+ROW()-2)),\"\")","v":{"$error":"#N/A"}},{"$f":"IF(INDIRECT(\"c\" & (VLOOKUP(Switch!$D$30,$F$2:$G$44,2,FALSE)+ROW()-2))=Switch!$D$30,INDIRECT(\"a\" & (VLOOKUP(Switch!$D$30,$F$2:$G$44,2,FALSE)+ROW()-2)),\"\")","v":{"$error":"#N/A"}},{"$f":"IF(INDIRECT(\"c\" & (VLOOKUP(Switch!$D$31,$F$2:$G$44,2,FALSE)+ROW()-2))=Switch!$D$31,INDIRECT(\"a\" & (VLOOKUP(Switch!$D$31,$F$2:$G$44,2,FALSE)+ROW()-2)),\"\")","v":{"$error":"#N/A"}},{"$f":"IF(INDIRECT(\"c\" & (VLOOKUP(Switch!$D$32,$F$2:$G$44,2,FALSE)+ROW()-2))=Switch!$D$32,INDIRECT(\"a\" & (VLOOKUP(Switch!$D$32,$F$2:$G$44,2,FALSE)+ROW()-2)),\"\")","v":{"$error":"#N/A"}},{"$f":"IF(INDIRECT(\"c\" & (VLOOKUP(Switch!$D$33,$F$2:$G$44,2,FALSE)+ROW()-2))=Switch!$D$33,INDIRECT(\"a\" & (VLOOKUP(Switch!$D$33,$F$2:$G$44,2,FALSE)+ROW()-2)),\"\")","v":{"$error":"#N/A"}},{"$f":"IF(INDIRECT(\"c\" & (VLOOKUP(Switch!$D$34,$F$2:$G$44,2,FALSE)+ROW()-2))=Switch!$D$34,INDIRECT(\"a\" & (VLOOKUP(Switch!$D$34,$F$2:$G$44,2,FALSE)+ROW()-2)),\"\")","v":{"$error":"#N/A"}},{"$f":"IF(INDIRECT(\"c\" & (VLOOKUP(Switch!$D$35,$F$2:$G$44,2,FALSE)+ROW()-2))=Switch!$D$35,INDIRECT(\"a\" & (VLOOKUP(Switch!$D$35,$F$2:$G$44,2,FALSE)+ROW()-2)),\"\")","v":{"$error":"#N/A"}},{"$f":"IF(INDIRECT(\"c\" & (VLOOKUP(Switch!$D$36,$F$2:$G$44,2,FALSE)+ROW()-2))=Switch!$D$36,INDIRECT(\"a\" & (VLOOKUP(Switch!$D$36,$F$2:$G$44,2,FALSE)+ROW()-2)),\"\")","v":{"$error":"#N/A"}},{"$f":"IF(INDIRECT(\"c\" & (VLOOKUP(Switch!$D$37,$F$2:$G$44,2,FALSE)+ROW()-2))=Switch!$D$37,INDIRECT(\"a\" & (VLOOKUP(Switch!$D$37,$F$2:$G$44,2,FALSE)+ROW()-2)),\"\")","v":{"$error":"#N/A"}},{"$f":"IF(INDIRECT(\"c\" & (VLOOKUP(Switch!$D$38,$F$2:$G$44,2,FALSE)+ROW()-2))=Switch!$D$38,INDIRECT(\"a\" & (VLOOKUP(Switch!$D$38,$F$2:$G$44,2,FALSE)+ROW()-2)),\"\")","v":{"$error":"#N/A"}},{"$f":"IF(INDIRECT(\"c\" & (VLOOKUP(Switch!$D$39,$F$2:$G$44,2,FALSE)+ROW()-2))=Switch!$D$39,INDIRECT(\"a\" & (VLOOKUP(Switch!$D$39,$F$2:$G$44,2,FALSE)+ROW()-2)),\"\")","v":{"$error":"#N/A"}},{"$f":"IF(INDIRECT(\"c\" & (VLOOKUP(Switch!$D$40,$F$2:$G$44,2,FALSE)+ROW()-2))=Switch!$D$40,INDIRECT(\"a\" & (VLOOKUP(Switch!$D$40,$F$2:$G$44,2,FALSE)+ROW()-2)),\"\")","v":{"$error":"#N/A"}},{"$f":"IF(INDIRECT(\"c\" & (VLOOKUP(Switch!$D$52,$F$2:$G$44,2,FALSE)+ROW()-2))=Switch!$D$52,INDIRECT(\"a\" & (VLOOKUP(Switch!$D$52,$F$2:$G$44,2,FALSE)+ROW()-2)),\"\")","v":{"$error":"#N/A"}},{"$f":"IF(INDIRECT(\"c\" & (VLOOKUP(Switch!$D$53,$F$2:$G$44,2,FALSE)+ROW()-2))=Switch!$D$53,INDIRECT(\"a\" & (VLOOKUP(Switch!$D$53,$F$2:$G$44,2,FALSE)+ROW()-2)),\"\")","v":{"$error":"#N/A"}},{"$f":"IF(INDIRECT(\"c\" & (VLOOKUP(Switch!$D$54,$F$2:$G$44,2,FALSE)+ROW()-2))=Switch!$D$54,INDIRECT(\"a\" & (VLOOKUP(Switch!$D$54,$F$2:$G$44,2,FALSE)+ROW()-2)),\"\")","v":{"$error":"#N/A"}},{"$f":"IF(INDIRECT(\"c\" & (VLOOKUP(Switch!$D$55,$F$2:$G$44,2,FALSE)+ROW()-2))=Switch!$D$55,INDIRECT(\"a\" & (VLOOKUP(Switch!$D$55,$F$2:$G$44,2,FALSE)+ROW()-2)),\"\")","v":{"$error":"#N/A"}},{"$f":"IF(INDIRECT(\"c\" & (VLOOKUP(Switch!$D$56,$F$2:$G$44,2,FALSE)+ROW()-2))=Switch!$D$56,INDIRECT(\"a\" & (VLOOKUP(Switch!$D$56,$F$2:$G$44,2,FALSE)+ROW()-2)),\"\")","v":{"$error":"#N/A"}},{"$f":"IF(INDIRECT(\"c\" & (VLOOKUP(Switch!$D$57,$F$2:$G$44,2,FALSE)+ROW()-2))=Switch!$D$57,INDIRECT(\"a\" & (VLOOKUP(Switch!$D$57,$F$2:$G$44,2,FALSE)+ROW()-2)),\"\")","v":{"$error":"#N/A"}},{"$f":"IF(INDIRECT(\"c\" & (VLOOKUP(Switch!$D$58,$F$2:$G$44,2,FALSE)+ROW()-2))=Switch!$D$58,INDIRECT(\"a\" & (VLOOKUP(Switch!$D$58,$F$2:$G$44,2,FALSE)+ROW()-2)),\"\")","v":{"$error":"#N/A"}},{"$f":"IF(INDIRECT(\"c\" & (VLOOKUP(Switch!$D$59,$F$2:$G$44,2,FALSE)+ROW()-2))=Switch!$D$59,INDIRECT(\"a\" & (VLOOKUP(Switch!$D$59,$F$2:$G$44,2,FALSE)+ROW()-2)),\"\")","v":{"$error":"#N/A"}},{"$f":"IF(INDIRECT(\"c\" & (VLOOKUP(Switch!$D$60,$F$2:$G$44,2,FALSE)+ROW()-2))=Switch!$D$60,INDIRECT(\"a\" & (VLOOKUP(Switch!$D$60,$F$2:$G$44,2,FALSE)+ROW()-2)),\"\")","v":{"$error":"#N/A"}},{"$f":"IF(INDIRECT(\"c\" & (VLOOKUP(Switch!$D$61,$F$2:$G$44,2,FALSE)+ROW()-2))=Switch!$D$61,INDIRECT(\"a\" & (VLOOKUP(Switch!$D$61,$F$2:$G$44,2,FALSE)+ROW()-2)),\"\")","v":{"$error":"#N/A"}},{"$f":"IF(INDIRECT(\"c\" & (VLOOKUP(Switch!$D$62,$F$2:$G$44,2,FALSE)+ROW()-2))=Switch!$D$62,INDIRECT(\"a\" & (VLOOKUP(Switch!$D$62,$F$2:$G$44,2,FALSE)+ROW()-2)),\"\")","v":{"$error":"#N/A"}},{"$f":"IF(INDIRECT(\"c\" & (VLOOKUP(Switch!$D$63,$F$2:$G$44,2,FALSE)+ROW()-2))=Switch!$D$63,INDIRECT(\"a\" & (VLOOKUP(Switch!$D$63,$F$2:$G$44,2,FALSE)+ROW()-2)),\"\")","v":{"$error":"#N/A"}},{"$f":"IF(INDIRECT(\"c\" & (VLOOKUP(Switch!$D$64,$F$2:$G$44,2,FALSE)+ROW()-2))=Switch!$D$64,INDIRECT(\"a\" & (VLOOKUP(Switch!$D$64,$F$2:$G$44,2,FALSE)+ROW()-2)),\"\")","v":{"$error":"#N/A"}},{"$f":"IF(INDIRECT(\"c\" & (VLOOKUP(Switch!$D$65,$F$2:$G$44,2,FALSE)+ROW()-2))=Switch!$D$65,INDIRECT(\"a\" & (VLOOKUP(Switch!$D$65,$F$2:$G$44,2,FALSE)+ROW()-2)),\"\")","v":{"$error":"#N/A"}},{"$f":"IF(INDIRECT(\"c\" & (VLOOKUP(Switch!$D$66,$F$2:$G$44,2,FALSE)+ROW()-2))=Switch!$D$66,INDIRECT(\"a\" & (VLOOKUP(Switch!$D$66,$F$2:$G$44,2,FALSE)+ROW()-2)),\"\")","v":{"$error":"#N/A"}}]
["Atlantic BCI Enhanced Income Fund A","AEIF","Boutique Collective Investments (Pty) Ltd",{"$f":"ROW()","v":113},null,null,{"$f":"VLOOKUP(F113,$C$2:$D$637,2,FALSE)","v":{"$error":"#N/A"}},{"$f":"IF(INDIRECT(\"c\" & (VLOOKUP(Switch!$D$26,$F$2:$G$44,2,FALSE)+ROW()-2))=Switch!$D$26,INDIRECT(\"a\" & (VLOOKUP(Switch!$D$26,$F$2:$G$44,2,FALSE)+ROW()-2)),\"\")","v":{"$error":"#N/A"}},{"$f":"IF(INDIRECT(\"c\" & (VLOOKUP(Switch!$D$27,$F$2:$G$44,2,FALSE)+ROW()-2))=Switch!$D$27,INDIRECT(\"a\" & (VLOOKUP(Switch!$D$27,$F$2:$G$44,2,FALSE)+ROW()-2)),\"\")","v":{"$error":"#N/A"}},{"$f":"IF(INDIRECT(\"c\" & (VLOOKUP(Switch!$D$28,$F$2:$G$44,2,FALSE)+ROW()-2))=Switch!$D$28,INDIRECT(\"a\" & (VLOOKUP(Switch!$D$28,$F$2:$G$44,2,FALSE)+ROW()-2)),\"\")","v":{"$error":"#N/A"}},{"$f":"IF(INDIRECT(\"c\" & (VLOOKUP(Switch!$D$29,$F$2:$G$44,2,FALSE)+ROW()-2))=Switch!$D$29,INDIRECT(\"a\" & (VLOOKUP(Switch!$D$29,$F$2:$G$44,2,FALSE)+ROW()-2)),\"\")","v":{"$error":"#N/A"}},{"$f":"IF(INDIRECT(\"c\" & (VLOOKUP(Switch!$D$30,$F$2:$G$44,2,FALSE)+ROW()-2))=Switch!$D$30,INDIRECT(\"a\" & (VLOOKUP(Switch!$D$30,$F$2:$G$44,2,FALSE)+ROW()-2)),\"\")","v":{"$error":"#N/A"}},{"$f":"IF(INDIRECT(\"c\" & (VLOOKUP(Switch!$D$31,$F$2:$G$44,2,FALSE)+ROW()-2))=Switch!$D$31,INDIRECT(\"a\" & (VLOOKUP(Switch!$D$31,$F$2:$G$44,2,FALSE)+ROW()-2)),\"\")","v":{"$error":"#N/A"}},{"$f":"IF(INDIRECT(\"c\" & (VLOOKUP(Switch!$D$32,$F$2:$G$44,2,FALSE)+ROW()-2))=Switch!$D$32,INDIRECT(\"a\" & (VLOOKUP(Switch!$D$32,$F$2:$G$44,2,FALSE)+ROW()-2)),\"\")","v":{"$error":"#N/A"}},{"$f":"IF(INDIRECT(\"c\" & (VLOOKUP(Switch!$D$33,$F$2:$G$44,2,FALSE)+ROW()-2))=Switch!$D$33,INDIRECT(\"a\" & (VLOOKUP(Switch!$D$33,$F$2:$G$44,2,FALSE)+ROW()-2)),\"\")","v":{"$error":"#N/A"}},{"$f":"IF(INDIRECT(\"c\" & (VLOOKUP(Switch!$D$34,$F$2:$G$44,2,FALSE)+ROW()-2))=Switch!$D$34,INDIRECT(\"a\" & (VLOOKUP(Switch!$D$34,$F$2:$G$44,2,FALSE)+ROW()-2)),\"\")","v":{"$error":"#N/A"}},{"$f":"IF(INDIRECT(\"c\" & (VLOOKUP(Switch!$D$35,$F$2:$G$44,2,FALSE)+ROW()-2))=Switch!$D$35,INDIRECT(\"a\" & (VLOOKUP(Switch!$D$35,$F$2:$G$44,2,FALSE)+ROW()-2)),\"\")","v":{"$error":"#N/A"}},{"$f":"IF(INDIRECT(\"c\" & (VLOOKUP(Switch!$D$36,$F$2:$G$44,2,FALSE)+ROW()-2))=Switch!$D$36,INDIRECT(\"a\" & (VLOOKUP(Switch!$D$36,$F$2:$G$44,2,FALSE)+ROW()-2)),\"\")","v":{"$error":"#N/A"}},{"$f":"IF(INDIRECT(\"c\" & (VLOOKUP(Switch!$D$37,$F$2:$G$44,2,FALSE)+ROW()-2))=Switch!$D$37,INDIRECT(\"a\" & (VLOOKUP(Switch!$D$37,$F$2:$G$44,2,FALSE)+ROW()-2)),\"\")","v":{"$error":"#N/A"}},{"$f":"IF(INDIRECT(\"c\" & (VLOOKUP(Switch!$D$38,$F$2:$G$44,2,FALSE)+ROW()-2))=Switch!$D$38,INDIRECT(\"a\" & (VLOOKUP(Switch!$D$38,$F$2:$G$44,2,FALSE)+ROW()-2)),\"\")","v":{"$error":"#N/A"}},{"$f":"IF(INDIRECT(\"c\" & (VLOOKUP(Switch!$D$39,$F$2:$G$44,2,FALSE)+ROW()-2))=Switch!$D$39,INDIRECT(\"a\" & (VLOOKUP(Switch!$D$39,$F$2:$G$44,2,FALSE)+ROW()-2)),\"\")","v":{"$error":"#N/A"}},{"$f":"IF(INDIRECT(\"c\" & (VLOOKUP(Switch!$D$40,$F$2:$G$44,2,FALSE)+ROW()-2))=Switch!$D$40,INDIRECT(\"a\" & (VLOOKUP(Switch!$D$40,$F$2:$G$44,2,FALSE)+ROW()-2)),\"\")","v":{"$error":"#N/A"}},{"$f":"IF(INDIRECT(\"c\" & (VLOOKUP(Switch!$D$52,$F$2:$G$44,2,FALSE)+ROW()-2))=Switch!$D$52,INDIRECT(\"a\" & (VLOOKUP(Switch!$D$52,$F$2:$G$44,2,FALSE)+ROW()-2)),\"\")","v":{"$error":"#N/A"}},{"$f":"IF(INDIRECT(\"c\" & (VLOOKUP(Switch!$D$53,$F$2:$G$44,2,FALSE)+ROW()-2))=Switch!$D$53,INDIRECT(\"a\" & (VLOOKUP(Switch!$D$53,$F$2:$G$44,2,FALSE)+ROW()-2)),\"\")","v":{"$error":"#N/A"}},{"$f":"IF(INDIRECT(\"c\" & (VLOOKUP(Switch!$D$54,$F$2:$G$44,2,FALSE)+ROW()-2))=Switch!$D$54,INDIRECT(\"a\" & (VLOOKUP(Switch!$D$54,$F$2:$G$44,2,FALSE)+ROW()-2)),\"\")","v":{"$error":"#N/A"}},{"$f":"IF(INDIRECT(\"c\" & (VLOOKUP(Switch!$D$55,$F$2:$G$44,2,FALSE)+ROW()-2))=Switch!$D$55,INDIRECT(\"a\" & (VLOOKUP(Switch!$D$55,$F$2:$G$44,2,FALSE)+ROW()-2)),\"\")","v":{"$error":"#N/A"}},{"$f":"IF(INDIRECT(\"c\" & (VLOOKUP(Switch!$D$56,$F$2:$G$44,2,FALSE)+ROW()-2))=Switch!$D$56,INDIRECT(\"a\" & (VLOOKUP(Switch!$D$56,$F$2:$G$44,2,FALSE)+ROW()-2)),\"\")","v":{"$error":"#N/A"}},{"$f":"IF(INDIRECT(\"c\" & (VLOOKUP(Switch!$D$57,$F$2:$G$44,2,FALSE)+ROW()-2))=Switch!$D$57,INDIRECT(\"a\" & (VLOOKUP(Switch!$D$57,$F$2:$G$44,2,FALSE)+ROW()-2)),\"\")","v":{"$error":"#N/A"}},{"$f":"IF(INDIRECT(\"c\" & (VLOOKUP(Switch!$D$58,$F$2:$G$44,2,FALSE)+ROW()-2))=Switch!$D$58,INDIRECT(\"a\" & (VLOOKUP(Switch!$D$58,$F$2:$G$44,2,FALSE)+ROW()-2)),\"\")","v":{"$error":"#N/A"}},{"$f":"IF(INDIRECT(\"c\" & (VLOOKUP(Switch!$D$59,$F$2:$G$44,2,FALSE)+ROW()-2))=Switch!$D$59,INDIRECT(\"a\" & (VLOOKUP(Switch!$D$59,$F$2:$G$44,2,FALSE)+ROW()-2)),\"\")","v":{"$error":"#N/A"}},{"$f":"IF(INDIRECT(\"c\" & (VLOOKUP(Switch!$D$60,$F$2:$G$44,2,FALSE)+ROW()-2))=Switch!$D$60,INDIRECT(\"a\" & (VLOOKUP(Switch!$D$60,$F$2:$G$44,2,FALSE)+ROW()-2)),\"\")","v":{"$error":"#N/A"}},{"$f":"IF(INDIRECT(\"c\" & (VLOOKUP(Switch!$D$61,$F$2:$G$44,2,FALSE)+ROW()-2))=Switch!$D$61,INDIRECT(\"a\" & (VLOOKUP(Switch!$D$61,$F$2:$G$44,2,FALSE)+ROW()-2)),\"\")","v":{"$error":"#N/A"}},{"$f":"IF(INDIRECT(\"c\" & (VLOOKUP(Switch!$D$62,$F$2:$G$44,2,FALSE)+ROW()-2))=Switch!$D$62,INDIRECT(\"a\" & (VLOOKUP(Switch!$D$62,$F$2:$G$44,2,FALSE)+ROW()-2)),\"\")","v":{"$error":"#N/A"}},{"$f":"IF(INDIRECT(\"c\" & (VLOOKUP(Switch!$D$63,$F$2:$G$44,2,FALSE)+ROW()-2))=Switch!$D$63,INDIRECT(\"a\" & (VLOOKUP(Switch!$D$63,$F$2:$G$44,2,FALSE)+ROW()-2)),\"\")","v":{"$error":"#N/A"}},{"$f":"IF(INDIRECT(\"c\" & (VLOOKUP(Switch!$D$64,$F$2:$G$44,2,FALSE)+ROW()-2))=Switch!$D$64,INDIRECT(\"a\" & (VLOOKUP(Switch!$D$64,$F$2:$G$44,2,FALSE)+ROW()-2)),\"\")","v":{"$error":"#N/A"}},{"$f":"IF(INDIRECT(\"c\" & (VLOOKUP(Switch!$D$65,$F$2:$G$44,2,FALSE)+ROW()-2))=Switch!$D$65,INDIRECT(\"a\" & (VLOOKUP(Switch!$D$65,$F$2:$G$44,2,FALSE)+ROW()-2)),\"\")","v":{"$error":"#N/A"}},{"$f":"IF(INDIRECT(\"c\" & (VLOOKUP(Switch!$D$66,$F$2:$G$44,2,FALSE)+ROW()-2))=Switch!$D$66,INDIRECT(\"a\" & (VLOOKUP(Switch!$D$66,$F$2:$G$44,2,FALSE)+ROW()-2)),\"\")","v":{"$error":"#N/A"}}]
["Atlantic BCI Global Capital Plus Feeder Fund A","ABGCPF","Boutique Collective Investments (Pty) Ltd",{"$f":"ROW()","v":114},null,null,{"$f":"VLOOKUP(F114,$C$2:$D$637,2,FALSE)","v":{"$error":"#N/A"}},{"$f":"IF(INDIRECT(\"c\" & (VLOOKUP(Switch!$D$26,$F$2:$G$44,2,FALSE)+ROW()-2))=Switch!$D$26,INDIRECT(\"a\" & (VLOOKUP(Switch!$D$26,$F$2:$G$44,2,FALSE)+ROW()-2)),\"\")","v":{"$error":"#N/A"}},{"$f":"IF(INDIRECT(\"c\" & (VLOOKUP(Switch!$D$27,$F$2:$G$44,2,FALSE)+ROW()-2))=Switch!$D$27,INDIRECT(\"a\" & (VLOOKUP(Switch!$D$27,$F$2:$G$44,2,FALSE)+ROW()-2)),\"\")","v":{"$error":"#N/A"}},{"$f":"IF(INDIRECT(\"c\" & (VLOOKUP(Switch!$D$28,$F$2:$G$44,2,FALSE)+ROW()-2))=Switch!$D$28,INDIRECT(\"a\" & (VLOOKUP(Switch!$D$28,$F$2:$G$44,2,FALSE)+ROW()-2)),\"\")","v":{"$error":"#N/A"}},{"$f":"IF(INDIRECT(\"c\" & (VLOOKUP(Switch!$D$29,$F$2:$G$44,2,FALSE)+ROW()-2))=Switch!$D$29,INDIRECT(\"a\" & (VLOOKUP(Switch!$D$29,$F$2:$G$44,2,FALSE)+ROW()-2)),\"\")","v":{"$error":"#N/A"}},{"$f":"IF(INDIRECT(\"c\" & (VLOOKUP(Switch!$D$30,$F$2:$G$44,2,FALSE)+ROW()-2))=Switch!$D$30,INDIRECT(\"a\" & (VLOOKUP(Switch!$D$30,$F$2:$G$44,2,FALSE)+ROW()-2)),\"\")","v":{"$error":"#N/A"}},{"$f":"IF(INDIRECT(\"c\" & (VLOOKUP(Switch!$D$31,$F$2:$G$44,2,FALSE)+ROW()-2))=Switch!$D$31,INDIRECT(\"a\" & (VLOOKUP(Switch!$D$31,$F$2:$G$44,2,FALSE)+ROW()-2)),\"\")","v":{"$error":"#N/A"}},{"$f":"IF(INDIRECT(\"c\" & (VLOOKUP(Switch!$D$32,$F$2:$G$44,2,FALSE)+ROW()-2))=Switch!$D$32,INDIRECT(\"a\" & (VLOOKUP(Switch!$D$32,$F$2:$G$44,2,FALSE)+ROW()-2)),\"\")","v":{"$error":"#N/A"}},{"$f":"IF(INDIRECT(\"c\" & (VLOOKUP(Switch!$D$33,$F$2:$G$44,2,FALSE)+ROW()-2))=Switch!$D$33,INDIRECT(\"a\" & (VLOOKUP(Switch!$D$33,$F$2:$G$44,2,FALSE)+ROW()-2)),\"\")","v":{"$error":"#N/A"}},{"$f":"IF(INDIRECT(\"c\" & (VLOOKUP(Switch!$D$34,$F$2:$G$44,2,FALSE)+ROW()-2))=Switch!$D$34,INDIRECT(\"a\" & (VLOOKUP(Switch!$D$34,$F$2:$G$44,2,FALSE)+ROW()-2)),\"\")","v":{"$error":"#N/A"}},{"$f":"IF(INDIRECT(\"c\" & (VLOOKUP(Switch!$D$35,$F$2:$G$44,2,FALSE)+ROW()-2))=Switch!$D$35,INDIRECT(\"a\" & (VLOOKUP(Switch!$D$35,$F$2:$G$44,2,FALSE)+ROW()-2)),\"\")","v":{"$error":"#N/A"}},{"$f":"IF(INDIRECT(\"c\" & (VLOOKUP(Switch!$D$36,$F$2:$G$44,2,FALSE)+ROW()-2))=Switch!$D$36,INDIRECT(\"a\" & (VLOOKUP(Switch!$D$36,$F$2:$G$44,2,FALSE)+ROW()-2)),\"\")","v":{"$error":"#N/A"}},{"$f":"IF(INDIRECT(\"c\" & (VLOOKUP(Switch!$D$37,$F$2:$G$44,2,FALSE)+ROW()-2))=Switch!$D$37,INDIRECT(\"a\" & (VLOOKUP(Switch!$D$37,$F$2:$G$44,2,FALSE)+ROW()-2)),\"\")","v":{"$error":"#N/A"}},{"$f":"IF(INDIRECT(\"c\" & (VLOOKUP(Switch!$D$38,$F$2:$G$44,2,FALSE)+ROW()-2))=Switch!$D$38,INDIRECT(\"a\" & (VLOOKUP(Switch!$D$38,$F$2:$G$44,2,FALSE)+ROW()-2)),\"\")","v":{"$error":"#N/A"}},{"$f":"IF(INDIRECT(\"c\" & (VLOOKUP(Switch!$D$39,$F$2:$G$44,2,FALSE)+ROW()-2))=Switch!$D$39,INDIRECT(\"a\" & (VLOOKUP(Switch!$D$39,$F$2:$G$44,2,FALSE)+ROW()-2)),\"\")","v":{"$error":"#N/A"}},{"$f":"IF(INDIRECT(\"c\" & (VLOOKUP(Switch!$D$40,$F$2:$G$44,2,FALSE)+ROW()-2))=Switch!$D$40,INDIRECT(\"a\" & (VLOOKUP(Switch!$D$40,$F$2:$G$44,2,FALSE)+ROW()-2)),\"\")","v":{"$error":"#N/A"}},{"$f":"IF(INDIRECT(\"c\" & (VLOOKUP(Switch!$D$52,$F$2:$G$44,2,FALSE)+ROW()-2))=Switch!$D$52,INDIRECT(\"a\" & (VLOOKUP(Switch!$D$52,$F$2:$G$44,2,FALSE)+ROW()-2)),\"\")","v":{"$error":"#N/A"}},{"$f":"IF(INDIRECT(\"c\" & (VLOOKUP(Switch!$D$53,$F$2:$G$44,2,FALSE)+ROW()-2))=Switch!$D$53,INDIRECT(\"a\" & (VLOOKUP(Switch!$D$53,$F$2:$G$44,2,FALSE)+ROW()-2)),\"\")","v":{"$error":"#N/A"}},{"$f":"IF(INDIRECT(\"c\" & (VLOOKUP(Switch!$D$54,$F$2:$G$44,2,FALSE)+ROW()-2))=Switch!$D$54,INDIRECT(\"a\" & (VLOOKUP(Switch!$D$54,$F$2:$G$44,2,FALSE)+ROW()-2)),\"\")","v":{"$error":"#N/A"}},{"$f":"IF(INDIRECT(\"c\" & (VLOOKUP(Switch!$D$55,$F$2:$G$44,2,FALSE)+ROW()-2))=Switch!$D$55,INDIRECT(\"a\" & (VLOOKUP(Switch!$D$55,$F$2:$G$44,2,FALSE)+ROW()-2)),\"\")","v":{"$error":"#N/A"}},{"$f":"IF(INDIRECT(\"c\" & (VLOOKUP(Switch!$D$56,$F$2:$G$44,2,FALSE)+ROW()-2))=Switch!$D$56,INDIRECT(\"a\" & (VLOOKUP(Switch!$D$56,$F$2:$G$44,2,FALSE)+ROW()-2)),\"\")","v":{"$error":"#N/A"}},{"$f":"IF(INDIRECT(\"c\" & (VLOOKUP(Switch!$D$57,$F$2:$G$44,2,FALSE)+ROW()-2))=Switch!$D$57,INDIRECT(\"a\" & (VLOOKUP(Switch!$D$57,$F$2:$G$44,2,FALSE)+ROW()-2)),\"\")","v":{"$error":"#N/A"}},{"$f":"IF(INDIRECT(\"c\" & (VLOOKUP(Switch!$D$58,$F$2:$G$44,2,FALSE)+ROW()-2))=Switch!$D$58,INDIRECT(\"a\" & (VLOOKUP(Switch!$D$58,$F$2:$G$44,2,FALSE)+ROW()-2)),\"\")","v":{"$error":"#N/A"}},{"$f":"IF(INDIRECT(\"c\" & (VLOOKUP(Switch!$D$59,$F$2:$G$44,2,FALSE)+ROW()-2))=Switch!$D$59,INDIRECT(\"a\" & (VLOOKUP(Switch!$D$59,$F$2:$G$44,2,FALSE)+ROW()-2)),\"\")","v":{"$error":"#N/A"}},{"$f":"IF(INDIRECT(\"c\" & (VLOOKUP(Switch!$D$60,$F$2:$G$44,2,FALSE)+ROW()-2))=Switch!$D$60,INDIRECT(\"a\" & (VLOOKUP(Switch!$D$60,$F$2:$G$44,2,FALSE)+ROW()-2)),\"\")","v":{"$error":"#N/A"}},{"$f":"IF(INDIRECT(\"c\" & (VLOOKUP(Switch!$D$61,$F$2:$G$44,2,FALSE)+ROW()-2))=Switch!$D$61,INDIRECT(\"a\" & (VLOOKUP(Switch!$D$61,$F$2:$G$44,2,FALSE)+ROW()-2)),\"\")","v":{"$error":"#N/A"}},{"$f":"IF(INDIRECT(\"c\" & (VLOOKUP(Switch!$D$62,$F$2:$G$44,2,FALSE)+ROW()-2))=Switch!$D$62,INDIRECT(\"a\" & (VLOOKUP(Switch!$D$62,$F$2:$G$44,2,FALSE)+ROW()-2)),\"\")","v":{"$error":"#N/A"}},{"$f":"IF(INDIRECT(\"c\" & (VLOOKUP(Switch!$D$63,$F$2:$G$44,2,FALSE)+ROW()-2))=Switch!$D$63,INDIRECT(\"a\" & (VLOOKUP(Switch!$D$63,$F$2:$G$44,2,FALSE)+ROW()-2)),\"\")","v":{"$error":"#N/A"}},{"$f":"IF(INDIRECT(\"c\" & (VLOOKUP(Switch!$D$64,$F$2:$G$44,2,FALSE)+ROW()-2))=Switch!$D$64,INDIRECT(\"a\" & (VLOOKUP(Switch!$D$64,$F$2:$G$44,2,FALSE)+ROW()-2)),\"\")","v":{"$error":"#N/A"}},{"$f":"IF(INDIRECT(\"c\" & (VLOOKUP(Switch!$D$65,$F$2:$G$44,2,FALSE)+ROW()-2))=Switch!$D$65,INDIRECT(\"a\" & (VLOOKUP(Switch!$D$65,$F$2:$G$44,2,FALSE)+ROW()-2)),\"\")","v":{"$error":"#N/A"}},{"$f":"IF(INDIRECT(\"c\" & (VLOOKUP(Switch!$D$66,$F$2:$G$44,2,FALSE)+ROW()-2))=Switch!$D$66,INDIRECT(\"a\" & (VLOOKUP(Switch!$D$66,$F$2:$G$44,2,FALSE)+ROW()-2)),\"\")","v":{"$error":"#N/A"}}]
["Anchor BCI Global Equity Feeder Fund A","ABGEFF","Boutique Collective Investments (Pty) Ltd",{"$f":"ROW()","v":115},null,null,{"$f":"VLOOKUP(F115,$C$2:$D$637,2,FALSE)","v":{"$error":"#N/A"}},{"$f":"IF(INDIRECT(\"c\" & (VLOOKUP(Switch!$D$26,$F$2:$G$44,2,FALSE)+ROW()-2))=Switch!$D$26,INDIRECT(\"a\" & (VLOOKUP(Switch!$D$26,$F$2:$G$44,2,FALSE)+ROW()-2)),\"\")","v":{"$error":"#N/A"}},{"$f":"IF(INDIRECT(\"c\" & (VLOOKUP(Switch!$D$27,$F$2:$G$44,2,FALSE)+ROW()-2))=Switch!$D$27,INDIRECT(\"a\" & (VLOOKUP(Switch!$D$27,$F$2:$G$44,2,FALSE)+ROW()-2)),\"\")","v":{"$error":"#N/A"}},{"$f":"IF(INDIRECT(\"c\" & (VLOOKUP(Switch!$D$28,$F$2:$G$44,2,FALSE)+ROW()-2))=Switch!$D$28,INDIRECT(\"a\" & (VLOOKUP(Switch!$D$28,$F$2:$G$44,2,FALSE)+ROW()-2)),\"\")","v":{"$error":"#N/A"}},{"$f":"IF(INDIRECT(\"c\" & (VLOOKUP(Switch!$D$29,$F$2:$G$44,2,FALSE)+ROW()-2))=Switch!$D$29,INDIRECT(\"a\" & (VLOOKUP(Switch!$D$29,$F$2:$G$44,2,FALSE)+ROW()-2)),\"\")","v":{"$error":"#N/A"}},{"$f":"IF(INDIRECT(\"c\" & (VLOOKUP(Switch!$D$30,$F$2:$G$44,2,FALSE)+ROW()-2))=Switch!$D$30,INDIRECT(\"a\" & (VLOOKUP(Switch!$D$30,$F$2:$G$44,2,FALSE)+ROW()-2)),\"\")","v":{"$error":"#N/A"}},{"$f":"IF(INDIRECT(\"c\" & (VLOOKUP(Switch!$D$31,$F$2:$G$44,2,FALSE)+ROW()-2))=Switch!$D$31,INDIRECT(\"a\" & (VLOOKUP(Switch!$D$31,$F$2:$G$44,2,FALSE)+ROW()-2)),\"\")","v":{"$error":"#N/A"}},{"$f":"IF(INDIRECT(\"c\" & (VLOOKUP(Switch!$D$32,$F$2:$G$44,2,FALSE)+ROW()-2))=Switch!$D$32,INDIRECT(\"a\" & (VLOOKUP(Switch!$D$32,$F$2:$G$44,2,FALSE)+ROW()-2)),\"\")","v":{"$error":"#N/A"}},{"$f":"IF(INDIRECT(\"c\" & (VLOOKUP(Switch!$D$33,$F$2:$G$44,2,FALSE)+ROW()-2))=Switch!$D$33,INDIRECT(\"a\" & (VLOOKUP(Switch!$D$33,$F$2:$G$44,2,FALSE)+ROW()-2)),\"\")","v":{"$error":"#N/A"}},{"$f":"IF(INDIRECT(\"c\" & (VLOOKUP(Switch!$D$34,$F$2:$G$44,2,FALSE)+ROW()-2))=Switch!$D$34,INDIRECT(\"a\" & (VLOOKUP(Switch!$D$34,$F$2:$G$44,2,FALSE)+ROW()-2)),\"\")","v":{"$error":"#N/A"}},{"$f":"IF(INDIRECT(\"c\" & (VLOOKUP(Switch!$D$35,$F$2:$G$44,2,FALSE)+ROW()-2))=Switch!$D$35,INDIRECT(\"a\" & (VLOOKUP(Switch!$D$35,$F$2:$G$44,2,FALSE)+ROW()-2)),\"\")","v":{"$error":"#N/A"}},{"$f":"IF(INDIRECT(\"c\" & (VLOOKUP(Switch!$D$36,$F$2:$G$44,2,FALSE)+ROW()-2))=Switch!$D$36,INDIRECT(\"a\" & (VLOOKUP(Switch!$D$36,$F$2:$G$44,2,FALSE)+ROW()-2)),\"\")","v":{"$error":"#N/A"}},{"$f":"IF(INDIRECT(\"c\" & (VLOOKUP(Switch!$D$37,$F$2:$G$44,2,FALSE)+ROW()-2))=Switch!$D$37,INDIRECT(\"a\" & (VLOOKUP(Switch!$D$37,$F$2:$G$44,2,FALSE)+ROW()-2)),\"\")","v":{"$error":"#N/A"}},{"$f":"IF(INDIRECT(\"c\" & (VLOOKUP(Switch!$D$38,$F$2:$G$44,2,FALSE)+ROW()-2))=Switch!$D$38,INDIRECT(\"a\" & (VLOOKUP(Switch!$D$38,$F$2:$G$44,2,FALSE)+ROW()-2)),\"\")","v":{"$error":"#N/A"}},{"$f":"IF(INDIRECT(\"c\" & (VLOOKUP(Switch!$D$39,$F$2:$G$44,2,FALSE)+ROW()-2))=Switch!$D$39,INDIRECT(\"a\" & (VLOOKUP(Switch!$D$39,$F$2:$G$44,2,FALSE)+ROW()-2)),\"\")","v":{"$error":"#N/A"}},{"$f":"IF(INDIRECT(\"c\" & (VLOOKUP(Switch!$D$40,$F$2:$G$44,2,FALSE)+ROW()-2))=Switch!$D$40,INDIRECT(\"a\" & (VLOOKUP(Switch!$D$40,$F$2:$G$44,2,FALSE)+ROW()-2)),\"\")","v":{"$error":"#N/A"}},{"$f":"IF(INDIRECT(\"c\" & (VLOOKUP(Switch!$D$52,$F$2:$G$44,2,FALSE)+ROW()-2))=Switch!$D$52,INDIRECT(\"a\" & (VLOOKUP(Switch!$D$52,$F$2:$G$44,2,FALSE)+ROW()-2)),\"\")","v":{"$error":"#N/A"}},{"$f":"IF(INDIRECT(\"c\" & (VLOOKUP(Switch!$D$53,$F$2:$G$44,2,FALSE)+ROW()-2))=Switch!$D$53,INDIRECT(\"a\" & (VLOOKUP(Switch!$D$53,$F$2:$G$44,2,FALSE)+ROW()-2)),\"\")","v":{"$error":"#N/A"}},{"$f":"IF(INDIRECT(\"c\" & (VLOOKUP(Switch!$D$54,$F$2:$G$44,2,FALSE)+ROW()-2))=Switch!$D$54,INDIRECT(\"a\" & (VLOOKUP(Switch!$D$54,$F$2:$G$44,2,FALSE)+ROW()-2)),\"\")","v":{"$error":"#N/A"}},{"$f":"IF(INDIRECT(\"c\" & (VLOOKUP(Switch!$D$55,$F$2:$G$44,2,FALSE)+ROW()-2))=Switch!$D$55,INDIRECT(\"a\" & (VLOOKUP(Switch!$D$55,$F$2:$G$44,2,FALSE)+ROW()-2)),\"\")","v":{"$error":"#N/A"}},{"$f":"IF(INDIRECT(\"c\" & (VLOOKUP(Switch!$D$56,$F$2:$G$44,2,FALSE)+ROW()-2))=Switch!$D$56,INDIRECT(\"a\" & (VLOOKUP(Switch!$D$56,$F$2:$G$44,2,FALSE)+ROW()-2)),\"\")","v":{"$error":"#N/A"}},{"$f":"IF(INDIRECT(\"c\" & (VLOOKUP(Switch!$D$57,$F$2:$G$44,2,FALSE)+ROW()-2))=Switch!$D$57,INDIRECT(\"a\" & (VLOOKUP(Switch!$D$57,$F$2:$G$44,2,FALSE)+ROW()-2)),\"\")","v":{"$error":"#N/A"}},{"$f":"IF(INDIRECT(\"c\" & (VLOOKUP(Switch!$D$58,$F$2:$G$44,2,FALSE)+ROW()-2))=Switch!$D$58,INDIRECT(\"a\" & (VLOOKUP(Switch!$D$58,$F$2:$G$44,2,FALSE)+ROW()-2)),\"\")","v":{"$error":"#N/A"}},{"$f":"IF(INDIRECT(\"c\" & (VLOOKUP(Switch!$D$59,$F$2:$G$44,2,FALSE)+ROW()-2))=Switch!$D$59,INDIRECT(\"a\" & (VLOOKUP(Switch!$D$59,$F$2:$G$44,2,FALSE)+ROW()-2)),\"\")","v":{"$error":"#N/A"}},{"$f":"IF(INDIRECT(\"c\" & (VLOOKUP(Switch!$D$60,$F$2:$G$44,2,FALSE)+ROW()-2))=Switch!$D$60,INDIRECT(\"a\" & (VLOOKUP(Switch!$D$60,$F$2:$G$44,2,FALSE)+ROW()-2)),\"\")","v":{"$error":"#N/A"}},{"$f":"IF(INDIRECT(\"c\" & (VLOOKUP(Switch!$D$61,$F$2:$G$44,2,FALSE)+ROW()-2))=Switch!$D$61,INDIRECT(\"a\" & (VLOOKUP(Switch!$D$61,$F$2:$G$44,2,FALSE)+ROW()-2)),\"\")","v":{"$error":"#N/A"}},{"$f":"IF(INDIRECT(\"c\" & (VLOOKUP(Switch!$D$62,$F$2:$G$44,2,FALSE)+ROW()-2))=Switch!$D$62,INDIRECT(\"a\" & (VLOOKUP(Switch!$D$62,$F$2:$G$44,2,FALSE)+ROW()-2)),\"\")","v":{"$error":"#N/A"}},{"$f":"IF(INDIRECT(\"c\" & (VLOOKUP(Switch!$D$63,$F$2:$G$44,2,FALSE)+ROW()-2))=Switch!$D$63,INDIRECT(\"a\" & (VLOOKUP(Switch!$D$63,$F$2:$G$44,2,FALSE)+ROW()-2)),\"\")","v":{"$error":"#N/A"}},{"$f":"IF(INDIRECT(\"c\" & (VLOOKUP(Switch!$D$64,$F$2:$G$44,2,FALSE)+ROW()-2))=Switch!$D$64,INDIRECT(\"a\" & (VLOOKUP(Switch!$D$64,$F$2:$G$44,2,FALSE)+ROW()-2)),\"\")","v":{"$error":"#N/A"}},{"$f":"IF(INDIRECT(\"c\" & (VLOOKUP(Switch!$D$65,$F$2:$G$44,2,FALSE)+ROW()-2))=Switch!$D$65,INDIRECT(\"a\" & (VLOOKUP(Switch!$D$65,$F$2:$G$44,2,FALSE)+ROW()-2)),\"\")","v":{"$error":"#N/A"}},{"$f":"IF(INDIRECT(\"c\" & (VLOOKUP(Switch!$D$66,$F$2:$G$44,2,FALSE)+ROW()-2))=Switch!$D$66,INDIRECT(\"a\" & (VLOOKUP(Switch!$D$66,$F$2:$G$44,2,FALSE)+ROW()-2)),\"\")","v":{"$error":"#N/A"}}]
["Anchor BCI Managed Fund A","ABMF","Boutique Collective Investments (Pty) Ltd",{"$f":"ROW()","v":116},null,null,{"$f":"VLOOKUP(F116,$C$2:$D$637,2,FALSE)","v":{"$error":"#N/A"}},{"$f":"IF(INDIRECT(\"c\" & (VLOOKUP(Switch!$D$26,$F$2:$G$44,2,FALSE)+ROW()-2))=Switch!$D$26,INDIRECT(\"a\" & (VLOOKUP(Switch!$D$26,$F$2:$G$44,2,FALSE)+ROW()-2)),\"\")","v":{"$error":"#N/A"}},{"$f":"IF(INDIRECT(\"c\" & (VLOOKUP(Switch!$D$27,$F$2:$G$44,2,FALSE)+ROW()-2))=Switch!$D$27,INDIRECT(\"a\" & (VLOOKUP(Switch!$D$27,$F$2:$G$44,2,FALSE)+ROW()-2)),\"\")","v":{"$error":"#N/A"}},{"$f":"IF(INDIRECT(\"c\" & (VLOOKUP(Switch!$D$28,$F$2:$G$44,2,FALSE)+ROW()-2))=Switch!$D$28,INDIRECT(\"a\" & (VLOOKUP(Switch!$D$28,$F$2:$G$44,2,FALSE)+ROW()-2)),\"\")","v":{"$error":"#N/A"}},{"$f":"IF(INDIRECT(\"c\" & (VLOOKUP(Switch!$D$29,$F$2:$G$44,2,FALSE)+ROW()-2))=Switch!$D$29,INDIRECT(\"a\" & (VLOOKUP(Switch!$D$29,$F$2:$G$44,2,FALSE)+ROW()-2)),\"\")","v":{"$error":"#N/A"}},{"$f":"IF(INDIRECT(\"c\" & (VLOOKUP(Switch!$D$30,$F$2:$G$44,2,FALSE)+ROW()-2))=Switch!$D$30,INDIRECT(\"a\" & (VLOOKUP(Switch!$D$30,$F$2:$G$44,2,FALSE)+ROW()-2)),\"\")","v":{"$error":"#N/A"}},{"$f":"IF(INDIRECT(\"c\" & (VLOOKUP(Switch!$D$31,$F$2:$G$44,2,FALSE)+ROW()-2))=Switch!$D$31,INDIRECT(\"a\" & (VLOOKUP(Switch!$D$31,$F$2:$G$44,2,FALSE)+ROW()-2)),\"\")","v":{"$error":"#N/A"}},{"$f":"IF(INDIRECT(\"c\" & (VLOOKUP(Switch!$D$32,$F$2:$G$44,2,FALSE)+ROW()-2))=Switch!$D$32,INDIRECT(\"a\" & (VLOOKUP(Switch!$D$32,$F$2:$G$44,2,FALSE)+ROW()-2)),\"\")","v":{"$error":"#N/A"}},{"$f":"IF(INDIRECT(\"c\" & (VLOOKUP(Switch!$D$33,$F$2:$G$44,2,FALSE)+ROW()-2))=Switch!$D$33,INDIRECT(\"a\" & (VLOOKUP(Switch!$D$33,$F$2:$G$44,2,FALSE)+ROW()-2)),\"\")","v":{"$error":"#N/A"}},{"$f":"IF(INDIRECT(\"c\" & (VLOOKUP(Switch!$D$34,$F$2:$G$44,2,FALSE)+ROW()-2))=Switch!$D$34,INDIRECT(\"a\" & (VLOOKUP(Switch!$D$34,$F$2:$G$44,2,FALSE)+ROW()-2)),\"\")","v":{"$error":"#N/A"}},{"$f":"IF(INDIRECT(\"c\" & (VLOOKUP(Switch!$D$35,$F$2:$G$44,2,FALSE)+ROW()-2))=Switch!$D$35,INDIRECT(\"a\" & (VLOOKUP(Switch!$D$35,$F$2:$G$44,2,FALSE)+ROW()-2)),\"\")","v":{"$error":"#N/A"}},{"$f":"IF(INDIRECT(\"c\" & (VLOOKUP(Switch!$D$36,$F$2:$G$44,2,FALSE)+ROW()-2))=Switch!$D$36,INDIRECT(\"a\" & (VLOOKUP(Switch!$D$36,$F$2:$G$44,2,FALSE)+ROW()-2)),\"\")","v":{"$error":"#N/A"}},{"$f":"IF(INDIRECT(\"c\" & (VLOOKUP(Switch!$D$37,$F$2:$G$44,2,FALSE)+ROW()-2))=Switch!$D$37,INDIRECT(\"a\" & (VLOOKUP(Switch!$D$37,$F$2:$G$44,2,FALSE)+ROW()-2)),\"\")","v":{"$error":"#N/A"}},{"$f":"IF(INDIRECT(\"c\" & (VLOOKUP(Switch!$D$38,$F$2:$G$44,2,FALSE)+ROW()-2))=Switch!$D$38,INDIRECT(\"a\" & (VLOOKUP(Switch!$D$38,$F$2:$G$44,2,FALSE)+ROW()-2)),\"\")","v":{"$error":"#N/A"}},{"$f":"IF(INDIRECT(\"c\" & (VLOOKUP(Switch!$D$39,$F$2:$G$44,2,FALSE)+ROW()-2))=Switch!$D$39,INDIRECT(\"a\" & (VLOOKUP(Switch!$D$39,$F$2:$G$44,2,FALSE)+ROW()-2)),\"\")","v":{"$error":"#N/A"}},{"$f":"IF(INDIRECT(\"c\" & (VLOOKUP(Switch!$D$40,$F$2:$G$44,2,FALSE)+ROW()-2))=Switch!$D$40,INDIRECT(\"a\" & (VLOOKUP(Switch!$D$40,$F$2:$G$44,2,FALSE)+ROW()-2)),\"\")","v":{"$error":"#N/A"}},{"$f":"IF(INDIRECT(\"c\" & (VLOOKUP(Switch!$D$52,$F$2:$G$44,2,FALSE)+ROW()-2))=Switch!$D$52,INDIRECT(\"a\" & (VLOOKUP(Switch!$D$52,$F$2:$G$44,2,FALSE)+ROW()-2)),\"\")","v":{"$error":"#N/A"}},{"$f":"IF(INDIRECT(\"c\" & (VLOOKUP(Switch!$D$53,$F$2:$G$44,2,FALSE)+ROW()-2))=Switch!$D$53,INDIRECT(\"a\" & (VLOOKUP(Switch!$D$53,$F$2:$G$44,2,FALSE)+ROW()-2)),\"\")","v":{"$error":"#N/A"}},{"$f":"IF(INDIRECT(\"c\" & (VLOOKUP(Switch!$D$54,$F$2:$G$44,2,FALSE)+ROW()-2))=Switch!$D$54,INDIRECT(\"a\" & (VLOOKUP(Switch!$D$54,$F$2:$G$44,2,FALSE)+ROW()-2)),\"\")","v":{"$error":"#N/A"}},{"$f":"IF(INDIRECT(\"c\" & (VLOOKUP(Switch!$D$55,$F$2:$G$44,2,FALSE)+ROW()-2))=Switch!$D$55,INDIRECT(\"a\" & (VLOOKUP(Switch!$D$55,$F$2:$G$44,2,FALSE)+ROW()-2)),\"\")","v":{"$error":"#N/A"}},{"$f":"IF(INDIRECT(\"c\" & (VLOOKUP(Switch!$D$56,$F$2:$G$44,2,FALSE)+ROW()-2))=Switch!$D$56,INDIRECT(\"a\" & (VLOOKUP(Switch!$D$56,$F$2:$G$44,2,FALSE)+ROW()-2)),\"\")","v":{"$error":"#N/A"}},{"$f":"IF(INDIRECT(\"c\" & (VLOOKUP(Switch!$D$57,$F$2:$G$44,2,FALSE)+ROW()-2))=Switch!$D$57,INDIRECT(\"a\" & (VLOOKUP(Switch!$D$57,$F$2:$G$44,2,FALSE)+ROW()-2)),\"\")","v":{"$error":"#N/A"}},{"$f":"IF(INDIRECT(\"c\" & (VLOOKUP(Switch!$D$58,$F$2:$G$44,2,FALSE)+ROW()-2))=Switch!$D$58,INDIRECT(\"a\" & (VLOOKUP(Switch!$D$58,$F$2:$G$44,2,FALSE)+ROW()-2)),\"\")","v":{"$error":"#N/A"}},{"$f":"IF(INDIRECT(\"c\" & (VLOOKUP(Switch!$D$59,$F$2:$G$44,2,FALSE)+ROW()-2))=Switch!$D$59,INDIRECT(\"a\" & (VLOOKUP(Switch!$D$59,$F$2:$G$44,2,FALSE)+ROW()-2)),\"\")","v":{"$error":"#N/A"}},{"$f":"IF(INDIRECT(\"c\" & (VLOOKUP(Switch!$D$60,$F$2:$G$44,2,FALSE)+ROW()-2))=Switch!$D$60,INDIRECT(\"a\" & (VLOOKUP(Switch!$D$60,$F$2:$G$44,2,FALSE)+ROW()-2)),\"\")","v":{"$error":"#N/A"}},{"$f":"IF(INDIRECT(\"c\" & (VLOOKUP(Switch!$D$61,$F$2:$G$44,2,FALSE)+ROW()-2))=Switch!$D$61,INDIRECT(\"a\" & (VLOOKUP(Switch!$D$61,$F$2:$G$44,2,FALSE)+ROW()-2)),\"\")","v":{"$error":"#N/A"}},{"$f":"IF(INDIRECT(\"c\" & (VLOOKUP(Switch!$D$62,$F$2:$G$44,2,FALSE)+ROW()-2))=Switch!$D$62,INDIRECT(\"a\" & (VLOOKUP(Switch!$D$62,$F$2:$G$44,2,FALSE)+ROW()-2)),\"\")","v":{"$error":"#N/A"}},{"$f":"IF(INDIRECT(\"c\" & (VLOOKUP(Switch!$D$63,$F$2:$G$44,2,FALSE)+ROW()-2))=Switch!$D$63,INDIRECT(\"a\" & (VLOOKUP(Switch!$D$63,$F$2:$G$44,2,FALSE)+ROW()-2)),\"\")","v":{"$error":"#N/A"}},{"$f":"IF(INDIRECT(\"c\" & (VLOOKUP(Switch!$D$64,$F$2:$G$44,2,FALSE)+ROW()-2))=Switch!$D$64,INDIRECT(\"a\" & (VLOOKUP(Switch!$D$64,$F$2:$G$44,2,FALSE)+ROW()-2)),\"\")","v":{"$error":"#N/A"}},{"$f":"IF(INDIRECT(\"c\" & (VLOOKUP(Switch!$D$65,$F$2:$G$44,2,FALSE)+ROW()-2))=Switch!$D$65,INDIRECT(\"a\" & (VLOOKUP(Switch!$D$65,$F$2:$G$44,2,FALSE)+ROW()-2)),\"\")","v":{"$error":"#N/A"}},{"$f":"IF(INDIRECT(\"c\" & (VLOOKUP(Switch!$D$66,$F$2:$G$44,2,FALSE)+ROW()-2))=Switch!$D$66,INDIRECT(\"a\" & (VLOOKUP(Switch!$D$66,$F$2:$G$44,2,FALSE)+ROW()-2)),\"\")","v":{"$error":"#N/A"}}]
["Anchor BCI Property Fund A","ABPFA","Boutique Collective Investments (Pty) Ltd",{"$f":"ROW()","v":117},null,null,{"$f":"VLOOKUP(F117,$C$2:$D$637,2,FALSE)","v":{"$error":"#N/A"}},{"$f":"IF(INDIRECT(\"c\" & (VLOOKUP(Switch!$D$26,$F$2:$G$44,2,FALSE)+ROW()-2))=Switch!$D$26,INDIRECT(\"a\" & (VLOOKUP(Switch!$D$26,$F$2:$G$44,2,FALSE)+ROW()-2)),\"\")","v":{"$error":"#N/A"}},{"$f":"IF(INDIRECT(\"c\" & (VLOOKUP(Switch!$D$27,$F$2:$G$44,2,FALSE)+ROW()-2))=Switch!$D$27,INDIRECT(\"a\" & (VLOOKUP(Switch!$D$27,$F$2:$G$44,2,FALSE)+ROW()-2)),\"\")","v":{"$error":"#N/A"}},{"$f":"IF(INDIRECT(\"c\" & (VLOOKUP(Switch!$D$28,$F$2:$G$44,2,FALSE)+ROW()-2))=Switch!$D$28,INDIRECT(\"a\" & (VLOOKUP(Switch!$D$28,$F$2:$G$44,2,FALSE)+ROW()-2)),\"\")","v":{"$error":"#N/A"}},{"$f":"IF(INDIRECT(\"c\" & (VLOOKUP(Switch!$D$29,$F$2:$G$44,2,FALSE)+ROW()-2))=Switch!$D$29,INDIRECT(\"a\" & (VLOOKUP(Switch!$D$29,$F$2:$G$44,2,FALSE)+ROW()-2)),\"\")","v":{"$error":"#N/A"}},{"$f":"IF(INDIRECT(\"c\" & (VLOOKUP(Switch!$D$30,$F$2:$G$44,2,FALSE)+ROW()-2))=Switch!$D$30,INDIRECT(\"a\" & (VLOOKUP(Switch!$D$30,$F$2:$G$44,2,FALSE)+ROW()-2)),\"\")","v":{"$error":"#N/A"}},{"$f":"IF(INDIRECT(\"c\" & (VLOOKUP(Switch!$D$31,$F$2:$G$44,2,FALSE)+ROW()-2))=Switch!$D$31,INDIRECT(\"a\" & (VLOOKUP(Switch!$D$31,$F$2:$G$44,2,FALSE)+ROW()-2)),\"\")","v":{"$error":"#N/A"}},{"$f":"IF(INDIRECT(\"c\" & (VLOOKUP(Switch!$D$32,$F$2:$G$44,2,FALSE)+ROW()-2))=Switch!$D$32,INDIRECT(\"a\" & (VLOOKUP(Switch!$D$32,$F$2:$G$44,2,FALSE)+ROW()-2)),\"\")","v":{"$error":"#N/A"}},{"$f":"IF(INDIRECT(\"c\" & (VLOOKUP(Switch!$D$33,$F$2:$G$44,2,FALSE)+ROW()-2))=Switch!$D$33,INDIRECT(\"a\" & (VLOOKUP(Switch!$D$33,$F$2:$G$44,2,FALSE)+ROW()-2)),\"\")","v":{"$error":"#N/A"}},{"$f":"IF(INDIRECT(\"c\" & (VLOOKUP(Switch!$D$34,$F$2:$G$44,2,FALSE)+ROW()-2))=Switch!$D$34,INDIRECT(\"a\" & (VLOOKUP(Switch!$D$34,$F$2:$G$44,2,FALSE)+ROW()-2)),\"\")","v":{"$error":"#N/A"}},{"$f":"IF(INDIRECT(\"c\" & (VLOOKUP(Switch!$D$35,$F$2:$G$44,2,FALSE)+ROW()-2))=Switch!$D$35,INDIRECT(\"a\" & (VLOOKUP(Switch!$D$35,$F$2:$G$44,2,FALSE)+ROW()-2)),\"\")","v":{"$error":"#N/A"}},{"$f":"IF(INDIRECT(\"c\" & (VLOOKUP(Switch!$D$36,$F$2:$G$44,2,FALSE)+ROW()-2))=Switch!$D$36,INDIRECT(\"a\" & (VLOOKUP(Switch!$D$36,$F$2:$G$44,2,FALSE)+ROW()-2)),\"\")","v":{"$error":"#N/A"}},{"$f":"IF(INDIRECT(\"c\" & (VLOOKUP(Switch!$D$37,$F$2:$G$44,2,FALSE)+ROW()-2))=Switch!$D$37,INDIRECT(\"a\" & (VLOOKUP(Switch!$D$37,$F$2:$G$44,2,FALSE)+ROW()-2)),\"\")","v":{"$error":"#N/A"}},{"$f":"IF(INDIRECT(\"c\" & (VLOOKUP(Switch!$D$38,$F$2:$G$44,2,FALSE)+ROW()-2))=Switch!$D$38,INDIRECT(\"a\" & (VLOOKUP(Switch!$D$38,$F$2:$G$44,2,FALSE)+ROW()-2)),\"\")","v":{"$error":"#N/A"}},{"$f":"IF(INDIRECT(\"c\" & (VLOOKUP(Switch!$D$39,$F$2:$G$44,2,FALSE)+ROW()-2))=Switch!$D$39,INDIRECT(\"a\" & (VLOOKUP(Switch!$D$39,$F$2:$G$44,2,FALSE)+ROW()-2)),\"\")","v":{"$error":"#N/A"}},{"$f":"IF(INDIRECT(\"c\" & (VLOOKUP(Switch!$D$40,$F$2:$G$44,2,FALSE)+ROW()-2))=Switch!$D$40,INDIRECT(\"a\" & (VLOOKUP(Switch!$D$40,$F$2:$G$44,2,FALSE)+ROW()-2)),\"\")","v":{"$error":"#N/A"}},{"$f":"IF(INDIRECT(\"c\" & (VLOOKUP(Switch!$D$52,$F$2:$G$44,2,FALSE)+ROW()-2))=Switch!$D$52,INDIRECT(\"a\" & (VLOOKUP(Switch!$D$52,$F$2:$G$44,2,FALSE)+ROW()-2)),\"\")","v":{"$error":"#N/A"}},{"$f":"IF(INDIRECT(\"c\" & (VLOOKUP(Switch!$D$53,$F$2:$G$44,2,FALSE)+ROW()-2))=Switch!$D$53,INDIRECT(\"a\" & (VLOOKUP(Switch!$D$53,$F$2:$G$44,2,FALSE)+ROW()-2)),\"\")","v":{"$error":"#N/A"}},{"$f":"IF(INDIRECT(\"c\" & (VLOOKUP(Switch!$D$54,$F$2:$G$44,2,FALSE)+ROW()-2))=Switch!$D$54,INDIRECT(\"a\" & (VLOOKUP(Switch!$D$54,$F$2:$G$44,2,FALSE)+ROW()-2)),\"\")","v":{"$error":"#N/A"}},{"$f":"IF(INDIRECT(\"c\" & (VLOOKUP(Switch!$D$55,$F$2:$G$44,2,FALSE)+ROW()-2))=Switch!$D$55,INDIRECT(\"a\" & (VLOOKUP(Switch!$D$55,$F$2:$G$44,2,FALSE)+ROW()-2)),\"\")","v":{"$error":"#N/A"}},{"$f":"IF(INDIRECT(\"c\" & (VLOOKUP(Switch!$D$56,$F$2:$G$44,2,FALSE)+ROW()-2))=Switch!$D$56,INDIRECT(\"a\" & (VLOOKUP(Switch!$D$56,$F$2:$G$44,2,FALSE)+ROW()-2)),\"\")","v":{"$error":"#N/A"}},{"$f":"IF(INDIRECT(\"c\" & (VLOOKUP(Switch!$D$57,$F$2:$G$44,2,FALSE)+ROW()-2))=Switch!$D$57,INDIRECT(\"a\" & (VLOOKUP(Switch!$D$57,$F$2:$G$44,2,FALSE)+ROW()-2)),\"\")","v":{"$error":"#N/A"}},{"$f":"IF(INDIRECT(\"c\" & (VLOOKUP(Switch!$D$58,$F$2:$G$44,2,FALSE)+ROW()-2))=Switch!$D$58,INDIRECT(\"a\" & (VLOOKUP(Switch!$D$58,$F$2:$G$44,2,FALSE)+ROW()-2)),\"\")","v":{"$error":"#N/A"}},{"$f":"IF(INDIRECT(\"c\" & (VLOOKUP(Switch!$D$59,$F$2:$G$44,2,FALSE)+ROW()-2))=Switch!$D$59,INDIRECT(\"a\" & (VLOOKUP(Switch!$D$59,$F$2:$G$44,2,FALSE)+ROW()-2)),\"\")","v":{"$error":"#N/A"}},{"$f":"IF(INDIRECT(\"c\" & (VLOOKUP(Switch!$D$60,$F$2:$G$44,2,FALSE)+ROW()-2))=Switch!$D$60,INDIRECT(\"a\" & (VLOOKUP(Switch!$D$60,$F$2:$G$44,2,FALSE)+ROW()-2)),\"\")","v":{"$error":"#N/A"}},{"$f":"IF(INDIRECT(\"c\" & (VLOOKUP(Switch!$D$61,$F$2:$G$44,2,FALSE)+ROW()-2))=Switch!$D$61,INDIRECT(\"a\" & (VLOOKUP(Switch!$D$61,$F$2:$G$44,2,FALSE)+ROW()-2)),\"\")","v":{"$error":"#N/A"}},{"$f":"IF(INDIRECT(\"c\" & (VLOOKUP(Switch!$D$62,$F$2:$G$44,2,FALSE)+ROW()-2))=Switch!$D$62,INDIRECT(\"a\" & (VLOOKUP(Switch!$D$62,$F$2:$G$44,2,FALSE)+ROW()-2)),\"\")","v":{"$error":"#N/A"}},{"$f":"IF(INDIRECT(\"c\" & (VLOOKUP(Switch!$D$63,$F$2:$G$44,2,FALSE)+ROW()-2))=Switch!$D$63,INDIRECT(\"a\" & (VLOOKUP(Switch!$D$63,$F$2:$G$44,2,FALSE)+ROW()-2)),\"\")","v":{"$error":"#N/A"}},{"$f":"IF(INDIRECT(\"c\" & (VLOOKUP(Switch!$D$64,$F$2:$G$44,2,FALSE)+ROW()-2))=Switch!$D$64,INDIRECT(\"a\" & (VLOOKUP(Switch!$D$64,$F$2:$G$44,2,FALSE)+ROW()-2)),\"\")","v":{"$error":"#N/A"}},{"$f":"IF(INDIRECT(\"c\" & (VLOOKUP(Switch!$D$65,$F$2:$G$44,2,FALSE)+ROW()-2))=Switch!$D$65,INDIRECT(\"a\" & (VLOOKUP(Switch!$D$65,$F$2:$G$44,2,FALSE)+ROW()-2)),\"\")","v":{"$error":"#N/A"}},{"$f":"IF(INDIRECT(\"c\" & (VLOOKUP(Switch!$D$66,$F$2:$G$44,2,FALSE)+ROW()-2))=Switch!$D$66,INDIRECT(\"a\" & (VLOOKUP(Switch!$D$66,$F$2:$G$44,2,FALSE)+ROW()-2)),\"\")","v":{"$error":"#N/A"}}]
["Anchor BCI SA Equity Fund A","ABEFA","Boutique Collective Investments (Pty) Ltd",{"$f":"ROW()","v":118},null,null,{"$f":"VLOOKUP(F118,$C$2:$D$637,2,FALSE)","v":{"$error":"#N/A"}},{"$f":"IF(INDIRECT(\"c\" & (VLOOKUP(Switch!$D$26,$F$2:$G$44,2,FALSE)+ROW()-2))=Switch!$D$26,INDIRECT(\"a\" & (VLOOKUP(Switch!$D$26,$F$2:$G$44,2,FALSE)+ROW()-2)),\"\")","v":{"$error":"#N/A"}},{"$f":"IF(INDIRECT(\"c\" & (VLOOKUP(Switch!$D$27,$F$2:$G$44,2,FALSE)+ROW()-2))=Switch!$D$27,INDIRECT(\"a\" & (VLOOKUP(Switch!$D$27,$F$2:$G$44,2,FALSE)+ROW()-2)),\"\")","v":{"$error":"#N/A"}},{"$f":"IF(INDIRECT(\"c\" & (VLOOKUP(Switch!$D$28,$F$2:$G$44,2,FALSE)+ROW()-2))=Switch!$D$28,INDIRECT(\"a\" & (VLOOKUP(Switch!$D$28,$F$2:$G$44,2,FALSE)+ROW()-2)),\"\")","v":{"$error":"#N/A"}},{"$f":"IF(INDIRECT(\"c\" & (VLOOKUP(Switch!$D$29,$F$2:$G$44,2,FALSE)+ROW()-2))=Switch!$D$29,INDIRECT(\"a\" & (VLOOKUP(Switch!$D$29,$F$2:$G$44,2,FALSE)+ROW()-2)),\"\")","v":{"$error":"#N/A"}},{"$f":"IF(INDIRECT(\"c\" & (VLOOKUP(Switch!$D$30,$F$2:$G$44,2,FALSE)+ROW()-2))=Switch!$D$30,INDIRECT(\"a\" & (VLOOKUP(Switch!$D$30,$F$2:$G$44,2,FALSE)+ROW()-2)),\"\")","v":{"$error":"#N/A"}},{"$f":"IF(INDIRECT(\"c\" & (VLOOKUP(Switch!$D$31,$F$2:$G$44,2,FALSE)+ROW()-2))=Switch!$D$31,INDIRECT(\"a\" & (VLOOKUP(Switch!$D$31,$F$2:$G$44,2,FALSE)+ROW()-2)),\"\")","v":{"$error":"#N/A"}},{"$f":"IF(INDIRECT(\"c\" & (VLOOKUP(Switch!$D$32,$F$2:$G$44,2,FALSE)+ROW()-2))=Switch!$D$32,INDIRECT(\"a\" & (VLOOKUP(Switch!$D$32,$F$2:$G$44,2,FALSE)+ROW()-2)),\"\")","v":{"$error":"#N/A"}},{"$f":"IF(INDIRECT(\"c\" & (VLOOKUP(Switch!$D$33,$F$2:$G$44,2,FALSE)+ROW()-2))=Switch!$D$33,INDIRECT(\"a\" & (VLOOKUP(Switch!$D$33,$F$2:$G$44,2,FALSE)+ROW()-2)),\"\")","v":{"$error":"#N/A"}},{"$f":"IF(INDIRECT(\"c\" & (VLOOKUP(Switch!$D$34,$F$2:$G$44,2,FALSE)+ROW()-2))=Switch!$D$34,INDIRECT(\"a\" & (VLOOKUP(Switch!$D$34,$F$2:$G$44,2,FALSE)+ROW()-2)),\"\")","v":{"$error":"#N/A"}},{"$f":"IF(INDIRECT(\"c\" & (VLOOKUP(Switch!$D$35,$F$2:$G$44,2,FALSE)+ROW()-2))=Switch!$D$35,INDIRECT(\"a\" & (VLOOKUP(Switch!$D$35,$F$2:$G$44,2,FALSE)+ROW()-2)),\"\")","v":{"$error":"#N/A"}},{"$f":"IF(INDIRECT(\"c\" & (VLOOKUP(Switch!$D$36,$F$2:$G$44,2,FALSE)+ROW()-2))=Switch!$D$36,INDIRECT(\"a\" & (VLOOKUP(Switch!$D$36,$F$2:$G$44,2,FALSE)+ROW()-2)),\"\")","v":{"$error":"#N/A"}},{"$f":"IF(INDIRECT(\"c\" & (VLOOKUP(Switch!$D$37,$F$2:$G$44,2,FALSE)+ROW()-2))=Switch!$D$37,INDIRECT(\"a\" & (VLOOKUP(Switch!$D$37,$F$2:$G$44,2,FALSE)+ROW()-2)),\"\")","v":{"$error":"#N/A"}},{"$f":"IF(INDIRECT(\"c\" & (VLOOKUP(Switch!$D$38,$F$2:$G$44,2,FALSE)+ROW()-2))=Switch!$D$38,INDIRECT(\"a\" & (VLOOKUP(Switch!$D$38,$F$2:$G$44,2,FALSE)+ROW()-2)),\"\")","v":{"$error":"#N/A"}},{"$f":"IF(INDIRECT(\"c\" & (VLOOKUP(Switch!$D$39,$F$2:$G$44,2,FALSE)+ROW()-2))=Switch!$D$39,INDIRECT(\"a\" & (VLOOKUP(Switch!$D$39,$F$2:$G$44,2,FALSE)+ROW()-2)),\"\")","v":{"$error":"#N/A"}},{"$f":"IF(INDIRECT(\"c\" & (VLOOKUP(Switch!$D$40,$F$2:$G$44,2,FALSE)+ROW()-2))=Switch!$D$40,INDIRECT(\"a\" & (VLOOKUP(Switch!$D$40,$F$2:$G$44,2,FALSE)+ROW()-2)),\"\")","v":{"$error":"#N/A"}},{"$f":"IF(INDIRECT(\"c\" & (VLOOKUP(Switch!$D$52,$F$2:$G$44,2,FALSE)+ROW()-2))=Switch!$D$52,INDIRECT(\"a\" & (VLOOKUP(Switch!$D$52,$F$2:$G$44,2,FALSE)+ROW()-2)),\"\")","v":{"$error":"#N/A"}},{"$f":"IF(INDIRECT(\"c\" & (VLOOKUP(Switch!$D$53,$F$2:$G$44,2,FALSE)+ROW()-2))=Switch!$D$53,INDIRECT(\"a\" & (VLOOKUP(Switch!$D$53,$F$2:$G$44,2,FALSE)+ROW()-2)),\"\")","v":{"$error":"#N/A"}},{"$f":"IF(INDIRECT(\"c\" & (VLOOKUP(Switch!$D$54,$F$2:$G$44,2,FALSE)+ROW()-2))=Switch!$D$54,INDIRECT(\"a\" & (VLOOKUP(Switch!$D$54,$F$2:$G$44,2,FALSE)+ROW()-2)),\"\")","v":{"$error":"#N/A"}},{"$f":"IF(INDIRECT(\"c\" & (VLOOKUP(Switch!$D$55,$F$2:$G$44,2,FALSE)+ROW()-2))=Switch!$D$55,INDIRECT(\"a\" & (VLOOKUP(Switch!$D$55,$F$2:$G$44,2,FALSE)+ROW()-2)),\"\")","v":{"$error":"#N/A"}},{"$f":"IF(INDIRECT(\"c\" & (VLOOKUP(Switch!$D$56,$F$2:$G$44,2,FALSE)+ROW()-2))=Switch!$D$56,INDIRECT(\"a\" & (VLOOKUP(Switch!$D$56,$F$2:$G$44,2,FALSE)+ROW()-2)),\"\")","v":{"$error":"#N/A"}},{"$f":"IF(INDIRECT(\"c\" & (VLOOKUP(Switch!$D$57,$F$2:$G$44,2,FALSE)+ROW()-2))=Switch!$D$57,INDIRECT(\"a\" & (VLOOKUP(Switch!$D$57,$F$2:$G$44,2,FALSE)+ROW()-2)),\"\")","v":{"$error":"#N/A"}},{"$f":"IF(INDIRECT(\"c\" & (VLOOKUP(Switch!$D$58,$F$2:$G$44,2,FALSE)+ROW()-2))=Switch!$D$58,INDIRECT(\"a\" & (VLOOKUP(Switch!$D$58,$F$2:$G$44,2,FALSE)+ROW()-2)),\"\")","v":{"$error":"#N/A"}},{"$f":"IF(INDIRECT(\"c\" & (VLOOKUP(Switch!$D$59,$F$2:$G$44,2,FALSE)+ROW()-2))=Switch!$D$59,INDIRECT(\"a\" & (VLOOKUP(Switch!$D$59,$F$2:$G$44,2,FALSE)+ROW()-2)),\"\")","v":{"$error":"#N/A"}},{"$f":"IF(INDIRECT(\"c\" & (VLOOKUP(Switch!$D$60,$F$2:$G$44,2,FALSE)+ROW()-2))=Switch!$D$60,INDIRECT(\"a\" & (VLOOKUP(Switch!$D$60,$F$2:$G$44,2,FALSE)+ROW()-2)),\"\")","v":{"$error":"#N/A"}},{"$f":"IF(INDIRECT(\"c\" & (VLOOKUP(Switch!$D$61,$F$2:$G$44,2,FALSE)+ROW()-2))=Switch!$D$61,INDIRECT(\"a\" & (VLOOKUP(Switch!$D$61,$F$2:$G$44,2,FALSE)+ROW()-2)),\"\")","v":{"$error":"#N/A"}},{"$f":"IF(INDIRECT(\"c\" & (VLOOKUP(Switch!$D$62,$F$2:$G$44,2,FALSE)+ROW()-2))=Switch!$D$62,INDIRECT(\"a\" & (VLOOKUP(Switch!$D$62,$F$2:$G$44,2,FALSE)+ROW()-2)),\"\")","v":{"$error":"#N/A"}},{"$f":"IF(INDIRECT(\"c\" & (VLOOKUP(Switch!$D$63,$F$2:$G$44,2,FALSE)+ROW()-2))=Switch!$D$63,INDIRECT(\"a\" & (VLOOKUP(Switch!$D$63,$F$2:$G$44,2,FALSE)+ROW()-2)),\"\")","v":{"$error":"#N/A"}},{"$f":"IF(INDIRECT(\"c\" & (VLOOKUP(Switch!$D$64,$F$2:$G$44,2,FALSE)+ROW()-2))=Switch!$D$64,INDIRECT(\"a\" & (VLOOKUP(Switch!$D$64,$F$2:$G$44,2,FALSE)+ROW()-2)),\"\")","v":{"$error":"#N/A"}},{"$f":"IF(INDIRECT(\"c\" & (VLOOKUP(Switch!$D$65,$F$2:$G$44,2,FALSE)+ROW()-2))=Switch!$D$65,INDIRECT(\"a\" & (VLOOKUP(Switch!$D$65,$F$2:$G$44,2,FALSE)+ROW()-2)),\"\")","v":{"$error":"#N/A"}},{"$f":"IF(INDIRECT(\"c\" & (VLOOKUP(Switch!$D$66,$F$2:$G$44,2,FALSE)+ROW()-2))=Switch!$D$66,INDIRECT(\"a\" & (VLOOKUP(Switch!$D$66,$F$2:$G$44,2,FALSE)+ROW()-2)),\"\")","v":{"$error":"#N/A"}}]
["Anchor BCI Worldwide Flexible Fund A","AMWFA","Boutique Collective Investments (Pty) Ltd",{"$f":"ROW()","v":119},null,null,{"$f":"VLOOKUP(F119,$C$2:$D$637,2,FALSE)","v":{"$error":"#N/A"}},{"$f":"IF(INDIRECT(\"c\" & (VLOOKUP(Switch!$D$26,$F$2:$G$44,2,FALSE)+ROW()-2))=Switch!$D$26,INDIRECT(\"a\" & (VLOOKUP(Switch!$D$26,$F$2:$G$44,2,FALSE)+ROW()-2)),\"\")","v":{"$error":"#N/A"}},{"$f":"IF(INDIRECT(\"c\" & (VLOOKUP(Switch!$D$27,$F$2:$G$44,2,FALSE)+ROW()-2))=Switch!$D$27,INDIRECT(\"a\" & (VLOOKUP(Switch!$D$27,$F$2:$G$44,2,FALSE)+ROW()-2)),\"\")","v":{"$error":"#N/A"}},{"$f":"IF(INDIRECT(\"c\" & (VLOOKUP(Switch!$D$28,$F$2:$G$44,2,FALSE)+ROW()-2))=Switch!$D$28,INDIRECT(\"a\" & (VLOOKUP(Switch!$D$28,$F$2:$G$44,2,FALSE)+ROW()-2)),\"\")","v":{"$error":"#N/A"}},{"$f":"IF(INDIRECT(\"c\" & (VLOOKUP(Switch!$D$29,$F$2:$G$44,2,FALSE)+ROW()-2))=Switch!$D$29,INDIRECT(\"a\" & (VLOOKUP(Switch!$D$29,$F$2:$G$44,2,FALSE)+ROW()-2)),\"\")","v":{"$error":"#N/A"}},{"$f":"IF(INDIRECT(\"c\" & (VLOOKUP(Switch!$D$30,$F$2:$G$44,2,FALSE)+ROW()-2))=Switch!$D$30,INDIRECT(\"a\" & (VLOOKUP(Switch!$D$30,$F$2:$G$44,2,FALSE)+ROW()-2)),\"\")","v":{"$error":"#N/A"}},{"$f":"IF(INDIRECT(\"c\" & (VLOOKUP(Switch!$D$31,$F$2:$G$44,2,FALSE)+ROW()-2))=Switch!$D$31,INDIRECT(\"a\" & (VLOOKUP(Switch!$D$31,$F$2:$G$44,2,FALSE)+ROW()-2)),\"\")","v":{"$error":"#N/A"}},{"$f":"IF(INDIRECT(\"c\" & (VLOOKUP(Switch!$D$32,$F$2:$G$44,2,FALSE)+ROW()-2))=Switch!$D$32,INDIRECT(\"a\" & (VLOOKUP(Switch!$D$32,$F$2:$G$44,2,FALSE)+ROW()-2)),\"\")","v":{"$error":"#N/A"}},{"$f":"IF(INDIRECT(\"c\" & (VLOOKUP(Switch!$D$33,$F$2:$G$44,2,FALSE)+ROW()-2))=Switch!$D$33,INDIRECT(\"a\" & (VLOOKUP(Switch!$D$33,$F$2:$G$44,2,FALSE)+ROW()-2)),\"\")","v":{"$error":"#N/A"}},{"$f":"IF(INDIRECT(\"c\" & (VLOOKUP(Switch!$D$34,$F$2:$G$44,2,FALSE)+ROW()-2))=Switch!$D$34,INDIRECT(\"a\" & (VLOOKUP(Switch!$D$34,$F$2:$G$44,2,FALSE)+ROW()-2)),\"\")","v":{"$error":"#N/A"}},{"$f":"IF(INDIRECT(\"c\" & (VLOOKUP(Switch!$D$35,$F$2:$G$44,2,FALSE)+ROW()-2))=Switch!$D$35,INDIRECT(\"a\" & (VLOOKUP(Switch!$D$35,$F$2:$G$44,2,FALSE)+ROW()-2)),\"\")","v":{"$error":"#N/A"}},{"$f":"IF(INDIRECT(\"c\" & (VLOOKUP(Switch!$D$36,$F$2:$G$44,2,FALSE)+ROW()-2))=Switch!$D$36,INDIRECT(\"a\" & (VLOOKUP(Switch!$D$36,$F$2:$G$44,2,FALSE)+ROW()-2)),\"\")","v":{"$error":"#N/A"}},{"$f":"IF(INDIRECT(\"c\" & (VLOOKUP(Switch!$D$37,$F$2:$G$44,2,FALSE)+ROW()-2))=Switch!$D$37,INDIRECT(\"a\" & (VLOOKUP(Switch!$D$37,$F$2:$G$44,2,FALSE)+ROW()-2)),\"\")","v":{"$error":"#N/A"}},{"$f":"IF(INDIRECT(\"c\" & (VLOOKUP(Switch!$D$38,$F$2:$G$44,2,FALSE)+ROW()-2))=Switch!$D$38,INDIRECT(\"a\" & (VLOOKUP(Switch!$D$38,$F$2:$G$44,2,FALSE)+ROW()-2)),\"\")","v":{"$error":"#N/A"}},{"$f":"IF(INDIRECT(\"c\" & (VLOOKUP(Switch!$D$39,$F$2:$G$44,2,FALSE)+ROW()-2))=Switch!$D$39,INDIRECT(\"a\" & (VLOOKUP(Switch!$D$39,$F$2:$G$44,2,FALSE)+ROW()-2)),\"\")","v":{"$error":"#N/A"}},{"$f":"IF(INDIRECT(\"c\" & (VLOOKUP(Switch!$D$40,$F$2:$G$44,2,FALSE)+ROW()-2))=Switch!$D$40,INDIRECT(\"a\" & (VLOOKUP(Switch!$D$40,$F$2:$G$44,2,FALSE)+ROW()-2)),\"\")","v":{"$error":"#N/A"}},{"$f":"IF(INDIRECT(\"c\" & (VLOOKUP(Switch!$D$52,$F$2:$G$44,2,FALSE)+ROW()-2))=Switch!$D$52,INDIRECT(\"a\" & (VLOOKUP(Switch!$D$52,$F$2:$G$44,2,FALSE)+ROW()-2)),\"\")","v":{"$error":"#N/A"}},{"$f":"IF(INDIRECT(\"c\" & (VLOOKUP(Switch!$D$53,$F$2:$G$44,2,FALSE)+ROW()-2))=Switch!$D$53,INDIRECT(\"a\" & (VLOOKUP(Switch!$D$53,$F$2:$G$44,2,FALSE)+ROW()-2)),\"\")","v":{"$error":"#N/A"}},{"$f":"IF(INDIRECT(\"c\" & (VLOOKUP(Switch!$D$54,$F$2:$G$44,2,FALSE)+ROW()-2))=Switch!$D$54,INDIRECT(\"a\" & (VLOOKUP(Switch!$D$54,$F$2:$G$44,2,FALSE)+ROW()-2)),\"\")","v":{"$error":"#N/A"}},{"$f":"IF(INDIRECT(\"c\" & (VLOOKUP(Switch!$D$55,$F$2:$G$44,2,FALSE)+ROW()-2))=Switch!$D$55,INDIRECT(\"a\" & (VLOOKUP(Switch!$D$55,$F$2:$G$44,2,FALSE)+ROW()-2)),\"\")","v":{"$error":"#N/A"}},{"$f":"IF(INDIRECT(\"c\" & (VLOOKUP(Switch!$D$56,$F$2:$G$44,2,FALSE)+ROW()-2))=Switch!$D$56,INDIRECT(\"a\" & (VLOOKUP(Switch!$D$56,$F$2:$G$44,2,FALSE)+ROW()-2)),\"\")","v":{"$error":"#N/A"}},{"$f":"IF(INDIRECT(\"c\" & (VLOOKUP(Switch!$D$57,$F$2:$G$44,2,FALSE)+ROW()-2))=Switch!$D$57,INDIRECT(\"a\" & (VLOOKUP(Switch!$D$57,$F$2:$G$44,2,FALSE)+ROW()-2)),\"\")","v":{"$error":"#N/A"}},{"$f":"IF(INDIRECT(\"c\" & (VLOOKUP(Switch!$D$58,$F$2:$G$44,2,FALSE)+ROW()-2))=Switch!$D$58,INDIRECT(\"a\" & (VLOOKUP(Switch!$D$58,$F$2:$G$44,2,FALSE)+ROW()-2)),\"\")","v":{"$error":"#N/A"}},{"$f":"IF(INDIRECT(\"c\" & (VLOOKUP(Switch!$D$59,$F$2:$G$44,2,FALSE)+ROW()-2))=Switch!$D$59,INDIRECT(\"a\" & (VLOOKUP(Switch!$D$59,$F$2:$G$44,2,FALSE)+ROW()-2)),\"\")","v":{"$error":"#N/A"}},{"$f":"IF(INDIRECT(\"c\" & (VLOOKUP(Switch!$D$60,$F$2:$G$44,2,FALSE)+ROW()-2))=Switch!$D$60,INDIRECT(\"a\" & (VLOOKUP(Switch!$D$60,$F$2:$G$44,2,FALSE)+ROW()-2)),\"\")","v":{"$error":"#N/A"}},{"$f":"IF(INDIRECT(\"c\" & (VLOOKUP(Switch!$D$61,$F$2:$G$44,2,FALSE)+ROW()-2))=Switch!$D$61,INDIRECT(\"a\" & (VLOOKUP(Switch!$D$61,$F$2:$G$44,2,FALSE)+ROW()-2)),\"\")","v":{"$error":"#N/A"}},{"$f":"IF(INDIRECT(\"c\" & (VLOOKUP(Switch!$D$62,$F$2:$G$44,2,FALSE)+ROW()-2))=Switch!$D$62,INDIRECT(\"a\" & (VLOOKUP(Switch!$D$62,$F$2:$G$44,2,FALSE)+ROW()-2)),\"\")","v":{"$error":"#N/A"}},{"$f":"IF(INDIRECT(\"c\" & (VLOOKUP(Switch!$D$63,$F$2:$G$44,2,FALSE)+ROW()-2))=Switch!$D$63,INDIRECT(\"a\" & (VLOOKUP(Switch!$D$63,$F$2:$G$44,2,FALSE)+ROW()-2)),\"\")","v":{"$error":"#N/A"}},{"$f":"IF(INDIRECT(\"c\" & (VLOOKUP(Switch!$D$64,$F$2:$G$44,2,FALSE)+ROW()-2))=Switch!$D$64,INDIRECT(\"a\" & (VLOOKUP(Switch!$D$64,$F$2:$G$44,2,FALSE)+ROW()-2)),\"\")","v":{"$error":"#N/A"}},{"$f":"IF(INDIRECT(\"c\" & (VLOOKUP(Switch!$D$65,$F$2:$G$44,2,FALSE)+ROW()-2))=Switch!$D$65,INDIRECT(\"a\" & (VLOOKUP(Switch!$D$65,$F$2:$G$44,2,FALSE)+ROW()-2)),\"\")","v":{"$error":"#N/A"}},{"$f":"IF(INDIRECT(\"c\" & (VLOOKUP(Switch!$D$66,$F$2:$G$44,2,FALSE)+ROW()-2))=Switch!$D$66,INDIRECT(\"a\" & (VLOOKUP(Switch!$D$66,$F$2:$G$44,2,FALSE)+ROW()-2)),\"\")","v":{"$error":"#N/A"}}]
["Baroque BCI Moderato FoF","MICF","Boutique Collective Investments (Pty) Ltd",{"$f":"ROW()","v":120},null,null,{"$f":"VLOOKUP(F120,$C$2:$D$637,2,FALSE)","v":{"$error":"#N/A"}},{"$f":"IF(INDIRECT(\"c\" & (VLOOKUP(Switch!$D$26,$F$2:$G$44,2,FALSE)+ROW()-2))=Switch!$D$26,INDIRECT(\"a\" & (VLOOKUP(Switch!$D$26,$F$2:$G$44,2,FALSE)+ROW()-2)),\"\")","v":{"$error":"#N/A"}},{"$f":"IF(INDIRECT(\"c\" & (VLOOKUP(Switch!$D$27,$F$2:$G$44,2,FALSE)+ROW()-2))=Switch!$D$27,INDIRECT(\"a\" & (VLOOKUP(Switch!$D$27,$F$2:$G$44,2,FALSE)+ROW()-2)),\"\")","v":{"$error":"#N/A"}},{"$f":"IF(INDIRECT(\"c\" & (VLOOKUP(Switch!$D$28,$F$2:$G$44,2,FALSE)+ROW()-2))=Switch!$D$28,INDIRECT(\"a\" & (VLOOKUP(Switch!$D$28,$F$2:$G$44,2,FALSE)+ROW()-2)),\"\")","v":{"$error":"#N/A"}},{"$f":"IF(INDIRECT(\"c\" & (VLOOKUP(Switch!$D$29,$F$2:$G$44,2,FALSE)+ROW()-2))=Switch!$D$29,INDIRECT(\"a\" & (VLOOKUP(Switch!$D$29,$F$2:$G$44,2,FALSE)+ROW()-2)),\"\")","v":{"$error":"#N/A"}},{"$f":"IF(INDIRECT(\"c\" & (VLOOKUP(Switch!$D$30,$F$2:$G$44,2,FALSE)+ROW()-2))=Switch!$D$30,INDIRECT(\"a\" & (VLOOKUP(Switch!$D$30,$F$2:$G$44,2,FALSE)+ROW()-2)),\"\")","v":{"$error":"#N/A"}},{"$f":"IF(INDIRECT(\"c\" & (VLOOKUP(Switch!$D$31,$F$2:$G$44,2,FALSE)+ROW()-2))=Switch!$D$31,INDIRECT(\"a\" & (VLOOKUP(Switch!$D$31,$F$2:$G$44,2,FALSE)+ROW()-2)),\"\")","v":{"$error":"#N/A"}},{"$f":"IF(INDIRECT(\"c\" & (VLOOKUP(Switch!$D$32,$F$2:$G$44,2,FALSE)+ROW()-2))=Switch!$D$32,INDIRECT(\"a\" & (VLOOKUP(Switch!$D$32,$F$2:$G$44,2,FALSE)+ROW()-2)),\"\")","v":{"$error":"#N/A"}},{"$f":"IF(INDIRECT(\"c\" & (VLOOKUP(Switch!$D$33,$F$2:$G$44,2,FALSE)+ROW()-2))=Switch!$D$33,INDIRECT(\"a\" & (VLOOKUP(Switch!$D$33,$F$2:$G$44,2,FALSE)+ROW()-2)),\"\")","v":{"$error":"#N/A"}},{"$f":"IF(INDIRECT(\"c\" & (VLOOKUP(Switch!$D$34,$F$2:$G$44,2,FALSE)+ROW()-2))=Switch!$D$34,INDIRECT(\"a\" & (VLOOKUP(Switch!$D$34,$F$2:$G$44,2,FALSE)+ROW()-2)),\"\")","v":{"$error":"#N/A"}},{"$f":"IF(INDIRECT(\"c\" & (VLOOKUP(Switch!$D$35,$F$2:$G$44,2,FALSE)+ROW()-2))=Switch!$D$35,INDIRECT(\"a\" & (VLOOKUP(Switch!$D$35,$F$2:$G$44,2,FALSE)+ROW()-2)),\"\")","v":{"$error":"#N/A"}},{"$f":"IF(INDIRECT(\"c\" & (VLOOKUP(Switch!$D$36,$F$2:$G$44,2,FALSE)+ROW()-2))=Switch!$D$36,INDIRECT(\"a\" & (VLOOKUP(Switch!$D$36,$F$2:$G$44,2,FALSE)+ROW()-2)),\"\")","v":{"$error":"#N/A"}},{"$f":"IF(INDIRECT(\"c\" & (VLOOKUP(Switch!$D$37,$F$2:$G$44,2,FALSE)+ROW()-2))=Switch!$D$37,INDIRECT(\"a\" & (VLOOKUP(Switch!$D$37,$F$2:$G$44,2,FALSE)+ROW()-2)),\"\")","v":{"$error":"#N/A"}},{"$f":"IF(INDIRECT(\"c\" & (VLOOKUP(Switch!$D$38,$F$2:$G$44,2,FALSE)+ROW()-2))=Switch!$D$38,INDIRECT(\"a\" & (VLOOKUP(Switch!$D$38,$F$2:$G$44,2,FALSE)+ROW()-2)),\"\")","v":{"$error":"#N/A"}},{"$f":"IF(INDIRECT(\"c\" & (VLOOKUP(Switch!$D$39,$F$2:$G$44,2,FALSE)+ROW()-2))=Switch!$D$39,INDIRECT(\"a\" & (VLOOKUP(Switch!$D$39,$F$2:$G$44,2,FALSE)+ROW()-2)),\"\")","v":{"$error":"#N/A"}},{"$f":"IF(INDIRECT(\"c\" & (VLOOKUP(Switch!$D$40,$F$2:$G$44,2,FALSE)+ROW()-2))=Switch!$D$40,INDIRECT(\"a\" & (VLOOKUP(Switch!$D$40,$F$2:$G$44,2,FALSE)+ROW()-2)),\"\")","v":{"$error":"#N/A"}},{"$f":"IF(INDIRECT(\"c\" & (VLOOKUP(Switch!$D$52,$F$2:$G$44,2,FALSE)+ROW()-2))=Switch!$D$52,INDIRECT(\"a\" & (VLOOKUP(Switch!$D$52,$F$2:$G$44,2,FALSE)+ROW()-2)),\"\")","v":{"$error":"#N/A"}},{"$f":"IF(INDIRECT(\"c\" & (VLOOKUP(Switch!$D$53,$F$2:$G$44,2,FALSE)+ROW()-2))=Switch!$D$53,INDIRECT(\"a\" & (VLOOKUP(Switch!$D$53,$F$2:$G$44,2,FALSE)+ROW()-2)),\"\")","v":{"$error":"#N/A"}},{"$f":"IF(INDIRECT(\"c\" & (VLOOKUP(Switch!$D$54,$F$2:$G$44,2,FALSE)+ROW()-2))=Switch!$D$54,INDIRECT(\"a\" & (VLOOKUP(Switch!$D$54,$F$2:$G$44,2,FALSE)+ROW()-2)),\"\")","v":{"$error":"#N/A"}},{"$f":"IF(INDIRECT(\"c\" & (VLOOKUP(Switch!$D$55,$F$2:$G$44,2,FALSE)+ROW()-2))=Switch!$D$55,INDIRECT(\"a\" & (VLOOKUP(Switch!$D$55,$F$2:$G$44,2,FALSE)+ROW()-2)),\"\")","v":{"$error":"#N/A"}},{"$f":"IF(INDIRECT(\"c\" & (VLOOKUP(Switch!$D$56,$F$2:$G$44,2,FALSE)+ROW()-2))=Switch!$D$56,INDIRECT(\"a\" & (VLOOKUP(Switch!$D$56,$F$2:$G$44,2,FALSE)+ROW()-2)),\"\")","v":{"$error":"#N/A"}},{"$f":"IF(INDIRECT(\"c\" & (VLOOKUP(Switch!$D$57,$F$2:$G$44,2,FALSE)+ROW()-2))=Switch!$D$57,INDIRECT(\"a\" & (VLOOKUP(Switch!$D$57,$F$2:$G$44,2,FALSE)+ROW()-2)),\"\")","v":{"$error":"#N/A"}},{"$f":"IF(INDIRECT(\"c\" & (VLOOKUP(Switch!$D$58,$F$2:$G$44,2,FALSE)+ROW()-2))=Switch!$D$58,INDIRECT(\"a\" & (VLOOKUP(Switch!$D$58,$F$2:$G$44,2,FALSE)+ROW()-2)),\"\")","v":{"$error":"#N/A"}},{"$f":"IF(INDIRECT(\"c\" & (VLOOKUP(Switch!$D$59,$F$2:$G$44,2,FALSE)+ROW()-2))=Switch!$D$59,INDIRECT(\"a\" & (VLOOKUP(Switch!$D$59,$F$2:$G$44,2,FALSE)+ROW()-2)),\"\")","v":{"$error":"#N/A"}},{"$f":"IF(INDIRECT(\"c\" & (VLOOKUP(Switch!$D$60,$F$2:$G$44,2,FALSE)+ROW()-2))=Switch!$D$60,INDIRECT(\"a\" & (VLOOKUP(Switch!$D$60,$F$2:$G$44,2,FALSE)+ROW()-2)),\"\")","v":{"$error":"#N/A"}},{"$f":"IF(INDIRECT(\"c\" & (VLOOKUP(Switch!$D$61,$F$2:$G$44,2,FALSE)+ROW()-2))=Switch!$D$61,INDIRECT(\"a\" & (VLOOKUP(Switch!$D$61,$F$2:$G$44,2,FALSE)+ROW()-2)),\"\")","v":{"$error":"#N/A"}},{"$f":"IF(INDIRECT(\"c\" & (VLOOKUP(Switch!$D$62,$F$2:$G$44,2,FALSE)+ROW()-2))=Switch!$D$62,INDIRECT(\"a\" & (VLOOKUP(Switch!$D$62,$F$2:$G$44,2,FALSE)+ROW()-2)),\"\")","v":{"$error":"#N/A"}},{"$f":"IF(INDIRECT(\"c\" & (VLOOKUP(Switch!$D$63,$F$2:$G$44,2,FALSE)+ROW()-2))=Switch!$D$63,INDIRECT(\"a\" & (VLOOKUP(Switch!$D$63,$F$2:$G$44,2,FALSE)+ROW()-2)),\"\")","v":{"$error":"#N/A"}},{"$f":"IF(INDIRECT(\"c\" & (VLOOKUP(Switch!$D$64,$F$2:$G$44,2,FALSE)+ROW()-2))=Switch!$D$64,INDIRECT(\"a\" & (VLOOKUP(Switch!$D$64,$F$2:$G$44,2,FALSE)+ROW()-2)),\"\")","v":{"$error":"#N/A"}},{"$f":"IF(INDIRECT(\"c\" & (VLOOKUP(Switch!$D$65,$F$2:$G$44,2,FALSE)+ROW()-2))=Switch!$D$65,INDIRECT(\"a\" & (VLOOKUP(Switch!$D$65,$F$2:$G$44,2,FALSE)+ROW()-2)),\"\")","v":{"$error":"#N/A"}},{"$f":"IF(INDIRECT(\"c\" & (VLOOKUP(Switch!$D$66,$F$2:$G$44,2,FALSE)+ROW()-2))=Switch!$D$66,INDIRECT(\"a\" & (VLOOKUP(Switch!$D$66,$F$2:$G$44,2,FALSE)+ROW()-2)),\"\")","v":{"$error":"#N/A"}}]
["Centaur BCI Balanced Fund A","CMBFA","Boutique Collective Investments (Pty) Ltd",{"$f":"ROW()","v":121},null,null,{"$f":"VLOOKUP(F121,$C$2:$D$637,2,FALSE)","v":{"$error":"#N/A"}},{"$f":"IF(INDIRECT(\"c\" & (VLOOKUP(Switch!$D$26,$F$2:$G$44,2,FALSE)+ROW()-2))=Switch!$D$26,INDIRECT(\"a\" & (VLOOKUP(Switch!$D$26,$F$2:$G$44,2,FALSE)+ROW()-2)),\"\")","v":{"$error":"#N/A"}},{"$f":"IF(INDIRECT(\"c\" & (VLOOKUP(Switch!$D$27,$F$2:$G$44,2,FALSE)+ROW()-2))=Switch!$D$27,INDIRECT(\"a\" & (VLOOKUP(Switch!$D$27,$F$2:$G$44,2,FALSE)+ROW()-2)),\"\")","v":{"$error":"#N/A"}},{"$f":"IF(INDIRECT(\"c\" & (VLOOKUP(Switch!$D$28,$F$2:$G$44,2,FALSE)+ROW()-2))=Switch!$D$28,INDIRECT(\"a\" & (VLOOKUP(Switch!$D$28,$F$2:$G$44,2,FALSE)+ROW()-2)),\"\")","v":{"$error":"#N/A"}},{"$f":"IF(INDIRECT(\"c\" & (VLOOKUP(Switch!$D$29,$F$2:$G$44,2,FALSE)+ROW()-2))=Switch!$D$29,INDIRECT(\"a\" & (VLOOKUP(Switch!$D$29,$F$2:$G$44,2,FALSE)+ROW()-2)),\"\")","v":{"$error":"#N/A"}},{"$f":"IF(INDIRECT(\"c\" & (VLOOKUP(Switch!$D$30,$F$2:$G$44,2,FALSE)+ROW()-2))=Switch!$D$30,INDIRECT(\"a\" & (VLOOKUP(Switch!$D$30,$F$2:$G$44,2,FALSE)+ROW()-2)),\"\")","v":{"$error":"#N/A"}},{"$f":"IF(INDIRECT(\"c\" & (VLOOKUP(Switch!$D$31,$F$2:$G$44,2,FALSE)+ROW()-2))=Switch!$D$31,INDIRECT(\"a\" & (VLOOKUP(Switch!$D$31,$F$2:$G$44,2,FALSE)+ROW()-2)),\"\")","v":{"$error":"#N/A"}},{"$f":"IF(INDIRECT(\"c\" & (VLOOKUP(Switch!$D$32,$F$2:$G$44,2,FALSE)+ROW()-2))=Switch!$D$32,INDIRECT(\"a\" & (VLOOKUP(Switch!$D$32,$F$2:$G$44,2,FALSE)+ROW()-2)),\"\")","v":{"$error":"#N/A"}},{"$f":"IF(INDIRECT(\"c\" & (VLOOKUP(Switch!$D$33,$F$2:$G$44,2,FALSE)+ROW()-2))=Switch!$D$33,INDIRECT(\"a\" & (VLOOKUP(Switch!$D$33,$F$2:$G$44,2,FALSE)+ROW()-2)),\"\")","v":{"$error":"#N/A"}},{"$f":"IF(INDIRECT(\"c\" & (VLOOKUP(Switch!$D$34,$F$2:$G$44,2,FALSE)+ROW()-2))=Switch!$D$34,INDIRECT(\"a\" & (VLOOKUP(Switch!$D$34,$F$2:$G$44,2,FALSE)+ROW()-2)),\"\")","v":{"$error":"#N/A"}},{"$f":"IF(INDIRECT(\"c\" & (VLOOKUP(Switch!$D$35,$F$2:$G$44,2,FALSE)+ROW()-2))=Switch!$D$35,INDIRECT(\"a\" & (VLOOKUP(Switch!$D$35,$F$2:$G$44,2,FALSE)+ROW()-2)),\"\")","v":{"$error":"#N/A"}},{"$f":"IF(INDIRECT(\"c\" & (VLOOKUP(Switch!$D$36,$F$2:$G$44,2,FALSE)+ROW()-2))=Switch!$D$36,INDIRECT(\"a\" & (VLOOKUP(Switch!$D$36,$F$2:$G$44,2,FALSE)+ROW()-2)),\"\")","v":{"$error":"#N/A"}},{"$f":"IF(INDIRECT(\"c\" & (VLOOKUP(Switch!$D$37,$F$2:$G$44,2,FALSE)+ROW()-2))=Switch!$D$37,INDIRECT(\"a\" & (VLOOKUP(Switch!$D$37,$F$2:$G$44,2,FALSE)+ROW()-2)),\"\")","v":{"$error":"#N/A"}},{"$f":"IF(INDIRECT(\"c\" & (VLOOKUP(Switch!$D$38,$F$2:$G$44,2,FALSE)+ROW()-2))=Switch!$D$38,INDIRECT(\"a\" & (VLOOKUP(Switch!$D$38,$F$2:$G$44,2,FALSE)+ROW()-2)),\"\")","v":{"$error":"#N/A"}},{"$f":"IF(INDIRECT(\"c\" & (VLOOKUP(Switch!$D$39,$F$2:$G$44,2,FALSE)+ROW()-2))=Switch!$D$39,INDIRECT(\"a\" & (VLOOKUP(Switch!$D$39,$F$2:$G$44,2,FALSE)+ROW()-2)),\"\")","v":{"$error":"#N/A"}},{"$f":"IF(INDIRECT(\"c\" & (VLOOKUP(Switch!$D$40,$F$2:$G$44,2,FALSE)+ROW()-2))=Switch!$D$40,INDIRECT(\"a\" & (VLOOKUP(Switch!$D$40,$F$2:$G$44,2,FALSE)+ROW()-2)),\"\")","v":{"$error":"#N/A"}},{"$f":"IF(INDIRECT(\"c\" & (VLOOKUP(Switch!$D$52,$F$2:$G$44,2,FALSE)+ROW()-2))=Switch!$D$52,INDIRECT(\"a\" & (VLOOKUP(Switch!$D$52,$F$2:$G$44,2,FALSE)+ROW()-2)),\"\")","v":{"$error":"#N/A"}},{"$f":"IF(INDIRECT(\"c\" & (VLOOKUP(Switch!$D$53,$F$2:$G$44,2,FALSE)+ROW()-2))=Switch!$D$53,INDIRECT(\"a\" & (VLOOKUP(Switch!$D$53,$F$2:$G$44,2,FALSE)+ROW()-2)),\"\")","v":{"$error":"#N/A"}},{"$f":"IF(INDIRECT(\"c\" & (VLOOKUP(Switch!$D$54,$F$2:$G$44,2,FALSE)+ROW()-2))=Switch!$D$54,INDIRECT(\"a\" & (VLOOKUP(Switch!$D$54,$F$2:$G$44,2,FALSE)+ROW()-2)),\"\")","v":{"$error":"#N/A"}},{"$f":"IF(INDIRECT(\"c\" & (VLOOKUP(Switch!$D$55,$F$2:$G$44,2,FALSE)+ROW()-2))=Switch!$D$55,INDIRECT(\"a\" & (VLOOKUP(Switch!$D$55,$F$2:$G$44,2,FALSE)+ROW()-2)),\"\")","v":{"$error":"#N/A"}},{"$f":"IF(INDIRECT(\"c\" & (VLOOKUP(Switch!$D$56,$F$2:$G$44,2,FALSE)+ROW()-2))=Switch!$D$56,INDIRECT(\"a\" & (VLOOKUP(Switch!$D$56,$F$2:$G$44,2,FALSE)+ROW()-2)),\"\")","v":{"$error":"#N/A"}},{"$f":"IF(INDIRECT(\"c\" & (VLOOKUP(Switch!$D$57,$F$2:$G$44,2,FALSE)+ROW()-2))=Switch!$D$57,INDIRECT(\"a\" & (VLOOKUP(Switch!$D$57,$F$2:$G$44,2,FALSE)+ROW()-2)),\"\")","v":{"$error":"#N/A"}},{"$f":"IF(INDIRECT(\"c\" & (VLOOKUP(Switch!$D$58,$F$2:$G$44,2,FALSE)+ROW()-2))=Switch!$D$58,INDIRECT(\"a\" & (VLOOKUP(Switch!$D$58,$F$2:$G$44,2,FALSE)+ROW()-2)),\"\")","v":{"$error":"#N/A"}},{"$f":"IF(INDIRECT(\"c\" & (VLOOKUP(Switch!$D$59,$F$2:$G$44,2,FALSE)+ROW()-2))=Switch!$D$59,INDIRECT(\"a\" & (VLOOKUP(Switch!$D$59,$F$2:$G$44,2,FALSE)+ROW()-2)),\"\")","v":{"$error":"#N/A"}},{"$f":"IF(INDIRECT(\"c\" & (VLOOKUP(Switch!$D$60,$F$2:$G$44,2,FALSE)+ROW()-2))=Switch!$D$60,INDIRECT(\"a\" & (VLOOKUP(Switch!$D$60,$F$2:$G$44,2,FALSE)+ROW()-2)),\"\")","v":{"$error":"#N/A"}},{"$f":"IF(INDIRECT(\"c\" & (VLOOKUP(Switch!$D$61,$F$2:$G$44,2,FALSE)+ROW()-2))=Switch!$D$61,INDIRECT(\"a\" & (VLOOKUP(Switch!$D$61,$F$2:$G$44,2,FALSE)+ROW()-2)),\"\")","v":{"$error":"#N/A"}},{"$f":"IF(INDIRECT(\"c\" & (VLOOKUP(Switch!$D$62,$F$2:$G$44,2,FALSE)+ROW()-2))=Switch!$D$62,INDIRECT(\"a\" & (VLOOKUP(Switch!$D$62,$F$2:$G$44,2,FALSE)+ROW()-2)),\"\")","v":{"$error":"#N/A"}},{"$f":"IF(INDIRECT(\"c\" & (VLOOKUP(Switch!$D$63,$F$2:$G$44,2,FALSE)+ROW()-2))=Switch!$D$63,INDIRECT(\"a\" & (VLOOKUP(Switch!$D$63,$F$2:$G$44,2,FALSE)+ROW()-2)),\"\")","v":{"$error":"#N/A"}},{"$f":"IF(INDIRECT(\"c\" & (VLOOKUP(Switch!$D$64,$F$2:$G$44,2,FALSE)+ROW()-2))=Switch!$D$64,INDIRECT(\"a\" & (VLOOKUP(Switch!$D$64,$F$2:$G$44,2,FALSE)+ROW()-2)),\"\")","v":{"$error":"#N/A"}},{"$f":"IF(INDIRECT(\"c\" & (VLOOKUP(Switch!$D$65,$F$2:$G$44,2,FALSE)+ROW()-2))=Switch!$D$65,INDIRECT(\"a\" & (VLOOKUP(Switch!$D$65,$F$2:$G$44,2,FALSE)+ROW()-2)),\"\")","v":{"$error":"#N/A"}},{"$f":"IF(INDIRECT(\"c\" & (VLOOKUP(Switch!$D$66,$F$2:$G$44,2,FALSE)+ROW()-2))=Switch!$D$66,INDIRECT(\"a\" & (VLOOKUP(Switch!$D$66,$F$2:$G$44,2,FALSE)+ROW()-2)),\"\")","v":{"$error":"#N/A"}}]
["Centaur BCI Flexible Fund C","CMFCC","Boutique Collective Investments (Pty) Ltd",{"$f":"ROW()","v":122},null,null,{"$f":"VLOOKUP(F122,$C$2:$D$637,2,FALSE)","v":{"$error":"#N/A"}},{"$f":"IF(INDIRECT(\"c\" & (VLOOKUP(Switch!$D$26,$F$2:$G$44,2,FALSE)+ROW()-2))=Switch!$D$26,INDIRECT(\"a\" & (VLOOKUP(Switch!$D$26,$F$2:$G$44,2,FALSE)+ROW()-2)),\"\")","v":{"$error":"#N/A"}},{"$f":"IF(INDIRECT(\"c\" & (VLOOKUP(Switch!$D$27,$F$2:$G$44,2,FALSE)+ROW()-2))=Switch!$D$27,INDIRECT(\"a\" & (VLOOKUP(Switch!$D$27,$F$2:$G$44,2,FALSE)+ROW()-2)),\"\")","v":{"$error":"#N/A"}},{"$f":"IF(INDIRECT(\"c\" & (VLOOKUP(Switch!$D$28,$F$2:$G$44,2,FALSE)+ROW()-2))=Switch!$D$28,INDIRECT(\"a\" & (VLOOKUP(Switch!$D$28,$F$2:$G$44,2,FALSE)+ROW()-2)),\"\")","v":{"$error":"#N/A"}},{"$f":"IF(INDIRECT(\"c\" & (VLOOKUP(Switch!$D$29,$F$2:$G$44,2,FALSE)+ROW()-2))=Switch!$D$29,INDIRECT(\"a\" & (VLOOKUP(Switch!$D$29,$F$2:$G$44,2,FALSE)+ROW()-2)),\"\")","v":{"$error":"#N/A"}},{"$f":"IF(INDIRECT(\"c\" & (VLOOKUP(Switch!$D$30,$F$2:$G$44,2,FALSE)+ROW()-2))=Switch!$D$30,INDIRECT(\"a\" & (VLOOKUP(Switch!$D$30,$F$2:$G$44,2,FALSE)+ROW()-2)),\"\")","v":{"$error":"#N/A"}},{"$f":"IF(INDIRECT(\"c\" & (VLOOKUP(Switch!$D$31,$F$2:$G$44,2,FALSE)+ROW()-2))=Switch!$D$31,INDIRECT(\"a\" & (VLOOKUP(Switch!$D$31,$F$2:$G$44,2,FALSE)+ROW()-2)),\"\")","v":{"$error":"#N/A"}},{"$f":"IF(INDIRECT(\"c\" & (VLOOKUP(Switch!$D$32,$F$2:$G$44,2,FALSE)+ROW()-2))=Switch!$D$32,INDIRECT(\"a\" & (VLOOKUP(Switch!$D$32,$F$2:$G$44,2,FALSE)+ROW()-2)),\"\")","v":{"$error":"#N/A"}},{"$f":"IF(INDIRECT(\"c\" & (VLOOKUP(Switch!$D$33,$F$2:$G$44,2,FALSE)+ROW()-2))=Switch!$D$33,INDIRECT(\"a\" & (VLOOKUP(Switch!$D$33,$F$2:$G$44,2,FALSE)+ROW()-2)),\"\")","v":{"$error":"#N/A"}},{"$f":"IF(INDIRECT(\"c\" & (VLOOKUP(Switch!$D$34,$F$2:$G$44,2,FALSE)+ROW()-2))=Switch!$D$34,INDIRECT(\"a\" & (VLOOKUP(Switch!$D$34,$F$2:$G$44,2,FALSE)+ROW()-2)),\"\")","v":{"$error":"#N/A"}},{"$f":"IF(INDIRECT(\"c\" & (VLOOKUP(Switch!$D$35,$F$2:$G$44,2,FALSE)+ROW()-2))=Switch!$D$35,INDIRECT(\"a\" & (VLOOKUP(Switch!$D$35,$F$2:$G$44,2,FALSE)+ROW()-2)),\"\")","v":{"$error":"#N/A"}},{"$f":"IF(INDIRECT(\"c\" & (VLOOKUP(Switch!$D$36,$F$2:$G$44,2,FALSE)+ROW()-2))=Switch!$D$36,INDIRECT(\"a\" & (VLOOKUP(Switch!$D$36,$F$2:$G$44,2,FALSE)+ROW()-2)),\"\")","v":{"$error":"#N/A"}},{"$f":"IF(INDIRECT(\"c\" & (VLOOKUP(Switch!$D$37,$F$2:$G$44,2,FALSE)+ROW()-2))=Switch!$D$37,INDIRECT(\"a\" & (VLOOKUP(Switch!$D$37,$F$2:$G$44,2,FALSE)+ROW()-2)),\"\")","v":{"$error":"#N/A"}},{"$f":"IF(INDIRECT(\"c\" & (VLOOKUP(Switch!$D$38,$F$2:$G$44,2,FALSE)+ROW()-2))=Switch!$D$38,INDIRECT(\"a\" & (VLOOKUP(Switch!$D$38,$F$2:$G$44,2,FALSE)+ROW()-2)),\"\")","v":{"$error":"#N/A"}},{"$f":"IF(INDIRECT(\"c\" & (VLOOKUP(Switch!$D$39,$F$2:$G$44,2,FALSE)+ROW()-2))=Switch!$D$39,INDIRECT(\"a\" & (VLOOKUP(Switch!$D$39,$F$2:$G$44,2,FALSE)+ROW()-2)),\"\")","v":{"$error":"#N/A"}},{"$f":"IF(INDIRECT(\"c\" & (VLOOKUP(Switch!$D$40,$F$2:$G$44,2,FALSE)+ROW()-2))=Switch!$D$40,INDIRECT(\"a\" & (VLOOKUP(Switch!$D$40,$F$2:$G$44,2,FALSE)+ROW()-2)),\"\")","v":{"$error":"#N/A"}},{"$f":"IF(INDIRECT(\"c\" & (VLOOKUP(Switch!$D$52,$F$2:$G$44,2,FALSE)+ROW()-2))=Switch!$D$52,INDIRECT(\"a\" & (VLOOKUP(Switch!$D$52,$F$2:$G$44,2,FALSE)+ROW()-2)),\"\")","v":{"$error":"#N/A"}},{"$f":"IF(INDIRECT(\"c\" & (VLOOKUP(Switch!$D$53,$F$2:$G$44,2,FALSE)+ROW()-2))=Switch!$D$53,INDIRECT(\"a\" & (VLOOKUP(Switch!$D$53,$F$2:$G$44,2,FALSE)+ROW()-2)),\"\")","v":{"$error":"#N/A"}},{"$f":"IF(INDIRECT(\"c\" & (VLOOKUP(Switch!$D$54,$F$2:$G$44,2,FALSE)+ROW()-2))=Switch!$D$54,INDIRECT(\"a\" & (VLOOKUP(Switch!$D$54,$F$2:$G$44,2,FALSE)+ROW()-2)),\"\")","v":{"$error":"#N/A"}},{"$f":"IF(INDIRECT(\"c\" & (VLOOKUP(Switch!$D$55,$F$2:$G$44,2,FALSE)+ROW()-2))=Switch!$D$55,INDIRECT(\"a\" & (VLOOKUP(Switch!$D$55,$F$2:$G$44,2,FALSE)+ROW()-2)),\"\")","v":{"$error":"#N/A"}},{"$f":"IF(INDIRECT(\"c\" & (VLOOKUP(Switch!$D$56,$F$2:$G$44,2,FALSE)+ROW()-2))=Switch!$D$56,INDIRECT(\"a\" & (VLOOKUP(Switch!$D$56,$F$2:$G$44,2,FALSE)+ROW()-2)),\"\")","v":{"$error":"#N/A"}},{"$f":"IF(INDIRECT(\"c\" & (VLOOKUP(Switch!$D$57,$F$2:$G$44,2,FALSE)+ROW()-2))=Switch!$D$57,INDIRECT(\"a\" & (VLOOKUP(Switch!$D$57,$F$2:$G$44,2,FALSE)+ROW()-2)),\"\")","v":{"$error":"#N/A"}},{"$f":"IF(INDIRECT(\"c\" & (VLOOKUP(Switch!$D$58,$F$2:$G$44,2,FALSE)+ROW()-2))=Switch!$D$58,INDIRECT(\"a\" & (VLOOKUP(Switch!$D$58,$F$2:$G$44,2,FALSE)+ROW()-2)),\"\")","v":{"$error":"#N/A"}},{"$f":"IF(INDIRECT(\"c\" & (VLOOKUP(Switch!$D$59,$F$2:$G$44,2,FALSE)+ROW()-2))=Switch!$D$59,INDIRECT(\"a\" & (VLOOKUP(Switch!$D$59,$F$2:$G$44,2,FALSE)+ROW()-2)),\"\")","v":{"$error":"#N/A"}},{"$f":"IF(INDIRECT(\"c\" & (VLOOKUP(Switch!$D$60,$F$2:$G$44,2,FALSE)+ROW()-2))=Switch!$D$60,INDIRECT(\"a\" & (VLOOKUP(Switch!$D$60,$F$2:$G$44,2,FALSE)+ROW()-2)),\"\")","v":{"$error":"#N/A"}},{"$f":"IF(INDIRECT(\"c\" & (VLOOKUP(Switch!$D$61,$F$2:$G$44,2,FALSE)+ROW()-2))=Switch!$D$61,INDIRECT(\"a\" & (VLOOKUP(Switch!$D$61,$F$2:$G$44,2,FALSE)+ROW()-2)),\"\")","v":{"$error":"#N/A"}},{"$f":"IF(INDIRECT(\"c\" & (VLOOKUP(Switch!$D$62,$F$2:$G$44,2,FALSE)+ROW()-2))=Switch!$D$62,INDIRECT(\"a\" & (VLOOKUP(Switch!$D$62,$F$2:$G$44,2,FALSE)+ROW()-2)),\"\")","v":{"$error":"#N/A"}},{"$f":"IF(INDIRECT(\"c\" & (VLOOKUP(Switch!$D$63,$F$2:$G$44,2,FALSE)+ROW()-2))=Switch!$D$63,INDIRECT(\"a\" & (VLOOKUP(Switch!$D$63,$F$2:$G$44,2,FALSE)+ROW()-2)),\"\")","v":{"$error":"#N/A"}},{"$f":"IF(INDIRECT(\"c\" & (VLOOKUP(Switch!$D$64,$F$2:$G$44,2,FALSE)+ROW()-2))=Switch!$D$64,INDIRECT(\"a\" & (VLOOKUP(Switch!$D$64,$F$2:$G$44,2,FALSE)+ROW()-2)),\"\")","v":{"$error":"#N/A"}},{"$f":"IF(INDIRECT(\"c\" & (VLOOKUP(Switch!$D$65,$F$2:$G$44,2,FALSE)+ROW()-2))=Switch!$D$65,INDIRECT(\"a\" & (VLOOKUP(Switch!$D$65,$F$2:$G$44,2,FALSE)+ROW()-2)),\"\")","v":{"$error":"#N/A"}},{"$f":"IF(INDIRECT(\"c\" & (VLOOKUP(Switch!$D$66,$F$2:$G$44,2,FALSE)+ROW()-2))=Switch!$D$66,INDIRECT(\"a\" & (VLOOKUP(Switch!$D$66,$F$2:$G$44,2,FALSE)+ROW()-2)),\"\")","v":{"$error":"#N/A"}}]
["Cinnabar BCI Balanced Fund of Funds A","CBCBFA","Boutique Collective Investments (Pty) Ltd",{"$f":"ROW()","v":123},null,null,{"$f":"VLOOKUP(F123,$C$2:$D$637,2,FALSE)","v":{"$error":"#N/A"}},{"$f":"IF(INDIRECT(\"c\" & (VLOOKUP(Switch!$D$26,$F$2:$G$44,2,FALSE)+ROW()-2))=Switch!$D$26,INDIRECT(\"a\" & (VLOOKUP(Switch!$D$26,$F$2:$G$44,2,FALSE)+ROW()-2)),\"\")","v":{"$error":"#N/A"}},{"$f":"IF(INDIRECT(\"c\" & (VLOOKUP(Switch!$D$27,$F$2:$G$44,2,FALSE)+ROW()-2))=Switch!$D$27,INDIRECT(\"a\" & (VLOOKUP(Switch!$D$27,$F$2:$G$44,2,FALSE)+ROW()-2)),\"\")","v":{"$error":"#N/A"}},{"$f":"IF(INDIRECT(\"c\" & (VLOOKUP(Switch!$D$28,$F$2:$G$44,2,FALSE)+ROW()-2))=Switch!$D$28,INDIRECT(\"a\" & (VLOOKUP(Switch!$D$28,$F$2:$G$44,2,FALSE)+ROW()-2)),\"\")","v":{"$error":"#N/A"}},{"$f":"IF(INDIRECT(\"c\" & (VLOOKUP(Switch!$D$29,$F$2:$G$44,2,FALSE)+ROW()-2))=Switch!$D$29,INDIRECT(\"a\" & (VLOOKUP(Switch!$D$29,$F$2:$G$44,2,FALSE)+ROW()-2)),\"\")","v":{"$error":"#N/A"}},{"$f":"IF(INDIRECT(\"c\" & (VLOOKUP(Switch!$D$30,$F$2:$G$44,2,FALSE)+ROW()-2))=Switch!$D$30,INDIRECT(\"a\" & (VLOOKUP(Switch!$D$30,$F$2:$G$44,2,FALSE)+ROW()-2)),\"\")","v":{"$error":"#N/A"}},{"$f":"IF(INDIRECT(\"c\" & (VLOOKUP(Switch!$D$31,$F$2:$G$44,2,FALSE)+ROW()-2))=Switch!$D$31,INDIRECT(\"a\" & (VLOOKUP(Switch!$D$31,$F$2:$G$44,2,FALSE)+ROW()-2)),\"\")","v":{"$error":"#N/A"}},{"$f":"IF(INDIRECT(\"c\" & (VLOOKUP(Switch!$D$32,$F$2:$G$44,2,FALSE)+ROW()-2))=Switch!$D$32,INDIRECT(\"a\" & (VLOOKUP(Switch!$D$32,$F$2:$G$44,2,FALSE)+ROW()-2)),\"\")","v":{"$error":"#N/A"}},{"$f":"IF(INDIRECT(\"c\" & (VLOOKUP(Switch!$D$33,$F$2:$G$44,2,FALSE)+ROW()-2))=Switch!$D$33,INDIRECT(\"a\" & (VLOOKUP(Switch!$D$33,$F$2:$G$44,2,FALSE)+ROW()-2)),\"\")","v":{"$error":"#N/A"}},{"$f":"IF(INDIRECT(\"c\" & (VLOOKUP(Switch!$D$34,$F$2:$G$44,2,FALSE)+ROW()-2))=Switch!$D$34,INDIRECT(\"a\" & (VLOOKUP(Switch!$D$34,$F$2:$G$44,2,FALSE)+ROW()-2)),\"\")","v":{"$error":"#N/A"}},{"$f":"IF(INDIRECT(\"c\" & (VLOOKUP(Switch!$D$35,$F$2:$G$44,2,FALSE)+ROW()-2))=Switch!$D$35,INDIRECT(\"a\" & (VLOOKUP(Switch!$D$35,$F$2:$G$44,2,FALSE)+ROW()-2)),\"\")","v":{"$error":"#N/A"}},{"$f":"IF(INDIRECT(\"c\" & (VLOOKUP(Switch!$D$36,$F$2:$G$44,2,FALSE)+ROW()-2))=Switch!$D$36,INDIRECT(\"a\" & (VLOOKUP(Switch!$D$36,$F$2:$G$44,2,FALSE)+ROW()-2)),\"\")","v":{"$error":"#N/A"}},{"$f":"IF(INDIRECT(\"c\" & (VLOOKUP(Switch!$D$37,$F$2:$G$44,2,FALSE)+ROW()-2))=Switch!$D$37,INDIRECT(\"a\" & (VLOOKUP(Switch!$D$37,$F$2:$G$44,2,FALSE)+ROW()-2)),\"\")","v":{"$error":"#N/A"}},{"$f":"IF(INDIRECT(\"c\" & (VLOOKUP(Switch!$D$38,$F$2:$G$44,2,FALSE)+ROW()-2))=Switch!$D$38,INDIRECT(\"a\" & (VLOOKUP(Switch!$D$38,$F$2:$G$44,2,FALSE)+ROW()-2)),\"\")","v":{"$error":"#N/A"}},{"$f":"IF(INDIRECT(\"c\" & (VLOOKUP(Switch!$D$39,$F$2:$G$44,2,FALSE)+ROW()-2))=Switch!$D$39,INDIRECT(\"a\" & (VLOOKUP(Switch!$D$39,$F$2:$G$44,2,FALSE)+ROW()-2)),\"\")","v":{"$error":"#N/A"}},{"$f":"IF(INDIRECT(\"c\" & (VLOOKUP(Switch!$D$40,$F$2:$G$44,2,FALSE)+ROW()-2))=Switch!$D$40,INDIRECT(\"a\" & (VLOOKUP(Switch!$D$40,$F$2:$G$44,2,FALSE)+ROW()-2)),\"\")","v":{"$error":"#N/A"}},{"$f":"IF(INDIRECT(\"c\" & (VLOOKUP(Switch!$D$52,$F$2:$G$44,2,FALSE)+ROW()-2))=Switch!$D$52,INDIRECT(\"a\" & (VLOOKUP(Switch!$D$52,$F$2:$G$44,2,FALSE)+ROW()-2)),\"\")","v":{"$error":"#N/A"}},{"$f":"IF(INDIRECT(\"c\" & (VLOOKUP(Switch!$D$53,$F$2:$G$44,2,FALSE)+ROW()-2))=Switch!$D$53,INDIRECT(\"a\" & (VLOOKUP(Switch!$D$53,$F$2:$G$44,2,FALSE)+ROW()-2)),\"\")","v":{"$error":"#N/A"}},{"$f":"IF(INDIRECT(\"c\" & (VLOOKUP(Switch!$D$54,$F$2:$G$44,2,FALSE)+ROW()-2))=Switch!$D$54,INDIRECT(\"a\" & (VLOOKUP(Switch!$D$54,$F$2:$G$44,2,FALSE)+ROW()-2)),\"\")","v":{"$error":"#N/A"}},{"$f":"IF(INDIRECT(\"c\" & (VLOOKUP(Switch!$D$55,$F$2:$G$44,2,FALSE)+ROW()-2))=Switch!$D$55,INDIRECT(\"a\" & (VLOOKUP(Switch!$D$55,$F$2:$G$44,2,FALSE)+ROW()-2)),\"\")","v":{"$error":"#N/A"}},{"$f":"IF(INDIRECT(\"c\" & (VLOOKUP(Switch!$D$56,$F$2:$G$44,2,FALSE)+ROW()-2))=Switch!$D$56,INDIRECT(\"a\" & (VLOOKUP(Switch!$D$56,$F$2:$G$44,2,FALSE)+ROW()-2)),\"\")","v":{"$error":"#N/A"}},{"$f":"IF(INDIRECT(\"c\" & (VLOOKUP(Switch!$D$57,$F$2:$G$44,2,FALSE)+ROW()-2))=Switch!$D$57,INDIRECT(\"a\" & (VLOOKUP(Switch!$D$57,$F$2:$G$44,2,FALSE)+ROW()-2)),\"\")","v":{"$error":"#N/A"}},{"$f":"IF(INDIRECT(\"c\" & (VLOOKUP(Switch!$D$58,$F$2:$G$44,2,FALSE)+ROW()-2))=Switch!$D$58,INDIRECT(\"a\" & (VLOOKUP(Switch!$D$58,$F$2:$G$44,2,FALSE)+ROW()-2)),\"\")","v":{"$error":"#N/A"}},{"$f":"IF(INDIRECT(\"c\" & (VLOOKUP(Switch!$D$59,$F$2:$G$44,2,FALSE)+ROW()-2))=Switch!$D$59,INDIRECT(\"a\" & (VLOOKUP(Switch!$D$59,$F$2:$G$44,2,FALSE)+ROW()-2)),\"\")","v":{"$error":"#N/A"}},{"$f":"IF(INDIRECT(\"c\" & (VLOOKUP(Switch!$D$60,$F$2:$G$44,2,FALSE)+ROW()-2))=Switch!$D$60,INDIRECT(\"a\" & (VLOOKUP(Switch!$D$60,$F$2:$G$44,2,FALSE)+ROW()-2)),\"\")","v":{"$error":"#N/A"}},{"$f":"IF(INDIRECT(\"c\" & (VLOOKUP(Switch!$D$61,$F$2:$G$44,2,FALSE)+ROW()-2))=Switch!$D$61,INDIRECT(\"a\" & (VLOOKUP(Switch!$D$61,$F$2:$G$44,2,FALSE)+ROW()-2)),\"\")","v":{"$error":"#N/A"}},{"$f":"IF(INDIRECT(\"c\" & (VLOOKUP(Switch!$D$62,$F$2:$G$44,2,FALSE)+ROW()-2))=Switch!$D$62,INDIRECT(\"a\" & (VLOOKUP(Switch!$D$62,$F$2:$G$44,2,FALSE)+ROW()-2)),\"\")","v":{"$error":"#N/A"}},{"$f":"IF(INDIRECT(\"c\" & (VLOOKUP(Switch!$D$63,$F$2:$G$44,2,FALSE)+ROW()-2))=Switch!$D$63,INDIRECT(\"a\" & (VLOOKUP(Switch!$D$63,$F$2:$G$44,2,FALSE)+ROW()-2)),\"\")","v":{"$error":"#N/A"}},{"$f":"IF(INDIRECT(\"c\" & (VLOOKUP(Switch!$D$64,$F$2:$G$44,2,FALSE)+ROW()-2))=Switch!$D$64,INDIRECT(\"a\" & (VLOOKUP(Switch!$D$64,$F$2:$G$44,2,FALSE)+ROW()-2)),\"\")","v":{"$error":"#N/A"}},{"$f":"IF(INDIRECT(\"c\" & (VLOOKUP(Switch!$D$65,$F$2:$G$44,2,FALSE)+ROW()-2))=Switch!$D$65,INDIRECT(\"a\" & (VLOOKUP(Switch!$D$65,$F$2:$G$44,2,FALSE)+ROW()-2)),\"\")","v":{"$error":"#N/A"}},{"$f":"IF(INDIRECT(\"c\" & (VLOOKUP(Switch!$D$66,$F$2:$G$44,2,FALSE)+ROW()-2))=Switch!$D$66,INDIRECT(\"a\" & (VLOOKUP(Switch!$D$66,$F$2:$G$44,2,FALSE)+ROW()-2)),\"\")","v":{"$error":"#N/A"}}]
["BCI Africa Equity Fund B","BAEFC","Boutique Collective Investments (Pty) Ltd",{"$f":"ROW()","v":124},null,null,{"$f":"VLOOKUP(F124,$C$2:$D$637,2,FALSE)","v":{"$error":"#N/A"}},{"$f":"IF(INDIRECT(\"c\" & (VLOOKUP(Switch!$D$26,$F$2:$G$44,2,FALSE)+ROW()-2))=Switch!$D$26,INDIRECT(\"a\" & (VLOOKUP(Switch!$D$26,$F$2:$G$44,2,FALSE)+ROW()-2)),\"\")","v":{"$error":"#N/A"}},{"$f":"IF(INDIRECT(\"c\" & (VLOOKUP(Switch!$D$27,$F$2:$G$44,2,FALSE)+ROW()-2))=Switch!$D$27,INDIRECT(\"a\" & (VLOOKUP(Switch!$D$27,$F$2:$G$44,2,FALSE)+ROW()-2)),\"\")","v":{"$error":"#N/A"}},{"$f":"IF(INDIRECT(\"c\" & (VLOOKUP(Switch!$D$28,$F$2:$G$44,2,FALSE)+ROW()-2))=Switch!$D$28,INDIRECT(\"a\" & (VLOOKUP(Switch!$D$28,$F$2:$G$44,2,FALSE)+ROW()-2)),\"\")","v":{"$error":"#N/A"}},{"$f":"IF(INDIRECT(\"c\" & (VLOOKUP(Switch!$D$29,$F$2:$G$44,2,FALSE)+ROW()-2))=Switch!$D$29,INDIRECT(\"a\" & (VLOOKUP(Switch!$D$29,$F$2:$G$44,2,FALSE)+ROW()-2)),\"\")","v":{"$error":"#N/A"}},{"$f":"IF(INDIRECT(\"c\" & (VLOOKUP(Switch!$D$30,$F$2:$G$44,2,FALSE)+ROW()-2))=Switch!$D$30,INDIRECT(\"a\" & (VLOOKUP(Switch!$D$30,$F$2:$G$44,2,FALSE)+ROW()-2)),\"\")","v":{"$error":"#N/A"}},{"$f":"IF(INDIRECT(\"c\" & (VLOOKUP(Switch!$D$31,$F$2:$G$44,2,FALSE)+ROW()-2))=Switch!$D$31,INDIRECT(\"a\" & (VLOOKUP(Switch!$D$31,$F$2:$G$44,2,FALSE)+ROW()-2)),\"\")","v":{"$error":"#N/A"}},{"$f":"IF(INDIRECT(\"c\" & (VLOOKUP(Switch!$D$32,$F$2:$G$44,2,FALSE)+ROW()-2))=Switch!$D$32,INDIRECT(\"a\" & (VLOOKUP(Switch!$D$32,$F$2:$G$44,2,FALSE)+ROW()-2)),\"\")","v":{"$error":"#N/A"}},{"$f":"IF(INDIRECT(\"c\" & (VLOOKUP(Switch!$D$33,$F$2:$G$44,2,FALSE)+ROW()-2))=Switch!$D$33,INDIRECT(\"a\" & (VLOOKUP(Switch!$D$33,$F$2:$G$44,2,FALSE)+ROW()-2)),\"\")","v":{"$error":"#N/A"}},{"$f":"IF(INDIRECT(\"c\" & (VLOOKUP(Switch!$D$34,$F$2:$G$44,2,FALSE)+ROW()-2))=Switch!$D$34,INDIRECT(\"a\" & (VLOOKUP(Switch!$D$34,$F$2:$G$44,2,FALSE)+ROW()-2)),\"\")","v":{"$error":"#N/A"}},{"$f":"IF(INDIRECT(\"c\" & (VLOOKUP(Switch!$D$35,$F$2:$G$44,2,FALSE)+ROW()-2))=Switch!$D$35,INDIRECT(\"a\" & (VLOOKUP(Switch!$D$35,$F$2:$G$44,2,FALSE)+ROW()-2)),\"\")","v":{"$error":"#N/A"}},{"$f":"IF(INDIRECT(\"c\" & (VLOOKUP(Switch!$D$36,$F$2:$G$44,2,FALSE)+ROW()-2))=Switch!$D$36,INDIRECT(\"a\" & (VLOOKUP(Switch!$D$36,$F$2:$G$44,2,FALSE)+ROW()-2)),\"\")","v":{"$error":"#N/A"}},{"$f":"IF(INDIRECT(\"c\" & (VLOOKUP(Switch!$D$37,$F$2:$G$44,2,FALSE)+ROW()-2))=Switch!$D$37,INDIRECT(\"a\" & (VLOOKUP(Switch!$D$37,$F$2:$G$44,2,FALSE)+ROW()-2)),\"\")","v":{"$error":"#N/A"}},{"$f":"IF(INDIRECT(\"c\" & (VLOOKUP(Switch!$D$38,$F$2:$G$44,2,FALSE)+ROW()-2))=Switch!$D$38,INDIRECT(\"a\" & (VLOOKUP(Switch!$D$38,$F$2:$G$44,2,FALSE)+ROW()-2)),\"\")","v":{"$error":"#N/A"}},{"$f":"IF(INDIRECT(\"c\" & (VLOOKUP(Switch!$D$39,$F$2:$G$44,2,FALSE)+ROW()-2))=Switch!$D$39,INDIRECT(\"a\" & (VLOOKUP(Switch!$D$39,$F$2:$G$44,2,FALSE)+ROW()-2)),\"\")","v":{"$error":"#N/A"}},{"$f":"IF(INDIRECT(\"c\" & (VLOOKUP(Switch!$D$40,$F$2:$G$44,2,FALSE)+ROW()-2))=Switch!$D$40,INDIRECT(\"a\" & (VLOOKUP(Switch!$D$40,$F$2:$G$44,2,FALSE)+ROW()-2)),\"\")","v":{"$error":"#N/A"}},{"$f":"IF(INDIRECT(\"c\" & (VLOOKUP(Switch!$D$52,$F$2:$G$44,2,FALSE)+ROW()-2))=Switch!$D$52,INDIRECT(\"a\" & (VLOOKUP(Switch!$D$52,$F$2:$G$44,2,FALSE)+ROW()-2)),\"\")","v":{"$error":"#N/A"}},{"$f":"IF(INDIRECT(\"c\" & (VLOOKUP(Switch!$D$53,$F$2:$G$44,2,FALSE)+ROW()-2))=Switch!$D$53,INDIRECT(\"a\" & (VLOOKUP(Switch!$D$53,$F$2:$G$44,2,FALSE)+ROW()-2)),\"\")","v":{"$error":"#N/A"}},{"$f":"IF(INDIRECT(\"c\" & (VLOOKUP(Switch!$D$54,$F$2:$G$44,2,FALSE)+ROW()-2))=Switch!$D$54,INDIRECT(\"a\" & (VLOOKUP(Switch!$D$54,$F$2:$G$44,2,FALSE)+ROW()-2)),\"\")","v":{"$error":"#N/A"}},{"$f":"IF(INDIRECT(\"c\" & (VLOOKUP(Switch!$D$55,$F$2:$G$44,2,FALSE)+ROW()-2))=Switch!$D$55,INDIRECT(\"a\" & (VLOOKUP(Switch!$D$55,$F$2:$G$44,2,FALSE)+ROW()-2)),\"\")","v":{"$error":"#N/A"}},{"$f":"IF(INDIRECT(\"c\" & (VLOOKUP(Switch!$D$56,$F$2:$G$44,2,FALSE)+ROW()-2))=Switch!$D$56,INDIRECT(\"a\" & (VLOOKUP(Switch!$D$56,$F$2:$G$44,2,FALSE)+ROW()-2)),\"\")","v":{"$error":"#N/A"}},{"$f":"IF(INDIRECT(\"c\" & (VLOOKUP(Switch!$D$57,$F$2:$G$44,2,FALSE)+ROW()-2))=Switch!$D$57,INDIRECT(\"a\" & (VLOOKUP(Switch!$D$57,$F$2:$G$44,2,FALSE)+ROW()-2)),\"\")","v":{"$error":"#N/A"}},{"$f":"IF(INDIRECT(\"c\" & (VLOOKUP(Switch!$D$58,$F$2:$G$44,2,FALSE)+ROW()-2))=Switch!$D$58,INDIRECT(\"a\" & (VLOOKUP(Switch!$D$58,$F$2:$G$44,2,FALSE)+ROW()-2)),\"\")","v":{"$error":"#N/A"}},{"$f":"IF(INDIRECT(\"c\" & (VLOOKUP(Switch!$D$59,$F$2:$G$44,2,FALSE)+ROW()-2))=Switch!$D$59,INDIRECT(\"a\" & (VLOOKUP(Switch!$D$59,$F$2:$G$44,2,FALSE)+ROW()-2)),\"\")","v":{"$error":"#N/A"}},{"$f":"IF(INDIRECT(\"c\" & (VLOOKUP(Switch!$D$60,$F$2:$G$44,2,FALSE)+ROW()-2))=Switch!$D$60,INDIRECT(\"a\" & (VLOOKUP(Switch!$D$60,$F$2:$G$44,2,FALSE)+ROW()-2)),\"\")","v":{"$error":"#N/A"}},{"$f":"IF(INDIRECT(\"c\" & (VLOOKUP(Switch!$D$61,$F$2:$G$44,2,FALSE)+ROW()-2))=Switch!$D$61,INDIRECT(\"a\" & (VLOOKUP(Switch!$D$61,$F$2:$G$44,2,FALSE)+ROW()-2)),\"\")","v":{"$error":"#N/A"}},{"$f":"IF(INDIRECT(\"c\" & (VLOOKUP(Switch!$D$62,$F$2:$G$44,2,FALSE)+ROW()-2))=Switch!$D$62,INDIRECT(\"a\" & (VLOOKUP(Switch!$D$62,$F$2:$G$44,2,FALSE)+ROW()-2)),\"\")","v":{"$error":"#N/A"}},{"$f":"IF(INDIRECT(\"c\" & (VLOOKUP(Switch!$D$63,$F$2:$G$44,2,FALSE)+ROW()-2))=Switch!$D$63,INDIRECT(\"a\" & (VLOOKUP(Switch!$D$63,$F$2:$G$44,2,FALSE)+ROW()-2)),\"\")","v":{"$error":"#N/A"}},{"$f":"IF(INDIRECT(\"c\" & (VLOOKUP(Switch!$D$64,$F$2:$G$44,2,FALSE)+ROW()-2))=Switch!$D$64,INDIRECT(\"a\" & (VLOOKUP(Switch!$D$64,$F$2:$G$44,2,FALSE)+ROW()-2)),\"\")","v":{"$error":"#N/A"}},{"$f":"IF(INDIRECT(\"c\" & (VLOOKUP(Switch!$D$65,$F$2:$G$44,2,FALSE)+ROW()-2))=Switch!$D$65,INDIRECT(\"a\" & (VLOOKUP(Switch!$D$65,$F$2:$G$44,2,FALSE)+ROW()-2)),\"\")","v":{"$error":"#N/A"}},{"$f":"IF(INDIRECT(\"c\" & (VLOOKUP(Switch!$D$66,$F$2:$G$44,2,FALSE)+ROW()-2))=Switch!$D$66,INDIRECT(\"a\" & (VLOOKUP(Switch!$D$66,$F$2:$G$44,2,FALSE)+ROW()-2)),\"\")","v":{"$error":"#N/A"}}]
["BCI Best Blend Balanced Fund C","BBBCF","Boutique Collective Investments (Pty) Ltd",{"$f":"ROW()","v":125},null,null,{"$f":"VLOOKUP(F125,$C$2:$D$637,2,FALSE)","v":{"$error":"#N/A"}},{"$f":"IF(INDIRECT(\"c\" & (VLOOKUP(Switch!$D$26,$F$2:$G$44,2,FALSE)+ROW()-2))=Switch!$D$26,INDIRECT(\"a\" & (VLOOKUP(Switch!$D$26,$F$2:$G$44,2,FALSE)+ROW()-2)),\"\")","v":{"$error":"#N/A"}},{"$f":"IF(INDIRECT(\"c\" & (VLOOKUP(Switch!$D$27,$F$2:$G$44,2,FALSE)+ROW()-2))=Switch!$D$27,INDIRECT(\"a\" & (VLOOKUP(Switch!$D$27,$F$2:$G$44,2,FALSE)+ROW()-2)),\"\")","v":{"$error":"#N/A"}},{"$f":"IF(INDIRECT(\"c\" & (VLOOKUP(Switch!$D$28,$F$2:$G$44,2,FALSE)+ROW()-2))=Switch!$D$28,INDIRECT(\"a\" & (VLOOKUP(Switch!$D$28,$F$2:$G$44,2,FALSE)+ROW()-2)),\"\")","v":{"$error":"#N/A"}},{"$f":"IF(INDIRECT(\"c\" & (VLOOKUP(Switch!$D$29,$F$2:$G$44,2,FALSE)+ROW()-2))=Switch!$D$29,INDIRECT(\"a\" & (VLOOKUP(Switch!$D$29,$F$2:$G$44,2,FALSE)+ROW()-2)),\"\")","v":{"$error":"#N/A"}},{"$f":"IF(INDIRECT(\"c\" & (VLOOKUP(Switch!$D$30,$F$2:$G$44,2,FALSE)+ROW()-2))=Switch!$D$30,INDIRECT(\"a\" & (VLOOKUP(Switch!$D$30,$F$2:$G$44,2,FALSE)+ROW()-2)),\"\")","v":{"$error":"#N/A"}},{"$f":"IF(INDIRECT(\"c\" & (VLOOKUP(Switch!$D$31,$F$2:$G$44,2,FALSE)+ROW()-2))=Switch!$D$31,INDIRECT(\"a\" & (VLOOKUP(Switch!$D$31,$F$2:$G$44,2,FALSE)+ROW()-2)),\"\")","v":{"$error":"#N/A"}},{"$f":"IF(INDIRECT(\"c\" & (VLOOKUP(Switch!$D$32,$F$2:$G$44,2,FALSE)+ROW()-2))=Switch!$D$32,INDIRECT(\"a\" & (VLOOKUP(Switch!$D$32,$F$2:$G$44,2,FALSE)+ROW()-2)),\"\")","v":{"$error":"#N/A"}},{"$f":"IF(INDIRECT(\"c\" & (VLOOKUP(Switch!$D$33,$F$2:$G$44,2,FALSE)+ROW()-2))=Switch!$D$33,INDIRECT(\"a\" & (VLOOKUP(Switch!$D$33,$F$2:$G$44,2,FALSE)+ROW()-2)),\"\")","v":{"$error":"#N/A"}},{"$f":"IF(INDIRECT(\"c\" & (VLOOKUP(Switch!$D$34,$F$2:$G$44,2,FALSE)+ROW()-2))=Switch!$D$34,INDIRECT(\"a\" & (VLOOKUP(Switch!$D$34,$F$2:$G$44,2,FALSE)+ROW()-2)),\"\")","v":{"$error":"#N/A"}},{"$f":"IF(INDIRECT(\"c\" & (VLOOKUP(Switch!$D$35,$F$2:$G$44,2,FALSE)+ROW()-2))=Switch!$D$35,INDIRECT(\"a\" & (VLOOKUP(Switch!$D$35,$F$2:$G$44,2,FALSE)+ROW()-2)),\"\")","v":{"$error":"#N/A"}},{"$f":"IF(INDIRECT(\"c\" & (VLOOKUP(Switch!$D$36,$F$2:$G$44,2,FALSE)+ROW()-2))=Switch!$D$36,INDIRECT(\"a\" & (VLOOKUP(Switch!$D$36,$F$2:$G$44,2,FALSE)+ROW()-2)),\"\")","v":{"$error":"#N/A"}},{"$f":"IF(INDIRECT(\"c\" & (VLOOKUP(Switch!$D$37,$F$2:$G$44,2,FALSE)+ROW()-2))=Switch!$D$37,INDIRECT(\"a\" & (VLOOKUP(Switch!$D$37,$F$2:$G$44,2,FALSE)+ROW()-2)),\"\")","v":{"$error":"#N/A"}},{"$f":"IF(INDIRECT(\"c\" & (VLOOKUP(Switch!$D$38,$F$2:$G$44,2,FALSE)+ROW()-2))=Switch!$D$38,INDIRECT(\"a\" & (VLOOKUP(Switch!$D$38,$F$2:$G$44,2,FALSE)+ROW()-2)),\"\")","v":{"$error":"#N/A"}},{"$f":"IF(INDIRECT(\"c\" & (VLOOKUP(Switch!$D$39,$F$2:$G$44,2,FALSE)+ROW()-2))=Switch!$D$39,INDIRECT(\"a\" & (VLOOKUP(Switch!$D$39,$F$2:$G$44,2,FALSE)+ROW()-2)),\"\")","v":{"$error":"#N/A"}},{"$f":"IF(INDIRECT(\"c\" & (VLOOKUP(Switch!$D$40,$F$2:$G$44,2,FALSE)+ROW()-2))=Switch!$D$40,INDIRECT(\"a\" & (VLOOKUP(Switch!$D$40,$F$2:$G$44,2,FALSE)+ROW()-2)),\"\")","v":{"$error":"#N/A"}},{"$f":"IF(INDIRECT(\"c\" & (VLOOKUP(Switch!$D$52,$F$2:$G$44,2,FALSE)+ROW()-2))=Switch!$D$52,INDIRECT(\"a\" & (VLOOKUP(Switch!$D$52,$F$2:$G$44,2,FALSE)+ROW()-2)),\"\")","v":{"$error":"#N/A"}},{"$f":"IF(INDIRECT(\"c\" & (VLOOKUP(Switch!$D$53,$F$2:$G$44,2,FALSE)+ROW()-2))=Switch!$D$53,INDIRECT(\"a\" & (VLOOKUP(Switch!$D$53,$F$2:$G$44,2,FALSE)+ROW()-2)),\"\")","v":{"$error":"#N/A"}},{"$f":"IF(INDIRECT(\"c\" & (VLOOKUP(Switch!$D$54,$F$2:$G$44,2,FALSE)+ROW()-2))=Switch!$D$54,INDIRECT(\"a\" & (VLOOKUP(Switch!$D$54,$F$2:$G$44,2,FALSE)+ROW()-2)),\"\")","v":{"$error":"#N/A"}},{"$f":"IF(INDIRECT(\"c\" & (VLOOKUP(Switch!$D$55,$F$2:$G$44,2,FALSE)+ROW()-2))=Switch!$D$55,INDIRECT(\"a\" & (VLOOKUP(Switch!$D$55,$F$2:$G$44,2,FALSE)+ROW()-2)),\"\")","v":{"$error":"#N/A"}},{"$f":"IF(INDIRECT(\"c\" & (VLOOKUP(Switch!$D$56,$F$2:$G$44,2,FALSE)+ROW()-2))=Switch!$D$56,INDIRECT(\"a\" & (VLOOKUP(Switch!$D$56,$F$2:$G$44,2,FALSE)+ROW()-2)),\"\")","v":{"$error":"#N/A"}},{"$f":"IF(INDIRECT(\"c\" & (VLOOKUP(Switch!$D$57,$F$2:$G$44,2,FALSE)+ROW()-2))=Switch!$D$57,INDIRECT(\"a\" & (VLOOKUP(Switch!$D$57,$F$2:$G$44,2,FALSE)+ROW()-2)),\"\")","v":{"$error":"#N/A"}},{"$f":"IF(INDIRECT(\"c\" & (VLOOKUP(Switch!$D$58,$F$2:$G$44,2,FALSE)+ROW()-2))=Switch!$D$58,INDIRECT(\"a\" & (VLOOKUP(Switch!$D$58,$F$2:$G$44,2,FALSE)+ROW()-2)),\"\")","v":{"$error":"#N/A"}},{"$f":"IF(INDIRECT(\"c\" & (VLOOKUP(Switch!$D$59,$F$2:$G$44,2,FALSE)+ROW()-2))=Switch!$D$59,INDIRECT(\"a\" & (VLOOKUP(Switch!$D$59,$F$2:$G$44,2,FALSE)+ROW()-2)),\"\")","v":{"$error":"#N/A"}},{"$f":"IF(INDIRECT(\"c\" & (VLOOKUP(Switch!$D$60,$F$2:$G$44,2,FALSE)+ROW()-2))=Switch!$D$60,INDIRECT(\"a\" & (VLOOKUP(Switch!$D$60,$F$2:$G$44,2,FALSE)+ROW()-2)),\"\")","v":{"$error":"#N/A"}},{"$f":"IF(INDIRECT(\"c\" & (VLOOKUP(Switch!$D$61,$F$2:$G$44,2,FALSE)+ROW()-2))=Switch!$D$61,INDIRECT(\"a\" & (VLOOKUP(Switch!$D$61,$F$2:$G$44,2,FALSE)+ROW()-2)),\"\")","v":{"$error":"#N/A"}},{"$f":"IF(INDIRECT(\"c\" & (VLOOKUP(Switch!$D$62,$F$2:$G$44,2,FALSE)+ROW()-2))=Switch!$D$62,INDIRECT(\"a\" & (VLOOKUP(Switch!$D$62,$F$2:$G$44,2,FALSE)+ROW()-2)),\"\")","v":{"$error":"#N/A"}},{"$f":"IF(INDIRECT(\"c\" & (VLOOKUP(Switch!$D$63,$F$2:$G$44,2,FALSE)+ROW()-2))=Switch!$D$63,INDIRECT(\"a\" & (VLOOKUP(Switch!$D$63,$F$2:$G$44,2,FALSE)+ROW()-2)),\"\")","v":{"$error":"#N/A"}},{"$f":"IF(INDIRECT(\"c\" & (VLOOKUP(Switch!$D$64,$F$2:$G$44,2,FALSE)+ROW()-2))=Switch!$D$64,INDIRECT(\"a\" & (VLOOKUP(Switch!$D$64,$F$2:$G$44,2,FALSE)+ROW()-2)),\"\")","v":{"$error":"#N/A"}},{"$f":"IF(INDIRECT(\"c\" & (VLOOKUP(Switch!$D$65,$F$2:$G$44,2,FALSE)+ROW()-2))=Switch!$D$65,INDIRECT(\"a\" & (VLOOKUP(Switch!$D$65,$F$2:$G$44,2,FALSE)+ROW()-2)),\"\")","v":{"$error":"#N/A"}},{"$f":"IF(INDIRECT(\"c\" & (VLOOKUP(Switch!$D$66,$F$2:$G$44,2,FALSE)+ROW()-2))=Switch!$D$66,INDIRECT(\"a\" & (VLOOKUP(Switch!$D$66,$F$2:$G$44,2,FALSE)+ROW()-2)),\"\")","v":{"$error":"#N/A"}}]
["BCI Best Blend Balanced Fund E","BBBCF","Boutique Collective Investments (Pty) Ltd",{"$f":"ROW()","v":126},null,null,{"$f":"VLOOKUP(F126,$C$2:$D$637,2,FALSE)","v":{"$error":"#N/A"}},{"$f":"IF(INDIRECT(\"c\" & (VLOOKUP(Switch!$D$26,$F$2:$G$44,2,FALSE)+ROW()-2))=Switch!$D$26,INDIRECT(\"a\" & (VLOOKUP(Switch!$D$26,$F$2:$G$44,2,FALSE)+ROW()-2)),\"\")","v":{"$error":"#N/A"}},{"$f":"IF(INDIRECT(\"c\" & (VLOOKUP(Switch!$D$27,$F$2:$G$44,2,FALSE)+ROW()-2))=Switch!$D$27,INDIRECT(\"a\" & (VLOOKUP(Switch!$D$27,$F$2:$G$44,2,FALSE)+ROW()-2)),\"\")","v":{"$error":"#N/A"}},{"$f":"IF(INDIRECT(\"c\" & (VLOOKUP(Switch!$D$28,$F$2:$G$44,2,FALSE)+ROW()-2))=Switch!$D$28,INDIRECT(\"a\" & (VLOOKUP(Switch!$D$28,$F$2:$G$44,2,FALSE)+ROW()-2)),\"\")","v":{"$error":"#N/A"}},{"$f":"IF(INDIRECT(\"c\" & (VLOOKUP(Switch!$D$29,$F$2:$G$44,2,FALSE)+ROW()-2))=Switch!$D$29,INDIRECT(\"a\" & (VLOOKUP(Switch!$D$29,$F$2:$G$44,2,FALSE)+ROW()-2)),\"\")","v":{"$error":"#N/A"}},{"$f":"IF(INDIRECT(\"c\" & (VLOOKUP(Switch!$D$30,$F$2:$G$44,2,FALSE)+ROW()-2))=Switch!$D$30,INDIRECT(\"a\" & (VLOOKUP(Switch!$D$30,$F$2:$G$44,2,FALSE)+ROW()-2)),\"\")","v":{"$error":"#N/A"}},{"$f":"IF(INDIRECT(\"c\" & (VLOOKUP(Switch!$D$31,$F$2:$G$44,2,FALSE)+ROW()-2))=Switch!$D$31,INDIRECT(\"a\" & (VLOOKUP(Switch!$D$31,$F$2:$G$44,2,FALSE)+ROW()-2)),\"\")","v":{"$error":"#N/A"}},{"$f":"IF(INDIRECT(\"c\" & (VLOOKUP(Switch!$D$32,$F$2:$G$44,2,FALSE)+ROW()-2))=Switch!$D$32,INDIRECT(\"a\" & (VLOOKUP(Switch!$D$32,$F$2:$G$44,2,FALSE)+ROW()-2)),\"\")","v":{"$error":"#N/A"}},{"$f":"IF(INDIRECT(\"c\" & (VLOOKUP(Switch!$D$33,$F$2:$G$44,2,FALSE)+ROW()-2))=Switch!$D$33,INDIRECT(\"a\" & (VLOOKUP(Switch!$D$33,$F$2:$G$44,2,FALSE)+ROW()-2)),\"\")","v":{"$error":"#N/A"}},{"$f":"IF(INDIRECT(\"c\" & (VLOOKUP(Switch!$D$34,$F$2:$G$44,2,FALSE)+ROW()-2))=Switch!$D$34,INDIRECT(\"a\" & (VLOOKUP(Switch!$D$34,$F$2:$G$44,2,FALSE)+ROW()-2)),\"\")","v":{"$error":"#N/A"}},{"$f":"IF(INDIRECT(\"c\" & (VLOOKUP(Switch!$D$35,$F$2:$G$44,2,FALSE)+ROW()-2))=Switch!$D$35,INDIRECT(\"a\" & (VLOOKUP(Switch!$D$35,$F$2:$G$44,2,FALSE)+ROW()-2)),\"\")","v":{"$error":"#N/A"}},{"$f":"IF(INDIRECT(\"c\" & (VLOOKUP(Switch!$D$36,$F$2:$G$44,2,FALSE)+ROW()-2))=Switch!$D$36,INDIRECT(\"a\" & (VLOOKUP(Switch!$D$36,$F$2:$G$44,2,FALSE)+ROW()-2)),\"\")","v":{"$error":"#N/A"}},{"$f":"IF(INDIRECT(\"c\" & (VLOOKUP(Switch!$D$37,$F$2:$G$44,2,FALSE)+ROW()-2))=Switch!$D$37,INDIRECT(\"a\" & (VLOOKUP(Switch!$D$37,$F$2:$G$44,2,FALSE)+ROW()-2)),\"\")","v":{"$error":"#N/A"}},{"$f":"IF(INDIRECT(\"c\" & (VLOOKUP(Switch!$D$38,$F$2:$G$44,2,FALSE)+ROW()-2))=Switch!$D$38,INDIRECT(\"a\" & (VLOOKUP(Switch!$D$38,$F$2:$G$44,2,FALSE)+ROW()-2)),\"\")","v":{"$error":"#N/A"}},{"$f":"IF(INDIRECT(\"c\" & (VLOOKUP(Switch!$D$39,$F$2:$G$44,2,FALSE)+ROW()-2))=Switch!$D$39,INDIRECT(\"a\" & (VLOOKUP(Switch!$D$39,$F$2:$G$44,2,FALSE)+ROW()-2)),\"\")","v":{"$error":"#N/A"}},{"$f":"IF(INDIRECT(\"c\" & (VLOOKUP(Switch!$D$40,$F$2:$G$44,2,FALSE)+ROW()-2))=Switch!$D$40,INDIRECT(\"a\" & (VLOOKUP(Switch!$D$40,$F$2:$G$44,2,FALSE)+ROW()-2)),\"\")","v":{"$error":"#N/A"}},{"$f":"IF(INDIRECT(\"c\" & (VLOOKUP(Switch!$D$52,$F$2:$G$44,2,FALSE)+ROW()-2))=Switch!$D$52,INDIRECT(\"a\" & (VLOOKUP(Switch!$D$52,$F$2:$G$44,2,FALSE)+ROW()-2)),\"\")","v":{"$error":"#N/A"}},{"$f":"IF(INDIRECT(\"c\" & (VLOOKUP(Switch!$D$53,$F$2:$G$44,2,FALSE)+ROW()-2))=Switch!$D$53,INDIRECT(\"a\" & (VLOOKUP(Switch!$D$53,$F$2:$G$44,2,FALSE)+ROW()-2)),\"\")","v":{"$error":"#N/A"}},{"$f":"IF(INDIRECT(\"c\" & (VLOOKUP(Switch!$D$54,$F$2:$G$44,2,FALSE)+ROW()-2))=Switch!$D$54,INDIRECT(\"a\" & (VLOOKUP(Switch!$D$54,$F$2:$G$44,2,FALSE)+ROW()-2)),\"\")","v":{"$error":"#N/A"}},{"$f":"IF(INDIRECT(\"c\" & (VLOOKUP(Switch!$D$55,$F$2:$G$44,2,FALSE)+ROW()-2))=Switch!$D$55,INDIRECT(\"a\" & (VLOOKUP(Switch!$D$55,$F$2:$G$44,2,FALSE)+ROW()-2)),\"\")","v":{"$error":"#N/A"}},{"$f":"IF(INDIRECT(\"c\" & (VLOOKUP(Switch!$D$56,$F$2:$G$44,2,FALSE)+ROW()-2))=Switch!$D$56,INDIRECT(\"a\" & (VLOOKUP(Switch!$D$56,$F$2:$G$44,2,FALSE)+ROW()-2)),\"\")","v":{"$error":"#N/A"}},{"$f":"IF(INDIRECT(\"c\" & (VLOOKUP(Switch!$D$57,$F$2:$G$44,2,FALSE)+ROW()-2))=Switch!$D$57,INDIRECT(\"a\" & (VLOOKUP(Switch!$D$57,$F$2:$G$44,2,FALSE)+ROW()-2)),\"\")","v":{"$error":"#N/A"}},{"$f":"IF(INDIRECT(\"c\" & (VLOOKUP(Switch!$D$58,$F$2:$G$44,2,FALSE)+ROW()-2))=Switch!$D$58,INDIRECT(\"a\" & (VLOOKUP(Switch!$D$58,$F$2:$G$44,2,FALSE)+ROW()-2)),\"\")","v":{"$error":"#N/A"}},{"$f":"IF(INDIRECT(\"c\" & (VLOOKUP(Switch!$D$59,$F$2:$G$44,2,FALSE)+ROW()-2))=Switch!$D$59,INDIRECT(\"a\" & (VLOOKUP(Switch!$D$59,$F$2:$G$44,2,FALSE)+ROW()-2)),\"\")","v":{"$error":"#N/A"}},{"$f":"IF(INDIRECT(\"c\" & (VLOOKUP(Switch!$D$60,$F$2:$G$44,2,FALSE)+ROW()-2))=Switch!$D$60,INDIRECT(\"a\" & (VLOOKUP(Switch!$D$60,$F$2:$G$44,2,FALSE)+ROW()-2)),\"\")","v":{"$error":"#N/A"}},{"$f":"IF(INDIRECT(\"c\" & (VLOOKUP(Switch!$D$61,$F$2:$G$44,2,FALSE)+ROW()-2))=Switch!$D$61,INDIRECT(\"a\" & (VLOOKUP(Switch!$D$61,$F$2:$G$44,2,FALSE)+ROW()-2)),\"\")","v":{"$error":"#N/A"}},{"$f":"IF(INDIRECT(\"c\" & (VLOOKUP(Switch!$D$62,$F$2:$G$44,2,FALSE)+ROW()-2))=Switch!$D$62,INDIRECT(\"a\" & (VLOOKUP(Switch!$D$62,$F$2:$G$44,2,FALSE)+ROW()-2)),\"\")","v":{"$error":"#N/A"}},{"$f":"IF(INDIRECT(\"c\" & (VLOOKUP(Switch!$D$63,$F$2:$G$44,2,FALSE)+ROW()-2))=Switch!$D$63,INDIRECT(\"a\" & (VLOOKUP(Switch!$D$63,$F$2:$G$44,2,FALSE)+ROW()-2)),\"\")","v":{"$error":"#N/A"}},{"$f":"IF(INDIRECT(\"c\" & (VLOOKUP(Switch!$D$64,$F$2:$G$44,2,FALSE)+ROW()-2))=Switch!$D$64,INDIRECT(\"a\" & (VLOOKUP(Switch!$D$64,$F$2:$G$44,2,FALSE)+ROW()-2)),\"\")","v":{"$error":"#N/A"}},{"$f":"IF(INDIRECT(\"c\" & (VLOOKUP(Switch!$D$65,$F$2:$G$44,2,FALSE)+ROW()-2))=Switch!$D$65,INDIRECT(\"a\" & (VLOOKUP(Switch!$D$65,$F$2:$G$44,2,FALSE)+ROW()-2)),\"\")","v":{"$error":"#N/A"}},{"$f":"IF(INDIRECT(\"c\" & (VLOOKUP(Switch!$D$66,$F$2:$G$44,2,FALSE)+ROW()-2))=Switch!$D$66,INDIRECT(\"a\" & (VLOOKUP(Switch!$D$66,$F$2:$G$44,2,FALSE)+ROW()-2)),\"\")","v":{"$error":"#N/A"}}]
["BCI Best Blend Cautious Fund C","BBCCF","Boutique Collective Investments (Pty) Ltd",{"$f":"ROW()","v":127},null,null,{"$f":"VLOOKUP(F127,$C$2:$D$637,2,FALSE)","v":{"$error":"#N/A"}},{"$f":"IF(INDIRECT(\"c\" & (VLOOKUP(Switch!$D$26,$F$2:$G$44,2,FALSE)+ROW()-2))=Switch!$D$26,INDIRECT(\"a\" & (VLOOKUP(Switch!$D$26,$F$2:$G$44,2,FALSE)+ROW()-2)),\"\")","v":{"$error":"#N/A"}},{"$f":"IF(INDIRECT(\"c\" & (VLOOKUP(Switch!$D$27,$F$2:$G$44,2,FALSE)+ROW()-2))=Switch!$D$27,INDIRECT(\"a\" & (VLOOKUP(Switch!$D$27,$F$2:$G$44,2,FALSE)+ROW()-2)),\"\")","v":{"$error":"#N/A"}},{"$f":"IF(INDIRECT(\"c\" & (VLOOKUP(Switch!$D$28,$F$2:$G$44,2,FALSE)+ROW()-2))=Switch!$D$28,INDIRECT(\"a\" & (VLOOKUP(Switch!$D$28,$F$2:$G$44,2,FALSE)+ROW()-2)),\"\")","v":{"$error":"#N/A"}},{"$f":"IF(INDIRECT(\"c\" & (VLOOKUP(Switch!$D$29,$F$2:$G$44,2,FALSE)+ROW()-2))=Switch!$D$29,INDIRECT(\"a\" & (VLOOKUP(Switch!$D$29,$F$2:$G$44,2,FALSE)+ROW()-2)),\"\")","v":{"$error":"#N/A"}},{"$f":"IF(INDIRECT(\"c\" & (VLOOKUP(Switch!$D$30,$F$2:$G$44,2,FALSE)+ROW()-2))=Switch!$D$30,INDIRECT(\"a\" & (VLOOKUP(Switch!$D$30,$F$2:$G$44,2,FALSE)+ROW()-2)),\"\")","v":{"$error":"#N/A"}},{"$f":"IF(INDIRECT(\"c\" & (VLOOKUP(Switch!$D$31,$F$2:$G$44,2,FALSE)+ROW()-2))=Switch!$D$31,INDIRECT(\"a\" & (VLOOKUP(Switch!$D$31,$F$2:$G$44,2,FALSE)+ROW()-2)),\"\")","v":{"$error":"#N/A"}},{"$f":"IF(INDIRECT(\"c\" & (VLOOKUP(Switch!$D$32,$F$2:$G$44,2,FALSE)+ROW()-2))=Switch!$D$32,INDIRECT(\"a\" & (VLOOKUP(Switch!$D$32,$F$2:$G$44,2,FALSE)+ROW()-2)),\"\")","v":{"$error":"#N/A"}},{"$f":"IF(INDIRECT(\"c\" & (VLOOKUP(Switch!$D$33,$F$2:$G$44,2,FALSE)+ROW()-2))=Switch!$D$33,INDIRECT(\"a\" & (VLOOKUP(Switch!$D$33,$F$2:$G$44,2,FALSE)+ROW()-2)),\"\")","v":{"$error":"#N/A"}},{"$f":"IF(INDIRECT(\"c\" & (VLOOKUP(Switch!$D$34,$F$2:$G$44,2,FALSE)+ROW()-2))=Switch!$D$34,INDIRECT(\"a\" & (VLOOKUP(Switch!$D$34,$F$2:$G$44,2,FALSE)+ROW()-2)),\"\")","v":{"$error":"#N/A"}},{"$f":"IF(INDIRECT(\"c\" & (VLOOKUP(Switch!$D$35,$F$2:$G$44,2,FALSE)+ROW()-2))=Switch!$D$35,INDIRECT(\"a\" & (VLOOKUP(Switch!$D$35,$F$2:$G$44,2,FALSE)+ROW()-2)),\"\")","v":{"$error":"#N/A"}},{"$f":"IF(INDIRECT(\"c\" & (VLOOKUP(Switch!$D$36,$F$2:$G$44,2,FALSE)+ROW()-2))=Switch!$D$36,INDIRECT(\"a\" & (VLOOKUP(Switch!$D$36,$F$2:$G$44,2,FALSE)+ROW()-2)),\"\")","v":{"$error":"#N/A"}},{"$f":"IF(INDIRECT(\"c\" & (VLOOKUP(Switch!$D$37,$F$2:$G$44,2,FALSE)+ROW()-2))=Switch!$D$37,INDIRECT(\"a\" & (VLOOKUP(Switch!$D$37,$F$2:$G$44,2,FALSE)+ROW()-2)),\"\")","v":{"$error":"#N/A"}},{"$f":"IF(INDIRECT(\"c\" & (VLOOKUP(Switch!$D$38,$F$2:$G$44,2,FALSE)+ROW()-2))=Switch!$D$38,INDIRECT(\"a\" & (VLOOKUP(Switch!$D$38,$F$2:$G$44,2,FALSE)+ROW()-2)),\"\")","v":{"$error":"#N/A"}},{"$f":"IF(INDIRECT(\"c\" & (VLOOKUP(Switch!$D$39,$F$2:$G$44,2,FALSE)+ROW()-2))=Switch!$D$39,INDIRECT(\"a\" & (VLOOKUP(Switch!$D$39,$F$2:$G$44,2,FALSE)+ROW()-2)),\"\")","v":{"$error":"#N/A"}},{"$f":"IF(INDIRECT(\"c\" & (VLOOKUP(Switch!$D$40,$F$2:$G$44,2,FALSE)+ROW()-2))=Switch!$D$40,INDIRECT(\"a\" & (VLOOKUP(Switch!$D$40,$F$2:$G$44,2,FALSE)+ROW()-2)),\"\")","v":{"$error":"#N/A"}},{"$f":"IF(INDIRECT(\"c\" & (VLOOKUP(Switch!$D$52,$F$2:$G$44,2,FALSE)+ROW()-2))=Switch!$D$52,INDIRECT(\"a\" & (VLOOKUP(Switch!$D$52,$F$2:$G$44,2,FALSE)+ROW()-2)),\"\")","v":{"$error":"#N/A"}},{"$f":"IF(INDIRECT(\"c\" & (VLOOKUP(Switch!$D$53,$F$2:$G$44,2,FALSE)+ROW()-2))=Switch!$D$53,INDIRECT(\"a\" & (VLOOKUP(Switch!$D$53,$F$2:$G$44,2,FALSE)+ROW()-2)),\"\")","v":{"$error":"#N/A"}},{"$f":"IF(INDIRECT(\"c\" & (VLOOKUP(Switch!$D$54,$F$2:$G$44,2,FALSE)+ROW()-2))=Switch!$D$54,INDIRECT(\"a\" & (VLOOKUP(Switch!$D$54,$F$2:$G$44,2,FALSE)+ROW()-2)),\"\")","v":{"$error":"#N/A"}},{"$f":"IF(INDIRECT(\"c\" & (VLOOKUP(Switch!$D$55,$F$2:$G$44,2,FALSE)+ROW()-2))=Switch!$D$55,INDIRECT(\"a\" & (VLOOKUP(Switch!$D$55,$F$2:$G$44,2,FALSE)+ROW()-2)),\"\")","v":{"$error":"#N/A"}},{"$f":"IF(INDIRECT(\"c\" & (VLOOKUP(Switch!$D$56,$F$2:$G$44,2,FALSE)+ROW()-2))=Switch!$D$56,INDIRECT(\"a\" & (VLOOKUP(Switch!$D$56,$F$2:$G$44,2,FALSE)+ROW()-2)),\"\")","v":{"$error":"#N/A"}},{"$f":"IF(INDIRECT(\"c\" & (VLOOKUP(Switch!$D$57,$F$2:$G$44,2,FALSE)+ROW()-2))=Switch!$D$57,INDIRECT(\"a\" & (VLOOKUP(Switch!$D$57,$F$2:$G$44,2,FALSE)+ROW()-2)),\"\")","v":{"$error":"#N/A"}},{"$f":"IF(INDIRECT(\"c\" & (VLOOKUP(Switch!$D$58,$F$2:$G$44,2,FALSE)+ROW()-2))=Switch!$D$58,INDIRECT(\"a\" & (VLOOKUP(Switch!$D$58,$F$2:$G$44,2,FALSE)+ROW()-2)),\"\")","v":{"$error":"#N/A"}},{"$f":"IF(INDIRECT(\"c\" & (VLOOKUP(Switch!$D$59,$F$2:$G$44,2,FALSE)+ROW()-2))=Switch!$D$59,INDIRECT(\"a\" & (VLOOKUP(Switch!$D$59,$F$2:$G$44,2,FALSE)+ROW()-2)),\"\")","v":{"$error":"#N/A"}},{"$f":"IF(INDIRECT(\"c\" & (VLOOKUP(Switch!$D$60,$F$2:$G$44,2,FALSE)+ROW()-2))=Switch!$D$60,INDIRECT(\"a\" & (VLOOKUP(Switch!$D$60,$F$2:$G$44,2,FALSE)+ROW()-2)),\"\")","v":{"$error":"#N/A"}},{"$f":"IF(INDIRECT(\"c\" & (VLOOKUP(Switch!$D$61,$F$2:$G$44,2,FALSE)+ROW()-2))=Switch!$D$61,INDIRECT(\"a\" & (VLOOKUP(Switch!$D$61,$F$2:$G$44,2,FALSE)+ROW()-2)),\"\")","v":{"$error":"#N/A"}},{"$f":"IF(INDIRECT(\"c\" & (VLOOKUP(Switch!$D$62,$F$2:$G$44,2,FALSE)+ROW()-2))=Switch!$D$62,INDIRECT(\"a\" & (VLOOKUP(Switch!$D$62,$F$2:$G$44,2,FALSE)+ROW()-2)),\"\")","v":{"$error":"#N/A"}},{"$f":"IF(INDIRECT(\"c\" & (VLOOKUP(Switch!$D$63,$F$2:$G$44,2,FALSE)+ROW()-2))=Switch!$D$63,INDIRECT(\"a\" & (VLOOKUP(Switch!$D$63,$F$2:$G$44,2,FALSE)+ROW()-2)),\"\")","v":{"$error":"#N/A"}},{"$f":"IF(INDIRECT(\"c\" & (VLOOKUP(Switch!$D$64,$F$2:$G$44,2,FALSE)+ROW()-2))=Switch!$D$64,INDIRECT(\"a\" & (VLOOKUP(Switch!$D$64,$F$2:$G$44,2,FALSE)+ROW()-2)),\"\")","v":{"$error":"#N/A"}},{"$f":"IF(INDIRECT(\"c\" & (VLOOKUP(Switch!$D$65,$F$2:$G$44,2,FALSE)+ROW()-2))=Switch!$D$65,INDIRECT(\"a\" & (VLOOKUP(Switch!$D$65,$F$2:$G$44,2,FALSE)+ROW()-2)),\"\")","v":{"$error":"#N/A"}},{"$f":"IF(INDIRECT(\"c\" & (VLOOKUP(Switch!$D$66,$F$2:$G$44,2,FALSE)+ROW()-2))=Switch!$D$66,INDIRECT(\"a\" & (VLOOKUP(Switch!$D$66,$F$2:$G$44,2,FALSE)+ROW()-2)),\"\")","v":{"$error":"#N/A"}}]
["BCI Best Blend Cautious Fund E","BBCCF","Boutique Collective Investments (Pty) Ltd",{"$f":"ROW()","v":128},null,null,{"$f":"VLOOKUP(F128,$C$2:$D$637,2,FALSE)","v":{"$error":"#N/A"}},{"$f":"IF(INDIRECT(\"c\" & (VLOOKUP(Switch!$D$26,$F$2:$G$44,2,FALSE)+ROW()-2))=Switch!$D$26,INDIRECT(\"a\" & (VLOOKUP(Switch!$D$26,$F$2:$G$44,2,FALSE)+ROW()-2)),\"\")","v":{"$error":"#N/A"}},{"$f":"IF(INDIRECT(\"c\" & (VLOOKUP(Switch!$D$27,$F$2:$G$44,2,FALSE)+ROW()-2))=Switch!$D$27,INDIRECT(\"a\" & (VLOOKUP(Switch!$D$27,$F$2:$G$44,2,FALSE)+ROW()-2)),\"\")","v":{"$error":"#N/A"}},{"$f":"IF(INDIRECT(\"c\" & (VLOOKUP(Switch!$D$28,$F$2:$G$44,2,FALSE)+ROW()-2))=Switch!$D$28,INDIRECT(\"a\" & (VLOOKUP(Switch!$D$28,$F$2:$G$44,2,FALSE)+ROW()-2)),\"\")","v":{"$error":"#N/A"}},{"$f":"IF(INDIRECT(\"c\" & (VLOOKUP(Switch!$D$29,$F$2:$G$44,2,FALSE)+ROW()-2))=Switch!$D$29,INDIRECT(\"a\" & (VLOOKUP(Switch!$D$29,$F$2:$G$44,2,FALSE)+ROW()-2)),\"\")","v":{"$error":"#N/A"}},{"$f":"IF(INDIRECT(\"c\" & (VLOOKUP(Switch!$D$30,$F$2:$G$44,2,FALSE)+ROW()-2))=Switch!$D$30,INDIRECT(\"a\" & (VLOOKUP(Switch!$D$30,$F$2:$G$44,2,FALSE)+ROW()-2)),\"\")","v":{"$error":"#N/A"}},{"$f":"IF(INDIRECT(\"c\" & (VLOOKUP(Switch!$D$31,$F$2:$G$44,2,FALSE)+ROW()-2))=Switch!$D$31,INDIRECT(\"a\" & (VLOOKUP(Switch!$D$31,$F$2:$G$44,2,FALSE)+ROW()-2)),\"\")","v":{"$error":"#N/A"}},{"$f":"IF(INDIRECT(\"c\" & (VLOOKUP(Switch!$D$32,$F$2:$G$44,2,FALSE)+ROW()-2))=Switch!$D$32,INDIRECT(\"a\" & (VLOOKUP(Switch!$D$32,$F$2:$G$44,2,FALSE)+ROW()-2)),\"\")","v":{"$error":"#N/A"}},{"$f":"IF(INDIRECT(\"c\" & (VLOOKUP(Switch!$D$33,$F$2:$G$44,2,FALSE)+ROW()-2))=Switch!$D$33,INDIRECT(\"a\" & (VLOOKUP(Switch!$D$33,$F$2:$G$44,2,FALSE)+ROW()-2)),\"\")","v":{"$error":"#N/A"}},{"$f":"IF(INDIRECT(\"c\" & (VLOOKUP(Switch!$D$34,$F$2:$G$44,2,FALSE)+ROW()-2))=Switch!$D$34,INDIRECT(\"a\" & (VLOOKUP(Switch!$D$34,$F$2:$G$44,2,FALSE)+ROW()-2)),\"\")","v":{"$error":"#N/A"}},{"$f":"IF(INDIRECT(\"c\" & (VLOOKUP(Switch!$D$35,$F$2:$G$44,2,FALSE)+ROW()-2))=Switch!$D$35,INDIRECT(\"a\" & (VLOOKUP(Switch!$D$35,$F$2:$G$44,2,FALSE)+ROW()-2)),\"\")","v":{"$error":"#N/A"}},{"$f":"IF(INDIRECT(\"c\" & (VLOOKUP(Switch!$D$36,$F$2:$G$44,2,FALSE)+ROW()-2))=Switch!$D$36,INDIRECT(\"a\" & (VLOOKUP(Switch!$D$36,$F$2:$G$44,2,FALSE)+ROW()-2)),\"\")","v":{"$error":"#N/A"}},{"$f":"IF(INDIRECT(\"c\" & (VLOOKUP(Switch!$D$37,$F$2:$G$44,2,FALSE)+ROW()-2))=Switch!$D$37,INDIRECT(\"a\" & (VLOOKUP(Switch!$D$37,$F$2:$G$44,2,FALSE)+ROW()-2)),\"\")","v":{"$error":"#N/A"}},{"$f":"IF(INDIRECT(\"c\" & (VLOOKUP(Switch!$D$38,$F$2:$G$44,2,FALSE)+ROW()-2))=Switch!$D$38,INDIRECT(\"a\" & (VLOOKUP(Switch!$D$38,$F$2:$G$44,2,FALSE)+ROW()-2)),\"\")","v":{"$error":"#N/A"}},{"$f":"IF(INDIRECT(\"c\" & (VLOOKUP(Switch!$D$39,$F$2:$G$44,2,FALSE)+ROW()-2))=Switch!$D$39,INDIRECT(\"a\" & (VLOOKUP(Switch!$D$39,$F$2:$G$44,2,FALSE)+ROW()-2)),\"\")","v":{"$error":"#N/A"}},{"$f":"IF(INDIRECT(\"c\" & (VLOOKUP(Switch!$D$40,$F$2:$G$44,2,FALSE)+ROW()-2))=Switch!$D$40,INDIRECT(\"a\" & (VLOOKUP(Switch!$D$40,$F$2:$G$44,2,FALSE)+ROW()-2)),\"\")","v":{"$error":"#N/A"}},{"$f":"IF(INDIRECT(\"c\" & (VLOOKUP(Switch!$D$52,$F$2:$G$44,2,FALSE)+ROW()-2))=Switch!$D$52,INDIRECT(\"a\" & (VLOOKUP(Switch!$D$52,$F$2:$G$44,2,FALSE)+ROW()-2)),\"\")","v":{"$error":"#N/A"}},{"$f":"IF(INDIRECT(\"c\" & (VLOOKUP(Switch!$D$53,$F$2:$G$44,2,FALSE)+ROW()-2))=Switch!$D$53,INDIRECT(\"a\" & (VLOOKUP(Switch!$D$53,$F$2:$G$44,2,FALSE)+ROW()-2)),\"\")","v":{"$error":"#N/A"}},{"$f":"IF(INDIRECT(\"c\" & (VLOOKUP(Switch!$D$54,$F$2:$G$44,2,FALSE)+ROW()-2))=Switch!$D$54,INDIRECT(\"a\" & (VLOOKUP(Switch!$D$54,$F$2:$G$44,2,FALSE)+ROW()-2)),\"\")","v":{"$error":"#N/A"}},{"$f":"IF(INDIRECT(\"c\" & (VLOOKUP(Switch!$D$55,$F$2:$G$44,2,FALSE)+ROW()-2))=Switch!$D$55,INDIRECT(\"a\" & (VLOOKUP(Switch!$D$55,$F$2:$G$44,2,FALSE)+ROW()-2)),\"\")","v":{"$error":"#N/A"}},{"$f":"IF(INDIRECT(\"c\" & (VLOOKUP(Switch!$D$56,$F$2:$G$44,2,FALSE)+ROW()-2))=Switch!$D$56,INDIRECT(\"a\" & (VLOOKUP(Switch!$D$56,$F$2:$G$44,2,FALSE)+ROW()-2)),\"\")","v":{"$error":"#N/A"}},{"$f":"IF(INDIRECT(\"c\" & (VLOOKUP(Switch!$D$57,$F$2:$G$44,2,FALSE)+ROW()-2))=Switch!$D$57,INDIRECT(\"a\" & (VLOOKUP(Switch!$D$57,$F$2:$G$44,2,FALSE)+ROW()-2)),\"\")","v":{"$error":"#N/A"}},{"$f":"IF(INDIRECT(\"c\" & (VLOOKUP(Switch!$D$58,$F$2:$G$44,2,FALSE)+ROW()-2))=Switch!$D$58,INDIRECT(\"a\" & (VLOOKUP(Switch!$D$58,$F$2:$G$44,2,FALSE)+ROW()-2)),\"\")","v":{"$error":"#N/A"}},{"$f":"IF(INDIRECT(\"c\" & (VLOOKUP(Switch!$D$59,$F$2:$G$44,2,FALSE)+ROW()-2))=Switch!$D$59,INDIRECT(\"a\" & (VLOOKUP(Switch!$D$59,$F$2:$G$44,2,FALSE)+ROW()-2)),\"\")","v":{"$error":"#N/A"}},{"$f":"IF(INDIRECT(\"c\" & (VLOOKUP(Switch!$D$60,$F$2:$G$44,2,FALSE)+ROW()-2))=Switch!$D$60,INDIRECT(\"a\" & (VLOOKUP(Switch!$D$60,$F$2:$G$44,2,FALSE)+ROW()-2)),\"\")","v":{"$error":"#N/A"}},{"$f":"IF(INDIRECT(\"c\" & (VLOOKUP(Switch!$D$61,$F$2:$G$44,2,FALSE)+ROW()-2))=Switch!$D$61,INDIRECT(\"a\" & (VLOOKUP(Switch!$D$61,$F$2:$G$44,2,FALSE)+ROW()-2)),\"\")","v":{"$error":"#N/A"}},{"$f":"IF(INDIRECT(\"c\" & (VLOOKUP(Switch!$D$62,$F$2:$G$44,2,FALSE)+ROW()-2))=Switch!$D$62,INDIRECT(\"a\" & (VLOOKUP(Switch!$D$62,$F$2:$G$44,2,FALSE)+ROW()-2)),\"\")","v":{"$error":"#N/A"}},{"$f":"IF(INDIRECT(\"c\" & (VLOOKUP(Switch!$D$63,$F$2:$G$44,2,FALSE)+ROW()-2))=Switch!$D$63,INDIRECT(\"a\" & (VLOOKUP(Switch!$D$63,$F$2:$G$44,2,FALSE)+ROW()-2)),\"\")","v":{"$error":"#N/A"}},{"$f":"IF(INDIRECT(\"c\" & (VLOOKUP(Switch!$D$64,$F$2:$G$44,2,FALSE)+ROW()-2))=Switch!$D$64,INDIRECT(\"a\" & (VLOOKUP(Switch!$D$64,$F$2:$G$44,2,FALSE)+ROW()-2)),\"\")","v":{"$error":"#N/A"}},{"$f":"IF(INDIRECT(\"c\" & (VLOOKUP(Switch!$D$65,$F$2:$G$44,2,FALSE)+ROW()-2))=Switch!$D$65,INDIRECT(\"a\" & (VLOOKUP(Switch!$D$65,$F$2:$G$44,2,FALSE)+ROW()-2)),\"\")","v":{"$error":"#N/A"}},{"$f":"IF(INDIRECT(\"c\" & (VLOOKUP(Switch!$D$66,$F$2:$G$44,2,FALSE)+ROW()-2))=Switch!$D$66,INDIRECT(\"a\" & (VLOOKUP(Switch!$D$66,$F$2:$G$44,2,FALSE)+ROW()-2)),\"\")","v":{"$error":"#N/A"}}]
["BCI Best Blend Flexible Income Fund B","BBBFC","Boutique Collective Investments (Pty) Ltd",{"$f":"ROW()","v":129},null,null,{"$f":"VLOOKUP(F129,$C$2:$D$637,2,FALSE)","v":{"$error":"#N/A"}},{"$f":"IF(INDIRECT(\"c\" & (VLOOKUP(Switch!$D$26,$F$2:$G$44,2,FALSE)+ROW()-2))=Switch!$D$26,INDIRECT(\"a\" & (VLOOKUP(Switch!$D$26,$F$2:$G$44,2,FALSE)+ROW()-2)),\"\")","v":{"$error":"#N/A"}},{"$f":"IF(INDIRECT(\"c\" & (VLOOKUP(Switch!$D$27,$F$2:$G$44,2,FALSE)+ROW()-2))=Switch!$D$27,INDIRECT(\"a\" & (VLOOKUP(Switch!$D$27,$F$2:$G$44,2,FALSE)+ROW()-2)),\"\")","v":{"$error":"#N/A"}},{"$f":"IF(INDIRECT(\"c\" & (VLOOKUP(Switch!$D$28,$F$2:$G$44,2,FALSE)+ROW()-2))=Switch!$D$28,INDIRECT(\"a\" & (VLOOKUP(Switch!$D$28,$F$2:$G$44,2,FALSE)+ROW()-2)),\"\")","v":{"$error":"#N/A"}},{"$f":"IF(INDIRECT(\"c\" & (VLOOKUP(Switch!$D$29,$F$2:$G$44,2,FALSE)+ROW()-2))=Switch!$D$29,INDIRECT(\"a\" & (VLOOKUP(Switch!$D$29,$F$2:$G$44,2,FALSE)+ROW()-2)),\"\")","v":{"$error":"#N/A"}},{"$f":"IF(INDIRECT(\"c\" & (VLOOKUP(Switch!$D$30,$F$2:$G$44,2,FALSE)+ROW()-2))=Switch!$D$30,INDIRECT(\"a\" & (VLOOKUP(Switch!$D$30,$F$2:$G$44,2,FALSE)+ROW()-2)),\"\")","v":{"$error":"#N/A"}},{"$f":"IF(INDIRECT(\"c\" & (VLOOKUP(Switch!$D$31,$F$2:$G$44,2,FALSE)+ROW()-2))=Switch!$D$31,INDIRECT(\"a\" & (VLOOKUP(Switch!$D$31,$F$2:$G$44,2,FALSE)+ROW()-2)),\"\")","v":{"$error":"#N/A"}},{"$f":"IF(INDIRECT(\"c\" & (VLOOKUP(Switch!$D$32,$F$2:$G$44,2,FALSE)+ROW()-2))=Switch!$D$32,INDIRECT(\"a\" & (VLOOKUP(Switch!$D$32,$F$2:$G$44,2,FALSE)+ROW()-2)),\"\")","v":{"$error":"#N/A"}},{"$f":"IF(INDIRECT(\"c\" & (VLOOKUP(Switch!$D$33,$F$2:$G$44,2,FALSE)+ROW()-2))=Switch!$D$33,INDIRECT(\"a\" & (VLOOKUP(Switch!$D$33,$F$2:$G$44,2,FALSE)+ROW()-2)),\"\")","v":{"$error":"#N/A"}},{"$f":"IF(INDIRECT(\"c\" & (VLOOKUP(Switch!$D$34,$F$2:$G$44,2,FALSE)+ROW()-2))=Switch!$D$34,INDIRECT(\"a\" & (VLOOKUP(Switch!$D$34,$F$2:$G$44,2,FALSE)+ROW()-2)),\"\")","v":{"$error":"#N/A"}},{"$f":"IF(INDIRECT(\"c\" & (VLOOKUP(Switch!$D$35,$F$2:$G$44,2,FALSE)+ROW()-2))=Switch!$D$35,INDIRECT(\"a\" & (VLOOKUP(Switch!$D$35,$F$2:$G$44,2,FALSE)+ROW()-2)),\"\")","v":{"$error":"#N/A"}},{"$f":"IF(INDIRECT(\"c\" & (VLOOKUP(Switch!$D$36,$F$2:$G$44,2,FALSE)+ROW()-2))=Switch!$D$36,INDIRECT(\"a\" & (VLOOKUP(Switch!$D$36,$F$2:$G$44,2,FALSE)+ROW()-2)),\"\")","v":{"$error":"#N/A"}},{"$f":"IF(INDIRECT(\"c\" & (VLOOKUP(Switch!$D$37,$F$2:$G$44,2,FALSE)+ROW()-2))=Switch!$D$37,INDIRECT(\"a\" & (VLOOKUP(Switch!$D$37,$F$2:$G$44,2,FALSE)+ROW()-2)),\"\")","v":{"$error":"#N/A"}},{"$f":"IF(INDIRECT(\"c\" & (VLOOKUP(Switch!$D$38,$F$2:$G$44,2,FALSE)+ROW()-2))=Switch!$D$38,INDIRECT(\"a\" & (VLOOKUP(Switch!$D$38,$F$2:$G$44,2,FALSE)+ROW()-2)),\"\")","v":{"$error":"#N/A"}},{"$f":"IF(INDIRECT(\"c\" & (VLOOKUP(Switch!$D$39,$F$2:$G$44,2,FALSE)+ROW()-2))=Switch!$D$39,INDIRECT(\"a\" & (VLOOKUP(Switch!$D$39,$F$2:$G$44,2,FALSE)+ROW()-2)),\"\")","v":{"$error":"#N/A"}},{"$f":"IF(INDIRECT(\"c\" & (VLOOKUP(Switch!$D$40,$F$2:$G$44,2,FALSE)+ROW()-2))=Switch!$D$40,INDIRECT(\"a\" & (VLOOKUP(Switch!$D$40,$F$2:$G$44,2,FALSE)+ROW()-2)),\"\")","v":{"$error":"#N/A"}},{"$f":"IF(INDIRECT(\"c\" & (VLOOKUP(Switch!$D$52,$F$2:$G$44,2,FALSE)+ROW()-2))=Switch!$D$52,INDIRECT(\"a\" & (VLOOKUP(Switch!$D$52,$F$2:$G$44,2,FALSE)+ROW()-2)),\"\")","v":{"$error":"#N/A"}},{"$f":"IF(INDIRECT(\"c\" & (VLOOKUP(Switch!$D$53,$F$2:$G$44,2,FALSE)+ROW()-2))=Switch!$D$53,INDIRECT(\"a\" & (VLOOKUP(Switch!$D$53,$F$2:$G$44,2,FALSE)+ROW()-2)),\"\")","v":{"$error":"#N/A"}},{"$f":"IF(INDIRECT(\"c\" & (VLOOKUP(Switch!$D$54,$F$2:$G$44,2,FALSE)+ROW()-2))=Switch!$D$54,INDIRECT(\"a\" & (VLOOKUP(Switch!$D$54,$F$2:$G$44,2,FALSE)+ROW()-2)),\"\")","v":{"$error":"#N/A"}},{"$f":"IF(INDIRECT(\"c\" & (VLOOKUP(Switch!$D$55,$F$2:$G$44,2,FALSE)+ROW()-2))=Switch!$D$55,INDIRECT(\"a\" & (VLOOKUP(Switch!$D$55,$F$2:$G$44,2,FALSE)+ROW()-2)),\"\")","v":{"$error":"#N/A"}},{"$f":"IF(INDIRECT(\"c\" & (VLOOKUP(Switch!$D$56,$F$2:$G$44,2,FALSE)+ROW()-2))=Switch!$D$56,INDIRECT(\"a\" & (VLOOKUP(Switch!$D$56,$F$2:$G$44,2,FALSE)+ROW()-2)),\"\")","v":{"$error":"#N/A"}},{"$f":"IF(INDIRECT(\"c\" & (VLOOKUP(Switch!$D$57,$F$2:$G$44,2,FALSE)+ROW()-2))=Switch!$D$57,INDIRECT(\"a\" & (VLOOKUP(Switch!$D$57,$F$2:$G$44,2,FALSE)+ROW()-2)),\"\")","v":{"$error":"#N/A"}},{"$f":"IF(INDIRECT(\"c\" & (VLOOKUP(Switch!$D$58,$F$2:$G$44,2,FALSE)+ROW()-2))=Switch!$D$58,INDIRECT(\"a\" & (VLOOKUP(Switch!$D$58,$F$2:$G$44,2,FALSE)+ROW()-2)),\"\")","v":{"$error":"#N/A"}},{"$f":"IF(INDIRECT(\"c\" & (VLOOKUP(Switch!$D$59,$F$2:$G$44,2,FALSE)+ROW()-2))=Switch!$D$59,INDIRECT(\"a\" & (VLOOKUP(Switch!$D$59,$F$2:$G$44,2,FALSE)+ROW()-2)),\"\")","v":{"$error":"#N/A"}},{"$f":"IF(INDIRECT(\"c\" & (VLOOKUP(Switch!$D$60,$F$2:$G$44,2,FALSE)+ROW()-2))=Switch!$D$60,INDIRECT(\"a\" & (VLOOKUP(Switch!$D$60,$F$2:$G$44,2,FALSE)+ROW()-2)),\"\")","v":{"$error":"#N/A"}},{"$f":"IF(INDIRECT(\"c\" & (VLOOKUP(Switch!$D$61,$F$2:$G$44,2,FALSE)+ROW()-2))=Switch!$D$61,INDIRECT(\"a\" & (VLOOKUP(Switch!$D$61,$F$2:$G$44,2,FALSE)+ROW()-2)),\"\")","v":{"$error":"#N/A"}},{"$f":"IF(INDIRECT(\"c\" & (VLOOKUP(Switch!$D$62,$F$2:$G$44,2,FALSE)+ROW()-2))=Switch!$D$62,INDIRECT(\"a\" & (VLOOKUP(Switch!$D$62,$F$2:$G$44,2,FALSE)+ROW()-2)),\"\")","v":{"$error":"#N/A"}},{"$f":"IF(INDIRECT(\"c\" & (VLOOKUP(Switch!$D$63,$F$2:$G$44,2,FALSE)+ROW()-2))=Switch!$D$63,INDIRECT(\"a\" & (VLOOKUP(Switch!$D$63,$F$2:$G$44,2,FALSE)+ROW()-2)),\"\")","v":{"$error":"#N/A"}},{"$f":"IF(INDIRECT(\"c\" & (VLOOKUP(Switch!$D$64,$F$2:$G$44,2,FALSE)+ROW()-2))=Switch!$D$64,INDIRECT(\"a\" & (VLOOKUP(Switch!$D$64,$F$2:$G$44,2,FALSE)+ROW()-2)),\"\")","v":{"$error":"#N/A"}},{"$f":"IF(INDIRECT(\"c\" & (VLOOKUP(Switch!$D$65,$F$2:$G$44,2,FALSE)+ROW()-2))=Switch!$D$65,INDIRECT(\"a\" & (VLOOKUP(Switch!$D$65,$F$2:$G$44,2,FALSE)+ROW()-2)),\"\")","v":{"$error":"#N/A"}},{"$f":"IF(INDIRECT(\"c\" & (VLOOKUP(Switch!$D$66,$F$2:$G$44,2,FALSE)+ROW()-2))=Switch!$D$66,INDIRECT(\"a\" & (VLOOKUP(Switch!$D$66,$F$2:$G$44,2,FALSE)+ROW()-2)),\"\")","v":{"$error":"#N/A"}}]
["BCI Best Blend Flexible Income Fund E","BBBFC","Boutique Collective Investments (Pty) Ltd",{"$f":"ROW()","v":130},null,null,{"$f":"VLOOKUP(F130,$C$2:$D$637,2,FALSE)","v":{"$error":"#N/A"}},{"$f":"IF(INDIRECT(\"c\" & (VLOOKUP(Switch!$D$26,$F$2:$G$44,2,FALSE)+ROW()-2))=Switch!$D$26,INDIRECT(\"a\" & (VLOOKUP(Switch!$D$26,$F$2:$G$44,2,FALSE)+ROW()-2)),\"\")","v":{"$error":"#N/A"}},{"$f":"IF(INDIRECT(\"c\" & (VLOOKUP(Switch!$D$27,$F$2:$G$44,2,FALSE)+ROW()-2))=Switch!$D$27,INDIRECT(\"a\" & (VLOOKUP(Switch!$D$27,$F$2:$G$44,2,FALSE)+ROW()-2)),\"\")","v":{"$error":"#N/A"}},{"$f":"IF(INDIRECT(\"c\" & (VLOOKUP(Switch!$D$28,$F$2:$G$44,2,FALSE)+ROW()-2))=Switch!$D$28,INDIRECT(\"a\" & (VLOOKUP(Switch!$D$28,$F$2:$G$44,2,FALSE)+ROW()-2)),\"\")","v":{"$error":"#N/A"}},{"$f":"IF(INDIRECT(\"c\" & (VLOOKUP(Switch!$D$29,$F$2:$G$44,2,FALSE)+ROW()-2))=Switch!$D$29,INDIRECT(\"a\" & (VLOOKUP(Switch!$D$29,$F$2:$G$44,2,FALSE)+ROW()-2)),\"\")","v":{"$error":"#N/A"}},{"$f":"IF(INDIRECT(\"c\" & (VLOOKUP(Switch!$D$30,$F$2:$G$44,2,FALSE)+ROW()-2))=Switch!$D$30,INDIRECT(\"a\" & (VLOOKUP(Switch!$D$30,$F$2:$G$44,2,FALSE)+ROW()-2)),\"\")","v":{"$error":"#N/A"}},{"$f":"IF(INDIRECT(\"c\" & (VLOOKUP(Switch!$D$31,$F$2:$G$44,2,FALSE)+ROW()-2))=Switch!$D$31,INDIRECT(\"a\" & (VLOOKUP(Switch!$D$31,$F$2:$G$44,2,FALSE)+ROW()-2)),\"\")","v":{"$error":"#N/A"}},{"$f":"IF(INDIRECT(\"c\" & (VLOOKUP(Switch!$D$32,$F$2:$G$44,2,FALSE)+ROW()-2))=Switch!$D$32,INDIRECT(\"a\" & (VLOOKUP(Switch!$D$32,$F$2:$G$44,2,FALSE)+ROW()-2)),\"\")","v":{"$error":"#N/A"}},{"$f":"IF(INDIRECT(\"c\" & (VLOOKUP(Switch!$D$33,$F$2:$G$44,2,FALSE)+ROW()-2))=Switch!$D$33,INDIRECT(\"a\" & (VLOOKUP(Switch!$D$33,$F$2:$G$44,2,FALSE)+ROW()-2)),\"\")","v":{"$error":"#N/A"}},{"$f":"IF(INDIRECT(\"c\" & (VLOOKUP(Switch!$D$34,$F$2:$G$44,2,FALSE)+ROW()-2))=Switch!$D$34,INDIRECT(\"a\" & (VLOOKUP(Switch!$D$34,$F$2:$G$44,2,FALSE)+ROW()-2)),\"\")","v":{"$error":"#N/A"}},{"$f":"IF(INDIRECT(\"c\" & (VLOOKUP(Switch!$D$35,$F$2:$G$44,2,FALSE)+ROW()-2))=Switch!$D$35,INDIRECT(\"a\" & (VLOOKUP(Switch!$D$35,$F$2:$G$44,2,FALSE)+ROW()-2)),\"\")","v":{"$error":"#N/A"}},{"$f":"IF(INDIRECT(\"c\" & (VLOOKUP(Switch!$D$36,$F$2:$G$44,2,FALSE)+ROW()-2))=Switch!$D$36,INDIRECT(\"a\" & (VLOOKUP(Switch!$D$36,$F$2:$G$44,2,FALSE)+ROW()-2)),\"\")","v":{"$error":"#N/A"}},{"$f":"IF(INDIRECT(\"c\" & (VLOOKUP(Switch!$D$37,$F$2:$G$44,2,FALSE)+ROW()-2))=Switch!$D$37,INDIRECT(\"a\" & (VLOOKUP(Switch!$D$37,$F$2:$G$44,2,FALSE)+ROW()-2)),\"\")","v":{"$error":"#N/A"}},{"$f":"IF(INDIRECT(\"c\" & (VLOOKUP(Switch!$D$38,$F$2:$G$44,2,FALSE)+ROW()-2))=Switch!$D$38,INDIRECT(\"a\" & (VLOOKUP(Switch!$D$38,$F$2:$G$44,2,FALSE)+ROW()-2)),\"\")","v":{"$error":"#N/A"}},{"$f":"IF(INDIRECT(\"c\" & (VLOOKUP(Switch!$D$39,$F$2:$G$44,2,FALSE)+ROW()-2))=Switch!$D$39,INDIRECT(\"a\" & (VLOOKUP(Switch!$D$39,$F$2:$G$44,2,FALSE)+ROW()-2)),\"\")","v":{"$error":"#N/A"}},{"$f":"IF(INDIRECT(\"c\" & (VLOOKUP(Switch!$D$40,$F$2:$G$44,2,FALSE)+ROW()-2))=Switch!$D$40,INDIRECT(\"a\" & (VLOOKUP(Switch!$D$40,$F$2:$G$44,2,FALSE)+ROW()-2)),\"\")","v":{"$error":"#N/A"}},{"$f":"IF(INDIRECT(\"c\" & (VLOOKUP(Switch!$D$52,$F$2:$G$44,2,FALSE)+ROW()-2))=Switch!$D$52,INDIRECT(\"a\" & (VLOOKUP(Switch!$D$52,$F$2:$G$44,2,FALSE)+ROW()-2)),\"\")","v":{"$error":"#N/A"}},{"$f":"IF(INDIRECT(\"c\" & (VLOOKUP(Switch!$D$53,$F$2:$G$44,2,FALSE)+ROW()-2))=Switch!$D$53,INDIRECT(\"a\" & (VLOOKUP(Switch!$D$53,$F$2:$G$44,2,FALSE)+ROW()-2)),\"\")","v":{"$error":"#N/A"}},{"$f":"IF(INDIRECT(\"c\" & (VLOOKUP(Switch!$D$54,$F$2:$G$44,2,FALSE)+ROW()-2))=Switch!$D$54,INDIRECT(\"a\" & (VLOOKUP(Switch!$D$54,$F$2:$G$44,2,FALSE)+ROW()-2)),\"\")","v":{"$error":"#N/A"}},{"$f":"IF(INDIRECT(\"c\" & (VLOOKUP(Switch!$D$55,$F$2:$G$44,2,FALSE)+ROW()-2))=Switch!$D$55,INDIRECT(\"a\" & (VLOOKUP(Switch!$D$55,$F$2:$G$44,2,FALSE)+ROW()-2)),\"\")","v":{"$error":"#N/A"}},{"$f":"IF(INDIRECT(\"c\" & (VLOOKUP(Switch!$D$56,$F$2:$G$44,2,FALSE)+ROW()-2))=Switch!$D$56,INDIRECT(\"a\" & (VLOOKUP(Switch!$D$56,$F$2:$G$44,2,FALSE)+ROW()-2)),\"\")","v":{"$error":"#N/A"}},{"$f":"IF(INDIRECT(\"c\" & (VLOOKUP(Switch!$D$57,$F$2:$G$44,2,FALSE)+ROW()-2))=Switch!$D$57,INDIRECT(\"a\" & (VLOOKUP(Switch!$D$57,$F$2:$G$44,2,FALSE)+ROW()-2)),\"\")","v":{"$error":"#N/A"}},{"$f":"IF(INDIRECT(\"c\" & (VLOOKUP(Switch!$D$58,$F$2:$G$44,2,FALSE)+ROW()-2))=Switch!$D$58,INDIRECT(\"a\" & (VLOOKUP(Switch!$D$58,$F$2:$G$44,2,FALSE)+ROW()-2)),\"\")","v":{"$error":"#N/A"}},{"$f":"IF(INDIRECT(\"c\" & (VLOOKUP(Switch!$D$59,$F$2:$G$44,2,FALSE)+ROW()-2))=Switch!$D$59,INDIRECT(\"a\" & (VLOOKUP(Switch!$D$59,$F$2:$G$44,2,FALSE)+ROW()-2)),\"\")","v":{"$error":"#N/A"}},{"$f":"IF(INDIRECT(\"c\" & (VLOOKUP(Switch!$D$60,$F$2:$G$44,2,FALSE)+ROW()-2))=Switch!$D$60,INDIRECT(\"a\" & (VLOOKUP(Switch!$D$60,$F$2:$G$44,2,FALSE)+ROW()-2)),\"\")","v":{"$error":"#N/A"}},{"$f":"IF(INDIRECT(\"c\" & (VLOOKUP(Switch!$D$61,$F$2:$G$44,2,FALSE)+ROW()-2))=Switch!$D$61,INDIRECT(\"a\" & (VLOOKUP(Switch!$D$61,$F$2:$G$44,2,FALSE)+ROW()-2)),\"\")","v":{"$error":"#N/A"}},{"$f":"IF(INDIRECT(\"c\" & (VLOOKUP(Switch!$D$62,$F$2:$G$44,2,FALSE)+ROW()-2))=Switch!$D$62,INDIRECT(\"a\" & (VLOOKUP(Switch!$D$62,$F$2:$G$44,2,FALSE)+ROW()-2)),\"\")","v":{"$error":"#N/A"}},{"$f":"IF(INDIRECT(\"c\" & (VLOOKUP(Switch!$D$63,$F$2:$G$44,2,FALSE)+ROW()-2))=Switch!$D$63,INDIRECT(\"a\" & (VLOOKUP(Switch!$D$63,$F$2:$G$44,2,FALSE)+ROW()-2)),\"\")","v":{"$error":"#N/A"}},{"$f":"IF(INDIRECT(\"c\" & (VLOOKUP(Switch!$D$64,$F$2:$G$44,2,FALSE)+ROW()-2))=Switch!$D$64,INDIRECT(\"a\" & (VLOOKUP(Switch!$D$64,$F$2:$G$44,2,FALSE)+ROW()-2)),\"\")","v":{"$error":"#N/A"}},{"$f":"IF(INDIRECT(\"c\" & (VLOOKUP(Switch!$D$65,$F$2:$G$44,2,FALSE)+ROW()-2))=Switch!$D$65,INDIRECT(\"a\" & (VLOOKUP(Switch!$D$65,$F$2:$G$44,2,FALSE)+ROW()-2)),\"\")","v":{"$error":"#N/A"}},{"$f":"IF(INDIRECT(\"c\" & (VLOOKUP(Switch!$D$66,$F$2:$G$44,2,FALSE)+ROW()-2))=Switch!$D$66,INDIRECT(\"a\" & (VLOOKUP(Switch!$D$66,$F$2:$G$44,2,FALSE)+ROW()-2)),\"\")","v":{"$error":"#N/A"}}]
["BCI Best Blend Specialist Equity Fund B","BBBEC","Boutique Collective Investments (Pty) Ltd",{"$f":"ROW()","v":131},null,null,{"$f":"VLOOKUP(F131,$C$2:$D$637,2,FALSE)","v":{"$error":"#N/A"}},{"$f":"IF(INDIRECT(\"c\" & (VLOOKUP(Switch!$D$26,$F$2:$G$44,2,FALSE)+ROW()-2))=Switch!$D$26,INDIRECT(\"a\" & (VLOOKUP(Switch!$D$26,$F$2:$G$44,2,FALSE)+ROW()-2)),\"\")","v":{"$error":"#N/A"}},{"$f":"IF(INDIRECT(\"c\" & (VLOOKUP(Switch!$D$27,$F$2:$G$44,2,FALSE)+ROW()-2))=Switch!$D$27,INDIRECT(\"a\" & (VLOOKUP(Switch!$D$27,$F$2:$G$44,2,FALSE)+ROW()-2)),\"\")","v":{"$error":"#N/A"}},{"$f":"IF(INDIRECT(\"c\" & (VLOOKUP(Switch!$D$28,$F$2:$G$44,2,FALSE)+ROW()-2))=Switch!$D$28,INDIRECT(\"a\" & (VLOOKUP(Switch!$D$28,$F$2:$G$44,2,FALSE)+ROW()-2)),\"\")","v":{"$error":"#N/A"}},{"$f":"IF(INDIRECT(\"c\" & (VLOOKUP(Switch!$D$29,$F$2:$G$44,2,FALSE)+ROW()-2))=Switch!$D$29,INDIRECT(\"a\" & (VLOOKUP(Switch!$D$29,$F$2:$G$44,2,FALSE)+ROW()-2)),\"\")","v":{"$error":"#N/A"}},{"$f":"IF(INDIRECT(\"c\" & (VLOOKUP(Switch!$D$30,$F$2:$G$44,2,FALSE)+ROW()-2))=Switch!$D$30,INDIRECT(\"a\" & (VLOOKUP(Switch!$D$30,$F$2:$G$44,2,FALSE)+ROW()-2)),\"\")","v":{"$error":"#N/A"}},{"$f":"IF(INDIRECT(\"c\" & (VLOOKUP(Switch!$D$31,$F$2:$G$44,2,FALSE)+ROW()-2))=Switch!$D$31,INDIRECT(\"a\" & (VLOOKUP(Switch!$D$31,$F$2:$G$44,2,FALSE)+ROW()-2)),\"\")","v":{"$error":"#N/A"}},{"$f":"IF(INDIRECT(\"c\" & (VLOOKUP(Switch!$D$32,$F$2:$G$44,2,FALSE)+ROW()-2))=Switch!$D$32,INDIRECT(\"a\" & (VLOOKUP(Switch!$D$32,$F$2:$G$44,2,FALSE)+ROW()-2)),\"\")","v":{"$error":"#N/A"}},{"$f":"IF(INDIRECT(\"c\" & (VLOOKUP(Switch!$D$33,$F$2:$G$44,2,FALSE)+ROW()-2))=Switch!$D$33,INDIRECT(\"a\" & (VLOOKUP(Switch!$D$33,$F$2:$G$44,2,FALSE)+ROW()-2)),\"\")","v":{"$error":"#N/A"}},{"$f":"IF(INDIRECT(\"c\" & (VLOOKUP(Switch!$D$34,$F$2:$G$44,2,FALSE)+ROW()-2))=Switch!$D$34,INDIRECT(\"a\" & (VLOOKUP(Switch!$D$34,$F$2:$G$44,2,FALSE)+ROW()-2)),\"\")","v":{"$error":"#N/A"}},{"$f":"IF(INDIRECT(\"c\" & (VLOOKUP(Switch!$D$35,$F$2:$G$44,2,FALSE)+ROW()-2))=Switch!$D$35,INDIRECT(\"a\" & (VLOOKUP(Switch!$D$35,$F$2:$G$44,2,FALSE)+ROW()-2)),\"\")","v":{"$error":"#N/A"}},{"$f":"IF(INDIRECT(\"c\" & (VLOOKUP(Switch!$D$36,$F$2:$G$44,2,FALSE)+ROW()-2))=Switch!$D$36,INDIRECT(\"a\" & (VLOOKUP(Switch!$D$36,$F$2:$G$44,2,FALSE)+ROW()-2)),\"\")","v":{"$error":"#N/A"}},{"$f":"IF(INDIRECT(\"c\" & (VLOOKUP(Switch!$D$37,$F$2:$G$44,2,FALSE)+ROW()-2))=Switch!$D$37,INDIRECT(\"a\" & (VLOOKUP(Switch!$D$37,$F$2:$G$44,2,FALSE)+ROW()-2)),\"\")","v":{"$error":"#N/A"}},{"$f":"IF(INDIRECT(\"c\" & (VLOOKUP(Switch!$D$38,$F$2:$G$44,2,FALSE)+ROW()-2))=Switch!$D$38,INDIRECT(\"a\" & (VLOOKUP(Switch!$D$38,$F$2:$G$44,2,FALSE)+ROW()-2)),\"\")","v":{"$error":"#N/A"}},{"$f":"IF(INDIRECT(\"c\" & (VLOOKUP(Switch!$D$39,$F$2:$G$44,2,FALSE)+ROW()-2))=Switch!$D$39,INDIRECT(\"a\" & (VLOOKUP(Switch!$D$39,$F$2:$G$44,2,FALSE)+ROW()-2)),\"\")","v":{"$error":"#N/A"}},{"$f":"IF(INDIRECT(\"c\" & (VLOOKUP(Switch!$D$40,$F$2:$G$44,2,FALSE)+ROW()-2))=Switch!$D$40,INDIRECT(\"a\" & (VLOOKUP(Switch!$D$40,$F$2:$G$44,2,FALSE)+ROW()-2)),\"\")","v":{"$error":"#N/A"}},{"$f":"IF(INDIRECT(\"c\" & (VLOOKUP(Switch!$D$52,$F$2:$G$44,2,FALSE)+ROW()-2))=Switch!$D$52,INDIRECT(\"a\" & (VLOOKUP(Switch!$D$52,$F$2:$G$44,2,FALSE)+ROW()-2)),\"\")","v":{"$error":"#N/A"}},{"$f":"IF(INDIRECT(\"c\" & (VLOOKUP(Switch!$D$53,$F$2:$G$44,2,FALSE)+ROW()-2))=Switch!$D$53,INDIRECT(\"a\" & (VLOOKUP(Switch!$D$53,$F$2:$G$44,2,FALSE)+ROW()-2)),\"\")","v":{"$error":"#N/A"}},{"$f":"IF(INDIRECT(\"c\" & (VLOOKUP(Switch!$D$54,$F$2:$G$44,2,FALSE)+ROW()-2))=Switch!$D$54,INDIRECT(\"a\" & (VLOOKUP(Switch!$D$54,$F$2:$G$44,2,FALSE)+ROW()-2)),\"\")","v":{"$error":"#N/A"}},{"$f":"IF(INDIRECT(\"c\" & (VLOOKUP(Switch!$D$55,$F$2:$G$44,2,FALSE)+ROW()-2))=Switch!$D$55,INDIRECT(\"a\" & (VLOOKUP(Switch!$D$55,$F$2:$G$44,2,FALSE)+ROW()-2)),\"\")","v":{"$error":"#N/A"}},{"$f":"IF(INDIRECT(\"c\" & (VLOOKUP(Switch!$D$56,$F$2:$G$44,2,FALSE)+ROW()-2))=Switch!$D$56,INDIRECT(\"a\" & (VLOOKUP(Switch!$D$56,$F$2:$G$44,2,FALSE)+ROW()-2)),\"\")","v":{"$error":"#N/A"}},{"$f":"IF(INDIRECT(\"c\" & (VLOOKUP(Switch!$D$57,$F$2:$G$44,2,FALSE)+ROW()-2))=Switch!$D$57,INDIRECT(\"a\" & (VLOOKUP(Switch!$D$57,$F$2:$G$44,2,FALSE)+ROW()-2)),\"\")","v":{"$error":"#N/A"}},{"$f":"IF(INDIRECT(\"c\" & (VLOOKUP(Switch!$D$58,$F$2:$G$44,2,FALSE)+ROW()-2))=Switch!$D$58,INDIRECT(\"a\" & (VLOOKUP(Switch!$D$58,$F$2:$G$44,2,FALSE)+ROW()-2)),\"\")","v":{"$error":"#N/A"}},{"$f":"IF(INDIRECT(\"c\" & (VLOOKUP(Switch!$D$59,$F$2:$G$44,2,FALSE)+ROW()-2))=Switch!$D$59,INDIRECT(\"a\" & (VLOOKUP(Switch!$D$59,$F$2:$G$44,2,FALSE)+ROW()-2)),\"\")","v":{"$error":"#N/A"}},{"$f":"IF(INDIRECT(\"c\" & (VLOOKUP(Switch!$D$60,$F$2:$G$44,2,FALSE)+ROW()-2))=Switch!$D$60,INDIRECT(\"a\" & (VLOOKUP(Switch!$D$60,$F$2:$G$44,2,FALSE)+ROW()-2)),\"\")","v":{"$error":"#N/A"}},{"$f":"IF(INDIRECT(\"c\" & (VLOOKUP(Switch!$D$61,$F$2:$G$44,2,FALSE)+ROW()-2))=Switch!$D$61,INDIRECT(\"a\" & (VLOOKUP(Switch!$D$61,$F$2:$G$44,2,FALSE)+ROW()-2)),\"\")","v":{"$error":"#N/A"}},{"$f":"IF(INDIRECT(\"c\" & (VLOOKUP(Switch!$D$62,$F$2:$G$44,2,FALSE)+ROW()-2))=Switch!$D$62,INDIRECT(\"a\" & (VLOOKUP(Switch!$D$62,$F$2:$G$44,2,FALSE)+ROW()-2)),\"\")","v":{"$error":"#N/A"}},{"$f":"IF(INDIRECT(\"c\" & (VLOOKUP(Switch!$D$63,$F$2:$G$44,2,FALSE)+ROW()-2))=Switch!$D$63,INDIRECT(\"a\" & (VLOOKUP(Switch!$D$63,$F$2:$G$44,2,FALSE)+ROW()-2)),\"\")","v":{"$error":"#N/A"}},{"$f":"IF(INDIRECT(\"c\" & (VLOOKUP(Switch!$D$64,$F$2:$G$44,2,FALSE)+ROW()-2))=Switch!$D$64,INDIRECT(\"a\" & (VLOOKUP(Switch!$D$64,$F$2:$G$44,2,FALSE)+ROW()-2)),\"\")","v":{"$error":"#N/A"}},{"$f":"IF(INDIRECT(\"c\" & (VLOOKUP(Switch!$D$65,$F$2:$G$44,2,FALSE)+ROW()-2))=Switch!$D$65,INDIRECT(\"a\" & (VLOOKUP(Switch!$D$65,$F$2:$G$44,2,FALSE)+ROW()-2)),\"\")","v":{"$error":"#N/A"}},{"$f":"IF(INDIRECT(\"c\" & (VLOOKUP(Switch!$D$66,$F$2:$G$44,2,FALSE)+ROW()-2))=Switch!$D$66,INDIRECT(\"a\" & (VLOOKUP(Switch!$D$66,$F$2:$G$44,2,FALSE)+ROW()-2)),\"\")","v":{"$error":"#N/A"}}]
["BCI Best Blend Specialist Equity Fund E","BBBEC","Boutique Collective Investments (Pty) Ltd",{"$f":"ROW()","v":132},null,null,{"$f":"VLOOKUP(F132,$C$2:$D$637,2,FALSE)","v":{"$error":"#N/A"}},{"$f":"IF(INDIRECT(\"c\" & (VLOOKUP(Switch!$D$26,$F$2:$G$44,2,FALSE)+ROW()-2))=Switch!$D$26,INDIRECT(\"a\" & (VLOOKUP(Switch!$D$26,$F$2:$G$44,2,FALSE)+ROW()-2)),\"\")","v":{"$error":"#N/A"}},{"$f":"IF(INDIRECT(\"c\" & (VLOOKUP(Switch!$D$27,$F$2:$G$44,2,FALSE)+ROW()-2))=Switch!$D$27,INDIRECT(\"a\" & (VLOOKUP(Switch!$D$27,$F$2:$G$44,2,FALSE)+ROW()-2)),\"\")","v":{"$error":"#N/A"}},{"$f":"IF(INDIRECT(\"c\" & (VLOOKUP(Switch!$D$28,$F$2:$G$44,2,FALSE)+ROW()-2))=Switch!$D$28,INDIRECT(\"a\" & (VLOOKUP(Switch!$D$28,$F$2:$G$44,2,FALSE)+ROW()-2)),\"\")","v":{"$error":"#N/A"}},{"$f":"IF(INDIRECT(\"c\" & (VLOOKUP(Switch!$D$29,$F$2:$G$44,2,FALSE)+ROW()-2))=Switch!$D$29,INDIRECT(\"a\" & (VLOOKUP(Switch!$D$29,$F$2:$G$44,2,FALSE)+ROW()-2)),\"\")","v":{"$error":"#N/A"}},{"$f":"IF(INDIRECT(\"c\" & (VLOOKUP(Switch!$D$30,$F$2:$G$44,2,FALSE)+ROW()-2))=Switch!$D$30,INDIRECT(\"a\" & (VLOOKUP(Switch!$D$30,$F$2:$G$44,2,FALSE)+ROW()-2)),\"\")","v":{"$error":"#N/A"}},{"$f":"IF(INDIRECT(\"c\" & (VLOOKUP(Switch!$D$31,$F$2:$G$44,2,FALSE)+ROW()-2))=Switch!$D$31,INDIRECT(\"a\" & (VLOOKUP(Switch!$D$31,$F$2:$G$44,2,FALSE)+ROW()-2)),\"\")","v":{"$error":"#N/A"}},{"$f":"IF(INDIRECT(\"c\" & (VLOOKUP(Switch!$D$32,$F$2:$G$44,2,FALSE)+ROW()-2))=Switch!$D$32,INDIRECT(\"a\" & (VLOOKUP(Switch!$D$32,$F$2:$G$44,2,FALSE)+ROW()-2)),\"\")","v":{"$error":"#N/A"}},{"$f":"IF(INDIRECT(\"c\" & (VLOOKUP(Switch!$D$33,$F$2:$G$44,2,FALSE)+ROW()-2))=Switch!$D$33,INDIRECT(\"a\" & (VLOOKUP(Switch!$D$33,$F$2:$G$44,2,FALSE)+ROW()-2)),\"\")","v":{"$error":"#N/A"}},{"$f":"IF(INDIRECT(\"c\" & (VLOOKUP(Switch!$D$34,$F$2:$G$44,2,FALSE)+ROW()-2))=Switch!$D$34,INDIRECT(\"a\" & (VLOOKUP(Switch!$D$34,$F$2:$G$44,2,FALSE)+ROW()-2)),\"\")","v":{"$error":"#N/A"}},{"$f":"IF(INDIRECT(\"c\" & (VLOOKUP(Switch!$D$35,$F$2:$G$44,2,FALSE)+ROW()-2))=Switch!$D$35,INDIRECT(\"a\" & (VLOOKUP(Switch!$D$35,$F$2:$G$44,2,FALSE)+ROW()-2)),\"\")","v":{"$error":"#N/A"}},{"$f":"IF(INDIRECT(\"c\" & (VLOOKUP(Switch!$D$36,$F$2:$G$44,2,FALSE)+ROW()-2))=Switch!$D$36,INDIRECT(\"a\" & (VLOOKUP(Switch!$D$36,$F$2:$G$44,2,FALSE)+ROW()-2)),\"\")","v":{"$error":"#N/A"}},{"$f":"IF(INDIRECT(\"c\" & (VLOOKUP(Switch!$D$37,$F$2:$G$44,2,FALSE)+ROW()-2))=Switch!$D$37,INDIRECT(\"a\" & (VLOOKUP(Switch!$D$37,$F$2:$G$44,2,FALSE)+ROW()-2)),\"\")","v":{"$error":"#N/A"}},{"$f":"IF(INDIRECT(\"c\" & (VLOOKUP(Switch!$D$38,$F$2:$G$44,2,FALSE)+ROW()-2))=Switch!$D$38,INDIRECT(\"a\" & (VLOOKUP(Switch!$D$38,$F$2:$G$44,2,FALSE)+ROW()-2)),\"\")","v":{"$error":"#N/A"}},{"$f":"IF(INDIRECT(\"c\" & (VLOOKUP(Switch!$D$39,$F$2:$G$44,2,FALSE)+ROW()-2))=Switch!$D$39,INDIRECT(\"a\" & (VLOOKUP(Switch!$D$39,$F$2:$G$44,2,FALSE)+ROW()-2)),\"\")","v":{"$error":"#N/A"}},{"$f":"IF(INDIRECT(\"c\" & (VLOOKUP(Switch!$D$40,$F$2:$G$44,2,FALSE)+ROW()-2))=Switch!$D$40,INDIRECT(\"a\" & (VLOOKUP(Switch!$D$40,$F$2:$G$44,2,FALSE)+ROW()-2)),\"\")","v":{"$error":"#N/A"}},{"$f":"IF(INDIRECT(\"c\" & (VLOOKUP(Switch!$D$52,$F$2:$G$44,2,FALSE)+ROW()-2))=Switch!$D$52,INDIRECT(\"a\" & (VLOOKUP(Switch!$D$52,$F$2:$G$44,2,FALSE)+ROW()-2)),\"\")","v":{"$error":"#N/A"}},{"$f":"IF(INDIRECT(\"c\" & (VLOOKUP(Switch!$D$53,$F$2:$G$44,2,FALSE)+ROW()-2))=Switch!$D$53,INDIRECT(\"a\" & (VLOOKUP(Switch!$D$53,$F$2:$G$44,2,FALSE)+ROW()-2)),\"\")","v":{"$error":"#N/A"}},{"$f":"IF(INDIRECT(\"c\" & (VLOOKUP(Switch!$D$54,$F$2:$G$44,2,FALSE)+ROW()-2))=Switch!$D$54,INDIRECT(\"a\" & (VLOOKUP(Switch!$D$54,$F$2:$G$44,2,FALSE)+ROW()-2)),\"\")","v":{"$error":"#N/A"}},{"$f":"IF(INDIRECT(\"c\" & (VLOOKUP(Switch!$D$55,$F$2:$G$44,2,FALSE)+ROW()-2))=Switch!$D$55,INDIRECT(\"a\" & (VLOOKUP(Switch!$D$55,$F$2:$G$44,2,FALSE)+ROW()-2)),\"\")","v":{"$error":"#N/A"}},{"$f":"IF(INDIRECT(\"c\" & (VLOOKUP(Switch!$D$56,$F$2:$G$44,2,FALSE)+ROW()-2))=Switch!$D$56,INDIRECT(\"a\" & (VLOOKUP(Switch!$D$56,$F$2:$G$44,2,FALSE)+ROW()-2)),\"\")","v":{"$error":"#N/A"}},{"$f":"IF(INDIRECT(\"c\" & (VLOOKUP(Switch!$D$57,$F$2:$G$44,2,FALSE)+ROW()-2))=Switch!$D$57,INDIRECT(\"a\" & (VLOOKUP(Switch!$D$57,$F$2:$G$44,2,FALSE)+ROW()-2)),\"\")","v":{"$error":"#N/A"}},{"$f":"IF(INDIRECT(\"c\" & (VLOOKUP(Switch!$D$58,$F$2:$G$44,2,FALSE)+ROW()-2))=Switch!$D$58,INDIRECT(\"a\" & (VLOOKUP(Switch!$D$58,$F$2:$G$44,2,FALSE)+ROW()-2)),\"\")","v":{"$error":"#N/A"}},{"$f":"IF(INDIRECT(\"c\" & (VLOOKUP(Switch!$D$59,$F$2:$G$44,2,FALSE)+ROW()-2))=Switch!$D$59,INDIRECT(\"a\" & (VLOOKUP(Switch!$D$59,$F$2:$G$44,2,FALSE)+ROW()-2)),\"\")","v":{"$error":"#N/A"}},{"$f":"IF(INDIRECT(\"c\" & (VLOOKUP(Switch!$D$60,$F$2:$G$44,2,FALSE)+ROW()-2))=Switch!$D$60,INDIRECT(\"a\" & (VLOOKUP(Switch!$D$60,$F$2:$G$44,2,FALSE)+ROW()-2)),\"\")","v":{"$error":"#N/A"}},{"$f":"IF(INDIRECT(\"c\" & (VLOOKUP(Switch!$D$61,$F$2:$G$44,2,FALSE)+ROW()-2))=Switch!$D$61,INDIRECT(\"a\" & (VLOOKUP(Switch!$D$61,$F$2:$G$44,2,FALSE)+ROW()-2)),\"\")","v":{"$error":"#N/A"}},{"$f":"IF(INDIRECT(\"c\" & (VLOOKUP(Switch!$D$62,$F$2:$G$44,2,FALSE)+ROW()-2))=Switch!$D$62,INDIRECT(\"a\" & (VLOOKUP(Switch!$D$62,$F$2:$G$44,2,FALSE)+ROW()-2)),\"\")","v":{"$error":"#N/A"}},{"$f":"IF(INDIRECT(\"c\" & (VLOOKUP(Switch!$D$63,$F$2:$G$44,2,FALSE)+ROW()-2))=Switch!$D$63,INDIRECT(\"a\" & (VLOOKUP(Switch!$D$63,$F$2:$G$44,2,FALSE)+ROW()-2)),\"\")","v":{"$error":"#N/A"}},{"$f":"IF(INDIRECT(\"c\" & (VLOOKUP(Switch!$D$64,$F$2:$G$44,2,FALSE)+ROW()-2))=Switch!$D$64,INDIRECT(\"a\" & (VLOOKUP(Switch!$D$64,$F$2:$G$44,2,FALSE)+ROW()-2)),\"\")","v":{"$error":"#N/A"}},{"$f":"IF(INDIRECT(\"c\" & (VLOOKUP(Switch!$D$65,$F$2:$G$44,2,FALSE)+ROW()-2))=Switch!$D$65,INDIRECT(\"a\" & (VLOOKUP(Switch!$D$65,$F$2:$G$44,2,FALSE)+ROW()-2)),\"\")","v":{"$error":"#N/A"}},{"$f":"IF(INDIRECT(\"c\" & (VLOOKUP(Switch!$D$66,$F$2:$G$44,2,FALSE)+ROW()-2))=Switch!$D$66,INDIRECT(\"a\" & (VLOOKUP(Switch!$D$66,$F$2:$G$44,2,FALSE)+ROW()-2)),\"\")","v":{"$error":"#N/A"}}]
["Efficient BCI African Flexible Income Fund A","EWWM","Boutique Collective Investments (Pty) Ltd",{"$f":"ROW()","v":133},null,null,{"$f":"VLOOKUP(F133,$C$2:$D$637,2,FALSE)","v":{"$error":"#N/A"}},{"$f":"IF(INDIRECT(\"c\" & (VLOOKUP(Switch!$D$26,$F$2:$G$44,2,FALSE)+ROW()-2))=Switch!$D$26,INDIRECT(\"a\" & (VLOOKUP(Switch!$D$26,$F$2:$G$44,2,FALSE)+ROW()-2)),\"\")","v":{"$error":"#N/A"}},{"$f":"IF(INDIRECT(\"c\" & (VLOOKUP(Switch!$D$27,$F$2:$G$44,2,FALSE)+ROW()-2))=Switch!$D$27,INDIRECT(\"a\" & (VLOOKUP(Switch!$D$27,$F$2:$G$44,2,FALSE)+ROW()-2)),\"\")","v":{"$error":"#N/A"}},{"$f":"IF(INDIRECT(\"c\" & (VLOOKUP(Switch!$D$28,$F$2:$G$44,2,FALSE)+ROW()-2))=Switch!$D$28,INDIRECT(\"a\" & (VLOOKUP(Switch!$D$28,$F$2:$G$44,2,FALSE)+ROW()-2)),\"\")","v":{"$error":"#N/A"}},{"$f":"IF(INDIRECT(\"c\" & (VLOOKUP(Switch!$D$29,$F$2:$G$44,2,FALSE)+ROW()-2))=Switch!$D$29,INDIRECT(\"a\" & (VLOOKUP(Switch!$D$29,$F$2:$G$44,2,FALSE)+ROW()-2)),\"\")","v":{"$error":"#N/A"}},{"$f":"IF(INDIRECT(\"c\" & (VLOOKUP(Switch!$D$30,$F$2:$G$44,2,FALSE)+ROW()-2))=Switch!$D$30,INDIRECT(\"a\" & (VLOOKUP(Switch!$D$30,$F$2:$G$44,2,FALSE)+ROW()-2)),\"\")","v":{"$error":"#N/A"}},{"$f":"IF(INDIRECT(\"c\" & (VLOOKUP(Switch!$D$31,$F$2:$G$44,2,FALSE)+ROW()-2))=Switch!$D$31,INDIRECT(\"a\" & (VLOOKUP(Switch!$D$31,$F$2:$G$44,2,FALSE)+ROW()-2)),\"\")","v":{"$error":"#N/A"}},{"$f":"IF(INDIRECT(\"c\" & (VLOOKUP(Switch!$D$32,$F$2:$G$44,2,FALSE)+ROW()-2))=Switch!$D$32,INDIRECT(\"a\" & (VLOOKUP(Switch!$D$32,$F$2:$G$44,2,FALSE)+ROW()-2)),\"\")","v":{"$error":"#N/A"}},{"$f":"IF(INDIRECT(\"c\" & (VLOOKUP(Switch!$D$33,$F$2:$G$44,2,FALSE)+ROW()-2))=Switch!$D$33,INDIRECT(\"a\" & (VLOOKUP(Switch!$D$33,$F$2:$G$44,2,FALSE)+ROW()-2)),\"\")","v":{"$error":"#N/A"}},{"$f":"IF(INDIRECT(\"c\" & (VLOOKUP(Switch!$D$34,$F$2:$G$44,2,FALSE)+ROW()-2))=Switch!$D$34,INDIRECT(\"a\" & (VLOOKUP(Switch!$D$34,$F$2:$G$44,2,FALSE)+ROW()-2)),\"\")","v":{"$error":"#N/A"}},{"$f":"IF(INDIRECT(\"c\" & (VLOOKUP(Switch!$D$35,$F$2:$G$44,2,FALSE)+ROW()-2))=Switch!$D$35,INDIRECT(\"a\" & (VLOOKUP(Switch!$D$35,$F$2:$G$44,2,FALSE)+ROW()-2)),\"\")","v":{"$error":"#N/A"}},{"$f":"IF(INDIRECT(\"c\" & (VLOOKUP(Switch!$D$36,$F$2:$G$44,2,FALSE)+ROW()-2))=Switch!$D$36,INDIRECT(\"a\" & (VLOOKUP(Switch!$D$36,$F$2:$G$44,2,FALSE)+ROW()-2)),\"\")","v":{"$error":"#N/A"}},{"$f":"IF(INDIRECT(\"c\" & (VLOOKUP(Switch!$D$37,$F$2:$G$44,2,FALSE)+ROW()-2))=Switch!$D$37,INDIRECT(\"a\" & (VLOOKUP(Switch!$D$37,$F$2:$G$44,2,FALSE)+ROW()-2)),\"\")","v":{"$error":"#N/A"}},{"$f":"IF(INDIRECT(\"c\" & (VLOOKUP(Switch!$D$38,$F$2:$G$44,2,FALSE)+ROW()-2))=Switch!$D$38,INDIRECT(\"a\" & (VLOOKUP(Switch!$D$38,$F$2:$G$44,2,FALSE)+ROW()-2)),\"\")","v":{"$error":"#N/A"}},{"$f":"IF(INDIRECT(\"c\" & (VLOOKUP(Switch!$D$39,$F$2:$G$44,2,FALSE)+ROW()-2))=Switch!$D$39,INDIRECT(\"a\" & (VLOOKUP(Switch!$D$39,$F$2:$G$44,2,FALSE)+ROW()-2)),\"\")","v":{"$error":"#N/A"}},{"$f":"IF(INDIRECT(\"c\" & (VLOOKUP(Switch!$D$40,$F$2:$G$44,2,FALSE)+ROW()-2))=Switch!$D$40,INDIRECT(\"a\" & (VLOOKUP(Switch!$D$40,$F$2:$G$44,2,FALSE)+ROW()-2)),\"\")","v":{"$error":"#N/A"}},{"$f":"IF(INDIRECT(\"c\" & (VLOOKUP(Switch!$D$52,$F$2:$G$44,2,FALSE)+ROW()-2))=Switch!$D$52,INDIRECT(\"a\" & (VLOOKUP(Switch!$D$52,$F$2:$G$44,2,FALSE)+ROW()-2)),\"\")","v":{"$error":"#N/A"}},{"$f":"IF(INDIRECT(\"c\" & (VLOOKUP(Switch!$D$53,$F$2:$G$44,2,FALSE)+ROW()-2))=Switch!$D$53,INDIRECT(\"a\" & (VLOOKUP(Switch!$D$53,$F$2:$G$44,2,FALSE)+ROW()-2)),\"\")","v":{"$error":"#N/A"}},{"$f":"IF(INDIRECT(\"c\" & (VLOOKUP(Switch!$D$54,$F$2:$G$44,2,FALSE)+ROW()-2))=Switch!$D$54,INDIRECT(\"a\" & (VLOOKUP(Switch!$D$54,$F$2:$G$44,2,FALSE)+ROW()-2)),\"\")","v":{"$error":"#N/A"}},{"$f":"IF(INDIRECT(\"c\" & (VLOOKUP(Switch!$D$55,$F$2:$G$44,2,FALSE)+ROW()-2))=Switch!$D$55,INDIRECT(\"a\" & (VLOOKUP(Switch!$D$55,$F$2:$G$44,2,FALSE)+ROW()-2)),\"\")","v":{"$error":"#N/A"}},{"$f":"IF(INDIRECT(\"c\" & (VLOOKUP(Switch!$D$56,$F$2:$G$44,2,FALSE)+ROW()-2))=Switch!$D$56,INDIRECT(\"a\" & (VLOOKUP(Switch!$D$56,$F$2:$G$44,2,FALSE)+ROW()-2)),\"\")","v":{"$error":"#N/A"}},{"$f":"IF(INDIRECT(\"c\" & (VLOOKUP(Switch!$D$57,$F$2:$G$44,2,FALSE)+ROW()-2))=Switch!$D$57,INDIRECT(\"a\" & (VLOOKUP(Switch!$D$57,$F$2:$G$44,2,FALSE)+ROW()-2)),\"\")","v":{"$error":"#N/A"}},{"$f":"IF(INDIRECT(\"c\" & (VLOOKUP(Switch!$D$58,$F$2:$G$44,2,FALSE)+ROW()-2))=Switch!$D$58,INDIRECT(\"a\" & (VLOOKUP(Switch!$D$58,$F$2:$G$44,2,FALSE)+ROW()-2)),\"\")","v":{"$error":"#N/A"}},{"$f":"IF(INDIRECT(\"c\" & (VLOOKUP(Switch!$D$59,$F$2:$G$44,2,FALSE)+ROW()-2))=Switch!$D$59,INDIRECT(\"a\" & (VLOOKUP(Switch!$D$59,$F$2:$G$44,2,FALSE)+ROW()-2)),\"\")","v":{"$error":"#N/A"}},{"$f":"IF(INDIRECT(\"c\" & (VLOOKUP(Switch!$D$60,$F$2:$G$44,2,FALSE)+ROW()-2))=Switch!$D$60,INDIRECT(\"a\" & (VLOOKUP(Switch!$D$60,$F$2:$G$44,2,FALSE)+ROW()-2)),\"\")","v":{"$error":"#N/A"}},{"$f":"IF(INDIRECT(\"c\" & (VLOOKUP(Switch!$D$61,$F$2:$G$44,2,FALSE)+ROW()-2))=Switch!$D$61,INDIRECT(\"a\" & (VLOOKUP(Switch!$D$61,$F$2:$G$44,2,FALSE)+ROW()-2)),\"\")","v":{"$error":"#N/A"}},{"$f":"IF(INDIRECT(\"c\" & (VLOOKUP(Switch!$D$62,$F$2:$G$44,2,FALSE)+ROW()-2))=Switch!$D$62,INDIRECT(\"a\" & (VLOOKUP(Switch!$D$62,$F$2:$G$44,2,FALSE)+ROW()-2)),\"\")","v":{"$error":"#N/A"}},{"$f":"IF(INDIRECT(\"c\" & (VLOOKUP(Switch!$D$63,$F$2:$G$44,2,FALSE)+ROW()-2))=Switch!$D$63,INDIRECT(\"a\" & (VLOOKUP(Switch!$D$63,$F$2:$G$44,2,FALSE)+ROW()-2)),\"\")","v":{"$error":"#N/A"}},{"$f":"IF(INDIRECT(\"c\" & (VLOOKUP(Switch!$D$64,$F$2:$G$44,2,FALSE)+ROW()-2))=Switch!$D$64,INDIRECT(\"a\" & (VLOOKUP(Switch!$D$64,$F$2:$G$44,2,FALSE)+ROW()-2)),\"\")","v":{"$error":"#N/A"}},{"$f":"IF(INDIRECT(\"c\" & (VLOOKUP(Switch!$D$65,$F$2:$G$44,2,FALSE)+ROW()-2))=Switch!$D$65,INDIRECT(\"a\" & (VLOOKUP(Switch!$D$65,$F$2:$G$44,2,FALSE)+ROW()-2)),\"\")","v":{"$error":"#N/A"}},{"$f":"IF(INDIRECT(\"c\" & (VLOOKUP(Switch!$D$66,$F$2:$G$44,2,FALSE)+ROW()-2))=Switch!$D$66,INDIRECT(\"a\" & (VLOOKUP(Switch!$D$66,$F$2:$G$44,2,FALSE)+ROW()-2)),\"\")","v":{"$error":"#N/A"}}]
["Efficient BCI Balanced Fund A","EFFP","Boutique Collective Investments (Pty) Ltd",{"$f":"ROW()","v":134},null,null,{"$f":"VLOOKUP(F134,$C$2:$D$637,2,FALSE)","v":{"$error":"#N/A"}},{"$f":"IF(INDIRECT(\"c\" & (VLOOKUP(Switch!$D$26,$F$2:$G$44,2,FALSE)+ROW()-2))=Switch!$D$26,INDIRECT(\"a\" & (VLOOKUP(Switch!$D$26,$F$2:$G$44,2,FALSE)+ROW()-2)),\"\")","v":{"$error":"#N/A"}},{"$f":"IF(INDIRECT(\"c\" & (VLOOKUP(Switch!$D$27,$F$2:$G$44,2,FALSE)+ROW()-2))=Switch!$D$27,INDIRECT(\"a\" & (VLOOKUP(Switch!$D$27,$F$2:$G$44,2,FALSE)+ROW()-2)),\"\")","v":{"$error":"#N/A"}},{"$f":"IF(INDIRECT(\"c\" & (VLOOKUP(Switch!$D$28,$F$2:$G$44,2,FALSE)+ROW()-2))=Switch!$D$28,INDIRECT(\"a\" & (VLOOKUP(Switch!$D$28,$F$2:$G$44,2,FALSE)+ROW()-2)),\"\")","v":{"$error":"#N/A"}},{"$f":"IF(INDIRECT(\"c\" & (VLOOKUP(Switch!$D$29,$F$2:$G$44,2,FALSE)+ROW()-2))=Switch!$D$29,INDIRECT(\"a\" & (VLOOKUP(Switch!$D$29,$F$2:$G$44,2,FALSE)+ROW()-2)),\"\")","v":{"$error":"#N/A"}},{"$f":"IF(INDIRECT(\"c\" & (VLOOKUP(Switch!$D$30,$F$2:$G$44,2,FALSE)+ROW()-2))=Switch!$D$30,INDIRECT(\"a\" & (VLOOKUP(Switch!$D$30,$F$2:$G$44,2,FALSE)+ROW()-2)),\"\")","v":{"$error":"#N/A"}},{"$f":"IF(INDIRECT(\"c\" & (VLOOKUP(Switch!$D$31,$F$2:$G$44,2,FALSE)+ROW()-2))=Switch!$D$31,INDIRECT(\"a\" & (VLOOKUP(Switch!$D$31,$F$2:$G$44,2,FALSE)+ROW()-2)),\"\")","v":{"$error":"#N/A"}},{"$f":"IF(INDIRECT(\"c\" & (VLOOKUP(Switch!$D$32,$F$2:$G$44,2,FALSE)+ROW()-2))=Switch!$D$32,INDIRECT(\"a\" & (VLOOKUP(Switch!$D$32,$F$2:$G$44,2,FALSE)+ROW()-2)),\"\")","v":{"$error":"#N/A"}},{"$f":"IF(INDIRECT(\"c\" & (VLOOKUP(Switch!$D$33,$F$2:$G$44,2,FALSE)+ROW()-2))=Switch!$D$33,INDIRECT(\"a\" & (VLOOKUP(Switch!$D$33,$F$2:$G$44,2,FALSE)+ROW()-2)),\"\")","v":{"$error":"#N/A"}},{"$f":"IF(INDIRECT(\"c\" & (VLOOKUP(Switch!$D$34,$F$2:$G$44,2,FALSE)+ROW()-2))=Switch!$D$34,INDIRECT(\"a\" & (VLOOKUP(Switch!$D$34,$F$2:$G$44,2,FALSE)+ROW()-2)),\"\")","v":{"$error":"#N/A"}},{"$f":"IF(INDIRECT(\"c\" & (VLOOKUP(Switch!$D$35,$F$2:$G$44,2,FALSE)+ROW()-2))=Switch!$D$35,INDIRECT(\"a\" & (VLOOKUP(Switch!$D$35,$F$2:$G$44,2,FALSE)+ROW()-2)),\"\")","v":{"$error":"#N/A"}},{"$f":"IF(INDIRECT(\"c\" & (VLOOKUP(Switch!$D$36,$F$2:$G$44,2,FALSE)+ROW()-2))=Switch!$D$36,INDIRECT(\"a\" & (VLOOKUP(Switch!$D$36,$F$2:$G$44,2,FALSE)+ROW()-2)),\"\")","v":{"$error":"#N/A"}},{"$f":"IF(INDIRECT(\"c\" & (VLOOKUP(Switch!$D$37,$F$2:$G$44,2,FALSE)+ROW()-2))=Switch!$D$37,INDIRECT(\"a\" & (VLOOKUP(Switch!$D$37,$F$2:$G$44,2,FALSE)+ROW()-2)),\"\")","v":{"$error":"#N/A"}},{"$f":"IF(INDIRECT(\"c\" & (VLOOKUP(Switch!$D$38,$F$2:$G$44,2,FALSE)+ROW()-2))=Switch!$D$38,INDIRECT(\"a\" & (VLOOKUP(Switch!$D$38,$F$2:$G$44,2,FALSE)+ROW()-2)),\"\")","v":{"$error":"#N/A"}},{"$f":"IF(INDIRECT(\"c\" & (VLOOKUP(Switch!$D$39,$F$2:$G$44,2,FALSE)+ROW()-2))=Switch!$D$39,INDIRECT(\"a\" & (VLOOKUP(Switch!$D$39,$F$2:$G$44,2,FALSE)+ROW()-2)),\"\")","v":{"$error":"#N/A"}},{"$f":"IF(INDIRECT(\"c\" & (VLOOKUP(Switch!$D$40,$F$2:$G$44,2,FALSE)+ROW()-2))=Switch!$D$40,INDIRECT(\"a\" & (VLOOKUP(Switch!$D$40,$F$2:$G$44,2,FALSE)+ROW()-2)),\"\")","v":{"$error":"#N/A"}},{"$f":"IF(INDIRECT(\"c\" & (VLOOKUP(Switch!$D$52,$F$2:$G$44,2,FALSE)+ROW()-2))=Switch!$D$52,INDIRECT(\"a\" & (VLOOKUP(Switch!$D$52,$F$2:$G$44,2,FALSE)+ROW()-2)),\"\")","v":{"$error":"#N/A"}},{"$f":"IF(INDIRECT(\"c\" & (VLOOKUP(Switch!$D$53,$F$2:$G$44,2,FALSE)+ROW()-2))=Switch!$D$53,INDIRECT(\"a\" & (VLOOKUP(Switch!$D$53,$F$2:$G$44,2,FALSE)+ROW()-2)),\"\")","v":{"$error":"#N/A"}},{"$f":"IF(INDIRECT(\"c\" & (VLOOKUP(Switch!$D$54,$F$2:$G$44,2,FALSE)+ROW()-2))=Switch!$D$54,INDIRECT(\"a\" & (VLOOKUP(Switch!$D$54,$F$2:$G$44,2,FALSE)+ROW()-2)),\"\")","v":{"$error":"#N/A"}},{"$f":"IF(INDIRECT(\"c\" & (VLOOKUP(Switch!$D$55,$F$2:$G$44,2,FALSE)+ROW()-2))=Switch!$D$55,INDIRECT(\"a\" & (VLOOKUP(Switch!$D$55,$F$2:$G$44,2,FALSE)+ROW()-2)),\"\")","v":{"$error":"#N/A"}},{"$f":"IF(INDIRECT(\"c\" & (VLOOKUP(Switch!$D$56,$F$2:$G$44,2,FALSE)+ROW()-2))=Switch!$D$56,INDIRECT(\"a\" & (VLOOKUP(Switch!$D$56,$F$2:$G$44,2,FALSE)+ROW()-2)),\"\")","v":{"$error":"#N/A"}},{"$f":"IF(INDIRECT(\"c\" & (VLOOKUP(Switch!$D$57,$F$2:$G$44,2,FALSE)+ROW()-2))=Switch!$D$57,INDIRECT(\"a\" & (VLOOKUP(Switch!$D$57,$F$2:$G$44,2,FALSE)+ROW()-2)),\"\")","v":{"$error":"#N/A"}},{"$f":"IF(INDIRECT(\"c\" & (VLOOKUP(Switch!$D$58,$F$2:$G$44,2,FALSE)+ROW()-2))=Switch!$D$58,INDIRECT(\"a\" & (VLOOKUP(Switch!$D$58,$F$2:$G$44,2,FALSE)+ROW()-2)),\"\")","v":{"$error":"#N/A"}},{"$f":"IF(INDIRECT(\"c\" & (VLOOKUP(Switch!$D$59,$F$2:$G$44,2,FALSE)+ROW()-2))=Switch!$D$59,INDIRECT(\"a\" & (VLOOKUP(Switch!$D$59,$F$2:$G$44,2,FALSE)+ROW()-2)),\"\")","v":{"$error":"#N/A"}},{"$f":"IF(INDIRECT(\"c\" & (VLOOKUP(Switch!$D$60,$F$2:$G$44,2,FALSE)+ROW()-2))=Switch!$D$60,INDIRECT(\"a\" & (VLOOKUP(Switch!$D$60,$F$2:$G$44,2,FALSE)+ROW()-2)),\"\")","v":{"$error":"#N/A"}},{"$f":"IF(INDIRECT(\"c\" & (VLOOKUP(Switch!$D$61,$F$2:$G$44,2,FALSE)+ROW()-2))=Switch!$D$61,INDIRECT(\"a\" & (VLOOKUP(Switch!$D$61,$F$2:$G$44,2,FALSE)+ROW()-2)),\"\")","v":{"$error":"#N/A"}},{"$f":"IF(INDIRECT(\"c\" & (VLOOKUP(Switch!$D$62,$F$2:$G$44,2,FALSE)+ROW()-2))=Switch!$D$62,INDIRECT(\"a\" & (VLOOKUP(Switch!$D$62,$F$2:$G$44,2,FALSE)+ROW()-2)),\"\")","v":{"$error":"#N/A"}},{"$f":"IF(INDIRECT(\"c\" & (VLOOKUP(Switch!$D$63,$F$2:$G$44,2,FALSE)+ROW()-2))=Switch!$D$63,INDIRECT(\"a\" & (VLOOKUP(Switch!$D$63,$F$2:$G$44,2,FALSE)+ROW()-2)),\"\")","v":{"$error":"#N/A"}},{"$f":"IF(INDIRECT(\"c\" & (VLOOKUP(Switch!$D$64,$F$2:$G$44,2,FALSE)+ROW()-2))=Switch!$D$64,INDIRECT(\"a\" & (VLOOKUP(Switch!$D$64,$F$2:$G$44,2,FALSE)+ROW()-2)),\"\")","v":{"$error":"#N/A"}},{"$f":"IF(INDIRECT(\"c\" & (VLOOKUP(Switch!$D$65,$F$2:$G$44,2,FALSE)+ROW()-2))=Switch!$D$65,INDIRECT(\"a\" & (VLOOKUP(Switch!$D$65,$F$2:$G$44,2,FALSE)+ROW()-2)),\"\")","v":{"$error":"#N/A"}},{"$f":"IF(INDIRECT(\"c\" & (VLOOKUP(Switch!$D$66,$F$2:$G$44,2,FALSE)+ROW()-2))=Switch!$D$66,INDIRECT(\"a\" & (VLOOKUP(Switch!$D$66,$F$2:$G$44,2,FALSE)+ROW()-2)),\"\")","v":{"$error":"#N/A"}}]
["Efficient BCI Cautious Fund A","EBCC","Boutique Collective Investments (Pty) Ltd",{"$f":"ROW()","v":135},null,null,{"$f":"VLOOKUP(F135,$C$2:$D$637,2,FALSE)","v":{"$error":"#N/A"}},{"$f":"IF(INDIRECT(\"c\" & (VLOOKUP(Switch!$D$26,$F$2:$G$44,2,FALSE)+ROW()-2))=Switch!$D$26,INDIRECT(\"a\" & (VLOOKUP(Switch!$D$26,$F$2:$G$44,2,FALSE)+ROW()-2)),\"\")","v":{"$error":"#N/A"}},{"$f":"IF(INDIRECT(\"c\" & (VLOOKUP(Switch!$D$27,$F$2:$G$44,2,FALSE)+ROW()-2))=Switch!$D$27,INDIRECT(\"a\" & (VLOOKUP(Switch!$D$27,$F$2:$G$44,2,FALSE)+ROW()-2)),\"\")","v":{"$error":"#N/A"}},{"$f":"IF(INDIRECT(\"c\" & (VLOOKUP(Switch!$D$28,$F$2:$G$44,2,FALSE)+ROW()-2))=Switch!$D$28,INDIRECT(\"a\" & (VLOOKUP(Switch!$D$28,$F$2:$G$44,2,FALSE)+ROW()-2)),\"\")","v":{"$error":"#N/A"}},{"$f":"IF(INDIRECT(\"c\" & (VLOOKUP(Switch!$D$29,$F$2:$G$44,2,FALSE)+ROW()-2))=Switch!$D$29,INDIRECT(\"a\" & (VLOOKUP(Switch!$D$29,$F$2:$G$44,2,FALSE)+ROW()-2)),\"\")","v":{"$error":"#N/A"}},{"$f":"IF(INDIRECT(\"c\" & (VLOOKUP(Switch!$D$30,$F$2:$G$44,2,FALSE)+ROW()-2))=Switch!$D$30,INDIRECT(\"a\" & (VLOOKUP(Switch!$D$30,$F$2:$G$44,2,FALSE)+ROW()-2)),\"\")","v":{"$error":"#N/A"}},{"$f":"IF(INDIRECT(\"c\" & (VLOOKUP(Switch!$D$31,$F$2:$G$44,2,FALSE)+ROW()-2))=Switch!$D$31,INDIRECT(\"a\" & (VLOOKUP(Switch!$D$31,$F$2:$G$44,2,FALSE)+ROW()-2)),\"\")","v":{"$error":"#N/A"}},{"$f":"IF(INDIRECT(\"c\" & (VLOOKUP(Switch!$D$32,$F$2:$G$44,2,FALSE)+ROW()-2))=Switch!$D$32,INDIRECT(\"a\" & (VLOOKUP(Switch!$D$32,$F$2:$G$44,2,FALSE)+ROW()-2)),\"\")","v":{"$error":"#N/A"}},{"$f":"IF(INDIRECT(\"c\" & (VLOOKUP(Switch!$D$33,$F$2:$G$44,2,FALSE)+ROW()-2))=Switch!$D$33,INDIRECT(\"a\" & (VLOOKUP(Switch!$D$33,$F$2:$G$44,2,FALSE)+ROW()-2)),\"\")","v":{"$error":"#N/A"}},{"$f":"IF(INDIRECT(\"c\" & (VLOOKUP(Switch!$D$34,$F$2:$G$44,2,FALSE)+ROW()-2))=Switch!$D$34,INDIRECT(\"a\" & (VLOOKUP(Switch!$D$34,$F$2:$G$44,2,FALSE)+ROW()-2)),\"\")","v":{"$error":"#N/A"}},{"$f":"IF(INDIRECT(\"c\" & (VLOOKUP(Switch!$D$35,$F$2:$G$44,2,FALSE)+ROW()-2))=Switch!$D$35,INDIRECT(\"a\" & (VLOOKUP(Switch!$D$35,$F$2:$G$44,2,FALSE)+ROW()-2)),\"\")","v":{"$error":"#N/A"}},{"$f":"IF(INDIRECT(\"c\" & (VLOOKUP(Switch!$D$36,$F$2:$G$44,2,FALSE)+ROW()-2))=Switch!$D$36,INDIRECT(\"a\" & (VLOOKUP(Switch!$D$36,$F$2:$G$44,2,FALSE)+ROW()-2)),\"\")","v":{"$error":"#N/A"}},{"$f":"IF(INDIRECT(\"c\" & (VLOOKUP(Switch!$D$37,$F$2:$G$44,2,FALSE)+ROW()-2))=Switch!$D$37,INDIRECT(\"a\" & (VLOOKUP(Switch!$D$37,$F$2:$G$44,2,FALSE)+ROW()-2)),\"\")","v":{"$error":"#N/A"}},{"$f":"IF(INDIRECT(\"c\" & (VLOOKUP(Switch!$D$38,$F$2:$G$44,2,FALSE)+ROW()-2))=Switch!$D$38,INDIRECT(\"a\" & (VLOOKUP(Switch!$D$38,$F$2:$G$44,2,FALSE)+ROW()-2)),\"\")","v":{"$error":"#N/A"}},{"$f":"IF(INDIRECT(\"c\" & (VLOOKUP(Switch!$D$39,$F$2:$G$44,2,FALSE)+ROW()-2))=Switch!$D$39,INDIRECT(\"a\" & (VLOOKUP(Switch!$D$39,$F$2:$G$44,2,FALSE)+ROW()-2)),\"\")","v":{"$error":"#N/A"}},{"$f":"IF(INDIRECT(\"c\" & (VLOOKUP(Switch!$D$40,$F$2:$G$44,2,FALSE)+ROW()-2))=Switch!$D$40,INDIRECT(\"a\" & (VLOOKUP(Switch!$D$40,$F$2:$G$44,2,FALSE)+ROW()-2)),\"\")","v":{"$error":"#N/A"}},{"$f":"IF(INDIRECT(\"c\" & (VLOOKUP(Switch!$D$52,$F$2:$G$44,2,FALSE)+ROW()-2))=Switch!$D$52,INDIRECT(\"a\" & (VLOOKUP(Switch!$D$52,$F$2:$G$44,2,FALSE)+ROW()-2)),\"\")","v":{"$error":"#N/A"}},{"$f":"IF(INDIRECT(\"c\" & (VLOOKUP(Switch!$D$53,$F$2:$G$44,2,FALSE)+ROW()-2))=Switch!$D$53,INDIRECT(\"a\" & (VLOOKUP(Switch!$D$53,$F$2:$G$44,2,FALSE)+ROW()-2)),\"\")","v":{"$error":"#N/A"}},{"$f":"IF(INDIRECT(\"c\" & (VLOOKUP(Switch!$D$54,$F$2:$G$44,2,FALSE)+ROW()-2))=Switch!$D$54,INDIRECT(\"a\" & (VLOOKUP(Switch!$D$54,$F$2:$G$44,2,FALSE)+ROW()-2)),\"\")","v":{"$error":"#N/A"}},{"$f":"IF(INDIRECT(\"c\" & (VLOOKUP(Switch!$D$55,$F$2:$G$44,2,FALSE)+ROW()-2))=Switch!$D$55,INDIRECT(\"a\" & (VLOOKUP(Switch!$D$55,$F$2:$G$44,2,FALSE)+ROW()-2)),\"\")","v":{"$error":"#N/A"}},{"$f":"IF(INDIRECT(\"c\" & (VLOOKUP(Switch!$D$56,$F$2:$G$44,2,FALSE)+ROW()-2))=Switch!$D$56,INDIRECT(\"a\" & (VLOOKUP(Switch!$D$56,$F$2:$G$44,2,FALSE)+ROW()-2)),\"\")","v":{"$error":"#N/A"}},{"$f":"IF(INDIRECT(\"c\" & (VLOOKUP(Switch!$D$57,$F$2:$G$44,2,FALSE)+ROW()-2))=Switch!$D$57,INDIRECT(\"a\" & (VLOOKUP(Switch!$D$57,$F$2:$G$44,2,FALSE)+ROW()-2)),\"\")","v":{"$error":"#N/A"}},{"$f":"IF(INDIRECT(\"c\" & (VLOOKUP(Switch!$D$58,$F$2:$G$44,2,FALSE)+ROW()-2))=Switch!$D$58,INDIRECT(\"a\" & (VLOOKUP(Switch!$D$58,$F$2:$G$44,2,FALSE)+ROW()-2)),\"\")","v":{"$error":"#N/A"}},{"$f":"IF(INDIRECT(\"c\" & (VLOOKUP(Switch!$D$59,$F$2:$G$44,2,FALSE)+ROW()-2))=Switch!$D$59,INDIRECT(\"a\" & (VLOOKUP(Switch!$D$59,$F$2:$G$44,2,FALSE)+ROW()-2)),\"\")","v":{"$error":"#N/A"}},{"$f":"IF(INDIRECT(\"c\" & (VLOOKUP(Switch!$D$60,$F$2:$G$44,2,FALSE)+ROW()-2))=Switch!$D$60,INDIRECT(\"a\" & (VLOOKUP(Switch!$D$60,$F$2:$G$44,2,FALSE)+ROW()-2)),\"\")","v":{"$error":"#N/A"}},{"$f":"IF(INDIRECT(\"c\" & (VLOOKUP(Switch!$D$61,$F$2:$G$44,2,FALSE)+ROW()-2))=Switch!$D$61,INDIRECT(\"a\" & (VLOOKUP(Switch!$D$61,$F$2:$G$44,2,FALSE)+ROW()-2)),\"\")","v":{"$error":"#N/A"}},{"$f":"IF(INDIRECT(\"c\" & (VLOOKUP(Switch!$D$62,$F$2:$G$44,2,FALSE)+ROW()-2))=Switch!$D$62,INDIRECT(\"a\" & (VLOOKUP(Switch!$D$62,$F$2:$G$44,2,FALSE)+ROW()-2)),\"\")","v":{"$error":"#N/A"}},{"$f":"IF(INDIRECT(\"c\" & (VLOOKUP(Switch!$D$63,$F$2:$G$44,2,FALSE)+ROW()-2))=Switch!$D$63,INDIRECT(\"a\" & (VLOOKUP(Switch!$D$63,$F$2:$G$44,2,FALSE)+ROW()-2)),\"\")","v":{"$error":"#N/A"}},{"$f":"IF(INDIRECT(\"c\" & (VLOOKUP(Switch!$D$64,$F$2:$G$44,2,FALSE)+ROW()-2))=Switch!$D$64,INDIRECT(\"a\" & (VLOOKUP(Switch!$D$64,$F$2:$G$44,2,FALSE)+ROW()-2)),\"\")","v":{"$error":"#N/A"}},{"$f":"IF(INDIRECT(\"c\" & (VLOOKUP(Switch!$D$65,$F$2:$G$44,2,FALSE)+ROW()-2))=Switch!$D$65,INDIRECT(\"a\" & (VLOOKUP(Switch!$D$65,$F$2:$G$44,2,FALSE)+ROW()-2)),\"\")","v":{"$error":"#N/A"}},{"$f":"IF(INDIRECT(\"c\" & (VLOOKUP(Switch!$D$66,$F$2:$G$44,2,FALSE)+ROW()-2))=Switch!$D$66,INDIRECT(\"a\" & (VLOOKUP(Switch!$D$66,$F$2:$G$44,2,FALSE)+ROW()-2)),\"\")","v":{"$error":"#N/A"}}]
["Efficient BCI Equity FoF A","EIPS","Boutique Collective Investments (Pty) Ltd",{"$f":"ROW()","v":136},null,null,{"$f":"VLOOKUP(F136,$C$2:$D$637,2,FALSE)","v":{"$error":"#N/A"}},{"$f":"IF(INDIRECT(\"c\" & (VLOOKUP(Switch!$D$26,$F$2:$G$44,2,FALSE)+ROW()-2))=Switch!$D$26,INDIRECT(\"a\" & (VLOOKUP(Switch!$D$26,$F$2:$G$44,2,FALSE)+ROW()-2)),\"\")","v":{"$error":"#N/A"}},{"$f":"IF(INDIRECT(\"c\" & (VLOOKUP(Switch!$D$27,$F$2:$G$44,2,FALSE)+ROW()-2))=Switch!$D$27,INDIRECT(\"a\" & (VLOOKUP(Switch!$D$27,$F$2:$G$44,2,FALSE)+ROW()-2)),\"\")","v":{"$error":"#N/A"}},{"$f":"IF(INDIRECT(\"c\" & (VLOOKUP(Switch!$D$28,$F$2:$G$44,2,FALSE)+ROW()-2))=Switch!$D$28,INDIRECT(\"a\" & (VLOOKUP(Switch!$D$28,$F$2:$G$44,2,FALSE)+ROW()-2)),\"\")","v":{"$error":"#N/A"}},{"$f":"IF(INDIRECT(\"c\" & (VLOOKUP(Switch!$D$29,$F$2:$G$44,2,FALSE)+ROW()-2))=Switch!$D$29,INDIRECT(\"a\" & (VLOOKUP(Switch!$D$29,$F$2:$G$44,2,FALSE)+ROW()-2)),\"\")","v":{"$error":"#N/A"}},{"$f":"IF(INDIRECT(\"c\" & (VLOOKUP(Switch!$D$30,$F$2:$G$44,2,FALSE)+ROW()-2))=Switch!$D$30,INDIRECT(\"a\" & (VLOOKUP(Switch!$D$30,$F$2:$G$44,2,FALSE)+ROW()-2)),\"\")","v":{"$error":"#N/A"}},{"$f":"IF(INDIRECT(\"c\" & (VLOOKUP(Switch!$D$31,$F$2:$G$44,2,FALSE)+ROW()-2))=Switch!$D$31,INDIRECT(\"a\" & (VLOOKUP(Switch!$D$31,$F$2:$G$44,2,FALSE)+ROW()-2)),\"\")","v":{"$error":"#N/A"}},{"$f":"IF(INDIRECT(\"c\" & (VLOOKUP(Switch!$D$32,$F$2:$G$44,2,FALSE)+ROW()-2))=Switch!$D$32,INDIRECT(\"a\" & (VLOOKUP(Switch!$D$32,$F$2:$G$44,2,FALSE)+ROW()-2)),\"\")","v":{"$error":"#N/A"}},{"$f":"IF(INDIRECT(\"c\" & (VLOOKUP(Switch!$D$33,$F$2:$G$44,2,FALSE)+ROW()-2))=Switch!$D$33,INDIRECT(\"a\" & (VLOOKUP(Switch!$D$33,$F$2:$G$44,2,FALSE)+ROW()-2)),\"\")","v":{"$error":"#N/A"}},{"$f":"IF(INDIRECT(\"c\" & (VLOOKUP(Switch!$D$34,$F$2:$G$44,2,FALSE)+ROW()-2))=Switch!$D$34,INDIRECT(\"a\" & (VLOOKUP(Switch!$D$34,$F$2:$G$44,2,FALSE)+ROW()-2)),\"\")","v":{"$error":"#N/A"}},{"$f":"IF(INDIRECT(\"c\" & (VLOOKUP(Switch!$D$35,$F$2:$G$44,2,FALSE)+ROW()-2))=Switch!$D$35,INDIRECT(\"a\" & (VLOOKUP(Switch!$D$35,$F$2:$G$44,2,FALSE)+ROW()-2)),\"\")","v":{"$error":"#N/A"}},{"$f":"IF(INDIRECT(\"c\" & (VLOOKUP(Switch!$D$36,$F$2:$G$44,2,FALSE)+ROW()-2))=Switch!$D$36,INDIRECT(\"a\" & (VLOOKUP(Switch!$D$36,$F$2:$G$44,2,FALSE)+ROW()-2)),\"\")","v":{"$error":"#N/A"}},{"$f":"IF(INDIRECT(\"c\" & (VLOOKUP(Switch!$D$37,$F$2:$G$44,2,FALSE)+ROW()-2))=Switch!$D$37,INDIRECT(\"a\" & (VLOOKUP(Switch!$D$37,$F$2:$G$44,2,FALSE)+ROW()-2)),\"\")","v":{"$error":"#N/A"}},{"$f":"IF(INDIRECT(\"c\" & (VLOOKUP(Switch!$D$38,$F$2:$G$44,2,FALSE)+ROW()-2))=Switch!$D$38,INDIRECT(\"a\" & (VLOOKUP(Switch!$D$38,$F$2:$G$44,2,FALSE)+ROW()-2)),\"\")","v":{"$error":"#N/A"}},{"$f":"IF(INDIRECT(\"c\" & (VLOOKUP(Switch!$D$39,$F$2:$G$44,2,FALSE)+ROW()-2))=Switch!$D$39,INDIRECT(\"a\" & (VLOOKUP(Switch!$D$39,$F$2:$G$44,2,FALSE)+ROW()-2)),\"\")","v":{"$error":"#N/A"}},{"$f":"IF(INDIRECT(\"c\" & (VLOOKUP(Switch!$D$40,$F$2:$G$44,2,FALSE)+ROW()-2))=Switch!$D$40,INDIRECT(\"a\" & (VLOOKUP(Switch!$D$40,$F$2:$G$44,2,FALSE)+ROW()-2)),\"\")","v":{"$error":"#N/A"}},{"$f":"IF(INDIRECT(\"c\" & (VLOOKUP(Switch!$D$52,$F$2:$G$44,2,FALSE)+ROW()-2))=Switch!$D$52,INDIRECT(\"a\" & (VLOOKUP(Switch!$D$52,$F$2:$G$44,2,FALSE)+ROW()-2)),\"\")","v":{"$error":"#N/A"}},{"$f":"IF(INDIRECT(\"c\" & (VLOOKUP(Switch!$D$53,$F$2:$G$44,2,FALSE)+ROW()-2))=Switch!$D$53,INDIRECT(\"a\" & (VLOOKUP(Switch!$D$53,$F$2:$G$44,2,FALSE)+ROW()-2)),\"\")","v":{"$error":"#N/A"}},{"$f":"IF(INDIRECT(\"c\" & (VLOOKUP(Switch!$D$54,$F$2:$G$44,2,FALSE)+ROW()-2))=Switch!$D$54,INDIRECT(\"a\" & (VLOOKUP(Switch!$D$54,$F$2:$G$44,2,FALSE)+ROW()-2)),\"\")","v":{"$error":"#N/A"}},{"$f":"IF(INDIRECT(\"c\" & (VLOOKUP(Switch!$D$55,$F$2:$G$44,2,FALSE)+ROW()-2))=Switch!$D$55,INDIRECT(\"a\" & (VLOOKUP(Switch!$D$55,$F$2:$G$44,2,FALSE)+ROW()-2)),\"\")","v":{"$error":"#N/A"}},{"$f":"IF(INDIRECT(\"c\" & (VLOOKUP(Switch!$D$56,$F$2:$G$44,2,FALSE)+ROW()-2))=Switch!$D$56,INDIRECT(\"a\" & (VLOOKUP(Switch!$D$56,$F$2:$G$44,2,FALSE)+ROW()-2)),\"\")","v":{"$error":"#N/A"}},{"$f":"IF(INDIRECT(\"c\" & (VLOOKUP(Switch!$D$57,$F$2:$G$44,2,FALSE)+ROW()-2))=Switch!$D$57,INDIRECT(\"a\" & (VLOOKUP(Switch!$D$57,$F$2:$G$44,2,FALSE)+ROW()-2)),\"\")","v":{"$error":"#N/A"}},{"$f":"IF(INDIRECT(\"c\" & (VLOOKUP(Switch!$D$58,$F$2:$G$44,2,FALSE)+ROW()-2))=Switch!$D$58,INDIRECT(\"a\" & (VLOOKUP(Switch!$D$58,$F$2:$G$44,2,FALSE)+ROW()-2)),\"\")","v":{"$error":"#N/A"}},{"$f":"IF(INDIRECT(\"c\" & (VLOOKUP(Switch!$D$59,$F$2:$G$44,2,FALSE)+ROW()-2))=Switch!$D$59,INDIRECT(\"a\" & (VLOOKUP(Switch!$D$59,$F$2:$G$44,2,FALSE)+ROW()-2)),\"\")","v":{"$error":"#N/A"}},{"$f":"IF(INDIRECT(\"c\" & (VLOOKUP(Switch!$D$60,$F$2:$G$44,2,FALSE)+ROW()-2))=Switch!$D$60,INDIRECT(\"a\" & (VLOOKUP(Switch!$D$60,$F$2:$G$44,2,FALSE)+ROW()-2)),\"\")","v":{"$error":"#N/A"}},{"$f":"IF(INDIRECT(\"c\" & (VLOOKUP(Switch!$D$61,$F$2:$G$44,2,FALSE)+ROW()-2))=Switch!$D$61,INDIRECT(\"a\" & (VLOOKUP(Switch!$D$61,$F$2:$G$44,2,FALSE)+ROW()-2)),\"\")","v":{"$error":"#N/A"}},{"$f":"IF(INDIRECT(\"c\" & (VLOOKUP(Switch!$D$62,$F$2:$G$44,2,FALSE)+ROW()-2))=Switch!$D$62,INDIRECT(\"a\" & (VLOOKUP(Switch!$D$62,$F$2:$G$44,2,FALSE)+ROW()-2)),\"\")","v":{"$error":"#N/A"}},{"$f":"IF(INDIRECT(\"c\" & (VLOOKUP(Switch!$D$63,$F$2:$G$44,2,FALSE)+ROW()-2))=Switch!$D$63,INDIRECT(\"a\" & (VLOOKUP(Switch!$D$63,$F$2:$G$44,2,FALSE)+ROW()-2)),\"\")","v":{"$error":"#N/A"}},{"$f":"IF(INDIRECT(\"c\" & (VLOOKUP(Switch!$D$64,$F$2:$G$44,2,FALSE)+ROW()-2))=Switch!$D$64,INDIRECT(\"a\" & (VLOOKUP(Switch!$D$64,$F$2:$G$44,2,FALSE)+ROW()-2)),\"\")","v":{"$error":"#N/A"}},{"$f":"IF(INDIRECT(\"c\" & (VLOOKUP(Switch!$D$65,$F$2:$G$44,2,FALSE)+ROW()-2))=Switch!$D$65,INDIRECT(\"a\" & (VLOOKUP(Switch!$D$65,$F$2:$G$44,2,FALSE)+ROW()-2)),\"\")","v":{"$error":"#N/A"}},{"$f":"IF(INDIRECT(\"c\" & (VLOOKUP(Switch!$D$66,$F$2:$G$44,2,FALSE)+ROW()-2))=Switch!$D$66,INDIRECT(\"a\" & (VLOOKUP(Switch!$D$66,$F$2:$G$44,2,FALSE)+ROW()-2)),\"\")","v":{"$error":"#N/A"}}]
["Efficient BCI Fixed Income Fund A","EFIF","Boutique Collective Investments (Pty) Ltd",{"$f":"ROW()","v":137},null,null,{"$f":"VLOOKUP(F137,$C$2:$D$637,2,FALSE)","v":{"$error":"#N/A"}},{"$f":"IF(INDIRECT(\"c\" & (VLOOKUP(Switch!$D$26,$F$2:$G$44,2,FALSE)+ROW()-2))=Switch!$D$26,INDIRECT(\"a\" & (VLOOKUP(Switch!$D$26,$F$2:$G$44,2,FALSE)+ROW()-2)),\"\")","v":{"$error":"#N/A"}},{"$f":"IF(INDIRECT(\"c\" & (VLOOKUP(Switch!$D$27,$F$2:$G$44,2,FALSE)+ROW()-2))=Switch!$D$27,INDIRECT(\"a\" & (VLOOKUP(Switch!$D$27,$F$2:$G$44,2,FALSE)+ROW()-2)),\"\")","v":{"$error":"#N/A"}},{"$f":"IF(INDIRECT(\"c\" & (VLOOKUP(Switch!$D$28,$F$2:$G$44,2,FALSE)+ROW()-2))=Switch!$D$28,INDIRECT(\"a\" & (VLOOKUP(Switch!$D$28,$F$2:$G$44,2,FALSE)+ROW()-2)),\"\")","v":{"$error":"#N/A"}},{"$f":"IF(INDIRECT(\"c\" & (VLOOKUP(Switch!$D$29,$F$2:$G$44,2,FALSE)+ROW()-2))=Switch!$D$29,INDIRECT(\"a\" & (VLOOKUP(Switch!$D$29,$F$2:$G$44,2,FALSE)+ROW()-2)),\"\")","v":{"$error":"#N/A"}},{"$f":"IF(INDIRECT(\"c\" & (VLOOKUP(Switch!$D$30,$F$2:$G$44,2,FALSE)+ROW()-2))=Switch!$D$30,INDIRECT(\"a\" & (VLOOKUP(Switch!$D$30,$F$2:$G$44,2,FALSE)+ROW()-2)),\"\")","v":{"$error":"#N/A"}},{"$f":"IF(INDIRECT(\"c\" & (VLOOKUP(Switch!$D$31,$F$2:$G$44,2,FALSE)+ROW()-2))=Switch!$D$31,INDIRECT(\"a\" & (VLOOKUP(Switch!$D$31,$F$2:$G$44,2,FALSE)+ROW()-2)),\"\")","v":{"$error":"#N/A"}},{"$f":"IF(INDIRECT(\"c\" & (VLOOKUP(Switch!$D$32,$F$2:$G$44,2,FALSE)+ROW()-2))=Switch!$D$32,INDIRECT(\"a\" & (VLOOKUP(Switch!$D$32,$F$2:$G$44,2,FALSE)+ROW()-2)),\"\")","v":{"$error":"#N/A"}},{"$f":"IF(INDIRECT(\"c\" & (VLOOKUP(Switch!$D$33,$F$2:$G$44,2,FALSE)+ROW()-2))=Switch!$D$33,INDIRECT(\"a\" & (VLOOKUP(Switch!$D$33,$F$2:$G$44,2,FALSE)+ROW()-2)),\"\")","v":{"$error":"#N/A"}},{"$f":"IF(INDIRECT(\"c\" & (VLOOKUP(Switch!$D$34,$F$2:$G$44,2,FALSE)+ROW()-2))=Switch!$D$34,INDIRECT(\"a\" & (VLOOKUP(Switch!$D$34,$F$2:$G$44,2,FALSE)+ROW()-2)),\"\")","v":{"$error":"#N/A"}},{"$f":"IF(INDIRECT(\"c\" & (VLOOKUP(Switch!$D$35,$F$2:$G$44,2,FALSE)+ROW()-2))=Switch!$D$35,INDIRECT(\"a\" & (VLOOKUP(Switch!$D$35,$F$2:$G$44,2,FALSE)+ROW()-2)),\"\")","v":{"$error":"#N/A"}},{"$f":"IF(INDIRECT(\"c\" & (VLOOKUP(Switch!$D$36,$F$2:$G$44,2,FALSE)+ROW()-2))=Switch!$D$36,INDIRECT(\"a\" & (VLOOKUP(Switch!$D$36,$F$2:$G$44,2,FALSE)+ROW()-2)),\"\")","v":{"$error":"#N/A"}},{"$f":"IF(INDIRECT(\"c\" & (VLOOKUP(Switch!$D$37,$F$2:$G$44,2,FALSE)+ROW()-2))=Switch!$D$37,INDIRECT(\"a\" & (VLOOKUP(Switch!$D$37,$F$2:$G$44,2,FALSE)+ROW()-2)),\"\")","v":{"$error":"#N/A"}},{"$f":"IF(INDIRECT(\"c\" & (VLOOKUP(Switch!$D$38,$F$2:$G$44,2,FALSE)+ROW()-2))=Switch!$D$38,INDIRECT(\"a\" & (VLOOKUP(Switch!$D$38,$F$2:$G$44,2,FALSE)+ROW()-2)),\"\")","v":{"$error":"#N/A"}},{"$f":"IF(INDIRECT(\"c\" & (VLOOKUP(Switch!$D$39,$F$2:$G$44,2,FALSE)+ROW()-2))=Switch!$D$39,INDIRECT(\"a\" & (VLOOKUP(Switch!$D$39,$F$2:$G$44,2,FALSE)+ROW()-2)),\"\")","v":{"$error":"#N/A"}},{"$f":"IF(INDIRECT(\"c\" & (VLOOKUP(Switch!$D$40,$F$2:$G$44,2,FALSE)+ROW()-2))=Switch!$D$40,INDIRECT(\"a\" & (VLOOKUP(Switch!$D$40,$F$2:$G$44,2,FALSE)+ROW()-2)),\"\")","v":{"$error":"#N/A"}},{"$f":"IF(INDIRECT(\"c\" & (VLOOKUP(Switch!$D$52,$F$2:$G$44,2,FALSE)+ROW()-2))=Switch!$D$52,INDIRECT(\"a\" & (VLOOKUP(Switch!$D$52,$F$2:$G$44,2,FALSE)+ROW()-2)),\"\")","v":{"$error":"#N/A"}},{"$f":"IF(INDIRECT(\"c\" & (VLOOKUP(Switch!$D$53,$F$2:$G$44,2,FALSE)+ROW()-2))=Switch!$D$53,INDIRECT(\"a\" & (VLOOKUP(Switch!$D$53,$F$2:$G$44,2,FALSE)+ROW()-2)),\"\")","v":{"$error":"#N/A"}},{"$f":"IF(INDIRECT(\"c\" & (VLOOKUP(Switch!$D$54,$F$2:$G$44,2,FALSE)+ROW()-2))=Switch!$D$54,INDIRECT(\"a\" & (VLOOKUP(Switch!$D$54,$F$2:$G$44,2,FALSE)+ROW()-2)),\"\")","v":{"$error":"#N/A"}},{"$f":"IF(INDIRECT(\"c\" & (VLOOKUP(Switch!$D$55,$F$2:$G$44,2,FALSE)+ROW()-2))=Switch!$D$55,INDIRECT(\"a\" & (VLOOKUP(Switch!$D$55,$F$2:$G$44,2,FALSE)+ROW()-2)),\"\")","v":{"$error":"#N/A"}},{"$f":"IF(INDIRECT(\"c\" & (VLOOKUP(Switch!$D$56,$F$2:$G$44,2,FALSE)+ROW()-2))=Switch!$D$56,INDIRECT(\"a\" & (VLOOKUP(Switch!$D$56,$F$2:$G$44,2,FALSE)+ROW()-2)),\"\")","v":{"$error":"#N/A"}},{"$f":"IF(INDIRECT(\"c\" & (VLOOKUP(Switch!$D$57,$F$2:$G$44,2,FALSE)+ROW()-2))=Switch!$D$57,INDIRECT(\"a\" & (VLOOKUP(Switch!$D$57,$F$2:$G$44,2,FALSE)+ROW()-2)),\"\")","v":{"$error":"#N/A"}},{"$f":"IF(INDIRECT(\"c\" & (VLOOKUP(Switch!$D$58,$F$2:$G$44,2,FALSE)+ROW()-2))=Switch!$D$58,INDIRECT(\"a\" & (VLOOKUP(Switch!$D$58,$F$2:$G$44,2,FALSE)+ROW()-2)),\"\")","v":{"$error":"#N/A"}},{"$f":"IF(INDIRECT(\"c\" & (VLOOKUP(Switch!$D$59,$F$2:$G$44,2,FALSE)+ROW()-2))=Switch!$D$59,INDIRECT(\"a\" & (VLOOKUP(Switch!$D$59,$F$2:$G$44,2,FALSE)+ROW()-2)),\"\")","v":{"$error":"#N/A"}},{"$f":"IF(INDIRECT(\"c\" & (VLOOKUP(Switch!$D$60,$F$2:$G$44,2,FALSE)+ROW()-2))=Switch!$D$60,INDIRECT(\"a\" & (VLOOKUP(Switch!$D$60,$F$2:$G$44,2,FALSE)+ROW()-2)),\"\")","v":{"$error":"#N/A"}},{"$f":"IF(INDIRECT(\"c\" & (VLOOKUP(Switch!$D$61,$F$2:$G$44,2,FALSE)+ROW()-2))=Switch!$D$61,INDIRECT(\"a\" & (VLOOKUP(Switch!$D$61,$F$2:$G$44,2,FALSE)+ROW()-2)),\"\")","v":{"$error":"#N/A"}},{"$f":"IF(INDIRECT(\"c\" & (VLOOKUP(Switch!$D$62,$F$2:$G$44,2,FALSE)+ROW()-2))=Switch!$D$62,INDIRECT(\"a\" & (VLOOKUP(Switch!$D$62,$F$2:$G$44,2,FALSE)+ROW()-2)),\"\")","v":{"$error":"#N/A"}},{"$f":"IF(INDIRECT(\"c\" & (VLOOKUP(Switch!$D$63,$F$2:$G$44,2,FALSE)+ROW()-2))=Switch!$D$63,INDIRECT(\"a\" & (VLOOKUP(Switch!$D$63,$F$2:$G$44,2,FALSE)+ROW()-2)),\"\")","v":{"$error":"#N/A"}},{"$f":"IF(INDIRECT(\"c\" & (VLOOKUP(Switch!$D$64,$F$2:$G$44,2,FALSE)+ROW()-2))=Switch!$D$64,INDIRECT(\"a\" & (VLOOKUP(Switch!$D$64,$F$2:$G$44,2,FALSE)+ROW()-2)),\"\")","v":{"$error":"#N/A"}},{"$f":"IF(INDIRECT(\"c\" & (VLOOKUP(Switch!$D$65,$F$2:$G$44,2,FALSE)+ROW()-2))=Switch!$D$65,INDIRECT(\"a\" & (VLOOKUP(Switch!$D$65,$F$2:$G$44,2,FALSE)+ROW()-2)),\"\")","v":{"$error":"#N/A"}},{"$f":"IF(INDIRECT(\"c\" & (VLOOKUP(Switch!$D$66,$F$2:$G$44,2,FALSE)+ROW()-2))=Switch!$D$66,INDIRECT(\"a\" & (VLOOKUP(Switch!$D$66,$F$2:$G$44,2,FALSE)+ROW()-2)),\"\")","v":{"$error":"#N/A"}}]
["Efficient BCI Fixed Income Fund B","EFIF","Boutique Collective Investments (Pty) Ltd",{"$f":"ROW()","v":138},null,null,{"$f":"VLOOKUP(F138,$C$2:$D$637,2,FALSE)","v":{"$error":"#N/A"}},{"$f":"IF(INDIRECT(\"c\" & (VLOOKUP(Switch!$D$26,$F$2:$G$44,2,FALSE)+ROW()-2))=Switch!$D$26,INDIRECT(\"a\" & (VLOOKUP(Switch!$D$26,$F$2:$G$44,2,FALSE)+ROW()-2)),\"\")","v":{"$error":"#N/A"}},{"$f":"IF(INDIRECT(\"c\" & (VLOOKUP(Switch!$D$27,$F$2:$G$44,2,FALSE)+ROW()-2))=Switch!$D$27,INDIRECT(\"a\" & (VLOOKUP(Switch!$D$27,$F$2:$G$44,2,FALSE)+ROW()-2)),\"\")","v":{"$error":"#N/A"}},{"$f":"IF(INDIRECT(\"c\" & (VLOOKUP(Switch!$D$28,$F$2:$G$44,2,FALSE)+ROW()-2))=Switch!$D$28,INDIRECT(\"a\" & (VLOOKUP(Switch!$D$28,$F$2:$G$44,2,FALSE)+ROW()-2)),\"\")","v":{"$error":"#N/A"}},{"$f":"IF(INDIRECT(\"c\" & (VLOOKUP(Switch!$D$29,$F$2:$G$44,2,FALSE)+ROW()-2))=Switch!$D$29,INDIRECT(\"a\" & (VLOOKUP(Switch!$D$29,$F$2:$G$44,2,FALSE)+ROW()-2)),\"\")","v":{"$error":"#N/A"}},{"$f":"IF(INDIRECT(\"c\" & (VLOOKUP(Switch!$D$30,$F$2:$G$44,2,FALSE)+ROW()-2))=Switch!$D$30,INDIRECT(\"a\" & (VLOOKUP(Switch!$D$30,$F$2:$G$44,2,FALSE)+ROW()-2)),\"\")","v":{"$error":"#N/A"}},{"$f":"IF(INDIRECT(\"c\" & (VLOOKUP(Switch!$D$31,$F$2:$G$44,2,FALSE)+ROW()-2))=Switch!$D$31,INDIRECT(\"a\" & (VLOOKUP(Switch!$D$31,$F$2:$G$44,2,FALSE)+ROW()-2)),\"\")","v":{"$error":"#N/A"}},{"$f":"IF(INDIRECT(\"c\" & (VLOOKUP(Switch!$D$32,$F$2:$G$44,2,FALSE)+ROW()-2))=Switch!$D$32,INDIRECT(\"a\" & (VLOOKUP(Switch!$D$32,$F$2:$G$44,2,FALSE)+ROW()-2)),\"\")","v":{"$error":"#N/A"}},{"$f":"IF(INDIRECT(\"c\" & (VLOOKUP(Switch!$D$33,$F$2:$G$44,2,FALSE)+ROW()-2))=Switch!$D$33,INDIRECT(\"a\" & (VLOOKUP(Switch!$D$33,$F$2:$G$44,2,FALSE)+ROW()-2)),\"\")","v":{"$error":"#N/A"}},{"$f":"IF(INDIRECT(\"c\" & (VLOOKUP(Switch!$D$34,$F$2:$G$44,2,FALSE)+ROW()-2))=Switch!$D$34,INDIRECT(\"a\" & (VLOOKUP(Switch!$D$34,$F$2:$G$44,2,FALSE)+ROW()-2)),\"\")","v":{"$error":"#N/A"}},{"$f":"IF(INDIRECT(\"c\" & (VLOOKUP(Switch!$D$35,$F$2:$G$44,2,FALSE)+ROW()-2))=Switch!$D$35,INDIRECT(\"a\" & (VLOOKUP(Switch!$D$35,$F$2:$G$44,2,FALSE)+ROW()-2)),\"\")","v":{"$error":"#N/A"}},{"$f":"IF(INDIRECT(\"c\" & (VLOOKUP(Switch!$D$36,$F$2:$G$44,2,FALSE)+ROW()-2))=Switch!$D$36,INDIRECT(\"a\" & (VLOOKUP(Switch!$D$36,$F$2:$G$44,2,FALSE)+ROW()-2)),\"\")","v":{"$error":"#N/A"}},{"$f":"IF(INDIRECT(\"c\" & (VLOOKUP(Switch!$D$37,$F$2:$G$44,2,FALSE)+ROW()-2))=Switch!$D$37,INDIRECT(\"a\" & (VLOOKUP(Switch!$D$37,$F$2:$G$44,2,FALSE)+ROW()-2)),\"\")","v":{"$error":"#N/A"}},{"$f":"IF(INDIRECT(\"c\" & (VLOOKUP(Switch!$D$38,$F$2:$G$44,2,FALSE)+ROW()-2))=Switch!$D$38,INDIRECT(\"a\" & (VLOOKUP(Switch!$D$38,$F$2:$G$44,2,FALSE)+ROW()-2)),\"\")","v":{"$error":"#N/A"}},{"$f":"IF(INDIRECT(\"c\" & (VLOOKUP(Switch!$D$39,$F$2:$G$44,2,FALSE)+ROW()-2))=Switch!$D$39,INDIRECT(\"a\" & (VLOOKUP(Switch!$D$39,$F$2:$G$44,2,FALSE)+ROW()-2)),\"\")","v":{"$error":"#N/A"}},{"$f":"IF(INDIRECT(\"c\" & (VLOOKUP(Switch!$D$40,$F$2:$G$44,2,FALSE)+ROW()-2))=Switch!$D$40,INDIRECT(\"a\" & (VLOOKUP(Switch!$D$40,$F$2:$G$44,2,FALSE)+ROW()-2)),\"\")","v":{"$error":"#N/A"}},{"$f":"IF(INDIRECT(\"c\" & (VLOOKUP(Switch!$D$52,$F$2:$G$44,2,FALSE)+ROW()-2))=Switch!$D$52,INDIRECT(\"a\" & (VLOOKUP(Switch!$D$52,$F$2:$G$44,2,FALSE)+ROW()-2)),\"\")","v":{"$error":"#N/A"}},{"$f":"IF(INDIRECT(\"c\" & (VLOOKUP(Switch!$D$53,$F$2:$G$44,2,FALSE)+ROW()-2))=Switch!$D$53,INDIRECT(\"a\" & (VLOOKUP(Switch!$D$53,$F$2:$G$44,2,FALSE)+ROW()-2)),\"\")","v":{"$error":"#N/A"}},{"$f":"IF(INDIRECT(\"c\" & (VLOOKUP(Switch!$D$54,$F$2:$G$44,2,FALSE)+ROW()-2))=Switch!$D$54,INDIRECT(\"a\" & (VLOOKUP(Switch!$D$54,$F$2:$G$44,2,FALSE)+ROW()-2)),\"\")","v":{"$error":"#N/A"}},{"$f":"IF(INDIRECT(\"c\" & (VLOOKUP(Switch!$D$55,$F$2:$G$44,2,FALSE)+ROW()-2))=Switch!$D$55,INDIRECT(\"a\" & (VLOOKUP(Switch!$D$55,$F$2:$G$44,2,FALSE)+ROW()-2)),\"\")","v":{"$error":"#N/A"}},{"$f":"IF(INDIRECT(\"c\" & (VLOOKUP(Switch!$D$56,$F$2:$G$44,2,FALSE)+ROW()-2))=Switch!$D$56,INDIRECT(\"a\" & (VLOOKUP(Switch!$D$56,$F$2:$G$44,2,FALSE)+ROW()-2)),\"\")","v":{"$error":"#N/A"}},{"$f":"IF(INDIRECT(\"c\" & (VLOOKUP(Switch!$D$57,$F$2:$G$44,2,FALSE)+ROW()-2))=Switch!$D$57,INDIRECT(\"a\" & (VLOOKUP(Switch!$D$57,$F$2:$G$44,2,FALSE)+ROW()-2)),\"\")","v":{"$error":"#N/A"}},{"$f":"IF(INDIRECT(\"c\" & (VLOOKUP(Switch!$D$58,$F$2:$G$44,2,FALSE)+ROW()-2))=Switch!$D$58,INDIRECT(\"a\" & (VLOOKUP(Switch!$D$58,$F$2:$G$44,2,FALSE)+ROW()-2)),\"\")","v":{"$error":"#N/A"}},{"$f":"IF(INDIRECT(\"c\" & (VLOOKUP(Switch!$D$59,$F$2:$G$44,2,FALSE)+ROW()-2))=Switch!$D$59,INDIRECT(\"a\" & (VLOOKUP(Switch!$D$59,$F$2:$G$44,2,FALSE)+ROW()-2)),\"\")","v":{"$error":"#N/A"}},{"$f":"IF(INDIRECT(\"c\" & (VLOOKUP(Switch!$D$60,$F$2:$G$44,2,FALSE)+ROW()-2))=Switch!$D$60,INDIRECT(\"a\" & (VLOOKUP(Switch!$D$60,$F$2:$G$44,2,FALSE)+ROW()-2)),\"\")","v":{"$error":"#N/A"}},{"$f":"IF(INDIRECT(\"c\" & (VLOOKUP(Switch!$D$61,$F$2:$G$44,2,FALSE)+ROW()-2))=Switch!$D$61,INDIRECT(\"a\" & (VLOOKUP(Switch!$D$61,$F$2:$G$44,2,FALSE)+ROW()-2)),\"\")","v":{"$error":"#N/A"}},{"$f":"IF(INDIRECT(\"c\" & (VLOOKUP(Switch!$D$62,$F$2:$G$44,2,FALSE)+ROW()-2))=Switch!$D$62,INDIRECT(\"a\" & (VLOOKUP(Switch!$D$62,$F$2:$G$44,2,FALSE)+ROW()-2)),\"\")","v":{"$error":"#N/A"}},{"$f":"IF(INDIRECT(\"c\" & (VLOOKUP(Switch!$D$63,$F$2:$G$44,2,FALSE)+ROW()-2))=Switch!$D$63,INDIRECT(\"a\" & (VLOOKUP(Switch!$D$63,$F$2:$G$44,2,FALSE)+ROW()-2)),\"\")","v":{"$error":"#N/A"}},{"$f":"IF(INDIRECT(\"c\" & (VLOOKUP(Switch!$D$64,$F$2:$G$44,2,FALSE)+ROW()-2))=Switch!$D$64,INDIRECT(\"a\" & (VLOOKUP(Switch!$D$64,$F$2:$G$44,2,FALSE)+ROW()-2)),\"\")","v":{"$error":"#N/A"}},{"$f":"IF(INDIRECT(\"c\" & (VLOOKUP(Switch!$D$65,$F$2:$G$44,2,FALSE)+ROW()-2))=Switch!$D$65,INDIRECT(\"a\" & (VLOOKUP(Switch!$D$65,$F$2:$G$44,2,FALSE)+ROW()-2)),\"\")","v":{"$error":"#N/A"}},{"$f":"IF(INDIRECT(\"c\" & (VLOOKUP(Switch!$D$66,$F$2:$G$44,2,FALSE)+ROW()-2))=Switch!$D$66,INDIRECT(\"a\" & (VLOOKUP(Switch!$D$66,$F$2:$G$44,2,FALSE)+ROW()-2)),\"\")","v":{"$error":"#N/A"}}]
["Efficient BCI Flexible FoF A","EFOF","Boutique Collective Investments (Pty) Ltd",{"$f":"ROW()","v":139},null,null,{"$f":"VLOOKUP(F139,$C$2:$D$637,2,FALSE)","v":{"$error":"#N/A"}},{"$f":"IF(INDIRECT(\"c\" & (VLOOKUP(Switch!$D$26,$F$2:$G$44,2,FALSE)+ROW()-2))=Switch!$D$26,INDIRECT(\"a\" & (VLOOKUP(Switch!$D$26,$F$2:$G$44,2,FALSE)+ROW()-2)),\"\")","v":{"$error":"#N/A"}},{"$f":"IF(INDIRECT(\"c\" & (VLOOKUP(Switch!$D$27,$F$2:$G$44,2,FALSE)+ROW()-2))=Switch!$D$27,INDIRECT(\"a\" & (VLOOKUP(Switch!$D$27,$F$2:$G$44,2,FALSE)+ROW()-2)),\"\")","v":{"$error":"#N/A"}},{"$f":"IF(INDIRECT(\"c\" & (VLOOKUP(Switch!$D$28,$F$2:$G$44,2,FALSE)+ROW()-2))=Switch!$D$28,INDIRECT(\"a\" & (VLOOKUP(Switch!$D$28,$F$2:$G$44,2,FALSE)+ROW()-2)),\"\")","v":{"$error":"#N/A"}},{"$f":"IF(INDIRECT(\"c\" & (VLOOKUP(Switch!$D$29,$F$2:$G$44,2,FALSE)+ROW()-2))=Switch!$D$29,INDIRECT(\"a\" & (VLOOKUP(Switch!$D$29,$F$2:$G$44,2,FALSE)+ROW()-2)),\"\")","v":{"$error":"#N/A"}},{"$f":"IF(INDIRECT(\"c\" & (VLOOKUP(Switch!$D$30,$F$2:$G$44,2,FALSE)+ROW()-2))=Switch!$D$30,INDIRECT(\"a\" & (VLOOKUP(Switch!$D$30,$F$2:$G$44,2,FALSE)+ROW()-2)),\"\")","v":{"$error":"#N/A"}},{"$f":"IF(INDIRECT(\"c\" & (VLOOKUP(Switch!$D$31,$F$2:$G$44,2,FALSE)+ROW()-2))=Switch!$D$31,INDIRECT(\"a\" & (VLOOKUP(Switch!$D$31,$F$2:$G$44,2,FALSE)+ROW()-2)),\"\")","v":{"$error":"#N/A"}},{"$f":"IF(INDIRECT(\"c\" & (VLOOKUP(Switch!$D$32,$F$2:$G$44,2,FALSE)+ROW()-2))=Switch!$D$32,INDIRECT(\"a\" & (VLOOKUP(Switch!$D$32,$F$2:$G$44,2,FALSE)+ROW()-2)),\"\")","v":{"$error":"#N/A"}},{"$f":"IF(INDIRECT(\"c\" & (VLOOKUP(Switch!$D$33,$F$2:$G$44,2,FALSE)+ROW()-2))=Switch!$D$33,INDIRECT(\"a\" & (VLOOKUP(Switch!$D$33,$F$2:$G$44,2,FALSE)+ROW()-2)),\"\")","v":{"$error":"#N/A"}},{"$f":"IF(INDIRECT(\"c\" & (VLOOKUP(Switch!$D$34,$F$2:$G$44,2,FALSE)+ROW()-2))=Switch!$D$34,INDIRECT(\"a\" & (VLOOKUP(Switch!$D$34,$F$2:$G$44,2,FALSE)+ROW()-2)),\"\")","v":{"$error":"#N/A"}},{"$f":"IF(INDIRECT(\"c\" & (VLOOKUP(Switch!$D$35,$F$2:$G$44,2,FALSE)+ROW()-2))=Switch!$D$35,INDIRECT(\"a\" & (VLOOKUP(Switch!$D$35,$F$2:$G$44,2,FALSE)+ROW()-2)),\"\")","v":{"$error":"#N/A"}},{"$f":"IF(INDIRECT(\"c\" & (VLOOKUP(Switch!$D$36,$F$2:$G$44,2,FALSE)+ROW()-2))=Switch!$D$36,INDIRECT(\"a\" & (VLOOKUP(Switch!$D$36,$F$2:$G$44,2,FALSE)+ROW()-2)),\"\")","v":{"$error":"#N/A"}},{"$f":"IF(INDIRECT(\"c\" & (VLOOKUP(Switch!$D$37,$F$2:$G$44,2,FALSE)+ROW()-2))=Switch!$D$37,INDIRECT(\"a\" & (VLOOKUP(Switch!$D$37,$F$2:$G$44,2,FALSE)+ROW()-2)),\"\")","v":{"$error":"#N/A"}},{"$f":"IF(INDIRECT(\"c\" & (VLOOKUP(Switch!$D$38,$F$2:$G$44,2,FALSE)+ROW()-2))=Switch!$D$38,INDIRECT(\"a\" & (VLOOKUP(Switch!$D$38,$F$2:$G$44,2,FALSE)+ROW()-2)),\"\")","v":{"$error":"#N/A"}},{"$f":"IF(INDIRECT(\"c\" & (VLOOKUP(Switch!$D$39,$F$2:$G$44,2,FALSE)+ROW()-2))=Switch!$D$39,INDIRECT(\"a\" & (VLOOKUP(Switch!$D$39,$F$2:$G$44,2,FALSE)+ROW()-2)),\"\")","v":{"$error":"#N/A"}},{"$f":"IF(INDIRECT(\"c\" & (VLOOKUP(Switch!$D$40,$F$2:$G$44,2,FALSE)+ROW()-2))=Switch!$D$40,INDIRECT(\"a\" & (VLOOKUP(Switch!$D$40,$F$2:$G$44,2,FALSE)+ROW()-2)),\"\")","v":{"$error":"#N/A"}},{"$f":"IF(INDIRECT(\"c\" & (VLOOKUP(Switch!$D$52,$F$2:$G$44,2,FALSE)+ROW()-2))=Switch!$D$52,INDIRECT(\"a\" & (VLOOKUP(Switch!$D$52,$F$2:$G$44,2,FALSE)+ROW()-2)),\"\")","v":{"$error":"#N/A"}},{"$f":"IF(INDIRECT(\"c\" & (VLOOKUP(Switch!$D$53,$F$2:$G$44,2,FALSE)+ROW()-2))=Switch!$D$53,INDIRECT(\"a\" & (VLOOKUP(Switch!$D$53,$F$2:$G$44,2,FALSE)+ROW()-2)),\"\")","v":{"$error":"#N/A"}},{"$f":"IF(INDIRECT(\"c\" & (VLOOKUP(Switch!$D$54,$F$2:$G$44,2,FALSE)+ROW()-2))=Switch!$D$54,INDIRECT(\"a\" & (VLOOKUP(Switch!$D$54,$F$2:$G$44,2,FALSE)+ROW()-2)),\"\")","v":{"$error":"#N/A"}},{"$f":"IF(INDIRECT(\"c\" & (VLOOKUP(Switch!$D$55,$F$2:$G$44,2,FALSE)+ROW()-2))=Switch!$D$55,INDIRECT(\"a\" & (VLOOKUP(Switch!$D$55,$F$2:$G$44,2,FALSE)+ROW()-2)),\"\")","v":{"$error":"#N/A"}},{"$f":"IF(INDIRECT(\"c\" & (VLOOKUP(Switch!$D$56,$F$2:$G$44,2,FALSE)+ROW()-2))=Switch!$D$56,INDIRECT(\"a\" & (VLOOKUP(Switch!$D$56,$F$2:$G$44,2,FALSE)+ROW()-2)),\"\")","v":{"$error":"#N/A"}},{"$f":"IF(INDIRECT(\"c\" & (VLOOKUP(Switch!$D$57,$F$2:$G$44,2,FALSE)+ROW()-2))=Switch!$D$57,INDIRECT(\"a\" & (VLOOKUP(Switch!$D$57,$F$2:$G$44,2,FALSE)+ROW()-2)),\"\")","v":{"$error":"#N/A"}},{"$f":"IF(INDIRECT(\"c\" & (VLOOKUP(Switch!$D$58,$F$2:$G$44,2,FALSE)+ROW()-2))=Switch!$D$58,INDIRECT(\"a\" & (VLOOKUP(Switch!$D$58,$F$2:$G$44,2,FALSE)+ROW()-2)),\"\")","v":{"$error":"#N/A"}},{"$f":"IF(INDIRECT(\"c\" & (VLOOKUP(Switch!$D$59,$F$2:$G$44,2,FALSE)+ROW()-2))=Switch!$D$59,INDIRECT(\"a\" & (VLOOKUP(Switch!$D$59,$F$2:$G$44,2,FALSE)+ROW()-2)),\"\")","v":{"$error":"#N/A"}},{"$f":"IF(INDIRECT(\"c\" & (VLOOKUP(Switch!$D$60,$F$2:$G$44,2,FALSE)+ROW()-2))=Switch!$D$60,INDIRECT(\"a\" & (VLOOKUP(Switch!$D$60,$F$2:$G$44,2,FALSE)+ROW()-2)),\"\")","v":{"$error":"#N/A"}},{"$f":"IF(INDIRECT(\"c\" & (VLOOKUP(Switch!$D$61,$F$2:$G$44,2,FALSE)+ROW()-2))=Switch!$D$61,INDIRECT(\"a\" & (VLOOKUP(Switch!$D$61,$F$2:$G$44,2,FALSE)+ROW()-2)),\"\")","v":{"$error":"#N/A"}},{"$f":"IF(INDIRECT(\"c\" & (VLOOKUP(Switch!$D$62,$F$2:$G$44,2,FALSE)+ROW()-2))=Switch!$D$62,INDIRECT(\"a\" & (VLOOKUP(Switch!$D$62,$F$2:$G$44,2,FALSE)+ROW()-2)),\"\")","v":{"$error":"#N/A"}},{"$f":"IF(INDIRECT(\"c\" & (VLOOKUP(Switch!$D$63,$F$2:$G$44,2,FALSE)+ROW()-2))=Switch!$D$63,INDIRECT(\"a\" & (VLOOKUP(Switch!$D$63,$F$2:$G$44,2,FALSE)+ROW()-2)),\"\")","v":{"$error":"#N/A"}},{"$f":"IF(INDIRECT(\"c\" & (VLOOKUP(Switch!$D$64,$F$2:$G$44,2,FALSE)+ROW()-2))=Switch!$D$64,INDIRECT(\"a\" & (VLOOKUP(Switch!$D$64,$F$2:$G$44,2,FALSE)+ROW()-2)),\"\")","v":{"$error":"#N/A"}},{"$f":"IF(INDIRECT(\"c\" & (VLOOKUP(Switch!$D$65,$F$2:$G$44,2,FALSE)+ROW()-2))=Switch!$D$65,INDIRECT(\"a\" & (VLOOKUP(Switch!$D$65,$F$2:$G$44,2,FALSE)+ROW()-2)),\"\")","v":{"$error":"#N/A"}},{"$f":"IF(INDIRECT(\"c\" & (VLOOKUP(Switch!$D$66,$F$2:$G$44,2,FALSE)+ROW()-2))=Switch!$D$66,INDIRECT(\"a\" & (VLOOKUP(Switch!$D$66,$F$2:$G$44,2,FALSE)+ROW()-2)),\"\")","v":{"$error":"#N/A"}}]
["Efficient BCI Prudential High FoF A","EIPF","Boutique Collective Investments (Pty) Ltd",{"$f":"ROW()","v":140},null,null,{"$f":"VLOOKUP(F140,$C$2:$D$637,2,FALSE)","v":{"$error":"#N/A"}},{"$f":"IF(INDIRECT(\"c\" & (VLOOKUP(Switch!$D$26,$F$2:$G$44,2,FALSE)+ROW()-2))=Switch!$D$26,INDIRECT(\"a\" & (VLOOKUP(Switch!$D$26,$F$2:$G$44,2,FALSE)+ROW()-2)),\"\")","v":{"$error":"#N/A"}},{"$f":"IF(INDIRECT(\"c\" & (VLOOKUP(Switch!$D$27,$F$2:$G$44,2,FALSE)+ROW()-2))=Switch!$D$27,INDIRECT(\"a\" & (VLOOKUP(Switch!$D$27,$F$2:$G$44,2,FALSE)+ROW()-2)),\"\")","v":{"$error":"#N/A"}},{"$f":"IF(INDIRECT(\"c\" & (VLOOKUP(Switch!$D$28,$F$2:$G$44,2,FALSE)+ROW()-2))=Switch!$D$28,INDIRECT(\"a\" & (VLOOKUP(Switch!$D$28,$F$2:$G$44,2,FALSE)+ROW()-2)),\"\")","v":{"$error":"#N/A"}},{"$f":"IF(INDIRECT(\"c\" & (VLOOKUP(Switch!$D$29,$F$2:$G$44,2,FALSE)+ROW()-2))=Switch!$D$29,INDIRECT(\"a\" & (VLOOKUP(Switch!$D$29,$F$2:$G$44,2,FALSE)+ROW()-2)),\"\")","v":{"$error":"#N/A"}},{"$f":"IF(INDIRECT(\"c\" & (VLOOKUP(Switch!$D$30,$F$2:$G$44,2,FALSE)+ROW()-2))=Switch!$D$30,INDIRECT(\"a\" & (VLOOKUP(Switch!$D$30,$F$2:$G$44,2,FALSE)+ROW()-2)),\"\")","v":{"$error":"#N/A"}},{"$f":"IF(INDIRECT(\"c\" & (VLOOKUP(Switch!$D$31,$F$2:$G$44,2,FALSE)+ROW()-2))=Switch!$D$31,INDIRECT(\"a\" & (VLOOKUP(Switch!$D$31,$F$2:$G$44,2,FALSE)+ROW()-2)),\"\")","v":{"$error":"#N/A"}},{"$f":"IF(INDIRECT(\"c\" & (VLOOKUP(Switch!$D$32,$F$2:$G$44,2,FALSE)+ROW()-2))=Switch!$D$32,INDIRECT(\"a\" & (VLOOKUP(Switch!$D$32,$F$2:$G$44,2,FALSE)+ROW()-2)),\"\")","v":{"$error":"#N/A"}},{"$f":"IF(INDIRECT(\"c\" & (VLOOKUP(Switch!$D$33,$F$2:$G$44,2,FALSE)+ROW()-2))=Switch!$D$33,INDIRECT(\"a\" & (VLOOKUP(Switch!$D$33,$F$2:$G$44,2,FALSE)+ROW()-2)),\"\")","v":{"$error":"#N/A"}},{"$f":"IF(INDIRECT(\"c\" & (VLOOKUP(Switch!$D$34,$F$2:$G$44,2,FALSE)+ROW()-2))=Switch!$D$34,INDIRECT(\"a\" & (VLOOKUP(Switch!$D$34,$F$2:$G$44,2,FALSE)+ROW()-2)),\"\")","v":{"$error":"#N/A"}},{"$f":"IF(INDIRECT(\"c\" & (VLOOKUP(Switch!$D$35,$F$2:$G$44,2,FALSE)+ROW()-2))=Switch!$D$35,INDIRECT(\"a\" & (VLOOKUP(Switch!$D$35,$F$2:$G$44,2,FALSE)+ROW()-2)),\"\")","v":{"$error":"#N/A"}},{"$f":"IF(INDIRECT(\"c\" & (VLOOKUP(Switch!$D$36,$F$2:$G$44,2,FALSE)+ROW()-2))=Switch!$D$36,INDIRECT(\"a\" & (VLOOKUP(Switch!$D$36,$F$2:$G$44,2,FALSE)+ROW()-2)),\"\")","v":{"$error":"#N/A"}},{"$f":"IF(INDIRECT(\"c\" & (VLOOKUP(Switch!$D$37,$F$2:$G$44,2,FALSE)+ROW()-2))=Switch!$D$37,INDIRECT(\"a\" & (VLOOKUP(Switch!$D$37,$F$2:$G$44,2,FALSE)+ROW()-2)),\"\")","v":{"$error":"#N/A"}},{"$f":"IF(INDIRECT(\"c\" & (VLOOKUP(Switch!$D$38,$F$2:$G$44,2,FALSE)+ROW()-2))=Switch!$D$38,INDIRECT(\"a\" & (VLOOKUP(Switch!$D$38,$F$2:$G$44,2,FALSE)+ROW()-2)),\"\")","v":{"$error":"#N/A"}},{"$f":"IF(INDIRECT(\"c\" & (VLOOKUP(Switch!$D$39,$F$2:$G$44,2,FALSE)+ROW()-2))=Switch!$D$39,INDIRECT(\"a\" & (VLOOKUP(Switch!$D$39,$F$2:$G$44,2,FALSE)+ROW()-2)),\"\")","v":{"$error":"#N/A"}},{"$f":"IF(INDIRECT(\"c\" & (VLOOKUP(Switch!$D$40,$F$2:$G$44,2,FALSE)+ROW()-2))=Switch!$D$40,INDIRECT(\"a\" & (VLOOKUP(Switch!$D$40,$F$2:$G$44,2,FALSE)+ROW()-2)),\"\")","v":{"$error":"#N/A"}},{"$f":"IF(INDIRECT(\"c\" & (VLOOKUP(Switch!$D$52,$F$2:$G$44,2,FALSE)+ROW()-2))=Switch!$D$52,INDIRECT(\"a\" & (VLOOKUP(Switch!$D$52,$F$2:$G$44,2,FALSE)+ROW()-2)),\"\")","v":{"$error":"#N/A"}},{"$f":"IF(INDIRECT(\"c\" & (VLOOKUP(Switch!$D$53,$F$2:$G$44,2,FALSE)+ROW()-2))=Switch!$D$53,INDIRECT(\"a\" & (VLOOKUP(Switch!$D$53,$F$2:$G$44,2,FALSE)+ROW()-2)),\"\")","v":{"$error":"#N/A"}},{"$f":"IF(INDIRECT(\"c\" & (VLOOKUP(Switch!$D$54,$F$2:$G$44,2,FALSE)+ROW()-2))=Switch!$D$54,INDIRECT(\"a\" & (VLOOKUP(Switch!$D$54,$F$2:$G$44,2,FALSE)+ROW()-2)),\"\")","v":{"$error":"#N/A"}},{"$f":"IF(INDIRECT(\"c\" & (VLOOKUP(Switch!$D$55,$F$2:$G$44,2,FALSE)+ROW()-2))=Switch!$D$55,INDIRECT(\"a\" & (VLOOKUP(Switch!$D$55,$F$2:$G$44,2,FALSE)+ROW()-2)),\"\")","v":{"$error":"#N/A"}},{"$f":"IF(INDIRECT(\"c\" & (VLOOKUP(Switch!$D$56,$F$2:$G$44,2,FALSE)+ROW()-2))=Switch!$D$56,INDIRECT(\"a\" & (VLOOKUP(Switch!$D$56,$F$2:$G$44,2,FALSE)+ROW()-2)),\"\")","v":{"$error":"#N/A"}},{"$f":"IF(INDIRECT(\"c\" & (VLOOKUP(Switch!$D$57,$F$2:$G$44,2,FALSE)+ROW()-2))=Switch!$D$57,INDIRECT(\"a\" & (VLOOKUP(Switch!$D$57,$F$2:$G$44,2,FALSE)+ROW()-2)),\"\")","v":{"$error":"#N/A"}},{"$f":"IF(INDIRECT(\"c\" & (VLOOKUP(Switch!$D$58,$F$2:$G$44,2,FALSE)+ROW()-2))=Switch!$D$58,INDIRECT(\"a\" & (VLOOKUP(Switch!$D$58,$F$2:$G$44,2,FALSE)+ROW()-2)),\"\")","v":{"$error":"#N/A"}},{"$f":"IF(INDIRECT(\"c\" & (VLOOKUP(Switch!$D$59,$F$2:$G$44,2,FALSE)+ROW()-2))=Switch!$D$59,INDIRECT(\"a\" & (VLOOKUP(Switch!$D$59,$F$2:$G$44,2,FALSE)+ROW()-2)),\"\")","v":{"$error":"#N/A"}},{"$f":"IF(INDIRECT(\"c\" & (VLOOKUP(Switch!$D$60,$F$2:$G$44,2,FALSE)+ROW()-2))=Switch!$D$60,INDIRECT(\"a\" & (VLOOKUP(Switch!$D$60,$F$2:$G$44,2,FALSE)+ROW()-2)),\"\")","v":{"$error":"#N/A"}},{"$f":"IF(INDIRECT(\"c\" & (VLOOKUP(Switch!$D$61,$F$2:$G$44,2,FALSE)+ROW()-2))=Switch!$D$61,INDIRECT(\"a\" & (VLOOKUP(Switch!$D$61,$F$2:$G$44,2,FALSE)+ROW()-2)),\"\")","v":{"$error":"#N/A"}},{"$f":"IF(INDIRECT(\"c\" & (VLOOKUP(Switch!$D$62,$F$2:$G$44,2,FALSE)+ROW()-2))=Switch!$D$62,INDIRECT(\"a\" & (VLOOKUP(Switch!$D$62,$F$2:$G$44,2,FALSE)+ROW()-2)),\"\")","v":{"$error":"#N/A"}},{"$f":"IF(INDIRECT(\"c\" & (VLOOKUP(Switch!$D$63,$F$2:$G$44,2,FALSE)+ROW()-2))=Switch!$D$63,INDIRECT(\"a\" & (VLOOKUP(Switch!$D$63,$F$2:$G$44,2,FALSE)+ROW()-2)),\"\")","v":{"$error":"#N/A"}},{"$f":"IF(INDIRECT(\"c\" & (VLOOKUP(Switch!$D$64,$F$2:$G$44,2,FALSE)+ROW()-2))=Switch!$D$64,INDIRECT(\"a\" & (VLOOKUP(Switch!$D$64,$F$2:$G$44,2,FALSE)+ROW()-2)),\"\")","v":{"$error":"#N/A"}},{"$f":"IF(INDIRECT(\"c\" & (VLOOKUP(Switch!$D$65,$F$2:$G$44,2,FALSE)+ROW()-2))=Switch!$D$65,INDIRECT(\"a\" & (VLOOKUP(Switch!$D$65,$F$2:$G$44,2,FALSE)+ROW()-2)),\"\")","v":{"$error":"#N/A"}},{"$f":"IF(INDIRECT(\"c\" & (VLOOKUP(Switch!$D$66,$F$2:$G$44,2,FALSE)+ROW()-2))=Switch!$D$66,INDIRECT(\"a\" & (VLOOKUP(Switch!$D$66,$F$2:$G$44,2,FALSE)+ROW()-2)),\"\")","v":{"$error":"#N/A"}}]
["Efficient BCI Prudential Low FoF A","EIPT","Boutique Collective Investments (Pty) Ltd",{"$f":"ROW()","v":141},null,null,{"$f":"VLOOKUP(F141,$C$2:$D$637,2,FALSE)","v":{"$error":"#N/A"}},{"$f":"IF(INDIRECT(\"c\" & (VLOOKUP(Switch!$D$26,$F$2:$G$44,2,FALSE)+ROW()-2))=Switch!$D$26,INDIRECT(\"a\" & (VLOOKUP(Switch!$D$26,$F$2:$G$44,2,FALSE)+ROW()-2)),\"\")","v":{"$error":"#N/A"}},{"$f":"IF(INDIRECT(\"c\" & (VLOOKUP(Switch!$D$27,$F$2:$G$44,2,FALSE)+ROW()-2))=Switch!$D$27,INDIRECT(\"a\" & (VLOOKUP(Switch!$D$27,$F$2:$G$44,2,FALSE)+ROW()-2)),\"\")","v":{"$error":"#N/A"}},{"$f":"IF(INDIRECT(\"c\" & (VLOOKUP(Switch!$D$28,$F$2:$G$44,2,FALSE)+ROW()-2))=Switch!$D$28,INDIRECT(\"a\" & (VLOOKUP(Switch!$D$28,$F$2:$G$44,2,FALSE)+ROW()-2)),\"\")","v":{"$error":"#N/A"}},{"$f":"IF(INDIRECT(\"c\" & (VLOOKUP(Switch!$D$29,$F$2:$G$44,2,FALSE)+ROW()-2))=Switch!$D$29,INDIRECT(\"a\" & (VLOOKUP(Switch!$D$29,$F$2:$G$44,2,FALSE)+ROW()-2)),\"\")","v":{"$error":"#N/A"}},{"$f":"IF(INDIRECT(\"c\" & (VLOOKUP(Switch!$D$30,$F$2:$G$44,2,FALSE)+ROW()-2))=Switch!$D$30,INDIRECT(\"a\" & (VLOOKUP(Switch!$D$30,$F$2:$G$44,2,FALSE)+ROW()-2)),\"\")","v":{"$error":"#N/A"}},{"$f":"IF(INDIRECT(\"c\" & (VLOOKUP(Switch!$D$31,$F$2:$G$44,2,FALSE)+ROW()-2))=Switch!$D$31,INDIRECT(\"a\" & (VLOOKUP(Switch!$D$31,$F$2:$G$44,2,FALSE)+ROW()-2)),\"\")","v":{"$error":"#N/A"}},{"$f":"IF(INDIRECT(\"c\" & (VLOOKUP(Switch!$D$32,$F$2:$G$44,2,FALSE)+ROW()-2))=Switch!$D$32,INDIRECT(\"a\" & (VLOOKUP(Switch!$D$32,$F$2:$G$44,2,FALSE)+ROW()-2)),\"\")","v":{"$error":"#N/A"}},{"$f":"IF(INDIRECT(\"c\" & (VLOOKUP(Switch!$D$33,$F$2:$G$44,2,FALSE)+ROW()-2))=Switch!$D$33,INDIRECT(\"a\" & (VLOOKUP(Switch!$D$33,$F$2:$G$44,2,FALSE)+ROW()-2)),\"\")","v":{"$error":"#N/A"}},{"$f":"IF(INDIRECT(\"c\" & (VLOOKUP(Switch!$D$34,$F$2:$G$44,2,FALSE)+ROW()-2))=Switch!$D$34,INDIRECT(\"a\" & (VLOOKUP(Switch!$D$34,$F$2:$G$44,2,FALSE)+ROW()-2)),\"\")","v":{"$error":"#N/A"}},{"$f":"IF(INDIRECT(\"c\" & (VLOOKUP(Switch!$D$35,$F$2:$G$44,2,FALSE)+ROW()-2))=Switch!$D$35,INDIRECT(\"a\" & (VLOOKUP(Switch!$D$35,$F$2:$G$44,2,FALSE)+ROW()-2)),\"\")","v":{"$error":"#N/A"}},{"$f":"IF(INDIRECT(\"c\" & (VLOOKUP(Switch!$D$36,$F$2:$G$44,2,FALSE)+ROW()-2))=Switch!$D$36,INDIRECT(\"a\" & (VLOOKUP(Switch!$D$36,$F$2:$G$44,2,FALSE)+ROW()-2)),\"\")","v":{"$error":"#N/A"}},{"$f":"IF(INDIRECT(\"c\" & (VLOOKUP(Switch!$D$37,$F$2:$G$44,2,FALSE)+ROW()-2))=Switch!$D$37,INDIRECT(\"a\" & (VLOOKUP(Switch!$D$37,$F$2:$G$44,2,FALSE)+ROW()-2)),\"\")","v":{"$error":"#N/A"}},{"$f":"IF(INDIRECT(\"c\" & (VLOOKUP(Switch!$D$38,$F$2:$G$44,2,FALSE)+ROW()-2))=Switch!$D$38,INDIRECT(\"a\" & (VLOOKUP(Switch!$D$38,$F$2:$G$44,2,FALSE)+ROW()-2)),\"\")","v":{"$error":"#N/A"}},{"$f":"IF(INDIRECT(\"c\" & (VLOOKUP(Switch!$D$39,$F$2:$G$44,2,FALSE)+ROW()-2))=Switch!$D$39,INDIRECT(\"a\" & (VLOOKUP(Switch!$D$39,$F$2:$G$44,2,FALSE)+ROW()-2)),\"\")","v":{"$error":"#N/A"}},{"$f":"IF(INDIRECT(\"c\" & (VLOOKUP(Switch!$D$40,$F$2:$G$44,2,FALSE)+ROW()-2))=Switch!$D$40,INDIRECT(\"a\" & (VLOOKUP(Switch!$D$40,$F$2:$G$44,2,FALSE)+ROW()-2)),\"\")","v":{"$error":"#N/A"}},{"$f":"IF(INDIRECT(\"c\" & (VLOOKUP(Switch!$D$52,$F$2:$G$44,2,FALSE)+ROW()-2))=Switch!$D$52,INDIRECT(\"a\" & (VLOOKUP(Switch!$D$52,$F$2:$G$44,2,FALSE)+ROW()-2)),\"\")","v":{"$error":"#N/A"}},{"$f":"IF(INDIRECT(\"c\" & (VLOOKUP(Switch!$D$53,$F$2:$G$44,2,FALSE)+ROW()-2))=Switch!$D$53,INDIRECT(\"a\" & (VLOOKUP(Switch!$D$53,$F$2:$G$44,2,FALSE)+ROW()-2)),\"\")","v":{"$error":"#N/A"}},{"$f":"IF(INDIRECT(\"c\" & (VLOOKUP(Switch!$D$54,$F$2:$G$44,2,FALSE)+ROW()-2))=Switch!$D$54,INDIRECT(\"a\" & (VLOOKUP(Switch!$D$54,$F$2:$G$44,2,FALSE)+ROW()-2)),\"\")","v":{"$error":"#N/A"}},{"$f":"IF(INDIRECT(\"c\" & (VLOOKUP(Switch!$D$55,$F$2:$G$44,2,FALSE)+ROW()-2))=Switch!$D$55,INDIRECT(\"a\" & (VLOOKUP(Switch!$D$55,$F$2:$G$44,2,FALSE)+ROW()-2)),\"\")","v":{"$error":"#N/A"}},{"$f":"IF(INDIRECT(\"c\" & (VLOOKUP(Switch!$D$56,$F$2:$G$44,2,FALSE)+ROW()-2))=Switch!$D$56,INDIRECT(\"a\" & (VLOOKUP(Switch!$D$56,$F$2:$G$44,2,FALSE)+ROW()-2)),\"\")","v":{"$error":"#N/A"}},{"$f":"IF(INDIRECT(\"c\" & (VLOOKUP(Switch!$D$57,$F$2:$G$44,2,FALSE)+ROW()-2))=Switch!$D$57,INDIRECT(\"a\" & (VLOOKUP(Switch!$D$57,$F$2:$G$44,2,FALSE)+ROW()-2)),\"\")","v":{"$error":"#N/A"}},{"$f":"IF(INDIRECT(\"c\" & (VLOOKUP(Switch!$D$58,$F$2:$G$44,2,FALSE)+ROW()-2))=Switch!$D$58,INDIRECT(\"a\" & (VLOOKUP(Switch!$D$58,$F$2:$G$44,2,FALSE)+ROW()-2)),\"\")","v":{"$error":"#N/A"}},{"$f":"IF(INDIRECT(\"c\" & (VLOOKUP(Switch!$D$59,$F$2:$G$44,2,FALSE)+ROW()-2))=Switch!$D$59,INDIRECT(\"a\" & (VLOOKUP(Switch!$D$59,$F$2:$G$44,2,FALSE)+ROW()-2)),\"\")","v":{"$error":"#N/A"}},{"$f":"IF(INDIRECT(\"c\" & (VLOOKUP(Switch!$D$60,$F$2:$G$44,2,FALSE)+ROW()-2))=Switch!$D$60,INDIRECT(\"a\" & (VLOOKUP(Switch!$D$60,$F$2:$G$44,2,FALSE)+ROW()-2)),\"\")","v":{"$error":"#N/A"}},{"$f":"IF(INDIRECT(\"c\" & (VLOOKUP(Switch!$D$61,$F$2:$G$44,2,FALSE)+ROW()-2))=Switch!$D$61,INDIRECT(\"a\" & (VLOOKUP(Switch!$D$61,$F$2:$G$44,2,FALSE)+ROW()-2)),\"\")","v":{"$error":"#N/A"}},{"$f":"IF(INDIRECT(\"c\" & (VLOOKUP(Switch!$D$62,$F$2:$G$44,2,FALSE)+ROW()-2))=Switch!$D$62,INDIRECT(\"a\" & (VLOOKUP(Switch!$D$62,$F$2:$G$44,2,FALSE)+ROW()-2)),\"\")","v":{"$error":"#N/A"}},{"$f":"IF(INDIRECT(\"c\" & (VLOOKUP(Switch!$D$63,$F$2:$G$44,2,FALSE)+ROW()-2))=Switch!$D$63,INDIRECT(\"a\" & (VLOOKUP(Switch!$D$63,$F$2:$G$44,2,FALSE)+ROW()-2)),\"\")","v":{"$error":"#N/A"}},{"$f":"IF(INDIRECT(\"c\" & (VLOOKUP(Switch!$D$64,$F$2:$G$44,2,FALSE)+ROW()-2))=Switch!$D$64,INDIRECT(\"a\" & (VLOOKUP(Switch!$D$64,$F$2:$G$44,2,FALSE)+ROW()-2)),\"\")","v":{"$error":"#N/A"}},{"$f":"IF(INDIRECT(\"c\" & (VLOOKUP(Switch!$D$65,$F$2:$G$44,2,FALSE)+ROW()-2))=Switch!$D$65,INDIRECT(\"a\" & (VLOOKUP(Switch!$D$65,$F$2:$G$44,2,FALSE)+ROW()-2)),\"\")","v":{"$error":"#N/A"}},{"$f":"IF(INDIRECT(\"c\" & (VLOOKUP(Switch!$D$66,$F$2:$G$44,2,FALSE)+ROW()-2))=Switch!$D$66,INDIRECT(\"a\" & (VLOOKUP(Switch!$D$66,$F$2:$G$44,2,FALSE)+ROW()-2)),\"\")","v":{"$error":"#N/A"}}]
["Efficient BCI Prudential Medium FoF C","EPFF","Boutique Collective Investments (Pty) Ltd",{"$f":"ROW()","v":142},null,null,{"$f":"VLOOKUP(F142,$C$2:$D$637,2,FALSE)","v":{"$error":"#N/A"}},{"$f":"IF(INDIRECT(\"c\" & (VLOOKUP(Switch!$D$26,$F$2:$G$44,2,FALSE)+ROW()-2))=Switch!$D$26,INDIRECT(\"a\" & (VLOOKUP(Switch!$D$26,$F$2:$G$44,2,FALSE)+ROW()-2)),\"\")","v":{"$error":"#N/A"}},{"$f":"IF(INDIRECT(\"c\" & (VLOOKUP(Switch!$D$27,$F$2:$G$44,2,FALSE)+ROW()-2))=Switch!$D$27,INDIRECT(\"a\" & (VLOOKUP(Switch!$D$27,$F$2:$G$44,2,FALSE)+ROW()-2)),\"\")","v":{"$error":"#N/A"}},{"$f":"IF(INDIRECT(\"c\" & (VLOOKUP(Switch!$D$28,$F$2:$G$44,2,FALSE)+ROW()-2))=Switch!$D$28,INDIRECT(\"a\" & (VLOOKUP(Switch!$D$28,$F$2:$G$44,2,FALSE)+ROW()-2)),\"\")","v":{"$error":"#N/A"}},{"$f":"IF(INDIRECT(\"c\" & (VLOOKUP(Switch!$D$29,$F$2:$G$44,2,FALSE)+ROW()-2))=Switch!$D$29,INDIRECT(\"a\" & (VLOOKUP(Switch!$D$29,$F$2:$G$44,2,FALSE)+ROW()-2)),\"\")","v":{"$error":"#N/A"}},{"$f":"IF(INDIRECT(\"c\" & (VLOOKUP(Switch!$D$30,$F$2:$G$44,2,FALSE)+ROW()-2))=Switch!$D$30,INDIRECT(\"a\" & (VLOOKUP(Switch!$D$30,$F$2:$G$44,2,FALSE)+ROW()-2)),\"\")","v":{"$error":"#N/A"}},{"$f":"IF(INDIRECT(\"c\" & (VLOOKUP(Switch!$D$31,$F$2:$G$44,2,FALSE)+ROW()-2))=Switch!$D$31,INDIRECT(\"a\" & (VLOOKUP(Switch!$D$31,$F$2:$G$44,2,FALSE)+ROW()-2)),\"\")","v":{"$error":"#N/A"}},{"$f":"IF(INDIRECT(\"c\" & (VLOOKUP(Switch!$D$32,$F$2:$G$44,2,FALSE)+ROW()-2))=Switch!$D$32,INDIRECT(\"a\" & (VLOOKUP(Switch!$D$32,$F$2:$G$44,2,FALSE)+ROW()-2)),\"\")","v":{"$error":"#N/A"}},{"$f":"IF(INDIRECT(\"c\" & (VLOOKUP(Switch!$D$33,$F$2:$G$44,2,FALSE)+ROW()-2))=Switch!$D$33,INDIRECT(\"a\" & (VLOOKUP(Switch!$D$33,$F$2:$G$44,2,FALSE)+ROW()-2)),\"\")","v":{"$error":"#N/A"}},{"$f":"IF(INDIRECT(\"c\" & (VLOOKUP(Switch!$D$34,$F$2:$G$44,2,FALSE)+ROW()-2))=Switch!$D$34,INDIRECT(\"a\" & (VLOOKUP(Switch!$D$34,$F$2:$G$44,2,FALSE)+ROW()-2)),\"\")","v":{"$error":"#N/A"}},{"$f":"IF(INDIRECT(\"c\" & (VLOOKUP(Switch!$D$35,$F$2:$G$44,2,FALSE)+ROW()-2))=Switch!$D$35,INDIRECT(\"a\" & (VLOOKUP(Switch!$D$35,$F$2:$G$44,2,FALSE)+ROW()-2)),\"\")","v":{"$error":"#N/A"}},{"$f":"IF(INDIRECT(\"c\" & (VLOOKUP(Switch!$D$36,$F$2:$G$44,2,FALSE)+ROW()-2))=Switch!$D$36,INDIRECT(\"a\" & (VLOOKUP(Switch!$D$36,$F$2:$G$44,2,FALSE)+ROW()-2)),\"\")","v":{"$error":"#N/A"}},{"$f":"IF(INDIRECT(\"c\" & (VLOOKUP(Switch!$D$37,$F$2:$G$44,2,FALSE)+ROW()-2))=Switch!$D$37,INDIRECT(\"a\" & (VLOOKUP(Switch!$D$37,$F$2:$G$44,2,FALSE)+ROW()-2)),\"\")","v":{"$error":"#N/A"}},{"$f":"IF(INDIRECT(\"c\" & (VLOOKUP(Switch!$D$38,$F$2:$G$44,2,FALSE)+ROW()-2))=Switch!$D$38,INDIRECT(\"a\" & (VLOOKUP(Switch!$D$38,$F$2:$G$44,2,FALSE)+ROW()-2)),\"\")","v":{"$error":"#N/A"}},{"$f":"IF(INDIRECT(\"c\" & (VLOOKUP(Switch!$D$39,$F$2:$G$44,2,FALSE)+ROW()-2))=Switch!$D$39,INDIRECT(\"a\" & (VLOOKUP(Switch!$D$39,$F$2:$G$44,2,FALSE)+ROW()-2)),\"\")","v":{"$error":"#N/A"}},{"$f":"IF(INDIRECT(\"c\" & (VLOOKUP(Switch!$D$40,$F$2:$G$44,2,FALSE)+ROW()-2))=Switch!$D$40,INDIRECT(\"a\" & (VLOOKUP(Switch!$D$40,$F$2:$G$44,2,FALSE)+ROW()-2)),\"\")","v":{"$error":"#N/A"}},{"$f":"IF(INDIRECT(\"c\" & (VLOOKUP(Switch!$D$52,$F$2:$G$44,2,FALSE)+ROW()-2))=Switch!$D$52,INDIRECT(\"a\" & (VLOOKUP(Switch!$D$52,$F$2:$G$44,2,FALSE)+ROW()-2)),\"\")","v":{"$error":"#N/A"}},{"$f":"IF(INDIRECT(\"c\" & (VLOOKUP(Switch!$D$53,$F$2:$G$44,2,FALSE)+ROW()-2))=Switch!$D$53,INDIRECT(\"a\" & (VLOOKUP(Switch!$D$53,$F$2:$G$44,2,FALSE)+ROW()-2)),\"\")","v":{"$error":"#N/A"}},{"$f":"IF(INDIRECT(\"c\" & (VLOOKUP(Switch!$D$54,$F$2:$G$44,2,FALSE)+ROW()-2))=Switch!$D$54,INDIRECT(\"a\" & (VLOOKUP(Switch!$D$54,$F$2:$G$44,2,FALSE)+ROW()-2)),\"\")","v":{"$error":"#N/A"}},{"$f":"IF(INDIRECT(\"c\" & (VLOOKUP(Switch!$D$55,$F$2:$G$44,2,FALSE)+ROW()-2))=Switch!$D$55,INDIRECT(\"a\" & (VLOOKUP(Switch!$D$55,$F$2:$G$44,2,FALSE)+ROW()-2)),\"\")","v":{"$error":"#N/A"}},{"$f":"IF(INDIRECT(\"c\" & (VLOOKUP(Switch!$D$56,$F$2:$G$44,2,FALSE)+ROW()-2))=Switch!$D$56,INDIRECT(\"a\" & (VLOOKUP(Switch!$D$56,$F$2:$G$44,2,FALSE)+ROW()-2)),\"\")","v":{"$error":"#N/A"}},{"$f":"IF(INDIRECT(\"c\" & (VLOOKUP(Switch!$D$57,$F$2:$G$44,2,FALSE)+ROW()-2))=Switch!$D$57,INDIRECT(\"a\" & (VLOOKUP(Switch!$D$57,$F$2:$G$44,2,FALSE)+ROW()-2)),\"\")","v":{"$error":"#N/A"}},{"$f":"IF(INDIRECT(\"c\" & (VLOOKUP(Switch!$D$58,$F$2:$G$44,2,FALSE)+ROW()-2))=Switch!$D$58,INDIRECT(\"a\" & (VLOOKUP(Switch!$D$58,$F$2:$G$44,2,FALSE)+ROW()-2)),\"\")","v":{"$error":"#N/A"}},{"$f":"IF(INDIRECT(\"c\" & (VLOOKUP(Switch!$D$59,$F$2:$G$44,2,FALSE)+ROW()-2))=Switch!$D$59,INDIRECT(\"a\" & (VLOOKUP(Switch!$D$59,$F$2:$G$44,2,FALSE)+ROW()-2)),\"\")","v":{"$error":"#N/A"}},{"$f":"IF(INDIRECT(\"c\" & (VLOOKUP(Switch!$D$60,$F$2:$G$44,2,FALSE)+ROW()-2))=Switch!$D$60,INDIRECT(\"a\" & (VLOOKUP(Switch!$D$60,$F$2:$G$44,2,FALSE)+ROW()-2)),\"\")","v":{"$error":"#N/A"}},{"$f":"IF(INDIRECT(\"c\" & (VLOOKUP(Switch!$D$61,$F$2:$G$44,2,FALSE)+ROW()-2))=Switch!$D$61,INDIRECT(\"a\" & (VLOOKUP(Switch!$D$61,$F$2:$G$44,2,FALSE)+ROW()-2)),\"\")","v":{"$error":"#N/A"}},{"$f":"IF(INDIRECT(\"c\" & (VLOOKUP(Switch!$D$62,$F$2:$G$44,2,FALSE)+ROW()-2))=Switch!$D$62,INDIRECT(\"a\" & (VLOOKUP(Switch!$D$62,$F$2:$G$44,2,FALSE)+ROW()-2)),\"\")","v":{"$error":"#N/A"}},{"$f":"IF(INDIRECT(\"c\" & (VLOOKUP(Switch!$D$63,$F$2:$G$44,2,FALSE)+ROW()-2))=Switch!$D$63,INDIRECT(\"a\" & (VLOOKUP(Switch!$D$63,$F$2:$G$44,2,FALSE)+ROW()-2)),\"\")","v":{"$error":"#N/A"}},{"$f":"IF(INDIRECT(\"c\" & (VLOOKUP(Switch!$D$64,$F$2:$G$44,2,FALSE)+ROW()-2))=Switch!$D$64,INDIRECT(\"a\" & (VLOOKUP(Switch!$D$64,$F$2:$G$44,2,FALSE)+ROW()-2)),\"\")","v":{"$error":"#N/A"}},{"$f":"IF(INDIRECT(\"c\" & (VLOOKUP(Switch!$D$65,$F$2:$G$44,2,FALSE)+ROW()-2))=Switch!$D$65,INDIRECT(\"a\" & (VLOOKUP(Switch!$D$65,$F$2:$G$44,2,FALSE)+ROW()-2)),\"\")","v":{"$error":"#N/A"}},{"$f":"IF(INDIRECT(\"c\" & (VLOOKUP(Switch!$D$66,$F$2:$G$44,2,FALSE)+ROW()-2))=Switch!$D$66,INDIRECT(\"a\" & (VLOOKUP(Switch!$D$66,$F$2:$G$44,2,FALSE)+ROW()-2)),\"\")","v":{"$error":"#N/A"}}]
["Efficient BCI Worldwide Flexible Fund A","VAAF","Boutique Collective Investments (Pty) Ltd",{"$f":"ROW()","v":143},null,null,{"$f":"VLOOKUP(F143,$C$2:$D$637,2,FALSE)","v":{"$error":"#N/A"}},{"$f":"IF(INDIRECT(\"c\" & (VLOOKUP(Switch!$D$26,$F$2:$G$44,2,FALSE)+ROW()-2))=Switch!$D$26,INDIRECT(\"a\" & (VLOOKUP(Switch!$D$26,$F$2:$G$44,2,FALSE)+ROW()-2)),\"\")","v":{"$error":"#N/A"}},{"$f":"IF(INDIRECT(\"c\" & (VLOOKUP(Switch!$D$27,$F$2:$G$44,2,FALSE)+ROW()-2))=Switch!$D$27,INDIRECT(\"a\" & (VLOOKUP(Switch!$D$27,$F$2:$G$44,2,FALSE)+ROW()-2)),\"\")","v":{"$error":"#N/A"}},{"$f":"IF(INDIRECT(\"c\" & (VLOOKUP(Switch!$D$28,$F$2:$G$44,2,FALSE)+ROW()-2))=Switch!$D$28,INDIRECT(\"a\" & (VLOOKUP(Switch!$D$28,$F$2:$G$44,2,FALSE)+ROW()-2)),\"\")","v":{"$error":"#N/A"}},{"$f":"IF(INDIRECT(\"c\" & (VLOOKUP(Switch!$D$29,$F$2:$G$44,2,FALSE)+ROW()-2))=Switch!$D$29,INDIRECT(\"a\" & (VLOOKUP(Switch!$D$29,$F$2:$G$44,2,FALSE)+ROW()-2)),\"\")","v":{"$error":"#N/A"}},{"$f":"IF(INDIRECT(\"c\" & (VLOOKUP(Switch!$D$30,$F$2:$G$44,2,FALSE)+ROW()-2))=Switch!$D$30,INDIRECT(\"a\" & (VLOOKUP(Switch!$D$30,$F$2:$G$44,2,FALSE)+ROW()-2)),\"\")","v":{"$error":"#N/A"}},{"$f":"IF(INDIRECT(\"c\" & (VLOOKUP(Switch!$D$31,$F$2:$G$44,2,FALSE)+ROW()-2))=Switch!$D$31,INDIRECT(\"a\" & (VLOOKUP(Switch!$D$31,$F$2:$G$44,2,FALSE)+ROW()-2)),\"\")","v":{"$error":"#N/A"}},{"$f":"IF(INDIRECT(\"c\" & (VLOOKUP(Switch!$D$32,$F$2:$G$44,2,FALSE)+ROW()-2))=Switch!$D$32,INDIRECT(\"a\" & (VLOOKUP(Switch!$D$32,$F$2:$G$44,2,FALSE)+ROW()-2)),\"\")","v":{"$error":"#N/A"}},{"$f":"IF(INDIRECT(\"c\" & (VLOOKUP(Switch!$D$33,$F$2:$G$44,2,FALSE)+ROW()-2))=Switch!$D$33,INDIRECT(\"a\" & (VLOOKUP(Switch!$D$33,$F$2:$G$44,2,FALSE)+ROW()-2)),\"\")","v":{"$error":"#N/A"}},{"$f":"IF(INDIRECT(\"c\" & (VLOOKUP(Switch!$D$34,$F$2:$G$44,2,FALSE)+ROW()-2))=Switch!$D$34,INDIRECT(\"a\" & (VLOOKUP(Switch!$D$34,$F$2:$G$44,2,FALSE)+ROW()-2)),\"\")","v":{"$error":"#N/A"}},{"$f":"IF(INDIRECT(\"c\" & (VLOOKUP(Switch!$D$35,$F$2:$G$44,2,FALSE)+ROW()-2))=Switch!$D$35,INDIRECT(\"a\" & (VLOOKUP(Switch!$D$35,$F$2:$G$44,2,FALSE)+ROW()-2)),\"\")","v":{"$error":"#N/A"}},{"$f":"IF(INDIRECT(\"c\" & (VLOOKUP(Switch!$D$36,$F$2:$G$44,2,FALSE)+ROW()-2))=Switch!$D$36,INDIRECT(\"a\" & (VLOOKUP(Switch!$D$36,$F$2:$G$44,2,FALSE)+ROW()-2)),\"\")","v":{"$error":"#N/A"}},{"$f":"IF(INDIRECT(\"c\" & (VLOOKUP(Switch!$D$37,$F$2:$G$44,2,FALSE)+ROW()-2))=Switch!$D$37,INDIRECT(\"a\" & (VLOOKUP(Switch!$D$37,$F$2:$G$44,2,FALSE)+ROW()-2)),\"\")","v":{"$error":"#N/A"}},{"$f":"IF(INDIRECT(\"c\" & (VLOOKUP(Switch!$D$38,$F$2:$G$44,2,FALSE)+ROW()-2))=Switch!$D$38,INDIRECT(\"a\" & (VLOOKUP(Switch!$D$38,$F$2:$G$44,2,FALSE)+ROW()-2)),\"\")","v":{"$error":"#N/A"}},{"$f":"IF(INDIRECT(\"c\" & (VLOOKUP(Switch!$D$39,$F$2:$G$44,2,FALSE)+ROW()-2))=Switch!$D$39,INDIRECT(\"a\" & (VLOOKUP(Switch!$D$39,$F$2:$G$44,2,FALSE)+ROW()-2)),\"\")","v":{"$error":"#N/A"}},{"$f":"IF(INDIRECT(\"c\" & (VLOOKUP(Switch!$D$40,$F$2:$G$44,2,FALSE)+ROW()-2))=Switch!$D$40,INDIRECT(\"a\" & (VLOOKUP(Switch!$D$40,$F$2:$G$44,2,FALSE)+ROW()-2)),\"\")","v":{"$error":"#N/A"}},{"$f":"IF(INDIRECT(\"c\" & (VLOOKUP(Switch!$D$52,$F$2:$G$44,2,FALSE)+ROW()-2))=Switch!$D$52,INDIRECT(\"a\" & (VLOOKUP(Switch!$D$52,$F$2:$G$44,2,FALSE)+ROW()-2)),\"\")","v":{"$error":"#N/A"}},{"$f":"IF(INDIRECT(\"c\" & (VLOOKUP(Switch!$D$53,$F$2:$G$44,2,FALSE)+ROW()-2))=Switch!$D$53,INDIRECT(\"a\" & (VLOOKUP(Switch!$D$53,$F$2:$G$44,2,FALSE)+ROW()-2)),\"\")","v":{"$error":"#N/A"}},{"$f":"IF(INDIRECT(\"c\" & (VLOOKUP(Switch!$D$54,$F$2:$G$44,2,FALSE)+ROW()-2))=Switch!$D$54,INDIRECT(\"a\" & (VLOOKUP(Switch!$D$54,$F$2:$G$44,2,FALSE)+ROW()-2)),\"\")","v":{"$error":"#N/A"}},{"$f":"IF(INDIRECT(\"c\" & (VLOOKUP(Switch!$D$55,$F$2:$G$44,2,FALSE)+ROW()-2))=Switch!$D$55,INDIRECT(\"a\" & (VLOOKUP(Switch!$D$55,$F$2:$G$44,2,FALSE)+ROW()-2)),\"\")","v":{"$error":"#N/A"}},{"$f":"IF(INDIRECT(\"c\" & (VLOOKUP(Switch!$D$56,$F$2:$G$44,2,FALSE)+ROW()-2))=Switch!$D$56,INDIRECT(\"a\" & (VLOOKUP(Switch!$D$56,$F$2:$G$44,2,FALSE)+ROW()-2)),\"\")","v":{"$error":"#N/A"}},{"$f":"IF(INDIRECT(\"c\" & (VLOOKUP(Switch!$D$57,$F$2:$G$44,2,FALSE)+ROW()-2))=Switch!$D$57,INDIRECT(\"a\" & (VLOOKUP(Switch!$D$57,$F$2:$G$44,2,FALSE)+ROW()-2)),\"\")","v":{"$error":"#N/A"}},{"$f":"IF(INDIRECT(\"c\" & (VLOOKUP(Switch!$D$58,$F$2:$G$44,2,FALSE)+ROW()-2))=Switch!$D$58,INDIRECT(\"a\" & (VLOOKUP(Switch!$D$58,$F$2:$G$44,2,FALSE)+ROW()-2)),\"\")","v":{"$error":"#N/A"}},{"$f":"IF(INDIRECT(\"c\" & (VLOOKUP(Switch!$D$59,$F$2:$G$44,2,FALSE)+ROW()-2))=Switch!$D$59,INDIRECT(\"a\" & (VLOOKUP(Switch!$D$59,$F$2:$G$44,2,FALSE)+ROW()-2)),\"\")","v":{"$error":"#N/A"}},{"$f":"IF(INDIRECT(\"c\" & (VLOOKUP(Switch!$D$60,$F$2:$G$44,2,FALSE)+ROW()-2))=Switch!$D$60,INDIRECT(\"a\" & (VLOOKUP(Switch!$D$60,$F$2:$G$44,2,FALSE)+ROW()-2)),\"\")","v":{"$error":"#N/A"}},{"$f":"IF(INDIRECT(\"c\" & (VLOOKUP(Switch!$D$61,$F$2:$G$44,2,FALSE)+ROW()-2))=Switch!$D$61,INDIRECT(\"a\" & (VLOOKUP(Switch!$D$61,$F$2:$G$44,2,FALSE)+ROW()-2)),\"\")","v":{"$error":"#N/A"}},{"$f":"IF(INDIRECT(\"c\" & (VLOOKUP(Switch!$D$62,$F$2:$G$44,2,FALSE)+ROW()-2))=Switch!$D$62,INDIRECT(\"a\" & (VLOOKUP(Switch!$D$62,$F$2:$G$44,2,FALSE)+ROW()-2)),\"\")","v":{"$error":"#N/A"}},{"$f":"IF(INDIRECT(\"c\" & (VLOOKUP(Switch!$D$63,$F$2:$G$44,2,FALSE)+ROW()-2))=Switch!$D$63,INDIRECT(\"a\" & (VLOOKUP(Switch!$D$63,$F$2:$G$44,2,FALSE)+ROW()-2)),\"\")","v":{"$error":"#N/A"}},{"$f":"IF(INDIRECT(\"c\" & (VLOOKUP(Switch!$D$64,$F$2:$G$44,2,FALSE)+ROW()-2))=Switch!$D$64,INDIRECT(\"a\" & (VLOOKUP(Switch!$D$64,$F$2:$G$44,2,FALSE)+ROW()-2)),\"\")","v":{"$error":"#N/A"}},{"$f":"IF(INDIRECT(\"c\" & (VLOOKUP(Switch!$D$65,$F$2:$G$44,2,FALSE)+ROW()-2))=Switch!$D$65,INDIRECT(\"a\" & (VLOOKUP(Switch!$D$65,$F$2:$G$44,2,FALSE)+ROW()-2)),\"\")","v":{"$error":"#N/A"}},{"$f":"IF(INDIRECT(\"c\" & (VLOOKUP(Switch!$D$66,$F$2:$G$44,2,FALSE)+ROW()-2))=Switch!$D$66,INDIRECT(\"a\" & (VLOOKUP(Switch!$D$66,$F$2:$G$44,2,FALSE)+ROW()-2)),\"\")","v":{"$error":"#N/A"}}]
["Foster BCI Moderate FoF A","MBMO","Boutique Collective Investments (Pty) Ltd",{"$f":"ROW()","v":144},null,null,{"$f":"VLOOKUP(F144,$C$2:$D$637,2,FALSE)","v":{"$error":"#N/A"}},{"$f":"IF(INDIRECT(\"c\" & (VLOOKUP(Switch!$D$26,$F$2:$G$44,2,FALSE)+ROW()-2))=Switch!$D$26,INDIRECT(\"a\" & (VLOOKUP(Switch!$D$26,$F$2:$G$44,2,FALSE)+ROW()-2)),\"\")","v":{"$error":"#N/A"}},{"$f":"IF(INDIRECT(\"c\" & (VLOOKUP(Switch!$D$27,$F$2:$G$44,2,FALSE)+ROW()-2))=Switch!$D$27,INDIRECT(\"a\" & (VLOOKUP(Switch!$D$27,$F$2:$G$44,2,FALSE)+ROW()-2)),\"\")","v":{"$error":"#N/A"}},{"$f":"IF(INDIRECT(\"c\" & (VLOOKUP(Switch!$D$28,$F$2:$G$44,2,FALSE)+ROW()-2))=Switch!$D$28,INDIRECT(\"a\" & (VLOOKUP(Switch!$D$28,$F$2:$G$44,2,FALSE)+ROW()-2)),\"\")","v":{"$error":"#N/A"}},{"$f":"IF(INDIRECT(\"c\" & (VLOOKUP(Switch!$D$29,$F$2:$G$44,2,FALSE)+ROW()-2))=Switch!$D$29,INDIRECT(\"a\" & (VLOOKUP(Switch!$D$29,$F$2:$G$44,2,FALSE)+ROW()-2)),\"\")","v":{"$error":"#N/A"}},{"$f":"IF(INDIRECT(\"c\" & (VLOOKUP(Switch!$D$30,$F$2:$G$44,2,FALSE)+ROW()-2))=Switch!$D$30,INDIRECT(\"a\" & (VLOOKUP(Switch!$D$30,$F$2:$G$44,2,FALSE)+ROW()-2)),\"\")","v":{"$error":"#N/A"}},{"$f":"IF(INDIRECT(\"c\" & (VLOOKUP(Switch!$D$31,$F$2:$G$44,2,FALSE)+ROW()-2))=Switch!$D$31,INDIRECT(\"a\" & (VLOOKUP(Switch!$D$31,$F$2:$G$44,2,FALSE)+ROW()-2)),\"\")","v":{"$error":"#N/A"}},{"$f":"IF(INDIRECT(\"c\" & (VLOOKUP(Switch!$D$32,$F$2:$G$44,2,FALSE)+ROW()-2))=Switch!$D$32,INDIRECT(\"a\" & (VLOOKUP(Switch!$D$32,$F$2:$G$44,2,FALSE)+ROW()-2)),\"\")","v":{"$error":"#N/A"}},{"$f":"IF(INDIRECT(\"c\" & (VLOOKUP(Switch!$D$33,$F$2:$G$44,2,FALSE)+ROW()-2))=Switch!$D$33,INDIRECT(\"a\" & (VLOOKUP(Switch!$D$33,$F$2:$G$44,2,FALSE)+ROW()-2)),\"\")","v":{"$error":"#N/A"}},{"$f":"IF(INDIRECT(\"c\" & (VLOOKUP(Switch!$D$34,$F$2:$G$44,2,FALSE)+ROW()-2))=Switch!$D$34,INDIRECT(\"a\" & (VLOOKUP(Switch!$D$34,$F$2:$G$44,2,FALSE)+ROW()-2)),\"\")","v":{"$error":"#N/A"}},{"$f":"IF(INDIRECT(\"c\" & (VLOOKUP(Switch!$D$35,$F$2:$G$44,2,FALSE)+ROW()-2))=Switch!$D$35,INDIRECT(\"a\" & (VLOOKUP(Switch!$D$35,$F$2:$G$44,2,FALSE)+ROW()-2)),\"\")","v":{"$error":"#N/A"}},{"$f":"IF(INDIRECT(\"c\" & (VLOOKUP(Switch!$D$36,$F$2:$G$44,2,FALSE)+ROW()-2))=Switch!$D$36,INDIRECT(\"a\" & (VLOOKUP(Switch!$D$36,$F$2:$G$44,2,FALSE)+ROW()-2)),\"\")","v":{"$error":"#N/A"}},{"$f":"IF(INDIRECT(\"c\" & (VLOOKUP(Switch!$D$37,$F$2:$G$44,2,FALSE)+ROW()-2))=Switch!$D$37,INDIRECT(\"a\" & (VLOOKUP(Switch!$D$37,$F$2:$G$44,2,FALSE)+ROW()-2)),\"\")","v":{"$error":"#N/A"}},{"$f":"IF(INDIRECT(\"c\" & (VLOOKUP(Switch!$D$38,$F$2:$G$44,2,FALSE)+ROW()-2))=Switch!$D$38,INDIRECT(\"a\" & (VLOOKUP(Switch!$D$38,$F$2:$G$44,2,FALSE)+ROW()-2)),\"\")","v":{"$error":"#N/A"}},{"$f":"IF(INDIRECT(\"c\" & (VLOOKUP(Switch!$D$39,$F$2:$G$44,2,FALSE)+ROW()-2))=Switch!$D$39,INDIRECT(\"a\" & (VLOOKUP(Switch!$D$39,$F$2:$G$44,2,FALSE)+ROW()-2)),\"\")","v":{"$error":"#N/A"}},{"$f":"IF(INDIRECT(\"c\" & (VLOOKUP(Switch!$D$40,$F$2:$G$44,2,FALSE)+ROW()-2))=Switch!$D$40,INDIRECT(\"a\" & (VLOOKUP(Switch!$D$40,$F$2:$G$44,2,FALSE)+ROW()-2)),\"\")","v":{"$error":"#N/A"}},{"$f":"IF(INDIRECT(\"c\" & (VLOOKUP(Switch!$D$52,$F$2:$G$44,2,FALSE)+ROW()-2))=Switch!$D$52,INDIRECT(\"a\" & (VLOOKUP(Switch!$D$52,$F$2:$G$44,2,FALSE)+ROW()-2)),\"\")","v":{"$error":"#N/A"}},{"$f":"IF(INDIRECT(\"c\" & (VLOOKUP(Switch!$D$53,$F$2:$G$44,2,FALSE)+ROW()-2))=Switch!$D$53,INDIRECT(\"a\" & (VLOOKUP(Switch!$D$53,$F$2:$G$44,2,FALSE)+ROW()-2)),\"\")","v":{"$error":"#N/A"}},{"$f":"IF(INDIRECT(\"c\" & (VLOOKUP(Switch!$D$54,$F$2:$G$44,2,FALSE)+ROW()-2))=Switch!$D$54,INDIRECT(\"a\" & (VLOOKUP(Switch!$D$54,$F$2:$G$44,2,FALSE)+ROW()-2)),\"\")","v":{"$error":"#N/A"}},{"$f":"IF(INDIRECT(\"c\" & (VLOOKUP(Switch!$D$55,$F$2:$G$44,2,FALSE)+ROW()-2))=Switch!$D$55,INDIRECT(\"a\" & (VLOOKUP(Switch!$D$55,$F$2:$G$44,2,FALSE)+ROW()-2)),\"\")","v":{"$error":"#N/A"}},{"$f":"IF(INDIRECT(\"c\" & (VLOOKUP(Switch!$D$56,$F$2:$G$44,2,FALSE)+ROW()-2))=Switch!$D$56,INDIRECT(\"a\" & (VLOOKUP(Switch!$D$56,$F$2:$G$44,2,FALSE)+ROW()-2)),\"\")","v":{"$error":"#N/A"}},{"$f":"IF(INDIRECT(\"c\" & (VLOOKUP(Switch!$D$57,$F$2:$G$44,2,FALSE)+ROW()-2))=Switch!$D$57,INDIRECT(\"a\" & (VLOOKUP(Switch!$D$57,$F$2:$G$44,2,FALSE)+ROW()-2)),\"\")","v":{"$error":"#N/A"}},{"$f":"IF(INDIRECT(\"c\" & (VLOOKUP(Switch!$D$58,$F$2:$G$44,2,FALSE)+ROW()-2))=Switch!$D$58,INDIRECT(\"a\" & (VLOOKUP(Switch!$D$58,$F$2:$G$44,2,FALSE)+ROW()-2)),\"\")","v":{"$error":"#N/A"}},{"$f":"IF(INDIRECT(\"c\" & (VLOOKUP(Switch!$D$59,$F$2:$G$44,2,FALSE)+ROW()-2))=Switch!$D$59,INDIRECT(\"a\" & (VLOOKUP(Switch!$D$59,$F$2:$G$44,2,FALSE)+ROW()-2)),\"\")","v":{"$error":"#N/A"}},{"$f":"IF(INDIRECT(\"c\" & (VLOOKUP(Switch!$D$60,$F$2:$G$44,2,FALSE)+ROW()-2))=Switch!$D$60,INDIRECT(\"a\" & (VLOOKUP(Switch!$D$60,$F$2:$G$44,2,FALSE)+ROW()-2)),\"\")","v":{"$error":"#N/A"}},{"$f":"IF(INDIRECT(\"c\" & (VLOOKUP(Switch!$D$61,$F$2:$G$44,2,FALSE)+ROW()-2))=Switch!$D$61,INDIRECT(\"a\" & (VLOOKUP(Switch!$D$61,$F$2:$G$44,2,FALSE)+ROW()-2)),\"\")","v":{"$error":"#N/A"}},{"$f":"IF(INDIRECT(\"c\" & (VLOOKUP(Switch!$D$62,$F$2:$G$44,2,FALSE)+ROW()-2))=Switch!$D$62,INDIRECT(\"a\" & (VLOOKUP(Switch!$D$62,$F$2:$G$44,2,FALSE)+ROW()-2)),\"\")","v":{"$error":"#N/A"}},{"$f":"IF(INDIRECT(\"c\" & (VLOOKUP(Switch!$D$63,$F$2:$G$44,2,FALSE)+ROW()-2))=Switch!$D$63,INDIRECT(\"a\" & (VLOOKUP(Switch!$D$63,$F$2:$G$44,2,FALSE)+ROW()-2)),\"\")","v":{"$error":"#N/A"}},{"$f":"IF(INDIRECT(\"c\" & (VLOOKUP(Switch!$D$64,$F$2:$G$44,2,FALSE)+ROW()-2))=Switch!$D$64,INDIRECT(\"a\" & (VLOOKUP(Switch!$D$64,$F$2:$G$44,2,FALSE)+ROW()-2)),\"\")","v":{"$error":"#N/A"}},{"$f":"IF(INDIRECT(\"c\" & (VLOOKUP(Switch!$D$65,$F$2:$G$44,2,FALSE)+ROW()-2))=Switch!$D$65,INDIRECT(\"a\" & (VLOOKUP(Switch!$D$65,$F$2:$G$44,2,FALSE)+ROW()-2)),\"\")","v":{"$error":"#N/A"}},{"$f":"IF(INDIRECT(\"c\" & (VLOOKUP(Switch!$D$66,$F$2:$G$44,2,FALSE)+ROW()-2))=Switch!$D$66,INDIRECT(\"a\" & (VLOOKUP(Switch!$D$66,$F$2:$G$44,2,FALSE)+ROW()-2)),\"\")","v":{"$error":"#N/A"}}]
["Optimun BCI Balanced Fund A","OBBFA","Boutique Collective Investments (Pty) Ltd",{"$f":"ROW()","v":145},null,null,{"$f":"VLOOKUP(F145,$C$2:$D$637,2,FALSE)","v":{"$error":"#N/A"}},{"$f":"IF(INDIRECT(\"c\" & (VLOOKUP(Switch!$D$26,$F$2:$G$44,2,FALSE)+ROW()-2))=Switch!$D$26,INDIRECT(\"a\" & (VLOOKUP(Switch!$D$26,$F$2:$G$44,2,FALSE)+ROW()-2)),\"\")","v":{"$error":"#N/A"}},{"$f":"IF(INDIRECT(\"c\" & (VLOOKUP(Switch!$D$27,$F$2:$G$44,2,FALSE)+ROW()-2))=Switch!$D$27,INDIRECT(\"a\" & (VLOOKUP(Switch!$D$27,$F$2:$G$44,2,FALSE)+ROW()-2)),\"\")","v":{"$error":"#N/A"}},{"$f":"IF(INDIRECT(\"c\" & (VLOOKUP(Switch!$D$28,$F$2:$G$44,2,FALSE)+ROW()-2))=Switch!$D$28,INDIRECT(\"a\" & (VLOOKUP(Switch!$D$28,$F$2:$G$44,2,FALSE)+ROW()-2)),\"\")","v":{"$error":"#N/A"}},{"$f":"IF(INDIRECT(\"c\" & (VLOOKUP(Switch!$D$29,$F$2:$G$44,2,FALSE)+ROW()-2))=Switch!$D$29,INDIRECT(\"a\" & (VLOOKUP(Switch!$D$29,$F$2:$G$44,2,FALSE)+ROW()-2)),\"\")","v":{"$error":"#N/A"}},{"$f":"IF(INDIRECT(\"c\" & (VLOOKUP(Switch!$D$30,$F$2:$G$44,2,FALSE)+ROW()-2))=Switch!$D$30,INDIRECT(\"a\" & (VLOOKUP(Switch!$D$30,$F$2:$G$44,2,FALSE)+ROW()-2)),\"\")","v":{"$error":"#N/A"}},{"$f":"IF(INDIRECT(\"c\" & (VLOOKUP(Switch!$D$31,$F$2:$G$44,2,FALSE)+ROW()-2))=Switch!$D$31,INDIRECT(\"a\" & (VLOOKUP(Switch!$D$31,$F$2:$G$44,2,FALSE)+ROW()-2)),\"\")","v":{"$error":"#N/A"}},{"$f":"IF(INDIRECT(\"c\" & (VLOOKUP(Switch!$D$32,$F$2:$G$44,2,FALSE)+ROW()-2))=Switch!$D$32,INDIRECT(\"a\" & (VLOOKUP(Switch!$D$32,$F$2:$G$44,2,FALSE)+ROW()-2)),\"\")","v":{"$error":"#N/A"}},{"$f":"IF(INDIRECT(\"c\" & (VLOOKUP(Switch!$D$33,$F$2:$G$44,2,FALSE)+ROW()-2))=Switch!$D$33,INDIRECT(\"a\" & (VLOOKUP(Switch!$D$33,$F$2:$G$44,2,FALSE)+ROW()-2)),\"\")","v":{"$error":"#N/A"}},{"$f":"IF(INDIRECT(\"c\" & (VLOOKUP(Switch!$D$34,$F$2:$G$44,2,FALSE)+ROW()-2))=Switch!$D$34,INDIRECT(\"a\" & (VLOOKUP(Switch!$D$34,$F$2:$G$44,2,FALSE)+ROW()-2)),\"\")","v":{"$error":"#N/A"}},{"$f":"IF(INDIRECT(\"c\" & (VLOOKUP(Switch!$D$35,$F$2:$G$44,2,FALSE)+ROW()-2))=Switch!$D$35,INDIRECT(\"a\" & (VLOOKUP(Switch!$D$35,$F$2:$G$44,2,FALSE)+ROW()-2)),\"\")","v":{"$error":"#N/A"}},{"$f":"IF(INDIRECT(\"c\" & (VLOOKUP(Switch!$D$36,$F$2:$G$44,2,FALSE)+ROW()-2))=Switch!$D$36,INDIRECT(\"a\" & (VLOOKUP(Switch!$D$36,$F$2:$G$44,2,FALSE)+ROW()-2)),\"\")","v":{"$error":"#N/A"}},{"$f":"IF(INDIRECT(\"c\" & (VLOOKUP(Switch!$D$37,$F$2:$G$44,2,FALSE)+ROW()-2))=Switch!$D$37,INDIRECT(\"a\" & (VLOOKUP(Switch!$D$37,$F$2:$G$44,2,FALSE)+ROW()-2)),\"\")","v":{"$error":"#N/A"}},{"$f":"IF(INDIRECT(\"c\" & (VLOOKUP(Switch!$D$38,$F$2:$G$44,2,FALSE)+ROW()-2))=Switch!$D$38,INDIRECT(\"a\" & (VLOOKUP(Switch!$D$38,$F$2:$G$44,2,FALSE)+ROW()-2)),\"\")","v":{"$error":"#N/A"}},{"$f":"IF(INDIRECT(\"c\" & (VLOOKUP(Switch!$D$39,$F$2:$G$44,2,FALSE)+ROW()-2))=Switch!$D$39,INDIRECT(\"a\" & (VLOOKUP(Switch!$D$39,$F$2:$G$44,2,FALSE)+ROW()-2)),\"\")","v":{"$error":"#N/A"}},{"$f":"IF(INDIRECT(\"c\" & (VLOOKUP(Switch!$D$40,$F$2:$G$44,2,FALSE)+ROW()-2))=Switch!$D$40,INDIRECT(\"a\" & (VLOOKUP(Switch!$D$40,$F$2:$G$44,2,FALSE)+ROW()-2)),\"\")","v":{"$error":"#N/A"}},{"$f":"IF(INDIRECT(\"c\" & (VLOOKUP(Switch!$D$52,$F$2:$G$44,2,FALSE)+ROW()-2))=Switch!$D$52,INDIRECT(\"a\" & (VLOOKUP(Switch!$D$52,$F$2:$G$44,2,FALSE)+ROW()-2)),\"\")","v":{"$error":"#N/A"}},{"$f":"IF(INDIRECT(\"c\" & (VLOOKUP(Switch!$D$53,$F$2:$G$44,2,FALSE)+ROW()-2))=Switch!$D$53,INDIRECT(\"a\" & (VLOOKUP(Switch!$D$53,$F$2:$G$44,2,FALSE)+ROW()-2)),\"\")","v":{"$error":"#N/A"}},{"$f":"IF(INDIRECT(\"c\" & (VLOOKUP(Switch!$D$54,$F$2:$G$44,2,FALSE)+ROW()-2))=Switch!$D$54,INDIRECT(\"a\" & (VLOOKUP(Switch!$D$54,$F$2:$G$44,2,FALSE)+ROW()-2)),\"\")","v":{"$error":"#N/A"}},{"$f":"IF(INDIRECT(\"c\" & (VLOOKUP(Switch!$D$55,$F$2:$G$44,2,FALSE)+ROW()-2))=Switch!$D$55,INDIRECT(\"a\" & (VLOOKUP(Switch!$D$55,$F$2:$G$44,2,FALSE)+ROW()-2)),\"\")","v":{"$error":"#N/A"}},{"$f":"IF(INDIRECT(\"c\" & (VLOOKUP(Switch!$D$56,$F$2:$G$44,2,FALSE)+ROW()-2))=Switch!$D$56,INDIRECT(\"a\" & (VLOOKUP(Switch!$D$56,$F$2:$G$44,2,FALSE)+ROW()-2)),\"\")","v":{"$error":"#N/A"}},{"$f":"IF(INDIRECT(\"c\" & (VLOOKUP(Switch!$D$57,$F$2:$G$44,2,FALSE)+ROW()-2))=Switch!$D$57,INDIRECT(\"a\" & (VLOOKUP(Switch!$D$57,$F$2:$G$44,2,FALSE)+ROW()-2)),\"\")","v":{"$error":"#N/A"}},{"$f":"IF(INDIRECT(\"c\" & (VLOOKUP(Switch!$D$58,$F$2:$G$44,2,FALSE)+ROW()-2))=Switch!$D$58,INDIRECT(\"a\" & (VLOOKUP(Switch!$D$58,$F$2:$G$44,2,FALSE)+ROW()-2)),\"\")","v":{"$error":"#N/A"}},{"$f":"IF(INDIRECT(\"c\" & (VLOOKUP(Switch!$D$59,$F$2:$G$44,2,FALSE)+ROW()-2))=Switch!$D$59,INDIRECT(\"a\" & (VLOOKUP(Switch!$D$59,$F$2:$G$44,2,FALSE)+ROW()-2)),\"\")","v":{"$error":"#N/A"}},{"$f":"IF(INDIRECT(\"c\" & (VLOOKUP(Switch!$D$60,$F$2:$G$44,2,FALSE)+ROW()-2))=Switch!$D$60,INDIRECT(\"a\" & (VLOOKUP(Switch!$D$60,$F$2:$G$44,2,FALSE)+ROW()-2)),\"\")","v":{"$error":"#N/A"}},{"$f":"IF(INDIRECT(\"c\" & (VLOOKUP(Switch!$D$61,$F$2:$G$44,2,FALSE)+ROW()-2))=Switch!$D$61,INDIRECT(\"a\" & (VLOOKUP(Switch!$D$61,$F$2:$G$44,2,FALSE)+ROW()-2)),\"\")","v":{"$error":"#N/A"}},{"$f":"IF(INDIRECT(\"c\" & (VLOOKUP(Switch!$D$62,$F$2:$G$44,2,FALSE)+ROW()-2))=Switch!$D$62,INDIRECT(\"a\" & (VLOOKUP(Switch!$D$62,$F$2:$G$44,2,FALSE)+ROW()-2)),\"\")","v":{"$error":"#N/A"}},{"$f":"IF(INDIRECT(\"c\" & (VLOOKUP(Switch!$D$63,$F$2:$G$44,2,FALSE)+ROW()-2))=Switch!$D$63,INDIRECT(\"a\" & (VLOOKUP(Switch!$D$63,$F$2:$G$44,2,FALSE)+ROW()-2)),\"\")","v":{"$error":"#N/A"}},{"$f":"IF(INDIRECT(\"c\" & (VLOOKUP(Switch!$D$64,$F$2:$G$44,2,FALSE)+ROW()-2))=Switch!$D$64,INDIRECT(\"a\" & (VLOOKUP(Switch!$D$64,$F$2:$G$44,2,FALSE)+ROW()-2)),\"\")","v":{"$error":"#N/A"}},{"$f":"IF(INDIRECT(\"c\" & (VLOOKUP(Switch!$D$65,$F$2:$G$44,2,FALSE)+ROW()-2))=Switch!$D$65,INDIRECT(\"a\" & (VLOOKUP(Switch!$D$65,$F$2:$G$44,2,FALSE)+ROW()-2)),\"\")","v":{"$error":"#N/A"}},{"$f":"IF(INDIRECT(\"c\" & (VLOOKUP(Switch!$D$66,$F$2:$G$44,2,FALSE)+ROW()-2))=Switch!$D$66,INDIRECT(\"a\" & (VLOOKUP(Switch!$D$66,$F$2:$G$44,2,FALSE)+ROW()-2)),\"\")","v":{"$error":"#N/A"}}]
["Optimum BCI Equity Fund A","OBEFA","Boutique Collective Investments (Pty) Ltd",{"$f":"ROW()","v":146},null,null,{"$f":"VLOOKUP(F146,$C$2:$D$637,2,FALSE)","v":{"$error":"#N/A"}},{"$f":"IF(INDIRECT(\"c\" & (VLOOKUP(Switch!$D$26,$F$2:$G$44,2,FALSE)+ROW()-2))=Switch!$D$26,INDIRECT(\"a\" & (VLOOKUP(Switch!$D$26,$F$2:$G$44,2,FALSE)+ROW()-2)),\"\")","v":{"$error":"#N/A"}},{"$f":"IF(INDIRECT(\"c\" & (VLOOKUP(Switch!$D$27,$F$2:$G$44,2,FALSE)+ROW()-2))=Switch!$D$27,INDIRECT(\"a\" & (VLOOKUP(Switch!$D$27,$F$2:$G$44,2,FALSE)+ROW()-2)),\"\")","v":{"$error":"#N/A"}},{"$f":"IF(INDIRECT(\"c\" & (VLOOKUP(Switch!$D$28,$F$2:$G$44,2,FALSE)+ROW()-2))=Switch!$D$28,INDIRECT(\"a\" & (VLOOKUP(Switch!$D$28,$F$2:$G$44,2,FALSE)+ROW()-2)),\"\")","v":{"$error":"#N/A"}},{"$f":"IF(INDIRECT(\"c\" & (VLOOKUP(Switch!$D$29,$F$2:$G$44,2,FALSE)+ROW()-2))=Switch!$D$29,INDIRECT(\"a\" & (VLOOKUP(Switch!$D$29,$F$2:$G$44,2,FALSE)+ROW()-2)),\"\")","v":{"$error":"#N/A"}},{"$f":"IF(INDIRECT(\"c\" & (VLOOKUP(Switch!$D$30,$F$2:$G$44,2,FALSE)+ROW()-2))=Switch!$D$30,INDIRECT(\"a\" & (VLOOKUP(Switch!$D$30,$F$2:$G$44,2,FALSE)+ROW()-2)),\"\")","v":{"$error":"#N/A"}},{"$f":"IF(INDIRECT(\"c\" & (VLOOKUP(Switch!$D$31,$F$2:$G$44,2,FALSE)+ROW()-2))=Switch!$D$31,INDIRECT(\"a\" & (VLOOKUP(Switch!$D$31,$F$2:$G$44,2,FALSE)+ROW()-2)),\"\")","v":{"$error":"#N/A"}},{"$f":"IF(INDIRECT(\"c\" & (VLOOKUP(Switch!$D$32,$F$2:$G$44,2,FALSE)+ROW()-2))=Switch!$D$32,INDIRECT(\"a\" & (VLOOKUP(Switch!$D$32,$F$2:$G$44,2,FALSE)+ROW()-2)),\"\")","v":{"$error":"#N/A"}},{"$f":"IF(INDIRECT(\"c\" & (VLOOKUP(Switch!$D$33,$F$2:$G$44,2,FALSE)+ROW()-2))=Switch!$D$33,INDIRECT(\"a\" & (VLOOKUP(Switch!$D$33,$F$2:$G$44,2,FALSE)+ROW()-2)),\"\")","v":{"$error":"#N/A"}},{"$f":"IF(INDIRECT(\"c\" & (VLOOKUP(Switch!$D$34,$F$2:$G$44,2,FALSE)+ROW()-2))=Switch!$D$34,INDIRECT(\"a\" & (VLOOKUP(Switch!$D$34,$F$2:$G$44,2,FALSE)+ROW()-2)),\"\")","v":{"$error":"#N/A"}},{"$f":"IF(INDIRECT(\"c\" & (VLOOKUP(Switch!$D$35,$F$2:$G$44,2,FALSE)+ROW()-2))=Switch!$D$35,INDIRECT(\"a\" & (VLOOKUP(Switch!$D$35,$F$2:$G$44,2,FALSE)+ROW()-2)),\"\")","v":{"$error":"#N/A"}},{"$f":"IF(INDIRECT(\"c\" & (VLOOKUP(Switch!$D$36,$F$2:$G$44,2,FALSE)+ROW()-2))=Switch!$D$36,INDIRECT(\"a\" & (VLOOKUP(Switch!$D$36,$F$2:$G$44,2,FALSE)+ROW()-2)),\"\")","v":{"$error":"#N/A"}},{"$f":"IF(INDIRECT(\"c\" & (VLOOKUP(Switch!$D$37,$F$2:$G$44,2,FALSE)+ROW()-2))=Switch!$D$37,INDIRECT(\"a\" & (VLOOKUP(Switch!$D$37,$F$2:$G$44,2,FALSE)+ROW()-2)),\"\")","v":{"$error":"#N/A"}},{"$f":"IF(INDIRECT(\"c\" & (VLOOKUP(Switch!$D$38,$F$2:$G$44,2,FALSE)+ROW()-2))=Switch!$D$38,INDIRECT(\"a\" & (VLOOKUP(Switch!$D$38,$F$2:$G$44,2,FALSE)+ROW()-2)),\"\")","v":{"$error":"#N/A"}},{"$f":"IF(INDIRECT(\"c\" & (VLOOKUP(Switch!$D$39,$F$2:$G$44,2,FALSE)+ROW()-2))=Switch!$D$39,INDIRECT(\"a\" & (VLOOKUP(Switch!$D$39,$F$2:$G$44,2,FALSE)+ROW()-2)),\"\")","v":{"$error":"#N/A"}},{"$f":"IF(INDIRECT(\"c\" & (VLOOKUP(Switch!$D$40,$F$2:$G$44,2,FALSE)+ROW()-2))=Switch!$D$40,INDIRECT(\"a\" & (VLOOKUP(Switch!$D$40,$F$2:$G$44,2,FALSE)+ROW()-2)),\"\")","v":{"$error":"#N/A"}},{"$f":"IF(INDIRECT(\"c\" & (VLOOKUP(Switch!$D$52,$F$2:$G$44,2,FALSE)+ROW()-2))=Switch!$D$52,INDIRECT(\"a\" & (VLOOKUP(Switch!$D$52,$F$2:$G$44,2,FALSE)+ROW()-2)),\"\")","v":{"$error":"#N/A"}},{"$f":"IF(INDIRECT(\"c\" & (VLOOKUP(Switch!$D$53,$F$2:$G$44,2,FALSE)+ROW()-2))=Switch!$D$53,INDIRECT(\"a\" & (VLOOKUP(Switch!$D$53,$F$2:$G$44,2,FALSE)+ROW()-2)),\"\")","v":{"$error":"#N/A"}},{"$f":"IF(INDIRECT(\"c\" & (VLOOKUP(Switch!$D$54,$F$2:$G$44,2,FALSE)+ROW()-2))=Switch!$D$54,INDIRECT(\"a\" & (VLOOKUP(Switch!$D$54,$F$2:$G$44,2,FALSE)+ROW()-2)),\"\")","v":{"$error":"#N/A"}},{"$f":"IF(INDIRECT(\"c\" & (VLOOKUP(Switch!$D$55,$F$2:$G$44,2,FALSE)+ROW()-2))=Switch!$D$55,INDIRECT(\"a\" & (VLOOKUP(Switch!$D$55,$F$2:$G$44,2,FALSE)+ROW()-2)),\"\")","v":{"$error":"#N/A"}},{"$f":"IF(INDIRECT(\"c\" & (VLOOKUP(Switch!$D$56,$F$2:$G$44,2,FALSE)+ROW()-2))=Switch!$D$56,INDIRECT(\"a\" & (VLOOKUP(Switch!$D$56,$F$2:$G$44,2,FALSE)+ROW()-2)),\"\")","v":{"$error":"#N/A"}},{"$f":"IF(INDIRECT(\"c\" & (VLOOKUP(Switch!$D$57,$F$2:$G$44,2,FALSE)+ROW()-2))=Switch!$D$57,INDIRECT(\"a\" & (VLOOKUP(Switch!$D$57,$F$2:$G$44,2,FALSE)+ROW()-2)),\"\")","v":{"$error":"#N/A"}},{"$f":"IF(INDIRECT(\"c\" & (VLOOKUP(Switch!$D$58,$F$2:$G$44,2,FALSE)+ROW()-2))=Switch!$D$58,INDIRECT(\"a\" & (VLOOKUP(Switch!$D$58,$F$2:$G$44,2,FALSE)+ROW()-2)),\"\")","v":{"$error":"#N/A"}},{"$f":"IF(INDIRECT(\"c\" & (VLOOKUP(Switch!$D$59,$F$2:$G$44,2,FALSE)+ROW()-2))=Switch!$D$59,INDIRECT(\"a\" & (VLOOKUP(Switch!$D$59,$F$2:$G$44,2,FALSE)+ROW()-2)),\"\")","v":{"$error":"#N/A"}},{"$f":"IF(INDIRECT(\"c\" & (VLOOKUP(Switch!$D$60,$F$2:$G$44,2,FALSE)+ROW()-2))=Switch!$D$60,INDIRECT(\"a\" & (VLOOKUP(Switch!$D$60,$F$2:$G$44,2,FALSE)+ROW()-2)),\"\")","v":{"$error":"#N/A"}},{"$f":"IF(INDIRECT(\"c\" & (VLOOKUP(Switch!$D$61,$F$2:$G$44,2,FALSE)+ROW()-2))=Switch!$D$61,INDIRECT(\"a\" & (VLOOKUP(Switch!$D$61,$F$2:$G$44,2,FALSE)+ROW()-2)),\"\")","v":{"$error":"#N/A"}},{"$f":"IF(INDIRECT(\"c\" & (VLOOKUP(Switch!$D$62,$F$2:$G$44,2,FALSE)+ROW()-2))=Switch!$D$62,INDIRECT(\"a\" & (VLOOKUP(Switch!$D$62,$F$2:$G$44,2,FALSE)+ROW()-2)),\"\")","v":{"$error":"#N/A"}},{"$f":"IF(INDIRECT(\"c\" & (VLOOKUP(Switch!$D$63,$F$2:$G$44,2,FALSE)+ROW()-2))=Switch!$D$63,INDIRECT(\"a\" & (VLOOKUP(Switch!$D$63,$F$2:$G$44,2,FALSE)+ROW()-2)),\"\")","v":{"$error":"#N/A"}},{"$f":"IF(INDIRECT(\"c\" & (VLOOKUP(Switch!$D$64,$F$2:$G$44,2,FALSE)+ROW()-2))=Switch!$D$64,INDIRECT(\"a\" & (VLOOKUP(Switch!$D$64,$F$2:$G$44,2,FALSE)+ROW()-2)),\"\")","v":{"$error":"#N/A"}},{"$f":"IF(INDIRECT(\"c\" & (VLOOKUP(Switch!$D$65,$F$2:$G$44,2,FALSE)+ROW()-2))=Switch!$D$65,INDIRECT(\"a\" & (VLOOKUP(Switch!$D$65,$F$2:$G$44,2,FALSE)+ROW()-2)),\"\")","v":{"$error":"#N/A"}},{"$f":"IF(INDIRECT(\"c\" & (VLOOKUP(Switch!$D$66,$F$2:$G$44,2,FALSE)+ROW()-2))=Switch!$D$66,INDIRECT(\"a\" & (VLOOKUP(Switch!$D$66,$F$2:$G$44,2,FALSE)+ROW()-2)),\"\")","v":{"$error":"#N/A"}}]
["Optimum BCI Managed Growth Fund A","OBGFA","Boutique Collective Investments (Pty) Ltd",{"$f":"ROW()","v":147},null,null,{"$f":"VLOOKUP(F147,$C$2:$D$637,2,FALSE)","v":{"$error":"#N/A"}},{"$f":"IF(INDIRECT(\"c\" & (VLOOKUP(Switch!$D$26,$F$2:$G$44,2,FALSE)+ROW()-2))=Switch!$D$26,INDIRECT(\"a\" & (VLOOKUP(Switch!$D$26,$F$2:$G$44,2,FALSE)+ROW()-2)),\"\")","v":{"$error":"#N/A"}},{"$f":"IF(INDIRECT(\"c\" & (VLOOKUP(Switch!$D$27,$F$2:$G$44,2,FALSE)+ROW()-2))=Switch!$D$27,INDIRECT(\"a\" & (VLOOKUP(Switch!$D$27,$F$2:$G$44,2,FALSE)+ROW()-2)),\"\")","v":{"$error":"#N/A"}},{"$f":"IF(INDIRECT(\"c\" & (VLOOKUP(Switch!$D$28,$F$2:$G$44,2,FALSE)+ROW()-2))=Switch!$D$28,INDIRECT(\"a\" & (VLOOKUP(Switch!$D$28,$F$2:$G$44,2,FALSE)+ROW()-2)),\"\")","v":{"$error":"#N/A"}},{"$f":"IF(INDIRECT(\"c\" & (VLOOKUP(Switch!$D$29,$F$2:$G$44,2,FALSE)+ROW()-2))=Switch!$D$29,INDIRECT(\"a\" & (VLOOKUP(Switch!$D$29,$F$2:$G$44,2,FALSE)+ROW()-2)),\"\")","v":{"$error":"#N/A"}},{"$f":"IF(INDIRECT(\"c\" & (VLOOKUP(Switch!$D$30,$F$2:$G$44,2,FALSE)+ROW()-2))=Switch!$D$30,INDIRECT(\"a\" & (VLOOKUP(Switch!$D$30,$F$2:$G$44,2,FALSE)+ROW()-2)),\"\")","v":{"$error":"#N/A"}},{"$f":"IF(INDIRECT(\"c\" & (VLOOKUP(Switch!$D$31,$F$2:$G$44,2,FALSE)+ROW()-2))=Switch!$D$31,INDIRECT(\"a\" & (VLOOKUP(Switch!$D$31,$F$2:$G$44,2,FALSE)+ROW()-2)),\"\")","v":{"$error":"#N/A"}},{"$f":"IF(INDIRECT(\"c\" & (VLOOKUP(Switch!$D$32,$F$2:$G$44,2,FALSE)+ROW()-2))=Switch!$D$32,INDIRECT(\"a\" & (VLOOKUP(Switch!$D$32,$F$2:$G$44,2,FALSE)+ROW()-2)),\"\")","v":{"$error":"#N/A"}},{"$f":"IF(INDIRECT(\"c\" & (VLOOKUP(Switch!$D$33,$F$2:$G$44,2,FALSE)+ROW()-2))=Switch!$D$33,INDIRECT(\"a\" & (VLOOKUP(Switch!$D$33,$F$2:$G$44,2,FALSE)+ROW()-2)),\"\")","v":{"$error":"#N/A"}},{"$f":"IF(INDIRECT(\"c\" & (VLOOKUP(Switch!$D$34,$F$2:$G$44,2,FALSE)+ROW()-2))=Switch!$D$34,INDIRECT(\"a\" & (VLOOKUP(Switch!$D$34,$F$2:$G$44,2,FALSE)+ROW()-2)),\"\")","v":{"$error":"#N/A"}},{"$f":"IF(INDIRECT(\"c\" & (VLOOKUP(Switch!$D$35,$F$2:$G$44,2,FALSE)+ROW()-2))=Switch!$D$35,INDIRECT(\"a\" & (VLOOKUP(Switch!$D$35,$F$2:$G$44,2,FALSE)+ROW()-2)),\"\")","v":{"$error":"#N/A"}},{"$f":"IF(INDIRECT(\"c\" & (VLOOKUP(Switch!$D$36,$F$2:$G$44,2,FALSE)+ROW()-2))=Switch!$D$36,INDIRECT(\"a\" & (VLOOKUP(Switch!$D$36,$F$2:$G$44,2,FALSE)+ROW()-2)),\"\")","v":{"$error":"#N/A"}},{"$f":"IF(INDIRECT(\"c\" & (VLOOKUP(Switch!$D$37,$F$2:$G$44,2,FALSE)+ROW()-2))=Switch!$D$37,INDIRECT(\"a\" & (VLOOKUP(Switch!$D$37,$F$2:$G$44,2,FALSE)+ROW()-2)),\"\")","v":{"$error":"#N/A"}},{"$f":"IF(INDIRECT(\"c\" & (VLOOKUP(Switch!$D$38,$F$2:$G$44,2,FALSE)+ROW()-2))=Switch!$D$38,INDIRECT(\"a\" & (VLOOKUP(Switch!$D$38,$F$2:$G$44,2,FALSE)+ROW()-2)),\"\")","v":{"$error":"#N/A"}},{"$f":"IF(INDIRECT(\"c\" & (VLOOKUP(Switch!$D$39,$F$2:$G$44,2,FALSE)+ROW()-2))=Switch!$D$39,INDIRECT(\"a\" & (VLOOKUP(Switch!$D$39,$F$2:$G$44,2,FALSE)+ROW()-2)),\"\")","v":{"$error":"#N/A"}},{"$f":"IF(INDIRECT(\"c\" & (VLOOKUP(Switch!$D$40,$F$2:$G$44,2,FALSE)+ROW()-2))=Switch!$D$40,INDIRECT(\"a\" & (VLOOKUP(Switch!$D$40,$F$2:$G$44,2,FALSE)+ROW()-2)),\"\")","v":{"$error":"#N/A"}},{"$f":"IF(INDIRECT(\"c\" & (VLOOKUP(Switch!$D$52,$F$2:$G$44,2,FALSE)+ROW()-2))=Switch!$D$52,INDIRECT(\"a\" & (VLOOKUP(Switch!$D$52,$F$2:$G$44,2,FALSE)+ROW()-2)),\"\")","v":{"$error":"#N/A"}},{"$f":"IF(INDIRECT(\"c\" & (VLOOKUP(Switch!$D$53,$F$2:$G$44,2,FALSE)+ROW()-2))=Switch!$D$53,INDIRECT(\"a\" & (VLOOKUP(Switch!$D$53,$F$2:$G$44,2,FALSE)+ROW()-2)),\"\")","v":{"$error":"#N/A"}},{"$f":"IF(INDIRECT(\"c\" & (VLOOKUP(Switch!$D$54,$F$2:$G$44,2,FALSE)+ROW()-2))=Switch!$D$54,INDIRECT(\"a\" & (VLOOKUP(Switch!$D$54,$F$2:$G$44,2,FALSE)+ROW()-2)),\"\")","v":{"$error":"#N/A"}},{"$f":"IF(INDIRECT(\"c\" & (VLOOKUP(Switch!$D$55,$F$2:$G$44,2,FALSE)+ROW()-2))=Switch!$D$55,INDIRECT(\"a\" & (VLOOKUP(Switch!$D$55,$F$2:$G$44,2,FALSE)+ROW()-2)),\"\")","v":{"$error":"#N/A"}},{"$f":"IF(INDIRECT(\"c\" & (VLOOKUP(Switch!$D$56,$F$2:$G$44,2,FALSE)+ROW()-2))=Switch!$D$56,INDIRECT(\"a\" & (VLOOKUP(Switch!$D$56,$F$2:$G$44,2,FALSE)+ROW()-2)),\"\")","v":{"$error":"#N/A"}},{"$f":"IF(INDIRECT(\"c\" & (VLOOKUP(Switch!$D$57,$F$2:$G$44,2,FALSE)+ROW()-2))=Switch!$D$57,INDIRECT(\"a\" & (VLOOKUP(Switch!$D$57,$F$2:$G$44,2,FALSE)+ROW()-2)),\"\")","v":{"$error":"#N/A"}},{"$f":"IF(INDIRECT(\"c\" & (VLOOKUP(Switch!$D$58,$F$2:$G$44,2,FALSE)+ROW()-2))=Switch!$D$58,INDIRECT(\"a\" & (VLOOKUP(Switch!$D$58,$F$2:$G$44,2,FALSE)+ROW()-2)),\"\")","v":{"$error":"#N/A"}},{"$f":"IF(INDIRECT(\"c\" & (VLOOKUP(Switch!$D$59,$F$2:$G$44,2,FALSE)+ROW()-2))=Switch!$D$59,INDIRECT(\"a\" & (VLOOKUP(Switch!$D$59,$F$2:$G$44,2,FALSE)+ROW()-2)),\"\")","v":{"$error":"#N/A"}},{"$f":"IF(INDIRECT(\"c\" & (VLOOKUP(Switch!$D$60,$F$2:$G$44,2,FALSE)+ROW()-2))=Switch!$D$60,INDIRECT(\"a\" & (VLOOKUP(Switch!$D$60,$F$2:$G$44,2,FALSE)+ROW()-2)),\"\")","v":{"$error":"#N/A"}},{"$f":"IF(INDIRECT(\"c\" & (VLOOKUP(Switch!$D$61,$F$2:$G$44,2,FALSE)+ROW()-2))=Switch!$D$61,INDIRECT(\"a\" & (VLOOKUP(Switch!$D$61,$F$2:$G$44,2,FALSE)+ROW()-2)),\"\")","v":{"$error":"#N/A"}},{"$f":"IF(INDIRECT(\"c\" & (VLOOKUP(Switch!$D$62,$F$2:$G$44,2,FALSE)+ROW()-2))=Switch!$D$62,INDIRECT(\"a\" & (VLOOKUP(Switch!$D$62,$F$2:$G$44,2,FALSE)+ROW()-2)),\"\")","v":{"$error":"#N/A"}},{"$f":"IF(INDIRECT(\"c\" & (VLOOKUP(Switch!$D$63,$F$2:$G$44,2,FALSE)+ROW()-2))=Switch!$D$63,INDIRECT(\"a\" & (VLOOKUP(Switch!$D$63,$F$2:$G$44,2,FALSE)+ROW()-2)),\"\")","v":{"$error":"#N/A"}},{"$f":"IF(INDIRECT(\"c\" & (VLOOKUP(Switch!$D$64,$F$2:$G$44,2,FALSE)+ROW()-2))=Switch!$D$64,INDIRECT(\"a\" & (VLOOKUP(Switch!$D$64,$F$2:$G$44,2,FALSE)+ROW()-2)),\"\")","v":{"$error":"#N/A"}},{"$f":"IF(INDIRECT(\"c\" & (VLOOKUP(Switch!$D$65,$F$2:$G$44,2,FALSE)+ROW()-2))=Switch!$D$65,INDIRECT(\"a\" & (VLOOKUP(Switch!$D$65,$F$2:$G$44,2,FALSE)+ROW()-2)),\"\")","v":{"$error":"#N/A"}},{"$f":"IF(INDIRECT(\"c\" & (VLOOKUP(Switch!$D$66,$F$2:$G$44,2,FALSE)+ROW()-2))=Switch!$D$66,INDIRECT(\"a\" & (VLOOKUP(Switch!$D$66,$F$2:$G$44,2,FALSE)+ROW()-2)),\"\")","v":{"$error":"#N/A"}}]
["Optimum BCI Stable Fund A","OBSFA","Boutique Collective Investments (Pty) Ltd",{"$f":"ROW()","v":148},null,null,{"$f":"VLOOKUP(F148,$C$2:$D$637,2,FALSE)","v":{"$error":"#N/A"}},{"$f":"IF(INDIRECT(\"c\" & (VLOOKUP(Switch!$D$26,$F$2:$G$44,2,FALSE)+ROW()-2))=Switch!$D$26,INDIRECT(\"a\" & (VLOOKUP(Switch!$D$26,$F$2:$G$44,2,FALSE)+ROW()-2)),\"\")","v":{"$error":"#N/A"}},{"$f":"IF(INDIRECT(\"c\" & (VLOOKUP(Switch!$D$27,$F$2:$G$44,2,FALSE)+ROW()-2))=Switch!$D$27,INDIRECT(\"a\" & (VLOOKUP(Switch!$D$27,$F$2:$G$44,2,FALSE)+ROW()-2)),\"\")","v":{"$error":"#N/A"}},{"$f":"IF(INDIRECT(\"c\" & (VLOOKUP(Switch!$D$28,$F$2:$G$44,2,FALSE)+ROW()-2))=Switch!$D$28,INDIRECT(\"a\" & (VLOOKUP(Switch!$D$28,$F$2:$G$44,2,FALSE)+ROW()-2)),\"\")","v":{"$error":"#N/A"}},{"$f":"IF(INDIRECT(\"c\" & (VLOOKUP(Switch!$D$29,$F$2:$G$44,2,FALSE)+ROW()-2))=Switch!$D$29,INDIRECT(\"a\" & (VLOOKUP(Switch!$D$29,$F$2:$G$44,2,FALSE)+ROW()-2)),\"\")","v":{"$error":"#N/A"}},{"$f":"IF(INDIRECT(\"c\" & (VLOOKUP(Switch!$D$30,$F$2:$G$44,2,FALSE)+ROW()-2))=Switch!$D$30,INDIRECT(\"a\" & (VLOOKUP(Switch!$D$30,$F$2:$G$44,2,FALSE)+ROW()-2)),\"\")","v":{"$error":"#N/A"}},{"$f":"IF(INDIRECT(\"c\" & (VLOOKUP(Switch!$D$31,$F$2:$G$44,2,FALSE)+ROW()-2))=Switch!$D$31,INDIRECT(\"a\" & (VLOOKUP(Switch!$D$31,$F$2:$G$44,2,FALSE)+ROW()-2)),\"\")","v":{"$error":"#N/A"}},{"$f":"IF(INDIRECT(\"c\" & (VLOOKUP(Switch!$D$32,$F$2:$G$44,2,FALSE)+ROW()-2))=Switch!$D$32,INDIRECT(\"a\" & (VLOOKUP(Switch!$D$32,$F$2:$G$44,2,FALSE)+ROW()-2)),\"\")","v":{"$error":"#N/A"}},{"$f":"IF(INDIRECT(\"c\" & (VLOOKUP(Switch!$D$33,$F$2:$G$44,2,FALSE)+ROW()-2))=Switch!$D$33,INDIRECT(\"a\" & (VLOOKUP(Switch!$D$33,$F$2:$G$44,2,FALSE)+ROW()-2)),\"\")","v":{"$error":"#N/A"}},{"$f":"IF(INDIRECT(\"c\" & (VLOOKUP(Switch!$D$34,$F$2:$G$44,2,FALSE)+ROW()-2))=Switch!$D$34,INDIRECT(\"a\" & (VLOOKUP(Switch!$D$34,$F$2:$G$44,2,FALSE)+ROW()-2)),\"\")","v":{"$error":"#N/A"}},{"$f":"IF(INDIRECT(\"c\" & (VLOOKUP(Switch!$D$35,$F$2:$G$44,2,FALSE)+ROW()-2))=Switch!$D$35,INDIRECT(\"a\" & (VLOOKUP(Switch!$D$35,$F$2:$G$44,2,FALSE)+ROW()-2)),\"\")","v":{"$error":"#N/A"}},{"$f":"IF(INDIRECT(\"c\" & (VLOOKUP(Switch!$D$36,$F$2:$G$44,2,FALSE)+ROW()-2))=Switch!$D$36,INDIRECT(\"a\" & (VLOOKUP(Switch!$D$36,$F$2:$G$44,2,FALSE)+ROW()-2)),\"\")","v":{"$error":"#N/A"}},{"$f":"IF(INDIRECT(\"c\" & (VLOOKUP(Switch!$D$37,$F$2:$G$44,2,FALSE)+ROW()-2))=Switch!$D$37,INDIRECT(\"a\" & (VLOOKUP(Switch!$D$37,$F$2:$G$44,2,FALSE)+ROW()-2)),\"\")","v":{"$error":"#N/A"}},{"$f":"IF(INDIRECT(\"c\" & (VLOOKUP(Switch!$D$38,$F$2:$G$44,2,FALSE)+ROW()-2))=Switch!$D$38,INDIRECT(\"a\" & (VLOOKUP(Switch!$D$38,$F$2:$G$44,2,FALSE)+ROW()-2)),\"\")","v":{"$error":"#N/A"}},{"$f":"IF(INDIRECT(\"c\" & (VLOOKUP(Switch!$D$39,$F$2:$G$44,2,FALSE)+ROW()-2))=Switch!$D$39,INDIRECT(\"a\" & (VLOOKUP(Switch!$D$39,$F$2:$G$44,2,FALSE)+ROW()-2)),\"\")","v":{"$error":"#N/A"}},{"$f":"IF(INDIRECT(\"c\" & (VLOOKUP(Switch!$D$40,$F$2:$G$44,2,FALSE)+ROW()-2))=Switch!$D$40,INDIRECT(\"a\" & (VLOOKUP(Switch!$D$40,$F$2:$G$44,2,FALSE)+ROW()-2)),\"\")","v":{"$error":"#N/A"}},{"$f":"IF(INDIRECT(\"c\" & (VLOOKUP(Switch!$D$52,$F$2:$G$44,2,FALSE)+ROW()-2))=Switch!$D$52,INDIRECT(\"a\" & (VLOOKUP(Switch!$D$52,$F$2:$G$44,2,FALSE)+ROW()-2)),\"\")","v":{"$error":"#N/A"}},{"$f":"IF(INDIRECT(\"c\" & (VLOOKUP(Switch!$D$53,$F$2:$G$44,2,FALSE)+ROW()-2))=Switch!$D$53,INDIRECT(\"a\" & (VLOOKUP(Switch!$D$53,$F$2:$G$44,2,FALSE)+ROW()-2)),\"\")","v":{"$error":"#N/A"}},{"$f":"IF(INDIRECT(\"c\" & (VLOOKUP(Switch!$D$54,$F$2:$G$44,2,FALSE)+ROW()-2))=Switch!$D$54,INDIRECT(\"a\" & (VLOOKUP(Switch!$D$54,$F$2:$G$44,2,FALSE)+ROW()-2)),\"\")","v":{"$error":"#N/A"}},{"$f":"IF(INDIRECT(\"c\" & (VLOOKUP(Switch!$D$55,$F$2:$G$44,2,FALSE)+ROW()-2))=Switch!$D$55,INDIRECT(\"a\" & (VLOOKUP(Switch!$D$55,$F$2:$G$44,2,FALSE)+ROW()-2)),\"\")","v":{"$error":"#N/A"}},{"$f":"IF(INDIRECT(\"c\" & (VLOOKUP(Switch!$D$56,$F$2:$G$44,2,FALSE)+ROW()-2))=Switch!$D$56,INDIRECT(\"a\" & (VLOOKUP(Switch!$D$56,$F$2:$G$44,2,FALSE)+ROW()-2)),\"\")","v":{"$error":"#N/A"}},{"$f":"IF(INDIRECT(\"c\" & (VLOOKUP(Switch!$D$57,$F$2:$G$44,2,FALSE)+ROW()-2))=Switch!$D$57,INDIRECT(\"a\" & (VLOOKUP(Switch!$D$57,$F$2:$G$44,2,FALSE)+ROW()-2)),\"\")","v":{"$error":"#N/A"}},{"$f":"IF(INDIRECT(\"c\" & (VLOOKUP(Switch!$D$58,$F$2:$G$44,2,FALSE)+ROW()-2))=Switch!$D$58,INDIRECT(\"a\" & (VLOOKUP(Switch!$D$58,$F$2:$G$44,2,FALSE)+ROW()-2)),\"\")","v":{"$error":"#N/A"}},{"$f":"IF(INDIRECT(\"c\" & (VLOOKUP(Switch!$D$59,$F$2:$G$44,2,FALSE)+ROW()-2))=Switch!$D$59,INDIRECT(\"a\" & (VLOOKUP(Switch!$D$59,$F$2:$G$44,2,FALSE)+ROW()-2)),\"\")","v":{"$error":"#N/A"}},{"$f":"IF(INDIRECT(\"c\" & (VLOOKUP(Switch!$D$60,$F$2:$G$44,2,FALSE)+ROW()-2))=Switch!$D$60,INDIRECT(\"a\" & (VLOOKUP(Switch!$D$60,$F$2:$G$44,2,FALSE)+ROW()-2)),\"\")","v":{"$error":"#N/A"}},{"$f":"IF(INDIRECT(\"c\" & (VLOOKUP(Switch!$D$61,$F$2:$G$44,2,FALSE)+ROW()-2))=Switch!$D$61,INDIRECT(\"a\" & (VLOOKUP(Switch!$D$61,$F$2:$G$44,2,FALSE)+ROW()-2)),\"\")","v":{"$error":"#N/A"}},{"$f":"IF(INDIRECT(\"c\" & (VLOOKUP(Switch!$D$62,$F$2:$G$44,2,FALSE)+ROW()-2))=Switch!$D$62,INDIRECT(\"a\" & (VLOOKUP(Switch!$D$62,$F$2:$G$44,2,FALSE)+ROW()-2)),\"\")","v":{"$error":"#N/A"}},{"$f":"IF(INDIRECT(\"c\" & (VLOOKUP(Switch!$D$63,$F$2:$G$44,2,FALSE)+ROW()-2))=Switch!$D$63,INDIRECT(\"a\" & (VLOOKUP(Switch!$D$63,$F$2:$G$44,2,FALSE)+ROW()-2)),\"\")","v":{"$error":"#N/A"}},{"$f":"IF(INDIRECT(\"c\" & (VLOOKUP(Switch!$D$64,$F$2:$G$44,2,FALSE)+ROW()-2))=Switch!$D$64,INDIRECT(\"a\" & (VLOOKUP(Switch!$D$64,$F$2:$G$44,2,FALSE)+ROW()-2)),\"\")","v":{"$error":"#N/A"}},{"$f":"IF(INDIRECT(\"c\" & (VLOOKUP(Switch!$D$65,$F$2:$G$44,2,FALSE)+ROW()-2))=Switch!$D$65,INDIRECT(\"a\" & (VLOOKUP(Switch!$D$65,$F$2:$G$44,2,FALSE)+ROW()-2)),\"\")","v":{"$error":"#N/A"}},{"$f":"IF(INDIRECT(\"c\" & (VLOOKUP(Switch!$D$66,$F$2:$G$44,2,FALSE)+ROW()-2))=Switch!$D$66,INDIRECT(\"a\" & (VLOOKUP(Switch!$D$66,$F$2:$G$44,2,FALSE)+ROW()-2)),\"\")","v":{"$error":"#N/A"}}]
["Platinum Balanced Prudential FOF","MPBP","Boutique Collective Investments (Pty) Ltd",{"$f":"ROW()","v":149},null,null,{"$f":"VLOOKUP(F149,$C$2:$D$637,2,FALSE)","v":{"$error":"#N/A"}},{"$f":"IF(INDIRECT(\"c\" & (VLOOKUP(Switch!$D$26,$F$2:$G$44,2,FALSE)+ROW()-2))=Switch!$D$26,INDIRECT(\"a\" & (VLOOKUP(Switch!$D$26,$F$2:$G$44,2,FALSE)+ROW()-2)),\"\")","v":{"$error":"#N/A"}},{"$f":"IF(INDIRECT(\"c\" & (VLOOKUP(Switch!$D$27,$F$2:$G$44,2,FALSE)+ROW()-2))=Switch!$D$27,INDIRECT(\"a\" & (VLOOKUP(Switch!$D$27,$F$2:$G$44,2,FALSE)+ROW()-2)),\"\")","v":{"$error":"#N/A"}},{"$f":"IF(INDIRECT(\"c\" & (VLOOKUP(Switch!$D$28,$F$2:$G$44,2,FALSE)+ROW()-2))=Switch!$D$28,INDIRECT(\"a\" & (VLOOKUP(Switch!$D$28,$F$2:$G$44,2,FALSE)+ROW()-2)),\"\")","v":{"$error":"#N/A"}},{"$f":"IF(INDIRECT(\"c\" & (VLOOKUP(Switch!$D$29,$F$2:$G$44,2,FALSE)+ROW()-2))=Switch!$D$29,INDIRECT(\"a\" & (VLOOKUP(Switch!$D$29,$F$2:$G$44,2,FALSE)+ROW()-2)),\"\")","v":{"$error":"#N/A"}},{"$f":"IF(INDIRECT(\"c\" & (VLOOKUP(Switch!$D$30,$F$2:$G$44,2,FALSE)+ROW()-2))=Switch!$D$30,INDIRECT(\"a\" & (VLOOKUP(Switch!$D$30,$F$2:$G$44,2,FALSE)+ROW()-2)),\"\")","v":{"$error":"#N/A"}},{"$f":"IF(INDIRECT(\"c\" & (VLOOKUP(Switch!$D$31,$F$2:$G$44,2,FALSE)+ROW()-2))=Switch!$D$31,INDIRECT(\"a\" & (VLOOKUP(Switch!$D$31,$F$2:$G$44,2,FALSE)+ROW()-2)),\"\")","v":{"$error":"#N/A"}},{"$f":"IF(INDIRECT(\"c\" & (VLOOKUP(Switch!$D$32,$F$2:$G$44,2,FALSE)+ROW()-2))=Switch!$D$32,INDIRECT(\"a\" & (VLOOKUP(Switch!$D$32,$F$2:$G$44,2,FALSE)+ROW()-2)),\"\")","v":{"$error":"#N/A"}},{"$f":"IF(INDIRECT(\"c\" & (VLOOKUP(Switch!$D$33,$F$2:$G$44,2,FALSE)+ROW()-2))=Switch!$D$33,INDIRECT(\"a\" & (VLOOKUP(Switch!$D$33,$F$2:$G$44,2,FALSE)+ROW()-2)),\"\")","v":{"$error":"#N/A"}},{"$f":"IF(INDIRECT(\"c\" & (VLOOKUP(Switch!$D$34,$F$2:$G$44,2,FALSE)+ROW()-2))=Switch!$D$34,INDIRECT(\"a\" & (VLOOKUP(Switch!$D$34,$F$2:$G$44,2,FALSE)+ROW()-2)),\"\")","v":{"$error":"#N/A"}},{"$f":"IF(INDIRECT(\"c\" & (VLOOKUP(Switch!$D$35,$F$2:$G$44,2,FALSE)+ROW()-2))=Switch!$D$35,INDIRECT(\"a\" & (VLOOKUP(Switch!$D$35,$F$2:$G$44,2,FALSE)+ROW()-2)),\"\")","v":{"$error":"#N/A"}},{"$f":"IF(INDIRECT(\"c\" & (VLOOKUP(Switch!$D$36,$F$2:$G$44,2,FALSE)+ROW()-2))=Switch!$D$36,INDIRECT(\"a\" & (VLOOKUP(Switch!$D$36,$F$2:$G$44,2,FALSE)+ROW()-2)),\"\")","v":{"$error":"#N/A"}},{"$f":"IF(INDIRECT(\"c\" & (VLOOKUP(Switch!$D$37,$F$2:$G$44,2,FALSE)+ROW()-2))=Switch!$D$37,INDIRECT(\"a\" & (VLOOKUP(Switch!$D$37,$F$2:$G$44,2,FALSE)+ROW()-2)),\"\")","v":{"$error":"#N/A"}},{"$f":"IF(INDIRECT(\"c\" & (VLOOKUP(Switch!$D$38,$F$2:$G$44,2,FALSE)+ROW()-2))=Switch!$D$38,INDIRECT(\"a\" & (VLOOKUP(Switch!$D$38,$F$2:$G$44,2,FALSE)+ROW()-2)),\"\")","v":{"$error":"#N/A"}},{"$f":"IF(INDIRECT(\"c\" & (VLOOKUP(Switch!$D$39,$F$2:$G$44,2,FALSE)+ROW()-2))=Switch!$D$39,INDIRECT(\"a\" & (VLOOKUP(Switch!$D$39,$F$2:$G$44,2,FALSE)+ROW()-2)),\"\")","v":{"$error":"#N/A"}},{"$f":"IF(INDIRECT(\"c\" & (VLOOKUP(Switch!$D$40,$F$2:$G$44,2,FALSE)+ROW()-2))=Switch!$D$40,INDIRECT(\"a\" & (VLOOKUP(Switch!$D$40,$F$2:$G$44,2,FALSE)+ROW()-2)),\"\")","v":{"$error":"#N/A"}},{"$f":"IF(INDIRECT(\"c\" & (VLOOKUP(Switch!$D$52,$F$2:$G$44,2,FALSE)+ROW()-2))=Switch!$D$52,INDIRECT(\"a\" & (VLOOKUP(Switch!$D$52,$F$2:$G$44,2,FALSE)+ROW()-2)),\"\")","v":{"$error":"#N/A"}},{"$f":"IF(INDIRECT(\"c\" & (VLOOKUP(Switch!$D$53,$F$2:$G$44,2,FALSE)+ROW()-2))=Switch!$D$53,INDIRECT(\"a\" & (VLOOKUP(Switch!$D$53,$F$2:$G$44,2,FALSE)+ROW()-2)),\"\")","v":{"$error":"#N/A"}},{"$f":"IF(INDIRECT(\"c\" & (VLOOKUP(Switch!$D$54,$F$2:$G$44,2,FALSE)+ROW()-2))=Switch!$D$54,INDIRECT(\"a\" & (VLOOKUP(Switch!$D$54,$F$2:$G$44,2,FALSE)+ROW()-2)),\"\")","v":{"$error":"#N/A"}},{"$f":"IF(INDIRECT(\"c\" & (VLOOKUP(Switch!$D$55,$F$2:$G$44,2,FALSE)+ROW()-2))=Switch!$D$55,INDIRECT(\"a\" & (VLOOKUP(Switch!$D$55,$F$2:$G$44,2,FALSE)+ROW()-2)),\"\")","v":{"$error":"#N/A"}},{"$f":"IF(INDIRECT(\"c\" & (VLOOKUP(Switch!$D$56,$F$2:$G$44,2,FALSE)+ROW()-2))=Switch!$D$56,INDIRECT(\"a\" & (VLOOKUP(Switch!$D$56,$F$2:$G$44,2,FALSE)+ROW()-2)),\"\")","v":{"$error":"#N/A"}},{"$f":"IF(INDIRECT(\"c\" & (VLOOKUP(Switch!$D$57,$F$2:$G$44,2,FALSE)+ROW()-2))=Switch!$D$57,INDIRECT(\"a\" & (VLOOKUP(Switch!$D$57,$F$2:$G$44,2,FALSE)+ROW()-2)),\"\")","v":{"$error":"#N/A"}},{"$f":"IF(INDIRECT(\"c\" & (VLOOKUP(Switch!$D$58,$F$2:$G$44,2,FALSE)+ROW()-2))=Switch!$D$58,INDIRECT(\"a\" & (VLOOKUP(Switch!$D$58,$F$2:$G$44,2,FALSE)+ROW()-2)),\"\")","v":{"$error":"#N/A"}},{"$f":"IF(INDIRECT(\"c\" & (VLOOKUP(Switch!$D$59,$F$2:$G$44,2,FALSE)+ROW()-2))=Switch!$D$59,INDIRECT(\"a\" & (VLOOKUP(Switch!$D$59,$F$2:$G$44,2,FALSE)+ROW()-2)),\"\")","v":{"$error":"#N/A"}},{"$f":"IF(INDIRECT(\"c\" & (VLOOKUP(Switch!$D$60,$F$2:$G$44,2,FALSE)+ROW()-2))=Switch!$D$60,INDIRECT(\"a\" & (VLOOKUP(Switch!$D$60,$F$2:$G$44,2,FALSE)+ROW()-2)),\"\")","v":{"$error":"#N/A"}},{"$f":"IF(INDIRECT(\"c\" & (VLOOKUP(Switch!$D$61,$F$2:$G$44,2,FALSE)+ROW()-2))=Switch!$D$61,INDIRECT(\"a\" & (VLOOKUP(Switch!$D$61,$F$2:$G$44,2,FALSE)+ROW()-2)),\"\")","v":{"$error":"#N/A"}},{"$f":"IF(INDIRECT(\"c\" & (VLOOKUP(Switch!$D$62,$F$2:$G$44,2,FALSE)+ROW()-2))=Switch!$D$62,INDIRECT(\"a\" & (VLOOKUP(Switch!$D$62,$F$2:$G$44,2,FALSE)+ROW()-2)),\"\")","v":{"$error":"#N/A"}},{"$f":"IF(INDIRECT(\"c\" & (VLOOKUP(Switch!$D$63,$F$2:$G$44,2,FALSE)+ROW()-2))=Switch!$D$63,INDIRECT(\"a\" & (VLOOKUP(Switch!$D$63,$F$2:$G$44,2,FALSE)+ROW()-2)),\"\")","v":{"$error":"#N/A"}},{"$f":"IF(INDIRECT(\"c\" & (VLOOKUP(Switch!$D$64,$F$2:$G$44,2,FALSE)+ROW()-2))=Switch!$D$64,INDIRECT(\"a\" & (VLOOKUP(Switch!$D$64,$F$2:$G$44,2,FALSE)+ROW()-2)),\"\")","v":{"$error":"#N/A"}},{"$f":"IF(INDIRECT(\"c\" & (VLOOKUP(Switch!$D$65,$F$2:$G$44,2,FALSE)+ROW()-2))=Switch!$D$65,INDIRECT(\"a\" & (VLOOKUP(Switch!$D$65,$F$2:$G$44,2,FALSE)+ROW()-2)),\"\")","v":{"$error":"#N/A"}},{"$f":"IF(INDIRECT(\"c\" & (VLOOKUP(Switch!$D$66,$F$2:$G$44,2,FALSE)+ROW()-2))=Switch!$D$66,INDIRECT(\"a\" & (VLOOKUP(Switch!$D$66,$F$2:$G$44,2,FALSE)+ROW()-2)),\"\")","v":{"$error":"#N/A"}}]
["Platinum Flexible Growth FOF","MPFG","Boutique Collective Investments (Pty) Ltd",{"$f":"ROW()","v":150},null,null,{"$f":"VLOOKUP(F150,$C$2:$D$637,2,FALSE)","v":{"$error":"#N/A"}},{"$f":"IF(INDIRECT(\"c\" & (VLOOKUP(Switch!$D$26,$F$2:$G$44,2,FALSE)+ROW()-2))=Switch!$D$26,INDIRECT(\"a\" & (VLOOKUP(Switch!$D$26,$F$2:$G$44,2,FALSE)+ROW()-2)),\"\")","v":{"$error":"#N/A"}},{"$f":"IF(INDIRECT(\"c\" & (VLOOKUP(Switch!$D$27,$F$2:$G$44,2,FALSE)+ROW()-2))=Switch!$D$27,INDIRECT(\"a\" & (VLOOKUP(Switch!$D$27,$F$2:$G$44,2,FALSE)+ROW()-2)),\"\")","v":{"$error":"#N/A"}},{"$f":"IF(INDIRECT(\"c\" & (VLOOKUP(Switch!$D$28,$F$2:$G$44,2,FALSE)+ROW()-2))=Switch!$D$28,INDIRECT(\"a\" & (VLOOKUP(Switch!$D$28,$F$2:$G$44,2,FALSE)+ROW()-2)),\"\")","v":{"$error":"#N/A"}},{"$f":"IF(INDIRECT(\"c\" & (VLOOKUP(Switch!$D$29,$F$2:$G$44,2,FALSE)+ROW()-2))=Switch!$D$29,INDIRECT(\"a\" & (VLOOKUP(Switch!$D$29,$F$2:$G$44,2,FALSE)+ROW()-2)),\"\")","v":{"$error":"#N/A"}},{"$f":"IF(INDIRECT(\"c\" & (VLOOKUP(Switch!$D$30,$F$2:$G$44,2,FALSE)+ROW()-2))=Switch!$D$30,INDIRECT(\"a\" & (VLOOKUP(Switch!$D$30,$F$2:$G$44,2,FALSE)+ROW()-2)),\"\")","v":{"$error":"#N/A"}},{"$f":"IF(INDIRECT(\"c\" & (VLOOKUP(Switch!$D$31,$F$2:$G$44,2,FALSE)+ROW()-2))=Switch!$D$31,INDIRECT(\"a\" & (VLOOKUP(Switch!$D$31,$F$2:$G$44,2,FALSE)+ROW()-2)),\"\")","v":{"$error":"#N/A"}},{"$f":"IF(INDIRECT(\"c\" & (VLOOKUP(Switch!$D$32,$F$2:$G$44,2,FALSE)+ROW()-2))=Switch!$D$32,INDIRECT(\"a\" & (VLOOKUP(Switch!$D$32,$F$2:$G$44,2,FALSE)+ROW()-2)),\"\")","v":{"$error":"#N/A"}},{"$f":"IF(INDIRECT(\"c\" & (VLOOKUP(Switch!$D$33,$F$2:$G$44,2,FALSE)+ROW()-2))=Switch!$D$33,INDIRECT(\"a\" & (VLOOKUP(Switch!$D$33,$F$2:$G$44,2,FALSE)+ROW()-2)),\"\")","v":{"$error":"#N/A"}},{"$f":"IF(INDIRECT(\"c\" & (VLOOKUP(Switch!$D$34,$F$2:$G$44,2,FALSE)+ROW()-2))=Switch!$D$34,INDIRECT(\"a\" & (VLOOKUP(Switch!$D$34,$F$2:$G$44,2,FALSE)+ROW()-2)),\"\")","v":{"$error":"#N/A"}},{"$f":"IF(INDIRECT(\"c\" & (VLOOKUP(Switch!$D$35,$F$2:$G$44,2,FALSE)+ROW()-2))=Switch!$D$35,INDIRECT(\"a\" & (VLOOKUP(Switch!$D$35,$F$2:$G$44,2,FALSE)+ROW()-2)),\"\")","v":{"$error":"#N/A"}},{"$f":"IF(INDIRECT(\"c\" & (VLOOKUP(Switch!$D$36,$F$2:$G$44,2,FALSE)+ROW()-2))=Switch!$D$36,INDIRECT(\"a\" & (VLOOKUP(Switch!$D$36,$F$2:$G$44,2,FALSE)+ROW()-2)),\"\")","v":{"$error":"#N/A"}},{"$f":"IF(INDIRECT(\"c\" & (VLOOKUP(Switch!$D$37,$F$2:$G$44,2,FALSE)+ROW()-2))=Switch!$D$37,INDIRECT(\"a\" & (VLOOKUP(Switch!$D$37,$F$2:$G$44,2,FALSE)+ROW()-2)),\"\")","v":{"$error":"#N/A"}},{"$f":"IF(INDIRECT(\"c\" & (VLOOKUP(Switch!$D$38,$F$2:$G$44,2,FALSE)+ROW()-2))=Switch!$D$38,INDIRECT(\"a\" & (VLOOKUP(Switch!$D$38,$F$2:$G$44,2,FALSE)+ROW()-2)),\"\")","v":{"$error":"#N/A"}},{"$f":"IF(INDIRECT(\"c\" & (VLOOKUP(Switch!$D$39,$F$2:$G$44,2,FALSE)+ROW()-2))=Switch!$D$39,INDIRECT(\"a\" & (VLOOKUP(Switch!$D$39,$F$2:$G$44,2,FALSE)+ROW()-2)),\"\")","v":{"$error":"#N/A"}},{"$f":"IF(INDIRECT(\"c\" & (VLOOKUP(Switch!$D$40,$F$2:$G$44,2,FALSE)+ROW()-2))=Switch!$D$40,INDIRECT(\"a\" & (VLOOKUP(Switch!$D$40,$F$2:$G$44,2,FALSE)+ROW()-2)),\"\")","v":{"$error":"#N/A"}},{"$f":"IF(INDIRECT(\"c\" & (VLOOKUP(Switch!$D$52,$F$2:$G$44,2,FALSE)+ROW()-2))=Switch!$D$52,INDIRECT(\"a\" & (VLOOKUP(Switch!$D$52,$F$2:$G$44,2,FALSE)+ROW()-2)),\"\")","v":{"$error":"#N/A"}},{"$f":"IF(INDIRECT(\"c\" & (VLOOKUP(Switch!$D$53,$F$2:$G$44,2,FALSE)+ROW()-2))=Switch!$D$53,INDIRECT(\"a\" & (VLOOKUP(Switch!$D$53,$F$2:$G$44,2,FALSE)+ROW()-2)),\"\")","v":{"$error":"#N/A"}},{"$f":"IF(INDIRECT(\"c\" & (VLOOKUP(Switch!$D$54,$F$2:$G$44,2,FALSE)+ROW()-2))=Switch!$D$54,INDIRECT(\"a\" & (VLOOKUP(Switch!$D$54,$F$2:$G$44,2,FALSE)+ROW()-2)),\"\")","v":{"$error":"#N/A"}},{"$f":"IF(INDIRECT(\"c\" & (VLOOKUP(Switch!$D$55,$F$2:$G$44,2,FALSE)+ROW()-2))=Switch!$D$55,INDIRECT(\"a\" & (VLOOKUP(Switch!$D$55,$F$2:$G$44,2,FALSE)+ROW()-2)),\"\")","v":{"$error":"#N/A"}},{"$f":"IF(INDIRECT(\"c\" & (VLOOKUP(Switch!$D$56,$F$2:$G$44,2,FALSE)+ROW()-2))=Switch!$D$56,INDIRECT(\"a\" & (VLOOKUP(Switch!$D$56,$F$2:$G$44,2,FALSE)+ROW()-2)),\"\")","v":{"$error":"#N/A"}},{"$f":"IF(INDIRECT(\"c\" & (VLOOKUP(Switch!$D$57,$F$2:$G$44,2,FALSE)+ROW()-2))=Switch!$D$57,INDIRECT(\"a\" & (VLOOKUP(Switch!$D$57,$F$2:$G$44,2,FALSE)+ROW()-2)),\"\")","v":{"$error":"#N/A"}},{"$f":"IF(INDIRECT(\"c\" & (VLOOKUP(Switch!$D$58,$F$2:$G$44,2,FALSE)+ROW()-2))=Switch!$D$58,INDIRECT(\"a\" & (VLOOKUP(Switch!$D$58,$F$2:$G$44,2,FALSE)+ROW()-2)),\"\")","v":{"$error":"#N/A"}},{"$f":"IF(INDIRECT(\"c\" & (VLOOKUP(Switch!$D$59,$F$2:$G$44,2,FALSE)+ROW()-2))=Switch!$D$59,INDIRECT(\"a\" & (VLOOKUP(Switch!$D$59,$F$2:$G$44,2,FALSE)+ROW()-2)),\"\")","v":{"$error":"#N/A"}},{"$f":"IF(INDIRECT(\"c\" & (VLOOKUP(Switch!$D$60,$F$2:$G$44,2,FALSE)+ROW()-2))=Switch!$D$60,INDIRECT(\"a\" & (VLOOKUP(Switch!$D$60,$F$2:$G$44,2,FALSE)+ROW()-2)),\"\")","v":{"$error":"#N/A"}},{"$f":"IF(INDIRECT(\"c\" & (VLOOKUP(Switch!$D$61,$F$2:$G$44,2,FALSE)+ROW()-2))=Switch!$D$61,INDIRECT(\"a\" & (VLOOKUP(Switch!$D$61,$F$2:$G$44,2,FALSE)+ROW()-2)),\"\")","v":{"$error":"#N/A"}},{"$f":"IF(INDIRECT(\"c\" & (VLOOKUP(Switch!$D$62,$F$2:$G$44,2,FALSE)+ROW()-2))=Switch!$D$62,INDIRECT(\"a\" & (VLOOKUP(Switch!$D$62,$F$2:$G$44,2,FALSE)+ROW()-2)),\"\")","v":{"$error":"#N/A"}},{"$f":"IF(INDIRECT(\"c\" & (VLOOKUP(Switch!$D$63,$F$2:$G$44,2,FALSE)+ROW()-2))=Switch!$D$63,INDIRECT(\"a\" & (VLOOKUP(Switch!$D$63,$F$2:$G$44,2,FALSE)+ROW()-2)),\"\")","v":{"$error":"#N/A"}},{"$f":"IF(INDIRECT(\"c\" & (VLOOKUP(Switch!$D$64,$F$2:$G$44,2,FALSE)+ROW()-2))=Switch!$D$64,INDIRECT(\"a\" & (VLOOKUP(Switch!$D$64,$F$2:$G$44,2,FALSE)+ROW()-2)),\"\")","v":{"$error":"#N/A"}},{"$f":"IF(INDIRECT(\"c\" & (VLOOKUP(Switch!$D$65,$F$2:$G$44,2,FALSE)+ROW()-2))=Switch!$D$65,INDIRECT(\"a\" & (VLOOKUP(Switch!$D$65,$F$2:$G$44,2,FALSE)+ROW()-2)),\"\")","v":{"$error":"#N/A"}},{"$f":"IF(INDIRECT(\"c\" & (VLOOKUP(Switch!$D$66,$F$2:$G$44,2,FALSE)+ROW()-2))=Switch!$D$66,INDIRECT(\"a\" & (VLOOKUP(Switch!$D$66,$F$2:$G$44,2,FALSE)+ROW()-2)),\"\")","v":{"$error":"#N/A"}}]
["Platinum Income Provider FOF","MPIP","Boutique Collective Investments (Pty) Ltd",{"$f":"ROW()","v":151},null,null,{"$f":"VLOOKUP(F151,$C$2:$D$637,2,FALSE)","v":{"$error":"#N/A"}},{"$f":"IF(INDIRECT(\"c\" & (VLOOKUP(Switch!$D$26,$F$2:$G$44,2,FALSE)+ROW()-2))=Switch!$D$26,INDIRECT(\"a\" & (VLOOKUP(Switch!$D$26,$F$2:$G$44,2,FALSE)+ROW()-2)),\"\")","v":{"$error":"#N/A"}},{"$f":"IF(INDIRECT(\"c\" & (VLOOKUP(Switch!$D$27,$F$2:$G$44,2,FALSE)+ROW()-2))=Switch!$D$27,INDIRECT(\"a\" & (VLOOKUP(Switch!$D$27,$F$2:$G$44,2,FALSE)+ROW()-2)),\"\")","v":{"$error":"#N/A"}},{"$f":"IF(INDIRECT(\"c\" & (VLOOKUP(Switch!$D$28,$F$2:$G$44,2,FALSE)+ROW()-2))=Switch!$D$28,INDIRECT(\"a\" & (VLOOKUP(Switch!$D$28,$F$2:$G$44,2,FALSE)+ROW()-2)),\"\")","v":{"$error":"#N/A"}},{"$f":"IF(INDIRECT(\"c\" & (VLOOKUP(Switch!$D$29,$F$2:$G$44,2,FALSE)+ROW()-2))=Switch!$D$29,INDIRECT(\"a\" & (VLOOKUP(Switch!$D$29,$F$2:$G$44,2,FALSE)+ROW()-2)),\"\")","v":{"$error":"#N/A"}},{"$f":"IF(INDIRECT(\"c\" & (VLOOKUP(Switch!$D$30,$F$2:$G$44,2,FALSE)+ROW()-2))=Switch!$D$30,INDIRECT(\"a\" & (VLOOKUP(Switch!$D$30,$F$2:$G$44,2,FALSE)+ROW()-2)),\"\")","v":{"$error":"#N/A"}},{"$f":"IF(INDIRECT(\"c\" & (VLOOKUP(Switch!$D$31,$F$2:$G$44,2,FALSE)+ROW()-2))=Switch!$D$31,INDIRECT(\"a\" & (VLOOKUP(Switch!$D$31,$F$2:$G$44,2,FALSE)+ROW()-2)),\"\")","v":{"$error":"#N/A"}},{"$f":"IF(INDIRECT(\"c\" & (VLOOKUP(Switch!$D$32,$F$2:$G$44,2,FALSE)+ROW()-2))=Switch!$D$32,INDIRECT(\"a\" & (VLOOKUP(Switch!$D$32,$F$2:$G$44,2,FALSE)+ROW()-2)),\"\")","v":{"$error":"#N/A"}},{"$f":"IF(INDIRECT(\"c\" & (VLOOKUP(Switch!$D$33,$F$2:$G$44,2,FALSE)+ROW()-2))=Switch!$D$33,INDIRECT(\"a\" & (VLOOKUP(Switch!$D$33,$F$2:$G$44,2,FALSE)+ROW()-2)),\"\")","v":{"$error":"#N/A"}},{"$f":"IF(INDIRECT(\"c\" & (VLOOKUP(Switch!$D$34,$F$2:$G$44,2,FALSE)+ROW()-2))=Switch!$D$34,INDIRECT(\"a\" & (VLOOKUP(Switch!$D$34,$F$2:$G$44,2,FALSE)+ROW()-2)),\"\")","v":{"$error":"#N/A"}},{"$f":"IF(INDIRECT(\"c\" & (VLOOKUP(Switch!$D$35,$F$2:$G$44,2,FALSE)+ROW()-2))=Switch!$D$35,INDIRECT(\"a\" & (VLOOKUP(Switch!$D$35,$F$2:$G$44,2,FALSE)+ROW()-2)),\"\")","v":{"$error":"#N/A"}},{"$f":"IF(INDIRECT(\"c\" & (VLOOKUP(Switch!$D$36,$F$2:$G$44,2,FALSE)+ROW()-2))=Switch!$D$36,INDIRECT(\"a\" & (VLOOKUP(Switch!$D$36,$F$2:$G$44,2,FALSE)+ROW()-2)),\"\")","v":{"$error":"#N/A"}},{"$f":"IF(INDIRECT(\"c\" & (VLOOKUP(Switch!$D$37,$F$2:$G$44,2,FALSE)+ROW()-2))=Switch!$D$37,INDIRECT(\"a\" & (VLOOKUP(Switch!$D$37,$F$2:$G$44,2,FALSE)+ROW()-2)),\"\")","v":{"$error":"#N/A"}},{"$f":"IF(INDIRECT(\"c\" & (VLOOKUP(Switch!$D$38,$F$2:$G$44,2,FALSE)+ROW()-2))=Switch!$D$38,INDIRECT(\"a\" & (VLOOKUP(Switch!$D$38,$F$2:$G$44,2,FALSE)+ROW()-2)),\"\")","v":{"$error":"#N/A"}},{"$f":"IF(INDIRECT(\"c\" & (VLOOKUP(Switch!$D$39,$F$2:$G$44,2,FALSE)+ROW()-2))=Switch!$D$39,INDIRECT(\"a\" & (VLOOKUP(Switch!$D$39,$F$2:$G$44,2,FALSE)+ROW()-2)),\"\")","v":{"$error":"#N/A"}},{"$f":"IF(INDIRECT(\"c\" & (VLOOKUP(Switch!$D$40,$F$2:$G$44,2,FALSE)+ROW()-2))=Switch!$D$40,INDIRECT(\"a\" & (VLOOKUP(Switch!$D$40,$F$2:$G$44,2,FALSE)+ROW()-2)),\"\")","v":{"$error":"#N/A"}},{"$f":"IF(INDIRECT(\"c\" & (VLOOKUP(Switch!$D$52,$F$2:$G$44,2,FALSE)+ROW()-2))=Switch!$D$52,INDIRECT(\"a\" & (VLOOKUP(Switch!$D$52,$F$2:$G$44,2,FALSE)+ROW()-2)),\"\")","v":{"$error":"#N/A"}},{"$f":"IF(INDIRECT(\"c\" & (VLOOKUP(Switch!$D$53,$F$2:$G$44,2,FALSE)+ROW()-2))=Switch!$D$53,INDIRECT(\"a\" & (VLOOKUP(Switch!$D$53,$F$2:$G$44,2,FALSE)+ROW()-2)),\"\")","v":{"$error":"#N/A"}},{"$f":"IF(INDIRECT(\"c\" & (VLOOKUP(Switch!$D$54,$F$2:$G$44,2,FALSE)+ROW()-2))=Switch!$D$54,INDIRECT(\"a\" & (VLOOKUP(Switch!$D$54,$F$2:$G$44,2,FALSE)+ROW()-2)),\"\")","v":{"$error":"#N/A"}},{"$f":"IF(INDIRECT(\"c\" & (VLOOKUP(Switch!$D$55,$F$2:$G$44,2,FALSE)+ROW()-2))=Switch!$D$55,INDIRECT(\"a\" & (VLOOKUP(Switch!$D$55,$F$2:$G$44,2,FALSE)+ROW()-2)),\"\")","v":{"$error":"#N/A"}},{"$f":"IF(INDIRECT(\"c\" & (VLOOKUP(Switch!$D$56,$F$2:$G$44,2,FALSE)+ROW()-2))=Switch!$D$56,INDIRECT(\"a\" & (VLOOKUP(Switch!$D$56,$F$2:$G$44,2,FALSE)+ROW()-2)),\"\")","v":{"$error":"#N/A"}},{"$f":"IF(INDIRECT(\"c\" & (VLOOKUP(Switch!$D$57,$F$2:$G$44,2,FALSE)+ROW()-2))=Switch!$D$57,INDIRECT(\"a\" & (VLOOKUP(Switch!$D$57,$F$2:$G$44,2,FALSE)+ROW()-2)),\"\")","v":{"$error":"#N/A"}},{"$f":"IF(INDIRECT(\"c\" & (VLOOKUP(Switch!$D$58,$F$2:$G$44,2,FALSE)+ROW()-2))=Switch!$D$58,INDIRECT(\"a\" & (VLOOKUP(Switch!$D$58,$F$2:$G$44,2,FALSE)+ROW()-2)),\"\")","v":{"$error":"#N/A"}},{"$f":"IF(INDIRECT(\"c\" & (VLOOKUP(Switch!$D$59,$F$2:$G$44,2,FALSE)+ROW()-2))=Switch!$D$59,INDIRECT(\"a\" & (VLOOKUP(Switch!$D$59,$F$2:$G$44,2,FALSE)+ROW()-2)),\"\")","v":{"$error":"#N/A"}},{"$f":"IF(INDIRECT(\"c\" & (VLOOKUP(Switch!$D$60,$F$2:$G$44,2,FALSE)+ROW()-2))=Switch!$D$60,INDIRECT(\"a\" & (VLOOKUP(Switch!$D$60,$F$2:$G$44,2,FALSE)+ROW()-2)),\"\")","v":{"$error":"#N/A"}},{"$f":"IF(INDIRECT(\"c\" & (VLOOKUP(Switch!$D$61,$F$2:$G$44,2,FALSE)+ROW()-2))=Switch!$D$61,INDIRECT(\"a\" & (VLOOKUP(Switch!$D$61,$F$2:$G$44,2,FALSE)+ROW()-2)),\"\")","v":{"$error":"#N/A"}},{"$f":"IF(INDIRECT(\"c\" & (VLOOKUP(Switch!$D$62,$F$2:$G$44,2,FALSE)+ROW()-2))=Switch!$D$62,INDIRECT(\"a\" & (VLOOKUP(Switch!$D$62,$F$2:$G$44,2,FALSE)+ROW()-2)),\"\")","v":{"$error":"#N/A"}},{"$f":"IF(INDIRECT(\"c\" & (VLOOKUP(Switch!$D$63,$F$2:$G$44,2,FALSE)+ROW()-2))=Switch!$D$63,INDIRECT(\"a\" & (VLOOKUP(Switch!$D$63,$F$2:$G$44,2,FALSE)+ROW()-2)),\"\")","v":{"$error":"#N/A"}},{"$f":"IF(INDIRECT(\"c\" & (VLOOKUP(Switch!$D$64,$F$2:$G$44,2,FALSE)+ROW()-2))=Switch!$D$64,INDIRECT(\"a\" & (VLOOKUP(Switch!$D$64,$F$2:$G$44,2,FALSE)+ROW()-2)),\"\")","v":{"$error":"#N/A"}},{"$f":"IF(INDIRECT(\"c\" & (VLOOKUP(Switch!$D$65,$F$2:$G$44,2,FALSE)+ROW()-2))=Switch!$D$65,INDIRECT(\"a\" & (VLOOKUP(Switch!$D$65,$F$2:$G$44,2,FALSE)+ROW()-2)),\"\")","v":{"$error":"#N/A"}},{"$f":"IF(INDIRECT(\"c\" & (VLOOKUP(Switch!$D$66,$F$2:$G$44,2,FALSE)+ROW()-2))=Switch!$D$66,INDIRECT(\"a\" & (VLOOKUP(Switch!$D$66,$F$2:$G$44,2,FALSE)+ROW()-2)),\"\")","v":{"$error":"#N/A"}}]
["Plexus Wealth BCI Balannced Fund A","MXBA","Boutique Collective Investments (Pty) Ltd",{"$f":"ROW()","v":152},null,null,{"$f":"VLOOKUP(F152,$C$2:$D$637,2,FALSE)","v":{"$error":"#N/A"}},{"$f":"IF(INDIRECT(\"c\" & (VLOOKUP(Switch!$D$26,$F$2:$G$44,2,FALSE)+ROW()-2))=Switch!$D$26,INDIRECT(\"a\" & (VLOOKUP(Switch!$D$26,$F$2:$G$44,2,FALSE)+ROW()-2)),\"\")","v":{"$error":"#N/A"}},{"$f":"IF(INDIRECT(\"c\" & (VLOOKUP(Switch!$D$27,$F$2:$G$44,2,FALSE)+ROW()-2))=Switch!$D$27,INDIRECT(\"a\" & (VLOOKUP(Switch!$D$27,$F$2:$G$44,2,FALSE)+ROW()-2)),\"\")","v":{"$error":"#N/A"}},{"$f":"IF(INDIRECT(\"c\" & (VLOOKUP(Switch!$D$28,$F$2:$G$44,2,FALSE)+ROW()-2))=Switch!$D$28,INDIRECT(\"a\" & (VLOOKUP(Switch!$D$28,$F$2:$G$44,2,FALSE)+ROW()-2)),\"\")","v":{"$error":"#N/A"}},{"$f":"IF(INDIRECT(\"c\" & (VLOOKUP(Switch!$D$29,$F$2:$G$44,2,FALSE)+ROW()-2))=Switch!$D$29,INDIRECT(\"a\" & (VLOOKUP(Switch!$D$29,$F$2:$G$44,2,FALSE)+ROW()-2)),\"\")","v":{"$error":"#N/A"}},{"$f":"IF(INDIRECT(\"c\" & (VLOOKUP(Switch!$D$30,$F$2:$G$44,2,FALSE)+ROW()-2))=Switch!$D$30,INDIRECT(\"a\" & (VLOOKUP(Switch!$D$30,$F$2:$G$44,2,FALSE)+ROW()-2)),\"\")","v":{"$error":"#N/A"}},{"$f":"IF(INDIRECT(\"c\" & (VLOOKUP(Switch!$D$31,$F$2:$G$44,2,FALSE)+ROW()-2))=Switch!$D$31,INDIRECT(\"a\" & (VLOOKUP(Switch!$D$31,$F$2:$G$44,2,FALSE)+ROW()-2)),\"\")","v":{"$error":"#N/A"}},{"$f":"IF(INDIRECT(\"c\" & (VLOOKUP(Switch!$D$32,$F$2:$G$44,2,FALSE)+ROW()-2))=Switch!$D$32,INDIRECT(\"a\" & (VLOOKUP(Switch!$D$32,$F$2:$G$44,2,FALSE)+ROW()-2)),\"\")","v":{"$error":"#N/A"}},{"$f":"IF(INDIRECT(\"c\" & (VLOOKUP(Switch!$D$33,$F$2:$G$44,2,FALSE)+ROW()-2))=Switch!$D$33,INDIRECT(\"a\" & (VLOOKUP(Switch!$D$33,$F$2:$G$44,2,FALSE)+ROW()-2)),\"\")","v":{"$error":"#N/A"}},{"$f":"IF(INDIRECT(\"c\" & (VLOOKUP(Switch!$D$34,$F$2:$G$44,2,FALSE)+ROW()-2))=Switch!$D$34,INDIRECT(\"a\" & (VLOOKUP(Switch!$D$34,$F$2:$G$44,2,FALSE)+ROW()-2)),\"\")","v":{"$error":"#N/A"}},{"$f":"IF(INDIRECT(\"c\" & (VLOOKUP(Switch!$D$35,$F$2:$G$44,2,FALSE)+ROW()-2))=Switch!$D$35,INDIRECT(\"a\" & (VLOOKUP(Switch!$D$35,$F$2:$G$44,2,FALSE)+ROW()-2)),\"\")","v":{"$error":"#N/A"}},{"$f":"IF(INDIRECT(\"c\" & (VLOOKUP(Switch!$D$36,$F$2:$G$44,2,FALSE)+ROW()-2))=Switch!$D$36,INDIRECT(\"a\" & (VLOOKUP(Switch!$D$36,$F$2:$G$44,2,FALSE)+ROW()-2)),\"\")","v":{"$error":"#N/A"}},{"$f":"IF(INDIRECT(\"c\" & (VLOOKUP(Switch!$D$37,$F$2:$G$44,2,FALSE)+ROW()-2))=Switch!$D$37,INDIRECT(\"a\" & (VLOOKUP(Switch!$D$37,$F$2:$G$44,2,FALSE)+ROW()-2)),\"\")","v":{"$error":"#N/A"}},{"$f":"IF(INDIRECT(\"c\" & (VLOOKUP(Switch!$D$38,$F$2:$G$44,2,FALSE)+ROW()-2))=Switch!$D$38,INDIRECT(\"a\" & (VLOOKUP(Switch!$D$38,$F$2:$G$44,2,FALSE)+ROW()-2)),\"\")","v":{"$error":"#N/A"}},{"$f":"IF(INDIRECT(\"c\" & (VLOOKUP(Switch!$D$39,$F$2:$G$44,2,FALSE)+ROW()-2))=Switch!$D$39,INDIRECT(\"a\" & (VLOOKUP(Switch!$D$39,$F$2:$G$44,2,FALSE)+ROW()-2)),\"\")","v":{"$error":"#N/A"}},{"$f":"IF(INDIRECT(\"c\" & (VLOOKUP(Switch!$D$40,$F$2:$G$44,2,FALSE)+ROW()-2))=Switch!$D$40,INDIRECT(\"a\" & (VLOOKUP(Switch!$D$40,$F$2:$G$44,2,FALSE)+ROW()-2)),\"\")","v":{"$error":"#N/A"}},{"$f":"IF(INDIRECT(\"c\" & (VLOOKUP(Switch!$D$52,$F$2:$G$44,2,FALSE)+ROW()-2))=Switch!$D$52,INDIRECT(\"a\" & (VLOOKUP(Switch!$D$52,$F$2:$G$44,2,FALSE)+ROW()-2)),\"\")","v":{"$error":"#N/A"}},{"$f":"IF(INDIRECT(\"c\" & (VLOOKUP(Switch!$D$53,$F$2:$G$44,2,FALSE)+ROW()-2))=Switch!$D$53,INDIRECT(\"a\" & (VLOOKUP(Switch!$D$53,$F$2:$G$44,2,FALSE)+ROW()-2)),\"\")","v":{"$error":"#N/A"}},{"$f":"IF(INDIRECT(\"c\" & (VLOOKUP(Switch!$D$54,$F$2:$G$44,2,FALSE)+ROW()-2))=Switch!$D$54,INDIRECT(\"a\" & (VLOOKUP(Switch!$D$54,$F$2:$G$44,2,FALSE)+ROW()-2)),\"\")","v":{"$error":"#N/A"}},{"$f":"IF(INDIRECT(\"c\" & (VLOOKUP(Switch!$D$55,$F$2:$G$44,2,FALSE)+ROW()-2))=Switch!$D$55,INDIRECT(\"a\" & (VLOOKUP(Switch!$D$55,$F$2:$G$44,2,FALSE)+ROW()-2)),\"\")","v":{"$error":"#N/A"}},{"$f":"IF(INDIRECT(\"c\" & (VLOOKUP(Switch!$D$56,$F$2:$G$44,2,FALSE)+ROW()-2))=Switch!$D$56,INDIRECT(\"a\" & (VLOOKUP(Switch!$D$56,$F$2:$G$44,2,FALSE)+ROW()-2)),\"\")","v":{"$error":"#N/A"}},{"$f":"IF(INDIRECT(\"c\" & (VLOOKUP(Switch!$D$57,$F$2:$G$44,2,FALSE)+ROW()-2))=Switch!$D$57,INDIRECT(\"a\" & (VLOOKUP(Switch!$D$57,$F$2:$G$44,2,FALSE)+ROW()-2)),\"\")","v":{"$error":"#N/A"}},{"$f":"IF(INDIRECT(\"c\" & (VLOOKUP(Switch!$D$58,$F$2:$G$44,2,FALSE)+ROW()-2))=Switch!$D$58,INDIRECT(\"a\" & (VLOOKUP(Switch!$D$58,$F$2:$G$44,2,FALSE)+ROW()-2)),\"\")","v":{"$error":"#N/A"}},{"$f":"IF(INDIRECT(\"c\" & (VLOOKUP(Switch!$D$59,$F$2:$G$44,2,FALSE)+ROW()-2))=Switch!$D$59,INDIRECT(\"a\" & (VLOOKUP(Switch!$D$59,$F$2:$G$44,2,FALSE)+ROW()-2)),\"\")","v":{"$error":"#N/A"}},{"$f":"IF(INDIRECT(\"c\" & (VLOOKUP(Switch!$D$60,$F$2:$G$44,2,FALSE)+ROW()-2))=Switch!$D$60,INDIRECT(\"a\" & (VLOOKUP(Switch!$D$60,$F$2:$G$44,2,FALSE)+ROW()-2)),\"\")","v":{"$error":"#N/A"}},{"$f":"IF(INDIRECT(\"c\" & (VLOOKUP(Switch!$D$61,$F$2:$G$44,2,FALSE)+ROW()-2))=Switch!$D$61,INDIRECT(\"a\" & (VLOOKUP(Switch!$D$61,$F$2:$G$44,2,FALSE)+ROW()-2)),\"\")","v":{"$error":"#N/A"}},{"$f":"IF(INDIRECT(\"c\" & (VLOOKUP(Switch!$D$62,$F$2:$G$44,2,FALSE)+ROW()-2))=Switch!$D$62,INDIRECT(\"a\" & (VLOOKUP(Switch!$D$62,$F$2:$G$44,2,FALSE)+ROW()-2)),\"\")","v":{"$error":"#N/A"}},{"$f":"IF(INDIRECT(\"c\" & (VLOOKUP(Switch!$D$63,$F$2:$G$44,2,FALSE)+ROW()-2))=Switch!$D$63,INDIRECT(\"a\" & (VLOOKUP(Switch!$D$63,$F$2:$G$44,2,FALSE)+ROW()-2)),\"\")","v":{"$error":"#N/A"}},{"$f":"IF(INDIRECT(\"c\" & (VLOOKUP(Switch!$D$64,$F$2:$G$44,2,FALSE)+ROW()-2))=Switch!$D$64,INDIRECT(\"a\" & (VLOOKUP(Switch!$D$64,$F$2:$G$44,2,FALSE)+ROW()-2)),\"\")","v":{"$error":"#N/A"}},{"$f":"IF(INDIRECT(\"c\" & (VLOOKUP(Switch!$D$65,$F$2:$G$44,2,FALSE)+ROW()-2))=Switch!$D$65,INDIRECT(\"a\" & (VLOOKUP(Switch!$D$65,$F$2:$G$44,2,FALSE)+ROW()-2)),\"\")","v":{"$error":"#N/A"}},{"$f":"IF(INDIRECT(\"c\" & (VLOOKUP(Switch!$D$66,$F$2:$G$44,2,FALSE)+ROW()-2))=Switch!$D$66,INDIRECT(\"a\" & (VLOOKUP(Switch!$D$66,$F$2:$G$44,2,FALSE)+ROW()-2)),\"\")","v":{"$error":"#N/A"}}]
["Plexus Wealth BCI Conservative Fund A","MXCO","Boutique Collective Investments (Pty) Ltd",{"$f":"ROW()","v":153},null,null,{"$f":"VLOOKUP(F153,$C$2:$D$637,2,FALSE)","v":{"$error":"#N/A"}},{"$f":"IF(INDIRECT(\"c\" & (VLOOKUP(Switch!$D$26,$F$2:$G$44,2,FALSE)+ROW()-2))=Switch!$D$26,INDIRECT(\"a\" & (VLOOKUP(Switch!$D$26,$F$2:$G$44,2,FALSE)+ROW()-2)),\"\")","v":{"$error":"#N/A"}},{"$f":"IF(INDIRECT(\"c\" & (VLOOKUP(Switch!$D$27,$F$2:$G$44,2,FALSE)+ROW()-2))=Switch!$D$27,INDIRECT(\"a\" & (VLOOKUP(Switch!$D$27,$F$2:$G$44,2,FALSE)+ROW()-2)),\"\")","v":{"$error":"#N/A"}},{"$f":"IF(INDIRECT(\"c\" & (VLOOKUP(Switch!$D$28,$F$2:$G$44,2,FALSE)+ROW()-2))=Switch!$D$28,INDIRECT(\"a\" & (VLOOKUP(Switch!$D$28,$F$2:$G$44,2,FALSE)+ROW()-2)),\"\")","v":{"$error":"#N/A"}},{"$f":"IF(INDIRECT(\"c\" & (VLOOKUP(Switch!$D$29,$F$2:$G$44,2,FALSE)+ROW()-2))=Switch!$D$29,INDIRECT(\"a\" & (VLOOKUP(Switch!$D$29,$F$2:$G$44,2,FALSE)+ROW()-2)),\"\")","v":{"$error":"#N/A"}},{"$f":"IF(INDIRECT(\"c\" & (VLOOKUP(Switch!$D$30,$F$2:$G$44,2,FALSE)+ROW()-2))=Switch!$D$30,INDIRECT(\"a\" & (VLOOKUP(Switch!$D$30,$F$2:$G$44,2,FALSE)+ROW()-2)),\"\")","v":{"$error":"#N/A"}},{"$f":"IF(INDIRECT(\"c\" & (VLOOKUP(Switch!$D$31,$F$2:$G$44,2,FALSE)+ROW()-2))=Switch!$D$31,INDIRECT(\"a\" & (VLOOKUP(Switch!$D$31,$F$2:$G$44,2,FALSE)+ROW()-2)),\"\")","v":{"$error":"#N/A"}},{"$f":"IF(INDIRECT(\"c\" & (VLOOKUP(Switch!$D$32,$F$2:$G$44,2,FALSE)+ROW()-2))=Switch!$D$32,INDIRECT(\"a\" & (VLOOKUP(Switch!$D$32,$F$2:$G$44,2,FALSE)+ROW()-2)),\"\")","v":{"$error":"#N/A"}},{"$f":"IF(INDIRECT(\"c\" & (VLOOKUP(Switch!$D$33,$F$2:$G$44,2,FALSE)+ROW()-2))=Switch!$D$33,INDIRECT(\"a\" & (VLOOKUP(Switch!$D$33,$F$2:$G$44,2,FALSE)+ROW()-2)),\"\")","v":{"$error":"#N/A"}},{"$f":"IF(INDIRECT(\"c\" & (VLOOKUP(Switch!$D$34,$F$2:$G$44,2,FALSE)+ROW()-2))=Switch!$D$34,INDIRECT(\"a\" & (VLOOKUP(Switch!$D$34,$F$2:$G$44,2,FALSE)+ROW()-2)),\"\")","v":{"$error":"#N/A"}},{"$f":"IF(INDIRECT(\"c\" & (VLOOKUP(Switch!$D$35,$F$2:$G$44,2,FALSE)+ROW()-2))=Switch!$D$35,INDIRECT(\"a\" & (VLOOKUP(Switch!$D$35,$F$2:$G$44,2,FALSE)+ROW()-2)),\"\")","v":{"$error":"#N/A"}},{"$f":"IF(INDIRECT(\"c\" & (VLOOKUP(Switch!$D$36,$F$2:$G$44,2,FALSE)+ROW()-2))=Switch!$D$36,INDIRECT(\"a\" & (VLOOKUP(Switch!$D$36,$F$2:$G$44,2,FALSE)+ROW()-2)),\"\")","v":{"$error":"#N/A"}},{"$f":"IF(INDIRECT(\"c\" & (VLOOKUP(Switch!$D$37,$F$2:$G$44,2,FALSE)+ROW()-2))=Switch!$D$37,INDIRECT(\"a\" & (VLOOKUP(Switch!$D$37,$F$2:$G$44,2,FALSE)+ROW()-2)),\"\")","v":{"$error":"#N/A"}},{"$f":"IF(INDIRECT(\"c\" & (VLOOKUP(Switch!$D$38,$F$2:$G$44,2,FALSE)+ROW()-2))=Switch!$D$38,INDIRECT(\"a\" & (VLOOKUP(Switch!$D$38,$F$2:$G$44,2,FALSE)+ROW()-2)),\"\")","v":{"$error":"#N/A"}},{"$f":"IF(INDIRECT(\"c\" & (VLOOKUP(Switch!$D$39,$F$2:$G$44,2,FALSE)+ROW()-2))=Switch!$D$39,INDIRECT(\"a\" & (VLOOKUP(Switch!$D$39,$F$2:$G$44,2,FALSE)+ROW()-2)),\"\")","v":{"$error":"#N/A"}},{"$f":"IF(INDIRECT(\"c\" & (VLOOKUP(Switch!$D$40,$F$2:$G$44,2,FALSE)+ROW()-2))=Switch!$D$40,INDIRECT(\"a\" & (VLOOKUP(Switch!$D$40,$F$2:$G$44,2,FALSE)+ROW()-2)),\"\")","v":{"$error":"#N/A"}},{"$f":"IF(INDIRECT(\"c\" & (VLOOKUP(Switch!$D$52,$F$2:$G$44,2,FALSE)+ROW()-2))=Switch!$D$52,INDIRECT(\"a\" & (VLOOKUP(Switch!$D$52,$F$2:$G$44,2,FALSE)+ROW()-2)),\"\")","v":{"$error":"#N/A"}},{"$f":"IF(INDIRECT(\"c\" & (VLOOKUP(Switch!$D$53,$F$2:$G$44,2,FALSE)+ROW()-2))=Switch!$D$53,INDIRECT(\"a\" & (VLOOKUP(Switch!$D$53,$F$2:$G$44,2,FALSE)+ROW()-2)),\"\")","v":{"$error":"#N/A"}},{"$f":"IF(INDIRECT(\"c\" & (VLOOKUP(Switch!$D$54,$F$2:$G$44,2,FALSE)+ROW()-2))=Switch!$D$54,INDIRECT(\"a\" & (VLOOKUP(Switch!$D$54,$F$2:$G$44,2,FALSE)+ROW()-2)),\"\")","v":{"$error":"#N/A"}},{"$f":"IF(INDIRECT(\"c\" & (VLOOKUP(Switch!$D$55,$F$2:$G$44,2,FALSE)+ROW()-2))=Switch!$D$55,INDIRECT(\"a\" & (VLOOKUP(Switch!$D$55,$F$2:$G$44,2,FALSE)+ROW()-2)),\"\")","v":{"$error":"#N/A"}},{"$f":"IF(INDIRECT(\"c\" & (VLOOKUP(Switch!$D$56,$F$2:$G$44,2,FALSE)+ROW()-2))=Switch!$D$56,INDIRECT(\"a\" & (VLOOKUP(Switch!$D$56,$F$2:$G$44,2,FALSE)+ROW()-2)),\"\")","v":{"$error":"#N/A"}},{"$f":"IF(INDIRECT(\"c\" & (VLOOKUP(Switch!$D$57,$F$2:$G$44,2,FALSE)+ROW()-2))=Switch!$D$57,INDIRECT(\"a\" & (VLOOKUP(Switch!$D$57,$F$2:$G$44,2,FALSE)+ROW()-2)),\"\")","v":{"$error":"#N/A"}},{"$f":"IF(INDIRECT(\"c\" & (VLOOKUP(Switch!$D$58,$F$2:$G$44,2,FALSE)+ROW()-2))=Switch!$D$58,INDIRECT(\"a\" & (VLOOKUP(Switch!$D$58,$F$2:$G$44,2,FALSE)+ROW()-2)),\"\")","v":{"$error":"#N/A"}},{"$f":"IF(INDIRECT(\"c\" & (VLOOKUP(Switch!$D$59,$F$2:$G$44,2,FALSE)+ROW()-2))=Switch!$D$59,INDIRECT(\"a\" & (VLOOKUP(Switch!$D$59,$F$2:$G$44,2,FALSE)+ROW()-2)),\"\")","v":{"$error":"#N/A"}},{"$f":"IF(INDIRECT(\"c\" & (VLOOKUP(Switch!$D$60,$F$2:$G$44,2,FALSE)+ROW()-2))=Switch!$D$60,INDIRECT(\"a\" & (VLOOKUP(Switch!$D$60,$F$2:$G$44,2,FALSE)+ROW()-2)),\"\")","v":{"$error":"#N/A"}},{"$f":"IF(INDIRECT(\"c\" & (VLOOKUP(Switch!$D$61,$F$2:$G$44,2,FALSE)+ROW()-2))=Switch!$D$61,INDIRECT(\"a\" & (VLOOKUP(Switch!$D$61,$F$2:$G$44,2,FALSE)+ROW()-2)),\"\")","v":{"$error":"#N/A"}},{"$f":"IF(INDIRECT(\"c\" & (VLOOKUP(Switch!$D$62,$F$2:$G$44,2,FALSE)+ROW()-2))=Switch!$D$62,INDIRECT(\"a\" & (VLOOKUP(Switch!$D$62,$F$2:$G$44,2,FALSE)+ROW()-2)),\"\")","v":{"$error":"#N/A"}},{"$f":"IF(INDIRECT(\"c\" & (VLOOKUP(Switch!$D$63,$F$2:$G$44,2,FALSE)+ROW()-2))=Switch!$D$63,INDIRECT(\"a\" & (VLOOKUP(Switch!$D$63,$F$2:$G$44,2,FALSE)+ROW()-2)),\"\")","v":{"$error":"#N/A"}},{"$f":"IF(INDIRECT(\"c\" & (VLOOKUP(Switch!$D$64,$F$2:$G$44,2,FALSE)+ROW()-2))=Switch!$D$64,INDIRECT(\"a\" & (VLOOKUP(Switch!$D$64,$F$2:$G$44,2,FALSE)+ROW()-2)),\"\")","v":{"$error":"#N/A"}},{"$f":"IF(INDIRECT(\"c\" & (VLOOKUP(Switch!$D$65,$F$2:$G$44,2,FALSE)+ROW()-2))=Switch!$D$65,INDIRECT(\"a\" & (VLOOKUP(Switch!$D$65,$F$2:$G$44,2,FALSE)+ROW()-2)),\"\")","v":{"$error":"#N/A"}},{"$f":"IF(INDIRECT(\"c\" & (VLOOKUP(Switch!$D$66,$F$2:$G$44,2,FALSE)+ROW()-2))=Switch!$D$66,INDIRECT(\"a\" & (VLOOKUP(Switch!$D$66,$F$2:$G$44,2,FALSE)+ROW()-2)),\"\")","v":{"$error":"#N/A"}}]
["Plexus Wealth BCI Property Fund A","MXPR","Boutique Collective Investments (Pty) Ltd",{"$f":"ROW()","v":154},null,null,{"$f":"VLOOKUP(F154,$C$2:$D$637,2,FALSE)","v":{"$error":"#N/A"}},{"$f":"IF(INDIRECT(\"c\" & (VLOOKUP(Switch!$D$26,$F$2:$G$44,2,FALSE)+ROW()-2))=Switch!$D$26,INDIRECT(\"a\" & (VLOOKUP(Switch!$D$26,$F$2:$G$44,2,FALSE)+ROW()-2)),\"\")","v":{"$error":"#N/A"}},{"$f":"IF(INDIRECT(\"c\" & (VLOOKUP(Switch!$D$27,$F$2:$G$44,2,FALSE)+ROW()-2))=Switch!$D$27,INDIRECT(\"a\" & (VLOOKUP(Switch!$D$27,$F$2:$G$44,2,FALSE)+ROW()-2)),\"\")","v":{"$error":"#N/A"}},{"$f":"IF(INDIRECT(\"c\" & (VLOOKUP(Switch!$D$28,$F$2:$G$44,2,FALSE)+ROW()-2))=Switch!$D$28,INDIRECT(\"a\" & (VLOOKUP(Switch!$D$28,$F$2:$G$44,2,FALSE)+ROW()-2)),\"\")","v":{"$error":"#N/A"}},{"$f":"IF(INDIRECT(\"c\" & (VLOOKUP(Switch!$D$29,$F$2:$G$44,2,FALSE)+ROW()-2))=Switch!$D$29,INDIRECT(\"a\" & (VLOOKUP(Switch!$D$29,$F$2:$G$44,2,FALSE)+ROW()-2)),\"\")","v":{"$error":"#N/A"}},{"$f":"IF(INDIRECT(\"c\" & (VLOOKUP(Switch!$D$30,$F$2:$G$44,2,FALSE)+ROW()-2))=Switch!$D$30,INDIRECT(\"a\" & (VLOOKUP(Switch!$D$30,$F$2:$G$44,2,FALSE)+ROW()-2)),\"\")","v":{"$error":"#N/A"}},{"$f":"IF(INDIRECT(\"c\" & (VLOOKUP(Switch!$D$31,$F$2:$G$44,2,FALSE)+ROW()-2))=Switch!$D$31,INDIRECT(\"a\" & (VLOOKUP(Switch!$D$31,$F$2:$G$44,2,FALSE)+ROW()-2)),\"\")","v":{"$error":"#N/A"}},{"$f":"IF(INDIRECT(\"c\" & (VLOOKUP(Switch!$D$32,$F$2:$G$44,2,FALSE)+ROW()-2))=Switch!$D$32,INDIRECT(\"a\" & (VLOOKUP(Switch!$D$32,$F$2:$G$44,2,FALSE)+ROW()-2)),\"\")","v":{"$error":"#N/A"}},{"$f":"IF(INDIRECT(\"c\" & (VLOOKUP(Switch!$D$33,$F$2:$G$44,2,FALSE)+ROW()-2))=Switch!$D$33,INDIRECT(\"a\" & (VLOOKUP(Switch!$D$33,$F$2:$G$44,2,FALSE)+ROW()-2)),\"\")","v":{"$error":"#N/A"}},{"$f":"IF(INDIRECT(\"c\" & (VLOOKUP(Switch!$D$34,$F$2:$G$44,2,FALSE)+ROW()-2))=Switch!$D$34,INDIRECT(\"a\" & (VLOOKUP(Switch!$D$34,$F$2:$G$44,2,FALSE)+ROW()-2)),\"\")","v":{"$error":"#N/A"}},{"$f":"IF(INDIRECT(\"c\" & (VLOOKUP(Switch!$D$35,$F$2:$G$44,2,FALSE)+ROW()-2))=Switch!$D$35,INDIRECT(\"a\" & (VLOOKUP(Switch!$D$35,$F$2:$G$44,2,FALSE)+ROW()-2)),\"\")","v":{"$error":"#N/A"}},{"$f":"IF(INDIRECT(\"c\" & (VLOOKUP(Switch!$D$36,$F$2:$G$44,2,FALSE)+ROW()-2))=Switch!$D$36,INDIRECT(\"a\" & (VLOOKUP(Switch!$D$36,$F$2:$G$44,2,FALSE)+ROW()-2)),\"\")","v":{"$error":"#N/A"}},{"$f":"IF(INDIRECT(\"c\" & (VLOOKUP(Switch!$D$37,$F$2:$G$44,2,FALSE)+ROW()-2))=Switch!$D$37,INDIRECT(\"a\" & (VLOOKUP(Switch!$D$37,$F$2:$G$44,2,FALSE)+ROW()-2)),\"\")","v":{"$error":"#N/A"}},{"$f":"IF(INDIRECT(\"c\" & (VLOOKUP(Switch!$D$38,$F$2:$G$44,2,FALSE)+ROW()-2))=Switch!$D$38,INDIRECT(\"a\" & (VLOOKUP(Switch!$D$38,$F$2:$G$44,2,FALSE)+ROW()-2)),\"\")","v":{"$error":"#N/A"}},{"$f":"IF(INDIRECT(\"c\" & (VLOOKUP(Switch!$D$39,$F$2:$G$44,2,FALSE)+ROW()-2))=Switch!$D$39,INDIRECT(\"a\" & (VLOOKUP(Switch!$D$39,$F$2:$G$44,2,FALSE)+ROW()-2)),\"\")","v":{"$error":"#N/A"}},{"$f":"IF(INDIRECT(\"c\" & (VLOOKUP(Switch!$D$40,$F$2:$G$44,2,FALSE)+ROW()-2))=Switch!$D$40,INDIRECT(\"a\" & (VLOOKUP(Switch!$D$40,$F$2:$G$44,2,FALSE)+ROW()-2)),\"\")","v":{"$error":"#N/A"}},{"$f":"IF(INDIRECT(\"c\" & (VLOOKUP(Switch!$D$52,$F$2:$G$44,2,FALSE)+ROW()-2))=Switch!$D$52,INDIRECT(\"a\" & (VLOOKUP(Switch!$D$52,$F$2:$G$44,2,FALSE)+ROW()-2)),\"\")","v":{"$error":"#N/A"}},{"$f":"IF(INDIRECT(\"c\" & (VLOOKUP(Switch!$D$53,$F$2:$G$44,2,FALSE)+ROW()-2))=Switch!$D$53,INDIRECT(\"a\" & (VLOOKUP(Switch!$D$53,$F$2:$G$44,2,FALSE)+ROW()-2)),\"\")","v":{"$error":"#N/A"}},{"$f":"IF(INDIRECT(\"c\" & (VLOOKUP(Switch!$D$54,$F$2:$G$44,2,FALSE)+ROW()-2))=Switch!$D$54,INDIRECT(\"a\" & (VLOOKUP(Switch!$D$54,$F$2:$G$44,2,FALSE)+ROW()-2)),\"\")","v":{"$error":"#N/A"}},{"$f":"IF(INDIRECT(\"c\" & (VLOOKUP(Switch!$D$55,$F$2:$G$44,2,FALSE)+ROW()-2))=Switch!$D$55,INDIRECT(\"a\" & (VLOOKUP(Switch!$D$55,$F$2:$G$44,2,FALSE)+ROW()-2)),\"\")","v":{"$error":"#N/A"}},{"$f":"IF(INDIRECT(\"c\" & (VLOOKUP(Switch!$D$56,$F$2:$G$44,2,FALSE)+ROW()-2))=Switch!$D$56,INDIRECT(\"a\" & (VLOOKUP(Switch!$D$56,$F$2:$G$44,2,FALSE)+ROW()-2)),\"\")","v":{"$error":"#N/A"}},{"$f":"IF(INDIRECT(\"c\" & (VLOOKUP(Switch!$D$57,$F$2:$G$44,2,FALSE)+ROW()-2))=Switch!$D$57,INDIRECT(\"a\" & (VLOOKUP(Switch!$D$57,$F$2:$G$44,2,FALSE)+ROW()-2)),\"\")","v":{"$error":"#N/A"}},{"$f":"IF(INDIRECT(\"c\" & (VLOOKUP(Switch!$D$58,$F$2:$G$44,2,FALSE)+ROW()-2))=Switch!$D$58,INDIRECT(\"a\" & (VLOOKUP(Switch!$D$58,$F$2:$G$44,2,FALSE)+ROW()-2)),\"\")","v":{"$error":"#N/A"}},{"$f":"IF(INDIRECT(\"c\" & (VLOOKUP(Switch!$D$59,$F$2:$G$44,2,FALSE)+ROW()-2))=Switch!$D$59,INDIRECT(\"a\" & (VLOOKUP(Switch!$D$59,$F$2:$G$44,2,FALSE)+ROW()-2)),\"\")","v":{"$error":"#N/A"}},{"$f":"IF(INDIRECT(\"c\" & (VLOOKUP(Switch!$D$60,$F$2:$G$44,2,FALSE)+ROW()-2))=Switch!$D$60,INDIRECT(\"a\" & (VLOOKUP(Switch!$D$60,$F$2:$G$44,2,FALSE)+ROW()-2)),\"\")","v":{"$error":"#N/A"}},{"$f":"IF(INDIRECT(\"c\" & (VLOOKUP(Switch!$D$61,$F$2:$G$44,2,FALSE)+ROW()-2))=Switch!$D$61,INDIRECT(\"a\" & (VLOOKUP(Switch!$D$61,$F$2:$G$44,2,FALSE)+ROW()-2)),\"\")","v":{"$error":"#N/A"}},{"$f":"IF(INDIRECT(\"c\" & (VLOOKUP(Switch!$D$62,$F$2:$G$44,2,FALSE)+ROW()-2))=Switch!$D$62,INDIRECT(\"a\" & (VLOOKUP(Switch!$D$62,$F$2:$G$44,2,FALSE)+ROW()-2)),\"\")","v":{"$error":"#N/A"}},{"$f":"IF(INDIRECT(\"c\" & (VLOOKUP(Switch!$D$63,$F$2:$G$44,2,FALSE)+ROW()-2))=Switch!$D$63,INDIRECT(\"a\" & (VLOOKUP(Switch!$D$63,$F$2:$G$44,2,FALSE)+ROW()-2)),\"\")","v":{"$error":"#N/A"}},{"$f":"IF(INDIRECT(\"c\" & (VLOOKUP(Switch!$D$64,$F$2:$G$44,2,FALSE)+ROW()-2))=Switch!$D$64,INDIRECT(\"a\" & (VLOOKUP(Switch!$D$64,$F$2:$G$44,2,FALSE)+ROW()-2)),\"\")","v":{"$error":"#N/A"}},{"$f":"IF(INDIRECT(\"c\" & (VLOOKUP(Switch!$D$65,$F$2:$G$44,2,FALSE)+ROW()-2))=Switch!$D$65,INDIRECT(\"a\" & (VLOOKUP(Switch!$D$65,$F$2:$G$44,2,FALSE)+ROW()-2)),\"\")","v":{"$error":"#N/A"}},{"$f":"IF(INDIRECT(\"c\" & (VLOOKUP(Switch!$D$66,$F$2:$G$44,2,FALSE)+ROW()-2))=Switch!$D$66,INDIRECT(\"a\" & (VLOOKUP(Switch!$D$66,$F$2:$G$44,2,FALSE)+ROW()-2)),\"\")","v":{"$error":"#N/A"}}]
["PortfolioMetrix BCI Bond Fund of Funds A","PMBFA","Boutique Collective Investments (Pty) Ltd",{"$f":"ROW()","v":155},null,null,{"$f":"VLOOKUP(F155,$C$2:$D$637,2,FALSE)","v":{"$error":"#N/A"}},{"$f":"IF(INDIRECT(\"c\" & (VLOOKUP(Switch!$D$26,$F$2:$G$44,2,FALSE)+ROW()-2))=Switch!$D$26,INDIRECT(\"a\" & (VLOOKUP(Switch!$D$26,$F$2:$G$44,2,FALSE)+ROW()-2)),\"\")","v":{"$error":"#N/A"}},{"$f":"IF(INDIRECT(\"c\" & (VLOOKUP(Switch!$D$27,$F$2:$G$44,2,FALSE)+ROW()-2))=Switch!$D$27,INDIRECT(\"a\" & (VLOOKUP(Switch!$D$27,$F$2:$G$44,2,FALSE)+ROW()-2)),\"\")","v":{"$error":"#N/A"}},{"$f":"IF(INDIRECT(\"c\" & (VLOOKUP(Switch!$D$28,$F$2:$G$44,2,FALSE)+ROW()-2))=Switch!$D$28,INDIRECT(\"a\" & (VLOOKUP(Switch!$D$28,$F$2:$G$44,2,FALSE)+ROW()-2)),\"\")","v":{"$error":"#N/A"}},{"$f":"IF(INDIRECT(\"c\" & (VLOOKUP(Switch!$D$29,$F$2:$G$44,2,FALSE)+ROW()-2))=Switch!$D$29,INDIRECT(\"a\" & (VLOOKUP(Switch!$D$29,$F$2:$G$44,2,FALSE)+ROW()-2)),\"\")","v":{"$error":"#N/A"}},{"$f":"IF(INDIRECT(\"c\" & (VLOOKUP(Switch!$D$30,$F$2:$G$44,2,FALSE)+ROW()-2))=Switch!$D$30,INDIRECT(\"a\" & (VLOOKUP(Switch!$D$30,$F$2:$G$44,2,FALSE)+ROW()-2)),\"\")","v":{"$error":"#N/A"}},{"$f":"IF(INDIRECT(\"c\" & (VLOOKUP(Switch!$D$31,$F$2:$G$44,2,FALSE)+ROW()-2))=Switch!$D$31,INDIRECT(\"a\" & (VLOOKUP(Switch!$D$31,$F$2:$G$44,2,FALSE)+ROW()-2)),\"\")","v":{"$error":"#N/A"}},{"$f":"IF(INDIRECT(\"c\" & (VLOOKUP(Switch!$D$32,$F$2:$G$44,2,FALSE)+ROW()-2))=Switch!$D$32,INDIRECT(\"a\" & (VLOOKUP(Switch!$D$32,$F$2:$G$44,2,FALSE)+ROW()-2)),\"\")","v":{"$error":"#N/A"}},{"$f":"IF(INDIRECT(\"c\" & (VLOOKUP(Switch!$D$33,$F$2:$G$44,2,FALSE)+ROW()-2))=Switch!$D$33,INDIRECT(\"a\" & (VLOOKUP(Switch!$D$33,$F$2:$G$44,2,FALSE)+ROW()-2)),\"\")","v":{"$error":"#N/A"}},{"$f":"IF(INDIRECT(\"c\" & (VLOOKUP(Switch!$D$34,$F$2:$G$44,2,FALSE)+ROW()-2))=Switch!$D$34,INDIRECT(\"a\" & (VLOOKUP(Switch!$D$34,$F$2:$G$44,2,FALSE)+ROW()-2)),\"\")","v":{"$error":"#N/A"}},{"$f":"IF(INDIRECT(\"c\" & (VLOOKUP(Switch!$D$35,$F$2:$G$44,2,FALSE)+ROW()-2))=Switch!$D$35,INDIRECT(\"a\" & (VLOOKUP(Switch!$D$35,$F$2:$G$44,2,FALSE)+ROW()-2)),\"\")","v":{"$error":"#N/A"}},{"$f":"IF(INDIRECT(\"c\" & (VLOOKUP(Switch!$D$36,$F$2:$G$44,2,FALSE)+ROW()-2))=Switch!$D$36,INDIRECT(\"a\" & (VLOOKUP(Switch!$D$36,$F$2:$G$44,2,FALSE)+ROW()-2)),\"\")","v":{"$error":"#N/A"}},{"$f":"IF(INDIRECT(\"c\" & (VLOOKUP(Switch!$D$37,$F$2:$G$44,2,FALSE)+ROW()-2))=Switch!$D$37,INDIRECT(\"a\" & (VLOOKUP(Switch!$D$37,$F$2:$G$44,2,FALSE)+ROW()-2)),\"\")","v":{"$error":"#N/A"}},{"$f":"IF(INDIRECT(\"c\" & (VLOOKUP(Switch!$D$38,$F$2:$G$44,2,FALSE)+ROW()-2))=Switch!$D$38,INDIRECT(\"a\" & (VLOOKUP(Switch!$D$38,$F$2:$G$44,2,FALSE)+ROW()-2)),\"\")","v":{"$error":"#N/A"}},{"$f":"IF(INDIRECT(\"c\" & (VLOOKUP(Switch!$D$39,$F$2:$G$44,2,FALSE)+ROW()-2))=Switch!$D$39,INDIRECT(\"a\" & (VLOOKUP(Switch!$D$39,$F$2:$G$44,2,FALSE)+ROW()-2)),\"\")","v":{"$error":"#N/A"}},{"$f":"IF(INDIRECT(\"c\" & (VLOOKUP(Switch!$D$40,$F$2:$G$44,2,FALSE)+ROW()-2))=Switch!$D$40,INDIRECT(\"a\" & (VLOOKUP(Switch!$D$40,$F$2:$G$44,2,FALSE)+ROW()-2)),\"\")","v":{"$error":"#N/A"}},{"$f":"IF(INDIRECT(\"c\" & (VLOOKUP(Switch!$D$52,$F$2:$G$44,2,FALSE)+ROW()-2))=Switch!$D$52,INDIRECT(\"a\" & (VLOOKUP(Switch!$D$52,$F$2:$G$44,2,FALSE)+ROW()-2)),\"\")","v":{"$error":"#N/A"}},{"$f":"IF(INDIRECT(\"c\" & (VLOOKUP(Switch!$D$53,$F$2:$G$44,2,FALSE)+ROW()-2))=Switch!$D$53,INDIRECT(\"a\" & (VLOOKUP(Switch!$D$53,$F$2:$G$44,2,FALSE)+ROW()-2)),\"\")","v":{"$error":"#N/A"}},{"$f":"IF(INDIRECT(\"c\" & (VLOOKUP(Switch!$D$54,$F$2:$G$44,2,FALSE)+ROW()-2))=Switch!$D$54,INDIRECT(\"a\" & (VLOOKUP(Switch!$D$54,$F$2:$G$44,2,FALSE)+ROW()-2)),\"\")","v":{"$error":"#N/A"}},{"$f":"IF(INDIRECT(\"c\" & (VLOOKUP(Switch!$D$55,$F$2:$G$44,2,FALSE)+ROW()-2))=Switch!$D$55,INDIRECT(\"a\" & (VLOOKUP(Switch!$D$55,$F$2:$G$44,2,FALSE)+ROW()-2)),\"\")","v":{"$error":"#N/A"}},{"$f":"IF(INDIRECT(\"c\" & (VLOOKUP(Switch!$D$56,$F$2:$G$44,2,FALSE)+ROW()-2))=Switch!$D$56,INDIRECT(\"a\" & (VLOOKUP(Switch!$D$56,$F$2:$G$44,2,FALSE)+ROW()-2)),\"\")","v":{"$error":"#N/A"}},{"$f":"IF(INDIRECT(\"c\" & (VLOOKUP(Switch!$D$57,$F$2:$G$44,2,FALSE)+ROW()-2))=Switch!$D$57,INDIRECT(\"a\" & (VLOOKUP(Switch!$D$57,$F$2:$G$44,2,FALSE)+ROW()-2)),\"\")","v":{"$error":"#N/A"}},{"$f":"IF(INDIRECT(\"c\" & (VLOOKUP(Switch!$D$58,$F$2:$G$44,2,FALSE)+ROW()-2))=Switch!$D$58,INDIRECT(\"a\" & (VLOOKUP(Switch!$D$58,$F$2:$G$44,2,FALSE)+ROW()-2)),\"\")","v":{"$error":"#N/A"}},{"$f":"IF(INDIRECT(\"c\" & (VLOOKUP(Switch!$D$59,$F$2:$G$44,2,FALSE)+ROW()-2))=Switch!$D$59,INDIRECT(\"a\" & (VLOOKUP(Switch!$D$59,$F$2:$G$44,2,FALSE)+ROW()-2)),\"\")","v":{"$error":"#N/A"}},{"$f":"IF(INDIRECT(\"c\" & (VLOOKUP(Switch!$D$60,$F$2:$G$44,2,FALSE)+ROW()-2))=Switch!$D$60,INDIRECT(\"a\" & (VLOOKUP(Switch!$D$60,$F$2:$G$44,2,FALSE)+ROW()-2)),\"\")","v":{"$error":"#N/A"}},{"$f":"IF(INDIRECT(\"c\" & (VLOOKUP(Switch!$D$61,$F$2:$G$44,2,FALSE)+ROW()-2))=Switch!$D$61,INDIRECT(\"a\" & (VLOOKUP(Switch!$D$61,$F$2:$G$44,2,FALSE)+ROW()-2)),\"\")","v":{"$error":"#N/A"}},{"$f":"IF(INDIRECT(\"c\" & (VLOOKUP(Switch!$D$62,$F$2:$G$44,2,FALSE)+ROW()-2))=Switch!$D$62,INDIRECT(\"a\" & (VLOOKUP(Switch!$D$62,$F$2:$G$44,2,FALSE)+ROW()-2)),\"\")","v":{"$error":"#N/A"}},{"$f":"IF(INDIRECT(\"c\" & (VLOOKUP(Switch!$D$63,$F$2:$G$44,2,FALSE)+ROW()-2))=Switch!$D$63,INDIRECT(\"a\" & (VLOOKUP(Switch!$D$63,$F$2:$G$44,2,FALSE)+ROW()-2)),\"\")","v":{"$error":"#N/A"}},{"$f":"IF(INDIRECT(\"c\" & (VLOOKUP(Switch!$D$64,$F$2:$G$44,2,FALSE)+ROW()-2))=Switch!$D$64,INDIRECT(\"a\" & (VLOOKUP(Switch!$D$64,$F$2:$G$44,2,FALSE)+ROW()-2)),\"\")","v":{"$error":"#N/A"}},{"$f":"IF(INDIRECT(\"c\" & (VLOOKUP(Switch!$D$65,$F$2:$G$44,2,FALSE)+ROW()-2))=Switch!$D$65,INDIRECT(\"a\" & (VLOOKUP(Switch!$D$65,$F$2:$G$44,2,FALSE)+ROW()-2)),\"\")","v":{"$error":"#N/A"}},{"$f":"IF(INDIRECT(\"c\" & (VLOOKUP(Switch!$D$66,$F$2:$G$44,2,FALSE)+ROW()-2))=Switch!$D$66,INDIRECT(\"a\" & (VLOOKUP(Switch!$D$66,$F$2:$G$44,2,FALSE)+ROW()-2)),\"\")","v":{"$error":"#N/A"}}]
["PortfolioMetrix BCI Equity Fund of Funds B1","PBCE","Boutique Collective Investments (Pty) Ltd",{"$f":"ROW()","v":156},null,null,{"$f":"VLOOKUP(F156,$C$2:$D$637,2,FALSE)","v":{"$error":"#N/A"}},{"$f":"IF(INDIRECT(\"c\" & (VLOOKUP(Switch!$D$26,$F$2:$G$44,2,FALSE)+ROW()-2))=Switch!$D$26,INDIRECT(\"a\" & (VLOOKUP(Switch!$D$26,$F$2:$G$44,2,FALSE)+ROW()-2)),\"\")","v":{"$error":"#N/A"}},{"$f":"IF(INDIRECT(\"c\" & (VLOOKUP(Switch!$D$27,$F$2:$G$44,2,FALSE)+ROW()-2))=Switch!$D$27,INDIRECT(\"a\" & (VLOOKUP(Switch!$D$27,$F$2:$G$44,2,FALSE)+ROW()-2)),\"\")","v":{"$error":"#N/A"}},{"$f":"IF(INDIRECT(\"c\" & (VLOOKUP(Switch!$D$28,$F$2:$G$44,2,FALSE)+ROW()-2))=Switch!$D$28,INDIRECT(\"a\" & (VLOOKUP(Switch!$D$28,$F$2:$G$44,2,FALSE)+ROW()-2)),\"\")","v":{"$error":"#N/A"}},{"$f":"IF(INDIRECT(\"c\" & (VLOOKUP(Switch!$D$29,$F$2:$G$44,2,FALSE)+ROW()-2))=Switch!$D$29,INDIRECT(\"a\" & (VLOOKUP(Switch!$D$29,$F$2:$G$44,2,FALSE)+ROW()-2)),\"\")","v":{"$error":"#N/A"}},{"$f":"IF(INDIRECT(\"c\" & (VLOOKUP(Switch!$D$30,$F$2:$G$44,2,FALSE)+ROW()-2))=Switch!$D$30,INDIRECT(\"a\" & (VLOOKUP(Switch!$D$30,$F$2:$G$44,2,FALSE)+ROW()-2)),\"\")","v":{"$error":"#N/A"}},{"$f":"IF(INDIRECT(\"c\" & (VLOOKUP(Switch!$D$31,$F$2:$G$44,2,FALSE)+ROW()-2))=Switch!$D$31,INDIRECT(\"a\" & (VLOOKUP(Switch!$D$31,$F$2:$G$44,2,FALSE)+ROW()-2)),\"\")","v":{"$error":"#N/A"}},{"$f":"IF(INDIRECT(\"c\" & (VLOOKUP(Switch!$D$32,$F$2:$G$44,2,FALSE)+ROW()-2))=Switch!$D$32,INDIRECT(\"a\" & (VLOOKUP(Switch!$D$32,$F$2:$G$44,2,FALSE)+ROW()-2)),\"\")","v":{"$error":"#N/A"}},{"$f":"IF(INDIRECT(\"c\" & (VLOOKUP(Switch!$D$33,$F$2:$G$44,2,FALSE)+ROW()-2))=Switch!$D$33,INDIRECT(\"a\" & (VLOOKUP(Switch!$D$33,$F$2:$G$44,2,FALSE)+ROW()-2)),\"\")","v":{"$error":"#N/A"}},{"$f":"IF(INDIRECT(\"c\" & (VLOOKUP(Switch!$D$34,$F$2:$G$44,2,FALSE)+ROW()-2))=Switch!$D$34,INDIRECT(\"a\" & (VLOOKUP(Switch!$D$34,$F$2:$G$44,2,FALSE)+ROW()-2)),\"\")","v":{"$error":"#N/A"}},{"$f":"IF(INDIRECT(\"c\" & (VLOOKUP(Switch!$D$35,$F$2:$G$44,2,FALSE)+ROW()-2))=Switch!$D$35,INDIRECT(\"a\" & (VLOOKUP(Switch!$D$35,$F$2:$G$44,2,FALSE)+ROW()-2)),\"\")","v":{"$error":"#N/A"}},{"$f":"IF(INDIRECT(\"c\" & (VLOOKUP(Switch!$D$36,$F$2:$G$44,2,FALSE)+ROW()-2))=Switch!$D$36,INDIRECT(\"a\" & (VLOOKUP(Switch!$D$36,$F$2:$G$44,2,FALSE)+ROW()-2)),\"\")","v":{"$error":"#N/A"}},{"$f":"IF(INDIRECT(\"c\" & (VLOOKUP(Switch!$D$37,$F$2:$G$44,2,FALSE)+ROW()-2))=Switch!$D$37,INDIRECT(\"a\" & (VLOOKUP(Switch!$D$37,$F$2:$G$44,2,FALSE)+ROW()-2)),\"\")","v":{"$error":"#N/A"}},{"$f":"IF(INDIRECT(\"c\" & (VLOOKUP(Switch!$D$38,$F$2:$G$44,2,FALSE)+ROW()-2))=Switch!$D$38,INDIRECT(\"a\" & (VLOOKUP(Switch!$D$38,$F$2:$G$44,2,FALSE)+ROW()-2)),\"\")","v":{"$error":"#N/A"}},{"$f":"IF(INDIRECT(\"c\" & (VLOOKUP(Switch!$D$39,$F$2:$G$44,2,FALSE)+ROW()-2))=Switch!$D$39,INDIRECT(\"a\" & (VLOOKUP(Switch!$D$39,$F$2:$G$44,2,FALSE)+ROW()-2)),\"\")","v":{"$error":"#N/A"}},{"$f":"IF(INDIRECT(\"c\" & (VLOOKUP(Switch!$D$40,$F$2:$G$44,2,FALSE)+ROW()-2))=Switch!$D$40,INDIRECT(\"a\" & (VLOOKUP(Switch!$D$40,$F$2:$G$44,2,FALSE)+ROW()-2)),\"\")","v":{"$error":"#N/A"}},{"$f":"IF(INDIRECT(\"c\" & (VLOOKUP(Switch!$D$52,$F$2:$G$44,2,FALSE)+ROW()-2))=Switch!$D$52,INDIRECT(\"a\" & (VLOOKUP(Switch!$D$52,$F$2:$G$44,2,FALSE)+ROW()-2)),\"\")","v":{"$error":"#N/A"}},{"$f":"IF(INDIRECT(\"c\" & (VLOOKUP(Switch!$D$53,$F$2:$G$44,2,FALSE)+ROW()-2))=Switch!$D$53,INDIRECT(\"a\" & (VLOOKUP(Switch!$D$53,$F$2:$G$44,2,FALSE)+ROW()-2)),\"\")","v":{"$error":"#N/A"}},{"$f":"IF(INDIRECT(\"c\" & (VLOOKUP(Switch!$D$54,$F$2:$G$44,2,FALSE)+ROW()-2))=Switch!$D$54,INDIRECT(\"a\" & (VLOOKUP(Switch!$D$54,$F$2:$G$44,2,FALSE)+ROW()-2)),\"\")","v":{"$error":"#N/A"}},{"$f":"IF(INDIRECT(\"c\" & (VLOOKUP(Switch!$D$55,$F$2:$G$44,2,FALSE)+ROW()-2))=Switch!$D$55,INDIRECT(\"a\" & (VLOOKUP(Switch!$D$55,$F$2:$G$44,2,FALSE)+ROW()-2)),\"\")","v":{"$error":"#N/A"}},{"$f":"IF(INDIRECT(\"c\" & (VLOOKUP(Switch!$D$56,$F$2:$G$44,2,FALSE)+ROW()-2))=Switch!$D$56,INDIRECT(\"a\" & (VLOOKUP(Switch!$D$56,$F$2:$G$44,2,FALSE)+ROW()-2)),\"\")","v":{"$error":"#N/A"}},{"$f":"IF(INDIRECT(\"c\" & (VLOOKUP(Switch!$D$57,$F$2:$G$44,2,FALSE)+ROW()-2))=Switch!$D$57,INDIRECT(\"a\" & (VLOOKUP(Switch!$D$57,$F$2:$G$44,2,FALSE)+ROW()-2)),\"\")","v":{"$error":"#N/A"}},{"$f":"IF(INDIRECT(\"c\" & (VLOOKUP(Switch!$D$58,$F$2:$G$44,2,FALSE)+ROW()-2))=Switch!$D$58,INDIRECT(\"a\" & (VLOOKUP(Switch!$D$58,$F$2:$G$44,2,FALSE)+ROW()-2)),\"\")","v":{"$error":"#N/A"}},{"$f":"IF(INDIRECT(\"c\" & (VLOOKUP(Switch!$D$59,$F$2:$G$44,2,FALSE)+ROW()-2))=Switch!$D$59,INDIRECT(\"a\" & (VLOOKUP(Switch!$D$59,$F$2:$G$44,2,FALSE)+ROW()-2)),\"\")","v":{"$error":"#N/A"}},{"$f":"IF(INDIRECT(\"c\" & (VLOOKUP(Switch!$D$60,$F$2:$G$44,2,FALSE)+ROW()-2))=Switch!$D$60,INDIRECT(\"a\" & (VLOOKUP(Switch!$D$60,$F$2:$G$44,2,FALSE)+ROW()-2)),\"\")","v":{"$error":"#N/A"}},{"$f":"IF(INDIRECT(\"c\" & (VLOOKUP(Switch!$D$61,$F$2:$G$44,2,FALSE)+ROW()-2))=Switch!$D$61,INDIRECT(\"a\" & (VLOOKUP(Switch!$D$61,$F$2:$G$44,2,FALSE)+ROW()-2)),\"\")","v":{"$error":"#N/A"}},{"$f":"IF(INDIRECT(\"c\" & (VLOOKUP(Switch!$D$62,$F$2:$G$44,2,FALSE)+ROW()-2))=Switch!$D$62,INDIRECT(\"a\" & (VLOOKUP(Switch!$D$62,$F$2:$G$44,2,FALSE)+ROW()-2)),\"\")","v":{"$error":"#N/A"}},{"$f":"IF(INDIRECT(\"c\" & (VLOOKUP(Switch!$D$63,$F$2:$G$44,2,FALSE)+ROW()-2))=Switch!$D$63,INDIRECT(\"a\" & (VLOOKUP(Switch!$D$63,$F$2:$G$44,2,FALSE)+ROW()-2)),\"\")","v":{"$error":"#N/A"}},{"$f":"IF(INDIRECT(\"c\" & (VLOOKUP(Switch!$D$64,$F$2:$G$44,2,FALSE)+ROW()-2))=Switch!$D$64,INDIRECT(\"a\" & (VLOOKUP(Switch!$D$64,$F$2:$G$44,2,FALSE)+ROW()-2)),\"\")","v":{"$error":"#N/A"}},{"$f":"IF(INDIRECT(\"c\" & (VLOOKUP(Switch!$D$65,$F$2:$G$44,2,FALSE)+ROW()-2))=Switch!$D$65,INDIRECT(\"a\" & (VLOOKUP(Switch!$D$65,$F$2:$G$44,2,FALSE)+ROW()-2)),\"\")","v":{"$error":"#N/A"}},{"$f":"IF(INDIRECT(\"c\" & (VLOOKUP(Switch!$D$66,$F$2:$G$44,2,FALSE)+ROW()-2))=Switch!$D$66,INDIRECT(\"a\" & (VLOOKUP(Switch!$D$66,$F$2:$G$44,2,FALSE)+ROW()-2)),\"\")","v":{"$error":"#N/A"}}]
["PortfolioMetrix BCI Global Equity Fund B1","PBGE","Boutique Collective Investments (Pty) Ltd",{"$f":"ROW()","v":157},null,null,{"$f":"VLOOKUP(F157,$C$2:$D$637,2,FALSE)","v":{"$error":"#N/A"}},{"$f":"IF(INDIRECT(\"c\" & (VLOOKUP(Switch!$D$26,$F$2:$G$44,2,FALSE)+ROW()-2))=Switch!$D$26,INDIRECT(\"a\" & (VLOOKUP(Switch!$D$26,$F$2:$G$44,2,FALSE)+ROW()-2)),\"\")","v":{"$error":"#N/A"}},{"$f":"IF(INDIRECT(\"c\" & (VLOOKUP(Switch!$D$27,$F$2:$G$44,2,FALSE)+ROW()-2))=Switch!$D$27,INDIRECT(\"a\" & (VLOOKUP(Switch!$D$27,$F$2:$G$44,2,FALSE)+ROW()-2)),\"\")","v":{"$error":"#N/A"}},{"$f":"IF(INDIRECT(\"c\" & (VLOOKUP(Switch!$D$28,$F$2:$G$44,2,FALSE)+ROW()-2))=Switch!$D$28,INDIRECT(\"a\" & (VLOOKUP(Switch!$D$28,$F$2:$G$44,2,FALSE)+ROW()-2)),\"\")","v":{"$error":"#N/A"}},{"$f":"IF(INDIRECT(\"c\" & (VLOOKUP(Switch!$D$29,$F$2:$G$44,2,FALSE)+ROW()-2))=Switch!$D$29,INDIRECT(\"a\" & (VLOOKUP(Switch!$D$29,$F$2:$G$44,2,FALSE)+ROW()-2)),\"\")","v":{"$error":"#N/A"}},{"$f":"IF(INDIRECT(\"c\" & (VLOOKUP(Switch!$D$30,$F$2:$G$44,2,FALSE)+ROW()-2))=Switch!$D$30,INDIRECT(\"a\" & (VLOOKUP(Switch!$D$30,$F$2:$G$44,2,FALSE)+ROW()-2)),\"\")","v":{"$error":"#N/A"}},{"$f":"IF(INDIRECT(\"c\" & (VLOOKUP(Switch!$D$31,$F$2:$G$44,2,FALSE)+ROW()-2))=Switch!$D$31,INDIRECT(\"a\" & (VLOOKUP(Switch!$D$31,$F$2:$G$44,2,FALSE)+ROW()-2)),\"\")","v":{"$error":"#N/A"}},{"$f":"IF(INDIRECT(\"c\" & (VLOOKUP(Switch!$D$32,$F$2:$G$44,2,FALSE)+ROW()-2))=Switch!$D$32,INDIRECT(\"a\" & (VLOOKUP(Switch!$D$32,$F$2:$G$44,2,FALSE)+ROW()-2)),\"\")","v":{"$error":"#N/A"}},{"$f":"IF(INDIRECT(\"c\" & (VLOOKUP(Switch!$D$33,$F$2:$G$44,2,FALSE)+ROW()-2))=Switch!$D$33,INDIRECT(\"a\" & (VLOOKUP(Switch!$D$33,$F$2:$G$44,2,FALSE)+ROW()-2)),\"\")","v":{"$error":"#N/A"}},{"$f":"IF(INDIRECT(\"c\" & (VLOOKUP(Switch!$D$34,$F$2:$G$44,2,FALSE)+ROW()-2))=Switch!$D$34,INDIRECT(\"a\" & (VLOOKUP(Switch!$D$34,$F$2:$G$44,2,FALSE)+ROW()-2)),\"\")","v":{"$error":"#N/A"}},{"$f":"IF(INDIRECT(\"c\" & (VLOOKUP(Switch!$D$35,$F$2:$G$44,2,FALSE)+ROW()-2))=Switch!$D$35,INDIRECT(\"a\" & (VLOOKUP(Switch!$D$35,$F$2:$G$44,2,FALSE)+ROW()-2)),\"\")","v":{"$error":"#N/A"}},{"$f":"IF(INDIRECT(\"c\" & (VLOOKUP(Switch!$D$36,$F$2:$G$44,2,FALSE)+ROW()-2))=Switch!$D$36,INDIRECT(\"a\" & (VLOOKUP(Switch!$D$36,$F$2:$G$44,2,FALSE)+ROW()-2)),\"\")","v":{"$error":"#N/A"}},{"$f":"IF(INDIRECT(\"c\" & (VLOOKUP(Switch!$D$37,$F$2:$G$44,2,FALSE)+ROW()-2))=Switch!$D$37,INDIRECT(\"a\" & (VLOOKUP(Switch!$D$37,$F$2:$G$44,2,FALSE)+ROW()-2)),\"\")","v":{"$error":"#N/A"}},{"$f":"IF(INDIRECT(\"c\" & (VLOOKUP(Switch!$D$38,$F$2:$G$44,2,FALSE)+ROW()-2))=Switch!$D$38,INDIRECT(\"a\" & (VLOOKUP(Switch!$D$38,$F$2:$G$44,2,FALSE)+ROW()-2)),\"\")","v":{"$error":"#N/A"}},{"$f":"IF(INDIRECT(\"c\" & (VLOOKUP(Switch!$D$39,$F$2:$G$44,2,FALSE)+ROW()-2))=Switch!$D$39,INDIRECT(\"a\" & (VLOOKUP(Switch!$D$39,$F$2:$G$44,2,FALSE)+ROW()-2)),\"\")","v":{"$error":"#N/A"}},{"$f":"IF(INDIRECT(\"c\" & (VLOOKUP(Switch!$D$40,$F$2:$G$44,2,FALSE)+ROW()-2))=Switch!$D$40,INDIRECT(\"a\" & (VLOOKUP(Switch!$D$40,$F$2:$G$44,2,FALSE)+ROW()-2)),\"\")","v":{"$error":"#N/A"}},{"$f":"IF(INDIRECT(\"c\" & (VLOOKUP(Switch!$D$52,$F$2:$G$44,2,FALSE)+ROW()-2))=Switch!$D$52,INDIRECT(\"a\" & (VLOOKUP(Switch!$D$52,$F$2:$G$44,2,FALSE)+ROW()-2)),\"\")","v":{"$error":"#N/A"}},{"$f":"IF(INDIRECT(\"c\" & (VLOOKUP(Switch!$D$53,$F$2:$G$44,2,FALSE)+ROW()-2))=Switch!$D$53,INDIRECT(\"a\" & (VLOOKUP(Switch!$D$53,$F$2:$G$44,2,FALSE)+ROW()-2)),\"\")","v":{"$error":"#N/A"}},{"$f":"IF(INDIRECT(\"c\" & (VLOOKUP(Switch!$D$54,$F$2:$G$44,2,FALSE)+ROW()-2))=Switch!$D$54,INDIRECT(\"a\" & (VLOOKUP(Switch!$D$54,$F$2:$G$44,2,FALSE)+ROW()-2)),\"\")","v":{"$error":"#N/A"}},{"$f":"IF(INDIRECT(\"c\" & (VLOOKUP(Switch!$D$55,$F$2:$G$44,2,FALSE)+ROW()-2))=Switch!$D$55,INDIRECT(\"a\" & (VLOOKUP(Switch!$D$55,$F$2:$G$44,2,FALSE)+ROW()-2)),\"\")","v":{"$error":"#N/A"}},{"$f":"IF(INDIRECT(\"c\" & (VLOOKUP(Switch!$D$56,$F$2:$G$44,2,FALSE)+ROW()-2))=Switch!$D$56,INDIRECT(\"a\" & (VLOOKUP(Switch!$D$56,$F$2:$G$44,2,FALSE)+ROW()-2)),\"\")","v":{"$error":"#N/A"}},{"$f":"IF(INDIRECT(\"c\" & (VLOOKUP(Switch!$D$57,$F$2:$G$44,2,FALSE)+ROW()-2))=Switch!$D$57,INDIRECT(\"a\" & (VLOOKUP(Switch!$D$57,$F$2:$G$44,2,FALSE)+ROW()-2)),\"\")","v":{"$error":"#N/A"}},{"$f":"IF(INDIRECT(\"c\" & (VLOOKUP(Switch!$D$58,$F$2:$G$44,2,FALSE)+ROW()-2))=Switch!$D$58,INDIRECT(\"a\" & (VLOOKUP(Switch!$D$58,$F$2:$G$44,2,FALSE)+ROW()-2)),\"\")","v":{"$error":"#N/A"}},{"$f":"IF(INDIRECT(\"c\" & (VLOOKUP(Switch!$D$59,$F$2:$G$44,2,FALSE)+ROW()-2))=Switch!$D$59,INDIRECT(\"a\" & (VLOOKUP(Switch!$D$59,$F$2:$G$44,2,FALSE)+ROW()-2)),\"\")","v":{"$error":"#N/A"}},{"$f":"IF(INDIRECT(\"c\" & (VLOOKUP(Switch!$D$60,$F$2:$G$44,2,FALSE)+ROW()-2))=Switch!$D$60,INDIRECT(\"a\" & (VLOOKUP(Switch!$D$60,$F$2:$G$44,2,FALSE)+ROW()-2)),\"\")","v":{"$error":"#N/A"}},{"$f":"IF(INDIRECT(\"c\" & (VLOOKUP(Switch!$D$61,$F$2:$G$44,2,FALSE)+ROW()-2))=Switch!$D$61,INDIRECT(\"a\" & (VLOOKUP(Switch!$D$61,$F$2:$G$44,2,FALSE)+ROW()-2)),\"\")","v":{"$error":"#N/A"}},{"$f":"IF(INDIRECT(\"c\" & (VLOOKUP(Switch!$D$62,$F$2:$G$44,2,FALSE)+ROW()-2))=Switch!$D$62,INDIRECT(\"a\" & (VLOOKUP(Switch!$D$62,$F$2:$G$44,2,FALSE)+ROW()-2)),\"\")","v":{"$error":"#N/A"}},{"$f":"IF(INDIRECT(\"c\" & (VLOOKUP(Switch!$D$63,$F$2:$G$44,2,FALSE)+ROW()-2))=Switch!$D$63,INDIRECT(\"a\" & (VLOOKUP(Switch!$D$63,$F$2:$G$44,2,FALSE)+ROW()-2)),\"\")","v":{"$error":"#N/A"}},{"$f":"IF(INDIRECT(\"c\" & (VLOOKUP(Switch!$D$64,$F$2:$G$44,2,FALSE)+ROW()-2))=Switch!$D$64,INDIRECT(\"a\" & (VLOOKUP(Switch!$D$64,$F$2:$G$44,2,FALSE)+ROW()-2)),\"\")","v":{"$error":"#N/A"}},{"$f":"IF(INDIRECT(\"c\" & (VLOOKUP(Switch!$D$65,$F$2:$G$44,2,FALSE)+ROW()-2))=Switch!$D$65,INDIRECT(\"a\" & (VLOOKUP(Switch!$D$65,$F$2:$G$44,2,FALSE)+ROW()-2)),\"\")","v":{"$error":"#N/A"}},{"$f":"IF(INDIRECT(\"c\" & (VLOOKUP(Switch!$D$66,$F$2:$G$44,2,FALSE)+ROW()-2))=Switch!$D$66,INDIRECT(\"a\" & (VLOOKUP(Switch!$D$66,$F$2:$G$44,2,FALSE)+ROW()-2)),\"\")","v":{"$error":"#N/A"}}]
["PortfolioMetrix BCI Income Fund of Funds A","PMIFA","Boutique Collective Investments (Pty) Ltd",{"$f":"ROW()","v":158},null,null,{"$f":"VLOOKUP(F158,$C$2:$D$637,2,FALSE)","v":{"$error":"#N/A"}},{"$f":"IF(INDIRECT(\"c\" & (VLOOKUP(Switch!$D$26,$F$2:$G$44,2,FALSE)+ROW()-2))=Switch!$D$26,INDIRECT(\"a\" & (VLOOKUP(Switch!$D$26,$F$2:$G$44,2,FALSE)+ROW()-2)),\"\")","v":{"$error":"#N/A"}},{"$f":"IF(INDIRECT(\"c\" & (VLOOKUP(Switch!$D$27,$F$2:$G$44,2,FALSE)+ROW()-2))=Switch!$D$27,INDIRECT(\"a\" & (VLOOKUP(Switch!$D$27,$F$2:$G$44,2,FALSE)+ROW()-2)),\"\")","v":{"$error":"#N/A"}},{"$f":"IF(INDIRECT(\"c\" & (VLOOKUP(Switch!$D$28,$F$2:$G$44,2,FALSE)+ROW()-2))=Switch!$D$28,INDIRECT(\"a\" & (VLOOKUP(Switch!$D$28,$F$2:$G$44,2,FALSE)+ROW()-2)),\"\")","v":{"$error":"#N/A"}},{"$f":"IF(INDIRECT(\"c\" & (VLOOKUP(Switch!$D$29,$F$2:$G$44,2,FALSE)+ROW()-2))=Switch!$D$29,INDIRECT(\"a\" & (VLOOKUP(Switch!$D$29,$F$2:$G$44,2,FALSE)+ROW()-2)),\"\")","v":{"$error":"#N/A"}},{"$f":"IF(INDIRECT(\"c\" & (VLOOKUP(Switch!$D$30,$F$2:$G$44,2,FALSE)+ROW()-2))=Switch!$D$30,INDIRECT(\"a\" & (VLOOKUP(Switch!$D$30,$F$2:$G$44,2,FALSE)+ROW()-2)),\"\")","v":{"$error":"#N/A"}},{"$f":"IF(INDIRECT(\"c\" & (VLOOKUP(Switch!$D$31,$F$2:$G$44,2,FALSE)+ROW()-2))=Switch!$D$31,INDIRECT(\"a\" & (VLOOKUP(Switch!$D$31,$F$2:$G$44,2,FALSE)+ROW()-2)),\"\")","v":{"$error":"#N/A"}},{"$f":"IF(INDIRECT(\"c\" & (VLOOKUP(Switch!$D$32,$F$2:$G$44,2,FALSE)+ROW()-2))=Switch!$D$32,INDIRECT(\"a\" & (VLOOKUP(Switch!$D$32,$F$2:$G$44,2,FALSE)+ROW()-2)),\"\")","v":{"$error":"#N/A"}},{"$f":"IF(INDIRECT(\"c\" & (VLOOKUP(Switch!$D$33,$F$2:$G$44,2,FALSE)+ROW()-2))=Switch!$D$33,INDIRECT(\"a\" & (VLOOKUP(Switch!$D$33,$F$2:$G$44,2,FALSE)+ROW()-2)),\"\")","v":{"$error":"#N/A"}},{"$f":"IF(INDIRECT(\"c\" & (VLOOKUP(Switch!$D$34,$F$2:$G$44,2,FALSE)+ROW()-2))=Switch!$D$34,INDIRECT(\"a\" & (VLOOKUP(Switch!$D$34,$F$2:$G$44,2,FALSE)+ROW()-2)),\"\")","v":{"$error":"#N/A"}},{"$f":"IF(INDIRECT(\"c\" & (VLOOKUP(Switch!$D$35,$F$2:$G$44,2,FALSE)+ROW()-2))=Switch!$D$35,INDIRECT(\"a\" & (VLOOKUP(Switch!$D$35,$F$2:$G$44,2,FALSE)+ROW()-2)),\"\")","v":{"$error":"#N/A"}},{"$f":"IF(INDIRECT(\"c\" & (VLOOKUP(Switch!$D$36,$F$2:$G$44,2,FALSE)+ROW()-2))=Switch!$D$36,INDIRECT(\"a\" & (VLOOKUP(Switch!$D$36,$F$2:$G$44,2,FALSE)+ROW()-2)),\"\")","v":{"$error":"#N/A"}},{"$f":"IF(INDIRECT(\"c\" & (VLOOKUP(Switch!$D$37,$F$2:$G$44,2,FALSE)+ROW()-2))=Switch!$D$37,INDIRECT(\"a\" & (VLOOKUP(Switch!$D$37,$F$2:$G$44,2,FALSE)+ROW()-2)),\"\")","v":{"$error":"#N/A"}},{"$f":"IF(INDIRECT(\"c\" & (VLOOKUP(Switch!$D$38,$F$2:$G$44,2,FALSE)+ROW()-2))=Switch!$D$38,INDIRECT(\"a\" & (VLOOKUP(Switch!$D$38,$F$2:$G$44,2,FALSE)+ROW()-2)),\"\")","v":{"$error":"#N/A"}},{"$f":"IF(INDIRECT(\"c\" & (VLOOKUP(Switch!$D$39,$F$2:$G$44,2,FALSE)+ROW()-2))=Switch!$D$39,INDIRECT(\"a\" & (VLOOKUP(Switch!$D$39,$F$2:$G$44,2,FALSE)+ROW()-2)),\"\")","v":{"$error":"#N/A"}},{"$f":"IF(INDIRECT(\"c\" & (VLOOKUP(Switch!$D$40,$F$2:$G$44,2,FALSE)+ROW()-2))=Switch!$D$40,INDIRECT(\"a\" & (VLOOKUP(Switch!$D$40,$F$2:$G$44,2,FALSE)+ROW()-2)),\"\")","v":{"$error":"#N/A"}},{"$f":"IF(INDIRECT(\"c\" & (VLOOKUP(Switch!$D$52,$F$2:$G$44,2,FALSE)+ROW()-2))=Switch!$D$52,INDIRECT(\"a\" & (VLOOKUP(Switch!$D$52,$F$2:$G$44,2,FALSE)+ROW()-2)),\"\")","v":{"$error":"#N/A"}},{"$f":"IF(INDIRECT(\"c\" & (VLOOKUP(Switch!$D$53,$F$2:$G$44,2,FALSE)+ROW()-2))=Switch!$D$53,INDIRECT(\"a\" & (VLOOKUP(Switch!$D$53,$F$2:$G$44,2,FALSE)+ROW()-2)),\"\")","v":{"$error":"#N/A"}},{"$f":"IF(INDIRECT(\"c\" & (VLOOKUP(Switch!$D$54,$F$2:$G$44,2,FALSE)+ROW()-2))=Switch!$D$54,INDIRECT(\"a\" & (VLOOKUP(Switch!$D$54,$F$2:$G$44,2,FALSE)+ROW()-2)),\"\")","v":{"$error":"#N/A"}},{"$f":"IF(INDIRECT(\"c\" & (VLOOKUP(Switch!$D$55,$F$2:$G$44,2,FALSE)+ROW()-2))=Switch!$D$55,INDIRECT(\"a\" & (VLOOKUP(Switch!$D$55,$F$2:$G$44,2,FALSE)+ROW()-2)),\"\")","v":{"$error":"#N/A"}},{"$f":"IF(INDIRECT(\"c\" & (VLOOKUP(Switch!$D$56,$F$2:$G$44,2,FALSE)+ROW()-2))=Switch!$D$56,INDIRECT(\"a\" & (VLOOKUP(Switch!$D$56,$F$2:$G$44,2,FALSE)+ROW()-2)),\"\")","v":{"$error":"#N/A"}},{"$f":"IF(INDIRECT(\"c\" & (VLOOKUP(Switch!$D$57,$F$2:$G$44,2,FALSE)+ROW()-2))=Switch!$D$57,INDIRECT(\"a\" & (VLOOKUP(Switch!$D$57,$F$2:$G$44,2,FALSE)+ROW()-2)),\"\")","v":{"$error":"#N/A"}},{"$f":"IF(INDIRECT(\"c\" & (VLOOKUP(Switch!$D$58,$F$2:$G$44,2,FALSE)+ROW()-2))=Switch!$D$58,INDIRECT(\"a\" & (VLOOKUP(Switch!$D$58,$F$2:$G$44,2,FALSE)+ROW()-2)),\"\")","v":{"$error":"#N/A"}},{"$f":"IF(INDIRECT(\"c\" & (VLOOKUP(Switch!$D$59,$F$2:$G$44,2,FALSE)+ROW()-2))=Switch!$D$59,INDIRECT(\"a\" & (VLOOKUP(Switch!$D$59,$F$2:$G$44,2,FALSE)+ROW()-2)),\"\")","v":{"$error":"#N/A"}},{"$f":"IF(INDIRECT(\"c\" & (VLOOKUP(Switch!$D$60,$F$2:$G$44,2,FALSE)+ROW()-2))=Switch!$D$60,INDIRECT(\"a\" & (VLOOKUP(Switch!$D$60,$F$2:$G$44,2,FALSE)+ROW()-2)),\"\")","v":{"$error":"#N/A"}},{"$f":"IF(INDIRECT(\"c\" & (VLOOKUP(Switch!$D$61,$F$2:$G$44,2,FALSE)+ROW()-2))=Switch!$D$61,INDIRECT(\"a\" & (VLOOKUP(Switch!$D$61,$F$2:$G$44,2,FALSE)+ROW()-2)),\"\")","v":{"$error":"#N/A"}},{"$f":"IF(INDIRECT(\"c\" & (VLOOKUP(Switch!$D$62,$F$2:$G$44,2,FALSE)+ROW()-2))=Switch!$D$62,INDIRECT(\"a\" & (VLOOKUP(Switch!$D$62,$F$2:$G$44,2,FALSE)+ROW()-2)),\"\")","v":{"$error":"#N/A"}},{"$f":"IF(INDIRECT(\"c\" & (VLOOKUP(Switch!$D$63,$F$2:$G$44,2,FALSE)+ROW()-2))=Switch!$D$63,INDIRECT(\"a\" & (VLOOKUP(Switch!$D$63,$F$2:$G$44,2,FALSE)+ROW()-2)),\"\")","v":{"$error":"#N/A"}},{"$f":"IF(INDIRECT(\"c\" & (VLOOKUP(Switch!$D$64,$F$2:$G$44,2,FALSE)+ROW()-2))=Switch!$D$64,INDIRECT(\"a\" & (VLOOKUP(Switch!$D$64,$F$2:$G$44,2,FALSE)+ROW()-2)),\"\")","v":{"$error":"#N/A"}},{"$f":"IF(INDIRECT(\"c\" & (VLOOKUP(Switch!$D$65,$F$2:$G$44,2,FALSE)+ROW()-2))=Switch!$D$65,INDIRECT(\"a\" & (VLOOKUP(Switch!$D$65,$F$2:$G$44,2,FALSE)+ROW()-2)),\"\")","v":{"$error":"#N/A"}},{"$f":"IF(INDIRECT(\"c\" & (VLOOKUP(Switch!$D$66,$F$2:$G$44,2,FALSE)+ROW()-2))=Switch!$D$66,INDIRECT(\"a\" & (VLOOKUP(Switch!$D$66,$F$2:$G$44,2,FALSE)+ROW()-2)),\"\")","v":{"$error":"#N/A"}}]
["PortfolioMetrix BCI SA Property Fund A","PMPFA","Boutique Collective Investments (Pty) Ltd",{"$f":"ROW()","v":159},null,null,{"$f":"VLOOKUP(F159,$C$2:$D$637,2,FALSE)","v":{"$error":"#N/A"}},{"$f":"IF(INDIRECT(\"c\" & (VLOOKUP(Switch!$D$26,$F$2:$G$44,2,FALSE)+ROW()-2))=Switch!$D$26,INDIRECT(\"a\" & (VLOOKUP(Switch!$D$26,$F$2:$G$44,2,FALSE)+ROW()-2)),\"\")","v":{"$error":"#N/A"}},{"$f":"IF(INDIRECT(\"c\" & (VLOOKUP(Switch!$D$27,$F$2:$G$44,2,FALSE)+ROW()-2))=Switch!$D$27,INDIRECT(\"a\" & (VLOOKUP(Switch!$D$27,$F$2:$G$44,2,FALSE)+ROW()-2)),\"\")","v":{"$error":"#N/A"}},{"$f":"IF(INDIRECT(\"c\" & (VLOOKUP(Switch!$D$28,$F$2:$G$44,2,FALSE)+ROW()-2))=Switch!$D$28,INDIRECT(\"a\" & (VLOOKUP(Switch!$D$28,$F$2:$G$44,2,FALSE)+ROW()-2)),\"\")","v":{"$error":"#N/A"}},{"$f":"IF(INDIRECT(\"c\" & (VLOOKUP(Switch!$D$29,$F$2:$G$44,2,FALSE)+ROW()-2))=Switch!$D$29,INDIRECT(\"a\" & (VLOOKUP(Switch!$D$29,$F$2:$G$44,2,FALSE)+ROW()-2)),\"\")","v":{"$error":"#N/A"}},{"$f":"IF(INDIRECT(\"c\" & (VLOOKUP(Switch!$D$30,$F$2:$G$44,2,FALSE)+ROW()-2))=Switch!$D$30,INDIRECT(\"a\" & (VLOOKUP(Switch!$D$30,$F$2:$G$44,2,FALSE)+ROW()-2)),\"\")","v":{"$error":"#N/A"}},{"$f":"IF(INDIRECT(\"c\" & (VLOOKUP(Switch!$D$31,$F$2:$G$44,2,FALSE)+ROW()-2))=Switch!$D$31,INDIRECT(\"a\" & (VLOOKUP(Switch!$D$31,$F$2:$G$44,2,FALSE)+ROW()-2)),\"\")","v":{"$error":"#N/A"}},{"$f":"IF(INDIRECT(\"c\" & (VLOOKUP(Switch!$D$32,$F$2:$G$44,2,FALSE)+ROW()-2))=Switch!$D$32,INDIRECT(\"a\" & (VLOOKUP(Switch!$D$32,$F$2:$G$44,2,FALSE)+ROW()-2)),\"\")","v":{"$error":"#N/A"}},{"$f":"IF(INDIRECT(\"c\" & (VLOOKUP(Switch!$D$33,$F$2:$G$44,2,FALSE)+ROW()-2))=Switch!$D$33,INDIRECT(\"a\" & (VLOOKUP(Switch!$D$33,$F$2:$G$44,2,FALSE)+ROW()-2)),\"\")","v":{"$error":"#N/A"}},{"$f":"IF(INDIRECT(\"c\" & (VLOOKUP(Switch!$D$34,$F$2:$G$44,2,FALSE)+ROW()-2))=Switch!$D$34,INDIRECT(\"a\" & (VLOOKUP(Switch!$D$34,$F$2:$G$44,2,FALSE)+ROW()-2)),\"\")","v":{"$error":"#N/A"}},{"$f":"IF(INDIRECT(\"c\" & (VLOOKUP(Switch!$D$35,$F$2:$G$44,2,FALSE)+ROW()-2))=Switch!$D$35,INDIRECT(\"a\" & (VLOOKUP(Switch!$D$35,$F$2:$G$44,2,FALSE)+ROW()-2)),\"\")","v":{"$error":"#N/A"}},{"$f":"IF(INDIRECT(\"c\" & (VLOOKUP(Switch!$D$36,$F$2:$G$44,2,FALSE)+ROW()-2))=Switch!$D$36,INDIRECT(\"a\" & (VLOOKUP(Switch!$D$36,$F$2:$G$44,2,FALSE)+ROW()-2)),\"\")","v":{"$error":"#N/A"}},{"$f":"IF(INDIRECT(\"c\" & (VLOOKUP(Switch!$D$37,$F$2:$G$44,2,FALSE)+ROW()-2))=Switch!$D$37,INDIRECT(\"a\" & (VLOOKUP(Switch!$D$37,$F$2:$G$44,2,FALSE)+ROW()-2)),\"\")","v":{"$error":"#N/A"}},{"$f":"IF(INDIRECT(\"c\" & (VLOOKUP(Switch!$D$38,$F$2:$G$44,2,FALSE)+ROW()-2))=Switch!$D$38,INDIRECT(\"a\" & (VLOOKUP(Switch!$D$38,$F$2:$G$44,2,FALSE)+ROW()-2)),\"\")","v":{"$error":"#N/A"}},{"$f":"IF(INDIRECT(\"c\" & (VLOOKUP(Switch!$D$39,$F$2:$G$44,2,FALSE)+ROW()-2))=Switch!$D$39,INDIRECT(\"a\" & (VLOOKUP(Switch!$D$39,$F$2:$G$44,2,FALSE)+ROW()-2)),\"\")","v":{"$error":"#N/A"}},{"$f":"IF(INDIRECT(\"c\" & (VLOOKUP(Switch!$D$40,$F$2:$G$44,2,FALSE)+ROW()-2))=Switch!$D$40,INDIRECT(\"a\" & (VLOOKUP(Switch!$D$40,$F$2:$G$44,2,FALSE)+ROW()-2)),\"\")","v":{"$error":"#N/A"}},{"$f":"IF(INDIRECT(\"c\" & (VLOOKUP(Switch!$D$52,$F$2:$G$44,2,FALSE)+ROW()-2))=Switch!$D$52,INDIRECT(\"a\" & (VLOOKUP(Switch!$D$52,$F$2:$G$44,2,FALSE)+ROW()-2)),\"\")","v":{"$error":"#N/A"}},{"$f":"IF(INDIRECT(\"c\" & (VLOOKUP(Switch!$D$53,$F$2:$G$44,2,FALSE)+ROW()-2))=Switch!$D$53,INDIRECT(\"a\" & (VLOOKUP(Switch!$D$53,$F$2:$G$44,2,FALSE)+ROW()-2)),\"\")","v":{"$error":"#N/A"}},{"$f":"IF(INDIRECT(\"c\" & (VLOOKUP(Switch!$D$54,$F$2:$G$44,2,FALSE)+ROW()-2))=Switch!$D$54,INDIRECT(\"a\" & (VLOOKUP(Switch!$D$54,$F$2:$G$44,2,FALSE)+ROW()-2)),\"\")","v":{"$error":"#N/A"}},{"$f":"IF(INDIRECT(\"c\" & (VLOOKUP(Switch!$D$55,$F$2:$G$44,2,FALSE)+ROW()-2))=Switch!$D$55,INDIRECT(\"a\" & (VLOOKUP(Switch!$D$55,$F$2:$G$44,2,FALSE)+ROW()-2)),\"\")","v":{"$error":"#N/A"}},{"$f":"IF(INDIRECT(\"c\" & (VLOOKUP(Switch!$D$56,$F$2:$G$44,2,FALSE)+ROW()-2))=Switch!$D$56,INDIRECT(\"a\" & (VLOOKUP(Switch!$D$56,$F$2:$G$44,2,FALSE)+ROW()-2)),\"\")","v":{"$error":"#N/A"}},{"$f":"IF(INDIRECT(\"c\" & (VLOOKUP(Switch!$D$57,$F$2:$G$44,2,FALSE)+ROW()-2))=Switch!$D$57,INDIRECT(\"a\" & (VLOOKUP(Switch!$D$57,$F$2:$G$44,2,FALSE)+ROW()-2)),\"\")","v":{"$error":"#N/A"}},{"$f":"IF(INDIRECT(\"c\" & (VLOOKUP(Switch!$D$58,$F$2:$G$44,2,FALSE)+ROW()-2))=Switch!$D$58,INDIRECT(\"a\" & (VLOOKUP(Switch!$D$58,$F$2:$G$44,2,FALSE)+ROW()-2)),\"\")","v":{"$error":"#N/A"}},{"$f":"IF(INDIRECT(\"c\" & (VLOOKUP(Switch!$D$59,$F$2:$G$44,2,FALSE)+ROW()-2))=Switch!$D$59,INDIRECT(\"a\" & (VLOOKUP(Switch!$D$59,$F$2:$G$44,2,FALSE)+ROW()-2)),\"\")","v":{"$error":"#N/A"}},{"$f":"IF(INDIRECT(\"c\" & (VLOOKUP(Switch!$D$60,$F$2:$G$44,2,FALSE)+ROW()-2))=Switch!$D$60,INDIRECT(\"a\" & (VLOOKUP(Switch!$D$60,$F$2:$G$44,2,FALSE)+ROW()-2)),\"\")","v":{"$error":"#N/A"}},{"$f":"IF(INDIRECT(\"c\" & (VLOOKUP(Switch!$D$61,$F$2:$G$44,2,FALSE)+ROW()-2))=Switch!$D$61,INDIRECT(\"a\" & (VLOOKUP(Switch!$D$61,$F$2:$G$44,2,FALSE)+ROW()-2)),\"\")","v":{"$error":"#N/A"}},{"$f":"IF(INDIRECT(\"c\" & (VLOOKUP(Switch!$D$62,$F$2:$G$44,2,FALSE)+ROW()-2))=Switch!$D$62,INDIRECT(\"a\" & (VLOOKUP(Switch!$D$62,$F$2:$G$44,2,FALSE)+ROW()-2)),\"\")","v":{"$error":"#N/A"}},{"$f":"IF(INDIRECT(\"c\" & (VLOOKUP(Switch!$D$63,$F$2:$G$44,2,FALSE)+ROW()-2))=Switch!$D$63,INDIRECT(\"a\" & (VLOOKUP(Switch!$D$63,$F$2:$G$44,2,FALSE)+ROW()-2)),\"\")","v":{"$error":"#N/A"}},{"$f":"IF(INDIRECT(\"c\" & (VLOOKUP(Switch!$D$64,$F$2:$G$44,2,FALSE)+ROW()-2))=Switch!$D$64,INDIRECT(\"a\" & (VLOOKUP(Switch!$D$64,$F$2:$G$44,2,FALSE)+ROW()-2)),\"\")","v":{"$error":"#N/A"}},{"$f":"IF(INDIRECT(\"c\" & (VLOOKUP(Switch!$D$65,$F$2:$G$44,2,FALSE)+ROW()-2))=Switch!$D$65,INDIRECT(\"a\" & (VLOOKUP(Switch!$D$65,$F$2:$G$44,2,FALSE)+ROW()-2)),\"\")","v":{"$error":"#N/A"}},{"$f":"IF(INDIRECT(\"c\" & (VLOOKUP(Switch!$D$66,$F$2:$G$44,2,FALSE)+ROW()-2))=Switch!$D$66,INDIRECT(\"a\" & (VLOOKUP(Switch!$D$66,$F$2:$G$44,2,FALSE)+ROW()-2)),\"\")","v":{"$error":"#N/A"}}]
["Rebalance BCI Inflation Plus 3 Fund A","RBIP3","Boutique Collective Investments (Pty) Ltd",{"$f":"ROW()","v":160},null,null,{"$f":"VLOOKUP(F160,$C$2:$D$637,2,FALSE)","v":{"$error":"#N/A"}},{"$f":"IF(INDIRECT(\"c\" & (VLOOKUP(Switch!$D$26,$F$2:$G$44,2,FALSE)+ROW()-2))=Switch!$D$26,INDIRECT(\"a\" & (VLOOKUP(Switch!$D$26,$F$2:$G$44,2,FALSE)+ROW()-2)),\"\")","v":{"$error":"#N/A"}},{"$f":"IF(INDIRECT(\"c\" & (VLOOKUP(Switch!$D$27,$F$2:$G$44,2,FALSE)+ROW()-2))=Switch!$D$27,INDIRECT(\"a\" & (VLOOKUP(Switch!$D$27,$F$2:$G$44,2,FALSE)+ROW()-2)),\"\")","v":{"$error":"#N/A"}},{"$f":"IF(INDIRECT(\"c\" & (VLOOKUP(Switch!$D$28,$F$2:$G$44,2,FALSE)+ROW()-2))=Switch!$D$28,INDIRECT(\"a\" & (VLOOKUP(Switch!$D$28,$F$2:$G$44,2,FALSE)+ROW()-2)),\"\")","v":{"$error":"#N/A"}},{"$f":"IF(INDIRECT(\"c\" & (VLOOKUP(Switch!$D$29,$F$2:$G$44,2,FALSE)+ROW()-2))=Switch!$D$29,INDIRECT(\"a\" & (VLOOKUP(Switch!$D$29,$F$2:$G$44,2,FALSE)+ROW()-2)),\"\")","v":{"$error":"#N/A"}},{"$f":"IF(INDIRECT(\"c\" & (VLOOKUP(Switch!$D$30,$F$2:$G$44,2,FALSE)+ROW()-2))=Switch!$D$30,INDIRECT(\"a\" & (VLOOKUP(Switch!$D$30,$F$2:$G$44,2,FALSE)+ROW()-2)),\"\")","v":{"$error":"#N/A"}},{"$f":"IF(INDIRECT(\"c\" & (VLOOKUP(Switch!$D$31,$F$2:$G$44,2,FALSE)+ROW()-2))=Switch!$D$31,INDIRECT(\"a\" & (VLOOKUP(Switch!$D$31,$F$2:$G$44,2,FALSE)+ROW()-2)),\"\")","v":{"$error":"#N/A"}},{"$f":"IF(INDIRECT(\"c\" & (VLOOKUP(Switch!$D$32,$F$2:$G$44,2,FALSE)+ROW()-2))=Switch!$D$32,INDIRECT(\"a\" & (VLOOKUP(Switch!$D$32,$F$2:$G$44,2,FALSE)+ROW()-2)),\"\")","v":{"$error":"#N/A"}},{"$f":"IF(INDIRECT(\"c\" & (VLOOKUP(Switch!$D$33,$F$2:$G$44,2,FALSE)+ROW()-2))=Switch!$D$33,INDIRECT(\"a\" & (VLOOKUP(Switch!$D$33,$F$2:$G$44,2,FALSE)+ROW()-2)),\"\")","v":{"$error":"#N/A"}},{"$f":"IF(INDIRECT(\"c\" & (VLOOKUP(Switch!$D$34,$F$2:$G$44,2,FALSE)+ROW()-2))=Switch!$D$34,INDIRECT(\"a\" & (VLOOKUP(Switch!$D$34,$F$2:$G$44,2,FALSE)+ROW()-2)),\"\")","v":{"$error":"#N/A"}},{"$f":"IF(INDIRECT(\"c\" & (VLOOKUP(Switch!$D$35,$F$2:$G$44,2,FALSE)+ROW()-2))=Switch!$D$35,INDIRECT(\"a\" & (VLOOKUP(Switch!$D$35,$F$2:$G$44,2,FALSE)+ROW()-2)),\"\")","v":{"$error":"#N/A"}},{"$f":"IF(INDIRECT(\"c\" & (VLOOKUP(Switch!$D$36,$F$2:$G$44,2,FALSE)+ROW()-2))=Switch!$D$36,INDIRECT(\"a\" & (VLOOKUP(Switch!$D$36,$F$2:$G$44,2,FALSE)+ROW()-2)),\"\")","v":{"$error":"#N/A"}},{"$f":"IF(INDIRECT(\"c\" & (VLOOKUP(Switch!$D$37,$F$2:$G$44,2,FALSE)+ROW()-2))=Switch!$D$37,INDIRECT(\"a\" & (VLOOKUP(Switch!$D$37,$F$2:$G$44,2,FALSE)+ROW()-2)),\"\")","v":{"$error":"#N/A"}},{"$f":"IF(INDIRECT(\"c\" & (VLOOKUP(Switch!$D$38,$F$2:$G$44,2,FALSE)+ROW()-2))=Switch!$D$38,INDIRECT(\"a\" & (VLOOKUP(Switch!$D$38,$F$2:$G$44,2,FALSE)+ROW()-2)),\"\")","v":{"$error":"#N/A"}},{"$f":"IF(INDIRECT(\"c\" & (VLOOKUP(Switch!$D$39,$F$2:$G$44,2,FALSE)+ROW()-2))=Switch!$D$39,INDIRECT(\"a\" & (VLOOKUP(Switch!$D$39,$F$2:$G$44,2,FALSE)+ROW()-2)),\"\")","v":{"$error":"#N/A"}},{"$f":"IF(INDIRECT(\"c\" & (VLOOKUP(Switch!$D$40,$F$2:$G$44,2,FALSE)+ROW()-2))=Switch!$D$40,INDIRECT(\"a\" & (VLOOKUP(Switch!$D$40,$F$2:$G$44,2,FALSE)+ROW()-2)),\"\")","v":{"$error":"#N/A"}},{"$f":"IF(INDIRECT(\"c\" & (VLOOKUP(Switch!$D$52,$F$2:$G$44,2,FALSE)+ROW()-2))=Switch!$D$52,INDIRECT(\"a\" & (VLOOKUP(Switch!$D$52,$F$2:$G$44,2,FALSE)+ROW()-2)),\"\")","v":{"$error":"#N/A"}},{"$f":"IF(INDIRECT(\"c\" & (VLOOKUP(Switch!$D$53,$F$2:$G$44,2,FALSE)+ROW()-2))=Switch!$D$53,INDIRECT(\"a\" & (VLOOKUP(Switch!$D$53,$F$2:$G$44,2,FALSE)+ROW()-2)),\"\")","v":{"$error":"#N/A"}},{"$f":"IF(INDIRECT(\"c\" & (VLOOKUP(Switch!$D$54,$F$2:$G$44,2,FALSE)+ROW()-2))=Switch!$D$54,INDIRECT(\"a\" & (VLOOKUP(Switch!$D$54,$F$2:$G$44,2,FALSE)+ROW()-2)),\"\")","v":{"$error":"#N/A"}},{"$f":"IF(INDIRECT(\"c\" & (VLOOKUP(Switch!$D$55,$F$2:$G$44,2,FALSE)+ROW()-2))=Switch!$D$55,INDIRECT(\"a\" & (VLOOKUP(Switch!$D$55,$F$2:$G$44,2,FALSE)+ROW()-2)),\"\")","v":{"$error":"#N/A"}},{"$f":"IF(INDIRECT(\"c\" & (VLOOKUP(Switch!$D$56,$F$2:$G$44,2,FALSE)+ROW()-2))=Switch!$D$56,INDIRECT(\"a\" & (VLOOKUP(Switch!$D$56,$F$2:$G$44,2,FALSE)+ROW()-2)),\"\")","v":{"$error":"#N/A"}},{"$f":"IF(INDIRECT(\"c\" & (VLOOKUP(Switch!$D$57,$F$2:$G$44,2,FALSE)+ROW()-2))=Switch!$D$57,INDIRECT(\"a\" & (VLOOKUP(Switch!$D$57,$F$2:$G$44,2,FALSE)+ROW()-2)),\"\")","v":{"$error":"#N/A"}},{"$f":"IF(INDIRECT(\"c\" & (VLOOKUP(Switch!$D$58,$F$2:$G$44,2,FALSE)+ROW()-2))=Switch!$D$58,INDIRECT(\"a\" & (VLOOKUP(Switch!$D$58,$F$2:$G$44,2,FALSE)+ROW()-2)),\"\")","v":{"$error":"#N/A"}},{"$f":"IF(INDIRECT(\"c\" & (VLOOKUP(Switch!$D$59,$F$2:$G$44,2,FALSE)+ROW()-2))=Switch!$D$59,INDIRECT(\"a\" & (VLOOKUP(Switch!$D$59,$F$2:$G$44,2,FALSE)+ROW()-2)),\"\")","v":{"$error":"#N/A"}},{"$f":"IF(INDIRECT(\"c\" & (VLOOKUP(Switch!$D$60,$F$2:$G$44,2,FALSE)+ROW()-2))=Switch!$D$60,INDIRECT(\"a\" & (VLOOKUP(Switch!$D$60,$F$2:$G$44,2,FALSE)+ROW()-2)),\"\")","v":{"$error":"#N/A"}},{"$f":"IF(INDIRECT(\"c\" & (VLOOKUP(Switch!$D$61,$F$2:$G$44,2,FALSE)+ROW()-2))=Switch!$D$61,INDIRECT(\"a\" & (VLOOKUP(Switch!$D$61,$F$2:$G$44,2,FALSE)+ROW()-2)),\"\")","v":{"$error":"#N/A"}},{"$f":"IF(INDIRECT(\"c\" & (VLOOKUP(Switch!$D$62,$F$2:$G$44,2,FALSE)+ROW()-2))=Switch!$D$62,INDIRECT(\"a\" & (VLOOKUP(Switch!$D$62,$F$2:$G$44,2,FALSE)+ROW()-2)),\"\")","v":{"$error":"#N/A"}},{"$f":"IF(INDIRECT(\"c\" & (VLOOKUP(Switch!$D$63,$F$2:$G$44,2,FALSE)+ROW()-2))=Switch!$D$63,INDIRECT(\"a\" & (VLOOKUP(Switch!$D$63,$F$2:$G$44,2,FALSE)+ROW()-2)),\"\")","v":{"$error":"#N/A"}},{"$f":"IF(INDIRECT(\"c\" & (VLOOKUP(Switch!$D$64,$F$2:$G$44,2,FALSE)+ROW()-2))=Switch!$D$64,INDIRECT(\"a\" & (VLOOKUP(Switch!$D$64,$F$2:$G$44,2,FALSE)+ROW()-2)),\"\")","v":{"$error":"#N/A"}},{"$f":"IF(INDIRECT(\"c\" & (VLOOKUP(Switch!$D$65,$F$2:$G$44,2,FALSE)+ROW()-2))=Switch!$D$65,INDIRECT(\"a\" & (VLOOKUP(Switch!$D$65,$F$2:$G$44,2,FALSE)+ROW()-2)),\"\")","v":{"$error":"#N/A"}},{"$f":"IF(INDIRECT(\"c\" & (VLOOKUP(Switch!$D$66,$F$2:$G$44,2,FALSE)+ROW()-2))=Switch!$D$66,INDIRECT(\"a\" & (VLOOKUP(Switch!$D$66,$F$2:$G$44,2,FALSE)+ROW()-2)),\"\")","v":{"$error":"#N/A"}}]
["Rebalance BCI Inflation Plus 5 Fund A","RBIP5","Boutique Collective Investments (Pty) Ltd",{"$f":"ROW()","v":161},null,null,{"$f":"VLOOKUP(F161,$C$2:$D$637,2,FALSE)","v":{"$error":"#N/A"}},{"$f":"IF(INDIRECT(\"c\" & (VLOOKUP(Switch!$D$26,$F$2:$G$44,2,FALSE)+ROW()-2))=Switch!$D$26,INDIRECT(\"a\" & (VLOOKUP(Switch!$D$26,$F$2:$G$44,2,FALSE)+ROW()-2)),\"\")","v":{"$error":"#N/A"}},{"$f":"IF(INDIRECT(\"c\" & (VLOOKUP(Switch!$D$27,$F$2:$G$44,2,FALSE)+ROW()-2))=Switch!$D$27,INDIRECT(\"a\" & (VLOOKUP(Switch!$D$27,$F$2:$G$44,2,FALSE)+ROW()-2)),\"\")","v":{"$error":"#N/A"}},{"$f":"IF(INDIRECT(\"c\" & (VLOOKUP(Switch!$D$28,$F$2:$G$44,2,FALSE)+ROW()-2))=Switch!$D$28,INDIRECT(\"a\" & (VLOOKUP(Switch!$D$28,$F$2:$G$44,2,FALSE)+ROW()-2)),\"\")","v":{"$error":"#N/A"}},{"$f":"IF(INDIRECT(\"c\" & (VLOOKUP(Switch!$D$29,$F$2:$G$44,2,FALSE)+ROW()-2))=Switch!$D$29,INDIRECT(\"a\" & (VLOOKUP(Switch!$D$29,$F$2:$G$44,2,FALSE)+ROW()-2)),\"\")","v":{"$error":"#N/A"}},{"$f":"IF(INDIRECT(\"c\" & (VLOOKUP(Switch!$D$30,$F$2:$G$44,2,FALSE)+ROW()-2))=Switch!$D$30,INDIRECT(\"a\" & (VLOOKUP(Switch!$D$30,$F$2:$G$44,2,FALSE)+ROW()-2)),\"\")","v":{"$error":"#N/A"}},{"$f":"IF(INDIRECT(\"c\" & (VLOOKUP(Switch!$D$31,$F$2:$G$44,2,FALSE)+ROW()-2))=Switch!$D$31,INDIRECT(\"a\" & (VLOOKUP(Switch!$D$31,$F$2:$G$44,2,FALSE)+ROW()-2)),\"\")","v":{"$error":"#N/A"}},{"$f":"IF(INDIRECT(\"c\" & (VLOOKUP(Switch!$D$32,$F$2:$G$44,2,FALSE)+ROW()-2))=Switch!$D$32,INDIRECT(\"a\" & (VLOOKUP(Switch!$D$32,$F$2:$G$44,2,FALSE)+ROW()-2)),\"\")","v":{"$error":"#N/A"}},{"$f":"IF(INDIRECT(\"c\" & (VLOOKUP(Switch!$D$33,$F$2:$G$44,2,FALSE)+ROW()-2))=Switch!$D$33,INDIRECT(\"a\" & (VLOOKUP(Switch!$D$33,$F$2:$G$44,2,FALSE)+ROW()-2)),\"\")","v":{"$error":"#N/A"}},{"$f":"IF(INDIRECT(\"c\" & (VLOOKUP(Switch!$D$34,$F$2:$G$44,2,FALSE)+ROW()-2))=Switch!$D$34,INDIRECT(\"a\" & (VLOOKUP(Switch!$D$34,$F$2:$G$44,2,FALSE)+ROW()-2)),\"\")","v":{"$error":"#N/A"}},{"$f":"IF(INDIRECT(\"c\" & (VLOOKUP(Switch!$D$35,$F$2:$G$44,2,FALSE)+ROW()-2))=Switch!$D$35,INDIRECT(\"a\" & (VLOOKUP(Switch!$D$35,$F$2:$G$44,2,FALSE)+ROW()-2)),\"\")","v":{"$error":"#N/A"}},{"$f":"IF(INDIRECT(\"c\" & (VLOOKUP(Switch!$D$36,$F$2:$G$44,2,FALSE)+ROW()-2))=Switch!$D$36,INDIRECT(\"a\" & (VLOOKUP(Switch!$D$36,$F$2:$G$44,2,FALSE)+ROW()-2)),\"\")","v":{"$error":"#N/A"}},{"$f":"IF(INDIRECT(\"c\" & (VLOOKUP(Switch!$D$37,$F$2:$G$44,2,FALSE)+ROW()-2))=Switch!$D$37,INDIRECT(\"a\" & (VLOOKUP(Switch!$D$37,$F$2:$G$44,2,FALSE)+ROW()-2)),\"\")","v":{"$error":"#N/A"}},{"$f":"IF(INDIRECT(\"c\" & (VLOOKUP(Switch!$D$38,$F$2:$G$44,2,FALSE)+ROW()-2))=Switch!$D$38,INDIRECT(\"a\" & (VLOOKUP(Switch!$D$38,$F$2:$G$44,2,FALSE)+ROW()-2)),\"\")","v":{"$error":"#N/A"}},{"$f":"IF(INDIRECT(\"c\" & (VLOOKUP(Switch!$D$39,$F$2:$G$44,2,FALSE)+ROW()-2))=Switch!$D$39,INDIRECT(\"a\" & (VLOOKUP(Switch!$D$39,$F$2:$G$44,2,FALSE)+ROW()-2)),\"\")","v":{"$error":"#N/A"}},{"$f":"IF(INDIRECT(\"c\" & (VLOOKUP(Switch!$D$40,$F$2:$G$44,2,FALSE)+ROW()-2))=Switch!$D$40,INDIRECT(\"a\" & (VLOOKUP(Switch!$D$40,$F$2:$G$44,2,FALSE)+ROW()-2)),\"\")","v":{"$error":"#N/A"}},{"$f":"IF(INDIRECT(\"c\" & (VLOOKUP(Switch!$D$52,$F$2:$G$44,2,FALSE)+ROW()-2))=Switch!$D$52,INDIRECT(\"a\" & (VLOOKUP(Switch!$D$52,$F$2:$G$44,2,FALSE)+ROW()-2)),\"\")","v":{"$error":"#N/A"}},{"$f":"IF(INDIRECT(\"c\" & (VLOOKUP(Switch!$D$53,$F$2:$G$44,2,FALSE)+ROW()-2))=Switch!$D$53,INDIRECT(\"a\" & (VLOOKUP(Switch!$D$53,$F$2:$G$44,2,FALSE)+ROW()-2)),\"\")","v":{"$error":"#N/A"}},{"$f":"IF(INDIRECT(\"c\" & (VLOOKUP(Switch!$D$54,$F$2:$G$44,2,FALSE)+ROW()-2))=Switch!$D$54,INDIRECT(\"a\" & (VLOOKUP(Switch!$D$54,$F$2:$G$44,2,FALSE)+ROW()-2)),\"\")","v":{"$error":"#N/A"}},{"$f":"IF(INDIRECT(\"c\" & (VLOOKUP(Switch!$D$55,$F$2:$G$44,2,FALSE)+ROW()-2))=Switch!$D$55,INDIRECT(\"a\" & (VLOOKUP(Switch!$D$55,$F$2:$G$44,2,FALSE)+ROW()-2)),\"\")","v":{"$error":"#N/A"}},{"$f":"IF(INDIRECT(\"c\" & (VLOOKUP(Switch!$D$56,$F$2:$G$44,2,FALSE)+ROW()-2))=Switch!$D$56,INDIRECT(\"a\" & (VLOOKUP(Switch!$D$56,$F$2:$G$44,2,FALSE)+ROW()-2)),\"\")","v":{"$error":"#N/A"}},{"$f":"IF(INDIRECT(\"c\" & (VLOOKUP(Switch!$D$57,$F$2:$G$44,2,FALSE)+ROW()-2))=Switch!$D$57,INDIRECT(\"a\" & (VLOOKUP(Switch!$D$57,$F$2:$G$44,2,FALSE)+ROW()-2)),\"\")","v":{"$error":"#N/A"}},{"$f":"IF(INDIRECT(\"c\" & (VLOOKUP(Switch!$D$58,$F$2:$G$44,2,FALSE)+ROW()-2))=Switch!$D$58,INDIRECT(\"a\" & (VLOOKUP(Switch!$D$58,$F$2:$G$44,2,FALSE)+ROW()-2)),\"\")","v":{"$error":"#N/A"}},{"$f":"IF(INDIRECT(\"c\" & (VLOOKUP(Switch!$D$59,$F$2:$G$44,2,FALSE)+ROW()-2))=Switch!$D$59,INDIRECT(\"a\" & (VLOOKUP(Switch!$D$59,$F$2:$G$44,2,FALSE)+ROW()-2)),\"\")","v":{"$error":"#N/A"}},{"$f":"IF(INDIRECT(\"c\" & (VLOOKUP(Switch!$D$60,$F$2:$G$44,2,FALSE)+ROW()-2))=Switch!$D$60,INDIRECT(\"a\" & (VLOOKUP(Switch!$D$60,$F$2:$G$44,2,FALSE)+ROW()-2)),\"\")","v":{"$error":"#N/A"}},{"$f":"IF(INDIRECT(\"c\" & (VLOOKUP(Switch!$D$61,$F$2:$G$44,2,FALSE)+ROW()-2))=Switch!$D$61,INDIRECT(\"a\" & (VLOOKUP(Switch!$D$61,$F$2:$G$44,2,FALSE)+ROW()-2)),\"\")","v":{"$error":"#N/A"}},{"$f":"IF(INDIRECT(\"c\" & (VLOOKUP(Switch!$D$62,$F$2:$G$44,2,FALSE)+ROW()-2))=Switch!$D$62,INDIRECT(\"a\" & (VLOOKUP(Switch!$D$62,$F$2:$G$44,2,FALSE)+ROW()-2)),\"\")","v":{"$error":"#N/A"}},{"$f":"IF(INDIRECT(\"c\" & (VLOOKUP(Switch!$D$63,$F$2:$G$44,2,FALSE)+ROW()-2))=Switch!$D$63,INDIRECT(\"a\" & (VLOOKUP(Switch!$D$63,$F$2:$G$44,2,FALSE)+ROW()-2)),\"\")","v":{"$error":"#N/A"}},{"$f":"IF(INDIRECT(\"c\" & (VLOOKUP(Switch!$D$64,$F$2:$G$44,2,FALSE)+ROW()-2))=Switch!$D$64,INDIRECT(\"a\" & (VLOOKUP(Switch!$D$64,$F$2:$G$44,2,FALSE)+ROW()-2)),\"\")","v":{"$error":"#N/A"}},{"$f":"IF(INDIRECT(\"c\" & (VLOOKUP(Switch!$D$65,$F$2:$G$44,2,FALSE)+ROW()-2))=Switch!$D$65,INDIRECT(\"a\" & (VLOOKUP(Switch!$D$65,$F$2:$G$44,2,FALSE)+ROW()-2)),\"\")","v":{"$error":"#N/A"}},{"$f":"IF(INDIRECT(\"c\" & (VLOOKUP(Switch!$D$66,$F$2:$G$44,2,FALSE)+ROW()-2))=Switch!$D$66,INDIRECT(\"a\" & (VLOOKUP(Switch!$D$66,$F$2:$G$44,2,FALSE)+ROW()-2)),\"\")","v":{"$error":"#N/A"}}]
["Rebalance BCI Inflation Plus 7 Fund A","RBIP7","Boutique Collective Investments (Pty) Ltd",{"$f":"ROW()","v":162},null,null,{"$f":"VLOOKUP(F162,$C$2:$D$637,2,FALSE)","v":{"$error":"#N/A"}},{"$f":"IF(INDIRECT(\"c\" & (VLOOKUP(Switch!$D$26,$F$2:$G$44,2,FALSE)+ROW()-2))=Switch!$D$26,INDIRECT(\"a\" & (VLOOKUP(Switch!$D$26,$F$2:$G$44,2,FALSE)+ROW()-2)),\"\")","v":{"$error":"#N/A"}},{"$f":"IF(INDIRECT(\"c\" & (VLOOKUP(Switch!$D$27,$F$2:$G$44,2,FALSE)+ROW()-2))=Switch!$D$27,INDIRECT(\"a\" & (VLOOKUP(Switch!$D$27,$F$2:$G$44,2,FALSE)+ROW()-2)),\"\")","v":{"$error":"#N/A"}},{"$f":"IF(INDIRECT(\"c\" & (VLOOKUP(Switch!$D$28,$F$2:$G$44,2,FALSE)+ROW()-2))=Switch!$D$28,INDIRECT(\"a\" & (VLOOKUP(Switch!$D$28,$F$2:$G$44,2,FALSE)+ROW()-2)),\"\")","v":{"$error":"#N/A"}},{"$f":"IF(INDIRECT(\"c\" & (VLOOKUP(Switch!$D$29,$F$2:$G$44,2,FALSE)+ROW()-2))=Switch!$D$29,INDIRECT(\"a\" & (VLOOKUP(Switch!$D$29,$F$2:$G$44,2,FALSE)+ROW()-2)),\"\")","v":{"$error":"#N/A"}},{"$f":"IF(INDIRECT(\"c\" & (VLOOKUP(Switch!$D$30,$F$2:$G$44,2,FALSE)+ROW()-2))=Switch!$D$30,INDIRECT(\"a\" & (VLOOKUP(Switch!$D$30,$F$2:$G$44,2,FALSE)+ROW()-2)),\"\")","v":{"$error":"#N/A"}},{"$f":"IF(INDIRECT(\"c\" & (VLOOKUP(Switch!$D$31,$F$2:$G$44,2,FALSE)+ROW()-2))=Switch!$D$31,INDIRECT(\"a\" & (VLOOKUP(Switch!$D$31,$F$2:$G$44,2,FALSE)+ROW()-2)),\"\")","v":{"$error":"#N/A"}},{"$f":"IF(INDIRECT(\"c\" & (VLOOKUP(Switch!$D$32,$F$2:$G$44,2,FALSE)+ROW()-2))=Switch!$D$32,INDIRECT(\"a\" & (VLOOKUP(Switch!$D$32,$F$2:$G$44,2,FALSE)+ROW()-2)),\"\")","v":{"$error":"#N/A"}},{"$f":"IF(INDIRECT(\"c\" & (VLOOKUP(Switch!$D$33,$F$2:$G$44,2,FALSE)+ROW()-2))=Switch!$D$33,INDIRECT(\"a\" & (VLOOKUP(Switch!$D$33,$F$2:$G$44,2,FALSE)+ROW()-2)),\"\")","v":{"$error":"#N/A"}},{"$f":"IF(INDIRECT(\"c\" & (VLOOKUP(Switch!$D$34,$F$2:$G$44,2,FALSE)+ROW()-2))=Switch!$D$34,INDIRECT(\"a\" & (VLOOKUP(Switch!$D$34,$F$2:$G$44,2,FALSE)+ROW()-2)),\"\")","v":{"$error":"#N/A"}},{"$f":"IF(INDIRECT(\"c\" & (VLOOKUP(Switch!$D$35,$F$2:$G$44,2,FALSE)+ROW()-2))=Switch!$D$35,INDIRECT(\"a\" & (VLOOKUP(Switch!$D$35,$F$2:$G$44,2,FALSE)+ROW()-2)),\"\")","v":{"$error":"#N/A"}},{"$f":"IF(INDIRECT(\"c\" & (VLOOKUP(Switch!$D$36,$F$2:$G$44,2,FALSE)+ROW()-2))=Switch!$D$36,INDIRECT(\"a\" & (VLOOKUP(Switch!$D$36,$F$2:$G$44,2,FALSE)+ROW()-2)),\"\")","v":{"$error":"#N/A"}},{"$f":"IF(INDIRECT(\"c\" & (VLOOKUP(Switch!$D$37,$F$2:$G$44,2,FALSE)+ROW()-2))=Switch!$D$37,INDIRECT(\"a\" & (VLOOKUP(Switch!$D$37,$F$2:$G$44,2,FALSE)+ROW()-2)),\"\")","v":{"$error":"#N/A"}},{"$f":"IF(INDIRECT(\"c\" & (VLOOKUP(Switch!$D$38,$F$2:$G$44,2,FALSE)+ROW()-2))=Switch!$D$38,INDIRECT(\"a\" & (VLOOKUP(Switch!$D$38,$F$2:$G$44,2,FALSE)+ROW()-2)),\"\")","v":{"$error":"#N/A"}},{"$f":"IF(INDIRECT(\"c\" & (VLOOKUP(Switch!$D$39,$F$2:$G$44,2,FALSE)+ROW()-2))=Switch!$D$39,INDIRECT(\"a\" & (VLOOKUP(Switch!$D$39,$F$2:$G$44,2,FALSE)+ROW()-2)),\"\")","v":{"$error":"#N/A"}},{"$f":"IF(INDIRECT(\"c\" & (VLOOKUP(Switch!$D$40,$F$2:$G$44,2,FALSE)+ROW()-2))=Switch!$D$40,INDIRECT(\"a\" & (VLOOKUP(Switch!$D$40,$F$2:$G$44,2,FALSE)+ROW()-2)),\"\")","v":{"$error":"#N/A"}},{"$f":"IF(INDIRECT(\"c\" & (VLOOKUP(Switch!$D$52,$F$2:$G$44,2,FALSE)+ROW()-2))=Switch!$D$52,INDIRECT(\"a\" & (VLOOKUP(Switch!$D$52,$F$2:$G$44,2,FALSE)+ROW()-2)),\"\")","v":{"$error":"#N/A"}},{"$f":"IF(INDIRECT(\"c\" & (VLOOKUP(Switch!$D$53,$F$2:$G$44,2,FALSE)+ROW()-2))=Switch!$D$53,INDIRECT(\"a\" & (VLOOKUP(Switch!$D$53,$F$2:$G$44,2,FALSE)+ROW()-2)),\"\")","v":{"$error":"#N/A"}},{"$f":"IF(INDIRECT(\"c\" & (VLOOKUP(Switch!$D$54,$F$2:$G$44,2,FALSE)+ROW()-2))=Switch!$D$54,INDIRECT(\"a\" & (VLOOKUP(Switch!$D$54,$F$2:$G$44,2,FALSE)+ROW()-2)),\"\")","v":{"$error":"#N/A"}},{"$f":"IF(INDIRECT(\"c\" & (VLOOKUP(Switch!$D$55,$F$2:$G$44,2,FALSE)+ROW()-2))=Switch!$D$55,INDIRECT(\"a\" & (VLOOKUP(Switch!$D$55,$F$2:$G$44,2,FALSE)+ROW()-2)),\"\")","v":{"$error":"#N/A"}},{"$f":"IF(INDIRECT(\"c\" & (VLOOKUP(Switch!$D$56,$F$2:$G$44,2,FALSE)+ROW()-2))=Switch!$D$56,INDIRECT(\"a\" & (VLOOKUP(Switch!$D$56,$F$2:$G$44,2,FALSE)+ROW()-2)),\"\")","v":{"$error":"#N/A"}},{"$f":"IF(INDIRECT(\"c\" & (VLOOKUP(Switch!$D$57,$F$2:$G$44,2,FALSE)+ROW()-2))=Switch!$D$57,INDIRECT(\"a\" & (VLOOKUP(Switch!$D$57,$F$2:$G$44,2,FALSE)+ROW()-2)),\"\")","v":{"$error":"#N/A"}},{"$f":"IF(INDIRECT(\"c\" & (VLOOKUP(Switch!$D$58,$F$2:$G$44,2,FALSE)+ROW()-2))=Switch!$D$58,INDIRECT(\"a\" & (VLOOKUP(Switch!$D$58,$F$2:$G$44,2,FALSE)+ROW()-2)),\"\")","v":{"$error":"#N/A"}},{"$f":"IF(INDIRECT(\"c\" & (VLOOKUP(Switch!$D$59,$F$2:$G$44,2,FALSE)+ROW()-2))=Switch!$D$59,INDIRECT(\"a\" & (VLOOKUP(Switch!$D$59,$F$2:$G$44,2,FALSE)+ROW()-2)),\"\")","v":{"$error":"#N/A"}},{"$f":"IF(INDIRECT(\"c\" & (VLOOKUP(Switch!$D$60,$F$2:$G$44,2,FALSE)+ROW()-2))=Switch!$D$60,INDIRECT(\"a\" & (VLOOKUP(Switch!$D$60,$F$2:$G$44,2,FALSE)+ROW()-2)),\"\")","v":{"$error":"#N/A"}},{"$f":"IF(INDIRECT(\"c\" & (VLOOKUP(Switch!$D$61,$F$2:$G$44,2,FALSE)+ROW()-2))=Switch!$D$61,INDIRECT(\"a\" & (VLOOKUP(Switch!$D$61,$F$2:$G$44,2,FALSE)+ROW()-2)),\"\")","v":{"$error":"#N/A"}},{"$f":"IF(INDIRECT(\"c\" & (VLOOKUP(Switch!$D$62,$F$2:$G$44,2,FALSE)+ROW()-2))=Switch!$D$62,INDIRECT(\"a\" & (VLOOKUP(Switch!$D$62,$F$2:$G$44,2,FALSE)+ROW()-2)),\"\")","v":{"$error":"#N/A"}},{"$f":"IF(INDIRECT(\"c\" & (VLOOKUP(Switch!$D$63,$F$2:$G$44,2,FALSE)+ROW()-2))=Switch!$D$63,INDIRECT(\"a\" & (VLOOKUP(Switch!$D$63,$F$2:$G$44,2,FALSE)+ROW()-2)),\"\")","v":{"$error":"#N/A"}},{"$f":"IF(INDIRECT(\"c\" & (VLOOKUP(Switch!$D$64,$F$2:$G$44,2,FALSE)+ROW()-2))=Switch!$D$64,INDIRECT(\"a\" & (VLOOKUP(Switch!$D$64,$F$2:$G$44,2,FALSE)+ROW()-2)),\"\")","v":{"$error":"#N/A"}},{"$f":"IF(INDIRECT(\"c\" & (VLOOKUP(Switch!$D$65,$F$2:$G$44,2,FALSE)+ROW()-2))=Switch!$D$65,INDIRECT(\"a\" & (VLOOKUP(Switch!$D$65,$F$2:$G$44,2,FALSE)+ROW()-2)),\"\")","v":{"$error":"#N/A"}},{"$f":"IF(INDIRECT(\"c\" & (VLOOKUP(Switch!$D$66,$F$2:$G$44,2,FALSE)+ROW()-2))=Switch!$D$66,INDIRECT(\"a\" & (VLOOKUP(Switch!$D$66,$F$2:$G$44,2,FALSE)+ROW()-2)),\"\")","v":{"$error":"#N/A"}}]
["Reitway BCI Global Property Fund C","MGPC","Boutique Collective Investments (Pty) Ltd",{"$f":"ROW()","v":163},null,null,{"$f":"VLOOKUP(F163,$C$2:$D$637,2,FALSE)","v":{"$error":"#N/A"}},{"$f":"IF(INDIRECT(\"c\" & (VLOOKUP(Switch!$D$26,$F$2:$G$44,2,FALSE)+ROW()-2))=Switch!$D$26,INDIRECT(\"a\" & (VLOOKUP(Switch!$D$26,$F$2:$G$44,2,FALSE)+ROW()-2)),\"\")","v":{"$error":"#N/A"}},{"$f":"IF(INDIRECT(\"c\" & (VLOOKUP(Switch!$D$27,$F$2:$G$44,2,FALSE)+ROW()-2))=Switch!$D$27,INDIRECT(\"a\" & (VLOOKUP(Switch!$D$27,$F$2:$G$44,2,FALSE)+ROW()-2)),\"\")","v":{"$error":"#N/A"}},{"$f":"IF(INDIRECT(\"c\" & (VLOOKUP(Switch!$D$28,$F$2:$G$44,2,FALSE)+ROW()-2))=Switch!$D$28,INDIRECT(\"a\" & (VLOOKUP(Switch!$D$28,$F$2:$G$44,2,FALSE)+ROW()-2)),\"\")","v":{"$error":"#N/A"}},{"$f":"IF(INDIRECT(\"c\" & (VLOOKUP(Switch!$D$29,$F$2:$G$44,2,FALSE)+ROW()-2))=Switch!$D$29,INDIRECT(\"a\" & (VLOOKUP(Switch!$D$29,$F$2:$G$44,2,FALSE)+ROW()-2)),\"\")","v":{"$error":"#N/A"}},{"$f":"IF(INDIRECT(\"c\" & (VLOOKUP(Switch!$D$30,$F$2:$G$44,2,FALSE)+ROW()-2))=Switch!$D$30,INDIRECT(\"a\" & (VLOOKUP(Switch!$D$30,$F$2:$G$44,2,FALSE)+ROW()-2)),\"\")","v":{"$error":"#N/A"}},{"$f":"IF(INDIRECT(\"c\" & (VLOOKUP(Switch!$D$31,$F$2:$G$44,2,FALSE)+ROW()-2))=Switch!$D$31,INDIRECT(\"a\" & (VLOOKUP(Switch!$D$31,$F$2:$G$44,2,FALSE)+ROW()-2)),\"\")","v":{"$error":"#N/A"}},{"$f":"IF(INDIRECT(\"c\" & (VLOOKUP(Switch!$D$32,$F$2:$G$44,2,FALSE)+ROW()-2))=Switch!$D$32,INDIRECT(\"a\" & (VLOOKUP(Switch!$D$32,$F$2:$G$44,2,FALSE)+ROW()-2)),\"\")","v":{"$error":"#N/A"}},{"$f":"IF(INDIRECT(\"c\" & (VLOOKUP(Switch!$D$33,$F$2:$G$44,2,FALSE)+ROW()-2))=Switch!$D$33,INDIRECT(\"a\" & (VLOOKUP(Switch!$D$33,$F$2:$G$44,2,FALSE)+ROW()-2)),\"\")","v":{"$error":"#N/A"}},{"$f":"IF(INDIRECT(\"c\" & (VLOOKUP(Switch!$D$34,$F$2:$G$44,2,FALSE)+ROW()-2))=Switch!$D$34,INDIRECT(\"a\" & (VLOOKUP(Switch!$D$34,$F$2:$G$44,2,FALSE)+ROW()-2)),\"\")","v":{"$error":"#N/A"}},{"$f":"IF(INDIRECT(\"c\" & (VLOOKUP(Switch!$D$35,$F$2:$G$44,2,FALSE)+ROW()-2))=Switch!$D$35,INDIRECT(\"a\" & (VLOOKUP(Switch!$D$35,$F$2:$G$44,2,FALSE)+ROW()-2)),\"\")","v":{"$error":"#N/A"}},{"$f":"IF(INDIRECT(\"c\" & (VLOOKUP(Switch!$D$36,$F$2:$G$44,2,FALSE)+ROW()-2))=Switch!$D$36,INDIRECT(\"a\" & (VLOOKUP(Switch!$D$36,$F$2:$G$44,2,FALSE)+ROW()-2)),\"\")","v":{"$error":"#N/A"}},{"$f":"IF(INDIRECT(\"c\" & (VLOOKUP(Switch!$D$37,$F$2:$G$44,2,FALSE)+ROW()-2))=Switch!$D$37,INDIRECT(\"a\" & (VLOOKUP(Switch!$D$37,$F$2:$G$44,2,FALSE)+ROW()-2)),\"\")","v":{"$error":"#N/A"}},{"$f":"IF(INDIRECT(\"c\" & (VLOOKUP(Switch!$D$38,$F$2:$G$44,2,FALSE)+ROW()-2))=Switch!$D$38,INDIRECT(\"a\" & (VLOOKUP(Switch!$D$38,$F$2:$G$44,2,FALSE)+ROW()-2)),\"\")","v":{"$error":"#N/A"}},{"$f":"IF(INDIRECT(\"c\" & (VLOOKUP(Switch!$D$39,$F$2:$G$44,2,FALSE)+ROW()-2))=Switch!$D$39,INDIRECT(\"a\" & (VLOOKUP(Switch!$D$39,$F$2:$G$44,2,FALSE)+ROW()-2)),\"\")","v":{"$error":"#N/A"}},{"$f":"IF(INDIRECT(\"c\" & (VLOOKUP(Switch!$D$40,$F$2:$G$44,2,FALSE)+ROW()-2))=Switch!$D$40,INDIRECT(\"a\" & (VLOOKUP(Switch!$D$40,$F$2:$G$44,2,FALSE)+ROW()-2)),\"\")","v":{"$error":"#N/A"}},{"$f":"IF(INDIRECT(\"c\" & (VLOOKUP(Switch!$D$52,$F$2:$G$44,2,FALSE)+ROW()-2))=Switch!$D$52,INDIRECT(\"a\" & (VLOOKUP(Switch!$D$52,$F$2:$G$44,2,FALSE)+ROW()-2)),\"\")","v":{"$error":"#N/A"}},{"$f":"IF(INDIRECT(\"c\" & (VLOOKUP(Switch!$D$53,$F$2:$G$44,2,FALSE)+ROW()-2))=Switch!$D$53,INDIRECT(\"a\" & (VLOOKUP(Switch!$D$53,$F$2:$G$44,2,FALSE)+ROW()-2)),\"\")","v":{"$error":"#N/A"}},{"$f":"IF(INDIRECT(\"c\" & (VLOOKUP(Switch!$D$54,$F$2:$G$44,2,FALSE)+ROW()-2))=Switch!$D$54,INDIRECT(\"a\" & (VLOOKUP(Switch!$D$54,$F$2:$G$44,2,FALSE)+ROW()-2)),\"\")","v":{"$error":"#N/A"}},{"$f":"IF(INDIRECT(\"c\" & (VLOOKUP(Switch!$D$55,$F$2:$G$44,2,FALSE)+ROW()-2))=Switch!$D$55,INDIRECT(\"a\" & (VLOOKUP(Switch!$D$55,$F$2:$G$44,2,FALSE)+ROW()-2)),\"\")","v":{"$error":"#N/A"}},{"$f":"IF(INDIRECT(\"c\" & (VLOOKUP(Switch!$D$56,$F$2:$G$44,2,FALSE)+ROW()-2))=Switch!$D$56,INDIRECT(\"a\" & (VLOOKUP(Switch!$D$56,$F$2:$G$44,2,FALSE)+ROW()-2)),\"\")","v":{"$error":"#N/A"}},{"$f":"IF(INDIRECT(\"c\" & (VLOOKUP(Switch!$D$57,$F$2:$G$44,2,FALSE)+ROW()-2))=Switch!$D$57,INDIRECT(\"a\" & (VLOOKUP(Switch!$D$57,$F$2:$G$44,2,FALSE)+ROW()-2)),\"\")","v":{"$error":"#N/A"}},{"$f":"IF(INDIRECT(\"c\" & (VLOOKUP(Switch!$D$58,$F$2:$G$44,2,FALSE)+ROW()-2))=Switch!$D$58,INDIRECT(\"a\" & (VLOOKUP(Switch!$D$58,$F$2:$G$44,2,FALSE)+ROW()-2)),\"\")","v":{"$error":"#N/A"}},{"$f":"IF(INDIRECT(\"c\" & (VLOOKUP(Switch!$D$59,$F$2:$G$44,2,FALSE)+ROW()-2))=Switch!$D$59,INDIRECT(\"a\" & (VLOOKUP(Switch!$D$59,$F$2:$G$44,2,FALSE)+ROW()-2)),\"\")","v":{"$error":"#N/A"}},{"$f":"IF(INDIRECT(\"c\" & (VLOOKUP(Switch!$D$60,$F$2:$G$44,2,FALSE)+ROW()-2))=Switch!$D$60,INDIRECT(\"a\" & (VLOOKUP(Switch!$D$60,$F$2:$G$44,2,FALSE)+ROW()-2)),\"\")","v":{"$error":"#N/A"}},{"$f":"IF(INDIRECT(\"c\" & (VLOOKUP(Switch!$D$61,$F$2:$G$44,2,FALSE)+ROW()-2))=Switch!$D$61,INDIRECT(\"a\" & (VLOOKUP(Switch!$D$61,$F$2:$G$44,2,FALSE)+ROW()-2)),\"\")","v":{"$error":"#N/A"}},{"$f":"IF(INDIRECT(\"c\" & (VLOOKUP(Switch!$D$62,$F$2:$G$44,2,FALSE)+ROW()-2))=Switch!$D$62,INDIRECT(\"a\" & (VLOOKUP(Switch!$D$62,$F$2:$G$44,2,FALSE)+ROW()-2)),\"\")","v":{"$error":"#N/A"}},{"$f":"IF(INDIRECT(\"c\" & (VLOOKUP(Switch!$D$63,$F$2:$G$44,2,FALSE)+ROW()-2))=Switch!$D$63,INDIRECT(\"a\" & (VLOOKUP(Switch!$D$63,$F$2:$G$44,2,FALSE)+ROW()-2)),\"\")","v":{"$error":"#N/A"}},{"$f":"IF(INDIRECT(\"c\" & (VLOOKUP(Switch!$D$64,$F$2:$G$44,2,FALSE)+ROW()-2))=Switch!$D$64,INDIRECT(\"a\" & (VLOOKUP(Switch!$D$64,$F$2:$G$44,2,FALSE)+ROW()-2)),\"\")","v":{"$error":"#N/A"}},{"$f":"IF(INDIRECT(\"c\" & (VLOOKUP(Switch!$D$65,$F$2:$G$44,2,FALSE)+ROW()-2))=Switch!$D$65,INDIRECT(\"a\" & (VLOOKUP(Switch!$D$65,$F$2:$G$44,2,FALSE)+ROW()-2)),\"\")","v":{"$error":"#N/A"}},{"$f":"IF(INDIRECT(\"c\" & (VLOOKUP(Switch!$D$66,$F$2:$G$44,2,FALSE)+ROW()-2))=Switch!$D$66,INDIRECT(\"a\" & (VLOOKUP(Switch!$D$66,$F$2:$G$44,2,FALSE)+ROW()-2)),\"\")","v":{"$error":"#N/A"}}]
["SA Asset Management BCI Cautious Fund A","SACFA","Boutique Collective Investments (Pty) Ltd",{"$f":"ROW()","v":164},null,null,{"$f":"VLOOKUP(F164,$C$2:$D$637,2,FALSE)","v":{"$error":"#N/A"}},{"$f":"IF(INDIRECT(\"c\" & (VLOOKUP(Switch!$D$26,$F$2:$G$44,2,FALSE)+ROW()-2))=Switch!$D$26,INDIRECT(\"a\" & (VLOOKUP(Switch!$D$26,$F$2:$G$44,2,FALSE)+ROW()-2)),\"\")","v":{"$error":"#N/A"}},{"$f":"IF(INDIRECT(\"c\" & (VLOOKUP(Switch!$D$27,$F$2:$G$44,2,FALSE)+ROW()-2))=Switch!$D$27,INDIRECT(\"a\" & (VLOOKUP(Switch!$D$27,$F$2:$G$44,2,FALSE)+ROW()-2)),\"\")","v":{"$error":"#N/A"}},{"$f":"IF(INDIRECT(\"c\" & (VLOOKUP(Switch!$D$28,$F$2:$G$44,2,FALSE)+ROW()-2))=Switch!$D$28,INDIRECT(\"a\" & (VLOOKUP(Switch!$D$28,$F$2:$G$44,2,FALSE)+ROW()-2)),\"\")","v":{"$error":"#N/A"}},{"$f":"IF(INDIRECT(\"c\" & (VLOOKUP(Switch!$D$29,$F$2:$G$44,2,FALSE)+ROW()-2))=Switch!$D$29,INDIRECT(\"a\" & (VLOOKUP(Switch!$D$29,$F$2:$G$44,2,FALSE)+ROW()-2)),\"\")","v":{"$error":"#N/A"}},{"$f":"IF(INDIRECT(\"c\" & (VLOOKUP(Switch!$D$30,$F$2:$G$44,2,FALSE)+ROW()-2))=Switch!$D$30,INDIRECT(\"a\" & (VLOOKUP(Switch!$D$30,$F$2:$G$44,2,FALSE)+ROW()-2)),\"\")","v":{"$error":"#N/A"}},{"$f":"IF(INDIRECT(\"c\" & (VLOOKUP(Switch!$D$31,$F$2:$G$44,2,FALSE)+ROW()-2))=Switch!$D$31,INDIRECT(\"a\" & (VLOOKUP(Switch!$D$31,$F$2:$G$44,2,FALSE)+ROW()-2)),\"\")","v":{"$error":"#N/A"}},{"$f":"IF(INDIRECT(\"c\" & (VLOOKUP(Switch!$D$32,$F$2:$G$44,2,FALSE)+ROW()-2))=Switch!$D$32,INDIRECT(\"a\" & (VLOOKUP(Switch!$D$32,$F$2:$G$44,2,FALSE)+ROW()-2)),\"\")","v":{"$error":"#N/A"}},{"$f":"IF(INDIRECT(\"c\" & (VLOOKUP(Switch!$D$33,$F$2:$G$44,2,FALSE)+ROW()-2))=Switch!$D$33,INDIRECT(\"a\" & (VLOOKUP(Switch!$D$33,$F$2:$G$44,2,FALSE)+ROW()-2)),\"\")","v":{"$error":"#N/A"}},{"$f":"IF(INDIRECT(\"c\" & (VLOOKUP(Switch!$D$34,$F$2:$G$44,2,FALSE)+ROW()-2))=Switch!$D$34,INDIRECT(\"a\" & (VLOOKUP(Switch!$D$34,$F$2:$G$44,2,FALSE)+ROW()-2)),\"\")","v":{"$error":"#N/A"}},{"$f":"IF(INDIRECT(\"c\" & (VLOOKUP(Switch!$D$35,$F$2:$G$44,2,FALSE)+ROW()-2))=Switch!$D$35,INDIRECT(\"a\" & (VLOOKUP(Switch!$D$35,$F$2:$G$44,2,FALSE)+ROW()-2)),\"\")","v":{"$error":"#N/A"}},{"$f":"IF(INDIRECT(\"c\" & (VLOOKUP(Switch!$D$36,$F$2:$G$44,2,FALSE)+ROW()-2))=Switch!$D$36,INDIRECT(\"a\" & (VLOOKUP(Switch!$D$36,$F$2:$G$44,2,FALSE)+ROW()-2)),\"\")","v":{"$error":"#N/A"}},{"$f":"IF(INDIRECT(\"c\" & (VLOOKUP(Switch!$D$37,$F$2:$G$44,2,FALSE)+ROW()-2))=Switch!$D$37,INDIRECT(\"a\" & (VLOOKUP(Switch!$D$37,$F$2:$G$44,2,FALSE)+ROW()-2)),\"\")","v":{"$error":"#N/A"}},{"$f":"IF(INDIRECT(\"c\" & (VLOOKUP(Switch!$D$38,$F$2:$G$44,2,FALSE)+ROW()-2))=Switch!$D$38,INDIRECT(\"a\" & (VLOOKUP(Switch!$D$38,$F$2:$G$44,2,FALSE)+ROW()-2)),\"\")","v":{"$error":"#N/A"}},{"$f":"IF(INDIRECT(\"c\" & (VLOOKUP(Switch!$D$39,$F$2:$G$44,2,FALSE)+ROW()-2))=Switch!$D$39,INDIRECT(\"a\" & (VLOOKUP(Switch!$D$39,$F$2:$G$44,2,FALSE)+ROW()-2)),\"\")","v":{"$error":"#N/A"}},{"$f":"IF(INDIRECT(\"c\" & (VLOOKUP(Switch!$D$40,$F$2:$G$44,2,FALSE)+ROW()-2))=Switch!$D$40,INDIRECT(\"a\" & (VLOOKUP(Switch!$D$40,$F$2:$G$44,2,FALSE)+ROW()-2)),\"\")","v":{"$error":"#N/A"}},{"$f":"IF(INDIRECT(\"c\" & (VLOOKUP(Switch!$D$52,$F$2:$G$44,2,FALSE)+ROW()-2))=Switch!$D$52,INDIRECT(\"a\" & (VLOOKUP(Switch!$D$52,$F$2:$G$44,2,FALSE)+ROW()-2)),\"\")","v":{"$error":"#N/A"}},{"$f":"IF(INDIRECT(\"c\" & (VLOOKUP(Switch!$D$53,$F$2:$G$44,2,FALSE)+ROW()-2))=Switch!$D$53,INDIRECT(\"a\" & (VLOOKUP(Switch!$D$53,$F$2:$G$44,2,FALSE)+ROW()-2)),\"\")","v":{"$error":"#N/A"}},{"$f":"IF(INDIRECT(\"c\" & (VLOOKUP(Switch!$D$54,$F$2:$G$44,2,FALSE)+ROW()-2))=Switch!$D$54,INDIRECT(\"a\" & (VLOOKUP(Switch!$D$54,$F$2:$G$44,2,FALSE)+ROW()-2)),\"\")","v":{"$error":"#N/A"}},{"$f":"IF(INDIRECT(\"c\" & (VLOOKUP(Switch!$D$55,$F$2:$G$44,2,FALSE)+ROW()-2))=Switch!$D$55,INDIRECT(\"a\" & (VLOOKUP(Switch!$D$55,$F$2:$G$44,2,FALSE)+ROW()-2)),\"\")","v":{"$error":"#N/A"}},{"$f":"IF(INDIRECT(\"c\" & (VLOOKUP(Switch!$D$56,$F$2:$G$44,2,FALSE)+ROW()-2))=Switch!$D$56,INDIRECT(\"a\" & (VLOOKUP(Switch!$D$56,$F$2:$G$44,2,FALSE)+ROW()-2)),\"\")","v":{"$error":"#N/A"}},{"$f":"IF(INDIRECT(\"c\" & (VLOOKUP(Switch!$D$57,$F$2:$G$44,2,FALSE)+ROW()-2))=Switch!$D$57,INDIRECT(\"a\" & (VLOOKUP(Switch!$D$57,$F$2:$G$44,2,FALSE)+ROW()-2)),\"\")","v":{"$error":"#N/A"}},{"$f":"IF(INDIRECT(\"c\" & (VLOOKUP(Switch!$D$58,$F$2:$G$44,2,FALSE)+ROW()-2))=Switch!$D$58,INDIRECT(\"a\" & (VLOOKUP(Switch!$D$58,$F$2:$G$44,2,FALSE)+ROW()-2)),\"\")","v":{"$error":"#N/A"}},{"$f":"IF(INDIRECT(\"c\" & (VLOOKUP(Switch!$D$59,$F$2:$G$44,2,FALSE)+ROW()-2))=Switch!$D$59,INDIRECT(\"a\" & (VLOOKUP(Switch!$D$59,$F$2:$G$44,2,FALSE)+ROW()-2)),\"\")","v":{"$error":"#N/A"}},{"$f":"IF(INDIRECT(\"c\" & (VLOOKUP(Switch!$D$60,$F$2:$G$44,2,FALSE)+ROW()-2))=Switch!$D$60,INDIRECT(\"a\" & (VLOOKUP(Switch!$D$60,$F$2:$G$44,2,FALSE)+ROW()-2)),\"\")","v":{"$error":"#N/A"}},{"$f":"IF(INDIRECT(\"c\" & (VLOOKUP(Switch!$D$61,$F$2:$G$44,2,FALSE)+ROW()-2))=Switch!$D$61,INDIRECT(\"a\" & (VLOOKUP(Switch!$D$61,$F$2:$G$44,2,FALSE)+ROW()-2)),\"\")","v":{"$error":"#N/A"}},{"$f":"IF(INDIRECT(\"c\" & (VLOOKUP(Switch!$D$62,$F$2:$G$44,2,FALSE)+ROW()-2))=Switch!$D$62,INDIRECT(\"a\" & (VLOOKUP(Switch!$D$62,$F$2:$G$44,2,FALSE)+ROW()-2)),\"\")","v":{"$error":"#N/A"}},{"$f":"IF(INDIRECT(\"c\" & (VLOOKUP(Switch!$D$63,$F$2:$G$44,2,FALSE)+ROW()-2))=Switch!$D$63,INDIRECT(\"a\" & (VLOOKUP(Switch!$D$63,$F$2:$G$44,2,FALSE)+ROW()-2)),\"\")","v":{"$error":"#N/A"}},{"$f":"IF(INDIRECT(\"c\" & (VLOOKUP(Switch!$D$64,$F$2:$G$44,2,FALSE)+ROW()-2))=Switch!$D$64,INDIRECT(\"a\" & (VLOOKUP(Switch!$D$64,$F$2:$G$44,2,FALSE)+ROW()-2)),\"\")","v":{"$error":"#N/A"}},{"$f":"IF(INDIRECT(\"c\" & (VLOOKUP(Switch!$D$65,$F$2:$G$44,2,FALSE)+ROW()-2))=Switch!$D$65,INDIRECT(\"a\" & (VLOOKUP(Switch!$D$65,$F$2:$G$44,2,FALSE)+ROW()-2)),\"\")","v":{"$error":"#N/A"}},{"$f":"IF(INDIRECT(\"c\" & (VLOOKUP(Switch!$D$66,$F$2:$G$44,2,FALSE)+ROW()-2))=Switch!$D$66,INDIRECT(\"a\" & (VLOOKUP(Switch!$D$66,$F$2:$G$44,2,FALSE)+ROW()-2)),\"\")","v":{"$error":"#N/A"}}]
["SA Asset Management BCI Managed Fund A","SAMFA","Boutique Collective Investments (Pty) Ltd",{"$f":"ROW()","v":165},null,null,{"$f":"VLOOKUP(F165,$C$2:$D$637,2,FALSE)","v":{"$error":"#N/A"}},{"$f":"IF(INDIRECT(\"c\" & (VLOOKUP(Switch!$D$26,$F$2:$G$44,2,FALSE)+ROW()-2))=Switch!$D$26,INDIRECT(\"a\" & (VLOOKUP(Switch!$D$26,$F$2:$G$44,2,FALSE)+ROW()-2)),\"\")","v":{"$error":"#N/A"}},{"$f":"IF(INDIRECT(\"c\" & (VLOOKUP(Switch!$D$27,$F$2:$G$44,2,FALSE)+ROW()-2))=Switch!$D$27,INDIRECT(\"a\" & (VLOOKUP(Switch!$D$27,$F$2:$G$44,2,FALSE)+ROW()-2)),\"\")","v":{"$error":"#N/A"}},{"$f":"IF(INDIRECT(\"c\" & (VLOOKUP(Switch!$D$28,$F$2:$G$44,2,FALSE)+ROW()-2))=Switch!$D$28,INDIRECT(\"a\" & (VLOOKUP(Switch!$D$28,$F$2:$G$44,2,FALSE)+ROW()-2)),\"\")","v":{"$error":"#N/A"}},{"$f":"IF(INDIRECT(\"c\" & (VLOOKUP(Switch!$D$29,$F$2:$G$44,2,FALSE)+ROW()-2))=Switch!$D$29,INDIRECT(\"a\" & (VLOOKUP(Switch!$D$29,$F$2:$G$44,2,FALSE)+ROW()-2)),\"\")","v":{"$error":"#N/A"}},{"$f":"IF(INDIRECT(\"c\" & (VLOOKUP(Switch!$D$30,$F$2:$G$44,2,FALSE)+ROW()-2))=Switch!$D$30,INDIRECT(\"a\" & (VLOOKUP(Switch!$D$30,$F$2:$G$44,2,FALSE)+ROW()-2)),\"\")","v":{"$error":"#N/A"}},{"$f":"IF(INDIRECT(\"c\" & (VLOOKUP(Switch!$D$31,$F$2:$G$44,2,FALSE)+ROW()-2))=Switch!$D$31,INDIRECT(\"a\" & (VLOOKUP(Switch!$D$31,$F$2:$G$44,2,FALSE)+ROW()-2)),\"\")","v":{"$error":"#N/A"}},{"$f":"IF(INDIRECT(\"c\" & (VLOOKUP(Switch!$D$32,$F$2:$G$44,2,FALSE)+ROW()-2))=Switch!$D$32,INDIRECT(\"a\" & (VLOOKUP(Switch!$D$32,$F$2:$G$44,2,FALSE)+ROW()-2)),\"\")","v":{"$error":"#N/A"}},{"$f":"IF(INDIRECT(\"c\" & (VLOOKUP(Switch!$D$33,$F$2:$G$44,2,FALSE)+ROW()-2))=Switch!$D$33,INDIRECT(\"a\" & (VLOOKUP(Switch!$D$33,$F$2:$G$44,2,FALSE)+ROW()-2)),\"\")","v":{"$error":"#N/A"}},{"$f":"IF(INDIRECT(\"c\" & (VLOOKUP(Switch!$D$34,$F$2:$G$44,2,FALSE)+ROW()-2))=Switch!$D$34,INDIRECT(\"a\" & (VLOOKUP(Switch!$D$34,$F$2:$G$44,2,FALSE)+ROW()-2)),\"\")","v":{"$error":"#N/A"}},{"$f":"IF(INDIRECT(\"c\" & (VLOOKUP(Switch!$D$35,$F$2:$G$44,2,FALSE)+ROW()-2))=Switch!$D$35,INDIRECT(\"a\" & (VLOOKUP(Switch!$D$35,$F$2:$G$44,2,FALSE)+ROW()-2)),\"\")","v":{"$error":"#N/A"}},{"$f":"IF(INDIRECT(\"c\" & (VLOOKUP(Switch!$D$36,$F$2:$G$44,2,FALSE)+ROW()-2))=Switch!$D$36,INDIRECT(\"a\" & (VLOOKUP(Switch!$D$36,$F$2:$G$44,2,FALSE)+ROW()-2)),\"\")","v":{"$error":"#N/A"}},{"$f":"IF(INDIRECT(\"c\" & (VLOOKUP(Switch!$D$37,$F$2:$G$44,2,FALSE)+ROW()-2))=Switch!$D$37,INDIRECT(\"a\" & (VLOOKUP(Switch!$D$37,$F$2:$G$44,2,FALSE)+ROW()-2)),\"\")","v":{"$error":"#N/A"}},{"$f":"IF(INDIRECT(\"c\" & (VLOOKUP(Switch!$D$38,$F$2:$G$44,2,FALSE)+ROW()-2))=Switch!$D$38,INDIRECT(\"a\" & (VLOOKUP(Switch!$D$38,$F$2:$G$44,2,FALSE)+ROW()-2)),\"\")","v":{"$error":"#N/A"}},{"$f":"IF(INDIRECT(\"c\" & (VLOOKUP(Switch!$D$39,$F$2:$G$44,2,FALSE)+ROW()-2))=Switch!$D$39,INDIRECT(\"a\" & (VLOOKUP(Switch!$D$39,$F$2:$G$44,2,FALSE)+ROW()-2)),\"\")","v":{"$error":"#N/A"}},{"$f":"IF(INDIRECT(\"c\" & (VLOOKUP(Switch!$D$40,$F$2:$G$44,2,FALSE)+ROW()-2))=Switch!$D$40,INDIRECT(\"a\" & (VLOOKUP(Switch!$D$40,$F$2:$G$44,2,FALSE)+ROW()-2)),\"\")","v":{"$error":"#N/A"}},{"$f":"IF(INDIRECT(\"c\" & (VLOOKUP(Switch!$D$52,$F$2:$G$44,2,FALSE)+ROW()-2))=Switch!$D$52,INDIRECT(\"a\" & (VLOOKUP(Switch!$D$52,$F$2:$G$44,2,FALSE)+ROW()-2)),\"\")","v":{"$error":"#N/A"}},{"$f":"IF(INDIRECT(\"c\" & (VLOOKUP(Switch!$D$53,$F$2:$G$44,2,FALSE)+ROW()-2))=Switch!$D$53,INDIRECT(\"a\" & (VLOOKUP(Switch!$D$53,$F$2:$G$44,2,FALSE)+ROW()-2)),\"\")","v":{"$error":"#N/A"}},{"$f":"IF(INDIRECT(\"c\" & (VLOOKUP(Switch!$D$54,$F$2:$G$44,2,FALSE)+ROW()-2))=Switch!$D$54,INDIRECT(\"a\" & (VLOOKUP(Switch!$D$54,$F$2:$G$44,2,FALSE)+ROW()-2)),\"\")","v":{"$error":"#N/A"}},{"$f":"IF(INDIRECT(\"c\" & (VLOOKUP(Switch!$D$55,$F$2:$G$44,2,FALSE)+ROW()-2))=Switch!$D$55,INDIRECT(\"a\" & (VLOOKUP(Switch!$D$55,$F$2:$G$44,2,FALSE)+ROW()-2)),\"\")","v":{"$error":"#N/A"}},{"$f":"IF(INDIRECT(\"c\" & (VLOOKUP(Switch!$D$56,$F$2:$G$44,2,FALSE)+ROW()-2))=Switch!$D$56,INDIRECT(\"a\" & (VLOOKUP(Switch!$D$56,$F$2:$G$44,2,FALSE)+ROW()-2)),\"\")","v":{"$error":"#N/A"}},{"$f":"IF(INDIRECT(\"c\" & (VLOOKUP(Switch!$D$57,$F$2:$G$44,2,FALSE)+ROW()-2))=Switch!$D$57,INDIRECT(\"a\" & (VLOOKUP(Switch!$D$57,$F$2:$G$44,2,FALSE)+ROW()-2)),\"\")","v":{"$error":"#N/A"}},{"$f":"IF(INDIRECT(\"c\" & (VLOOKUP(Switch!$D$58,$F$2:$G$44,2,FALSE)+ROW()-2))=Switch!$D$58,INDIRECT(\"a\" & (VLOOKUP(Switch!$D$58,$F$2:$G$44,2,FALSE)+ROW()-2)),\"\")","v":{"$error":"#N/A"}},{"$f":"IF(INDIRECT(\"c\" & (VLOOKUP(Switch!$D$59,$F$2:$G$44,2,FALSE)+ROW()-2))=Switch!$D$59,INDIRECT(\"a\" & (VLOOKUP(Switch!$D$59,$F$2:$G$44,2,FALSE)+ROW()-2)),\"\")","v":{"$error":"#N/A"}},{"$f":"IF(INDIRECT(\"c\" & (VLOOKUP(Switch!$D$60,$F$2:$G$44,2,FALSE)+ROW()-2))=Switch!$D$60,INDIRECT(\"a\" & (VLOOKUP(Switch!$D$60,$F$2:$G$44,2,FALSE)+ROW()-2)),\"\")","v":{"$error":"#N/A"}},{"$f":"IF(INDIRECT(\"c\" & (VLOOKUP(Switch!$D$61,$F$2:$G$44,2,FALSE)+ROW()-2))=Switch!$D$61,INDIRECT(\"a\" & (VLOOKUP(Switch!$D$61,$F$2:$G$44,2,FALSE)+ROW()-2)),\"\")","v":{"$error":"#N/A"}},{"$f":"IF(INDIRECT(\"c\" & (VLOOKUP(Switch!$D$62,$F$2:$G$44,2,FALSE)+ROW()-2))=Switch!$D$62,INDIRECT(\"a\" & (VLOOKUP(Switch!$D$62,$F$2:$G$44,2,FALSE)+ROW()-2)),\"\")","v":{"$error":"#N/A"}},{"$f":"IF(INDIRECT(\"c\" & (VLOOKUP(Switch!$D$63,$F$2:$G$44,2,FALSE)+ROW()-2))=Switch!$D$63,INDIRECT(\"a\" & (VLOOKUP(Switch!$D$63,$F$2:$G$44,2,FALSE)+ROW()-2)),\"\")","v":{"$error":"#N/A"}},{"$f":"IF(INDIRECT(\"c\" & (VLOOKUP(Switch!$D$64,$F$2:$G$44,2,FALSE)+ROW()-2))=Switch!$D$64,INDIRECT(\"a\" & (VLOOKUP(Switch!$D$64,$F$2:$G$44,2,FALSE)+ROW()-2)),\"\")","v":{"$error":"#N/A"}},{"$f":"IF(INDIRECT(\"c\" & (VLOOKUP(Switch!$D$65,$F$2:$G$44,2,FALSE)+ROW()-2))=Switch!$D$65,INDIRECT(\"a\" & (VLOOKUP(Switch!$D$65,$F$2:$G$44,2,FALSE)+ROW()-2)),\"\")","v":{"$error":"#N/A"}},{"$f":"IF(INDIRECT(\"c\" & (VLOOKUP(Switch!$D$66,$F$2:$G$44,2,FALSE)+ROW()-2))=Switch!$D$66,INDIRECT(\"a\" & (VLOOKUP(Switch!$D$66,$F$2:$G$44,2,FALSE)+ROW()-2)),\"\")","v":{"$error":"#N/A"}}]
["SA Asset Management BCI Moderate Fund A","SABFA","Boutique Collective Investments (Pty) Ltd",{"$f":"ROW()","v":166},null,null,{"$f":"VLOOKUP(F166,$C$2:$D$637,2,FALSE)","v":{"$error":"#N/A"}},{"$f":"IF(INDIRECT(\"c\" & (VLOOKUP(Switch!$D$26,$F$2:$G$44,2,FALSE)+ROW()-2))=Switch!$D$26,INDIRECT(\"a\" & (VLOOKUP(Switch!$D$26,$F$2:$G$44,2,FALSE)+ROW()-2)),\"\")","v":{"$error":"#N/A"}},{"$f":"IF(INDIRECT(\"c\" & (VLOOKUP(Switch!$D$27,$F$2:$G$44,2,FALSE)+ROW()-2))=Switch!$D$27,INDIRECT(\"a\" & (VLOOKUP(Switch!$D$27,$F$2:$G$44,2,FALSE)+ROW()-2)),\"\")","v":{"$error":"#N/A"}},{"$f":"IF(INDIRECT(\"c\" & (VLOOKUP(Switch!$D$28,$F$2:$G$44,2,FALSE)+ROW()-2))=Switch!$D$28,INDIRECT(\"a\" & (VLOOKUP(Switch!$D$28,$F$2:$G$44,2,FALSE)+ROW()-2)),\"\")","v":{"$error":"#N/A"}},{"$f":"IF(INDIRECT(\"c\" & (VLOOKUP(Switch!$D$29,$F$2:$G$44,2,FALSE)+ROW()-2))=Switch!$D$29,INDIRECT(\"a\" & (VLOOKUP(Switch!$D$29,$F$2:$G$44,2,FALSE)+ROW()-2)),\"\")","v":{"$error":"#N/A"}},{"$f":"IF(INDIRECT(\"c\" & (VLOOKUP(Switch!$D$30,$F$2:$G$44,2,FALSE)+ROW()-2))=Switch!$D$30,INDIRECT(\"a\" & (VLOOKUP(Switch!$D$30,$F$2:$G$44,2,FALSE)+ROW()-2)),\"\")","v":{"$error":"#N/A"}},{"$f":"IF(INDIRECT(\"c\" & (VLOOKUP(Switch!$D$31,$F$2:$G$44,2,FALSE)+ROW()-2))=Switch!$D$31,INDIRECT(\"a\" & (VLOOKUP(Switch!$D$31,$F$2:$G$44,2,FALSE)+ROW()-2)),\"\")","v":{"$error":"#N/A"}},{"$f":"IF(INDIRECT(\"c\" & (VLOOKUP(Switch!$D$32,$F$2:$G$44,2,FALSE)+ROW()-2))=Switch!$D$32,INDIRECT(\"a\" & (VLOOKUP(Switch!$D$32,$F$2:$G$44,2,FALSE)+ROW()-2)),\"\")","v":{"$error":"#N/A"}},{"$f":"IF(INDIRECT(\"c\" & (VLOOKUP(Switch!$D$33,$F$2:$G$44,2,FALSE)+ROW()-2))=Switch!$D$33,INDIRECT(\"a\" & (VLOOKUP(Switch!$D$33,$F$2:$G$44,2,FALSE)+ROW()-2)),\"\")","v":{"$error":"#N/A"}},{"$f":"IF(INDIRECT(\"c\" & (VLOOKUP(Switch!$D$34,$F$2:$G$44,2,FALSE)+ROW()-2))=Switch!$D$34,INDIRECT(\"a\" & (VLOOKUP(Switch!$D$34,$F$2:$G$44,2,FALSE)+ROW()-2)),\"\")","v":{"$error":"#N/A"}},{"$f":"IF(INDIRECT(\"c\" & (VLOOKUP(Switch!$D$35,$F$2:$G$44,2,FALSE)+ROW()-2))=Switch!$D$35,INDIRECT(\"a\" & (VLOOKUP(Switch!$D$35,$F$2:$G$44,2,FALSE)+ROW()-2)),\"\")","v":{"$error":"#N/A"}},{"$f":"IF(INDIRECT(\"c\" & (VLOOKUP(Switch!$D$36,$F$2:$G$44,2,FALSE)+ROW()-2))=Switch!$D$36,INDIRECT(\"a\" & (VLOOKUP(Switch!$D$36,$F$2:$G$44,2,FALSE)+ROW()-2)),\"\")","v":{"$error":"#N/A"}},{"$f":"IF(INDIRECT(\"c\" & (VLOOKUP(Switch!$D$37,$F$2:$G$44,2,FALSE)+ROW()-2))=Switch!$D$37,INDIRECT(\"a\" & (VLOOKUP(Switch!$D$37,$F$2:$G$44,2,FALSE)+ROW()-2)),\"\")","v":{"$error":"#N/A"}},{"$f":"IF(INDIRECT(\"c\" & (VLOOKUP(Switch!$D$38,$F$2:$G$44,2,FALSE)+ROW()-2))=Switch!$D$38,INDIRECT(\"a\" & (VLOOKUP(Switch!$D$38,$F$2:$G$44,2,FALSE)+ROW()-2)),\"\")","v":{"$error":"#N/A"}},{"$f":"IF(INDIRECT(\"c\" & (VLOOKUP(Switch!$D$39,$F$2:$G$44,2,FALSE)+ROW()-2))=Switch!$D$39,INDIRECT(\"a\" & (VLOOKUP(Switch!$D$39,$F$2:$G$44,2,FALSE)+ROW()-2)),\"\")","v":{"$error":"#N/A"}},{"$f":"IF(INDIRECT(\"c\" & (VLOOKUP(Switch!$D$40,$F$2:$G$44,2,FALSE)+ROW()-2))=Switch!$D$40,INDIRECT(\"a\" & (VLOOKUP(Switch!$D$40,$F$2:$G$44,2,FALSE)+ROW()-2)),\"\")","v":{"$error":"#N/A"}},{"$f":"IF(INDIRECT(\"c\" & (VLOOKUP(Switch!$D$52,$F$2:$G$44,2,FALSE)+ROW()-2))=Switch!$D$52,INDIRECT(\"a\" & (VLOOKUP(Switch!$D$52,$F$2:$G$44,2,FALSE)+ROW()-2)),\"\")","v":{"$error":"#N/A"}},{"$f":"IF(INDIRECT(\"c\" & (VLOOKUP(Switch!$D$53,$F$2:$G$44,2,FALSE)+ROW()-2))=Switch!$D$53,INDIRECT(\"a\" & (VLOOKUP(Switch!$D$53,$F$2:$G$44,2,FALSE)+ROW()-2)),\"\")","v":{"$error":"#N/A"}},{"$f":"IF(INDIRECT(\"c\" & (VLOOKUP(Switch!$D$54,$F$2:$G$44,2,FALSE)+ROW()-2))=Switch!$D$54,INDIRECT(\"a\" & (VLOOKUP(Switch!$D$54,$F$2:$G$44,2,FALSE)+ROW()-2)),\"\")","v":{"$error":"#N/A"}},{"$f":"IF(INDIRECT(\"c\" & (VLOOKUP(Switch!$D$55,$F$2:$G$44,2,FALSE)+ROW()-2))=Switch!$D$55,INDIRECT(\"a\" & (VLOOKUP(Switch!$D$55,$F$2:$G$44,2,FALSE)+ROW()-2)),\"\")","v":{"$error":"#N/A"}},{"$f":"IF(INDIRECT(\"c\" & (VLOOKUP(Switch!$D$56,$F$2:$G$44,2,FALSE)+ROW()-2))=Switch!$D$56,INDIRECT(\"a\" & (VLOOKUP(Switch!$D$56,$F$2:$G$44,2,FALSE)+ROW()-2)),\"\")","v":{"$error":"#N/A"}},{"$f":"IF(INDIRECT(\"c\" & (VLOOKUP(Switch!$D$57,$F$2:$G$44,2,FALSE)+ROW()-2))=Switch!$D$57,INDIRECT(\"a\" & (VLOOKUP(Switch!$D$57,$F$2:$G$44,2,FALSE)+ROW()-2)),\"\")","v":{"$error":"#N/A"}},{"$f":"IF(INDIRECT(\"c\" & (VLOOKUP(Switch!$D$58,$F$2:$G$44,2,FALSE)+ROW()-2))=Switch!$D$58,INDIRECT(\"a\" & (VLOOKUP(Switch!$D$58,$F$2:$G$44,2,FALSE)+ROW()-2)),\"\")","v":{"$error":"#N/A"}},{"$f":"IF(INDIRECT(\"c\" & (VLOOKUP(Switch!$D$59,$F$2:$G$44,2,FALSE)+ROW()-2))=Switch!$D$59,INDIRECT(\"a\" & (VLOOKUP(Switch!$D$59,$F$2:$G$44,2,FALSE)+ROW()-2)),\"\")","v":{"$error":"#N/A"}},{"$f":"IF(INDIRECT(\"c\" & (VLOOKUP(Switch!$D$60,$F$2:$G$44,2,FALSE)+ROW()-2))=Switch!$D$60,INDIRECT(\"a\" & (VLOOKUP(Switch!$D$60,$F$2:$G$44,2,FALSE)+ROW()-2)),\"\")","v":{"$error":"#N/A"}},{"$f":"IF(INDIRECT(\"c\" & (VLOOKUP(Switch!$D$61,$F$2:$G$44,2,FALSE)+ROW()-2))=Switch!$D$61,INDIRECT(\"a\" & (VLOOKUP(Switch!$D$61,$F$2:$G$44,2,FALSE)+ROW()-2)),\"\")","v":{"$error":"#N/A"}},{"$f":"IF(INDIRECT(\"c\" & (VLOOKUP(Switch!$D$62,$F$2:$G$44,2,FALSE)+ROW()-2))=Switch!$D$62,INDIRECT(\"a\" & (VLOOKUP(Switch!$D$62,$F$2:$G$44,2,FALSE)+ROW()-2)),\"\")","v":{"$error":"#N/A"}},{"$f":"IF(INDIRECT(\"c\" & (VLOOKUP(Switch!$D$63,$F$2:$G$44,2,FALSE)+ROW()-2))=Switch!$D$63,INDIRECT(\"a\" & (VLOOKUP(Switch!$D$63,$F$2:$G$44,2,FALSE)+ROW()-2)),\"\")","v":{"$error":"#N/A"}},{"$f":"IF(INDIRECT(\"c\" & (VLOOKUP(Switch!$D$64,$F$2:$G$44,2,FALSE)+ROW()-2))=Switch!$D$64,INDIRECT(\"a\" & (VLOOKUP(Switch!$D$64,$F$2:$G$44,2,FALSE)+ROW()-2)),\"\")","v":{"$error":"#N/A"}},{"$f":"IF(INDIRECT(\"c\" & (VLOOKUP(Switch!$D$65,$F$2:$G$44,2,FALSE)+ROW()-2))=Switch!$D$65,INDIRECT(\"a\" & (VLOOKUP(Switch!$D$65,$F$2:$G$44,2,FALSE)+ROW()-2)),\"\")","v":{"$error":"#N/A"}},{"$f":"IF(INDIRECT(\"c\" & (VLOOKUP(Switch!$D$66,$F$2:$G$44,2,FALSE)+ROW()-2))=Switch!$D$66,INDIRECT(\"a\" & (VLOOKUP(Switch!$D$66,$F$2:$G$44,2,FALSE)+ROW()-2)),\"\")","v":{"$error":"#N/A"}}]
["Sasfin BCI Balanced Fund A","SMBFCA","Boutique Collective Investments (Pty) Ltd",{"$f":"ROW()","v":167},null,null,{"$f":"VLOOKUP(F167,$C$2:$D$637,2,FALSE)","v":{"$error":"#N/A"}},{"$f":"IF(INDIRECT(\"c\" & (VLOOKUP(Switch!$D$26,$F$2:$G$44,2,FALSE)+ROW()-2))=Switch!$D$26,INDIRECT(\"a\" & (VLOOKUP(Switch!$D$26,$F$2:$G$44,2,FALSE)+ROW()-2)),\"\")","v":{"$error":"#N/A"}},{"$f":"IF(INDIRECT(\"c\" & (VLOOKUP(Switch!$D$27,$F$2:$G$44,2,FALSE)+ROW()-2))=Switch!$D$27,INDIRECT(\"a\" & (VLOOKUP(Switch!$D$27,$F$2:$G$44,2,FALSE)+ROW()-2)),\"\")","v":{"$error":"#N/A"}},{"$f":"IF(INDIRECT(\"c\" & (VLOOKUP(Switch!$D$28,$F$2:$G$44,2,FALSE)+ROW()-2))=Switch!$D$28,INDIRECT(\"a\" & (VLOOKUP(Switch!$D$28,$F$2:$G$44,2,FALSE)+ROW()-2)),\"\")","v":{"$error":"#N/A"}},{"$f":"IF(INDIRECT(\"c\" & (VLOOKUP(Switch!$D$29,$F$2:$G$44,2,FALSE)+ROW()-2))=Switch!$D$29,INDIRECT(\"a\" & (VLOOKUP(Switch!$D$29,$F$2:$G$44,2,FALSE)+ROW()-2)),\"\")","v":{"$error":"#N/A"}},{"$f":"IF(INDIRECT(\"c\" & (VLOOKUP(Switch!$D$30,$F$2:$G$44,2,FALSE)+ROW()-2))=Switch!$D$30,INDIRECT(\"a\" & (VLOOKUP(Switch!$D$30,$F$2:$G$44,2,FALSE)+ROW()-2)),\"\")","v":{"$error":"#N/A"}},{"$f":"IF(INDIRECT(\"c\" & (VLOOKUP(Switch!$D$31,$F$2:$G$44,2,FALSE)+ROW()-2))=Switch!$D$31,INDIRECT(\"a\" & (VLOOKUP(Switch!$D$31,$F$2:$G$44,2,FALSE)+ROW()-2)),\"\")","v":{"$error":"#N/A"}},{"$f":"IF(INDIRECT(\"c\" & (VLOOKUP(Switch!$D$32,$F$2:$G$44,2,FALSE)+ROW()-2))=Switch!$D$32,INDIRECT(\"a\" & (VLOOKUP(Switch!$D$32,$F$2:$G$44,2,FALSE)+ROW()-2)),\"\")","v":{"$error":"#N/A"}},{"$f":"IF(INDIRECT(\"c\" & (VLOOKUP(Switch!$D$33,$F$2:$G$44,2,FALSE)+ROW()-2))=Switch!$D$33,INDIRECT(\"a\" & (VLOOKUP(Switch!$D$33,$F$2:$G$44,2,FALSE)+ROW()-2)),\"\")","v":{"$error":"#N/A"}},{"$f":"IF(INDIRECT(\"c\" & (VLOOKUP(Switch!$D$34,$F$2:$G$44,2,FALSE)+ROW()-2))=Switch!$D$34,INDIRECT(\"a\" & (VLOOKUP(Switch!$D$34,$F$2:$G$44,2,FALSE)+ROW()-2)),\"\")","v":{"$error":"#N/A"}},{"$f":"IF(INDIRECT(\"c\" & (VLOOKUP(Switch!$D$35,$F$2:$G$44,2,FALSE)+ROW()-2))=Switch!$D$35,INDIRECT(\"a\" & (VLOOKUP(Switch!$D$35,$F$2:$G$44,2,FALSE)+ROW()-2)),\"\")","v":{"$error":"#N/A"}},{"$f":"IF(INDIRECT(\"c\" & (VLOOKUP(Switch!$D$36,$F$2:$G$44,2,FALSE)+ROW()-2))=Switch!$D$36,INDIRECT(\"a\" & (VLOOKUP(Switch!$D$36,$F$2:$G$44,2,FALSE)+ROW()-2)),\"\")","v":{"$error":"#N/A"}},{"$f":"IF(INDIRECT(\"c\" & (VLOOKUP(Switch!$D$37,$F$2:$G$44,2,FALSE)+ROW()-2))=Switch!$D$37,INDIRECT(\"a\" & (VLOOKUP(Switch!$D$37,$F$2:$G$44,2,FALSE)+ROW()-2)),\"\")","v":{"$error":"#N/A"}},{"$f":"IF(INDIRECT(\"c\" & (VLOOKUP(Switch!$D$38,$F$2:$G$44,2,FALSE)+ROW()-2))=Switch!$D$38,INDIRECT(\"a\" & (VLOOKUP(Switch!$D$38,$F$2:$G$44,2,FALSE)+ROW()-2)),\"\")","v":{"$error":"#N/A"}},{"$f":"IF(INDIRECT(\"c\" & (VLOOKUP(Switch!$D$39,$F$2:$G$44,2,FALSE)+ROW()-2))=Switch!$D$39,INDIRECT(\"a\" & (VLOOKUP(Switch!$D$39,$F$2:$G$44,2,FALSE)+ROW()-2)),\"\")","v":{"$error":"#N/A"}},{"$f":"IF(INDIRECT(\"c\" & (VLOOKUP(Switch!$D$40,$F$2:$G$44,2,FALSE)+ROW()-2))=Switch!$D$40,INDIRECT(\"a\" & (VLOOKUP(Switch!$D$40,$F$2:$G$44,2,FALSE)+ROW()-2)),\"\")","v":{"$error":"#N/A"}},{"$f":"IF(INDIRECT(\"c\" & (VLOOKUP(Switch!$D$52,$F$2:$G$44,2,FALSE)+ROW()-2))=Switch!$D$52,INDIRECT(\"a\" & (VLOOKUP(Switch!$D$52,$F$2:$G$44,2,FALSE)+ROW()-2)),\"\")","v":{"$error":"#N/A"}},{"$f":"IF(INDIRECT(\"c\" & (VLOOKUP(Switch!$D$53,$F$2:$G$44,2,FALSE)+ROW()-2))=Switch!$D$53,INDIRECT(\"a\" & (VLOOKUP(Switch!$D$53,$F$2:$G$44,2,FALSE)+ROW()-2)),\"\")","v":{"$error":"#N/A"}},{"$f":"IF(INDIRECT(\"c\" & (VLOOKUP(Switch!$D$54,$F$2:$G$44,2,FALSE)+ROW()-2))=Switch!$D$54,INDIRECT(\"a\" & (VLOOKUP(Switch!$D$54,$F$2:$G$44,2,FALSE)+ROW()-2)),\"\")","v":{"$error":"#N/A"}},{"$f":"IF(INDIRECT(\"c\" & (VLOOKUP(Switch!$D$55,$F$2:$G$44,2,FALSE)+ROW()-2))=Switch!$D$55,INDIRECT(\"a\" & (VLOOKUP(Switch!$D$55,$F$2:$G$44,2,FALSE)+ROW()-2)),\"\")","v":{"$error":"#N/A"}},{"$f":"IF(INDIRECT(\"c\" & (VLOOKUP(Switch!$D$56,$F$2:$G$44,2,FALSE)+ROW()-2))=Switch!$D$56,INDIRECT(\"a\" & (VLOOKUP(Switch!$D$56,$F$2:$G$44,2,FALSE)+ROW()-2)),\"\")","v":{"$error":"#N/A"}},{"$f":"IF(INDIRECT(\"c\" & (VLOOKUP(Switch!$D$57,$F$2:$G$44,2,FALSE)+ROW()-2))=Switch!$D$57,INDIRECT(\"a\" & (VLOOKUP(Switch!$D$57,$F$2:$G$44,2,FALSE)+ROW()-2)),\"\")","v":{"$error":"#N/A"}},{"$f":"IF(INDIRECT(\"c\" & (VLOOKUP(Switch!$D$58,$F$2:$G$44,2,FALSE)+ROW()-2))=Switch!$D$58,INDIRECT(\"a\" & (VLOOKUP(Switch!$D$58,$F$2:$G$44,2,FALSE)+ROW()-2)),\"\")","v":{"$error":"#N/A"}},{"$f":"IF(INDIRECT(\"c\" & (VLOOKUP(Switch!$D$59,$F$2:$G$44,2,FALSE)+ROW()-2))=Switch!$D$59,INDIRECT(\"a\" & (VLOOKUP(Switch!$D$59,$F$2:$G$44,2,FALSE)+ROW()-2)),\"\")","v":{"$error":"#N/A"}},{"$f":"IF(INDIRECT(\"c\" & (VLOOKUP(Switch!$D$60,$F$2:$G$44,2,FALSE)+ROW()-2))=Switch!$D$60,INDIRECT(\"a\" & (VLOOKUP(Switch!$D$60,$F$2:$G$44,2,FALSE)+ROW()-2)),\"\")","v":{"$error":"#N/A"}},{"$f":"IF(INDIRECT(\"c\" & (VLOOKUP(Switch!$D$61,$F$2:$G$44,2,FALSE)+ROW()-2))=Switch!$D$61,INDIRECT(\"a\" & (VLOOKUP(Switch!$D$61,$F$2:$G$44,2,FALSE)+ROW()-2)),\"\")","v":{"$error":"#N/A"}},{"$f":"IF(INDIRECT(\"c\" & (VLOOKUP(Switch!$D$62,$F$2:$G$44,2,FALSE)+ROW()-2))=Switch!$D$62,INDIRECT(\"a\" & (VLOOKUP(Switch!$D$62,$F$2:$G$44,2,FALSE)+ROW()-2)),\"\")","v":{"$error":"#N/A"}},{"$f":"IF(INDIRECT(\"c\" & (VLOOKUP(Switch!$D$63,$F$2:$G$44,2,FALSE)+ROW()-2))=Switch!$D$63,INDIRECT(\"a\" & (VLOOKUP(Switch!$D$63,$F$2:$G$44,2,FALSE)+ROW()-2)),\"\")","v":{"$error":"#N/A"}},{"$f":"IF(INDIRECT(\"c\" & (VLOOKUP(Switch!$D$64,$F$2:$G$44,2,FALSE)+ROW()-2))=Switch!$D$64,INDIRECT(\"a\" & (VLOOKUP(Switch!$D$64,$F$2:$G$44,2,FALSE)+ROW()-2)),\"\")","v":{"$error":"#N/A"}},{"$f":"IF(INDIRECT(\"c\" & (VLOOKUP(Switch!$D$65,$F$2:$G$44,2,FALSE)+ROW()-2))=Switch!$D$65,INDIRECT(\"a\" & (VLOOKUP(Switch!$D$65,$F$2:$G$44,2,FALSE)+ROW()-2)),\"\")","v":{"$error":"#N/A"}},{"$f":"IF(INDIRECT(\"c\" & (VLOOKUP(Switch!$D$66,$F$2:$G$44,2,FALSE)+ROW()-2))=Switch!$D$66,INDIRECT(\"a\" & (VLOOKUP(Switch!$D$66,$F$2:$G$44,2,FALSE)+ROW()-2)),\"\")","v":{"$error":"#N/A"}}]
["Sasfin BCI Flexible Income Fund A","SMFIA","Boutique Collective Investments (Pty) Ltd",{"$f":"ROW()","v":168},null,null,{"$f":"VLOOKUP(F168,$C$2:$D$637,2,FALSE)","v":{"$error":"#N/A"}},{"$f":"IF(INDIRECT(\"c\" & (VLOOKUP(Switch!$D$26,$F$2:$G$44,2,FALSE)+ROW()-2))=Switch!$D$26,INDIRECT(\"a\" & (VLOOKUP(Switch!$D$26,$F$2:$G$44,2,FALSE)+ROW()-2)),\"\")","v":{"$error":"#N/A"}},{"$f":"IF(INDIRECT(\"c\" & (VLOOKUP(Switch!$D$27,$F$2:$G$44,2,FALSE)+ROW()-2))=Switch!$D$27,INDIRECT(\"a\" & (VLOOKUP(Switch!$D$27,$F$2:$G$44,2,FALSE)+ROW()-2)),\"\")","v":{"$error":"#N/A"}},{"$f":"IF(INDIRECT(\"c\" & (VLOOKUP(Switch!$D$28,$F$2:$G$44,2,FALSE)+ROW()-2))=Switch!$D$28,INDIRECT(\"a\" & (VLOOKUP(Switch!$D$28,$F$2:$G$44,2,FALSE)+ROW()-2)),\"\")","v":{"$error":"#N/A"}},{"$f":"IF(INDIRECT(\"c\" & (VLOOKUP(Switch!$D$29,$F$2:$G$44,2,FALSE)+ROW()-2))=Switch!$D$29,INDIRECT(\"a\" & (VLOOKUP(Switch!$D$29,$F$2:$G$44,2,FALSE)+ROW()-2)),\"\")","v":{"$error":"#N/A"}},{"$f":"IF(INDIRECT(\"c\" & (VLOOKUP(Switch!$D$30,$F$2:$G$44,2,FALSE)+ROW()-2))=Switch!$D$30,INDIRECT(\"a\" & (VLOOKUP(Switch!$D$30,$F$2:$G$44,2,FALSE)+ROW()-2)),\"\")","v":{"$error":"#N/A"}},{"$f":"IF(INDIRECT(\"c\" & (VLOOKUP(Switch!$D$31,$F$2:$G$44,2,FALSE)+ROW()-2))=Switch!$D$31,INDIRECT(\"a\" & (VLOOKUP(Switch!$D$31,$F$2:$G$44,2,FALSE)+ROW()-2)),\"\")","v":{"$error":"#N/A"}},{"$f":"IF(INDIRECT(\"c\" & (VLOOKUP(Switch!$D$32,$F$2:$G$44,2,FALSE)+ROW()-2))=Switch!$D$32,INDIRECT(\"a\" & (VLOOKUP(Switch!$D$32,$F$2:$G$44,2,FALSE)+ROW()-2)),\"\")","v":{"$error":"#N/A"}},{"$f":"IF(INDIRECT(\"c\" & (VLOOKUP(Switch!$D$33,$F$2:$G$44,2,FALSE)+ROW()-2))=Switch!$D$33,INDIRECT(\"a\" & (VLOOKUP(Switch!$D$33,$F$2:$G$44,2,FALSE)+ROW()-2)),\"\")","v":{"$error":"#N/A"}},{"$f":"IF(INDIRECT(\"c\" & (VLOOKUP(Switch!$D$34,$F$2:$G$44,2,FALSE)+ROW()-2))=Switch!$D$34,INDIRECT(\"a\" & (VLOOKUP(Switch!$D$34,$F$2:$G$44,2,FALSE)+ROW()-2)),\"\")","v":{"$error":"#N/A"}},{"$f":"IF(INDIRECT(\"c\" & (VLOOKUP(Switch!$D$35,$F$2:$G$44,2,FALSE)+ROW()-2))=Switch!$D$35,INDIRECT(\"a\" & (VLOOKUP(Switch!$D$35,$F$2:$G$44,2,FALSE)+ROW()-2)),\"\")","v":{"$error":"#N/A"}},{"$f":"IF(INDIRECT(\"c\" & (VLOOKUP(Switch!$D$36,$F$2:$G$44,2,FALSE)+ROW()-2))=Switch!$D$36,INDIRECT(\"a\" & (VLOOKUP(Switch!$D$36,$F$2:$G$44,2,FALSE)+ROW()-2)),\"\")","v":{"$error":"#N/A"}},{"$f":"IF(INDIRECT(\"c\" & (VLOOKUP(Switch!$D$37,$F$2:$G$44,2,FALSE)+ROW()-2))=Switch!$D$37,INDIRECT(\"a\" & (VLOOKUP(Switch!$D$37,$F$2:$G$44,2,FALSE)+ROW()-2)),\"\")","v":{"$error":"#N/A"}},{"$f":"IF(INDIRECT(\"c\" & (VLOOKUP(Switch!$D$38,$F$2:$G$44,2,FALSE)+ROW()-2))=Switch!$D$38,INDIRECT(\"a\" & (VLOOKUP(Switch!$D$38,$F$2:$G$44,2,FALSE)+ROW()-2)),\"\")","v":{"$error":"#N/A"}},{"$f":"IF(INDIRECT(\"c\" & (VLOOKUP(Switch!$D$39,$F$2:$G$44,2,FALSE)+ROW()-2))=Switch!$D$39,INDIRECT(\"a\" & (VLOOKUP(Switch!$D$39,$F$2:$G$44,2,FALSE)+ROW()-2)),\"\")","v":{"$error":"#N/A"}},{"$f":"IF(INDIRECT(\"c\" & (VLOOKUP(Switch!$D$40,$F$2:$G$44,2,FALSE)+ROW()-2))=Switch!$D$40,INDIRECT(\"a\" & (VLOOKUP(Switch!$D$40,$F$2:$G$44,2,FALSE)+ROW()-2)),\"\")","v":{"$error":"#N/A"}},{"$f":"IF(INDIRECT(\"c\" & (VLOOKUP(Switch!$D$52,$F$2:$G$44,2,FALSE)+ROW()-2))=Switch!$D$52,INDIRECT(\"a\" & (VLOOKUP(Switch!$D$52,$F$2:$G$44,2,FALSE)+ROW()-2)),\"\")","v":{"$error":"#N/A"}},{"$f":"IF(INDIRECT(\"c\" & (VLOOKUP(Switch!$D$53,$F$2:$G$44,2,FALSE)+ROW()-2))=Switch!$D$53,INDIRECT(\"a\" & (VLOOKUP(Switch!$D$53,$F$2:$G$44,2,FALSE)+ROW()-2)),\"\")","v":{"$error":"#N/A"}},{"$f":"IF(INDIRECT(\"c\" & (VLOOKUP(Switch!$D$54,$F$2:$G$44,2,FALSE)+ROW()-2))=Switch!$D$54,INDIRECT(\"a\" & (VLOOKUP(Switch!$D$54,$F$2:$G$44,2,FALSE)+ROW()-2)),\"\")","v":{"$error":"#N/A"}},{"$f":"IF(INDIRECT(\"c\" & (VLOOKUP(Switch!$D$55,$F$2:$G$44,2,FALSE)+ROW()-2))=Switch!$D$55,INDIRECT(\"a\" & (VLOOKUP(Switch!$D$55,$F$2:$G$44,2,FALSE)+ROW()-2)),\"\")","v":{"$error":"#N/A"}},{"$f":"IF(INDIRECT(\"c\" & (VLOOKUP(Switch!$D$56,$F$2:$G$44,2,FALSE)+ROW()-2))=Switch!$D$56,INDIRECT(\"a\" & (VLOOKUP(Switch!$D$56,$F$2:$G$44,2,FALSE)+ROW()-2)),\"\")","v":{"$error":"#N/A"}},{"$f":"IF(INDIRECT(\"c\" & (VLOOKUP(Switch!$D$57,$F$2:$G$44,2,FALSE)+ROW()-2))=Switch!$D$57,INDIRECT(\"a\" & (VLOOKUP(Switch!$D$57,$F$2:$G$44,2,FALSE)+ROW()-2)),\"\")","v":{"$error":"#N/A"}},{"$f":"IF(INDIRECT(\"c\" & (VLOOKUP(Switch!$D$58,$F$2:$G$44,2,FALSE)+ROW()-2))=Switch!$D$58,INDIRECT(\"a\" & (VLOOKUP(Switch!$D$58,$F$2:$G$44,2,FALSE)+ROW()-2)),\"\")","v":{"$error":"#N/A"}},{"$f":"IF(INDIRECT(\"c\" & (VLOOKUP(Switch!$D$59,$F$2:$G$44,2,FALSE)+ROW()-2))=Switch!$D$59,INDIRECT(\"a\" & (VLOOKUP(Switch!$D$59,$F$2:$G$44,2,FALSE)+ROW()-2)),\"\")","v":{"$error":"#N/A"}},{"$f":"IF(INDIRECT(\"c\" & (VLOOKUP(Switch!$D$60,$F$2:$G$44,2,FALSE)+ROW()-2))=Switch!$D$60,INDIRECT(\"a\" & (VLOOKUP(Switch!$D$60,$F$2:$G$44,2,FALSE)+ROW()-2)),\"\")","v":{"$error":"#N/A"}},{"$f":"IF(INDIRECT(\"c\" & (VLOOKUP(Switch!$D$61,$F$2:$G$44,2,FALSE)+ROW()-2))=Switch!$D$61,INDIRECT(\"a\" & (VLOOKUP(Switch!$D$61,$F$2:$G$44,2,FALSE)+ROW()-2)),\"\")","v":{"$error":"#N/A"}},{"$f":"IF(INDIRECT(\"c\" & (VLOOKUP(Switch!$D$62,$F$2:$G$44,2,FALSE)+ROW()-2))=Switch!$D$62,INDIRECT(\"a\" & (VLOOKUP(Switch!$D$62,$F$2:$G$44,2,FALSE)+ROW()-2)),\"\")","v":{"$error":"#N/A"}},{"$f":"IF(INDIRECT(\"c\" & (VLOOKUP(Switch!$D$63,$F$2:$G$44,2,FALSE)+ROW()-2))=Switch!$D$63,INDIRECT(\"a\" & (VLOOKUP(Switch!$D$63,$F$2:$G$44,2,FALSE)+ROW()-2)),\"\")","v":{"$error":"#N/A"}},{"$f":"IF(INDIRECT(\"c\" & (VLOOKUP(Switch!$D$64,$F$2:$G$44,2,FALSE)+ROW()-2))=Switch!$D$64,INDIRECT(\"a\" & (VLOOKUP(Switch!$D$64,$F$2:$G$44,2,FALSE)+ROW()-2)),\"\")","v":{"$error":"#N/A"}},{"$f":"IF(INDIRECT(\"c\" & (VLOOKUP(Switch!$D$65,$F$2:$G$44,2,FALSE)+ROW()-2))=Switch!$D$65,INDIRECT(\"a\" & (VLOOKUP(Switch!$D$65,$F$2:$G$44,2,FALSE)+ROW()-2)),\"\")","v":{"$error":"#N/A"}},{"$f":"IF(INDIRECT(\"c\" & (VLOOKUP(Switch!$D$66,$F$2:$G$44,2,FALSE)+ROW()-2))=Switch!$D$66,INDIRECT(\"a\" & (VLOOKUP(Switch!$D$66,$F$2:$G$44,2,FALSE)+ROW()-2)),\"\")","v":{"$error":"#N/A"}}]
["Sasfin BCI Optimal Income Fund A","IBOFA","Boutique Collective Investments (Pty) Ltd",{"$f":"ROW()","v":169},null,null,{"$f":"VLOOKUP(F169,$C$2:$D$637,2,FALSE)","v":{"$error":"#N/A"}},{"$f":"IF(INDIRECT(\"c\" & (VLOOKUP(Switch!$D$26,$F$2:$G$44,2,FALSE)+ROW()-2))=Switch!$D$26,INDIRECT(\"a\" & (VLOOKUP(Switch!$D$26,$F$2:$G$44,2,FALSE)+ROW()-2)),\"\")","v":{"$error":"#N/A"}},{"$f":"IF(INDIRECT(\"c\" & (VLOOKUP(Switch!$D$27,$F$2:$G$44,2,FALSE)+ROW()-2))=Switch!$D$27,INDIRECT(\"a\" & (VLOOKUP(Switch!$D$27,$F$2:$G$44,2,FALSE)+ROW()-2)),\"\")","v":{"$error":"#N/A"}},{"$f":"IF(INDIRECT(\"c\" & (VLOOKUP(Switch!$D$28,$F$2:$G$44,2,FALSE)+ROW()-2))=Switch!$D$28,INDIRECT(\"a\" & (VLOOKUP(Switch!$D$28,$F$2:$G$44,2,FALSE)+ROW()-2)),\"\")","v":{"$error":"#N/A"}},{"$f":"IF(INDIRECT(\"c\" & (VLOOKUP(Switch!$D$29,$F$2:$G$44,2,FALSE)+ROW()-2))=Switch!$D$29,INDIRECT(\"a\" & (VLOOKUP(Switch!$D$29,$F$2:$G$44,2,FALSE)+ROW()-2)),\"\")","v":{"$error":"#N/A"}},{"$f":"IF(INDIRECT(\"c\" & (VLOOKUP(Switch!$D$30,$F$2:$G$44,2,FALSE)+ROW()-2))=Switch!$D$30,INDIRECT(\"a\" & (VLOOKUP(Switch!$D$30,$F$2:$G$44,2,FALSE)+ROW()-2)),\"\")","v":{"$error":"#N/A"}},{"$f":"IF(INDIRECT(\"c\" & (VLOOKUP(Switch!$D$31,$F$2:$G$44,2,FALSE)+ROW()-2))=Switch!$D$31,INDIRECT(\"a\" & (VLOOKUP(Switch!$D$31,$F$2:$G$44,2,FALSE)+ROW()-2)),\"\")","v":{"$error":"#N/A"}},{"$f":"IF(INDIRECT(\"c\" & (VLOOKUP(Switch!$D$32,$F$2:$G$44,2,FALSE)+ROW()-2))=Switch!$D$32,INDIRECT(\"a\" & (VLOOKUP(Switch!$D$32,$F$2:$G$44,2,FALSE)+ROW()-2)),\"\")","v":{"$error":"#N/A"}},{"$f":"IF(INDIRECT(\"c\" & (VLOOKUP(Switch!$D$33,$F$2:$G$44,2,FALSE)+ROW()-2))=Switch!$D$33,INDIRECT(\"a\" & (VLOOKUP(Switch!$D$33,$F$2:$G$44,2,FALSE)+ROW()-2)),\"\")","v":{"$error":"#N/A"}},{"$f":"IF(INDIRECT(\"c\" & (VLOOKUP(Switch!$D$34,$F$2:$G$44,2,FALSE)+ROW()-2))=Switch!$D$34,INDIRECT(\"a\" & (VLOOKUP(Switch!$D$34,$F$2:$G$44,2,FALSE)+ROW()-2)),\"\")","v":{"$error":"#N/A"}},{"$f":"IF(INDIRECT(\"c\" & (VLOOKUP(Switch!$D$35,$F$2:$G$44,2,FALSE)+ROW()-2))=Switch!$D$35,INDIRECT(\"a\" & (VLOOKUP(Switch!$D$35,$F$2:$G$44,2,FALSE)+ROW()-2)),\"\")","v":{"$error":"#N/A"}},{"$f":"IF(INDIRECT(\"c\" & (VLOOKUP(Switch!$D$36,$F$2:$G$44,2,FALSE)+ROW()-2))=Switch!$D$36,INDIRECT(\"a\" & (VLOOKUP(Switch!$D$36,$F$2:$G$44,2,FALSE)+ROW()-2)),\"\")","v":{"$error":"#N/A"}},{"$f":"IF(INDIRECT(\"c\" & (VLOOKUP(Switch!$D$37,$F$2:$G$44,2,FALSE)+ROW()-2))=Switch!$D$37,INDIRECT(\"a\" & (VLOOKUP(Switch!$D$37,$F$2:$G$44,2,FALSE)+ROW()-2)),\"\")","v":{"$error":"#N/A"}},{"$f":"IF(INDIRECT(\"c\" & (VLOOKUP(Switch!$D$38,$F$2:$G$44,2,FALSE)+ROW()-2))=Switch!$D$38,INDIRECT(\"a\" & (VLOOKUP(Switch!$D$38,$F$2:$G$44,2,FALSE)+ROW()-2)),\"\")","v":{"$error":"#N/A"}},{"$f":"IF(INDIRECT(\"c\" & (VLOOKUP(Switch!$D$39,$F$2:$G$44,2,FALSE)+ROW()-2))=Switch!$D$39,INDIRECT(\"a\" & (VLOOKUP(Switch!$D$39,$F$2:$G$44,2,FALSE)+ROW()-2)),\"\")","v":{"$error":"#N/A"}},{"$f":"IF(INDIRECT(\"c\" & (VLOOKUP(Switch!$D$40,$F$2:$G$44,2,FALSE)+ROW()-2))=Switch!$D$40,INDIRECT(\"a\" & (VLOOKUP(Switch!$D$40,$F$2:$G$44,2,FALSE)+ROW()-2)),\"\")","v":{"$error":"#N/A"}},{"$f":"IF(INDIRECT(\"c\" & (VLOOKUP(Switch!$D$52,$F$2:$G$44,2,FALSE)+ROW()-2))=Switch!$D$52,INDIRECT(\"a\" & (VLOOKUP(Switch!$D$52,$F$2:$G$44,2,FALSE)+ROW()-2)),\"\")","v":{"$error":"#N/A"}},{"$f":"IF(INDIRECT(\"c\" & (VLOOKUP(Switch!$D$53,$F$2:$G$44,2,FALSE)+ROW()-2))=Switch!$D$53,INDIRECT(\"a\" & (VLOOKUP(Switch!$D$53,$F$2:$G$44,2,FALSE)+ROW()-2)),\"\")","v":{"$error":"#N/A"}},{"$f":"IF(INDIRECT(\"c\" & (VLOOKUP(Switch!$D$54,$F$2:$G$44,2,FALSE)+ROW()-2))=Switch!$D$54,INDIRECT(\"a\" & (VLOOKUP(Switch!$D$54,$F$2:$G$44,2,FALSE)+ROW()-2)),\"\")","v":{"$error":"#N/A"}},{"$f":"IF(INDIRECT(\"c\" & (VLOOKUP(Switch!$D$55,$F$2:$G$44,2,FALSE)+ROW()-2))=Switch!$D$55,INDIRECT(\"a\" & (VLOOKUP(Switch!$D$55,$F$2:$G$44,2,FALSE)+ROW()-2)),\"\")","v":{"$error":"#N/A"}},{"$f":"IF(INDIRECT(\"c\" & (VLOOKUP(Switch!$D$56,$F$2:$G$44,2,FALSE)+ROW()-2))=Switch!$D$56,INDIRECT(\"a\" & (VLOOKUP(Switch!$D$56,$F$2:$G$44,2,FALSE)+ROW()-2)),\"\")","v":{"$error":"#N/A"}},{"$f":"IF(INDIRECT(\"c\" & (VLOOKUP(Switch!$D$57,$F$2:$G$44,2,FALSE)+ROW()-2))=Switch!$D$57,INDIRECT(\"a\" & (VLOOKUP(Switch!$D$57,$F$2:$G$44,2,FALSE)+ROW()-2)),\"\")","v":{"$error":"#N/A"}},{"$f":"IF(INDIRECT(\"c\" & (VLOOKUP(Switch!$D$58,$F$2:$G$44,2,FALSE)+ROW()-2))=Switch!$D$58,INDIRECT(\"a\" & (VLOOKUP(Switch!$D$58,$F$2:$G$44,2,FALSE)+ROW()-2)),\"\")","v":{"$error":"#N/A"}},{"$f":"IF(INDIRECT(\"c\" & (VLOOKUP(Switch!$D$59,$F$2:$G$44,2,FALSE)+ROW()-2))=Switch!$D$59,INDIRECT(\"a\" & (VLOOKUP(Switch!$D$59,$F$2:$G$44,2,FALSE)+ROW()-2)),\"\")","v":{"$error":"#N/A"}},{"$f":"IF(INDIRECT(\"c\" & (VLOOKUP(Switch!$D$60,$F$2:$G$44,2,FALSE)+ROW()-2))=Switch!$D$60,INDIRECT(\"a\" & (VLOOKUP(Switch!$D$60,$F$2:$G$44,2,FALSE)+ROW()-2)),\"\")","v":{"$error":"#N/A"}},{"$f":"IF(INDIRECT(\"c\" & (VLOOKUP(Switch!$D$61,$F$2:$G$44,2,FALSE)+ROW()-2))=Switch!$D$61,INDIRECT(\"a\" & (VLOOKUP(Switch!$D$61,$F$2:$G$44,2,FALSE)+ROW()-2)),\"\")","v":{"$error":"#N/A"}},{"$f":"IF(INDIRECT(\"c\" & (VLOOKUP(Switch!$D$62,$F$2:$G$44,2,FALSE)+ROW()-2))=Switch!$D$62,INDIRECT(\"a\" & (VLOOKUP(Switch!$D$62,$F$2:$G$44,2,FALSE)+ROW()-2)),\"\")","v":{"$error":"#N/A"}},{"$f":"IF(INDIRECT(\"c\" & (VLOOKUP(Switch!$D$63,$F$2:$G$44,2,FALSE)+ROW()-2))=Switch!$D$63,INDIRECT(\"a\" & (VLOOKUP(Switch!$D$63,$F$2:$G$44,2,FALSE)+ROW()-2)),\"\")","v":{"$error":"#N/A"}},{"$f":"IF(INDIRECT(\"c\" & (VLOOKUP(Switch!$D$64,$F$2:$G$44,2,FALSE)+ROW()-2))=Switch!$D$64,INDIRECT(\"a\" & (VLOOKUP(Switch!$D$64,$F$2:$G$44,2,FALSE)+ROW()-2)),\"\")","v":{"$error":"#N/A"}},{"$f":"IF(INDIRECT(\"c\" & (VLOOKUP(Switch!$D$65,$F$2:$G$44,2,FALSE)+ROW()-2))=Switch!$D$65,INDIRECT(\"a\" & (VLOOKUP(Switch!$D$65,$F$2:$G$44,2,FALSE)+ROW()-2)),\"\")","v":{"$error":"#N/A"}},{"$f":"IF(INDIRECT(\"c\" & (VLOOKUP(Switch!$D$66,$F$2:$G$44,2,FALSE)+ROW()-2))=Switch!$D$66,INDIRECT(\"a\" & (VLOOKUP(Switch!$D$66,$F$2:$G$44,2,FALSE)+ROW()-2)),\"\")","v":{"$error":"#N/A"}}]
["Sasfin BCI Stable Fund A","SMSFCA","Boutique Collective Investments (Pty) Ltd",{"$f":"ROW()","v":170},null,null,{"$f":"VLOOKUP(F170,$C$2:$D$637,2,FALSE)","v":{"$error":"#N/A"}},{"$f":"IF(INDIRECT(\"c\" & (VLOOKUP(Switch!$D$26,$F$2:$G$44,2,FALSE)+ROW()-2))=Switch!$D$26,INDIRECT(\"a\" & (VLOOKUP(Switch!$D$26,$F$2:$G$44,2,FALSE)+ROW()-2)),\"\")","v":{"$error":"#N/A"}},{"$f":"IF(INDIRECT(\"c\" & (VLOOKUP(Switch!$D$27,$F$2:$G$44,2,FALSE)+ROW()-2))=Switch!$D$27,INDIRECT(\"a\" & (VLOOKUP(Switch!$D$27,$F$2:$G$44,2,FALSE)+ROW()-2)),\"\")","v":{"$error":"#N/A"}},{"$f":"IF(INDIRECT(\"c\" & (VLOOKUP(Switch!$D$28,$F$2:$G$44,2,FALSE)+ROW()-2))=Switch!$D$28,INDIRECT(\"a\" & (VLOOKUP(Switch!$D$28,$F$2:$G$44,2,FALSE)+ROW()-2)),\"\")","v":{"$error":"#N/A"}},{"$f":"IF(INDIRECT(\"c\" & (VLOOKUP(Switch!$D$29,$F$2:$G$44,2,FALSE)+ROW()-2))=Switch!$D$29,INDIRECT(\"a\" & (VLOOKUP(Switch!$D$29,$F$2:$G$44,2,FALSE)+ROW()-2)),\"\")","v":{"$error":"#N/A"}},{"$f":"IF(INDIRECT(\"c\" & (VLOOKUP(Switch!$D$30,$F$2:$G$44,2,FALSE)+ROW()-2))=Switch!$D$30,INDIRECT(\"a\" & (VLOOKUP(Switch!$D$30,$F$2:$G$44,2,FALSE)+ROW()-2)),\"\")","v":{"$error":"#N/A"}},{"$f":"IF(INDIRECT(\"c\" & (VLOOKUP(Switch!$D$31,$F$2:$G$44,2,FALSE)+ROW()-2))=Switch!$D$31,INDIRECT(\"a\" & (VLOOKUP(Switch!$D$31,$F$2:$G$44,2,FALSE)+ROW()-2)),\"\")","v":{"$error":"#N/A"}},{"$f":"IF(INDIRECT(\"c\" & (VLOOKUP(Switch!$D$32,$F$2:$G$44,2,FALSE)+ROW()-2))=Switch!$D$32,INDIRECT(\"a\" & (VLOOKUP(Switch!$D$32,$F$2:$G$44,2,FALSE)+ROW()-2)),\"\")","v":{"$error":"#N/A"}},{"$f":"IF(INDIRECT(\"c\" & (VLOOKUP(Switch!$D$33,$F$2:$G$44,2,FALSE)+ROW()-2))=Switch!$D$33,INDIRECT(\"a\" & (VLOOKUP(Switch!$D$33,$F$2:$G$44,2,FALSE)+ROW()-2)),\"\")","v":{"$error":"#N/A"}},{"$f":"IF(INDIRECT(\"c\" & (VLOOKUP(Switch!$D$34,$F$2:$G$44,2,FALSE)+ROW()-2))=Switch!$D$34,INDIRECT(\"a\" & (VLOOKUP(Switch!$D$34,$F$2:$G$44,2,FALSE)+ROW()-2)),\"\")","v":{"$error":"#N/A"}},{"$f":"IF(INDIRECT(\"c\" & (VLOOKUP(Switch!$D$35,$F$2:$G$44,2,FALSE)+ROW()-2))=Switch!$D$35,INDIRECT(\"a\" & (VLOOKUP(Switch!$D$35,$F$2:$G$44,2,FALSE)+ROW()-2)),\"\")","v":{"$error":"#N/A"}},{"$f":"IF(INDIRECT(\"c\" & (VLOOKUP(Switch!$D$36,$F$2:$G$44,2,FALSE)+ROW()-2))=Switch!$D$36,INDIRECT(\"a\" & (VLOOKUP(Switch!$D$36,$F$2:$G$44,2,FALSE)+ROW()-2)),\"\")","v":{"$error":"#N/A"}},{"$f":"IF(INDIRECT(\"c\" & (VLOOKUP(Switch!$D$37,$F$2:$G$44,2,FALSE)+ROW()-2))=Switch!$D$37,INDIRECT(\"a\" & (VLOOKUP(Switch!$D$37,$F$2:$G$44,2,FALSE)+ROW()-2)),\"\")","v":{"$error":"#N/A"}},{"$f":"IF(INDIRECT(\"c\" & (VLOOKUP(Switch!$D$38,$F$2:$G$44,2,FALSE)+ROW()-2))=Switch!$D$38,INDIRECT(\"a\" & (VLOOKUP(Switch!$D$38,$F$2:$G$44,2,FALSE)+ROW()-2)),\"\")","v":{"$error":"#N/A"}},{"$f":"IF(INDIRECT(\"c\" & (VLOOKUP(Switch!$D$39,$F$2:$G$44,2,FALSE)+ROW()-2))=Switch!$D$39,INDIRECT(\"a\" & (VLOOKUP(Switch!$D$39,$F$2:$G$44,2,FALSE)+ROW()-2)),\"\")","v":{"$error":"#N/A"}},{"$f":"IF(INDIRECT(\"c\" & (VLOOKUP(Switch!$D$40,$F$2:$G$44,2,FALSE)+ROW()-2))=Switch!$D$40,INDIRECT(\"a\" & (VLOOKUP(Switch!$D$40,$F$2:$G$44,2,FALSE)+ROW()-2)),\"\")","v":{"$error":"#N/A"}},{"$f":"IF(INDIRECT(\"c\" & (VLOOKUP(Switch!$D$52,$F$2:$G$44,2,FALSE)+ROW()-2))=Switch!$D$52,INDIRECT(\"a\" & (VLOOKUP(Switch!$D$52,$F$2:$G$44,2,FALSE)+ROW()-2)),\"\")","v":{"$error":"#N/A"}},{"$f":"IF(INDIRECT(\"c\" & (VLOOKUP(Switch!$D$53,$F$2:$G$44,2,FALSE)+ROW()-2))=Switch!$D$53,INDIRECT(\"a\" & (VLOOKUP(Switch!$D$53,$F$2:$G$44,2,FALSE)+ROW()-2)),\"\")","v":{"$error":"#N/A"}},{"$f":"IF(INDIRECT(\"c\" & (VLOOKUP(Switch!$D$54,$F$2:$G$44,2,FALSE)+ROW()-2))=Switch!$D$54,INDIRECT(\"a\" & (VLOOKUP(Switch!$D$54,$F$2:$G$44,2,FALSE)+ROW()-2)),\"\")","v":{"$error":"#N/A"}},{"$f":"IF(INDIRECT(\"c\" & (VLOOKUP(Switch!$D$55,$F$2:$G$44,2,FALSE)+ROW()-2))=Switch!$D$55,INDIRECT(\"a\" & (VLOOKUP(Switch!$D$55,$F$2:$G$44,2,FALSE)+ROW()-2)),\"\")","v":{"$error":"#N/A"}},{"$f":"IF(INDIRECT(\"c\" & (VLOOKUP(Switch!$D$56,$F$2:$G$44,2,FALSE)+ROW()-2))=Switch!$D$56,INDIRECT(\"a\" & (VLOOKUP(Switch!$D$56,$F$2:$G$44,2,FALSE)+ROW()-2)),\"\")","v":{"$error":"#N/A"}},{"$f":"IF(INDIRECT(\"c\" & (VLOOKUP(Switch!$D$57,$F$2:$G$44,2,FALSE)+ROW()-2))=Switch!$D$57,INDIRECT(\"a\" & (VLOOKUP(Switch!$D$57,$F$2:$G$44,2,FALSE)+ROW()-2)),\"\")","v":{"$error":"#N/A"}},{"$f":"IF(INDIRECT(\"c\" & (VLOOKUP(Switch!$D$58,$F$2:$G$44,2,FALSE)+ROW()-2))=Switch!$D$58,INDIRECT(\"a\" & (VLOOKUP(Switch!$D$58,$F$2:$G$44,2,FALSE)+ROW()-2)),\"\")","v":{"$error":"#N/A"}},{"$f":"IF(INDIRECT(\"c\" & (VLOOKUP(Switch!$D$59,$F$2:$G$44,2,FALSE)+ROW()-2))=Switch!$D$59,INDIRECT(\"a\" & (VLOOKUP(Switch!$D$59,$F$2:$G$44,2,FALSE)+ROW()-2)),\"\")","v":{"$error":"#N/A"}},{"$f":"IF(INDIRECT(\"c\" & (VLOOKUP(Switch!$D$60,$F$2:$G$44,2,FALSE)+ROW()-2))=Switch!$D$60,INDIRECT(\"a\" & (VLOOKUP(Switch!$D$60,$F$2:$G$44,2,FALSE)+ROW()-2)),\"\")","v":{"$error":"#N/A"}},{"$f":"IF(INDIRECT(\"c\" & (VLOOKUP(Switch!$D$61,$F$2:$G$44,2,FALSE)+ROW()-2))=Switch!$D$61,INDIRECT(\"a\" & (VLOOKUP(Switch!$D$61,$F$2:$G$44,2,FALSE)+ROW()-2)),\"\")","v":{"$error":"#N/A"}},{"$f":"IF(INDIRECT(\"c\" & (VLOOKUP(Switch!$D$62,$F$2:$G$44,2,FALSE)+ROW()-2))=Switch!$D$62,INDIRECT(\"a\" & (VLOOKUP(Switch!$D$62,$F$2:$G$44,2,FALSE)+ROW()-2)),\"\")","v":{"$error":"#N/A"}},{"$f":"IF(INDIRECT(\"c\" & (VLOOKUP(Switch!$D$63,$F$2:$G$44,2,FALSE)+ROW()-2))=Switch!$D$63,INDIRECT(\"a\" & (VLOOKUP(Switch!$D$63,$F$2:$G$44,2,FALSE)+ROW()-2)),\"\")","v":{"$error":"#N/A"}},{"$f":"IF(INDIRECT(\"c\" & (VLOOKUP(Switch!$D$64,$F$2:$G$44,2,FALSE)+ROW()-2))=Switch!$D$64,INDIRECT(\"a\" & (VLOOKUP(Switch!$D$64,$F$2:$G$44,2,FALSE)+ROW()-2)),\"\")","v":{"$error":"#N/A"}},{"$f":"IF(INDIRECT(\"c\" & (VLOOKUP(Switch!$D$65,$F$2:$G$44,2,FALSE)+ROW()-2))=Switch!$D$65,INDIRECT(\"a\" & (VLOOKUP(Switch!$D$65,$F$2:$G$44,2,FALSE)+ROW()-2)),\"\")","v":{"$error":"#N/A"}},{"$f":"IF(INDIRECT(\"c\" & (VLOOKUP(Switch!$D$66,$F$2:$G$44,2,FALSE)+ROW()-2))=Switch!$D$66,INDIRECT(\"a\" & (VLOOKUP(Switch!$D$66,$F$2:$G$44,2,FALSE)+ROW()-2)),\"\")","v":{"$error":"#N/A"}}]
["Sasfin BCI Equity Fund B","MSVB","Boutique Collective Investments (Pty) Ltd",{"$f":"ROW()","v":171},null,null,{"$f":"VLOOKUP(F171,$C$2:$D$637,2,FALSE)","v":{"$error":"#N/A"}},{"$f":"IF(INDIRECT(\"c\" & (VLOOKUP(Switch!$D$26,$F$2:$G$44,2,FALSE)+ROW()-2))=Switch!$D$26,INDIRECT(\"a\" & (VLOOKUP(Switch!$D$26,$F$2:$G$44,2,FALSE)+ROW()-2)),\"\")","v":{"$error":"#N/A"}},{"$f":"IF(INDIRECT(\"c\" & (VLOOKUP(Switch!$D$27,$F$2:$G$44,2,FALSE)+ROW()-2))=Switch!$D$27,INDIRECT(\"a\" & (VLOOKUP(Switch!$D$27,$F$2:$G$44,2,FALSE)+ROW()-2)),\"\")","v":{"$error":"#N/A"}},{"$f":"IF(INDIRECT(\"c\" & (VLOOKUP(Switch!$D$28,$F$2:$G$44,2,FALSE)+ROW()-2))=Switch!$D$28,INDIRECT(\"a\" & (VLOOKUP(Switch!$D$28,$F$2:$G$44,2,FALSE)+ROW()-2)),\"\")","v":{"$error":"#N/A"}},{"$f":"IF(INDIRECT(\"c\" & (VLOOKUP(Switch!$D$29,$F$2:$G$44,2,FALSE)+ROW()-2))=Switch!$D$29,INDIRECT(\"a\" & (VLOOKUP(Switch!$D$29,$F$2:$G$44,2,FALSE)+ROW()-2)),\"\")","v":{"$error":"#N/A"}},{"$f":"IF(INDIRECT(\"c\" & (VLOOKUP(Switch!$D$30,$F$2:$G$44,2,FALSE)+ROW()-2))=Switch!$D$30,INDIRECT(\"a\" & (VLOOKUP(Switch!$D$30,$F$2:$G$44,2,FALSE)+ROW()-2)),\"\")","v":{"$error":"#N/A"}},{"$f":"IF(INDIRECT(\"c\" & (VLOOKUP(Switch!$D$31,$F$2:$G$44,2,FALSE)+ROW()-2))=Switch!$D$31,INDIRECT(\"a\" & (VLOOKUP(Switch!$D$31,$F$2:$G$44,2,FALSE)+ROW()-2)),\"\")","v":{"$error":"#N/A"}},{"$f":"IF(INDIRECT(\"c\" & (VLOOKUP(Switch!$D$32,$F$2:$G$44,2,FALSE)+ROW()-2))=Switch!$D$32,INDIRECT(\"a\" & (VLOOKUP(Switch!$D$32,$F$2:$G$44,2,FALSE)+ROW()-2)),\"\")","v":{"$error":"#N/A"}},{"$f":"IF(INDIRECT(\"c\" & (VLOOKUP(Switch!$D$33,$F$2:$G$44,2,FALSE)+ROW()-2))=Switch!$D$33,INDIRECT(\"a\" & (VLOOKUP(Switch!$D$33,$F$2:$G$44,2,FALSE)+ROW()-2)),\"\")","v":{"$error":"#N/A"}},{"$f":"IF(INDIRECT(\"c\" & (VLOOKUP(Switch!$D$34,$F$2:$G$44,2,FALSE)+ROW()-2))=Switch!$D$34,INDIRECT(\"a\" & (VLOOKUP(Switch!$D$34,$F$2:$G$44,2,FALSE)+ROW()-2)),\"\")","v":{"$error":"#N/A"}},{"$f":"IF(INDIRECT(\"c\" & (VLOOKUP(Switch!$D$35,$F$2:$G$44,2,FALSE)+ROW()-2))=Switch!$D$35,INDIRECT(\"a\" & (VLOOKUP(Switch!$D$35,$F$2:$G$44,2,FALSE)+ROW()-2)),\"\")","v":{"$error":"#N/A"}},{"$f":"IF(INDIRECT(\"c\" & (VLOOKUP(Switch!$D$36,$F$2:$G$44,2,FALSE)+ROW()-2))=Switch!$D$36,INDIRECT(\"a\" & (VLOOKUP(Switch!$D$36,$F$2:$G$44,2,FALSE)+ROW()-2)),\"\")","v":{"$error":"#N/A"}},{"$f":"IF(INDIRECT(\"c\" & (VLOOKUP(Switch!$D$37,$F$2:$G$44,2,FALSE)+ROW()-2))=Switch!$D$37,INDIRECT(\"a\" & (VLOOKUP(Switch!$D$37,$F$2:$G$44,2,FALSE)+ROW()-2)),\"\")","v":{"$error":"#N/A"}},{"$f":"IF(INDIRECT(\"c\" & (VLOOKUP(Switch!$D$38,$F$2:$G$44,2,FALSE)+ROW()-2))=Switch!$D$38,INDIRECT(\"a\" & (VLOOKUP(Switch!$D$38,$F$2:$G$44,2,FALSE)+ROW()-2)),\"\")","v":{"$error":"#N/A"}},{"$f":"IF(INDIRECT(\"c\" & (VLOOKUP(Switch!$D$39,$F$2:$G$44,2,FALSE)+ROW()-2))=Switch!$D$39,INDIRECT(\"a\" & (VLOOKUP(Switch!$D$39,$F$2:$G$44,2,FALSE)+ROW()-2)),\"\")","v":{"$error":"#N/A"}},{"$f":"IF(INDIRECT(\"c\" & (VLOOKUP(Switch!$D$40,$F$2:$G$44,2,FALSE)+ROW()-2))=Switch!$D$40,INDIRECT(\"a\" & (VLOOKUP(Switch!$D$40,$F$2:$G$44,2,FALSE)+ROW()-2)),\"\")","v":{"$error":"#N/A"}},{"$f":"IF(INDIRECT(\"c\" & (VLOOKUP(Switch!$D$52,$F$2:$G$44,2,FALSE)+ROW()-2))=Switch!$D$52,INDIRECT(\"a\" & (VLOOKUP(Switch!$D$52,$F$2:$G$44,2,FALSE)+ROW()-2)),\"\")","v":{"$error":"#N/A"}},{"$f":"IF(INDIRECT(\"c\" & (VLOOKUP(Switch!$D$53,$F$2:$G$44,2,FALSE)+ROW()-2))=Switch!$D$53,INDIRECT(\"a\" & (VLOOKUP(Switch!$D$53,$F$2:$G$44,2,FALSE)+ROW()-2)),\"\")","v":{"$error":"#N/A"}},{"$f":"IF(INDIRECT(\"c\" & (VLOOKUP(Switch!$D$54,$F$2:$G$44,2,FALSE)+ROW()-2))=Switch!$D$54,INDIRECT(\"a\" & (VLOOKUP(Switch!$D$54,$F$2:$G$44,2,FALSE)+ROW()-2)),\"\")","v":{"$error":"#N/A"}},{"$f":"IF(INDIRECT(\"c\" & (VLOOKUP(Switch!$D$55,$F$2:$G$44,2,FALSE)+ROW()-2))=Switch!$D$55,INDIRECT(\"a\" & (VLOOKUP(Switch!$D$55,$F$2:$G$44,2,FALSE)+ROW()-2)),\"\")","v":{"$error":"#N/A"}},{"$f":"IF(INDIRECT(\"c\" & (VLOOKUP(Switch!$D$56,$F$2:$G$44,2,FALSE)+ROW()-2))=Switch!$D$56,INDIRECT(\"a\" & (VLOOKUP(Switch!$D$56,$F$2:$G$44,2,FALSE)+ROW()-2)),\"\")","v":{"$error":"#N/A"}},{"$f":"IF(INDIRECT(\"c\" & (VLOOKUP(Switch!$D$57,$F$2:$G$44,2,FALSE)+ROW()-2))=Switch!$D$57,INDIRECT(\"a\" & (VLOOKUP(Switch!$D$57,$F$2:$G$44,2,FALSE)+ROW()-2)),\"\")","v":{"$error":"#N/A"}},{"$f":"IF(INDIRECT(\"c\" & (VLOOKUP(Switch!$D$58,$F$2:$G$44,2,FALSE)+ROW()-2))=Switch!$D$58,INDIRECT(\"a\" & (VLOOKUP(Switch!$D$58,$F$2:$G$44,2,FALSE)+ROW()-2)),\"\")","v":{"$error":"#N/A"}},{"$f":"IF(INDIRECT(\"c\" & (VLOOKUP(Switch!$D$59,$F$2:$G$44,2,FALSE)+ROW()-2))=Switch!$D$59,INDIRECT(\"a\" & (VLOOKUP(Switch!$D$59,$F$2:$G$44,2,FALSE)+ROW()-2)),\"\")","v":{"$error":"#N/A"}},{"$f":"IF(INDIRECT(\"c\" & (VLOOKUP(Switch!$D$60,$F$2:$G$44,2,FALSE)+ROW()-2))=Switch!$D$60,INDIRECT(\"a\" & (VLOOKUP(Switch!$D$60,$F$2:$G$44,2,FALSE)+ROW()-2)),\"\")","v":{"$error":"#N/A"}},{"$f":"IF(INDIRECT(\"c\" & (VLOOKUP(Switch!$D$61,$F$2:$G$44,2,FALSE)+ROW()-2))=Switch!$D$61,INDIRECT(\"a\" & (VLOOKUP(Switch!$D$61,$F$2:$G$44,2,FALSE)+ROW()-2)),\"\")","v":{"$error":"#N/A"}},{"$f":"IF(INDIRECT(\"c\" & (VLOOKUP(Switch!$D$62,$F$2:$G$44,2,FALSE)+ROW()-2))=Switch!$D$62,INDIRECT(\"a\" & (VLOOKUP(Switch!$D$62,$F$2:$G$44,2,FALSE)+ROW()-2)),\"\")","v":{"$error":"#N/A"}},{"$f":"IF(INDIRECT(\"c\" & (VLOOKUP(Switch!$D$63,$F$2:$G$44,2,FALSE)+ROW()-2))=Switch!$D$63,INDIRECT(\"a\" & (VLOOKUP(Switch!$D$63,$F$2:$G$44,2,FALSE)+ROW()-2)),\"\")","v":{"$error":"#N/A"}},{"$f":"IF(INDIRECT(\"c\" & (VLOOKUP(Switch!$D$64,$F$2:$G$44,2,FALSE)+ROW()-2))=Switch!$D$64,INDIRECT(\"a\" & (VLOOKUP(Switch!$D$64,$F$2:$G$44,2,FALSE)+ROW()-2)),\"\")","v":{"$error":"#N/A"}},{"$f":"IF(INDIRECT(\"c\" & (VLOOKUP(Switch!$D$65,$F$2:$G$44,2,FALSE)+ROW()-2))=Switch!$D$65,INDIRECT(\"a\" & (VLOOKUP(Switch!$D$65,$F$2:$G$44,2,FALSE)+ROW()-2)),\"\")","v":{"$error":"#N/A"}},{"$f":"IF(INDIRECT(\"c\" & (VLOOKUP(Switch!$D$66,$F$2:$G$44,2,FALSE)+ROW()-2))=Switch!$D$66,INDIRECT(\"a\" & (VLOOKUP(Switch!$D$66,$F$2:$G$44,2,FALSE)+ROW()-2)),\"\")","v":{"$error":"#N/A"}}]
["Sasfin BCI Global Equity Feeder Fund A","SGEFA","Boutique Collective Investments (Pty) Ltd",{"$f":"ROW()","v":172},null,null,{"$f":"VLOOKUP(F172,$C$2:$D$637,2,FALSE)","v":{"$error":"#N/A"}},{"$f":"IF(INDIRECT(\"c\" & (VLOOKUP(Switch!$D$26,$F$2:$G$44,2,FALSE)+ROW()-2))=Switch!$D$26,INDIRECT(\"a\" & (VLOOKUP(Switch!$D$26,$F$2:$G$44,2,FALSE)+ROW()-2)),\"\")","v":{"$error":"#N/A"}},{"$f":"IF(INDIRECT(\"c\" & (VLOOKUP(Switch!$D$27,$F$2:$G$44,2,FALSE)+ROW()-2))=Switch!$D$27,INDIRECT(\"a\" & (VLOOKUP(Switch!$D$27,$F$2:$G$44,2,FALSE)+ROW()-2)),\"\")","v":{"$error":"#N/A"}},{"$f":"IF(INDIRECT(\"c\" & (VLOOKUP(Switch!$D$28,$F$2:$G$44,2,FALSE)+ROW()-2))=Switch!$D$28,INDIRECT(\"a\" & (VLOOKUP(Switch!$D$28,$F$2:$G$44,2,FALSE)+ROW()-2)),\"\")","v":{"$error":"#N/A"}},{"$f":"IF(INDIRECT(\"c\" & (VLOOKUP(Switch!$D$29,$F$2:$G$44,2,FALSE)+ROW()-2))=Switch!$D$29,INDIRECT(\"a\" & (VLOOKUP(Switch!$D$29,$F$2:$G$44,2,FALSE)+ROW()-2)),\"\")","v":{"$error":"#N/A"}},{"$f":"IF(INDIRECT(\"c\" & (VLOOKUP(Switch!$D$30,$F$2:$G$44,2,FALSE)+ROW()-2))=Switch!$D$30,INDIRECT(\"a\" & (VLOOKUP(Switch!$D$30,$F$2:$G$44,2,FALSE)+ROW()-2)),\"\")","v":{"$error":"#N/A"}},{"$f":"IF(INDIRECT(\"c\" & (VLOOKUP(Switch!$D$31,$F$2:$G$44,2,FALSE)+ROW()-2))=Switch!$D$31,INDIRECT(\"a\" & (VLOOKUP(Switch!$D$31,$F$2:$G$44,2,FALSE)+ROW()-2)),\"\")","v":{"$error":"#N/A"}},{"$f":"IF(INDIRECT(\"c\" & (VLOOKUP(Switch!$D$32,$F$2:$G$44,2,FALSE)+ROW()-2))=Switch!$D$32,INDIRECT(\"a\" & (VLOOKUP(Switch!$D$32,$F$2:$G$44,2,FALSE)+ROW()-2)),\"\")","v":{"$error":"#N/A"}},{"$f":"IF(INDIRECT(\"c\" & (VLOOKUP(Switch!$D$33,$F$2:$G$44,2,FALSE)+ROW()-2))=Switch!$D$33,INDIRECT(\"a\" & (VLOOKUP(Switch!$D$33,$F$2:$G$44,2,FALSE)+ROW()-2)),\"\")","v":{"$error":"#N/A"}},{"$f":"IF(INDIRECT(\"c\" & (VLOOKUP(Switch!$D$34,$F$2:$G$44,2,FALSE)+ROW()-2))=Switch!$D$34,INDIRECT(\"a\" & (VLOOKUP(Switch!$D$34,$F$2:$G$44,2,FALSE)+ROW()-2)),\"\")","v":{"$error":"#N/A"}},{"$f":"IF(INDIRECT(\"c\" & (VLOOKUP(Switch!$D$35,$F$2:$G$44,2,FALSE)+ROW()-2))=Switch!$D$35,INDIRECT(\"a\" & (VLOOKUP(Switch!$D$35,$F$2:$G$44,2,FALSE)+ROW()-2)),\"\")","v":{"$error":"#N/A"}},{"$f":"IF(INDIRECT(\"c\" & (VLOOKUP(Switch!$D$36,$F$2:$G$44,2,FALSE)+ROW()-2))=Switch!$D$36,INDIRECT(\"a\" & (VLOOKUP(Switch!$D$36,$F$2:$G$44,2,FALSE)+ROW()-2)),\"\")","v":{"$error":"#N/A"}},{"$f":"IF(INDIRECT(\"c\" & (VLOOKUP(Switch!$D$37,$F$2:$G$44,2,FALSE)+ROW()-2))=Switch!$D$37,INDIRECT(\"a\" & (VLOOKUP(Switch!$D$37,$F$2:$G$44,2,FALSE)+ROW()-2)),\"\")","v":{"$error":"#N/A"}},{"$f":"IF(INDIRECT(\"c\" & (VLOOKUP(Switch!$D$38,$F$2:$G$44,2,FALSE)+ROW()-2))=Switch!$D$38,INDIRECT(\"a\" & (VLOOKUP(Switch!$D$38,$F$2:$G$44,2,FALSE)+ROW()-2)),\"\")","v":{"$error":"#N/A"}},{"$f":"IF(INDIRECT(\"c\" & (VLOOKUP(Switch!$D$39,$F$2:$G$44,2,FALSE)+ROW()-2))=Switch!$D$39,INDIRECT(\"a\" & (VLOOKUP(Switch!$D$39,$F$2:$G$44,2,FALSE)+ROW()-2)),\"\")","v":{"$error":"#N/A"}},{"$f":"IF(INDIRECT(\"c\" & (VLOOKUP(Switch!$D$40,$F$2:$G$44,2,FALSE)+ROW()-2))=Switch!$D$40,INDIRECT(\"a\" & (VLOOKUP(Switch!$D$40,$F$2:$G$44,2,FALSE)+ROW()-2)),\"\")","v":{"$error":"#N/A"}},{"$f":"IF(INDIRECT(\"c\" & (VLOOKUP(Switch!$D$52,$F$2:$G$44,2,FALSE)+ROW()-2))=Switch!$D$52,INDIRECT(\"a\" & (VLOOKUP(Switch!$D$52,$F$2:$G$44,2,FALSE)+ROW()-2)),\"\")","v":{"$error":"#N/A"}},{"$f":"IF(INDIRECT(\"c\" & (VLOOKUP(Switch!$D$53,$F$2:$G$44,2,FALSE)+ROW()-2))=Switch!$D$53,INDIRECT(\"a\" & (VLOOKUP(Switch!$D$53,$F$2:$G$44,2,FALSE)+ROW()-2)),\"\")","v":{"$error":"#N/A"}},{"$f":"IF(INDIRECT(\"c\" & (VLOOKUP(Switch!$D$54,$F$2:$G$44,2,FALSE)+ROW()-2))=Switch!$D$54,INDIRECT(\"a\" & (VLOOKUP(Switch!$D$54,$F$2:$G$44,2,FALSE)+ROW()-2)),\"\")","v":{"$error":"#N/A"}},{"$f":"IF(INDIRECT(\"c\" & (VLOOKUP(Switch!$D$55,$F$2:$G$44,2,FALSE)+ROW()-2))=Switch!$D$55,INDIRECT(\"a\" & (VLOOKUP(Switch!$D$55,$F$2:$G$44,2,FALSE)+ROW()-2)),\"\")","v":{"$error":"#N/A"}},{"$f":"IF(INDIRECT(\"c\" & (VLOOKUP(Switch!$D$56,$F$2:$G$44,2,FALSE)+ROW()-2))=Switch!$D$56,INDIRECT(\"a\" & (VLOOKUP(Switch!$D$56,$F$2:$G$44,2,FALSE)+ROW()-2)),\"\")","v":{"$error":"#N/A"}},{"$f":"IF(INDIRECT(\"c\" & (VLOOKUP(Switch!$D$57,$F$2:$G$44,2,FALSE)+ROW()-2))=Switch!$D$57,INDIRECT(\"a\" & (VLOOKUP(Switch!$D$57,$F$2:$G$44,2,FALSE)+ROW()-2)),\"\")","v":{"$error":"#N/A"}},{"$f":"IF(INDIRECT(\"c\" & (VLOOKUP(Switch!$D$58,$F$2:$G$44,2,FALSE)+ROW()-2))=Switch!$D$58,INDIRECT(\"a\" & (VLOOKUP(Switch!$D$58,$F$2:$G$44,2,FALSE)+ROW()-2)),\"\")","v":{"$error":"#N/A"}},{"$f":"IF(INDIRECT(\"c\" & (VLOOKUP(Switch!$D$59,$F$2:$G$44,2,FALSE)+ROW()-2))=Switch!$D$59,INDIRECT(\"a\" & (VLOOKUP(Switch!$D$59,$F$2:$G$44,2,FALSE)+ROW()-2)),\"\")","v":{"$error":"#N/A"}},{"$f":"IF(INDIRECT(\"c\" & (VLOOKUP(Switch!$D$60,$F$2:$G$44,2,FALSE)+ROW()-2))=Switch!$D$60,INDIRECT(\"a\" & (VLOOKUP(Switch!$D$60,$F$2:$G$44,2,FALSE)+ROW()-2)),\"\")","v":{"$error":"#N/A"}},{"$f":"IF(INDIRECT(\"c\" & (VLOOKUP(Switch!$D$61,$F$2:$G$44,2,FALSE)+ROW()-2))=Switch!$D$61,INDIRECT(\"a\" & (VLOOKUP(Switch!$D$61,$F$2:$G$44,2,FALSE)+ROW()-2)),\"\")","v":{"$error":"#N/A"}},{"$f":"IF(INDIRECT(\"c\" & (VLOOKUP(Switch!$D$62,$F$2:$G$44,2,FALSE)+ROW()-2))=Switch!$D$62,INDIRECT(\"a\" & (VLOOKUP(Switch!$D$62,$F$2:$G$44,2,FALSE)+ROW()-2)),\"\")","v":{"$error":"#N/A"}},{"$f":"IF(INDIRECT(\"c\" & (VLOOKUP(Switch!$D$63,$F$2:$G$44,2,FALSE)+ROW()-2))=Switch!$D$63,INDIRECT(\"a\" & (VLOOKUP(Switch!$D$63,$F$2:$G$44,2,FALSE)+ROW()-2)),\"\")","v":{"$error":"#N/A"}},{"$f":"IF(INDIRECT(\"c\" & (VLOOKUP(Switch!$D$64,$F$2:$G$44,2,FALSE)+ROW()-2))=Switch!$D$64,INDIRECT(\"a\" & (VLOOKUP(Switch!$D$64,$F$2:$G$44,2,FALSE)+ROW()-2)),\"\")","v":{"$error":"#N/A"}},{"$f":"IF(INDIRECT(\"c\" & (VLOOKUP(Switch!$D$65,$F$2:$G$44,2,FALSE)+ROW()-2))=Switch!$D$65,INDIRECT(\"a\" & (VLOOKUP(Switch!$D$65,$F$2:$G$44,2,FALSE)+ROW()-2)),\"\")","v":{"$error":"#N/A"}},{"$f":"IF(INDIRECT(\"c\" & (VLOOKUP(Switch!$D$66,$F$2:$G$44,2,FALSE)+ROW()-2))=Switch!$D$66,INDIRECT(\"a\" & (VLOOKUP(Switch!$D$66,$F$2:$G$44,2,FALSE)+ROW()-2)),\"\")","v":{"$error":"#N/A"}}]
["Sasfin BCI Opportunity Equity Fund A","SBEFA","Boutique Collective Investments (Pty) Ltd",{"$f":"ROW()","v":173},null,null,{"$f":"VLOOKUP(F173,$C$2:$D$637,2,FALSE)","v":{"$error":"#N/A"}},{"$f":"IF(INDIRECT(\"c\" & (VLOOKUP(Switch!$D$26,$F$2:$G$44,2,FALSE)+ROW()-2))=Switch!$D$26,INDIRECT(\"a\" & (VLOOKUP(Switch!$D$26,$F$2:$G$44,2,FALSE)+ROW()-2)),\"\")","v":{"$error":"#N/A"}},{"$f":"IF(INDIRECT(\"c\" & (VLOOKUP(Switch!$D$27,$F$2:$G$44,2,FALSE)+ROW()-2))=Switch!$D$27,INDIRECT(\"a\" & (VLOOKUP(Switch!$D$27,$F$2:$G$44,2,FALSE)+ROW()-2)),\"\")","v":{"$error":"#N/A"}},{"$f":"IF(INDIRECT(\"c\" & (VLOOKUP(Switch!$D$28,$F$2:$G$44,2,FALSE)+ROW()-2))=Switch!$D$28,INDIRECT(\"a\" & (VLOOKUP(Switch!$D$28,$F$2:$G$44,2,FALSE)+ROW()-2)),\"\")","v":{"$error":"#N/A"}},{"$f":"IF(INDIRECT(\"c\" & (VLOOKUP(Switch!$D$29,$F$2:$G$44,2,FALSE)+ROW()-2))=Switch!$D$29,INDIRECT(\"a\" & (VLOOKUP(Switch!$D$29,$F$2:$G$44,2,FALSE)+ROW()-2)),\"\")","v":{"$error":"#N/A"}},{"$f":"IF(INDIRECT(\"c\" & (VLOOKUP(Switch!$D$30,$F$2:$G$44,2,FALSE)+ROW()-2))=Switch!$D$30,INDIRECT(\"a\" & (VLOOKUP(Switch!$D$30,$F$2:$G$44,2,FALSE)+ROW()-2)),\"\")","v":{"$error":"#N/A"}},{"$f":"IF(INDIRECT(\"c\" & (VLOOKUP(Switch!$D$31,$F$2:$G$44,2,FALSE)+ROW()-2))=Switch!$D$31,INDIRECT(\"a\" & (VLOOKUP(Switch!$D$31,$F$2:$G$44,2,FALSE)+ROW()-2)),\"\")","v":{"$error":"#N/A"}},{"$f":"IF(INDIRECT(\"c\" & (VLOOKUP(Switch!$D$32,$F$2:$G$44,2,FALSE)+ROW()-2))=Switch!$D$32,INDIRECT(\"a\" & (VLOOKUP(Switch!$D$32,$F$2:$G$44,2,FALSE)+ROW()-2)),\"\")","v":{"$error":"#N/A"}},{"$f":"IF(INDIRECT(\"c\" & (VLOOKUP(Switch!$D$33,$F$2:$G$44,2,FALSE)+ROW()-2))=Switch!$D$33,INDIRECT(\"a\" & (VLOOKUP(Switch!$D$33,$F$2:$G$44,2,FALSE)+ROW()-2)),\"\")","v":{"$error":"#N/A"}},{"$f":"IF(INDIRECT(\"c\" & (VLOOKUP(Switch!$D$34,$F$2:$G$44,2,FALSE)+ROW()-2))=Switch!$D$34,INDIRECT(\"a\" & (VLOOKUP(Switch!$D$34,$F$2:$G$44,2,FALSE)+ROW()-2)),\"\")","v":{"$error":"#N/A"}},{"$f":"IF(INDIRECT(\"c\" & (VLOOKUP(Switch!$D$35,$F$2:$G$44,2,FALSE)+ROW()-2))=Switch!$D$35,INDIRECT(\"a\" & (VLOOKUP(Switch!$D$35,$F$2:$G$44,2,FALSE)+ROW()-2)),\"\")","v":{"$error":"#N/A"}},{"$f":"IF(INDIRECT(\"c\" & (VLOOKUP(Switch!$D$36,$F$2:$G$44,2,FALSE)+ROW()-2))=Switch!$D$36,INDIRECT(\"a\" & (VLOOKUP(Switch!$D$36,$F$2:$G$44,2,FALSE)+ROW()-2)),\"\")","v":{"$error":"#N/A"}},{"$f":"IF(INDIRECT(\"c\" & (VLOOKUP(Switch!$D$37,$F$2:$G$44,2,FALSE)+ROW()-2))=Switch!$D$37,INDIRECT(\"a\" & (VLOOKUP(Switch!$D$37,$F$2:$G$44,2,FALSE)+ROW()-2)),\"\")","v":{"$error":"#N/A"}},{"$f":"IF(INDIRECT(\"c\" & (VLOOKUP(Switch!$D$38,$F$2:$G$44,2,FALSE)+ROW()-2))=Switch!$D$38,INDIRECT(\"a\" & (VLOOKUP(Switch!$D$38,$F$2:$G$44,2,FALSE)+ROW()-2)),\"\")","v":{"$error":"#N/A"}},{"$f":"IF(INDIRECT(\"c\" & (VLOOKUP(Switch!$D$39,$F$2:$G$44,2,FALSE)+ROW()-2))=Switch!$D$39,INDIRECT(\"a\" & (VLOOKUP(Switch!$D$39,$F$2:$G$44,2,FALSE)+ROW()-2)),\"\")","v":{"$error":"#N/A"}},{"$f":"IF(INDIRECT(\"c\" & (VLOOKUP(Switch!$D$40,$F$2:$G$44,2,FALSE)+ROW()-2))=Switch!$D$40,INDIRECT(\"a\" & (VLOOKUP(Switch!$D$40,$F$2:$G$44,2,FALSE)+ROW()-2)),\"\")","v":{"$error":"#N/A"}},{"$f":"IF(INDIRECT(\"c\" & (VLOOKUP(Switch!$D$52,$F$2:$G$44,2,FALSE)+ROW()-2))=Switch!$D$52,INDIRECT(\"a\" & (VLOOKUP(Switch!$D$52,$F$2:$G$44,2,FALSE)+ROW()-2)),\"\")","v":{"$error":"#N/A"}},{"$f":"IF(INDIRECT(\"c\" & (VLOOKUP(Switch!$D$53,$F$2:$G$44,2,FALSE)+ROW()-2))=Switch!$D$53,INDIRECT(\"a\" & (VLOOKUP(Switch!$D$53,$F$2:$G$44,2,FALSE)+ROW()-2)),\"\")","v":{"$error":"#N/A"}},{"$f":"IF(INDIRECT(\"c\" & (VLOOKUP(Switch!$D$54,$F$2:$G$44,2,FALSE)+ROW()-2))=Switch!$D$54,INDIRECT(\"a\" & (VLOOKUP(Switch!$D$54,$F$2:$G$44,2,FALSE)+ROW()-2)),\"\")","v":{"$error":"#N/A"}},{"$f":"IF(INDIRECT(\"c\" & (VLOOKUP(Switch!$D$55,$F$2:$G$44,2,FALSE)+ROW()-2))=Switch!$D$55,INDIRECT(\"a\" & (VLOOKUP(Switch!$D$55,$F$2:$G$44,2,FALSE)+ROW()-2)),\"\")","v":{"$error":"#N/A"}},{"$f":"IF(INDIRECT(\"c\" & (VLOOKUP(Switch!$D$56,$F$2:$G$44,2,FALSE)+ROW()-2))=Switch!$D$56,INDIRECT(\"a\" & (VLOOKUP(Switch!$D$56,$F$2:$G$44,2,FALSE)+ROW()-2)),\"\")","v":{"$error":"#N/A"}},{"$f":"IF(INDIRECT(\"c\" & (VLOOKUP(Switch!$D$57,$F$2:$G$44,2,FALSE)+ROW()-2))=Switch!$D$57,INDIRECT(\"a\" & (VLOOKUP(Switch!$D$57,$F$2:$G$44,2,FALSE)+ROW()-2)),\"\")","v":{"$error":"#N/A"}},{"$f":"IF(INDIRECT(\"c\" & (VLOOKUP(Switch!$D$58,$F$2:$G$44,2,FALSE)+ROW()-2))=Switch!$D$58,INDIRECT(\"a\" & (VLOOKUP(Switch!$D$58,$F$2:$G$44,2,FALSE)+ROW()-2)),\"\")","v":{"$error":"#N/A"}},{"$f":"IF(INDIRECT(\"c\" & (VLOOKUP(Switch!$D$59,$F$2:$G$44,2,FALSE)+ROW()-2))=Switch!$D$59,INDIRECT(\"a\" & (VLOOKUP(Switch!$D$59,$F$2:$G$44,2,FALSE)+ROW()-2)),\"\")","v":{"$error":"#N/A"}},{"$f":"IF(INDIRECT(\"c\" & (VLOOKUP(Switch!$D$60,$F$2:$G$44,2,FALSE)+ROW()-2))=Switch!$D$60,INDIRECT(\"a\" & (VLOOKUP(Switch!$D$60,$F$2:$G$44,2,FALSE)+ROW()-2)),\"\")","v":{"$error":"#N/A"}},{"$f":"IF(INDIRECT(\"c\" & (VLOOKUP(Switch!$D$61,$F$2:$G$44,2,FALSE)+ROW()-2))=Switch!$D$61,INDIRECT(\"a\" & (VLOOKUP(Switch!$D$61,$F$2:$G$44,2,FALSE)+ROW()-2)),\"\")","v":{"$error":"#N/A"}},{"$f":"IF(INDIRECT(\"c\" & (VLOOKUP(Switch!$D$62,$F$2:$G$44,2,FALSE)+ROW()-2))=Switch!$D$62,INDIRECT(\"a\" & (VLOOKUP(Switch!$D$62,$F$2:$G$44,2,FALSE)+ROW()-2)),\"\")","v":{"$error":"#N/A"}},{"$f":"IF(INDIRECT(\"c\" & (VLOOKUP(Switch!$D$63,$F$2:$G$44,2,FALSE)+ROW()-2))=Switch!$D$63,INDIRECT(\"a\" & (VLOOKUP(Switch!$D$63,$F$2:$G$44,2,FALSE)+ROW()-2)),\"\")","v":{"$error":"#N/A"}},{"$f":"IF(INDIRECT(\"c\" & (VLOOKUP(Switch!$D$64,$F$2:$G$44,2,FALSE)+ROW()-2))=Switch!$D$64,INDIRECT(\"a\" & (VLOOKUP(Switch!$D$64,$F$2:$G$44,2,FALSE)+ROW()-2)),\"\")","v":{"$error":"#N/A"}},{"$f":"IF(INDIRECT(\"c\" & (VLOOKUP(Switch!$D$65,$F$2:$G$44,2,FALSE)+ROW()-2))=Switch!$D$65,INDIRECT(\"a\" & (VLOOKUP(Switch!$D$65,$F$2:$G$44,2,FALSE)+ROW()-2)),\"\")","v":{"$error":"#N/A"}},{"$f":"IF(INDIRECT(\"c\" & (VLOOKUP(Switch!$D$66,$F$2:$G$44,2,FALSE)+ROW()-2))=Switch!$D$66,INDIRECT(\"a\" & (VLOOKUP(Switch!$D$66,$F$2:$G$44,2,FALSE)+ROW()-2)),\"\")","v":{"$error":"#N/A"}}]
["Sasfin BCI Prudential Fund C","SBEFA","Boutique Collective Investments (Pty) Ltd",{"$f":"ROW()","v":174},null,null,{"$f":"VLOOKUP(F174,$C$2:$D$637,2,FALSE)","v":{"$error":"#N/A"}},{"$f":"IF(INDIRECT(\"c\" & (VLOOKUP(Switch!$D$26,$F$2:$G$44,2,FALSE)+ROW()-2))=Switch!$D$26,INDIRECT(\"a\" & (VLOOKUP(Switch!$D$26,$F$2:$G$44,2,FALSE)+ROW()-2)),\"\")","v":{"$error":"#N/A"}},{"$f":"IF(INDIRECT(\"c\" & (VLOOKUP(Switch!$D$27,$F$2:$G$44,2,FALSE)+ROW()-2))=Switch!$D$27,INDIRECT(\"a\" & (VLOOKUP(Switch!$D$27,$F$2:$G$44,2,FALSE)+ROW()-2)),\"\")","v":{"$error":"#N/A"}},{"$f":"IF(INDIRECT(\"c\" & (VLOOKUP(Switch!$D$28,$F$2:$G$44,2,FALSE)+ROW()-2))=Switch!$D$28,INDIRECT(\"a\" & (VLOOKUP(Switch!$D$28,$F$2:$G$44,2,FALSE)+ROW()-2)),\"\")","v":{"$error":"#N/A"}},{"$f":"IF(INDIRECT(\"c\" & (VLOOKUP(Switch!$D$29,$F$2:$G$44,2,FALSE)+ROW()-2))=Switch!$D$29,INDIRECT(\"a\" & (VLOOKUP(Switch!$D$29,$F$2:$G$44,2,FALSE)+ROW()-2)),\"\")","v":{"$error":"#N/A"}},{"$f":"IF(INDIRECT(\"c\" & (VLOOKUP(Switch!$D$30,$F$2:$G$44,2,FALSE)+ROW()-2))=Switch!$D$30,INDIRECT(\"a\" & (VLOOKUP(Switch!$D$30,$F$2:$G$44,2,FALSE)+ROW()-2)),\"\")","v":{"$error":"#N/A"}},{"$f":"IF(INDIRECT(\"c\" & (VLOOKUP(Switch!$D$31,$F$2:$G$44,2,FALSE)+ROW()-2))=Switch!$D$31,INDIRECT(\"a\" & (VLOOKUP(Switch!$D$31,$F$2:$G$44,2,FALSE)+ROW()-2)),\"\")","v":{"$error":"#N/A"}},{"$f":"IF(INDIRECT(\"c\" & (VLOOKUP(Switch!$D$32,$F$2:$G$44,2,FALSE)+ROW()-2))=Switch!$D$32,INDIRECT(\"a\" & (VLOOKUP(Switch!$D$32,$F$2:$G$44,2,FALSE)+ROW()-2)),\"\")","v":{"$error":"#N/A"}},{"$f":"IF(INDIRECT(\"c\" & (VLOOKUP(Switch!$D$33,$F$2:$G$44,2,FALSE)+ROW()-2))=Switch!$D$33,INDIRECT(\"a\" & (VLOOKUP(Switch!$D$33,$F$2:$G$44,2,FALSE)+ROW()-2)),\"\")","v":{"$error":"#N/A"}},{"$f":"IF(INDIRECT(\"c\" & (VLOOKUP(Switch!$D$34,$F$2:$G$44,2,FALSE)+ROW()-2))=Switch!$D$34,INDIRECT(\"a\" & (VLOOKUP(Switch!$D$34,$F$2:$G$44,2,FALSE)+ROW()-2)),\"\")","v":{"$error":"#N/A"}},{"$f":"IF(INDIRECT(\"c\" & (VLOOKUP(Switch!$D$35,$F$2:$G$44,2,FALSE)+ROW()-2))=Switch!$D$35,INDIRECT(\"a\" & (VLOOKUP(Switch!$D$35,$F$2:$G$44,2,FALSE)+ROW()-2)),\"\")","v":{"$error":"#N/A"}},{"$f":"IF(INDIRECT(\"c\" & (VLOOKUP(Switch!$D$36,$F$2:$G$44,2,FALSE)+ROW()-2))=Switch!$D$36,INDIRECT(\"a\" & (VLOOKUP(Switch!$D$36,$F$2:$G$44,2,FALSE)+ROW()-2)),\"\")","v":{"$error":"#N/A"}},{"$f":"IF(INDIRECT(\"c\" & (VLOOKUP(Switch!$D$37,$F$2:$G$44,2,FALSE)+ROW()-2))=Switch!$D$37,INDIRECT(\"a\" & (VLOOKUP(Switch!$D$37,$F$2:$G$44,2,FALSE)+ROW()-2)),\"\")","v":{"$error":"#N/A"}},{"$f":"IF(INDIRECT(\"c\" & (VLOOKUP(Switch!$D$38,$F$2:$G$44,2,FALSE)+ROW()-2))=Switch!$D$38,INDIRECT(\"a\" & (VLOOKUP(Switch!$D$38,$F$2:$G$44,2,FALSE)+ROW()-2)),\"\")","v":{"$error":"#N/A"}},{"$f":"IF(INDIRECT(\"c\" & (VLOOKUP(Switch!$D$39,$F$2:$G$44,2,FALSE)+ROW()-2))=Switch!$D$39,INDIRECT(\"a\" & (VLOOKUP(Switch!$D$39,$F$2:$G$44,2,FALSE)+ROW()-2)),\"\")","v":{"$error":"#N/A"}},{"$f":"IF(INDIRECT(\"c\" & (VLOOKUP(Switch!$D$40,$F$2:$G$44,2,FALSE)+ROW()-2))=Switch!$D$40,INDIRECT(\"a\" & (VLOOKUP(Switch!$D$40,$F$2:$G$44,2,FALSE)+ROW()-2)),\"\")","v":{"$error":"#N/A"}},{"$f":"IF(INDIRECT(\"c\" & (VLOOKUP(Switch!$D$52,$F$2:$G$44,2,FALSE)+ROW()-2))=Switch!$D$52,INDIRECT(\"a\" & (VLOOKUP(Switch!$D$52,$F$2:$G$44,2,FALSE)+ROW()-2)),\"\")","v":{"$error":"#N/A"}},{"$f":"IF(INDIRECT(\"c\" & (VLOOKUP(Switch!$D$53,$F$2:$G$44,2,FALSE)+ROW()-2))=Switch!$D$53,INDIRECT(\"a\" & (VLOOKUP(Switch!$D$53,$F$2:$G$44,2,FALSE)+ROW()-2)),\"\")","v":{"$error":"#N/A"}},{"$f":"IF(INDIRECT(\"c\" & (VLOOKUP(Switch!$D$54,$F$2:$G$44,2,FALSE)+ROW()-2))=Switch!$D$54,INDIRECT(\"a\" & (VLOOKUP(Switch!$D$54,$F$2:$G$44,2,FALSE)+ROW()-2)),\"\")","v":{"$error":"#N/A"}},{"$f":"IF(INDIRECT(\"c\" & (VLOOKUP(Switch!$D$55,$F$2:$G$44,2,FALSE)+ROW()-2))=Switch!$D$55,INDIRECT(\"a\" & (VLOOKUP(Switch!$D$55,$F$2:$G$44,2,FALSE)+ROW()-2)),\"\")","v":{"$error":"#N/A"}},{"$f":"IF(INDIRECT(\"c\" & (VLOOKUP(Switch!$D$56,$F$2:$G$44,2,FALSE)+ROW()-2))=Switch!$D$56,INDIRECT(\"a\" & (VLOOKUP(Switch!$D$56,$F$2:$G$44,2,FALSE)+ROW()-2)),\"\")","v":{"$error":"#N/A"}},{"$f":"IF(INDIRECT(\"c\" & (VLOOKUP(Switch!$D$57,$F$2:$G$44,2,FALSE)+ROW()-2))=Switch!$D$57,INDIRECT(\"a\" & (VLOOKUP(Switch!$D$57,$F$2:$G$44,2,FALSE)+ROW()-2)),\"\")","v":{"$error":"#N/A"}},{"$f":"IF(INDIRECT(\"c\" & (VLOOKUP(Switch!$D$58,$F$2:$G$44,2,FALSE)+ROW()-2))=Switch!$D$58,INDIRECT(\"a\" & (VLOOKUP(Switch!$D$58,$F$2:$G$44,2,FALSE)+ROW()-2)),\"\")","v":{"$error":"#N/A"}},{"$f":"IF(INDIRECT(\"c\" & (VLOOKUP(Switch!$D$59,$F$2:$G$44,2,FALSE)+ROW()-2))=Switch!$D$59,INDIRECT(\"a\" & (VLOOKUP(Switch!$D$59,$F$2:$G$44,2,FALSE)+ROW()-2)),\"\")","v":{"$error":"#N/A"}},{"$f":"IF(INDIRECT(\"c\" & (VLOOKUP(Switch!$D$60,$F$2:$G$44,2,FALSE)+ROW()-2))=Switch!$D$60,INDIRECT(\"a\" & (VLOOKUP(Switch!$D$60,$F$2:$G$44,2,FALSE)+ROW()-2)),\"\")","v":{"$error":"#N/A"}},{"$f":"IF(INDIRECT(\"c\" & (VLOOKUP(Switch!$D$61,$F$2:$G$44,2,FALSE)+ROW()-2))=Switch!$D$61,INDIRECT(\"a\" & (VLOOKUP(Switch!$D$61,$F$2:$G$44,2,FALSE)+ROW()-2)),\"\")","v":{"$error":"#N/A"}},{"$f":"IF(INDIRECT(\"c\" & (VLOOKUP(Switch!$D$62,$F$2:$G$44,2,FALSE)+ROW()-2))=Switch!$D$62,INDIRECT(\"a\" & (VLOOKUP(Switch!$D$62,$F$2:$G$44,2,FALSE)+ROW()-2)),\"\")","v":{"$error":"#N/A"}},{"$f":"IF(INDIRECT(\"c\" & (VLOOKUP(Switch!$D$63,$F$2:$G$44,2,FALSE)+ROW()-2))=Switch!$D$63,INDIRECT(\"a\" & (VLOOKUP(Switch!$D$63,$F$2:$G$44,2,FALSE)+ROW()-2)),\"\")","v":{"$error":"#N/A"}},{"$f":"IF(INDIRECT(\"c\" & (VLOOKUP(Switch!$D$64,$F$2:$G$44,2,FALSE)+ROW()-2))=Switch!$D$64,INDIRECT(\"a\" & (VLOOKUP(Switch!$D$64,$F$2:$G$44,2,FALSE)+ROW()-2)),\"\")","v":{"$error":"#N/A"}},{"$f":"IF(INDIRECT(\"c\" & (VLOOKUP(Switch!$D$65,$F$2:$G$44,2,FALSE)+ROW()-2))=Switch!$D$65,INDIRECT(\"a\" & (VLOOKUP(Switch!$D$65,$F$2:$G$44,2,FALSE)+ROW()-2)),\"\")","v":{"$error":"#N/A"}},{"$f":"IF(INDIRECT(\"c\" & (VLOOKUP(Switch!$D$66,$F$2:$G$44,2,FALSE)+ROW()-2))=Switch!$D$66,INDIRECT(\"a\" & (VLOOKUP(Switch!$D$66,$F$2:$G$44,2,FALSE)+ROW()-2)),\"\")","v":{"$error":"#N/A"}}]
["Sasfin BCI Optimal Income C","IBOFC","Boutique Collective Investments (Pty) Ltd",{"$f":"ROW()","v":175},null,null,{"$f":"VLOOKUP(F175,$C$2:$D$637,2,FALSE)","v":{"$error":"#N/A"}},{"$f":"IF(INDIRECT(\"c\" & (VLOOKUP(Switch!$D$26,$F$2:$G$44,2,FALSE)+ROW()-2))=Switch!$D$26,INDIRECT(\"a\" & (VLOOKUP(Switch!$D$26,$F$2:$G$44,2,FALSE)+ROW()-2)),\"\")","v":{"$error":"#N/A"}},{"$f":"IF(INDIRECT(\"c\" & (VLOOKUP(Switch!$D$27,$F$2:$G$44,2,FALSE)+ROW()-2))=Switch!$D$27,INDIRECT(\"a\" & (VLOOKUP(Switch!$D$27,$F$2:$G$44,2,FALSE)+ROW()-2)),\"\")","v":{"$error":"#N/A"}},{"$f":"IF(INDIRECT(\"c\" & (VLOOKUP(Switch!$D$28,$F$2:$G$44,2,FALSE)+ROW()-2))=Switch!$D$28,INDIRECT(\"a\" & (VLOOKUP(Switch!$D$28,$F$2:$G$44,2,FALSE)+ROW()-2)),\"\")","v":{"$error":"#N/A"}},{"$f":"IF(INDIRECT(\"c\" & (VLOOKUP(Switch!$D$29,$F$2:$G$44,2,FALSE)+ROW()-2))=Switch!$D$29,INDIRECT(\"a\" & (VLOOKUP(Switch!$D$29,$F$2:$G$44,2,FALSE)+ROW()-2)),\"\")","v":{"$error":"#N/A"}},{"$f":"IF(INDIRECT(\"c\" & (VLOOKUP(Switch!$D$30,$F$2:$G$44,2,FALSE)+ROW()-2))=Switch!$D$30,INDIRECT(\"a\" & (VLOOKUP(Switch!$D$30,$F$2:$G$44,2,FALSE)+ROW()-2)),\"\")","v":{"$error":"#N/A"}},{"$f":"IF(INDIRECT(\"c\" & (VLOOKUP(Switch!$D$31,$F$2:$G$44,2,FALSE)+ROW()-2))=Switch!$D$31,INDIRECT(\"a\" & (VLOOKUP(Switch!$D$31,$F$2:$G$44,2,FALSE)+ROW()-2)),\"\")","v":{"$error":"#N/A"}},{"$f":"IF(INDIRECT(\"c\" & (VLOOKUP(Switch!$D$32,$F$2:$G$44,2,FALSE)+ROW()-2))=Switch!$D$32,INDIRECT(\"a\" & (VLOOKUP(Switch!$D$32,$F$2:$G$44,2,FALSE)+ROW()-2)),\"\")","v":{"$error":"#N/A"}},{"$f":"IF(INDIRECT(\"c\" & (VLOOKUP(Switch!$D$33,$F$2:$G$44,2,FALSE)+ROW()-2))=Switch!$D$33,INDIRECT(\"a\" & (VLOOKUP(Switch!$D$33,$F$2:$G$44,2,FALSE)+ROW()-2)),\"\")","v":{"$error":"#N/A"}},{"$f":"IF(INDIRECT(\"c\" & (VLOOKUP(Switch!$D$34,$F$2:$G$44,2,FALSE)+ROW()-2))=Switch!$D$34,INDIRECT(\"a\" & (VLOOKUP(Switch!$D$34,$F$2:$G$44,2,FALSE)+ROW()-2)),\"\")","v":{"$error":"#N/A"}},{"$f":"IF(INDIRECT(\"c\" & (VLOOKUP(Switch!$D$35,$F$2:$G$44,2,FALSE)+ROW()-2))=Switch!$D$35,INDIRECT(\"a\" & (VLOOKUP(Switch!$D$35,$F$2:$G$44,2,FALSE)+ROW()-2)),\"\")","v":{"$error":"#N/A"}},{"$f":"IF(INDIRECT(\"c\" & (VLOOKUP(Switch!$D$36,$F$2:$G$44,2,FALSE)+ROW()-2))=Switch!$D$36,INDIRECT(\"a\" & (VLOOKUP(Switch!$D$36,$F$2:$G$44,2,FALSE)+ROW()-2)),\"\")","v":{"$error":"#N/A"}},{"$f":"IF(INDIRECT(\"c\" & (VLOOKUP(Switch!$D$37,$F$2:$G$44,2,FALSE)+ROW()-2))=Switch!$D$37,INDIRECT(\"a\" & (VLOOKUP(Switch!$D$37,$F$2:$G$44,2,FALSE)+ROW()-2)),\"\")","v":{"$error":"#N/A"}},{"$f":"IF(INDIRECT(\"c\" & (VLOOKUP(Switch!$D$38,$F$2:$G$44,2,FALSE)+ROW()-2))=Switch!$D$38,INDIRECT(\"a\" & (VLOOKUP(Switch!$D$38,$F$2:$G$44,2,FALSE)+ROW()-2)),\"\")","v":{"$error":"#N/A"}},{"$f":"IF(INDIRECT(\"c\" & (VLOOKUP(Switch!$D$39,$F$2:$G$44,2,FALSE)+ROW()-2))=Switch!$D$39,INDIRECT(\"a\" & (VLOOKUP(Switch!$D$39,$F$2:$G$44,2,FALSE)+ROW()-2)),\"\")","v":{"$error":"#N/A"}},{"$f":"IF(INDIRECT(\"c\" & (VLOOKUP(Switch!$D$40,$F$2:$G$44,2,FALSE)+ROW()-2))=Switch!$D$40,INDIRECT(\"a\" & (VLOOKUP(Switch!$D$40,$F$2:$G$44,2,FALSE)+ROW()-2)),\"\")","v":{"$error":"#N/A"}},{"$f":"IF(INDIRECT(\"c\" & (VLOOKUP(Switch!$D$52,$F$2:$G$44,2,FALSE)+ROW()-2))=Switch!$D$52,INDIRECT(\"a\" & (VLOOKUP(Switch!$D$52,$F$2:$G$44,2,FALSE)+ROW()-2)),\"\")","v":{"$error":"#N/A"}},{"$f":"IF(INDIRECT(\"c\" & (VLOOKUP(Switch!$D$53,$F$2:$G$44,2,FALSE)+ROW()-2))=Switch!$D$53,INDIRECT(\"a\" & (VLOOKUP(Switch!$D$53,$F$2:$G$44,2,FALSE)+ROW()-2)),\"\")","v":{"$error":"#N/A"}},{"$f":"IF(INDIRECT(\"c\" & (VLOOKUP(Switch!$D$54,$F$2:$G$44,2,FALSE)+ROW()-2))=Switch!$D$54,INDIRECT(\"a\" & (VLOOKUP(Switch!$D$54,$F$2:$G$44,2,FALSE)+ROW()-2)),\"\")","v":{"$error":"#N/A"}},{"$f":"IF(INDIRECT(\"c\" & (VLOOKUP(Switch!$D$55,$F$2:$G$44,2,FALSE)+ROW()-2))=Switch!$D$55,INDIRECT(\"a\" & (VLOOKUP(Switch!$D$55,$F$2:$G$44,2,FALSE)+ROW()-2)),\"\")","v":{"$error":"#N/A"}},{"$f":"IF(INDIRECT(\"c\" & (VLOOKUP(Switch!$D$56,$F$2:$G$44,2,FALSE)+ROW()-2))=Switch!$D$56,INDIRECT(\"a\" & (VLOOKUP(Switch!$D$56,$F$2:$G$44,2,FALSE)+ROW()-2)),\"\")","v":{"$error":"#N/A"}},{"$f":"IF(INDIRECT(\"c\" & (VLOOKUP(Switch!$D$57,$F$2:$G$44,2,FALSE)+ROW()-2))=Switch!$D$57,INDIRECT(\"a\" & (VLOOKUP(Switch!$D$57,$F$2:$G$44,2,FALSE)+ROW()-2)),\"\")","v":{"$error":"#N/A"}},{"$f":"IF(INDIRECT(\"c\" & (VLOOKUP(Switch!$D$58,$F$2:$G$44,2,FALSE)+ROW()-2))=Switch!$D$58,INDIRECT(\"a\" & (VLOOKUP(Switch!$D$58,$F$2:$G$44,2,FALSE)+ROW()-2)),\"\")","v":{"$error":"#N/A"}},{"$f":"IF(INDIRECT(\"c\" & (VLOOKUP(Switch!$D$59,$F$2:$G$44,2,FALSE)+ROW()-2))=Switch!$D$59,INDIRECT(\"a\" & (VLOOKUP(Switch!$D$59,$F$2:$G$44,2,FALSE)+ROW()-2)),\"\")","v":{"$error":"#N/A"}},{"$f":"IF(INDIRECT(\"c\" & (VLOOKUP(Switch!$D$60,$F$2:$G$44,2,FALSE)+ROW()-2))=Switch!$D$60,INDIRECT(\"a\" & (VLOOKUP(Switch!$D$60,$F$2:$G$44,2,FALSE)+ROW()-2)),\"\")","v":{"$error":"#N/A"}},{"$f":"IF(INDIRECT(\"c\" & (VLOOKUP(Switch!$D$61,$F$2:$G$44,2,FALSE)+ROW()-2))=Switch!$D$61,INDIRECT(\"a\" & (VLOOKUP(Switch!$D$61,$F$2:$G$44,2,FALSE)+ROW()-2)),\"\")","v":{"$error":"#N/A"}},{"$f":"IF(INDIRECT(\"c\" & (VLOOKUP(Switch!$D$62,$F$2:$G$44,2,FALSE)+ROW()-2))=Switch!$D$62,INDIRECT(\"a\" & (VLOOKUP(Switch!$D$62,$F$2:$G$44,2,FALSE)+ROW()-2)),\"\")","v":{"$error":"#N/A"}},{"$f":"IF(INDIRECT(\"c\" & (VLOOKUP(Switch!$D$63,$F$2:$G$44,2,FALSE)+ROW()-2))=Switch!$D$63,INDIRECT(\"a\" & (VLOOKUP(Switch!$D$63,$F$2:$G$44,2,FALSE)+ROW()-2)),\"\")","v":{"$error":"#N/A"}},{"$f":"IF(INDIRECT(\"c\" & (VLOOKUP(Switch!$D$64,$F$2:$G$44,2,FALSE)+ROW()-2))=Switch!$D$64,INDIRECT(\"a\" & (VLOOKUP(Switch!$D$64,$F$2:$G$44,2,FALSE)+ROW()-2)),\"\")","v":{"$error":"#N/A"}},{"$f":"IF(INDIRECT(\"c\" & (VLOOKUP(Switch!$D$65,$F$2:$G$44,2,FALSE)+ROW()-2))=Switch!$D$65,INDIRECT(\"a\" & (VLOOKUP(Switch!$D$65,$F$2:$G$44,2,FALSE)+ROW()-2)),\"\")","v":{"$error":"#N/A"}},{"$f":"IF(INDIRECT(\"c\" & (VLOOKUP(Switch!$D$66,$F$2:$G$44,2,FALSE)+ROW()-2))=Switch!$D$66,INDIRECT(\"a\" & (VLOOKUP(Switch!$D$66,$F$2:$G$44,2,FALSE)+ROW()-2)),\"\")","v":{"$error":"#N/A"}}]
["SBRO BCI Balanced FoF A","SBRB","Boutique Collective Investments (Pty) Ltd",{"$f":"ROW()","v":176},null,null,{"$f":"VLOOKUP(F176,$C$2:$D$637,2,FALSE)","v":{"$error":"#N/A"}},{"$f":"IF(INDIRECT(\"c\" & (VLOOKUP(Switch!$D$26,$F$2:$G$44,2,FALSE)+ROW()-2))=Switch!$D$26,INDIRECT(\"a\" & (VLOOKUP(Switch!$D$26,$F$2:$G$44,2,FALSE)+ROW()-2)),\"\")","v":{"$error":"#N/A"}},{"$f":"IF(INDIRECT(\"c\" & (VLOOKUP(Switch!$D$27,$F$2:$G$44,2,FALSE)+ROW()-2))=Switch!$D$27,INDIRECT(\"a\" & (VLOOKUP(Switch!$D$27,$F$2:$G$44,2,FALSE)+ROW()-2)),\"\")","v":{"$error":"#N/A"}},{"$f":"IF(INDIRECT(\"c\" & (VLOOKUP(Switch!$D$28,$F$2:$G$44,2,FALSE)+ROW()-2))=Switch!$D$28,INDIRECT(\"a\" & (VLOOKUP(Switch!$D$28,$F$2:$G$44,2,FALSE)+ROW()-2)),\"\")","v":{"$error":"#N/A"}},{"$f":"IF(INDIRECT(\"c\" & (VLOOKUP(Switch!$D$29,$F$2:$G$44,2,FALSE)+ROW()-2))=Switch!$D$29,INDIRECT(\"a\" & (VLOOKUP(Switch!$D$29,$F$2:$G$44,2,FALSE)+ROW()-2)),\"\")","v":{"$error":"#N/A"}},{"$f":"IF(INDIRECT(\"c\" & (VLOOKUP(Switch!$D$30,$F$2:$G$44,2,FALSE)+ROW()-2))=Switch!$D$30,INDIRECT(\"a\" & (VLOOKUP(Switch!$D$30,$F$2:$G$44,2,FALSE)+ROW()-2)),\"\")","v":{"$error":"#N/A"}},{"$f":"IF(INDIRECT(\"c\" & (VLOOKUP(Switch!$D$31,$F$2:$G$44,2,FALSE)+ROW()-2))=Switch!$D$31,INDIRECT(\"a\" & (VLOOKUP(Switch!$D$31,$F$2:$G$44,2,FALSE)+ROW()-2)),\"\")","v":{"$error":"#N/A"}},{"$f":"IF(INDIRECT(\"c\" & (VLOOKUP(Switch!$D$32,$F$2:$G$44,2,FALSE)+ROW()-2))=Switch!$D$32,INDIRECT(\"a\" & (VLOOKUP(Switch!$D$32,$F$2:$G$44,2,FALSE)+ROW()-2)),\"\")","v":{"$error":"#N/A"}},{"$f":"IF(INDIRECT(\"c\" & (VLOOKUP(Switch!$D$33,$F$2:$G$44,2,FALSE)+ROW()-2))=Switch!$D$33,INDIRECT(\"a\" & (VLOOKUP(Switch!$D$33,$F$2:$G$44,2,FALSE)+ROW()-2)),\"\")","v":{"$error":"#N/A"}},{"$f":"IF(INDIRECT(\"c\" & (VLOOKUP(Switch!$D$34,$F$2:$G$44,2,FALSE)+ROW()-2))=Switch!$D$34,INDIRECT(\"a\" & (VLOOKUP(Switch!$D$34,$F$2:$G$44,2,FALSE)+ROW()-2)),\"\")","v":{"$error":"#N/A"}},{"$f":"IF(INDIRECT(\"c\" & (VLOOKUP(Switch!$D$35,$F$2:$G$44,2,FALSE)+ROW()-2))=Switch!$D$35,INDIRECT(\"a\" & (VLOOKUP(Switch!$D$35,$F$2:$G$44,2,FALSE)+ROW()-2)),\"\")","v":{"$error":"#N/A"}},{"$f":"IF(INDIRECT(\"c\" & (VLOOKUP(Switch!$D$36,$F$2:$G$44,2,FALSE)+ROW()-2))=Switch!$D$36,INDIRECT(\"a\" & (VLOOKUP(Switch!$D$36,$F$2:$G$44,2,FALSE)+ROW()-2)),\"\")","v":{"$error":"#N/A"}},{"$f":"IF(INDIRECT(\"c\" & (VLOOKUP(Switch!$D$37,$F$2:$G$44,2,FALSE)+ROW()-2))=Switch!$D$37,INDIRECT(\"a\" & (VLOOKUP(Switch!$D$37,$F$2:$G$44,2,FALSE)+ROW()-2)),\"\")","v":{"$error":"#N/A"}},{"$f":"IF(INDIRECT(\"c\" & (VLOOKUP(Switch!$D$38,$F$2:$G$44,2,FALSE)+ROW()-2))=Switch!$D$38,INDIRECT(\"a\" & (VLOOKUP(Switch!$D$38,$F$2:$G$44,2,FALSE)+ROW()-2)),\"\")","v":{"$error":"#N/A"}},{"$f":"IF(INDIRECT(\"c\" & (VLOOKUP(Switch!$D$39,$F$2:$G$44,2,FALSE)+ROW()-2))=Switch!$D$39,INDIRECT(\"a\" & (VLOOKUP(Switch!$D$39,$F$2:$G$44,2,FALSE)+ROW()-2)),\"\")","v":{"$error":"#N/A"}},{"$f":"IF(INDIRECT(\"c\" & (VLOOKUP(Switch!$D$40,$F$2:$G$44,2,FALSE)+ROW()-2))=Switch!$D$40,INDIRECT(\"a\" & (VLOOKUP(Switch!$D$40,$F$2:$G$44,2,FALSE)+ROW()-2)),\"\")","v":{"$error":"#N/A"}},{"$f":"IF(INDIRECT(\"c\" & (VLOOKUP(Switch!$D$52,$F$2:$G$44,2,FALSE)+ROW()-2))=Switch!$D$52,INDIRECT(\"a\" & (VLOOKUP(Switch!$D$52,$F$2:$G$44,2,FALSE)+ROW()-2)),\"\")","v":{"$error":"#N/A"}},{"$f":"IF(INDIRECT(\"c\" & (VLOOKUP(Switch!$D$53,$F$2:$G$44,2,FALSE)+ROW()-2))=Switch!$D$53,INDIRECT(\"a\" & (VLOOKUP(Switch!$D$53,$F$2:$G$44,2,FALSE)+ROW()-2)),\"\")","v":{"$error":"#N/A"}},{"$f":"IF(INDIRECT(\"c\" & (VLOOKUP(Switch!$D$54,$F$2:$G$44,2,FALSE)+ROW()-2))=Switch!$D$54,INDIRECT(\"a\" & (VLOOKUP(Switch!$D$54,$F$2:$G$44,2,FALSE)+ROW()-2)),\"\")","v":{"$error":"#N/A"}},{"$f":"IF(INDIRECT(\"c\" & (VLOOKUP(Switch!$D$55,$F$2:$G$44,2,FALSE)+ROW()-2))=Switch!$D$55,INDIRECT(\"a\" & (VLOOKUP(Switch!$D$55,$F$2:$G$44,2,FALSE)+ROW()-2)),\"\")","v":{"$error":"#N/A"}},{"$f":"IF(INDIRECT(\"c\" & (VLOOKUP(Switch!$D$56,$F$2:$G$44,2,FALSE)+ROW()-2))=Switch!$D$56,INDIRECT(\"a\" & (VLOOKUP(Switch!$D$56,$F$2:$G$44,2,FALSE)+ROW()-2)),\"\")","v":{"$error":"#N/A"}},{"$f":"IF(INDIRECT(\"c\" & (VLOOKUP(Switch!$D$57,$F$2:$G$44,2,FALSE)+ROW()-2))=Switch!$D$57,INDIRECT(\"a\" & (VLOOKUP(Switch!$D$57,$F$2:$G$44,2,FALSE)+ROW()-2)),\"\")","v":{"$error":"#N/A"}},{"$f":"IF(INDIRECT(\"c\" & (VLOOKUP(Switch!$D$58,$F$2:$G$44,2,FALSE)+ROW()-2))=Switch!$D$58,INDIRECT(\"a\" & (VLOOKUP(Switch!$D$58,$F$2:$G$44,2,FALSE)+ROW()-2)),\"\")","v":{"$error":"#N/A"}},{"$f":"IF(INDIRECT(\"c\" & (VLOOKUP(Switch!$D$59,$F$2:$G$44,2,FALSE)+ROW()-2))=Switch!$D$59,INDIRECT(\"a\" & (VLOOKUP(Switch!$D$59,$F$2:$G$44,2,FALSE)+ROW()-2)),\"\")","v":{"$error":"#N/A"}},{"$f":"IF(INDIRECT(\"c\" & (VLOOKUP(Switch!$D$60,$F$2:$G$44,2,FALSE)+ROW()-2))=Switch!$D$60,INDIRECT(\"a\" & (VLOOKUP(Switch!$D$60,$F$2:$G$44,2,FALSE)+ROW()-2)),\"\")","v":{"$error":"#N/A"}},{"$f":"IF(INDIRECT(\"c\" & (VLOOKUP(Switch!$D$61,$F$2:$G$44,2,FALSE)+ROW()-2))=Switch!$D$61,INDIRECT(\"a\" & (VLOOKUP(Switch!$D$61,$F$2:$G$44,2,FALSE)+ROW()-2)),\"\")","v":{"$error":"#N/A"}},{"$f":"IF(INDIRECT(\"c\" & (VLOOKUP(Switch!$D$62,$F$2:$G$44,2,FALSE)+ROW()-2))=Switch!$D$62,INDIRECT(\"a\" & (VLOOKUP(Switch!$D$62,$F$2:$G$44,2,FALSE)+ROW()-2)),\"\")","v":{"$error":"#N/A"}},{"$f":"IF(INDIRECT(\"c\" & (VLOOKUP(Switch!$D$63,$F$2:$G$44,2,FALSE)+ROW()-2))=Switch!$D$63,INDIRECT(\"a\" & (VLOOKUP(Switch!$D$63,$F$2:$G$44,2,FALSE)+ROW()-2)),\"\")","v":{"$error":"#N/A"}},{"$f":"IF(INDIRECT(\"c\" & (VLOOKUP(Switch!$D$64,$F$2:$G$44,2,FALSE)+ROW()-2))=Switch!$D$64,INDIRECT(\"a\" & (VLOOKUP(Switch!$D$64,$F$2:$G$44,2,FALSE)+ROW()-2)),\"\")","v":{"$error":"#N/A"}},{"$f":"IF(INDIRECT(\"c\" & (VLOOKUP(Switch!$D$65,$F$2:$G$44,2,FALSE)+ROW()-2))=Switch!$D$65,INDIRECT(\"a\" & (VLOOKUP(Switch!$D$65,$F$2:$G$44,2,FALSE)+ROW()-2)),\"\")","v":{"$error":"#N/A"}},{"$f":"IF(INDIRECT(\"c\" & (VLOOKUP(Switch!$D$66,$F$2:$G$44,2,FALSE)+ROW()-2))=Switch!$D$66,INDIRECT(\"a\" & (VLOOKUP(Switch!$D$66,$F$2:$G$44,2,FALSE)+ROW()-2)),\"\")","v":{"$error":"#N/A"}}]
["SBRO BCI Defensive FoF A","SBRD","Boutique Collective Investments (Pty) Ltd",{"$f":"ROW()","v":177},null,null,{"$f":"VLOOKUP(F177,$C$2:$D$637,2,FALSE)","v":{"$error":"#N/A"}},{"$f":"IF(INDIRECT(\"c\" & (VLOOKUP(Switch!$D$26,$F$2:$G$44,2,FALSE)+ROW()-2))=Switch!$D$26,INDIRECT(\"a\" & (VLOOKUP(Switch!$D$26,$F$2:$G$44,2,FALSE)+ROW()-2)),\"\")","v":{"$error":"#N/A"}},{"$f":"IF(INDIRECT(\"c\" & (VLOOKUP(Switch!$D$27,$F$2:$G$44,2,FALSE)+ROW()-2))=Switch!$D$27,INDIRECT(\"a\" & (VLOOKUP(Switch!$D$27,$F$2:$G$44,2,FALSE)+ROW()-2)),\"\")","v":{"$error":"#N/A"}},{"$f":"IF(INDIRECT(\"c\" & (VLOOKUP(Switch!$D$28,$F$2:$G$44,2,FALSE)+ROW()-2))=Switch!$D$28,INDIRECT(\"a\" & (VLOOKUP(Switch!$D$28,$F$2:$G$44,2,FALSE)+ROW()-2)),\"\")","v":{"$error":"#N/A"}},{"$f":"IF(INDIRECT(\"c\" & (VLOOKUP(Switch!$D$29,$F$2:$G$44,2,FALSE)+ROW()-2))=Switch!$D$29,INDIRECT(\"a\" & (VLOOKUP(Switch!$D$29,$F$2:$G$44,2,FALSE)+ROW()-2)),\"\")","v":{"$error":"#N/A"}},{"$f":"IF(INDIRECT(\"c\" & (VLOOKUP(Switch!$D$30,$F$2:$G$44,2,FALSE)+ROW()-2))=Switch!$D$30,INDIRECT(\"a\" & (VLOOKUP(Switch!$D$30,$F$2:$G$44,2,FALSE)+ROW()-2)),\"\")","v":{"$error":"#N/A"}},{"$f":"IF(INDIRECT(\"c\" & (VLOOKUP(Switch!$D$31,$F$2:$G$44,2,FALSE)+ROW()-2))=Switch!$D$31,INDIRECT(\"a\" & (VLOOKUP(Switch!$D$31,$F$2:$G$44,2,FALSE)+ROW()-2)),\"\")","v":{"$error":"#N/A"}},{"$f":"IF(INDIRECT(\"c\" & (VLOOKUP(Switch!$D$32,$F$2:$G$44,2,FALSE)+ROW()-2))=Switch!$D$32,INDIRECT(\"a\" & (VLOOKUP(Switch!$D$32,$F$2:$G$44,2,FALSE)+ROW()-2)),\"\")","v":{"$error":"#N/A"}},{"$f":"IF(INDIRECT(\"c\" & (VLOOKUP(Switch!$D$33,$F$2:$G$44,2,FALSE)+ROW()-2))=Switch!$D$33,INDIRECT(\"a\" & (VLOOKUP(Switch!$D$33,$F$2:$G$44,2,FALSE)+ROW()-2)),\"\")","v":{"$error":"#N/A"}},{"$f":"IF(INDIRECT(\"c\" & (VLOOKUP(Switch!$D$34,$F$2:$G$44,2,FALSE)+ROW()-2))=Switch!$D$34,INDIRECT(\"a\" & (VLOOKUP(Switch!$D$34,$F$2:$G$44,2,FALSE)+ROW()-2)),\"\")","v":{"$error":"#N/A"}},{"$f":"IF(INDIRECT(\"c\" & (VLOOKUP(Switch!$D$35,$F$2:$G$44,2,FALSE)+ROW()-2))=Switch!$D$35,INDIRECT(\"a\" & (VLOOKUP(Switch!$D$35,$F$2:$G$44,2,FALSE)+ROW()-2)),\"\")","v":{"$error":"#N/A"}},{"$f":"IF(INDIRECT(\"c\" & (VLOOKUP(Switch!$D$36,$F$2:$G$44,2,FALSE)+ROW()-2))=Switch!$D$36,INDIRECT(\"a\" & (VLOOKUP(Switch!$D$36,$F$2:$G$44,2,FALSE)+ROW()-2)),\"\")","v":{"$error":"#N/A"}},{"$f":"IF(INDIRECT(\"c\" & (VLOOKUP(Switch!$D$37,$F$2:$G$44,2,FALSE)+ROW()-2))=Switch!$D$37,INDIRECT(\"a\" & (VLOOKUP(Switch!$D$37,$F$2:$G$44,2,FALSE)+ROW()-2)),\"\")","v":{"$error":"#N/A"}},{"$f":"IF(INDIRECT(\"c\" & (VLOOKUP(Switch!$D$38,$F$2:$G$44,2,FALSE)+ROW()-2))=Switch!$D$38,INDIRECT(\"a\" & (VLOOKUP(Switch!$D$38,$F$2:$G$44,2,FALSE)+ROW()-2)),\"\")","v":{"$error":"#N/A"}},{"$f":"IF(INDIRECT(\"c\" & (VLOOKUP(Switch!$D$39,$F$2:$G$44,2,FALSE)+ROW()-2))=Switch!$D$39,INDIRECT(\"a\" & (VLOOKUP(Switch!$D$39,$F$2:$G$44,2,FALSE)+ROW()-2)),\"\")","v":{"$error":"#N/A"}},{"$f":"IF(INDIRECT(\"c\" & (VLOOKUP(Switch!$D$40,$F$2:$G$44,2,FALSE)+ROW()-2))=Switch!$D$40,INDIRECT(\"a\" & (VLOOKUP(Switch!$D$40,$F$2:$G$44,2,FALSE)+ROW()-2)),\"\")","v":{"$error":"#N/A"}},{"$f":"IF(INDIRECT(\"c\" & (VLOOKUP(Switch!$D$52,$F$2:$G$44,2,FALSE)+ROW()-2))=Switch!$D$52,INDIRECT(\"a\" & (VLOOKUP(Switch!$D$52,$F$2:$G$44,2,FALSE)+ROW()-2)),\"\")","v":{"$error":"#N/A"}},{"$f":"IF(INDIRECT(\"c\" & (VLOOKUP(Switch!$D$53,$F$2:$G$44,2,FALSE)+ROW()-2))=Switch!$D$53,INDIRECT(\"a\" & (VLOOKUP(Switch!$D$53,$F$2:$G$44,2,FALSE)+ROW()-2)),\"\")","v":{"$error":"#N/A"}},{"$f":"IF(INDIRECT(\"c\" & (VLOOKUP(Switch!$D$54,$F$2:$G$44,2,FALSE)+ROW()-2))=Switch!$D$54,INDIRECT(\"a\" & (VLOOKUP(Switch!$D$54,$F$2:$G$44,2,FALSE)+ROW()-2)),\"\")","v":{"$error":"#N/A"}},{"$f":"IF(INDIRECT(\"c\" & (VLOOKUP(Switch!$D$55,$F$2:$G$44,2,FALSE)+ROW()-2))=Switch!$D$55,INDIRECT(\"a\" & (VLOOKUP(Switch!$D$55,$F$2:$G$44,2,FALSE)+ROW()-2)),\"\")","v":{"$error":"#N/A"}},{"$f":"IF(INDIRECT(\"c\" & (VLOOKUP(Switch!$D$56,$F$2:$G$44,2,FALSE)+ROW()-2))=Switch!$D$56,INDIRECT(\"a\" & (VLOOKUP(Switch!$D$56,$F$2:$G$44,2,FALSE)+ROW()-2)),\"\")","v":{"$error":"#N/A"}},{"$f":"IF(INDIRECT(\"c\" & (VLOOKUP(Switch!$D$57,$F$2:$G$44,2,FALSE)+ROW()-2))=Switch!$D$57,INDIRECT(\"a\" & (VLOOKUP(Switch!$D$57,$F$2:$G$44,2,FALSE)+ROW()-2)),\"\")","v":{"$error":"#N/A"}},{"$f":"IF(INDIRECT(\"c\" & (VLOOKUP(Switch!$D$58,$F$2:$G$44,2,FALSE)+ROW()-2))=Switch!$D$58,INDIRECT(\"a\" & (VLOOKUP(Switch!$D$58,$F$2:$G$44,2,FALSE)+ROW()-2)),\"\")","v":{"$error":"#N/A"}},{"$f":"IF(INDIRECT(\"c\" & (VLOOKUP(Switch!$D$59,$F$2:$G$44,2,FALSE)+ROW()-2))=Switch!$D$59,INDIRECT(\"a\" & (VLOOKUP(Switch!$D$59,$F$2:$G$44,2,FALSE)+ROW()-2)),\"\")","v":{"$error":"#N/A"}},{"$f":"IF(INDIRECT(\"c\" & (VLOOKUP(Switch!$D$60,$F$2:$G$44,2,FALSE)+ROW()-2))=Switch!$D$60,INDIRECT(\"a\" & (VLOOKUP(Switch!$D$60,$F$2:$G$44,2,FALSE)+ROW()-2)),\"\")","v":{"$error":"#N/A"}},{"$f":"IF(INDIRECT(\"c\" & (VLOOKUP(Switch!$D$61,$F$2:$G$44,2,FALSE)+ROW()-2))=Switch!$D$61,INDIRECT(\"a\" & (VLOOKUP(Switch!$D$61,$F$2:$G$44,2,FALSE)+ROW()-2)),\"\")","v":{"$error":"#N/A"}},{"$f":"IF(INDIRECT(\"c\" & (VLOOKUP(Switch!$D$62,$F$2:$G$44,2,FALSE)+ROW()-2))=Switch!$D$62,INDIRECT(\"a\" & (VLOOKUP(Switch!$D$62,$F$2:$G$44,2,FALSE)+ROW()-2)),\"\")","v":{"$error":"#N/A"}},{"$f":"IF(INDIRECT(\"c\" & (VLOOKUP(Switch!$D$63,$F$2:$G$44,2,FALSE)+ROW()-2))=Switch!$D$63,INDIRECT(\"a\" & (VLOOKUP(Switch!$D$63,$F$2:$G$44,2,FALSE)+ROW()-2)),\"\")","v":{"$error":"#N/A"}},{"$f":"IF(INDIRECT(\"c\" & (VLOOKUP(Switch!$D$64,$F$2:$G$44,2,FALSE)+ROW()-2))=Switch!$D$64,INDIRECT(\"a\" & (VLOOKUP(Switch!$D$64,$F$2:$G$44,2,FALSE)+ROW()-2)),\"\")","v":{"$error":"#N/A"}},{"$f":"IF(INDIRECT(\"c\" & (VLOOKUP(Switch!$D$65,$F$2:$G$44,2,FALSE)+ROW()-2))=Switch!$D$65,INDIRECT(\"a\" & (VLOOKUP(Switch!$D$65,$F$2:$G$44,2,FALSE)+ROW()-2)),\"\")","v":{"$error":"#N/A"}},{"$f":"IF(INDIRECT(\"c\" & (VLOOKUP(Switch!$D$66,$F$2:$G$44,2,FALSE)+ROW()-2))=Switch!$D$66,INDIRECT(\"a\" & (VLOOKUP(Switch!$D$66,$F$2:$G$44,2,FALSE)+ROW()-2)),\"\")","v":{"$error":"#N/A"}}]
["SBRO BCI Managed FoF A","SBMFA","Boutique Collective Investments (Pty) Ltd",{"$f":"ROW()","v":178},null,null,{"$f":"VLOOKUP(F178,$C$2:$D$637,2,FALSE)","v":{"$error":"#N/A"}},{"$f":"IF(INDIRECT(\"c\" & (VLOOKUP(Switch!$D$26,$F$2:$G$44,2,FALSE)+ROW()-2))=Switch!$D$26,INDIRECT(\"a\" & (VLOOKUP(Switch!$D$26,$F$2:$G$44,2,FALSE)+ROW()-2)),\"\")","v":{"$error":"#N/A"}},{"$f":"IF(INDIRECT(\"c\" & (VLOOKUP(Switch!$D$27,$F$2:$G$44,2,FALSE)+ROW()-2))=Switch!$D$27,INDIRECT(\"a\" & (VLOOKUP(Switch!$D$27,$F$2:$G$44,2,FALSE)+ROW()-2)),\"\")","v":{"$error":"#N/A"}},{"$f":"IF(INDIRECT(\"c\" & (VLOOKUP(Switch!$D$28,$F$2:$G$44,2,FALSE)+ROW()-2))=Switch!$D$28,INDIRECT(\"a\" & (VLOOKUP(Switch!$D$28,$F$2:$G$44,2,FALSE)+ROW()-2)),\"\")","v":{"$error":"#N/A"}},{"$f":"IF(INDIRECT(\"c\" & (VLOOKUP(Switch!$D$29,$F$2:$G$44,2,FALSE)+ROW()-2))=Switch!$D$29,INDIRECT(\"a\" & (VLOOKUP(Switch!$D$29,$F$2:$G$44,2,FALSE)+ROW()-2)),\"\")","v":{"$error":"#N/A"}},{"$f":"IF(INDIRECT(\"c\" & (VLOOKUP(Switch!$D$30,$F$2:$G$44,2,FALSE)+ROW()-2))=Switch!$D$30,INDIRECT(\"a\" & (VLOOKUP(Switch!$D$30,$F$2:$G$44,2,FALSE)+ROW()-2)),\"\")","v":{"$error":"#N/A"}},{"$f":"IF(INDIRECT(\"c\" & (VLOOKUP(Switch!$D$31,$F$2:$G$44,2,FALSE)+ROW()-2))=Switch!$D$31,INDIRECT(\"a\" & (VLOOKUP(Switch!$D$31,$F$2:$G$44,2,FALSE)+ROW()-2)),\"\")","v":{"$error":"#N/A"}},{"$f":"IF(INDIRECT(\"c\" & (VLOOKUP(Switch!$D$32,$F$2:$G$44,2,FALSE)+ROW()-2))=Switch!$D$32,INDIRECT(\"a\" & (VLOOKUP(Switch!$D$32,$F$2:$G$44,2,FALSE)+ROW()-2)),\"\")","v":{"$error":"#N/A"}},{"$f":"IF(INDIRECT(\"c\" & (VLOOKUP(Switch!$D$33,$F$2:$G$44,2,FALSE)+ROW()-2))=Switch!$D$33,INDIRECT(\"a\" & (VLOOKUP(Switch!$D$33,$F$2:$G$44,2,FALSE)+ROW()-2)),\"\")","v":{"$error":"#N/A"}},{"$f":"IF(INDIRECT(\"c\" & (VLOOKUP(Switch!$D$34,$F$2:$G$44,2,FALSE)+ROW()-2))=Switch!$D$34,INDIRECT(\"a\" & (VLOOKUP(Switch!$D$34,$F$2:$G$44,2,FALSE)+ROW()-2)),\"\")","v":{"$error":"#N/A"}},{"$f":"IF(INDIRECT(\"c\" & (VLOOKUP(Switch!$D$35,$F$2:$G$44,2,FALSE)+ROW()-2))=Switch!$D$35,INDIRECT(\"a\" & (VLOOKUP(Switch!$D$35,$F$2:$G$44,2,FALSE)+ROW()-2)),\"\")","v":{"$error":"#N/A"}},{"$f":"IF(INDIRECT(\"c\" & (VLOOKUP(Switch!$D$36,$F$2:$G$44,2,FALSE)+ROW()-2))=Switch!$D$36,INDIRECT(\"a\" & (VLOOKUP(Switch!$D$36,$F$2:$G$44,2,FALSE)+ROW()-2)),\"\")","v":{"$error":"#N/A"}},{"$f":"IF(INDIRECT(\"c\" & (VLOOKUP(Switch!$D$37,$F$2:$G$44,2,FALSE)+ROW()-2))=Switch!$D$37,INDIRECT(\"a\" & (VLOOKUP(Switch!$D$37,$F$2:$G$44,2,FALSE)+ROW()-2)),\"\")","v":{"$error":"#N/A"}},{"$f":"IF(INDIRECT(\"c\" & (VLOOKUP(Switch!$D$38,$F$2:$G$44,2,FALSE)+ROW()-2))=Switch!$D$38,INDIRECT(\"a\" & (VLOOKUP(Switch!$D$38,$F$2:$G$44,2,FALSE)+ROW()-2)),\"\")","v":{"$error":"#N/A"}},{"$f":"IF(INDIRECT(\"c\" & (VLOOKUP(Switch!$D$39,$F$2:$G$44,2,FALSE)+ROW()-2))=Switch!$D$39,INDIRECT(\"a\" & (VLOOKUP(Switch!$D$39,$F$2:$G$44,2,FALSE)+ROW()-2)),\"\")","v":{"$error":"#N/A"}},{"$f":"IF(INDIRECT(\"c\" & (VLOOKUP(Switch!$D$40,$F$2:$G$44,2,FALSE)+ROW()-2))=Switch!$D$40,INDIRECT(\"a\" & (VLOOKUP(Switch!$D$40,$F$2:$G$44,2,FALSE)+ROW()-2)),\"\")","v":{"$error":"#N/A"}},{"$f":"IF(INDIRECT(\"c\" & (VLOOKUP(Switch!$D$52,$F$2:$G$44,2,FALSE)+ROW()-2))=Switch!$D$52,INDIRECT(\"a\" & (VLOOKUP(Switch!$D$52,$F$2:$G$44,2,FALSE)+ROW()-2)),\"\")","v":{"$error":"#N/A"}},{"$f":"IF(INDIRECT(\"c\" & (VLOOKUP(Switch!$D$53,$F$2:$G$44,2,FALSE)+ROW()-2))=Switch!$D$53,INDIRECT(\"a\" & (VLOOKUP(Switch!$D$53,$F$2:$G$44,2,FALSE)+ROW()-2)),\"\")","v":{"$error":"#N/A"}},{"$f":"IF(INDIRECT(\"c\" & (VLOOKUP(Switch!$D$54,$F$2:$G$44,2,FALSE)+ROW()-2))=Switch!$D$54,INDIRECT(\"a\" & (VLOOKUP(Switch!$D$54,$F$2:$G$44,2,FALSE)+ROW()-2)),\"\")","v":{"$error":"#N/A"}},{"$f":"IF(INDIRECT(\"c\" & (VLOOKUP(Switch!$D$55,$F$2:$G$44,2,FALSE)+ROW()-2))=Switch!$D$55,INDIRECT(\"a\" & (VLOOKUP(Switch!$D$55,$F$2:$G$44,2,FALSE)+ROW()-2)),\"\")","v":{"$error":"#N/A"}},{"$f":"IF(INDIRECT(\"c\" & (VLOOKUP(Switch!$D$56,$F$2:$G$44,2,FALSE)+ROW()-2))=Switch!$D$56,INDIRECT(\"a\" & (VLOOKUP(Switch!$D$56,$F$2:$G$44,2,FALSE)+ROW()-2)),\"\")","v":{"$error":"#N/A"}},{"$f":"IF(INDIRECT(\"c\" & (VLOOKUP(Switch!$D$57,$F$2:$G$44,2,FALSE)+ROW()-2))=Switch!$D$57,INDIRECT(\"a\" & (VLOOKUP(Switch!$D$57,$F$2:$G$44,2,FALSE)+ROW()-2)),\"\")","v":{"$error":"#N/A"}},{"$f":"IF(INDIRECT(\"c\" & (VLOOKUP(Switch!$D$58,$F$2:$G$44,2,FALSE)+ROW()-2))=Switch!$D$58,INDIRECT(\"a\" & (VLOOKUP(Switch!$D$58,$F$2:$G$44,2,FALSE)+ROW()-2)),\"\")","v":{"$error":"#N/A"}},{"$f":"IF(INDIRECT(\"c\" & (VLOOKUP(Switch!$D$59,$F$2:$G$44,2,FALSE)+ROW()-2))=Switch!$D$59,INDIRECT(\"a\" & (VLOOKUP(Switch!$D$59,$F$2:$G$44,2,FALSE)+ROW()-2)),\"\")","v":{"$error":"#N/A"}},{"$f":"IF(INDIRECT(\"c\" & (VLOOKUP(Switch!$D$60,$F$2:$G$44,2,FALSE)+ROW()-2))=Switch!$D$60,INDIRECT(\"a\" & (VLOOKUP(Switch!$D$60,$F$2:$G$44,2,FALSE)+ROW()-2)),\"\")","v":{"$error":"#N/A"}},{"$f":"IF(INDIRECT(\"c\" & (VLOOKUP(Switch!$D$61,$F$2:$G$44,2,FALSE)+ROW()-2))=Switch!$D$61,INDIRECT(\"a\" & (VLOOKUP(Switch!$D$61,$F$2:$G$44,2,FALSE)+ROW()-2)),\"\")","v":{"$error":"#N/A"}},{"$f":"IF(INDIRECT(\"c\" & (VLOOKUP(Switch!$D$62,$F$2:$G$44,2,FALSE)+ROW()-2))=Switch!$D$62,INDIRECT(\"a\" & (VLOOKUP(Switch!$D$62,$F$2:$G$44,2,FALSE)+ROW()-2)),\"\")","v":{"$error":"#N/A"}},{"$f":"IF(INDIRECT(\"c\" & (VLOOKUP(Switch!$D$63,$F$2:$G$44,2,FALSE)+ROW()-2))=Switch!$D$63,INDIRECT(\"a\" & (VLOOKUP(Switch!$D$63,$F$2:$G$44,2,FALSE)+ROW()-2)),\"\")","v":{"$error":"#N/A"}},{"$f":"IF(INDIRECT(\"c\" & (VLOOKUP(Switch!$D$64,$F$2:$G$44,2,FALSE)+ROW()-2))=Switch!$D$64,INDIRECT(\"a\" & (VLOOKUP(Switch!$D$64,$F$2:$G$44,2,FALSE)+ROW()-2)),\"\")","v":{"$error":"#N/A"}},{"$f":"IF(INDIRECT(\"c\" & (VLOOKUP(Switch!$D$65,$F$2:$G$44,2,FALSE)+ROW()-2))=Switch!$D$65,INDIRECT(\"a\" & (VLOOKUP(Switch!$D$65,$F$2:$G$44,2,FALSE)+ROW()-2)),\"\")","v":{"$error":"#N/A"}},{"$f":"IF(INDIRECT(\"c\" & (VLOOKUP(Switch!$D$66,$F$2:$G$44,2,FALSE)+ROW()-2))=Switch!$D$66,INDIRECT(\"a\" & (VLOOKUP(Switch!$D$66,$F$2:$G$44,2,FALSE)+ROW()-2)),\"\")","v":{"$error":"#N/A"}}]
["Select Manager BCI Balanced Fund of Funds A","SMBGR","Boutique Collective Investments (Pty) Ltd",{"$f":"ROW()","v":179},null,null,{"$f":"VLOOKUP(F179,$C$2:$D$637,2,FALSE)","v":{"$error":"#N/A"}},{"$f":"IF(INDIRECT(\"c\" & (VLOOKUP(Switch!$D$26,$F$2:$G$44,2,FALSE)+ROW()-2))=Switch!$D$26,INDIRECT(\"a\" & (VLOOKUP(Switch!$D$26,$F$2:$G$44,2,FALSE)+ROW()-2)),\"\")","v":{"$error":"#N/A"}},{"$f":"IF(INDIRECT(\"c\" & (VLOOKUP(Switch!$D$27,$F$2:$G$44,2,FALSE)+ROW()-2))=Switch!$D$27,INDIRECT(\"a\" & (VLOOKUP(Switch!$D$27,$F$2:$G$44,2,FALSE)+ROW()-2)),\"\")","v":{"$error":"#N/A"}},{"$f":"IF(INDIRECT(\"c\" & (VLOOKUP(Switch!$D$28,$F$2:$G$44,2,FALSE)+ROW()-2))=Switch!$D$28,INDIRECT(\"a\" & (VLOOKUP(Switch!$D$28,$F$2:$G$44,2,FALSE)+ROW()-2)),\"\")","v":{"$error":"#N/A"}},{"$f":"IF(INDIRECT(\"c\" & (VLOOKUP(Switch!$D$29,$F$2:$G$44,2,FALSE)+ROW()-2))=Switch!$D$29,INDIRECT(\"a\" & (VLOOKUP(Switch!$D$29,$F$2:$G$44,2,FALSE)+ROW()-2)),\"\")","v":{"$error":"#N/A"}},{"$f":"IF(INDIRECT(\"c\" & (VLOOKUP(Switch!$D$30,$F$2:$G$44,2,FALSE)+ROW()-2))=Switch!$D$30,INDIRECT(\"a\" & (VLOOKUP(Switch!$D$30,$F$2:$G$44,2,FALSE)+ROW()-2)),\"\")","v":{"$error":"#N/A"}},{"$f":"IF(INDIRECT(\"c\" & (VLOOKUP(Switch!$D$31,$F$2:$G$44,2,FALSE)+ROW()-2))=Switch!$D$31,INDIRECT(\"a\" & (VLOOKUP(Switch!$D$31,$F$2:$G$44,2,FALSE)+ROW()-2)),\"\")","v":{"$error":"#N/A"}},{"$f":"IF(INDIRECT(\"c\" & (VLOOKUP(Switch!$D$32,$F$2:$G$44,2,FALSE)+ROW()-2))=Switch!$D$32,INDIRECT(\"a\" & (VLOOKUP(Switch!$D$32,$F$2:$G$44,2,FALSE)+ROW()-2)),\"\")","v":{"$error":"#N/A"}},{"$f":"IF(INDIRECT(\"c\" & (VLOOKUP(Switch!$D$33,$F$2:$G$44,2,FALSE)+ROW()-2))=Switch!$D$33,INDIRECT(\"a\" & (VLOOKUP(Switch!$D$33,$F$2:$G$44,2,FALSE)+ROW()-2)),\"\")","v":{"$error":"#N/A"}},{"$f":"IF(INDIRECT(\"c\" & (VLOOKUP(Switch!$D$34,$F$2:$G$44,2,FALSE)+ROW()-2))=Switch!$D$34,INDIRECT(\"a\" & (VLOOKUP(Switch!$D$34,$F$2:$G$44,2,FALSE)+ROW()-2)),\"\")","v":{"$error":"#N/A"}},{"$f":"IF(INDIRECT(\"c\" & (VLOOKUP(Switch!$D$35,$F$2:$G$44,2,FALSE)+ROW()-2))=Switch!$D$35,INDIRECT(\"a\" & (VLOOKUP(Switch!$D$35,$F$2:$G$44,2,FALSE)+ROW()-2)),\"\")","v":{"$error":"#N/A"}},{"$f":"IF(INDIRECT(\"c\" & (VLOOKUP(Switch!$D$36,$F$2:$G$44,2,FALSE)+ROW()-2))=Switch!$D$36,INDIRECT(\"a\" & (VLOOKUP(Switch!$D$36,$F$2:$G$44,2,FALSE)+ROW()-2)),\"\")","v":{"$error":"#N/A"}},{"$f":"IF(INDIRECT(\"c\" & (VLOOKUP(Switch!$D$37,$F$2:$G$44,2,FALSE)+ROW()-2))=Switch!$D$37,INDIRECT(\"a\" & (VLOOKUP(Switch!$D$37,$F$2:$G$44,2,FALSE)+ROW()-2)),\"\")","v":{"$error":"#N/A"}},{"$f":"IF(INDIRECT(\"c\" & (VLOOKUP(Switch!$D$38,$F$2:$G$44,2,FALSE)+ROW()-2))=Switch!$D$38,INDIRECT(\"a\" & (VLOOKUP(Switch!$D$38,$F$2:$G$44,2,FALSE)+ROW()-2)),\"\")","v":{"$error":"#N/A"}},{"$f":"IF(INDIRECT(\"c\" & (VLOOKUP(Switch!$D$39,$F$2:$G$44,2,FALSE)+ROW()-2))=Switch!$D$39,INDIRECT(\"a\" & (VLOOKUP(Switch!$D$39,$F$2:$G$44,2,FALSE)+ROW()-2)),\"\")","v":{"$error":"#N/A"}},{"$f":"IF(INDIRECT(\"c\" & (VLOOKUP(Switch!$D$40,$F$2:$G$44,2,FALSE)+ROW()-2))=Switch!$D$40,INDIRECT(\"a\" & (VLOOKUP(Switch!$D$40,$F$2:$G$44,2,FALSE)+ROW()-2)),\"\")","v":{"$error":"#N/A"}},{"$f":"IF(INDIRECT(\"c\" & (VLOOKUP(Switch!$D$52,$F$2:$G$44,2,FALSE)+ROW()-2))=Switch!$D$52,INDIRECT(\"a\" & (VLOOKUP(Switch!$D$52,$F$2:$G$44,2,FALSE)+ROW()-2)),\"\")","v":{"$error":"#N/A"}},{"$f":"IF(INDIRECT(\"c\" & (VLOOKUP(Switch!$D$53,$F$2:$G$44,2,FALSE)+ROW()-2))=Switch!$D$53,INDIRECT(\"a\" & (VLOOKUP(Switch!$D$53,$F$2:$G$44,2,FALSE)+ROW()-2)),\"\")","v":{"$error":"#N/A"}},{"$f":"IF(INDIRECT(\"c\" & (VLOOKUP(Switch!$D$54,$F$2:$G$44,2,FALSE)+ROW()-2))=Switch!$D$54,INDIRECT(\"a\" & (VLOOKUP(Switch!$D$54,$F$2:$G$44,2,FALSE)+ROW()-2)),\"\")","v":{"$error":"#N/A"}},{"$f":"IF(INDIRECT(\"c\" & (VLOOKUP(Switch!$D$55,$F$2:$G$44,2,FALSE)+ROW()-2))=Switch!$D$55,INDIRECT(\"a\" & (VLOOKUP(Switch!$D$55,$F$2:$G$44,2,FALSE)+ROW()-2)),\"\")","v":{"$error":"#N/A"}},{"$f":"IF(INDIRECT(\"c\" & (VLOOKUP(Switch!$D$56,$F$2:$G$44,2,FALSE)+ROW()-2))=Switch!$D$56,INDIRECT(\"a\" & (VLOOKUP(Switch!$D$56,$F$2:$G$44,2,FALSE)+ROW()-2)),\"\")","v":{"$error":"#N/A"}},{"$f":"IF(INDIRECT(\"c\" & (VLOOKUP(Switch!$D$57,$F$2:$G$44,2,FALSE)+ROW()-2))=Switch!$D$57,INDIRECT(\"a\" & (VLOOKUP(Switch!$D$57,$F$2:$G$44,2,FALSE)+ROW()-2)),\"\")","v":{"$error":"#N/A"}},{"$f":"IF(INDIRECT(\"c\" & (VLOOKUP(Switch!$D$58,$F$2:$G$44,2,FALSE)+ROW()-2))=Switch!$D$58,INDIRECT(\"a\" & (VLOOKUP(Switch!$D$58,$F$2:$G$44,2,FALSE)+ROW()-2)),\"\")","v":{"$error":"#N/A"}},{"$f":"IF(INDIRECT(\"c\" & (VLOOKUP(Switch!$D$59,$F$2:$G$44,2,FALSE)+ROW()-2))=Switch!$D$59,INDIRECT(\"a\" & (VLOOKUP(Switch!$D$59,$F$2:$G$44,2,FALSE)+ROW()-2)),\"\")","v":{"$error":"#N/A"}},{"$f":"IF(INDIRECT(\"c\" & (VLOOKUP(Switch!$D$60,$F$2:$G$44,2,FALSE)+ROW()-2))=Switch!$D$60,INDIRECT(\"a\" & (VLOOKUP(Switch!$D$60,$F$2:$G$44,2,FALSE)+ROW()-2)),\"\")","v":{"$error":"#N/A"}},{"$f":"IF(INDIRECT(\"c\" & (VLOOKUP(Switch!$D$61,$F$2:$G$44,2,FALSE)+ROW()-2))=Switch!$D$61,INDIRECT(\"a\" & (VLOOKUP(Switch!$D$61,$F$2:$G$44,2,FALSE)+ROW()-2)),\"\")","v":{"$error":"#N/A"}},{"$f":"IF(INDIRECT(\"c\" & (VLOOKUP(Switch!$D$62,$F$2:$G$44,2,FALSE)+ROW()-2))=Switch!$D$62,INDIRECT(\"a\" & (VLOOKUP(Switch!$D$62,$F$2:$G$44,2,FALSE)+ROW()-2)),\"\")","v":{"$error":"#N/A"}},{"$f":"IF(INDIRECT(\"c\" & (VLOOKUP(Switch!$D$63,$F$2:$G$44,2,FALSE)+ROW()-2))=Switch!$D$63,INDIRECT(\"a\" & (VLOOKUP(Switch!$D$63,$F$2:$G$44,2,FALSE)+ROW()-2)),\"\")","v":{"$error":"#N/A"}},{"$f":"IF(INDIRECT(\"c\" & (VLOOKUP(Switch!$D$64,$F$2:$G$44,2,FALSE)+ROW()-2))=Switch!$D$64,INDIRECT(\"a\" & (VLOOKUP(Switch!$D$64,$F$2:$G$44,2,FALSE)+ROW()-2)),\"\")","v":{"$error":"#N/A"}},{"$f":"IF(INDIRECT(\"c\" & (VLOOKUP(Switch!$D$65,$F$2:$G$44,2,FALSE)+ROW()-2))=Switch!$D$65,INDIRECT(\"a\" & (VLOOKUP(Switch!$D$65,$F$2:$G$44,2,FALSE)+ROW()-2)),\"\")","v":{"$error":"#N/A"}},{"$f":"IF(INDIRECT(\"c\" & (VLOOKUP(Switch!$D$66,$F$2:$G$44,2,FALSE)+ROW()-2))=Switch!$D$66,INDIRECT(\"a\" & (VLOOKUP(Switch!$D$66,$F$2:$G$44,2,FALSE)+ROW()-2)),\"\")","v":{"$error":"#N/A"}}]
["Select Manager BCI Balanced Fund of Funds D","SMBGR","Boutique Collective Investments (Pty) Ltd",{"$f":"ROW()","v":180},null,null,{"$f":"VLOOKUP(F180,$C$2:$D$637,2,FALSE)","v":{"$error":"#N/A"}},{"$f":"IF(INDIRECT(\"c\" & (VLOOKUP(Switch!$D$26,$F$2:$G$44,2,FALSE)+ROW()-2))=Switch!$D$26,INDIRECT(\"a\" & (VLOOKUP(Switch!$D$26,$F$2:$G$44,2,FALSE)+ROW()-2)),\"\")","v":{"$error":"#N/A"}},{"$f":"IF(INDIRECT(\"c\" & (VLOOKUP(Switch!$D$27,$F$2:$G$44,2,FALSE)+ROW()-2))=Switch!$D$27,INDIRECT(\"a\" & (VLOOKUP(Switch!$D$27,$F$2:$G$44,2,FALSE)+ROW()-2)),\"\")","v":{"$error":"#N/A"}},{"$f":"IF(INDIRECT(\"c\" & (VLOOKUP(Switch!$D$28,$F$2:$G$44,2,FALSE)+ROW()-2))=Switch!$D$28,INDIRECT(\"a\" & (VLOOKUP(Switch!$D$28,$F$2:$G$44,2,FALSE)+ROW()-2)),\"\")","v":{"$error":"#N/A"}},{"$f":"IF(INDIRECT(\"c\" & (VLOOKUP(Switch!$D$29,$F$2:$G$44,2,FALSE)+ROW()-2))=Switch!$D$29,INDIRECT(\"a\" & (VLOOKUP(Switch!$D$29,$F$2:$G$44,2,FALSE)+ROW()-2)),\"\")","v":{"$error":"#N/A"}},{"$f":"IF(INDIRECT(\"c\" & (VLOOKUP(Switch!$D$30,$F$2:$G$44,2,FALSE)+ROW()-2))=Switch!$D$30,INDIRECT(\"a\" & (VLOOKUP(Switch!$D$30,$F$2:$G$44,2,FALSE)+ROW()-2)),\"\")","v":{"$error":"#N/A"}},{"$f":"IF(INDIRECT(\"c\" & (VLOOKUP(Switch!$D$31,$F$2:$G$44,2,FALSE)+ROW()-2))=Switch!$D$31,INDIRECT(\"a\" & (VLOOKUP(Switch!$D$31,$F$2:$G$44,2,FALSE)+ROW()-2)),\"\")","v":{"$error":"#N/A"}},{"$f":"IF(INDIRECT(\"c\" & (VLOOKUP(Switch!$D$32,$F$2:$G$44,2,FALSE)+ROW()-2))=Switch!$D$32,INDIRECT(\"a\" & (VLOOKUP(Switch!$D$32,$F$2:$G$44,2,FALSE)+ROW()-2)),\"\")","v":{"$error":"#N/A"}},{"$f":"IF(INDIRECT(\"c\" & (VLOOKUP(Switch!$D$33,$F$2:$G$44,2,FALSE)+ROW()-2))=Switch!$D$33,INDIRECT(\"a\" & (VLOOKUP(Switch!$D$33,$F$2:$G$44,2,FALSE)+ROW()-2)),\"\")","v":{"$error":"#N/A"}},{"$f":"IF(INDIRECT(\"c\" & (VLOOKUP(Switch!$D$34,$F$2:$G$44,2,FALSE)+ROW()-2))=Switch!$D$34,INDIRECT(\"a\" & (VLOOKUP(Switch!$D$34,$F$2:$G$44,2,FALSE)+ROW()-2)),\"\")","v":{"$error":"#N/A"}},{"$f":"IF(INDIRECT(\"c\" & (VLOOKUP(Switch!$D$35,$F$2:$G$44,2,FALSE)+ROW()-2))=Switch!$D$35,INDIRECT(\"a\" & (VLOOKUP(Switch!$D$35,$F$2:$G$44,2,FALSE)+ROW()-2)),\"\")","v":{"$error":"#N/A"}},{"$f":"IF(INDIRECT(\"c\" & (VLOOKUP(Switch!$D$36,$F$2:$G$44,2,FALSE)+ROW()-2))=Switch!$D$36,INDIRECT(\"a\" & (VLOOKUP(Switch!$D$36,$F$2:$G$44,2,FALSE)+ROW()-2)),\"\")","v":{"$error":"#N/A"}},{"$f":"IF(INDIRECT(\"c\" & (VLOOKUP(Switch!$D$37,$F$2:$G$44,2,FALSE)+ROW()-2))=Switch!$D$37,INDIRECT(\"a\" & (VLOOKUP(Switch!$D$37,$F$2:$G$44,2,FALSE)+ROW()-2)),\"\")","v":{"$error":"#N/A"}},{"$f":"IF(INDIRECT(\"c\" & (VLOOKUP(Switch!$D$38,$F$2:$G$44,2,FALSE)+ROW()-2))=Switch!$D$38,INDIRECT(\"a\" & (VLOOKUP(Switch!$D$38,$F$2:$G$44,2,FALSE)+ROW()-2)),\"\")","v":{"$error":"#N/A"}},{"$f":"IF(INDIRECT(\"c\" & (VLOOKUP(Switch!$D$39,$F$2:$G$44,2,FALSE)+ROW()-2))=Switch!$D$39,INDIRECT(\"a\" & (VLOOKUP(Switch!$D$39,$F$2:$G$44,2,FALSE)+ROW()-2)),\"\")","v":{"$error":"#N/A"}},{"$f":"IF(INDIRECT(\"c\" & (VLOOKUP(Switch!$D$40,$F$2:$G$44,2,FALSE)+ROW()-2))=Switch!$D$40,INDIRECT(\"a\" & (VLOOKUP(Switch!$D$40,$F$2:$G$44,2,FALSE)+ROW()-2)),\"\")","v":{"$error":"#N/A"}},{"$f":"IF(INDIRECT(\"c\" & (VLOOKUP(Switch!$D$52,$F$2:$G$44,2,FALSE)+ROW()-2))=Switch!$D$52,INDIRECT(\"a\" & (VLOOKUP(Switch!$D$52,$F$2:$G$44,2,FALSE)+ROW()-2)),\"\")","v":{"$error":"#N/A"}},{"$f":"IF(INDIRECT(\"c\" & (VLOOKUP(Switch!$D$53,$F$2:$G$44,2,FALSE)+ROW()-2))=Switch!$D$53,INDIRECT(\"a\" & (VLOOKUP(Switch!$D$53,$F$2:$G$44,2,FALSE)+ROW()-2)),\"\")","v":{"$error":"#N/A"}},{"$f":"IF(INDIRECT(\"c\" & (VLOOKUP(Switch!$D$54,$F$2:$G$44,2,FALSE)+ROW()-2))=Switch!$D$54,INDIRECT(\"a\" & (VLOOKUP(Switch!$D$54,$F$2:$G$44,2,FALSE)+ROW()-2)),\"\")","v":{"$error":"#N/A"}},{"$f":"IF(INDIRECT(\"c\" & (VLOOKUP(Switch!$D$55,$F$2:$G$44,2,FALSE)+ROW()-2))=Switch!$D$55,INDIRECT(\"a\" & (VLOOKUP(Switch!$D$55,$F$2:$G$44,2,FALSE)+ROW()-2)),\"\")","v":{"$error":"#N/A"}},{"$f":"IF(INDIRECT(\"c\" & (VLOOKUP(Switch!$D$56,$F$2:$G$44,2,FALSE)+ROW()-2))=Switch!$D$56,INDIRECT(\"a\" & (VLOOKUP(Switch!$D$56,$F$2:$G$44,2,FALSE)+ROW()-2)),\"\")","v":{"$error":"#N/A"}},{"$f":"IF(INDIRECT(\"c\" & (VLOOKUP(Switch!$D$57,$F$2:$G$44,2,FALSE)+ROW()-2))=Switch!$D$57,INDIRECT(\"a\" & (VLOOKUP(Switch!$D$57,$F$2:$G$44,2,FALSE)+ROW()-2)),\"\")","v":{"$error":"#N/A"}},{"$f":"IF(INDIRECT(\"c\" & (VLOOKUP(Switch!$D$58,$F$2:$G$44,2,FALSE)+ROW()-2))=Switch!$D$58,INDIRECT(\"a\" & (VLOOKUP(Switch!$D$58,$F$2:$G$44,2,FALSE)+ROW()-2)),\"\")","v":{"$error":"#N/A"}},{"$f":"IF(INDIRECT(\"c\" & (VLOOKUP(Switch!$D$59,$F$2:$G$44,2,FALSE)+ROW()-2))=Switch!$D$59,INDIRECT(\"a\" & (VLOOKUP(Switch!$D$59,$F$2:$G$44,2,FALSE)+ROW()-2)),\"\")","v":{"$error":"#N/A"}},{"$f":"IF(INDIRECT(\"c\" & (VLOOKUP(Switch!$D$60,$F$2:$G$44,2,FALSE)+ROW()-2))=Switch!$D$60,INDIRECT(\"a\" & (VLOOKUP(Switch!$D$60,$F$2:$G$44,2,FALSE)+ROW()-2)),\"\")","v":{"$error":"#N/A"}},{"$f":"IF(INDIRECT(\"c\" & (VLOOKUP(Switch!$D$61,$F$2:$G$44,2,FALSE)+ROW()-2))=Switch!$D$61,INDIRECT(\"a\" & (VLOOKUP(Switch!$D$61,$F$2:$G$44,2,FALSE)+ROW()-2)),\"\")","v":{"$error":"#N/A"}},{"$f":"IF(INDIRECT(\"c\" & (VLOOKUP(Switch!$D$62,$F$2:$G$44,2,FALSE)+ROW()-2))=Switch!$D$62,INDIRECT(\"a\" & (VLOOKUP(Switch!$D$62,$F$2:$G$44,2,FALSE)+ROW()-2)),\"\")","v":{"$error":"#N/A"}},{"$f":"IF(INDIRECT(\"c\" & (VLOOKUP(Switch!$D$63,$F$2:$G$44,2,FALSE)+ROW()-2))=Switch!$D$63,INDIRECT(\"a\" & (VLOOKUP(Switch!$D$63,$F$2:$G$44,2,FALSE)+ROW()-2)),\"\")","v":{"$error":"#N/A"}},{"$f":"IF(INDIRECT(\"c\" & (VLOOKUP(Switch!$D$64,$F$2:$G$44,2,FALSE)+ROW()-2))=Switch!$D$64,INDIRECT(\"a\" & (VLOOKUP(Switch!$D$64,$F$2:$G$44,2,FALSE)+ROW()-2)),\"\")","v":{"$error":"#N/A"}},{"$f":"IF(INDIRECT(\"c\" & (VLOOKUP(Switch!$D$65,$F$2:$G$44,2,FALSE)+ROW()-2))=Switch!$D$65,INDIRECT(\"a\" & (VLOOKUP(Switch!$D$65,$F$2:$G$44,2,FALSE)+ROW()-2)),\"\")","v":{"$error":"#N/A"}},{"$f":"IF(INDIRECT(\"c\" & (VLOOKUP(Switch!$D$66,$F$2:$G$44,2,FALSE)+ROW()-2))=Switch!$D$66,INDIRECT(\"a\" & (VLOOKUP(Switch!$D$66,$F$2:$G$44,2,FALSE)+ROW()-2)),\"\")","v":{"$error":"#N/A"}}]
["Select Manager BCI Cautious FoF A","MSMI","Boutique Collective Investments (Pty) Ltd",{"$f":"ROW()","v":181},null,null,{"$f":"VLOOKUP(F181,$C$2:$D$637,2,FALSE)","v":{"$error":"#N/A"}},{"$f":"IF(INDIRECT(\"c\" & (VLOOKUP(Switch!$D$26,$F$2:$G$44,2,FALSE)+ROW()-2))=Switch!$D$26,INDIRECT(\"a\" & (VLOOKUP(Switch!$D$26,$F$2:$G$44,2,FALSE)+ROW()-2)),\"\")","v":{"$error":"#N/A"}},{"$f":"IF(INDIRECT(\"c\" & (VLOOKUP(Switch!$D$27,$F$2:$G$44,2,FALSE)+ROW()-2))=Switch!$D$27,INDIRECT(\"a\" & (VLOOKUP(Switch!$D$27,$F$2:$G$44,2,FALSE)+ROW()-2)),\"\")","v":{"$error":"#N/A"}},{"$f":"IF(INDIRECT(\"c\" & (VLOOKUP(Switch!$D$28,$F$2:$G$44,2,FALSE)+ROW()-2))=Switch!$D$28,INDIRECT(\"a\" & (VLOOKUP(Switch!$D$28,$F$2:$G$44,2,FALSE)+ROW()-2)),\"\")","v":{"$error":"#N/A"}},{"$f":"IF(INDIRECT(\"c\" & (VLOOKUP(Switch!$D$29,$F$2:$G$44,2,FALSE)+ROW()-2))=Switch!$D$29,INDIRECT(\"a\" & (VLOOKUP(Switch!$D$29,$F$2:$G$44,2,FALSE)+ROW()-2)),\"\")","v":{"$error":"#N/A"}},{"$f":"IF(INDIRECT(\"c\" & (VLOOKUP(Switch!$D$30,$F$2:$G$44,2,FALSE)+ROW()-2))=Switch!$D$30,INDIRECT(\"a\" & (VLOOKUP(Switch!$D$30,$F$2:$G$44,2,FALSE)+ROW()-2)),\"\")","v":{"$error":"#N/A"}},{"$f":"IF(INDIRECT(\"c\" & (VLOOKUP(Switch!$D$31,$F$2:$G$44,2,FALSE)+ROW()-2))=Switch!$D$31,INDIRECT(\"a\" & (VLOOKUP(Switch!$D$31,$F$2:$G$44,2,FALSE)+ROW()-2)),\"\")","v":{"$error":"#N/A"}},{"$f":"IF(INDIRECT(\"c\" & (VLOOKUP(Switch!$D$32,$F$2:$G$44,2,FALSE)+ROW()-2))=Switch!$D$32,INDIRECT(\"a\" & (VLOOKUP(Switch!$D$32,$F$2:$G$44,2,FALSE)+ROW()-2)),\"\")","v":{"$error":"#N/A"}},{"$f":"IF(INDIRECT(\"c\" & (VLOOKUP(Switch!$D$33,$F$2:$G$44,2,FALSE)+ROW()-2))=Switch!$D$33,INDIRECT(\"a\" & (VLOOKUP(Switch!$D$33,$F$2:$G$44,2,FALSE)+ROW()-2)),\"\")","v":{"$error":"#N/A"}},{"$f":"IF(INDIRECT(\"c\" & (VLOOKUP(Switch!$D$34,$F$2:$G$44,2,FALSE)+ROW()-2))=Switch!$D$34,INDIRECT(\"a\" & (VLOOKUP(Switch!$D$34,$F$2:$G$44,2,FALSE)+ROW()-2)),\"\")","v":{"$error":"#N/A"}},{"$f":"IF(INDIRECT(\"c\" & (VLOOKUP(Switch!$D$35,$F$2:$G$44,2,FALSE)+ROW()-2))=Switch!$D$35,INDIRECT(\"a\" & (VLOOKUP(Switch!$D$35,$F$2:$G$44,2,FALSE)+ROW()-2)),\"\")","v":{"$error":"#N/A"}},{"$f":"IF(INDIRECT(\"c\" & (VLOOKUP(Switch!$D$36,$F$2:$G$44,2,FALSE)+ROW()-2))=Switch!$D$36,INDIRECT(\"a\" & (VLOOKUP(Switch!$D$36,$F$2:$G$44,2,FALSE)+ROW()-2)),\"\")","v":{"$error":"#N/A"}},{"$f":"IF(INDIRECT(\"c\" & (VLOOKUP(Switch!$D$37,$F$2:$G$44,2,FALSE)+ROW()-2))=Switch!$D$37,INDIRECT(\"a\" & (VLOOKUP(Switch!$D$37,$F$2:$G$44,2,FALSE)+ROW()-2)),\"\")","v":{"$error":"#N/A"}},{"$f":"IF(INDIRECT(\"c\" & (VLOOKUP(Switch!$D$38,$F$2:$G$44,2,FALSE)+ROW()-2))=Switch!$D$38,INDIRECT(\"a\" & (VLOOKUP(Switch!$D$38,$F$2:$G$44,2,FALSE)+ROW()-2)),\"\")","v":{"$error":"#N/A"}},{"$f":"IF(INDIRECT(\"c\" & (VLOOKUP(Switch!$D$39,$F$2:$G$44,2,FALSE)+ROW()-2))=Switch!$D$39,INDIRECT(\"a\" & (VLOOKUP(Switch!$D$39,$F$2:$G$44,2,FALSE)+ROW()-2)),\"\")","v":{"$error":"#N/A"}},{"$f":"IF(INDIRECT(\"c\" & (VLOOKUP(Switch!$D$40,$F$2:$G$44,2,FALSE)+ROW()-2))=Switch!$D$40,INDIRECT(\"a\" & (VLOOKUP(Switch!$D$40,$F$2:$G$44,2,FALSE)+ROW()-2)),\"\")","v":{"$error":"#N/A"}},{"$f":"IF(INDIRECT(\"c\" & (VLOOKUP(Switch!$D$52,$F$2:$G$44,2,FALSE)+ROW()-2))=Switch!$D$52,INDIRECT(\"a\" & (VLOOKUP(Switch!$D$52,$F$2:$G$44,2,FALSE)+ROW()-2)),\"\")","v":{"$error":"#N/A"}},{"$f":"IF(INDIRECT(\"c\" & (VLOOKUP(Switch!$D$53,$F$2:$G$44,2,FALSE)+ROW()-2))=Switch!$D$53,INDIRECT(\"a\" & (VLOOKUP(Switch!$D$53,$F$2:$G$44,2,FALSE)+ROW()-2)),\"\")","v":{"$error":"#N/A"}},{"$f":"IF(INDIRECT(\"c\" & (VLOOKUP(Switch!$D$54,$F$2:$G$44,2,FALSE)+ROW()-2))=Switch!$D$54,INDIRECT(\"a\" & (VLOOKUP(Switch!$D$54,$F$2:$G$44,2,FALSE)+ROW()-2)),\"\")","v":{"$error":"#N/A"}},{"$f":"IF(INDIRECT(\"c\" & (VLOOKUP(Switch!$D$55,$F$2:$G$44,2,FALSE)+ROW()-2))=Switch!$D$55,INDIRECT(\"a\" & (VLOOKUP(Switch!$D$55,$F$2:$G$44,2,FALSE)+ROW()-2)),\"\")","v":{"$error":"#N/A"}},{"$f":"IF(INDIRECT(\"c\" & (VLOOKUP(Switch!$D$56,$F$2:$G$44,2,FALSE)+ROW()-2))=Switch!$D$56,INDIRECT(\"a\" & (VLOOKUP(Switch!$D$56,$F$2:$G$44,2,FALSE)+ROW()-2)),\"\")","v":{"$error":"#N/A"}},{"$f":"IF(INDIRECT(\"c\" & (VLOOKUP(Switch!$D$57,$F$2:$G$44,2,FALSE)+ROW()-2))=Switch!$D$57,INDIRECT(\"a\" & (VLOOKUP(Switch!$D$57,$F$2:$G$44,2,FALSE)+ROW()-2)),\"\")","v":{"$error":"#N/A"}},{"$f":"IF(INDIRECT(\"c\" & (VLOOKUP(Switch!$D$58,$F$2:$G$44,2,FALSE)+ROW()-2))=Switch!$D$58,INDIRECT(\"a\" & (VLOOKUP(Switch!$D$58,$F$2:$G$44,2,FALSE)+ROW()-2)),\"\")","v":{"$error":"#N/A"}},{"$f":"IF(INDIRECT(\"c\" & (VLOOKUP(Switch!$D$59,$F$2:$G$44,2,FALSE)+ROW()-2))=Switch!$D$59,INDIRECT(\"a\" & (VLOOKUP(Switch!$D$59,$F$2:$G$44,2,FALSE)+ROW()-2)),\"\")","v":{"$error":"#N/A"}},{"$f":"IF(INDIRECT(\"c\" & (VLOOKUP(Switch!$D$60,$F$2:$G$44,2,FALSE)+ROW()-2))=Switch!$D$60,INDIRECT(\"a\" & (VLOOKUP(Switch!$D$60,$F$2:$G$44,2,FALSE)+ROW()-2)),\"\")","v":{"$error":"#N/A"}},{"$f":"IF(INDIRECT(\"c\" & (VLOOKUP(Switch!$D$61,$F$2:$G$44,2,FALSE)+ROW()-2))=Switch!$D$61,INDIRECT(\"a\" & (VLOOKUP(Switch!$D$61,$F$2:$G$44,2,FALSE)+ROW()-2)),\"\")","v":{"$error":"#N/A"}},{"$f":"IF(INDIRECT(\"c\" & (VLOOKUP(Switch!$D$62,$F$2:$G$44,2,FALSE)+ROW()-2))=Switch!$D$62,INDIRECT(\"a\" & (VLOOKUP(Switch!$D$62,$F$2:$G$44,2,FALSE)+ROW()-2)),\"\")","v":{"$error":"#N/A"}},{"$f":"IF(INDIRECT(\"c\" & (VLOOKUP(Switch!$D$63,$F$2:$G$44,2,FALSE)+ROW()-2))=Switch!$D$63,INDIRECT(\"a\" & (VLOOKUP(Switch!$D$63,$F$2:$G$44,2,FALSE)+ROW()-2)),\"\")","v":{"$error":"#N/A"}},{"$f":"IF(INDIRECT(\"c\" & (VLOOKUP(Switch!$D$64,$F$2:$G$44,2,FALSE)+ROW()-2))=Switch!$D$64,INDIRECT(\"a\" & (VLOOKUP(Switch!$D$64,$F$2:$G$44,2,FALSE)+ROW()-2)),\"\")","v":{"$error":"#N/A"}},{"$f":"IF(INDIRECT(\"c\" & (VLOOKUP(Switch!$D$65,$F$2:$G$44,2,FALSE)+ROW()-2))=Switch!$D$65,INDIRECT(\"a\" & (VLOOKUP(Switch!$D$65,$F$2:$G$44,2,FALSE)+ROW()-2)),\"\")","v":{"$error":"#N/A"}},{"$f":"IF(INDIRECT(\"c\" & (VLOOKUP(Switch!$D$66,$F$2:$G$44,2,FALSE)+ROW()-2))=Switch!$D$66,INDIRECT(\"a\" & (VLOOKUP(Switch!$D$66,$F$2:$G$44,2,FALSE)+ROW()-2)),\"\")","v":{"$error":"#N/A"}}]
["Select Manager BCI Equity Fund D","NBEFD","Boutique Collective Investments (Pty) Ltd",{"$f":"ROW()","v":182},null,null,{"$f":"VLOOKUP(F182,$C$2:$D$637,2,FALSE)","v":{"$error":"#N/A"}},{"$f":"IF(INDIRECT(\"c\" & (VLOOKUP(Switch!$D$26,$F$2:$G$44,2,FALSE)+ROW()-2))=Switch!$D$26,INDIRECT(\"a\" & (VLOOKUP(Switch!$D$26,$F$2:$G$44,2,FALSE)+ROW()-2)),\"\")","v":{"$error":"#N/A"}},{"$f":"IF(INDIRECT(\"c\" & (VLOOKUP(Switch!$D$27,$F$2:$G$44,2,FALSE)+ROW()-2))=Switch!$D$27,INDIRECT(\"a\" & (VLOOKUP(Switch!$D$27,$F$2:$G$44,2,FALSE)+ROW()-2)),\"\")","v":{"$error":"#N/A"}},{"$f":"IF(INDIRECT(\"c\" & (VLOOKUP(Switch!$D$28,$F$2:$G$44,2,FALSE)+ROW()-2))=Switch!$D$28,INDIRECT(\"a\" & (VLOOKUP(Switch!$D$28,$F$2:$G$44,2,FALSE)+ROW()-2)),\"\")","v":{"$error":"#N/A"}},{"$f":"IF(INDIRECT(\"c\" & (VLOOKUP(Switch!$D$29,$F$2:$G$44,2,FALSE)+ROW()-2))=Switch!$D$29,INDIRECT(\"a\" & (VLOOKUP(Switch!$D$29,$F$2:$G$44,2,FALSE)+ROW()-2)),\"\")","v":{"$error":"#N/A"}},{"$f":"IF(INDIRECT(\"c\" & (VLOOKUP(Switch!$D$30,$F$2:$G$44,2,FALSE)+ROW()-2))=Switch!$D$30,INDIRECT(\"a\" & (VLOOKUP(Switch!$D$30,$F$2:$G$44,2,FALSE)+ROW()-2)),\"\")","v":{"$error":"#N/A"}},{"$f":"IF(INDIRECT(\"c\" & (VLOOKUP(Switch!$D$31,$F$2:$G$44,2,FALSE)+ROW()-2))=Switch!$D$31,INDIRECT(\"a\" & (VLOOKUP(Switch!$D$31,$F$2:$G$44,2,FALSE)+ROW()-2)),\"\")","v":{"$error":"#N/A"}},{"$f":"IF(INDIRECT(\"c\" & (VLOOKUP(Switch!$D$32,$F$2:$G$44,2,FALSE)+ROW()-2))=Switch!$D$32,INDIRECT(\"a\" & (VLOOKUP(Switch!$D$32,$F$2:$G$44,2,FALSE)+ROW()-2)),\"\")","v":{"$error":"#N/A"}},{"$f":"IF(INDIRECT(\"c\" & (VLOOKUP(Switch!$D$33,$F$2:$G$44,2,FALSE)+ROW()-2))=Switch!$D$33,INDIRECT(\"a\" & (VLOOKUP(Switch!$D$33,$F$2:$G$44,2,FALSE)+ROW()-2)),\"\")","v":{"$error":"#N/A"}},{"$f":"IF(INDIRECT(\"c\" & (VLOOKUP(Switch!$D$34,$F$2:$G$44,2,FALSE)+ROW()-2))=Switch!$D$34,INDIRECT(\"a\" & (VLOOKUP(Switch!$D$34,$F$2:$G$44,2,FALSE)+ROW()-2)),\"\")","v":{"$error":"#N/A"}},{"$f":"IF(INDIRECT(\"c\" & (VLOOKUP(Switch!$D$35,$F$2:$G$44,2,FALSE)+ROW()-2))=Switch!$D$35,INDIRECT(\"a\" & (VLOOKUP(Switch!$D$35,$F$2:$G$44,2,FALSE)+ROW()-2)),\"\")","v":{"$error":"#N/A"}},{"$f":"IF(INDIRECT(\"c\" & (VLOOKUP(Switch!$D$36,$F$2:$G$44,2,FALSE)+ROW()-2))=Switch!$D$36,INDIRECT(\"a\" & (VLOOKUP(Switch!$D$36,$F$2:$G$44,2,FALSE)+ROW()-2)),\"\")","v":{"$error":"#N/A"}},{"$f":"IF(INDIRECT(\"c\" & (VLOOKUP(Switch!$D$37,$F$2:$G$44,2,FALSE)+ROW()-2))=Switch!$D$37,INDIRECT(\"a\" & (VLOOKUP(Switch!$D$37,$F$2:$G$44,2,FALSE)+ROW()-2)),\"\")","v":{"$error":"#N/A"}},{"$f":"IF(INDIRECT(\"c\" & (VLOOKUP(Switch!$D$38,$F$2:$G$44,2,FALSE)+ROW()-2))=Switch!$D$38,INDIRECT(\"a\" & (VLOOKUP(Switch!$D$38,$F$2:$G$44,2,FALSE)+ROW()-2)),\"\")","v":{"$error":"#N/A"}},{"$f":"IF(INDIRECT(\"c\" & (VLOOKUP(Switch!$D$39,$F$2:$G$44,2,FALSE)+ROW()-2))=Switch!$D$39,INDIRECT(\"a\" & (VLOOKUP(Switch!$D$39,$F$2:$G$44,2,FALSE)+ROW()-2)),\"\")","v":{"$error":"#N/A"}},{"$f":"IF(INDIRECT(\"c\" & (VLOOKUP(Switch!$D$40,$F$2:$G$44,2,FALSE)+ROW()-2))=Switch!$D$40,INDIRECT(\"a\" & (VLOOKUP(Switch!$D$40,$F$2:$G$44,2,FALSE)+ROW()-2)),\"\")","v":{"$error":"#N/A"}},{"$f":"IF(INDIRECT(\"c\" & (VLOOKUP(Switch!$D$52,$F$2:$G$44,2,FALSE)+ROW()-2))=Switch!$D$52,INDIRECT(\"a\" & (VLOOKUP(Switch!$D$52,$F$2:$G$44,2,FALSE)+ROW()-2)),\"\")","v":{"$error":"#N/A"}},{"$f":"IF(INDIRECT(\"c\" & (VLOOKUP(Switch!$D$53,$F$2:$G$44,2,FALSE)+ROW()-2))=Switch!$D$53,INDIRECT(\"a\" & (VLOOKUP(Switch!$D$53,$F$2:$G$44,2,FALSE)+ROW()-2)),\"\")","v":{"$error":"#N/A"}},{"$f":"IF(INDIRECT(\"c\" & (VLOOKUP(Switch!$D$54,$F$2:$G$44,2,FALSE)+ROW()-2))=Switch!$D$54,INDIRECT(\"a\" & (VLOOKUP(Switch!$D$54,$F$2:$G$44,2,FALSE)+ROW()-2)),\"\")","v":{"$error":"#N/A"}},{"$f":"IF(INDIRECT(\"c\" & (VLOOKUP(Switch!$D$55,$F$2:$G$44,2,FALSE)+ROW()-2))=Switch!$D$55,INDIRECT(\"a\" & (VLOOKUP(Switch!$D$55,$F$2:$G$44,2,FALSE)+ROW()-2)),\"\")","v":{"$error":"#N/A"}},{"$f":"IF(INDIRECT(\"c\" & (VLOOKUP(Switch!$D$56,$F$2:$G$44,2,FALSE)+ROW()-2))=Switch!$D$56,INDIRECT(\"a\" & (VLOOKUP(Switch!$D$56,$F$2:$G$44,2,FALSE)+ROW()-2)),\"\")","v":{"$error":"#N/A"}},{"$f":"IF(INDIRECT(\"c\" & (VLOOKUP(Switch!$D$57,$F$2:$G$44,2,FALSE)+ROW()-2))=Switch!$D$57,INDIRECT(\"a\" & (VLOOKUP(Switch!$D$57,$F$2:$G$44,2,FALSE)+ROW()-2)),\"\")","v":{"$error":"#N/A"}},{"$f":"IF(INDIRECT(\"c\" & (VLOOKUP(Switch!$D$58,$F$2:$G$44,2,FALSE)+ROW()-2))=Switch!$D$58,INDIRECT(\"a\" & (VLOOKUP(Switch!$D$58,$F$2:$G$44,2,FALSE)+ROW()-2)),\"\")","v":{"$error":"#N/A"}},{"$f":"IF(INDIRECT(\"c\" & (VLOOKUP(Switch!$D$59,$F$2:$G$44,2,FALSE)+ROW()-2))=Switch!$D$59,INDIRECT(\"a\" & (VLOOKUP(Switch!$D$59,$F$2:$G$44,2,FALSE)+ROW()-2)),\"\")","v":{"$error":"#N/A"}},{"$f":"IF(INDIRECT(\"c\" & (VLOOKUP(Switch!$D$60,$F$2:$G$44,2,FALSE)+ROW()-2))=Switch!$D$60,INDIRECT(\"a\" & (VLOOKUP(Switch!$D$60,$F$2:$G$44,2,FALSE)+ROW()-2)),\"\")","v":{"$error":"#N/A"}},{"$f":"IF(INDIRECT(\"c\" & (VLOOKUP(Switch!$D$61,$F$2:$G$44,2,FALSE)+ROW()-2))=Switch!$D$61,INDIRECT(\"a\" & (VLOOKUP(Switch!$D$61,$F$2:$G$44,2,FALSE)+ROW()-2)),\"\")","v":{"$error":"#N/A"}},{"$f":"IF(INDIRECT(\"c\" & (VLOOKUP(Switch!$D$62,$F$2:$G$44,2,FALSE)+ROW()-2))=Switch!$D$62,INDIRECT(\"a\" & (VLOOKUP(Switch!$D$62,$F$2:$G$44,2,FALSE)+ROW()-2)),\"\")","v":{"$error":"#N/A"}},{"$f":"IF(INDIRECT(\"c\" & (VLOOKUP(Switch!$D$63,$F$2:$G$44,2,FALSE)+ROW()-2))=Switch!$D$63,INDIRECT(\"a\" & (VLOOKUP(Switch!$D$63,$F$2:$G$44,2,FALSE)+ROW()-2)),\"\")","v":{"$error":"#N/A"}},{"$f":"IF(INDIRECT(\"c\" & (VLOOKUP(Switch!$D$64,$F$2:$G$44,2,FALSE)+ROW()-2))=Switch!$D$64,INDIRECT(\"a\" & (VLOOKUP(Switch!$D$64,$F$2:$G$44,2,FALSE)+ROW()-2)),\"\")","v":{"$error":"#N/A"}},{"$f":"IF(INDIRECT(\"c\" & (VLOOKUP(Switch!$D$65,$F$2:$G$44,2,FALSE)+ROW()-2))=Switch!$D$65,INDIRECT(\"a\" & (VLOOKUP(Switch!$D$65,$F$2:$G$44,2,FALSE)+ROW()-2)),\"\")","v":{"$error":"#N/A"}},{"$f":"IF(INDIRECT(\"c\" & (VLOOKUP(Switch!$D$66,$F$2:$G$44,2,FALSE)+ROW()-2))=Switch!$D$66,INDIRECT(\"a\" & (VLOOKUP(Switch!$D$66,$F$2:$G$44,2,FALSE)+ROW()-2)),\"\")","v":{"$error":"#N/A"}}]
["Select Manager BCi Global Moderate FoF A","MSGG","Boutique Collective Investments (Pty) Ltd",{"$f":"ROW()","v":183},null,null,{"$f":"VLOOKUP(F183,$C$2:$D$637,2,FALSE)","v":{"$error":"#N/A"}},{"$f":"IF(INDIRECT(\"c\" & (VLOOKUP(Switch!$D$26,$F$2:$G$44,2,FALSE)+ROW()-2))=Switch!$D$26,INDIRECT(\"a\" & (VLOOKUP(Switch!$D$26,$F$2:$G$44,2,FALSE)+ROW()-2)),\"\")","v":{"$error":"#N/A"}},{"$f":"IF(INDIRECT(\"c\" & (VLOOKUP(Switch!$D$27,$F$2:$G$44,2,FALSE)+ROW()-2))=Switch!$D$27,INDIRECT(\"a\" & (VLOOKUP(Switch!$D$27,$F$2:$G$44,2,FALSE)+ROW()-2)),\"\")","v":{"$error":"#N/A"}},{"$f":"IF(INDIRECT(\"c\" & (VLOOKUP(Switch!$D$28,$F$2:$G$44,2,FALSE)+ROW()-2))=Switch!$D$28,INDIRECT(\"a\" & (VLOOKUP(Switch!$D$28,$F$2:$G$44,2,FALSE)+ROW()-2)),\"\")","v":{"$error":"#N/A"}},{"$f":"IF(INDIRECT(\"c\" & (VLOOKUP(Switch!$D$29,$F$2:$G$44,2,FALSE)+ROW()-2))=Switch!$D$29,INDIRECT(\"a\" & (VLOOKUP(Switch!$D$29,$F$2:$G$44,2,FALSE)+ROW()-2)),\"\")","v":{"$error":"#N/A"}},{"$f":"IF(INDIRECT(\"c\" & (VLOOKUP(Switch!$D$30,$F$2:$G$44,2,FALSE)+ROW()-2))=Switch!$D$30,INDIRECT(\"a\" & (VLOOKUP(Switch!$D$30,$F$2:$G$44,2,FALSE)+ROW()-2)),\"\")","v":{"$error":"#N/A"}},{"$f":"IF(INDIRECT(\"c\" & (VLOOKUP(Switch!$D$31,$F$2:$G$44,2,FALSE)+ROW()-2))=Switch!$D$31,INDIRECT(\"a\" & (VLOOKUP(Switch!$D$31,$F$2:$G$44,2,FALSE)+ROW()-2)),\"\")","v":{"$error":"#N/A"}},{"$f":"IF(INDIRECT(\"c\" & (VLOOKUP(Switch!$D$32,$F$2:$G$44,2,FALSE)+ROW()-2))=Switch!$D$32,INDIRECT(\"a\" & (VLOOKUP(Switch!$D$32,$F$2:$G$44,2,FALSE)+ROW()-2)),\"\")","v":{"$error":"#N/A"}},{"$f":"IF(INDIRECT(\"c\" & (VLOOKUP(Switch!$D$33,$F$2:$G$44,2,FALSE)+ROW()-2))=Switch!$D$33,INDIRECT(\"a\" & (VLOOKUP(Switch!$D$33,$F$2:$G$44,2,FALSE)+ROW()-2)),\"\")","v":{"$error":"#N/A"}},{"$f":"IF(INDIRECT(\"c\" & (VLOOKUP(Switch!$D$34,$F$2:$G$44,2,FALSE)+ROW()-2))=Switch!$D$34,INDIRECT(\"a\" & (VLOOKUP(Switch!$D$34,$F$2:$G$44,2,FALSE)+ROW()-2)),\"\")","v":{"$error":"#N/A"}},{"$f":"IF(INDIRECT(\"c\" & (VLOOKUP(Switch!$D$35,$F$2:$G$44,2,FALSE)+ROW()-2))=Switch!$D$35,INDIRECT(\"a\" & (VLOOKUP(Switch!$D$35,$F$2:$G$44,2,FALSE)+ROW()-2)),\"\")","v":{"$error":"#N/A"}},{"$f":"IF(INDIRECT(\"c\" & (VLOOKUP(Switch!$D$36,$F$2:$G$44,2,FALSE)+ROW()-2))=Switch!$D$36,INDIRECT(\"a\" & (VLOOKUP(Switch!$D$36,$F$2:$G$44,2,FALSE)+ROW()-2)),\"\")","v":{"$error":"#N/A"}},{"$f":"IF(INDIRECT(\"c\" & (VLOOKUP(Switch!$D$37,$F$2:$G$44,2,FALSE)+ROW()-2))=Switch!$D$37,INDIRECT(\"a\" & (VLOOKUP(Switch!$D$37,$F$2:$G$44,2,FALSE)+ROW()-2)),\"\")","v":{"$error":"#N/A"}},{"$f":"IF(INDIRECT(\"c\" & (VLOOKUP(Switch!$D$38,$F$2:$G$44,2,FALSE)+ROW()-2))=Switch!$D$38,INDIRECT(\"a\" & (VLOOKUP(Switch!$D$38,$F$2:$G$44,2,FALSE)+ROW()-2)),\"\")","v":{"$error":"#N/A"}},{"$f":"IF(INDIRECT(\"c\" & (VLOOKUP(Switch!$D$39,$F$2:$G$44,2,FALSE)+ROW()-2))=Switch!$D$39,INDIRECT(\"a\" & (VLOOKUP(Switch!$D$39,$F$2:$G$44,2,FALSE)+ROW()-2)),\"\")","v":{"$error":"#N/A"}},{"$f":"IF(INDIRECT(\"c\" & (VLOOKUP(Switch!$D$40,$F$2:$G$44,2,FALSE)+ROW()-2))=Switch!$D$40,INDIRECT(\"a\" & (VLOOKUP(Switch!$D$40,$F$2:$G$44,2,FALSE)+ROW()-2)),\"\")","v":{"$error":"#N/A"}},{"$f":"IF(INDIRECT(\"c\" & (VLOOKUP(Switch!$D$52,$F$2:$G$44,2,FALSE)+ROW()-2))=Switch!$D$52,INDIRECT(\"a\" & (VLOOKUP(Switch!$D$52,$F$2:$G$44,2,FALSE)+ROW()-2)),\"\")","v":{"$error":"#N/A"}},{"$f":"IF(INDIRECT(\"c\" & (VLOOKUP(Switch!$D$53,$F$2:$G$44,2,FALSE)+ROW()-2))=Switch!$D$53,INDIRECT(\"a\" & (VLOOKUP(Switch!$D$53,$F$2:$G$44,2,FALSE)+ROW()-2)),\"\")","v":{"$error":"#N/A"}},{"$f":"IF(INDIRECT(\"c\" & (VLOOKUP(Switch!$D$54,$F$2:$G$44,2,FALSE)+ROW()-2))=Switch!$D$54,INDIRECT(\"a\" & (VLOOKUP(Switch!$D$54,$F$2:$G$44,2,FALSE)+ROW()-2)),\"\")","v":{"$error":"#N/A"}},{"$f":"IF(INDIRECT(\"c\" & (VLOOKUP(Switch!$D$55,$F$2:$G$44,2,FALSE)+ROW()-2))=Switch!$D$55,INDIRECT(\"a\" & (VLOOKUP(Switch!$D$55,$F$2:$G$44,2,FALSE)+ROW()-2)),\"\")","v":{"$error":"#N/A"}},{"$f":"IF(INDIRECT(\"c\" & (VLOOKUP(Switch!$D$56,$F$2:$G$44,2,FALSE)+ROW()-2))=Switch!$D$56,INDIRECT(\"a\" & (VLOOKUP(Switch!$D$56,$F$2:$G$44,2,FALSE)+ROW()-2)),\"\")","v":{"$error":"#N/A"}},{"$f":"IF(INDIRECT(\"c\" & (VLOOKUP(Switch!$D$57,$F$2:$G$44,2,FALSE)+ROW()-2))=Switch!$D$57,INDIRECT(\"a\" & (VLOOKUP(Switch!$D$57,$F$2:$G$44,2,FALSE)+ROW()-2)),\"\")","v":{"$error":"#N/A"}},{"$f":"IF(INDIRECT(\"c\" & (VLOOKUP(Switch!$D$58,$F$2:$G$44,2,FALSE)+ROW()-2))=Switch!$D$58,INDIRECT(\"a\" & (VLOOKUP(Switch!$D$58,$F$2:$G$44,2,FALSE)+ROW()-2)),\"\")","v":{"$error":"#N/A"}},{"$f":"IF(INDIRECT(\"c\" & (VLOOKUP(Switch!$D$59,$F$2:$G$44,2,FALSE)+ROW()-2))=Switch!$D$59,INDIRECT(\"a\" & (VLOOKUP(Switch!$D$59,$F$2:$G$44,2,FALSE)+ROW()-2)),\"\")","v":{"$error":"#N/A"}},{"$f":"IF(INDIRECT(\"c\" & (VLOOKUP(Switch!$D$60,$F$2:$G$44,2,FALSE)+ROW()-2))=Switch!$D$60,INDIRECT(\"a\" & (VLOOKUP(Switch!$D$60,$F$2:$G$44,2,FALSE)+ROW()-2)),\"\")","v":{"$error":"#N/A"}},{"$f":"IF(INDIRECT(\"c\" & (VLOOKUP(Switch!$D$61,$F$2:$G$44,2,FALSE)+ROW()-2))=Switch!$D$61,INDIRECT(\"a\" & (VLOOKUP(Switch!$D$61,$F$2:$G$44,2,FALSE)+ROW()-2)),\"\")","v":{"$error":"#N/A"}},{"$f":"IF(INDIRECT(\"c\" & (VLOOKUP(Switch!$D$62,$F$2:$G$44,2,FALSE)+ROW()-2))=Switch!$D$62,INDIRECT(\"a\" & (VLOOKUP(Switch!$D$62,$F$2:$G$44,2,FALSE)+ROW()-2)),\"\")","v":{"$error":"#N/A"}},{"$f":"IF(INDIRECT(\"c\" & (VLOOKUP(Switch!$D$63,$F$2:$G$44,2,FALSE)+ROW()-2))=Switch!$D$63,INDIRECT(\"a\" & (VLOOKUP(Switch!$D$63,$F$2:$G$44,2,FALSE)+ROW()-2)),\"\")","v":{"$error":"#N/A"}},{"$f":"IF(INDIRECT(\"c\" & (VLOOKUP(Switch!$D$64,$F$2:$G$44,2,FALSE)+ROW()-2))=Switch!$D$64,INDIRECT(\"a\" & (VLOOKUP(Switch!$D$64,$F$2:$G$44,2,FALSE)+ROW()-2)),\"\")","v":{"$error":"#N/A"}},{"$f":"IF(INDIRECT(\"c\" & (VLOOKUP(Switch!$D$65,$F$2:$G$44,2,FALSE)+ROW()-2))=Switch!$D$65,INDIRECT(\"a\" & (VLOOKUP(Switch!$D$65,$F$2:$G$44,2,FALSE)+ROW()-2)),\"\")","v":{"$error":"#N/A"}},{"$f":"IF(INDIRECT(\"c\" & (VLOOKUP(Switch!$D$66,$F$2:$G$44,2,FALSE)+ROW()-2))=Switch!$D$66,INDIRECT(\"a\" & (VLOOKUP(Switch!$D$66,$F$2:$G$44,2,FALSE)+ROW()-2)),\"\")","v":{"$error":"#N/A"}}]
["Select Manager BCi Prudential FoF A","MSMP","Boutique Collective Investments (Pty) Ltd",{"$f":"ROW()","v":184},null,null,{"$f":"VLOOKUP(F184,$C$2:$D$637,2,FALSE)","v":{"$error":"#N/A"}},{"$f":"IF(INDIRECT(\"c\" & (VLOOKUP(Switch!$D$26,$F$2:$G$44,2,FALSE)+ROW()-2))=Switch!$D$26,INDIRECT(\"a\" & (VLOOKUP(Switch!$D$26,$F$2:$G$44,2,FALSE)+ROW()-2)),\"\")","v":{"$error":"#N/A"}},{"$f":"IF(INDIRECT(\"c\" & (VLOOKUP(Switch!$D$27,$F$2:$G$44,2,FALSE)+ROW()-2))=Switch!$D$27,INDIRECT(\"a\" & (VLOOKUP(Switch!$D$27,$F$2:$G$44,2,FALSE)+ROW()-2)),\"\")","v":{"$error":"#N/A"}},{"$f":"IF(INDIRECT(\"c\" & (VLOOKUP(Switch!$D$28,$F$2:$G$44,2,FALSE)+ROW()-2))=Switch!$D$28,INDIRECT(\"a\" & (VLOOKUP(Switch!$D$28,$F$2:$G$44,2,FALSE)+ROW()-2)),\"\")","v":{"$error":"#N/A"}},{"$f":"IF(INDIRECT(\"c\" & (VLOOKUP(Switch!$D$29,$F$2:$G$44,2,FALSE)+ROW()-2))=Switch!$D$29,INDIRECT(\"a\" & (VLOOKUP(Switch!$D$29,$F$2:$G$44,2,FALSE)+ROW()-2)),\"\")","v":{"$error":"#N/A"}},{"$f":"IF(INDIRECT(\"c\" & (VLOOKUP(Switch!$D$30,$F$2:$G$44,2,FALSE)+ROW()-2))=Switch!$D$30,INDIRECT(\"a\" & (VLOOKUP(Switch!$D$30,$F$2:$G$44,2,FALSE)+ROW()-2)),\"\")","v":{"$error":"#N/A"}},{"$f":"IF(INDIRECT(\"c\" & (VLOOKUP(Switch!$D$31,$F$2:$G$44,2,FALSE)+ROW()-2))=Switch!$D$31,INDIRECT(\"a\" & (VLOOKUP(Switch!$D$31,$F$2:$G$44,2,FALSE)+ROW()-2)),\"\")","v":{"$error":"#N/A"}},{"$f":"IF(INDIRECT(\"c\" & (VLOOKUP(Switch!$D$32,$F$2:$G$44,2,FALSE)+ROW()-2))=Switch!$D$32,INDIRECT(\"a\" & (VLOOKUP(Switch!$D$32,$F$2:$G$44,2,FALSE)+ROW()-2)),\"\")","v":{"$error":"#N/A"}},{"$f":"IF(INDIRECT(\"c\" & (VLOOKUP(Switch!$D$33,$F$2:$G$44,2,FALSE)+ROW()-2))=Switch!$D$33,INDIRECT(\"a\" & (VLOOKUP(Switch!$D$33,$F$2:$G$44,2,FALSE)+ROW()-2)),\"\")","v":{"$error":"#N/A"}},{"$f":"IF(INDIRECT(\"c\" & (VLOOKUP(Switch!$D$34,$F$2:$G$44,2,FALSE)+ROW()-2))=Switch!$D$34,INDIRECT(\"a\" & (VLOOKUP(Switch!$D$34,$F$2:$G$44,2,FALSE)+ROW()-2)),\"\")","v":{"$error":"#N/A"}},{"$f":"IF(INDIRECT(\"c\" & (VLOOKUP(Switch!$D$35,$F$2:$G$44,2,FALSE)+ROW()-2))=Switch!$D$35,INDIRECT(\"a\" & (VLOOKUP(Switch!$D$35,$F$2:$G$44,2,FALSE)+ROW()-2)),\"\")","v":{"$error":"#N/A"}},{"$f":"IF(INDIRECT(\"c\" & (VLOOKUP(Switch!$D$36,$F$2:$G$44,2,FALSE)+ROW()-2))=Switch!$D$36,INDIRECT(\"a\" & (VLOOKUP(Switch!$D$36,$F$2:$G$44,2,FALSE)+ROW()-2)),\"\")","v":{"$error":"#N/A"}},{"$f":"IF(INDIRECT(\"c\" & (VLOOKUP(Switch!$D$37,$F$2:$G$44,2,FALSE)+ROW()-2))=Switch!$D$37,INDIRECT(\"a\" & (VLOOKUP(Switch!$D$37,$F$2:$G$44,2,FALSE)+ROW()-2)),\"\")","v":{"$error":"#N/A"}},{"$f":"IF(INDIRECT(\"c\" & (VLOOKUP(Switch!$D$38,$F$2:$G$44,2,FALSE)+ROW()-2))=Switch!$D$38,INDIRECT(\"a\" & (VLOOKUP(Switch!$D$38,$F$2:$G$44,2,FALSE)+ROW()-2)),\"\")","v":{"$error":"#N/A"}},{"$f":"IF(INDIRECT(\"c\" & (VLOOKUP(Switch!$D$39,$F$2:$G$44,2,FALSE)+ROW()-2))=Switch!$D$39,INDIRECT(\"a\" & (VLOOKUP(Switch!$D$39,$F$2:$G$44,2,FALSE)+ROW()-2)),\"\")","v":{"$error":"#N/A"}},{"$f":"IF(INDIRECT(\"c\" & (VLOOKUP(Switch!$D$40,$F$2:$G$44,2,FALSE)+ROW()-2))=Switch!$D$40,INDIRECT(\"a\" & (VLOOKUP(Switch!$D$40,$F$2:$G$44,2,FALSE)+ROW()-2)),\"\")","v":{"$error":"#N/A"}},{"$f":"IF(INDIRECT(\"c\" & (VLOOKUP(Switch!$D$52,$F$2:$G$44,2,FALSE)+ROW()-2))=Switch!$D$52,INDIRECT(\"a\" & (VLOOKUP(Switch!$D$52,$F$2:$G$44,2,FALSE)+ROW()-2)),\"\")","v":{"$error":"#N/A"}},{"$f":"IF(INDIRECT(\"c\" & (VLOOKUP(Switch!$D$53,$F$2:$G$44,2,FALSE)+ROW()-2))=Switch!$D$53,INDIRECT(\"a\" & (VLOOKUP(Switch!$D$53,$F$2:$G$44,2,FALSE)+ROW()-2)),\"\")","v":{"$error":"#N/A"}},{"$f":"IF(INDIRECT(\"c\" & (VLOOKUP(Switch!$D$54,$F$2:$G$44,2,FALSE)+ROW()-2))=Switch!$D$54,INDIRECT(\"a\" & (VLOOKUP(Switch!$D$54,$F$2:$G$44,2,FALSE)+ROW()-2)),\"\")","v":{"$error":"#N/A"}},{"$f":"IF(INDIRECT(\"c\" & (VLOOKUP(Switch!$D$55,$F$2:$G$44,2,FALSE)+ROW()-2))=Switch!$D$55,INDIRECT(\"a\" & (VLOOKUP(Switch!$D$55,$F$2:$G$44,2,FALSE)+ROW()-2)),\"\")","v":{"$error":"#N/A"}},{"$f":"IF(INDIRECT(\"c\" & (VLOOKUP(Switch!$D$56,$F$2:$G$44,2,FALSE)+ROW()-2))=Switch!$D$56,INDIRECT(\"a\" & (VLOOKUP(Switch!$D$56,$F$2:$G$44,2,FALSE)+ROW()-2)),\"\")","v":{"$error":"#N/A"}},{"$f":"IF(INDIRECT(\"c\" & (VLOOKUP(Switch!$D$57,$F$2:$G$44,2,FALSE)+ROW()-2))=Switch!$D$57,INDIRECT(\"a\" & (VLOOKUP(Switch!$D$57,$F$2:$G$44,2,FALSE)+ROW()-2)),\"\")","v":{"$error":"#N/A"}},{"$f":"IF(INDIRECT(\"c\" & (VLOOKUP(Switch!$D$58,$F$2:$G$44,2,FALSE)+ROW()-2))=Switch!$D$58,INDIRECT(\"a\" & (VLOOKUP(Switch!$D$58,$F$2:$G$44,2,FALSE)+ROW()-2)),\"\")","v":{"$error":"#N/A"}},{"$f":"IF(INDIRECT(\"c\" & (VLOOKUP(Switch!$D$59,$F$2:$G$44,2,FALSE)+ROW()-2))=Switch!$D$59,INDIRECT(\"a\" & (VLOOKUP(Switch!$D$59,$F$2:$G$44,2,FALSE)+ROW()-2)),\"\")","v":{"$error":"#N/A"}},{"$f":"IF(INDIRECT(\"c\" & (VLOOKUP(Switch!$D$60,$F$2:$G$44,2,FALSE)+ROW()-2))=Switch!$D$60,INDIRECT(\"a\" & (VLOOKUP(Switch!$D$60,$F$2:$G$44,2,FALSE)+ROW()-2)),\"\")","v":{"$error":"#N/A"}},{"$f":"IF(INDIRECT(\"c\" & (VLOOKUP(Switch!$D$61,$F$2:$G$44,2,FALSE)+ROW()-2))=Switch!$D$61,INDIRECT(\"a\" & (VLOOKUP(Switch!$D$61,$F$2:$G$44,2,FALSE)+ROW()-2)),\"\")","v":{"$error":"#N/A"}},{"$f":"IF(INDIRECT(\"c\" & (VLOOKUP(Switch!$D$62,$F$2:$G$44,2,FALSE)+ROW()-2))=Switch!$D$62,INDIRECT(\"a\" & (VLOOKUP(Switch!$D$62,$F$2:$G$44,2,FALSE)+ROW()-2)),\"\")","v":{"$error":"#N/A"}},{"$f":"IF(INDIRECT(\"c\" & (VLOOKUP(Switch!$D$63,$F$2:$G$44,2,FALSE)+ROW()-2))=Switch!$D$63,INDIRECT(\"a\" & (VLOOKUP(Switch!$D$63,$F$2:$G$44,2,FALSE)+ROW()-2)),\"\")","v":{"$error":"#N/A"}},{"$f":"IF(INDIRECT(\"c\" & (VLOOKUP(Switch!$D$64,$F$2:$G$44,2,FALSE)+ROW()-2))=Switch!$D$64,INDIRECT(\"a\" & (VLOOKUP(Switch!$D$64,$F$2:$G$44,2,FALSE)+ROW()-2)),\"\")","v":{"$error":"#N/A"}},{"$f":"IF(INDIRECT(\"c\" & (VLOOKUP(Switch!$D$65,$F$2:$G$44,2,FALSE)+ROW()-2))=Switch!$D$65,INDIRECT(\"a\" & (VLOOKUP(Switch!$D$65,$F$2:$G$44,2,FALSE)+ROW()-2)),\"\")","v":{"$error":"#N/A"}},{"$f":"IF(INDIRECT(\"c\" & (VLOOKUP(Switch!$D$66,$F$2:$G$44,2,FALSE)+ROW()-2))=Switch!$D$66,INDIRECT(\"a\" & (VLOOKUP(Switch!$D$66,$F$2:$G$44,2,FALSE)+ROW()-2)),\"\")","v":{"$error":"#N/A"}}]
["Sharenet MM BCI Cautious Fund of Funds A","SBCICA","Boutique Collective Investments (Pty) Ltd",{"$f":"ROW()","v":185},null,null,{"$f":"VLOOKUP(F185,$C$2:$D$637,2,FALSE)","v":{"$error":"#N/A"}},{"$f":"IF(INDIRECT(\"c\" & (VLOOKUP(Switch!$D$26,$F$2:$G$44,2,FALSE)+ROW()-2))=Switch!$D$26,INDIRECT(\"a\" & (VLOOKUP(Switch!$D$26,$F$2:$G$44,2,FALSE)+ROW()-2)),\"\")","v":{"$error":"#N/A"}},{"$f":"IF(INDIRECT(\"c\" & (VLOOKUP(Switch!$D$27,$F$2:$G$44,2,FALSE)+ROW()-2))=Switch!$D$27,INDIRECT(\"a\" & (VLOOKUP(Switch!$D$27,$F$2:$G$44,2,FALSE)+ROW()-2)),\"\")","v":{"$error":"#N/A"}},{"$f":"IF(INDIRECT(\"c\" & (VLOOKUP(Switch!$D$28,$F$2:$G$44,2,FALSE)+ROW()-2))=Switch!$D$28,INDIRECT(\"a\" & (VLOOKUP(Switch!$D$28,$F$2:$G$44,2,FALSE)+ROW()-2)),\"\")","v":{"$error":"#N/A"}},{"$f":"IF(INDIRECT(\"c\" & (VLOOKUP(Switch!$D$29,$F$2:$G$44,2,FALSE)+ROW()-2))=Switch!$D$29,INDIRECT(\"a\" & (VLOOKUP(Switch!$D$29,$F$2:$G$44,2,FALSE)+ROW()-2)),\"\")","v":{"$error":"#N/A"}},{"$f":"IF(INDIRECT(\"c\" & (VLOOKUP(Switch!$D$30,$F$2:$G$44,2,FALSE)+ROW()-2))=Switch!$D$30,INDIRECT(\"a\" & (VLOOKUP(Switch!$D$30,$F$2:$G$44,2,FALSE)+ROW()-2)),\"\")","v":{"$error":"#N/A"}},{"$f":"IF(INDIRECT(\"c\" & (VLOOKUP(Switch!$D$31,$F$2:$G$44,2,FALSE)+ROW()-2))=Switch!$D$31,INDIRECT(\"a\" & (VLOOKUP(Switch!$D$31,$F$2:$G$44,2,FALSE)+ROW()-2)),\"\")","v":{"$error":"#N/A"}},{"$f":"IF(INDIRECT(\"c\" & (VLOOKUP(Switch!$D$32,$F$2:$G$44,2,FALSE)+ROW()-2))=Switch!$D$32,INDIRECT(\"a\" & (VLOOKUP(Switch!$D$32,$F$2:$G$44,2,FALSE)+ROW()-2)),\"\")","v":{"$error":"#N/A"}},{"$f":"IF(INDIRECT(\"c\" & (VLOOKUP(Switch!$D$33,$F$2:$G$44,2,FALSE)+ROW()-2))=Switch!$D$33,INDIRECT(\"a\" & (VLOOKUP(Switch!$D$33,$F$2:$G$44,2,FALSE)+ROW()-2)),\"\")","v":{"$error":"#N/A"}},{"$f":"IF(INDIRECT(\"c\" & (VLOOKUP(Switch!$D$34,$F$2:$G$44,2,FALSE)+ROW()-2))=Switch!$D$34,INDIRECT(\"a\" & (VLOOKUP(Switch!$D$34,$F$2:$G$44,2,FALSE)+ROW()-2)),\"\")","v":{"$error":"#N/A"}},{"$f":"IF(INDIRECT(\"c\" & (VLOOKUP(Switch!$D$35,$F$2:$G$44,2,FALSE)+ROW()-2))=Switch!$D$35,INDIRECT(\"a\" & (VLOOKUP(Switch!$D$35,$F$2:$G$44,2,FALSE)+ROW()-2)),\"\")","v":{"$error":"#N/A"}},{"$f":"IF(INDIRECT(\"c\" & (VLOOKUP(Switch!$D$36,$F$2:$G$44,2,FALSE)+ROW()-2))=Switch!$D$36,INDIRECT(\"a\" & (VLOOKUP(Switch!$D$36,$F$2:$G$44,2,FALSE)+ROW()-2)),\"\")","v":{"$error":"#N/A"}},{"$f":"IF(INDIRECT(\"c\" & (VLOOKUP(Switch!$D$37,$F$2:$G$44,2,FALSE)+ROW()-2))=Switch!$D$37,INDIRECT(\"a\" & (VLOOKUP(Switch!$D$37,$F$2:$G$44,2,FALSE)+ROW()-2)),\"\")","v":{"$error":"#N/A"}},{"$f":"IF(INDIRECT(\"c\" & (VLOOKUP(Switch!$D$38,$F$2:$G$44,2,FALSE)+ROW()-2))=Switch!$D$38,INDIRECT(\"a\" & (VLOOKUP(Switch!$D$38,$F$2:$G$44,2,FALSE)+ROW()-2)),\"\")","v":{"$error":"#N/A"}},{"$f":"IF(INDIRECT(\"c\" & (VLOOKUP(Switch!$D$39,$F$2:$G$44,2,FALSE)+ROW()-2))=Switch!$D$39,INDIRECT(\"a\" & (VLOOKUP(Switch!$D$39,$F$2:$G$44,2,FALSE)+ROW()-2)),\"\")","v":{"$error":"#N/A"}},{"$f":"IF(INDIRECT(\"c\" & (VLOOKUP(Switch!$D$40,$F$2:$G$44,2,FALSE)+ROW()-2))=Switch!$D$40,INDIRECT(\"a\" & (VLOOKUP(Switch!$D$40,$F$2:$G$44,2,FALSE)+ROW()-2)),\"\")","v":{"$error":"#N/A"}},{"$f":"IF(INDIRECT(\"c\" & (VLOOKUP(Switch!$D$52,$F$2:$G$44,2,FALSE)+ROW()-2))=Switch!$D$52,INDIRECT(\"a\" & (VLOOKUP(Switch!$D$52,$F$2:$G$44,2,FALSE)+ROW()-2)),\"\")","v":{"$error":"#N/A"}},{"$f":"IF(INDIRECT(\"c\" & (VLOOKUP(Switch!$D$53,$F$2:$G$44,2,FALSE)+ROW()-2))=Switch!$D$53,INDIRECT(\"a\" & (VLOOKUP(Switch!$D$53,$F$2:$G$44,2,FALSE)+ROW()-2)),\"\")","v":{"$error":"#N/A"}},{"$f":"IF(INDIRECT(\"c\" & (VLOOKUP(Switch!$D$54,$F$2:$G$44,2,FALSE)+ROW()-2))=Switch!$D$54,INDIRECT(\"a\" & (VLOOKUP(Switch!$D$54,$F$2:$G$44,2,FALSE)+ROW()-2)),\"\")","v":{"$error":"#N/A"}},{"$f":"IF(INDIRECT(\"c\" & (VLOOKUP(Switch!$D$55,$F$2:$G$44,2,FALSE)+ROW()-2))=Switch!$D$55,INDIRECT(\"a\" & (VLOOKUP(Switch!$D$55,$F$2:$G$44,2,FALSE)+ROW()-2)),\"\")","v":{"$error":"#N/A"}},{"$f":"IF(INDIRECT(\"c\" & (VLOOKUP(Switch!$D$56,$F$2:$G$44,2,FALSE)+ROW()-2))=Switch!$D$56,INDIRECT(\"a\" & (VLOOKUP(Switch!$D$56,$F$2:$G$44,2,FALSE)+ROW()-2)),\"\")","v":{"$error":"#N/A"}},{"$f":"IF(INDIRECT(\"c\" & (VLOOKUP(Switch!$D$57,$F$2:$G$44,2,FALSE)+ROW()-2))=Switch!$D$57,INDIRECT(\"a\" & (VLOOKUP(Switch!$D$57,$F$2:$G$44,2,FALSE)+ROW()-2)),\"\")","v":{"$error":"#N/A"}},{"$f":"IF(INDIRECT(\"c\" & (VLOOKUP(Switch!$D$58,$F$2:$G$44,2,FALSE)+ROW()-2))=Switch!$D$58,INDIRECT(\"a\" & (VLOOKUP(Switch!$D$58,$F$2:$G$44,2,FALSE)+ROW()-2)),\"\")","v":{"$error":"#N/A"}},{"$f":"IF(INDIRECT(\"c\" & (VLOOKUP(Switch!$D$59,$F$2:$G$44,2,FALSE)+ROW()-2))=Switch!$D$59,INDIRECT(\"a\" & (VLOOKUP(Switch!$D$59,$F$2:$G$44,2,FALSE)+ROW()-2)),\"\")","v":{"$error":"#N/A"}},{"$f":"IF(INDIRECT(\"c\" & (VLOOKUP(Switch!$D$60,$F$2:$G$44,2,FALSE)+ROW()-2))=Switch!$D$60,INDIRECT(\"a\" & (VLOOKUP(Switch!$D$60,$F$2:$G$44,2,FALSE)+ROW()-2)),\"\")","v":{"$error":"#N/A"}},{"$f":"IF(INDIRECT(\"c\" & (VLOOKUP(Switch!$D$61,$F$2:$G$44,2,FALSE)+ROW()-2))=Switch!$D$61,INDIRECT(\"a\" & (VLOOKUP(Switch!$D$61,$F$2:$G$44,2,FALSE)+ROW()-2)),\"\")","v":{"$error":"#N/A"}},{"$f":"IF(INDIRECT(\"c\" & (VLOOKUP(Switch!$D$62,$F$2:$G$44,2,FALSE)+ROW()-2))=Switch!$D$62,INDIRECT(\"a\" & (VLOOKUP(Switch!$D$62,$F$2:$G$44,2,FALSE)+ROW()-2)),\"\")","v":{"$error":"#N/A"}},{"$f":"IF(INDIRECT(\"c\" & (VLOOKUP(Switch!$D$63,$F$2:$G$44,2,FALSE)+ROW()-2))=Switch!$D$63,INDIRECT(\"a\" & (VLOOKUP(Switch!$D$63,$F$2:$G$44,2,FALSE)+ROW()-2)),\"\")","v":{"$error":"#N/A"}},{"$f":"IF(INDIRECT(\"c\" & (VLOOKUP(Switch!$D$64,$F$2:$G$44,2,FALSE)+ROW()-2))=Switch!$D$64,INDIRECT(\"a\" & (VLOOKUP(Switch!$D$64,$F$2:$G$44,2,FALSE)+ROW()-2)),\"\")","v":{"$error":"#N/A"}},{"$f":"IF(INDIRECT(\"c\" & (VLOOKUP(Switch!$D$65,$F$2:$G$44,2,FALSE)+ROW()-2))=Switch!$D$65,INDIRECT(\"a\" & (VLOOKUP(Switch!$D$65,$F$2:$G$44,2,FALSE)+ROW()-2)),\"\")","v":{"$error":"#N/A"}},{"$f":"IF(INDIRECT(\"c\" & (VLOOKUP(Switch!$D$66,$F$2:$G$44,2,FALSE)+ROW()-2))=Switch!$D$66,INDIRECT(\"a\" & (VLOOKUP(Switch!$D$66,$F$2:$G$44,2,FALSE)+ROW()-2)),\"\")","v":{"$error":"#N/A"}}]
["Skyblue BCI Cumulus Moderate FoF A","MBIC","Boutique Collective Investments (Pty) Ltd",{"$f":"ROW()","v":186},null,null,{"$f":"VLOOKUP(F186,$C$2:$D$637,2,FALSE)","v":{"$error":"#N/A"}},{"$f":"IF(INDIRECT(\"c\" & (VLOOKUP(Switch!$D$26,$F$2:$G$44,2,FALSE)+ROW()-2))=Switch!$D$26,INDIRECT(\"a\" & (VLOOKUP(Switch!$D$26,$F$2:$G$44,2,FALSE)+ROW()-2)),\"\")","v":{"$error":"#N/A"}},{"$f":"IF(INDIRECT(\"c\" & (VLOOKUP(Switch!$D$27,$F$2:$G$44,2,FALSE)+ROW()-2))=Switch!$D$27,INDIRECT(\"a\" & (VLOOKUP(Switch!$D$27,$F$2:$G$44,2,FALSE)+ROW()-2)),\"\")","v":{"$error":"#N/A"}},{"$f":"IF(INDIRECT(\"c\" & (VLOOKUP(Switch!$D$28,$F$2:$G$44,2,FALSE)+ROW()-2))=Switch!$D$28,INDIRECT(\"a\" & (VLOOKUP(Switch!$D$28,$F$2:$G$44,2,FALSE)+ROW()-2)),\"\")","v":{"$error":"#N/A"}},{"$f":"IF(INDIRECT(\"c\" & (VLOOKUP(Switch!$D$29,$F$2:$G$44,2,FALSE)+ROW()-2))=Switch!$D$29,INDIRECT(\"a\" & (VLOOKUP(Switch!$D$29,$F$2:$G$44,2,FALSE)+ROW()-2)),\"\")","v":{"$error":"#N/A"}},{"$f":"IF(INDIRECT(\"c\" & (VLOOKUP(Switch!$D$30,$F$2:$G$44,2,FALSE)+ROW()-2))=Switch!$D$30,INDIRECT(\"a\" & (VLOOKUP(Switch!$D$30,$F$2:$G$44,2,FALSE)+ROW()-2)),\"\")","v":{"$error":"#N/A"}},{"$f":"IF(INDIRECT(\"c\" & (VLOOKUP(Switch!$D$31,$F$2:$G$44,2,FALSE)+ROW()-2))=Switch!$D$31,INDIRECT(\"a\" & (VLOOKUP(Switch!$D$31,$F$2:$G$44,2,FALSE)+ROW()-2)),\"\")","v":{"$error":"#N/A"}},{"$f":"IF(INDIRECT(\"c\" & (VLOOKUP(Switch!$D$32,$F$2:$G$44,2,FALSE)+ROW()-2))=Switch!$D$32,INDIRECT(\"a\" & (VLOOKUP(Switch!$D$32,$F$2:$G$44,2,FALSE)+ROW()-2)),\"\")","v":{"$error":"#N/A"}},{"$f":"IF(INDIRECT(\"c\" & (VLOOKUP(Switch!$D$33,$F$2:$G$44,2,FALSE)+ROW()-2))=Switch!$D$33,INDIRECT(\"a\" & (VLOOKUP(Switch!$D$33,$F$2:$G$44,2,FALSE)+ROW()-2)),\"\")","v":{"$error":"#N/A"}},{"$f":"IF(INDIRECT(\"c\" & (VLOOKUP(Switch!$D$34,$F$2:$G$44,2,FALSE)+ROW()-2))=Switch!$D$34,INDIRECT(\"a\" & (VLOOKUP(Switch!$D$34,$F$2:$G$44,2,FALSE)+ROW()-2)),\"\")","v":{"$error":"#N/A"}},{"$f":"IF(INDIRECT(\"c\" & (VLOOKUP(Switch!$D$35,$F$2:$G$44,2,FALSE)+ROW()-2))=Switch!$D$35,INDIRECT(\"a\" & (VLOOKUP(Switch!$D$35,$F$2:$G$44,2,FALSE)+ROW()-2)),\"\")","v":{"$error":"#N/A"}},{"$f":"IF(INDIRECT(\"c\" & (VLOOKUP(Switch!$D$36,$F$2:$G$44,2,FALSE)+ROW()-2))=Switch!$D$36,INDIRECT(\"a\" & (VLOOKUP(Switch!$D$36,$F$2:$G$44,2,FALSE)+ROW()-2)),\"\")","v":{"$error":"#N/A"}},{"$f":"IF(INDIRECT(\"c\" & (VLOOKUP(Switch!$D$37,$F$2:$G$44,2,FALSE)+ROW()-2))=Switch!$D$37,INDIRECT(\"a\" & (VLOOKUP(Switch!$D$37,$F$2:$G$44,2,FALSE)+ROW()-2)),\"\")","v":{"$error":"#N/A"}},{"$f":"IF(INDIRECT(\"c\" & (VLOOKUP(Switch!$D$38,$F$2:$G$44,2,FALSE)+ROW()-2))=Switch!$D$38,INDIRECT(\"a\" & (VLOOKUP(Switch!$D$38,$F$2:$G$44,2,FALSE)+ROW()-2)),\"\")","v":{"$error":"#N/A"}},{"$f":"IF(INDIRECT(\"c\" & (VLOOKUP(Switch!$D$39,$F$2:$G$44,2,FALSE)+ROW()-2))=Switch!$D$39,INDIRECT(\"a\" & (VLOOKUP(Switch!$D$39,$F$2:$G$44,2,FALSE)+ROW()-2)),\"\")","v":{"$error":"#N/A"}},{"$f":"IF(INDIRECT(\"c\" & (VLOOKUP(Switch!$D$40,$F$2:$G$44,2,FALSE)+ROW()-2))=Switch!$D$40,INDIRECT(\"a\" & (VLOOKUP(Switch!$D$40,$F$2:$G$44,2,FALSE)+ROW()-2)),\"\")","v":{"$error":"#N/A"}},{"$f":"IF(INDIRECT(\"c\" & (VLOOKUP(Switch!$D$52,$F$2:$G$44,2,FALSE)+ROW()-2))=Switch!$D$52,INDIRECT(\"a\" & (VLOOKUP(Switch!$D$52,$F$2:$G$44,2,FALSE)+ROW()-2)),\"\")","v":{"$error":"#N/A"}},{"$f":"IF(INDIRECT(\"c\" & (VLOOKUP(Switch!$D$53,$F$2:$G$44,2,FALSE)+ROW()-2))=Switch!$D$53,INDIRECT(\"a\" & (VLOOKUP(Switch!$D$53,$F$2:$G$44,2,FALSE)+ROW()-2)),\"\")","v":{"$error":"#N/A"}},{"$f":"IF(INDIRECT(\"c\" & (VLOOKUP(Switch!$D$54,$F$2:$G$44,2,FALSE)+ROW()-2))=Switch!$D$54,INDIRECT(\"a\" & (VLOOKUP(Switch!$D$54,$F$2:$G$44,2,FALSE)+ROW()-2)),\"\")","v":{"$error":"#N/A"}},{"$f":"IF(INDIRECT(\"c\" & (VLOOKUP(Switch!$D$55,$F$2:$G$44,2,FALSE)+ROW()-2))=Switch!$D$55,INDIRECT(\"a\" & (VLOOKUP(Switch!$D$55,$F$2:$G$44,2,FALSE)+ROW()-2)),\"\")","v":{"$error":"#N/A"}},{"$f":"IF(INDIRECT(\"c\" & (VLOOKUP(Switch!$D$56,$F$2:$G$44,2,FALSE)+ROW()-2))=Switch!$D$56,INDIRECT(\"a\" & (VLOOKUP(Switch!$D$56,$F$2:$G$44,2,FALSE)+ROW()-2)),\"\")","v":{"$error":"#N/A"}},{"$f":"IF(INDIRECT(\"c\" & (VLOOKUP(Switch!$D$57,$F$2:$G$44,2,FALSE)+ROW()-2))=Switch!$D$57,INDIRECT(\"a\" & (VLOOKUP(Switch!$D$57,$F$2:$G$44,2,FALSE)+ROW()-2)),\"\")","v":{"$error":"#N/A"}},{"$f":"IF(INDIRECT(\"c\" & (VLOOKUP(Switch!$D$58,$F$2:$G$44,2,FALSE)+ROW()-2))=Switch!$D$58,INDIRECT(\"a\" & (VLOOKUP(Switch!$D$58,$F$2:$G$44,2,FALSE)+ROW()-2)),\"\")","v":{"$error":"#N/A"}},{"$f":"IF(INDIRECT(\"c\" & (VLOOKUP(Switch!$D$59,$F$2:$G$44,2,FALSE)+ROW()-2))=Switch!$D$59,INDIRECT(\"a\" & (VLOOKUP(Switch!$D$59,$F$2:$G$44,2,FALSE)+ROW()-2)),\"\")","v":{"$error":"#N/A"}},{"$f":"IF(INDIRECT(\"c\" & (VLOOKUP(Switch!$D$60,$F$2:$G$44,2,FALSE)+ROW()-2))=Switch!$D$60,INDIRECT(\"a\" & (VLOOKUP(Switch!$D$60,$F$2:$G$44,2,FALSE)+ROW()-2)),\"\")","v":{"$error":"#N/A"}},{"$f":"IF(INDIRECT(\"c\" & (VLOOKUP(Switch!$D$61,$F$2:$G$44,2,FALSE)+ROW()-2))=Switch!$D$61,INDIRECT(\"a\" & (VLOOKUP(Switch!$D$61,$F$2:$G$44,2,FALSE)+ROW()-2)),\"\")","v":{"$error":"#N/A"}},{"$f":"IF(INDIRECT(\"c\" & (VLOOKUP(Switch!$D$62,$F$2:$G$44,2,FALSE)+ROW()-2))=Switch!$D$62,INDIRECT(\"a\" & (VLOOKUP(Switch!$D$62,$F$2:$G$44,2,FALSE)+ROW()-2)),\"\")","v":{"$error":"#N/A"}},{"$f":"IF(INDIRECT(\"c\" & (VLOOKUP(Switch!$D$63,$F$2:$G$44,2,FALSE)+ROW()-2))=Switch!$D$63,INDIRECT(\"a\" & (VLOOKUP(Switch!$D$63,$F$2:$G$44,2,FALSE)+ROW()-2)),\"\")","v":{"$error":"#N/A"}},{"$f":"IF(INDIRECT(\"c\" & (VLOOKUP(Switch!$D$64,$F$2:$G$44,2,FALSE)+ROW()-2))=Switch!$D$64,INDIRECT(\"a\" & (VLOOKUP(Switch!$D$64,$F$2:$G$44,2,FALSE)+ROW()-2)),\"\")","v":{"$error":"#N/A"}},{"$f":"IF(INDIRECT(\"c\" & (VLOOKUP(Switch!$D$65,$F$2:$G$44,2,FALSE)+ROW()-2))=Switch!$D$65,INDIRECT(\"a\" & (VLOOKUP(Switch!$D$65,$F$2:$G$44,2,FALSE)+ROW()-2)),\"\")","v":{"$error":"#N/A"}},{"$f":"IF(INDIRECT(\"c\" & (VLOOKUP(Switch!$D$66,$F$2:$G$44,2,FALSE)+ROW()-2))=Switch!$D$66,INDIRECT(\"a\" & (VLOOKUP(Switch!$D$66,$F$2:$G$44,2,FALSE)+ROW()-2)),\"\")","v":{"$error":"#N/A"}}]
["Skyblue BCI Kimberlite Cautious FoF A","MBIK","Boutique Collective Investments (Pty) Ltd",{"$f":"ROW()","v":187},null,null,{"$f":"VLOOKUP(F187,$C$2:$D$637,2,FALSE)","v":{"$error":"#N/A"}},{"$f":"IF(INDIRECT(\"c\" & (VLOOKUP(Switch!$D$26,$F$2:$G$44,2,FALSE)+ROW()-2))=Switch!$D$26,INDIRECT(\"a\" & (VLOOKUP(Switch!$D$26,$F$2:$G$44,2,FALSE)+ROW()-2)),\"\")","v":{"$error":"#N/A"}},{"$f":"IF(INDIRECT(\"c\" & (VLOOKUP(Switch!$D$27,$F$2:$G$44,2,FALSE)+ROW()-2))=Switch!$D$27,INDIRECT(\"a\" & (VLOOKUP(Switch!$D$27,$F$2:$G$44,2,FALSE)+ROW()-2)),\"\")","v":{"$error":"#N/A"}},{"$f":"IF(INDIRECT(\"c\" & (VLOOKUP(Switch!$D$28,$F$2:$G$44,2,FALSE)+ROW()-2))=Switch!$D$28,INDIRECT(\"a\" & (VLOOKUP(Switch!$D$28,$F$2:$G$44,2,FALSE)+ROW()-2)),\"\")","v":{"$error":"#N/A"}},{"$f":"IF(INDIRECT(\"c\" & (VLOOKUP(Switch!$D$29,$F$2:$G$44,2,FALSE)+ROW()-2))=Switch!$D$29,INDIRECT(\"a\" & (VLOOKUP(Switch!$D$29,$F$2:$G$44,2,FALSE)+ROW()-2)),\"\")","v":{"$error":"#N/A"}},{"$f":"IF(INDIRECT(\"c\" & (VLOOKUP(Switch!$D$30,$F$2:$G$44,2,FALSE)+ROW()-2))=Switch!$D$30,INDIRECT(\"a\" & (VLOOKUP(Switch!$D$30,$F$2:$G$44,2,FALSE)+ROW()-2)),\"\")","v":{"$error":"#N/A"}},{"$f":"IF(INDIRECT(\"c\" & (VLOOKUP(Switch!$D$31,$F$2:$G$44,2,FALSE)+ROW()-2))=Switch!$D$31,INDIRECT(\"a\" & (VLOOKUP(Switch!$D$31,$F$2:$G$44,2,FALSE)+ROW()-2)),\"\")","v":{"$error":"#N/A"}},{"$f":"IF(INDIRECT(\"c\" & (VLOOKUP(Switch!$D$32,$F$2:$G$44,2,FALSE)+ROW()-2))=Switch!$D$32,INDIRECT(\"a\" & (VLOOKUP(Switch!$D$32,$F$2:$G$44,2,FALSE)+ROW()-2)),\"\")","v":{"$error":"#N/A"}},{"$f":"IF(INDIRECT(\"c\" & (VLOOKUP(Switch!$D$33,$F$2:$G$44,2,FALSE)+ROW()-2))=Switch!$D$33,INDIRECT(\"a\" & (VLOOKUP(Switch!$D$33,$F$2:$G$44,2,FALSE)+ROW()-2)),\"\")","v":{"$error":"#N/A"}},{"$f":"IF(INDIRECT(\"c\" & (VLOOKUP(Switch!$D$34,$F$2:$G$44,2,FALSE)+ROW()-2))=Switch!$D$34,INDIRECT(\"a\" & (VLOOKUP(Switch!$D$34,$F$2:$G$44,2,FALSE)+ROW()-2)),\"\")","v":{"$error":"#N/A"}},{"$f":"IF(INDIRECT(\"c\" & (VLOOKUP(Switch!$D$35,$F$2:$G$44,2,FALSE)+ROW()-2))=Switch!$D$35,INDIRECT(\"a\" & (VLOOKUP(Switch!$D$35,$F$2:$G$44,2,FALSE)+ROW()-2)),\"\")","v":{"$error":"#N/A"}},{"$f":"IF(INDIRECT(\"c\" & (VLOOKUP(Switch!$D$36,$F$2:$G$44,2,FALSE)+ROW()-2))=Switch!$D$36,INDIRECT(\"a\" & (VLOOKUP(Switch!$D$36,$F$2:$G$44,2,FALSE)+ROW()-2)),\"\")","v":{"$error":"#N/A"}},{"$f":"IF(INDIRECT(\"c\" & (VLOOKUP(Switch!$D$37,$F$2:$G$44,2,FALSE)+ROW()-2))=Switch!$D$37,INDIRECT(\"a\" & (VLOOKUP(Switch!$D$37,$F$2:$G$44,2,FALSE)+ROW()-2)),\"\")","v":{"$error":"#N/A"}},{"$f":"IF(INDIRECT(\"c\" & (VLOOKUP(Switch!$D$38,$F$2:$G$44,2,FALSE)+ROW()-2))=Switch!$D$38,INDIRECT(\"a\" & (VLOOKUP(Switch!$D$38,$F$2:$G$44,2,FALSE)+ROW()-2)),\"\")","v":{"$error":"#N/A"}},{"$f":"IF(INDIRECT(\"c\" & (VLOOKUP(Switch!$D$39,$F$2:$G$44,2,FALSE)+ROW()-2))=Switch!$D$39,INDIRECT(\"a\" & (VLOOKUP(Switch!$D$39,$F$2:$G$44,2,FALSE)+ROW()-2)),\"\")","v":{"$error":"#N/A"}},{"$f":"IF(INDIRECT(\"c\" & (VLOOKUP(Switch!$D$40,$F$2:$G$44,2,FALSE)+ROW()-2))=Switch!$D$40,INDIRECT(\"a\" & (VLOOKUP(Switch!$D$40,$F$2:$G$44,2,FALSE)+ROW()-2)),\"\")","v":{"$error":"#N/A"}},{"$f":"IF(INDIRECT(\"c\" & (VLOOKUP(Switch!$D$52,$F$2:$G$44,2,FALSE)+ROW()-2))=Switch!$D$52,INDIRECT(\"a\" & (VLOOKUP(Switch!$D$52,$F$2:$G$44,2,FALSE)+ROW()-2)),\"\")","v":{"$error":"#N/A"}},{"$f":"IF(INDIRECT(\"c\" & (VLOOKUP(Switch!$D$53,$F$2:$G$44,2,FALSE)+ROW()-2))=Switch!$D$53,INDIRECT(\"a\" & (VLOOKUP(Switch!$D$53,$F$2:$G$44,2,FALSE)+ROW()-2)),\"\")","v":{"$error":"#N/A"}},{"$f":"IF(INDIRECT(\"c\" & (VLOOKUP(Switch!$D$54,$F$2:$G$44,2,FALSE)+ROW()-2))=Switch!$D$54,INDIRECT(\"a\" & (VLOOKUP(Switch!$D$54,$F$2:$G$44,2,FALSE)+ROW()-2)),\"\")","v":{"$error":"#N/A"}},{"$f":"IF(INDIRECT(\"c\" & (VLOOKUP(Switch!$D$55,$F$2:$G$44,2,FALSE)+ROW()-2))=Switch!$D$55,INDIRECT(\"a\" & (VLOOKUP(Switch!$D$55,$F$2:$G$44,2,FALSE)+ROW()-2)),\"\")","v":{"$error":"#N/A"}},{"$f":"IF(INDIRECT(\"c\" & (VLOOKUP(Switch!$D$56,$F$2:$G$44,2,FALSE)+ROW()-2))=Switch!$D$56,INDIRECT(\"a\" & (VLOOKUP(Switch!$D$56,$F$2:$G$44,2,FALSE)+ROW()-2)),\"\")","v":{"$error":"#N/A"}},{"$f":"IF(INDIRECT(\"c\" & (VLOOKUP(Switch!$D$57,$F$2:$G$44,2,FALSE)+ROW()-2))=Switch!$D$57,INDIRECT(\"a\" & (VLOOKUP(Switch!$D$57,$F$2:$G$44,2,FALSE)+ROW()-2)),\"\")","v":{"$error":"#N/A"}},{"$f":"IF(INDIRECT(\"c\" & (VLOOKUP(Switch!$D$58,$F$2:$G$44,2,FALSE)+ROW()-2))=Switch!$D$58,INDIRECT(\"a\" & (VLOOKUP(Switch!$D$58,$F$2:$G$44,2,FALSE)+ROW()-2)),\"\")","v":{"$error":"#N/A"}},{"$f":"IF(INDIRECT(\"c\" & (VLOOKUP(Switch!$D$59,$F$2:$G$44,2,FALSE)+ROW()-2))=Switch!$D$59,INDIRECT(\"a\" & (VLOOKUP(Switch!$D$59,$F$2:$G$44,2,FALSE)+ROW()-2)),\"\")","v":{"$error":"#N/A"}},{"$f":"IF(INDIRECT(\"c\" & (VLOOKUP(Switch!$D$60,$F$2:$G$44,2,FALSE)+ROW()-2))=Switch!$D$60,INDIRECT(\"a\" & (VLOOKUP(Switch!$D$60,$F$2:$G$44,2,FALSE)+ROW()-2)),\"\")","v":{"$error":"#N/A"}},{"$f":"IF(INDIRECT(\"c\" & (VLOOKUP(Switch!$D$61,$F$2:$G$44,2,FALSE)+ROW()-2))=Switch!$D$61,INDIRECT(\"a\" & (VLOOKUP(Switch!$D$61,$F$2:$G$44,2,FALSE)+ROW()-2)),\"\")","v":{"$error":"#N/A"}},{"$f":"IF(INDIRECT(\"c\" & (VLOOKUP(Switch!$D$62,$F$2:$G$44,2,FALSE)+ROW()-2))=Switch!$D$62,INDIRECT(\"a\" & (VLOOKUP(Switch!$D$62,$F$2:$G$44,2,FALSE)+ROW()-2)),\"\")","v":{"$error":"#N/A"}},{"$f":"IF(INDIRECT(\"c\" & (VLOOKUP(Switch!$D$63,$F$2:$G$44,2,FALSE)+ROW()-2))=Switch!$D$63,INDIRECT(\"a\" & (VLOOKUP(Switch!$D$63,$F$2:$G$44,2,FALSE)+ROW()-2)),\"\")","v":{"$error":"#N/A"}},{"$f":"IF(INDIRECT(\"c\" & (VLOOKUP(Switch!$D$64,$F$2:$G$44,2,FALSE)+ROW()-2))=Switch!$D$64,INDIRECT(\"a\" & (VLOOKUP(Switch!$D$64,$F$2:$G$44,2,FALSE)+ROW()-2)),\"\")","v":{"$error":"#N/A"}},{"$f":"IF(INDIRECT(\"c\" & (VLOOKUP(Switch!$D$65,$F$2:$G$44,2,FALSE)+ROW()-2))=Switch!$D$65,INDIRECT(\"a\" & (VLOOKUP(Switch!$D$65,$F$2:$G$44,2,FALSE)+ROW()-2)),\"\")","v":{"$error":"#N/A"}},{"$f":"IF(INDIRECT(\"c\" & (VLOOKUP(Switch!$D$66,$F$2:$G$44,2,FALSE)+ROW()-2))=Switch!$D$66,INDIRECT(\"a\" & (VLOOKUP(Switch!$D$66,$F$2:$G$44,2,FALSE)+ROW()-2)),\"\")","v":{"$error":"#N/A"}}]
["Skyblue BCI Solar Flexible FoF A","MBIS","Boutique Collective Investments (Pty) Ltd",{"$f":"ROW()","v":188},null,null,{"$f":"VLOOKUP(F188,$C$2:$D$637,2,FALSE)","v":{"$error":"#N/A"}},{"$f":"IF(INDIRECT(\"c\" & (VLOOKUP(Switch!$D$26,$F$2:$G$44,2,FALSE)+ROW()-2))=Switch!$D$26,INDIRECT(\"a\" & (VLOOKUP(Switch!$D$26,$F$2:$G$44,2,FALSE)+ROW()-2)),\"\")","v":{"$error":"#N/A"}},{"$f":"IF(INDIRECT(\"c\" & (VLOOKUP(Switch!$D$27,$F$2:$G$44,2,FALSE)+ROW()-2))=Switch!$D$27,INDIRECT(\"a\" & (VLOOKUP(Switch!$D$27,$F$2:$G$44,2,FALSE)+ROW()-2)),\"\")","v":{"$error":"#N/A"}},{"$f":"IF(INDIRECT(\"c\" & (VLOOKUP(Switch!$D$28,$F$2:$G$44,2,FALSE)+ROW()-2))=Switch!$D$28,INDIRECT(\"a\" & (VLOOKUP(Switch!$D$28,$F$2:$G$44,2,FALSE)+ROW()-2)),\"\")","v":{"$error":"#N/A"}},{"$f":"IF(INDIRECT(\"c\" & (VLOOKUP(Switch!$D$29,$F$2:$G$44,2,FALSE)+ROW()-2))=Switch!$D$29,INDIRECT(\"a\" & (VLOOKUP(Switch!$D$29,$F$2:$G$44,2,FALSE)+ROW()-2)),\"\")","v":{"$error":"#N/A"}},{"$f":"IF(INDIRECT(\"c\" & (VLOOKUP(Switch!$D$30,$F$2:$G$44,2,FALSE)+ROW()-2))=Switch!$D$30,INDIRECT(\"a\" & (VLOOKUP(Switch!$D$30,$F$2:$G$44,2,FALSE)+ROW()-2)),\"\")","v":{"$error":"#N/A"}},{"$f":"IF(INDIRECT(\"c\" & (VLOOKUP(Switch!$D$31,$F$2:$G$44,2,FALSE)+ROW()-2))=Switch!$D$31,INDIRECT(\"a\" & (VLOOKUP(Switch!$D$31,$F$2:$G$44,2,FALSE)+ROW()-2)),\"\")","v":{"$error":"#N/A"}},{"$f":"IF(INDIRECT(\"c\" & (VLOOKUP(Switch!$D$32,$F$2:$G$44,2,FALSE)+ROW()-2))=Switch!$D$32,INDIRECT(\"a\" & (VLOOKUP(Switch!$D$32,$F$2:$G$44,2,FALSE)+ROW()-2)),\"\")","v":{"$error":"#N/A"}},{"$f":"IF(INDIRECT(\"c\" & (VLOOKUP(Switch!$D$33,$F$2:$G$44,2,FALSE)+ROW()-2))=Switch!$D$33,INDIRECT(\"a\" & (VLOOKUP(Switch!$D$33,$F$2:$G$44,2,FALSE)+ROW()-2)),\"\")","v":{"$error":"#N/A"}},{"$f":"IF(INDIRECT(\"c\" & (VLOOKUP(Switch!$D$34,$F$2:$G$44,2,FALSE)+ROW()-2))=Switch!$D$34,INDIRECT(\"a\" & (VLOOKUP(Switch!$D$34,$F$2:$G$44,2,FALSE)+ROW()-2)),\"\")","v":{"$error":"#N/A"}},{"$f":"IF(INDIRECT(\"c\" & (VLOOKUP(Switch!$D$35,$F$2:$G$44,2,FALSE)+ROW()-2))=Switch!$D$35,INDIRECT(\"a\" & (VLOOKUP(Switch!$D$35,$F$2:$G$44,2,FALSE)+ROW()-2)),\"\")","v":{"$error":"#N/A"}},{"$f":"IF(INDIRECT(\"c\" & (VLOOKUP(Switch!$D$36,$F$2:$G$44,2,FALSE)+ROW()-2))=Switch!$D$36,INDIRECT(\"a\" & (VLOOKUP(Switch!$D$36,$F$2:$G$44,2,FALSE)+ROW()-2)),\"\")","v":{"$error":"#N/A"}},{"$f":"IF(INDIRECT(\"c\" & (VLOOKUP(Switch!$D$37,$F$2:$G$44,2,FALSE)+ROW()-2))=Switch!$D$37,INDIRECT(\"a\" & (VLOOKUP(Switch!$D$37,$F$2:$G$44,2,FALSE)+ROW()-2)),\"\")","v":{"$error":"#N/A"}},{"$f":"IF(INDIRECT(\"c\" & (VLOOKUP(Switch!$D$38,$F$2:$G$44,2,FALSE)+ROW()-2))=Switch!$D$38,INDIRECT(\"a\" & (VLOOKUP(Switch!$D$38,$F$2:$G$44,2,FALSE)+ROW()-2)),\"\")","v":{"$error":"#N/A"}},{"$f":"IF(INDIRECT(\"c\" & (VLOOKUP(Switch!$D$39,$F$2:$G$44,2,FALSE)+ROW()-2))=Switch!$D$39,INDIRECT(\"a\" & (VLOOKUP(Switch!$D$39,$F$2:$G$44,2,FALSE)+ROW()-2)),\"\")","v":{"$error":"#N/A"}},{"$f":"IF(INDIRECT(\"c\" & (VLOOKUP(Switch!$D$40,$F$2:$G$44,2,FALSE)+ROW()-2))=Switch!$D$40,INDIRECT(\"a\" & (VLOOKUP(Switch!$D$40,$F$2:$G$44,2,FALSE)+ROW()-2)),\"\")","v":{"$error":"#N/A"}},{"$f":"IF(INDIRECT(\"c\" & (VLOOKUP(Switch!$D$52,$F$2:$G$44,2,FALSE)+ROW()-2))=Switch!$D$52,INDIRECT(\"a\" & (VLOOKUP(Switch!$D$52,$F$2:$G$44,2,FALSE)+ROW()-2)),\"\")","v":{"$error":"#N/A"}},{"$f":"IF(INDIRECT(\"c\" & (VLOOKUP(Switch!$D$53,$F$2:$G$44,2,FALSE)+ROW()-2))=Switch!$D$53,INDIRECT(\"a\" & (VLOOKUP(Switch!$D$53,$F$2:$G$44,2,FALSE)+ROW()-2)),\"\")","v":{"$error":"#N/A"}},{"$f":"IF(INDIRECT(\"c\" & (VLOOKUP(Switch!$D$54,$F$2:$G$44,2,FALSE)+ROW()-2))=Switch!$D$54,INDIRECT(\"a\" & (VLOOKUP(Switch!$D$54,$F$2:$G$44,2,FALSE)+ROW()-2)),\"\")","v":{"$error":"#N/A"}},{"$f":"IF(INDIRECT(\"c\" & (VLOOKUP(Switch!$D$55,$F$2:$G$44,2,FALSE)+ROW()-2))=Switch!$D$55,INDIRECT(\"a\" & (VLOOKUP(Switch!$D$55,$F$2:$G$44,2,FALSE)+ROW()-2)),\"\")","v":{"$error":"#N/A"}},{"$f":"IF(INDIRECT(\"c\" & (VLOOKUP(Switch!$D$56,$F$2:$G$44,2,FALSE)+ROW()-2))=Switch!$D$56,INDIRECT(\"a\" & (VLOOKUP(Switch!$D$56,$F$2:$G$44,2,FALSE)+ROW()-2)),\"\")","v":{"$error":"#N/A"}},{"$f":"IF(INDIRECT(\"c\" & (VLOOKUP(Switch!$D$57,$F$2:$G$44,2,FALSE)+ROW()-2))=Switch!$D$57,INDIRECT(\"a\" & (VLOOKUP(Switch!$D$57,$F$2:$G$44,2,FALSE)+ROW()-2)),\"\")","v":{"$error":"#N/A"}},{"$f":"IF(INDIRECT(\"c\" & (VLOOKUP(Switch!$D$58,$F$2:$G$44,2,FALSE)+ROW()-2))=Switch!$D$58,INDIRECT(\"a\" & (VLOOKUP(Switch!$D$58,$F$2:$G$44,2,FALSE)+ROW()-2)),\"\")","v":{"$error":"#N/A"}},{"$f":"IF(INDIRECT(\"c\" & (VLOOKUP(Switch!$D$59,$F$2:$G$44,2,FALSE)+ROW()-2))=Switch!$D$59,INDIRECT(\"a\" & (VLOOKUP(Switch!$D$59,$F$2:$G$44,2,FALSE)+ROW()-2)),\"\")","v":{"$error":"#N/A"}},{"$f":"IF(INDIRECT(\"c\" & (VLOOKUP(Switch!$D$60,$F$2:$G$44,2,FALSE)+ROW()-2))=Switch!$D$60,INDIRECT(\"a\" & (VLOOKUP(Switch!$D$60,$F$2:$G$44,2,FALSE)+ROW()-2)),\"\")","v":{"$error":"#N/A"}},{"$f":"IF(INDIRECT(\"c\" & (VLOOKUP(Switch!$D$61,$F$2:$G$44,2,FALSE)+ROW()-2))=Switch!$D$61,INDIRECT(\"a\" & (VLOOKUP(Switch!$D$61,$F$2:$G$44,2,FALSE)+ROW()-2)),\"\")","v":{"$error":"#N/A"}},{"$f":"IF(INDIRECT(\"c\" & (VLOOKUP(Switch!$D$62,$F$2:$G$44,2,FALSE)+ROW()-2))=Switch!$D$62,INDIRECT(\"a\" & (VLOOKUP(Switch!$D$62,$F$2:$G$44,2,FALSE)+ROW()-2)),\"\")","v":{"$error":"#N/A"}},{"$f":"IF(INDIRECT(\"c\" & (VLOOKUP(Switch!$D$63,$F$2:$G$44,2,FALSE)+ROW()-2))=Switch!$D$63,INDIRECT(\"a\" & (VLOOKUP(Switch!$D$63,$F$2:$G$44,2,FALSE)+ROW()-2)),\"\")","v":{"$error":"#N/A"}},{"$f":"IF(INDIRECT(\"c\" & (VLOOKUP(Switch!$D$64,$F$2:$G$44,2,FALSE)+ROW()-2))=Switch!$D$64,INDIRECT(\"a\" & (VLOOKUP(Switch!$D$64,$F$2:$G$44,2,FALSE)+ROW()-2)),\"\")","v":{"$error":"#N/A"}},{"$f":"IF(INDIRECT(\"c\" & (VLOOKUP(Switch!$D$65,$F$2:$G$44,2,FALSE)+ROW()-2))=Switch!$D$65,INDIRECT(\"a\" & (VLOOKUP(Switch!$D$65,$F$2:$G$44,2,FALSE)+ROW()-2)),\"\")","v":{"$error":"#N/A"}},{"$f":"IF(INDIRECT(\"c\" & (VLOOKUP(Switch!$D$66,$F$2:$G$44,2,FALSE)+ROW()-2))=Switch!$D$66,INDIRECT(\"a\" & (VLOOKUP(Switch!$D$66,$F$2:$G$44,2,FALSE)+ROW()-2)),\"\")","v":{"$error":"#N/A"}}]
["Tantalum BCI Strategic Income Fund A","TBIFA","Boutique Collective Investments (Pty) Ltd",{"$f":"ROW()","v":189},null,null,{"$f":"VLOOKUP(F189,$C$2:$D$637,2,FALSE)","v":{"$error":"#N/A"}},{"$f":"IF(INDIRECT(\"c\" & (VLOOKUP(Switch!$D$26,$F$2:$G$44,2,FALSE)+ROW()-2))=Switch!$D$26,INDIRECT(\"a\" & (VLOOKUP(Switch!$D$26,$F$2:$G$44,2,FALSE)+ROW()-2)),\"\")","v":{"$error":"#N/A"}},{"$f":"IF(INDIRECT(\"c\" & (VLOOKUP(Switch!$D$27,$F$2:$G$44,2,FALSE)+ROW()-2))=Switch!$D$27,INDIRECT(\"a\" & (VLOOKUP(Switch!$D$27,$F$2:$G$44,2,FALSE)+ROW()-2)),\"\")","v":{"$error":"#N/A"}},{"$f":"IF(INDIRECT(\"c\" & (VLOOKUP(Switch!$D$28,$F$2:$G$44,2,FALSE)+ROW()-2))=Switch!$D$28,INDIRECT(\"a\" & (VLOOKUP(Switch!$D$28,$F$2:$G$44,2,FALSE)+ROW()-2)),\"\")","v":{"$error":"#N/A"}},{"$f":"IF(INDIRECT(\"c\" & (VLOOKUP(Switch!$D$29,$F$2:$G$44,2,FALSE)+ROW()-2))=Switch!$D$29,INDIRECT(\"a\" & (VLOOKUP(Switch!$D$29,$F$2:$G$44,2,FALSE)+ROW()-2)),\"\")","v":{"$error":"#N/A"}},{"$f":"IF(INDIRECT(\"c\" & (VLOOKUP(Switch!$D$30,$F$2:$G$44,2,FALSE)+ROW()-2))=Switch!$D$30,INDIRECT(\"a\" & (VLOOKUP(Switch!$D$30,$F$2:$G$44,2,FALSE)+ROW()-2)),\"\")","v":{"$error":"#N/A"}},{"$f":"IF(INDIRECT(\"c\" & (VLOOKUP(Switch!$D$31,$F$2:$G$44,2,FALSE)+ROW()-2))=Switch!$D$31,INDIRECT(\"a\" & (VLOOKUP(Switch!$D$31,$F$2:$G$44,2,FALSE)+ROW()-2)),\"\")","v":{"$error":"#N/A"}},{"$f":"IF(INDIRECT(\"c\" & (VLOOKUP(Switch!$D$32,$F$2:$G$44,2,FALSE)+ROW()-2))=Switch!$D$32,INDIRECT(\"a\" & (VLOOKUP(Switch!$D$32,$F$2:$G$44,2,FALSE)+ROW()-2)),\"\")","v":{"$error":"#N/A"}},{"$f":"IF(INDIRECT(\"c\" & (VLOOKUP(Switch!$D$33,$F$2:$G$44,2,FALSE)+ROW()-2))=Switch!$D$33,INDIRECT(\"a\" & (VLOOKUP(Switch!$D$33,$F$2:$G$44,2,FALSE)+ROW()-2)),\"\")","v":{"$error":"#N/A"}},{"$f":"IF(INDIRECT(\"c\" & (VLOOKUP(Switch!$D$34,$F$2:$G$44,2,FALSE)+ROW()-2))=Switch!$D$34,INDIRECT(\"a\" & (VLOOKUP(Switch!$D$34,$F$2:$G$44,2,FALSE)+ROW()-2)),\"\")","v":{"$error":"#N/A"}},{"$f":"IF(INDIRECT(\"c\" & (VLOOKUP(Switch!$D$35,$F$2:$G$44,2,FALSE)+ROW()-2))=Switch!$D$35,INDIRECT(\"a\" & (VLOOKUP(Switch!$D$35,$F$2:$G$44,2,FALSE)+ROW()-2)),\"\")","v":{"$error":"#N/A"}},{"$f":"IF(INDIRECT(\"c\" & (VLOOKUP(Switch!$D$36,$F$2:$G$44,2,FALSE)+ROW()-2))=Switch!$D$36,INDIRECT(\"a\" & (VLOOKUP(Switch!$D$36,$F$2:$G$44,2,FALSE)+ROW()-2)),\"\")","v":{"$error":"#N/A"}},{"$f":"IF(INDIRECT(\"c\" & (VLOOKUP(Switch!$D$37,$F$2:$G$44,2,FALSE)+ROW()-2))=Switch!$D$37,INDIRECT(\"a\" & (VLOOKUP(Switch!$D$37,$F$2:$G$44,2,FALSE)+ROW()-2)),\"\")","v":{"$error":"#N/A"}},{"$f":"IF(INDIRECT(\"c\" & (VLOOKUP(Switch!$D$38,$F$2:$G$44,2,FALSE)+ROW()-2))=Switch!$D$38,INDIRECT(\"a\" & (VLOOKUP(Switch!$D$38,$F$2:$G$44,2,FALSE)+ROW()-2)),\"\")","v":{"$error":"#N/A"}},{"$f":"IF(INDIRECT(\"c\" & (VLOOKUP(Switch!$D$39,$F$2:$G$44,2,FALSE)+ROW()-2))=Switch!$D$39,INDIRECT(\"a\" & (VLOOKUP(Switch!$D$39,$F$2:$G$44,2,FALSE)+ROW()-2)),\"\")","v":{"$error":"#N/A"}},{"$f":"IF(INDIRECT(\"c\" & (VLOOKUP(Switch!$D$40,$F$2:$G$44,2,FALSE)+ROW()-2))=Switch!$D$40,INDIRECT(\"a\" & (VLOOKUP(Switch!$D$40,$F$2:$G$44,2,FALSE)+ROW()-2)),\"\")","v":{"$error":"#N/A"}},{"$f":"IF(INDIRECT(\"c\" & (VLOOKUP(Switch!$D$52,$F$2:$G$44,2,FALSE)+ROW()-2))=Switch!$D$52,INDIRECT(\"a\" & (VLOOKUP(Switch!$D$52,$F$2:$G$44,2,FALSE)+ROW()-2)),\"\")","v":{"$error":"#N/A"}},{"$f":"IF(INDIRECT(\"c\" & (VLOOKUP(Switch!$D$53,$F$2:$G$44,2,FALSE)+ROW()-2))=Switch!$D$53,INDIRECT(\"a\" & (VLOOKUP(Switch!$D$53,$F$2:$G$44,2,FALSE)+ROW()-2)),\"\")","v":{"$error":"#N/A"}},{"$f":"IF(INDIRECT(\"c\" & (VLOOKUP(Switch!$D$54,$F$2:$G$44,2,FALSE)+ROW()-2))=Switch!$D$54,INDIRECT(\"a\" & (VLOOKUP(Switch!$D$54,$F$2:$G$44,2,FALSE)+ROW()-2)),\"\")","v":{"$error":"#N/A"}},{"$f":"IF(INDIRECT(\"c\" & (VLOOKUP(Switch!$D$55,$F$2:$G$44,2,FALSE)+ROW()-2))=Switch!$D$55,INDIRECT(\"a\" & (VLOOKUP(Switch!$D$55,$F$2:$G$44,2,FALSE)+ROW()-2)),\"\")","v":{"$error":"#N/A"}},{"$f":"IF(INDIRECT(\"c\" & (VLOOKUP(Switch!$D$56,$F$2:$G$44,2,FALSE)+ROW()-2))=Switch!$D$56,INDIRECT(\"a\" & (VLOOKUP(Switch!$D$56,$F$2:$G$44,2,FALSE)+ROW()-2)),\"\")","v":{"$error":"#N/A"}},{"$f":"IF(INDIRECT(\"c\" & (VLOOKUP(Switch!$D$57,$F$2:$G$44,2,FALSE)+ROW()-2))=Switch!$D$57,INDIRECT(\"a\" & (VLOOKUP(Switch!$D$57,$F$2:$G$44,2,FALSE)+ROW()-2)),\"\")","v":{"$error":"#N/A"}},{"$f":"IF(INDIRECT(\"c\" & (VLOOKUP(Switch!$D$58,$F$2:$G$44,2,FALSE)+ROW()-2))=Switch!$D$58,INDIRECT(\"a\" & (VLOOKUP(Switch!$D$58,$F$2:$G$44,2,FALSE)+ROW()-2)),\"\")","v":{"$error":"#N/A"}},{"$f":"IF(INDIRECT(\"c\" & (VLOOKUP(Switch!$D$59,$F$2:$G$44,2,FALSE)+ROW()-2))=Switch!$D$59,INDIRECT(\"a\" & (VLOOKUP(Switch!$D$59,$F$2:$G$44,2,FALSE)+ROW()-2)),\"\")","v":{"$error":"#N/A"}},{"$f":"IF(INDIRECT(\"c\" & (VLOOKUP(Switch!$D$60,$F$2:$G$44,2,FALSE)+ROW()-2))=Switch!$D$60,INDIRECT(\"a\" & (VLOOKUP(Switch!$D$60,$F$2:$G$44,2,FALSE)+ROW()-2)),\"\")","v":{"$error":"#N/A"}},{"$f":"IF(INDIRECT(\"c\" & (VLOOKUP(Switch!$D$61,$F$2:$G$44,2,FALSE)+ROW()-2))=Switch!$D$61,INDIRECT(\"a\" & (VLOOKUP(Switch!$D$61,$F$2:$G$44,2,FALSE)+ROW()-2)),\"\")","v":{"$error":"#N/A"}},{"$f":"IF(INDIRECT(\"c\" & (VLOOKUP(Switch!$D$62,$F$2:$G$44,2,FALSE)+ROW()-2))=Switch!$D$62,INDIRECT(\"a\" & (VLOOKUP(Switch!$D$62,$F$2:$G$44,2,FALSE)+ROW()-2)),\"\")","v":{"$error":"#N/A"}},{"$f":"IF(INDIRECT(\"c\" & (VLOOKUP(Switch!$D$63,$F$2:$G$44,2,FALSE)+ROW()-2))=Switch!$D$63,INDIRECT(\"a\" & (VLOOKUP(Switch!$D$63,$F$2:$G$44,2,FALSE)+ROW()-2)),\"\")","v":{"$error":"#N/A"}},{"$f":"IF(INDIRECT(\"c\" & (VLOOKUP(Switch!$D$64,$F$2:$G$44,2,FALSE)+ROW()-2))=Switch!$D$64,INDIRECT(\"a\" & (VLOOKUP(Switch!$D$64,$F$2:$G$44,2,FALSE)+ROW()-2)),\"\")","v":{"$error":"#N/A"}},{"$f":"IF(INDIRECT(\"c\" & (VLOOKUP(Switch!$D$65,$F$2:$G$44,2,FALSE)+ROW()-2))=Switch!$D$65,INDIRECT(\"a\" & (VLOOKUP(Switch!$D$65,$F$2:$G$44,2,FALSE)+ROW()-2)),\"\")","v":{"$error":"#N/A"}},{"$f":"IF(INDIRECT(\"c\" & (VLOOKUP(Switch!$D$66,$F$2:$G$44,2,FALSE)+ROW()-2))=Switch!$D$66,INDIRECT(\"a\" & (VLOOKUP(Switch!$D$66,$F$2:$G$44,2,FALSE)+ROW()-2)),\"\")","v":{"$error":"#N/A"}}]
["Verso BCI Income Planner FoF A","MIIP","Boutique Collective Investments (Pty) Ltd",{"$f":"ROW()","v":190},null,null,{"$f":"VLOOKUP(F190,$C$2:$D$637,2,FALSE)","v":{"$error":"#N/A"}},{"$f":"IF(INDIRECT(\"c\" & (VLOOKUP(Switch!$D$26,$F$2:$G$44,2,FALSE)+ROW()-2))=Switch!$D$26,INDIRECT(\"a\" & (VLOOKUP(Switch!$D$26,$F$2:$G$44,2,FALSE)+ROW()-2)),\"\")","v":{"$error":"#N/A"}},{"$f":"IF(INDIRECT(\"c\" & (VLOOKUP(Switch!$D$27,$F$2:$G$44,2,FALSE)+ROW()-2))=Switch!$D$27,INDIRECT(\"a\" & (VLOOKUP(Switch!$D$27,$F$2:$G$44,2,FALSE)+ROW()-2)),\"\")","v":{"$error":"#N/A"}},{"$f":"IF(INDIRECT(\"c\" & (VLOOKUP(Switch!$D$28,$F$2:$G$44,2,FALSE)+ROW()-2))=Switch!$D$28,INDIRECT(\"a\" & (VLOOKUP(Switch!$D$28,$F$2:$G$44,2,FALSE)+ROW()-2)),\"\")","v":{"$error":"#N/A"}},{"$f":"IF(INDIRECT(\"c\" & (VLOOKUP(Switch!$D$29,$F$2:$G$44,2,FALSE)+ROW()-2))=Switch!$D$29,INDIRECT(\"a\" & (VLOOKUP(Switch!$D$29,$F$2:$G$44,2,FALSE)+ROW()-2)),\"\")","v":{"$error":"#N/A"}},{"$f":"IF(INDIRECT(\"c\" & (VLOOKUP(Switch!$D$30,$F$2:$G$44,2,FALSE)+ROW()-2))=Switch!$D$30,INDIRECT(\"a\" & (VLOOKUP(Switch!$D$30,$F$2:$G$44,2,FALSE)+ROW()-2)),\"\")","v":{"$error":"#N/A"}},{"$f":"IF(INDIRECT(\"c\" & (VLOOKUP(Switch!$D$31,$F$2:$G$44,2,FALSE)+ROW()-2))=Switch!$D$31,INDIRECT(\"a\" & (VLOOKUP(Switch!$D$31,$F$2:$G$44,2,FALSE)+ROW()-2)),\"\")","v":{"$error":"#N/A"}},{"$f":"IF(INDIRECT(\"c\" & (VLOOKUP(Switch!$D$32,$F$2:$G$44,2,FALSE)+ROW()-2))=Switch!$D$32,INDIRECT(\"a\" & (VLOOKUP(Switch!$D$32,$F$2:$G$44,2,FALSE)+ROW()-2)),\"\")","v":{"$error":"#N/A"}},{"$f":"IF(INDIRECT(\"c\" & (VLOOKUP(Switch!$D$33,$F$2:$G$44,2,FALSE)+ROW()-2))=Switch!$D$33,INDIRECT(\"a\" & (VLOOKUP(Switch!$D$33,$F$2:$G$44,2,FALSE)+ROW()-2)),\"\")","v":{"$error":"#N/A"}},{"$f":"IF(INDIRECT(\"c\" & (VLOOKUP(Switch!$D$34,$F$2:$G$44,2,FALSE)+ROW()-2))=Switch!$D$34,INDIRECT(\"a\" & (VLOOKUP(Switch!$D$34,$F$2:$G$44,2,FALSE)+ROW()-2)),\"\")","v":{"$error":"#N/A"}},{"$f":"IF(INDIRECT(\"c\" & (VLOOKUP(Switch!$D$35,$F$2:$G$44,2,FALSE)+ROW()-2))=Switch!$D$35,INDIRECT(\"a\" & (VLOOKUP(Switch!$D$35,$F$2:$G$44,2,FALSE)+ROW()-2)),\"\")","v":{"$error":"#N/A"}},{"$f":"IF(INDIRECT(\"c\" & (VLOOKUP(Switch!$D$36,$F$2:$G$44,2,FALSE)+ROW()-2))=Switch!$D$36,INDIRECT(\"a\" & (VLOOKUP(Switch!$D$36,$F$2:$G$44,2,FALSE)+ROW()-2)),\"\")","v":{"$error":"#N/A"}},{"$f":"IF(INDIRECT(\"c\" & (VLOOKUP(Switch!$D$37,$F$2:$G$44,2,FALSE)+ROW()-2))=Switch!$D$37,INDIRECT(\"a\" & (VLOOKUP(Switch!$D$37,$F$2:$G$44,2,FALSE)+ROW()-2)),\"\")","v":{"$error":"#N/A"}},{"$f":"IF(INDIRECT(\"c\" & (VLOOKUP(Switch!$D$38,$F$2:$G$44,2,FALSE)+ROW()-2))=Switch!$D$38,INDIRECT(\"a\" & (VLOOKUP(Switch!$D$38,$F$2:$G$44,2,FALSE)+ROW()-2)),\"\")","v":{"$error":"#N/A"}},{"$f":"IF(INDIRECT(\"c\" & (VLOOKUP(Switch!$D$39,$F$2:$G$44,2,FALSE)+ROW()-2))=Switch!$D$39,INDIRECT(\"a\" & (VLOOKUP(Switch!$D$39,$F$2:$G$44,2,FALSE)+ROW()-2)),\"\")","v":{"$error":"#N/A"}},{"$f":"IF(INDIRECT(\"c\" & (VLOOKUP(Switch!$D$40,$F$2:$G$44,2,FALSE)+ROW()-2))=Switch!$D$40,INDIRECT(\"a\" & (VLOOKUP(Switch!$D$40,$F$2:$G$44,2,FALSE)+ROW()-2)),\"\")","v":{"$error":"#N/A"}},{"$f":"IF(INDIRECT(\"c\" & (VLOOKUP(Switch!$D$52,$F$2:$G$44,2,FALSE)+ROW()-2))=Switch!$D$52,INDIRECT(\"a\" & (VLOOKUP(Switch!$D$52,$F$2:$G$44,2,FALSE)+ROW()-2)),\"\")","v":{"$error":"#N/A"}},{"$f":"IF(INDIRECT(\"c\" & (VLOOKUP(Switch!$D$53,$F$2:$G$44,2,FALSE)+ROW()-2))=Switch!$D$53,INDIRECT(\"a\" & (VLOOKUP(Switch!$D$53,$F$2:$G$44,2,FALSE)+ROW()-2)),\"\")","v":{"$error":"#N/A"}},{"$f":"IF(INDIRECT(\"c\" & (VLOOKUP(Switch!$D$54,$F$2:$G$44,2,FALSE)+ROW()-2))=Switch!$D$54,INDIRECT(\"a\" & (VLOOKUP(Switch!$D$54,$F$2:$G$44,2,FALSE)+ROW()-2)),\"\")","v":{"$error":"#N/A"}},{"$f":"IF(INDIRECT(\"c\" & (VLOOKUP(Switch!$D$55,$F$2:$G$44,2,FALSE)+ROW()-2))=Switch!$D$55,INDIRECT(\"a\" & (VLOOKUP(Switch!$D$55,$F$2:$G$44,2,FALSE)+ROW()-2)),\"\")","v":{"$error":"#N/A"}},{"$f":"IF(INDIRECT(\"c\" & (VLOOKUP(Switch!$D$56,$F$2:$G$44,2,FALSE)+ROW()-2))=Switch!$D$56,INDIRECT(\"a\" & (VLOOKUP(Switch!$D$56,$F$2:$G$44,2,FALSE)+ROW()-2)),\"\")","v":{"$error":"#N/A"}},{"$f":"IF(INDIRECT(\"c\" & (VLOOKUP(Switch!$D$57,$F$2:$G$44,2,FALSE)+ROW()-2))=Switch!$D$57,INDIRECT(\"a\" & (VLOOKUP(Switch!$D$57,$F$2:$G$44,2,FALSE)+ROW()-2)),\"\")","v":{"$error":"#N/A"}},{"$f":"IF(INDIRECT(\"c\" & (VLOOKUP(Switch!$D$58,$F$2:$G$44,2,FALSE)+ROW()-2))=Switch!$D$58,INDIRECT(\"a\" & (VLOOKUP(Switch!$D$58,$F$2:$G$44,2,FALSE)+ROW()-2)),\"\")","v":{"$error":"#N/A"}},{"$f":"IF(INDIRECT(\"c\" & (VLOOKUP(Switch!$D$59,$F$2:$G$44,2,FALSE)+ROW()-2))=Switch!$D$59,INDIRECT(\"a\" & (VLOOKUP(Switch!$D$59,$F$2:$G$44,2,FALSE)+ROW()-2)),\"\")","v":{"$error":"#N/A"}},{"$f":"IF(INDIRECT(\"c\" & (VLOOKUP(Switch!$D$60,$F$2:$G$44,2,FALSE)+ROW()-2))=Switch!$D$60,INDIRECT(\"a\" & (VLOOKUP(Switch!$D$60,$F$2:$G$44,2,FALSE)+ROW()-2)),\"\")","v":{"$error":"#N/A"}},{"$f":"IF(INDIRECT(\"c\" & (VLOOKUP(Switch!$D$61,$F$2:$G$44,2,FALSE)+ROW()-2))=Switch!$D$61,INDIRECT(\"a\" & (VLOOKUP(Switch!$D$61,$F$2:$G$44,2,FALSE)+ROW()-2)),\"\")","v":{"$error":"#N/A"}},{"$f":"IF(INDIRECT(\"c\" & (VLOOKUP(Switch!$D$62,$F$2:$G$44,2,FALSE)+ROW()-2))=Switch!$D$62,INDIRECT(\"a\" & (VLOOKUP(Switch!$D$62,$F$2:$G$44,2,FALSE)+ROW()-2)),\"\")","v":{"$error":"#N/A"}},{"$f":"IF(INDIRECT(\"c\" & (VLOOKUP(Switch!$D$63,$F$2:$G$44,2,FALSE)+ROW()-2))=Switch!$D$63,INDIRECT(\"a\" & (VLOOKUP(Switch!$D$63,$F$2:$G$44,2,FALSE)+ROW()-2)),\"\")","v":{"$error":"#N/A"}},{"$f":"IF(INDIRECT(\"c\" & (VLOOKUP(Switch!$D$64,$F$2:$G$44,2,FALSE)+ROW()-2))=Switch!$D$64,INDIRECT(\"a\" & (VLOOKUP(Switch!$D$64,$F$2:$G$44,2,FALSE)+ROW()-2)),\"\")","v":{"$error":"#N/A"}},{"$f":"IF(INDIRECT(\"c\" & (VLOOKUP(Switch!$D$65,$F$2:$G$44,2,FALSE)+ROW()-2))=Switch!$D$65,INDIRECT(\"a\" & (VLOOKUP(Switch!$D$65,$F$2:$G$44,2,FALSE)+ROW()-2)),\"\")","v":{"$error":"#N/A"}},{"$f":"IF(INDIRECT(\"c\" & (VLOOKUP(Switch!$D$66,$F$2:$G$44,2,FALSE)+ROW()-2))=Switch!$D$66,INDIRECT(\"a\" & (VLOOKUP(Switch!$D$66,$F$2:$G$44,2,FALSE)+ROW()-2)),\"\")","v":{"$error":"#N/A"}}]
["Verso BCI Secure Growth FoF A","MISG","Boutique Collective Investments (Pty) Ltd",{"$f":"ROW()","v":191},null,null,{"$f":"VLOOKUP(F191,$C$2:$D$637,2,FALSE)","v":{"$error":"#N/A"}},{"$f":"IF(INDIRECT(\"c\" & (VLOOKUP(Switch!$D$26,$F$2:$G$44,2,FALSE)+ROW()-2))=Switch!$D$26,INDIRECT(\"a\" & (VLOOKUP(Switch!$D$26,$F$2:$G$44,2,FALSE)+ROW()-2)),\"\")","v":{"$error":"#N/A"}},{"$f":"IF(INDIRECT(\"c\" & (VLOOKUP(Switch!$D$27,$F$2:$G$44,2,FALSE)+ROW()-2))=Switch!$D$27,INDIRECT(\"a\" & (VLOOKUP(Switch!$D$27,$F$2:$G$44,2,FALSE)+ROW()-2)),\"\")","v":{"$error":"#N/A"}},{"$f":"IF(INDIRECT(\"c\" & (VLOOKUP(Switch!$D$28,$F$2:$G$44,2,FALSE)+ROW()-2))=Switch!$D$28,INDIRECT(\"a\" & (VLOOKUP(Switch!$D$28,$F$2:$G$44,2,FALSE)+ROW()-2)),\"\")","v":{"$error":"#N/A"}},{"$f":"IF(INDIRECT(\"c\" & (VLOOKUP(Switch!$D$29,$F$2:$G$44,2,FALSE)+ROW()-2))=Switch!$D$29,INDIRECT(\"a\" & (VLOOKUP(Switch!$D$29,$F$2:$G$44,2,FALSE)+ROW()-2)),\"\")","v":{"$error":"#N/A"}},{"$f":"IF(INDIRECT(\"c\" & (VLOOKUP(Switch!$D$30,$F$2:$G$44,2,FALSE)+ROW()-2))=Switch!$D$30,INDIRECT(\"a\" & (VLOOKUP(Switch!$D$30,$F$2:$G$44,2,FALSE)+ROW()-2)),\"\")","v":{"$error":"#N/A"}},{"$f":"IF(INDIRECT(\"c\" & (VLOOKUP(Switch!$D$31,$F$2:$G$44,2,FALSE)+ROW()-2))=Switch!$D$31,INDIRECT(\"a\" & (VLOOKUP(Switch!$D$31,$F$2:$G$44,2,FALSE)+ROW()-2)),\"\")","v":{"$error":"#N/A"}},{"$f":"IF(INDIRECT(\"c\" & (VLOOKUP(Switch!$D$32,$F$2:$G$44,2,FALSE)+ROW()-2))=Switch!$D$32,INDIRECT(\"a\" & (VLOOKUP(Switch!$D$32,$F$2:$G$44,2,FALSE)+ROW()-2)),\"\")","v":{"$error":"#N/A"}},{"$f":"IF(INDIRECT(\"c\" & (VLOOKUP(Switch!$D$33,$F$2:$G$44,2,FALSE)+ROW()-2))=Switch!$D$33,INDIRECT(\"a\" & (VLOOKUP(Switch!$D$33,$F$2:$G$44,2,FALSE)+ROW()-2)),\"\")","v":{"$error":"#N/A"}},{"$f":"IF(INDIRECT(\"c\" & (VLOOKUP(Switch!$D$34,$F$2:$G$44,2,FALSE)+ROW()-2))=Switch!$D$34,INDIRECT(\"a\" & (VLOOKUP(Switch!$D$34,$F$2:$G$44,2,FALSE)+ROW()-2)),\"\")","v":{"$error":"#N/A"}},{"$f":"IF(INDIRECT(\"c\" & (VLOOKUP(Switch!$D$35,$F$2:$G$44,2,FALSE)+ROW()-2))=Switch!$D$35,INDIRECT(\"a\" & (VLOOKUP(Switch!$D$35,$F$2:$G$44,2,FALSE)+ROW()-2)),\"\")","v":{"$error":"#N/A"}},{"$f":"IF(INDIRECT(\"c\" & (VLOOKUP(Switch!$D$36,$F$2:$G$44,2,FALSE)+ROW()-2))=Switch!$D$36,INDIRECT(\"a\" & (VLOOKUP(Switch!$D$36,$F$2:$G$44,2,FALSE)+ROW()-2)),\"\")","v":{"$error":"#N/A"}},{"$f":"IF(INDIRECT(\"c\" & (VLOOKUP(Switch!$D$37,$F$2:$G$44,2,FALSE)+ROW()-2))=Switch!$D$37,INDIRECT(\"a\" & (VLOOKUP(Switch!$D$37,$F$2:$G$44,2,FALSE)+ROW()-2)),\"\")","v":{"$error":"#N/A"}},{"$f":"IF(INDIRECT(\"c\" & (VLOOKUP(Switch!$D$38,$F$2:$G$44,2,FALSE)+ROW()-2))=Switch!$D$38,INDIRECT(\"a\" & (VLOOKUP(Switch!$D$38,$F$2:$G$44,2,FALSE)+ROW()-2)),\"\")","v":{"$error":"#N/A"}},{"$f":"IF(INDIRECT(\"c\" & (VLOOKUP(Switch!$D$39,$F$2:$G$44,2,FALSE)+ROW()-2))=Switch!$D$39,INDIRECT(\"a\" & (VLOOKUP(Switch!$D$39,$F$2:$G$44,2,FALSE)+ROW()-2)),\"\")","v":{"$error":"#N/A"}},{"$f":"IF(INDIRECT(\"c\" & (VLOOKUP(Switch!$D$40,$F$2:$G$44,2,FALSE)+ROW()-2))=Switch!$D$40,INDIRECT(\"a\" & (VLOOKUP(Switch!$D$40,$F$2:$G$44,2,FALSE)+ROW()-2)),\"\")","v":{"$error":"#N/A"}},{"$f":"IF(INDIRECT(\"c\" & (VLOOKUP(Switch!$D$52,$F$2:$G$44,2,FALSE)+ROW()-2))=Switch!$D$52,INDIRECT(\"a\" & (VLOOKUP(Switch!$D$52,$F$2:$G$44,2,FALSE)+ROW()-2)),\"\")","v":{"$error":"#N/A"}},{"$f":"IF(INDIRECT(\"c\" & (VLOOKUP(Switch!$D$53,$F$2:$G$44,2,FALSE)+ROW()-2))=Switch!$D$53,INDIRECT(\"a\" & (VLOOKUP(Switch!$D$53,$F$2:$G$44,2,FALSE)+ROW()-2)),\"\")","v":{"$error":"#N/A"}},{"$f":"IF(INDIRECT(\"c\" & (VLOOKUP(Switch!$D$54,$F$2:$G$44,2,FALSE)+ROW()-2))=Switch!$D$54,INDIRECT(\"a\" & (VLOOKUP(Switch!$D$54,$F$2:$G$44,2,FALSE)+ROW()-2)),\"\")","v":{"$error":"#N/A"}},{"$f":"IF(INDIRECT(\"c\" & (VLOOKUP(Switch!$D$55,$F$2:$G$44,2,FALSE)+ROW()-2))=Switch!$D$55,INDIRECT(\"a\" & (VLOOKUP(Switch!$D$55,$F$2:$G$44,2,FALSE)+ROW()-2)),\"\")","v":{"$error":"#N/A"}},{"$f":"IF(INDIRECT(\"c\" & (VLOOKUP(Switch!$D$56,$F$2:$G$44,2,FALSE)+ROW()-2))=Switch!$D$56,INDIRECT(\"a\" & (VLOOKUP(Switch!$D$56,$F$2:$G$44,2,FALSE)+ROW()-2)),\"\")","v":{"$error":"#N/A"}},{"$f":"IF(INDIRECT(\"c\" & (VLOOKUP(Switch!$D$57,$F$2:$G$44,2,FALSE)+ROW()-2))=Switch!$D$57,INDIRECT(\"a\" & (VLOOKUP(Switch!$D$57,$F$2:$G$44,2,FALSE)+ROW()-2)),\"\")","v":{"$error":"#N/A"}},{"$f":"IF(INDIRECT(\"c\" & (VLOOKUP(Switch!$D$58,$F$2:$G$44,2,FALSE)+ROW()-2))=Switch!$D$58,INDIRECT(\"a\" & (VLOOKUP(Switch!$D$58,$F$2:$G$44,2,FALSE)+ROW()-2)),\"\")","v":{"$error":"#N/A"}},{"$f":"IF(INDIRECT(\"c\" & (VLOOKUP(Switch!$D$59,$F$2:$G$44,2,FALSE)+ROW()-2))=Switch!$D$59,INDIRECT(\"a\" & (VLOOKUP(Switch!$D$59,$F$2:$G$44,2,FALSE)+ROW()-2)),\"\")","v":{"$error":"#N/A"}},{"$f":"IF(INDIRECT(\"c\" & (VLOOKUP(Switch!$D$60,$F$2:$G$44,2,FALSE)+ROW()-2))=Switch!$D$60,INDIRECT(\"a\" & (VLOOKUP(Switch!$D$60,$F$2:$G$44,2,FALSE)+ROW()-2)),\"\")","v":{"$error":"#N/A"}},{"$f":"IF(INDIRECT(\"c\" & (VLOOKUP(Switch!$D$61,$F$2:$G$44,2,FALSE)+ROW()-2))=Switch!$D$61,INDIRECT(\"a\" & (VLOOKUP(Switch!$D$61,$F$2:$G$44,2,FALSE)+ROW()-2)),\"\")","v":{"$error":"#N/A"}},{"$f":"IF(INDIRECT(\"c\" & (VLOOKUP(Switch!$D$62,$F$2:$G$44,2,FALSE)+ROW()-2))=Switch!$D$62,INDIRECT(\"a\" & (VLOOKUP(Switch!$D$62,$F$2:$G$44,2,FALSE)+ROW()-2)),\"\")","v":{"$error":"#N/A"}},{"$f":"IF(INDIRECT(\"c\" & (VLOOKUP(Switch!$D$63,$F$2:$G$44,2,FALSE)+ROW()-2))=Switch!$D$63,INDIRECT(\"a\" & (VLOOKUP(Switch!$D$63,$F$2:$G$44,2,FALSE)+ROW()-2)),\"\")","v":{"$error":"#N/A"}},{"$f":"IF(INDIRECT(\"c\" & (VLOOKUP(Switch!$D$64,$F$2:$G$44,2,FALSE)+ROW()-2))=Switch!$D$64,INDIRECT(\"a\" & (VLOOKUP(Switch!$D$64,$F$2:$G$44,2,FALSE)+ROW()-2)),\"\")","v":{"$error":"#N/A"}},{"$f":"IF(INDIRECT(\"c\" & (VLOOKUP(Switch!$D$65,$F$2:$G$44,2,FALSE)+ROW()-2))=Switch!$D$65,INDIRECT(\"a\" & (VLOOKUP(Switch!$D$65,$F$2:$G$44,2,FALSE)+ROW()-2)),\"\")","v":{"$error":"#N/A"}},{"$f":"IF(INDIRECT(\"c\" & (VLOOKUP(Switch!$D$66,$F$2:$G$44,2,FALSE)+ROW()-2))=Switch!$D$66,INDIRECT(\"a\" & (VLOOKUP(Switch!$D$66,$F$2:$G$44,2,FALSE)+ROW()-2)),\"\")","v":{"$error":"#N/A"}}]
["Vesro BCI Global Equity FoF A","MVLI","Boutique Collective Investments (Pty) Ltd",{"$f":"ROW()","v":192},null,null,{"$f":"VLOOKUP(F192,$C$2:$D$637,2,FALSE)","v":{"$error":"#N/A"}},{"$f":"IF(INDIRECT(\"c\" & (VLOOKUP(Switch!$D$26,$F$2:$G$44,2,FALSE)+ROW()-2))=Switch!$D$26,INDIRECT(\"a\" & (VLOOKUP(Switch!$D$26,$F$2:$G$44,2,FALSE)+ROW()-2)),\"\")","v":{"$error":"#N/A"}},{"$f":"IF(INDIRECT(\"c\" & (VLOOKUP(Switch!$D$27,$F$2:$G$44,2,FALSE)+ROW()-2))=Switch!$D$27,INDIRECT(\"a\" & (VLOOKUP(Switch!$D$27,$F$2:$G$44,2,FALSE)+ROW()-2)),\"\")","v":{"$error":"#N/A"}},{"$f":"IF(INDIRECT(\"c\" & (VLOOKUP(Switch!$D$28,$F$2:$G$44,2,FALSE)+ROW()-2))=Switch!$D$28,INDIRECT(\"a\" & (VLOOKUP(Switch!$D$28,$F$2:$G$44,2,FALSE)+ROW()-2)),\"\")","v":{"$error":"#N/A"}},{"$f":"IF(INDIRECT(\"c\" & (VLOOKUP(Switch!$D$29,$F$2:$G$44,2,FALSE)+ROW()-2))=Switch!$D$29,INDIRECT(\"a\" & (VLOOKUP(Switch!$D$29,$F$2:$G$44,2,FALSE)+ROW()-2)),\"\")","v":{"$error":"#N/A"}},{"$f":"IF(INDIRECT(\"c\" & (VLOOKUP(Switch!$D$30,$F$2:$G$44,2,FALSE)+ROW()-2))=Switch!$D$30,INDIRECT(\"a\" & (VLOOKUP(Switch!$D$30,$F$2:$G$44,2,FALSE)+ROW()-2)),\"\")","v":{"$error":"#N/A"}},{"$f":"IF(INDIRECT(\"c\" & (VLOOKUP(Switch!$D$31,$F$2:$G$44,2,FALSE)+ROW()-2))=Switch!$D$31,INDIRECT(\"a\" & (VLOOKUP(Switch!$D$31,$F$2:$G$44,2,FALSE)+ROW()-2)),\"\")","v":{"$error":"#N/A"}},{"$f":"IF(INDIRECT(\"c\" & (VLOOKUP(Switch!$D$32,$F$2:$G$44,2,FALSE)+ROW()-2))=Switch!$D$32,INDIRECT(\"a\" & (VLOOKUP(Switch!$D$32,$F$2:$G$44,2,FALSE)+ROW()-2)),\"\")","v":{"$error":"#N/A"}},{"$f":"IF(INDIRECT(\"c\" & (VLOOKUP(Switch!$D$33,$F$2:$G$44,2,FALSE)+ROW()-2))=Switch!$D$33,INDIRECT(\"a\" & (VLOOKUP(Switch!$D$33,$F$2:$G$44,2,FALSE)+ROW()-2)),\"\")","v":{"$error":"#N/A"}},{"$f":"IF(INDIRECT(\"c\" & (VLOOKUP(Switch!$D$34,$F$2:$G$44,2,FALSE)+ROW()-2))=Switch!$D$34,INDIRECT(\"a\" & (VLOOKUP(Switch!$D$34,$F$2:$G$44,2,FALSE)+ROW()-2)),\"\")","v":{"$error":"#N/A"}},{"$f":"IF(INDIRECT(\"c\" & (VLOOKUP(Switch!$D$35,$F$2:$G$44,2,FALSE)+ROW()-2))=Switch!$D$35,INDIRECT(\"a\" & (VLOOKUP(Switch!$D$35,$F$2:$G$44,2,FALSE)+ROW()-2)),\"\")","v":{"$error":"#N/A"}},{"$f":"IF(INDIRECT(\"c\" & (VLOOKUP(Switch!$D$36,$F$2:$G$44,2,FALSE)+ROW()-2))=Switch!$D$36,INDIRECT(\"a\" & (VLOOKUP(Switch!$D$36,$F$2:$G$44,2,FALSE)+ROW()-2)),\"\")","v":{"$error":"#N/A"}},{"$f":"IF(INDIRECT(\"c\" & (VLOOKUP(Switch!$D$37,$F$2:$G$44,2,FALSE)+ROW()-2))=Switch!$D$37,INDIRECT(\"a\" & (VLOOKUP(Switch!$D$37,$F$2:$G$44,2,FALSE)+ROW()-2)),\"\")","v":{"$error":"#N/A"}},{"$f":"IF(INDIRECT(\"c\" & (VLOOKUP(Switch!$D$38,$F$2:$G$44,2,FALSE)+ROW()-2))=Switch!$D$38,INDIRECT(\"a\" & (VLOOKUP(Switch!$D$38,$F$2:$G$44,2,FALSE)+ROW()-2)),\"\")","v":{"$error":"#N/A"}},{"$f":"IF(INDIRECT(\"c\" & (VLOOKUP(Switch!$D$39,$F$2:$G$44,2,FALSE)+ROW()-2))=Switch!$D$39,INDIRECT(\"a\" & (VLOOKUP(Switch!$D$39,$F$2:$G$44,2,FALSE)+ROW()-2)),\"\")","v":{"$error":"#N/A"}},{"$f":"IF(INDIRECT(\"c\" & (VLOOKUP(Switch!$D$40,$F$2:$G$44,2,FALSE)+ROW()-2))=Switch!$D$40,INDIRECT(\"a\" & (VLOOKUP(Switch!$D$40,$F$2:$G$44,2,FALSE)+ROW()-2)),\"\")","v":{"$error":"#N/A"}},{"$f":"IF(INDIRECT(\"c\" & (VLOOKUP(Switch!$D$52,$F$2:$G$44,2,FALSE)+ROW()-2))=Switch!$D$52,INDIRECT(\"a\" & (VLOOKUP(Switch!$D$52,$F$2:$G$44,2,FALSE)+ROW()-2)),\"\")","v":{"$error":"#N/A"}},{"$f":"IF(INDIRECT(\"c\" & (VLOOKUP(Switch!$D$53,$F$2:$G$44,2,FALSE)+ROW()-2))=Switch!$D$53,INDIRECT(\"a\" & (VLOOKUP(Switch!$D$53,$F$2:$G$44,2,FALSE)+ROW()-2)),\"\")","v":{"$error":"#N/A"}},{"$f":"IF(INDIRECT(\"c\" & (VLOOKUP(Switch!$D$54,$F$2:$G$44,2,FALSE)+ROW()-2))=Switch!$D$54,INDIRECT(\"a\" & (VLOOKUP(Switch!$D$54,$F$2:$G$44,2,FALSE)+ROW()-2)),\"\")","v":{"$error":"#N/A"}},{"$f":"IF(INDIRECT(\"c\" & (VLOOKUP(Switch!$D$55,$F$2:$G$44,2,FALSE)+ROW()-2))=Switch!$D$55,INDIRECT(\"a\" & (VLOOKUP(Switch!$D$55,$F$2:$G$44,2,FALSE)+ROW()-2)),\"\")","v":{"$error":"#N/A"}},{"$f":"IF(INDIRECT(\"c\" & (VLOOKUP(Switch!$D$56,$F$2:$G$44,2,FALSE)+ROW()-2))=Switch!$D$56,INDIRECT(\"a\" & (VLOOKUP(Switch!$D$56,$F$2:$G$44,2,FALSE)+ROW()-2)),\"\")","v":{"$error":"#N/A"}},{"$f":"IF(INDIRECT(\"c\" & (VLOOKUP(Switch!$D$57,$F$2:$G$44,2,FALSE)+ROW()-2))=Switch!$D$57,INDIRECT(\"a\" & (VLOOKUP(Switch!$D$57,$F$2:$G$44,2,FALSE)+ROW()-2)),\"\")","v":{"$error":"#N/A"}},{"$f":"IF(INDIRECT(\"c\" & (VLOOKUP(Switch!$D$58,$F$2:$G$44,2,FALSE)+ROW()-2))=Switch!$D$58,INDIRECT(\"a\" & (VLOOKUP(Switch!$D$58,$F$2:$G$44,2,FALSE)+ROW()-2)),\"\")","v":{"$error":"#N/A"}},{"$f":"IF(INDIRECT(\"c\" & (VLOOKUP(Switch!$D$59,$F$2:$G$44,2,FALSE)+ROW()-2))=Switch!$D$59,INDIRECT(\"a\" & (VLOOKUP(Switch!$D$59,$F$2:$G$44,2,FALSE)+ROW()-2)),\"\")","v":{"$error":"#N/A"}},{"$f":"IF(INDIRECT(\"c\" & (VLOOKUP(Switch!$D$60,$F$2:$G$44,2,FALSE)+ROW()-2))=Switch!$D$60,INDIRECT(\"a\" & (VLOOKUP(Switch!$D$60,$F$2:$G$44,2,FALSE)+ROW()-2)),\"\")","v":{"$error":"#N/A"}},{"$f":"IF(INDIRECT(\"c\" & (VLOOKUP(Switch!$D$61,$F$2:$G$44,2,FALSE)+ROW()-2))=Switch!$D$61,INDIRECT(\"a\" & (VLOOKUP(Switch!$D$61,$F$2:$G$44,2,FALSE)+ROW()-2)),\"\")","v":{"$error":"#N/A"}},{"$f":"IF(INDIRECT(\"c\" & (VLOOKUP(Switch!$D$62,$F$2:$G$44,2,FALSE)+ROW()-2))=Switch!$D$62,INDIRECT(\"a\" & (VLOOKUP(Switch!$D$62,$F$2:$G$44,2,FALSE)+ROW()-2)),\"\")","v":{"$error":"#N/A"}},{"$f":"IF(INDIRECT(\"c\" & (VLOOKUP(Switch!$D$63,$F$2:$G$44,2,FALSE)+ROW()-2))=Switch!$D$63,INDIRECT(\"a\" & (VLOOKUP(Switch!$D$63,$F$2:$G$44,2,FALSE)+ROW()-2)),\"\")","v":{"$error":"#N/A"}},{"$f":"IF(INDIRECT(\"c\" & (VLOOKUP(Switch!$D$64,$F$2:$G$44,2,FALSE)+ROW()-2))=Switch!$D$64,INDIRECT(\"a\" & (VLOOKUP(Switch!$D$64,$F$2:$G$44,2,FALSE)+ROW()-2)),\"\")","v":{"$error":"#N/A"}},{"$f":"IF(INDIRECT(\"c\" & (VLOOKUP(Switch!$D$65,$F$2:$G$44,2,FALSE)+ROW()-2))=Switch!$D$65,INDIRECT(\"a\" & (VLOOKUP(Switch!$D$65,$F$2:$G$44,2,FALSE)+ROW()-2)),\"\")","v":{"$error":"#N/A"}},{"$f":"IF(INDIRECT(\"c\" & (VLOOKUP(Switch!$D$66,$F$2:$G$44,2,FALSE)+ROW()-2))=Switch!$D$66,INDIRECT(\"a\" & (VLOOKUP(Switch!$D$66,$F$2:$G$44,2,FALSE)+ROW()-2)),\"\")","v":{"$error":"#N/A"}}]
["Vesro BCI SA Equity Fund A","MVLT","Boutique Collective Investments (Pty) Ltd",{"$f":"ROW()","v":193},null,null,{"$f":"VLOOKUP(F193,$C$2:$D$637,2,FALSE)","v":{"$error":"#N/A"}},{"$f":"IF(INDIRECT(\"c\" & (VLOOKUP(Switch!$D$26,$F$2:$G$44,2,FALSE)+ROW()-2))=Switch!$D$26,INDIRECT(\"a\" & (VLOOKUP(Switch!$D$26,$F$2:$G$44,2,FALSE)+ROW()-2)),\"\")","v":{"$error":"#N/A"}},{"$f":"IF(INDIRECT(\"c\" & (VLOOKUP(Switch!$D$27,$F$2:$G$44,2,FALSE)+ROW()-2))=Switch!$D$27,INDIRECT(\"a\" & (VLOOKUP(Switch!$D$27,$F$2:$G$44,2,FALSE)+ROW()-2)),\"\")","v":{"$error":"#N/A"}},{"$f":"IF(INDIRECT(\"c\" & (VLOOKUP(Switch!$D$28,$F$2:$G$44,2,FALSE)+ROW()-2))=Switch!$D$28,INDIRECT(\"a\" & (VLOOKUP(Switch!$D$28,$F$2:$G$44,2,FALSE)+ROW()-2)),\"\")","v":{"$error":"#N/A"}},{"$f":"IF(INDIRECT(\"c\" & (VLOOKUP(Switch!$D$29,$F$2:$G$44,2,FALSE)+ROW()-2))=Switch!$D$29,INDIRECT(\"a\" & (VLOOKUP(Switch!$D$29,$F$2:$G$44,2,FALSE)+ROW()-2)),\"\")","v":{"$error":"#N/A"}},{"$f":"IF(INDIRECT(\"c\" & (VLOOKUP(Switch!$D$30,$F$2:$G$44,2,FALSE)+ROW()-2))=Switch!$D$30,INDIRECT(\"a\" & (VLOOKUP(Switch!$D$30,$F$2:$G$44,2,FALSE)+ROW()-2)),\"\")","v":{"$error":"#N/A"}},{"$f":"IF(INDIRECT(\"c\" & (VLOOKUP(Switch!$D$31,$F$2:$G$44,2,FALSE)+ROW()-2))=Switch!$D$31,INDIRECT(\"a\" & (VLOOKUP(Switch!$D$31,$F$2:$G$44,2,FALSE)+ROW()-2)),\"\")","v":{"$error":"#N/A"}},{"$f":"IF(INDIRECT(\"c\" & (VLOOKUP(Switch!$D$32,$F$2:$G$44,2,FALSE)+ROW()-2))=Switch!$D$32,INDIRECT(\"a\" & (VLOOKUP(Switch!$D$32,$F$2:$G$44,2,FALSE)+ROW()-2)),\"\")","v":{"$error":"#N/A"}},{"$f":"IF(INDIRECT(\"c\" & (VLOOKUP(Switch!$D$33,$F$2:$G$44,2,FALSE)+ROW()-2))=Switch!$D$33,INDIRECT(\"a\" & (VLOOKUP(Switch!$D$33,$F$2:$G$44,2,FALSE)+ROW()-2)),\"\")","v":{"$error":"#N/A"}},{"$f":"IF(INDIRECT(\"c\" & (VLOOKUP(Switch!$D$34,$F$2:$G$44,2,FALSE)+ROW()-2))=Switch!$D$34,INDIRECT(\"a\" & (VLOOKUP(Switch!$D$34,$F$2:$G$44,2,FALSE)+ROW()-2)),\"\")","v":{"$error":"#N/A"}},{"$f":"IF(INDIRECT(\"c\" & (VLOOKUP(Switch!$D$35,$F$2:$G$44,2,FALSE)+ROW()-2))=Switch!$D$35,INDIRECT(\"a\" & (VLOOKUP(Switch!$D$35,$F$2:$G$44,2,FALSE)+ROW()-2)),\"\")","v":{"$error":"#N/A"}},{"$f":"IF(INDIRECT(\"c\" & (VLOOKUP(Switch!$D$36,$F$2:$G$44,2,FALSE)+ROW()-2))=Switch!$D$36,INDIRECT(\"a\" & (VLOOKUP(Switch!$D$36,$F$2:$G$44,2,FALSE)+ROW()-2)),\"\")","v":{"$error":"#N/A"}},{"$f":"IF(INDIRECT(\"c\" & (VLOOKUP(Switch!$D$37,$F$2:$G$44,2,FALSE)+ROW()-2))=Switch!$D$37,INDIRECT(\"a\" & (VLOOKUP(Switch!$D$37,$F$2:$G$44,2,FALSE)+ROW()-2)),\"\")","v":{"$error":"#N/A"}},{"$f":"IF(INDIRECT(\"c\" & (VLOOKUP(Switch!$D$38,$F$2:$G$44,2,FALSE)+ROW()-2))=Switch!$D$38,INDIRECT(\"a\" & (VLOOKUP(Switch!$D$38,$F$2:$G$44,2,FALSE)+ROW()-2)),\"\")","v":{"$error":"#N/A"}},{"$f":"IF(INDIRECT(\"c\" & (VLOOKUP(Switch!$D$39,$F$2:$G$44,2,FALSE)+ROW()-2))=Switch!$D$39,INDIRECT(\"a\" & (VLOOKUP(Switch!$D$39,$F$2:$G$44,2,FALSE)+ROW()-2)),\"\")","v":{"$error":"#N/A"}},{"$f":"IF(INDIRECT(\"c\" & (VLOOKUP(Switch!$D$40,$F$2:$G$44,2,FALSE)+ROW()-2))=Switch!$D$40,INDIRECT(\"a\" & (VLOOKUP(Switch!$D$40,$F$2:$G$44,2,FALSE)+ROW()-2)),\"\")","v":{"$error":"#N/A"}},{"$f":"IF(INDIRECT(\"c\" & (VLOOKUP(Switch!$D$52,$F$2:$G$44,2,FALSE)+ROW()-2))=Switch!$D$52,INDIRECT(\"a\" & (VLOOKUP(Switch!$D$52,$F$2:$G$44,2,FALSE)+ROW()-2)),\"\")","v":{"$error":"#N/A"}},{"$f":"IF(INDIRECT(\"c\" & (VLOOKUP(Switch!$D$53,$F$2:$G$44,2,FALSE)+ROW()-2))=Switch!$D$53,INDIRECT(\"a\" & (VLOOKUP(Switch!$D$53,$F$2:$G$44,2,FALSE)+ROW()-2)),\"\")","v":{"$error":"#N/A"}},{"$f":"IF(INDIRECT(\"c\" & (VLOOKUP(Switch!$D$54,$F$2:$G$44,2,FALSE)+ROW()-2))=Switch!$D$54,INDIRECT(\"a\" & (VLOOKUP(Switch!$D$54,$F$2:$G$44,2,FALSE)+ROW()-2)),\"\")","v":{"$error":"#N/A"}},{"$f":"IF(INDIRECT(\"c\" & (VLOOKUP(Switch!$D$55,$F$2:$G$44,2,FALSE)+ROW()-2))=Switch!$D$55,INDIRECT(\"a\" & (VLOOKUP(Switch!$D$55,$F$2:$G$44,2,FALSE)+ROW()-2)),\"\")","v":{"$error":"#N/A"}},{"$f":"IF(INDIRECT(\"c\" & (VLOOKUP(Switch!$D$56,$F$2:$G$44,2,FALSE)+ROW()-2))=Switch!$D$56,INDIRECT(\"a\" & (VLOOKUP(Switch!$D$56,$F$2:$G$44,2,FALSE)+ROW()-2)),\"\")","v":{"$error":"#N/A"}},{"$f":"IF(INDIRECT(\"c\" & (VLOOKUP(Switch!$D$57,$F$2:$G$44,2,FALSE)+ROW()-2))=Switch!$D$57,INDIRECT(\"a\" & (VLOOKUP(Switch!$D$57,$F$2:$G$44,2,FALSE)+ROW()-2)),\"\")","v":{"$error":"#N/A"}},{"$f":"IF(INDIRECT(\"c\" & (VLOOKUP(Switch!$D$58,$F$2:$G$44,2,FALSE)+ROW()-2))=Switch!$D$58,INDIRECT(\"a\" & (VLOOKUP(Switch!$D$58,$F$2:$G$44,2,FALSE)+ROW()-2)),\"\")","v":{"$error":"#N/A"}},{"$f":"IF(INDIRECT(\"c\" & (VLOOKUP(Switch!$D$59,$F$2:$G$44,2,FALSE)+ROW()-2))=Switch!$D$59,INDIRECT(\"a\" & (VLOOKUP(Switch!$D$59,$F$2:$G$44,2,FALSE)+ROW()-2)),\"\")","v":{"$error":"#N/A"}},{"$f":"IF(INDIRECT(\"c\" & (VLOOKUP(Switch!$D$60,$F$2:$G$44,2,FALSE)+ROW()-2))=Switch!$D$60,INDIRECT(\"a\" & (VLOOKUP(Switch!$D$60,$F$2:$G$44,2,FALSE)+ROW()-2)),\"\")","v":{"$error":"#N/A"}},{"$f":"IF(INDIRECT(\"c\" & (VLOOKUP(Switch!$D$61,$F$2:$G$44,2,FALSE)+ROW()-2))=Switch!$D$61,INDIRECT(\"a\" & (VLOOKUP(Switch!$D$61,$F$2:$G$44,2,FALSE)+ROW()-2)),\"\")","v":{"$error":"#N/A"}},{"$f":"IF(INDIRECT(\"c\" & (VLOOKUP(Switch!$D$62,$F$2:$G$44,2,FALSE)+ROW()-2))=Switch!$D$62,INDIRECT(\"a\" & (VLOOKUP(Switch!$D$62,$F$2:$G$44,2,FALSE)+ROW()-2)),\"\")","v":{"$error":"#N/A"}},{"$f":"IF(INDIRECT(\"c\" & (VLOOKUP(Switch!$D$63,$F$2:$G$44,2,FALSE)+ROW()-2))=Switch!$D$63,INDIRECT(\"a\" & (VLOOKUP(Switch!$D$63,$F$2:$G$44,2,FALSE)+ROW()-2)),\"\")","v":{"$error":"#N/A"}},{"$f":"IF(INDIRECT(\"c\" & (VLOOKUP(Switch!$D$64,$F$2:$G$44,2,FALSE)+ROW()-2))=Switch!$D$64,INDIRECT(\"a\" & (VLOOKUP(Switch!$D$64,$F$2:$G$44,2,FALSE)+ROW()-2)),\"\")","v":{"$error":"#N/A"}},{"$f":"IF(INDIRECT(\"c\" & (VLOOKUP(Switch!$D$65,$F$2:$G$44,2,FALSE)+ROW()-2))=Switch!$D$65,INDIRECT(\"a\" & (VLOOKUP(Switch!$D$65,$F$2:$G$44,2,FALSE)+ROW()-2)),\"\")","v":{"$error":"#N/A"}},{"$f":"IF(INDIRECT(\"c\" & (VLOOKUP(Switch!$D$66,$F$2:$G$44,2,FALSE)+ROW()-2))=Switch!$D$66,INDIRECT(\"a\" & (VLOOKUP(Switch!$D$66,$F$2:$G$44,2,FALSE)+ROW()-2)),\"\")","v":{"$error":"#N/A"}}]
["Visio BCI Actinio Portfolio Fund A","MBVA","Boutique Collective Investments (Pty) Ltd",{"$f":"ROW()","v":194},null,null,{"$f":"VLOOKUP(F194,$C$2:$D$637,2,FALSE)","v":{"$error":"#N/A"}},{"$f":"IF(INDIRECT(\"c\" & (VLOOKUP(Switch!$D$26,$F$2:$G$44,2,FALSE)+ROW()-2))=Switch!$D$26,INDIRECT(\"a\" & (VLOOKUP(Switch!$D$26,$F$2:$G$44,2,FALSE)+ROW()-2)),\"\")","v":{"$error":"#N/A"}},{"$f":"IF(INDIRECT(\"c\" & (VLOOKUP(Switch!$D$27,$F$2:$G$44,2,FALSE)+ROW()-2))=Switch!$D$27,INDIRECT(\"a\" & (VLOOKUP(Switch!$D$27,$F$2:$G$44,2,FALSE)+ROW()-2)),\"\")","v":{"$error":"#N/A"}},{"$f":"IF(INDIRECT(\"c\" & (VLOOKUP(Switch!$D$28,$F$2:$G$44,2,FALSE)+ROW()-2))=Switch!$D$28,INDIRECT(\"a\" & (VLOOKUP(Switch!$D$28,$F$2:$G$44,2,FALSE)+ROW()-2)),\"\")","v":{"$error":"#N/A"}},{"$f":"IF(INDIRECT(\"c\" & (VLOOKUP(Switch!$D$29,$F$2:$G$44,2,FALSE)+ROW()-2))=Switch!$D$29,INDIRECT(\"a\" & (VLOOKUP(Switch!$D$29,$F$2:$G$44,2,FALSE)+ROW()-2)),\"\")","v":{"$error":"#N/A"}},{"$f":"IF(INDIRECT(\"c\" & (VLOOKUP(Switch!$D$30,$F$2:$G$44,2,FALSE)+ROW()-2))=Switch!$D$30,INDIRECT(\"a\" & (VLOOKUP(Switch!$D$30,$F$2:$G$44,2,FALSE)+ROW()-2)),\"\")","v":{"$error":"#N/A"}},{"$f":"IF(INDIRECT(\"c\" & (VLOOKUP(Switch!$D$31,$F$2:$G$44,2,FALSE)+ROW()-2))=Switch!$D$31,INDIRECT(\"a\" & (VLOOKUP(Switch!$D$31,$F$2:$G$44,2,FALSE)+ROW()-2)),\"\")","v":{"$error":"#N/A"}},{"$f":"IF(INDIRECT(\"c\" & (VLOOKUP(Switch!$D$32,$F$2:$G$44,2,FALSE)+ROW()-2))=Switch!$D$32,INDIRECT(\"a\" & (VLOOKUP(Switch!$D$32,$F$2:$G$44,2,FALSE)+ROW()-2)),\"\")","v":{"$error":"#N/A"}},{"$f":"IF(INDIRECT(\"c\" & (VLOOKUP(Switch!$D$33,$F$2:$G$44,2,FALSE)+ROW()-2))=Switch!$D$33,INDIRECT(\"a\" & (VLOOKUP(Switch!$D$33,$F$2:$G$44,2,FALSE)+ROW()-2)),\"\")","v":{"$error":"#N/A"}},{"$f":"IF(INDIRECT(\"c\" & (VLOOKUP(Switch!$D$34,$F$2:$G$44,2,FALSE)+ROW()-2))=Switch!$D$34,INDIRECT(\"a\" & (VLOOKUP(Switch!$D$34,$F$2:$G$44,2,FALSE)+ROW()-2)),\"\")","v":{"$error":"#N/A"}},{"$f":"IF(INDIRECT(\"c\" & (VLOOKUP(Switch!$D$35,$F$2:$G$44,2,FALSE)+ROW()-2))=Switch!$D$35,INDIRECT(\"a\" & (VLOOKUP(Switch!$D$35,$F$2:$G$44,2,FALSE)+ROW()-2)),\"\")","v":{"$error":"#N/A"}},{"$f":"IF(INDIRECT(\"c\" & (VLOOKUP(Switch!$D$36,$F$2:$G$44,2,FALSE)+ROW()-2))=Switch!$D$36,INDIRECT(\"a\" & (VLOOKUP(Switch!$D$36,$F$2:$G$44,2,FALSE)+ROW()-2)),\"\")","v":{"$error":"#N/A"}},{"$f":"IF(INDIRECT(\"c\" & (VLOOKUP(Switch!$D$37,$F$2:$G$44,2,FALSE)+ROW()-2))=Switch!$D$37,INDIRECT(\"a\" & (VLOOKUP(Switch!$D$37,$F$2:$G$44,2,FALSE)+ROW()-2)),\"\")","v":{"$error":"#N/A"}},{"$f":"IF(INDIRECT(\"c\" & (VLOOKUP(Switch!$D$38,$F$2:$G$44,2,FALSE)+ROW()-2))=Switch!$D$38,INDIRECT(\"a\" & (VLOOKUP(Switch!$D$38,$F$2:$G$44,2,FALSE)+ROW()-2)),\"\")","v":{"$error":"#N/A"}},{"$f":"IF(INDIRECT(\"c\" & (VLOOKUP(Switch!$D$39,$F$2:$G$44,2,FALSE)+ROW()-2))=Switch!$D$39,INDIRECT(\"a\" & (VLOOKUP(Switch!$D$39,$F$2:$G$44,2,FALSE)+ROW()-2)),\"\")","v":{"$error":"#N/A"}},{"$f":"IF(INDIRECT(\"c\" & (VLOOKUP(Switch!$D$40,$F$2:$G$44,2,FALSE)+ROW()-2))=Switch!$D$40,INDIRECT(\"a\" & (VLOOKUP(Switch!$D$40,$F$2:$G$44,2,FALSE)+ROW()-2)),\"\")","v":{"$error":"#N/A"}},{"$f":"IF(INDIRECT(\"c\" & (VLOOKUP(Switch!$D$52,$F$2:$G$44,2,FALSE)+ROW()-2))=Switch!$D$52,INDIRECT(\"a\" & (VLOOKUP(Switch!$D$52,$F$2:$G$44,2,FALSE)+ROW()-2)),\"\")","v":{"$error":"#N/A"}},{"$f":"IF(INDIRECT(\"c\" & (VLOOKUP(Switch!$D$53,$F$2:$G$44,2,FALSE)+ROW()-2))=Switch!$D$53,INDIRECT(\"a\" & (VLOOKUP(Switch!$D$53,$F$2:$G$44,2,FALSE)+ROW()-2)),\"\")","v":{"$error":"#N/A"}},{"$f":"IF(INDIRECT(\"c\" & (VLOOKUP(Switch!$D$54,$F$2:$G$44,2,FALSE)+ROW()-2))=Switch!$D$54,INDIRECT(\"a\" & (VLOOKUP(Switch!$D$54,$F$2:$G$44,2,FALSE)+ROW()-2)),\"\")","v":{"$error":"#N/A"}},{"$f":"IF(INDIRECT(\"c\" & (VLOOKUP(Switch!$D$55,$F$2:$G$44,2,FALSE)+ROW()-2))=Switch!$D$55,INDIRECT(\"a\" & (VLOOKUP(Switch!$D$55,$F$2:$G$44,2,FALSE)+ROW()-2)),\"\")","v":{"$error":"#N/A"}},{"$f":"IF(INDIRECT(\"c\" & (VLOOKUP(Switch!$D$56,$F$2:$G$44,2,FALSE)+ROW()-2))=Switch!$D$56,INDIRECT(\"a\" & (VLOOKUP(Switch!$D$56,$F$2:$G$44,2,FALSE)+ROW()-2)),\"\")","v":{"$error":"#N/A"}},{"$f":"IF(INDIRECT(\"c\" & (VLOOKUP(Switch!$D$57,$F$2:$G$44,2,FALSE)+ROW()-2))=Switch!$D$57,INDIRECT(\"a\" & (VLOOKUP(Switch!$D$57,$F$2:$G$44,2,FALSE)+ROW()-2)),\"\")","v":{"$error":"#N/A"}},{"$f":"IF(INDIRECT(\"c\" & (VLOOKUP(Switch!$D$58,$F$2:$G$44,2,FALSE)+ROW()-2))=Switch!$D$58,INDIRECT(\"a\" & (VLOOKUP(Switch!$D$58,$F$2:$G$44,2,FALSE)+ROW()-2)),\"\")","v":{"$error":"#N/A"}},{"$f":"IF(INDIRECT(\"c\" & (VLOOKUP(Switch!$D$59,$F$2:$G$44,2,FALSE)+ROW()-2))=Switch!$D$59,INDIRECT(\"a\" & (VLOOKUP(Switch!$D$59,$F$2:$G$44,2,FALSE)+ROW()-2)),\"\")","v":{"$error":"#N/A"}},{"$f":"IF(INDIRECT(\"c\" & (VLOOKUP(Switch!$D$60,$F$2:$G$44,2,FALSE)+ROW()-2))=Switch!$D$60,INDIRECT(\"a\" & (VLOOKUP(Switch!$D$60,$F$2:$G$44,2,FALSE)+ROW()-2)),\"\")","v":{"$error":"#N/A"}},{"$f":"IF(INDIRECT(\"c\" & (VLOOKUP(Switch!$D$61,$F$2:$G$44,2,FALSE)+ROW()-2))=Switch!$D$61,INDIRECT(\"a\" & (VLOOKUP(Switch!$D$61,$F$2:$G$44,2,FALSE)+ROW()-2)),\"\")","v":{"$error":"#N/A"}},{"$f":"IF(INDIRECT(\"c\" & (VLOOKUP(Switch!$D$62,$F$2:$G$44,2,FALSE)+ROW()-2))=Switch!$D$62,INDIRECT(\"a\" & (VLOOKUP(Switch!$D$62,$F$2:$G$44,2,FALSE)+ROW()-2)),\"\")","v":{"$error":"#N/A"}},{"$f":"IF(INDIRECT(\"c\" & (VLOOKUP(Switch!$D$63,$F$2:$G$44,2,FALSE)+ROW()-2))=Switch!$D$63,INDIRECT(\"a\" & (VLOOKUP(Switch!$D$63,$F$2:$G$44,2,FALSE)+ROW()-2)),\"\")","v":{"$error":"#N/A"}},{"$f":"IF(INDIRECT(\"c\" & (VLOOKUP(Switch!$D$64,$F$2:$G$44,2,FALSE)+ROW()-2))=Switch!$D$64,INDIRECT(\"a\" & (VLOOKUP(Switch!$D$64,$F$2:$G$44,2,FALSE)+ROW()-2)),\"\")","v":{"$error":"#N/A"}},{"$f":"IF(INDIRECT(\"c\" & (VLOOKUP(Switch!$D$65,$F$2:$G$44,2,FALSE)+ROW()-2))=Switch!$D$65,INDIRECT(\"a\" & (VLOOKUP(Switch!$D$65,$F$2:$G$44,2,FALSE)+ROW()-2)),\"\")","v":{"$error":"#N/A"}},{"$f":"IF(INDIRECT(\"c\" & (VLOOKUP(Switch!$D$66,$F$2:$G$44,2,FALSE)+ROW()-2))=Switch!$D$66,INDIRECT(\"a\" & (VLOOKUP(Switch!$D$66,$F$2:$G$44,2,FALSE)+ROW()-2)),\"\")","v":{"$error":"#N/A"}}]
["Warwick BCI Balanced Fund A","MIPR","Boutique Collective Investments (Pty) Ltd",{"$f":"ROW()","v":195},null,null,{"$f":"VLOOKUP(F195,$C$2:$D$637,2,FALSE)","v":{"$error":"#N/A"}},{"$f":"IF(INDIRECT(\"c\" & (VLOOKUP(Switch!$D$26,$F$2:$G$44,2,FALSE)+ROW()-2))=Switch!$D$26,INDIRECT(\"a\" & (VLOOKUP(Switch!$D$26,$F$2:$G$44,2,FALSE)+ROW()-2)),\"\")","v":{"$error":"#N/A"}},{"$f":"IF(INDIRECT(\"c\" & (VLOOKUP(Switch!$D$27,$F$2:$G$44,2,FALSE)+ROW()-2))=Switch!$D$27,INDIRECT(\"a\" & (VLOOKUP(Switch!$D$27,$F$2:$G$44,2,FALSE)+ROW()-2)),\"\")","v":{"$error":"#N/A"}},{"$f":"IF(INDIRECT(\"c\" & (VLOOKUP(Switch!$D$28,$F$2:$G$44,2,FALSE)+ROW()-2))=Switch!$D$28,INDIRECT(\"a\" & (VLOOKUP(Switch!$D$28,$F$2:$G$44,2,FALSE)+ROW()-2)),\"\")","v":{"$error":"#N/A"}},{"$f":"IF(INDIRECT(\"c\" & (VLOOKUP(Switch!$D$29,$F$2:$G$44,2,FALSE)+ROW()-2))=Switch!$D$29,INDIRECT(\"a\" & (VLOOKUP(Switch!$D$29,$F$2:$G$44,2,FALSE)+ROW()-2)),\"\")","v":{"$error":"#N/A"}},{"$f":"IF(INDIRECT(\"c\" & (VLOOKUP(Switch!$D$30,$F$2:$G$44,2,FALSE)+ROW()-2))=Switch!$D$30,INDIRECT(\"a\" & (VLOOKUP(Switch!$D$30,$F$2:$G$44,2,FALSE)+ROW()-2)),\"\")","v":{"$error":"#N/A"}},{"$f":"IF(INDIRECT(\"c\" & (VLOOKUP(Switch!$D$31,$F$2:$G$44,2,FALSE)+ROW()-2))=Switch!$D$31,INDIRECT(\"a\" & (VLOOKUP(Switch!$D$31,$F$2:$G$44,2,FALSE)+ROW()-2)),\"\")","v":{"$error":"#N/A"}},{"$f":"IF(INDIRECT(\"c\" & (VLOOKUP(Switch!$D$32,$F$2:$G$44,2,FALSE)+ROW()-2))=Switch!$D$32,INDIRECT(\"a\" & (VLOOKUP(Switch!$D$32,$F$2:$G$44,2,FALSE)+ROW()-2)),\"\")","v":{"$error":"#N/A"}},{"$f":"IF(INDIRECT(\"c\" & (VLOOKUP(Switch!$D$33,$F$2:$G$44,2,FALSE)+ROW()-2))=Switch!$D$33,INDIRECT(\"a\" & (VLOOKUP(Switch!$D$33,$F$2:$G$44,2,FALSE)+ROW()-2)),\"\")","v":{"$error":"#N/A"}},{"$f":"IF(INDIRECT(\"c\" & (VLOOKUP(Switch!$D$34,$F$2:$G$44,2,FALSE)+ROW()-2))=Switch!$D$34,INDIRECT(\"a\" & (VLOOKUP(Switch!$D$34,$F$2:$G$44,2,FALSE)+ROW()-2)),\"\")","v":{"$error":"#N/A"}},{"$f":"IF(INDIRECT(\"c\" & (VLOOKUP(Switch!$D$35,$F$2:$G$44,2,FALSE)+ROW()-2))=Switch!$D$35,INDIRECT(\"a\" & (VLOOKUP(Switch!$D$35,$F$2:$G$44,2,FALSE)+ROW()-2)),\"\")","v":{"$error":"#N/A"}},{"$f":"IF(INDIRECT(\"c\" & (VLOOKUP(Switch!$D$36,$F$2:$G$44,2,FALSE)+ROW()-2))=Switch!$D$36,INDIRECT(\"a\" & (VLOOKUP(Switch!$D$36,$F$2:$G$44,2,FALSE)+ROW()-2)),\"\")","v":{"$error":"#N/A"}},{"$f":"IF(INDIRECT(\"c\" & (VLOOKUP(Switch!$D$37,$F$2:$G$44,2,FALSE)+ROW()-2))=Switch!$D$37,INDIRECT(\"a\" & (VLOOKUP(Switch!$D$37,$F$2:$G$44,2,FALSE)+ROW()-2)),\"\")","v":{"$error":"#N/A"}},{"$f":"IF(INDIRECT(\"c\" & (VLOOKUP(Switch!$D$38,$F$2:$G$44,2,FALSE)+ROW()-2))=Switch!$D$38,INDIRECT(\"a\" & (VLOOKUP(Switch!$D$38,$F$2:$G$44,2,FALSE)+ROW()-2)),\"\")","v":{"$error":"#N/A"}},{"$f":"IF(INDIRECT(\"c\" & (VLOOKUP(Switch!$D$39,$F$2:$G$44,2,FALSE)+ROW()-2))=Switch!$D$39,INDIRECT(\"a\" & (VLOOKUP(Switch!$D$39,$F$2:$G$44,2,FALSE)+ROW()-2)),\"\")","v":{"$error":"#N/A"}},{"$f":"IF(INDIRECT(\"c\" & (VLOOKUP(Switch!$D$40,$F$2:$G$44,2,FALSE)+ROW()-2))=Switch!$D$40,INDIRECT(\"a\" & (VLOOKUP(Switch!$D$40,$F$2:$G$44,2,FALSE)+ROW()-2)),\"\")","v":{"$error":"#N/A"}},{"$f":"IF(INDIRECT(\"c\" & (VLOOKUP(Switch!$D$52,$F$2:$G$44,2,FALSE)+ROW()-2))=Switch!$D$52,INDIRECT(\"a\" & (VLOOKUP(Switch!$D$52,$F$2:$G$44,2,FALSE)+ROW()-2)),\"\")","v":{"$error":"#N/A"}},{"$f":"IF(INDIRECT(\"c\" & (VLOOKUP(Switch!$D$53,$F$2:$G$44,2,FALSE)+ROW()-2))=Switch!$D$53,INDIRECT(\"a\" & (VLOOKUP(Switch!$D$53,$F$2:$G$44,2,FALSE)+ROW()-2)),\"\")","v":{"$error":"#N/A"}},{"$f":"IF(INDIRECT(\"c\" & (VLOOKUP(Switch!$D$54,$F$2:$G$44,2,FALSE)+ROW()-2))=Switch!$D$54,INDIRECT(\"a\" & (VLOOKUP(Switch!$D$54,$F$2:$G$44,2,FALSE)+ROW()-2)),\"\")","v":{"$error":"#N/A"}},{"$f":"IF(INDIRECT(\"c\" & (VLOOKUP(Switch!$D$55,$F$2:$G$44,2,FALSE)+ROW()-2))=Switch!$D$55,INDIRECT(\"a\" & (VLOOKUP(Switch!$D$55,$F$2:$G$44,2,FALSE)+ROW()-2)),\"\")","v":{"$error":"#N/A"}},{"$f":"IF(INDIRECT(\"c\" & (VLOOKUP(Switch!$D$56,$F$2:$G$44,2,FALSE)+ROW()-2))=Switch!$D$56,INDIRECT(\"a\" & (VLOOKUP(Switch!$D$56,$F$2:$G$44,2,FALSE)+ROW()-2)),\"\")","v":{"$error":"#N/A"}},{"$f":"IF(INDIRECT(\"c\" & (VLOOKUP(Switch!$D$57,$F$2:$G$44,2,FALSE)+ROW()-2))=Switch!$D$57,INDIRECT(\"a\" & (VLOOKUP(Switch!$D$57,$F$2:$G$44,2,FALSE)+ROW()-2)),\"\")","v":{"$error":"#N/A"}},{"$f":"IF(INDIRECT(\"c\" & (VLOOKUP(Switch!$D$58,$F$2:$G$44,2,FALSE)+ROW()-2))=Switch!$D$58,INDIRECT(\"a\" & (VLOOKUP(Switch!$D$58,$F$2:$G$44,2,FALSE)+ROW()-2)),\"\")","v":{"$error":"#N/A"}},{"$f":"IF(INDIRECT(\"c\" & (VLOOKUP(Switch!$D$59,$F$2:$G$44,2,FALSE)+ROW()-2))=Switch!$D$59,INDIRECT(\"a\" & (VLOOKUP(Switch!$D$59,$F$2:$G$44,2,FALSE)+ROW()-2)),\"\")","v":{"$error":"#N/A"}},{"$f":"IF(INDIRECT(\"c\" & (VLOOKUP(Switch!$D$60,$F$2:$G$44,2,FALSE)+ROW()-2))=Switch!$D$60,INDIRECT(\"a\" & (VLOOKUP(Switch!$D$60,$F$2:$G$44,2,FALSE)+ROW()-2)),\"\")","v":{"$error":"#N/A"}},{"$f":"IF(INDIRECT(\"c\" & (VLOOKUP(Switch!$D$61,$F$2:$G$44,2,FALSE)+ROW()-2))=Switch!$D$61,INDIRECT(\"a\" & (VLOOKUP(Switch!$D$61,$F$2:$G$44,2,FALSE)+ROW()-2)),\"\")","v":{"$error":"#N/A"}},{"$f":"IF(INDIRECT(\"c\" & (VLOOKUP(Switch!$D$62,$F$2:$G$44,2,FALSE)+ROW()-2))=Switch!$D$62,INDIRECT(\"a\" & (VLOOKUP(Switch!$D$62,$F$2:$G$44,2,FALSE)+ROW()-2)),\"\")","v":{"$error":"#N/A"}},{"$f":"IF(INDIRECT(\"c\" & (VLOOKUP(Switch!$D$63,$F$2:$G$44,2,FALSE)+ROW()-2))=Switch!$D$63,INDIRECT(\"a\" & (VLOOKUP(Switch!$D$63,$F$2:$G$44,2,FALSE)+ROW()-2)),\"\")","v":{"$error":"#N/A"}},{"$f":"IF(INDIRECT(\"c\" & (VLOOKUP(Switch!$D$64,$F$2:$G$44,2,FALSE)+ROW()-2))=Switch!$D$64,INDIRECT(\"a\" & (VLOOKUP(Switch!$D$64,$F$2:$G$44,2,FALSE)+ROW()-2)),\"\")","v":{"$error":"#N/A"}},{"$f":"IF(INDIRECT(\"c\" & (VLOOKUP(Switch!$D$65,$F$2:$G$44,2,FALSE)+ROW()-2))=Switch!$D$65,INDIRECT(\"a\" & (VLOOKUP(Switch!$D$65,$F$2:$G$44,2,FALSE)+ROW()-2)),\"\")","v":{"$error":"#N/A"}},{"$f":"IF(INDIRECT(\"c\" & (VLOOKUP(Switch!$D$66,$F$2:$G$44,2,FALSE)+ROW()-2))=Switch!$D$66,INDIRECT(\"a\" & (VLOOKUP(Switch!$D$66,$F$2:$G$44,2,FALSE)+ROW()-2)),\"\")","v":{"$error":"#N/A"}}]
["Warwick BCI Balanced Fund of Funds A","WMMCA","Boutique Collective Investments (Pty) Ltd",{"$f":"ROW()","v":196},null,null,{"$f":"VLOOKUP(F196,$C$2:$D$637,2,FALSE)","v":{"$error":"#N/A"}},{"$f":"IF(INDIRECT(\"c\" & (VLOOKUP(Switch!$D$26,$F$2:$G$44,2,FALSE)+ROW()-2))=Switch!$D$26,INDIRECT(\"a\" & (VLOOKUP(Switch!$D$26,$F$2:$G$44,2,FALSE)+ROW()-2)),\"\")","v":{"$error":"#N/A"}},{"$f":"IF(INDIRECT(\"c\" & (VLOOKUP(Switch!$D$27,$F$2:$G$44,2,FALSE)+ROW()-2))=Switch!$D$27,INDIRECT(\"a\" & (VLOOKUP(Switch!$D$27,$F$2:$G$44,2,FALSE)+ROW()-2)),\"\")","v":{"$error":"#N/A"}},{"$f":"IF(INDIRECT(\"c\" & (VLOOKUP(Switch!$D$28,$F$2:$G$44,2,FALSE)+ROW()-2))=Switch!$D$28,INDIRECT(\"a\" & (VLOOKUP(Switch!$D$28,$F$2:$G$44,2,FALSE)+ROW()-2)),\"\")","v":{"$error":"#N/A"}},{"$f":"IF(INDIRECT(\"c\" & (VLOOKUP(Switch!$D$29,$F$2:$G$44,2,FALSE)+ROW()-2))=Switch!$D$29,INDIRECT(\"a\" & (VLOOKUP(Switch!$D$29,$F$2:$G$44,2,FALSE)+ROW()-2)),\"\")","v":{"$error":"#N/A"}},{"$f":"IF(INDIRECT(\"c\" & (VLOOKUP(Switch!$D$30,$F$2:$G$44,2,FALSE)+ROW()-2))=Switch!$D$30,INDIRECT(\"a\" & (VLOOKUP(Switch!$D$30,$F$2:$G$44,2,FALSE)+ROW()-2)),\"\")","v":{"$error":"#N/A"}},{"$f":"IF(INDIRECT(\"c\" & (VLOOKUP(Switch!$D$31,$F$2:$G$44,2,FALSE)+ROW()-2))=Switch!$D$31,INDIRECT(\"a\" & (VLOOKUP(Switch!$D$31,$F$2:$G$44,2,FALSE)+ROW()-2)),\"\")","v":{"$error":"#N/A"}},{"$f":"IF(INDIRECT(\"c\" & (VLOOKUP(Switch!$D$32,$F$2:$G$44,2,FALSE)+ROW()-2))=Switch!$D$32,INDIRECT(\"a\" & (VLOOKUP(Switch!$D$32,$F$2:$G$44,2,FALSE)+ROW()-2)),\"\")","v":{"$error":"#N/A"}},{"$f":"IF(INDIRECT(\"c\" & (VLOOKUP(Switch!$D$33,$F$2:$G$44,2,FALSE)+ROW()-2))=Switch!$D$33,INDIRECT(\"a\" & (VLOOKUP(Switch!$D$33,$F$2:$G$44,2,FALSE)+ROW()-2)),\"\")","v":{"$error":"#N/A"}},{"$f":"IF(INDIRECT(\"c\" & (VLOOKUP(Switch!$D$34,$F$2:$G$44,2,FALSE)+ROW()-2))=Switch!$D$34,INDIRECT(\"a\" & (VLOOKUP(Switch!$D$34,$F$2:$G$44,2,FALSE)+ROW()-2)),\"\")","v":{"$error":"#N/A"}},{"$f":"IF(INDIRECT(\"c\" & (VLOOKUP(Switch!$D$35,$F$2:$G$44,2,FALSE)+ROW()-2))=Switch!$D$35,INDIRECT(\"a\" & (VLOOKUP(Switch!$D$35,$F$2:$G$44,2,FALSE)+ROW()-2)),\"\")","v":{"$error":"#N/A"}},{"$f":"IF(INDIRECT(\"c\" & (VLOOKUP(Switch!$D$36,$F$2:$G$44,2,FALSE)+ROW()-2))=Switch!$D$36,INDIRECT(\"a\" & (VLOOKUP(Switch!$D$36,$F$2:$G$44,2,FALSE)+ROW()-2)),\"\")","v":{"$error":"#N/A"}},{"$f":"IF(INDIRECT(\"c\" & (VLOOKUP(Switch!$D$37,$F$2:$G$44,2,FALSE)+ROW()-2))=Switch!$D$37,INDIRECT(\"a\" & (VLOOKUP(Switch!$D$37,$F$2:$G$44,2,FALSE)+ROW()-2)),\"\")","v":{"$error":"#N/A"}},{"$f":"IF(INDIRECT(\"c\" & (VLOOKUP(Switch!$D$38,$F$2:$G$44,2,FALSE)+ROW()-2))=Switch!$D$38,INDIRECT(\"a\" & (VLOOKUP(Switch!$D$38,$F$2:$G$44,2,FALSE)+ROW()-2)),\"\")","v":{"$error":"#N/A"}},{"$f":"IF(INDIRECT(\"c\" & (VLOOKUP(Switch!$D$39,$F$2:$G$44,2,FALSE)+ROW()-2))=Switch!$D$39,INDIRECT(\"a\" & (VLOOKUP(Switch!$D$39,$F$2:$G$44,2,FALSE)+ROW()-2)),\"\")","v":{"$error":"#N/A"}},{"$f":"IF(INDIRECT(\"c\" & (VLOOKUP(Switch!$D$40,$F$2:$G$44,2,FALSE)+ROW()-2))=Switch!$D$40,INDIRECT(\"a\" & (VLOOKUP(Switch!$D$40,$F$2:$G$44,2,FALSE)+ROW()-2)),\"\")","v":{"$error":"#N/A"}},{"$f":"IF(INDIRECT(\"c\" & (VLOOKUP(Switch!$D$52,$F$2:$G$44,2,FALSE)+ROW()-2))=Switch!$D$52,INDIRECT(\"a\" & (VLOOKUP(Switch!$D$52,$F$2:$G$44,2,FALSE)+ROW()-2)),\"\")","v":{"$error":"#N/A"}},{"$f":"IF(INDIRECT(\"c\" & (VLOOKUP(Switch!$D$53,$F$2:$G$44,2,FALSE)+ROW()-2))=Switch!$D$53,INDIRECT(\"a\" & (VLOOKUP(Switch!$D$53,$F$2:$G$44,2,FALSE)+ROW()-2)),\"\")","v":{"$error":"#N/A"}},{"$f":"IF(INDIRECT(\"c\" & (VLOOKUP(Switch!$D$54,$F$2:$G$44,2,FALSE)+ROW()-2))=Switch!$D$54,INDIRECT(\"a\" & (VLOOKUP(Switch!$D$54,$F$2:$G$44,2,FALSE)+ROW()-2)),\"\")","v":{"$error":"#N/A"}},{"$f":"IF(INDIRECT(\"c\" & (VLOOKUP(Switch!$D$55,$F$2:$G$44,2,FALSE)+ROW()-2))=Switch!$D$55,INDIRECT(\"a\" & (VLOOKUP(Switch!$D$55,$F$2:$G$44,2,FALSE)+ROW()-2)),\"\")","v":{"$error":"#N/A"}},{"$f":"IF(INDIRECT(\"c\" & (VLOOKUP(Switch!$D$56,$F$2:$G$44,2,FALSE)+ROW()-2))=Switch!$D$56,INDIRECT(\"a\" & (VLOOKUP(Switch!$D$56,$F$2:$G$44,2,FALSE)+ROW()-2)),\"\")","v":{"$error":"#N/A"}},{"$f":"IF(INDIRECT(\"c\" & (VLOOKUP(Switch!$D$57,$F$2:$G$44,2,FALSE)+ROW()-2))=Switch!$D$57,INDIRECT(\"a\" & (VLOOKUP(Switch!$D$57,$F$2:$G$44,2,FALSE)+ROW()-2)),\"\")","v":{"$error":"#N/A"}},{"$f":"IF(INDIRECT(\"c\" & (VLOOKUP(Switch!$D$58,$F$2:$G$44,2,FALSE)+ROW()-2))=Switch!$D$58,INDIRECT(\"a\" & (VLOOKUP(Switch!$D$58,$F$2:$G$44,2,FALSE)+ROW()-2)),\"\")","v":{"$error":"#N/A"}},{"$f":"IF(INDIRECT(\"c\" & (VLOOKUP(Switch!$D$59,$F$2:$G$44,2,FALSE)+ROW()-2))=Switch!$D$59,INDIRECT(\"a\" & (VLOOKUP(Switch!$D$59,$F$2:$G$44,2,FALSE)+ROW()-2)),\"\")","v":{"$error":"#N/A"}},{"$f":"IF(INDIRECT(\"c\" & (VLOOKUP(Switch!$D$60,$F$2:$G$44,2,FALSE)+ROW()-2))=Switch!$D$60,INDIRECT(\"a\" & (VLOOKUP(Switch!$D$60,$F$2:$G$44,2,FALSE)+ROW()-2)),\"\")","v":{"$error":"#N/A"}},{"$f":"IF(INDIRECT(\"c\" & (VLOOKUP(Switch!$D$61,$F$2:$G$44,2,FALSE)+ROW()-2))=Switch!$D$61,INDIRECT(\"a\" & (VLOOKUP(Switch!$D$61,$F$2:$G$44,2,FALSE)+ROW()-2)),\"\")","v":{"$error":"#N/A"}},{"$f":"IF(INDIRECT(\"c\" & (VLOOKUP(Switch!$D$62,$F$2:$G$44,2,FALSE)+ROW()-2))=Switch!$D$62,INDIRECT(\"a\" & (VLOOKUP(Switch!$D$62,$F$2:$G$44,2,FALSE)+ROW()-2)),\"\")","v":{"$error":"#N/A"}},{"$f":"IF(INDIRECT(\"c\" & (VLOOKUP(Switch!$D$63,$F$2:$G$44,2,FALSE)+ROW()-2))=Switch!$D$63,INDIRECT(\"a\" & (VLOOKUP(Switch!$D$63,$F$2:$G$44,2,FALSE)+ROW()-2)),\"\")","v":{"$error":"#N/A"}},{"$f":"IF(INDIRECT(\"c\" & (VLOOKUP(Switch!$D$64,$F$2:$G$44,2,FALSE)+ROW()-2))=Switch!$D$64,INDIRECT(\"a\" & (VLOOKUP(Switch!$D$64,$F$2:$G$44,2,FALSE)+ROW()-2)),\"\")","v":{"$error":"#N/A"}},{"$f":"IF(INDIRECT(\"c\" & (VLOOKUP(Switch!$D$65,$F$2:$G$44,2,FALSE)+ROW()-2))=Switch!$D$65,INDIRECT(\"a\" & (VLOOKUP(Switch!$D$65,$F$2:$G$44,2,FALSE)+ROW()-2)),\"\")","v":{"$error":"#N/A"}},{"$f":"IF(INDIRECT(\"c\" & (VLOOKUP(Switch!$D$66,$F$2:$G$44,2,FALSE)+ROW()-2))=Switch!$D$66,INDIRECT(\"a\" & (VLOOKUP(Switch!$D$66,$F$2:$G$44,2,FALSE)+ROW()-2)),\"\")","v":{"$error":"#N/A"}}]
["Warwick BCI Enhanced Income Fund A","WMECA","Boutique Collective Investments (Pty) Ltd",{"$f":"ROW()","v":197},null,null,{"$f":"VLOOKUP(F197,$C$2:$D$637,2,FALSE)","v":{"$error":"#N/A"}},{"$f":"IF(INDIRECT(\"c\" & (VLOOKUP(Switch!$D$26,$F$2:$G$44,2,FALSE)+ROW()-2))=Switch!$D$26,INDIRECT(\"a\" & (VLOOKUP(Switch!$D$26,$F$2:$G$44,2,FALSE)+ROW()-2)),\"\")","v":{"$error":"#N/A"}},{"$f":"IF(INDIRECT(\"c\" & (VLOOKUP(Switch!$D$27,$F$2:$G$44,2,FALSE)+ROW()-2))=Switch!$D$27,INDIRECT(\"a\" & (VLOOKUP(Switch!$D$27,$F$2:$G$44,2,FALSE)+ROW()-2)),\"\")","v":{"$error":"#N/A"}},{"$f":"IF(INDIRECT(\"c\" & (VLOOKUP(Switch!$D$28,$F$2:$G$44,2,FALSE)+ROW()-2))=Switch!$D$28,INDIRECT(\"a\" & (VLOOKUP(Switch!$D$28,$F$2:$G$44,2,FALSE)+ROW()-2)),\"\")","v":{"$error":"#N/A"}},{"$f":"IF(INDIRECT(\"c\" & (VLOOKUP(Switch!$D$29,$F$2:$G$44,2,FALSE)+ROW()-2))=Switch!$D$29,INDIRECT(\"a\" & (VLOOKUP(Switch!$D$29,$F$2:$G$44,2,FALSE)+ROW()-2)),\"\")","v":{"$error":"#N/A"}},{"$f":"IF(INDIRECT(\"c\" & (VLOOKUP(Switch!$D$30,$F$2:$G$44,2,FALSE)+ROW()-2))=Switch!$D$30,INDIRECT(\"a\" & (VLOOKUP(Switch!$D$30,$F$2:$G$44,2,FALSE)+ROW()-2)),\"\")","v":{"$error":"#N/A"}},{"$f":"IF(INDIRECT(\"c\" & (VLOOKUP(Switch!$D$31,$F$2:$G$44,2,FALSE)+ROW()-2))=Switch!$D$31,INDIRECT(\"a\" & (VLOOKUP(Switch!$D$31,$F$2:$G$44,2,FALSE)+ROW()-2)),\"\")","v":{"$error":"#N/A"}},{"$f":"IF(INDIRECT(\"c\" & (VLOOKUP(Switch!$D$32,$F$2:$G$44,2,FALSE)+ROW()-2))=Switch!$D$32,INDIRECT(\"a\" & (VLOOKUP(Switch!$D$32,$F$2:$G$44,2,FALSE)+ROW()-2)),\"\")","v":{"$error":"#N/A"}},{"$f":"IF(INDIRECT(\"c\" & (VLOOKUP(Switch!$D$33,$F$2:$G$44,2,FALSE)+ROW()-2))=Switch!$D$33,INDIRECT(\"a\" & (VLOOKUP(Switch!$D$33,$F$2:$G$44,2,FALSE)+ROW()-2)),\"\")","v":{"$error":"#N/A"}},{"$f":"IF(INDIRECT(\"c\" & (VLOOKUP(Switch!$D$34,$F$2:$G$44,2,FALSE)+ROW()-2))=Switch!$D$34,INDIRECT(\"a\" & (VLOOKUP(Switch!$D$34,$F$2:$G$44,2,FALSE)+ROW()-2)),\"\")","v":{"$error":"#N/A"}},{"$f":"IF(INDIRECT(\"c\" & (VLOOKUP(Switch!$D$35,$F$2:$G$44,2,FALSE)+ROW()-2))=Switch!$D$35,INDIRECT(\"a\" & (VLOOKUP(Switch!$D$35,$F$2:$G$44,2,FALSE)+ROW()-2)),\"\")","v":{"$error":"#N/A"}},{"$f":"IF(INDIRECT(\"c\" & (VLOOKUP(Switch!$D$36,$F$2:$G$44,2,FALSE)+ROW()-2))=Switch!$D$36,INDIRECT(\"a\" & (VLOOKUP(Switch!$D$36,$F$2:$G$44,2,FALSE)+ROW()-2)),\"\")","v":{"$error":"#N/A"}},{"$f":"IF(INDIRECT(\"c\" & (VLOOKUP(Switch!$D$37,$F$2:$G$44,2,FALSE)+ROW()-2))=Switch!$D$37,INDIRECT(\"a\" & (VLOOKUP(Switch!$D$37,$F$2:$G$44,2,FALSE)+ROW()-2)),\"\")","v":{"$error":"#N/A"}},{"$f":"IF(INDIRECT(\"c\" & (VLOOKUP(Switch!$D$38,$F$2:$G$44,2,FALSE)+ROW()-2))=Switch!$D$38,INDIRECT(\"a\" & (VLOOKUP(Switch!$D$38,$F$2:$G$44,2,FALSE)+ROW()-2)),\"\")","v":{"$error":"#N/A"}},{"$f":"IF(INDIRECT(\"c\" & (VLOOKUP(Switch!$D$39,$F$2:$G$44,2,FALSE)+ROW()-2))=Switch!$D$39,INDIRECT(\"a\" & (VLOOKUP(Switch!$D$39,$F$2:$G$44,2,FALSE)+ROW()-2)),\"\")","v":{"$error":"#N/A"}},{"$f":"IF(INDIRECT(\"c\" & (VLOOKUP(Switch!$D$40,$F$2:$G$44,2,FALSE)+ROW()-2))=Switch!$D$40,INDIRECT(\"a\" & (VLOOKUP(Switch!$D$40,$F$2:$G$44,2,FALSE)+ROW()-2)),\"\")","v":{"$error":"#N/A"}},{"$f":"IF(INDIRECT(\"c\" & (VLOOKUP(Switch!$D$52,$F$2:$G$44,2,FALSE)+ROW()-2))=Switch!$D$52,INDIRECT(\"a\" & (VLOOKUP(Switch!$D$52,$F$2:$G$44,2,FALSE)+ROW()-2)),\"\")","v":{"$error":"#N/A"}},{"$f":"IF(INDIRECT(\"c\" & (VLOOKUP(Switch!$D$53,$F$2:$G$44,2,FALSE)+ROW()-2))=Switch!$D$53,INDIRECT(\"a\" & (VLOOKUP(Switch!$D$53,$F$2:$G$44,2,FALSE)+ROW()-2)),\"\")","v":{"$error":"#N/A"}},{"$f":"IF(INDIRECT(\"c\" & (VLOOKUP(Switch!$D$54,$F$2:$G$44,2,FALSE)+ROW()-2))=Switch!$D$54,INDIRECT(\"a\" & (VLOOKUP(Switch!$D$54,$F$2:$G$44,2,FALSE)+ROW()-2)),\"\")","v":{"$error":"#N/A"}},{"$f":"IF(INDIRECT(\"c\" & (VLOOKUP(Switch!$D$55,$F$2:$G$44,2,FALSE)+ROW()-2))=Switch!$D$55,INDIRECT(\"a\" & (VLOOKUP(Switch!$D$55,$F$2:$G$44,2,FALSE)+ROW()-2)),\"\")","v":{"$error":"#N/A"}},{"$f":"IF(INDIRECT(\"c\" & (VLOOKUP(Switch!$D$56,$F$2:$G$44,2,FALSE)+ROW()-2))=Switch!$D$56,INDIRECT(\"a\" & (VLOOKUP(Switch!$D$56,$F$2:$G$44,2,FALSE)+ROW()-2)),\"\")","v":{"$error":"#N/A"}},{"$f":"IF(INDIRECT(\"c\" & (VLOOKUP(Switch!$D$57,$F$2:$G$44,2,FALSE)+ROW()-2))=Switch!$D$57,INDIRECT(\"a\" & (VLOOKUP(Switch!$D$57,$F$2:$G$44,2,FALSE)+ROW()-2)),\"\")","v":{"$error":"#N/A"}},{"$f":"IF(INDIRECT(\"c\" & (VLOOKUP(Switch!$D$58,$F$2:$G$44,2,FALSE)+ROW()-2))=Switch!$D$58,INDIRECT(\"a\" & (VLOOKUP(Switch!$D$58,$F$2:$G$44,2,FALSE)+ROW()-2)),\"\")","v":{"$error":"#N/A"}},{"$f":"IF(INDIRECT(\"c\" & (VLOOKUP(Switch!$D$59,$F$2:$G$44,2,FALSE)+ROW()-2))=Switch!$D$59,INDIRECT(\"a\" & (VLOOKUP(Switch!$D$59,$F$2:$G$44,2,FALSE)+ROW()-2)),\"\")","v":{"$error":"#N/A"}},{"$f":"IF(INDIRECT(\"c\" & (VLOOKUP(Switch!$D$60,$F$2:$G$44,2,FALSE)+ROW()-2))=Switch!$D$60,INDIRECT(\"a\" & (VLOOKUP(Switch!$D$60,$F$2:$G$44,2,FALSE)+ROW()-2)),\"\")","v":{"$error":"#N/A"}},{"$f":"IF(INDIRECT(\"c\" & (VLOOKUP(Switch!$D$61,$F$2:$G$44,2,FALSE)+ROW()-2))=Switch!$D$61,INDIRECT(\"a\" & (VLOOKUP(Switch!$D$61,$F$2:$G$44,2,FALSE)+ROW()-2)),\"\")","v":{"$error":"#N/A"}},{"$f":"IF(INDIRECT(\"c\" & (VLOOKUP(Switch!$D$62,$F$2:$G$44,2,FALSE)+ROW()-2))=Switch!$D$62,INDIRECT(\"a\" & (VLOOKUP(Switch!$D$62,$F$2:$G$44,2,FALSE)+ROW()-2)),\"\")","v":{"$error":"#N/A"}},{"$f":"IF(INDIRECT(\"c\" & (VLOOKUP(Switch!$D$63,$F$2:$G$44,2,FALSE)+ROW()-2))=Switch!$D$63,INDIRECT(\"a\" & (VLOOKUP(Switch!$D$63,$F$2:$G$44,2,FALSE)+ROW()-2)),\"\")","v":{"$error":"#N/A"}},{"$f":"IF(INDIRECT(\"c\" & (VLOOKUP(Switch!$D$64,$F$2:$G$44,2,FALSE)+ROW()-2))=Switch!$D$64,INDIRECT(\"a\" & (VLOOKUP(Switch!$D$64,$F$2:$G$44,2,FALSE)+ROW()-2)),\"\")","v":{"$error":"#N/A"}},{"$f":"IF(INDIRECT(\"c\" & (VLOOKUP(Switch!$D$65,$F$2:$G$44,2,FALSE)+ROW()-2))=Switch!$D$65,INDIRECT(\"a\" & (VLOOKUP(Switch!$D$65,$F$2:$G$44,2,FALSE)+ROW()-2)),\"\")","v":{"$error":"#N/A"}},{"$f":"IF(INDIRECT(\"c\" & (VLOOKUP(Switch!$D$66,$F$2:$G$44,2,FALSE)+ROW()-2))=Switch!$D$66,INDIRECT(\"a\" & (VLOOKUP(Switch!$D$66,$F$2:$G$44,2,FALSE)+ROW()-2)),\"\")","v":{"$error":"#N/A"}}]
["Warwick BCI Equity Fund A","WMEFA","Boutique Collective Investments (Pty) Ltd",{"$f":"ROW()","v":198},null,null,{"$f":"VLOOKUP(F198,$C$2:$D$637,2,FALSE)","v":{"$error":"#N/A"}},{"$f":"IF(INDIRECT(\"c\" & (VLOOKUP(Switch!$D$26,$F$2:$G$44,2,FALSE)+ROW()-2))=Switch!$D$26,INDIRECT(\"a\" & (VLOOKUP(Switch!$D$26,$F$2:$G$44,2,FALSE)+ROW()-2)),\"\")","v":{"$error":"#N/A"}},{"$f":"IF(INDIRECT(\"c\" & (VLOOKUP(Switch!$D$27,$F$2:$G$44,2,FALSE)+ROW()-2))=Switch!$D$27,INDIRECT(\"a\" & (VLOOKUP(Switch!$D$27,$F$2:$G$44,2,FALSE)+ROW()-2)),\"\")","v":{"$error":"#N/A"}},{"$f":"IF(INDIRECT(\"c\" & (VLOOKUP(Switch!$D$28,$F$2:$G$44,2,FALSE)+ROW()-2))=Switch!$D$28,INDIRECT(\"a\" & (VLOOKUP(Switch!$D$28,$F$2:$G$44,2,FALSE)+ROW()-2)),\"\")","v":{"$error":"#N/A"}},{"$f":"IF(INDIRECT(\"c\" & (VLOOKUP(Switch!$D$29,$F$2:$G$44,2,FALSE)+ROW()-2))=Switch!$D$29,INDIRECT(\"a\" & (VLOOKUP(Switch!$D$29,$F$2:$G$44,2,FALSE)+ROW()-2)),\"\")","v":{"$error":"#N/A"}},{"$f":"IF(INDIRECT(\"c\" & (VLOOKUP(Switch!$D$30,$F$2:$G$44,2,FALSE)+ROW()-2))=Switch!$D$30,INDIRECT(\"a\" & (VLOOKUP(Switch!$D$30,$F$2:$G$44,2,FALSE)+ROW()-2)),\"\")","v":{"$error":"#N/A"}},{"$f":"IF(INDIRECT(\"c\" & (VLOOKUP(Switch!$D$31,$F$2:$G$44,2,FALSE)+ROW()-2))=Switch!$D$31,INDIRECT(\"a\" & (VLOOKUP(Switch!$D$31,$F$2:$G$44,2,FALSE)+ROW()-2)),\"\")","v":{"$error":"#N/A"}},{"$f":"IF(INDIRECT(\"c\" & (VLOOKUP(Switch!$D$32,$F$2:$G$44,2,FALSE)+ROW()-2))=Switch!$D$32,INDIRECT(\"a\" & (VLOOKUP(Switch!$D$32,$F$2:$G$44,2,FALSE)+ROW()-2)),\"\")","v":{"$error":"#N/A"}},{"$f":"IF(INDIRECT(\"c\" & (VLOOKUP(Switch!$D$33,$F$2:$G$44,2,FALSE)+ROW()-2))=Switch!$D$33,INDIRECT(\"a\" & (VLOOKUP(Switch!$D$33,$F$2:$G$44,2,FALSE)+ROW()-2)),\"\")","v":{"$error":"#N/A"}},{"$f":"IF(INDIRECT(\"c\" & (VLOOKUP(Switch!$D$34,$F$2:$G$44,2,FALSE)+ROW()-2))=Switch!$D$34,INDIRECT(\"a\" & (VLOOKUP(Switch!$D$34,$F$2:$G$44,2,FALSE)+ROW()-2)),\"\")","v":{"$error":"#N/A"}},{"$f":"IF(INDIRECT(\"c\" & (VLOOKUP(Switch!$D$35,$F$2:$G$44,2,FALSE)+ROW()-2))=Switch!$D$35,INDIRECT(\"a\" & (VLOOKUP(Switch!$D$35,$F$2:$G$44,2,FALSE)+ROW()-2)),\"\")","v":{"$error":"#N/A"}},{"$f":"IF(INDIRECT(\"c\" & (VLOOKUP(Switch!$D$36,$F$2:$G$44,2,FALSE)+ROW()-2))=Switch!$D$36,INDIRECT(\"a\" & (VLOOKUP(Switch!$D$36,$F$2:$G$44,2,FALSE)+ROW()-2)),\"\")","v":{"$error":"#N/A"}},{"$f":"IF(INDIRECT(\"c\" & (VLOOKUP(Switch!$D$37,$F$2:$G$44,2,FALSE)+ROW()-2))=Switch!$D$37,INDIRECT(\"a\" & (VLOOKUP(Switch!$D$37,$F$2:$G$44,2,FALSE)+ROW()-2)),\"\")","v":{"$error":"#N/A"}},{"$f":"IF(INDIRECT(\"c\" & (VLOOKUP(Switch!$D$38,$F$2:$G$44,2,FALSE)+ROW()-2))=Switch!$D$38,INDIRECT(\"a\" & (VLOOKUP(Switch!$D$38,$F$2:$G$44,2,FALSE)+ROW()-2)),\"\")","v":{"$error":"#N/A"}},{"$f":"IF(INDIRECT(\"c\" & (VLOOKUP(Switch!$D$39,$F$2:$G$44,2,FALSE)+ROW()-2))=Switch!$D$39,INDIRECT(\"a\" & (VLOOKUP(Switch!$D$39,$F$2:$G$44,2,FALSE)+ROW()-2)),\"\")","v":{"$error":"#N/A"}},{"$f":"IF(INDIRECT(\"c\" & (VLOOKUP(Switch!$D$40,$F$2:$G$44,2,FALSE)+ROW()-2))=Switch!$D$40,INDIRECT(\"a\" & (VLOOKUP(Switch!$D$40,$F$2:$G$44,2,FALSE)+ROW()-2)),\"\")","v":{"$error":"#N/A"}},{"$f":"IF(INDIRECT(\"c\" & (VLOOKUP(Switch!$D$52,$F$2:$G$44,2,FALSE)+ROW()-2))=Switch!$D$52,INDIRECT(\"a\" & (VLOOKUP(Switch!$D$52,$F$2:$G$44,2,FALSE)+ROW()-2)),\"\")","v":{"$error":"#N/A"}},{"$f":"IF(INDIRECT(\"c\" & (VLOOKUP(Switch!$D$53,$F$2:$G$44,2,FALSE)+ROW()-2))=Switch!$D$53,INDIRECT(\"a\" & (VLOOKUP(Switch!$D$53,$F$2:$G$44,2,FALSE)+ROW()-2)),\"\")","v":{"$error":"#N/A"}},{"$f":"IF(INDIRECT(\"c\" & (VLOOKUP(Switch!$D$54,$F$2:$G$44,2,FALSE)+ROW()-2))=Switch!$D$54,INDIRECT(\"a\" & (VLOOKUP(Switch!$D$54,$F$2:$G$44,2,FALSE)+ROW()-2)),\"\")","v":{"$error":"#N/A"}},{"$f":"IF(INDIRECT(\"c\" & (VLOOKUP(Switch!$D$55,$F$2:$G$44,2,FALSE)+ROW()-2))=Switch!$D$55,INDIRECT(\"a\" & (VLOOKUP(Switch!$D$55,$F$2:$G$44,2,FALSE)+ROW()-2)),\"\")","v":{"$error":"#N/A"}},{"$f":"IF(INDIRECT(\"c\" & (VLOOKUP(Switch!$D$56,$F$2:$G$44,2,FALSE)+ROW()-2))=Switch!$D$56,INDIRECT(\"a\" & (VLOOKUP(Switch!$D$56,$F$2:$G$44,2,FALSE)+ROW()-2)),\"\")","v":{"$error":"#N/A"}},{"$f":"IF(INDIRECT(\"c\" & (VLOOKUP(Switch!$D$57,$F$2:$G$44,2,FALSE)+ROW()-2))=Switch!$D$57,INDIRECT(\"a\" & (VLOOKUP(Switch!$D$57,$F$2:$G$44,2,FALSE)+ROW()-2)),\"\")","v":{"$error":"#N/A"}},{"$f":"IF(INDIRECT(\"c\" & (VLOOKUP(Switch!$D$58,$F$2:$G$44,2,FALSE)+ROW()-2))=Switch!$D$58,INDIRECT(\"a\" & (VLOOKUP(Switch!$D$58,$F$2:$G$44,2,FALSE)+ROW()-2)),\"\")","v":{"$error":"#N/A"}},{"$f":"IF(INDIRECT(\"c\" & (VLOOKUP(Switch!$D$59,$F$2:$G$44,2,FALSE)+ROW()-2))=Switch!$D$59,INDIRECT(\"a\" & (VLOOKUP(Switch!$D$59,$F$2:$G$44,2,FALSE)+ROW()-2)),\"\")","v":{"$error":"#N/A"}},{"$f":"IF(INDIRECT(\"c\" & (VLOOKUP(Switch!$D$60,$F$2:$G$44,2,FALSE)+ROW()-2))=Switch!$D$60,INDIRECT(\"a\" & (VLOOKUP(Switch!$D$60,$F$2:$G$44,2,FALSE)+ROW()-2)),\"\")","v":{"$error":"#N/A"}},{"$f":"IF(INDIRECT(\"c\" & (VLOOKUP(Switch!$D$61,$F$2:$G$44,2,FALSE)+ROW()-2))=Switch!$D$61,INDIRECT(\"a\" & (VLOOKUP(Switch!$D$61,$F$2:$G$44,2,FALSE)+ROW()-2)),\"\")","v":{"$error":"#N/A"}},{"$f":"IF(INDIRECT(\"c\" & (VLOOKUP(Switch!$D$62,$F$2:$G$44,2,FALSE)+ROW()-2))=Switch!$D$62,INDIRECT(\"a\" & (VLOOKUP(Switch!$D$62,$F$2:$G$44,2,FALSE)+ROW()-2)),\"\")","v":{"$error":"#N/A"}},{"$f":"IF(INDIRECT(\"c\" & (VLOOKUP(Switch!$D$63,$F$2:$G$44,2,FALSE)+ROW()-2))=Switch!$D$63,INDIRECT(\"a\" & (VLOOKUP(Switch!$D$63,$F$2:$G$44,2,FALSE)+ROW()-2)),\"\")","v":{"$error":"#N/A"}},{"$f":"IF(INDIRECT(\"c\" & (VLOOKUP(Switch!$D$64,$F$2:$G$44,2,FALSE)+ROW()-2))=Switch!$D$64,INDIRECT(\"a\" & (VLOOKUP(Switch!$D$64,$F$2:$G$44,2,FALSE)+ROW()-2)),\"\")","v":{"$error":"#N/A"}},{"$f":"IF(INDIRECT(\"c\" & (VLOOKUP(Switch!$D$65,$F$2:$G$44,2,FALSE)+ROW()-2))=Switch!$D$65,INDIRECT(\"a\" & (VLOOKUP(Switch!$D$65,$F$2:$G$44,2,FALSE)+ROW()-2)),\"\")","v":{"$error":"#N/A"}},{"$f":"IF(INDIRECT(\"c\" & (VLOOKUP(Switch!$D$66,$F$2:$G$44,2,FALSE)+ROW()-2))=Switch!$D$66,INDIRECT(\"a\" & (VLOOKUP(Switch!$D$66,$F$2:$G$44,2,FALSE)+ROW()-2)),\"\")","v":{"$error":"#N/A"}}]
["Warwick BCI International Fund of Funds A","WMICA","Boutique Collective Investments (Pty) Ltd",{"$f":"ROW()","v":199},null,null,{"$f":"VLOOKUP(F199,$C$2:$D$637,2,FALSE)","v":{"$error":"#N/A"}},{"$f":"IF(INDIRECT(\"c\" & (VLOOKUP(Switch!$D$26,$F$2:$G$44,2,FALSE)+ROW()-2))=Switch!$D$26,INDIRECT(\"a\" & (VLOOKUP(Switch!$D$26,$F$2:$G$44,2,FALSE)+ROW()-2)),\"\")","v":{"$error":"#N/A"}},{"$f":"IF(INDIRECT(\"c\" & (VLOOKUP(Switch!$D$27,$F$2:$G$44,2,FALSE)+ROW()-2))=Switch!$D$27,INDIRECT(\"a\" & (VLOOKUP(Switch!$D$27,$F$2:$G$44,2,FALSE)+ROW()-2)),\"\")","v":{"$error":"#N/A"}},{"$f":"IF(INDIRECT(\"c\" & (VLOOKUP(Switch!$D$28,$F$2:$G$44,2,FALSE)+ROW()-2))=Switch!$D$28,INDIRECT(\"a\" & (VLOOKUP(Switch!$D$28,$F$2:$G$44,2,FALSE)+ROW()-2)),\"\")","v":{"$error":"#N/A"}},{"$f":"IF(INDIRECT(\"c\" & (VLOOKUP(Switch!$D$29,$F$2:$G$44,2,FALSE)+ROW()-2))=Switch!$D$29,INDIRECT(\"a\" & (VLOOKUP(Switch!$D$29,$F$2:$G$44,2,FALSE)+ROW()-2)),\"\")","v":{"$error":"#N/A"}},{"$f":"IF(INDIRECT(\"c\" & (VLOOKUP(Switch!$D$30,$F$2:$G$44,2,FALSE)+ROW()-2))=Switch!$D$30,INDIRECT(\"a\" & (VLOOKUP(Switch!$D$30,$F$2:$G$44,2,FALSE)+ROW()-2)),\"\")","v":{"$error":"#N/A"}},{"$f":"IF(INDIRECT(\"c\" & (VLOOKUP(Switch!$D$31,$F$2:$G$44,2,FALSE)+ROW()-2))=Switch!$D$31,INDIRECT(\"a\" & (VLOOKUP(Switch!$D$31,$F$2:$G$44,2,FALSE)+ROW()-2)),\"\")","v":{"$error":"#N/A"}},{"$f":"IF(INDIRECT(\"c\" & (VLOOKUP(Switch!$D$32,$F$2:$G$44,2,FALSE)+ROW()-2))=Switch!$D$32,INDIRECT(\"a\" & (VLOOKUP(Switch!$D$32,$F$2:$G$44,2,FALSE)+ROW()-2)),\"\")","v":{"$error":"#N/A"}},{"$f":"IF(INDIRECT(\"c\" & (VLOOKUP(Switch!$D$33,$F$2:$G$44,2,FALSE)+ROW()-2))=Switch!$D$33,INDIRECT(\"a\" & (VLOOKUP(Switch!$D$33,$F$2:$G$44,2,FALSE)+ROW()-2)),\"\")","v":{"$error":"#N/A"}},{"$f":"IF(INDIRECT(\"c\" & (VLOOKUP(Switch!$D$34,$F$2:$G$44,2,FALSE)+ROW()-2))=Switch!$D$34,INDIRECT(\"a\" & (VLOOKUP(Switch!$D$34,$F$2:$G$44,2,FALSE)+ROW()-2)),\"\")","v":{"$error":"#N/A"}},{"$f":"IF(INDIRECT(\"c\" & (VLOOKUP(Switch!$D$35,$F$2:$G$44,2,FALSE)+ROW()-2))=Switch!$D$35,INDIRECT(\"a\" & (VLOOKUP(Switch!$D$35,$F$2:$G$44,2,FALSE)+ROW()-2)),\"\")","v":{"$error":"#N/A"}},{"$f":"IF(INDIRECT(\"c\" & (VLOOKUP(Switch!$D$36,$F$2:$G$44,2,FALSE)+ROW()-2))=Switch!$D$36,INDIRECT(\"a\" & (VLOOKUP(Switch!$D$36,$F$2:$G$44,2,FALSE)+ROW()-2)),\"\")","v":{"$error":"#N/A"}},{"$f":"IF(INDIRECT(\"c\" & (VLOOKUP(Switch!$D$37,$F$2:$G$44,2,FALSE)+ROW()-2))=Switch!$D$37,INDIRECT(\"a\" & (VLOOKUP(Switch!$D$37,$F$2:$G$44,2,FALSE)+ROW()-2)),\"\")","v":{"$error":"#N/A"}},{"$f":"IF(INDIRECT(\"c\" & (VLOOKUP(Switch!$D$38,$F$2:$G$44,2,FALSE)+ROW()-2))=Switch!$D$38,INDIRECT(\"a\" & (VLOOKUP(Switch!$D$38,$F$2:$G$44,2,FALSE)+ROW()-2)),\"\")","v":{"$error":"#N/A"}},{"$f":"IF(INDIRECT(\"c\" & (VLOOKUP(Switch!$D$39,$F$2:$G$44,2,FALSE)+ROW()-2))=Switch!$D$39,INDIRECT(\"a\" & (VLOOKUP(Switch!$D$39,$F$2:$G$44,2,FALSE)+ROW()-2)),\"\")","v":{"$error":"#N/A"}},{"$f":"IF(INDIRECT(\"c\" & (VLOOKUP(Switch!$D$40,$F$2:$G$44,2,FALSE)+ROW()-2))=Switch!$D$40,INDIRECT(\"a\" & (VLOOKUP(Switch!$D$40,$F$2:$G$44,2,FALSE)+ROW()-2)),\"\")","v":{"$error":"#N/A"}},{"$f":"IF(INDIRECT(\"c\" & (VLOOKUP(Switch!$D$52,$F$2:$G$44,2,FALSE)+ROW()-2))=Switch!$D$52,INDIRECT(\"a\" & (VLOOKUP(Switch!$D$52,$F$2:$G$44,2,FALSE)+ROW()-2)),\"\")","v":{"$error":"#N/A"}},{"$f":"IF(INDIRECT(\"c\" & (VLOOKUP(Switch!$D$53,$F$2:$G$44,2,FALSE)+ROW()-2))=Switch!$D$53,INDIRECT(\"a\" & (VLOOKUP(Switch!$D$53,$F$2:$G$44,2,FALSE)+ROW()-2)),\"\")","v":{"$error":"#N/A"}},{"$f":"IF(INDIRECT(\"c\" & (VLOOKUP(Switch!$D$54,$F$2:$G$44,2,FALSE)+ROW()-2))=Switch!$D$54,INDIRECT(\"a\" & (VLOOKUP(Switch!$D$54,$F$2:$G$44,2,FALSE)+ROW()-2)),\"\")","v":{"$error":"#N/A"}},{"$f":"IF(INDIRECT(\"c\" & (VLOOKUP(Switch!$D$55,$F$2:$G$44,2,FALSE)+ROW()-2))=Switch!$D$55,INDIRECT(\"a\" & (VLOOKUP(Switch!$D$55,$F$2:$G$44,2,FALSE)+ROW()-2)),\"\")","v":{"$error":"#N/A"}},{"$f":"IF(INDIRECT(\"c\" & (VLOOKUP(Switch!$D$56,$F$2:$G$44,2,FALSE)+ROW()-2))=Switch!$D$56,INDIRECT(\"a\" & (VLOOKUP(Switch!$D$56,$F$2:$G$44,2,FALSE)+ROW()-2)),\"\")","v":{"$error":"#N/A"}},{"$f":"IF(INDIRECT(\"c\" & (VLOOKUP(Switch!$D$57,$F$2:$G$44,2,FALSE)+ROW()-2))=Switch!$D$57,INDIRECT(\"a\" & (VLOOKUP(Switch!$D$57,$F$2:$G$44,2,FALSE)+ROW()-2)),\"\")","v":{"$error":"#N/A"}},{"$f":"IF(INDIRECT(\"c\" & (VLOOKUP(Switch!$D$58,$F$2:$G$44,2,FALSE)+ROW()-2))=Switch!$D$58,INDIRECT(\"a\" & (VLOOKUP(Switch!$D$58,$F$2:$G$44,2,FALSE)+ROW()-2)),\"\")","v":{"$error":"#N/A"}},{"$f":"IF(INDIRECT(\"c\" & (VLOOKUP(Switch!$D$59,$F$2:$G$44,2,FALSE)+ROW()-2))=Switch!$D$59,INDIRECT(\"a\" & (VLOOKUP(Switch!$D$59,$F$2:$G$44,2,FALSE)+ROW()-2)),\"\")","v":{"$error":"#N/A"}},{"$f":"IF(INDIRECT(\"c\" & (VLOOKUP(Switch!$D$60,$F$2:$G$44,2,FALSE)+ROW()-2))=Switch!$D$60,INDIRECT(\"a\" & (VLOOKUP(Switch!$D$60,$F$2:$G$44,2,FALSE)+ROW()-2)),\"\")","v":{"$error":"#N/A"}},{"$f":"IF(INDIRECT(\"c\" & (VLOOKUP(Switch!$D$61,$F$2:$G$44,2,FALSE)+ROW()-2))=Switch!$D$61,INDIRECT(\"a\" & (VLOOKUP(Switch!$D$61,$F$2:$G$44,2,FALSE)+ROW()-2)),\"\")","v":{"$error":"#N/A"}},{"$f":"IF(INDIRECT(\"c\" & (VLOOKUP(Switch!$D$62,$F$2:$G$44,2,FALSE)+ROW()-2))=Switch!$D$62,INDIRECT(\"a\" & (VLOOKUP(Switch!$D$62,$F$2:$G$44,2,FALSE)+ROW()-2)),\"\")","v":{"$error":"#N/A"}},{"$f":"IF(INDIRECT(\"c\" & (VLOOKUP(Switch!$D$63,$F$2:$G$44,2,FALSE)+ROW()-2))=Switch!$D$63,INDIRECT(\"a\" & (VLOOKUP(Switch!$D$63,$F$2:$G$44,2,FALSE)+ROW()-2)),\"\")","v":{"$error":"#N/A"}},{"$f":"IF(INDIRECT(\"c\" & (VLOOKUP(Switch!$D$64,$F$2:$G$44,2,FALSE)+ROW()-2))=Switch!$D$64,INDIRECT(\"a\" & (VLOOKUP(Switch!$D$64,$F$2:$G$44,2,FALSE)+ROW()-2)),\"\")","v":{"$error":"#N/A"}},{"$f":"IF(INDIRECT(\"c\" & (VLOOKUP(Switch!$D$65,$F$2:$G$44,2,FALSE)+ROW()-2))=Switch!$D$65,INDIRECT(\"a\" & (VLOOKUP(Switch!$D$65,$F$2:$G$44,2,FALSE)+ROW()-2)),\"\")","v":{"$error":"#N/A"}},{"$f":"IF(INDIRECT(\"c\" & (VLOOKUP(Switch!$D$66,$F$2:$G$44,2,FALSE)+ROW()-2))=Switch!$D$66,INDIRECT(\"a\" & (VLOOKUP(Switch!$D$66,$F$2:$G$44,2,FALSE)+ROW()-2)),\"\")","v":{"$error":"#N/A"}}]
["Warwick BCI Property Fund","WMPCA","Boutique Collective Investments (Pty) Ltd",{"$f":"ROW()","v":200},null,null,{"$f":"VLOOKUP(F200,$C$2:$D$637,2,FALSE)","v":{"$error":"#N/A"}},{"$f":"IF(INDIRECT(\"c\" & (VLOOKUP(Switch!$D$26,$F$2:$G$44,2,FALSE)+ROW()-2))=Switch!$D$26,INDIRECT(\"a\" & (VLOOKUP(Switch!$D$26,$F$2:$G$44,2,FALSE)+ROW()-2)),\"\")","v":{"$error":"#N/A"}},{"$f":"IF(INDIRECT(\"c\" & (VLOOKUP(Switch!$D$27,$F$2:$G$44,2,FALSE)+ROW()-2))=Switch!$D$27,INDIRECT(\"a\" & (VLOOKUP(Switch!$D$27,$F$2:$G$44,2,FALSE)+ROW()-2)),\"\")","v":{"$error":"#N/A"}},{"$f":"IF(INDIRECT(\"c\" & (VLOOKUP(Switch!$D$28,$F$2:$G$44,2,FALSE)+ROW()-2))=Switch!$D$28,INDIRECT(\"a\" & (VLOOKUP(Switch!$D$28,$F$2:$G$44,2,FALSE)+ROW()-2)),\"\")","v":{"$error":"#N/A"}},{"$f":"IF(INDIRECT(\"c\" & (VLOOKUP(Switch!$D$29,$F$2:$G$44,2,FALSE)+ROW()-2))=Switch!$D$29,INDIRECT(\"a\" & (VLOOKUP(Switch!$D$29,$F$2:$G$44,2,FALSE)+ROW()-2)),\"\")","v":{"$error":"#N/A"}},{"$f":"IF(INDIRECT(\"c\" & (VLOOKUP(Switch!$D$30,$F$2:$G$44,2,FALSE)+ROW()-2))=Switch!$D$30,INDIRECT(\"a\" & (VLOOKUP(Switch!$D$30,$F$2:$G$44,2,FALSE)+ROW()-2)),\"\")","v":{"$error":"#N/A"}},{"$f":"IF(INDIRECT(\"c\" & (VLOOKUP(Switch!$D$31,$F$2:$G$44,2,FALSE)+ROW()-2))=Switch!$D$31,INDIRECT(\"a\" & (VLOOKUP(Switch!$D$31,$F$2:$G$44,2,FALSE)+ROW()-2)),\"\")","v":{"$error":"#N/A"}},{"$f":"IF(INDIRECT(\"c\" & (VLOOKUP(Switch!$D$32,$F$2:$G$44,2,FALSE)+ROW()-2))=Switch!$D$32,INDIRECT(\"a\" & (VLOOKUP(Switch!$D$32,$F$2:$G$44,2,FALSE)+ROW()-2)),\"\")","v":{"$error":"#N/A"}},{"$f":"IF(INDIRECT(\"c\" & (VLOOKUP(Switch!$D$33,$F$2:$G$44,2,FALSE)+ROW()-2))=Switch!$D$33,INDIRECT(\"a\" & (VLOOKUP(Switch!$D$33,$F$2:$G$44,2,FALSE)+ROW()-2)),\"\")","v":{"$error":"#N/A"}},{"$f":"IF(INDIRECT(\"c\" & (VLOOKUP(Switch!$D$34,$F$2:$G$44,2,FALSE)+ROW()-2))=Switch!$D$34,INDIRECT(\"a\" & (VLOOKUP(Switch!$D$34,$F$2:$G$44,2,FALSE)+ROW()-2)),\"\")","v":{"$error":"#N/A"}},{"$f":"IF(INDIRECT(\"c\" & (VLOOKUP(Switch!$D$35,$F$2:$G$44,2,FALSE)+ROW()-2))=Switch!$D$35,INDIRECT(\"a\" & (VLOOKUP(Switch!$D$35,$F$2:$G$44,2,FALSE)+ROW()-2)),\"\")","v":{"$error":"#N/A"}},{"$f":"IF(INDIRECT(\"c\" & (VLOOKUP(Switch!$D$36,$F$2:$G$44,2,FALSE)+ROW()-2))=Switch!$D$36,INDIRECT(\"a\" & (VLOOKUP(Switch!$D$36,$F$2:$G$44,2,FALSE)+ROW()-2)),\"\")","v":{"$error":"#N/A"}},{"$f":"IF(INDIRECT(\"c\" & (VLOOKUP(Switch!$D$37,$F$2:$G$44,2,FALSE)+ROW()-2))=Switch!$D$37,INDIRECT(\"a\" & (VLOOKUP(Switch!$D$37,$F$2:$G$44,2,FALSE)+ROW()-2)),\"\")","v":{"$error":"#N/A"}},{"$f":"IF(INDIRECT(\"c\" & (VLOOKUP(Switch!$D$38,$F$2:$G$44,2,FALSE)+ROW()-2))=Switch!$D$38,INDIRECT(\"a\" & (VLOOKUP(Switch!$D$38,$F$2:$G$44,2,FALSE)+ROW()-2)),\"\")","v":{"$error":"#N/A"}},{"$f":"IF(INDIRECT(\"c\" & (VLOOKUP(Switch!$D$39,$F$2:$G$44,2,FALSE)+ROW()-2))=Switch!$D$39,INDIRECT(\"a\" & (VLOOKUP(Switch!$D$39,$F$2:$G$44,2,FALSE)+ROW()-2)),\"\")","v":{"$error":"#N/A"}},{"$f":"IF(INDIRECT(\"c\" & (VLOOKUP(Switch!$D$40,$F$2:$G$44,2,FALSE)+ROW()-2))=Switch!$D$40,INDIRECT(\"a\" & (VLOOKUP(Switch!$D$40,$F$2:$G$44,2,FALSE)+ROW()-2)),\"\")","v":{"$error":"#N/A"}},{"$f":"IF(INDIRECT(\"c\" & (VLOOKUP(Switch!$D$52,$F$2:$G$44,2,FALSE)+ROW()-2))=Switch!$D$52,INDIRECT(\"a\" & (VLOOKUP(Switch!$D$52,$F$2:$G$44,2,FALSE)+ROW()-2)),\"\")","v":{"$error":"#N/A"}},{"$f":"IF(INDIRECT(\"c\" & (VLOOKUP(Switch!$D$53,$F$2:$G$44,2,FALSE)+ROW()-2))=Switch!$D$53,INDIRECT(\"a\" & (VLOOKUP(Switch!$D$53,$F$2:$G$44,2,FALSE)+ROW()-2)),\"\")","v":{"$error":"#N/A"}},{"$f":"IF(INDIRECT(\"c\" & (VLOOKUP(Switch!$D$54,$F$2:$G$44,2,FALSE)+ROW()-2))=Switch!$D$54,INDIRECT(\"a\" & (VLOOKUP(Switch!$D$54,$F$2:$G$44,2,FALSE)+ROW()-2)),\"\")","v":{"$error":"#N/A"}},{"$f":"IF(INDIRECT(\"c\" & (VLOOKUP(Switch!$D$55,$F$2:$G$44,2,FALSE)+ROW()-2))=Switch!$D$55,INDIRECT(\"a\" & (VLOOKUP(Switch!$D$55,$F$2:$G$44,2,FALSE)+ROW()-2)),\"\")","v":{"$error":"#N/A"}},{"$f":"IF(INDIRECT(\"c\" & (VLOOKUP(Switch!$D$56,$F$2:$G$44,2,FALSE)+ROW()-2))=Switch!$D$56,INDIRECT(\"a\" & (VLOOKUP(Switch!$D$56,$F$2:$G$44,2,FALSE)+ROW()-2)),\"\")","v":{"$error":"#N/A"}},{"$f":"IF(INDIRECT(\"c\" & (VLOOKUP(Switch!$D$57,$F$2:$G$44,2,FALSE)+ROW()-2))=Switch!$D$57,INDIRECT(\"a\" & (VLOOKUP(Switch!$D$57,$F$2:$G$44,2,FALSE)+ROW()-2)),\"\")","v":{"$error":"#N/A"}},{"$f":"IF(INDIRECT(\"c\" & (VLOOKUP(Switch!$D$58,$F$2:$G$44,2,FALSE)+ROW()-2))=Switch!$D$58,INDIRECT(\"a\" & (VLOOKUP(Switch!$D$58,$F$2:$G$44,2,FALSE)+ROW()-2)),\"\")","v":{"$error":"#N/A"}},{"$f":"IF(INDIRECT(\"c\" & (VLOOKUP(Switch!$D$59,$F$2:$G$44,2,FALSE)+ROW()-2))=Switch!$D$59,INDIRECT(\"a\" & (VLOOKUP(Switch!$D$59,$F$2:$G$44,2,FALSE)+ROW()-2)),\"\")","v":{"$error":"#N/A"}},{"$f":"IF(INDIRECT(\"c\" & (VLOOKUP(Switch!$D$60,$F$2:$G$44,2,FALSE)+ROW()-2))=Switch!$D$60,INDIRECT(\"a\" & (VLOOKUP(Switch!$D$60,$F$2:$G$44,2,FALSE)+ROW()-2)),\"\")","v":{"$error":"#N/A"}},{"$f":"IF(INDIRECT(\"c\" & (VLOOKUP(Switch!$D$61,$F$2:$G$44,2,FALSE)+ROW()-2))=Switch!$D$61,INDIRECT(\"a\" & (VLOOKUP(Switch!$D$61,$F$2:$G$44,2,FALSE)+ROW()-2)),\"\")","v":{"$error":"#N/A"}},{"$f":"IF(INDIRECT(\"c\" & (VLOOKUP(Switch!$D$62,$F$2:$G$44,2,FALSE)+ROW()-2))=Switch!$D$62,INDIRECT(\"a\" & (VLOOKUP(Switch!$D$62,$F$2:$G$44,2,FALSE)+ROW()-2)),\"\")","v":{"$error":"#N/A"}},{"$f":"IF(INDIRECT(\"c\" & (VLOOKUP(Switch!$D$63,$F$2:$G$44,2,FALSE)+ROW()-2))=Switch!$D$63,INDIRECT(\"a\" & (VLOOKUP(Switch!$D$63,$F$2:$G$44,2,FALSE)+ROW()-2)),\"\")","v":{"$error":"#N/A"}},{"$f":"IF(INDIRECT(\"c\" & (VLOOKUP(Switch!$D$64,$F$2:$G$44,2,FALSE)+ROW()-2))=Switch!$D$64,INDIRECT(\"a\" & (VLOOKUP(Switch!$D$64,$F$2:$G$44,2,FALSE)+ROW()-2)),\"\")","v":{"$error":"#N/A"}},{"$f":"IF(INDIRECT(\"c\" & (VLOOKUP(Switch!$D$65,$F$2:$G$44,2,FALSE)+ROW()-2))=Switch!$D$65,INDIRECT(\"a\" & (VLOOKUP(Switch!$D$65,$F$2:$G$44,2,FALSE)+ROW()-2)),\"\")","v":{"$error":"#N/A"}},{"$f":"IF(INDIRECT(\"c\" & (VLOOKUP(Switch!$D$66,$F$2:$G$44,2,FALSE)+ROW()-2))=Switch!$D$66,INDIRECT(\"a\" & (VLOOKUP(Switch!$D$66,$F$2:$G$44,2,FALSE)+ROW()-2)),\"\")","v":{"$error":"#N/A"}}]
["Bridge Balanced Fund C","GBFCC","Bridge Collective Investments (Pty) Ltd",{"$f":"ROW()","v":201},null,null,{"$f":"VLOOKUP(F201,$C$2:$D$637,2,FALSE)","v":{"$error":"#N/A"}},{"$f":"IF(INDIRECT(\"c\" & (VLOOKUP(Switch!$D$26,$F$2:$G$44,2,FALSE)+ROW()-2))=Switch!$D$26,INDIRECT(\"a\" & (VLOOKUP(Switch!$D$26,$F$2:$G$44,2,FALSE)+ROW()-2)),\"\")","v":{"$error":"#N/A"}},{"$f":"IF(INDIRECT(\"c\" & (VLOOKUP(Switch!$D$27,$F$2:$G$44,2,FALSE)+ROW()-2))=Switch!$D$27,INDIRECT(\"a\" & (VLOOKUP(Switch!$D$27,$F$2:$G$44,2,FALSE)+ROW()-2)),\"\")","v":{"$error":"#N/A"}},{"$f":"IF(INDIRECT(\"c\" & (VLOOKUP(Switch!$D$28,$F$2:$G$44,2,FALSE)+ROW()-2))=Switch!$D$28,INDIRECT(\"a\" & (VLOOKUP(Switch!$D$28,$F$2:$G$44,2,FALSE)+ROW()-2)),\"\")","v":{"$error":"#N/A"}},{"$f":"IF(INDIRECT(\"c\" & (VLOOKUP(Switch!$D$29,$F$2:$G$44,2,FALSE)+ROW()-2))=Switch!$D$29,INDIRECT(\"a\" & (VLOOKUP(Switch!$D$29,$F$2:$G$44,2,FALSE)+ROW()-2)),\"\")","v":{"$error":"#N/A"}},{"$f":"IF(INDIRECT(\"c\" & (VLOOKUP(Switch!$D$30,$F$2:$G$44,2,FALSE)+ROW()-2))=Switch!$D$30,INDIRECT(\"a\" & (VLOOKUP(Switch!$D$30,$F$2:$G$44,2,FALSE)+ROW()-2)),\"\")","v":{"$error":"#N/A"}},{"$f":"IF(INDIRECT(\"c\" & (VLOOKUP(Switch!$D$31,$F$2:$G$44,2,FALSE)+ROW()-2))=Switch!$D$31,INDIRECT(\"a\" & (VLOOKUP(Switch!$D$31,$F$2:$G$44,2,FALSE)+ROW()-2)),\"\")","v":{"$error":"#N/A"}},{"$f":"IF(INDIRECT(\"c\" & (VLOOKUP(Switch!$D$32,$F$2:$G$44,2,FALSE)+ROW()-2))=Switch!$D$32,INDIRECT(\"a\" & (VLOOKUP(Switch!$D$32,$F$2:$G$44,2,FALSE)+ROW()-2)),\"\")","v":{"$error":"#N/A"}},{"$f":"IF(INDIRECT(\"c\" & (VLOOKUP(Switch!$D$33,$F$2:$G$44,2,FALSE)+ROW()-2))=Switch!$D$33,INDIRECT(\"a\" & (VLOOKUP(Switch!$D$33,$F$2:$G$44,2,FALSE)+ROW()-2)),\"\")","v":{"$error":"#N/A"}},{"$f":"IF(INDIRECT(\"c\" & (VLOOKUP(Switch!$D$34,$F$2:$G$44,2,FALSE)+ROW()-2))=Switch!$D$34,INDIRECT(\"a\" & (VLOOKUP(Switch!$D$34,$F$2:$G$44,2,FALSE)+ROW()-2)),\"\")","v":{"$error":"#N/A"}},{"$f":"IF(INDIRECT(\"c\" & (VLOOKUP(Switch!$D$35,$F$2:$G$44,2,FALSE)+ROW()-2))=Switch!$D$35,INDIRECT(\"a\" & (VLOOKUP(Switch!$D$35,$F$2:$G$44,2,FALSE)+ROW()-2)),\"\")","v":{"$error":"#N/A"}},{"$f":"IF(INDIRECT(\"c\" & (VLOOKUP(Switch!$D$36,$F$2:$G$44,2,FALSE)+ROW()-2))=Switch!$D$36,INDIRECT(\"a\" & (VLOOKUP(Switch!$D$36,$F$2:$G$44,2,FALSE)+ROW()-2)),\"\")","v":{"$error":"#N/A"}},{"$f":"IF(INDIRECT(\"c\" & (VLOOKUP(Switch!$D$37,$F$2:$G$44,2,FALSE)+ROW()-2))=Switch!$D$37,INDIRECT(\"a\" & (VLOOKUP(Switch!$D$37,$F$2:$G$44,2,FALSE)+ROW()-2)),\"\")","v":{"$error":"#N/A"}},{"$f":"IF(INDIRECT(\"c\" & (VLOOKUP(Switch!$D$38,$F$2:$G$44,2,FALSE)+ROW()-2))=Switch!$D$38,INDIRECT(\"a\" & (VLOOKUP(Switch!$D$38,$F$2:$G$44,2,FALSE)+ROW()-2)),\"\")","v":{"$error":"#N/A"}},{"$f":"IF(INDIRECT(\"c\" & (VLOOKUP(Switch!$D$39,$F$2:$G$44,2,FALSE)+ROW()-2))=Switch!$D$39,INDIRECT(\"a\" & (VLOOKUP(Switch!$D$39,$F$2:$G$44,2,FALSE)+ROW()-2)),\"\")","v":{"$error":"#N/A"}},{"$f":"IF(INDIRECT(\"c\" & (VLOOKUP(Switch!$D$40,$F$2:$G$44,2,FALSE)+ROW()-2))=Switch!$D$40,INDIRECT(\"a\" & (VLOOKUP(Switch!$D$40,$F$2:$G$44,2,FALSE)+ROW()-2)),\"\")","v":{"$error":"#N/A"}},{"$f":"IF(INDIRECT(\"c\" & (VLOOKUP(Switch!$D$52,$F$2:$G$44,2,FALSE)+ROW()-2))=Switch!$D$52,INDIRECT(\"a\" & (VLOOKUP(Switch!$D$52,$F$2:$G$44,2,FALSE)+ROW()-2)),\"\")","v":{"$error":"#N/A"}},{"$f":"IF(INDIRECT(\"c\" & (VLOOKUP(Switch!$D$53,$F$2:$G$44,2,FALSE)+ROW()-2))=Switch!$D$53,INDIRECT(\"a\" & (VLOOKUP(Switch!$D$53,$F$2:$G$44,2,FALSE)+ROW()-2)),\"\")","v":{"$error":"#N/A"}},{"$f":"IF(INDIRECT(\"c\" & (VLOOKUP(Switch!$D$54,$F$2:$G$44,2,FALSE)+ROW()-2))=Switch!$D$54,INDIRECT(\"a\" & (VLOOKUP(Switch!$D$54,$F$2:$G$44,2,FALSE)+ROW()-2)),\"\")","v":{"$error":"#N/A"}},{"$f":"IF(INDIRECT(\"c\" & (VLOOKUP(Switch!$D$55,$F$2:$G$44,2,FALSE)+ROW()-2))=Switch!$D$55,INDIRECT(\"a\" & (VLOOKUP(Switch!$D$55,$F$2:$G$44,2,FALSE)+ROW()-2)),\"\")","v":{"$error":"#N/A"}},{"$f":"IF(INDIRECT(\"c\" & (VLOOKUP(Switch!$D$56,$F$2:$G$44,2,FALSE)+ROW()-2))=Switch!$D$56,INDIRECT(\"a\" & (VLOOKUP(Switch!$D$56,$F$2:$G$44,2,FALSE)+ROW()-2)),\"\")","v":{"$error":"#N/A"}},{"$f":"IF(INDIRECT(\"c\" & (VLOOKUP(Switch!$D$57,$F$2:$G$44,2,FALSE)+ROW()-2))=Switch!$D$57,INDIRECT(\"a\" & (VLOOKUP(Switch!$D$57,$F$2:$G$44,2,FALSE)+ROW()-2)),\"\")","v":{"$error":"#N/A"}},{"$f":"IF(INDIRECT(\"c\" & (VLOOKUP(Switch!$D$58,$F$2:$G$44,2,FALSE)+ROW()-2))=Switch!$D$58,INDIRECT(\"a\" & (VLOOKUP(Switch!$D$58,$F$2:$G$44,2,FALSE)+ROW()-2)),\"\")","v":{"$error":"#N/A"}},{"$f":"IF(INDIRECT(\"c\" & (VLOOKUP(Switch!$D$59,$F$2:$G$44,2,FALSE)+ROW()-2))=Switch!$D$59,INDIRECT(\"a\" & (VLOOKUP(Switch!$D$59,$F$2:$G$44,2,FALSE)+ROW()-2)),\"\")","v":{"$error":"#N/A"}},{"$f":"IF(INDIRECT(\"c\" & (VLOOKUP(Switch!$D$60,$F$2:$G$44,2,FALSE)+ROW()-2))=Switch!$D$60,INDIRECT(\"a\" & (VLOOKUP(Switch!$D$60,$F$2:$G$44,2,FALSE)+ROW()-2)),\"\")","v":{"$error":"#N/A"}},{"$f":"IF(INDIRECT(\"c\" & (VLOOKUP(Switch!$D$61,$F$2:$G$44,2,FALSE)+ROW()-2))=Switch!$D$61,INDIRECT(\"a\" & (VLOOKUP(Switch!$D$61,$F$2:$G$44,2,FALSE)+ROW()-2)),\"\")","v":{"$error":"#N/A"}},{"$f":"IF(INDIRECT(\"c\" & (VLOOKUP(Switch!$D$62,$F$2:$G$44,2,FALSE)+ROW()-2))=Switch!$D$62,INDIRECT(\"a\" & (VLOOKUP(Switch!$D$62,$F$2:$G$44,2,FALSE)+ROW()-2)),\"\")","v":{"$error":"#N/A"}},{"$f":"IF(INDIRECT(\"c\" & (VLOOKUP(Switch!$D$63,$F$2:$G$44,2,FALSE)+ROW()-2))=Switch!$D$63,INDIRECT(\"a\" & (VLOOKUP(Switch!$D$63,$F$2:$G$44,2,FALSE)+ROW()-2)),\"\")","v":{"$error":"#N/A"}},{"$f":"IF(INDIRECT(\"c\" & (VLOOKUP(Switch!$D$64,$F$2:$G$44,2,FALSE)+ROW()-2))=Switch!$D$64,INDIRECT(\"a\" & (VLOOKUP(Switch!$D$64,$F$2:$G$44,2,FALSE)+ROW()-2)),\"\")","v":{"$error":"#N/A"}},{"$f":"IF(INDIRECT(\"c\" & (VLOOKUP(Switch!$D$65,$F$2:$G$44,2,FALSE)+ROW()-2))=Switch!$D$65,INDIRECT(\"a\" & (VLOOKUP(Switch!$D$65,$F$2:$G$44,2,FALSE)+ROW()-2)),\"\")","v":{"$error":"#N/A"}},{"$f":"IF(INDIRECT(\"c\" & (VLOOKUP(Switch!$D$66,$F$2:$G$44,2,FALSE)+ROW()-2))=Switch!$D$66,INDIRECT(\"a\" & (VLOOKUP(Switch!$D$66,$F$2:$G$44,2,FALSE)+ROW()-2)),\"\")","v":{"$error":"#N/A"}}]
["Bridge Diversified Preference Share Fund","GDPS","Bridge Collective Investments (Pty) Ltd",{"$f":"ROW()","v":202},null,null,{"$f":"VLOOKUP(F202,$C$2:$D$637,2,FALSE)","v":{"$error":"#N/A"}},{"$f":"IF(INDIRECT(\"c\" & (VLOOKUP(Switch!$D$26,$F$2:$G$44,2,FALSE)+ROW()-2))=Switch!$D$26,INDIRECT(\"a\" & (VLOOKUP(Switch!$D$26,$F$2:$G$44,2,FALSE)+ROW()-2)),\"\")","v":{"$error":"#N/A"}},{"$f":"IF(INDIRECT(\"c\" & (VLOOKUP(Switch!$D$27,$F$2:$G$44,2,FALSE)+ROW()-2))=Switch!$D$27,INDIRECT(\"a\" & (VLOOKUP(Switch!$D$27,$F$2:$G$44,2,FALSE)+ROW()-2)),\"\")","v":{"$error":"#N/A"}},{"$f":"IF(INDIRECT(\"c\" & (VLOOKUP(Switch!$D$28,$F$2:$G$44,2,FALSE)+ROW()-2))=Switch!$D$28,INDIRECT(\"a\" & (VLOOKUP(Switch!$D$28,$F$2:$G$44,2,FALSE)+ROW()-2)),\"\")","v":{"$error":"#N/A"}},{"$f":"IF(INDIRECT(\"c\" & (VLOOKUP(Switch!$D$29,$F$2:$G$44,2,FALSE)+ROW()-2))=Switch!$D$29,INDIRECT(\"a\" & (VLOOKUP(Switch!$D$29,$F$2:$G$44,2,FALSE)+ROW()-2)),\"\")","v":{"$error":"#N/A"}},{"$f":"IF(INDIRECT(\"c\" & (VLOOKUP(Switch!$D$30,$F$2:$G$44,2,FALSE)+ROW()-2))=Switch!$D$30,INDIRECT(\"a\" & (VLOOKUP(Switch!$D$30,$F$2:$G$44,2,FALSE)+ROW()-2)),\"\")","v":{"$error":"#N/A"}},{"$f":"IF(INDIRECT(\"c\" & (VLOOKUP(Switch!$D$31,$F$2:$G$44,2,FALSE)+ROW()-2))=Switch!$D$31,INDIRECT(\"a\" & (VLOOKUP(Switch!$D$31,$F$2:$G$44,2,FALSE)+ROW()-2)),\"\")","v":{"$error":"#N/A"}},{"$f":"IF(INDIRECT(\"c\" & (VLOOKUP(Switch!$D$32,$F$2:$G$44,2,FALSE)+ROW()-2))=Switch!$D$32,INDIRECT(\"a\" & (VLOOKUP(Switch!$D$32,$F$2:$G$44,2,FALSE)+ROW()-2)),\"\")","v":{"$error":"#N/A"}},{"$f":"IF(INDIRECT(\"c\" & (VLOOKUP(Switch!$D$33,$F$2:$G$44,2,FALSE)+ROW()-2))=Switch!$D$33,INDIRECT(\"a\" & (VLOOKUP(Switch!$D$33,$F$2:$G$44,2,FALSE)+ROW()-2)),\"\")","v":{"$error":"#N/A"}},{"$f":"IF(INDIRECT(\"c\" & (VLOOKUP(Switch!$D$34,$F$2:$G$44,2,FALSE)+ROW()-2))=Switch!$D$34,INDIRECT(\"a\" & (VLOOKUP(Switch!$D$34,$F$2:$G$44,2,FALSE)+ROW()-2)),\"\")","v":{"$error":"#N/A"}},{"$f":"IF(INDIRECT(\"c\" & (VLOOKUP(Switch!$D$35,$F$2:$G$44,2,FALSE)+ROW()-2))=Switch!$D$35,INDIRECT(\"a\" & (VLOOKUP(Switch!$D$35,$F$2:$G$44,2,FALSE)+ROW()-2)),\"\")","v":{"$error":"#N/A"}},{"$f":"IF(INDIRECT(\"c\" & (VLOOKUP(Switch!$D$36,$F$2:$G$44,2,FALSE)+ROW()-2))=Switch!$D$36,INDIRECT(\"a\" & (VLOOKUP(Switch!$D$36,$F$2:$G$44,2,FALSE)+ROW()-2)),\"\")","v":{"$error":"#N/A"}},{"$f":"IF(INDIRECT(\"c\" & (VLOOKUP(Switch!$D$37,$F$2:$G$44,2,FALSE)+ROW()-2))=Switch!$D$37,INDIRECT(\"a\" & (VLOOKUP(Switch!$D$37,$F$2:$G$44,2,FALSE)+ROW()-2)),\"\")","v":{"$error":"#N/A"}},{"$f":"IF(INDIRECT(\"c\" & (VLOOKUP(Switch!$D$38,$F$2:$G$44,2,FALSE)+ROW()-2))=Switch!$D$38,INDIRECT(\"a\" & (VLOOKUP(Switch!$D$38,$F$2:$G$44,2,FALSE)+ROW()-2)),\"\")","v":{"$error":"#N/A"}},{"$f":"IF(INDIRECT(\"c\" & (VLOOKUP(Switch!$D$39,$F$2:$G$44,2,FALSE)+ROW()-2))=Switch!$D$39,INDIRECT(\"a\" & (VLOOKUP(Switch!$D$39,$F$2:$G$44,2,FALSE)+ROW()-2)),\"\")","v":{"$error":"#N/A"}},{"$f":"IF(INDIRECT(\"c\" & (VLOOKUP(Switch!$D$40,$F$2:$G$44,2,FALSE)+ROW()-2))=Switch!$D$40,INDIRECT(\"a\" & (VLOOKUP(Switch!$D$40,$F$2:$G$44,2,FALSE)+ROW()-2)),\"\")","v":{"$error":"#N/A"}},{"$f":"IF(INDIRECT(\"c\" & (VLOOKUP(Switch!$D$52,$F$2:$G$44,2,FALSE)+ROW()-2))=Switch!$D$52,INDIRECT(\"a\" & (VLOOKUP(Switch!$D$52,$F$2:$G$44,2,FALSE)+ROW()-2)),\"\")","v":{"$error":"#N/A"}},{"$f":"IF(INDIRECT(\"c\" & (VLOOKUP(Switch!$D$53,$F$2:$G$44,2,FALSE)+ROW()-2))=Switch!$D$53,INDIRECT(\"a\" & (VLOOKUP(Switch!$D$53,$F$2:$G$44,2,FALSE)+ROW()-2)),\"\")","v":{"$error":"#N/A"}},{"$f":"IF(INDIRECT(\"c\" & (VLOOKUP(Switch!$D$54,$F$2:$G$44,2,FALSE)+ROW()-2))=Switch!$D$54,INDIRECT(\"a\" & (VLOOKUP(Switch!$D$54,$F$2:$G$44,2,FALSE)+ROW()-2)),\"\")","v":{"$error":"#N/A"}},{"$f":"IF(INDIRECT(\"c\" & (VLOOKUP(Switch!$D$55,$F$2:$G$44,2,FALSE)+ROW()-2))=Switch!$D$55,INDIRECT(\"a\" & (VLOOKUP(Switch!$D$55,$F$2:$G$44,2,FALSE)+ROW()-2)),\"\")","v":{"$error":"#N/A"}},{"$f":"IF(INDIRECT(\"c\" & (VLOOKUP(Switch!$D$56,$F$2:$G$44,2,FALSE)+ROW()-2))=Switch!$D$56,INDIRECT(\"a\" & (VLOOKUP(Switch!$D$56,$F$2:$G$44,2,FALSE)+ROW()-2)),\"\")","v":{"$error":"#N/A"}},{"$f":"IF(INDIRECT(\"c\" & (VLOOKUP(Switch!$D$57,$F$2:$G$44,2,FALSE)+ROW()-2))=Switch!$D$57,INDIRECT(\"a\" & (VLOOKUP(Switch!$D$57,$F$2:$G$44,2,FALSE)+ROW()-2)),\"\")","v":{"$error":"#N/A"}},{"$f":"IF(INDIRECT(\"c\" & (VLOOKUP(Switch!$D$58,$F$2:$G$44,2,FALSE)+ROW()-2))=Switch!$D$58,INDIRECT(\"a\" & (VLOOKUP(Switch!$D$58,$F$2:$G$44,2,FALSE)+ROW()-2)),\"\")","v":{"$error":"#N/A"}},{"$f":"IF(INDIRECT(\"c\" & (VLOOKUP(Switch!$D$59,$F$2:$G$44,2,FALSE)+ROW()-2))=Switch!$D$59,INDIRECT(\"a\" & (VLOOKUP(Switch!$D$59,$F$2:$G$44,2,FALSE)+ROW()-2)),\"\")","v":{"$error":"#N/A"}},{"$f":"IF(INDIRECT(\"c\" & (VLOOKUP(Switch!$D$60,$F$2:$G$44,2,FALSE)+ROW()-2))=Switch!$D$60,INDIRECT(\"a\" & (VLOOKUP(Switch!$D$60,$F$2:$G$44,2,FALSE)+ROW()-2)),\"\")","v":{"$error":"#N/A"}},{"$f":"IF(INDIRECT(\"c\" & (VLOOKUP(Switch!$D$61,$F$2:$G$44,2,FALSE)+ROW()-2))=Switch!$D$61,INDIRECT(\"a\" & (VLOOKUP(Switch!$D$61,$F$2:$G$44,2,FALSE)+ROW()-2)),\"\")","v":{"$error":"#N/A"}},{"$f":"IF(INDIRECT(\"c\" & (VLOOKUP(Switch!$D$62,$F$2:$G$44,2,FALSE)+ROW()-2))=Switch!$D$62,INDIRECT(\"a\" & (VLOOKUP(Switch!$D$62,$F$2:$G$44,2,FALSE)+ROW()-2)),\"\")","v":{"$error":"#N/A"}},{"$f":"IF(INDIRECT(\"c\" & (VLOOKUP(Switch!$D$63,$F$2:$G$44,2,FALSE)+ROW()-2))=Switch!$D$63,INDIRECT(\"a\" & (VLOOKUP(Switch!$D$63,$F$2:$G$44,2,FALSE)+ROW()-2)),\"\")","v":{"$error":"#N/A"}},{"$f":"IF(INDIRECT(\"c\" & (VLOOKUP(Switch!$D$64,$F$2:$G$44,2,FALSE)+ROW()-2))=Switch!$D$64,INDIRECT(\"a\" & (VLOOKUP(Switch!$D$64,$F$2:$G$44,2,FALSE)+ROW()-2)),\"\")","v":{"$error":"#N/A"}},{"$f":"IF(INDIRECT(\"c\" & (VLOOKUP(Switch!$D$65,$F$2:$G$44,2,FALSE)+ROW()-2))=Switch!$D$65,INDIRECT(\"a\" & (VLOOKUP(Switch!$D$65,$F$2:$G$44,2,FALSE)+ROW()-2)),\"\")","v":{"$error":"#N/A"}},{"$f":"IF(INDIRECT(\"c\" & (VLOOKUP(Switch!$D$66,$F$2:$G$44,2,FALSE)+ROW()-2))=Switch!$D$66,INDIRECT(\"a\" & (VLOOKUP(Switch!$D$66,$F$2:$G$44,2,FALSE)+ROW()-2)),\"\")","v":{"$error":"#N/A"}}]
["Bridge Equity  Income Growth C","GEICC","Bridge Collective Investments (Pty) Ltd",{"$f":"ROW()","v":203},null,null,{"$f":"VLOOKUP(F203,$C$2:$D$637,2,FALSE)","v":{"$error":"#N/A"}},{"$f":"IF(INDIRECT(\"c\" & (VLOOKUP(Switch!$D$26,$F$2:$G$44,2,FALSE)+ROW()-2))=Switch!$D$26,INDIRECT(\"a\" & (VLOOKUP(Switch!$D$26,$F$2:$G$44,2,FALSE)+ROW()-2)),\"\")","v":{"$error":"#N/A"}},{"$f":"IF(INDIRECT(\"c\" & (VLOOKUP(Switch!$D$27,$F$2:$G$44,2,FALSE)+ROW()-2))=Switch!$D$27,INDIRECT(\"a\" & (VLOOKUP(Switch!$D$27,$F$2:$G$44,2,FALSE)+ROW()-2)),\"\")","v":{"$error":"#N/A"}},{"$f":"IF(INDIRECT(\"c\" & (VLOOKUP(Switch!$D$28,$F$2:$G$44,2,FALSE)+ROW()-2))=Switch!$D$28,INDIRECT(\"a\" & (VLOOKUP(Switch!$D$28,$F$2:$G$44,2,FALSE)+ROW()-2)),\"\")","v":{"$error":"#N/A"}},{"$f":"IF(INDIRECT(\"c\" & (VLOOKUP(Switch!$D$29,$F$2:$G$44,2,FALSE)+ROW()-2))=Switch!$D$29,INDIRECT(\"a\" & (VLOOKUP(Switch!$D$29,$F$2:$G$44,2,FALSE)+ROW()-2)),\"\")","v":{"$error":"#N/A"}},{"$f":"IF(INDIRECT(\"c\" & (VLOOKUP(Switch!$D$30,$F$2:$G$44,2,FALSE)+ROW()-2))=Switch!$D$30,INDIRECT(\"a\" & (VLOOKUP(Switch!$D$30,$F$2:$G$44,2,FALSE)+ROW()-2)),\"\")","v":{"$error":"#N/A"}},{"$f":"IF(INDIRECT(\"c\" & (VLOOKUP(Switch!$D$31,$F$2:$G$44,2,FALSE)+ROW()-2))=Switch!$D$31,INDIRECT(\"a\" & (VLOOKUP(Switch!$D$31,$F$2:$G$44,2,FALSE)+ROW()-2)),\"\")","v":{"$error":"#N/A"}},{"$f":"IF(INDIRECT(\"c\" & (VLOOKUP(Switch!$D$32,$F$2:$G$44,2,FALSE)+ROW()-2))=Switch!$D$32,INDIRECT(\"a\" & (VLOOKUP(Switch!$D$32,$F$2:$G$44,2,FALSE)+ROW()-2)),\"\")","v":{"$error":"#N/A"}},{"$f":"IF(INDIRECT(\"c\" & (VLOOKUP(Switch!$D$33,$F$2:$G$44,2,FALSE)+ROW()-2))=Switch!$D$33,INDIRECT(\"a\" & (VLOOKUP(Switch!$D$33,$F$2:$G$44,2,FALSE)+ROW()-2)),\"\")","v":{"$error":"#N/A"}},{"$f":"IF(INDIRECT(\"c\" & (VLOOKUP(Switch!$D$34,$F$2:$G$44,2,FALSE)+ROW()-2))=Switch!$D$34,INDIRECT(\"a\" & (VLOOKUP(Switch!$D$34,$F$2:$G$44,2,FALSE)+ROW()-2)),\"\")","v":{"$error":"#N/A"}},{"$f":"IF(INDIRECT(\"c\" & (VLOOKUP(Switch!$D$35,$F$2:$G$44,2,FALSE)+ROW()-2))=Switch!$D$35,INDIRECT(\"a\" & (VLOOKUP(Switch!$D$35,$F$2:$G$44,2,FALSE)+ROW()-2)),\"\")","v":{"$error":"#N/A"}},{"$f":"IF(INDIRECT(\"c\" & (VLOOKUP(Switch!$D$36,$F$2:$G$44,2,FALSE)+ROW()-2))=Switch!$D$36,INDIRECT(\"a\" & (VLOOKUP(Switch!$D$36,$F$2:$G$44,2,FALSE)+ROW()-2)),\"\")","v":{"$error":"#N/A"}},{"$f":"IF(INDIRECT(\"c\" & (VLOOKUP(Switch!$D$37,$F$2:$G$44,2,FALSE)+ROW()-2))=Switch!$D$37,INDIRECT(\"a\" & (VLOOKUP(Switch!$D$37,$F$2:$G$44,2,FALSE)+ROW()-2)),\"\")","v":{"$error":"#N/A"}},{"$f":"IF(INDIRECT(\"c\" & (VLOOKUP(Switch!$D$38,$F$2:$G$44,2,FALSE)+ROW()-2))=Switch!$D$38,INDIRECT(\"a\" & (VLOOKUP(Switch!$D$38,$F$2:$G$44,2,FALSE)+ROW()-2)),\"\")","v":{"$error":"#N/A"}},{"$f":"IF(INDIRECT(\"c\" & (VLOOKUP(Switch!$D$39,$F$2:$G$44,2,FALSE)+ROW()-2))=Switch!$D$39,INDIRECT(\"a\" & (VLOOKUP(Switch!$D$39,$F$2:$G$44,2,FALSE)+ROW()-2)),\"\")","v":{"$error":"#N/A"}},{"$f":"IF(INDIRECT(\"c\" & (VLOOKUP(Switch!$D$40,$F$2:$G$44,2,FALSE)+ROW()-2))=Switch!$D$40,INDIRECT(\"a\" & (VLOOKUP(Switch!$D$40,$F$2:$G$44,2,FALSE)+ROW()-2)),\"\")","v":{"$error":"#N/A"}},{"$f":"IF(INDIRECT(\"c\" & (VLOOKUP(Switch!$D$52,$F$2:$G$44,2,FALSE)+ROW()-2))=Switch!$D$52,INDIRECT(\"a\" & (VLOOKUP(Switch!$D$52,$F$2:$G$44,2,FALSE)+ROW()-2)),\"\")","v":{"$error":"#N/A"}},{"$f":"IF(INDIRECT(\"c\" & (VLOOKUP(Switch!$D$53,$F$2:$G$44,2,FALSE)+ROW()-2))=Switch!$D$53,INDIRECT(\"a\" & (VLOOKUP(Switch!$D$53,$F$2:$G$44,2,FALSE)+ROW()-2)),\"\")","v":{"$error":"#N/A"}},{"$f":"IF(INDIRECT(\"c\" & (VLOOKUP(Switch!$D$54,$F$2:$G$44,2,FALSE)+ROW()-2))=Switch!$D$54,INDIRECT(\"a\" & (VLOOKUP(Switch!$D$54,$F$2:$G$44,2,FALSE)+ROW()-2)),\"\")","v":{"$error":"#N/A"}},{"$f":"IF(INDIRECT(\"c\" & (VLOOKUP(Switch!$D$55,$F$2:$G$44,2,FALSE)+ROW()-2))=Switch!$D$55,INDIRECT(\"a\" & (VLOOKUP(Switch!$D$55,$F$2:$G$44,2,FALSE)+ROW()-2)),\"\")","v":{"$error":"#N/A"}},{"$f":"IF(INDIRECT(\"c\" & (VLOOKUP(Switch!$D$56,$F$2:$G$44,2,FALSE)+ROW()-2))=Switch!$D$56,INDIRECT(\"a\" & (VLOOKUP(Switch!$D$56,$F$2:$G$44,2,FALSE)+ROW()-2)),\"\")","v":{"$error":"#N/A"}},{"$f":"IF(INDIRECT(\"c\" & (VLOOKUP(Switch!$D$57,$F$2:$G$44,2,FALSE)+ROW()-2))=Switch!$D$57,INDIRECT(\"a\" & (VLOOKUP(Switch!$D$57,$F$2:$G$44,2,FALSE)+ROW()-2)),\"\")","v":{"$error":"#N/A"}},{"$f":"IF(INDIRECT(\"c\" & (VLOOKUP(Switch!$D$58,$F$2:$G$44,2,FALSE)+ROW()-2))=Switch!$D$58,INDIRECT(\"a\" & (VLOOKUP(Switch!$D$58,$F$2:$G$44,2,FALSE)+ROW()-2)),\"\")","v":{"$error":"#N/A"}},{"$f":"IF(INDIRECT(\"c\" & (VLOOKUP(Switch!$D$59,$F$2:$G$44,2,FALSE)+ROW()-2))=Switch!$D$59,INDIRECT(\"a\" & (VLOOKUP(Switch!$D$59,$F$2:$G$44,2,FALSE)+ROW()-2)),\"\")","v":{"$error":"#N/A"}},{"$f":"IF(INDIRECT(\"c\" & (VLOOKUP(Switch!$D$60,$F$2:$G$44,2,FALSE)+ROW()-2))=Switch!$D$60,INDIRECT(\"a\" & (VLOOKUP(Switch!$D$60,$F$2:$G$44,2,FALSE)+ROW()-2)),\"\")","v":{"$error":"#N/A"}},{"$f":"IF(INDIRECT(\"c\" & (VLOOKUP(Switch!$D$61,$F$2:$G$44,2,FALSE)+ROW()-2))=Switch!$D$61,INDIRECT(\"a\" & (VLOOKUP(Switch!$D$61,$F$2:$G$44,2,FALSE)+ROW()-2)),\"\")","v":{"$error":"#N/A"}},{"$f":"IF(INDIRECT(\"c\" & (VLOOKUP(Switch!$D$62,$F$2:$G$44,2,FALSE)+ROW()-2))=Switch!$D$62,INDIRECT(\"a\" & (VLOOKUP(Switch!$D$62,$F$2:$G$44,2,FALSE)+ROW()-2)),\"\")","v":{"$error":"#N/A"}},{"$f":"IF(INDIRECT(\"c\" & (VLOOKUP(Switch!$D$63,$F$2:$G$44,2,FALSE)+ROW()-2))=Switch!$D$63,INDIRECT(\"a\" & (VLOOKUP(Switch!$D$63,$F$2:$G$44,2,FALSE)+ROW()-2)),\"\")","v":{"$error":"#N/A"}},{"$f":"IF(INDIRECT(\"c\" & (VLOOKUP(Switch!$D$64,$F$2:$G$44,2,FALSE)+ROW()-2))=Switch!$D$64,INDIRECT(\"a\" & (VLOOKUP(Switch!$D$64,$F$2:$G$44,2,FALSE)+ROW()-2)),\"\")","v":{"$error":"#N/A"}},{"$f":"IF(INDIRECT(\"c\" & (VLOOKUP(Switch!$D$65,$F$2:$G$44,2,FALSE)+ROW()-2))=Switch!$D$65,INDIRECT(\"a\" & (VLOOKUP(Switch!$D$65,$F$2:$G$44,2,FALSE)+ROW()-2)),\"\")","v":{"$error":"#N/A"}},{"$f":"IF(INDIRECT(\"c\" & (VLOOKUP(Switch!$D$66,$F$2:$G$44,2,FALSE)+ROW()-2))=Switch!$D$66,INDIRECT(\"a\" & (VLOOKUP(Switch!$D$66,$F$2:$G$44,2,FALSE)+ROW()-2)),\"\")","v":{"$error":"#N/A"}}]
["Bridge Global Income Growth FoF","GRIA","Bridge Collective Investments (Pty) Ltd",{"$f":"ROW()","v":204},null,null,{"$f":"VLOOKUP(F204,$C$2:$D$637,2,FALSE)","v":{"$error":"#N/A"}},{"$f":"IF(INDIRECT(\"c\" & (VLOOKUP(Switch!$D$26,$F$2:$G$44,2,FALSE)+ROW()-2))=Switch!$D$26,INDIRECT(\"a\" & (VLOOKUP(Switch!$D$26,$F$2:$G$44,2,FALSE)+ROW()-2)),\"\")","v":{"$error":"#N/A"}},{"$f":"IF(INDIRECT(\"c\" & (VLOOKUP(Switch!$D$27,$F$2:$G$44,2,FALSE)+ROW()-2))=Switch!$D$27,INDIRECT(\"a\" & (VLOOKUP(Switch!$D$27,$F$2:$G$44,2,FALSE)+ROW()-2)),\"\")","v":{"$error":"#N/A"}},{"$f":"IF(INDIRECT(\"c\" & (VLOOKUP(Switch!$D$28,$F$2:$G$44,2,FALSE)+ROW()-2))=Switch!$D$28,INDIRECT(\"a\" & (VLOOKUP(Switch!$D$28,$F$2:$G$44,2,FALSE)+ROW()-2)),\"\")","v":{"$error":"#N/A"}},{"$f":"IF(INDIRECT(\"c\" & (VLOOKUP(Switch!$D$29,$F$2:$G$44,2,FALSE)+ROW()-2))=Switch!$D$29,INDIRECT(\"a\" & (VLOOKUP(Switch!$D$29,$F$2:$G$44,2,FALSE)+ROW()-2)),\"\")","v":{"$error":"#N/A"}},{"$f":"IF(INDIRECT(\"c\" & (VLOOKUP(Switch!$D$30,$F$2:$G$44,2,FALSE)+ROW()-2))=Switch!$D$30,INDIRECT(\"a\" & (VLOOKUP(Switch!$D$30,$F$2:$G$44,2,FALSE)+ROW()-2)),\"\")","v":{"$error":"#N/A"}},{"$f":"IF(INDIRECT(\"c\" & (VLOOKUP(Switch!$D$31,$F$2:$G$44,2,FALSE)+ROW()-2))=Switch!$D$31,INDIRECT(\"a\" & (VLOOKUP(Switch!$D$31,$F$2:$G$44,2,FALSE)+ROW()-2)),\"\")","v":{"$error":"#N/A"}},{"$f":"IF(INDIRECT(\"c\" & (VLOOKUP(Switch!$D$32,$F$2:$G$44,2,FALSE)+ROW()-2))=Switch!$D$32,INDIRECT(\"a\" & (VLOOKUP(Switch!$D$32,$F$2:$G$44,2,FALSE)+ROW()-2)),\"\")","v":{"$error":"#N/A"}},{"$f":"IF(INDIRECT(\"c\" & (VLOOKUP(Switch!$D$33,$F$2:$G$44,2,FALSE)+ROW()-2))=Switch!$D$33,INDIRECT(\"a\" & (VLOOKUP(Switch!$D$33,$F$2:$G$44,2,FALSE)+ROW()-2)),\"\")","v":{"$error":"#N/A"}},{"$f":"IF(INDIRECT(\"c\" & (VLOOKUP(Switch!$D$34,$F$2:$G$44,2,FALSE)+ROW()-2))=Switch!$D$34,INDIRECT(\"a\" & (VLOOKUP(Switch!$D$34,$F$2:$G$44,2,FALSE)+ROW()-2)),\"\")","v":{"$error":"#N/A"}},{"$f":"IF(INDIRECT(\"c\" & (VLOOKUP(Switch!$D$35,$F$2:$G$44,2,FALSE)+ROW()-2))=Switch!$D$35,INDIRECT(\"a\" & (VLOOKUP(Switch!$D$35,$F$2:$G$44,2,FALSE)+ROW()-2)),\"\")","v":{"$error":"#N/A"}},{"$f":"IF(INDIRECT(\"c\" & (VLOOKUP(Switch!$D$36,$F$2:$G$44,2,FALSE)+ROW()-2))=Switch!$D$36,INDIRECT(\"a\" & (VLOOKUP(Switch!$D$36,$F$2:$G$44,2,FALSE)+ROW()-2)),\"\")","v":{"$error":"#N/A"}},{"$f":"IF(INDIRECT(\"c\" & (VLOOKUP(Switch!$D$37,$F$2:$G$44,2,FALSE)+ROW()-2))=Switch!$D$37,INDIRECT(\"a\" & (VLOOKUP(Switch!$D$37,$F$2:$G$44,2,FALSE)+ROW()-2)),\"\")","v":{"$error":"#N/A"}},{"$f":"IF(INDIRECT(\"c\" & (VLOOKUP(Switch!$D$38,$F$2:$G$44,2,FALSE)+ROW()-2))=Switch!$D$38,INDIRECT(\"a\" & (VLOOKUP(Switch!$D$38,$F$2:$G$44,2,FALSE)+ROW()-2)),\"\")","v":{"$error":"#N/A"}},{"$f":"IF(INDIRECT(\"c\" & (VLOOKUP(Switch!$D$39,$F$2:$G$44,2,FALSE)+ROW()-2))=Switch!$D$39,INDIRECT(\"a\" & (VLOOKUP(Switch!$D$39,$F$2:$G$44,2,FALSE)+ROW()-2)),\"\")","v":{"$error":"#N/A"}},{"$f":"IF(INDIRECT(\"c\" & (VLOOKUP(Switch!$D$40,$F$2:$G$44,2,FALSE)+ROW()-2))=Switch!$D$40,INDIRECT(\"a\" & (VLOOKUP(Switch!$D$40,$F$2:$G$44,2,FALSE)+ROW()-2)),\"\")","v":{"$error":"#N/A"}},{"$f":"IF(INDIRECT(\"c\" & (VLOOKUP(Switch!$D$52,$F$2:$G$44,2,FALSE)+ROW()-2))=Switch!$D$52,INDIRECT(\"a\" & (VLOOKUP(Switch!$D$52,$F$2:$G$44,2,FALSE)+ROW()-2)),\"\")","v":{"$error":"#N/A"}},{"$f":"IF(INDIRECT(\"c\" & (VLOOKUP(Switch!$D$53,$F$2:$G$44,2,FALSE)+ROW()-2))=Switch!$D$53,INDIRECT(\"a\" & (VLOOKUP(Switch!$D$53,$F$2:$G$44,2,FALSE)+ROW()-2)),\"\")","v":{"$error":"#N/A"}},{"$f":"IF(INDIRECT(\"c\" & (VLOOKUP(Switch!$D$54,$F$2:$G$44,2,FALSE)+ROW()-2))=Switch!$D$54,INDIRECT(\"a\" & (VLOOKUP(Switch!$D$54,$F$2:$G$44,2,FALSE)+ROW()-2)),\"\")","v":{"$error":"#N/A"}},{"$f":"IF(INDIRECT(\"c\" & (VLOOKUP(Switch!$D$55,$F$2:$G$44,2,FALSE)+ROW()-2))=Switch!$D$55,INDIRECT(\"a\" & (VLOOKUP(Switch!$D$55,$F$2:$G$44,2,FALSE)+ROW()-2)),\"\")","v":{"$error":"#N/A"}},{"$f":"IF(INDIRECT(\"c\" & (VLOOKUP(Switch!$D$56,$F$2:$G$44,2,FALSE)+ROW()-2))=Switch!$D$56,INDIRECT(\"a\" & (VLOOKUP(Switch!$D$56,$F$2:$G$44,2,FALSE)+ROW()-2)),\"\")","v":{"$error":"#N/A"}},{"$f":"IF(INDIRECT(\"c\" & (VLOOKUP(Switch!$D$57,$F$2:$G$44,2,FALSE)+ROW()-2))=Switch!$D$57,INDIRECT(\"a\" & (VLOOKUP(Switch!$D$57,$F$2:$G$44,2,FALSE)+ROW()-2)),\"\")","v":{"$error":"#N/A"}},{"$f":"IF(INDIRECT(\"c\" & (VLOOKUP(Switch!$D$58,$F$2:$G$44,2,FALSE)+ROW()-2))=Switch!$D$58,INDIRECT(\"a\" & (VLOOKUP(Switch!$D$58,$F$2:$G$44,2,FALSE)+ROW()-2)),\"\")","v":{"$error":"#N/A"}},{"$f":"IF(INDIRECT(\"c\" & (VLOOKUP(Switch!$D$59,$F$2:$G$44,2,FALSE)+ROW()-2))=Switch!$D$59,INDIRECT(\"a\" & (VLOOKUP(Switch!$D$59,$F$2:$G$44,2,FALSE)+ROW()-2)),\"\")","v":{"$error":"#N/A"}},{"$f":"IF(INDIRECT(\"c\" & (VLOOKUP(Switch!$D$60,$F$2:$G$44,2,FALSE)+ROW()-2))=Switch!$D$60,INDIRECT(\"a\" & (VLOOKUP(Switch!$D$60,$F$2:$G$44,2,FALSE)+ROW()-2)),\"\")","v":{"$error":"#N/A"}},{"$f":"IF(INDIRECT(\"c\" & (VLOOKUP(Switch!$D$61,$F$2:$G$44,2,FALSE)+ROW()-2))=Switch!$D$61,INDIRECT(\"a\" & (VLOOKUP(Switch!$D$61,$F$2:$G$44,2,FALSE)+ROW()-2)),\"\")","v":{"$error":"#N/A"}},{"$f":"IF(INDIRECT(\"c\" & (VLOOKUP(Switch!$D$62,$F$2:$G$44,2,FALSE)+ROW()-2))=Switch!$D$62,INDIRECT(\"a\" & (VLOOKUP(Switch!$D$62,$F$2:$G$44,2,FALSE)+ROW()-2)),\"\")","v":{"$error":"#N/A"}},{"$f":"IF(INDIRECT(\"c\" & (VLOOKUP(Switch!$D$63,$F$2:$G$44,2,FALSE)+ROW()-2))=Switch!$D$63,INDIRECT(\"a\" & (VLOOKUP(Switch!$D$63,$F$2:$G$44,2,FALSE)+ROW()-2)),\"\")","v":{"$error":"#N/A"}},{"$f":"IF(INDIRECT(\"c\" & (VLOOKUP(Switch!$D$64,$F$2:$G$44,2,FALSE)+ROW()-2))=Switch!$D$64,INDIRECT(\"a\" & (VLOOKUP(Switch!$D$64,$F$2:$G$44,2,FALSE)+ROW()-2)),\"\")","v":{"$error":"#N/A"}},{"$f":"IF(INDIRECT(\"c\" & (VLOOKUP(Switch!$D$65,$F$2:$G$44,2,FALSE)+ROW()-2))=Switch!$D$65,INDIRECT(\"a\" & (VLOOKUP(Switch!$D$65,$F$2:$G$44,2,FALSE)+ROW()-2)),\"\")","v":{"$error":"#N/A"}},{"$f":"IF(INDIRECT(\"c\" & (VLOOKUP(Switch!$D$66,$F$2:$G$44,2,FALSE)+ROW()-2))=Switch!$D$66,INDIRECT(\"a\" & (VLOOKUP(Switch!$D$66,$F$2:$G$44,2,FALSE)+ROW()-2)),\"\")","v":{"$error":"#N/A"}}]
["Bridge Managed Growth Fund C","GMGCC","Bridge Collective Investments (Pty) Ltd",{"$f":"ROW()","v":205},null,null,{"$f":"VLOOKUP(F205,$C$2:$D$637,2,FALSE)","v":{"$error":"#N/A"}},{"$f":"IF(INDIRECT(\"c\" & (VLOOKUP(Switch!$D$26,$F$2:$G$44,2,FALSE)+ROW()-2))=Switch!$D$26,INDIRECT(\"a\" & (VLOOKUP(Switch!$D$26,$F$2:$G$44,2,FALSE)+ROW()-2)),\"\")","v":{"$error":"#N/A"}},{"$f":"IF(INDIRECT(\"c\" & (VLOOKUP(Switch!$D$27,$F$2:$G$44,2,FALSE)+ROW()-2))=Switch!$D$27,INDIRECT(\"a\" & (VLOOKUP(Switch!$D$27,$F$2:$G$44,2,FALSE)+ROW()-2)),\"\")","v":{"$error":"#N/A"}},{"$f":"IF(INDIRECT(\"c\" & (VLOOKUP(Switch!$D$28,$F$2:$G$44,2,FALSE)+ROW()-2))=Switch!$D$28,INDIRECT(\"a\" & (VLOOKUP(Switch!$D$28,$F$2:$G$44,2,FALSE)+ROW()-2)),\"\")","v":{"$error":"#N/A"}},{"$f":"IF(INDIRECT(\"c\" & (VLOOKUP(Switch!$D$29,$F$2:$G$44,2,FALSE)+ROW()-2))=Switch!$D$29,INDIRECT(\"a\" & (VLOOKUP(Switch!$D$29,$F$2:$G$44,2,FALSE)+ROW()-2)),\"\")","v":{"$error":"#N/A"}},{"$f":"IF(INDIRECT(\"c\" & (VLOOKUP(Switch!$D$30,$F$2:$G$44,2,FALSE)+ROW()-2))=Switch!$D$30,INDIRECT(\"a\" & (VLOOKUP(Switch!$D$30,$F$2:$G$44,2,FALSE)+ROW()-2)),\"\")","v":{"$error":"#N/A"}},{"$f":"IF(INDIRECT(\"c\" & (VLOOKUP(Switch!$D$31,$F$2:$G$44,2,FALSE)+ROW()-2))=Switch!$D$31,INDIRECT(\"a\" & (VLOOKUP(Switch!$D$31,$F$2:$G$44,2,FALSE)+ROW()-2)),\"\")","v":{"$error":"#N/A"}},{"$f":"IF(INDIRECT(\"c\" & (VLOOKUP(Switch!$D$32,$F$2:$G$44,2,FALSE)+ROW()-2))=Switch!$D$32,INDIRECT(\"a\" & (VLOOKUP(Switch!$D$32,$F$2:$G$44,2,FALSE)+ROW()-2)),\"\")","v":{"$error":"#N/A"}},{"$f":"IF(INDIRECT(\"c\" & (VLOOKUP(Switch!$D$33,$F$2:$G$44,2,FALSE)+ROW()-2))=Switch!$D$33,INDIRECT(\"a\" & (VLOOKUP(Switch!$D$33,$F$2:$G$44,2,FALSE)+ROW()-2)),\"\")","v":{"$error":"#N/A"}},{"$f":"IF(INDIRECT(\"c\" & (VLOOKUP(Switch!$D$34,$F$2:$G$44,2,FALSE)+ROW()-2))=Switch!$D$34,INDIRECT(\"a\" & (VLOOKUP(Switch!$D$34,$F$2:$G$44,2,FALSE)+ROW()-2)),\"\")","v":{"$error":"#N/A"}},{"$f":"IF(INDIRECT(\"c\" & (VLOOKUP(Switch!$D$35,$F$2:$G$44,2,FALSE)+ROW()-2))=Switch!$D$35,INDIRECT(\"a\" & (VLOOKUP(Switch!$D$35,$F$2:$G$44,2,FALSE)+ROW()-2)),\"\")","v":{"$error":"#N/A"}},{"$f":"IF(INDIRECT(\"c\" & (VLOOKUP(Switch!$D$36,$F$2:$G$44,2,FALSE)+ROW()-2))=Switch!$D$36,INDIRECT(\"a\" & (VLOOKUP(Switch!$D$36,$F$2:$G$44,2,FALSE)+ROW()-2)),\"\")","v":{"$error":"#N/A"}},{"$f":"IF(INDIRECT(\"c\" & (VLOOKUP(Switch!$D$37,$F$2:$G$44,2,FALSE)+ROW()-2))=Switch!$D$37,INDIRECT(\"a\" & (VLOOKUP(Switch!$D$37,$F$2:$G$44,2,FALSE)+ROW()-2)),\"\")","v":{"$error":"#N/A"}},{"$f":"IF(INDIRECT(\"c\" & (VLOOKUP(Switch!$D$38,$F$2:$G$44,2,FALSE)+ROW()-2))=Switch!$D$38,INDIRECT(\"a\" & (VLOOKUP(Switch!$D$38,$F$2:$G$44,2,FALSE)+ROW()-2)),\"\")","v":{"$error":"#N/A"}},{"$f":"IF(INDIRECT(\"c\" & (VLOOKUP(Switch!$D$39,$F$2:$G$44,2,FALSE)+ROW()-2))=Switch!$D$39,INDIRECT(\"a\" & (VLOOKUP(Switch!$D$39,$F$2:$G$44,2,FALSE)+ROW()-2)),\"\")","v":{"$error":"#N/A"}},{"$f":"IF(INDIRECT(\"c\" & (VLOOKUP(Switch!$D$40,$F$2:$G$44,2,FALSE)+ROW()-2))=Switch!$D$40,INDIRECT(\"a\" & (VLOOKUP(Switch!$D$40,$F$2:$G$44,2,FALSE)+ROW()-2)),\"\")","v":{"$error":"#N/A"}},{"$f":"IF(INDIRECT(\"c\" & (VLOOKUP(Switch!$D$52,$F$2:$G$44,2,FALSE)+ROW()-2))=Switch!$D$52,INDIRECT(\"a\" & (VLOOKUP(Switch!$D$52,$F$2:$G$44,2,FALSE)+ROW()-2)),\"\")","v":{"$error":"#N/A"}},{"$f":"IF(INDIRECT(\"c\" & (VLOOKUP(Switch!$D$53,$F$2:$G$44,2,FALSE)+ROW()-2))=Switch!$D$53,INDIRECT(\"a\" & (VLOOKUP(Switch!$D$53,$F$2:$G$44,2,FALSE)+ROW()-2)),\"\")","v":{"$error":"#N/A"}},{"$f":"IF(INDIRECT(\"c\" & (VLOOKUP(Switch!$D$54,$F$2:$G$44,2,FALSE)+ROW()-2))=Switch!$D$54,INDIRECT(\"a\" & (VLOOKUP(Switch!$D$54,$F$2:$G$44,2,FALSE)+ROW()-2)),\"\")","v":{"$error":"#N/A"}},{"$f":"IF(INDIRECT(\"c\" & (VLOOKUP(Switch!$D$55,$F$2:$G$44,2,FALSE)+ROW()-2))=Switch!$D$55,INDIRECT(\"a\" & (VLOOKUP(Switch!$D$55,$F$2:$G$44,2,FALSE)+ROW()-2)),\"\")","v":{"$error":"#N/A"}},{"$f":"IF(INDIRECT(\"c\" & (VLOOKUP(Switch!$D$56,$F$2:$G$44,2,FALSE)+ROW()-2))=Switch!$D$56,INDIRECT(\"a\" & (VLOOKUP(Switch!$D$56,$F$2:$G$44,2,FALSE)+ROW()-2)),\"\")","v":{"$error":"#N/A"}},{"$f":"IF(INDIRECT(\"c\" & (VLOOKUP(Switch!$D$57,$F$2:$G$44,2,FALSE)+ROW()-2))=Switch!$D$57,INDIRECT(\"a\" & (VLOOKUP(Switch!$D$57,$F$2:$G$44,2,FALSE)+ROW()-2)),\"\")","v":{"$error":"#N/A"}},{"$f":"IF(INDIRECT(\"c\" & (VLOOKUP(Switch!$D$58,$F$2:$G$44,2,FALSE)+ROW()-2))=Switch!$D$58,INDIRECT(\"a\" & (VLOOKUP(Switch!$D$58,$F$2:$G$44,2,FALSE)+ROW()-2)),\"\")","v":{"$error":"#N/A"}},{"$f":"IF(INDIRECT(\"c\" & (VLOOKUP(Switch!$D$59,$F$2:$G$44,2,FALSE)+ROW()-2))=Switch!$D$59,INDIRECT(\"a\" & (VLOOKUP(Switch!$D$59,$F$2:$G$44,2,FALSE)+ROW()-2)),\"\")","v":{"$error":"#N/A"}},{"$f":"IF(INDIRECT(\"c\" & (VLOOKUP(Switch!$D$60,$F$2:$G$44,2,FALSE)+ROW()-2))=Switch!$D$60,INDIRECT(\"a\" & (VLOOKUP(Switch!$D$60,$F$2:$G$44,2,FALSE)+ROW()-2)),\"\")","v":{"$error":"#N/A"}},{"$f":"IF(INDIRECT(\"c\" & (VLOOKUP(Switch!$D$61,$F$2:$G$44,2,FALSE)+ROW()-2))=Switch!$D$61,INDIRECT(\"a\" & (VLOOKUP(Switch!$D$61,$F$2:$G$44,2,FALSE)+ROW()-2)),\"\")","v":{"$error":"#N/A"}},{"$f":"IF(INDIRECT(\"c\" & (VLOOKUP(Switch!$D$62,$F$2:$G$44,2,FALSE)+ROW()-2))=Switch!$D$62,INDIRECT(\"a\" & (VLOOKUP(Switch!$D$62,$F$2:$G$44,2,FALSE)+ROW()-2)),\"\")","v":{"$error":"#N/A"}},{"$f":"IF(INDIRECT(\"c\" & (VLOOKUP(Switch!$D$63,$F$2:$G$44,2,FALSE)+ROW()-2))=Switch!$D$63,INDIRECT(\"a\" & (VLOOKUP(Switch!$D$63,$F$2:$G$44,2,FALSE)+ROW()-2)),\"\")","v":{"$error":"#N/A"}},{"$f":"IF(INDIRECT(\"c\" & (VLOOKUP(Switch!$D$64,$F$2:$G$44,2,FALSE)+ROW()-2))=Switch!$D$64,INDIRECT(\"a\" & (VLOOKUP(Switch!$D$64,$F$2:$G$44,2,FALSE)+ROW()-2)),\"\")","v":{"$error":"#N/A"}},{"$f":"IF(INDIRECT(\"c\" & (VLOOKUP(Switch!$D$65,$F$2:$G$44,2,FALSE)+ROW()-2))=Switch!$D$65,INDIRECT(\"a\" & (VLOOKUP(Switch!$D$65,$F$2:$G$44,2,FALSE)+ROW()-2)),\"\")","v":{"$error":"#N/A"}},{"$f":"IF(INDIRECT(\"c\" & (VLOOKUP(Switch!$D$66,$F$2:$G$44,2,FALSE)+ROW()-2))=Switch!$D$66,INDIRECT(\"a\" & (VLOOKUP(Switch!$D$66,$F$2:$G$44,2,FALSE)+ROW()-2)),\"\")","v":{"$error":"#N/A"}}]
["Bridge Balanced Fund C","GBFCC","Bridge Collective Investments (Pty) Ltd",{"$f":"ROW()","v":206},null,null,{"$f":"VLOOKUP(F206,$C$2:$D$637,2,FALSE)","v":{"$error":"#N/A"}},{"$f":"IF(INDIRECT(\"c\" & (VLOOKUP(Switch!$D$26,$F$2:$G$44,2,FALSE)+ROW()-2))=Switch!$D$26,INDIRECT(\"a\" & (VLOOKUP(Switch!$D$26,$F$2:$G$44,2,FALSE)+ROW()-2)),\"\")","v":{"$error":"#N/A"}},{"$f":"IF(INDIRECT(\"c\" & (VLOOKUP(Switch!$D$27,$F$2:$G$44,2,FALSE)+ROW()-2))=Switch!$D$27,INDIRECT(\"a\" & (VLOOKUP(Switch!$D$27,$F$2:$G$44,2,FALSE)+ROW()-2)),\"\")","v":{"$error":"#N/A"}},{"$f":"IF(INDIRECT(\"c\" & (VLOOKUP(Switch!$D$28,$F$2:$G$44,2,FALSE)+ROW()-2))=Switch!$D$28,INDIRECT(\"a\" & (VLOOKUP(Switch!$D$28,$F$2:$G$44,2,FALSE)+ROW()-2)),\"\")","v":{"$error":"#N/A"}},{"$f":"IF(INDIRECT(\"c\" & (VLOOKUP(Switch!$D$29,$F$2:$G$44,2,FALSE)+ROW()-2))=Switch!$D$29,INDIRECT(\"a\" & (VLOOKUP(Switch!$D$29,$F$2:$G$44,2,FALSE)+ROW()-2)),\"\")","v":{"$error":"#N/A"}},{"$f":"IF(INDIRECT(\"c\" & (VLOOKUP(Switch!$D$30,$F$2:$G$44,2,FALSE)+ROW()-2))=Switch!$D$30,INDIRECT(\"a\" & (VLOOKUP(Switch!$D$30,$F$2:$G$44,2,FALSE)+ROW()-2)),\"\")","v":{"$error":"#N/A"}},{"$f":"IF(INDIRECT(\"c\" & (VLOOKUP(Switch!$D$31,$F$2:$G$44,2,FALSE)+ROW()-2))=Switch!$D$31,INDIRECT(\"a\" & (VLOOKUP(Switch!$D$31,$F$2:$G$44,2,FALSE)+ROW()-2)),\"\")","v":{"$error":"#N/A"}},{"$f":"IF(INDIRECT(\"c\" & (VLOOKUP(Switch!$D$32,$F$2:$G$44,2,FALSE)+ROW()-2))=Switch!$D$32,INDIRECT(\"a\" & (VLOOKUP(Switch!$D$32,$F$2:$G$44,2,FALSE)+ROW()-2)),\"\")","v":{"$error":"#N/A"}},{"$f":"IF(INDIRECT(\"c\" & (VLOOKUP(Switch!$D$33,$F$2:$G$44,2,FALSE)+ROW()-2))=Switch!$D$33,INDIRECT(\"a\" & (VLOOKUP(Switch!$D$33,$F$2:$G$44,2,FALSE)+ROW()-2)),\"\")","v":{"$error":"#N/A"}},{"$f":"IF(INDIRECT(\"c\" & (VLOOKUP(Switch!$D$34,$F$2:$G$44,2,FALSE)+ROW()-2))=Switch!$D$34,INDIRECT(\"a\" & (VLOOKUP(Switch!$D$34,$F$2:$G$44,2,FALSE)+ROW()-2)),\"\")","v":{"$error":"#N/A"}},{"$f":"IF(INDIRECT(\"c\" & (VLOOKUP(Switch!$D$35,$F$2:$G$44,2,FALSE)+ROW()-2))=Switch!$D$35,INDIRECT(\"a\" & (VLOOKUP(Switch!$D$35,$F$2:$G$44,2,FALSE)+ROW()-2)),\"\")","v":{"$error":"#N/A"}},{"$f":"IF(INDIRECT(\"c\" & (VLOOKUP(Switch!$D$36,$F$2:$G$44,2,FALSE)+ROW()-2))=Switch!$D$36,INDIRECT(\"a\" & (VLOOKUP(Switch!$D$36,$F$2:$G$44,2,FALSE)+ROW()-2)),\"\")","v":{"$error":"#N/A"}},{"$f":"IF(INDIRECT(\"c\" & (VLOOKUP(Switch!$D$37,$F$2:$G$44,2,FALSE)+ROW()-2))=Switch!$D$37,INDIRECT(\"a\" & (VLOOKUP(Switch!$D$37,$F$2:$G$44,2,FALSE)+ROW()-2)),\"\")","v":{"$error":"#N/A"}},{"$f":"IF(INDIRECT(\"c\" & (VLOOKUP(Switch!$D$38,$F$2:$G$44,2,FALSE)+ROW()-2))=Switch!$D$38,INDIRECT(\"a\" & (VLOOKUP(Switch!$D$38,$F$2:$G$44,2,FALSE)+ROW()-2)),\"\")","v":{"$error":"#N/A"}},{"$f":"IF(INDIRECT(\"c\" & (VLOOKUP(Switch!$D$39,$F$2:$G$44,2,FALSE)+ROW()-2))=Switch!$D$39,INDIRECT(\"a\" & (VLOOKUP(Switch!$D$39,$F$2:$G$44,2,FALSE)+ROW()-2)),\"\")","v":{"$error":"#N/A"}},{"$f":"IF(INDIRECT(\"c\" & (VLOOKUP(Switch!$D$40,$F$2:$G$44,2,FALSE)+ROW()-2))=Switch!$D$40,INDIRECT(\"a\" & (VLOOKUP(Switch!$D$40,$F$2:$G$44,2,FALSE)+ROW()-2)),\"\")","v":{"$error":"#N/A"}},{"$f":"IF(INDIRECT(\"c\" & (VLOOKUP(Switch!$D$52,$F$2:$G$44,2,FALSE)+ROW()-2))=Switch!$D$52,INDIRECT(\"a\" & (VLOOKUP(Switch!$D$52,$F$2:$G$44,2,FALSE)+ROW()-2)),\"\")","v":{"$error":"#N/A"}},{"$f":"IF(INDIRECT(\"c\" & (VLOOKUP(Switch!$D$53,$F$2:$G$44,2,FALSE)+ROW()-2))=Switch!$D$53,INDIRECT(\"a\" & (VLOOKUP(Switch!$D$53,$F$2:$G$44,2,FALSE)+ROW()-2)),\"\")","v":{"$error":"#N/A"}},{"$f":"IF(INDIRECT(\"c\" & (VLOOKUP(Switch!$D$54,$F$2:$G$44,2,FALSE)+ROW()-2))=Switch!$D$54,INDIRECT(\"a\" & (VLOOKUP(Switch!$D$54,$F$2:$G$44,2,FALSE)+ROW()-2)),\"\")","v":{"$error":"#N/A"}},{"$f":"IF(INDIRECT(\"c\" & (VLOOKUP(Switch!$D$55,$F$2:$G$44,2,FALSE)+ROW()-2))=Switch!$D$55,INDIRECT(\"a\" & (VLOOKUP(Switch!$D$55,$F$2:$G$44,2,FALSE)+ROW()-2)),\"\")","v":{"$error":"#N/A"}},{"$f":"IF(INDIRECT(\"c\" & (VLOOKUP(Switch!$D$56,$F$2:$G$44,2,FALSE)+ROW()-2))=Switch!$D$56,INDIRECT(\"a\" & (VLOOKUP(Switch!$D$56,$F$2:$G$44,2,FALSE)+ROW()-2)),\"\")","v":{"$error":"#N/A"}},{"$f":"IF(INDIRECT(\"c\" & (VLOOKUP(Switch!$D$57,$F$2:$G$44,2,FALSE)+ROW()-2))=Switch!$D$57,INDIRECT(\"a\" & (VLOOKUP(Switch!$D$57,$F$2:$G$44,2,FALSE)+ROW()-2)),\"\")","v":{"$error":"#N/A"}},{"$f":"IF(INDIRECT(\"c\" & (VLOOKUP(Switch!$D$58,$F$2:$G$44,2,FALSE)+ROW()-2))=Switch!$D$58,INDIRECT(\"a\" & (VLOOKUP(Switch!$D$58,$F$2:$G$44,2,FALSE)+ROW()-2)),\"\")","v":{"$error":"#N/A"}},{"$f":"IF(INDIRECT(\"c\" & (VLOOKUP(Switch!$D$59,$F$2:$G$44,2,FALSE)+ROW()-2))=Switch!$D$59,INDIRECT(\"a\" & (VLOOKUP(Switch!$D$59,$F$2:$G$44,2,FALSE)+ROW()-2)),\"\")","v":{"$error":"#N/A"}},{"$f":"IF(INDIRECT(\"c\" & (VLOOKUP(Switch!$D$60,$F$2:$G$44,2,FALSE)+ROW()-2))=Switch!$D$60,INDIRECT(\"a\" & (VLOOKUP(Switch!$D$60,$F$2:$G$44,2,FALSE)+ROW()-2)),\"\")","v":{"$error":"#N/A"}},{"$f":"IF(INDIRECT(\"c\" & (VLOOKUP(Switch!$D$61,$F$2:$G$44,2,FALSE)+ROW()-2))=Switch!$D$61,INDIRECT(\"a\" & (VLOOKUP(Switch!$D$61,$F$2:$G$44,2,FALSE)+ROW()-2)),\"\")","v":{"$error":"#N/A"}},{"$f":"IF(INDIRECT(\"c\" & (VLOOKUP(Switch!$D$62,$F$2:$G$44,2,FALSE)+ROW()-2))=Switch!$D$62,INDIRECT(\"a\" & (VLOOKUP(Switch!$D$62,$F$2:$G$44,2,FALSE)+ROW()-2)),\"\")","v":{"$error":"#N/A"}},{"$f":"IF(INDIRECT(\"c\" & (VLOOKUP(Switch!$D$63,$F$2:$G$44,2,FALSE)+ROW()-2))=Switch!$D$63,INDIRECT(\"a\" & (VLOOKUP(Switch!$D$63,$F$2:$G$44,2,FALSE)+ROW()-2)),\"\")","v":{"$error":"#N/A"}},{"$f":"IF(INDIRECT(\"c\" & (VLOOKUP(Switch!$D$64,$F$2:$G$44,2,FALSE)+ROW()-2))=Switch!$D$64,INDIRECT(\"a\" & (VLOOKUP(Switch!$D$64,$F$2:$G$44,2,FALSE)+ROW()-2)),\"\")","v":{"$error":"#N/A"}},{"$f":"IF(INDIRECT(\"c\" & (VLOOKUP(Switch!$D$65,$F$2:$G$44,2,FALSE)+ROW()-2))=Switch!$D$65,INDIRECT(\"a\" & (VLOOKUP(Switch!$D$65,$F$2:$G$44,2,FALSE)+ROW()-2)),\"\")","v":{"$error":"#N/A"}},{"$f":"IF(INDIRECT(\"c\" & (VLOOKUP(Switch!$D$66,$F$2:$G$44,2,FALSE)+ROW()-2))=Switch!$D$66,INDIRECT(\"a\" & (VLOOKUP(Switch!$D$66,$F$2:$G$44,2,FALSE)+ROW()-2)),\"\")","v":{"$error":"#N/A"}}]
["Bridge High Income Fund C","GHICC","Bridge Collective Investments (Pty) Ltd",{"$f":"ROW()","v":207},null,null,{"$f":"VLOOKUP(F207,$C$2:$D$637,2,FALSE)","v":{"$error":"#N/A"}},{"$f":"IF(INDIRECT(\"c\" & (VLOOKUP(Switch!$D$26,$F$2:$G$44,2,FALSE)+ROW()-2))=Switch!$D$26,INDIRECT(\"a\" & (VLOOKUP(Switch!$D$26,$F$2:$G$44,2,FALSE)+ROW()-2)),\"\")","v":{"$error":"#N/A"}},{"$f":"IF(INDIRECT(\"c\" & (VLOOKUP(Switch!$D$27,$F$2:$G$44,2,FALSE)+ROW()-2))=Switch!$D$27,INDIRECT(\"a\" & (VLOOKUP(Switch!$D$27,$F$2:$G$44,2,FALSE)+ROW()-2)),\"\")","v":{"$error":"#N/A"}},{"$f":"IF(INDIRECT(\"c\" & (VLOOKUP(Switch!$D$28,$F$2:$G$44,2,FALSE)+ROW()-2))=Switch!$D$28,INDIRECT(\"a\" & (VLOOKUP(Switch!$D$28,$F$2:$G$44,2,FALSE)+ROW()-2)),\"\")","v":{"$error":"#N/A"}},{"$f":"IF(INDIRECT(\"c\" & (VLOOKUP(Switch!$D$29,$F$2:$G$44,2,FALSE)+ROW()-2))=Switch!$D$29,INDIRECT(\"a\" & (VLOOKUP(Switch!$D$29,$F$2:$G$44,2,FALSE)+ROW()-2)),\"\")","v":{"$error":"#N/A"}},{"$f":"IF(INDIRECT(\"c\" & (VLOOKUP(Switch!$D$30,$F$2:$G$44,2,FALSE)+ROW()-2))=Switch!$D$30,INDIRECT(\"a\" & (VLOOKUP(Switch!$D$30,$F$2:$G$44,2,FALSE)+ROW()-2)),\"\")","v":{"$error":"#N/A"}},{"$f":"IF(INDIRECT(\"c\" & (VLOOKUP(Switch!$D$31,$F$2:$G$44,2,FALSE)+ROW()-2))=Switch!$D$31,INDIRECT(\"a\" & (VLOOKUP(Switch!$D$31,$F$2:$G$44,2,FALSE)+ROW()-2)),\"\")","v":{"$error":"#N/A"}},{"$f":"IF(INDIRECT(\"c\" & (VLOOKUP(Switch!$D$32,$F$2:$G$44,2,FALSE)+ROW()-2))=Switch!$D$32,INDIRECT(\"a\" & (VLOOKUP(Switch!$D$32,$F$2:$G$44,2,FALSE)+ROW()-2)),\"\")","v":{"$error":"#N/A"}},{"$f":"IF(INDIRECT(\"c\" & (VLOOKUP(Switch!$D$33,$F$2:$G$44,2,FALSE)+ROW()-2))=Switch!$D$33,INDIRECT(\"a\" & (VLOOKUP(Switch!$D$33,$F$2:$G$44,2,FALSE)+ROW()-2)),\"\")","v":{"$error":"#N/A"}},{"$f":"IF(INDIRECT(\"c\" & (VLOOKUP(Switch!$D$34,$F$2:$G$44,2,FALSE)+ROW()-2))=Switch!$D$34,INDIRECT(\"a\" & (VLOOKUP(Switch!$D$34,$F$2:$G$44,2,FALSE)+ROW()-2)),\"\")","v":{"$error":"#N/A"}},{"$f":"IF(INDIRECT(\"c\" & (VLOOKUP(Switch!$D$35,$F$2:$G$44,2,FALSE)+ROW()-2))=Switch!$D$35,INDIRECT(\"a\" & (VLOOKUP(Switch!$D$35,$F$2:$G$44,2,FALSE)+ROW()-2)),\"\")","v":{"$error":"#N/A"}},{"$f":"IF(INDIRECT(\"c\" & (VLOOKUP(Switch!$D$36,$F$2:$G$44,2,FALSE)+ROW()-2))=Switch!$D$36,INDIRECT(\"a\" & (VLOOKUP(Switch!$D$36,$F$2:$G$44,2,FALSE)+ROW()-2)),\"\")","v":{"$error":"#N/A"}},{"$f":"IF(INDIRECT(\"c\" & (VLOOKUP(Switch!$D$37,$F$2:$G$44,2,FALSE)+ROW()-2))=Switch!$D$37,INDIRECT(\"a\" & (VLOOKUP(Switch!$D$37,$F$2:$G$44,2,FALSE)+ROW()-2)),\"\")","v":{"$error":"#N/A"}},{"$f":"IF(INDIRECT(\"c\" & (VLOOKUP(Switch!$D$38,$F$2:$G$44,2,FALSE)+ROW()-2))=Switch!$D$38,INDIRECT(\"a\" & (VLOOKUP(Switch!$D$38,$F$2:$G$44,2,FALSE)+ROW()-2)),\"\")","v":{"$error":"#N/A"}},{"$f":"IF(INDIRECT(\"c\" & (VLOOKUP(Switch!$D$39,$F$2:$G$44,2,FALSE)+ROW()-2))=Switch!$D$39,INDIRECT(\"a\" & (VLOOKUP(Switch!$D$39,$F$2:$G$44,2,FALSE)+ROW()-2)),\"\")","v":{"$error":"#N/A"}},{"$f":"IF(INDIRECT(\"c\" & (VLOOKUP(Switch!$D$40,$F$2:$G$44,2,FALSE)+ROW()-2))=Switch!$D$40,INDIRECT(\"a\" & (VLOOKUP(Switch!$D$40,$F$2:$G$44,2,FALSE)+ROW()-2)),\"\")","v":{"$error":"#N/A"}},{"$f":"IF(INDIRECT(\"c\" & (VLOOKUP(Switch!$D$52,$F$2:$G$44,2,FALSE)+ROW()-2))=Switch!$D$52,INDIRECT(\"a\" & (VLOOKUP(Switch!$D$52,$F$2:$G$44,2,FALSE)+ROW()-2)),\"\")","v":{"$error":"#N/A"}},{"$f":"IF(INDIRECT(\"c\" & (VLOOKUP(Switch!$D$53,$F$2:$G$44,2,FALSE)+ROW()-2))=Switch!$D$53,INDIRECT(\"a\" & (VLOOKUP(Switch!$D$53,$F$2:$G$44,2,FALSE)+ROW()-2)),\"\")","v":{"$error":"#N/A"}},{"$f":"IF(INDIRECT(\"c\" & (VLOOKUP(Switch!$D$54,$F$2:$G$44,2,FALSE)+ROW()-2))=Switch!$D$54,INDIRECT(\"a\" & (VLOOKUP(Switch!$D$54,$F$2:$G$44,2,FALSE)+ROW()-2)),\"\")","v":{"$error":"#N/A"}},{"$f":"IF(INDIRECT(\"c\" & (VLOOKUP(Switch!$D$55,$F$2:$G$44,2,FALSE)+ROW()-2))=Switch!$D$55,INDIRECT(\"a\" & (VLOOKUP(Switch!$D$55,$F$2:$G$44,2,FALSE)+ROW()-2)),\"\")","v":{"$error":"#N/A"}},{"$f":"IF(INDIRECT(\"c\" & (VLOOKUP(Switch!$D$56,$F$2:$G$44,2,FALSE)+ROW()-2))=Switch!$D$56,INDIRECT(\"a\" & (VLOOKUP(Switch!$D$56,$F$2:$G$44,2,FALSE)+ROW()-2)),\"\")","v":{"$error":"#N/A"}},{"$f":"IF(INDIRECT(\"c\" & (VLOOKUP(Switch!$D$57,$F$2:$G$44,2,FALSE)+ROW()-2))=Switch!$D$57,INDIRECT(\"a\" & (VLOOKUP(Switch!$D$57,$F$2:$G$44,2,FALSE)+ROW()-2)),\"\")","v":{"$error":"#N/A"}},{"$f":"IF(INDIRECT(\"c\" & (VLOOKUP(Switch!$D$58,$F$2:$G$44,2,FALSE)+ROW()-2))=Switch!$D$58,INDIRECT(\"a\" & (VLOOKUP(Switch!$D$58,$F$2:$G$44,2,FALSE)+ROW()-2)),\"\")","v":{"$error":"#N/A"}},{"$f":"IF(INDIRECT(\"c\" & (VLOOKUP(Switch!$D$59,$F$2:$G$44,2,FALSE)+ROW()-2))=Switch!$D$59,INDIRECT(\"a\" & (VLOOKUP(Switch!$D$59,$F$2:$G$44,2,FALSE)+ROW()-2)),\"\")","v":{"$error":"#N/A"}},{"$f":"IF(INDIRECT(\"c\" & (VLOOKUP(Switch!$D$60,$F$2:$G$44,2,FALSE)+ROW()-2))=Switch!$D$60,INDIRECT(\"a\" & (VLOOKUP(Switch!$D$60,$F$2:$G$44,2,FALSE)+ROW()-2)),\"\")","v":{"$error":"#N/A"}},{"$f":"IF(INDIRECT(\"c\" & (VLOOKUP(Switch!$D$61,$F$2:$G$44,2,FALSE)+ROW()-2))=Switch!$D$61,INDIRECT(\"a\" & (VLOOKUP(Switch!$D$61,$F$2:$G$44,2,FALSE)+ROW()-2)),\"\")","v":{"$error":"#N/A"}},{"$f":"IF(INDIRECT(\"c\" & (VLOOKUP(Switch!$D$62,$F$2:$G$44,2,FALSE)+ROW()-2))=Switch!$D$62,INDIRECT(\"a\" & (VLOOKUP(Switch!$D$62,$F$2:$G$44,2,FALSE)+ROW()-2)),\"\")","v":{"$error":"#N/A"}},{"$f":"IF(INDIRECT(\"c\" & (VLOOKUP(Switch!$D$63,$F$2:$G$44,2,FALSE)+ROW()-2))=Switch!$D$63,INDIRECT(\"a\" & (VLOOKUP(Switch!$D$63,$F$2:$G$44,2,FALSE)+ROW()-2)),\"\")","v":{"$error":"#N/A"}},{"$f":"IF(INDIRECT(\"c\" & (VLOOKUP(Switch!$D$64,$F$2:$G$44,2,FALSE)+ROW()-2))=Switch!$D$64,INDIRECT(\"a\" & (VLOOKUP(Switch!$D$64,$F$2:$G$44,2,FALSE)+ROW()-2)),\"\")","v":{"$error":"#N/A"}},{"$f":"IF(INDIRECT(\"c\" & (VLOOKUP(Switch!$D$65,$F$2:$G$44,2,FALSE)+ROW()-2))=Switch!$D$65,INDIRECT(\"a\" & (VLOOKUP(Switch!$D$65,$F$2:$G$44,2,FALSE)+ROW()-2)),\"\")","v":{"$error":"#N/A"}},{"$f":"IF(INDIRECT(\"c\" & (VLOOKUP(Switch!$D$66,$F$2:$G$44,2,FALSE)+ROW()-2))=Switch!$D$66,INDIRECT(\"a\" & (VLOOKUP(Switch!$D$66,$F$2:$G$44,2,FALSE)+ROW()-2)),\"\")","v":{"$error":"#N/A"}}]
["Bridge Stable Growth Fund C","GSGCC","Bridge Collective Investments (Pty) Ltd",{"$f":"ROW()","v":208},null,null,{"$f":"VLOOKUP(F208,$C$2:$D$637,2,FALSE)","v":{"$error":"#N/A"}},{"$f":"IF(INDIRECT(\"c\" & (VLOOKUP(Switch!$D$26,$F$2:$G$44,2,FALSE)+ROW()-2))=Switch!$D$26,INDIRECT(\"a\" & (VLOOKUP(Switch!$D$26,$F$2:$G$44,2,FALSE)+ROW()-2)),\"\")","v":{"$error":"#N/A"}},{"$f":"IF(INDIRECT(\"c\" & (VLOOKUP(Switch!$D$27,$F$2:$G$44,2,FALSE)+ROW()-2))=Switch!$D$27,INDIRECT(\"a\" & (VLOOKUP(Switch!$D$27,$F$2:$G$44,2,FALSE)+ROW()-2)),\"\")","v":{"$error":"#N/A"}},{"$f":"IF(INDIRECT(\"c\" & (VLOOKUP(Switch!$D$28,$F$2:$G$44,2,FALSE)+ROW()-2))=Switch!$D$28,INDIRECT(\"a\" & (VLOOKUP(Switch!$D$28,$F$2:$G$44,2,FALSE)+ROW()-2)),\"\")","v":{"$error":"#N/A"}},{"$f":"IF(INDIRECT(\"c\" & (VLOOKUP(Switch!$D$29,$F$2:$G$44,2,FALSE)+ROW()-2))=Switch!$D$29,INDIRECT(\"a\" & (VLOOKUP(Switch!$D$29,$F$2:$G$44,2,FALSE)+ROW()-2)),\"\")","v":{"$error":"#N/A"}},{"$f":"IF(INDIRECT(\"c\" & (VLOOKUP(Switch!$D$30,$F$2:$G$44,2,FALSE)+ROW()-2))=Switch!$D$30,INDIRECT(\"a\" & (VLOOKUP(Switch!$D$30,$F$2:$G$44,2,FALSE)+ROW()-2)),\"\")","v":{"$error":"#N/A"}},{"$f":"IF(INDIRECT(\"c\" & (VLOOKUP(Switch!$D$31,$F$2:$G$44,2,FALSE)+ROW()-2))=Switch!$D$31,INDIRECT(\"a\" & (VLOOKUP(Switch!$D$31,$F$2:$G$44,2,FALSE)+ROW()-2)),\"\")","v":{"$error":"#N/A"}},{"$f":"IF(INDIRECT(\"c\" & (VLOOKUP(Switch!$D$32,$F$2:$G$44,2,FALSE)+ROW()-2))=Switch!$D$32,INDIRECT(\"a\" & (VLOOKUP(Switch!$D$32,$F$2:$G$44,2,FALSE)+ROW()-2)),\"\")","v":{"$error":"#N/A"}},{"$f":"IF(INDIRECT(\"c\" & (VLOOKUP(Switch!$D$33,$F$2:$G$44,2,FALSE)+ROW()-2))=Switch!$D$33,INDIRECT(\"a\" & (VLOOKUP(Switch!$D$33,$F$2:$G$44,2,FALSE)+ROW()-2)),\"\")","v":{"$error":"#N/A"}},{"$f":"IF(INDIRECT(\"c\" & (VLOOKUP(Switch!$D$34,$F$2:$G$44,2,FALSE)+ROW()-2))=Switch!$D$34,INDIRECT(\"a\" & (VLOOKUP(Switch!$D$34,$F$2:$G$44,2,FALSE)+ROW()-2)),\"\")","v":{"$error":"#N/A"}},{"$f":"IF(INDIRECT(\"c\" & (VLOOKUP(Switch!$D$35,$F$2:$G$44,2,FALSE)+ROW()-2))=Switch!$D$35,INDIRECT(\"a\" & (VLOOKUP(Switch!$D$35,$F$2:$G$44,2,FALSE)+ROW()-2)),\"\")","v":{"$error":"#N/A"}},{"$f":"IF(INDIRECT(\"c\" & (VLOOKUP(Switch!$D$36,$F$2:$G$44,2,FALSE)+ROW()-2))=Switch!$D$36,INDIRECT(\"a\" & (VLOOKUP(Switch!$D$36,$F$2:$G$44,2,FALSE)+ROW()-2)),\"\")","v":{"$error":"#N/A"}},{"$f":"IF(INDIRECT(\"c\" & (VLOOKUP(Switch!$D$37,$F$2:$G$44,2,FALSE)+ROW()-2))=Switch!$D$37,INDIRECT(\"a\" & (VLOOKUP(Switch!$D$37,$F$2:$G$44,2,FALSE)+ROW()-2)),\"\")","v":{"$error":"#N/A"}},{"$f":"IF(INDIRECT(\"c\" & (VLOOKUP(Switch!$D$38,$F$2:$G$44,2,FALSE)+ROW()-2))=Switch!$D$38,INDIRECT(\"a\" & (VLOOKUP(Switch!$D$38,$F$2:$G$44,2,FALSE)+ROW()-2)),\"\")","v":{"$error":"#N/A"}},{"$f":"IF(INDIRECT(\"c\" & (VLOOKUP(Switch!$D$39,$F$2:$G$44,2,FALSE)+ROW()-2))=Switch!$D$39,INDIRECT(\"a\" & (VLOOKUP(Switch!$D$39,$F$2:$G$44,2,FALSE)+ROW()-2)),\"\")","v":{"$error":"#N/A"}},{"$f":"IF(INDIRECT(\"c\" & (VLOOKUP(Switch!$D$40,$F$2:$G$44,2,FALSE)+ROW()-2))=Switch!$D$40,INDIRECT(\"a\" & (VLOOKUP(Switch!$D$40,$F$2:$G$44,2,FALSE)+ROW()-2)),\"\")","v":{"$error":"#N/A"}},{"$f":"IF(INDIRECT(\"c\" & (VLOOKUP(Switch!$D$52,$F$2:$G$44,2,FALSE)+ROW()-2))=Switch!$D$52,INDIRECT(\"a\" & (VLOOKUP(Switch!$D$52,$F$2:$G$44,2,FALSE)+ROW()-2)),\"\")","v":{"$error":"#N/A"}},{"$f":"IF(INDIRECT(\"c\" & (VLOOKUP(Switch!$D$53,$F$2:$G$44,2,FALSE)+ROW()-2))=Switch!$D$53,INDIRECT(\"a\" & (VLOOKUP(Switch!$D$53,$F$2:$G$44,2,FALSE)+ROW()-2)),\"\")","v":{"$error":"#N/A"}},{"$f":"IF(INDIRECT(\"c\" & (VLOOKUP(Switch!$D$54,$F$2:$G$44,2,FALSE)+ROW()-2))=Switch!$D$54,INDIRECT(\"a\" & (VLOOKUP(Switch!$D$54,$F$2:$G$44,2,FALSE)+ROW()-2)),\"\")","v":{"$error":"#N/A"}},{"$f":"IF(INDIRECT(\"c\" & (VLOOKUP(Switch!$D$55,$F$2:$G$44,2,FALSE)+ROW()-2))=Switch!$D$55,INDIRECT(\"a\" & (VLOOKUP(Switch!$D$55,$F$2:$G$44,2,FALSE)+ROW()-2)),\"\")","v":{"$error":"#N/A"}},{"$f":"IF(INDIRECT(\"c\" & (VLOOKUP(Switch!$D$56,$F$2:$G$44,2,FALSE)+ROW()-2))=Switch!$D$56,INDIRECT(\"a\" & (VLOOKUP(Switch!$D$56,$F$2:$G$44,2,FALSE)+ROW()-2)),\"\")","v":{"$error":"#N/A"}},{"$f":"IF(INDIRECT(\"c\" & (VLOOKUP(Switch!$D$57,$F$2:$G$44,2,FALSE)+ROW()-2))=Switch!$D$57,INDIRECT(\"a\" & (VLOOKUP(Switch!$D$57,$F$2:$G$44,2,FALSE)+ROW()-2)),\"\")","v":{"$error":"#N/A"}},{"$f":"IF(INDIRECT(\"c\" & (VLOOKUP(Switch!$D$58,$F$2:$G$44,2,FALSE)+ROW()-2))=Switch!$D$58,INDIRECT(\"a\" & (VLOOKUP(Switch!$D$58,$F$2:$G$44,2,FALSE)+ROW()-2)),\"\")","v":{"$error":"#N/A"}},{"$f":"IF(INDIRECT(\"c\" & (VLOOKUP(Switch!$D$59,$F$2:$G$44,2,FALSE)+ROW()-2))=Switch!$D$59,INDIRECT(\"a\" & (VLOOKUP(Switch!$D$59,$F$2:$G$44,2,FALSE)+ROW()-2)),\"\")","v":{"$error":"#N/A"}},{"$f":"IF(INDIRECT(\"c\" & (VLOOKUP(Switch!$D$60,$F$2:$G$44,2,FALSE)+ROW()-2))=Switch!$D$60,INDIRECT(\"a\" & (VLOOKUP(Switch!$D$60,$F$2:$G$44,2,FALSE)+ROW()-2)),\"\")","v":{"$error":"#N/A"}},{"$f":"IF(INDIRECT(\"c\" & (VLOOKUP(Switch!$D$61,$F$2:$G$44,2,FALSE)+ROW()-2))=Switch!$D$61,INDIRECT(\"a\" & (VLOOKUP(Switch!$D$61,$F$2:$G$44,2,FALSE)+ROW()-2)),\"\")","v":{"$error":"#N/A"}},{"$f":"IF(INDIRECT(\"c\" & (VLOOKUP(Switch!$D$62,$F$2:$G$44,2,FALSE)+ROW()-2))=Switch!$D$62,INDIRECT(\"a\" & (VLOOKUP(Switch!$D$62,$F$2:$G$44,2,FALSE)+ROW()-2)),\"\")","v":{"$error":"#N/A"}},{"$f":"IF(INDIRECT(\"c\" & (VLOOKUP(Switch!$D$63,$F$2:$G$44,2,FALSE)+ROW()-2))=Switch!$D$63,INDIRECT(\"a\" & (VLOOKUP(Switch!$D$63,$F$2:$G$44,2,FALSE)+ROW()-2)),\"\")","v":{"$error":"#N/A"}},{"$f":"IF(INDIRECT(\"c\" & (VLOOKUP(Switch!$D$64,$F$2:$G$44,2,FALSE)+ROW()-2))=Switch!$D$64,INDIRECT(\"a\" & (VLOOKUP(Switch!$D$64,$F$2:$G$44,2,FALSE)+ROW()-2)),\"\")","v":{"$error":"#N/A"}},{"$f":"IF(INDIRECT(\"c\" & (VLOOKUP(Switch!$D$65,$F$2:$G$44,2,FALSE)+ROW()-2))=Switch!$D$65,INDIRECT(\"a\" & (VLOOKUP(Switch!$D$65,$F$2:$G$44,2,FALSE)+ROW()-2)),\"\")","v":{"$error":"#N/A"}},{"$f":"IF(INDIRECT(\"c\" & (VLOOKUP(Switch!$D$66,$F$2:$G$44,2,FALSE)+ROW()-2))=Switch!$D$66,INDIRECT(\"a\" & (VLOOKUP(Switch!$D$66,$F$2:$G$44,2,FALSE)+ROW()-2)),\"\")","v":{"$error":"#N/A"}}]
["Cadiz Absolute Yield Fund B2","CAYB2","Cadiz Collective Investments",{"$f":"ROW()","v":209},null,null,{"$f":"VLOOKUP(F209,$C$2:$D$637,2,FALSE)","v":{"$error":"#N/A"}},{"$f":"IF(INDIRECT(\"c\" & (VLOOKUP(Switch!$D$26,$F$2:$G$44,2,FALSE)+ROW()-2))=Switch!$D$26,INDIRECT(\"a\" & (VLOOKUP(Switch!$D$26,$F$2:$G$44,2,FALSE)+ROW()-2)),\"\")","v":{"$error":"#N/A"}},{"$f":"IF(INDIRECT(\"c\" & (VLOOKUP(Switch!$D$27,$F$2:$G$44,2,FALSE)+ROW()-2))=Switch!$D$27,INDIRECT(\"a\" & (VLOOKUP(Switch!$D$27,$F$2:$G$44,2,FALSE)+ROW()-2)),\"\")","v":{"$error":"#N/A"}},{"$f":"IF(INDIRECT(\"c\" & (VLOOKUP(Switch!$D$28,$F$2:$G$44,2,FALSE)+ROW()-2))=Switch!$D$28,INDIRECT(\"a\" & (VLOOKUP(Switch!$D$28,$F$2:$G$44,2,FALSE)+ROW()-2)),\"\")","v":{"$error":"#N/A"}},{"$f":"IF(INDIRECT(\"c\" & (VLOOKUP(Switch!$D$29,$F$2:$G$44,2,FALSE)+ROW()-2))=Switch!$D$29,INDIRECT(\"a\" & (VLOOKUP(Switch!$D$29,$F$2:$G$44,2,FALSE)+ROW()-2)),\"\")","v":{"$error":"#N/A"}},{"$f":"IF(INDIRECT(\"c\" & (VLOOKUP(Switch!$D$30,$F$2:$G$44,2,FALSE)+ROW()-2))=Switch!$D$30,INDIRECT(\"a\" & (VLOOKUP(Switch!$D$30,$F$2:$G$44,2,FALSE)+ROW()-2)),\"\")","v":{"$error":"#N/A"}},{"$f":"IF(INDIRECT(\"c\" & (VLOOKUP(Switch!$D$31,$F$2:$G$44,2,FALSE)+ROW()-2))=Switch!$D$31,INDIRECT(\"a\" & (VLOOKUP(Switch!$D$31,$F$2:$G$44,2,FALSE)+ROW()-2)),\"\")","v":{"$error":"#N/A"}},{"$f":"IF(INDIRECT(\"c\" & (VLOOKUP(Switch!$D$32,$F$2:$G$44,2,FALSE)+ROW()-2))=Switch!$D$32,INDIRECT(\"a\" & (VLOOKUP(Switch!$D$32,$F$2:$G$44,2,FALSE)+ROW()-2)),\"\")","v":{"$error":"#N/A"}},{"$f":"IF(INDIRECT(\"c\" & (VLOOKUP(Switch!$D$33,$F$2:$G$44,2,FALSE)+ROW()-2))=Switch!$D$33,INDIRECT(\"a\" & (VLOOKUP(Switch!$D$33,$F$2:$G$44,2,FALSE)+ROW()-2)),\"\")","v":{"$error":"#N/A"}},{"$f":"IF(INDIRECT(\"c\" & (VLOOKUP(Switch!$D$34,$F$2:$G$44,2,FALSE)+ROW()-2))=Switch!$D$34,INDIRECT(\"a\" & (VLOOKUP(Switch!$D$34,$F$2:$G$44,2,FALSE)+ROW()-2)),\"\")","v":{"$error":"#N/A"}},{"$f":"IF(INDIRECT(\"c\" & (VLOOKUP(Switch!$D$35,$F$2:$G$44,2,FALSE)+ROW()-2))=Switch!$D$35,INDIRECT(\"a\" & (VLOOKUP(Switch!$D$35,$F$2:$G$44,2,FALSE)+ROW()-2)),\"\")","v":{"$error":"#N/A"}},{"$f":"IF(INDIRECT(\"c\" & (VLOOKUP(Switch!$D$36,$F$2:$G$44,2,FALSE)+ROW()-2))=Switch!$D$36,INDIRECT(\"a\" & (VLOOKUP(Switch!$D$36,$F$2:$G$44,2,FALSE)+ROW()-2)),\"\")","v":{"$error":"#N/A"}},{"$f":"IF(INDIRECT(\"c\" & (VLOOKUP(Switch!$D$37,$F$2:$G$44,2,FALSE)+ROW()-2))=Switch!$D$37,INDIRECT(\"a\" & (VLOOKUP(Switch!$D$37,$F$2:$G$44,2,FALSE)+ROW()-2)),\"\")","v":{"$error":"#N/A"}},{"$f":"IF(INDIRECT(\"c\" & (VLOOKUP(Switch!$D$38,$F$2:$G$44,2,FALSE)+ROW()-2))=Switch!$D$38,INDIRECT(\"a\" & (VLOOKUP(Switch!$D$38,$F$2:$G$44,2,FALSE)+ROW()-2)),\"\")","v":{"$error":"#N/A"}},{"$f":"IF(INDIRECT(\"c\" & (VLOOKUP(Switch!$D$39,$F$2:$G$44,2,FALSE)+ROW()-2))=Switch!$D$39,INDIRECT(\"a\" & (VLOOKUP(Switch!$D$39,$F$2:$G$44,2,FALSE)+ROW()-2)),\"\")","v":{"$error":"#N/A"}},{"$f":"IF(INDIRECT(\"c\" & (VLOOKUP(Switch!$D$40,$F$2:$G$44,2,FALSE)+ROW()-2))=Switch!$D$40,INDIRECT(\"a\" & (VLOOKUP(Switch!$D$40,$F$2:$G$44,2,FALSE)+ROW()-2)),\"\")","v":{"$error":"#N/A"}},{"$f":"IF(INDIRECT(\"c\" & (VLOOKUP(Switch!$D$52,$F$2:$G$44,2,FALSE)+ROW()-2))=Switch!$D$52,INDIRECT(\"a\" & (VLOOKUP(Switch!$D$52,$F$2:$G$44,2,FALSE)+ROW()-2)),\"\")","v":{"$error":"#N/A"}},{"$f":"IF(INDIRECT(\"c\" & (VLOOKUP(Switch!$D$53,$F$2:$G$44,2,FALSE)+ROW()-2))=Switch!$D$53,INDIRECT(\"a\" & (VLOOKUP(Switch!$D$53,$F$2:$G$44,2,FALSE)+ROW()-2)),\"\")","v":{"$error":"#N/A"}},{"$f":"IF(INDIRECT(\"c\" & (VLOOKUP(Switch!$D$54,$F$2:$G$44,2,FALSE)+ROW()-2))=Switch!$D$54,INDIRECT(\"a\" & (VLOOKUP(Switch!$D$54,$F$2:$G$44,2,FALSE)+ROW()-2)),\"\")","v":{"$error":"#N/A"}},{"$f":"IF(INDIRECT(\"c\" & (VLOOKUP(Switch!$D$55,$F$2:$G$44,2,FALSE)+ROW()-2))=Switch!$D$55,INDIRECT(\"a\" & (VLOOKUP(Switch!$D$55,$F$2:$G$44,2,FALSE)+ROW()-2)),\"\")","v":{"$error":"#N/A"}},{"$f":"IF(INDIRECT(\"c\" & (VLOOKUP(Switch!$D$56,$F$2:$G$44,2,FALSE)+ROW()-2))=Switch!$D$56,INDIRECT(\"a\" & (VLOOKUP(Switch!$D$56,$F$2:$G$44,2,FALSE)+ROW()-2)),\"\")","v":{"$error":"#N/A"}},{"$f":"IF(INDIRECT(\"c\" & (VLOOKUP(Switch!$D$57,$F$2:$G$44,2,FALSE)+ROW()-2))=Switch!$D$57,INDIRECT(\"a\" & (VLOOKUP(Switch!$D$57,$F$2:$G$44,2,FALSE)+ROW()-2)),\"\")","v":{"$error":"#N/A"}},{"$f":"IF(INDIRECT(\"c\" & (VLOOKUP(Switch!$D$58,$F$2:$G$44,2,FALSE)+ROW()-2))=Switch!$D$58,INDIRECT(\"a\" & (VLOOKUP(Switch!$D$58,$F$2:$G$44,2,FALSE)+ROW()-2)),\"\")","v":{"$error":"#N/A"}},{"$f":"IF(INDIRECT(\"c\" & (VLOOKUP(Switch!$D$59,$F$2:$G$44,2,FALSE)+ROW()-2))=Switch!$D$59,INDIRECT(\"a\" & (VLOOKUP(Switch!$D$59,$F$2:$G$44,2,FALSE)+ROW()-2)),\"\")","v":{"$error":"#N/A"}},{"$f":"IF(INDIRECT(\"c\" & (VLOOKUP(Switch!$D$60,$F$2:$G$44,2,FALSE)+ROW()-2))=Switch!$D$60,INDIRECT(\"a\" & (VLOOKUP(Switch!$D$60,$F$2:$G$44,2,FALSE)+ROW()-2)),\"\")","v":{"$error":"#N/A"}},{"$f":"IF(INDIRECT(\"c\" & (VLOOKUP(Switch!$D$61,$F$2:$G$44,2,FALSE)+ROW()-2))=Switch!$D$61,INDIRECT(\"a\" & (VLOOKUP(Switch!$D$61,$F$2:$G$44,2,FALSE)+ROW()-2)),\"\")","v":{"$error":"#N/A"}},{"$f":"IF(INDIRECT(\"c\" & (VLOOKUP(Switch!$D$62,$F$2:$G$44,2,FALSE)+ROW()-2))=Switch!$D$62,INDIRECT(\"a\" & (VLOOKUP(Switch!$D$62,$F$2:$G$44,2,FALSE)+ROW()-2)),\"\")","v":{"$error":"#N/A"}},{"$f":"IF(INDIRECT(\"c\" & (VLOOKUP(Switch!$D$63,$F$2:$G$44,2,FALSE)+ROW()-2))=Switch!$D$63,INDIRECT(\"a\" & (VLOOKUP(Switch!$D$63,$F$2:$G$44,2,FALSE)+ROW()-2)),\"\")","v":{"$error":"#N/A"}},{"$f":"IF(INDIRECT(\"c\" & (VLOOKUP(Switch!$D$64,$F$2:$G$44,2,FALSE)+ROW()-2))=Switch!$D$64,INDIRECT(\"a\" & (VLOOKUP(Switch!$D$64,$F$2:$G$44,2,FALSE)+ROW()-2)),\"\")","v":{"$error":"#N/A"}},{"$f":"IF(INDIRECT(\"c\" & (VLOOKUP(Switch!$D$65,$F$2:$G$44,2,FALSE)+ROW()-2))=Switch!$D$65,INDIRECT(\"a\" & (VLOOKUP(Switch!$D$65,$F$2:$G$44,2,FALSE)+ROW()-2)),\"\")","v":{"$error":"#N/A"}},{"$f":"IF(INDIRECT(\"c\" & (VLOOKUP(Switch!$D$66,$F$2:$G$44,2,FALSE)+ROW()-2))=Switch!$D$66,INDIRECT(\"a\" & (VLOOKUP(Switch!$D$66,$F$2:$G$44,2,FALSE)+ROW()-2)),\"\")","v":{"$error":"#N/A"}}]
["Cadiz Global Flexible Fund ","CCEL","Cadiz Collective Investments",{"$f":"ROW()","v":210},null,null,{"$f":"VLOOKUP(F210,$C$2:$D$637,2,FALSE)","v":{"$error":"#N/A"}},{"$f":"IF(INDIRECT(\"c\" & (VLOOKUP(Switch!$D$26,$F$2:$G$44,2,FALSE)+ROW()-2))=Switch!$D$26,INDIRECT(\"a\" & (VLOOKUP(Switch!$D$26,$F$2:$G$44,2,FALSE)+ROW()-2)),\"\")","v":{"$error":"#N/A"}},{"$f":"IF(INDIRECT(\"c\" & (VLOOKUP(Switch!$D$27,$F$2:$G$44,2,FALSE)+ROW()-2))=Switch!$D$27,INDIRECT(\"a\" & (VLOOKUP(Switch!$D$27,$F$2:$G$44,2,FALSE)+ROW()-2)),\"\")","v":{"$error":"#N/A"}},{"$f":"IF(INDIRECT(\"c\" & (VLOOKUP(Switch!$D$28,$F$2:$G$44,2,FALSE)+ROW()-2))=Switch!$D$28,INDIRECT(\"a\" & (VLOOKUP(Switch!$D$28,$F$2:$G$44,2,FALSE)+ROW()-2)),\"\")","v":{"$error":"#N/A"}},{"$f":"IF(INDIRECT(\"c\" & (VLOOKUP(Switch!$D$29,$F$2:$G$44,2,FALSE)+ROW()-2))=Switch!$D$29,INDIRECT(\"a\" & (VLOOKUP(Switch!$D$29,$F$2:$G$44,2,FALSE)+ROW()-2)),\"\")","v":{"$error":"#N/A"}},{"$f":"IF(INDIRECT(\"c\" & (VLOOKUP(Switch!$D$30,$F$2:$G$44,2,FALSE)+ROW()-2))=Switch!$D$30,INDIRECT(\"a\" & (VLOOKUP(Switch!$D$30,$F$2:$G$44,2,FALSE)+ROW()-2)),\"\")","v":{"$error":"#N/A"}},{"$f":"IF(INDIRECT(\"c\" & (VLOOKUP(Switch!$D$31,$F$2:$G$44,2,FALSE)+ROW()-2))=Switch!$D$31,INDIRECT(\"a\" & (VLOOKUP(Switch!$D$31,$F$2:$G$44,2,FALSE)+ROW()-2)),\"\")","v":{"$error":"#N/A"}},{"$f":"IF(INDIRECT(\"c\" & (VLOOKUP(Switch!$D$32,$F$2:$G$44,2,FALSE)+ROW()-2))=Switch!$D$32,INDIRECT(\"a\" & (VLOOKUP(Switch!$D$32,$F$2:$G$44,2,FALSE)+ROW()-2)),\"\")","v":{"$error":"#N/A"}},{"$f":"IF(INDIRECT(\"c\" & (VLOOKUP(Switch!$D$33,$F$2:$G$44,2,FALSE)+ROW()-2))=Switch!$D$33,INDIRECT(\"a\" & (VLOOKUP(Switch!$D$33,$F$2:$G$44,2,FALSE)+ROW()-2)),\"\")","v":{"$error":"#N/A"}},{"$f":"IF(INDIRECT(\"c\" & (VLOOKUP(Switch!$D$34,$F$2:$G$44,2,FALSE)+ROW()-2))=Switch!$D$34,INDIRECT(\"a\" & (VLOOKUP(Switch!$D$34,$F$2:$G$44,2,FALSE)+ROW()-2)),\"\")","v":{"$error":"#N/A"}},{"$f":"IF(INDIRECT(\"c\" & (VLOOKUP(Switch!$D$35,$F$2:$G$44,2,FALSE)+ROW()-2))=Switch!$D$35,INDIRECT(\"a\" & (VLOOKUP(Switch!$D$35,$F$2:$G$44,2,FALSE)+ROW()-2)),\"\")","v":{"$error":"#N/A"}},{"$f":"IF(INDIRECT(\"c\" & (VLOOKUP(Switch!$D$36,$F$2:$G$44,2,FALSE)+ROW()-2))=Switch!$D$36,INDIRECT(\"a\" & (VLOOKUP(Switch!$D$36,$F$2:$G$44,2,FALSE)+ROW()-2)),\"\")","v":{"$error":"#N/A"}},{"$f":"IF(INDIRECT(\"c\" & (VLOOKUP(Switch!$D$37,$F$2:$G$44,2,FALSE)+ROW()-2))=Switch!$D$37,INDIRECT(\"a\" & (VLOOKUP(Switch!$D$37,$F$2:$G$44,2,FALSE)+ROW()-2)),\"\")","v":{"$error":"#N/A"}},{"$f":"IF(INDIRECT(\"c\" & (VLOOKUP(Switch!$D$38,$F$2:$G$44,2,FALSE)+ROW()-2))=Switch!$D$38,INDIRECT(\"a\" & (VLOOKUP(Switch!$D$38,$F$2:$G$44,2,FALSE)+ROW()-2)),\"\")","v":{"$error":"#N/A"}},{"$f":"IF(INDIRECT(\"c\" & (VLOOKUP(Switch!$D$39,$F$2:$G$44,2,FALSE)+ROW()-2))=Switch!$D$39,INDIRECT(\"a\" & (VLOOKUP(Switch!$D$39,$F$2:$G$44,2,FALSE)+ROW()-2)),\"\")","v":{"$error":"#N/A"}},{"$f":"IF(INDIRECT(\"c\" & (VLOOKUP(Switch!$D$40,$F$2:$G$44,2,FALSE)+ROW()-2))=Switch!$D$40,INDIRECT(\"a\" & (VLOOKUP(Switch!$D$40,$F$2:$G$44,2,FALSE)+ROW()-2)),\"\")","v":{"$error":"#N/A"}},{"$f":"IF(INDIRECT(\"c\" & (VLOOKUP(Switch!$D$52,$F$2:$G$44,2,FALSE)+ROW()-2))=Switch!$D$52,INDIRECT(\"a\" & (VLOOKUP(Switch!$D$52,$F$2:$G$44,2,FALSE)+ROW()-2)),\"\")","v":{"$error":"#N/A"}},{"$f":"IF(INDIRECT(\"c\" & (VLOOKUP(Switch!$D$53,$F$2:$G$44,2,FALSE)+ROW()-2))=Switch!$D$53,INDIRECT(\"a\" & (VLOOKUP(Switch!$D$53,$F$2:$G$44,2,FALSE)+ROW()-2)),\"\")","v":{"$error":"#N/A"}},{"$f":"IF(INDIRECT(\"c\" & (VLOOKUP(Switch!$D$54,$F$2:$G$44,2,FALSE)+ROW()-2))=Switch!$D$54,INDIRECT(\"a\" & (VLOOKUP(Switch!$D$54,$F$2:$G$44,2,FALSE)+ROW()-2)),\"\")","v":{"$error":"#N/A"}},{"$f":"IF(INDIRECT(\"c\" & (VLOOKUP(Switch!$D$55,$F$2:$G$44,2,FALSE)+ROW()-2))=Switch!$D$55,INDIRECT(\"a\" & (VLOOKUP(Switch!$D$55,$F$2:$G$44,2,FALSE)+ROW()-2)),\"\")","v":{"$error":"#N/A"}},{"$f":"IF(INDIRECT(\"c\" & (VLOOKUP(Switch!$D$56,$F$2:$G$44,2,FALSE)+ROW()-2))=Switch!$D$56,INDIRECT(\"a\" & (VLOOKUP(Switch!$D$56,$F$2:$G$44,2,FALSE)+ROW()-2)),\"\")","v":{"$error":"#N/A"}},{"$f":"IF(INDIRECT(\"c\" & (VLOOKUP(Switch!$D$57,$F$2:$G$44,2,FALSE)+ROW()-2))=Switch!$D$57,INDIRECT(\"a\" & (VLOOKUP(Switch!$D$57,$F$2:$G$44,2,FALSE)+ROW()-2)),\"\")","v":{"$error":"#N/A"}},{"$f":"IF(INDIRECT(\"c\" & (VLOOKUP(Switch!$D$58,$F$2:$G$44,2,FALSE)+ROW()-2))=Switch!$D$58,INDIRECT(\"a\" & (VLOOKUP(Switch!$D$58,$F$2:$G$44,2,FALSE)+ROW()-2)),\"\")","v":{"$error":"#N/A"}},{"$f":"IF(INDIRECT(\"c\" & (VLOOKUP(Switch!$D$59,$F$2:$G$44,2,FALSE)+ROW()-2))=Switch!$D$59,INDIRECT(\"a\" & (VLOOKUP(Switch!$D$59,$F$2:$G$44,2,FALSE)+ROW()-2)),\"\")","v":{"$error":"#N/A"}},{"$f":"IF(INDIRECT(\"c\" & (VLOOKUP(Switch!$D$60,$F$2:$G$44,2,FALSE)+ROW()-2))=Switch!$D$60,INDIRECT(\"a\" & (VLOOKUP(Switch!$D$60,$F$2:$G$44,2,FALSE)+ROW()-2)),\"\")","v":{"$error":"#N/A"}},{"$f":"IF(INDIRECT(\"c\" & (VLOOKUP(Switch!$D$61,$F$2:$G$44,2,FALSE)+ROW()-2))=Switch!$D$61,INDIRECT(\"a\" & (VLOOKUP(Switch!$D$61,$F$2:$G$44,2,FALSE)+ROW()-2)),\"\")","v":{"$error":"#N/A"}},{"$f":"IF(INDIRECT(\"c\" & (VLOOKUP(Switch!$D$62,$F$2:$G$44,2,FALSE)+ROW()-2))=Switch!$D$62,INDIRECT(\"a\" & (VLOOKUP(Switch!$D$62,$F$2:$G$44,2,FALSE)+ROW()-2)),\"\")","v":{"$error":"#N/A"}},{"$f":"IF(INDIRECT(\"c\" & (VLOOKUP(Switch!$D$63,$F$2:$G$44,2,FALSE)+ROW()-2))=Switch!$D$63,INDIRECT(\"a\" & (VLOOKUP(Switch!$D$63,$F$2:$G$44,2,FALSE)+ROW()-2)),\"\")","v":{"$error":"#N/A"}},{"$f":"IF(INDIRECT(\"c\" & (VLOOKUP(Switch!$D$64,$F$2:$G$44,2,FALSE)+ROW()-2))=Switch!$D$64,INDIRECT(\"a\" & (VLOOKUP(Switch!$D$64,$F$2:$G$44,2,FALSE)+ROW()-2)),\"\")","v":{"$error":"#N/A"}},{"$f":"IF(INDIRECT(\"c\" & (VLOOKUP(Switch!$D$65,$F$2:$G$44,2,FALSE)+ROW()-2))=Switch!$D$65,INDIRECT(\"a\" & (VLOOKUP(Switch!$D$65,$F$2:$G$44,2,FALSE)+ROW()-2)),\"\")","v":{"$error":"#N/A"}},{"$f":"IF(INDIRECT(\"c\" & (VLOOKUP(Switch!$D$66,$F$2:$G$44,2,FALSE)+ROW()-2))=Switch!$D$66,INDIRECT(\"a\" & (VLOOKUP(Switch!$D$66,$F$2:$G$44,2,FALSE)+ROW()-2)),\"\")","v":{"$error":"#N/A"}}]
["Cadiz Balanced Fund","CMFCB","Cadiz Collective Investments",{"$f":"ROW()","v":211},null,null,{"$f":"VLOOKUP(F211,$C$2:$D$637,2,FALSE)","v":{"$error":"#N/A"}},{"$f":"IF(INDIRECT(\"c\" & (VLOOKUP(Switch!$D$26,$F$2:$G$44,2,FALSE)+ROW()-2))=Switch!$D$26,INDIRECT(\"a\" & (VLOOKUP(Switch!$D$26,$F$2:$G$44,2,FALSE)+ROW()-2)),\"\")","v":{"$error":"#N/A"}},{"$f":"IF(INDIRECT(\"c\" & (VLOOKUP(Switch!$D$27,$F$2:$G$44,2,FALSE)+ROW()-2))=Switch!$D$27,INDIRECT(\"a\" & (VLOOKUP(Switch!$D$27,$F$2:$G$44,2,FALSE)+ROW()-2)),\"\")","v":{"$error":"#N/A"}},{"$f":"IF(INDIRECT(\"c\" & (VLOOKUP(Switch!$D$28,$F$2:$G$44,2,FALSE)+ROW()-2))=Switch!$D$28,INDIRECT(\"a\" & (VLOOKUP(Switch!$D$28,$F$2:$G$44,2,FALSE)+ROW()-2)),\"\")","v":{"$error":"#N/A"}},{"$f":"IF(INDIRECT(\"c\" & (VLOOKUP(Switch!$D$29,$F$2:$G$44,2,FALSE)+ROW()-2))=Switch!$D$29,INDIRECT(\"a\" & (VLOOKUP(Switch!$D$29,$F$2:$G$44,2,FALSE)+ROW()-2)),\"\")","v":{"$error":"#N/A"}},{"$f":"IF(INDIRECT(\"c\" & (VLOOKUP(Switch!$D$30,$F$2:$G$44,2,FALSE)+ROW()-2))=Switch!$D$30,INDIRECT(\"a\" & (VLOOKUP(Switch!$D$30,$F$2:$G$44,2,FALSE)+ROW()-2)),\"\")","v":{"$error":"#N/A"}},{"$f":"IF(INDIRECT(\"c\" & (VLOOKUP(Switch!$D$31,$F$2:$G$44,2,FALSE)+ROW()-2))=Switch!$D$31,INDIRECT(\"a\" & (VLOOKUP(Switch!$D$31,$F$2:$G$44,2,FALSE)+ROW()-2)),\"\")","v":{"$error":"#N/A"}},{"$f":"IF(INDIRECT(\"c\" & (VLOOKUP(Switch!$D$32,$F$2:$G$44,2,FALSE)+ROW()-2))=Switch!$D$32,INDIRECT(\"a\" & (VLOOKUP(Switch!$D$32,$F$2:$G$44,2,FALSE)+ROW()-2)),\"\")","v":{"$error":"#N/A"}},{"$f":"IF(INDIRECT(\"c\" & (VLOOKUP(Switch!$D$33,$F$2:$G$44,2,FALSE)+ROW()-2))=Switch!$D$33,INDIRECT(\"a\" & (VLOOKUP(Switch!$D$33,$F$2:$G$44,2,FALSE)+ROW()-2)),\"\")","v":{"$error":"#N/A"}},{"$f":"IF(INDIRECT(\"c\" & (VLOOKUP(Switch!$D$34,$F$2:$G$44,2,FALSE)+ROW()-2))=Switch!$D$34,INDIRECT(\"a\" & (VLOOKUP(Switch!$D$34,$F$2:$G$44,2,FALSE)+ROW()-2)),\"\")","v":{"$error":"#N/A"}},{"$f":"IF(INDIRECT(\"c\" & (VLOOKUP(Switch!$D$35,$F$2:$G$44,2,FALSE)+ROW()-2))=Switch!$D$35,INDIRECT(\"a\" & (VLOOKUP(Switch!$D$35,$F$2:$G$44,2,FALSE)+ROW()-2)),\"\")","v":{"$error":"#N/A"}},{"$f":"IF(INDIRECT(\"c\" & (VLOOKUP(Switch!$D$36,$F$2:$G$44,2,FALSE)+ROW()-2))=Switch!$D$36,INDIRECT(\"a\" & (VLOOKUP(Switch!$D$36,$F$2:$G$44,2,FALSE)+ROW()-2)),\"\")","v":{"$error":"#N/A"}},{"$f":"IF(INDIRECT(\"c\" & (VLOOKUP(Switch!$D$37,$F$2:$G$44,2,FALSE)+ROW()-2))=Switch!$D$37,INDIRECT(\"a\" & (VLOOKUP(Switch!$D$37,$F$2:$G$44,2,FALSE)+ROW()-2)),\"\")","v":{"$error":"#N/A"}},{"$f":"IF(INDIRECT(\"c\" & (VLOOKUP(Switch!$D$38,$F$2:$G$44,2,FALSE)+ROW()-2))=Switch!$D$38,INDIRECT(\"a\" & (VLOOKUP(Switch!$D$38,$F$2:$G$44,2,FALSE)+ROW()-2)),\"\")","v":{"$error":"#N/A"}},{"$f":"IF(INDIRECT(\"c\" & (VLOOKUP(Switch!$D$39,$F$2:$G$44,2,FALSE)+ROW()-2))=Switch!$D$39,INDIRECT(\"a\" & (VLOOKUP(Switch!$D$39,$F$2:$G$44,2,FALSE)+ROW()-2)),\"\")","v":{"$error":"#N/A"}},{"$f":"IF(INDIRECT(\"c\" & (VLOOKUP(Switch!$D$40,$F$2:$G$44,2,FALSE)+ROW()-2))=Switch!$D$40,INDIRECT(\"a\" & (VLOOKUP(Switch!$D$40,$F$2:$G$44,2,FALSE)+ROW()-2)),\"\")","v":{"$error":"#N/A"}},{"$f":"IF(INDIRECT(\"c\" & (VLOOKUP(Switch!$D$52,$F$2:$G$44,2,FALSE)+ROW()-2))=Switch!$D$52,INDIRECT(\"a\" & (VLOOKUP(Switch!$D$52,$F$2:$G$44,2,FALSE)+ROW()-2)),\"\")","v":{"$error":"#N/A"}},{"$f":"IF(INDIRECT(\"c\" & (VLOOKUP(Switch!$D$53,$F$2:$G$44,2,FALSE)+ROW()-2))=Switch!$D$53,INDIRECT(\"a\" & (VLOOKUP(Switch!$D$53,$F$2:$G$44,2,FALSE)+ROW()-2)),\"\")","v":{"$error":"#N/A"}},{"$f":"IF(INDIRECT(\"c\" & (VLOOKUP(Switch!$D$54,$F$2:$G$44,2,FALSE)+ROW()-2))=Switch!$D$54,INDIRECT(\"a\" & (VLOOKUP(Switch!$D$54,$F$2:$G$44,2,FALSE)+ROW()-2)),\"\")","v":{"$error":"#N/A"}},{"$f":"IF(INDIRECT(\"c\" & (VLOOKUP(Switch!$D$55,$F$2:$G$44,2,FALSE)+ROW()-2))=Switch!$D$55,INDIRECT(\"a\" & (VLOOKUP(Switch!$D$55,$F$2:$G$44,2,FALSE)+ROW()-2)),\"\")","v":{"$error":"#N/A"}},{"$f":"IF(INDIRECT(\"c\" & (VLOOKUP(Switch!$D$56,$F$2:$G$44,2,FALSE)+ROW()-2))=Switch!$D$56,INDIRECT(\"a\" & (VLOOKUP(Switch!$D$56,$F$2:$G$44,2,FALSE)+ROW()-2)),\"\")","v":{"$error":"#N/A"}},{"$f":"IF(INDIRECT(\"c\" & (VLOOKUP(Switch!$D$57,$F$2:$G$44,2,FALSE)+ROW()-2))=Switch!$D$57,INDIRECT(\"a\" & (VLOOKUP(Switch!$D$57,$F$2:$G$44,2,FALSE)+ROW()-2)),\"\")","v":{"$error":"#N/A"}},{"$f":"IF(INDIRECT(\"c\" & (VLOOKUP(Switch!$D$58,$F$2:$G$44,2,FALSE)+ROW()-2))=Switch!$D$58,INDIRECT(\"a\" & (VLOOKUP(Switch!$D$58,$F$2:$G$44,2,FALSE)+ROW()-2)),\"\")","v":{"$error":"#N/A"}},{"$f":"IF(INDIRECT(\"c\" & (VLOOKUP(Switch!$D$59,$F$2:$G$44,2,FALSE)+ROW()-2))=Switch!$D$59,INDIRECT(\"a\" & (VLOOKUP(Switch!$D$59,$F$2:$G$44,2,FALSE)+ROW()-2)),\"\")","v":{"$error":"#N/A"}},{"$f":"IF(INDIRECT(\"c\" & (VLOOKUP(Switch!$D$60,$F$2:$G$44,2,FALSE)+ROW()-2))=Switch!$D$60,INDIRECT(\"a\" & (VLOOKUP(Switch!$D$60,$F$2:$G$44,2,FALSE)+ROW()-2)),\"\")","v":{"$error":"#N/A"}},{"$f":"IF(INDIRECT(\"c\" & (VLOOKUP(Switch!$D$61,$F$2:$G$44,2,FALSE)+ROW()-2))=Switch!$D$61,INDIRECT(\"a\" & (VLOOKUP(Switch!$D$61,$F$2:$G$44,2,FALSE)+ROW()-2)),\"\")","v":{"$error":"#N/A"}},{"$f":"IF(INDIRECT(\"c\" & (VLOOKUP(Switch!$D$62,$F$2:$G$44,2,FALSE)+ROW()-2))=Switch!$D$62,INDIRECT(\"a\" & (VLOOKUP(Switch!$D$62,$F$2:$G$44,2,FALSE)+ROW()-2)),\"\")","v":{"$error":"#N/A"}},{"$f":"IF(INDIRECT(\"c\" & (VLOOKUP(Switch!$D$63,$F$2:$G$44,2,FALSE)+ROW()-2))=Switch!$D$63,INDIRECT(\"a\" & (VLOOKUP(Switch!$D$63,$F$2:$G$44,2,FALSE)+ROW()-2)),\"\")","v":{"$error":"#N/A"}},{"$f":"IF(INDIRECT(\"c\" & (VLOOKUP(Switch!$D$64,$F$2:$G$44,2,FALSE)+ROW()-2))=Switch!$D$64,INDIRECT(\"a\" & (VLOOKUP(Switch!$D$64,$F$2:$G$44,2,FALSE)+ROW()-2)),\"\")","v":{"$error":"#N/A"}},{"$f":"IF(INDIRECT(\"c\" & (VLOOKUP(Switch!$D$65,$F$2:$G$44,2,FALSE)+ROW()-2))=Switch!$D$65,INDIRECT(\"a\" & (VLOOKUP(Switch!$D$65,$F$2:$G$44,2,FALSE)+ROW()-2)),\"\")","v":{"$error":"#N/A"}},{"$f":"IF(INDIRECT(\"c\" & (VLOOKUP(Switch!$D$66,$F$2:$G$44,2,FALSE)+ROW()-2))=Switch!$D$66,INDIRECT(\"a\" & (VLOOKUP(Switch!$D$66,$F$2:$G$44,2,FALSE)+ROW()-2)),\"\")","v":{"$error":"#N/A"}}]
["Cadiz Equity Fund ","AHMF","Cadiz Collective Investments",{"$f":"ROW()","v":212},null,null,{"$f":"VLOOKUP(F212,$C$2:$D$637,2,FALSE)","v":{"$error":"#N/A"}},{"$f":"IF(INDIRECT(\"c\" & (VLOOKUP(Switch!$D$26,$F$2:$G$44,2,FALSE)+ROW()-2))=Switch!$D$26,INDIRECT(\"a\" & (VLOOKUP(Switch!$D$26,$F$2:$G$44,2,FALSE)+ROW()-2)),\"\")","v":{"$error":"#N/A"}},{"$f":"IF(INDIRECT(\"c\" & (VLOOKUP(Switch!$D$27,$F$2:$G$44,2,FALSE)+ROW()-2))=Switch!$D$27,INDIRECT(\"a\" & (VLOOKUP(Switch!$D$27,$F$2:$G$44,2,FALSE)+ROW()-2)),\"\")","v":{"$error":"#N/A"}},{"$f":"IF(INDIRECT(\"c\" & (VLOOKUP(Switch!$D$28,$F$2:$G$44,2,FALSE)+ROW()-2))=Switch!$D$28,INDIRECT(\"a\" & (VLOOKUP(Switch!$D$28,$F$2:$G$44,2,FALSE)+ROW()-2)),\"\")","v":{"$error":"#N/A"}},{"$f":"IF(INDIRECT(\"c\" & (VLOOKUP(Switch!$D$29,$F$2:$G$44,2,FALSE)+ROW()-2))=Switch!$D$29,INDIRECT(\"a\" & (VLOOKUP(Switch!$D$29,$F$2:$G$44,2,FALSE)+ROW()-2)),\"\")","v":{"$error":"#N/A"}},{"$f":"IF(INDIRECT(\"c\" & (VLOOKUP(Switch!$D$30,$F$2:$G$44,2,FALSE)+ROW()-2))=Switch!$D$30,INDIRECT(\"a\" & (VLOOKUP(Switch!$D$30,$F$2:$G$44,2,FALSE)+ROW()-2)),\"\")","v":{"$error":"#N/A"}},{"$f":"IF(INDIRECT(\"c\" & (VLOOKUP(Switch!$D$31,$F$2:$G$44,2,FALSE)+ROW()-2))=Switch!$D$31,INDIRECT(\"a\" & (VLOOKUP(Switch!$D$31,$F$2:$G$44,2,FALSE)+ROW()-2)),\"\")","v":{"$error":"#N/A"}},{"$f":"IF(INDIRECT(\"c\" & (VLOOKUP(Switch!$D$32,$F$2:$G$44,2,FALSE)+ROW()-2))=Switch!$D$32,INDIRECT(\"a\" & (VLOOKUP(Switch!$D$32,$F$2:$G$44,2,FALSE)+ROW()-2)),\"\")","v":{"$error":"#N/A"}},{"$f":"IF(INDIRECT(\"c\" & (VLOOKUP(Switch!$D$33,$F$2:$G$44,2,FALSE)+ROW()-2))=Switch!$D$33,INDIRECT(\"a\" & (VLOOKUP(Switch!$D$33,$F$2:$G$44,2,FALSE)+ROW()-2)),\"\")","v":{"$error":"#N/A"}},{"$f":"IF(INDIRECT(\"c\" & (VLOOKUP(Switch!$D$34,$F$2:$G$44,2,FALSE)+ROW()-2))=Switch!$D$34,INDIRECT(\"a\" & (VLOOKUP(Switch!$D$34,$F$2:$G$44,2,FALSE)+ROW()-2)),\"\")","v":{"$error":"#N/A"}},{"$f":"IF(INDIRECT(\"c\" & (VLOOKUP(Switch!$D$35,$F$2:$G$44,2,FALSE)+ROW()-2))=Switch!$D$35,INDIRECT(\"a\" & (VLOOKUP(Switch!$D$35,$F$2:$G$44,2,FALSE)+ROW()-2)),\"\")","v":{"$error":"#N/A"}},{"$f":"IF(INDIRECT(\"c\" & (VLOOKUP(Switch!$D$36,$F$2:$G$44,2,FALSE)+ROW()-2))=Switch!$D$36,INDIRECT(\"a\" & (VLOOKUP(Switch!$D$36,$F$2:$G$44,2,FALSE)+ROW()-2)),\"\")","v":{"$error":"#N/A"}},{"$f":"IF(INDIRECT(\"c\" & (VLOOKUP(Switch!$D$37,$F$2:$G$44,2,FALSE)+ROW()-2))=Switch!$D$37,INDIRECT(\"a\" & (VLOOKUP(Switch!$D$37,$F$2:$G$44,2,FALSE)+ROW()-2)),\"\")","v":{"$error":"#N/A"}},{"$f":"IF(INDIRECT(\"c\" & (VLOOKUP(Switch!$D$38,$F$2:$G$44,2,FALSE)+ROW()-2))=Switch!$D$38,INDIRECT(\"a\" & (VLOOKUP(Switch!$D$38,$F$2:$G$44,2,FALSE)+ROW()-2)),\"\")","v":{"$error":"#N/A"}},{"$f":"IF(INDIRECT(\"c\" & (VLOOKUP(Switch!$D$39,$F$2:$G$44,2,FALSE)+ROW()-2))=Switch!$D$39,INDIRECT(\"a\" & (VLOOKUP(Switch!$D$39,$F$2:$G$44,2,FALSE)+ROW()-2)),\"\")","v":{"$error":"#N/A"}},{"$f":"IF(INDIRECT(\"c\" & (VLOOKUP(Switch!$D$40,$F$2:$G$44,2,FALSE)+ROW()-2))=Switch!$D$40,INDIRECT(\"a\" & (VLOOKUP(Switch!$D$40,$F$2:$G$44,2,FALSE)+ROW()-2)),\"\")","v":{"$error":"#N/A"}},{"$f":"IF(INDIRECT(\"c\" & (VLOOKUP(Switch!$D$52,$F$2:$G$44,2,FALSE)+ROW()-2))=Switch!$D$52,INDIRECT(\"a\" & (VLOOKUP(Switch!$D$52,$F$2:$G$44,2,FALSE)+ROW()-2)),\"\")","v":{"$error":"#N/A"}},{"$f":"IF(INDIRECT(\"c\" & (VLOOKUP(Switch!$D$53,$F$2:$G$44,2,FALSE)+ROW()-2))=Switch!$D$53,INDIRECT(\"a\" & (VLOOKUP(Switch!$D$53,$F$2:$G$44,2,FALSE)+ROW()-2)),\"\")","v":{"$error":"#N/A"}},{"$f":"IF(INDIRECT(\"c\" & (VLOOKUP(Switch!$D$54,$F$2:$G$44,2,FALSE)+ROW()-2))=Switch!$D$54,INDIRECT(\"a\" & (VLOOKUP(Switch!$D$54,$F$2:$G$44,2,FALSE)+ROW()-2)),\"\")","v":{"$error":"#N/A"}},{"$f":"IF(INDIRECT(\"c\" & (VLOOKUP(Switch!$D$55,$F$2:$G$44,2,FALSE)+ROW()-2))=Switch!$D$55,INDIRECT(\"a\" & (VLOOKUP(Switch!$D$55,$F$2:$G$44,2,FALSE)+ROW()-2)),\"\")","v":{"$error":"#N/A"}},{"$f":"IF(INDIRECT(\"c\" & (VLOOKUP(Switch!$D$56,$F$2:$G$44,2,FALSE)+ROW()-2))=Switch!$D$56,INDIRECT(\"a\" & (VLOOKUP(Switch!$D$56,$F$2:$G$44,2,FALSE)+ROW()-2)),\"\")","v":{"$error":"#N/A"}},{"$f":"IF(INDIRECT(\"c\" & (VLOOKUP(Switch!$D$57,$F$2:$G$44,2,FALSE)+ROW()-2))=Switch!$D$57,INDIRECT(\"a\" & (VLOOKUP(Switch!$D$57,$F$2:$G$44,2,FALSE)+ROW()-2)),\"\")","v":{"$error":"#N/A"}},{"$f":"IF(INDIRECT(\"c\" & (VLOOKUP(Switch!$D$58,$F$2:$G$44,2,FALSE)+ROW()-2))=Switch!$D$58,INDIRECT(\"a\" & (VLOOKUP(Switch!$D$58,$F$2:$G$44,2,FALSE)+ROW()-2)),\"\")","v":{"$error":"#N/A"}},{"$f":"IF(INDIRECT(\"c\" & (VLOOKUP(Switch!$D$59,$F$2:$G$44,2,FALSE)+ROW()-2))=Switch!$D$59,INDIRECT(\"a\" & (VLOOKUP(Switch!$D$59,$F$2:$G$44,2,FALSE)+ROW()-2)),\"\")","v":{"$error":"#N/A"}},{"$f":"IF(INDIRECT(\"c\" & (VLOOKUP(Switch!$D$60,$F$2:$G$44,2,FALSE)+ROW()-2))=Switch!$D$60,INDIRECT(\"a\" & (VLOOKUP(Switch!$D$60,$F$2:$G$44,2,FALSE)+ROW()-2)),\"\")","v":{"$error":"#N/A"}},{"$f":"IF(INDIRECT(\"c\" & (VLOOKUP(Switch!$D$61,$F$2:$G$44,2,FALSE)+ROW()-2))=Switch!$D$61,INDIRECT(\"a\" & (VLOOKUP(Switch!$D$61,$F$2:$G$44,2,FALSE)+ROW()-2)),\"\")","v":{"$error":"#N/A"}},{"$f":"IF(INDIRECT(\"c\" & (VLOOKUP(Switch!$D$62,$F$2:$G$44,2,FALSE)+ROW()-2))=Switch!$D$62,INDIRECT(\"a\" & (VLOOKUP(Switch!$D$62,$F$2:$G$44,2,FALSE)+ROW()-2)),\"\")","v":{"$error":"#N/A"}},{"$f":"IF(INDIRECT(\"c\" & (VLOOKUP(Switch!$D$63,$F$2:$G$44,2,FALSE)+ROW()-2))=Switch!$D$63,INDIRECT(\"a\" & (VLOOKUP(Switch!$D$63,$F$2:$G$44,2,FALSE)+ROW()-2)),\"\")","v":{"$error":"#N/A"}},{"$f":"IF(INDIRECT(\"c\" & (VLOOKUP(Switch!$D$64,$F$2:$G$44,2,FALSE)+ROW()-2))=Switch!$D$64,INDIRECT(\"a\" & (VLOOKUP(Switch!$D$64,$F$2:$G$44,2,FALSE)+ROW()-2)),\"\")","v":{"$error":"#N/A"}},{"$f":"IF(INDIRECT(\"c\" & (VLOOKUP(Switch!$D$65,$F$2:$G$44,2,FALSE)+ROW()-2))=Switch!$D$65,INDIRECT(\"a\" & (VLOOKUP(Switch!$D$65,$F$2:$G$44,2,FALSE)+ROW()-2)),\"\")","v":{"$error":"#N/A"}},{"$f":"IF(INDIRECT(\"c\" & (VLOOKUP(Switch!$D$66,$F$2:$G$44,2,FALSE)+ROW()-2))=Switch!$D$66,INDIRECT(\"a\" & (VLOOKUP(Switch!$D$66,$F$2:$G$44,2,FALSE)+ROW()-2)),\"\")","v":{"$error":"#N/A"}}]
["Cadiz Stable Fund B","CASCB","Cadiz Collective Investments",{"$f":"ROW()","v":213},null,null,{"$f":"VLOOKUP(F213,$C$2:$D$637,2,FALSE)","v":{"$error":"#N/A"}},{"$f":"IF(INDIRECT(\"c\" & (VLOOKUP(Switch!$D$26,$F$2:$G$44,2,FALSE)+ROW()-2))=Switch!$D$26,INDIRECT(\"a\" & (VLOOKUP(Switch!$D$26,$F$2:$G$44,2,FALSE)+ROW()-2)),\"\")","v":{"$error":"#N/A"}},{"$f":"IF(INDIRECT(\"c\" & (VLOOKUP(Switch!$D$27,$F$2:$G$44,2,FALSE)+ROW()-2))=Switch!$D$27,INDIRECT(\"a\" & (VLOOKUP(Switch!$D$27,$F$2:$G$44,2,FALSE)+ROW()-2)),\"\")","v":{"$error":"#N/A"}},{"$f":"IF(INDIRECT(\"c\" & (VLOOKUP(Switch!$D$28,$F$2:$G$44,2,FALSE)+ROW()-2))=Switch!$D$28,INDIRECT(\"a\" & (VLOOKUP(Switch!$D$28,$F$2:$G$44,2,FALSE)+ROW()-2)),\"\")","v":{"$error":"#N/A"}},{"$f":"IF(INDIRECT(\"c\" & (VLOOKUP(Switch!$D$29,$F$2:$G$44,2,FALSE)+ROW()-2))=Switch!$D$29,INDIRECT(\"a\" & (VLOOKUP(Switch!$D$29,$F$2:$G$44,2,FALSE)+ROW()-2)),\"\")","v":{"$error":"#N/A"}},{"$f":"IF(INDIRECT(\"c\" & (VLOOKUP(Switch!$D$30,$F$2:$G$44,2,FALSE)+ROW()-2))=Switch!$D$30,INDIRECT(\"a\" & (VLOOKUP(Switch!$D$30,$F$2:$G$44,2,FALSE)+ROW()-2)),\"\")","v":{"$error":"#N/A"}},{"$f":"IF(INDIRECT(\"c\" & (VLOOKUP(Switch!$D$31,$F$2:$G$44,2,FALSE)+ROW()-2))=Switch!$D$31,INDIRECT(\"a\" & (VLOOKUP(Switch!$D$31,$F$2:$G$44,2,FALSE)+ROW()-2)),\"\")","v":{"$error":"#N/A"}},{"$f":"IF(INDIRECT(\"c\" & (VLOOKUP(Switch!$D$32,$F$2:$G$44,2,FALSE)+ROW()-2))=Switch!$D$32,INDIRECT(\"a\" & (VLOOKUP(Switch!$D$32,$F$2:$G$44,2,FALSE)+ROW()-2)),\"\")","v":{"$error":"#N/A"}},{"$f":"IF(INDIRECT(\"c\" & (VLOOKUP(Switch!$D$33,$F$2:$G$44,2,FALSE)+ROW()-2))=Switch!$D$33,INDIRECT(\"a\" & (VLOOKUP(Switch!$D$33,$F$2:$G$44,2,FALSE)+ROW()-2)),\"\")","v":{"$error":"#N/A"}},{"$f":"IF(INDIRECT(\"c\" & (VLOOKUP(Switch!$D$34,$F$2:$G$44,2,FALSE)+ROW()-2))=Switch!$D$34,INDIRECT(\"a\" & (VLOOKUP(Switch!$D$34,$F$2:$G$44,2,FALSE)+ROW()-2)),\"\")","v":{"$error":"#N/A"}},{"$f":"IF(INDIRECT(\"c\" & (VLOOKUP(Switch!$D$35,$F$2:$G$44,2,FALSE)+ROW()-2))=Switch!$D$35,INDIRECT(\"a\" & (VLOOKUP(Switch!$D$35,$F$2:$G$44,2,FALSE)+ROW()-2)),\"\")","v":{"$error":"#N/A"}},{"$f":"IF(INDIRECT(\"c\" & (VLOOKUP(Switch!$D$36,$F$2:$G$44,2,FALSE)+ROW()-2))=Switch!$D$36,INDIRECT(\"a\" & (VLOOKUP(Switch!$D$36,$F$2:$G$44,2,FALSE)+ROW()-2)),\"\")","v":{"$error":"#N/A"}},{"$f":"IF(INDIRECT(\"c\" & (VLOOKUP(Switch!$D$37,$F$2:$G$44,2,FALSE)+ROW()-2))=Switch!$D$37,INDIRECT(\"a\" & (VLOOKUP(Switch!$D$37,$F$2:$G$44,2,FALSE)+ROW()-2)),\"\")","v":{"$error":"#N/A"}},{"$f":"IF(INDIRECT(\"c\" & (VLOOKUP(Switch!$D$38,$F$2:$G$44,2,FALSE)+ROW()-2))=Switch!$D$38,INDIRECT(\"a\" & (VLOOKUP(Switch!$D$38,$F$2:$G$44,2,FALSE)+ROW()-2)),\"\")","v":{"$error":"#N/A"}},{"$f":"IF(INDIRECT(\"c\" & (VLOOKUP(Switch!$D$39,$F$2:$G$44,2,FALSE)+ROW()-2))=Switch!$D$39,INDIRECT(\"a\" & (VLOOKUP(Switch!$D$39,$F$2:$G$44,2,FALSE)+ROW()-2)),\"\")","v":{"$error":"#N/A"}},{"$f":"IF(INDIRECT(\"c\" & (VLOOKUP(Switch!$D$40,$F$2:$G$44,2,FALSE)+ROW()-2))=Switch!$D$40,INDIRECT(\"a\" & (VLOOKUP(Switch!$D$40,$F$2:$G$44,2,FALSE)+ROW()-2)),\"\")","v":{"$error":"#N/A"}},{"$f":"IF(INDIRECT(\"c\" & (VLOOKUP(Switch!$D$52,$F$2:$G$44,2,FALSE)+ROW()-2))=Switch!$D$52,INDIRECT(\"a\" & (VLOOKUP(Switch!$D$52,$F$2:$G$44,2,FALSE)+ROW()-2)),\"\")","v":{"$error":"#N/A"}},{"$f":"IF(INDIRECT(\"c\" & (VLOOKUP(Switch!$D$53,$F$2:$G$44,2,FALSE)+ROW()-2))=Switch!$D$53,INDIRECT(\"a\" & (VLOOKUP(Switch!$D$53,$F$2:$G$44,2,FALSE)+ROW()-2)),\"\")","v":{"$error":"#N/A"}},{"$f":"IF(INDIRECT(\"c\" & (VLOOKUP(Switch!$D$54,$F$2:$G$44,2,FALSE)+ROW()-2))=Switch!$D$54,INDIRECT(\"a\" & (VLOOKUP(Switch!$D$54,$F$2:$G$44,2,FALSE)+ROW()-2)),\"\")","v":{"$error":"#N/A"}},{"$f":"IF(INDIRECT(\"c\" & (VLOOKUP(Switch!$D$55,$F$2:$G$44,2,FALSE)+ROW()-2))=Switch!$D$55,INDIRECT(\"a\" & (VLOOKUP(Switch!$D$55,$F$2:$G$44,2,FALSE)+ROW()-2)),\"\")","v":{"$error":"#N/A"}},{"$f":"IF(INDIRECT(\"c\" & (VLOOKUP(Switch!$D$56,$F$2:$G$44,2,FALSE)+ROW()-2))=Switch!$D$56,INDIRECT(\"a\" & (VLOOKUP(Switch!$D$56,$F$2:$G$44,2,FALSE)+ROW()-2)),\"\")","v":{"$error":"#N/A"}},{"$f":"IF(INDIRECT(\"c\" & (VLOOKUP(Switch!$D$57,$F$2:$G$44,2,FALSE)+ROW()-2))=Switch!$D$57,INDIRECT(\"a\" & (VLOOKUP(Switch!$D$57,$F$2:$G$44,2,FALSE)+ROW()-2)),\"\")","v":{"$error":"#N/A"}},{"$f":"IF(INDIRECT(\"c\" & (VLOOKUP(Switch!$D$58,$F$2:$G$44,2,FALSE)+ROW()-2))=Switch!$D$58,INDIRECT(\"a\" & (VLOOKUP(Switch!$D$58,$F$2:$G$44,2,FALSE)+ROW()-2)),\"\")","v":{"$error":"#N/A"}},{"$f":"IF(INDIRECT(\"c\" & (VLOOKUP(Switch!$D$59,$F$2:$G$44,2,FALSE)+ROW()-2))=Switch!$D$59,INDIRECT(\"a\" & (VLOOKUP(Switch!$D$59,$F$2:$G$44,2,FALSE)+ROW()-2)),\"\")","v":{"$error":"#N/A"}},{"$f":"IF(INDIRECT(\"c\" & (VLOOKUP(Switch!$D$60,$F$2:$G$44,2,FALSE)+ROW()-2))=Switch!$D$60,INDIRECT(\"a\" & (VLOOKUP(Switch!$D$60,$F$2:$G$44,2,FALSE)+ROW()-2)),\"\")","v":{"$error":"#N/A"}},{"$f":"IF(INDIRECT(\"c\" & (VLOOKUP(Switch!$D$61,$F$2:$G$44,2,FALSE)+ROW()-2))=Switch!$D$61,INDIRECT(\"a\" & (VLOOKUP(Switch!$D$61,$F$2:$G$44,2,FALSE)+ROW()-2)),\"\")","v":{"$error":"#N/A"}},{"$f":"IF(INDIRECT(\"c\" & (VLOOKUP(Switch!$D$62,$F$2:$G$44,2,FALSE)+ROW()-2))=Switch!$D$62,INDIRECT(\"a\" & (VLOOKUP(Switch!$D$62,$F$2:$G$44,2,FALSE)+ROW()-2)),\"\")","v":{"$error":"#N/A"}},{"$f":"IF(INDIRECT(\"c\" & (VLOOKUP(Switch!$D$63,$F$2:$G$44,2,FALSE)+ROW()-2))=Switch!$D$63,INDIRECT(\"a\" & (VLOOKUP(Switch!$D$63,$F$2:$G$44,2,FALSE)+ROW()-2)),\"\")","v":{"$error":"#N/A"}},{"$f":"IF(INDIRECT(\"c\" & (VLOOKUP(Switch!$D$64,$F$2:$G$44,2,FALSE)+ROW()-2))=Switch!$D$64,INDIRECT(\"a\" & (VLOOKUP(Switch!$D$64,$F$2:$G$44,2,FALSE)+ROW()-2)),\"\")","v":{"$error":"#N/A"}},{"$f":"IF(INDIRECT(\"c\" & (VLOOKUP(Switch!$D$65,$F$2:$G$44,2,FALSE)+ROW()-2))=Switch!$D$65,INDIRECT(\"a\" & (VLOOKUP(Switch!$D$65,$F$2:$G$44,2,FALSE)+ROW()-2)),\"\")","v":{"$error":"#N/A"}},{"$f":"IF(INDIRECT(\"c\" & (VLOOKUP(Switch!$D$66,$F$2:$G$44,2,FALSE)+ROW()-2))=Switch!$D$66,INDIRECT(\"a\" & (VLOOKUP(Switch!$D$66,$F$2:$G$44,2,FALSE)+ROW()-2)),\"\")","v":{"$error":"#N/A"}}]
["AssetMix Ci Balanced Fund of Funds B","ACBFB","Ci Collective Investments (RF) (PTY) Ltd",{"$f":"ROW()","v":214},null,null,{"$f":"VLOOKUP(F214,$C$2:$D$637,2,FALSE)","v":{"$error":"#N/A"}},{"$f":"IF(INDIRECT(\"c\" & (VLOOKUP(Switch!$D$26,$F$2:$G$44,2,FALSE)+ROW()-2))=Switch!$D$26,INDIRECT(\"a\" & (VLOOKUP(Switch!$D$26,$F$2:$G$44,2,FALSE)+ROW()-2)),\"\")","v":{"$error":"#N/A"}},{"$f":"IF(INDIRECT(\"c\" & (VLOOKUP(Switch!$D$27,$F$2:$G$44,2,FALSE)+ROW()-2))=Switch!$D$27,INDIRECT(\"a\" & (VLOOKUP(Switch!$D$27,$F$2:$G$44,2,FALSE)+ROW()-2)),\"\")","v":{"$error":"#N/A"}},{"$f":"IF(INDIRECT(\"c\" & (VLOOKUP(Switch!$D$28,$F$2:$G$44,2,FALSE)+ROW()-2))=Switch!$D$28,INDIRECT(\"a\" & (VLOOKUP(Switch!$D$28,$F$2:$G$44,2,FALSE)+ROW()-2)),\"\")","v":{"$error":"#N/A"}},{"$f":"IF(INDIRECT(\"c\" & (VLOOKUP(Switch!$D$29,$F$2:$G$44,2,FALSE)+ROW()-2))=Switch!$D$29,INDIRECT(\"a\" & (VLOOKUP(Switch!$D$29,$F$2:$G$44,2,FALSE)+ROW()-2)),\"\")","v":{"$error":"#N/A"}},{"$f":"IF(INDIRECT(\"c\" & (VLOOKUP(Switch!$D$30,$F$2:$G$44,2,FALSE)+ROW()-2))=Switch!$D$30,INDIRECT(\"a\" & (VLOOKUP(Switch!$D$30,$F$2:$G$44,2,FALSE)+ROW()-2)),\"\")","v":{"$error":"#N/A"}},{"$f":"IF(INDIRECT(\"c\" & (VLOOKUP(Switch!$D$31,$F$2:$G$44,2,FALSE)+ROW()-2))=Switch!$D$31,INDIRECT(\"a\" & (VLOOKUP(Switch!$D$31,$F$2:$G$44,2,FALSE)+ROW()-2)),\"\")","v":{"$error":"#N/A"}},{"$f":"IF(INDIRECT(\"c\" & (VLOOKUP(Switch!$D$32,$F$2:$G$44,2,FALSE)+ROW()-2))=Switch!$D$32,INDIRECT(\"a\" & (VLOOKUP(Switch!$D$32,$F$2:$G$44,2,FALSE)+ROW()-2)),\"\")","v":{"$error":"#N/A"}},{"$f":"IF(INDIRECT(\"c\" & (VLOOKUP(Switch!$D$33,$F$2:$G$44,2,FALSE)+ROW()-2))=Switch!$D$33,INDIRECT(\"a\" & (VLOOKUP(Switch!$D$33,$F$2:$G$44,2,FALSE)+ROW()-2)),\"\")","v":{"$error":"#N/A"}},{"$f":"IF(INDIRECT(\"c\" & (VLOOKUP(Switch!$D$34,$F$2:$G$44,2,FALSE)+ROW()-2))=Switch!$D$34,INDIRECT(\"a\" & (VLOOKUP(Switch!$D$34,$F$2:$G$44,2,FALSE)+ROW()-2)),\"\")","v":{"$error":"#N/A"}},{"$f":"IF(INDIRECT(\"c\" & (VLOOKUP(Switch!$D$35,$F$2:$G$44,2,FALSE)+ROW()-2))=Switch!$D$35,INDIRECT(\"a\" & (VLOOKUP(Switch!$D$35,$F$2:$G$44,2,FALSE)+ROW()-2)),\"\")","v":{"$error":"#N/A"}},{"$f":"IF(INDIRECT(\"c\" & (VLOOKUP(Switch!$D$36,$F$2:$G$44,2,FALSE)+ROW()-2))=Switch!$D$36,INDIRECT(\"a\" & (VLOOKUP(Switch!$D$36,$F$2:$G$44,2,FALSE)+ROW()-2)),\"\")","v":{"$error":"#N/A"}},{"$f":"IF(INDIRECT(\"c\" & (VLOOKUP(Switch!$D$37,$F$2:$G$44,2,FALSE)+ROW()-2))=Switch!$D$37,INDIRECT(\"a\" & (VLOOKUP(Switch!$D$37,$F$2:$G$44,2,FALSE)+ROW()-2)),\"\")","v":{"$error":"#N/A"}},{"$f":"IF(INDIRECT(\"c\" & (VLOOKUP(Switch!$D$38,$F$2:$G$44,2,FALSE)+ROW()-2))=Switch!$D$38,INDIRECT(\"a\" & (VLOOKUP(Switch!$D$38,$F$2:$G$44,2,FALSE)+ROW()-2)),\"\")","v":{"$error":"#N/A"}},{"$f":"IF(INDIRECT(\"c\" & (VLOOKUP(Switch!$D$39,$F$2:$G$44,2,FALSE)+ROW()-2))=Switch!$D$39,INDIRECT(\"a\" & (VLOOKUP(Switch!$D$39,$F$2:$G$44,2,FALSE)+ROW()-2)),\"\")","v":{"$error":"#N/A"}},{"$f":"IF(INDIRECT(\"c\" & (VLOOKUP(Switch!$D$40,$F$2:$G$44,2,FALSE)+ROW()-2))=Switch!$D$40,INDIRECT(\"a\" & (VLOOKUP(Switch!$D$40,$F$2:$G$44,2,FALSE)+ROW()-2)),\"\")","v":{"$error":"#N/A"}},{"$f":"IF(INDIRECT(\"c\" & (VLOOKUP(Switch!$D$52,$F$2:$G$44,2,FALSE)+ROW()-2))=Switch!$D$52,INDIRECT(\"a\" & (VLOOKUP(Switch!$D$52,$F$2:$G$44,2,FALSE)+ROW()-2)),\"\")","v":{"$error":"#N/A"}},{"$f":"IF(INDIRECT(\"c\" & (VLOOKUP(Switch!$D$53,$F$2:$G$44,2,FALSE)+ROW()-2))=Switch!$D$53,INDIRECT(\"a\" & (VLOOKUP(Switch!$D$53,$F$2:$G$44,2,FALSE)+ROW()-2)),\"\")","v":{"$error":"#N/A"}},{"$f":"IF(INDIRECT(\"c\" & (VLOOKUP(Switch!$D$54,$F$2:$G$44,2,FALSE)+ROW()-2))=Switch!$D$54,INDIRECT(\"a\" & (VLOOKUP(Switch!$D$54,$F$2:$G$44,2,FALSE)+ROW()-2)),\"\")","v":{"$error":"#N/A"}},{"$f":"IF(INDIRECT(\"c\" & (VLOOKUP(Switch!$D$55,$F$2:$G$44,2,FALSE)+ROW()-2))=Switch!$D$55,INDIRECT(\"a\" & (VLOOKUP(Switch!$D$55,$F$2:$G$44,2,FALSE)+ROW()-2)),\"\")","v":{"$error":"#N/A"}},{"$f":"IF(INDIRECT(\"c\" & (VLOOKUP(Switch!$D$56,$F$2:$G$44,2,FALSE)+ROW()-2))=Switch!$D$56,INDIRECT(\"a\" & (VLOOKUP(Switch!$D$56,$F$2:$G$44,2,FALSE)+ROW()-2)),\"\")","v":{"$error":"#N/A"}},{"$f":"IF(INDIRECT(\"c\" & (VLOOKUP(Switch!$D$57,$F$2:$G$44,2,FALSE)+ROW()-2))=Switch!$D$57,INDIRECT(\"a\" & (VLOOKUP(Switch!$D$57,$F$2:$G$44,2,FALSE)+ROW()-2)),\"\")","v":{"$error":"#N/A"}},{"$f":"IF(INDIRECT(\"c\" & (VLOOKUP(Switch!$D$58,$F$2:$G$44,2,FALSE)+ROW()-2))=Switch!$D$58,INDIRECT(\"a\" & (VLOOKUP(Switch!$D$58,$F$2:$G$44,2,FALSE)+ROW()-2)),\"\")","v":{"$error":"#N/A"}},{"$f":"IF(INDIRECT(\"c\" & (VLOOKUP(Switch!$D$59,$F$2:$G$44,2,FALSE)+ROW()-2))=Switch!$D$59,INDIRECT(\"a\" & (VLOOKUP(Switch!$D$59,$F$2:$G$44,2,FALSE)+ROW()-2)),\"\")","v":{"$error":"#N/A"}},{"$f":"IF(INDIRECT(\"c\" & (VLOOKUP(Switch!$D$60,$F$2:$G$44,2,FALSE)+ROW()-2))=Switch!$D$60,INDIRECT(\"a\" & (VLOOKUP(Switch!$D$60,$F$2:$G$44,2,FALSE)+ROW()-2)),\"\")","v":{"$error":"#N/A"}},{"$f":"IF(INDIRECT(\"c\" & (VLOOKUP(Switch!$D$61,$F$2:$G$44,2,FALSE)+ROW()-2))=Switch!$D$61,INDIRECT(\"a\" & (VLOOKUP(Switch!$D$61,$F$2:$G$44,2,FALSE)+ROW()-2)),\"\")","v":{"$error":"#N/A"}},{"$f":"IF(INDIRECT(\"c\" & (VLOOKUP(Switch!$D$62,$F$2:$G$44,2,FALSE)+ROW()-2))=Switch!$D$62,INDIRECT(\"a\" & (VLOOKUP(Switch!$D$62,$F$2:$G$44,2,FALSE)+ROW()-2)),\"\")","v":{"$error":"#N/A"}},{"$f":"IF(INDIRECT(\"c\" & (VLOOKUP(Switch!$D$63,$F$2:$G$44,2,FALSE)+ROW()-2))=Switch!$D$63,INDIRECT(\"a\" & (VLOOKUP(Switch!$D$63,$F$2:$G$44,2,FALSE)+ROW()-2)),\"\")","v":{"$error":"#N/A"}},{"$f":"IF(INDIRECT(\"c\" & (VLOOKUP(Switch!$D$64,$F$2:$G$44,2,FALSE)+ROW()-2))=Switch!$D$64,INDIRECT(\"a\" & (VLOOKUP(Switch!$D$64,$F$2:$G$44,2,FALSE)+ROW()-2)),\"\")","v":{"$error":"#N/A"}},{"$f":"IF(INDIRECT(\"c\" & (VLOOKUP(Switch!$D$65,$F$2:$G$44,2,FALSE)+ROW()-2))=Switch!$D$65,INDIRECT(\"a\" & (VLOOKUP(Switch!$D$65,$F$2:$G$44,2,FALSE)+ROW()-2)),\"\")","v":{"$error":"#N/A"}},{"$f":"IF(INDIRECT(\"c\" & (VLOOKUP(Switch!$D$66,$F$2:$G$44,2,FALSE)+ROW()-2))=Switch!$D$66,INDIRECT(\"a\" & (VLOOKUP(Switch!$D$66,$F$2:$G$44,2,FALSE)+ROW()-2)),\"\")","v":{"$error":"#N/A"}}]
["AssetMix Ci Conservative Fund of Funds B","ACCB","Ci Collective Investments (RF) (PTY) Ltd",{"$f":"ROW()","v":215},null,null,{"$f":"VLOOKUP(F215,$C$2:$D$637,2,FALSE)","v":{"$error":"#N/A"}},{"$f":"IF(INDIRECT(\"c\" & (VLOOKUP(Switch!$D$26,$F$2:$G$44,2,FALSE)+ROW()-2))=Switch!$D$26,INDIRECT(\"a\" & (VLOOKUP(Switch!$D$26,$F$2:$G$44,2,FALSE)+ROW()-2)),\"\")","v":{"$error":"#N/A"}},{"$f":"IF(INDIRECT(\"c\" & (VLOOKUP(Switch!$D$27,$F$2:$G$44,2,FALSE)+ROW()-2))=Switch!$D$27,INDIRECT(\"a\" & (VLOOKUP(Switch!$D$27,$F$2:$G$44,2,FALSE)+ROW()-2)),\"\")","v":{"$error":"#N/A"}},{"$f":"IF(INDIRECT(\"c\" & (VLOOKUP(Switch!$D$28,$F$2:$G$44,2,FALSE)+ROW()-2))=Switch!$D$28,INDIRECT(\"a\" & (VLOOKUP(Switch!$D$28,$F$2:$G$44,2,FALSE)+ROW()-2)),\"\")","v":{"$error":"#N/A"}},{"$f":"IF(INDIRECT(\"c\" & (VLOOKUP(Switch!$D$29,$F$2:$G$44,2,FALSE)+ROW()-2))=Switch!$D$29,INDIRECT(\"a\" & (VLOOKUP(Switch!$D$29,$F$2:$G$44,2,FALSE)+ROW()-2)),\"\")","v":{"$error":"#N/A"}},{"$f":"IF(INDIRECT(\"c\" & (VLOOKUP(Switch!$D$30,$F$2:$G$44,2,FALSE)+ROW()-2))=Switch!$D$30,INDIRECT(\"a\" & (VLOOKUP(Switch!$D$30,$F$2:$G$44,2,FALSE)+ROW()-2)),\"\")","v":{"$error":"#N/A"}},{"$f":"IF(INDIRECT(\"c\" & (VLOOKUP(Switch!$D$31,$F$2:$G$44,2,FALSE)+ROW()-2))=Switch!$D$31,INDIRECT(\"a\" & (VLOOKUP(Switch!$D$31,$F$2:$G$44,2,FALSE)+ROW()-2)),\"\")","v":{"$error":"#N/A"}},{"$f":"IF(INDIRECT(\"c\" & (VLOOKUP(Switch!$D$32,$F$2:$G$44,2,FALSE)+ROW()-2))=Switch!$D$32,INDIRECT(\"a\" & (VLOOKUP(Switch!$D$32,$F$2:$G$44,2,FALSE)+ROW()-2)),\"\")","v":{"$error":"#N/A"}},{"$f":"IF(INDIRECT(\"c\" & (VLOOKUP(Switch!$D$33,$F$2:$G$44,2,FALSE)+ROW()-2))=Switch!$D$33,INDIRECT(\"a\" & (VLOOKUP(Switch!$D$33,$F$2:$G$44,2,FALSE)+ROW()-2)),\"\")","v":{"$error":"#N/A"}},{"$f":"IF(INDIRECT(\"c\" & (VLOOKUP(Switch!$D$34,$F$2:$G$44,2,FALSE)+ROW()-2))=Switch!$D$34,INDIRECT(\"a\" & (VLOOKUP(Switch!$D$34,$F$2:$G$44,2,FALSE)+ROW()-2)),\"\")","v":{"$error":"#N/A"}},{"$f":"IF(INDIRECT(\"c\" & (VLOOKUP(Switch!$D$35,$F$2:$G$44,2,FALSE)+ROW()-2))=Switch!$D$35,INDIRECT(\"a\" & (VLOOKUP(Switch!$D$35,$F$2:$G$44,2,FALSE)+ROW()-2)),\"\")","v":{"$error":"#N/A"}},{"$f":"IF(INDIRECT(\"c\" & (VLOOKUP(Switch!$D$36,$F$2:$G$44,2,FALSE)+ROW()-2))=Switch!$D$36,INDIRECT(\"a\" & (VLOOKUP(Switch!$D$36,$F$2:$G$44,2,FALSE)+ROW()-2)),\"\")","v":{"$error":"#N/A"}},{"$f":"IF(INDIRECT(\"c\" & (VLOOKUP(Switch!$D$37,$F$2:$G$44,2,FALSE)+ROW()-2))=Switch!$D$37,INDIRECT(\"a\" & (VLOOKUP(Switch!$D$37,$F$2:$G$44,2,FALSE)+ROW()-2)),\"\")","v":{"$error":"#N/A"}},{"$f":"IF(INDIRECT(\"c\" & (VLOOKUP(Switch!$D$38,$F$2:$G$44,2,FALSE)+ROW()-2))=Switch!$D$38,INDIRECT(\"a\" & (VLOOKUP(Switch!$D$38,$F$2:$G$44,2,FALSE)+ROW()-2)),\"\")","v":{"$error":"#N/A"}},{"$f":"IF(INDIRECT(\"c\" & (VLOOKUP(Switch!$D$39,$F$2:$G$44,2,FALSE)+ROW()-2))=Switch!$D$39,INDIRECT(\"a\" & (VLOOKUP(Switch!$D$39,$F$2:$G$44,2,FALSE)+ROW()-2)),\"\")","v":{"$error":"#N/A"}},{"$f":"IF(INDIRECT(\"c\" & (VLOOKUP(Switch!$D$40,$F$2:$G$44,2,FALSE)+ROW()-2))=Switch!$D$40,INDIRECT(\"a\" & (VLOOKUP(Switch!$D$40,$F$2:$G$44,2,FALSE)+ROW()-2)),\"\")","v":{"$error":"#N/A"}},{"$f":"IF(INDIRECT(\"c\" & (VLOOKUP(Switch!$D$52,$F$2:$G$44,2,FALSE)+ROW()-2))=Switch!$D$52,INDIRECT(\"a\" & (VLOOKUP(Switch!$D$52,$F$2:$G$44,2,FALSE)+ROW()-2)),\"\")","v":{"$error":"#N/A"}},{"$f":"IF(INDIRECT(\"c\" & (VLOOKUP(Switch!$D$53,$F$2:$G$44,2,FALSE)+ROW()-2))=Switch!$D$53,INDIRECT(\"a\" & (VLOOKUP(Switch!$D$53,$F$2:$G$44,2,FALSE)+ROW()-2)),\"\")","v":{"$error":"#N/A"}},{"$f":"IF(INDIRECT(\"c\" & (VLOOKUP(Switch!$D$54,$F$2:$G$44,2,FALSE)+ROW()-2))=Switch!$D$54,INDIRECT(\"a\" & (VLOOKUP(Switch!$D$54,$F$2:$G$44,2,FALSE)+ROW()-2)),\"\")","v":{"$error":"#N/A"}},{"$f":"IF(INDIRECT(\"c\" & (VLOOKUP(Switch!$D$55,$F$2:$G$44,2,FALSE)+ROW()-2))=Switch!$D$55,INDIRECT(\"a\" & (VLOOKUP(Switch!$D$55,$F$2:$G$44,2,FALSE)+ROW()-2)),\"\")","v":{"$error":"#N/A"}},{"$f":"IF(INDIRECT(\"c\" & (VLOOKUP(Switch!$D$56,$F$2:$G$44,2,FALSE)+ROW()-2))=Switch!$D$56,INDIRECT(\"a\" & (VLOOKUP(Switch!$D$56,$F$2:$G$44,2,FALSE)+ROW()-2)),\"\")","v":{"$error":"#N/A"}},{"$f":"IF(INDIRECT(\"c\" & (VLOOKUP(Switch!$D$57,$F$2:$G$44,2,FALSE)+ROW()-2))=Switch!$D$57,INDIRECT(\"a\" & (VLOOKUP(Switch!$D$57,$F$2:$G$44,2,FALSE)+ROW()-2)),\"\")","v":{"$error":"#N/A"}},{"$f":"IF(INDIRECT(\"c\" & (VLOOKUP(Switch!$D$58,$F$2:$G$44,2,FALSE)+ROW()-2))=Switch!$D$58,INDIRECT(\"a\" & (VLOOKUP(Switch!$D$58,$F$2:$G$44,2,FALSE)+ROW()-2)),\"\")","v":{"$error":"#N/A"}},{"$f":"IF(INDIRECT(\"c\" & (VLOOKUP(Switch!$D$59,$F$2:$G$44,2,FALSE)+ROW()-2))=Switch!$D$59,INDIRECT(\"a\" & (VLOOKUP(Switch!$D$59,$F$2:$G$44,2,FALSE)+ROW()-2)),\"\")","v":{"$error":"#N/A"}},{"$f":"IF(INDIRECT(\"c\" & (VLOOKUP(Switch!$D$60,$F$2:$G$44,2,FALSE)+ROW()-2))=Switch!$D$60,INDIRECT(\"a\" & (VLOOKUP(Switch!$D$60,$F$2:$G$44,2,FALSE)+ROW()-2)),\"\")","v":{"$error":"#N/A"}},{"$f":"IF(INDIRECT(\"c\" & (VLOOKUP(Switch!$D$61,$F$2:$G$44,2,FALSE)+ROW()-2))=Switch!$D$61,INDIRECT(\"a\" & (VLOOKUP(Switch!$D$61,$F$2:$G$44,2,FALSE)+ROW()-2)),\"\")","v":{"$error":"#N/A"}},{"$f":"IF(INDIRECT(\"c\" & (VLOOKUP(Switch!$D$62,$F$2:$G$44,2,FALSE)+ROW()-2))=Switch!$D$62,INDIRECT(\"a\" & (VLOOKUP(Switch!$D$62,$F$2:$G$44,2,FALSE)+ROW()-2)),\"\")","v":{"$error":"#N/A"}},{"$f":"IF(INDIRECT(\"c\" & (VLOOKUP(Switch!$D$63,$F$2:$G$44,2,FALSE)+ROW()-2))=Switch!$D$63,INDIRECT(\"a\" & (VLOOKUP(Switch!$D$63,$F$2:$G$44,2,FALSE)+ROW()-2)),\"\")","v":{"$error":"#N/A"}},{"$f":"IF(INDIRECT(\"c\" & (VLOOKUP(Switch!$D$64,$F$2:$G$44,2,FALSE)+ROW()-2))=Switch!$D$64,INDIRECT(\"a\" & (VLOOKUP(Switch!$D$64,$F$2:$G$44,2,FALSE)+ROW()-2)),\"\")","v":{"$error":"#N/A"}},{"$f":"IF(INDIRECT(\"c\" & (VLOOKUP(Switch!$D$65,$F$2:$G$44,2,FALSE)+ROW()-2))=Switch!$D$65,INDIRECT(\"a\" & (VLOOKUP(Switch!$D$65,$F$2:$G$44,2,FALSE)+ROW()-2)),\"\")","v":{"$error":"#N/A"}},{"$f":"IF(INDIRECT(\"c\" & (VLOOKUP(Switch!$D$66,$F$2:$G$44,2,FALSE)+ROW()-2))=Switch!$D$66,INDIRECT(\"a\" & (VLOOKUP(Switch!$D$66,$F$2:$G$44,2,FALSE)+ROW()-2)),\"\")","v":{"$error":"#N/A"}}]
["AssetMix Ci Moderate Fund of Funds B","ACMFB","Ci Collective Investments (RF) (PTY) Ltd",{"$f":"ROW()","v":216},null,null,{"$f":"VLOOKUP(F216,$C$2:$D$637,2,FALSE)","v":{"$error":"#N/A"}},{"$f":"IF(INDIRECT(\"c\" & (VLOOKUP(Switch!$D$26,$F$2:$G$44,2,FALSE)+ROW()-2))=Switch!$D$26,INDIRECT(\"a\" & (VLOOKUP(Switch!$D$26,$F$2:$G$44,2,FALSE)+ROW()-2)),\"\")","v":{"$error":"#N/A"}},{"$f":"IF(INDIRECT(\"c\" & (VLOOKUP(Switch!$D$27,$F$2:$G$44,2,FALSE)+ROW()-2))=Switch!$D$27,INDIRECT(\"a\" & (VLOOKUP(Switch!$D$27,$F$2:$G$44,2,FALSE)+ROW()-2)),\"\")","v":{"$error":"#N/A"}},{"$f":"IF(INDIRECT(\"c\" & (VLOOKUP(Switch!$D$28,$F$2:$G$44,2,FALSE)+ROW()-2))=Switch!$D$28,INDIRECT(\"a\" & (VLOOKUP(Switch!$D$28,$F$2:$G$44,2,FALSE)+ROW()-2)),\"\")","v":{"$error":"#N/A"}},{"$f":"IF(INDIRECT(\"c\" & (VLOOKUP(Switch!$D$29,$F$2:$G$44,2,FALSE)+ROW()-2))=Switch!$D$29,INDIRECT(\"a\" & (VLOOKUP(Switch!$D$29,$F$2:$G$44,2,FALSE)+ROW()-2)),\"\")","v":{"$error":"#N/A"}},{"$f":"IF(INDIRECT(\"c\" & (VLOOKUP(Switch!$D$30,$F$2:$G$44,2,FALSE)+ROW()-2))=Switch!$D$30,INDIRECT(\"a\" & (VLOOKUP(Switch!$D$30,$F$2:$G$44,2,FALSE)+ROW()-2)),\"\")","v":{"$error":"#N/A"}},{"$f":"IF(INDIRECT(\"c\" & (VLOOKUP(Switch!$D$31,$F$2:$G$44,2,FALSE)+ROW()-2))=Switch!$D$31,INDIRECT(\"a\" & (VLOOKUP(Switch!$D$31,$F$2:$G$44,2,FALSE)+ROW()-2)),\"\")","v":{"$error":"#N/A"}},{"$f":"IF(INDIRECT(\"c\" & (VLOOKUP(Switch!$D$32,$F$2:$G$44,2,FALSE)+ROW()-2))=Switch!$D$32,INDIRECT(\"a\" & (VLOOKUP(Switch!$D$32,$F$2:$G$44,2,FALSE)+ROW()-2)),\"\")","v":{"$error":"#N/A"}},{"$f":"IF(INDIRECT(\"c\" & (VLOOKUP(Switch!$D$33,$F$2:$G$44,2,FALSE)+ROW()-2))=Switch!$D$33,INDIRECT(\"a\" & (VLOOKUP(Switch!$D$33,$F$2:$G$44,2,FALSE)+ROW()-2)),\"\")","v":{"$error":"#N/A"}},{"$f":"IF(INDIRECT(\"c\" & (VLOOKUP(Switch!$D$34,$F$2:$G$44,2,FALSE)+ROW()-2))=Switch!$D$34,INDIRECT(\"a\" & (VLOOKUP(Switch!$D$34,$F$2:$G$44,2,FALSE)+ROW()-2)),\"\")","v":{"$error":"#N/A"}},{"$f":"IF(INDIRECT(\"c\" & (VLOOKUP(Switch!$D$35,$F$2:$G$44,2,FALSE)+ROW()-2))=Switch!$D$35,INDIRECT(\"a\" & (VLOOKUP(Switch!$D$35,$F$2:$G$44,2,FALSE)+ROW()-2)),\"\")","v":{"$error":"#N/A"}},{"$f":"IF(INDIRECT(\"c\" & (VLOOKUP(Switch!$D$36,$F$2:$G$44,2,FALSE)+ROW()-2))=Switch!$D$36,INDIRECT(\"a\" & (VLOOKUP(Switch!$D$36,$F$2:$G$44,2,FALSE)+ROW()-2)),\"\")","v":{"$error":"#N/A"}},{"$f":"IF(INDIRECT(\"c\" & (VLOOKUP(Switch!$D$37,$F$2:$G$44,2,FALSE)+ROW()-2))=Switch!$D$37,INDIRECT(\"a\" & (VLOOKUP(Switch!$D$37,$F$2:$G$44,2,FALSE)+ROW()-2)),\"\")","v":{"$error":"#N/A"}},{"$f":"IF(INDIRECT(\"c\" & (VLOOKUP(Switch!$D$38,$F$2:$G$44,2,FALSE)+ROW()-2))=Switch!$D$38,INDIRECT(\"a\" & (VLOOKUP(Switch!$D$38,$F$2:$G$44,2,FALSE)+ROW()-2)),\"\")","v":{"$error":"#N/A"}},{"$f":"IF(INDIRECT(\"c\" & (VLOOKUP(Switch!$D$39,$F$2:$G$44,2,FALSE)+ROW()-2))=Switch!$D$39,INDIRECT(\"a\" & (VLOOKUP(Switch!$D$39,$F$2:$G$44,2,FALSE)+ROW()-2)),\"\")","v":{"$error":"#N/A"}},{"$f":"IF(INDIRECT(\"c\" & (VLOOKUP(Switch!$D$40,$F$2:$G$44,2,FALSE)+ROW()-2))=Switch!$D$40,INDIRECT(\"a\" & (VLOOKUP(Switch!$D$40,$F$2:$G$44,2,FALSE)+ROW()-2)),\"\")","v":{"$error":"#N/A"}},{"$f":"IF(INDIRECT(\"c\" & (VLOOKUP(Switch!$D$52,$F$2:$G$44,2,FALSE)+ROW()-2))=Switch!$D$52,INDIRECT(\"a\" & (VLOOKUP(Switch!$D$52,$F$2:$G$44,2,FALSE)+ROW()-2)),\"\")","v":{"$error":"#N/A"}},{"$f":"IF(INDIRECT(\"c\" & (VLOOKUP(Switch!$D$53,$F$2:$G$44,2,FALSE)+ROW()-2))=Switch!$D$53,INDIRECT(\"a\" & (VLOOKUP(Switch!$D$53,$F$2:$G$44,2,FALSE)+ROW()-2)),\"\")","v":{"$error":"#N/A"}},{"$f":"IF(INDIRECT(\"c\" & (VLOOKUP(Switch!$D$54,$F$2:$G$44,2,FALSE)+ROW()-2))=Switch!$D$54,INDIRECT(\"a\" & (VLOOKUP(Switch!$D$54,$F$2:$G$44,2,FALSE)+ROW()-2)),\"\")","v":{"$error":"#N/A"}},{"$f":"IF(INDIRECT(\"c\" & (VLOOKUP(Switch!$D$55,$F$2:$G$44,2,FALSE)+ROW()-2))=Switch!$D$55,INDIRECT(\"a\" & (VLOOKUP(Switch!$D$55,$F$2:$G$44,2,FALSE)+ROW()-2)),\"\")","v":{"$error":"#N/A"}},{"$f":"IF(INDIRECT(\"c\" & (VLOOKUP(Switch!$D$56,$F$2:$G$44,2,FALSE)+ROW()-2))=Switch!$D$56,INDIRECT(\"a\" & (VLOOKUP(Switch!$D$56,$F$2:$G$44,2,FALSE)+ROW()-2)),\"\")","v":{"$error":"#N/A"}},{"$f":"IF(INDIRECT(\"c\" & (VLOOKUP(Switch!$D$57,$F$2:$G$44,2,FALSE)+ROW()-2))=Switch!$D$57,INDIRECT(\"a\" & (VLOOKUP(Switch!$D$57,$F$2:$G$44,2,FALSE)+ROW()-2)),\"\")","v":{"$error":"#N/A"}},{"$f":"IF(INDIRECT(\"c\" & (VLOOKUP(Switch!$D$58,$F$2:$G$44,2,FALSE)+ROW()-2))=Switch!$D$58,INDIRECT(\"a\" & (VLOOKUP(Switch!$D$58,$F$2:$G$44,2,FALSE)+ROW()-2)),\"\")","v":{"$error":"#N/A"}},{"$f":"IF(INDIRECT(\"c\" & (VLOOKUP(Switch!$D$59,$F$2:$G$44,2,FALSE)+ROW()-2))=Switch!$D$59,INDIRECT(\"a\" & (VLOOKUP(Switch!$D$59,$F$2:$G$44,2,FALSE)+ROW()-2)),\"\")","v":{"$error":"#N/A"}},{"$f":"IF(INDIRECT(\"c\" & (VLOOKUP(Switch!$D$60,$F$2:$G$44,2,FALSE)+ROW()-2))=Switch!$D$60,INDIRECT(\"a\" & (VLOOKUP(Switch!$D$60,$F$2:$G$44,2,FALSE)+ROW()-2)),\"\")","v":{"$error":"#N/A"}},{"$f":"IF(INDIRECT(\"c\" & (VLOOKUP(Switch!$D$61,$F$2:$G$44,2,FALSE)+ROW()-2))=Switch!$D$61,INDIRECT(\"a\" & (VLOOKUP(Switch!$D$61,$F$2:$G$44,2,FALSE)+ROW()-2)),\"\")","v":{"$error":"#N/A"}},{"$f":"IF(INDIRECT(\"c\" & (VLOOKUP(Switch!$D$62,$F$2:$G$44,2,FALSE)+ROW()-2))=Switch!$D$62,INDIRECT(\"a\" & (VLOOKUP(Switch!$D$62,$F$2:$G$44,2,FALSE)+ROW()-2)),\"\")","v":{"$error":"#N/A"}},{"$f":"IF(INDIRECT(\"c\" & (VLOOKUP(Switch!$D$63,$F$2:$G$44,2,FALSE)+ROW()-2))=Switch!$D$63,INDIRECT(\"a\" & (VLOOKUP(Switch!$D$63,$F$2:$G$44,2,FALSE)+ROW()-2)),\"\")","v":{"$error":"#N/A"}},{"$f":"IF(INDIRECT(\"c\" & (VLOOKUP(Switch!$D$64,$F$2:$G$44,2,FALSE)+ROW()-2))=Switch!$D$64,INDIRECT(\"a\" & (VLOOKUP(Switch!$D$64,$F$2:$G$44,2,FALSE)+ROW()-2)),\"\")","v":{"$error":"#N/A"}},{"$f":"IF(INDIRECT(\"c\" & (VLOOKUP(Switch!$D$65,$F$2:$G$44,2,FALSE)+ROW()-2))=Switch!$D$65,INDIRECT(\"a\" & (VLOOKUP(Switch!$D$65,$F$2:$G$44,2,FALSE)+ROW()-2)),\"\")","v":{"$error":"#N/A"}},{"$f":"IF(INDIRECT(\"c\" & (VLOOKUP(Switch!$D$66,$F$2:$G$44,2,FALSE)+ROW()-2))=Switch!$D$66,INDIRECT(\"a\" & (VLOOKUP(Switch!$D$66,$F$2:$G$44,2,FALSE)+ROW()-2)),\"\")","v":{"$error":"#N/A"}}]
["Kruger Ci Balanced FoF B1","KSBB1","Ci Collective Investments (RF) (PTY) Ltd",{"$f":"ROW()","v":217},null,null,{"$f":"VLOOKUP(F217,$C$2:$D$637,2,FALSE)","v":{"$error":"#N/A"}},{"$f":"IF(INDIRECT(\"c\" & (VLOOKUP(Switch!$D$26,$F$2:$G$44,2,FALSE)+ROW()-2))=Switch!$D$26,INDIRECT(\"a\" & (VLOOKUP(Switch!$D$26,$F$2:$G$44,2,FALSE)+ROW()-2)),\"\")","v":{"$error":"#N/A"}},{"$f":"IF(INDIRECT(\"c\" & (VLOOKUP(Switch!$D$27,$F$2:$G$44,2,FALSE)+ROW()-2))=Switch!$D$27,INDIRECT(\"a\" & (VLOOKUP(Switch!$D$27,$F$2:$G$44,2,FALSE)+ROW()-2)),\"\")","v":{"$error":"#N/A"}},{"$f":"IF(INDIRECT(\"c\" & (VLOOKUP(Switch!$D$28,$F$2:$G$44,2,FALSE)+ROW()-2))=Switch!$D$28,INDIRECT(\"a\" & (VLOOKUP(Switch!$D$28,$F$2:$G$44,2,FALSE)+ROW()-2)),\"\")","v":{"$error":"#N/A"}},{"$f":"IF(INDIRECT(\"c\" & (VLOOKUP(Switch!$D$29,$F$2:$G$44,2,FALSE)+ROW()-2))=Switch!$D$29,INDIRECT(\"a\" & (VLOOKUP(Switch!$D$29,$F$2:$G$44,2,FALSE)+ROW()-2)),\"\")","v":{"$error":"#N/A"}},{"$f":"IF(INDIRECT(\"c\" & (VLOOKUP(Switch!$D$30,$F$2:$G$44,2,FALSE)+ROW()-2))=Switch!$D$30,INDIRECT(\"a\" & (VLOOKUP(Switch!$D$30,$F$2:$G$44,2,FALSE)+ROW()-2)),\"\")","v":{"$error":"#N/A"}},{"$f":"IF(INDIRECT(\"c\" & (VLOOKUP(Switch!$D$31,$F$2:$G$44,2,FALSE)+ROW()-2))=Switch!$D$31,INDIRECT(\"a\" & (VLOOKUP(Switch!$D$31,$F$2:$G$44,2,FALSE)+ROW()-2)),\"\")","v":{"$error":"#N/A"}},{"$f":"IF(INDIRECT(\"c\" & (VLOOKUP(Switch!$D$32,$F$2:$G$44,2,FALSE)+ROW()-2))=Switch!$D$32,INDIRECT(\"a\" & (VLOOKUP(Switch!$D$32,$F$2:$G$44,2,FALSE)+ROW()-2)),\"\")","v":{"$error":"#N/A"}},{"$f":"IF(INDIRECT(\"c\" & (VLOOKUP(Switch!$D$33,$F$2:$G$44,2,FALSE)+ROW()-2))=Switch!$D$33,INDIRECT(\"a\" & (VLOOKUP(Switch!$D$33,$F$2:$G$44,2,FALSE)+ROW()-2)),\"\")","v":{"$error":"#N/A"}},{"$f":"IF(INDIRECT(\"c\" & (VLOOKUP(Switch!$D$34,$F$2:$G$44,2,FALSE)+ROW()-2))=Switch!$D$34,INDIRECT(\"a\" & (VLOOKUP(Switch!$D$34,$F$2:$G$44,2,FALSE)+ROW()-2)),\"\")","v":{"$error":"#N/A"}},{"$f":"IF(INDIRECT(\"c\" & (VLOOKUP(Switch!$D$35,$F$2:$G$44,2,FALSE)+ROW()-2))=Switch!$D$35,INDIRECT(\"a\" & (VLOOKUP(Switch!$D$35,$F$2:$G$44,2,FALSE)+ROW()-2)),\"\")","v":{"$error":"#N/A"}},{"$f":"IF(INDIRECT(\"c\" & (VLOOKUP(Switch!$D$36,$F$2:$G$44,2,FALSE)+ROW()-2))=Switch!$D$36,INDIRECT(\"a\" & (VLOOKUP(Switch!$D$36,$F$2:$G$44,2,FALSE)+ROW()-2)),\"\")","v":{"$error":"#N/A"}},{"$f":"IF(INDIRECT(\"c\" & (VLOOKUP(Switch!$D$37,$F$2:$G$44,2,FALSE)+ROW()-2))=Switch!$D$37,INDIRECT(\"a\" & (VLOOKUP(Switch!$D$37,$F$2:$G$44,2,FALSE)+ROW()-2)),\"\")","v":{"$error":"#N/A"}},{"$f":"IF(INDIRECT(\"c\" & (VLOOKUP(Switch!$D$38,$F$2:$G$44,2,FALSE)+ROW()-2))=Switch!$D$38,INDIRECT(\"a\" & (VLOOKUP(Switch!$D$38,$F$2:$G$44,2,FALSE)+ROW()-2)),\"\")","v":{"$error":"#N/A"}},{"$f":"IF(INDIRECT(\"c\" & (VLOOKUP(Switch!$D$39,$F$2:$G$44,2,FALSE)+ROW()-2))=Switch!$D$39,INDIRECT(\"a\" & (VLOOKUP(Switch!$D$39,$F$2:$G$44,2,FALSE)+ROW()-2)),\"\")","v":{"$error":"#N/A"}},{"$f":"IF(INDIRECT(\"c\" & (VLOOKUP(Switch!$D$40,$F$2:$G$44,2,FALSE)+ROW()-2))=Switch!$D$40,INDIRECT(\"a\" & (VLOOKUP(Switch!$D$40,$F$2:$G$44,2,FALSE)+ROW()-2)),\"\")","v":{"$error":"#N/A"}},{"$f":"IF(INDIRECT(\"c\" & (VLOOKUP(Switch!$D$52,$F$2:$G$44,2,FALSE)+ROW()-2))=Switch!$D$52,INDIRECT(\"a\" & (VLOOKUP(Switch!$D$52,$F$2:$G$44,2,FALSE)+ROW()-2)),\"\")","v":{"$error":"#N/A"}},{"$f":"IF(INDIRECT(\"c\" & (VLOOKUP(Switch!$D$53,$F$2:$G$44,2,FALSE)+ROW()-2))=Switch!$D$53,INDIRECT(\"a\" & (VLOOKUP(Switch!$D$53,$F$2:$G$44,2,FALSE)+ROW()-2)),\"\")","v":{"$error":"#N/A"}},{"$f":"IF(INDIRECT(\"c\" & (VLOOKUP(Switch!$D$54,$F$2:$G$44,2,FALSE)+ROW()-2))=Switch!$D$54,INDIRECT(\"a\" & (VLOOKUP(Switch!$D$54,$F$2:$G$44,2,FALSE)+ROW()-2)),\"\")","v":{"$error":"#N/A"}},{"$f":"IF(INDIRECT(\"c\" & (VLOOKUP(Switch!$D$55,$F$2:$G$44,2,FALSE)+ROW()-2))=Switch!$D$55,INDIRECT(\"a\" & (VLOOKUP(Switch!$D$55,$F$2:$G$44,2,FALSE)+ROW()-2)),\"\")","v":{"$error":"#N/A"}},{"$f":"IF(INDIRECT(\"c\" & (VLOOKUP(Switch!$D$56,$F$2:$G$44,2,FALSE)+ROW()-2))=Switch!$D$56,INDIRECT(\"a\" & (VLOOKUP(Switch!$D$56,$F$2:$G$44,2,FALSE)+ROW()-2)),\"\")","v":{"$error":"#N/A"}},{"$f":"IF(INDIRECT(\"c\" & (VLOOKUP(Switch!$D$57,$F$2:$G$44,2,FALSE)+ROW()-2))=Switch!$D$57,INDIRECT(\"a\" & (VLOOKUP(Switch!$D$57,$F$2:$G$44,2,FALSE)+ROW()-2)),\"\")","v":{"$error":"#N/A"}},{"$f":"IF(INDIRECT(\"c\" & (VLOOKUP(Switch!$D$58,$F$2:$G$44,2,FALSE)+ROW()-2))=Switch!$D$58,INDIRECT(\"a\" & (VLOOKUP(Switch!$D$58,$F$2:$G$44,2,FALSE)+ROW()-2)),\"\")","v":{"$error":"#N/A"}},{"$f":"IF(INDIRECT(\"c\" & (VLOOKUP(Switch!$D$59,$F$2:$G$44,2,FALSE)+ROW()-2))=Switch!$D$59,INDIRECT(\"a\" & (VLOOKUP(Switch!$D$59,$F$2:$G$44,2,FALSE)+ROW()-2)),\"\")","v":{"$error":"#N/A"}},{"$f":"IF(INDIRECT(\"c\" & (VLOOKUP(Switch!$D$60,$F$2:$G$44,2,FALSE)+ROW()-2))=Switch!$D$60,INDIRECT(\"a\" & (VLOOKUP(Switch!$D$60,$F$2:$G$44,2,FALSE)+ROW()-2)),\"\")","v":{"$error":"#N/A"}},{"$f":"IF(INDIRECT(\"c\" & (VLOOKUP(Switch!$D$61,$F$2:$G$44,2,FALSE)+ROW()-2))=Switch!$D$61,INDIRECT(\"a\" & (VLOOKUP(Switch!$D$61,$F$2:$G$44,2,FALSE)+ROW()-2)),\"\")","v":{"$error":"#N/A"}},{"$f":"IF(INDIRECT(\"c\" & (VLOOKUP(Switch!$D$62,$F$2:$G$44,2,FALSE)+ROW()-2))=Switch!$D$62,INDIRECT(\"a\" & (VLOOKUP(Switch!$D$62,$F$2:$G$44,2,FALSE)+ROW()-2)),\"\")","v":{"$error":"#N/A"}},{"$f":"IF(INDIRECT(\"c\" & (VLOOKUP(Switch!$D$63,$F$2:$G$44,2,FALSE)+ROW()-2))=Switch!$D$63,INDIRECT(\"a\" & (VLOOKUP(Switch!$D$63,$F$2:$G$44,2,FALSE)+ROW()-2)),\"\")","v":{"$error":"#N/A"}},{"$f":"IF(INDIRECT(\"c\" & (VLOOKUP(Switch!$D$64,$F$2:$G$44,2,FALSE)+ROW()-2))=Switch!$D$64,INDIRECT(\"a\" & (VLOOKUP(Switch!$D$64,$F$2:$G$44,2,FALSE)+ROW()-2)),\"\")","v":{"$error":"#N/A"}},{"$f":"IF(INDIRECT(\"c\" & (VLOOKUP(Switch!$D$65,$F$2:$G$44,2,FALSE)+ROW()-2))=Switch!$D$65,INDIRECT(\"a\" & (VLOOKUP(Switch!$D$65,$F$2:$G$44,2,FALSE)+ROW()-2)),\"\")","v":{"$error":"#N/A"}},{"$f":"IF(INDIRECT(\"c\" & (VLOOKUP(Switch!$D$66,$F$2:$G$44,2,FALSE)+ROW()-2))=Switch!$D$66,INDIRECT(\"a\" & (VLOOKUP(Switch!$D$66,$F$2:$G$44,2,FALSE)+ROW()-2)),\"\")","v":{"$error":"#N/A"}}]
["Kruger Ci Equity Fund B1","KSFB1","Ci Collective Investments (RF) (PTY) Ltd",{"$f":"ROW()","v":218},null,null,{"$f":"VLOOKUP(F218,$C$2:$D$637,2,FALSE)","v":{"$error":"#N/A"}},{"$f":"IF(INDIRECT(\"c\" & (VLOOKUP(Switch!$D$26,$F$2:$G$44,2,FALSE)+ROW()-2))=Switch!$D$26,INDIRECT(\"a\" & (VLOOKUP(Switch!$D$26,$F$2:$G$44,2,FALSE)+ROW()-2)),\"\")","v":{"$error":"#N/A"}},{"$f":"IF(INDIRECT(\"c\" & (VLOOKUP(Switch!$D$27,$F$2:$G$44,2,FALSE)+ROW()-2))=Switch!$D$27,INDIRECT(\"a\" & (VLOOKUP(Switch!$D$27,$F$2:$G$44,2,FALSE)+ROW()-2)),\"\")","v":{"$error":"#N/A"}},{"$f":"IF(INDIRECT(\"c\" & (VLOOKUP(Switch!$D$28,$F$2:$G$44,2,FALSE)+ROW()-2))=Switch!$D$28,INDIRECT(\"a\" & (VLOOKUP(Switch!$D$28,$F$2:$G$44,2,FALSE)+ROW()-2)),\"\")","v":{"$error":"#N/A"}},{"$f":"IF(INDIRECT(\"c\" & (VLOOKUP(Switch!$D$29,$F$2:$G$44,2,FALSE)+ROW()-2))=Switch!$D$29,INDIRECT(\"a\" & (VLOOKUP(Switch!$D$29,$F$2:$G$44,2,FALSE)+ROW()-2)),\"\")","v":{"$error":"#N/A"}},{"$f":"IF(INDIRECT(\"c\" & (VLOOKUP(Switch!$D$30,$F$2:$G$44,2,FALSE)+ROW()-2))=Switch!$D$30,INDIRECT(\"a\" & (VLOOKUP(Switch!$D$30,$F$2:$G$44,2,FALSE)+ROW()-2)),\"\")","v":{"$error":"#N/A"}},{"$f":"IF(INDIRECT(\"c\" & (VLOOKUP(Switch!$D$31,$F$2:$G$44,2,FALSE)+ROW()-2))=Switch!$D$31,INDIRECT(\"a\" & (VLOOKUP(Switch!$D$31,$F$2:$G$44,2,FALSE)+ROW()-2)),\"\")","v":{"$error":"#N/A"}},{"$f":"IF(INDIRECT(\"c\" & (VLOOKUP(Switch!$D$32,$F$2:$G$44,2,FALSE)+ROW()-2))=Switch!$D$32,INDIRECT(\"a\" & (VLOOKUP(Switch!$D$32,$F$2:$G$44,2,FALSE)+ROW()-2)),\"\")","v":{"$error":"#N/A"}},{"$f":"IF(INDIRECT(\"c\" & (VLOOKUP(Switch!$D$33,$F$2:$G$44,2,FALSE)+ROW()-2))=Switch!$D$33,INDIRECT(\"a\" & (VLOOKUP(Switch!$D$33,$F$2:$G$44,2,FALSE)+ROW()-2)),\"\")","v":{"$error":"#N/A"}},{"$f":"IF(INDIRECT(\"c\" & (VLOOKUP(Switch!$D$34,$F$2:$G$44,2,FALSE)+ROW()-2))=Switch!$D$34,INDIRECT(\"a\" & (VLOOKUP(Switch!$D$34,$F$2:$G$44,2,FALSE)+ROW()-2)),\"\")","v":{"$error":"#N/A"}},{"$f":"IF(INDIRECT(\"c\" & (VLOOKUP(Switch!$D$35,$F$2:$G$44,2,FALSE)+ROW()-2))=Switch!$D$35,INDIRECT(\"a\" & (VLOOKUP(Switch!$D$35,$F$2:$G$44,2,FALSE)+ROW()-2)),\"\")","v":{"$error":"#N/A"}},{"$f":"IF(INDIRECT(\"c\" & (VLOOKUP(Switch!$D$36,$F$2:$G$44,2,FALSE)+ROW()-2))=Switch!$D$36,INDIRECT(\"a\" & (VLOOKUP(Switch!$D$36,$F$2:$G$44,2,FALSE)+ROW()-2)),\"\")","v":{"$error":"#N/A"}},{"$f":"IF(INDIRECT(\"c\" & (VLOOKUP(Switch!$D$37,$F$2:$G$44,2,FALSE)+ROW()-2))=Switch!$D$37,INDIRECT(\"a\" & (VLOOKUP(Switch!$D$37,$F$2:$G$44,2,FALSE)+ROW()-2)),\"\")","v":{"$error":"#N/A"}},{"$f":"IF(INDIRECT(\"c\" & (VLOOKUP(Switch!$D$38,$F$2:$G$44,2,FALSE)+ROW()-2))=Switch!$D$38,INDIRECT(\"a\" & (VLOOKUP(Switch!$D$38,$F$2:$G$44,2,FALSE)+ROW()-2)),\"\")","v":{"$error":"#N/A"}},{"$f":"IF(INDIRECT(\"c\" & (VLOOKUP(Switch!$D$39,$F$2:$G$44,2,FALSE)+ROW()-2))=Switch!$D$39,INDIRECT(\"a\" & (VLOOKUP(Switch!$D$39,$F$2:$G$44,2,FALSE)+ROW()-2)),\"\")","v":{"$error":"#N/A"}},{"$f":"IF(INDIRECT(\"c\" & (VLOOKUP(Switch!$D$40,$F$2:$G$44,2,FALSE)+ROW()-2))=Switch!$D$40,INDIRECT(\"a\" & (VLOOKUP(Switch!$D$40,$F$2:$G$44,2,FALSE)+ROW()-2)),\"\")","v":{"$error":"#N/A"}},{"$f":"IF(INDIRECT(\"c\" & (VLOOKUP(Switch!$D$52,$F$2:$G$44,2,FALSE)+ROW()-2))=Switch!$D$52,INDIRECT(\"a\" & (VLOOKUP(Switch!$D$52,$F$2:$G$44,2,FALSE)+ROW()-2)),\"\")","v":{"$error":"#N/A"}},{"$f":"IF(INDIRECT(\"c\" & (VLOOKUP(Switch!$D$53,$F$2:$G$44,2,FALSE)+ROW()-2))=Switch!$D$53,INDIRECT(\"a\" & (VLOOKUP(Switch!$D$53,$F$2:$G$44,2,FALSE)+ROW()-2)),\"\")","v":{"$error":"#N/A"}},{"$f":"IF(INDIRECT(\"c\" & (VLOOKUP(Switch!$D$54,$F$2:$G$44,2,FALSE)+ROW()-2))=Switch!$D$54,INDIRECT(\"a\" & (VLOOKUP(Switch!$D$54,$F$2:$G$44,2,FALSE)+ROW()-2)),\"\")","v":{"$error":"#N/A"}},{"$f":"IF(INDIRECT(\"c\" & (VLOOKUP(Switch!$D$55,$F$2:$G$44,2,FALSE)+ROW()-2))=Switch!$D$55,INDIRECT(\"a\" & (VLOOKUP(Switch!$D$55,$F$2:$G$44,2,FALSE)+ROW()-2)),\"\")","v":{"$error":"#N/A"}},{"$f":"IF(INDIRECT(\"c\" & (VLOOKUP(Switch!$D$56,$F$2:$G$44,2,FALSE)+ROW()-2))=Switch!$D$56,INDIRECT(\"a\" & (VLOOKUP(Switch!$D$56,$F$2:$G$44,2,FALSE)+ROW()-2)),\"\")","v":{"$error":"#N/A"}},{"$f":"IF(INDIRECT(\"c\" & (VLOOKUP(Switch!$D$57,$F$2:$G$44,2,FALSE)+ROW()-2))=Switch!$D$57,INDIRECT(\"a\" & (VLOOKUP(Switch!$D$57,$F$2:$G$44,2,FALSE)+ROW()-2)),\"\")","v":{"$error":"#N/A"}},{"$f":"IF(INDIRECT(\"c\" & (VLOOKUP(Switch!$D$58,$F$2:$G$44,2,FALSE)+ROW()-2))=Switch!$D$58,INDIRECT(\"a\" & (VLOOKUP(Switch!$D$58,$F$2:$G$44,2,FALSE)+ROW()-2)),\"\")","v":{"$error":"#N/A"}},{"$f":"IF(INDIRECT(\"c\" & (VLOOKUP(Switch!$D$59,$F$2:$G$44,2,FALSE)+ROW()-2))=Switch!$D$59,INDIRECT(\"a\" & (VLOOKUP(Switch!$D$59,$F$2:$G$44,2,FALSE)+ROW()-2)),\"\")","v":{"$error":"#N/A"}},{"$f":"IF(INDIRECT(\"c\" & (VLOOKUP(Switch!$D$60,$F$2:$G$44,2,FALSE)+ROW()-2))=Switch!$D$60,INDIRECT(\"a\" & (VLOOKUP(Switch!$D$60,$F$2:$G$44,2,FALSE)+ROW()-2)),\"\")","v":{"$error":"#N/A"}},{"$f":"IF(INDIRECT(\"c\" & (VLOOKUP(Switch!$D$61,$F$2:$G$44,2,FALSE)+ROW()-2))=Switch!$D$61,INDIRECT(\"a\" & (VLOOKUP(Switch!$D$61,$F$2:$G$44,2,FALSE)+ROW()-2)),\"\")","v":{"$error":"#N/A"}},{"$f":"IF(INDIRECT(\"c\" & (VLOOKUP(Switch!$D$62,$F$2:$G$44,2,FALSE)+ROW()-2))=Switch!$D$62,INDIRECT(\"a\" & (VLOOKUP(Switch!$D$62,$F$2:$G$44,2,FALSE)+ROW()-2)),\"\")","v":{"$error":"#N/A"}},{"$f":"IF(INDIRECT(\"c\" & (VLOOKUP(Switch!$D$63,$F$2:$G$44,2,FALSE)+ROW()-2))=Switch!$D$63,INDIRECT(\"a\" & (VLOOKUP(Switch!$D$63,$F$2:$G$44,2,FALSE)+ROW()-2)),\"\")","v":{"$error":"#N/A"}},{"$f":"IF(INDIRECT(\"c\" & (VLOOKUP(Switch!$D$64,$F$2:$G$44,2,FALSE)+ROW()-2))=Switch!$D$64,INDIRECT(\"a\" & (VLOOKUP(Switch!$D$64,$F$2:$G$44,2,FALSE)+ROW()-2)),\"\")","v":{"$error":"#N/A"}},{"$f":"IF(INDIRECT(\"c\" & (VLOOKUP(Switch!$D$65,$F$2:$G$44,2,FALSE)+ROW()-2))=Switch!$D$65,INDIRECT(\"a\" & (VLOOKUP(Switch!$D$65,$F$2:$G$44,2,FALSE)+ROW()-2)),\"\")","v":{"$error":"#N/A"}},{"$f":"IF(INDIRECT(\"c\" & (VLOOKUP(Switch!$D$66,$F$2:$G$44,2,FALSE)+ROW()-2))=Switch!$D$66,INDIRECT(\"a\" & (VLOOKUP(Switch!$D$66,$F$2:$G$44,2,FALSE)+ROW()-2)),\"\")","v":{"$error":"#N/A"}}]
["Kruger Ci Internantional Flexible Feeder B1","KSGB1","Ci Collective Investments (RF) (PTY) Ltd",{"$f":"ROW()","v":219},null,null,{"$f":"VLOOKUP(F219,$C$2:$D$637,2,FALSE)","v":{"$error":"#N/A"}},{"$f":"IF(INDIRECT(\"c\" & (VLOOKUP(Switch!$D$26,$F$2:$G$44,2,FALSE)+ROW()-2))=Switch!$D$26,INDIRECT(\"a\" & (VLOOKUP(Switch!$D$26,$F$2:$G$44,2,FALSE)+ROW()-2)),\"\")","v":{"$error":"#N/A"}},{"$f":"IF(INDIRECT(\"c\" & (VLOOKUP(Switch!$D$27,$F$2:$G$44,2,FALSE)+ROW()-2))=Switch!$D$27,INDIRECT(\"a\" & (VLOOKUP(Switch!$D$27,$F$2:$G$44,2,FALSE)+ROW()-2)),\"\")","v":{"$error":"#N/A"}},{"$f":"IF(INDIRECT(\"c\" & (VLOOKUP(Switch!$D$28,$F$2:$G$44,2,FALSE)+ROW()-2))=Switch!$D$28,INDIRECT(\"a\" & (VLOOKUP(Switch!$D$28,$F$2:$G$44,2,FALSE)+ROW()-2)),\"\")","v":{"$error":"#N/A"}},{"$f":"IF(INDIRECT(\"c\" & (VLOOKUP(Switch!$D$29,$F$2:$G$44,2,FALSE)+ROW()-2))=Switch!$D$29,INDIRECT(\"a\" & (VLOOKUP(Switch!$D$29,$F$2:$G$44,2,FALSE)+ROW()-2)),\"\")","v":{"$error":"#N/A"}},{"$f":"IF(INDIRECT(\"c\" & (VLOOKUP(Switch!$D$30,$F$2:$G$44,2,FALSE)+ROW()-2))=Switch!$D$30,INDIRECT(\"a\" & (VLOOKUP(Switch!$D$30,$F$2:$G$44,2,FALSE)+ROW()-2)),\"\")","v":{"$error":"#N/A"}},{"$f":"IF(INDIRECT(\"c\" & (VLOOKUP(Switch!$D$31,$F$2:$G$44,2,FALSE)+ROW()-2))=Switch!$D$31,INDIRECT(\"a\" & (VLOOKUP(Switch!$D$31,$F$2:$G$44,2,FALSE)+ROW()-2)),\"\")","v":{"$error":"#N/A"}},{"$f":"IF(INDIRECT(\"c\" & (VLOOKUP(Switch!$D$32,$F$2:$G$44,2,FALSE)+ROW()-2))=Switch!$D$32,INDIRECT(\"a\" & (VLOOKUP(Switch!$D$32,$F$2:$G$44,2,FALSE)+ROW()-2)),\"\")","v":{"$error":"#N/A"}},{"$f":"IF(INDIRECT(\"c\" & (VLOOKUP(Switch!$D$33,$F$2:$G$44,2,FALSE)+ROW()-2))=Switch!$D$33,INDIRECT(\"a\" & (VLOOKUP(Switch!$D$33,$F$2:$G$44,2,FALSE)+ROW()-2)),\"\")","v":{"$error":"#N/A"}},{"$f":"IF(INDIRECT(\"c\" & (VLOOKUP(Switch!$D$34,$F$2:$G$44,2,FALSE)+ROW()-2))=Switch!$D$34,INDIRECT(\"a\" & (VLOOKUP(Switch!$D$34,$F$2:$G$44,2,FALSE)+ROW()-2)),\"\")","v":{"$error":"#N/A"}},{"$f":"IF(INDIRECT(\"c\" & (VLOOKUP(Switch!$D$35,$F$2:$G$44,2,FALSE)+ROW()-2))=Switch!$D$35,INDIRECT(\"a\" & (VLOOKUP(Switch!$D$35,$F$2:$G$44,2,FALSE)+ROW()-2)),\"\")","v":{"$error":"#N/A"}},{"$f":"IF(INDIRECT(\"c\" & (VLOOKUP(Switch!$D$36,$F$2:$G$44,2,FALSE)+ROW()-2))=Switch!$D$36,INDIRECT(\"a\" & (VLOOKUP(Switch!$D$36,$F$2:$G$44,2,FALSE)+ROW()-2)),\"\")","v":{"$error":"#N/A"}},{"$f":"IF(INDIRECT(\"c\" & (VLOOKUP(Switch!$D$37,$F$2:$G$44,2,FALSE)+ROW()-2))=Switch!$D$37,INDIRECT(\"a\" & (VLOOKUP(Switch!$D$37,$F$2:$G$44,2,FALSE)+ROW()-2)),\"\")","v":{"$error":"#N/A"}},{"$f":"IF(INDIRECT(\"c\" & (VLOOKUP(Switch!$D$38,$F$2:$G$44,2,FALSE)+ROW()-2))=Switch!$D$38,INDIRECT(\"a\" & (VLOOKUP(Switch!$D$38,$F$2:$G$44,2,FALSE)+ROW()-2)),\"\")","v":{"$error":"#N/A"}},{"$f":"IF(INDIRECT(\"c\" & (VLOOKUP(Switch!$D$39,$F$2:$G$44,2,FALSE)+ROW()-2))=Switch!$D$39,INDIRECT(\"a\" & (VLOOKUP(Switch!$D$39,$F$2:$G$44,2,FALSE)+ROW()-2)),\"\")","v":{"$error":"#N/A"}},{"$f":"IF(INDIRECT(\"c\" & (VLOOKUP(Switch!$D$40,$F$2:$G$44,2,FALSE)+ROW()-2))=Switch!$D$40,INDIRECT(\"a\" & (VLOOKUP(Switch!$D$40,$F$2:$G$44,2,FALSE)+ROW()-2)),\"\")","v":{"$error":"#N/A"}},{"$f":"IF(INDIRECT(\"c\" & (VLOOKUP(Switch!$D$52,$F$2:$G$44,2,FALSE)+ROW()-2))=Switch!$D$52,INDIRECT(\"a\" & (VLOOKUP(Switch!$D$52,$F$2:$G$44,2,FALSE)+ROW()-2)),\"\")","v":{"$error":"#N/A"}},{"$f":"IF(INDIRECT(\"c\" & (VLOOKUP(Switch!$D$53,$F$2:$G$44,2,FALSE)+ROW()-2))=Switch!$D$53,INDIRECT(\"a\" & (VLOOKUP(Switch!$D$53,$F$2:$G$44,2,FALSE)+ROW()-2)),\"\")","v":{"$error":"#N/A"}},{"$f":"IF(INDIRECT(\"c\" & (VLOOKUP(Switch!$D$54,$F$2:$G$44,2,FALSE)+ROW()-2))=Switch!$D$54,INDIRECT(\"a\" & (VLOOKUP(Switch!$D$54,$F$2:$G$44,2,FALSE)+ROW()-2)),\"\")","v":{"$error":"#N/A"}},{"$f":"IF(INDIRECT(\"c\" & (VLOOKUP(Switch!$D$55,$F$2:$G$44,2,FALSE)+ROW()-2))=Switch!$D$55,INDIRECT(\"a\" & (VLOOKUP(Switch!$D$55,$F$2:$G$44,2,FALSE)+ROW()-2)),\"\")","v":{"$error":"#N/A"}},{"$f":"IF(INDIRECT(\"c\" & (VLOOKUP(Switch!$D$56,$F$2:$G$44,2,FALSE)+ROW()-2))=Switch!$D$56,INDIRECT(\"a\" & (VLOOKUP(Switch!$D$56,$F$2:$G$44,2,FALSE)+ROW()-2)),\"\")","v":{"$error":"#N/A"}},{"$f":"IF(INDIRECT(\"c\" & (VLOOKUP(Switch!$D$57,$F$2:$G$44,2,FALSE)+ROW()-2))=Switch!$D$57,INDIRECT(\"a\" & (VLOOKUP(Switch!$D$57,$F$2:$G$44,2,FALSE)+ROW()-2)),\"\")","v":{"$error":"#N/A"}},{"$f":"IF(INDIRECT(\"c\" & (VLOOKUP(Switch!$D$58,$F$2:$G$44,2,FALSE)+ROW()-2))=Switch!$D$58,INDIRECT(\"a\" & (VLOOKUP(Switch!$D$58,$F$2:$G$44,2,FALSE)+ROW()-2)),\"\")","v":{"$error":"#N/A"}},{"$f":"IF(INDIRECT(\"c\" & (VLOOKUP(Switch!$D$59,$F$2:$G$44,2,FALSE)+ROW()-2))=Switch!$D$59,INDIRECT(\"a\" & (VLOOKUP(Switch!$D$59,$F$2:$G$44,2,FALSE)+ROW()-2)),\"\")","v":{"$error":"#N/A"}},{"$f":"IF(INDIRECT(\"c\" & (VLOOKUP(Switch!$D$60,$F$2:$G$44,2,FALSE)+ROW()-2))=Switch!$D$60,INDIRECT(\"a\" & (VLOOKUP(Switch!$D$60,$F$2:$G$44,2,FALSE)+ROW()-2)),\"\")","v":{"$error":"#N/A"}},{"$f":"IF(INDIRECT(\"c\" & (VLOOKUP(Switch!$D$61,$F$2:$G$44,2,FALSE)+ROW()-2))=Switch!$D$61,INDIRECT(\"a\" & (VLOOKUP(Switch!$D$61,$F$2:$G$44,2,FALSE)+ROW()-2)),\"\")","v":{"$error":"#N/A"}},{"$f":"IF(INDIRECT(\"c\" & (VLOOKUP(Switch!$D$62,$F$2:$G$44,2,FALSE)+ROW()-2))=Switch!$D$62,INDIRECT(\"a\" & (VLOOKUP(Switch!$D$62,$F$2:$G$44,2,FALSE)+ROW()-2)),\"\")","v":{"$error":"#N/A"}},{"$f":"IF(INDIRECT(\"c\" & (VLOOKUP(Switch!$D$63,$F$2:$G$44,2,FALSE)+ROW()-2))=Switch!$D$63,INDIRECT(\"a\" & (VLOOKUP(Switch!$D$63,$F$2:$G$44,2,FALSE)+ROW()-2)),\"\")","v":{"$error":"#N/A"}},{"$f":"IF(INDIRECT(\"c\" & (VLOOKUP(Switch!$D$64,$F$2:$G$44,2,FALSE)+ROW()-2))=Switch!$D$64,INDIRECT(\"a\" & (VLOOKUP(Switch!$D$64,$F$2:$G$44,2,FALSE)+ROW()-2)),\"\")","v":{"$error":"#N/A"}},{"$f":"IF(INDIRECT(\"c\" & (VLOOKUP(Switch!$D$65,$F$2:$G$44,2,FALSE)+ROW()-2))=Switch!$D$65,INDIRECT(\"a\" & (VLOOKUP(Switch!$D$65,$F$2:$G$44,2,FALSE)+ROW()-2)),\"\")","v":{"$error":"#N/A"}},{"$f":"IF(INDIRECT(\"c\" & (VLOOKUP(Switch!$D$66,$F$2:$G$44,2,FALSE)+ROW()-2))=Switch!$D$66,INDIRECT(\"a\" & (VLOOKUP(Switch!$D$66,$F$2:$G$44,2,FALSE)+ROW()-2)),\"\")","v":{"$error":"#N/A"}}]
["Kruger Ci Prudential FoF A","KSPFA","Ci Collective Investments (RF) (PTY) Ltd",{"$f":"ROW()","v":220},null,null,{"$f":"VLOOKUP(F220,$C$2:$D$637,2,FALSE)","v":{"$error":"#N/A"}},{"$f":"IF(INDIRECT(\"c\" & (VLOOKUP(Switch!$D$26,$F$2:$G$44,2,FALSE)+ROW()-2))=Switch!$D$26,INDIRECT(\"a\" & (VLOOKUP(Switch!$D$26,$F$2:$G$44,2,FALSE)+ROW()-2)),\"\")","v":{"$error":"#N/A"}},{"$f":"IF(INDIRECT(\"c\" & (VLOOKUP(Switch!$D$27,$F$2:$G$44,2,FALSE)+ROW()-2))=Switch!$D$27,INDIRECT(\"a\" & (VLOOKUP(Switch!$D$27,$F$2:$G$44,2,FALSE)+ROW()-2)),\"\")","v":{"$error":"#N/A"}},{"$f":"IF(INDIRECT(\"c\" & (VLOOKUP(Switch!$D$28,$F$2:$G$44,2,FALSE)+ROW()-2))=Switch!$D$28,INDIRECT(\"a\" & (VLOOKUP(Switch!$D$28,$F$2:$G$44,2,FALSE)+ROW()-2)),\"\")","v":{"$error":"#N/A"}},{"$f":"IF(INDIRECT(\"c\" & (VLOOKUP(Switch!$D$29,$F$2:$G$44,2,FALSE)+ROW()-2))=Switch!$D$29,INDIRECT(\"a\" & (VLOOKUP(Switch!$D$29,$F$2:$G$44,2,FALSE)+ROW()-2)),\"\")","v":{"$error":"#N/A"}},{"$f":"IF(INDIRECT(\"c\" & (VLOOKUP(Switch!$D$30,$F$2:$G$44,2,FALSE)+ROW()-2))=Switch!$D$30,INDIRECT(\"a\" & (VLOOKUP(Switch!$D$30,$F$2:$G$44,2,FALSE)+ROW()-2)),\"\")","v":{"$error":"#N/A"}},{"$f":"IF(INDIRECT(\"c\" & (VLOOKUP(Switch!$D$31,$F$2:$G$44,2,FALSE)+ROW()-2))=Switch!$D$31,INDIRECT(\"a\" & (VLOOKUP(Switch!$D$31,$F$2:$G$44,2,FALSE)+ROW()-2)),\"\")","v":{"$error":"#N/A"}},{"$f":"IF(INDIRECT(\"c\" & (VLOOKUP(Switch!$D$32,$F$2:$G$44,2,FALSE)+ROW()-2))=Switch!$D$32,INDIRECT(\"a\" & (VLOOKUP(Switch!$D$32,$F$2:$G$44,2,FALSE)+ROW()-2)),\"\")","v":{"$error":"#N/A"}},{"$f":"IF(INDIRECT(\"c\" & (VLOOKUP(Switch!$D$33,$F$2:$G$44,2,FALSE)+ROW()-2))=Switch!$D$33,INDIRECT(\"a\" & (VLOOKUP(Switch!$D$33,$F$2:$G$44,2,FALSE)+ROW()-2)),\"\")","v":{"$error":"#N/A"}},{"$f":"IF(INDIRECT(\"c\" & (VLOOKUP(Switch!$D$34,$F$2:$G$44,2,FALSE)+ROW()-2))=Switch!$D$34,INDIRECT(\"a\" & (VLOOKUP(Switch!$D$34,$F$2:$G$44,2,FALSE)+ROW()-2)),\"\")","v":{"$error":"#N/A"}},{"$f":"IF(INDIRECT(\"c\" & (VLOOKUP(Switch!$D$35,$F$2:$G$44,2,FALSE)+ROW()-2))=Switch!$D$35,INDIRECT(\"a\" & (VLOOKUP(Switch!$D$35,$F$2:$G$44,2,FALSE)+ROW()-2)),\"\")","v":{"$error":"#N/A"}},{"$f":"IF(INDIRECT(\"c\" & (VLOOKUP(Switch!$D$36,$F$2:$G$44,2,FALSE)+ROW()-2))=Switch!$D$36,INDIRECT(\"a\" & (VLOOKUP(Switch!$D$36,$F$2:$G$44,2,FALSE)+ROW()-2)),\"\")","v":{"$error":"#N/A"}},{"$f":"IF(INDIRECT(\"c\" & (VLOOKUP(Switch!$D$37,$F$2:$G$44,2,FALSE)+ROW()-2))=Switch!$D$37,INDIRECT(\"a\" & (VLOOKUP(Switch!$D$37,$F$2:$G$44,2,FALSE)+ROW()-2)),\"\")","v":{"$error":"#N/A"}},{"$f":"IF(INDIRECT(\"c\" & (VLOOKUP(Switch!$D$38,$F$2:$G$44,2,FALSE)+ROW()-2))=Switch!$D$38,INDIRECT(\"a\" & (VLOOKUP(Switch!$D$38,$F$2:$G$44,2,FALSE)+ROW()-2)),\"\")","v":{"$error":"#N/A"}},{"$f":"IF(INDIRECT(\"c\" & (VLOOKUP(Switch!$D$39,$F$2:$G$44,2,FALSE)+ROW()-2))=Switch!$D$39,INDIRECT(\"a\" & (VLOOKUP(Switch!$D$39,$F$2:$G$44,2,FALSE)+ROW()-2)),\"\")","v":{"$error":"#N/A"}},{"$f":"IF(INDIRECT(\"c\" & (VLOOKUP(Switch!$D$40,$F$2:$G$44,2,FALSE)+ROW()-2))=Switch!$D$40,INDIRECT(\"a\" & (VLOOKUP(Switch!$D$40,$F$2:$G$44,2,FALSE)+ROW()-2)),\"\")","v":{"$error":"#N/A"}},{"$f":"IF(INDIRECT(\"c\" & (VLOOKUP(Switch!$D$52,$F$2:$G$44,2,FALSE)+ROW()-2))=Switch!$D$52,INDIRECT(\"a\" & (VLOOKUP(Switch!$D$52,$F$2:$G$44,2,FALSE)+ROW()-2)),\"\")","v":{"$error":"#N/A"}},{"$f":"IF(INDIRECT(\"c\" & (VLOOKUP(Switch!$D$53,$F$2:$G$44,2,FALSE)+ROW()-2))=Switch!$D$53,INDIRECT(\"a\" & (VLOOKUP(Switch!$D$53,$F$2:$G$44,2,FALSE)+ROW()-2)),\"\")","v":{"$error":"#N/A"}},{"$f":"IF(INDIRECT(\"c\" & (VLOOKUP(Switch!$D$54,$F$2:$G$44,2,FALSE)+ROW()-2))=Switch!$D$54,INDIRECT(\"a\" & (VLOOKUP(Switch!$D$54,$F$2:$G$44,2,FALSE)+ROW()-2)),\"\")","v":{"$error":"#N/A"}},{"$f":"IF(INDIRECT(\"c\" & (VLOOKUP(Switch!$D$55,$F$2:$G$44,2,FALSE)+ROW()-2))=Switch!$D$55,INDIRECT(\"a\" & (VLOOKUP(Switch!$D$55,$F$2:$G$44,2,FALSE)+ROW()-2)),\"\")","v":{"$error":"#N/A"}},{"$f":"IF(INDIRECT(\"c\" & (VLOOKUP(Switch!$D$56,$F$2:$G$44,2,FALSE)+ROW()-2))=Switch!$D$56,INDIRECT(\"a\" & (VLOOKUP(Switch!$D$56,$F$2:$G$44,2,FALSE)+ROW()-2)),\"\")","v":{"$error":"#N/A"}},{"$f":"IF(INDIRECT(\"c\" & (VLOOKUP(Switch!$D$57,$F$2:$G$44,2,FALSE)+ROW()-2))=Switch!$D$57,INDIRECT(\"a\" & (VLOOKUP(Switch!$D$57,$F$2:$G$44,2,FALSE)+ROW()-2)),\"\")","v":{"$error":"#N/A"}},{"$f":"IF(INDIRECT(\"c\" & (VLOOKUP(Switch!$D$58,$F$2:$G$44,2,FALSE)+ROW()-2))=Switch!$D$58,INDIRECT(\"a\" & (VLOOKUP(Switch!$D$58,$F$2:$G$44,2,FALSE)+ROW()-2)),\"\")","v":{"$error":"#N/A"}},{"$f":"IF(INDIRECT(\"c\" & (VLOOKUP(Switch!$D$59,$F$2:$G$44,2,FALSE)+ROW()-2))=Switch!$D$59,INDIRECT(\"a\" & (VLOOKUP(Switch!$D$59,$F$2:$G$44,2,FALSE)+ROW()-2)),\"\")","v":{"$error":"#N/A"}},{"$f":"IF(INDIRECT(\"c\" & (VLOOKUP(Switch!$D$60,$F$2:$G$44,2,FALSE)+ROW()-2))=Switch!$D$60,INDIRECT(\"a\" & (VLOOKUP(Switch!$D$60,$F$2:$G$44,2,FALSE)+ROW()-2)),\"\")","v":{"$error":"#N/A"}},{"$f":"IF(INDIRECT(\"c\" & (VLOOKUP(Switch!$D$61,$F$2:$G$44,2,FALSE)+ROW()-2))=Switch!$D$61,INDIRECT(\"a\" & (VLOOKUP(Switch!$D$61,$F$2:$G$44,2,FALSE)+ROW()-2)),\"\")","v":{"$error":"#N/A"}},{"$f":"IF(INDIRECT(\"c\" & (VLOOKUP(Switch!$D$62,$F$2:$G$44,2,FALSE)+ROW()-2))=Switch!$D$62,INDIRECT(\"a\" & (VLOOKUP(Switch!$D$62,$F$2:$G$44,2,FALSE)+ROW()-2)),\"\")","v":{"$error":"#N/A"}},{"$f":"IF(INDIRECT(\"c\" & (VLOOKUP(Switch!$D$63,$F$2:$G$44,2,FALSE)+ROW()-2))=Switch!$D$63,INDIRECT(\"a\" & (VLOOKUP(Switch!$D$63,$F$2:$G$44,2,FALSE)+ROW()-2)),\"\")","v":{"$error":"#N/A"}},{"$f":"IF(INDIRECT(\"c\" & (VLOOKUP(Switch!$D$64,$F$2:$G$44,2,FALSE)+ROW()-2))=Switch!$D$64,INDIRECT(\"a\" & (VLOOKUP(Switch!$D$64,$F$2:$G$44,2,FALSE)+ROW()-2)),\"\")","v":{"$error":"#N/A"}},{"$f":"IF(INDIRECT(\"c\" & (VLOOKUP(Switch!$D$65,$F$2:$G$44,2,FALSE)+ROW()-2))=Switch!$D$65,INDIRECT(\"a\" & (VLOOKUP(Switch!$D$65,$F$2:$G$44,2,FALSE)+ROW()-2)),\"\")","v":{"$error":"#N/A"}},{"$f":"IF(INDIRECT(\"c\" & (VLOOKUP(Switch!$D$66,$F$2:$G$44,2,FALSE)+ROW()-2))=Switch!$D$66,INDIRECT(\"a\" & (VLOOKUP(Switch!$D$66,$F$2:$G$44,2,FALSE)+ROW()-2)),\"\")","v":{"$error":"#N/A"}}]
["Kruger Ci Prudential FoF B1","KSPFA","Ci Collective Investments (RF) (PTY) Ltd",{"$f":"ROW()","v":221},null,null,{"$f":"VLOOKUP(F221,$C$2:$D$637,2,FALSE)","v":{"$error":"#N/A"}},{"$f":"IF(INDIRECT(\"c\" & (VLOOKUP(Switch!$D$26,$F$2:$G$44,2,FALSE)+ROW()-2))=Switch!$D$26,INDIRECT(\"a\" & (VLOOKUP(Switch!$D$26,$F$2:$G$44,2,FALSE)+ROW()-2)),\"\")","v":{"$error":"#N/A"}},{"$f":"IF(INDIRECT(\"c\" & (VLOOKUP(Switch!$D$27,$F$2:$G$44,2,FALSE)+ROW()-2))=Switch!$D$27,INDIRECT(\"a\" & (VLOOKUP(Switch!$D$27,$F$2:$G$44,2,FALSE)+ROW()-2)),\"\")","v":{"$error":"#N/A"}},{"$f":"IF(INDIRECT(\"c\" & (VLOOKUP(Switch!$D$28,$F$2:$G$44,2,FALSE)+ROW()-2))=Switch!$D$28,INDIRECT(\"a\" & (VLOOKUP(Switch!$D$28,$F$2:$G$44,2,FALSE)+ROW()-2)),\"\")","v":{"$error":"#N/A"}},{"$f":"IF(INDIRECT(\"c\" & (VLOOKUP(Switch!$D$29,$F$2:$G$44,2,FALSE)+ROW()-2))=Switch!$D$29,INDIRECT(\"a\" & (VLOOKUP(Switch!$D$29,$F$2:$G$44,2,FALSE)+ROW()-2)),\"\")","v":{"$error":"#N/A"}},{"$f":"IF(INDIRECT(\"c\" & (VLOOKUP(Switch!$D$30,$F$2:$G$44,2,FALSE)+ROW()-2))=Switch!$D$30,INDIRECT(\"a\" & (VLOOKUP(Switch!$D$30,$F$2:$G$44,2,FALSE)+ROW()-2)),\"\")","v":{"$error":"#N/A"}},{"$f":"IF(INDIRECT(\"c\" & (VLOOKUP(Switch!$D$31,$F$2:$G$44,2,FALSE)+ROW()-2))=Switch!$D$31,INDIRECT(\"a\" & (VLOOKUP(Switch!$D$31,$F$2:$G$44,2,FALSE)+ROW()-2)),\"\")","v":{"$error":"#N/A"}},{"$f":"IF(INDIRECT(\"c\" & (VLOOKUP(Switch!$D$32,$F$2:$G$44,2,FALSE)+ROW()-2))=Switch!$D$32,INDIRECT(\"a\" & (VLOOKUP(Switch!$D$32,$F$2:$G$44,2,FALSE)+ROW()-2)),\"\")","v":{"$error":"#N/A"}},{"$f":"IF(INDIRECT(\"c\" & (VLOOKUP(Switch!$D$33,$F$2:$G$44,2,FALSE)+ROW()-2))=Switch!$D$33,INDIRECT(\"a\" & (VLOOKUP(Switch!$D$33,$F$2:$G$44,2,FALSE)+ROW()-2)),\"\")","v":{"$error":"#N/A"}},{"$f":"IF(INDIRECT(\"c\" & (VLOOKUP(Switch!$D$34,$F$2:$G$44,2,FALSE)+ROW()-2))=Switch!$D$34,INDIRECT(\"a\" & (VLOOKUP(Switch!$D$34,$F$2:$G$44,2,FALSE)+ROW()-2)),\"\")","v":{"$error":"#N/A"}},{"$f":"IF(INDIRECT(\"c\" & (VLOOKUP(Switch!$D$35,$F$2:$G$44,2,FALSE)+ROW()-2))=Switch!$D$35,INDIRECT(\"a\" & (VLOOKUP(Switch!$D$35,$F$2:$G$44,2,FALSE)+ROW()-2)),\"\")","v":{"$error":"#N/A"}},{"$f":"IF(INDIRECT(\"c\" & (VLOOKUP(Switch!$D$36,$F$2:$G$44,2,FALSE)+ROW()-2))=Switch!$D$36,INDIRECT(\"a\" & (VLOOKUP(Switch!$D$36,$F$2:$G$44,2,FALSE)+ROW()-2)),\"\")","v":{"$error":"#N/A"}},{"$f":"IF(INDIRECT(\"c\" & (VLOOKUP(Switch!$D$37,$F$2:$G$44,2,FALSE)+ROW()-2))=Switch!$D$37,INDIRECT(\"a\" & (VLOOKUP(Switch!$D$37,$F$2:$G$44,2,FALSE)+ROW()-2)),\"\")","v":{"$error":"#N/A"}},{"$f":"IF(INDIRECT(\"c\" & (VLOOKUP(Switch!$D$38,$F$2:$G$44,2,FALSE)+ROW()-2))=Switch!$D$38,INDIRECT(\"a\" & (VLOOKUP(Switch!$D$38,$F$2:$G$44,2,FALSE)+ROW()-2)),\"\")","v":{"$error":"#N/A"}},{"$f":"IF(INDIRECT(\"c\" & (VLOOKUP(Switch!$D$39,$F$2:$G$44,2,FALSE)+ROW()-2))=Switch!$D$39,INDIRECT(\"a\" & (VLOOKUP(Switch!$D$39,$F$2:$G$44,2,FALSE)+ROW()-2)),\"\")","v":{"$error":"#N/A"}},{"$f":"IF(INDIRECT(\"c\" & (VLOOKUP(Switch!$D$40,$F$2:$G$44,2,FALSE)+ROW()-2))=Switch!$D$40,INDIRECT(\"a\" & (VLOOKUP(Switch!$D$40,$F$2:$G$44,2,FALSE)+ROW()-2)),\"\")","v":{"$error":"#N/A"}},{"$f":"IF(INDIRECT(\"c\" & (VLOOKUP(Switch!$D$52,$F$2:$G$44,2,FALSE)+ROW()-2))=Switch!$D$52,INDIRECT(\"a\" & (VLOOKUP(Switch!$D$52,$F$2:$G$44,2,FALSE)+ROW()-2)),\"\")","v":{"$error":"#N/A"}},{"$f":"IF(INDIRECT(\"c\" & (VLOOKUP(Switch!$D$53,$F$2:$G$44,2,FALSE)+ROW()-2))=Switch!$D$53,INDIRECT(\"a\" & (VLOOKUP(Switch!$D$53,$F$2:$G$44,2,FALSE)+ROW()-2)),\"\")","v":{"$error":"#N/A"}},{"$f":"IF(INDIRECT(\"c\" & (VLOOKUP(Switch!$D$54,$F$2:$G$44,2,FALSE)+ROW()-2))=Switch!$D$54,INDIRECT(\"a\" & (VLOOKUP(Switch!$D$54,$F$2:$G$44,2,FALSE)+ROW()-2)),\"\")","v":{"$error":"#N/A"}},{"$f":"IF(INDIRECT(\"c\" & (VLOOKUP(Switch!$D$55,$F$2:$G$44,2,FALSE)+ROW()-2))=Switch!$D$55,INDIRECT(\"a\" & (VLOOKUP(Switch!$D$55,$F$2:$G$44,2,FALSE)+ROW()-2)),\"\")","v":{"$error":"#N/A"}},{"$f":"IF(INDIRECT(\"c\" & (VLOOKUP(Switch!$D$56,$F$2:$G$44,2,FALSE)+ROW()-2))=Switch!$D$56,INDIRECT(\"a\" & (VLOOKUP(Switch!$D$56,$F$2:$G$44,2,FALSE)+ROW()-2)),\"\")","v":{"$error":"#N/A"}},{"$f":"IF(INDIRECT(\"c\" & (VLOOKUP(Switch!$D$57,$F$2:$G$44,2,FALSE)+ROW()-2))=Switch!$D$57,INDIRECT(\"a\" & (VLOOKUP(Switch!$D$57,$F$2:$G$44,2,FALSE)+ROW()-2)),\"\")","v":{"$error":"#N/A"}},{"$f":"IF(INDIRECT(\"c\" & (VLOOKUP(Switch!$D$58,$F$2:$G$44,2,FALSE)+ROW()-2))=Switch!$D$58,INDIRECT(\"a\" & (VLOOKUP(Switch!$D$58,$F$2:$G$44,2,FALSE)+ROW()-2)),\"\")","v":{"$error":"#N/A"}},{"$f":"IF(INDIRECT(\"c\" & (VLOOKUP(Switch!$D$59,$F$2:$G$44,2,FALSE)+ROW()-2))=Switch!$D$59,INDIRECT(\"a\" & (VLOOKUP(Switch!$D$59,$F$2:$G$44,2,FALSE)+ROW()-2)),\"\")","v":{"$error":"#N/A"}},{"$f":"IF(INDIRECT(\"c\" & (VLOOKUP(Switch!$D$60,$F$2:$G$44,2,FALSE)+ROW()-2))=Switch!$D$60,INDIRECT(\"a\" & (VLOOKUP(Switch!$D$60,$F$2:$G$44,2,FALSE)+ROW()-2)),\"\")","v":{"$error":"#N/A"}},{"$f":"IF(INDIRECT(\"c\" & (VLOOKUP(Switch!$D$61,$F$2:$G$44,2,FALSE)+ROW()-2))=Switch!$D$61,INDIRECT(\"a\" & (VLOOKUP(Switch!$D$61,$F$2:$G$44,2,FALSE)+ROW()-2)),\"\")","v":{"$error":"#N/A"}},{"$f":"IF(INDIRECT(\"c\" & (VLOOKUP(Switch!$D$62,$F$2:$G$44,2,FALSE)+ROW()-2))=Switch!$D$62,INDIRECT(\"a\" & (VLOOKUP(Switch!$D$62,$F$2:$G$44,2,FALSE)+ROW()-2)),\"\")","v":{"$error":"#N/A"}},{"$f":"IF(INDIRECT(\"c\" & (VLOOKUP(Switch!$D$63,$F$2:$G$44,2,FALSE)+ROW()-2))=Switch!$D$63,INDIRECT(\"a\" & (VLOOKUP(Switch!$D$63,$F$2:$G$44,2,FALSE)+ROW()-2)),\"\")","v":{"$error":"#N/A"}},{"$f":"IF(INDIRECT(\"c\" & (VLOOKUP(Switch!$D$64,$F$2:$G$44,2,FALSE)+ROW()-2))=Switch!$D$64,INDIRECT(\"a\" & (VLOOKUP(Switch!$D$64,$F$2:$G$44,2,FALSE)+ROW()-2)),\"\")","v":{"$error":"#N/A"}},{"$f":"IF(INDIRECT(\"c\" & (VLOOKUP(Switch!$D$65,$F$2:$G$44,2,FALSE)+ROW()-2))=Switch!$D$65,INDIRECT(\"a\" & (VLOOKUP(Switch!$D$65,$F$2:$G$44,2,FALSE)+ROW()-2)),\"\")","v":{"$error":"#N/A"}},{"$f":"IF(INDIRECT(\"c\" & (VLOOKUP(Switch!$D$66,$F$2:$G$44,2,FALSE)+ROW()-2))=Switch!$D$66,INDIRECT(\"a\" & (VLOOKUP(Switch!$D$66,$F$2:$G$44,2,FALSE)+ROW()-2)),\"\")","v":{"$error":"#N/A"}}]
["Coronation Balanced Defensive Fund P","CBDB4","Coronation Management Company",{"$f":"ROW()","v":222},null,null,{"$f":"VLOOKUP(F222,$C$2:$D$637,2,FALSE)","v":{"$error":"#N/A"}},{"$f":"IF(INDIRECT(\"c\" & (VLOOKUP(Switch!$D$26,$F$2:$G$44,2,FALSE)+ROW()-2))=Switch!$D$26,INDIRECT(\"a\" & (VLOOKUP(Switch!$D$26,$F$2:$G$44,2,FALSE)+ROW()-2)),\"\")","v":{"$error":"#N/A"}},{"$f":"IF(INDIRECT(\"c\" & (VLOOKUP(Switch!$D$27,$F$2:$G$44,2,FALSE)+ROW()-2))=Switch!$D$27,INDIRECT(\"a\" & (VLOOKUP(Switch!$D$27,$F$2:$G$44,2,FALSE)+ROW()-2)),\"\")","v":{"$error":"#N/A"}},{"$f":"IF(INDIRECT(\"c\" & (VLOOKUP(Switch!$D$28,$F$2:$G$44,2,FALSE)+ROW()-2))=Switch!$D$28,INDIRECT(\"a\" & (VLOOKUP(Switch!$D$28,$F$2:$G$44,2,FALSE)+ROW()-2)),\"\")","v":{"$error":"#N/A"}},{"$f":"IF(INDIRECT(\"c\" & (VLOOKUP(Switch!$D$29,$F$2:$G$44,2,FALSE)+ROW()-2))=Switch!$D$29,INDIRECT(\"a\" & (VLOOKUP(Switch!$D$29,$F$2:$G$44,2,FALSE)+ROW()-2)),\"\")","v":{"$error":"#N/A"}},{"$f":"IF(INDIRECT(\"c\" & (VLOOKUP(Switch!$D$30,$F$2:$G$44,2,FALSE)+ROW()-2))=Switch!$D$30,INDIRECT(\"a\" & (VLOOKUP(Switch!$D$30,$F$2:$G$44,2,FALSE)+ROW()-2)),\"\")","v":{"$error":"#N/A"}},{"$f":"IF(INDIRECT(\"c\" & (VLOOKUP(Switch!$D$31,$F$2:$G$44,2,FALSE)+ROW()-2))=Switch!$D$31,INDIRECT(\"a\" & (VLOOKUP(Switch!$D$31,$F$2:$G$44,2,FALSE)+ROW()-2)),\"\")","v":{"$error":"#N/A"}},{"$f":"IF(INDIRECT(\"c\" & (VLOOKUP(Switch!$D$32,$F$2:$G$44,2,FALSE)+ROW()-2))=Switch!$D$32,INDIRECT(\"a\" & (VLOOKUP(Switch!$D$32,$F$2:$G$44,2,FALSE)+ROW()-2)),\"\")","v":{"$error":"#N/A"}},{"$f":"IF(INDIRECT(\"c\" & (VLOOKUP(Switch!$D$33,$F$2:$G$44,2,FALSE)+ROW()-2))=Switch!$D$33,INDIRECT(\"a\" & (VLOOKUP(Switch!$D$33,$F$2:$G$44,2,FALSE)+ROW()-2)),\"\")","v":{"$error":"#N/A"}},{"$f":"IF(INDIRECT(\"c\" & (VLOOKUP(Switch!$D$34,$F$2:$G$44,2,FALSE)+ROW()-2))=Switch!$D$34,INDIRECT(\"a\" & (VLOOKUP(Switch!$D$34,$F$2:$G$44,2,FALSE)+ROW()-2)),\"\")","v":{"$error":"#N/A"}},{"$f":"IF(INDIRECT(\"c\" & (VLOOKUP(Switch!$D$35,$F$2:$G$44,2,FALSE)+ROW()-2))=Switch!$D$35,INDIRECT(\"a\" & (VLOOKUP(Switch!$D$35,$F$2:$G$44,2,FALSE)+ROW()-2)),\"\")","v":{"$error":"#N/A"}},{"$f":"IF(INDIRECT(\"c\" & (VLOOKUP(Switch!$D$36,$F$2:$G$44,2,FALSE)+ROW()-2))=Switch!$D$36,INDIRECT(\"a\" & (VLOOKUP(Switch!$D$36,$F$2:$G$44,2,FALSE)+ROW()-2)),\"\")","v":{"$error":"#N/A"}},{"$f":"IF(INDIRECT(\"c\" & (VLOOKUP(Switch!$D$37,$F$2:$G$44,2,FALSE)+ROW()-2))=Switch!$D$37,INDIRECT(\"a\" & (VLOOKUP(Switch!$D$37,$F$2:$G$44,2,FALSE)+ROW()-2)),\"\")","v":{"$error":"#N/A"}},{"$f":"IF(INDIRECT(\"c\" & (VLOOKUP(Switch!$D$38,$F$2:$G$44,2,FALSE)+ROW()-2))=Switch!$D$38,INDIRECT(\"a\" & (VLOOKUP(Switch!$D$38,$F$2:$G$44,2,FALSE)+ROW()-2)),\"\")","v":{"$error":"#N/A"}},{"$f":"IF(INDIRECT(\"c\" & (VLOOKUP(Switch!$D$39,$F$2:$G$44,2,FALSE)+ROW()-2))=Switch!$D$39,INDIRECT(\"a\" & (VLOOKUP(Switch!$D$39,$F$2:$G$44,2,FALSE)+ROW()-2)),\"\")","v":{"$error":"#N/A"}},{"$f":"IF(INDIRECT(\"c\" & (VLOOKUP(Switch!$D$40,$F$2:$G$44,2,FALSE)+ROW()-2))=Switch!$D$40,INDIRECT(\"a\" & (VLOOKUP(Switch!$D$40,$F$2:$G$44,2,FALSE)+ROW()-2)),\"\")","v":{"$error":"#N/A"}},{"$f":"IF(INDIRECT(\"c\" & (VLOOKUP(Switch!$D$52,$F$2:$G$44,2,FALSE)+ROW()-2))=Switch!$D$52,INDIRECT(\"a\" & (VLOOKUP(Switch!$D$52,$F$2:$G$44,2,FALSE)+ROW()-2)),\"\")","v":{"$error":"#N/A"}},{"$f":"IF(INDIRECT(\"c\" & (VLOOKUP(Switch!$D$53,$F$2:$G$44,2,FALSE)+ROW()-2))=Switch!$D$53,INDIRECT(\"a\" & (VLOOKUP(Switch!$D$53,$F$2:$G$44,2,FALSE)+ROW()-2)),\"\")","v":{"$error":"#N/A"}},{"$f":"IF(INDIRECT(\"c\" & (VLOOKUP(Switch!$D$54,$F$2:$G$44,2,FALSE)+ROW()-2))=Switch!$D$54,INDIRECT(\"a\" & (VLOOKUP(Switch!$D$54,$F$2:$G$44,2,FALSE)+ROW()-2)),\"\")","v":{"$error":"#N/A"}},{"$f":"IF(INDIRECT(\"c\" & (VLOOKUP(Switch!$D$55,$F$2:$G$44,2,FALSE)+ROW()-2))=Switch!$D$55,INDIRECT(\"a\" & (VLOOKUP(Switch!$D$55,$F$2:$G$44,2,FALSE)+ROW()-2)),\"\")","v":{"$error":"#N/A"}},{"$f":"IF(INDIRECT(\"c\" & (VLOOKUP(Switch!$D$56,$F$2:$G$44,2,FALSE)+ROW()-2))=Switch!$D$56,INDIRECT(\"a\" & (VLOOKUP(Switch!$D$56,$F$2:$G$44,2,FALSE)+ROW()-2)),\"\")","v":{"$error":"#N/A"}},{"$f":"IF(INDIRECT(\"c\" & (VLOOKUP(Switch!$D$57,$F$2:$G$44,2,FALSE)+ROW()-2))=Switch!$D$57,INDIRECT(\"a\" & (VLOOKUP(Switch!$D$57,$F$2:$G$44,2,FALSE)+ROW()-2)),\"\")","v":{"$error":"#N/A"}},{"$f":"IF(INDIRECT(\"c\" & (VLOOKUP(Switch!$D$58,$F$2:$G$44,2,FALSE)+ROW()-2))=Switch!$D$58,INDIRECT(\"a\" & (VLOOKUP(Switch!$D$58,$F$2:$G$44,2,FALSE)+ROW()-2)),\"\")","v":{"$error":"#N/A"}},{"$f":"IF(INDIRECT(\"c\" & (VLOOKUP(Switch!$D$59,$F$2:$G$44,2,FALSE)+ROW()-2))=Switch!$D$59,INDIRECT(\"a\" & (VLOOKUP(Switch!$D$59,$F$2:$G$44,2,FALSE)+ROW()-2)),\"\")","v":{"$error":"#N/A"}},{"$f":"IF(INDIRECT(\"c\" & (VLOOKUP(Switch!$D$60,$F$2:$G$44,2,FALSE)+ROW()-2))=Switch!$D$60,INDIRECT(\"a\" & (VLOOKUP(Switch!$D$60,$F$2:$G$44,2,FALSE)+ROW()-2)),\"\")","v":{"$error":"#N/A"}},{"$f":"IF(INDIRECT(\"c\" & (VLOOKUP(Switch!$D$61,$F$2:$G$44,2,FALSE)+ROW()-2))=Switch!$D$61,INDIRECT(\"a\" & (VLOOKUP(Switch!$D$61,$F$2:$G$44,2,FALSE)+ROW()-2)),\"\")","v":{"$error":"#N/A"}},{"$f":"IF(INDIRECT(\"c\" & (VLOOKUP(Switch!$D$62,$F$2:$G$44,2,FALSE)+ROW()-2))=Switch!$D$62,INDIRECT(\"a\" & (VLOOKUP(Switch!$D$62,$F$2:$G$44,2,FALSE)+ROW()-2)),\"\")","v":{"$error":"#N/A"}},{"$f":"IF(INDIRECT(\"c\" & (VLOOKUP(Switch!$D$63,$F$2:$G$44,2,FALSE)+ROW()-2))=Switch!$D$63,INDIRECT(\"a\" & (VLOOKUP(Switch!$D$63,$F$2:$G$44,2,FALSE)+ROW()-2)),\"\")","v":{"$error":"#N/A"}},{"$f":"IF(INDIRECT(\"c\" & (VLOOKUP(Switch!$D$64,$F$2:$G$44,2,FALSE)+ROW()-2))=Switch!$D$64,INDIRECT(\"a\" & (VLOOKUP(Switch!$D$64,$F$2:$G$44,2,FALSE)+ROW()-2)),\"\")","v":{"$error":"#N/A"}},{"$f":"IF(INDIRECT(\"c\" & (VLOOKUP(Switch!$D$65,$F$2:$G$44,2,FALSE)+ROW()-2))=Switch!$D$65,INDIRECT(\"a\" & (VLOOKUP(Switch!$D$65,$F$2:$G$44,2,FALSE)+ROW()-2)),\"\")","v":{"$error":"#N/A"}},{"$f":"IF(INDIRECT(\"c\" & (VLOOKUP(Switch!$D$66,$F$2:$G$44,2,FALSE)+ROW()-2))=Switch!$D$66,INDIRECT(\"a\" & (VLOOKUP(Switch!$D$66,$F$2:$G$44,2,FALSE)+ROW()-2)),\"\")","v":{"$error":"#N/A"}}]
["Coronation Balanced Plus Fund P","CBFB4","Coronation Management Company",{"$f":"ROW()","v":223},null,null,{"$f":"VLOOKUP(F223,$C$2:$D$637,2,FALSE)","v":{"$error":"#N/A"}},{"$f":"IF(INDIRECT(\"c\" & (VLOOKUP(Switch!$D$26,$F$2:$G$44,2,FALSE)+ROW()-2))=Switch!$D$26,INDIRECT(\"a\" & (VLOOKUP(Switch!$D$26,$F$2:$G$44,2,FALSE)+ROW()-2)),\"\")","v":{"$error":"#N/A"}},{"$f":"IF(INDIRECT(\"c\" & (VLOOKUP(Switch!$D$27,$F$2:$G$44,2,FALSE)+ROW()-2))=Switch!$D$27,INDIRECT(\"a\" & (VLOOKUP(Switch!$D$27,$F$2:$G$44,2,FALSE)+ROW()-2)),\"\")","v":{"$error":"#N/A"}},{"$f":"IF(INDIRECT(\"c\" & (VLOOKUP(Switch!$D$28,$F$2:$G$44,2,FALSE)+ROW()-2))=Switch!$D$28,INDIRECT(\"a\" & (VLOOKUP(Switch!$D$28,$F$2:$G$44,2,FALSE)+ROW()-2)),\"\")","v":{"$error":"#N/A"}},{"$f":"IF(INDIRECT(\"c\" & (VLOOKUP(Switch!$D$29,$F$2:$G$44,2,FALSE)+ROW()-2))=Switch!$D$29,INDIRECT(\"a\" & (VLOOKUP(Switch!$D$29,$F$2:$G$44,2,FALSE)+ROW()-2)),\"\")","v":{"$error":"#N/A"}},{"$f":"IF(INDIRECT(\"c\" & (VLOOKUP(Switch!$D$30,$F$2:$G$44,2,FALSE)+ROW()-2))=Switch!$D$30,INDIRECT(\"a\" & (VLOOKUP(Switch!$D$30,$F$2:$G$44,2,FALSE)+ROW()-2)),\"\")","v":{"$error":"#N/A"}},{"$f":"IF(INDIRECT(\"c\" & (VLOOKUP(Switch!$D$31,$F$2:$G$44,2,FALSE)+ROW()-2))=Switch!$D$31,INDIRECT(\"a\" & (VLOOKUP(Switch!$D$31,$F$2:$G$44,2,FALSE)+ROW()-2)),\"\")","v":{"$error":"#N/A"}},{"$f":"IF(INDIRECT(\"c\" & (VLOOKUP(Switch!$D$32,$F$2:$G$44,2,FALSE)+ROW()-2))=Switch!$D$32,INDIRECT(\"a\" & (VLOOKUP(Switch!$D$32,$F$2:$G$44,2,FALSE)+ROW()-2)),\"\")","v":{"$error":"#N/A"}},{"$f":"IF(INDIRECT(\"c\" & (VLOOKUP(Switch!$D$33,$F$2:$G$44,2,FALSE)+ROW()-2))=Switch!$D$33,INDIRECT(\"a\" & (VLOOKUP(Switch!$D$33,$F$2:$G$44,2,FALSE)+ROW()-2)),\"\")","v":{"$error":"#N/A"}},{"$f":"IF(INDIRECT(\"c\" & (VLOOKUP(Switch!$D$34,$F$2:$G$44,2,FALSE)+ROW()-2))=Switch!$D$34,INDIRECT(\"a\" & (VLOOKUP(Switch!$D$34,$F$2:$G$44,2,FALSE)+ROW()-2)),\"\")","v":{"$error":"#N/A"}},{"$f":"IF(INDIRECT(\"c\" & (VLOOKUP(Switch!$D$35,$F$2:$G$44,2,FALSE)+ROW()-2))=Switch!$D$35,INDIRECT(\"a\" & (VLOOKUP(Switch!$D$35,$F$2:$G$44,2,FALSE)+ROW()-2)),\"\")","v":{"$error":"#N/A"}},{"$f":"IF(INDIRECT(\"c\" & (VLOOKUP(Switch!$D$36,$F$2:$G$44,2,FALSE)+ROW()-2))=Switch!$D$36,INDIRECT(\"a\" & (VLOOKUP(Switch!$D$36,$F$2:$G$44,2,FALSE)+ROW()-2)),\"\")","v":{"$error":"#N/A"}},{"$f":"IF(INDIRECT(\"c\" & (VLOOKUP(Switch!$D$37,$F$2:$G$44,2,FALSE)+ROW()-2))=Switch!$D$37,INDIRECT(\"a\" & (VLOOKUP(Switch!$D$37,$F$2:$G$44,2,FALSE)+ROW()-2)),\"\")","v":{"$error":"#N/A"}},{"$f":"IF(INDIRECT(\"c\" & (VLOOKUP(Switch!$D$38,$F$2:$G$44,2,FALSE)+ROW()-2))=Switch!$D$38,INDIRECT(\"a\" & (VLOOKUP(Switch!$D$38,$F$2:$G$44,2,FALSE)+ROW()-2)),\"\")","v":{"$error":"#N/A"}},{"$f":"IF(INDIRECT(\"c\" & (VLOOKUP(Switch!$D$39,$F$2:$G$44,2,FALSE)+ROW()-2))=Switch!$D$39,INDIRECT(\"a\" & (VLOOKUP(Switch!$D$39,$F$2:$G$44,2,FALSE)+ROW()-2)),\"\")","v":{"$error":"#N/A"}},{"$f":"IF(INDIRECT(\"c\" & (VLOOKUP(Switch!$D$40,$F$2:$G$44,2,FALSE)+ROW()-2))=Switch!$D$40,INDIRECT(\"a\" & (VLOOKUP(Switch!$D$40,$F$2:$G$44,2,FALSE)+ROW()-2)),\"\")","v":{"$error":"#N/A"}},{"$f":"IF(INDIRECT(\"c\" & (VLOOKUP(Switch!$D$52,$F$2:$G$44,2,FALSE)+ROW()-2))=Switch!$D$52,INDIRECT(\"a\" & (VLOOKUP(Switch!$D$52,$F$2:$G$44,2,FALSE)+ROW()-2)),\"\")","v":{"$error":"#N/A"}},{"$f":"IF(INDIRECT(\"c\" & (VLOOKUP(Switch!$D$53,$F$2:$G$44,2,FALSE)+ROW()-2))=Switch!$D$53,INDIRECT(\"a\" & (VLOOKUP(Switch!$D$53,$F$2:$G$44,2,FALSE)+ROW()-2)),\"\")","v":{"$error":"#N/A"}},{"$f":"IF(INDIRECT(\"c\" & (VLOOKUP(Switch!$D$54,$F$2:$G$44,2,FALSE)+ROW()-2))=Switch!$D$54,INDIRECT(\"a\" & (VLOOKUP(Switch!$D$54,$F$2:$G$44,2,FALSE)+ROW()-2)),\"\")","v":{"$error":"#N/A"}},{"$f":"IF(INDIRECT(\"c\" & (VLOOKUP(Switch!$D$55,$F$2:$G$44,2,FALSE)+ROW()-2))=Switch!$D$55,INDIRECT(\"a\" & (VLOOKUP(Switch!$D$55,$F$2:$G$44,2,FALSE)+ROW()-2)),\"\")","v":{"$error":"#N/A"}},{"$f":"IF(INDIRECT(\"c\" & (VLOOKUP(Switch!$D$56,$F$2:$G$44,2,FALSE)+ROW()-2))=Switch!$D$56,INDIRECT(\"a\" & (VLOOKUP(Switch!$D$56,$F$2:$G$44,2,FALSE)+ROW()-2)),\"\")","v":{"$error":"#N/A"}},{"$f":"IF(INDIRECT(\"c\" & (VLOOKUP(Switch!$D$57,$F$2:$G$44,2,FALSE)+ROW()-2))=Switch!$D$57,INDIRECT(\"a\" & (VLOOKUP(Switch!$D$57,$F$2:$G$44,2,FALSE)+ROW()-2)),\"\")","v":{"$error":"#N/A"}},{"$f":"IF(INDIRECT(\"c\" & (VLOOKUP(Switch!$D$58,$F$2:$G$44,2,FALSE)+ROW()-2))=Switch!$D$58,INDIRECT(\"a\" & (VLOOKUP(Switch!$D$58,$F$2:$G$44,2,FALSE)+ROW()-2)),\"\")","v":{"$error":"#N/A"}},{"$f":"IF(INDIRECT(\"c\" & (VLOOKUP(Switch!$D$59,$F$2:$G$44,2,FALSE)+ROW()-2))=Switch!$D$59,INDIRECT(\"a\" & (VLOOKUP(Switch!$D$59,$F$2:$G$44,2,FALSE)+ROW()-2)),\"\")","v":{"$error":"#N/A"}},{"$f":"IF(INDIRECT(\"c\" & (VLOOKUP(Switch!$D$60,$F$2:$G$44,2,FALSE)+ROW()-2))=Switch!$D$60,INDIRECT(\"a\" & (VLOOKUP(Switch!$D$60,$F$2:$G$44,2,FALSE)+ROW()-2)),\"\")","v":{"$error":"#N/A"}},{"$f":"IF(INDIRECT(\"c\" & (VLOOKUP(Switch!$D$61,$F$2:$G$44,2,FALSE)+ROW()-2))=Switch!$D$61,INDIRECT(\"a\" & (VLOOKUP(Switch!$D$61,$F$2:$G$44,2,FALSE)+ROW()-2)),\"\")","v":{"$error":"#N/A"}},{"$f":"IF(INDIRECT(\"c\" & (VLOOKUP(Switch!$D$62,$F$2:$G$44,2,FALSE)+ROW()-2))=Switch!$D$62,INDIRECT(\"a\" & (VLOOKUP(Switch!$D$62,$F$2:$G$44,2,FALSE)+ROW()-2)),\"\")","v":{"$error":"#N/A"}},{"$f":"IF(INDIRECT(\"c\" & (VLOOKUP(Switch!$D$63,$F$2:$G$44,2,FALSE)+ROW()-2))=Switch!$D$63,INDIRECT(\"a\" & (VLOOKUP(Switch!$D$63,$F$2:$G$44,2,FALSE)+ROW()-2)),\"\")","v":{"$error":"#N/A"}},{"$f":"IF(INDIRECT(\"c\" & (VLOOKUP(Switch!$D$64,$F$2:$G$44,2,FALSE)+ROW()-2))=Switch!$D$64,INDIRECT(\"a\" & (VLOOKUP(Switch!$D$64,$F$2:$G$44,2,FALSE)+ROW()-2)),\"\")","v":{"$error":"#N/A"}},{"$f":"IF(INDIRECT(\"c\" & (VLOOKUP(Switch!$D$65,$F$2:$G$44,2,FALSE)+ROW()-2))=Switch!$D$65,INDIRECT(\"a\" & (VLOOKUP(Switch!$D$65,$F$2:$G$44,2,FALSE)+ROW()-2)),\"\")","v":{"$error":"#N/A"}},{"$f":"IF(INDIRECT(\"c\" & (VLOOKUP(Switch!$D$66,$F$2:$G$44,2,FALSE)+ROW()-2))=Switch!$D$66,INDIRECT(\"a\" & (VLOOKUP(Switch!$D$66,$F$2:$G$44,2,FALSE)+ROW()-2)),\"\")","v":{"$error":"#N/A"}}]
["Coronation Bond Fund P","CBFCP","Coronation Management Company",{"$f":"ROW()","v":224},null,null,{"$f":"VLOOKUP(F224,$C$2:$D$637,2,FALSE)","v":{"$error":"#N/A"}},{"$f":"IF(INDIRECT(\"c\" & (VLOOKUP(Switch!$D$26,$F$2:$G$44,2,FALSE)+ROW()-2))=Switch!$D$26,INDIRECT(\"a\" & (VLOOKUP(Switch!$D$26,$F$2:$G$44,2,FALSE)+ROW()-2)),\"\")","v":{"$error":"#N/A"}},{"$f":"IF(INDIRECT(\"c\" & (VLOOKUP(Switch!$D$27,$F$2:$G$44,2,FALSE)+ROW()-2))=Switch!$D$27,INDIRECT(\"a\" & (VLOOKUP(Switch!$D$27,$F$2:$G$44,2,FALSE)+ROW()-2)),\"\")","v":{"$error":"#N/A"}},{"$f":"IF(INDIRECT(\"c\" & (VLOOKUP(Switch!$D$28,$F$2:$G$44,2,FALSE)+ROW()-2))=Switch!$D$28,INDIRECT(\"a\" & (VLOOKUP(Switch!$D$28,$F$2:$G$44,2,FALSE)+ROW()-2)),\"\")","v":{"$error":"#N/A"}},{"$f":"IF(INDIRECT(\"c\" & (VLOOKUP(Switch!$D$29,$F$2:$G$44,2,FALSE)+ROW()-2))=Switch!$D$29,INDIRECT(\"a\" & (VLOOKUP(Switch!$D$29,$F$2:$G$44,2,FALSE)+ROW()-2)),\"\")","v":{"$error":"#N/A"}},{"$f":"IF(INDIRECT(\"c\" & (VLOOKUP(Switch!$D$30,$F$2:$G$44,2,FALSE)+ROW()-2))=Switch!$D$30,INDIRECT(\"a\" & (VLOOKUP(Switch!$D$30,$F$2:$G$44,2,FALSE)+ROW()-2)),\"\")","v":{"$error":"#N/A"}},{"$f":"IF(INDIRECT(\"c\" & (VLOOKUP(Switch!$D$31,$F$2:$G$44,2,FALSE)+ROW()-2))=Switch!$D$31,INDIRECT(\"a\" & (VLOOKUP(Switch!$D$31,$F$2:$G$44,2,FALSE)+ROW()-2)),\"\")","v":{"$error":"#N/A"}},{"$f":"IF(INDIRECT(\"c\" & (VLOOKUP(Switch!$D$32,$F$2:$G$44,2,FALSE)+ROW()-2))=Switch!$D$32,INDIRECT(\"a\" & (VLOOKUP(Switch!$D$32,$F$2:$G$44,2,FALSE)+ROW()-2)),\"\")","v":{"$error":"#N/A"}},{"$f":"IF(INDIRECT(\"c\" & (VLOOKUP(Switch!$D$33,$F$2:$G$44,2,FALSE)+ROW()-2))=Switch!$D$33,INDIRECT(\"a\" & (VLOOKUP(Switch!$D$33,$F$2:$G$44,2,FALSE)+ROW()-2)),\"\")","v":{"$error":"#N/A"}},{"$f":"IF(INDIRECT(\"c\" & (VLOOKUP(Switch!$D$34,$F$2:$G$44,2,FALSE)+ROW()-2))=Switch!$D$34,INDIRECT(\"a\" & (VLOOKUP(Switch!$D$34,$F$2:$G$44,2,FALSE)+ROW()-2)),\"\")","v":{"$error":"#N/A"}},{"$f":"IF(INDIRECT(\"c\" & (VLOOKUP(Switch!$D$35,$F$2:$G$44,2,FALSE)+ROW()-2))=Switch!$D$35,INDIRECT(\"a\" & (VLOOKUP(Switch!$D$35,$F$2:$G$44,2,FALSE)+ROW()-2)),\"\")","v":{"$error":"#N/A"}},{"$f":"IF(INDIRECT(\"c\" & (VLOOKUP(Switch!$D$36,$F$2:$G$44,2,FALSE)+ROW()-2))=Switch!$D$36,INDIRECT(\"a\" & (VLOOKUP(Switch!$D$36,$F$2:$G$44,2,FALSE)+ROW()-2)),\"\")","v":{"$error":"#N/A"}},{"$f":"IF(INDIRECT(\"c\" & (VLOOKUP(Switch!$D$37,$F$2:$G$44,2,FALSE)+ROW()-2))=Switch!$D$37,INDIRECT(\"a\" & (VLOOKUP(Switch!$D$37,$F$2:$G$44,2,FALSE)+ROW()-2)),\"\")","v":{"$error":"#N/A"}},{"$f":"IF(INDIRECT(\"c\" & (VLOOKUP(Switch!$D$38,$F$2:$G$44,2,FALSE)+ROW()-2))=Switch!$D$38,INDIRECT(\"a\" & (VLOOKUP(Switch!$D$38,$F$2:$G$44,2,FALSE)+ROW()-2)),\"\")","v":{"$error":"#N/A"}},{"$f":"IF(INDIRECT(\"c\" & (VLOOKUP(Switch!$D$39,$F$2:$G$44,2,FALSE)+ROW()-2))=Switch!$D$39,INDIRECT(\"a\" & (VLOOKUP(Switch!$D$39,$F$2:$G$44,2,FALSE)+ROW()-2)),\"\")","v":{"$error":"#N/A"}},{"$f":"IF(INDIRECT(\"c\" & (VLOOKUP(Switch!$D$40,$F$2:$G$44,2,FALSE)+ROW()-2))=Switch!$D$40,INDIRECT(\"a\" & (VLOOKUP(Switch!$D$40,$F$2:$G$44,2,FALSE)+ROW()-2)),\"\")","v":{"$error":"#N/A"}},{"$f":"IF(INDIRECT(\"c\" & (VLOOKUP(Switch!$D$52,$F$2:$G$44,2,FALSE)+ROW()-2))=Switch!$D$52,INDIRECT(\"a\" & (VLOOKUP(Switch!$D$52,$F$2:$G$44,2,FALSE)+ROW()-2)),\"\")","v":{"$error":"#N/A"}},{"$f":"IF(INDIRECT(\"c\" & (VLOOKUP(Switch!$D$53,$F$2:$G$44,2,FALSE)+ROW()-2))=Switch!$D$53,INDIRECT(\"a\" & (VLOOKUP(Switch!$D$53,$F$2:$G$44,2,FALSE)+ROW()-2)),\"\")","v":{"$error":"#N/A"}},{"$f":"IF(INDIRECT(\"c\" & (VLOOKUP(Switch!$D$54,$F$2:$G$44,2,FALSE)+ROW()-2))=Switch!$D$54,INDIRECT(\"a\" & (VLOOKUP(Switch!$D$54,$F$2:$G$44,2,FALSE)+ROW()-2)),\"\")","v":{"$error":"#N/A"}},{"$f":"IF(INDIRECT(\"c\" & (VLOOKUP(Switch!$D$55,$F$2:$G$44,2,FALSE)+ROW()-2))=Switch!$D$55,INDIRECT(\"a\" & (VLOOKUP(Switch!$D$55,$F$2:$G$44,2,FALSE)+ROW()-2)),\"\")","v":{"$error":"#N/A"}},{"$f":"IF(INDIRECT(\"c\" & (VLOOKUP(Switch!$D$56,$F$2:$G$44,2,FALSE)+ROW()-2))=Switch!$D$56,INDIRECT(\"a\" & (VLOOKUP(Switch!$D$56,$F$2:$G$44,2,FALSE)+ROW()-2)),\"\")","v":{"$error":"#N/A"}},{"$f":"IF(INDIRECT(\"c\" & (VLOOKUP(Switch!$D$57,$F$2:$G$44,2,FALSE)+ROW()-2))=Switch!$D$57,INDIRECT(\"a\" & (VLOOKUP(Switch!$D$57,$F$2:$G$44,2,FALSE)+ROW()-2)),\"\")","v":{"$error":"#N/A"}},{"$f":"IF(INDIRECT(\"c\" & (VLOOKUP(Switch!$D$58,$F$2:$G$44,2,FALSE)+ROW()-2))=Switch!$D$58,INDIRECT(\"a\" & (VLOOKUP(Switch!$D$58,$F$2:$G$44,2,FALSE)+ROW()-2)),\"\")","v":{"$error":"#N/A"}},{"$f":"IF(INDIRECT(\"c\" & (VLOOKUP(Switch!$D$59,$F$2:$G$44,2,FALSE)+ROW()-2))=Switch!$D$59,INDIRECT(\"a\" & (VLOOKUP(Switch!$D$59,$F$2:$G$44,2,FALSE)+ROW()-2)),\"\")","v":{"$error":"#N/A"}},{"$f":"IF(INDIRECT(\"c\" & (VLOOKUP(Switch!$D$60,$F$2:$G$44,2,FALSE)+ROW()-2))=Switch!$D$60,INDIRECT(\"a\" & (VLOOKUP(Switch!$D$60,$F$2:$G$44,2,FALSE)+ROW()-2)),\"\")","v":{"$error":"#N/A"}},{"$f":"IF(INDIRECT(\"c\" & (VLOOKUP(Switch!$D$61,$F$2:$G$44,2,FALSE)+ROW()-2))=Switch!$D$61,INDIRECT(\"a\" & (VLOOKUP(Switch!$D$61,$F$2:$G$44,2,FALSE)+ROW()-2)),\"\")","v":{"$error":"#N/A"}},{"$f":"IF(INDIRECT(\"c\" & (VLOOKUP(Switch!$D$62,$F$2:$G$44,2,FALSE)+ROW()-2))=Switch!$D$62,INDIRECT(\"a\" & (VLOOKUP(Switch!$D$62,$F$2:$G$44,2,FALSE)+ROW()-2)),\"\")","v":{"$error":"#N/A"}},{"$f":"IF(INDIRECT(\"c\" & (VLOOKUP(Switch!$D$63,$F$2:$G$44,2,FALSE)+ROW()-2))=Switch!$D$63,INDIRECT(\"a\" & (VLOOKUP(Switch!$D$63,$F$2:$G$44,2,FALSE)+ROW()-2)),\"\")","v":{"$error":"#N/A"}},{"$f":"IF(INDIRECT(\"c\" & (VLOOKUP(Switch!$D$64,$F$2:$G$44,2,FALSE)+ROW()-2))=Switch!$D$64,INDIRECT(\"a\" & (VLOOKUP(Switch!$D$64,$F$2:$G$44,2,FALSE)+ROW()-2)),\"\")","v":{"$error":"#N/A"}},{"$f":"IF(INDIRECT(\"c\" & (VLOOKUP(Switch!$D$65,$F$2:$G$44,2,FALSE)+ROW()-2))=Switch!$D$65,INDIRECT(\"a\" & (VLOOKUP(Switch!$D$65,$F$2:$G$44,2,FALSE)+ROW()-2)),\"\")","v":{"$error":"#N/A"}},{"$f":"IF(INDIRECT(\"c\" & (VLOOKUP(Switch!$D$66,$F$2:$G$44,2,FALSE)+ROW()-2))=Switch!$D$66,INDIRECT(\"a\" & (VLOOKUP(Switch!$D$66,$F$2:$G$44,2,FALSE)+ROW()-2)),\"\")","v":{"$error":"#N/A"}}]
["Coronation Capital Plus Fund P","CCPB5","Coronation Management Company",{"$f":"ROW()","v":225},null,null,{"$f":"VLOOKUP(F225,$C$2:$D$637,2,FALSE)","v":{"$error":"#N/A"}},{"$f":"IF(INDIRECT(\"c\" & (VLOOKUP(Switch!$D$26,$F$2:$G$44,2,FALSE)+ROW()-2))=Switch!$D$26,INDIRECT(\"a\" & (VLOOKUP(Switch!$D$26,$F$2:$G$44,2,FALSE)+ROW()-2)),\"\")","v":{"$error":"#N/A"}},{"$f":"IF(INDIRECT(\"c\" & (VLOOKUP(Switch!$D$27,$F$2:$G$44,2,FALSE)+ROW()-2))=Switch!$D$27,INDIRECT(\"a\" & (VLOOKUP(Switch!$D$27,$F$2:$G$44,2,FALSE)+ROW()-2)),\"\")","v":{"$error":"#N/A"}},{"$f":"IF(INDIRECT(\"c\" & (VLOOKUP(Switch!$D$28,$F$2:$G$44,2,FALSE)+ROW()-2))=Switch!$D$28,INDIRECT(\"a\" & (VLOOKUP(Switch!$D$28,$F$2:$G$44,2,FALSE)+ROW()-2)),\"\")","v":{"$error":"#N/A"}},{"$f":"IF(INDIRECT(\"c\" & (VLOOKUP(Switch!$D$29,$F$2:$G$44,2,FALSE)+ROW()-2))=Switch!$D$29,INDIRECT(\"a\" & (VLOOKUP(Switch!$D$29,$F$2:$G$44,2,FALSE)+ROW()-2)),\"\")","v":{"$error":"#N/A"}},{"$f":"IF(INDIRECT(\"c\" & (VLOOKUP(Switch!$D$30,$F$2:$G$44,2,FALSE)+ROW()-2))=Switch!$D$30,INDIRECT(\"a\" & (VLOOKUP(Switch!$D$30,$F$2:$G$44,2,FALSE)+ROW()-2)),\"\")","v":{"$error":"#N/A"}},{"$f":"IF(INDIRECT(\"c\" & (VLOOKUP(Switch!$D$31,$F$2:$G$44,2,FALSE)+ROW()-2))=Switch!$D$31,INDIRECT(\"a\" & (VLOOKUP(Switch!$D$31,$F$2:$G$44,2,FALSE)+ROW()-2)),\"\")","v":{"$error":"#N/A"}},{"$f":"IF(INDIRECT(\"c\" & (VLOOKUP(Switch!$D$32,$F$2:$G$44,2,FALSE)+ROW()-2))=Switch!$D$32,INDIRECT(\"a\" & (VLOOKUP(Switch!$D$32,$F$2:$G$44,2,FALSE)+ROW()-2)),\"\")","v":{"$error":"#N/A"}},{"$f":"IF(INDIRECT(\"c\" & (VLOOKUP(Switch!$D$33,$F$2:$G$44,2,FALSE)+ROW()-2))=Switch!$D$33,INDIRECT(\"a\" & (VLOOKUP(Switch!$D$33,$F$2:$G$44,2,FALSE)+ROW()-2)),\"\")","v":{"$error":"#N/A"}},{"$f":"IF(INDIRECT(\"c\" & (VLOOKUP(Switch!$D$34,$F$2:$G$44,2,FALSE)+ROW()-2))=Switch!$D$34,INDIRECT(\"a\" & (VLOOKUP(Switch!$D$34,$F$2:$G$44,2,FALSE)+ROW()-2)),\"\")","v":{"$error":"#N/A"}},{"$f":"IF(INDIRECT(\"c\" & (VLOOKUP(Switch!$D$35,$F$2:$G$44,2,FALSE)+ROW()-2))=Switch!$D$35,INDIRECT(\"a\" & (VLOOKUP(Switch!$D$35,$F$2:$G$44,2,FALSE)+ROW()-2)),\"\")","v":{"$error":"#N/A"}},{"$f":"IF(INDIRECT(\"c\" & (VLOOKUP(Switch!$D$36,$F$2:$G$44,2,FALSE)+ROW()-2))=Switch!$D$36,INDIRECT(\"a\" & (VLOOKUP(Switch!$D$36,$F$2:$G$44,2,FALSE)+ROW()-2)),\"\")","v":{"$error":"#N/A"}},{"$f":"IF(INDIRECT(\"c\" & (VLOOKUP(Switch!$D$37,$F$2:$G$44,2,FALSE)+ROW()-2))=Switch!$D$37,INDIRECT(\"a\" & (VLOOKUP(Switch!$D$37,$F$2:$G$44,2,FALSE)+ROW()-2)),\"\")","v":{"$error":"#N/A"}},{"$f":"IF(INDIRECT(\"c\" & (VLOOKUP(Switch!$D$38,$F$2:$G$44,2,FALSE)+ROW()-2))=Switch!$D$38,INDIRECT(\"a\" & (VLOOKUP(Switch!$D$38,$F$2:$G$44,2,FALSE)+ROW()-2)),\"\")","v":{"$error":"#N/A"}},{"$f":"IF(INDIRECT(\"c\" & (VLOOKUP(Switch!$D$39,$F$2:$G$44,2,FALSE)+ROW()-2))=Switch!$D$39,INDIRECT(\"a\" & (VLOOKUP(Switch!$D$39,$F$2:$G$44,2,FALSE)+ROW()-2)),\"\")","v":{"$error":"#N/A"}},{"$f":"IF(INDIRECT(\"c\" & (VLOOKUP(Switch!$D$40,$F$2:$G$44,2,FALSE)+ROW()-2))=Switch!$D$40,INDIRECT(\"a\" & (VLOOKUP(Switch!$D$40,$F$2:$G$44,2,FALSE)+ROW()-2)),\"\")","v":{"$error":"#N/A"}},{"$f":"IF(INDIRECT(\"c\" & (VLOOKUP(Switch!$D$52,$F$2:$G$44,2,FALSE)+ROW()-2))=Switch!$D$52,INDIRECT(\"a\" & (VLOOKUP(Switch!$D$52,$F$2:$G$44,2,FALSE)+ROW()-2)),\"\")","v":{"$error":"#N/A"}},{"$f":"IF(INDIRECT(\"c\" & (VLOOKUP(Switch!$D$53,$F$2:$G$44,2,FALSE)+ROW()-2))=Switch!$D$53,INDIRECT(\"a\" & (VLOOKUP(Switch!$D$53,$F$2:$G$44,2,FALSE)+ROW()-2)),\"\")","v":{"$error":"#N/A"}},{"$f":"IF(INDIRECT(\"c\" & (VLOOKUP(Switch!$D$54,$F$2:$G$44,2,FALSE)+ROW()-2))=Switch!$D$54,INDIRECT(\"a\" & (VLOOKUP(Switch!$D$54,$F$2:$G$44,2,FALSE)+ROW()-2)),\"\")","v":{"$error":"#N/A"}},{"$f":"IF(INDIRECT(\"c\" & (VLOOKUP(Switch!$D$55,$F$2:$G$44,2,FALSE)+ROW()-2))=Switch!$D$55,INDIRECT(\"a\" & (VLOOKUP(Switch!$D$55,$F$2:$G$44,2,FALSE)+ROW()-2)),\"\")","v":{"$error":"#N/A"}},{"$f":"IF(INDIRECT(\"c\" & (VLOOKUP(Switch!$D$56,$F$2:$G$44,2,FALSE)+ROW()-2))=Switch!$D$56,INDIRECT(\"a\" & (VLOOKUP(Switch!$D$56,$F$2:$G$44,2,FALSE)+ROW()-2)),\"\")","v":{"$error":"#N/A"}},{"$f":"IF(INDIRECT(\"c\" & (VLOOKUP(Switch!$D$57,$F$2:$G$44,2,FALSE)+ROW()-2))=Switch!$D$57,INDIRECT(\"a\" & (VLOOKUP(Switch!$D$57,$F$2:$G$44,2,FALSE)+ROW()-2)),\"\")","v":{"$error":"#N/A"}},{"$f":"IF(INDIRECT(\"c\" & (VLOOKUP(Switch!$D$58,$F$2:$G$44,2,FALSE)+ROW()-2))=Switch!$D$58,INDIRECT(\"a\" & (VLOOKUP(Switch!$D$58,$F$2:$G$44,2,FALSE)+ROW()-2)),\"\")","v":{"$error":"#N/A"}},{"$f":"IF(INDIRECT(\"c\" & (VLOOKUP(Switch!$D$59,$F$2:$G$44,2,FALSE)+ROW()-2))=Switch!$D$59,INDIRECT(\"a\" & (VLOOKUP(Switch!$D$59,$F$2:$G$44,2,FALSE)+ROW()-2)),\"\")","v":{"$error":"#N/A"}},{"$f":"IF(INDIRECT(\"c\" & (VLOOKUP(Switch!$D$60,$F$2:$G$44,2,FALSE)+ROW()-2))=Switch!$D$60,INDIRECT(\"a\" & (VLOOKUP(Switch!$D$60,$F$2:$G$44,2,FALSE)+ROW()-2)),\"\")","v":{"$error":"#N/A"}},{"$f":"IF(INDIRECT(\"c\" & (VLOOKUP(Switch!$D$61,$F$2:$G$44,2,FALSE)+ROW()-2))=Switch!$D$61,INDIRECT(\"a\" & (VLOOKUP(Switch!$D$61,$F$2:$G$44,2,FALSE)+ROW()-2)),\"\")","v":{"$error":"#N/A"}},{"$f":"IF(INDIRECT(\"c\" & (VLOOKUP(Switch!$D$62,$F$2:$G$44,2,FALSE)+ROW()-2))=Switch!$D$62,INDIRECT(\"a\" & (VLOOKUP(Switch!$D$62,$F$2:$G$44,2,FALSE)+ROW()-2)),\"\")","v":{"$error":"#N/A"}},{"$f":"IF(INDIRECT(\"c\" & (VLOOKUP(Switch!$D$63,$F$2:$G$44,2,FALSE)+ROW()-2))=Switch!$D$63,INDIRECT(\"a\" & (VLOOKUP(Switch!$D$63,$F$2:$G$44,2,FALSE)+ROW()-2)),\"\")","v":{"$error":"#N/A"}},{"$f":"IF(INDIRECT(\"c\" & (VLOOKUP(Switch!$D$64,$F$2:$G$44,2,FALSE)+ROW()-2))=Switch!$D$64,INDIRECT(\"a\" & (VLOOKUP(Switch!$D$64,$F$2:$G$44,2,FALSE)+ROW()-2)),\"\")","v":{"$error":"#N/A"}},{"$f":"IF(INDIRECT(\"c\" & (VLOOKUP(Switch!$D$65,$F$2:$G$44,2,FALSE)+ROW()-2))=Switch!$D$65,INDIRECT(\"a\" & (VLOOKUP(Switch!$D$65,$F$2:$G$44,2,FALSE)+ROW()-2)),\"\")","v":{"$error":"#N/A"}},{"$f":"IF(INDIRECT(\"c\" & (VLOOKUP(Switch!$D$66,$F$2:$G$44,2,FALSE)+ROW()-2))=Switch!$D$66,INDIRECT(\"a\" & (VLOOKUP(Switch!$D$66,$F$2:$G$44,2,FALSE)+ROW()-2)),\"\")","v":{"$error":"#N/A"}}]
["Coronation Equity Fund P","CECB4","Coronation Management Company",{"$f":"ROW()","v":226},null,null,{"$f":"VLOOKUP(F226,$C$2:$D$637,2,FALSE)","v":{"$error":"#N/A"}},{"$f":"IF(INDIRECT(\"c\" & (VLOOKUP(Switch!$D$26,$F$2:$G$44,2,FALSE)+ROW()-2))=Switch!$D$26,INDIRECT(\"a\" & (VLOOKUP(Switch!$D$26,$F$2:$G$44,2,FALSE)+ROW()-2)),\"\")","v":{"$error":"#N/A"}},{"$f":"IF(INDIRECT(\"c\" & (VLOOKUP(Switch!$D$27,$F$2:$G$44,2,FALSE)+ROW()-2))=Switch!$D$27,INDIRECT(\"a\" & (VLOOKUP(Switch!$D$27,$F$2:$G$44,2,FALSE)+ROW()-2)),\"\")","v":{"$error":"#N/A"}},{"$f":"IF(INDIRECT(\"c\" & (VLOOKUP(Switch!$D$28,$F$2:$G$44,2,FALSE)+ROW()-2))=Switch!$D$28,INDIRECT(\"a\" & (VLOOKUP(Switch!$D$28,$F$2:$G$44,2,FALSE)+ROW()-2)),\"\")","v":{"$error":"#N/A"}},{"$f":"IF(INDIRECT(\"c\" & (VLOOKUP(Switch!$D$29,$F$2:$G$44,2,FALSE)+ROW()-2))=Switch!$D$29,INDIRECT(\"a\" & (VLOOKUP(Switch!$D$29,$F$2:$G$44,2,FALSE)+ROW()-2)),\"\")","v":{"$error":"#N/A"}},{"$f":"IF(INDIRECT(\"c\" & (VLOOKUP(Switch!$D$30,$F$2:$G$44,2,FALSE)+ROW()-2))=Switch!$D$30,INDIRECT(\"a\" & (VLOOKUP(Switch!$D$30,$F$2:$G$44,2,FALSE)+ROW()-2)),\"\")","v":{"$error":"#N/A"}},{"$f":"IF(INDIRECT(\"c\" & (VLOOKUP(Switch!$D$31,$F$2:$G$44,2,FALSE)+ROW()-2))=Switch!$D$31,INDIRECT(\"a\" & (VLOOKUP(Switch!$D$31,$F$2:$G$44,2,FALSE)+ROW()-2)),\"\")","v":{"$error":"#N/A"}},{"$f":"IF(INDIRECT(\"c\" & (VLOOKUP(Switch!$D$32,$F$2:$G$44,2,FALSE)+ROW()-2))=Switch!$D$32,INDIRECT(\"a\" & (VLOOKUP(Switch!$D$32,$F$2:$G$44,2,FALSE)+ROW()-2)),\"\")","v":{"$error":"#N/A"}},{"$f":"IF(INDIRECT(\"c\" & (VLOOKUP(Switch!$D$33,$F$2:$G$44,2,FALSE)+ROW()-2))=Switch!$D$33,INDIRECT(\"a\" & (VLOOKUP(Switch!$D$33,$F$2:$G$44,2,FALSE)+ROW()-2)),\"\")","v":{"$error":"#N/A"}},{"$f":"IF(INDIRECT(\"c\" & (VLOOKUP(Switch!$D$34,$F$2:$G$44,2,FALSE)+ROW()-2))=Switch!$D$34,INDIRECT(\"a\" & (VLOOKUP(Switch!$D$34,$F$2:$G$44,2,FALSE)+ROW()-2)),\"\")","v":{"$error":"#N/A"}},{"$f":"IF(INDIRECT(\"c\" & (VLOOKUP(Switch!$D$35,$F$2:$G$44,2,FALSE)+ROW()-2))=Switch!$D$35,INDIRECT(\"a\" & (VLOOKUP(Switch!$D$35,$F$2:$G$44,2,FALSE)+ROW()-2)),\"\")","v":{"$error":"#N/A"}},{"$f":"IF(INDIRECT(\"c\" & (VLOOKUP(Switch!$D$36,$F$2:$G$44,2,FALSE)+ROW()-2))=Switch!$D$36,INDIRECT(\"a\" & (VLOOKUP(Switch!$D$36,$F$2:$G$44,2,FALSE)+ROW()-2)),\"\")","v":{"$error":"#N/A"}},{"$f":"IF(INDIRECT(\"c\" & (VLOOKUP(Switch!$D$37,$F$2:$G$44,2,FALSE)+ROW()-2))=Switch!$D$37,INDIRECT(\"a\" & (VLOOKUP(Switch!$D$37,$F$2:$G$44,2,FALSE)+ROW()-2)),\"\")","v":{"$error":"#N/A"}},{"$f":"IF(INDIRECT(\"c\" & (VLOOKUP(Switch!$D$38,$F$2:$G$44,2,FALSE)+ROW()-2))=Switch!$D$38,INDIRECT(\"a\" & (VLOOKUP(Switch!$D$38,$F$2:$G$44,2,FALSE)+ROW()-2)),\"\")","v":{"$error":"#N/A"}},{"$f":"IF(INDIRECT(\"c\" & (VLOOKUP(Switch!$D$39,$F$2:$G$44,2,FALSE)+ROW()-2))=Switch!$D$39,INDIRECT(\"a\" & (VLOOKUP(Switch!$D$39,$F$2:$G$44,2,FALSE)+ROW()-2)),\"\")","v":{"$error":"#N/A"}},{"$f":"IF(INDIRECT(\"c\" & (VLOOKUP(Switch!$D$40,$F$2:$G$44,2,FALSE)+ROW()-2))=Switch!$D$40,INDIRECT(\"a\" & (VLOOKUP(Switch!$D$40,$F$2:$G$44,2,FALSE)+ROW()-2)),\"\")","v":{"$error":"#N/A"}},{"$f":"IF(INDIRECT(\"c\" & (VLOOKUP(Switch!$D$52,$F$2:$G$44,2,FALSE)+ROW()-2))=Switch!$D$52,INDIRECT(\"a\" & (VLOOKUP(Switch!$D$52,$F$2:$G$44,2,FALSE)+ROW()-2)),\"\")","v":{"$error":"#N/A"}},{"$f":"IF(INDIRECT(\"c\" & (VLOOKUP(Switch!$D$53,$F$2:$G$44,2,FALSE)+ROW()-2))=Switch!$D$53,INDIRECT(\"a\" & (VLOOKUP(Switch!$D$53,$F$2:$G$44,2,FALSE)+ROW()-2)),\"\")","v":{"$error":"#N/A"}},{"$f":"IF(INDIRECT(\"c\" & (VLOOKUP(Switch!$D$54,$F$2:$G$44,2,FALSE)+ROW()-2))=Switch!$D$54,INDIRECT(\"a\" & (VLOOKUP(Switch!$D$54,$F$2:$G$44,2,FALSE)+ROW()-2)),\"\")","v":{"$error":"#N/A"}},{"$f":"IF(INDIRECT(\"c\" & (VLOOKUP(Switch!$D$55,$F$2:$G$44,2,FALSE)+ROW()-2))=Switch!$D$55,INDIRECT(\"a\" & (VLOOKUP(Switch!$D$55,$F$2:$G$44,2,FALSE)+ROW()-2)),\"\")","v":{"$error":"#N/A"}},{"$f":"IF(INDIRECT(\"c\" & (VLOOKUP(Switch!$D$56,$F$2:$G$44,2,FALSE)+ROW()-2))=Switch!$D$56,INDIRECT(\"a\" & (VLOOKUP(Switch!$D$56,$F$2:$G$44,2,FALSE)+ROW()-2)),\"\")","v":{"$error":"#N/A"}},{"$f":"IF(INDIRECT(\"c\" & (VLOOKUP(Switch!$D$57,$F$2:$G$44,2,FALSE)+ROW()-2))=Switch!$D$57,INDIRECT(\"a\" & (VLOOKUP(Switch!$D$57,$F$2:$G$44,2,FALSE)+ROW()-2)),\"\")","v":{"$error":"#N/A"}},{"$f":"IF(INDIRECT(\"c\" & (VLOOKUP(Switch!$D$58,$F$2:$G$44,2,FALSE)+ROW()-2))=Switch!$D$58,INDIRECT(\"a\" & (VLOOKUP(Switch!$D$58,$F$2:$G$44,2,FALSE)+ROW()-2)),\"\")","v":{"$error":"#N/A"}},{"$f":"IF(INDIRECT(\"c\" & (VLOOKUP(Switch!$D$59,$F$2:$G$44,2,FALSE)+ROW()-2))=Switch!$D$59,INDIRECT(\"a\" & (VLOOKUP(Switch!$D$59,$F$2:$G$44,2,FALSE)+ROW()-2)),\"\")","v":{"$error":"#N/A"}},{"$f":"IF(INDIRECT(\"c\" & (VLOOKUP(Switch!$D$60,$F$2:$G$44,2,FALSE)+ROW()-2))=Switch!$D$60,INDIRECT(\"a\" & (VLOOKUP(Switch!$D$60,$F$2:$G$44,2,FALSE)+ROW()-2)),\"\")","v":{"$error":"#N/A"}},{"$f":"IF(INDIRECT(\"c\" & (VLOOKUP(Switch!$D$61,$F$2:$G$44,2,FALSE)+ROW()-2))=Switch!$D$61,INDIRECT(\"a\" & (VLOOKUP(Switch!$D$61,$F$2:$G$44,2,FALSE)+ROW()-2)),\"\")","v":{"$error":"#N/A"}},{"$f":"IF(INDIRECT(\"c\" & (VLOOKUP(Switch!$D$62,$F$2:$G$44,2,FALSE)+ROW()-2))=Switch!$D$62,INDIRECT(\"a\" & (VLOOKUP(Switch!$D$62,$F$2:$G$44,2,FALSE)+ROW()-2)),\"\")","v":{"$error":"#N/A"}},{"$f":"IF(INDIRECT(\"c\" & (VLOOKUP(Switch!$D$63,$F$2:$G$44,2,FALSE)+ROW()-2))=Switch!$D$63,INDIRECT(\"a\" & (VLOOKUP(Switch!$D$63,$F$2:$G$44,2,FALSE)+ROW()-2)),\"\")","v":{"$error":"#N/A"}},{"$f":"IF(INDIRECT(\"c\" & (VLOOKUP(Switch!$D$64,$F$2:$G$44,2,FALSE)+ROW()-2))=Switch!$D$64,INDIRECT(\"a\" & (VLOOKUP(Switch!$D$64,$F$2:$G$44,2,FALSE)+ROW()-2)),\"\")","v":{"$error":"#N/A"}},{"$f":"IF(INDIRECT(\"c\" & (VLOOKUP(Switch!$D$65,$F$2:$G$44,2,FALSE)+ROW()-2))=Switch!$D$65,INDIRECT(\"a\" & (VLOOKUP(Switch!$D$65,$F$2:$G$44,2,FALSE)+ROW()-2)),\"\")","v":{"$error":"#N/A"}},{"$f":"IF(INDIRECT(\"c\" & (VLOOKUP(Switch!$D$66,$F$2:$G$44,2,FALSE)+ROW()-2))=Switch!$D$66,INDIRECT(\"a\" & (VLOOKUP(Switch!$D$66,$F$2:$G$44,2,FALSE)+ROW()-2)),\"\")","v":{"$error":"#N/A"}}]
["Coronation Financial Fund P","CFFCP","Coronation Management Company",{"$f":"ROW()","v":227},null,null,{"$f":"VLOOKUP(F227,$C$2:$D$637,2,FALSE)","v":{"$error":"#N/A"}},{"$f":"IF(INDIRECT(\"c\" & (VLOOKUP(Switch!$D$26,$F$2:$G$44,2,FALSE)+ROW()-2))=Switch!$D$26,INDIRECT(\"a\" & (VLOOKUP(Switch!$D$26,$F$2:$G$44,2,FALSE)+ROW()-2)),\"\")","v":{"$error":"#N/A"}},{"$f":"IF(INDIRECT(\"c\" & (VLOOKUP(Switch!$D$27,$F$2:$G$44,2,FALSE)+ROW()-2))=Switch!$D$27,INDIRECT(\"a\" & (VLOOKUP(Switch!$D$27,$F$2:$G$44,2,FALSE)+ROW()-2)),\"\")","v":{"$error":"#N/A"}},{"$f":"IF(INDIRECT(\"c\" & (VLOOKUP(Switch!$D$28,$F$2:$G$44,2,FALSE)+ROW()-2))=Switch!$D$28,INDIRECT(\"a\" & (VLOOKUP(Switch!$D$28,$F$2:$G$44,2,FALSE)+ROW()-2)),\"\")","v":{"$error":"#N/A"}},{"$f":"IF(INDIRECT(\"c\" & (VLOOKUP(Switch!$D$29,$F$2:$G$44,2,FALSE)+ROW()-2))=Switch!$D$29,INDIRECT(\"a\" & (VLOOKUP(Switch!$D$29,$F$2:$G$44,2,FALSE)+ROW()-2)),\"\")","v":{"$error":"#N/A"}},{"$f":"IF(INDIRECT(\"c\" & (VLOOKUP(Switch!$D$30,$F$2:$G$44,2,FALSE)+ROW()-2))=Switch!$D$30,INDIRECT(\"a\" & (VLOOKUP(Switch!$D$30,$F$2:$G$44,2,FALSE)+ROW()-2)),\"\")","v":{"$error":"#N/A"}},{"$f":"IF(INDIRECT(\"c\" & (VLOOKUP(Switch!$D$31,$F$2:$G$44,2,FALSE)+ROW()-2))=Switch!$D$31,INDIRECT(\"a\" & (VLOOKUP(Switch!$D$31,$F$2:$G$44,2,FALSE)+ROW()-2)),\"\")","v":{"$error":"#N/A"}},{"$f":"IF(INDIRECT(\"c\" & (VLOOKUP(Switch!$D$32,$F$2:$G$44,2,FALSE)+ROW()-2))=Switch!$D$32,INDIRECT(\"a\" & (VLOOKUP(Switch!$D$32,$F$2:$G$44,2,FALSE)+ROW()-2)),\"\")","v":{"$error":"#N/A"}},{"$f":"IF(INDIRECT(\"c\" & (VLOOKUP(Switch!$D$33,$F$2:$G$44,2,FALSE)+ROW()-2))=Switch!$D$33,INDIRECT(\"a\" & (VLOOKUP(Switch!$D$33,$F$2:$G$44,2,FALSE)+ROW()-2)),\"\")","v":{"$error":"#N/A"}},{"$f":"IF(INDIRECT(\"c\" & (VLOOKUP(Switch!$D$34,$F$2:$G$44,2,FALSE)+ROW()-2))=Switch!$D$34,INDIRECT(\"a\" & (VLOOKUP(Switch!$D$34,$F$2:$G$44,2,FALSE)+ROW()-2)),\"\")","v":{"$error":"#N/A"}},{"$f":"IF(INDIRECT(\"c\" & (VLOOKUP(Switch!$D$35,$F$2:$G$44,2,FALSE)+ROW()-2))=Switch!$D$35,INDIRECT(\"a\" & (VLOOKUP(Switch!$D$35,$F$2:$G$44,2,FALSE)+ROW()-2)),\"\")","v":{"$error":"#N/A"}},{"$f":"IF(INDIRECT(\"c\" & (VLOOKUP(Switch!$D$36,$F$2:$G$44,2,FALSE)+ROW()-2))=Switch!$D$36,INDIRECT(\"a\" & (VLOOKUP(Switch!$D$36,$F$2:$G$44,2,FALSE)+ROW()-2)),\"\")","v":{"$error":"#N/A"}},{"$f":"IF(INDIRECT(\"c\" & (VLOOKUP(Switch!$D$37,$F$2:$G$44,2,FALSE)+ROW()-2))=Switch!$D$37,INDIRECT(\"a\" & (VLOOKUP(Switch!$D$37,$F$2:$G$44,2,FALSE)+ROW()-2)),\"\")","v":{"$error":"#N/A"}},{"$f":"IF(INDIRECT(\"c\" & (VLOOKUP(Switch!$D$38,$F$2:$G$44,2,FALSE)+ROW()-2))=Switch!$D$38,INDIRECT(\"a\" & (VLOOKUP(Switch!$D$38,$F$2:$G$44,2,FALSE)+ROW()-2)),\"\")","v":{"$error":"#N/A"}},{"$f":"IF(INDIRECT(\"c\" & (VLOOKUP(Switch!$D$39,$F$2:$G$44,2,FALSE)+ROW()-2))=Switch!$D$39,INDIRECT(\"a\" & (VLOOKUP(Switch!$D$39,$F$2:$G$44,2,FALSE)+ROW()-2)),\"\")","v":{"$error":"#N/A"}},{"$f":"IF(INDIRECT(\"c\" & (VLOOKUP(Switch!$D$40,$F$2:$G$44,2,FALSE)+ROW()-2))=Switch!$D$40,INDIRECT(\"a\" & (VLOOKUP(Switch!$D$40,$F$2:$G$44,2,FALSE)+ROW()-2)),\"\")","v":{"$error":"#N/A"}},{"$f":"IF(INDIRECT(\"c\" & (VLOOKUP(Switch!$D$52,$F$2:$G$44,2,FALSE)+ROW()-2))=Switch!$D$52,INDIRECT(\"a\" & (VLOOKUP(Switch!$D$52,$F$2:$G$44,2,FALSE)+ROW()-2)),\"\")","v":{"$error":"#N/A"}},{"$f":"IF(INDIRECT(\"c\" & (VLOOKUP(Switch!$D$53,$F$2:$G$44,2,FALSE)+ROW()-2))=Switch!$D$53,INDIRECT(\"a\" & (VLOOKUP(Switch!$D$53,$F$2:$G$44,2,FALSE)+ROW()-2)),\"\")","v":{"$error":"#N/A"}},{"$f":"IF(INDIRECT(\"c\" & (VLOOKUP(Switch!$D$54,$F$2:$G$44,2,FALSE)+ROW()-2))=Switch!$D$54,INDIRECT(\"a\" & (VLOOKUP(Switch!$D$54,$F$2:$G$44,2,FALSE)+ROW()-2)),\"\")","v":{"$error":"#N/A"}},{"$f":"IF(INDIRECT(\"c\" & (VLOOKUP(Switch!$D$55,$F$2:$G$44,2,FALSE)+ROW()-2))=Switch!$D$55,INDIRECT(\"a\" & (VLOOKUP(Switch!$D$55,$F$2:$G$44,2,FALSE)+ROW()-2)),\"\")","v":{"$error":"#N/A"}},{"$f":"IF(INDIRECT(\"c\" & (VLOOKUP(Switch!$D$56,$F$2:$G$44,2,FALSE)+ROW()-2))=Switch!$D$56,INDIRECT(\"a\" & (VLOOKUP(Switch!$D$56,$F$2:$G$44,2,FALSE)+ROW()-2)),\"\")","v":{"$error":"#N/A"}},{"$f":"IF(INDIRECT(\"c\" & (VLOOKUP(Switch!$D$57,$F$2:$G$44,2,FALSE)+ROW()-2))=Switch!$D$57,INDIRECT(\"a\" & (VLOOKUP(Switch!$D$57,$F$2:$G$44,2,FALSE)+ROW()-2)),\"\")","v":{"$error":"#N/A"}},{"$f":"IF(INDIRECT(\"c\" & (VLOOKUP(Switch!$D$58,$F$2:$G$44,2,FALSE)+ROW()-2))=Switch!$D$58,INDIRECT(\"a\" & (VLOOKUP(Switch!$D$58,$F$2:$G$44,2,FALSE)+ROW()-2)),\"\")","v":{"$error":"#N/A"}},{"$f":"IF(INDIRECT(\"c\" & (VLOOKUP(Switch!$D$59,$F$2:$G$44,2,FALSE)+ROW()-2))=Switch!$D$59,INDIRECT(\"a\" & (VLOOKUP(Switch!$D$59,$F$2:$G$44,2,FALSE)+ROW()-2)),\"\")","v":{"$error":"#N/A"}},{"$f":"IF(INDIRECT(\"c\" & (VLOOKUP(Switch!$D$60,$F$2:$G$44,2,FALSE)+ROW()-2))=Switch!$D$60,INDIRECT(\"a\" & (VLOOKUP(Switch!$D$60,$F$2:$G$44,2,FALSE)+ROW()-2)),\"\")","v":{"$error":"#N/A"}},{"$f":"IF(INDIRECT(\"c\" & (VLOOKUP(Switch!$D$61,$F$2:$G$44,2,FALSE)+ROW()-2))=Switch!$D$61,INDIRECT(\"a\" & (VLOOKUP(Switch!$D$61,$F$2:$G$44,2,FALSE)+ROW()-2)),\"\")","v":{"$error":"#N/A"}},{"$f":"IF(INDIRECT(\"c\" & (VLOOKUP(Switch!$D$62,$F$2:$G$44,2,FALSE)+ROW()-2))=Switch!$D$62,INDIRECT(\"a\" & (VLOOKUP(Switch!$D$62,$F$2:$G$44,2,FALSE)+ROW()-2)),\"\")","v":{"$error":"#N/A"}},{"$f":"IF(INDIRECT(\"c\" & (VLOOKUP(Switch!$D$63,$F$2:$G$44,2,FALSE)+ROW()-2))=Switch!$D$63,INDIRECT(\"a\" & (VLOOKUP(Switch!$D$63,$F$2:$G$44,2,FALSE)+ROW()-2)),\"\")","v":{"$error":"#N/A"}},{"$f":"IF(INDIRECT(\"c\" & (VLOOKUP(Switch!$D$64,$F$2:$G$44,2,FALSE)+ROW()-2))=Switch!$D$64,INDIRECT(\"a\" & (VLOOKUP(Switch!$D$64,$F$2:$G$44,2,FALSE)+ROW()-2)),\"\")","v":{"$error":"#N/A"}},{"$f":"IF(INDIRECT(\"c\" & (VLOOKUP(Switch!$D$65,$F$2:$G$44,2,FALSE)+ROW()-2))=Switch!$D$65,INDIRECT(\"a\" & (VLOOKUP(Switch!$D$65,$F$2:$G$44,2,FALSE)+ROW()-2)),\"\")","v":{"$error":"#N/A"}},{"$f":"IF(INDIRECT(\"c\" & (VLOOKUP(Switch!$D$66,$F$2:$G$44,2,FALSE)+ROW()-2))=Switch!$D$66,INDIRECT(\"a\" & (VLOOKUP(Switch!$D$66,$F$2:$G$44,2,FALSE)+ROW()-2)),\"\")","v":{"$error":"#N/A"}}]
["Coronation Global Capital Plus (ZAR) Feeder Fund P","CGCB4","Coronation Management Company",{"$f":"ROW()","v":228},null,null,{"$f":"VLOOKUP(F228,$C$2:$D$637,2,FALSE)","v":{"$error":"#N/A"}},{"$f":"IF(INDIRECT(\"c\" & (VLOOKUP(Switch!$D$26,$F$2:$G$44,2,FALSE)+ROW()-2))=Switch!$D$26,INDIRECT(\"a\" & (VLOOKUP(Switch!$D$26,$F$2:$G$44,2,FALSE)+ROW()-2)),\"\")","v":{"$error":"#N/A"}},{"$f":"IF(INDIRECT(\"c\" & (VLOOKUP(Switch!$D$27,$F$2:$G$44,2,FALSE)+ROW()-2))=Switch!$D$27,INDIRECT(\"a\" & (VLOOKUP(Switch!$D$27,$F$2:$G$44,2,FALSE)+ROW()-2)),\"\")","v":{"$error":"#N/A"}},{"$f":"IF(INDIRECT(\"c\" & (VLOOKUP(Switch!$D$28,$F$2:$G$44,2,FALSE)+ROW()-2))=Switch!$D$28,INDIRECT(\"a\" & (VLOOKUP(Switch!$D$28,$F$2:$G$44,2,FALSE)+ROW()-2)),\"\")","v":{"$error":"#N/A"}},{"$f":"IF(INDIRECT(\"c\" & (VLOOKUP(Switch!$D$29,$F$2:$G$44,2,FALSE)+ROW()-2))=Switch!$D$29,INDIRECT(\"a\" & (VLOOKUP(Switch!$D$29,$F$2:$G$44,2,FALSE)+ROW()-2)),\"\")","v":{"$error":"#N/A"}},{"$f":"IF(INDIRECT(\"c\" & (VLOOKUP(Switch!$D$30,$F$2:$G$44,2,FALSE)+ROW()-2))=Switch!$D$30,INDIRECT(\"a\" & (VLOOKUP(Switch!$D$30,$F$2:$G$44,2,FALSE)+ROW()-2)),\"\")","v":{"$error":"#N/A"}},{"$f":"IF(INDIRECT(\"c\" & (VLOOKUP(Switch!$D$31,$F$2:$G$44,2,FALSE)+ROW()-2))=Switch!$D$31,INDIRECT(\"a\" & (VLOOKUP(Switch!$D$31,$F$2:$G$44,2,FALSE)+ROW()-2)),\"\")","v":{"$error":"#N/A"}},{"$f":"IF(INDIRECT(\"c\" & (VLOOKUP(Switch!$D$32,$F$2:$G$44,2,FALSE)+ROW()-2))=Switch!$D$32,INDIRECT(\"a\" & (VLOOKUP(Switch!$D$32,$F$2:$G$44,2,FALSE)+ROW()-2)),\"\")","v":{"$error":"#N/A"}},{"$f":"IF(INDIRECT(\"c\" & (VLOOKUP(Switch!$D$33,$F$2:$G$44,2,FALSE)+ROW()-2))=Switch!$D$33,INDIRECT(\"a\" & (VLOOKUP(Switch!$D$33,$F$2:$G$44,2,FALSE)+ROW()-2)),\"\")","v":{"$error":"#N/A"}},{"$f":"IF(INDIRECT(\"c\" & (VLOOKUP(Switch!$D$34,$F$2:$G$44,2,FALSE)+ROW()-2))=Switch!$D$34,INDIRECT(\"a\" & (VLOOKUP(Switch!$D$34,$F$2:$G$44,2,FALSE)+ROW()-2)),\"\")","v":{"$error":"#N/A"}},{"$f":"IF(INDIRECT(\"c\" & (VLOOKUP(Switch!$D$35,$F$2:$G$44,2,FALSE)+ROW()-2))=Switch!$D$35,INDIRECT(\"a\" & (VLOOKUP(Switch!$D$35,$F$2:$G$44,2,FALSE)+ROW()-2)),\"\")","v":{"$error":"#N/A"}},{"$f":"IF(INDIRECT(\"c\" & (VLOOKUP(Switch!$D$36,$F$2:$G$44,2,FALSE)+ROW()-2))=Switch!$D$36,INDIRECT(\"a\" & (VLOOKUP(Switch!$D$36,$F$2:$G$44,2,FALSE)+ROW()-2)),\"\")","v":{"$error":"#N/A"}},{"$f":"IF(INDIRECT(\"c\" & (VLOOKUP(Switch!$D$37,$F$2:$G$44,2,FALSE)+ROW()-2))=Switch!$D$37,INDIRECT(\"a\" & (VLOOKUP(Switch!$D$37,$F$2:$G$44,2,FALSE)+ROW()-2)),\"\")","v":{"$error":"#N/A"}},{"$f":"IF(INDIRECT(\"c\" & (VLOOKUP(Switch!$D$38,$F$2:$G$44,2,FALSE)+ROW()-2))=Switch!$D$38,INDIRECT(\"a\" & (VLOOKUP(Switch!$D$38,$F$2:$G$44,2,FALSE)+ROW()-2)),\"\")","v":{"$error":"#N/A"}},{"$f":"IF(INDIRECT(\"c\" & (VLOOKUP(Switch!$D$39,$F$2:$G$44,2,FALSE)+ROW()-2))=Switch!$D$39,INDIRECT(\"a\" & (VLOOKUP(Switch!$D$39,$F$2:$G$44,2,FALSE)+ROW()-2)),\"\")","v":{"$error":"#N/A"}},{"$f":"IF(INDIRECT(\"c\" & (VLOOKUP(Switch!$D$40,$F$2:$G$44,2,FALSE)+ROW()-2))=Switch!$D$40,INDIRECT(\"a\" & (VLOOKUP(Switch!$D$40,$F$2:$G$44,2,FALSE)+ROW()-2)),\"\")","v":{"$error":"#N/A"}},{"$f":"IF(INDIRECT(\"c\" & (VLOOKUP(Switch!$D$52,$F$2:$G$44,2,FALSE)+ROW()-2))=Switch!$D$52,INDIRECT(\"a\" & (VLOOKUP(Switch!$D$52,$F$2:$G$44,2,FALSE)+ROW()-2)),\"\")","v":{"$error":"#N/A"}},{"$f":"IF(INDIRECT(\"c\" & (VLOOKUP(Switch!$D$53,$F$2:$G$44,2,FALSE)+ROW()-2))=Switch!$D$53,INDIRECT(\"a\" & (VLOOKUP(Switch!$D$53,$F$2:$G$44,2,FALSE)+ROW()-2)),\"\")","v":{"$error":"#N/A"}},{"$f":"IF(INDIRECT(\"c\" & (VLOOKUP(Switch!$D$54,$F$2:$G$44,2,FALSE)+ROW()-2))=Switch!$D$54,INDIRECT(\"a\" & (VLOOKUP(Switch!$D$54,$F$2:$G$44,2,FALSE)+ROW()-2)),\"\")","v":{"$error":"#N/A"}},{"$f":"IF(INDIRECT(\"c\" & (VLOOKUP(Switch!$D$55,$F$2:$G$44,2,FALSE)+ROW()-2))=Switch!$D$55,INDIRECT(\"a\" & (VLOOKUP(Switch!$D$55,$F$2:$G$44,2,FALSE)+ROW()-2)),\"\")","v":{"$error":"#N/A"}},{"$f":"IF(INDIRECT(\"c\" & (VLOOKUP(Switch!$D$56,$F$2:$G$44,2,FALSE)+ROW()-2))=Switch!$D$56,INDIRECT(\"a\" & (VLOOKUP(Switch!$D$56,$F$2:$G$44,2,FALSE)+ROW()-2)),\"\")","v":{"$error":"#N/A"}},{"$f":"IF(INDIRECT(\"c\" & (VLOOKUP(Switch!$D$57,$F$2:$G$44,2,FALSE)+ROW()-2))=Switch!$D$57,INDIRECT(\"a\" & (VLOOKUP(Switch!$D$57,$F$2:$G$44,2,FALSE)+ROW()-2)),\"\")","v":{"$error":"#N/A"}},{"$f":"IF(INDIRECT(\"c\" & (VLOOKUP(Switch!$D$58,$F$2:$G$44,2,FALSE)+ROW()-2))=Switch!$D$58,INDIRECT(\"a\" & (VLOOKUP(Switch!$D$58,$F$2:$G$44,2,FALSE)+ROW()-2)),\"\")","v":{"$error":"#N/A"}},{"$f":"IF(INDIRECT(\"c\" & (VLOOKUP(Switch!$D$59,$F$2:$G$44,2,FALSE)+ROW()-2))=Switch!$D$59,INDIRECT(\"a\" & (VLOOKUP(Switch!$D$59,$F$2:$G$44,2,FALSE)+ROW()-2)),\"\")","v":{"$error":"#N/A"}},{"$f":"IF(INDIRECT(\"c\" & (VLOOKUP(Switch!$D$60,$F$2:$G$44,2,FALSE)+ROW()-2))=Switch!$D$60,INDIRECT(\"a\" & (VLOOKUP(Switch!$D$60,$F$2:$G$44,2,FALSE)+ROW()-2)),\"\")","v":{"$error":"#N/A"}},{"$f":"IF(INDIRECT(\"c\" & (VLOOKUP(Switch!$D$61,$F$2:$G$44,2,FALSE)+ROW()-2))=Switch!$D$61,INDIRECT(\"a\" & (VLOOKUP(Switch!$D$61,$F$2:$G$44,2,FALSE)+ROW()-2)),\"\")","v":{"$error":"#N/A"}},{"$f":"IF(INDIRECT(\"c\" & (VLOOKUP(Switch!$D$62,$F$2:$G$44,2,FALSE)+ROW()-2))=Switch!$D$62,INDIRECT(\"a\" & (VLOOKUP(Switch!$D$62,$F$2:$G$44,2,FALSE)+ROW()-2)),\"\")","v":{"$error":"#N/A"}},{"$f":"IF(INDIRECT(\"c\" & (VLOOKUP(Switch!$D$63,$F$2:$G$44,2,FALSE)+ROW()-2))=Switch!$D$63,INDIRECT(\"a\" & (VLOOKUP(Switch!$D$63,$F$2:$G$44,2,FALSE)+ROW()-2)),\"\")","v":{"$error":"#N/A"}},{"$f":"IF(INDIRECT(\"c\" & (VLOOKUP(Switch!$D$64,$F$2:$G$44,2,FALSE)+ROW()-2))=Switch!$D$64,INDIRECT(\"a\" & (VLOOKUP(Switch!$D$64,$F$2:$G$44,2,FALSE)+ROW()-2)),\"\")","v":{"$error":"#N/A"}},{"$f":"IF(INDIRECT(\"c\" & (VLOOKUP(Switch!$D$65,$F$2:$G$44,2,FALSE)+ROW()-2))=Switch!$D$65,INDIRECT(\"a\" & (VLOOKUP(Switch!$D$65,$F$2:$G$44,2,FALSE)+ROW()-2)),\"\")","v":{"$error":"#N/A"}},{"$f":"IF(INDIRECT(\"c\" & (VLOOKUP(Switch!$D$66,$F$2:$G$44,2,FALSE)+ROW()-2))=Switch!$D$66,INDIRECT(\"a\" & (VLOOKUP(Switch!$D$66,$F$2:$G$44,2,FALSE)+ROW()-2)),\"\")","v":{"$error":"#N/A"}}]
["Coronation Global Emerging Markets Flexible [ZAR] Fund P","CGEMB4","Coronation Management Company",{"$f":"ROW()","v":229},null,null,{"$f":"VLOOKUP(F229,$C$2:$D$637,2,FALSE)","v":{"$error":"#N/A"}},{"$f":"IF(INDIRECT(\"c\" & (VLOOKUP(Switch!$D$26,$F$2:$G$44,2,FALSE)+ROW()-2))=Switch!$D$26,INDIRECT(\"a\" & (VLOOKUP(Switch!$D$26,$F$2:$G$44,2,FALSE)+ROW()-2)),\"\")","v":{"$error":"#N/A"}},{"$f":"IF(INDIRECT(\"c\" & (VLOOKUP(Switch!$D$27,$F$2:$G$44,2,FALSE)+ROW()-2))=Switch!$D$27,INDIRECT(\"a\" & (VLOOKUP(Switch!$D$27,$F$2:$G$44,2,FALSE)+ROW()-2)),\"\")","v":{"$error":"#N/A"}},{"$f":"IF(INDIRECT(\"c\" & (VLOOKUP(Switch!$D$28,$F$2:$G$44,2,FALSE)+ROW()-2))=Switch!$D$28,INDIRECT(\"a\" & (VLOOKUP(Switch!$D$28,$F$2:$G$44,2,FALSE)+ROW()-2)),\"\")","v":{"$error":"#N/A"}},{"$f":"IF(INDIRECT(\"c\" & (VLOOKUP(Switch!$D$29,$F$2:$G$44,2,FALSE)+ROW()-2))=Switch!$D$29,INDIRECT(\"a\" & (VLOOKUP(Switch!$D$29,$F$2:$G$44,2,FALSE)+ROW()-2)),\"\")","v":{"$error":"#N/A"}},{"$f":"IF(INDIRECT(\"c\" & (VLOOKUP(Switch!$D$30,$F$2:$G$44,2,FALSE)+ROW()-2))=Switch!$D$30,INDIRECT(\"a\" & (VLOOKUP(Switch!$D$30,$F$2:$G$44,2,FALSE)+ROW()-2)),\"\")","v":{"$error":"#N/A"}},{"$f":"IF(INDIRECT(\"c\" & (VLOOKUP(Switch!$D$31,$F$2:$G$44,2,FALSE)+ROW()-2))=Switch!$D$31,INDIRECT(\"a\" & (VLOOKUP(Switch!$D$31,$F$2:$G$44,2,FALSE)+ROW()-2)),\"\")","v":{"$error":"#N/A"}},{"$f":"IF(INDIRECT(\"c\" & (VLOOKUP(Switch!$D$32,$F$2:$G$44,2,FALSE)+ROW()-2))=Switch!$D$32,INDIRECT(\"a\" & (VLOOKUP(Switch!$D$32,$F$2:$G$44,2,FALSE)+ROW()-2)),\"\")","v":{"$error":"#N/A"}},{"$f":"IF(INDIRECT(\"c\" & (VLOOKUP(Switch!$D$33,$F$2:$G$44,2,FALSE)+ROW()-2))=Switch!$D$33,INDIRECT(\"a\" & (VLOOKUP(Switch!$D$33,$F$2:$G$44,2,FALSE)+ROW()-2)),\"\")","v":{"$error":"#N/A"}},{"$f":"IF(INDIRECT(\"c\" & (VLOOKUP(Switch!$D$34,$F$2:$G$44,2,FALSE)+ROW()-2))=Switch!$D$34,INDIRECT(\"a\" & (VLOOKUP(Switch!$D$34,$F$2:$G$44,2,FALSE)+ROW()-2)),\"\")","v":{"$error":"#N/A"}},{"$f":"IF(INDIRECT(\"c\" & (VLOOKUP(Switch!$D$35,$F$2:$G$44,2,FALSE)+ROW()-2))=Switch!$D$35,INDIRECT(\"a\" & (VLOOKUP(Switch!$D$35,$F$2:$G$44,2,FALSE)+ROW()-2)),\"\")","v":{"$error":"#N/A"}},{"$f":"IF(INDIRECT(\"c\" & (VLOOKUP(Switch!$D$36,$F$2:$G$44,2,FALSE)+ROW()-2))=Switch!$D$36,INDIRECT(\"a\" & (VLOOKUP(Switch!$D$36,$F$2:$G$44,2,FALSE)+ROW()-2)),\"\")","v":{"$error":"#N/A"}},{"$f":"IF(INDIRECT(\"c\" & (VLOOKUP(Switch!$D$37,$F$2:$G$44,2,FALSE)+ROW()-2))=Switch!$D$37,INDIRECT(\"a\" & (VLOOKUP(Switch!$D$37,$F$2:$G$44,2,FALSE)+ROW()-2)),\"\")","v":{"$error":"#N/A"}},{"$f":"IF(INDIRECT(\"c\" & (VLOOKUP(Switch!$D$38,$F$2:$G$44,2,FALSE)+ROW()-2))=Switch!$D$38,INDIRECT(\"a\" & (VLOOKUP(Switch!$D$38,$F$2:$G$44,2,FALSE)+ROW()-2)),\"\")","v":{"$error":"#N/A"}},{"$f":"IF(INDIRECT(\"c\" & (VLOOKUP(Switch!$D$39,$F$2:$G$44,2,FALSE)+ROW()-2))=Switch!$D$39,INDIRECT(\"a\" & (VLOOKUP(Switch!$D$39,$F$2:$G$44,2,FALSE)+ROW()-2)),\"\")","v":{"$error":"#N/A"}},{"$f":"IF(INDIRECT(\"c\" & (VLOOKUP(Switch!$D$40,$F$2:$G$44,2,FALSE)+ROW()-2))=Switch!$D$40,INDIRECT(\"a\" & (VLOOKUP(Switch!$D$40,$F$2:$G$44,2,FALSE)+ROW()-2)),\"\")","v":{"$error":"#N/A"}},{"$f":"IF(INDIRECT(\"c\" & (VLOOKUP(Switch!$D$52,$F$2:$G$44,2,FALSE)+ROW()-2))=Switch!$D$52,INDIRECT(\"a\" & (VLOOKUP(Switch!$D$52,$F$2:$G$44,2,FALSE)+ROW()-2)),\"\")","v":{"$error":"#N/A"}},{"$f":"IF(INDIRECT(\"c\" & (VLOOKUP(Switch!$D$53,$F$2:$G$44,2,FALSE)+ROW()-2))=Switch!$D$53,INDIRECT(\"a\" & (VLOOKUP(Switch!$D$53,$F$2:$G$44,2,FALSE)+ROW()-2)),\"\")","v":{"$error":"#N/A"}},{"$f":"IF(INDIRECT(\"c\" & (VLOOKUP(Switch!$D$54,$F$2:$G$44,2,FALSE)+ROW()-2))=Switch!$D$54,INDIRECT(\"a\" & (VLOOKUP(Switch!$D$54,$F$2:$G$44,2,FALSE)+ROW()-2)),\"\")","v":{"$error":"#N/A"}},{"$f":"IF(INDIRECT(\"c\" & (VLOOKUP(Switch!$D$55,$F$2:$G$44,2,FALSE)+ROW()-2))=Switch!$D$55,INDIRECT(\"a\" & (VLOOKUP(Switch!$D$55,$F$2:$G$44,2,FALSE)+ROW()-2)),\"\")","v":{"$error":"#N/A"}},{"$f":"IF(INDIRECT(\"c\" & (VLOOKUP(Switch!$D$56,$F$2:$G$44,2,FALSE)+ROW()-2))=Switch!$D$56,INDIRECT(\"a\" & (VLOOKUP(Switch!$D$56,$F$2:$G$44,2,FALSE)+ROW()-2)),\"\")","v":{"$error":"#N/A"}},{"$f":"IF(INDIRECT(\"c\" & (VLOOKUP(Switch!$D$57,$F$2:$G$44,2,FALSE)+ROW()-2))=Switch!$D$57,INDIRECT(\"a\" & (VLOOKUP(Switch!$D$57,$F$2:$G$44,2,FALSE)+ROW()-2)),\"\")","v":{"$error":"#N/A"}},{"$f":"IF(INDIRECT(\"c\" & (VLOOKUP(Switch!$D$58,$F$2:$G$44,2,FALSE)+ROW()-2))=Switch!$D$58,INDIRECT(\"a\" & (VLOOKUP(Switch!$D$58,$F$2:$G$44,2,FALSE)+ROW()-2)),\"\")","v":{"$error":"#N/A"}},{"$f":"IF(INDIRECT(\"c\" & (VLOOKUP(Switch!$D$59,$F$2:$G$44,2,FALSE)+ROW()-2))=Switch!$D$59,INDIRECT(\"a\" & (VLOOKUP(Switch!$D$59,$F$2:$G$44,2,FALSE)+ROW()-2)),\"\")","v":{"$error":"#N/A"}},{"$f":"IF(INDIRECT(\"c\" & (VLOOKUP(Switch!$D$60,$F$2:$G$44,2,FALSE)+ROW()-2))=Switch!$D$60,INDIRECT(\"a\" & (VLOOKUP(Switch!$D$60,$F$2:$G$44,2,FALSE)+ROW()-2)),\"\")","v":{"$error":"#N/A"}},{"$f":"IF(INDIRECT(\"c\" & (VLOOKUP(Switch!$D$61,$F$2:$G$44,2,FALSE)+ROW()-2))=Switch!$D$61,INDIRECT(\"a\" & (VLOOKUP(Switch!$D$61,$F$2:$G$44,2,FALSE)+ROW()-2)),\"\")","v":{"$error":"#N/A"}},{"$f":"IF(INDIRECT(\"c\" & (VLOOKUP(Switch!$D$62,$F$2:$G$44,2,FALSE)+ROW()-2))=Switch!$D$62,INDIRECT(\"a\" & (VLOOKUP(Switch!$D$62,$F$2:$G$44,2,FALSE)+ROW()-2)),\"\")","v":{"$error":"#N/A"}},{"$f":"IF(INDIRECT(\"c\" & (VLOOKUP(Switch!$D$63,$F$2:$G$44,2,FALSE)+ROW()-2))=Switch!$D$63,INDIRECT(\"a\" & (VLOOKUP(Switch!$D$63,$F$2:$G$44,2,FALSE)+ROW()-2)),\"\")","v":{"$error":"#N/A"}},{"$f":"IF(INDIRECT(\"c\" & (VLOOKUP(Switch!$D$64,$F$2:$G$44,2,FALSE)+ROW()-2))=Switch!$D$64,INDIRECT(\"a\" & (VLOOKUP(Switch!$D$64,$F$2:$G$44,2,FALSE)+ROW()-2)),\"\")","v":{"$error":"#N/A"}},{"$f":"IF(INDIRECT(\"c\" & (VLOOKUP(Switch!$D$65,$F$2:$G$44,2,FALSE)+ROW()-2))=Switch!$D$65,INDIRECT(\"a\" & (VLOOKUP(Switch!$D$65,$F$2:$G$44,2,FALSE)+ROW()-2)),\"\")","v":{"$error":"#N/A"}},{"$f":"IF(INDIRECT(\"c\" & (VLOOKUP(Switch!$D$66,$F$2:$G$44,2,FALSE)+ROW()-2))=Switch!$D$66,INDIRECT(\"a\" & (VLOOKUP(Switch!$D$66,$F$2:$G$44,2,FALSE)+ROW()-2)),\"\")","v":{"$error":"#N/A"}}]
["Coronation Global Equity Select [ZAR] Feeder Fund P","CGEFP","Coronation Management Company",{"$f":"ROW()","v":230},null,null,{"$f":"VLOOKUP(F230,$C$2:$D$637,2,FALSE)","v":{"$error":"#N/A"}},{"$f":"IF(INDIRECT(\"c\" & (VLOOKUP(Switch!$D$26,$F$2:$G$44,2,FALSE)+ROW()-2))=Switch!$D$26,INDIRECT(\"a\" & (VLOOKUP(Switch!$D$26,$F$2:$G$44,2,FALSE)+ROW()-2)),\"\")","v":{"$error":"#N/A"}},{"$f":"IF(INDIRECT(\"c\" & (VLOOKUP(Switch!$D$27,$F$2:$G$44,2,FALSE)+ROW()-2))=Switch!$D$27,INDIRECT(\"a\" & (VLOOKUP(Switch!$D$27,$F$2:$G$44,2,FALSE)+ROW()-2)),\"\")","v":{"$error":"#N/A"}},{"$f":"IF(INDIRECT(\"c\" & (VLOOKUP(Switch!$D$28,$F$2:$G$44,2,FALSE)+ROW()-2))=Switch!$D$28,INDIRECT(\"a\" & (VLOOKUP(Switch!$D$28,$F$2:$G$44,2,FALSE)+ROW()-2)),\"\")","v":{"$error":"#N/A"}},{"$f":"IF(INDIRECT(\"c\" & (VLOOKUP(Switch!$D$29,$F$2:$G$44,2,FALSE)+ROW()-2))=Switch!$D$29,INDIRECT(\"a\" & (VLOOKUP(Switch!$D$29,$F$2:$G$44,2,FALSE)+ROW()-2)),\"\")","v":{"$error":"#N/A"}},{"$f":"IF(INDIRECT(\"c\" & (VLOOKUP(Switch!$D$30,$F$2:$G$44,2,FALSE)+ROW()-2))=Switch!$D$30,INDIRECT(\"a\" & (VLOOKUP(Switch!$D$30,$F$2:$G$44,2,FALSE)+ROW()-2)),\"\")","v":{"$error":"#N/A"}},{"$f":"IF(INDIRECT(\"c\" & (VLOOKUP(Switch!$D$31,$F$2:$G$44,2,FALSE)+ROW()-2))=Switch!$D$31,INDIRECT(\"a\" & (VLOOKUP(Switch!$D$31,$F$2:$G$44,2,FALSE)+ROW()-2)),\"\")","v":{"$error":"#N/A"}},{"$f":"IF(INDIRECT(\"c\" & (VLOOKUP(Switch!$D$32,$F$2:$G$44,2,FALSE)+ROW()-2))=Switch!$D$32,INDIRECT(\"a\" & (VLOOKUP(Switch!$D$32,$F$2:$G$44,2,FALSE)+ROW()-2)),\"\")","v":{"$error":"#N/A"}},{"$f":"IF(INDIRECT(\"c\" & (VLOOKUP(Switch!$D$33,$F$2:$G$44,2,FALSE)+ROW()-2))=Switch!$D$33,INDIRECT(\"a\" & (VLOOKUP(Switch!$D$33,$F$2:$G$44,2,FALSE)+ROW()-2)),\"\")","v":{"$error":"#N/A"}},{"$f":"IF(INDIRECT(\"c\" & (VLOOKUP(Switch!$D$34,$F$2:$G$44,2,FALSE)+ROW()-2))=Switch!$D$34,INDIRECT(\"a\" & (VLOOKUP(Switch!$D$34,$F$2:$G$44,2,FALSE)+ROW()-2)),\"\")","v":{"$error":"#N/A"}},{"$f":"IF(INDIRECT(\"c\" & (VLOOKUP(Switch!$D$35,$F$2:$G$44,2,FALSE)+ROW()-2))=Switch!$D$35,INDIRECT(\"a\" & (VLOOKUP(Switch!$D$35,$F$2:$G$44,2,FALSE)+ROW()-2)),\"\")","v":{"$error":"#N/A"}},{"$f":"IF(INDIRECT(\"c\" & (VLOOKUP(Switch!$D$36,$F$2:$G$44,2,FALSE)+ROW()-2))=Switch!$D$36,INDIRECT(\"a\" & (VLOOKUP(Switch!$D$36,$F$2:$G$44,2,FALSE)+ROW()-2)),\"\")","v":{"$error":"#N/A"}},{"$f":"IF(INDIRECT(\"c\" & (VLOOKUP(Switch!$D$37,$F$2:$G$44,2,FALSE)+ROW()-2))=Switch!$D$37,INDIRECT(\"a\" & (VLOOKUP(Switch!$D$37,$F$2:$G$44,2,FALSE)+ROW()-2)),\"\")","v":{"$error":"#N/A"}},{"$f":"IF(INDIRECT(\"c\" & (VLOOKUP(Switch!$D$38,$F$2:$G$44,2,FALSE)+ROW()-2))=Switch!$D$38,INDIRECT(\"a\" & (VLOOKUP(Switch!$D$38,$F$2:$G$44,2,FALSE)+ROW()-2)),\"\")","v":{"$error":"#N/A"}},{"$f":"IF(INDIRECT(\"c\" & (VLOOKUP(Switch!$D$39,$F$2:$G$44,2,FALSE)+ROW()-2))=Switch!$D$39,INDIRECT(\"a\" & (VLOOKUP(Switch!$D$39,$F$2:$G$44,2,FALSE)+ROW()-2)),\"\")","v":{"$error":"#N/A"}},{"$f":"IF(INDIRECT(\"c\" & (VLOOKUP(Switch!$D$40,$F$2:$G$44,2,FALSE)+ROW()-2))=Switch!$D$40,INDIRECT(\"a\" & (VLOOKUP(Switch!$D$40,$F$2:$G$44,2,FALSE)+ROW()-2)),\"\")","v":{"$error":"#N/A"}},{"$f":"IF(INDIRECT(\"c\" & (VLOOKUP(Switch!$D$52,$F$2:$G$44,2,FALSE)+ROW()-2))=Switch!$D$52,INDIRECT(\"a\" & (VLOOKUP(Switch!$D$52,$F$2:$G$44,2,FALSE)+ROW()-2)),\"\")","v":{"$error":"#N/A"}},{"$f":"IF(INDIRECT(\"c\" & (VLOOKUP(Switch!$D$53,$F$2:$G$44,2,FALSE)+ROW()-2))=Switch!$D$53,INDIRECT(\"a\" & (VLOOKUP(Switch!$D$53,$F$2:$G$44,2,FALSE)+ROW()-2)),\"\")","v":{"$error":"#N/A"}},{"$f":"IF(INDIRECT(\"c\" & (VLOOKUP(Switch!$D$54,$F$2:$G$44,2,FALSE)+ROW()-2))=Switch!$D$54,INDIRECT(\"a\" & (VLOOKUP(Switch!$D$54,$F$2:$G$44,2,FALSE)+ROW()-2)),\"\")","v":{"$error":"#N/A"}},{"$f":"IF(INDIRECT(\"c\" & (VLOOKUP(Switch!$D$55,$F$2:$G$44,2,FALSE)+ROW()-2))=Switch!$D$55,INDIRECT(\"a\" & (VLOOKUP(Switch!$D$55,$F$2:$G$44,2,FALSE)+ROW()-2)),\"\")","v":{"$error":"#N/A"}},{"$f":"IF(INDIRECT(\"c\" & (VLOOKUP(Switch!$D$56,$F$2:$G$44,2,FALSE)+ROW()-2))=Switch!$D$56,INDIRECT(\"a\" & (VLOOKUP(Switch!$D$56,$F$2:$G$44,2,FALSE)+ROW()-2)),\"\")","v":{"$error":"#N/A"}},{"$f":"IF(INDIRECT(\"c\" & (VLOOKUP(Switch!$D$57,$F$2:$G$44,2,FALSE)+ROW()-2))=Switch!$D$57,INDIRECT(\"a\" & (VLOOKUP(Switch!$D$57,$F$2:$G$44,2,FALSE)+ROW()-2)),\"\")","v":{"$error":"#N/A"}},{"$f":"IF(INDIRECT(\"c\" & (VLOOKUP(Switch!$D$58,$F$2:$G$44,2,FALSE)+ROW()-2))=Switch!$D$58,INDIRECT(\"a\" & (VLOOKUP(Switch!$D$58,$F$2:$G$44,2,FALSE)+ROW()-2)),\"\")","v":{"$error":"#N/A"}},{"$f":"IF(INDIRECT(\"c\" & (VLOOKUP(Switch!$D$59,$F$2:$G$44,2,FALSE)+ROW()-2))=Switch!$D$59,INDIRECT(\"a\" & (VLOOKUP(Switch!$D$59,$F$2:$G$44,2,FALSE)+ROW()-2)),\"\")","v":{"$error":"#N/A"}},{"$f":"IF(INDIRECT(\"c\" & (VLOOKUP(Switch!$D$60,$F$2:$G$44,2,FALSE)+ROW()-2))=Switch!$D$60,INDIRECT(\"a\" & (VLOOKUP(Switch!$D$60,$F$2:$G$44,2,FALSE)+ROW()-2)),\"\")","v":{"$error":"#N/A"}},{"$f":"IF(INDIRECT(\"c\" & (VLOOKUP(Switch!$D$61,$F$2:$G$44,2,FALSE)+ROW()-2))=Switch!$D$61,INDIRECT(\"a\" & (VLOOKUP(Switch!$D$61,$F$2:$G$44,2,FALSE)+ROW()-2)),\"\")","v":{"$error":"#N/A"}},{"$f":"IF(INDIRECT(\"c\" & (VLOOKUP(Switch!$D$62,$F$2:$G$44,2,FALSE)+ROW()-2))=Switch!$D$62,INDIRECT(\"a\" & (VLOOKUP(Switch!$D$62,$F$2:$G$44,2,FALSE)+ROW()-2)),\"\")","v":{"$error":"#N/A"}},{"$f":"IF(INDIRECT(\"c\" & (VLOOKUP(Switch!$D$63,$F$2:$G$44,2,FALSE)+ROW()-2))=Switch!$D$63,INDIRECT(\"a\" & (VLOOKUP(Switch!$D$63,$F$2:$G$44,2,FALSE)+ROW()-2)),\"\")","v":{"$error":"#N/A"}},{"$f":"IF(INDIRECT(\"c\" & (VLOOKUP(Switch!$D$64,$F$2:$G$44,2,FALSE)+ROW()-2))=Switch!$D$64,INDIRECT(\"a\" & (VLOOKUP(Switch!$D$64,$F$2:$G$44,2,FALSE)+ROW()-2)),\"\")","v":{"$error":"#N/A"}},{"$f":"IF(INDIRECT(\"c\" & (VLOOKUP(Switch!$D$65,$F$2:$G$44,2,FALSE)+ROW()-2))=Switch!$D$65,INDIRECT(\"a\" & (VLOOKUP(Switch!$D$65,$F$2:$G$44,2,FALSE)+ROW()-2)),\"\")","v":{"$error":"#N/A"}},{"$f":"IF(INDIRECT(\"c\" & (VLOOKUP(Switch!$D$66,$F$2:$G$44,2,FALSE)+ROW()-2))=Switch!$D$66,INDIRECT(\"a\" & (VLOOKUP(Switch!$D$66,$F$2:$G$44,2,FALSE)+ROW()-2)),\"\")","v":{"$error":"#N/A"}}]
["Coronation Global Managed (ZAR) Feeder Fund P","CGMB4","Coronation Management Company",{"$f":"ROW()","v":231},null,null,{"$f":"VLOOKUP(F231,$C$2:$D$637,2,FALSE)","v":{"$error":"#N/A"}},{"$f":"IF(INDIRECT(\"c\" & (VLOOKUP(Switch!$D$26,$F$2:$G$44,2,FALSE)+ROW()-2))=Switch!$D$26,INDIRECT(\"a\" & (VLOOKUP(Switch!$D$26,$F$2:$G$44,2,FALSE)+ROW()-2)),\"\")","v":{"$error":"#N/A"}},{"$f":"IF(INDIRECT(\"c\" & (VLOOKUP(Switch!$D$27,$F$2:$G$44,2,FALSE)+ROW()-2))=Switch!$D$27,INDIRECT(\"a\" & (VLOOKUP(Switch!$D$27,$F$2:$G$44,2,FALSE)+ROW()-2)),\"\")","v":{"$error":"#N/A"}},{"$f":"IF(INDIRECT(\"c\" & (VLOOKUP(Switch!$D$28,$F$2:$G$44,2,FALSE)+ROW()-2))=Switch!$D$28,INDIRECT(\"a\" & (VLOOKUP(Switch!$D$28,$F$2:$G$44,2,FALSE)+ROW()-2)),\"\")","v":{"$error":"#N/A"}},{"$f":"IF(INDIRECT(\"c\" & (VLOOKUP(Switch!$D$29,$F$2:$G$44,2,FALSE)+ROW()-2))=Switch!$D$29,INDIRECT(\"a\" & (VLOOKUP(Switch!$D$29,$F$2:$G$44,2,FALSE)+ROW()-2)),\"\")","v":{"$error":"#N/A"}},{"$f":"IF(INDIRECT(\"c\" & (VLOOKUP(Switch!$D$30,$F$2:$G$44,2,FALSE)+ROW()-2))=Switch!$D$30,INDIRECT(\"a\" & (VLOOKUP(Switch!$D$30,$F$2:$G$44,2,FALSE)+ROW()-2)),\"\")","v":{"$error":"#N/A"}},{"$f":"IF(INDIRECT(\"c\" & (VLOOKUP(Switch!$D$31,$F$2:$G$44,2,FALSE)+ROW()-2))=Switch!$D$31,INDIRECT(\"a\" & (VLOOKUP(Switch!$D$31,$F$2:$G$44,2,FALSE)+ROW()-2)),\"\")","v":{"$error":"#N/A"}},{"$f":"IF(INDIRECT(\"c\" & (VLOOKUP(Switch!$D$32,$F$2:$G$44,2,FALSE)+ROW()-2))=Switch!$D$32,INDIRECT(\"a\" & (VLOOKUP(Switch!$D$32,$F$2:$G$44,2,FALSE)+ROW()-2)),\"\")","v":{"$error":"#N/A"}},{"$f":"IF(INDIRECT(\"c\" & (VLOOKUP(Switch!$D$33,$F$2:$G$44,2,FALSE)+ROW()-2))=Switch!$D$33,INDIRECT(\"a\" & (VLOOKUP(Switch!$D$33,$F$2:$G$44,2,FALSE)+ROW()-2)),\"\")","v":{"$error":"#N/A"}},{"$f":"IF(INDIRECT(\"c\" & (VLOOKUP(Switch!$D$34,$F$2:$G$44,2,FALSE)+ROW()-2))=Switch!$D$34,INDIRECT(\"a\" & (VLOOKUP(Switch!$D$34,$F$2:$G$44,2,FALSE)+ROW()-2)),\"\")","v":{"$error":"#N/A"}},{"$f":"IF(INDIRECT(\"c\" & (VLOOKUP(Switch!$D$35,$F$2:$G$44,2,FALSE)+ROW()-2))=Switch!$D$35,INDIRECT(\"a\" & (VLOOKUP(Switch!$D$35,$F$2:$G$44,2,FALSE)+ROW()-2)),\"\")","v":{"$error":"#N/A"}},{"$f":"IF(INDIRECT(\"c\" & (VLOOKUP(Switch!$D$36,$F$2:$G$44,2,FALSE)+ROW()-2))=Switch!$D$36,INDIRECT(\"a\" & (VLOOKUP(Switch!$D$36,$F$2:$G$44,2,FALSE)+ROW()-2)),\"\")","v":{"$error":"#N/A"}},{"$f":"IF(INDIRECT(\"c\" & (VLOOKUP(Switch!$D$37,$F$2:$G$44,2,FALSE)+ROW()-2))=Switch!$D$37,INDIRECT(\"a\" & (VLOOKUP(Switch!$D$37,$F$2:$G$44,2,FALSE)+ROW()-2)),\"\")","v":{"$error":"#N/A"}},{"$f":"IF(INDIRECT(\"c\" & (VLOOKUP(Switch!$D$38,$F$2:$G$44,2,FALSE)+ROW()-2))=Switch!$D$38,INDIRECT(\"a\" & (VLOOKUP(Switch!$D$38,$F$2:$G$44,2,FALSE)+ROW()-2)),\"\")","v":{"$error":"#N/A"}},{"$f":"IF(INDIRECT(\"c\" & (VLOOKUP(Switch!$D$39,$F$2:$G$44,2,FALSE)+ROW()-2))=Switch!$D$39,INDIRECT(\"a\" & (VLOOKUP(Switch!$D$39,$F$2:$G$44,2,FALSE)+ROW()-2)),\"\")","v":{"$error":"#N/A"}},{"$f":"IF(INDIRECT(\"c\" & (VLOOKUP(Switch!$D$40,$F$2:$G$44,2,FALSE)+ROW()-2))=Switch!$D$40,INDIRECT(\"a\" & (VLOOKUP(Switch!$D$40,$F$2:$G$44,2,FALSE)+ROW()-2)),\"\")","v":{"$error":"#N/A"}},{"$f":"IF(INDIRECT(\"c\" & (VLOOKUP(Switch!$D$52,$F$2:$G$44,2,FALSE)+ROW()-2))=Switch!$D$52,INDIRECT(\"a\" & (VLOOKUP(Switch!$D$52,$F$2:$G$44,2,FALSE)+ROW()-2)),\"\")","v":{"$error":"#N/A"}},{"$f":"IF(INDIRECT(\"c\" & (VLOOKUP(Switch!$D$53,$F$2:$G$44,2,FALSE)+ROW()-2))=Switch!$D$53,INDIRECT(\"a\" & (VLOOKUP(Switch!$D$53,$F$2:$G$44,2,FALSE)+ROW()-2)),\"\")","v":{"$error":"#N/A"}},{"$f":"IF(INDIRECT(\"c\" & (VLOOKUP(Switch!$D$54,$F$2:$G$44,2,FALSE)+ROW()-2))=Switch!$D$54,INDIRECT(\"a\" & (VLOOKUP(Switch!$D$54,$F$2:$G$44,2,FALSE)+ROW()-2)),\"\")","v":{"$error":"#N/A"}},{"$f":"IF(INDIRECT(\"c\" & (VLOOKUP(Switch!$D$55,$F$2:$G$44,2,FALSE)+ROW()-2))=Switch!$D$55,INDIRECT(\"a\" & (VLOOKUP(Switch!$D$55,$F$2:$G$44,2,FALSE)+ROW()-2)),\"\")","v":{"$error":"#N/A"}},{"$f":"IF(INDIRECT(\"c\" & (VLOOKUP(Switch!$D$56,$F$2:$G$44,2,FALSE)+ROW()-2))=Switch!$D$56,INDIRECT(\"a\" & (VLOOKUP(Switch!$D$56,$F$2:$G$44,2,FALSE)+ROW()-2)),\"\")","v":{"$error":"#N/A"}},{"$f":"IF(INDIRECT(\"c\" & (VLOOKUP(Switch!$D$57,$F$2:$G$44,2,FALSE)+ROW()-2))=Switch!$D$57,INDIRECT(\"a\" & (VLOOKUP(Switch!$D$57,$F$2:$G$44,2,FALSE)+ROW()-2)),\"\")","v":{"$error":"#N/A"}},{"$f":"IF(INDIRECT(\"c\" & (VLOOKUP(Switch!$D$58,$F$2:$G$44,2,FALSE)+ROW()-2))=Switch!$D$58,INDIRECT(\"a\" & (VLOOKUP(Switch!$D$58,$F$2:$G$44,2,FALSE)+ROW()-2)),\"\")","v":{"$error":"#N/A"}},{"$f":"IF(INDIRECT(\"c\" & (VLOOKUP(Switch!$D$59,$F$2:$G$44,2,FALSE)+ROW()-2))=Switch!$D$59,INDIRECT(\"a\" & (VLOOKUP(Switch!$D$59,$F$2:$G$44,2,FALSE)+ROW()-2)),\"\")","v":{"$error":"#N/A"}},{"$f":"IF(INDIRECT(\"c\" & (VLOOKUP(Switch!$D$60,$F$2:$G$44,2,FALSE)+ROW()-2))=Switch!$D$60,INDIRECT(\"a\" & (VLOOKUP(Switch!$D$60,$F$2:$G$44,2,FALSE)+ROW()-2)),\"\")","v":{"$error":"#N/A"}},{"$f":"IF(INDIRECT(\"c\" & (VLOOKUP(Switch!$D$61,$F$2:$G$44,2,FALSE)+ROW()-2))=Switch!$D$61,INDIRECT(\"a\" & (VLOOKUP(Switch!$D$61,$F$2:$G$44,2,FALSE)+ROW()-2)),\"\")","v":{"$error":"#N/A"}},{"$f":"IF(INDIRECT(\"c\" & (VLOOKUP(Switch!$D$62,$F$2:$G$44,2,FALSE)+ROW()-2))=Switch!$D$62,INDIRECT(\"a\" & (VLOOKUP(Switch!$D$62,$F$2:$G$44,2,FALSE)+ROW()-2)),\"\")","v":{"$error":"#N/A"}},{"$f":"IF(INDIRECT(\"c\" & (VLOOKUP(Switch!$D$63,$F$2:$G$44,2,FALSE)+ROW()-2))=Switch!$D$63,INDIRECT(\"a\" & (VLOOKUP(Switch!$D$63,$F$2:$G$44,2,FALSE)+ROW()-2)),\"\")","v":{"$error":"#N/A"}},{"$f":"IF(INDIRECT(\"c\" & (VLOOKUP(Switch!$D$64,$F$2:$G$44,2,FALSE)+ROW()-2))=Switch!$D$64,INDIRECT(\"a\" & (VLOOKUP(Switch!$D$64,$F$2:$G$44,2,FALSE)+ROW()-2)),\"\")","v":{"$error":"#N/A"}},{"$f":"IF(INDIRECT(\"c\" & (VLOOKUP(Switch!$D$65,$F$2:$G$44,2,FALSE)+ROW()-2))=Switch!$D$65,INDIRECT(\"a\" & (VLOOKUP(Switch!$D$65,$F$2:$G$44,2,FALSE)+ROW()-2)),\"\")","v":{"$error":"#N/A"}},{"$f":"IF(INDIRECT(\"c\" & (VLOOKUP(Switch!$D$66,$F$2:$G$44,2,FALSE)+ROW()-2))=Switch!$D$66,INDIRECT(\"a\" & (VLOOKUP(Switch!$D$66,$F$2:$G$44,2,FALSE)+ROW()-2)),\"\")","v":{"$error":"#N/A"}}]
["Coronation Global Opportunity Equity Feeder Fund P","CWEB4","Coronation Management Company",{"$f":"ROW()","v":232},null,null,{"$f":"VLOOKUP(F232,$C$2:$D$637,2,FALSE)","v":{"$error":"#N/A"}},{"$f":"IF(INDIRECT(\"c\" & (VLOOKUP(Switch!$D$26,$F$2:$G$44,2,FALSE)+ROW()-2))=Switch!$D$26,INDIRECT(\"a\" & (VLOOKUP(Switch!$D$26,$F$2:$G$44,2,FALSE)+ROW()-2)),\"\")","v":{"$error":"#N/A"}},{"$f":"IF(INDIRECT(\"c\" & (VLOOKUP(Switch!$D$27,$F$2:$G$44,2,FALSE)+ROW()-2))=Switch!$D$27,INDIRECT(\"a\" & (VLOOKUP(Switch!$D$27,$F$2:$G$44,2,FALSE)+ROW()-2)),\"\")","v":{"$error":"#N/A"}},{"$f":"IF(INDIRECT(\"c\" & (VLOOKUP(Switch!$D$28,$F$2:$G$44,2,FALSE)+ROW()-2))=Switch!$D$28,INDIRECT(\"a\" & (VLOOKUP(Switch!$D$28,$F$2:$G$44,2,FALSE)+ROW()-2)),\"\")","v":{"$error":"#N/A"}},{"$f":"IF(INDIRECT(\"c\" & (VLOOKUP(Switch!$D$29,$F$2:$G$44,2,FALSE)+ROW()-2))=Switch!$D$29,INDIRECT(\"a\" & (VLOOKUP(Switch!$D$29,$F$2:$G$44,2,FALSE)+ROW()-2)),\"\")","v":{"$error":"#N/A"}},{"$f":"IF(INDIRECT(\"c\" & (VLOOKUP(Switch!$D$30,$F$2:$G$44,2,FALSE)+ROW()-2))=Switch!$D$30,INDIRECT(\"a\" & (VLOOKUP(Switch!$D$30,$F$2:$G$44,2,FALSE)+ROW()-2)),\"\")","v":{"$error":"#N/A"}},{"$f":"IF(INDIRECT(\"c\" & (VLOOKUP(Switch!$D$31,$F$2:$G$44,2,FALSE)+ROW()-2))=Switch!$D$31,INDIRECT(\"a\" & (VLOOKUP(Switch!$D$31,$F$2:$G$44,2,FALSE)+ROW()-2)),\"\")","v":{"$error":"#N/A"}},{"$f":"IF(INDIRECT(\"c\" & (VLOOKUP(Switch!$D$32,$F$2:$G$44,2,FALSE)+ROW()-2))=Switch!$D$32,INDIRECT(\"a\" & (VLOOKUP(Switch!$D$32,$F$2:$G$44,2,FALSE)+ROW()-2)),\"\")","v":{"$error":"#N/A"}},{"$f":"IF(INDIRECT(\"c\" & (VLOOKUP(Switch!$D$33,$F$2:$G$44,2,FALSE)+ROW()-2))=Switch!$D$33,INDIRECT(\"a\" & (VLOOKUP(Switch!$D$33,$F$2:$G$44,2,FALSE)+ROW()-2)),\"\")","v":{"$error":"#N/A"}},{"$f":"IF(INDIRECT(\"c\" & (VLOOKUP(Switch!$D$34,$F$2:$G$44,2,FALSE)+ROW()-2))=Switch!$D$34,INDIRECT(\"a\" & (VLOOKUP(Switch!$D$34,$F$2:$G$44,2,FALSE)+ROW()-2)),\"\")","v":{"$error":"#N/A"}},{"$f":"IF(INDIRECT(\"c\" & (VLOOKUP(Switch!$D$35,$F$2:$G$44,2,FALSE)+ROW()-2))=Switch!$D$35,INDIRECT(\"a\" & (VLOOKUP(Switch!$D$35,$F$2:$G$44,2,FALSE)+ROW()-2)),\"\")","v":{"$error":"#N/A"}},{"$f":"IF(INDIRECT(\"c\" & (VLOOKUP(Switch!$D$36,$F$2:$G$44,2,FALSE)+ROW()-2))=Switch!$D$36,INDIRECT(\"a\" & (VLOOKUP(Switch!$D$36,$F$2:$G$44,2,FALSE)+ROW()-2)),\"\")","v":{"$error":"#N/A"}},{"$f":"IF(INDIRECT(\"c\" & (VLOOKUP(Switch!$D$37,$F$2:$G$44,2,FALSE)+ROW()-2))=Switch!$D$37,INDIRECT(\"a\" & (VLOOKUP(Switch!$D$37,$F$2:$G$44,2,FALSE)+ROW()-2)),\"\")","v":{"$error":"#N/A"}},{"$f":"IF(INDIRECT(\"c\" & (VLOOKUP(Switch!$D$38,$F$2:$G$44,2,FALSE)+ROW()-2))=Switch!$D$38,INDIRECT(\"a\" & (VLOOKUP(Switch!$D$38,$F$2:$G$44,2,FALSE)+ROW()-2)),\"\")","v":{"$error":"#N/A"}},{"$f":"IF(INDIRECT(\"c\" & (VLOOKUP(Switch!$D$39,$F$2:$G$44,2,FALSE)+ROW()-2))=Switch!$D$39,INDIRECT(\"a\" & (VLOOKUP(Switch!$D$39,$F$2:$G$44,2,FALSE)+ROW()-2)),\"\")","v":{"$error":"#N/A"}},{"$f":"IF(INDIRECT(\"c\" & (VLOOKUP(Switch!$D$40,$F$2:$G$44,2,FALSE)+ROW()-2))=Switch!$D$40,INDIRECT(\"a\" & (VLOOKUP(Switch!$D$40,$F$2:$G$44,2,FALSE)+ROW()-2)),\"\")","v":{"$error":"#N/A"}},{"$f":"IF(INDIRECT(\"c\" & (VLOOKUP(Switch!$D$52,$F$2:$G$44,2,FALSE)+ROW()-2))=Switch!$D$52,INDIRECT(\"a\" & (VLOOKUP(Switch!$D$52,$F$2:$G$44,2,FALSE)+ROW()-2)),\"\")","v":{"$error":"#N/A"}},{"$f":"IF(INDIRECT(\"c\" & (VLOOKUP(Switch!$D$53,$F$2:$G$44,2,FALSE)+ROW()-2))=Switch!$D$53,INDIRECT(\"a\" & (VLOOKUP(Switch!$D$53,$F$2:$G$44,2,FALSE)+ROW()-2)),\"\")","v":{"$error":"#N/A"}},{"$f":"IF(INDIRECT(\"c\" & (VLOOKUP(Switch!$D$54,$F$2:$G$44,2,FALSE)+ROW()-2))=Switch!$D$54,INDIRECT(\"a\" & (VLOOKUP(Switch!$D$54,$F$2:$G$44,2,FALSE)+ROW()-2)),\"\")","v":{"$error":"#N/A"}},{"$f":"IF(INDIRECT(\"c\" & (VLOOKUP(Switch!$D$55,$F$2:$G$44,2,FALSE)+ROW()-2))=Switch!$D$55,INDIRECT(\"a\" & (VLOOKUP(Switch!$D$55,$F$2:$G$44,2,FALSE)+ROW()-2)),\"\")","v":{"$error":"#N/A"}},{"$f":"IF(INDIRECT(\"c\" & (VLOOKUP(Switch!$D$56,$F$2:$G$44,2,FALSE)+ROW()-2))=Switch!$D$56,INDIRECT(\"a\" & (VLOOKUP(Switch!$D$56,$F$2:$G$44,2,FALSE)+ROW()-2)),\"\")","v":{"$error":"#N/A"}},{"$f":"IF(INDIRECT(\"c\" & (VLOOKUP(Switch!$D$57,$F$2:$G$44,2,FALSE)+ROW()-2))=Switch!$D$57,INDIRECT(\"a\" & (VLOOKUP(Switch!$D$57,$F$2:$G$44,2,FALSE)+ROW()-2)),\"\")","v":{"$error":"#N/A"}},{"$f":"IF(INDIRECT(\"c\" & (VLOOKUP(Switch!$D$58,$F$2:$G$44,2,FALSE)+ROW()-2))=Switch!$D$58,INDIRECT(\"a\" & (VLOOKUP(Switch!$D$58,$F$2:$G$44,2,FALSE)+ROW()-2)),\"\")","v":{"$error":"#N/A"}},{"$f":"IF(INDIRECT(\"c\" & (VLOOKUP(Switch!$D$59,$F$2:$G$44,2,FALSE)+ROW()-2))=Switch!$D$59,INDIRECT(\"a\" & (VLOOKUP(Switch!$D$59,$F$2:$G$44,2,FALSE)+ROW()-2)),\"\")","v":{"$error":"#N/A"}},{"$f":"IF(INDIRECT(\"c\" & (VLOOKUP(Switch!$D$60,$F$2:$G$44,2,FALSE)+ROW()-2))=Switch!$D$60,INDIRECT(\"a\" & (VLOOKUP(Switch!$D$60,$F$2:$G$44,2,FALSE)+ROW()-2)),\"\")","v":{"$error":"#N/A"}},{"$f":"IF(INDIRECT(\"c\" & (VLOOKUP(Switch!$D$61,$F$2:$G$44,2,FALSE)+ROW()-2))=Switch!$D$61,INDIRECT(\"a\" & (VLOOKUP(Switch!$D$61,$F$2:$G$44,2,FALSE)+ROW()-2)),\"\")","v":{"$error":"#N/A"}},{"$f":"IF(INDIRECT(\"c\" & (VLOOKUP(Switch!$D$62,$F$2:$G$44,2,FALSE)+ROW()-2))=Switch!$D$62,INDIRECT(\"a\" & (VLOOKUP(Switch!$D$62,$F$2:$G$44,2,FALSE)+ROW()-2)),\"\")","v":{"$error":"#N/A"}},{"$f":"IF(INDIRECT(\"c\" & (VLOOKUP(Switch!$D$63,$F$2:$G$44,2,FALSE)+ROW()-2))=Switch!$D$63,INDIRECT(\"a\" & (VLOOKUP(Switch!$D$63,$F$2:$G$44,2,FALSE)+ROW()-2)),\"\")","v":{"$error":"#N/A"}},{"$f":"IF(INDIRECT(\"c\" & (VLOOKUP(Switch!$D$64,$F$2:$G$44,2,FALSE)+ROW()-2))=Switch!$D$64,INDIRECT(\"a\" & (VLOOKUP(Switch!$D$64,$F$2:$G$44,2,FALSE)+ROW()-2)),\"\")","v":{"$error":"#N/A"}},{"$f":"IF(INDIRECT(\"c\" & (VLOOKUP(Switch!$D$65,$F$2:$G$44,2,FALSE)+ROW()-2))=Switch!$D$65,INDIRECT(\"a\" & (VLOOKUP(Switch!$D$65,$F$2:$G$44,2,FALSE)+ROW()-2)),\"\")","v":{"$error":"#N/A"}},{"$f":"IF(INDIRECT(\"c\" & (VLOOKUP(Switch!$D$66,$F$2:$G$44,2,FALSE)+ROW()-2))=Switch!$D$66,INDIRECT(\"a\" & (VLOOKUP(Switch!$D$66,$F$2:$G$44,2,FALSE)+ROW()-2)),\"\")","v":{"$error":"#N/A"}}]
["Coronation Global Strategic USD Income [ZAR] Feeder Fund P","CGSIF","Coronation Management Company",{"$f":"ROW()","v":233},null,null,{"$f":"VLOOKUP(F233,$C$2:$D$637,2,FALSE)","v":{"$error":"#N/A"}},{"$f":"IF(INDIRECT(\"c\" & (VLOOKUP(Switch!$D$26,$F$2:$G$44,2,FALSE)+ROW()-2))=Switch!$D$26,INDIRECT(\"a\" & (VLOOKUP(Switch!$D$26,$F$2:$G$44,2,FALSE)+ROW()-2)),\"\")","v":{"$error":"#N/A"}},{"$f":"IF(INDIRECT(\"c\" & (VLOOKUP(Switch!$D$27,$F$2:$G$44,2,FALSE)+ROW()-2))=Switch!$D$27,INDIRECT(\"a\" & (VLOOKUP(Switch!$D$27,$F$2:$G$44,2,FALSE)+ROW()-2)),\"\")","v":{"$error":"#N/A"}},{"$f":"IF(INDIRECT(\"c\" & (VLOOKUP(Switch!$D$28,$F$2:$G$44,2,FALSE)+ROW()-2))=Switch!$D$28,INDIRECT(\"a\" & (VLOOKUP(Switch!$D$28,$F$2:$G$44,2,FALSE)+ROW()-2)),\"\")","v":{"$error":"#N/A"}},{"$f":"IF(INDIRECT(\"c\" & (VLOOKUP(Switch!$D$29,$F$2:$G$44,2,FALSE)+ROW()-2))=Switch!$D$29,INDIRECT(\"a\" & (VLOOKUP(Switch!$D$29,$F$2:$G$44,2,FALSE)+ROW()-2)),\"\")","v":{"$error":"#N/A"}},{"$f":"IF(INDIRECT(\"c\" & (VLOOKUP(Switch!$D$30,$F$2:$G$44,2,FALSE)+ROW()-2))=Switch!$D$30,INDIRECT(\"a\" & (VLOOKUP(Switch!$D$30,$F$2:$G$44,2,FALSE)+ROW()-2)),\"\")","v":{"$error":"#N/A"}},{"$f":"IF(INDIRECT(\"c\" & (VLOOKUP(Switch!$D$31,$F$2:$G$44,2,FALSE)+ROW()-2))=Switch!$D$31,INDIRECT(\"a\" & (VLOOKUP(Switch!$D$31,$F$2:$G$44,2,FALSE)+ROW()-2)),\"\")","v":{"$error":"#N/A"}},{"$f":"IF(INDIRECT(\"c\" & (VLOOKUP(Switch!$D$32,$F$2:$G$44,2,FALSE)+ROW()-2))=Switch!$D$32,INDIRECT(\"a\" & (VLOOKUP(Switch!$D$32,$F$2:$G$44,2,FALSE)+ROW()-2)),\"\")","v":{"$error":"#N/A"}},{"$f":"IF(INDIRECT(\"c\" & (VLOOKUP(Switch!$D$33,$F$2:$G$44,2,FALSE)+ROW()-2))=Switch!$D$33,INDIRECT(\"a\" & (VLOOKUP(Switch!$D$33,$F$2:$G$44,2,FALSE)+ROW()-2)),\"\")","v":{"$error":"#N/A"}},{"$f":"IF(INDIRECT(\"c\" & (VLOOKUP(Switch!$D$34,$F$2:$G$44,2,FALSE)+ROW()-2))=Switch!$D$34,INDIRECT(\"a\" & (VLOOKUP(Switch!$D$34,$F$2:$G$44,2,FALSE)+ROW()-2)),\"\")","v":{"$error":"#N/A"}},{"$f":"IF(INDIRECT(\"c\" & (VLOOKUP(Switch!$D$35,$F$2:$G$44,2,FALSE)+ROW()-2))=Switch!$D$35,INDIRECT(\"a\" & (VLOOKUP(Switch!$D$35,$F$2:$G$44,2,FALSE)+ROW()-2)),\"\")","v":{"$error":"#N/A"}},{"$f":"IF(INDIRECT(\"c\" & (VLOOKUP(Switch!$D$36,$F$2:$G$44,2,FALSE)+ROW()-2))=Switch!$D$36,INDIRECT(\"a\" & (VLOOKUP(Switch!$D$36,$F$2:$G$44,2,FALSE)+ROW()-2)),\"\")","v":{"$error":"#N/A"}},{"$f":"IF(INDIRECT(\"c\" & (VLOOKUP(Switch!$D$37,$F$2:$G$44,2,FALSE)+ROW()-2))=Switch!$D$37,INDIRECT(\"a\" & (VLOOKUP(Switch!$D$37,$F$2:$G$44,2,FALSE)+ROW()-2)),\"\")","v":{"$error":"#N/A"}},{"$f":"IF(INDIRECT(\"c\" & (VLOOKUP(Switch!$D$38,$F$2:$G$44,2,FALSE)+ROW()-2))=Switch!$D$38,INDIRECT(\"a\" & (VLOOKUP(Switch!$D$38,$F$2:$G$44,2,FALSE)+ROW()-2)),\"\")","v":{"$error":"#N/A"}},{"$f":"IF(INDIRECT(\"c\" & (VLOOKUP(Switch!$D$39,$F$2:$G$44,2,FALSE)+ROW()-2))=Switch!$D$39,INDIRECT(\"a\" & (VLOOKUP(Switch!$D$39,$F$2:$G$44,2,FALSE)+ROW()-2)),\"\")","v":{"$error":"#N/A"}},{"$f":"IF(INDIRECT(\"c\" & (VLOOKUP(Switch!$D$40,$F$2:$G$44,2,FALSE)+ROW()-2))=Switch!$D$40,INDIRECT(\"a\" & (VLOOKUP(Switch!$D$40,$F$2:$G$44,2,FALSE)+ROW()-2)),\"\")","v":{"$error":"#N/A"}},{"$f":"IF(INDIRECT(\"c\" & (VLOOKUP(Switch!$D$52,$F$2:$G$44,2,FALSE)+ROW()-2))=Switch!$D$52,INDIRECT(\"a\" & (VLOOKUP(Switch!$D$52,$F$2:$G$44,2,FALSE)+ROW()-2)),\"\")","v":{"$error":"#N/A"}},{"$f":"IF(INDIRECT(\"c\" & (VLOOKUP(Switch!$D$53,$F$2:$G$44,2,FALSE)+ROW()-2))=Switch!$D$53,INDIRECT(\"a\" & (VLOOKUP(Switch!$D$53,$F$2:$G$44,2,FALSE)+ROW()-2)),\"\")","v":{"$error":"#N/A"}},{"$f":"IF(INDIRECT(\"c\" & (VLOOKUP(Switch!$D$54,$F$2:$G$44,2,FALSE)+ROW()-2))=Switch!$D$54,INDIRECT(\"a\" & (VLOOKUP(Switch!$D$54,$F$2:$G$44,2,FALSE)+ROW()-2)),\"\")","v":{"$error":"#N/A"}},{"$f":"IF(INDIRECT(\"c\" & (VLOOKUP(Switch!$D$55,$F$2:$G$44,2,FALSE)+ROW()-2))=Switch!$D$55,INDIRECT(\"a\" & (VLOOKUP(Switch!$D$55,$F$2:$G$44,2,FALSE)+ROW()-2)),\"\")","v":{"$error":"#N/A"}},{"$f":"IF(INDIRECT(\"c\" & (VLOOKUP(Switch!$D$56,$F$2:$G$44,2,FALSE)+ROW()-2))=Switch!$D$56,INDIRECT(\"a\" & (VLOOKUP(Switch!$D$56,$F$2:$G$44,2,FALSE)+ROW()-2)),\"\")","v":{"$error":"#N/A"}},{"$f":"IF(INDIRECT(\"c\" & (VLOOKUP(Switch!$D$57,$F$2:$G$44,2,FALSE)+ROW()-2))=Switch!$D$57,INDIRECT(\"a\" & (VLOOKUP(Switch!$D$57,$F$2:$G$44,2,FALSE)+ROW()-2)),\"\")","v":{"$error":"#N/A"}},{"$f":"IF(INDIRECT(\"c\" & (VLOOKUP(Switch!$D$58,$F$2:$G$44,2,FALSE)+ROW()-2))=Switch!$D$58,INDIRECT(\"a\" & (VLOOKUP(Switch!$D$58,$F$2:$G$44,2,FALSE)+ROW()-2)),\"\")","v":{"$error":"#N/A"}},{"$f":"IF(INDIRECT(\"c\" & (VLOOKUP(Switch!$D$59,$F$2:$G$44,2,FALSE)+ROW()-2))=Switch!$D$59,INDIRECT(\"a\" & (VLOOKUP(Switch!$D$59,$F$2:$G$44,2,FALSE)+ROW()-2)),\"\")","v":{"$error":"#N/A"}},{"$f":"IF(INDIRECT(\"c\" & (VLOOKUP(Switch!$D$60,$F$2:$G$44,2,FALSE)+ROW()-2))=Switch!$D$60,INDIRECT(\"a\" & (VLOOKUP(Switch!$D$60,$F$2:$G$44,2,FALSE)+ROW()-2)),\"\")","v":{"$error":"#N/A"}},{"$f":"IF(INDIRECT(\"c\" & (VLOOKUP(Switch!$D$61,$F$2:$G$44,2,FALSE)+ROW()-2))=Switch!$D$61,INDIRECT(\"a\" & (VLOOKUP(Switch!$D$61,$F$2:$G$44,2,FALSE)+ROW()-2)),\"\")","v":{"$error":"#N/A"}},{"$f":"IF(INDIRECT(\"c\" & (VLOOKUP(Switch!$D$62,$F$2:$G$44,2,FALSE)+ROW()-2))=Switch!$D$62,INDIRECT(\"a\" & (VLOOKUP(Switch!$D$62,$F$2:$G$44,2,FALSE)+ROW()-2)),\"\")","v":{"$error":"#N/A"}},{"$f":"IF(INDIRECT(\"c\" & (VLOOKUP(Switch!$D$63,$F$2:$G$44,2,FALSE)+ROW()-2))=Switch!$D$63,INDIRECT(\"a\" & (VLOOKUP(Switch!$D$63,$F$2:$G$44,2,FALSE)+ROW()-2)),\"\")","v":{"$error":"#N/A"}},{"$f":"IF(INDIRECT(\"c\" & (VLOOKUP(Switch!$D$64,$F$2:$G$44,2,FALSE)+ROW()-2))=Switch!$D$64,INDIRECT(\"a\" & (VLOOKUP(Switch!$D$64,$F$2:$G$44,2,FALSE)+ROW()-2)),\"\")","v":{"$error":"#N/A"}},{"$f":"IF(INDIRECT(\"c\" & (VLOOKUP(Switch!$D$65,$F$2:$G$44,2,FALSE)+ROW()-2))=Switch!$D$65,INDIRECT(\"a\" & (VLOOKUP(Switch!$D$65,$F$2:$G$44,2,FALSE)+ROW()-2)),\"\")","v":{"$error":"#N/A"}},{"$f":"IF(INDIRECT(\"c\" & (VLOOKUP(Switch!$D$66,$F$2:$G$44,2,FALSE)+ROW()-2))=Switch!$D$66,INDIRECT(\"a\" & (VLOOKUP(Switch!$D$66,$F$2:$G$44,2,FALSE)+ROW()-2)),\"\")","v":{"$error":"#N/A"}}]
["Coronation Industrial Fund A","CNCG","Coronation Management Company",{"$f":"ROW()","v":234},null,null,{"$f":"VLOOKUP(F234,$C$2:$D$637,2,FALSE)","v":{"$error":"#N/A"}},{"$f":"IF(INDIRECT(\"c\" & (VLOOKUP(Switch!$D$26,$F$2:$G$44,2,FALSE)+ROW()-2))=Switch!$D$26,INDIRECT(\"a\" & (VLOOKUP(Switch!$D$26,$F$2:$G$44,2,FALSE)+ROW()-2)),\"\")","v":{"$error":"#N/A"}},{"$f":"IF(INDIRECT(\"c\" & (VLOOKUP(Switch!$D$27,$F$2:$G$44,2,FALSE)+ROW()-2))=Switch!$D$27,INDIRECT(\"a\" & (VLOOKUP(Switch!$D$27,$F$2:$G$44,2,FALSE)+ROW()-2)),\"\")","v":{"$error":"#N/A"}},{"$f":"IF(INDIRECT(\"c\" & (VLOOKUP(Switch!$D$28,$F$2:$G$44,2,FALSE)+ROW()-2))=Switch!$D$28,INDIRECT(\"a\" & (VLOOKUP(Switch!$D$28,$F$2:$G$44,2,FALSE)+ROW()-2)),\"\")","v":{"$error":"#N/A"}},{"$f":"IF(INDIRECT(\"c\" & (VLOOKUP(Switch!$D$29,$F$2:$G$44,2,FALSE)+ROW()-2))=Switch!$D$29,INDIRECT(\"a\" & (VLOOKUP(Switch!$D$29,$F$2:$G$44,2,FALSE)+ROW()-2)),\"\")","v":{"$error":"#N/A"}},{"$f":"IF(INDIRECT(\"c\" & (VLOOKUP(Switch!$D$30,$F$2:$G$44,2,FALSE)+ROW()-2))=Switch!$D$30,INDIRECT(\"a\" & (VLOOKUP(Switch!$D$30,$F$2:$G$44,2,FALSE)+ROW()-2)),\"\")","v":{"$error":"#N/A"}},{"$f":"IF(INDIRECT(\"c\" & (VLOOKUP(Switch!$D$31,$F$2:$G$44,2,FALSE)+ROW()-2))=Switch!$D$31,INDIRECT(\"a\" & (VLOOKUP(Switch!$D$31,$F$2:$G$44,2,FALSE)+ROW()-2)),\"\")","v":{"$error":"#N/A"}},{"$f":"IF(INDIRECT(\"c\" & (VLOOKUP(Switch!$D$32,$F$2:$G$44,2,FALSE)+ROW()-2))=Switch!$D$32,INDIRECT(\"a\" & (VLOOKUP(Switch!$D$32,$F$2:$G$44,2,FALSE)+ROW()-2)),\"\")","v":{"$error":"#N/A"}},{"$f":"IF(INDIRECT(\"c\" & (VLOOKUP(Switch!$D$33,$F$2:$G$44,2,FALSE)+ROW()-2))=Switch!$D$33,INDIRECT(\"a\" & (VLOOKUP(Switch!$D$33,$F$2:$G$44,2,FALSE)+ROW()-2)),\"\")","v":{"$error":"#N/A"}},{"$f":"IF(INDIRECT(\"c\" & (VLOOKUP(Switch!$D$34,$F$2:$G$44,2,FALSE)+ROW()-2))=Switch!$D$34,INDIRECT(\"a\" & (VLOOKUP(Switch!$D$34,$F$2:$G$44,2,FALSE)+ROW()-2)),\"\")","v":{"$error":"#N/A"}},{"$f":"IF(INDIRECT(\"c\" & (VLOOKUP(Switch!$D$35,$F$2:$G$44,2,FALSE)+ROW()-2))=Switch!$D$35,INDIRECT(\"a\" & (VLOOKUP(Switch!$D$35,$F$2:$G$44,2,FALSE)+ROW()-2)),\"\")","v":{"$error":"#N/A"}},{"$f":"IF(INDIRECT(\"c\" & (VLOOKUP(Switch!$D$36,$F$2:$G$44,2,FALSE)+ROW()-2))=Switch!$D$36,INDIRECT(\"a\" & (VLOOKUP(Switch!$D$36,$F$2:$G$44,2,FALSE)+ROW()-2)),\"\")","v":{"$error":"#N/A"}},{"$f":"IF(INDIRECT(\"c\" & (VLOOKUP(Switch!$D$37,$F$2:$G$44,2,FALSE)+ROW()-2))=Switch!$D$37,INDIRECT(\"a\" & (VLOOKUP(Switch!$D$37,$F$2:$G$44,2,FALSE)+ROW()-2)),\"\")","v":{"$error":"#N/A"}},{"$f":"IF(INDIRECT(\"c\" & (VLOOKUP(Switch!$D$38,$F$2:$G$44,2,FALSE)+ROW()-2))=Switch!$D$38,INDIRECT(\"a\" & (VLOOKUP(Switch!$D$38,$F$2:$G$44,2,FALSE)+ROW()-2)),\"\")","v":{"$error":"#N/A"}},{"$f":"IF(INDIRECT(\"c\" & (VLOOKUP(Switch!$D$39,$F$2:$G$44,2,FALSE)+ROW()-2))=Switch!$D$39,INDIRECT(\"a\" & (VLOOKUP(Switch!$D$39,$F$2:$G$44,2,FALSE)+ROW()-2)),\"\")","v":{"$error":"#N/A"}},{"$f":"IF(INDIRECT(\"c\" & (VLOOKUP(Switch!$D$40,$F$2:$G$44,2,FALSE)+ROW()-2))=Switch!$D$40,INDIRECT(\"a\" & (VLOOKUP(Switch!$D$40,$F$2:$G$44,2,FALSE)+ROW()-2)),\"\")","v":{"$error":"#N/A"}},{"$f":"IF(INDIRECT(\"c\" & (VLOOKUP(Switch!$D$52,$F$2:$G$44,2,FALSE)+ROW()-2))=Switch!$D$52,INDIRECT(\"a\" & (VLOOKUP(Switch!$D$52,$F$2:$G$44,2,FALSE)+ROW()-2)),\"\")","v":{"$error":"#N/A"}},{"$f":"IF(INDIRECT(\"c\" & (VLOOKUP(Switch!$D$53,$F$2:$G$44,2,FALSE)+ROW()-2))=Switch!$D$53,INDIRECT(\"a\" & (VLOOKUP(Switch!$D$53,$F$2:$G$44,2,FALSE)+ROW()-2)),\"\")","v":{"$error":"#N/A"}},{"$f":"IF(INDIRECT(\"c\" & (VLOOKUP(Switch!$D$54,$F$2:$G$44,2,FALSE)+ROW()-2))=Switch!$D$54,INDIRECT(\"a\" & (VLOOKUP(Switch!$D$54,$F$2:$G$44,2,FALSE)+ROW()-2)),\"\")","v":{"$error":"#N/A"}},{"$f":"IF(INDIRECT(\"c\" & (VLOOKUP(Switch!$D$55,$F$2:$G$44,2,FALSE)+ROW()-2))=Switch!$D$55,INDIRECT(\"a\" & (VLOOKUP(Switch!$D$55,$F$2:$G$44,2,FALSE)+ROW()-2)),\"\")","v":{"$error":"#N/A"}},{"$f":"IF(INDIRECT(\"c\" & (VLOOKUP(Switch!$D$56,$F$2:$G$44,2,FALSE)+ROW()-2))=Switch!$D$56,INDIRECT(\"a\" & (VLOOKUP(Switch!$D$56,$F$2:$G$44,2,FALSE)+ROW()-2)),\"\")","v":{"$error":"#N/A"}},{"$f":"IF(INDIRECT(\"c\" & (VLOOKUP(Switch!$D$57,$F$2:$G$44,2,FALSE)+ROW()-2))=Switch!$D$57,INDIRECT(\"a\" & (VLOOKUP(Switch!$D$57,$F$2:$G$44,2,FALSE)+ROW()-2)),\"\")","v":{"$error":"#N/A"}},{"$f":"IF(INDIRECT(\"c\" & (VLOOKUP(Switch!$D$58,$F$2:$G$44,2,FALSE)+ROW()-2))=Switch!$D$58,INDIRECT(\"a\" & (VLOOKUP(Switch!$D$58,$F$2:$G$44,2,FALSE)+ROW()-2)),\"\")","v":{"$error":"#N/A"}},{"$f":"IF(INDIRECT(\"c\" & (VLOOKUP(Switch!$D$59,$F$2:$G$44,2,FALSE)+ROW()-2))=Switch!$D$59,INDIRECT(\"a\" & (VLOOKUP(Switch!$D$59,$F$2:$G$44,2,FALSE)+ROW()-2)),\"\")","v":{"$error":"#N/A"}},{"$f":"IF(INDIRECT(\"c\" & (VLOOKUP(Switch!$D$60,$F$2:$G$44,2,FALSE)+ROW()-2))=Switch!$D$60,INDIRECT(\"a\" & (VLOOKUP(Switch!$D$60,$F$2:$G$44,2,FALSE)+ROW()-2)),\"\")","v":{"$error":"#N/A"}},{"$f":"IF(INDIRECT(\"c\" & (VLOOKUP(Switch!$D$61,$F$2:$G$44,2,FALSE)+ROW()-2))=Switch!$D$61,INDIRECT(\"a\" & (VLOOKUP(Switch!$D$61,$F$2:$G$44,2,FALSE)+ROW()-2)),\"\")","v":{"$error":"#N/A"}},{"$f":"IF(INDIRECT(\"c\" & (VLOOKUP(Switch!$D$62,$F$2:$G$44,2,FALSE)+ROW()-2))=Switch!$D$62,INDIRECT(\"a\" & (VLOOKUP(Switch!$D$62,$F$2:$G$44,2,FALSE)+ROW()-2)),\"\")","v":{"$error":"#N/A"}},{"$f":"IF(INDIRECT(\"c\" & (VLOOKUP(Switch!$D$63,$F$2:$G$44,2,FALSE)+ROW()-2))=Switch!$D$63,INDIRECT(\"a\" & (VLOOKUP(Switch!$D$63,$F$2:$G$44,2,FALSE)+ROW()-2)),\"\")","v":{"$error":"#N/A"}},{"$f":"IF(INDIRECT(\"c\" & (VLOOKUP(Switch!$D$64,$F$2:$G$44,2,FALSE)+ROW()-2))=Switch!$D$64,INDIRECT(\"a\" & (VLOOKUP(Switch!$D$64,$F$2:$G$44,2,FALSE)+ROW()-2)),\"\")","v":{"$error":"#N/A"}},{"$f":"IF(INDIRECT(\"c\" & (VLOOKUP(Switch!$D$65,$F$2:$G$44,2,FALSE)+ROW()-2))=Switch!$D$65,INDIRECT(\"a\" & (VLOOKUP(Switch!$D$65,$F$2:$G$44,2,FALSE)+ROW()-2)),\"\")","v":{"$error":"#N/A"}},{"$f":"IF(INDIRECT(\"c\" & (VLOOKUP(Switch!$D$66,$F$2:$G$44,2,FALSE)+ROW()-2))=Switch!$D$66,INDIRECT(\"a\" & (VLOOKUP(Switch!$D$66,$F$2:$G$44,2,FALSE)+ROW()-2)),\"\")","v":{"$error":"#N/A"}}]
["Coronation Jibar Plus Fund P","CJFCP","Coronation Management Company",{"$f":"ROW()","v":235},null,null,{"$f":"VLOOKUP(F235,$C$2:$D$637,2,FALSE)","v":{"$error":"#N/A"}},{"$f":"IF(INDIRECT(\"c\" & (VLOOKUP(Switch!$D$26,$F$2:$G$44,2,FALSE)+ROW()-2))=Switch!$D$26,INDIRECT(\"a\" & (VLOOKUP(Switch!$D$26,$F$2:$G$44,2,FALSE)+ROW()-2)),\"\")","v":{"$error":"#N/A"}},{"$f":"IF(INDIRECT(\"c\" & (VLOOKUP(Switch!$D$27,$F$2:$G$44,2,FALSE)+ROW()-2))=Switch!$D$27,INDIRECT(\"a\" & (VLOOKUP(Switch!$D$27,$F$2:$G$44,2,FALSE)+ROW()-2)),\"\")","v":{"$error":"#N/A"}},{"$f":"IF(INDIRECT(\"c\" & (VLOOKUP(Switch!$D$28,$F$2:$G$44,2,FALSE)+ROW()-2))=Switch!$D$28,INDIRECT(\"a\" & (VLOOKUP(Switch!$D$28,$F$2:$G$44,2,FALSE)+ROW()-2)),\"\")","v":{"$error":"#N/A"}},{"$f":"IF(INDIRECT(\"c\" & (VLOOKUP(Switch!$D$29,$F$2:$G$44,2,FALSE)+ROW()-2))=Switch!$D$29,INDIRECT(\"a\" & (VLOOKUP(Switch!$D$29,$F$2:$G$44,2,FALSE)+ROW()-2)),\"\")","v":{"$error":"#N/A"}},{"$f":"IF(INDIRECT(\"c\" & (VLOOKUP(Switch!$D$30,$F$2:$G$44,2,FALSE)+ROW()-2))=Switch!$D$30,INDIRECT(\"a\" & (VLOOKUP(Switch!$D$30,$F$2:$G$44,2,FALSE)+ROW()-2)),\"\")","v":{"$error":"#N/A"}},{"$f":"IF(INDIRECT(\"c\" & (VLOOKUP(Switch!$D$31,$F$2:$G$44,2,FALSE)+ROW()-2))=Switch!$D$31,INDIRECT(\"a\" & (VLOOKUP(Switch!$D$31,$F$2:$G$44,2,FALSE)+ROW()-2)),\"\")","v":{"$error":"#N/A"}},{"$f":"IF(INDIRECT(\"c\" & (VLOOKUP(Switch!$D$32,$F$2:$G$44,2,FALSE)+ROW()-2))=Switch!$D$32,INDIRECT(\"a\" & (VLOOKUP(Switch!$D$32,$F$2:$G$44,2,FALSE)+ROW()-2)),\"\")","v":{"$error":"#N/A"}},{"$f":"IF(INDIRECT(\"c\" & (VLOOKUP(Switch!$D$33,$F$2:$G$44,2,FALSE)+ROW()-2))=Switch!$D$33,INDIRECT(\"a\" & (VLOOKUP(Switch!$D$33,$F$2:$G$44,2,FALSE)+ROW()-2)),\"\")","v":{"$error":"#N/A"}},{"$f":"IF(INDIRECT(\"c\" & (VLOOKUP(Switch!$D$34,$F$2:$G$44,2,FALSE)+ROW()-2))=Switch!$D$34,INDIRECT(\"a\" & (VLOOKUP(Switch!$D$34,$F$2:$G$44,2,FALSE)+ROW()-2)),\"\")","v":{"$error":"#N/A"}},{"$f":"IF(INDIRECT(\"c\" & (VLOOKUP(Switch!$D$35,$F$2:$G$44,2,FALSE)+ROW()-2))=Switch!$D$35,INDIRECT(\"a\" & (VLOOKUP(Switch!$D$35,$F$2:$G$44,2,FALSE)+ROW()-2)),\"\")","v":{"$error":"#N/A"}},{"$f":"IF(INDIRECT(\"c\" & (VLOOKUP(Switch!$D$36,$F$2:$G$44,2,FALSE)+ROW()-2))=Switch!$D$36,INDIRECT(\"a\" & (VLOOKUP(Switch!$D$36,$F$2:$G$44,2,FALSE)+ROW()-2)),\"\")","v":{"$error":"#N/A"}},{"$f":"IF(INDIRECT(\"c\" & (VLOOKUP(Switch!$D$37,$F$2:$G$44,2,FALSE)+ROW()-2))=Switch!$D$37,INDIRECT(\"a\" & (VLOOKUP(Switch!$D$37,$F$2:$G$44,2,FALSE)+ROW()-2)),\"\")","v":{"$error":"#N/A"}},{"$f":"IF(INDIRECT(\"c\" & (VLOOKUP(Switch!$D$38,$F$2:$G$44,2,FALSE)+ROW()-2))=Switch!$D$38,INDIRECT(\"a\" & (VLOOKUP(Switch!$D$38,$F$2:$G$44,2,FALSE)+ROW()-2)),\"\")","v":{"$error":"#N/A"}},{"$f":"IF(INDIRECT(\"c\" & (VLOOKUP(Switch!$D$39,$F$2:$G$44,2,FALSE)+ROW()-2))=Switch!$D$39,INDIRECT(\"a\" & (VLOOKUP(Switch!$D$39,$F$2:$G$44,2,FALSE)+ROW()-2)),\"\")","v":{"$error":"#N/A"}},{"$f":"IF(INDIRECT(\"c\" & (VLOOKUP(Switch!$D$40,$F$2:$G$44,2,FALSE)+ROW()-2))=Switch!$D$40,INDIRECT(\"a\" & (VLOOKUP(Switch!$D$40,$F$2:$G$44,2,FALSE)+ROW()-2)),\"\")","v":{"$error":"#N/A"}},{"$f":"IF(INDIRECT(\"c\" & (VLOOKUP(Switch!$D$52,$F$2:$G$44,2,FALSE)+ROW()-2))=Switch!$D$52,INDIRECT(\"a\" & (VLOOKUP(Switch!$D$52,$F$2:$G$44,2,FALSE)+ROW()-2)),\"\")","v":{"$error":"#N/A"}},{"$f":"IF(INDIRECT(\"c\" & (VLOOKUP(Switch!$D$53,$F$2:$G$44,2,FALSE)+ROW()-2))=Switch!$D$53,INDIRECT(\"a\" & (VLOOKUP(Switch!$D$53,$F$2:$G$44,2,FALSE)+ROW()-2)),\"\")","v":{"$error":"#N/A"}},{"$f":"IF(INDIRECT(\"c\" & (VLOOKUP(Switch!$D$54,$F$2:$G$44,2,FALSE)+ROW()-2))=Switch!$D$54,INDIRECT(\"a\" & (VLOOKUP(Switch!$D$54,$F$2:$G$44,2,FALSE)+ROW()-2)),\"\")","v":{"$error":"#N/A"}},{"$f":"IF(INDIRECT(\"c\" & (VLOOKUP(Switch!$D$55,$F$2:$G$44,2,FALSE)+ROW()-2))=Switch!$D$55,INDIRECT(\"a\" & (VLOOKUP(Switch!$D$55,$F$2:$G$44,2,FALSE)+ROW()-2)),\"\")","v":{"$error":"#N/A"}},{"$f":"IF(INDIRECT(\"c\" & (VLOOKUP(Switch!$D$56,$F$2:$G$44,2,FALSE)+ROW()-2))=Switch!$D$56,INDIRECT(\"a\" & (VLOOKUP(Switch!$D$56,$F$2:$G$44,2,FALSE)+ROW()-2)),\"\")","v":{"$error":"#N/A"}},{"$f":"IF(INDIRECT(\"c\" & (VLOOKUP(Switch!$D$57,$F$2:$G$44,2,FALSE)+ROW()-2))=Switch!$D$57,INDIRECT(\"a\" & (VLOOKUP(Switch!$D$57,$F$2:$G$44,2,FALSE)+ROW()-2)),\"\")","v":{"$error":"#N/A"}},{"$f":"IF(INDIRECT(\"c\" & (VLOOKUP(Switch!$D$58,$F$2:$G$44,2,FALSE)+ROW()-2))=Switch!$D$58,INDIRECT(\"a\" & (VLOOKUP(Switch!$D$58,$F$2:$G$44,2,FALSE)+ROW()-2)),\"\")","v":{"$error":"#N/A"}},{"$f":"IF(INDIRECT(\"c\" & (VLOOKUP(Switch!$D$59,$F$2:$G$44,2,FALSE)+ROW()-2))=Switch!$D$59,INDIRECT(\"a\" & (VLOOKUP(Switch!$D$59,$F$2:$G$44,2,FALSE)+ROW()-2)),\"\")","v":{"$error":"#N/A"}},{"$f":"IF(INDIRECT(\"c\" & (VLOOKUP(Switch!$D$60,$F$2:$G$44,2,FALSE)+ROW()-2))=Switch!$D$60,INDIRECT(\"a\" & (VLOOKUP(Switch!$D$60,$F$2:$G$44,2,FALSE)+ROW()-2)),\"\")","v":{"$error":"#N/A"}},{"$f":"IF(INDIRECT(\"c\" & (VLOOKUP(Switch!$D$61,$F$2:$G$44,2,FALSE)+ROW()-2))=Switch!$D$61,INDIRECT(\"a\" & (VLOOKUP(Switch!$D$61,$F$2:$G$44,2,FALSE)+ROW()-2)),\"\")","v":{"$error":"#N/A"}},{"$f":"IF(INDIRECT(\"c\" & (VLOOKUP(Switch!$D$62,$F$2:$G$44,2,FALSE)+ROW()-2))=Switch!$D$62,INDIRECT(\"a\" & (VLOOKUP(Switch!$D$62,$F$2:$G$44,2,FALSE)+ROW()-2)),\"\")","v":{"$error":"#N/A"}},{"$f":"IF(INDIRECT(\"c\" & (VLOOKUP(Switch!$D$63,$F$2:$G$44,2,FALSE)+ROW()-2))=Switch!$D$63,INDIRECT(\"a\" & (VLOOKUP(Switch!$D$63,$F$2:$G$44,2,FALSE)+ROW()-2)),\"\")","v":{"$error":"#N/A"}},{"$f":"IF(INDIRECT(\"c\" & (VLOOKUP(Switch!$D$64,$F$2:$G$44,2,FALSE)+ROW()-2))=Switch!$D$64,INDIRECT(\"a\" & (VLOOKUP(Switch!$D$64,$F$2:$G$44,2,FALSE)+ROW()-2)),\"\")","v":{"$error":"#N/A"}},{"$f":"IF(INDIRECT(\"c\" & (VLOOKUP(Switch!$D$65,$F$2:$G$44,2,FALSE)+ROW()-2))=Switch!$D$65,INDIRECT(\"a\" & (VLOOKUP(Switch!$D$65,$F$2:$G$44,2,FALSE)+ROW()-2)),\"\")","v":{"$error":"#N/A"}},{"$f":"IF(INDIRECT(\"c\" & (VLOOKUP(Switch!$D$66,$F$2:$G$44,2,FALSE)+ROW()-2))=Switch!$D$66,INDIRECT(\"a\" & (VLOOKUP(Switch!$D$66,$F$2:$G$44,2,FALSE)+ROW()-2)),\"\")","v":{"$error":"#N/A"}}]
["Coronation Market Plus Fund P","CMPL4","Coronation Management Company",{"$f":"ROW()","v":236},null,null,{"$f":"VLOOKUP(F236,$C$2:$D$637,2,FALSE)","v":{"$error":"#N/A"}},{"$f":"IF(INDIRECT(\"c\" & (VLOOKUP(Switch!$D$26,$F$2:$G$44,2,FALSE)+ROW()-2))=Switch!$D$26,INDIRECT(\"a\" & (VLOOKUP(Switch!$D$26,$F$2:$G$44,2,FALSE)+ROW()-2)),\"\")","v":{"$error":"#N/A"}},{"$f":"IF(INDIRECT(\"c\" & (VLOOKUP(Switch!$D$27,$F$2:$G$44,2,FALSE)+ROW()-2))=Switch!$D$27,INDIRECT(\"a\" & (VLOOKUP(Switch!$D$27,$F$2:$G$44,2,FALSE)+ROW()-2)),\"\")","v":{"$error":"#N/A"}},{"$f":"IF(INDIRECT(\"c\" & (VLOOKUP(Switch!$D$28,$F$2:$G$44,2,FALSE)+ROW()-2))=Switch!$D$28,INDIRECT(\"a\" & (VLOOKUP(Switch!$D$28,$F$2:$G$44,2,FALSE)+ROW()-2)),\"\")","v":{"$error":"#N/A"}},{"$f":"IF(INDIRECT(\"c\" & (VLOOKUP(Switch!$D$29,$F$2:$G$44,2,FALSE)+ROW()-2))=Switch!$D$29,INDIRECT(\"a\" & (VLOOKUP(Switch!$D$29,$F$2:$G$44,2,FALSE)+ROW()-2)),\"\")","v":{"$error":"#N/A"}},{"$f":"IF(INDIRECT(\"c\" & (VLOOKUP(Switch!$D$30,$F$2:$G$44,2,FALSE)+ROW()-2))=Switch!$D$30,INDIRECT(\"a\" & (VLOOKUP(Switch!$D$30,$F$2:$G$44,2,FALSE)+ROW()-2)),\"\")","v":{"$error":"#N/A"}},{"$f":"IF(INDIRECT(\"c\" & (VLOOKUP(Switch!$D$31,$F$2:$G$44,2,FALSE)+ROW()-2))=Switch!$D$31,INDIRECT(\"a\" & (VLOOKUP(Switch!$D$31,$F$2:$G$44,2,FALSE)+ROW()-2)),\"\")","v":{"$error":"#N/A"}},{"$f":"IF(INDIRECT(\"c\" & (VLOOKUP(Switch!$D$32,$F$2:$G$44,2,FALSE)+ROW()-2))=Switch!$D$32,INDIRECT(\"a\" & (VLOOKUP(Switch!$D$32,$F$2:$G$44,2,FALSE)+ROW()-2)),\"\")","v":{"$error":"#N/A"}},{"$f":"IF(INDIRECT(\"c\" & (VLOOKUP(Switch!$D$33,$F$2:$G$44,2,FALSE)+ROW()-2))=Switch!$D$33,INDIRECT(\"a\" & (VLOOKUP(Switch!$D$33,$F$2:$G$44,2,FALSE)+ROW()-2)),\"\")","v":{"$error":"#N/A"}},{"$f":"IF(INDIRECT(\"c\" & (VLOOKUP(Switch!$D$34,$F$2:$G$44,2,FALSE)+ROW()-2))=Switch!$D$34,INDIRECT(\"a\" & (VLOOKUP(Switch!$D$34,$F$2:$G$44,2,FALSE)+ROW()-2)),\"\")","v":{"$error":"#N/A"}},{"$f":"IF(INDIRECT(\"c\" & (VLOOKUP(Switch!$D$35,$F$2:$G$44,2,FALSE)+ROW()-2))=Switch!$D$35,INDIRECT(\"a\" & (VLOOKUP(Switch!$D$35,$F$2:$G$44,2,FALSE)+ROW()-2)),\"\")","v":{"$error":"#N/A"}},{"$f":"IF(INDIRECT(\"c\" & (VLOOKUP(Switch!$D$36,$F$2:$G$44,2,FALSE)+ROW()-2))=Switch!$D$36,INDIRECT(\"a\" & (VLOOKUP(Switch!$D$36,$F$2:$G$44,2,FALSE)+ROW()-2)),\"\")","v":{"$error":"#N/A"}},{"$f":"IF(INDIRECT(\"c\" & (VLOOKUP(Switch!$D$37,$F$2:$G$44,2,FALSE)+ROW()-2))=Switch!$D$37,INDIRECT(\"a\" & (VLOOKUP(Switch!$D$37,$F$2:$G$44,2,FALSE)+ROW()-2)),\"\")","v":{"$error":"#N/A"}},{"$f":"IF(INDIRECT(\"c\" & (VLOOKUP(Switch!$D$38,$F$2:$G$44,2,FALSE)+ROW()-2))=Switch!$D$38,INDIRECT(\"a\" & (VLOOKUP(Switch!$D$38,$F$2:$G$44,2,FALSE)+ROW()-2)),\"\")","v":{"$error":"#N/A"}},{"$f":"IF(INDIRECT(\"c\" & (VLOOKUP(Switch!$D$39,$F$2:$G$44,2,FALSE)+ROW()-2))=Switch!$D$39,INDIRECT(\"a\" & (VLOOKUP(Switch!$D$39,$F$2:$G$44,2,FALSE)+ROW()-2)),\"\")","v":{"$error":"#N/A"}},{"$f":"IF(INDIRECT(\"c\" & (VLOOKUP(Switch!$D$40,$F$2:$G$44,2,FALSE)+ROW()-2))=Switch!$D$40,INDIRECT(\"a\" & (VLOOKUP(Switch!$D$40,$F$2:$G$44,2,FALSE)+ROW()-2)),\"\")","v":{"$error":"#N/A"}},{"$f":"IF(INDIRECT(\"c\" & (VLOOKUP(Switch!$D$52,$F$2:$G$44,2,FALSE)+ROW()-2))=Switch!$D$52,INDIRECT(\"a\" & (VLOOKUP(Switch!$D$52,$F$2:$G$44,2,FALSE)+ROW()-2)),\"\")","v":{"$error":"#N/A"}},{"$f":"IF(INDIRECT(\"c\" & (VLOOKUP(Switch!$D$53,$F$2:$G$44,2,FALSE)+ROW()-2))=Switch!$D$53,INDIRECT(\"a\" & (VLOOKUP(Switch!$D$53,$F$2:$G$44,2,FALSE)+ROW()-2)),\"\")","v":{"$error":"#N/A"}},{"$f":"IF(INDIRECT(\"c\" & (VLOOKUP(Switch!$D$54,$F$2:$G$44,2,FALSE)+ROW()-2))=Switch!$D$54,INDIRECT(\"a\" & (VLOOKUP(Switch!$D$54,$F$2:$G$44,2,FALSE)+ROW()-2)),\"\")","v":{"$error":"#N/A"}},{"$f":"IF(INDIRECT(\"c\" & (VLOOKUP(Switch!$D$55,$F$2:$G$44,2,FALSE)+ROW()-2))=Switch!$D$55,INDIRECT(\"a\" & (VLOOKUP(Switch!$D$55,$F$2:$G$44,2,FALSE)+ROW()-2)),\"\")","v":{"$error":"#N/A"}},{"$f":"IF(INDIRECT(\"c\" & (VLOOKUP(Switch!$D$56,$F$2:$G$44,2,FALSE)+ROW()-2))=Switch!$D$56,INDIRECT(\"a\" & (VLOOKUP(Switch!$D$56,$F$2:$G$44,2,FALSE)+ROW()-2)),\"\")","v":{"$error":"#N/A"}},{"$f":"IF(INDIRECT(\"c\" & (VLOOKUP(Switch!$D$57,$F$2:$G$44,2,FALSE)+ROW()-2))=Switch!$D$57,INDIRECT(\"a\" & (VLOOKUP(Switch!$D$57,$F$2:$G$44,2,FALSE)+ROW()-2)),\"\")","v":{"$error":"#N/A"}},{"$f":"IF(INDIRECT(\"c\" & (VLOOKUP(Switch!$D$58,$F$2:$G$44,2,FALSE)+ROW()-2))=Switch!$D$58,INDIRECT(\"a\" & (VLOOKUP(Switch!$D$58,$F$2:$G$44,2,FALSE)+ROW()-2)),\"\")","v":{"$error":"#N/A"}},{"$f":"IF(INDIRECT(\"c\" & (VLOOKUP(Switch!$D$59,$F$2:$G$44,2,FALSE)+ROW()-2))=Switch!$D$59,INDIRECT(\"a\" & (VLOOKUP(Switch!$D$59,$F$2:$G$44,2,FALSE)+ROW()-2)),\"\")","v":{"$error":"#N/A"}},{"$f":"IF(INDIRECT(\"c\" & (VLOOKUP(Switch!$D$60,$F$2:$G$44,2,FALSE)+ROW()-2))=Switch!$D$60,INDIRECT(\"a\" & (VLOOKUP(Switch!$D$60,$F$2:$G$44,2,FALSE)+ROW()-2)),\"\")","v":{"$error":"#N/A"}},{"$f":"IF(INDIRECT(\"c\" & (VLOOKUP(Switch!$D$61,$F$2:$G$44,2,FALSE)+ROW()-2))=Switch!$D$61,INDIRECT(\"a\" & (VLOOKUP(Switch!$D$61,$F$2:$G$44,2,FALSE)+ROW()-2)),\"\")","v":{"$error":"#N/A"}},{"$f":"IF(INDIRECT(\"c\" & (VLOOKUP(Switch!$D$62,$F$2:$G$44,2,FALSE)+ROW()-2))=Switch!$D$62,INDIRECT(\"a\" & (VLOOKUP(Switch!$D$62,$F$2:$G$44,2,FALSE)+ROW()-2)),\"\")","v":{"$error":"#N/A"}},{"$f":"IF(INDIRECT(\"c\" & (VLOOKUP(Switch!$D$63,$F$2:$G$44,2,FALSE)+ROW()-2))=Switch!$D$63,INDIRECT(\"a\" & (VLOOKUP(Switch!$D$63,$F$2:$G$44,2,FALSE)+ROW()-2)),\"\")","v":{"$error":"#N/A"}},{"$f":"IF(INDIRECT(\"c\" & (VLOOKUP(Switch!$D$64,$F$2:$G$44,2,FALSE)+ROW()-2))=Switch!$D$64,INDIRECT(\"a\" & (VLOOKUP(Switch!$D$64,$F$2:$G$44,2,FALSE)+ROW()-2)),\"\")","v":{"$error":"#N/A"}},{"$f":"IF(INDIRECT(\"c\" & (VLOOKUP(Switch!$D$65,$F$2:$G$44,2,FALSE)+ROW()-2))=Switch!$D$65,INDIRECT(\"a\" & (VLOOKUP(Switch!$D$65,$F$2:$G$44,2,FALSE)+ROW()-2)),\"\")","v":{"$error":"#N/A"}},{"$f":"IF(INDIRECT(\"c\" & (VLOOKUP(Switch!$D$66,$F$2:$G$44,2,FALSE)+ROW()-2))=Switch!$D$66,INDIRECT(\"a\" & (VLOOKUP(Switch!$D$66,$F$2:$G$44,2,FALSE)+ROW()-2)),\"\")","v":{"$error":"#N/A"}}]
["Coronation Optimum Growth Fund P","COGFB4","Coronation Management Company",{"$f":"ROW()","v":237},null,null,{"$f":"VLOOKUP(F237,$C$2:$D$637,2,FALSE)","v":{"$error":"#N/A"}},{"$f":"IF(INDIRECT(\"c\" & (VLOOKUP(Switch!$D$26,$F$2:$G$44,2,FALSE)+ROW()-2))=Switch!$D$26,INDIRECT(\"a\" & (VLOOKUP(Switch!$D$26,$F$2:$G$44,2,FALSE)+ROW()-2)),\"\")","v":{"$error":"#N/A"}},{"$f":"IF(INDIRECT(\"c\" & (VLOOKUP(Switch!$D$27,$F$2:$G$44,2,FALSE)+ROW()-2))=Switch!$D$27,INDIRECT(\"a\" & (VLOOKUP(Switch!$D$27,$F$2:$G$44,2,FALSE)+ROW()-2)),\"\")","v":{"$error":"#N/A"}},{"$f":"IF(INDIRECT(\"c\" & (VLOOKUP(Switch!$D$28,$F$2:$G$44,2,FALSE)+ROW()-2))=Switch!$D$28,INDIRECT(\"a\" & (VLOOKUP(Switch!$D$28,$F$2:$G$44,2,FALSE)+ROW()-2)),\"\")","v":{"$error":"#N/A"}},{"$f":"IF(INDIRECT(\"c\" & (VLOOKUP(Switch!$D$29,$F$2:$G$44,2,FALSE)+ROW()-2))=Switch!$D$29,INDIRECT(\"a\" & (VLOOKUP(Switch!$D$29,$F$2:$G$44,2,FALSE)+ROW()-2)),\"\")","v":{"$error":"#N/A"}},{"$f":"IF(INDIRECT(\"c\" & (VLOOKUP(Switch!$D$30,$F$2:$G$44,2,FALSE)+ROW()-2))=Switch!$D$30,INDIRECT(\"a\" & (VLOOKUP(Switch!$D$30,$F$2:$G$44,2,FALSE)+ROW()-2)),\"\")","v":{"$error":"#N/A"}},{"$f":"IF(INDIRECT(\"c\" & (VLOOKUP(Switch!$D$31,$F$2:$G$44,2,FALSE)+ROW()-2))=Switch!$D$31,INDIRECT(\"a\" & (VLOOKUP(Switch!$D$31,$F$2:$G$44,2,FALSE)+ROW()-2)),\"\")","v":{"$error":"#N/A"}},{"$f":"IF(INDIRECT(\"c\" & (VLOOKUP(Switch!$D$32,$F$2:$G$44,2,FALSE)+ROW()-2))=Switch!$D$32,INDIRECT(\"a\" & (VLOOKUP(Switch!$D$32,$F$2:$G$44,2,FALSE)+ROW()-2)),\"\")","v":{"$error":"#N/A"}},{"$f":"IF(INDIRECT(\"c\" & (VLOOKUP(Switch!$D$33,$F$2:$G$44,2,FALSE)+ROW()-2))=Switch!$D$33,INDIRECT(\"a\" & (VLOOKUP(Switch!$D$33,$F$2:$G$44,2,FALSE)+ROW()-2)),\"\")","v":{"$error":"#N/A"}},{"$f":"IF(INDIRECT(\"c\" & (VLOOKUP(Switch!$D$34,$F$2:$G$44,2,FALSE)+ROW()-2))=Switch!$D$34,INDIRECT(\"a\" & (VLOOKUP(Switch!$D$34,$F$2:$G$44,2,FALSE)+ROW()-2)),\"\")","v":{"$error":"#N/A"}},{"$f":"IF(INDIRECT(\"c\" & (VLOOKUP(Switch!$D$35,$F$2:$G$44,2,FALSE)+ROW()-2))=Switch!$D$35,INDIRECT(\"a\" & (VLOOKUP(Switch!$D$35,$F$2:$G$44,2,FALSE)+ROW()-2)),\"\")","v":{"$error":"#N/A"}},{"$f":"IF(INDIRECT(\"c\" & (VLOOKUP(Switch!$D$36,$F$2:$G$44,2,FALSE)+ROW()-2))=Switch!$D$36,INDIRECT(\"a\" & (VLOOKUP(Switch!$D$36,$F$2:$G$44,2,FALSE)+ROW()-2)),\"\")","v":{"$error":"#N/A"}},{"$f":"IF(INDIRECT(\"c\" & (VLOOKUP(Switch!$D$37,$F$2:$G$44,2,FALSE)+ROW()-2))=Switch!$D$37,INDIRECT(\"a\" & (VLOOKUP(Switch!$D$37,$F$2:$G$44,2,FALSE)+ROW()-2)),\"\")","v":{"$error":"#N/A"}},{"$f":"IF(INDIRECT(\"c\" & (VLOOKUP(Switch!$D$38,$F$2:$G$44,2,FALSE)+ROW()-2))=Switch!$D$38,INDIRECT(\"a\" & (VLOOKUP(Switch!$D$38,$F$2:$G$44,2,FALSE)+ROW()-2)),\"\")","v":{"$error":"#N/A"}},{"$f":"IF(INDIRECT(\"c\" & (VLOOKUP(Switch!$D$39,$F$2:$G$44,2,FALSE)+ROW()-2))=Switch!$D$39,INDIRECT(\"a\" & (VLOOKUP(Switch!$D$39,$F$2:$G$44,2,FALSE)+ROW()-2)),\"\")","v":{"$error":"#N/A"}},{"$f":"IF(INDIRECT(\"c\" & (VLOOKUP(Switch!$D$40,$F$2:$G$44,2,FALSE)+ROW()-2))=Switch!$D$40,INDIRECT(\"a\" & (VLOOKUP(Switch!$D$40,$F$2:$G$44,2,FALSE)+ROW()-2)),\"\")","v":{"$error":"#N/A"}},{"$f":"IF(INDIRECT(\"c\" & (VLOOKUP(Switch!$D$52,$F$2:$G$44,2,FALSE)+ROW()-2))=Switch!$D$52,INDIRECT(\"a\" & (VLOOKUP(Switch!$D$52,$F$2:$G$44,2,FALSE)+ROW()-2)),\"\")","v":{"$error":"#N/A"}},{"$f":"IF(INDIRECT(\"c\" & (VLOOKUP(Switch!$D$53,$F$2:$G$44,2,FALSE)+ROW()-2))=Switch!$D$53,INDIRECT(\"a\" & (VLOOKUP(Switch!$D$53,$F$2:$G$44,2,FALSE)+ROW()-2)),\"\")","v":{"$error":"#N/A"}},{"$f":"IF(INDIRECT(\"c\" & (VLOOKUP(Switch!$D$54,$F$2:$G$44,2,FALSE)+ROW()-2))=Switch!$D$54,INDIRECT(\"a\" & (VLOOKUP(Switch!$D$54,$F$2:$G$44,2,FALSE)+ROW()-2)),\"\")","v":{"$error":"#N/A"}},{"$f":"IF(INDIRECT(\"c\" & (VLOOKUP(Switch!$D$55,$F$2:$G$44,2,FALSE)+ROW()-2))=Switch!$D$55,INDIRECT(\"a\" & (VLOOKUP(Switch!$D$55,$F$2:$G$44,2,FALSE)+ROW()-2)),\"\")","v":{"$error":"#N/A"}},{"$f":"IF(INDIRECT(\"c\" & (VLOOKUP(Switch!$D$56,$F$2:$G$44,2,FALSE)+ROW()-2))=Switch!$D$56,INDIRECT(\"a\" & (VLOOKUP(Switch!$D$56,$F$2:$G$44,2,FALSE)+ROW()-2)),\"\")","v":{"$error":"#N/A"}},{"$f":"IF(INDIRECT(\"c\" & (VLOOKUP(Switch!$D$57,$F$2:$G$44,2,FALSE)+ROW()-2))=Switch!$D$57,INDIRECT(\"a\" & (VLOOKUP(Switch!$D$57,$F$2:$G$44,2,FALSE)+ROW()-2)),\"\")","v":{"$error":"#N/A"}},{"$f":"IF(INDIRECT(\"c\" & (VLOOKUP(Switch!$D$58,$F$2:$G$44,2,FALSE)+ROW()-2))=Switch!$D$58,INDIRECT(\"a\" & (VLOOKUP(Switch!$D$58,$F$2:$G$44,2,FALSE)+ROW()-2)),\"\")","v":{"$error":"#N/A"}},{"$f":"IF(INDIRECT(\"c\" & (VLOOKUP(Switch!$D$59,$F$2:$G$44,2,FALSE)+ROW()-2))=Switch!$D$59,INDIRECT(\"a\" & (VLOOKUP(Switch!$D$59,$F$2:$G$44,2,FALSE)+ROW()-2)),\"\")","v":{"$error":"#N/A"}},{"$f":"IF(INDIRECT(\"c\" & (VLOOKUP(Switch!$D$60,$F$2:$G$44,2,FALSE)+ROW()-2))=Switch!$D$60,INDIRECT(\"a\" & (VLOOKUP(Switch!$D$60,$F$2:$G$44,2,FALSE)+ROW()-2)),\"\")","v":{"$error":"#N/A"}},{"$f":"IF(INDIRECT(\"c\" & (VLOOKUP(Switch!$D$61,$F$2:$G$44,2,FALSE)+ROW()-2))=Switch!$D$61,INDIRECT(\"a\" & (VLOOKUP(Switch!$D$61,$F$2:$G$44,2,FALSE)+ROW()-2)),\"\")","v":{"$error":"#N/A"}},{"$f":"IF(INDIRECT(\"c\" & (VLOOKUP(Switch!$D$62,$F$2:$G$44,2,FALSE)+ROW()-2))=Switch!$D$62,INDIRECT(\"a\" & (VLOOKUP(Switch!$D$62,$F$2:$G$44,2,FALSE)+ROW()-2)),\"\")","v":{"$error":"#N/A"}},{"$f":"IF(INDIRECT(\"c\" & (VLOOKUP(Switch!$D$63,$F$2:$G$44,2,FALSE)+ROW()-2))=Switch!$D$63,INDIRECT(\"a\" & (VLOOKUP(Switch!$D$63,$F$2:$G$44,2,FALSE)+ROW()-2)),\"\")","v":{"$error":"#N/A"}},{"$f":"IF(INDIRECT(\"c\" & (VLOOKUP(Switch!$D$64,$F$2:$G$44,2,FALSE)+ROW()-2))=Switch!$D$64,INDIRECT(\"a\" & (VLOOKUP(Switch!$D$64,$F$2:$G$44,2,FALSE)+ROW()-2)),\"\")","v":{"$error":"#N/A"}},{"$f":"IF(INDIRECT(\"c\" & (VLOOKUP(Switch!$D$65,$F$2:$G$44,2,FALSE)+ROW()-2))=Switch!$D$65,INDIRECT(\"a\" & (VLOOKUP(Switch!$D$65,$F$2:$G$44,2,FALSE)+ROW()-2)),\"\")","v":{"$error":"#N/A"}},{"$f":"IF(INDIRECT(\"c\" & (VLOOKUP(Switch!$D$66,$F$2:$G$44,2,FALSE)+ROW()-2))=Switch!$D$66,INDIRECT(\"a\" & (VLOOKUP(Switch!$D$66,$F$2:$G$44,2,FALSE)+ROW()-2)),\"\")","v":{"$error":"#N/A"}}]
["Coronation Property Equity Fund","CPEF","Coronation Management Company",{"$f":"ROW()","v":238},null,null,{"$f":"VLOOKUP(F238,$C$2:$D$637,2,FALSE)","v":{"$error":"#N/A"}},{"$f":"IF(INDIRECT(\"c\" & (VLOOKUP(Switch!$D$26,$F$2:$G$44,2,FALSE)+ROW()-2))=Switch!$D$26,INDIRECT(\"a\" & (VLOOKUP(Switch!$D$26,$F$2:$G$44,2,FALSE)+ROW()-2)),\"\")","v":{"$error":"#N/A"}},{"$f":"IF(INDIRECT(\"c\" & (VLOOKUP(Switch!$D$27,$F$2:$G$44,2,FALSE)+ROW()-2))=Switch!$D$27,INDIRECT(\"a\" & (VLOOKUP(Switch!$D$27,$F$2:$G$44,2,FALSE)+ROW()-2)),\"\")","v":{"$error":"#N/A"}},{"$f":"IF(INDIRECT(\"c\" & (VLOOKUP(Switch!$D$28,$F$2:$G$44,2,FALSE)+ROW()-2))=Switch!$D$28,INDIRECT(\"a\" & (VLOOKUP(Switch!$D$28,$F$2:$G$44,2,FALSE)+ROW()-2)),\"\")","v":{"$error":"#N/A"}},{"$f":"IF(INDIRECT(\"c\" & (VLOOKUP(Switch!$D$29,$F$2:$G$44,2,FALSE)+ROW()-2))=Switch!$D$29,INDIRECT(\"a\" & (VLOOKUP(Switch!$D$29,$F$2:$G$44,2,FALSE)+ROW()-2)),\"\")","v":{"$error":"#N/A"}},{"$f":"IF(INDIRECT(\"c\" & (VLOOKUP(Switch!$D$30,$F$2:$G$44,2,FALSE)+ROW()-2))=Switch!$D$30,INDIRECT(\"a\" & (VLOOKUP(Switch!$D$30,$F$2:$G$44,2,FALSE)+ROW()-2)),\"\")","v":{"$error":"#N/A"}},{"$f":"IF(INDIRECT(\"c\" & (VLOOKUP(Switch!$D$31,$F$2:$G$44,2,FALSE)+ROW()-2))=Switch!$D$31,INDIRECT(\"a\" & (VLOOKUP(Switch!$D$31,$F$2:$G$44,2,FALSE)+ROW()-2)),\"\")","v":{"$error":"#N/A"}},{"$f":"IF(INDIRECT(\"c\" & (VLOOKUP(Switch!$D$32,$F$2:$G$44,2,FALSE)+ROW()-2))=Switch!$D$32,INDIRECT(\"a\" & (VLOOKUP(Switch!$D$32,$F$2:$G$44,2,FALSE)+ROW()-2)),\"\")","v":{"$error":"#N/A"}},{"$f":"IF(INDIRECT(\"c\" & (VLOOKUP(Switch!$D$33,$F$2:$G$44,2,FALSE)+ROW()-2))=Switch!$D$33,INDIRECT(\"a\" & (VLOOKUP(Switch!$D$33,$F$2:$G$44,2,FALSE)+ROW()-2)),\"\")","v":{"$error":"#N/A"}},{"$f":"IF(INDIRECT(\"c\" & (VLOOKUP(Switch!$D$34,$F$2:$G$44,2,FALSE)+ROW()-2))=Switch!$D$34,INDIRECT(\"a\" & (VLOOKUP(Switch!$D$34,$F$2:$G$44,2,FALSE)+ROW()-2)),\"\")","v":{"$error":"#N/A"}},{"$f":"IF(INDIRECT(\"c\" & (VLOOKUP(Switch!$D$35,$F$2:$G$44,2,FALSE)+ROW()-2))=Switch!$D$35,INDIRECT(\"a\" & (VLOOKUP(Switch!$D$35,$F$2:$G$44,2,FALSE)+ROW()-2)),\"\")","v":{"$error":"#N/A"}},{"$f":"IF(INDIRECT(\"c\" & (VLOOKUP(Switch!$D$36,$F$2:$G$44,2,FALSE)+ROW()-2))=Switch!$D$36,INDIRECT(\"a\" & (VLOOKUP(Switch!$D$36,$F$2:$G$44,2,FALSE)+ROW()-2)),\"\")","v":{"$error":"#N/A"}},{"$f":"IF(INDIRECT(\"c\" & (VLOOKUP(Switch!$D$37,$F$2:$G$44,2,FALSE)+ROW()-2))=Switch!$D$37,INDIRECT(\"a\" & (VLOOKUP(Switch!$D$37,$F$2:$G$44,2,FALSE)+ROW()-2)),\"\")","v":{"$error":"#N/A"}},{"$f":"IF(INDIRECT(\"c\" & (VLOOKUP(Switch!$D$38,$F$2:$G$44,2,FALSE)+ROW()-2))=Switch!$D$38,INDIRECT(\"a\" & (VLOOKUP(Switch!$D$38,$F$2:$G$44,2,FALSE)+ROW()-2)),\"\")","v":{"$error":"#N/A"}},{"$f":"IF(INDIRECT(\"c\" & (VLOOKUP(Switch!$D$39,$F$2:$G$44,2,FALSE)+ROW()-2))=Switch!$D$39,INDIRECT(\"a\" & (VLOOKUP(Switch!$D$39,$F$2:$G$44,2,FALSE)+ROW()-2)),\"\")","v":{"$error":"#N/A"}},{"$f":"IF(INDIRECT(\"c\" & (VLOOKUP(Switch!$D$40,$F$2:$G$44,2,FALSE)+ROW()-2))=Switch!$D$40,INDIRECT(\"a\" & (VLOOKUP(Switch!$D$40,$F$2:$G$44,2,FALSE)+ROW()-2)),\"\")","v":{"$error":"#N/A"}},{"$f":"IF(INDIRECT(\"c\" & (VLOOKUP(Switch!$D$52,$F$2:$G$44,2,FALSE)+ROW()-2))=Switch!$D$52,INDIRECT(\"a\" & (VLOOKUP(Switch!$D$52,$F$2:$G$44,2,FALSE)+ROW()-2)),\"\")","v":{"$error":"#N/A"}},{"$f":"IF(INDIRECT(\"c\" & (VLOOKUP(Switch!$D$53,$F$2:$G$44,2,FALSE)+ROW()-2))=Switch!$D$53,INDIRECT(\"a\" & (VLOOKUP(Switch!$D$53,$F$2:$G$44,2,FALSE)+ROW()-2)),\"\")","v":{"$error":"#N/A"}},{"$f":"IF(INDIRECT(\"c\" & (VLOOKUP(Switch!$D$54,$F$2:$G$44,2,FALSE)+ROW()-2))=Switch!$D$54,INDIRECT(\"a\" & (VLOOKUP(Switch!$D$54,$F$2:$G$44,2,FALSE)+ROW()-2)),\"\")","v":{"$error":"#N/A"}},{"$f":"IF(INDIRECT(\"c\" & (VLOOKUP(Switch!$D$55,$F$2:$G$44,2,FALSE)+ROW()-2))=Switch!$D$55,INDIRECT(\"a\" & (VLOOKUP(Switch!$D$55,$F$2:$G$44,2,FALSE)+ROW()-2)),\"\")","v":{"$error":"#N/A"}},{"$f":"IF(INDIRECT(\"c\" & (VLOOKUP(Switch!$D$56,$F$2:$G$44,2,FALSE)+ROW()-2))=Switch!$D$56,INDIRECT(\"a\" & (VLOOKUP(Switch!$D$56,$F$2:$G$44,2,FALSE)+ROW()-2)),\"\")","v":{"$error":"#N/A"}},{"$f":"IF(INDIRECT(\"c\" & (VLOOKUP(Switch!$D$57,$F$2:$G$44,2,FALSE)+ROW()-2))=Switch!$D$57,INDIRECT(\"a\" & (VLOOKUP(Switch!$D$57,$F$2:$G$44,2,FALSE)+ROW()-2)),\"\")","v":{"$error":"#N/A"}},{"$f":"IF(INDIRECT(\"c\" & (VLOOKUP(Switch!$D$58,$F$2:$G$44,2,FALSE)+ROW()-2))=Switch!$D$58,INDIRECT(\"a\" & (VLOOKUP(Switch!$D$58,$F$2:$G$44,2,FALSE)+ROW()-2)),\"\")","v":{"$error":"#N/A"}},{"$f":"IF(INDIRECT(\"c\" & (VLOOKUP(Switch!$D$59,$F$2:$G$44,2,FALSE)+ROW()-2))=Switch!$D$59,INDIRECT(\"a\" & (VLOOKUP(Switch!$D$59,$F$2:$G$44,2,FALSE)+ROW()-2)),\"\")","v":{"$error":"#N/A"}},{"$f":"IF(INDIRECT(\"c\" & (VLOOKUP(Switch!$D$60,$F$2:$G$44,2,FALSE)+ROW()-2))=Switch!$D$60,INDIRECT(\"a\" & (VLOOKUP(Switch!$D$60,$F$2:$G$44,2,FALSE)+ROW()-2)),\"\")","v":{"$error":"#N/A"}},{"$f":"IF(INDIRECT(\"c\" & (VLOOKUP(Switch!$D$61,$F$2:$G$44,2,FALSE)+ROW()-2))=Switch!$D$61,INDIRECT(\"a\" & (VLOOKUP(Switch!$D$61,$F$2:$G$44,2,FALSE)+ROW()-2)),\"\")","v":{"$error":"#N/A"}},{"$f":"IF(INDIRECT(\"c\" & (VLOOKUP(Switch!$D$62,$F$2:$G$44,2,FALSE)+ROW()-2))=Switch!$D$62,INDIRECT(\"a\" & (VLOOKUP(Switch!$D$62,$F$2:$G$44,2,FALSE)+ROW()-2)),\"\")","v":{"$error":"#N/A"}},{"$f":"IF(INDIRECT(\"c\" & (VLOOKUP(Switch!$D$63,$F$2:$G$44,2,FALSE)+ROW()-2))=Switch!$D$63,INDIRECT(\"a\" & (VLOOKUP(Switch!$D$63,$F$2:$G$44,2,FALSE)+ROW()-2)),\"\")","v":{"$error":"#N/A"}},{"$f":"IF(INDIRECT(\"c\" & (VLOOKUP(Switch!$D$64,$F$2:$G$44,2,FALSE)+ROW()-2))=Switch!$D$64,INDIRECT(\"a\" & (VLOOKUP(Switch!$D$64,$F$2:$G$44,2,FALSE)+ROW()-2)),\"\")","v":{"$error":"#N/A"}},{"$f":"IF(INDIRECT(\"c\" & (VLOOKUP(Switch!$D$65,$F$2:$G$44,2,FALSE)+ROW()-2))=Switch!$D$65,INDIRECT(\"a\" & (VLOOKUP(Switch!$D$65,$F$2:$G$44,2,FALSE)+ROW()-2)),\"\")","v":{"$error":"#N/A"}},{"$f":"IF(INDIRECT(\"c\" & (VLOOKUP(Switch!$D$66,$F$2:$G$44,2,FALSE)+ROW()-2))=Switch!$D$66,INDIRECT(\"a\" & (VLOOKUP(Switch!$D$66,$F$2:$G$44,2,FALSE)+ROW()-2)),\"\")","v":{"$error":"#N/A"}}]
["Coronation Strategic Income Fund P","CSIB4","Coronation Management Company",{"$f":"ROW()","v":239},null,null,{"$f":"VLOOKUP(F239,$C$2:$D$637,2,FALSE)","v":{"$error":"#N/A"}},{"$f":"IF(INDIRECT(\"c\" & (VLOOKUP(Switch!$D$26,$F$2:$G$44,2,FALSE)+ROW()-2))=Switch!$D$26,INDIRECT(\"a\" & (VLOOKUP(Switch!$D$26,$F$2:$G$44,2,FALSE)+ROW()-2)),\"\")","v":{"$error":"#N/A"}},{"$f":"IF(INDIRECT(\"c\" & (VLOOKUP(Switch!$D$27,$F$2:$G$44,2,FALSE)+ROW()-2))=Switch!$D$27,INDIRECT(\"a\" & (VLOOKUP(Switch!$D$27,$F$2:$G$44,2,FALSE)+ROW()-2)),\"\")","v":{"$error":"#N/A"}},{"$f":"IF(INDIRECT(\"c\" & (VLOOKUP(Switch!$D$28,$F$2:$G$44,2,FALSE)+ROW()-2))=Switch!$D$28,INDIRECT(\"a\" & (VLOOKUP(Switch!$D$28,$F$2:$G$44,2,FALSE)+ROW()-2)),\"\")","v":{"$error":"#N/A"}},{"$f":"IF(INDIRECT(\"c\" & (VLOOKUP(Switch!$D$29,$F$2:$G$44,2,FALSE)+ROW()-2))=Switch!$D$29,INDIRECT(\"a\" & (VLOOKUP(Switch!$D$29,$F$2:$G$44,2,FALSE)+ROW()-2)),\"\")","v":{"$error":"#N/A"}},{"$f":"IF(INDIRECT(\"c\" & (VLOOKUP(Switch!$D$30,$F$2:$G$44,2,FALSE)+ROW()-2))=Switch!$D$30,INDIRECT(\"a\" & (VLOOKUP(Switch!$D$30,$F$2:$G$44,2,FALSE)+ROW()-2)),\"\")","v":{"$error":"#N/A"}},{"$f":"IF(INDIRECT(\"c\" & (VLOOKUP(Switch!$D$31,$F$2:$G$44,2,FALSE)+ROW()-2))=Switch!$D$31,INDIRECT(\"a\" & (VLOOKUP(Switch!$D$31,$F$2:$G$44,2,FALSE)+ROW()-2)),\"\")","v":{"$error":"#N/A"}},{"$f":"IF(INDIRECT(\"c\" & (VLOOKUP(Switch!$D$32,$F$2:$G$44,2,FALSE)+ROW()-2))=Switch!$D$32,INDIRECT(\"a\" & (VLOOKUP(Switch!$D$32,$F$2:$G$44,2,FALSE)+ROW()-2)),\"\")","v":{"$error":"#N/A"}},{"$f":"IF(INDIRECT(\"c\" & (VLOOKUP(Switch!$D$33,$F$2:$G$44,2,FALSE)+ROW()-2))=Switch!$D$33,INDIRECT(\"a\" & (VLOOKUP(Switch!$D$33,$F$2:$G$44,2,FALSE)+ROW()-2)),\"\")","v":{"$error":"#N/A"}},{"$f":"IF(INDIRECT(\"c\" & (VLOOKUP(Switch!$D$34,$F$2:$G$44,2,FALSE)+ROW()-2))=Switch!$D$34,INDIRECT(\"a\" & (VLOOKUP(Switch!$D$34,$F$2:$G$44,2,FALSE)+ROW()-2)),\"\")","v":{"$error":"#N/A"}},{"$f":"IF(INDIRECT(\"c\" & (VLOOKUP(Switch!$D$35,$F$2:$G$44,2,FALSE)+ROW()-2))=Switch!$D$35,INDIRECT(\"a\" & (VLOOKUP(Switch!$D$35,$F$2:$G$44,2,FALSE)+ROW()-2)),\"\")","v":{"$error":"#N/A"}},{"$f":"IF(INDIRECT(\"c\" & (VLOOKUP(Switch!$D$36,$F$2:$G$44,2,FALSE)+ROW()-2))=Switch!$D$36,INDIRECT(\"a\" & (VLOOKUP(Switch!$D$36,$F$2:$G$44,2,FALSE)+ROW()-2)),\"\")","v":{"$error":"#N/A"}},{"$f":"IF(INDIRECT(\"c\" & (VLOOKUP(Switch!$D$37,$F$2:$G$44,2,FALSE)+ROW()-2))=Switch!$D$37,INDIRECT(\"a\" & (VLOOKUP(Switch!$D$37,$F$2:$G$44,2,FALSE)+ROW()-2)),\"\")","v":{"$error":"#N/A"}},{"$f":"IF(INDIRECT(\"c\" & (VLOOKUP(Switch!$D$38,$F$2:$G$44,2,FALSE)+ROW()-2))=Switch!$D$38,INDIRECT(\"a\" & (VLOOKUP(Switch!$D$38,$F$2:$G$44,2,FALSE)+ROW()-2)),\"\")","v":{"$error":"#N/A"}},{"$f":"IF(INDIRECT(\"c\" & (VLOOKUP(Switch!$D$39,$F$2:$G$44,2,FALSE)+ROW()-2))=Switch!$D$39,INDIRECT(\"a\" & (VLOOKUP(Switch!$D$39,$F$2:$G$44,2,FALSE)+ROW()-2)),\"\")","v":{"$error":"#N/A"}},{"$f":"IF(INDIRECT(\"c\" & (VLOOKUP(Switch!$D$40,$F$2:$G$44,2,FALSE)+ROW()-2))=Switch!$D$40,INDIRECT(\"a\" & (VLOOKUP(Switch!$D$40,$F$2:$G$44,2,FALSE)+ROW()-2)),\"\")","v":{"$error":"#N/A"}},{"$f":"IF(INDIRECT(\"c\" & (VLOOKUP(Switch!$D$52,$F$2:$G$44,2,FALSE)+ROW()-2))=Switch!$D$52,INDIRECT(\"a\" & (VLOOKUP(Switch!$D$52,$F$2:$G$44,2,FALSE)+ROW()-2)),\"\")","v":{"$error":"#N/A"}},{"$f":"IF(INDIRECT(\"c\" & (VLOOKUP(Switch!$D$53,$F$2:$G$44,2,FALSE)+ROW()-2))=Switch!$D$53,INDIRECT(\"a\" & (VLOOKUP(Switch!$D$53,$F$2:$G$44,2,FALSE)+ROW()-2)),\"\")","v":{"$error":"#N/A"}},{"$f":"IF(INDIRECT(\"c\" & (VLOOKUP(Switch!$D$54,$F$2:$G$44,2,FALSE)+ROW()-2))=Switch!$D$54,INDIRECT(\"a\" & (VLOOKUP(Switch!$D$54,$F$2:$G$44,2,FALSE)+ROW()-2)),\"\")","v":{"$error":"#N/A"}},{"$f":"IF(INDIRECT(\"c\" & (VLOOKUP(Switch!$D$55,$F$2:$G$44,2,FALSE)+ROW()-2))=Switch!$D$55,INDIRECT(\"a\" & (VLOOKUP(Switch!$D$55,$F$2:$G$44,2,FALSE)+ROW()-2)),\"\")","v":{"$error":"#N/A"}},{"$f":"IF(INDIRECT(\"c\" & (VLOOKUP(Switch!$D$56,$F$2:$G$44,2,FALSE)+ROW()-2))=Switch!$D$56,INDIRECT(\"a\" & (VLOOKUP(Switch!$D$56,$F$2:$G$44,2,FALSE)+ROW()-2)),\"\")","v":{"$error":"#N/A"}},{"$f":"IF(INDIRECT(\"c\" & (VLOOKUP(Switch!$D$57,$F$2:$G$44,2,FALSE)+ROW()-2))=Switch!$D$57,INDIRECT(\"a\" & (VLOOKUP(Switch!$D$57,$F$2:$G$44,2,FALSE)+ROW()-2)),\"\")","v":{"$error":"#N/A"}},{"$f":"IF(INDIRECT(\"c\" & (VLOOKUP(Switch!$D$58,$F$2:$G$44,2,FALSE)+ROW()-2))=Switch!$D$58,INDIRECT(\"a\" & (VLOOKUP(Switch!$D$58,$F$2:$G$44,2,FALSE)+ROW()-2)),\"\")","v":{"$error":"#N/A"}},{"$f":"IF(INDIRECT(\"c\" & (VLOOKUP(Switch!$D$59,$F$2:$G$44,2,FALSE)+ROW()-2))=Switch!$D$59,INDIRECT(\"a\" & (VLOOKUP(Switch!$D$59,$F$2:$G$44,2,FALSE)+ROW()-2)),\"\")","v":{"$error":"#N/A"}},{"$f":"IF(INDIRECT(\"c\" & (VLOOKUP(Switch!$D$60,$F$2:$G$44,2,FALSE)+ROW()-2))=Switch!$D$60,INDIRECT(\"a\" & (VLOOKUP(Switch!$D$60,$F$2:$G$44,2,FALSE)+ROW()-2)),\"\")","v":{"$error":"#N/A"}},{"$f":"IF(INDIRECT(\"c\" & (VLOOKUP(Switch!$D$61,$F$2:$G$44,2,FALSE)+ROW()-2))=Switch!$D$61,INDIRECT(\"a\" & (VLOOKUP(Switch!$D$61,$F$2:$G$44,2,FALSE)+ROW()-2)),\"\")","v":{"$error":"#N/A"}},{"$f":"IF(INDIRECT(\"c\" & (VLOOKUP(Switch!$D$62,$F$2:$G$44,2,FALSE)+ROW()-2))=Switch!$D$62,INDIRECT(\"a\" & (VLOOKUP(Switch!$D$62,$F$2:$G$44,2,FALSE)+ROW()-2)),\"\")","v":{"$error":"#N/A"}},{"$f":"IF(INDIRECT(\"c\" & (VLOOKUP(Switch!$D$63,$F$2:$G$44,2,FALSE)+ROW()-2))=Switch!$D$63,INDIRECT(\"a\" & (VLOOKUP(Switch!$D$63,$F$2:$G$44,2,FALSE)+ROW()-2)),\"\")","v":{"$error":"#N/A"}},{"$f":"IF(INDIRECT(\"c\" & (VLOOKUP(Switch!$D$64,$F$2:$G$44,2,FALSE)+ROW()-2))=Switch!$D$64,INDIRECT(\"a\" & (VLOOKUP(Switch!$D$64,$F$2:$G$44,2,FALSE)+ROW()-2)),\"\")","v":{"$error":"#N/A"}},{"$f":"IF(INDIRECT(\"c\" & (VLOOKUP(Switch!$D$65,$F$2:$G$44,2,FALSE)+ROW()-2))=Switch!$D$65,INDIRECT(\"a\" & (VLOOKUP(Switch!$D$65,$F$2:$G$44,2,FALSE)+ROW()-2)),\"\")","v":{"$error":"#N/A"}},{"$f":"IF(INDIRECT(\"c\" & (VLOOKUP(Switch!$D$66,$F$2:$G$44,2,FALSE)+ROW()-2))=Switch!$D$66,INDIRECT(\"a\" & (VLOOKUP(Switch!$D$66,$F$2:$G$44,2,FALSE)+ROW()-2)),\"\")","v":{"$error":"#N/A"}}]
["Coronation Top 20 Fund P","CTTB4","Coronation Management Company",{"$f":"ROW()","v":240},null,null,{"$f":"VLOOKUP(F240,$C$2:$D$637,2,FALSE)","v":{"$error":"#N/A"}},{"$f":"IF(INDIRECT(\"c\" & (VLOOKUP(Switch!$D$26,$F$2:$G$44,2,FALSE)+ROW()-2))=Switch!$D$26,INDIRECT(\"a\" & (VLOOKUP(Switch!$D$26,$F$2:$G$44,2,FALSE)+ROW()-2)),\"\")","v":{"$error":"#N/A"}},{"$f":"IF(INDIRECT(\"c\" & (VLOOKUP(Switch!$D$27,$F$2:$G$44,2,FALSE)+ROW()-2))=Switch!$D$27,INDIRECT(\"a\" & (VLOOKUP(Switch!$D$27,$F$2:$G$44,2,FALSE)+ROW()-2)),\"\")","v":{"$error":"#N/A"}},{"$f":"IF(INDIRECT(\"c\" & (VLOOKUP(Switch!$D$28,$F$2:$G$44,2,FALSE)+ROW()-2))=Switch!$D$28,INDIRECT(\"a\" & (VLOOKUP(Switch!$D$28,$F$2:$G$44,2,FALSE)+ROW()-2)),\"\")","v":{"$error":"#N/A"}},{"$f":"IF(INDIRECT(\"c\" & (VLOOKUP(Switch!$D$29,$F$2:$G$44,2,FALSE)+ROW()-2))=Switch!$D$29,INDIRECT(\"a\" & (VLOOKUP(Switch!$D$29,$F$2:$G$44,2,FALSE)+ROW()-2)),\"\")","v":{"$error":"#N/A"}},{"$f":"IF(INDIRECT(\"c\" & (VLOOKUP(Switch!$D$30,$F$2:$G$44,2,FALSE)+ROW()-2))=Switch!$D$30,INDIRECT(\"a\" & (VLOOKUP(Switch!$D$30,$F$2:$G$44,2,FALSE)+ROW()-2)),\"\")","v":{"$error":"#N/A"}},{"$f":"IF(INDIRECT(\"c\" & (VLOOKUP(Switch!$D$31,$F$2:$G$44,2,FALSE)+ROW()-2))=Switch!$D$31,INDIRECT(\"a\" & (VLOOKUP(Switch!$D$31,$F$2:$G$44,2,FALSE)+ROW()-2)),\"\")","v":{"$error":"#N/A"}},{"$f":"IF(INDIRECT(\"c\" & (VLOOKUP(Switch!$D$32,$F$2:$G$44,2,FALSE)+ROW()-2))=Switch!$D$32,INDIRECT(\"a\" & (VLOOKUP(Switch!$D$32,$F$2:$G$44,2,FALSE)+ROW()-2)),\"\")","v":{"$error":"#N/A"}},{"$f":"IF(INDIRECT(\"c\" & (VLOOKUP(Switch!$D$33,$F$2:$G$44,2,FALSE)+ROW()-2))=Switch!$D$33,INDIRECT(\"a\" & (VLOOKUP(Switch!$D$33,$F$2:$G$44,2,FALSE)+ROW()-2)),\"\")","v":{"$error":"#N/A"}},{"$f":"IF(INDIRECT(\"c\" & (VLOOKUP(Switch!$D$34,$F$2:$G$44,2,FALSE)+ROW()-2))=Switch!$D$34,INDIRECT(\"a\" & (VLOOKUP(Switch!$D$34,$F$2:$G$44,2,FALSE)+ROW()-2)),\"\")","v":{"$error":"#N/A"}},{"$f":"IF(INDIRECT(\"c\" & (VLOOKUP(Switch!$D$35,$F$2:$G$44,2,FALSE)+ROW()-2))=Switch!$D$35,INDIRECT(\"a\" & (VLOOKUP(Switch!$D$35,$F$2:$G$44,2,FALSE)+ROW()-2)),\"\")","v":{"$error":"#N/A"}},{"$f":"IF(INDIRECT(\"c\" & (VLOOKUP(Switch!$D$36,$F$2:$G$44,2,FALSE)+ROW()-2))=Switch!$D$36,INDIRECT(\"a\" & (VLOOKUP(Switch!$D$36,$F$2:$G$44,2,FALSE)+ROW()-2)),\"\")","v":{"$error":"#N/A"}},{"$f":"IF(INDIRECT(\"c\" & (VLOOKUP(Switch!$D$37,$F$2:$G$44,2,FALSE)+ROW()-2))=Switch!$D$37,INDIRECT(\"a\" & (VLOOKUP(Switch!$D$37,$F$2:$G$44,2,FALSE)+ROW()-2)),\"\")","v":{"$error":"#N/A"}},{"$f":"IF(INDIRECT(\"c\" & (VLOOKUP(Switch!$D$38,$F$2:$G$44,2,FALSE)+ROW()-2))=Switch!$D$38,INDIRECT(\"a\" & (VLOOKUP(Switch!$D$38,$F$2:$G$44,2,FALSE)+ROW()-2)),\"\")","v":{"$error":"#N/A"}},{"$f":"IF(INDIRECT(\"c\" & (VLOOKUP(Switch!$D$39,$F$2:$G$44,2,FALSE)+ROW()-2))=Switch!$D$39,INDIRECT(\"a\" & (VLOOKUP(Switch!$D$39,$F$2:$G$44,2,FALSE)+ROW()-2)),\"\")","v":{"$error":"#N/A"}},{"$f":"IF(INDIRECT(\"c\" & (VLOOKUP(Switch!$D$40,$F$2:$G$44,2,FALSE)+ROW()-2))=Switch!$D$40,INDIRECT(\"a\" & (VLOOKUP(Switch!$D$40,$F$2:$G$44,2,FALSE)+ROW()-2)),\"\")","v":{"$error":"#N/A"}},{"$f":"IF(INDIRECT(\"c\" & (VLOOKUP(Switch!$D$52,$F$2:$G$44,2,FALSE)+ROW()-2))=Switch!$D$52,INDIRECT(\"a\" & (VLOOKUP(Switch!$D$52,$F$2:$G$44,2,FALSE)+ROW()-2)),\"\")","v":{"$error":"#N/A"}},{"$f":"IF(INDIRECT(\"c\" & (VLOOKUP(Switch!$D$53,$F$2:$G$44,2,FALSE)+ROW()-2))=Switch!$D$53,INDIRECT(\"a\" & (VLOOKUP(Switch!$D$53,$F$2:$G$44,2,FALSE)+ROW()-2)),\"\")","v":{"$error":"#N/A"}},{"$f":"IF(INDIRECT(\"c\" & (VLOOKUP(Switch!$D$54,$F$2:$G$44,2,FALSE)+ROW()-2))=Switch!$D$54,INDIRECT(\"a\" & (VLOOKUP(Switch!$D$54,$F$2:$G$44,2,FALSE)+ROW()-2)),\"\")","v":{"$error":"#N/A"}},{"$f":"IF(INDIRECT(\"c\" & (VLOOKUP(Switch!$D$55,$F$2:$G$44,2,FALSE)+ROW()-2))=Switch!$D$55,INDIRECT(\"a\" & (VLOOKUP(Switch!$D$55,$F$2:$G$44,2,FALSE)+ROW()-2)),\"\")","v":{"$error":"#N/A"}},{"$f":"IF(INDIRECT(\"c\" & (VLOOKUP(Switch!$D$56,$F$2:$G$44,2,FALSE)+ROW()-2))=Switch!$D$56,INDIRECT(\"a\" & (VLOOKUP(Switch!$D$56,$F$2:$G$44,2,FALSE)+ROW()-2)),\"\")","v":{"$error":"#N/A"}},{"$f":"IF(INDIRECT(\"c\" & (VLOOKUP(Switch!$D$57,$F$2:$G$44,2,FALSE)+ROW()-2))=Switch!$D$57,INDIRECT(\"a\" & (VLOOKUP(Switch!$D$57,$F$2:$G$44,2,FALSE)+ROW()-2)),\"\")","v":{"$error":"#N/A"}},{"$f":"IF(INDIRECT(\"c\" & (VLOOKUP(Switch!$D$58,$F$2:$G$44,2,FALSE)+ROW()-2))=Switch!$D$58,INDIRECT(\"a\" & (VLOOKUP(Switch!$D$58,$F$2:$G$44,2,FALSE)+ROW()-2)),\"\")","v":{"$error":"#N/A"}},{"$f":"IF(INDIRECT(\"c\" & (VLOOKUP(Switch!$D$59,$F$2:$G$44,2,FALSE)+ROW()-2))=Switch!$D$59,INDIRECT(\"a\" & (VLOOKUP(Switch!$D$59,$F$2:$G$44,2,FALSE)+ROW()-2)),\"\")","v":{"$error":"#N/A"}},{"$f":"IF(INDIRECT(\"c\" & (VLOOKUP(Switch!$D$60,$F$2:$G$44,2,FALSE)+ROW()-2))=Switch!$D$60,INDIRECT(\"a\" & (VLOOKUP(Switch!$D$60,$F$2:$G$44,2,FALSE)+ROW()-2)),\"\")","v":{"$error":"#N/A"}},{"$f":"IF(INDIRECT(\"c\" & (VLOOKUP(Switch!$D$61,$F$2:$G$44,2,FALSE)+ROW()-2))=Switch!$D$61,INDIRECT(\"a\" & (VLOOKUP(Switch!$D$61,$F$2:$G$44,2,FALSE)+ROW()-2)),\"\")","v":{"$error":"#N/A"}},{"$f":"IF(INDIRECT(\"c\" & (VLOOKUP(Switch!$D$62,$F$2:$G$44,2,FALSE)+ROW()-2))=Switch!$D$62,INDIRECT(\"a\" & (VLOOKUP(Switch!$D$62,$F$2:$G$44,2,FALSE)+ROW()-2)),\"\")","v":{"$error":"#N/A"}},{"$f":"IF(INDIRECT(\"c\" & (VLOOKUP(Switch!$D$63,$F$2:$G$44,2,FALSE)+ROW()-2))=Switch!$D$63,INDIRECT(\"a\" & (VLOOKUP(Switch!$D$63,$F$2:$G$44,2,FALSE)+ROW()-2)),\"\")","v":{"$error":"#N/A"}},{"$f":"IF(INDIRECT(\"c\" & (VLOOKUP(Switch!$D$64,$F$2:$G$44,2,FALSE)+ROW()-2))=Switch!$D$64,INDIRECT(\"a\" & (VLOOKUP(Switch!$D$64,$F$2:$G$44,2,FALSE)+ROW()-2)),\"\")","v":{"$error":"#N/A"}},{"$f":"IF(INDIRECT(\"c\" & (VLOOKUP(Switch!$D$65,$F$2:$G$44,2,FALSE)+ROW()-2))=Switch!$D$65,INDIRECT(\"a\" & (VLOOKUP(Switch!$D$65,$F$2:$G$44,2,FALSE)+ROW()-2)),\"\")","v":{"$error":"#N/A"}},{"$f":"IF(INDIRECT(\"c\" & (VLOOKUP(Switch!$D$66,$F$2:$G$44,2,FALSE)+ROW()-2))=Switch!$D$66,INDIRECT(\"a\" & (VLOOKUP(Switch!$D$66,$F$2:$G$44,2,FALSE)+ROW()-2)),\"\")","v":{"$error":"#N/A"}}]
["Discovery Balanced Fund A","DBFD","DISCOVERY LIFE COLLECTIVE INVESTMENTS (PTY) LTD",{"$f":"ROW()","v":241},null,null,{"$f":"VLOOKUP(F241,$C$2:$D$637,2,FALSE)","v":{"$error":"#N/A"}},{"$f":"IF(INDIRECT(\"c\" & (VLOOKUP(Switch!$D$26,$F$2:$G$44,2,FALSE)+ROW()-2))=Switch!$D$26,INDIRECT(\"a\" & (VLOOKUP(Switch!$D$26,$F$2:$G$44,2,FALSE)+ROW()-2)),\"\")","v":{"$error":"#N/A"}},{"$f":"IF(INDIRECT(\"c\" & (VLOOKUP(Switch!$D$27,$F$2:$G$44,2,FALSE)+ROW()-2))=Switch!$D$27,INDIRECT(\"a\" & (VLOOKUP(Switch!$D$27,$F$2:$G$44,2,FALSE)+ROW()-2)),\"\")","v":{"$error":"#N/A"}},{"$f":"IF(INDIRECT(\"c\" & (VLOOKUP(Switch!$D$28,$F$2:$G$44,2,FALSE)+ROW()-2))=Switch!$D$28,INDIRECT(\"a\" & (VLOOKUP(Switch!$D$28,$F$2:$G$44,2,FALSE)+ROW()-2)),\"\")","v":{"$error":"#N/A"}},{"$f":"IF(INDIRECT(\"c\" & (VLOOKUP(Switch!$D$29,$F$2:$G$44,2,FALSE)+ROW()-2))=Switch!$D$29,INDIRECT(\"a\" & (VLOOKUP(Switch!$D$29,$F$2:$G$44,2,FALSE)+ROW()-2)),\"\")","v":{"$error":"#N/A"}},{"$f":"IF(INDIRECT(\"c\" & (VLOOKUP(Switch!$D$30,$F$2:$G$44,2,FALSE)+ROW()-2))=Switch!$D$30,INDIRECT(\"a\" & (VLOOKUP(Switch!$D$30,$F$2:$G$44,2,FALSE)+ROW()-2)),\"\")","v":{"$error":"#N/A"}},{"$f":"IF(INDIRECT(\"c\" & (VLOOKUP(Switch!$D$31,$F$2:$G$44,2,FALSE)+ROW()-2))=Switch!$D$31,INDIRECT(\"a\" & (VLOOKUP(Switch!$D$31,$F$2:$G$44,2,FALSE)+ROW()-2)),\"\")","v":{"$error":"#N/A"}},{"$f":"IF(INDIRECT(\"c\" & (VLOOKUP(Switch!$D$32,$F$2:$G$44,2,FALSE)+ROW()-2))=Switch!$D$32,INDIRECT(\"a\" & (VLOOKUP(Switch!$D$32,$F$2:$G$44,2,FALSE)+ROW()-2)),\"\")","v":{"$error":"#N/A"}},{"$f":"IF(INDIRECT(\"c\" & (VLOOKUP(Switch!$D$33,$F$2:$G$44,2,FALSE)+ROW()-2))=Switch!$D$33,INDIRECT(\"a\" & (VLOOKUP(Switch!$D$33,$F$2:$G$44,2,FALSE)+ROW()-2)),\"\")","v":{"$error":"#N/A"}},{"$f":"IF(INDIRECT(\"c\" & (VLOOKUP(Switch!$D$34,$F$2:$G$44,2,FALSE)+ROW()-2))=Switch!$D$34,INDIRECT(\"a\" & (VLOOKUP(Switch!$D$34,$F$2:$G$44,2,FALSE)+ROW()-2)),\"\")","v":{"$error":"#N/A"}},{"$f":"IF(INDIRECT(\"c\" & (VLOOKUP(Switch!$D$35,$F$2:$G$44,2,FALSE)+ROW()-2))=Switch!$D$35,INDIRECT(\"a\" & (VLOOKUP(Switch!$D$35,$F$2:$G$44,2,FALSE)+ROW()-2)),\"\")","v":{"$error":"#N/A"}},{"$f":"IF(INDIRECT(\"c\" & (VLOOKUP(Switch!$D$36,$F$2:$G$44,2,FALSE)+ROW()-2))=Switch!$D$36,INDIRECT(\"a\" & (VLOOKUP(Switch!$D$36,$F$2:$G$44,2,FALSE)+ROW()-2)),\"\")","v":{"$error":"#N/A"}},{"$f":"IF(INDIRECT(\"c\" & (VLOOKUP(Switch!$D$37,$F$2:$G$44,2,FALSE)+ROW()-2))=Switch!$D$37,INDIRECT(\"a\" & (VLOOKUP(Switch!$D$37,$F$2:$G$44,2,FALSE)+ROW()-2)),\"\")","v":{"$error":"#N/A"}},{"$f":"IF(INDIRECT(\"c\" & (VLOOKUP(Switch!$D$38,$F$2:$G$44,2,FALSE)+ROW()-2))=Switch!$D$38,INDIRECT(\"a\" & (VLOOKUP(Switch!$D$38,$F$2:$G$44,2,FALSE)+ROW()-2)),\"\")","v":{"$error":"#N/A"}},{"$f":"IF(INDIRECT(\"c\" & (VLOOKUP(Switch!$D$39,$F$2:$G$44,2,FALSE)+ROW()-2))=Switch!$D$39,INDIRECT(\"a\" & (VLOOKUP(Switch!$D$39,$F$2:$G$44,2,FALSE)+ROW()-2)),\"\")","v":{"$error":"#N/A"}},{"$f":"IF(INDIRECT(\"c\" & (VLOOKUP(Switch!$D$40,$F$2:$G$44,2,FALSE)+ROW()-2))=Switch!$D$40,INDIRECT(\"a\" & (VLOOKUP(Switch!$D$40,$F$2:$G$44,2,FALSE)+ROW()-2)),\"\")","v":{"$error":"#N/A"}},{"$f":"IF(INDIRECT(\"c\" & (VLOOKUP(Switch!$D$52,$F$2:$G$44,2,FALSE)+ROW()-2))=Switch!$D$52,INDIRECT(\"a\" & (VLOOKUP(Switch!$D$52,$F$2:$G$44,2,FALSE)+ROW()-2)),\"\")","v":{"$error":"#N/A"}},{"$f":"IF(INDIRECT(\"c\" & (VLOOKUP(Switch!$D$53,$F$2:$G$44,2,FALSE)+ROW()-2))=Switch!$D$53,INDIRECT(\"a\" & (VLOOKUP(Switch!$D$53,$F$2:$G$44,2,FALSE)+ROW()-2)),\"\")","v":{"$error":"#N/A"}},{"$f":"IF(INDIRECT(\"c\" & (VLOOKUP(Switch!$D$54,$F$2:$G$44,2,FALSE)+ROW()-2))=Switch!$D$54,INDIRECT(\"a\" & (VLOOKUP(Switch!$D$54,$F$2:$G$44,2,FALSE)+ROW()-2)),\"\")","v":{"$error":"#N/A"}},{"$f":"IF(INDIRECT(\"c\" & (VLOOKUP(Switch!$D$55,$F$2:$G$44,2,FALSE)+ROW()-2))=Switch!$D$55,INDIRECT(\"a\" & (VLOOKUP(Switch!$D$55,$F$2:$G$44,2,FALSE)+ROW()-2)),\"\")","v":{"$error":"#N/A"}},{"$f":"IF(INDIRECT(\"c\" & (VLOOKUP(Switch!$D$56,$F$2:$G$44,2,FALSE)+ROW()-2))=Switch!$D$56,INDIRECT(\"a\" & (VLOOKUP(Switch!$D$56,$F$2:$G$44,2,FALSE)+ROW()-2)),\"\")","v":{"$error":"#N/A"}},{"$f":"IF(INDIRECT(\"c\" & (VLOOKUP(Switch!$D$57,$F$2:$G$44,2,FALSE)+ROW()-2))=Switch!$D$57,INDIRECT(\"a\" & (VLOOKUP(Switch!$D$57,$F$2:$G$44,2,FALSE)+ROW()-2)),\"\")","v":{"$error":"#N/A"}},{"$f":"IF(INDIRECT(\"c\" & (VLOOKUP(Switch!$D$58,$F$2:$G$44,2,FALSE)+ROW()-2))=Switch!$D$58,INDIRECT(\"a\" & (VLOOKUP(Switch!$D$58,$F$2:$G$44,2,FALSE)+ROW()-2)),\"\")","v":{"$error":"#N/A"}},{"$f":"IF(INDIRECT(\"c\" & (VLOOKUP(Switch!$D$59,$F$2:$G$44,2,FALSE)+ROW()-2))=Switch!$D$59,INDIRECT(\"a\" & (VLOOKUP(Switch!$D$59,$F$2:$G$44,2,FALSE)+ROW()-2)),\"\")","v":{"$error":"#N/A"}},{"$f":"IF(INDIRECT(\"c\" & (VLOOKUP(Switch!$D$60,$F$2:$G$44,2,FALSE)+ROW()-2))=Switch!$D$60,INDIRECT(\"a\" & (VLOOKUP(Switch!$D$60,$F$2:$G$44,2,FALSE)+ROW()-2)),\"\")","v":{"$error":"#N/A"}},{"$f":"IF(INDIRECT(\"c\" & (VLOOKUP(Switch!$D$61,$F$2:$G$44,2,FALSE)+ROW()-2))=Switch!$D$61,INDIRECT(\"a\" & (VLOOKUP(Switch!$D$61,$F$2:$G$44,2,FALSE)+ROW()-2)),\"\")","v":{"$error":"#N/A"}},{"$f":"IF(INDIRECT(\"c\" & (VLOOKUP(Switch!$D$62,$F$2:$G$44,2,FALSE)+ROW()-2))=Switch!$D$62,INDIRECT(\"a\" & (VLOOKUP(Switch!$D$62,$F$2:$G$44,2,FALSE)+ROW()-2)),\"\")","v":{"$error":"#N/A"}},{"$f":"IF(INDIRECT(\"c\" & (VLOOKUP(Switch!$D$63,$F$2:$G$44,2,FALSE)+ROW()-2))=Switch!$D$63,INDIRECT(\"a\" & (VLOOKUP(Switch!$D$63,$F$2:$G$44,2,FALSE)+ROW()-2)),\"\")","v":{"$error":"#N/A"}},{"$f":"IF(INDIRECT(\"c\" & (VLOOKUP(Switch!$D$64,$F$2:$G$44,2,FALSE)+ROW()-2))=Switch!$D$64,INDIRECT(\"a\" & (VLOOKUP(Switch!$D$64,$F$2:$G$44,2,FALSE)+ROW()-2)),\"\")","v":{"$error":"#N/A"}},{"$f":"IF(INDIRECT(\"c\" & (VLOOKUP(Switch!$D$65,$F$2:$G$44,2,FALSE)+ROW()-2))=Switch!$D$65,INDIRECT(\"a\" & (VLOOKUP(Switch!$D$65,$F$2:$G$44,2,FALSE)+ROW()-2)),\"\")","v":{"$error":"#N/A"}},{"$f":"IF(INDIRECT(\"c\" & (VLOOKUP(Switch!$D$66,$F$2:$G$44,2,FALSE)+ROW()-2))=Switch!$D$66,INDIRECT(\"a\" & (VLOOKUP(Switch!$D$66,$F$2:$G$44,2,FALSE)+ROW()-2)),\"\")","v":{"$error":"#N/A"}}]
["Discovery Cautious Balanced Fund A","DCBF","DISCOVERY LIFE COLLECTIVE INVESTMENTS (PTY) LTD",{"$f":"ROW()","v":242},null,null,{"$f":"VLOOKUP(F242,$C$2:$D$637,2,FALSE)","v":{"$error":"#N/A"}},{"$f":"IF(INDIRECT(\"c\" & (VLOOKUP(Switch!$D$26,$F$2:$G$44,2,FALSE)+ROW()-2))=Switch!$D$26,INDIRECT(\"a\" & (VLOOKUP(Switch!$D$26,$F$2:$G$44,2,FALSE)+ROW()-2)),\"\")","v":{"$error":"#N/A"}},{"$f":"IF(INDIRECT(\"c\" & (VLOOKUP(Switch!$D$27,$F$2:$G$44,2,FALSE)+ROW()-2))=Switch!$D$27,INDIRECT(\"a\" & (VLOOKUP(Switch!$D$27,$F$2:$G$44,2,FALSE)+ROW()-2)),\"\")","v":{"$error":"#N/A"}},{"$f":"IF(INDIRECT(\"c\" & (VLOOKUP(Switch!$D$28,$F$2:$G$44,2,FALSE)+ROW()-2))=Switch!$D$28,INDIRECT(\"a\" & (VLOOKUP(Switch!$D$28,$F$2:$G$44,2,FALSE)+ROW()-2)),\"\")","v":{"$error":"#N/A"}},{"$f":"IF(INDIRECT(\"c\" & (VLOOKUP(Switch!$D$29,$F$2:$G$44,2,FALSE)+ROW()-2))=Switch!$D$29,INDIRECT(\"a\" & (VLOOKUP(Switch!$D$29,$F$2:$G$44,2,FALSE)+ROW()-2)),\"\")","v":{"$error":"#N/A"}},{"$f":"IF(INDIRECT(\"c\" & (VLOOKUP(Switch!$D$30,$F$2:$G$44,2,FALSE)+ROW()-2))=Switch!$D$30,INDIRECT(\"a\" & (VLOOKUP(Switch!$D$30,$F$2:$G$44,2,FALSE)+ROW()-2)),\"\")","v":{"$error":"#N/A"}},{"$f":"IF(INDIRECT(\"c\" & (VLOOKUP(Switch!$D$31,$F$2:$G$44,2,FALSE)+ROW()-2))=Switch!$D$31,INDIRECT(\"a\" & (VLOOKUP(Switch!$D$31,$F$2:$G$44,2,FALSE)+ROW()-2)),\"\")","v":{"$error":"#N/A"}},{"$f":"IF(INDIRECT(\"c\" & (VLOOKUP(Switch!$D$32,$F$2:$G$44,2,FALSE)+ROW()-2))=Switch!$D$32,INDIRECT(\"a\" & (VLOOKUP(Switch!$D$32,$F$2:$G$44,2,FALSE)+ROW()-2)),\"\")","v":{"$error":"#N/A"}},{"$f":"IF(INDIRECT(\"c\" & (VLOOKUP(Switch!$D$33,$F$2:$G$44,2,FALSE)+ROW()-2))=Switch!$D$33,INDIRECT(\"a\" & (VLOOKUP(Switch!$D$33,$F$2:$G$44,2,FALSE)+ROW()-2)),\"\")","v":{"$error":"#N/A"}},{"$f":"IF(INDIRECT(\"c\" & (VLOOKUP(Switch!$D$34,$F$2:$G$44,2,FALSE)+ROW()-2))=Switch!$D$34,INDIRECT(\"a\" & (VLOOKUP(Switch!$D$34,$F$2:$G$44,2,FALSE)+ROW()-2)),\"\")","v":{"$error":"#N/A"}},{"$f":"IF(INDIRECT(\"c\" & (VLOOKUP(Switch!$D$35,$F$2:$G$44,2,FALSE)+ROW()-2))=Switch!$D$35,INDIRECT(\"a\" & (VLOOKUP(Switch!$D$35,$F$2:$G$44,2,FALSE)+ROW()-2)),\"\")","v":{"$error":"#N/A"}},{"$f":"IF(INDIRECT(\"c\" & (VLOOKUP(Switch!$D$36,$F$2:$G$44,2,FALSE)+ROW()-2))=Switch!$D$36,INDIRECT(\"a\" & (VLOOKUP(Switch!$D$36,$F$2:$G$44,2,FALSE)+ROW()-2)),\"\")","v":{"$error":"#N/A"}},{"$f":"IF(INDIRECT(\"c\" & (VLOOKUP(Switch!$D$37,$F$2:$G$44,2,FALSE)+ROW()-2))=Switch!$D$37,INDIRECT(\"a\" & (VLOOKUP(Switch!$D$37,$F$2:$G$44,2,FALSE)+ROW()-2)),\"\")","v":{"$error":"#N/A"}},{"$f":"IF(INDIRECT(\"c\" & (VLOOKUP(Switch!$D$38,$F$2:$G$44,2,FALSE)+ROW()-2))=Switch!$D$38,INDIRECT(\"a\" & (VLOOKUP(Switch!$D$38,$F$2:$G$44,2,FALSE)+ROW()-2)),\"\")","v":{"$error":"#N/A"}},{"$f":"IF(INDIRECT(\"c\" & (VLOOKUP(Switch!$D$39,$F$2:$G$44,2,FALSE)+ROW()-2))=Switch!$D$39,INDIRECT(\"a\" & (VLOOKUP(Switch!$D$39,$F$2:$G$44,2,FALSE)+ROW()-2)),\"\")","v":{"$error":"#N/A"}},{"$f":"IF(INDIRECT(\"c\" & (VLOOKUP(Switch!$D$40,$F$2:$G$44,2,FALSE)+ROW()-2))=Switch!$D$40,INDIRECT(\"a\" & (VLOOKUP(Switch!$D$40,$F$2:$G$44,2,FALSE)+ROW()-2)),\"\")","v":{"$error":"#N/A"}},{"$f":"IF(INDIRECT(\"c\" & (VLOOKUP(Switch!$D$52,$F$2:$G$44,2,FALSE)+ROW()-2))=Switch!$D$52,INDIRECT(\"a\" & (VLOOKUP(Switch!$D$52,$F$2:$G$44,2,FALSE)+ROW()-2)),\"\")","v":{"$error":"#N/A"}},{"$f":"IF(INDIRECT(\"c\" & (VLOOKUP(Switch!$D$53,$F$2:$G$44,2,FALSE)+ROW()-2))=Switch!$D$53,INDIRECT(\"a\" & (VLOOKUP(Switch!$D$53,$F$2:$G$44,2,FALSE)+ROW()-2)),\"\")","v":{"$error":"#N/A"}},{"$f":"IF(INDIRECT(\"c\" & (VLOOKUP(Switch!$D$54,$F$2:$G$44,2,FALSE)+ROW()-2))=Switch!$D$54,INDIRECT(\"a\" & (VLOOKUP(Switch!$D$54,$F$2:$G$44,2,FALSE)+ROW()-2)),\"\")","v":{"$error":"#N/A"}},{"$f":"IF(INDIRECT(\"c\" & (VLOOKUP(Switch!$D$55,$F$2:$G$44,2,FALSE)+ROW()-2))=Switch!$D$55,INDIRECT(\"a\" & (VLOOKUP(Switch!$D$55,$F$2:$G$44,2,FALSE)+ROW()-2)),\"\")","v":{"$error":"#N/A"}},{"$f":"IF(INDIRECT(\"c\" & (VLOOKUP(Switch!$D$56,$F$2:$G$44,2,FALSE)+ROW()-2))=Switch!$D$56,INDIRECT(\"a\" & (VLOOKUP(Switch!$D$56,$F$2:$G$44,2,FALSE)+ROW()-2)),\"\")","v":{"$error":"#N/A"}},{"$f":"IF(INDIRECT(\"c\" & (VLOOKUP(Switch!$D$57,$F$2:$G$44,2,FALSE)+ROW()-2))=Switch!$D$57,INDIRECT(\"a\" & (VLOOKUP(Switch!$D$57,$F$2:$G$44,2,FALSE)+ROW()-2)),\"\")","v":{"$error":"#N/A"}},{"$f":"IF(INDIRECT(\"c\" & (VLOOKUP(Switch!$D$58,$F$2:$G$44,2,FALSE)+ROW()-2))=Switch!$D$58,INDIRECT(\"a\" & (VLOOKUP(Switch!$D$58,$F$2:$G$44,2,FALSE)+ROW()-2)),\"\")","v":{"$error":"#N/A"}},{"$f":"IF(INDIRECT(\"c\" & (VLOOKUP(Switch!$D$59,$F$2:$G$44,2,FALSE)+ROW()-2))=Switch!$D$59,INDIRECT(\"a\" & (VLOOKUP(Switch!$D$59,$F$2:$G$44,2,FALSE)+ROW()-2)),\"\")","v":{"$error":"#N/A"}},{"$f":"IF(INDIRECT(\"c\" & (VLOOKUP(Switch!$D$60,$F$2:$G$44,2,FALSE)+ROW()-2))=Switch!$D$60,INDIRECT(\"a\" & (VLOOKUP(Switch!$D$60,$F$2:$G$44,2,FALSE)+ROW()-2)),\"\")","v":{"$error":"#N/A"}},{"$f":"IF(INDIRECT(\"c\" & (VLOOKUP(Switch!$D$61,$F$2:$G$44,2,FALSE)+ROW()-2))=Switch!$D$61,INDIRECT(\"a\" & (VLOOKUP(Switch!$D$61,$F$2:$G$44,2,FALSE)+ROW()-2)),\"\")","v":{"$error":"#N/A"}},{"$f":"IF(INDIRECT(\"c\" & (VLOOKUP(Switch!$D$62,$F$2:$G$44,2,FALSE)+ROW()-2))=Switch!$D$62,INDIRECT(\"a\" & (VLOOKUP(Switch!$D$62,$F$2:$G$44,2,FALSE)+ROW()-2)),\"\")","v":{"$error":"#N/A"}},{"$f":"IF(INDIRECT(\"c\" & (VLOOKUP(Switch!$D$63,$F$2:$G$44,2,FALSE)+ROW()-2))=Switch!$D$63,INDIRECT(\"a\" & (VLOOKUP(Switch!$D$63,$F$2:$G$44,2,FALSE)+ROW()-2)),\"\")","v":{"$error":"#N/A"}},{"$f":"IF(INDIRECT(\"c\" & (VLOOKUP(Switch!$D$64,$F$2:$G$44,2,FALSE)+ROW()-2))=Switch!$D$64,INDIRECT(\"a\" & (VLOOKUP(Switch!$D$64,$F$2:$G$44,2,FALSE)+ROW()-2)),\"\")","v":{"$error":"#N/A"}},{"$f":"IF(INDIRECT(\"c\" & (VLOOKUP(Switch!$D$65,$F$2:$G$44,2,FALSE)+ROW()-2))=Switch!$D$65,INDIRECT(\"a\" & (VLOOKUP(Switch!$D$65,$F$2:$G$44,2,FALSE)+ROW()-2)),\"\")","v":{"$error":"#N/A"}},{"$f":"IF(INDIRECT(\"c\" & (VLOOKUP(Switch!$D$66,$F$2:$G$44,2,FALSE)+ROW()-2))=Switch!$D$66,INDIRECT(\"a\" & (VLOOKUP(Switch!$D$66,$F$2:$G$44,2,FALSE)+ROW()-2)),\"\")","v":{"$error":"#N/A"}}]
["Discovery Flexible Property Fund A","DFPF","DISCOVERY LIFE COLLECTIVE INVESTMENTS (PTY) LTD",{"$f":"ROW()","v":243},null,null,{"$f":"VLOOKUP(F243,$C$2:$D$637,2,FALSE)","v":{"$error":"#N/A"}},{"$f":"IF(INDIRECT(\"c\" & (VLOOKUP(Switch!$D$26,$F$2:$G$44,2,FALSE)+ROW()-2))=Switch!$D$26,INDIRECT(\"a\" & (VLOOKUP(Switch!$D$26,$F$2:$G$44,2,FALSE)+ROW()-2)),\"\")","v":{"$error":"#N/A"}},{"$f":"IF(INDIRECT(\"c\" & (VLOOKUP(Switch!$D$27,$F$2:$G$44,2,FALSE)+ROW()-2))=Switch!$D$27,INDIRECT(\"a\" & (VLOOKUP(Switch!$D$27,$F$2:$G$44,2,FALSE)+ROW()-2)),\"\")","v":{"$error":"#N/A"}},{"$f":"IF(INDIRECT(\"c\" & (VLOOKUP(Switch!$D$28,$F$2:$G$44,2,FALSE)+ROW()-2))=Switch!$D$28,INDIRECT(\"a\" & (VLOOKUP(Switch!$D$28,$F$2:$G$44,2,FALSE)+ROW()-2)),\"\")","v":{"$error":"#N/A"}},{"$f":"IF(INDIRECT(\"c\" & (VLOOKUP(Switch!$D$29,$F$2:$G$44,2,FALSE)+ROW()-2))=Switch!$D$29,INDIRECT(\"a\" & (VLOOKUP(Switch!$D$29,$F$2:$G$44,2,FALSE)+ROW()-2)),\"\")","v":{"$error":"#N/A"}},{"$f":"IF(INDIRECT(\"c\" & (VLOOKUP(Switch!$D$30,$F$2:$G$44,2,FALSE)+ROW()-2))=Switch!$D$30,INDIRECT(\"a\" & (VLOOKUP(Switch!$D$30,$F$2:$G$44,2,FALSE)+ROW()-2)),\"\")","v":{"$error":"#N/A"}},{"$f":"IF(INDIRECT(\"c\" & (VLOOKUP(Switch!$D$31,$F$2:$G$44,2,FALSE)+ROW()-2))=Switch!$D$31,INDIRECT(\"a\" & (VLOOKUP(Switch!$D$31,$F$2:$G$44,2,FALSE)+ROW()-2)),\"\")","v":{"$error":"#N/A"}},{"$f":"IF(INDIRECT(\"c\" & (VLOOKUP(Switch!$D$32,$F$2:$G$44,2,FALSE)+ROW()-2))=Switch!$D$32,INDIRECT(\"a\" & (VLOOKUP(Switch!$D$32,$F$2:$G$44,2,FALSE)+ROW()-2)),\"\")","v":{"$error":"#N/A"}},{"$f":"IF(INDIRECT(\"c\" & (VLOOKUP(Switch!$D$33,$F$2:$G$44,2,FALSE)+ROW()-2))=Switch!$D$33,INDIRECT(\"a\" & (VLOOKUP(Switch!$D$33,$F$2:$G$44,2,FALSE)+ROW()-2)),\"\")","v":{"$error":"#N/A"}},{"$f":"IF(INDIRECT(\"c\" & (VLOOKUP(Switch!$D$34,$F$2:$G$44,2,FALSE)+ROW()-2))=Switch!$D$34,INDIRECT(\"a\" & (VLOOKUP(Switch!$D$34,$F$2:$G$44,2,FALSE)+ROW()-2)),\"\")","v":{"$error":"#N/A"}},{"$f":"IF(INDIRECT(\"c\" & (VLOOKUP(Switch!$D$35,$F$2:$G$44,2,FALSE)+ROW()-2))=Switch!$D$35,INDIRECT(\"a\" & (VLOOKUP(Switch!$D$35,$F$2:$G$44,2,FALSE)+ROW()-2)),\"\")","v":{"$error":"#N/A"}},{"$f":"IF(INDIRECT(\"c\" & (VLOOKUP(Switch!$D$36,$F$2:$G$44,2,FALSE)+ROW()-2))=Switch!$D$36,INDIRECT(\"a\" & (VLOOKUP(Switch!$D$36,$F$2:$G$44,2,FALSE)+ROW()-2)),\"\")","v":{"$error":"#N/A"}},{"$f":"IF(INDIRECT(\"c\" & (VLOOKUP(Switch!$D$37,$F$2:$G$44,2,FALSE)+ROW()-2))=Switch!$D$37,INDIRECT(\"a\" & (VLOOKUP(Switch!$D$37,$F$2:$G$44,2,FALSE)+ROW()-2)),\"\")","v":{"$error":"#N/A"}},{"$f":"IF(INDIRECT(\"c\" & (VLOOKUP(Switch!$D$38,$F$2:$G$44,2,FALSE)+ROW()-2))=Switch!$D$38,INDIRECT(\"a\" & (VLOOKUP(Switch!$D$38,$F$2:$G$44,2,FALSE)+ROW()-2)),\"\")","v":{"$error":"#N/A"}},{"$f":"IF(INDIRECT(\"c\" & (VLOOKUP(Switch!$D$39,$F$2:$G$44,2,FALSE)+ROW()-2))=Switch!$D$39,INDIRECT(\"a\" & (VLOOKUP(Switch!$D$39,$F$2:$G$44,2,FALSE)+ROW()-2)),\"\")","v":{"$error":"#N/A"}},{"$f":"IF(INDIRECT(\"c\" & (VLOOKUP(Switch!$D$40,$F$2:$G$44,2,FALSE)+ROW()-2))=Switch!$D$40,INDIRECT(\"a\" & (VLOOKUP(Switch!$D$40,$F$2:$G$44,2,FALSE)+ROW()-2)),\"\")","v":{"$error":"#N/A"}},{"$f":"IF(INDIRECT(\"c\" & (VLOOKUP(Switch!$D$52,$F$2:$G$44,2,FALSE)+ROW()-2))=Switch!$D$52,INDIRECT(\"a\" & (VLOOKUP(Switch!$D$52,$F$2:$G$44,2,FALSE)+ROW()-2)),\"\")","v":{"$error":"#N/A"}},{"$f":"IF(INDIRECT(\"c\" & (VLOOKUP(Switch!$D$53,$F$2:$G$44,2,FALSE)+ROW()-2))=Switch!$D$53,INDIRECT(\"a\" & (VLOOKUP(Switch!$D$53,$F$2:$G$44,2,FALSE)+ROW()-2)),\"\")","v":{"$error":"#N/A"}},{"$f":"IF(INDIRECT(\"c\" & (VLOOKUP(Switch!$D$54,$F$2:$G$44,2,FALSE)+ROW()-2))=Switch!$D$54,INDIRECT(\"a\" & (VLOOKUP(Switch!$D$54,$F$2:$G$44,2,FALSE)+ROW()-2)),\"\")","v":{"$error":"#N/A"}},{"$f":"IF(INDIRECT(\"c\" & (VLOOKUP(Switch!$D$55,$F$2:$G$44,2,FALSE)+ROW()-2))=Switch!$D$55,INDIRECT(\"a\" & (VLOOKUP(Switch!$D$55,$F$2:$G$44,2,FALSE)+ROW()-2)),\"\")","v":{"$error":"#N/A"}},{"$f":"IF(INDIRECT(\"c\" & (VLOOKUP(Switch!$D$56,$F$2:$G$44,2,FALSE)+ROW()-2))=Switch!$D$56,INDIRECT(\"a\" & (VLOOKUP(Switch!$D$56,$F$2:$G$44,2,FALSE)+ROW()-2)),\"\")","v":{"$error":"#N/A"}},{"$f":"IF(INDIRECT(\"c\" & (VLOOKUP(Switch!$D$57,$F$2:$G$44,2,FALSE)+ROW()-2))=Switch!$D$57,INDIRECT(\"a\" & (VLOOKUP(Switch!$D$57,$F$2:$G$44,2,FALSE)+ROW()-2)),\"\")","v":{"$error":"#N/A"}},{"$f":"IF(INDIRECT(\"c\" & (VLOOKUP(Switch!$D$58,$F$2:$G$44,2,FALSE)+ROW()-2))=Switch!$D$58,INDIRECT(\"a\" & (VLOOKUP(Switch!$D$58,$F$2:$G$44,2,FALSE)+ROW()-2)),\"\")","v":{"$error":"#N/A"}},{"$f":"IF(INDIRECT(\"c\" & (VLOOKUP(Switch!$D$59,$F$2:$G$44,2,FALSE)+ROW()-2))=Switch!$D$59,INDIRECT(\"a\" & (VLOOKUP(Switch!$D$59,$F$2:$G$44,2,FALSE)+ROW()-2)),\"\")","v":{"$error":"#N/A"}},{"$f":"IF(INDIRECT(\"c\" & (VLOOKUP(Switch!$D$60,$F$2:$G$44,2,FALSE)+ROW()-2))=Switch!$D$60,INDIRECT(\"a\" & (VLOOKUP(Switch!$D$60,$F$2:$G$44,2,FALSE)+ROW()-2)),\"\")","v":{"$error":"#N/A"}},{"$f":"IF(INDIRECT(\"c\" & (VLOOKUP(Switch!$D$61,$F$2:$G$44,2,FALSE)+ROW()-2))=Switch!$D$61,INDIRECT(\"a\" & (VLOOKUP(Switch!$D$61,$F$2:$G$44,2,FALSE)+ROW()-2)),\"\")","v":{"$error":"#N/A"}},{"$f":"IF(INDIRECT(\"c\" & (VLOOKUP(Switch!$D$62,$F$2:$G$44,2,FALSE)+ROW()-2))=Switch!$D$62,INDIRECT(\"a\" & (VLOOKUP(Switch!$D$62,$F$2:$G$44,2,FALSE)+ROW()-2)),\"\")","v":{"$error":"#N/A"}},{"$f":"IF(INDIRECT(\"c\" & (VLOOKUP(Switch!$D$63,$F$2:$G$44,2,FALSE)+ROW()-2))=Switch!$D$63,INDIRECT(\"a\" & (VLOOKUP(Switch!$D$63,$F$2:$G$44,2,FALSE)+ROW()-2)),\"\")","v":{"$error":"#N/A"}},{"$f":"IF(INDIRECT(\"c\" & (VLOOKUP(Switch!$D$64,$F$2:$G$44,2,FALSE)+ROW()-2))=Switch!$D$64,INDIRECT(\"a\" & (VLOOKUP(Switch!$D$64,$F$2:$G$44,2,FALSE)+ROW()-2)),\"\")","v":{"$error":"#N/A"}},{"$f":"IF(INDIRECT(\"c\" & (VLOOKUP(Switch!$D$65,$F$2:$G$44,2,FALSE)+ROW()-2))=Switch!$D$65,INDIRECT(\"a\" & (VLOOKUP(Switch!$D$65,$F$2:$G$44,2,FALSE)+ROW()-2)),\"\")","v":{"$error":"#N/A"}},{"$f":"IF(INDIRECT(\"c\" & (VLOOKUP(Switch!$D$66,$F$2:$G$44,2,FALSE)+ROW()-2))=Switch!$D$66,INDIRECT(\"a\" & (VLOOKUP(Switch!$D$66,$F$2:$G$44,2,FALSE)+ROW()-2)),\"\")","v":{"$error":"#N/A"}}]
["Discovery Global Balanced Fund of Funds A","DGBF","DISCOVERY LIFE COLLECTIVE INVESTMENTS (PTY) LTD",{"$f":"ROW()","v":244},null,null,{"$f":"VLOOKUP(F244,$C$2:$D$637,2,FALSE)","v":{"$error":"#N/A"}},{"$f":"IF(INDIRECT(\"c\" & (VLOOKUP(Switch!$D$26,$F$2:$G$44,2,FALSE)+ROW()-2))=Switch!$D$26,INDIRECT(\"a\" & (VLOOKUP(Switch!$D$26,$F$2:$G$44,2,FALSE)+ROW()-2)),\"\")","v":{"$error":"#N/A"}},{"$f":"IF(INDIRECT(\"c\" & (VLOOKUP(Switch!$D$27,$F$2:$G$44,2,FALSE)+ROW()-2))=Switch!$D$27,INDIRECT(\"a\" & (VLOOKUP(Switch!$D$27,$F$2:$G$44,2,FALSE)+ROW()-2)),\"\")","v":{"$error":"#N/A"}},{"$f":"IF(INDIRECT(\"c\" & (VLOOKUP(Switch!$D$28,$F$2:$G$44,2,FALSE)+ROW()-2))=Switch!$D$28,INDIRECT(\"a\" & (VLOOKUP(Switch!$D$28,$F$2:$G$44,2,FALSE)+ROW()-2)),\"\")","v":{"$error":"#N/A"}},{"$f":"IF(INDIRECT(\"c\" & (VLOOKUP(Switch!$D$29,$F$2:$G$44,2,FALSE)+ROW()-2))=Switch!$D$29,INDIRECT(\"a\" & (VLOOKUP(Switch!$D$29,$F$2:$G$44,2,FALSE)+ROW()-2)),\"\")","v":{"$error":"#N/A"}},{"$f":"IF(INDIRECT(\"c\" & (VLOOKUP(Switch!$D$30,$F$2:$G$44,2,FALSE)+ROW()-2))=Switch!$D$30,INDIRECT(\"a\" & (VLOOKUP(Switch!$D$30,$F$2:$G$44,2,FALSE)+ROW()-2)),\"\")","v":{"$error":"#N/A"}},{"$f":"IF(INDIRECT(\"c\" & (VLOOKUP(Switch!$D$31,$F$2:$G$44,2,FALSE)+ROW()-2))=Switch!$D$31,INDIRECT(\"a\" & (VLOOKUP(Switch!$D$31,$F$2:$G$44,2,FALSE)+ROW()-2)),\"\")","v":{"$error":"#N/A"}},{"$f":"IF(INDIRECT(\"c\" & (VLOOKUP(Switch!$D$32,$F$2:$G$44,2,FALSE)+ROW()-2))=Switch!$D$32,INDIRECT(\"a\" & (VLOOKUP(Switch!$D$32,$F$2:$G$44,2,FALSE)+ROW()-2)),\"\")","v":{"$error":"#N/A"}},{"$f":"IF(INDIRECT(\"c\" & (VLOOKUP(Switch!$D$33,$F$2:$G$44,2,FALSE)+ROW()-2))=Switch!$D$33,INDIRECT(\"a\" & (VLOOKUP(Switch!$D$33,$F$2:$G$44,2,FALSE)+ROW()-2)),\"\")","v":{"$error":"#N/A"}},{"$f":"IF(INDIRECT(\"c\" & (VLOOKUP(Switch!$D$34,$F$2:$G$44,2,FALSE)+ROW()-2))=Switch!$D$34,INDIRECT(\"a\" & (VLOOKUP(Switch!$D$34,$F$2:$G$44,2,FALSE)+ROW()-2)),\"\")","v":{"$error":"#N/A"}},{"$f":"IF(INDIRECT(\"c\" & (VLOOKUP(Switch!$D$35,$F$2:$G$44,2,FALSE)+ROW()-2))=Switch!$D$35,INDIRECT(\"a\" & (VLOOKUP(Switch!$D$35,$F$2:$G$44,2,FALSE)+ROW()-2)),\"\")","v":{"$error":"#N/A"}},{"$f":"IF(INDIRECT(\"c\" & (VLOOKUP(Switch!$D$36,$F$2:$G$44,2,FALSE)+ROW()-2))=Switch!$D$36,INDIRECT(\"a\" & (VLOOKUP(Switch!$D$36,$F$2:$G$44,2,FALSE)+ROW()-2)),\"\")","v":{"$error":"#N/A"}},{"$f":"IF(INDIRECT(\"c\" & (VLOOKUP(Switch!$D$37,$F$2:$G$44,2,FALSE)+ROW()-2))=Switch!$D$37,INDIRECT(\"a\" & (VLOOKUP(Switch!$D$37,$F$2:$G$44,2,FALSE)+ROW()-2)),\"\")","v":{"$error":"#N/A"}},{"$f":"IF(INDIRECT(\"c\" & (VLOOKUP(Switch!$D$38,$F$2:$G$44,2,FALSE)+ROW()-2))=Switch!$D$38,INDIRECT(\"a\" & (VLOOKUP(Switch!$D$38,$F$2:$G$44,2,FALSE)+ROW()-2)),\"\")","v":{"$error":"#N/A"}},{"$f":"IF(INDIRECT(\"c\" & (VLOOKUP(Switch!$D$39,$F$2:$G$44,2,FALSE)+ROW()-2))=Switch!$D$39,INDIRECT(\"a\" & (VLOOKUP(Switch!$D$39,$F$2:$G$44,2,FALSE)+ROW()-2)),\"\")","v":{"$error":"#N/A"}},{"$f":"IF(INDIRECT(\"c\" & (VLOOKUP(Switch!$D$40,$F$2:$G$44,2,FALSE)+ROW()-2))=Switch!$D$40,INDIRECT(\"a\" & (VLOOKUP(Switch!$D$40,$F$2:$G$44,2,FALSE)+ROW()-2)),\"\")","v":{"$error":"#N/A"}},{"$f":"IF(INDIRECT(\"c\" & (VLOOKUP(Switch!$D$52,$F$2:$G$44,2,FALSE)+ROW()-2))=Switch!$D$52,INDIRECT(\"a\" & (VLOOKUP(Switch!$D$52,$F$2:$G$44,2,FALSE)+ROW()-2)),\"\")","v":{"$error":"#N/A"}},{"$f":"IF(INDIRECT(\"c\" & (VLOOKUP(Switch!$D$53,$F$2:$G$44,2,FALSE)+ROW()-2))=Switch!$D$53,INDIRECT(\"a\" & (VLOOKUP(Switch!$D$53,$F$2:$G$44,2,FALSE)+ROW()-2)),\"\")","v":{"$error":"#N/A"}},{"$f":"IF(INDIRECT(\"c\" & (VLOOKUP(Switch!$D$54,$F$2:$G$44,2,FALSE)+ROW()-2))=Switch!$D$54,INDIRECT(\"a\" & (VLOOKUP(Switch!$D$54,$F$2:$G$44,2,FALSE)+ROW()-2)),\"\")","v":{"$error":"#N/A"}},{"$f":"IF(INDIRECT(\"c\" & (VLOOKUP(Switch!$D$55,$F$2:$G$44,2,FALSE)+ROW()-2))=Switch!$D$55,INDIRECT(\"a\" & (VLOOKUP(Switch!$D$55,$F$2:$G$44,2,FALSE)+ROW()-2)),\"\")","v":{"$error":"#N/A"}},{"$f":"IF(INDIRECT(\"c\" & (VLOOKUP(Switch!$D$56,$F$2:$G$44,2,FALSE)+ROW()-2))=Switch!$D$56,INDIRECT(\"a\" & (VLOOKUP(Switch!$D$56,$F$2:$G$44,2,FALSE)+ROW()-2)),\"\")","v":{"$error":"#N/A"}},{"$f":"IF(INDIRECT(\"c\" & (VLOOKUP(Switch!$D$57,$F$2:$G$44,2,FALSE)+ROW()-2))=Switch!$D$57,INDIRECT(\"a\" & (VLOOKUP(Switch!$D$57,$F$2:$G$44,2,FALSE)+ROW()-2)),\"\")","v":{"$error":"#N/A"}},{"$f":"IF(INDIRECT(\"c\" & (VLOOKUP(Switch!$D$58,$F$2:$G$44,2,FALSE)+ROW()-2))=Switch!$D$58,INDIRECT(\"a\" & (VLOOKUP(Switch!$D$58,$F$2:$G$44,2,FALSE)+ROW()-2)),\"\")","v":{"$error":"#N/A"}},{"$f":"IF(INDIRECT(\"c\" & (VLOOKUP(Switch!$D$59,$F$2:$G$44,2,FALSE)+ROW()-2))=Switch!$D$59,INDIRECT(\"a\" & (VLOOKUP(Switch!$D$59,$F$2:$G$44,2,FALSE)+ROW()-2)),\"\")","v":{"$error":"#N/A"}},{"$f":"IF(INDIRECT(\"c\" & (VLOOKUP(Switch!$D$60,$F$2:$G$44,2,FALSE)+ROW()-2))=Switch!$D$60,INDIRECT(\"a\" & (VLOOKUP(Switch!$D$60,$F$2:$G$44,2,FALSE)+ROW()-2)),\"\")","v":{"$error":"#N/A"}},{"$f":"IF(INDIRECT(\"c\" & (VLOOKUP(Switch!$D$61,$F$2:$G$44,2,FALSE)+ROW()-2))=Switch!$D$61,INDIRECT(\"a\" & (VLOOKUP(Switch!$D$61,$F$2:$G$44,2,FALSE)+ROW()-2)),\"\")","v":{"$error":"#N/A"}},{"$f":"IF(INDIRECT(\"c\" & (VLOOKUP(Switch!$D$62,$F$2:$G$44,2,FALSE)+ROW()-2))=Switch!$D$62,INDIRECT(\"a\" & (VLOOKUP(Switch!$D$62,$F$2:$G$44,2,FALSE)+ROW()-2)),\"\")","v":{"$error":"#N/A"}},{"$f":"IF(INDIRECT(\"c\" & (VLOOKUP(Switch!$D$63,$F$2:$G$44,2,FALSE)+ROW()-2))=Switch!$D$63,INDIRECT(\"a\" & (VLOOKUP(Switch!$D$63,$F$2:$G$44,2,FALSE)+ROW()-2)),\"\")","v":{"$error":"#N/A"}},{"$f":"IF(INDIRECT(\"c\" & (VLOOKUP(Switch!$D$64,$F$2:$G$44,2,FALSE)+ROW()-2))=Switch!$D$64,INDIRECT(\"a\" & (VLOOKUP(Switch!$D$64,$F$2:$G$44,2,FALSE)+ROW()-2)),\"\")","v":{"$error":"#N/A"}},{"$f":"IF(INDIRECT(\"c\" & (VLOOKUP(Switch!$D$65,$F$2:$G$44,2,FALSE)+ROW()-2))=Switch!$D$65,INDIRECT(\"a\" & (VLOOKUP(Switch!$D$65,$F$2:$G$44,2,FALSE)+ROW()-2)),\"\")","v":{"$error":"#N/A"}},{"$f":"IF(INDIRECT(\"c\" & (VLOOKUP(Switch!$D$66,$F$2:$G$44,2,FALSE)+ROW()-2))=Switch!$D$66,INDIRECT(\"a\" & (VLOOKUP(Switch!$D$66,$F$2:$G$44,2,FALSE)+ROW()-2)),\"\")","v":{"$error":"#N/A"}}]
["Discovery Global Equity Feeder Fund A","DGEF","DISCOVERY LIFE COLLECTIVE INVESTMENTS (PTY) LTD",{"$f":"ROW()","v":245},null,null,{"$f":"VLOOKUP(F245,$C$2:$D$637,2,FALSE)","v":{"$error":"#N/A"}},{"$f":"IF(INDIRECT(\"c\" & (VLOOKUP(Switch!$D$26,$F$2:$G$44,2,FALSE)+ROW()-2))=Switch!$D$26,INDIRECT(\"a\" & (VLOOKUP(Switch!$D$26,$F$2:$G$44,2,FALSE)+ROW()-2)),\"\")","v":{"$error":"#N/A"}},{"$f":"IF(INDIRECT(\"c\" & (VLOOKUP(Switch!$D$27,$F$2:$G$44,2,FALSE)+ROW()-2))=Switch!$D$27,INDIRECT(\"a\" & (VLOOKUP(Switch!$D$27,$F$2:$G$44,2,FALSE)+ROW()-2)),\"\")","v":{"$error":"#N/A"}},{"$f":"IF(INDIRECT(\"c\" & (VLOOKUP(Switch!$D$28,$F$2:$G$44,2,FALSE)+ROW()-2))=Switch!$D$28,INDIRECT(\"a\" & (VLOOKUP(Switch!$D$28,$F$2:$G$44,2,FALSE)+ROW()-2)),\"\")","v":{"$error":"#N/A"}},{"$f":"IF(INDIRECT(\"c\" & (VLOOKUP(Switch!$D$29,$F$2:$G$44,2,FALSE)+ROW()-2))=Switch!$D$29,INDIRECT(\"a\" & (VLOOKUP(Switch!$D$29,$F$2:$G$44,2,FALSE)+ROW()-2)),\"\")","v":{"$error":"#N/A"}},{"$f":"IF(INDIRECT(\"c\" & (VLOOKUP(Switch!$D$30,$F$2:$G$44,2,FALSE)+ROW()-2))=Switch!$D$30,INDIRECT(\"a\" & (VLOOKUP(Switch!$D$30,$F$2:$G$44,2,FALSE)+ROW()-2)),\"\")","v":{"$error":"#N/A"}},{"$f":"IF(INDIRECT(\"c\" & (VLOOKUP(Switch!$D$31,$F$2:$G$44,2,FALSE)+ROW()-2))=Switch!$D$31,INDIRECT(\"a\" & (VLOOKUP(Switch!$D$31,$F$2:$G$44,2,FALSE)+ROW()-2)),\"\")","v":{"$error":"#N/A"}},{"$f":"IF(INDIRECT(\"c\" & (VLOOKUP(Switch!$D$32,$F$2:$G$44,2,FALSE)+ROW()-2))=Switch!$D$32,INDIRECT(\"a\" & (VLOOKUP(Switch!$D$32,$F$2:$G$44,2,FALSE)+ROW()-2)),\"\")","v":{"$error":"#N/A"}},{"$f":"IF(INDIRECT(\"c\" & (VLOOKUP(Switch!$D$33,$F$2:$G$44,2,FALSE)+ROW()-2))=Switch!$D$33,INDIRECT(\"a\" & (VLOOKUP(Switch!$D$33,$F$2:$G$44,2,FALSE)+ROW()-2)),\"\")","v":{"$error":"#N/A"}},{"$f":"IF(INDIRECT(\"c\" & (VLOOKUP(Switch!$D$34,$F$2:$G$44,2,FALSE)+ROW()-2))=Switch!$D$34,INDIRECT(\"a\" & (VLOOKUP(Switch!$D$34,$F$2:$G$44,2,FALSE)+ROW()-2)),\"\")","v":{"$error":"#N/A"}},{"$f":"IF(INDIRECT(\"c\" & (VLOOKUP(Switch!$D$35,$F$2:$G$44,2,FALSE)+ROW()-2))=Switch!$D$35,INDIRECT(\"a\" & (VLOOKUP(Switch!$D$35,$F$2:$G$44,2,FALSE)+ROW()-2)),\"\")","v":{"$error":"#N/A"}},{"$f":"IF(INDIRECT(\"c\" & (VLOOKUP(Switch!$D$36,$F$2:$G$44,2,FALSE)+ROW()-2))=Switch!$D$36,INDIRECT(\"a\" & (VLOOKUP(Switch!$D$36,$F$2:$G$44,2,FALSE)+ROW()-2)),\"\")","v":{"$error":"#N/A"}},{"$f":"IF(INDIRECT(\"c\" & (VLOOKUP(Switch!$D$37,$F$2:$G$44,2,FALSE)+ROW()-2))=Switch!$D$37,INDIRECT(\"a\" & (VLOOKUP(Switch!$D$37,$F$2:$G$44,2,FALSE)+ROW()-2)),\"\")","v":{"$error":"#N/A"}},{"$f":"IF(INDIRECT(\"c\" & (VLOOKUP(Switch!$D$38,$F$2:$G$44,2,FALSE)+ROW()-2))=Switch!$D$38,INDIRECT(\"a\" & (VLOOKUP(Switch!$D$38,$F$2:$G$44,2,FALSE)+ROW()-2)),\"\")","v":{"$error":"#N/A"}},{"$f":"IF(INDIRECT(\"c\" & (VLOOKUP(Switch!$D$39,$F$2:$G$44,2,FALSE)+ROW()-2))=Switch!$D$39,INDIRECT(\"a\" & (VLOOKUP(Switch!$D$39,$F$2:$G$44,2,FALSE)+ROW()-2)),\"\")","v":{"$error":"#N/A"}},{"$f":"IF(INDIRECT(\"c\" & (VLOOKUP(Switch!$D$40,$F$2:$G$44,2,FALSE)+ROW()-2))=Switch!$D$40,INDIRECT(\"a\" & (VLOOKUP(Switch!$D$40,$F$2:$G$44,2,FALSE)+ROW()-2)),\"\")","v":{"$error":"#N/A"}},{"$f":"IF(INDIRECT(\"c\" & (VLOOKUP(Switch!$D$52,$F$2:$G$44,2,FALSE)+ROW()-2))=Switch!$D$52,INDIRECT(\"a\" & (VLOOKUP(Switch!$D$52,$F$2:$G$44,2,FALSE)+ROW()-2)),\"\")","v":{"$error":"#N/A"}},{"$f":"IF(INDIRECT(\"c\" & (VLOOKUP(Switch!$D$53,$F$2:$G$44,2,FALSE)+ROW()-2))=Switch!$D$53,INDIRECT(\"a\" & (VLOOKUP(Switch!$D$53,$F$2:$G$44,2,FALSE)+ROW()-2)),\"\")","v":{"$error":"#N/A"}},{"$f":"IF(INDIRECT(\"c\" & (VLOOKUP(Switch!$D$54,$F$2:$G$44,2,FALSE)+ROW()-2))=Switch!$D$54,INDIRECT(\"a\" & (VLOOKUP(Switch!$D$54,$F$2:$G$44,2,FALSE)+ROW()-2)),\"\")","v":{"$error":"#N/A"}},{"$f":"IF(INDIRECT(\"c\" & (VLOOKUP(Switch!$D$55,$F$2:$G$44,2,FALSE)+ROW()-2))=Switch!$D$55,INDIRECT(\"a\" & (VLOOKUP(Switch!$D$55,$F$2:$G$44,2,FALSE)+ROW()-2)),\"\")","v":{"$error":"#N/A"}},{"$f":"IF(INDIRECT(\"c\" & (VLOOKUP(Switch!$D$56,$F$2:$G$44,2,FALSE)+ROW()-2))=Switch!$D$56,INDIRECT(\"a\" & (VLOOKUP(Switch!$D$56,$F$2:$G$44,2,FALSE)+ROW()-2)),\"\")","v":{"$error":"#N/A"}},{"$f":"IF(INDIRECT(\"c\" & (VLOOKUP(Switch!$D$57,$F$2:$G$44,2,FALSE)+ROW()-2))=Switch!$D$57,INDIRECT(\"a\" & (VLOOKUP(Switch!$D$57,$F$2:$G$44,2,FALSE)+ROW()-2)),\"\")","v":{"$error":"#N/A"}},{"$f":"IF(INDIRECT(\"c\" & (VLOOKUP(Switch!$D$58,$F$2:$G$44,2,FALSE)+ROW()-2))=Switch!$D$58,INDIRECT(\"a\" & (VLOOKUP(Switch!$D$58,$F$2:$G$44,2,FALSE)+ROW()-2)),\"\")","v":{"$error":"#N/A"}},{"$f":"IF(INDIRECT(\"c\" & (VLOOKUP(Switch!$D$59,$F$2:$G$44,2,FALSE)+ROW()-2))=Switch!$D$59,INDIRECT(\"a\" & (VLOOKUP(Switch!$D$59,$F$2:$G$44,2,FALSE)+ROW()-2)),\"\")","v":{"$error":"#N/A"}},{"$f":"IF(INDIRECT(\"c\" & (VLOOKUP(Switch!$D$60,$F$2:$G$44,2,FALSE)+ROW()-2))=Switch!$D$60,INDIRECT(\"a\" & (VLOOKUP(Switch!$D$60,$F$2:$G$44,2,FALSE)+ROW()-2)),\"\")","v":{"$error":"#N/A"}},{"$f":"IF(INDIRECT(\"c\" & (VLOOKUP(Switch!$D$61,$F$2:$G$44,2,FALSE)+ROW()-2))=Switch!$D$61,INDIRECT(\"a\" & (VLOOKUP(Switch!$D$61,$F$2:$G$44,2,FALSE)+ROW()-2)),\"\")","v":{"$error":"#N/A"}},{"$f":"IF(INDIRECT(\"c\" & (VLOOKUP(Switch!$D$62,$F$2:$G$44,2,FALSE)+ROW()-2))=Switch!$D$62,INDIRECT(\"a\" & (VLOOKUP(Switch!$D$62,$F$2:$G$44,2,FALSE)+ROW()-2)),\"\")","v":{"$error":"#N/A"}},{"$f":"IF(INDIRECT(\"c\" & (VLOOKUP(Switch!$D$63,$F$2:$G$44,2,FALSE)+ROW()-2))=Switch!$D$63,INDIRECT(\"a\" & (VLOOKUP(Switch!$D$63,$F$2:$G$44,2,FALSE)+ROW()-2)),\"\")","v":{"$error":"#N/A"}},{"$f":"IF(INDIRECT(\"c\" & (VLOOKUP(Switch!$D$64,$F$2:$G$44,2,FALSE)+ROW()-2))=Switch!$D$64,INDIRECT(\"a\" & (VLOOKUP(Switch!$D$64,$F$2:$G$44,2,FALSE)+ROW()-2)),\"\")","v":{"$error":"#N/A"}},{"$f":"IF(INDIRECT(\"c\" & (VLOOKUP(Switch!$D$65,$F$2:$G$44,2,FALSE)+ROW()-2))=Switch!$D$65,INDIRECT(\"a\" & (VLOOKUP(Switch!$D$65,$F$2:$G$44,2,FALSE)+ROW()-2)),\"\")","v":{"$error":"#N/A"}},{"$f":"IF(INDIRECT(\"c\" & (VLOOKUP(Switch!$D$66,$F$2:$G$44,2,FALSE)+ROW()-2))=Switch!$D$66,INDIRECT(\"a\" & (VLOOKUP(Switch!$D$66,$F$2:$G$44,2,FALSE)+ROW()-2)),\"\")","v":{"$error":"#N/A"}}]
["Discovery Global Value Equity Feeder Fund A","DGCEF","DISCOVERY LIFE COLLECTIVE INVESTMENTS (PTY) LTD",{"$f":"ROW()","v":246},null,null,{"$f":"VLOOKUP(F246,$C$2:$D$637,2,FALSE)","v":{"$error":"#N/A"}},{"$f":"IF(INDIRECT(\"c\" & (VLOOKUP(Switch!$D$26,$F$2:$G$44,2,FALSE)+ROW()-2))=Switch!$D$26,INDIRECT(\"a\" & (VLOOKUP(Switch!$D$26,$F$2:$G$44,2,FALSE)+ROW()-2)),\"\")","v":{"$error":"#N/A"}},{"$f":"IF(INDIRECT(\"c\" & (VLOOKUP(Switch!$D$27,$F$2:$G$44,2,FALSE)+ROW()-2))=Switch!$D$27,INDIRECT(\"a\" & (VLOOKUP(Switch!$D$27,$F$2:$G$44,2,FALSE)+ROW()-2)),\"\")","v":{"$error":"#N/A"}},{"$f":"IF(INDIRECT(\"c\" & (VLOOKUP(Switch!$D$28,$F$2:$G$44,2,FALSE)+ROW()-2))=Switch!$D$28,INDIRECT(\"a\" & (VLOOKUP(Switch!$D$28,$F$2:$G$44,2,FALSE)+ROW()-2)),\"\")","v":{"$error":"#N/A"}},{"$f":"IF(INDIRECT(\"c\" & (VLOOKUP(Switch!$D$29,$F$2:$G$44,2,FALSE)+ROW()-2))=Switch!$D$29,INDIRECT(\"a\" & (VLOOKUP(Switch!$D$29,$F$2:$G$44,2,FALSE)+ROW()-2)),\"\")","v":{"$error":"#N/A"}},{"$f":"IF(INDIRECT(\"c\" & (VLOOKUP(Switch!$D$30,$F$2:$G$44,2,FALSE)+ROW()-2))=Switch!$D$30,INDIRECT(\"a\" & (VLOOKUP(Switch!$D$30,$F$2:$G$44,2,FALSE)+ROW()-2)),\"\")","v":{"$error":"#N/A"}},{"$f":"IF(INDIRECT(\"c\" & (VLOOKUP(Switch!$D$31,$F$2:$G$44,2,FALSE)+ROW()-2))=Switch!$D$31,INDIRECT(\"a\" & (VLOOKUP(Switch!$D$31,$F$2:$G$44,2,FALSE)+ROW()-2)),\"\")","v":{"$error":"#N/A"}},{"$f":"IF(INDIRECT(\"c\" & (VLOOKUP(Switch!$D$32,$F$2:$G$44,2,FALSE)+ROW()-2))=Switch!$D$32,INDIRECT(\"a\" & (VLOOKUP(Switch!$D$32,$F$2:$G$44,2,FALSE)+ROW()-2)),\"\")","v":{"$error":"#N/A"}},{"$f":"IF(INDIRECT(\"c\" & (VLOOKUP(Switch!$D$33,$F$2:$G$44,2,FALSE)+ROW()-2))=Switch!$D$33,INDIRECT(\"a\" & (VLOOKUP(Switch!$D$33,$F$2:$G$44,2,FALSE)+ROW()-2)),\"\")","v":{"$error":"#N/A"}},{"$f":"IF(INDIRECT(\"c\" & (VLOOKUP(Switch!$D$34,$F$2:$G$44,2,FALSE)+ROW()-2))=Switch!$D$34,INDIRECT(\"a\" & (VLOOKUP(Switch!$D$34,$F$2:$G$44,2,FALSE)+ROW()-2)),\"\")","v":{"$error":"#N/A"}},{"$f":"IF(INDIRECT(\"c\" & (VLOOKUP(Switch!$D$35,$F$2:$G$44,2,FALSE)+ROW()-2))=Switch!$D$35,INDIRECT(\"a\" & (VLOOKUP(Switch!$D$35,$F$2:$G$44,2,FALSE)+ROW()-2)),\"\")","v":{"$error":"#N/A"}},{"$f":"IF(INDIRECT(\"c\" & (VLOOKUP(Switch!$D$36,$F$2:$G$44,2,FALSE)+ROW()-2))=Switch!$D$36,INDIRECT(\"a\" & (VLOOKUP(Switch!$D$36,$F$2:$G$44,2,FALSE)+ROW()-2)),\"\")","v":{"$error":"#N/A"}},{"$f":"IF(INDIRECT(\"c\" & (VLOOKUP(Switch!$D$37,$F$2:$G$44,2,FALSE)+ROW()-2))=Switch!$D$37,INDIRECT(\"a\" & (VLOOKUP(Switch!$D$37,$F$2:$G$44,2,FALSE)+ROW()-2)),\"\")","v":{"$error":"#N/A"}},{"$f":"IF(INDIRECT(\"c\" & (VLOOKUP(Switch!$D$38,$F$2:$G$44,2,FALSE)+ROW()-2))=Switch!$D$38,INDIRECT(\"a\" & (VLOOKUP(Switch!$D$38,$F$2:$G$44,2,FALSE)+ROW()-2)),\"\")","v":{"$error":"#N/A"}},{"$f":"IF(INDIRECT(\"c\" & (VLOOKUP(Switch!$D$39,$F$2:$G$44,2,FALSE)+ROW()-2))=Switch!$D$39,INDIRECT(\"a\" & (VLOOKUP(Switch!$D$39,$F$2:$G$44,2,FALSE)+ROW()-2)),\"\")","v":{"$error":"#N/A"}},{"$f":"IF(INDIRECT(\"c\" & (VLOOKUP(Switch!$D$40,$F$2:$G$44,2,FALSE)+ROW()-2))=Switch!$D$40,INDIRECT(\"a\" & (VLOOKUP(Switch!$D$40,$F$2:$G$44,2,FALSE)+ROW()-2)),\"\")","v":{"$error":"#N/A"}},{"$f":"IF(INDIRECT(\"c\" & (VLOOKUP(Switch!$D$52,$F$2:$G$44,2,FALSE)+ROW()-2))=Switch!$D$52,INDIRECT(\"a\" & (VLOOKUP(Switch!$D$52,$F$2:$G$44,2,FALSE)+ROW()-2)),\"\")","v":{"$error":"#N/A"}},{"$f":"IF(INDIRECT(\"c\" & (VLOOKUP(Switch!$D$53,$F$2:$G$44,2,FALSE)+ROW()-2))=Switch!$D$53,INDIRECT(\"a\" & (VLOOKUP(Switch!$D$53,$F$2:$G$44,2,FALSE)+ROW()-2)),\"\")","v":{"$error":"#N/A"}},{"$f":"IF(INDIRECT(\"c\" & (VLOOKUP(Switch!$D$54,$F$2:$G$44,2,FALSE)+ROW()-2))=Switch!$D$54,INDIRECT(\"a\" & (VLOOKUP(Switch!$D$54,$F$2:$G$44,2,FALSE)+ROW()-2)),\"\")","v":{"$error":"#N/A"}},{"$f":"IF(INDIRECT(\"c\" & (VLOOKUP(Switch!$D$55,$F$2:$G$44,2,FALSE)+ROW()-2))=Switch!$D$55,INDIRECT(\"a\" & (VLOOKUP(Switch!$D$55,$F$2:$G$44,2,FALSE)+ROW()-2)),\"\")","v":{"$error":"#N/A"}},{"$f":"IF(INDIRECT(\"c\" & (VLOOKUP(Switch!$D$56,$F$2:$G$44,2,FALSE)+ROW()-2))=Switch!$D$56,INDIRECT(\"a\" & (VLOOKUP(Switch!$D$56,$F$2:$G$44,2,FALSE)+ROW()-2)),\"\")","v":{"$error":"#N/A"}},{"$f":"IF(INDIRECT(\"c\" & (VLOOKUP(Switch!$D$57,$F$2:$G$44,2,FALSE)+ROW()-2))=Switch!$D$57,INDIRECT(\"a\" & (VLOOKUP(Switch!$D$57,$F$2:$G$44,2,FALSE)+ROW()-2)),\"\")","v":{"$error":"#N/A"}},{"$f":"IF(INDIRECT(\"c\" & (VLOOKUP(Switch!$D$58,$F$2:$G$44,2,FALSE)+ROW()-2))=Switch!$D$58,INDIRECT(\"a\" & (VLOOKUP(Switch!$D$58,$F$2:$G$44,2,FALSE)+ROW()-2)),\"\")","v":{"$error":"#N/A"}},{"$f":"IF(INDIRECT(\"c\" & (VLOOKUP(Switch!$D$59,$F$2:$G$44,2,FALSE)+ROW()-2))=Switch!$D$59,INDIRECT(\"a\" & (VLOOKUP(Switch!$D$59,$F$2:$G$44,2,FALSE)+ROW()-2)),\"\")","v":{"$error":"#N/A"}},{"$f":"IF(INDIRECT(\"c\" & (VLOOKUP(Switch!$D$60,$F$2:$G$44,2,FALSE)+ROW()-2))=Switch!$D$60,INDIRECT(\"a\" & (VLOOKUP(Switch!$D$60,$F$2:$G$44,2,FALSE)+ROW()-2)),\"\")","v":{"$error":"#N/A"}},{"$f":"IF(INDIRECT(\"c\" & (VLOOKUP(Switch!$D$61,$F$2:$G$44,2,FALSE)+ROW()-2))=Switch!$D$61,INDIRECT(\"a\" & (VLOOKUP(Switch!$D$61,$F$2:$G$44,2,FALSE)+ROW()-2)),\"\")","v":{"$error":"#N/A"}},{"$f":"IF(INDIRECT(\"c\" & (VLOOKUP(Switch!$D$62,$F$2:$G$44,2,FALSE)+ROW()-2))=Switch!$D$62,INDIRECT(\"a\" & (VLOOKUP(Switch!$D$62,$F$2:$G$44,2,FALSE)+ROW()-2)),\"\")","v":{"$error":"#N/A"}},{"$f":"IF(INDIRECT(\"c\" & (VLOOKUP(Switch!$D$63,$F$2:$G$44,2,FALSE)+ROW()-2))=Switch!$D$63,INDIRECT(\"a\" & (VLOOKUP(Switch!$D$63,$F$2:$G$44,2,FALSE)+ROW()-2)),\"\")","v":{"$error":"#N/A"}},{"$f":"IF(INDIRECT(\"c\" & (VLOOKUP(Switch!$D$64,$F$2:$G$44,2,FALSE)+ROW()-2))=Switch!$D$64,INDIRECT(\"a\" & (VLOOKUP(Switch!$D$64,$F$2:$G$44,2,FALSE)+ROW()-2)),\"\")","v":{"$error":"#N/A"}},{"$f":"IF(INDIRECT(\"c\" & (VLOOKUP(Switch!$D$65,$F$2:$G$44,2,FALSE)+ROW()-2))=Switch!$D$65,INDIRECT(\"a\" & (VLOOKUP(Switch!$D$65,$F$2:$G$44,2,FALSE)+ROW()-2)),\"\")","v":{"$error":"#N/A"}},{"$f":"IF(INDIRECT(\"c\" & (VLOOKUP(Switch!$D$66,$F$2:$G$44,2,FALSE)+ROW()-2))=Switch!$D$66,INDIRECT(\"a\" & (VLOOKUP(Switch!$D$66,$F$2:$G$44,2,FALSE)+ROW()-2)),\"\")","v":{"$error":"#N/A"}}]
["Discovery Moderate Balanced Fund A","DARF","DISCOVERY LIFE COLLECTIVE INVESTMENTS (PTY) LTD",{"$f":"ROW()","v":247},null,null,{"$f":"VLOOKUP(F247,$C$2:$D$637,2,FALSE)","v":{"$error":"#N/A"}},{"$f":"IF(INDIRECT(\"c\" & (VLOOKUP(Switch!$D$26,$F$2:$G$44,2,FALSE)+ROW()-2))=Switch!$D$26,INDIRECT(\"a\" & (VLOOKUP(Switch!$D$26,$F$2:$G$44,2,FALSE)+ROW()-2)),\"\")","v":{"$error":"#N/A"}},{"$f":"IF(INDIRECT(\"c\" & (VLOOKUP(Switch!$D$27,$F$2:$G$44,2,FALSE)+ROW()-2))=Switch!$D$27,INDIRECT(\"a\" & (VLOOKUP(Switch!$D$27,$F$2:$G$44,2,FALSE)+ROW()-2)),\"\")","v":{"$error":"#N/A"}},{"$f":"IF(INDIRECT(\"c\" & (VLOOKUP(Switch!$D$28,$F$2:$G$44,2,FALSE)+ROW()-2))=Switch!$D$28,INDIRECT(\"a\" & (VLOOKUP(Switch!$D$28,$F$2:$G$44,2,FALSE)+ROW()-2)),\"\")","v":{"$error":"#N/A"}},{"$f":"IF(INDIRECT(\"c\" & (VLOOKUP(Switch!$D$29,$F$2:$G$44,2,FALSE)+ROW()-2))=Switch!$D$29,INDIRECT(\"a\" & (VLOOKUP(Switch!$D$29,$F$2:$G$44,2,FALSE)+ROW()-2)),\"\")","v":{"$error":"#N/A"}},{"$f":"IF(INDIRECT(\"c\" & (VLOOKUP(Switch!$D$30,$F$2:$G$44,2,FALSE)+ROW()-2))=Switch!$D$30,INDIRECT(\"a\" & (VLOOKUP(Switch!$D$30,$F$2:$G$44,2,FALSE)+ROW()-2)),\"\")","v":{"$error":"#N/A"}},{"$f":"IF(INDIRECT(\"c\" & (VLOOKUP(Switch!$D$31,$F$2:$G$44,2,FALSE)+ROW()-2))=Switch!$D$31,INDIRECT(\"a\" & (VLOOKUP(Switch!$D$31,$F$2:$G$44,2,FALSE)+ROW()-2)),\"\")","v":{"$error":"#N/A"}},{"$f":"IF(INDIRECT(\"c\" & (VLOOKUP(Switch!$D$32,$F$2:$G$44,2,FALSE)+ROW()-2))=Switch!$D$32,INDIRECT(\"a\" & (VLOOKUP(Switch!$D$32,$F$2:$G$44,2,FALSE)+ROW()-2)),\"\")","v":{"$error":"#N/A"}},{"$f":"IF(INDIRECT(\"c\" & (VLOOKUP(Switch!$D$33,$F$2:$G$44,2,FALSE)+ROW()-2))=Switch!$D$33,INDIRECT(\"a\" & (VLOOKUP(Switch!$D$33,$F$2:$G$44,2,FALSE)+ROW()-2)),\"\")","v":{"$error":"#N/A"}},{"$f":"IF(INDIRECT(\"c\" & (VLOOKUP(Switch!$D$34,$F$2:$G$44,2,FALSE)+ROW()-2))=Switch!$D$34,INDIRECT(\"a\" & (VLOOKUP(Switch!$D$34,$F$2:$G$44,2,FALSE)+ROW()-2)),\"\")","v":{"$error":"#N/A"}},{"$f":"IF(INDIRECT(\"c\" & (VLOOKUP(Switch!$D$35,$F$2:$G$44,2,FALSE)+ROW()-2))=Switch!$D$35,INDIRECT(\"a\" & (VLOOKUP(Switch!$D$35,$F$2:$G$44,2,FALSE)+ROW()-2)),\"\")","v":{"$error":"#N/A"}},{"$f":"IF(INDIRECT(\"c\" & (VLOOKUP(Switch!$D$36,$F$2:$G$44,2,FALSE)+ROW()-2))=Switch!$D$36,INDIRECT(\"a\" & (VLOOKUP(Switch!$D$36,$F$2:$G$44,2,FALSE)+ROW()-2)),\"\")","v":{"$error":"#N/A"}},{"$f":"IF(INDIRECT(\"c\" & (VLOOKUP(Switch!$D$37,$F$2:$G$44,2,FALSE)+ROW()-2))=Switch!$D$37,INDIRECT(\"a\" & (VLOOKUP(Switch!$D$37,$F$2:$G$44,2,FALSE)+ROW()-2)),\"\")","v":{"$error":"#N/A"}},{"$f":"IF(INDIRECT(\"c\" & (VLOOKUP(Switch!$D$38,$F$2:$G$44,2,FALSE)+ROW()-2))=Switch!$D$38,INDIRECT(\"a\" & (VLOOKUP(Switch!$D$38,$F$2:$G$44,2,FALSE)+ROW()-2)),\"\")","v":{"$error":"#N/A"}},{"$f":"IF(INDIRECT(\"c\" & (VLOOKUP(Switch!$D$39,$F$2:$G$44,2,FALSE)+ROW()-2))=Switch!$D$39,INDIRECT(\"a\" & (VLOOKUP(Switch!$D$39,$F$2:$G$44,2,FALSE)+ROW()-2)),\"\")","v":{"$error":"#N/A"}},{"$f":"IF(INDIRECT(\"c\" & (VLOOKUP(Switch!$D$40,$F$2:$G$44,2,FALSE)+ROW()-2))=Switch!$D$40,INDIRECT(\"a\" & (VLOOKUP(Switch!$D$40,$F$2:$G$44,2,FALSE)+ROW()-2)),\"\")","v":{"$error":"#N/A"}},{"$f":"IF(INDIRECT(\"c\" & (VLOOKUP(Switch!$D$52,$F$2:$G$44,2,FALSE)+ROW()-2))=Switch!$D$52,INDIRECT(\"a\" & (VLOOKUP(Switch!$D$52,$F$2:$G$44,2,FALSE)+ROW()-2)),\"\")","v":{"$error":"#N/A"}},{"$f":"IF(INDIRECT(\"c\" & (VLOOKUP(Switch!$D$53,$F$2:$G$44,2,FALSE)+ROW()-2))=Switch!$D$53,INDIRECT(\"a\" & (VLOOKUP(Switch!$D$53,$F$2:$G$44,2,FALSE)+ROW()-2)),\"\")","v":{"$error":"#N/A"}},{"$f":"IF(INDIRECT(\"c\" & (VLOOKUP(Switch!$D$54,$F$2:$G$44,2,FALSE)+ROW()-2))=Switch!$D$54,INDIRECT(\"a\" & (VLOOKUP(Switch!$D$54,$F$2:$G$44,2,FALSE)+ROW()-2)),\"\")","v":{"$error":"#N/A"}},{"$f":"IF(INDIRECT(\"c\" & (VLOOKUP(Switch!$D$55,$F$2:$G$44,2,FALSE)+ROW()-2))=Switch!$D$55,INDIRECT(\"a\" & (VLOOKUP(Switch!$D$55,$F$2:$G$44,2,FALSE)+ROW()-2)),\"\")","v":{"$error":"#N/A"}},{"$f":"IF(INDIRECT(\"c\" & (VLOOKUP(Switch!$D$56,$F$2:$G$44,2,FALSE)+ROW()-2))=Switch!$D$56,INDIRECT(\"a\" & (VLOOKUP(Switch!$D$56,$F$2:$G$44,2,FALSE)+ROW()-2)),\"\")","v":{"$error":"#N/A"}},{"$f":"IF(INDIRECT(\"c\" & (VLOOKUP(Switch!$D$57,$F$2:$G$44,2,FALSE)+ROW()-2))=Switch!$D$57,INDIRECT(\"a\" & (VLOOKUP(Switch!$D$57,$F$2:$G$44,2,FALSE)+ROW()-2)),\"\")","v":{"$error":"#N/A"}},{"$f":"IF(INDIRECT(\"c\" & (VLOOKUP(Switch!$D$58,$F$2:$G$44,2,FALSE)+ROW()-2))=Switch!$D$58,INDIRECT(\"a\" & (VLOOKUP(Switch!$D$58,$F$2:$G$44,2,FALSE)+ROW()-2)),\"\")","v":{"$error":"#N/A"}},{"$f":"IF(INDIRECT(\"c\" & (VLOOKUP(Switch!$D$59,$F$2:$G$44,2,FALSE)+ROW()-2))=Switch!$D$59,INDIRECT(\"a\" & (VLOOKUP(Switch!$D$59,$F$2:$G$44,2,FALSE)+ROW()-2)),\"\")","v":{"$error":"#N/A"}},{"$f":"IF(INDIRECT(\"c\" & (VLOOKUP(Switch!$D$60,$F$2:$G$44,2,FALSE)+ROW()-2))=Switch!$D$60,INDIRECT(\"a\" & (VLOOKUP(Switch!$D$60,$F$2:$G$44,2,FALSE)+ROW()-2)),\"\")","v":{"$error":"#N/A"}},{"$f":"IF(INDIRECT(\"c\" & (VLOOKUP(Switch!$D$61,$F$2:$G$44,2,FALSE)+ROW()-2))=Switch!$D$61,INDIRECT(\"a\" & (VLOOKUP(Switch!$D$61,$F$2:$G$44,2,FALSE)+ROW()-2)),\"\")","v":{"$error":"#N/A"}},{"$f":"IF(INDIRECT(\"c\" & (VLOOKUP(Switch!$D$62,$F$2:$G$44,2,FALSE)+ROW()-2))=Switch!$D$62,INDIRECT(\"a\" & (VLOOKUP(Switch!$D$62,$F$2:$G$44,2,FALSE)+ROW()-2)),\"\")","v":{"$error":"#N/A"}},{"$f":"IF(INDIRECT(\"c\" & (VLOOKUP(Switch!$D$63,$F$2:$G$44,2,FALSE)+ROW()-2))=Switch!$D$63,INDIRECT(\"a\" & (VLOOKUP(Switch!$D$63,$F$2:$G$44,2,FALSE)+ROW()-2)),\"\")","v":{"$error":"#N/A"}},{"$f":"IF(INDIRECT(\"c\" & (VLOOKUP(Switch!$D$64,$F$2:$G$44,2,FALSE)+ROW()-2))=Switch!$D$64,INDIRECT(\"a\" & (VLOOKUP(Switch!$D$64,$F$2:$G$44,2,FALSE)+ROW()-2)),\"\")","v":{"$error":"#N/A"}},{"$f":"IF(INDIRECT(\"c\" & (VLOOKUP(Switch!$D$65,$F$2:$G$44,2,FALSE)+ROW()-2))=Switch!$D$65,INDIRECT(\"a\" & (VLOOKUP(Switch!$D$65,$F$2:$G$44,2,FALSE)+ROW()-2)),\"\")","v":{"$error":"#N/A"}},{"$f":"IF(INDIRECT(\"c\" & (VLOOKUP(Switch!$D$66,$F$2:$G$44,2,FALSE)+ROW()-2))=Switch!$D$66,INDIRECT(\"a\" & (VLOOKUP(Switch!$D$66,$F$2:$G$44,2,FALSE)+ROW()-2)),\"\")","v":{"$error":"#N/A"}}]
["Foord Balanced Fund B2","FBCB2","Foord Unit Trusts Ltd",{"$f":"ROW()","v":248},null,null,{"$f":"VLOOKUP(F248,$C$2:$D$637,2,FALSE)","v":{"$error":"#N/A"}},{"$f":"IF(INDIRECT(\"c\" & (VLOOKUP(Switch!$D$26,$F$2:$G$44,2,FALSE)+ROW()-2))=Switch!$D$26,INDIRECT(\"a\" & (VLOOKUP(Switch!$D$26,$F$2:$G$44,2,FALSE)+ROW()-2)),\"\")","v":{"$error":"#N/A"}},{"$f":"IF(INDIRECT(\"c\" & (VLOOKUP(Switch!$D$27,$F$2:$G$44,2,FALSE)+ROW()-2))=Switch!$D$27,INDIRECT(\"a\" & (VLOOKUP(Switch!$D$27,$F$2:$G$44,2,FALSE)+ROW()-2)),\"\")","v":{"$error":"#N/A"}},{"$f":"IF(INDIRECT(\"c\" & (VLOOKUP(Switch!$D$28,$F$2:$G$44,2,FALSE)+ROW()-2))=Switch!$D$28,INDIRECT(\"a\" & (VLOOKUP(Switch!$D$28,$F$2:$G$44,2,FALSE)+ROW()-2)),\"\")","v":{"$error":"#N/A"}},{"$f":"IF(INDIRECT(\"c\" & (VLOOKUP(Switch!$D$29,$F$2:$G$44,2,FALSE)+ROW()-2))=Switch!$D$29,INDIRECT(\"a\" & (VLOOKUP(Switch!$D$29,$F$2:$G$44,2,FALSE)+ROW()-2)),\"\")","v":{"$error":"#N/A"}},{"$f":"IF(INDIRECT(\"c\" & (VLOOKUP(Switch!$D$30,$F$2:$G$44,2,FALSE)+ROW()-2))=Switch!$D$30,INDIRECT(\"a\" & (VLOOKUP(Switch!$D$30,$F$2:$G$44,2,FALSE)+ROW()-2)),\"\")","v":{"$error":"#N/A"}},{"$f":"IF(INDIRECT(\"c\" & (VLOOKUP(Switch!$D$31,$F$2:$G$44,2,FALSE)+ROW()-2))=Switch!$D$31,INDIRECT(\"a\" & (VLOOKUP(Switch!$D$31,$F$2:$G$44,2,FALSE)+ROW()-2)),\"\")","v":{"$error":"#N/A"}},{"$f":"IF(INDIRECT(\"c\" & (VLOOKUP(Switch!$D$32,$F$2:$G$44,2,FALSE)+ROW()-2))=Switch!$D$32,INDIRECT(\"a\" & (VLOOKUP(Switch!$D$32,$F$2:$G$44,2,FALSE)+ROW()-2)),\"\")","v":{"$error":"#N/A"}},{"$f":"IF(INDIRECT(\"c\" & (VLOOKUP(Switch!$D$33,$F$2:$G$44,2,FALSE)+ROW()-2))=Switch!$D$33,INDIRECT(\"a\" & (VLOOKUP(Switch!$D$33,$F$2:$G$44,2,FALSE)+ROW()-2)),\"\")","v":{"$error":"#N/A"}},{"$f":"IF(INDIRECT(\"c\" & (VLOOKUP(Switch!$D$34,$F$2:$G$44,2,FALSE)+ROW()-2))=Switch!$D$34,INDIRECT(\"a\" & (VLOOKUP(Switch!$D$34,$F$2:$G$44,2,FALSE)+ROW()-2)),\"\")","v":{"$error":"#N/A"}},{"$f":"IF(INDIRECT(\"c\" & (VLOOKUP(Switch!$D$35,$F$2:$G$44,2,FALSE)+ROW()-2))=Switch!$D$35,INDIRECT(\"a\" & (VLOOKUP(Switch!$D$35,$F$2:$G$44,2,FALSE)+ROW()-2)),\"\")","v":{"$error":"#N/A"}},{"$f":"IF(INDIRECT(\"c\" & (VLOOKUP(Switch!$D$36,$F$2:$G$44,2,FALSE)+ROW()-2))=Switch!$D$36,INDIRECT(\"a\" & (VLOOKUP(Switch!$D$36,$F$2:$G$44,2,FALSE)+ROW()-2)),\"\")","v":{"$error":"#N/A"}},{"$f":"IF(INDIRECT(\"c\" & (VLOOKUP(Switch!$D$37,$F$2:$G$44,2,FALSE)+ROW()-2))=Switch!$D$37,INDIRECT(\"a\" & (VLOOKUP(Switch!$D$37,$F$2:$G$44,2,FALSE)+ROW()-2)),\"\")","v":{"$error":"#N/A"}},{"$f":"IF(INDIRECT(\"c\" & (VLOOKUP(Switch!$D$38,$F$2:$G$44,2,FALSE)+ROW()-2))=Switch!$D$38,INDIRECT(\"a\" & (VLOOKUP(Switch!$D$38,$F$2:$G$44,2,FALSE)+ROW()-2)),\"\")","v":{"$error":"#N/A"}},{"$f":"IF(INDIRECT(\"c\" & (VLOOKUP(Switch!$D$39,$F$2:$G$44,2,FALSE)+ROW()-2))=Switch!$D$39,INDIRECT(\"a\" & (VLOOKUP(Switch!$D$39,$F$2:$G$44,2,FALSE)+ROW()-2)),\"\")","v":{"$error":"#N/A"}},{"$f":"IF(INDIRECT(\"c\" & (VLOOKUP(Switch!$D$40,$F$2:$G$44,2,FALSE)+ROW()-2))=Switch!$D$40,INDIRECT(\"a\" & (VLOOKUP(Switch!$D$40,$F$2:$G$44,2,FALSE)+ROW()-2)),\"\")","v":{"$error":"#N/A"}},{"$f":"IF(INDIRECT(\"c\" & (VLOOKUP(Switch!$D$52,$F$2:$G$44,2,FALSE)+ROW()-2))=Switch!$D$52,INDIRECT(\"a\" & (VLOOKUP(Switch!$D$52,$F$2:$G$44,2,FALSE)+ROW()-2)),\"\")","v":{"$error":"#N/A"}},{"$f":"IF(INDIRECT(\"c\" & (VLOOKUP(Switch!$D$53,$F$2:$G$44,2,FALSE)+ROW()-2))=Switch!$D$53,INDIRECT(\"a\" & (VLOOKUP(Switch!$D$53,$F$2:$G$44,2,FALSE)+ROW()-2)),\"\")","v":{"$error":"#N/A"}},{"$f":"IF(INDIRECT(\"c\" & (VLOOKUP(Switch!$D$54,$F$2:$G$44,2,FALSE)+ROW()-2))=Switch!$D$54,INDIRECT(\"a\" & (VLOOKUP(Switch!$D$54,$F$2:$G$44,2,FALSE)+ROW()-2)),\"\")","v":{"$error":"#N/A"}},{"$f":"IF(INDIRECT(\"c\" & (VLOOKUP(Switch!$D$55,$F$2:$G$44,2,FALSE)+ROW()-2))=Switch!$D$55,INDIRECT(\"a\" & (VLOOKUP(Switch!$D$55,$F$2:$G$44,2,FALSE)+ROW()-2)),\"\")","v":{"$error":"#N/A"}},{"$f":"IF(INDIRECT(\"c\" & (VLOOKUP(Switch!$D$56,$F$2:$G$44,2,FALSE)+ROW()-2))=Switch!$D$56,INDIRECT(\"a\" & (VLOOKUP(Switch!$D$56,$F$2:$G$44,2,FALSE)+ROW()-2)),\"\")","v":{"$error":"#N/A"}},{"$f":"IF(INDIRECT(\"c\" & (VLOOKUP(Switch!$D$57,$F$2:$G$44,2,FALSE)+ROW()-2))=Switch!$D$57,INDIRECT(\"a\" & (VLOOKUP(Switch!$D$57,$F$2:$G$44,2,FALSE)+ROW()-2)),\"\")","v":{"$error":"#N/A"}},{"$f":"IF(INDIRECT(\"c\" & (VLOOKUP(Switch!$D$58,$F$2:$G$44,2,FALSE)+ROW()-2))=Switch!$D$58,INDIRECT(\"a\" & (VLOOKUP(Switch!$D$58,$F$2:$G$44,2,FALSE)+ROW()-2)),\"\")","v":{"$error":"#N/A"}},{"$f":"IF(INDIRECT(\"c\" & (VLOOKUP(Switch!$D$59,$F$2:$G$44,2,FALSE)+ROW()-2))=Switch!$D$59,INDIRECT(\"a\" & (VLOOKUP(Switch!$D$59,$F$2:$G$44,2,FALSE)+ROW()-2)),\"\")","v":{"$error":"#N/A"}},{"$f":"IF(INDIRECT(\"c\" & (VLOOKUP(Switch!$D$60,$F$2:$G$44,2,FALSE)+ROW()-2))=Switch!$D$60,INDIRECT(\"a\" & (VLOOKUP(Switch!$D$60,$F$2:$G$44,2,FALSE)+ROW()-2)),\"\")","v":{"$error":"#N/A"}},{"$f":"IF(INDIRECT(\"c\" & (VLOOKUP(Switch!$D$61,$F$2:$G$44,2,FALSE)+ROW()-2))=Switch!$D$61,INDIRECT(\"a\" & (VLOOKUP(Switch!$D$61,$F$2:$G$44,2,FALSE)+ROW()-2)),\"\")","v":{"$error":"#N/A"}},{"$f":"IF(INDIRECT(\"c\" & (VLOOKUP(Switch!$D$62,$F$2:$G$44,2,FALSE)+ROW()-2))=Switch!$D$62,INDIRECT(\"a\" & (VLOOKUP(Switch!$D$62,$F$2:$G$44,2,FALSE)+ROW()-2)),\"\")","v":{"$error":"#N/A"}},{"$f":"IF(INDIRECT(\"c\" & (VLOOKUP(Switch!$D$63,$F$2:$G$44,2,FALSE)+ROW()-2))=Switch!$D$63,INDIRECT(\"a\" & (VLOOKUP(Switch!$D$63,$F$2:$G$44,2,FALSE)+ROW()-2)),\"\")","v":{"$error":"#N/A"}},{"$f":"IF(INDIRECT(\"c\" & (VLOOKUP(Switch!$D$64,$F$2:$G$44,2,FALSE)+ROW()-2))=Switch!$D$64,INDIRECT(\"a\" & (VLOOKUP(Switch!$D$64,$F$2:$G$44,2,FALSE)+ROW()-2)),\"\")","v":{"$error":"#N/A"}},{"$f":"IF(INDIRECT(\"c\" & (VLOOKUP(Switch!$D$65,$F$2:$G$44,2,FALSE)+ROW()-2))=Switch!$D$65,INDIRECT(\"a\" & (VLOOKUP(Switch!$D$65,$F$2:$G$44,2,FALSE)+ROW()-2)),\"\")","v":{"$error":"#N/A"}},{"$f":"IF(INDIRECT(\"c\" & (VLOOKUP(Switch!$D$66,$F$2:$G$44,2,FALSE)+ROW()-2))=Switch!$D$66,INDIRECT(\"a\" & (VLOOKUP(Switch!$D$66,$F$2:$G$44,2,FALSE)+ROW()-2)),\"\")","v":{"$error":"#N/A"}}]
["Foord Conservative B2","FCFB2","Foord Unit Trusts Ltd",{"$f":"ROW()","v":249},null,null,{"$f":"VLOOKUP(F249,$C$2:$D$637,2,FALSE)","v":{"$error":"#N/A"}},{"$f":"IF(INDIRECT(\"c\" & (VLOOKUP(Switch!$D$26,$F$2:$G$44,2,FALSE)+ROW()-2))=Switch!$D$26,INDIRECT(\"a\" & (VLOOKUP(Switch!$D$26,$F$2:$G$44,2,FALSE)+ROW()-2)),\"\")","v":{"$error":"#N/A"}},{"$f":"IF(INDIRECT(\"c\" & (VLOOKUP(Switch!$D$27,$F$2:$G$44,2,FALSE)+ROW()-2))=Switch!$D$27,INDIRECT(\"a\" & (VLOOKUP(Switch!$D$27,$F$2:$G$44,2,FALSE)+ROW()-2)),\"\")","v":{"$error":"#N/A"}},{"$f":"IF(INDIRECT(\"c\" & (VLOOKUP(Switch!$D$28,$F$2:$G$44,2,FALSE)+ROW()-2))=Switch!$D$28,INDIRECT(\"a\" & (VLOOKUP(Switch!$D$28,$F$2:$G$44,2,FALSE)+ROW()-2)),\"\")","v":{"$error":"#N/A"}},{"$f":"IF(INDIRECT(\"c\" & (VLOOKUP(Switch!$D$29,$F$2:$G$44,2,FALSE)+ROW()-2))=Switch!$D$29,INDIRECT(\"a\" & (VLOOKUP(Switch!$D$29,$F$2:$G$44,2,FALSE)+ROW()-2)),\"\")","v":{"$error":"#N/A"}},{"$f":"IF(INDIRECT(\"c\" & (VLOOKUP(Switch!$D$30,$F$2:$G$44,2,FALSE)+ROW()-2))=Switch!$D$30,INDIRECT(\"a\" & (VLOOKUP(Switch!$D$30,$F$2:$G$44,2,FALSE)+ROW()-2)),\"\")","v":{"$error":"#N/A"}},{"$f":"IF(INDIRECT(\"c\" & (VLOOKUP(Switch!$D$31,$F$2:$G$44,2,FALSE)+ROW()-2))=Switch!$D$31,INDIRECT(\"a\" & (VLOOKUP(Switch!$D$31,$F$2:$G$44,2,FALSE)+ROW()-2)),\"\")","v":{"$error":"#N/A"}},{"$f":"IF(INDIRECT(\"c\" & (VLOOKUP(Switch!$D$32,$F$2:$G$44,2,FALSE)+ROW()-2))=Switch!$D$32,INDIRECT(\"a\" & (VLOOKUP(Switch!$D$32,$F$2:$G$44,2,FALSE)+ROW()-2)),\"\")","v":{"$error":"#N/A"}},{"$f":"IF(INDIRECT(\"c\" & (VLOOKUP(Switch!$D$33,$F$2:$G$44,2,FALSE)+ROW()-2))=Switch!$D$33,INDIRECT(\"a\" & (VLOOKUP(Switch!$D$33,$F$2:$G$44,2,FALSE)+ROW()-2)),\"\")","v":{"$error":"#N/A"}},{"$f":"IF(INDIRECT(\"c\" & (VLOOKUP(Switch!$D$34,$F$2:$G$44,2,FALSE)+ROW()-2))=Switch!$D$34,INDIRECT(\"a\" & (VLOOKUP(Switch!$D$34,$F$2:$G$44,2,FALSE)+ROW()-2)),\"\")","v":{"$error":"#N/A"}},{"$f":"IF(INDIRECT(\"c\" & (VLOOKUP(Switch!$D$35,$F$2:$G$44,2,FALSE)+ROW()-2))=Switch!$D$35,INDIRECT(\"a\" & (VLOOKUP(Switch!$D$35,$F$2:$G$44,2,FALSE)+ROW()-2)),\"\")","v":{"$error":"#N/A"}},{"$f":"IF(INDIRECT(\"c\" & (VLOOKUP(Switch!$D$36,$F$2:$G$44,2,FALSE)+ROW()-2))=Switch!$D$36,INDIRECT(\"a\" & (VLOOKUP(Switch!$D$36,$F$2:$G$44,2,FALSE)+ROW()-2)),\"\")","v":{"$error":"#N/A"}},{"$f":"IF(INDIRECT(\"c\" & (VLOOKUP(Switch!$D$37,$F$2:$G$44,2,FALSE)+ROW()-2))=Switch!$D$37,INDIRECT(\"a\" & (VLOOKUP(Switch!$D$37,$F$2:$G$44,2,FALSE)+ROW()-2)),\"\")","v":{"$error":"#N/A"}},{"$f":"IF(INDIRECT(\"c\" & (VLOOKUP(Switch!$D$38,$F$2:$G$44,2,FALSE)+ROW()-2))=Switch!$D$38,INDIRECT(\"a\" & (VLOOKUP(Switch!$D$38,$F$2:$G$44,2,FALSE)+ROW()-2)),\"\")","v":{"$error":"#N/A"}},{"$f":"IF(INDIRECT(\"c\" & (VLOOKUP(Switch!$D$39,$F$2:$G$44,2,FALSE)+ROW()-2))=Switch!$D$39,INDIRECT(\"a\" & (VLOOKUP(Switch!$D$39,$F$2:$G$44,2,FALSE)+ROW()-2)),\"\")","v":{"$error":"#N/A"}},{"$f":"IF(INDIRECT(\"c\" & (VLOOKUP(Switch!$D$40,$F$2:$G$44,2,FALSE)+ROW()-2))=Switch!$D$40,INDIRECT(\"a\" & (VLOOKUP(Switch!$D$40,$F$2:$G$44,2,FALSE)+ROW()-2)),\"\")","v":{"$error":"#N/A"}},{"$f":"IF(INDIRECT(\"c\" & (VLOOKUP(Switch!$D$52,$F$2:$G$44,2,FALSE)+ROW()-2))=Switch!$D$52,INDIRECT(\"a\" & (VLOOKUP(Switch!$D$52,$F$2:$G$44,2,FALSE)+ROW()-2)),\"\")","v":{"$error":"#N/A"}},{"$f":"IF(INDIRECT(\"c\" & (VLOOKUP(Switch!$D$53,$F$2:$G$44,2,FALSE)+ROW()-2))=Switch!$D$53,INDIRECT(\"a\" & (VLOOKUP(Switch!$D$53,$F$2:$G$44,2,FALSE)+ROW()-2)),\"\")","v":{"$error":"#N/A"}},{"$f":"IF(INDIRECT(\"c\" & (VLOOKUP(Switch!$D$54,$F$2:$G$44,2,FALSE)+ROW()-2))=Switch!$D$54,INDIRECT(\"a\" & (VLOOKUP(Switch!$D$54,$F$2:$G$44,2,FALSE)+ROW()-2)),\"\")","v":{"$error":"#N/A"}},{"$f":"IF(INDIRECT(\"c\" & (VLOOKUP(Switch!$D$55,$F$2:$G$44,2,FALSE)+ROW()-2))=Switch!$D$55,INDIRECT(\"a\" & (VLOOKUP(Switch!$D$55,$F$2:$G$44,2,FALSE)+ROW()-2)),\"\")","v":{"$error":"#N/A"}},{"$f":"IF(INDIRECT(\"c\" & (VLOOKUP(Switch!$D$56,$F$2:$G$44,2,FALSE)+ROW()-2))=Switch!$D$56,INDIRECT(\"a\" & (VLOOKUP(Switch!$D$56,$F$2:$G$44,2,FALSE)+ROW()-2)),\"\")","v":{"$error":"#N/A"}},{"$f":"IF(INDIRECT(\"c\" & (VLOOKUP(Switch!$D$57,$F$2:$G$44,2,FALSE)+ROW()-2))=Switch!$D$57,INDIRECT(\"a\" & (VLOOKUP(Switch!$D$57,$F$2:$G$44,2,FALSE)+ROW()-2)),\"\")","v":{"$error":"#N/A"}},{"$f":"IF(INDIRECT(\"c\" & (VLOOKUP(Switch!$D$58,$F$2:$G$44,2,FALSE)+ROW()-2))=Switch!$D$58,INDIRECT(\"a\" & (VLOOKUP(Switch!$D$58,$F$2:$G$44,2,FALSE)+ROW()-2)),\"\")","v":{"$error":"#N/A"}},{"$f":"IF(INDIRECT(\"c\" & (VLOOKUP(Switch!$D$59,$F$2:$G$44,2,FALSE)+ROW()-2))=Switch!$D$59,INDIRECT(\"a\" & (VLOOKUP(Switch!$D$59,$F$2:$G$44,2,FALSE)+ROW()-2)),\"\")","v":{"$error":"#N/A"}},{"$f":"IF(INDIRECT(\"c\" & (VLOOKUP(Switch!$D$60,$F$2:$G$44,2,FALSE)+ROW()-2))=Switch!$D$60,INDIRECT(\"a\" & (VLOOKUP(Switch!$D$60,$F$2:$G$44,2,FALSE)+ROW()-2)),\"\")","v":{"$error":"#N/A"}},{"$f":"IF(INDIRECT(\"c\" & (VLOOKUP(Switch!$D$61,$F$2:$G$44,2,FALSE)+ROW()-2))=Switch!$D$61,INDIRECT(\"a\" & (VLOOKUP(Switch!$D$61,$F$2:$G$44,2,FALSE)+ROW()-2)),\"\")","v":{"$error":"#N/A"}},{"$f":"IF(INDIRECT(\"c\" & (VLOOKUP(Switch!$D$62,$F$2:$G$44,2,FALSE)+ROW()-2))=Switch!$D$62,INDIRECT(\"a\" & (VLOOKUP(Switch!$D$62,$F$2:$G$44,2,FALSE)+ROW()-2)),\"\")","v":{"$error":"#N/A"}},{"$f":"IF(INDIRECT(\"c\" & (VLOOKUP(Switch!$D$63,$F$2:$G$44,2,FALSE)+ROW()-2))=Switch!$D$63,INDIRECT(\"a\" & (VLOOKUP(Switch!$D$63,$F$2:$G$44,2,FALSE)+ROW()-2)),\"\")","v":{"$error":"#N/A"}},{"$f":"IF(INDIRECT(\"c\" & (VLOOKUP(Switch!$D$64,$F$2:$G$44,2,FALSE)+ROW()-2))=Switch!$D$64,INDIRECT(\"a\" & (VLOOKUP(Switch!$D$64,$F$2:$G$44,2,FALSE)+ROW()-2)),\"\")","v":{"$error":"#N/A"}},{"$f":"IF(INDIRECT(\"c\" & (VLOOKUP(Switch!$D$65,$F$2:$G$44,2,FALSE)+ROW()-2))=Switch!$D$65,INDIRECT(\"a\" & (VLOOKUP(Switch!$D$65,$F$2:$G$44,2,FALSE)+ROW()-2)),\"\")","v":{"$error":"#N/A"}},{"$f":"IF(INDIRECT(\"c\" & (VLOOKUP(Switch!$D$66,$F$2:$G$44,2,FALSE)+ROW()-2))=Switch!$D$66,INDIRECT(\"a\" & (VLOOKUP(Switch!$D$66,$F$2:$G$44,2,FALSE)+ROW()-2)),\"\")","v":{"$error":"#N/A"}}]
["Foord Equity Fund B2","FECB2","Foord Unit Trusts Ltd",{"$f":"ROW()","v":250},null,null,{"$f":"VLOOKUP(F250,$C$2:$D$637,2,FALSE)","v":{"$error":"#N/A"}},{"$f":"IF(INDIRECT(\"c\" & (VLOOKUP(Switch!$D$26,$F$2:$G$44,2,FALSE)+ROW()-2))=Switch!$D$26,INDIRECT(\"a\" & (VLOOKUP(Switch!$D$26,$F$2:$G$44,2,FALSE)+ROW()-2)),\"\")","v":{"$error":"#N/A"}},{"$f":"IF(INDIRECT(\"c\" & (VLOOKUP(Switch!$D$27,$F$2:$G$44,2,FALSE)+ROW()-2))=Switch!$D$27,INDIRECT(\"a\" & (VLOOKUP(Switch!$D$27,$F$2:$G$44,2,FALSE)+ROW()-2)),\"\")","v":{"$error":"#N/A"}},{"$f":"IF(INDIRECT(\"c\" & (VLOOKUP(Switch!$D$28,$F$2:$G$44,2,FALSE)+ROW()-2))=Switch!$D$28,INDIRECT(\"a\" & (VLOOKUP(Switch!$D$28,$F$2:$G$44,2,FALSE)+ROW()-2)),\"\")","v":{"$error":"#N/A"}},{"$f":"IF(INDIRECT(\"c\" & (VLOOKUP(Switch!$D$29,$F$2:$G$44,2,FALSE)+ROW()-2))=Switch!$D$29,INDIRECT(\"a\" & (VLOOKUP(Switch!$D$29,$F$2:$G$44,2,FALSE)+ROW()-2)),\"\")","v":{"$error":"#N/A"}},{"$f":"IF(INDIRECT(\"c\" & (VLOOKUP(Switch!$D$30,$F$2:$G$44,2,FALSE)+ROW()-2))=Switch!$D$30,INDIRECT(\"a\" & (VLOOKUP(Switch!$D$30,$F$2:$G$44,2,FALSE)+ROW()-2)),\"\")","v":{"$error":"#N/A"}},{"$f":"IF(INDIRECT(\"c\" & (VLOOKUP(Switch!$D$31,$F$2:$G$44,2,FALSE)+ROW()-2))=Switch!$D$31,INDIRECT(\"a\" & (VLOOKUP(Switch!$D$31,$F$2:$G$44,2,FALSE)+ROW()-2)),\"\")","v":{"$error":"#N/A"}},{"$f":"IF(INDIRECT(\"c\" & (VLOOKUP(Switch!$D$32,$F$2:$G$44,2,FALSE)+ROW()-2))=Switch!$D$32,INDIRECT(\"a\" & (VLOOKUP(Switch!$D$32,$F$2:$G$44,2,FALSE)+ROW()-2)),\"\")","v":{"$error":"#N/A"}},{"$f":"IF(INDIRECT(\"c\" & (VLOOKUP(Switch!$D$33,$F$2:$G$44,2,FALSE)+ROW()-2))=Switch!$D$33,INDIRECT(\"a\" & (VLOOKUP(Switch!$D$33,$F$2:$G$44,2,FALSE)+ROW()-2)),\"\")","v":{"$error":"#N/A"}},{"$f":"IF(INDIRECT(\"c\" & (VLOOKUP(Switch!$D$34,$F$2:$G$44,2,FALSE)+ROW()-2))=Switch!$D$34,INDIRECT(\"a\" & (VLOOKUP(Switch!$D$34,$F$2:$G$44,2,FALSE)+ROW()-2)),\"\")","v":{"$error":"#N/A"}},{"$f":"IF(INDIRECT(\"c\" & (VLOOKUP(Switch!$D$35,$F$2:$G$44,2,FALSE)+ROW()-2))=Switch!$D$35,INDIRECT(\"a\" & (VLOOKUP(Switch!$D$35,$F$2:$G$44,2,FALSE)+ROW()-2)),\"\")","v":{"$error":"#N/A"}},{"$f":"IF(INDIRECT(\"c\" & (VLOOKUP(Switch!$D$36,$F$2:$G$44,2,FALSE)+ROW()-2))=Switch!$D$36,INDIRECT(\"a\" & (VLOOKUP(Switch!$D$36,$F$2:$G$44,2,FALSE)+ROW()-2)),\"\")","v":{"$error":"#N/A"}},{"$f":"IF(INDIRECT(\"c\" & (VLOOKUP(Switch!$D$37,$F$2:$G$44,2,FALSE)+ROW()-2))=Switch!$D$37,INDIRECT(\"a\" & (VLOOKUP(Switch!$D$37,$F$2:$G$44,2,FALSE)+ROW()-2)),\"\")","v":{"$error":"#N/A"}},{"$f":"IF(INDIRECT(\"c\" & (VLOOKUP(Switch!$D$38,$F$2:$G$44,2,FALSE)+ROW()-2))=Switch!$D$38,INDIRECT(\"a\" & (VLOOKUP(Switch!$D$38,$F$2:$G$44,2,FALSE)+ROW()-2)),\"\")","v":{"$error":"#N/A"}},{"$f":"IF(INDIRECT(\"c\" & (VLOOKUP(Switch!$D$39,$F$2:$G$44,2,FALSE)+ROW()-2))=Switch!$D$39,INDIRECT(\"a\" & (VLOOKUP(Switch!$D$39,$F$2:$G$44,2,FALSE)+ROW()-2)),\"\")","v":{"$error":"#N/A"}},{"$f":"IF(INDIRECT(\"c\" & (VLOOKUP(Switch!$D$40,$F$2:$G$44,2,FALSE)+ROW()-2))=Switch!$D$40,INDIRECT(\"a\" & (VLOOKUP(Switch!$D$40,$F$2:$G$44,2,FALSE)+ROW()-2)),\"\")","v":{"$error":"#N/A"}},{"$f":"IF(INDIRECT(\"c\" & (VLOOKUP(Switch!$D$52,$F$2:$G$44,2,FALSE)+ROW()-2))=Switch!$D$52,INDIRECT(\"a\" & (VLOOKUP(Switch!$D$52,$F$2:$G$44,2,FALSE)+ROW()-2)),\"\")","v":{"$error":"#N/A"}},{"$f":"IF(INDIRECT(\"c\" & (VLOOKUP(Switch!$D$53,$F$2:$G$44,2,FALSE)+ROW()-2))=Switch!$D$53,INDIRECT(\"a\" & (VLOOKUP(Switch!$D$53,$F$2:$G$44,2,FALSE)+ROW()-2)),\"\")","v":{"$error":"#N/A"}},{"$f":"IF(INDIRECT(\"c\" & (VLOOKUP(Switch!$D$54,$F$2:$G$44,2,FALSE)+ROW()-2))=Switch!$D$54,INDIRECT(\"a\" & (VLOOKUP(Switch!$D$54,$F$2:$G$44,2,FALSE)+ROW()-2)),\"\")","v":{"$error":"#N/A"}},{"$f":"IF(INDIRECT(\"c\" & (VLOOKUP(Switch!$D$55,$F$2:$G$44,2,FALSE)+ROW()-2))=Switch!$D$55,INDIRECT(\"a\" & (VLOOKUP(Switch!$D$55,$F$2:$G$44,2,FALSE)+ROW()-2)),\"\")","v":{"$error":"#N/A"}},{"$f":"IF(INDIRECT(\"c\" & (VLOOKUP(Switch!$D$56,$F$2:$G$44,2,FALSE)+ROW()-2))=Switch!$D$56,INDIRECT(\"a\" & (VLOOKUP(Switch!$D$56,$F$2:$G$44,2,FALSE)+ROW()-2)),\"\")","v":{"$error":"#N/A"}},{"$f":"IF(INDIRECT(\"c\" & (VLOOKUP(Switch!$D$57,$F$2:$G$44,2,FALSE)+ROW()-2))=Switch!$D$57,INDIRECT(\"a\" & (VLOOKUP(Switch!$D$57,$F$2:$G$44,2,FALSE)+ROW()-2)),\"\")","v":{"$error":"#N/A"}},{"$f":"IF(INDIRECT(\"c\" & (VLOOKUP(Switch!$D$58,$F$2:$G$44,2,FALSE)+ROW()-2))=Switch!$D$58,INDIRECT(\"a\" & (VLOOKUP(Switch!$D$58,$F$2:$G$44,2,FALSE)+ROW()-2)),\"\")","v":{"$error":"#N/A"}},{"$f":"IF(INDIRECT(\"c\" & (VLOOKUP(Switch!$D$59,$F$2:$G$44,2,FALSE)+ROW()-2))=Switch!$D$59,INDIRECT(\"a\" & (VLOOKUP(Switch!$D$59,$F$2:$G$44,2,FALSE)+ROW()-2)),\"\")","v":{"$error":"#N/A"}},{"$f":"IF(INDIRECT(\"c\" & (VLOOKUP(Switch!$D$60,$F$2:$G$44,2,FALSE)+ROW()-2))=Switch!$D$60,INDIRECT(\"a\" & (VLOOKUP(Switch!$D$60,$F$2:$G$44,2,FALSE)+ROW()-2)),\"\")","v":{"$error":"#N/A"}},{"$f":"IF(INDIRECT(\"c\" & (VLOOKUP(Switch!$D$61,$F$2:$G$44,2,FALSE)+ROW()-2))=Switch!$D$61,INDIRECT(\"a\" & (VLOOKUP(Switch!$D$61,$F$2:$G$44,2,FALSE)+ROW()-2)),\"\")","v":{"$error":"#N/A"}},{"$f":"IF(INDIRECT(\"c\" & (VLOOKUP(Switch!$D$62,$F$2:$G$44,2,FALSE)+ROW()-2))=Switch!$D$62,INDIRECT(\"a\" & (VLOOKUP(Switch!$D$62,$F$2:$G$44,2,FALSE)+ROW()-2)),\"\")","v":{"$error":"#N/A"}},{"$f":"IF(INDIRECT(\"c\" & (VLOOKUP(Switch!$D$63,$F$2:$G$44,2,FALSE)+ROW()-2))=Switch!$D$63,INDIRECT(\"a\" & (VLOOKUP(Switch!$D$63,$F$2:$G$44,2,FALSE)+ROW()-2)),\"\")","v":{"$error":"#N/A"}},{"$f":"IF(INDIRECT(\"c\" & (VLOOKUP(Switch!$D$64,$F$2:$G$44,2,FALSE)+ROW()-2))=Switch!$D$64,INDIRECT(\"a\" & (VLOOKUP(Switch!$D$64,$F$2:$G$44,2,FALSE)+ROW()-2)),\"\")","v":{"$error":"#N/A"}},{"$f":"IF(INDIRECT(\"c\" & (VLOOKUP(Switch!$D$65,$F$2:$G$44,2,FALSE)+ROW()-2))=Switch!$D$65,INDIRECT(\"a\" & (VLOOKUP(Switch!$D$65,$F$2:$G$44,2,FALSE)+ROW()-2)),\"\")","v":{"$error":"#N/A"}},{"$f":"IF(INDIRECT(\"c\" & (VLOOKUP(Switch!$D$66,$F$2:$G$44,2,FALSE)+ROW()-2))=Switch!$D$66,INDIRECT(\"a\" & (VLOOKUP(Switch!$D$66,$F$2:$G$44,2,FALSE)+ROW()-2)),\"\")","v":{"$error":"#N/A"}}]
["Foord Flexible FoF B2","FFFCR","Foord Unit Trusts Ltd",{"$f":"ROW()","v":251},null,null,{"$f":"VLOOKUP(F251,$C$2:$D$637,2,FALSE)","v":{"$error":"#N/A"}},{"$f":"IF(INDIRECT(\"c\" & (VLOOKUP(Switch!$D$26,$F$2:$G$44,2,FALSE)+ROW()-2))=Switch!$D$26,INDIRECT(\"a\" & (VLOOKUP(Switch!$D$26,$F$2:$G$44,2,FALSE)+ROW()-2)),\"\")","v":{"$error":"#N/A"}},{"$f":"IF(INDIRECT(\"c\" & (VLOOKUP(Switch!$D$27,$F$2:$G$44,2,FALSE)+ROW()-2))=Switch!$D$27,INDIRECT(\"a\" & (VLOOKUP(Switch!$D$27,$F$2:$G$44,2,FALSE)+ROW()-2)),\"\")","v":{"$error":"#N/A"}},{"$f":"IF(INDIRECT(\"c\" & (VLOOKUP(Switch!$D$28,$F$2:$G$44,2,FALSE)+ROW()-2))=Switch!$D$28,INDIRECT(\"a\" & (VLOOKUP(Switch!$D$28,$F$2:$G$44,2,FALSE)+ROW()-2)),\"\")","v":{"$error":"#N/A"}},{"$f":"IF(INDIRECT(\"c\" & (VLOOKUP(Switch!$D$29,$F$2:$G$44,2,FALSE)+ROW()-2))=Switch!$D$29,INDIRECT(\"a\" & (VLOOKUP(Switch!$D$29,$F$2:$G$44,2,FALSE)+ROW()-2)),\"\")","v":{"$error":"#N/A"}},{"$f":"IF(INDIRECT(\"c\" & (VLOOKUP(Switch!$D$30,$F$2:$G$44,2,FALSE)+ROW()-2))=Switch!$D$30,INDIRECT(\"a\" & (VLOOKUP(Switch!$D$30,$F$2:$G$44,2,FALSE)+ROW()-2)),\"\")","v":{"$error":"#N/A"}},{"$f":"IF(INDIRECT(\"c\" & (VLOOKUP(Switch!$D$31,$F$2:$G$44,2,FALSE)+ROW()-2))=Switch!$D$31,INDIRECT(\"a\" & (VLOOKUP(Switch!$D$31,$F$2:$G$44,2,FALSE)+ROW()-2)),\"\")","v":{"$error":"#N/A"}},{"$f":"IF(INDIRECT(\"c\" & (VLOOKUP(Switch!$D$32,$F$2:$G$44,2,FALSE)+ROW()-2))=Switch!$D$32,INDIRECT(\"a\" & (VLOOKUP(Switch!$D$32,$F$2:$G$44,2,FALSE)+ROW()-2)),\"\")","v":{"$error":"#N/A"}},{"$f":"IF(INDIRECT(\"c\" & (VLOOKUP(Switch!$D$33,$F$2:$G$44,2,FALSE)+ROW()-2))=Switch!$D$33,INDIRECT(\"a\" & (VLOOKUP(Switch!$D$33,$F$2:$G$44,2,FALSE)+ROW()-2)),\"\")","v":{"$error":"#N/A"}},{"$f":"IF(INDIRECT(\"c\" & (VLOOKUP(Switch!$D$34,$F$2:$G$44,2,FALSE)+ROW()-2))=Switch!$D$34,INDIRECT(\"a\" & (VLOOKUP(Switch!$D$34,$F$2:$G$44,2,FALSE)+ROW()-2)),\"\")","v":{"$error":"#N/A"}},{"$f":"IF(INDIRECT(\"c\" & (VLOOKUP(Switch!$D$35,$F$2:$G$44,2,FALSE)+ROW()-2))=Switch!$D$35,INDIRECT(\"a\" & (VLOOKUP(Switch!$D$35,$F$2:$G$44,2,FALSE)+ROW()-2)),\"\")","v":{"$error":"#N/A"}},{"$f":"IF(INDIRECT(\"c\" & (VLOOKUP(Switch!$D$36,$F$2:$G$44,2,FALSE)+ROW()-2))=Switch!$D$36,INDIRECT(\"a\" & (VLOOKUP(Switch!$D$36,$F$2:$G$44,2,FALSE)+ROW()-2)),\"\")","v":{"$error":"#N/A"}},{"$f":"IF(INDIRECT(\"c\" & (VLOOKUP(Switch!$D$37,$F$2:$G$44,2,FALSE)+ROW()-2))=Switch!$D$37,INDIRECT(\"a\" & (VLOOKUP(Switch!$D$37,$F$2:$G$44,2,FALSE)+ROW()-2)),\"\")","v":{"$error":"#N/A"}},{"$f":"IF(INDIRECT(\"c\" & (VLOOKUP(Switch!$D$38,$F$2:$G$44,2,FALSE)+ROW()-2))=Switch!$D$38,INDIRECT(\"a\" & (VLOOKUP(Switch!$D$38,$F$2:$G$44,2,FALSE)+ROW()-2)),\"\")","v":{"$error":"#N/A"}},{"$f":"IF(INDIRECT(\"c\" & (VLOOKUP(Switch!$D$39,$F$2:$G$44,2,FALSE)+ROW()-2))=Switch!$D$39,INDIRECT(\"a\" & (VLOOKUP(Switch!$D$39,$F$2:$G$44,2,FALSE)+ROW()-2)),\"\")","v":{"$error":"#N/A"}},{"$f":"IF(INDIRECT(\"c\" & (VLOOKUP(Switch!$D$40,$F$2:$G$44,2,FALSE)+ROW()-2))=Switch!$D$40,INDIRECT(\"a\" & (VLOOKUP(Switch!$D$40,$F$2:$G$44,2,FALSE)+ROW()-2)),\"\")","v":{"$error":"#N/A"}},{"$f":"IF(INDIRECT(\"c\" & (VLOOKUP(Switch!$D$52,$F$2:$G$44,2,FALSE)+ROW()-2))=Switch!$D$52,INDIRECT(\"a\" & (VLOOKUP(Switch!$D$52,$F$2:$G$44,2,FALSE)+ROW()-2)),\"\")","v":{"$error":"#N/A"}},{"$f":"IF(INDIRECT(\"c\" & (VLOOKUP(Switch!$D$53,$F$2:$G$44,2,FALSE)+ROW()-2))=Switch!$D$53,INDIRECT(\"a\" & (VLOOKUP(Switch!$D$53,$F$2:$G$44,2,FALSE)+ROW()-2)),\"\")","v":{"$error":"#N/A"}},{"$f":"IF(INDIRECT(\"c\" & (VLOOKUP(Switch!$D$54,$F$2:$G$44,2,FALSE)+ROW()-2))=Switch!$D$54,INDIRECT(\"a\" & (VLOOKUP(Switch!$D$54,$F$2:$G$44,2,FALSE)+ROW()-2)),\"\")","v":{"$error":"#N/A"}},{"$f":"IF(INDIRECT(\"c\" & (VLOOKUP(Switch!$D$55,$F$2:$G$44,2,FALSE)+ROW()-2))=Switch!$D$55,INDIRECT(\"a\" & (VLOOKUP(Switch!$D$55,$F$2:$G$44,2,FALSE)+ROW()-2)),\"\")","v":{"$error":"#N/A"}},{"$f":"IF(INDIRECT(\"c\" & (VLOOKUP(Switch!$D$56,$F$2:$G$44,2,FALSE)+ROW()-2))=Switch!$D$56,INDIRECT(\"a\" & (VLOOKUP(Switch!$D$56,$F$2:$G$44,2,FALSE)+ROW()-2)),\"\")","v":{"$error":"#N/A"}},{"$f":"IF(INDIRECT(\"c\" & (VLOOKUP(Switch!$D$57,$F$2:$G$44,2,FALSE)+ROW()-2))=Switch!$D$57,INDIRECT(\"a\" & (VLOOKUP(Switch!$D$57,$F$2:$G$44,2,FALSE)+ROW()-2)),\"\")","v":{"$error":"#N/A"}},{"$f":"IF(INDIRECT(\"c\" & (VLOOKUP(Switch!$D$58,$F$2:$G$44,2,FALSE)+ROW()-2))=Switch!$D$58,INDIRECT(\"a\" & (VLOOKUP(Switch!$D$58,$F$2:$G$44,2,FALSE)+ROW()-2)),\"\")","v":{"$error":"#N/A"}},{"$f":"IF(INDIRECT(\"c\" & (VLOOKUP(Switch!$D$59,$F$2:$G$44,2,FALSE)+ROW()-2))=Switch!$D$59,INDIRECT(\"a\" & (VLOOKUP(Switch!$D$59,$F$2:$G$44,2,FALSE)+ROW()-2)),\"\")","v":{"$error":"#N/A"}},{"$f":"IF(INDIRECT(\"c\" & (VLOOKUP(Switch!$D$60,$F$2:$G$44,2,FALSE)+ROW()-2))=Switch!$D$60,INDIRECT(\"a\" & (VLOOKUP(Switch!$D$60,$F$2:$G$44,2,FALSE)+ROW()-2)),\"\")","v":{"$error":"#N/A"}},{"$f":"IF(INDIRECT(\"c\" & (VLOOKUP(Switch!$D$61,$F$2:$G$44,2,FALSE)+ROW()-2))=Switch!$D$61,INDIRECT(\"a\" & (VLOOKUP(Switch!$D$61,$F$2:$G$44,2,FALSE)+ROW()-2)),\"\")","v":{"$error":"#N/A"}},{"$f":"IF(INDIRECT(\"c\" & (VLOOKUP(Switch!$D$62,$F$2:$G$44,2,FALSE)+ROW()-2))=Switch!$D$62,INDIRECT(\"a\" & (VLOOKUP(Switch!$D$62,$F$2:$G$44,2,FALSE)+ROW()-2)),\"\")","v":{"$error":"#N/A"}},{"$f":"IF(INDIRECT(\"c\" & (VLOOKUP(Switch!$D$63,$F$2:$G$44,2,FALSE)+ROW()-2))=Switch!$D$63,INDIRECT(\"a\" & (VLOOKUP(Switch!$D$63,$F$2:$G$44,2,FALSE)+ROW()-2)),\"\")","v":{"$error":"#N/A"}},{"$f":"IF(INDIRECT(\"c\" & (VLOOKUP(Switch!$D$64,$F$2:$G$44,2,FALSE)+ROW()-2))=Switch!$D$64,INDIRECT(\"a\" & (VLOOKUP(Switch!$D$64,$F$2:$G$44,2,FALSE)+ROW()-2)),\"\")","v":{"$error":"#N/A"}},{"$f":"IF(INDIRECT(\"c\" & (VLOOKUP(Switch!$D$65,$F$2:$G$44,2,FALSE)+ROW()-2))=Switch!$D$65,INDIRECT(\"a\" & (VLOOKUP(Switch!$D$65,$F$2:$G$44,2,FALSE)+ROW()-2)),\"\")","v":{"$error":"#N/A"}},{"$f":"IF(INDIRECT(\"c\" & (VLOOKUP(Switch!$D$66,$F$2:$G$44,2,FALSE)+ROW()-2))=Switch!$D$66,INDIRECT(\"a\" & (VLOOKUP(Switch!$D$66,$F$2:$G$44,2,FALSE)+ROW()-2)),\"\")","v":{"$error":"#N/A"}}]
["Foord International Feeder Fund B2","FIFB2","Foord Unit Trusts Ltd",{"$f":"ROW()","v":252},null,null,{"$f":"VLOOKUP(F252,$C$2:$D$637,2,FALSE)","v":{"$error":"#N/A"}},{"$f":"IF(INDIRECT(\"c\" & (VLOOKUP(Switch!$D$26,$F$2:$G$44,2,FALSE)+ROW()-2))=Switch!$D$26,INDIRECT(\"a\" & (VLOOKUP(Switch!$D$26,$F$2:$G$44,2,FALSE)+ROW()-2)),\"\")","v":{"$error":"#N/A"}},{"$f":"IF(INDIRECT(\"c\" & (VLOOKUP(Switch!$D$27,$F$2:$G$44,2,FALSE)+ROW()-2))=Switch!$D$27,INDIRECT(\"a\" & (VLOOKUP(Switch!$D$27,$F$2:$G$44,2,FALSE)+ROW()-2)),\"\")","v":{"$error":"#N/A"}},{"$f":"IF(INDIRECT(\"c\" & (VLOOKUP(Switch!$D$28,$F$2:$G$44,2,FALSE)+ROW()-2))=Switch!$D$28,INDIRECT(\"a\" & (VLOOKUP(Switch!$D$28,$F$2:$G$44,2,FALSE)+ROW()-2)),\"\")","v":{"$error":"#N/A"}},{"$f":"IF(INDIRECT(\"c\" & (VLOOKUP(Switch!$D$29,$F$2:$G$44,2,FALSE)+ROW()-2))=Switch!$D$29,INDIRECT(\"a\" & (VLOOKUP(Switch!$D$29,$F$2:$G$44,2,FALSE)+ROW()-2)),\"\")","v":{"$error":"#N/A"}},{"$f":"IF(INDIRECT(\"c\" & (VLOOKUP(Switch!$D$30,$F$2:$G$44,2,FALSE)+ROW()-2))=Switch!$D$30,INDIRECT(\"a\" & (VLOOKUP(Switch!$D$30,$F$2:$G$44,2,FALSE)+ROW()-2)),\"\")","v":{"$error":"#N/A"}},{"$f":"IF(INDIRECT(\"c\" & (VLOOKUP(Switch!$D$31,$F$2:$G$44,2,FALSE)+ROW()-2))=Switch!$D$31,INDIRECT(\"a\" & (VLOOKUP(Switch!$D$31,$F$2:$G$44,2,FALSE)+ROW()-2)),\"\")","v":{"$error":"#N/A"}},{"$f":"IF(INDIRECT(\"c\" & (VLOOKUP(Switch!$D$32,$F$2:$G$44,2,FALSE)+ROW()-2))=Switch!$D$32,INDIRECT(\"a\" & (VLOOKUP(Switch!$D$32,$F$2:$G$44,2,FALSE)+ROW()-2)),\"\")","v":{"$error":"#N/A"}},{"$f":"IF(INDIRECT(\"c\" & (VLOOKUP(Switch!$D$33,$F$2:$G$44,2,FALSE)+ROW()-2))=Switch!$D$33,INDIRECT(\"a\" & (VLOOKUP(Switch!$D$33,$F$2:$G$44,2,FALSE)+ROW()-2)),\"\")","v":{"$error":"#N/A"}},{"$f":"IF(INDIRECT(\"c\" & (VLOOKUP(Switch!$D$34,$F$2:$G$44,2,FALSE)+ROW()-2))=Switch!$D$34,INDIRECT(\"a\" & (VLOOKUP(Switch!$D$34,$F$2:$G$44,2,FALSE)+ROW()-2)),\"\")","v":{"$error":"#N/A"}},{"$f":"IF(INDIRECT(\"c\" & (VLOOKUP(Switch!$D$35,$F$2:$G$44,2,FALSE)+ROW()-2))=Switch!$D$35,INDIRECT(\"a\" & (VLOOKUP(Switch!$D$35,$F$2:$G$44,2,FALSE)+ROW()-2)),\"\")","v":{"$error":"#N/A"}},{"$f":"IF(INDIRECT(\"c\" & (VLOOKUP(Switch!$D$36,$F$2:$G$44,2,FALSE)+ROW()-2))=Switch!$D$36,INDIRECT(\"a\" & (VLOOKUP(Switch!$D$36,$F$2:$G$44,2,FALSE)+ROW()-2)),\"\")","v":{"$error":"#N/A"}},{"$f":"IF(INDIRECT(\"c\" & (VLOOKUP(Switch!$D$37,$F$2:$G$44,2,FALSE)+ROW()-2))=Switch!$D$37,INDIRECT(\"a\" & (VLOOKUP(Switch!$D$37,$F$2:$G$44,2,FALSE)+ROW()-2)),\"\")","v":{"$error":"#N/A"}},{"$f":"IF(INDIRECT(\"c\" & (VLOOKUP(Switch!$D$38,$F$2:$G$44,2,FALSE)+ROW()-2))=Switch!$D$38,INDIRECT(\"a\" & (VLOOKUP(Switch!$D$38,$F$2:$G$44,2,FALSE)+ROW()-2)),\"\")","v":{"$error":"#N/A"}},{"$f":"IF(INDIRECT(\"c\" & (VLOOKUP(Switch!$D$39,$F$2:$G$44,2,FALSE)+ROW()-2))=Switch!$D$39,INDIRECT(\"a\" & (VLOOKUP(Switch!$D$39,$F$2:$G$44,2,FALSE)+ROW()-2)),\"\")","v":{"$error":"#N/A"}},{"$f":"IF(INDIRECT(\"c\" & (VLOOKUP(Switch!$D$40,$F$2:$G$44,2,FALSE)+ROW()-2))=Switch!$D$40,INDIRECT(\"a\" & (VLOOKUP(Switch!$D$40,$F$2:$G$44,2,FALSE)+ROW()-2)),\"\")","v":{"$error":"#N/A"}},{"$f":"IF(INDIRECT(\"c\" & (VLOOKUP(Switch!$D$52,$F$2:$G$44,2,FALSE)+ROW()-2))=Switch!$D$52,INDIRECT(\"a\" & (VLOOKUP(Switch!$D$52,$F$2:$G$44,2,FALSE)+ROW()-2)),\"\")","v":{"$error":"#N/A"}},{"$f":"IF(INDIRECT(\"c\" & (VLOOKUP(Switch!$D$53,$F$2:$G$44,2,FALSE)+ROW()-2))=Switch!$D$53,INDIRECT(\"a\" & (VLOOKUP(Switch!$D$53,$F$2:$G$44,2,FALSE)+ROW()-2)),\"\")","v":{"$error":"#N/A"}},{"$f":"IF(INDIRECT(\"c\" & (VLOOKUP(Switch!$D$54,$F$2:$G$44,2,FALSE)+ROW()-2))=Switch!$D$54,INDIRECT(\"a\" & (VLOOKUP(Switch!$D$54,$F$2:$G$44,2,FALSE)+ROW()-2)),\"\")","v":{"$error":"#N/A"}},{"$f":"IF(INDIRECT(\"c\" & (VLOOKUP(Switch!$D$55,$F$2:$G$44,2,FALSE)+ROW()-2))=Switch!$D$55,INDIRECT(\"a\" & (VLOOKUP(Switch!$D$55,$F$2:$G$44,2,FALSE)+ROW()-2)),\"\")","v":{"$error":"#N/A"}},{"$f":"IF(INDIRECT(\"c\" & (VLOOKUP(Switch!$D$56,$F$2:$G$44,2,FALSE)+ROW()-2))=Switch!$D$56,INDIRECT(\"a\" & (VLOOKUP(Switch!$D$56,$F$2:$G$44,2,FALSE)+ROW()-2)),\"\")","v":{"$error":"#N/A"}},{"$f":"IF(INDIRECT(\"c\" & (VLOOKUP(Switch!$D$57,$F$2:$G$44,2,FALSE)+ROW()-2))=Switch!$D$57,INDIRECT(\"a\" & (VLOOKUP(Switch!$D$57,$F$2:$G$44,2,FALSE)+ROW()-2)),\"\")","v":{"$error":"#N/A"}},{"$f":"IF(INDIRECT(\"c\" & (VLOOKUP(Switch!$D$58,$F$2:$G$44,2,FALSE)+ROW()-2))=Switch!$D$58,INDIRECT(\"a\" & (VLOOKUP(Switch!$D$58,$F$2:$G$44,2,FALSE)+ROW()-2)),\"\")","v":{"$error":"#N/A"}},{"$f":"IF(INDIRECT(\"c\" & (VLOOKUP(Switch!$D$59,$F$2:$G$44,2,FALSE)+ROW()-2))=Switch!$D$59,INDIRECT(\"a\" & (VLOOKUP(Switch!$D$59,$F$2:$G$44,2,FALSE)+ROW()-2)),\"\")","v":{"$error":"#N/A"}},{"$f":"IF(INDIRECT(\"c\" & (VLOOKUP(Switch!$D$60,$F$2:$G$44,2,FALSE)+ROW()-2))=Switch!$D$60,INDIRECT(\"a\" & (VLOOKUP(Switch!$D$60,$F$2:$G$44,2,FALSE)+ROW()-2)),\"\")","v":{"$error":"#N/A"}},{"$f":"IF(INDIRECT(\"c\" & (VLOOKUP(Switch!$D$61,$F$2:$G$44,2,FALSE)+ROW()-2))=Switch!$D$61,INDIRECT(\"a\" & (VLOOKUP(Switch!$D$61,$F$2:$G$44,2,FALSE)+ROW()-2)),\"\")","v":{"$error":"#N/A"}},{"$f":"IF(INDIRECT(\"c\" & (VLOOKUP(Switch!$D$62,$F$2:$G$44,2,FALSE)+ROW()-2))=Switch!$D$62,INDIRECT(\"a\" & (VLOOKUP(Switch!$D$62,$F$2:$G$44,2,FALSE)+ROW()-2)),\"\")","v":{"$error":"#N/A"}},{"$f":"IF(INDIRECT(\"c\" & (VLOOKUP(Switch!$D$63,$F$2:$G$44,2,FALSE)+ROW()-2))=Switch!$D$63,INDIRECT(\"a\" & (VLOOKUP(Switch!$D$63,$F$2:$G$44,2,FALSE)+ROW()-2)),\"\")","v":{"$error":"#N/A"}},{"$f":"IF(INDIRECT(\"c\" & (VLOOKUP(Switch!$D$64,$F$2:$G$44,2,FALSE)+ROW()-2))=Switch!$D$64,INDIRECT(\"a\" & (VLOOKUP(Switch!$D$64,$F$2:$G$44,2,FALSE)+ROW()-2)),\"\")","v":{"$error":"#N/A"}},{"$f":"IF(INDIRECT(\"c\" & (VLOOKUP(Switch!$D$65,$F$2:$G$44,2,FALSE)+ROW()-2))=Switch!$D$65,INDIRECT(\"a\" & (VLOOKUP(Switch!$D$65,$F$2:$G$44,2,FALSE)+ROW()-2)),\"\")","v":{"$error":"#N/A"}},{"$f":"IF(INDIRECT(\"c\" & (VLOOKUP(Switch!$D$66,$F$2:$G$44,2,FALSE)+ROW()-2))=Switch!$D$66,INDIRECT(\"a\" & (VLOOKUP(Switch!$D$66,$F$2:$G$44,2,FALSE)+ROW()-2)),\"\")","v":{"$error":"#N/A"}}]
["GTC Capital Plus FoF B","GTCCB","Grant Thornton Capital (Pty) Ltd",{"$f":"ROW()","v":253},null,null,{"$f":"VLOOKUP(F253,$C$2:$D$637,2,FALSE)","v":{"$error":"#N/A"}},{"$f":"IF(INDIRECT(\"c\" & (VLOOKUP(Switch!$D$26,$F$2:$G$44,2,FALSE)+ROW()-2))=Switch!$D$26,INDIRECT(\"a\" & (VLOOKUP(Switch!$D$26,$F$2:$G$44,2,FALSE)+ROW()-2)),\"\")","v":{"$error":"#N/A"}},{"$f":"IF(INDIRECT(\"c\" & (VLOOKUP(Switch!$D$27,$F$2:$G$44,2,FALSE)+ROW()-2))=Switch!$D$27,INDIRECT(\"a\" & (VLOOKUP(Switch!$D$27,$F$2:$G$44,2,FALSE)+ROW()-2)),\"\")","v":{"$error":"#N/A"}},{"$f":"IF(INDIRECT(\"c\" & (VLOOKUP(Switch!$D$28,$F$2:$G$44,2,FALSE)+ROW()-2))=Switch!$D$28,INDIRECT(\"a\" & (VLOOKUP(Switch!$D$28,$F$2:$G$44,2,FALSE)+ROW()-2)),\"\")","v":{"$error":"#N/A"}},{"$f":"IF(INDIRECT(\"c\" & (VLOOKUP(Switch!$D$29,$F$2:$G$44,2,FALSE)+ROW()-2))=Switch!$D$29,INDIRECT(\"a\" & (VLOOKUP(Switch!$D$29,$F$2:$G$44,2,FALSE)+ROW()-2)),\"\")","v":{"$error":"#N/A"}},{"$f":"IF(INDIRECT(\"c\" & (VLOOKUP(Switch!$D$30,$F$2:$G$44,2,FALSE)+ROW()-2))=Switch!$D$30,INDIRECT(\"a\" & (VLOOKUP(Switch!$D$30,$F$2:$G$44,2,FALSE)+ROW()-2)),\"\")","v":{"$error":"#N/A"}},{"$f":"IF(INDIRECT(\"c\" & (VLOOKUP(Switch!$D$31,$F$2:$G$44,2,FALSE)+ROW()-2))=Switch!$D$31,INDIRECT(\"a\" & (VLOOKUP(Switch!$D$31,$F$2:$G$44,2,FALSE)+ROW()-2)),\"\")","v":{"$error":"#N/A"}},{"$f":"IF(INDIRECT(\"c\" & (VLOOKUP(Switch!$D$32,$F$2:$G$44,2,FALSE)+ROW()-2))=Switch!$D$32,INDIRECT(\"a\" & (VLOOKUP(Switch!$D$32,$F$2:$G$44,2,FALSE)+ROW()-2)),\"\")","v":{"$error":"#N/A"}},{"$f":"IF(INDIRECT(\"c\" & (VLOOKUP(Switch!$D$33,$F$2:$G$44,2,FALSE)+ROW()-2))=Switch!$D$33,INDIRECT(\"a\" & (VLOOKUP(Switch!$D$33,$F$2:$G$44,2,FALSE)+ROW()-2)),\"\")","v":{"$error":"#N/A"}},{"$f":"IF(INDIRECT(\"c\" & (VLOOKUP(Switch!$D$34,$F$2:$G$44,2,FALSE)+ROW()-2))=Switch!$D$34,INDIRECT(\"a\" & (VLOOKUP(Switch!$D$34,$F$2:$G$44,2,FALSE)+ROW()-2)),\"\")","v":{"$error":"#N/A"}},{"$f":"IF(INDIRECT(\"c\" & (VLOOKUP(Switch!$D$35,$F$2:$G$44,2,FALSE)+ROW()-2))=Switch!$D$35,INDIRECT(\"a\" & (VLOOKUP(Switch!$D$35,$F$2:$G$44,2,FALSE)+ROW()-2)),\"\")","v":{"$error":"#N/A"}},{"$f":"IF(INDIRECT(\"c\" & (VLOOKUP(Switch!$D$36,$F$2:$G$44,2,FALSE)+ROW()-2))=Switch!$D$36,INDIRECT(\"a\" & (VLOOKUP(Switch!$D$36,$F$2:$G$44,2,FALSE)+ROW()-2)),\"\")","v":{"$error":"#N/A"}},{"$f":"IF(INDIRECT(\"c\" & (VLOOKUP(Switch!$D$37,$F$2:$G$44,2,FALSE)+ROW()-2))=Switch!$D$37,INDIRECT(\"a\" & (VLOOKUP(Switch!$D$37,$F$2:$G$44,2,FALSE)+ROW()-2)),\"\")","v":{"$error":"#N/A"}},{"$f":"IF(INDIRECT(\"c\" & (VLOOKUP(Switch!$D$38,$F$2:$G$44,2,FALSE)+ROW()-2))=Switch!$D$38,INDIRECT(\"a\" & (VLOOKUP(Switch!$D$38,$F$2:$G$44,2,FALSE)+ROW()-2)),\"\")","v":{"$error":"#N/A"}},{"$f":"IF(INDIRECT(\"c\" & (VLOOKUP(Switch!$D$39,$F$2:$G$44,2,FALSE)+ROW()-2))=Switch!$D$39,INDIRECT(\"a\" & (VLOOKUP(Switch!$D$39,$F$2:$G$44,2,FALSE)+ROW()-2)),\"\")","v":{"$error":"#N/A"}},{"$f":"IF(INDIRECT(\"c\" & (VLOOKUP(Switch!$D$40,$F$2:$G$44,2,FALSE)+ROW()-2))=Switch!$D$40,INDIRECT(\"a\" & (VLOOKUP(Switch!$D$40,$F$2:$G$44,2,FALSE)+ROW()-2)),\"\")","v":{"$error":"#N/A"}},{"$f":"IF(INDIRECT(\"c\" & (VLOOKUP(Switch!$D$52,$F$2:$G$44,2,FALSE)+ROW()-2))=Switch!$D$52,INDIRECT(\"a\" & (VLOOKUP(Switch!$D$52,$F$2:$G$44,2,FALSE)+ROW()-2)),\"\")","v":{"$error":"#N/A"}},{"$f":"IF(INDIRECT(\"c\" & (VLOOKUP(Switch!$D$53,$F$2:$G$44,2,FALSE)+ROW()-2))=Switch!$D$53,INDIRECT(\"a\" & (VLOOKUP(Switch!$D$53,$F$2:$G$44,2,FALSE)+ROW()-2)),\"\")","v":{"$error":"#N/A"}},{"$f":"IF(INDIRECT(\"c\" & (VLOOKUP(Switch!$D$54,$F$2:$G$44,2,FALSE)+ROW()-2))=Switch!$D$54,INDIRECT(\"a\" & (VLOOKUP(Switch!$D$54,$F$2:$G$44,2,FALSE)+ROW()-2)),\"\")","v":{"$error":"#N/A"}},{"$f":"IF(INDIRECT(\"c\" & (VLOOKUP(Switch!$D$55,$F$2:$G$44,2,FALSE)+ROW()-2))=Switch!$D$55,INDIRECT(\"a\" & (VLOOKUP(Switch!$D$55,$F$2:$G$44,2,FALSE)+ROW()-2)),\"\")","v":{"$error":"#N/A"}},{"$f":"IF(INDIRECT(\"c\" & (VLOOKUP(Switch!$D$56,$F$2:$G$44,2,FALSE)+ROW()-2))=Switch!$D$56,INDIRECT(\"a\" & (VLOOKUP(Switch!$D$56,$F$2:$G$44,2,FALSE)+ROW()-2)),\"\")","v":{"$error":"#N/A"}},{"$f":"IF(INDIRECT(\"c\" & (VLOOKUP(Switch!$D$57,$F$2:$G$44,2,FALSE)+ROW()-2))=Switch!$D$57,INDIRECT(\"a\" & (VLOOKUP(Switch!$D$57,$F$2:$G$44,2,FALSE)+ROW()-2)),\"\")","v":{"$error":"#N/A"}},{"$f":"IF(INDIRECT(\"c\" & (VLOOKUP(Switch!$D$58,$F$2:$G$44,2,FALSE)+ROW()-2))=Switch!$D$58,INDIRECT(\"a\" & (VLOOKUP(Switch!$D$58,$F$2:$G$44,2,FALSE)+ROW()-2)),\"\")","v":{"$error":"#N/A"}},{"$f":"IF(INDIRECT(\"c\" & (VLOOKUP(Switch!$D$59,$F$2:$G$44,2,FALSE)+ROW()-2))=Switch!$D$59,INDIRECT(\"a\" & (VLOOKUP(Switch!$D$59,$F$2:$G$44,2,FALSE)+ROW()-2)),\"\")","v":{"$error":"#N/A"}},{"$f":"IF(INDIRECT(\"c\" & (VLOOKUP(Switch!$D$60,$F$2:$G$44,2,FALSE)+ROW()-2))=Switch!$D$60,INDIRECT(\"a\" & (VLOOKUP(Switch!$D$60,$F$2:$G$44,2,FALSE)+ROW()-2)),\"\")","v":{"$error":"#N/A"}},{"$f":"IF(INDIRECT(\"c\" & (VLOOKUP(Switch!$D$61,$F$2:$G$44,2,FALSE)+ROW()-2))=Switch!$D$61,INDIRECT(\"a\" & (VLOOKUP(Switch!$D$61,$F$2:$G$44,2,FALSE)+ROW()-2)),\"\")","v":{"$error":"#N/A"}},{"$f":"IF(INDIRECT(\"c\" & (VLOOKUP(Switch!$D$62,$F$2:$G$44,2,FALSE)+ROW()-2))=Switch!$D$62,INDIRECT(\"a\" & (VLOOKUP(Switch!$D$62,$F$2:$G$44,2,FALSE)+ROW()-2)),\"\")","v":{"$error":"#N/A"}},{"$f":"IF(INDIRECT(\"c\" & (VLOOKUP(Switch!$D$63,$F$2:$G$44,2,FALSE)+ROW()-2))=Switch!$D$63,INDIRECT(\"a\" & (VLOOKUP(Switch!$D$63,$F$2:$G$44,2,FALSE)+ROW()-2)),\"\")","v":{"$error":"#N/A"}},{"$f":"IF(INDIRECT(\"c\" & (VLOOKUP(Switch!$D$64,$F$2:$G$44,2,FALSE)+ROW()-2))=Switch!$D$64,INDIRECT(\"a\" & (VLOOKUP(Switch!$D$64,$F$2:$G$44,2,FALSE)+ROW()-2)),\"\")","v":{"$error":"#N/A"}},{"$f":"IF(INDIRECT(\"c\" & (VLOOKUP(Switch!$D$65,$F$2:$G$44,2,FALSE)+ROW()-2))=Switch!$D$65,INDIRECT(\"a\" & (VLOOKUP(Switch!$D$65,$F$2:$G$44,2,FALSE)+ROW()-2)),\"\")","v":{"$error":"#N/A"}},{"$f":"IF(INDIRECT(\"c\" & (VLOOKUP(Switch!$D$66,$F$2:$G$44,2,FALSE)+ROW()-2))=Switch!$D$66,INDIRECT(\"a\" & (VLOOKUP(Switch!$D$66,$F$2:$G$44,2,FALSE)+ROW()-2)),\"\")","v":{"$error":"#N/A"}}]
["GTC Fixed Income Fund B","GFICB","Grant Thornton Capital (Pty) Ltd",{"$f":"ROW()","v":254},null,null,{"$f":"VLOOKUP(F254,$C$2:$D$637,2,FALSE)","v":{"$error":"#N/A"}},{"$f":"IF(INDIRECT(\"c\" & (VLOOKUP(Switch!$D$26,$F$2:$G$44,2,FALSE)+ROW()-2))=Switch!$D$26,INDIRECT(\"a\" & (VLOOKUP(Switch!$D$26,$F$2:$G$44,2,FALSE)+ROW()-2)),\"\")","v":{"$error":"#N/A"}},{"$f":"IF(INDIRECT(\"c\" & (VLOOKUP(Switch!$D$27,$F$2:$G$44,2,FALSE)+ROW()-2))=Switch!$D$27,INDIRECT(\"a\" & (VLOOKUP(Switch!$D$27,$F$2:$G$44,2,FALSE)+ROW()-2)),\"\")","v":{"$error":"#N/A"}},{"$f":"IF(INDIRECT(\"c\" & (VLOOKUP(Switch!$D$28,$F$2:$G$44,2,FALSE)+ROW()-2))=Switch!$D$28,INDIRECT(\"a\" & (VLOOKUP(Switch!$D$28,$F$2:$G$44,2,FALSE)+ROW()-2)),\"\")","v":{"$error":"#N/A"}},{"$f":"IF(INDIRECT(\"c\" & (VLOOKUP(Switch!$D$29,$F$2:$G$44,2,FALSE)+ROW()-2))=Switch!$D$29,INDIRECT(\"a\" & (VLOOKUP(Switch!$D$29,$F$2:$G$44,2,FALSE)+ROW()-2)),\"\")","v":{"$error":"#N/A"}},{"$f":"IF(INDIRECT(\"c\" & (VLOOKUP(Switch!$D$30,$F$2:$G$44,2,FALSE)+ROW()-2))=Switch!$D$30,INDIRECT(\"a\" & (VLOOKUP(Switch!$D$30,$F$2:$G$44,2,FALSE)+ROW()-2)),\"\")","v":{"$error":"#N/A"}},{"$f":"IF(INDIRECT(\"c\" & (VLOOKUP(Switch!$D$31,$F$2:$G$44,2,FALSE)+ROW()-2))=Switch!$D$31,INDIRECT(\"a\" & (VLOOKUP(Switch!$D$31,$F$2:$G$44,2,FALSE)+ROW()-2)),\"\")","v":{"$error":"#N/A"}},{"$f":"IF(INDIRECT(\"c\" & (VLOOKUP(Switch!$D$32,$F$2:$G$44,2,FALSE)+ROW()-2))=Switch!$D$32,INDIRECT(\"a\" & (VLOOKUP(Switch!$D$32,$F$2:$G$44,2,FALSE)+ROW()-2)),\"\")","v":{"$error":"#N/A"}},{"$f":"IF(INDIRECT(\"c\" & (VLOOKUP(Switch!$D$33,$F$2:$G$44,2,FALSE)+ROW()-2))=Switch!$D$33,INDIRECT(\"a\" & (VLOOKUP(Switch!$D$33,$F$2:$G$44,2,FALSE)+ROW()-2)),\"\")","v":{"$error":"#N/A"}},{"$f":"IF(INDIRECT(\"c\" & (VLOOKUP(Switch!$D$34,$F$2:$G$44,2,FALSE)+ROW()-2))=Switch!$D$34,INDIRECT(\"a\" & (VLOOKUP(Switch!$D$34,$F$2:$G$44,2,FALSE)+ROW()-2)),\"\")","v":{"$error":"#N/A"}},{"$f":"IF(INDIRECT(\"c\" & (VLOOKUP(Switch!$D$35,$F$2:$G$44,2,FALSE)+ROW()-2))=Switch!$D$35,INDIRECT(\"a\" & (VLOOKUP(Switch!$D$35,$F$2:$G$44,2,FALSE)+ROW()-2)),\"\")","v":{"$error":"#N/A"}},{"$f":"IF(INDIRECT(\"c\" & (VLOOKUP(Switch!$D$36,$F$2:$G$44,2,FALSE)+ROW()-2))=Switch!$D$36,INDIRECT(\"a\" & (VLOOKUP(Switch!$D$36,$F$2:$G$44,2,FALSE)+ROW()-2)),\"\")","v":{"$error":"#N/A"}},{"$f":"IF(INDIRECT(\"c\" & (VLOOKUP(Switch!$D$37,$F$2:$G$44,2,FALSE)+ROW()-2))=Switch!$D$37,INDIRECT(\"a\" & (VLOOKUP(Switch!$D$37,$F$2:$G$44,2,FALSE)+ROW()-2)),\"\")","v":{"$error":"#N/A"}},{"$f":"IF(INDIRECT(\"c\" & (VLOOKUP(Switch!$D$38,$F$2:$G$44,2,FALSE)+ROW()-2))=Switch!$D$38,INDIRECT(\"a\" & (VLOOKUP(Switch!$D$38,$F$2:$G$44,2,FALSE)+ROW()-2)),\"\")","v":{"$error":"#N/A"}},{"$f":"IF(INDIRECT(\"c\" & (VLOOKUP(Switch!$D$39,$F$2:$G$44,2,FALSE)+ROW()-2))=Switch!$D$39,INDIRECT(\"a\" & (VLOOKUP(Switch!$D$39,$F$2:$G$44,2,FALSE)+ROW()-2)),\"\")","v":{"$error":"#N/A"}},{"$f":"IF(INDIRECT(\"c\" & (VLOOKUP(Switch!$D$40,$F$2:$G$44,2,FALSE)+ROW()-2))=Switch!$D$40,INDIRECT(\"a\" & (VLOOKUP(Switch!$D$40,$F$2:$G$44,2,FALSE)+ROW()-2)),\"\")","v":{"$error":"#N/A"}},{"$f":"IF(INDIRECT(\"c\" & (VLOOKUP(Switch!$D$52,$F$2:$G$44,2,FALSE)+ROW()-2))=Switch!$D$52,INDIRECT(\"a\" & (VLOOKUP(Switch!$D$52,$F$2:$G$44,2,FALSE)+ROW()-2)),\"\")","v":{"$error":"#N/A"}},{"$f":"IF(INDIRECT(\"c\" & (VLOOKUP(Switch!$D$53,$F$2:$G$44,2,FALSE)+ROW()-2))=Switch!$D$53,INDIRECT(\"a\" & (VLOOKUP(Switch!$D$53,$F$2:$G$44,2,FALSE)+ROW()-2)),\"\")","v":{"$error":"#N/A"}},{"$f":"IF(INDIRECT(\"c\" & (VLOOKUP(Switch!$D$54,$F$2:$G$44,2,FALSE)+ROW()-2))=Switch!$D$54,INDIRECT(\"a\" & (VLOOKUP(Switch!$D$54,$F$2:$G$44,2,FALSE)+ROW()-2)),\"\")","v":{"$error":"#N/A"}},{"$f":"IF(INDIRECT(\"c\" & (VLOOKUP(Switch!$D$55,$F$2:$G$44,2,FALSE)+ROW()-2))=Switch!$D$55,INDIRECT(\"a\" & (VLOOKUP(Switch!$D$55,$F$2:$G$44,2,FALSE)+ROW()-2)),\"\")","v":{"$error":"#N/A"}},{"$f":"IF(INDIRECT(\"c\" & (VLOOKUP(Switch!$D$56,$F$2:$G$44,2,FALSE)+ROW()-2))=Switch!$D$56,INDIRECT(\"a\" & (VLOOKUP(Switch!$D$56,$F$2:$G$44,2,FALSE)+ROW()-2)),\"\")","v":{"$error":"#N/A"}},{"$f":"IF(INDIRECT(\"c\" & (VLOOKUP(Switch!$D$57,$F$2:$G$44,2,FALSE)+ROW()-2))=Switch!$D$57,INDIRECT(\"a\" & (VLOOKUP(Switch!$D$57,$F$2:$G$44,2,FALSE)+ROW()-2)),\"\")","v":{"$error":"#N/A"}},{"$f":"IF(INDIRECT(\"c\" & (VLOOKUP(Switch!$D$58,$F$2:$G$44,2,FALSE)+ROW()-2))=Switch!$D$58,INDIRECT(\"a\" & (VLOOKUP(Switch!$D$58,$F$2:$G$44,2,FALSE)+ROW()-2)),\"\")","v":{"$error":"#N/A"}},{"$f":"IF(INDIRECT(\"c\" & (VLOOKUP(Switch!$D$59,$F$2:$G$44,2,FALSE)+ROW()-2))=Switch!$D$59,INDIRECT(\"a\" & (VLOOKUP(Switch!$D$59,$F$2:$G$44,2,FALSE)+ROW()-2)),\"\")","v":{"$error":"#N/A"}},{"$f":"IF(INDIRECT(\"c\" & (VLOOKUP(Switch!$D$60,$F$2:$G$44,2,FALSE)+ROW()-2))=Switch!$D$60,INDIRECT(\"a\" & (VLOOKUP(Switch!$D$60,$F$2:$G$44,2,FALSE)+ROW()-2)),\"\")","v":{"$error":"#N/A"}},{"$f":"IF(INDIRECT(\"c\" & (VLOOKUP(Switch!$D$61,$F$2:$G$44,2,FALSE)+ROW()-2))=Switch!$D$61,INDIRECT(\"a\" & (VLOOKUP(Switch!$D$61,$F$2:$G$44,2,FALSE)+ROW()-2)),\"\")","v":{"$error":"#N/A"}},{"$f":"IF(INDIRECT(\"c\" & (VLOOKUP(Switch!$D$62,$F$2:$G$44,2,FALSE)+ROW()-2))=Switch!$D$62,INDIRECT(\"a\" & (VLOOKUP(Switch!$D$62,$F$2:$G$44,2,FALSE)+ROW()-2)),\"\")","v":{"$error":"#N/A"}},{"$f":"IF(INDIRECT(\"c\" & (VLOOKUP(Switch!$D$63,$F$2:$G$44,2,FALSE)+ROW()-2))=Switch!$D$63,INDIRECT(\"a\" & (VLOOKUP(Switch!$D$63,$F$2:$G$44,2,FALSE)+ROW()-2)),\"\")","v":{"$error":"#N/A"}},{"$f":"IF(INDIRECT(\"c\" & (VLOOKUP(Switch!$D$64,$F$2:$G$44,2,FALSE)+ROW()-2))=Switch!$D$64,INDIRECT(\"a\" & (VLOOKUP(Switch!$D$64,$F$2:$G$44,2,FALSE)+ROW()-2)),\"\")","v":{"$error":"#N/A"}},{"$f":"IF(INDIRECT(\"c\" & (VLOOKUP(Switch!$D$65,$F$2:$G$44,2,FALSE)+ROW()-2))=Switch!$D$65,INDIRECT(\"a\" & (VLOOKUP(Switch!$D$65,$F$2:$G$44,2,FALSE)+ROW()-2)),\"\")","v":{"$error":"#N/A"}},{"$f":"IF(INDIRECT(\"c\" & (VLOOKUP(Switch!$D$66,$F$2:$G$44,2,FALSE)+ROW()-2))=Switch!$D$66,INDIRECT(\"a\" & (VLOOKUP(Switch!$D$66,$F$2:$G$44,2,FALSE)+ROW()-2)),\"\")","v":{"$error":"#N/A"}}]
["GTC Wealth Accumulator FoF B","WACB","Grant Thornton Capital (Pty) Ltd",{"$f":"ROW()","v":255},null,null,{"$f":"VLOOKUP(F255,$C$2:$D$637,2,FALSE)","v":{"$error":"#N/A"}},{"$f":"IF(INDIRECT(\"c\" & (VLOOKUP(Switch!$D$26,$F$2:$G$44,2,FALSE)+ROW()-2))=Switch!$D$26,INDIRECT(\"a\" & (VLOOKUP(Switch!$D$26,$F$2:$G$44,2,FALSE)+ROW()-2)),\"\")","v":{"$error":"#N/A"}},{"$f":"IF(INDIRECT(\"c\" & (VLOOKUP(Switch!$D$27,$F$2:$G$44,2,FALSE)+ROW()-2))=Switch!$D$27,INDIRECT(\"a\" & (VLOOKUP(Switch!$D$27,$F$2:$G$44,2,FALSE)+ROW()-2)),\"\")","v":{"$error":"#N/A"}},{"$f":"IF(INDIRECT(\"c\" & (VLOOKUP(Switch!$D$28,$F$2:$G$44,2,FALSE)+ROW()-2))=Switch!$D$28,INDIRECT(\"a\" & (VLOOKUP(Switch!$D$28,$F$2:$G$44,2,FALSE)+ROW()-2)),\"\")","v":{"$error":"#N/A"}},{"$f":"IF(INDIRECT(\"c\" & (VLOOKUP(Switch!$D$29,$F$2:$G$44,2,FALSE)+ROW()-2))=Switch!$D$29,INDIRECT(\"a\" & (VLOOKUP(Switch!$D$29,$F$2:$G$44,2,FALSE)+ROW()-2)),\"\")","v":{"$error":"#N/A"}},{"$f":"IF(INDIRECT(\"c\" & (VLOOKUP(Switch!$D$30,$F$2:$G$44,2,FALSE)+ROW()-2))=Switch!$D$30,INDIRECT(\"a\" & (VLOOKUP(Switch!$D$30,$F$2:$G$44,2,FALSE)+ROW()-2)),\"\")","v":{"$error":"#N/A"}},{"$f":"IF(INDIRECT(\"c\" & (VLOOKUP(Switch!$D$31,$F$2:$G$44,2,FALSE)+ROW()-2))=Switch!$D$31,INDIRECT(\"a\" & (VLOOKUP(Switch!$D$31,$F$2:$G$44,2,FALSE)+ROW()-2)),\"\")","v":{"$error":"#N/A"}},{"$f":"IF(INDIRECT(\"c\" & (VLOOKUP(Switch!$D$32,$F$2:$G$44,2,FALSE)+ROW()-2))=Switch!$D$32,INDIRECT(\"a\" & (VLOOKUP(Switch!$D$32,$F$2:$G$44,2,FALSE)+ROW()-2)),\"\")","v":{"$error":"#N/A"}},{"$f":"IF(INDIRECT(\"c\" & (VLOOKUP(Switch!$D$33,$F$2:$G$44,2,FALSE)+ROW()-2))=Switch!$D$33,INDIRECT(\"a\" & (VLOOKUP(Switch!$D$33,$F$2:$G$44,2,FALSE)+ROW()-2)),\"\")","v":{"$error":"#N/A"}},{"$f":"IF(INDIRECT(\"c\" & (VLOOKUP(Switch!$D$34,$F$2:$G$44,2,FALSE)+ROW()-2))=Switch!$D$34,INDIRECT(\"a\" & (VLOOKUP(Switch!$D$34,$F$2:$G$44,2,FALSE)+ROW()-2)),\"\")","v":{"$error":"#N/A"}},{"$f":"IF(INDIRECT(\"c\" & (VLOOKUP(Switch!$D$35,$F$2:$G$44,2,FALSE)+ROW()-2))=Switch!$D$35,INDIRECT(\"a\" & (VLOOKUP(Switch!$D$35,$F$2:$G$44,2,FALSE)+ROW()-2)),\"\")","v":{"$error":"#N/A"}},{"$f":"IF(INDIRECT(\"c\" & (VLOOKUP(Switch!$D$36,$F$2:$G$44,2,FALSE)+ROW()-2))=Switch!$D$36,INDIRECT(\"a\" & (VLOOKUP(Switch!$D$36,$F$2:$G$44,2,FALSE)+ROW()-2)),\"\")","v":{"$error":"#N/A"}},{"$f":"IF(INDIRECT(\"c\" & (VLOOKUP(Switch!$D$37,$F$2:$G$44,2,FALSE)+ROW()-2))=Switch!$D$37,INDIRECT(\"a\" & (VLOOKUP(Switch!$D$37,$F$2:$G$44,2,FALSE)+ROW()-2)),\"\")","v":{"$error":"#N/A"}},{"$f":"IF(INDIRECT(\"c\" & (VLOOKUP(Switch!$D$38,$F$2:$G$44,2,FALSE)+ROW()-2))=Switch!$D$38,INDIRECT(\"a\" & (VLOOKUP(Switch!$D$38,$F$2:$G$44,2,FALSE)+ROW()-2)),\"\")","v":{"$error":"#N/A"}},{"$f":"IF(INDIRECT(\"c\" & (VLOOKUP(Switch!$D$39,$F$2:$G$44,2,FALSE)+ROW()-2))=Switch!$D$39,INDIRECT(\"a\" & (VLOOKUP(Switch!$D$39,$F$2:$G$44,2,FALSE)+ROW()-2)),\"\")","v":{"$error":"#N/A"}},{"$f":"IF(INDIRECT(\"c\" & (VLOOKUP(Switch!$D$40,$F$2:$G$44,2,FALSE)+ROW()-2))=Switch!$D$40,INDIRECT(\"a\" & (VLOOKUP(Switch!$D$40,$F$2:$G$44,2,FALSE)+ROW()-2)),\"\")","v":{"$error":"#N/A"}},{"$f":"IF(INDIRECT(\"c\" & (VLOOKUP(Switch!$D$52,$F$2:$G$44,2,FALSE)+ROW()-2))=Switch!$D$52,INDIRECT(\"a\" & (VLOOKUP(Switch!$D$52,$F$2:$G$44,2,FALSE)+ROW()-2)),\"\")","v":{"$error":"#N/A"}},{"$f":"IF(INDIRECT(\"c\" & (VLOOKUP(Switch!$D$53,$F$2:$G$44,2,FALSE)+ROW()-2))=Switch!$D$53,INDIRECT(\"a\" & (VLOOKUP(Switch!$D$53,$F$2:$G$44,2,FALSE)+ROW()-2)),\"\")","v":{"$error":"#N/A"}},{"$f":"IF(INDIRECT(\"c\" & (VLOOKUP(Switch!$D$54,$F$2:$G$44,2,FALSE)+ROW()-2))=Switch!$D$54,INDIRECT(\"a\" & (VLOOKUP(Switch!$D$54,$F$2:$G$44,2,FALSE)+ROW()-2)),\"\")","v":{"$error":"#N/A"}},{"$f":"IF(INDIRECT(\"c\" & (VLOOKUP(Switch!$D$55,$F$2:$G$44,2,FALSE)+ROW()-2))=Switch!$D$55,INDIRECT(\"a\" & (VLOOKUP(Switch!$D$55,$F$2:$G$44,2,FALSE)+ROW()-2)),\"\")","v":{"$error":"#N/A"}},{"$f":"IF(INDIRECT(\"c\" & (VLOOKUP(Switch!$D$56,$F$2:$G$44,2,FALSE)+ROW()-2))=Switch!$D$56,INDIRECT(\"a\" & (VLOOKUP(Switch!$D$56,$F$2:$G$44,2,FALSE)+ROW()-2)),\"\")","v":{"$error":"#N/A"}},{"$f":"IF(INDIRECT(\"c\" & (VLOOKUP(Switch!$D$57,$F$2:$G$44,2,FALSE)+ROW()-2))=Switch!$D$57,INDIRECT(\"a\" & (VLOOKUP(Switch!$D$57,$F$2:$G$44,2,FALSE)+ROW()-2)),\"\")","v":{"$error":"#N/A"}},{"$f":"IF(INDIRECT(\"c\" & (VLOOKUP(Switch!$D$58,$F$2:$G$44,2,FALSE)+ROW()-2))=Switch!$D$58,INDIRECT(\"a\" & (VLOOKUP(Switch!$D$58,$F$2:$G$44,2,FALSE)+ROW()-2)),\"\")","v":{"$error":"#N/A"}},{"$f":"IF(INDIRECT(\"c\" & (VLOOKUP(Switch!$D$59,$F$2:$G$44,2,FALSE)+ROW()-2))=Switch!$D$59,INDIRECT(\"a\" & (VLOOKUP(Switch!$D$59,$F$2:$G$44,2,FALSE)+ROW()-2)),\"\")","v":{"$error":"#N/A"}},{"$f":"IF(INDIRECT(\"c\" & (VLOOKUP(Switch!$D$60,$F$2:$G$44,2,FALSE)+ROW()-2))=Switch!$D$60,INDIRECT(\"a\" & (VLOOKUP(Switch!$D$60,$F$2:$G$44,2,FALSE)+ROW()-2)),\"\")","v":{"$error":"#N/A"}},{"$f":"IF(INDIRECT(\"c\" & (VLOOKUP(Switch!$D$61,$F$2:$G$44,2,FALSE)+ROW()-2))=Switch!$D$61,INDIRECT(\"a\" & (VLOOKUP(Switch!$D$61,$F$2:$G$44,2,FALSE)+ROW()-2)),\"\")","v":{"$error":"#N/A"}},{"$f":"IF(INDIRECT(\"c\" & (VLOOKUP(Switch!$D$62,$F$2:$G$44,2,FALSE)+ROW()-2))=Switch!$D$62,INDIRECT(\"a\" & (VLOOKUP(Switch!$D$62,$F$2:$G$44,2,FALSE)+ROW()-2)),\"\")","v":{"$error":"#N/A"}},{"$f":"IF(INDIRECT(\"c\" & (VLOOKUP(Switch!$D$63,$F$2:$G$44,2,FALSE)+ROW()-2))=Switch!$D$63,INDIRECT(\"a\" & (VLOOKUP(Switch!$D$63,$F$2:$G$44,2,FALSE)+ROW()-2)),\"\")","v":{"$error":"#N/A"}},{"$f":"IF(INDIRECT(\"c\" & (VLOOKUP(Switch!$D$64,$F$2:$G$44,2,FALSE)+ROW()-2))=Switch!$D$64,INDIRECT(\"a\" & (VLOOKUP(Switch!$D$64,$F$2:$G$44,2,FALSE)+ROW()-2)),\"\")","v":{"$error":"#N/A"}},{"$f":"IF(INDIRECT(\"c\" & (VLOOKUP(Switch!$D$65,$F$2:$G$44,2,FALSE)+ROW()-2))=Switch!$D$65,INDIRECT(\"a\" & (VLOOKUP(Switch!$D$65,$F$2:$G$44,2,FALSE)+ROW()-2)),\"\")","v":{"$error":"#N/A"}},{"$f":"IF(INDIRECT(\"c\" & (VLOOKUP(Switch!$D$66,$F$2:$G$44,2,FALSE)+ROW()-2))=Switch!$D$66,INDIRECT(\"a\" & (VLOOKUP(Switch!$D$66,$F$2:$G$44,2,FALSE)+ROW()-2)),\"\")","v":{"$error":"#N/A"}}]
["Gryphon Flexible Fund of Funds B","GYFFF","Gryphon Collective Investments (RF) (Pty) Ltd",{"$f":"ROW()","v":256},null,null,{"$f":"VLOOKUP(F256,$C$2:$D$637,2,FALSE)","v":{"$error":"#N/A"}},{"$f":"IF(INDIRECT(\"c\" & (VLOOKUP(Switch!$D$26,$F$2:$G$44,2,FALSE)+ROW()-2))=Switch!$D$26,INDIRECT(\"a\" & (VLOOKUP(Switch!$D$26,$F$2:$G$44,2,FALSE)+ROW()-2)),\"\")","v":{"$error":"#N/A"}},{"$f":"IF(INDIRECT(\"c\" & (VLOOKUP(Switch!$D$27,$F$2:$G$44,2,FALSE)+ROW()-2))=Switch!$D$27,INDIRECT(\"a\" & (VLOOKUP(Switch!$D$27,$F$2:$G$44,2,FALSE)+ROW()-2)),\"\")","v":{"$error":"#N/A"}},{"$f":"IF(INDIRECT(\"c\" & (VLOOKUP(Switch!$D$28,$F$2:$G$44,2,FALSE)+ROW()-2))=Switch!$D$28,INDIRECT(\"a\" & (VLOOKUP(Switch!$D$28,$F$2:$G$44,2,FALSE)+ROW()-2)),\"\")","v":{"$error":"#N/A"}},{"$f":"IF(INDIRECT(\"c\" & (VLOOKUP(Switch!$D$29,$F$2:$G$44,2,FALSE)+ROW()-2))=Switch!$D$29,INDIRECT(\"a\" & (VLOOKUP(Switch!$D$29,$F$2:$G$44,2,FALSE)+ROW()-2)),\"\")","v":{"$error":"#N/A"}},{"$f":"IF(INDIRECT(\"c\" & (VLOOKUP(Switch!$D$30,$F$2:$G$44,2,FALSE)+ROW()-2))=Switch!$D$30,INDIRECT(\"a\" & (VLOOKUP(Switch!$D$30,$F$2:$G$44,2,FALSE)+ROW()-2)),\"\")","v":{"$error":"#N/A"}},{"$f":"IF(INDIRECT(\"c\" & (VLOOKUP(Switch!$D$31,$F$2:$G$44,2,FALSE)+ROW()-2))=Switch!$D$31,INDIRECT(\"a\" & (VLOOKUP(Switch!$D$31,$F$2:$G$44,2,FALSE)+ROW()-2)),\"\")","v":{"$error":"#N/A"}},{"$f":"IF(INDIRECT(\"c\" & (VLOOKUP(Switch!$D$32,$F$2:$G$44,2,FALSE)+ROW()-2))=Switch!$D$32,INDIRECT(\"a\" & (VLOOKUP(Switch!$D$32,$F$2:$G$44,2,FALSE)+ROW()-2)),\"\")","v":{"$error":"#N/A"}},{"$f":"IF(INDIRECT(\"c\" & (VLOOKUP(Switch!$D$33,$F$2:$G$44,2,FALSE)+ROW()-2))=Switch!$D$33,INDIRECT(\"a\" & (VLOOKUP(Switch!$D$33,$F$2:$G$44,2,FALSE)+ROW()-2)),\"\")","v":{"$error":"#N/A"}},{"$f":"IF(INDIRECT(\"c\" & (VLOOKUP(Switch!$D$34,$F$2:$G$44,2,FALSE)+ROW()-2))=Switch!$D$34,INDIRECT(\"a\" & (VLOOKUP(Switch!$D$34,$F$2:$G$44,2,FALSE)+ROW()-2)),\"\")","v":{"$error":"#N/A"}},{"$f":"IF(INDIRECT(\"c\" & (VLOOKUP(Switch!$D$35,$F$2:$G$44,2,FALSE)+ROW()-2))=Switch!$D$35,INDIRECT(\"a\" & (VLOOKUP(Switch!$D$35,$F$2:$G$44,2,FALSE)+ROW()-2)),\"\")","v":{"$error":"#N/A"}},{"$f":"IF(INDIRECT(\"c\" & (VLOOKUP(Switch!$D$36,$F$2:$G$44,2,FALSE)+ROW()-2))=Switch!$D$36,INDIRECT(\"a\" & (VLOOKUP(Switch!$D$36,$F$2:$G$44,2,FALSE)+ROW()-2)),\"\")","v":{"$error":"#N/A"}},{"$f":"IF(INDIRECT(\"c\" & (VLOOKUP(Switch!$D$37,$F$2:$G$44,2,FALSE)+ROW()-2))=Switch!$D$37,INDIRECT(\"a\" & (VLOOKUP(Switch!$D$37,$F$2:$G$44,2,FALSE)+ROW()-2)),\"\")","v":{"$error":"#N/A"}},{"$f":"IF(INDIRECT(\"c\" & (VLOOKUP(Switch!$D$38,$F$2:$G$44,2,FALSE)+ROW()-2))=Switch!$D$38,INDIRECT(\"a\" & (VLOOKUP(Switch!$D$38,$F$2:$G$44,2,FALSE)+ROW()-2)),\"\")","v":{"$error":"#N/A"}},{"$f":"IF(INDIRECT(\"c\" & (VLOOKUP(Switch!$D$39,$F$2:$G$44,2,FALSE)+ROW()-2))=Switch!$D$39,INDIRECT(\"a\" & (VLOOKUP(Switch!$D$39,$F$2:$G$44,2,FALSE)+ROW()-2)),\"\")","v":{"$error":"#N/A"}},{"$f":"IF(INDIRECT(\"c\" & (VLOOKUP(Switch!$D$40,$F$2:$G$44,2,FALSE)+ROW()-2))=Switch!$D$40,INDIRECT(\"a\" & (VLOOKUP(Switch!$D$40,$F$2:$G$44,2,FALSE)+ROW()-2)),\"\")","v":{"$error":"#N/A"}},{"$f":"IF(INDIRECT(\"c\" & (VLOOKUP(Switch!$D$52,$F$2:$G$44,2,FALSE)+ROW()-2))=Switch!$D$52,INDIRECT(\"a\" & (VLOOKUP(Switch!$D$52,$F$2:$G$44,2,FALSE)+ROW()-2)),\"\")","v":{"$error":"#N/A"}},{"$f":"IF(INDIRECT(\"c\" & (VLOOKUP(Switch!$D$53,$F$2:$G$44,2,FALSE)+ROW()-2))=Switch!$D$53,INDIRECT(\"a\" & (VLOOKUP(Switch!$D$53,$F$2:$G$44,2,FALSE)+ROW()-2)),\"\")","v":{"$error":"#N/A"}},{"$f":"IF(INDIRECT(\"c\" & (VLOOKUP(Switch!$D$54,$F$2:$G$44,2,FALSE)+ROW()-2))=Switch!$D$54,INDIRECT(\"a\" & (VLOOKUP(Switch!$D$54,$F$2:$G$44,2,FALSE)+ROW()-2)),\"\")","v":{"$error":"#N/A"}},{"$f":"IF(INDIRECT(\"c\" & (VLOOKUP(Switch!$D$55,$F$2:$G$44,2,FALSE)+ROW()-2))=Switch!$D$55,INDIRECT(\"a\" & (VLOOKUP(Switch!$D$55,$F$2:$G$44,2,FALSE)+ROW()-2)),\"\")","v":{"$error":"#N/A"}},{"$f":"IF(INDIRECT(\"c\" & (VLOOKUP(Switch!$D$56,$F$2:$G$44,2,FALSE)+ROW()-2))=Switch!$D$56,INDIRECT(\"a\" & (VLOOKUP(Switch!$D$56,$F$2:$G$44,2,FALSE)+ROW()-2)),\"\")","v":{"$error":"#N/A"}},{"$f":"IF(INDIRECT(\"c\" & (VLOOKUP(Switch!$D$57,$F$2:$G$44,2,FALSE)+ROW()-2))=Switch!$D$57,INDIRECT(\"a\" & (VLOOKUP(Switch!$D$57,$F$2:$G$44,2,FALSE)+ROW()-2)),\"\")","v":{"$error":"#N/A"}},{"$f":"IF(INDIRECT(\"c\" & (VLOOKUP(Switch!$D$58,$F$2:$G$44,2,FALSE)+ROW()-2))=Switch!$D$58,INDIRECT(\"a\" & (VLOOKUP(Switch!$D$58,$F$2:$G$44,2,FALSE)+ROW()-2)),\"\")","v":{"$error":"#N/A"}},{"$f":"IF(INDIRECT(\"c\" & (VLOOKUP(Switch!$D$59,$F$2:$G$44,2,FALSE)+ROW()-2))=Switch!$D$59,INDIRECT(\"a\" & (VLOOKUP(Switch!$D$59,$F$2:$G$44,2,FALSE)+ROW()-2)),\"\")","v":{"$error":"#N/A"}},{"$f":"IF(INDIRECT(\"c\" & (VLOOKUP(Switch!$D$60,$F$2:$G$44,2,FALSE)+ROW()-2))=Switch!$D$60,INDIRECT(\"a\" & (VLOOKUP(Switch!$D$60,$F$2:$G$44,2,FALSE)+ROW()-2)),\"\")","v":{"$error":"#N/A"}},{"$f":"IF(INDIRECT(\"c\" & (VLOOKUP(Switch!$D$61,$F$2:$G$44,2,FALSE)+ROW()-2))=Switch!$D$61,INDIRECT(\"a\" & (VLOOKUP(Switch!$D$61,$F$2:$G$44,2,FALSE)+ROW()-2)),\"\")","v":{"$error":"#N/A"}},{"$f":"IF(INDIRECT(\"c\" & (VLOOKUP(Switch!$D$62,$F$2:$G$44,2,FALSE)+ROW()-2))=Switch!$D$62,INDIRECT(\"a\" & (VLOOKUP(Switch!$D$62,$F$2:$G$44,2,FALSE)+ROW()-2)),\"\")","v":{"$error":"#N/A"}},{"$f":"IF(INDIRECT(\"c\" & (VLOOKUP(Switch!$D$63,$F$2:$G$44,2,FALSE)+ROW()-2))=Switch!$D$63,INDIRECT(\"a\" & (VLOOKUP(Switch!$D$63,$F$2:$G$44,2,FALSE)+ROW()-2)),\"\")","v":{"$error":"#N/A"}},{"$f":"IF(INDIRECT(\"c\" & (VLOOKUP(Switch!$D$64,$F$2:$G$44,2,FALSE)+ROW()-2))=Switch!$D$64,INDIRECT(\"a\" & (VLOOKUP(Switch!$D$64,$F$2:$G$44,2,FALSE)+ROW()-2)),\"\")","v":{"$error":"#N/A"}},{"$f":"IF(INDIRECT(\"c\" & (VLOOKUP(Switch!$D$65,$F$2:$G$44,2,FALSE)+ROW()-2))=Switch!$D$65,INDIRECT(\"a\" & (VLOOKUP(Switch!$D$65,$F$2:$G$44,2,FALSE)+ROW()-2)),\"\")","v":{"$error":"#N/A"}},{"$f":"IF(INDIRECT(\"c\" & (VLOOKUP(Switch!$D$66,$F$2:$G$44,2,FALSE)+ROW()-2))=Switch!$D$66,INDIRECT(\"a\" & (VLOOKUP(Switch!$D$66,$F$2:$G$44,2,FALSE)+ROW()-2)),\"\")","v":{"$error":"#N/A"}}]
["Gryphon Prudential Fund of Funds B","GRYFF","Gryphon Collective Investments (RF) (Pty) Ltd",{"$f":"ROW()","v":257},null,null,{"$f":"VLOOKUP(F257,$C$2:$D$637,2,FALSE)","v":{"$error":"#N/A"}},{"$f":"IF(INDIRECT(\"c\" & (VLOOKUP(Switch!$D$26,$F$2:$G$44,2,FALSE)+ROW()-2))=Switch!$D$26,INDIRECT(\"a\" & (VLOOKUP(Switch!$D$26,$F$2:$G$44,2,FALSE)+ROW()-2)),\"\")","v":{"$error":"#N/A"}},{"$f":"IF(INDIRECT(\"c\" & (VLOOKUP(Switch!$D$27,$F$2:$G$44,2,FALSE)+ROW()-2))=Switch!$D$27,INDIRECT(\"a\" & (VLOOKUP(Switch!$D$27,$F$2:$G$44,2,FALSE)+ROW()-2)),\"\")","v":{"$error":"#N/A"}},{"$f":"IF(INDIRECT(\"c\" & (VLOOKUP(Switch!$D$28,$F$2:$G$44,2,FALSE)+ROW()-2))=Switch!$D$28,INDIRECT(\"a\" & (VLOOKUP(Switch!$D$28,$F$2:$G$44,2,FALSE)+ROW()-2)),\"\")","v":{"$error":"#N/A"}},{"$f":"IF(INDIRECT(\"c\" & (VLOOKUP(Switch!$D$29,$F$2:$G$44,2,FALSE)+ROW()-2))=Switch!$D$29,INDIRECT(\"a\" & (VLOOKUP(Switch!$D$29,$F$2:$G$44,2,FALSE)+ROW()-2)),\"\")","v":{"$error":"#N/A"}},{"$f":"IF(INDIRECT(\"c\" & (VLOOKUP(Switch!$D$30,$F$2:$G$44,2,FALSE)+ROW()-2))=Switch!$D$30,INDIRECT(\"a\" & (VLOOKUP(Switch!$D$30,$F$2:$G$44,2,FALSE)+ROW()-2)),\"\")","v":{"$error":"#N/A"}},{"$f":"IF(INDIRECT(\"c\" & (VLOOKUP(Switch!$D$31,$F$2:$G$44,2,FALSE)+ROW()-2))=Switch!$D$31,INDIRECT(\"a\" & (VLOOKUP(Switch!$D$31,$F$2:$G$44,2,FALSE)+ROW()-2)),\"\")","v":{"$error":"#N/A"}},{"$f":"IF(INDIRECT(\"c\" & (VLOOKUP(Switch!$D$32,$F$2:$G$44,2,FALSE)+ROW()-2))=Switch!$D$32,INDIRECT(\"a\" & (VLOOKUP(Switch!$D$32,$F$2:$G$44,2,FALSE)+ROW()-2)),\"\")","v":{"$error":"#N/A"}},{"$f":"IF(INDIRECT(\"c\" & (VLOOKUP(Switch!$D$33,$F$2:$G$44,2,FALSE)+ROW()-2))=Switch!$D$33,INDIRECT(\"a\" & (VLOOKUP(Switch!$D$33,$F$2:$G$44,2,FALSE)+ROW()-2)),\"\")","v":{"$error":"#N/A"}},{"$f":"IF(INDIRECT(\"c\" & (VLOOKUP(Switch!$D$34,$F$2:$G$44,2,FALSE)+ROW()-2))=Switch!$D$34,INDIRECT(\"a\" & (VLOOKUP(Switch!$D$34,$F$2:$G$44,2,FALSE)+ROW()-2)),\"\")","v":{"$error":"#N/A"}},{"$f":"IF(INDIRECT(\"c\" & (VLOOKUP(Switch!$D$35,$F$2:$G$44,2,FALSE)+ROW()-2))=Switch!$D$35,INDIRECT(\"a\" & (VLOOKUP(Switch!$D$35,$F$2:$G$44,2,FALSE)+ROW()-2)),\"\")","v":{"$error":"#N/A"}},{"$f":"IF(INDIRECT(\"c\" & (VLOOKUP(Switch!$D$36,$F$2:$G$44,2,FALSE)+ROW()-2))=Switch!$D$36,INDIRECT(\"a\" & (VLOOKUP(Switch!$D$36,$F$2:$G$44,2,FALSE)+ROW()-2)),\"\")","v":{"$error":"#N/A"}},{"$f":"IF(INDIRECT(\"c\" & (VLOOKUP(Switch!$D$37,$F$2:$G$44,2,FALSE)+ROW()-2))=Switch!$D$37,INDIRECT(\"a\" & (VLOOKUP(Switch!$D$37,$F$2:$G$44,2,FALSE)+ROW()-2)),\"\")","v":{"$error":"#N/A"}},{"$f":"IF(INDIRECT(\"c\" & (VLOOKUP(Switch!$D$38,$F$2:$G$44,2,FALSE)+ROW()-2))=Switch!$D$38,INDIRECT(\"a\" & (VLOOKUP(Switch!$D$38,$F$2:$G$44,2,FALSE)+ROW()-2)),\"\")","v":{"$error":"#N/A"}},{"$f":"IF(INDIRECT(\"c\" & (VLOOKUP(Switch!$D$39,$F$2:$G$44,2,FALSE)+ROW()-2))=Switch!$D$39,INDIRECT(\"a\" & (VLOOKUP(Switch!$D$39,$F$2:$G$44,2,FALSE)+ROW()-2)),\"\")","v":{"$error":"#N/A"}},{"$f":"IF(INDIRECT(\"c\" & (VLOOKUP(Switch!$D$40,$F$2:$G$44,2,FALSE)+ROW()-2))=Switch!$D$40,INDIRECT(\"a\" & (VLOOKUP(Switch!$D$40,$F$2:$G$44,2,FALSE)+ROW()-2)),\"\")","v":{"$error":"#N/A"}},{"$f":"IF(INDIRECT(\"c\" & (VLOOKUP(Switch!$D$52,$F$2:$G$44,2,FALSE)+ROW()-2))=Switch!$D$52,INDIRECT(\"a\" & (VLOOKUP(Switch!$D$52,$F$2:$G$44,2,FALSE)+ROW()-2)),\"\")","v":{"$error":"#N/A"}},{"$f":"IF(INDIRECT(\"c\" & (VLOOKUP(Switch!$D$53,$F$2:$G$44,2,FALSE)+ROW()-2))=Switch!$D$53,INDIRECT(\"a\" & (VLOOKUP(Switch!$D$53,$F$2:$G$44,2,FALSE)+ROW()-2)),\"\")","v":{"$error":"#N/A"}},{"$f":"IF(INDIRECT(\"c\" & (VLOOKUP(Switch!$D$54,$F$2:$G$44,2,FALSE)+ROW()-2))=Switch!$D$54,INDIRECT(\"a\" & (VLOOKUP(Switch!$D$54,$F$2:$G$44,2,FALSE)+ROW()-2)),\"\")","v":{"$error":"#N/A"}},{"$f":"IF(INDIRECT(\"c\" & (VLOOKUP(Switch!$D$55,$F$2:$G$44,2,FALSE)+ROW()-2))=Switch!$D$55,INDIRECT(\"a\" & (VLOOKUP(Switch!$D$55,$F$2:$G$44,2,FALSE)+ROW()-2)),\"\")","v":{"$error":"#N/A"}},{"$f":"IF(INDIRECT(\"c\" & (VLOOKUP(Switch!$D$56,$F$2:$G$44,2,FALSE)+ROW()-2))=Switch!$D$56,INDIRECT(\"a\" & (VLOOKUP(Switch!$D$56,$F$2:$G$44,2,FALSE)+ROW()-2)),\"\")","v":{"$error":"#N/A"}},{"$f":"IF(INDIRECT(\"c\" & (VLOOKUP(Switch!$D$57,$F$2:$G$44,2,FALSE)+ROW()-2))=Switch!$D$57,INDIRECT(\"a\" & (VLOOKUP(Switch!$D$57,$F$2:$G$44,2,FALSE)+ROW()-2)),\"\")","v":{"$error":"#N/A"}},{"$f":"IF(INDIRECT(\"c\" & (VLOOKUP(Switch!$D$58,$F$2:$G$44,2,FALSE)+ROW()-2))=Switch!$D$58,INDIRECT(\"a\" & (VLOOKUP(Switch!$D$58,$F$2:$G$44,2,FALSE)+ROW()-2)),\"\")","v":{"$error":"#N/A"}},{"$f":"IF(INDIRECT(\"c\" & (VLOOKUP(Switch!$D$59,$F$2:$G$44,2,FALSE)+ROW()-2))=Switch!$D$59,INDIRECT(\"a\" & (VLOOKUP(Switch!$D$59,$F$2:$G$44,2,FALSE)+ROW()-2)),\"\")","v":{"$error":"#N/A"}},{"$f":"IF(INDIRECT(\"c\" & (VLOOKUP(Switch!$D$60,$F$2:$G$44,2,FALSE)+ROW()-2))=Switch!$D$60,INDIRECT(\"a\" & (VLOOKUP(Switch!$D$60,$F$2:$G$44,2,FALSE)+ROW()-2)),\"\")","v":{"$error":"#N/A"}},{"$f":"IF(INDIRECT(\"c\" & (VLOOKUP(Switch!$D$61,$F$2:$G$44,2,FALSE)+ROW()-2))=Switch!$D$61,INDIRECT(\"a\" & (VLOOKUP(Switch!$D$61,$F$2:$G$44,2,FALSE)+ROW()-2)),\"\")","v":{"$error":"#N/A"}},{"$f":"IF(INDIRECT(\"c\" & (VLOOKUP(Switch!$D$62,$F$2:$G$44,2,FALSE)+ROW()-2))=Switch!$D$62,INDIRECT(\"a\" & (VLOOKUP(Switch!$D$62,$F$2:$G$44,2,FALSE)+ROW()-2)),\"\")","v":{"$error":"#N/A"}},{"$f":"IF(INDIRECT(\"c\" & (VLOOKUP(Switch!$D$63,$F$2:$G$44,2,FALSE)+ROW()-2))=Switch!$D$63,INDIRECT(\"a\" & (VLOOKUP(Switch!$D$63,$F$2:$G$44,2,FALSE)+ROW()-2)),\"\")","v":{"$error":"#N/A"}},{"$f":"IF(INDIRECT(\"c\" & (VLOOKUP(Switch!$D$64,$F$2:$G$44,2,FALSE)+ROW()-2))=Switch!$D$64,INDIRECT(\"a\" & (VLOOKUP(Switch!$D$64,$F$2:$G$44,2,FALSE)+ROW()-2)),\"\")","v":{"$error":"#N/A"}},{"$f":"IF(INDIRECT(\"c\" & (VLOOKUP(Switch!$D$65,$F$2:$G$44,2,FALSE)+ROW()-2))=Switch!$D$65,INDIRECT(\"a\" & (VLOOKUP(Switch!$D$65,$F$2:$G$44,2,FALSE)+ROW()-2)),\"\")","v":{"$error":"#N/A"}},{"$f":"IF(INDIRECT(\"c\" & (VLOOKUP(Switch!$D$66,$F$2:$G$44,2,FALSE)+ROW()-2))=Switch!$D$66,INDIRECT(\"a\" & (VLOOKUP(Switch!$D$66,$F$2:$G$44,2,FALSE)+ROW()-2)),\"\")","v":{"$error":"#N/A"}}]
["Investec Absolute Balanced Fund H","ABFH","Investec Fund Managers",{"$f":"ROW()","v":258},null,null,{"$f":"VLOOKUP(F258,$C$2:$D$637,2,FALSE)","v":{"$error":"#N/A"}},{"$f":"IF(INDIRECT(\"c\" & (VLOOKUP(Switch!$D$26,$F$2:$G$44,2,FALSE)+ROW()-2))=Switch!$D$26,INDIRECT(\"a\" & (VLOOKUP(Switch!$D$26,$F$2:$G$44,2,FALSE)+ROW()-2)),\"\")","v":{"$error":"#N/A"}},{"$f":"IF(INDIRECT(\"c\" & (VLOOKUP(Switch!$D$27,$F$2:$G$44,2,FALSE)+ROW()-2))=Switch!$D$27,INDIRECT(\"a\" & (VLOOKUP(Switch!$D$27,$F$2:$G$44,2,FALSE)+ROW()-2)),\"\")","v":{"$error":"#N/A"}},{"$f":"IF(INDIRECT(\"c\" & (VLOOKUP(Switch!$D$28,$F$2:$G$44,2,FALSE)+ROW()-2))=Switch!$D$28,INDIRECT(\"a\" & (VLOOKUP(Switch!$D$28,$F$2:$G$44,2,FALSE)+ROW()-2)),\"\")","v":{"$error":"#N/A"}},{"$f":"IF(INDIRECT(\"c\" & (VLOOKUP(Switch!$D$29,$F$2:$G$44,2,FALSE)+ROW()-2))=Switch!$D$29,INDIRECT(\"a\" & (VLOOKUP(Switch!$D$29,$F$2:$G$44,2,FALSE)+ROW()-2)),\"\")","v":{"$error":"#N/A"}},{"$f":"IF(INDIRECT(\"c\" & (VLOOKUP(Switch!$D$30,$F$2:$G$44,2,FALSE)+ROW()-2))=Switch!$D$30,INDIRECT(\"a\" & (VLOOKUP(Switch!$D$30,$F$2:$G$44,2,FALSE)+ROW()-2)),\"\")","v":{"$error":"#N/A"}},{"$f":"IF(INDIRECT(\"c\" & (VLOOKUP(Switch!$D$31,$F$2:$G$44,2,FALSE)+ROW()-2))=Switch!$D$31,INDIRECT(\"a\" & (VLOOKUP(Switch!$D$31,$F$2:$G$44,2,FALSE)+ROW()-2)),\"\")","v":{"$error":"#N/A"}},{"$f":"IF(INDIRECT(\"c\" & (VLOOKUP(Switch!$D$32,$F$2:$G$44,2,FALSE)+ROW()-2))=Switch!$D$32,INDIRECT(\"a\" & (VLOOKUP(Switch!$D$32,$F$2:$G$44,2,FALSE)+ROW()-2)),\"\")","v":{"$error":"#N/A"}},{"$f":"IF(INDIRECT(\"c\" & (VLOOKUP(Switch!$D$33,$F$2:$G$44,2,FALSE)+ROW()-2))=Switch!$D$33,INDIRECT(\"a\" & (VLOOKUP(Switch!$D$33,$F$2:$G$44,2,FALSE)+ROW()-2)),\"\")","v":{"$error":"#N/A"}},{"$f":"IF(INDIRECT(\"c\" & (VLOOKUP(Switch!$D$34,$F$2:$G$44,2,FALSE)+ROW()-2))=Switch!$D$34,INDIRECT(\"a\" & (VLOOKUP(Switch!$D$34,$F$2:$G$44,2,FALSE)+ROW()-2)),\"\")","v":{"$error":"#N/A"}},{"$f":"IF(INDIRECT(\"c\" & (VLOOKUP(Switch!$D$35,$F$2:$G$44,2,FALSE)+ROW()-2))=Switch!$D$35,INDIRECT(\"a\" & (VLOOKUP(Switch!$D$35,$F$2:$G$44,2,FALSE)+ROW()-2)),\"\")","v":{"$error":"#N/A"}},{"$f":"IF(INDIRECT(\"c\" & (VLOOKUP(Switch!$D$36,$F$2:$G$44,2,FALSE)+ROW()-2))=Switch!$D$36,INDIRECT(\"a\" & (VLOOKUP(Switch!$D$36,$F$2:$G$44,2,FALSE)+ROW()-2)),\"\")","v":{"$error":"#N/A"}},{"$f":"IF(INDIRECT(\"c\" & (VLOOKUP(Switch!$D$37,$F$2:$G$44,2,FALSE)+ROW()-2))=Switch!$D$37,INDIRECT(\"a\" & (VLOOKUP(Switch!$D$37,$F$2:$G$44,2,FALSE)+ROW()-2)),\"\")","v":{"$error":"#N/A"}},{"$f":"IF(INDIRECT(\"c\" & (VLOOKUP(Switch!$D$38,$F$2:$G$44,2,FALSE)+ROW()-2))=Switch!$D$38,INDIRECT(\"a\" & (VLOOKUP(Switch!$D$38,$F$2:$G$44,2,FALSE)+ROW()-2)),\"\")","v":{"$error":"#N/A"}},{"$f":"IF(INDIRECT(\"c\" & (VLOOKUP(Switch!$D$39,$F$2:$G$44,2,FALSE)+ROW()-2))=Switch!$D$39,INDIRECT(\"a\" & (VLOOKUP(Switch!$D$39,$F$2:$G$44,2,FALSE)+ROW()-2)),\"\")","v":{"$error":"#N/A"}},{"$f":"IF(INDIRECT(\"c\" & (VLOOKUP(Switch!$D$40,$F$2:$G$44,2,FALSE)+ROW()-2))=Switch!$D$40,INDIRECT(\"a\" & (VLOOKUP(Switch!$D$40,$F$2:$G$44,2,FALSE)+ROW()-2)),\"\")","v":{"$error":"#N/A"}},{"$f":"IF(INDIRECT(\"c\" & (VLOOKUP(Switch!$D$52,$F$2:$G$44,2,FALSE)+ROW()-2))=Switch!$D$52,INDIRECT(\"a\" & (VLOOKUP(Switch!$D$52,$F$2:$G$44,2,FALSE)+ROW()-2)),\"\")","v":{"$error":"#N/A"}},{"$f":"IF(INDIRECT(\"c\" & (VLOOKUP(Switch!$D$53,$F$2:$G$44,2,FALSE)+ROW()-2))=Switch!$D$53,INDIRECT(\"a\" & (VLOOKUP(Switch!$D$53,$F$2:$G$44,2,FALSE)+ROW()-2)),\"\")","v":{"$error":"#N/A"}},{"$f":"IF(INDIRECT(\"c\" & (VLOOKUP(Switch!$D$54,$F$2:$G$44,2,FALSE)+ROW()-2))=Switch!$D$54,INDIRECT(\"a\" & (VLOOKUP(Switch!$D$54,$F$2:$G$44,2,FALSE)+ROW()-2)),\"\")","v":{"$error":"#N/A"}},{"$f":"IF(INDIRECT(\"c\" & (VLOOKUP(Switch!$D$55,$F$2:$G$44,2,FALSE)+ROW()-2))=Switch!$D$55,INDIRECT(\"a\" & (VLOOKUP(Switch!$D$55,$F$2:$G$44,2,FALSE)+ROW()-2)),\"\")","v":{"$error":"#N/A"}},{"$f":"IF(INDIRECT(\"c\" & (VLOOKUP(Switch!$D$56,$F$2:$G$44,2,FALSE)+ROW()-2))=Switch!$D$56,INDIRECT(\"a\" & (VLOOKUP(Switch!$D$56,$F$2:$G$44,2,FALSE)+ROW()-2)),\"\")","v":{"$error":"#N/A"}},{"$f":"IF(INDIRECT(\"c\" & (VLOOKUP(Switch!$D$57,$F$2:$G$44,2,FALSE)+ROW()-2))=Switch!$D$57,INDIRECT(\"a\" & (VLOOKUP(Switch!$D$57,$F$2:$G$44,2,FALSE)+ROW()-2)),\"\")","v":{"$error":"#N/A"}},{"$f":"IF(INDIRECT(\"c\" & (VLOOKUP(Switch!$D$58,$F$2:$G$44,2,FALSE)+ROW()-2))=Switch!$D$58,INDIRECT(\"a\" & (VLOOKUP(Switch!$D$58,$F$2:$G$44,2,FALSE)+ROW()-2)),\"\")","v":{"$error":"#N/A"}},{"$f":"IF(INDIRECT(\"c\" & (VLOOKUP(Switch!$D$59,$F$2:$G$44,2,FALSE)+ROW()-2))=Switch!$D$59,INDIRECT(\"a\" & (VLOOKUP(Switch!$D$59,$F$2:$G$44,2,FALSE)+ROW()-2)),\"\")","v":{"$error":"#N/A"}},{"$f":"IF(INDIRECT(\"c\" & (VLOOKUP(Switch!$D$60,$F$2:$G$44,2,FALSE)+ROW()-2))=Switch!$D$60,INDIRECT(\"a\" & (VLOOKUP(Switch!$D$60,$F$2:$G$44,2,FALSE)+ROW()-2)),\"\")","v":{"$error":"#N/A"}},{"$f":"IF(INDIRECT(\"c\" & (VLOOKUP(Switch!$D$61,$F$2:$G$44,2,FALSE)+ROW()-2))=Switch!$D$61,INDIRECT(\"a\" & (VLOOKUP(Switch!$D$61,$F$2:$G$44,2,FALSE)+ROW()-2)),\"\")","v":{"$error":"#N/A"}},{"$f":"IF(INDIRECT(\"c\" & (VLOOKUP(Switch!$D$62,$F$2:$G$44,2,FALSE)+ROW()-2))=Switch!$D$62,INDIRECT(\"a\" & (VLOOKUP(Switch!$D$62,$F$2:$G$44,2,FALSE)+ROW()-2)),\"\")","v":{"$error":"#N/A"}},{"$f":"IF(INDIRECT(\"c\" & (VLOOKUP(Switch!$D$63,$F$2:$G$44,2,FALSE)+ROW()-2))=Switch!$D$63,INDIRECT(\"a\" & (VLOOKUP(Switch!$D$63,$F$2:$G$44,2,FALSE)+ROW()-2)),\"\")","v":{"$error":"#N/A"}},{"$f":"IF(INDIRECT(\"c\" & (VLOOKUP(Switch!$D$64,$F$2:$G$44,2,FALSE)+ROW()-2))=Switch!$D$64,INDIRECT(\"a\" & (VLOOKUP(Switch!$D$64,$F$2:$G$44,2,FALSE)+ROW()-2)),\"\")","v":{"$error":"#N/A"}},{"$f":"IF(INDIRECT(\"c\" & (VLOOKUP(Switch!$D$65,$F$2:$G$44,2,FALSE)+ROW()-2))=Switch!$D$65,INDIRECT(\"a\" & (VLOOKUP(Switch!$D$65,$F$2:$G$44,2,FALSE)+ROW()-2)),\"\")","v":{"$error":"#N/A"}},{"$f":"IF(INDIRECT(\"c\" & (VLOOKUP(Switch!$D$66,$F$2:$G$44,2,FALSE)+ROW()-2))=Switch!$D$66,INDIRECT(\"a\" & (VLOOKUP(Switch!$D$66,$F$2:$G$44,2,FALSE)+ROW()-2)),\"\")","v":{"$error":"#N/A"}}]
["Investec Cautious Managed Fund H","CMFH","Investec Fund Managers",{"$f":"ROW()","v":259},null,null,{"$f":"VLOOKUP(F259,$C$2:$D$637,2,FALSE)","v":{"$error":"#N/A"}},{"$f":"IF(INDIRECT(\"c\" & (VLOOKUP(Switch!$D$26,$F$2:$G$44,2,FALSE)+ROW()-2))=Switch!$D$26,INDIRECT(\"a\" & (VLOOKUP(Switch!$D$26,$F$2:$G$44,2,FALSE)+ROW()-2)),\"\")","v":{"$error":"#N/A"}},{"$f":"IF(INDIRECT(\"c\" & (VLOOKUP(Switch!$D$27,$F$2:$G$44,2,FALSE)+ROW()-2))=Switch!$D$27,INDIRECT(\"a\" & (VLOOKUP(Switch!$D$27,$F$2:$G$44,2,FALSE)+ROW()-2)),\"\")","v":{"$error":"#N/A"}},{"$f":"IF(INDIRECT(\"c\" & (VLOOKUP(Switch!$D$28,$F$2:$G$44,2,FALSE)+ROW()-2))=Switch!$D$28,INDIRECT(\"a\" & (VLOOKUP(Switch!$D$28,$F$2:$G$44,2,FALSE)+ROW()-2)),\"\")","v":{"$error":"#N/A"}},{"$f":"IF(INDIRECT(\"c\" & (VLOOKUP(Switch!$D$29,$F$2:$G$44,2,FALSE)+ROW()-2))=Switch!$D$29,INDIRECT(\"a\" & (VLOOKUP(Switch!$D$29,$F$2:$G$44,2,FALSE)+ROW()-2)),\"\")","v":{"$error":"#N/A"}},{"$f":"IF(INDIRECT(\"c\" & (VLOOKUP(Switch!$D$30,$F$2:$G$44,2,FALSE)+ROW()-2))=Switch!$D$30,INDIRECT(\"a\" & (VLOOKUP(Switch!$D$30,$F$2:$G$44,2,FALSE)+ROW()-2)),\"\")","v":{"$error":"#N/A"}},{"$f":"IF(INDIRECT(\"c\" & (VLOOKUP(Switch!$D$31,$F$2:$G$44,2,FALSE)+ROW()-2))=Switch!$D$31,INDIRECT(\"a\" & (VLOOKUP(Switch!$D$31,$F$2:$G$44,2,FALSE)+ROW()-2)),\"\")","v":{"$error":"#N/A"}},{"$f":"IF(INDIRECT(\"c\" & (VLOOKUP(Switch!$D$32,$F$2:$G$44,2,FALSE)+ROW()-2))=Switch!$D$32,INDIRECT(\"a\" & (VLOOKUP(Switch!$D$32,$F$2:$G$44,2,FALSE)+ROW()-2)),\"\")","v":{"$error":"#N/A"}},{"$f":"IF(INDIRECT(\"c\" & (VLOOKUP(Switch!$D$33,$F$2:$G$44,2,FALSE)+ROW()-2))=Switch!$D$33,INDIRECT(\"a\" & (VLOOKUP(Switch!$D$33,$F$2:$G$44,2,FALSE)+ROW()-2)),\"\")","v":{"$error":"#N/A"}},{"$f":"IF(INDIRECT(\"c\" & (VLOOKUP(Switch!$D$34,$F$2:$G$44,2,FALSE)+ROW()-2))=Switch!$D$34,INDIRECT(\"a\" & (VLOOKUP(Switch!$D$34,$F$2:$G$44,2,FALSE)+ROW()-2)),\"\")","v":{"$error":"#N/A"}},{"$f":"IF(INDIRECT(\"c\" & (VLOOKUP(Switch!$D$35,$F$2:$G$44,2,FALSE)+ROW()-2))=Switch!$D$35,INDIRECT(\"a\" & (VLOOKUP(Switch!$D$35,$F$2:$G$44,2,FALSE)+ROW()-2)),\"\")","v":{"$error":"#N/A"}},{"$f":"IF(INDIRECT(\"c\" & (VLOOKUP(Switch!$D$36,$F$2:$G$44,2,FALSE)+ROW()-2))=Switch!$D$36,INDIRECT(\"a\" & (VLOOKUP(Switch!$D$36,$F$2:$G$44,2,FALSE)+ROW()-2)),\"\")","v":{"$error":"#N/A"}},{"$f":"IF(INDIRECT(\"c\" & (VLOOKUP(Switch!$D$37,$F$2:$G$44,2,FALSE)+ROW()-2))=Switch!$D$37,INDIRECT(\"a\" & (VLOOKUP(Switch!$D$37,$F$2:$G$44,2,FALSE)+ROW()-2)),\"\")","v":{"$error":"#N/A"}},{"$f":"IF(INDIRECT(\"c\" & (VLOOKUP(Switch!$D$38,$F$2:$G$44,2,FALSE)+ROW()-2))=Switch!$D$38,INDIRECT(\"a\" & (VLOOKUP(Switch!$D$38,$F$2:$G$44,2,FALSE)+ROW()-2)),\"\")","v":{"$error":"#N/A"}},{"$f":"IF(INDIRECT(\"c\" & (VLOOKUP(Switch!$D$39,$F$2:$G$44,2,FALSE)+ROW()-2))=Switch!$D$39,INDIRECT(\"a\" & (VLOOKUP(Switch!$D$39,$F$2:$G$44,2,FALSE)+ROW()-2)),\"\")","v":{"$error":"#N/A"}},{"$f":"IF(INDIRECT(\"c\" & (VLOOKUP(Switch!$D$40,$F$2:$G$44,2,FALSE)+ROW()-2))=Switch!$D$40,INDIRECT(\"a\" & (VLOOKUP(Switch!$D$40,$F$2:$G$44,2,FALSE)+ROW()-2)),\"\")","v":{"$error":"#N/A"}},{"$f":"IF(INDIRECT(\"c\" & (VLOOKUP(Switch!$D$52,$F$2:$G$44,2,FALSE)+ROW()-2))=Switch!$D$52,INDIRECT(\"a\" & (VLOOKUP(Switch!$D$52,$F$2:$G$44,2,FALSE)+ROW()-2)),\"\")","v":{"$error":"#N/A"}},{"$f":"IF(INDIRECT(\"c\" & (VLOOKUP(Switch!$D$53,$F$2:$G$44,2,FALSE)+ROW()-2))=Switch!$D$53,INDIRECT(\"a\" & (VLOOKUP(Switch!$D$53,$F$2:$G$44,2,FALSE)+ROW()-2)),\"\")","v":{"$error":"#N/A"}},{"$f":"IF(INDIRECT(\"c\" & (VLOOKUP(Switch!$D$54,$F$2:$G$44,2,FALSE)+ROW()-2))=Switch!$D$54,INDIRECT(\"a\" & (VLOOKUP(Switch!$D$54,$F$2:$G$44,2,FALSE)+ROW()-2)),\"\")","v":{"$error":"#N/A"}},{"$f":"IF(INDIRECT(\"c\" & (VLOOKUP(Switch!$D$55,$F$2:$G$44,2,FALSE)+ROW()-2))=Switch!$D$55,INDIRECT(\"a\" & (VLOOKUP(Switch!$D$55,$F$2:$G$44,2,FALSE)+ROW()-2)),\"\")","v":{"$error":"#N/A"}},{"$f":"IF(INDIRECT(\"c\" & (VLOOKUP(Switch!$D$56,$F$2:$G$44,2,FALSE)+ROW()-2))=Switch!$D$56,INDIRECT(\"a\" & (VLOOKUP(Switch!$D$56,$F$2:$G$44,2,FALSE)+ROW()-2)),\"\")","v":{"$error":"#N/A"}},{"$f":"IF(INDIRECT(\"c\" & (VLOOKUP(Switch!$D$57,$F$2:$G$44,2,FALSE)+ROW()-2))=Switch!$D$57,INDIRECT(\"a\" & (VLOOKUP(Switch!$D$57,$F$2:$G$44,2,FALSE)+ROW()-2)),\"\")","v":{"$error":"#N/A"}},{"$f":"IF(INDIRECT(\"c\" & (VLOOKUP(Switch!$D$58,$F$2:$G$44,2,FALSE)+ROW()-2))=Switch!$D$58,INDIRECT(\"a\" & (VLOOKUP(Switch!$D$58,$F$2:$G$44,2,FALSE)+ROW()-2)),\"\")","v":{"$error":"#N/A"}},{"$f":"IF(INDIRECT(\"c\" & (VLOOKUP(Switch!$D$59,$F$2:$G$44,2,FALSE)+ROW()-2))=Switch!$D$59,INDIRECT(\"a\" & (VLOOKUP(Switch!$D$59,$F$2:$G$44,2,FALSE)+ROW()-2)),\"\")","v":{"$error":"#N/A"}},{"$f":"IF(INDIRECT(\"c\" & (VLOOKUP(Switch!$D$60,$F$2:$G$44,2,FALSE)+ROW()-2))=Switch!$D$60,INDIRECT(\"a\" & (VLOOKUP(Switch!$D$60,$F$2:$G$44,2,FALSE)+ROW()-2)),\"\")","v":{"$error":"#N/A"}},{"$f":"IF(INDIRECT(\"c\" & (VLOOKUP(Switch!$D$61,$F$2:$G$44,2,FALSE)+ROW()-2))=Switch!$D$61,INDIRECT(\"a\" & (VLOOKUP(Switch!$D$61,$F$2:$G$44,2,FALSE)+ROW()-2)),\"\")","v":{"$error":"#N/A"}},{"$f":"IF(INDIRECT(\"c\" & (VLOOKUP(Switch!$D$62,$F$2:$G$44,2,FALSE)+ROW()-2))=Switch!$D$62,INDIRECT(\"a\" & (VLOOKUP(Switch!$D$62,$F$2:$G$44,2,FALSE)+ROW()-2)),\"\")","v":{"$error":"#N/A"}},{"$f":"IF(INDIRECT(\"c\" & (VLOOKUP(Switch!$D$63,$F$2:$G$44,2,FALSE)+ROW()-2))=Switch!$D$63,INDIRECT(\"a\" & (VLOOKUP(Switch!$D$63,$F$2:$G$44,2,FALSE)+ROW()-2)),\"\")","v":{"$error":"#N/A"}},{"$f":"IF(INDIRECT(\"c\" & (VLOOKUP(Switch!$D$64,$F$2:$G$44,2,FALSE)+ROW()-2))=Switch!$D$64,INDIRECT(\"a\" & (VLOOKUP(Switch!$D$64,$F$2:$G$44,2,FALSE)+ROW()-2)),\"\")","v":{"$error":"#N/A"}},{"$f":"IF(INDIRECT(\"c\" & (VLOOKUP(Switch!$D$65,$F$2:$G$44,2,FALSE)+ROW()-2))=Switch!$D$65,INDIRECT(\"a\" & (VLOOKUP(Switch!$D$65,$F$2:$G$44,2,FALSE)+ROW()-2)),\"\")","v":{"$error":"#N/A"}},{"$f":"IF(INDIRECT(\"c\" & (VLOOKUP(Switch!$D$66,$F$2:$G$44,2,FALSE)+ROW()-2))=Switch!$D$66,INDIRECT(\"a\" & (VLOOKUP(Switch!$D$66,$F$2:$G$44,2,FALSE)+ROW()-2)),\"\")","v":{"$error":"#N/A"}}]
["Investec Commodity Fund H","COMH","Investec Fund Managers",{"$f":"ROW()","v":260},null,null,{"$f":"VLOOKUP(F260,$C$2:$D$637,2,FALSE)","v":{"$error":"#N/A"}},{"$f":"IF(INDIRECT(\"c\" & (VLOOKUP(Switch!$D$26,$F$2:$G$44,2,FALSE)+ROW()-2))=Switch!$D$26,INDIRECT(\"a\" & (VLOOKUP(Switch!$D$26,$F$2:$G$44,2,FALSE)+ROW()-2)),\"\")","v":{"$error":"#N/A"}},{"$f":"IF(INDIRECT(\"c\" & (VLOOKUP(Switch!$D$27,$F$2:$G$44,2,FALSE)+ROW()-2))=Switch!$D$27,INDIRECT(\"a\" & (VLOOKUP(Switch!$D$27,$F$2:$G$44,2,FALSE)+ROW()-2)),\"\")","v":{"$error":"#N/A"}},{"$f":"IF(INDIRECT(\"c\" & (VLOOKUP(Switch!$D$28,$F$2:$G$44,2,FALSE)+ROW()-2))=Switch!$D$28,INDIRECT(\"a\" & (VLOOKUP(Switch!$D$28,$F$2:$G$44,2,FALSE)+ROW()-2)),\"\")","v":{"$error":"#N/A"}},{"$f":"IF(INDIRECT(\"c\" & (VLOOKUP(Switch!$D$29,$F$2:$G$44,2,FALSE)+ROW()-2))=Switch!$D$29,INDIRECT(\"a\" & (VLOOKUP(Switch!$D$29,$F$2:$G$44,2,FALSE)+ROW()-2)),\"\")","v":{"$error":"#N/A"}},{"$f":"IF(INDIRECT(\"c\" & (VLOOKUP(Switch!$D$30,$F$2:$G$44,2,FALSE)+ROW()-2))=Switch!$D$30,INDIRECT(\"a\" & (VLOOKUP(Switch!$D$30,$F$2:$G$44,2,FALSE)+ROW()-2)),\"\")","v":{"$error":"#N/A"}},{"$f":"IF(INDIRECT(\"c\" & (VLOOKUP(Switch!$D$31,$F$2:$G$44,2,FALSE)+ROW()-2))=Switch!$D$31,INDIRECT(\"a\" & (VLOOKUP(Switch!$D$31,$F$2:$G$44,2,FALSE)+ROW()-2)),\"\")","v":{"$error":"#N/A"}},{"$f":"IF(INDIRECT(\"c\" & (VLOOKUP(Switch!$D$32,$F$2:$G$44,2,FALSE)+ROW()-2))=Switch!$D$32,INDIRECT(\"a\" & (VLOOKUP(Switch!$D$32,$F$2:$G$44,2,FALSE)+ROW()-2)),\"\")","v":{"$error":"#N/A"}},{"$f":"IF(INDIRECT(\"c\" & (VLOOKUP(Switch!$D$33,$F$2:$G$44,2,FALSE)+ROW()-2))=Switch!$D$33,INDIRECT(\"a\" & (VLOOKUP(Switch!$D$33,$F$2:$G$44,2,FALSE)+ROW()-2)),\"\")","v":{"$error":"#N/A"}},{"$f":"IF(INDIRECT(\"c\" & (VLOOKUP(Switch!$D$34,$F$2:$G$44,2,FALSE)+ROW()-2))=Switch!$D$34,INDIRECT(\"a\" & (VLOOKUP(Switch!$D$34,$F$2:$G$44,2,FALSE)+ROW()-2)),\"\")","v":{"$error":"#N/A"}},{"$f":"IF(INDIRECT(\"c\" & (VLOOKUP(Switch!$D$35,$F$2:$G$44,2,FALSE)+ROW()-2))=Switch!$D$35,INDIRECT(\"a\" & (VLOOKUP(Switch!$D$35,$F$2:$G$44,2,FALSE)+ROW()-2)),\"\")","v":{"$error":"#N/A"}},{"$f":"IF(INDIRECT(\"c\" & (VLOOKUP(Switch!$D$36,$F$2:$G$44,2,FALSE)+ROW()-2))=Switch!$D$36,INDIRECT(\"a\" & (VLOOKUP(Switch!$D$36,$F$2:$G$44,2,FALSE)+ROW()-2)),\"\")","v":{"$error":"#N/A"}},{"$f":"IF(INDIRECT(\"c\" & (VLOOKUP(Switch!$D$37,$F$2:$G$44,2,FALSE)+ROW()-2))=Switch!$D$37,INDIRECT(\"a\" & (VLOOKUP(Switch!$D$37,$F$2:$G$44,2,FALSE)+ROW()-2)),\"\")","v":{"$error":"#N/A"}},{"$f":"IF(INDIRECT(\"c\" & (VLOOKUP(Switch!$D$38,$F$2:$G$44,2,FALSE)+ROW()-2))=Switch!$D$38,INDIRECT(\"a\" & (VLOOKUP(Switch!$D$38,$F$2:$G$44,2,FALSE)+ROW()-2)),\"\")","v":{"$error":"#N/A"}},{"$f":"IF(INDIRECT(\"c\" & (VLOOKUP(Switch!$D$39,$F$2:$G$44,2,FALSE)+ROW()-2))=Switch!$D$39,INDIRECT(\"a\" & (VLOOKUP(Switch!$D$39,$F$2:$G$44,2,FALSE)+ROW()-2)),\"\")","v":{"$error":"#N/A"}},{"$f":"IF(INDIRECT(\"c\" & (VLOOKUP(Switch!$D$40,$F$2:$G$44,2,FALSE)+ROW()-2))=Switch!$D$40,INDIRECT(\"a\" & (VLOOKUP(Switch!$D$40,$F$2:$G$44,2,FALSE)+ROW()-2)),\"\")","v":{"$error":"#N/A"}},{"$f":"IF(INDIRECT(\"c\" & (VLOOKUP(Switch!$D$52,$F$2:$G$44,2,FALSE)+ROW()-2))=Switch!$D$52,INDIRECT(\"a\" & (VLOOKUP(Switch!$D$52,$F$2:$G$44,2,FALSE)+ROW()-2)),\"\")","v":{"$error":"#N/A"}},{"$f":"IF(INDIRECT(\"c\" & (VLOOKUP(Switch!$D$53,$F$2:$G$44,2,FALSE)+ROW()-2))=Switch!$D$53,INDIRECT(\"a\" & (VLOOKUP(Switch!$D$53,$F$2:$G$44,2,FALSE)+ROW()-2)),\"\")","v":{"$error":"#N/A"}},{"$f":"IF(INDIRECT(\"c\" & (VLOOKUP(Switch!$D$54,$F$2:$G$44,2,FALSE)+ROW()-2))=Switch!$D$54,INDIRECT(\"a\" & (VLOOKUP(Switch!$D$54,$F$2:$G$44,2,FALSE)+ROW()-2)),\"\")","v":{"$error":"#N/A"}},{"$f":"IF(INDIRECT(\"c\" & (VLOOKUP(Switch!$D$55,$F$2:$G$44,2,FALSE)+ROW()-2))=Switch!$D$55,INDIRECT(\"a\" & (VLOOKUP(Switch!$D$55,$F$2:$G$44,2,FALSE)+ROW()-2)),\"\")","v":{"$error":"#N/A"}},{"$f":"IF(INDIRECT(\"c\" & (VLOOKUP(Switch!$D$56,$F$2:$G$44,2,FALSE)+ROW()-2))=Switch!$D$56,INDIRECT(\"a\" & (VLOOKUP(Switch!$D$56,$F$2:$G$44,2,FALSE)+ROW()-2)),\"\")","v":{"$error":"#N/A"}},{"$f":"IF(INDIRECT(\"c\" & (VLOOKUP(Switch!$D$57,$F$2:$G$44,2,FALSE)+ROW()-2))=Switch!$D$57,INDIRECT(\"a\" & (VLOOKUP(Switch!$D$57,$F$2:$G$44,2,FALSE)+ROW()-2)),\"\")","v":{"$error":"#N/A"}},{"$f":"IF(INDIRECT(\"c\" & (VLOOKUP(Switch!$D$58,$F$2:$G$44,2,FALSE)+ROW()-2))=Switch!$D$58,INDIRECT(\"a\" & (VLOOKUP(Switch!$D$58,$F$2:$G$44,2,FALSE)+ROW()-2)),\"\")","v":{"$error":"#N/A"}},{"$f":"IF(INDIRECT(\"c\" & (VLOOKUP(Switch!$D$59,$F$2:$G$44,2,FALSE)+ROW()-2))=Switch!$D$59,INDIRECT(\"a\" & (VLOOKUP(Switch!$D$59,$F$2:$G$44,2,FALSE)+ROW()-2)),\"\")","v":{"$error":"#N/A"}},{"$f":"IF(INDIRECT(\"c\" & (VLOOKUP(Switch!$D$60,$F$2:$G$44,2,FALSE)+ROW()-2))=Switch!$D$60,INDIRECT(\"a\" & (VLOOKUP(Switch!$D$60,$F$2:$G$44,2,FALSE)+ROW()-2)),\"\")","v":{"$error":"#N/A"}},{"$f":"IF(INDIRECT(\"c\" & (VLOOKUP(Switch!$D$61,$F$2:$G$44,2,FALSE)+ROW()-2))=Switch!$D$61,INDIRECT(\"a\" & (VLOOKUP(Switch!$D$61,$F$2:$G$44,2,FALSE)+ROW()-2)),\"\")","v":{"$error":"#N/A"}},{"$f":"IF(INDIRECT(\"c\" & (VLOOKUP(Switch!$D$62,$F$2:$G$44,2,FALSE)+ROW()-2))=Switch!$D$62,INDIRECT(\"a\" & (VLOOKUP(Switch!$D$62,$F$2:$G$44,2,FALSE)+ROW()-2)),\"\")","v":{"$error":"#N/A"}},{"$f":"IF(INDIRECT(\"c\" & (VLOOKUP(Switch!$D$63,$F$2:$G$44,2,FALSE)+ROW()-2))=Switch!$D$63,INDIRECT(\"a\" & (VLOOKUP(Switch!$D$63,$F$2:$G$44,2,FALSE)+ROW()-2)),\"\")","v":{"$error":"#N/A"}},{"$f":"IF(INDIRECT(\"c\" & (VLOOKUP(Switch!$D$64,$F$2:$G$44,2,FALSE)+ROW()-2))=Switch!$D$64,INDIRECT(\"a\" & (VLOOKUP(Switch!$D$64,$F$2:$G$44,2,FALSE)+ROW()-2)),\"\")","v":{"$error":"#N/A"}},{"$f":"IF(INDIRECT(\"c\" & (VLOOKUP(Switch!$D$65,$F$2:$G$44,2,FALSE)+ROW()-2))=Switch!$D$65,INDIRECT(\"a\" & (VLOOKUP(Switch!$D$65,$F$2:$G$44,2,FALSE)+ROW()-2)),\"\")","v":{"$error":"#N/A"}},{"$f":"IF(INDIRECT(\"c\" & (VLOOKUP(Switch!$D$66,$F$2:$G$44,2,FALSE)+ROW()-2))=Switch!$D$66,INDIRECT(\"a\" & (VLOOKUP(Switch!$D$66,$F$2:$G$44,2,FALSE)+ROW()-2)),\"\")","v":{"$error":"#N/A"}}]
["Investec Diversified Income Fund H","IDICH","Investec Fund Managers",{"$f":"ROW()","v":261},null,null,{"$f":"VLOOKUP(F261,$C$2:$D$637,2,FALSE)","v":{"$error":"#N/A"}},{"$f":"IF(INDIRECT(\"c\" & (VLOOKUP(Switch!$D$26,$F$2:$G$44,2,FALSE)+ROW()-2))=Switch!$D$26,INDIRECT(\"a\" & (VLOOKUP(Switch!$D$26,$F$2:$G$44,2,FALSE)+ROW()-2)),\"\")","v":{"$error":"#N/A"}},{"$f":"IF(INDIRECT(\"c\" & (VLOOKUP(Switch!$D$27,$F$2:$G$44,2,FALSE)+ROW()-2))=Switch!$D$27,INDIRECT(\"a\" & (VLOOKUP(Switch!$D$27,$F$2:$G$44,2,FALSE)+ROW()-2)),\"\")","v":{"$error":"#N/A"}},{"$f":"IF(INDIRECT(\"c\" & (VLOOKUP(Switch!$D$28,$F$2:$G$44,2,FALSE)+ROW()-2))=Switch!$D$28,INDIRECT(\"a\" & (VLOOKUP(Switch!$D$28,$F$2:$G$44,2,FALSE)+ROW()-2)),\"\")","v":{"$error":"#N/A"}},{"$f":"IF(INDIRECT(\"c\" & (VLOOKUP(Switch!$D$29,$F$2:$G$44,2,FALSE)+ROW()-2))=Switch!$D$29,INDIRECT(\"a\" & (VLOOKUP(Switch!$D$29,$F$2:$G$44,2,FALSE)+ROW()-2)),\"\")","v":{"$error":"#N/A"}},{"$f":"IF(INDIRECT(\"c\" & (VLOOKUP(Switch!$D$30,$F$2:$G$44,2,FALSE)+ROW()-2))=Switch!$D$30,INDIRECT(\"a\" & (VLOOKUP(Switch!$D$30,$F$2:$G$44,2,FALSE)+ROW()-2)),\"\")","v":{"$error":"#N/A"}},{"$f":"IF(INDIRECT(\"c\" & (VLOOKUP(Switch!$D$31,$F$2:$G$44,2,FALSE)+ROW()-2))=Switch!$D$31,INDIRECT(\"a\" & (VLOOKUP(Switch!$D$31,$F$2:$G$44,2,FALSE)+ROW()-2)),\"\")","v":{"$error":"#N/A"}},{"$f":"IF(INDIRECT(\"c\" & (VLOOKUP(Switch!$D$32,$F$2:$G$44,2,FALSE)+ROW()-2))=Switch!$D$32,INDIRECT(\"a\" & (VLOOKUP(Switch!$D$32,$F$2:$G$44,2,FALSE)+ROW()-2)),\"\")","v":{"$error":"#N/A"}},{"$f":"IF(INDIRECT(\"c\" & (VLOOKUP(Switch!$D$33,$F$2:$G$44,2,FALSE)+ROW()-2))=Switch!$D$33,INDIRECT(\"a\" & (VLOOKUP(Switch!$D$33,$F$2:$G$44,2,FALSE)+ROW()-2)),\"\")","v":{"$error":"#N/A"}},{"$f":"IF(INDIRECT(\"c\" & (VLOOKUP(Switch!$D$34,$F$2:$G$44,2,FALSE)+ROW()-2))=Switch!$D$34,INDIRECT(\"a\" & (VLOOKUP(Switch!$D$34,$F$2:$G$44,2,FALSE)+ROW()-2)),\"\")","v":{"$error":"#N/A"}},{"$f":"IF(INDIRECT(\"c\" & (VLOOKUP(Switch!$D$35,$F$2:$G$44,2,FALSE)+ROW()-2))=Switch!$D$35,INDIRECT(\"a\" & (VLOOKUP(Switch!$D$35,$F$2:$G$44,2,FALSE)+ROW()-2)),\"\")","v":{"$error":"#N/A"}},{"$f":"IF(INDIRECT(\"c\" & (VLOOKUP(Switch!$D$36,$F$2:$G$44,2,FALSE)+ROW()-2))=Switch!$D$36,INDIRECT(\"a\" & (VLOOKUP(Switch!$D$36,$F$2:$G$44,2,FALSE)+ROW()-2)),\"\")","v":{"$error":"#N/A"}},{"$f":"IF(INDIRECT(\"c\" & (VLOOKUP(Switch!$D$37,$F$2:$G$44,2,FALSE)+ROW()-2))=Switch!$D$37,INDIRECT(\"a\" & (VLOOKUP(Switch!$D$37,$F$2:$G$44,2,FALSE)+ROW()-2)),\"\")","v":{"$error":"#N/A"}},{"$f":"IF(INDIRECT(\"c\" & (VLOOKUP(Switch!$D$38,$F$2:$G$44,2,FALSE)+ROW()-2))=Switch!$D$38,INDIRECT(\"a\" & (VLOOKUP(Switch!$D$38,$F$2:$G$44,2,FALSE)+ROW()-2)),\"\")","v":{"$error":"#N/A"}},{"$f":"IF(INDIRECT(\"c\" & (VLOOKUP(Switch!$D$39,$F$2:$G$44,2,FALSE)+ROW()-2))=Switch!$D$39,INDIRECT(\"a\" & (VLOOKUP(Switch!$D$39,$F$2:$G$44,2,FALSE)+ROW()-2)),\"\")","v":{"$error":"#N/A"}},{"$f":"IF(INDIRECT(\"c\" & (VLOOKUP(Switch!$D$40,$F$2:$G$44,2,FALSE)+ROW()-2))=Switch!$D$40,INDIRECT(\"a\" & (VLOOKUP(Switch!$D$40,$F$2:$G$44,2,FALSE)+ROW()-2)),\"\")","v":{"$error":"#N/A"}},{"$f":"IF(INDIRECT(\"c\" & (VLOOKUP(Switch!$D$52,$F$2:$G$44,2,FALSE)+ROW()-2))=Switch!$D$52,INDIRECT(\"a\" & (VLOOKUP(Switch!$D$52,$F$2:$G$44,2,FALSE)+ROW()-2)),\"\")","v":{"$error":"#N/A"}},{"$f":"IF(INDIRECT(\"c\" & (VLOOKUP(Switch!$D$53,$F$2:$G$44,2,FALSE)+ROW()-2))=Switch!$D$53,INDIRECT(\"a\" & (VLOOKUP(Switch!$D$53,$F$2:$G$44,2,FALSE)+ROW()-2)),\"\")","v":{"$error":"#N/A"}},{"$f":"IF(INDIRECT(\"c\" & (VLOOKUP(Switch!$D$54,$F$2:$G$44,2,FALSE)+ROW()-2))=Switch!$D$54,INDIRECT(\"a\" & (VLOOKUP(Switch!$D$54,$F$2:$G$44,2,FALSE)+ROW()-2)),\"\")","v":{"$error":"#N/A"}},{"$f":"IF(INDIRECT(\"c\" & (VLOOKUP(Switch!$D$55,$F$2:$G$44,2,FALSE)+ROW()-2))=Switch!$D$55,INDIRECT(\"a\" & (VLOOKUP(Switch!$D$55,$F$2:$G$44,2,FALSE)+ROW()-2)),\"\")","v":{"$error":"#N/A"}},{"$f":"IF(INDIRECT(\"c\" & (VLOOKUP(Switch!$D$56,$F$2:$G$44,2,FALSE)+ROW()-2))=Switch!$D$56,INDIRECT(\"a\" & (VLOOKUP(Switch!$D$56,$F$2:$G$44,2,FALSE)+ROW()-2)),\"\")","v":{"$error":"#N/A"}},{"$f":"IF(INDIRECT(\"c\" & (VLOOKUP(Switch!$D$57,$F$2:$G$44,2,FALSE)+ROW()-2))=Switch!$D$57,INDIRECT(\"a\" & (VLOOKUP(Switch!$D$57,$F$2:$G$44,2,FALSE)+ROW()-2)),\"\")","v":{"$error":"#N/A"}},{"$f":"IF(INDIRECT(\"c\" & (VLOOKUP(Switch!$D$58,$F$2:$G$44,2,FALSE)+ROW()-2))=Switch!$D$58,INDIRECT(\"a\" & (VLOOKUP(Switch!$D$58,$F$2:$G$44,2,FALSE)+ROW()-2)),\"\")","v":{"$error":"#N/A"}},{"$f":"IF(INDIRECT(\"c\" & (VLOOKUP(Switch!$D$59,$F$2:$G$44,2,FALSE)+ROW()-2))=Switch!$D$59,INDIRECT(\"a\" & (VLOOKUP(Switch!$D$59,$F$2:$G$44,2,FALSE)+ROW()-2)),\"\")","v":{"$error":"#N/A"}},{"$f":"IF(INDIRECT(\"c\" & (VLOOKUP(Switch!$D$60,$F$2:$G$44,2,FALSE)+ROW()-2))=Switch!$D$60,INDIRECT(\"a\" & (VLOOKUP(Switch!$D$60,$F$2:$G$44,2,FALSE)+ROW()-2)),\"\")","v":{"$error":"#N/A"}},{"$f":"IF(INDIRECT(\"c\" & (VLOOKUP(Switch!$D$61,$F$2:$G$44,2,FALSE)+ROW()-2))=Switch!$D$61,INDIRECT(\"a\" & (VLOOKUP(Switch!$D$61,$F$2:$G$44,2,FALSE)+ROW()-2)),\"\")","v":{"$error":"#N/A"}},{"$f":"IF(INDIRECT(\"c\" & (VLOOKUP(Switch!$D$62,$F$2:$G$44,2,FALSE)+ROW()-2))=Switch!$D$62,INDIRECT(\"a\" & (VLOOKUP(Switch!$D$62,$F$2:$G$44,2,FALSE)+ROW()-2)),\"\")","v":{"$error":"#N/A"}},{"$f":"IF(INDIRECT(\"c\" & (VLOOKUP(Switch!$D$63,$F$2:$G$44,2,FALSE)+ROW()-2))=Switch!$D$63,INDIRECT(\"a\" & (VLOOKUP(Switch!$D$63,$F$2:$G$44,2,FALSE)+ROW()-2)),\"\")","v":{"$error":"#N/A"}},{"$f":"IF(INDIRECT(\"c\" & (VLOOKUP(Switch!$D$64,$F$2:$G$44,2,FALSE)+ROW()-2))=Switch!$D$64,INDIRECT(\"a\" & (VLOOKUP(Switch!$D$64,$F$2:$G$44,2,FALSE)+ROW()-2)),\"\")","v":{"$error":"#N/A"}},{"$f":"IF(INDIRECT(\"c\" & (VLOOKUP(Switch!$D$65,$F$2:$G$44,2,FALSE)+ROW()-2))=Switch!$D$65,INDIRECT(\"a\" & (VLOOKUP(Switch!$D$65,$F$2:$G$44,2,FALSE)+ROW()-2)),\"\")","v":{"$error":"#N/A"}},{"$f":"IF(INDIRECT(\"c\" & (VLOOKUP(Switch!$D$66,$F$2:$G$44,2,FALSE)+ROW()-2))=Switch!$D$66,INDIRECT(\"a\" & (VLOOKUP(Switch!$D$66,$F$2:$G$44,2,FALSE)+ROW()-2)),\"\")","v":{"$error":"#N/A"}}]
["Investec Diversified Income Fund Class H","IDICH","Investec Fund Managers",{"$f":"ROW()","v":262},null,null,{"$f":"VLOOKUP(F262,$C$2:$D$637,2,FALSE)","v":{"$error":"#N/A"}},{"$f":"IF(INDIRECT(\"c\" & (VLOOKUP(Switch!$D$26,$F$2:$G$44,2,FALSE)+ROW()-2))=Switch!$D$26,INDIRECT(\"a\" & (VLOOKUP(Switch!$D$26,$F$2:$G$44,2,FALSE)+ROW()-2)),\"\")","v":{"$error":"#N/A"}},{"$f":"IF(INDIRECT(\"c\" & (VLOOKUP(Switch!$D$27,$F$2:$G$44,2,FALSE)+ROW()-2))=Switch!$D$27,INDIRECT(\"a\" & (VLOOKUP(Switch!$D$27,$F$2:$G$44,2,FALSE)+ROW()-2)),\"\")","v":{"$error":"#N/A"}},{"$f":"IF(INDIRECT(\"c\" & (VLOOKUP(Switch!$D$28,$F$2:$G$44,2,FALSE)+ROW()-2))=Switch!$D$28,INDIRECT(\"a\" & (VLOOKUP(Switch!$D$28,$F$2:$G$44,2,FALSE)+ROW()-2)),\"\")","v":{"$error":"#N/A"}},{"$f":"IF(INDIRECT(\"c\" & (VLOOKUP(Switch!$D$29,$F$2:$G$44,2,FALSE)+ROW()-2))=Switch!$D$29,INDIRECT(\"a\" & (VLOOKUP(Switch!$D$29,$F$2:$G$44,2,FALSE)+ROW()-2)),\"\")","v":{"$error":"#N/A"}},{"$f":"IF(INDIRECT(\"c\" & (VLOOKUP(Switch!$D$30,$F$2:$G$44,2,FALSE)+ROW()-2))=Switch!$D$30,INDIRECT(\"a\" & (VLOOKUP(Switch!$D$30,$F$2:$G$44,2,FALSE)+ROW()-2)),\"\")","v":{"$error":"#N/A"}},{"$f":"IF(INDIRECT(\"c\" & (VLOOKUP(Switch!$D$31,$F$2:$G$44,2,FALSE)+ROW()-2))=Switch!$D$31,INDIRECT(\"a\" & (VLOOKUP(Switch!$D$31,$F$2:$G$44,2,FALSE)+ROW()-2)),\"\")","v":{"$error":"#N/A"}},{"$f":"IF(INDIRECT(\"c\" & (VLOOKUP(Switch!$D$32,$F$2:$G$44,2,FALSE)+ROW()-2))=Switch!$D$32,INDIRECT(\"a\" & (VLOOKUP(Switch!$D$32,$F$2:$G$44,2,FALSE)+ROW()-2)),\"\")","v":{"$error":"#N/A"}},{"$f":"IF(INDIRECT(\"c\" & (VLOOKUP(Switch!$D$33,$F$2:$G$44,2,FALSE)+ROW()-2))=Switch!$D$33,INDIRECT(\"a\" & (VLOOKUP(Switch!$D$33,$F$2:$G$44,2,FALSE)+ROW()-2)),\"\")","v":{"$error":"#N/A"}},{"$f":"IF(INDIRECT(\"c\" & (VLOOKUP(Switch!$D$34,$F$2:$G$44,2,FALSE)+ROW()-2))=Switch!$D$34,INDIRECT(\"a\" & (VLOOKUP(Switch!$D$34,$F$2:$G$44,2,FALSE)+ROW()-2)),\"\")","v":{"$error":"#N/A"}},{"$f":"IF(INDIRECT(\"c\" & (VLOOKUP(Switch!$D$35,$F$2:$G$44,2,FALSE)+ROW()-2))=Switch!$D$35,INDIRECT(\"a\" & (VLOOKUP(Switch!$D$35,$F$2:$G$44,2,FALSE)+ROW()-2)),\"\")","v":{"$error":"#N/A"}},{"$f":"IF(INDIRECT(\"c\" & (VLOOKUP(Switch!$D$36,$F$2:$G$44,2,FALSE)+ROW()-2))=Switch!$D$36,INDIRECT(\"a\" & (VLOOKUP(Switch!$D$36,$F$2:$G$44,2,FALSE)+ROW()-2)),\"\")","v":{"$error":"#N/A"}},{"$f":"IF(INDIRECT(\"c\" & (VLOOKUP(Switch!$D$37,$F$2:$G$44,2,FALSE)+ROW()-2))=Switch!$D$37,INDIRECT(\"a\" & (VLOOKUP(Switch!$D$37,$F$2:$G$44,2,FALSE)+ROW()-2)),\"\")","v":{"$error":"#N/A"}},{"$f":"IF(INDIRECT(\"c\" & (VLOOKUP(Switch!$D$38,$F$2:$G$44,2,FALSE)+ROW()-2))=Switch!$D$38,INDIRECT(\"a\" & (VLOOKUP(Switch!$D$38,$F$2:$G$44,2,FALSE)+ROW()-2)),\"\")","v":{"$error":"#N/A"}},{"$f":"IF(INDIRECT(\"c\" & (VLOOKUP(Switch!$D$39,$F$2:$G$44,2,FALSE)+ROW()-2))=Switch!$D$39,INDIRECT(\"a\" & (VLOOKUP(Switch!$D$39,$F$2:$G$44,2,FALSE)+ROW()-2)),\"\")","v":{"$error":"#N/A"}},{"$f":"IF(INDIRECT(\"c\" & (VLOOKUP(Switch!$D$40,$F$2:$G$44,2,FALSE)+ROW()-2))=Switch!$D$40,INDIRECT(\"a\" & (VLOOKUP(Switch!$D$40,$F$2:$G$44,2,FALSE)+ROW()-2)),\"\")","v":{"$error":"#N/A"}},{"$f":"IF(INDIRECT(\"c\" & (VLOOKUP(Switch!$D$52,$F$2:$G$44,2,FALSE)+ROW()-2))=Switch!$D$52,INDIRECT(\"a\" & (VLOOKUP(Switch!$D$52,$F$2:$G$44,2,FALSE)+ROW()-2)),\"\")","v":{"$error":"#N/A"}},{"$f":"IF(INDIRECT(\"c\" & (VLOOKUP(Switch!$D$53,$F$2:$G$44,2,FALSE)+ROW()-2))=Switch!$D$53,INDIRECT(\"a\" & (VLOOKUP(Switch!$D$53,$F$2:$G$44,2,FALSE)+ROW()-2)),\"\")","v":{"$error":"#N/A"}},{"$f":"IF(INDIRECT(\"c\" & (VLOOKUP(Switch!$D$54,$F$2:$G$44,2,FALSE)+ROW()-2))=Switch!$D$54,INDIRECT(\"a\" & (VLOOKUP(Switch!$D$54,$F$2:$G$44,2,FALSE)+ROW()-2)),\"\")","v":{"$error":"#N/A"}},{"$f":"IF(INDIRECT(\"c\" & (VLOOKUP(Switch!$D$55,$F$2:$G$44,2,FALSE)+ROW()-2))=Switch!$D$55,INDIRECT(\"a\" & (VLOOKUP(Switch!$D$55,$F$2:$G$44,2,FALSE)+ROW()-2)),\"\")","v":{"$error":"#N/A"}},{"$f":"IF(INDIRECT(\"c\" & (VLOOKUP(Switch!$D$56,$F$2:$G$44,2,FALSE)+ROW()-2))=Switch!$D$56,INDIRECT(\"a\" & (VLOOKUP(Switch!$D$56,$F$2:$G$44,2,FALSE)+ROW()-2)),\"\")","v":{"$error":"#N/A"}},{"$f":"IF(INDIRECT(\"c\" & (VLOOKUP(Switch!$D$57,$F$2:$G$44,2,FALSE)+ROW()-2))=Switch!$D$57,INDIRECT(\"a\" & (VLOOKUP(Switch!$D$57,$F$2:$G$44,2,FALSE)+ROW()-2)),\"\")","v":{"$error":"#N/A"}},{"$f":"IF(INDIRECT(\"c\" & (VLOOKUP(Switch!$D$58,$F$2:$G$44,2,FALSE)+ROW()-2))=Switch!$D$58,INDIRECT(\"a\" & (VLOOKUP(Switch!$D$58,$F$2:$G$44,2,FALSE)+ROW()-2)),\"\")","v":{"$error":"#N/A"}},{"$f":"IF(INDIRECT(\"c\" & (VLOOKUP(Switch!$D$59,$F$2:$G$44,2,FALSE)+ROW()-2))=Switch!$D$59,INDIRECT(\"a\" & (VLOOKUP(Switch!$D$59,$F$2:$G$44,2,FALSE)+ROW()-2)),\"\")","v":{"$error":"#N/A"}},{"$f":"IF(INDIRECT(\"c\" & (VLOOKUP(Switch!$D$60,$F$2:$G$44,2,FALSE)+ROW()-2))=Switch!$D$60,INDIRECT(\"a\" & (VLOOKUP(Switch!$D$60,$F$2:$G$44,2,FALSE)+ROW()-2)),\"\")","v":{"$error":"#N/A"}},{"$f":"IF(INDIRECT(\"c\" & (VLOOKUP(Switch!$D$61,$F$2:$G$44,2,FALSE)+ROW()-2))=Switch!$D$61,INDIRECT(\"a\" & (VLOOKUP(Switch!$D$61,$F$2:$G$44,2,FALSE)+ROW()-2)),\"\")","v":{"$error":"#N/A"}},{"$f":"IF(INDIRECT(\"c\" & (VLOOKUP(Switch!$D$62,$F$2:$G$44,2,FALSE)+ROW()-2))=Switch!$D$62,INDIRECT(\"a\" & (VLOOKUP(Switch!$D$62,$F$2:$G$44,2,FALSE)+ROW()-2)),\"\")","v":{"$error":"#N/A"}},{"$f":"IF(INDIRECT(\"c\" & (VLOOKUP(Switch!$D$63,$F$2:$G$44,2,FALSE)+ROW()-2))=Switch!$D$63,INDIRECT(\"a\" & (VLOOKUP(Switch!$D$63,$F$2:$G$44,2,FALSE)+ROW()-2)),\"\")","v":{"$error":"#N/A"}},{"$f":"IF(INDIRECT(\"c\" & (VLOOKUP(Switch!$D$64,$F$2:$G$44,2,FALSE)+ROW()-2))=Switch!$D$64,INDIRECT(\"a\" & (VLOOKUP(Switch!$D$64,$F$2:$G$44,2,FALSE)+ROW()-2)),\"\")","v":{"$error":"#N/A"}},{"$f":"IF(INDIRECT(\"c\" & (VLOOKUP(Switch!$D$65,$F$2:$G$44,2,FALSE)+ROW()-2))=Switch!$D$65,INDIRECT(\"a\" & (VLOOKUP(Switch!$D$65,$F$2:$G$44,2,FALSE)+ROW()-2)),\"\")","v":{"$error":"#N/A"}},{"$f":"IF(INDIRECT(\"c\" & (VLOOKUP(Switch!$D$66,$F$2:$G$44,2,FALSE)+ROW()-2))=Switch!$D$66,INDIRECT(\"a\" & (VLOOKUP(Switch!$D$66,$F$2:$G$44,2,FALSE)+ROW()-2)),\"\")","v":{"$error":"#N/A"}}]
["Investec Equity Fund H","EQTH","Investec Fund Managers",{"$f":"ROW()","v":263},null,null,{"$f":"VLOOKUP(F263,$C$2:$D$637,2,FALSE)","v":{"$error":"#N/A"}},{"$f":"IF(INDIRECT(\"c\" & (VLOOKUP(Switch!$D$26,$F$2:$G$44,2,FALSE)+ROW()-2))=Switch!$D$26,INDIRECT(\"a\" & (VLOOKUP(Switch!$D$26,$F$2:$G$44,2,FALSE)+ROW()-2)),\"\")","v":{"$error":"#N/A"}},{"$f":"IF(INDIRECT(\"c\" & (VLOOKUP(Switch!$D$27,$F$2:$G$44,2,FALSE)+ROW()-2))=Switch!$D$27,INDIRECT(\"a\" & (VLOOKUP(Switch!$D$27,$F$2:$G$44,2,FALSE)+ROW()-2)),\"\")","v":{"$error":"#N/A"}},{"$f":"IF(INDIRECT(\"c\" & (VLOOKUP(Switch!$D$28,$F$2:$G$44,2,FALSE)+ROW()-2))=Switch!$D$28,INDIRECT(\"a\" & (VLOOKUP(Switch!$D$28,$F$2:$G$44,2,FALSE)+ROW()-2)),\"\")","v":{"$error":"#N/A"}},{"$f":"IF(INDIRECT(\"c\" & (VLOOKUP(Switch!$D$29,$F$2:$G$44,2,FALSE)+ROW()-2))=Switch!$D$29,INDIRECT(\"a\" & (VLOOKUP(Switch!$D$29,$F$2:$G$44,2,FALSE)+ROW()-2)),\"\")","v":{"$error":"#N/A"}},{"$f":"IF(INDIRECT(\"c\" & (VLOOKUP(Switch!$D$30,$F$2:$G$44,2,FALSE)+ROW()-2))=Switch!$D$30,INDIRECT(\"a\" & (VLOOKUP(Switch!$D$30,$F$2:$G$44,2,FALSE)+ROW()-2)),\"\")","v":{"$error":"#N/A"}},{"$f":"IF(INDIRECT(\"c\" & (VLOOKUP(Switch!$D$31,$F$2:$G$44,2,FALSE)+ROW()-2))=Switch!$D$31,INDIRECT(\"a\" & (VLOOKUP(Switch!$D$31,$F$2:$G$44,2,FALSE)+ROW()-2)),\"\")","v":{"$error":"#N/A"}},{"$f":"IF(INDIRECT(\"c\" & (VLOOKUP(Switch!$D$32,$F$2:$G$44,2,FALSE)+ROW()-2))=Switch!$D$32,INDIRECT(\"a\" & (VLOOKUP(Switch!$D$32,$F$2:$G$44,2,FALSE)+ROW()-2)),\"\")","v":{"$error":"#N/A"}},{"$f":"IF(INDIRECT(\"c\" & (VLOOKUP(Switch!$D$33,$F$2:$G$44,2,FALSE)+ROW()-2))=Switch!$D$33,INDIRECT(\"a\" & (VLOOKUP(Switch!$D$33,$F$2:$G$44,2,FALSE)+ROW()-2)),\"\")","v":{"$error":"#N/A"}},{"$f":"IF(INDIRECT(\"c\" & (VLOOKUP(Switch!$D$34,$F$2:$G$44,2,FALSE)+ROW()-2))=Switch!$D$34,INDIRECT(\"a\" & (VLOOKUP(Switch!$D$34,$F$2:$G$44,2,FALSE)+ROW()-2)),\"\")","v":{"$error":"#N/A"}},{"$f":"IF(INDIRECT(\"c\" & (VLOOKUP(Switch!$D$35,$F$2:$G$44,2,FALSE)+ROW()-2))=Switch!$D$35,INDIRECT(\"a\" & (VLOOKUP(Switch!$D$35,$F$2:$G$44,2,FALSE)+ROW()-2)),\"\")","v":{"$error":"#N/A"}},{"$f":"IF(INDIRECT(\"c\" & (VLOOKUP(Switch!$D$36,$F$2:$G$44,2,FALSE)+ROW()-2))=Switch!$D$36,INDIRECT(\"a\" & (VLOOKUP(Switch!$D$36,$F$2:$G$44,2,FALSE)+ROW()-2)),\"\")","v":{"$error":"#N/A"}},{"$f":"IF(INDIRECT(\"c\" & (VLOOKUP(Switch!$D$37,$F$2:$G$44,2,FALSE)+ROW()-2))=Switch!$D$37,INDIRECT(\"a\" & (VLOOKUP(Switch!$D$37,$F$2:$G$44,2,FALSE)+ROW()-2)),\"\")","v":{"$error":"#N/A"}},{"$f":"IF(INDIRECT(\"c\" & (VLOOKUP(Switch!$D$38,$F$2:$G$44,2,FALSE)+ROW()-2))=Switch!$D$38,INDIRECT(\"a\" & (VLOOKUP(Switch!$D$38,$F$2:$G$44,2,FALSE)+ROW()-2)),\"\")","v":{"$error":"#N/A"}},{"$f":"IF(INDIRECT(\"c\" & (VLOOKUP(Switch!$D$39,$F$2:$G$44,2,FALSE)+ROW()-2))=Switch!$D$39,INDIRECT(\"a\" & (VLOOKUP(Switch!$D$39,$F$2:$G$44,2,FALSE)+ROW()-2)),\"\")","v":{"$error":"#N/A"}},{"$f":"IF(INDIRECT(\"c\" & (VLOOKUP(Switch!$D$40,$F$2:$G$44,2,FALSE)+ROW()-2))=Switch!$D$40,INDIRECT(\"a\" & (VLOOKUP(Switch!$D$40,$F$2:$G$44,2,FALSE)+ROW()-2)),\"\")","v":{"$error":"#N/A"}},{"$f":"IF(INDIRECT(\"c\" & (VLOOKUP(Switch!$D$52,$F$2:$G$44,2,FALSE)+ROW()-2))=Switch!$D$52,INDIRECT(\"a\" & (VLOOKUP(Switch!$D$52,$F$2:$G$44,2,FALSE)+ROW()-2)),\"\")","v":{"$error":"#N/A"}},{"$f":"IF(INDIRECT(\"c\" & (VLOOKUP(Switch!$D$53,$F$2:$G$44,2,FALSE)+ROW()-2))=Switch!$D$53,INDIRECT(\"a\" & (VLOOKUP(Switch!$D$53,$F$2:$G$44,2,FALSE)+ROW()-2)),\"\")","v":{"$error":"#N/A"}},{"$f":"IF(INDIRECT(\"c\" & (VLOOKUP(Switch!$D$54,$F$2:$G$44,2,FALSE)+ROW()-2))=Switch!$D$54,INDIRECT(\"a\" & (VLOOKUP(Switch!$D$54,$F$2:$G$44,2,FALSE)+ROW()-2)),\"\")","v":{"$error":"#N/A"}},{"$f":"IF(INDIRECT(\"c\" & (VLOOKUP(Switch!$D$55,$F$2:$G$44,2,FALSE)+ROW()-2))=Switch!$D$55,INDIRECT(\"a\" & (VLOOKUP(Switch!$D$55,$F$2:$G$44,2,FALSE)+ROW()-2)),\"\")","v":{"$error":"#N/A"}},{"$f":"IF(INDIRECT(\"c\" & (VLOOKUP(Switch!$D$56,$F$2:$G$44,2,FALSE)+ROW()-2))=Switch!$D$56,INDIRECT(\"a\" & (VLOOKUP(Switch!$D$56,$F$2:$G$44,2,FALSE)+ROW()-2)),\"\")","v":{"$error":"#N/A"}},{"$f":"IF(INDIRECT(\"c\" & (VLOOKUP(Switch!$D$57,$F$2:$G$44,2,FALSE)+ROW()-2))=Switch!$D$57,INDIRECT(\"a\" & (VLOOKUP(Switch!$D$57,$F$2:$G$44,2,FALSE)+ROW()-2)),\"\")","v":{"$error":"#N/A"}},{"$f":"IF(INDIRECT(\"c\" & (VLOOKUP(Switch!$D$58,$F$2:$G$44,2,FALSE)+ROW()-2))=Switch!$D$58,INDIRECT(\"a\" & (VLOOKUP(Switch!$D$58,$F$2:$G$44,2,FALSE)+ROW()-2)),\"\")","v":{"$error":"#N/A"}},{"$f":"IF(INDIRECT(\"c\" & (VLOOKUP(Switch!$D$59,$F$2:$G$44,2,FALSE)+ROW()-2))=Switch!$D$59,INDIRECT(\"a\" & (VLOOKUP(Switch!$D$59,$F$2:$G$44,2,FALSE)+ROW()-2)),\"\")","v":{"$error":"#N/A"}},{"$f":"IF(INDIRECT(\"c\" & (VLOOKUP(Switch!$D$60,$F$2:$G$44,2,FALSE)+ROW()-2))=Switch!$D$60,INDIRECT(\"a\" & (VLOOKUP(Switch!$D$60,$F$2:$G$44,2,FALSE)+ROW()-2)),\"\")","v":{"$error":"#N/A"}},{"$f":"IF(INDIRECT(\"c\" & (VLOOKUP(Switch!$D$61,$F$2:$G$44,2,FALSE)+ROW()-2))=Switch!$D$61,INDIRECT(\"a\" & (VLOOKUP(Switch!$D$61,$F$2:$G$44,2,FALSE)+ROW()-2)),\"\")","v":{"$error":"#N/A"}},{"$f":"IF(INDIRECT(\"c\" & (VLOOKUP(Switch!$D$62,$F$2:$G$44,2,FALSE)+ROW()-2))=Switch!$D$62,INDIRECT(\"a\" & (VLOOKUP(Switch!$D$62,$F$2:$G$44,2,FALSE)+ROW()-2)),\"\")","v":{"$error":"#N/A"}},{"$f":"IF(INDIRECT(\"c\" & (VLOOKUP(Switch!$D$63,$F$2:$G$44,2,FALSE)+ROW()-2))=Switch!$D$63,INDIRECT(\"a\" & (VLOOKUP(Switch!$D$63,$F$2:$G$44,2,FALSE)+ROW()-2)),\"\")","v":{"$error":"#N/A"}},{"$f":"IF(INDIRECT(\"c\" & (VLOOKUP(Switch!$D$64,$F$2:$G$44,2,FALSE)+ROW()-2))=Switch!$D$64,INDIRECT(\"a\" & (VLOOKUP(Switch!$D$64,$F$2:$G$44,2,FALSE)+ROW()-2)),\"\")","v":{"$error":"#N/A"}},{"$f":"IF(INDIRECT(\"c\" & (VLOOKUP(Switch!$D$65,$F$2:$G$44,2,FALSE)+ROW()-2))=Switch!$D$65,INDIRECT(\"a\" & (VLOOKUP(Switch!$D$65,$F$2:$G$44,2,FALSE)+ROW()-2)),\"\")","v":{"$error":"#N/A"}},{"$f":"IF(INDIRECT(\"c\" & (VLOOKUP(Switch!$D$66,$F$2:$G$44,2,FALSE)+ROW()-2))=Switch!$D$66,INDIRECT(\"a\" & (VLOOKUP(Switch!$D$66,$F$2:$G$44,2,FALSE)+ROW()-2)),\"\")","v":{"$error":"#N/A"}}]
["Investec Emerging Companies Fund H","ECFH","Investec Fund Managers",{"$f":"ROW()","v":264},null,null,{"$f":"VLOOKUP(F264,$C$2:$D$637,2,FALSE)","v":{"$error":"#N/A"}},{"$f":"IF(INDIRECT(\"c\" & (VLOOKUP(Switch!$D$26,$F$2:$G$44,2,FALSE)+ROW()-2))=Switch!$D$26,INDIRECT(\"a\" & (VLOOKUP(Switch!$D$26,$F$2:$G$44,2,FALSE)+ROW()-2)),\"\")","v":{"$error":"#N/A"}},{"$f":"IF(INDIRECT(\"c\" & (VLOOKUP(Switch!$D$27,$F$2:$G$44,2,FALSE)+ROW()-2))=Switch!$D$27,INDIRECT(\"a\" & (VLOOKUP(Switch!$D$27,$F$2:$G$44,2,FALSE)+ROW()-2)),\"\")","v":{"$error":"#N/A"}},{"$f":"IF(INDIRECT(\"c\" & (VLOOKUP(Switch!$D$28,$F$2:$G$44,2,FALSE)+ROW()-2))=Switch!$D$28,INDIRECT(\"a\" & (VLOOKUP(Switch!$D$28,$F$2:$G$44,2,FALSE)+ROW()-2)),\"\")","v":{"$error":"#N/A"}},{"$f":"IF(INDIRECT(\"c\" & (VLOOKUP(Switch!$D$29,$F$2:$G$44,2,FALSE)+ROW()-2))=Switch!$D$29,INDIRECT(\"a\" & (VLOOKUP(Switch!$D$29,$F$2:$G$44,2,FALSE)+ROW()-2)),\"\")","v":{"$error":"#N/A"}},{"$f":"IF(INDIRECT(\"c\" & (VLOOKUP(Switch!$D$30,$F$2:$G$44,2,FALSE)+ROW()-2))=Switch!$D$30,INDIRECT(\"a\" & (VLOOKUP(Switch!$D$30,$F$2:$G$44,2,FALSE)+ROW()-2)),\"\")","v":{"$error":"#N/A"}},{"$f":"IF(INDIRECT(\"c\" & (VLOOKUP(Switch!$D$31,$F$2:$G$44,2,FALSE)+ROW()-2))=Switch!$D$31,INDIRECT(\"a\" & (VLOOKUP(Switch!$D$31,$F$2:$G$44,2,FALSE)+ROW()-2)),\"\")","v":{"$error":"#N/A"}},{"$f":"IF(INDIRECT(\"c\" & (VLOOKUP(Switch!$D$32,$F$2:$G$44,2,FALSE)+ROW()-2))=Switch!$D$32,INDIRECT(\"a\" & (VLOOKUP(Switch!$D$32,$F$2:$G$44,2,FALSE)+ROW()-2)),\"\")","v":{"$error":"#N/A"}},{"$f":"IF(INDIRECT(\"c\" & (VLOOKUP(Switch!$D$33,$F$2:$G$44,2,FALSE)+ROW()-2))=Switch!$D$33,INDIRECT(\"a\" & (VLOOKUP(Switch!$D$33,$F$2:$G$44,2,FALSE)+ROW()-2)),\"\")","v":{"$error":"#N/A"}},{"$f":"IF(INDIRECT(\"c\" & (VLOOKUP(Switch!$D$34,$F$2:$G$44,2,FALSE)+ROW()-2))=Switch!$D$34,INDIRECT(\"a\" & (VLOOKUP(Switch!$D$34,$F$2:$G$44,2,FALSE)+ROW()-2)),\"\")","v":{"$error":"#N/A"}},{"$f":"IF(INDIRECT(\"c\" & (VLOOKUP(Switch!$D$35,$F$2:$G$44,2,FALSE)+ROW()-2))=Switch!$D$35,INDIRECT(\"a\" & (VLOOKUP(Switch!$D$35,$F$2:$G$44,2,FALSE)+ROW()-2)),\"\")","v":{"$error":"#N/A"}},{"$f":"IF(INDIRECT(\"c\" & (VLOOKUP(Switch!$D$36,$F$2:$G$44,2,FALSE)+ROW()-2))=Switch!$D$36,INDIRECT(\"a\" & (VLOOKUP(Switch!$D$36,$F$2:$G$44,2,FALSE)+ROW()-2)),\"\")","v":{"$error":"#N/A"}},{"$f":"IF(INDIRECT(\"c\" & (VLOOKUP(Switch!$D$37,$F$2:$G$44,2,FALSE)+ROW()-2))=Switch!$D$37,INDIRECT(\"a\" & (VLOOKUP(Switch!$D$37,$F$2:$G$44,2,FALSE)+ROW()-2)),\"\")","v":{"$error":"#N/A"}},{"$f":"IF(INDIRECT(\"c\" & (VLOOKUP(Switch!$D$38,$F$2:$G$44,2,FALSE)+ROW()-2))=Switch!$D$38,INDIRECT(\"a\" & (VLOOKUP(Switch!$D$38,$F$2:$G$44,2,FALSE)+ROW()-2)),\"\")","v":{"$error":"#N/A"}},{"$f":"IF(INDIRECT(\"c\" & (VLOOKUP(Switch!$D$39,$F$2:$G$44,2,FALSE)+ROW()-2))=Switch!$D$39,INDIRECT(\"a\" & (VLOOKUP(Switch!$D$39,$F$2:$G$44,2,FALSE)+ROW()-2)),\"\")","v":{"$error":"#N/A"}},{"$f":"IF(INDIRECT(\"c\" & (VLOOKUP(Switch!$D$40,$F$2:$G$44,2,FALSE)+ROW()-2))=Switch!$D$40,INDIRECT(\"a\" & (VLOOKUP(Switch!$D$40,$F$2:$G$44,2,FALSE)+ROW()-2)),\"\")","v":{"$error":"#N/A"}},{"$f":"IF(INDIRECT(\"c\" & (VLOOKUP(Switch!$D$52,$F$2:$G$44,2,FALSE)+ROW()-2))=Switch!$D$52,INDIRECT(\"a\" & (VLOOKUP(Switch!$D$52,$F$2:$G$44,2,FALSE)+ROW()-2)),\"\")","v":{"$error":"#N/A"}},{"$f":"IF(INDIRECT(\"c\" & (VLOOKUP(Switch!$D$53,$F$2:$G$44,2,FALSE)+ROW()-2))=Switch!$D$53,INDIRECT(\"a\" & (VLOOKUP(Switch!$D$53,$F$2:$G$44,2,FALSE)+ROW()-2)),\"\")","v":{"$error":"#N/A"}},{"$f":"IF(INDIRECT(\"c\" & (VLOOKUP(Switch!$D$54,$F$2:$G$44,2,FALSE)+ROW()-2))=Switch!$D$54,INDIRECT(\"a\" & (VLOOKUP(Switch!$D$54,$F$2:$G$44,2,FALSE)+ROW()-2)),\"\")","v":{"$error":"#N/A"}},{"$f":"IF(INDIRECT(\"c\" & (VLOOKUP(Switch!$D$55,$F$2:$G$44,2,FALSE)+ROW()-2))=Switch!$D$55,INDIRECT(\"a\" & (VLOOKUP(Switch!$D$55,$F$2:$G$44,2,FALSE)+ROW()-2)),\"\")","v":{"$error":"#N/A"}},{"$f":"IF(INDIRECT(\"c\" & (VLOOKUP(Switch!$D$56,$F$2:$G$44,2,FALSE)+ROW()-2))=Switch!$D$56,INDIRECT(\"a\" & (VLOOKUP(Switch!$D$56,$F$2:$G$44,2,FALSE)+ROW()-2)),\"\")","v":{"$error":"#N/A"}},{"$f":"IF(INDIRECT(\"c\" & (VLOOKUP(Switch!$D$57,$F$2:$G$44,2,FALSE)+ROW()-2))=Switch!$D$57,INDIRECT(\"a\" & (VLOOKUP(Switch!$D$57,$F$2:$G$44,2,FALSE)+ROW()-2)),\"\")","v":{"$error":"#N/A"}},{"$f":"IF(INDIRECT(\"c\" & (VLOOKUP(Switch!$D$58,$F$2:$G$44,2,FALSE)+ROW()-2))=Switch!$D$58,INDIRECT(\"a\" & (VLOOKUP(Switch!$D$58,$F$2:$G$44,2,FALSE)+ROW()-2)),\"\")","v":{"$error":"#N/A"}},{"$f":"IF(INDIRECT(\"c\" & (VLOOKUP(Switch!$D$59,$F$2:$G$44,2,FALSE)+ROW()-2))=Switch!$D$59,INDIRECT(\"a\" & (VLOOKUP(Switch!$D$59,$F$2:$G$44,2,FALSE)+ROW()-2)),\"\")","v":{"$error":"#N/A"}},{"$f":"IF(INDIRECT(\"c\" & (VLOOKUP(Switch!$D$60,$F$2:$G$44,2,FALSE)+ROW()-2))=Switch!$D$60,INDIRECT(\"a\" & (VLOOKUP(Switch!$D$60,$F$2:$G$44,2,FALSE)+ROW()-2)),\"\")","v":{"$error":"#N/A"}},{"$f":"IF(INDIRECT(\"c\" & (VLOOKUP(Switch!$D$61,$F$2:$G$44,2,FALSE)+ROW()-2))=Switch!$D$61,INDIRECT(\"a\" & (VLOOKUP(Switch!$D$61,$F$2:$G$44,2,FALSE)+ROW()-2)),\"\")","v":{"$error":"#N/A"}},{"$f":"IF(INDIRECT(\"c\" & (VLOOKUP(Switch!$D$62,$F$2:$G$44,2,FALSE)+ROW()-2))=Switch!$D$62,INDIRECT(\"a\" & (VLOOKUP(Switch!$D$62,$F$2:$G$44,2,FALSE)+ROW()-2)),\"\")","v":{"$error":"#N/A"}},{"$f":"IF(INDIRECT(\"c\" & (VLOOKUP(Switch!$D$63,$F$2:$G$44,2,FALSE)+ROW()-2))=Switch!$D$63,INDIRECT(\"a\" & (VLOOKUP(Switch!$D$63,$F$2:$G$44,2,FALSE)+ROW()-2)),\"\")","v":{"$error":"#N/A"}},{"$f":"IF(INDIRECT(\"c\" & (VLOOKUP(Switch!$D$64,$F$2:$G$44,2,FALSE)+ROW()-2))=Switch!$D$64,INDIRECT(\"a\" & (VLOOKUP(Switch!$D$64,$F$2:$G$44,2,FALSE)+ROW()-2)),\"\")","v":{"$error":"#N/A"}},{"$f":"IF(INDIRECT(\"c\" & (VLOOKUP(Switch!$D$65,$F$2:$G$44,2,FALSE)+ROW()-2))=Switch!$D$65,INDIRECT(\"a\" & (VLOOKUP(Switch!$D$65,$F$2:$G$44,2,FALSE)+ROW()-2)),\"\")","v":{"$error":"#N/A"}},{"$f":"IF(INDIRECT(\"c\" & (VLOOKUP(Switch!$D$66,$F$2:$G$44,2,FALSE)+ROW()-2))=Switch!$D$66,INDIRECT(\"a\" & (VLOOKUP(Switch!$D$66,$F$2:$G$44,2,FALSE)+ROW()-2)),\"\")","v":{"$error":"#N/A"}}]
["Investec Gilt Fund H","GLTH","Investec Fund Managers",{"$f":"ROW()","v":265},null,null,{"$f":"VLOOKUP(F265,$C$2:$D$637,2,FALSE)","v":{"$error":"#N/A"}},{"$f":"IF(INDIRECT(\"c\" & (VLOOKUP(Switch!$D$26,$F$2:$G$44,2,FALSE)+ROW()-2))=Switch!$D$26,INDIRECT(\"a\" & (VLOOKUP(Switch!$D$26,$F$2:$G$44,2,FALSE)+ROW()-2)),\"\")","v":{"$error":"#N/A"}},{"$f":"IF(INDIRECT(\"c\" & (VLOOKUP(Switch!$D$27,$F$2:$G$44,2,FALSE)+ROW()-2))=Switch!$D$27,INDIRECT(\"a\" & (VLOOKUP(Switch!$D$27,$F$2:$G$44,2,FALSE)+ROW()-2)),\"\")","v":{"$error":"#N/A"}},{"$f":"IF(INDIRECT(\"c\" & (VLOOKUP(Switch!$D$28,$F$2:$G$44,2,FALSE)+ROW()-2))=Switch!$D$28,INDIRECT(\"a\" & (VLOOKUP(Switch!$D$28,$F$2:$G$44,2,FALSE)+ROW()-2)),\"\")","v":{"$error":"#N/A"}},{"$f":"IF(INDIRECT(\"c\" & (VLOOKUP(Switch!$D$29,$F$2:$G$44,2,FALSE)+ROW()-2))=Switch!$D$29,INDIRECT(\"a\" & (VLOOKUP(Switch!$D$29,$F$2:$G$44,2,FALSE)+ROW()-2)),\"\")","v":{"$error":"#N/A"}},{"$f":"IF(INDIRECT(\"c\" & (VLOOKUP(Switch!$D$30,$F$2:$G$44,2,FALSE)+ROW()-2))=Switch!$D$30,INDIRECT(\"a\" & (VLOOKUP(Switch!$D$30,$F$2:$G$44,2,FALSE)+ROW()-2)),\"\")","v":{"$error":"#N/A"}},{"$f":"IF(INDIRECT(\"c\" & (VLOOKUP(Switch!$D$31,$F$2:$G$44,2,FALSE)+ROW()-2))=Switch!$D$31,INDIRECT(\"a\" & (VLOOKUP(Switch!$D$31,$F$2:$G$44,2,FALSE)+ROW()-2)),\"\")","v":{"$error":"#N/A"}},{"$f":"IF(INDIRECT(\"c\" & (VLOOKUP(Switch!$D$32,$F$2:$G$44,2,FALSE)+ROW()-2))=Switch!$D$32,INDIRECT(\"a\" & (VLOOKUP(Switch!$D$32,$F$2:$G$44,2,FALSE)+ROW()-2)),\"\")","v":{"$error":"#N/A"}},{"$f":"IF(INDIRECT(\"c\" & (VLOOKUP(Switch!$D$33,$F$2:$G$44,2,FALSE)+ROW()-2))=Switch!$D$33,INDIRECT(\"a\" & (VLOOKUP(Switch!$D$33,$F$2:$G$44,2,FALSE)+ROW()-2)),\"\")","v":{"$error":"#N/A"}},{"$f":"IF(INDIRECT(\"c\" & (VLOOKUP(Switch!$D$34,$F$2:$G$44,2,FALSE)+ROW()-2))=Switch!$D$34,INDIRECT(\"a\" & (VLOOKUP(Switch!$D$34,$F$2:$G$44,2,FALSE)+ROW()-2)),\"\")","v":{"$error":"#N/A"}},{"$f":"IF(INDIRECT(\"c\" & (VLOOKUP(Switch!$D$35,$F$2:$G$44,2,FALSE)+ROW()-2))=Switch!$D$35,INDIRECT(\"a\" & (VLOOKUP(Switch!$D$35,$F$2:$G$44,2,FALSE)+ROW()-2)),\"\")","v":{"$error":"#N/A"}},{"$f":"IF(INDIRECT(\"c\" & (VLOOKUP(Switch!$D$36,$F$2:$G$44,2,FALSE)+ROW()-2))=Switch!$D$36,INDIRECT(\"a\" & (VLOOKUP(Switch!$D$36,$F$2:$G$44,2,FALSE)+ROW()-2)),\"\")","v":{"$error":"#N/A"}},{"$f":"IF(INDIRECT(\"c\" & (VLOOKUP(Switch!$D$37,$F$2:$G$44,2,FALSE)+ROW()-2))=Switch!$D$37,INDIRECT(\"a\" & (VLOOKUP(Switch!$D$37,$F$2:$G$44,2,FALSE)+ROW()-2)),\"\")","v":{"$error":"#N/A"}},{"$f":"IF(INDIRECT(\"c\" & (VLOOKUP(Switch!$D$38,$F$2:$G$44,2,FALSE)+ROW()-2))=Switch!$D$38,INDIRECT(\"a\" & (VLOOKUP(Switch!$D$38,$F$2:$G$44,2,FALSE)+ROW()-2)),\"\")","v":{"$error":"#N/A"}},{"$f":"IF(INDIRECT(\"c\" & (VLOOKUP(Switch!$D$39,$F$2:$G$44,2,FALSE)+ROW()-2))=Switch!$D$39,INDIRECT(\"a\" & (VLOOKUP(Switch!$D$39,$F$2:$G$44,2,FALSE)+ROW()-2)),\"\")","v":{"$error":"#N/A"}},{"$f":"IF(INDIRECT(\"c\" & (VLOOKUP(Switch!$D$40,$F$2:$G$44,2,FALSE)+ROW()-2))=Switch!$D$40,INDIRECT(\"a\" & (VLOOKUP(Switch!$D$40,$F$2:$G$44,2,FALSE)+ROW()-2)),\"\")","v":{"$error":"#N/A"}},{"$f":"IF(INDIRECT(\"c\" & (VLOOKUP(Switch!$D$52,$F$2:$G$44,2,FALSE)+ROW()-2))=Switch!$D$52,INDIRECT(\"a\" & (VLOOKUP(Switch!$D$52,$F$2:$G$44,2,FALSE)+ROW()-2)),\"\")","v":{"$error":"#N/A"}},{"$f":"IF(INDIRECT(\"c\" & (VLOOKUP(Switch!$D$53,$F$2:$G$44,2,FALSE)+ROW()-2))=Switch!$D$53,INDIRECT(\"a\" & (VLOOKUP(Switch!$D$53,$F$2:$G$44,2,FALSE)+ROW()-2)),\"\")","v":{"$error":"#N/A"}},{"$f":"IF(INDIRECT(\"c\" & (VLOOKUP(Switch!$D$54,$F$2:$G$44,2,FALSE)+ROW()-2))=Switch!$D$54,INDIRECT(\"a\" & (VLOOKUP(Switch!$D$54,$F$2:$G$44,2,FALSE)+ROW()-2)),\"\")","v":{"$error":"#N/A"}},{"$f":"IF(INDIRECT(\"c\" & (VLOOKUP(Switch!$D$55,$F$2:$G$44,2,FALSE)+ROW()-2))=Switch!$D$55,INDIRECT(\"a\" & (VLOOKUP(Switch!$D$55,$F$2:$G$44,2,FALSE)+ROW()-2)),\"\")","v":{"$error":"#N/A"}},{"$f":"IF(INDIRECT(\"c\" & (VLOOKUP(Switch!$D$56,$F$2:$G$44,2,FALSE)+ROW()-2))=Switch!$D$56,INDIRECT(\"a\" & (VLOOKUP(Switch!$D$56,$F$2:$G$44,2,FALSE)+ROW()-2)),\"\")","v":{"$error":"#N/A"}},{"$f":"IF(INDIRECT(\"c\" & (VLOOKUP(Switch!$D$57,$F$2:$G$44,2,FALSE)+ROW()-2))=Switch!$D$57,INDIRECT(\"a\" & (VLOOKUP(Switch!$D$57,$F$2:$G$44,2,FALSE)+ROW()-2)),\"\")","v":{"$error":"#N/A"}},{"$f":"IF(INDIRECT(\"c\" & (VLOOKUP(Switch!$D$58,$F$2:$G$44,2,FALSE)+ROW()-2))=Switch!$D$58,INDIRECT(\"a\" & (VLOOKUP(Switch!$D$58,$F$2:$G$44,2,FALSE)+ROW()-2)),\"\")","v":{"$error":"#N/A"}},{"$f":"IF(INDIRECT(\"c\" & (VLOOKUP(Switch!$D$59,$F$2:$G$44,2,FALSE)+ROW()-2))=Switch!$D$59,INDIRECT(\"a\" & (VLOOKUP(Switch!$D$59,$F$2:$G$44,2,FALSE)+ROW()-2)),\"\")","v":{"$error":"#N/A"}},{"$f":"IF(INDIRECT(\"c\" & (VLOOKUP(Switch!$D$60,$F$2:$G$44,2,FALSE)+ROW()-2))=Switch!$D$60,INDIRECT(\"a\" & (VLOOKUP(Switch!$D$60,$F$2:$G$44,2,FALSE)+ROW()-2)),\"\")","v":{"$error":"#N/A"}},{"$f":"IF(INDIRECT(\"c\" & (VLOOKUP(Switch!$D$61,$F$2:$G$44,2,FALSE)+ROW()-2))=Switch!$D$61,INDIRECT(\"a\" & (VLOOKUP(Switch!$D$61,$F$2:$G$44,2,FALSE)+ROW()-2)),\"\")","v":{"$error":"#N/A"}},{"$f":"IF(INDIRECT(\"c\" & (VLOOKUP(Switch!$D$62,$F$2:$G$44,2,FALSE)+ROW()-2))=Switch!$D$62,INDIRECT(\"a\" & (VLOOKUP(Switch!$D$62,$F$2:$G$44,2,FALSE)+ROW()-2)),\"\")","v":{"$error":"#N/A"}},{"$f":"IF(INDIRECT(\"c\" & (VLOOKUP(Switch!$D$63,$F$2:$G$44,2,FALSE)+ROW()-2))=Switch!$D$63,INDIRECT(\"a\" & (VLOOKUP(Switch!$D$63,$F$2:$G$44,2,FALSE)+ROW()-2)),\"\")","v":{"$error":"#N/A"}},{"$f":"IF(INDIRECT(\"c\" & (VLOOKUP(Switch!$D$64,$F$2:$G$44,2,FALSE)+ROW()-2))=Switch!$D$64,INDIRECT(\"a\" & (VLOOKUP(Switch!$D$64,$F$2:$G$44,2,FALSE)+ROW()-2)),\"\")","v":{"$error":"#N/A"}},{"$f":"IF(INDIRECT(\"c\" & (VLOOKUP(Switch!$D$65,$F$2:$G$44,2,FALSE)+ROW()-2))=Switch!$D$65,INDIRECT(\"a\" & (VLOOKUP(Switch!$D$65,$F$2:$G$44,2,FALSE)+ROW()-2)),\"\")","v":{"$error":"#N/A"}},{"$f":"IF(INDIRECT(\"c\" & (VLOOKUP(Switch!$D$66,$F$2:$G$44,2,FALSE)+ROW()-2))=Switch!$D$66,INDIRECT(\"a\" & (VLOOKUP(Switch!$D$66,$F$2:$G$44,2,FALSE)+ROW()-2)),\"\")","v":{"$error":"#N/A"}}]
["Investec Global Franchise Feeder Fund H","GLOH","Investec Fund Managers",{"$f":"ROW()","v":266},null,null,{"$f":"VLOOKUP(F266,$C$2:$D$637,2,FALSE)","v":{"$error":"#N/A"}},{"$f":"IF(INDIRECT(\"c\" & (VLOOKUP(Switch!$D$26,$F$2:$G$44,2,FALSE)+ROW()-2))=Switch!$D$26,INDIRECT(\"a\" & (VLOOKUP(Switch!$D$26,$F$2:$G$44,2,FALSE)+ROW()-2)),\"\")","v":{"$error":"#N/A"}},{"$f":"IF(INDIRECT(\"c\" & (VLOOKUP(Switch!$D$27,$F$2:$G$44,2,FALSE)+ROW()-2))=Switch!$D$27,INDIRECT(\"a\" & (VLOOKUP(Switch!$D$27,$F$2:$G$44,2,FALSE)+ROW()-2)),\"\")","v":{"$error":"#N/A"}},{"$f":"IF(INDIRECT(\"c\" & (VLOOKUP(Switch!$D$28,$F$2:$G$44,2,FALSE)+ROW()-2))=Switch!$D$28,INDIRECT(\"a\" & (VLOOKUP(Switch!$D$28,$F$2:$G$44,2,FALSE)+ROW()-2)),\"\")","v":{"$error":"#N/A"}},{"$f":"IF(INDIRECT(\"c\" & (VLOOKUP(Switch!$D$29,$F$2:$G$44,2,FALSE)+ROW()-2))=Switch!$D$29,INDIRECT(\"a\" & (VLOOKUP(Switch!$D$29,$F$2:$G$44,2,FALSE)+ROW()-2)),\"\")","v":{"$error":"#N/A"}},{"$f":"IF(INDIRECT(\"c\" & (VLOOKUP(Switch!$D$30,$F$2:$G$44,2,FALSE)+ROW()-2))=Switch!$D$30,INDIRECT(\"a\" & (VLOOKUP(Switch!$D$30,$F$2:$G$44,2,FALSE)+ROW()-2)),\"\")","v":{"$error":"#N/A"}},{"$f":"IF(INDIRECT(\"c\" & (VLOOKUP(Switch!$D$31,$F$2:$G$44,2,FALSE)+ROW()-2))=Switch!$D$31,INDIRECT(\"a\" & (VLOOKUP(Switch!$D$31,$F$2:$G$44,2,FALSE)+ROW()-2)),\"\")","v":{"$error":"#N/A"}},{"$f":"IF(INDIRECT(\"c\" & (VLOOKUP(Switch!$D$32,$F$2:$G$44,2,FALSE)+ROW()-2))=Switch!$D$32,INDIRECT(\"a\" & (VLOOKUP(Switch!$D$32,$F$2:$G$44,2,FALSE)+ROW()-2)),\"\")","v":{"$error":"#N/A"}},{"$f":"IF(INDIRECT(\"c\" & (VLOOKUP(Switch!$D$33,$F$2:$G$44,2,FALSE)+ROW()-2))=Switch!$D$33,INDIRECT(\"a\" & (VLOOKUP(Switch!$D$33,$F$2:$G$44,2,FALSE)+ROW()-2)),\"\")","v":{"$error":"#N/A"}},{"$f":"IF(INDIRECT(\"c\" & (VLOOKUP(Switch!$D$34,$F$2:$G$44,2,FALSE)+ROW()-2))=Switch!$D$34,INDIRECT(\"a\" & (VLOOKUP(Switch!$D$34,$F$2:$G$44,2,FALSE)+ROW()-2)),\"\")","v":{"$error":"#N/A"}},{"$f":"IF(INDIRECT(\"c\" & (VLOOKUP(Switch!$D$35,$F$2:$G$44,2,FALSE)+ROW()-2))=Switch!$D$35,INDIRECT(\"a\" & (VLOOKUP(Switch!$D$35,$F$2:$G$44,2,FALSE)+ROW()-2)),\"\")","v":{"$error":"#N/A"}},{"$f":"IF(INDIRECT(\"c\" & (VLOOKUP(Switch!$D$36,$F$2:$G$44,2,FALSE)+ROW()-2))=Switch!$D$36,INDIRECT(\"a\" & (VLOOKUP(Switch!$D$36,$F$2:$G$44,2,FALSE)+ROW()-2)),\"\")","v":{"$error":"#N/A"}},{"$f":"IF(INDIRECT(\"c\" & (VLOOKUP(Switch!$D$37,$F$2:$G$44,2,FALSE)+ROW()-2))=Switch!$D$37,INDIRECT(\"a\" & (VLOOKUP(Switch!$D$37,$F$2:$G$44,2,FALSE)+ROW()-2)),\"\")","v":{"$error":"#N/A"}},{"$f":"IF(INDIRECT(\"c\" & (VLOOKUP(Switch!$D$38,$F$2:$G$44,2,FALSE)+ROW()-2))=Switch!$D$38,INDIRECT(\"a\" & (VLOOKUP(Switch!$D$38,$F$2:$G$44,2,FALSE)+ROW()-2)),\"\")","v":{"$error":"#N/A"}},{"$f":"IF(INDIRECT(\"c\" & (VLOOKUP(Switch!$D$39,$F$2:$G$44,2,FALSE)+ROW()-2))=Switch!$D$39,INDIRECT(\"a\" & (VLOOKUP(Switch!$D$39,$F$2:$G$44,2,FALSE)+ROW()-2)),\"\")","v":{"$error":"#N/A"}},{"$f":"IF(INDIRECT(\"c\" & (VLOOKUP(Switch!$D$40,$F$2:$G$44,2,FALSE)+ROW()-2))=Switch!$D$40,INDIRECT(\"a\" & (VLOOKUP(Switch!$D$40,$F$2:$G$44,2,FALSE)+ROW()-2)),\"\")","v":{"$error":"#N/A"}},{"$f":"IF(INDIRECT(\"c\" & (VLOOKUP(Switch!$D$52,$F$2:$G$44,2,FALSE)+ROW()-2))=Switch!$D$52,INDIRECT(\"a\" & (VLOOKUP(Switch!$D$52,$F$2:$G$44,2,FALSE)+ROW()-2)),\"\")","v":{"$error":"#N/A"}},{"$f":"IF(INDIRECT(\"c\" & (VLOOKUP(Switch!$D$53,$F$2:$G$44,2,FALSE)+ROW()-2))=Switch!$D$53,INDIRECT(\"a\" & (VLOOKUP(Switch!$D$53,$F$2:$G$44,2,FALSE)+ROW()-2)),\"\")","v":{"$error":"#N/A"}},{"$f":"IF(INDIRECT(\"c\" & (VLOOKUP(Switch!$D$54,$F$2:$G$44,2,FALSE)+ROW()-2))=Switch!$D$54,INDIRECT(\"a\" & (VLOOKUP(Switch!$D$54,$F$2:$G$44,2,FALSE)+ROW()-2)),\"\")","v":{"$error":"#N/A"}},{"$f":"IF(INDIRECT(\"c\" & (VLOOKUP(Switch!$D$55,$F$2:$G$44,2,FALSE)+ROW()-2))=Switch!$D$55,INDIRECT(\"a\" & (VLOOKUP(Switch!$D$55,$F$2:$G$44,2,FALSE)+ROW()-2)),\"\")","v":{"$error":"#N/A"}},{"$f":"IF(INDIRECT(\"c\" & (VLOOKUP(Switch!$D$56,$F$2:$G$44,2,FALSE)+ROW()-2))=Switch!$D$56,INDIRECT(\"a\" & (VLOOKUP(Switch!$D$56,$F$2:$G$44,2,FALSE)+ROW()-2)),\"\")","v":{"$error":"#N/A"}},{"$f":"IF(INDIRECT(\"c\" & (VLOOKUP(Switch!$D$57,$F$2:$G$44,2,FALSE)+ROW()-2))=Switch!$D$57,INDIRECT(\"a\" & (VLOOKUP(Switch!$D$57,$F$2:$G$44,2,FALSE)+ROW()-2)),\"\")","v":{"$error":"#N/A"}},{"$f":"IF(INDIRECT(\"c\" & (VLOOKUP(Switch!$D$58,$F$2:$G$44,2,FALSE)+ROW()-2))=Switch!$D$58,INDIRECT(\"a\" & (VLOOKUP(Switch!$D$58,$F$2:$G$44,2,FALSE)+ROW()-2)),\"\")","v":{"$error":"#N/A"}},{"$f":"IF(INDIRECT(\"c\" & (VLOOKUP(Switch!$D$59,$F$2:$G$44,2,FALSE)+ROW()-2))=Switch!$D$59,INDIRECT(\"a\" & (VLOOKUP(Switch!$D$59,$F$2:$G$44,2,FALSE)+ROW()-2)),\"\")","v":{"$error":"#N/A"}},{"$f":"IF(INDIRECT(\"c\" & (VLOOKUP(Switch!$D$60,$F$2:$G$44,2,FALSE)+ROW()-2))=Switch!$D$60,INDIRECT(\"a\" & (VLOOKUP(Switch!$D$60,$F$2:$G$44,2,FALSE)+ROW()-2)),\"\")","v":{"$error":"#N/A"}},{"$f":"IF(INDIRECT(\"c\" & (VLOOKUP(Switch!$D$61,$F$2:$G$44,2,FALSE)+ROW()-2))=Switch!$D$61,INDIRECT(\"a\" & (VLOOKUP(Switch!$D$61,$F$2:$G$44,2,FALSE)+ROW()-2)),\"\")","v":{"$error":"#N/A"}},{"$f":"IF(INDIRECT(\"c\" & (VLOOKUP(Switch!$D$62,$F$2:$G$44,2,FALSE)+ROW()-2))=Switch!$D$62,INDIRECT(\"a\" & (VLOOKUP(Switch!$D$62,$F$2:$G$44,2,FALSE)+ROW()-2)),\"\")","v":{"$error":"#N/A"}},{"$f":"IF(INDIRECT(\"c\" & (VLOOKUP(Switch!$D$63,$F$2:$G$44,2,FALSE)+ROW()-2))=Switch!$D$63,INDIRECT(\"a\" & (VLOOKUP(Switch!$D$63,$F$2:$G$44,2,FALSE)+ROW()-2)),\"\")","v":{"$error":"#N/A"}},{"$f":"IF(INDIRECT(\"c\" & (VLOOKUP(Switch!$D$64,$F$2:$G$44,2,FALSE)+ROW()-2))=Switch!$D$64,INDIRECT(\"a\" & (VLOOKUP(Switch!$D$64,$F$2:$G$44,2,FALSE)+ROW()-2)),\"\")","v":{"$error":"#N/A"}},{"$f":"IF(INDIRECT(\"c\" & (VLOOKUP(Switch!$D$65,$F$2:$G$44,2,FALSE)+ROW()-2))=Switch!$D$65,INDIRECT(\"a\" & (VLOOKUP(Switch!$D$65,$F$2:$G$44,2,FALSE)+ROW()-2)),\"\")","v":{"$error":"#N/A"}},{"$f":"IF(INDIRECT(\"c\" & (VLOOKUP(Switch!$D$66,$F$2:$G$44,2,FALSE)+ROW()-2))=Switch!$D$66,INDIRECT(\"a\" & (VLOOKUP(Switch!$D$66,$F$2:$G$44,2,FALSE)+ROW()-2)),\"\")","v":{"$error":"#N/A"}}]
["Investec Global Multi-Asset Income Feeder Fund Class H","GOIH","Investec Fund Managers",{"$f":"ROW()","v":267},null,null,{"$f":"VLOOKUP(F267,$C$2:$D$637,2,FALSE)","v":{"$error":"#N/A"}},{"$f":"IF(INDIRECT(\"c\" & (VLOOKUP(Switch!$D$26,$F$2:$G$44,2,FALSE)+ROW()-2))=Switch!$D$26,INDIRECT(\"a\" & (VLOOKUP(Switch!$D$26,$F$2:$G$44,2,FALSE)+ROW()-2)),\"\")","v":{"$error":"#N/A"}},{"$f":"IF(INDIRECT(\"c\" & (VLOOKUP(Switch!$D$27,$F$2:$G$44,2,FALSE)+ROW()-2))=Switch!$D$27,INDIRECT(\"a\" & (VLOOKUP(Switch!$D$27,$F$2:$G$44,2,FALSE)+ROW()-2)),\"\")","v":{"$error":"#N/A"}},{"$f":"IF(INDIRECT(\"c\" & (VLOOKUP(Switch!$D$28,$F$2:$G$44,2,FALSE)+ROW()-2))=Switch!$D$28,INDIRECT(\"a\" & (VLOOKUP(Switch!$D$28,$F$2:$G$44,2,FALSE)+ROW()-2)),\"\")","v":{"$error":"#N/A"}},{"$f":"IF(INDIRECT(\"c\" & (VLOOKUP(Switch!$D$29,$F$2:$G$44,2,FALSE)+ROW()-2))=Switch!$D$29,INDIRECT(\"a\" & (VLOOKUP(Switch!$D$29,$F$2:$G$44,2,FALSE)+ROW()-2)),\"\")","v":{"$error":"#N/A"}},{"$f":"IF(INDIRECT(\"c\" & (VLOOKUP(Switch!$D$30,$F$2:$G$44,2,FALSE)+ROW()-2))=Switch!$D$30,INDIRECT(\"a\" & (VLOOKUP(Switch!$D$30,$F$2:$G$44,2,FALSE)+ROW()-2)),\"\")","v":{"$error":"#N/A"}},{"$f":"IF(INDIRECT(\"c\" & (VLOOKUP(Switch!$D$31,$F$2:$G$44,2,FALSE)+ROW()-2))=Switch!$D$31,INDIRECT(\"a\" & (VLOOKUP(Switch!$D$31,$F$2:$G$44,2,FALSE)+ROW()-2)),\"\")","v":{"$error":"#N/A"}},{"$f":"IF(INDIRECT(\"c\" & (VLOOKUP(Switch!$D$32,$F$2:$G$44,2,FALSE)+ROW()-2))=Switch!$D$32,INDIRECT(\"a\" & (VLOOKUP(Switch!$D$32,$F$2:$G$44,2,FALSE)+ROW()-2)),\"\")","v":{"$error":"#N/A"}},{"$f":"IF(INDIRECT(\"c\" & (VLOOKUP(Switch!$D$33,$F$2:$G$44,2,FALSE)+ROW()-2))=Switch!$D$33,INDIRECT(\"a\" & (VLOOKUP(Switch!$D$33,$F$2:$G$44,2,FALSE)+ROW()-2)),\"\")","v":{"$error":"#N/A"}},{"$f":"IF(INDIRECT(\"c\" & (VLOOKUP(Switch!$D$34,$F$2:$G$44,2,FALSE)+ROW()-2))=Switch!$D$34,INDIRECT(\"a\" & (VLOOKUP(Switch!$D$34,$F$2:$G$44,2,FALSE)+ROW()-2)),\"\")","v":{"$error":"#N/A"}},{"$f":"IF(INDIRECT(\"c\" & (VLOOKUP(Switch!$D$35,$F$2:$G$44,2,FALSE)+ROW()-2))=Switch!$D$35,INDIRECT(\"a\" & (VLOOKUP(Switch!$D$35,$F$2:$G$44,2,FALSE)+ROW()-2)),\"\")","v":{"$error":"#N/A"}},{"$f":"IF(INDIRECT(\"c\" & (VLOOKUP(Switch!$D$36,$F$2:$G$44,2,FALSE)+ROW()-2))=Switch!$D$36,INDIRECT(\"a\" & (VLOOKUP(Switch!$D$36,$F$2:$G$44,2,FALSE)+ROW()-2)),\"\")","v":{"$error":"#N/A"}},{"$f":"IF(INDIRECT(\"c\" & (VLOOKUP(Switch!$D$37,$F$2:$G$44,2,FALSE)+ROW()-2))=Switch!$D$37,INDIRECT(\"a\" & (VLOOKUP(Switch!$D$37,$F$2:$G$44,2,FALSE)+ROW()-2)),\"\")","v":{"$error":"#N/A"}},{"$f":"IF(INDIRECT(\"c\" & (VLOOKUP(Switch!$D$38,$F$2:$G$44,2,FALSE)+ROW()-2))=Switch!$D$38,INDIRECT(\"a\" & (VLOOKUP(Switch!$D$38,$F$2:$G$44,2,FALSE)+ROW()-2)),\"\")","v":{"$error":"#N/A"}},{"$f":"IF(INDIRECT(\"c\" & (VLOOKUP(Switch!$D$39,$F$2:$G$44,2,FALSE)+ROW()-2))=Switch!$D$39,INDIRECT(\"a\" & (VLOOKUP(Switch!$D$39,$F$2:$G$44,2,FALSE)+ROW()-2)),\"\")","v":{"$error":"#N/A"}},{"$f":"IF(INDIRECT(\"c\" & (VLOOKUP(Switch!$D$40,$F$2:$G$44,2,FALSE)+ROW()-2))=Switch!$D$40,INDIRECT(\"a\" & (VLOOKUP(Switch!$D$40,$F$2:$G$44,2,FALSE)+ROW()-2)),\"\")","v":{"$error":"#N/A"}},{"$f":"IF(INDIRECT(\"c\" & (VLOOKUP(Switch!$D$52,$F$2:$G$44,2,FALSE)+ROW()-2))=Switch!$D$52,INDIRECT(\"a\" & (VLOOKUP(Switch!$D$52,$F$2:$G$44,2,FALSE)+ROW()-2)),\"\")","v":{"$error":"#N/A"}},{"$f":"IF(INDIRECT(\"c\" & (VLOOKUP(Switch!$D$53,$F$2:$G$44,2,FALSE)+ROW()-2))=Switch!$D$53,INDIRECT(\"a\" & (VLOOKUP(Switch!$D$53,$F$2:$G$44,2,FALSE)+ROW()-2)),\"\")","v":{"$error":"#N/A"}},{"$f":"IF(INDIRECT(\"c\" & (VLOOKUP(Switch!$D$54,$F$2:$G$44,2,FALSE)+ROW()-2))=Switch!$D$54,INDIRECT(\"a\" & (VLOOKUP(Switch!$D$54,$F$2:$G$44,2,FALSE)+ROW()-2)),\"\")","v":{"$error":"#N/A"}},{"$f":"IF(INDIRECT(\"c\" & (VLOOKUP(Switch!$D$55,$F$2:$G$44,2,FALSE)+ROW()-2))=Switch!$D$55,INDIRECT(\"a\" & (VLOOKUP(Switch!$D$55,$F$2:$G$44,2,FALSE)+ROW()-2)),\"\")","v":{"$error":"#N/A"}},{"$f":"IF(INDIRECT(\"c\" & (VLOOKUP(Switch!$D$56,$F$2:$G$44,2,FALSE)+ROW()-2))=Switch!$D$56,INDIRECT(\"a\" & (VLOOKUP(Switch!$D$56,$F$2:$G$44,2,FALSE)+ROW()-2)),\"\")","v":{"$error":"#N/A"}},{"$f":"IF(INDIRECT(\"c\" & (VLOOKUP(Switch!$D$57,$F$2:$G$44,2,FALSE)+ROW()-2))=Switch!$D$57,INDIRECT(\"a\" & (VLOOKUP(Switch!$D$57,$F$2:$G$44,2,FALSE)+ROW()-2)),\"\")","v":{"$error":"#N/A"}},{"$f":"IF(INDIRECT(\"c\" & (VLOOKUP(Switch!$D$58,$F$2:$G$44,2,FALSE)+ROW()-2))=Switch!$D$58,INDIRECT(\"a\" & (VLOOKUP(Switch!$D$58,$F$2:$G$44,2,FALSE)+ROW()-2)),\"\")","v":{"$error":"#N/A"}},{"$f":"IF(INDIRECT(\"c\" & (VLOOKUP(Switch!$D$59,$F$2:$G$44,2,FALSE)+ROW()-2))=Switch!$D$59,INDIRECT(\"a\" & (VLOOKUP(Switch!$D$59,$F$2:$G$44,2,FALSE)+ROW()-2)),\"\")","v":{"$error":"#N/A"}},{"$f":"IF(INDIRECT(\"c\" & (VLOOKUP(Switch!$D$60,$F$2:$G$44,2,FALSE)+ROW()-2))=Switch!$D$60,INDIRECT(\"a\" & (VLOOKUP(Switch!$D$60,$F$2:$G$44,2,FALSE)+ROW()-2)),\"\")","v":{"$error":"#N/A"}},{"$f":"IF(INDIRECT(\"c\" & (VLOOKUP(Switch!$D$61,$F$2:$G$44,2,FALSE)+ROW()-2))=Switch!$D$61,INDIRECT(\"a\" & (VLOOKUP(Switch!$D$61,$F$2:$G$44,2,FALSE)+ROW()-2)),\"\")","v":{"$error":"#N/A"}},{"$f":"IF(INDIRECT(\"c\" & (VLOOKUP(Switch!$D$62,$F$2:$G$44,2,FALSE)+ROW()-2))=Switch!$D$62,INDIRECT(\"a\" & (VLOOKUP(Switch!$D$62,$F$2:$G$44,2,FALSE)+ROW()-2)),\"\")","v":{"$error":"#N/A"}},{"$f":"IF(INDIRECT(\"c\" & (VLOOKUP(Switch!$D$63,$F$2:$G$44,2,FALSE)+ROW()-2))=Switch!$D$63,INDIRECT(\"a\" & (VLOOKUP(Switch!$D$63,$F$2:$G$44,2,FALSE)+ROW()-2)),\"\")","v":{"$error":"#N/A"}},{"$f":"IF(INDIRECT(\"c\" & (VLOOKUP(Switch!$D$64,$F$2:$G$44,2,FALSE)+ROW()-2))=Switch!$D$64,INDIRECT(\"a\" & (VLOOKUP(Switch!$D$64,$F$2:$G$44,2,FALSE)+ROW()-2)),\"\")","v":{"$error":"#N/A"}},{"$f":"IF(INDIRECT(\"c\" & (VLOOKUP(Switch!$D$65,$F$2:$G$44,2,FALSE)+ROW()-2))=Switch!$D$65,INDIRECT(\"a\" & (VLOOKUP(Switch!$D$65,$F$2:$G$44,2,FALSE)+ROW()-2)),\"\")","v":{"$error":"#N/A"}},{"$f":"IF(INDIRECT(\"c\" & (VLOOKUP(Switch!$D$66,$F$2:$G$44,2,FALSE)+ROW()-2))=Switch!$D$66,INDIRECT(\"a\" & (VLOOKUP(Switch!$D$66,$F$2:$G$44,2,FALSE)+ROW()-2)),\"\")","v":{"$error":"#N/A"}}]
["Investec Global Strategic Managed Feeder Fund H","GBFH","Investec Fund Managers",{"$f":"ROW()","v":268},null,null,{"$f":"VLOOKUP(F268,$C$2:$D$637,2,FALSE)","v":{"$error":"#N/A"}},{"$f":"IF(INDIRECT(\"c\" & (VLOOKUP(Switch!$D$26,$F$2:$G$44,2,FALSE)+ROW()-2))=Switch!$D$26,INDIRECT(\"a\" & (VLOOKUP(Switch!$D$26,$F$2:$G$44,2,FALSE)+ROW()-2)),\"\")","v":{"$error":"#N/A"}},{"$f":"IF(INDIRECT(\"c\" & (VLOOKUP(Switch!$D$27,$F$2:$G$44,2,FALSE)+ROW()-2))=Switch!$D$27,INDIRECT(\"a\" & (VLOOKUP(Switch!$D$27,$F$2:$G$44,2,FALSE)+ROW()-2)),\"\")","v":{"$error":"#N/A"}},{"$f":"IF(INDIRECT(\"c\" & (VLOOKUP(Switch!$D$28,$F$2:$G$44,2,FALSE)+ROW()-2))=Switch!$D$28,INDIRECT(\"a\" & (VLOOKUP(Switch!$D$28,$F$2:$G$44,2,FALSE)+ROW()-2)),\"\")","v":{"$error":"#N/A"}},{"$f":"IF(INDIRECT(\"c\" & (VLOOKUP(Switch!$D$29,$F$2:$G$44,2,FALSE)+ROW()-2))=Switch!$D$29,INDIRECT(\"a\" & (VLOOKUP(Switch!$D$29,$F$2:$G$44,2,FALSE)+ROW()-2)),\"\")","v":{"$error":"#N/A"}},{"$f":"IF(INDIRECT(\"c\" & (VLOOKUP(Switch!$D$30,$F$2:$G$44,2,FALSE)+ROW()-2))=Switch!$D$30,INDIRECT(\"a\" & (VLOOKUP(Switch!$D$30,$F$2:$G$44,2,FALSE)+ROW()-2)),\"\")","v":{"$error":"#N/A"}},{"$f":"IF(INDIRECT(\"c\" & (VLOOKUP(Switch!$D$31,$F$2:$G$44,2,FALSE)+ROW()-2))=Switch!$D$31,INDIRECT(\"a\" & (VLOOKUP(Switch!$D$31,$F$2:$G$44,2,FALSE)+ROW()-2)),\"\")","v":{"$error":"#N/A"}},{"$f":"IF(INDIRECT(\"c\" & (VLOOKUP(Switch!$D$32,$F$2:$G$44,2,FALSE)+ROW()-2))=Switch!$D$32,INDIRECT(\"a\" & (VLOOKUP(Switch!$D$32,$F$2:$G$44,2,FALSE)+ROW()-2)),\"\")","v":{"$error":"#N/A"}},{"$f":"IF(INDIRECT(\"c\" & (VLOOKUP(Switch!$D$33,$F$2:$G$44,2,FALSE)+ROW()-2))=Switch!$D$33,INDIRECT(\"a\" & (VLOOKUP(Switch!$D$33,$F$2:$G$44,2,FALSE)+ROW()-2)),\"\")","v":{"$error":"#N/A"}},{"$f":"IF(INDIRECT(\"c\" & (VLOOKUP(Switch!$D$34,$F$2:$G$44,2,FALSE)+ROW()-2))=Switch!$D$34,INDIRECT(\"a\" & (VLOOKUP(Switch!$D$34,$F$2:$G$44,2,FALSE)+ROW()-2)),\"\")","v":{"$error":"#N/A"}},{"$f":"IF(INDIRECT(\"c\" & (VLOOKUP(Switch!$D$35,$F$2:$G$44,2,FALSE)+ROW()-2))=Switch!$D$35,INDIRECT(\"a\" & (VLOOKUP(Switch!$D$35,$F$2:$G$44,2,FALSE)+ROW()-2)),\"\")","v":{"$error":"#N/A"}},{"$f":"IF(INDIRECT(\"c\" & (VLOOKUP(Switch!$D$36,$F$2:$G$44,2,FALSE)+ROW()-2))=Switch!$D$36,INDIRECT(\"a\" & (VLOOKUP(Switch!$D$36,$F$2:$G$44,2,FALSE)+ROW()-2)),\"\")","v":{"$error":"#N/A"}},{"$f":"IF(INDIRECT(\"c\" & (VLOOKUP(Switch!$D$37,$F$2:$G$44,2,FALSE)+ROW()-2))=Switch!$D$37,INDIRECT(\"a\" & (VLOOKUP(Switch!$D$37,$F$2:$G$44,2,FALSE)+ROW()-2)),\"\")","v":{"$error":"#N/A"}},{"$f":"IF(INDIRECT(\"c\" & (VLOOKUP(Switch!$D$38,$F$2:$G$44,2,FALSE)+ROW()-2))=Switch!$D$38,INDIRECT(\"a\" & (VLOOKUP(Switch!$D$38,$F$2:$G$44,2,FALSE)+ROW()-2)),\"\")","v":{"$error":"#N/A"}},{"$f":"IF(INDIRECT(\"c\" & (VLOOKUP(Switch!$D$39,$F$2:$G$44,2,FALSE)+ROW()-2))=Switch!$D$39,INDIRECT(\"a\" & (VLOOKUP(Switch!$D$39,$F$2:$G$44,2,FALSE)+ROW()-2)),\"\")","v":{"$error":"#N/A"}},{"$f":"IF(INDIRECT(\"c\" & (VLOOKUP(Switch!$D$40,$F$2:$G$44,2,FALSE)+ROW()-2))=Switch!$D$40,INDIRECT(\"a\" & (VLOOKUP(Switch!$D$40,$F$2:$G$44,2,FALSE)+ROW()-2)),\"\")","v":{"$error":"#N/A"}},{"$f":"IF(INDIRECT(\"c\" & (VLOOKUP(Switch!$D$52,$F$2:$G$44,2,FALSE)+ROW()-2))=Switch!$D$52,INDIRECT(\"a\" & (VLOOKUP(Switch!$D$52,$F$2:$G$44,2,FALSE)+ROW()-2)),\"\")","v":{"$error":"#N/A"}},{"$f":"IF(INDIRECT(\"c\" & (VLOOKUP(Switch!$D$53,$F$2:$G$44,2,FALSE)+ROW()-2))=Switch!$D$53,INDIRECT(\"a\" & (VLOOKUP(Switch!$D$53,$F$2:$G$44,2,FALSE)+ROW()-2)),\"\")","v":{"$error":"#N/A"}},{"$f":"IF(INDIRECT(\"c\" & (VLOOKUP(Switch!$D$54,$F$2:$G$44,2,FALSE)+ROW()-2))=Switch!$D$54,INDIRECT(\"a\" & (VLOOKUP(Switch!$D$54,$F$2:$G$44,2,FALSE)+ROW()-2)),\"\")","v":{"$error":"#N/A"}},{"$f":"IF(INDIRECT(\"c\" & (VLOOKUP(Switch!$D$55,$F$2:$G$44,2,FALSE)+ROW()-2))=Switch!$D$55,INDIRECT(\"a\" & (VLOOKUP(Switch!$D$55,$F$2:$G$44,2,FALSE)+ROW()-2)),\"\")","v":{"$error":"#N/A"}},{"$f":"IF(INDIRECT(\"c\" & (VLOOKUP(Switch!$D$56,$F$2:$G$44,2,FALSE)+ROW()-2))=Switch!$D$56,INDIRECT(\"a\" & (VLOOKUP(Switch!$D$56,$F$2:$G$44,2,FALSE)+ROW()-2)),\"\")","v":{"$error":"#N/A"}},{"$f":"IF(INDIRECT(\"c\" & (VLOOKUP(Switch!$D$57,$F$2:$G$44,2,FALSE)+ROW()-2))=Switch!$D$57,INDIRECT(\"a\" & (VLOOKUP(Switch!$D$57,$F$2:$G$44,2,FALSE)+ROW()-2)),\"\")","v":{"$error":"#N/A"}},{"$f":"IF(INDIRECT(\"c\" & (VLOOKUP(Switch!$D$58,$F$2:$G$44,2,FALSE)+ROW()-2))=Switch!$D$58,INDIRECT(\"a\" & (VLOOKUP(Switch!$D$58,$F$2:$G$44,2,FALSE)+ROW()-2)),\"\")","v":{"$error":"#N/A"}},{"$f":"IF(INDIRECT(\"c\" & (VLOOKUP(Switch!$D$59,$F$2:$G$44,2,FALSE)+ROW()-2))=Switch!$D$59,INDIRECT(\"a\" & (VLOOKUP(Switch!$D$59,$F$2:$G$44,2,FALSE)+ROW()-2)),\"\")","v":{"$error":"#N/A"}},{"$f":"IF(INDIRECT(\"c\" & (VLOOKUP(Switch!$D$60,$F$2:$G$44,2,FALSE)+ROW()-2))=Switch!$D$60,INDIRECT(\"a\" & (VLOOKUP(Switch!$D$60,$F$2:$G$44,2,FALSE)+ROW()-2)),\"\")","v":{"$error":"#N/A"}},{"$f":"IF(INDIRECT(\"c\" & (VLOOKUP(Switch!$D$61,$F$2:$G$44,2,FALSE)+ROW()-2))=Switch!$D$61,INDIRECT(\"a\" & (VLOOKUP(Switch!$D$61,$F$2:$G$44,2,FALSE)+ROW()-2)),\"\")","v":{"$error":"#N/A"}},{"$f":"IF(INDIRECT(\"c\" & (VLOOKUP(Switch!$D$62,$F$2:$G$44,2,FALSE)+ROW()-2))=Switch!$D$62,INDIRECT(\"a\" & (VLOOKUP(Switch!$D$62,$F$2:$G$44,2,FALSE)+ROW()-2)),\"\")","v":{"$error":"#N/A"}},{"$f":"IF(INDIRECT(\"c\" & (VLOOKUP(Switch!$D$63,$F$2:$G$44,2,FALSE)+ROW()-2))=Switch!$D$63,INDIRECT(\"a\" & (VLOOKUP(Switch!$D$63,$F$2:$G$44,2,FALSE)+ROW()-2)),\"\")","v":{"$error":"#N/A"}},{"$f":"IF(INDIRECT(\"c\" & (VLOOKUP(Switch!$D$64,$F$2:$G$44,2,FALSE)+ROW()-2))=Switch!$D$64,INDIRECT(\"a\" & (VLOOKUP(Switch!$D$64,$F$2:$G$44,2,FALSE)+ROW()-2)),\"\")","v":{"$error":"#N/A"}},{"$f":"IF(INDIRECT(\"c\" & (VLOOKUP(Switch!$D$65,$F$2:$G$44,2,FALSE)+ROW()-2))=Switch!$D$65,INDIRECT(\"a\" & (VLOOKUP(Switch!$D$65,$F$2:$G$44,2,FALSE)+ROW()-2)),\"\")","v":{"$error":"#N/A"}},{"$f":"IF(INDIRECT(\"c\" & (VLOOKUP(Switch!$D$66,$F$2:$G$44,2,FALSE)+ROW()-2))=Switch!$D$66,INDIRECT(\"a\" & (VLOOKUP(Switch!$D$66,$F$2:$G$44,2,FALSE)+ROW()-2)),\"\")","v":{"$error":"#N/A"}}]
["Investec High Income Fund H","HIGH","Investec Fund Managers",{"$f":"ROW()","v":269},null,null,{"$f":"VLOOKUP(F269,$C$2:$D$637,2,FALSE)","v":{"$error":"#N/A"}},{"$f":"IF(INDIRECT(\"c\" & (VLOOKUP(Switch!$D$26,$F$2:$G$44,2,FALSE)+ROW()-2))=Switch!$D$26,INDIRECT(\"a\" & (VLOOKUP(Switch!$D$26,$F$2:$G$44,2,FALSE)+ROW()-2)),\"\")","v":{"$error":"#N/A"}},{"$f":"IF(INDIRECT(\"c\" & (VLOOKUP(Switch!$D$27,$F$2:$G$44,2,FALSE)+ROW()-2))=Switch!$D$27,INDIRECT(\"a\" & (VLOOKUP(Switch!$D$27,$F$2:$G$44,2,FALSE)+ROW()-2)),\"\")","v":{"$error":"#N/A"}},{"$f":"IF(INDIRECT(\"c\" & (VLOOKUP(Switch!$D$28,$F$2:$G$44,2,FALSE)+ROW()-2))=Switch!$D$28,INDIRECT(\"a\" & (VLOOKUP(Switch!$D$28,$F$2:$G$44,2,FALSE)+ROW()-2)),\"\")","v":{"$error":"#N/A"}},{"$f":"IF(INDIRECT(\"c\" & (VLOOKUP(Switch!$D$29,$F$2:$G$44,2,FALSE)+ROW()-2))=Switch!$D$29,INDIRECT(\"a\" & (VLOOKUP(Switch!$D$29,$F$2:$G$44,2,FALSE)+ROW()-2)),\"\")","v":{"$error":"#N/A"}},{"$f":"IF(INDIRECT(\"c\" & (VLOOKUP(Switch!$D$30,$F$2:$G$44,2,FALSE)+ROW()-2))=Switch!$D$30,INDIRECT(\"a\" & (VLOOKUP(Switch!$D$30,$F$2:$G$44,2,FALSE)+ROW()-2)),\"\")","v":{"$error":"#N/A"}},{"$f":"IF(INDIRECT(\"c\" & (VLOOKUP(Switch!$D$31,$F$2:$G$44,2,FALSE)+ROW()-2))=Switch!$D$31,INDIRECT(\"a\" & (VLOOKUP(Switch!$D$31,$F$2:$G$44,2,FALSE)+ROW()-2)),\"\")","v":{"$error":"#N/A"}},{"$f":"IF(INDIRECT(\"c\" & (VLOOKUP(Switch!$D$32,$F$2:$G$44,2,FALSE)+ROW()-2))=Switch!$D$32,INDIRECT(\"a\" & (VLOOKUP(Switch!$D$32,$F$2:$G$44,2,FALSE)+ROW()-2)),\"\")","v":{"$error":"#N/A"}},{"$f":"IF(INDIRECT(\"c\" & (VLOOKUP(Switch!$D$33,$F$2:$G$44,2,FALSE)+ROW()-2))=Switch!$D$33,INDIRECT(\"a\" & (VLOOKUP(Switch!$D$33,$F$2:$G$44,2,FALSE)+ROW()-2)),\"\")","v":{"$error":"#N/A"}},{"$f":"IF(INDIRECT(\"c\" & (VLOOKUP(Switch!$D$34,$F$2:$G$44,2,FALSE)+ROW()-2))=Switch!$D$34,INDIRECT(\"a\" & (VLOOKUP(Switch!$D$34,$F$2:$G$44,2,FALSE)+ROW()-2)),\"\")","v":{"$error":"#N/A"}},{"$f":"IF(INDIRECT(\"c\" & (VLOOKUP(Switch!$D$35,$F$2:$G$44,2,FALSE)+ROW()-2))=Switch!$D$35,INDIRECT(\"a\" & (VLOOKUP(Switch!$D$35,$F$2:$G$44,2,FALSE)+ROW()-2)),\"\")","v":{"$error":"#N/A"}},{"$f":"IF(INDIRECT(\"c\" & (VLOOKUP(Switch!$D$36,$F$2:$G$44,2,FALSE)+ROW()-2))=Switch!$D$36,INDIRECT(\"a\" & (VLOOKUP(Switch!$D$36,$F$2:$G$44,2,FALSE)+ROW()-2)),\"\")","v":{"$error":"#N/A"}},{"$f":"IF(INDIRECT(\"c\" & (VLOOKUP(Switch!$D$37,$F$2:$G$44,2,FALSE)+ROW()-2))=Switch!$D$37,INDIRECT(\"a\" & (VLOOKUP(Switch!$D$37,$F$2:$G$44,2,FALSE)+ROW()-2)),\"\")","v":{"$error":"#N/A"}},{"$f":"IF(INDIRECT(\"c\" & (VLOOKUP(Switch!$D$38,$F$2:$G$44,2,FALSE)+ROW()-2))=Switch!$D$38,INDIRECT(\"a\" & (VLOOKUP(Switch!$D$38,$F$2:$G$44,2,FALSE)+ROW()-2)),\"\")","v":{"$error":"#N/A"}},{"$f":"IF(INDIRECT(\"c\" & (VLOOKUP(Switch!$D$39,$F$2:$G$44,2,FALSE)+ROW()-2))=Switch!$D$39,INDIRECT(\"a\" & (VLOOKUP(Switch!$D$39,$F$2:$G$44,2,FALSE)+ROW()-2)),\"\")","v":{"$error":"#N/A"}},{"$f":"IF(INDIRECT(\"c\" & (VLOOKUP(Switch!$D$40,$F$2:$G$44,2,FALSE)+ROW()-2))=Switch!$D$40,INDIRECT(\"a\" & (VLOOKUP(Switch!$D$40,$F$2:$G$44,2,FALSE)+ROW()-2)),\"\")","v":{"$error":"#N/A"}},{"$f":"IF(INDIRECT(\"c\" & (VLOOKUP(Switch!$D$52,$F$2:$G$44,2,FALSE)+ROW()-2))=Switch!$D$52,INDIRECT(\"a\" & (VLOOKUP(Switch!$D$52,$F$2:$G$44,2,FALSE)+ROW()-2)),\"\")","v":{"$error":"#N/A"}},{"$f":"IF(INDIRECT(\"c\" & (VLOOKUP(Switch!$D$53,$F$2:$G$44,2,FALSE)+ROW()-2))=Switch!$D$53,INDIRECT(\"a\" & (VLOOKUP(Switch!$D$53,$F$2:$G$44,2,FALSE)+ROW()-2)),\"\")","v":{"$error":"#N/A"}},{"$f":"IF(INDIRECT(\"c\" & (VLOOKUP(Switch!$D$54,$F$2:$G$44,2,FALSE)+ROW()-2))=Switch!$D$54,INDIRECT(\"a\" & (VLOOKUP(Switch!$D$54,$F$2:$G$44,2,FALSE)+ROW()-2)),\"\")","v":{"$error":"#N/A"}},{"$f":"IF(INDIRECT(\"c\" & (VLOOKUP(Switch!$D$55,$F$2:$G$44,2,FALSE)+ROW()-2))=Switch!$D$55,INDIRECT(\"a\" & (VLOOKUP(Switch!$D$55,$F$2:$G$44,2,FALSE)+ROW()-2)),\"\")","v":{"$error":"#N/A"}},{"$f":"IF(INDIRECT(\"c\" & (VLOOKUP(Switch!$D$56,$F$2:$G$44,2,FALSE)+ROW()-2))=Switch!$D$56,INDIRECT(\"a\" & (VLOOKUP(Switch!$D$56,$F$2:$G$44,2,FALSE)+ROW()-2)),\"\")","v":{"$error":"#N/A"}},{"$f":"IF(INDIRECT(\"c\" & (VLOOKUP(Switch!$D$57,$F$2:$G$44,2,FALSE)+ROW()-2))=Switch!$D$57,INDIRECT(\"a\" & (VLOOKUP(Switch!$D$57,$F$2:$G$44,2,FALSE)+ROW()-2)),\"\")","v":{"$error":"#N/A"}},{"$f":"IF(INDIRECT(\"c\" & (VLOOKUP(Switch!$D$58,$F$2:$G$44,2,FALSE)+ROW()-2))=Switch!$D$58,INDIRECT(\"a\" & (VLOOKUP(Switch!$D$58,$F$2:$G$44,2,FALSE)+ROW()-2)),\"\")","v":{"$error":"#N/A"}},{"$f":"IF(INDIRECT(\"c\" & (VLOOKUP(Switch!$D$59,$F$2:$G$44,2,FALSE)+ROW()-2))=Switch!$D$59,INDIRECT(\"a\" & (VLOOKUP(Switch!$D$59,$F$2:$G$44,2,FALSE)+ROW()-2)),\"\")","v":{"$error":"#N/A"}},{"$f":"IF(INDIRECT(\"c\" & (VLOOKUP(Switch!$D$60,$F$2:$G$44,2,FALSE)+ROW()-2))=Switch!$D$60,INDIRECT(\"a\" & (VLOOKUP(Switch!$D$60,$F$2:$G$44,2,FALSE)+ROW()-2)),\"\")","v":{"$error":"#N/A"}},{"$f":"IF(INDIRECT(\"c\" & (VLOOKUP(Switch!$D$61,$F$2:$G$44,2,FALSE)+ROW()-2))=Switch!$D$61,INDIRECT(\"a\" & (VLOOKUP(Switch!$D$61,$F$2:$G$44,2,FALSE)+ROW()-2)),\"\")","v":{"$error":"#N/A"}},{"$f":"IF(INDIRECT(\"c\" & (VLOOKUP(Switch!$D$62,$F$2:$G$44,2,FALSE)+ROW()-2))=Switch!$D$62,INDIRECT(\"a\" & (VLOOKUP(Switch!$D$62,$F$2:$G$44,2,FALSE)+ROW()-2)),\"\")","v":{"$error":"#N/A"}},{"$f":"IF(INDIRECT(\"c\" & (VLOOKUP(Switch!$D$63,$F$2:$G$44,2,FALSE)+ROW()-2))=Switch!$D$63,INDIRECT(\"a\" & (VLOOKUP(Switch!$D$63,$F$2:$G$44,2,FALSE)+ROW()-2)),\"\")","v":{"$error":"#N/A"}},{"$f":"IF(INDIRECT(\"c\" & (VLOOKUP(Switch!$D$64,$F$2:$G$44,2,FALSE)+ROW()-2))=Switch!$D$64,INDIRECT(\"a\" & (VLOOKUP(Switch!$D$64,$F$2:$G$44,2,FALSE)+ROW()-2)),\"\")","v":{"$error":"#N/A"}},{"$f":"IF(INDIRECT(\"c\" & (VLOOKUP(Switch!$D$65,$F$2:$G$44,2,FALSE)+ROW()-2))=Switch!$D$65,INDIRECT(\"a\" & (VLOOKUP(Switch!$D$65,$F$2:$G$44,2,FALSE)+ROW()-2)),\"\")","v":{"$error":"#N/A"}},{"$f":"IF(INDIRECT(\"c\" & (VLOOKUP(Switch!$D$66,$F$2:$G$44,2,FALSE)+ROW()-2))=Switch!$D$66,INDIRECT(\"a\" & (VLOOKUP(Switch!$D$66,$F$2:$G$44,2,FALSE)+ROW()-2)),\"\")","v":{"$error":"#N/A"}}]
["Investec Managed Fund E","MANH","Investec Fund Managers",{"$f":"ROW()","v":270},null,null,{"$f":"VLOOKUP(F270,$C$2:$D$637,2,FALSE)","v":{"$error":"#N/A"}},{"$f":"IF(INDIRECT(\"c\" & (VLOOKUP(Switch!$D$26,$F$2:$G$44,2,FALSE)+ROW()-2))=Switch!$D$26,INDIRECT(\"a\" & (VLOOKUP(Switch!$D$26,$F$2:$G$44,2,FALSE)+ROW()-2)),\"\")","v":{"$error":"#N/A"}},{"$f":"IF(INDIRECT(\"c\" & (VLOOKUP(Switch!$D$27,$F$2:$G$44,2,FALSE)+ROW()-2))=Switch!$D$27,INDIRECT(\"a\" & (VLOOKUP(Switch!$D$27,$F$2:$G$44,2,FALSE)+ROW()-2)),\"\")","v":{"$error":"#N/A"}},{"$f":"IF(INDIRECT(\"c\" & (VLOOKUP(Switch!$D$28,$F$2:$G$44,2,FALSE)+ROW()-2))=Switch!$D$28,INDIRECT(\"a\" & (VLOOKUP(Switch!$D$28,$F$2:$G$44,2,FALSE)+ROW()-2)),\"\")","v":{"$error":"#N/A"}},{"$f":"IF(INDIRECT(\"c\" & (VLOOKUP(Switch!$D$29,$F$2:$G$44,2,FALSE)+ROW()-2))=Switch!$D$29,INDIRECT(\"a\" & (VLOOKUP(Switch!$D$29,$F$2:$G$44,2,FALSE)+ROW()-2)),\"\")","v":{"$error":"#N/A"}},{"$f":"IF(INDIRECT(\"c\" & (VLOOKUP(Switch!$D$30,$F$2:$G$44,2,FALSE)+ROW()-2))=Switch!$D$30,INDIRECT(\"a\" & (VLOOKUP(Switch!$D$30,$F$2:$G$44,2,FALSE)+ROW()-2)),\"\")","v":{"$error":"#N/A"}},{"$f":"IF(INDIRECT(\"c\" & (VLOOKUP(Switch!$D$31,$F$2:$G$44,2,FALSE)+ROW()-2))=Switch!$D$31,INDIRECT(\"a\" & (VLOOKUP(Switch!$D$31,$F$2:$G$44,2,FALSE)+ROW()-2)),\"\")","v":{"$error":"#N/A"}},{"$f":"IF(INDIRECT(\"c\" & (VLOOKUP(Switch!$D$32,$F$2:$G$44,2,FALSE)+ROW()-2))=Switch!$D$32,INDIRECT(\"a\" & (VLOOKUP(Switch!$D$32,$F$2:$G$44,2,FALSE)+ROW()-2)),\"\")","v":{"$error":"#N/A"}},{"$f":"IF(INDIRECT(\"c\" & (VLOOKUP(Switch!$D$33,$F$2:$G$44,2,FALSE)+ROW()-2))=Switch!$D$33,INDIRECT(\"a\" & (VLOOKUP(Switch!$D$33,$F$2:$G$44,2,FALSE)+ROW()-2)),\"\")","v":{"$error":"#N/A"}},{"$f":"IF(INDIRECT(\"c\" & (VLOOKUP(Switch!$D$34,$F$2:$G$44,2,FALSE)+ROW()-2))=Switch!$D$34,INDIRECT(\"a\" & (VLOOKUP(Switch!$D$34,$F$2:$G$44,2,FALSE)+ROW()-2)),\"\")","v":{"$error":"#N/A"}},{"$f":"IF(INDIRECT(\"c\" & (VLOOKUP(Switch!$D$35,$F$2:$G$44,2,FALSE)+ROW()-2))=Switch!$D$35,INDIRECT(\"a\" & (VLOOKUP(Switch!$D$35,$F$2:$G$44,2,FALSE)+ROW()-2)),\"\")","v":{"$error":"#N/A"}},{"$f":"IF(INDIRECT(\"c\" & (VLOOKUP(Switch!$D$36,$F$2:$G$44,2,FALSE)+ROW()-2))=Switch!$D$36,INDIRECT(\"a\" & (VLOOKUP(Switch!$D$36,$F$2:$G$44,2,FALSE)+ROW()-2)),\"\")","v":{"$error":"#N/A"}},{"$f":"IF(INDIRECT(\"c\" & (VLOOKUP(Switch!$D$37,$F$2:$G$44,2,FALSE)+ROW()-2))=Switch!$D$37,INDIRECT(\"a\" & (VLOOKUP(Switch!$D$37,$F$2:$G$44,2,FALSE)+ROW()-2)),\"\")","v":{"$error":"#N/A"}},{"$f":"IF(INDIRECT(\"c\" & (VLOOKUP(Switch!$D$38,$F$2:$G$44,2,FALSE)+ROW()-2))=Switch!$D$38,INDIRECT(\"a\" & (VLOOKUP(Switch!$D$38,$F$2:$G$44,2,FALSE)+ROW()-2)),\"\")","v":{"$error":"#N/A"}},{"$f":"IF(INDIRECT(\"c\" & (VLOOKUP(Switch!$D$39,$F$2:$G$44,2,FALSE)+ROW()-2))=Switch!$D$39,INDIRECT(\"a\" & (VLOOKUP(Switch!$D$39,$F$2:$G$44,2,FALSE)+ROW()-2)),\"\")","v":{"$error":"#N/A"}},{"$f":"IF(INDIRECT(\"c\" & (VLOOKUP(Switch!$D$40,$F$2:$G$44,2,FALSE)+ROW()-2))=Switch!$D$40,INDIRECT(\"a\" & (VLOOKUP(Switch!$D$40,$F$2:$G$44,2,FALSE)+ROW()-2)),\"\")","v":{"$error":"#N/A"}},{"$f":"IF(INDIRECT(\"c\" & (VLOOKUP(Switch!$D$52,$F$2:$G$44,2,FALSE)+ROW()-2))=Switch!$D$52,INDIRECT(\"a\" & (VLOOKUP(Switch!$D$52,$F$2:$G$44,2,FALSE)+ROW()-2)),\"\")","v":{"$error":"#N/A"}},{"$f":"IF(INDIRECT(\"c\" & (VLOOKUP(Switch!$D$53,$F$2:$G$44,2,FALSE)+ROW()-2))=Switch!$D$53,INDIRECT(\"a\" & (VLOOKUP(Switch!$D$53,$F$2:$G$44,2,FALSE)+ROW()-2)),\"\")","v":{"$error":"#N/A"}},{"$f":"IF(INDIRECT(\"c\" & (VLOOKUP(Switch!$D$54,$F$2:$G$44,2,FALSE)+ROW()-2))=Switch!$D$54,INDIRECT(\"a\" & (VLOOKUP(Switch!$D$54,$F$2:$G$44,2,FALSE)+ROW()-2)),\"\")","v":{"$error":"#N/A"}},{"$f":"IF(INDIRECT(\"c\" & (VLOOKUP(Switch!$D$55,$F$2:$G$44,2,FALSE)+ROW()-2))=Switch!$D$55,INDIRECT(\"a\" & (VLOOKUP(Switch!$D$55,$F$2:$G$44,2,FALSE)+ROW()-2)),\"\")","v":{"$error":"#N/A"}},{"$f":"IF(INDIRECT(\"c\" & (VLOOKUP(Switch!$D$56,$F$2:$G$44,2,FALSE)+ROW()-2))=Switch!$D$56,INDIRECT(\"a\" & (VLOOKUP(Switch!$D$56,$F$2:$G$44,2,FALSE)+ROW()-2)),\"\")","v":{"$error":"#N/A"}},{"$f":"IF(INDIRECT(\"c\" & (VLOOKUP(Switch!$D$57,$F$2:$G$44,2,FALSE)+ROW()-2))=Switch!$D$57,INDIRECT(\"a\" & (VLOOKUP(Switch!$D$57,$F$2:$G$44,2,FALSE)+ROW()-2)),\"\")","v":{"$error":"#N/A"}},{"$f":"IF(INDIRECT(\"c\" & (VLOOKUP(Switch!$D$58,$F$2:$G$44,2,FALSE)+ROW()-2))=Switch!$D$58,INDIRECT(\"a\" & (VLOOKUP(Switch!$D$58,$F$2:$G$44,2,FALSE)+ROW()-2)),\"\")","v":{"$error":"#N/A"}},{"$f":"IF(INDIRECT(\"c\" & (VLOOKUP(Switch!$D$59,$F$2:$G$44,2,FALSE)+ROW()-2))=Switch!$D$59,INDIRECT(\"a\" & (VLOOKUP(Switch!$D$59,$F$2:$G$44,2,FALSE)+ROW()-2)),\"\")","v":{"$error":"#N/A"}},{"$f":"IF(INDIRECT(\"c\" & (VLOOKUP(Switch!$D$60,$F$2:$G$44,2,FALSE)+ROW()-2))=Switch!$D$60,INDIRECT(\"a\" & (VLOOKUP(Switch!$D$60,$F$2:$G$44,2,FALSE)+ROW()-2)),\"\")","v":{"$error":"#N/A"}},{"$f":"IF(INDIRECT(\"c\" & (VLOOKUP(Switch!$D$61,$F$2:$G$44,2,FALSE)+ROW()-2))=Switch!$D$61,INDIRECT(\"a\" & (VLOOKUP(Switch!$D$61,$F$2:$G$44,2,FALSE)+ROW()-2)),\"\")","v":{"$error":"#N/A"}},{"$f":"IF(INDIRECT(\"c\" & (VLOOKUP(Switch!$D$62,$F$2:$G$44,2,FALSE)+ROW()-2))=Switch!$D$62,INDIRECT(\"a\" & (VLOOKUP(Switch!$D$62,$F$2:$G$44,2,FALSE)+ROW()-2)),\"\")","v":{"$error":"#N/A"}},{"$f":"IF(INDIRECT(\"c\" & (VLOOKUP(Switch!$D$63,$F$2:$G$44,2,FALSE)+ROW()-2))=Switch!$D$63,INDIRECT(\"a\" & (VLOOKUP(Switch!$D$63,$F$2:$G$44,2,FALSE)+ROW()-2)),\"\")","v":{"$error":"#N/A"}},{"$f":"IF(INDIRECT(\"c\" & (VLOOKUP(Switch!$D$64,$F$2:$G$44,2,FALSE)+ROW()-2))=Switch!$D$64,INDIRECT(\"a\" & (VLOOKUP(Switch!$D$64,$F$2:$G$44,2,FALSE)+ROW()-2)),\"\")","v":{"$error":"#N/A"}},{"$f":"IF(INDIRECT(\"c\" & (VLOOKUP(Switch!$D$65,$F$2:$G$44,2,FALSE)+ROW()-2))=Switch!$D$65,INDIRECT(\"a\" & (VLOOKUP(Switch!$D$65,$F$2:$G$44,2,FALSE)+ROW()-2)),\"\")","v":{"$error":"#N/A"}},{"$f":"IF(INDIRECT(\"c\" & (VLOOKUP(Switch!$D$66,$F$2:$G$44,2,FALSE)+ROW()-2))=Switch!$D$66,INDIRECT(\"a\" & (VLOOKUP(Switch!$D$66,$F$2:$G$44,2,FALSE)+ROW()-2)),\"\")","v":{"$error":"#N/A"}}]
["Investec Managed Fund H","MANH","Investec Fund Managers",{"$f":"ROW()","v":271},null,null,{"$f":"VLOOKUP(F271,$C$2:$D$637,2,FALSE)","v":{"$error":"#N/A"}},{"$f":"IF(INDIRECT(\"c\" & (VLOOKUP(Switch!$D$26,$F$2:$G$44,2,FALSE)+ROW()-2))=Switch!$D$26,INDIRECT(\"a\" & (VLOOKUP(Switch!$D$26,$F$2:$G$44,2,FALSE)+ROW()-2)),\"\")","v":{"$error":"#N/A"}},{"$f":"IF(INDIRECT(\"c\" & (VLOOKUP(Switch!$D$27,$F$2:$G$44,2,FALSE)+ROW()-2))=Switch!$D$27,INDIRECT(\"a\" & (VLOOKUP(Switch!$D$27,$F$2:$G$44,2,FALSE)+ROW()-2)),\"\")","v":{"$error":"#N/A"}},{"$f":"IF(INDIRECT(\"c\" & (VLOOKUP(Switch!$D$28,$F$2:$G$44,2,FALSE)+ROW()-2))=Switch!$D$28,INDIRECT(\"a\" & (VLOOKUP(Switch!$D$28,$F$2:$G$44,2,FALSE)+ROW()-2)),\"\")","v":{"$error":"#N/A"}},{"$f":"IF(INDIRECT(\"c\" & (VLOOKUP(Switch!$D$29,$F$2:$G$44,2,FALSE)+ROW()-2))=Switch!$D$29,INDIRECT(\"a\" & (VLOOKUP(Switch!$D$29,$F$2:$G$44,2,FALSE)+ROW()-2)),\"\")","v":{"$error":"#N/A"}},{"$f":"IF(INDIRECT(\"c\" & (VLOOKUP(Switch!$D$30,$F$2:$G$44,2,FALSE)+ROW()-2))=Switch!$D$30,INDIRECT(\"a\" & (VLOOKUP(Switch!$D$30,$F$2:$G$44,2,FALSE)+ROW()-2)),\"\")","v":{"$error":"#N/A"}},{"$f":"IF(INDIRECT(\"c\" & (VLOOKUP(Switch!$D$31,$F$2:$G$44,2,FALSE)+ROW()-2))=Switch!$D$31,INDIRECT(\"a\" & (VLOOKUP(Switch!$D$31,$F$2:$G$44,2,FALSE)+ROW()-2)),\"\")","v":{"$error":"#N/A"}},{"$f":"IF(INDIRECT(\"c\" & (VLOOKUP(Switch!$D$32,$F$2:$G$44,2,FALSE)+ROW()-2))=Switch!$D$32,INDIRECT(\"a\" & (VLOOKUP(Switch!$D$32,$F$2:$G$44,2,FALSE)+ROW()-2)),\"\")","v":{"$error":"#N/A"}},{"$f":"IF(INDIRECT(\"c\" & (VLOOKUP(Switch!$D$33,$F$2:$G$44,2,FALSE)+ROW()-2))=Switch!$D$33,INDIRECT(\"a\" & (VLOOKUP(Switch!$D$33,$F$2:$G$44,2,FALSE)+ROW()-2)),\"\")","v":{"$error":"#N/A"}},{"$f":"IF(INDIRECT(\"c\" & (VLOOKUP(Switch!$D$34,$F$2:$G$44,2,FALSE)+ROW()-2))=Switch!$D$34,INDIRECT(\"a\" & (VLOOKUP(Switch!$D$34,$F$2:$G$44,2,FALSE)+ROW()-2)),\"\")","v":{"$error":"#N/A"}},{"$f":"IF(INDIRECT(\"c\" & (VLOOKUP(Switch!$D$35,$F$2:$G$44,2,FALSE)+ROW()-2))=Switch!$D$35,INDIRECT(\"a\" & (VLOOKUP(Switch!$D$35,$F$2:$G$44,2,FALSE)+ROW()-2)),\"\")","v":{"$error":"#N/A"}},{"$f":"IF(INDIRECT(\"c\" & (VLOOKUP(Switch!$D$36,$F$2:$G$44,2,FALSE)+ROW()-2))=Switch!$D$36,INDIRECT(\"a\" & (VLOOKUP(Switch!$D$36,$F$2:$G$44,2,FALSE)+ROW()-2)),\"\")","v":{"$error":"#N/A"}},{"$f":"IF(INDIRECT(\"c\" & (VLOOKUP(Switch!$D$37,$F$2:$G$44,2,FALSE)+ROW()-2))=Switch!$D$37,INDIRECT(\"a\" & (VLOOKUP(Switch!$D$37,$F$2:$G$44,2,FALSE)+ROW()-2)),\"\")","v":{"$error":"#N/A"}},{"$f":"IF(INDIRECT(\"c\" & (VLOOKUP(Switch!$D$38,$F$2:$G$44,2,FALSE)+ROW()-2))=Switch!$D$38,INDIRECT(\"a\" & (VLOOKUP(Switch!$D$38,$F$2:$G$44,2,FALSE)+ROW()-2)),\"\")","v":{"$error":"#N/A"}},{"$f":"IF(INDIRECT(\"c\" & (VLOOKUP(Switch!$D$39,$F$2:$G$44,2,FALSE)+ROW()-2))=Switch!$D$39,INDIRECT(\"a\" & (VLOOKUP(Switch!$D$39,$F$2:$G$44,2,FALSE)+ROW()-2)),\"\")","v":{"$error":"#N/A"}},{"$f":"IF(INDIRECT(\"c\" & (VLOOKUP(Switch!$D$40,$F$2:$G$44,2,FALSE)+ROW()-2))=Switch!$D$40,INDIRECT(\"a\" & (VLOOKUP(Switch!$D$40,$F$2:$G$44,2,FALSE)+ROW()-2)),\"\")","v":{"$error":"#N/A"}},{"$f":"IF(INDIRECT(\"c\" & (VLOOKUP(Switch!$D$52,$F$2:$G$44,2,FALSE)+ROW()-2))=Switch!$D$52,INDIRECT(\"a\" & (VLOOKUP(Switch!$D$52,$F$2:$G$44,2,FALSE)+ROW()-2)),\"\")","v":{"$error":"#N/A"}},{"$f":"IF(INDIRECT(\"c\" & (VLOOKUP(Switch!$D$53,$F$2:$G$44,2,FALSE)+ROW()-2))=Switch!$D$53,INDIRECT(\"a\" & (VLOOKUP(Switch!$D$53,$F$2:$G$44,2,FALSE)+ROW()-2)),\"\")","v":{"$error":"#N/A"}},{"$f":"IF(INDIRECT(\"c\" & (VLOOKUP(Switch!$D$54,$F$2:$G$44,2,FALSE)+ROW()-2))=Switch!$D$54,INDIRECT(\"a\" & (VLOOKUP(Switch!$D$54,$F$2:$G$44,2,FALSE)+ROW()-2)),\"\")","v":{"$error":"#N/A"}},{"$f":"IF(INDIRECT(\"c\" & (VLOOKUP(Switch!$D$55,$F$2:$G$44,2,FALSE)+ROW()-2))=Switch!$D$55,INDIRECT(\"a\" & (VLOOKUP(Switch!$D$55,$F$2:$G$44,2,FALSE)+ROW()-2)),\"\")","v":{"$error":"#N/A"}},{"$f":"IF(INDIRECT(\"c\" & (VLOOKUP(Switch!$D$56,$F$2:$G$44,2,FALSE)+ROW()-2))=Switch!$D$56,INDIRECT(\"a\" & (VLOOKUP(Switch!$D$56,$F$2:$G$44,2,FALSE)+ROW()-2)),\"\")","v":{"$error":"#N/A"}},{"$f":"IF(INDIRECT(\"c\" & (VLOOKUP(Switch!$D$57,$F$2:$G$44,2,FALSE)+ROW()-2))=Switch!$D$57,INDIRECT(\"a\" & (VLOOKUP(Switch!$D$57,$F$2:$G$44,2,FALSE)+ROW()-2)),\"\")","v":{"$error":"#N/A"}},{"$f":"IF(INDIRECT(\"c\" & (VLOOKUP(Switch!$D$58,$F$2:$G$44,2,FALSE)+ROW()-2))=Switch!$D$58,INDIRECT(\"a\" & (VLOOKUP(Switch!$D$58,$F$2:$G$44,2,FALSE)+ROW()-2)),\"\")","v":{"$error":"#N/A"}},{"$f":"IF(INDIRECT(\"c\" & (VLOOKUP(Switch!$D$59,$F$2:$G$44,2,FALSE)+ROW()-2))=Switch!$D$59,INDIRECT(\"a\" & (VLOOKUP(Switch!$D$59,$F$2:$G$44,2,FALSE)+ROW()-2)),\"\")","v":{"$error":"#N/A"}},{"$f":"IF(INDIRECT(\"c\" & (VLOOKUP(Switch!$D$60,$F$2:$G$44,2,FALSE)+ROW()-2))=Switch!$D$60,INDIRECT(\"a\" & (VLOOKUP(Switch!$D$60,$F$2:$G$44,2,FALSE)+ROW()-2)),\"\")","v":{"$error":"#N/A"}},{"$f":"IF(INDIRECT(\"c\" & (VLOOKUP(Switch!$D$61,$F$2:$G$44,2,FALSE)+ROW()-2))=Switch!$D$61,INDIRECT(\"a\" & (VLOOKUP(Switch!$D$61,$F$2:$G$44,2,FALSE)+ROW()-2)),\"\")","v":{"$error":"#N/A"}},{"$f":"IF(INDIRECT(\"c\" & (VLOOKUP(Switch!$D$62,$F$2:$G$44,2,FALSE)+ROW()-2))=Switch!$D$62,INDIRECT(\"a\" & (VLOOKUP(Switch!$D$62,$F$2:$G$44,2,FALSE)+ROW()-2)),\"\")","v":{"$error":"#N/A"}},{"$f":"IF(INDIRECT(\"c\" & (VLOOKUP(Switch!$D$63,$F$2:$G$44,2,FALSE)+ROW()-2))=Switch!$D$63,INDIRECT(\"a\" & (VLOOKUP(Switch!$D$63,$F$2:$G$44,2,FALSE)+ROW()-2)),\"\")","v":{"$error":"#N/A"}},{"$f":"IF(INDIRECT(\"c\" & (VLOOKUP(Switch!$D$64,$F$2:$G$44,2,FALSE)+ROW()-2))=Switch!$D$64,INDIRECT(\"a\" & (VLOOKUP(Switch!$D$64,$F$2:$G$44,2,FALSE)+ROW()-2)),\"\")","v":{"$error":"#N/A"}},{"$f":"IF(INDIRECT(\"c\" & (VLOOKUP(Switch!$D$65,$F$2:$G$44,2,FALSE)+ROW()-2))=Switch!$D$65,INDIRECT(\"a\" & (VLOOKUP(Switch!$D$65,$F$2:$G$44,2,FALSE)+ROW()-2)),\"\")","v":{"$error":"#N/A"}},{"$f":"IF(INDIRECT(\"c\" & (VLOOKUP(Switch!$D$66,$F$2:$G$44,2,FALSE)+ROW()-2))=Switch!$D$66,INDIRECT(\"a\" & (VLOOKUP(Switch!$D$66,$F$2:$G$44,2,FALSE)+ROW()-2)),\"\")","v":{"$error":"#N/A"}}]
["Investec Opportunity Fund E","OPPH","Investec Fund Managers",{"$f":"ROW()","v":272},null,null,{"$f":"VLOOKUP(F272,$C$2:$D$637,2,FALSE)","v":{"$error":"#N/A"}},{"$f":"IF(INDIRECT(\"c\" & (VLOOKUP(Switch!$D$26,$F$2:$G$44,2,FALSE)+ROW()-2))=Switch!$D$26,INDIRECT(\"a\" & (VLOOKUP(Switch!$D$26,$F$2:$G$44,2,FALSE)+ROW()-2)),\"\")","v":{"$error":"#N/A"}},{"$f":"IF(INDIRECT(\"c\" & (VLOOKUP(Switch!$D$27,$F$2:$G$44,2,FALSE)+ROW()-2))=Switch!$D$27,INDIRECT(\"a\" & (VLOOKUP(Switch!$D$27,$F$2:$G$44,2,FALSE)+ROW()-2)),\"\")","v":{"$error":"#N/A"}},{"$f":"IF(INDIRECT(\"c\" & (VLOOKUP(Switch!$D$28,$F$2:$G$44,2,FALSE)+ROW()-2))=Switch!$D$28,INDIRECT(\"a\" & (VLOOKUP(Switch!$D$28,$F$2:$G$44,2,FALSE)+ROW()-2)),\"\")","v":{"$error":"#N/A"}},{"$f":"IF(INDIRECT(\"c\" & (VLOOKUP(Switch!$D$29,$F$2:$G$44,2,FALSE)+ROW()-2))=Switch!$D$29,INDIRECT(\"a\" & (VLOOKUP(Switch!$D$29,$F$2:$G$44,2,FALSE)+ROW()-2)),\"\")","v":{"$error":"#N/A"}},{"$f":"IF(INDIRECT(\"c\" & (VLOOKUP(Switch!$D$30,$F$2:$G$44,2,FALSE)+ROW()-2))=Switch!$D$30,INDIRECT(\"a\" & (VLOOKUP(Switch!$D$30,$F$2:$G$44,2,FALSE)+ROW()-2)),\"\")","v":{"$error":"#N/A"}},{"$f":"IF(INDIRECT(\"c\" & (VLOOKUP(Switch!$D$31,$F$2:$G$44,2,FALSE)+ROW()-2))=Switch!$D$31,INDIRECT(\"a\" & (VLOOKUP(Switch!$D$31,$F$2:$G$44,2,FALSE)+ROW()-2)),\"\")","v":{"$error":"#N/A"}},{"$f":"IF(INDIRECT(\"c\" & (VLOOKUP(Switch!$D$32,$F$2:$G$44,2,FALSE)+ROW()-2))=Switch!$D$32,INDIRECT(\"a\" & (VLOOKUP(Switch!$D$32,$F$2:$G$44,2,FALSE)+ROW()-2)),\"\")","v":{"$error":"#N/A"}},{"$f":"IF(INDIRECT(\"c\" & (VLOOKUP(Switch!$D$33,$F$2:$G$44,2,FALSE)+ROW()-2))=Switch!$D$33,INDIRECT(\"a\" & (VLOOKUP(Switch!$D$33,$F$2:$G$44,2,FALSE)+ROW()-2)),\"\")","v":{"$error":"#N/A"}},{"$f":"IF(INDIRECT(\"c\" & (VLOOKUP(Switch!$D$34,$F$2:$G$44,2,FALSE)+ROW()-2))=Switch!$D$34,INDIRECT(\"a\" & (VLOOKUP(Switch!$D$34,$F$2:$G$44,2,FALSE)+ROW()-2)),\"\")","v":{"$error":"#N/A"}},{"$f":"IF(INDIRECT(\"c\" & (VLOOKUP(Switch!$D$35,$F$2:$G$44,2,FALSE)+ROW()-2))=Switch!$D$35,INDIRECT(\"a\" & (VLOOKUP(Switch!$D$35,$F$2:$G$44,2,FALSE)+ROW()-2)),\"\")","v":{"$error":"#N/A"}},{"$f":"IF(INDIRECT(\"c\" & (VLOOKUP(Switch!$D$36,$F$2:$G$44,2,FALSE)+ROW()-2))=Switch!$D$36,INDIRECT(\"a\" & (VLOOKUP(Switch!$D$36,$F$2:$G$44,2,FALSE)+ROW()-2)),\"\")","v":{"$error":"#N/A"}},{"$f":"IF(INDIRECT(\"c\" & (VLOOKUP(Switch!$D$37,$F$2:$G$44,2,FALSE)+ROW()-2))=Switch!$D$37,INDIRECT(\"a\" & (VLOOKUP(Switch!$D$37,$F$2:$G$44,2,FALSE)+ROW()-2)),\"\")","v":{"$error":"#N/A"}},{"$f":"IF(INDIRECT(\"c\" & (VLOOKUP(Switch!$D$38,$F$2:$G$44,2,FALSE)+ROW()-2))=Switch!$D$38,INDIRECT(\"a\" & (VLOOKUP(Switch!$D$38,$F$2:$G$44,2,FALSE)+ROW()-2)),\"\")","v":{"$error":"#N/A"}},{"$f":"IF(INDIRECT(\"c\" & (VLOOKUP(Switch!$D$39,$F$2:$G$44,2,FALSE)+ROW()-2))=Switch!$D$39,INDIRECT(\"a\" & (VLOOKUP(Switch!$D$39,$F$2:$G$44,2,FALSE)+ROW()-2)),\"\")","v":{"$error":"#N/A"}},{"$f":"IF(INDIRECT(\"c\" & (VLOOKUP(Switch!$D$40,$F$2:$G$44,2,FALSE)+ROW()-2))=Switch!$D$40,INDIRECT(\"a\" & (VLOOKUP(Switch!$D$40,$F$2:$G$44,2,FALSE)+ROW()-2)),\"\")","v":{"$error":"#N/A"}},{"$f":"IF(INDIRECT(\"c\" & (VLOOKUP(Switch!$D$52,$F$2:$G$44,2,FALSE)+ROW()-2))=Switch!$D$52,INDIRECT(\"a\" & (VLOOKUP(Switch!$D$52,$F$2:$G$44,2,FALSE)+ROW()-2)),\"\")","v":{"$error":"#N/A"}},{"$f":"IF(INDIRECT(\"c\" & (VLOOKUP(Switch!$D$53,$F$2:$G$44,2,FALSE)+ROW()-2))=Switch!$D$53,INDIRECT(\"a\" & (VLOOKUP(Switch!$D$53,$F$2:$G$44,2,FALSE)+ROW()-2)),\"\")","v":{"$error":"#N/A"}},{"$f":"IF(INDIRECT(\"c\" & (VLOOKUP(Switch!$D$54,$F$2:$G$44,2,FALSE)+ROW()-2))=Switch!$D$54,INDIRECT(\"a\" & (VLOOKUP(Switch!$D$54,$F$2:$G$44,2,FALSE)+ROW()-2)),\"\")","v":{"$error":"#N/A"}},{"$f":"IF(INDIRECT(\"c\" & (VLOOKUP(Switch!$D$55,$F$2:$G$44,2,FALSE)+ROW()-2))=Switch!$D$55,INDIRECT(\"a\" & (VLOOKUP(Switch!$D$55,$F$2:$G$44,2,FALSE)+ROW()-2)),\"\")","v":{"$error":"#N/A"}},{"$f":"IF(INDIRECT(\"c\" & (VLOOKUP(Switch!$D$56,$F$2:$G$44,2,FALSE)+ROW()-2))=Switch!$D$56,INDIRECT(\"a\" & (VLOOKUP(Switch!$D$56,$F$2:$G$44,2,FALSE)+ROW()-2)),\"\")","v":{"$error":"#N/A"}},{"$f":"IF(INDIRECT(\"c\" & (VLOOKUP(Switch!$D$57,$F$2:$G$44,2,FALSE)+ROW()-2))=Switch!$D$57,INDIRECT(\"a\" & (VLOOKUP(Switch!$D$57,$F$2:$G$44,2,FALSE)+ROW()-2)),\"\")","v":{"$error":"#N/A"}},{"$f":"IF(INDIRECT(\"c\" & (VLOOKUP(Switch!$D$58,$F$2:$G$44,2,FALSE)+ROW()-2))=Switch!$D$58,INDIRECT(\"a\" & (VLOOKUP(Switch!$D$58,$F$2:$G$44,2,FALSE)+ROW()-2)),\"\")","v":{"$error":"#N/A"}},{"$f":"IF(INDIRECT(\"c\" & (VLOOKUP(Switch!$D$59,$F$2:$G$44,2,FALSE)+ROW()-2))=Switch!$D$59,INDIRECT(\"a\" & (VLOOKUP(Switch!$D$59,$F$2:$G$44,2,FALSE)+ROW()-2)),\"\")","v":{"$error":"#N/A"}},{"$f":"IF(INDIRECT(\"c\" & (VLOOKUP(Switch!$D$60,$F$2:$G$44,2,FALSE)+ROW()-2))=Switch!$D$60,INDIRECT(\"a\" & (VLOOKUP(Switch!$D$60,$F$2:$G$44,2,FALSE)+ROW()-2)),\"\")","v":{"$error":"#N/A"}},{"$f":"IF(INDIRECT(\"c\" & (VLOOKUP(Switch!$D$61,$F$2:$G$44,2,FALSE)+ROW()-2))=Switch!$D$61,INDIRECT(\"a\" & (VLOOKUP(Switch!$D$61,$F$2:$G$44,2,FALSE)+ROW()-2)),\"\")","v":{"$error":"#N/A"}},{"$f":"IF(INDIRECT(\"c\" & (VLOOKUP(Switch!$D$62,$F$2:$G$44,2,FALSE)+ROW()-2))=Switch!$D$62,INDIRECT(\"a\" & (VLOOKUP(Switch!$D$62,$F$2:$G$44,2,FALSE)+ROW()-2)),\"\")","v":{"$error":"#N/A"}},{"$f":"IF(INDIRECT(\"c\" & (VLOOKUP(Switch!$D$63,$F$2:$G$44,2,FALSE)+ROW()-2))=Switch!$D$63,INDIRECT(\"a\" & (VLOOKUP(Switch!$D$63,$F$2:$G$44,2,FALSE)+ROW()-2)),\"\")","v":{"$error":"#N/A"}},{"$f":"IF(INDIRECT(\"c\" & (VLOOKUP(Switch!$D$64,$F$2:$G$44,2,FALSE)+ROW()-2))=Switch!$D$64,INDIRECT(\"a\" & (VLOOKUP(Switch!$D$64,$F$2:$G$44,2,FALSE)+ROW()-2)),\"\")","v":{"$error":"#N/A"}},{"$f":"IF(INDIRECT(\"c\" & (VLOOKUP(Switch!$D$65,$F$2:$G$44,2,FALSE)+ROW()-2))=Switch!$D$65,INDIRECT(\"a\" & (VLOOKUP(Switch!$D$65,$F$2:$G$44,2,FALSE)+ROW()-2)),\"\")","v":{"$error":"#N/A"}},{"$f":"IF(INDIRECT(\"c\" & (VLOOKUP(Switch!$D$66,$F$2:$G$44,2,FALSE)+ROW()-2))=Switch!$D$66,INDIRECT(\"a\" & (VLOOKUP(Switch!$D$66,$F$2:$G$44,2,FALSE)+ROW()-2)),\"\")","v":{"$error":"#N/A"}}]
["Investec Opportunity Fund H","OPPH","Investec Fund Managers",{"$f":"ROW()","v":273},null,null,{"$f":"VLOOKUP(F273,$C$2:$D$637,2,FALSE)","v":{"$error":"#N/A"}},{"$f":"IF(INDIRECT(\"c\" & (VLOOKUP(Switch!$D$26,$F$2:$G$44,2,FALSE)+ROW()-2))=Switch!$D$26,INDIRECT(\"a\" & (VLOOKUP(Switch!$D$26,$F$2:$G$44,2,FALSE)+ROW()-2)),\"\")","v":{"$error":"#N/A"}},{"$f":"IF(INDIRECT(\"c\" & (VLOOKUP(Switch!$D$27,$F$2:$G$44,2,FALSE)+ROW()-2))=Switch!$D$27,INDIRECT(\"a\" & (VLOOKUP(Switch!$D$27,$F$2:$G$44,2,FALSE)+ROW()-2)),\"\")","v":{"$error":"#N/A"}},{"$f":"IF(INDIRECT(\"c\" & (VLOOKUP(Switch!$D$28,$F$2:$G$44,2,FALSE)+ROW()-2))=Switch!$D$28,INDIRECT(\"a\" & (VLOOKUP(Switch!$D$28,$F$2:$G$44,2,FALSE)+ROW()-2)),\"\")","v":{"$error":"#N/A"}},{"$f":"IF(INDIRECT(\"c\" & (VLOOKUP(Switch!$D$29,$F$2:$G$44,2,FALSE)+ROW()-2))=Switch!$D$29,INDIRECT(\"a\" & (VLOOKUP(Switch!$D$29,$F$2:$G$44,2,FALSE)+ROW()-2)),\"\")","v":{"$error":"#N/A"}},{"$f":"IF(INDIRECT(\"c\" & (VLOOKUP(Switch!$D$30,$F$2:$G$44,2,FALSE)+ROW()-2))=Switch!$D$30,INDIRECT(\"a\" & (VLOOKUP(Switch!$D$30,$F$2:$G$44,2,FALSE)+ROW()-2)),\"\")","v":{"$error":"#N/A"}},{"$f":"IF(INDIRECT(\"c\" & (VLOOKUP(Switch!$D$31,$F$2:$G$44,2,FALSE)+ROW()-2))=Switch!$D$31,INDIRECT(\"a\" & (VLOOKUP(Switch!$D$31,$F$2:$G$44,2,FALSE)+ROW()-2)),\"\")","v":{"$error":"#N/A"}},{"$f":"IF(INDIRECT(\"c\" & (VLOOKUP(Switch!$D$32,$F$2:$G$44,2,FALSE)+ROW()-2))=Switch!$D$32,INDIRECT(\"a\" & (VLOOKUP(Switch!$D$32,$F$2:$G$44,2,FALSE)+ROW()-2)),\"\")","v":{"$error":"#N/A"}},{"$f":"IF(INDIRECT(\"c\" & (VLOOKUP(Switch!$D$33,$F$2:$G$44,2,FALSE)+ROW()-2))=Switch!$D$33,INDIRECT(\"a\" & (VLOOKUP(Switch!$D$33,$F$2:$G$44,2,FALSE)+ROW()-2)),\"\")","v":{"$error":"#N/A"}},{"$f":"IF(INDIRECT(\"c\" & (VLOOKUP(Switch!$D$34,$F$2:$G$44,2,FALSE)+ROW()-2))=Switch!$D$34,INDIRECT(\"a\" & (VLOOKUP(Switch!$D$34,$F$2:$G$44,2,FALSE)+ROW()-2)),\"\")","v":{"$error":"#N/A"}},{"$f":"IF(INDIRECT(\"c\" & (VLOOKUP(Switch!$D$35,$F$2:$G$44,2,FALSE)+ROW()-2))=Switch!$D$35,INDIRECT(\"a\" & (VLOOKUP(Switch!$D$35,$F$2:$G$44,2,FALSE)+ROW()-2)),\"\")","v":{"$error":"#N/A"}},{"$f":"IF(INDIRECT(\"c\" & (VLOOKUP(Switch!$D$36,$F$2:$G$44,2,FALSE)+ROW()-2))=Switch!$D$36,INDIRECT(\"a\" & (VLOOKUP(Switch!$D$36,$F$2:$G$44,2,FALSE)+ROW()-2)),\"\")","v":{"$error":"#N/A"}},{"$f":"IF(INDIRECT(\"c\" & (VLOOKUP(Switch!$D$37,$F$2:$G$44,2,FALSE)+ROW()-2))=Switch!$D$37,INDIRECT(\"a\" & (VLOOKUP(Switch!$D$37,$F$2:$G$44,2,FALSE)+ROW()-2)),\"\")","v":{"$error":"#N/A"}},{"$f":"IF(INDIRECT(\"c\" & (VLOOKUP(Switch!$D$38,$F$2:$G$44,2,FALSE)+ROW()-2))=Switch!$D$38,INDIRECT(\"a\" & (VLOOKUP(Switch!$D$38,$F$2:$G$44,2,FALSE)+ROW()-2)),\"\")","v":{"$error":"#N/A"}},{"$f":"IF(INDIRECT(\"c\" & (VLOOKUP(Switch!$D$39,$F$2:$G$44,2,FALSE)+ROW()-2))=Switch!$D$39,INDIRECT(\"a\" & (VLOOKUP(Switch!$D$39,$F$2:$G$44,2,FALSE)+ROW()-2)),\"\")","v":{"$error":"#N/A"}},{"$f":"IF(INDIRECT(\"c\" & (VLOOKUP(Switch!$D$40,$F$2:$G$44,2,FALSE)+ROW()-2))=Switch!$D$40,INDIRECT(\"a\" & (VLOOKUP(Switch!$D$40,$F$2:$G$44,2,FALSE)+ROW()-2)),\"\")","v":{"$error":"#N/A"}},{"$f":"IF(INDIRECT(\"c\" & (VLOOKUP(Switch!$D$52,$F$2:$G$44,2,FALSE)+ROW()-2))=Switch!$D$52,INDIRECT(\"a\" & (VLOOKUP(Switch!$D$52,$F$2:$G$44,2,FALSE)+ROW()-2)),\"\")","v":{"$error":"#N/A"}},{"$f":"IF(INDIRECT(\"c\" & (VLOOKUP(Switch!$D$53,$F$2:$G$44,2,FALSE)+ROW()-2))=Switch!$D$53,INDIRECT(\"a\" & (VLOOKUP(Switch!$D$53,$F$2:$G$44,2,FALSE)+ROW()-2)),\"\")","v":{"$error":"#N/A"}},{"$f":"IF(INDIRECT(\"c\" & (VLOOKUP(Switch!$D$54,$F$2:$G$44,2,FALSE)+ROW()-2))=Switch!$D$54,INDIRECT(\"a\" & (VLOOKUP(Switch!$D$54,$F$2:$G$44,2,FALSE)+ROW()-2)),\"\")","v":{"$error":"#N/A"}},{"$f":"IF(INDIRECT(\"c\" & (VLOOKUP(Switch!$D$55,$F$2:$G$44,2,FALSE)+ROW()-2))=Switch!$D$55,INDIRECT(\"a\" & (VLOOKUP(Switch!$D$55,$F$2:$G$44,2,FALSE)+ROW()-2)),\"\")","v":{"$error":"#N/A"}},{"$f":"IF(INDIRECT(\"c\" & (VLOOKUP(Switch!$D$56,$F$2:$G$44,2,FALSE)+ROW()-2))=Switch!$D$56,INDIRECT(\"a\" & (VLOOKUP(Switch!$D$56,$F$2:$G$44,2,FALSE)+ROW()-2)),\"\")","v":{"$error":"#N/A"}},{"$f":"IF(INDIRECT(\"c\" & (VLOOKUP(Switch!$D$57,$F$2:$G$44,2,FALSE)+ROW()-2))=Switch!$D$57,INDIRECT(\"a\" & (VLOOKUP(Switch!$D$57,$F$2:$G$44,2,FALSE)+ROW()-2)),\"\")","v":{"$error":"#N/A"}},{"$f":"IF(INDIRECT(\"c\" & (VLOOKUP(Switch!$D$58,$F$2:$G$44,2,FALSE)+ROW()-2))=Switch!$D$58,INDIRECT(\"a\" & (VLOOKUP(Switch!$D$58,$F$2:$G$44,2,FALSE)+ROW()-2)),\"\")","v":{"$error":"#N/A"}},{"$f":"IF(INDIRECT(\"c\" & (VLOOKUP(Switch!$D$59,$F$2:$G$44,2,FALSE)+ROW()-2))=Switch!$D$59,INDIRECT(\"a\" & (VLOOKUP(Switch!$D$59,$F$2:$G$44,2,FALSE)+ROW()-2)),\"\")","v":{"$error":"#N/A"}},{"$f":"IF(INDIRECT(\"c\" & (VLOOKUP(Switch!$D$60,$F$2:$G$44,2,FALSE)+ROW()-2))=Switch!$D$60,INDIRECT(\"a\" & (VLOOKUP(Switch!$D$60,$F$2:$G$44,2,FALSE)+ROW()-2)),\"\")","v":{"$error":"#N/A"}},{"$f":"IF(INDIRECT(\"c\" & (VLOOKUP(Switch!$D$61,$F$2:$G$44,2,FALSE)+ROW()-2))=Switch!$D$61,INDIRECT(\"a\" & (VLOOKUP(Switch!$D$61,$F$2:$G$44,2,FALSE)+ROW()-2)),\"\")","v":{"$error":"#N/A"}},{"$f":"IF(INDIRECT(\"c\" & (VLOOKUP(Switch!$D$62,$F$2:$G$44,2,FALSE)+ROW()-2))=Switch!$D$62,INDIRECT(\"a\" & (VLOOKUP(Switch!$D$62,$F$2:$G$44,2,FALSE)+ROW()-2)),\"\")","v":{"$error":"#N/A"}},{"$f":"IF(INDIRECT(\"c\" & (VLOOKUP(Switch!$D$63,$F$2:$G$44,2,FALSE)+ROW()-2))=Switch!$D$63,INDIRECT(\"a\" & (VLOOKUP(Switch!$D$63,$F$2:$G$44,2,FALSE)+ROW()-2)),\"\")","v":{"$error":"#N/A"}},{"$f":"IF(INDIRECT(\"c\" & (VLOOKUP(Switch!$D$64,$F$2:$G$44,2,FALSE)+ROW()-2))=Switch!$D$64,INDIRECT(\"a\" & (VLOOKUP(Switch!$D$64,$F$2:$G$44,2,FALSE)+ROW()-2)),\"\")","v":{"$error":"#N/A"}},{"$f":"IF(INDIRECT(\"c\" & (VLOOKUP(Switch!$D$65,$F$2:$G$44,2,FALSE)+ROW()-2))=Switch!$D$65,INDIRECT(\"a\" & (VLOOKUP(Switch!$D$65,$F$2:$G$44,2,FALSE)+ROW()-2)),\"\")","v":{"$error":"#N/A"}},{"$f":"IF(INDIRECT(\"c\" & (VLOOKUP(Switch!$D$66,$F$2:$G$44,2,FALSE)+ROW()-2))=Switch!$D$66,INDIRECT(\"a\" & (VLOOKUP(Switch!$D$66,$F$2:$G$44,2,FALSE)+ROW()-2)),\"\")","v":{"$error":"#N/A"}}]
["Investec Property Equity Fund H","PPFH","Investec Fund Managers",{"$f":"ROW()","v":274},null,null,{"$f":"VLOOKUP(F274,$C$2:$D$637,2,FALSE)","v":{"$error":"#N/A"}},{"$f":"IF(INDIRECT(\"c\" & (VLOOKUP(Switch!$D$26,$F$2:$G$44,2,FALSE)+ROW()-2))=Switch!$D$26,INDIRECT(\"a\" & (VLOOKUP(Switch!$D$26,$F$2:$G$44,2,FALSE)+ROW()-2)),\"\")","v":{"$error":"#N/A"}},{"$f":"IF(INDIRECT(\"c\" & (VLOOKUP(Switch!$D$27,$F$2:$G$44,2,FALSE)+ROW()-2))=Switch!$D$27,INDIRECT(\"a\" & (VLOOKUP(Switch!$D$27,$F$2:$G$44,2,FALSE)+ROW()-2)),\"\")","v":{"$error":"#N/A"}},{"$f":"IF(INDIRECT(\"c\" & (VLOOKUP(Switch!$D$28,$F$2:$G$44,2,FALSE)+ROW()-2))=Switch!$D$28,INDIRECT(\"a\" & (VLOOKUP(Switch!$D$28,$F$2:$G$44,2,FALSE)+ROW()-2)),\"\")","v":{"$error":"#N/A"}},{"$f":"IF(INDIRECT(\"c\" & (VLOOKUP(Switch!$D$29,$F$2:$G$44,2,FALSE)+ROW()-2))=Switch!$D$29,INDIRECT(\"a\" & (VLOOKUP(Switch!$D$29,$F$2:$G$44,2,FALSE)+ROW()-2)),\"\")","v":{"$error":"#N/A"}},{"$f":"IF(INDIRECT(\"c\" & (VLOOKUP(Switch!$D$30,$F$2:$G$44,2,FALSE)+ROW()-2))=Switch!$D$30,INDIRECT(\"a\" & (VLOOKUP(Switch!$D$30,$F$2:$G$44,2,FALSE)+ROW()-2)),\"\")","v":{"$error":"#N/A"}},{"$f":"IF(INDIRECT(\"c\" & (VLOOKUP(Switch!$D$31,$F$2:$G$44,2,FALSE)+ROW()-2))=Switch!$D$31,INDIRECT(\"a\" & (VLOOKUP(Switch!$D$31,$F$2:$G$44,2,FALSE)+ROW()-2)),\"\")","v":{"$error":"#N/A"}},{"$f":"IF(INDIRECT(\"c\" & (VLOOKUP(Switch!$D$32,$F$2:$G$44,2,FALSE)+ROW()-2))=Switch!$D$32,INDIRECT(\"a\" & (VLOOKUP(Switch!$D$32,$F$2:$G$44,2,FALSE)+ROW()-2)),\"\")","v":{"$error":"#N/A"}},{"$f":"IF(INDIRECT(\"c\" & (VLOOKUP(Switch!$D$33,$F$2:$G$44,2,FALSE)+ROW()-2))=Switch!$D$33,INDIRECT(\"a\" & (VLOOKUP(Switch!$D$33,$F$2:$G$44,2,FALSE)+ROW()-2)),\"\")","v":{"$error":"#N/A"}},{"$f":"IF(INDIRECT(\"c\" & (VLOOKUP(Switch!$D$34,$F$2:$G$44,2,FALSE)+ROW()-2))=Switch!$D$34,INDIRECT(\"a\" & (VLOOKUP(Switch!$D$34,$F$2:$G$44,2,FALSE)+ROW()-2)),\"\")","v":{"$error":"#N/A"}},{"$f":"IF(INDIRECT(\"c\" & (VLOOKUP(Switch!$D$35,$F$2:$G$44,2,FALSE)+ROW()-2))=Switch!$D$35,INDIRECT(\"a\" & (VLOOKUP(Switch!$D$35,$F$2:$G$44,2,FALSE)+ROW()-2)),\"\")","v":{"$error":"#N/A"}},{"$f":"IF(INDIRECT(\"c\" & (VLOOKUP(Switch!$D$36,$F$2:$G$44,2,FALSE)+ROW()-2))=Switch!$D$36,INDIRECT(\"a\" & (VLOOKUP(Switch!$D$36,$F$2:$G$44,2,FALSE)+ROW()-2)),\"\")","v":{"$error":"#N/A"}},{"$f":"IF(INDIRECT(\"c\" & (VLOOKUP(Switch!$D$37,$F$2:$G$44,2,FALSE)+ROW()-2))=Switch!$D$37,INDIRECT(\"a\" & (VLOOKUP(Switch!$D$37,$F$2:$G$44,2,FALSE)+ROW()-2)),\"\")","v":{"$error":"#N/A"}},{"$f":"IF(INDIRECT(\"c\" & (VLOOKUP(Switch!$D$38,$F$2:$G$44,2,FALSE)+ROW()-2))=Switch!$D$38,INDIRECT(\"a\" & (VLOOKUP(Switch!$D$38,$F$2:$G$44,2,FALSE)+ROW()-2)),\"\")","v":{"$error":"#N/A"}},{"$f":"IF(INDIRECT(\"c\" & (VLOOKUP(Switch!$D$39,$F$2:$G$44,2,FALSE)+ROW()-2))=Switch!$D$39,INDIRECT(\"a\" & (VLOOKUP(Switch!$D$39,$F$2:$G$44,2,FALSE)+ROW()-2)),\"\")","v":{"$error":"#N/A"}},{"$f":"IF(INDIRECT(\"c\" & (VLOOKUP(Switch!$D$40,$F$2:$G$44,2,FALSE)+ROW()-2))=Switch!$D$40,INDIRECT(\"a\" & (VLOOKUP(Switch!$D$40,$F$2:$G$44,2,FALSE)+ROW()-2)),\"\")","v":{"$error":"#N/A"}},{"$f":"IF(INDIRECT(\"c\" & (VLOOKUP(Switch!$D$52,$F$2:$G$44,2,FALSE)+ROW()-2))=Switch!$D$52,INDIRECT(\"a\" & (VLOOKUP(Switch!$D$52,$F$2:$G$44,2,FALSE)+ROW()-2)),\"\")","v":{"$error":"#N/A"}},{"$f":"IF(INDIRECT(\"c\" & (VLOOKUP(Switch!$D$53,$F$2:$G$44,2,FALSE)+ROW()-2))=Switch!$D$53,INDIRECT(\"a\" & (VLOOKUP(Switch!$D$53,$F$2:$G$44,2,FALSE)+ROW()-2)),\"\")","v":{"$error":"#N/A"}},{"$f":"IF(INDIRECT(\"c\" & (VLOOKUP(Switch!$D$54,$F$2:$G$44,2,FALSE)+ROW()-2))=Switch!$D$54,INDIRECT(\"a\" & (VLOOKUP(Switch!$D$54,$F$2:$G$44,2,FALSE)+ROW()-2)),\"\")","v":{"$error":"#N/A"}},{"$f":"IF(INDIRECT(\"c\" & (VLOOKUP(Switch!$D$55,$F$2:$G$44,2,FALSE)+ROW()-2))=Switch!$D$55,INDIRECT(\"a\" & (VLOOKUP(Switch!$D$55,$F$2:$G$44,2,FALSE)+ROW()-2)),\"\")","v":{"$error":"#N/A"}},{"$f":"IF(INDIRECT(\"c\" & (VLOOKUP(Switch!$D$56,$F$2:$G$44,2,FALSE)+ROW()-2))=Switch!$D$56,INDIRECT(\"a\" & (VLOOKUP(Switch!$D$56,$F$2:$G$44,2,FALSE)+ROW()-2)),\"\")","v":{"$error":"#N/A"}},{"$f":"IF(INDIRECT(\"c\" & (VLOOKUP(Switch!$D$57,$F$2:$G$44,2,FALSE)+ROW()-2))=Switch!$D$57,INDIRECT(\"a\" & (VLOOKUP(Switch!$D$57,$F$2:$G$44,2,FALSE)+ROW()-2)),\"\")","v":{"$error":"#N/A"}},{"$f":"IF(INDIRECT(\"c\" & (VLOOKUP(Switch!$D$58,$F$2:$G$44,2,FALSE)+ROW()-2))=Switch!$D$58,INDIRECT(\"a\" & (VLOOKUP(Switch!$D$58,$F$2:$G$44,2,FALSE)+ROW()-2)),\"\")","v":{"$error":"#N/A"}},{"$f":"IF(INDIRECT(\"c\" & (VLOOKUP(Switch!$D$59,$F$2:$G$44,2,FALSE)+ROW()-2))=Switch!$D$59,INDIRECT(\"a\" & (VLOOKUP(Switch!$D$59,$F$2:$G$44,2,FALSE)+ROW()-2)),\"\")","v":{"$error":"#N/A"}},{"$f":"IF(INDIRECT(\"c\" & (VLOOKUP(Switch!$D$60,$F$2:$G$44,2,FALSE)+ROW()-2))=Switch!$D$60,INDIRECT(\"a\" & (VLOOKUP(Switch!$D$60,$F$2:$G$44,2,FALSE)+ROW()-2)),\"\")","v":{"$error":"#N/A"}},{"$f":"IF(INDIRECT(\"c\" & (VLOOKUP(Switch!$D$61,$F$2:$G$44,2,FALSE)+ROW()-2))=Switch!$D$61,INDIRECT(\"a\" & (VLOOKUP(Switch!$D$61,$F$2:$G$44,2,FALSE)+ROW()-2)),\"\")","v":{"$error":"#N/A"}},{"$f":"IF(INDIRECT(\"c\" & (VLOOKUP(Switch!$D$62,$F$2:$G$44,2,FALSE)+ROW()-2))=Switch!$D$62,INDIRECT(\"a\" & (VLOOKUP(Switch!$D$62,$F$2:$G$44,2,FALSE)+ROW()-2)),\"\")","v":{"$error":"#N/A"}},{"$f":"IF(INDIRECT(\"c\" & (VLOOKUP(Switch!$D$63,$F$2:$G$44,2,FALSE)+ROW()-2))=Switch!$D$63,INDIRECT(\"a\" & (VLOOKUP(Switch!$D$63,$F$2:$G$44,2,FALSE)+ROW()-2)),\"\")","v":{"$error":"#N/A"}},{"$f":"IF(INDIRECT(\"c\" & (VLOOKUP(Switch!$D$64,$F$2:$G$44,2,FALSE)+ROW()-2))=Switch!$D$64,INDIRECT(\"a\" & (VLOOKUP(Switch!$D$64,$F$2:$G$44,2,FALSE)+ROW()-2)),\"\")","v":{"$error":"#N/A"}},{"$f":"IF(INDIRECT(\"c\" & (VLOOKUP(Switch!$D$65,$F$2:$G$44,2,FALSE)+ROW()-2))=Switch!$D$65,INDIRECT(\"a\" & (VLOOKUP(Switch!$D$65,$F$2:$G$44,2,FALSE)+ROW()-2)),\"\")","v":{"$error":"#N/A"}},{"$f":"IF(INDIRECT(\"c\" & (VLOOKUP(Switch!$D$66,$F$2:$G$44,2,FALSE)+ROW()-2))=Switch!$D$66,INDIRECT(\"a\" & (VLOOKUP(Switch!$D$66,$F$2:$G$44,2,FALSE)+ROW()-2)),\"\")","v":{"$error":"#N/A"}}]
["Investec STeFI Plus Fund H","CPFH","Investec Fund Managers",{"$f":"ROW()","v":275},null,null,{"$f":"VLOOKUP(F275,$C$2:$D$637,2,FALSE)","v":{"$error":"#N/A"}},{"$f":"IF(INDIRECT(\"c\" & (VLOOKUP(Switch!$D$26,$F$2:$G$44,2,FALSE)+ROW()-2))=Switch!$D$26,INDIRECT(\"a\" & (VLOOKUP(Switch!$D$26,$F$2:$G$44,2,FALSE)+ROW()-2)),\"\")","v":{"$error":"#N/A"}},{"$f":"IF(INDIRECT(\"c\" & (VLOOKUP(Switch!$D$27,$F$2:$G$44,2,FALSE)+ROW()-2))=Switch!$D$27,INDIRECT(\"a\" & (VLOOKUP(Switch!$D$27,$F$2:$G$44,2,FALSE)+ROW()-2)),\"\")","v":{"$error":"#N/A"}},{"$f":"IF(INDIRECT(\"c\" & (VLOOKUP(Switch!$D$28,$F$2:$G$44,2,FALSE)+ROW()-2))=Switch!$D$28,INDIRECT(\"a\" & (VLOOKUP(Switch!$D$28,$F$2:$G$44,2,FALSE)+ROW()-2)),\"\")","v":{"$error":"#N/A"}},{"$f":"IF(INDIRECT(\"c\" & (VLOOKUP(Switch!$D$29,$F$2:$G$44,2,FALSE)+ROW()-2))=Switch!$D$29,INDIRECT(\"a\" & (VLOOKUP(Switch!$D$29,$F$2:$G$44,2,FALSE)+ROW()-2)),\"\")","v":{"$error":"#N/A"}},{"$f":"IF(INDIRECT(\"c\" & (VLOOKUP(Switch!$D$30,$F$2:$G$44,2,FALSE)+ROW()-2))=Switch!$D$30,INDIRECT(\"a\" & (VLOOKUP(Switch!$D$30,$F$2:$G$44,2,FALSE)+ROW()-2)),\"\")","v":{"$error":"#N/A"}},{"$f":"IF(INDIRECT(\"c\" & (VLOOKUP(Switch!$D$31,$F$2:$G$44,2,FALSE)+ROW()-2))=Switch!$D$31,INDIRECT(\"a\" & (VLOOKUP(Switch!$D$31,$F$2:$G$44,2,FALSE)+ROW()-2)),\"\")","v":{"$error":"#N/A"}},{"$f":"IF(INDIRECT(\"c\" & (VLOOKUP(Switch!$D$32,$F$2:$G$44,2,FALSE)+ROW()-2))=Switch!$D$32,INDIRECT(\"a\" & (VLOOKUP(Switch!$D$32,$F$2:$G$44,2,FALSE)+ROW()-2)),\"\")","v":{"$error":"#N/A"}},{"$f":"IF(INDIRECT(\"c\" & (VLOOKUP(Switch!$D$33,$F$2:$G$44,2,FALSE)+ROW()-2))=Switch!$D$33,INDIRECT(\"a\" & (VLOOKUP(Switch!$D$33,$F$2:$G$44,2,FALSE)+ROW()-2)),\"\")","v":{"$error":"#N/A"}},{"$f":"IF(INDIRECT(\"c\" & (VLOOKUP(Switch!$D$34,$F$2:$G$44,2,FALSE)+ROW()-2))=Switch!$D$34,INDIRECT(\"a\" & (VLOOKUP(Switch!$D$34,$F$2:$G$44,2,FALSE)+ROW()-2)),\"\")","v":{"$error":"#N/A"}},{"$f":"IF(INDIRECT(\"c\" & (VLOOKUP(Switch!$D$35,$F$2:$G$44,2,FALSE)+ROW()-2))=Switch!$D$35,INDIRECT(\"a\" & (VLOOKUP(Switch!$D$35,$F$2:$G$44,2,FALSE)+ROW()-2)),\"\")","v":{"$error":"#N/A"}},{"$f":"IF(INDIRECT(\"c\" & (VLOOKUP(Switch!$D$36,$F$2:$G$44,2,FALSE)+ROW()-2))=Switch!$D$36,INDIRECT(\"a\" & (VLOOKUP(Switch!$D$36,$F$2:$G$44,2,FALSE)+ROW()-2)),\"\")","v":{"$error":"#N/A"}},{"$f":"IF(INDIRECT(\"c\" & (VLOOKUP(Switch!$D$37,$F$2:$G$44,2,FALSE)+ROW()-2))=Switch!$D$37,INDIRECT(\"a\" & (VLOOKUP(Switch!$D$37,$F$2:$G$44,2,FALSE)+ROW()-2)),\"\")","v":{"$error":"#N/A"}},{"$f":"IF(INDIRECT(\"c\" & (VLOOKUP(Switch!$D$38,$F$2:$G$44,2,FALSE)+ROW()-2))=Switch!$D$38,INDIRECT(\"a\" & (VLOOKUP(Switch!$D$38,$F$2:$G$44,2,FALSE)+ROW()-2)),\"\")","v":{"$error":"#N/A"}},{"$f":"IF(INDIRECT(\"c\" & (VLOOKUP(Switch!$D$39,$F$2:$G$44,2,FALSE)+ROW()-2))=Switch!$D$39,INDIRECT(\"a\" & (VLOOKUP(Switch!$D$39,$F$2:$G$44,2,FALSE)+ROW()-2)),\"\")","v":{"$error":"#N/A"}},{"$f":"IF(INDIRECT(\"c\" & (VLOOKUP(Switch!$D$40,$F$2:$G$44,2,FALSE)+ROW()-2))=Switch!$D$40,INDIRECT(\"a\" & (VLOOKUP(Switch!$D$40,$F$2:$G$44,2,FALSE)+ROW()-2)),\"\")","v":{"$error":"#N/A"}},{"$f":"IF(INDIRECT(\"c\" & (VLOOKUP(Switch!$D$52,$F$2:$G$44,2,FALSE)+ROW()-2))=Switch!$D$52,INDIRECT(\"a\" & (VLOOKUP(Switch!$D$52,$F$2:$G$44,2,FALSE)+ROW()-2)),\"\")","v":{"$error":"#N/A"}},{"$f":"IF(INDIRECT(\"c\" & (VLOOKUP(Switch!$D$53,$F$2:$G$44,2,FALSE)+ROW()-2))=Switch!$D$53,INDIRECT(\"a\" & (VLOOKUP(Switch!$D$53,$F$2:$G$44,2,FALSE)+ROW()-2)),\"\")","v":{"$error":"#N/A"}},{"$f":"IF(INDIRECT(\"c\" & (VLOOKUP(Switch!$D$54,$F$2:$G$44,2,FALSE)+ROW()-2))=Switch!$D$54,INDIRECT(\"a\" & (VLOOKUP(Switch!$D$54,$F$2:$G$44,2,FALSE)+ROW()-2)),\"\")","v":{"$error":"#N/A"}},{"$f":"IF(INDIRECT(\"c\" & (VLOOKUP(Switch!$D$55,$F$2:$G$44,2,FALSE)+ROW()-2))=Switch!$D$55,INDIRECT(\"a\" & (VLOOKUP(Switch!$D$55,$F$2:$G$44,2,FALSE)+ROW()-2)),\"\")","v":{"$error":"#N/A"}},{"$f":"IF(INDIRECT(\"c\" & (VLOOKUP(Switch!$D$56,$F$2:$G$44,2,FALSE)+ROW()-2))=Switch!$D$56,INDIRECT(\"a\" & (VLOOKUP(Switch!$D$56,$F$2:$G$44,2,FALSE)+ROW()-2)),\"\")","v":{"$error":"#N/A"}},{"$f":"IF(INDIRECT(\"c\" & (VLOOKUP(Switch!$D$57,$F$2:$G$44,2,FALSE)+ROW()-2))=Switch!$D$57,INDIRECT(\"a\" & (VLOOKUP(Switch!$D$57,$F$2:$G$44,2,FALSE)+ROW()-2)),\"\")","v":{"$error":"#N/A"}},{"$f":"IF(INDIRECT(\"c\" & (VLOOKUP(Switch!$D$58,$F$2:$G$44,2,FALSE)+ROW()-2))=Switch!$D$58,INDIRECT(\"a\" & (VLOOKUP(Switch!$D$58,$F$2:$G$44,2,FALSE)+ROW()-2)),\"\")","v":{"$error":"#N/A"}},{"$f":"IF(INDIRECT(\"c\" & (VLOOKUP(Switch!$D$59,$F$2:$G$44,2,FALSE)+ROW()-2))=Switch!$D$59,INDIRECT(\"a\" & (VLOOKUP(Switch!$D$59,$F$2:$G$44,2,FALSE)+ROW()-2)),\"\")","v":{"$error":"#N/A"}},{"$f":"IF(INDIRECT(\"c\" & (VLOOKUP(Switch!$D$60,$F$2:$G$44,2,FALSE)+ROW()-2))=Switch!$D$60,INDIRECT(\"a\" & (VLOOKUP(Switch!$D$60,$F$2:$G$44,2,FALSE)+ROW()-2)),\"\")","v":{"$error":"#N/A"}},{"$f":"IF(INDIRECT(\"c\" & (VLOOKUP(Switch!$D$61,$F$2:$G$44,2,FALSE)+ROW()-2))=Switch!$D$61,INDIRECT(\"a\" & (VLOOKUP(Switch!$D$61,$F$2:$G$44,2,FALSE)+ROW()-2)),\"\")","v":{"$error":"#N/A"}},{"$f":"IF(INDIRECT(\"c\" & (VLOOKUP(Switch!$D$62,$F$2:$G$44,2,FALSE)+ROW()-2))=Switch!$D$62,INDIRECT(\"a\" & (VLOOKUP(Switch!$D$62,$F$2:$G$44,2,FALSE)+ROW()-2)),\"\")","v":{"$error":"#N/A"}},{"$f":"IF(INDIRECT(\"c\" & (VLOOKUP(Switch!$D$63,$F$2:$G$44,2,FALSE)+ROW()-2))=Switch!$D$63,INDIRECT(\"a\" & (VLOOKUP(Switch!$D$63,$F$2:$G$44,2,FALSE)+ROW()-2)),\"\")","v":{"$error":"#N/A"}},{"$f":"IF(INDIRECT(\"c\" & (VLOOKUP(Switch!$D$64,$F$2:$G$44,2,FALSE)+ROW()-2))=Switch!$D$64,INDIRECT(\"a\" & (VLOOKUP(Switch!$D$64,$F$2:$G$44,2,FALSE)+ROW()-2)),\"\")","v":{"$error":"#N/A"}},{"$f":"IF(INDIRECT(\"c\" & (VLOOKUP(Switch!$D$65,$F$2:$G$44,2,FALSE)+ROW()-2))=Switch!$D$65,INDIRECT(\"a\" & (VLOOKUP(Switch!$D$65,$F$2:$G$44,2,FALSE)+ROW()-2)),\"\")","v":{"$error":"#N/A"}},{"$f":"IF(INDIRECT(\"c\" & (VLOOKUP(Switch!$D$66,$F$2:$G$44,2,FALSE)+ROW()-2))=Switch!$D$66,INDIRECT(\"a\" & (VLOOKUP(Switch!$D$66,$F$2:$G$44,2,FALSE)+ROW()-2)),\"\")","v":{"$error":"#N/A"}}]
["Investec Value Fund H","VALH","Investec Fund Managers",{"$f":"ROW()","v":276},null,null,{"$f":"VLOOKUP(F276,$C$2:$D$637,2,FALSE)","v":{"$error":"#N/A"}},{"$f":"IF(INDIRECT(\"c\" & (VLOOKUP(Switch!$D$26,$F$2:$G$44,2,FALSE)+ROW()-2))=Switch!$D$26,INDIRECT(\"a\" & (VLOOKUP(Switch!$D$26,$F$2:$G$44,2,FALSE)+ROW()-2)),\"\")","v":{"$error":"#N/A"}},{"$f":"IF(INDIRECT(\"c\" & (VLOOKUP(Switch!$D$27,$F$2:$G$44,2,FALSE)+ROW()-2))=Switch!$D$27,INDIRECT(\"a\" & (VLOOKUP(Switch!$D$27,$F$2:$G$44,2,FALSE)+ROW()-2)),\"\")","v":{"$error":"#N/A"}},{"$f":"IF(INDIRECT(\"c\" & (VLOOKUP(Switch!$D$28,$F$2:$G$44,2,FALSE)+ROW()-2))=Switch!$D$28,INDIRECT(\"a\" & (VLOOKUP(Switch!$D$28,$F$2:$G$44,2,FALSE)+ROW()-2)),\"\")","v":{"$error":"#N/A"}},{"$f":"IF(INDIRECT(\"c\" & (VLOOKUP(Switch!$D$29,$F$2:$G$44,2,FALSE)+ROW()-2))=Switch!$D$29,INDIRECT(\"a\" & (VLOOKUP(Switch!$D$29,$F$2:$G$44,2,FALSE)+ROW()-2)),\"\")","v":{"$error":"#N/A"}},{"$f":"IF(INDIRECT(\"c\" & (VLOOKUP(Switch!$D$30,$F$2:$G$44,2,FALSE)+ROW()-2))=Switch!$D$30,INDIRECT(\"a\" & (VLOOKUP(Switch!$D$30,$F$2:$G$44,2,FALSE)+ROW()-2)),\"\")","v":{"$error":"#N/A"}},{"$f":"IF(INDIRECT(\"c\" & (VLOOKUP(Switch!$D$31,$F$2:$G$44,2,FALSE)+ROW()-2))=Switch!$D$31,INDIRECT(\"a\" & (VLOOKUP(Switch!$D$31,$F$2:$G$44,2,FALSE)+ROW()-2)),\"\")","v":{"$error":"#N/A"}},{"$f":"IF(INDIRECT(\"c\" & (VLOOKUP(Switch!$D$32,$F$2:$G$44,2,FALSE)+ROW()-2))=Switch!$D$32,INDIRECT(\"a\" & (VLOOKUP(Switch!$D$32,$F$2:$G$44,2,FALSE)+ROW()-2)),\"\")","v":{"$error":"#N/A"}},{"$f":"IF(INDIRECT(\"c\" & (VLOOKUP(Switch!$D$33,$F$2:$G$44,2,FALSE)+ROW()-2))=Switch!$D$33,INDIRECT(\"a\" & (VLOOKUP(Switch!$D$33,$F$2:$G$44,2,FALSE)+ROW()-2)),\"\")","v":{"$error":"#N/A"}},{"$f":"IF(INDIRECT(\"c\" & (VLOOKUP(Switch!$D$34,$F$2:$G$44,2,FALSE)+ROW()-2))=Switch!$D$34,INDIRECT(\"a\" & (VLOOKUP(Switch!$D$34,$F$2:$G$44,2,FALSE)+ROW()-2)),\"\")","v":{"$error":"#N/A"}},{"$f":"IF(INDIRECT(\"c\" & (VLOOKUP(Switch!$D$35,$F$2:$G$44,2,FALSE)+ROW()-2))=Switch!$D$35,INDIRECT(\"a\" & (VLOOKUP(Switch!$D$35,$F$2:$G$44,2,FALSE)+ROW()-2)),\"\")","v":{"$error":"#N/A"}},{"$f":"IF(INDIRECT(\"c\" & (VLOOKUP(Switch!$D$36,$F$2:$G$44,2,FALSE)+ROW()-2))=Switch!$D$36,INDIRECT(\"a\" & (VLOOKUP(Switch!$D$36,$F$2:$G$44,2,FALSE)+ROW()-2)),\"\")","v":{"$error":"#N/A"}},{"$f":"IF(INDIRECT(\"c\" & (VLOOKUP(Switch!$D$37,$F$2:$G$44,2,FALSE)+ROW()-2))=Switch!$D$37,INDIRECT(\"a\" & (VLOOKUP(Switch!$D$37,$F$2:$G$44,2,FALSE)+ROW()-2)),\"\")","v":{"$error":"#N/A"}},{"$f":"IF(INDIRECT(\"c\" & (VLOOKUP(Switch!$D$38,$F$2:$G$44,2,FALSE)+ROW()-2))=Switch!$D$38,INDIRECT(\"a\" & (VLOOKUP(Switch!$D$38,$F$2:$G$44,2,FALSE)+ROW()-2)),\"\")","v":{"$error":"#N/A"}},{"$f":"IF(INDIRECT(\"c\" & (VLOOKUP(Switch!$D$39,$F$2:$G$44,2,FALSE)+ROW()-2))=Switch!$D$39,INDIRECT(\"a\" & (VLOOKUP(Switch!$D$39,$F$2:$G$44,2,FALSE)+ROW()-2)),\"\")","v":{"$error":"#N/A"}},{"$f":"IF(INDIRECT(\"c\" & (VLOOKUP(Switch!$D$40,$F$2:$G$44,2,FALSE)+ROW()-2))=Switch!$D$40,INDIRECT(\"a\" & (VLOOKUP(Switch!$D$40,$F$2:$G$44,2,FALSE)+ROW()-2)),\"\")","v":{"$error":"#N/A"}},{"$f":"IF(INDIRECT(\"c\" & (VLOOKUP(Switch!$D$52,$F$2:$G$44,2,FALSE)+ROW()-2))=Switch!$D$52,INDIRECT(\"a\" & (VLOOKUP(Switch!$D$52,$F$2:$G$44,2,FALSE)+ROW()-2)),\"\")","v":{"$error":"#N/A"}},{"$f":"IF(INDIRECT(\"c\" & (VLOOKUP(Switch!$D$53,$F$2:$G$44,2,FALSE)+ROW()-2))=Switch!$D$53,INDIRECT(\"a\" & (VLOOKUP(Switch!$D$53,$F$2:$G$44,2,FALSE)+ROW()-2)),\"\")","v":{"$error":"#N/A"}},{"$f":"IF(INDIRECT(\"c\" & (VLOOKUP(Switch!$D$54,$F$2:$G$44,2,FALSE)+ROW()-2))=Switch!$D$54,INDIRECT(\"a\" & (VLOOKUP(Switch!$D$54,$F$2:$G$44,2,FALSE)+ROW()-2)),\"\")","v":{"$error":"#N/A"}},{"$f":"IF(INDIRECT(\"c\" & (VLOOKUP(Switch!$D$55,$F$2:$G$44,2,FALSE)+ROW()-2))=Switch!$D$55,INDIRECT(\"a\" & (VLOOKUP(Switch!$D$55,$F$2:$G$44,2,FALSE)+ROW()-2)),\"\")","v":{"$error":"#N/A"}},{"$f":"IF(INDIRECT(\"c\" & (VLOOKUP(Switch!$D$56,$F$2:$G$44,2,FALSE)+ROW()-2))=Switch!$D$56,INDIRECT(\"a\" & (VLOOKUP(Switch!$D$56,$F$2:$G$44,2,FALSE)+ROW()-2)),\"\")","v":{"$error":"#N/A"}},{"$f":"IF(INDIRECT(\"c\" & (VLOOKUP(Switch!$D$57,$F$2:$G$44,2,FALSE)+ROW()-2))=Switch!$D$57,INDIRECT(\"a\" & (VLOOKUP(Switch!$D$57,$F$2:$G$44,2,FALSE)+ROW()-2)),\"\")","v":{"$error":"#N/A"}},{"$f":"IF(INDIRECT(\"c\" & (VLOOKUP(Switch!$D$58,$F$2:$G$44,2,FALSE)+ROW()-2))=Switch!$D$58,INDIRECT(\"a\" & (VLOOKUP(Switch!$D$58,$F$2:$G$44,2,FALSE)+ROW()-2)),\"\")","v":{"$error":"#N/A"}},{"$f":"IF(INDIRECT(\"c\" & (VLOOKUP(Switch!$D$59,$F$2:$G$44,2,FALSE)+ROW()-2))=Switch!$D$59,INDIRECT(\"a\" & (VLOOKUP(Switch!$D$59,$F$2:$G$44,2,FALSE)+ROW()-2)),\"\")","v":{"$error":"#N/A"}},{"$f":"IF(INDIRECT(\"c\" & (VLOOKUP(Switch!$D$60,$F$2:$G$44,2,FALSE)+ROW()-2))=Switch!$D$60,INDIRECT(\"a\" & (VLOOKUP(Switch!$D$60,$F$2:$G$44,2,FALSE)+ROW()-2)),\"\")","v":{"$error":"#N/A"}},{"$f":"IF(INDIRECT(\"c\" & (VLOOKUP(Switch!$D$61,$F$2:$G$44,2,FALSE)+ROW()-2))=Switch!$D$61,INDIRECT(\"a\" & (VLOOKUP(Switch!$D$61,$F$2:$G$44,2,FALSE)+ROW()-2)),\"\")","v":{"$error":"#N/A"}},{"$f":"IF(INDIRECT(\"c\" & (VLOOKUP(Switch!$D$62,$F$2:$G$44,2,FALSE)+ROW()-2))=Switch!$D$62,INDIRECT(\"a\" & (VLOOKUP(Switch!$D$62,$F$2:$G$44,2,FALSE)+ROW()-2)),\"\")","v":{"$error":"#N/A"}},{"$f":"IF(INDIRECT(\"c\" & (VLOOKUP(Switch!$D$63,$F$2:$G$44,2,FALSE)+ROW()-2))=Switch!$D$63,INDIRECT(\"a\" & (VLOOKUP(Switch!$D$63,$F$2:$G$44,2,FALSE)+ROW()-2)),\"\")","v":{"$error":"#N/A"}},{"$f":"IF(INDIRECT(\"c\" & (VLOOKUP(Switch!$D$64,$F$2:$G$44,2,FALSE)+ROW()-2))=Switch!$D$64,INDIRECT(\"a\" & (VLOOKUP(Switch!$D$64,$F$2:$G$44,2,FALSE)+ROW()-2)),\"\")","v":{"$error":"#N/A"}},{"$f":"IF(INDIRECT(\"c\" & (VLOOKUP(Switch!$D$65,$F$2:$G$44,2,FALSE)+ROW()-2))=Switch!$D$65,INDIRECT(\"a\" & (VLOOKUP(Switch!$D$65,$F$2:$G$44,2,FALSE)+ROW()-2)),\"\")","v":{"$error":"#N/A"}},{"$f":"IF(INDIRECT(\"c\" & (VLOOKUP(Switch!$D$66,$F$2:$G$44,2,FALSE)+ROW()-2))=Switch!$D$66,INDIRECT(\"a\" & (VLOOKUP(Switch!$D$66,$F$2:$G$44,2,FALSE)+ROW()-2)),\"\")","v":{"$error":"#N/A"}}]
["Investec Worldwide Flexible Fund E","WFFE","Investec Fund Managers",{"$f":"ROW()","v":277},null,null,{"$f":"VLOOKUP(F277,$C$2:$D$637,2,FALSE)","v":{"$error":"#N/A"}},{"$f":"IF(INDIRECT(\"c\" & (VLOOKUP(Switch!$D$26,$F$2:$G$44,2,FALSE)+ROW()-2))=Switch!$D$26,INDIRECT(\"a\" & (VLOOKUP(Switch!$D$26,$F$2:$G$44,2,FALSE)+ROW()-2)),\"\")","v":{"$error":"#N/A"}},{"$f":"IF(INDIRECT(\"c\" & (VLOOKUP(Switch!$D$27,$F$2:$G$44,2,FALSE)+ROW()-2))=Switch!$D$27,INDIRECT(\"a\" & (VLOOKUP(Switch!$D$27,$F$2:$G$44,2,FALSE)+ROW()-2)),\"\")","v":{"$error":"#N/A"}},{"$f":"IF(INDIRECT(\"c\" & (VLOOKUP(Switch!$D$28,$F$2:$G$44,2,FALSE)+ROW()-2))=Switch!$D$28,INDIRECT(\"a\" & (VLOOKUP(Switch!$D$28,$F$2:$G$44,2,FALSE)+ROW()-2)),\"\")","v":{"$error":"#N/A"}},{"$f":"IF(INDIRECT(\"c\" & (VLOOKUP(Switch!$D$29,$F$2:$G$44,2,FALSE)+ROW()-2))=Switch!$D$29,INDIRECT(\"a\" & (VLOOKUP(Switch!$D$29,$F$2:$G$44,2,FALSE)+ROW()-2)),\"\")","v":{"$error":"#N/A"}},{"$f":"IF(INDIRECT(\"c\" & (VLOOKUP(Switch!$D$30,$F$2:$G$44,2,FALSE)+ROW()-2))=Switch!$D$30,INDIRECT(\"a\" & (VLOOKUP(Switch!$D$30,$F$2:$G$44,2,FALSE)+ROW()-2)),\"\")","v":{"$error":"#N/A"}},{"$f":"IF(INDIRECT(\"c\" & (VLOOKUP(Switch!$D$31,$F$2:$G$44,2,FALSE)+ROW()-2))=Switch!$D$31,INDIRECT(\"a\" & (VLOOKUP(Switch!$D$31,$F$2:$G$44,2,FALSE)+ROW()-2)),\"\")","v":{"$error":"#N/A"}},{"$f":"IF(INDIRECT(\"c\" & (VLOOKUP(Switch!$D$32,$F$2:$G$44,2,FALSE)+ROW()-2))=Switch!$D$32,INDIRECT(\"a\" & (VLOOKUP(Switch!$D$32,$F$2:$G$44,2,FALSE)+ROW()-2)),\"\")","v":{"$error":"#N/A"}},{"$f":"IF(INDIRECT(\"c\" & (VLOOKUP(Switch!$D$33,$F$2:$G$44,2,FALSE)+ROW()-2))=Switch!$D$33,INDIRECT(\"a\" & (VLOOKUP(Switch!$D$33,$F$2:$G$44,2,FALSE)+ROW()-2)),\"\")","v":{"$error":"#N/A"}},{"$f":"IF(INDIRECT(\"c\" & (VLOOKUP(Switch!$D$34,$F$2:$G$44,2,FALSE)+ROW()-2))=Switch!$D$34,INDIRECT(\"a\" & (VLOOKUP(Switch!$D$34,$F$2:$G$44,2,FALSE)+ROW()-2)),\"\")","v":{"$error":"#N/A"}},{"$f":"IF(INDIRECT(\"c\" & (VLOOKUP(Switch!$D$35,$F$2:$G$44,2,FALSE)+ROW()-2))=Switch!$D$35,INDIRECT(\"a\" & (VLOOKUP(Switch!$D$35,$F$2:$G$44,2,FALSE)+ROW()-2)),\"\")","v":{"$error":"#N/A"}},{"$f":"IF(INDIRECT(\"c\" & (VLOOKUP(Switch!$D$36,$F$2:$G$44,2,FALSE)+ROW()-2))=Switch!$D$36,INDIRECT(\"a\" & (VLOOKUP(Switch!$D$36,$F$2:$G$44,2,FALSE)+ROW()-2)),\"\")","v":{"$error":"#N/A"}},{"$f":"IF(INDIRECT(\"c\" & (VLOOKUP(Switch!$D$37,$F$2:$G$44,2,FALSE)+ROW()-2))=Switch!$D$37,INDIRECT(\"a\" & (VLOOKUP(Switch!$D$37,$F$2:$G$44,2,FALSE)+ROW()-2)),\"\")","v":{"$error":"#N/A"}},{"$f":"IF(INDIRECT(\"c\" & (VLOOKUP(Switch!$D$38,$F$2:$G$44,2,FALSE)+ROW()-2))=Switch!$D$38,INDIRECT(\"a\" & (VLOOKUP(Switch!$D$38,$F$2:$G$44,2,FALSE)+ROW()-2)),\"\")","v":{"$error":"#N/A"}},{"$f":"IF(INDIRECT(\"c\" & (VLOOKUP(Switch!$D$39,$F$2:$G$44,2,FALSE)+ROW()-2))=Switch!$D$39,INDIRECT(\"a\" & (VLOOKUP(Switch!$D$39,$F$2:$G$44,2,FALSE)+ROW()-2)),\"\")","v":{"$error":"#N/A"}},{"$f":"IF(INDIRECT(\"c\" & (VLOOKUP(Switch!$D$40,$F$2:$G$44,2,FALSE)+ROW()-2))=Switch!$D$40,INDIRECT(\"a\" & (VLOOKUP(Switch!$D$40,$F$2:$G$44,2,FALSE)+ROW()-2)),\"\")","v":{"$error":"#N/A"}},{"$f":"IF(INDIRECT(\"c\" & (VLOOKUP(Switch!$D$52,$F$2:$G$44,2,FALSE)+ROW()-2))=Switch!$D$52,INDIRECT(\"a\" & (VLOOKUP(Switch!$D$52,$F$2:$G$44,2,FALSE)+ROW()-2)),\"\")","v":{"$error":"#N/A"}},{"$f":"IF(INDIRECT(\"c\" & (VLOOKUP(Switch!$D$53,$F$2:$G$44,2,FALSE)+ROW()-2))=Switch!$D$53,INDIRECT(\"a\" & (VLOOKUP(Switch!$D$53,$F$2:$G$44,2,FALSE)+ROW()-2)),\"\")","v":{"$error":"#N/A"}},{"$f":"IF(INDIRECT(\"c\" & (VLOOKUP(Switch!$D$54,$F$2:$G$44,2,FALSE)+ROW()-2))=Switch!$D$54,INDIRECT(\"a\" & (VLOOKUP(Switch!$D$54,$F$2:$G$44,2,FALSE)+ROW()-2)),\"\")","v":{"$error":"#N/A"}},{"$f":"IF(INDIRECT(\"c\" & (VLOOKUP(Switch!$D$55,$F$2:$G$44,2,FALSE)+ROW()-2))=Switch!$D$55,INDIRECT(\"a\" & (VLOOKUP(Switch!$D$55,$F$2:$G$44,2,FALSE)+ROW()-2)),\"\")","v":{"$error":"#N/A"}},{"$f":"IF(INDIRECT(\"c\" & (VLOOKUP(Switch!$D$56,$F$2:$G$44,2,FALSE)+ROW()-2))=Switch!$D$56,INDIRECT(\"a\" & (VLOOKUP(Switch!$D$56,$F$2:$G$44,2,FALSE)+ROW()-2)),\"\")","v":{"$error":"#N/A"}},{"$f":"IF(INDIRECT(\"c\" & (VLOOKUP(Switch!$D$57,$F$2:$G$44,2,FALSE)+ROW()-2))=Switch!$D$57,INDIRECT(\"a\" & (VLOOKUP(Switch!$D$57,$F$2:$G$44,2,FALSE)+ROW()-2)),\"\")","v":{"$error":"#N/A"}},{"$f":"IF(INDIRECT(\"c\" & (VLOOKUP(Switch!$D$58,$F$2:$G$44,2,FALSE)+ROW()-2))=Switch!$D$58,INDIRECT(\"a\" & (VLOOKUP(Switch!$D$58,$F$2:$G$44,2,FALSE)+ROW()-2)),\"\")","v":{"$error":"#N/A"}},{"$f":"IF(INDIRECT(\"c\" & (VLOOKUP(Switch!$D$59,$F$2:$G$44,2,FALSE)+ROW()-2))=Switch!$D$59,INDIRECT(\"a\" & (VLOOKUP(Switch!$D$59,$F$2:$G$44,2,FALSE)+ROW()-2)),\"\")","v":{"$error":"#N/A"}},{"$f":"IF(INDIRECT(\"c\" & (VLOOKUP(Switch!$D$60,$F$2:$G$44,2,FALSE)+ROW()-2))=Switch!$D$60,INDIRECT(\"a\" & (VLOOKUP(Switch!$D$60,$F$2:$G$44,2,FALSE)+ROW()-2)),\"\")","v":{"$error":"#N/A"}},{"$f":"IF(INDIRECT(\"c\" & (VLOOKUP(Switch!$D$61,$F$2:$G$44,2,FALSE)+ROW()-2))=Switch!$D$61,INDIRECT(\"a\" & (VLOOKUP(Switch!$D$61,$F$2:$G$44,2,FALSE)+ROW()-2)),\"\")","v":{"$error":"#N/A"}},{"$f":"IF(INDIRECT(\"c\" & (VLOOKUP(Switch!$D$62,$F$2:$G$44,2,FALSE)+ROW()-2))=Switch!$D$62,INDIRECT(\"a\" & (VLOOKUP(Switch!$D$62,$F$2:$G$44,2,FALSE)+ROW()-2)),\"\")","v":{"$error":"#N/A"}},{"$f":"IF(INDIRECT(\"c\" & (VLOOKUP(Switch!$D$63,$F$2:$G$44,2,FALSE)+ROW()-2))=Switch!$D$63,INDIRECT(\"a\" & (VLOOKUP(Switch!$D$63,$F$2:$G$44,2,FALSE)+ROW()-2)),\"\")","v":{"$error":"#N/A"}},{"$f":"IF(INDIRECT(\"c\" & (VLOOKUP(Switch!$D$64,$F$2:$G$44,2,FALSE)+ROW()-2))=Switch!$D$64,INDIRECT(\"a\" & (VLOOKUP(Switch!$D$64,$F$2:$G$44,2,FALSE)+ROW()-2)),\"\")","v":{"$error":"#N/A"}},{"$f":"IF(INDIRECT(\"c\" & (VLOOKUP(Switch!$D$65,$F$2:$G$44,2,FALSE)+ROW()-2))=Switch!$D$65,INDIRECT(\"a\" & (VLOOKUP(Switch!$D$65,$F$2:$G$44,2,FALSE)+ROW()-2)),\"\")","v":{"$error":"#N/A"}},{"$f":"IF(INDIRECT(\"c\" & (VLOOKUP(Switch!$D$66,$F$2:$G$44,2,FALSE)+ROW()-2))=Switch!$D$66,INDIRECT(\"a\" & (VLOOKUP(Switch!$D$66,$F$2:$G$44,2,FALSE)+ROW()-2)),\"\")","v":{"$error":"#N/A"}}]
["Investec Worldwide Equity Feeder Fund H","WWFH","Investec Fund Managers",{"$f":"ROW()","v":278},null,null,{"$f":"VLOOKUP(F278,$C$2:$D$637,2,FALSE)","v":{"$error":"#N/A"}},{"$f":"IF(INDIRECT(\"c\" & (VLOOKUP(Switch!$D$26,$F$2:$G$44,2,FALSE)+ROW()-2))=Switch!$D$26,INDIRECT(\"a\" & (VLOOKUP(Switch!$D$26,$F$2:$G$44,2,FALSE)+ROW()-2)),\"\")","v":{"$error":"#N/A"}},{"$f":"IF(INDIRECT(\"c\" & (VLOOKUP(Switch!$D$27,$F$2:$G$44,2,FALSE)+ROW()-2))=Switch!$D$27,INDIRECT(\"a\" & (VLOOKUP(Switch!$D$27,$F$2:$G$44,2,FALSE)+ROW()-2)),\"\")","v":{"$error":"#N/A"}},{"$f":"IF(INDIRECT(\"c\" & (VLOOKUP(Switch!$D$28,$F$2:$G$44,2,FALSE)+ROW()-2))=Switch!$D$28,INDIRECT(\"a\" & (VLOOKUP(Switch!$D$28,$F$2:$G$44,2,FALSE)+ROW()-2)),\"\")","v":{"$error":"#N/A"}},{"$f":"IF(INDIRECT(\"c\" & (VLOOKUP(Switch!$D$29,$F$2:$G$44,2,FALSE)+ROW()-2))=Switch!$D$29,INDIRECT(\"a\" & (VLOOKUP(Switch!$D$29,$F$2:$G$44,2,FALSE)+ROW()-2)),\"\")","v":{"$error":"#N/A"}},{"$f":"IF(INDIRECT(\"c\" & (VLOOKUP(Switch!$D$30,$F$2:$G$44,2,FALSE)+ROW()-2))=Switch!$D$30,INDIRECT(\"a\" & (VLOOKUP(Switch!$D$30,$F$2:$G$44,2,FALSE)+ROW()-2)),\"\")","v":{"$error":"#N/A"}},{"$f":"IF(INDIRECT(\"c\" & (VLOOKUP(Switch!$D$31,$F$2:$G$44,2,FALSE)+ROW()-2))=Switch!$D$31,INDIRECT(\"a\" & (VLOOKUP(Switch!$D$31,$F$2:$G$44,2,FALSE)+ROW()-2)),\"\")","v":{"$error":"#N/A"}},{"$f":"IF(INDIRECT(\"c\" & (VLOOKUP(Switch!$D$32,$F$2:$G$44,2,FALSE)+ROW()-2))=Switch!$D$32,INDIRECT(\"a\" & (VLOOKUP(Switch!$D$32,$F$2:$G$44,2,FALSE)+ROW()-2)),\"\")","v":{"$error":"#N/A"}},{"$f":"IF(INDIRECT(\"c\" & (VLOOKUP(Switch!$D$33,$F$2:$G$44,2,FALSE)+ROW()-2))=Switch!$D$33,INDIRECT(\"a\" & (VLOOKUP(Switch!$D$33,$F$2:$G$44,2,FALSE)+ROW()-2)),\"\")","v":{"$error":"#N/A"}},{"$f":"IF(INDIRECT(\"c\" & (VLOOKUP(Switch!$D$34,$F$2:$G$44,2,FALSE)+ROW()-2))=Switch!$D$34,INDIRECT(\"a\" & (VLOOKUP(Switch!$D$34,$F$2:$G$44,2,FALSE)+ROW()-2)),\"\")","v":{"$error":"#N/A"}},{"$f":"IF(INDIRECT(\"c\" & (VLOOKUP(Switch!$D$35,$F$2:$G$44,2,FALSE)+ROW()-2))=Switch!$D$35,INDIRECT(\"a\" & (VLOOKUP(Switch!$D$35,$F$2:$G$44,2,FALSE)+ROW()-2)),\"\")","v":{"$error":"#N/A"}},{"$f":"IF(INDIRECT(\"c\" & (VLOOKUP(Switch!$D$36,$F$2:$G$44,2,FALSE)+ROW()-2))=Switch!$D$36,INDIRECT(\"a\" & (VLOOKUP(Switch!$D$36,$F$2:$G$44,2,FALSE)+ROW()-2)),\"\")","v":{"$error":"#N/A"}},{"$f":"IF(INDIRECT(\"c\" & (VLOOKUP(Switch!$D$37,$F$2:$G$44,2,FALSE)+ROW()-2))=Switch!$D$37,INDIRECT(\"a\" & (VLOOKUP(Switch!$D$37,$F$2:$G$44,2,FALSE)+ROW()-2)),\"\")","v":{"$error":"#N/A"}},{"$f":"IF(INDIRECT(\"c\" & (VLOOKUP(Switch!$D$38,$F$2:$G$44,2,FALSE)+ROW()-2))=Switch!$D$38,INDIRECT(\"a\" & (VLOOKUP(Switch!$D$38,$F$2:$G$44,2,FALSE)+ROW()-2)),\"\")","v":{"$error":"#N/A"}},{"$f":"IF(INDIRECT(\"c\" & (VLOOKUP(Switch!$D$39,$F$2:$G$44,2,FALSE)+ROW()-2))=Switch!$D$39,INDIRECT(\"a\" & (VLOOKUP(Switch!$D$39,$F$2:$G$44,2,FALSE)+ROW()-2)),\"\")","v":{"$error":"#N/A"}},{"$f":"IF(INDIRECT(\"c\" & (VLOOKUP(Switch!$D$40,$F$2:$G$44,2,FALSE)+ROW()-2))=Switch!$D$40,INDIRECT(\"a\" & (VLOOKUP(Switch!$D$40,$F$2:$G$44,2,FALSE)+ROW()-2)),\"\")","v":{"$error":"#N/A"}},{"$f":"IF(INDIRECT(\"c\" & (VLOOKUP(Switch!$D$52,$F$2:$G$44,2,FALSE)+ROW()-2))=Switch!$D$52,INDIRECT(\"a\" & (VLOOKUP(Switch!$D$52,$F$2:$G$44,2,FALSE)+ROW()-2)),\"\")","v":{"$error":"#N/A"}},{"$f":"IF(INDIRECT(\"c\" & (VLOOKUP(Switch!$D$53,$F$2:$G$44,2,FALSE)+ROW()-2))=Switch!$D$53,INDIRECT(\"a\" & (VLOOKUP(Switch!$D$53,$F$2:$G$44,2,FALSE)+ROW()-2)),\"\")","v":{"$error":"#N/A"}},{"$f":"IF(INDIRECT(\"c\" & (VLOOKUP(Switch!$D$54,$F$2:$G$44,2,FALSE)+ROW()-2))=Switch!$D$54,INDIRECT(\"a\" & (VLOOKUP(Switch!$D$54,$F$2:$G$44,2,FALSE)+ROW()-2)),\"\")","v":{"$error":"#N/A"}},{"$f":"IF(INDIRECT(\"c\" & (VLOOKUP(Switch!$D$55,$F$2:$G$44,2,FALSE)+ROW()-2))=Switch!$D$55,INDIRECT(\"a\" & (VLOOKUP(Switch!$D$55,$F$2:$G$44,2,FALSE)+ROW()-2)),\"\")","v":{"$error":"#N/A"}},{"$f":"IF(INDIRECT(\"c\" & (VLOOKUP(Switch!$D$56,$F$2:$G$44,2,FALSE)+ROW()-2))=Switch!$D$56,INDIRECT(\"a\" & (VLOOKUP(Switch!$D$56,$F$2:$G$44,2,FALSE)+ROW()-2)),\"\")","v":{"$error":"#N/A"}},{"$f":"IF(INDIRECT(\"c\" & (VLOOKUP(Switch!$D$57,$F$2:$G$44,2,FALSE)+ROW()-2))=Switch!$D$57,INDIRECT(\"a\" & (VLOOKUP(Switch!$D$57,$F$2:$G$44,2,FALSE)+ROW()-2)),\"\")","v":{"$error":"#N/A"}},{"$f":"IF(INDIRECT(\"c\" & (VLOOKUP(Switch!$D$58,$F$2:$G$44,2,FALSE)+ROW()-2))=Switch!$D$58,INDIRECT(\"a\" & (VLOOKUP(Switch!$D$58,$F$2:$G$44,2,FALSE)+ROW()-2)),\"\")","v":{"$error":"#N/A"}},{"$f":"IF(INDIRECT(\"c\" & (VLOOKUP(Switch!$D$59,$F$2:$G$44,2,FALSE)+ROW()-2))=Switch!$D$59,INDIRECT(\"a\" & (VLOOKUP(Switch!$D$59,$F$2:$G$44,2,FALSE)+ROW()-2)),\"\")","v":{"$error":"#N/A"}},{"$f":"IF(INDIRECT(\"c\" & (VLOOKUP(Switch!$D$60,$F$2:$G$44,2,FALSE)+ROW()-2))=Switch!$D$60,INDIRECT(\"a\" & (VLOOKUP(Switch!$D$60,$F$2:$G$44,2,FALSE)+ROW()-2)),\"\")","v":{"$error":"#N/A"}},{"$f":"IF(INDIRECT(\"c\" & (VLOOKUP(Switch!$D$61,$F$2:$G$44,2,FALSE)+ROW()-2))=Switch!$D$61,INDIRECT(\"a\" & (VLOOKUP(Switch!$D$61,$F$2:$G$44,2,FALSE)+ROW()-2)),\"\")","v":{"$error":"#N/A"}},{"$f":"IF(INDIRECT(\"c\" & (VLOOKUP(Switch!$D$62,$F$2:$G$44,2,FALSE)+ROW()-2))=Switch!$D$62,INDIRECT(\"a\" & (VLOOKUP(Switch!$D$62,$F$2:$G$44,2,FALSE)+ROW()-2)),\"\")","v":{"$error":"#N/A"}},{"$f":"IF(INDIRECT(\"c\" & (VLOOKUP(Switch!$D$63,$F$2:$G$44,2,FALSE)+ROW()-2))=Switch!$D$63,INDIRECT(\"a\" & (VLOOKUP(Switch!$D$63,$F$2:$G$44,2,FALSE)+ROW()-2)),\"\")","v":{"$error":"#N/A"}},{"$f":"IF(INDIRECT(\"c\" & (VLOOKUP(Switch!$D$64,$F$2:$G$44,2,FALSE)+ROW()-2))=Switch!$D$64,INDIRECT(\"a\" & (VLOOKUP(Switch!$D$64,$F$2:$G$44,2,FALSE)+ROW()-2)),\"\")","v":{"$error":"#N/A"}},{"$f":"IF(INDIRECT(\"c\" & (VLOOKUP(Switch!$D$65,$F$2:$G$44,2,FALSE)+ROW()-2))=Switch!$D$65,INDIRECT(\"a\" & (VLOOKUP(Switch!$D$65,$F$2:$G$44,2,FALSE)+ROW()-2)),\"\")","v":{"$error":"#N/A"}},{"$f":"IF(INDIRECT(\"c\" & (VLOOKUP(Switch!$D$66,$F$2:$G$44,2,FALSE)+ROW()-2))=Switch!$D$66,INDIRECT(\"a\" & (VLOOKUP(Switch!$D$66,$F$2:$G$44,2,FALSE)+ROW()-2)),\"\")","v":{"$error":"#N/A"}}]
["Flagship IP Flexible Value Fund A1","FIFA1","IP Management Company (Pty) Ltd",{"$f":"ROW()","v":279},null,null,{"$f":"VLOOKUP(F279,$C$2:$D$637,2,FALSE)","v":{"$error":"#N/A"}},{"$f":"IF(INDIRECT(\"c\" & (VLOOKUP(Switch!$D$26,$F$2:$G$44,2,FALSE)+ROW()-2))=Switch!$D$26,INDIRECT(\"a\" & (VLOOKUP(Switch!$D$26,$F$2:$G$44,2,FALSE)+ROW()-2)),\"\")","v":{"$error":"#N/A"}},{"$f":"IF(INDIRECT(\"c\" & (VLOOKUP(Switch!$D$27,$F$2:$G$44,2,FALSE)+ROW()-2))=Switch!$D$27,INDIRECT(\"a\" & (VLOOKUP(Switch!$D$27,$F$2:$G$44,2,FALSE)+ROW()-2)),\"\")","v":{"$error":"#N/A"}},{"$f":"IF(INDIRECT(\"c\" & (VLOOKUP(Switch!$D$28,$F$2:$G$44,2,FALSE)+ROW()-2))=Switch!$D$28,INDIRECT(\"a\" & (VLOOKUP(Switch!$D$28,$F$2:$G$44,2,FALSE)+ROW()-2)),\"\")","v":{"$error":"#N/A"}},{"$f":"IF(INDIRECT(\"c\" & (VLOOKUP(Switch!$D$29,$F$2:$G$44,2,FALSE)+ROW()-2))=Switch!$D$29,INDIRECT(\"a\" & (VLOOKUP(Switch!$D$29,$F$2:$G$44,2,FALSE)+ROW()-2)),\"\")","v":{"$error":"#N/A"}},{"$f":"IF(INDIRECT(\"c\" & (VLOOKUP(Switch!$D$30,$F$2:$G$44,2,FALSE)+ROW()-2))=Switch!$D$30,INDIRECT(\"a\" & (VLOOKUP(Switch!$D$30,$F$2:$G$44,2,FALSE)+ROW()-2)),\"\")","v":{"$error":"#N/A"}},{"$f":"IF(INDIRECT(\"c\" & (VLOOKUP(Switch!$D$31,$F$2:$G$44,2,FALSE)+ROW()-2))=Switch!$D$31,INDIRECT(\"a\" & (VLOOKUP(Switch!$D$31,$F$2:$G$44,2,FALSE)+ROW()-2)),\"\")","v":{"$error":"#N/A"}},{"$f":"IF(INDIRECT(\"c\" & (VLOOKUP(Switch!$D$32,$F$2:$G$44,2,FALSE)+ROW()-2))=Switch!$D$32,INDIRECT(\"a\" & (VLOOKUP(Switch!$D$32,$F$2:$G$44,2,FALSE)+ROW()-2)),\"\")","v":{"$error":"#N/A"}},{"$f":"IF(INDIRECT(\"c\" & (VLOOKUP(Switch!$D$33,$F$2:$G$44,2,FALSE)+ROW()-2))=Switch!$D$33,INDIRECT(\"a\" & (VLOOKUP(Switch!$D$33,$F$2:$G$44,2,FALSE)+ROW()-2)),\"\")","v":{"$error":"#N/A"}},{"$f":"IF(INDIRECT(\"c\" & (VLOOKUP(Switch!$D$34,$F$2:$G$44,2,FALSE)+ROW()-2))=Switch!$D$34,INDIRECT(\"a\" & (VLOOKUP(Switch!$D$34,$F$2:$G$44,2,FALSE)+ROW()-2)),\"\")","v":{"$error":"#N/A"}},{"$f":"IF(INDIRECT(\"c\" & (VLOOKUP(Switch!$D$35,$F$2:$G$44,2,FALSE)+ROW()-2))=Switch!$D$35,INDIRECT(\"a\" & (VLOOKUP(Switch!$D$35,$F$2:$G$44,2,FALSE)+ROW()-2)),\"\")","v":{"$error":"#N/A"}},{"$f":"IF(INDIRECT(\"c\" & (VLOOKUP(Switch!$D$36,$F$2:$G$44,2,FALSE)+ROW()-2))=Switch!$D$36,INDIRECT(\"a\" & (VLOOKUP(Switch!$D$36,$F$2:$G$44,2,FALSE)+ROW()-2)),\"\")","v":{"$error":"#N/A"}},{"$f":"IF(INDIRECT(\"c\" & (VLOOKUP(Switch!$D$37,$F$2:$G$44,2,FALSE)+ROW()-2))=Switch!$D$37,INDIRECT(\"a\" & (VLOOKUP(Switch!$D$37,$F$2:$G$44,2,FALSE)+ROW()-2)),\"\")","v":{"$error":"#N/A"}},{"$f":"IF(INDIRECT(\"c\" & (VLOOKUP(Switch!$D$38,$F$2:$G$44,2,FALSE)+ROW()-2))=Switch!$D$38,INDIRECT(\"a\" & (VLOOKUP(Switch!$D$38,$F$2:$G$44,2,FALSE)+ROW()-2)),\"\")","v":{"$error":"#N/A"}},{"$f":"IF(INDIRECT(\"c\" & (VLOOKUP(Switch!$D$39,$F$2:$G$44,2,FALSE)+ROW()-2))=Switch!$D$39,INDIRECT(\"a\" & (VLOOKUP(Switch!$D$39,$F$2:$G$44,2,FALSE)+ROW()-2)),\"\")","v":{"$error":"#N/A"}},{"$f":"IF(INDIRECT(\"c\" & (VLOOKUP(Switch!$D$40,$F$2:$G$44,2,FALSE)+ROW()-2))=Switch!$D$40,INDIRECT(\"a\" & (VLOOKUP(Switch!$D$40,$F$2:$G$44,2,FALSE)+ROW()-2)),\"\")","v":{"$error":"#N/A"}},{"$f":"IF(INDIRECT(\"c\" & (VLOOKUP(Switch!$D$52,$F$2:$G$44,2,FALSE)+ROW()-2))=Switch!$D$52,INDIRECT(\"a\" & (VLOOKUP(Switch!$D$52,$F$2:$G$44,2,FALSE)+ROW()-2)),\"\")","v":{"$error":"#N/A"}},{"$f":"IF(INDIRECT(\"c\" & (VLOOKUP(Switch!$D$53,$F$2:$G$44,2,FALSE)+ROW()-2))=Switch!$D$53,INDIRECT(\"a\" & (VLOOKUP(Switch!$D$53,$F$2:$G$44,2,FALSE)+ROW()-2)),\"\")","v":{"$error":"#N/A"}},{"$f":"IF(INDIRECT(\"c\" & (VLOOKUP(Switch!$D$54,$F$2:$G$44,2,FALSE)+ROW()-2))=Switch!$D$54,INDIRECT(\"a\" & (VLOOKUP(Switch!$D$54,$F$2:$G$44,2,FALSE)+ROW()-2)),\"\")","v":{"$error":"#N/A"}},{"$f":"IF(INDIRECT(\"c\" & (VLOOKUP(Switch!$D$55,$F$2:$G$44,2,FALSE)+ROW()-2))=Switch!$D$55,INDIRECT(\"a\" & (VLOOKUP(Switch!$D$55,$F$2:$G$44,2,FALSE)+ROW()-2)),\"\")","v":{"$error":"#N/A"}},{"$f":"IF(INDIRECT(\"c\" & (VLOOKUP(Switch!$D$56,$F$2:$G$44,2,FALSE)+ROW()-2))=Switch!$D$56,INDIRECT(\"a\" & (VLOOKUP(Switch!$D$56,$F$2:$G$44,2,FALSE)+ROW()-2)),\"\")","v":{"$error":"#N/A"}},{"$f":"IF(INDIRECT(\"c\" & (VLOOKUP(Switch!$D$57,$F$2:$G$44,2,FALSE)+ROW()-2))=Switch!$D$57,INDIRECT(\"a\" & (VLOOKUP(Switch!$D$57,$F$2:$G$44,2,FALSE)+ROW()-2)),\"\")","v":{"$error":"#N/A"}},{"$f":"IF(INDIRECT(\"c\" & (VLOOKUP(Switch!$D$58,$F$2:$G$44,2,FALSE)+ROW()-2))=Switch!$D$58,INDIRECT(\"a\" & (VLOOKUP(Switch!$D$58,$F$2:$G$44,2,FALSE)+ROW()-2)),\"\")","v":{"$error":"#N/A"}},{"$f":"IF(INDIRECT(\"c\" & (VLOOKUP(Switch!$D$59,$F$2:$G$44,2,FALSE)+ROW()-2))=Switch!$D$59,INDIRECT(\"a\" & (VLOOKUP(Switch!$D$59,$F$2:$G$44,2,FALSE)+ROW()-2)),\"\")","v":{"$error":"#N/A"}},{"$f":"IF(INDIRECT(\"c\" & (VLOOKUP(Switch!$D$60,$F$2:$G$44,2,FALSE)+ROW()-2))=Switch!$D$60,INDIRECT(\"a\" & (VLOOKUP(Switch!$D$60,$F$2:$G$44,2,FALSE)+ROW()-2)),\"\")","v":{"$error":"#N/A"}},{"$f":"IF(INDIRECT(\"c\" & (VLOOKUP(Switch!$D$61,$F$2:$G$44,2,FALSE)+ROW()-2))=Switch!$D$61,INDIRECT(\"a\" & (VLOOKUP(Switch!$D$61,$F$2:$G$44,2,FALSE)+ROW()-2)),\"\")","v":{"$error":"#N/A"}},{"$f":"IF(INDIRECT(\"c\" & (VLOOKUP(Switch!$D$62,$F$2:$G$44,2,FALSE)+ROW()-2))=Switch!$D$62,INDIRECT(\"a\" & (VLOOKUP(Switch!$D$62,$F$2:$G$44,2,FALSE)+ROW()-2)),\"\")","v":{"$error":"#N/A"}},{"$f":"IF(INDIRECT(\"c\" & (VLOOKUP(Switch!$D$63,$F$2:$G$44,2,FALSE)+ROW()-2))=Switch!$D$63,INDIRECT(\"a\" & (VLOOKUP(Switch!$D$63,$F$2:$G$44,2,FALSE)+ROW()-2)),\"\")","v":{"$error":"#N/A"}},{"$f":"IF(INDIRECT(\"c\" & (VLOOKUP(Switch!$D$64,$F$2:$G$44,2,FALSE)+ROW()-2))=Switch!$D$64,INDIRECT(\"a\" & (VLOOKUP(Switch!$D$64,$F$2:$G$44,2,FALSE)+ROW()-2)),\"\")","v":{"$error":"#N/A"}},{"$f":"IF(INDIRECT(\"c\" & (VLOOKUP(Switch!$D$65,$F$2:$G$44,2,FALSE)+ROW()-2))=Switch!$D$65,INDIRECT(\"a\" & (VLOOKUP(Switch!$D$65,$F$2:$G$44,2,FALSE)+ROW()-2)),\"\")","v":{"$error":"#N/A"}},{"$f":"IF(INDIRECT(\"c\" & (VLOOKUP(Switch!$D$66,$F$2:$G$44,2,FALSE)+ROW()-2))=Switch!$D$66,INDIRECT(\"a\" & (VLOOKUP(Switch!$D$66,$F$2:$G$44,2,FALSE)+ROW()-2)),\"\")","v":{"$error":"#N/A"}}]
["Global IP Opportunity Fund B5","GIOF","IP Management Company (Pty) Ltd",{"$f":"ROW()","v":280},null,null,{"$f":"VLOOKUP(F280,$C$2:$D$637,2,FALSE)","v":{"$error":"#N/A"}},{"$f":"IF(INDIRECT(\"c\" & (VLOOKUP(Switch!$D$26,$F$2:$G$44,2,FALSE)+ROW()-2))=Switch!$D$26,INDIRECT(\"a\" & (VLOOKUP(Switch!$D$26,$F$2:$G$44,2,FALSE)+ROW()-2)),\"\")","v":{"$error":"#N/A"}},{"$f":"IF(INDIRECT(\"c\" & (VLOOKUP(Switch!$D$27,$F$2:$G$44,2,FALSE)+ROW()-2))=Switch!$D$27,INDIRECT(\"a\" & (VLOOKUP(Switch!$D$27,$F$2:$G$44,2,FALSE)+ROW()-2)),\"\")","v":{"$error":"#N/A"}},{"$f":"IF(INDIRECT(\"c\" & (VLOOKUP(Switch!$D$28,$F$2:$G$44,2,FALSE)+ROW()-2))=Switch!$D$28,INDIRECT(\"a\" & (VLOOKUP(Switch!$D$28,$F$2:$G$44,2,FALSE)+ROW()-2)),\"\")","v":{"$error":"#N/A"}},{"$f":"IF(INDIRECT(\"c\" & (VLOOKUP(Switch!$D$29,$F$2:$G$44,2,FALSE)+ROW()-2))=Switch!$D$29,INDIRECT(\"a\" & (VLOOKUP(Switch!$D$29,$F$2:$G$44,2,FALSE)+ROW()-2)),\"\")","v":{"$error":"#N/A"}},{"$f":"IF(INDIRECT(\"c\" & (VLOOKUP(Switch!$D$30,$F$2:$G$44,2,FALSE)+ROW()-2))=Switch!$D$30,INDIRECT(\"a\" & (VLOOKUP(Switch!$D$30,$F$2:$G$44,2,FALSE)+ROW()-2)),\"\")","v":{"$error":"#N/A"}},{"$f":"IF(INDIRECT(\"c\" & (VLOOKUP(Switch!$D$31,$F$2:$G$44,2,FALSE)+ROW()-2))=Switch!$D$31,INDIRECT(\"a\" & (VLOOKUP(Switch!$D$31,$F$2:$G$44,2,FALSE)+ROW()-2)),\"\")","v":{"$error":"#N/A"}},{"$f":"IF(INDIRECT(\"c\" & (VLOOKUP(Switch!$D$32,$F$2:$G$44,2,FALSE)+ROW()-2))=Switch!$D$32,INDIRECT(\"a\" & (VLOOKUP(Switch!$D$32,$F$2:$G$44,2,FALSE)+ROW()-2)),\"\")","v":{"$error":"#N/A"}},{"$f":"IF(INDIRECT(\"c\" & (VLOOKUP(Switch!$D$33,$F$2:$G$44,2,FALSE)+ROW()-2))=Switch!$D$33,INDIRECT(\"a\" & (VLOOKUP(Switch!$D$33,$F$2:$G$44,2,FALSE)+ROW()-2)),\"\")","v":{"$error":"#N/A"}},{"$f":"IF(INDIRECT(\"c\" & (VLOOKUP(Switch!$D$34,$F$2:$G$44,2,FALSE)+ROW()-2))=Switch!$D$34,INDIRECT(\"a\" & (VLOOKUP(Switch!$D$34,$F$2:$G$44,2,FALSE)+ROW()-2)),\"\")","v":{"$error":"#N/A"}},{"$f":"IF(INDIRECT(\"c\" & (VLOOKUP(Switch!$D$35,$F$2:$G$44,2,FALSE)+ROW()-2))=Switch!$D$35,INDIRECT(\"a\" & (VLOOKUP(Switch!$D$35,$F$2:$G$44,2,FALSE)+ROW()-2)),\"\")","v":{"$error":"#N/A"}},{"$f":"IF(INDIRECT(\"c\" & (VLOOKUP(Switch!$D$36,$F$2:$G$44,2,FALSE)+ROW()-2))=Switch!$D$36,INDIRECT(\"a\" & (VLOOKUP(Switch!$D$36,$F$2:$G$44,2,FALSE)+ROW()-2)),\"\")","v":{"$error":"#N/A"}},{"$f":"IF(INDIRECT(\"c\" & (VLOOKUP(Switch!$D$37,$F$2:$G$44,2,FALSE)+ROW()-2))=Switch!$D$37,INDIRECT(\"a\" & (VLOOKUP(Switch!$D$37,$F$2:$G$44,2,FALSE)+ROW()-2)),\"\")","v":{"$error":"#N/A"}},{"$f":"IF(INDIRECT(\"c\" & (VLOOKUP(Switch!$D$38,$F$2:$G$44,2,FALSE)+ROW()-2))=Switch!$D$38,INDIRECT(\"a\" & (VLOOKUP(Switch!$D$38,$F$2:$G$44,2,FALSE)+ROW()-2)),\"\")","v":{"$error":"#N/A"}},{"$f":"IF(INDIRECT(\"c\" & (VLOOKUP(Switch!$D$39,$F$2:$G$44,2,FALSE)+ROW()-2))=Switch!$D$39,INDIRECT(\"a\" & (VLOOKUP(Switch!$D$39,$F$2:$G$44,2,FALSE)+ROW()-2)),\"\")","v":{"$error":"#N/A"}},{"$f":"IF(INDIRECT(\"c\" & (VLOOKUP(Switch!$D$40,$F$2:$G$44,2,FALSE)+ROW()-2))=Switch!$D$40,INDIRECT(\"a\" & (VLOOKUP(Switch!$D$40,$F$2:$G$44,2,FALSE)+ROW()-2)),\"\")","v":{"$error":"#N/A"}},{"$f":"IF(INDIRECT(\"c\" & (VLOOKUP(Switch!$D$52,$F$2:$G$44,2,FALSE)+ROW()-2))=Switch!$D$52,INDIRECT(\"a\" & (VLOOKUP(Switch!$D$52,$F$2:$G$44,2,FALSE)+ROW()-2)),\"\")","v":{"$error":"#N/A"}},{"$f":"IF(INDIRECT(\"c\" & (VLOOKUP(Switch!$D$53,$F$2:$G$44,2,FALSE)+ROW()-2))=Switch!$D$53,INDIRECT(\"a\" & (VLOOKUP(Switch!$D$53,$F$2:$G$44,2,FALSE)+ROW()-2)),\"\")","v":{"$error":"#N/A"}},{"$f":"IF(INDIRECT(\"c\" & (VLOOKUP(Switch!$D$54,$F$2:$G$44,2,FALSE)+ROW()-2))=Switch!$D$54,INDIRECT(\"a\" & (VLOOKUP(Switch!$D$54,$F$2:$G$44,2,FALSE)+ROW()-2)),\"\")","v":{"$error":"#N/A"}},{"$f":"IF(INDIRECT(\"c\" & (VLOOKUP(Switch!$D$55,$F$2:$G$44,2,FALSE)+ROW()-2))=Switch!$D$55,INDIRECT(\"a\" & (VLOOKUP(Switch!$D$55,$F$2:$G$44,2,FALSE)+ROW()-2)),\"\")","v":{"$error":"#N/A"}},{"$f":"IF(INDIRECT(\"c\" & (VLOOKUP(Switch!$D$56,$F$2:$G$44,2,FALSE)+ROW()-2))=Switch!$D$56,INDIRECT(\"a\" & (VLOOKUP(Switch!$D$56,$F$2:$G$44,2,FALSE)+ROW()-2)),\"\")","v":{"$error":"#N/A"}},{"$f":"IF(INDIRECT(\"c\" & (VLOOKUP(Switch!$D$57,$F$2:$G$44,2,FALSE)+ROW()-2))=Switch!$D$57,INDIRECT(\"a\" & (VLOOKUP(Switch!$D$57,$F$2:$G$44,2,FALSE)+ROW()-2)),\"\")","v":{"$error":"#N/A"}},{"$f":"IF(INDIRECT(\"c\" & (VLOOKUP(Switch!$D$58,$F$2:$G$44,2,FALSE)+ROW()-2))=Switch!$D$58,INDIRECT(\"a\" & (VLOOKUP(Switch!$D$58,$F$2:$G$44,2,FALSE)+ROW()-2)),\"\")","v":{"$error":"#N/A"}},{"$f":"IF(INDIRECT(\"c\" & (VLOOKUP(Switch!$D$59,$F$2:$G$44,2,FALSE)+ROW()-2))=Switch!$D$59,INDIRECT(\"a\" & (VLOOKUP(Switch!$D$59,$F$2:$G$44,2,FALSE)+ROW()-2)),\"\")","v":{"$error":"#N/A"}},{"$f":"IF(INDIRECT(\"c\" & (VLOOKUP(Switch!$D$60,$F$2:$G$44,2,FALSE)+ROW()-2))=Switch!$D$60,INDIRECT(\"a\" & (VLOOKUP(Switch!$D$60,$F$2:$G$44,2,FALSE)+ROW()-2)),\"\")","v":{"$error":"#N/A"}},{"$f":"IF(INDIRECT(\"c\" & (VLOOKUP(Switch!$D$61,$F$2:$G$44,2,FALSE)+ROW()-2))=Switch!$D$61,INDIRECT(\"a\" & (VLOOKUP(Switch!$D$61,$F$2:$G$44,2,FALSE)+ROW()-2)),\"\")","v":{"$error":"#N/A"}},{"$f":"IF(INDIRECT(\"c\" & (VLOOKUP(Switch!$D$62,$F$2:$G$44,2,FALSE)+ROW()-2))=Switch!$D$62,INDIRECT(\"a\" & (VLOOKUP(Switch!$D$62,$F$2:$G$44,2,FALSE)+ROW()-2)),\"\")","v":{"$error":"#N/A"}},{"$f":"IF(INDIRECT(\"c\" & (VLOOKUP(Switch!$D$63,$F$2:$G$44,2,FALSE)+ROW()-2))=Switch!$D$63,INDIRECT(\"a\" & (VLOOKUP(Switch!$D$63,$F$2:$G$44,2,FALSE)+ROW()-2)),\"\")","v":{"$error":"#N/A"}},{"$f":"IF(INDIRECT(\"c\" & (VLOOKUP(Switch!$D$64,$F$2:$G$44,2,FALSE)+ROW()-2))=Switch!$D$64,INDIRECT(\"a\" & (VLOOKUP(Switch!$D$64,$F$2:$G$44,2,FALSE)+ROW()-2)),\"\")","v":{"$error":"#N/A"}},{"$f":"IF(INDIRECT(\"c\" & (VLOOKUP(Switch!$D$65,$F$2:$G$44,2,FALSE)+ROW()-2))=Switch!$D$65,INDIRECT(\"a\" & (VLOOKUP(Switch!$D$65,$F$2:$G$44,2,FALSE)+ROW()-2)),\"\")","v":{"$error":"#N/A"}},{"$f":"IF(INDIRECT(\"c\" & (VLOOKUP(Switch!$D$66,$F$2:$G$44,2,FALSE)+ROW()-2))=Switch!$D$66,INDIRECT(\"a\" & (VLOOKUP(Switch!$D$66,$F$2:$G$44,2,FALSE)+ROW()-2)),\"\")","v":{"$error":"#N/A"}}]
["Mitonoptimal IP Active Beta Fund","MIABF","IP Management Company (Pty) Ltd",{"$f":"ROW()","v":281},null,null,{"$f":"VLOOKUP(F281,$C$2:$D$637,2,FALSE)","v":{"$error":"#N/A"}},{"$f":"IF(INDIRECT(\"c\" & (VLOOKUP(Switch!$D$26,$F$2:$G$44,2,FALSE)+ROW()-2))=Switch!$D$26,INDIRECT(\"a\" & (VLOOKUP(Switch!$D$26,$F$2:$G$44,2,FALSE)+ROW()-2)),\"\")","v":{"$error":"#N/A"}},{"$f":"IF(INDIRECT(\"c\" & (VLOOKUP(Switch!$D$27,$F$2:$G$44,2,FALSE)+ROW()-2))=Switch!$D$27,INDIRECT(\"a\" & (VLOOKUP(Switch!$D$27,$F$2:$G$44,2,FALSE)+ROW()-2)),\"\")","v":{"$error":"#N/A"}},{"$f":"IF(INDIRECT(\"c\" & (VLOOKUP(Switch!$D$28,$F$2:$G$44,2,FALSE)+ROW()-2))=Switch!$D$28,INDIRECT(\"a\" & (VLOOKUP(Switch!$D$28,$F$2:$G$44,2,FALSE)+ROW()-2)),\"\")","v":{"$error":"#N/A"}},{"$f":"IF(INDIRECT(\"c\" & (VLOOKUP(Switch!$D$29,$F$2:$G$44,2,FALSE)+ROW()-2))=Switch!$D$29,INDIRECT(\"a\" & (VLOOKUP(Switch!$D$29,$F$2:$G$44,2,FALSE)+ROW()-2)),\"\")","v":{"$error":"#N/A"}},{"$f":"IF(INDIRECT(\"c\" & (VLOOKUP(Switch!$D$30,$F$2:$G$44,2,FALSE)+ROW()-2))=Switch!$D$30,INDIRECT(\"a\" & (VLOOKUP(Switch!$D$30,$F$2:$G$44,2,FALSE)+ROW()-2)),\"\")","v":{"$error":"#N/A"}},{"$f":"IF(INDIRECT(\"c\" & (VLOOKUP(Switch!$D$31,$F$2:$G$44,2,FALSE)+ROW()-2))=Switch!$D$31,INDIRECT(\"a\" & (VLOOKUP(Switch!$D$31,$F$2:$G$44,2,FALSE)+ROW()-2)),\"\")","v":{"$error":"#N/A"}},{"$f":"IF(INDIRECT(\"c\" & (VLOOKUP(Switch!$D$32,$F$2:$G$44,2,FALSE)+ROW()-2))=Switch!$D$32,INDIRECT(\"a\" & (VLOOKUP(Switch!$D$32,$F$2:$G$44,2,FALSE)+ROW()-2)),\"\")","v":{"$error":"#N/A"}},{"$f":"IF(INDIRECT(\"c\" & (VLOOKUP(Switch!$D$33,$F$2:$G$44,2,FALSE)+ROW()-2))=Switch!$D$33,INDIRECT(\"a\" & (VLOOKUP(Switch!$D$33,$F$2:$G$44,2,FALSE)+ROW()-2)),\"\")","v":{"$error":"#N/A"}},{"$f":"IF(INDIRECT(\"c\" & (VLOOKUP(Switch!$D$34,$F$2:$G$44,2,FALSE)+ROW()-2))=Switch!$D$34,INDIRECT(\"a\" & (VLOOKUP(Switch!$D$34,$F$2:$G$44,2,FALSE)+ROW()-2)),\"\")","v":{"$error":"#N/A"}},{"$f":"IF(INDIRECT(\"c\" & (VLOOKUP(Switch!$D$35,$F$2:$G$44,2,FALSE)+ROW()-2))=Switch!$D$35,INDIRECT(\"a\" & (VLOOKUP(Switch!$D$35,$F$2:$G$44,2,FALSE)+ROW()-2)),\"\")","v":{"$error":"#N/A"}},{"$f":"IF(INDIRECT(\"c\" & (VLOOKUP(Switch!$D$36,$F$2:$G$44,2,FALSE)+ROW()-2))=Switch!$D$36,INDIRECT(\"a\" & (VLOOKUP(Switch!$D$36,$F$2:$G$44,2,FALSE)+ROW()-2)),\"\")","v":{"$error":"#N/A"}},{"$f":"IF(INDIRECT(\"c\" & (VLOOKUP(Switch!$D$37,$F$2:$G$44,2,FALSE)+ROW()-2))=Switch!$D$37,INDIRECT(\"a\" & (VLOOKUP(Switch!$D$37,$F$2:$G$44,2,FALSE)+ROW()-2)),\"\")","v":{"$error":"#N/A"}},{"$f":"IF(INDIRECT(\"c\" & (VLOOKUP(Switch!$D$38,$F$2:$G$44,2,FALSE)+ROW()-2))=Switch!$D$38,INDIRECT(\"a\" & (VLOOKUP(Switch!$D$38,$F$2:$G$44,2,FALSE)+ROW()-2)),\"\")","v":{"$error":"#N/A"}},{"$f":"IF(INDIRECT(\"c\" & (VLOOKUP(Switch!$D$39,$F$2:$G$44,2,FALSE)+ROW()-2))=Switch!$D$39,INDIRECT(\"a\" & (VLOOKUP(Switch!$D$39,$F$2:$G$44,2,FALSE)+ROW()-2)),\"\")","v":{"$error":"#N/A"}},{"$f":"IF(INDIRECT(\"c\" & (VLOOKUP(Switch!$D$40,$F$2:$G$44,2,FALSE)+ROW()-2))=Switch!$D$40,INDIRECT(\"a\" & (VLOOKUP(Switch!$D$40,$F$2:$G$44,2,FALSE)+ROW()-2)),\"\")","v":{"$error":"#N/A"}},{"$f":"IF(INDIRECT(\"c\" & (VLOOKUP(Switch!$D$52,$F$2:$G$44,2,FALSE)+ROW()-2))=Switch!$D$52,INDIRECT(\"a\" & (VLOOKUP(Switch!$D$52,$F$2:$G$44,2,FALSE)+ROW()-2)),\"\")","v":{"$error":"#N/A"}},{"$f":"IF(INDIRECT(\"c\" & (VLOOKUP(Switch!$D$53,$F$2:$G$44,2,FALSE)+ROW()-2))=Switch!$D$53,INDIRECT(\"a\" & (VLOOKUP(Switch!$D$53,$F$2:$G$44,2,FALSE)+ROW()-2)),\"\")","v":{"$error":"#N/A"}},{"$f":"IF(INDIRECT(\"c\" & (VLOOKUP(Switch!$D$54,$F$2:$G$44,2,FALSE)+ROW()-2))=Switch!$D$54,INDIRECT(\"a\" & (VLOOKUP(Switch!$D$54,$F$2:$G$44,2,FALSE)+ROW()-2)),\"\")","v":{"$error":"#N/A"}},{"$f":"IF(INDIRECT(\"c\" & (VLOOKUP(Switch!$D$55,$F$2:$G$44,2,FALSE)+ROW()-2))=Switch!$D$55,INDIRECT(\"a\" & (VLOOKUP(Switch!$D$55,$F$2:$G$44,2,FALSE)+ROW()-2)),\"\")","v":{"$error":"#N/A"}},{"$f":"IF(INDIRECT(\"c\" & (VLOOKUP(Switch!$D$56,$F$2:$G$44,2,FALSE)+ROW()-2))=Switch!$D$56,INDIRECT(\"a\" & (VLOOKUP(Switch!$D$56,$F$2:$G$44,2,FALSE)+ROW()-2)),\"\")","v":{"$error":"#N/A"}},{"$f":"IF(INDIRECT(\"c\" & (VLOOKUP(Switch!$D$57,$F$2:$G$44,2,FALSE)+ROW()-2))=Switch!$D$57,INDIRECT(\"a\" & (VLOOKUP(Switch!$D$57,$F$2:$G$44,2,FALSE)+ROW()-2)),\"\")","v":{"$error":"#N/A"}},{"$f":"IF(INDIRECT(\"c\" & (VLOOKUP(Switch!$D$58,$F$2:$G$44,2,FALSE)+ROW()-2))=Switch!$D$58,INDIRECT(\"a\" & (VLOOKUP(Switch!$D$58,$F$2:$G$44,2,FALSE)+ROW()-2)),\"\")","v":{"$error":"#N/A"}},{"$f":"IF(INDIRECT(\"c\" & (VLOOKUP(Switch!$D$59,$F$2:$G$44,2,FALSE)+ROW()-2))=Switch!$D$59,INDIRECT(\"a\" & (VLOOKUP(Switch!$D$59,$F$2:$G$44,2,FALSE)+ROW()-2)),\"\")","v":{"$error":"#N/A"}},{"$f":"IF(INDIRECT(\"c\" & (VLOOKUP(Switch!$D$60,$F$2:$G$44,2,FALSE)+ROW()-2))=Switch!$D$60,INDIRECT(\"a\" & (VLOOKUP(Switch!$D$60,$F$2:$G$44,2,FALSE)+ROW()-2)),\"\")","v":{"$error":"#N/A"}},{"$f":"IF(INDIRECT(\"c\" & (VLOOKUP(Switch!$D$61,$F$2:$G$44,2,FALSE)+ROW()-2))=Switch!$D$61,INDIRECT(\"a\" & (VLOOKUP(Switch!$D$61,$F$2:$G$44,2,FALSE)+ROW()-2)),\"\")","v":{"$error":"#N/A"}},{"$f":"IF(INDIRECT(\"c\" & (VLOOKUP(Switch!$D$62,$F$2:$G$44,2,FALSE)+ROW()-2))=Switch!$D$62,INDIRECT(\"a\" & (VLOOKUP(Switch!$D$62,$F$2:$G$44,2,FALSE)+ROW()-2)),\"\")","v":{"$error":"#N/A"}},{"$f":"IF(INDIRECT(\"c\" & (VLOOKUP(Switch!$D$63,$F$2:$G$44,2,FALSE)+ROW()-2))=Switch!$D$63,INDIRECT(\"a\" & (VLOOKUP(Switch!$D$63,$F$2:$G$44,2,FALSE)+ROW()-2)),\"\")","v":{"$error":"#N/A"}},{"$f":"IF(INDIRECT(\"c\" & (VLOOKUP(Switch!$D$64,$F$2:$G$44,2,FALSE)+ROW()-2))=Switch!$D$64,INDIRECT(\"a\" & (VLOOKUP(Switch!$D$64,$F$2:$G$44,2,FALSE)+ROW()-2)),\"\")","v":{"$error":"#N/A"}},{"$f":"IF(INDIRECT(\"c\" & (VLOOKUP(Switch!$D$65,$F$2:$G$44,2,FALSE)+ROW()-2))=Switch!$D$65,INDIRECT(\"a\" & (VLOOKUP(Switch!$D$65,$F$2:$G$44,2,FALSE)+ROW()-2)),\"\")","v":{"$error":"#N/A"}},{"$f":"IF(INDIRECT(\"c\" & (VLOOKUP(Switch!$D$66,$F$2:$G$44,2,FALSE)+ROW()-2))=Switch!$D$66,INDIRECT(\"a\" & (VLOOKUP(Switch!$D$66,$F$2:$G$44,2,FALSE)+ROW()-2)),\"\")","v":{"$error":"#N/A"}}]
["Multi Asset IP Balanced Defensive Fund A","MADB1","IP Management Company (Pty) Ltd",{"$f":"ROW()","v":282},null,null,{"$f":"VLOOKUP(F282,$C$2:$D$637,2,FALSE)","v":{"$error":"#N/A"}},{"$f":"IF(INDIRECT(\"c\" & (VLOOKUP(Switch!$D$26,$F$2:$G$44,2,FALSE)+ROW()-2))=Switch!$D$26,INDIRECT(\"a\" & (VLOOKUP(Switch!$D$26,$F$2:$G$44,2,FALSE)+ROW()-2)),\"\")","v":{"$error":"#N/A"}},{"$f":"IF(INDIRECT(\"c\" & (VLOOKUP(Switch!$D$27,$F$2:$G$44,2,FALSE)+ROW()-2))=Switch!$D$27,INDIRECT(\"a\" & (VLOOKUP(Switch!$D$27,$F$2:$G$44,2,FALSE)+ROW()-2)),\"\")","v":{"$error":"#N/A"}},{"$f":"IF(INDIRECT(\"c\" & (VLOOKUP(Switch!$D$28,$F$2:$G$44,2,FALSE)+ROW()-2))=Switch!$D$28,INDIRECT(\"a\" & (VLOOKUP(Switch!$D$28,$F$2:$G$44,2,FALSE)+ROW()-2)),\"\")","v":{"$error":"#N/A"}},{"$f":"IF(INDIRECT(\"c\" & (VLOOKUP(Switch!$D$29,$F$2:$G$44,2,FALSE)+ROW()-2))=Switch!$D$29,INDIRECT(\"a\" & (VLOOKUP(Switch!$D$29,$F$2:$G$44,2,FALSE)+ROW()-2)),\"\")","v":{"$error":"#N/A"}},{"$f":"IF(INDIRECT(\"c\" & (VLOOKUP(Switch!$D$30,$F$2:$G$44,2,FALSE)+ROW()-2))=Switch!$D$30,INDIRECT(\"a\" & (VLOOKUP(Switch!$D$30,$F$2:$G$44,2,FALSE)+ROW()-2)),\"\")","v":{"$error":"#N/A"}},{"$f":"IF(INDIRECT(\"c\" & (VLOOKUP(Switch!$D$31,$F$2:$G$44,2,FALSE)+ROW()-2))=Switch!$D$31,INDIRECT(\"a\" & (VLOOKUP(Switch!$D$31,$F$2:$G$44,2,FALSE)+ROW()-2)),\"\")","v":{"$error":"#N/A"}},{"$f":"IF(INDIRECT(\"c\" & (VLOOKUP(Switch!$D$32,$F$2:$G$44,2,FALSE)+ROW()-2))=Switch!$D$32,INDIRECT(\"a\" & (VLOOKUP(Switch!$D$32,$F$2:$G$44,2,FALSE)+ROW()-2)),\"\")","v":{"$error":"#N/A"}},{"$f":"IF(INDIRECT(\"c\" & (VLOOKUP(Switch!$D$33,$F$2:$G$44,2,FALSE)+ROW()-2))=Switch!$D$33,INDIRECT(\"a\" & (VLOOKUP(Switch!$D$33,$F$2:$G$44,2,FALSE)+ROW()-2)),\"\")","v":{"$error":"#N/A"}},{"$f":"IF(INDIRECT(\"c\" & (VLOOKUP(Switch!$D$34,$F$2:$G$44,2,FALSE)+ROW()-2))=Switch!$D$34,INDIRECT(\"a\" & (VLOOKUP(Switch!$D$34,$F$2:$G$44,2,FALSE)+ROW()-2)),\"\")","v":{"$error":"#N/A"}},{"$f":"IF(INDIRECT(\"c\" & (VLOOKUP(Switch!$D$35,$F$2:$G$44,2,FALSE)+ROW()-2))=Switch!$D$35,INDIRECT(\"a\" & (VLOOKUP(Switch!$D$35,$F$2:$G$44,2,FALSE)+ROW()-2)),\"\")","v":{"$error":"#N/A"}},{"$f":"IF(INDIRECT(\"c\" & (VLOOKUP(Switch!$D$36,$F$2:$G$44,2,FALSE)+ROW()-2))=Switch!$D$36,INDIRECT(\"a\" & (VLOOKUP(Switch!$D$36,$F$2:$G$44,2,FALSE)+ROW()-2)),\"\")","v":{"$error":"#N/A"}},{"$f":"IF(INDIRECT(\"c\" & (VLOOKUP(Switch!$D$37,$F$2:$G$44,2,FALSE)+ROW()-2))=Switch!$D$37,INDIRECT(\"a\" & (VLOOKUP(Switch!$D$37,$F$2:$G$44,2,FALSE)+ROW()-2)),\"\")","v":{"$error":"#N/A"}},{"$f":"IF(INDIRECT(\"c\" & (VLOOKUP(Switch!$D$38,$F$2:$G$44,2,FALSE)+ROW()-2))=Switch!$D$38,INDIRECT(\"a\" & (VLOOKUP(Switch!$D$38,$F$2:$G$44,2,FALSE)+ROW()-2)),\"\")","v":{"$error":"#N/A"}},{"$f":"IF(INDIRECT(\"c\" & (VLOOKUP(Switch!$D$39,$F$2:$G$44,2,FALSE)+ROW()-2))=Switch!$D$39,INDIRECT(\"a\" & (VLOOKUP(Switch!$D$39,$F$2:$G$44,2,FALSE)+ROW()-2)),\"\")","v":{"$error":"#N/A"}},{"$f":"IF(INDIRECT(\"c\" & (VLOOKUP(Switch!$D$40,$F$2:$G$44,2,FALSE)+ROW()-2))=Switch!$D$40,INDIRECT(\"a\" & (VLOOKUP(Switch!$D$40,$F$2:$G$44,2,FALSE)+ROW()-2)),\"\")","v":{"$error":"#N/A"}},{"$f":"IF(INDIRECT(\"c\" & (VLOOKUP(Switch!$D$52,$F$2:$G$44,2,FALSE)+ROW()-2))=Switch!$D$52,INDIRECT(\"a\" & (VLOOKUP(Switch!$D$52,$F$2:$G$44,2,FALSE)+ROW()-2)),\"\")","v":{"$error":"#N/A"}},{"$f":"IF(INDIRECT(\"c\" & (VLOOKUP(Switch!$D$53,$F$2:$G$44,2,FALSE)+ROW()-2))=Switch!$D$53,INDIRECT(\"a\" & (VLOOKUP(Switch!$D$53,$F$2:$G$44,2,FALSE)+ROW()-2)),\"\")","v":{"$error":"#N/A"}},{"$f":"IF(INDIRECT(\"c\" & (VLOOKUP(Switch!$D$54,$F$2:$G$44,2,FALSE)+ROW()-2))=Switch!$D$54,INDIRECT(\"a\" & (VLOOKUP(Switch!$D$54,$F$2:$G$44,2,FALSE)+ROW()-2)),\"\")","v":{"$error":"#N/A"}},{"$f":"IF(INDIRECT(\"c\" & (VLOOKUP(Switch!$D$55,$F$2:$G$44,2,FALSE)+ROW()-2))=Switch!$D$55,INDIRECT(\"a\" & (VLOOKUP(Switch!$D$55,$F$2:$G$44,2,FALSE)+ROW()-2)),\"\")","v":{"$error":"#N/A"}},{"$f":"IF(INDIRECT(\"c\" & (VLOOKUP(Switch!$D$56,$F$2:$G$44,2,FALSE)+ROW()-2))=Switch!$D$56,INDIRECT(\"a\" & (VLOOKUP(Switch!$D$56,$F$2:$G$44,2,FALSE)+ROW()-2)),\"\")","v":{"$error":"#N/A"}},{"$f":"IF(INDIRECT(\"c\" & (VLOOKUP(Switch!$D$57,$F$2:$G$44,2,FALSE)+ROW()-2))=Switch!$D$57,INDIRECT(\"a\" & (VLOOKUP(Switch!$D$57,$F$2:$G$44,2,FALSE)+ROW()-2)),\"\")","v":{"$error":"#N/A"}},{"$f":"IF(INDIRECT(\"c\" & (VLOOKUP(Switch!$D$58,$F$2:$G$44,2,FALSE)+ROW()-2))=Switch!$D$58,INDIRECT(\"a\" & (VLOOKUP(Switch!$D$58,$F$2:$G$44,2,FALSE)+ROW()-2)),\"\")","v":{"$error":"#N/A"}},{"$f":"IF(INDIRECT(\"c\" & (VLOOKUP(Switch!$D$59,$F$2:$G$44,2,FALSE)+ROW()-2))=Switch!$D$59,INDIRECT(\"a\" & (VLOOKUP(Switch!$D$59,$F$2:$G$44,2,FALSE)+ROW()-2)),\"\")","v":{"$error":"#N/A"}},{"$f":"IF(INDIRECT(\"c\" & (VLOOKUP(Switch!$D$60,$F$2:$G$44,2,FALSE)+ROW()-2))=Switch!$D$60,INDIRECT(\"a\" & (VLOOKUP(Switch!$D$60,$F$2:$G$44,2,FALSE)+ROW()-2)),\"\")","v":{"$error":"#N/A"}},{"$f":"IF(INDIRECT(\"c\" & (VLOOKUP(Switch!$D$61,$F$2:$G$44,2,FALSE)+ROW()-2))=Switch!$D$61,INDIRECT(\"a\" & (VLOOKUP(Switch!$D$61,$F$2:$G$44,2,FALSE)+ROW()-2)),\"\")","v":{"$error":"#N/A"}},{"$f":"IF(INDIRECT(\"c\" & (VLOOKUP(Switch!$D$62,$F$2:$G$44,2,FALSE)+ROW()-2))=Switch!$D$62,INDIRECT(\"a\" & (VLOOKUP(Switch!$D$62,$F$2:$G$44,2,FALSE)+ROW()-2)),\"\")","v":{"$error":"#N/A"}},{"$f":"IF(INDIRECT(\"c\" & (VLOOKUP(Switch!$D$63,$F$2:$G$44,2,FALSE)+ROW()-2))=Switch!$D$63,INDIRECT(\"a\" & (VLOOKUP(Switch!$D$63,$F$2:$G$44,2,FALSE)+ROW()-2)),\"\")","v":{"$error":"#N/A"}},{"$f":"IF(INDIRECT(\"c\" & (VLOOKUP(Switch!$D$64,$F$2:$G$44,2,FALSE)+ROW()-2))=Switch!$D$64,INDIRECT(\"a\" & (VLOOKUP(Switch!$D$64,$F$2:$G$44,2,FALSE)+ROW()-2)),\"\")","v":{"$error":"#N/A"}},{"$f":"IF(INDIRECT(\"c\" & (VLOOKUP(Switch!$D$65,$F$2:$G$44,2,FALSE)+ROW()-2))=Switch!$D$65,INDIRECT(\"a\" & (VLOOKUP(Switch!$D$65,$F$2:$G$44,2,FALSE)+ROW()-2)),\"\")","v":{"$error":"#N/A"}},{"$f":"IF(INDIRECT(\"c\" & (VLOOKUP(Switch!$D$66,$F$2:$G$44,2,FALSE)+ROW()-2))=Switch!$D$66,INDIRECT(\"a\" & (VLOOKUP(Switch!$D$66,$F$2:$G$44,2,FALSE)+ROW()-2)),\"\")","v":{"$error":"#N/A"}}]
["Multi Asset IP Balanced Defensive Fund B1","MADB1","IP Management Company (Pty) Ltd",{"$f":"ROW()","v":283},null,null,{"$f":"VLOOKUP(F283,$C$2:$D$637,2,FALSE)","v":{"$error":"#N/A"}},{"$f":"IF(INDIRECT(\"c\" & (VLOOKUP(Switch!$D$26,$F$2:$G$44,2,FALSE)+ROW()-2))=Switch!$D$26,INDIRECT(\"a\" & (VLOOKUP(Switch!$D$26,$F$2:$G$44,2,FALSE)+ROW()-2)),\"\")","v":{"$error":"#N/A"}},{"$f":"IF(INDIRECT(\"c\" & (VLOOKUP(Switch!$D$27,$F$2:$G$44,2,FALSE)+ROW()-2))=Switch!$D$27,INDIRECT(\"a\" & (VLOOKUP(Switch!$D$27,$F$2:$G$44,2,FALSE)+ROW()-2)),\"\")","v":{"$error":"#N/A"}},{"$f":"IF(INDIRECT(\"c\" & (VLOOKUP(Switch!$D$28,$F$2:$G$44,2,FALSE)+ROW()-2))=Switch!$D$28,INDIRECT(\"a\" & (VLOOKUP(Switch!$D$28,$F$2:$G$44,2,FALSE)+ROW()-2)),\"\")","v":{"$error":"#N/A"}},{"$f":"IF(INDIRECT(\"c\" & (VLOOKUP(Switch!$D$29,$F$2:$G$44,2,FALSE)+ROW()-2))=Switch!$D$29,INDIRECT(\"a\" & (VLOOKUP(Switch!$D$29,$F$2:$G$44,2,FALSE)+ROW()-2)),\"\")","v":{"$error":"#N/A"}},{"$f":"IF(INDIRECT(\"c\" & (VLOOKUP(Switch!$D$30,$F$2:$G$44,2,FALSE)+ROW()-2))=Switch!$D$30,INDIRECT(\"a\" & (VLOOKUP(Switch!$D$30,$F$2:$G$44,2,FALSE)+ROW()-2)),\"\")","v":{"$error":"#N/A"}},{"$f":"IF(INDIRECT(\"c\" & (VLOOKUP(Switch!$D$31,$F$2:$G$44,2,FALSE)+ROW()-2))=Switch!$D$31,INDIRECT(\"a\" & (VLOOKUP(Switch!$D$31,$F$2:$G$44,2,FALSE)+ROW()-2)),\"\")","v":{"$error":"#N/A"}},{"$f":"IF(INDIRECT(\"c\" & (VLOOKUP(Switch!$D$32,$F$2:$G$44,2,FALSE)+ROW()-2))=Switch!$D$32,INDIRECT(\"a\" & (VLOOKUP(Switch!$D$32,$F$2:$G$44,2,FALSE)+ROW()-2)),\"\")","v":{"$error":"#N/A"}},{"$f":"IF(INDIRECT(\"c\" & (VLOOKUP(Switch!$D$33,$F$2:$G$44,2,FALSE)+ROW()-2))=Switch!$D$33,INDIRECT(\"a\" & (VLOOKUP(Switch!$D$33,$F$2:$G$44,2,FALSE)+ROW()-2)),\"\")","v":{"$error":"#N/A"}},{"$f":"IF(INDIRECT(\"c\" & (VLOOKUP(Switch!$D$34,$F$2:$G$44,2,FALSE)+ROW()-2))=Switch!$D$34,INDIRECT(\"a\" & (VLOOKUP(Switch!$D$34,$F$2:$G$44,2,FALSE)+ROW()-2)),\"\")","v":{"$error":"#N/A"}},{"$f":"IF(INDIRECT(\"c\" & (VLOOKUP(Switch!$D$35,$F$2:$G$44,2,FALSE)+ROW()-2))=Switch!$D$35,INDIRECT(\"a\" & (VLOOKUP(Switch!$D$35,$F$2:$G$44,2,FALSE)+ROW()-2)),\"\")","v":{"$error":"#N/A"}},{"$f":"IF(INDIRECT(\"c\" & (VLOOKUP(Switch!$D$36,$F$2:$G$44,2,FALSE)+ROW()-2))=Switch!$D$36,INDIRECT(\"a\" & (VLOOKUP(Switch!$D$36,$F$2:$G$44,2,FALSE)+ROW()-2)),\"\")","v":{"$error":"#N/A"}},{"$f":"IF(INDIRECT(\"c\" & (VLOOKUP(Switch!$D$37,$F$2:$G$44,2,FALSE)+ROW()-2))=Switch!$D$37,INDIRECT(\"a\" & (VLOOKUP(Switch!$D$37,$F$2:$G$44,2,FALSE)+ROW()-2)),\"\")","v":{"$error":"#N/A"}},{"$f":"IF(INDIRECT(\"c\" & (VLOOKUP(Switch!$D$38,$F$2:$G$44,2,FALSE)+ROW()-2))=Switch!$D$38,INDIRECT(\"a\" & (VLOOKUP(Switch!$D$38,$F$2:$G$44,2,FALSE)+ROW()-2)),\"\")","v":{"$error":"#N/A"}},{"$f":"IF(INDIRECT(\"c\" & (VLOOKUP(Switch!$D$39,$F$2:$G$44,2,FALSE)+ROW()-2))=Switch!$D$39,INDIRECT(\"a\" & (VLOOKUP(Switch!$D$39,$F$2:$G$44,2,FALSE)+ROW()-2)),\"\")","v":{"$error":"#N/A"}},{"$f":"IF(INDIRECT(\"c\" & (VLOOKUP(Switch!$D$40,$F$2:$G$44,2,FALSE)+ROW()-2))=Switch!$D$40,INDIRECT(\"a\" & (VLOOKUP(Switch!$D$40,$F$2:$G$44,2,FALSE)+ROW()-2)),\"\")","v":{"$error":"#N/A"}},{"$f":"IF(INDIRECT(\"c\" & (VLOOKUP(Switch!$D$52,$F$2:$G$44,2,FALSE)+ROW()-2))=Switch!$D$52,INDIRECT(\"a\" & (VLOOKUP(Switch!$D$52,$F$2:$G$44,2,FALSE)+ROW()-2)),\"\")","v":{"$error":"#N/A"}},{"$f":"IF(INDIRECT(\"c\" & (VLOOKUP(Switch!$D$53,$F$2:$G$44,2,FALSE)+ROW()-2))=Switch!$D$53,INDIRECT(\"a\" & (VLOOKUP(Switch!$D$53,$F$2:$G$44,2,FALSE)+ROW()-2)),\"\")","v":{"$error":"#N/A"}},{"$f":"IF(INDIRECT(\"c\" & (VLOOKUP(Switch!$D$54,$F$2:$G$44,2,FALSE)+ROW()-2))=Switch!$D$54,INDIRECT(\"a\" & (VLOOKUP(Switch!$D$54,$F$2:$G$44,2,FALSE)+ROW()-2)),\"\")","v":{"$error":"#N/A"}},{"$f":"IF(INDIRECT(\"c\" & (VLOOKUP(Switch!$D$55,$F$2:$G$44,2,FALSE)+ROW()-2))=Switch!$D$55,INDIRECT(\"a\" & (VLOOKUP(Switch!$D$55,$F$2:$G$44,2,FALSE)+ROW()-2)),\"\")","v":{"$error":"#N/A"}},{"$f":"IF(INDIRECT(\"c\" & (VLOOKUP(Switch!$D$56,$F$2:$G$44,2,FALSE)+ROW()-2))=Switch!$D$56,INDIRECT(\"a\" & (VLOOKUP(Switch!$D$56,$F$2:$G$44,2,FALSE)+ROW()-2)),\"\")","v":{"$error":"#N/A"}},{"$f":"IF(INDIRECT(\"c\" & (VLOOKUP(Switch!$D$57,$F$2:$G$44,2,FALSE)+ROW()-2))=Switch!$D$57,INDIRECT(\"a\" & (VLOOKUP(Switch!$D$57,$F$2:$G$44,2,FALSE)+ROW()-2)),\"\")","v":{"$error":"#N/A"}},{"$f":"IF(INDIRECT(\"c\" & (VLOOKUP(Switch!$D$58,$F$2:$G$44,2,FALSE)+ROW()-2))=Switch!$D$58,INDIRECT(\"a\" & (VLOOKUP(Switch!$D$58,$F$2:$G$44,2,FALSE)+ROW()-2)),\"\")","v":{"$error":"#N/A"}},{"$f":"IF(INDIRECT(\"c\" & (VLOOKUP(Switch!$D$59,$F$2:$G$44,2,FALSE)+ROW()-2))=Switch!$D$59,INDIRECT(\"a\" & (VLOOKUP(Switch!$D$59,$F$2:$G$44,2,FALSE)+ROW()-2)),\"\")","v":{"$error":"#N/A"}},{"$f":"IF(INDIRECT(\"c\" & (VLOOKUP(Switch!$D$60,$F$2:$G$44,2,FALSE)+ROW()-2))=Switch!$D$60,INDIRECT(\"a\" & (VLOOKUP(Switch!$D$60,$F$2:$G$44,2,FALSE)+ROW()-2)),\"\")","v":{"$error":"#N/A"}},{"$f":"IF(INDIRECT(\"c\" & (VLOOKUP(Switch!$D$61,$F$2:$G$44,2,FALSE)+ROW()-2))=Switch!$D$61,INDIRECT(\"a\" & (VLOOKUP(Switch!$D$61,$F$2:$G$44,2,FALSE)+ROW()-2)),\"\")","v":{"$error":"#N/A"}},{"$f":"IF(INDIRECT(\"c\" & (VLOOKUP(Switch!$D$62,$F$2:$G$44,2,FALSE)+ROW()-2))=Switch!$D$62,INDIRECT(\"a\" & (VLOOKUP(Switch!$D$62,$F$2:$G$44,2,FALSE)+ROW()-2)),\"\")","v":{"$error":"#N/A"}},{"$f":"IF(INDIRECT(\"c\" & (VLOOKUP(Switch!$D$63,$F$2:$G$44,2,FALSE)+ROW()-2))=Switch!$D$63,INDIRECT(\"a\" & (VLOOKUP(Switch!$D$63,$F$2:$G$44,2,FALSE)+ROW()-2)),\"\")","v":{"$error":"#N/A"}},{"$f":"IF(INDIRECT(\"c\" & (VLOOKUP(Switch!$D$64,$F$2:$G$44,2,FALSE)+ROW()-2))=Switch!$D$64,INDIRECT(\"a\" & (VLOOKUP(Switch!$D$64,$F$2:$G$44,2,FALSE)+ROW()-2)),\"\")","v":{"$error":"#N/A"}},{"$f":"IF(INDIRECT(\"c\" & (VLOOKUP(Switch!$D$65,$F$2:$G$44,2,FALSE)+ROW()-2))=Switch!$D$65,INDIRECT(\"a\" & (VLOOKUP(Switch!$D$65,$F$2:$G$44,2,FALSE)+ROW()-2)),\"\")","v":{"$error":"#N/A"}},{"$f":"IF(INDIRECT(\"c\" & (VLOOKUP(Switch!$D$66,$F$2:$G$44,2,FALSE)+ROW()-2))=Switch!$D$66,INDIRECT(\"a\" & (VLOOKUP(Switch!$D$66,$F$2:$G$44,2,FALSE)+ROW()-2)),\"\")","v":{"$error":"#N/A"}}]
["Multi Asset IP Balanced Fund A","MAIB1","IP Management Company (Pty) Ltd",{"$f":"ROW()","v":284},null,null,{"$f":"VLOOKUP(F284,$C$2:$D$637,2,FALSE)","v":{"$error":"#N/A"}},{"$f":"IF(INDIRECT(\"c\" & (VLOOKUP(Switch!$D$26,$F$2:$G$44,2,FALSE)+ROW()-2))=Switch!$D$26,INDIRECT(\"a\" & (VLOOKUP(Switch!$D$26,$F$2:$G$44,2,FALSE)+ROW()-2)),\"\")","v":{"$error":"#N/A"}},{"$f":"IF(INDIRECT(\"c\" & (VLOOKUP(Switch!$D$27,$F$2:$G$44,2,FALSE)+ROW()-2))=Switch!$D$27,INDIRECT(\"a\" & (VLOOKUP(Switch!$D$27,$F$2:$G$44,2,FALSE)+ROW()-2)),\"\")","v":{"$error":"#N/A"}},{"$f":"IF(INDIRECT(\"c\" & (VLOOKUP(Switch!$D$28,$F$2:$G$44,2,FALSE)+ROW()-2))=Switch!$D$28,INDIRECT(\"a\" & (VLOOKUP(Switch!$D$28,$F$2:$G$44,2,FALSE)+ROW()-2)),\"\")","v":{"$error":"#N/A"}},{"$f":"IF(INDIRECT(\"c\" & (VLOOKUP(Switch!$D$29,$F$2:$G$44,2,FALSE)+ROW()-2))=Switch!$D$29,INDIRECT(\"a\" & (VLOOKUP(Switch!$D$29,$F$2:$G$44,2,FALSE)+ROW()-2)),\"\")","v":{"$error":"#N/A"}},{"$f":"IF(INDIRECT(\"c\" & (VLOOKUP(Switch!$D$30,$F$2:$G$44,2,FALSE)+ROW()-2))=Switch!$D$30,INDIRECT(\"a\" & (VLOOKUP(Switch!$D$30,$F$2:$G$44,2,FALSE)+ROW()-2)),\"\")","v":{"$error":"#N/A"}},{"$f":"IF(INDIRECT(\"c\" & (VLOOKUP(Switch!$D$31,$F$2:$G$44,2,FALSE)+ROW()-2))=Switch!$D$31,INDIRECT(\"a\" & (VLOOKUP(Switch!$D$31,$F$2:$G$44,2,FALSE)+ROW()-2)),\"\")","v":{"$error":"#N/A"}},{"$f":"IF(INDIRECT(\"c\" & (VLOOKUP(Switch!$D$32,$F$2:$G$44,2,FALSE)+ROW()-2))=Switch!$D$32,INDIRECT(\"a\" & (VLOOKUP(Switch!$D$32,$F$2:$G$44,2,FALSE)+ROW()-2)),\"\")","v":{"$error":"#N/A"}},{"$f":"IF(INDIRECT(\"c\" & (VLOOKUP(Switch!$D$33,$F$2:$G$44,2,FALSE)+ROW()-2))=Switch!$D$33,INDIRECT(\"a\" & (VLOOKUP(Switch!$D$33,$F$2:$G$44,2,FALSE)+ROW()-2)),\"\")","v":{"$error":"#N/A"}},{"$f":"IF(INDIRECT(\"c\" & (VLOOKUP(Switch!$D$34,$F$2:$G$44,2,FALSE)+ROW()-2))=Switch!$D$34,INDIRECT(\"a\" & (VLOOKUP(Switch!$D$34,$F$2:$G$44,2,FALSE)+ROW()-2)),\"\")","v":{"$error":"#N/A"}},{"$f":"IF(INDIRECT(\"c\" & (VLOOKUP(Switch!$D$35,$F$2:$G$44,2,FALSE)+ROW()-2))=Switch!$D$35,INDIRECT(\"a\" & (VLOOKUP(Switch!$D$35,$F$2:$G$44,2,FALSE)+ROW()-2)),\"\")","v":{"$error":"#N/A"}},{"$f":"IF(INDIRECT(\"c\" & (VLOOKUP(Switch!$D$36,$F$2:$G$44,2,FALSE)+ROW()-2))=Switch!$D$36,INDIRECT(\"a\" & (VLOOKUP(Switch!$D$36,$F$2:$G$44,2,FALSE)+ROW()-2)),\"\")","v":{"$error":"#N/A"}},{"$f":"IF(INDIRECT(\"c\" & (VLOOKUP(Switch!$D$37,$F$2:$G$44,2,FALSE)+ROW()-2))=Switch!$D$37,INDIRECT(\"a\" & (VLOOKUP(Switch!$D$37,$F$2:$G$44,2,FALSE)+ROW()-2)),\"\")","v":{"$error":"#N/A"}},{"$f":"IF(INDIRECT(\"c\" & (VLOOKUP(Switch!$D$38,$F$2:$G$44,2,FALSE)+ROW()-2))=Switch!$D$38,INDIRECT(\"a\" & (VLOOKUP(Switch!$D$38,$F$2:$G$44,2,FALSE)+ROW()-2)),\"\")","v":{"$error":"#N/A"}},{"$f":"IF(INDIRECT(\"c\" & (VLOOKUP(Switch!$D$39,$F$2:$G$44,2,FALSE)+ROW()-2))=Switch!$D$39,INDIRECT(\"a\" & (VLOOKUP(Switch!$D$39,$F$2:$G$44,2,FALSE)+ROW()-2)),\"\")","v":{"$error":"#N/A"}},{"$f":"IF(INDIRECT(\"c\" & (VLOOKUP(Switch!$D$40,$F$2:$G$44,2,FALSE)+ROW()-2))=Switch!$D$40,INDIRECT(\"a\" & (VLOOKUP(Switch!$D$40,$F$2:$G$44,2,FALSE)+ROW()-2)),\"\")","v":{"$error":"#N/A"}},{"$f":"IF(INDIRECT(\"c\" & (VLOOKUP(Switch!$D$52,$F$2:$G$44,2,FALSE)+ROW()-2))=Switch!$D$52,INDIRECT(\"a\" & (VLOOKUP(Switch!$D$52,$F$2:$G$44,2,FALSE)+ROW()-2)),\"\")","v":{"$error":"#N/A"}},{"$f":"IF(INDIRECT(\"c\" & (VLOOKUP(Switch!$D$53,$F$2:$G$44,2,FALSE)+ROW()-2))=Switch!$D$53,INDIRECT(\"a\" & (VLOOKUP(Switch!$D$53,$F$2:$G$44,2,FALSE)+ROW()-2)),\"\")","v":{"$error":"#N/A"}},{"$f":"IF(INDIRECT(\"c\" & (VLOOKUP(Switch!$D$54,$F$2:$G$44,2,FALSE)+ROW()-2))=Switch!$D$54,INDIRECT(\"a\" & (VLOOKUP(Switch!$D$54,$F$2:$G$44,2,FALSE)+ROW()-2)),\"\")","v":{"$error":"#N/A"}},{"$f":"IF(INDIRECT(\"c\" & (VLOOKUP(Switch!$D$55,$F$2:$G$44,2,FALSE)+ROW()-2))=Switch!$D$55,INDIRECT(\"a\" & (VLOOKUP(Switch!$D$55,$F$2:$G$44,2,FALSE)+ROW()-2)),\"\")","v":{"$error":"#N/A"}},{"$f":"IF(INDIRECT(\"c\" & (VLOOKUP(Switch!$D$56,$F$2:$G$44,2,FALSE)+ROW()-2))=Switch!$D$56,INDIRECT(\"a\" & (VLOOKUP(Switch!$D$56,$F$2:$G$44,2,FALSE)+ROW()-2)),\"\")","v":{"$error":"#N/A"}},{"$f":"IF(INDIRECT(\"c\" & (VLOOKUP(Switch!$D$57,$F$2:$G$44,2,FALSE)+ROW()-2))=Switch!$D$57,INDIRECT(\"a\" & (VLOOKUP(Switch!$D$57,$F$2:$G$44,2,FALSE)+ROW()-2)),\"\")","v":{"$error":"#N/A"}},{"$f":"IF(INDIRECT(\"c\" & (VLOOKUP(Switch!$D$58,$F$2:$G$44,2,FALSE)+ROW()-2))=Switch!$D$58,INDIRECT(\"a\" & (VLOOKUP(Switch!$D$58,$F$2:$G$44,2,FALSE)+ROW()-2)),\"\")","v":{"$error":"#N/A"}},{"$f":"IF(INDIRECT(\"c\" & (VLOOKUP(Switch!$D$59,$F$2:$G$44,2,FALSE)+ROW()-2))=Switch!$D$59,INDIRECT(\"a\" & (VLOOKUP(Switch!$D$59,$F$2:$G$44,2,FALSE)+ROW()-2)),\"\")","v":{"$error":"#N/A"}},{"$f":"IF(INDIRECT(\"c\" & (VLOOKUP(Switch!$D$60,$F$2:$G$44,2,FALSE)+ROW()-2))=Switch!$D$60,INDIRECT(\"a\" & (VLOOKUP(Switch!$D$60,$F$2:$G$44,2,FALSE)+ROW()-2)),\"\")","v":{"$error":"#N/A"}},{"$f":"IF(INDIRECT(\"c\" & (VLOOKUP(Switch!$D$61,$F$2:$G$44,2,FALSE)+ROW()-2))=Switch!$D$61,INDIRECT(\"a\" & (VLOOKUP(Switch!$D$61,$F$2:$G$44,2,FALSE)+ROW()-2)),\"\")","v":{"$error":"#N/A"}},{"$f":"IF(INDIRECT(\"c\" & (VLOOKUP(Switch!$D$62,$F$2:$G$44,2,FALSE)+ROW()-2))=Switch!$D$62,INDIRECT(\"a\" & (VLOOKUP(Switch!$D$62,$F$2:$G$44,2,FALSE)+ROW()-2)),\"\")","v":{"$error":"#N/A"}},{"$f":"IF(INDIRECT(\"c\" & (VLOOKUP(Switch!$D$63,$F$2:$G$44,2,FALSE)+ROW()-2))=Switch!$D$63,INDIRECT(\"a\" & (VLOOKUP(Switch!$D$63,$F$2:$G$44,2,FALSE)+ROW()-2)),\"\")","v":{"$error":"#N/A"}},{"$f":"IF(INDIRECT(\"c\" & (VLOOKUP(Switch!$D$64,$F$2:$G$44,2,FALSE)+ROW()-2))=Switch!$D$64,INDIRECT(\"a\" & (VLOOKUP(Switch!$D$64,$F$2:$G$44,2,FALSE)+ROW()-2)),\"\")","v":{"$error":"#N/A"}},{"$f":"IF(INDIRECT(\"c\" & (VLOOKUP(Switch!$D$65,$F$2:$G$44,2,FALSE)+ROW()-2))=Switch!$D$65,INDIRECT(\"a\" & (VLOOKUP(Switch!$D$65,$F$2:$G$44,2,FALSE)+ROW()-2)),\"\")","v":{"$error":"#N/A"}},{"$f":"IF(INDIRECT(\"c\" & (VLOOKUP(Switch!$D$66,$F$2:$G$44,2,FALSE)+ROW()-2))=Switch!$D$66,INDIRECT(\"a\" & (VLOOKUP(Switch!$D$66,$F$2:$G$44,2,FALSE)+ROW()-2)),\"\")","v":{"$error":"#N/A"}}]
["Multi Asset IP Balanced Fund B1","MAIB1","IP Management Company (Pty) Ltd",{"$f":"ROW()","v":285},null,null,{"$f":"VLOOKUP(F285,$C$2:$D$637,2,FALSE)","v":{"$error":"#N/A"}},{"$f":"IF(INDIRECT(\"c\" & (VLOOKUP(Switch!$D$26,$F$2:$G$44,2,FALSE)+ROW()-2))=Switch!$D$26,INDIRECT(\"a\" & (VLOOKUP(Switch!$D$26,$F$2:$G$44,2,FALSE)+ROW()-2)),\"\")","v":{"$error":"#N/A"}},{"$f":"IF(INDIRECT(\"c\" & (VLOOKUP(Switch!$D$27,$F$2:$G$44,2,FALSE)+ROW()-2))=Switch!$D$27,INDIRECT(\"a\" & (VLOOKUP(Switch!$D$27,$F$2:$G$44,2,FALSE)+ROW()-2)),\"\")","v":{"$error":"#N/A"}},{"$f":"IF(INDIRECT(\"c\" & (VLOOKUP(Switch!$D$28,$F$2:$G$44,2,FALSE)+ROW()-2))=Switch!$D$28,INDIRECT(\"a\" & (VLOOKUP(Switch!$D$28,$F$2:$G$44,2,FALSE)+ROW()-2)),\"\")","v":{"$error":"#N/A"}},{"$f":"IF(INDIRECT(\"c\" & (VLOOKUP(Switch!$D$29,$F$2:$G$44,2,FALSE)+ROW()-2))=Switch!$D$29,INDIRECT(\"a\" & (VLOOKUP(Switch!$D$29,$F$2:$G$44,2,FALSE)+ROW()-2)),\"\")","v":{"$error":"#N/A"}},{"$f":"IF(INDIRECT(\"c\" & (VLOOKUP(Switch!$D$30,$F$2:$G$44,2,FALSE)+ROW()-2))=Switch!$D$30,INDIRECT(\"a\" & (VLOOKUP(Switch!$D$30,$F$2:$G$44,2,FALSE)+ROW()-2)),\"\")","v":{"$error":"#N/A"}},{"$f":"IF(INDIRECT(\"c\" & (VLOOKUP(Switch!$D$31,$F$2:$G$44,2,FALSE)+ROW()-2))=Switch!$D$31,INDIRECT(\"a\" & (VLOOKUP(Switch!$D$31,$F$2:$G$44,2,FALSE)+ROW()-2)),\"\")","v":{"$error":"#N/A"}},{"$f":"IF(INDIRECT(\"c\" & (VLOOKUP(Switch!$D$32,$F$2:$G$44,2,FALSE)+ROW()-2))=Switch!$D$32,INDIRECT(\"a\" & (VLOOKUP(Switch!$D$32,$F$2:$G$44,2,FALSE)+ROW()-2)),\"\")","v":{"$error":"#N/A"}},{"$f":"IF(INDIRECT(\"c\" & (VLOOKUP(Switch!$D$33,$F$2:$G$44,2,FALSE)+ROW()-2))=Switch!$D$33,INDIRECT(\"a\" & (VLOOKUP(Switch!$D$33,$F$2:$G$44,2,FALSE)+ROW()-2)),\"\")","v":{"$error":"#N/A"}},{"$f":"IF(INDIRECT(\"c\" & (VLOOKUP(Switch!$D$34,$F$2:$G$44,2,FALSE)+ROW()-2))=Switch!$D$34,INDIRECT(\"a\" & (VLOOKUP(Switch!$D$34,$F$2:$G$44,2,FALSE)+ROW()-2)),\"\")","v":{"$error":"#N/A"}},{"$f":"IF(INDIRECT(\"c\" & (VLOOKUP(Switch!$D$35,$F$2:$G$44,2,FALSE)+ROW()-2))=Switch!$D$35,INDIRECT(\"a\" & (VLOOKUP(Switch!$D$35,$F$2:$G$44,2,FALSE)+ROW()-2)),\"\")","v":{"$error":"#N/A"}},{"$f":"IF(INDIRECT(\"c\" & (VLOOKUP(Switch!$D$36,$F$2:$G$44,2,FALSE)+ROW()-2))=Switch!$D$36,INDIRECT(\"a\" & (VLOOKUP(Switch!$D$36,$F$2:$G$44,2,FALSE)+ROW()-2)),\"\")","v":{"$error":"#N/A"}},{"$f":"IF(INDIRECT(\"c\" & (VLOOKUP(Switch!$D$37,$F$2:$G$44,2,FALSE)+ROW()-2))=Switch!$D$37,INDIRECT(\"a\" & (VLOOKUP(Switch!$D$37,$F$2:$G$44,2,FALSE)+ROW()-2)),\"\")","v":{"$error":"#N/A"}},{"$f":"IF(INDIRECT(\"c\" & (VLOOKUP(Switch!$D$38,$F$2:$G$44,2,FALSE)+ROW()-2))=Switch!$D$38,INDIRECT(\"a\" & (VLOOKUP(Switch!$D$38,$F$2:$G$44,2,FALSE)+ROW()-2)),\"\")","v":{"$error":"#N/A"}},{"$f":"IF(INDIRECT(\"c\" & (VLOOKUP(Switch!$D$39,$F$2:$G$44,2,FALSE)+ROW()-2))=Switch!$D$39,INDIRECT(\"a\" & (VLOOKUP(Switch!$D$39,$F$2:$G$44,2,FALSE)+ROW()-2)),\"\")","v":{"$error":"#N/A"}},{"$f":"IF(INDIRECT(\"c\" & (VLOOKUP(Switch!$D$40,$F$2:$G$44,2,FALSE)+ROW()-2))=Switch!$D$40,INDIRECT(\"a\" & (VLOOKUP(Switch!$D$40,$F$2:$G$44,2,FALSE)+ROW()-2)),\"\")","v":{"$error":"#N/A"}},{"$f":"IF(INDIRECT(\"c\" & (VLOOKUP(Switch!$D$52,$F$2:$G$44,2,FALSE)+ROW()-2))=Switch!$D$52,INDIRECT(\"a\" & (VLOOKUP(Switch!$D$52,$F$2:$G$44,2,FALSE)+ROW()-2)),\"\")","v":{"$error":"#N/A"}},{"$f":"IF(INDIRECT(\"c\" & (VLOOKUP(Switch!$D$53,$F$2:$G$44,2,FALSE)+ROW()-2))=Switch!$D$53,INDIRECT(\"a\" & (VLOOKUP(Switch!$D$53,$F$2:$G$44,2,FALSE)+ROW()-2)),\"\")","v":{"$error":"#N/A"}},{"$f":"IF(INDIRECT(\"c\" & (VLOOKUP(Switch!$D$54,$F$2:$G$44,2,FALSE)+ROW()-2))=Switch!$D$54,INDIRECT(\"a\" & (VLOOKUP(Switch!$D$54,$F$2:$G$44,2,FALSE)+ROW()-2)),\"\")","v":{"$error":"#N/A"}},{"$f":"IF(INDIRECT(\"c\" & (VLOOKUP(Switch!$D$55,$F$2:$G$44,2,FALSE)+ROW()-2))=Switch!$D$55,INDIRECT(\"a\" & (VLOOKUP(Switch!$D$55,$F$2:$G$44,2,FALSE)+ROW()-2)),\"\")","v":{"$error":"#N/A"}},{"$f":"IF(INDIRECT(\"c\" & (VLOOKUP(Switch!$D$56,$F$2:$G$44,2,FALSE)+ROW()-2))=Switch!$D$56,INDIRECT(\"a\" & (VLOOKUP(Switch!$D$56,$F$2:$G$44,2,FALSE)+ROW()-2)),\"\")","v":{"$error":"#N/A"}},{"$f":"IF(INDIRECT(\"c\" & (VLOOKUP(Switch!$D$57,$F$2:$G$44,2,FALSE)+ROW()-2))=Switch!$D$57,INDIRECT(\"a\" & (VLOOKUP(Switch!$D$57,$F$2:$G$44,2,FALSE)+ROW()-2)),\"\")","v":{"$error":"#N/A"}},{"$f":"IF(INDIRECT(\"c\" & (VLOOKUP(Switch!$D$58,$F$2:$G$44,2,FALSE)+ROW()-2))=Switch!$D$58,INDIRECT(\"a\" & (VLOOKUP(Switch!$D$58,$F$2:$G$44,2,FALSE)+ROW()-2)),\"\")","v":{"$error":"#N/A"}},{"$f":"IF(INDIRECT(\"c\" & (VLOOKUP(Switch!$D$59,$F$2:$G$44,2,FALSE)+ROW()-2))=Switch!$D$59,INDIRECT(\"a\" & (VLOOKUP(Switch!$D$59,$F$2:$G$44,2,FALSE)+ROW()-2)),\"\")","v":{"$error":"#N/A"}},{"$f":"IF(INDIRECT(\"c\" & (VLOOKUP(Switch!$D$60,$F$2:$G$44,2,FALSE)+ROW()-2))=Switch!$D$60,INDIRECT(\"a\" & (VLOOKUP(Switch!$D$60,$F$2:$G$44,2,FALSE)+ROW()-2)),\"\")","v":{"$error":"#N/A"}},{"$f":"IF(INDIRECT(\"c\" & (VLOOKUP(Switch!$D$61,$F$2:$G$44,2,FALSE)+ROW()-2))=Switch!$D$61,INDIRECT(\"a\" & (VLOOKUP(Switch!$D$61,$F$2:$G$44,2,FALSE)+ROW()-2)),\"\")","v":{"$error":"#N/A"}},{"$f":"IF(INDIRECT(\"c\" & (VLOOKUP(Switch!$D$62,$F$2:$G$44,2,FALSE)+ROW()-2))=Switch!$D$62,INDIRECT(\"a\" & (VLOOKUP(Switch!$D$62,$F$2:$G$44,2,FALSE)+ROW()-2)),\"\")","v":{"$error":"#N/A"}},{"$f":"IF(INDIRECT(\"c\" & (VLOOKUP(Switch!$D$63,$F$2:$G$44,2,FALSE)+ROW()-2))=Switch!$D$63,INDIRECT(\"a\" & (VLOOKUP(Switch!$D$63,$F$2:$G$44,2,FALSE)+ROW()-2)),\"\")","v":{"$error":"#N/A"}},{"$f":"IF(INDIRECT(\"c\" & (VLOOKUP(Switch!$D$64,$F$2:$G$44,2,FALSE)+ROW()-2))=Switch!$D$64,INDIRECT(\"a\" & (VLOOKUP(Switch!$D$64,$F$2:$G$44,2,FALSE)+ROW()-2)),\"\")","v":{"$error":"#N/A"}},{"$f":"IF(INDIRECT(\"c\" & (VLOOKUP(Switch!$D$65,$F$2:$G$44,2,FALSE)+ROW()-2))=Switch!$D$65,INDIRECT(\"a\" & (VLOOKUP(Switch!$D$65,$F$2:$G$44,2,FALSE)+ROW()-2)),\"\")","v":{"$error":"#N/A"}},{"$f":"IF(INDIRECT(\"c\" & (VLOOKUP(Switch!$D$66,$F$2:$G$44,2,FALSE)+ROW()-2))=Switch!$D$66,INDIRECT(\"a\" & (VLOOKUP(Switch!$D$66,$F$2:$G$44,2,FALSE)+ROW()-2)),\"\")","v":{"$error":"#N/A"}}]
["Multi Asset IP Balanced Plus Fund A","MUPB1","IP Management Company (Pty) Ltd",{"$f":"ROW()","v":286},null,null,{"$f":"VLOOKUP(F286,$C$2:$D$637,2,FALSE)","v":{"$error":"#N/A"}},{"$f":"IF(INDIRECT(\"c\" & (VLOOKUP(Switch!$D$26,$F$2:$G$44,2,FALSE)+ROW()-2))=Switch!$D$26,INDIRECT(\"a\" & (VLOOKUP(Switch!$D$26,$F$2:$G$44,2,FALSE)+ROW()-2)),\"\")","v":{"$error":"#N/A"}},{"$f":"IF(INDIRECT(\"c\" & (VLOOKUP(Switch!$D$27,$F$2:$G$44,2,FALSE)+ROW()-2))=Switch!$D$27,INDIRECT(\"a\" & (VLOOKUP(Switch!$D$27,$F$2:$G$44,2,FALSE)+ROW()-2)),\"\")","v":{"$error":"#N/A"}},{"$f":"IF(INDIRECT(\"c\" & (VLOOKUP(Switch!$D$28,$F$2:$G$44,2,FALSE)+ROW()-2))=Switch!$D$28,INDIRECT(\"a\" & (VLOOKUP(Switch!$D$28,$F$2:$G$44,2,FALSE)+ROW()-2)),\"\")","v":{"$error":"#N/A"}},{"$f":"IF(INDIRECT(\"c\" & (VLOOKUP(Switch!$D$29,$F$2:$G$44,2,FALSE)+ROW()-2))=Switch!$D$29,INDIRECT(\"a\" & (VLOOKUP(Switch!$D$29,$F$2:$G$44,2,FALSE)+ROW()-2)),\"\")","v":{"$error":"#N/A"}},{"$f":"IF(INDIRECT(\"c\" & (VLOOKUP(Switch!$D$30,$F$2:$G$44,2,FALSE)+ROW()-2))=Switch!$D$30,INDIRECT(\"a\" & (VLOOKUP(Switch!$D$30,$F$2:$G$44,2,FALSE)+ROW()-2)),\"\")","v":{"$error":"#N/A"}},{"$f":"IF(INDIRECT(\"c\" & (VLOOKUP(Switch!$D$31,$F$2:$G$44,2,FALSE)+ROW()-2))=Switch!$D$31,INDIRECT(\"a\" & (VLOOKUP(Switch!$D$31,$F$2:$G$44,2,FALSE)+ROW()-2)),\"\")","v":{"$error":"#N/A"}},{"$f":"IF(INDIRECT(\"c\" & (VLOOKUP(Switch!$D$32,$F$2:$G$44,2,FALSE)+ROW()-2))=Switch!$D$32,INDIRECT(\"a\" & (VLOOKUP(Switch!$D$32,$F$2:$G$44,2,FALSE)+ROW()-2)),\"\")","v":{"$error":"#N/A"}},{"$f":"IF(INDIRECT(\"c\" & (VLOOKUP(Switch!$D$33,$F$2:$G$44,2,FALSE)+ROW()-2))=Switch!$D$33,INDIRECT(\"a\" & (VLOOKUP(Switch!$D$33,$F$2:$G$44,2,FALSE)+ROW()-2)),\"\")","v":{"$error":"#N/A"}},{"$f":"IF(INDIRECT(\"c\" & (VLOOKUP(Switch!$D$34,$F$2:$G$44,2,FALSE)+ROW()-2))=Switch!$D$34,INDIRECT(\"a\" & (VLOOKUP(Switch!$D$34,$F$2:$G$44,2,FALSE)+ROW()-2)),\"\")","v":{"$error":"#N/A"}},{"$f":"IF(INDIRECT(\"c\" & (VLOOKUP(Switch!$D$35,$F$2:$G$44,2,FALSE)+ROW()-2))=Switch!$D$35,INDIRECT(\"a\" & (VLOOKUP(Switch!$D$35,$F$2:$G$44,2,FALSE)+ROW()-2)),\"\")","v":{"$error":"#N/A"}},{"$f":"IF(INDIRECT(\"c\" & (VLOOKUP(Switch!$D$36,$F$2:$G$44,2,FALSE)+ROW()-2))=Switch!$D$36,INDIRECT(\"a\" & (VLOOKUP(Switch!$D$36,$F$2:$G$44,2,FALSE)+ROW()-2)),\"\")","v":{"$error":"#N/A"}},{"$f":"IF(INDIRECT(\"c\" & (VLOOKUP(Switch!$D$37,$F$2:$G$44,2,FALSE)+ROW()-2))=Switch!$D$37,INDIRECT(\"a\" & (VLOOKUP(Switch!$D$37,$F$2:$G$44,2,FALSE)+ROW()-2)),\"\")","v":{"$error":"#N/A"}},{"$f":"IF(INDIRECT(\"c\" & (VLOOKUP(Switch!$D$38,$F$2:$G$44,2,FALSE)+ROW()-2))=Switch!$D$38,INDIRECT(\"a\" & (VLOOKUP(Switch!$D$38,$F$2:$G$44,2,FALSE)+ROW()-2)),\"\")","v":{"$error":"#N/A"}},{"$f":"IF(INDIRECT(\"c\" & (VLOOKUP(Switch!$D$39,$F$2:$G$44,2,FALSE)+ROW()-2))=Switch!$D$39,INDIRECT(\"a\" & (VLOOKUP(Switch!$D$39,$F$2:$G$44,2,FALSE)+ROW()-2)),\"\")","v":{"$error":"#N/A"}},{"$f":"IF(INDIRECT(\"c\" & (VLOOKUP(Switch!$D$40,$F$2:$G$44,2,FALSE)+ROW()-2))=Switch!$D$40,INDIRECT(\"a\" & (VLOOKUP(Switch!$D$40,$F$2:$G$44,2,FALSE)+ROW()-2)),\"\")","v":{"$error":"#N/A"}},{"$f":"IF(INDIRECT(\"c\" & (VLOOKUP(Switch!$D$52,$F$2:$G$44,2,FALSE)+ROW()-2))=Switch!$D$52,INDIRECT(\"a\" & (VLOOKUP(Switch!$D$52,$F$2:$G$44,2,FALSE)+ROW()-2)),\"\")","v":{"$error":"#N/A"}},{"$f":"IF(INDIRECT(\"c\" & (VLOOKUP(Switch!$D$53,$F$2:$G$44,2,FALSE)+ROW()-2))=Switch!$D$53,INDIRECT(\"a\" & (VLOOKUP(Switch!$D$53,$F$2:$G$44,2,FALSE)+ROW()-2)),\"\")","v":{"$error":"#N/A"}},{"$f":"IF(INDIRECT(\"c\" & (VLOOKUP(Switch!$D$54,$F$2:$G$44,2,FALSE)+ROW()-2))=Switch!$D$54,INDIRECT(\"a\" & (VLOOKUP(Switch!$D$54,$F$2:$G$44,2,FALSE)+ROW()-2)),\"\")","v":{"$error":"#N/A"}},{"$f":"IF(INDIRECT(\"c\" & (VLOOKUP(Switch!$D$55,$F$2:$G$44,2,FALSE)+ROW()-2))=Switch!$D$55,INDIRECT(\"a\" & (VLOOKUP(Switch!$D$55,$F$2:$G$44,2,FALSE)+ROW()-2)),\"\")","v":{"$error":"#N/A"}},{"$f":"IF(INDIRECT(\"c\" & (VLOOKUP(Switch!$D$56,$F$2:$G$44,2,FALSE)+ROW()-2))=Switch!$D$56,INDIRECT(\"a\" & (VLOOKUP(Switch!$D$56,$F$2:$G$44,2,FALSE)+ROW()-2)),\"\")","v":{"$error":"#N/A"}},{"$f":"IF(INDIRECT(\"c\" & (VLOOKUP(Switch!$D$57,$F$2:$G$44,2,FALSE)+ROW()-2))=Switch!$D$57,INDIRECT(\"a\" & (VLOOKUP(Switch!$D$57,$F$2:$G$44,2,FALSE)+ROW()-2)),\"\")","v":{"$error":"#N/A"}},{"$f":"IF(INDIRECT(\"c\" & (VLOOKUP(Switch!$D$58,$F$2:$G$44,2,FALSE)+ROW()-2))=Switch!$D$58,INDIRECT(\"a\" & (VLOOKUP(Switch!$D$58,$F$2:$G$44,2,FALSE)+ROW()-2)),\"\")","v":{"$error":"#N/A"}},{"$f":"IF(INDIRECT(\"c\" & (VLOOKUP(Switch!$D$59,$F$2:$G$44,2,FALSE)+ROW()-2))=Switch!$D$59,INDIRECT(\"a\" & (VLOOKUP(Switch!$D$59,$F$2:$G$44,2,FALSE)+ROW()-2)),\"\")","v":{"$error":"#N/A"}},{"$f":"IF(INDIRECT(\"c\" & (VLOOKUP(Switch!$D$60,$F$2:$G$44,2,FALSE)+ROW()-2))=Switch!$D$60,INDIRECT(\"a\" & (VLOOKUP(Switch!$D$60,$F$2:$G$44,2,FALSE)+ROW()-2)),\"\")","v":{"$error":"#N/A"}},{"$f":"IF(INDIRECT(\"c\" & (VLOOKUP(Switch!$D$61,$F$2:$G$44,2,FALSE)+ROW()-2))=Switch!$D$61,INDIRECT(\"a\" & (VLOOKUP(Switch!$D$61,$F$2:$G$44,2,FALSE)+ROW()-2)),\"\")","v":{"$error":"#N/A"}},{"$f":"IF(INDIRECT(\"c\" & (VLOOKUP(Switch!$D$62,$F$2:$G$44,2,FALSE)+ROW()-2))=Switch!$D$62,INDIRECT(\"a\" & (VLOOKUP(Switch!$D$62,$F$2:$G$44,2,FALSE)+ROW()-2)),\"\")","v":{"$error":"#N/A"}},{"$f":"IF(INDIRECT(\"c\" & (VLOOKUP(Switch!$D$63,$F$2:$G$44,2,FALSE)+ROW()-2))=Switch!$D$63,INDIRECT(\"a\" & (VLOOKUP(Switch!$D$63,$F$2:$G$44,2,FALSE)+ROW()-2)),\"\")","v":{"$error":"#N/A"}},{"$f":"IF(INDIRECT(\"c\" & (VLOOKUP(Switch!$D$64,$F$2:$G$44,2,FALSE)+ROW()-2))=Switch!$D$64,INDIRECT(\"a\" & (VLOOKUP(Switch!$D$64,$F$2:$G$44,2,FALSE)+ROW()-2)),\"\")","v":{"$error":"#N/A"}},{"$f":"IF(INDIRECT(\"c\" & (VLOOKUP(Switch!$D$65,$F$2:$G$44,2,FALSE)+ROW()-2))=Switch!$D$65,INDIRECT(\"a\" & (VLOOKUP(Switch!$D$65,$F$2:$G$44,2,FALSE)+ROW()-2)),\"\")","v":{"$error":"#N/A"}},{"$f":"IF(INDIRECT(\"c\" & (VLOOKUP(Switch!$D$66,$F$2:$G$44,2,FALSE)+ROW()-2))=Switch!$D$66,INDIRECT(\"a\" & (VLOOKUP(Switch!$D$66,$F$2:$G$44,2,FALSE)+ROW()-2)),\"\")","v":{"$error":"#N/A"}}]
["Multi Asset IP Balanced Plus Fund B1","MUPB1","IP Management Company (Pty) Ltd",{"$f":"ROW()","v":287},null,null,{"$f":"VLOOKUP(F287,$C$2:$D$637,2,FALSE)","v":{"$error":"#N/A"}},{"$f":"IF(INDIRECT(\"c\" & (VLOOKUP(Switch!$D$26,$F$2:$G$44,2,FALSE)+ROW()-2))=Switch!$D$26,INDIRECT(\"a\" & (VLOOKUP(Switch!$D$26,$F$2:$G$44,2,FALSE)+ROW()-2)),\"\")","v":{"$error":"#N/A"}},{"$f":"IF(INDIRECT(\"c\" & (VLOOKUP(Switch!$D$27,$F$2:$G$44,2,FALSE)+ROW()-2))=Switch!$D$27,INDIRECT(\"a\" & (VLOOKUP(Switch!$D$27,$F$2:$G$44,2,FALSE)+ROW()-2)),\"\")","v":{"$error":"#N/A"}},{"$f":"IF(INDIRECT(\"c\" & (VLOOKUP(Switch!$D$28,$F$2:$G$44,2,FALSE)+ROW()-2))=Switch!$D$28,INDIRECT(\"a\" & (VLOOKUP(Switch!$D$28,$F$2:$G$44,2,FALSE)+ROW()-2)),\"\")","v":{"$error":"#N/A"}},{"$f":"IF(INDIRECT(\"c\" & (VLOOKUP(Switch!$D$29,$F$2:$G$44,2,FALSE)+ROW()-2))=Switch!$D$29,INDIRECT(\"a\" & (VLOOKUP(Switch!$D$29,$F$2:$G$44,2,FALSE)+ROW()-2)),\"\")","v":{"$error":"#N/A"}},{"$f":"IF(INDIRECT(\"c\" & (VLOOKUP(Switch!$D$30,$F$2:$G$44,2,FALSE)+ROW()-2))=Switch!$D$30,INDIRECT(\"a\" & (VLOOKUP(Switch!$D$30,$F$2:$G$44,2,FALSE)+ROW()-2)),\"\")","v":{"$error":"#N/A"}},{"$f":"IF(INDIRECT(\"c\" & (VLOOKUP(Switch!$D$31,$F$2:$G$44,2,FALSE)+ROW()-2))=Switch!$D$31,INDIRECT(\"a\" & (VLOOKUP(Switch!$D$31,$F$2:$G$44,2,FALSE)+ROW()-2)),\"\")","v":{"$error":"#N/A"}},{"$f":"IF(INDIRECT(\"c\" & (VLOOKUP(Switch!$D$32,$F$2:$G$44,2,FALSE)+ROW()-2))=Switch!$D$32,INDIRECT(\"a\" & (VLOOKUP(Switch!$D$32,$F$2:$G$44,2,FALSE)+ROW()-2)),\"\")","v":{"$error":"#N/A"}},{"$f":"IF(INDIRECT(\"c\" & (VLOOKUP(Switch!$D$33,$F$2:$G$44,2,FALSE)+ROW()-2))=Switch!$D$33,INDIRECT(\"a\" & (VLOOKUP(Switch!$D$33,$F$2:$G$44,2,FALSE)+ROW()-2)),\"\")","v":{"$error":"#N/A"}},{"$f":"IF(INDIRECT(\"c\" & (VLOOKUP(Switch!$D$34,$F$2:$G$44,2,FALSE)+ROW()-2))=Switch!$D$34,INDIRECT(\"a\" & (VLOOKUP(Switch!$D$34,$F$2:$G$44,2,FALSE)+ROW()-2)),\"\")","v":{"$error":"#N/A"}},{"$f":"IF(INDIRECT(\"c\" & (VLOOKUP(Switch!$D$35,$F$2:$G$44,2,FALSE)+ROW()-2))=Switch!$D$35,INDIRECT(\"a\" & (VLOOKUP(Switch!$D$35,$F$2:$G$44,2,FALSE)+ROW()-2)),\"\")","v":{"$error":"#N/A"}},{"$f":"IF(INDIRECT(\"c\" & (VLOOKUP(Switch!$D$36,$F$2:$G$44,2,FALSE)+ROW()-2))=Switch!$D$36,INDIRECT(\"a\" & (VLOOKUP(Switch!$D$36,$F$2:$G$44,2,FALSE)+ROW()-2)),\"\")","v":{"$error":"#N/A"}},{"$f":"IF(INDIRECT(\"c\" & (VLOOKUP(Switch!$D$37,$F$2:$G$44,2,FALSE)+ROW()-2))=Switch!$D$37,INDIRECT(\"a\" & (VLOOKUP(Switch!$D$37,$F$2:$G$44,2,FALSE)+ROW()-2)),\"\")","v":{"$error":"#N/A"}},{"$f":"IF(INDIRECT(\"c\" & (VLOOKUP(Switch!$D$38,$F$2:$G$44,2,FALSE)+ROW()-2))=Switch!$D$38,INDIRECT(\"a\" & (VLOOKUP(Switch!$D$38,$F$2:$G$44,2,FALSE)+ROW()-2)),\"\")","v":{"$error":"#N/A"}},{"$f":"IF(INDIRECT(\"c\" & (VLOOKUP(Switch!$D$39,$F$2:$G$44,2,FALSE)+ROW()-2))=Switch!$D$39,INDIRECT(\"a\" & (VLOOKUP(Switch!$D$39,$F$2:$G$44,2,FALSE)+ROW()-2)),\"\")","v":{"$error":"#N/A"}},{"$f":"IF(INDIRECT(\"c\" & (VLOOKUP(Switch!$D$40,$F$2:$G$44,2,FALSE)+ROW()-2))=Switch!$D$40,INDIRECT(\"a\" & (VLOOKUP(Switch!$D$40,$F$2:$G$44,2,FALSE)+ROW()-2)),\"\")","v":{"$error":"#N/A"}},{"$f":"IF(INDIRECT(\"c\" & (VLOOKUP(Switch!$D$52,$F$2:$G$44,2,FALSE)+ROW()-2))=Switch!$D$52,INDIRECT(\"a\" & (VLOOKUP(Switch!$D$52,$F$2:$G$44,2,FALSE)+ROW()-2)),\"\")","v":{"$error":"#N/A"}},{"$f":"IF(INDIRECT(\"c\" & (VLOOKUP(Switch!$D$53,$F$2:$G$44,2,FALSE)+ROW()-2))=Switch!$D$53,INDIRECT(\"a\" & (VLOOKUP(Switch!$D$53,$F$2:$G$44,2,FALSE)+ROW()-2)),\"\")","v":{"$error":"#N/A"}},{"$f":"IF(INDIRECT(\"c\" & (VLOOKUP(Switch!$D$54,$F$2:$G$44,2,FALSE)+ROW()-2))=Switch!$D$54,INDIRECT(\"a\" & (VLOOKUP(Switch!$D$54,$F$2:$G$44,2,FALSE)+ROW()-2)),\"\")","v":{"$error":"#N/A"}},{"$f":"IF(INDIRECT(\"c\" & (VLOOKUP(Switch!$D$55,$F$2:$G$44,2,FALSE)+ROW()-2))=Switch!$D$55,INDIRECT(\"a\" & (VLOOKUP(Switch!$D$55,$F$2:$G$44,2,FALSE)+ROW()-2)),\"\")","v":{"$error":"#N/A"}},{"$f":"IF(INDIRECT(\"c\" & (VLOOKUP(Switch!$D$56,$F$2:$G$44,2,FALSE)+ROW()-2))=Switch!$D$56,INDIRECT(\"a\" & (VLOOKUP(Switch!$D$56,$F$2:$G$44,2,FALSE)+ROW()-2)),\"\")","v":{"$error":"#N/A"}},{"$f":"IF(INDIRECT(\"c\" & (VLOOKUP(Switch!$D$57,$F$2:$G$44,2,FALSE)+ROW()-2))=Switch!$D$57,INDIRECT(\"a\" & (VLOOKUP(Switch!$D$57,$F$2:$G$44,2,FALSE)+ROW()-2)),\"\")","v":{"$error":"#N/A"}},{"$f":"IF(INDIRECT(\"c\" & (VLOOKUP(Switch!$D$58,$F$2:$G$44,2,FALSE)+ROW()-2))=Switch!$D$58,INDIRECT(\"a\" & (VLOOKUP(Switch!$D$58,$F$2:$G$44,2,FALSE)+ROW()-2)),\"\")","v":{"$error":"#N/A"}},{"$f":"IF(INDIRECT(\"c\" & (VLOOKUP(Switch!$D$59,$F$2:$G$44,2,FALSE)+ROW()-2))=Switch!$D$59,INDIRECT(\"a\" & (VLOOKUP(Switch!$D$59,$F$2:$G$44,2,FALSE)+ROW()-2)),\"\")","v":{"$error":"#N/A"}},{"$f":"IF(INDIRECT(\"c\" & (VLOOKUP(Switch!$D$60,$F$2:$G$44,2,FALSE)+ROW()-2))=Switch!$D$60,INDIRECT(\"a\" & (VLOOKUP(Switch!$D$60,$F$2:$G$44,2,FALSE)+ROW()-2)),\"\")","v":{"$error":"#N/A"}},{"$f":"IF(INDIRECT(\"c\" & (VLOOKUP(Switch!$D$61,$F$2:$G$44,2,FALSE)+ROW()-2))=Switch!$D$61,INDIRECT(\"a\" & (VLOOKUP(Switch!$D$61,$F$2:$G$44,2,FALSE)+ROW()-2)),\"\")","v":{"$error":"#N/A"}},{"$f":"IF(INDIRECT(\"c\" & (VLOOKUP(Switch!$D$62,$F$2:$G$44,2,FALSE)+ROW()-2))=Switch!$D$62,INDIRECT(\"a\" & (VLOOKUP(Switch!$D$62,$F$2:$G$44,2,FALSE)+ROW()-2)),\"\")","v":{"$error":"#N/A"}},{"$f":"IF(INDIRECT(\"c\" & (VLOOKUP(Switch!$D$63,$F$2:$G$44,2,FALSE)+ROW()-2))=Switch!$D$63,INDIRECT(\"a\" & (VLOOKUP(Switch!$D$63,$F$2:$G$44,2,FALSE)+ROW()-2)),\"\")","v":{"$error":"#N/A"}},{"$f":"IF(INDIRECT(\"c\" & (VLOOKUP(Switch!$D$64,$F$2:$G$44,2,FALSE)+ROW()-2))=Switch!$D$64,INDIRECT(\"a\" & (VLOOKUP(Switch!$D$64,$F$2:$G$44,2,FALSE)+ROW()-2)),\"\")","v":{"$error":"#N/A"}},{"$f":"IF(INDIRECT(\"c\" & (VLOOKUP(Switch!$D$65,$F$2:$G$44,2,FALSE)+ROW()-2))=Switch!$D$65,INDIRECT(\"a\" & (VLOOKUP(Switch!$D$65,$F$2:$G$44,2,FALSE)+ROW()-2)),\"\")","v":{"$error":"#N/A"}},{"$f":"IF(INDIRECT(\"c\" & (VLOOKUP(Switch!$D$66,$F$2:$G$44,2,FALSE)+ROW()-2))=Switch!$D$66,INDIRECT(\"a\" & (VLOOKUP(Switch!$D$66,$F$2:$G$44,2,FALSE)+ROW()-2)),\"\")","v":{"$error":"#N/A"}}]
["MI-PLAN IP Inflation Plus 3","PIPB5","IP Management Company (Pty) Ltd",{"$f":"ROW()","v":288},null,null,{"$f":"VLOOKUP(F288,$C$2:$D$637,2,FALSE)","v":{"$error":"#N/A"}},{"$f":"IF(INDIRECT(\"c\" & (VLOOKUP(Switch!$D$26,$F$2:$G$44,2,FALSE)+ROW()-2))=Switch!$D$26,INDIRECT(\"a\" & (VLOOKUP(Switch!$D$26,$F$2:$G$44,2,FALSE)+ROW()-2)),\"\")","v":{"$error":"#N/A"}},{"$f":"IF(INDIRECT(\"c\" & (VLOOKUP(Switch!$D$27,$F$2:$G$44,2,FALSE)+ROW()-2))=Switch!$D$27,INDIRECT(\"a\" & (VLOOKUP(Switch!$D$27,$F$2:$G$44,2,FALSE)+ROW()-2)),\"\")","v":{"$error":"#N/A"}},{"$f":"IF(INDIRECT(\"c\" & (VLOOKUP(Switch!$D$28,$F$2:$G$44,2,FALSE)+ROW()-2))=Switch!$D$28,INDIRECT(\"a\" & (VLOOKUP(Switch!$D$28,$F$2:$G$44,2,FALSE)+ROW()-2)),\"\")","v":{"$error":"#N/A"}},{"$f":"IF(INDIRECT(\"c\" & (VLOOKUP(Switch!$D$29,$F$2:$G$44,2,FALSE)+ROW()-2))=Switch!$D$29,INDIRECT(\"a\" & (VLOOKUP(Switch!$D$29,$F$2:$G$44,2,FALSE)+ROW()-2)),\"\")","v":{"$error":"#N/A"}},{"$f":"IF(INDIRECT(\"c\" & (VLOOKUP(Switch!$D$30,$F$2:$G$44,2,FALSE)+ROW()-2))=Switch!$D$30,INDIRECT(\"a\" & (VLOOKUP(Switch!$D$30,$F$2:$G$44,2,FALSE)+ROW()-2)),\"\")","v":{"$error":"#N/A"}},{"$f":"IF(INDIRECT(\"c\" & (VLOOKUP(Switch!$D$31,$F$2:$G$44,2,FALSE)+ROW()-2))=Switch!$D$31,INDIRECT(\"a\" & (VLOOKUP(Switch!$D$31,$F$2:$G$44,2,FALSE)+ROW()-2)),\"\")","v":{"$error":"#N/A"}},{"$f":"IF(INDIRECT(\"c\" & (VLOOKUP(Switch!$D$32,$F$2:$G$44,2,FALSE)+ROW()-2))=Switch!$D$32,INDIRECT(\"a\" & (VLOOKUP(Switch!$D$32,$F$2:$G$44,2,FALSE)+ROW()-2)),\"\")","v":{"$error":"#N/A"}},{"$f":"IF(INDIRECT(\"c\" & (VLOOKUP(Switch!$D$33,$F$2:$G$44,2,FALSE)+ROW()-2))=Switch!$D$33,INDIRECT(\"a\" & (VLOOKUP(Switch!$D$33,$F$2:$G$44,2,FALSE)+ROW()-2)),\"\")","v":{"$error":"#N/A"}},{"$f":"IF(INDIRECT(\"c\" & (VLOOKUP(Switch!$D$34,$F$2:$G$44,2,FALSE)+ROW()-2))=Switch!$D$34,INDIRECT(\"a\" & (VLOOKUP(Switch!$D$34,$F$2:$G$44,2,FALSE)+ROW()-2)),\"\")","v":{"$error":"#N/A"}},{"$f":"IF(INDIRECT(\"c\" & (VLOOKUP(Switch!$D$35,$F$2:$G$44,2,FALSE)+ROW()-2))=Switch!$D$35,INDIRECT(\"a\" & (VLOOKUP(Switch!$D$35,$F$2:$G$44,2,FALSE)+ROW()-2)),\"\")","v":{"$error":"#N/A"}},{"$f":"IF(INDIRECT(\"c\" & (VLOOKUP(Switch!$D$36,$F$2:$G$44,2,FALSE)+ROW()-2))=Switch!$D$36,INDIRECT(\"a\" & (VLOOKUP(Switch!$D$36,$F$2:$G$44,2,FALSE)+ROW()-2)),\"\")","v":{"$error":"#N/A"}},{"$f":"IF(INDIRECT(\"c\" & (VLOOKUP(Switch!$D$37,$F$2:$G$44,2,FALSE)+ROW()-2))=Switch!$D$37,INDIRECT(\"a\" & (VLOOKUP(Switch!$D$37,$F$2:$G$44,2,FALSE)+ROW()-2)),\"\")","v":{"$error":"#N/A"}},{"$f":"IF(INDIRECT(\"c\" & (VLOOKUP(Switch!$D$38,$F$2:$G$44,2,FALSE)+ROW()-2))=Switch!$D$38,INDIRECT(\"a\" & (VLOOKUP(Switch!$D$38,$F$2:$G$44,2,FALSE)+ROW()-2)),\"\")","v":{"$error":"#N/A"}},{"$f":"IF(INDIRECT(\"c\" & (VLOOKUP(Switch!$D$39,$F$2:$G$44,2,FALSE)+ROW()-2))=Switch!$D$39,INDIRECT(\"a\" & (VLOOKUP(Switch!$D$39,$F$2:$G$44,2,FALSE)+ROW()-2)),\"\")","v":{"$error":"#N/A"}},{"$f":"IF(INDIRECT(\"c\" & (VLOOKUP(Switch!$D$40,$F$2:$G$44,2,FALSE)+ROW()-2))=Switch!$D$40,INDIRECT(\"a\" & (VLOOKUP(Switch!$D$40,$F$2:$G$44,2,FALSE)+ROW()-2)),\"\")","v":{"$error":"#N/A"}},{"$f":"IF(INDIRECT(\"c\" & (VLOOKUP(Switch!$D$52,$F$2:$G$44,2,FALSE)+ROW()-2))=Switch!$D$52,INDIRECT(\"a\" & (VLOOKUP(Switch!$D$52,$F$2:$G$44,2,FALSE)+ROW()-2)),\"\")","v":{"$error":"#N/A"}},{"$f":"IF(INDIRECT(\"c\" & (VLOOKUP(Switch!$D$53,$F$2:$G$44,2,FALSE)+ROW()-2))=Switch!$D$53,INDIRECT(\"a\" & (VLOOKUP(Switch!$D$53,$F$2:$G$44,2,FALSE)+ROW()-2)),\"\")","v":{"$error":"#N/A"}},{"$f":"IF(INDIRECT(\"c\" & (VLOOKUP(Switch!$D$54,$F$2:$G$44,2,FALSE)+ROW()-2))=Switch!$D$54,INDIRECT(\"a\" & (VLOOKUP(Switch!$D$54,$F$2:$G$44,2,FALSE)+ROW()-2)),\"\")","v":{"$error":"#N/A"}},{"$f":"IF(INDIRECT(\"c\" & (VLOOKUP(Switch!$D$55,$F$2:$G$44,2,FALSE)+ROW()-2))=Switch!$D$55,INDIRECT(\"a\" & (VLOOKUP(Switch!$D$55,$F$2:$G$44,2,FALSE)+ROW()-2)),\"\")","v":{"$error":"#N/A"}},{"$f":"IF(INDIRECT(\"c\" & (VLOOKUP(Switch!$D$56,$F$2:$G$44,2,FALSE)+ROW()-2))=Switch!$D$56,INDIRECT(\"a\" & (VLOOKUP(Switch!$D$56,$F$2:$G$44,2,FALSE)+ROW()-2)),\"\")","v":{"$error":"#N/A"}},{"$f":"IF(INDIRECT(\"c\" & (VLOOKUP(Switch!$D$57,$F$2:$G$44,2,FALSE)+ROW()-2))=Switch!$D$57,INDIRECT(\"a\" & (VLOOKUP(Switch!$D$57,$F$2:$G$44,2,FALSE)+ROW()-2)),\"\")","v":{"$error":"#N/A"}},{"$f":"IF(INDIRECT(\"c\" & (VLOOKUP(Switch!$D$58,$F$2:$G$44,2,FALSE)+ROW()-2))=Switch!$D$58,INDIRECT(\"a\" & (VLOOKUP(Switch!$D$58,$F$2:$G$44,2,FALSE)+ROW()-2)),\"\")","v":{"$error":"#N/A"}},{"$f":"IF(INDIRECT(\"c\" & (VLOOKUP(Switch!$D$59,$F$2:$G$44,2,FALSE)+ROW()-2))=Switch!$D$59,INDIRECT(\"a\" & (VLOOKUP(Switch!$D$59,$F$2:$G$44,2,FALSE)+ROW()-2)),\"\")","v":{"$error":"#N/A"}},{"$f":"IF(INDIRECT(\"c\" & (VLOOKUP(Switch!$D$60,$F$2:$G$44,2,FALSE)+ROW()-2))=Switch!$D$60,INDIRECT(\"a\" & (VLOOKUP(Switch!$D$60,$F$2:$G$44,2,FALSE)+ROW()-2)),\"\")","v":{"$error":"#N/A"}},{"$f":"IF(INDIRECT(\"c\" & (VLOOKUP(Switch!$D$61,$F$2:$G$44,2,FALSE)+ROW()-2))=Switch!$D$61,INDIRECT(\"a\" & (VLOOKUP(Switch!$D$61,$F$2:$G$44,2,FALSE)+ROW()-2)),\"\")","v":{"$error":"#N/A"}},{"$f":"IF(INDIRECT(\"c\" & (VLOOKUP(Switch!$D$62,$F$2:$G$44,2,FALSE)+ROW()-2))=Switch!$D$62,INDIRECT(\"a\" & (VLOOKUP(Switch!$D$62,$F$2:$G$44,2,FALSE)+ROW()-2)),\"\")","v":{"$error":"#N/A"}},{"$f":"IF(INDIRECT(\"c\" & (VLOOKUP(Switch!$D$63,$F$2:$G$44,2,FALSE)+ROW()-2))=Switch!$D$63,INDIRECT(\"a\" & (VLOOKUP(Switch!$D$63,$F$2:$G$44,2,FALSE)+ROW()-2)),\"\")","v":{"$error":"#N/A"}},{"$f":"IF(INDIRECT(\"c\" & (VLOOKUP(Switch!$D$64,$F$2:$G$44,2,FALSE)+ROW()-2))=Switch!$D$64,INDIRECT(\"a\" & (VLOOKUP(Switch!$D$64,$F$2:$G$44,2,FALSE)+ROW()-2)),\"\")","v":{"$error":"#N/A"}},{"$f":"IF(INDIRECT(\"c\" & (VLOOKUP(Switch!$D$65,$F$2:$G$44,2,FALSE)+ROW()-2))=Switch!$D$65,INDIRECT(\"a\" & (VLOOKUP(Switch!$D$65,$F$2:$G$44,2,FALSE)+ROW()-2)),\"\")","v":{"$error":"#N/A"}},{"$f":"IF(INDIRECT(\"c\" & (VLOOKUP(Switch!$D$66,$F$2:$G$44,2,FALSE)+ROW()-2))=Switch!$D$66,INDIRECT(\"a\" & (VLOOKUP(Switch!$D$66,$F$2:$G$44,2,FALSE)+ROW()-2)),\"\")","v":{"$error":"#N/A"}}]
["MI-PLAN IP Inflation Plus 5","PEIB5","IP Management Company (Pty) Ltd",{"$f":"ROW()","v":289},null,null,{"$f":"VLOOKUP(F289,$C$2:$D$637,2,FALSE)","v":{"$error":"#N/A"}},{"$f":"IF(INDIRECT(\"c\" & (VLOOKUP(Switch!$D$26,$F$2:$G$44,2,FALSE)+ROW()-2))=Switch!$D$26,INDIRECT(\"a\" & (VLOOKUP(Switch!$D$26,$F$2:$G$44,2,FALSE)+ROW()-2)),\"\")","v":{"$error":"#N/A"}},{"$f":"IF(INDIRECT(\"c\" & (VLOOKUP(Switch!$D$27,$F$2:$G$44,2,FALSE)+ROW()-2))=Switch!$D$27,INDIRECT(\"a\" & (VLOOKUP(Switch!$D$27,$F$2:$G$44,2,FALSE)+ROW()-2)),\"\")","v":{"$error":"#N/A"}},{"$f":"IF(INDIRECT(\"c\" & (VLOOKUP(Switch!$D$28,$F$2:$G$44,2,FALSE)+ROW()-2))=Switch!$D$28,INDIRECT(\"a\" & (VLOOKUP(Switch!$D$28,$F$2:$G$44,2,FALSE)+ROW()-2)),\"\")","v":{"$error":"#N/A"}},{"$f":"IF(INDIRECT(\"c\" & (VLOOKUP(Switch!$D$29,$F$2:$G$44,2,FALSE)+ROW()-2))=Switch!$D$29,INDIRECT(\"a\" & (VLOOKUP(Switch!$D$29,$F$2:$G$44,2,FALSE)+ROW()-2)),\"\")","v":{"$error":"#N/A"}},{"$f":"IF(INDIRECT(\"c\" & (VLOOKUP(Switch!$D$30,$F$2:$G$44,2,FALSE)+ROW()-2))=Switch!$D$30,INDIRECT(\"a\" & (VLOOKUP(Switch!$D$30,$F$2:$G$44,2,FALSE)+ROW()-2)),\"\")","v":{"$error":"#N/A"}},{"$f":"IF(INDIRECT(\"c\" & (VLOOKUP(Switch!$D$31,$F$2:$G$44,2,FALSE)+ROW()-2))=Switch!$D$31,INDIRECT(\"a\" & (VLOOKUP(Switch!$D$31,$F$2:$G$44,2,FALSE)+ROW()-2)),\"\")","v":{"$error":"#N/A"}},{"$f":"IF(INDIRECT(\"c\" & (VLOOKUP(Switch!$D$32,$F$2:$G$44,2,FALSE)+ROW()-2))=Switch!$D$32,INDIRECT(\"a\" & (VLOOKUP(Switch!$D$32,$F$2:$G$44,2,FALSE)+ROW()-2)),\"\")","v":{"$error":"#N/A"}},{"$f":"IF(INDIRECT(\"c\" & (VLOOKUP(Switch!$D$33,$F$2:$G$44,2,FALSE)+ROW()-2))=Switch!$D$33,INDIRECT(\"a\" & (VLOOKUP(Switch!$D$33,$F$2:$G$44,2,FALSE)+ROW()-2)),\"\")","v":{"$error":"#N/A"}},{"$f":"IF(INDIRECT(\"c\" & (VLOOKUP(Switch!$D$34,$F$2:$G$44,2,FALSE)+ROW()-2))=Switch!$D$34,INDIRECT(\"a\" & (VLOOKUP(Switch!$D$34,$F$2:$G$44,2,FALSE)+ROW()-2)),\"\")","v":{"$error":"#N/A"}},{"$f":"IF(INDIRECT(\"c\" & (VLOOKUP(Switch!$D$35,$F$2:$G$44,2,FALSE)+ROW()-2))=Switch!$D$35,INDIRECT(\"a\" & (VLOOKUP(Switch!$D$35,$F$2:$G$44,2,FALSE)+ROW()-2)),\"\")","v":{"$error":"#N/A"}},{"$f":"IF(INDIRECT(\"c\" & (VLOOKUP(Switch!$D$36,$F$2:$G$44,2,FALSE)+ROW()-2))=Switch!$D$36,INDIRECT(\"a\" & (VLOOKUP(Switch!$D$36,$F$2:$G$44,2,FALSE)+ROW()-2)),\"\")","v":{"$error":"#N/A"}},{"$f":"IF(INDIRECT(\"c\" & (VLOOKUP(Switch!$D$37,$F$2:$G$44,2,FALSE)+ROW()-2))=Switch!$D$37,INDIRECT(\"a\" & (VLOOKUP(Switch!$D$37,$F$2:$G$44,2,FALSE)+ROW()-2)),\"\")","v":{"$error":"#N/A"}},{"$f":"IF(INDIRECT(\"c\" & (VLOOKUP(Switch!$D$38,$F$2:$G$44,2,FALSE)+ROW()-2))=Switch!$D$38,INDIRECT(\"a\" & (VLOOKUP(Switch!$D$38,$F$2:$G$44,2,FALSE)+ROW()-2)),\"\")","v":{"$error":"#N/A"}},{"$f":"IF(INDIRECT(\"c\" & (VLOOKUP(Switch!$D$39,$F$2:$G$44,2,FALSE)+ROW()-2))=Switch!$D$39,INDIRECT(\"a\" & (VLOOKUP(Switch!$D$39,$F$2:$G$44,2,FALSE)+ROW()-2)),\"\")","v":{"$error":"#N/A"}},{"$f":"IF(INDIRECT(\"c\" & (VLOOKUP(Switch!$D$40,$F$2:$G$44,2,FALSE)+ROW()-2))=Switch!$D$40,INDIRECT(\"a\" & (VLOOKUP(Switch!$D$40,$F$2:$G$44,2,FALSE)+ROW()-2)),\"\")","v":{"$error":"#N/A"}},{"$f":"IF(INDIRECT(\"c\" & (VLOOKUP(Switch!$D$52,$F$2:$G$44,2,FALSE)+ROW()-2))=Switch!$D$52,INDIRECT(\"a\" & (VLOOKUP(Switch!$D$52,$F$2:$G$44,2,FALSE)+ROW()-2)),\"\")","v":{"$error":"#N/A"}},{"$f":"IF(INDIRECT(\"c\" & (VLOOKUP(Switch!$D$53,$F$2:$G$44,2,FALSE)+ROW()-2))=Switch!$D$53,INDIRECT(\"a\" & (VLOOKUP(Switch!$D$53,$F$2:$G$44,2,FALSE)+ROW()-2)),\"\")","v":{"$error":"#N/A"}},{"$f":"IF(INDIRECT(\"c\" & (VLOOKUP(Switch!$D$54,$F$2:$G$44,2,FALSE)+ROW()-2))=Switch!$D$54,INDIRECT(\"a\" & (VLOOKUP(Switch!$D$54,$F$2:$G$44,2,FALSE)+ROW()-2)),\"\")","v":{"$error":"#N/A"}},{"$f":"IF(INDIRECT(\"c\" & (VLOOKUP(Switch!$D$55,$F$2:$G$44,2,FALSE)+ROW()-2))=Switch!$D$55,INDIRECT(\"a\" & (VLOOKUP(Switch!$D$55,$F$2:$G$44,2,FALSE)+ROW()-2)),\"\")","v":{"$error":"#N/A"}},{"$f":"IF(INDIRECT(\"c\" & (VLOOKUP(Switch!$D$56,$F$2:$G$44,2,FALSE)+ROW()-2))=Switch!$D$56,INDIRECT(\"a\" & (VLOOKUP(Switch!$D$56,$F$2:$G$44,2,FALSE)+ROW()-2)),\"\")","v":{"$error":"#N/A"}},{"$f":"IF(INDIRECT(\"c\" & (VLOOKUP(Switch!$D$57,$F$2:$G$44,2,FALSE)+ROW()-2))=Switch!$D$57,INDIRECT(\"a\" & (VLOOKUP(Switch!$D$57,$F$2:$G$44,2,FALSE)+ROW()-2)),\"\")","v":{"$error":"#N/A"}},{"$f":"IF(INDIRECT(\"c\" & (VLOOKUP(Switch!$D$58,$F$2:$G$44,2,FALSE)+ROW()-2))=Switch!$D$58,INDIRECT(\"a\" & (VLOOKUP(Switch!$D$58,$F$2:$G$44,2,FALSE)+ROW()-2)),\"\")","v":{"$error":"#N/A"}},{"$f":"IF(INDIRECT(\"c\" & (VLOOKUP(Switch!$D$59,$F$2:$G$44,2,FALSE)+ROW()-2))=Switch!$D$59,INDIRECT(\"a\" & (VLOOKUP(Switch!$D$59,$F$2:$G$44,2,FALSE)+ROW()-2)),\"\")","v":{"$error":"#N/A"}},{"$f":"IF(INDIRECT(\"c\" & (VLOOKUP(Switch!$D$60,$F$2:$G$44,2,FALSE)+ROW()-2))=Switch!$D$60,INDIRECT(\"a\" & (VLOOKUP(Switch!$D$60,$F$2:$G$44,2,FALSE)+ROW()-2)),\"\")","v":{"$error":"#N/A"}},{"$f":"IF(INDIRECT(\"c\" & (VLOOKUP(Switch!$D$61,$F$2:$G$44,2,FALSE)+ROW()-2))=Switch!$D$61,INDIRECT(\"a\" & (VLOOKUP(Switch!$D$61,$F$2:$G$44,2,FALSE)+ROW()-2)),\"\")","v":{"$error":"#N/A"}},{"$f":"IF(INDIRECT(\"c\" & (VLOOKUP(Switch!$D$62,$F$2:$G$44,2,FALSE)+ROW()-2))=Switch!$D$62,INDIRECT(\"a\" & (VLOOKUP(Switch!$D$62,$F$2:$G$44,2,FALSE)+ROW()-2)),\"\")","v":{"$error":"#N/A"}},{"$f":"IF(INDIRECT(\"c\" & (VLOOKUP(Switch!$D$63,$F$2:$G$44,2,FALSE)+ROW()-2))=Switch!$D$63,INDIRECT(\"a\" & (VLOOKUP(Switch!$D$63,$F$2:$G$44,2,FALSE)+ROW()-2)),\"\")","v":{"$error":"#N/A"}},{"$f":"IF(INDIRECT(\"c\" & (VLOOKUP(Switch!$D$64,$F$2:$G$44,2,FALSE)+ROW()-2))=Switch!$D$64,INDIRECT(\"a\" & (VLOOKUP(Switch!$D$64,$F$2:$G$44,2,FALSE)+ROW()-2)),\"\")","v":{"$error":"#N/A"}},{"$f":"IF(INDIRECT(\"c\" & (VLOOKUP(Switch!$D$65,$F$2:$G$44,2,FALSE)+ROW()-2))=Switch!$D$65,INDIRECT(\"a\" & (VLOOKUP(Switch!$D$65,$F$2:$G$44,2,FALSE)+ROW()-2)),\"\")","v":{"$error":"#N/A"}},{"$f":"IF(INDIRECT(\"c\" & (VLOOKUP(Switch!$D$66,$F$2:$G$44,2,FALSE)+ROW()-2))=Switch!$D$66,INDIRECT(\"a\" & (VLOOKUP(Switch!$D$66,$F$2:$G$44,2,FALSE)+ROW()-2)),\"\")","v":{"$error":"#N/A"}}]
["MI-PLAN IP Inflation Plus 7 Fund B5","PEPB5","IP Management Company (Pty) Ltd",{"$f":"ROW()","v":290},null,null,{"$f":"VLOOKUP(F290,$C$2:$D$637,2,FALSE)","v":{"$error":"#N/A"}},{"$f":"IF(INDIRECT(\"c\" & (VLOOKUP(Switch!$D$26,$F$2:$G$44,2,FALSE)+ROW()-2))=Switch!$D$26,INDIRECT(\"a\" & (VLOOKUP(Switch!$D$26,$F$2:$G$44,2,FALSE)+ROW()-2)),\"\")","v":{"$error":"#N/A"}},{"$f":"IF(INDIRECT(\"c\" & (VLOOKUP(Switch!$D$27,$F$2:$G$44,2,FALSE)+ROW()-2))=Switch!$D$27,INDIRECT(\"a\" & (VLOOKUP(Switch!$D$27,$F$2:$G$44,2,FALSE)+ROW()-2)),\"\")","v":{"$error":"#N/A"}},{"$f":"IF(INDIRECT(\"c\" & (VLOOKUP(Switch!$D$28,$F$2:$G$44,2,FALSE)+ROW()-2))=Switch!$D$28,INDIRECT(\"a\" & (VLOOKUP(Switch!$D$28,$F$2:$G$44,2,FALSE)+ROW()-2)),\"\")","v":{"$error":"#N/A"}},{"$f":"IF(INDIRECT(\"c\" & (VLOOKUP(Switch!$D$29,$F$2:$G$44,2,FALSE)+ROW()-2))=Switch!$D$29,INDIRECT(\"a\" & (VLOOKUP(Switch!$D$29,$F$2:$G$44,2,FALSE)+ROW()-2)),\"\")","v":{"$error":"#N/A"}},{"$f":"IF(INDIRECT(\"c\" & (VLOOKUP(Switch!$D$30,$F$2:$G$44,2,FALSE)+ROW()-2))=Switch!$D$30,INDIRECT(\"a\" & (VLOOKUP(Switch!$D$30,$F$2:$G$44,2,FALSE)+ROW()-2)),\"\")","v":{"$error":"#N/A"}},{"$f":"IF(INDIRECT(\"c\" & (VLOOKUP(Switch!$D$31,$F$2:$G$44,2,FALSE)+ROW()-2))=Switch!$D$31,INDIRECT(\"a\" & (VLOOKUP(Switch!$D$31,$F$2:$G$44,2,FALSE)+ROW()-2)),\"\")","v":{"$error":"#N/A"}},{"$f":"IF(INDIRECT(\"c\" & (VLOOKUP(Switch!$D$32,$F$2:$G$44,2,FALSE)+ROW()-2))=Switch!$D$32,INDIRECT(\"a\" & (VLOOKUP(Switch!$D$32,$F$2:$G$44,2,FALSE)+ROW()-2)),\"\")","v":{"$error":"#N/A"}},{"$f":"IF(INDIRECT(\"c\" & (VLOOKUP(Switch!$D$33,$F$2:$G$44,2,FALSE)+ROW()-2))=Switch!$D$33,INDIRECT(\"a\" & (VLOOKUP(Switch!$D$33,$F$2:$G$44,2,FALSE)+ROW()-2)),\"\")","v":{"$error":"#N/A"}},{"$f":"IF(INDIRECT(\"c\" & (VLOOKUP(Switch!$D$34,$F$2:$G$44,2,FALSE)+ROW()-2))=Switch!$D$34,INDIRECT(\"a\" & (VLOOKUP(Switch!$D$34,$F$2:$G$44,2,FALSE)+ROW()-2)),\"\")","v":{"$error":"#N/A"}},{"$f":"IF(INDIRECT(\"c\" & (VLOOKUP(Switch!$D$35,$F$2:$G$44,2,FALSE)+ROW()-2))=Switch!$D$35,INDIRECT(\"a\" & (VLOOKUP(Switch!$D$35,$F$2:$G$44,2,FALSE)+ROW()-2)),\"\")","v":{"$error":"#N/A"}},{"$f":"IF(INDIRECT(\"c\" & (VLOOKUP(Switch!$D$36,$F$2:$G$44,2,FALSE)+ROW()-2))=Switch!$D$36,INDIRECT(\"a\" & (VLOOKUP(Switch!$D$36,$F$2:$G$44,2,FALSE)+ROW()-2)),\"\")","v":{"$error":"#N/A"}},{"$f":"IF(INDIRECT(\"c\" & (VLOOKUP(Switch!$D$37,$F$2:$G$44,2,FALSE)+ROW()-2))=Switch!$D$37,INDIRECT(\"a\" & (VLOOKUP(Switch!$D$37,$F$2:$G$44,2,FALSE)+ROW()-2)),\"\")","v":{"$error":"#N/A"}},{"$f":"IF(INDIRECT(\"c\" & (VLOOKUP(Switch!$D$38,$F$2:$G$44,2,FALSE)+ROW()-2))=Switch!$D$38,INDIRECT(\"a\" & (VLOOKUP(Switch!$D$38,$F$2:$G$44,2,FALSE)+ROW()-2)),\"\")","v":{"$error":"#N/A"}},{"$f":"IF(INDIRECT(\"c\" & (VLOOKUP(Switch!$D$39,$F$2:$G$44,2,FALSE)+ROW()-2))=Switch!$D$39,INDIRECT(\"a\" & (VLOOKUP(Switch!$D$39,$F$2:$G$44,2,FALSE)+ROW()-2)),\"\")","v":{"$error":"#N/A"}},{"$f":"IF(INDIRECT(\"c\" & (VLOOKUP(Switch!$D$40,$F$2:$G$44,2,FALSE)+ROW()-2))=Switch!$D$40,INDIRECT(\"a\" & (VLOOKUP(Switch!$D$40,$F$2:$G$44,2,FALSE)+ROW()-2)),\"\")","v":{"$error":"#N/A"}},{"$f":"IF(INDIRECT(\"c\" & (VLOOKUP(Switch!$D$52,$F$2:$G$44,2,FALSE)+ROW()-2))=Switch!$D$52,INDIRECT(\"a\" & (VLOOKUP(Switch!$D$52,$F$2:$G$44,2,FALSE)+ROW()-2)),\"\")","v":{"$error":"#N/A"}},{"$f":"IF(INDIRECT(\"c\" & (VLOOKUP(Switch!$D$53,$F$2:$G$44,2,FALSE)+ROW()-2))=Switch!$D$53,INDIRECT(\"a\" & (VLOOKUP(Switch!$D$53,$F$2:$G$44,2,FALSE)+ROW()-2)),\"\")","v":{"$error":"#N/A"}},{"$f":"IF(INDIRECT(\"c\" & (VLOOKUP(Switch!$D$54,$F$2:$G$44,2,FALSE)+ROW()-2))=Switch!$D$54,INDIRECT(\"a\" & (VLOOKUP(Switch!$D$54,$F$2:$G$44,2,FALSE)+ROW()-2)),\"\")","v":{"$error":"#N/A"}},{"$f":"IF(INDIRECT(\"c\" & (VLOOKUP(Switch!$D$55,$F$2:$G$44,2,FALSE)+ROW()-2))=Switch!$D$55,INDIRECT(\"a\" & (VLOOKUP(Switch!$D$55,$F$2:$G$44,2,FALSE)+ROW()-2)),\"\")","v":{"$error":"#N/A"}},{"$f":"IF(INDIRECT(\"c\" & (VLOOKUP(Switch!$D$56,$F$2:$G$44,2,FALSE)+ROW()-2))=Switch!$D$56,INDIRECT(\"a\" & (VLOOKUP(Switch!$D$56,$F$2:$G$44,2,FALSE)+ROW()-2)),\"\")","v":{"$error":"#N/A"}},{"$f":"IF(INDIRECT(\"c\" & (VLOOKUP(Switch!$D$57,$F$2:$G$44,2,FALSE)+ROW()-2))=Switch!$D$57,INDIRECT(\"a\" & (VLOOKUP(Switch!$D$57,$F$2:$G$44,2,FALSE)+ROW()-2)),\"\")","v":{"$error":"#N/A"}},{"$f":"IF(INDIRECT(\"c\" & (VLOOKUP(Switch!$D$58,$F$2:$G$44,2,FALSE)+ROW()-2))=Switch!$D$58,INDIRECT(\"a\" & (VLOOKUP(Switch!$D$58,$F$2:$G$44,2,FALSE)+ROW()-2)),\"\")","v":{"$error":"#N/A"}},{"$f":"IF(INDIRECT(\"c\" & (VLOOKUP(Switch!$D$59,$F$2:$G$44,2,FALSE)+ROW()-2))=Switch!$D$59,INDIRECT(\"a\" & (VLOOKUP(Switch!$D$59,$F$2:$G$44,2,FALSE)+ROW()-2)),\"\")","v":{"$error":"#N/A"}},{"$f":"IF(INDIRECT(\"c\" & (VLOOKUP(Switch!$D$60,$F$2:$G$44,2,FALSE)+ROW()-2))=Switch!$D$60,INDIRECT(\"a\" & (VLOOKUP(Switch!$D$60,$F$2:$G$44,2,FALSE)+ROW()-2)),\"\")","v":{"$error":"#N/A"}},{"$f":"IF(INDIRECT(\"c\" & (VLOOKUP(Switch!$D$61,$F$2:$G$44,2,FALSE)+ROW()-2))=Switch!$D$61,INDIRECT(\"a\" & (VLOOKUP(Switch!$D$61,$F$2:$G$44,2,FALSE)+ROW()-2)),\"\")","v":{"$error":"#N/A"}},{"$f":"IF(INDIRECT(\"c\" & (VLOOKUP(Switch!$D$62,$F$2:$G$44,2,FALSE)+ROW()-2))=Switch!$D$62,INDIRECT(\"a\" & (VLOOKUP(Switch!$D$62,$F$2:$G$44,2,FALSE)+ROW()-2)),\"\")","v":{"$error":"#N/A"}},{"$f":"IF(INDIRECT(\"c\" & (VLOOKUP(Switch!$D$63,$F$2:$G$44,2,FALSE)+ROW()-2))=Switch!$D$63,INDIRECT(\"a\" & (VLOOKUP(Switch!$D$63,$F$2:$G$44,2,FALSE)+ROW()-2)),\"\")","v":{"$error":"#N/A"}},{"$f":"IF(INDIRECT(\"c\" & (VLOOKUP(Switch!$D$64,$F$2:$G$44,2,FALSE)+ROW()-2))=Switch!$D$64,INDIRECT(\"a\" & (VLOOKUP(Switch!$D$64,$F$2:$G$44,2,FALSE)+ROW()-2)),\"\")","v":{"$error":"#N/A"}},{"$f":"IF(INDIRECT(\"c\" & (VLOOKUP(Switch!$D$65,$F$2:$G$44,2,FALSE)+ROW()-2))=Switch!$D$65,INDIRECT(\"a\" & (VLOOKUP(Switch!$D$65,$F$2:$G$44,2,FALSE)+ROW()-2)),\"\")","v":{"$error":"#N/A"}},{"$f":"IF(INDIRECT(\"c\" & (VLOOKUP(Switch!$D$66,$F$2:$G$44,2,FALSE)+ROW()-2))=Switch!$D$66,INDIRECT(\"a\" & (VLOOKUP(Switch!$D$66,$F$2:$G$44,2,FALSE)+ROW()-2)),\"\")","v":{"$error":"#N/A"}}]
["Mi-Plan IP Enhanced Income Fund A1","MIPEI","IP Management Company (Pty) Ltd",{"$f":"ROW()","v":291},null,null,{"$f":"VLOOKUP(F291,$C$2:$D$637,2,FALSE)","v":{"$error":"#N/A"}},{"$f":"IF(INDIRECT(\"c\" & (VLOOKUP(Switch!$D$26,$F$2:$G$44,2,FALSE)+ROW()-2))=Switch!$D$26,INDIRECT(\"a\" & (VLOOKUP(Switch!$D$26,$F$2:$G$44,2,FALSE)+ROW()-2)),\"\")","v":{"$error":"#N/A"}},{"$f":"IF(INDIRECT(\"c\" & (VLOOKUP(Switch!$D$27,$F$2:$G$44,2,FALSE)+ROW()-2))=Switch!$D$27,INDIRECT(\"a\" & (VLOOKUP(Switch!$D$27,$F$2:$G$44,2,FALSE)+ROW()-2)),\"\")","v":{"$error":"#N/A"}},{"$f":"IF(INDIRECT(\"c\" & (VLOOKUP(Switch!$D$28,$F$2:$G$44,2,FALSE)+ROW()-2))=Switch!$D$28,INDIRECT(\"a\" & (VLOOKUP(Switch!$D$28,$F$2:$G$44,2,FALSE)+ROW()-2)),\"\")","v":{"$error":"#N/A"}},{"$f":"IF(INDIRECT(\"c\" & (VLOOKUP(Switch!$D$29,$F$2:$G$44,2,FALSE)+ROW()-2))=Switch!$D$29,INDIRECT(\"a\" & (VLOOKUP(Switch!$D$29,$F$2:$G$44,2,FALSE)+ROW()-2)),\"\")","v":{"$error":"#N/A"}},{"$f":"IF(INDIRECT(\"c\" & (VLOOKUP(Switch!$D$30,$F$2:$G$44,2,FALSE)+ROW()-2))=Switch!$D$30,INDIRECT(\"a\" & (VLOOKUP(Switch!$D$30,$F$2:$G$44,2,FALSE)+ROW()-2)),\"\")","v":{"$error":"#N/A"}},{"$f":"IF(INDIRECT(\"c\" & (VLOOKUP(Switch!$D$31,$F$2:$G$44,2,FALSE)+ROW()-2))=Switch!$D$31,INDIRECT(\"a\" & (VLOOKUP(Switch!$D$31,$F$2:$G$44,2,FALSE)+ROW()-2)),\"\")","v":{"$error":"#N/A"}},{"$f":"IF(INDIRECT(\"c\" & (VLOOKUP(Switch!$D$32,$F$2:$G$44,2,FALSE)+ROW()-2))=Switch!$D$32,INDIRECT(\"a\" & (VLOOKUP(Switch!$D$32,$F$2:$G$44,2,FALSE)+ROW()-2)),\"\")","v":{"$error":"#N/A"}},{"$f":"IF(INDIRECT(\"c\" & (VLOOKUP(Switch!$D$33,$F$2:$G$44,2,FALSE)+ROW()-2))=Switch!$D$33,INDIRECT(\"a\" & (VLOOKUP(Switch!$D$33,$F$2:$G$44,2,FALSE)+ROW()-2)),\"\")","v":{"$error":"#N/A"}},{"$f":"IF(INDIRECT(\"c\" & (VLOOKUP(Switch!$D$34,$F$2:$G$44,2,FALSE)+ROW()-2))=Switch!$D$34,INDIRECT(\"a\" & (VLOOKUP(Switch!$D$34,$F$2:$G$44,2,FALSE)+ROW()-2)),\"\")","v":{"$error":"#N/A"}},{"$f":"IF(INDIRECT(\"c\" & (VLOOKUP(Switch!$D$35,$F$2:$G$44,2,FALSE)+ROW()-2))=Switch!$D$35,INDIRECT(\"a\" & (VLOOKUP(Switch!$D$35,$F$2:$G$44,2,FALSE)+ROW()-2)),\"\")","v":{"$error":"#N/A"}},{"$f":"IF(INDIRECT(\"c\" & (VLOOKUP(Switch!$D$36,$F$2:$G$44,2,FALSE)+ROW()-2))=Switch!$D$36,INDIRECT(\"a\" & (VLOOKUP(Switch!$D$36,$F$2:$G$44,2,FALSE)+ROW()-2)),\"\")","v":{"$error":"#N/A"}},{"$f":"IF(INDIRECT(\"c\" & (VLOOKUP(Switch!$D$37,$F$2:$G$44,2,FALSE)+ROW()-2))=Switch!$D$37,INDIRECT(\"a\" & (VLOOKUP(Switch!$D$37,$F$2:$G$44,2,FALSE)+ROW()-2)),\"\")","v":{"$error":"#N/A"}},{"$f":"IF(INDIRECT(\"c\" & (VLOOKUP(Switch!$D$38,$F$2:$G$44,2,FALSE)+ROW()-2))=Switch!$D$38,INDIRECT(\"a\" & (VLOOKUP(Switch!$D$38,$F$2:$G$44,2,FALSE)+ROW()-2)),\"\")","v":{"$error":"#N/A"}},{"$f":"IF(INDIRECT(\"c\" & (VLOOKUP(Switch!$D$39,$F$2:$G$44,2,FALSE)+ROW()-2))=Switch!$D$39,INDIRECT(\"a\" & (VLOOKUP(Switch!$D$39,$F$2:$G$44,2,FALSE)+ROW()-2)),\"\")","v":{"$error":"#N/A"}},{"$f":"IF(INDIRECT(\"c\" & (VLOOKUP(Switch!$D$40,$F$2:$G$44,2,FALSE)+ROW()-2))=Switch!$D$40,INDIRECT(\"a\" & (VLOOKUP(Switch!$D$40,$F$2:$G$44,2,FALSE)+ROW()-2)),\"\")","v":{"$error":"#N/A"}},{"$f":"IF(INDIRECT(\"c\" & (VLOOKUP(Switch!$D$52,$F$2:$G$44,2,FALSE)+ROW()-2))=Switch!$D$52,INDIRECT(\"a\" & (VLOOKUP(Switch!$D$52,$F$2:$G$44,2,FALSE)+ROW()-2)),\"\")","v":{"$error":"#N/A"}},{"$f":"IF(INDIRECT(\"c\" & (VLOOKUP(Switch!$D$53,$F$2:$G$44,2,FALSE)+ROW()-2))=Switch!$D$53,INDIRECT(\"a\" & (VLOOKUP(Switch!$D$53,$F$2:$G$44,2,FALSE)+ROW()-2)),\"\")","v":{"$error":"#N/A"}},{"$f":"IF(INDIRECT(\"c\" & (VLOOKUP(Switch!$D$54,$F$2:$G$44,2,FALSE)+ROW()-2))=Switch!$D$54,INDIRECT(\"a\" & (VLOOKUP(Switch!$D$54,$F$2:$G$44,2,FALSE)+ROW()-2)),\"\")","v":{"$error":"#N/A"}},{"$f":"IF(INDIRECT(\"c\" & (VLOOKUP(Switch!$D$55,$F$2:$G$44,2,FALSE)+ROW()-2))=Switch!$D$55,INDIRECT(\"a\" & (VLOOKUP(Switch!$D$55,$F$2:$G$44,2,FALSE)+ROW()-2)),\"\")","v":{"$error":"#N/A"}},{"$f":"IF(INDIRECT(\"c\" & (VLOOKUP(Switch!$D$56,$F$2:$G$44,2,FALSE)+ROW()-2))=Switch!$D$56,INDIRECT(\"a\" & (VLOOKUP(Switch!$D$56,$F$2:$G$44,2,FALSE)+ROW()-2)),\"\")","v":{"$error":"#N/A"}},{"$f":"IF(INDIRECT(\"c\" & (VLOOKUP(Switch!$D$57,$F$2:$G$44,2,FALSE)+ROW()-2))=Switch!$D$57,INDIRECT(\"a\" & (VLOOKUP(Switch!$D$57,$F$2:$G$44,2,FALSE)+ROW()-2)),\"\")","v":{"$error":"#N/A"}},{"$f":"IF(INDIRECT(\"c\" & (VLOOKUP(Switch!$D$58,$F$2:$G$44,2,FALSE)+ROW()-2))=Switch!$D$58,INDIRECT(\"a\" & (VLOOKUP(Switch!$D$58,$F$2:$G$44,2,FALSE)+ROW()-2)),\"\")","v":{"$error":"#N/A"}},{"$f":"IF(INDIRECT(\"c\" & (VLOOKUP(Switch!$D$59,$F$2:$G$44,2,FALSE)+ROW()-2))=Switch!$D$59,INDIRECT(\"a\" & (VLOOKUP(Switch!$D$59,$F$2:$G$44,2,FALSE)+ROW()-2)),\"\")","v":{"$error":"#N/A"}},{"$f":"IF(INDIRECT(\"c\" & (VLOOKUP(Switch!$D$60,$F$2:$G$44,2,FALSE)+ROW()-2))=Switch!$D$60,INDIRECT(\"a\" & (VLOOKUP(Switch!$D$60,$F$2:$G$44,2,FALSE)+ROW()-2)),\"\")","v":{"$error":"#N/A"}},{"$f":"IF(INDIRECT(\"c\" & (VLOOKUP(Switch!$D$61,$F$2:$G$44,2,FALSE)+ROW()-2))=Switch!$D$61,INDIRECT(\"a\" & (VLOOKUP(Switch!$D$61,$F$2:$G$44,2,FALSE)+ROW()-2)),\"\")","v":{"$error":"#N/A"}},{"$f":"IF(INDIRECT(\"c\" & (VLOOKUP(Switch!$D$62,$F$2:$G$44,2,FALSE)+ROW()-2))=Switch!$D$62,INDIRECT(\"a\" & (VLOOKUP(Switch!$D$62,$F$2:$G$44,2,FALSE)+ROW()-2)),\"\")","v":{"$error":"#N/A"}},{"$f":"IF(INDIRECT(\"c\" & (VLOOKUP(Switch!$D$63,$F$2:$G$44,2,FALSE)+ROW()-2))=Switch!$D$63,INDIRECT(\"a\" & (VLOOKUP(Switch!$D$63,$F$2:$G$44,2,FALSE)+ROW()-2)),\"\")","v":{"$error":"#N/A"}},{"$f":"IF(INDIRECT(\"c\" & (VLOOKUP(Switch!$D$64,$F$2:$G$44,2,FALSE)+ROW()-2))=Switch!$D$64,INDIRECT(\"a\" & (VLOOKUP(Switch!$D$64,$F$2:$G$44,2,FALSE)+ROW()-2)),\"\")","v":{"$error":"#N/A"}},{"$f":"IF(INDIRECT(\"c\" & (VLOOKUP(Switch!$D$65,$F$2:$G$44,2,FALSE)+ROW()-2))=Switch!$D$65,INDIRECT(\"a\" & (VLOOKUP(Switch!$D$65,$F$2:$G$44,2,FALSE)+ROW()-2)),\"\")","v":{"$error":"#N/A"}},{"$f":"IF(INDIRECT(\"c\" & (VLOOKUP(Switch!$D$66,$F$2:$G$44,2,FALSE)+ROW()-2))=Switch!$D$66,INDIRECT(\"a\" & (VLOOKUP(Switch!$D$66,$F$2:$G$44,2,FALSE)+ROW()-2)),\"\")","v":{"$error":"#N/A"}}]
["Mi-Plan IP Beta Equity Fund B2","PBEB2","IP Management Company (Pty) Ltd",{"$f":"ROW()","v":292},null,null,{"$f":"VLOOKUP(F292,$C$2:$D$637,2,FALSE)","v":{"$error":"#N/A"}},{"$f":"IF(INDIRECT(\"c\" & (VLOOKUP(Switch!$D$26,$F$2:$G$44,2,FALSE)+ROW()-2))=Switch!$D$26,INDIRECT(\"a\" & (VLOOKUP(Switch!$D$26,$F$2:$G$44,2,FALSE)+ROW()-2)),\"\")","v":{"$error":"#N/A"}},{"$f":"IF(INDIRECT(\"c\" & (VLOOKUP(Switch!$D$27,$F$2:$G$44,2,FALSE)+ROW()-2))=Switch!$D$27,INDIRECT(\"a\" & (VLOOKUP(Switch!$D$27,$F$2:$G$44,2,FALSE)+ROW()-2)),\"\")","v":{"$error":"#N/A"}},{"$f":"IF(INDIRECT(\"c\" & (VLOOKUP(Switch!$D$28,$F$2:$G$44,2,FALSE)+ROW()-2))=Switch!$D$28,INDIRECT(\"a\" & (VLOOKUP(Switch!$D$28,$F$2:$G$44,2,FALSE)+ROW()-2)),\"\")","v":{"$error":"#N/A"}},{"$f":"IF(INDIRECT(\"c\" & (VLOOKUP(Switch!$D$29,$F$2:$G$44,2,FALSE)+ROW()-2))=Switch!$D$29,INDIRECT(\"a\" & (VLOOKUP(Switch!$D$29,$F$2:$G$44,2,FALSE)+ROW()-2)),\"\")","v":{"$error":"#N/A"}},{"$f":"IF(INDIRECT(\"c\" & (VLOOKUP(Switch!$D$30,$F$2:$G$44,2,FALSE)+ROW()-2))=Switch!$D$30,INDIRECT(\"a\" & (VLOOKUP(Switch!$D$30,$F$2:$G$44,2,FALSE)+ROW()-2)),\"\")","v":{"$error":"#N/A"}},{"$f":"IF(INDIRECT(\"c\" & (VLOOKUP(Switch!$D$31,$F$2:$G$44,2,FALSE)+ROW()-2))=Switch!$D$31,INDIRECT(\"a\" & (VLOOKUP(Switch!$D$31,$F$2:$G$44,2,FALSE)+ROW()-2)),\"\")","v":{"$error":"#N/A"}},{"$f":"IF(INDIRECT(\"c\" & (VLOOKUP(Switch!$D$32,$F$2:$G$44,2,FALSE)+ROW()-2))=Switch!$D$32,INDIRECT(\"a\" & (VLOOKUP(Switch!$D$32,$F$2:$G$44,2,FALSE)+ROW()-2)),\"\")","v":{"$error":"#N/A"}},{"$f":"IF(INDIRECT(\"c\" & (VLOOKUP(Switch!$D$33,$F$2:$G$44,2,FALSE)+ROW()-2))=Switch!$D$33,INDIRECT(\"a\" & (VLOOKUP(Switch!$D$33,$F$2:$G$44,2,FALSE)+ROW()-2)),\"\")","v":{"$error":"#N/A"}},{"$f":"IF(INDIRECT(\"c\" & (VLOOKUP(Switch!$D$34,$F$2:$G$44,2,FALSE)+ROW()-2))=Switch!$D$34,INDIRECT(\"a\" & (VLOOKUP(Switch!$D$34,$F$2:$G$44,2,FALSE)+ROW()-2)),\"\")","v":{"$error":"#N/A"}},{"$f":"IF(INDIRECT(\"c\" & (VLOOKUP(Switch!$D$35,$F$2:$G$44,2,FALSE)+ROW()-2))=Switch!$D$35,INDIRECT(\"a\" & (VLOOKUP(Switch!$D$35,$F$2:$G$44,2,FALSE)+ROW()-2)),\"\")","v":{"$error":"#N/A"}},{"$f":"IF(INDIRECT(\"c\" & (VLOOKUP(Switch!$D$36,$F$2:$G$44,2,FALSE)+ROW()-2))=Switch!$D$36,INDIRECT(\"a\" & (VLOOKUP(Switch!$D$36,$F$2:$G$44,2,FALSE)+ROW()-2)),\"\")","v":{"$error":"#N/A"}},{"$f":"IF(INDIRECT(\"c\" & (VLOOKUP(Switch!$D$37,$F$2:$G$44,2,FALSE)+ROW()-2))=Switch!$D$37,INDIRECT(\"a\" & (VLOOKUP(Switch!$D$37,$F$2:$G$44,2,FALSE)+ROW()-2)),\"\")","v":{"$error":"#N/A"}},{"$f":"IF(INDIRECT(\"c\" & (VLOOKUP(Switch!$D$38,$F$2:$G$44,2,FALSE)+ROW()-2))=Switch!$D$38,INDIRECT(\"a\" & (VLOOKUP(Switch!$D$38,$F$2:$G$44,2,FALSE)+ROW()-2)),\"\")","v":{"$error":"#N/A"}},{"$f":"IF(INDIRECT(\"c\" & (VLOOKUP(Switch!$D$39,$F$2:$G$44,2,FALSE)+ROW()-2))=Switch!$D$39,INDIRECT(\"a\" & (VLOOKUP(Switch!$D$39,$F$2:$G$44,2,FALSE)+ROW()-2)),\"\")","v":{"$error":"#N/A"}},{"$f":"IF(INDIRECT(\"c\" & (VLOOKUP(Switch!$D$40,$F$2:$G$44,2,FALSE)+ROW()-2))=Switch!$D$40,INDIRECT(\"a\" & (VLOOKUP(Switch!$D$40,$F$2:$G$44,2,FALSE)+ROW()-2)),\"\")","v":{"$error":"#N/A"}},{"$f":"IF(INDIRECT(\"c\" & (VLOOKUP(Switch!$D$52,$F$2:$G$44,2,FALSE)+ROW()-2))=Switch!$D$52,INDIRECT(\"a\" & (VLOOKUP(Switch!$D$52,$F$2:$G$44,2,FALSE)+ROW()-2)),\"\")","v":{"$error":"#N/A"}},{"$f":"IF(INDIRECT(\"c\" & (VLOOKUP(Switch!$D$53,$F$2:$G$44,2,FALSE)+ROW()-2))=Switch!$D$53,INDIRECT(\"a\" & (VLOOKUP(Switch!$D$53,$F$2:$G$44,2,FALSE)+ROW()-2)),\"\")","v":{"$error":"#N/A"}},{"$f":"IF(INDIRECT(\"c\" & (VLOOKUP(Switch!$D$54,$F$2:$G$44,2,FALSE)+ROW()-2))=Switch!$D$54,INDIRECT(\"a\" & (VLOOKUP(Switch!$D$54,$F$2:$G$44,2,FALSE)+ROW()-2)),\"\")","v":{"$error":"#N/A"}},{"$f":"IF(INDIRECT(\"c\" & (VLOOKUP(Switch!$D$55,$F$2:$G$44,2,FALSE)+ROW()-2))=Switch!$D$55,INDIRECT(\"a\" & (VLOOKUP(Switch!$D$55,$F$2:$G$44,2,FALSE)+ROW()-2)),\"\")","v":{"$error":"#N/A"}},{"$f":"IF(INDIRECT(\"c\" & (VLOOKUP(Switch!$D$56,$F$2:$G$44,2,FALSE)+ROW()-2))=Switch!$D$56,INDIRECT(\"a\" & (VLOOKUP(Switch!$D$56,$F$2:$G$44,2,FALSE)+ROW()-2)),\"\")","v":{"$error":"#N/A"}},{"$f":"IF(INDIRECT(\"c\" & (VLOOKUP(Switch!$D$57,$F$2:$G$44,2,FALSE)+ROW()-2))=Switch!$D$57,INDIRECT(\"a\" & (VLOOKUP(Switch!$D$57,$F$2:$G$44,2,FALSE)+ROW()-2)),\"\")","v":{"$error":"#N/A"}},{"$f":"IF(INDIRECT(\"c\" & (VLOOKUP(Switch!$D$58,$F$2:$G$44,2,FALSE)+ROW()-2))=Switch!$D$58,INDIRECT(\"a\" & (VLOOKUP(Switch!$D$58,$F$2:$G$44,2,FALSE)+ROW()-2)),\"\")","v":{"$error":"#N/A"}},{"$f":"IF(INDIRECT(\"c\" & (VLOOKUP(Switch!$D$59,$F$2:$G$44,2,FALSE)+ROW()-2))=Switch!$D$59,INDIRECT(\"a\" & (VLOOKUP(Switch!$D$59,$F$2:$G$44,2,FALSE)+ROW()-2)),\"\")","v":{"$error":"#N/A"}},{"$f":"IF(INDIRECT(\"c\" & (VLOOKUP(Switch!$D$60,$F$2:$G$44,2,FALSE)+ROW()-2))=Switch!$D$60,INDIRECT(\"a\" & (VLOOKUP(Switch!$D$60,$F$2:$G$44,2,FALSE)+ROW()-2)),\"\")","v":{"$error":"#N/A"}},{"$f":"IF(INDIRECT(\"c\" & (VLOOKUP(Switch!$D$61,$F$2:$G$44,2,FALSE)+ROW()-2))=Switch!$D$61,INDIRECT(\"a\" & (VLOOKUP(Switch!$D$61,$F$2:$G$44,2,FALSE)+ROW()-2)),\"\")","v":{"$error":"#N/A"}},{"$f":"IF(INDIRECT(\"c\" & (VLOOKUP(Switch!$D$62,$F$2:$G$44,2,FALSE)+ROW()-2))=Switch!$D$62,INDIRECT(\"a\" & (VLOOKUP(Switch!$D$62,$F$2:$G$44,2,FALSE)+ROW()-2)),\"\")","v":{"$error":"#N/A"}},{"$f":"IF(INDIRECT(\"c\" & (VLOOKUP(Switch!$D$63,$F$2:$G$44,2,FALSE)+ROW()-2))=Switch!$D$63,INDIRECT(\"a\" & (VLOOKUP(Switch!$D$63,$F$2:$G$44,2,FALSE)+ROW()-2)),\"\")","v":{"$error":"#N/A"}},{"$f":"IF(INDIRECT(\"c\" & (VLOOKUP(Switch!$D$64,$F$2:$G$44,2,FALSE)+ROW()-2))=Switch!$D$64,INDIRECT(\"a\" & (VLOOKUP(Switch!$D$64,$F$2:$G$44,2,FALSE)+ROW()-2)),\"\")","v":{"$error":"#N/A"}},{"$f":"IF(INDIRECT(\"c\" & (VLOOKUP(Switch!$D$65,$F$2:$G$44,2,FALSE)+ROW()-2))=Switch!$D$65,INDIRECT(\"a\" & (VLOOKUP(Switch!$D$65,$F$2:$G$44,2,FALSE)+ROW()-2)),\"\")","v":{"$error":"#N/A"}},{"$f":"IF(INDIRECT(\"c\" & (VLOOKUP(Switch!$D$66,$F$2:$G$44,2,FALSE)+ROW()-2))=Switch!$D$66,INDIRECT(\"a\" & (VLOOKUP(Switch!$D$66,$F$2:$G$44,2,FALSE)+ROW()-2)),\"\")","v":{"$error":"#N/A"}}]
["Mi-Plan IP Global Macro Fund B5","MGMF","IP Management Company (Pty) Ltd",{"$f":"ROW()","v":293},null,null,{"$f":"VLOOKUP(F293,$C$2:$D$637,2,FALSE)","v":{"$error":"#N/A"}},{"$f":"IF(INDIRECT(\"c\" & (VLOOKUP(Switch!$D$26,$F$2:$G$44,2,FALSE)+ROW()-2))=Switch!$D$26,INDIRECT(\"a\" & (VLOOKUP(Switch!$D$26,$F$2:$G$44,2,FALSE)+ROW()-2)),\"\")","v":{"$error":"#N/A"}},{"$f":"IF(INDIRECT(\"c\" & (VLOOKUP(Switch!$D$27,$F$2:$G$44,2,FALSE)+ROW()-2))=Switch!$D$27,INDIRECT(\"a\" & (VLOOKUP(Switch!$D$27,$F$2:$G$44,2,FALSE)+ROW()-2)),\"\")","v":{"$error":"#N/A"}},{"$f":"IF(INDIRECT(\"c\" & (VLOOKUP(Switch!$D$28,$F$2:$G$44,2,FALSE)+ROW()-2))=Switch!$D$28,INDIRECT(\"a\" & (VLOOKUP(Switch!$D$28,$F$2:$G$44,2,FALSE)+ROW()-2)),\"\")","v":{"$error":"#N/A"}},{"$f":"IF(INDIRECT(\"c\" & (VLOOKUP(Switch!$D$29,$F$2:$G$44,2,FALSE)+ROW()-2))=Switch!$D$29,INDIRECT(\"a\" & (VLOOKUP(Switch!$D$29,$F$2:$G$44,2,FALSE)+ROW()-2)),\"\")","v":{"$error":"#N/A"}},{"$f":"IF(INDIRECT(\"c\" & (VLOOKUP(Switch!$D$30,$F$2:$G$44,2,FALSE)+ROW()-2))=Switch!$D$30,INDIRECT(\"a\" & (VLOOKUP(Switch!$D$30,$F$2:$G$44,2,FALSE)+ROW()-2)),\"\")","v":{"$error":"#N/A"}},{"$f":"IF(INDIRECT(\"c\" & (VLOOKUP(Switch!$D$31,$F$2:$G$44,2,FALSE)+ROW()-2))=Switch!$D$31,INDIRECT(\"a\" & (VLOOKUP(Switch!$D$31,$F$2:$G$44,2,FALSE)+ROW()-2)),\"\")","v":{"$error":"#N/A"}},{"$f":"IF(INDIRECT(\"c\" & (VLOOKUP(Switch!$D$32,$F$2:$G$44,2,FALSE)+ROW()-2))=Switch!$D$32,INDIRECT(\"a\" & (VLOOKUP(Switch!$D$32,$F$2:$G$44,2,FALSE)+ROW()-2)),\"\")","v":{"$error":"#N/A"}},{"$f":"IF(INDIRECT(\"c\" & (VLOOKUP(Switch!$D$33,$F$2:$G$44,2,FALSE)+ROW()-2))=Switch!$D$33,INDIRECT(\"a\" & (VLOOKUP(Switch!$D$33,$F$2:$G$44,2,FALSE)+ROW()-2)),\"\")","v":{"$error":"#N/A"}},{"$f":"IF(INDIRECT(\"c\" & (VLOOKUP(Switch!$D$34,$F$2:$G$44,2,FALSE)+ROW()-2))=Switch!$D$34,INDIRECT(\"a\" & (VLOOKUP(Switch!$D$34,$F$2:$G$44,2,FALSE)+ROW()-2)),\"\")","v":{"$error":"#N/A"}},{"$f":"IF(INDIRECT(\"c\" & (VLOOKUP(Switch!$D$35,$F$2:$G$44,2,FALSE)+ROW()-2))=Switch!$D$35,INDIRECT(\"a\" & (VLOOKUP(Switch!$D$35,$F$2:$G$44,2,FALSE)+ROW()-2)),\"\")","v":{"$error":"#N/A"}},{"$f":"IF(INDIRECT(\"c\" & (VLOOKUP(Switch!$D$36,$F$2:$G$44,2,FALSE)+ROW()-2))=Switch!$D$36,INDIRECT(\"a\" & (VLOOKUP(Switch!$D$36,$F$2:$G$44,2,FALSE)+ROW()-2)),\"\")","v":{"$error":"#N/A"}},{"$f":"IF(INDIRECT(\"c\" & (VLOOKUP(Switch!$D$37,$F$2:$G$44,2,FALSE)+ROW()-2))=Switch!$D$37,INDIRECT(\"a\" & (VLOOKUP(Switch!$D$37,$F$2:$G$44,2,FALSE)+ROW()-2)),\"\")","v":{"$error":"#N/A"}},{"$f":"IF(INDIRECT(\"c\" & (VLOOKUP(Switch!$D$38,$F$2:$G$44,2,FALSE)+ROW()-2))=Switch!$D$38,INDIRECT(\"a\" & (VLOOKUP(Switch!$D$38,$F$2:$G$44,2,FALSE)+ROW()-2)),\"\")","v":{"$error":"#N/A"}},{"$f":"IF(INDIRECT(\"c\" & (VLOOKUP(Switch!$D$39,$F$2:$G$44,2,FALSE)+ROW()-2))=Switch!$D$39,INDIRECT(\"a\" & (VLOOKUP(Switch!$D$39,$F$2:$G$44,2,FALSE)+ROW()-2)),\"\")","v":{"$error":"#N/A"}},{"$f":"IF(INDIRECT(\"c\" & (VLOOKUP(Switch!$D$40,$F$2:$G$44,2,FALSE)+ROW()-2))=Switch!$D$40,INDIRECT(\"a\" & (VLOOKUP(Switch!$D$40,$F$2:$G$44,2,FALSE)+ROW()-2)),\"\")","v":{"$error":"#N/A"}},{"$f":"IF(INDIRECT(\"c\" & (VLOOKUP(Switch!$D$52,$F$2:$G$44,2,FALSE)+ROW()-2))=Switch!$D$52,INDIRECT(\"a\" & (VLOOKUP(Switch!$D$52,$F$2:$G$44,2,FALSE)+ROW()-2)),\"\")","v":{"$error":"#N/A"}},{"$f":"IF(INDIRECT(\"c\" & (VLOOKUP(Switch!$D$53,$F$2:$G$44,2,FALSE)+ROW()-2))=Switch!$D$53,INDIRECT(\"a\" & (VLOOKUP(Switch!$D$53,$F$2:$G$44,2,FALSE)+ROW()-2)),\"\")","v":{"$error":"#N/A"}},{"$f":"IF(INDIRECT(\"c\" & (VLOOKUP(Switch!$D$54,$F$2:$G$44,2,FALSE)+ROW()-2))=Switch!$D$54,INDIRECT(\"a\" & (VLOOKUP(Switch!$D$54,$F$2:$G$44,2,FALSE)+ROW()-2)),\"\")","v":{"$error":"#N/A"}},{"$f":"IF(INDIRECT(\"c\" & (VLOOKUP(Switch!$D$55,$F$2:$G$44,2,FALSE)+ROW()-2))=Switch!$D$55,INDIRECT(\"a\" & (VLOOKUP(Switch!$D$55,$F$2:$G$44,2,FALSE)+ROW()-2)),\"\")","v":{"$error":"#N/A"}},{"$f":"IF(INDIRECT(\"c\" & (VLOOKUP(Switch!$D$56,$F$2:$G$44,2,FALSE)+ROW()-2))=Switch!$D$56,INDIRECT(\"a\" & (VLOOKUP(Switch!$D$56,$F$2:$G$44,2,FALSE)+ROW()-2)),\"\")","v":{"$error":"#N/A"}},{"$f":"IF(INDIRECT(\"c\" & (VLOOKUP(Switch!$D$57,$F$2:$G$44,2,FALSE)+ROW()-2))=Switch!$D$57,INDIRECT(\"a\" & (VLOOKUP(Switch!$D$57,$F$2:$G$44,2,FALSE)+ROW()-2)),\"\")","v":{"$error":"#N/A"}},{"$f":"IF(INDIRECT(\"c\" & (VLOOKUP(Switch!$D$58,$F$2:$G$44,2,FALSE)+ROW()-2))=Switch!$D$58,INDIRECT(\"a\" & (VLOOKUP(Switch!$D$58,$F$2:$G$44,2,FALSE)+ROW()-2)),\"\")","v":{"$error":"#N/A"}},{"$f":"IF(INDIRECT(\"c\" & (VLOOKUP(Switch!$D$59,$F$2:$G$44,2,FALSE)+ROW()-2))=Switch!$D$59,INDIRECT(\"a\" & (VLOOKUP(Switch!$D$59,$F$2:$G$44,2,FALSE)+ROW()-2)),\"\")","v":{"$error":"#N/A"}},{"$f":"IF(INDIRECT(\"c\" & (VLOOKUP(Switch!$D$60,$F$2:$G$44,2,FALSE)+ROW()-2))=Switch!$D$60,INDIRECT(\"a\" & (VLOOKUP(Switch!$D$60,$F$2:$G$44,2,FALSE)+ROW()-2)),\"\")","v":{"$error":"#N/A"}},{"$f":"IF(INDIRECT(\"c\" & (VLOOKUP(Switch!$D$61,$F$2:$G$44,2,FALSE)+ROW()-2))=Switch!$D$61,INDIRECT(\"a\" & (VLOOKUP(Switch!$D$61,$F$2:$G$44,2,FALSE)+ROW()-2)),\"\")","v":{"$error":"#N/A"}},{"$f":"IF(INDIRECT(\"c\" & (VLOOKUP(Switch!$D$62,$F$2:$G$44,2,FALSE)+ROW()-2))=Switch!$D$62,INDIRECT(\"a\" & (VLOOKUP(Switch!$D$62,$F$2:$G$44,2,FALSE)+ROW()-2)),\"\")","v":{"$error":"#N/A"}},{"$f":"IF(INDIRECT(\"c\" & (VLOOKUP(Switch!$D$63,$F$2:$G$44,2,FALSE)+ROW()-2))=Switch!$D$63,INDIRECT(\"a\" & (VLOOKUP(Switch!$D$63,$F$2:$G$44,2,FALSE)+ROW()-2)),\"\")","v":{"$error":"#N/A"}},{"$f":"IF(INDIRECT(\"c\" & (VLOOKUP(Switch!$D$64,$F$2:$G$44,2,FALSE)+ROW()-2))=Switch!$D$64,INDIRECT(\"a\" & (VLOOKUP(Switch!$D$64,$F$2:$G$44,2,FALSE)+ROW()-2)),\"\")","v":{"$error":"#N/A"}},{"$f":"IF(INDIRECT(\"c\" & (VLOOKUP(Switch!$D$65,$F$2:$G$44,2,FALSE)+ROW()-2))=Switch!$D$65,INDIRECT(\"a\" & (VLOOKUP(Switch!$D$65,$F$2:$G$44,2,FALSE)+ROW()-2)),\"\")","v":{"$error":"#N/A"}},{"$f":"IF(INDIRECT(\"c\" & (VLOOKUP(Switch!$D$66,$F$2:$G$44,2,FALSE)+ROW()-2))=Switch!$D$66,INDIRECT(\"a\" & (VLOOKUP(Switch!$D$66,$F$2:$G$44,2,FALSE)+ROW()-2)),\"\")","v":{"$error":"#N/A"}}]
["MiPlan IP Global Property Feeder B5","MISP","IP Management Company (Pty) Ltd",{"$f":"ROW()","v":294},null,null,{"$f":"VLOOKUP(F294,$C$2:$D$637,2,FALSE)","v":{"$error":"#N/A"}},{"$f":"IF(INDIRECT(\"c\" & (VLOOKUP(Switch!$D$26,$F$2:$G$44,2,FALSE)+ROW()-2))=Switch!$D$26,INDIRECT(\"a\" & (VLOOKUP(Switch!$D$26,$F$2:$G$44,2,FALSE)+ROW()-2)),\"\")","v":{"$error":"#N/A"}},{"$f":"IF(INDIRECT(\"c\" & (VLOOKUP(Switch!$D$27,$F$2:$G$44,2,FALSE)+ROW()-2))=Switch!$D$27,INDIRECT(\"a\" & (VLOOKUP(Switch!$D$27,$F$2:$G$44,2,FALSE)+ROW()-2)),\"\")","v":{"$error":"#N/A"}},{"$f":"IF(INDIRECT(\"c\" & (VLOOKUP(Switch!$D$28,$F$2:$G$44,2,FALSE)+ROW()-2))=Switch!$D$28,INDIRECT(\"a\" & (VLOOKUP(Switch!$D$28,$F$2:$G$44,2,FALSE)+ROW()-2)),\"\")","v":{"$error":"#N/A"}},{"$f":"IF(INDIRECT(\"c\" & (VLOOKUP(Switch!$D$29,$F$2:$G$44,2,FALSE)+ROW()-2))=Switch!$D$29,INDIRECT(\"a\" & (VLOOKUP(Switch!$D$29,$F$2:$G$44,2,FALSE)+ROW()-2)),\"\")","v":{"$error":"#N/A"}},{"$f":"IF(INDIRECT(\"c\" & (VLOOKUP(Switch!$D$30,$F$2:$G$44,2,FALSE)+ROW()-2))=Switch!$D$30,INDIRECT(\"a\" & (VLOOKUP(Switch!$D$30,$F$2:$G$44,2,FALSE)+ROW()-2)),\"\")","v":{"$error":"#N/A"}},{"$f":"IF(INDIRECT(\"c\" & (VLOOKUP(Switch!$D$31,$F$2:$G$44,2,FALSE)+ROW()-2))=Switch!$D$31,INDIRECT(\"a\" & (VLOOKUP(Switch!$D$31,$F$2:$G$44,2,FALSE)+ROW()-2)),\"\")","v":{"$error":"#N/A"}},{"$f":"IF(INDIRECT(\"c\" & (VLOOKUP(Switch!$D$32,$F$2:$G$44,2,FALSE)+ROW()-2))=Switch!$D$32,INDIRECT(\"a\" & (VLOOKUP(Switch!$D$32,$F$2:$G$44,2,FALSE)+ROW()-2)),\"\")","v":{"$error":"#N/A"}},{"$f":"IF(INDIRECT(\"c\" & (VLOOKUP(Switch!$D$33,$F$2:$G$44,2,FALSE)+ROW()-2))=Switch!$D$33,INDIRECT(\"a\" & (VLOOKUP(Switch!$D$33,$F$2:$G$44,2,FALSE)+ROW()-2)),\"\")","v":{"$error":"#N/A"}},{"$f":"IF(INDIRECT(\"c\" & (VLOOKUP(Switch!$D$34,$F$2:$G$44,2,FALSE)+ROW()-2))=Switch!$D$34,INDIRECT(\"a\" & (VLOOKUP(Switch!$D$34,$F$2:$G$44,2,FALSE)+ROW()-2)),\"\")","v":{"$error":"#N/A"}},{"$f":"IF(INDIRECT(\"c\" & (VLOOKUP(Switch!$D$35,$F$2:$G$44,2,FALSE)+ROW()-2))=Switch!$D$35,INDIRECT(\"a\" & (VLOOKUP(Switch!$D$35,$F$2:$G$44,2,FALSE)+ROW()-2)),\"\")","v":{"$error":"#N/A"}},{"$f":"IF(INDIRECT(\"c\" & (VLOOKUP(Switch!$D$36,$F$2:$G$44,2,FALSE)+ROW()-2))=Switch!$D$36,INDIRECT(\"a\" & (VLOOKUP(Switch!$D$36,$F$2:$G$44,2,FALSE)+ROW()-2)),\"\")","v":{"$error":"#N/A"}},{"$f":"IF(INDIRECT(\"c\" & (VLOOKUP(Switch!$D$37,$F$2:$G$44,2,FALSE)+ROW()-2))=Switch!$D$37,INDIRECT(\"a\" & (VLOOKUP(Switch!$D$37,$F$2:$G$44,2,FALSE)+ROW()-2)),\"\")","v":{"$error":"#N/A"}},{"$f":"IF(INDIRECT(\"c\" & (VLOOKUP(Switch!$D$38,$F$2:$G$44,2,FALSE)+ROW()-2))=Switch!$D$38,INDIRECT(\"a\" & (VLOOKUP(Switch!$D$38,$F$2:$G$44,2,FALSE)+ROW()-2)),\"\")","v":{"$error":"#N/A"}},{"$f":"IF(INDIRECT(\"c\" & (VLOOKUP(Switch!$D$39,$F$2:$G$44,2,FALSE)+ROW()-2))=Switch!$D$39,INDIRECT(\"a\" & (VLOOKUP(Switch!$D$39,$F$2:$G$44,2,FALSE)+ROW()-2)),\"\")","v":{"$error":"#N/A"}},{"$f":"IF(INDIRECT(\"c\" & (VLOOKUP(Switch!$D$40,$F$2:$G$44,2,FALSE)+ROW()-2))=Switch!$D$40,INDIRECT(\"a\" & (VLOOKUP(Switch!$D$40,$F$2:$G$44,2,FALSE)+ROW()-2)),\"\")","v":{"$error":"#N/A"}},{"$f":"IF(INDIRECT(\"c\" & (VLOOKUP(Switch!$D$52,$F$2:$G$44,2,FALSE)+ROW()-2))=Switch!$D$52,INDIRECT(\"a\" & (VLOOKUP(Switch!$D$52,$F$2:$G$44,2,FALSE)+ROW()-2)),\"\")","v":{"$error":"#N/A"}},{"$f":"IF(INDIRECT(\"c\" & (VLOOKUP(Switch!$D$53,$F$2:$G$44,2,FALSE)+ROW()-2))=Switch!$D$53,INDIRECT(\"a\" & (VLOOKUP(Switch!$D$53,$F$2:$G$44,2,FALSE)+ROW()-2)),\"\")","v":{"$error":"#N/A"}},{"$f":"IF(INDIRECT(\"c\" & (VLOOKUP(Switch!$D$54,$F$2:$G$44,2,FALSE)+ROW()-2))=Switch!$D$54,INDIRECT(\"a\" & (VLOOKUP(Switch!$D$54,$F$2:$G$44,2,FALSE)+ROW()-2)),\"\")","v":{"$error":"#N/A"}},{"$f":"IF(INDIRECT(\"c\" & (VLOOKUP(Switch!$D$55,$F$2:$G$44,2,FALSE)+ROW()-2))=Switch!$D$55,INDIRECT(\"a\" & (VLOOKUP(Switch!$D$55,$F$2:$G$44,2,FALSE)+ROW()-2)),\"\")","v":{"$error":"#N/A"}},{"$f":"IF(INDIRECT(\"c\" & (VLOOKUP(Switch!$D$56,$F$2:$G$44,2,FALSE)+ROW()-2))=Switch!$D$56,INDIRECT(\"a\" & (VLOOKUP(Switch!$D$56,$F$2:$G$44,2,FALSE)+ROW()-2)),\"\")","v":{"$error":"#N/A"}},{"$f":"IF(INDIRECT(\"c\" & (VLOOKUP(Switch!$D$57,$F$2:$G$44,2,FALSE)+ROW()-2))=Switch!$D$57,INDIRECT(\"a\" & (VLOOKUP(Switch!$D$57,$F$2:$G$44,2,FALSE)+ROW()-2)),\"\")","v":{"$error":"#N/A"}},{"$f":"IF(INDIRECT(\"c\" & (VLOOKUP(Switch!$D$58,$F$2:$G$44,2,FALSE)+ROW()-2))=Switch!$D$58,INDIRECT(\"a\" & (VLOOKUP(Switch!$D$58,$F$2:$G$44,2,FALSE)+ROW()-2)),\"\")","v":{"$error":"#N/A"}},{"$f":"IF(INDIRECT(\"c\" & (VLOOKUP(Switch!$D$59,$F$2:$G$44,2,FALSE)+ROW()-2))=Switch!$D$59,INDIRECT(\"a\" & (VLOOKUP(Switch!$D$59,$F$2:$G$44,2,FALSE)+ROW()-2)),\"\")","v":{"$error":"#N/A"}},{"$f":"IF(INDIRECT(\"c\" & (VLOOKUP(Switch!$D$60,$F$2:$G$44,2,FALSE)+ROW()-2))=Switch!$D$60,INDIRECT(\"a\" & (VLOOKUP(Switch!$D$60,$F$2:$G$44,2,FALSE)+ROW()-2)),\"\")","v":{"$error":"#N/A"}},{"$f":"IF(INDIRECT(\"c\" & (VLOOKUP(Switch!$D$61,$F$2:$G$44,2,FALSE)+ROW()-2))=Switch!$D$61,INDIRECT(\"a\" & (VLOOKUP(Switch!$D$61,$F$2:$G$44,2,FALSE)+ROW()-2)),\"\")","v":{"$error":"#N/A"}},{"$f":"IF(INDIRECT(\"c\" & (VLOOKUP(Switch!$D$62,$F$2:$G$44,2,FALSE)+ROW()-2))=Switch!$D$62,INDIRECT(\"a\" & (VLOOKUP(Switch!$D$62,$F$2:$G$44,2,FALSE)+ROW()-2)),\"\")","v":{"$error":"#N/A"}},{"$f":"IF(INDIRECT(\"c\" & (VLOOKUP(Switch!$D$63,$F$2:$G$44,2,FALSE)+ROW()-2))=Switch!$D$63,INDIRECT(\"a\" & (VLOOKUP(Switch!$D$63,$F$2:$G$44,2,FALSE)+ROW()-2)),\"\")","v":{"$error":"#N/A"}},{"$f":"IF(INDIRECT(\"c\" & (VLOOKUP(Switch!$D$64,$F$2:$G$44,2,FALSE)+ROW()-2))=Switch!$D$64,INDIRECT(\"a\" & (VLOOKUP(Switch!$D$64,$F$2:$G$44,2,FALSE)+ROW()-2)),\"\")","v":{"$error":"#N/A"}},{"$f":"IF(INDIRECT(\"c\" & (VLOOKUP(Switch!$D$65,$F$2:$G$44,2,FALSE)+ROW()-2))=Switch!$D$65,INDIRECT(\"a\" & (VLOOKUP(Switch!$D$65,$F$2:$G$44,2,FALSE)+ROW()-2)),\"\")","v":{"$error":"#N/A"}},{"$f":"IF(INDIRECT(\"c\" & (VLOOKUP(Switch!$D$66,$F$2:$G$44,2,FALSE)+ROW()-2))=Switch!$D$66,INDIRECT(\"a\" & (VLOOKUP(Switch!$D$66,$F$2:$G$44,2,FALSE)+ROW()-2)),\"\")","v":{"$error":"#N/A"}}]
["Vunani IP Accelerated Growth Fund","VAGFB","IP Management Company (Pty) Ltd",{"$f":"ROW()","v":295},null,null,{"$f":"VLOOKUP(F295,$C$2:$D$637,2,FALSE)","v":{"$error":"#N/A"}},{"$f":"IF(INDIRECT(\"c\" & (VLOOKUP(Switch!$D$26,$F$2:$G$44,2,FALSE)+ROW()-2))=Switch!$D$26,INDIRECT(\"a\" & (VLOOKUP(Switch!$D$26,$F$2:$G$44,2,FALSE)+ROW()-2)),\"\")","v":{"$error":"#N/A"}},{"$f":"IF(INDIRECT(\"c\" & (VLOOKUP(Switch!$D$27,$F$2:$G$44,2,FALSE)+ROW()-2))=Switch!$D$27,INDIRECT(\"a\" & (VLOOKUP(Switch!$D$27,$F$2:$G$44,2,FALSE)+ROW()-2)),\"\")","v":{"$error":"#N/A"}},{"$f":"IF(INDIRECT(\"c\" & (VLOOKUP(Switch!$D$28,$F$2:$G$44,2,FALSE)+ROW()-2))=Switch!$D$28,INDIRECT(\"a\" & (VLOOKUP(Switch!$D$28,$F$2:$G$44,2,FALSE)+ROW()-2)),\"\")","v":{"$error":"#N/A"}},{"$f":"IF(INDIRECT(\"c\" & (VLOOKUP(Switch!$D$29,$F$2:$G$44,2,FALSE)+ROW()-2))=Switch!$D$29,INDIRECT(\"a\" & (VLOOKUP(Switch!$D$29,$F$2:$G$44,2,FALSE)+ROW()-2)),\"\")","v":{"$error":"#N/A"}},{"$f":"IF(INDIRECT(\"c\" & (VLOOKUP(Switch!$D$30,$F$2:$G$44,2,FALSE)+ROW()-2))=Switch!$D$30,INDIRECT(\"a\" & (VLOOKUP(Switch!$D$30,$F$2:$G$44,2,FALSE)+ROW()-2)),\"\")","v":{"$error":"#N/A"}},{"$f":"IF(INDIRECT(\"c\" & (VLOOKUP(Switch!$D$31,$F$2:$G$44,2,FALSE)+ROW()-2))=Switch!$D$31,INDIRECT(\"a\" & (VLOOKUP(Switch!$D$31,$F$2:$G$44,2,FALSE)+ROW()-2)),\"\")","v":{"$error":"#N/A"}},{"$f":"IF(INDIRECT(\"c\" & (VLOOKUP(Switch!$D$32,$F$2:$G$44,2,FALSE)+ROW()-2))=Switch!$D$32,INDIRECT(\"a\" & (VLOOKUP(Switch!$D$32,$F$2:$G$44,2,FALSE)+ROW()-2)),\"\")","v":{"$error":"#N/A"}},{"$f":"IF(INDIRECT(\"c\" & (VLOOKUP(Switch!$D$33,$F$2:$G$44,2,FALSE)+ROW()-2))=Switch!$D$33,INDIRECT(\"a\" & (VLOOKUP(Switch!$D$33,$F$2:$G$44,2,FALSE)+ROW()-2)),\"\")","v":{"$error":"#N/A"}},{"$f":"IF(INDIRECT(\"c\" & (VLOOKUP(Switch!$D$34,$F$2:$G$44,2,FALSE)+ROW()-2))=Switch!$D$34,INDIRECT(\"a\" & (VLOOKUP(Switch!$D$34,$F$2:$G$44,2,FALSE)+ROW()-2)),\"\")","v":{"$error":"#N/A"}},{"$f":"IF(INDIRECT(\"c\" & (VLOOKUP(Switch!$D$35,$F$2:$G$44,2,FALSE)+ROW()-2))=Switch!$D$35,INDIRECT(\"a\" & (VLOOKUP(Switch!$D$35,$F$2:$G$44,2,FALSE)+ROW()-2)),\"\")","v":{"$error":"#N/A"}},{"$f":"IF(INDIRECT(\"c\" & (VLOOKUP(Switch!$D$36,$F$2:$G$44,2,FALSE)+ROW()-2))=Switch!$D$36,INDIRECT(\"a\" & (VLOOKUP(Switch!$D$36,$F$2:$G$44,2,FALSE)+ROW()-2)),\"\")","v":{"$error":"#N/A"}},{"$f":"IF(INDIRECT(\"c\" & (VLOOKUP(Switch!$D$37,$F$2:$G$44,2,FALSE)+ROW()-2))=Switch!$D$37,INDIRECT(\"a\" & (VLOOKUP(Switch!$D$37,$F$2:$G$44,2,FALSE)+ROW()-2)),\"\")","v":{"$error":"#N/A"}},{"$f":"IF(INDIRECT(\"c\" & (VLOOKUP(Switch!$D$38,$F$2:$G$44,2,FALSE)+ROW()-2))=Switch!$D$38,INDIRECT(\"a\" & (VLOOKUP(Switch!$D$38,$F$2:$G$44,2,FALSE)+ROW()-2)),\"\")","v":{"$error":"#N/A"}},{"$f":"IF(INDIRECT(\"c\" & (VLOOKUP(Switch!$D$39,$F$2:$G$44,2,FALSE)+ROW()-2))=Switch!$D$39,INDIRECT(\"a\" & (VLOOKUP(Switch!$D$39,$F$2:$G$44,2,FALSE)+ROW()-2)),\"\")","v":{"$error":"#N/A"}},{"$f":"IF(INDIRECT(\"c\" & (VLOOKUP(Switch!$D$40,$F$2:$G$44,2,FALSE)+ROW()-2))=Switch!$D$40,INDIRECT(\"a\" & (VLOOKUP(Switch!$D$40,$F$2:$G$44,2,FALSE)+ROW()-2)),\"\")","v":{"$error":"#N/A"}},{"$f":"IF(INDIRECT(\"c\" & (VLOOKUP(Switch!$D$52,$F$2:$G$44,2,FALSE)+ROW()-2))=Switch!$D$52,INDIRECT(\"a\" & (VLOOKUP(Switch!$D$52,$F$2:$G$44,2,FALSE)+ROW()-2)),\"\")","v":{"$error":"#N/A"}},{"$f":"IF(INDIRECT(\"c\" & (VLOOKUP(Switch!$D$53,$F$2:$G$44,2,FALSE)+ROW()-2))=Switch!$D$53,INDIRECT(\"a\" & (VLOOKUP(Switch!$D$53,$F$2:$G$44,2,FALSE)+ROW()-2)),\"\")","v":{"$error":"#N/A"}},{"$f":"IF(INDIRECT(\"c\" & (VLOOKUP(Switch!$D$54,$F$2:$G$44,2,FALSE)+ROW()-2))=Switch!$D$54,INDIRECT(\"a\" & (VLOOKUP(Switch!$D$54,$F$2:$G$44,2,FALSE)+ROW()-2)),\"\")","v":{"$error":"#N/A"}},{"$f":"IF(INDIRECT(\"c\" & (VLOOKUP(Switch!$D$55,$F$2:$G$44,2,FALSE)+ROW()-2))=Switch!$D$55,INDIRECT(\"a\" & (VLOOKUP(Switch!$D$55,$F$2:$G$44,2,FALSE)+ROW()-2)),\"\")","v":{"$error":"#N/A"}},{"$f":"IF(INDIRECT(\"c\" & (VLOOKUP(Switch!$D$56,$F$2:$G$44,2,FALSE)+ROW()-2))=Switch!$D$56,INDIRECT(\"a\" & (VLOOKUP(Switch!$D$56,$F$2:$G$44,2,FALSE)+ROW()-2)),\"\")","v":{"$error":"#N/A"}},{"$f":"IF(INDIRECT(\"c\" & (VLOOKUP(Switch!$D$57,$F$2:$G$44,2,FALSE)+ROW()-2))=Switch!$D$57,INDIRECT(\"a\" & (VLOOKUP(Switch!$D$57,$F$2:$G$44,2,FALSE)+ROW()-2)),\"\")","v":{"$error":"#N/A"}},{"$f":"IF(INDIRECT(\"c\" & (VLOOKUP(Switch!$D$58,$F$2:$G$44,2,FALSE)+ROW()-2))=Switch!$D$58,INDIRECT(\"a\" & (VLOOKUP(Switch!$D$58,$F$2:$G$44,2,FALSE)+ROW()-2)),\"\")","v":{"$error":"#N/A"}},{"$f":"IF(INDIRECT(\"c\" & (VLOOKUP(Switch!$D$59,$F$2:$G$44,2,FALSE)+ROW()-2))=Switch!$D$59,INDIRECT(\"a\" & (VLOOKUP(Switch!$D$59,$F$2:$G$44,2,FALSE)+ROW()-2)),\"\")","v":{"$error":"#N/A"}},{"$f":"IF(INDIRECT(\"c\" & (VLOOKUP(Switch!$D$60,$F$2:$G$44,2,FALSE)+ROW()-2))=Switch!$D$60,INDIRECT(\"a\" & (VLOOKUP(Switch!$D$60,$F$2:$G$44,2,FALSE)+ROW()-2)),\"\")","v":{"$error":"#N/A"}},{"$f":"IF(INDIRECT(\"c\" & (VLOOKUP(Switch!$D$61,$F$2:$G$44,2,FALSE)+ROW()-2))=Switch!$D$61,INDIRECT(\"a\" & (VLOOKUP(Switch!$D$61,$F$2:$G$44,2,FALSE)+ROW()-2)),\"\")","v":{"$error":"#N/A"}},{"$f":"IF(INDIRECT(\"c\" & (VLOOKUP(Switch!$D$62,$F$2:$G$44,2,FALSE)+ROW()-2))=Switch!$D$62,INDIRECT(\"a\" & (VLOOKUP(Switch!$D$62,$F$2:$G$44,2,FALSE)+ROW()-2)),\"\")","v":{"$error":"#N/A"}},{"$f":"IF(INDIRECT(\"c\" & (VLOOKUP(Switch!$D$63,$F$2:$G$44,2,FALSE)+ROW()-2))=Switch!$D$63,INDIRECT(\"a\" & (VLOOKUP(Switch!$D$63,$F$2:$G$44,2,FALSE)+ROW()-2)),\"\")","v":{"$error":"#N/A"}},{"$f":"IF(INDIRECT(\"c\" & (VLOOKUP(Switch!$D$64,$F$2:$G$44,2,FALSE)+ROW()-2))=Switch!$D$64,INDIRECT(\"a\" & (VLOOKUP(Switch!$D$64,$F$2:$G$44,2,FALSE)+ROW()-2)),\"\")","v":{"$error":"#N/A"}},{"$f":"IF(INDIRECT(\"c\" & (VLOOKUP(Switch!$D$65,$F$2:$G$44,2,FALSE)+ROW()-2))=Switch!$D$65,INDIRECT(\"a\" & (VLOOKUP(Switch!$D$65,$F$2:$G$44,2,FALSE)+ROW()-2)),\"\")","v":{"$error":"#N/A"}},{"$f":"IF(INDIRECT(\"c\" & (VLOOKUP(Switch!$D$66,$F$2:$G$44,2,FALSE)+ROW()-2))=Switch!$D$66,INDIRECT(\"a\" & (VLOOKUP(Switch!$D$66,$F$2:$G$44,2,FALSE)+ROW()-2)),\"\")","v":{"$error":"#N/A"}}]
["Kagiso Balanced Fund B1","KABCB","Kagiso Collective Investments Ltd",{"$f":"ROW()","v":296},null,null,{"$f":"VLOOKUP(F296,$C$2:$D$637,2,FALSE)","v":{"$error":"#N/A"}},{"$f":"IF(INDIRECT(\"c\" & (VLOOKUP(Switch!$D$26,$F$2:$G$44,2,FALSE)+ROW()-2))=Switch!$D$26,INDIRECT(\"a\" & (VLOOKUP(Switch!$D$26,$F$2:$G$44,2,FALSE)+ROW()-2)),\"\")","v":{"$error":"#N/A"}},{"$f":"IF(INDIRECT(\"c\" & (VLOOKUP(Switch!$D$27,$F$2:$G$44,2,FALSE)+ROW()-2))=Switch!$D$27,INDIRECT(\"a\" & (VLOOKUP(Switch!$D$27,$F$2:$G$44,2,FALSE)+ROW()-2)),\"\")","v":{"$error":"#N/A"}},{"$f":"IF(INDIRECT(\"c\" & (VLOOKUP(Switch!$D$28,$F$2:$G$44,2,FALSE)+ROW()-2))=Switch!$D$28,INDIRECT(\"a\" & (VLOOKUP(Switch!$D$28,$F$2:$G$44,2,FALSE)+ROW()-2)),\"\")","v":{"$error":"#N/A"}},{"$f":"IF(INDIRECT(\"c\" & (VLOOKUP(Switch!$D$29,$F$2:$G$44,2,FALSE)+ROW()-2))=Switch!$D$29,INDIRECT(\"a\" & (VLOOKUP(Switch!$D$29,$F$2:$G$44,2,FALSE)+ROW()-2)),\"\")","v":{"$error":"#N/A"}},{"$f":"IF(INDIRECT(\"c\" & (VLOOKUP(Switch!$D$30,$F$2:$G$44,2,FALSE)+ROW()-2))=Switch!$D$30,INDIRECT(\"a\" & (VLOOKUP(Switch!$D$30,$F$2:$G$44,2,FALSE)+ROW()-2)),\"\")","v":{"$error":"#N/A"}},{"$f":"IF(INDIRECT(\"c\" & (VLOOKUP(Switch!$D$31,$F$2:$G$44,2,FALSE)+ROW()-2))=Switch!$D$31,INDIRECT(\"a\" & (VLOOKUP(Switch!$D$31,$F$2:$G$44,2,FALSE)+ROW()-2)),\"\")","v":{"$error":"#N/A"}},{"$f":"IF(INDIRECT(\"c\" & (VLOOKUP(Switch!$D$32,$F$2:$G$44,2,FALSE)+ROW()-2))=Switch!$D$32,INDIRECT(\"a\" & (VLOOKUP(Switch!$D$32,$F$2:$G$44,2,FALSE)+ROW()-2)),\"\")","v":{"$error":"#N/A"}},{"$f":"IF(INDIRECT(\"c\" & (VLOOKUP(Switch!$D$33,$F$2:$G$44,2,FALSE)+ROW()-2))=Switch!$D$33,INDIRECT(\"a\" & (VLOOKUP(Switch!$D$33,$F$2:$G$44,2,FALSE)+ROW()-2)),\"\")","v":{"$error":"#N/A"}},{"$f":"IF(INDIRECT(\"c\" & (VLOOKUP(Switch!$D$34,$F$2:$G$44,2,FALSE)+ROW()-2))=Switch!$D$34,INDIRECT(\"a\" & (VLOOKUP(Switch!$D$34,$F$2:$G$44,2,FALSE)+ROW()-2)),\"\")","v":{"$error":"#N/A"}},{"$f":"IF(INDIRECT(\"c\" & (VLOOKUP(Switch!$D$35,$F$2:$G$44,2,FALSE)+ROW()-2))=Switch!$D$35,INDIRECT(\"a\" & (VLOOKUP(Switch!$D$35,$F$2:$G$44,2,FALSE)+ROW()-2)),\"\")","v":{"$error":"#N/A"}},{"$f":"IF(INDIRECT(\"c\" & (VLOOKUP(Switch!$D$36,$F$2:$G$44,2,FALSE)+ROW()-2))=Switch!$D$36,INDIRECT(\"a\" & (VLOOKUP(Switch!$D$36,$F$2:$G$44,2,FALSE)+ROW()-2)),\"\")","v":{"$error":"#N/A"}},{"$f":"IF(INDIRECT(\"c\" & (VLOOKUP(Switch!$D$37,$F$2:$G$44,2,FALSE)+ROW()-2))=Switch!$D$37,INDIRECT(\"a\" & (VLOOKUP(Switch!$D$37,$F$2:$G$44,2,FALSE)+ROW()-2)),\"\")","v":{"$error":"#N/A"}},{"$f":"IF(INDIRECT(\"c\" & (VLOOKUP(Switch!$D$38,$F$2:$G$44,2,FALSE)+ROW()-2))=Switch!$D$38,INDIRECT(\"a\" & (VLOOKUP(Switch!$D$38,$F$2:$G$44,2,FALSE)+ROW()-2)),\"\")","v":{"$error":"#N/A"}},{"$f":"IF(INDIRECT(\"c\" & (VLOOKUP(Switch!$D$39,$F$2:$G$44,2,FALSE)+ROW()-2))=Switch!$D$39,INDIRECT(\"a\" & (VLOOKUP(Switch!$D$39,$F$2:$G$44,2,FALSE)+ROW()-2)),\"\")","v":{"$error":"#N/A"}},{"$f":"IF(INDIRECT(\"c\" & (VLOOKUP(Switch!$D$40,$F$2:$G$44,2,FALSE)+ROW()-2))=Switch!$D$40,INDIRECT(\"a\" & (VLOOKUP(Switch!$D$40,$F$2:$G$44,2,FALSE)+ROW()-2)),\"\")","v":{"$error":"#N/A"}},{"$f":"IF(INDIRECT(\"c\" & (VLOOKUP(Switch!$D$52,$F$2:$G$44,2,FALSE)+ROW()-2))=Switch!$D$52,INDIRECT(\"a\" & (VLOOKUP(Switch!$D$52,$F$2:$G$44,2,FALSE)+ROW()-2)),\"\")","v":{"$error":"#N/A"}},{"$f":"IF(INDIRECT(\"c\" & (VLOOKUP(Switch!$D$53,$F$2:$G$44,2,FALSE)+ROW()-2))=Switch!$D$53,INDIRECT(\"a\" & (VLOOKUP(Switch!$D$53,$F$2:$G$44,2,FALSE)+ROW()-2)),\"\")","v":{"$error":"#N/A"}},{"$f":"IF(INDIRECT(\"c\" & (VLOOKUP(Switch!$D$54,$F$2:$G$44,2,FALSE)+ROW()-2))=Switch!$D$54,INDIRECT(\"a\" & (VLOOKUP(Switch!$D$54,$F$2:$G$44,2,FALSE)+ROW()-2)),\"\")","v":{"$error":"#N/A"}},{"$f":"IF(INDIRECT(\"c\" & (VLOOKUP(Switch!$D$55,$F$2:$G$44,2,FALSE)+ROW()-2))=Switch!$D$55,INDIRECT(\"a\" & (VLOOKUP(Switch!$D$55,$F$2:$G$44,2,FALSE)+ROW()-2)),\"\")","v":{"$error":"#N/A"}},{"$f":"IF(INDIRECT(\"c\" & (VLOOKUP(Switch!$D$56,$F$2:$G$44,2,FALSE)+ROW()-2))=Switch!$D$56,INDIRECT(\"a\" & (VLOOKUP(Switch!$D$56,$F$2:$G$44,2,FALSE)+ROW()-2)),\"\")","v":{"$error":"#N/A"}},{"$f":"IF(INDIRECT(\"c\" & (VLOOKUP(Switch!$D$57,$F$2:$G$44,2,FALSE)+ROW()-2))=Switch!$D$57,INDIRECT(\"a\" & (VLOOKUP(Switch!$D$57,$F$2:$G$44,2,FALSE)+ROW()-2)),\"\")","v":{"$error":"#N/A"}},{"$f":"IF(INDIRECT(\"c\" & (VLOOKUP(Switch!$D$58,$F$2:$G$44,2,FALSE)+ROW()-2))=Switch!$D$58,INDIRECT(\"a\" & (VLOOKUP(Switch!$D$58,$F$2:$G$44,2,FALSE)+ROW()-2)),\"\")","v":{"$error":"#N/A"}},{"$f":"IF(INDIRECT(\"c\" & (VLOOKUP(Switch!$D$59,$F$2:$G$44,2,FALSE)+ROW()-2))=Switch!$D$59,INDIRECT(\"a\" & (VLOOKUP(Switch!$D$59,$F$2:$G$44,2,FALSE)+ROW()-2)),\"\")","v":{"$error":"#N/A"}},{"$f":"IF(INDIRECT(\"c\" & (VLOOKUP(Switch!$D$60,$F$2:$G$44,2,FALSE)+ROW()-2))=Switch!$D$60,INDIRECT(\"a\" & (VLOOKUP(Switch!$D$60,$F$2:$G$44,2,FALSE)+ROW()-2)),\"\")","v":{"$error":"#N/A"}},{"$f":"IF(INDIRECT(\"c\" & (VLOOKUP(Switch!$D$61,$F$2:$G$44,2,FALSE)+ROW()-2))=Switch!$D$61,INDIRECT(\"a\" & (VLOOKUP(Switch!$D$61,$F$2:$G$44,2,FALSE)+ROW()-2)),\"\")","v":{"$error":"#N/A"}},{"$f":"IF(INDIRECT(\"c\" & (VLOOKUP(Switch!$D$62,$F$2:$G$44,2,FALSE)+ROW()-2))=Switch!$D$62,INDIRECT(\"a\" & (VLOOKUP(Switch!$D$62,$F$2:$G$44,2,FALSE)+ROW()-2)),\"\")","v":{"$error":"#N/A"}},{"$f":"IF(INDIRECT(\"c\" & (VLOOKUP(Switch!$D$63,$F$2:$G$44,2,FALSE)+ROW()-2))=Switch!$D$63,INDIRECT(\"a\" & (VLOOKUP(Switch!$D$63,$F$2:$G$44,2,FALSE)+ROW()-2)),\"\")","v":{"$error":"#N/A"}},{"$f":"IF(INDIRECT(\"c\" & (VLOOKUP(Switch!$D$64,$F$2:$G$44,2,FALSE)+ROW()-2))=Switch!$D$64,INDIRECT(\"a\" & (VLOOKUP(Switch!$D$64,$F$2:$G$44,2,FALSE)+ROW()-2)),\"\")","v":{"$error":"#N/A"}},{"$f":"IF(INDIRECT(\"c\" & (VLOOKUP(Switch!$D$65,$F$2:$G$44,2,FALSE)+ROW()-2))=Switch!$D$65,INDIRECT(\"a\" & (VLOOKUP(Switch!$D$65,$F$2:$G$44,2,FALSE)+ROW()-2)),\"\")","v":{"$error":"#N/A"}},{"$f":"IF(INDIRECT(\"c\" & (VLOOKUP(Switch!$D$66,$F$2:$G$44,2,FALSE)+ROW()-2))=Switch!$D$66,INDIRECT(\"a\" & (VLOOKUP(Switch!$D$66,$F$2:$G$44,2,FALSE)+ROW()-2)),\"\")","v":{"$error":"#N/A"}}]
["Kagiso Equity Alpha Fund B1","KEAB1","Kagiso Collective Investments Ltd",{"$f":"ROW()","v":297},null,null,{"$f":"VLOOKUP(F297,$C$2:$D$637,2,FALSE)","v":{"$error":"#N/A"}},{"$f":"IF(INDIRECT(\"c\" & (VLOOKUP(Switch!$D$26,$F$2:$G$44,2,FALSE)+ROW()-2))=Switch!$D$26,INDIRECT(\"a\" & (VLOOKUP(Switch!$D$26,$F$2:$G$44,2,FALSE)+ROW()-2)),\"\")","v":{"$error":"#N/A"}},{"$f":"IF(INDIRECT(\"c\" & (VLOOKUP(Switch!$D$27,$F$2:$G$44,2,FALSE)+ROW()-2))=Switch!$D$27,INDIRECT(\"a\" & (VLOOKUP(Switch!$D$27,$F$2:$G$44,2,FALSE)+ROW()-2)),\"\")","v":{"$error":"#N/A"}},{"$f":"IF(INDIRECT(\"c\" & (VLOOKUP(Switch!$D$28,$F$2:$G$44,2,FALSE)+ROW()-2))=Switch!$D$28,INDIRECT(\"a\" & (VLOOKUP(Switch!$D$28,$F$2:$G$44,2,FALSE)+ROW()-2)),\"\")","v":{"$error":"#N/A"}},{"$f":"IF(INDIRECT(\"c\" & (VLOOKUP(Switch!$D$29,$F$2:$G$44,2,FALSE)+ROW()-2))=Switch!$D$29,INDIRECT(\"a\" & (VLOOKUP(Switch!$D$29,$F$2:$G$44,2,FALSE)+ROW()-2)),\"\")","v":{"$error":"#N/A"}},{"$f":"IF(INDIRECT(\"c\" & (VLOOKUP(Switch!$D$30,$F$2:$G$44,2,FALSE)+ROW()-2))=Switch!$D$30,INDIRECT(\"a\" & (VLOOKUP(Switch!$D$30,$F$2:$G$44,2,FALSE)+ROW()-2)),\"\")","v":{"$error":"#N/A"}},{"$f":"IF(INDIRECT(\"c\" & (VLOOKUP(Switch!$D$31,$F$2:$G$44,2,FALSE)+ROW()-2))=Switch!$D$31,INDIRECT(\"a\" & (VLOOKUP(Switch!$D$31,$F$2:$G$44,2,FALSE)+ROW()-2)),\"\")","v":{"$error":"#N/A"}},{"$f":"IF(INDIRECT(\"c\" & (VLOOKUP(Switch!$D$32,$F$2:$G$44,2,FALSE)+ROW()-2))=Switch!$D$32,INDIRECT(\"a\" & (VLOOKUP(Switch!$D$32,$F$2:$G$44,2,FALSE)+ROW()-2)),\"\")","v":{"$error":"#N/A"}},{"$f":"IF(INDIRECT(\"c\" & (VLOOKUP(Switch!$D$33,$F$2:$G$44,2,FALSE)+ROW()-2))=Switch!$D$33,INDIRECT(\"a\" & (VLOOKUP(Switch!$D$33,$F$2:$G$44,2,FALSE)+ROW()-2)),\"\")","v":{"$error":"#N/A"}},{"$f":"IF(INDIRECT(\"c\" & (VLOOKUP(Switch!$D$34,$F$2:$G$44,2,FALSE)+ROW()-2))=Switch!$D$34,INDIRECT(\"a\" & (VLOOKUP(Switch!$D$34,$F$2:$G$44,2,FALSE)+ROW()-2)),\"\")","v":{"$error":"#N/A"}},{"$f":"IF(INDIRECT(\"c\" & (VLOOKUP(Switch!$D$35,$F$2:$G$44,2,FALSE)+ROW()-2))=Switch!$D$35,INDIRECT(\"a\" & (VLOOKUP(Switch!$D$35,$F$2:$G$44,2,FALSE)+ROW()-2)),\"\")","v":{"$error":"#N/A"}},{"$f":"IF(INDIRECT(\"c\" & (VLOOKUP(Switch!$D$36,$F$2:$G$44,2,FALSE)+ROW()-2))=Switch!$D$36,INDIRECT(\"a\" & (VLOOKUP(Switch!$D$36,$F$2:$G$44,2,FALSE)+ROW()-2)),\"\")","v":{"$error":"#N/A"}},{"$f":"IF(INDIRECT(\"c\" & (VLOOKUP(Switch!$D$37,$F$2:$G$44,2,FALSE)+ROW()-2))=Switch!$D$37,INDIRECT(\"a\" & (VLOOKUP(Switch!$D$37,$F$2:$G$44,2,FALSE)+ROW()-2)),\"\")","v":{"$error":"#N/A"}},{"$f":"IF(INDIRECT(\"c\" & (VLOOKUP(Switch!$D$38,$F$2:$G$44,2,FALSE)+ROW()-2))=Switch!$D$38,INDIRECT(\"a\" & (VLOOKUP(Switch!$D$38,$F$2:$G$44,2,FALSE)+ROW()-2)),\"\")","v":{"$error":"#N/A"}},{"$f":"IF(INDIRECT(\"c\" & (VLOOKUP(Switch!$D$39,$F$2:$G$44,2,FALSE)+ROW()-2))=Switch!$D$39,INDIRECT(\"a\" & (VLOOKUP(Switch!$D$39,$F$2:$G$44,2,FALSE)+ROW()-2)),\"\")","v":{"$error":"#N/A"}},{"$f":"IF(INDIRECT(\"c\" & (VLOOKUP(Switch!$D$40,$F$2:$G$44,2,FALSE)+ROW()-2))=Switch!$D$40,INDIRECT(\"a\" & (VLOOKUP(Switch!$D$40,$F$2:$G$44,2,FALSE)+ROW()-2)),\"\")","v":{"$error":"#N/A"}},{"$f":"IF(INDIRECT(\"c\" & (VLOOKUP(Switch!$D$52,$F$2:$G$44,2,FALSE)+ROW()-2))=Switch!$D$52,INDIRECT(\"a\" & (VLOOKUP(Switch!$D$52,$F$2:$G$44,2,FALSE)+ROW()-2)),\"\")","v":{"$error":"#N/A"}},{"$f":"IF(INDIRECT(\"c\" & (VLOOKUP(Switch!$D$53,$F$2:$G$44,2,FALSE)+ROW()-2))=Switch!$D$53,INDIRECT(\"a\" & (VLOOKUP(Switch!$D$53,$F$2:$G$44,2,FALSE)+ROW()-2)),\"\")","v":{"$error":"#N/A"}},{"$f":"IF(INDIRECT(\"c\" & (VLOOKUP(Switch!$D$54,$F$2:$G$44,2,FALSE)+ROW()-2))=Switch!$D$54,INDIRECT(\"a\" & (VLOOKUP(Switch!$D$54,$F$2:$G$44,2,FALSE)+ROW()-2)),\"\")","v":{"$error":"#N/A"}},{"$f":"IF(INDIRECT(\"c\" & (VLOOKUP(Switch!$D$55,$F$2:$G$44,2,FALSE)+ROW()-2))=Switch!$D$55,INDIRECT(\"a\" & (VLOOKUP(Switch!$D$55,$F$2:$G$44,2,FALSE)+ROW()-2)),\"\")","v":{"$error":"#N/A"}},{"$f":"IF(INDIRECT(\"c\" & (VLOOKUP(Switch!$D$56,$F$2:$G$44,2,FALSE)+ROW()-2))=Switch!$D$56,INDIRECT(\"a\" & (VLOOKUP(Switch!$D$56,$F$2:$G$44,2,FALSE)+ROW()-2)),\"\")","v":{"$error":"#N/A"}},{"$f":"IF(INDIRECT(\"c\" & (VLOOKUP(Switch!$D$57,$F$2:$G$44,2,FALSE)+ROW()-2))=Switch!$D$57,INDIRECT(\"a\" & (VLOOKUP(Switch!$D$57,$F$2:$G$44,2,FALSE)+ROW()-2)),\"\")","v":{"$error":"#N/A"}},{"$f":"IF(INDIRECT(\"c\" & (VLOOKUP(Switch!$D$58,$F$2:$G$44,2,FALSE)+ROW()-2))=Switch!$D$58,INDIRECT(\"a\" & (VLOOKUP(Switch!$D$58,$F$2:$G$44,2,FALSE)+ROW()-2)),\"\")","v":{"$error":"#N/A"}},{"$f":"IF(INDIRECT(\"c\" & (VLOOKUP(Switch!$D$59,$F$2:$G$44,2,FALSE)+ROW()-2))=Switch!$D$59,INDIRECT(\"a\" & (VLOOKUP(Switch!$D$59,$F$2:$G$44,2,FALSE)+ROW()-2)),\"\")","v":{"$error":"#N/A"}},{"$f":"IF(INDIRECT(\"c\" & (VLOOKUP(Switch!$D$60,$F$2:$G$44,2,FALSE)+ROW()-2))=Switch!$D$60,INDIRECT(\"a\" & (VLOOKUP(Switch!$D$60,$F$2:$G$44,2,FALSE)+ROW()-2)),\"\")","v":{"$error":"#N/A"}},{"$f":"IF(INDIRECT(\"c\" & (VLOOKUP(Switch!$D$61,$F$2:$G$44,2,FALSE)+ROW()-2))=Switch!$D$61,INDIRECT(\"a\" & (VLOOKUP(Switch!$D$61,$F$2:$G$44,2,FALSE)+ROW()-2)),\"\")","v":{"$error":"#N/A"}},{"$f":"IF(INDIRECT(\"c\" & (VLOOKUP(Switch!$D$62,$F$2:$G$44,2,FALSE)+ROW()-2))=Switch!$D$62,INDIRECT(\"a\" & (VLOOKUP(Switch!$D$62,$F$2:$G$44,2,FALSE)+ROW()-2)),\"\")","v":{"$error":"#N/A"}},{"$f":"IF(INDIRECT(\"c\" & (VLOOKUP(Switch!$D$63,$F$2:$G$44,2,FALSE)+ROW()-2))=Switch!$D$63,INDIRECT(\"a\" & (VLOOKUP(Switch!$D$63,$F$2:$G$44,2,FALSE)+ROW()-2)),\"\")","v":{"$error":"#N/A"}},{"$f":"IF(INDIRECT(\"c\" & (VLOOKUP(Switch!$D$64,$F$2:$G$44,2,FALSE)+ROW()-2))=Switch!$D$64,INDIRECT(\"a\" & (VLOOKUP(Switch!$D$64,$F$2:$G$44,2,FALSE)+ROW()-2)),\"\")","v":{"$error":"#N/A"}},{"$f":"IF(INDIRECT(\"c\" & (VLOOKUP(Switch!$D$65,$F$2:$G$44,2,FALSE)+ROW()-2))=Switch!$D$65,INDIRECT(\"a\" & (VLOOKUP(Switch!$D$65,$F$2:$G$44,2,FALSE)+ROW()-2)),\"\")","v":{"$error":"#N/A"}},{"$f":"IF(INDIRECT(\"c\" & (VLOOKUP(Switch!$D$66,$F$2:$G$44,2,FALSE)+ROW()-2))=Switch!$D$66,INDIRECT(\"a\" & (VLOOKUP(Switch!$D$66,$F$2:$G$44,2,FALSE)+ROW()-2)),\"\")","v":{"$error":"#N/A"}}]
["Kagiso Islamic Balanced Fund B","KAICB","Kagiso Collective Investments Ltd",{"$f":"ROW()","v":298},null,null,{"$f":"VLOOKUP(F298,$C$2:$D$637,2,FALSE)","v":{"$error":"#N/A"}},{"$f":"IF(INDIRECT(\"c\" & (VLOOKUP(Switch!$D$26,$F$2:$G$44,2,FALSE)+ROW()-2))=Switch!$D$26,INDIRECT(\"a\" & (VLOOKUP(Switch!$D$26,$F$2:$G$44,2,FALSE)+ROW()-2)),\"\")","v":{"$error":"#N/A"}},{"$f":"IF(INDIRECT(\"c\" & (VLOOKUP(Switch!$D$27,$F$2:$G$44,2,FALSE)+ROW()-2))=Switch!$D$27,INDIRECT(\"a\" & (VLOOKUP(Switch!$D$27,$F$2:$G$44,2,FALSE)+ROW()-2)),\"\")","v":{"$error":"#N/A"}},{"$f":"IF(INDIRECT(\"c\" & (VLOOKUP(Switch!$D$28,$F$2:$G$44,2,FALSE)+ROW()-2))=Switch!$D$28,INDIRECT(\"a\" & (VLOOKUP(Switch!$D$28,$F$2:$G$44,2,FALSE)+ROW()-2)),\"\")","v":{"$error":"#N/A"}},{"$f":"IF(INDIRECT(\"c\" & (VLOOKUP(Switch!$D$29,$F$2:$G$44,2,FALSE)+ROW()-2))=Switch!$D$29,INDIRECT(\"a\" & (VLOOKUP(Switch!$D$29,$F$2:$G$44,2,FALSE)+ROW()-2)),\"\")","v":{"$error":"#N/A"}},{"$f":"IF(INDIRECT(\"c\" & (VLOOKUP(Switch!$D$30,$F$2:$G$44,2,FALSE)+ROW()-2))=Switch!$D$30,INDIRECT(\"a\" & (VLOOKUP(Switch!$D$30,$F$2:$G$44,2,FALSE)+ROW()-2)),\"\")","v":{"$error":"#N/A"}},{"$f":"IF(INDIRECT(\"c\" & (VLOOKUP(Switch!$D$31,$F$2:$G$44,2,FALSE)+ROW()-2))=Switch!$D$31,INDIRECT(\"a\" & (VLOOKUP(Switch!$D$31,$F$2:$G$44,2,FALSE)+ROW()-2)),\"\")","v":{"$error":"#N/A"}},{"$f":"IF(INDIRECT(\"c\" & (VLOOKUP(Switch!$D$32,$F$2:$G$44,2,FALSE)+ROW()-2))=Switch!$D$32,INDIRECT(\"a\" & (VLOOKUP(Switch!$D$32,$F$2:$G$44,2,FALSE)+ROW()-2)),\"\")","v":{"$error":"#N/A"}},{"$f":"IF(INDIRECT(\"c\" & (VLOOKUP(Switch!$D$33,$F$2:$G$44,2,FALSE)+ROW()-2))=Switch!$D$33,INDIRECT(\"a\" & (VLOOKUP(Switch!$D$33,$F$2:$G$44,2,FALSE)+ROW()-2)),\"\")","v":{"$error":"#N/A"}},{"$f":"IF(INDIRECT(\"c\" & (VLOOKUP(Switch!$D$34,$F$2:$G$44,2,FALSE)+ROW()-2))=Switch!$D$34,INDIRECT(\"a\" & (VLOOKUP(Switch!$D$34,$F$2:$G$44,2,FALSE)+ROW()-2)),\"\")","v":{"$error":"#N/A"}},{"$f":"IF(INDIRECT(\"c\" & (VLOOKUP(Switch!$D$35,$F$2:$G$44,2,FALSE)+ROW()-2))=Switch!$D$35,INDIRECT(\"a\" & (VLOOKUP(Switch!$D$35,$F$2:$G$44,2,FALSE)+ROW()-2)),\"\")","v":{"$error":"#N/A"}},{"$f":"IF(INDIRECT(\"c\" & (VLOOKUP(Switch!$D$36,$F$2:$G$44,2,FALSE)+ROW()-2))=Switch!$D$36,INDIRECT(\"a\" & (VLOOKUP(Switch!$D$36,$F$2:$G$44,2,FALSE)+ROW()-2)),\"\")","v":{"$error":"#N/A"}},{"$f":"IF(INDIRECT(\"c\" & (VLOOKUP(Switch!$D$37,$F$2:$G$44,2,FALSE)+ROW()-2))=Switch!$D$37,INDIRECT(\"a\" & (VLOOKUP(Switch!$D$37,$F$2:$G$44,2,FALSE)+ROW()-2)),\"\")","v":{"$error":"#N/A"}},{"$f":"IF(INDIRECT(\"c\" & (VLOOKUP(Switch!$D$38,$F$2:$G$44,2,FALSE)+ROW()-2))=Switch!$D$38,INDIRECT(\"a\" & (VLOOKUP(Switch!$D$38,$F$2:$G$44,2,FALSE)+ROW()-2)),\"\")","v":{"$error":"#N/A"}},{"$f":"IF(INDIRECT(\"c\" & (VLOOKUP(Switch!$D$39,$F$2:$G$44,2,FALSE)+ROW()-2))=Switch!$D$39,INDIRECT(\"a\" & (VLOOKUP(Switch!$D$39,$F$2:$G$44,2,FALSE)+ROW()-2)),\"\")","v":{"$error":"#N/A"}},{"$f":"IF(INDIRECT(\"c\" & (VLOOKUP(Switch!$D$40,$F$2:$G$44,2,FALSE)+ROW()-2))=Switch!$D$40,INDIRECT(\"a\" & (VLOOKUP(Switch!$D$40,$F$2:$G$44,2,FALSE)+ROW()-2)),\"\")","v":{"$error":"#N/A"}},{"$f":"IF(INDIRECT(\"c\" & (VLOOKUP(Switch!$D$52,$F$2:$G$44,2,FALSE)+ROW()-2))=Switch!$D$52,INDIRECT(\"a\" & (VLOOKUP(Switch!$D$52,$F$2:$G$44,2,FALSE)+ROW()-2)),\"\")","v":{"$error":"#N/A"}},{"$f":"IF(INDIRECT(\"c\" & (VLOOKUP(Switch!$D$53,$F$2:$G$44,2,FALSE)+ROW()-2))=Switch!$D$53,INDIRECT(\"a\" & (VLOOKUP(Switch!$D$53,$F$2:$G$44,2,FALSE)+ROW()-2)),\"\")","v":{"$error":"#N/A"}},{"$f":"IF(INDIRECT(\"c\" & (VLOOKUP(Switch!$D$54,$F$2:$G$44,2,FALSE)+ROW()-2))=Switch!$D$54,INDIRECT(\"a\" & (VLOOKUP(Switch!$D$54,$F$2:$G$44,2,FALSE)+ROW()-2)),\"\")","v":{"$error":"#N/A"}},{"$f":"IF(INDIRECT(\"c\" & (VLOOKUP(Switch!$D$55,$F$2:$G$44,2,FALSE)+ROW()-2))=Switch!$D$55,INDIRECT(\"a\" & (VLOOKUP(Switch!$D$55,$F$2:$G$44,2,FALSE)+ROW()-2)),\"\")","v":{"$error":"#N/A"}},{"$f":"IF(INDIRECT(\"c\" & (VLOOKUP(Switch!$D$56,$F$2:$G$44,2,FALSE)+ROW()-2))=Switch!$D$56,INDIRECT(\"a\" & (VLOOKUP(Switch!$D$56,$F$2:$G$44,2,FALSE)+ROW()-2)),\"\")","v":{"$error":"#N/A"}},{"$f":"IF(INDIRECT(\"c\" & (VLOOKUP(Switch!$D$57,$F$2:$G$44,2,FALSE)+ROW()-2))=Switch!$D$57,INDIRECT(\"a\" & (VLOOKUP(Switch!$D$57,$F$2:$G$44,2,FALSE)+ROW()-2)),\"\")","v":{"$error":"#N/A"}},{"$f":"IF(INDIRECT(\"c\" & (VLOOKUP(Switch!$D$58,$F$2:$G$44,2,FALSE)+ROW()-2))=Switch!$D$58,INDIRECT(\"a\" & (VLOOKUP(Switch!$D$58,$F$2:$G$44,2,FALSE)+ROW()-2)),\"\")","v":{"$error":"#N/A"}},{"$f":"IF(INDIRECT(\"c\" & (VLOOKUP(Switch!$D$59,$F$2:$G$44,2,FALSE)+ROW()-2))=Switch!$D$59,INDIRECT(\"a\" & (VLOOKUP(Switch!$D$59,$F$2:$G$44,2,FALSE)+ROW()-2)),\"\")","v":{"$error":"#N/A"}},{"$f":"IF(INDIRECT(\"c\" & (VLOOKUP(Switch!$D$60,$F$2:$G$44,2,FALSE)+ROW()-2))=Switch!$D$60,INDIRECT(\"a\" & (VLOOKUP(Switch!$D$60,$F$2:$G$44,2,FALSE)+ROW()-2)),\"\")","v":{"$error":"#N/A"}},{"$f":"IF(INDIRECT(\"c\" & (VLOOKUP(Switch!$D$61,$F$2:$G$44,2,FALSE)+ROW()-2))=Switch!$D$61,INDIRECT(\"a\" & (VLOOKUP(Switch!$D$61,$F$2:$G$44,2,FALSE)+ROW()-2)),\"\")","v":{"$error":"#N/A"}},{"$f":"IF(INDIRECT(\"c\" & (VLOOKUP(Switch!$D$62,$F$2:$G$44,2,FALSE)+ROW()-2))=Switch!$D$62,INDIRECT(\"a\" & (VLOOKUP(Switch!$D$62,$F$2:$G$44,2,FALSE)+ROW()-2)),\"\")","v":{"$error":"#N/A"}},{"$f":"IF(INDIRECT(\"c\" & (VLOOKUP(Switch!$D$63,$F$2:$G$44,2,FALSE)+ROW()-2))=Switch!$D$63,INDIRECT(\"a\" & (VLOOKUP(Switch!$D$63,$F$2:$G$44,2,FALSE)+ROW()-2)),\"\")","v":{"$error":"#N/A"}},{"$f":"IF(INDIRECT(\"c\" & (VLOOKUP(Switch!$D$64,$F$2:$G$44,2,FALSE)+ROW()-2))=Switch!$D$64,INDIRECT(\"a\" & (VLOOKUP(Switch!$D$64,$F$2:$G$44,2,FALSE)+ROW()-2)),\"\")","v":{"$error":"#N/A"}},{"$f":"IF(INDIRECT(\"c\" & (VLOOKUP(Switch!$D$65,$F$2:$G$44,2,FALSE)+ROW()-2))=Switch!$D$65,INDIRECT(\"a\" & (VLOOKUP(Switch!$D$65,$F$2:$G$44,2,FALSE)+ROW()-2)),\"\")","v":{"$error":"#N/A"}},{"$f":"IF(INDIRECT(\"c\" & (VLOOKUP(Switch!$D$66,$F$2:$G$44,2,FALSE)+ROW()-2))=Switch!$D$66,INDIRECT(\"a\" & (VLOOKUP(Switch!$D$66,$F$2:$G$44,2,FALSE)+ROW()-2)),\"\")","v":{"$error":"#N/A"}}]
["Kagiso Islamic Equity Fund B","KIECB","Kagiso Collective Investments Ltd",{"$f":"ROW()","v":299},null,null,{"$f":"VLOOKUP(F299,$C$2:$D$637,2,FALSE)","v":{"$error":"#N/A"}},{"$f":"IF(INDIRECT(\"c\" & (VLOOKUP(Switch!$D$26,$F$2:$G$44,2,FALSE)+ROW()-2))=Switch!$D$26,INDIRECT(\"a\" & (VLOOKUP(Switch!$D$26,$F$2:$G$44,2,FALSE)+ROW()-2)),\"\")","v":{"$error":"#N/A"}},{"$f":"IF(INDIRECT(\"c\" & (VLOOKUP(Switch!$D$27,$F$2:$G$44,2,FALSE)+ROW()-2))=Switch!$D$27,INDIRECT(\"a\" & (VLOOKUP(Switch!$D$27,$F$2:$G$44,2,FALSE)+ROW()-2)),\"\")","v":{"$error":"#N/A"}},{"$f":"IF(INDIRECT(\"c\" & (VLOOKUP(Switch!$D$28,$F$2:$G$44,2,FALSE)+ROW()-2))=Switch!$D$28,INDIRECT(\"a\" & (VLOOKUP(Switch!$D$28,$F$2:$G$44,2,FALSE)+ROW()-2)),\"\")","v":{"$error":"#N/A"}},{"$f":"IF(INDIRECT(\"c\" & (VLOOKUP(Switch!$D$29,$F$2:$G$44,2,FALSE)+ROW()-2))=Switch!$D$29,INDIRECT(\"a\" & (VLOOKUP(Switch!$D$29,$F$2:$G$44,2,FALSE)+ROW()-2)),\"\")","v":{"$error":"#N/A"}},{"$f":"IF(INDIRECT(\"c\" & (VLOOKUP(Switch!$D$30,$F$2:$G$44,2,FALSE)+ROW()-2))=Switch!$D$30,INDIRECT(\"a\" & (VLOOKUP(Switch!$D$30,$F$2:$G$44,2,FALSE)+ROW()-2)),\"\")","v":{"$error":"#N/A"}},{"$f":"IF(INDIRECT(\"c\" & (VLOOKUP(Switch!$D$31,$F$2:$G$44,2,FALSE)+ROW()-2))=Switch!$D$31,INDIRECT(\"a\" & (VLOOKUP(Switch!$D$31,$F$2:$G$44,2,FALSE)+ROW()-2)),\"\")","v":{"$error":"#N/A"}},{"$f":"IF(INDIRECT(\"c\" & (VLOOKUP(Switch!$D$32,$F$2:$G$44,2,FALSE)+ROW()-2))=Switch!$D$32,INDIRECT(\"a\" & (VLOOKUP(Switch!$D$32,$F$2:$G$44,2,FALSE)+ROW()-2)),\"\")","v":{"$error":"#N/A"}},{"$f":"IF(INDIRECT(\"c\" & (VLOOKUP(Switch!$D$33,$F$2:$G$44,2,FALSE)+ROW()-2))=Switch!$D$33,INDIRECT(\"a\" & (VLOOKUP(Switch!$D$33,$F$2:$G$44,2,FALSE)+ROW()-2)),\"\")","v":{"$error":"#N/A"}},{"$f":"IF(INDIRECT(\"c\" & (VLOOKUP(Switch!$D$34,$F$2:$G$44,2,FALSE)+ROW()-2))=Switch!$D$34,INDIRECT(\"a\" & (VLOOKUP(Switch!$D$34,$F$2:$G$44,2,FALSE)+ROW()-2)),\"\")","v":{"$error":"#N/A"}},{"$f":"IF(INDIRECT(\"c\" & (VLOOKUP(Switch!$D$35,$F$2:$G$44,2,FALSE)+ROW()-2))=Switch!$D$35,INDIRECT(\"a\" & (VLOOKUP(Switch!$D$35,$F$2:$G$44,2,FALSE)+ROW()-2)),\"\")","v":{"$error":"#N/A"}},{"$f":"IF(INDIRECT(\"c\" & (VLOOKUP(Switch!$D$36,$F$2:$G$44,2,FALSE)+ROW()-2))=Switch!$D$36,INDIRECT(\"a\" & (VLOOKUP(Switch!$D$36,$F$2:$G$44,2,FALSE)+ROW()-2)),\"\")","v":{"$error":"#N/A"}},{"$f":"IF(INDIRECT(\"c\" & (VLOOKUP(Switch!$D$37,$F$2:$G$44,2,FALSE)+ROW()-2))=Switch!$D$37,INDIRECT(\"a\" & (VLOOKUP(Switch!$D$37,$F$2:$G$44,2,FALSE)+ROW()-2)),\"\")","v":{"$error":"#N/A"}},{"$f":"IF(INDIRECT(\"c\" & (VLOOKUP(Switch!$D$38,$F$2:$G$44,2,FALSE)+ROW()-2))=Switch!$D$38,INDIRECT(\"a\" & (VLOOKUP(Switch!$D$38,$F$2:$G$44,2,FALSE)+ROW()-2)),\"\")","v":{"$error":"#N/A"}},{"$f":"IF(INDIRECT(\"c\" & (VLOOKUP(Switch!$D$39,$F$2:$G$44,2,FALSE)+ROW()-2))=Switch!$D$39,INDIRECT(\"a\" & (VLOOKUP(Switch!$D$39,$F$2:$G$44,2,FALSE)+ROW()-2)),\"\")","v":{"$error":"#N/A"}},{"$f":"IF(INDIRECT(\"c\" & (VLOOKUP(Switch!$D$40,$F$2:$G$44,2,FALSE)+ROW()-2))=Switch!$D$40,INDIRECT(\"a\" & (VLOOKUP(Switch!$D$40,$F$2:$G$44,2,FALSE)+ROW()-2)),\"\")","v":{"$error":"#N/A"}},{"$f":"IF(INDIRECT(\"c\" & (VLOOKUP(Switch!$D$52,$F$2:$G$44,2,FALSE)+ROW()-2))=Switch!$D$52,INDIRECT(\"a\" & (VLOOKUP(Switch!$D$52,$F$2:$G$44,2,FALSE)+ROW()-2)),\"\")","v":{"$error":"#N/A"}},{"$f":"IF(INDIRECT(\"c\" & (VLOOKUP(Switch!$D$53,$F$2:$G$44,2,FALSE)+ROW()-2))=Switch!$D$53,INDIRECT(\"a\" & (VLOOKUP(Switch!$D$53,$F$2:$G$44,2,FALSE)+ROW()-2)),\"\")","v":{"$error":"#N/A"}},{"$f":"IF(INDIRECT(\"c\" & (VLOOKUP(Switch!$D$54,$F$2:$G$44,2,FALSE)+ROW()-2))=Switch!$D$54,INDIRECT(\"a\" & (VLOOKUP(Switch!$D$54,$F$2:$G$44,2,FALSE)+ROW()-2)),\"\")","v":{"$error":"#N/A"}},{"$f":"IF(INDIRECT(\"c\" & (VLOOKUP(Switch!$D$55,$F$2:$G$44,2,FALSE)+ROW()-2))=Switch!$D$55,INDIRECT(\"a\" & (VLOOKUP(Switch!$D$55,$F$2:$G$44,2,FALSE)+ROW()-2)),\"\")","v":{"$error":"#N/A"}},{"$f":"IF(INDIRECT(\"c\" & (VLOOKUP(Switch!$D$56,$F$2:$G$44,2,FALSE)+ROW()-2))=Switch!$D$56,INDIRECT(\"a\" & (VLOOKUP(Switch!$D$56,$F$2:$G$44,2,FALSE)+ROW()-2)),\"\")","v":{"$error":"#N/A"}},{"$f":"IF(INDIRECT(\"c\" & (VLOOKUP(Switch!$D$57,$F$2:$G$44,2,FALSE)+ROW()-2))=Switch!$D$57,INDIRECT(\"a\" & (VLOOKUP(Switch!$D$57,$F$2:$G$44,2,FALSE)+ROW()-2)),\"\")","v":{"$error":"#N/A"}},{"$f":"IF(INDIRECT(\"c\" & (VLOOKUP(Switch!$D$58,$F$2:$G$44,2,FALSE)+ROW()-2))=Switch!$D$58,INDIRECT(\"a\" & (VLOOKUP(Switch!$D$58,$F$2:$G$44,2,FALSE)+ROW()-2)),\"\")","v":{"$error":"#N/A"}},{"$f":"IF(INDIRECT(\"c\" & (VLOOKUP(Switch!$D$59,$F$2:$G$44,2,FALSE)+ROW()-2))=Switch!$D$59,INDIRECT(\"a\" & (VLOOKUP(Switch!$D$59,$F$2:$G$44,2,FALSE)+ROW()-2)),\"\")","v":{"$error":"#N/A"}},{"$f":"IF(INDIRECT(\"c\" & (VLOOKUP(Switch!$D$60,$F$2:$G$44,2,FALSE)+ROW()-2))=Switch!$D$60,INDIRECT(\"a\" & (VLOOKUP(Switch!$D$60,$F$2:$G$44,2,FALSE)+ROW()-2)),\"\")","v":{"$error":"#N/A"}},{"$f":"IF(INDIRECT(\"c\" & (VLOOKUP(Switch!$D$61,$F$2:$G$44,2,FALSE)+ROW()-2))=Switch!$D$61,INDIRECT(\"a\" & (VLOOKUP(Switch!$D$61,$F$2:$G$44,2,FALSE)+ROW()-2)),\"\")","v":{"$error":"#N/A"}},{"$f":"IF(INDIRECT(\"c\" & (VLOOKUP(Switch!$D$62,$F$2:$G$44,2,FALSE)+ROW()-2))=Switch!$D$62,INDIRECT(\"a\" & (VLOOKUP(Switch!$D$62,$F$2:$G$44,2,FALSE)+ROW()-2)),\"\")","v":{"$error":"#N/A"}},{"$f":"IF(INDIRECT(\"c\" & (VLOOKUP(Switch!$D$63,$F$2:$G$44,2,FALSE)+ROW()-2))=Switch!$D$63,INDIRECT(\"a\" & (VLOOKUP(Switch!$D$63,$F$2:$G$44,2,FALSE)+ROW()-2)),\"\")","v":{"$error":"#N/A"}},{"$f":"IF(INDIRECT(\"c\" & (VLOOKUP(Switch!$D$64,$F$2:$G$44,2,FALSE)+ROW()-2))=Switch!$D$64,INDIRECT(\"a\" & (VLOOKUP(Switch!$D$64,$F$2:$G$44,2,FALSE)+ROW()-2)),\"\")","v":{"$error":"#N/A"}},{"$f":"IF(INDIRECT(\"c\" & (VLOOKUP(Switch!$D$65,$F$2:$G$44,2,FALSE)+ROW()-2))=Switch!$D$65,INDIRECT(\"a\" & (VLOOKUP(Switch!$D$65,$F$2:$G$44,2,FALSE)+ROW()-2)),\"\")","v":{"$error":"#N/A"}},{"$f":"IF(INDIRECT(\"c\" & (VLOOKUP(Switch!$D$66,$F$2:$G$44,2,FALSE)+ROW()-2))=Switch!$D$66,INDIRECT(\"a\" & (VLOOKUP(Switch!$D$66,$F$2:$G$44,2,FALSE)+ROW()-2)),\"\")","v":{"$error":"#N/A"}}]
["Kagiso Stable Fund Class B","KASCB","Kagiso Collective Investments Ltd",{"$f":"ROW()","v":300},null,null,{"$f":"VLOOKUP(F300,$C$2:$D$637,2,FALSE)","v":{"$error":"#N/A"}},{"$f":"IF(INDIRECT(\"c\" & (VLOOKUP(Switch!$D$26,$F$2:$G$44,2,FALSE)+ROW()-2))=Switch!$D$26,INDIRECT(\"a\" & (VLOOKUP(Switch!$D$26,$F$2:$G$44,2,FALSE)+ROW()-2)),\"\")","v":{"$error":"#N/A"}},{"$f":"IF(INDIRECT(\"c\" & (VLOOKUP(Switch!$D$27,$F$2:$G$44,2,FALSE)+ROW()-2))=Switch!$D$27,INDIRECT(\"a\" & (VLOOKUP(Switch!$D$27,$F$2:$G$44,2,FALSE)+ROW()-2)),\"\")","v":{"$error":"#N/A"}},{"$f":"IF(INDIRECT(\"c\" & (VLOOKUP(Switch!$D$28,$F$2:$G$44,2,FALSE)+ROW()-2))=Switch!$D$28,INDIRECT(\"a\" & (VLOOKUP(Switch!$D$28,$F$2:$G$44,2,FALSE)+ROW()-2)),\"\")","v":{"$error":"#N/A"}},{"$f":"IF(INDIRECT(\"c\" & (VLOOKUP(Switch!$D$29,$F$2:$G$44,2,FALSE)+ROW()-2))=Switch!$D$29,INDIRECT(\"a\" & (VLOOKUP(Switch!$D$29,$F$2:$G$44,2,FALSE)+ROW()-2)),\"\")","v":{"$error":"#N/A"}},{"$f":"IF(INDIRECT(\"c\" & (VLOOKUP(Switch!$D$30,$F$2:$G$44,2,FALSE)+ROW()-2))=Switch!$D$30,INDIRECT(\"a\" & (VLOOKUP(Switch!$D$30,$F$2:$G$44,2,FALSE)+ROW()-2)),\"\")","v":{"$error":"#N/A"}},{"$f":"IF(INDIRECT(\"c\" & (VLOOKUP(Switch!$D$31,$F$2:$G$44,2,FALSE)+ROW()-2))=Switch!$D$31,INDIRECT(\"a\" & (VLOOKUP(Switch!$D$31,$F$2:$G$44,2,FALSE)+ROW()-2)),\"\")","v":{"$error":"#N/A"}},{"$f":"IF(INDIRECT(\"c\" & (VLOOKUP(Switch!$D$32,$F$2:$G$44,2,FALSE)+ROW()-2))=Switch!$D$32,INDIRECT(\"a\" & (VLOOKUP(Switch!$D$32,$F$2:$G$44,2,FALSE)+ROW()-2)),\"\")","v":{"$error":"#N/A"}},{"$f":"IF(INDIRECT(\"c\" & (VLOOKUP(Switch!$D$33,$F$2:$G$44,2,FALSE)+ROW()-2))=Switch!$D$33,INDIRECT(\"a\" & (VLOOKUP(Switch!$D$33,$F$2:$G$44,2,FALSE)+ROW()-2)),\"\")","v":{"$error":"#N/A"}},{"$f":"IF(INDIRECT(\"c\" & (VLOOKUP(Switch!$D$34,$F$2:$G$44,2,FALSE)+ROW()-2))=Switch!$D$34,INDIRECT(\"a\" & (VLOOKUP(Switch!$D$34,$F$2:$G$44,2,FALSE)+ROW()-2)),\"\")","v":{"$error":"#N/A"}},{"$f":"IF(INDIRECT(\"c\" & (VLOOKUP(Switch!$D$35,$F$2:$G$44,2,FALSE)+ROW()-2))=Switch!$D$35,INDIRECT(\"a\" & (VLOOKUP(Switch!$D$35,$F$2:$G$44,2,FALSE)+ROW()-2)),\"\")","v":{"$error":"#N/A"}},{"$f":"IF(INDIRECT(\"c\" & (VLOOKUP(Switch!$D$36,$F$2:$G$44,2,FALSE)+ROW()-2))=Switch!$D$36,INDIRECT(\"a\" & (VLOOKUP(Switch!$D$36,$F$2:$G$44,2,FALSE)+ROW()-2)),\"\")","v":{"$error":"#N/A"}},{"$f":"IF(INDIRECT(\"c\" & (VLOOKUP(Switch!$D$37,$F$2:$G$44,2,FALSE)+ROW()-2))=Switch!$D$37,INDIRECT(\"a\" & (VLOOKUP(Switch!$D$37,$F$2:$G$44,2,FALSE)+ROW()-2)),\"\")","v":{"$error":"#N/A"}},{"$f":"IF(INDIRECT(\"c\" & (VLOOKUP(Switch!$D$38,$F$2:$G$44,2,FALSE)+ROW()-2))=Switch!$D$38,INDIRECT(\"a\" & (VLOOKUP(Switch!$D$38,$F$2:$G$44,2,FALSE)+ROW()-2)),\"\")","v":{"$error":"#N/A"}},{"$f":"IF(INDIRECT(\"c\" & (VLOOKUP(Switch!$D$39,$F$2:$G$44,2,FALSE)+ROW()-2))=Switch!$D$39,INDIRECT(\"a\" & (VLOOKUP(Switch!$D$39,$F$2:$G$44,2,FALSE)+ROW()-2)),\"\")","v":{"$error":"#N/A"}},{"$f":"IF(INDIRECT(\"c\" & (VLOOKUP(Switch!$D$40,$F$2:$G$44,2,FALSE)+ROW()-2))=Switch!$D$40,INDIRECT(\"a\" & (VLOOKUP(Switch!$D$40,$F$2:$G$44,2,FALSE)+ROW()-2)),\"\")","v":{"$error":"#N/A"}},{"$f":"IF(INDIRECT(\"c\" & (VLOOKUP(Switch!$D$52,$F$2:$G$44,2,FALSE)+ROW()-2))=Switch!$D$52,INDIRECT(\"a\" & (VLOOKUP(Switch!$D$52,$F$2:$G$44,2,FALSE)+ROW()-2)),\"\")","v":{"$error":"#N/A"}},{"$f":"IF(INDIRECT(\"c\" & (VLOOKUP(Switch!$D$53,$F$2:$G$44,2,FALSE)+ROW()-2))=Switch!$D$53,INDIRECT(\"a\" & (VLOOKUP(Switch!$D$53,$F$2:$G$44,2,FALSE)+ROW()-2)),\"\")","v":{"$error":"#N/A"}},{"$f":"IF(INDIRECT(\"c\" & (VLOOKUP(Switch!$D$54,$F$2:$G$44,2,FALSE)+ROW()-2))=Switch!$D$54,INDIRECT(\"a\" & (VLOOKUP(Switch!$D$54,$F$2:$G$44,2,FALSE)+ROW()-2)),\"\")","v":{"$error":"#N/A"}},{"$f":"IF(INDIRECT(\"c\" & (VLOOKUP(Switch!$D$55,$F$2:$G$44,2,FALSE)+ROW()-2))=Switch!$D$55,INDIRECT(\"a\" & (VLOOKUP(Switch!$D$55,$F$2:$G$44,2,FALSE)+ROW()-2)),\"\")","v":{"$error":"#N/A"}},{"$f":"IF(INDIRECT(\"c\" & (VLOOKUP(Switch!$D$56,$F$2:$G$44,2,FALSE)+ROW()-2))=Switch!$D$56,INDIRECT(\"a\" & (VLOOKUP(Switch!$D$56,$F$2:$G$44,2,FALSE)+ROW()-2)),\"\")","v":{"$error":"#N/A"}},{"$f":"IF(INDIRECT(\"c\" & (VLOOKUP(Switch!$D$57,$F$2:$G$44,2,FALSE)+ROW()-2))=Switch!$D$57,INDIRECT(\"a\" & (VLOOKUP(Switch!$D$57,$F$2:$G$44,2,FALSE)+ROW()-2)),\"\")","v":{"$error":"#N/A"}},{"$f":"IF(INDIRECT(\"c\" & (VLOOKUP(Switch!$D$58,$F$2:$G$44,2,FALSE)+ROW()-2))=Switch!$D$58,INDIRECT(\"a\" & (VLOOKUP(Switch!$D$58,$F$2:$G$44,2,FALSE)+ROW()-2)),\"\")","v":{"$error":"#N/A"}},{"$f":"IF(INDIRECT(\"c\" & (VLOOKUP(Switch!$D$59,$F$2:$G$44,2,FALSE)+ROW()-2))=Switch!$D$59,INDIRECT(\"a\" & (VLOOKUP(Switch!$D$59,$F$2:$G$44,2,FALSE)+ROW()-2)),\"\")","v":{"$error":"#N/A"}},{"$f":"IF(INDIRECT(\"c\" & (VLOOKUP(Switch!$D$60,$F$2:$G$44,2,FALSE)+ROW()-2))=Switch!$D$60,INDIRECT(\"a\" & (VLOOKUP(Switch!$D$60,$F$2:$G$44,2,FALSE)+ROW()-2)),\"\")","v":{"$error":"#N/A"}},{"$f":"IF(INDIRECT(\"c\" & (VLOOKUP(Switch!$D$61,$F$2:$G$44,2,FALSE)+ROW()-2))=Switch!$D$61,INDIRECT(\"a\" & (VLOOKUP(Switch!$D$61,$F$2:$G$44,2,FALSE)+ROW()-2)),\"\")","v":{"$error":"#N/A"}},{"$f":"IF(INDIRECT(\"c\" & (VLOOKUP(Switch!$D$62,$F$2:$G$44,2,FALSE)+ROW()-2))=Switch!$D$62,INDIRECT(\"a\" & (VLOOKUP(Switch!$D$62,$F$2:$G$44,2,FALSE)+ROW()-2)),\"\")","v":{"$error":"#N/A"}},{"$f":"IF(INDIRECT(\"c\" & (VLOOKUP(Switch!$D$63,$F$2:$G$44,2,FALSE)+ROW()-2))=Switch!$D$63,INDIRECT(\"a\" & (VLOOKUP(Switch!$D$63,$F$2:$G$44,2,FALSE)+ROW()-2)),\"\")","v":{"$error":"#N/A"}},{"$f":"IF(INDIRECT(\"c\" & (VLOOKUP(Switch!$D$64,$F$2:$G$44,2,FALSE)+ROW()-2))=Switch!$D$64,INDIRECT(\"a\" & (VLOOKUP(Switch!$D$64,$F$2:$G$44,2,FALSE)+ROW()-2)),\"\")","v":{"$error":"#N/A"}},{"$f":"IF(INDIRECT(\"c\" & (VLOOKUP(Switch!$D$65,$F$2:$G$44,2,FALSE)+ROW()-2))=Switch!$D$65,INDIRECT(\"a\" & (VLOOKUP(Switch!$D$65,$F$2:$G$44,2,FALSE)+ROW()-2)),\"\")","v":{"$error":"#N/A"}},{"$f":"IF(INDIRECT(\"c\" & (VLOOKUP(Switch!$D$66,$F$2:$G$44,2,FALSE)+ROW()-2))=Switch!$D$66,INDIRECT(\"a\" & (VLOOKUP(Switch!$D$66,$F$2:$G$44,2,FALSE)+ROW()-2)),\"\")","v":{"$error":"#N/A"}}]
["Kagiso Top 40 Tracker Fund A","KATF","Kagiso Collective Investments Ltd",{"$f":"ROW()","v":301},null,null,{"$f":"VLOOKUP(F301,$C$2:$D$637,2,FALSE)","v":{"$error":"#N/A"}},{"$f":"IF(INDIRECT(\"c\" & (VLOOKUP(Switch!$D$26,$F$2:$G$44,2,FALSE)+ROW()-2))=Switch!$D$26,INDIRECT(\"a\" & (VLOOKUP(Switch!$D$26,$F$2:$G$44,2,FALSE)+ROW()-2)),\"\")","v":{"$error":"#N/A"}},{"$f":"IF(INDIRECT(\"c\" & (VLOOKUP(Switch!$D$27,$F$2:$G$44,2,FALSE)+ROW()-2))=Switch!$D$27,INDIRECT(\"a\" & (VLOOKUP(Switch!$D$27,$F$2:$G$44,2,FALSE)+ROW()-2)),\"\")","v":{"$error":"#N/A"}},{"$f":"IF(INDIRECT(\"c\" & (VLOOKUP(Switch!$D$28,$F$2:$G$44,2,FALSE)+ROW()-2))=Switch!$D$28,INDIRECT(\"a\" & (VLOOKUP(Switch!$D$28,$F$2:$G$44,2,FALSE)+ROW()-2)),\"\")","v":{"$error":"#N/A"}},{"$f":"IF(INDIRECT(\"c\" & (VLOOKUP(Switch!$D$29,$F$2:$G$44,2,FALSE)+ROW()-2))=Switch!$D$29,INDIRECT(\"a\" & (VLOOKUP(Switch!$D$29,$F$2:$G$44,2,FALSE)+ROW()-2)),\"\")","v":{"$error":"#N/A"}},{"$f":"IF(INDIRECT(\"c\" & (VLOOKUP(Switch!$D$30,$F$2:$G$44,2,FALSE)+ROW()-2))=Switch!$D$30,INDIRECT(\"a\" & (VLOOKUP(Switch!$D$30,$F$2:$G$44,2,FALSE)+ROW()-2)),\"\")","v":{"$error":"#N/A"}},{"$f":"IF(INDIRECT(\"c\" & (VLOOKUP(Switch!$D$31,$F$2:$G$44,2,FALSE)+ROW()-2))=Switch!$D$31,INDIRECT(\"a\" & (VLOOKUP(Switch!$D$31,$F$2:$G$44,2,FALSE)+ROW()-2)),\"\")","v":{"$error":"#N/A"}},{"$f":"IF(INDIRECT(\"c\" & (VLOOKUP(Switch!$D$32,$F$2:$G$44,2,FALSE)+ROW()-2))=Switch!$D$32,INDIRECT(\"a\" & (VLOOKUP(Switch!$D$32,$F$2:$G$44,2,FALSE)+ROW()-2)),\"\")","v":{"$error":"#N/A"}},{"$f":"IF(INDIRECT(\"c\" & (VLOOKUP(Switch!$D$33,$F$2:$G$44,2,FALSE)+ROW()-2))=Switch!$D$33,INDIRECT(\"a\" & (VLOOKUP(Switch!$D$33,$F$2:$G$44,2,FALSE)+ROW()-2)),\"\")","v":{"$error":"#N/A"}},{"$f":"IF(INDIRECT(\"c\" & (VLOOKUP(Switch!$D$34,$F$2:$G$44,2,FALSE)+ROW()-2))=Switch!$D$34,INDIRECT(\"a\" & (VLOOKUP(Switch!$D$34,$F$2:$G$44,2,FALSE)+ROW()-2)),\"\")","v":{"$error":"#N/A"}},{"$f":"IF(INDIRECT(\"c\" & (VLOOKUP(Switch!$D$35,$F$2:$G$44,2,FALSE)+ROW()-2))=Switch!$D$35,INDIRECT(\"a\" & (VLOOKUP(Switch!$D$35,$F$2:$G$44,2,FALSE)+ROW()-2)),\"\")","v":{"$error":"#N/A"}},{"$f":"IF(INDIRECT(\"c\" & (VLOOKUP(Switch!$D$36,$F$2:$G$44,2,FALSE)+ROW()-2))=Switch!$D$36,INDIRECT(\"a\" & (VLOOKUP(Switch!$D$36,$F$2:$G$44,2,FALSE)+ROW()-2)),\"\")","v":{"$error":"#N/A"}},{"$f":"IF(INDIRECT(\"c\" & (VLOOKUP(Switch!$D$37,$F$2:$G$44,2,FALSE)+ROW()-2))=Switch!$D$37,INDIRECT(\"a\" & (VLOOKUP(Switch!$D$37,$F$2:$G$44,2,FALSE)+ROW()-2)),\"\")","v":{"$error":"#N/A"}},{"$f":"IF(INDIRECT(\"c\" & (VLOOKUP(Switch!$D$38,$F$2:$G$44,2,FALSE)+ROW()-2))=Switch!$D$38,INDIRECT(\"a\" & (VLOOKUP(Switch!$D$38,$F$2:$G$44,2,FALSE)+ROW()-2)),\"\")","v":{"$error":"#N/A"}},{"$f":"IF(INDIRECT(\"c\" & (VLOOKUP(Switch!$D$39,$F$2:$G$44,2,FALSE)+ROW()-2))=Switch!$D$39,INDIRECT(\"a\" & (VLOOKUP(Switch!$D$39,$F$2:$G$44,2,FALSE)+ROW()-2)),\"\")","v":{"$error":"#N/A"}},{"$f":"IF(INDIRECT(\"c\" & (VLOOKUP(Switch!$D$40,$F$2:$G$44,2,FALSE)+ROW()-2))=Switch!$D$40,INDIRECT(\"a\" & (VLOOKUP(Switch!$D$40,$F$2:$G$44,2,FALSE)+ROW()-2)),\"\")","v":{"$error":"#N/A"}},{"$f":"IF(INDIRECT(\"c\" & (VLOOKUP(Switch!$D$52,$F$2:$G$44,2,FALSE)+ROW()-2))=Switch!$D$52,INDIRECT(\"a\" & (VLOOKUP(Switch!$D$52,$F$2:$G$44,2,FALSE)+ROW()-2)),\"\")","v":{"$error":"#N/A"}},{"$f":"IF(INDIRECT(\"c\" & (VLOOKUP(Switch!$D$53,$F$2:$G$44,2,FALSE)+ROW()-2))=Switch!$D$53,INDIRECT(\"a\" & (VLOOKUP(Switch!$D$53,$F$2:$G$44,2,FALSE)+ROW()-2)),\"\")","v":{"$error":"#N/A"}},{"$f":"IF(INDIRECT(\"c\" & (VLOOKUP(Switch!$D$54,$F$2:$G$44,2,FALSE)+ROW()-2))=Switch!$D$54,INDIRECT(\"a\" & (VLOOKUP(Switch!$D$54,$F$2:$G$44,2,FALSE)+ROW()-2)),\"\")","v":{"$error":"#N/A"}},{"$f":"IF(INDIRECT(\"c\" & (VLOOKUP(Switch!$D$55,$F$2:$G$44,2,FALSE)+ROW()-2))=Switch!$D$55,INDIRECT(\"a\" & (VLOOKUP(Switch!$D$55,$F$2:$G$44,2,FALSE)+ROW()-2)),\"\")","v":{"$error":"#N/A"}},{"$f":"IF(INDIRECT(\"c\" & (VLOOKUP(Switch!$D$56,$F$2:$G$44,2,FALSE)+ROW()-2))=Switch!$D$56,INDIRECT(\"a\" & (VLOOKUP(Switch!$D$56,$F$2:$G$44,2,FALSE)+ROW()-2)),\"\")","v":{"$error":"#N/A"}},{"$f":"IF(INDIRECT(\"c\" & (VLOOKUP(Switch!$D$57,$F$2:$G$44,2,FALSE)+ROW()-2))=Switch!$D$57,INDIRECT(\"a\" & (VLOOKUP(Switch!$D$57,$F$2:$G$44,2,FALSE)+ROW()-2)),\"\")","v":{"$error":"#N/A"}},{"$f":"IF(INDIRECT(\"c\" & (VLOOKUP(Switch!$D$58,$F$2:$G$44,2,FALSE)+ROW()-2))=Switch!$D$58,INDIRECT(\"a\" & (VLOOKUP(Switch!$D$58,$F$2:$G$44,2,FALSE)+ROW()-2)),\"\")","v":{"$error":"#N/A"}},{"$f":"IF(INDIRECT(\"c\" & (VLOOKUP(Switch!$D$59,$F$2:$G$44,2,FALSE)+ROW()-2))=Switch!$D$59,INDIRECT(\"a\" & (VLOOKUP(Switch!$D$59,$F$2:$G$44,2,FALSE)+ROW()-2)),\"\")","v":{"$error":"#N/A"}},{"$f":"IF(INDIRECT(\"c\" & (VLOOKUP(Switch!$D$60,$F$2:$G$44,2,FALSE)+ROW()-2))=Switch!$D$60,INDIRECT(\"a\" & (VLOOKUP(Switch!$D$60,$F$2:$G$44,2,FALSE)+ROW()-2)),\"\")","v":{"$error":"#N/A"}},{"$f":"IF(INDIRECT(\"c\" & (VLOOKUP(Switch!$D$61,$F$2:$G$44,2,FALSE)+ROW()-2))=Switch!$D$61,INDIRECT(\"a\" & (VLOOKUP(Switch!$D$61,$F$2:$G$44,2,FALSE)+ROW()-2)),\"\")","v":{"$error":"#N/A"}},{"$f":"IF(INDIRECT(\"c\" & (VLOOKUP(Switch!$D$62,$F$2:$G$44,2,FALSE)+ROW()-2))=Switch!$D$62,INDIRECT(\"a\" & (VLOOKUP(Switch!$D$62,$F$2:$G$44,2,FALSE)+ROW()-2)),\"\")","v":{"$error":"#N/A"}},{"$f":"IF(INDIRECT(\"c\" & (VLOOKUP(Switch!$D$63,$F$2:$G$44,2,FALSE)+ROW()-2))=Switch!$D$63,INDIRECT(\"a\" & (VLOOKUP(Switch!$D$63,$F$2:$G$44,2,FALSE)+ROW()-2)),\"\")","v":{"$error":"#N/A"}},{"$f":"IF(INDIRECT(\"c\" & (VLOOKUP(Switch!$D$64,$F$2:$G$44,2,FALSE)+ROW()-2))=Switch!$D$64,INDIRECT(\"a\" & (VLOOKUP(Switch!$D$64,$F$2:$G$44,2,FALSE)+ROW()-2)),\"\")","v":{"$error":"#N/A"}},{"$f":"IF(INDIRECT(\"c\" & (VLOOKUP(Switch!$D$65,$F$2:$G$44,2,FALSE)+ROW()-2))=Switch!$D$65,INDIRECT(\"a\" & (VLOOKUP(Switch!$D$65,$F$2:$G$44,2,FALSE)+ROW()-2)),\"\")","v":{"$error":"#N/A"}},{"$f":"IF(INDIRECT(\"c\" & (VLOOKUP(Switch!$D$66,$F$2:$G$44,2,FALSE)+ROW()-2))=Switch!$D$66,INDIRECT(\"a\" & (VLOOKUP(Switch!$D$66,$F$2:$G$44,2,FALSE)+ROW()-2)),\"\")","v":{"$error":"#N/A"}}]
["Liberty Property Fund","ZZCPRP","LibertyGroup",{"$f":"ROW()","v":302},null,null,{"$f":"VLOOKUP(F302,$C$2:$D$637,2,FALSE)","v":{"$error":"#N/A"}},{"$f":"IF(INDIRECT(\"c\" & (VLOOKUP(Switch!$D$26,$F$2:$G$44,2,FALSE)+ROW()-2))=Switch!$D$26,INDIRECT(\"a\" & (VLOOKUP(Switch!$D$26,$F$2:$G$44,2,FALSE)+ROW()-2)),\"\")","v":{"$error":"#N/A"}},{"$f":"IF(INDIRECT(\"c\" & (VLOOKUP(Switch!$D$27,$F$2:$G$44,2,FALSE)+ROW()-2))=Switch!$D$27,INDIRECT(\"a\" & (VLOOKUP(Switch!$D$27,$F$2:$G$44,2,FALSE)+ROW()-2)),\"\")","v":{"$error":"#N/A"}},{"$f":"IF(INDIRECT(\"c\" & (VLOOKUP(Switch!$D$28,$F$2:$G$44,2,FALSE)+ROW()-2))=Switch!$D$28,INDIRECT(\"a\" & (VLOOKUP(Switch!$D$28,$F$2:$G$44,2,FALSE)+ROW()-2)),\"\")","v":{"$error":"#N/A"}},{"$f":"IF(INDIRECT(\"c\" & (VLOOKUP(Switch!$D$29,$F$2:$G$44,2,FALSE)+ROW()-2))=Switch!$D$29,INDIRECT(\"a\" & (VLOOKUP(Switch!$D$29,$F$2:$G$44,2,FALSE)+ROW()-2)),\"\")","v":{"$error":"#N/A"}},{"$f":"IF(INDIRECT(\"c\" & (VLOOKUP(Switch!$D$30,$F$2:$G$44,2,FALSE)+ROW()-2))=Switch!$D$30,INDIRECT(\"a\" & (VLOOKUP(Switch!$D$30,$F$2:$G$44,2,FALSE)+ROW()-2)),\"\")","v":{"$error":"#N/A"}},{"$f":"IF(INDIRECT(\"c\" & (VLOOKUP(Switch!$D$31,$F$2:$G$44,2,FALSE)+ROW()-2))=Switch!$D$31,INDIRECT(\"a\" & (VLOOKUP(Switch!$D$31,$F$2:$G$44,2,FALSE)+ROW()-2)),\"\")","v":{"$error":"#N/A"}},{"$f":"IF(INDIRECT(\"c\" & (VLOOKUP(Switch!$D$32,$F$2:$G$44,2,FALSE)+ROW()-2))=Switch!$D$32,INDIRECT(\"a\" & (VLOOKUP(Switch!$D$32,$F$2:$G$44,2,FALSE)+ROW()-2)),\"\")","v":{"$error":"#N/A"}},{"$f":"IF(INDIRECT(\"c\" & (VLOOKUP(Switch!$D$33,$F$2:$G$44,2,FALSE)+ROW()-2))=Switch!$D$33,INDIRECT(\"a\" & (VLOOKUP(Switch!$D$33,$F$2:$G$44,2,FALSE)+ROW()-2)),\"\")","v":{"$error":"#N/A"}},{"$f":"IF(INDIRECT(\"c\" & (VLOOKUP(Switch!$D$34,$F$2:$G$44,2,FALSE)+ROW()-2))=Switch!$D$34,INDIRECT(\"a\" & (VLOOKUP(Switch!$D$34,$F$2:$G$44,2,FALSE)+ROW()-2)),\"\")","v":{"$error":"#N/A"}},{"$f":"IF(INDIRECT(\"c\" & (VLOOKUP(Switch!$D$35,$F$2:$G$44,2,FALSE)+ROW()-2))=Switch!$D$35,INDIRECT(\"a\" & (VLOOKUP(Switch!$D$35,$F$2:$G$44,2,FALSE)+ROW()-2)),\"\")","v":{"$error":"#N/A"}},{"$f":"IF(INDIRECT(\"c\" & (VLOOKUP(Switch!$D$36,$F$2:$G$44,2,FALSE)+ROW()-2))=Switch!$D$36,INDIRECT(\"a\" & (VLOOKUP(Switch!$D$36,$F$2:$G$44,2,FALSE)+ROW()-2)),\"\")","v":{"$error":"#N/A"}},{"$f":"IF(INDIRECT(\"c\" & (VLOOKUP(Switch!$D$37,$F$2:$G$44,2,FALSE)+ROW()-2))=Switch!$D$37,INDIRECT(\"a\" & (VLOOKUP(Switch!$D$37,$F$2:$G$44,2,FALSE)+ROW()-2)),\"\")","v":{"$error":"#N/A"}},{"$f":"IF(INDIRECT(\"c\" & (VLOOKUP(Switch!$D$38,$F$2:$G$44,2,FALSE)+ROW()-2))=Switch!$D$38,INDIRECT(\"a\" & (VLOOKUP(Switch!$D$38,$F$2:$G$44,2,FALSE)+ROW()-2)),\"\")","v":{"$error":"#N/A"}},{"$f":"IF(INDIRECT(\"c\" & (VLOOKUP(Switch!$D$39,$F$2:$G$44,2,FALSE)+ROW()-2))=Switch!$D$39,INDIRECT(\"a\" & (VLOOKUP(Switch!$D$39,$F$2:$G$44,2,FALSE)+ROW()-2)),\"\")","v":{"$error":"#N/A"}},{"$f":"IF(INDIRECT(\"c\" & (VLOOKUP(Switch!$D$40,$F$2:$G$44,2,FALSE)+ROW()-2))=Switch!$D$40,INDIRECT(\"a\" & (VLOOKUP(Switch!$D$40,$F$2:$G$44,2,FALSE)+ROW()-2)),\"\")","v":{"$error":"#N/A"}},{"$f":"IF(INDIRECT(\"c\" & (VLOOKUP(Switch!$D$52,$F$2:$G$44,2,FALSE)+ROW()-2))=Switch!$D$52,INDIRECT(\"a\" & (VLOOKUP(Switch!$D$52,$F$2:$G$44,2,FALSE)+ROW()-2)),\"\")","v":{"$error":"#N/A"}},{"$f":"IF(INDIRECT(\"c\" & (VLOOKUP(Switch!$D$53,$F$2:$G$44,2,FALSE)+ROW()-2))=Switch!$D$53,INDIRECT(\"a\" & (VLOOKUP(Switch!$D$53,$F$2:$G$44,2,FALSE)+ROW()-2)),\"\")","v":{"$error":"#N/A"}},{"$f":"IF(INDIRECT(\"c\" & (VLOOKUP(Switch!$D$54,$F$2:$G$44,2,FALSE)+ROW()-2))=Switch!$D$54,INDIRECT(\"a\" & (VLOOKUP(Switch!$D$54,$F$2:$G$44,2,FALSE)+ROW()-2)),\"\")","v":{"$error":"#N/A"}},{"$f":"IF(INDIRECT(\"c\" & (VLOOKUP(Switch!$D$55,$F$2:$G$44,2,FALSE)+ROW()-2))=Switch!$D$55,INDIRECT(\"a\" & (VLOOKUP(Switch!$D$55,$F$2:$G$44,2,FALSE)+ROW()-2)),\"\")","v":{"$error":"#N/A"}},{"$f":"IF(INDIRECT(\"c\" & (VLOOKUP(Switch!$D$56,$F$2:$G$44,2,FALSE)+ROW()-2))=Switch!$D$56,INDIRECT(\"a\" & (VLOOKUP(Switch!$D$56,$F$2:$G$44,2,FALSE)+ROW()-2)),\"\")","v":{"$error":"#N/A"}},{"$f":"IF(INDIRECT(\"c\" & (VLOOKUP(Switch!$D$57,$F$2:$G$44,2,FALSE)+ROW()-2))=Switch!$D$57,INDIRECT(\"a\" & (VLOOKUP(Switch!$D$57,$F$2:$G$44,2,FALSE)+ROW()-2)),\"\")","v":{"$error":"#N/A"}},{"$f":"IF(INDIRECT(\"c\" & (VLOOKUP(Switch!$D$58,$F$2:$G$44,2,FALSE)+ROW()-2))=Switch!$D$58,INDIRECT(\"a\" & (VLOOKUP(Switch!$D$58,$F$2:$G$44,2,FALSE)+ROW()-2)),\"\")","v":{"$error":"#N/A"}},{"$f":"IF(INDIRECT(\"c\" & (VLOOKUP(Switch!$D$59,$F$2:$G$44,2,FALSE)+ROW()-2))=Switch!$D$59,INDIRECT(\"a\" & (VLOOKUP(Switch!$D$59,$F$2:$G$44,2,FALSE)+ROW()-2)),\"\")","v":{"$error":"#N/A"}},{"$f":"IF(INDIRECT(\"c\" & (VLOOKUP(Switch!$D$60,$F$2:$G$44,2,FALSE)+ROW()-2))=Switch!$D$60,INDIRECT(\"a\" & (VLOOKUP(Switch!$D$60,$F$2:$G$44,2,FALSE)+ROW()-2)),\"\")","v":{"$error":"#N/A"}},{"$f":"IF(INDIRECT(\"c\" & (VLOOKUP(Switch!$D$61,$F$2:$G$44,2,FALSE)+ROW()-2))=Switch!$D$61,INDIRECT(\"a\" & (VLOOKUP(Switch!$D$61,$F$2:$G$44,2,FALSE)+ROW()-2)),\"\")","v":{"$error":"#N/A"}},{"$f":"IF(INDIRECT(\"c\" & (VLOOKUP(Switch!$D$62,$F$2:$G$44,2,FALSE)+ROW()-2))=Switch!$D$62,INDIRECT(\"a\" & (VLOOKUP(Switch!$D$62,$F$2:$G$44,2,FALSE)+ROW()-2)),\"\")","v":{"$error":"#N/A"}},{"$f":"IF(INDIRECT(\"c\" & (VLOOKUP(Switch!$D$63,$F$2:$G$44,2,FALSE)+ROW()-2))=Switch!$D$63,INDIRECT(\"a\" & (VLOOKUP(Switch!$D$63,$F$2:$G$44,2,FALSE)+ROW()-2)),\"\")","v":{"$error":"#N/A"}},{"$f":"IF(INDIRECT(\"c\" & (VLOOKUP(Switch!$D$64,$F$2:$G$44,2,FALSE)+ROW()-2))=Switch!$D$64,INDIRECT(\"a\" & (VLOOKUP(Switch!$D$64,$F$2:$G$44,2,FALSE)+ROW()-2)),\"\")","v":{"$error":"#N/A"}},{"$f":"IF(INDIRECT(\"c\" & (VLOOKUP(Switch!$D$65,$F$2:$G$44,2,FALSE)+ROW()-2))=Switch!$D$65,INDIRECT(\"a\" & (VLOOKUP(Switch!$D$65,$F$2:$G$44,2,FALSE)+ROW()-2)),\"\")","v":{"$error":"#N/A"}},{"$f":"IF(INDIRECT(\"c\" & (VLOOKUP(Switch!$D$66,$F$2:$G$44,2,FALSE)+ROW()-2))=Switch!$D$66,INDIRECT(\"a\" & (VLOOKUP(Switch!$D$66,$F$2:$G$44,2,FALSE)+ROW()-2)),\"\")","v":{"$error":"#N/A"}}]
["Liberty Real Estate Property Fund C","ZZREPC","LibertyGroup",{"$f":"ROW()","v":303},null,null,{"$f":"VLOOKUP(F303,$C$2:$D$637,2,FALSE)","v":{"$error":"#N/A"}},{"$f":"IF(INDIRECT(\"c\" & (VLOOKUP(Switch!$D$26,$F$2:$G$44,2,FALSE)+ROW()-2))=Switch!$D$26,INDIRECT(\"a\" & (VLOOKUP(Switch!$D$26,$F$2:$G$44,2,FALSE)+ROW()-2)),\"\")","v":{"$error":"#N/A"}},{"$f":"IF(INDIRECT(\"c\" & (VLOOKUP(Switch!$D$27,$F$2:$G$44,2,FALSE)+ROW()-2))=Switch!$D$27,INDIRECT(\"a\" & (VLOOKUP(Switch!$D$27,$F$2:$G$44,2,FALSE)+ROW()-2)),\"\")","v":{"$error":"#N/A"}},{"$f":"IF(INDIRECT(\"c\" & (VLOOKUP(Switch!$D$28,$F$2:$G$44,2,FALSE)+ROW()-2))=Switch!$D$28,INDIRECT(\"a\" & (VLOOKUP(Switch!$D$28,$F$2:$G$44,2,FALSE)+ROW()-2)),\"\")","v":{"$error":"#N/A"}},{"$f":"IF(INDIRECT(\"c\" & (VLOOKUP(Switch!$D$29,$F$2:$G$44,2,FALSE)+ROW()-2))=Switch!$D$29,INDIRECT(\"a\" & (VLOOKUP(Switch!$D$29,$F$2:$G$44,2,FALSE)+ROW()-2)),\"\")","v":{"$error":"#N/A"}},{"$f":"IF(INDIRECT(\"c\" & (VLOOKUP(Switch!$D$30,$F$2:$G$44,2,FALSE)+ROW()-2))=Switch!$D$30,INDIRECT(\"a\" & (VLOOKUP(Switch!$D$30,$F$2:$G$44,2,FALSE)+ROW()-2)),\"\")","v":{"$error":"#N/A"}},{"$f":"IF(INDIRECT(\"c\" & (VLOOKUP(Switch!$D$31,$F$2:$G$44,2,FALSE)+ROW()-2))=Switch!$D$31,INDIRECT(\"a\" & (VLOOKUP(Switch!$D$31,$F$2:$G$44,2,FALSE)+ROW()-2)),\"\")","v":{"$error":"#N/A"}},{"$f":"IF(INDIRECT(\"c\" & (VLOOKUP(Switch!$D$32,$F$2:$G$44,2,FALSE)+ROW()-2))=Switch!$D$32,INDIRECT(\"a\" & (VLOOKUP(Switch!$D$32,$F$2:$G$44,2,FALSE)+ROW()-2)),\"\")","v":{"$error":"#N/A"}},{"$f":"IF(INDIRECT(\"c\" & (VLOOKUP(Switch!$D$33,$F$2:$G$44,2,FALSE)+ROW()-2))=Switch!$D$33,INDIRECT(\"a\" & (VLOOKUP(Switch!$D$33,$F$2:$G$44,2,FALSE)+ROW()-2)),\"\")","v":{"$error":"#N/A"}},{"$f":"IF(INDIRECT(\"c\" & (VLOOKUP(Switch!$D$34,$F$2:$G$44,2,FALSE)+ROW()-2))=Switch!$D$34,INDIRECT(\"a\" & (VLOOKUP(Switch!$D$34,$F$2:$G$44,2,FALSE)+ROW()-2)),\"\")","v":{"$error":"#N/A"}},{"$f":"IF(INDIRECT(\"c\" & (VLOOKUP(Switch!$D$35,$F$2:$G$44,2,FALSE)+ROW()-2))=Switch!$D$35,INDIRECT(\"a\" & (VLOOKUP(Switch!$D$35,$F$2:$G$44,2,FALSE)+ROW()-2)),\"\")","v":{"$error":"#N/A"}},{"$f":"IF(INDIRECT(\"c\" & (VLOOKUP(Switch!$D$36,$F$2:$G$44,2,FALSE)+ROW()-2))=Switch!$D$36,INDIRECT(\"a\" & (VLOOKUP(Switch!$D$36,$F$2:$G$44,2,FALSE)+ROW()-2)),\"\")","v":{"$error":"#N/A"}},{"$f":"IF(INDIRECT(\"c\" & (VLOOKUP(Switch!$D$37,$F$2:$G$44,2,FALSE)+ROW()-2))=Switch!$D$37,INDIRECT(\"a\" & (VLOOKUP(Switch!$D$37,$F$2:$G$44,2,FALSE)+ROW()-2)),\"\")","v":{"$error":"#N/A"}},{"$f":"IF(INDIRECT(\"c\" & (VLOOKUP(Switch!$D$38,$F$2:$G$44,2,FALSE)+ROW()-2))=Switch!$D$38,INDIRECT(\"a\" & (VLOOKUP(Switch!$D$38,$F$2:$G$44,2,FALSE)+ROW()-2)),\"\")","v":{"$error":"#N/A"}},{"$f":"IF(INDIRECT(\"c\" & (VLOOKUP(Switch!$D$39,$F$2:$G$44,2,FALSE)+ROW()-2))=Switch!$D$39,INDIRECT(\"a\" & (VLOOKUP(Switch!$D$39,$F$2:$G$44,2,FALSE)+ROW()-2)),\"\")","v":{"$error":"#N/A"}},{"$f":"IF(INDIRECT(\"c\" & (VLOOKUP(Switch!$D$40,$F$2:$G$44,2,FALSE)+ROW()-2))=Switch!$D$40,INDIRECT(\"a\" & (VLOOKUP(Switch!$D$40,$F$2:$G$44,2,FALSE)+ROW()-2)),\"\")","v":{"$error":"#N/A"}},{"$f":"IF(INDIRECT(\"c\" & (VLOOKUP(Switch!$D$52,$F$2:$G$44,2,FALSE)+ROW()-2))=Switch!$D$52,INDIRECT(\"a\" & (VLOOKUP(Switch!$D$52,$F$2:$G$44,2,FALSE)+ROW()-2)),\"\")","v":{"$error":"#N/A"}},{"$f":"IF(INDIRECT(\"c\" & (VLOOKUP(Switch!$D$53,$F$2:$G$44,2,FALSE)+ROW()-2))=Switch!$D$53,INDIRECT(\"a\" & (VLOOKUP(Switch!$D$53,$F$2:$G$44,2,FALSE)+ROW()-2)),\"\")","v":{"$error":"#N/A"}},{"$f":"IF(INDIRECT(\"c\" & (VLOOKUP(Switch!$D$54,$F$2:$G$44,2,FALSE)+ROW()-2))=Switch!$D$54,INDIRECT(\"a\" & (VLOOKUP(Switch!$D$54,$F$2:$G$44,2,FALSE)+ROW()-2)),\"\")","v":{"$error":"#N/A"}},{"$f":"IF(INDIRECT(\"c\" & (VLOOKUP(Switch!$D$55,$F$2:$G$44,2,FALSE)+ROW()-2))=Switch!$D$55,INDIRECT(\"a\" & (VLOOKUP(Switch!$D$55,$F$2:$G$44,2,FALSE)+ROW()-2)),\"\")","v":{"$error":"#N/A"}},{"$f":"IF(INDIRECT(\"c\" & (VLOOKUP(Switch!$D$56,$F$2:$G$44,2,FALSE)+ROW()-2))=Switch!$D$56,INDIRECT(\"a\" & (VLOOKUP(Switch!$D$56,$F$2:$G$44,2,FALSE)+ROW()-2)),\"\")","v":{"$error":"#N/A"}},{"$f":"IF(INDIRECT(\"c\" & (VLOOKUP(Switch!$D$57,$F$2:$G$44,2,FALSE)+ROW()-2))=Switch!$D$57,INDIRECT(\"a\" & (VLOOKUP(Switch!$D$57,$F$2:$G$44,2,FALSE)+ROW()-2)),\"\")","v":{"$error":"#N/A"}},{"$f":"IF(INDIRECT(\"c\" & (VLOOKUP(Switch!$D$58,$F$2:$G$44,2,FALSE)+ROW()-2))=Switch!$D$58,INDIRECT(\"a\" & (VLOOKUP(Switch!$D$58,$F$2:$G$44,2,FALSE)+ROW()-2)),\"\")","v":{"$error":"#N/A"}},{"$f":"IF(INDIRECT(\"c\" & (VLOOKUP(Switch!$D$59,$F$2:$G$44,2,FALSE)+ROW()-2))=Switch!$D$59,INDIRECT(\"a\" & (VLOOKUP(Switch!$D$59,$F$2:$G$44,2,FALSE)+ROW()-2)),\"\")","v":{"$error":"#N/A"}},{"$f":"IF(INDIRECT(\"c\" & (VLOOKUP(Switch!$D$60,$F$2:$G$44,2,FALSE)+ROW()-2))=Switch!$D$60,INDIRECT(\"a\" & (VLOOKUP(Switch!$D$60,$F$2:$G$44,2,FALSE)+ROW()-2)),\"\")","v":{"$error":"#N/A"}},{"$f":"IF(INDIRECT(\"c\" & (VLOOKUP(Switch!$D$61,$F$2:$G$44,2,FALSE)+ROW()-2))=Switch!$D$61,INDIRECT(\"a\" & (VLOOKUP(Switch!$D$61,$F$2:$G$44,2,FALSE)+ROW()-2)),\"\")","v":{"$error":"#N/A"}},{"$f":"IF(INDIRECT(\"c\" & (VLOOKUP(Switch!$D$62,$F$2:$G$44,2,FALSE)+ROW()-2))=Switch!$D$62,INDIRECT(\"a\" & (VLOOKUP(Switch!$D$62,$F$2:$G$44,2,FALSE)+ROW()-2)),\"\")","v":{"$error":"#N/A"}},{"$f":"IF(INDIRECT(\"c\" & (VLOOKUP(Switch!$D$63,$F$2:$G$44,2,FALSE)+ROW()-2))=Switch!$D$63,INDIRECT(\"a\" & (VLOOKUP(Switch!$D$63,$F$2:$G$44,2,FALSE)+ROW()-2)),\"\")","v":{"$error":"#N/A"}},{"$f":"IF(INDIRECT(\"c\" & (VLOOKUP(Switch!$D$64,$F$2:$G$44,2,FALSE)+ROW()-2))=Switch!$D$64,INDIRECT(\"a\" & (VLOOKUP(Switch!$D$64,$F$2:$G$44,2,FALSE)+ROW()-2)),\"\")","v":{"$error":"#N/A"}},{"$f":"IF(INDIRECT(\"c\" & (VLOOKUP(Switch!$D$65,$F$2:$G$44,2,FALSE)+ROW()-2))=Switch!$D$65,INDIRECT(\"a\" & (VLOOKUP(Switch!$D$65,$F$2:$G$44,2,FALSE)+ROW()-2)),\"\")","v":{"$error":"#N/A"}},{"$f":"IF(INDIRECT(\"c\" & (VLOOKUP(Switch!$D$66,$F$2:$G$44,2,FALSE)+ROW()-2))=Switch!$D$66,INDIRECT(\"a\" & (VLOOKUP(Switch!$D$66,$F$2:$G$44,2,FALSE)+ROW()-2)),\"\")","v":{"$error":"#N/A"}}]
["Marriott Balanced Fund of Fund C","MPFC","Marriott Unit Trust Management Company Ltd",{"$f":"ROW()","v":304},null,null,{"$f":"VLOOKUP(F304,$C$2:$D$637,2,FALSE)","v":{"$error":"#N/A"}},{"$f":"IF(INDIRECT(\"c\" & (VLOOKUP(Switch!$D$26,$F$2:$G$44,2,FALSE)+ROW()-2))=Switch!$D$26,INDIRECT(\"a\" & (VLOOKUP(Switch!$D$26,$F$2:$G$44,2,FALSE)+ROW()-2)),\"\")","v":{"$error":"#N/A"}},{"$f":"IF(INDIRECT(\"c\" & (VLOOKUP(Switch!$D$27,$F$2:$G$44,2,FALSE)+ROW()-2))=Switch!$D$27,INDIRECT(\"a\" & (VLOOKUP(Switch!$D$27,$F$2:$G$44,2,FALSE)+ROW()-2)),\"\")","v":{"$error":"#N/A"}},{"$f":"IF(INDIRECT(\"c\" & (VLOOKUP(Switch!$D$28,$F$2:$G$44,2,FALSE)+ROW()-2))=Switch!$D$28,INDIRECT(\"a\" & (VLOOKUP(Switch!$D$28,$F$2:$G$44,2,FALSE)+ROW()-2)),\"\")","v":{"$error":"#N/A"}},{"$f":"IF(INDIRECT(\"c\" & (VLOOKUP(Switch!$D$29,$F$2:$G$44,2,FALSE)+ROW()-2))=Switch!$D$29,INDIRECT(\"a\" & (VLOOKUP(Switch!$D$29,$F$2:$G$44,2,FALSE)+ROW()-2)),\"\")","v":{"$error":"#N/A"}},{"$f":"IF(INDIRECT(\"c\" & (VLOOKUP(Switch!$D$30,$F$2:$G$44,2,FALSE)+ROW()-2))=Switch!$D$30,INDIRECT(\"a\" & (VLOOKUP(Switch!$D$30,$F$2:$G$44,2,FALSE)+ROW()-2)),\"\")","v":{"$error":"#N/A"}},{"$f":"IF(INDIRECT(\"c\" & (VLOOKUP(Switch!$D$31,$F$2:$G$44,2,FALSE)+ROW()-2))=Switch!$D$31,INDIRECT(\"a\" & (VLOOKUP(Switch!$D$31,$F$2:$G$44,2,FALSE)+ROW()-2)),\"\")","v":{"$error":"#N/A"}},{"$f":"IF(INDIRECT(\"c\" & (VLOOKUP(Switch!$D$32,$F$2:$G$44,2,FALSE)+ROW()-2))=Switch!$D$32,INDIRECT(\"a\" & (VLOOKUP(Switch!$D$32,$F$2:$G$44,2,FALSE)+ROW()-2)),\"\")","v":{"$error":"#N/A"}},{"$f":"IF(INDIRECT(\"c\" & (VLOOKUP(Switch!$D$33,$F$2:$G$44,2,FALSE)+ROW()-2))=Switch!$D$33,INDIRECT(\"a\" & (VLOOKUP(Switch!$D$33,$F$2:$G$44,2,FALSE)+ROW()-2)),\"\")","v":{"$error":"#N/A"}},{"$f":"IF(INDIRECT(\"c\" & (VLOOKUP(Switch!$D$34,$F$2:$G$44,2,FALSE)+ROW()-2))=Switch!$D$34,INDIRECT(\"a\" & (VLOOKUP(Switch!$D$34,$F$2:$G$44,2,FALSE)+ROW()-2)),\"\")","v":{"$error":"#N/A"}},{"$f":"IF(INDIRECT(\"c\" & (VLOOKUP(Switch!$D$35,$F$2:$G$44,2,FALSE)+ROW()-2))=Switch!$D$35,INDIRECT(\"a\" & (VLOOKUP(Switch!$D$35,$F$2:$G$44,2,FALSE)+ROW()-2)),\"\")","v":{"$error":"#N/A"}},{"$f":"IF(INDIRECT(\"c\" & (VLOOKUP(Switch!$D$36,$F$2:$G$44,2,FALSE)+ROW()-2))=Switch!$D$36,INDIRECT(\"a\" & (VLOOKUP(Switch!$D$36,$F$2:$G$44,2,FALSE)+ROW()-2)),\"\")","v":{"$error":"#N/A"}},{"$f":"IF(INDIRECT(\"c\" & (VLOOKUP(Switch!$D$37,$F$2:$G$44,2,FALSE)+ROW()-2))=Switch!$D$37,INDIRECT(\"a\" & (VLOOKUP(Switch!$D$37,$F$2:$G$44,2,FALSE)+ROW()-2)),\"\")","v":{"$error":"#N/A"}},{"$f":"IF(INDIRECT(\"c\" & (VLOOKUP(Switch!$D$38,$F$2:$G$44,2,FALSE)+ROW()-2))=Switch!$D$38,INDIRECT(\"a\" & (VLOOKUP(Switch!$D$38,$F$2:$G$44,2,FALSE)+ROW()-2)),\"\")","v":{"$error":"#N/A"}},{"$f":"IF(INDIRECT(\"c\" & (VLOOKUP(Switch!$D$39,$F$2:$G$44,2,FALSE)+ROW()-2))=Switch!$D$39,INDIRECT(\"a\" & (VLOOKUP(Switch!$D$39,$F$2:$G$44,2,FALSE)+ROW()-2)),\"\")","v":{"$error":"#N/A"}},{"$f":"IF(INDIRECT(\"c\" & (VLOOKUP(Switch!$D$40,$F$2:$G$44,2,FALSE)+ROW()-2))=Switch!$D$40,INDIRECT(\"a\" & (VLOOKUP(Switch!$D$40,$F$2:$G$44,2,FALSE)+ROW()-2)),\"\")","v":{"$error":"#N/A"}},{"$f":"IF(INDIRECT(\"c\" & (VLOOKUP(Switch!$D$52,$F$2:$G$44,2,FALSE)+ROW()-2))=Switch!$D$52,INDIRECT(\"a\" & (VLOOKUP(Switch!$D$52,$F$2:$G$44,2,FALSE)+ROW()-2)),\"\")","v":{"$error":"#N/A"}},{"$f":"IF(INDIRECT(\"c\" & (VLOOKUP(Switch!$D$53,$F$2:$G$44,2,FALSE)+ROW()-2))=Switch!$D$53,INDIRECT(\"a\" & (VLOOKUP(Switch!$D$53,$F$2:$G$44,2,FALSE)+ROW()-2)),\"\")","v":{"$error":"#N/A"}},{"$f":"IF(INDIRECT(\"c\" & (VLOOKUP(Switch!$D$54,$F$2:$G$44,2,FALSE)+ROW()-2))=Switch!$D$54,INDIRECT(\"a\" & (VLOOKUP(Switch!$D$54,$F$2:$G$44,2,FALSE)+ROW()-2)),\"\")","v":{"$error":"#N/A"}},{"$f":"IF(INDIRECT(\"c\" & (VLOOKUP(Switch!$D$55,$F$2:$G$44,2,FALSE)+ROW()-2))=Switch!$D$55,INDIRECT(\"a\" & (VLOOKUP(Switch!$D$55,$F$2:$G$44,2,FALSE)+ROW()-2)),\"\")","v":{"$error":"#N/A"}},{"$f":"IF(INDIRECT(\"c\" & (VLOOKUP(Switch!$D$56,$F$2:$G$44,2,FALSE)+ROW()-2))=Switch!$D$56,INDIRECT(\"a\" & (VLOOKUP(Switch!$D$56,$F$2:$G$44,2,FALSE)+ROW()-2)),\"\")","v":{"$error":"#N/A"}},{"$f":"IF(INDIRECT(\"c\" & (VLOOKUP(Switch!$D$57,$F$2:$G$44,2,FALSE)+ROW()-2))=Switch!$D$57,INDIRECT(\"a\" & (VLOOKUP(Switch!$D$57,$F$2:$G$44,2,FALSE)+ROW()-2)),\"\")","v":{"$error":"#N/A"}},{"$f":"IF(INDIRECT(\"c\" & (VLOOKUP(Switch!$D$58,$F$2:$G$44,2,FALSE)+ROW()-2))=Switch!$D$58,INDIRECT(\"a\" & (VLOOKUP(Switch!$D$58,$F$2:$G$44,2,FALSE)+ROW()-2)),\"\")","v":{"$error":"#N/A"}},{"$f":"IF(INDIRECT(\"c\" & (VLOOKUP(Switch!$D$59,$F$2:$G$44,2,FALSE)+ROW()-2))=Switch!$D$59,INDIRECT(\"a\" & (VLOOKUP(Switch!$D$59,$F$2:$G$44,2,FALSE)+ROW()-2)),\"\")","v":{"$error":"#N/A"}},{"$f":"IF(INDIRECT(\"c\" & (VLOOKUP(Switch!$D$60,$F$2:$G$44,2,FALSE)+ROW()-2))=Switch!$D$60,INDIRECT(\"a\" & (VLOOKUP(Switch!$D$60,$F$2:$G$44,2,FALSE)+ROW()-2)),\"\")","v":{"$error":"#N/A"}},{"$f":"IF(INDIRECT(\"c\" & (VLOOKUP(Switch!$D$61,$F$2:$G$44,2,FALSE)+ROW()-2))=Switch!$D$61,INDIRECT(\"a\" & (VLOOKUP(Switch!$D$61,$F$2:$G$44,2,FALSE)+ROW()-2)),\"\")","v":{"$error":"#N/A"}},{"$f":"IF(INDIRECT(\"c\" & (VLOOKUP(Switch!$D$62,$F$2:$G$44,2,FALSE)+ROW()-2))=Switch!$D$62,INDIRECT(\"a\" & (VLOOKUP(Switch!$D$62,$F$2:$G$44,2,FALSE)+ROW()-2)),\"\")","v":{"$error":"#N/A"}},{"$f":"IF(INDIRECT(\"c\" & (VLOOKUP(Switch!$D$63,$F$2:$G$44,2,FALSE)+ROW()-2))=Switch!$D$63,INDIRECT(\"a\" & (VLOOKUP(Switch!$D$63,$F$2:$G$44,2,FALSE)+ROW()-2)),\"\")","v":{"$error":"#N/A"}},{"$f":"IF(INDIRECT(\"c\" & (VLOOKUP(Switch!$D$64,$F$2:$G$44,2,FALSE)+ROW()-2))=Switch!$D$64,INDIRECT(\"a\" & (VLOOKUP(Switch!$D$64,$F$2:$G$44,2,FALSE)+ROW()-2)),\"\")","v":{"$error":"#N/A"}},{"$f":"IF(INDIRECT(\"c\" & (VLOOKUP(Switch!$D$65,$F$2:$G$44,2,FALSE)+ROW()-2))=Switch!$D$65,INDIRECT(\"a\" & (VLOOKUP(Switch!$D$65,$F$2:$G$44,2,FALSE)+ROW()-2)),\"\")","v":{"$error":"#N/A"}},{"$f":"IF(INDIRECT(\"c\" & (VLOOKUP(Switch!$D$66,$F$2:$G$44,2,FALSE)+ROW()-2))=Switch!$D$66,INDIRECT(\"a\" & (VLOOKUP(Switch!$D$66,$F$2:$G$44,2,FALSE)+ROW()-2)),\"\")","v":{"$error":"#N/A"}}]
["Marriott Core Income Fund Class C","MIFC","Marriott Unit Trust Management Company Ltd",{"$f":"ROW()","v":305},null,null,{"$f":"VLOOKUP(F305,$C$2:$D$637,2,FALSE)","v":{"$error":"#N/A"}},{"$f":"IF(INDIRECT(\"c\" & (VLOOKUP(Switch!$D$26,$F$2:$G$44,2,FALSE)+ROW()-2))=Switch!$D$26,INDIRECT(\"a\" & (VLOOKUP(Switch!$D$26,$F$2:$G$44,2,FALSE)+ROW()-2)),\"\")","v":{"$error":"#N/A"}},{"$f":"IF(INDIRECT(\"c\" & (VLOOKUP(Switch!$D$27,$F$2:$G$44,2,FALSE)+ROW()-2))=Switch!$D$27,INDIRECT(\"a\" & (VLOOKUP(Switch!$D$27,$F$2:$G$44,2,FALSE)+ROW()-2)),\"\")","v":{"$error":"#N/A"}},{"$f":"IF(INDIRECT(\"c\" & (VLOOKUP(Switch!$D$28,$F$2:$G$44,2,FALSE)+ROW()-2))=Switch!$D$28,INDIRECT(\"a\" & (VLOOKUP(Switch!$D$28,$F$2:$G$44,2,FALSE)+ROW()-2)),\"\")","v":{"$error":"#N/A"}},{"$f":"IF(INDIRECT(\"c\" & (VLOOKUP(Switch!$D$29,$F$2:$G$44,2,FALSE)+ROW()-2))=Switch!$D$29,INDIRECT(\"a\" & (VLOOKUP(Switch!$D$29,$F$2:$G$44,2,FALSE)+ROW()-2)),\"\")","v":{"$error":"#N/A"}},{"$f":"IF(INDIRECT(\"c\" & (VLOOKUP(Switch!$D$30,$F$2:$G$44,2,FALSE)+ROW()-2))=Switch!$D$30,INDIRECT(\"a\" & (VLOOKUP(Switch!$D$30,$F$2:$G$44,2,FALSE)+ROW()-2)),\"\")","v":{"$error":"#N/A"}},{"$f":"IF(INDIRECT(\"c\" & (VLOOKUP(Switch!$D$31,$F$2:$G$44,2,FALSE)+ROW()-2))=Switch!$D$31,INDIRECT(\"a\" & (VLOOKUP(Switch!$D$31,$F$2:$G$44,2,FALSE)+ROW()-2)),\"\")","v":{"$error":"#N/A"}},{"$f":"IF(INDIRECT(\"c\" & (VLOOKUP(Switch!$D$32,$F$2:$G$44,2,FALSE)+ROW()-2))=Switch!$D$32,INDIRECT(\"a\" & (VLOOKUP(Switch!$D$32,$F$2:$G$44,2,FALSE)+ROW()-2)),\"\")","v":{"$error":"#N/A"}},{"$f":"IF(INDIRECT(\"c\" & (VLOOKUP(Switch!$D$33,$F$2:$G$44,2,FALSE)+ROW()-2))=Switch!$D$33,INDIRECT(\"a\" & (VLOOKUP(Switch!$D$33,$F$2:$G$44,2,FALSE)+ROW()-2)),\"\")","v":{"$error":"#N/A"}},{"$f":"IF(INDIRECT(\"c\" & (VLOOKUP(Switch!$D$34,$F$2:$G$44,2,FALSE)+ROW()-2))=Switch!$D$34,INDIRECT(\"a\" & (VLOOKUP(Switch!$D$34,$F$2:$G$44,2,FALSE)+ROW()-2)),\"\")","v":{"$error":"#N/A"}},{"$f":"IF(INDIRECT(\"c\" & (VLOOKUP(Switch!$D$35,$F$2:$G$44,2,FALSE)+ROW()-2))=Switch!$D$35,INDIRECT(\"a\" & (VLOOKUP(Switch!$D$35,$F$2:$G$44,2,FALSE)+ROW()-2)),\"\")","v":{"$error":"#N/A"}},{"$f":"IF(INDIRECT(\"c\" & (VLOOKUP(Switch!$D$36,$F$2:$G$44,2,FALSE)+ROW()-2))=Switch!$D$36,INDIRECT(\"a\" & (VLOOKUP(Switch!$D$36,$F$2:$G$44,2,FALSE)+ROW()-2)),\"\")","v":{"$error":"#N/A"}},{"$f":"IF(INDIRECT(\"c\" & (VLOOKUP(Switch!$D$37,$F$2:$G$44,2,FALSE)+ROW()-2))=Switch!$D$37,INDIRECT(\"a\" & (VLOOKUP(Switch!$D$37,$F$2:$G$44,2,FALSE)+ROW()-2)),\"\")","v":{"$error":"#N/A"}},{"$f":"IF(INDIRECT(\"c\" & (VLOOKUP(Switch!$D$38,$F$2:$G$44,2,FALSE)+ROW()-2))=Switch!$D$38,INDIRECT(\"a\" & (VLOOKUP(Switch!$D$38,$F$2:$G$44,2,FALSE)+ROW()-2)),\"\")","v":{"$error":"#N/A"}},{"$f":"IF(INDIRECT(\"c\" & (VLOOKUP(Switch!$D$39,$F$2:$G$44,2,FALSE)+ROW()-2))=Switch!$D$39,INDIRECT(\"a\" & (VLOOKUP(Switch!$D$39,$F$2:$G$44,2,FALSE)+ROW()-2)),\"\")","v":{"$error":"#N/A"}},{"$f":"IF(INDIRECT(\"c\" & (VLOOKUP(Switch!$D$40,$F$2:$G$44,2,FALSE)+ROW()-2))=Switch!$D$40,INDIRECT(\"a\" & (VLOOKUP(Switch!$D$40,$F$2:$G$44,2,FALSE)+ROW()-2)),\"\")","v":{"$error":"#N/A"}},{"$f":"IF(INDIRECT(\"c\" & (VLOOKUP(Switch!$D$52,$F$2:$G$44,2,FALSE)+ROW()-2))=Switch!$D$52,INDIRECT(\"a\" & (VLOOKUP(Switch!$D$52,$F$2:$G$44,2,FALSE)+ROW()-2)),\"\")","v":{"$error":"#N/A"}},{"$f":"IF(INDIRECT(\"c\" & (VLOOKUP(Switch!$D$53,$F$2:$G$44,2,FALSE)+ROW()-2))=Switch!$D$53,INDIRECT(\"a\" & (VLOOKUP(Switch!$D$53,$F$2:$G$44,2,FALSE)+ROW()-2)),\"\")","v":{"$error":"#N/A"}},{"$f":"IF(INDIRECT(\"c\" & (VLOOKUP(Switch!$D$54,$F$2:$G$44,2,FALSE)+ROW()-2))=Switch!$D$54,INDIRECT(\"a\" & (VLOOKUP(Switch!$D$54,$F$2:$G$44,2,FALSE)+ROW()-2)),\"\")","v":{"$error":"#N/A"}},{"$f":"IF(INDIRECT(\"c\" & (VLOOKUP(Switch!$D$55,$F$2:$G$44,2,FALSE)+ROW()-2))=Switch!$D$55,INDIRECT(\"a\" & (VLOOKUP(Switch!$D$55,$F$2:$G$44,2,FALSE)+ROW()-2)),\"\")","v":{"$error":"#N/A"}},{"$f":"IF(INDIRECT(\"c\" & (VLOOKUP(Switch!$D$56,$F$2:$G$44,2,FALSE)+ROW()-2))=Switch!$D$56,INDIRECT(\"a\" & (VLOOKUP(Switch!$D$56,$F$2:$G$44,2,FALSE)+ROW()-2)),\"\")","v":{"$error":"#N/A"}},{"$f":"IF(INDIRECT(\"c\" & (VLOOKUP(Switch!$D$57,$F$2:$G$44,2,FALSE)+ROW()-2))=Switch!$D$57,INDIRECT(\"a\" & (VLOOKUP(Switch!$D$57,$F$2:$G$44,2,FALSE)+ROW()-2)),\"\")","v":{"$error":"#N/A"}},{"$f":"IF(INDIRECT(\"c\" & (VLOOKUP(Switch!$D$58,$F$2:$G$44,2,FALSE)+ROW()-2))=Switch!$D$58,INDIRECT(\"a\" & (VLOOKUP(Switch!$D$58,$F$2:$G$44,2,FALSE)+ROW()-2)),\"\")","v":{"$error":"#N/A"}},{"$f":"IF(INDIRECT(\"c\" & (VLOOKUP(Switch!$D$59,$F$2:$G$44,2,FALSE)+ROW()-2))=Switch!$D$59,INDIRECT(\"a\" & (VLOOKUP(Switch!$D$59,$F$2:$G$44,2,FALSE)+ROW()-2)),\"\")","v":{"$error":"#N/A"}},{"$f":"IF(INDIRECT(\"c\" & (VLOOKUP(Switch!$D$60,$F$2:$G$44,2,FALSE)+ROW()-2))=Switch!$D$60,INDIRECT(\"a\" & (VLOOKUP(Switch!$D$60,$F$2:$G$44,2,FALSE)+ROW()-2)),\"\")","v":{"$error":"#N/A"}},{"$f":"IF(INDIRECT(\"c\" & (VLOOKUP(Switch!$D$61,$F$2:$G$44,2,FALSE)+ROW()-2))=Switch!$D$61,INDIRECT(\"a\" & (VLOOKUP(Switch!$D$61,$F$2:$G$44,2,FALSE)+ROW()-2)),\"\")","v":{"$error":"#N/A"}},{"$f":"IF(INDIRECT(\"c\" & (VLOOKUP(Switch!$D$62,$F$2:$G$44,2,FALSE)+ROW()-2))=Switch!$D$62,INDIRECT(\"a\" & (VLOOKUP(Switch!$D$62,$F$2:$G$44,2,FALSE)+ROW()-2)),\"\")","v":{"$error":"#N/A"}},{"$f":"IF(INDIRECT(\"c\" & (VLOOKUP(Switch!$D$63,$F$2:$G$44,2,FALSE)+ROW()-2))=Switch!$D$63,INDIRECT(\"a\" & (VLOOKUP(Switch!$D$63,$F$2:$G$44,2,FALSE)+ROW()-2)),\"\")","v":{"$error":"#N/A"}},{"$f":"IF(INDIRECT(\"c\" & (VLOOKUP(Switch!$D$64,$F$2:$G$44,2,FALSE)+ROW()-2))=Switch!$D$64,INDIRECT(\"a\" & (VLOOKUP(Switch!$D$64,$F$2:$G$44,2,FALSE)+ROW()-2)),\"\")","v":{"$error":"#N/A"}},{"$f":"IF(INDIRECT(\"c\" & (VLOOKUP(Switch!$D$65,$F$2:$G$44,2,FALSE)+ROW()-2))=Switch!$D$65,INDIRECT(\"a\" & (VLOOKUP(Switch!$D$65,$F$2:$G$44,2,FALSE)+ROW()-2)),\"\")","v":{"$error":"#N/A"}},{"$f":"IF(INDIRECT(\"c\" & (VLOOKUP(Switch!$D$66,$F$2:$G$44,2,FALSE)+ROW()-2))=Switch!$D$66,INDIRECT(\"a\" & (VLOOKUP(Switch!$D$66,$F$2:$G$44,2,FALSE)+ROW()-2)),\"\")","v":{"$error":"#N/A"}}]
["Marriott Dividend Growth Fund C","MDGC","Marriott Unit Trust Management Company Ltd",{"$f":"ROW()","v":306},null,null,{"$f":"VLOOKUP(F306,$C$2:$D$637,2,FALSE)","v":{"$error":"#N/A"}},{"$f":"IF(INDIRECT(\"c\" & (VLOOKUP(Switch!$D$26,$F$2:$G$44,2,FALSE)+ROW()-2))=Switch!$D$26,INDIRECT(\"a\" & (VLOOKUP(Switch!$D$26,$F$2:$G$44,2,FALSE)+ROW()-2)),\"\")","v":{"$error":"#N/A"}},{"$f":"IF(INDIRECT(\"c\" & (VLOOKUP(Switch!$D$27,$F$2:$G$44,2,FALSE)+ROW()-2))=Switch!$D$27,INDIRECT(\"a\" & (VLOOKUP(Switch!$D$27,$F$2:$G$44,2,FALSE)+ROW()-2)),\"\")","v":{"$error":"#N/A"}},{"$f":"IF(INDIRECT(\"c\" & (VLOOKUP(Switch!$D$28,$F$2:$G$44,2,FALSE)+ROW()-2))=Switch!$D$28,INDIRECT(\"a\" & (VLOOKUP(Switch!$D$28,$F$2:$G$44,2,FALSE)+ROW()-2)),\"\")","v":{"$error":"#N/A"}},{"$f":"IF(INDIRECT(\"c\" & (VLOOKUP(Switch!$D$29,$F$2:$G$44,2,FALSE)+ROW()-2))=Switch!$D$29,INDIRECT(\"a\" & (VLOOKUP(Switch!$D$29,$F$2:$G$44,2,FALSE)+ROW()-2)),\"\")","v":{"$error":"#N/A"}},{"$f":"IF(INDIRECT(\"c\" & (VLOOKUP(Switch!$D$30,$F$2:$G$44,2,FALSE)+ROW()-2))=Switch!$D$30,INDIRECT(\"a\" & (VLOOKUP(Switch!$D$30,$F$2:$G$44,2,FALSE)+ROW()-2)),\"\")","v":{"$error":"#N/A"}},{"$f":"IF(INDIRECT(\"c\" & (VLOOKUP(Switch!$D$31,$F$2:$G$44,2,FALSE)+ROW()-2))=Switch!$D$31,INDIRECT(\"a\" & (VLOOKUP(Switch!$D$31,$F$2:$G$44,2,FALSE)+ROW()-2)),\"\")","v":{"$error":"#N/A"}},{"$f":"IF(INDIRECT(\"c\" & (VLOOKUP(Switch!$D$32,$F$2:$G$44,2,FALSE)+ROW()-2))=Switch!$D$32,INDIRECT(\"a\" & (VLOOKUP(Switch!$D$32,$F$2:$G$44,2,FALSE)+ROW()-2)),\"\")","v":{"$error":"#N/A"}},{"$f":"IF(INDIRECT(\"c\" & (VLOOKUP(Switch!$D$33,$F$2:$G$44,2,FALSE)+ROW()-2))=Switch!$D$33,INDIRECT(\"a\" & (VLOOKUP(Switch!$D$33,$F$2:$G$44,2,FALSE)+ROW()-2)),\"\")","v":{"$error":"#N/A"}},{"$f":"IF(INDIRECT(\"c\" & (VLOOKUP(Switch!$D$34,$F$2:$G$44,2,FALSE)+ROW()-2))=Switch!$D$34,INDIRECT(\"a\" & (VLOOKUP(Switch!$D$34,$F$2:$G$44,2,FALSE)+ROW()-2)),\"\")","v":{"$error":"#N/A"}},{"$f":"IF(INDIRECT(\"c\" & (VLOOKUP(Switch!$D$35,$F$2:$G$44,2,FALSE)+ROW()-2))=Switch!$D$35,INDIRECT(\"a\" & (VLOOKUP(Switch!$D$35,$F$2:$G$44,2,FALSE)+ROW()-2)),\"\")","v":{"$error":"#N/A"}},{"$f":"IF(INDIRECT(\"c\" & (VLOOKUP(Switch!$D$36,$F$2:$G$44,2,FALSE)+ROW()-2))=Switch!$D$36,INDIRECT(\"a\" & (VLOOKUP(Switch!$D$36,$F$2:$G$44,2,FALSE)+ROW()-2)),\"\")","v":{"$error":"#N/A"}},{"$f":"IF(INDIRECT(\"c\" & (VLOOKUP(Switch!$D$37,$F$2:$G$44,2,FALSE)+ROW()-2))=Switch!$D$37,INDIRECT(\"a\" & (VLOOKUP(Switch!$D$37,$F$2:$G$44,2,FALSE)+ROW()-2)),\"\")","v":{"$error":"#N/A"}},{"$f":"IF(INDIRECT(\"c\" & (VLOOKUP(Switch!$D$38,$F$2:$G$44,2,FALSE)+ROW()-2))=Switch!$D$38,INDIRECT(\"a\" & (VLOOKUP(Switch!$D$38,$F$2:$G$44,2,FALSE)+ROW()-2)),\"\")","v":{"$error":"#N/A"}},{"$f":"IF(INDIRECT(\"c\" & (VLOOKUP(Switch!$D$39,$F$2:$G$44,2,FALSE)+ROW()-2))=Switch!$D$39,INDIRECT(\"a\" & (VLOOKUP(Switch!$D$39,$F$2:$G$44,2,FALSE)+ROW()-2)),\"\")","v":{"$error":"#N/A"}},{"$f":"IF(INDIRECT(\"c\" & (VLOOKUP(Switch!$D$40,$F$2:$G$44,2,FALSE)+ROW()-2))=Switch!$D$40,INDIRECT(\"a\" & (VLOOKUP(Switch!$D$40,$F$2:$G$44,2,FALSE)+ROW()-2)),\"\")","v":{"$error":"#N/A"}},{"$f":"IF(INDIRECT(\"c\" & (VLOOKUP(Switch!$D$52,$F$2:$G$44,2,FALSE)+ROW()-2))=Switch!$D$52,INDIRECT(\"a\" & (VLOOKUP(Switch!$D$52,$F$2:$G$44,2,FALSE)+ROW()-2)),\"\")","v":{"$error":"#N/A"}},{"$f":"IF(INDIRECT(\"c\" & (VLOOKUP(Switch!$D$53,$F$2:$G$44,2,FALSE)+ROW()-2))=Switch!$D$53,INDIRECT(\"a\" & (VLOOKUP(Switch!$D$53,$F$2:$G$44,2,FALSE)+ROW()-2)),\"\")","v":{"$error":"#N/A"}},{"$f":"IF(INDIRECT(\"c\" & (VLOOKUP(Switch!$D$54,$F$2:$G$44,2,FALSE)+ROW()-2))=Switch!$D$54,INDIRECT(\"a\" & (VLOOKUP(Switch!$D$54,$F$2:$G$44,2,FALSE)+ROW()-2)),\"\")","v":{"$error":"#N/A"}},{"$f":"IF(INDIRECT(\"c\" & (VLOOKUP(Switch!$D$55,$F$2:$G$44,2,FALSE)+ROW()-2))=Switch!$D$55,INDIRECT(\"a\" & (VLOOKUP(Switch!$D$55,$F$2:$G$44,2,FALSE)+ROW()-2)),\"\")","v":{"$error":"#N/A"}},{"$f":"IF(INDIRECT(\"c\" & (VLOOKUP(Switch!$D$56,$F$2:$G$44,2,FALSE)+ROW()-2))=Switch!$D$56,INDIRECT(\"a\" & (VLOOKUP(Switch!$D$56,$F$2:$G$44,2,FALSE)+ROW()-2)),\"\")","v":{"$error":"#N/A"}},{"$f":"IF(INDIRECT(\"c\" & (VLOOKUP(Switch!$D$57,$F$2:$G$44,2,FALSE)+ROW()-2))=Switch!$D$57,INDIRECT(\"a\" & (VLOOKUP(Switch!$D$57,$F$2:$G$44,2,FALSE)+ROW()-2)),\"\")","v":{"$error":"#N/A"}},{"$f":"IF(INDIRECT(\"c\" & (VLOOKUP(Switch!$D$58,$F$2:$G$44,2,FALSE)+ROW()-2))=Switch!$D$58,INDIRECT(\"a\" & (VLOOKUP(Switch!$D$58,$F$2:$G$44,2,FALSE)+ROW()-2)),\"\")","v":{"$error":"#N/A"}},{"$f":"IF(INDIRECT(\"c\" & (VLOOKUP(Switch!$D$59,$F$2:$G$44,2,FALSE)+ROW()-2))=Switch!$D$59,INDIRECT(\"a\" & (VLOOKUP(Switch!$D$59,$F$2:$G$44,2,FALSE)+ROW()-2)),\"\")","v":{"$error":"#N/A"}},{"$f":"IF(INDIRECT(\"c\" & (VLOOKUP(Switch!$D$60,$F$2:$G$44,2,FALSE)+ROW()-2))=Switch!$D$60,INDIRECT(\"a\" & (VLOOKUP(Switch!$D$60,$F$2:$G$44,2,FALSE)+ROW()-2)),\"\")","v":{"$error":"#N/A"}},{"$f":"IF(INDIRECT(\"c\" & (VLOOKUP(Switch!$D$61,$F$2:$G$44,2,FALSE)+ROW()-2))=Switch!$D$61,INDIRECT(\"a\" & (VLOOKUP(Switch!$D$61,$F$2:$G$44,2,FALSE)+ROW()-2)),\"\")","v":{"$error":"#N/A"}},{"$f":"IF(INDIRECT(\"c\" & (VLOOKUP(Switch!$D$62,$F$2:$G$44,2,FALSE)+ROW()-2))=Switch!$D$62,INDIRECT(\"a\" & (VLOOKUP(Switch!$D$62,$F$2:$G$44,2,FALSE)+ROW()-2)),\"\")","v":{"$error":"#N/A"}},{"$f":"IF(INDIRECT(\"c\" & (VLOOKUP(Switch!$D$63,$F$2:$G$44,2,FALSE)+ROW()-2))=Switch!$D$63,INDIRECT(\"a\" & (VLOOKUP(Switch!$D$63,$F$2:$G$44,2,FALSE)+ROW()-2)),\"\")","v":{"$error":"#N/A"}},{"$f":"IF(INDIRECT(\"c\" & (VLOOKUP(Switch!$D$64,$F$2:$G$44,2,FALSE)+ROW()-2))=Switch!$D$64,INDIRECT(\"a\" & (VLOOKUP(Switch!$D$64,$F$2:$G$44,2,FALSE)+ROW()-2)),\"\")","v":{"$error":"#N/A"}},{"$f":"IF(INDIRECT(\"c\" & (VLOOKUP(Switch!$D$65,$F$2:$G$44,2,FALSE)+ROW()-2))=Switch!$D$65,INDIRECT(\"a\" & (VLOOKUP(Switch!$D$65,$F$2:$G$44,2,FALSE)+ROW()-2)),\"\")","v":{"$error":"#N/A"}},{"$f":"IF(INDIRECT(\"c\" & (VLOOKUP(Switch!$D$66,$F$2:$G$44,2,FALSE)+ROW()-2))=Switch!$D$66,INDIRECT(\"a\" & (VLOOKUP(Switch!$D$66,$F$2:$G$44,2,FALSE)+ROW()-2)),\"\")","v":{"$error":"#N/A"}}]
["Marriott Essential Income Fund D","MEICD","Marriott Unit Trust Management Company Ltd",{"$f":"ROW()","v":307},null,null,{"$f":"VLOOKUP(F307,$C$2:$D$637,2,FALSE)","v":{"$error":"#N/A"}},{"$f":"IF(INDIRECT(\"c\" & (VLOOKUP(Switch!$D$26,$F$2:$G$44,2,FALSE)+ROW()-2))=Switch!$D$26,INDIRECT(\"a\" & (VLOOKUP(Switch!$D$26,$F$2:$G$44,2,FALSE)+ROW()-2)),\"\")","v":{"$error":"#N/A"}},{"$f":"IF(INDIRECT(\"c\" & (VLOOKUP(Switch!$D$27,$F$2:$G$44,2,FALSE)+ROW()-2))=Switch!$D$27,INDIRECT(\"a\" & (VLOOKUP(Switch!$D$27,$F$2:$G$44,2,FALSE)+ROW()-2)),\"\")","v":{"$error":"#N/A"}},{"$f":"IF(INDIRECT(\"c\" & (VLOOKUP(Switch!$D$28,$F$2:$G$44,2,FALSE)+ROW()-2))=Switch!$D$28,INDIRECT(\"a\" & (VLOOKUP(Switch!$D$28,$F$2:$G$44,2,FALSE)+ROW()-2)),\"\")","v":{"$error":"#N/A"}},{"$f":"IF(INDIRECT(\"c\" & (VLOOKUP(Switch!$D$29,$F$2:$G$44,2,FALSE)+ROW()-2))=Switch!$D$29,INDIRECT(\"a\" & (VLOOKUP(Switch!$D$29,$F$2:$G$44,2,FALSE)+ROW()-2)),\"\")","v":{"$error":"#N/A"}},{"$f":"IF(INDIRECT(\"c\" & (VLOOKUP(Switch!$D$30,$F$2:$G$44,2,FALSE)+ROW()-2))=Switch!$D$30,INDIRECT(\"a\" & (VLOOKUP(Switch!$D$30,$F$2:$G$44,2,FALSE)+ROW()-2)),\"\")","v":{"$error":"#N/A"}},{"$f":"IF(INDIRECT(\"c\" & (VLOOKUP(Switch!$D$31,$F$2:$G$44,2,FALSE)+ROW()-2))=Switch!$D$31,INDIRECT(\"a\" & (VLOOKUP(Switch!$D$31,$F$2:$G$44,2,FALSE)+ROW()-2)),\"\")","v":{"$error":"#N/A"}},{"$f":"IF(INDIRECT(\"c\" & (VLOOKUP(Switch!$D$32,$F$2:$G$44,2,FALSE)+ROW()-2))=Switch!$D$32,INDIRECT(\"a\" & (VLOOKUP(Switch!$D$32,$F$2:$G$44,2,FALSE)+ROW()-2)),\"\")","v":{"$error":"#N/A"}},{"$f":"IF(INDIRECT(\"c\" & (VLOOKUP(Switch!$D$33,$F$2:$G$44,2,FALSE)+ROW()-2))=Switch!$D$33,INDIRECT(\"a\" & (VLOOKUP(Switch!$D$33,$F$2:$G$44,2,FALSE)+ROW()-2)),\"\")","v":{"$error":"#N/A"}},{"$f":"IF(INDIRECT(\"c\" & (VLOOKUP(Switch!$D$34,$F$2:$G$44,2,FALSE)+ROW()-2))=Switch!$D$34,INDIRECT(\"a\" & (VLOOKUP(Switch!$D$34,$F$2:$G$44,2,FALSE)+ROW()-2)),\"\")","v":{"$error":"#N/A"}},{"$f":"IF(INDIRECT(\"c\" & (VLOOKUP(Switch!$D$35,$F$2:$G$44,2,FALSE)+ROW()-2))=Switch!$D$35,INDIRECT(\"a\" & (VLOOKUP(Switch!$D$35,$F$2:$G$44,2,FALSE)+ROW()-2)),\"\")","v":{"$error":"#N/A"}},{"$f":"IF(INDIRECT(\"c\" & (VLOOKUP(Switch!$D$36,$F$2:$G$44,2,FALSE)+ROW()-2))=Switch!$D$36,INDIRECT(\"a\" & (VLOOKUP(Switch!$D$36,$F$2:$G$44,2,FALSE)+ROW()-2)),\"\")","v":{"$error":"#N/A"}},{"$f":"IF(INDIRECT(\"c\" & (VLOOKUP(Switch!$D$37,$F$2:$G$44,2,FALSE)+ROW()-2))=Switch!$D$37,INDIRECT(\"a\" & (VLOOKUP(Switch!$D$37,$F$2:$G$44,2,FALSE)+ROW()-2)),\"\")","v":{"$error":"#N/A"}},{"$f":"IF(INDIRECT(\"c\" & (VLOOKUP(Switch!$D$38,$F$2:$G$44,2,FALSE)+ROW()-2))=Switch!$D$38,INDIRECT(\"a\" & (VLOOKUP(Switch!$D$38,$F$2:$G$44,2,FALSE)+ROW()-2)),\"\")","v":{"$error":"#N/A"}},{"$f":"IF(INDIRECT(\"c\" & (VLOOKUP(Switch!$D$39,$F$2:$G$44,2,FALSE)+ROW()-2))=Switch!$D$39,INDIRECT(\"a\" & (VLOOKUP(Switch!$D$39,$F$2:$G$44,2,FALSE)+ROW()-2)),\"\")","v":{"$error":"#N/A"}},{"$f":"IF(INDIRECT(\"c\" & (VLOOKUP(Switch!$D$40,$F$2:$G$44,2,FALSE)+ROW()-2))=Switch!$D$40,INDIRECT(\"a\" & (VLOOKUP(Switch!$D$40,$F$2:$G$44,2,FALSE)+ROW()-2)),\"\")","v":{"$error":"#N/A"}},{"$f":"IF(INDIRECT(\"c\" & (VLOOKUP(Switch!$D$52,$F$2:$G$44,2,FALSE)+ROW()-2))=Switch!$D$52,INDIRECT(\"a\" & (VLOOKUP(Switch!$D$52,$F$2:$G$44,2,FALSE)+ROW()-2)),\"\")","v":{"$error":"#N/A"}},{"$f":"IF(INDIRECT(\"c\" & (VLOOKUP(Switch!$D$53,$F$2:$G$44,2,FALSE)+ROW()-2))=Switch!$D$53,INDIRECT(\"a\" & (VLOOKUP(Switch!$D$53,$F$2:$G$44,2,FALSE)+ROW()-2)),\"\")","v":{"$error":"#N/A"}},{"$f":"IF(INDIRECT(\"c\" & (VLOOKUP(Switch!$D$54,$F$2:$G$44,2,FALSE)+ROW()-2))=Switch!$D$54,INDIRECT(\"a\" & (VLOOKUP(Switch!$D$54,$F$2:$G$44,2,FALSE)+ROW()-2)),\"\")","v":{"$error":"#N/A"}},{"$f":"IF(INDIRECT(\"c\" & (VLOOKUP(Switch!$D$55,$F$2:$G$44,2,FALSE)+ROW()-2))=Switch!$D$55,INDIRECT(\"a\" & (VLOOKUP(Switch!$D$55,$F$2:$G$44,2,FALSE)+ROW()-2)),\"\")","v":{"$error":"#N/A"}},{"$f":"IF(INDIRECT(\"c\" & (VLOOKUP(Switch!$D$56,$F$2:$G$44,2,FALSE)+ROW()-2))=Switch!$D$56,INDIRECT(\"a\" & (VLOOKUP(Switch!$D$56,$F$2:$G$44,2,FALSE)+ROW()-2)),\"\")","v":{"$error":"#N/A"}},{"$f":"IF(INDIRECT(\"c\" & (VLOOKUP(Switch!$D$57,$F$2:$G$44,2,FALSE)+ROW()-2))=Switch!$D$57,INDIRECT(\"a\" & (VLOOKUP(Switch!$D$57,$F$2:$G$44,2,FALSE)+ROW()-2)),\"\")","v":{"$error":"#N/A"}},{"$f":"IF(INDIRECT(\"c\" & (VLOOKUP(Switch!$D$58,$F$2:$G$44,2,FALSE)+ROW()-2))=Switch!$D$58,INDIRECT(\"a\" & (VLOOKUP(Switch!$D$58,$F$2:$G$44,2,FALSE)+ROW()-2)),\"\")","v":{"$error":"#N/A"}},{"$f":"IF(INDIRECT(\"c\" & (VLOOKUP(Switch!$D$59,$F$2:$G$44,2,FALSE)+ROW()-2))=Switch!$D$59,INDIRECT(\"a\" & (VLOOKUP(Switch!$D$59,$F$2:$G$44,2,FALSE)+ROW()-2)),\"\")","v":{"$error":"#N/A"}},{"$f":"IF(INDIRECT(\"c\" & (VLOOKUP(Switch!$D$60,$F$2:$G$44,2,FALSE)+ROW()-2))=Switch!$D$60,INDIRECT(\"a\" & (VLOOKUP(Switch!$D$60,$F$2:$G$44,2,FALSE)+ROW()-2)),\"\")","v":{"$error":"#N/A"}},{"$f":"IF(INDIRECT(\"c\" & (VLOOKUP(Switch!$D$61,$F$2:$G$44,2,FALSE)+ROW()-2))=Switch!$D$61,INDIRECT(\"a\" & (VLOOKUP(Switch!$D$61,$F$2:$G$44,2,FALSE)+ROW()-2)),\"\")","v":{"$error":"#N/A"}},{"$f":"IF(INDIRECT(\"c\" & (VLOOKUP(Switch!$D$62,$F$2:$G$44,2,FALSE)+ROW()-2))=Switch!$D$62,INDIRECT(\"a\" & (VLOOKUP(Switch!$D$62,$F$2:$G$44,2,FALSE)+ROW()-2)),\"\")","v":{"$error":"#N/A"}},{"$f":"IF(INDIRECT(\"c\" & (VLOOKUP(Switch!$D$63,$F$2:$G$44,2,FALSE)+ROW()-2))=Switch!$D$63,INDIRECT(\"a\" & (VLOOKUP(Switch!$D$63,$F$2:$G$44,2,FALSE)+ROW()-2)),\"\")","v":{"$error":"#N/A"}},{"$f":"IF(INDIRECT(\"c\" & (VLOOKUP(Switch!$D$64,$F$2:$G$44,2,FALSE)+ROW()-2))=Switch!$D$64,INDIRECT(\"a\" & (VLOOKUP(Switch!$D$64,$F$2:$G$44,2,FALSE)+ROW()-2)),\"\")","v":{"$error":"#N/A"}},{"$f":"IF(INDIRECT(\"c\" & (VLOOKUP(Switch!$D$65,$F$2:$G$44,2,FALSE)+ROW()-2))=Switch!$D$65,INDIRECT(\"a\" & (VLOOKUP(Switch!$D$65,$F$2:$G$44,2,FALSE)+ROW()-2)),\"\")","v":{"$error":"#N/A"}},{"$f":"IF(INDIRECT(\"c\" & (VLOOKUP(Switch!$D$66,$F$2:$G$44,2,FALSE)+ROW()-2))=Switch!$D$66,INDIRECT(\"a\" & (VLOOKUP(Switch!$D$66,$F$2:$G$44,2,FALSE)+ROW()-2)),\"\")","v":{"$error":"#N/A"}}]
["Marriott International Growth Feeder Fund Class C","MGGC","Marriott Unit Trust Management Company Ltd",{"$f":"ROW()","v":308},null,null,{"$f":"VLOOKUP(F308,$C$2:$D$637,2,FALSE)","v":{"$error":"#N/A"}},{"$f":"IF(INDIRECT(\"c\" & (VLOOKUP(Switch!$D$26,$F$2:$G$44,2,FALSE)+ROW()-2))=Switch!$D$26,INDIRECT(\"a\" & (VLOOKUP(Switch!$D$26,$F$2:$G$44,2,FALSE)+ROW()-2)),\"\")","v":{"$error":"#N/A"}},{"$f":"IF(INDIRECT(\"c\" & (VLOOKUP(Switch!$D$27,$F$2:$G$44,2,FALSE)+ROW()-2))=Switch!$D$27,INDIRECT(\"a\" & (VLOOKUP(Switch!$D$27,$F$2:$G$44,2,FALSE)+ROW()-2)),\"\")","v":{"$error":"#N/A"}},{"$f":"IF(INDIRECT(\"c\" & (VLOOKUP(Switch!$D$28,$F$2:$G$44,2,FALSE)+ROW()-2))=Switch!$D$28,INDIRECT(\"a\" & (VLOOKUP(Switch!$D$28,$F$2:$G$44,2,FALSE)+ROW()-2)),\"\")","v":{"$error":"#N/A"}},{"$f":"IF(INDIRECT(\"c\" & (VLOOKUP(Switch!$D$29,$F$2:$G$44,2,FALSE)+ROW()-2))=Switch!$D$29,INDIRECT(\"a\" & (VLOOKUP(Switch!$D$29,$F$2:$G$44,2,FALSE)+ROW()-2)),\"\")","v":{"$error":"#N/A"}},{"$f":"IF(INDIRECT(\"c\" & (VLOOKUP(Switch!$D$30,$F$2:$G$44,2,FALSE)+ROW()-2))=Switch!$D$30,INDIRECT(\"a\" & (VLOOKUP(Switch!$D$30,$F$2:$G$44,2,FALSE)+ROW()-2)),\"\")","v":{"$error":"#N/A"}},{"$f":"IF(INDIRECT(\"c\" & (VLOOKUP(Switch!$D$31,$F$2:$G$44,2,FALSE)+ROW()-2))=Switch!$D$31,INDIRECT(\"a\" & (VLOOKUP(Switch!$D$31,$F$2:$G$44,2,FALSE)+ROW()-2)),\"\")","v":{"$error":"#N/A"}},{"$f":"IF(INDIRECT(\"c\" & (VLOOKUP(Switch!$D$32,$F$2:$G$44,2,FALSE)+ROW()-2))=Switch!$D$32,INDIRECT(\"a\" & (VLOOKUP(Switch!$D$32,$F$2:$G$44,2,FALSE)+ROW()-2)),\"\")","v":{"$error":"#N/A"}},{"$f":"IF(INDIRECT(\"c\" & (VLOOKUP(Switch!$D$33,$F$2:$G$44,2,FALSE)+ROW()-2))=Switch!$D$33,INDIRECT(\"a\" & (VLOOKUP(Switch!$D$33,$F$2:$G$44,2,FALSE)+ROW()-2)),\"\")","v":{"$error":"#N/A"}},{"$f":"IF(INDIRECT(\"c\" & (VLOOKUP(Switch!$D$34,$F$2:$G$44,2,FALSE)+ROW()-2))=Switch!$D$34,INDIRECT(\"a\" & (VLOOKUP(Switch!$D$34,$F$2:$G$44,2,FALSE)+ROW()-2)),\"\")","v":{"$error":"#N/A"}},{"$f":"IF(INDIRECT(\"c\" & (VLOOKUP(Switch!$D$35,$F$2:$G$44,2,FALSE)+ROW()-2))=Switch!$D$35,INDIRECT(\"a\" & (VLOOKUP(Switch!$D$35,$F$2:$G$44,2,FALSE)+ROW()-2)),\"\")","v":{"$error":"#N/A"}},{"$f":"IF(INDIRECT(\"c\" & (VLOOKUP(Switch!$D$36,$F$2:$G$44,2,FALSE)+ROW()-2))=Switch!$D$36,INDIRECT(\"a\" & (VLOOKUP(Switch!$D$36,$F$2:$G$44,2,FALSE)+ROW()-2)),\"\")","v":{"$error":"#N/A"}},{"$f":"IF(INDIRECT(\"c\" & (VLOOKUP(Switch!$D$37,$F$2:$G$44,2,FALSE)+ROW()-2))=Switch!$D$37,INDIRECT(\"a\" & (VLOOKUP(Switch!$D$37,$F$2:$G$44,2,FALSE)+ROW()-2)),\"\")","v":{"$error":"#N/A"}},{"$f":"IF(INDIRECT(\"c\" & (VLOOKUP(Switch!$D$38,$F$2:$G$44,2,FALSE)+ROW()-2))=Switch!$D$38,INDIRECT(\"a\" & (VLOOKUP(Switch!$D$38,$F$2:$G$44,2,FALSE)+ROW()-2)),\"\")","v":{"$error":"#N/A"}},{"$f":"IF(INDIRECT(\"c\" & (VLOOKUP(Switch!$D$39,$F$2:$G$44,2,FALSE)+ROW()-2))=Switch!$D$39,INDIRECT(\"a\" & (VLOOKUP(Switch!$D$39,$F$2:$G$44,2,FALSE)+ROW()-2)),\"\")","v":{"$error":"#N/A"}},{"$f":"IF(INDIRECT(\"c\" & (VLOOKUP(Switch!$D$40,$F$2:$G$44,2,FALSE)+ROW()-2))=Switch!$D$40,INDIRECT(\"a\" & (VLOOKUP(Switch!$D$40,$F$2:$G$44,2,FALSE)+ROW()-2)),\"\")","v":{"$error":"#N/A"}},{"$f":"IF(INDIRECT(\"c\" & (VLOOKUP(Switch!$D$52,$F$2:$G$44,2,FALSE)+ROW()-2))=Switch!$D$52,INDIRECT(\"a\" & (VLOOKUP(Switch!$D$52,$F$2:$G$44,2,FALSE)+ROW()-2)),\"\")","v":{"$error":"#N/A"}},{"$f":"IF(INDIRECT(\"c\" & (VLOOKUP(Switch!$D$53,$F$2:$G$44,2,FALSE)+ROW()-2))=Switch!$D$53,INDIRECT(\"a\" & (VLOOKUP(Switch!$D$53,$F$2:$G$44,2,FALSE)+ROW()-2)),\"\")","v":{"$error":"#N/A"}},{"$f":"IF(INDIRECT(\"c\" & (VLOOKUP(Switch!$D$54,$F$2:$G$44,2,FALSE)+ROW()-2))=Switch!$D$54,INDIRECT(\"a\" & (VLOOKUP(Switch!$D$54,$F$2:$G$44,2,FALSE)+ROW()-2)),\"\")","v":{"$error":"#N/A"}},{"$f":"IF(INDIRECT(\"c\" & (VLOOKUP(Switch!$D$55,$F$2:$G$44,2,FALSE)+ROW()-2))=Switch!$D$55,INDIRECT(\"a\" & (VLOOKUP(Switch!$D$55,$F$2:$G$44,2,FALSE)+ROW()-2)),\"\")","v":{"$error":"#N/A"}},{"$f":"IF(INDIRECT(\"c\" & (VLOOKUP(Switch!$D$56,$F$2:$G$44,2,FALSE)+ROW()-2))=Switch!$D$56,INDIRECT(\"a\" & (VLOOKUP(Switch!$D$56,$F$2:$G$44,2,FALSE)+ROW()-2)),\"\")","v":{"$error":"#N/A"}},{"$f":"IF(INDIRECT(\"c\" & (VLOOKUP(Switch!$D$57,$F$2:$G$44,2,FALSE)+ROW()-2))=Switch!$D$57,INDIRECT(\"a\" & (VLOOKUP(Switch!$D$57,$F$2:$G$44,2,FALSE)+ROW()-2)),\"\")","v":{"$error":"#N/A"}},{"$f":"IF(INDIRECT(\"c\" & (VLOOKUP(Switch!$D$58,$F$2:$G$44,2,FALSE)+ROW()-2))=Switch!$D$58,INDIRECT(\"a\" & (VLOOKUP(Switch!$D$58,$F$2:$G$44,2,FALSE)+ROW()-2)),\"\")","v":{"$error":"#N/A"}},{"$f":"IF(INDIRECT(\"c\" & (VLOOKUP(Switch!$D$59,$F$2:$G$44,2,FALSE)+ROW()-2))=Switch!$D$59,INDIRECT(\"a\" & (VLOOKUP(Switch!$D$59,$F$2:$G$44,2,FALSE)+ROW()-2)),\"\")","v":{"$error":"#N/A"}},{"$f":"IF(INDIRECT(\"c\" & (VLOOKUP(Switch!$D$60,$F$2:$G$44,2,FALSE)+ROW()-2))=Switch!$D$60,INDIRECT(\"a\" & (VLOOKUP(Switch!$D$60,$F$2:$G$44,2,FALSE)+ROW()-2)),\"\")","v":{"$error":"#N/A"}},{"$f":"IF(INDIRECT(\"c\" & (VLOOKUP(Switch!$D$61,$F$2:$G$44,2,FALSE)+ROW()-2))=Switch!$D$61,INDIRECT(\"a\" & (VLOOKUP(Switch!$D$61,$F$2:$G$44,2,FALSE)+ROW()-2)),\"\")","v":{"$error":"#N/A"}},{"$f":"IF(INDIRECT(\"c\" & (VLOOKUP(Switch!$D$62,$F$2:$G$44,2,FALSE)+ROW()-2))=Switch!$D$62,INDIRECT(\"a\" & (VLOOKUP(Switch!$D$62,$F$2:$G$44,2,FALSE)+ROW()-2)),\"\")","v":{"$error":"#N/A"}},{"$f":"IF(INDIRECT(\"c\" & (VLOOKUP(Switch!$D$63,$F$2:$G$44,2,FALSE)+ROW()-2))=Switch!$D$63,INDIRECT(\"a\" & (VLOOKUP(Switch!$D$63,$F$2:$G$44,2,FALSE)+ROW()-2)),\"\")","v":{"$error":"#N/A"}},{"$f":"IF(INDIRECT(\"c\" & (VLOOKUP(Switch!$D$64,$F$2:$G$44,2,FALSE)+ROW()-2))=Switch!$D$64,INDIRECT(\"a\" & (VLOOKUP(Switch!$D$64,$F$2:$G$44,2,FALSE)+ROW()-2)),\"\")","v":{"$error":"#N/A"}},{"$f":"IF(INDIRECT(\"c\" & (VLOOKUP(Switch!$D$65,$F$2:$G$44,2,FALSE)+ROW()-2))=Switch!$D$65,INDIRECT(\"a\" & (VLOOKUP(Switch!$D$65,$F$2:$G$44,2,FALSE)+ROW()-2)),\"\")","v":{"$error":"#N/A"}},{"$f":"IF(INDIRECT(\"c\" & (VLOOKUP(Switch!$D$66,$F$2:$G$44,2,FALSE)+ROW()-2))=Switch!$D$66,INDIRECT(\"a\" & (VLOOKUP(Switch!$D$66,$F$2:$G$44,2,FALSE)+ROW()-2)),\"\")","v":{"$error":"#N/A"}}]
["Marriott Income Fund","HLMI","Marriott Unit Trust Management Company Ltd",{"$f":"ROW()","v":309},null,null,{"$f":"VLOOKUP(F309,$C$2:$D$637,2,FALSE)","v":{"$error":"#N/A"}},{"$f":"IF(INDIRECT(\"c\" & (VLOOKUP(Switch!$D$26,$F$2:$G$44,2,FALSE)+ROW()-2))=Switch!$D$26,INDIRECT(\"a\" & (VLOOKUP(Switch!$D$26,$F$2:$G$44,2,FALSE)+ROW()-2)),\"\")","v":{"$error":"#N/A"}},{"$f":"IF(INDIRECT(\"c\" & (VLOOKUP(Switch!$D$27,$F$2:$G$44,2,FALSE)+ROW()-2))=Switch!$D$27,INDIRECT(\"a\" & (VLOOKUP(Switch!$D$27,$F$2:$G$44,2,FALSE)+ROW()-2)),\"\")","v":{"$error":"#N/A"}},{"$f":"IF(INDIRECT(\"c\" & (VLOOKUP(Switch!$D$28,$F$2:$G$44,2,FALSE)+ROW()-2))=Switch!$D$28,INDIRECT(\"a\" & (VLOOKUP(Switch!$D$28,$F$2:$G$44,2,FALSE)+ROW()-2)),\"\")","v":{"$error":"#N/A"}},{"$f":"IF(INDIRECT(\"c\" & (VLOOKUP(Switch!$D$29,$F$2:$G$44,2,FALSE)+ROW()-2))=Switch!$D$29,INDIRECT(\"a\" & (VLOOKUP(Switch!$D$29,$F$2:$G$44,2,FALSE)+ROW()-2)),\"\")","v":{"$error":"#N/A"}},{"$f":"IF(INDIRECT(\"c\" & (VLOOKUP(Switch!$D$30,$F$2:$G$44,2,FALSE)+ROW()-2))=Switch!$D$30,INDIRECT(\"a\" & (VLOOKUP(Switch!$D$30,$F$2:$G$44,2,FALSE)+ROW()-2)),\"\")","v":{"$error":"#N/A"}},{"$f":"IF(INDIRECT(\"c\" & (VLOOKUP(Switch!$D$31,$F$2:$G$44,2,FALSE)+ROW()-2))=Switch!$D$31,INDIRECT(\"a\" & (VLOOKUP(Switch!$D$31,$F$2:$G$44,2,FALSE)+ROW()-2)),\"\")","v":{"$error":"#N/A"}},{"$f":"IF(INDIRECT(\"c\" & (VLOOKUP(Switch!$D$32,$F$2:$G$44,2,FALSE)+ROW()-2))=Switch!$D$32,INDIRECT(\"a\" & (VLOOKUP(Switch!$D$32,$F$2:$G$44,2,FALSE)+ROW()-2)),\"\")","v":{"$error":"#N/A"}},{"$f":"IF(INDIRECT(\"c\" & (VLOOKUP(Switch!$D$33,$F$2:$G$44,2,FALSE)+ROW()-2))=Switch!$D$33,INDIRECT(\"a\" & (VLOOKUP(Switch!$D$33,$F$2:$G$44,2,FALSE)+ROW()-2)),\"\")","v":{"$error":"#N/A"}},{"$f":"IF(INDIRECT(\"c\" & (VLOOKUP(Switch!$D$34,$F$2:$G$44,2,FALSE)+ROW()-2))=Switch!$D$34,INDIRECT(\"a\" & (VLOOKUP(Switch!$D$34,$F$2:$G$44,2,FALSE)+ROW()-2)),\"\")","v":{"$error":"#N/A"}},{"$f":"IF(INDIRECT(\"c\" & (VLOOKUP(Switch!$D$35,$F$2:$G$44,2,FALSE)+ROW()-2))=Switch!$D$35,INDIRECT(\"a\" & (VLOOKUP(Switch!$D$35,$F$2:$G$44,2,FALSE)+ROW()-2)),\"\")","v":{"$error":"#N/A"}},{"$f":"IF(INDIRECT(\"c\" & (VLOOKUP(Switch!$D$36,$F$2:$G$44,2,FALSE)+ROW()-2))=Switch!$D$36,INDIRECT(\"a\" & (VLOOKUP(Switch!$D$36,$F$2:$G$44,2,FALSE)+ROW()-2)),\"\")","v":{"$error":"#N/A"}},{"$f":"IF(INDIRECT(\"c\" & (VLOOKUP(Switch!$D$37,$F$2:$G$44,2,FALSE)+ROW()-2))=Switch!$D$37,INDIRECT(\"a\" & (VLOOKUP(Switch!$D$37,$F$2:$G$44,2,FALSE)+ROW()-2)),\"\")","v":{"$error":"#N/A"}},{"$f":"IF(INDIRECT(\"c\" & (VLOOKUP(Switch!$D$38,$F$2:$G$44,2,FALSE)+ROW()-2))=Switch!$D$38,INDIRECT(\"a\" & (VLOOKUP(Switch!$D$38,$F$2:$G$44,2,FALSE)+ROW()-2)),\"\")","v":{"$error":"#N/A"}},{"$f":"IF(INDIRECT(\"c\" & (VLOOKUP(Switch!$D$39,$F$2:$G$44,2,FALSE)+ROW()-2))=Switch!$D$39,INDIRECT(\"a\" & (VLOOKUP(Switch!$D$39,$F$2:$G$44,2,FALSE)+ROW()-2)),\"\")","v":{"$error":"#N/A"}},{"$f":"IF(INDIRECT(\"c\" & (VLOOKUP(Switch!$D$40,$F$2:$G$44,2,FALSE)+ROW()-2))=Switch!$D$40,INDIRECT(\"a\" & (VLOOKUP(Switch!$D$40,$F$2:$G$44,2,FALSE)+ROW()-2)),\"\")","v":{"$error":"#N/A"}},{"$f":"IF(INDIRECT(\"c\" & (VLOOKUP(Switch!$D$52,$F$2:$G$44,2,FALSE)+ROW()-2))=Switch!$D$52,INDIRECT(\"a\" & (VLOOKUP(Switch!$D$52,$F$2:$G$44,2,FALSE)+ROW()-2)),\"\")","v":{"$error":"#N/A"}},{"$f":"IF(INDIRECT(\"c\" & (VLOOKUP(Switch!$D$53,$F$2:$G$44,2,FALSE)+ROW()-2))=Switch!$D$53,INDIRECT(\"a\" & (VLOOKUP(Switch!$D$53,$F$2:$G$44,2,FALSE)+ROW()-2)),\"\")","v":{"$error":"#N/A"}},{"$f":"IF(INDIRECT(\"c\" & (VLOOKUP(Switch!$D$54,$F$2:$G$44,2,FALSE)+ROW()-2))=Switch!$D$54,INDIRECT(\"a\" & (VLOOKUP(Switch!$D$54,$F$2:$G$44,2,FALSE)+ROW()-2)),\"\")","v":{"$error":"#N/A"}},{"$f":"IF(INDIRECT(\"c\" & (VLOOKUP(Switch!$D$55,$F$2:$G$44,2,FALSE)+ROW()-2))=Switch!$D$55,INDIRECT(\"a\" & (VLOOKUP(Switch!$D$55,$F$2:$G$44,2,FALSE)+ROW()-2)),\"\")","v":{"$error":"#N/A"}},{"$f":"IF(INDIRECT(\"c\" & (VLOOKUP(Switch!$D$56,$F$2:$G$44,2,FALSE)+ROW()-2))=Switch!$D$56,INDIRECT(\"a\" & (VLOOKUP(Switch!$D$56,$F$2:$G$44,2,FALSE)+ROW()-2)),\"\")","v":{"$error":"#N/A"}},{"$f":"IF(INDIRECT(\"c\" & (VLOOKUP(Switch!$D$57,$F$2:$G$44,2,FALSE)+ROW()-2))=Switch!$D$57,INDIRECT(\"a\" & (VLOOKUP(Switch!$D$57,$F$2:$G$44,2,FALSE)+ROW()-2)),\"\")","v":{"$error":"#N/A"}},{"$f":"IF(INDIRECT(\"c\" & (VLOOKUP(Switch!$D$58,$F$2:$G$44,2,FALSE)+ROW()-2))=Switch!$D$58,INDIRECT(\"a\" & (VLOOKUP(Switch!$D$58,$F$2:$G$44,2,FALSE)+ROW()-2)),\"\")","v":{"$error":"#N/A"}},{"$f":"IF(INDIRECT(\"c\" & (VLOOKUP(Switch!$D$59,$F$2:$G$44,2,FALSE)+ROW()-2))=Switch!$D$59,INDIRECT(\"a\" & (VLOOKUP(Switch!$D$59,$F$2:$G$44,2,FALSE)+ROW()-2)),\"\")","v":{"$error":"#N/A"}},{"$f":"IF(INDIRECT(\"c\" & (VLOOKUP(Switch!$D$60,$F$2:$G$44,2,FALSE)+ROW()-2))=Switch!$D$60,INDIRECT(\"a\" & (VLOOKUP(Switch!$D$60,$F$2:$G$44,2,FALSE)+ROW()-2)),\"\")","v":{"$error":"#N/A"}},{"$f":"IF(INDIRECT(\"c\" & (VLOOKUP(Switch!$D$61,$F$2:$G$44,2,FALSE)+ROW()-2))=Switch!$D$61,INDIRECT(\"a\" & (VLOOKUP(Switch!$D$61,$F$2:$G$44,2,FALSE)+ROW()-2)),\"\")","v":{"$error":"#N/A"}},{"$f":"IF(INDIRECT(\"c\" & (VLOOKUP(Switch!$D$62,$F$2:$G$44,2,FALSE)+ROW()-2))=Switch!$D$62,INDIRECT(\"a\" & (VLOOKUP(Switch!$D$62,$F$2:$G$44,2,FALSE)+ROW()-2)),\"\")","v":{"$error":"#N/A"}},{"$f":"IF(INDIRECT(\"c\" & (VLOOKUP(Switch!$D$63,$F$2:$G$44,2,FALSE)+ROW()-2))=Switch!$D$63,INDIRECT(\"a\" & (VLOOKUP(Switch!$D$63,$F$2:$G$44,2,FALSE)+ROW()-2)),\"\")","v":{"$error":"#N/A"}},{"$f":"IF(INDIRECT(\"c\" & (VLOOKUP(Switch!$D$64,$F$2:$G$44,2,FALSE)+ROW()-2))=Switch!$D$64,INDIRECT(\"a\" & (VLOOKUP(Switch!$D$64,$F$2:$G$44,2,FALSE)+ROW()-2)),\"\")","v":{"$error":"#N/A"}},{"$f":"IF(INDIRECT(\"c\" & (VLOOKUP(Switch!$D$65,$F$2:$G$44,2,FALSE)+ROW()-2))=Switch!$D$65,INDIRECT(\"a\" & (VLOOKUP(Switch!$D$65,$F$2:$G$44,2,FALSE)+ROW()-2)),\"\")","v":{"$error":"#N/A"}},{"$f":"IF(INDIRECT(\"c\" & (VLOOKUP(Switch!$D$66,$F$2:$G$44,2,FALSE)+ROW()-2))=Switch!$D$66,INDIRECT(\"a\" & (VLOOKUP(Switch!$D$66,$F$2:$G$44,2,FALSE)+ROW()-2)),\"\")","v":{"$error":"#N/A"}}]
["Marriott International Real Estate Feeder Fund","MGRE","Marriott Unit Trust Management Company Ltd",{"$f":"ROW()","v":310},null,null,{"$f":"VLOOKUP(F310,$C$2:$D$637,2,FALSE)","v":{"$error":"#N/A"}},{"$f":"IF(INDIRECT(\"c\" & (VLOOKUP(Switch!$D$26,$F$2:$G$44,2,FALSE)+ROW()-2))=Switch!$D$26,INDIRECT(\"a\" & (VLOOKUP(Switch!$D$26,$F$2:$G$44,2,FALSE)+ROW()-2)),\"\")","v":{"$error":"#N/A"}},{"$f":"IF(INDIRECT(\"c\" & (VLOOKUP(Switch!$D$27,$F$2:$G$44,2,FALSE)+ROW()-2))=Switch!$D$27,INDIRECT(\"a\" & (VLOOKUP(Switch!$D$27,$F$2:$G$44,2,FALSE)+ROW()-2)),\"\")","v":{"$error":"#N/A"}},{"$f":"IF(INDIRECT(\"c\" & (VLOOKUP(Switch!$D$28,$F$2:$G$44,2,FALSE)+ROW()-2))=Switch!$D$28,INDIRECT(\"a\" & (VLOOKUP(Switch!$D$28,$F$2:$G$44,2,FALSE)+ROW()-2)),\"\")","v":{"$error":"#N/A"}},{"$f":"IF(INDIRECT(\"c\" & (VLOOKUP(Switch!$D$29,$F$2:$G$44,2,FALSE)+ROW()-2))=Switch!$D$29,INDIRECT(\"a\" & (VLOOKUP(Switch!$D$29,$F$2:$G$44,2,FALSE)+ROW()-2)),\"\")","v":{"$error":"#N/A"}},{"$f":"IF(INDIRECT(\"c\" & (VLOOKUP(Switch!$D$30,$F$2:$G$44,2,FALSE)+ROW()-2))=Switch!$D$30,INDIRECT(\"a\" & (VLOOKUP(Switch!$D$30,$F$2:$G$44,2,FALSE)+ROW()-2)),\"\")","v":{"$error":"#N/A"}},{"$f":"IF(INDIRECT(\"c\" & (VLOOKUP(Switch!$D$31,$F$2:$G$44,2,FALSE)+ROW()-2))=Switch!$D$31,INDIRECT(\"a\" & (VLOOKUP(Switch!$D$31,$F$2:$G$44,2,FALSE)+ROW()-2)),\"\")","v":{"$error":"#N/A"}},{"$f":"IF(INDIRECT(\"c\" & (VLOOKUP(Switch!$D$32,$F$2:$G$44,2,FALSE)+ROW()-2))=Switch!$D$32,INDIRECT(\"a\" & (VLOOKUP(Switch!$D$32,$F$2:$G$44,2,FALSE)+ROW()-2)),\"\")","v":{"$error":"#N/A"}},{"$f":"IF(INDIRECT(\"c\" & (VLOOKUP(Switch!$D$33,$F$2:$G$44,2,FALSE)+ROW()-2))=Switch!$D$33,INDIRECT(\"a\" & (VLOOKUP(Switch!$D$33,$F$2:$G$44,2,FALSE)+ROW()-2)),\"\")","v":{"$error":"#N/A"}},{"$f":"IF(INDIRECT(\"c\" & (VLOOKUP(Switch!$D$34,$F$2:$G$44,2,FALSE)+ROW()-2))=Switch!$D$34,INDIRECT(\"a\" & (VLOOKUP(Switch!$D$34,$F$2:$G$44,2,FALSE)+ROW()-2)),\"\")","v":{"$error":"#N/A"}},{"$f":"IF(INDIRECT(\"c\" & (VLOOKUP(Switch!$D$35,$F$2:$G$44,2,FALSE)+ROW()-2))=Switch!$D$35,INDIRECT(\"a\" & (VLOOKUP(Switch!$D$35,$F$2:$G$44,2,FALSE)+ROW()-2)),\"\")","v":{"$error":"#N/A"}},{"$f":"IF(INDIRECT(\"c\" & (VLOOKUP(Switch!$D$36,$F$2:$G$44,2,FALSE)+ROW()-2))=Switch!$D$36,INDIRECT(\"a\" & (VLOOKUP(Switch!$D$36,$F$2:$G$44,2,FALSE)+ROW()-2)),\"\")","v":{"$error":"#N/A"}},{"$f":"IF(INDIRECT(\"c\" & (VLOOKUP(Switch!$D$37,$F$2:$G$44,2,FALSE)+ROW()-2))=Switch!$D$37,INDIRECT(\"a\" & (VLOOKUP(Switch!$D$37,$F$2:$G$44,2,FALSE)+ROW()-2)),\"\")","v":{"$error":"#N/A"}},{"$f":"IF(INDIRECT(\"c\" & (VLOOKUP(Switch!$D$38,$F$2:$G$44,2,FALSE)+ROW()-2))=Switch!$D$38,INDIRECT(\"a\" & (VLOOKUP(Switch!$D$38,$F$2:$G$44,2,FALSE)+ROW()-2)),\"\")","v":{"$error":"#N/A"}},{"$f":"IF(INDIRECT(\"c\" & (VLOOKUP(Switch!$D$39,$F$2:$G$44,2,FALSE)+ROW()-2))=Switch!$D$39,INDIRECT(\"a\" & (VLOOKUP(Switch!$D$39,$F$2:$G$44,2,FALSE)+ROW()-2)),\"\")","v":{"$error":"#N/A"}},{"$f":"IF(INDIRECT(\"c\" & (VLOOKUP(Switch!$D$40,$F$2:$G$44,2,FALSE)+ROW()-2))=Switch!$D$40,INDIRECT(\"a\" & (VLOOKUP(Switch!$D$40,$F$2:$G$44,2,FALSE)+ROW()-2)),\"\")","v":{"$error":"#N/A"}},{"$f":"IF(INDIRECT(\"c\" & (VLOOKUP(Switch!$D$52,$F$2:$G$44,2,FALSE)+ROW()-2))=Switch!$D$52,INDIRECT(\"a\" & (VLOOKUP(Switch!$D$52,$F$2:$G$44,2,FALSE)+ROW()-2)),\"\")","v":{"$error":"#N/A"}},{"$f":"IF(INDIRECT(\"c\" & (VLOOKUP(Switch!$D$53,$F$2:$G$44,2,FALSE)+ROW()-2))=Switch!$D$53,INDIRECT(\"a\" & (VLOOKUP(Switch!$D$53,$F$2:$G$44,2,FALSE)+ROW()-2)),\"\")","v":{"$error":"#N/A"}},{"$f":"IF(INDIRECT(\"c\" & (VLOOKUP(Switch!$D$54,$F$2:$G$44,2,FALSE)+ROW()-2))=Switch!$D$54,INDIRECT(\"a\" & (VLOOKUP(Switch!$D$54,$F$2:$G$44,2,FALSE)+ROW()-2)),\"\")","v":{"$error":"#N/A"}},{"$f":"IF(INDIRECT(\"c\" & (VLOOKUP(Switch!$D$55,$F$2:$G$44,2,FALSE)+ROW()-2))=Switch!$D$55,INDIRECT(\"a\" & (VLOOKUP(Switch!$D$55,$F$2:$G$44,2,FALSE)+ROW()-2)),\"\")","v":{"$error":"#N/A"}},{"$f":"IF(INDIRECT(\"c\" & (VLOOKUP(Switch!$D$56,$F$2:$G$44,2,FALSE)+ROW()-2))=Switch!$D$56,INDIRECT(\"a\" & (VLOOKUP(Switch!$D$56,$F$2:$G$44,2,FALSE)+ROW()-2)),\"\")","v":{"$error":"#N/A"}},{"$f":"IF(INDIRECT(\"c\" & (VLOOKUP(Switch!$D$57,$F$2:$G$44,2,FALSE)+ROW()-2))=Switch!$D$57,INDIRECT(\"a\" & (VLOOKUP(Switch!$D$57,$F$2:$G$44,2,FALSE)+ROW()-2)),\"\")","v":{"$error":"#N/A"}},{"$f":"IF(INDIRECT(\"c\" & (VLOOKUP(Switch!$D$58,$F$2:$G$44,2,FALSE)+ROW()-2))=Switch!$D$58,INDIRECT(\"a\" & (VLOOKUP(Switch!$D$58,$F$2:$G$44,2,FALSE)+ROW()-2)),\"\")","v":{"$error":"#N/A"}},{"$f":"IF(INDIRECT(\"c\" & (VLOOKUP(Switch!$D$59,$F$2:$G$44,2,FALSE)+ROW()-2))=Switch!$D$59,INDIRECT(\"a\" & (VLOOKUP(Switch!$D$59,$F$2:$G$44,2,FALSE)+ROW()-2)),\"\")","v":{"$error":"#N/A"}},{"$f":"IF(INDIRECT(\"c\" & (VLOOKUP(Switch!$D$60,$F$2:$G$44,2,FALSE)+ROW()-2))=Switch!$D$60,INDIRECT(\"a\" & (VLOOKUP(Switch!$D$60,$F$2:$G$44,2,FALSE)+ROW()-2)),\"\")","v":{"$error":"#N/A"}},{"$f":"IF(INDIRECT(\"c\" & (VLOOKUP(Switch!$D$61,$F$2:$G$44,2,FALSE)+ROW()-2))=Switch!$D$61,INDIRECT(\"a\" & (VLOOKUP(Switch!$D$61,$F$2:$G$44,2,FALSE)+ROW()-2)),\"\")","v":{"$error":"#N/A"}},{"$f":"IF(INDIRECT(\"c\" & (VLOOKUP(Switch!$D$62,$F$2:$G$44,2,FALSE)+ROW()-2))=Switch!$D$62,INDIRECT(\"a\" & (VLOOKUP(Switch!$D$62,$F$2:$G$44,2,FALSE)+ROW()-2)),\"\")","v":{"$error":"#N/A"}},{"$f":"IF(INDIRECT(\"c\" & (VLOOKUP(Switch!$D$63,$F$2:$G$44,2,FALSE)+ROW()-2))=Switch!$D$63,INDIRECT(\"a\" & (VLOOKUP(Switch!$D$63,$F$2:$G$44,2,FALSE)+ROW()-2)),\"\")","v":{"$error":"#N/A"}},{"$f":"IF(INDIRECT(\"c\" & (VLOOKUP(Switch!$D$64,$F$2:$G$44,2,FALSE)+ROW()-2))=Switch!$D$64,INDIRECT(\"a\" & (VLOOKUP(Switch!$D$64,$F$2:$G$44,2,FALSE)+ROW()-2)),\"\")","v":{"$error":"#N/A"}},{"$f":"IF(INDIRECT(\"c\" & (VLOOKUP(Switch!$D$65,$F$2:$G$44,2,FALSE)+ROW()-2))=Switch!$D$65,INDIRECT(\"a\" & (VLOOKUP(Switch!$D$65,$F$2:$G$44,2,FALSE)+ROW()-2)),\"\")","v":{"$error":"#N/A"}},{"$f":"IF(INDIRECT(\"c\" & (VLOOKUP(Switch!$D$66,$F$2:$G$44,2,FALSE)+ROW()-2))=Switch!$D$66,INDIRECT(\"a\" & (VLOOKUP(Switch!$D$66,$F$2:$G$44,2,FALSE)+ROW()-2)),\"\")","v":{"$error":"#N/A"}}]
["Marriott Property Equity Fund Class C","MPED","Marriott Unit Trust Management Company Ltd",{"$f":"ROW()","v":311},null,null,{"$f":"VLOOKUP(F311,$C$2:$D$637,2,FALSE)","v":{"$error":"#N/A"}},{"$f":"IF(INDIRECT(\"c\" & (VLOOKUP(Switch!$D$26,$F$2:$G$44,2,FALSE)+ROW()-2))=Switch!$D$26,INDIRECT(\"a\" & (VLOOKUP(Switch!$D$26,$F$2:$G$44,2,FALSE)+ROW()-2)),\"\")","v":{"$error":"#N/A"}},{"$f":"IF(INDIRECT(\"c\" & (VLOOKUP(Switch!$D$27,$F$2:$G$44,2,FALSE)+ROW()-2))=Switch!$D$27,INDIRECT(\"a\" & (VLOOKUP(Switch!$D$27,$F$2:$G$44,2,FALSE)+ROW()-2)),\"\")","v":{"$error":"#N/A"}},{"$f":"IF(INDIRECT(\"c\" & (VLOOKUP(Switch!$D$28,$F$2:$G$44,2,FALSE)+ROW()-2))=Switch!$D$28,INDIRECT(\"a\" & (VLOOKUP(Switch!$D$28,$F$2:$G$44,2,FALSE)+ROW()-2)),\"\")","v":{"$error":"#N/A"}},{"$f":"IF(INDIRECT(\"c\" & (VLOOKUP(Switch!$D$29,$F$2:$G$44,2,FALSE)+ROW()-2))=Switch!$D$29,INDIRECT(\"a\" & (VLOOKUP(Switch!$D$29,$F$2:$G$44,2,FALSE)+ROW()-2)),\"\")","v":{"$error":"#N/A"}},{"$f":"IF(INDIRECT(\"c\" & (VLOOKUP(Switch!$D$30,$F$2:$G$44,2,FALSE)+ROW()-2))=Switch!$D$30,INDIRECT(\"a\" & (VLOOKUP(Switch!$D$30,$F$2:$G$44,2,FALSE)+ROW()-2)),\"\")","v":{"$error":"#N/A"}},{"$f":"IF(INDIRECT(\"c\" & (VLOOKUP(Switch!$D$31,$F$2:$G$44,2,FALSE)+ROW()-2))=Switch!$D$31,INDIRECT(\"a\" & (VLOOKUP(Switch!$D$31,$F$2:$G$44,2,FALSE)+ROW()-2)),\"\")","v":{"$error":"#N/A"}},{"$f":"IF(INDIRECT(\"c\" & (VLOOKUP(Switch!$D$32,$F$2:$G$44,2,FALSE)+ROW()-2))=Switch!$D$32,INDIRECT(\"a\" & (VLOOKUP(Switch!$D$32,$F$2:$G$44,2,FALSE)+ROW()-2)),\"\")","v":{"$error":"#N/A"}},{"$f":"IF(INDIRECT(\"c\" & (VLOOKUP(Switch!$D$33,$F$2:$G$44,2,FALSE)+ROW()-2))=Switch!$D$33,INDIRECT(\"a\" & (VLOOKUP(Switch!$D$33,$F$2:$G$44,2,FALSE)+ROW()-2)),\"\")","v":{"$error":"#N/A"}},{"$f":"IF(INDIRECT(\"c\" & (VLOOKUP(Switch!$D$34,$F$2:$G$44,2,FALSE)+ROW()-2))=Switch!$D$34,INDIRECT(\"a\" & (VLOOKUP(Switch!$D$34,$F$2:$G$44,2,FALSE)+ROW()-2)),\"\")","v":{"$error":"#N/A"}},{"$f":"IF(INDIRECT(\"c\" & (VLOOKUP(Switch!$D$35,$F$2:$G$44,2,FALSE)+ROW()-2))=Switch!$D$35,INDIRECT(\"a\" & (VLOOKUP(Switch!$D$35,$F$2:$G$44,2,FALSE)+ROW()-2)),\"\")","v":{"$error":"#N/A"}},{"$f":"IF(INDIRECT(\"c\" & (VLOOKUP(Switch!$D$36,$F$2:$G$44,2,FALSE)+ROW()-2))=Switch!$D$36,INDIRECT(\"a\" & (VLOOKUP(Switch!$D$36,$F$2:$G$44,2,FALSE)+ROW()-2)),\"\")","v":{"$error":"#N/A"}},{"$f":"IF(INDIRECT(\"c\" & (VLOOKUP(Switch!$D$37,$F$2:$G$44,2,FALSE)+ROW()-2))=Switch!$D$37,INDIRECT(\"a\" & (VLOOKUP(Switch!$D$37,$F$2:$G$44,2,FALSE)+ROW()-2)),\"\")","v":{"$error":"#N/A"}},{"$f":"IF(INDIRECT(\"c\" & (VLOOKUP(Switch!$D$38,$F$2:$G$44,2,FALSE)+ROW()-2))=Switch!$D$38,INDIRECT(\"a\" & (VLOOKUP(Switch!$D$38,$F$2:$G$44,2,FALSE)+ROW()-2)),\"\")","v":{"$error":"#N/A"}},{"$f":"IF(INDIRECT(\"c\" & (VLOOKUP(Switch!$D$39,$F$2:$G$44,2,FALSE)+ROW()-2))=Switch!$D$39,INDIRECT(\"a\" & (VLOOKUP(Switch!$D$39,$F$2:$G$44,2,FALSE)+ROW()-2)),\"\")","v":{"$error":"#N/A"}},{"$f":"IF(INDIRECT(\"c\" & (VLOOKUP(Switch!$D$40,$F$2:$G$44,2,FALSE)+ROW()-2))=Switch!$D$40,INDIRECT(\"a\" & (VLOOKUP(Switch!$D$40,$F$2:$G$44,2,FALSE)+ROW()-2)),\"\")","v":{"$error":"#N/A"}},{"$f":"IF(INDIRECT(\"c\" & (VLOOKUP(Switch!$D$52,$F$2:$G$44,2,FALSE)+ROW()-2))=Switch!$D$52,INDIRECT(\"a\" & (VLOOKUP(Switch!$D$52,$F$2:$G$44,2,FALSE)+ROW()-2)),\"\")","v":{"$error":"#N/A"}},{"$f":"IF(INDIRECT(\"c\" & (VLOOKUP(Switch!$D$53,$F$2:$G$44,2,FALSE)+ROW()-2))=Switch!$D$53,INDIRECT(\"a\" & (VLOOKUP(Switch!$D$53,$F$2:$G$44,2,FALSE)+ROW()-2)),\"\")","v":{"$error":"#N/A"}},{"$f":"IF(INDIRECT(\"c\" & (VLOOKUP(Switch!$D$54,$F$2:$G$44,2,FALSE)+ROW()-2))=Switch!$D$54,INDIRECT(\"a\" & (VLOOKUP(Switch!$D$54,$F$2:$G$44,2,FALSE)+ROW()-2)),\"\")","v":{"$error":"#N/A"}},{"$f":"IF(INDIRECT(\"c\" & (VLOOKUP(Switch!$D$55,$F$2:$G$44,2,FALSE)+ROW()-2))=Switch!$D$55,INDIRECT(\"a\" & (VLOOKUP(Switch!$D$55,$F$2:$G$44,2,FALSE)+ROW()-2)),\"\")","v":{"$error":"#N/A"}},{"$f":"IF(INDIRECT(\"c\" & (VLOOKUP(Switch!$D$56,$F$2:$G$44,2,FALSE)+ROW()-2))=Switch!$D$56,INDIRECT(\"a\" & (VLOOKUP(Switch!$D$56,$F$2:$G$44,2,FALSE)+ROW()-2)),\"\")","v":{"$error":"#N/A"}},{"$f":"IF(INDIRECT(\"c\" & (VLOOKUP(Switch!$D$57,$F$2:$G$44,2,FALSE)+ROW()-2))=Switch!$D$57,INDIRECT(\"a\" & (VLOOKUP(Switch!$D$57,$F$2:$G$44,2,FALSE)+ROW()-2)),\"\")","v":{"$error":"#N/A"}},{"$f":"IF(INDIRECT(\"c\" & (VLOOKUP(Switch!$D$58,$F$2:$G$44,2,FALSE)+ROW()-2))=Switch!$D$58,INDIRECT(\"a\" & (VLOOKUP(Switch!$D$58,$F$2:$G$44,2,FALSE)+ROW()-2)),\"\")","v":{"$error":"#N/A"}},{"$f":"IF(INDIRECT(\"c\" & (VLOOKUP(Switch!$D$59,$F$2:$G$44,2,FALSE)+ROW()-2))=Switch!$D$59,INDIRECT(\"a\" & (VLOOKUP(Switch!$D$59,$F$2:$G$44,2,FALSE)+ROW()-2)),\"\")","v":{"$error":"#N/A"}},{"$f":"IF(INDIRECT(\"c\" & (VLOOKUP(Switch!$D$60,$F$2:$G$44,2,FALSE)+ROW()-2))=Switch!$D$60,INDIRECT(\"a\" & (VLOOKUP(Switch!$D$60,$F$2:$G$44,2,FALSE)+ROW()-2)),\"\")","v":{"$error":"#N/A"}},{"$f":"IF(INDIRECT(\"c\" & (VLOOKUP(Switch!$D$61,$F$2:$G$44,2,FALSE)+ROW()-2))=Switch!$D$61,INDIRECT(\"a\" & (VLOOKUP(Switch!$D$61,$F$2:$G$44,2,FALSE)+ROW()-2)),\"\")","v":{"$error":"#N/A"}},{"$f":"IF(INDIRECT(\"c\" & (VLOOKUP(Switch!$D$62,$F$2:$G$44,2,FALSE)+ROW()-2))=Switch!$D$62,INDIRECT(\"a\" & (VLOOKUP(Switch!$D$62,$F$2:$G$44,2,FALSE)+ROW()-2)),\"\")","v":{"$error":"#N/A"}},{"$f":"IF(INDIRECT(\"c\" & (VLOOKUP(Switch!$D$63,$F$2:$G$44,2,FALSE)+ROW()-2))=Switch!$D$63,INDIRECT(\"a\" & (VLOOKUP(Switch!$D$63,$F$2:$G$44,2,FALSE)+ROW()-2)),\"\")","v":{"$error":"#N/A"}},{"$f":"IF(INDIRECT(\"c\" & (VLOOKUP(Switch!$D$64,$F$2:$G$44,2,FALSE)+ROW()-2))=Switch!$D$64,INDIRECT(\"a\" & (VLOOKUP(Switch!$D$64,$F$2:$G$44,2,FALSE)+ROW()-2)),\"\")","v":{"$error":"#N/A"}},{"$f":"IF(INDIRECT(\"c\" & (VLOOKUP(Switch!$D$65,$F$2:$G$44,2,FALSE)+ROW()-2))=Switch!$D$65,INDIRECT(\"a\" & (VLOOKUP(Switch!$D$65,$F$2:$G$44,2,FALSE)+ROW()-2)),\"\")","v":{"$error":"#N/A"}},{"$f":"IF(INDIRECT(\"c\" & (VLOOKUP(Switch!$D$66,$F$2:$G$44,2,FALSE)+ROW()-2))=Switch!$D$66,INDIRECT(\"a\" & (VLOOKUP(Switch!$D$66,$F$2:$G$44,2,FALSE)+ROW()-2)),\"\")","v":{"$error":"#N/A"}}]
["Marriott Worldwide Flexible Fund of Funds D","MWDD","Marriott Unit Trust Management Company Ltd",{"$f":"ROW()","v":312},null,null,{"$f":"VLOOKUP(F312,$C$2:$D$637,2,FALSE)","v":{"$error":"#N/A"}},{"$f":"IF(INDIRECT(\"c\" & (VLOOKUP(Switch!$D$26,$F$2:$G$44,2,FALSE)+ROW()-2))=Switch!$D$26,INDIRECT(\"a\" & (VLOOKUP(Switch!$D$26,$F$2:$G$44,2,FALSE)+ROW()-2)),\"\")","v":{"$error":"#N/A"}},{"$f":"IF(INDIRECT(\"c\" & (VLOOKUP(Switch!$D$27,$F$2:$G$44,2,FALSE)+ROW()-2))=Switch!$D$27,INDIRECT(\"a\" & (VLOOKUP(Switch!$D$27,$F$2:$G$44,2,FALSE)+ROW()-2)),\"\")","v":{"$error":"#N/A"}},{"$f":"IF(INDIRECT(\"c\" & (VLOOKUP(Switch!$D$28,$F$2:$G$44,2,FALSE)+ROW()-2))=Switch!$D$28,INDIRECT(\"a\" & (VLOOKUP(Switch!$D$28,$F$2:$G$44,2,FALSE)+ROW()-2)),\"\")","v":{"$error":"#N/A"}},{"$f":"IF(INDIRECT(\"c\" & (VLOOKUP(Switch!$D$29,$F$2:$G$44,2,FALSE)+ROW()-2))=Switch!$D$29,INDIRECT(\"a\" & (VLOOKUP(Switch!$D$29,$F$2:$G$44,2,FALSE)+ROW()-2)),\"\")","v":{"$error":"#N/A"}},{"$f":"IF(INDIRECT(\"c\" & (VLOOKUP(Switch!$D$30,$F$2:$G$44,2,FALSE)+ROW()-2))=Switch!$D$30,INDIRECT(\"a\" & (VLOOKUP(Switch!$D$30,$F$2:$G$44,2,FALSE)+ROW()-2)),\"\")","v":{"$error":"#N/A"}},{"$f":"IF(INDIRECT(\"c\" & (VLOOKUP(Switch!$D$31,$F$2:$G$44,2,FALSE)+ROW()-2))=Switch!$D$31,INDIRECT(\"a\" & (VLOOKUP(Switch!$D$31,$F$2:$G$44,2,FALSE)+ROW()-2)),\"\")","v":{"$error":"#N/A"}},{"$f":"IF(INDIRECT(\"c\" & (VLOOKUP(Switch!$D$32,$F$2:$G$44,2,FALSE)+ROW()-2))=Switch!$D$32,INDIRECT(\"a\" & (VLOOKUP(Switch!$D$32,$F$2:$G$44,2,FALSE)+ROW()-2)),\"\")","v":{"$error":"#N/A"}},{"$f":"IF(INDIRECT(\"c\" & (VLOOKUP(Switch!$D$33,$F$2:$G$44,2,FALSE)+ROW()-2))=Switch!$D$33,INDIRECT(\"a\" & (VLOOKUP(Switch!$D$33,$F$2:$G$44,2,FALSE)+ROW()-2)),\"\")","v":{"$error":"#N/A"}},{"$f":"IF(INDIRECT(\"c\" & (VLOOKUP(Switch!$D$34,$F$2:$G$44,2,FALSE)+ROW()-2))=Switch!$D$34,INDIRECT(\"a\" & (VLOOKUP(Switch!$D$34,$F$2:$G$44,2,FALSE)+ROW()-2)),\"\")","v":{"$error":"#N/A"}},{"$f":"IF(INDIRECT(\"c\" & (VLOOKUP(Switch!$D$35,$F$2:$G$44,2,FALSE)+ROW()-2))=Switch!$D$35,INDIRECT(\"a\" & (VLOOKUP(Switch!$D$35,$F$2:$G$44,2,FALSE)+ROW()-2)),\"\")","v":{"$error":"#N/A"}},{"$f":"IF(INDIRECT(\"c\" & (VLOOKUP(Switch!$D$36,$F$2:$G$44,2,FALSE)+ROW()-2))=Switch!$D$36,INDIRECT(\"a\" & (VLOOKUP(Switch!$D$36,$F$2:$G$44,2,FALSE)+ROW()-2)),\"\")","v":{"$error":"#N/A"}},{"$f":"IF(INDIRECT(\"c\" & (VLOOKUP(Switch!$D$37,$F$2:$G$44,2,FALSE)+ROW()-2))=Switch!$D$37,INDIRECT(\"a\" & (VLOOKUP(Switch!$D$37,$F$2:$G$44,2,FALSE)+ROW()-2)),\"\")","v":{"$error":"#N/A"}},{"$f":"IF(INDIRECT(\"c\" & (VLOOKUP(Switch!$D$38,$F$2:$G$44,2,FALSE)+ROW()-2))=Switch!$D$38,INDIRECT(\"a\" & (VLOOKUP(Switch!$D$38,$F$2:$G$44,2,FALSE)+ROW()-2)),\"\")","v":{"$error":"#N/A"}},{"$f":"IF(INDIRECT(\"c\" & (VLOOKUP(Switch!$D$39,$F$2:$G$44,2,FALSE)+ROW()-2))=Switch!$D$39,INDIRECT(\"a\" & (VLOOKUP(Switch!$D$39,$F$2:$G$44,2,FALSE)+ROW()-2)),\"\")","v":{"$error":"#N/A"}},{"$f":"IF(INDIRECT(\"c\" & (VLOOKUP(Switch!$D$40,$F$2:$G$44,2,FALSE)+ROW()-2))=Switch!$D$40,INDIRECT(\"a\" & (VLOOKUP(Switch!$D$40,$F$2:$G$44,2,FALSE)+ROW()-2)),\"\")","v":{"$error":"#N/A"}},{"$f":"IF(INDIRECT(\"c\" & (VLOOKUP(Switch!$D$52,$F$2:$G$44,2,FALSE)+ROW()-2))=Switch!$D$52,INDIRECT(\"a\" & (VLOOKUP(Switch!$D$52,$F$2:$G$44,2,FALSE)+ROW()-2)),\"\")","v":{"$error":"#N/A"}},{"$f":"IF(INDIRECT(\"c\" & (VLOOKUP(Switch!$D$53,$F$2:$G$44,2,FALSE)+ROW()-2))=Switch!$D$53,INDIRECT(\"a\" & (VLOOKUP(Switch!$D$53,$F$2:$G$44,2,FALSE)+ROW()-2)),\"\")","v":{"$error":"#N/A"}},{"$f":"IF(INDIRECT(\"c\" & (VLOOKUP(Switch!$D$54,$F$2:$G$44,2,FALSE)+ROW()-2))=Switch!$D$54,INDIRECT(\"a\" & (VLOOKUP(Switch!$D$54,$F$2:$G$44,2,FALSE)+ROW()-2)),\"\")","v":{"$error":"#N/A"}},{"$f":"IF(INDIRECT(\"c\" & (VLOOKUP(Switch!$D$55,$F$2:$G$44,2,FALSE)+ROW()-2))=Switch!$D$55,INDIRECT(\"a\" & (VLOOKUP(Switch!$D$55,$F$2:$G$44,2,FALSE)+ROW()-2)),\"\")","v":{"$error":"#N/A"}},{"$f":"IF(INDIRECT(\"c\" & (VLOOKUP(Switch!$D$56,$F$2:$G$44,2,FALSE)+ROW()-2))=Switch!$D$56,INDIRECT(\"a\" & (VLOOKUP(Switch!$D$56,$F$2:$G$44,2,FALSE)+ROW()-2)),\"\")","v":{"$error":"#N/A"}},{"$f":"IF(INDIRECT(\"c\" & (VLOOKUP(Switch!$D$57,$F$2:$G$44,2,FALSE)+ROW()-2))=Switch!$D$57,INDIRECT(\"a\" & (VLOOKUP(Switch!$D$57,$F$2:$G$44,2,FALSE)+ROW()-2)),\"\")","v":{"$error":"#N/A"}},{"$f":"IF(INDIRECT(\"c\" & (VLOOKUP(Switch!$D$58,$F$2:$G$44,2,FALSE)+ROW()-2))=Switch!$D$58,INDIRECT(\"a\" & (VLOOKUP(Switch!$D$58,$F$2:$G$44,2,FALSE)+ROW()-2)),\"\")","v":{"$error":"#N/A"}},{"$f":"IF(INDIRECT(\"c\" & (VLOOKUP(Switch!$D$59,$F$2:$G$44,2,FALSE)+ROW()-2))=Switch!$D$59,INDIRECT(\"a\" & (VLOOKUP(Switch!$D$59,$F$2:$G$44,2,FALSE)+ROW()-2)),\"\")","v":{"$error":"#N/A"}},{"$f":"IF(INDIRECT(\"c\" & (VLOOKUP(Switch!$D$60,$F$2:$G$44,2,FALSE)+ROW()-2))=Switch!$D$60,INDIRECT(\"a\" & (VLOOKUP(Switch!$D$60,$F$2:$G$44,2,FALSE)+ROW()-2)),\"\")","v":{"$error":"#N/A"}},{"$f":"IF(INDIRECT(\"c\" & (VLOOKUP(Switch!$D$61,$F$2:$G$44,2,FALSE)+ROW()-2))=Switch!$D$61,INDIRECT(\"a\" & (VLOOKUP(Switch!$D$61,$F$2:$G$44,2,FALSE)+ROW()-2)),\"\")","v":{"$error":"#N/A"}},{"$f":"IF(INDIRECT(\"c\" & (VLOOKUP(Switch!$D$62,$F$2:$G$44,2,FALSE)+ROW()-2))=Switch!$D$62,INDIRECT(\"a\" & (VLOOKUP(Switch!$D$62,$F$2:$G$44,2,FALSE)+ROW()-2)),\"\")","v":{"$error":"#N/A"}},{"$f":"IF(INDIRECT(\"c\" & (VLOOKUP(Switch!$D$63,$F$2:$G$44,2,FALSE)+ROW()-2))=Switch!$D$63,INDIRECT(\"a\" & (VLOOKUP(Switch!$D$63,$F$2:$G$44,2,FALSE)+ROW()-2)),\"\")","v":{"$error":"#N/A"}},{"$f":"IF(INDIRECT(\"c\" & (VLOOKUP(Switch!$D$64,$F$2:$G$44,2,FALSE)+ROW()-2))=Switch!$D$64,INDIRECT(\"a\" & (VLOOKUP(Switch!$D$64,$F$2:$G$44,2,FALSE)+ROW()-2)),\"\")","v":{"$error":"#N/A"}},{"$f":"IF(INDIRECT(\"c\" & (VLOOKUP(Switch!$D$65,$F$2:$G$44,2,FALSE)+ROW()-2))=Switch!$D$65,INDIRECT(\"a\" & (VLOOKUP(Switch!$D$65,$F$2:$G$44,2,FALSE)+ROW()-2)),\"\")","v":{"$error":"#N/A"}},{"$f":"IF(INDIRECT(\"c\" & (VLOOKUP(Switch!$D$66,$F$2:$G$44,2,FALSE)+ROW()-2))=Switch!$D$66,INDIRECT(\"a\" & (VLOOKUP(Switch!$D$66,$F$2:$G$44,2,FALSE)+ROW()-2)),\"\")","v":{"$error":"#N/A"}}]
["36One MET Equity Fund D","MNTR","Metropolitan Collective Investments",{"$f":"ROW()","v":313},null,null,{"$f":"VLOOKUP(F313,$C$2:$D$637,2,FALSE)","v":{"$error":"#N/A"}},{"$f":"IF(INDIRECT(\"c\" & (VLOOKUP(Switch!$D$26,$F$2:$G$44,2,FALSE)+ROW()-2))=Switch!$D$26,INDIRECT(\"a\" & (VLOOKUP(Switch!$D$26,$F$2:$G$44,2,FALSE)+ROW()-2)),\"\")","v":{"$error":"#N/A"}},{"$f":"IF(INDIRECT(\"c\" & (VLOOKUP(Switch!$D$27,$F$2:$G$44,2,FALSE)+ROW()-2))=Switch!$D$27,INDIRECT(\"a\" & (VLOOKUP(Switch!$D$27,$F$2:$G$44,2,FALSE)+ROW()-2)),\"\")","v":{"$error":"#N/A"}},{"$f":"IF(INDIRECT(\"c\" & (VLOOKUP(Switch!$D$28,$F$2:$G$44,2,FALSE)+ROW()-2))=Switch!$D$28,INDIRECT(\"a\" & (VLOOKUP(Switch!$D$28,$F$2:$G$44,2,FALSE)+ROW()-2)),\"\")","v":{"$error":"#N/A"}},{"$f":"IF(INDIRECT(\"c\" & (VLOOKUP(Switch!$D$29,$F$2:$G$44,2,FALSE)+ROW()-2))=Switch!$D$29,INDIRECT(\"a\" & (VLOOKUP(Switch!$D$29,$F$2:$G$44,2,FALSE)+ROW()-2)),\"\")","v":{"$error":"#N/A"}},{"$f":"IF(INDIRECT(\"c\" & (VLOOKUP(Switch!$D$30,$F$2:$G$44,2,FALSE)+ROW()-2))=Switch!$D$30,INDIRECT(\"a\" & (VLOOKUP(Switch!$D$30,$F$2:$G$44,2,FALSE)+ROW()-2)),\"\")","v":{"$error":"#N/A"}},{"$f":"IF(INDIRECT(\"c\" & (VLOOKUP(Switch!$D$31,$F$2:$G$44,2,FALSE)+ROW()-2))=Switch!$D$31,INDIRECT(\"a\" & (VLOOKUP(Switch!$D$31,$F$2:$G$44,2,FALSE)+ROW()-2)),\"\")","v":{"$error":"#N/A"}},{"$f":"IF(INDIRECT(\"c\" & (VLOOKUP(Switch!$D$32,$F$2:$G$44,2,FALSE)+ROW()-2))=Switch!$D$32,INDIRECT(\"a\" & (VLOOKUP(Switch!$D$32,$F$2:$G$44,2,FALSE)+ROW()-2)),\"\")","v":{"$error":"#N/A"}},{"$f":"IF(INDIRECT(\"c\" & (VLOOKUP(Switch!$D$33,$F$2:$G$44,2,FALSE)+ROW()-2))=Switch!$D$33,INDIRECT(\"a\" & (VLOOKUP(Switch!$D$33,$F$2:$G$44,2,FALSE)+ROW()-2)),\"\")","v":{"$error":"#N/A"}},{"$f":"IF(INDIRECT(\"c\" & (VLOOKUP(Switch!$D$34,$F$2:$G$44,2,FALSE)+ROW()-2))=Switch!$D$34,INDIRECT(\"a\" & (VLOOKUP(Switch!$D$34,$F$2:$G$44,2,FALSE)+ROW()-2)),\"\")","v":{"$error":"#N/A"}},{"$f":"IF(INDIRECT(\"c\" & (VLOOKUP(Switch!$D$35,$F$2:$G$44,2,FALSE)+ROW()-2))=Switch!$D$35,INDIRECT(\"a\" & (VLOOKUP(Switch!$D$35,$F$2:$G$44,2,FALSE)+ROW()-2)),\"\")","v":{"$error":"#N/A"}},{"$f":"IF(INDIRECT(\"c\" & (VLOOKUP(Switch!$D$36,$F$2:$G$44,2,FALSE)+ROW()-2))=Switch!$D$36,INDIRECT(\"a\" & (VLOOKUP(Switch!$D$36,$F$2:$G$44,2,FALSE)+ROW()-2)),\"\")","v":{"$error":"#N/A"}},{"$f":"IF(INDIRECT(\"c\" & (VLOOKUP(Switch!$D$37,$F$2:$G$44,2,FALSE)+ROW()-2))=Switch!$D$37,INDIRECT(\"a\" & (VLOOKUP(Switch!$D$37,$F$2:$G$44,2,FALSE)+ROW()-2)),\"\")","v":{"$error":"#N/A"}},{"$f":"IF(INDIRECT(\"c\" & (VLOOKUP(Switch!$D$38,$F$2:$G$44,2,FALSE)+ROW()-2))=Switch!$D$38,INDIRECT(\"a\" & (VLOOKUP(Switch!$D$38,$F$2:$G$44,2,FALSE)+ROW()-2)),\"\")","v":{"$error":"#N/A"}},{"$f":"IF(INDIRECT(\"c\" & (VLOOKUP(Switch!$D$39,$F$2:$G$44,2,FALSE)+ROW()-2))=Switch!$D$39,INDIRECT(\"a\" & (VLOOKUP(Switch!$D$39,$F$2:$G$44,2,FALSE)+ROW()-2)),\"\")","v":{"$error":"#N/A"}},{"$f":"IF(INDIRECT(\"c\" & (VLOOKUP(Switch!$D$40,$F$2:$G$44,2,FALSE)+ROW()-2))=Switch!$D$40,INDIRECT(\"a\" & (VLOOKUP(Switch!$D$40,$F$2:$G$44,2,FALSE)+ROW()-2)),\"\")","v":{"$error":"#N/A"}},{"$f":"IF(INDIRECT(\"c\" & (VLOOKUP(Switch!$D$52,$F$2:$G$44,2,FALSE)+ROW()-2))=Switch!$D$52,INDIRECT(\"a\" & (VLOOKUP(Switch!$D$52,$F$2:$G$44,2,FALSE)+ROW()-2)),\"\")","v":{"$error":"#N/A"}},{"$f":"IF(INDIRECT(\"c\" & (VLOOKUP(Switch!$D$53,$F$2:$G$44,2,FALSE)+ROW()-2))=Switch!$D$53,INDIRECT(\"a\" & (VLOOKUP(Switch!$D$53,$F$2:$G$44,2,FALSE)+ROW()-2)),\"\")","v":{"$error":"#N/A"}},{"$f":"IF(INDIRECT(\"c\" & (VLOOKUP(Switch!$D$54,$F$2:$G$44,2,FALSE)+ROW()-2))=Switch!$D$54,INDIRECT(\"a\" & (VLOOKUP(Switch!$D$54,$F$2:$G$44,2,FALSE)+ROW()-2)),\"\")","v":{"$error":"#N/A"}},{"$f":"IF(INDIRECT(\"c\" & (VLOOKUP(Switch!$D$55,$F$2:$G$44,2,FALSE)+ROW()-2))=Switch!$D$55,INDIRECT(\"a\" & (VLOOKUP(Switch!$D$55,$F$2:$G$44,2,FALSE)+ROW()-2)),\"\")","v":{"$error":"#N/A"}},{"$f":"IF(INDIRECT(\"c\" & (VLOOKUP(Switch!$D$56,$F$2:$G$44,2,FALSE)+ROW()-2))=Switch!$D$56,INDIRECT(\"a\" & (VLOOKUP(Switch!$D$56,$F$2:$G$44,2,FALSE)+ROW()-2)),\"\")","v":{"$error":"#N/A"}},{"$f":"IF(INDIRECT(\"c\" & (VLOOKUP(Switch!$D$57,$F$2:$G$44,2,FALSE)+ROW()-2))=Switch!$D$57,INDIRECT(\"a\" & (VLOOKUP(Switch!$D$57,$F$2:$G$44,2,FALSE)+ROW()-2)),\"\")","v":{"$error":"#N/A"}},{"$f":"IF(INDIRECT(\"c\" & (VLOOKUP(Switch!$D$58,$F$2:$G$44,2,FALSE)+ROW()-2))=Switch!$D$58,INDIRECT(\"a\" & (VLOOKUP(Switch!$D$58,$F$2:$G$44,2,FALSE)+ROW()-2)),\"\")","v":{"$error":"#N/A"}},{"$f":"IF(INDIRECT(\"c\" & (VLOOKUP(Switch!$D$59,$F$2:$G$44,2,FALSE)+ROW()-2))=Switch!$D$59,INDIRECT(\"a\" & (VLOOKUP(Switch!$D$59,$F$2:$G$44,2,FALSE)+ROW()-2)),\"\")","v":{"$error":"#N/A"}},{"$f":"IF(INDIRECT(\"c\" & (VLOOKUP(Switch!$D$60,$F$2:$G$44,2,FALSE)+ROW()-2))=Switch!$D$60,INDIRECT(\"a\" & (VLOOKUP(Switch!$D$60,$F$2:$G$44,2,FALSE)+ROW()-2)),\"\")","v":{"$error":"#N/A"}},{"$f":"IF(INDIRECT(\"c\" & (VLOOKUP(Switch!$D$61,$F$2:$G$44,2,FALSE)+ROW()-2))=Switch!$D$61,INDIRECT(\"a\" & (VLOOKUP(Switch!$D$61,$F$2:$G$44,2,FALSE)+ROW()-2)),\"\")","v":{"$error":"#N/A"}},{"$f":"IF(INDIRECT(\"c\" & (VLOOKUP(Switch!$D$62,$F$2:$G$44,2,FALSE)+ROW()-2))=Switch!$D$62,INDIRECT(\"a\" & (VLOOKUP(Switch!$D$62,$F$2:$G$44,2,FALSE)+ROW()-2)),\"\")","v":{"$error":"#N/A"}},{"$f":"IF(INDIRECT(\"c\" & (VLOOKUP(Switch!$D$63,$F$2:$G$44,2,FALSE)+ROW()-2))=Switch!$D$63,INDIRECT(\"a\" & (VLOOKUP(Switch!$D$63,$F$2:$G$44,2,FALSE)+ROW()-2)),\"\")","v":{"$error":"#N/A"}},{"$f":"IF(INDIRECT(\"c\" & (VLOOKUP(Switch!$D$64,$F$2:$G$44,2,FALSE)+ROW()-2))=Switch!$D$64,INDIRECT(\"a\" & (VLOOKUP(Switch!$D$64,$F$2:$G$44,2,FALSE)+ROW()-2)),\"\")","v":{"$error":"#N/A"}},{"$f":"IF(INDIRECT(\"c\" & (VLOOKUP(Switch!$D$65,$F$2:$G$44,2,FALSE)+ROW()-2))=Switch!$D$65,INDIRECT(\"a\" & (VLOOKUP(Switch!$D$65,$F$2:$G$44,2,FALSE)+ROW()-2)),\"\")","v":{"$error":"#N/A"}},{"$f":"IF(INDIRECT(\"c\" & (VLOOKUP(Switch!$D$66,$F$2:$G$44,2,FALSE)+ROW()-2))=Switch!$D$66,INDIRECT(\"a\" & (VLOOKUP(Switch!$D$66,$F$2:$G$44,2,FALSE)+ROW()-2)),\"\")","v":{"$error":"#N/A"}}]
["36One MET Flexible Opportunity Fund C","TSFA","Metropolitan Collective Investments",{"$f":"ROW()","v":314},null,null,{"$f":"VLOOKUP(F314,$C$2:$D$637,2,FALSE)","v":{"$error":"#N/A"}},{"$f":"IF(INDIRECT(\"c\" & (VLOOKUP(Switch!$D$26,$F$2:$G$44,2,FALSE)+ROW()-2))=Switch!$D$26,INDIRECT(\"a\" & (VLOOKUP(Switch!$D$26,$F$2:$G$44,2,FALSE)+ROW()-2)),\"\")","v":{"$error":"#N/A"}},{"$f":"IF(INDIRECT(\"c\" & (VLOOKUP(Switch!$D$27,$F$2:$G$44,2,FALSE)+ROW()-2))=Switch!$D$27,INDIRECT(\"a\" & (VLOOKUP(Switch!$D$27,$F$2:$G$44,2,FALSE)+ROW()-2)),\"\")","v":{"$error":"#N/A"}},{"$f":"IF(INDIRECT(\"c\" & (VLOOKUP(Switch!$D$28,$F$2:$G$44,2,FALSE)+ROW()-2))=Switch!$D$28,INDIRECT(\"a\" & (VLOOKUP(Switch!$D$28,$F$2:$G$44,2,FALSE)+ROW()-2)),\"\")","v":{"$error":"#N/A"}},{"$f":"IF(INDIRECT(\"c\" & (VLOOKUP(Switch!$D$29,$F$2:$G$44,2,FALSE)+ROW()-2))=Switch!$D$29,INDIRECT(\"a\" & (VLOOKUP(Switch!$D$29,$F$2:$G$44,2,FALSE)+ROW()-2)),\"\")","v":{"$error":"#N/A"}},{"$f":"IF(INDIRECT(\"c\" & (VLOOKUP(Switch!$D$30,$F$2:$G$44,2,FALSE)+ROW()-2))=Switch!$D$30,INDIRECT(\"a\" & (VLOOKUP(Switch!$D$30,$F$2:$G$44,2,FALSE)+ROW()-2)),\"\")","v":{"$error":"#N/A"}},{"$f":"IF(INDIRECT(\"c\" & (VLOOKUP(Switch!$D$31,$F$2:$G$44,2,FALSE)+ROW()-2))=Switch!$D$31,INDIRECT(\"a\" & (VLOOKUP(Switch!$D$31,$F$2:$G$44,2,FALSE)+ROW()-2)),\"\")","v":{"$error":"#N/A"}},{"$f":"IF(INDIRECT(\"c\" & (VLOOKUP(Switch!$D$32,$F$2:$G$44,2,FALSE)+ROW()-2))=Switch!$D$32,INDIRECT(\"a\" & (VLOOKUP(Switch!$D$32,$F$2:$G$44,2,FALSE)+ROW()-2)),\"\")","v":{"$error":"#N/A"}},{"$f":"IF(INDIRECT(\"c\" & (VLOOKUP(Switch!$D$33,$F$2:$G$44,2,FALSE)+ROW()-2))=Switch!$D$33,INDIRECT(\"a\" & (VLOOKUP(Switch!$D$33,$F$2:$G$44,2,FALSE)+ROW()-2)),\"\")","v":{"$error":"#N/A"}},{"$f":"IF(INDIRECT(\"c\" & (VLOOKUP(Switch!$D$34,$F$2:$G$44,2,FALSE)+ROW()-2))=Switch!$D$34,INDIRECT(\"a\" & (VLOOKUP(Switch!$D$34,$F$2:$G$44,2,FALSE)+ROW()-2)),\"\")","v":{"$error":"#N/A"}},{"$f":"IF(INDIRECT(\"c\" & (VLOOKUP(Switch!$D$35,$F$2:$G$44,2,FALSE)+ROW()-2))=Switch!$D$35,INDIRECT(\"a\" & (VLOOKUP(Switch!$D$35,$F$2:$G$44,2,FALSE)+ROW()-2)),\"\")","v":{"$error":"#N/A"}},{"$f":"IF(INDIRECT(\"c\" & (VLOOKUP(Switch!$D$36,$F$2:$G$44,2,FALSE)+ROW()-2))=Switch!$D$36,INDIRECT(\"a\" & (VLOOKUP(Switch!$D$36,$F$2:$G$44,2,FALSE)+ROW()-2)),\"\")","v":{"$error":"#N/A"}},{"$f":"IF(INDIRECT(\"c\" & (VLOOKUP(Switch!$D$37,$F$2:$G$44,2,FALSE)+ROW()-2))=Switch!$D$37,INDIRECT(\"a\" & (VLOOKUP(Switch!$D$37,$F$2:$G$44,2,FALSE)+ROW()-2)),\"\")","v":{"$error":"#N/A"}},{"$f":"IF(INDIRECT(\"c\" & (VLOOKUP(Switch!$D$38,$F$2:$G$44,2,FALSE)+ROW()-2))=Switch!$D$38,INDIRECT(\"a\" & (VLOOKUP(Switch!$D$38,$F$2:$G$44,2,FALSE)+ROW()-2)),\"\")","v":{"$error":"#N/A"}},{"$f":"IF(INDIRECT(\"c\" & (VLOOKUP(Switch!$D$39,$F$2:$G$44,2,FALSE)+ROW()-2))=Switch!$D$39,INDIRECT(\"a\" & (VLOOKUP(Switch!$D$39,$F$2:$G$44,2,FALSE)+ROW()-2)),\"\")","v":{"$error":"#N/A"}},{"$f":"IF(INDIRECT(\"c\" & (VLOOKUP(Switch!$D$40,$F$2:$G$44,2,FALSE)+ROW()-2))=Switch!$D$40,INDIRECT(\"a\" & (VLOOKUP(Switch!$D$40,$F$2:$G$44,2,FALSE)+ROW()-2)),\"\")","v":{"$error":"#N/A"}},{"$f":"IF(INDIRECT(\"c\" & (VLOOKUP(Switch!$D$52,$F$2:$G$44,2,FALSE)+ROW()-2))=Switch!$D$52,INDIRECT(\"a\" & (VLOOKUP(Switch!$D$52,$F$2:$G$44,2,FALSE)+ROW()-2)),\"\")","v":{"$error":"#N/A"}},{"$f":"IF(INDIRECT(\"c\" & (VLOOKUP(Switch!$D$53,$F$2:$G$44,2,FALSE)+ROW()-2))=Switch!$D$53,INDIRECT(\"a\" & (VLOOKUP(Switch!$D$53,$F$2:$G$44,2,FALSE)+ROW()-2)),\"\")","v":{"$error":"#N/A"}},{"$f":"IF(INDIRECT(\"c\" & (VLOOKUP(Switch!$D$54,$F$2:$G$44,2,FALSE)+ROW()-2))=Switch!$D$54,INDIRECT(\"a\" & (VLOOKUP(Switch!$D$54,$F$2:$G$44,2,FALSE)+ROW()-2)),\"\")","v":{"$error":"#N/A"}},{"$f":"IF(INDIRECT(\"c\" & (VLOOKUP(Switch!$D$55,$F$2:$G$44,2,FALSE)+ROW()-2))=Switch!$D$55,INDIRECT(\"a\" & (VLOOKUP(Switch!$D$55,$F$2:$G$44,2,FALSE)+ROW()-2)),\"\")","v":{"$error":"#N/A"}},{"$f":"IF(INDIRECT(\"c\" & (VLOOKUP(Switch!$D$56,$F$2:$G$44,2,FALSE)+ROW()-2))=Switch!$D$56,INDIRECT(\"a\" & (VLOOKUP(Switch!$D$56,$F$2:$G$44,2,FALSE)+ROW()-2)),\"\")","v":{"$error":"#N/A"}},{"$f":"IF(INDIRECT(\"c\" & (VLOOKUP(Switch!$D$57,$F$2:$G$44,2,FALSE)+ROW()-2))=Switch!$D$57,INDIRECT(\"a\" & (VLOOKUP(Switch!$D$57,$F$2:$G$44,2,FALSE)+ROW()-2)),\"\")","v":{"$error":"#N/A"}},{"$f":"IF(INDIRECT(\"c\" & (VLOOKUP(Switch!$D$58,$F$2:$G$44,2,FALSE)+ROW()-2))=Switch!$D$58,INDIRECT(\"a\" & (VLOOKUP(Switch!$D$58,$F$2:$G$44,2,FALSE)+ROW()-2)),\"\")","v":{"$error":"#N/A"}},{"$f":"IF(INDIRECT(\"c\" & (VLOOKUP(Switch!$D$59,$F$2:$G$44,2,FALSE)+ROW()-2))=Switch!$D$59,INDIRECT(\"a\" & (VLOOKUP(Switch!$D$59,$F$2:$G$44,2,FALSE)+ROW()-2)),\"\")","v":{"$error":"#N/A"}},{"$f":"IF(INDIRECT(\"c\" & (VLOOKUP(Switch!$D$60,$F$2:$G$44,2,FALSE)+ROW()-2))=Switch!$D$60,INDIRECT(\"a\" & (VLOOKUP(Switch!$D$60,$F$2:$G$44,2,FALSE)+ROW()-2)),\"\")","v":{"$error":"#N/A"}},{"$f":"IF(INDIRECT(\"c\" & (VLOOKUP(Switch!$D$61,$F$2:$G$44,2,FALSE)+ROW()-2))=Switch!$D$61,INDIRECT(\"a\" & (VLOOKUP(Switch!$D$61,$F$2:$G$44,2,FALSE)+ROW()-2)),\"\")","v":{"$error":"#N/A"}},{"$f":"IF(INDIRECT(\"c\" & (VLOOKUP(Switch!$D$62,$F$2:$G$44,2,FALSE)+ROW()-2))=Switch!$D$62,INDIRECT(\"a\" & (VLOOKUP(Switch!$D$62,$F$2:$G$44,2,FALSE)+ROW()-2)),\"\")","v":{"$error":"#N/A"}},{"$f":"IF(INDIRECT(\"c\" & (VLOOKUP(Switch!$D$63,$F$2:$G$44,2,FALSE)+ROW()-2))=Switch!$D$63,INDIRECT(\"a\" & (VLOOKUP(Switch!$D$63,$F$2:$G$44,2,FALSE)+ROW()-2)),\"\")","v":{"$error":"#N/A"}},{"$f":"IF(INDIRECT(\"c\" & (VLOOKUP(Switch!$D$64,$F$2:$G$44,2,FALSE)+ROW()-2))=Switch!$D$64,INDIRECT(\"a\" & (VLOOKUP(Switch!$D$64,$F$2:$G$44,2,FALSE)+ROW()-2)),\"\")","v":{"$error":"#N/A"}},{"$f":"IF(INDIRECT(\"c\" & (VLOOKUP(Switch!$D$65,$F$2:$G$44,2,FALSE)+ROW()-2))=Switch!$D$65,INDIRECT(\"a\" & (VLOOKUP(Switch!$D$65,$F$2:$G$44,2,FALSE)+ROW()-2)),\"\")","v":{"$error":"#N/A"}},{"$f":"IF(INDIRECT(\"c\" & (VLOOKUP(Switch!$D$66,$F$2:$G$44,2,FALSE)+ROW()-2))=Switch!$D$66,INDIRECT(\"a\" & (VLOOKUP(Switch!$D$66,$F$2:$G$44,2,FALSE)+ROW()-2)),\"\")","v":{"$error":"#N/A"}}]
["Contego B5 MET Protected Equity Fund (A)","CPEP","Metropolitan Collective Investments",{"$f":"ROW()","v":315},null,null,{"$f":"VLOOKUP(F315,$C$2:$D$637,2,FALSE)","v":{"$error":"#N/A"}},{"$f":"IF(INDIRECT(\"c\" & (VLOOKUP(Switch!$D$26,$F$2:$G$44,2,FALSE)+ROW()-2))=Switch!$D$26,INDIRECT(\"a\" & (VLOOKUP(Switch!$D$26,$F$2:$G$44,2,FALSE)+ROW()-2)),\"\")","v":{"$error":"#N/A"}},{"$f":"IF(INDIRECT(\"c\" & (VLOOKUP(Switch!$D$27,$F$2:$G$44,2,FALSE)+ROW()-2))=Switch!$D$27,INDIRECT(\"a\" & (VLOOKUP(Switch!$D$27,$F$2:$G$44,2,FALSE)+ROW()-2)),\"\")","v":{"$error":"#N/A"}},{"$f":"IF(INDIRECT(\"c\" & (VLOOKUP(Switch!$D$28,$F$2:$G$44,2,FALSE)+ROW()-2))=Switch!$D$28,INDIRECT(\"a\" & (VLOOKUP(Switch!$D$28,$F$2:$G$44,2,FALSE)+ROW()-2)),\"\")","v":{"$error":"#N/A"}},{"$f":"IF(INDIRECT(\"c\" & (VLOOKUP(Switch!$D$29,$F$2:$G$44,2,FALSE)+ROW()-2))=Switch!$D$29,INDIRECT(\"a\" & (VLOOKUP(Switch!$D$29,$F$2:$G$44,2,FALSE)+ROW()-2)),\"\")","v":{"$error":"#N/A"}},{"$f":"IF(INDIRECT(\"c\" & (VLOOKUP(Switch!$D$30,$F$2:$G$44,2,FALSE)+ROW()-2))=Switch!$D$30,INDIRECT(\"a\" & (VLOOKUP(Switch!$D$30,$F$2:$G$44,2,FALSE)+ROW()-2)),\"\")","v":{"$error":"#N/A"}},{"$f":"IF(INDIRECT(\"c\" & (VLOOKUP(Switch!$D$31,$F$2:$G$44,2,FALSE)+ROW()-2))=Switch!$D$31,INDIRECT(\"a\" & (VLOOKUP(Switch!$D$31,$F$2:$G$44,2,FALSE)+ROW()-2)),\"\")","v":{"$error":"#N/A"}},{"$f":"IF(INDIRECT(\"c\" & (VLOOKUP(Switch!$D$32,$F$2:$G$44,2,FALSE)+ROW()-2))=Switch!$D$32,INDIRECT(\"a\" & (VLOOKUP(Switch!$D$32,$F$2:$G$44,2,FALSE)+ROW()-2)),\"\")","v":{"$error":"#N/A"}},{"$f":"IF(INDIRECT(\"c\" & (VLOOKUP(Switch!$D$33,$F$2:$G$44,2,FALSE)+ROW()-2))=Switch!$D$33,INDIRECT(\"a\" & (VLOOKUP(Switch!$D$33,$F$2:$G$44,2,FALSE)+ROW()-2)),\"\")","v":{"$error":"#N/A"}},{"$f":"IF(INDIRECT(\"c\" & (VLOOKUP(Switch!$D$34,$F$2:$G$44,2,FALSE)+ROW()-2))=Switch!$D$34,INDIRECT(\"a\" & (VLOOKUP(Switch!$D$34,$F$2:$G$44,2,FALSE)+ROW()-2)),\"\")","v":{"$error":"#N/A"}},{"$f":"IF(INDIRECT(\"c\" & (VLOOKUP(Switch!$D$35,$F$2:$G$44,2,FALSE)+ROW()-2))=Switch!$D$35,INDIRECT(\"a\" & (VLOOKUP(Switch!$D$35,$F$2:$G$44,2,FALSE)+ROW()-2)),\"\")","v":{"$error":"#N/A"}},{"$f":"IF(INDIRECT(\"c\" & (VLOOKUP(Switch!$D$36,$F$2:$G$44,2,FALSE)+ROW()-2))=Switch!$D$36,INDIRECT(\"a\" & (VLOOKUP(Switch!$D$36,$F$2:$G$44,2,FALSE)+ROW()-2)),\"\")","v":{"$error":"#N/A"}},{"$f":"IF(INDIRECT(\"c\" & (VLOOKUP(Switch!$D$37,$F$2:$G$44,2,FALSE)+ROW()-2))=Switch!$D$37,INDIRECT(\"a\" & (VLOOKUP(Switch!$D$37,$F$2:$G$44,2,FALSE)+ROW()-2)),\"\")","v":{"$error":"#N/A"}},{"$f":"IF(INDIRECT(\"c\" & (VLOOKUP(Switch!$D$38,$F$2:$G$44,2,FALSE)+ROW()-2))=Switch!$D$38,INDIRECT(\"a\" & (VLOOKUP(Switch!$D$38,$F$2:$G$44,2,FALSE)+ROW()-2)),\"\")","v":{"$error":"#N/A"}},{"$f":"IF(INDIRECT(\"c\" & (VLOOKUP(Switch!$D$39,$F$2:$G$44,2,FALSE)+ROW()-2))=Switch!$D$39,INDIRECT(\"a\" & (VLOOKUP(Switch!$D$39,$F$2:$G$44,2,FALSE)+ROW()-2)),\"\")","v":{"$error":"#N/A"}},{"$f":"IF(INDIRECT(\"c\" & (VLOOKUP(Switch!$D$40,$F$2:$G$44,2,FALSE)+ROW()-2))=Switch!$D$40,INDIRECT(\"a\" & (VLOOKUP(Switch!$D$40,$F$2:$G$44,2,FALSE)+ROW()-2)),\"\")","v":{"$error":"#N/A"}},{"$f":"IF(INDIRECT(\"c\" & (VLOOKUP(Switch!$D$52,$F$2:$G$44,2,FALSE)+ROW()-2))=Switch!$D$52,INDIRECT(\"a\" & (VLOOKUP(Switch!$D$52,$F$2:$G$44,2,FALSE)+ROW()-2)),\"\")","v":{"$error":"#N/A"}},{"$f":"IF(INDIRECT(\"c\" & (VLOOKUP(Switch!$D$53,$F$2:$G$44,2,FALSE)+ROW()-2))=Switch!$D$53,INDIRECT(\"a\" & (VLOOKUP(Switch!$D$53,$F$2:$G$44,2,FALSE)+ROW()-2)),\"\")","v":{"$error":"#N/A"}},{"$f":"IF(INDIRECT(\"c\" & (VLOOKUP(Switch!$D$54,$F$2:$G$44,2,FALSE)+ROW()-2))=Switch!$D$54,INDIRECT(\"a\" & (VLOOKUP(Switch!$D$54,$F$2:$G$44,2,FALSE)+ROW()-2)),\"\")","v":{"$error":"#N/A"}},{"$f":"IF(INDIRECT(\"c\" & (VLOOKUP(Switch!$D$55,$F$2:$G$44,2,FALSE)+ROW()-2))=Switch!$D$55,INDIRECT(\"a\" & (VLOOKUP(Switch!$D$55,$F$2:$G$44,2,FALSE)+ROW()-2)),\"\")","v":{"$error":"#N/A"}},{"$f":"IF(INDIRECT(\"c\" & (VLOOKUP(Switch!$D$56,$F$2:$G$44,2,FALSE)+ROW()-2))=Switch!$D$56,INDIRECT(\"a\" & (VLOOKUP(Switch!$D$56,$F$2:$G$44,2,FALSE)+ROW()-2)),\"\")","v":{"$error":"#N/A"}},{"$f":"IF(INDIRECT(\"c\" & (VLOOKUP(Switch!$D$57,$F$2:$G$44,2,FALSE)+ROW()-2))=Switch!$D$57,INDIRECT(\"a\" & (VLOOKUP(Switch!$D$57,$F$2:$G$44,2,FALSE)+ROW()-2)),\"\")","v":{"$error":"#N/A"}},{"$f":"IF(INDIRECT(\"c\" & (VLOOKUP(Switch!$D$58,$F$2:$G$44,2,FALSE)+ROW()-2))=Switch!$D$58,INDIRECT(\"a\" & (VLOOKUP(Switch!$D$58,$F$2:$G$44,2,FALSE)+ROW()-2)),\"\")","v":{"$error":"#N/A"}},{"$f":"IF(INDIRECT(\"c\" & (VLOOKUP(Switch!$D$59,$F$2:$G$44,2,FALSE)+ROW()-2))=Switch!$D$59,INDIRECT(\"a\" & (VLOOKUP(Switch!$D$59,$F$2:$G$44,2,FALSE)+ROW()-2)),\"\")","v":{"$error":"#N/A"}},{"$f":"IF(INDIRECT(\"c\" & (VLOOKUP(Switch!$D$60,$F$2:$G$44,2,FALSE)+ROW()-2))=Switch!$D$60,INDIRECT(\"a\" & (VLOOKUP(Switch!$D$60,$F$2:$G$44,2,FALSE)+ROW()-2)),\"\")","v":{"$error":"#N/A"}},{"$f":"IF(INDIRECT(\"c\" & (VLOOKUP(Switch!$D$61,$F$2:$G$44,2,FALSE)+ROW()-2))=Switch!$D$61,INDIRECT(\"a\" & (VLOOKUP(Switch!$D$61,$F$2:$G$44,2,FALSE)+ROW()-2)),\"\")","v":{"$error":"#N/A"}},{"$f":"IF(INDIRECT(\"c\" & (VLOOKUP(Switch!$D$62,$F$2:$G$44,2,FALSE)+ROW()-2))=Switch!$D$62,INDIRECT(\"a\" & (VLOOKUP(Switch!$D$62,$F$2:$G$44,2,FALSE)+ROW()-2)),\"\")","v":{"$error":"#N/A"}},{"$f":"IF(INDIRECT(\"c\" & (VLOOKUP(Switch!$D$63,$F$2:$G$44,2,FALSE)+ROW()-2))=Switch!$D$63,INDIRECT(\"a\" & (VLOOKUP(Switch!$D$63,$F$2:$G$44,2,FALSE)+ROW()-2)),\"\")","v":{"$error":"#N/A"}},{"$f":"IF(INDIRECT(\"c\" & (VLOOKUP(Switch!$D$64,$F$2:$G$44,2,FALSE)+ROW()-2))=Switch!$D$64,INDIRECT(\"a\" & (VLOOKUP(Switch!$D$64,$F$2:$G$44,2,FALSE)+ROW()-2)),\"\")","v":{"$error":"#N/A"}},{"$f":"IF(INDIRECT(\"c\" & (VLOOKUP(Switch!$D$65,$F$2:$G$44,2,FALSE)+ROW()-2))=Switch!$D$65,INDIRECT(\"a\" & (VLOOKUP(Switch!$D$65,$F$2:$G$44,2,FALSE)+ROW()-2)),\"\")","v":{"$error":"#N/A"}},{"$f":"IF(INDIRECT(\"c\" & (VLOOKUP(Switch!$D$66,$F$2:$G$44,2,FALSE)+ROW()-2))=Switch!$D$66,INDIRECT(\"a\" & (VLOOKUP(Switch!$D$66,$F$2:$G$44,2,FALSE)+ROW()-2)),\"\")","v":{"$error":"#N/A"}}]
["MET Worldwide Opportunites FoF A","MBWO","Metropolitan Collective Investments",{"$f":"ROW()","v":316},null,null,{"$f":"VLOOKUP(F316,$C$2:$D$637,2,FALSE)","v":{"$error":"#N/A"}},{"$f":"IF(INDIRECT(\"c\" & (VLOOKUP(Switch!$D$26,$F$2:$G$44,2,FALSE)+ROW()-2))=Switch!$D$26,INDIRECT(\"a\" & (VLOOKUP(Switch!$D$26,$F$2:$G$44,2,FALSE)+ROW()-2)),\"\")","v":{"$error":"#N/A"}},{"$f":"IF(INDIRECT(\"c\" & (VLOOKUP(Switch!$D$27,$F$2:$G$44,2,FALSE)+ROW()-2))=Switch!$D$27,INDIRECT(\"a\" & (VLOOKUP(Switch!$D$27,$F$2:$G$44,2,FALSE)+ROW()-2)),\"\")","v":{"$error":"#N/A"}},{"$f":"IF(INDIRECT(\"c\" & (VLOOKUP(Switch!$D$28,$F$2:$G$44,2,FALSE)+ROW()-2))=Switch!$D$28,INDIRECT(\"a\" & (VLOOKUP(Switch!$D$28,$F$2:$G$44,2,FALSE)+ROW()-2)),\"\")","v":{"$error":"#N/A"}},{"$f":"IF(INDIRECT(\"c\" & (VLOOKUP(Switch!$D$29,$F$2:$G$44,2,FALSE)+ROW()-2))=Switch!$D$29,INDIRECT(\"a\" & (VLOOKUP(Switch!$D$29,$F$2:$G$44,2,FALSE)+ROW()-2)),\"\")","v":{"$error":"#N/A"}},{"$f":"IF(INDIRECT(\"c\" & (VLOOKUP(Switch!$D$30,$F$2:$G$44,2,FALSE)+ROW()-2))=Switch!$D$30,INDIRECT(\"a\" & (VLOOKUP(Switch!$D$30,$F$2:$G$44,2,FALSE)+ROW()-2)),\"\")","v":{"$error":"#N/A"}},{"$f":"IF(INDIRECT(\"c\" & (VLOOKUP(Switch!$D$31,$F$2:$G$44,2,FALSE)+ROW()-2))=Switch!$D$31,INDIRECT(\"a\" & (VLOOKUP(Switch!$D$31,$F$2:$G$44,2,FALSE)+ROW()-2)),\"\")","v":{"$error":"#N/A"}},{"$f":"IF(INDIRECT(\"c\" & (VLOOKUP(Switch!$D$32,$F$2:$G$44,2,FALSE)+ROW()-2))=Switch!$D$32,INDIRECT(\"a\" & (VLOOKUP(Switch!$D$32,$F$2:$G$44,2,FALSE)+ROW()-2)),\"\")","v":{"$error":"#N/A"}},{"$f":"IF(INDIRECT(\"c\" & (VLOOKUP(Switch!$D$33,$F$2:$G$44,2,FALSE)+ROW()-2))=Switch!$D$33,INDIRECT(\"a\" & (VLOOKUP(Switch!$D$33,$F$2:$G$44,2,FALSE)+ROW()-2)),\"\")","v":{"$error":"#N/A"}},{"$f":"IF(INDIRECT(\"c\" & (VLOOKUP(Switch!$D$34,$F$2:$G$44,2,FALSE)+ROW()-2))=Switch!$D$34,INDIRECT(\"a\" & (VLOOKUP(Switch!$D$34,$F$2:$G$44,2,FALSE)+ROW()-2)),\"\")","v":{"$error":"#N/A"}},{"$f":"IF(INDIRECT(\"c\" & (VLOOKUP(Switch!$D$35,$F$2:$G$44,2,FALSE)+ROW()-2))=Switch!$D$35,INDIRECT(\"a\" & (VLOOKUP(Switch!$D$35,$F$2:$G$44,2,FALSE)+ROW()-2)),\"\")","v":{"$error":"#N/A"}},{"$f":"IF(INDIRECT(\"c\" & (VLOOKUP(Switch!$D$36,$F$2:$G$44,2,FALSE)+ROW()-2))=Switch!$D$36,INDIRECT(\"a\" & (VLOOKUP(Switch!$D$36,$F$2:$G$44,2,FALSE)+ROW()-2)),\"\")","v":{"$error":"#N/A"}},{"$f":"IF(INDIRECT(\"c\" & (VLOOKUP(Switch!$D$37,$F$2:$G$44,2,FALSE)+ROW()-2))=Switch!$D$37,INDIRECT(\"a\" & (VLOOKUP(Switch!$D$37,$F$2:$G$44,2,FALSE)+ROW()-2)),\"\")","v":{"$error":"#N/A"}},{"$f":"IF(INDIRECT(\"c\" & (VLOOKUP(Switch!$D$38,$F$2:$G$44,2,FALSE)+ROW()-2))=Switch!$D$38,INDIRECT(\"a\" & (VLOOKUP(Switch!$D$38,$F$2:$G$44,2,FALSE)+ROW()-2)),\"\")","v":{"$error":"#N/A"}},{"$f":"IF(INDIRECT(\"c\" & (VLOOKUP(Switch!$D$39,$F$2:$G$44,2,FALSE)+ROW()-2))=Switch!$D$39,INDIRECT(\"a\" & (VLOOKUP(Switch!$D$39,$F$2:$G$44,2,FALSE)+ROW()-2)),\"\")","v":{"$error":"#N/A"}},{"$f":"IF(INDIRECT(\"c\" & (VLOOKUP(Switch!$D$40,$F$2:$G$44,2,FALSE)+ROW()-2))=Switch!$D$40,INDIRECT(\"a\" & (VLOOKUP(Switch!$D$40,$F$2:$G$44,2,FALSE)+ROW()-2)),\"\")","v":{"$error":"#N/A"}},{"$f":"IF(INDIRECT(\"c\" & (VLOOKUP(Switch!$D$52,$F$2:$G$44,2,FALSE)+ROW()-2))=Switch!$D$52,INDIRECT(\"a\" & (VLOOKUP(Switch!$D$52,$F$2:$G$44,2,FALSE)+ROW()-2)),\"\")","v":{"$error":"#N/A"}},{"$f":"IF(INDIRECT(\"c\" & (VLOOKUP(Switch!$D$53,$F$2:$G$44,2,FALSE)+ROW()-2))=Switch!$D$53,INDIRECT(\"a\" & (VLOOKUP(Switch!$D$53,$F$2:$G$44,2,FALSE)+ROW()-2)),\"\")","v":{"$error":"#N/A"}},{"$f":"IF(INDIRECT(\"c\" & (VLOOKUP(Switch!$D$54,$F$2:$G$44,2,FALSE)+ROW()-2))=Switch!$D$54,INDIRECT(\"a\" & (VLOOKUP(Switch!$D$54,$F$2:$G$44,2,FALSE)+ROW()-2)),\"\")","v":{"$error":"#N/A"}},{"$f":"IF(INDIRECT(\"c\" & (VLOOKUP(Switch!$D$55,$F$2:$G$44,2,FALSE)+ROW()-2))=Switch!$D$55,INDIRECT(\"a\" & (VLOOKUP(Switch!$D$55,$F$2:$G$44,2,FALSE)+ROW()-2)),\"\")","v":{"$error":"#N/A"}},{"$f":"IF(INDIRECT(\"c\" & (VLOOKUP(Switch!$D$56,$F$2:$G$44,2,FALSE)+ROW()-2))=Switch!$D$56,INDIRECT(\"a\" & (VLOOKUP(Switch!$D$56,$F$2:$G$44,2,FALSE)+ROW()-2)),\"\")","v":{"$error":"#N/A"}},{"$f":"IF(INDIRECT(\"c\" & (VLOOKUP(Switch!$D$57,$F$2:$G$44,2,FALSE)+ROW()-2))=Switch!$D$57,INDIRECT(\"a\" & (VLOOKUP(Switch!$D$57,$F$2:$G$44,2,FALSE)+ROW()-2)),\"\")","v":{"$error":"#N/A"}},{"$f":"IF(INDIRECT(\"c\" & (VLOOKUP(Switch!$D$58,$F$2:$G$44,2,FALSE)+ROW()-2))=Switch!$D$58,INDIRECT(\"a\" & (VLOOKUP(Switch!$D$58,$F$2:$G$44,2,FALSE)+ROW()-2)),\"\")","v":{"$error":"#N/A"}},{"$f":"IF(INDIRECT(\"c\" & (VLOOKUP(Switch!$D$59,$F$2:$G$44,2,FALSE)+ROW()-2))=Switch!$D$59,INDIRECT(\"a\" & (VLOOKUP(Switch!$D$59,$F$2:$G$44,2,FALSE)+ROW()-2)),\"\")","v":{"$error":"#N/A"}},{"$f":"IF(INDIRECT(\"c\" & (VLOOKUP(Switch!$D$60,$F$2:$G$44,2,FALSE)+ROW()-2))=Switch!$D$60,INDIRECT(\"a\" & (VLOOKUP(Switch!$D$60,$F$2:$G$44,2,FALSE)+ROW()-2)),\"\")","v":{"$error":"#N/A"}},{"$f":"IF(INDIRECT(\"c\" & (VLOOKUP(Switch!$D$61,$F$2:$G$44,2,FALSE)+ROW()-2))=Switch!$D$61,INDIRECT(\"a\" & (VLOOKUP(Switch!$D$61,$F$2:$G$44,2,FALSE)+ROW()-2)),\"\")","v":{"$error":"#N/A"}},{"$f":"IF(INDIRECT(\"c\" & (VLOOKUP(Switch!$D$62,$F$2:$G$44,2,FALSE)+ROW()-2))=Switch!$D$62,INDIRECT(\"a\" & (VLOOKUP(Switch!$D$62,$F$2:$G$44,2,FALSE)+ROW()-2)),\"\")","v":{"$error":"#N/A"}},{"$f":"IF(INDIRECT(\"c\" & (VLOOKUP(Switch!$D$63,$F$2:$G$44,2,FALSE)+ROW()-2))=Switch!$D$63,INDIRECT(\"a\" & (VLOOKUP(Switch!$D$63,$F$2:$G$44,2,FALSE)+ROW()-2)),\"\")","v":{"$error":"#N/A"}},{"$f":"IF(INDIRECT(\"c\" & (VLOOKUP(Switch!$D$64,$F$2:$G$44,2,FALSE)+ROW()-2))=Switch!$D$64,INDIRECT(\"a\" & (VLOOKUP(Switch!$D$64,$F$2:$G$44,2,FALSE)+ROW()-2)),\"\")","v":{"$error":"#N/A"}},{"$f":"IF(INDIRECT(\"c\" & (VLOOKUP(Switch!$D$65,$F$2:$G$44,2,FALSE)+ROW()-2))=Switch!$D$65,INDIRECT(\"a\" & (VLOOKUP(Switch!$D$65,$F$2:$G$44,2,FALSE)+ROW()-2)),\"\")","v":{"$error":"#N/A"}},{"$f":"IF(INDIRECT(\"c\" & (VLOOKUP(Switch!$D$66,$F$2:$G$44,2,FALSE)+ROW()-2))=Switch!$D$66,INDIRECT(\"a\" & (VLOOKUP(Switch!$D$66,$F$2:$G$44,2,FALSE)+ROW()-2)),\"\")","v":{"$error":"#N/A"}}]
["Met Income Plus Fund C","MIPCC","Metropolitan Collective Investments",{"$f":"ROW()","v":317},null,null,{"$f":"VLOOKUP(F317,$C$2:$D$637,2,FALSE)","v":{"$error":"#N/A"}},{"$f":"IF(INDIRECT(\"c\" & (VLOOKUP(Switch!$D$26,$F$2:$G$44,2,FALSE)+ROW()-2))=Switch!$D$26,INDIRECT(\"a\" & (VLOOKUP(Switch!$D$26,$F$2:$G$44,2,FALSE)+ROW()-2)),\"\")","v":{"$error":"#N/A"}},{"$f":"IF(INDIRECT(\"c\" & (VLOOKUP(Switch!$D$27,$F$2:$G$44,2,FALSE)+ROW()-2))=Switch!$D$27,INDIRECT(\"a\" & (VLOOKUP(Switch!$D$27,$F$2:$G$44,2,FALSE)+ROW()-2)),\"\")","v":{"$error":"#N/A"}},{"$f":"IF(INDIRECT(\"c\" & (VLOOKUP(Switch!$D$28,$F$2:$G$44,2,FALSE)+ROW()-2))=Switch!$D$28,INDIRECT(\"a\" & (VLOOKUP(Switch!$D$28,$F$2:$G$44,2,FALSE)+ROW()-2)),\"\")","v":{"$error":"#N/A"}},{"$f":"IF(INDIRECT(\"c\" & (VLOOKUP(Switch!$D$29,$F$2:$G$44,2,FALSE)+ROW()-2))=Switch!$D$29,INDIRECT(\"a\" & (VLOOKUP(Switch!$D$29,$F$2:$G$44,2,FALSE)+ROW()-2)),\"\")","v":{"$error":"#N/A"}},{"$f":"IF(INDIRECT(\"c\" & (VLOOKUP(Switch!$D$30,$F$2:$G$44,2,FALSE)+ROW()-2))=Switch!$D$30,INDIRECT(\"a\" & (VLOOKUP(Switch!$D$30,$F$2:$G$44,2,FALSE)+ROW()-2)),\"\")","v":{"$error":"#N/A"}},{"$f":"IF(INDIRECT(\"c\" & (VLOOKUP(Switch!$D$31,$F$2:$G$44,2,FALSE)+ROW()-2))=Switch!$D$31,INDIRECT(\"a\" & (VLOOKUP(Switch!$D$31,$F$2:$G$44,2,FALSE)+ROW()-2)),\"\")","v":{"$error":"#N/A"}},{"$f":"IF(INDIRECT(\"c\" & (VLOOKUP(Switch!$D$32,$F$2:$G$44,2,FALSE)+ROW()-2))=Switch!$D$32,INDIRECT(\"a\" & (VLOOKUP(Switch!$D$32,$F$2:$G$44,2,FALSE)+ROW()-2)),\"\")","v":{"$error":"#N/A"}},{"$f":"IF(INDIRECT(\"c\" & (VLOOKUP(Switch!$D$33,$F$2:$G$44,2,FALSE)+ROW()-2))=Switch!$D$33,INDIRECT(\"a\" & (VLOOKUP(Switch!$D$33,$F$2:$G$44,2,FALSE)+ROW()-2)),\"\")","v":{"$error":"#N/A"}},{"$f":"IF(INDIRECT(\"c\" & (VLOOKUP(Switch!$D$34,$F$2:$G$44,2,FALSE)+ROW()-2))=Switch!$D$34,INDIRECT(\"a\" & (VLOOKUP(Switch!$D$34,$F$2:$G$44,2,FALSE)+ROW()-2)),\"\")","v":{"$error":"#N/A"}},{"$f":"IF(INDIRECT(\"c\" & (VLOOKUP(Switch!$D$35,$F$2:$G$44,2,FALSE)+ROW()-2))=Switch!$D$35,INDIRECT(\"a\" & (VLOOKUP(Switch!$D$35,$F$2:$G$44,2,FALSE)+ROW()-2)),\"\")","v":{"$error":"#N/A"}},{"$f":"IF(INDIRECT(\"c\" & (VLOOKUP(Switch!$D$36,$F$2:$G$44,2,FALSE)+ROW()-2))=Switch!$D$36,INDIRECT(\"a\" & (VLOOKUP(Switch!$D$36,$F$2:$G$44,2,FALSE)+ROW()-2)),\"\")","v":{"$error":"#N/A"}},{"$f":"IF(INDIRECT(\"c\" & (VLOOKUP(Switch!$D$37,$F$2:$G$44,2,FALSE)+ROW()-2))=Switch!$D$37,INDIRECT(\"a\" & (VLOOKUP(Switch!$D$37,$F$2:$G$44,2,FALSE)+ROW()-2)),\"\")","v":{"$error":"#N/A"}},{"$f":"IF(INDIRECT(\"c\" & (VLOOKUP(Switch!$D$38,$F$2:$G$44,2,FALSE)+ROW()-2))=Switch!$D$38,INDIRECT(\"a\" & (VLOOKUP(Switch!$D$38,$F$2:$G$44,2,FALSE)+ROW()-2)),\"\")","v":{"$error":"#N/A"}},{"$f":"IF(INDIRECT(\"c\" & (VLOOKUP(Switch!$D$39,$F$2:$G$44,2,FALSE)+ROW()-2))=Switch!$D$39,INDIRECT(\"a\" & (VLOOKUP(Switch!$D$39,$F$2:$G$44,2,FALSE)+ROW()-2)),\"\")","v":{"$error":"#N/A"}},{"$f":"IF(INDIRECT(\"c\" & (VLOOKUP(Switch!$D$40,$F$2:$G$44,2,FALSE)+ROW()-2))=Switch!$D$40,INDIRECT(\"a\" & (VLOOKUP(Switch!$D$40,$F$2:$G$44,2,FALSE)+ROW()-2)),\"\")","v":{"$error":"#N/A"}},{"$f":"IF(INDIRECT(\"c\" & (VLOOKUP(Switch!$D$52,$F$2:$G$44,2,FALSE)+ROW()-2))=Switch!$D$52,INDIRECT(\"a\" & (VLOOKUP(Switch!$D$52,$F$2:$G$44,2,FALSE)+ROW()-2)),\"\")","v":{"$error":"#N/A"}},{"$f":"IF(INDIRECT(\"c\" & (VLOOKUP(Switch!$D$53,$F$2:$G$44,2,FALSE)+ROW()-2))=Switch!$D$53,INDIRECT(\"a\" & (VLOOKUP(Switch!$D$53,$F$2:$G$44,2,FALSE)+ROW()-2)),\"\")","v":{"$error":"#N/A"}},{"$f":"IF(INDIRECT(\"c\" & (VLOOKUP(Switch!$D$54,$F$2:$G$44,2,FALSE)+ROW()-2))=Switch!$D$54,INDIRECT(\"a\" & (VLOOKUP(Switch!$D$54,$F$2:$G$44,2,FALSE)+ROW()-2)),\"\")","v":{"$error":"#N/A"}},{"$f":"IF(INDIRECT(\"c\" & (VLOOKUP(Switch!$D$55,$F$2:$G$44,2,FALSE)+ROW()-2))=Switch!$D$55,INDIRECT(\"a\" & (VLOOKUP(Switch!$D$55,$F$2:$G$44,2,FALSE)+ROW()-2)),\"\")","v":{"$error":"#N/A"}},{"$f":"IF(INDIRECT(\"c\" & (VLOOKUP(Switch!$D$56,$F$2:$G$44,2,FALSE)+ROW()-2))=Switch!$D$56,INDIRECT(\"a\" & (VLOOKUP(Switch!$D$56,$F$2:$G$44,2,FALSE)+ROW()-2)),\"\")","v":{"$error":"#N/A"}},{"$f":"IF(INDIRECT(\"c\" & (VLOOKUP(Switch!$D$57,$F$2:$G$44,2,FALSE)+ROW()-2))=Switch!$D$57,INDIRECT(\"a\" & (VLOOKUP(Switch!$D$57,$F$2:$G$44,2,FALSE)+ROW()-2)),\"\")","v":{"$error":"#N/A"}},{"$f":"IF(INDIRECT(\"c\" & (VLOOKUP(Switch!$D$58,$F$2:$G$44,2,FALSE)+ROW()-2))=Switch!$D$58,INDIRECT(\"a\" & (VLOOKUP(Switch!$D$58,$F$2:$G$44,2,FALSE)+ROW()-2)),\"\")","v":{"$error":"#N/A"}},{"$f":"IF(INDIRECT(\"c\" & (VLOOKUP(Switch!$D$59,$F$2:$G$44,2,FALSE)+ROW()-2))=Switch!$D$59,INDIRECT(\"a\" & (VLOOKUP(Switch!$D$59,$F$2:$G$44,2,FALSE)+ROW()-2)),\"\")","v":{"$error":"#N/A"}},{"$f":"IF(INDIRECT(\"c\" & (VLOOKUP(Switch!$D$60,$F$2:$G$44,2,FALSE)+ROW()-2))=Switch!$D$60,INDIRECT(\"a\" & (VLOOKUP(Switch!$D$60,$F$2:$G$44,2,FALSE)+ROW()-2)),\"\")","v":{"$error":"#N/A"}},{"$f":"IF(INDIRECT(\"c\" & (VLOOKUP(Switch!$D$61,$F$2:$G$44,2,FALSE)+ROW()-2))=Switch!$D$61,INDIRECT(\"a\" & (VLOOKUP(Switch!$D$61,$F$2:$G$44,2,FALSE)+ROW()-2)),\"\")","v":{"$error":"#N/A"}},{"$f":"IF(INDIRECT(\"c\" & (VLOOKUP(Switch!$D$62,$F$2:$G$44,2,FALSE)+ROW()-2))=Switch!$D$62,INDIRECT(\"a\" & (VLOOKUP(Switch!$D$62,$F$2:$G$44,2,FALSE)+ROW()-2)),\"\")","v":{"$error":"#N/A"}},{"$f":"IF(INDIRECT(\"c\" & (VLOOKUP(Switch!$D$63,$F$2:$G$44,2,FALSE)+ROW()-2))=Switch!$D$63,INDIRECT(\"a\" & (VLOOKUP(Switch!$D$63,$F$2:$G$44,2,FALSE)+ROW()-2)),\"\")","v":{"$error":"#N/A"}},{"$f":"IF(INDIRECT(\"c\" & (VLOOKUP(Switch!$D$64,$F$2:$G$44,2,FALSE)+ROW()-2))=Switch!$D$64,INDIRECT(\"a\" & (VLOOKUP(Switch!$D$64,$F$2:$G$44,2,FALSE)+ROW()-2)),\"\")","v":{"$error":"#N/A"}},{"$f":"IF(INDIRECT(\"c\" & (VLOOKUP(Switch!$D$65,$F$2:$G$44,2,FALSE)+ROW()-2))=Switch!$D$65,INDIRECT(\"a\" & (VLOOKUP(Switch!$D$65,$F$2:$G$44,2,FALSE)+ROW()-2)),\"\")","v":{"$error":"#N/A"}},{"$f":"IF(INDIRECT(\"c\" & (VLOOKUP(Switch!$D$66,$F$2:$G$44,2,FALSE)+ROW()-2))=Switch!$D$66,INDIRECT(\"a\" & (VLOOKUP(Switch!$D$66,$F$2:$G$44,2,FALSE)+ROW()-2)),\"\")","v":{"$error":"#N/A"}}]
["Truffle MET Balanced Fund B","TRBCB","Metropolitan Collective Investments",{"$f":"ROW()","v":318},null,null,{"$f":"VLOOKUP(F318,$C$2:$D$637,2,FALSE)","v":{"$error":"#N/A"}},{"$f":"IF(INDIRECT(\"c\" & (VLOOKUP(Switch!$D$26,$F$2:$G$44,2,FALSE)+ROW()-2))=Switch!$D$26,INDIRECT(\"a\" & (VLOOKUP(Switch!$D$26,$F$2:$G$44,2,FALSE)+ROW()-2)),\"\")","v":{"$error":"#N/A"}},{"$f":"IF(INDIRECT(\"c\" & (VLOOKUP(Switch!$D$27,$F$2:$G$44,2,FALSE)+ROW()-2))=Switch!$D$27,INDIRECT(\"a\" & (VLOOKUP(Switch!$D$27,$F$2:$G$44,2,FALSE)+ROW()-2)),\"\")","v":{"$error":"#N/A"}},{"$f":"IF(INDIRECT(\"c\" & (VLOOKUP(Switch!$D$28,$F$2:$G$44,2,FALSE)+ROW()-2))=Switch!$D$28,INDIRECT(\"a\" & (VLOOKUP(Switch!$D$28,$F$2:$G$44,2,FALSE)+ROW()-2)),\"\")","v":{"$error":"#N/A"}},{"$f":"IF(INDIRECT(\"c\" & (VLOOKUP(Switch!$D$29,$F$2:$G$44,2,FALSE)+ROW()-2))=Switch!$D$29,INDIRECT(\"a\" & (VLOOKUP(Switch!$D$29,$F$2:$G$44,2,FALSE)+ROW()-2)),\"\")","v":{"$error":"#N/A"}},{"$f":"IF(INDIRECT(\"c\" & (VLOOKUP(Switch!$D$30,$F$2:$G$44,2,FALSE)+ROW()-2))=Switch!$D$30,INDIRECT(\"a\" & (VLOOKUP(Switch!$D$30,$F$2:$G$44,2,FALSE)+ROW()-2)),\"\")","v":{"$error":"#N/A"}},{"$f":"IF(INDIRECT(\"c\" & (VLOOKUP(Switch!$D$31,$F$2:$G$44,2,FALSE)+ROW()-2))=Switch!$D$31,INDIRECT(\"a\" & (VLOOKUP(Switch!$D$31,$F$2:$G$44,2,FALSE)+ROW()-2)),\"\")","v":{"$error":"#N/A"}},{"$f":"IF(INDIRECT(\"c\" & (VLOOKUP(Switch!$D$32,$F$2:$G$44,2,FALSE)+ROW()-2))=Switch!$D$32,INDIRECT(\"a\" & (VLOOKUP(Switch!$D$32,$F$2:$G$44,2,FALSE)+ROW()-2)),\"\")","v":{"$error":"#N/A"}},{"$f":"IF(INDIRECT(\"c\" & (VLOOKUP(Switch!$D$33,$F$2:$G$44,2,FALSE)+ROW()-2))=Switch!$D$33,INDIRECT(\"a\" & (VLOOKUP(Switch!$D$33,$F$2:$G$44,2,FALSE)+ROW()-2)),\"\")","v":{"$error":"#N/A"}},{"$f":"IF(INDIRECT(\"c\" & (VLOOKUP(Switch!$D$34,$F$2:$G$44,2,FALSE)+ROW()-2))=Switch!$D$34,INDIRECT(\"a\" & (VLOOKUP(Switch!$D$34,$F$2:$G$44,2,FALSE)+ROW()-2)),\"\")","v":{"$error":"#N/A"}},{"$f":"IF(INDIRECT(\"c\" & (VLOOKUP(Switch!$D$35,$F$2:$G$44,2,FALSE)+ROW()-2))=Switch!$D$35,INDIRECT(\"a\" & (VLOOKUP(Switch!$D$35,$F$2:$G$44,2,FALSE)+ROW()-2)),\"\")","v":{"$error":"#N/A"}},{"$f":"IF(INDIRECT(\"c\" & (VLOOKUP(Switch!$D$36,$F$2:$G$44,2,FALSE)+ROW()-2))=Switch!$D$36,INDIRECT(\"a\" & (VLOOKUP(Switch!$D$36,$F$2:$G$44,2,FALSE)+ROW()-2)),\"\")","v":{"$error":"#N/A"}},{"$f":"IF(INDIRECT(\"c\" & (VLOOKUP(Switch!$D$37,$F$2:$G$44,2,FALSE)+ROW()-2))=Switch!$D$37,INDIRECT(\"a\" & (VLOOKUP(Switch!$D$37,$F$2:$G$44,2,FALSE)+ROW()-2)),\"\")","v":{"$error":"#N/A"}},{"$f":"IF(INDIRECT(\"c\" & (VLOOKUP(Switch!$D$38,$F$2:$G$44,2,FALSE)+ROW()-2))=Switch!$D$38,INDIRECT(\"a\" & (VLOOKUP(Switch!$D$38,$F$2:$G$44,2,FALSE)+ROW()-2)),\"\")","v":{"$error":"#N/A"}},{"$f":"IF(INDIRECT(\"c\" & (VLOOKUP(Switch!$D$39,$F$2:$G$44,2,FALSE)+ROW()-2))=Switch!$D$39,INDIRECT(\"a\" & (VLOOKUP(Switch!$D$39,$F$2:$G$44,2,FALSE)+ROW()-2)),\"\")","v":{"$error":"#N/A"}},{"$f":"IF(INDIRECT(\"c\" & (VLOOKUP(Switch!$D$40,$F$2:$G$44,2,FALSE)+ROW()-2))=Switch!$D$40,INDIRECT(\"a\" & (VLOOKUP(Switch!$D$40,$F$2:$G$44,2,FALSE)+ROW()-2)),\"\")","v":{"$error":"#N/A"}},{"$f":"IF(INDIRECT(\"c\" & (VLOOKUP(Switch!$D$52,$F$2:$G$44,2,FALSE)+ROW()-2))=Switch!$D$52,INDIRECT(\"a\" & (VLOOKUP(Switch!$D$52,$F$2:$G$44,2,FALSE)+ROW()-2)),\"\")","v":{"$error":"#N/A"}},{"$f":"IF(INDIRECT(\"c\" & (VLOOKUP(Switch!$D$53,$F$2:$G$44,2,FALSE)+ROW()-2))=Switch!$D$53,INDIRECT(\"a\" & (VLOOKUP(Switch!$D$53,$F$2:$G$44,2,FALSE)+ROW()-2)),\"\")","v":{"$error":"#N/A"}},{"$f":"IF(INDIRECT(\"c\" & (VLOOKUP(Switch!$D$54,$F$2:$G$44,2,FALSE)+ROW()-2))=Switch!$D$54,INDIRECT(\"a\" & (VLOOKUP(Switch!$D$54,$F$2:$G$44,2,FALSE)+ROW()-2)),\"\")","v":{"$error":"#N/A"}},{"$f":"IF(INDIRECT(\"c\" & (VLOOKUP(Switch!$D$55,$F$2:$G$44,2,FALSE)+ROW()-2))=Switch!$D$55,INDIRECT(\"a\" & (VLOOKUP(Switch!$D$55,$F$2:$G$44,2,FALSE)+ROW()-2)),\"\")","v":{"$error":"#N/A"}},{"$f":"IF(INDIRECT(\"c\" & (VLOOKUP(Switch!$D$56,$F$2:$G$44,2,FALSE)+ROW()-2))=Switch!$D$56,INDIRECT(\"a\" & (VLOOKUP(Switch!$D$56,$F$2:$G$44,2,FALSE)+ROW()-2)),\"\")","v":{"$error":"#N/A"}},{"$f":"IF(INDIRECT(\"c\" & (VLOOKUP(Switch!$D$57,$F$2:$G$44,2,FALSE)+ROW()-2))=Switch!$D$57,INDIRECT(\"a\" & (VLOOKUP(Switch!$D$57,$F$2:$G$44,2,FALSE)+ROW()-2)),\"\")","v":{"$error":"#N/A"}},{"$f":"IF(INDIRECT(\"c\" & (VLOOKUP(Switch!$D$58,$F$2:$G$44,2,FALSE)+ROW()-2))=Switch!$D$58,INDIRECT(\"a\" & (VLOOKUP(Switch!$D$58,$F$2:$G$44,2,FALSE)+ROW()-2)),\"\")","v":{"$error":"#N/A"}},{"$f":"IF(INDIRECT(\"c\" & (VLOOKUP(Switch!$D$59,$F$2:$G$44,2,FALSE)+ROW()-2))=Switch!$D$59,INDIRECT(\"a\" & (VLOOKUP(Switch!$D$59,$F$2:$G$44,2,FALSE)+ROW()-2)),\"\")","v":{"$error":"#N/A"}},{"$f":"IF(INDIRECT(\"c\" & (VLOOKUP(Switch!$D$60,$F$2:$G$44,2,FALSE)+ROW()-2))=Switch!$D$60,INDIRECT(\"a\" & (VLOOKUP(Switch!$D$60,$F$2:$G$44,2,FALSE)+ROW()-2)),\"\")","v":{"$error":"#N/A"}},{"$f":"IF(INDIRECT(\"c\" & (VLOOKUP(Switch!$D$61,$F$2:$G$44,2,FALSE)+ROW()-2))=Switch!$D$61,INDIRECT(\"a\" & (VLOOKUP(Switch!$D$61,$F$2:$G$44,2,FALSE)+ROW()-2)),\"\")","v":{"$error":"#N/A"}},{"$f":"IF(INDIRECT(\"c\" & (VLOOKUP(Switch!$D$62,$F$2:$G$44,2,FALSE)+ROW()-2))=Switch!$D$62,INDIRECT(\"a\" & (VLOOKUP(Switch!$D$62,$F$2:$G$44,2,FALSE)+ROW()-2)),\"\")","v":{"$error":"#N/A"}},{"$f":"IF(INDIRECT(\"c\" & (VLOOKUP(Switch!$D$63,$F$2:$G$44,2,FALSE)+ROW()-2))=Switch!$D$63,INDIRECT(\"a\" & (VLOOKUP(Switch!$D$63,$F$2:$G$44,2,FALSE)+ROW()-2)),\"\")","v":{"$error":"#N/A"}},{"$f":"IF(INDIRECT(\"c\" & (VLOOKUP(Switch!$D$64,$F$2:$G$44,2,FALSE)+ROW()-2))=Switch!$D$64,INDIRECT(\"a\" & (VLOOKUP(Switch!$D$64,$F$2:$G$44,2,FALSE)+ROW()-2)),\"\")","v":{"$error":"#N/A"}},{"$f":"IF(INDIRECT(\"c\" & (VLOOKUP(Switch!$D$65,$F$2:$G$44,2,FALSE)+ROW()-2))=Switch!$D$65,INDIRECT(\"a\" & (VLOOKUP(Switch!$D$65,$F$2:$G$44,2,FALSE)+ROW()-2)),\"\")","v":{"$error":"#N/A"}},{"$f":"IF(INDIRECT(\"c\" & (VLOOKUP(Switch!$D$66,$F$2:$G$44,2,FALSE)+ROW()-2))=Switch!$D$66,INDIRECT(\"a\" & (VLOOKUP(Switch!$D$66,$F$2:$G$44,2,FALSE)+ROW()-2)),\"\")","v":{"$error":"#N/A"}}]
["Truffle MET Flexible Fund C","TRFCC","Metropolitan Collective Investments",{"$f":"ROW()","v":319},null,null,{"$f":"VLOOKUP(F319,$C$2:$D$637,2,FALSE)","v":{"$error":"#N/A"}},{"$f":"IF(INDIRECT(\"c\" & (VLOOKUP(Switch!$D$26,$F$2:$G$44,2,FALSE)+ROW()-2))=Switch!$D$26,INDIRECT(\"a\" & (VLOOKUP(Switch!$D$26,$F$2:$G$44,2,FALSE)+ROW()-2)),\"\")","v":{"$error":"#N/A"}},{"$f":"IF(INDIRECT(\"c\" & (VLOOKUP(Switch!$D$27,$F$2:$G$44,2,FALSE)+ROW()-2))=Switch!$D$27,INDIRECT(\"a\" & (VLOOKUP(Switch!$D$27,$F$2:$G$44,2,FALSE)+ROW()-2)),\"\")","v":{"$error":"#N/A"}},{"$f":"IF(INDIRECT(\"c\" & (VLOOKUP(Switch!$D$28,$F$2:$G$44,2,FALSE)+ROW()-2))=Switch!$D$28,INDIRECT(\"a\" & (VLOOKUP(Switch!$D$28,$F$2:$G$44,2,FALSE)+ROW()-2)),\"\")","v":{"$error":"#N/A"}},{"$f":"IF(INDIRECT(\"c\" & (VLOOKUP(Switch!$D$29,$F$2:$G$44,2,FALSE)+ROW()-2))=Switch!$D$29,INDIRECT(\"a\" & (VLOOKUP(Switch!$D$29,$F$2:$G$44,2,FALSE)+ROW()-2)),\"\")","v":{"$error":"#N/A"}},{"$f":"IF(INDIRECT(\"c\" & (VLOOKUP(Switch!$D$30,$F$2:$G$44,2,FALSE)+ROW()-2))=Switch!$D$30,INDIRECT(\"a\" & (VLOOKUP(Switch!$D$30,$F$2:$G$44,2,FALSE)+ROW()-2)),\"\")","v":{"$error":"#N/A"}},{"$f":"IF(INDIRECT(\"c\" & (VLOOKUP(Switch!$D$31,$F$2:$G$44,2,FALSE)+ROW()-2))=Switch!$D$31,INDIRECT(\"a\" & (VLOOKUP(Switch!$D$31,$F$2:$G$44,2,FALSE)+ROW()-2)),\"\")","v":{"$error":"#N/A"}},{"$f":"IF(INDIRECT(\"c\" & (VLOOKUP(Switch!$D$32,$F$2:$G$44,2,FALSE)+ROW()-2))=Switch!$D$32,INDIRECT(\"a\" & (VLOOKUP(Switch!$D$32,$F$2:$G$44,2,FALSE)+ROW()-2)),\"\")","v":{"$error":"#N/A"}},{"$f":"IF(INDIRECT(\"c\" & (VLOOKUP(Switch!$D$33,$F$2:$G$44,2,FALSE)+ROW()-2))=Switch!$D$33,INDIRECT(\"a\" & (VLOOKUP(Switch!$D$33,$F$2:$G$44,2,FALSE)+ROW()-2)),\"\")","v":{"$error":"#N/A"}},{"$f":"IF(INDIRECT(\"c\" & (VLOOKUP(Switch!$D$34,$F$2:$G$44,2,FALSE)+ROW()-2))=Switch!$D$34,INDIRECT(\"a\" & (VLOOKUP(Switch!$D$34,$F$2:$G$44,2,FALSE)+ROW()-2)),\"\")","v":{"$error":"#N/A"}},{"$f":"IF(INDIRECT(\"c\" & (VLOOKUP(Switch!$D$35,$F$2:$G$44,2,FALSE)+ROW()-2))=Switch!$D$35,INDIRECT(\"a\" & (VLOOKUP(Switch!$D$35,$F$2:$G$44,2,FALSE)+ROW()-2)),\"\")","v":{"$error":"#N/A"}},{"$f":"IF(INDIRECT(\"c\" & (VLOOKUP(Switch!$D$36,$F$2:$G$44,2,FALSE)+ROW()-2))=Switch!$D$36,INDIRECT(\"a\" & (VLOOKUP(Switch!$D$36,$F$2:$G$44,2,FALSE)+ROW()-2)),\"\")","v":{"$error":"#N/A"}},{"$f":"IF(INDIRECT(\"c\" & (VLOOKUP(Switch!$D$37,$F$2:$G$44,2,FALSE)+ROW()-2))=Switch!$D$37,INDIRECT(\"a\" & (VLOOKUP(Switch!$D$37,$F$2:$G$44,2,FALSE)+ROW()-2)),\"\")","v":{"$error":"#N/A"}},{"$f":"IF(INDIRECT(\"c\" & (VLOOKUP(Switch!$D$38,$F$2:$G$44,2,FALSE)+ROW()-2))=Switch!$D$38,INDIRECT(\"a\" & (VLOOKUP(Switch!$D$38,$F$2:$G$44,2,FALSE)+ROW()-2)),\"\")","v":{"$error":"#N/A"}},{"$f":"IF(INDIRECT(\"c\" & (VLOOKUP(Switch!$D$39,$F$2:$G$44,2,FALSE)+ROW()-2))=Switch!$D$39,INDIRECT(\"a\" & (VLOOKUP(Switch!$D$39,$F$2:$G$44,2,FALSE)+ROW()-2)),\"\")","v":{"$error":"#N/A"}},{"$f":"IF(INDIRECT(\"c\" & (VLOOKUP(Switch!$D$40,$F$2:$G$44,2,FALSE)+ROW()-2))=Switch!$D$40,INDIRECT(\"a\" & (VLOOKUP(Switch!$D$40,$F$2:$G$44,2,FALSE)+ROW()-2)),\"\")","v":{"$error":"#N/A"}},{"$f":"IF(INDIRECT(\"c\" & (VLOOKUP(Switch!$D$52,$F$2:$G$44,2,FALSE)+ROW()-2))=Switch!$D$52,INDIRECT(\"a\" & (VLOOKUP(Switch!$D$52,$F$2:$G$44,2,FALSE)+ROW()-2)),\"\")","v":{"$error":"#N/A"}},{"$f":"IF(INDIRECT(\"c\" & (VLOOKUP(Switch!$D$53,$F$2:$G$44,2,FALSE)+ROW()-2))=Switch!$D$53,INDIRECT(\"a\" & (VLOOKUP(Switch!$D$53,$F$2:$G$44,2,FALSE)+ROW()-2)),\"\")","v":{"$error":"#N/A"}},{"$f":"IF(INDIRECT(\"c\" & (VLOOKUP(Switch!$D$54,$F$2:$G$44,2,FALSE)+ROW()-2))=Switch!$D$54,INDIRECT(\"a\" & (VLOOKUP(Switch!$D$54,$F$2:$G$44,2,FALSE)+ROW()-2)),\"\")","v":{"$error":"#N/A"}},{"$f":"IF(INDIRECT(\"c\" & (VLOOKUP(Switch!$D$55,$F$2:$G$44,2,FALSE)+ROW()-2))=Switch!$D$55,INDIRECT(\"a\" & (VLOOKUP(Switch!$D$55,$F$2:$G$44,2,FALSE)+ROW()-2)),\"\")","v":{"$error":"#N/A"}},{"$f":"IF(INDIRECT(\"c\" & (VLOOKUP(Switch!$D$56,$F$2:$G$44,2,FALSE)+ROW()-2))=Switch!$D$56,INDIRECT(\"a\" & (VLOOKUP(Switch!$D$56,$F$2:$G$44,2,FALSE)+ROW()-2)),\"\")","v":{"$error":"#N/A"}},{"$f":"IF(INDIRECT(\"c\" & (VLOOKUP(Switch!$D$57,$F$2:$G$44,2,FALSE)+ROW()-2))=Switch!$D$57,INDIRECT(\"a\" & (VLOOKUP(Switch!$D$57,$F$2:$G$44,2,FALSE)+ROW()-2)),\"\")","v":{"$error":"#N/A"}},{"$f":"IF(INDIRECT(\"c\" & (VLOOKUP(Switch!$D$58,$F$2:$G$44,2,FALSE)+ROW()-2))=Switch!$D$58,INDIRECT(\"a\" & (VLOOKUP(Switch!$D$58,$F$2:$G$44,2,FALSE)+ROW()-2)),\"\")","v":{"$error":"#N/A"}},{"$f":"IF(INDIRECT(\"c\" & (VLOOKUP(Switch!$D$59,$F$2:$G$44,2,FALSE)+ROW()-2))=Switch!$D$59,INDIRECT(\"a\" & (VLOOKUP(Switch!$D$59,$F$2:$G$44,2,FALSE)+ROW()-2)),\"\")","v":{"$error":"#N/A"}},{"$f":"IF(INDIRECT(\"c\" & (VLOOKUP(Switch!$D$60,$F$2:$G$44,2,FALSE)+ROW()-2))=Switch!$D$60,INDIRECT(\"a\" & (VLOOKUP(Switch!$D$60,$F$2:$G$44,2,FALSE)+ROW()-2)),\"\")","v":{"$error":"#N/A"}},{"$f":"IF(INDIRECT(\"c\" & (VLOOKUP(Switch!$D$61,$F$2:$G$44,2,FALSE)+ROW()-2))=Switch!$D$61,INDIRECT(\"a\" & (VLOOKUP(Switch!$D$61,$F$2:$G$44,2,FALSE)+ROW()-2)),\"\")","v":{"$error":"#N/A"}},{"$f":"IF(INDIRECT(\"c\" & (VLOOKUP(Switch!$D$62,$F$2:$G$44,2,FALSE)+ROW()-2))=Switch!$D$62,INDIRECT(\"a\" & (VLOOKUP(Switch!$D$62,$F$2:$G$44,2,FALSE)+ROW()-2)),\"\")","v":{"$error":"#N/A"}},{"$f":"IF(INDIRECT(\"c\" & (VLOOKUP(Switch!$D$63,$F$2:$G$44,2,FALSE)+ROW()-2))=Switch!$D$63,INDIRECT(\"a\" & (VLOOKUP(Switch!$D$63,$F$2:$G$44,2,FALSE)+ROW()-2)),\"\")","v":{"$error":"#N/A"}},{"$f":"IF(INDIRECT(\"c\" & (VLOOKUP(Switch!$D$64,$F$2:$G$44,2,FALSE)+ROW()-2))=Switch!$D$64,INDIRECT(\"a\" & (VLOOKUP(Switch!$D$64,$F$2:$G$44,2,FALSE)+ROW()-2)),\"\")","v":{"$error":"#N/A"}},{"$f":"IF(INDIRECT(\"c\" & (VLOOKUP(Switch!$D$65,$F$2:$G$44,2,FALSE)+ROW()-2))=Switch!$D$65,INDIRECT(\"a\" & (VLOOKUP(Switch!$D$65,$F$2:$G$44,2,FALSE)+ROW()-2)),\"\")","v":{"$error":"#N/A"}},{"$f":"IF(INDIRECT(\"c\" & (VLOOKUP(Switch!$D$66,$F$2:$G$44,2,FALSE)+ROW()-2))=Switch!$D$66,INDIRECT(\"a\" & (VLOOKUP(Switch!$D$66,$F$2:$G$44,2,FALSE)+ROW()-2)),\"\")","v":{"$error":"#N/A"}}]
["Truffle MET General Equity Fund C","TRGEC","Metropolitan Collective Investments",{"$f":"ROW()","v":320},null,null,{"$f":"VLOOKUP(F320,$C$2:$D$637,2,FALSE)","v":{"$error":"#N/A"}},{"$f":"IF(INDIRECT(\"c\" & (VLOOKUP(Switch!$D$26,$F$2:$G$44,2,FALSE)+ROW()-2))=Switch!$D$26,INDIRECT(\"a\" & (VLOOKUP(Switch!$D$26,$F$2:$G$44,2,FALSE)+ROW()-2)),\"\")","v":{"$error":"#N/A"}},{"$f":"IF(INDIRECT(\"c\" & (VLOOKUP(Switch!$D$27,$F$2:$G$44,2,FALSE)+ROW()-2))=Switch!$D$27,INDIRECT(\"a\" & (VLOOKUP(Switch!$D$27,$F$2:$G$44,2,FALSE)+ROW()-2)),\"\")","v":{"$error":"#N/A"}},{"$f":"IF(INDIRECT(\"c\" & (VLOOKUP(Switch!$D$28,$F$2:$G$44,2,FALSE)+ROW()-2))=Switch!$D$28,INDIRECT(\"a\" & (VLOOKUP(Switch!$D$28,$F$2:$G$44,2,FALSE)+ROW()-2)),\"\")","v":{"$error":"#N/A"}},{"$f":"IF(INDIRECT(\"c\" & (VLOOKUP(Switch!$D$29,$F$2:$G$44,2,FALSE)+ROW()-2))=Switch!$D$29,INDIRECT(\"a\" & (VLOOKUP(Switch!$D$29,$F$2:$G$44,2,FALSE)+ROW()-2)),\"\")","v":{"$error":"#N/A"}},{"$f":"IF(INDIRECT(\"c\" & (VLOOKUP(Switch!$D$30,$F$2:$G$44,2,FALSE)+ROW()-2))=Switch!$D$30,INDIRECT(\"a\" & (VLOOKUP(Switch!$D$30,$F$2:$G$44,2,FALSE)+ROW()-2)),\"\")","v":{"$error":"#N/A"}},{"$f":"IF(INDIRECT(\"c\" & (VLOOKUP(Switch!$D$31,$F$2:$G$44,2,FALSE)+ROW()-2))=Switch!$D$31,INDIRECT(\"a\" & (VLOOKUP(Switch!$D$31,$F$2:$G$44,2,FALSE)+ROW()-2)),\"\")","v":{"$error":"#N/A"}},{"$f":"IF(INDIRECT(\"c\" & (VLOOKUP(Switch!$D$32,$F$2:$G$44,2,FALSE)+ROW()-2))=Switch!$D$32,INDIRECT(\"a\" & (VLOOKUP(Switch!$D$32,$F$2:$G$44,2,FALSE)+ROW()-2)),\"\")","v":{"$error":"#N/A"}},{"$f":"IF(INDIRECT(\"c\" & (VLOOKUP(Switch!$D$33,$F$2:$G$44,2,FALSE)+ROW()-2))=Switch!$D$33,INDIRECT(\"a\" & (VLOOKUP(Switch!$D$33,$F$2:$G$44,2,FALSE)+ROW()-2)),\"\")","v":{"$error":"#N/A"}},{"$f":"IF(INDIRECT(\"c\" & (VLOOKUP(Switch!$D$34,$F$2:$G$44,2,FALSE)+ROW()-2))=Switch!$D$34,INDIRECT(\"a\" & (VLOOKUP(Switch!$D$34,$F$2:$G$44,2,FALSE)+ROW()-2)),\"\")","v":{"$error":"#N/A"}},{"$f":"IF(INDIRECT(\"c\" & (VLOOKUP(Switch!$D$35,$F$2:$G$44,2,FALSE)+ROW()-2))=Switch!$D$35,INDIRECT(\"a\" & (VLOOKUP(Switch!$D$35,$F$2:$G$44,2,FALSE)+ROW()-2)),\"\")","v":{"$error":"#N/A"}},{"$f":"IF(INDIRECT(\"c\" & (VLOOKUP(Switch!$D$36,$F$2:$G$44,2,FALSE)+ROW()-2))=Switch!$D$36,INDIRECT(\"a\" & (VLOOKUP(Switch!$D$36,$F$2:$G$44,2,FALSE)+ROW()-2)),\"\")","v":{"$error":"#N/A"}},{"$f":"IF(INDIRECT(\"c\" & (VLOOKUP(Switch!$D$37,$F$2:$G$44,2,FALSE)+ROW()-2))=Switch!$D$37,INDIRECT(\"a\" & (VLOOKUP(Switch!$D$37,$F$2:$G$44,2,FALSE)+ROW()-2)),\"\")","v":{"$error":"#N/A"}},{"$f":"IF(INDIRECT(\"c\" & (VLOOKUP(Switch!$D$38,$F$2:$G$44,2,FALSE)+ROW()-2))=Switch!$D$38,INDIRECT(\"a\" & (VLOOKUP(Switch!$D$38,$F$2:$G$44,2,FALSE)+ROW()-2)),\"\")","v":{"$error":"#N/A"}},{"$f":"IF(INDIRECT(\"c\" & (VLOOKUP(Switch!$D$39,$F$2:$G$44,2,FALSE)+ROW()-2))=Switch!$D$39,INDIRECT(\"a\" & (VLOOKUP(Switch!$D$39,$F$2:$G$44,2,FALSE)+ROW()-2)),\"\")","v":{"$error":"#N/A"}},{"$f":"IF(INDIRECT(\"c\" & (VLOOKUP(Switch!$D$40,$F$2:$G$44,2,FALSE)+ROW()-2))=Switch!$D$40,INDIRECT(\"a\" & (VLOOKUP(Switch!$D$40,$F$2:$G$44,2,FALSE)+ROW()-2)),\"\")","v":{"$error":"#N/A"}},{"$f":"IF(INDIRECT(\"c\" & (VLOOKUP(Switch!$D$52,$F$2:$G$44,2,FALSE)+ROW()-2))=Switch!$D$52,INDIRECT(\"a\" & (VLOOKUP(Switch!$D$52,$F$2:$G$44,2,FALSE)+ROW()-2)),\"\")","v":{"$error":"#N/A"}},{"$f":"IF(INDIRECT(\"c\" & (VLOOKUP(Switch!$D$53,$F$2:$G$44,2,FALSE)+ROW()-2))=Switch!$D$53,INDIRECT(\"a\" & (VLOOKUP(Switch!$D$53,$F$2:$G$44,2,FALSE)+ROW()-2)),\"\")","v":{"$error":"#N/A"}},{"$f":"IF(INDIRECT(\"c\" & (VLOOKUP(Switch!$D$54,$F$2:$G$44,2,FALSE)+ROW()-2))=Switch!$D$54,INDIRECT(\"a\" & (VLOOKUP(Switch!$D$54,$F$2:$G$44,2,FALSE)+ROW()-2)),\"\")","v":{"$error":"#N/A"}},{"$f":"IF(INDIRECT(\"c\" & (VLOOKUP(Switch!$D$55,$F$2:$G$44,2,FALSE)+ROW()-2))=Switch!$D$55,INDIRECT(\"a\" & (VLOOKUP(Switch!$D$55,$F$2:$G$44,2,FALSE)+ROW()-2)),\"\")","v":{"$error":"#N/A"}},{"$f":"IF(INDIRECT(\"c\" & (VLOOKUP(Switch!$D$56,$F$2:$G$44,2,FALSE)+ROW()-2))=Switch!$D$56,INDIRECT(\"a\" & (VLOOKUP(Switch!$D$56,$F$2:$G$44,2,FALSE)+ROW()-2)),\"\")","v":{"$error":"#N/A"}},{"$f":"IF(INDIRECT(\"c\" & (VLOOKUP(Switch!$D$57,$F$2:$G$44,2,FALSE)+ROW()-2))=Switch!$D$57,INDIRECT(\"a\" & (VLOOKUP(Switch!$D$57,$F$2:$G$44,2,FALSE)+ROW()-2)),\"\")","v":{"$error":"#N/A"}},{"$f":"IF(INDIRECT(\"c\" & (VLOOKUP(Switch!$D$58,$F$2:$G$44,2,FALSE)+ROW()-2))=Switch!$D$58,INDIRECT(\"a\" & (VLOOKUP(Switch!$D$58,$F$2:$G$44,2,FALSE)+ROW()-2)),\"\")","v":{"$error":"#N/A"}},{"$f":"IF(INDIRECT(\"c\" & (VLOOKUP(Switch!$D$59,$F$2:$G$44,2,FALSE)+ROW()-2))=Switch!$D$59,INDIRECT(\"a\" & (VLOOKUP(Switch!$D$59,$F$2:$G$44,2,FALSE)+ROW()-2)),\"\")","v":{"$error":"#N/A"}},{"$f":"IF(INDIRECT(\"c\" & (VLOOKUP(Switch!$D$60,$F$2:$G$44,2,FALSE)+ROW()-2))=Switch!$D$60,INDIRECT(\"a\" & (VLOOKUP(Switch!$D$60,$F$2:$G$44,2,FALSE)+ROW()-2)),\"\")","v":{"$error":"#N/A"}},{"$f":"IF(INDIRECT(\"c\" & (VLOOKUP(Switch!$D$61,$F$2:$G$44,2,FALSE)+ROW()-2))=Switch!$D$61,INDIRECT(\"a\" & (VLOOKUP(Switch!$D$61,$F$2:$G$44,2,FALSE)+ROW()-2)),\"\")","v":{"$error":"#N/A"}},{"$f":"IF(INDIRECT(\"c\" & (VLOOKUP(Switch!$D$62,$F$2:$G$44,2,FALSE)+ROW()-2))=Switch!$D$62,INDIRECT(\"a\" & (VLOOKUP(Switch!$D$62,$F$2:$G$44,2,FALSE)+ROW()-2)),\"\")","v":{"$error":"#N/A"}},{"$f":"IF(INDIRECT(\"c\" & (VLOOKUP(Switch!$D$63,$F$2:$G$44,2,FALSE)+ROW()-2))=Switch!$D$63,INDIRECT(\"a\" & (VLOOKUP(Switch!$D$63,$F$2:$G$44,2,FALSE)+ROW()-2)),\"\")","v":{"$error":"#N/A"}},{"$f":"IF(INDIRECT(\"c\" & (VLOOKUP(Switch!$D$64,$F$2:$G$44,2,FALSE)+ROW()-2))=Switch!$D$64,INDIRECT(\"a\" & (VLOOKUP(Switch!$D$64,$F$2:$G$44,2,FALSE)+ROW()-2)),\"\")","v":{"$error":"#N/A"}},{"$f":"IF(INDIRECT(\"c\" & (VLOOKUP(Switch!$D$65,$F$2:$G$44,2,FALSE)+ROW()-2))=Switch!$D$65,INDIRECT(\"a\" & (VLOOKUP(Switch!$D$65,$F$2:$G$44,2,FALSE)+ROW()-2)),\"\")","v":{"$error":"#N/A"}},{"$f":"IF(INDIRECT(\"c\" & (VLOOKUP(Switch!$D$66,$F$2:$G$44,2,FALSE)+ROW()-2))=Switch!$D$66,INDIRECT(\"a\" & (VLOOKUP(Switch!$D$66,$F$2:$G$44,2,FALSE)+ROW()-2)),\"\")","v":{"$error":"#N/A"}}]
["Aluwani Top 25 Fund A","MTTC1","Momentum Collective Investments Ltd",{"$f":"ROW()","v":321},null,null,{"$f":"VLOOKUP(F321,$C$2:$D$637,2,FALSE)","v":{"$error":"#N/A"}},{"$f":"IF(INDIRECT(\"c\" & (VLOOKUP(Switch!$D$26,$F$2:$G$44,2,FALSE)+ROW()-2))=Switch!$D$26,INDIRECT(\"a\" & (VLOOKUP(Switch!$D$26,$F$2:$G$44,2,FALSE)+ROW()-2)),\"\")","v":{"$error":"#N/A"}},{"$f":"IF(INDIRECT(\"c\" & (VLOOKUP(Switch!$D$27,$F$2:$G$44,2,FALSE)+ROW()-2))=Switch!$D$27,INDIRECT(\"a\" & (VLOOKUP(Switch!$D$27,$F$2:$G$44,2,FALSE)+ROW()-2)),\"\")","v":{"$error":"#N/A"}},{"$f":"IF(INDIRECT(\"c\" & (VLOOKUP(Switch!$D$28,$F$2:$G$44,2,FALSE)+ROW()-2))=Switch!$D$28,INDIRECT(\"a\" & (VLOOKUP(Switch!$D$28,$F$2:$G$44,2,FALSE)+ROW()-2)),\"\")","v":{"$error":"#N/A"}},{"$f":"IF(INDIRECT(\"c\" & (VLOOKUP(Switch!$D$29,$F$2:$G$44,2,FALSE)+ROW()-2))=Switch!$D$29,INDIRECT(\"a\" & (VLOOKUP(Switch!$D$29,$F$2:$G$44,2,FALSE)+ROW()-2)),\"\")","v":{"$error":"#N/A"}},{"$f":"IF(INDIRECT(\"c\" & (VLOOKUP(Switch!$D$30,$F$2:$G$44,2,FALSE)+ROW()-2))=Switch!$D$30,INDIRECT(\"a\" & (VLOOKUP(Switch!$D$30,$F$2:$G$44,2,FALSE)+ROW()-2)),\"\")","v":{"$error":"#N/A"}},{"$f":"IF(INDIRECT(\"c\" & (VLOOKUP(Switch!$D$31,$F$2:$G$44,2,FALSE)+ROW()-2))=Switch!$D$31,INDIRECT(\"a\" & (VLOOKUP(Switch!$D$31,$F$2:$G$44,2,FALSE)+ROW()-2)),\"\")","v":{"$error":"#N/A"}},{"$f":"IF(INDIRECT(\"c\" & (VLOOKUP(Switch!$D$32,$F$2:$G$44,2,FALSE)+ROW()-2))=Switch!$D$32,INDIRECT(\"a\" & (VLOOKUP(Switch!$D$32,$F$2:$G$44,2,FALSE)+ROW()-2)),\"\")","v":{"$error":"#N/A"}},{"$f":"IF(INDIRECT(\"c\" & (VLOOKUP(Switch!$D$33,$F$2:$G$44,2,FALSE)+ROW()-2))=Switch!$D$33,INDIRECT(\"a\" & (VLOOKUP(Switch!$D$33,$F$2:$G$44,2,FALSE)+ROW()-2)),\"\")","v":{"$error":"#N/A"}},{"$f":"IF(INDIRECT(\"c\" & (VLOOKUP(Switch!$D$34,$F$2:$G$44,2,FALSE)+ROW()-2))=Switch!$D$34,INDIRECT(\"a\" & (VLOOKUP(Switch!$D$34,$F$2:$G$44,2,FALSE)+ROW()-2)),\"\")","v":{"$error":"#N/A"}},{"$f":"IF(INDIRECT(\"c\" & (VLOOKUP(Switch!$D$35,$F$2:$G$44,2,FALSE)+ROW()-2))=Switch!$D$35,INDIRECT(\"a\" & (VLOOKUP(Switch!$D$35,$F$2:$G$44,2,FALSE)+ROW()-2)),\"\")","v":{"$error":"#N/A"}},{"$f":"IF(INDIRECT(\"c\" & (VLOOKUP(Switch!$D$36,$F$2:$G$44,2,FALSE)+ROW()-2))=Switch!$D$36,INDIRECT(\"a\" & (VLOOKUP(Switch!$D$36,$F$2:$G$44,2,FALSE)+ROW()-2)),\"\")","v":{"$error":"#N/A"}},{"$f":"IF(INDIRECT(\"c\" & (VLOOKUP(Switch!$D$37,$F$2:$G$44,2,FALSE)+ROW()-2))=Switch!$D$37,INDIRECT(\"a\" & (VLOOKUP(Switch!$D$37,$F$2:$G$44,2,FALSE)+ROW()-2)),\"\")","v":{"$error":"#N/A"}},{"$f":"IF(INDIRECT(\"c\" & (VLOOKUP(Switch!$D$38,$F$2:$G$44,2,FALSE)+ROW()-2))=Switch!$D$38,INDIRECT(\"a\" & (VLOOKUP(Switch!$D$38,$F$2:$G$44,2,FALSE)+ROW()-2)),\"\")","v":{"$error":"#N/A"}},{"$f":"IF(INDIRECT(\"c\" & (VLOOKUP(Switch!$D$39,$F$2:$G$44,2,FALSE)+ROW()-2))=Switch!$D$39,INDIRECT(\"a\" & (VLOOKUP(Switch!$D$39,$F$2:$G$44,2,FALSE)+ROW()-2)),\"\")","v":{"$error":"#N/A"}},{"$f":"IF(INDIRECT(\"c\" & (VLOOKUP(Switch!$D$40,$F$2:$G$44,2,FALSE)+ROW()-2))=Switch!$D$40,INDIRECT(\"a\" & (VLOOKUP(Switch!$D$40,$F$2:$G$44,2,FALSE)+ROW()-2)),\"\")","v":{"$error":"#N/A"}},{"$f":"IF(INDIRECT(\"c\" & (VLOOKUP(Switch!$D$52,$F$2:$G$44,2,FALSE)+ROW()-2))=Switch!$D$52,INDIRECT(\"a\" & (VLOOKUP(Switch!$D$52,$F$2:$G$44,2,FALSE)+ROW()-2)),\"\")","v":{"$error":"#N/A"}},{"$f":"IF(INDIRECT(\"c\" & (VLOOKUP(Switch!$D$53,$F$2:$G$44,2,FALSE)+ROW()-2))=Switch!$D$53,INDIRECT(\"a\" & (VLOOKUP(Switch!$D$53,$F$2:$G$44,2,FALSE)+ROW()-2)),\"\")","v":{"$error":"#N/A"}},{"$f":"IF(INDIRECT(\"c\" & (VLOOKUP(Switch!$D$54,$F$2:$G$44,2,FALSE)+ROW()-2))=Switch!$D$54,INDIRECT(\"a\" & (VLOOKUP(Switch!$D$54,$F$2:$G$44,2,FALSE)+ROW()-2)),\"\")","v":{"$error":"#N/A"}},{"$f":"IF(INDIRECT(\"c\" & (VLOOKUP(Switch!$D$55,$F$2:$G$44,2,FALSE)+ROW()-2))=Switch!$D$55,INDIRECT(\"a\" & (VLOOKUP(Switch!$D$55,$F$2:$G$44,2,FALSE)+ROW()-2)),\"\")","v":{"$error":"#N/A"}},{"$f":"IF(INDIRECT(\"c\" & (VLOOKUP(Switch!$D$56,$F$2:$G$44,2,FALSE)+ROW()-2))=Switch!$D$56,INDIRECT(\"a\" & (VLOOKUP(Switch!$D$56,$F$2:$G$44,2,FALSE)+ROW()-2)),\"\")","v":{"$error":"#N/A"}},{"$f":"IF(INDIRECT(\"c\" & (VLOOKUP(Switch!$D$57,$F$2:$G$44,2,FALSE)+ROW()-2))=Switch!$D$57,INDIRECT(\"a\" & (VLOOKUP(Switch!$D$57,$F$2:$G$44,2,FALSE)+ROW()-2)),\"\")","v":{"$error":"#N/A"}},{"$f":"IF(INDIRECT(\"c\" & (VLOOKUP(Switch!$D$58,$F$2:$G$44,2,FALSE)+ROW()-2))=Switch!$D$58,INDIRECT(\"a\" & (VLOOKUP(Switch!$D$58,$F$2:$G$44,2,FALSE)+ROW()-2)),\"\")","v":{"$error":"#N/A"}},{"$f":"IF(INDIRECT(\"c\" & (VLOOKUP(Switch!$D$59,$F$2:$G$44,2,FALSE)+ROW()-2))=Switch!$D$59,INDIRECT(\"a\" & (VLOOKUP(Switch!$D$59,$F$2:$G$44,2,FALSE)+ROW()-2)),\"\")","v":{"$error":"#N/A"}},{"$f":"IF(INDIRECT(\"c\" & (VLOOKUP(Switch!$D$60,$F$2:$G$44,2,FALSE)+ROW()-2))=Switch!$D$60,INDIRECT(\"a\" & (VLOOKUP(Switch!$D$60,$F$2:$G$44,2,FALSE)+ROW()-2)),\"\")","v":{"$error":"#N/A"}},{"$f":"IF(INDIRECT(\"c\" & (VLOOKUP(Switch!$D$61,$F$2:$G$44,2,FALSE)+ROW()-2))=Switch!$D$61,INDIRECT(\"a\" & (VLOOKUP(Switch!$D$61,$F$2:$G$44,2,FALSE)+ROW()-2)),\"\")","v":{"$error":"#N/A"}},{"$f":"IF(INDIRECT(\"c\" & (VLOOKUP(Switch!$D$62,$F$2:$G$44,2,FALSE)+ROW()-2))=Switch!$D$62,INDIRECT(\"a\" & (VLOOKUP(Switch!$D$62,$F$2:$G$44,2,FALSE)+ROW()-2)),\"\")","v":{"$error":"#N/A"}},{"$f":"IF(INDIRECT(\"c\" & (VLOOKUP(Switch!$D$63,$F$2:$G$44,2,FALSE)+ROW()-2))=Switch!$D$63,INDIRECT(\"a\" & (VLOOKUP(Switch!$D$63,$F$2:$G$44,2,FALSE)+ROW()-2)),\"\")","v":{"$error":"#N/A"}},{"$f":"IF(INDIRECT(\"c\" & (VLOOKUP(Switch!$D$64,$F$2:$G$44,2,FALSE)+ROW()-2))=Switch!$D$64,INDIRECT(\"a\" & (VLOOKUP(Switch!$D$64,$F$2:$G$44,2,FALSE)+ROW()-2)),\"\")","v":{"$error":"#N/A"}},{"$f":"IF(INDIRECT(\"c\" & (VLOOKUP(Switch!$D$65,$F$2:$G$44,2,FALSE)+ROW()-2))=Switch!$D$65,INDIRECT(\"a\" & (VLOOKUP(Switch!$D$65,$F$2:$G$44,2,FALSE)+ROW()-2)),\"\")","v":{"$error":"#N/A"}},{"$f":"IF(INDIRECT(\"c\" & (VLOOKUP(Switch!$D$66,$F$2:$G$44,2,FALSE)+ROW()-2))=Switch!$D$66,INDIRECT(\"a\" & (VLOOKUP(Switch!$D$66,$F$2:$G$44,2,FALSE)+ROW()-2)),\"\")","v":{"$error":"#N/A"}}]
["Aluwani Top 25 Fund C1","MTTC1","Momentum Collective Investments Ltd",{"$f":"ROW()","v":322},null,null,{"$f":"VLOOKUP(F322,$C$2:$D$637,2,FALSE)","v":{"$error":"#N/A"}},{"$f":"IF(INDIRECT(\"c\" & (VLOOKUP(Switch!$D$26,$F$2:$G$44,2,FALSE)+ROW()-2))=Switch!$D$26,INDIRECT(\"a\" & (VLOOKUP(Switch!$D$26,$F$2:$G$44,2,FALSE)+ROW()-2)),\"\")","v":{"$error":"#N/A"}},{"$f":"IF(INDIRECT(\"c\" & (VLOOKUP(Switch!$D$27,$F$2:$G$44,2,FALSE)+ROW()-2))=Switch!$D$27,INDIRECT(\"a\" & (VLOOKUP(Switch!$D$27,$F$2:$G$44,2,FALSE)+ROW()-2)),\"\")","v":{"$error":"#N/A"}},{"$f":"IF(INDIRECT(\"c\" & (VLOOKUP(Switch!$D$28,$F$2:$G$44,2,FALSE)+ROW()-2))=Switch!$D$28,INDIRECT(\"a\" & (VLOOKUP(Switch!$D$28,$F$2:$G$44,2,FALSE)+ROW()-2)),\"\")","v":{"$error":"#N/A"}},{"$f":"IF(INDIRECT(\"c\" & (VLOOKUP(Switch!$D$29,$F$2:$G$44,2,FALSE)+ROW()-2))=Switch!$D$29,INDIRECT(\"a\" & (VLOOKUP(Switch!$D$29,$F$2:$G$44,2,FALSE)+ROW()-2)),\"\")","v":{"$error":"#N/A"}},{"$f":"IF(INDIRECT(\"c\" & (VLOOKUP(Switch!$D$30,$F$2:$G$44,2,FALSE)+ROW()-2))=Switch!$D$30,INDIRECT(\"a\" & (VLOOKUP(Switch!$D$30,$F$2:$G$44,2,FALSE)+ROW()-2)),\"\")","v":{"$error":"#N/A"}},{"$f":"IF(INDIRECT(\"c\" & (VLOOKUP(Switch!$D$31,$F$2:$G$44,2,FALSE)+ROW()-2))=Switch!$D$31,INDIRECT(\"a\" & (VLOOKUP(Switch!$D$31,$F$2:$G$44,2,FALSE)+ROW()-2)),\"\")","v":{"$error":"#N/A"}},{"$f":"IF(INDIRECT(\"c\" & (VLOOKUP(Switch!$D$32,$F$2:$G$44,2,FALSE)+ROW()-2))=Switch!$D$32,INDIRECT(\"a\" & (VLOOKUP(Switch!$D$32,$F$2:$G$44,2,FALSE)+ROW()-2)),\"\")","v":{"$error":"#N/A"}},{"$f":"IF(INDIRECT(\"c\" & (VLOOKUP(Switch!$D$33,$F$2:$G$44,2,FALSE)+ROW()-2))=Switch!$D$33,INDIRECT(\"a\" & (VLOOKUP(Switch!$D$33,$F$2:$G$44,2,FALSE)+ROW()-2)),\"\")","v":{"$error":"#N/A"}},{"$f":"IF(INDIRECT(\"c\" & (VLOOKUP(Switch!$D$34,$F$2:$G$44,2,FALSE)+ROW()-2))=Switch!$D$34,INDIRECT(\"a\" & (VLOOKUP(Switch!$D$34,$F$2:$G$44,2,FALSE)+ROW()-2)),\"\")","v":{"$error":"#N/A"}},{"$f":"IF(INDIRECT(\"c\" & (VLOOKUP(Switch!$D$35,$F$2:$G$44,2,FALSE)+ROW()-2))=Switch!$D$35,INDIRECT(\"a\" & (VLOOKUP(Switch!$D$35,$F$2:$G$44,2,FALSE)+ROW()-2)),\"\")","v":{"$error":"#N/A"}},{"$f":"IF(INDIRECT(\"c\" & (VLOOKUP(Switch!$D$36,$F$2:$G$44,2,FALSE)+ROW()-2))=Switch!$D$36,INDIRECT(\"a\" & (VLOOKUP(Switch!$D$36,$F$2:$G$44,2,FALSE)+ROW()-2)),\"\")","v":{"$error":"#N/A"}},{"$f":"IF(INDIRECT(\"c\" & (VLOOKUP(Switch!$D$37,$F$2:$G$44,2,FALSE)+ROW()-2))=Switch!$D$37,INDIRECT(\"a\" & (VLOOKUP(Switch!$D$37,$F$2:$G$44,2,FALSE)+ROW()-2)),\"\")","v":{"$error":"#N/A"}},{"$f":"IF(INDIRECT(\"c\" & (VLOOKUP(Switch!$D$38,$F$2:$G$44,2,FALSE)+ROW()-2))=Switch!$D$38,INDIRECT(\"a\" & (VLOOKUP(Switch!$D$38,$F$2:$G$44,2,FALSE)+ROW()-2)),\"\")","v":{"$error":"#N/A"}},{"$f":"IF(INDIRECT(\"c\" & (VLOOKUP(Switch!$D$39,$F$2:$G$44,2,FALSE)+ROW()-2))=Switch!$D$39,INDIRECT(\"a\" & (VLOOKUP(Switch!$D$39,$F$2:$G$44,2,FALSE)+ROW()-2)),\"\")","v":{"$error":"#N/A"}},{"$f":"IF(INDIRECT(\"c\" & (VLOOKUP(Switch!$D$40,$F$2:$G$44,2,FALSE)+ROW()-2))=Switch!$D$40,INDIRECT(\"a\" & (VLOOKUP(Switch!$D$40,$F$2:$G$44,2,FALSE)+ROW()-2)),\"\")","v":{"$error":"#N/A"}},{"$f":"IF(INDIRECT(\"c\" & (VLOOKUP(Switch!$D$52,$F$2:$G$44,2,FALSE)+ROW()-2))=Switch!$D$52,INDIRECT(\"a\" & (VLOOKUP(Switch!$D$52,$F$2:$G$44,2,FALSE)+ROW()-2)),\"\")","v":{"$error":"#N/A"}},{"$f":"IF(INDIRECT(\"c\" & (VLOOKUP(Switch!$D$53,$F$2:$G$44,2,FALSE)+ROW()-2))=Switch!$D$53,INDIRECT(\"a\" & (VLOOKUP(Switch!$D$53,$F$2:$G$44,2,FALSE)+ROW()-2)),\"\")","v":{"$error":"#N/A"}},{"$f":"IF(INDIRECT(\"c\" & (VLOOKUP(Switch!$D$54,$F$2:$G$44,2,FALSE)+ROW()-2))=Switch!$D$54,INDIRECT(\"a\" & (VLOOKUP(Switch!$D$54,$F$2:$G$44,2,FALSE)+ROW()-2)),\"\")","v":{"$error":"#N/A"}},{"$f":"IF(INDIRECT(\"c\" & (VLOOKUP(Switch!$D$55,$F$2:$G$44,2,FALSE)+ROW()-2))=Switch!$D$55,INDIRECT(\"a\" & (VLOOKUP(Switch!$D$55,$F$2:$G$44,2,FALSE)+ROW()-2)),\"\")","v":{"$error":"#N/A"}},{"$f":"IF(INDIRECT(\"c\" & (VLOOKUP(Switch!$D$56,$F$2:$G$44,2,FALSE)+ROW()-2))=Switch!$D$56,INDIRECT(\"a\" & (VLOOKUP(Switch!$D$56,$F$2:$G$44,2,FALSE)+ROW()-2)),\"\")","v":{"$error":"#N/A"}},{"$f":"IF(INDIRECT(\"c\" & (VLOOKUP(Switch!$D$57,$F$2:$G$44,2,FALSE)+ROW()-2))=Switch!$D$57,INDIRECT(\"a\" & (VLOOKUP(Switch!$D$57,$F$2:$G$44,2,FALSE)+ROW()-2)),\"\")","v":{"$error":"#N/A"}},{"$f":"IF(INDIRECT(\"c\" & (VLOOKUP(Switch!$D$58,$F$2:$G$44,2,FALSE)+ROW()-2))=Switch!$D$58,INDIRECT(\"a\" & (VLOOKUP(Switch!$D$58,$F$2:$G$44,2,FALSE)+ROW()-2)),\"\")","v":{"$error":"#N/A"}},{"$f":"IF(INDIRECT(\"c\" & (VLOOKUP(Switch!$D$59,$F$2:$G$44,2,FALSE)+ROW()-2))=Switch!$D$59,INDIRECT(\"a\" & (VLOOKUP(Switch!$D$59,$F$2:$G$44,2,FALSE)+ROW()-2)),\"\")","v":{"$error":"#N/A"}},{"$f":"IF(INDIRECT(\"c\" & (VLOOKUP(Switch!$D$60,$F$2:$G$44,2,FALSE)+ROW()-2))=Switch!$D$60,INDIRECT(\"a\" & (VLOOKUP(Switch!$D$60,$F$2:$G$44,2,FALSE)+ROW()-2)),\"\")","v":{"$error":"#N/A"}},{"$f":"IF(INDIRECT(\"c\" & (VLOOKUP(Switch!$D$61,$F$2:$G$44,2,FALSE)+ROW()-2))=Switch!$D$61,INDIRECT(\"a\" & (VLOOKUP(Switch!$D$61,$F$2:$G$44,2,FALSE)+ROW()-2)),\"\")","v":{"$error":"#N/A"}},{"$f":"IF(INDIRECT(\"c\" & (VLOOKUP(Switch!$D$62,$F$2:$G$44,2,FALSE)+ROW()-2))=Switch!$D$62,INDIRECT(\"a\" & (VLOOKUP(Switch!$D$62,$F$2:$G$44,2,FALSE)+ROW()-2)),\"\")","v":{"$error":"#N/A"}},{"$f":"IF(INDIRECT(\"c\" & (VLOOKUP(Switch!$D$63,$F$2:$G$44,2,FALSE)+ROW()-2))=Switch!$D$63,INDIRECT(\"a\" & (VLOOKUP(Switch!$D$63,$F$2:$G$44,2,FALSE)+ROW()-2)),\"\")","v":{"$error":"#N/A"}},{"$f":"IF(INDIRECT(\"c\" & (VLOOKUP(Switch!$D$64,$F$2:$G$44,2,FALSE)+ROW()-2))=Switch!$D$64,INDIRECT(\"a\" & (VLOOKUP(Switch!$D$64,$F$2:$G$44,2,FALSE)+ROW()-2)),\"\")","v":{"$error":"#N/A"}},{"$f":"IF(INDIRECT(\"c\" & (VLOOKUP(Switch!$D$65,$F$2:$G$44,2,FALSE)+ROW()-2))=Switch!$D$65,INDIRECT(\"a\" & (VLOOKUP(Switch!$D$65,$F$2:$G$44,2,FALSE)+ROW()-2)),\"\")","v":{"$error":"#N/A"}},{"$f":"IF(INDIRECT(\"c\" & (VLOOKUP(Switch!$D$66,$F$2:$G$44,2,FALSE)+ROW()-2))=Switch!$D$66,INDIRECT(\"a\" & (VLOOKUP(Switch!$D$66,$F$2:$G$44,2,FALSE)+ROW()-2)),\"\")","v":{"$error":"#N/A"}}]
["Momentum Africa Equity Fund A","RAEF","Momentum Collective Investments Ltd",{"$f":"ROW()","v":323},null,null,{"$f":"VLOOKUP(F323,$C$2:$D$637,2,FALSE)","v":{"$error":"#N/A"}},{"$f":"IF(INDIRECT(\"c\" & (VLOOKUP(Switch!$D$26,$F$2:$G$44,2,FALSE)+ROW()-2))=Switch!$D$26,INDIRECT(\"a\" & (VLOOKUP(Switch!$D$26,$F$2:$G$44,2,FALSE)+ROW()-2)),\"\")","v":{"$error":"#N/A"}},{"$f":"IF(INDIRECT(\"c\" & (VLOOKUP(Switch!$D$27,$F$2:$G$44,2,FALSE)+ROW()-2))=Switch!$D$27,INDIRECT(\"a\" & (VLOOKUP(Switch!$D$27,$F$2:$G$44,2,FALSE)+ROW()-2)),\"\")","v":{"$error":"#N/A"}},{"$f":"IF(INDIRECT(\"c\" & (VLOOKUP(Switch!$D$28,$F$2:$G$44,2,FALSE)+ROW()-2))=Switch!$D$28,INDIRECT(\"a\" & (VLOOKUP(Switch!$D$28,$F$2:$G$44,2,FALSE)+ROW()-2)),\"\")","v":{"$error":"#N/A"}},{"$f":"IF(INDIRECT(\"c\" & (VLOOKUP(Switch!$D$29,$F$2:$G$44,2,FALSE)+ROW()-2))=Switch!$D$29,INDIRECT(\"a\" & (VLOOKUP(Switch!$D$29,$F$2:$G$44,2,FALSE)+ROW()-2)),\"\")","v":{"$error":"#N/A"}},{"$f":"IF(INDIRECT(\"c\" & (VLOOKUP(Switch!$D$30,$F$2:$G$44,2,FALSE)+ROW()-2))=Switch!$D$30,INDIRECT(\"a\" & (VLOOKUP(Switch!$D$30,$F$2:$G$44,2,FALSE)+ROW()-2)),\"\")","v":{"$error":"#N/A"}},{"$f":"IF(INDIRECT(\"c\" & (VLOOKUP(Switch!$D$31,$F$2:$G$44,2,FALSE)+ROW()-2))=Switch!$D$31,INDIRECT(\"a\" & (VLOOKUP(Switch!$D$31,$F$2:$G$44,2,FALSE)+ROW()-2)),\"\")","v":{"$error":"#N/A"}},{"$f":"IF(INDIRECT(\"c\" & (VLOOKUP(Switch!$D$32,$F$2:$G$44,2,FALSE)+ROW()-2))=Switch!$D$32,INDIRECT(\"a\" & (VLOOKUP(Switch!$D$32,$F$2:$G$44,2,FALSE)+ROW()-2)),\"\")","v":{"$error":"#N/A"}},{"$f":"IF(INDIRECT(\"c\" & (VLOOKUP(Switch!$D$33,$F$2:$G$44,2,FALSE)+ROW()-2))=Switch!$D$33,INDIRECT(\"a\" & (VLOOKUP(Switch!$D$33,$F$2:$G$44,2,FALSE)+ROW()-2)),\"\")","v":{"$error":"#N/A"}},{"$f":"IF(INDIRECT(\"c\" & (VLOOKUP(Switch!$D$34,$F$2:$G$44,2,FALSE)+ROW()-2))=Switch!$D$34,INDIRECT(\"a\" & (VLOOKUP(Switch!$D$34,$F$2:$G$44,2,FALSE)+ROW()-2)),\"\")","v":{"$error":"#N/A"}},{"$f":"IF(INDIRECT(\"c\" & (VLOOKUP(Switch!$D$35,$F$2:$G$44,2,FALSE)+ROW()-2))=Switch!$D$35,INDIRECT(\"a\" & (VLOOKUP(Switch!$D$35,$F$2:$G$44,2,FALSE)+ROW()-2)),\"\")","v":{"$error":"#N/A"}},{"$f":"IF(INDIRECT(\"c\" & (VLOOKUP(Switch!$D$36,$F$2:$G$44,2,FALSE)+ROW()-2))=Switch!$D$36,INDIRECT(\"a\" & (VLOOKUP(Switch!$D$36,$F$2:$G$44,2,FALSE)+ROW()-2)),\"\")","v":{"$error":"#N/A"}},{"$f":"IF(INDIRECT(\"c\" & (VLOOKUP(Switch!$D$37,$F$2:$G$44,2,FALSE)+ROW()-2))=Switch!$D$37,INDIRECT(\"a\" & (VLOOKUP(Switch!$D$37,$F$2:$G$44,2,FALSE)+ROW()-2)),\"\")","v":{"$error":"#N/A"}},{"$f":"IF(INDIRECT(\"c\" & (VLOOKUP(Switch!$D$38,$F$2:$G$44,2,FALSE)+ROW()-2))=Switch!$D$38,INDIRECT(\"a\" & (VLOOKUP(Switch!$D$38,$F$2:$G$44,2,FALSE)+ROW()-2)),\"\")","v":{"$error":"#N/A"}},{"$f":"IF(INDIRECT(\"c\" & (VLOOKUP(Switch!$D$39,$F$2:$G$44,2,FALSE)+ROW()-2))=Switch!$D$39,INDIRECT(\"a\" & (VLOOKUP(Switch!$D$39,$F$2:$G$44,2,FALSE)+ROW()-2)),\"\")","v":{"$error":"#N/A"}},{"$f":"IF(INDIRECT(\"c\" & (VLOOKUP(Switch!$D$40,$F$2:$G$44,2,FALSE)+ROW()-2))=Switch!$D$40,INDIRECT(\"a\" & (VLOOKUP(Switch!$D$40,$F$2:$G$44,2,FALSE)+ROW()-2)),\"\")","v":{"$error":"#N/A"}},{"$f":"IF(INDIRECT(\"c\" & (VLOOKUP(Switch!$D$52,$F$2:$G$44,2,FALSE)+ROW()-2))=Switch!$D$52,INDIRECT(\"a\" & (VLOOKUP(Switch!$D$52,$F$2:$G$44,2,FALSE)+ROW()-2)),\"\")","v":{"$error":"#N/A"}},{"$f":"IF(INDIRECT(\"c\" & (VLOOKUP(Switch!$D$53,$F$2:$G$44,2,FALSE)+ROW()-2))=Switch!$D$53,INDIRECT(\"a\" & (VLOOKUP(Switch!$D$53,$F$2:$G$44,2,FALSE)+ROW()-2)),\"\")","v":{"$error":"#N/A"}},{"$f":"IF(INDIRECT(\"c\" & (VLOOKUP(Switch!$D$54,$F$2:$G$44,2,FALSE)+ROW()-2))=Switch!$D$54,INDIRECT(\"a\" & (VLOOKUP(Switch!$D$54,$F$2:$G$44,2,FALSE)+ROW()-2)),\"\")","v":{"$error":"#N/A"}},{"$f":"IF(INDIRECT(\"c\" & (VLOOKUP(Switch!$D$55,$F$2:$G$44,2,FALSE)+ROW()-2))=Switch!$D$55,INDIRECT(\"a\" & (VLOOKUP(Switch!$D$55,$F$2:$G$44,2,FALSE)+ROW()-2)),\"\")","v":{"$error":"#N/A"}},{"$f":"IF(INDIRECT(\"c\" & (VLOOKUP(Switch!$D$56,$F$2:$G$44,2,FALSE)+ROW()-2))=Switch!$D$56,INDIRECT(\"a\" & (VLOOKUP(Switch!$D$56,$F$2:$G$44,2,FALSE)+ROW()-2)),\"\")","v":{"$error":"#N/A"}},{"$f":"IF(INDIRECT(\"c\" & (VLOOKUP(Switch!$D$57,$F$2:$G$44,2,FALSE)+ROW()-2))=Switch!$D$57,INDIRECT(\"a\" & (VLOOKUP(Switch!$D$57,$F$2:$G$44,2,FALSE)+ROW()-2)),\"\")","v":{"$error":"#N/A"}},{"$f":"IF(INDIRECT(\"c\" & (VLOOKUP(Switch!$D$58,$F$2:$G$44,2,FALSE)+ROW()-2))=Switch!$D$58,INDIRECT(\"a\" & (VLOOKUP(Switch!$D$58,$F$2:$G$44,2,FALSE)+ROW()-2)),\"\")","v":{"$error":"#N/A"}},{"$f":"IF(INDIRECT(\"c\" & (VLOOKUP(Switch!$D$59,$F$2:$G$44,2,FALSE)+ROW()-2))=Switch!$D$59,INDIRECT(\"a\" & (VLOOKUP(Switch!$D$59,$F$2:$G$44,2,FALSE)+ROW()-2)),\"\")","v":{"$error":"#N/A"}},{"$f":"IF(INDIRECT(\"c\" & (VLOOKUP(Switch!$D$60,$F$2:$G$44,2,FALSE)+ROW()-2))=Switch!$D$60,INDIRECT(\"a\" & (VLOOKUP(Switch!$D$60,$F$2:$G$44,2,FALSE)+ROW()-2)),\"\")","v":{"$error":"#N/A"}},{"$f":"IF(INDIRECT(\"c\" & (VLOOKUP(Switch!$D$61,$F$2:$G$44,2,FALSE)+ROW()-2))=Switch!$D$61,INDIRECT(\"a\" & (VLOOKUP(Switch!$D$61,$F$2:$G$44,2,FALSE)+ROW()-2)),\"\")","v":{"$error":"#N/A"}},{"$f":"IF(INDIRECT(\"c\" & (VLOOKUP(Switch!$D$62,$F$2:$G$44,2,FALSE)+ROW()-2))=Switch!$D$62,INDIRECT(\"a\" & (VLOOKUP(Switch!$D$62,$F$2:$G$44,2,FALSE)+ROW()-2)),\"\")","v":{"$error":"#N/A"}},{"$f":"IF(INDIRECT(\"c\" & (VLOOKUP(Switch!$D$63,$F$2:$G$44,2,FALSE)+ROW()-2))=Switch!$D$63,INDIRECT(\"a\" & (VLOOKUP(Switch!$D$63,$F$2:$G$44,2,FALSE)+ROW()-2)),\"\")","v":{"$error":"#N/A"}},{"$f":"IF(INDIRECT(\"c\" & (VLOOKUP(Switch!$D$64,$F$2:$G$44,2,FALSE)+ROW()-2))=Switch!$D$64,INDIRECT(\"a\" & (VLOOKUP(Switch!$D$64,$F$2:$G$44,2,FALSE)+ROW()-2)),\"\")","v":{"$error":"#N/A"}},{"$f":"IF(INDIRECT(\"c\" & (VLOOKUP(Switch!$D$65,$F$2:$G$44,2,FALSE)+ROW()-2))=Switch!$D$65,INDIRECT(\"a\" & (VLOOKUP(Switch!$D$65,$F$2:$G$44,2,FALSE)+ROW()-2)),\"\")","v":{"$error":"#N/A"}},{"$f":"IF(INDIRECT(\"c\" & (VLOOKUP(Switch!$D$66,$F$2:$G$44,2,FALSE)+ROW()-2))=Switch!$D$66,INDIRECT(\"a\" & (VLOOKUP(Switch!$D$66,$F$2:$G$44,2,FALSE)+ROW()-2)),\"\")","v":{"$error":"#N/A"}}]
["Momentum Enhanced Growth Fund of Funds","MEGF","Momentum Collective Investments Ltd",{"$f":"ROW()","v":324},null,null,{"$f":"VLOOKUP(F324,$C$2:$D$637,2,FALSE)","v":{"$error":"#N/A"}},{"$f":"IF(INDIRECT(\"c\" & (VLOOKUP(Switch!$D$26,$F$2:$G$44,2,FALSE)+ROW()-2))=Switch!$D$26,INDIRECT(\"a\" & (VLOOKUP(Switch!$D$26,$F$2:$G$44,2,FALSE)+ROW()-2)),\"\")","v":{"$error":"#N/A"}},{"$f":"IF(INDIRECT(\"c\" & (VLOOKUP(Switch!$D$27,$F$2:$G$44,2,FALSE)+ROW()-2))=Switch!$D$27,INDIRECT(\"a\" & (VLOOKUP(Switch!$D$27,$F$2:$G$44,2,FALSE)+ROW()-2)),\"\")","v":{"$error":"#N/A"}},{"$f":"IF(INDIRECT(\"c\" & (VLOOKUP(Switch!$D$28,$F$2:$G$44,2,FALSE)+ROW()-2))=Switch!$D$28,INDIRECT(\"a\" & (VLOOKUP(Switch!$D$28,$F$2:$G$44,2,FALSE)+ROW()-2)),\"\")","v":{"$error":"#N/A"}},{"$f":"IF(INDIRECT(\"c\" & (VLOOKUP(Switch!$D$29,$F$2:$G$44,2,FALSE)+ROW()-2))=Switch!$D$29,INDIRECT(\"a\" & (VLOOKUP(Switch!$D$29,$F$2:$G$44,2,FALSE)+ROW()-2)),\"\")","v":{"$error":"#N/A"}},{"$f":"IF(INDIRECT(\"c\" & (VLOOKUP(Switch!$D$30,$F$2:$G$44,2,FALSE)+ROW()-2))=Switch!$D$30,INDIRECT(\"a\" & (VLOOKUP(Switch!$D$30,$F$2:$G$44,2,FALSE)+ROW()-2)),\"\")","v":{"$error":"#N/A"}},{"$f":"IF(INDIRECT(\"c\" & (VLOOKUP(Switch!$D$31,$F$2:$G$44,2,FALSE)+ROW()-2))=Switch!$D$31,INDIRECT(\"a\" & (VLOOKUP(Switch!$D$31,$F$2:$G$44,2,FALSE)+ROW()-2)),\"\")","v":{"$error":"#N/A"}},{"$f":"IF(INDIRECT(\"c\" & (VLOOKUP(Switch!$D$32,$F$2:$G$44,2,FALSE)+ROW()-2))=Switch!$D$32,INDIRECT(\"a\" & (VLOOKUP(Switch!$D$32,$F$2:$G$44,2,FALSE)+ROW()-2)),\"\")","v":{"$error":"#N/A"}},{"$f":"IF(INDIRECT(\"c\" & (VLOOKUP(Switch!$D$33,$F$2:$G$44,2,FALSE)+ROW()-2))=Switch!$D$33,INDIRECT(\"a\" & (VLOOKUP(Switch!$D$33,$F$2:$G$44,2,FALSE)+ROW()-2)),\"\")","v":{"$error":"#N/A"}},{"$f":"IF(INDIRECT(\"c\" & (VLOOKUP(Switch!$D$34,$F$2:$G$44,2,FALSE)+ROW()-2))=Switch!$D$34,INDIRECT(\"a\" & (VLOOKUP(Switch!$D$34,$F$2:$G$44,2,FALSE)+ROW()-2)),\"\")","v":{"$error":"#N/A"}},{"$f":"IF(INDIRECT(\"c\" & (VLOOKUP(Switch!$D$35,$F$2:$G$44,2,FALSE)+ROW()-2))=Switch!$D$35,INDIRECT(\"a\" & (VLOOKUP(Switch!$D$35,$F$2:$G$44,2,FALSE)+ROW()-2)),\"\")","v":{"$error":"#N/A"}},{"$f":"IF(INDIRECT(\"c\" & (VLOOKUP(Switch!$D$36,$F$2:$G$44,2,FALSE)+ROW()-2))=Switch!$D$36,INDIRECT(\"a\" & (VLOOKUP(Switch!$D$36,$F$2:$G$44,2,FALSE)+ROW()-2)),\"\")","v":{"$error":"#N/A"}},{"$f":"IF(INDIRECT(\"c\" & (VLOOKUP(Switch!$D$37,$F$2:$G$44,2,FALSE)+ROW()-2))=Switch!$D$37,INDIRECT(\"a\" & (VLOOKUP(Switch!$D$37,$F$2:$G$44,2,FALSE)+ROW()-2)),\"\")","v":{"$error":"#N/A"}},{"$f":"IF(INDIRECT(\"c\" & (VLOOKUP(Switch!$D$38,$F$2:$G$44,2,FALSE)+ROW()-2))=Switch!$D$38,INDIRECT(\"a\" & (VLOOKUP(Switch!$D$38,$F$2:$G$44,2,FALSE)+ROW()-2)),\"\")","v":{"$error":"#N/A"}},{"$f":"IF(INDIRECT(\"c\" & (VLOOKUP(Switch!$D$39,$F$2:$G$44,2,FALSE)+ROW()-2))=Switch!$D$39,INDIRECT(\"a\" & (VLOOKUP(Switch!$D$39,$F$2:$G$44,2,FALSE)+ROW()-2)),\"\")","v":{"$error":"#N/A"}},{"$f":"IF(INDIRECT(\"c\" & (VLOOKUP(Switch!$D$40,$F$2:$G$44,2,FALSE)+ROW()-2))=Switch!$D$40,INDIRECT(\"a\" & (VLOOKUP(Switch!$D$40,$F$2:$G$44,2,FALSE)+ROW()-2)),\"\")","v":{"$error":"#N/A"}},{"$f":"IF(INDIRECT(\"c\" & (VLOOKUP(Switch!$D$52,$F$2:$G$44,2,FALSE)+ROW()-2))=Switch!$D$52,INDIRECT(\"a\" & (VLOOKUP(Switch!$D$52,$F$2:$G$44,2,FALSE)+ROW()-2)),\"\")","v":{"$error":"#N/A"}},{"$f":"IF(INDIRECT(\"c\" & (VLOOKUP(Switch!$D$53,$F$2:$G$44,2,FALSE)+ROW()-2))=Switch!$D$53,INDIRECT(\"a\" & (VLOOKUP(Switch!$D$53,$F$2:$G$44,2,FALSE)+ROW()-2)),\"\")","v":{"$error":"#N/A"}},{"$f":"IF(INDIRECT(\"c\" & (VLOOKUP(Switch!$D$54,$F$2:$G$44,2,FALSE)+ROW()-2))=Switch!$D$54,INDIRECT(\"a\" & (VLOOKUP(Switch!$D$54,$F$2:$G$44,2,FALSE)+ROW()-2)),\"\")","v":{"$error":"#N/A"}},{"$f":"IF(INDIRECT(\"c\" & (VLOOKUP(Switch!$D$55,$F$2:$G$44,2,FALSE)+ROW()-2))=Switch!$D$55,INDIRECT(\"a\" & (VLOOKUP(Switch!$D$55,$F$2:$G$44,2,FALSE)+ROW()-2)),\"\")","v":{"$error":"#N/A"}},{"$f":"IF(INDIRECT(\"c\" & (VLOOKUP(Switch!$D$56,$F$2:$G$44,2,FALSE)+ROW()-2))=Switch!$D$56,INDIRECT(\"a\" & (VLOOKUP(Switch!$D$56,$F$2:$G$44,2,FALSE)+ROW()-2)),\"\")","v":{"$error":"#N/A"}},{"$f":"IF(INDIRECT(\"c\" & (VLOOKUP(Switch!$D$57,$F$2:$G$44,2,FALSE)+ROW()-2))=Switch!$D$57,INDIRECT(\"a\" & (VLOOKUP(Switch!$D$57,$F$2:$G$44,2,FALSE)+ROW()-2)),\"\")","v":{"$error":"#N/A"}},{"$f":"IF(INDIRECT(\"c\" & (VLOOKUP(Switch!$D$58,$F$2:$G$44,2,FALSE)+ROW()-2))=Switch!$D$58,INDIRECT(\"a\" & (VLOOKUP(Switch!$D$58,$F$2:$G$44,2,FALSE)+ROW()-2)),\"\")","v":{"$error":"#N/A"}},{"$f":"IF(INDIRECT(\"c\" & (VLOOKUP(Switch!$D$59,$F$2:$G$44,2,FALSE)+ROW()-2))=Switch!$D$59,INDIRECT(\"a\" & (VLOOKUP(Switch!$D$59,$F$2:$G$44,2,FALSE)+ROW()-2)),\"\")","v":{"$error":"#N/A"}},{"$f":"IF(INDIRECT(\"c\" & (VLOOKUP(Switch!$D$60,$F$2:$G$44,2,FALSE)+ROW()-2))=Switch!$D$60,INDIRECT(\"a\" & (VLOOKUP(Switch!$D$60,$F$2:$G$44,2,FALSE)+ROW()-2)),\"\")","v":{"$error":"#N/A"}},{"$f":"IF(INDIRECT(\"c\" & (VLOOKUP(Switch!$D$61,$F$2:$G$44,2,FALSE)+ROW()-2))=Switch!$D$61,INDIRECT(\"a\" & (VLOOKUP(Switch!$D$61,$F$2:$G$44,2,FALSE)+ROW()-2)),\"\")","v":{"$error":"#N/A"}},{"$f":"IF(INDIRECT(\"c\" & (VLOOKUP(Switch!$D$62,$F$2:$G$44,2,FALSE)+ROW()-2))=Switch!$D$62,INDIRECT(\"a\" & (VLOOKUP(Switch!$D$62,$F$2:$G$44,2,FALSE)+ROW()-2)),\"\")","v":{"$error":"#N/A"}},{"$f":"IF(INDIRECT(\"c\" & (VLOOKUP(Switch!$D$63,$F$2:$G$44,2,FALSE)+ROW()-2))=Switch!$D$63,INDIRECT(\"a\" & (VLOOKUP(Switch!$D$63,$F$2:$G$44,2,FALSE)+ROW()-2)),\"\")","v":{"$error":"#N/A"}},{"$f":"IF(INDIRECT(\"c\" & (VLOOKUP(Switch!$D$64,$F$2:$G$44,2,FALSE)+ROW()-2))=Switch!$D$64,INDIRECT(\"a\" & (VLOOKUP(Switch!$D$64,$F$2:$G$44,2,FALSE)+ROW()-2)),\"\")","v":{"$error":"#N/A"}},{"$f":"IF(INDIRECT(\"c\" & (VLOOKUP(Switch!$D$65,$F$2:$G$44,2,FALSE)+ROW()-2))=Switch!$D$65,INDIRECT(\"a\" & (VLOOKUP(Switch!$D$65,$F$2:$G$44,2,FALSE)+ROW()-2)),\"\")","v":{"$error":"#N/A"}},{"$f":"IF(INDIRECT(\"c\" & (VLOOKUP(Switch!$D$66,$F$2:$G$44,2,FALSE)+ROW()-2))=Switch!$D$66,INDIRECT(\"a\" & (VLOOKUP(Switch!$D$66,$F$2:$G$44,2,FALSE)+ROW()-2)),\"\")","v":{"$error":"#N/A"}}]
["Momentum Bond Fund R","RBFB8","Momentum Collective Investments Ltd",{"$f":"ROW()","v":325},null,null,{"$f":"VLOOKUP(F325,$C$2:$D$637,2,FALSE)","v":{"$error":"#N/A"}},{"$f":"IF(INDIRECT(\"c\" & (VLOOKUP(Switch!$D$26,$F$2:$G$44,2,FALSE)+ROW()-2))=Switch!$D$26,INDIRECT(\"a\" & (VLOOKUP(Switch!$D$26,$F$2:$G$44,2,FALSE)+ROW()-2)),\"\")","v":{"$error":"#N/A"}},{"$f":"IF(INDIRECT(\"c\" & (VLOOKUP(Switch!$D$27,$F$2:$G$44,2,FALSE)+ROW()-2))=Switch!$D$27,INDIRECT(\"a\" & (VLOOKUP(Switch!$D$27,$F$2:$G$44,2,FALSE)+ROW()-2)),\"\")","v":{"$error":"#N/A"}},{"$f":"IF(INDIRECT(\"c\" & (VLOOKUP(Switch!$D$28,$F$2:$G$44,2,FALSE)+ROW()-2))=Switch!$D$28,INDIRECT(\"a\" & (VLOOKUP(Switch!$D$28,$F$2:$G$44,2,FALSE)+ROW()-2)),\"\")","v":{"$error":"#N/A"}},{"$f":"IF(INDIRECT(\"c\" & (VLOOKUP(Switch!$D$29,$F$2:$G$44,2,FALSE)+ROW()-2))=Switch!$D$29,INDIRECT(\"a\" & (VLOOKUP(Switch!$D$29,$F$2:$G$44,2,FALSE)+ROW()-2)),\"\")","v":{"$error":"#N/A"}},{"$f":"IF(INDIRECT(\"c\" & (VLOOKUP(Switch!$D$30,$F$2:$G$44,2,FALSE)+ROW()-2))=Switch!$D$30,INDIRECT(\"a\" & (VLOOKUP(Switch!$D$30,$F$2:$G$44,2,FALSE)+ROW()-2)),\"\")","v":{"$error":"#N/A"}},{"$f":"IF(INDIRECT(\"c\" & (VLOOKUP(Switch!$D$31,$F$2:$G$44,2,FALSE)+ROW()-2))=Switch!$D$31,INDIRECT(\"a\" & (VLOOKUP(Switch!$D$31,$F$2:$G$44,2,FALSE)+ROW()-2)),\"\")","v":{"$error":"#N/A"}},{"$f":"IF(INDIRECT(\"c\" & (VLOOKUP(Switch!$D$32,$F$2:$G$44,2,FALSE)+ROW()-2))=Switch!$D$32,INDIRECT(\"a\" & (VLOOKUP(Switch!$D$32,$F$2:$G$44,2,FALSE)+ROW()-2)),\"\")","v":{"$error":"#N/A"}},{"$f":"IF(INDIRECT(\"c\" & (VLOOKUP(Switch!$D$33,$F$2:$G$44,2,FALSE)+ROW()-2))=Switch!$D$33,INDIRECT(\"a\" & (VLOOKUP(Switch!$D$33,$F$2:$G$44,2,FALSE)+ROW()-2)),\"\")","v":{"$error":"#N/A"}},{"$f":"IF(INDIRECT(\"c\" & (VLOOKUP(Switch!$D$34,$F$2:$G$44,2,FALSE)+ROW()-2))=Switch!$D$34,INDIRECT(\"a\" & (VLOOKUP(Switch!$D$34,$F$2:$G$44,2,FALSE)+ROW()-2)),\"\")","v":{"$error":"#N/A"}},{"$f":"IF(INDIRECT(\"c\" & (VLOOKUP(Switch!$D$35,$F$2:$G$44,2,FALSE)+ROW()-2))=Switch!$D$35,INDIRECT(\"a\" & (VLOOKUP(Switch!$D$35,$F$2:$G$44,2,FALSE)+ROW()-2)),\"\")","v":{"$error":"#N/A"}},{"$f":"IF(INDIRECT(\"c\" & (VLOOKUP(Switch!$D$36,$F$2:$G$44,2,FALSE)+ROW()-2))=Switch!$D$36,INDIRECT(\"a\" & (VLOOKUP(Switch!$D$36,$F$2:$G$44,2,FALSE)+ROW()-2)),\"\")","v":{"$error":"#N/A"}},{"$f":"IF(INDIRECT(\"c\" & (VLOOKUP(Switch!$D$37,$F$2:$G$44,2,FALSE)+ROW()-2))=Switch!$D$37,INDIRECT(\"a\" & (VLOOKUP(Switch!$D$37,$F$2:$G$44,2,FALSE)+ROW()-2)),\"\")","v":{"$error":"#N/A"}},{"$f":"IF(INDIRECT(\"c\" & (VLOOKUP(Switch!$D$38,$F$2:$G$44,2,FALSE)+ROW()-2))=Switch!$D$38,INDIRECT(\"a\" & (VLOOKUP(Switch!$D$38,$F$2:$G$44,2,FALSE)+ROW()-2)),\"\")","v":{"$error":"#N/A"}},{"$f":"IF(INDIRECT(\"c\" & (VLOOKUP(Switch!$D$39,$F$2:$G$44,2,FALSE)+ROW()-2))=Switch!$D$39,INDIRECT(\"a\" & (VLOOKUP(Switch!$D$39,$F$2:$G$44,2,FALSE)+ROW()-2)),\"\")","v":{"$error":"#N/A"}},{"$f":"IF(INDIRECT(\"c\" & (VLOOKUP(Switch!$D$40,$F$2:$G$44,2,FALSE)+ROW()-2))=Switch!$D$40,INDIRECT(\"a\" & (VLOOKUP(Switch!$D$40,$F$2:$G$44,2,FALSE)+ROW()-2)),\"\")","v":{"$error":"#N/A"}},{"$f":"IF(INDIRECT(\"c\" & (VLOOKUP(Switch!$D$52,$F$2:$G$44,2,FALSE)+ROW()-2))=Switch!$D$52,INDIRECT(\"a\" & (VLOOKUP(Switch!$D$52,$F$2:$G$44,2,FALSE)+ROW()-2)),\"\")","v":{"$error":"#N/A"}},{"$f":"IF(INDIRECT(\"c\" & (VLOOKUP(Switch!$D$53,$F$2:$G$44,2,FALSE)+ROW()-2))=Switch!$D$53,INDIRECT(\"a\" & (VLOOKUP(Switch!$D$53,$F$2:$G$44,2,FALSE)+ROW()-2)),\"\")","v":{"$error":"#N/A"}},{"$f":"IF(INDIRECT(\"c\" & (VLOOKUP(Switch!$D$54,$F$2:$G$44,2,FALSE)+ROW()-2))=Switch!$D$54,INDIRECT(\"a\" & (VLOOKUP(Switch!$D$54,$F$2:$G$44,2,FALSE)+ROW()-2)),\"\")","v":{"$error":"#N/A"}},{"$f":"IF(INDIRECT(\"c\" & (VLOOKUP(Switch!$D$55,$F$2:$G$44,2,FALSE)+ROW()-2))=Switch!$D$55,INDIRECT(\"a\" & (VLOOKUP(Switch!$D$55,$F$2:$G$44,2,FALSE)+ROW()-2)),\"\")","v":{"$error":"#N/A"}},{"$f":"IF(INDIRECT(\"c\" & (VLOOKUP(Switch!$D$56,$F$2:$G$44,2,FALSE)+ROW()-2))=Switch!$D$56,INDIRECT(\"a\" & (VLOOKUP(Switch!$D$56,$F$2:$G$44,2,FALSE)+ROW()-2)),\"\")","v":{"$error":"#N/A"}},{"$f":"IF(INDIRECT(\"c\" & (VLOOKUP(Switch!$D$57,$F$2:$G$44,2,FALSE)+ROW()-2))=Switch!$D$57,INDIRECT(\"a\" & (VLOOKUP(Switch!$D$57,$F$2:$G$44,2,FALSE)+ROW()-2)),\"\")","v":{"$error":"#N/A"}},{"$f":"IF(INDIRECT(\"c\" & (VLOOKUP(Switch!$D$58,$F$2:$G$44,2,FALSE)+ROW()-2))=Switch!$D$58,INDIRECT(\"a\" & (VLOOKUP(Switch!$D$58,$F$2:$G$44,2,FALSE)+ROW()-2)),\"\")","v":{"$error":"#N/A"}},{"$f":"IF(INDIRECT(\"c\" & (VLOOKUP(Switch!$D$59,$F$2:$G$44,2,FALSE)+ROW()-2))=Switch!$D$59,INDIRECT(\"a\" & (VLOOKUP(Switch!$D$59,$F$2:$G$44,2,FALSE)+ROW()-2)),\"\")","v":{"$error":"#N/A"}},{"$f":"IF(INDIRECT(\"c\" & (VLOOKUP(Switch!$D$60,$F$2:$G$44,2,FALSE)+ROW()-2))=Switch!$D$60,INDIRECT(\"a\" & (VLOOKUP(Switch!$D$60,$F$2:$G$44,2,FALSE)+ROW()-2)),\"\")","v":{"$error":"#N/A"}},{"$f":"IF(INDIRECT(\"c\" & (VLOOKUP(Switch!$D$61,$F$2:$G$44,2,FALSE)+ROW()-2))=Switch!$D$61,INDIRECT(\"a\" & (VLOOKUP(Switch!$D$61,$F$2:$G$44,2,FALSE)+ROW()-2)),\"\")","v":{"$error":"#N/A"}},{"$f":"IF(INDIRECT(\"c\" & (VLOOKUP(Switch!$D$62,$F$2:$G$44,2,FALSE)+ROW()-2))=Switch!$D$62,INDIRECT(\"a\" & (VLOOKUP(Switch!$D$62,$F$2:$G$44,2,FALSE)+ROW()-2)),\"\")","v":{"$error":"#N/A"}},{"$f":"IF(INDIRECT(\"c\" & (VLOOKUP(Switch!$D$63,$F$2:$G$44,2,FALSE)+ROW()-2))=Switch!$D$63,INDIRECT(\"a\" & (VLOOKUP(Switch!$D$63,$F$2:$G$44,2,FALSE)+ROW()-2)),\"\")","v":{"$error":"#N/A"}},{"$f":"IF(INDIRECT(\"c\" & (VLOOKUP(Switch!$D$64,$F$2:$G$44,2,FALSE)+ROW()-2))=Switch!$D$64,INDIRECT(\"a\" & (VLOOKUP(Switch!$D$64,$F$2:$G$44,2,FALSE)+ROW()-2)),\"\")","v":{"$error":"#N/A"}},{"$f":"IF(INDIRECT(\"c\" & (VLOOKUP(Switch!$D$65,$F$2:$G$44,2,FALSE)+ROW()-2))=Switch!$D$65,INDIRECT(\"a\" & (VLOOKUP(Switch!$D$65,$F$2:$G$44,2,FALSE)+ROW()-2)),\"\")","v":{"$error":"#N/A"}},{"$f":"IF(INDIRECT(\"c\" & (VLOOKUP(Switch!$D$66,$F$2:$G$44,2,FALSE)+ROW()-2))=Switch!$D$66,INDIRECT(\"a\" & (VLOOKUP(Switch!$D$66,$F$2:$G$44,2,FALSE)+ROW()-2)),\"\")","v":{"$error":"#N/A"}}]
["Momentum Bond Fund C1","RBFB8","Momentum Collective Investments Ltd",{"$f":"ROW()","v":326},null,null,{"$f":"VLOOKUP(F326,$C$2:$D$637,2,FALSE)","v":{"$error":"#N/A"}},{"$f":"IF(INDIRECT(\"c\" & (VLOOKUP(Switch!$D$26,$F$2:$G$44,2,FALSE)+ROW()-2))=Switch!$D$26,INDIRECT(\"a\" & (VLOOKUP(Switch!$D$26,$F$2:$G$44,2,FALSE)+ROW()-2)),\"\")","v":{"$error":"#N/A"}},{"$f":"IF(INDIRECT(\"c\" & (VLOOKUP(Switch!$D$27,$F$2:$G$44,2,FALSE)+ROW()-2))=Switch!$D$27,INDIRECT(\"a\" & (VLOOKUP(Switch!$D$27,$F$2:$G$44,2,FALSE)+ROW()-2)),\"\")","v":{"$error":"#N/A"}},{"$f":"IF(INDIRECT(\"c\" & (VLOOKUP(Switch!$D$28,$F$2:$G$44,2,FALSE)+ROW()-2))=Switch!$D$28,INDIRECT(\"a\" & (VLOOKUP(Switch!$D$28,$F$2:$G$44,2,FALSE)+ROW()-2)),\"\")","v":{"$error":"#N/A"}},{"$f":"IF(INDIRECT(\"c\" & (VLOOKUP(Switch!$D$29,$F$2:$G$44,2,FALSE)+ROW()-2))=Switch!$D$29,INDIRECT(\"a\" & (VLOOKUP(Switch!$D$29,$F$2:$G$44,2,FALSE)+ROW()-2)),\"\")","v":{"$error":"#N/A"}},{"$f":"IF(INDIRECT(\"c\" & (VLOOKUP(Switch!$D$30,$F$2:$G$44,2,FALSE)+ROW()-2))=Switch!$D$30,INDIRECT(\"a\" & (VLOOKUP(Switch!$D$30,$F$2:$G$44,2,FALSE)+ROW()-2)),\"\")","v":{"$error":"#N/A"}},{"$f":"IF(INDIRECT(\"c\" & (VLOOKUP(Switch!$D$31,$F$2:$G$44,2,FALSE)+ROW()-2))=Switch!$D$31,INDIRECT(\"a\" & (VLOOKUP(Switch!$D$31,$F$2:$G$44,2,FALSE)+ROW()-2)),\"\")","v":{"$error":"#N/A"}},{"$f":"IF(INDIRECT(\"c\" & (VLOOKUP(Switch!$D$32,$F$2:$G$44,2,FALSE)+ROW()-2))=Switch!$D$32,INDIRECT(\"a\" & (VLOOKUP(Switch!$D$32,$F$2:$G$44,2,FALSE)+ROW()-2)),\"\")","v":{"$error":"#N/A"}},{"$f":"IF(INDIRECT(\"c\" & (VLOOKUP(Switch!$D$33,$F$2:$G$44,2,FALSE)+ROW()-2))=Switch!$D$33,INDIRECT(\"a\" & (VLOOKUP(Switch!$D$33,$F$2:$G$44,2,FALSE)+ROW()-2)),\"\")","v":{"$error":"#N/A"}},{"$f":"IF(INDIRECT(\"c\" & (VLOOKUP(Switch!$D$34,$F$2:$G$44,2,FALSE)+ROW()-2))=Switch!$D$34,INDIRECT(\"a\" & (VLOOKUP(Switch!$D$34,$F$2:$G$44,2,FALSE)+ROW()-2)),\"\")","v":{"$error":"#N/A"}},{"$f":"IF(INDIRECT(\"c\" & (VLOOKUP(Switch!$D$35,$F$2:$G$44,2,FALSE)+ROW()-2))=Switch!$D$35,INDIRECT(\"a\" & (VLOOKUP(Switch!$D$35,$F$2:$G$44,2,FALSE)+ROW()-2)),\"\")","v":{"$error":"#N/A"}},{"$f":"IF(INDIRECT(\"c\" & (VLOOKUP(Switch!$D$36,$F$2:$G$44,2,FALSE)+ROW()-2))=Switch!$D$36,INDIRECT(\"a\" & (VLOOKUP(Switch!$D$36,$F$2:$G$44,2,FALSE)+ROW()-2)),\"\")","v":{"$error":"#N/A"}},{"$f":"IF(INDIRECT(\"c\" & (VLOOKUP(Switch!$D$37,$F$2:$G$44,2,FALSE)+ROW()-2))=Switch!$D$37,INDIRECT(\"a\" & (VLOOKUP(Switch!$D$37,$F$2:$G$44,2,FALSE)+ROW()-2)),\"\")","v":{"$error":"#N/A"}},{"$f":"IF(INDIRECT(\"c\" & (VLOOKUP(Switch!$D$38,$F$2:$G$44,2,FALSE)+ROW()-2))=Switch!$D$38,INDIRECT(\"a\" & (VLOOKUP(Switch!$D$38,$F$2:$G$44,2,FALSE)+ROW()-2)),\"\")","v":{"$error":"#N/A"}},{"$f":"IF(INDIRECT(\"c\" & (VLOOKUP(Switch!$D$39,$F$2:$G$44,2,FALSE)+ROW()-2))=Switch!$D$39,INDIRECT(\"a\" & (VLOOKUP(Switch!$D$39,$F$2:$G$44,2,FALSE)+ROW()-2)),\"\")","v":{"$error":"#N/A"}},{"$f":"IF(INDIRECT(\"c\" & (VLOOKUP(Switch!$D$40,$F$2:$G$44,2,FALSE)+ROW()-2))=Switch!$D$40,INDIRECT(\"a\" & (VLOOKUP(Switch!$D$40,$F$2:$G$44,2,FALSE)+ROW()-2)),\"\")","v":{"$error":"#N/A"}},{"$f":"IF(INDIRECT(\"c\" & (VLOOKUP(Switch!$D$52,$F$2:$G$44,2,FALSE)+ROW()-2))=Switch!$D$52,INDIRECT(\"a\" & (VLOOKUP(Switch!$D$52,$F$2:$G$44,2,FALSE)+ROW()-2)),\"\")","v":{"$error":"#N/A"}},{"$f":"IF(INDIRECT(\"c\" & (VLOOKUP(Switch!$D$53,$F$2:$G$44,2,FALSE)+ROW()-2))=Switch!$D$53,INDIRECT(\"a\" & (VLOOKUP(Switch!$D$53,$F$2:$G$44,2,FALSE)+ROW()-2)),\"\")","v":{"$error":"#N/A"}},{"$f":"IF(INDIRECT(\"c\" & (VLOOKUP(Switch!$D$54,$F$2:$G$44,2,FALSE)+ROW()-2))=Switch!$D$54,INDIRECT(\"a\" & (VLOOKUP(Switch!$D$54,$F$2:$G$44,2,FALSE)+ROW()-2)),\"\")","v":{"$error":"#N/A"}},{"$f":"IF(INDIRECT(\"c\" & (VLOOKUP(Switch!$D$55,$F$2:$G$44,2,FALSE)+ROW()-2))=Switch!$D$55,INDIRECT(\"a\" & (VLOOKUP(Switch!$D$55,$F$2:$G$44,2,FALSE)+ROW()-2)),\"\")","v":{"$error":"#N/A"}},{"$f":"IF(INDIRECT(\"c\" & (VLOOKUP(Switch!$D$56,$F$2:$G$44,2,FALSE)+ROW()-2))=Switch!$D$56,INDIRECT(\"a\" & (VLOOKUP(Switch!$D$56,$F$2:$G$44,2,FALSE)+ROW()-2)),\"\")","v":{"$error":"#N/A"}},{"$f":"IF(INDIRECT(\"c\" & (VLOOKUP(Switch!$D$57,$F$2:$G$44,2,FALSE)+ROW()-2))=Switch!$D$57,INDIRECT(\"a\" & (VLOOKUP(Switch!$D$57,$F$2:$G$44,2,FALSE)+ROW()-2)),\"\")","v":{"$error":"#N/A"}},{"$f":"IF(INDIRECT(\"c\" & (VLOOKUP(Switch!$D$58,$F$2:$G$44,2,FALSE)+ROW()-2))=Switch!$D$58,INDIRECT(\"a\" & (VLOOKUP(Switch!$D$58,$F$2:$G$44,2,FALSE)+ROW()-2)),\"\")","v":{"$error":"#N/A"}},{"$f":"IF(INDIRECT(\"c\" & (VLOOKUP(Switch!$D$59,$F$2:$G$44,2,FALSE)+ROW()-2))=Switch!$D$59,INDIRECT(\"a\" & (VLOOKUP(Switch!$D$59,$F$2:$G$44,2,FALSE)+ROW()-2)),\"\")","v":{"$error":"#N/A"}},{"$f":"IF(INDIRECT(\"c\" & (VLOOKUP(Switch!$D$60,$F$2:$G$44,2,FALSE)+ROW()-2))=Switch!$D$60,INDIRECT(\"a\" & (VLOOKUP(Switch!$D$60,$F$2:$G$44,2,FALSE)+ROW()-2)),\"\")","v":{"$error":"#N/A"}},{"$f":"IF(INDIRECT(\"c\" & (VLOOKUP(Switch!$D$61,$F$2:$G$44,2,FALSE)+ROW()-2))=Switch!$D$61,INDIRECT(\"a\" & (VLOOKUP(Switch!$D$61,$F$2:$G$44,2,FALSE)+ROW()-2)),\"\")","v":{"$error":"#N/A"}},{"$f":"IF(INDIRECT(\"c\" & (VLOOKUP(Switch!$D$62,$F$2:$G$44,2,FALSE)+ROW()-2))=Switch!$D$62,INDIRECT(\"a\" & (VLOOKUP(Switch!$D$62,$F$2:$G$44,2,FALSE)+ROW()-2)),\"\")","v":{"$error":"#N/A"}},{"$f":"IF(INDIRECT(\"c\" & (VLOOKUP(Switch!$D$63,$F$2:$G$44,2,FALSE)+ROW()-2))=Switch!$D$63,INDIRECT(\"a\" & (VLOOKUP(Switch!$D$63,$F$2:$G$44,2,FALSE)+ROW()-2)),\"\")","v":{"$error":"#N/A"}},{"$f":"IF(INDIRECT(\"c\" & (VLOOKUP(Switch!$D$64,$F$2:$G$44,2,FALSE)+ROW()-2))=Switch!$D$64,INDIRECT(\"a\" & (VLOOKUP(Switch!$D$64,$F$2:$G$44,2,FALSE)+ROW()-2)),\"\")","v":{"$error":"#N/A"}},{"$f":"IF(INDIRECT(\"c\" & (VLOOKUP(Switch!$D$65,$F$2:$G$44,2,FALSE)+ROW()-2))=Switch!$D$65,INDIRECT(\"a\" & (VLOOKUP(Switch!$D$65,$F$2:$G$44,2,FALSE)+ROW()-2)),\"\")","v":{"$error":"#N/A"}},{"$f":"IF(INDIRECT(\"c\" & (VLOOKUP(Switch!$D$66,$F$2:$G$44,2,FALSE)+ROW()-2))=Switch!$D$66,INDIRECT(\"a\" & (VLOOKUP(Switch!$D$66,$F$2:$G$44,2,FALSE)+ROW()-2)),\"\")","v":{"$error":"#N/A"}}]
["Momentum Capital Enhancer Fund A","RMCA","Momentum Collective Investments Ltd",{"$f":"ROW()","v":327},null,null,{"$f":"VLOOKUP(F327,$C$2:$D$637,2,FALSE)","v":{"$error":"#N/A"}},{"$f":"IF(INDIRECT(\"c\" & (VLOOKUP(Switch!$D$26,$F$2:$G$44,2,FALSE)+ROW()-2))=Switch!$D$26,INDIRECT(\"a\" & (VLOOKUP(Switch!$D$26,$F$2:$G$44,2,FALSE)+ROW()-2)),\"\")","v":{"$error":"#N/A"}},{"$f":"IF(INDIRECT(\"c\" & (VLOOKUP(Switch!$D$27,$F$2:$G$44,2,FALSE)+ROW()-2))=Switch!$D$27,INDIRECT(\"a\" & (VLOOKUP(Switch!$D$27,$F$2:$G$44,2,FALSE)+ROW()-2)),\"\")","v":{"$error":"#N/A"}},{"$f":"IF(INDIRECT(\"c\" & (VLOOKUP(Switch!$D$28,$F$2:$G$44,2,FALSE)+ROW()-2))=Switch!$D$28,INDIRECT(\"a\" & (VLOOKUP(Switch!$D$28,$F$2:$G$44,2,FALSE)+ROW()-2)),\"\")","v":{"$error":"#N/A"}},{"$f":"IF(INDIRECT(\"c\" & (VLOOKUP(Switch!$D$29,$F$2:$G$44,2,FALSE)+ROW()-2))=Switch!$D$29,INDIRECT(\"a\" & (VLOOKUP(Switch!$D$29,$F$2:$G$44,2,FALSE)+ROW()-2)),\"\")","v":{"$error":"#N/A"}},{"$f":"IF(INDIRECT(\"c\" & (VLOOKUP(Switch!$D$30,$F$2:$G$44,2,FALSE)+ROW()-2))=Switch!$D$30,INDIRECT(\"a\" & (VLOOKUP(Switch!$D$30,$F$2:$G$44,2,FALSE)+ROW()-2)),\"\")","v":{"$error":"#N/A"}},{"$f":"IF(INDIRECT(\"c\" & (VLOOKUP(Switch!$D$31,$F$2:$G$44,2,FALSE)+ROW()-2))=Switch!$D$31,INDIRECT(\"a\" & (VLOOKUP(Switch!$D$31,$F$2:$G$44,2,FALSE)+ROW()-2)),\"\")","v":{"$error":"#N/A"}},{"$f":"IF(INDIRECT(\"c\" & (VLOOKUP(Switch!$D$32,$F$2:$G$44,2,FALSE)+ROW()-2))=Switch!$D$32,INDIRECT(\"a\" & (VLOOKUP(Switch!$D$32,$F$2:$G$44,2,FALSE)+ROW()-2)),\"\")","v":{"$error":"#N/A"}},{"$f":"IF(INDIRECT(\"c\" & (VLOOKUP(Switch!$D$33,$F$2:$G$44,2,FALSE)+ROW()-2))=Switch!$D$33,INDIRECT(\"a\" & (VLOOKUP(Switch!$D$33,$F$2:$G$44,2,FALSE)+ROW()-2)),\"\")","v":{"$error":"#N/A"}},{"$f":"IF(INDIRECT(\"c\" & (VLOOKUP(Switch!$D$34,$F$2:$G$44,2,FALSE)+ROW()-2))=Switch!$D$34,INDIRECT(\"a\" & (VLOOKUP(Switch!$D$34,$F$2:$G$44,2,FALSE)+ROW()-2)),\"\")","v":{"$error":"#N/A"}},{"$f":"IF(INDIRECT(\"c\" & (VLOOKUP(Switch!$D$35,$F$2:$G$44,2,FALSE)+ROW()-2))=Switch!$D$35,INDIRECT(\"a\" & (VLOOKUP(Switch!$D$35,$F$2:$G$44,2,FALSE)+ROW()-2)),\"\")","v":{"$error":"#N/A"}},{"$f":"IF(INDIRECT(\"c\" & (VLOOKUP(Switch!$D$36,$F$2:$G$44,2,FALSE)+ROW()-2))=Switch!$D$36,INDIRECT(\"a\" & (VLOOKUP(Switch!$D$36,$F$2:$G$44,2,FALSE)+ROW()-2)),\"\")","v":{"$error":"#N/A"}},{"$f":"IF(INDIRECT(\"c\" & (VLOOKUP(Switch!$D$37,$F$2:$G$44,2,FALSE)+ROW()-2))=Switch!$D$37,INDIRECT(\"a\" & (VLOOKUP(Switch!$D$37,$F$2:$G$44,2,FALSE)+ROW()-2)),\"\")","v":{"$error":"#N/A"}},{"$f":"IF(INDIRECT(\"c\" & (VLOOKUP(Switch!$D$38,$F$2:$G$44,2,FALSE)+ROW()-2))=Switch!$D$38,INDIRECT(\"a\" & (VLOOKUP(Switch!$D$38,$F$2:$G$44,2,FALSE)+ROW()-2)),\"\")","v":{"$error":"#N/A"}},{"$f":"IF(INDIRECT(\"c\" & (VLOOKUP(Switch!$D$39,$F$2:$G$44,2,FALSE)+ROW()-2))=Switch!$D$39,INDIRECT(\"a\" & (VLOOKUP(Switch!$D$39,$F$2:$G$44,2,FALSE)+ROW()-2)),\"\")","v":{"$error":"#N/A"}},{"$f":"IF(INDIRECT(\"c\" & (VLOOKUP(Switch!$D$40,$F$2:$G$44,2,FALSE)+ROW()-2))=Switch!$D$40,INDIRECT(\"a\" & (VLOOKUP(Switch!$D$40,$F$2:$G$44,2,FALSE)+ROW()-2)),\"\")","v":{"$error":"#N/A"}},{"$f":"IF(INDIRECT(\"c\" & (VLOOKUP(Switch!$D$52,$F$2:$G$44,2,FALSE)+ROW()-2))=Switch!$D$52,INDIRECT(\"a\" & (VLOOKUP(Switch!$D$52,$F$2:$G$44,2,FALSE)+ROW()-2)),\"\")","v":{"$error":"#N/A"}},{"$f":"IF(INDIRECT(\"c\" & (VLOOKUP(Switch!$D$53,$F$2:$G$44,2,FALSE)+ROW()-2))=Switch!$D$53,INDIRECT(\"a\" & (VLOOKUP(Switch!$D$53,$F$2:$G$44,2,FALSE)+ROW()-2)),\"\")","v":{"$error":"#N/A"}},{"$f":"IF(INDIRECT(\"c\" & (VLOOKUP(Switch!$D$54,$F$2:$G$44,2,FALSE)+ROW()-2))=Switch!$D$54,INDIRECT(\"a\" & (VLOOKUP(Switch!$D$54,$F$2:$G$44,2,FALSE)+ROW()-2)),\"\")","v":{"$error":"#N/A"}},{"$f":"IF(INDIRECT(\"c\" & (VLOOKUP(Switch!$D$55,$F$2:$G$44,2,FALSE)+ROW()-2))=Switch!$D$55,INDIRECT(\"a\" & (VLOOKUP(Switch!$D$55,$F$2:$G$44,2,FALSE)+ROW()-2)),\"\")","v":{"$error":"#N/A"}},{"$f":"IF(INDIRECT(\"c\" & (VLOOKUP(Switch!$D$56,$F$2:$G$44,2,FALSE)+ROW()-2))=Switch!$D$56,INDIRECT(\"a\" & (VLOOKUP(Switch!$D$56,$F$2:$G$44,2,FALSE)+ROW()-2)),\"\")","v":{"$error":"#N/A"}},{"$f":"IF(INDIRECT(\"c\" & (VLOOKUP(Switch!$D$57,$F$2:$G$44,2,FALSE)+ROW()-2))=Switch!$D$57,INDIRECT(\"a\" & (VLOOKUP(Switch!$D$57,$F$2:$G$44,2,FALSE)+ROW()-2)),\"\")","v":{"$error":"#N/A"}},{"$f":"IF(INDIRECT(\"c\" & (VLOOKUP(Switch!$D$58,$F$2:$G$44,2,FALSE)+ROW()-2))=Switch!$D$58,INDIRECT(\"a\" & (VLOOKUP(Switch!$D$58,$F$2:$G$44,2,FALSE)+ROW()-2)),\"\")","v":{"$error":"#N/A"}},{"$f":"IF(INDIRECT(\"c\" & (VLOOKUP(Switch!$D$59,$F$2:$G$44,2,FALSE)+ROW()-2))=Switch!$D$59,INDIRECT(\"a\" & (VLOOKUP(Switch!$D$59,$F$2:$G$44,2,FALSE)+ROW()-2)),\"\")","v":{"$error":"#N/A"}},{"$f":"IF(INDIRECT(\"c\" & (VLOOKUP(Switch!$D$60,$F$2:$G$44,2,FALSE)+ROW()-2))=Switch!$D$60,INDIRECT(\"a\" & (VLOOKUP(Switch!$D$60,$F$2:$G$44,2,FALSE)+ROW()-2)),\"\")","v":{"$error":"#N/A"}},{"$f":"IF(INDIRECT(\"c\" & (VLOOKUP(Switch!$D$61,$F$2:$G$44,2,FALSE)+ROW()-2))=Switch!$D$61,INDIRECT(\"a\" & (VLOOKUP(Switch!$D$61,$F$2:$G$44,2,FALSE)+ROW()-2)),\"\")","v":{"$error":"#N/A"}},{"$f":"IF(INDIRECT(\"c\" & (VLOOKUP(Switch!$D$62,$F$2:$G$44,2,FALSE)+ROW()-2))=Switch!$D$62,INDIRECT(\"a\" & (VLOOKUP(Switch!$D$62,$F$2:$G$44,2,FALSE)+ROW()-2)),\"\")","v":{"$error":"#N/A"}},{"$f":"IF(INDIRECT(\"c\" & (VLOOKUP(Switch!$D$63,$F$2:$G$44,2,FALSE)+ROW()-2))=Switch!$D$63,INDIRECT(\"a\" & (VLOOKUP(Switch!$D$63,$F$2:$G$44,2,FALSE)+ROW()-2)),\"\")","v":{"$error":"#N/A"}},{"$f":"IF(INDIRECT(\"c\" & (VLOOKUP(Switch!$D$64,$F$2:$G$44,2,FALSE)+ROW()-2))=Switch!$D$64,INDIRECT(\"a\" & (VLOOKUP(Switch!$D$64,$F$2:$G$44,2,FALSE)+ROW()-2)),\"\")","v":{"$error":"#N/A"}},{"$f":"IF(INDIRECT(\"c\" & (VLOOKUP(Switch!$D$65,$F$2:$G$44,2,FALSE)+ROW()-2))=Switch!$D$65,INDIRECT(\"a\" & (VLOOKUP(Switch!$D$65,$F$2:$G$44,2,FALSE)+ROW()-2)),\"\")","v":{"$error":"#N/A"}},{"$f":"IF(INDIRECT(\"c\" & (VLOOKUP(Switch!$D$66,$F$2:$G$44,2,FALSE)+ROW()-2))=Switch!$D$66,INDIRECT(\"a\" & (VLOOKUP(Switch!$D$66,$F$2:$G$44,2,FALSE)+ROW()-2)),\"\")","v":{"$error":"#N/A"}}]
["Momentum Conservative Fund A","RCCA","Momentum Collective Investments Ltd",{"$f":"ROW()","v":328},null,null,{"$f":"VLOOKUP(F328,$C$2:$D$637,2,FALSE)","v":{"$error":"#N/A"}},{"$f":"IF(INDIRECT(\"c\" & (VLOOKUP(Switch!$D$26,$F$2:$G$44,2,FALSE)+ROW()-2))=Switch!$D$26,INDIRECT(\"a\" & (VLOOKUP(Switch!$D$26,$F$2:$G$44,2,FALSE)+ROW()-2)),\"\")","v":{"$error":"#N/A"}},{"$f":"IF(INDIRECT(\"c\" & (VLOOKUP(Switch!$D$27,$F$2:$G$44,2,FALSE)+ROW()-2))=Switch!$D$27,INDIRECT(\"a\" & (VLOOKUP(Switch!$D$27,$F$2:$G$44,2,FALSE)+ROW()-2)),\"\")","v":{"$error":"#N/A"}},{"$f":"IF(INDIRECT(\"c\" & (VLOOKUP(Switch!$D$28,$F$2:$G$44,2,FALSE)+ROW()-2))=Switch!$D$28,INDIRECT(\"a\" & (VLOOKUP(Switch!$D$28,$F$2:$G$44,2,FALSE)+ROW()-2)),\"\")","v":{"$error":"#N/A"}},{"$f":"IF(INDIRECT(\"c\" & (VLOOKUP(Switch!$D$29,$F$2:$G$44,2,FALSE)+ROW()-2))=Switch!$D$29,INDIRECT(\"a\" & (VLOOKUP(Switch!$D$29,$F$2:$G$44,2,FALSE)+ROW()-2)),\"\")","v":{"$error":"#N/A"}},{"$f":"IF(INDIRECT(\"c\" & (VLOOKUP(Switch!$D$30,$F$2:$G$44,2,FALSE)+ROW()-2))=Switch!$D$30,INDIRECT(\"a\" & (VLOOKUP(Switch!$D$30,$F$2:$G$44,2,FALSE)+ROW()-2)),\"\")","v":{"$error":"#N/A"}},{"$f":"IF(INDIRECT(\"c\" & (VLOOKUP(Switch!$D$31,$F$2:$G$44,2,FALSE)+ROW()-2))=Switch!$D$31,INDIRECT(\"a\" & (VLOOKUP(Switch!$D$31,$F$2:$G$44,2,FALSE)+ROW()-2)),\"\")","v":{"$error":"#N/A"}},{"$f":"IF(INDIRECT(\"c\" & (VLOOKUP(Switch!$D$32,$F$2:$G$44,2,FALSE)+ROW()-2))=Switch!$D$32,INDIRECT(\"a\" & (VLOOKUP(Switch!$D$32,$F$2:$G$44,2,FALSE)+ROW()-2)),\"\")","v":{"$error":"#N/A"}},{"$f":"IF(INDIRECT(\"c\" & (VLOOKUP(Switch!$D$33,$F$2:$G$44,2,FALSE)+ROW()-2))=Switch!$D$33,INDIRECT(\"a\" & (VLOOKUP(Switch!$D$33,$F$2:$G$44,2,FALSE)+ROW()-2)),\"\")","v":{"$error":"#N/A"}},{"$f":"IF(INDIRECT(\"c\" & (VLOOKUP(Switch!$D$34,$F$2:$G$44,2,FALSE)+ROW()-2))=Switch!$D$34,INDIRECT(\"a\" & (VLOOKUP(Switch!$D$34,$F$2:$G$44,2,FALSE)+ROW()-2)),\"\")","v":{"$error":"#N/A"}},{"$f":"IF(INDIRECT(\"c\" & (VLOOKUP(Switch!$D$35,$F$2:$G$44,2,FALSE)+ROW()-2))=Switch!$D$35,INDIRECT(\"a\" & (VLOOKUP(Switch!$D$35,$F$2:$G$44,2,FALSE)+ROW()-2)),\"\")","v":{"$error":"#N/A"}},{"$f":"IF(INDIRECT(\"c\" & (VLOOKUP(Switch!$D$36,$F$2:$G$44,2,FALSE)+ROW()-2))=Switch!$D$36,INDIRECT(\"a\" & (VLOOKUP(Switch!$D$36,$F$2:$G$44,2,FALSE)+ROW()-2)),\"\")","v":{"$error":"#N/A"}},{"$f":"IF(INDIRECT(\"c\" & (VLOOKUP(Switch!$D$37,$F$2:$G$44,2,FALSE)+ROW()-2))=Switch!$D$37,INDIRECT(\"a\" & (VLOOKUP(Switch!$D$37,$F$2:$G$44,2,FALSE)+ROW()-2)),\"\")","v":{"$error":"#N/A"}},{"$f":"IF(INDIRECT(\"c\" & (VLOOKUP(Switch!$D$38,$F$2:$G$44,2,FALSE)+ROW()-2))=Switch!$D$38,INDIRECT(\"a\" & (VLOOKUP(Switch!$D$38,$F$2:$G$44,2,FALSE)+ROW()-2)),\"\")","v":{"$error":"#N/A"}},{"$f":"IF(INDIRECT(\"c\" & (VLOOKUP(Switch!$D$39,$F$2:$G$44,2,FALSE)+ROW()-2))=Switch!$D$39,INDIRECT(\"a\" & (VLOOKUP(Switch!$D$39,$F$2:$G$44,2,FALSE)+ROW()-2)),\"\")","v":{"$error":"#N/A"}},{"$f":"IF(INDIRECT(\"c\" & (VLOOKUP(Switch!$D$40,$F$2:$G$44,2,FALSE)+ROW()-2))=Switch!$D$40,INDIRECT(\"a\" & (VLOOKUP(Switch!$D$40,$F$2:$G$44,2,FALSE)+ROW()-2)),\"\")","v":{"$error":"#N/A"}},{"$f":"IF(INDIRECT(\"c\" & (VLOOKUP(Switch!$D$52,$F$2:$G$44,2,FALSE)+ROW()-2))=Switch!$D$52,INDIRECT(\"a\" & (VLOOKUP(Switch!$D$52,$F$2:$G$44,2,FALSE)+ROW()-2)),\"\")","v":{"$error":"#N/A"}},{"$f":"IF(INDIRECT(\"c\" & (VLOOKUP(Switch!$D$53,$F$2:$G$44,2,FALSE)+ROW()-2))=Switch!$D$53,INDIRECT(\"a\" & (VLOOKUP(Switch!$D$53,$F$2:$G$44,2,FALSE)+ROW()-2)),\"\")","v":{"$error":"#N/A"}},{"$f":"IF(INDIRECT(\"c\" & (VLOOKUP(Switch!$D$54,$F$2:$G$44,2,FALSE)+ROW()-2))=Switch!$D$54,INDIRECT(\"a\" & (VLOOKUP(Switch!$D$54,$F$2:$G$44,2,FALSE)+ROW()-2)),\"\")","v":{"$error":"#N/A"}},{"$f":"IF(INDIRECT(\"c\" & (VLOOKUP(Switch!$D$55,$F$2:$G$44,2,FALSE)+ROW()-2))=Switch!$D$55,INDIRECT(\"a\" & (VLOOKUP(Switch!$D$55,$F$2:$G$44,2,FALSE)+ROW()-2)),\"\")","v":{"$error":"#N/A"}},{"$f":"IF(INDIRECT(\"c\" & (VLOOKUP(Switch!$D$56,$F$2:$G$44,2,FALSE)+ROW()-2))=Switch!$D$56,INDIRECT(\"a\" & (VLOOKUP(Switch!$D$56,$F$2:$G$44,2,FALSE)+ROW()-2)),\"\")","v":{"$error":"#N/A"}},{"$f":"IF(INDIRECT(\"c\" & (VLOOKUP(Switch!$D$57,$F$2:$G$44,2,FALSE)+ROW()-2))=Switch!$D$57,INDIRECT(\"a\" & (VLOOKUP(Switch!$D$57,$F$2:$G$44,2,FALSE)+ROW()-2)),\"\")","v":{"$error":"#N/A"}},{"$f":"IF(INDIRECT(\"c\" & (VLOOKUP(Switch!$D$58,$F$2:$G$44,2,FALSE)+ROW()-2))=Switch!$D$58,INDIRECT(\"a\" & (VLOOKUP(Switch!$D$58,$F$2:$G$44,2,FALSE)+ROW()-2)),\"\")","v":{"$error":"#N/A"}},{"$f":"IF(INDIRECT(\"c\" & (VLOOKUP(Switch!$D$59,$F$2:$G$44,2,FALSE)+ROW()-2))=Switch!$D$59,INDIRECT(\"a\" & (VLOOKUP(Switch!$D$59,$F$2:$G$44,2,FALSE)+ROW()-2)),\"\")","v":{"$error":"#N/A"}},{"$f":"IF(INDIRECT(\"c\" & (VLOOKUP(Switch!$D$60,$F$2:$G$44,2,FALSE)+ROW()-2))=Switch!$D$60,INDIRECT(\"a\" & (VLOOKUP(Switch!$D$60,$F$2:$G$44,2,FALSE)+ROW()-2)),\"\")","v":{"$error":"#N/A"}},{"$f":"IF(INDIRECT(\"c\" & (VLOOKUP(Switch!$D$61,$F$2:$G$44,2,FALSE)+ROW()-2))=Switch!$D$61,INDIRECT(\"a\" & (VLOOKUP(Switch!$D$61,$F$2:$G$44,2,FALSE)+ROW()-2)),\"\")","v":{"$error":"#N/A"}},{"$f":"IF(INDIRECT(\"c\" & (VLOOKUP(Switch!$D$62,$F$2:$G$44,2,FALSE)+ROW()-2))=Switch!$D$62,INDIRECT(\"a\" & (VLOOKUP(Switch!$D$62,$F$2:$G$44,2,FALSE)+ROW()-2)),\"\")","v":{"$error":"#N/A"}},{"$f":"IF(INDIRECT(\"c\" & (VLOOKUP(Switch!$D$63,$F$2:$G$44,2,FALSE)+ROW()-2))=Switch!$D$63,INDIRECT(\"a\" & (VLOOKUP(Switch!$D$63,$F$2:$G$44,2,FALSE)+ROW()-2)),\"\")","v":{"$error":"#N/A"}},{"$f":"IF(INDIRECT(\"c\" & (VLOOKUP(Switch!$D$64,$F$2:$G$44,2,FALSE)+ROW()-2))=Switch!$D$64,INDIRECT(\"a\" & (VLOOKUP(Switch!$D$64,$F$2:$G$44,2,FALSE)+ROW()-2)),\"\")","v":{"$error":"#N/A"}},{"$f":"IF(INDIRECT(\"c\" & (VLOOKUP(Switch!$D$65,$F$2:$G$44,2,FALSE)+ROW()-2))=Switch!$D$65,INDIRECT(\"a\" & (VLOOKUP(Switch!$D$65,$F$2:$G$44,2,FALSE)+ROW()-2)),\"\")","v":{"$error":"#N/A"}},{"$f":"IF(INDIRECT(\"c\" & (VLOOKUP(Switch!$D$66,$F$2:$G$44,2,FALSE)+ROW()-2))=Switch!$D$66,INDIRECT(\"a\" & (VLOOKUP(Switch!$D$66,$F$2:$G$44,2,FALSE)+ROW()-2)),\"\")","v":{"$error":"#N/A"}}]
["Momentum Core Equity Fund C","MRGCFC","Momentum Collective Investments Ltd",{"$f":"ROW()","v":329},null,null,{"$f":"VLOOKUP(F329,$C$2:$D$637,2,FALSE)","v":{"$error":"#N/A"}},{"$f":"IF(INDIRECT(\"c\" & (VLOOKUP(Switch!$D$26,$F$2:$G$44,2,FALSE)+ROW()-2))=Switch!$D$26,INDIRECT(\"a\" & (VLOOKUP(Switch!$D$26,$F$2:$G$44,2,FALSE)+ROW()-2)),\"\")","v":{"$error":"#N/A"}},{"$f":"IF(INDIRECT(\"c\" & (VLOOKUP(Switch!$D$27,$F$2:$G$44,2,FALSE)+ROW()-2))=Switch!$D$27,INDIRECT(\"a\" & (VLOOKUP(Switch!$D$27,$F$2:$G$44,2,FALSE)+ROW()-2)),\"\")","v":{"$error":"#N/A"}},{"$f":"IF(INDIRECT(\"c\" & (VLOOKUP(Switch!$D$28,$F$2:$G$44,2,FALSE)+ROW()-2))=Switch!$D$28,INDIRECT(\"a\" & (VLOOKUP(Switch!$D$28,$F$2:$G$44,2,FALSE)+ROW()-2)),\"\")","v":{"$error":"#N/A"}},{"$f":"IF(INDIRECT(\"c\" & (VLOOKUP(Switch!$D$29,$F$2:$G$44,2,FALSE)+ROW()-2))=Switch!$D$29,INDIRECT(\"a\" & (VLOOKUP(Switch!$D$29,$F$2:$G$44,2,FALSE)+ROW()-2)),\"\")","v":{"$error":"#N/A"}},{"$f":"IF(INDIRECT(\"c\" & (VLOOKUP(Switch!$D$30,$F$2:$G$44,2,FALSE)+ROW()-2))=Switch!$D$30,INDIRECT(\"a\" & (VLOOKUP(Switch!$D$30,$F$2:$G$44,2,FALSE)+ROW()-2)),\"\")","v":{"$error":"#N/A"}},{"$f":"IF(INDIRECT(\"c\" & (VLOOKUP(Switch!$D$31,$F$2:$G$44,2,FALSE)+ROW()-2))=Switch!$D$31,INDIRECT(\"a\" & (VLOOKUP(Switch!$D$31,$F$2:$G$44,2,FALSE)+ROW()-2)),\"\")","v":{"$error":"#N/A"}},{"$f":"IF(INDIRECT(\"c\" & (VLOOKUP(Switch!$D$32,$F$2:$G$44,2,FALSE)+ROW()-2))=Switch!$D$32,INDIRECT(\"a\" & (VLOOKUP(Switch!$D$32,$F$2:$G$44,2,FALSE)+ROW()-2)),\"\")","v":{"$error":"#N/A"}},{"$f":"IF(INDIRECT(\"c\" & (VLOOKUP(Switch!$D$33,$F$2:$G$44,2,FALSE)+ROW()-2))=Switch!$D$33,INDIRECT(\"a\" & (VLOOKUP(Switch!$D$33,$F$2:$G$44,2,FALSE)+ROW()-2)),\"\")","v":{"$error":"#N/A"}},{"$f":"IF(INDIRECT(\"c\" & (VLOOKUP(Switch!$D$34,$F$2:$G$44,2,FALSE)+ROW()-2))=Switch!$D$34,INDIRECT(\"a\" & (VLOOKUP(Switch!$D$34,$F$2:$G$44,2,FALSE)+ROW()-2)),\"\")","v":{"$error":"#N/A"}},{"$f":"IF(INDIRECT(\"c\" & (VLOOKUP(Switch!$D$35,$F$2:$G$44,2,FALSE)+ROW()-2))=Switch!$D$35,INDIRECT(\"a\" & (VLOOKUP(Switch!$D$35,$F$2:$G$44,2,FALSE)+ROW()-2)),\"\")","v":{"$error":"#N/A"}},{"$f":"IF(INDIRECT(\"c\" & (VLOOKUP(Switch!$D$36,$F$2:$G$44,2,FALSE)+ROW()-2))=Switch!$D$36,INDIRECT(\"a\" & (VLOOKUP(Switch!$D$36,$F$2:$G$44,2,FALSE)+ROW()-2)),\"\")","v":{"$error":"#N/A"}},{"$f":"IF(INDIRECT(\"c\" & (VLOOKUP(Switch!$D$37,$F$2:$G$44,2,FALSE)+ROW()-2))=Switch!$D$37,INDIRECT(\"a\" & (VLOOKUP(Switch!$D$37,$F$2:$G$44,2,FALSE)+ROW()-2)),\"\")","v":{"$error":"#N/A"}},{"$f":"IF(INDIRECT(\"c\" & (VLOOKUP(Switch!$D$38,$F$2:$G$44,2,FALSE)+ROW()-2))=Switch!$D$38,INDIRECT(\"a\" & (VLOOKUP(Switch!$D$38,$F$2:$G$44,2,FALSE)+ROW()-2)),\"\")","v":{"$error":"#N/A"}},{"$f":"IF(INDIRECT(\"c\" & (VLOOKUP(Switch!$D$39,$F$2:$G$44,2,FALSE)+ROW()-2))=Switch!$D$39,INDIRECT(\"a\" & (VLOOKUP(Switch!$D$39,$F$2:$G$44,2,FALSE)+ROW()-2)),\"\")","v":{"$error":"#N/A"}},{"$f":"IF(INDIRECT(\"c\" & (VLOOKUP(Switch!$D$40,$F$2:$G$44,2,FALSE)+ROW()-2))=Switch!$D$40,INDIRECT(\"a\" & (VLOOKUP(Switch!$D$40,$F$2:$G$44,2,FALSE)+ROW()-2)),\"\")","v":{"$error":"#N/A"}},{"$f":"IF(INDIRECT(\"c\" & (VLOOKUP(Switch!$D$52,$F$2:$G$44,2,FALSE)+ROW()-2))=Switch!$D$52,INDIRECT(\"a\" & (VLOOKUP(Switch!$D$52,$F$2:$G$44,2,FALSE)+ROW()-2)),\"\")","v":{"$error":"#N/A"}},{"$f":"IF(INDIRECT(\"c\" & (VLOOKUP(Switch!$D$53,$F$2:$G$44,2,FALSE)+ROW()-2))=Switch!$D$53,INDIRECT(\"a\" & (VLOOKUP(Switch!$D$53,$F$2:$G$44,2,FALSE)+ROW()-2)),\"\")","v":{"$error":"#N/A"}},{"$f":"IF(INDIRECT(\"c\" & (VLOOKUP(Switch!$D$54,$F$2:$G$44,2,FALSE)+ROW()-2))=Switch!$D$54,INDIRECT(\"a\" & (VLOOKUP(Switch!$D$54,$F$2:$G$44,2,FALSE)+ROW()-2)),\"\")","v":{"$error":"#N/A"}},{"$f":"IF(INDIRECT(\"c\" & (VLOOKUP(Switch!$D$55,$F$2:$G$44,2,FALSE)+ROW()-2))=Switch!$D$55,INDIRECT(\"a\" & (VLOOKUP(Switch!$D$55,$F$2:$G$44,2,FALSE)+ROW()-2)),\"\")","v":{"$error":"#N/A"}},{"$f":"IF(INDIRECT(\"c\" & (VLOOKUP(Switch!$D$56,$F$2:$G$44,2,FALSE)+ROW()-2))=Switch!$D$56,INDIRECT(\"a\" & (VLOOKUP(Switch!$D$56,$F$2:$G$44,2,FALSE)+ROW()-2)),\"\")","v":{"$error":"#N/A"}},{"$f":"IF(INDIRECT(\"c\" & (VLOOKUP(Switch!$D$57,$F$2:$G$44,2,FALSE)+ROW()-2))=Switch!$D$57,INDIRECT(\"a\" & (VLOOKUP(Switch!$D$57,$F$2:$G$44,2,FALSE)+ROW()-2)),\"\")","v":{"$error":"#N/A"}},{"$f":"IF(INDIRECT(\"c\" & (VLOOKUP(Switch!$D$58,$F$2:$G$44,2,FALSE)+ROW()-2))=Switch!$D$58,INDIRECT(\"a\" & (VLOOKUP(Switch!$D$58,$F$2:$G$44,2,FALSE)+ROW()-2)),\"\")","v":{"$error":"#N/A"}},{"$f":"IF(INDIRECT(\"c\" & (VLOOKUP(Switch!$D$59,$F$2:$G$44,2,FALSE)+ROW()-2))=Switch!$D$59,INDIRECT(\"a\" & (VLOOKUP(Switch!$D$59,$F$2:$G$44,2,FALSE)+ROW()-2)),\"\")","v":{"$error":"#N/A"}},{"$f":"IF(INDIRECT(\"c\" & (VLOOKUP(Switch!$D$60,$F$2:$G$44,2,FALSE)+ROW()-2))=Switch!$D$60,INDIRECT(\"a\" & (VLOOKUP(Switch!$D$60,$F$2:$G$44,2,FALSE)+ROW()-2)),\"\")","v":{"$error":"#N/A"}},{"$f":"IF(INDIRECT(\"c\" & (VLOOKUP(Switch!$D$61,$F$2:$G$44,2,FALSE)+ROW()-2))=Switch!$D$61,INDIRECT(\"a\" & (VLOOKUP(Switch!$D$61,$F$2:$G$44,2,FALSE)+ROW()-2)),\"\")","v":{"$error":"#N/A"}},{"$f":"IF(INDIRECT(\"c\" & (VLOOKUP(Switch!$D$62,$F$2:$G$44,2,FALSE)+ROW()-2))=Switch!$D$62,INDIRECT(\"a\" & (VLOOKUP(Switch!$D$62,$F$2:$G$44,2,FALSE)+ROW()-2)),\"\")","v":{"$error":"#N/A"}},{"$f":"IF(INDIRECT(\"c\" & (VLOOKUP(Switch!$D$63,$F$2:$G$44,2,FALSE)+ROW()-2))=Switch!$D$63,INDIRECT(\"a\" & (VLOOKUP(Switch!$D$63,$F$2:$G$44,2,FALSE)+ROW()-2)),\"\")","v":{"$error":"#N/A"}},{"$f":"IF(INDIRECT(\"c\" & (VLOOKUP(Switch!$D$64,$F$2:$G$44,2,FALSE)+ROW()-2))=Switch!$D$64,INDIRECT(\"a\" & (VLOOKUP(Switch!$D$64,$F$2:$G$44,2,FALSE)+ROW()-2)),\"\")","v":{"$error":"#N/A"}},{"$f":"IF(INDIRECT(\"c\" & (VLOOKUP(Switch!$D$65,$F$2:$G$44,2,FALSE)+ROW()-2))=Switch!$D$65,INDIRECT(\"a\" & (VLOOKUP(Switch!$D$65,$F$2:$G$44,2,FALSE)+ROW()-2)),\"\")","v":{"$error":"#N/A"}},{"$f":"IF(INDIRECT(\"c\" & (VLOOKUP(Switch!$D$66,$F$2:$G$44,2,FALSE)+ROW()-2))=Switch!$D$66,INDIRECT(\"a\" & (VLOOKUP(Switch!$D$66,$F$2:$G$44,2,FALSE)+ROW()-2)),\"\")","v":{"$error":"#N/A"}}]
["Momentum Diversified Income Fund B1","MBFB7","Momentum Collective Investments Ltd",{"$f":"ROW()","v":330},null,null,{"$f":"VLOOKUP(F330,$C$2:$D$637,2,FALSE)","v":{"$error":"#N/A"}},{"$f":"IF(INDIRECT(\"c\" & (VLOOKUP(Switch!$D$26,$F$2:$G$44,2,FALSE)+ROW()-2))=Switch!$D$26,INDIRECT(\"a\" & (VLOOKUP(Switch!$D$26,$F$2:$G$44,2,FALSE)+ROW()-2)),\"\")","v":{"$error":"#N/A"}},{"$f":"IF(INDIRECT(\"c\" & (VLOOKUP(Switch!$D$27,$F$2:$G$44,2,FALSE)+ROW()-2))=Switch!$D$27,INDIRECT(\"a\" & (VLOOKUP(Switch!$D$27,$F$2:$G$44,2,FALSE)+ROW()-2)),\"\")","v":{"$error":"#N/A"}},{"$f":"IF(INDIRECT(\"c\" & (VLOOKUP(Switch!$D$28,$F$2:$G$44,2,FALSE)+ROW()-2))=Switch!$D$28,INDIRECT(\"a\" & (VLOOKUP(Switch!$D$28,$F$2:$G$44,2,FALSE)+ROW()-2)),\"\")","v":{"$error":"#N/A"}},{"$f":"IF(INDIRECT(\"c\" & (VLOOKUP(Switch!$D$29,$F$2:$G$44,2,FALSE)+ROW()-2))=Switch!$D$29,INDIRECT(\"a\" & (VLOOKUP(Switch!$D$29,$F$2:$G$44,2,FALSE)+ROW()-2)),\"\")","v":{"$error":"#N/A"}},{"$f":"IF(INDIRECT(\"c\" & (VLOOKUP(Switch!$D$30,$F$2:$G$44,2,FALSE)+ROW()-2))=Switch!$D$30,INDIRECT(\"a\" & (VLOOKUP(Switch!$D$30,$F$2:$G$44,2,FALSE)+ROW()-2)),\"\")","v":{"$error":"#N/A"}},{"$f":"IF(INDIRECT(\"c\" & (VLOOKUP(Switch!$D$31,$F$2:$G$44,2,FALSE)+ROW()-2))=Switch!$D$31,INDIRECT(\"a\" & (VLOOKUP(Switch!$D$31,$F$2:$G$44,2,FALSE)+ROW()-2)),\"\")","v":{"$error":"#N/A"}},{"$f":"IF(INDIRECT(\"c\" & (VLOOKUP(Switch!$D$32,$F$2:$G$44,2,FALSE)+ROW()-2))=Switch!$D$32,INDIRECT(\"a\" & (VLOOKUP(Switch!$D$32,$F$2:$G$44,2,FALSE)+ROW()-2)),\"\")","v":{"$error":"#N/A"}},{"$f":"IF(INDIRECT(\"c\" & (VLOOKUP(Switch!$D$33,$F$2:$G$44,2,FALSE)+ROW()-2))=Switch!$D$33,INDIRECT(\"a\" & (VLOOKUP(Switch!$D$33,$F$2:$G$44,2,FALSE)+ROW()-2)),\"\")","v":{"$error":"#N/A"}},{"$f":"IF(INDIRECT(\"c\" & (VLOOKUP(Switch!$D$34,$F$2:$G$44,2,FALSE)+ROW()-2))=Switch!$D$34,INDIRECT(\"a\" & (VLOOKUP(Switch!$D$34,$F$2:$G$44,2,FALSE)+ROW()-2)),\"\")","v":{"$error":"#N/A"}},{"$f":"IF(INDIRECT(\"c\" & (VLOOKUP(Switch!$D$35,$F$2:$G$44,2,FALSE)+ROW()-2))=Switch!$D$35,INDIRECT(\"a\" & (VLOOKUP(Switch!$D$35,$F$2:$G$44,2,FALSE)+ROW()-2)),\"\")","v":{"$error":"#N/A"}},{"$f":"IF(INDIRECT(\"c\" & (VLOOKUP(Switch!$D$36,$F$2:$G$44,2,FALSE)+ROW()-2))=Switch!$D$36,INDIRECT(\"a\" & (VLOOKUP(Switch!$D$36,$F$2:$G$44,2,FALSE)+ROW()-2)),\"\")","v":{"$error":"#N/A"}},{"$f":"IF(INDIRECT(\"c\" & (VLOOKUP(Switch!$D$37,$F$2:$G$44,2,FALSE)+ROW()-2))=Switch!$D$37,INDIRECT(\"a\" & (VLOOKUP(Switch!$D$37,$F$2:$G$44,2,FALSE)+ROW()-2)),\"\")","v":{"$error":"#N/A"}},{"$f":"IF(INDIRECT(\"c\" & (VLOOKUP(Switch!$D$38,$F$2:$G$44,2,FALSE)+ROW()-2))=Switch!$D$38,INDIRECT(\"a\" & (VLOOKUP(Switch!$D$38,$F$2:$G$44,2,FALSE)+ROW()-2)),\"\")","v":{"$error":"#N/A"}},{"$f":"IF(INDIRECT(\"c\" & (VLOOKUP(Switch!$D$39,$F$2:$G$44,2,FALSE)+ROW()-2))=Switch!$D$39,INDIRECT(\"a\" & (VLOOKUP(Switch!$D$39,$F$2:$G$44,2,FALSE)+ROW()-2)),\"\")","v":{"$error":"#N/A"}},{"$f":"IF(INDIRECT(\"c\" & (VLOOKUP(Switch!$D$40,$F$2:$G$44,2,FALSE)+ROW()-2))=Switch!$D$40,INDIRECT(\"a\" & (VLOOKUP(Switch!$D$40,$F$2:$G$44,2,FALSE)+ROW()-2)),\"\")","v":{"$error":"#N/A"}},{"$f":"IF(INDIRECT(\"c\" & (VLOOKUP(Switch!$D$52,$F$2:$G$44,2,FALSE)+ROW()-2))=Switch!$D$52,INDIRECT(\"a\" & (VLOOKUP(Switch!$D$52,$F$2:$G$44,2,FALSE)+ROW()-2)),\"\")","v":{"$error":"#N/A"}},{"$f":"IF(INDIRECT(\"c\" & (VLOOKUP(Switch!$D$53,$F$2:$G$44,2,FALSE)+ROW()-2))=Switch!$D$53,INDIRECT(\"a\" & (VLOOKUP(Switch!$D$53,$F$2:$G$44,2,FALSE)+ROW()-2)),\"\")","v":{"$error":"#N/A"}},{"$f":"IF(INDIRECT(\"c\" & (VLOOKUP(Switch!$D$54,$F$2:$G$44,2,FALSE)+ROW()-2))=Switch!$D$54,INDIRECT(\"a\" & (VLOOKUP(Switch!$D$54,$F$2:$G$44,2,FALSE)+ROW()-2)),\"\")","v":{"$error":"#N/A"}},{"$f":"IF(INDIRECT(\"c\" & (VLOOKUP(Switch!$D$55,$F$2:$G$44,2,FALSE)+ROW()-2))=Switch!$D$55,INDIRECT(\"a\" & (VLOOKUP(Switch!$D$55,$F$2:$G$44,2,FALSE)+ROW()-2)),\"\")","v":{"$error":"#N/A"}},{"$f":"IF(INDIRECT(\"c\" & (VLOOKUP(Switch!$D$56,$F$2:$G$44,2,FALSE)+ROW()-2))=Switch!$D$56,INDIRECT(\"a\" & (VLOOKUP(Switch!$D$56,$F$2:$G$44,2,FALSE)+ROW()-2)),\"\")","v":{"$error":"#N/A"}},{"$f":"IF(INDIRECT(\"c\" & (VLOOKUP(Switch!$D$57,$F$2:$G$44,2,FALSE)+ROW()-2))=Switch!$D$57,INDIRECT(\"a\" & (VLOOKUP(Switch!$D$57,$F$2:$G$44,2,FALSE)+ROW()-2)),\"\")","v":{"$error":"#N/A"}},{"$f":"IF(INDIRECT(\"c\" & (VLOOKUP(Switch!$D$58,$F$2:$G$44,2,FALSE)+ROW()-2))=Switch!$D$58,INDIRECT(\"a\" & (VLOOKUP(Switch!$D$58,$F$2:$G$44,2,FALSE)+ROW()-2)),\"\")","v":{"$error":"#N/A"}},{"$f":"IF(INDIRECT(\"c\" & (VLOOKUP(Switch!$D$59,$F$2:$G$44,2,FALSE)+ROW()-2))=Switch!$D$59,INDIRECT(\"a\" & (VLOOKUP(Switch!$D$59,$F$2:$G$44,2,FALSE)+ROW()-2)),\"\")","v":{"$error":"#N/A"}},{"$f":"IF(INDIRECT(\"c\" & (VLOOKUP(Switch!$D$60,$F$2:$G$44,2,FALSE)+ROW()-2))=Switch!$D$60,INDIRECT(\"a\" & (VLOOKUP(Switch!$D$60,$F$2:$G$44,2,FALSE)+ROW()-2)),\"\")","v":{"$error":"#N/A"}},{"$f":"IF(INDIRECT(\"c\" & (VLOOKUP(Switch!$D$61,$F$2:$G$44,2,FALSE)+ROW()-2))=Switch!$D$61,INDIRECT(\"a\" & (VLOOKUP(Switch!$D$61,$F$2:$G$44,2,FALSE)+ROW()-2)),\"\")","v":{"$error":"#N/A"}},{"$f":"IF(INDIRECT(\"c\" & (VLOOKUP(Switch!$D$62,$F$2:$G$44,2,FALSE)+ROW()-2))=Switch!$D$62,INDIRECT(\"a\" & (VLOOKUP(Switch!$D$62,$F$2:$G$44,2,FALSE)+ROW()-2)),\"\")","v":{"$error":"#N/A"}},{"$f":"IF(INDIRECT(\"c\" & (VLOOKUP(Switch!$D$63,$F$2:$G$44,2,FALSE)+ROW()-2))=Switch!$D$63,INDIRECT(\"a\" & (VLOOKUP(Switch!$D$63,$F$2:$G$44,2,FALSE)+ROW()-2)),\"\")","v":{"$error":"#N/A"}},{"$f":"IF(INDIRECT(\"c\" & (VLOOKUP(Switch!$D$64,$F$2:$G$44,2,FALSE)+ROW()-2))=Switch!$D$64,INDIRECT(\"a\" & (VLOOKUP(Switch!$D$64,$F$2:$G$44,2,FALSE)+ROW()-2)),\"\")","v":{"$error":"#N/A"}},{"$f":"IF(INDIRECT(\"c\" & (VLOOKUP(Switch!$D$65,$F$2:$G$44,2,FALSE)+ROW()-2))=Switch!$D$65,INDIRECT(\"a\" & (VLOOKUP(Switch!$D$65,$F$2:$G$44,2,FALSE)+ROW()-2)),\"\")","v":{"$error":"#N/A"}},{"$f":"IF(INDIRECT(\"c\" & (VLOOKUP(Switch!$D$66,$F$2:$G$44,2,FALSE)+ROW()-2))=Switch!$D$66,INDIRECT(\"a\" & (VLOOKUP(Switch!$D$66,$F$2:$G$44,2,FALSE)+ROW()-2)),\"\")","v":{"$error":"#N/A"}}]
["Momentum Diversified Income Fund C1","MBFB7","Momentum Collective Investments Ltd",{"$f":"ROW()","v":331},null,null,{"$f":"VLOOKUP(F331,$C$2:$D$637,2,FALSE)","v":{"$error":"#N/A"}},{"$f":"IF(INDIRECT(\"c\" & (VLOOKUP(Switch!$D$26,$F$2:$G$44,2,FALSE)+ROW()-2))=Switch!$D$26,INDIRECT(\"a\" & (VLOOKUP(Switch!$D$26,$F$2:$G$44,2,FALSE)+ROW()-2)),\"\")","v":{"$error":"#N/A"}},{"$f":"IF(INDIRECT(\"c\" & (VLOOKUP(Switch!$D$27,$F$2:$G$44,2,FALSE)+ROW()-2))=Switch!$D$27,INDIRECT(\"a\" & (VLOOKUP(Switch!$D$27,$F$2:$G$44,2,FALSE)+ROW()-2)),\"\")","v":{"$error":"#N/A"}},{"$f":"IF(INDIRECT(\"c\" & (VLOOKUP(Switch!$D$28,$F$2:$G$44,2,FALSE)+ROW()-2))=Switch!$D$28,INDIRECT(\"a\" & (VLOOKUP(Switch!$D$28,$F$2:$G$44,2,FALSE)+ROW()-2)),\"\")","v":{"$error":"#N/A"}},{"$f":"IF(INDIRECT(\"c\" & (VLOOKUP(Switch!$D$29,$F$2:$G$44,2,FALSE)+ROW()-2))=Switch!$D$29,INDIRECT(\"a\" & (VLOOKUP(Switch!$D$29,$F$2:$G$44,2,FALSE)+ROW()-2)),\"\")","v":{"$error":"#N/A"}},{"$f":"IF(INDIRECT(\"c\" & (VLOOKUP(Switch!$D$30,$F$2:$G$44,2,FALSE)+ROW()-2))=Switch!$D$30,INDIRECT(\"a\" & (VLOOKUP(Switch!$D$30,$F$2:$G$44,2,FALSE)+ROW()-2)),\"\")","v":{"$error":"#N/A"}},{"$f":"IF(INDIRECT(\"c\" & (VLOOKUP(Switch!$D$31,$F$2:$G$44,2,FALSE)+ROW()-2))=Switch!$D$31,INDIRECT(\"a\" & (VLOOKUP(Switch!$D$31,$F$2:$G$44,2,FALSE)+ROW()-2)),\"\")","v":{"$error":"#N/A"}},{"$f":"IF(INDIRECT(\"c\" & (VLOOKUP(Switch!$D$32,$F$2:$G$44,2,FALSE)+ROW()-2))=Switch!$D$32,INDIRECT(\"a\" & (VLOOKUP(Switch!$D$32,$F$2:$G$44,2,FALSE)+ROW()-2)),\"\")","v":{"$error":"#N/A"}},{"$f":"IF(INDIRECT(\"c\" & (VLOOKUP(Switch!$D$33,$F$2:$G$44,2,FALSE)+ROW()-2))=Switch!$D$33,INDIRECT(\"a\" & (VLOOKUP(Switch!$D$33,$F$2:$G$44,2,FALSE)+ROW()-2)),\"\")","v":{"$error":"#N/A"}},{"$f":"IF(INDIRECT(\"c\" & (VLOOKUP(Switch!$D$34,$F$2:$G$44,2,FALSE)+ROW()-2))=Switch!$D$34,INDIRECT(\"a\" & (VLOOKUP(Switch!$D$34,$F$2:$G$44,2,FALSE)+ROW()-2)),\"\")","v":{"$error":"#N/A"}},{"$f":"IF(INDIRECT(\"c\" & (VLOOKUP(Switch!$D$35,$F$2:$G$44,2,FALSE)+ROW()-2))=Switch!$D$35,INDIRECT(\"a\" & (VLOOKUP(Switch!$D$35,$F$2:$G$44,2,FALSE)+ROW()-2)),\"\")","v":{"$error":"#N/A"}},{"$f":"IF(INDIRECT(\"c\" & (VLOOKUP(Switch!$D$36,$F$2:$G$44,2,FALSE)+ROW()-2))=Switch!$D$36,INDIRECT(\"a\" & (VLOOKUP(Switch!$D$36,$F$2:$G$44,2,FALSE)+ROW()-2)),\"\")","v":{"$error":"#N/A"}},{"$f":"IF(INDIRECT(\"c\" & (VLOOKUP(Switch!$D$37,$F$2:$G$44,2,FALSE)+ROW()-2))=Switch!$D$37,INDIRECT(\"a\" & (VLOOKUP(Switch!$D$37,$F$2:$G$44,2,FALSE)+ROW()-2)),\"\")","v":{"$error":"#N/A"}},{"$f":"IF(INDIRECT(\"c\" & (VLOOKUP(Switch!$D$38,$F$2:$G$44,2,FALSE)+ROW()-2))=Switch!$D$38,INDIRECT(\"a\" & (VLOOKUP(Switch!$D$38,$F$2:$G$44,2,FALSE)+ROW()-2)),\"\")","v":{"$error":"#N/A"}},{"$f":"IF(INDIRECT(\"c\" & (VLOOKUP(Switch!$D$39,$F$2:$G$44,2,FALSE)+ROW()-2))=Switch!$D$39,INDIRECT(\"a\" & (VLOOKUP(Switch!$D$39,$F$2:$G$44,2,FALSE)+ROW()-2)),\"\")","v":{"$error":"#N/A"}},{"$f":"IF(INDIRECT(\"c\" & (VLOOKUP(Switch!$D$40,$F$2:$G$44,2,FALSE)+ROW()-2))=Switch!$D$40,INDIRECT(\"a\" & (VLOOKUP(Switch!$D$40,$F$2:$G$44,2,FALSE)+ROW()-2)),\"\")","v":{"$error":"#N/A"}},{"$f":"IF(INDIRECT(\"c\" & (VLOOKUP(Switch!$D$52,$F$2:$G$44,2,FALSE)+ROW()-2))=Switch!$D$52,INDIRECT(\"a\" & (VLOOKUP(Switch!$D$52,$F$2:$G$44,2,FALSE)+ROW()-2)),\"\")","v":{"$error":"#N/A"}},{"$f":"IF(INDIRECT(\"c\" & (VLOOKUP(Switch!$D$53,$F$2:$G$44,2,FALSE)+ROW()-2))=Switch!$D$53,INDIRECT(\"a\" & (VLOOKUP(Switch!$D$53,$F$2:$G$44,2,FALSE)+ROW()-2)),\"\")","v":{"$error":"#N/A"}},{"$f":"IF(INDIRECT(\"c\" & (VLOOKUP(Switch!$D$54,$F$2:$G$44,2,FALSE)+ROW()-2))=Switch!$D$54,INDIRECT(\"a\" & (VLOOKUP(Switch!$D$54,$F$2:$G$44,2,FALSE)+ROW()-2)),\"\")","v":{"$error":"#N/A"}},{"$f":"IF(INDIRECT(\"c\" & (VLOOKUP(Switch!$D$55,$F$2:$G$44,2,FALSE)+ROW()-2))=Switch!$D$55,INDIRECT(\"a\" & (VLOOKUP(Switch!$D$55,$F$2:$G$44,2,FALSE)+ROW()-2)),\"\")","v":{"$error":"#N/A"}},{"$f":"IF(INDIRECT(\"c\" & (VLOOKUP(Switch!$D$56,$F$2:$G$44,2,FALSE)+ROW()-2))=Switch!$D$56,INDIRECT(\"a\" & (VLOOKUP(Switch!$D$56,$F$2:$G$44,2,FALSE)+ROW()-2)),\"\")","v":{"$error":"#N/A"}},{"$f":"IF(INDIRECT(\"c\" & (VLOOKUP(Switch!$D$57,$F$2:$G$44,2,FALSE)+ROW()-2))=Switch!$D$57,INDIRECT(\"a\" & (VLOOKUP(Switch!$D$57,$F$2:$G$44,2,FALSE)+ROW()-2)),\"\")","v":{"$error":"#N/A"}},{"$f":"IF(INDIRECT(\"c\" & (VLOOKUP(Switch!$D$58,$F$2:$G$44,2,FALSE)+ROW()-2))=Switch!$D$58,INDIRECT(\"a\" & (VLOOKUP(Switch!$D$58,$F$2:$G$44,2,FALSE)+ROW()-2)),\"\")","v":{"$error":"#N/A"}},{"$f":"IF(INDIRECT(\"c\" & (VLOOKUP(Switch!$D$59,$F$2:$G$44,2,FALSE)+ROW()-2))=Switch!$D$59,INDIRECT(\"a\" & (VLOOKUP(Switch!$D$59,$F$2:$G$44,2,FALSE)+ROW()-2)),\"\")","v":{"$error":"#N/A"}},{"$f":"IF(INDIRECT(\"c\" & (VLOOKUP(Switch!$D$60,$F$2:$G$44,2,FALSE)+ROW()-2))=Switch!$D$60,INDIRECT(\"a\" & (VLOOKUP(Switch!$D$60,$F$2:$G$44,2,FALSE)+ROW()-2)),\"\")","v":{"$error":"#N/A"}},{"$f":"IF(INDIRECT(\"c\" & (VLOOKUP(Switch!$D$61,$F$2:$G$44,2,FALSE)+ROW()-2))=Switch!$D$61,INDIRECT(\"a\" & (VLOOKUP(Switch!$D$61,$F$2:$G$44,2,FALSE)+ROW()-2)),\"\")","v":{"$error":"#N/A"}},{"$f":"IF(INDIRECT(\"c\" & (VLOOKUP(Switch!$D$62,$F$2:$G$44,2,FALSE)+ROW()-2))=Switch!$D$62,INDIRECT(\"a\" & (VLOOKUP(Switch!$D$62,$F$2:$G$44,2,FALSE)+ROW()-2)),\"\")","v":{"$error":"#N/A"}},{"$f":"IF(INDIRECT(\"c\" & (VLOOKUP(Switch!$D$63,$F$2:$G$44,2,FALSE)+ROW()-2))=Switch!$D$63,INDIRECT(\"a\" & (VLOOKUP(Switch!$D$63,$F$2:$G$44,2,FALSE)+ROW()-2)),\"\")","v":{"$error":"#N/A"}},{"$f":"IF(INDIRECT(\"c\" & (VLOOKUP(Switch!$D$64,$F$2:$G$44,2,FALSE)+ROW()-2))=Switch!$D$64,INDIRECT(\"a\" & (VLOOKUP(Switch!$D$64,$F$2:$G$44,2,FALSE)+ROW()-2)),\"\")","v":{"$error":"#N/A"}},{"$f":"IF(INDIRECT(\"c\" & (VLOOKUP(Switch!$D$65,$F$2:$G$44,2,FALSE)+ROW()-2))=Switch!$D$65,INDIRECT(\"a\" & (VLOOKUP(Switch!$D$65,$F$2:$G$44,2,FALSE)+ROW()-2)),\"\")","v":{"$error":"#N/A"}},{"$f":"IF(INDIRECT(\"c\" & (VLOOKUP(Switch!$D$66,$F$2:$G$44,2,FALSE)+ROW()-2))=Switch!$D$66,INDIRECT(\"a\" & (VLOOKUP(Switch!$D$66,$F$2:$G$44,2,FALSE)+ROW()-2)),\"\")","v":{"$error":"#N/A"}}]
["Momentum Enhanced Yield Fund A","RMIS","Momentum Collective Investments Ltd",{"$f":"ROW()","v":332},null,null,{"$f":"VLOOKUP(F332,$C$2:$D$637,2,FALSE)","v":{"$error":"#N/A"}},{"$f":"IF(INDIRECT(\"c\" & (VLOOKUP(Switch!$D$26,$F$2:$G$44,2,FALSE)+ROW()-2))=Switch!$D$26,INDIRECT(\"a\" & (VLOOKUP(Switch!$D$26,$F$2:$G$44,2,FALSE)+ROW()-2)),\"\")","v":{"$error":"#N/A"}},{"$f":"IF(INDIRECT(\"c\" & (VLOOKUP(Switch!$D$27,$F$2:$G$44,2,FALSE)+ROW()-2))=Switch!$D$27,INDIRECT(\"a\" & (VLOOKUP(Switch!$D$27,$F$2:$G$44,2,FALSE)+ROW()-2)),\"\")","v":{"$error":"#N/A"}},{"$f":"IF(INDIRECT(\"c\" & (VLOOKUP(Switch!$D$28,$F$2:$G$44,2,FALSE)+ROW()-2))=Switch!$D$28,INDIRECT(\"a\" & (VLOOKUP(Switch!$D$28,$F$2:$G$44,2,FALSE)+ROW()-2)),\"\")","v":{"$error":"#N/A"}},{"$f":"IF(INDIRECT(\"c\" & (VLOOKUP(Switch!$D$29,$F$2:$G$44,2,FALSE)+ROW()-2))=Switch!$D$29,INDIRECT(\"a\" & (VLOOKUP(Switch!$D$29,$F$2:$G$44,2,FALSE)+ROW()-2)),\"\")","v":{"$error":"#N/A"}},{"$f":"IF(INDIRECT(\"c\" & (VLOOKUP(Switch!$D$30,$F$2:$G$44,2,FALSE)+ROW()-2))=Switch!$D$30,INDIRECT(\"a\" & (VLOOKUP(Switch!$D$30,$F$2:$G$44,2,FALSE)+ROW()-2)),\"\")","v":{"$error":"#N/A"}},{"$f":"IF(INDIRECT(\"c\" & (VLOOKUP(Switch!$D$31,$F$2:$G$44,2,FALSE)+ROW()-2))=Switch!$D$31,INDIRECT(\"a\" & (VLOOKUP(Switch!$D$31,$F$2:$G$44,2,FALSE)+ROW()-2)),\"\")","v":{"$error":"#N/A"}},{"$f":"IF(INDIRECT(\"c\" & (VLOOKUP(Switch!$D$32,$F$2:$G$44,2,FALSE)+ROW()-2))=Switch!$D$32,INDIRECT(\"a\" & (VLOOKUP(Switch!$D$32,$F$2:$G$44,2,FALSE)+ROW()-2)),\"\")","v":{"$error":"#N/A"}},{"$f":"IF(INDIRECT(\"c\" & (VLOOKUP(Switch!$D$33,$F$2:$G$44,2,FALSE)+ROW()-2))=Switch!$D$33,INDIRECT(\"a\" & (VLOOKUP(Switch!$D$33,$F$2:$G$44,2,FALSE)+ROW()-2)),\"\")","v":{"$error":"#N/A"}},{"$f":"IF(INDIRECT(\"c\" & (VLOOKUP(Switch!$D$34,$F$2:$G$44,2,FALSE)+ROW()-2))=Switch!$D$34,INDIRECT(\"a\" & (VLOOKUP(Switch!$D$34,$F$2:$G$44,2,FALSE)+ROW()-2)),\"\")","v":{"$error":"#N/A"}},{"$f":"IF(INDIRECT(\"c\" & (VLOOKUP(Switch!$D$35,$F$2:$G$44,2,FALSE)+ROW()-2))=Switch!$D$35,INDIRECT(\"a\" & (VLOOKUP(Switch!$D$35,$F$2:$G$44,2,FALSE)+ROW()-2)),\"\")","v":{"$error":"#N/A"}},{"$f":"IF(INDIRECT(\"c\" & (VLOOKUP(Switch!$D$36,$F$2:$G$44,2,FALSE)+ROW()-2))=Switch!$D$36,INDIRECT(\"a\" & (VLOOKUP(Switch!$D$36,$F$2:$G$44,2,FALSE)+ROW()-2)),\"\")","v":{"$error":"#N/A"}},{"$f":"IF(INDIRECT(\"c\" & (VLOOKUP(Switch!$D$37,$F$2:$G$44,2,FALSE)+ROW()-2))=Switch!$D$37,INDIRECT(\"a\" & (VLOOKUP(Switch!$D$37,$F$2:$G$44,2,FALSE)+ROW()-2)),\"\")","v":{"$error":"#N/A"}},{"$f":"IF(INDIRECT(\"c\" & (VLOOKUP(Switch!$D$38,$F$2:$G$44,2,FALSE)+ROW()-2))=Switch!$D$38,INDIRECT(\"a\" & (VLOOKUP(Switch!$D$38,$F$2:$G$44,2,FALSE)+ROW()-2)),\"\")","v":{"$error":"#N/A"}},{"$f":"IF(INDIRECT(\"c\" & (VLOOKUP(Switch!$D$39,$F$2:$G$44,2,FALSE)+ROW()-2))=Switch!$D$39,INDIRECT(\"a\" & (VLOOKUP(Switch!$D$39,$F$2:$G$44,2,FALSE)+ROW()-2)),\"\")","v":{"$error":"#N/A"}},{"$f":"IF(INDIRECT(\"c\" & (VLOOKUP(Switch!$D$40,$F$2:$G$44,2,FALSE)+ROW()-2))=Switch!$D$40,INDIRECT(\"a\" & (VLOOKUP(Switch!$D$40,$F$2:$G$44,2,FALSE)+ROW()-2)),\"\")","v":{"$error":"#N/A"}},{"$f":"IF(INDIRECT(\"c\" & (VLOOKUP(Switch!$D$52,$F$2:$G$44,2,FALSE)+ROW()-2))=Switch!$D$52,INDIRECT(\"a\" & (VLOOKUP(Switch!$D$52,$F$2:$G$44,2,FALSE)+ROW()-2)),\"\")","v":{"$error":"#N/A"}},{"$f":"IF(INDIRECT(\"c\" & (VLOOKUP(Switch!$D$53,$F$2:$G$44,2,FALSE)+ROW()-2))=Switch!$D$53,INDIRECT(\"a\" & (VLOOKUP(Switch!$D$53,$F$2:$G$44,2,FALSE)+ROW()-2)),\"\")","v":{"$error":"#N/A"}},{"$f":"IF(INDIRECT(\"c\" & (VLOOKUP(Switch!$D$54,$F$2:$G$44,2,FALSE)+ROW()-2))=Switch!$D$54,INDIRECT(\"a\" & (VLOOKUP(Switch!$D$54,$F$2:$G$44,2,FALSE)+ROW()-2)),\"\")","v":{"$error":"#N/A"}},{"$f":"IF(INDIRECT(\"c\" & (VLOOKUP(Switch!$D$55,$F$2:$G$44,2,FALSE)+ROW()-2))=Switch!$D$55,INDIRECT(\"a\" & (VLOOKUP(Switch!$D$55,$F$2:$G$44,2,FALSE)+ROW()-2)),\"\")","v":{"$error":"#N/A"}},{"$f":"IF(INDIRECT(\"c\" & (VLOOKUP(Switch!$D$56,$F$2:$G$44,2,FALSE)+ROW()-2))=Switch!$D$56,INDIRECT(\"a\" & (VLOOKUP(Switch!$D$56,$F$2:$G$44,2,FALSE)+ROW()-2)),\"\")","v":{"$error":"#N/A"}},{"$f":"IF(INDIRECT(\"c\" & (VLOOKUP(Switch!$D$57,$F$2:$G$44,2,FALSE)+ROW()-2))=Switch!$D$57,INDIRECT(\"a\" & (VLOOKUP(Switch!$D$57,$F$2:$G$44,2,FALSE)+ROW()-2)),\"\")","v":{"$error":"#N/A"}},{"$f":"IF(INDIRECT(\"c\" & (VLOOKUP(Switch!$D$58,$F$2:$G$44,2,FALSE)+ROW()-2))=Switch!$D$58,INDIRECT(\"a\" & (VLOOKUP(Switch!$D$58,$F$2:$G$44,2,FALSE)+ROW()-2)),\"\")","v":{"$error":"#N/A"}},{"$f":"IF(INDIRECT(\"c\" & (VLOOKUP(Switch!$D$59,$F$2:$G$44,2,FALSE)+ROW()-2))=Switch!$D$59,INDIRECT(\"a\" & (VLOOKUP(Switch!$D$59,$F$2:$G$44,2,FALSE)+ROW()-2)),\"\")","v":{"$error":"#N/A"}},{"$f":"IF(INDIRECT(\"c\" & (VLOOKUP(Switch!$D$60,$F$2:$G$44,2,FALSE)+ROW()-2))=Switch!$D$60,INDIRECT(\"a\" & (VLOOKUP(Switch!$D$60,$F$2:$G$44,2,FALSE)+ROW()-2)),\"\")","v":{"$error":"#N/A"}},{"$f":"IF(INDIRECT(\"c\" & (VLOOKUP(Switch!$D$61,$F$2:$G$44,2,FALSE)+ROW()-2))=Switch!$D$61,INDIRECT(\"a\" & (VLOOKUP(Switch!$D$61,$F$2:$G$44,2,FALSE)+ROW()-2)),\"\")","v":{"$error":"#N/A"}},{"$f":"IF(INDIRECT(\"c\" & (VLOOKUP(Switch!$D$62,$F$2:$G$44,2,FALSE)+ROW()-2))=Switch!$D$62,INDIRECT(\"a\" & (VLOOKUP(Switch!$D$62,$F$2:$G$44,2,FALSE)+ROW()-2)),\"\")","v":{"$error":"#N/A"}},{"$f":"IF(INDIRECT(\"c\" & (VLOOKUP(Switch!$D$63,$F$2:$G$44,2,FALSE)+ROW()-2))=Switch!$D$63,INDIRECT(\"a\" & (VLOOKUP(Switch!$D$63,$F$2:$G$44,2,FALSE)+ROW()-2)),\"\")","v":{"$error":"#N/A"}},{"$f":"IF(INDIRECT(\"c\" & (VLOOKUP(Switch!$D$64,$F$2:$G$44,2,FALSE)+ROW()-2))=Switch!$D$64,INDIRECT(\"a\" & (VLOOKUP(Switch!$D$64,$F$2:$G$44,2,FALSE)+ROW()-2)),\"\")","v":{"$error":"#N/A"}},{"$f":"IF(INDIRECT(\"c\" & (VLOOKUP(Switch!$D$65,$F$2:$G$44,2,FALSE)+ROW()-2))=Switch!$D$65,INDIRECT(\"a\" & (VLOOKUP(Switch!$D$65,$F$2:$G$44,2,FALSE)+ROW()-2)),\"\")","v":{"$error":"#N/A"}},{"$f":"IF(INDIRECT(\"c\" & (VLOOKUP(Switch!$D$66,$F$2:$G$44,2,FALSE)+ROW()-2))=Switch!$D$66,INDIRECT(\"a\" & (VLOOKUP(Switch!$D$66,$F$2:$G$44,2,FALSE)+ROW()-2)),\"\")","v":{"$error":"#N/A"}}]
["Momentum Equity Fund C1","MBSB9","Momentum Collective Investments Ltd",{"$f":"ROW()","v":333},null,null,{"$f":"VLOOKUP(F333,$C$2:$D$637,2,FALSE)","v":{"$error":"#N/A"}},{"$f":"IF(INDIRECT(\"c\" & (VLOOKUP(Switch!$D$26,$F$2:$G$44,2,FALSE)+ROW()-2))=Switch!$D$26,INDIRECT(\"a\" & (VLOOKUP(Switch!$D$26,$F$2:$G$44,2,FALSE)+ROW()-2)),\"\")","v":{"$error":"#N/A"}},{"$f":"IF(INDIRECT(\"c\" & (VLOOKUP(Switch!$D$27,$F$2:$G$44,2,FALSE)+ROW()-2))=Switch!$D$27,INDIRECT(\"a\" & (VLOOKUP(Switch!$D$27,$F$2:$G$44,2,FALSE)+ROW()-2)),\"\")","v":{"$error":"#N/A"}},{"$f":"IF(INDIRECT(\"c\" & (VLOOKUP(Switch!$D$28,$F$2:$G$44,2,FALSE)+ROW()-2))=Switch!$D$28,INDIRECT(\"a\" & (VLOOKUP(Switch!$D$28,$F$2:$G$44,2,FALSE)+ROW()-2)),\"\")","v":{"$error":"#N/A"}},{"$f":"IF(INDIRECT(\"c\" & (VLOOKUP(Switch!$D$29,$F$2:$G$44,2,FALSE)+ROW()-2))=Switch!$D$29,INDIRECT(\"a\" & (VLOOKUP(Switch!$D$29,$F$2:$G$44,2,FALSE)+ROW()-2)),\"\")","v":{"$error":"#N/A"}},{"$f":"IF(INDIRECT(\"c\" & (VLOOKUP(Switch!$D$30,$F$2:$G$44,2,FALSE)+ROW()-2))=Switch!$D$30,INDIRECT(\"a\" & (VLOOKUP(Switch!$D$30,$F$2:$G$44,2,FALSE)+ROW()-2)),\"\")","v":{"$error":"#N/A"}},{"$f":"IF(INDIRECT(\"c\" & (VLOOKUP(Switch!$D$31,$F$2:$G$44,2,FALSE)+ROW()-2))=Switch!$D$31,INDIRECT(\"a\" & (VLOOKUP(Switch!$D$31,$F$2:$G$44,2,FALSE)+ROW()-2)),\"\")","v":{"$error":"#N/A"}},{"$f":"IF(INDIRECT(\"c\" & (VLOOKUP(Switch!$D$32,$F$2:$G$44,2,FALSE)+ROW()-2))=Switch!$D$32,INDIRECT(\"a\" & (VLOOKUP(Switch!$D$32,$F$2:$G$44,2,FALSE)+ROW()-2)),\"\")","v":{"$error":"#N/A"}},{"$f":"IF(INDIRECT(\"c\" & (VLOOKUP(Switch!$D$33,$F$2:$G$44,2,FALSE)+ROW()-2))=Switch!$D$33,INDIRECT(\"a\" & (VLOOKUP(Switch!$D$33,$F$2:$G$44,2,FALSE)+ROW()-2)),\"\")","v":{"$error":"#N/A"}},{"$f":"IF(INDIRECT(\"c\" & (VLOOKUP(Switch!$D$34,$F$2:$G$44,2,FALSE)+ROW()-2))=Switch!$D$34,INDIRECT(\"a\" & (VLOOKUP(Switch!$D$34,$F$2:$G$44,2,FALSE)+ROW()-2)),\"\")","v":{"$error":"#N/A"}},{"$f":"IF(INDIRECT(\"c\" & (VLOOKUP(Switch!$D$35,$F$2:$G$44,2,FALSE)+ROW()-2))=Switch!$D$35,INDIRECT(\"a\" & (VLOOKUP(Switch!$D$35,$F$2:$G$44,2,FALSE)+ROW()-2)),\"\")","v":{"$error":"#N/A"}},{"$f":"IF(INDIRECT(\"c\" & (VLOOKUP(Switch!$D$36,$F$2:$G$44,2,FALSE)+ROW()-2))=Switch!$D$36,INDIRECT(\"a\" & (VLOOKUP(Switch!$D$36,$F$2:$G$44,2,FALSE)+ROW()-2)),\"\")","v":{"$error":"#N/A"}},{"$f":"IF(INDIRECT(\"c\" & (VLOOKUP(Switch!$D$37,$F$2:$G$44,2,FALSE)+ROW()-2))=Switch!$D$37,INDIRECT(\"a\" & (VLOOKUP(Switch!$D$37,$F$2:$G$44,2,FALSE)+ROW()-2)),\"\")","v":{"$error":"#N/A"}},{"$f":"IF(INDIRECT(\"c\" & (VLOOKUP(Switch!$D$38,$F$2:$G$44,2,FALSE)+ROW()-2))=Switch!$D$38,INDIRECT(\"a\" & (VLOOKUP(Switch!$D$38,$F$2:$G$44,2,FALSE)+ROW()-2)),\"\")","v":{"$error":"#N/A"}},{"$f":"IF(INDIRECT(\"c\" & (VLOOKUP(Switch!$D$39,$F$2:$G$44,2,FALSE)+ROW()-2))=Switch!$D$39,INDIRECT(\"a\" & (VLOOKUP(Switch!$D$39,$F$2:$G$44,2,FALSE)+ROW()-2)),\"\")","v":{"$error":"#N/A"}},{"$f":"IF(INDIRECT(\"c\" & (VLOOKUP(Switch!$D$40,$F$2:$G$44,2,FALSE)+ROW()-2))=Switch!$D$40,INDIRECT(\"a\" & (VLOOKUP(Switch!$D$40,$F$2:$G$44,2,FALSE)+ROW()-2)),\"\")","v":{"$error":"#N/A"}},{"$f":"IF(INDIRECT(\"c\" & (VLOOKUP(Switch!$D$52,$F$2:$G$44,2,FALSE)+ROW()-2))=Switch!$D$52,INDIRECT(\"a\" & (VLOOKUP(Switch!$D$52,$F$2:$G$44,2,FALSE)+ROW()-2)),\"\")","v":{"$error":"#N/A"}},{"$f":"IF(INDIRECT(\"c\" & (VLOOKUP(Switch!$D$53,$F$2:$G$44,2,FALSE)+ROW()-2))=Switch!$D$53,INDIRECT(\"a\" & (VLOOKUP(Switch!$D$53,$F$2:$G$44,2,FALSE)+ROW()-2)),\"\")","v":{"$error":"#N/A"}},{"$f":"IF(INDIRECT(\"c\" & (VLOOKUP(Switch!$D$54,$F$2:$G$44,2,FALSE)+ROW()-2))=Switch!$D$54,INDIRECT(\"a\" & (VLOOKUP(Switch!$D$54,$F$2:$G$44,2,FALSE)+ROW()-2)),\"\")","v":{"$error":"#N/A"}},{"$f":"IF(INDIRECT(\"c\" & (VLOOKUP(Switch!$D$55,$F$2:$G$44,2,FALSE)+ROW()-2))=Switch!$D$55,INDIRECT(\"a\" & (VLOOKUP(Switch!$D$55,$F$2:$G$44,2,FALSE)+ROW()-2)),\"\")","v":{"$error":"#N/A"}},{"$f":"IF(INDIRECT(\"c\" & (VLOOKUP(Switch!$D$56,$F$2:$G$44,2,FALSE)+ROW()-2))=Switch!$D$56,INDIRECT(\"a\" & (VLOOKUP(Switch!$D$56,$F$2:$G$44,2,FALSE)+ROW()-2)),\"\")","v":{"$error":"#N/A"}},{"$f":"IF(INDIRECT(\"c\" & (VLOOKUP(Switch!$D$57,$F$2:$G$44,2,FALSE)+ROW()-2))=Switch!$D$57,INDIRECT(\"a\" & (VLOOKUP(Switch!$D$57,$F$2:$G$44,2,FALSE)+ROW()-2)),\"\")","v":{"$error":"#N/A"}},{"$f":"IF(INDIRECT(\"c\" & (VLOOKUP(Switch!$D$58,$F$2:$G$44,2,FALSE)+ROW()-2))=Switch!$D$58,INDIRECT(\"a\" & (VLOOKUP(Switch!$D$58,$F$2:$G$44,2,FALSE)+ROW()-2)),\"\")","v":{"$error":"#N/A"}},{"$f":"IF(INDIRECT(\"c\" & (VLOOKUP(Switch!$D$59,$F$2:$G$44,2,FALSE)+ROW()-2))=Switch!$D$59,INDIRECT(\"a\" & (VLOOKUP(Switch!$D$59,$F$2:$G$44,2,FALSE)+ROW()-2)),\"\")","v":{"$error":"#N/A"}},{"$f":"IF(INDIRECT(\"c\" & (VLOOKUP(Switch!$D$60,$F$2:$G$44,2,FALSE)+ROW()-2))=Switch!$D$60,INDIRECT(\"a\" & (VLOOKUP(Switch!$D$60,$F$2:$G$44,2,FALSE)+ROW()-2)),\"\")","v":{"$error":"#N/A"}},{"$f":"IF(INDIRECT(\"c\" & (VLOOKUP(Switch!$D$61,$F$2:$G$44,2,FALSE)+ROW()-2))=Switch!$D$61,INDIRECT(\"a\" & (VLOOKUP(Switch!$D$61,$F$2:$G$44,2,FALSE)+ROW()-2)),\"\")","v":{"$error":"#N/A"}},{"$f":"IF(INDIRECT(\"c\" & (VLOOKUP(Switch!$D$62,$F$2:$G$44,2,FALSE)+ROW()-2))=Switch!$D$62,INDIRECT(\"a\" & (VLOOKUP(Switch!$D$62,$F$2:$G$44,2,FALSE)+ROW()-2)),\"\")","v":{"$error":"#N/A"}},{"$f":"IF(INDIRECT(\"c\" & (VLOOKUP(Switch!$D$63,$F$2:$G$44,2,FALSE)+ROW()-2))=Switch!$D$63,INDIRECT(\"a\" & (VLOOKUP(Switch!$D$63,$F$2:$G$44,2,FALSE)+ROW()-2)),\"\")","v":{"$error":"#N/A"}},{"$f":"IF(INDIRECT(\"c\" & (VLOOKUP(Switch!$D$64,$F$2:$G$44,2,FALSE)+ROW()-2))=Switch!$D$64,INDIRECT(\"a\" & (VLOOKUP(Switch!$D$64,$F$2:$G$44,2,FALSE)+ROW()-2)),\"\")","v":{"$error":"#N/A"}},{"$f":"IF(INDIRECT(\"c\" & (VLOOKUP(Switch!$D$65,$F$2:$G$44,2,FALSE)+ROW()-2))=Switch!$D$65,INDIRECT(\"a\" & (VLOOKUP(Switch!$D$65,$F$2:$G$44,2,FALSE)+ROW()-2)),\"\")","v":{"$error":"#N/A"}},{"$f":"IF(INDIRECT(\"c\" & (VLOOKUP(Switch!$D$66,$F$2:$G$44,2,FALSE)+ROW()-2))=Switch!$D$66,INDIRECT(\"a\" & (VLOOKUP(Switch!$D$66,$F$2:$G$44,2,FALSE)+ROW()-2)),\"\")","v":{"$error":"#N/A"}}]
["Momentum Focus 4 Fund of Funds A","MESGFC","Momentum Collective Investments Ltd",{"$f":"ROW()","v":334},null,null,{"$f":"VLOOKUP(F334,$C$2:$D$637,2,FALSE)","v":{"$error":"#N/A"}},{"$f":"IF(INDIRECT(\"c\" & (VLOOKUP(Switch!$D$26,$F$2:$G$44,2,FALSE)+ROW()-2))=Switch!$D$26,INDIRECT(\"a\" & (VLOOKUP(Switch!$D$26,$F$2:$G$44,2,FALSE)+ROW()-2)),\"\")","v":{"$error":"#N/A"}},{"$f":"IF(INDIRECT(\"c\" & (VLOOKUP(Switch!$D$27,$F$2:$G$44,2,FALSE)+ROW()-2))=Switch!$D$27,INDIRECT(\"a\" & (VLOOKUP(Switch!$D$27,$F$2:$G$44,2,FALSE)+ROW()-2)),\"\")","v":{"$error":"#N/A"}},{"$f":"IF(INDIRECT(\"c\" & (VLOOKUP(Switch!$D$28,$F$2:$G$44,2,FALSE)+ROW()-2))=Switch!$D$28,INDIRECT(\"a\" & (VLOOKUP(Switch!$D$28,$F$2:$G$44,2,FALSE)+ROW()-2)),\"\")","v":{"$error":"#N/A"}},{"$f":"IF(INDIRECT(\"c\" & (VLOOKUP(Switch!$D$29,$F$2:$G$44,2,FALSE)+ROW()-2))=Switch!$D$29,INDIRECT(\"a\" & (VLOOKUP(Switch!$D$29,$F$2:$G$44,2,FALSE)+ROW()-2)),\"\")","v":{"$error":"#N/A"}},{"$f":"IF(INDIRECT(\"c\" & (VLOOKUP(Switch!$D$30,$F$2:$G$44,2,FALSE)+ROW()-2))=Switch!$D$30,INDIRECT(\"a\" & (VLOOKUP(Switch!$D$30,$F$2:$G$44,2,FALSE)+ROW()-2)),\"\")","v":{"$error":"#N/A"}},{"$f":"IF(INDIRECT(\"c\" & (VLOOKUP(Switch!$D$31,$F$2:$G$44,2,FALSE)+ROW()-2))=Switch!$D$31,INDIRECT(\"a\" & (VLOOKUP(Switch!$D$31,$F$2:$G$44,2,FALSE)+ROW()-2)),\"\")","v":{"$error":"#N/A"}},{"$f":"IF(INDIRECT(\"c\" & (VLOOKUP(Switch!$D$32,$F$2:$G$44,2,FALSE)+ROW()-2))=Switch!$D$32,INDIRECT(\"a\" & (VLOOKUP(Switch!$D$32,$F$2:$G$44,2,FALSE)+ROW()-2)),\"\")","v":{"$error":"#N/A"}},{"$f":"IF(INDIRECT(\"c\" & (VLOOKUP(Switch!$D$33,$F$2:$G$44,2,FALSE)+ROW()-2))=Switch!$D$33,INDIRECT(\"a\" & (VLOOKUP(Switch!$D$33,$F$2:$G$44,2,FALSE)+ROW()-2)),\"\")","v":{"$error":"#N/A"}},{"$f":"IF(INDIRECT(\"c\" & (VLOOKUP(Switch!$D$34,$F$2:$G$44,2,FALSE)+ROW()-2))=Switch!$D$34,INDIRECT(\"a\" & (VLOOKUP(Switch!$D$34,$F$2:$G$44,2,FALSE)+ROW()-2)),\"\")","v":{"$error":"#N/A"}},{"$f":"IF(INDIRECT(\"c\" & (VLOOKUP(Switch!$D$35,$F$2:$G$44,2,FALSE)+ROW()-2))=Switch!$D$35,INDIRECT(\"a\" & (VLOOKUP(Switch!$D$35,$F$2:$G$44,2,FALSE)+ROW()-2)),\"\")","v":{"$error":"#N/A"}},{"$f":"IF(INDIRECT(\"c\" & (VLOOKUP(Switch!$D$36,$F$2:$G$44,2,FALSE)+ROW()-2))=Switch!$D$36,INDIRECT(\"a\" & (VLOOKUP(Switch!$D$36,$F$2:$G$44,2,FALSE)+ROW()-2)),\"\")","v":{"$error":"#N/A"}},{"$f":"IF(INDIRECT(\"c\" & (VLOOKUP(Switch!$D$37,$F$2:$G$44,2,FALSE)+ROW()-2))=Switch!$D$37,INDIRECT(\"a\" & (VLOOKUP(Switch!$D$37,$F$2:$G$44,2,FALSE)+ROW()-2)),\"\")","v":{"$error":"#N/A"}},{"$f":"IF(INDIRECT(\"c\" & (VLOOKUP(Switch!$D$38,$F$2:$G$44,2,FALSE)+ROW()-2))=Switch!$D$38,INDIRECT(\"a\" & (VLOOKUP(Switch!$D$38,$F$2:$G$44,2,FALSE)+ROW()-2)),\"\")","v":{"$error":"#N/A"}},{"$f":"IF(INDIRECT(\"c\" & (VLOOKUP(Switch!$D$39,$F$2:$G$44,2,FALSE)+ROW()-2))=Switch!$D$39,INDIRECT(\"a\" & (VLOOKUP(Switch!$D$39,$F$2:$G$44,2,FALSE)+ROW()-2)),\"\")","v":{"$error":"#N/A"}},{"$f":"IF(INDIRECT(\"c\" & (VLOOKUP(Switch!$D$40,$F$2:$G$44,2,FALSE)+ROW()-2))=Switch!$D$40,INDIRECT(\"a\" & (VLOOKUP(Switch!$D$40,$F$2:$G$44,2,FALSE)+ROW()-2)),\"\")","v":{"$error":"#N/A"}},{"$f":"IF(INDIRECT(\"c\" & (VLOOKUP(Switch!$D$52,$F$2:$G$44,2,FALSE)+ROW()-2))=Switch!$D$52,INDIRECT(\"a\" & (VLOOKUP(Switch!$D$52,$F$2:$G$44,2,FALSE)+ROW()-2)),\"\")","v":{"$error":"#N/A"}},{"$f":"IF(INDIRECT(\"c\" & (VLOOKUP(Switch!$D$53,$F$2:$G$44,2,FALSE)+ROW()-2))=Switch!$D$53,INDIRECT(\"a\" & (VLOOKUP(Switch!$D$53,$F$2:$G$44,2,FALSE)+ROW()-2)),\"\")","v":{"$error":"#N/A"}},{"$f":"IF(INDIRECT(\"c\" & (VLOOKUP(Switch!$D$54,$F$2:$G$44,2,FALSE)+ROW()-2))=Switch!$D$54,INDIRECT(\"a\" & (VLOOKUP(Switch!$D$54,$F$2:$G$44,2,FALSE)+ROW()-2)),\"\")","v":{"$error":"#N/A"}},{"$f":"IF(INDIRECT(\"c\" & (VLOOKUP(Switch!$D$55,$F$2:$G$44,2,FALSE)+ROW()-2))=Switch!$D$55,INDIRECT(\"a\" & (VLOOKUP(Switch!$D$55,$F$2:$G$44,2,FALSE)+ROW()-2)),\"\")","v":{"$error":"#N/A"}},{"$f":"IF(INDIRECT(\"c\" & (VLOOKUP(Switch!$D$56,$F$2:$G$44,2,FALSE)+ROW()-2))=Switch!$D$56,INDIRECT(\"a\" & (VLOOKUP(Switch!$D$56,$F$2:$G$44,2,FALSE)+ROW()-2)),\"\")","v":{"$error":"#N/A"}},{"$f":"IF(INDIRECT(\"c\" & (VLOOKUP(Switch!$D$57,$F$2:$G$44,2,FALSE)+ROW()-2))=Switch!$D$57,INDIRECT(\"a\" & (VLOOKUP(Switch!$D$57,$F$2:$G$44,2,FALSE)+ROW()-2)),\"\")","v":{"$error":"#N/A"}},{"$f":"IF(INDIRECT(\"c\" & (VLOOKUP(Switch!$D$58,$F$2:$G$44,2,FALSE)+ROW()-2))=Switch!$D$58,INDIRECT(\"a\" & (VLOOKUP(Switch!$D$58,$F$2:$G$44,2,FALSE)+ROW()-2)),\"\")","v":{"$error":"#N/A"}},{"$f":"IF(INDIRECT(\"c\" & (VLOOKUP(Switch!$D$59,$F$2:$G$44,2,FALSE)+ROW()-2))=Switch!$D$59,INDIRECT(\"a\" & (VLOOKUP(Switch!$D$59,$F$2:$G$44,2,FALSE)+ROW()-2)),\"\")","v":{"$error":"#N/A"}},{"$f":"IF(INDIRECT(\"c\" & (VLOOKUP(Switch!$D$60,$F$2:$G$44,2,FALSE)+ROW()-2))=Switch!$D$60,INDIRECT(\"a\" & (VLOOKUP(Switch!$D$60,$F$2:$G$44,2,FALSE)+ROW()-2)),\"\")","v":{"$error":"#N/A"}},{"$f":"IF(INDIRECT(\"c\" & (VLOOKUP(Switch!$D$61,$F$2:$G$44,2,FALSE)+ROW()-2))=Switch!$D$61,INDIRECT(\"a\" & (VLOOKUP(Switch!$D$61,$F$2:$G$44,2,FALSE)+ROW()-2)),\"\")","v":{"$error":"#N/A"}},{"$f":"IF(INDIRECT(\"c\" & (VLOOKUP(Switch!$D$62,$F$2:$G$44,2,FALSE)+ROW()-2))=Switch!$D$62,INDIRECT(\"a\" & (VLOOKUP(Switch!$D$62,$F$2:$G$44,2,FALSE)+ROW()-2)),\"\")","v":{"$error":"#N/A"}},{"$f":"IF(INDIRECT(\"c\" & (VLOOKUP(Switch!$D$63,$F$2:$G$44,2,FALSE)+ROW()-2))=Switch!$D$63,INDIRECT(\"a\" & (VLOOKUP(Switch!$D$63,$F$2:$G$44,2,FALSE)+ROW()-2)),\"\")","v":{"$error":"#N/A"}},{"$f":"IF(INDIRECT(\"c\" & (VLOOKUP(Switch!$D$64,$F$2:$G$44,2,FALSE)+ROW()-2))=Switch!$D$64,INDIRECT(\"a\" & (VLOOKUP(Switch!$D$64,$F$2:$G$44,2,FALSE)+ROW()-2)),\"\")","v":{"$error":"#N/A"}},{"$f":"IF(INDIRECT(\"c\" & (VLOOKUP(Switch!$D$65,$F$2:$G$44,2,FALSE)+ROW()-2))=Switch!$D$65,INDIRECT(\"a\" & (VLOOKUP(Switch!$D$65,$F$2:$G$44,2,FALSE)+ROW()-2)),\"\")","v":{"$error":"#N/A"}},{"$f":"IF(INDIRECT(\"c\" & (VLOOKUP(Switch!$D$66,$F$2:$G$44,2,FALSE)+ROW()-2))=Switch!$D$66,INDIRECT(\"a\" & (VLOOKUP(Switch!$D$66,$F$2:$G$44,2,FALSE)+ROW()-2)),\"\")","v":{"$error":"#N/A"}}]
["Momentum Focus 4 Fund of Funds C","MESGFC","Momentum Collective Investments Ltd",{"$f":"ROW()","v":335},null,null,{"$f":"VLOOKUP(F335,$C$2:$D$637,2,FALSE)","v":{"$error":"#N/A"}},{"$f":"IF(INDIRECT(\"c\" & (VLOOKUP(Switch!$D$26,$F$2:$G$44,2,FALSE)+ROW()-2))=Switch!$D$26,INDIRECT(\"a\" & (VLOOKUP(Switch!$D$26,$F$2:$G$44,2,FALSE)+ROW()-2)),\"\")","v":{"$error":"#N/A"}},{"$f":"IF(INDIRECT(\"c\" & (VLOOKUP(Switch!$D$27,$F$2:$G$44,2,FALSE)+ROW()-2))=Switch!$D$27,INDIRECT(\"a\" & (VLOOKUP(Switch!$D$27,$F$2:$G$44,2,FALSE)+ROW()-2)),\"\")","v":{"$error":"#N/A"}},{"$f":"IF(INDIRECT(\"c\" & (VLOOKUP(Switch!$D$28,$F$2:$G$44,2,FALSE)+ROW()-2))=Switch!$D$28,INDIRECT(\"a\" & (VLOOKUP(Switch!$D$28,$F$2:$G$44,2,FALSE)+ROW()-2)),\"\")","v":{"$error":"#N/A"}},{"$f":"IF(INDIRECT(\"c\" & (VLOOKUP(Switch!$D$29,$F$2:$G$44,2,FALSE)+ROW()-2))=Switch!$D$29,INDIRECT(\"a\" & (VLOOKUP(Switch!$D$29,$F$2:$G$44,2,FALSE)+ROW()-2)),\"\")","v":{"$error":"#N/A"}},{"$f":"IF(INDIRECT(\"c\" & (VLOOKUP(Switch!$D$30,$F$2:$G$44,2,FALSE)+ROW()-2))=Switch!$D$30,INDIRECT(\"a\" & (VLOOKUP(Switch!$D$30,$F$2:$G$44,2,FALSE)+ROW()-2)),\"\")","v":{"$error":"#N/A"}},{"$f":"IF(INDIRECT(\"c\" & (VLOOKUP(Switch!$D$31,$F$2:$G$44,2,FALSE)+ROW()-2))=Switch!$D$31,INDIRECT(\"a\" & (VLOOKUP(Switch!$D$31,$F$2:$G$44,2,FALSE)+ROW()-2)),\"\")","v":{"$error":"#N/A"}},{"$f":"IF(INDIRECT(\"c\" & (VLOOKUP(Switch!$D$32,$F$2:$G$44,2,FALSE)+ROW()-2))=Switch!$D$32,INDIRECT(\"a\" & (VLOOKUP(Switch!$D$32,$F$2:$G$44,2,FALSE)+ROW()-2)),\"\")","v":{"$error":"#N/A"}},{"$f":"IF(INDIRECT(\"c\" & (VLOOKUP(Switch!$D$33,$F$2:$G$44,2,FALSE)+ROW()-2))=Switch!$D$33,INDIRECT(\"a\" & (VLOOKUP(Switch!$D$33,$F$2:$G$44,2,FALSE)+ROW()-2)),\"\")","v":{"$error":"#N/A"}},{"$f":"IF(INDIRECT(\"c\" & (VLOOKUP(Switch!$D$34,$F$2:$G$44,2,FALSE)+ROW()-2))=Switch!$D$34,INDIRECT(\"a\" & (VLOOKUP(Switch!$D$34,$F$2:$G$44,2,FALSE)+ROW()-2)),\"\")","v":{"$error":"#N/A"}},{"$f":"IF(INDIRECT(\"c\" & (VLOOKUP(Switch!$D$35,$F$2:$G$44,2,FALSE)+ROW()-2))=Switch!$D$35,INDIRECT(\"a\" & (VLOOKUP(Switch!$D$35,$F$2:$G$44,2,FALSE)+ROW()-2)),\"\")","v":{"$error":"#N/A"}},{"$f":"IF(INDIRECT(\"c\" & (VLOOKUP(Switch!$D$36,$F$2:$G$44,2,FALSE)+ROW()-2))=Switch!$D$36,INDIRECT(\"a\" & (VLOOKUP(Switch!$D$36,$F$2:$G$44,2,FALSE)+ROW()-2)),\"\")","v":{"$error":"#N/A"}},{"$f":"IF(INDIRECT(\"c\" & (VLOOKUP(Switch!$D$37,$F$2:$G$44,2,FALSE)+ROW()-2))=Switch!$D$37,INDIRECT(\"a\" & (VLOOKUP(Switch!$D$37,$F$2:$G$44,2,FALSE)+ROW()-2)),\"\")","v":{"$error":"#N/A"}},{"$f":"IF(INDIRECT(\"c\" & (VLOOKUP(Switch!$D$38,$F$2:$G$44,2,FALSE)+ROW()-2))=Switch!$D$38,INDIRECT(\"a\" & (VLOOKUP(Switch!$D$38,$F$2:$G$44,2,FALSE)+ROW()-2)),\"\")","v":{"$error":"#N/A"}},{"$f":"IF(INDIRECT(\"c\" & (VLOOKUP(Switch!$D$39,$F$2:$G$44,2,FALSE)+ROW()-2))=Switch!$D$39,INDIRECT(\"a\" & (VLOOKUP(Switch!$D$39,$F$2:$G$44,2,FALSE)+ROW()-2)),\"\")","v":{"$error":"#N/A"}},{"$f":"IF(INDIRECT(\"c\" & (VLOOKUP(Switch!$D$40,$F$2:$G$44,2,FALSE)+ROW()-2))=Switch!$D$40,INDIRECT(\"a\" & (VLOOKUP(Switch!$D$40,$F$2:$G$44,2,FALSE)+ROW()-2)),\"\")","v":{"$error":"#N/A"}},{"$f":"IF(INDIRECT(\"c\" & (VLOOKUP(Switch!$D$52,$F$2:$G$44,2,FALSE)+ROW()-2))=Switch!$D$52,INDIRECT(\"a\" & (VLOOKUP(Switch!$D$52,$F$2:$G$44,2,FALSE)+ROW()-2)),\"\")","v":{"$error":"#N/A"}},{"$f":"IF(INDIRECT(\"c\" & (VLOOKUP(Switch!$D$53,$F$2:$G$44,2,FALSE)+ROW()-2))=Switch!$D$53,INDIRECT(\"a\" & (VLOOKUP(Switch!$D$53,$F$2:$G$44,2,FALSE)+ROW()-2)),\"\")","v":{"$error":"#N/A"}},{"$f":"IF(INDIRECT(\"c\" & (VLOOKUP(Switch!$D$54,$F$2:$G$44,2,FALSE)+ROW()-2))=Switch!$D$54,INDIRECT(\"a\" & (VLOOKUP(Switch!$D$54,$F$2:$G$44,2,FALSE)+ROW()-2)),\"\")","v":{"$error":"#N/A"}},{"$f":"IF(INDIRECT(\"c\" & (VLOOKUP(Switch!$D$55,$F$2:$G$44,2,FALSE)+ROW()-2))=Switch!$D$55,INDIRECT(\"a\" & (VLOOKUP(Switch!$D$55,$F$2:$G$44,2,FALSE)+ROW()-2)),\"\")","v":{"$error":"#N/A"}},{"$f":"IF(INDIRECT(\"c\" & (VLOOKUP(Switch!$D$56,$F$2:$G$44,2,FALSE)+ROW()-2))=Switch!$D$56,INDIRECT(\"a\" & (VLOOKUP(Switch!$D$56,$F$2:$G$44,2,FALSE)+ROW()-2)),\"\")","v":{"$error":"#N/A"}},{"$f":"IF(INDIRECT(\"c\" & (VLOOKUP(Switch!$D$57,$F$2:$G$44,2,FALSE)+ROW()-2))=Switch!$D$57,INDIRECT(\"a\" & (VLOOKUP(Switch!$D$57,$F$2:$G$44,2,FALSE)+ROW()-2)),\"\")","v":{"$error":"#N/A"}},{"$f":"IF(INDIRECT(\"c\" & (VLOOKUP(Switch!$D$58,$F$2:$G$44,2,FALSE)+ROW()-2))=Switch!$D$58,INDIRECT(\"a\" & (VLOOKUP(Switch!$D$58,$F$2:$G$44,2,FALSE)+ROW()-2)),\"\")","v":{"$error":"#N/A"}},{"$f":"IF(INDIRECT(\"c\" & (VLOOKUP(Switch!$D$59,$F$2:$G$44,2,FALSE)+ROW()-2))=Switch!$D$59,INDIRECT(\"a\" & (VLOOKUP(Switch!$D$59,$F$2:$G$44,2,FALSE)+ROW()-2)),\"\")","v":{"$error":"#N/A"}},{"$f":"IF(INDIRECT(\"c\" & (VLOOKUP(Switch!$D$60,$F$2:$G$44,2,FALSE)+ROW()-2))=Switch!$D$60,INDIRECT(\"a\" & (VLOOKUP(Switch!$D$60,$F$2:$G$44,2,FALSE)+ROW()-2)),\"\")","v":{"$error":"#N/A"}},{"$f":"IF(INDIRECT(\"c\" & (VLOOKUP(Switch!$D$61,$F$2:$G$44,2,FALSE)+ROW()-2))=Switch!$D$61,INDIRECT(\"a\" & (VLOOKUP(Switch!$D$61,$F$2:$G$44,2,FALSE)+ROW()-2)),\"\")","v":{"$error":"#N/A"}},{"$f":"IF(INDIRECT(\"c\" & (VLOOKUP(Switch!$D$62,$F$2:$G$44,2,FALSE)+ROW()-2))=Switch!$D$62,INDIRECT(\"a\" & (VLOOKUP(Switch!$D$62,$F$2:$G$44,2,FALSE)+ROW()-2)),\"\")","v":{"$error":"#N/A"}},{"$f":"IF(INDIRECT(\"c\" & (VLOOKUP(Switch!$D$63,$F$2:$G$44,2,FALSE)+ROW()-2))=Switch!$D$63,INDIRECT(\"a\" & (VLOOKUP(Switch!$D$63,$F$2:$G$44,2,FALSE)+ROW()-2)),\"\")","v":{"$error":"#N/A"}},{"$f":"IF(INDIRECT(\"c\" & (VLOOKUP(Switch!$D$64,$F$2:$G$44,2,FALSE)+ROW()-2))=Switch!$D$64,INDIRECT(\"a\" & (VLOOKUP(Switch!$D$64,$F$2:$G$44,2,FALSE)+ROW()-2)),\"\")","v":{"$error":"#N/A"}},{"$f":"IF(INDIRECT(\"c\" & (VLOOKUP(Switch!$D$65,$F$2:$G$44,2,FALSE)+ROW()-2))=Switch!$D$65,INDIRECT(\"a\" & (VLOOKUP(Switch!$D$65,$F$2:$G$44,2,FALSE)+ROW()-2)),\"\")","v":{"$error":"#N/A"}},{"$f":"IF(INDIRECT(\"c\" & (VLOOKUP(Switch!$D$66,$F$2:$G$44,2,FALSE)+ROW()-2))=Switch!$D$66,INDIRECT(\"a\" & (VLOOKUP(Switch!$D$66,$F$2:$G$44,2,FALSE)+ROW()-2)),\"\")","v":{"$error":"#N/A"}}]
["Momentum Focus 5 Fund of Funds B2","MOBB2","Momentum Collective Investments Ltd",{"$f":"ROW()","v":336},null,null,{"$f":"VLOOKUP(F336,$C$2:$D$637,2,FALSE)","v":{"$error":"#N/A"}},{"$f":"IF(INDIRECT(\"c\" & (VLOOKUP(Switch!$D$26,$F$2:$G$44,2,FALSE)+ROW()-2))=Switch!$D$26,INDIRECT(\"a\" & (VLOOKUP(Switch!$D$26,$F$2:$G$44,2,FALSE)+ROW()-2)),\"\")","v":{"$error":"#N/A"}},{"$f":"IF(INDIRECT(\"c\" & (VLOOKUP(Switch!$D$27,$F$2:$G$44,2,FALSE)+ROW()-2))=Switch!$D$27,INDIRECT(\"a\" & (VLOOKUP(Switch!$D$27,$F$2:$G$44,2,FALSE)+ROW()-2)),\"\")","v":{"$error":"#N/A"}},{"$f":"IF(INDIRECT(\"c\" & (VLOOKUP(Switch!$D$28,$F$2:$G$44,2,FALSE)+ROW()-2))=Switch!$D$28,INDIRECT(\"a\" & (VLOOKUP(Switch!$D$28,$F$2:$G$44,2,FALSE)+ROW()-2)),\"\")","v":{"$error":"#N/A"}},{"$f":"IF(INDIRECT(\"c\" & (VLOOKUP(Switch!$D$29,$F$2:$G$44,2,FALSE)+ROW()-2))=Switch!$D$29,INDIRECT(\"a\" & (VLOOKUP(Switch!$D$29,$F$2:$G$44,2,FALSE)+ROW()-2)),\"\")","v":{"$error":"#N/A"}},{"$f":"IF(INDIRECT(\"c\" & (VLOOKUP(Switch!$D$30,$F$2:$G$44,2,FALSE)+ROW()-2))=Switch!$D$30,INDIRECT(\"a\" & (VLOOKUP(Switch!$D$30,$F$2:$G$44,2,FALSE)+ROW()-2)),\"\")","v":{"$error":"#N/A"}},{"$f":"IF(INDIRECT(\"c\" & (VLOOKUP(Switch!$D$31,$F$2:$G$44,2,FALSE)+ROW()-2))=Switch!$D$31,INDIRECT(\"a\" & (VLOOKUP(Switch!$D$31,$F$2:$G$44,2,FALSE)+ROW()-2)),\"\")","v":{"$error":"#N/A"}},{"$f":"IF(INDIRECT(\"c\" & (VLOOKUP(Switch!$D$32,$F$2:$G$44,2,FALSE)+ROW()-2))=Switch!$D$32,INDIRECT(\"a\" & (VLOOKUP(Switch!$D$32,$F$2:$G$44,2,FALSE)+ROW()-2)),\"\")","v":{"$error":"#N/A"}},{"$f":"IF(INDIRECT(\"c\" & (VLOOKUP(Switch!$D$33,$F$2:$G$44,2,FALSE)+ROW()-2))=Switch!$D$33,INDIRECT(\"a\" & (VLOOKUP(Switch!$D$33,$F$2:$G$44,2,FALSE)+ROW()-2)),\"\")","v":{"$error":"#N/A"}},{"$f":"IF(INDIRECT(\"c\" & (VLOOKUP(Switch!$D$34,$F$2:$G$44,2,FALSE)+ROW()-2))=Switch!$D$34,INDIRECT(\"a\" & (VLOOKUP(Switch!$D$34,$F$2:$G$44,2,FALSE)+ROW()-2)),\"\")","v":{"$error":"#N/A"}},{"$f":"IF(INDIRECT(\"c\" & (VLOOKUP(Switch!$D$35,$F$2:$G$44,2,FALSE)+ROW()-2))=Switch!$D$35,INDIRECT(\"a\" & (VLOOKUP(Switch!$D$35,$F$2:$G$44,2,FALSE)+ROW()-2)),\"\")","v":{"$error":"#N/A"}},{"$f":"IF(INDIRECT(\"c\" & (VLOOKUP(Switch!$D$36,$F$2:$G$44,2,FALSE)+ROW()-2))=Switch!$D$36,INDIRECT(\"a\" & (VLOOKUP(Switch!$D$36,$F$2:$G$44,2,FALSE)+ROW()-2)),\"\")","v":{"$error":"#N/A"}},{"$f":"IF(INDIRECT(\"c\" & (VLOOKUP(Switch!$D$37,$F$2:$G$44,2,FALSE)+ROW()-2))=Switch!$D$37,INDIRECT(\"a\" & (VLOOKUP(Switch!$D$37,$F$2:$G$44,2,FALSE)+ROW()-2)),\"\")","v":{"$error":"#N/A"}},{"$f":"IF(INDIRECT(\"c\" & (VLOOKUP(Switch!$D$38,$F$2:$G$44,2,FALSE)+ROW()-2))=Switch!$D$38,INDIRECT(\"a\" & (VLOOKUP(Switch!$D$38,$F$2:$G$44,2,FALSE)+ROW()-2)),\"\")","v":{"$error":"#N/A"}},{"$f":"IF(INDIRECT(\"c\" & (VLOOKUP(Switch!$D$39,$F$2:$G$44,2,FALSE)+ROW()-2))=Switch!$D$39,INDIRECT(\"a\" & (VLOOKUP(Switch!$D$39,$F$2:$G$44,2,FALSE)+ROW()-2)),\"\")","v":{"$error":"#N/A"}},{"$f":"IF(INDIRECT(\"c\" & (VLOOKUP(Switch!$D$40,$F$2:$G$44,2,FALSE)+ROW()-2))=Switch!$D$40,INDIRECT(\"a\" & (VLOOKUP(Switch!$D$40,$F$2:$G$44,2,FALSE)+ROW()-2)),\"\")","v":{"$error":"#N/A"}},{"$f":"IF(INDIRECT(\"c\" & (VLOOKUP(Switch!$D$52,$F$2:$G$44,2,FALSE)+ROW()-2))=Switch!$D$52,INDIRECT(\"a\" & (VLOOKUP(Switch!$D$52,$F$2:$G$44,2,FALSE)+ROW()-2)),\"\")","v":{"$error":"#N/A"}},{"$f":"IF(INDIRECT(\"c\" & (VLOOKUP(Switch!$D$53,$F$2:$G$44,2,FALSE)+ROW()-2))=Switch!$D$53,INDIRECT(\"a\" & (VLOOKUP(Switch!$D$53,$F$2:$G$44,2,FALSE)+ROW()-2)),\"\")","v":{"$error":"#N/A"}},{"$f":"IF(INDIRECT(\"c\" & (VLOOKUP(Switch!$D$54,$F$2:$G$44,2,FALSE)+ROW()-2))=Switch!$D$54,INDIRECT(\"a\" & (VLOOKUP(Switch!$D$54,$F$2:$G$44,2,FALSE)+ROW()-2)),\"\")","v":{"$error":"#N/A"}},{"$f":"IF(INDIRECT(\"c\" & (VLOOKUP(Switch!$D$55,$F$2:$G$44,2,FALSE)+ROW()-2))=Switch!$D$55,INDIRECT(\"a\" & (VLOOKUP(Switch!$D$55,$F$2:$G$44,2,FALSE)+ROW()-2)),\"\")","v":{"$error":"#N/A"}},{"$f":"IF(INDIRECT(\"c\" & (VLOOKUP(Switch!$D$56,$F$2:$G$44,2,FALSE)+ROW()-2))=Switch!$D$56,INDIRECT(\"a\" & (VLOOKUP(Switch!$D$56,$F$2:$G$44,2,FALSE)+ROW()-2)),\"\")","v":{"$error":"#N/A"}},{"$f":"IF(INDIRECT(\"c\" & (VLOOKUP(Switch!$D$57,$F$2:$G$44,2,FALSE)+ROW()-2))=Switch!$D$57,INDIRECT(\"a\" & (VLOOKUP(Switch!$D$57,$F$2:$G$44,2,FALSE)+ROW()-2)),\"\")","v":{"$error":"#N/A"}},{"$f":"IF(INDIRECT(\"c\" & (VLOOKUP(Switch!$D$58,$F$2:$G$44,2,FALSE)+ROW()-2))=Switch!$D$58,INDIRECT(\"a\" & (VLOOKUP(Switch!$D$58,$F$2:$G$44,2,FALSE)+ROW()-2)),\"\")","v":{"$error":"#N/A"}},{"$f":"IF(INDIRECT(\"c\" & (VLOOKUP(Switch!$D$59,$F$2:$G$44,2,FALSE)+ROW()-2))=Switch!$D$59,INDIRECT(\"a\" & (VLOOKUP(Switch!$D$59,$F$2:$G$44,2,FALSE)+ROW()-2)),\"\")","v":{"$error":"#N/A"}},{"$f":"IF(INDIRECT(\"c\" & (VLOOKUP(Switch!$D$60,$F$2:$G$44,2,FALSE)+ROW()-2))=Switch!$D$60,INDIRECT(\"a\" & (VLOOKUP(Switch!$D$60,$F$2:$G$44,2,FALSE)+ROW()-2)),\"\")","v":{"$error":"#N/A"}},{"$f":"IF(INDIRECT(\"c\" & (VLOOKUP(Switch!$D$61,$F$2:$G$44,2,FALSE)+ROW()-2))=Switch!$D$61,INDIRECT(\"a\" & (VLOOKUP(Switch!$D$61,$F$2:$G$44,2,FALSE)+ROW()-2)),\"\")","v":{"$error":"#N/A"}},{"$f":"IF(INDIRECT(\"c\" & (VLOOKUP(Switch!$D$62,$F$2:$G$44,2,FALSE)+ROW()-2))=Switch!$D$62,INDIRECT(\"a\" & (VLOOKUP(Switch!$D$62,$F$2:$G$44,2,FALSE)+ROW()-2)),\"\")","v":{"$error":"#N/A"}},{"$f":"IF(INDIRECT(\"c\" & (VLOOKUP(Switch!$D$63,$F$2:$G$44,2,FALSE)+ROW()-2))=Switch!$D$63,INDIRECT(\"a\" & (VLOOKUP(Switch!$D$63,$F$2:$G$44,2,FALSE)+ROW()-2)),\"\")","v":{"$error":"#N/A"}},{"$f":"IF(INDIRECT(\"c\" & (VLOOKUP(Switch!$D$64,$F$2:$G$44,2,FALSE)+ROW()-2))=Switch!$D$64,INDIRECT(\"a\" & (VLOOKUP(Switch!$D$64,$F$2:$G$44,2,FALSE)+ROW()-2)),\"\")","v":{"$error":"#N/A"}},{"$f":"IF(INDIRECT(\"c\" & (VLOOKUP(Switch!$D$65,$F$2:$G$44,2,FALSE)+ROW()-2))=Switch!$D$65,INDIRECT(\"a\" & (VLOOKUP(Switch!$D$65,$F$2:$G$44,2,FALSE)+ROW()-2)),\"\")","v":{"$error":"#N/A"}},{"$f":"IF(INDIRECT(\"c\" & (VLOOKUP(Switch!$D$66,$F$2:$G$44,2,FALSE)+ROW()-2))=Switch!$D$66,INDIRECT(\"a\" & (VLOOKUP(Switch!$D$66,$F$2:$G$44,2,FALSE)+ROW()-2)),\"\")","v":{"$error":"#N/A"}}]
["Momentum Focus 6 Fund of Funds A","MEGFA","Momentum Collective Investments Ltd",{"$f":"ROW()","v":337},null,null,{"$f":"VLOOKUP(F337,$C$2:$D$637,2,FALSE)","v":{"$error":"#N/A"}},{"$f":"IF(INDIRECT(\"c\" & (VLOOKUP(Switch!$D$26,$F$2:$G$44,2,FALSE)+ROW()-2))=Switch!$D$26,INDIRECT(\"a\" & (VLOOKUP(Switch!$D$26,$F$2:$G$44,2,FALSE)+ROW()-2)),\"\")","v":{"$error":"#N/A"}},{"$f":"IF(INDIRECT(\"c\" & (VLOOKUP(Switch!$D$27,$F$2:$G$44,2,FALSE)+ROW()-2))=Switch!$D$27,INDIRECT(\"a\" & (VLOOKUP(Switch!$D$27,$F$2:$G$44,2,FALSE)+ROW()-2)),\"\")","v":{"$error":"#N/A"}},{"$f":"IF(INDIRECT(\"c\" & (VLOOKUP(Switch!$D$28,$F$2:$G$44,2,FALSE)+ROW()-2))=Switch!$D$28,INDIRECT(\"a\" & (VLOOKUP(Switch!$D$28,$F$2:$G$44,2,FALSE)+ROW()-2)),\"\")","v":{"$error":"#N/A"}},{"$f":"IF(INDIRECT(\"c\" & (VLOOKUP(Switch!$D$29,$F$2:$G$44,2,FALSE)+ROW()-2))=Switch!$D$29,INDIRECT(\"a\" & (VLOOKUP(Switch!$D$29,$F$2:$G$44,2,FALSE)+ROW()-2)),\"\")","v":{"$error":"#N/A"}},{"$f":"IF(INDIRECT(\"c\" & (VLOOKUP(Switch!$D$30,$F$2:$G$44,2,FALSE)+ROW()-2))=Switch!$D$30,INDIRECT(\"a\" & (VLOOKUP(Switch!$D$30,$F$2:$G$44,2,FALSE)+ROW()-2)),\"\")","v":{"$error":"#N/A"}},{"$f":"IF(INDIRECT(\"c\" & (VLOOKUP(Switch!$D$31,$F$2:$G$44,2,FALSE)+ROW()-2))=Switch!$D$31,INDIRECT(\"a\" & (VLOOKUP(Switch!$D$31,$F$2:$G$44,2,FALSE)+ROW()-2)),\"\")","v":{"$error":"#N/A"}},{"$f":"IF(INDIRECT(\"c\" & (VLOOKUP(Switch!$D$32,$F$2:$G$44,2,FALSE)+ROW()-2))=Switch!$D$32,INDIRECT(\"a\" & (VLOOKUP(Switch!$D$32,$F$2:$G$44,2,FALSE)+ROW()-2)),\"\")","v":{"$error":"#N/A"}},{"$f":"IF(INDIRECT(\"c\" & (VLOOKUP(Switch!$D$33,$F$2:$G$44,2,FALSE)+ROW()-2))=Switch!$D$33,INDIRECT(\"a\" & (VLOOKUP(Switch!$D$33,$F$2:$G$44,2,FALSE)+ROW()-2)),\"\")","v":{"$error":"#N/A"}},{"$f":"IF(INDIRECT(\"c\" & (VLOOKUP(Switch!$D$34,$F$2:$G$44,2,FALSE)+ROW()-2))=Switch!$D$34,INDIRECT(\"a\" & (VLOOKUP(Switch!$D$34,$F$2:$G$44,2,FALSE)+ROW()-2)),\"\")","v":{"$error":"#N/A"}},{"$f":"IF(INDIRECT(\"c\" & (VLOOKUP(Switch!$D$35,$F$2:$G$44,2,FALSE)+ROW()-2))=Switch!$D$35,INDIRECT(\"a\" & (VLOOKUP(Switch!$D$35,$F$2:$G$44,2,FALSE)+ROW()-2)),\"\")","v":{"$error":"#N/A"}},{"$f":"IF(INDIRECT(\"c\" & (VLOOKUP(Switch!$D$36,$F$2:$G$44,2,FALSE)+ROW()-2))=Switch!$D$36,INDIRECT(\"a\" & (VLOOKUP(Switch!$D$36,$F$2:$G$44,2,FALSE)+ROW()-2)),\"\")","v":{"$error":"#N/A"}},{"$f":"IF(INDIRECT(\"c\" & (VLOOKUP(Switch!$D$37,$F$2:$G$44,2,FALSE)+ROW()-2))=Switch!$D$37,INDIRECT(\"a\" & (VLOOKUP(Switch!$D$37,$F$2:$G$44,2,FALSE)+ROW()-2)),\"\")","v":{"$error":"#N/A"}},{"$f":"IF(INDIRECT(\"c\" & (VLOOKUP(Switch!$D$38,$F$2:$G$44,2,FALSE)+ROW()-2))=Switch!$D$38,INDIRECT(\"a\" & (VLOOKUP(Switch!$D$38,$F$2:$G$44,2,FALSE)+ROW()-2)),\"\")","v":{"$error":"#N/A"}},{"$f":"IF(INDIRECT(\"c\" & (VLOOKUP(Switch!$D$39,$F$2:$G$44,2,FALSE)+ROW()-2))=Switch!$D$39,INDIRECT(\"a\" & (VLOOKUP(Switch!$D$39,$F$2:$G$44,2,FALSE)+ROW()-2)),\"\")","v":{"$error":"#N/A"}},{"$f":"IF(INDIRECT(\"c\" & (VLOOKUP(Switch!$D$40,$F$2:$G$44,2,FALSE)+ROW()-2))=Switch!$D$40,INDIRECT(\"a\" & (VLOOKUP(Switch!$D$40,$F$2:$G$44,2,FALSE)+ROW()-2)),\"\")","v":{"$error":"#N/A"}},{"$f":"IF(INDIRECT(\"c\" & (VLOOKUP(Switch!$D$52,$F$2:$G$44,2,FALSE)+ROW()-2))=Switch!$D$52,INDIRECT(\"a\" & (VLOOKUP(Switch!$D$52,$F$2:$G$44,2,FALSE)+ROW()-2)),\"\")","v":{"$error":"#N/A"}},{"$f":"IF(INDIRECT(\"c\" & (VLOOKUP(Switch!$D$53,$F$2:$G$44,2,FALSE)+ROW()-2))=Switch!$D$53,INDIRECT(\"a\" & (VLOOKUP(Switch!$D$53,$F$2:$G$44,2,FALSE)+ROW()-2)),\"\")","v":{"$error":"#N/A"}},{"$f":"IF(INDIRECT(\"c\" & (VLOOKUP(Switch!$D$54,$F$2:$G$44,2,FALSE)+ROW()-2))=Switch!$D$54,INDIRECT(\"a\" & (VLOOKUP(Switch!$D$54,$F$2:$G$44,2,FALSE)+ROW()-2)),\"\")","v":{"$error":"#N/A"}},{"$f":"IF(INDIRECT(\"c\" & (VLOOKUP(Switch!$D$55,$F$2:$G$44,2,FALSE)+ROW()-2))=Switch!$D$55,INDIRECT(\"a\" & (VLOOKUP(Switch!$D$55,$F$2:$G$44,2,FALSE)+ROW()-2)),\"\")","v":{"$error":"#N/A"}},{"$f":"IF(INDIRECT(\"c\" & (VLOOKUP(Switch!$D$56,$F$2:$G$44,2,FALSE)+ROW()-2))=Switch!$D$56,INDIRECT(\"a\" & (VLOOKUP(Switch!$D$56,$F$2:$G$44,2,FALSE)+ROW()-2)),\"\")","v":{"$error":"#N/A"}},{"$f":"IF(INDIRECT(\"c\" & (VLOOKUP(Switch!$D$57,$F$2:$G$44,2,FALSE)+ROW()-2))=Switch!$D$57,INDIRECT(\"a\" & (VLOOKUP(Switch!$D$57,$F$2:$G$44,2,FALSE)+ROW()-2)),\"\")","v":{"$error":"#N/A"}},{"$f":"IF(INDIRECT(\"c\" & (VLOOKUP(Switch!$D$58,$F$2:$G$44,2,FALSE)+ROW()-2))=Switch!$D$58,INDIRECT(\"a\" & (VLOOKUP(Switch!$D$58,$F$2:$G$44,2,FALSE)+ROW()-2)),\"\")","v":{"$error":"#N/A"}},{"$f":"IF(INDIRECT(\"c\" & (VLOOKUP(Switch!$D$59,$F$2:$G$44,2,FALSE)+ROW()-2))=Switch!$D$59,INDIRECT(\"a\" & (VLOOKUP(Switch!$D$59,$F$2:$G$44,2,FALSE)+ROW()-2)),\"\")","v":{"$error":"#N/A"}},{"$f":"IF(INDIRECT(\"c\" & (VLOOKUP(Switch!$D$60,$F$2:$G$44,2,FALSE)+ROW()-2))=Switch!$D$60,INDIRECT(\"a\" & (VLOOKUP(Switch!$D$60,$F$2:$G$44,2,FALSE)+ROW()-2)),\"\")","v":{"$error":"#N/A"}},{"$f":"IF(INDIRECT(\"c\" & (VLOOKUP(Switch!$D$61,$F$2:$G$44,2,FALSE)+ROW()-2))=Switch!$D$61,INDIRECT(\"a\" & (VLOOKUP(Switch!$D$61,$F$2:$G$44,2,FALSE)+ROW()-2)),\"\")","v":{"$error":"#N/A"}},{"$f":"IF(INDIRECT(\"c\" & (VLOOKUP(Switch!$D$62,$F$2:$G$44,2,FALSE)+ROW()-2))=Switch!$D$62,INDIRECT(\"a\" & (VLOOKUP(Switch!$D$62,$F$2:$G$44,2,FALSE)+ROW()-2)),\"\")","v":{"$error":"#N/A"}},{"$f":"IF(INDIRECT(\"c\" & (VLOOKUP(Switch!$D$63,$F$2:$G$44,2,FALSE)+ROW()-2))=Switch!$D$63,INDIRECT(\"a\" & (VLOOKUP(Switch!$D$63,$F$2:$G$44,2,FALSE)+ROW()-2)),\"\")","v":{"$error":"#N/A"}},{"$f":"IF(INDIRECT(\"c\" & (VLOOKUP(Switch!$D$64,$F$2:$G$44,2,FALSE)+ROW()-2))=Switch!$D$64,INDIRECT(\"a\" & (VLOOKUP(Switch!$D$64,$F$2:$G$44,2,FALSE)+ROW()-2)),\"\")","v":{"$error":"#N/A"}},{"$f":"IF(INDIRECT(\"c\" & (VLOOKUP(Switch!$D$65,$F$2:$G$44,2,FALSE)+ROW()-2))=Switch!$D$65,INDIRECT(\"a\" & (VLOOKUP(Switch!$D$65,$F$2:$G$44,2,FALSE)+ROW()-2)),\"\")","v":{"$error":"#N/A"}},{"$f":"IF(INDIRECT(\"c\" & (VLOOKUP(Switch!$D$66,$F$2:$G$44,2,FALSE)+ROW()-2))=Switch!$D$66,INDIRECT(\"a\" & (VLOOKUP(Switch!$D$66,$F$2:$G$44,2,FALSE)+ROW()-2)),\"\")","v":{"$error":"#N/A"}}]
["Momentum Focus 7 Fund of Funds B2","MOAB2","Momentum Collective Investments Ltd",{"$f":"ROW()","v":338},null,null,{"$f":"VLOOKUP(F338,$C$2:$D$637,2,FALSE)","v":{"$error":"#N/A"}},{"$f":"IF(INDIRECT(\"c\" & (VLOOKUP(Switch!$D$26,$F$2:$G$44,2,FALSE)+ROW()-2))=Switch!$D$26,INDIRECT(\"a\" & (VLOOKUP(Switch!$D$26,$F$2:$G$44,2,FALSE)+ROW()-2)),\"\")","v":{"$error":"#N/A"}},{"$f":"IF(INDIRECT(\"c\" & (VLOOKUP(Switch!$D$27,$F$2:$G$44,2,FALSE)+ROW()-2))=Switch!$D$27,INDIRECT(\"a\" & (VLOOKUP(Switch!$D$27,$F$2:$G$44,2,FALSE)+ROW()-2)),\"\")","v":{"$error":"#N/A"}},{"$f":"IF(INDIRECT(\"c\" & (VLOOKUP(Switch!$D$28,$F$2:$G$44,2,FALSE)+ROW()-2))=Switch!$D$28,INDIRECT(\"a\" & (VLOOKUP(Switch!$D$28,$F$2:$G$44,2,FALSE)+ROW()-2)),\"\")","v":{"$error":"#N/A"}},{"$f":"IF(INDIRECT(\"c\" & (VLOOKUP(Switch!$D$29,$F$2:$G$44,2,FALSE)+ROW()-2))=Switch!$D$29,INDIRECT(\"a\" & (VLOOKUP(Switch!$D$29,$F$2:$G$44,2,FALSE)+ROW()-2)),\"\")","v":{"$error":"#N/A"}},{"$f":"IF(INDIRECT(\"c\" & (VLOOKUP(Switch!$D$30,$F$2:$G$44,2,FALSE)+ROW()-2))=Switch!$D$30,INDIRECT(\"a\" & (VLOOKUP(Switch!$D$30,$F$2:$G$44,2,FALSE)+ROW()-2)),\"\")","v":{"$error":"#N/A"}},{"$f":"IF(INDIRECT(\"c\" & (VLOOKUP(Switch!$D$31,$F$2:$G$44,2,FALSE)+ROW()-2))=Switch!$D$31,INDIRECT(\"a\" & (VLOOKUP(Switch!$D$31,$F$2:$G$44,2,FALSE)+ROW()-2)),\"\")","v":{"$error":"#N/A"}},{"$f":"IF(INDIRECT(\"c\" & (VLOOKUP(Switch!$D$32,$F$2:$G$44,2,FALSE)+ROW()-2))=Switch!$D$32,INDIRECT(\"a\" & (VLOOKUP(Switch!$D$32,$F$2:$G$44,2,FALSE)+ROW()-2)),\"\")","v":{"$error":"#N/A"}},{"$f":"IF(INDIRECT(\"c\" & (VLOOKUP(Switch!$D$33,$F$2:$G$44,2,FALSE)+ROW()-2))=Switch!$D$33,INDIRECT(\"a\" & (VLOOKUP(Switch!$D$33,$F$2:$G$44,2,FALSE)+ROW()-2)),\"\")","v":{"$error":"#N/A"}},{"$f":"IF(INDIRECT(\"c\" & (VLOOKUP(Switch!$D$34,$F$2:$G$44,2,FALSE)+ROW()-2))=Switch!$D$34,INDIRECT(\"a\" & (VLOOKUP(Switch!$D$34,$F$2:$G$44,2,FALSE)+ROW()-2)),\"\")","v":{"$error":"#N/A"}},{"$f":"IF(INDIRECT(\"c\" & (VLOOKUP(Switch!$D$35,$F$2:$G$44,2,FALSE)+ROW()-2))=Switch!$D$35,INDIRECT(\"a\" & (VLOOKUP(Switch!$D$35,$F$2:$G$44,2,FALSE)+ROW()-2)),\"\")","v":{"$error":"#N/A"}},{"$f":"IF(INDIRECT(\"c\" & (VLOOKUP(Switch!$D$36,$F$2:$G$44,2,FALSE)+ROW()-2))=Switch!$D$36,INDIRECT(\"a\" & (VLOOKUP(Switch!$D$36,$F$2:$G$44,2,FALSE)+ROW()-2)),\"\")","v":{"$error":"#N/A"}},{"$f":"IF(INDIRECT(\"c\" & (VLOOKUP(Switch!$D$37,$F$2:$G$44,2,FALSE)+ROW()-2))=Switch!$D$37,INDIRECT(\"a\" & (VLOOKUP(Switch!$D$37,$F$2:$G$44,2,FALSE)+ROW()-2)),\"\")","v":{"$error":"#N/A"}},{"$f":"IF(INDIRECT(\"c\" & (VLOOKUP(Switch!$D$38,$F$2:$G$44,2,FALSE)+ROW()-2))=Switch!$D$38,INDIRECT(\"a\" & (VLOOKUP(Switch!$D$38,$F$2:$G$44,2,FALSE)+ROW()-2)),\"\")","v":{"$error":"#N/A"}},{"$f":"IF(INDIRECT(\"c\" & (VLOOKUP(Switch!$D$39,$F$2:$G$44,2,FALSE)+ROW()-2))=Switch!$D$39,INDIRECT(\"a\" & (VLOOKUP(Switch!$D$39,$F$2:$G$44,2,FALSE)+ROW()-2)),\"\")","v":{"$error":"#N/A"}},{"$f":"IF(INDIRECT(\"c\" & (VLOOKUP(Switch!$D$40,$F$2:$G$44,2,FALSE)+ROW()-2))=Switch!$D$40,INDIRECT(\"a\" & (VLOOKUP(Switch!$D$40,$F$2:$G$44,2,FALSE)+ROW()-2)),\"\")","v":{"$error":"#N/A"}},{"$f":"IF(INDIRECT(\"c\" & (VLOOKUP(Switch!$D$52,$F$2:$G$44,2,FALSE)+ROW()-2))=Switch!$D$52,INDIRECT(\"a\" & (VLOOKUP(Switch!$D$52,$F$2:$G$44,2,FALSE)+ROW()-2)),\"\")","v":{"$error":"#N/A"}},{"$f":"IF(INDIRECT(\"c\" & (VLOOKUP(Switch!$D$53,$F$2:$G$44,2,FALSE)+ROW()-2))=Switch!$D$53,INDIRECT(\"a\" & (VLOOKUP(Switch!$D$53,$F$2:$G$44,2,FALSE)+ROW()-2)),\"\")","v":{"$error":"#N/A"}},{"$f":"IF(INDIRECT(\"c\" & (VLOOKUP(Switch!$D$54,$F$2:$G$44,2,FALSE)+ROW()-2))=Switch!$D$54,INDIRECT(\"a\" & (VLOOKUP(Switch!$D$54,$F$2:$G$44,2,FALSE)+ROW()-2)),\"\")","v":{"$error":"#N/A"}},{"$f":"IF(INDIRECT(\"c\" & (VLOOKUP(Switch!$D$55,$F$2:$G$44,2,FALSE)+ROW()-2))=Switch!$D$55,INDIRECT(\"a\" & (VLOOKUP(Switch!$D$55,$F$2:$G$44,2,FALSE)+ROW()-2)),\"\")","v":{"$error":"#N/A"}},{"$f":"IF(INDIRECT(\"c\" & (VLOOKUP(Switch!$D$56,$F$2:$G$44,2,FALSE)+ROW()-2))=Switch!$D$56,INDIRECT(\"a\" & (VLOOKUP(Switch!$D$56,$F$2:$G$44,2,FALSE)+ROW()-2)),\"\")","v":{"$error":"#N/A"}},{"$f":"IF(INDIRECT(\"c\" & (VLOOKUP(Switch!$D$57,$F$2:$G$44,2,FALSE)+ROW()-2))=Switch!$D$57,INDIRECT(\"a\" & (VLOOKUP(Switch!$D$57,$F$2:$G$44,2,FALSE)+ROW()-2)),\"\")","v":{"$error":"#N/A"}},{"$f":"IF(INDIRECT(\"c\" & (VLOOKUP(Switch!$D$58,$F$2:$G$44,2,FALSE)+ROW()-2))=Switch!$D$58,INDIRECT(\"a\" & (VLOOKUP(Switch!$D$58,$F$2:$G$44,2,FALSE)+ROW()-2)),\"\")","v":{"$error":"#N/A"}},{"$f":"IF(INDIRECT(\"c\" & (VLOOKUP(Switch!$D$59,$F$2:$G$44,2,FALSE)+ROW()-2))=Switch!$D$59,INDIRECT(\"a\" & (VLOOKUP(Switch!$D$59,$F$2:$G$44,2,FALSE)+ROW()-2)),\"\")","v":{"$error":"#N/A"}},{"$f":"IF(INDIRECT(\"c\" & (VLOOKUP(Switch!$D$60,$F$2:$G$44,2,FALSE)+ROW()-2))=Switch!$D$60,INDIRECT(\"a\" & (VLOOKUP(Switch!$D$60,$F$2:$G$44,2,FALSE)+ROW()-2)),\"\")","v":{"$error":"#N/A"}},{"$f":"IF(INDIRECT(\"c\" & (VLOOKUP(Switch!$D$61,$F$2:$G$44,2,FALSE)+ROW()-2))=Switch!$D$61,INDIRECT(\"a\" & (VLOOKUP(Switch!$D$61,$F$2:$G$44,2,FALSE)+ROW()-2)),\"\")","v":{"$error":"#N/A"}},{"$f":"IF(INDIRECT(\"c\" & (VLOOKUP(Switch!$D$62,$F$2:$G$44,2,FALSE)+ROW()-2))=Switch!$D$62,INDIRECT(\"a\" & (VLOOKUP(Switch!$D$62,$F$2:$G$44,2,FALSE)+ROW()-2)),\"\")","v":{"$error":"#N/A"}},{"$f":"IF(INDIRECT(\"c\" & (VLOOKUP(Switch!$D$63,$F$2:$G$44,2,FALSE)+ROW()-2))=Switch!$D$63,INDIRECT(\"a\" & (VLOOKUP(Switch!$D$63,$F$2:$G$44,2,FALSE)+ROW()-2)),\"\")","v":{"$error":"#N/A"}},{"$f":"IF(INDIRECT(\"c\" & (VLOOKUP(Switch!$D$64,$F$2:$G$44,2,FALSE)+ROW()-2))=Switch!$D$64,INDIRECT(\"a\" & (VLOOKUP(Switch!$D$64,$F$2:$G$44,2,FALSE)+ROW()-2)),\"\")","v":{"$error":"#N/A"}},{"$f":"IF(INDIRECT(\"c\" & (VLOOKUP(Switch!$D$65,$F$2:$G$44,2,FALSE)+ROW()-2))=Switch!$D$65,INDIRECT(\"a\" & (VLOOKUP(Switch!$D$65,$F$2:$G$44,2,FALSE)+ROW()-2)),\"\")","v":{"$error":"#N/A"}},{"$f":"IF(INDIRECT(\"c\" & (VLOOKUP(Switch!$D$66,$F$2:$G$44,2,FALSE)+ROW()-2))=Switch!$D$66,INDIRECT(\"a\" & (VLOOKUP(Switch!$D$66,$F$2:$G$44,2,FALSE)+ROW()-2)),\"\")","v":{"$error":"#N/A"}}]
["Momentum Real Growth Equity Fund","MEME","Momentum Collective Investments Ltd",{"$f":"ROW()","v":339},null,null,{"$f":"VLOOKUP(F339,$C$2:$D$637,2,FALSE)","v":{"$error":"#N/A"}},{"$f":"IF(INDIRECT(\"c\" & (VLOOKUP(Switch!$D$26,$F$2:$G$44,2,FALSE)+ROW()-2))=Switch!$D$26,INDIRECT(\"a\" & (VLOOKUP(Switch!$D$26,$F$2:$G$44,2,FALSE)+ROW()-2)),\"\")","v":{"$error":"#N/A"}},{"$f":"IF(INDIRECT(\"c\" & (VLOOKUP(Switch!$D$27,$F$2:$G$44,2,FALSE)+ROW()-2))=Switch!$D$27,INDIRECT(\"a\" & (VLOOKUP(Switch!$D$27,$F$2:$G$44,2,FALSE)+ROW()-2)),\"\")","v":{"$error":"#N/A"}},{"$f":"IF(INDIRECT(\"c\" & (VLOOKUP(Switch!$D$28,$F$2:$G$44,2,FALSE)+ROW()-2))=Switch!$D$28,INDIRECT(\"a\" & (VLOOKUP(Switch!$D$28,$F$2:$G$44,2,FALSE)+ROW()-2)),\"\")","v":{"$error":"#N/A"}},{"$f":"IF(INDIRECT(\"c\" & (VLOOKUP(Switch!$D$29,$F$2:$G$44,2,FALSE)+ROW()-2))=Switch!$D$29,INDIRECT(\"a\" & (VLOOKUP(Switch!$D$29,$F$2:$G$44,2,FALSE)+ROW()-2)),\"\")","v":{"$error":"#N/A"}},{"$f":"IF(INDIRECT(\"c\" & (VLOOKUP(Switch!$D$30,$F$2:$G$44,2,FALSE)+ROW()-2))=Switch!$D$30,INDIRECT(\"a\" & (VLOOKUP(Switch!$D$30,$F$2:$G$44,2,FALSE)+ROW()-2)),\"\")","v":{"$error":"#N/A"}},{"$f":"IF(INDIRECT(\"c\" & (VLOOKUP(Switch!$D$31,$F$2:$G$44,2,FALSE)+ROW()-2))=Switch!$D$31,INDIRECT(\"a\" & (VLOOKUP(Switch!$D$31,$F$2:$G$44,2,FALSE)+ROW()-2)),\"\")","v":{"$error":"#N/A"}},{"$f":"IF(INDIRECT(\"c\" & (VLOOKUP(Switch!$D$32,$F$2:$G$44,2,FALSE)+ROW()-2))=Switch!$D$32,INDIRECT(\"a\" & (VLOOKUP(Switch!$D$32,$F$2:$G$44,2,FALSE)+ROW()-2)),\"\")","v":{"$error":"#N/A"}},{"$f":"IF(INDIRECT(\"c\" & (VLOOKUP(Switch!$D$33,$F$2:$G$44,2,FALSE)+ROW()-2))=Switch!$D$33,INDIRECT(\"a\" & (VLOOKUP(Switch!$D$33,$F$2:$G$44,2,FALSE)+ROW()-2)),\"\")","v":{"$error":"#N/A"}},{"$f":"IF(INDIRECT(\"c\" & (VLOOKUP(Switch!$D$34,$F$2:$G$44,2,FALSE)+ROW()-2))=Switch!$D$34,INDIRECT(\"a\" & (VLOOKUP(Switch!$D$34,$F$2:$G$44,2,FALSE)+ROW()-2)),\"\")","v":{"$error":"#N/A"}},{"$f":"IF(INDIRECT(\"c\" & (VLOOKUP(Switch!$D$35,$F$2:$G$44,2,FALSE)+ROW()-2))=Switch!$D$35,INDIRECT(\"a\" & (VLOOKUP(Switch!$D$35,$F$2:$G$44,2,FALSE)+ROW()-2)),\"\")","v":{"$error":"#N/A"}},{"$f":"IF(INDIRECT(\"c\" & (VLOOKUP(Switch!$D$36,$F$2:$G$44,2,FALSE)+ROW()-2))=Switch!$D$36,INDIRECT(\"a\" & (VLOOKUP(Switch!$D$36,$F$2:$G$44,2,FALSE)+ROW()-2)),\"\")","v":{"$error":"#N/A"}},{"$f":"IF(INDIRECT(\"c\" & (VLOOKUP(Switch!$D$37,$F$2:$G$44,2,FALSE)+ROW()-2))=Switch!$D$37,INDIRECT(\"a\" & (VLOOKUP(Switch!$D$37,$F$2:$G$44,2,FALSE)+ROW()-2)),\"\")","v":{"$error":"#N/A"}},{"$f":"IF(INDIRECT(\"c\" & (VLOOKUP(Switch!$D$38,$F$2:$G$44,2,FALSE)+ROW()-2))=Switch!$D$38,INDIRECT(\"a\" & (VLOOKUP(Switch!$D$38,$F$2:$G$44,2,FALSE)+ROW()-2)),\"\")","v":{"$error":"#N/A"}},{"$f":"IF(INDIRECT(\"c\" & (VLOOKUP(Switch!$D$39,$F$2:$G$44,2,FALSE)+ROW()-2))=Switch!$D$39,INDIRECT(\"a\" & (VLOOKUP(Switch!$D$39,$F$2:$G$44,2,FALSE)+ROW()-2)),\"\")","v":{"$error":"#N/A"}},{"$f":"IF(INDIRECT(\"c\" & (VLOOKUP(Switch!$D$40,$F$2:$G$44,2,FALSE)+ROW()-2))=Switch!$D$40,INDIRECT(\"a\" & (VLOOKUP(Switch!$D$40,$F$2:$G$44,2,FALSE)+ROW()-2)),\"\")","v":{"$error":"#N/A"}},{"$f":"IF(INDIRECT(\"c\" & (VLOOKUP(Switch!$D$52,$F$2:$G$44,2,FALSE)+ROW()-2))=Switch!$D$52,INDIRECT(\"a\" & (VLOOKUP(Switch!$D$52,$F$2:$G$44,2,FALSE)+ROW()-2)),\"\")","v":{"$error":"#N/A"}},{"$f":"IF(INDIRECT(\"c\" & (VLOOKUP(Switch!$D$53,$F$2:$G$44,2,FALSE)+ROW()-2))=Switch!$D$53,INDIRECT(\"a\" & (VLOOKUP(Switch!$D$53,$F$2:$G$44,2,FALSE)+ROW()-2)),\"\")","v":{"$error":"#N/A"}},{"$f":"IF(INDIRECT(\"c\" & (VLOOKUP(Switch!$D$54,$F$2:$G$44,2,FALSE)+ROW()-2))=Switch!$D$54,INDIRECT(\"a\" & (VLOOKUP(Switch!$D$54,$F$2:$G$44,2,FALSE)+ROW()-2)),\"\")","v":{"$error":"#N/A"}},{"$f":"IF(INDIRECT(\"c\" & (VLOOKUP(Switch!$D$55,$F$2:$G$44,2,FALSE)+ROW()-2))=Switch!$D$55,INDIRECT(\"a\" & (VLOOKUP(Switch!$D$55,$F$2:$G$44,2,FALSE)+ROW()-2)),\"\")","v":{"$error":"#N/A"}},{"$f":"IF(INDIRECT(\"c\" & (VLOOKUP(Switch!$D$56,$F$2:$G$44,2,FALSE)+ROW()-2))=Switch!$D$56,INDIRECT(\"a\" & (VLOOKUP(Switch!$D$56,$F$2:$G$44,2,FALSE)+ROW()-2)),\"\")","v":{"$error":"#N/A"}},{"$f":"IF(INDIRECT(\"c\" & (VLOOKUP(Switch!$D$57,$F$2:$G$44,2,FALSE)+ROW()-2))=Switch!$D$57,INDIRECT(\"a\" & (VLOOKUP(Switch!$D$57,$F$2:$G$44,2,FALSE)+ROW()-2)),\"\")","v":{"$error":"#N/A"}},{"$f":"IF(INDIRECT(\"c\" & (VLOOKUP(Switch!$D$58,$F$2:$G$44,2,FALSE)+ROW()-2))=Switch!$D$58,INDIRECT(\"a\" & (VLOOKUP(Switch!$D$58,$F$2:$G$44,2,FALSE)+ROW()-2)),\"\")","v":{"$error":"#N/A"}},{"$f":"IF(INDIRECT(\"c\" & (VLOOKUP(Switch!$D$59,$F$2:$G$44,2,FALSE)+ROW()-2))=Switch!$D$59,INDIRECT(\"a\" & (VLOOKUP(Switch!$D$59,$F$2:$G$44,2,FALSE)+ROW()-2)),\"\")","v":{"$error":"#N/A"}},{"$f":"IF(INDIRECT(\"c\" & (VLOOKUP(Switch!$D$60,$F$2:$G$44,2,FALSE)+ROW()-2))=Switch!$D$60,INDIRECT(\"a\" & (VLOOKUP(Switch!$D$60,$F$2:$G$44,2,FALSE)+ROW()-2)),\"\")","v":{"$error":"#N/A"}},{"$f":"IF(INDIRECT(\"c\" & (VLOOKUP(Switch!$D$61,$F$2:$G$44,2,FALSE)+ROW()-2))=Switch!$D$61,INDIRECT(\"a\" & (VLOOKUP(Switch!$D$61,$F$2:$G$44,2,FALSE)+ROW()-2)),\"\")","v":{"$error":"#N/A"}},{"$f":"IF(INDIRECT(\"c\" & (VLOOKUP(Switch!$D$62,$F$2:$G$44,2,FALSE)+ROW()-2))=Switch!$D$62,INDIRECT(\"a\" & (VLOOKUP(Switch!$D$62,$F$2:$G$44,2,FALSE)+ROW()-2)),\"\")","v":{"$error":"#N/A"}},{"$f":"IF(INDIRECT(\"c\" & (VLOOKUP(Switch!$D$63,$F$2:$G$44,2,FALSE)+ROW()-2))=Switch!$D$63,INDIRECT(\"a\" & (VLOOKUP(Switch!$D$63,$F$2:$G$44,2,FALSE)+ROW()-2)),\"\")","v":{"$error":"#N/A"}},{"$f":"IF(INDIRECT(\"c\" & (VLOOKUP(Switch!$D$64,$F$2:$G$44,2,FALSE)+ROW()-2))=Switch!$D$64,INDIRECT(\"a\" & (VLOOKUP(Switch!$D$64,$F$2:$G$44,2,FALSE)+ROW()-2)),\"\")","v":{"$error":"#N/A"}},{"$f":"IF(INDIRECT(\"c\" & (VLOOKUP(Switch!$D$65,$F$2:$G$44,2,FALSE)+ROW()-2))=Switch!$D$65,INDIRECT(\"a\" & (VLOOKUP(Switch!$D$65,$F$2:$G$44,2,FALSE)+ROW()-2)),\"\")","v":{"$error":"#N/A"}},{"$f":"IF(INDIRECT(\"c\" & (VLOOKUP(Switch!$D$66,$F$2:$G$44,2,FALSE)+ROW()-2))=Switch!$D$66,INDIRECT(\"a\" & (VLOOKUP(Switch!$D$66,$F$2:$G$44,2,FALSE)+ROW()-2)),\"\")","v":{"$error":"#N/A"}}]
["Momentum Financials Fund","RMFS","Momentum Collective Investments Ltd",{"$f":"ROW()","v":340},null,null,{"$f":"VLOOKUP(F340,$C$2:$D$637,2,FALSE)","v":{"$error":"#N/A"}},{"$f":"IF(INDIRECT(\"c\" & (VLOOKUP(Switch!$D$26,$F$2:$G$44,2,FALSE)+ROW()-2))=Switch!$D$26,INDIRECT(\"a\" & (VLOOKUP(Switch!$D$26,$F$2:$G$44,2,FALSE)+ROW()-2)),\"\")","v":{"$error":"#N/A"}},{"$f":"IF(INDIRECT(\"c\" & (VLOOKUP(Switch!$D$27,$F$2:$G$44,2,FALSE)+ROW()-2))=Switch!$D$27,INDIRECT(\"a\" & (VLOOKUP(Switch!$D$27,$F$2:$G$44,2,FALSE)+ROW()-2)),\"\")","v":{"$error":"#N/A"}},{"$f":"IF(INDIRECT(\"c\" & (VLOOKUP(Switch!$D$28,$F$2:$G$44,2,FALSE)+ROW()-2))=Switch!$D$28,INDIRECT(\"a\" & (VLOOKUP(Switch!$D$28,$F$2:$G$44,2,FALSE)+ROW()-2)),\"\")","v":{"$error":"#N/A"}},{"$f":"IF(INDIRECT(\"c\" & (VLOOKUP(Switch!$D$29,$F$2:$G$44,2,FALSE)+ROW()-2))=Switch!$D$29,INDIRECT(\"a\" & (VLOOKUP(Switch!$D$29,$F$2:$G$44,2,FALSE)+ROW()-2)),\"\")","v":{"$error":"#N/A"}},{"$f":"IF(INDIRECT(\"c\" & (VLOOKUP(Switch!$D$30,$F$2:$G$44,2,FALSE)+ROW()-2))=Switch!$D$30,INDIRECT(\"a\" & (VLOOKUP(Switch!$D$30,$F$2:$G$44,2,FALSE)+ROW()-2)),\"\")","v":{"$error":"#N/A"}},{"$f":"IF(INDIRECT(\"c\" & (VLOOKUP(Switch!$D$31,$F$2:$G$44,2,FALSE)+ROW()-2))=Switch!$D$31,INDIRECT(\"a\" & (VLOOKUP(Switch!$D$31,$F$2:$G$44,2,FALSE)+ROW()-2)),\"\")","v":{"$error":"#N/A"}},{"$f":"IF(INDIRECT(\"c\" & (VLOOKUP(Switch!$D$32,$F$2:$G$44,2,FALSE)+ROW()-2))=Switch!$D$32,INDIRECT(\"a\" & (VLOOKUP(Switch!$D$32,$F$2:$G$44,2,FALSE)+ROW()-2)),\"\")","v":{"$error":"#N/A"}},{"$f":"IF(INDIRECT(\"c\" & (VLOOKUP(Switch!$D$33,$F$2:$G$44,2,FALSE)+ROW()-2))=Switch!$D$33,INDIRECT(\"a\" & (VLOOKUP(Switch!$D$33,$F$2:$G$44,2,FALSE)+ROW()-2)),\"\")","v":{"$error":"#N/A"}},{"$f":"IF(INDIRECT(\"c\" & (VLOOKUP(Switch!$D$34,$F$2:$G$44,2,FALSE)+ROW()-2))=Switch!$D$34,INDIRECT(\"a\" & (VLOOKUP(Switch!$D$34,$F$2:$G$44,2,FALSE)+ROW()-2)),\"\")","v":{"$error":"#N/A"}},{"$f":"IF(INDIRECT(\"c\" & (VLOOKUP(Switch!$D$35,$F$2:$G$44,2,FALSE)+ROW()-2))=Switch!$D$35,INDIRECT(\"a\" & (VLOOKUP(Switch!$D$35,$F$2:$G$44,2,FALSE)+ROW()-2)),\"\")","v":{"$error":"#N/A"}},{"$f":"IF(INDIRECT(\"c\" & (VLOOKUP(Switch!$D$36,$F$2:$G$44,2,FALSE)+ROW()-2))=Switch!$D$36,INDIRECT(\"a\" & (VLOOKUP(Switch!$D$36,$F$2:$G$44,2,FALSE)+ROW()-2)),\"\")","v":{"$error":"#N/A"}},{"$f":"IF(INDIRECT(\"c\" & (VLOOKUP(Switch!$D$37,$F$2:$G$44,2,FALSE)+ROW()-2))=Switch!$D$37,INDIRECT(\"a\" & (VLOOKUP(Switch!$D$37,$F$2:$G$44,2,FALSE)+ROW()-2)),\"\")","v":{"$error":"#N/A"}},{"$f":"IF(INDIRECT(\"c\" & (VLOOKUP(Switch!$D$38,$F$2:$G$44,2,FALSE)+ROW()-2))=Switch!$D$38,INDIRECT(\"a\" & (VLOOKUP(Switch!$D$38,$F$2:$G$44,2,FALSE)+ROW()-2)),\"\")","v":{"$error":"#N/A"}},{"$f":"IF(INDIRECT(\"c\" & (VLOOKUP(Switch!$D$39,$F$2:$G$44,2,FALSE)+ROW()-2))=Switch!$D$39,INDIRECT(\"a\" & (VLOOKUP(Switch!$D$39,$F$2:$G$44,2,FALSE)+ROW()-2)),\"\")","v":{"$error":"#N/A"}},{"$f":"IF(INDIRECT(\"c\" & (VLOOKUP(Switch!$D$40,$F$2:$G$44,2,FALSE)+ROW()-2))=Switch!$D$40,INDIRECT(\"a\" & (VLOOKUP(Switch!$D$40,$F$2:$G$44,2,FALSE)+ROW()-2)),\"\")","v":{"$error":"#N/A"}},{"$f":"IF(INDIRECT(\"c\" & (VLOOKUP(Switch!$D$52,$F$2:$G$44,2,FALSE)+ROW()-2))=Switch!$D$52,INDIRECT(\"a\" & (VLOOKUP(Switch!$D$52,$F$2:$G$44,2,FALSE)+ROW()-2)),\"\")","v":{"$error":"#N/A"}},{"$f":"IF(INDIRECT(\"c\" & (VLOOKUP(Switch!$D$53,$F$2:$G$44,2,FALSE)+ROW()-2))=Switch!$D$53,INDIRECT(\"a\" & (VLOOKUP(Switch!$D$53,$F$2:$G$44,2,FALSE)+ROW()-2)),\"\")","v":{"$error":"#N/A"}},{"$f":"IF(INDIRECT(\"c\" & (VLOOKUP(Switch!$D$54,$F$2:$G$44,2,FALSE)+ROW()-2))=Switch!$D$54,INDIRECT(\"a\" & (VLOOKUP(Switch!$D$54,$F$2:$G$44,2,FALSE)+ROW()-2)),\"\")","v":{"$error":"#N/A"}},{"$f":"IF(INDIRECT(\"c\" & (VLOOKUP(Switch!$D$55,$F$2:$G$44,2,FALSE)+ROW()-2))=Switch!$D$55,INDIRECT(\"a\" & (VLOOKUP(Switch!$D$55,$F$2:$G$44,2,FALSE)+ROW()-2)),\"\")","v":{"$error":"#N/A"}},{"$f":"IF(INDIRECT(\"c\" & (VLOOKUP(Switch!$D$56,$F$2:$G$44,2,FALSE)+ROW()-2))=Switch!$D$56,INDIRECT(\"a\" & (VLOOKUP(Switch!$D$56,$F$2:$G$44,2,FALSE)+ROW()-2)),\"\")","v":{"$error":"#N/A"}},{"$f":"IF(INDIRECT(\"c\" & (VLOOKUP(Switch!$D$57,$F$2:$G$44,2,FALSE)+ROW()-2))=Switch!$D$57,INDIRECT(\"a\" & (VLOOKUP(Switch!$D$57,$F$2:$G$44,2,FALSE)+ROW()-2)),\"\")","v":{"$error":"#N/A"}},{"$f":"IF(INDIRECT(\"c\" & (VLOOKUP(Switch!$D$58,$F$2:$G$44,2,FALSE)+ROW()-2))=Switch!$D$58,INDIRECT(\"a\" & (VLOOKUP(Switch!$D$58,$F$2:$G$44,2,FALSE)+ROW()-2)),\"\")","v":{"$error":"#N/A"}},{"$f":"IF(INDIRECT(\"c\" & (VLOOKUP(Switch!$D$59,$F$2:$G$44,2,FALSE)+ROW()-2))=Switch!$D$59,INDIRECT(\"a\" & (VLOOKUP(Switch!$D$59,$F$2:$G$44,2,FALSE)+ROW()-2)),\"\")","v":{"$error":"#N/A"}},{"$f":"IF(INDIRECT(\"c\" & (VLOOKUP(Switch!$D$60,$F$2:$G$44,2,FALSE)+ROW()-2))=Switch!$D$60,INDIRECT(\"a\" & (VLOOKUP(Switch!$D$60,$F$2:$G$44,2,FALSE)+ROW()-2)),\"\")","v":{"$error":"#N/A"}},{"$f":"IF(INDIRECT(\"c\" & (VLOOKUP(Switch!$D$61,$F$2:$G$44,2,FALSE)+ROW()-2))=Switch!$D$61,INDIRECT(\"a\" & (VLOOKUP(Switch!$D$61,$F$2:$G$44,2,FALSE)+ROW()-2)),\"\")","v":{"$error":"#N/A"}},{"$f":"IF(INDIRECT(\"c\" & (VLOOKUP(Switch!$D$62,$F$2:$G$44,2,FALSE)+ROW()-2))=Switch!$D$62,INDIRECT(\"a\" & (VLOOKUP(Switch!$D$62,$F$2:$G$44,2,FALSE)+ROW()-2)),\"\")","v":{"$error":"#N/A"}},{"$f":"IF(INDIRECT(\"c\" & (VLOOKUP(Switch!$D$63,$F$2:$G$44,2,FALSE)+ROW()-2))=Switch!$D$63,INDIRECT(\"a\" & (VLOOKUP(Switch!$D$63,$F$2:$G$44,2,FALSE)+ROW()-2)),\"\")","v":{"$error":"#N/A"}},{"$f":"IF(INDIRECT(\"c\" & (VLOOKUP(Switch!$D$64,$F$2:$G$44,2,FALSE)+ROW()-2))=Switch!$D$64,INDIRECT(\"a\" & (VLOOKUP(Switch!$D$64,$F$2:$G$44,2,FALSE)+ROW()-2)),\"\")","v":{"$error":"#N/A"}},{"$f":"IF(INDIRECT(\"c\" & (VLOOKUP(Switch!$D$65,$F$2:$G$44,2,FALSE)+ROW()-2))=Switch!$D$65,INDIRECT(\"a\" & (VLOOKUP(Switch!$D$65,$F$2:$G$44,2,FALSE)+ROW()-2)),\"\")","v":{"$error":"#N/A"}},{"$f":"IF(INDIRECT(\"c\" & (VLOOKUP(Switch!$D$66,$F$2:$G$44,2,FALSE)+ROW()-2))=Switch!$D$66,INDIRECT(\"a\" & (VLOOKUP(Switch!$D$66,$F$2:$G$44,2,FALSE)+ROW()-2)),\"\")","v":{"$error":"#N/A"}}]
["Momentum Flexible Fund","RMHT","Momentum Collective Investments Ltd",{"$f":"ROW()","v":341},null,null,{"$f":"VLOOKUP(F341,$C$2:$D$637,2,FALSE)","v":{"$error":"#N/A"}},{"$f":"IF(INDIRECT(\"c\" & (VLOOKUP(Switch!$D$26,$F$2:$G$44,2,FALSE)+ROW()-2))=Switch!$D$26,INDIRECT(\"a\" & (VLOOKUP(Switch!$D$26,$F$2:$G$44,2,FALSE)+ROW()-2)),\"\")","v":{"$error":"#N/A"}},{"$f":"IF(INDIRECT(\"c\" & (VLOOKUP(Switch!$D$27,$F$2:$G$44,2,FALSE)+ROW()-2))=Switch!$D$27,INDIRECT(\"a\" & (VLOOKUP(Switch!$D$27,$F$2:$G$44,2,FALSE)+ROW()-2)),\"\")","v":{"$error":"#N/A"}},{"$f":"IF(INDIRECT(\"c\" & (VLOOKUP(Switch!$D$28,$F$2:$G$44,2,FALSE)+ROW()-2))=Switch!$D$28,INDIRECT(\"a\" & (VLOOKUP(Switch!$D$28,$F$2:$G$44,2,FALSE)+ROW()-2)),\"\")","v":{"$error":"#N/A"}},{"$f":"IF(INDIRECT(\"c\" & (VLOOKUP(Switch!$D$29,$F$2:$G$44,2,FALSE)+ROW()-2))=Switch!$D$29,INDIRECT(\"a\" & (VLOOKUP(Switch!$D$29,$F$2:$G$44,2,FALSE)+ROW()-2)),\"\")","v":{"$error":"#N/A"}},{"$f":"IF(INDIRECT(\"c\" & (VLOOKUP(Switch!$D$30,$F$2:$G$44,2,FALSE)+ROW()-2))=Switch!$D$30,INDIRECT(\"a\" & (VLOOKUP(Switch!$D$30,$F$2:$G$44,2,FALSE)+ROW()-2)),\"\")","v":{"$error":"#N/A"}},{"$f":"IF(INDIRECT(\"c\" & (VLOOKUP(Switch!$D$31,$F$2:$G$44,2,FALSE)+ROW()-2))=Switch!$D$31,INDIRECT(\"a\" & (VLOOKUP(Switch!$D$31,$F$2:$G$44,2,FALSE)+ROW()-2)),\"\")","v":{"$error":"#N/A"}},{"$f":"IF(INDIRECT(\"c\" & (VLOOKUP(Switch!$D$32,$F$2:$G$44,2,FALSE)+ROW()-2))=Switch!$D$32,INDIRECT(\"a\" & (VLOOKUP(Switch!$D$32,$F$2:$G$44,2,FALSE)+ROW()-2)),\"\")","v":{"$error":"#N/A"}},{"$f":"IF(INDIRECT(\"c\" & (VLOOKUP(Switch!$D$33,$F$2:$G$44,2,FALSE)+ROW()-2))=Switch!$D$33,INDIRECT(\"a\" & (VLOOKUP(Switch!$D$33,$F$2:$G$44,2,FALSE)+ROW()-2)),\"\")","v":{"$error":"#N/A"}},{"$f":"IF(INDIRECT(\"c\" & (VLOOKUP(Switch!$D$34,$F$2:$G$44,2,FALSE)+ROW()-2))=Switch!$D$34,INDIRECT(\"a\" & (VLOOKUP(Switch!$D$34,$F$2:$G$44,2,FALSE)+ROW()-2)),\"\")","v":{"$error":"#N/A"}},{"$f":"IF(INDIRECT(\"c\" & (VLOOKUP(Switch!$D$35,$F$2:$G$44,2,FALSE)+ROW()-2))=Switch!$D$35,INDIRECT(\"a\" & (VLOOKUP(Switch!$D$35,$F$2:$G$44,2,FALSE)+ROW()-2)),\"\")","v":{"$error":"#N/A"}},{"$f":"IF(INDIRECT(\"c\" & (VLOOKUP(Switch!$D$36,$F$2:$G$44,2,FALSE)+ROW()-2))=Switch!$D$36,INDIRECT(\"a\" & (VLOOKUP(Switch!$D$36,$F$2:$G$44,2,FALSE)+ROW()-2)),\"\")","v":{"$error":"#N/A"}},{"$f":"IF(INDIRECT(\"c\" & (VLOOKUP(Switch!$D$37,$F$2:$G$44,2,FALSE)+ROW()-2))=Switch!$D$37,INDIRECT(\"a\" & (VLOOKUP(Switch!$D$37,$F$2:$G$44,2,FALSE)+ROW()-2)),\"\")","v":{"$error":"#N/A"}},{"$f":"IF(INDIRECT(\"c\" & (VLOOKUP(Switch!$D$38,$F$2:$G$44,2,FALSE)+ROW()-2))=Switch!$D$38,INDIRECT(\"a\" & (VLOOKUP(Switch!$D$38,$F$2:$G$44,2,FALSE)+ROW()-2)),\"\")","v":{"$error":"#N/A"}},{"$f":"IF(INDIRECT(\"c\" & (VLOOKUP(Switch!$D$39,$F$2:$G$44,2,FALSE)+ROW()-2))=Switch!$D$39,INDIRECT(\"a\" & (VLOOKUP(Switch!$D$39,$F$2:$G$44,2,FALSE)+ROW()-2)),\"\")","v":{"$error":"#N/A"}},{"$f":"IF(INDIRECT(\"c\" & (VLOOKUP(Switch!$D$40,$F$2:$G$44,2,FALSE)+ROW()-2))=Switch!$D$40,INDIRECT(\"a\" & (VLOOKUP(Switch!$D$40,$F$2:$G$44,2,FALSE)+ROW()-2)),\"\")","v":{"$error":"#N/A"}},{"$f":"IF(INDIRECT(\"c\" & (VLOOKUP(Switch!$D$52,$F$2:$G$44,2,FALSE)+ROW()-2))=Switch!$D$52,INDIRECT(\"a\" & (VLOOKUP(Switch!$D$52,$F$2:$G$44,2,FALSE)+ROW()-2)),\"\")","v":{"$error":"#N/A"}},{"$f":"IF(INDIRECT(\"c\" & (VLOOKUP(Switch!$D$53,$F$2:$G$44,2,FALSE)+ROW()-2))=Switch!$D$53,INDIRECT(\"a\" & (VLOOKUP(Switch!$D$53,$F$2:$G$44,2,FALSE)+ROW()-2)),\"\")","v":{"$error":"#N/A"}},{"$f":"IF(INDIRECT(\"c\" & (VLOOKUP(Switch!$D$54,$F$2:$G$44,2,FALSE)+ROW()-2))=Switch!$D$54,INDIRECT(\"a\" & (VLOOKUP(Switch!$D$54,$F$2:$G$44,2,FALSE)+ROW()-2)),\"\")","v":{"$error":"#N/A"}},{"$f":"IF(INDIRECT(\"c\" & (VLOOKUP(Switch!$D$55,$F$2:$G$44,2,FALSE)+ROW()-2))=Switch!$D$55,INDIRECT(\"a\" & (VLOOKUP(Switch!$D$55,$F$2:$G$44,2,FALSE)+ROW()-2)),\"\")","v":{"$error":"#N/A"}},{"$f":"IF(INDIRECT(\"c\" & (VLOOKUP(Switch!$D$56,$F$2:$G$44,2,FALSE)+ROW()-2))=Switch!$D$56,INDIRECT(\"a\" & (VLOOKUP(Switch!$D$56,$F$2:$G$44,2,FALSE)+ROW()-2)),\"\")","v":{"$error":"#N/A"}},{"$f":"IF(INDIRECT(\"c\" & (VLOOKUP(Switch!$D$57,$F$2:$G$44,2,FALSE)+ROW()-2))=Switch!$D$57,INDIRECT(\"a\" & (VLOOKUP(Switch!$D$57,$F$2:$G$44,2,FALSE)+ROW()-2)),\"\")","v":{"$error":"#N/A"}},{"$f":"IF(INDIRECT(\"c\" & (VLOOKUP(Switch!$D$58,$F$2:$G$44,2,FALSE)+ROW()-2))=Switch!$D$58,INDIRECT(\"a\" & (VLOOKUP(Switch!$D$58,$F$2:$G$44,2,FALSE)+ROW()-2)),\"\")","v":{"$error":"#N/A"}},{"$f":"IF(INDIRECT(\"c\" & (VLOOKUP(Switch!$D$59,$F$2:$G$44,2,FALSE)+ROW()-2))=Switch!$D$59,INDIRECT(\"a\" & (VLOOKUP(Switch!$D$59,$F$2:$G$44,2,FALSE)+ROW()-2)),\"\")","v":{"$error":"#N/A"}},{"$f":"IF(INDIRECT(\"c\" & (VLOOKUP(Switch!$D$60,$F$2:$G$44,2,FALSE)+ROW()-2))=Switch!$D$60,INDIRECT(\"a\" & (VLOOKUP(Switch!$D$60,$F$2:$G$44,2,FALSE)+ROW()-2)),\"\")","v":{"$error":"#N/A"}},{"$f":"IF(INDIRECT(\"c\" & (VLOOKUP(Switch!$D$61,$F$2:$G$44,2,FALSE)+ROW()-2))=Switch!$D$61,INDIRECT(\"a\" & (VLOOKUP(Switch!$D$61,$F$2:$G$44,2,FALSE)+ROW()-2)),\"\")","v":{"$error":"#N/A"}},{"$f":"IF(INDIRECT(\"c\" & (VLOOKUP(Switch!$D$62,$F$2:$G$44,2,FALSE)+ROW()-2))=Switch!$D$62,INDIRECT(\"a\" & (VLOOKUP(Switch!$D$62,$F$2:$G$44,2,FALSE)+ROW()-2)),\"\")","v":{"$error":"#N/A"}},{"$f":"IF(INDIRECT(\"c\" & (VLOOKUP(Switch!$D$63,$F$2:$G$44,2,FALSE)+ROW()-2))=Switch!$D$63,INDIRECT(\"a\" & (VLOOKUP(Switch!$D$63,$F$2:$G$44,2,FALSE)+ROW()-2)),\"\")","v":{"$error":"#N/A"}},{"$f":"IF(INDIRECT(\"c\" & (VLOOKUP(Switch!$D$64,$F$2:$G$44,2,FALSE)+ROW()-2))=Switch!$D$64,INDIRECT(\"a\" & (VLOOKUP(Switch!$D$64,$F$2:$G$44,2,FALSE)+ROW()-2)),\"\")","v":{"$error":"#N/A"}},{"$f":"IF(INDIRECT(\"c\" & (VLOOKUP(Switch!$D$65,$F$2:$G$44,2,FALSE)+ROW()-2))=Switch!$D$65,INDIRECT(\"a\" & (VLOOKUP(Switch!$D$65,$F$2:$G$44,2,FALSE)+ROW()-2)),\"\")","v":{"$error":"#N/A"}},{"$f":"IF(INDIRECT(\"c\" & (VLOOKUP(Switch!$D$66,$F$2:$G$44,2,FALSE)+ROW()-2))=Switch!$D$66,INDIRECT(\"a\" & (VLOOKUP(Switch!$D$66,$F$2:$G$44,2,FALSE)+ROW()-2)),\"\")","v":{"$error":"#N/A"}}]
["Momentum Income Plus Fund A","MIPB7","Momentum Collective Investments Ltd",{"$f":"ROW()","v":342},null,null,{"$f":"VLOOKUP(F342,$C$2:$D$637,2,FALSE)","v":{"$error":"#N/A"}},{"$f":"IF(INDIRECT(\"c\" & (VLOOKUP(Switch!$D$26,$F$2:$G$44,2,FALSE)+ROW()-2))=Switch!$D$26,INDIRECT(\"a\" & (VLOOKUP(Switch!$D$26,$F$2:$G$44,2,FALSE)+ROW()-2)),\"\")","v":{"$error":"#N/A"}},{"$f":"IF(INDIRECT(\"c\" & (VLOOKUP(Switch!$D$27,$F$2:$G$44,2,FALSE)+ROW()-2))=Switch!$D$27,INDIRECT(\"a\" & (VLOOKUP(Switch!$D$27,$F$2:$G$44,2,FALSE)+ROW()-2)),\"\")","v":{"$error":"#N/A"}},{"$f":"IF(INDIRECT(\"c\" & (VLOOKUP(Switch!$D$28,$F$2:$G$44,2,FALSE)+ROW()-2))=Switch!$D$28,INDIRECT(\"a\" & (VLOOKUP(Switch!$D$28,$F$2:$G$44,2,FALSE)+ROW()-2)),\"\")","v":{"$error":"#N/A"}},{"$f":"IF(INDIRECT(\"c\" & (VLOOKUP(Switch!$D$29,$F$2:$G$44,2,FALSE)+ROW()-2))=Switch!$D$29,INDIRECT(\"a\" & (VLOOKUP(Switch!$D$29,$F$2:$G$44,2,FALSE)+ROW()-2)),\"\")","v":{"$error":"#N/A"}},{"$f":"IF(INDIRECT(\"c\" & (VLOOKUP(Switch!$D$30,$F$2:$G$44,2,FALSE)+ROW()-2))=Switch!$D$30,INDIRECT(\"a\" & (VLOOKUP(Switch!$D$30,$F$2:$G$44,2,FALSE)+ROW()-2)),\"\")","v":{"$error":"#N/A"}},{"$f":"IF(INDIRECT(\"c\" & (VLOOKUP(Switch!$D$31,$F$2:$G$44,2,FALSE)+ROW()-2))=Switch!$D$31,INDIRECT(\"a\" & (VLOOKUP(Switch!$D$31,$F$2:$G$44,2,FALSE)+ROW()-2)),\"\")","v":{"$error":"#N/A"}},{"$f":"IF(INDIRECT(\"c\" & (VLOOKUP(Switch!$D$32,$F$2:$G$44,2,FALSE)+ROW()-2))=Switch!$D$32,INDIRECT(\"a\" & (VLOOKUP(Switch!$D$32,$F$2:$G$44,2,FALSE)+ROW()-2)),\"\")","v":{"$error":"#N/A"}},{"$f":"IF(INDIRECT(\"c\" & (VLOOKUP(Switch!$D$33,$F$2:$G$44,2,FALSE)+ROW()-2))=Switch!$D$33,INDIRECT(\"a\" & (VLOOKUP(Switch!$D$33,$F$2:$G$44,2,FALSE)+ROW()-2)),\"\")","v":{"$error":"#N/A"}},{"$f":"IF(INDIRECT(\"c\" & (VLOOKUP(Switch!$D$34,$F$2:$G$44,2,FALSE)+ROW()-2))=Switch!$D$34,INDIRECT(\"a\" & (VLOOKUP(Switch!$D$34,$F$2:$G$44,2,FALSE)+ROW()-2)),\"\")","v":{"$error":"#N/A"}},{"$f":"IF(INDIRECT(\"c\" & (VLOOKUP(Switch!$D$35,$F$2:$G$44,2,FALSE)+ROW()-2))=Switch!$D$35,INDIRECT(\"a\" & (VLOOKUP(Switch!$D$35,$F$2:$G$44,2,FALSE)+ROW()-2)),\"\")","v":{"$error":"#N/A"}},{"$f":"IF(INDIRECT(\"c\" & (VLOOKUP(Switch!$D$36,$F$2:$G$44,2,FALSE)+ROW()-2))=Switch!$D$36,INDIRECT(\"a\" & (VLOOKUP(Switch!$D$36,$F$2:$G$44,2,FALSE)+ROW()-2)),\"\")","v":{"$error":"#N/A"}},{"$f":"IF(INDIRECT(\"c\" & (VLOOKUP(Switch!$D$37,$F$2:$G$44,2,FALSE)+ROW()-2))=Switch!$D$37,INDIRECT(\"a\" & (VLOOKUP(Switch!$D$37,$F$2:$G$44,2,FALSE)+ROW()-2)),\"\")","v":{"$error":"#N/A"}},{"$f":"IF(INDIRECT(\"c\" & (VLOOKUP(Switch!$D$38,$F$2:$G$44,2,FALSE)+ROW()-2))=Switch!$D$38,INDIRECT(\"a\" & (VLOOKUP(Switch!$D$38,$F$2:$G$44,2,FALSE)+ROW()-2)),\"\")","v":{"$error":"#N/A"}},{"$f":"IF(INDIRECT(\"c\" & (VLOOKUP(Switch!$D$39,$F$2:$G$44,2,FALSE)+ROW()-2))=Switch!$D$39,INDIRECT(\"a\" & (VLOOKUP(Switch!$D$39,$F$2:$G$44,2,FALSE)+ROW()-2)),\"\")","v":{"$error":"#N/A"}},{"$f":"IF(INDIRECT(\"c\" & (VLOOKUP(Switch!$D$40,$F$2:$G$44,2,FALSE)+ROW()-2))=Switch!$D$40,INDIRECT(\"a\" & (VLOOKUP(Switch!$D$40,$F$2:$G$44,2,FALSE)+ROW()-2)),\"\")","v":{"$error":"#N/A"}},{"$f":"IF(INDIRECT(\"c\" & (VLOOKUP(Switch!$D$52,$F$2:$G$44,2,FALSE)+ROW()-2))=Switch!$D$52,INDIRECT(\"a\" & (VLOOKUP(Switch!$D$52,$F$2:$G$44,2,FALSE)+ROW()-2)),\"\")","v":{"$error":"#N/A"}},{"$f":"IF(INDIRECT(\"c\" & (VLOOKUP(Switch!$D$53,$F$2:$G$44,2,FALSE)+ROW()-2))=Switch!$D$53,INDIRECT(\"a\" & (VLOOKUP(Switch!$D$53,$F$2:$G$44,2,FALSE)+ROW()-2)),\"\")","v":{"$error":"#N/A"}},{"$f":"IF(INDIRECT(\"c\" & (VLOOKUP(Switch!$D$54,$F$2:$G$44,2,FALSE)+ROW()-2))=Switch!$D$54,INDIRECT(\"a\" & (VLOOKUP(Switch!$D$54,$F$2:$G$44,2,FALSE)+ROW()-2)),\"\")","v":{"$error":"#N/A"}},{"$f":"IF(INDIRECT(\"c\" & (VLOOKUP(Switch!$D$55,$F$2:$G$44,2,FALSE)+ROW()-2))=Switch!$D$55,INDIRECT(\"a\" & (VLOOKUP(Switch!$D$55,$F$2:$G$44,2,FALSE)+ROW()-2)),\"\")","v":{"$error":"#N/A"}},{"$f":"IF(INDIRECT(\"c\" & (VLOOKUP(Switch!$D$56,$F$2:$G$44,2,FALSE)+ROW()-2))=Switch!$D$56,INDIRECT(\"a\" & (VLOOKUP(Switch!$D$56,$F$2:$G$44,2,FALSE)+ROW()-2)),\"\")","v":{"$error":"#N/A"}},{"$f":"IF(INDIRECT(\"c\" & (VLOOKUP(Switch!$D$57,$F$2:$G$44,2,FALSE)+ROW()-2))=Switch!$D$57,INDIRECT(\"a\" & (VLOOKUP(Switch!$D$57,$F$2:$G$44,2,FALSE)+ROW()-2)),\"\")","v":{"$error":"#N/A"}},{"$f":"IF(INDIRECT(\"c\" & (VLOOKUP(Switch!$D$58,$F$2:$G$44,2,FALSE)+ROW()-2))=Switch!$D$58,INDIRECT(\"a\" & (VLOOKUP(Switch!$D$58,$F$2:$G$44,2,FALSE)+ROW()-2)),\"\")","v":{"$error":"#N/A"}},{"$f":"IF(INDIRECT(\"c\" & (VLOOKUP(Switch!$D$59,$F$2:$G$44,2,FALSE)+ROW()-2))=Switch!$D$59,INDIRECT(\"a\" & (VLOOKUP(Switch!$D$59,$F$2:$G$44,2,FALSE)+ROW()-2)),\"\")","v":{"$error":"#N/A"}},{"$f":"IF(INDIRECT(\"c\" & (VLOOKUP(Switch!$D$60,$F$2:$G$44,2,FALSE)+ROW()-2))=Switch!$D$60,INDIRECT(\"a\" & (VLOOKUP(Switch!$D$60,$F$2:$G$44,2,FALSE)+ROW()-2)),\"\")","v":{"$error":"#N/A"}},{"$f":"IF(INDIRECT(\"c\" & (VLOOKUP(Switch!$D$61,$F$2:$G$44,2,FALSE)+ROW()-2))=Switch!$D$61,INDIRECT(\"a\" & (VLOOKUP(Switch!$D$61,$F$2:$G$44,2,FALSE)+ROW()-2)),\"\")","v":{"$error":"#N/A"}},{"$f":"IF(INDIRECT(\"c\" & (VLOOKUP(Switch!$D$62,$F$2:$G$44,2,FALSE)+ROW()-2))=Switch!$D$62,INDIRECT(\"a\" & (VLOOKUP(Switch!$D$62,$F$2:$G$44,2,FALSE)+ROW()-2)),\"\")","v":{"$error":"#N/A"}},{"$f":"IF(INDIRECT(\"c\" & (VLOOKUP(Switch!$D$63,$F$2:$G$44,2,FALSE)+ROW()-2))=Switch!$D$63,INDIRECT(\"a\" & (VLOOKUP(Switch!$D$63,$F$2:$G$44,2,FALSE)+ROW()-2)),\"\")","v":{"$error":"#N/A"}},{"$f":"IF(INDIRECT(\"c\" & (VLOOKUP(Switch!$D$64,$F$2:$G$44,2,FALSE)+ROW()-2))=Switch!$D$64,INDIRECT(\"a\" & (VLOOKUP(Switch!$D$64,$F$2:$G$44,2,FALSE)+ROW()-2)),\"\")","v":{"$error":"#N/A"}},{"$f":"IF(INDIRECT(\"c\" & (VLOOKUP(Switch!$D$65,$F$2:$G$44,2,FALSE)+ROW()-2))=Switch!$D$65,INDIRECT(\"a\" & (VLOOKUP(Switch!$D$65,$F$2:$G$44,2,FALSE)+ROW()-2)),\"\")","v":{"$error":"#N/A"}},{"$f":"IF(INDIRECT(\"c\" & (VLOOKUP(Switch!$D$66,$F$2:$G$44,2,FALSE)+ROW()-2))=Switch!$D$66,INDIRECT(\"a\" & (VLOOKUP(Switch!$D$66,$F$2:$G$44,2,FALSE)+ROW()-2)),\"\")","v":{"$error":"#N/A"}}]
["Momentum Income Plus C1","MIPB7","Momentum Collective Investments Ltd",{"$f":"ROW()","v":343},null,null,{"$f":"VLOOKUP(F343,$C$2:$D$637,2,FALSE)","v":{"$error":"#N/A"}},{"$f":"IF(INDIRECT(\"c\" & (VLOOKUP(Switch!$D$26,$F$2:$G$44,2,FALSE)+ROW()-2))=Switch!$D$26,INDIRECT(\"a\" & (VLOOKUP(Switch!$D$26,$F$2:$G$44,2,FALSE)+ROW()-2)),\"\")","v":{"$error":"#N/A"}},{"$f":"IF(INDIRECT(\"c\" & (VLOOKUP(Switch!$D$27,$F$2:$G$44,2,FALSE)+ROW()-2))=Switch!$D$27,INDIRECT(\"a\" & (VLOOKUP(Switch!$D$27,$F$2:$G$44,2,FALSE)+ROW()-2)),\"\")","v":{"$error":"#N/A"}},{"$f":"IF(INDIRECT(\"c\" & (VLOOKUP(Switch!$D$28,$F$2:$G$44,2,FALSE)+ROW()-2))=Switch!$D$28,INDIRECT(\"a\" & (VLOOKUP(Switch!$D$28,$F$2:$G$44,2,FALSE)+ROW()-2)),\"\")","v":{"$error":"#N/A"}},{"$f":"IF(INDIRECT(\"c\" & (VLOOKUP(Switch!$D$29,$F$2:$G$44,2,FALSE)+ROW()-2))=Switch!$D$29,INDIRECT(\"a\" & (VLOOKUP(Switch!$D$29,$F$2:$G$44,2,FALSE)+ROW()-2)),\"\")","v":{"$error":"#N/A"}},{"$f":"IF(INDIRECT(\"c\" & (VLOOKUP(Switch!$D$30,$F$2:$G$44,2,FALSE)+ROW()-2))=Switch!$D$30,INDIRECT(\"a\" & (VLOOKUP(Switch!$D$30,$F$2:$G$44,2,FALSE)+ROW()-2)),\"\")","v":{"$error":"#N/A"}},{"$f":"IF(INDIRECT(\"c\" & (VLOOKUP(Switch!$D$31,$F$2:$G$44,2,FALSE)+ROW()-2))=Switch!$D$31,INDIRECT(\"a\" & (VLOOKUP(Switch!$D$31,$F$2:$G$44,2,FALSE)+ROW()-2)),\"\")","v":{"$error":"#N/A"}},{"$f":"IF(INDIRECT(\"c\" & (VLOOKUP(Switch!$D$32,$F$2:$G$44,2,FALSE)+ROW()-2))=Switch!$D$32,INDIRECT(\"a\" & (VLOOKUP(Switch!$D$32,$F$2:$G$44,2,FALSE)+ROW()-2)),\"\")","v":{"$error":"#N/A"}},{"$f":"IF(INDIRECT(\"c\" & (VLOOKUP(Switch!$D$33,$F$2:$G$44,2,FALSE)+ROW()-2))=Switch!$D$33,INDIRECT(\"a\" & (VLOOKUP(Switch!$D$33,$F$2:$G$44,2,FALSE)+ROW()-2)),\"\")","v":{"$error":"#N/A"}},{"$f":"IF(INDIRECT(\"c\" & (VLOOKUP(Switch!$D$34,$F$2:$G$44,2,FALSE)+ROW()-2))=Switch!$D$34,INDIRECT(\"a\" & (VLOOKUP(Switch!$D$34,$F$2:$G$44,2,FALSE)+ROW()-2)),\"\")","v":{"$error":"#N/A"}},{"$f":"IF(INDIRECT(\"c\" & (VLOOKUP(Switch!$D$35,$F$2:$G$44,2,FALSE)+ROW()-2))=Switch!$D$35,INDIRECT(\"a\" & (VLOOKUP(Switch!$D$35,$F$2:$G$44,2,FALSE)+ROW()-2)),\"\")","v":{"$error":"#N/A"}},{"$f":"IF(INDIRECT(\"c\" & (VLOOKUP(Switch!$D$36,$F$2:$G$44,2,FALSE)+ROW()-2))=Switch!$D$36,INDIRECT(\"a\" & (VLOOKUP(Switch!$D$36,$F$2:$G$44,2,FALSE)+ROW()-2)),\"\")","v":{"$error":"#N/A"}},{"$f":"IF(INDIRECT(\"c\" & (VLOOKUP(Switch!$D$37,$F$2:$G$44,2,FALSE)+ROW()-2))=Switch!$D$37,INDIRECT(\"a\" & (VLOOKUP(Switch!$D$37,$F$2:$G$44,2,FALSE)+ROW()-2)),\"\")","v":{"$error":"#N/A"}},{"$f":"IF(INDIRECT(\"c\" & (VLOOKUP(Switch!$D$38,$F$2:$G$44,2,FALSE)+ROW()-2))=Switch!$D$38,INDIRECT(\"a\" & (VLOOKUP(Switch!$D$38,$F$2:$G$44,2,FALSE)+ROW()-2)),\"\")","v":{"$error":"#N/A"}},{"$f":"IF(INDIRECT(\"c\" & (VLOOKUP(Switch!$D$39,$F$2:$G$44,2,FALSE)+ROW()-2))=Switch!$D$39,INDIRECT(\"a\" & (VLOOKUP(Switch!$D$39,$F$2:$G$44,2,FALSE)+ROW()-2)),\"\")","v":{"$error":"#N/A"}},{"$f":"IF(INDIRECT(\"c\" & (VLOOKUP(Switch!$D$40,$F$2:$G$44,2,FALSE)+ROW()-2))=Switch!$D$40,INDIRECT(\"a\" & (VLOOKUP(Switch!$D$40,$F$2:$G$44,2,FALSE)+ROW()-2)),\"\")","v":{"$error":"#N/A"}},{"$f":"IF(INDIRECT(\"c\" & (VLOOKUP(Switch!$D$52,$F$2:$G$44,2,FALSE)+ROW()-2))=Switch!$D$52,INDIRECT(\"a\" & (VLOOKUP(Switch!$D$52,$F$2:$G$44,2,FALSE)+ROW()-2)),\"\")","v":{"$error":"#N/A"}},{"$f":"IF(INDIRECT(\"c\" & (VLOOKUP(Switch!$D$53,$F$2:$G$44,2,FALSE)+ROW()-2))=Switch!$D$53,INDIRECT(\"a\" & (VLOOKUP(Switch!$D$53,$F$2:$G$44,2,FALSE)+ROW()-2)),\"\")","v":{"$error":"#N/A"}},{"$f":"IF(INDIRECT(\"c\" & (VLOOKUP(Switch!$D$54,$F$2:$G$44,2,FALSE)+ROW()-2))=Switch!$D$54,INDIRECT(\"a\" & (VLOOKUP(Switch!$D$54,$F$2:$G$44,2,FALSE)+ROW()-2)),\"\")","v":{"$error":"#N/A"}},{"$f":"IF(INDIRECT(\"c\" & (VLOOKUP(Switch!$D$55,$F$2:$G$44,2,FALSE)+ROW()-2))=Switch!$D$55,INDIRECT(\"a\" & (VLOOKUP(Switch!$D$55,$F$2:$G$44,2,FALSE)+ROW()-2)),\"\")","v":{"$error":"#N/A"}},{"$f":"IF(INDIRECT(\"c\" & (VLOOKUP(Switch!$D$56,$F$2:$G$44,2,FALSE)+ROW()-2))=Switch!$D$56,INDIRECT(\"a\" & (VLOOKUP(Switch!$D$56,$F$2:$G$44,2,FALSE)+ROW()-2)),\"\")","v":{"$error":"#N/A"}},{"$f":"IF(INDIRECT(\"c\" & (VLOOKUP(Switch!$D$57,$F$2:$G$44,2,FALSE)+ROW()-2))=Switch!$D$57,INDIRECT(\"a\" & (VLOOKUP(Switch!$D$57,$F$2:$G$44,2,FALSE)+ROW()-2)),\"\")","v":{"$error":"#N/A"}},{"$f":"IF(INDIRECT(\"c\" & (VLOOKUP(Switch!$D$58,$F$2:$G$44,2,FALSE)+ROW()-2))=Switch!$D$58,INDIRECT(\"a\" & (VLOOKUP(Switch!$D$58,$F$2:$G$44,2,FALSE)+ROW()-2)),\"\")","v":{"$error":"#N/A"}},{"$f":"IF(INDIRECT(\"c\" & (VLOOKUP(Switch!$D$59,$F$2:$G$44,2,FALSE)+ROW()-2))=Switch!$D$59,INDIRECT(\"a\" & (VLOOKUP(Switch!$D$59,$F$2:$G$44,2,FALSE)+ROW()-2)),\"\")","v":{"$error":"#N/A"}},{"$f":"IF(INDIRECT(\"c\" & (VLOOKUP(Switch!$D$60,$F$2:$G$44,2,FALSE)+ROW()-2))=Switch!$D$60,INDIRECT(\"a\" & (VLOOKUP(Switch!$D$60,$F$2:$G$44,2,FALSE)+ROW()-2)),\"\")","v":{"$error":"#N/A"}},{"$f":"IF(INDIRECT(\"c\" & (VLOOKUP(Switch!$D$61,$F$2:$G$44,2,FALSE)+ROW()-2))=Switch!$D$61,INDIRECT(\"a\" & (VLOOKUP(Switch!$D$61,$F$2:$G$44,2,FALSE)+ROW()-2)),\"\")","v":{"$error":"#N/A"}},{"$f":"IF(INDIRECT(\"c\" & (VLOOKUP(Switch!$D$62,$F$2:$G$44,2,FALSE)+ROW()-2))=Switch!$D$62,INDIRECT(\"a\" & (VLOOKUP(Switch!$D$62,$F$2:$G$44,2,FALSE)+ROW()-2)),\"\")","v":{"$error":"#N/A"}},{"$f":"IF(INDIRECT(\"c\" & (VLOOKUP(Switch!$D$63,$F$2:$G$44,2,FALSE)+ROW()-2))=Switch!$D$63,INDIRECT(\"a\" & (VLOOKUP(Switch!$D$63,$F$2:$G$44,2,FALSE)+ROW()-2)),\"\")","v":{"$error":"#N/A"}},{"$f":"IF(INDIRECT(\"c\" & (VLOOKUP(Switch!$D$64,$F$2:$G$44,2,FALSE)+ROW()-2))=Switch!$D$64,INDIRECT(\"a\" & (VLOOKUP(Switch!$D$64,$F$2:$G$44,2,FALSE)+ROW()-2)),\"\")","v":{"$error":"#N/A"}},{"$f":"IF(INDIRECT(\"c\" & (VLOOKUP(Switch!$D$65,$F$2:$G$44,2,FALSE)+ROW()-2))=Switch!$D$65,INDIRECT(\"a\" & (VLOOKUP(Switch!$D$65,$F$2:$G$44,2,FALSE)+ROW()-2)),\"\")","v":{"$error":"#N/A"}},{"$f":"IF(INDIRECT(\"c\" & (VLOOKUP(Switch!$D$66,$F$2:$G$44,2,FALSE)+ROW()-2))=Switch!$D$66,INDIRECT(\"a\" & (VLOOKUP(Switch!$D$66,$F$2:$G$44,2,FALSE)+ROW()-2)),\"\")","v":{"$error":"#N/A"}}]
["Momentum Industrial Fund","RMCF","Momentum Collective Investments Ltd",{"$f":"ROW()","v":344},null,null,{"$f":"VLOOKUP(F344,$C$2:$D$637,2,FALSE)","v":{"$error":"#N/A"}},{"$f":"IF(INDIRECT(\"c\" & (VLOOKUP(Switch!$D$26,$F$2:$G$44,2,FALSE)+ROW()-2))=Switch!$D$26,INDIRECT(\"a\" & (VLOOKUP(Switch!$D$26,$F$2:$G$44,2,FALSE)+ROW()-2)),\"\")","v":{"$error":"#N/A"}},{"$f":"IF(INDIRECT(\"c\" & (VLOOKUP(Switch!$D$27,$F$2:$G$44,2,FALSE)+ROW()-2))=Switch!$D$27,INDIRECT(\"a\" & (VLOOKUP(Switch!$D$27,$F$2:$G$44,2,FALSE)+ROW()-2)),\"\")","v":{"$error":"#N/A"}},{"$f":"IF(INDIRECT(\"c\" & (VLOOKUP(Switch!$D$28,$F$2:$G$44,2,FALSE)+ROW()-2))=Switch!$D$28,INDIRECT(\"a\" & (VLOOKUP(Switch!$D$28,$F$2:$G$44,2,FALSE)+ROW()-2)),\"\")","v":{"$error":"#N/A"}},{"$f":"IF(INDIRECT(\"c\" & (VLOOKUP(Switch!$D$29,$F$2:$G$44,2,FALSE)+ROW()-2))=Switch!$D$29,INDIRECT(\"a\" & (VLOOKUP(Switch!$D$29,$F$2:$G$44,2,FALSE)+ROW()-2)),\"\")","v":{"$error":"#N/A"}},{"$f":"IF(INDIRECT(\"c\" & (VLOOKUP(Switch!$D$30,$F$2:$G$44,2,FALSE)+ROW()-2))=Switch!$D$30,INDIRECT(\"a\" & (VLOOKUP(Switch!$D$30,$F$2:$G$44,2,FALSE)+ROW()-2)),\"\")","v":{"$error":"#N/A"}},{"$f":"IF(INDIRECT(\"c\" & (VLOOKUP(Switch!$D$31,$F$2:$G$44,2,FALSE)+ROW()-2))=Switch!$D$31,INDIRECT(\"a\" & (VLOOKUP(Switch!$D$31,$F$2:$G$44,2,FALSE)+ROW()-2)),\"\")","v":{"$error":"#N/A"}},{"$f":"IF(INDIRECT(\"c\" & (VLOOKUP(Switch!$D$32,$F$2:$G$44,2,FALSE)+ROW()-2))=Switch!$D$32,INDIRECT(\"a\" & (VLOOKUP(Switch!$D$32,$F$2:$G$44,2,FALSE)+ROW()-2)),\"\")","v":{"$error":"#N/A"}},{"$f":"IF(INDIRECT(\"c\" & (VLOOKUP(Switch!$D$33,$F$2:$G$44,2,FALSE)+ROW()-2))=Switch!$D$33,INDIRECT(\"a\" & (VLOOKUP(Switch!$D$33,$F$2:$G$44,2,FALSE)+ROW()-2)),\"\")","v":{"$error":"#N/A"}},{"$f":"IF(INDIRECT(\"c\" & (VLOOKUP(Switch!$D$34,$F$2:$G$44,2,FALSE)+ROW()-2))=Switch!$D$34,INDIRECT(\"a\" & (VLOOKUP(Switch!$D$34,$F$2:$G$44,2,FALSE)+ROW()-2)),\"\")","v":{"$error":"#N/A"}},{"$f":"IF(INDIRECT(\"c\" & (VLOOKUP(Switch!$D$35,$F$2:$G$44,2,FALSE)+ROW()-2))=Switch!$D$35,INDIRECT(\"a\" & (VLOOKUP(Switch!$D$35,$F$2:$G$44,2,FALSE)+ROW()-2)),\"\")","v":{"$error":"#N/A"}},{"$f":"IF(INDIRECT(\"c\" & (VLOOKUP(Switch!$D$36,$F$2:$G$44,2,FALSE)+ROW()-2))=Switch!$D$36,INDIRECT(\"a\" & (VLOOKUP(Switch!$D$36,$F$2:$G$44,2,FALSE)+ROW()-2)),\"\")","v":{"$error":"#N/A"}},{"$f":"IF(INDIRECT(\"c\" & (VLOOKUP(Switch!$D$37,$F$2:$G$44,2,FALSE)+ROW()-2))=Switch!$D$37,INDIRECT(\"a\" & (VLOOKUP(Switch!$D$37,$F$2:$G$44,2,FALSE)+ROW()-2)),\"\")","v":{"$error":"#N/A"}},{"$f":"IF(INDIRECT(\"c\" & (VLOOKUP(Switch!$D$38,$F$2:$G$44,2,FALSE)+ROW()-2))=Switch!$D$38,INDIRECT(\"a\" & (VLOOKUP(Switch!$D$38,$F$2:$G$44,2,FALSE)+ROW()-2)),\"\")","v":{"$error":"#N/A"}},{"$f":"IF(INDIRECT(\"c\" & (VLOOKUP(Switch!$D$39,$F$2:$G$44,2,FALSE)+ROW()-2))=Switch!$D$39,INDIRECT(\"a\" & (VLOOKUP(Switch!$D$39,$F$2:$G$44,2,FALSE)+ROW()-2)),\"\")","v":{"$error":"#N/A"}},{"$f":"IF(INDIRECT(\"c\" & (VLOOKUP(Switch!$D$40,$F$2:$G$44,2,FALSE)+ROW()-2))=Switch!$D$40,INDIRECT(\"a\" & (VLOOKUP(Switch!$D$40,$F$2:$G$44,2,FALSE)+ROW()-2)),\"\")","v":{"$error":"#N/A"}},{"$f":"IF(INDIRECT(\"c\" & (VLOOKUP(Switch!$D$52,$F$2:$G$44,2,FALSE)+ROW()-2))=Switch!$D$52,INDIRECT(\"a\" & (VLOOKUP(Switch!$D$52,$F$2:$G$44,2,FALSE)+ROW()-2)),\"\")","v":{"$error":"#N/A"}},{"$f":"IF(INDIRECT(\"c\" & (VLOOKUP(Switch!$D$53,$F$2:$G$44,2,FALSE)+ROW()-2))=Switch!$D$53,INDIRECT(\"a\" & (VLOOKUP(Switch!$D$53,$F$2:$G$44,2,FALSE)+ROW()-2)),\"\")","v":{"$error":"#N/A"}},{"$f":"IF(INDIRECT(\"c\" & (VLOOKUP(Switch!$D$54,$F$2:$G$44,2,FALSE)+ROW()-2))=Switch!$D$54,INDIRECT(\"a\" & (VLOOKUP(Switch!$D$54,$F$2:$G$44,2,FALSE)+ROW()-2)),\"\")","v":{"$error":"#N/A"}},{"$f":"IF(INDIRECT(\"c\" & (VLOOKUP(Switch!$D$55,$F$2:$G$44,2,FALSE)+ROW()-2))=Switch!$D$55,INDIRECT(\"a\" & (VLOOKUP(Switch!$D$55,$F$2:$G$44,2,FALSE)+ROW()-2)),\"\")","v":{"$error":"#N/A"}},{"$f":"IF(INDIRECT(\"c\" & (VLOOKUP(Switch!$D$56,$F$2:$G$44,2,FALSE)+ROW()-2))=Switch!$D$56,INDIRECT(\"a\" & (VLOOKUP(Switch!$D$56,$F$2:$G$44,2,FALSE)+ROW()-2)),\"\")","v":{"$error":"#N/A"}},{"$f":"IF(INDIRECT(\"c\" & (VLOOKUP(Switch!$D$57,$F$2:$G$44,2,FALSE)+ROW()-2))=Switch!$D$57,INDIRECT(\"a\" & (VLOOKUP(Switch!$D$57,$F$2:$G$44,2,FALSE)+ROW()-2)),\"\")","v":{"$error":"#N/A"}},{"$f":"IF(INDIRECT(\"c\" & (VLOOKUP(Switch!$D$58,$F$2:$G$44,2,FALSE)+ROW()-2))=Switch!$D$58,INDIRECT(\"a\" & (VLOOKUP(Switch!$D$58,$F$2:$G$44,2,FALSE)+ROW()-2)),\"\")","v":{"$error":"#N/A"}},{"$f":"IF(INDIRECT(\"c\" & (VLOOKUP(Switch!$D$59,$F$2:$G$44,2,FALSE)+ROW()-2))=Switch!$D$59,INDIRECT(\"a\" & (VLOOKUP(Switch!$D$59,$F$2:$G$44,2,FALSE)+ROW()-2)),\"\")","v":{"$error":"#N/A"}},{"$f":"IF(INDIRECT(\"c\" & (VLOOKUP(Switch!$D$60,$F$2:$G$44,2,FALSE)+ROW()-2))=Switch!$D$60,INDIRECT(\"a\" & (VLOOKUP(Switch!$D$60,$F$2:$G$44,2,FALSE)+ROW()-2)),\"\")","v":{"$error":"#N/A"}},{"$f":"IF(INDIRECT(\"c\" & (VLOOKUP(Switch!$D$61,$F$2:$G$44,2,FALSE)+ROW()-2))=Switch!$D$61,INDIRECT(\"a\" & (VLOOKUP(Switch!$D$61,$F$2:$G$44,2,FALSE)+ROW()-2)),\"\")","v":{"$error":"#N/A"}},{"$f":"IF(INDIRECT(\"c\" & (VLOOKUP(Switch!$D$62,$F$2:$G$44,2,FALSE)+ROW()-2))=Switch!$D$62,INDIRECT(\"a\" & (VLOOKUP(Switch!$D$62,$F$2:$G$44,2,FALSE)+ROW()-2)),\"\")","v":{"$error":"#N/A"}},{"$f":"IF(INDIRECT(\"c\" & (VLOOKUP(Switch!$D$63,$F$2:$G$44,2,FALSE)+ROW()-2))=Switch!$D$63,INDIRECT(\"a\" & (VLOOKUP(Switch!$D$63,$F$2:$G$44,2,FALSE)+ROW()-2)),\"\")","v":{"$error":"#N/A"}},{"$f":"IF(INDIRECT(\"c\" & (VLOOKUP(Switch!$D$64,$F$2:$G$44,2,FALSE)+ROW()-2))=Switch!$D$64,INDIRECT(\"a\" & (VLOOKUP(Switch!$D$64,$F$2:$G$44,2,FALSE)+ROW()-2)),\"\")","v":{"$error":"#N/A"}},{"$f":"IF(INDIRECT(\"c\" & (VLOOKUP(Switch!$D$65,$F$2:$G$44,2,FALSE)+ROW()-2))=Switch!$D$65,INDIRECT(\"a\" & (VLOOKUP(Switch!$D$65,$F$2:$G$44,2,FALSE)+ROW()-2)),\"\")","v":{"$error":"#N/A"}},{"$f":"IF(INDIRECT(\"c\" & (VLOOKUP(Switch!$D$66,$F$2:$G$44,2,FALSE)+ROW()-2))=Switch!$D$66,INDIRECT(\"a\" & (VLOOKUP(Switch!$D$66,$F$2:$G$44,2,FALSE)+ROW()-2)),\"\")","v":{"$error":"#N/A"}}]
["Momentum International Balanced FoF A","RIBA","Momentum Collective Investments Ltd",{"$f":"ROW()","v":345},null,null,{"$f":"VLOOKUP(F345,$C$2:$D$637,2,FALSE)","v":{"$error":"#N/A"}},{"$f":"IF(INDIRECT(\"c\" & (VLOOKUP(Switch!$D$26,$F$2:$G$44,2,FALSE)+ROW()-2))=Switch!$D$26,INDIRECT(\"a\" & (VLOOKUP(Switch!$D$26,$F$2:$G$44,2,FALSE)+ROW()-2)),\"\")","v":{"$error":"#N/A"}},{"$f":"IF(INDIRECT(\"c\" & (VLOOKUP(Switch!$D$27,$F$2:$G$44,2,FALSE)+ROW()-2))=Switch!$D$27,INDIRECT(\"a\" & (VLOOKUP(Switch!$D$27,$F$2:$G$44,2,FALSE)+ROW()-2)),\"\")","v":{"$error":"#N/A"}},{"$f":"IF(INDIRECT(\"c\" & (VLOOKUP(Switch!$D$28,$F$2:$G$44,2,FALSE)+ROW()-2))=Switch!$D$28,INDIRECT(\"a\" & (VLOOKUP(Switch!$D$28,$F$2:$G$44,2,FALSE)+ROW()-2)),\"\")","v":{"$error":"#N/A"}},{"$f":"IF(INDIRECT(\"c\" & (VLOOKUP(Switch!$D$29,$F$2:$G$44,2,FALSE)+ROW()-2))=Switch!$D$29,INDIRECT(\"a\" & (VLOOKUP(Switch!$D$29,$F$2:$G$44,2,FALSE)+ROW()-2)),\"\")","v":{"$error":"#N/A"}},{"$f":"IF(INDIRECT(\"c\" & (VLOOKUP(Switch!$D$30,$F$2:$G$44,2,FALSE)+ROW()-2))=Switch!$D$30,INDIRECT(\"a\" & (VLOOKUP(Switch!$D$30,$F$2:$G$44,2,FALSE)+ROW()-2)),\"\")","v":{"$error":"#N/A"}},{"$f":"IF(INDIRECT(\"c\" & (VLOOKUP(Switch!$D$31,$F$2:$G$44,2,FALSE)+ROW()-2))=Switch!$D$31,INDIRECT(\"a\" & (VLOOKUP(Switch!$D$31,$F$2:$G$44,2,FALSE)+ROW()-2)),\"\")","v":{"$error":"#N/A"}},{"$f":"IF(INDIRECT(\"c\" & (VLOOKUP(Switch!$D$32,$F$2:$G$44,2,FALSE)+ROW()-2))=Switch!$D$32,INDIRECT(\"a\" & (VLOOKUP(Switch!$D$32,$F$2:$G$44,2,FALSE)+ROW()-2)),\"\")","v":{"$error":"#N/A"}},{"$f":"IF(INDIRECT(\"c\" & (VLOOKUP(Switch!$D$33,$F$2:$G$44,2,FALSE)+ROW()-2))=Switch!$D$33,INDIRECT(\"a\" & (VLOOKUP(Switch!$D$33,$F$2:$G$44,2,FALSE)+ROW()-2)),\"\")","v":{"$error":"#N/A"}},{"$f":"IF(INDIRECT(\"c\" & (VLOOKUP(Switch!$D$34,$F$2:$G$44,2,FALSE)+ROW()-2))=Switch!$D$34,INDIRECT(\"a\" & (VLOOKUP(Switch!$D$34,$F$2:$G$44,2,FALSE)+ROW()-2)),\"\")","v":{"$error":"#N/A"}},{"$f":"IF(INDIRECT(\"c\" & (VLOOKUP(Switch!$D$35,$F$2:$G$44,2,FALSE)+ROW()-2))=Switch!$D$35,INDIRECT(\"a\" & (VLOOKUP(Switch!$D$35,$F$2:$G$44,2,FALSE)+ROW()-2)),\"\")","v":{"$error":"#N/A"}},{"$f":"IF(INDIRECT(\"c\" & (VLOOKUP(Switch!$D$36,$F$2:$G$44,2,FALSE)+ROW()-2))=Switch!$D$36,INDIRECT(\"a\" & (VLOOKUP(Switch!$D$36,$F$2:$G$44,2,FALSE)+ROW()-2)),\"\")","v":{"$error":"#N/A"}},{"$f":"IF(INDIRECT(\"c\" & (VLOOKUP(Switch!$D$37,$F$2:$G$44,2,FALSE)+ROW()-2))=Switch!$D$37,INDIRECT(\"a\" & (VLOOKUP(Switch!$D$37,$F$2:$G$44,2,FALSE)+ROW()-2)),\"\")","v":{"$error":"#N/A"}},{"$f":"IF(INDIRECT(\"c\" & (VLOOKUP(Switch!$D$38,$F$2:$G$44,2,FALSE)+ROW()-2))=Switch!$D$38,INDIRECT(\"a\" & (VLOOKUP(Switch!$D$38,$F$2:$G$44,2,FALSE)+ROW()-2)),\"\")","v":{"$error":"#N/A"}},{"$f":"IF(INDIRECT(\"c\" & (VLOOKUP(Switch!$D$39,$F$2:$G$44,2,FALSE)+ROW()-2))=Switch!$D$39,INDIRECT(\"a\" & (VLOOKUP(Switch!$D$39,$F$2:$G$44,2,FALSE)+ROW()-2)),\"\")","v":{"$error":"#N/A"}},{"$f":"IF(INDIRECT(\"c\" & (VLOOKUP(Switch!$D$40,$F$2:$G$44,2,FALSE)+ROW()-2))=Switch!$D$40,INDIRECT(\"a\" & (VLOOKUP(Switch!$D$40,$F$2:$G$44,2,FALSE)+ROW()-2)),\"\")","v":{"$error":"#N/A"}},{"$f":"IF(INDIRECT(\"c\" & (VLOOKUP(Switch!$D$52,$F$2:$G$44,2,FALSE)+ROW()-2))=Switch!$D$52,INDIRECT(\"a\" & (VLOOKUP(Switch!$D$52,$F$2:$G$44,2,FALSE)+ROW()-2)),\"\")","v":{"$error":"#N/A"}},{"$f":"IF(INDIRECT(\"c\" & (VLOOKUP(Switch!$D$53,$F$2:$G$44,2,FALSE)+ROW()-2))=Switch!$D$53,INDIRECT(\"a\" & (VLOOKUP(Switch!$D$53,$F$2:$G$44,2,FALSE)+ROW()-2)),\"\")","v":{"$error":"#N/A"}},{"$f":"IF(INDIRECT(\"c\" & (VLOOKUP(Switch!$D$54,$F$2:$G$44,2,FALSE)+ROW()-2))=Switch!$D$54,INDIRECT(\"a\" & (VLOOKUP(Switch!$D$54,$F$2:$G$44,2,FALSE)+ROW()-2)),\"\")","v":{"$error":"#N/A"}},{"$f":"IF(INDIRECT(\"c\" & (VLOOKUP(Switch!$D$55,$F$2:$G$44,2,FALSE)+ROW()-2))=Switch!$D$55,INDIRECT(\"a\" & (VLOOKUP(Switch!$D$55,$F$2:$G$44,2,FALSE)+ROW()-2)),\"\")","v":{"$error":"#N/A"}},{"$f":"IF(INDIRECT(\"c\" & (VLOOKUP(Switch!$D$56,$F$2:$G$44,2,FALSE)+ROW()-2))=Switch!$D$56,INDIRECT(\"a\" & (VLOOKUP(Switch!$D$56,$F$2:$G$44,2,FALSE)+ROW()-2)),\"\")","v":{"$error":"#N/A"}},{"$f":"IF(INDIRECT(\"c\" & (VLOOKUP(Switch!$D$57,$F$2:$G$44,2,FALSE)+ROW()-2))=Switch!$D$57,INDIRECT(\"a\" & (VLOOKUP(Switch!$D$57,$F$2:$G$44,2,FALSE)+ROW()-2)),\"\")","v":{"$error":"#N/A"}},{"$f":"IF(INDIRECT(\"c\" & (VLOOKUP(Switch!$D$58,$F$2:$G$44,2,FALSE)+ROW()-2))=Switch!$D$58,INDIRECT(\"a\" & (VLOOKUP(Switch!$D$58,$F$2:$G$44,2,FALSE)+ROW()-2)),\"\")","v":{"$error":"#N/A"}},{"$f":"IF(INDIRECT(\"c\" & (VLOOKUP(Switch!$D$59,$F$2:$G$44,2,FALSE)+ROW()-2))=Switch!$D$59,INDIRECT(\"a\" & (VLOOKUP(Switch!$D$59,$F$2:$G$44,2,FALSE)+ROW()-2)),\"\")","v":{"$error":"#N/A"}},{"$f":"IF(INDIRECT(\"c\" & (VLOOKUP(Switch!$D$60,$F$2:$G$44,2,FALSE)+ROW()-2))=Switch!$D$60,INDIRECT(\"a\" & (VLOOKUP(Switch!$D$60,$F$2:$G$44,2,FALSE)+ROW()-2)),\"\")","v":{"$error":"#N/A"}},{"$f":"IF(INDIRECT(\"c\" & (VLOOKUP(Switch!$D$61,$F$2:$G$44,2,FALSE)+ROW()-2))=Switch!$D$61,INDIRECT(\"a\" & (VLOOKUP(Switch!$D$61,$F$2:$G$44,2,FALSE)+ROW()-2)),\"\")","v":{"$error":"#N/A"}},{"$f":"IF(INDIRECT(\"c\" & (VLOOKUP(Switch!$D$62,$F$2:$G$44,2,FALSE)+ROW()-2))=Switch!$D$62,INDIRECT(\"a\" & (VLOOKUP(Switch!$D$62,$F$2:$G$44,2,FALSE)+ROW()-2)),\"\")","v":{"$error":"#N/A"}},{"$f":"IF(INDIRECT(\"c\" & (VLOOKUP(Switch!$D$63,$F$2:$G$44,2,FALSE)+ROW()-2))=Switch!$D$63,INDIRECT(\"a\" & (VLOOKUP(Switch!$D$63,$F$2:$G$44,2,FALSE)+ROW()-2)),\"\")","v":{"$error":"#N/A"}},{"$f":"IF(INDIRECT(\"c\" & (VLOOKUP(Switch!$D$64,$F$2:$G$44,2,FALSE)+ROW()-2))=Switch!$D$64,INDIRECT(\"a\" & (VLOOKUP(Switch!$D$64,$F$2:$G$44,2,FALSE)+ROW()-2)),\"\")","v":{"$error":"#N/A"}},{"$f":"IF(INDIRECT(\"c\" & (VLOOKUP(Switch!$D$65,$F$2:$G$44,2,FALSE)+ROW()-2))=Switch!$D$65,INDIRECT(\"a\" & (VLOOKUP(Switch!$D$65,$F$2:$G$44,2,FALSE)+ROW()-2)),\"\")","v":{"$error":"#N/A"}},{"$f":"IF(INDIRECT(\"c\" & (VLOOKUP(Switch!$D$66,$F$2:$G$44,2,FALSE)+ROW()-2))=Switch!$D$66,INDIRECT(\"a\" & (VLOOKUP(Switch!$D$66,$F$2:$G$44,2,FALSE)+ROW()-2)),\"\")","v":{"$error":"#N/A"}}]
["Momentum International Equity Feeder Fund A","RMBI","Momentum Collective Investments Ltd",{"$f":"ROW()","v":346},null,null,{"$f":"VLOOKUP(F346,$C$2:$D$637,2,FALSE)","v":{"$error":"#N/A"}},{"$f":"IF(INDIRECT(\"c\" & (VLOOKUP(Switch!$D$26,$F$2:$G$44,2,FALSE)+ROW()-2))=Switch!$D$26,INDIRECT(\"a\" & (VLOOKUP(Switch!$D$26,$F$2:$G$44,2,FALSE)+ROW()-2)),\"\")","v":{"$error":"#N/A"}},{"$f":"IF(INDIRECT(\"c\" & (VLOOKUP(Switch!$D$27,$F$2:$G$44,2,FALSE)+ROW()-2))=Switch!$D$27,INDIRECT(\"a\" & (VLOOKUP(Switch!$D$27,$F$2:$G$44,2,FALSE)+ROW()-2)),\"\")","v":{"$error":"#N/A"}},{"$f":"IF(INDIRECT(\"c\" & (VLOOKUP(Switch!$D$28,$F$2:$G$44,2,FALSE)+ROW()-2))=Switch!$D$28,INDIRECT(\"a\" & (VLOOKUP(Switch!$D$28,$F$2:$G$44,2,FALSE)+ROW()-2)),\"\")","v":{"$error":"#N/A"}},{"$f":"IF(INDIRECT(\"c\" & (VLOOKUP(Switch!$D$29,$F$2:$G$44,2,FALSE)+ROW()-2))=Switch!$D$29,INDIRECT(\"a\" & (VLOOKUP(Switch!$D$29,$F$2:$G$44,2,FALSE)+ROW()-2)),\"\")","v":{"$error":"#N/A"}},{"$f":"IF(INDIRECT(\"c\" & (VLOOKUP(Switch!$D$30,$F$2:$G$44,2,FALSE)+ROW()-2))=Switch!$D$30,INDIRECT(\"a\" & (VLOOKUP(Switch!$D$30,$F$2:$G$44,2,FALSE)+ROW()-2)),\"\")","v":{"$error":"#N/A"}},{"$f":"IF(INDIRECT(\"c\" & (VLOOKUP(Switch!$D$31,$F$2:$G$44,2,FALSE)+ROW()-2))=Switch!$D$31,INDIRECT(\"a\" & (VLOOKUP(Switch!$D$31,$F$2:$G$44,2,FALSE)+ROW()-2)),\"\")","v":{"$error":"#N/A"}},{"$f":"IF(INDIRECT(\"c\" & (VLOOKUP(Switch!$D$32,$F$2:$G$44,2,FALSE)+ROW()-2))=Switch!$D$32,INDIRECT(\"a\" & (VLOOKUP(Switch!$D$32,$F$2:$G$44,2,FALSE)+ROW()-2)),\"\")","v":{"$error":"#N/A"}},{"$f":"IF(INDIRECT(\"c\" & (VLOOKUP(Switch!$D$33,$F$2:$G$44,2,FALSE)+ROW()-2))=Switch!$D$33,INDIRECT(\"a\" & (VLOOKUP(Switch!$D$33,$F$2:$G$44,2,FALSE)+ROW()-2)),\"\")","v":{"$error":"#N/A"}},{"$f":"IF(INDIRECT(\"c\" & (VLOOKUP(Switch!$D$34,$F$2:$G$44,2,FALSE)+ROW()-2))=Switch!$D$34,INDIRECT(\"a\" & (VLOOKUP(Switch!$D$34,$F$2:$G$44,2,FALSE)+ROW()-2)),\"\")","v":{"$error":"#N/A"}},{"$f":"IF(INDIRECT(\"c\" & (VLOOKUP(Switch!$D$35,$F$2:$G$44,2,FALSE)+ROW()-2))=Switch!$D$35,INDIRECT(\"a\" & (VLOOKUP(Switch!$D$35,$F$2:$G$44,2,FALSE)+ROW()-2)),\"\")","v":{"$error":"#N/A"}},{"$f":"IF(INDIRECT(\"c\" & (VLOOKUP(Switch!$D$36,$F$2:$G$44,2,FALSE)+ROW()-2))=Switch!$D$36,INDIRECT(\"a\" & (VLOOKUP(Switch!$D$36,$F$2:$G$44,2,FALSE)+ROW()-2)),\"\")","v":{"$error":"#N/A"}},{"$f":"IF(INDIRECT(\"c\" & (VLOOKUP(Switch!$D$37,$F$2:$G$44,2,FALSE)+ROW()-2))=Switch!$D$37,INDIRECT(\"a\" & (VLOOKUP(Switch!$D$37,$F$2:$G$44,2,FALSE)+ROW()-2)),\"\")","v":{"$error":"#N/A"}},{"$f":"IF(INDIRECT(\"c\" & (VLOOKUP(Switch!$D$38,$F$2:$G$44,2,FALSE)+ROW()-2))=Switch!$D$38,INDIRECT(\"a\" & (VLOOKUP(Switch!$D$38,$F$2:$G$44,2,FALSE)+ROW()-2)),\"\")","v":{"$error":"#N/A"}},{"$f":"IF(INDIRECT(\"c\" & (VLOOKUP(Switch!$D$39,$F$2:$G$44,2,FALSE)+ROW()-2))=Switch!$D$39,INDIRECT(\"a\" & (VLOOKUP(Switch!$D$39,$F$2:$G$44,2,FALSE)+ROW()-2)),\"\")","v":{"$error":"#N/A"}},{"$f":"IF(INDIRECT(\"c\" & (VLOOKUP(Switch!$D$40,$F$2:$G$44,2,FALSE)+ROW()-2))=Switch!$D$40,INDIRECT(\"a\" & (VLOOKUP(Switch!$D$40,$F$2:$G$44,2,FALSE)+ROW()-2)),\"\")","v":{"$error":"#N/A"}},{"$f":"IF(INDIRECT(\"c\" & (VLOOKUP(Switch!$D$52,$F$2:$G$44,2,FALSE)+ROW()-2))=Switch!$D$52,INDIRECT(\"a\" & (VLOOKUP(Switch!$D$52,$F$2:$G$44,2,FALSE)+ROW()-2)),\"\")","v":{"$error":"#N/A"}},{"$f":"IF(INDIRECT(\"c\" & (VLOOKUP(Switch!$D$53,$F$2:$G$44,2,FALSE)+ROW()-2))=Switch!$D$53,INDIRECT(\"a\" & (VLOOKUP(Switch!$D$53,$F$2:$G$44,2,FALSE)+ROW()-2)),\"\")","v":{"$error":"#N/A"}},{"$f":"IF(INDIRECT(\"c\" & (VLOOKUP(Switch!$D$54,$F$2:$G$44,2,FALSE)+ROW()-2))=Switch!$D$54,INDIRECT(\"a\" & (VLOOKUP(Switch!$D$54,$F$2:$G$44,2,FALSE)+ROW()-2)),\"\")","v":{"$error":"#N/A"}},{"$f":"IF(INDIRECT(\"c\" & (VLOOKUP(Switch!$D$55,$F$2:$G$44,2,FALSE)+ROW()-2))=Switch!$D$55,INDIRECT(\"a\" & (VLOOKUP(Switch!$D$55,$F$2:$G$44,2,FALSE)+ROW()-2)),\"\")","v":{"$error":"#N/A"}},{"$f":"IF(INDIRECT(\"c\" & (VLOOKUP(Switch!$D$56,$F$2:$G$44,2,FALSE)+ROW()-2))=Switch!$D$56,INDIRECT(\"a\" & (VLOOKUP(Switch!$D$56,$F$2:$G$44,2,FALSE)+ROW()-2)),\"\")","v":{"$error":"#N/A"}},{"$f":"IF(INDIRECT(\"c\" & (VLOOKUP(Switch!$D$57,$F$2:$G$44,2,FALSE)+ROW()-2))=Switch!$D$57,INDIRECT(\"a\" & (VLOOKUP(Switch!$D$57,$F$2:$G$44,2,FALSE)+ROW()-2)),\"\")","v":{"$error":"#N/A"}},{"$f":"IF(INDIRECT(\"c\" & (VLOOKUP(Switch!$D$58,$F$2:$G$44,2,FALSE)+ROW()-2))=Switch!$D$58,INDIRECT(\"a\" & (VLOOKUP(Switch!$D$58,$F$2:$G$44,2,FALSE)+ROW()-2)),\"\")","v":{"$error":"#N/A"}},{"$f":"IF(INDIRECT(\"c\" & (VLOOKUP(Switch!$D$59,$F$2:$G$44,2,FALSE)+ROW()-2))=Switch!$D$59,INDIRECT(\"a\" & (VLOOKUP(Switch!$D$59,$F$2:$G$44,2,FALSE)+ROW()-2)),\"\")","v":{"$error":"#N/A"}},{"$f":"IF(INDIRECT(\"c\" & (VLOOKUP(Switch!$D$60,$F$2:$G$44,2,FALSE)+ROW()-2))=Switch!$D$60,INDIRECT(\"a\" & (VLOOKUP(Switch!$D$60,$F$2:$G$44,2,FALSE)+ROW()-2)),\"\")","v":{"$error":"#N/A"}},{"$f":"IF(INDIRECT(\"c\" & (VLOOKUP(Switch!$D$61,$F$2:$G$44,2,FALSE)+ROW()-2))=Switch!$D$61,INDIRECT(\"a\" & (VLOOKUP(Switch!$D$61,$F$2:$G$44,2,FALSE)+ROW()-2)),\"\")","v":{"$error":"#N/A"}},{"$f":"IF(INDIRECT(\"c\" & (VLOOKUP(Switch!$D$62,$F$2:$G$44,2,FALSE)+ROW()-2))=Switch!$D$62,INDIRECT(\"a\" & (VLOOKUP(Switch!$D$62,$F$2:$G$44,2,FALSE)+ROW()-2)),\"\")","v":{"$error":"#N/A"}},{"$f":"IF(INDIRECT(\"c\" & (VLOOKUP(Switch!$D$63,$F$2:$G$44,2,FALSE)+ROW()-2))=Switch!$D$63,INDIRECT(\"a\" & (VLOOKUP(Switch!$D$63,$F$2:$G$44,2,FALSE)+ROW()-2)),\"\")","v":{"$error":"#N/A"}},{"$f":"IF(INDIRECT(\"c\" & (VLOOKUP(Switch!$D$64,$F$2:$G$44,2,FALSE)+ROW()-2))=Switch!$D$64,INDIRECT(\"a\" & (VLOOKUP(Switch!$D$64,$F$2:$G$44,2,FALSE)+ROW()-2)),\"\")","v":{"$error":"#N/A"}},{"$f":"IF(INDIRECT(\"c\" & (VLOOKUP(Switch!$D$65,$F$2:$G$44,2,FALSE)+ROW()-2))=Switch!$D$65,INDIRECT(\"a\" & (VLOOKUP(Switch!$D$65,$F$2:$G$44,2,FALSE)+ROW()-2)),\"\")","v":{"$error":"#N/A"}},{"$f":"IF(INDIRECT(\"c\" & (VLOOKUP(Switch!$D$66,$F$2:$G$44,2,FALSE)+ROW()-2))=Switch!$D$66,INDIRECT(\"a\" & (VLOOKUP(Switch!$D$66,$F$2:$G$44,2,FALSE)+ROW()-2)),\"\")","v":{"$error":"#N/A"}}]
["Momentum Maximum Income Fund A","RMMF","Momentum Collective Investments Ltd",{"$f":"ROW()","v":347},null,null,{"$f":"VLOOKUP(F347,$C$2:$D$637,2,FALSE)","v":{"$error":"#N/A"}},{"$f":"IF(INDIRECT(\"c\" & (VLOOKUP(Switch!$D$26,$F$2:$G$44,2,FALSE)+ROW()-2))=Switch!$D$26,INDIRECT(\"a\" & (VLOOKUP(Switch!$D$26,$F$2:$G$44,2,FALSE)+ROW()-2)),\"\")","v":{"$error":"#N/A"}},{"$f":"IF(INDIRECT(\"c\" & (VLOOKUP(Switch!$D$27,$F$2:$G$44,2,FALSE)+ROW()-2))=Switch!$D$27,INDIRECT(\"a\" & (VLOOKUP(Switch!$D$27,$F$2:$G$44,2,FALSE)+ROW()-2)),\"\")","v":{"$error":"#N/A"}},{"$f":"IF(INDIRECT(\"c\" & (VLOOKUP(Switch!$D$28,$F$2:$G$44,2,FALSE)+ROW()-2))=Switch!$D$28,INDIRECT(\"a\" & (VLOOKUP(Switch!$D$28,$F$2:$G$44,2,FALSE)+ROW()-2)),\"\")","v":{"$error":"#N/A"}},{"$f":"IF(INDIRECT(\"c\" & (VLOOKUP(Switch!$D$29,$F$2:$G$44,2,FALSE)+ROW()-2))=Switch!$D$29,INDIRECT(\"a\" & (VLOOKUP(Switch!$D$29,$F$2:$G$44,2,FALSE)+ROW()-2)),\"\")","v":{"$error":"#N/A"}},{"$f":"IF(INDIRECT(\"c\" & (VLOOKUP(Switch!$D$30,$F$2:$G$44,2,FALSE)+ROW()-2))=Switch!$D$30,INDIRECT(\"a\" & (VLOOKUP(Switch!$D$30,$F$2:$G$44,2,FALSE)+ROW()-2)),\"\")","v":{"$error":"#N/A"}},{"$f":"IF(INDIRECT(\"c\" & (VLOOKUP(Switch!$D$31,$F$2:$G$44,2,FALSE)+ROW()-2))=Switch!$D$31,INDIRECT(\"a\" & (VLOOKUP(Switch!$D$31,$F$2:$G$44,2,FALSE)+ROW()-2)),\"\")","v":{"$error":"#N/A"}},{"$f":"IF(INDIRECT(\"c\" & (VLOOKUP(Switch!$D$32,$F$2:$G$44,2,FALSE)+ROW()-2))=Switch!$D$32,INDIRECT(\"a\" & (VLOOKUP(Switch!$D$32,$F$2:$G$44,2,FALSE)+ROW()-2)),\"\")","v":{"$error":"#N/A"}},{"$f":"IF(INDIRECT(\"c\" & (VLOOKUP(Switch!$D$33,$F$2:$G$44,2,FALSE)+ROW()-2))=Switch!$D$33,INDIRECT(\"a\" & (VLOOKUP(Switch!$D$33,$F$2:$G$44,2,FALSE)+ROW()-2)),\"\")","v":{"$error":"#N/A"}},{"$f":"IF(INDIRECT(\"c\" & (VLOOKUP(Switch!$D$34,$F$2:$G$44,2,FALSE)+ROW()-2))=Switch!$D$34,INDIRECT(\"a\" & (VLOOKUP(Switch!$D$34,$F$2:$G$44,2,FALSE)+ROW()-2)),\"\")","v":{"$error":"#N/A"}},{"$f":"IF(INDIRECT(\"c\" & (VLOOKUP(Switch!$D$35,$F$2:$G$44,2,FALSE)+ROW()-2))=Switch!$D$35,INDIRECT(\"a\" & (VLOOKUP(Switch!$D$35,$F$2:$G$44,2,FALSE)+ROW()-2)),\"\")","v":{"$error":"#N/A"}},{"$f":"IF(INDIRECT(\"c\" & (VLOOKUP(Switch!$D$36,$F$2:$G$44,2,FALSE)+ROW()-2))=Switch!$D$36,INDIRECT(\"a\" & (VLOOKUP(Switch!$D$36,$F$2:$G$44,2,FALSE)+ROW()-2)),\"\")","v":{"$error":"#N/A"}},{"$f":"IF(INDIRECT(\"c\" & (VLOOKUP(Switch!$D$37,$F$2:$G$44,2,FALSE)+ROW()-2))=Switch!$D$37,INDIRECT(\"a\" & (VLOOKUP(Switch!$D$37,$F$2:$G$44,2,FALSE)+ROW()-2)),\"\")","v":{"$error":"#N/A"}},{"$f":"IF(INDIRECT(\"c\" & (VLOOKUP(Switch!$D$38,$F$2:$G$44,2,FALSE)+ROW()-2))=Switch!$D$38,INDIRECT(\"a\" & (VLOOKUP(Switch!$D$38,$F$2:$G$44,2,FALSE)+ROW()-2)),\"\")","v":{"$error":"#N/A"}},{"$f":"IF(INDIRECT(\"c\" & (VLOOKUP(Switch!$D$39,$F$2:$G$44,2,FALSE)+ROW()-2))=Switch!$D$39,INDIRECT(\"a\" & (VLOOKUP(Switch!$D$39,$F$2:$G$44,2,FALSE)+ROW()-2)),\"\")","v":{"$error":"#N/A"}},{"$f":"IF(INDIRECT(\"c\" & (VLOOKUP(Switch!$D$40,$F$2:$G$44,2,FALSE)+ROW()-2))=Switch!$D$40,INDIRECT(\"a\" & (VLOOKUP(Switch!$D$40,$F$2:$G$44,2,FALSE)+ROW()-2)),\"\")","v":{"$error":"#N/A"}},{"$f":"IF(INDIRECT(\"c\" & (VLOOKUP(Switch!$D$52,$F$2:$G$44,2,FALSE)+ROW()-2))=Switch!$D$52,INDIRECT(\"a\" & (VLOOKUP(Switch!$D$52,$F$2:$G$44,2,FALSE)+ROW()-2)),\"\")","v":{"$error":"#N/A"}},{"$f":"IF(INDIRECT(\"c\" & (VLOOKUP(Switch!$D$53,$F$2:$G$44,2,FALSE)+ROW()-2))=Switch!$D$53,INDIRECT(\"a\" & (VLOOKUP(Switch!$D$53,$F$2:$G$44,2,FALSE)+ROW()-2)),\"\")","v":{"$error":"#N/A"}},{"$f":"IF(INDIRECT(\"c\" & (VLOOKUP(Switch!$D$54,$F$2:$G$44,2,FALSE)+ROW()-2))=Switch!$D$54,INDIRECT(\"a\" & (VLOOKUP(Switch!$D$54,$F$2:$G$44,2,FALSE)+ROW()-2)),\"\")","v":{"$error":"#N/A"}},{"$f":"IF(INDIRECT(\"c\" & (VLOOKUP(Switch!$D$55,$F$2:$G$44,2,FALSE)+ROW()-2))=Switch!$D$55,INDIRECT(\"a\" & (VLOOKUP(Switch!$D$55,$F$2:$G$44,2,FALSE)+ROW()-2)),\"\")","v":{"$error":"#N/A"}},{"$f":"IF(INDIRECT(\"c\" & (VLOOKUP(Switch!$D$56,$F$2:$G$44,2,FALSE)+ROW()-2))=Switch!$D$56,INDIRECT(\"a\" & (VLOOKUP(Switch!$D$56,$F$2:$G$44,2,FALSE)+ROW()-2)),\"\")","v":{"$error":"#N/A"}},{"$f":"IF(INDIRECT(\"c\" & (VLOOKUP(Switch!$D$57,$F$2:$G$44,2,FALSE)+ROW()-2))=Switch!$D$57,INDIRECT(\"a\" & (VLOOKUP(Switch!$D$57,$F$2:$G$44,2,FALSE)+ROW()-2)),\"\")","v":{"$error":"#N/A"}},{"$f":"IF(INDIRECT(\"c\" & (VLOOKUP(Switch!$D$58,$F$2:$G$44,2,FALSE)+ROW()-2))=Switch!$D$58,INDIRECT(\"a\" & (VLOOKUP(Switch!$D$58,$F$2:$G$44,2,FALSE)+ROW()-2)),\"\")","v":{"$error":"#N/A"}},{"$f":"IF(INDIRECT(\"c\" & (VLOOKUP(Switch!$D$59,$F$2:$G$44,2,FALSE)+ROW()-2))=Switch!$D$59,INDIRECT(\"a\" & (VLOOKUP(Switch!$D$59,$F$2:$G$44,2,FALSE)+ROW()-2)),\"\")","v":{"$error":"#N/A"}},{"$f":"IF(INDIRECT(\"c\" & (VLOOKUP(Switch!$D$60,$F$2:$G$44,2,FALSE)+ROW()-2))=Switch!$D$60,INDIRECT(\"a\" & (VLOOKUP(Switch!$D$60,$F$2:$G$44,2,FALSE)+ROW()-2)),\"\")","v":{"$error":"#N/A"}},{"$f":"IF(INDIRECT(\"c\" & (VLOOKUP(Switch!$D$61,$F$2:$G$44,2,FALSE)+ROW()-2))=Switch!$D$61,INDIRECT(\"a\" & (VLOOKUP(Switch!$D$61,$F$2:$G$44,2,FALSE)+ROW()-2)),\"\")","v":{"$error":"#N/A"}},{"$f":"IF(INDIRECT(\"c\" & (VLOOKUP(Switch!$D$62,$F$2:$G$44,2,FALSE)+ROW()-2))=Switch!$D$62,INDIRECT(\"a\" & (VLOOKUP(Switch!$D$62,$F$2:$G$44,2,FALSE)+ROW()-2)),\"\")","v":{"$error":"#N/A"}},{"$f":"IF(INDIRECT(\"c\" & (VLOOKUP(Switch!$D$63,$F$2:$G$44,2,FALSE)+ROW()-2))=Switch!$D$63,INDIRECT(\"a\" & (VLOOKUP(Switch!$D$63,$F$2:$G$44,2,FALSE)+ROW()-2)),\"\")","v":{"$error":"#N/A"}},{"$f":"IF(INDIRECT(\"c\" & (VLOOKUP(Switch!$D$64,$F$2:$G$44,2,FALSE)+ROW()-2))=Switch!$D$64,INDIRECT(\"a\" & (VLOOKUP(Switch!$D$64,$F$2:$G$44,2,FALSE)+ROW()-2)),\"\")","v":{"$error":"#N/A"}},{"$f":"IF(INDIRECT(\"c\" & (VLOOKUP(Switch!$D$65,$F$2:$G$44,2,FALSE)+ROW()-2))=Switch!$D$65,INDIRECT(\"a\" & (VLOOKUP(Switch!$D$65,$F$2:$G$44,2,FALSE)+ROW()-2)),\"\")","v":{"$error":"#N/A"}},{"$f":"IF(INDIRECT(\"c\" & (VLOOKUP(Switch!$D$66,$F$2:$G$44,2,FALSE)+ROW()-2))=Switch!$D$66,INDIRECT(\"a\" & (VLOOKUP(Switch!$D$66,$F$2:$G$44,2,FALSE)+ROW()-2)),\"\")","v":{"$error":"#N/A"}}]
["Momentum Optimal Yield Fund","RAB8","Momentum Collective Investments Ltd",{"$f":"ROW()","v":348},null,null,{"$f":"VLOOKUP(F348,$C$2:$D$637,2,FALSE)","v":{"$error":"#N/A"}},{"$f":"IF(INDIRECT(\"c\" & (VLOOKUP(Switch!$D$26,$F$2:$G$44,2,FALSE)+ROW()-2))=Switch!$D$26,INDIRECT(\"a\" & (VLOOKUP(Switch!$D$26,$F$2:$G$44,2,FALSE)+ROW()-2)),\"\")","v":{"$error":"#N/A"}},{"$f":"IF(INDIRECT(\"c\" & (VLOOKUP(Switch!$D$27,$F$2:$G$44,2,FALSE)+ROW()-2))=Switch!$D$27,INDIRECT(\"a\" & (VLOOKUP(Switch!$D$27,$F$2:$G$44,2,FALSE)+ROW()-2)),\"\")","v":{"$error":"#N/A"}},{"$f":"IF(INDIRECT(\"c\" & (VLOOKUP(Switch!$D$28,$F$2:$G$44,2,FALSE)+ROW()-2))=Switch!$D$28,INDIRECT(\"a\" & (VLOOKUP(Switch!$D$28,$F$2:$G$44,2,FALSE)+ROW()-2)),\"\")","v":{"$error":"#N/A"}},{"$f":"IF(INDIRECT(\"c\" & (VLOOKUP(Switch!$D$29,$F$2:$G$44,2,FALSE)+ROW()-2))=Switch!$D$29,INDIRECT(\"a\" & (VLOOKUP(Switch!$D$29,$F$2:$G$44,2,FALSE)+ROW()-2)),\"\")","v":{"$error":"#N/A"}},{"$f":"IF(INDIRECT(\"c\" & (VLOOKUP(Switch!$D$30,$F$2:$G$44,2,FALSE)+ROW()-2))=Switch!$D$30,INDIRECT(\"a\" & (VLOOKUP(Switch!$D$30,$F$2:$G$44,2,FALSE)+ROW()-2)),\"\")","v":{"$error":"#N/A"}},{"$f":"IF(INDIRECT(\"c\" & (VLOOKUP(Switch!$D$31,$F$2:$G$44,2,FALSE)+ROW()-2))=Switch!$D$31,INDIRECT(\"a\" & (VLOOKUP(Switch!$D$31,$F$2:$G$44,2,FALSE)+ROW()-2)),\"\")","v":{"$error":"#N/A"}},{"$f":"IF(INDIRECT(\"c\" & (VLOOKUP(Switch!$D$32,$F$2:$G$44,2,FALSE)+ROW()-2))=Switch!$D$32,INDIRECT(\"a\" & (VLOOKUP(Switch!$D$32,$F$2:$G$44,2,FALSE)+ROW()-2)),\"\")","v":{"$error":"#N/A"}},{"$f":"IF(INDIRECT(\"c\" & (VLOOKUP(Switch!$D$33,$F$2:$G$44,2,FALSE)+ROW()-2))=Switch!$D$33,INDIRECT(\"a\" & (VLOOKUP(Switch!$D$33,$F$2:$G$44,2,FALSE)+ROW()-2)),\"\")","v":{"$error":"#N/A"}},{"$f":"IF(INDIRECT(\"c\" & (VLOOKUP(Switch!$D$34,$F$2:$G$44,2,FALSE)+ROW()-2))=Switch!$D$34,INDIRECT(\"a\" & (VLOOKUP(Switch!$D$34,$F$2:$G$44,2,FALSE)+ROW()-2)),\"\")","v":{"$error":"#N/A"}},{"$f":"IF(INDIRECT(\"c\" & (VLOOKUP(Switch!$D$35,$F$2:$G$44,2,FALSE)+ROW()-2))=Switch!$D$35,INDIRECT(\"a\" & (VLOOKUP(Switch!$D$35,$F$2:$G$44,2,FALSE)+ROW()-2)),\"\")","v":{"$error":"#N/A"}},{"$f":"IF(INDIRECT(\"c\" & (VLOOKUP(Switch!$D$36,$F$2:$G$44,2,FALSE)+ROW()-2))=Switch!$D$36,INDIRECT(\"a\" & (VLOOKUP(Switch!$D$36,$F$2:$G$44,2,FALSE)+ROW()-2)),\"\")","v":{"$error":"#N/A"}},{"$f":"IF(INDIRECT(\"c\" & (VLOOKUP(Switch!$D$37,$F$2:$G$44,2,FALSE)+ROW()-2))=Switch!$D$37,INDIRECT(\"a\" & (VLOOKUP(Switch!$D$37,$F$2:$G$44,2,FALSE)+ROW()-2)),\"\")","v":{"$error":"#N/A"}},{"$f":"IF(INDIRECT(\"c\" & (VLOOKUP(Switch!$D$38,$F$2:$G$44,2,FALSE)+ROW()-2))=Switch!$D$38,INDIRECT(\"a\" & (VLOOKUP(Switch!$D$38,$F$2:$G$44,2,FALSE)+ROW()-2)),\"\")","v":{"$error":"#N/A"}},{"$f":"IF(INDIRECT(\"c\" & (VLOOKUP(Switch!$D$39,$F$2:$G$44,2,FALSE)+ROW()-2))=Switch!$D$39,INDIRECT(\"a\" & (VLOOKUP(Switch!$D$39,$F$2:$G$44,2,FALSE)+ROW()-2)),\"\")","v":{"$error":"#N/A"}},{"$f":"IF(INDIRECT(\"c\" & (VLOOKUP(Switch!$D$40,$F$2:$G$44,2,FALSE)+ROW()-2))=Switch!$D$40,INDIRECT(\"a\" & (VLOOKUP(Switch!$D$40,$F$2:$G$44,2,FALSE)+ROW()-2)),\"\")","v":{"$error":"#N/A"}},{"$f":"IF(INDIRECT(\"c\" & (VLOOKUP(Switch!$D$52,$F$2:$G$44,2,FALSE)+ROW()-2))=Switch!$D$52,INDIRECT(\"a\" & (VLOOKUP(Switch!$D$52,$F$2:$G$44,2,FALSE)+ROW()-2)),\"\")","v":{"$error":"#N/A"}},{"$f":"IF(INDIRECT(\"c\" & (VLOOKUP(Switch!$D$53,$F$2:$G$44,2,FALSE)+ROW()-2))=Switch!$D$53,INDIRECT(\"a\" & (VLOOKUP(Switch!$D$53,$F$2:$G$44,2,FALSE)+ROW()-2)),\"\")","v":{"$error":"#N/A"}},{"$f":"IF(INDIRECT(\"c\" & (VLOOKUP(Switch!$D$54,$F$2:$G$44,2,FALSE)+ROW()-2))=Switch!$D$54,INDIRECT(\"a\" & (VLOOKUP(Switch!$D$54,$F$2:$G$44,2,FALSE)+ROW()-2)),\"\")","v":{"$error":"#N/A"}},{"$f":"IF(INDIRECT(\"c\" & (VLOOKUP(Switch!$D$55,$F$2:$G$44,2,FALSE)+ROW()-2))=Switch!$D$55,INDIRECT(\"a\" & (VLOOKUP(Switch!$D$55,$F$2:$G$44,2,FALSE)+ROW()-2)),\"\")","v":{"$error":"#N/A"}},{"$f":"IF(INDIRECT(\"c\" & (VLOOKUP(Switch!$D$56,$F$2:$G$44,2,FALSE)+ROW()-2))=Switch!$D$56,INDIRECT(\"a\" & (VLOOKUP(Switch!$D$56,$F$2:$G$44,2,FALSE)+ROW()-2)),\"\")","v":{"$error":"#N/A"}},{"$f":"IF(INDIRECT(\"c\" & (VLOOKUP(Switch!$D$57,$F$2:$G$44,2,FALSE)+ROW()-2))=Switch!$D$57,INDIRECT(\"a\" & (VLOOKUP(Switch!$D$57,$F$2:$G$44,2,FALSE)+ROW()-2)),\"\")","v":{"$error":"#N/A"}},{"$f":"IF(INDIRECT(\"c\" & (VLOOKUP(Switch!$D$58,$F$2:$G$44,2,FALSE)+ROW()-2))=Switch!$D$58,INDIRECT(\"a\" & (VLOOKUP(Switch!$D$58,$F$2:$G$44,2,FALSE)+ROW()-2)),\"\")","v":{"$error":"#N/A"}},{"$f":"IF(INDIRECT(\"c\" & (VLOOKUP(Switch!$D$59,$F$2:$G$44,2,FALSE)+ROW()-2))=Switch!$D$59,INDIRECT(\"a\" & (VLOOKUP(Switch!$D$59,$F$2:$G$44,2,FALSE)+ROW()-2)),\"\")","v":{"$error":"#N/A"}},{"$f":"IF(INDIRECT(\"c\" & (VLOOKUP(Switch!$D$60,$F$2:$G$44,2,FALSE)+ROW()-2))=Switch!$D$60,INDIRECT(\"a\" & (VLOOKUP(Switch!$D$60,$F$2:$G$44,2,FALSE)+ROW()-2)),\"\")","v":{"$error":"#N/A"}},{"$f":"IF(INDIRECT(\"c\" & (VLOOKUP(Switch!$D$61,$F$2:$G$44,2,FALSE)+ROW()-2))=Switch!$D$61,INDIRECT(\"a\" & (VLOOKUP(Switch!$D$61,$F$2:$G$44,2,FALSE)+ROW()-2)),\"\")","v":{"$error":"#N/A"}},{"$f":"IF(INDIRECT(\"c\" & (VLOOKUP(Switch!$D$62,$F$2:$G$44,2,FALSE)+ROW()-2))=Switch!$D$62,INDIRECT(\"a\" & (VLOOKUP(Switch!$D$62,$F$2:$G$44,2,FALSE)+ROW()-2)),\"\")","v":{"$error":"#N/A"}},{"$f":"IF(INDIRECT(\"c\" & (VLOOKUP(Switch!$D$63,$F$2:$G$44,2,FALSE)+ROW()-2))=Switch!$D$63,INDIRECT(\"a\" & (VLOOKUP(Switch!$D$63,$F$2:$G$44,2,FALSE)+ROW()-2)),\"\")","v":{"$error":"#N/A"}},{"$f":"IF(INDIRECT(\"c\" & (VLOOKUP(Switch!$D$64,$F$2:$G$44,2,FALSE)+ROW()-2))=Switch!$D$64,INDIRECT(\"a\" & (VLOOKUP(Switch!$D$64,$F$2:$G$44,2,FALSE)+ROW()-2)),\"\")","v":{"$error":"#N/A"}},{"$f":"IF(INDIRECT(\"c\" & (VLOOKUP(Switch!$D$65,$F$2:$G$44,2,FALSE)+ROW()-2))=Switch!$D$65,INDIRECT(\"a\" & (VLOOKUP(Switch!$D$65,$F$2:$G$44,2,FALSE)+ROW()-2)),\"\")","v":{"$error":"#N/A"}},{"$f":"IF(INDIRECT(\"c\" & (VLOOKUP(Switch!$D$66,$F$2:$G$44,2,FALSE)+ROW()-2))=Switch!$D$66,INDIRECT(\"a\" & (VLOOKUP(Switch!$D$66,$F$2:$G$44,2,FALSE)+ROW()-2)),\"\")","v":{"$error":"#N/A"}}]
["Momentum Optimal Yield Fund C1","RAB8","Momentum Collective Investments Ltd",{"$f":"ROW()","v":349},null,null,{"$f":"VLOOKUP(F349,$C$2:$D$637,2,FALSE)","v":{"$error":"#N/A"}},{"$f":"IF(INDIRECT(\"c\" & (VLOOKUP(Switch!$D$26,$F$2:$G$44,2,FALSE)+ROW()-2))=Switch!$D$26,INDIRECT(\"a\" & (VLOOKUP(Switch!$D$26,$F$2:$G$44,2,FALSE)+ROW()-2)),\"\")","v":{"$error":"#N/A"}},{"$f":"IF(INDIRECT(\"c\" & (VLOOKUP(Switch!$D$27,$F$2:$G$44,2,FALSE)+ROW()-2))=Switch!$D$27,INDIRECT(\"a\" & (VLOOKUP(Switch!$D$27,$F$2:$G$44,2,FALSE)+ROW()-2)),\"\")","v":{"$error":"#N/A"}},{"$f":"IF(INDIRECT(\"c\" & (VLOOKUP(Switch!$D$28,$F$2:$G$44,2,FALSE)+ROW()-2))=Switch!$D$28,INDIRECT(\"a\" & (VLOOKUP(Switch!$D$28,$F$2:$G$44,2,FALSE)+ROW()-2)),\"\")","v":{"$error":"#N/A"}},{"$f":"IF(INDIRECT(\"c\" & (VLOOKUP(Switch!$D$29,$F$2:$G$44,2,FALSE)+ROW()-2))=Switch!$D$29,INDIRECT(\"a\" & (VLOOKUP(Switch!$D$29,$F$2:$G$44,2,FALSE)+ROW()-2)),\"\")","v":{"$error":"#N/A"}},{"$f":"IF(INDIRECT(\"c\" & (VLOOKUP(Switch!$D$30,$F$2:$G$44,2,FALSE)+ROW()-2))=Switch!$D$30,INDIRECT(\"a\" & (VLOOKUP(Switch!$D$30,$F$2:$G$44,2,FALSE)+ROW()-2)),\"\")","v":{"$error":"#N/A"}},{"$f":"IF(INDIRECT(\"c\" & (VLOOKUP(Switch!$D$31,$F$2:$G$44,2,FALSE)+ROW()-2))=Switch!$D$31,INDIRECT(\"a\" & (VLOOKUP(Switch!$D$31,$F$2:$G$44,2,FALSE)+ROW()-2)),\"\")","v":{"$error":"#N/A"}},{"$f":"IF(INDIRECT(\"c\" & (VLOOKUP(Switch!$D$32,$F$2:$G$44,2,FALSE)+ROW()-2))=Switch!$D$32,INDIRECT(\"a\" & (VLOOKUP(Switch!$D$32,$F$2:$G$44,2,FALSE)+ROW()-2)),\"\")","v":{"$error":"#N/A"}},{"$f":"IF(INDIRECT(\"c\" & (VLOOKUP(Switch!$D$33,$F$2:$G$44,2,FALSE)+ROW()-2))=Switch!$D$33,INDIRECT(\"a\" & (VLOOKUP(Switch!$D$33,$F$2:$G$44,2,FALSE)+ROW()-2)),\"\")","v":{"$error":"#N/A"}},{"$f":"IF(INDIRECT(\"c\" & (VLOOKUP(Switch!$D$34,$F$2:$G$44,2,FALSE)+ROW()-2))=Switch!$D$34,INDIRECT(\"a\" & (VLOOKUP(Switch!$D$34,$F$2:$G$44,2,FALSE)+ROW()-2)),\"\")","v":{"$error":"#N/A"}},{"$f":"IF(INDIRECT(\"c\" & (VLOOKUP(Switch!$D$35,$F$2:$G$44,2,FALSE)+ROW()-2))=Switch!$D$35,INDIRECT(\"a\" & (VLOOKUP(Switch!$D$35,$F$2:$G$44,2,FALSE)+ROW()-2)),\"\")","v":{"$error":"#N/A"}},{"$f":"IF(INDIRECT(\"c\" & (VLOOKUP(Switch!$D$36,$F$2:$G$44,2,FALSE)+ROW()-2))=Switch!$D$36,INDIRECT(\"a\" & (VLOOKUP(Switch!$D$36,$F$2:$G$44,2,FALSE)+ROW()-2)),\"\")","v":{"$error":"#N/A"}},{"$f":"IF(INDIRECT(\"c\" & (VLOOKUP(Switch!$D$37,$F$2:$G$44,2,FALSE)+ROW()-2))=Switch!$D$37,INDIRECT(\"a\" & (VLOOKUP(Switch!$D$37,$F$2:$G$44,2,FALSE)+ROW()-2)),\"\")","v":{"$error":"#N/A"}},{"$f":"IF(INDIRECT(\"c\" & (VLOOKUP(Switch!$D$38,$F$2:$G$44,2,FALSE)+ROW()-2))=Switch!$D$38,INDIRECT(\"a\" & (VLOOKUP(Switch!$D$38,$F$2:$G$44,2,FALSE)+ROW()-2)),\"\")","v":{"$error":"#N/A"}},{"$f":"IF(INDIRECT(\"c\" & (VLOOKUP(Switch!$D$39,$F$2:$G$44,2,FALSE)+ROW()-2))=Switch!$D$39,INDIRECT(\"a\" & (VLOOKUP(Switch!$D$39,$F$2:$G$44,2,FALSE)+ROW()-2)),\"\")","v":{"$error":"#N/A"}},{"$f":"IF(INDIRECT(\"c\" & (VLOOKUP(Switch!$D$40,$F$2:$G$44,2,FALSE)+ROW()-2))=Switch!$D$40,INDIRECT(\"a\" & (VLOOKUP(Switch!$D$40,$F$2:$G$44,2,FALSE)+ROW()-2)),\"\")","v":{"$error":"#N/A"}},{"$f":"IF(INDIRECT(\"c\" & (VLOOKUP(Switch!$D$52,$F$2:$G$44,2,FALSE)+ROW()-2))=Switch!$D$52,INDIRECT(\"a\" & (VLOOKUP(Switch!$D$52,$F$2:$G$44,2,FALSE)+ROW()-2)),\"\")","v":{"$error":"#N/A"}},{"$f":"IF(INDIRECT(\"c\" & (VLOOKUP(Switch!$D$53,$F$2:$G$44,2,FALSE)+ROW()-2))=Switch!$D$53,INDIRECT(\"a\" & (VLOOKUP(Switch!$D$53,$F$2:$G$44,2,FALSE)+ROW()-2)),\"\")","v":{"$error":"#N/A"}},{"$f":"IF(INDIRECT(\"c\" & (VLOOKUP(Switch!$D$54,$F$2:$G$44,2,FALSE)+ROW()-2))=Switch!$D$54,INDIRECT(\"a\" & (VLOOKUP(Switch!$D$54,$F$2:$G$44,2,FALSE)+ROW()-2)),\"\")","v":{"$error":"#N/A"}},{"$f":"IF(INDIRECT(\"c\" & (VLOOKUP(Switch!$D$55,$F$2:$G$44,2,FALSE)+ROW()-2))=Switch!$D$55,INDIRECT(\"a\" & (VLOOKUP(Switch!$D$55,$F$2:$G$44,2,FALSE)+ROW()-2)),\"\")","v":{"$error":"#N/A"}},{"$f":"IF(INDIRECT(\"c\" & (VLOOKUP(Switch!$D$56,$F$2:$G$44,2,FALSE)+ROW()-2))=Switch!$D$56,INDIRECT(\"a\" & (VLOOKUP(Switch!$D$56,$F$2:$G$44,2,FALSE)+ROW()-2)),\"\")","v":{"$error":"#N/A"}},{"$f":"IF(INDIRECT(\"c\" & (VLOOKUP(Switch!$D$57,$F$2:$G$44,2,FALSE)+ROW()-2))=Switch!$D$57,INDIRECT(\"a\" & (VLOOKUP(Switch!$D$57,$F$2:$G$44,2,FALSE)+ROW()-2)),\"\")","v":{"$error":"#N/A"}},{"$f":"IF(INDIRECT(\"c\" & (VLOOKUP(Switch!$D$58,$F$2:$G$44,2,FALSE)+ROW()-2))=Switch!$D$58,INDIRECT(\"a\" & (VLOOKUP(Switch!$D$58,$F$2:$G$44,2,FALSE)+ROW()-2)),\"\")","v":{"$error":"#N/A"}},{"$f":"IF(INDIRECT(\"c\" & (VLOOKUP(Switch!$D$59,$F$2:$G$44,2,FALSE)+ROW()-2))=Switch!$D$59,INDIRECT(\"a\" & (VLOOKUP(Switch!$D$59,$F$2:$G$44,2,FALSE)+ROW()-2)),\"\")","v":{"$error":"#N/A"}},{"$f":"IF(INDIRECT(\"c\" & (VLOOKUP(Switch!$D$60,$F$2:$G$44,2,FALSE)+ROW()-2))=Switch!$D$60,INDIRECT(\"a\" & (VLOOKUP(Switch!$D$60,$F$2:$G$44,2,FALSE)+ROW()-2)),\"\")","v":{"$error":"#N/A"}},{"$f":"IF(INDIRECT(\"c\" & (VLOOKUP(Switch!$D$61,$F$2:$G$44,2,FALSE)+ROW()-2))=Switch!$D$61,INDIRECT(\"a\" & (VLOOKUP(Switch!$D$61,$F$2:$G$44,2,FALSE)+ROW()-2)),\"\")","v":{"$error":"#N/A"}},{"$f":"IF(INDIRECT(\"c\" & (VLOOKUP(Switch!$D$62,$F$2:$G$44,2,FALSE)+ROW()-2))=Switch!$D$62,INDIRECT(\"a\" & (VLOOKUP(Switch!$D$62,$F$2:$G$44,2,FALSE)+ROW()-2)),\"\")","v":{"$error":"#N/A"}},{"$f":"IF(INDIRECT(\"c\" & (VLOOKUP(Switch!$D$63,$F$2:$G$44,2,FALSE)+ROW()-2))=Switch!$D$63,INDIRECT(\"a\" & (VLOOKUP(Switch!$D$63,$F$2:$G$44,2,FALSE)+ROW()-2)),\"\")","v":{"$error":"#N/A"}},{"$f":"IF(INDIRECT(\"c\" & (VLOOKUP(Switch!$D$64,$F$2:$G$44,2,FALSE)+ROW()-2))=Switch!$D$64,INDIRECT(\"a\" & (VLOOKUP(Switch!$D$64,$F$2:$G$44,2,FALSE)+ROW()-2)),\"\")","v":{"$error":"#N/A"}},{"$f":"IF(INDIRECT(\"c\" & (VLOOKUP(Switch!$D$65,$F$2:$G$44,2,FALSE)+ROW()-2))=Switch!$D$65,INDIRECT(\"a\" & (VLOOKUP(Switch!$D$65,$F$2:$G$44,2,FALSE)+ROW()-2)),\"\")","v":{"$error":"#N/A"}},{"$f":"IF(INDIRECT(\"c\" & (VLOOKUP(Switch!$D$66,$F$2:$G$44,2,FALSE)+ROW()-2))=Switch!$D$66,INDIRECT(\"a\" & (VLOOKUP(Switch!$D$66,$F$2:$G$44,2,FALSE)+ROW()-2)),\"\")","v":{"$error":"#N/A"}}]
["Momentum Small/Mid-Cap Fund","MMCB5","Momentum Collective Investments Ltd",{"$f":"ROW()","v":350},null,null,{"$f":"VLOOKUP(F350,$C$2:$D$637,2,FALSE)","v":{"$error":"#N/A"}},{"$f":"IF(INDIRECT(\"c\" & (VLOOKUP(Switch!$D$26,$F$2:$G$44,2,FALSE)+ROW()-2))=Switch!$D$26,INDIRECT(\"a\" & (VLOOKUP(Switch!$D$26,$F$2:$G$44,2,FALSE)+ROW()-2)),\"\")","v":{"$error":"#N/A"}},{"$f":"IF(INDIRECT(\"c\" & (VLOOKUP(Switch!$D$27,$F$2:$G$44,2,FALSE)+ROW()-2))=Switch!$D$27,INDIRECT(\"a\" & (VLOOKUP(Switch!$D$27,$F$2:$G$44,2,FALSE)+ROW()-2)),\"\")","v":{"$error":"#N/A"}},{"$f":"IF(INDIRECT(\"c\" & (VLOOKUP(Switch!$D$28,$F$2:$G$44,2,FALSE)+ROW()-2))=Switch!$D$28,INDIRECT(\"a\" & (VLOOKUP(Switch!$D$28,$F$2:$G$44,2,FALSE)+ROW()-2)),\"\")","v":{"$error":"#N/A"}},{"$f":"IF(INDIRECT(\"c\" & (VLOOKUP(Switch!$D$29,$F$2:$G$44,2,FALSE)+ROW()-2))=Switch!$D$29,INDIRECT(\"a\" & (VLOOKUP(Switch!$D$29,$F$2:$G$44,2,FALSE)+ROW()-2)),\"\")","v":{"$error":"#N/A"}},{"$f":"IF(INDIRECT(\"c\" & (VLOOKUP(Switch!$D$30,$F$2:$G$44,2,FALSE)+ROW()-2))=Switch!$D$30,INDIRECT(\"a\" & (VLOOKUP(Switch!$D$30,$F$2:$G$44,2,FALSE)+ROW()-2)),\"\")","v":{"$error":"#N/A"}},{"$f":"IF(INDIRECT(\"c\" & (VLOOKUP(Switch!$D$31,$F$2:$G$44,2,FALSE)+ROW()-2))=Switch!$D$31,INDIRECT(\"a\" & (VLOOKUP(Switch!$D$31,$F$2:$G$44,2,FALSE)+ROW()-2)),\"\")","v":{"$error":"#N/A"}},{"$f":"IF(INDIRECT(\"c\" & (VLOOKUP(Switch!$D$32,$F$2:$G$44,2,FALSE)+ROW()-2))=Switch!$D$32,INDIRECT(\"a\" & (VLOOKUP(Switch!$D$32,$F$2:$G$44,2,FALSE)+ROW()-2)),\"\")","v":{"$error":"#N/A"}},{"$f":"IF(INDIRECT(\"c\" & (VLOOKUP(Switch!$D$33,$F$2:$G$44,2,FALSE)+ROW()-2))=Switch!$D$33,INDIRECT(\"a\" & (VLOOKUP(Switch!$D$33,$F$2:$G$44,2,FALSE)+ROW()-2)),\"\")","v":{"$error":"#N/A"}},{"$f":"IF(INDIRECT(\"c\" & (VLOOKUP(Switch!$D$34,$F$2:$G$44,2,FALSE)+ROW()-2))=Switch!$D$34,INDIRECT(\"a\" & (VLOOKUP(Switch!$D$34,$F$2:$G$44,2,FALSE)+ROW()-2)),\"\")","v":{"$error":"#N/A"}},{"$f":"IF(INDIRECT(\"c\" & (VLOOKUP(Switch!$D$35,$F$2:$G$44,2,FALSE)+ROW()-2))=Switch!$D$35,INDIRECT(\"a\" & (VLOOKUP(Switch!$D$35,$F$2:$G$44,2,FALSE)+ROW()-2)),\"\")","v":{"$error":"#N/A"}},{"$f":"IF(INDIRECT(\"c\" & (VLOOKUP(Switch!$D$36,$F$2:$G$44,2,FALSE)+ROW()-2))=Switch!$D$36,INDIRECT(\"a\" & (VLOOKUP(Switch!$D$36,$F$2:$G$44,2,FALSE)+ROW()-2)),\"\")","v":{"$error":"#N/A"}},{"$f":"IF(INDIRECT(\"c\" & (VLOOKUP(Switch!$D$37,$F$2:$G$44,2,FALSE)+ROW()-2))=Switch!$D$37,INDIRECT(\"a\" & (VLOOKUP(Switch!$D$37,$F$2:$G$44,2,FALSE)+ROW()-2)),\"\")","v":{"$error":"#N/A"}},{"$f":"IF(INDIRECT(\"c\" & (VLOOKUP(Switch!$D$38,$F$2:$G$44,2,FALSE)+ROW()-2))=Switch!$D$38,INDIRECT(\"a\" & (VLOOKUP(Switch!$D$38,$F$2:$G$44,2,FALSE)+ROW()-2)),\"\")","v":{"$error":"#N/A"}},{"$f":"IF(INDIRECT(\"c\" & (VLOOKUP(Switch!$D$39,$F$2:$G$44,2,FALSE)+ROW()-2))=Switch!$D$39,INDIRECT(\"a\" & (VLOOKUP(Switch!$D$39,$F$2:$G$44,2,FALSE)+ROW()-2)),\"\")","v":{"$error":"#N/A"}},{"$f":"IF(INDIRECT(\"c\" & (VLOOKUP(Switch!$D$40,$F$2:$G$44,2,FALSE)+ROW()-2))=Switch!$D$40,INDIRECT(\"a\" & (VLOOKUP(Switch!$D$40,$F$2:$G$44,2,FALSE)+ROW()-2)),\"\")","v":{"$error":"#N/A"}},{"$f":"IF(INDIRECT(\"c\" & (VLOOKUP(Switch!$D$52,$F$2:$G$44,2,FALSE)+ROW()-2))=Switch!$D$52,INDIRECT(\"a\" & (VLOOKUP(Switch!$D$52,$F$2:$G$44,2,FALSE)+ROW()-2)),\"\")","v":{"$error":"#N/A"}},{"$f":"IF(INDIRECT(\"c\" & (VLOOKUP(Switch!$D$53,$F$2:$G$44,2,FALSE)+ROW()-2))=Switch!$D$53,INDIRECT(\"a\" & (VLOOKUP(Switch!$D$53,$F$2:$G$44,2,FALSE)+ROW()-2)),\"\")","v":{"$error":"#N/A"}},{"$f":"IF(INDIRECT(\"c\" & (VLOOKUP(Switch!$D$54,$F$2:$G$44,2,FALSE)+ROW()-2))=Switch!$D$54,INDIRECT(\"a\" & (VLOOKUP(Switch!$D$54,$F$2:$G$44,2,FALSE)+ROW()-2)),\"\")","v":{"$error":"#N/A"}},{"$f":"IF(INDIRECT(\"c\" & (VLOOKUP(Switch!$D$55,$F$2:$G$44,2,FALSE)+ROW()-2))=Switch!$D$55,INDIRECT(\"a\" & (VLOOKUP(Switch!$D$55,$F$2:$G$44,2,FALSE)+ROW()-2)),\"\")","v":{"$error":"#N/A"}},{"$f":"IF(INDIRECT(\"c\" & (VLOOKUP(Switch!$D$56,$F$2:$G$44,2,FALSE)+ROW()-2))=Switch!$D$56,INDIRECT(\"a\" & (VLOOKUP(Switch!$D$56,$F$2:$G$44,2,FALSE)+ROW()-2)),\"\")","v":{"$error":"#N/A"}},{"$f":"IF(INDIRECT(\"c\" & (VLOOKUP(Switch!$D$57,$F$2:$G$44,2,FALSE)+ROW()-2))=Switch!$D$57,INDIRECT(\"a\" & (VLOOKUP(Switch!$D$57,$F$2:$G$44,2,FALSE)+ROW()-2)),\"\")","v":{"$error":"#N/A"}},{"$f":"IF(INDIRECT(\"c\" & (VLOOKUP(Switch!$D$58,$F$2:$G$44,2,FALSE)+ROW()-2))=Switch!$D$58,INDIRECT(\"a\" & (VLOOKUP(Switch!$D$58,$F$2:$G$44,2,FALSE)+ROW()-2)),\"\")","v":{"$error":"#N/A"}},{"$f":"IF(INDIRECT(\"c\" & (VLOOKUP(Switch!$D$59,$F$2:$G$44,2,FALSE)+ROW()-2))=Switch!$D$59,INDIRECT(\"a\" & (VLOOKUP(Switch!$D$59,$F$2:$G$44,2,FALSE)+ROW()-2)),\"\")","v":{"$error":"#N/A"}},{"$f":"IF(INDIRECT(\"c\" & (VLOOKUP(Switch!$D$60,$F$2:$G$44,2,FALSE)+ROW()-2))=Switch!$D$60,INDIRECT(\"a\" & (VLOOKUP(Switch!$D$60,$F$2:$G$44,2,FALSE)+ROW()-2)),\"\")","v":{"$error":"#N/A"}},{"$f":"IF(INDIRECT(\"c\" & (VLOOKUP(Switch!$D$61,$F$2:$G$44,2,FALSE)+ROW()-2))=Switch!$D$61,INDIRECT(\"a\" & (VLOOKUP(Switch!$D$61,$F$2:$G$44,2,FALSE)+ROW()-2)),\"\")","v":{"$error":"#N/A"}},{"$f":"IF(INDIRECT(\"c\" & (VLOOKUP(Switch!$D$62,$F$2:$G$44,2,FALSE)+ROW()-2))=Switch!$D$62,INDIRECT(\"a\" & (VLOOKUP(Switch!$D$62,$F$2:$G$44,2,FALSE)+ROW()-2)),\"\")","v":{"$error":"#N/A"}},{"$f":"IF(INDIRECT(\"c\" & (VLOOKUP(Switch!$D$63,$F$2:$G$44,2,FALSE)+ROW()-2))=Switch!$D$63,INDIRECT(\"a\" & (VLOOKUP(Switch!$D$63,$F$2:$G$44,2,FALSE)+ROW()-2)),\"\")","v":{"$error":"#N/A"}},{"$f":"IF(INDIRECT(\"c\" & (VLOOKUP(Switch!$D$64,$F$2:$G$44,2,FALSE)+ROW()-2))=Switch!$D$64,INDIRECT(\"a\" & (VLOOKUP(Switch!$D$64,$F$2:$G$44,2,FALSE)+ROW()-2)),\"\")","v":{"$error":"#N/A"}},{"$f":"IF(INDIRECT(\"c\" & (VLOOKUP(Switch!$D$65,$F$2:$G$44,2,FALSE)+ROW()-2))=Switch!$D$65,INDIRECT(\"a\" & (VLOOKUP(Switch!$D$65,$F$2:$G$44,2,FALSE)+ROW()-2)),\"\")","v":{"$error":"#N/A"}},{"$f":"IF(INDIRECT(\"c\" & (VLOOKUP(Switch!$D$66,$F$2:$G$44,2,FALSE)+ROW()-2))=Switch!$D$66,INDIRECT(\"a\" & (VLOOKUP(Switch!$D$66,$F$2:$G$44,2,FALSE)+ROW()-2)),\"\")","v":{"$error":"#N/A"}}]
["Momentum Small\\Mid- Cap Fund C1","MMCB5","Momentum Collective Investments Ltd",{"$f":"ROW()","v":351},null,null,{"$f":"VLOOKUP(F351,$C$2:$D$637,2,FALSE)","v":{"$error":"#N/A"}},{"$f":"IF(INDIRECT(\"c\" & (VLOOKUP(Switch!$D$26,$F$2:$G$44,2,FALSE)+ROW()-2))=Switch!$D$26,INDIRECT(\"a\" & (VLOOKUP(Switch!$D$26,$F$2:$G$44,2,FALSE)+ROW()-2)),\"\")","v":{"$error":"#N/A"}},{"$f":"IF(INDIRECT(\"c\" & (VLOOKUP(Switch!$D$27,$F$2:$G$44,2,FALSE)+ROW()-2))=Switch!$D$27,INDIRECT(\"a\" & (VLOOKUP(Switch!$D$27,$F$2:$G$44,2,FALSE)+ROW()-2)),\"\")","v":{"$error":"#N/A"}},{"$f":"IF(INDIRECT(\"c\" & (VLOOKUP(Switch!$D$28,$F$2:$G$44,2,FALSE)+ROW()-2))=Switch!$D$28,INDIRECT(\"a\" & (VLOOKUP(Switch!$D$28,$F$2:$G$44,2,FALSE)+ROW()-2)),\"\")","v":{"$error":"#N/A"}},{"$f":"IF(INDIRECT(\"c\" & (VLOOKUP(Switch!$D$29,$F$2:$G$44,2,FALSE)+ROW()-2))=Switch!$D$29,INDIRECT(\"a\" & (VLOOKUP(Switch!$D$29,$F$2:$G$44,2,FALSE)+ROW()-2)),\"\")","v":{"$error":"#N/A"}},{"$f":"IF(INDIRECT(\"c\" & (VLOOKUP(Switch!$D$30,$F$2:$G$44,2,FALSE)+ROW()-2))=Switch!$D$30,INDIRECT(\"a\" & (VLOOKUP(Switch!$D$30,$F$2:$G$44,2,FALSE)+ROW()-2)),\"\")","v":{"$error":"#N/A"}},{"$f":"IF(INDIRECT(\"c\" & (VLOOKUP(Switch!$D$31,$F$2:$G$44,2,FALSE)+ROW()-2))=Switch!$D$31,INDIRECT(\"a\" & (VLOOKUP(Switch!$D$31,$F$2:$G$44,2,FALSE)+ROW()-2)),\"\")","v":{"$error":"#N/A"}},{"$f":"IF(INDIRECT(\"c\" & (VLOOKUP(Switch!$D$32,$F$2:$G$44,2,FALSE)+ROW()-2))=Switch!$D$32,INDIRECT(\"a\" & (VLOOKUP(Switch!$D$32,$F$2:$G$44,2,FALSE)+ROW()-2)),\"\")","v":{"$error":"#N/A"}},{"$f":"IF(INDIRECT(\"c\" & (VLOOKUP(Switch!$D$33,$F$2:$G$44,2,FALSE)+ROW()-2))=Switch!$D$33,INDIRECT(\"a\" & (VLOOKUP(Switch!$D$33,$F$2:$G$44,2,FALSE)+ROW()-2)),\"\")","v":{"$error":"#N/A"}},{"$f":"IF(INDIRECT(\"c\" & (VLOOKUP(Switch!$D$34,$F$2:$G$44,2,FALSE)+ROW()-2))=Switch!$D$34,INDIRECT(\"a\" & (VLOOKUP(Switch!$D$34,$F$2:$G$44,2,FALSE)+ROW()-2)),\"\")","v":{"$error":"#N/A"}},{"$f":"IF(INDIRECT(\"c\" & (VLOOKUP(Switch!$D$35,$F$2:$G$44,2,FALSE)+ROW()-2))=Switch!$D$35,INDIRECT(\"a\" & (VLOOKUP(Switch!$D$35,$F$2:$G$44,2,FALSE)+ROW()-2)),\"\")","v":{"$error":"#N/A"}},{"$f":"IF(INDIRECT(\"c\" & (VLOOKUP(Switch!$D$36,$F$2:$G$44,2,FALSE)+ROW()-2))=Switch!$D$36,INDIRECT(\"a\" & (VLOOKUP(Switch!$D$36,$F$2:$G$44,2,FALSE)+ROW()-2)),\"\")","v":{"$error":"#N/A"}},{"$f":"IF(INDIRECT(\"c\" & (VLOOKUP(Switch!$D$37,$F$2:$G$44,2,FALSE)+ROW()-2))=Switch!$D$37,INDIRECT(\"a\" & (VLOOKUP(Switch!$D$37,$F$2:$G$44,2,FALSE)+ROW()-2)),\"\")","v":{"$error":"#N/A"}},{"$f":"IF(INDIRECT(\"c\" & (VLOOKUP(Switch!$D$38,$F$2:$G$44,2,FALSE)+ROW()-2))=Switch!$D$38,INDIRECT(\"a\" & (VLOOKUP(Switch!$D$38,$F$2:$G$44,2,FALSE)+ROW()-2)),\"\")","v":{"$error":"#N/A"}},{"$f":"IF(INDIRECT(\"c\" & (VLOOKUP(Switch!$D$39,$F$2:$G$44,2,FALSE)+ROW()-2))=Switch!$D$39,INDIRECT(\"a\" & (VLOOKUP(Switch!$D$39,$F$2:$G$44,2,FALSE)+ROW()-2)),\"\")","v":{"$error":"#N/A"}},{"$f":"IF(INDIRECT(\"c\" & (VLOOKUP(Switch!$D$40,$F$2:$G$44,2,FALSE)+ROW()-2))=Switch!$D$40,INDIRECT(\"a\" & (VLOOKUP(Switch!$D$40,$F$2:$G$44,2,FALSE)+ROW()-2)),\"\")","v":{"$error":"#N/A"}},{"$f":"IF(INDIRECT(\"c\" & (VLOOKUP(Switch!$D$52,$F$2:$G$44,2,FALSE)+ROW()-2))=Switch!$D$52,INDIRECT(\"a\" & (VLOOKUP(Switch!$D$52,$F$2:$G$44,2,FALSE)+ROW()-2)),\"\")","v":{"$error":"#N/A"}},{"$f":"IF(INDIRECT(\"c\" & (VLOOKUP(Switch!$D$53,$F$2:$G$44,2,FALSE)+ROW()-2))=Switch!$D$53,INDIRECT(\"a\" & (VLOOKUP(Switch!$D$53,$F$2:$G$44,2,FALSE)+ROW()-2)),\"\")","v":{"$error":"#N/A"}},{"$f":"IF(INDIRECT(\"c\" & (VLOOKUP(Switch!$D$54,$F$2:$G$44,2,FALSE)+ROW()-2))=Switch!$D$54,INDIRECT(\"a\" & (VLOOKUP(Switch!$D$54,$F$2:$G$44,2,FALSE)+ROW()-2)),\"\")","v":{"$error":"#N/A"}},{"$f":"IF(INDIRECT(\"c\" & (VLOOKUP(Switch!$D$55,$F$2:$G$44,2,FALSE)+ROW()-2))=Switch!$D$55,INDIRECT(\"a\" & (VLOOKUP(Switch!$D$55,$F$2:$G$44,2,FALSE)+ROW()-2)),\"\")","v":{"$error":"#N/A"}},{"$f":"IF(INDIRECT(\"c\" & (VLOOKUP(Switch!$D$56,$F$2:$G$44,2,FALSE)+ROW()-2))=Switch!$D$56,INDIRECT(\"a\" & (VLOOKUP(Switch!$D$56,$F$2:$G$44,2,FALSE)+ROW()-2)),\"\")","v":{"$error":"#N/A"}},{"$f":"IF(INDIRECT(\"c\" & (VLOOKUP(Switch!$D$57,$F$2:$G$44,2,FALSE)+ROW()-2))=Switch!$D$57,INDIRECT(\"a\" & (VLOOKUP(Switch!$D$57,$F$2:$G$44,2,FALSE)+ROW()-2)),\"\")","v":{"$error":"#N/A"}},{"$f":"IF(INDIRECT(\"c\" & (VLOOKUP(Switch!$D$58,$F$2:$G$44,2,FALSE)+ROW()-2))=Switch!$D$58,INDIRECT(\"a\" & (VLOOKUP(Switch!$D$58,$F$2:$G$44,2,FALSE)+ROW()-2)),\"\")","v":{"$error":"#N/A"}},{"$f":"IF(INDIRECT(\"c\" & (VLOOKUP(Switch!$D$59,$F$2:$G$44,2,FALSE)+ROW()-2))=Switch!$D$59,INDIRECT(\"a\" & (VLOOKUP(Switch!$D$59,$F$2:$G$44,2,FALSE)+ROW()-2)),\"\")","v":{"$error":"#N/A"}},{"$f":"IF(INDIRECT(\"c\" & (VLOOKUP(Switch!$D$60,$F$2:$G$44,2,FALSE)+ROW()-2))=Switch!$D$60,INDIRECT(\"a\" & (VLOOKUP(Switch!$D$60,$F$2:$G$44,2,FALSE)+ROW()-2)),\"\")","v":{"$error":"#N/A"}},{"$f":"IF(INDIRECT(\"c\" & (VLOOKUP(Switch!$D$61,$F$2:$G$44,2,FALSE)+ROW()-2))=Switch!$D$61,INDIRECT(\"a\" & (VLOOKUP(Switch!$D$61,$F$2:$G$44,2,FALSE)+ROW()-2)),\"\")","v":{"$error":"#N/A"}},{"$f":"IF(INDIRECT(\"c\" & (VLOOKUP(Switch!$D$62,$F$2:$G$44,2,FALSE)+ROW()-2))=Switch!$D$62,INDIRECT(\"a\" & (VLOOKUP(Switch!$D$62,$F$2:$G$44,2,FALSE)+ROW()-2)),\"\")","v":{"$error":"#N/A"}},{"$f":"IF(INDIRECT(\"c\" & (VLOOKUP(Switch!$D$63,$F$2:$G$44,2,FALSE)+ROW()-2))=Switch!$D$63,INDIRECT(\"a\" & (VLOOKUP(Switch!$D$63,$F$2:$G$44,2,FALSE)+ROW()-2)),\"\")","v":{"$error":"#N/A"}},{"$f":"IF(INDIRECT(\"c\" & (VLOOKUP(Switch!$D$64,$F$2:$G$44,2,FALSE)+ROW()-2))=Switch!$D$64,INDIRECT(\"a\" & (VLOOKUP(Switch!$D$64,$F$2:$G$44,2,FALSE)+ROW()-2)),\"\")","v":{"$error":"#N/A"}},{"$f":"IF(INDIRECT(\"c\" & (VLOOKUP(Switch!$D$65,$F$2:$G$44,2,FALSE)+ROW()-2))=Switch!$D$65,INDIRECT(\"a\" & (VLOOKUP(Switch!$D$65,$F$2:$G$44,2,FALSE)+ROW()-2)),\"\")","v":{"$error":"#N/A"}},{"$f":"IF(INDIRECT(\"c\" & (VLOOKUP(Switch!$D$66,$F$2:$G$44,2,FALSE)+ROW()-2))=Switch!$D$66,INDIRECT(\"a\" & (VLOOKUP(Switch!$D$66,$F$2:$G$44,2,FALSE)+ROW()-2)),\"\")","v":{"$error":"#N/A"}}]
["Momentum Value Fund A","RMVF","Momentum Collective Investments Ltd",{"$f":"ROW()","v":352},null,null,{"$f":"VLOOKUP(F352,$C$2:$D$637,2,FALSE)","v":{"$error":"#N/A"}},{"$f":"IF(INDIRECT(\"c\" & (VLOOKUP(Switch!$D$26,$F$2:$G$44,2,FALSE)+ROW()-2))=Switch!$D$26,INDIRECT(\"a\" & (VLOOKUP(Switch!$D$26,$F$2:$G$44,2,FALSE)+ROW()-2)),\"\")","v":{"$error":"#N/A"}},{"$f":"IF(INDIRECT(\"c\" & (VLOOKUP(Switch!$D$27,$F$2:$G$44,2,FALSE)+ROW()-2))=Switch!$D$27,INDIRECT(\"a\" & (VLOOKUP(Switch!$D$27,$F$2:$G$44,2,FALSE)+ROW()-2)),\"\")","v":{"$error":"#N/A"}},{"$f":"IF(INDIRECT(\"c\" & (VLOOKUP(Switch!$D$28,$F$2:$G$44,2,FALSE)+ROW()-2))=Switch!$D$28,INDIRECT(\"a\" & (VLOOKUP(Switch!$D$28,$F$2:$G$44,2,FALSE)+ROW()-2)),\"\")","v":{"$error":"#N/A"}},{"$f":"IF(INDIRECT(\"c\" & (VLOOKUP(Switch!$D$29,$F$2:$G$44,2,FALSE)+ROW()-2))=Switch!$D$29,INDIRECT(\"a\" & (VLOOKUP(Switch!$D$29,$F$2:$G$44,2,FALSE)+ROW()-2)),\"\")","v":{"$error":"#N/A"}},{"$f":"IF(INDIRECT(\"c\" & (VLOOKUP(Switch!$D$30,$F$2:$G$44,2,FALSE)+ROW()-2))=Switch!$D$30,INDIRECT(\"a\" & (VLOOKUP(Switch!$D$30,$F$2:$G$44,2,FALSE)+ROW()-2)),\"\")","v":{"$error":"#N/A"}},{"$f":"IF(INDIRECT(\"c\" & (VLOOKUP(Switch!$D$31,$F$2:$G$44,2,FALSE)+ROW()-2))=Switch!$D$31,INDIRECT(\"a\" & (VLOOKUP(Switch!$D$31,$F$2:$G$44,2,FALSE)+ROW()-2)),\"\")","v":{"$error":"#N/A"}},{"$f":"IF(INDIRECT(\"c\" & (VLOOKUP(Switch!$D$32,$F$2:$G$44,2,FALSE)+ROW()-2))=Switch!$D$32,INDIRECT(\"a\" & (VLOOKUP(Switch!$D$32,$F$2:$G$44,2,FALSE)+ROW()-2)),\"\")","v":{"$error":"#N/A"}},{"$f":"IF(INDIRECT(\"c\" & (VLOOKUP(Switch!$D$33,$F$2:$G$44,2,FALSE)+ROW()-2))=Switch!$D$33,INDIRECT(\"a\" & (VLOOKUP(Switch!$D$33,$F$2:$G$44,2,FALSE)+ROW()-2)),\"\")","v":{"$error":"#N/A"}},{"$f":"IF(INDIRECT(\"c\" & (VLOOKUP(Switch!$D$34,$F$2:$G$44,2,FALSE)+ROW()-2))=Switch!$D$34,INDIRECT(\"a\" & (VLOOKUP(Switch!$D$34,$F$2:$G$44,2,FALSE)+ROW()-2)),\"\")","v":{"$error":"#N/A"}},{"$f":"IF(INDIRECT(\"c\" & (VLOOKUP(Switch!$D$35,$F$2:$G$44,2,FALSE)+ROW()-2))=Switch!$D$35,INDIRECT(\"a\" & (VLOOKUP(Switch!$D$35,$F$2:$G$44,2,FALSE)+ROW()-2)),\"\")","v":{"$error":"#N/A"}},{"$f":"IF(INDIRECT(\"c\" & (VLOOKUP(Switch!$D$36,$F$2:$G$44,2,FALSE)+ROW()-2))=Switch!$D$36,INDIRECT(\"a\" & (VLOOKUP(Switch!$D$36,$F$2:$G$44,2,FALSE)+ROW()-2)),\"\")","v":{"$error":"#N/A"}},{"$f":"IF(INDIRECT(\"c\" & (VLOOKUP(Switch!$D$37,$F$2:$G$44,2,FALSE)+ROW()-2))=Switch!$D$37,INDIRECT(\"a\" & (VLOOKUP(Switch!$D$37,$F$2:$G$44,2,FALSE)+ROW()-2)),\"\")","v":{"$error":"#N/A"}},{"$f":"IF(INDIRECT(\"c\" & (VLOOKUP(Switch!$D$38,$F$2:$G$44,2,FALSE)+ROW()-2))=Switch!$D$38,INDIRECT(\"a\" & (VLOOKUP(Switch!$D$38,$F$2:$G$44,2,FALSE)+ROW()-2)),\"\")","v":{"$error":"#N/A"}},{"$f":"IF(INDIRECT(\"c\" & (VLOOKUP(Switch!$D$39,$F$2:$G$44,2,FALSE)+ROW()-2))=Switch!$D$39,INDIRECT(\"a\" & (VLOOKUP(Switch!$D$39,$F$2:$G$44,2,FALSE)+ROW()-2)),\"\")","v":{"$error":"#N/A"}},{"$f":"IF(INDIRECT(\"c\" & (VLOOKUP(Switch!$D$40,$F$2:$G$44,2,FALSE)+ROW()-2))=Switch!$D$40,INDIRECT(\"a\" & (VLOOKUP(Switch!$D$40,$F$2:$G$44,2,FALSE)+ROW()-2)),\"\")","v":{"$error":"#N/A"}},{"$f":"IF(INDIRECT(\"c\" & (VLOOKUP(Switch!$D$52,$F$2:$G$44,2,FALSE)+ROW()-2))=Switch!$D$52,INDIRECT(\"a\" & (VLOOKUP(Switch!$D$52,$F$2:$G$44,2,FALSE)+ROW()-2)),\"\")","v":{"$error":"#N/A"}},{"$f":"IF(INDIRECT(\"c\" & (VLOOKUP(Switch!$D$53,$F$2:$G$44,2,FALSE)+ROW()-2))=Switch!$D$53,INDIRECT(\"a\" & (VLOOKUP(Switch!$D$53,$F$2:$G$44,2,FALSE)+ROW()-2)),\"\")","v":{"$error":"#N/A"}},{"$f":"IF(INDIRECT(\"c\" & (VLOOKUP(Switch!$D$54,$F$2:$G$44,2,FALSE)+ROW()-2))=Switch!$D$54,INDIRECT(\"a\" & (VLOOKUP(Switch!$D$54,$F$2:$G$44,2,FALSE)+ROW()-2)),\"\")","v":{"$error":"#N/A"}},{"$f":"IF(INDIRECT(\"c\" & (VLOOKUP(Switch!$D$55,$F$2:$G$44,2,FALSE)+ROW()-2))=Switch!$D$55,INDIRECT(\"a\" & (VLOOKUP(Switch!$D$55,$F$2:$G$44,2,FALSE)+ROW()-2)),\"\")","v":{"$error":"#N/A"}},{"$f":"IF(INDIRECT(\"c\" & (VLOOKUP(Switch!$D$56,$F$2:$G$44,2,FALSE)+ROW()-2))=Switch!$D$56,INDIRECT(\"a\" & (VLOOKUP(Switch!$D$56,$F$2:$G$44,2,FALSE)+ROW()-2)),\"\")","v":{"$error":"#N/A"}},{"$f":"IF(INDIRECT(\"c\" & (VLOOKUP(Switch!$D$57,$F$2:$G$44,2,FALSE)+ROW()-2))=Switch!$D$57,INDIRECT(\"a\" & (VLOOKUP(Switch!$D$57,$F$2:$G$44,2,FALSE)+ROW()-2)),\"\")","v":{"$error":"#N/A"}},{"$f":"IF(INDIRECT(\"c\" & (VLOOKUP(Switch!$D$58,$F$2:$G$44,2,FALSE)+ROW()-2))=Switch!$D$58,INDIRECT(\"a\" & (VLOOKUP(Switch!$D$58,$F$2:$G$44,2,FALSE)+ROW()-2)),\"\")","v":{"$error":"#N/A"}},{"$f":"IF(INDIRECT(\"c\" & (VLOOKUP(Switch!$D$59,$F$2:$G$44,2,FALSE)+ROW()-2))=Switch!$D$59,INDIRECT(\"a\" & (VLOOKUP(Switch!$D$59,$F$2:$G$44,2,FALSE)+ROW()-2)),\"\")","v":{"$error":"#N/A"}},{"$f":"IF(INDIRECT(\"c\" & (VLOOKUP(Switch!$D$60,$F$2:$G$44,2,FALSE)+ROW()-2))=Switch!$D$60,INDIRECT(\"a\" & (VLOOKUP(Switch!$D$60,$F$2:$G$44,2,FALSE)+ROW()-2)),\"\")","v":{"$error":"#N/A"}},{"$f":"IF(INDIRECT(\"c\" & (VLOOKUP(Switch!$D$61,$F$2:$G$44,2,FALSE)+ROW()-2))=Switch!$D$61,INDIRECT(\"a\" & (VLOOKUP(Switch!$D$61,$F$2:$G$44,2,FALSE)+ROW()-2)),\"\")","v":{"$error":"#N/A"}},{"$f":"IF(INDIRECT(\"c\" & (VLOOKUP(Switch!$D$62,$F$2:$G$44,2,FALSE)+ROW()-2))=Switch!$D$62,INDIRECT(\"a\" & (VLOOKUP(Switch!$D$62,$F$2:$G$44,2,FALSE)+ROW()-2)),\"\")","v":{"$error":"#N/A"}},{"$f":"IF(INDIRECT(\"c\" & (VLOOKUP(Switch!$D$63,$F$2:$G$44,2,FALSE)+ROW()-2))=Switch!$D$63,INDIRECT(\"a\" & (VLOOKUP(Switch!$D$63,$F$2:$G$44,2,FALSE)+ROW()-2)),\"\")","v":{"$error":"#N/A"}},{"$f":"IF(INDIRECT(\"c\" & (VLOOKUP(Switch!$D$64,$F$2:$G$44,2,FALSE)+ROW()-2))=Switch!$D$64,INDIRECT(\"a\" & (VLOOKUP(Switch!$D$64,$F$2:$G$44,2,FALSE)+ROW()-2)),\"\")","v":{"$error":"#N/A"}},{"$f":"IF(INDIRECT(\"c\" & (VLOOKUP(Switch!$D$65,$F$2:$G$44,2,FALSE)+ROW()-2))=Switch!$D$65,INDIRECT(\"a\" & (VLOOKUP(Switch!$D$65,$F$2:$G$44,2,FALSE)+ROW()-2)),\"\")","v":{"$error":"#N/A"}},{"$f":"IF(INDIRECT(\"c\" & (VLOOKUP(Switch!$D$66,$F$2:$G$44,2,FALSE)+ROW()-2))=Switch!$D$66,INDIRECT(\"a\" & (VLOOKUP(Switch!$D$66,$F$2:$G$44,2,FALSE)+ROW()-2)),\"\")","v":{"$error":"#N/A"}}]
["Momentum Top 40 Index Fund B3","RTFB3","Momentum Collective Investments Ltd",{"$f":"ROW()","v":353},null,null,{"$f":"VLOOKUP(F353,$C$2:$D$637,2,FALSE)","v":{"$error":"#N/A"}},{"$f":"IF(INDIRECT(\"c\" & (VLOOKUP(Switch!$D$26,$F$2:$G$44,2,FALSE)+ROW()-2))=Switch!$D$26,INDIRECT(\"a\" & (VLOOKUP(Switch!$D$26,$F$2:$G$44,2,FALSE)+ROW()-2)),\"\")","v":{"$error":"#N/A"}},{"$f":"IF(INDIRECT(\"c\" & (VLOOKUP(Switch!$D$27,$F$2:$G$44,2,FALSE)+ROW()-2))=Switch!$D$27,INDIRECT(\"a\" & (VLOOKUP(Switch!$D$27,$F$2:$G$44,2,FALSE)+ROW()-2)),\"\")","v":{"$error":"#N/A"}},{"$f":"IF(INDIRECT(\"c\" & (VLOOKUP(Switch!$D$28,$F$2:$G$44,2,FALSE)+ROW()-2))=Switch!$D$28,INDIRECT(\"a\" & (VLOOKUP(Switch!$D$28,$F$2:$G$44,2,FALSE)+ROW()-2)),\"\")","v":{"$error":"#N/A"}},{"$f":"IF(INDIRECT(\"c\" & (VLOOKUP(Switch!$D$29,$F$2:$G$44,2,FALSE)+ROW()-2))=Switch!$D$29,INDIRECT(\"a\" & (VLOOKUP(Switch!$D$29,$F$2:$G$44,2,FALSE)+ROW()-2)),\"\")","v":{"$error":"#N/A"}},{"$f":"IF(INDIRECT(\"c\" & (VLOOKUP(Switch!$D$30,$F$2:$G$44,2,FALSE)+ROW()-2))=Switch!$D$30,INDIRECT(\"a\" & (VLOOKUP(Switch!$D$30,$F$2:$G$44,2,FALSE)+ROW()-2)),\"\")","v":{"$error":"#N/A"}},{"$f":"IF(INDIRECT(\"c\" & (VLOOKUP(Switch!$D$31,$F$2:$G$44,2,FALSE)+ROW()-2))=Switch!$D$31,INDIRECT(\"a\" & (VLOOKUP(Switch!$D$31,$F$2:$G$44,2,FALSE)+ROW()-2)),\"\")","v":{"$error":"#N/A"}},{"$f":"IF(INDIRECT(\"c\" & (VLOOKUP(Switch!$D$32,$F$2:$G$44,2,FALSE)+ROW()-2))=Switch!$D$32,INDIRECT(\"a\" & (VLOOKUP(Switch!$D$32,$F$2:$G$44,2,FALSE)+ROW()-2)),\"\")","v":{"$error":"#N/A"}},{"$f":"IF(INDIRECT(\"c\" & (VLOOKUP(Switch!$D$33,$F$2:$G$44,2,FALSE)+ROW()-2))=Switch!$D$33,INDIRECT(\"a\" & (VLOOKUP(Switch!$D$33,$F$2:$G$44,2,FALSE)+ROW()-2)),\"\")","v":{"$error":"#N/A"}},{"$f":"IF(INDIRECT(\"c\" & (VLOOKUP(Switch!$D$34,$F$2:$G$44,2,FALSE)+ROW()-2))=Switch!$D$34,INDIRECT(\"a\" & (VLOOKUP(Switch!$D$34,$F$2:$G$44,2,FALSE)+ROW()-2)),\"\")","v":{"$error":"#N/A"}},{"$f":"IF(INDIRECT(\"c\" & (VLOOKUP(Switch!$D$35,$F$2:$G$44,2,FALSE)+ROW()-2))=Switch!$D$35,INDIRECT(\"a\" & (VLOOKUP(Switch!$D$35,$F$2:$G$44,2,FALSE)+ROW()-2)),\"\")","v":{"$error":"#N/A"}},{"$f":"IF(INDIRECT(\"c\" & (VLOOKUP(Switch!$D$36,$F$2:$G$44,2,FALSE)+ROW()-2))=Switch!$D$36,INDIRECT(\"a\" & (VLOOKUP(Switch!$D$36,$F$2:$G$44,2,FALSE)+ROW()-2)),\"\")","v":{"$error":"#N/A"}},{"$f":"IF(INDIRECT(\"c\" & (VLOOKUP(Switch!$D$37,$F$2:$G$44,2,FALSE)+ROW()-2))=Switch!$D$37,INDIRECT(\"a\" & (VLOOKUP(Switch!$D$37,$F$2:$G$44,2,FALSE)+ROW()-2)),\"\")","v":{"$error":"#N/A"}},{"$f":"IF(INDIRECT(\"c\" & (VLOOKUP(Switch!$D$38,$F$2:$G$44,2,FALSE)+ROW()-2))=Switch!$D$38,INDIRECT(\"a\" & (VLOOKUP(Switch!$D$38,$F$2:$G$44,2,FALSE)+ROW()-2)),\"\")","v":{"$error":"#N/A"}},{"$f":"IF(INDIRECT(\"c\" & (VLOOKUP(Switch!$D$39,$F$2:$G$44,2,FALSE)+ROW()-2))=Switch!$D$39,INDIRECT(\"a\" & (VLOOKUP(Switch!$D$39,$F$2:$G$44,2,FALSE)+ROW()-2)),\"\")","v":{"$error":"#N/A"}},{"$f":"IF(INDIRECT(\"c\" & (VLOOKUP(Switch!$D$40,$F$2:$G$44,2,FALSE)+ROW()-2))=Switch!$D$40,INDIRECT(\"a\" & (VLOOKUP(Switch!$D$40,$F$2:$G$44,2,FALSE)+ROW()-2)),\"\")","v":{"$error":"#N/A"}},{"$f":"IF(INDIRECT(\"c\" & (VLOOKUP(Switch!$D$52,$F$2:$G$44,2,FALSE)+ROW()-2))=Switch!$D$52,INDIRECT(\"a\" & (VLOOKUP(Switch!$D$52,$F$2:$G$44,2,FALSE)+ROW()-2)),\"\")","v":{"$error":"#N/A"}},{"$f":"IF(INDIRECT(\"c\" & (VLOOKUP(Switch!$D$53,$F$2:$G$44,2,FALSE)+ROW()-2))=Switch!$D$53,INDIRECT(\"a\" & (VLOOKUP(Switch!$D$53,$F$2:$G$44,2,FALSE)+ROW()-2)),\"\")","v":{"$error":"#N/A"}},{"$f":"IF(INDIRECT(\"c\" & (VLOOKUP(Switch!$D$54,$F$2:$G$44,2,FALSE)+ROW()-2))=Switch!$D$54,INDIRECT(\"a\" & (VLOOKUP(Switch!$D$54,$F$2:$G$44,2,FALSE)+ROW()-2)),\"\")","v":{"$error":"#N/A"}},{"$f":"IF(INDIRECT(\"c\" & (VLOOKUP(Switch!$D$55,$F$2:$G$44,2,FALSE)+ROW()-2))=Switch!$D$55,INDIRECT(\"a\" & (VLOOKUP(Switch!$D$55,$F$2:$G$44,2,FALSE)+ROW()-2)),\"\")","v":{"$error":"#N/A"}},{"$f":"IF(INDIRECT(\"c\" & (VLOOKUP(Switch!$D$56,$F$2:$G$44,2,FALSE)+ROW()-2))=Switch!$D$56,INDIRECT(\"a\" & (VLOOKUP(Switch!$D$56,$F$2:$G$44,2,FALSE)+ROW()-2)),\"\")","v":{"$error":"#N/A"}},{"$f":"IF(INDIRECT(\"c\" & (VLOOKUP(Switch!$D$57,$F$2:$G$44,2,FALSE)+ROW()-2))=Switch!$D$57,INDIRECT(\"a\" & (VLOOKUP(Switch!$D$57,$F$2:$G$44,2,FALSE)+ROW()-2)),\"\")","v":{"$error":"#N/A"}},{"$f":"IF(INDIRECT(\"c\" & (VLOOKUP(Switch!$D$58,$F$2:$G$44,2,FALSE)+ROW()-2))=Switch!$D$58,INDIRECT(\"a\" & (VLOOKUP(Switch!$D$58,$F$2:$G$44,2,FALSE)+ROW()-2)),\"\")","v":{"$error":"#N/A"}},{"$f":"IF(INDIRECT(\"c\" & (VLOOKUP(Switch!$D$59,$F$2:$G$44,2,FALSE)+ROW()-2))=Switch!$D$59,INDIRECT(\"a\" & (VLOOKUP(Switch!$D$59,$F$2:$G$44,2,FALSE)+ROW()-2)),\"\")","v":{"$error":"#N/A"}},{"$f":"IF(INDIRECT(\"c\" & (VLOOKUP(Switch!$D$60,$F$2:$G$44,2,FALSE)+ROW()-2))=Switch!$D$60,INDIRECT(\"a\" & (VLOOKUP(Switch!$D$60,$F$2:$G$44,2,FALSE)+ROW()-2)),\"\")","v":{"$error":"#N/A"}},{"$f":"IF(INDIRECT(\"c\" & (VLOOKUP(Switch!$D$61,$F$2:$G$44,2,FALSE)+ROW()-2))=Switch!$D$61,INDIRECT(\"a\" & (VLOOKUP(Switch!$D$61,$F$2:$G$44,2,FALSE)+ROW()-2)),\"\")","v":{"$error":"#N/A"}},{"$f":"IF(INDIRECT(\"c\" & (VLOOKUP(Switch!$D$62,$F$2:$G$44,2,FALSE)+ROW()-2))=Switch!$D$62,INDIRECT(\"a\" & (VLOOKUP(Switch!$D$62,$F$2:$G$44,2,FALSE)+ROW()-2)),\"\")","v":{"$error":"#N/A"}},{"$f":"IF(INDIRECT(\"c\" & (VLOOKUP(Switch!$D$63,$F$2:$G$44,2,FALSE)+ROW()-2))=Switch!$D$63,INDIRECT(\"a\" & (VLOOKUP(Switch!$D$63,$F$2:$G$44,2,FALSE)+ROW()-2)),\"\")","v":{"$error":"#N/A"}},{"$f":"IF(INDIRECT(\"c\" & (VLOOKUP(Switch!$D$64,$F$2:$G$44,2,FALSE)+ROW()-2))=Switch!$D$64,INDIRECT(\"a\" & (VLOOKUP(Switch!$D$64,$F$2:$G$44,2,FALSE)+ROW()-2)),\"\")","v":{"$error":"#N/A"}},{"$f":"IF(INDIRECT(\"c\" & (VLOOKUP(Switch!$D$65,$F$2:$G$44,2,FALSE)+ROW()-2))=Switch!$D$65,INDIRECT(\"a\" & (VLOOKUP(Switch!$D$65,$F$2:$G$44,2,FALSE)+ROW()-2)),\"\")","v":{"$error":"#N/A"}},{"$f":"IF(INDIRECT(\"c\" & (VLOOKUP(Switch!$D$66,$F$2:$G$44,2,FALSE)+ROW()-2))=Switch!$D$66,INDIRECT(\"a\" & (VLOOKUP(Switch!$D$66,$F$2:$G$44,2,FALSE)+ROW()-2)),\"\")","v":{"$error":"#N/A"}}]
["Nedgroup Inv Bavata WW Fund Class A","NIBWC","Nedgroup Collective Investments Ltd",{"$f":"ROW()","v":354},null,null,{"$f":"VLOOKUP(F354,$C$2:$D$637,2,FALSE)","v":{"$error":"#N/A"}},{"$f":"IF(INDIRECT(\"c\" & (VLOOKUP(Switch!$D$26,$F$2:$G$44,2,FALSE)+ROW()-2))=Switch!$D$26,INDIRECT(\"a\" & (VLOOKUP(Switch!$D$26,$F$2:$G$44,2,FALSE)+ROW()-2)),\"\")","v":{"$error":"#N/A"}},{"$f":"IF(INDIRECT(\"c\" & (VLOOKUP(Switch!$D$27,$F$2:$G$44,2,FALSE)+ROW()-2))=Switch!$D$27,INDIRECT(\"a\" & (VLOOKUP(Switch!$D$27,$F$2:$G$44,2,FALSE)+ROW()-2)),\"\")","v":{"$error":"#N/A"}},{"$f":"IF(INDIRECT(\"c\" & (VLOOKUP(Switch!$D$28,$F$2:$G$44,2,FALSE)+ROW()-2))=Switch!$D$28,INDIRECT(\"a\" & (VLOOKUP(Switch!$D$28,$F$2:$G$44,2,FALSE)+ROW()-2)),\"\")","v":{"$error":"#N/A"}},{"$f":"IF(INDIRECT(\"c\" & (VLOOKUP(Switch!$D$29,$F$2:$G$44,2,FALSE)+ROW()-2))=Switch!$D$29,INDIRECT(\"a\" & (VLOOKUP(Switch!$D$29,$F$2:$G$44,2,FALSE)+ROW()-2)),\"\")","v":{"$error":"#N/A"}},{"$f":"IF(INDIRECT(\"c\" & (VLOOKUP(Switch!$D$30,$F$2:$G$44,2,FALSE)+ROW()-2))=Switch!$D$30,INDIRECT(\"a\" & (VLOOKUP(Switch!$D$30,$F$2:$G$44,2,FALSE)+ROW()-2)),\"\")","v":{"$error":"#N/A"}},{"$f":"IF(INDIRECT(\"c\" & (VLOOKUP(Switch!$D$31,$F$2:$G$44,2,FALSE)+ROW()-2))=Switch!$D$31,INDIRECT(\"a\" & (VLOOKUP(Switch!$D$31,$F$2:$G$44,2,FALSE)+ROW()-2)),\"\")","v":{"$error":"#N/A"}},{"$f":"IF(INDIRECT(\"c\" & (VLOOKUP(Switch!$D$32,$F$2:$G$44,2,FALSE)+ROW()-2))=Switch!$D$32,INDIRECT(\"a\" & (VLOOKUP(Switch!$D$32,$F$2:$G$44,2,FALSE)+ROW()-2)),\"\")","v":{"$error":"#N/A"}},{"$f":"IF(INDIRECT(\"c\" & (VLOOKUP(Switch!$D$33,$F$2:$G$44,2,FALSE)+ROW()-2))=Switch!$D$33,INDIRECT(\"a\" & (VLOOKUP(Switch!$D$33,$F$2:$G$44,2,FALSE)+ROW()-2)),\"\")","v":{"$error":"#N/A"}},{"$f":"IF(INDIRECT(\"c\" & (VLOOKUP(Switch!$D$34,$F$2:$G$44,2,FALSE)+ROW()-2))=Switch!$D$34,INDIRECT(\"a\" & (VLOOKUP(Switch!$D$34,$F$2:$G$44,2,FALSE)+ROW()-2)),\"\")","v":{"$error":"#N/A"}},{"$f":"IF(INDIRECT(\"c\" & (VLOOKUP(Switch!$D$35,$F$2:$G$44,2,FALSE)+ROW()-2))=Switch!$D$35,INDIRECT(\"a\" & (VLOOKUP(Switch!$D$35,$F$2:$G$44,2,FALSE)+ROW()-2)),\"\")","v":{"$error":"#N/A"}},{"$f":"IF(INDIRECT(\"c\" & (VLOOKUP(Switch!$D$36,$F$2:$G$44,2,FALSE)+ROW()-2))=Switch!$D$36,INDIRECT(\"a\" & (VLOOKUP(Switch!$D$36,$F$2:$G$44,2,FALSE)+ROW()-2)),\"\")","v":{"$error":"#N/A"}},{"$f":"IF(INDIRECT(\"c\" & (VLOOKUP(Switch!$D$37,$F$2:$G$44,2,FALSE)+ROW()-2))=Switch!$D$37,INDIRECT(\"a\" & (VLOOKUP(Switch!$D$37,$F$2:$G$44,2,FALSE)+ROW()-2)),\"\")","v":{"$error":"#N/A"}},{"$f":"IF(INDIRECT(\"c\" & (VLOOKUP(Switch!$D$38,$F$2:$G$44,2,FALSE)+ROW()-2))=Switch!$D$38,INDIRECT(\"a\" & (VLOOKUP(Switch!$D$38,$F$2:$G$44,2,FALSE)+ROW()-2)),\"\")","v":{"$error":"#N/A"}},{"$f":"IF(INDIRECT(\"c\" & (VLOOKUP(Switch!$D$39,$F$2:$G$44,2,FALSE)+ROW()-2))=Switch!$D$39,INDIRECT(\"a\" & (VLOOKUP(Switch!$D$39,$F$2:$G$44,2,FALSE)+ROW()-2)),\"\")","v":{"$error":"#N/A"}},{"$f":"IF(INDIRECT(\"c\" & (VLOOKUP(Switch!$D$40,$F$2:$G$44,2,FALSE)+ROW()-2))=Switch!$D$40,INDIRECT(\"a\" & (VLOOKUP(Switch!$D$40,$F$2:$G$44,2,FALSE)+ROW()-2)),\"\")","v":{"$error":"#N/A"}},{"$f":"IF(INDIRECT(\"c\" & (VLOOKUP(Switch!$D$52,$F$2:$G$44,2,FALSE)+ROW()-2))=Switch!$D$52,INDIRECT(\"a\" & (VLOOKUP(Switch!$D$52,$F$2:$G$44,2,FALSE)+ROW()-2)),\"\")","v":{"$error":"#N/A"}},{"$f":"IF(INDIRECT(\"c\" & (VLOOKUP(Switch!$D$53,$F$2:$G$44,2,FALSE)+ROW()-2))=Switch!$D$53,INDIRECT(\"a\" & (VLOOKUP(Switch!$D$53,$F$2:$G$44,2,FALSE)+ROW()-2)),\"\")","v":{"$error":"#N/A"}},{"$f":"IF(INDIRECT(\"c\" & (VLOOKUP(Switch!$D$54,$F$2:$G$44,2,FALSE)+ROW()-2))=Switch!$D$54,INDIRECT(\"a\" & (VLOOKUP(Switch!$D$54,$F$2:$G$44,2,FALSE)+ROW()-2)),\"\")","v":{"$error":"#N/A"}},{"$f":"IF(INDIRECT(\"c\" & (VLOOKUP(Switch!$D$55,$F$2:$G$44,2,FALSE)+ROW()-2))=Switch!$D$55,INDIRECT(\"a\" & (VLOOKUP(Switch!$D$55,$F$2:$G$44,2,FALSE)+ROW()-2)),\"\")","v":{"$error":"#N/A"}},{"$f":"IF(INDIRECT(\"c\" & (VLOOKUP(Switch!$D$56,$F$2:$G$44,2,FALSE)+ROW()-2))=Switch!$D$56,INDIRECT(\"a\" & (VLOOKUP(Switch!$D$56,$F$2:$G$44,2,FALSE)+ROW()-2)),\"\")","v":{"$error":"#N/A"}},{"$f":"IF(INDIRECT(\"c\" & (VLOOKUP(Switch!$D$57,$F$2:$G$44,2,FALSE)+ROW()-2))=Switch!$D$57,INDIRECT(\"a\" & (VLOOKUP(Switch!$D$57,$F$2:$G$44,2,FALSE)+ROW()-2)),\"\")","v":{"$error":"#N/A"}},{"$f":"IF(INDIRECT(\"c\" & (VLOOKUP(Switch!$D$58,$F$2:$G$44,2,FALSE)+ROW()-2))=Switch!$D$58,INDIRECT(\"a\" & (VLOOKUP(Switch!$D$58,$F$2:$G$44,2,FALSE)+ROW()-2)),\"\")","v":{"$error":"#N/A"}},{"$f":"IF(INDIRECT(\"c\" & (VLOOKUP(Switch!$D$59,$F$2:$G$44,2,FALSE)+ROW()-2))=Switch!$D$59,INDIRECT(\"a\" & (VLOOKUP(Switch!$D$59,$F$2:$G$44,2,FALSE)+ROW()-2)),\"\")","v":{"$error":"#N/A"}},{"$f":"IF(INDIRECT(\"c\" & (VLOOKUP(Switch!$D$60,$F$2:$G$44,2,FALSE)+ROW()-2))=Switch!$D$60,INDIRECT(\"a\" & (VLOOKUP(Switch!$D$60,$F$2:$G$44,2,FALSE)+ROW()-2)),\"\")","v":{"$error":"#N/A"}},{"$f":"IF(INDIRECT(\"c\" & (VLOOKUP(Switch!$D$61,$F$2:$G$44,2,FALSE)+ROW()-2))=Switch!$D$61,INDIRECT(\"a\" & (VLOOKUP(Switch!$D$61,$F$2:$G$44,2,FALSE)+ROW()-2)),\"\")","v":{"$error":"#N/A"}},{"$f":"IF(INDIRECT(\"c\" & (VLOOKUP(Switch!$D$62,$F$2:$G$44,2,FALSE)+ROW()-2))=Switch!$D$62,INDIRECT(\"a\" & (VLOOKUP(Switch!$D$62,$F$2:$G$44,2,FALSE)+ROW()-2)),\"\")","v":{"$error":"#N/A"}},{"$f":"IF(INDIRECT(\"c\" & (VLOOKUP(Switch!$D$63,$F$2:$G$44,2,FALSE)+ROW()-2))=Switch!$D$63,INDIRECT(\"a\" & (VLOOKUP(Switch!$D$63,$F$2:$G$44,2,FALSE)+ROW()-2)),\"\")","v":{"$error":"#N/A"}},{"$f":"IF(INDIRECT(\"c\" & (VLOOKUP(Switch!$D$64,$F$2:$G$44,2,FALSE)+ROW()-2))=Switch!$D$64,INDIRECT(\"a\" & (VLOOKUP(Switch!$D$64,$F$2:$G$44,2,FALSE)+ROW()-2)),\"\")","v":{"$error":"#N/A"}},{"$f":"IF(INDIRECT(\"c\" & (VLOOKUP(Switch!$D$65,$F$2:$G$44,2,FALSE)+ROW()-2))=Switch!$D$65,INDIRECT(\"a\" & (VLOOKUP(Switch!$D$65,$F$2:$G$44,2,FALSE)+ROW()-2)),\"\")","v":{"$error":"#N/A"}},{"$f":"IF(INDIRECT(\"c\" & (VLOOKUP(Switch!$D$66,$F$2:$G$44,2,FALSE)+ROW()-2))=Switch!$D$66,INDIRECT(\"a\" & (VLOOKUP(Switch!$D$66,$F$2:$G$44,2,FALSE)+ROW()-2)),\"\")","v":{"$error":"#N/A"}}]
["Nedgroup Investments Bravata Worldwide Flexible Fund C","NIBWC","Nedgroup Collective Investments Ltd",{"$f":"ROW()","v":355},null,null,{"$f":"VLOOKUP(F355,$C$2:$D$637,2,FALSE)","v":{"$error":"#N/A"}},{"$f":"IF(INDIRECT(\"c\" & (VLOOKUP(Switch!$D$26,$F$2:$G$44,2,FALSE)+ROW()-2))=Switch!$D$26,INDIRECT(\"a\" & (VLOOKUP(Switch!$D$26,$F$2:$G$44,2,FALSE)+ROW()-2)),\"\")","v":{"$error":"#N/A"}},{"$f":"IF(INDIRECT(\"c\" & (VLOOKUP(Switch!$D$27,$F$2:$G$44,2,FALSE)+ROW()-2))=Switch!$D$27,INDIRECT(\"a\" & (VLOOKUP(Switch!$D$27,$F$2:$G$44,2,FALSE)+ROW()-2)),\"\")","v":{"$error":"#N/A"}},{"$f":"IF(INDIRECT(\"c\" & (VLOOKUP(Switch!$D$28,$F$2:$G$44,2,FALSE)+ROW()-2))=Switch!$D$28,INDIRECT(\"a\" & (VLOOKUP(Switch!$D$28,$F$2:$G$44,2,FALSE)+ROW()-2)),\"\")","v":{"$error":"#N/A"}},{"$f":"IF(INDIRECT(\"c\" & (VLOOKUP(Switch!$D$29,$F$2:$G$44,2,FALSE)+ROW()-2))=Switch!$D$29,INDIRECT(\"a\" & (VLOOKUP(Switch!$D$29,$F$2:$G$44,2,FALSE)+ROW()-2)),\"\")","v":{"$error":"#N/A"}},{"$f":"IF(INDIRECT(\"c\" & (VLOOKUP(Switch!$D$30,$F$2:$G$44,2,FALSE)+ROW()-2))=Switch!$D$30,INDIRECT(\"a\" & (VLOOKUP(Switch!$D$30,$F$2:$G$44,2,FALSE)+ROW()-2)),\"\")","v":{"$error":"#N/A"}},{"$f":"IF(INDIRECT(\"c\" & (VLOOKUP(Switch!$D$31,$F$2:$G$44,2,FALSE)+ROW()-2))=Switch!$D$31,INDIRECT(\"a\" & (VLOOKUP(Switch!$D$31,$F$2:$G$44,2,FALSE)+ROW()-2)),\"\")","v":{"$error":"#N/A"}},{"$f":"IF(INDIRECT(\"c\" & (VLOOKUP(Switch!$D$32,$F$2:$G$44,2,FALSE)+ROW()-2))=Switch!$D$32,INDIRECT(\"a\" & (VLOOKUP(Switch!$D$32,$F$2:$G$44,2,FALSE)+ROW()-2)),\"\")","v":{"$error":"#N/A"}},{"$f":"IF(INDIRECT(\"c\" & (VLOOKUP(Switch!$D$33,$F$2:$G$44,2,FALSE)+ROW()-2))=Switch!$D$33,INDIRECT(\"a\" & (VLOOKUP(Switch!$D$33,$F$2:$G$44,2,FALSE)+ROW()-2)),\"\")","v":{"$error":"#N/A"}},{"$f":"IF(INDIRECT(\"c\" & (VLOOKUP(Switch!$D$34,$F$2:$G$44,2,FALSE)+ROW()-2))=Switch!$D$34,INDIRECT(\"a\" & (VLOOKUP(Switch!$D$34,$F$2:$G$44,2,FALSE)+ROW()-2)),\"\")","v":{"$error":"#N/A"}},{"$f":"IF(INDIRECT(\"c\" & (VLOOKUP(Switch!$D$35,$F$2:$G$44,2,FALSE)+ROW()-2))=Switch!$D$35,INDIRECT(\"a\" & (VLOOKUP(Switch!$D$35,$F$2:$G$44,2,FALSE)+ROW()-2)),\"\")","v":{"$error":"#N/A"}},{"$f":"IF(INDIRECT(\"c\" & (VLOOKUP(Switch!$D$36,$F$2:$G$44,2,FALSE)+ROW()-2))=Switch!$D$36,INDIRECT(\"a\" & (VLOOKUP(Switch!$D$36,$F$2:$G$44,2,FALSE)+ROW()-2)),\"\")","v":{"$error":"#N/A"}},{"$f":"IF(INDIRECT(\"c\" & (VLOOKUP(Switch!$D$37,$F$2:$G$44,2,FALSE)+ROW()-2))=Switch!$D$37,INDIRECT(\"a\" & (VLOOKUP(Switch!$D$37,$F$2:$G$44,2,FALSE)+ROW()-2)),\"\")","v":{"$error":"#N/A"}},{"$f":"IF(INDIRECT(\"c\" & (VLOOKUP(Switch!$D$38,$F$2:$G$44,2,FALSE)+ROW()-2))=Switch!$D$38,INDIRECT(\"a\" & (VLOOKUP(Switch!$D$38,$F$2:$G$44,2,FALSE)+ROW()-2)),\"\")","v":{"$error":"#N/A"}},{"$f":"IF(INDIRECT(\"c\" & (VLOOKUP(Switch!$D$39,$F$2:$G$44,2,FALSE)+ROW()-2))=Switch!$D$39,INDIRECT(\"a\" & (VLOOKUP(Switch!$D$39,$F$2:$G$44,2,FALSE)+ROW()-2)),\"\")","v":{"$error":"#N/A"}},{"$f":"IF(INDIRECT(\"c\" & (VLOOKUP(Switch!$D$40,$F$2:$G$44,2,FALSE)+ROW()-2))=Switch!$D$40,INDIRECT(\"a\" & (VLOOKUP(Switch!$D$40,$F$2:$G$44,2,FALSE)+ROW()-2)),\"\")","v":{"$error":"#N/A"}},{"$f":"IF(INDIRECT(\"c\" & (VLOOKUP(Switch!$D$52,$F$2:$G$44,2,FALSE)+ROW()-2))=Switch!$D$52,INDIRECT(\"a\" & (VLOOKUP(Switch!$D$52,$F$2:$G$44,2,FALSE)+ROW()-2)),\"\")","v":{"$error":"#N/A"}},{"$f":"IF(INDIRECT(\"c\" & (VLOOKUP(Switch!$D$53,$F$2:$G$44,2,FALSE)+ROW()-2))=Switch!$D$53,INDIRECT(\"a\" & (VLOOKUP(Switch!$D$53,$F$2:$G$44,2,FALSE)+ROW()-2)),\"\")","v":{"$error":"#N/A"}},{"$f":"IF(INDIRECT(\"c\" & (VLOOKUP(Switch!$D$54,$F$2:$G$44,2,FALSE)+ROW()-2))=Switch!$D$54,INDIRECT(\"a\" & (VLOOKUP(Switch!$D$54,$F$2:$G$44,2,FALSE)+ROW()-2)),\"\")","v":{"$error":"#N/A"}},{"$f":"IF(INDIRECT(\"c\" & (VLOOKUP(Switch!$D$55,$F$2:$G$44,2,FALSE)+ROW()-2))=Switch!$D$55,INDIRECT(\"a\" & (VLOOKUP(Switch!$D$55,$F$2:$G$44,2,FALSE)+ROW()-2)),\"\")","v":{"$error":"#N/A"}},{"$f":"IF(INDIRECT(\"c\" & (VLOOKUP(Switch!$D$56,$F$2:$G$44,2,FALSE)+ROW()-2))=Switch!$D$56,INDIRECT(\"a\" & (VLOOKUP(Switch!$D$56,$F$2:$G$44,2,FALSE)+ROW()-2)),\"\")","v":{"$error":"#N/A"}},{"$f":"IF(INDIRECT(\"c\" & (VLOOKUP(Switch!$D$57,$F$2:$G$44,2,FALSE)+ROW()-2))=Switch!$D$57,INDIRECT(\"a\" & (VLOOKUP(Switch!$D$57,$F$2:$G$44,2,FALSE)+ROW()-2)),\"\")","v":{"$error":"#N/A"}},{"$f":"IF(INDIRECT(\"c\" & (VLOOKUP(Switch!$D$58,$F$2:$G$44,2,FALSE)+ROW()-2))=Switch!$D$58,INDIRECT(\"a\" & (VLOOKUP(Switch!$D$58,$F$2:$G$44,2,FALSE)+ROW()-2)),\"\")","v":{"$error":"#N/A"}},{"$f":"IF(INDIRECT(\"c\" & (VLOOKUP(Switch!$D$59,$F$2:$G$44,2,FALSE)+ROW()-2))=Switch!$D$59,INDIRECT(\"a\" & (VLOOKUP(Switch!$D$59,$F$2:$G$44,2,FALSE)+ROW()-2)),\"\")","v":{"$error":"#N/A"}},{"$f":"IF(INDIRECT(\"c\" & (VLOOKUP(Switch!$D$60,$F$2:$G$44,2,FALSE)+ROW()-2))=Switch!$D$60,INDIRECT(\"a\" & (VLOOKUP(Switch!$D$60,$F$2:$G$44,2,FALSE)+ROW()-2)),\"\")","v":{"$error":"#N/A"}},{"$f":"IF(INDIRECT(\"c\" & (VLOOKUP(Switch!$D$61,$F$2:$G$44,2,FALSE)+ROW()-2))=Switch!$D$61,INDIRECT(\"a\" & (VLOOKUP(Switch!$D$61,$F$2:$G$44,2,FALSE)+ROW()-2)),\"\")","v":{"$error":"#N/A"}},{"$f":"IF(INDIRECT(\"c\" & (VLOOKUP(Switch!$D$62,$F$2:$G$44,2,FALSE)+ROW()-2))=Switch!$D$62,INDIRECT(\"a\" & (VLOOKUP(Switch!$D$62,$F$2:$G$44,2,FALSE)+ROW()-2)),\"\")","v":{"$error":"#N/A"}},{"$f":"IF(INDIRECT(\"c\" & (VLOOKUP(Switch!$D$63,$F$2:$G$44,2,FALSE)+ROW()-2))=Switch!$D$63,INDIRECT(\"a\" & (VLOOKUP(Switch!$D$63,$F$2:$G$44,2,FALSE)+ROW()-2)),\"\")","v":{"$error":"#N/A"}},{"$f":"IF(INDIRECT(\"c\" & (VLOOKUP(Switch!$D$64,$F$2:$G$44,2,FALSE)+ROW()-2))=Switch!$D$64,INDIRECT(\"a\" & (VLOOKUP(Switch!$D$64,$F$2:$G$44,2,FALSE)+ROW()-2)),\"\")","v":{"$error":"#N/A"}},{"$f":"IF(INDIRECT(\"c\" & (VLOOKUP(Switch!$D$65,$F$2:$G$44,2,FALSE)+ROW()-2))=Switch!$D$65,INDIRECT(\"a\" & (VLOOKUP(Switch!$D$65,$F$2:$G$44,2,FALSE)+ROW()-2)),\"\")","v":{"$error":"#N/A"}},{"$f":"IF(INDIRECT(\"c\" & (VLOOKUP(Switch!$D$66,$F$2:$G$44,2,FALSE)+ROW()-2))=Switch!$D$66,INDIRECT(\"a\" & (VLOOKUP(Switch!$D$66,$F$2:$G$44,2,FALSE)+ROW()-2)),\"\")","v":{"$error":"#N/A"}}]
["Nedgroup Inv Balanced Fund  G","TMBFG","Nedgroup Collective Investments Ltd",{"$f":"ROW()","v":356},null,null,{"$f":"VLOOKUP(F356,$C$2:$D$637,2,FALSE)","v":{"$error":"#N/A"}},{"$f":"IF(INDIRECT(\"c\" & (VLOOKUP(Switch!$D$26,$F$2:$G$44,2,FALSE)+ROW()-2))=Switch!$D$26,INDIRECT(\"a\" & (VLOOKUP(Switch!$D$26,$F$2:$G$44,2,FALSE)+ROW()-2)),\"\")","v":{"$error":"#N/A"}},{"$f":"IF(INDIRECT(\"c\" & (VLOOKUP(Switch!$D$27,$F$2:$G$44,2,FALSE)+ROW()-2))=Switch!$D$27,INDIRECT(\"a\" & (VLOOKUP(Switch!$D$27,$F$2:$G$44,2,FALSE)+ROW()-2)),\"\")","v":{"$error":"#N/A"}},{"$f":"IF(INDIRECT(\"c\" & (VLOOKUP(Switch!$D$28,$F$2:$G$44,2,FALSE)+ROW()-2))=Switch!$D$28,INDIRECT(\"a\" & (VLOOKUP(Switch!$D$28,$F$2:$G$44,2,FALSE)+ROW()-2)),\"\")","v":{"$error":"#N/A"}},{"$f":"IF(INDIRECT(\"c\" & (VLOOKUP(Switch!$D$29,$F$2:$G$44,2,FALSE)+ROW()-2))=Switch!$D$29,INDIRECT(\"a\" & (VLOOKUP(Switch!$D$29,$F$2:$G$44,2,FALSE)+ROW()-2)),\"\")","v":{"$error":"#N/A"}},{"$f":"IF(INDIRECT(\"c\" & (VLOOKUP(Switch!$D$30,$F$2:$G$44,2,FALSE)+ROW()-2))=Switch!$D$30,INDIRECT(\"a\" & (VLOOKUP(Switch!$D$30,$F$2:$G$44,2,FALSE)+ROW()-2)),\"\")","v":{"$error":"#N/A"}},{"$f":"IF(INDIRECT(\"c\" & (VLOOKUP(Switch!$D$31,$F$2:$G$44,2,FALSE)+ROW()-2))=Switch!$D$31,INDIRECT(\"a\" & (VLOOKUP(Switch!$D$31,$F$2:$G$44,2,FALSE)+ROW()-2)),\"\")","v":{"$error":"#N/A"}},{"$f":"IF(INDIRECT(\"c\" & (VLOOKUP(Switch!$D$32,$F$2:$G$44,2,FALSE)+ROW()-2))=Switch!$D$32,INDIRECT(\"a\" & (VLOOKUP(Switch!$D$32,$F$2:$G$44,2,FALSE)+ROW()-2)),\"\")","v":{"$error":"#N/A"}},{"$f":"IF(INDIRECT(\"c\" & (VLOOKUP(Switch!$D$33,$F$2:$G$44,2,FALSE)+ROW()-2))=Switch!$D$33,INDIRECT(\"a\" & (VLOOKUP(Switch!$D$33,$F$2:$G$44,2,FALSE)+ROW()-2)),\"\")","v":{"$error":"#N/A"}},{"$f":"IF(INDIRECT(\"c\" & (VLOOKUP(Switch!$D$34,$F$2:$G$44,2,FALSE)+ROW()-2))=Switch!$D$34,INDIRECT(\"a\" & (VLOOKUP(Switch!$D$34,$F$2:$G$44,2,FALSE)+ROW()-2)),\"\")","v":{"$error":"#N/A"}},{"$f":"IF(INDIRECT(\"c\" & (VLOOKUP(Switch!$D$35,$F$2:$G$44,2,FALSE)+ROW()-2))=Switch!$D$35,INDIRECT(\"a\" & (VLOOKUP(Switch!$D$35,$F$2:$G$44,2,FALSE)+ROW()-2)),\"\")","v":{"$error":"#N/A"}},{"$f":"IF(INDIRECT(\"c\" & (VLOOKUP(Switch!$D$36,$F$2:$G$44,2,FALSE)+ROW()-2))=Switch!$D$36,INDIRECT(\"a\" & (VLOOKUP(Switch!$D$36,$F$2:$G$44,2,FALSE)+ROW()-2)),\"\")","v":{"$error":"#N/A"}},{"$f":"IF(INDIRECT(\"c\" & (VLOOKUP(Switch!$D$37,$F$2:$G$44,2,FALSE)+ROW()-2))=Switch!$D$37,INDIRECT(\"a\" & (VLOOKUP(Switch!$D$37,$F$2:$G$44,2,FALSE)+ROW()-2)),\"\")","v":{"$error":"#N/A"}},{"$f":"IF(INDIRECT(\"c\" & (VLOOKUP(Switch!$D$38,$F$2:$G$44,2,FALSE)+ROW()-2))=Switch!$D$38,INDIRECT(\"a\" & (VLOOKUP(Switch!$D$38,$F$2:$G$44,2,FALSE)+ROW()-2)),\"\")","v":{"$error":"#N/A"}},{"$f":"IF(INDIRECT(\"c\" & (VLOOKUP(Switch!$D$39,$F$2:$G$44,2,FALSE)+ROW()-2))=Switch!$D$39,INDIRECT(\"a\" & (VLOOKUP(Switch!$D$39,$F$2:$G$44,2,FALSE)+ROW()-2)),\"\")","v":{"$error":"#N/A"}},{"$f":"IF(INDIRECT(\"c\" & (VLOOKUP(Switch!$D$40,$F$2:$G$44,2,FALSE)+ROW()-2))=Switch!$D$40,INDIRECT(\"a\" & (VLOOKUP(Switch!$D$40,$F$2:$G$44,2,FALSE)+ROW()-2)),\"\")","v":{"$error":"#N/A"}},{"$f":"IF(INDIRECT(\"c\" & (VLOOKUP(Switch!$D$52,$F$2:$G$44,2,FALSE)+ROW()-2))=Switch!$D$52,INDIRECT(\"a\" & (VLOOKUP(Switch!$D$52,$F$2:$G$44,2,FALSE)+ROW()-2)),\"\")","v":{"$error":"#N/A"}},{"$f":"IF(INDIRECT(\"c\" & (VLOOKUP(Switch!$D$53,$F$2:$G$44,2,FALSE)+ROW()-2))=Switch!$D$53,INDIRECT(\"a\" & (VLOOKUP(Switch!$D$53,$F$2:$G$44,2,FALSE)+ROW()-2)),\"\")","v":{"$error":"#N/A"}},{"$f":"IF(INDIRECT(\"c\" & (VLOOKUP(Switch!$D$54,$F$2:$G$44,2,FALSE)+ROW()-2))=Switch!$D$54,INDIRECT(\"a\" & (VLOOKUP(Switch!$D$54,$F$2:$G$44,2,FALSE)+ROW()-2)),\"\")","v":{"$error":"#N/A"}},{"$f":"IF(INDIRECT(\"c\" & (VLOOKUP(Switch!$D$55,$F$2:$G$44,2,FALSE)+ROW()-2))=Switch!$D$55,INDIRECT(\"a\" & (VLOOKUP(Switch!$D$55,$F$2:$G$44,2,FALSE)+ROW()-2)),\"\")","v":{"$error":"#N/A"}},{"$f":"IF(INDIRECT(\"c\" & (VLOOKUP(Switch!$D$56,$F$2:$G$44,2,FALSE)+ROW()-2))=Switch!$D$56,INDIRECT(\"a\" & (VLOOKUP(Switch!$D$56,$F$2:$G$44,2,FALSE)+ROW()-2)),\"\")","v":{"$error":"#N/A"}},{"$f":"IF(INDIRECT(\"c\" & (VLOOKUP(Switch!$D$57,$F$2:$G$44,2,FALSE)+ROW()-2))=Switch!$D$57,INDIRECT(\"a\" & (VLOOKUP(Switch!$D$57,$F$2:$G$44,2,FALSE)+ROW()-2)),\"\")","v":{"$error":"#N/A"}},{"$f":"IF(INDIRECT(\"c\" & (VLOOKUP(Switch!$D$58,$F$2:$G$44,2,FALSE)+ROW()-2))=Switch!$D$58,INDIRECT(\"a\" & (VLOOKUP(Switch!$D$58,$F$2:$G$44,2,FALSE)+ROW()-2)),\"\")","v":{"$error":"#N/A"}},{"$f":"IF(INDIRECT(\"c\" & (VLOOKUP(Switch!$D$59,$F$2:$G$44,2,FALSE)+ROW()-2))=Switch!$D$59,INDIRECT(\"a\" & (VLOOKUP(Switch!$D$59,$F$2:$G$44,2,FALSE)+ROW()-2)),\"\")","v":{"$error":"#N/A"}},{"$f":"IF(INDIRECT(\"c\" & (VLOOKUP(Switch!$D$60,$F$2:$G$44,2,FALSE)+ROW()-2))=Switch!$D$60,INDIRECT(\"a\" & (VLOOKUP(Switch!$D$60,$F$2:$G$44,2,FALSE)+ROW()-2)),\"\")","v":{"$error":"#N/A"}},{"$f":"IF(INDIRECT(\"c\" & (VLOOKUP(Switch!$D$61,$F$2:$G$44,2,FALSE)+ROW()-2))=Switch!$D$61,INDIRECT(\"a\" & (VLOOKUP(Switch!$D$61,$F$2:$G$44,2,FALSE)+ROW()-2)),\"\")","v":{"$error":"#N/A"}},{"$f":"IF(INDIRECT(\"c\" & (VLOOKUP(Switch!$D$62,$F$2:$G$44,2,FALSE)+ROW()-2))=Switch!$D$62,INDIRECT(\"a\" & (VLOOKUP(Switch!$D$62,$F$2:$G$44,2,FALSE)+ROW()-2)),\"\")","v":{"$error":"#N/A"}},{"$f":"IF(INDIRECT(\"c\" & (VLOOKUP(Switch!$D$63,$F$2:$G$44,2,FALSE)+ROW()-2))=Switch!$D$63,INDIRECT(\"a\" & (VLOOKUP(Switch!$D$63,$F$2:$G$44,2,FALSE)+ROW()-2)),\"\")","v":{"$error":"#N/A"}},{"$f":"IF(INDIRECT(\"c\" & (VLOOKUP(Switch!$D$64,$F$2:$G$44,2,FALSE)+ROW()-2))=Switch!$D$64,INDIRECT(\"a\" & (VLOOKUP(Switch!$D$64,$F$2:$G$44,2,FALSE)+ROW()-2)),\"\")","v":{"$error":"#N/A"}},{"$f":"IF(INDIRECT(\"c\" & (VLOOKUP(Switch!$D$65,$F$2:$G$44,2,FALSE)+ROW()-2))=Switch!$D$65,INDIRECT(\"a\" & (VLOOKUP(Switch!$D$65,$F$2:$G$44,2,FALSE)+ROW()-2)),\"\")","v":{"$error":"#N/A"}},{"$f":"IF(INDIRECT(\"c\" & (VLOOKUP(Switch!$D$66,$F$2:$G$44,2,FALSE)+ROW()-2))=Switch!$D$66,INDIRECT(\"a\" & (VLOOKUP(Switch!$D$66,$F$2:$G$44,2,FALSE)+ROW()-2)),\"\")","v":{"$error":"#N/A"}}]
["Nedgroup Investments Core Accelerated Fund B","NICFCB","Nedgroup Collective Investments Ltd",{"$f":"ROW()","v":357},null,null,{"$f":"VLOOKUP(F357,$C$2:$D$637,2,FALSE)","v":{"$error":"#N/A"}},{"$f":"IF(INDIRECT(\"c\" & (VLOOKUP(Switch!$D$26,$F$2:$G$44,2,FALSE)+ROW()-2))=Switch!$D$26,INDIRECT(\"a\" & (VLOOKUP(Switch!$D$26,$F$2:$G$44,2,FALSE)+ROW()-2)),\"\")","v":{"$error":"#N/A"}},{"$f":"IF(INDIRECT(\"c\" & (VLOOKUP(Switch!$D$27,$F$2:$G$44,2,FALSE)+ROW()-2))=Switch!$D$27,INDIRECT(\"a\" & (VLOOKUP(Switch!$D$27,$F$2:$G$44,2,FALSE)+ROW()-2)),\"\")","v":{"$error":"#N/A"}},{"$f":"IF(INDIRECT(\"c\" & (VLOOKUP(Switch!$D$28,$F$2:$G$44,2,FALSE)+ROW()-2))=Switch!$D$28,INDIRECT(\"a\" & (VLOOKUP(Switch!$D$28,$F$2:$G$44,2,FALSE)+ROW()-2)),\"\")","v":{"$error":"#N/A"}},{"$f":"IF(INDIRECT(\"c\" & (VLOOKUP(Switch!$D$29,$F$2:$G$44,2,FALSE)+ROW()-2))=Switch!$D$29,INDIRECT(\"a\" & (VLOOKUP(Switch!$D$29,$F$2:$G$44,2,FALSE)+ROW()-2)),\"\")","v":{"$error":"#N/A"}},{"$f":"IF(INDIRECT(\"c\" & (VLOOKUP(Switch!$D$30,$F$2:$G$44,2,FALSE)+ROW()-2))=Switch!$D$30,INDIRECT(\"a\" & (VLOOKUP(Switch!$D$30,$F$2:$G$44,2,FALSE)+ROW()-2)),\"\")","v":{"$error":"#N/A"}},{"$f":"IF(INDIRECT(\"c\" & (VLOOKUP(Switch!$D$31,$F$2:$G$44,2,FALSE)+ROW()-2))=Switch!$D$31,INDIRECT(\"a\" & (VLOOKUP(Switch!$D$31,$F$2:$G$44,2,FALSE)+ROW()-2)),\"\")","v":{"$error":"#N/A"}},{"$f":"IF(INDIRECT(\"c\" & (VLOOKUP(Switch!$D$32,$F$2:$G$44,2,FALSE)+ROW()-2))=Switch!$D$32,INDIRECT(\"a\" & (VLOOKUP(Switch!$D$32,$F$2:$G$44,2,FALSE)+ROW()-2)),\"\")","v":{"$error":"#N/A"}},{"$f":"IF(INDIRECT(\"c\" & (VLOOKUP(Switch!$D$33,$F$2:$G$44,2,FALSE)+ROW()-2))=Switch!$D$33,INDIRECT(\"a\" & (VLOOKUP(Switch!$D$33,$F$2:$G$44,2,FALSE)+ROW()-2)),\"\")","v":{"$error":"#N/A"}},{"$f":"IF(INDIRECT(\"c\" & (VLOOKUP(Switch!$D$34,$F$2:$G$44,2,FALSE)+ROW()-2))=Switch!$D$34,INDIRECT(\"a\" & (VLOOKUP(Switch!$D$34,$F$2:$G$44,2,FALSE)+ROW()-2)),\"\")","v":{"$error":"#N/A"}},{"$f":"IF(INDIRECT(\"c\" & (VLOOKUP(Switch!$D$35,$F$2:$G$44,2,FALSE)+ROW()-2))=Switch!$D$35,INDIRECT(\"a\" & (VLOOKUP(Switch!$D$35,$F$2:$G$44,2,FALSE)+ROW()-2)),\"\")","v":{"$error":"#N/A"}},{"$f":"IF(INDIRECT(\"c\" & (VLOOKUP(Switch!$D$36,$F$2:$G$44,2,FALSE)+ROW()-2))=Switch!$D$36,INDIRECT(\"a\" & (VLOOKUP(Switch!$D$36,$F$2:$G$44,2,FALSE)+ROW()-2)),\"\")","v":{"$error":"#N/A"}},{"$f":"IF(INDIRECT(\"c\" & (VLOOKUP(Switch!$D$37,$F$2:$G$44,2,FALSE)+ROW()-2))=Switch!$D$37,INDIRECT(\"a\" & (VLOOKUP(Switch!$D$37,$F$2:$G$44,2,FALSE)+ROW()-2)),\"\")","v":{"$error":"#N/A"}},{"$f":"IF(INDIRECT(\"c\" & (VLOOKUP(Switch!$D$38,$F$2:$G$44,2,FALSE)+ROW()-2))=Switch!$D$38,INDIRECT(\"a\" & (VLOOKUP(Switch!$D$38,$F$2:$G$44,2,FALSE)+ROW()-2)),\"\")","v":{"$error":"#N/A"}},{"$f":"IF(INDIRECT(\"c\" & (VLOOKUP(Switch!$D$39,$F$2:$G$44,2,FALSE)+ROW()-2))=Switch!$D$39,INDIRECT(\"a\" & (VLOOKUP(Switch!$D$39,$F$2:$G$44,2,FALSE)+ROW()-2)),\"\")","v":{"$error":"#N/A"}},{"$f":"IF(INDIRECT(\"c\" & (VLOOKUP(Switch!$D$40,$F$2:$G$44,2,FALSE)+ROW()-2))=Switch!$D$40,INDIRECT(\"a\" & (VLOOKUP(Switch!$D$40,$F$2:$G$44,2,FALSE)+ROW()-2)),\"\")","v":{"$error":"#N/A"}},{"$f":"IF(INDIRECT(\"c\" & (VLOOKUP(Switch!$D$52,$F$2:$G$44,2,FALSE)+ROW()-2))=Switch!$D$52,INDIRECT(\"a\" & (VLOOKUP(Switch!$D$52,$F$2:$G$44,2,FALSE)+ROW()-2)),\"\")","v":{"$error":"#N/A"}},{"$f":"IF(INDIRECT(\"c\" & (VLOOKUP(Switch!$D$53,$F$2:$G$44,2,FALSE)+ROW()-2))=Switch!$D$53,INDIRECT(\"a\" & (VLOOKUP(Switch!$D$53,$F$2:$G$44,2,FALSE)+ROW()-2)),\"\")","v":{"$error":"#N/A"}},{"$f":"IF(INDIRECT(\"c\" & (VLOOKUP(Switch!$D$54,$F$2:$G$44,2,FALSE)+ROW()-2))=Switch!$D$54,INDIRECT(\"a\" & (VLOOKUP(Switch!$D$54,$F$2:$G$44,2,FALSE)+ROW()-2)),\"\")","v":{"$error":"#N/A"}},{"$f":"IF(INDIRECT(\"c\" & (VLOOKUP(Switch!$D$55,$F$2:$G$44,2,FALSE)+ROW()-2))=Switch!$D$55,INDIRECT(\"a\" & (VLOOKUP(Switch!$D$55,$F$2:$G$44,2,FALSE)+ROW()-2)),\"\")","v":{"$error":"#N/A"}},{"$f":"IF(INDIRECT(\"c\" & (VLOOKUP(Switch!$D$56,$F$2:$G$44,2,FALSE)+ROW()-2))=Switch!$D$56,INDIRECT(\"a\" & (VLOOKUP(Switch!$D$56,$F$2:$G$44,2,FALSE)+ROW()-2)),\"\")","v":{"$error":"#N/A"}},{"$f":"IF(INDIRECT(\"c\" & (VLOOKUP(Switch!$D$57,$F$2:$G$44,2,FALSE)+ROW()-2))=Switch!$D$57,INDIRECT(\"a\" & (VLOOKUP(Switch!$D$57,$F$2:$G$44,2,FALSE)+ROW()-2)),\"\")","v":{"$error":"#N/A"}},{"$f":"IF(INDIRECT(\"c\" & (VLOOKUP(Switch!$D$58,$F$2:$G$44,2,FALSE)+ROW()-2))=Switch!$D$58,INDIRECT(\"a\" & (VLOOKUP(Switch!$D$58,$F$2:$G$44,2,FALSE)+ROW()-2)),\"\")","v":{"$error":"#N/A"}},{"$f":"IF(INDIRECT(\"c\" & (VLOOKUP(Switch!$D$59,$F$2:$G$44,2,FALSE)+ROW()-2))=Switch!$D$59,INDIRECT(\"a\" & (VLOOKUP(Switch!$D$59,$F$2:$G$44,2,FALSE)+ROW()-2)),\"\")","v":{"$error":"#N/A"}},{"$f":"IF(INDIRECT(\"c\" & (VLOOKUP(Switch!$D$60,$F$2:$G$44,2,FALSE)+ROW()-2))=Switch!$D$60,INDIRECT(\"a\" & (VLOOKUP(Switch!$D$60,$F$2:$G$44,2,FALSE)+ROW()-2)),\"\")","v":{"$error":"#N/A"}},{"$f":"IF(INDIRECT(\"c\" & (VLOOKUP(Switch!$D$61,$F$2:$G$44,2,FALSE)+ROW()-2))=Switch!$D$61,INDIRECT(\"a\" & (VLOOKUP(Switch!$D$61,$F$2:$G$44,2,FALSE)+ROW()-2)),\"\")","v":{"$error":"#N/A"}},{"$f":"IF(INDIRECT(\"c\" & (VLOOKUP(Switch!$D$62,$F$2:$G$44,2,FALSE)+ROW()-2))=Switch!$D$62,INDIRECT(\"a\" & (VLOOKUP(Switch!$D$62,$F$2:$G$44,2,FALSE)+ROW()-2)),\"\")","v":{"$error":"#N/A"}},{"$f":"IF(INDIRECT(\"c\" & (VLOOKUP(Switch!$D$63,$F$2:$G$44,2,FALSE)+ROW()-2))=Switch!$D$63,INDIRECT(\"a\" & (VLOOKUP(Switch!$D$63,$F$2:$G$44,2,FALSE)+ROW()-2)),\"\")","v":{"$error":"#N/A"}},{"$f":"IF(INDIRECT(\"c\" & (VLOOKUP(Switch!$D$64,$F$2:$G$44,2,FALSE)+ROW()-2))=Switch!$D$64,INDIRECT(\"a\" & (VLOOKUP(Switch!$D$64,$F$2:$G$44,2,FALSE)+ROW()-2)),\"\")","v":{"$error":"#N/A"}},{"$f":"IF(INDIRECT(\"c\" & (VLOOKUP(Switch!$D$65,$F$2:$G$44,2,FALSE)+ROW()-2))=Switch!$D$65,INDIRECT(\"a\" & (VLOOKUP(Switch!$D$65,$F$2:$G$44,2,FALSE)+ROW()-2)),\"\")","v":{"$error":"#N/A"}},{"$f":"IF(INDIRECT(\"c\" & (VLOOKUP(Switch!$D$66,$F$2:$G$44,2,FALSE)+ROW()-2))=Switch!$D$66,INDIRECT(\"a\" & (VLOOKUP(Switch!$D$66,$F$2:$G$44,2,FALSE)+ROW()-2)),\"\")","v":{"$error":"#N/A"}}]
["Nedgroup Inv Core Bond A","VELG","Nedgroup Collective Investments Ltd",{"$f":"ROW()","v":358},null,null,{"$f":"VLOOKUP(F358,$C$2:$D$637,2,FALSE)","v":{"$error":"#N/A"}},{"$f":"IF(INDIRECT(\"c\" & (VLOOKUP(Switch!$D$26,$F$2:$G$44,2,FALSE)+ROW()-2))=Switch!$D$26,INDIRECT(\"a\" & (VLOOKUP(Switch!$D$26,$F$2:$G$44,2,FALSE)+ROW()-2)),\"\")","v":{"$error":"#N/A"}},{"$f":"IF(INDIRECT(\"c\" & (VLOOKUP(Switch!$D$27,$F$2:$G$44,2,FALSE)+ROW()-2))=Switch!$D$27,INDIRECT(\"a\" & (VLOOKUP(Switch!$D$27,$F$2:$G$44,2,FALSE)+ROW()-2)),\"\")","v":{"$error":"#N/A"}},{"$f":"IF(INDIRECT(\"c\" & (VLOOKUP(Switch!$D$28,$F$2:$G$44,2,FALSE)+ROW()-2))=Switch!$D$28,INDIRECT(\"a\" & (VLOOKUP(Switch!$D$28,$F$2:$G$44,2,FALSE)+ROW()-2)),\"\")","v":{"$error":"#N/A"}},{"$f":"IF(INDIRECT(\"c\" & (VLOOKUP(Switch!$D$29,$F$2:$G$44,2,FALSE)+ROW()-2))=Switch!$D$29,INDIRECT(\"a\" & (VLOOKUP(Switch!$D$29,$F$2:$G$44,2,FALSE)+ROW()-2)),\"\")","v":{"$error":"#N/A"}},{"$f":"IF(INDIRECT(\"c\" & (VLOOKUP(Switch!$D$30,$F$2:$G$44,2,FALSE)+ROW()-2))=Switch!$D$30,INDIRECT(\"a\" & (VLOOKUP(Switch!$D$30,$F$2:$G$44,2,FALSE)+ROW()-2)),\"\")","v":{"$error":"#N/A"}},{"$f":"IF(INDIRECT(\"c\" & (VLOOKUP(Switch!$D$31,$F$2:$G$44,2,FALSE)+ROW()-2))=Switch!$D$31,INDIRECT(\"a\" & (VLOOKUP(Switch!$D$31,$F$2:$G$44,2,FALSE)+ROW()-2)),\"\")","v":{"$error":"#N/A"}},{"$f":"IF(INDIRECT(\"c\" & (VLOOKUP(Switch!$D$32,$F$2:$G$44,2,FALSE)+ROW()-2))=Switch!$D$32,INDIRECT(\"a\" & (VLOOKUP(Switch!$D$32,$F$2:$G$44,2,FALSE)+ROW()-2)),\"\")","v":{"$error":"#N/A"}},{"$f":"IF(INDIRECT(\"c\" & (VLOOKUP(Switch!$D$33,$F$2:$G$44,2,FALSE)+ROW()-2))=Switch!$D$33,INDIRECT(\"a\" & (VLOOKUP(Switch!$D$33,$F$2:$G$44,2,FALSE)+ROW()-2)),\"\")","v":{"$error":"#N/A"}},{"$f":"IF(INDIRECT(\"c\" & (VLOOKUP(Switch!$D$34,$F$2:$G$44,2,FALSE)+ROW()-2))=Switch!$D$34,INDIRECT(\"a\" & (VLOOKUP(Switch!$D$34,$F$2:$G$44,2,FALSE)+ROW()-2)),\"\")","v":{"$error":"#N/A"}},{"$f":"IF(INDIRECT(\"c\" & (VLOOKUP(Switch!$D$35,$F$2:$G$44,2,FALSE)+ROW()-2))=Switch!$D$35,INDIRECT(\"a\" & (VLOOKUP(Switch!$D$35,$F$2:$G$44,2,FALSE)+ROW()-2)),\"\")","v":{"$error":"#N/A"}},{"$f":"IF(INDIRECT(\"c\" & (VLOOKUP(Switch!$D$36,$F$2:$G$44,2,FALSE)+ROW()-2))=Switch!$D$36,INDIRECT(\"a\" & (VLOOKUP(Switch!$D$36,$F$2:$G$44,2,FALSE)+ROW()-2)),\"\")","v":{"$error":"#N/A"}},{"$f":"IF(INDIRECT(\"c\" & (VLOOKUP(Switch!$D$37,$F$2:$G$44,2,FALSE)+ROW()-2))=Switch!$D$37,INDIRECT(\"a\" & (VLOOKUP(Switch!$D$37,$F$2:$G$44,2,FALSE)+ROW()-2)),\"\")","v":{"$error":"#N/A"}},{"$f":"IF(INDIRECT(\"c\" & (VLOOKUP(Switch!$D$38,$F$2:$G$44,2,FALSE)+ROW()-2))=Switch!$D$38,INDIRECT(\"a\" & (VLOOKUP(Switch!$D$38,$F$2:$G$44,2,FALSE)+ROW()-2)),\"\")","v":{"$error":"#N/A"}},{"$f":"IF(INDIRECT(\"c\" & (VLOOKUP(Switch!$D$39,$F$2:$G$44,2,FALSE)+ROW()-2))=Switch!$D$39,INDIRECT(\"a\" & (VLOOKUP(Switch!$D$39,$F$2:$G$44,2,FALSE)+ROW()-2)),\"\")","v":{"$error":"#N/A"}},{"$f":"IF(INDIRECT(\"c\" & (VLOOKUP(Switch!$D$40,$F$2:$G$44,2,FALSE)+ROW()-2))=Switch!$D$40,INDIRECT(\"a\" & (VLOOKUP(Switch!$D$40,$F$2:$G$44,2,FALSE)+ROW()-2)),\"\")","v":{"$error":"#N/A"}},{"$f":"IF(INDIRECT(\"c\" & (VLOOKUP(Switch!$D$52,$F$2:$G$44,2,FALSE)+ROW()-2))=Switch!$D$52,INDIRECT(\"a\" & (VLOOKUP(Switch!$D$52,$F$2:$G$44,2,FALSE)+ROW()-2)),\"\")","v":{"$error":"#N/A"}},{"$f":"IF(INDIRECT(\"c\" & (VLOOKUP(Switch!$D$53,$F$2:$G$44,2,FALSE)+ROW()-2))=Switch!$D$53,INDIRECT(\"a\" & (VLOOKUP(Switch!$D$53,$F$2:$G$44,2,FALSE)+ROW()-2)),\"\")","v":{"$error":"#N/A"}},{"$f":"IF(INDIRECT(\"c\" & (VLOOKUP(Switch!$D$54,$F$2:$G$44,2,FALSE)+ROW()-2))=Switch!$D$54,INDIRECT(\"a\" & (VLOOKUP(Switch!$D$54,$F$2:$G$44,2,FALSE)+ROW()-2)),\"\")","v":{"$error":"#N/A"}},{"$f":"IF(INDIRECT(\"c\" & (VLOOKUP(Switch!$D$55,$F$2:$G$44,2,FALSE)+ROW()-2))=Switch!$D$55,INDIRECT(\"a\" & (VLOOKUP(Switch!$D$55,$F$2:$G$44,2,FALSE)+ROW()-2)),\"\")","v":{"$error":"#N/A"}},{"$f":"IF(INDIRECT(\"c\" & (VLOOKUP(Switch!$D$56,$F$2:$G$44,2,FALSE)+ROW()-2))=Switch!$D$56,INDIRECT(\"a\" & (VLOOKUP(Switch!$D$56,$F$2:$G$44,2,FALSE)+ROW()-2)),\"\")","v":{"$error":"#N/A"}},{"$f":"IF(INDIRECT(\"c\" & (VLOOKUP(Switch!$D$57,$F$2:$G$44,2,FALSE)+ROW()-2))=Switch!$D$57,INDIRECT(\"a\" & (VLOOKUP(Switch!$D$57,$F$2:$G$44,2,FALSE)+ROW()-2)),\"\")","v":{"$error":"#N/A"}},{"$f":"IF(INDIRECT(\"c\" & (VLOOKUP(Switch!$D$58,$F$2:$G$44,2,FALSE)+ROW()-2))=Switch!$D$58,INDIRECT(\"a\" & (VLOOKUP(Switch!$D$58,$F$2:$G$44,2,FALSE)+ROW()-2)),\"\")","v":{"$error":"#N/A"}},{"$f":"IF(INDIRECT(\"c\" & (VLOOKUP(Switch!$D$59,$F$2:$G$44,2,FALSE)+ROW()-2))=Switch!$D$59,INDIRECT(\"a\" & (VLOOKUP(Switch!$D$59,$F$2:$G$44,2,FALSE)+ROW()-2)),\"\")","v":{"$error":"#N/A"}},{"$f":"IF(INDIRECT(\"c\" & (VLOOKUP(Switch!$D$60,$F$2:$G$44,2,FALSE)+ROW()-2))=Switch!$D$60,INDIRECT(\"a\" & (VLOOKUP(Switch!$D$60,$F$2:$G$44,2,FALSE)+ROW()-2)),\"\")","v":{"$error":"#N/A"}},{"$f":"IF(INDIRECT(\"c\" & (VLOOKUP(Switch!$D$61,$F$2:$G$44,2,FALSE)+ROW()-2))=Switch!$D$61,INDIRECT(\"a\" & (VLOOKUP(Switch!$D$61,$F$2:$G$44,2,FALSE)+ROW()-2)),\"\")","v":{"$error":"#N/A"}},{"$f":"IF(INDIRECT(\"c\" & (VLOOKUP(Switch!$D$62,$F$2:$G$44,2,FALSE)+ROW()-2))=Switch!$D$62,INDIRECT(\"a\" & (VLOOKUP(Switch!$D$62,$F$2:$G$44,2,FALSE)+ROW()-2)),\"\")","v":{"$error":"#N/A"}},{"$f":"IF(INDIRECT(\"c\" & (VLOOKUP(Switch!$D$63,$F$2:$G$44,2,FALSE)+ROW()-2))=Switch!$D$63,INDIRECT(\"a\" & (VLOOKUP(Switch!$D$63,$F$2:$G$44,2,FALSE)+ROW()-2)),\"\")","v":{"$error":"#N/A"}},{"$f":"IF(INDIRECT(\"c\" & (VLOOKUP(Switch!$D$64,$F$2:$G$44,2,FALSE)+ROW()-2))=Switch!$D$64,INDIRECT(\"a\" & (VLOOKUP(Switch!$D$64,$F$2:$G$44,2,FALSE)+ROW()-2)),\"\")","v":{"$error":"#N/A"}},{"$f":"IF(INDIRECT(\"c\" & (VLOOKUP(Switch!$D$65,$F$2:$G$44,2,FALSE)+ROW()-2))=Switch!$D$65,INDIRECT(\"a\" & (VLOOKUP(Switch!$D$65,$F$2:$G$44,2,FALSE)+ROW()-2)),\"\")","v":{"$error":"#N/A"}},{"$f":"IF(INDIRECT(\"c\" & (VLOOKUP(Switch!$D$66,$F$2:$G$44,2,FALSE)+ROW()-2))=Switch!$D$66,INDIRECT(\"a\" & (VLOOKUP(Switch!$D$66,$F$2:$G$44,2,FALSE)+ROW()-2)),\"\")","v":{"$error":"#N/A"}}]
["Nedgroup Inv Core Diversified Fund B","NIDCB","Nedgroup Collective Investments Ltd",{"$f":"ROW()","v":359},null,null,{"$f":"VLOOKUP(F359,$C$2:$D$637,2,FALSE)","v":{"$error":"#N/A"}},{"$f":"IF(INDIRECT(\"c\" & (VLOOKUP(Switch!$D$26,$F$2:$G$44,2,FALSE)+ROW()-2))=Switch!$D$26,INDIRECT(\"a\" & (VLOOKUP(Switch!$D$26,$F$2:$G$44,2,FALSE)+ROW()-2)),\"\")","v":{"$error":"#N/A"}},{"$f":"IF(INDIRECT(\"c\" & (VLOOKUP(Switch!$D$27,$F$2:$G$44,2,FALSE)+ROW()-2))=Switch!$D$27,INDIRECT(\"a\" & (VLOOKUP(Switch!$D$27,$F$2:$G$44,2,FALSE)+ROW()-2)),\"\")","v":{"$error":"#N/A"}},{"$f":"IF(INDIRECT(\"c\" & (VLOOKUP(Switch!$D$28,$F$2:$G$44,2,FALSE)+ROW()-2))=Switch!$D$28,INDIRECT(\"a\" & (VLOOKUP(Switch!$D$28,$F$2:$G$44,2,FALSE)+ROW()-2)),\"\")","v":{"$error":"#N/A"}},{"$f":"IF(INDIRECT(\"c\" & (VLOOKUP(Switch!$D$29,$F$2:$G$44,2,FALSE)+ROW()-2))=Switch!$D$29,INDIRECT(\"a\" & (VLOOKUP(Switch!$D$29,$F$2:$G$44,2,FALSE)+ROW()-2)),\"\")","v":{"$error":"#N/A"}},{"$f":"IF(INDIRECT(\"c\" & (VLOOKUP(Switch!$D$30,$F$2:$G$44,2,FALSE)+ROW()-2))=Switch!$D$30,INDIRECT(\"a\" & (VLOOKUP(Switch!$D$30,$F$2:$G$44,2,FALSE)+ROW()-2)),\"\")","v":{"$error":"#N/A"}},{"$f":"IF(INDIRECT(\"c\" & (VLOOKUP(Switch!$D$31,$F$2:$G$44,2,FALSE)+ROW()-2))=Switch!$D$31,INDIRECT(\"a\" & (VLOOKUP(Switch!$D$31,$F$2:$G$44,2,FALSE)+ROW()-2)),\"\")","v":{"$error":"#N/A"}},{"$f":"IF(INDIRECT(\"c\" & (VLOOKUP(Switch!$D$32,$F$2:$G$44,2,FALSE)+ROW()-2))=Switch!$D$32,INDIRECT(\"a\" & (VLOOKUP(Switch!$D$32,$F$2:$G$44,2,FALSE)+ROW()-2)),\"\")","v":{"$error":"#N/A"}},{"$f":"IF(INDIRECT(\"c\" & (VLOOKUP(Switch!$D$33,$F$2:$G$44,2,FALSE)+ROW()-2))=Switch!$D$33,INDIRECT(\"a\" & (VLOOKUP(Switch!$D$33,$F$2:$G$44,2,FALSE)+ROW()-2)),\"\")","v":{"$error":"#N/A"}},{"$f":"IF(INDIRECT(\"c\" & (VLOOKUP(Switch!$D$34,$F$2:$G$44,2,FALSE)+ROW()-2))=Switch!$D$34,INDIRECT(\"a\" & (VLOOKUP(Switch!$D$34,$F$2:$G$44,2,FALSE)+ROW()-2)),\"\")","v":{"$error":"#N/A"}},{"$f":"IF(INDIRECT(\"c\" & (VLOOKUP(Switch!$D$35,$F$2:$G$44,2,FALSE)+ROW()-2))=Switch!$D$35,INDIRECT(\"a\" & (VLOOKUP(Switch!$D$35,$F$2:$G$44,2,FALSE)+ROW()-2)),\"\")","v":{"$error":"#N/A"}},{"$f":"IF(INDIRECT(\"c\" & (VLOOKUP(Switch!$D$36,$F$2:$G$44,2,FALSE)+ROW()-2))=Switch!$D$36,INDIRECT(\"a\" & (VLOOKUP(Switch!$D$36,$F$2:$G$44,2,FALSE)+ROW()-2)),\"\")","v":{"$error":"#N/A"}},{"$f":"IF(INDIRECT(\"c\" & (VLOOKUP(Switch!$D$37,$F$2:$G$44,2,FALSE)+ROW()-2))=Switch!$D$37,INDIRECT(\"a\" & (VLOOKUP(Switch!$D$37,$F$2:$G$44,2,FALSE)+ROW()-2)),\"\")","v":{"$error":"#N/A"}},{"$f":"IF(INDIRECT(\"c\" & (VLOOKUP(Switch!$D$38,$F$2:$G$44,2,FALSE)+ROW()-2))=Switch!$D$38,INDIRECT(\"a\" & (VLOOKUP(Switch!$D$38,$F$2:$G$44,2,FALSE)+ROW()-2)),\"\")","v":{"$error":"#N/A"}},{"$f":"IF(INDIRECT(\"c\" & (VLOOKUP(Switch!$D$39,$F$2:$G$44,2,FALSE)+ROW()-2))=Switch!$D$39,INDIRECT(\"a\" & (VLOOKUP(Switch!$D$39,$F$2:$G$44,2,FALSE)+ROW()-2)),\"\")","v":{"$error":"#N/A"}},{"$f":"IF(INDIRECT(\"c\" & (VLOOKUP(Switch!$D$40,$F$2:$G$44,2,FALSE)+ROW()-2))=Switch!$D$40,INDIRECT(\"a\" & (VLOOKUP(Switch!$D$40,$F$2:$G$44,2,FALSE)+ROW()-2)),\"\")","v":{"$error":"#N/A"}},{"$f":"IF(INDIRECT(\"c\" & (VLOOKUP(Switch!$D$52,$F$2:$G$44,2,FALSE)+ROW()-2))=Switch!$D$52,INDIRECT(\"a\" & (VLOOKUP(Switch!$D$52,$F$2:$G$44,2,FALSE)+ROW()-2)),\"\")","v":{"$error":"#N/A"}},{"$f":"IF(INDIRECT(\"c\" & (VLOOKUP(Switch!$D$53,$F$2:$G$44,2,FALSE)+ROW()-2))=Switch!$D$53,INDIRECT(\"a\" & (VLOOKUP(Switch!$D$53,$F$2:$G$44,2,FALSE)+ROW()-2)),\"\")","v":{"$error":"#N/A"}},{"$f":"IF(INDIRECT(\"c\" & (VLOOKUP(Switch!$D$54,$F$2:$G$44,2,FALSE)+ROW()-2))=Switch!$D$54,INDIRECT(\"a\" & (VLOOKUP(Switch!$D$54,$F$2:$G$44,2,FALSE)+ROW()-2)),\"\")","v":{"$error":"#N/A"}},{"$f":"IF(INDIRECT(\"c\" & (VLOOKUP(Switch!$D$55,$F$2:$G$44,2,FALSE)+ROW()-2))=Switch!$D$55,INDIRECT(\"a\" & (VLOOKUP(Switch!$D$55,$F$2:$G$44,2,FALSE)+ROW()-2)),\"\")","v":{"$error":"#N/A"}},{"$f":"IF(INDIRECT(\"c\" & (VLOOKUP(Switch!$D$56,$F$2:$G$44,2,FALSE)+ROW()-2))=Switch!$D$56,INDIRECT(\"a\" & (VLOOKUP(Switch!$D$56,$F$2:$G$44,2,FALSE)+ROW()-2)),\"\")","v":{"$error":"#N/A"}},{"$f":"IF(INDIRECT(\"c\" & (VLOOKUP(Switch!$D$57,$F$2:$G$44,2,FALSE)+ROW()-2))=Switch!$D$57,INDIRECT(\"a\" & (VLOOKUP(Switch!$D$57,$F$2:$G$44,2,FALSE)+ROW()-2)),\"\")","v":{"$error":"#N/A"}},{"$f":"IF(INDIRECT(\"c\" & (VLOOKUP(Switch!$D$58,$F$2:$G$44,2,FALSE)+ROW()-2))=Switch!$D$58,INDIRECT(\"a\" & (VLOOKUP(Switch!$D$58,$F$2:$G$44,2,FALSE)+ROW()-2)),\"\")","v":{"$error":"#N/A"}},{"$f":"IF(INDIRECT(\"c\" & (VLOOKUP(Switch!$D$59,$F$2:$G$44,2,FALSE)+ROW()-2))=Switch!$D$59,INDIRECT(\"a\" & (VLOOKUP(Switch!$D$59,$F$2:$G$44,2,FALSE)+ROW()-2)),\"\")","v":{"$error":"#N/A"}},{"$f":"IF(INDIRECT(\"c\" & (VLOOKUP(Switch!$D$60,$F$2:$G$44,2,FALSE)+ROW()-2))=Switch!$D$60,INDIRECT(\"a\" & (VLOOKUP(Switch!$D$60,$F$2:$G$44,2,FALSE)+ROW()-2)),\"\")","v":{"$error":"#N/A"}},{"$f":"IF(INDIRECT(\"c\" & (VLOOKUP(Switch!$D$61,$F$2:$G$44,2,FALSE)+ROW()-2))=Switch!$D$61,INDIRECT(\"a\" & (VLOOKUP(Switch!$D$61,$F$2:$G$44,2,FALSE)+ROW()-2)),\"\")","v":{"$error":"#N/A"}},{"$f":"IF(INDIRECT(\"c\" & (VLOOKUP(Switch!$D$62,$F$2:$G$44,2,FALSE)+ROW()-2))=Switch!$D$62,INDIRECT(\"a\" & (VLOOKUP(Switch!$D$62,$F$2:$G$44,2,FALSE)+ROW()-2)),\"\")","v":{"$error":"#N/A"}},{"$f":"IF(INDIRECT(\"c\" & (VLOOKUP(Switch!$D$63,$F$2:$G$44,2,FALSE)+ROW()-2))=Switch!$D$63,INDIRECT(\"a\" & (VLOOKUP(Switch!$D$63,$F$2:$G$44,2,FALSE)+ROW()-2)),\"\")","v":{"$error":"#N/A"}},{"$f":"IF(INDIRECT(\"c\" & (VLOOKUP(Switch!$D$64,$F$2:$G$44,2,FALSE)+ROW()-2))=Switch!$D$64,INDIRECT(\"a\" & (VLOOKUP(Switch!$D$64,$F$2:$G$44,2,FALSE)+ROW()-2)),\"\")","v":{"$error":"#N/A"}},{"$f":"IF(INDIRECT(\"c\" & (VLOOKUP(Switch!$D$65,$F$2:$G$44,2,FALSE)+ROW()-2))=Switch!$D$65,INDIRECT(\"a\" & (VLOOKUP(Switch!$D$65,$F$2:$G$44,2,FALSE)+ROW()-2)),\"\")","v":{"$error":"#N/A"}},{"$f":"IF(INDIRECT(\"c\" & (VLOOKUP(Switch!$D$66,$F$2:$G$44,2,FALSE)+ROW()-2))=Switch!$D$66,INDIRECT(\"a\" & (VLOOKUP(Switch!$D$66,$F$2:$G$44,2,FALSE)+ROW()-2)),\"\")","v":{"$error":"#N/A"}}]
["Nedgroup Inv Core Guarded Fund B","NICCB","Nedgroup Collective Investments Ltd",{"$f":"ROW()","v":360},null,null,{"$f":"VLOOKUP(F360,$C$2:$D$637,2,FALSE)","v":{"$error":"#N/A"}},{"$f":"IF(INDIRECT(\"c\" & (VLOOKUP(Switch!$D$26,$F$2:$G$44,2,FALSE)+ROW()-2))=Switch!$D$26,INDIRECT(\"a\" & (VLOOKUP(Switch!$D$26,$F$2:$G$44,2,FALSE)+ROW()-2)),\"\")","v":{"$error":"#N/A"}},{"$f":"IF(INDIRECT(\"c\" & (VLOOKUP(Switch!$D$27,$F$2:$G$44,2,FALSE)+ROW()-2))=Switch!$D$27,INDIRECT(\"a\" & (VLOOKUP(Switch!$D$27,$F$2:$G$44,2,FALSE)+ROW()-2)),\"\")","v":{"$error":"#N/A"}},{"$f":"IF(INDIRECT(\"c\" & (VLOOKUP(Switch!$D$28,$F$2:$G$44,2,FALSE)+ROW()-2))=Switch!$D$28,INDIRECT(\"a\" & (VLOOKUP(Switch!$D$28,$F$2:$G$44,2,FALSE)+ROW()-2)),\"\")","v":{"$error":"#N/A"}},{"$f":"IF(INDIRECT(\"c\" & (VLOOKUP(Switch!$D$29,$F$2:$G$44,2,FALSE)+ROW()-2))=Switch!$D$29,INDIRECT(\"a\" & (VLOOKUP(Switch!$D$29,$F$2:$G$44,2,FALSE)+ROW()-2)),\"\")","v":{"$error":"#N/A"}},{"$f":"IF(INDIRECT(\"c\" & (VLOOKUP(Switch!$D$30,$F$2:$G$44,2,FALSE)+ROW()-2))=Switch!$D$30,INDIRECT(\"a\" & (VLOOKUP(Switch!$D$30,$F$2:$G$44,2,FALSE)+ROW()-2)),\"\")","v":{"$error":"#N/A"}},{"$f":"IF(INDIRECT(\"c\" & (VLOOKUP(Switch!$D$31,$F$2:$G$44,2,FALSE)+ROW()-2))=Switch!$D$31,INDIRECT(\"a\" & (VLOOKUP(Switch!$D$31,$F$2:$G$44,2,FALSE)+ROW()-2)),\"\")","v":{"$error":"#N/A"}},{"$f":"IF(INDIRECT(\"c\" & (VLOOKUP(Switch!$D$32,$F$2:$G$44,2,FALSE)+ROW()-2))=Switch!$D$32,INDIRECT(\"a\" & (VLOOKUP(Switch!$D$32,$F$2:$G$44,2,FALSE)+ROW()-2)),\"\")","v":{"$error":"#N/A"}},{"$f":"IF(INDIRECT(\"c\" & (VLOOKUP(Switch!$D$33,$F$2:$G$44,2,FALSE)+ROW()-2))=Switch!$D$33,INDIRECT(\"a\" & (VLOOKUP(Switch!$D$33,$F$2:$G$44,2,FALSE)+ROW()-2)),\"\")","v":{"$error":"#N/A"}},{"$f":"IF(INDIRECT(\"c\" & (VLOOKUP(Switch!$D$34,$F$2:$G$44,2,FALSE)+ROW()-2))=Switch!$D$34,INDIRECT(\"a\" & (VLOOKUP(Switch!$D$34,$F$2:$G$44,2,FALSE)+ROW()-2)),\"\")","v":{"$error":"#N/A"}},{"$f":"IF(INDIRECT(\"c\" & (VLOOKUP(Switch!$D$35,$F$2:$G$44,2,FALSE)+ROW()-2))=Switch!$D$35,INDIRECT(\"a\" & (VLOOKUP(Switch!$D$35,$F$2:$G$44,2,FALSE)+ROW()-2)),\"\")","v":{"$error":"#N/A"}},{"$f":"IF(INDIRECT(\"c\" & (VLOOKUP(Switch!$D$36,$F$2:$G$44,2,FALSE)+ROW()-2))=Switch!$D$36,INDIRECT(\"a\" & (VLOOKUP(Switch!$D$36,$F$2:$G$44,2,FALSE)+ROW()-2)),\"\")","v":{"$error":"#N/A"}},{"$f":"IF(INDIRECT(\"c\" & (VLOOKUP(Switch!$D$37,$F$2:$G$44,2,FALSE)+ROW()-2))=Switch!$D$37,INDIRECT(\"a\" & (VLOOKUP(Switch!$D$37,$F$2:$G$44,2,FALSE)+ROW()-2)),\"\")","v":{"$error":"#N/A"}},{"$f":"IF(INDIRECT(\"c\" & (VLOOKUP(Switch!$D$38,$F$2:$G$44,2,FALSE)+ROW()-2))=Switch!$D$38,INDIRECT(\"a\" & (VLOOKUP(Switch!$D$38,$F$2:$G$44,2,FALSE)+ROW()-2)),\"\")","v":{"$error":"#N/A"}},{"$f":"IF(INDIRECT(\"c\" & (VLOOKUP(Switch!$D$39,$F$2:$G$44,2,FALSE)+ROW()-2))=Switch!$D$39,INDIRECT(\"a\" & (VLOOKUP(Switch!$D$39,$F$2:$G$44,2,FALSE)+ROW()-2)),\"\")","v":{"$error":"#N/A"}},{"$f":"IF(INDIRECT(\"c\" & (VLOOKUP(Switch!$D$40,$F$2:$G$44,2,FALSE)+ROW()-2))=Switch!$D$40,INDIRECT(\"a\" & (VLOOKUP(Switch!$D$40,$F$2:$G$44,2,FALSE)+ROW()-2)),\"\")","v":{"$error":"#N/A"}},{"$f":"IF(INDIRECT(\"c\" & (VLOOKUP(Switch!$D$52,$F$2:$G$44,2,FALSE)+ROW()-2))=Switch!$D$52,INDIRECT(\"a\" & (VLOOKUP(Switch!$D$52,$F$2:$G$44,2,FALSE)+ROW()-2)),\"\")","v":{"$error":"#N/A"}},{"$f":"IF(INDIRECT(\"c\" & (VLOOKUP(Switch!$D$53,$F$2:$G$44,2,FALSE)+ROW()-2))=Switch!$D$53,INDIRECT(\"a\" & (VLOOKUP(Switch!$D$53,$F$2:$G$44,2,FALSE)+ROW()-2)),\"\")","v":{"$error":"#N/A"}},{"$f":"IF(INDIRECT(\"c\" & (VLOOKUP(Switch!$D$54,$F$2:$G$44,2,FALSE)+ROW()-2))=Switch!$D$54,INDIRECT(\"a\" & (VLOOKUP(Switch!$D$54,$F$2:$G$44,2,FALSE)+ROW()-2)),\"\")","v":{"$error":"#N/A"}},{"$f":"IF(INDIRECT(\"c\" & (VLOOKUP(Switch!$D$55,$F$2:$G$44,2,FALSE)+ROW()-2))=Switch!$D$55,INDIRECT(\"a\" & (VLOOKUP(Switch!$D$55,$F$2:$G$44,2,FALSE)+ROW()-2)),\"\")","v":{"$error":"#N/A"}},{"$f":"IF(INDIRECT(\"c\" & (VLOOKUP(Switch!$D$56,$F$2:$G$44,2,FALSE)+ROW()-2))=Switch!$D$56,INDIRECT(\"a\" & (VLOOKUP(Switch!$D$56,$F$2:$G$44,2,FALSE)+ROW()-2)),\"\")","v":{"$error":"#N/A"}},{"$f":"IF(INDIRECT(\"c\" & (VLOOKUP(Switch!$D$57,$F$2:$G$44,2,FALSE)+ROW()-2))=Switch!$D$57,INDIRECT(\"a\" & (VLOOKUP(Switch!$D$57,$F$2:$G$44,2,FALSE)+ROW()-2)),\"\")","v":{"$error":"#N/A"}},{"$f":"IF(INDIRECT(\"c\" & (VLOOKUP(Switch!$D$58,$F$2:$G$44,2,FALSE)+ROW()-2))=Switch!$D$58,INDIRECT(\"a\" & (VLOOKUP(Switch!$D$58,$F$2:$G$44,2,FALSE)+ROW()-2)),\"\")","v":{"$error":"#N/A"}},{"$f":"IF(INDIRECT(\"c\" & (VLOOKUP(Switch!$D$59,$F$2:$G$44,2,FALSE)+ROW()-2))=Switch!$D$59,INDIRECT(\"a\" & (VLOOKUP(Switch!$D$59,$F$2:$G$44,2,FALSE)+ROW()-2)),\"\")","v":{"$error":"#N/A"}},{"$f":"IF(INDIRECT(\"c\" & (VLOOKUP(Switch!$D$60,$F$2:$G$44,2,FALSE)+ROW()-2))=Switch!$D$60,INDIRECT(\"a\" & (VLOOKUP(Switch!$D$60,$F$2:$G$44,2,FALSE)+ROW()-2)),\"\")","v":{"$error":"#N/A"}},{"$f":"IF(INDIRECT(\"c\" & (VLOOKUP(Switch!$D$61,$F$2:$G$44,2,FALSE)+ROW()-2))=Switch!$D$61,INDIRECT(\"a\" & (VLOOKUP(Switch!$D$61,$F$2:$G$44,2,FALSE)+ROW()-2)),\"\")","v":{"$error":"#N/A"}},{"$f":"IF(INDIRECT(\"c\" & (VLOOKUP(Switch!$D$62,$F$2:$G$44,2,FALSE)+ROW()-2))=Switch!$D$62,INDIRECT(\"a\" & (VLOOKUP(Switch!$D$62,$F$2:$G$44,2,FALSE)+ROW()-2)),\"\")","v":{"$error":"#N/A"}},{"$f":"IF(INDIRECT(\"c\" & (VLOOKUP(Switch!$D$63,$F$2:$G$44,2,FALSE)+ROW()-2))=Switch!$D$63,INDIRECT(\"a\" & (VLOOKUP(Switch!$D$63,$F$2:$G$44,2,FALSE)+ROW()-2)),\"\")","v":{"$error":"#N/A"}},{"$f":"IF(INDIRECT(\"c\" & (VLOOKUP(Switch!$D$64,$F$2:$G$44,2,FALSE)+ROW()-2))=Switch!$D$64,INDIRECT(\"a\" & (VLOOKUP(Switch!$D$64,$F$2:$G$44,2,FALSE)+ROW()-2)),\"\")","v":{"$error":"#N/A"}},{"$f":"IF(INDIRECT(\"c\" & (VLOOKUP(Switch!$D$65,$F$2:$G$44,2,FALSE)+ROW()-2))=Switch!$D$65,INDIRECT(\"a\" & (VLOOKUP(Switch!$D$65,$F$2:$G$44,2,FALSE)+ROW()-2)),\"\")","v":{"$error":"#N/A"}},{"$f":"IF(INDIRECT(\"c\" & (VLOOKUP(Switch!$D$66,$F$2:$G$44,2,FALSE)+ROW()-2))=Switch!$D$66,INDIRECT(\"a\" & (VLOOKUP(Switch!$D$66,$F$2:$G$44,2,FALSE)+ROW()-2)),\"\")","v":{"$error":"#N/A"}}]
["Nedgroup Inv Core Income Fund C3","NECA","Nedgroup Collective Investments Ltd",{"$f":"ROW()","v":361},null,null,{"$f":"VLOOKUP(F361,$C$2:$D$637,2,FALSE)","v":{"$error":"#N/A"}},{"$f":"IF(INDIRECT(\"c\" & (VLOOKUP(Switch!$D$26,$F$2:$G$44,2,FALSE)+ROW()-2))=Switch!$D$26,INDIRECT(\"a\" & (VLOOKUP(Switch!$D$26,$F$2:$G$44,2,FALSE)+ROW()-2)),\"\")","v":{"$error":"#N/A"}},{"$f":"IF(INDIRECT(\"c\" & (VLOOKUP(Switch!$D$27,$F$2:$G$44,2,FALSE)+ROW()-2))=Switch!$D$27,INDIRECT(\"a\" & (VLOOKUP(Switch!$D$27,$F$2:$G$44,2,FALSE)+ROW()-2)),\"\")","v":{"$error":"#N/A"}},{"$f":"IF(INDIRECT(\"c\" & (VLOOKUP(Switch!$D$28,$F$2:$G$44,2,FALSE)+ROW()-2))=Switch!$D$28,INDIRECT(\"a\" & (VLOOKUP(Switch!$D$28,$F$2:$G$44,2,FALSE)+ROW()-2)),\"\")","v":{"$error":"#N/A"}},{"$f":"IF(INDIRECT(\"c\" & (VLOOKUP(Switch!$D$29,$F$2:$G$44,2,FALSE)+ROW()-2))=Switch!$D$29,INDIRECT(\"a\" & (VLOOKUP(Switch!$D$29,$F$2:$G$44,2,FALSE)+ROW()-2)),\"\")","v":{"$error":"#N/A"}},{"$f":"IF(INDIRECT(\"c\" & (VLOOKUP(Switch!$D$30,$F$2:$G$44,2,FALSE)+ROW()-2))=Switch!$D$30,INDIRECT(\"a\" & (VLOOKUP(Switch!$D$30,$F$2:$G$44,2,FALSE)+ROW()-2)),\"\")","v":{"$error":"#N/A"}},{"$f":"IF(INDIRECT(\"c\" & (VLOOKUP(Switch!$D$31,$F$2:$G$44,2,FALSE)+ROW()-2))=Switch!$D$31,INDIRECT(\"a\" & (VLOOKUP(Switch!$D$31,$F$2:$G$44,2,FALSE)+ROW()-2)),\"\")","v":{"$error":"#N/A"}},{"$f":"IF(INDIRECT(\"c\" & (VLOOKUP(Switch!$D$32,$F$2:$G$44,2,FALSE)+ROW()-2))=Switch!$D$32,INDIRECT(\"a\" & (VLOOKUP(Switch!$D$32,$F$2:$G$44,2,FALSE)+ROW()-2)),\"\")","v":{"$error":"#N/A"}},{"$f":"IF(INDIRECT(\"c\" & (VLOOKUP(Switch!$D$33,$F$2:$G$44,2,FALSE)+ROW()-2))=Switch!$D$33,INDIRECT(\"a\" & (VLOOKUP(Switch!$D$33,$F$2:$G$44,2,FALSE)+ROW()-2)),\"\")","v":{"$error":"#N/A"}},{"$f":"IF(INDIRECT(\"c\" & (VLOOKUP(Switch!$D$34,$F$2:$G$44,2,FALSE)+ROW()-2))=Switch!$D$34,INDIRECT(\"a\" & (VLOOKUP(Switch!$D$34,$F$2:$G$44,2,FALSE)+ROW()-2)),\"\")","v":{"$error":"#N/A"}},{"$f":"IF(INDIRECT(\"c\" & (VLOOKUP(Switch!$D$35,$F$2:$G$44,2,FALSE)+ROW()-2))=Switch!$D$35,INDIRECT(\"a\" & (VLOOKUP(Switch!$D$35,$F$2:$G$44,2,FALSE)+ROW()-2)),\"\")","v":{"$error":"#N/A"}},{"$f":"IF(INDIRECT(\"c\" & (VLOOKUP(Switch!$D$36,$F$2:$G$44,2,FALSE)+ROW()-2))=Switch!$D$36,INDIRECT(\"a\" & (VLOOKUP(Switch!$D$36,$F$2:$G$44,2,FALSE)+ROW()-2)),\"\")","v":{"$error":"#N/A"}},{"$f":"IF(INDIRECT(\"c\" & (VLOOKUP(Switch!$D$37,$F$2:$G$44,2,FALSE)+ROW()-2))=Switch!$D$37,INDIRECT(\"a\" & (VLOOKUP(Switch!$D$37,$F$2:$G$44,2,FALSE)+ROW()-2)),\"\")","v":{"$error":"#N/A"}},{"$f":"IF(INDIRECT(\"c\" & (VLOOKUP(Switch!$D$38,$F$2:$G$44,2,FALSE)+ROW()-2))=Switch!$D$38,INDIRECT(\"a\" & (VLOOKUP(Switch!$D$38,$F$2:$G$44,2,FALSE)+ROW()-2)),\"\")","v":{"$error":"#N/A"}},{"$f":"IF(INDIRECT(\"c\" & (VLOOKUP(Switch!$D$39,$F$2:$G$44,2,FALSE)+ROW()-2))=Switch!$D$39,INDIRECT(\"a\" & (VLOOKUP(Switch!$D$39,$F$2:$G$44,2,FALSE)+ROW()-2)),\"\")","v":{"$error":"#N/A"}},{"$f":"IF(INDIRECT(\"c\" & (VLOOKUP(Switch!$D$40,$F$2:$G$44,2,FALSE)+ROW()-2))=Switch!$D$40,INDIRECT(\"a\" & (VLOOKUP(Switch!$D$40,$F$2:$G$44,2,FALSE)+ROW()-2)),\"\")","v":{"$error":"#N/A"}},{"$f":"IF(INDIRECT(\"c\" & (VLOOKUP(Switch!$D$52,$F$2:$G$44,2,FALSE)+ROW()-2))=Switch!$D$52,INDIRECT(\"a\" & (VLOOKUP(Switch!$D$52,$F$2:$G$44,2,FALSE)+ROW()-2)),\"\")","v":{"$error":"#N/A"}},{"$f":"IF(INDIRECT(\"c\" & (VLOOKUP(Switch!$D$53,$F$2:$G$44,2,FALSE)+ROW()-2))=Switch!$D$53,INDIRECT(\"a\" & (VLOOKUP(Switch!$D$53,$F$2:$G$44,2,FALSE)+ROW()-2)),\"\")","v":{"$error":"#N/A"}},{"$f":"IF(INDIRECT(\"c\" & (VLOOKUP(Switch!$D$54,$F$2:$G$44,2,FALSE)+ROW()-2))=Switch!$D$54,INDIRECT(\"a\" & (VLOOKUP(Switch!$D$54,$F$2:$G$44,2,FALSE)+ROW()-2)),\"\")","v":{"$error":"#N/A"}},{"$f":"IF(INDIRECT(\"c\" & (VLOOKUP(Switch!$D$55,$F$2:$G$44,2,FALSE)+ROW()-2))=Switch!$D$55,INDIRECT(\"a\" & (VLOOKUP(Switch!$D$55,$F$2:$G$44,2,FALSE)+ROW()-2)),\"\")","v":{"$error":"#N/A"}},{"$f":"IF(INDIRECT(\"c\" & (VLOOKUP(Switch!$D$56,$F$2:$G$44,2,FALSE)+ROW()-2))=Switch!$D$56,INDIRECT(\"a\" & (VLOOKUP(Switch!$D$56,$F$2:$G$44,2,FALSE)+ROW()-2)),\"\")","v":{"$error":"#N/A"}},{"$f":"IF(INDIRECT(\"c\" & (VLOOKUP(Switch!$D$57,$F$2:$G$44,2,FALSE)+ROW()-2))=Switch!$D$57,INDIRECT(\"a\" & (VLOOKUP(Switch!$D$57,$F$2:$G$44,2,FALSE)+ROW()-2)),\"\")","v":{"$error":"#N/A"}},{"$f":"IF(INDIRECT(\"c\" & (VLOOKUP(Switch!$D$58,$F$2:$G$44,2,FALSE)+ROW()-2))=Switch!$D$58,INDIRECT(\"a\" & (VLOOKUP(Switch!$D$58,$F$2:$G$44,2,FALSE)+ROW()-2)),\"\")","v":{"$error":"#N/A"}},{"$f":"IF(INDIRECT(\"c\" & (VLOOKUP(Switch!$D$59,$F$2:$G$44,2,FALSE)+ROW()-2))=Switch!$D$59,INDIRECT(\"a\" & (VLOOKUP(Switch!$D$59,$F$2:$G$44,2,FALSE)+ROW()-2)),\"\")","v":{"$error":"#N/A"}},{"$f":"IF(INDIRECT(\"c\" & (VLOOKUP(Switch!$D$60,$F$2:$G$44,2,FALSE)+ROW()-2))=Switch!$D$60,INDIRECT(\"a\" & (VLOOKUP(Switch!$D$60,$F$2:$G$44,2,FALSE)+ROW()-2)),\"\")","v":{"$error":"#N/A"}},{"$f":"IF(INDIRECT(\"c\" & (VLOOKUP(Switch!$D$61,$F$2:$G$44,2,FALSE)+ROW()-2))=Switch!$D$61,INDIRECT(\"a\" & (VLOOKUP(Switch!$D$61,$F$2:$G$44,2,FALSE)+ROW()-2)),\"\")","v":{"$error":"#N/A"}},{"$f":"IF(INDIRECT(\"c\" & (VLOOKUP(Switch!$D$62,$F$2:$G$44,2,FALSE)+ROW()-2))=Switch!$D$62,INDIRECT(\"a\" & (VLOOKUP(Switch!$D$62,$F$2:$G$44,2,FALSE)+ROW()-2)),\"\")","v":{"$error":"#N/A"}},{"$f":"IF(INDIRECT(\"c\" & (VLOOKUP(Switch!$D$63,$F$2:$G$44,2,FALSE)+ROW()-2))=Switch!$D$63,INDIRECT(\"a\" & (VLOOKUP(Switch!$D$63,$F$2:$G$44,2,FALSE)+ROW()-2)),\"\")","v":{"$error":"#N/A"}},{"$f":"IF(INDIRECT(\"c\" & (VLOOKUP(Switch!$D$64,$F$2:$G$44,2,FALSE)+ROW()-2))=Switch!$D$64,INDIRECT(\"a\" & (VLOOKUP(Switch!$D$64,$F$2:$G$44,2,FALSE)+ROW()-2)),\"\")","v":{"$error":"#N/A"}},{"$f":"IF(INDIRECT(\"c\" & (VLOOKUP(Switch!$D$65,$F$2:$G$44,2,FALSE)+ROW()-2))=Switch!$D$65,INDIRECT(\"a\" & (VLOOKUP(Switch!$D$65,$F$2:$G$44,2,FALSE)+ROW()-2)),\"\")","v":{"$error":"#N/A"}},{"$f":"IF(INDIRECT(\"c\" & (VLOOKUP(Switch!$D$66,$F$2:$G$44,2,FALSE)+ROW()-2))=Switch!$D$66,INDIRECT(\"a\" & (VLOOKUP(Switch!$D$66,$F$2:$G$44,2,FALSE)+ROW()-2)),\"\")","v":{"$error":"#N/A"}}]
["Nedgroup Inv Flexible Income Fund A2","AHBM","Nedgroup Collective Investments Ltd",{"$f":"ROW()","v":362},null,null,{"$f":"VLOOKUP(F362,$C$2:$D$637,2,FALSE)","v":{"$error":"#N/A"}},{"$f":"IF(INDIRECT(\"c\" & (VLOOKUP(Switch!$D$26,$F$2:$G$44,2,FALSE)+ROW()-2))=Switch!$D$26,INDIRECT(\"a\" & (VLOOKUP(Switch!$D$26,$F$2:$G$44,2,FALSE)+ROW()-2)),\"\")","v":{"$error":"#N/A"}},{"$f":"IF(INDIRECT(\"c\" & (VLOOKUP(Switch!$D$27,$F$2:$G$44,2,FALSE)+ROW()-2))=Switch!$D$27,INDIRECT(\"a\" & (VLOOKUP(Switch!$D$27,$F$2:$G$44,2,FALSE)+ROW()-2)),\"\")","v":{"$error":"#N/A"}},{"$f":"IF(INDIRECT(\"c\" & (VLOOKUP(Switch!$D$28,$F$2:$G$44,2,FALSE)+ROW()-2))=Switch!$D$28,INDIRECT(\"a\" & (VLOOKUP(Switch!$D$28,$F$2:$G$44,2,FALSE)+ROW()-2)),\"\")","v":{"$error":"#N/A"}},{"$f":"IF(INDIRECT(\"c\" & (VLOOKUP(Switch!$D$29,$F$2:$G$44,2,FALSE)+ROW()-2))=Switch!$D$29,INDIRECT(\"a\" & (VLOOKUP(Switch!$D$29,$F$2:$G$44,2,FALSE)+ROW()-2)),\"\")","v":{"$error":"#N/A"}},{"$f":"IF(INDIRECT(\"c\" & (VLOOKUP(Switch!$D$30,$F$2:$G$44,2,FALSE)+ROW()-2))=Switch!$D$30,INDIRECT(\"a\" & (VLOOKUP(Switch!$D$30,$F$2:$G$44,2,FALSE)+ROW()-2)),\"\")","v":{"$error":"#N/A"}},{"$f":"IF(INDIRECT(\"c\" & (VLOOKUP(Switch!$D$31,$F$2:$G$44,2,FALSE)+ROW()-2))=Switch!$D$31,INDIRECT(\"a\" & (VLOOKUP(Switch!$D$31,$F$2:$G$44,2,FALSE)+ROW()-2)),\"\")","v":{"$error":"#N/A"}},{"$f":"IF(INDIRECT(\"c\" & (VLOOKUP(Switch!$D$32,$F$2:$G$44,2,FALSE)+ROW()-2))=Switch!$D$32,INDIRECT(\"a\" & (VLOOKUP(Switch!$D$32,$F$2:$G$44,2,FALSE)+ROW()-2)),\"\")","v":{"$error":"#N/A"}},{"$f":"IF(INDIRECT(\"c\" & (VLOOKUP(Switch!$D$33,$F$2:$G$44,2,FALSE)+ROW()-2))=Switch!$D$33,INDIRECT(\"a\" & (VLOOKUP(Switch!$D$33,$F$2:$G$44,2,FALSE)+ROW()-2)),\"\")","v":{"$error":"#N/A"}},{"$f":"IF(INDIRECT(\"c\" & (VLOOKUP(Switch!$D$34,$F$2:$G$44,2,FALSE)+ROW()-2))=Switch!$D$34,INDIRECT(\"a\" & (VLOOKUP(Switch!$D$34,$F$2:$G$44,2,FALSE)+ROW()-2)),\"\")","v":{"$error":"#N/A"}},{"$f":"IF(INDIRECT(\"c\" & (VLOOKUP(Switch!$D$35,$F$2:$G$44,2,FALSE)+ROW()-2))=Switch!$D$35,INDIRECT(\"a\" & (VLOOKUP(Switch!$D$35,$F$2:$G$44,2,FALSE)+ROW()-2)),\"\")","v":{"$error":"#N/A"}},{"$f":"IF(INDIRECT(\"c\" & (VLOOKUP(Switch!$D$36,$F$2:$G$44,2,FALSE)+ROW()-2))=Switch!$D$36,INDIRECT(\"a\" & (VLOOKUP(Switch!$D$36,$F$2:$G$44,2,FALSE)+ROW()-2)),\"\")","v":{"$error":"#N/A"}},{"$f":"IF(INDIRECT(\"c\" & (VLOOKUP(Switch!$D$37,$F$2:$G$44,2,FALSE)+ROW()-2))=Switch!$D$37,INDIRECT(\"a\" & (VLOOKUP(Switch!$D$37,$F$2:$G$44,2,FALSE)+ROW()-2)),\"\")","v":{"$error":"#N/A"}},{"$f":"IF(INDIRECT(\"c\" & (VLOOKUP(Switch!$D$38,$F$2:$G$44,2,FALSE)+ROW()-2))=Switch!$D$38,INDIRECT(\"a\" & (VLOOKUP(Switch!$D$38,$F$2:$G$44,2,FALSE)+ROW()-2)),\"\")","v":{"$error":"#N/A"}},{"$f":"IF(INDIRECT(\"c\" & (VLOOKUP(Switch!$D$39,$F$2:$G$44,2,FALSE)+ROW()-2))=Switch!$D$39,INDIRECT(\"a\" & (VLOOKUP(Switch!$D$39,$F$2:$G$44,2,FALSE)+ROW()-2)),\"\")","v":{"$error":"#N/A"}},{"$f":"IF(INDIRECT(\"c\" & (VLOOKUP(Switch!$D$40,$F$2:$G$44,2,FALSE)+ROW()-2))=Switch!$D$40,INDIRECT(\"a\" & (VLOOKUP(Switch!$D$40,$F$2:$G$44,2,FALSE)+ROW()-2)),\"\")","v":{"$error":"#N/A"}},{"$f":"IF(INDIRECT(\"c\" & (VLOOKUP(Switch!$D$52,$F$2:$G$44,2,FALSE)+ROW()-2))=Switch!$D$52,INDIRECT(\"a\" & (VLOOKUP(Switch!$D$52,$F$2:$G$44,2,FALSE)+ROW()-2)),\"\")","v":{"$error":"#N/A"}},{"$f":"IF(INDIRECT(\"c\" & (VLOOKUP(Switch!$D$53,$F$2:$G$44,2,FALSE)+ROW()-2))=Switch!$D$53,INDIRECT(\"a\" & (VLOOKUP(Switch!$D$53,$F$2:$G$44,2,FALSE)+ROW()-2)),\"\")","v":{"$error":"#N/A"}},{"$f":"IF(INDIRECT(\"c\" & (VLOOKUP(Switch!$D$54,$F$2:$G$44,2,FALSE)+ROW()-2))=Switch!$D$54,INDIRECT(\"a\" & (VLOOKUP(Switch!$D$54,$F$2:$G$44,2,FALSE)+ROW()-2)),\"\")","v":{"$error":"#N/A"}},{"$f":"IF(INDIRECT(\"c\" & (VLOOKUP(Switch!$D$55,$F$2:$G$44,2,FALSE)+ROW()-2))=Switch!$D$55,INDIRECT(\"a\" & (VLOOKUP(Switch!$D$55,$F$2:$G$44,2,FALSE)+ROW()-2)),\"\")","v":{"$error":"#N/A"}},{"$f":"IF(INDIRECT(\"c\" & (VLOOKUP(Switch!$D$56,$F$2:$G$44,2,FALSE)+ROW()-2))=Switch!$D$56,INDIRECT(\"a\" & (VLOOKUP(Switch!$D$56,$F$2:$G$44,2,FALSE)+ROW()-2)),\"\")","v":{"$error":"#N/A"}},{"$f":"IF(INDIRECT(\"c\" & (VLOOKUP(Switch!$D$57,$F$2:$G$44,2,FALSE)+ROW()-2))=Switch!$D$57,INDIRECT(\"a\" & (VLOOKUP(Switch!$D$57,$F$2:$G$44,2,FALSE)+ROW()-2)),\"\")","v":{"$error":"#N/A"}},{"$f":"IF(INDIRECT(\"c\" & (VLOOKUP(Switch!$D$58,$F$2:$G$44,2,FALSE)+ROW()-2))=Switch!$D$58,INDIRECT(\"a\" & (VLOOKUP(Switch!$D$58,$F$2:$G$44,2,FALSE)+ROW()-2)),\"\")","v":{"$error":"#N/A"}},{"$f":"IF(INDIRECT(\"c\" & (VLOOKUP(Switch!$D$59,$F$2:$G$44,2,FALSE)+ROW()-2))=Switch!$D$59,INDIRECT(\"a\" & (VLOOKUP(Switch!$D$59,$F$2:$G$44,2,FALSE)+ROW()-2)),\"\")","v":{"$error":"#N/A"}},{"$f":"IF(INDIRECT(\"c\" & (VLOOKUP(Switch!$D$60,$F$2:$G$44,2,FALSE)+ROW()-2))=Switch!$D$60,INDIRECT(\"a\" & (VLOOKUP(Switch!$D$60,$F$2:$G$44,2,FALSE)+ROW()-2)),\"\")","v":{"$error":"#N/A"}},{"$f":"IF(INDIRECT(\"c\" & (VLOOKUP(Switch!$D$61,$F$2:$G$44,2,FALSE)+ROW()-2))=Switch!$D$61,INDIRECT(\"a\" & (VLOOKUP(Switch!$D$61,$F$2:$G$44,2,FALSE)+ROW()-2)),\"\")","v":{"$error":"#N/A"}},{"$f":"IF(INDIRECT(\"c\" & (VLOOKUP(Switch!$D$62,$F$2:$G$44,2,FALSE)+ROW()-2))=Switch!$D$62,INDIRECT(\"a\" & (VLOOKUP(Switch!$D$62,$F$2:$G$44,2,FALSE)+ROW()-2)),\"\")","v":{"$error":"#N/A"}},{"$f":"IF(INDIRECT(\"c\" & (VLOOKUP(Switch!$D$63,$F$2:$G$44,2,FALSE)+ROW()-2))=Switch!$D$63,INDIRECT(\"a\" & (VLOOKUP(Switch!$D$63,$F$2:$G$44,2,FALSE)+ROW()-2)),\"\")","v":{"$error":"#N/A"}},{"$f":"IF(INDIRECT(\"c\" & (VLOOKUP(Switch!$D$64,$F$2:$G$44,2,FALSE)+ROW()-2))=Switch!$D$64,INDIRECT(\"a\" & (VLOOKUP(Switch!$D$64,$F$2:$G$44,2,FALSE)+ROW()-2)),\"\")","v":{"$error":"#N/A"}},{"$f":"IF(INDIRECT(\"c\" & (VLOOKUP(Switch!$D$65,$F$2:$G$44,2,FALSE)+ROW()-2))=Switch!$D$65,INDIRECT(\"a\" & (VLOOKUP(Switch!$D$65,$F$2:$G$44,2,FALSE)+ROW()-2)),\"\")","v":{"$error":"#N/A"}},{"$f":"IF(INDIRECT(\"c\" & (VLOOKUP(Switch!$D$66,$F$2:$G$44,2,FALSE)+ROW()-2))=Switch!$D$66,INDIRECT(\"a\" & (VLOOKUP(Switch!$D$66,$F$2:$G$44,2,FALSE)+ROW()-2)),\"\")","v":{"$error":"#N/A"}}]
["Nedgroup Inv Flexible Income B1","NEIFB","Nedgroup Collective Investments Ltd",{"$f":"ROW()","v":363},null,null,{"$f":"VLOOKUP(F363,$C$2:$D$637,2,FALSE)","v":{"$error":"#N/A"}},{"$f":"IF(INDIRECT(\"c\" & (VLOOKUP(Switch!$D$26,$F$2:$G$44,2,FALSE)+ROW()-2))=Switch!$D$26,INDIRECT(\"a\" & (VLOOKUP(Switch!$D$26,$F$2:$G$44,2,FALSE)+ROW()-2)),\"\")","v":{"$error":"#N/A"}},{"$f":"IF(INDIRECT(\"c\" & (VLOOKUP(Switch!$D$27,$F$2:$G$44,2,FALSE)+ROW()-2))=Switch!$D$27,INDIRECT(\"a\" & (VLOOKUP(Switch!$D$27,$F$2:$G$44,2,FALSE)+ROW()-2)),\"\")","v":{"$error":"#N/A"}},{"$f":"IF(INDIRECT(\"c\" & (VLOOKUP(Switch!$D$28,$F$2:$G$44,2,FALSE)+ROW()-2))=Switch!$D$28,INDIRECT(\"a\" & (VLOOKUP(Switch!$D$28,$F$2:$G$44,2,FALSE)+ROW()-2)),\"\")","v":{"$error":"#N/A"}},{"$f":"IF(INDIRECT(\"c\" & (VLOOKUP(Switch!$D$29,$F$2:$G$44,2,FALSE)+ROW()-2))=Switch!$D$29,INDIRECT(\"a\" & (VLOOKUP(Switch!$D$29,$F$2:$G$44,2,FALSE)+ROW()-2)),\"\")","v":{"$error":"#N/A"}},{"$f":"IF(INDIRECT(\"c\" & (VLOOKUP(Switch!$D$30,$F$2:$G$44,2,FALSE)+ROW()-2))=Switch!$D$30,INDIRECT(\"a\" & (VLOOKUP(Switch!$D$30,$F$2:$G$44,2,FALSE)+ROW()-2)),\"\")","v":{"$error":"#N/A"}},{"$f":"IF(INDIRECT(\"c\" & (VLOOKUP(Switch!$D$31,$F$2:$G$44,2,FALSE)+ROW()-2))=Switch!$D$31,INDIRECT(\"a\" & (VLOOKUP(Switch!$D$31,$F$2:$G$44,2,FALSE)+ROW()-2)),\"\")","v":{"$error":"#N/A"}},{"$f":"IF(INDIRECT(\"c\" & (VLOOKUP(Switch!$D$32,$F$2:$G$44,2,FALSE)+ROW()-2))=Switch!$D$32,INDIRECT(\"a\" & (VLOOKUP(Switch!$D$32,$F$2:$G$44,2,FALSE)+ROW()-2)),\"\")","v":{"$error":"#N/A"}},{"$f":"IF(INDIRECT(\"c\" & (VLOOKUP(Switch!$D$33,$F$2:$G$44,2,FALSE)+ROW()-2))=Switch!$D$33,INDIRECT(\"a\" & (VLOOKUP(Switch!$D$33,$F$2:$G$44,2,FALSE)+ROW()-2)),\"\")","v":{"$error":"#N/A"}},{"$f":"IF(INDIRECT(\"c\" & (VLOOKUP(Switch!$D$34,$F$2:$G$44,2,FALSE)+ROW()-2))=Switch!$D$34,INDIRECT(\"a\" & (VLOOKUP(Switch!$D$34,$F$2:$G$44,2,FALSE)+ROW()-2)),\"\")","v":{"$error":"#N/A"}},{"$f":"IF(INDIRECT(\"c\" & (VLOOKUP(Switch!$D$35,$F$2:$G$44,2,FALSE)+ROW()-2))=Switch!$D$35,INDIRECT(\"a\" & (VLOOKUP(Switch!$D$35,$F$2:$G$44,2,FALSE)+ROW()-2)),\"\")","v":{"$error":"#N/A"}},{"$f":"IF(INDIRECT(\"c\" & (VLOOKUP(Switch!$D$36,$F$2:$G$44,2,FALSE)+ROW()-2))=Switch!$D$36,INDIRECT(\"a\" & (VLOOKUP(Switch!$D$36,$F$2:$G$44,2,FALSE)+ROW()-2)),\"\")","v":{"$error":"#N/A"}},{"$f":"IF(INDIRECT(\"c\" & (VLOOKUP(Switch!$D$37,$F$2:$G$44,2,FALSE)+ROW()-2))=Switch!$D$37,INDIRECT(\"a\" & (VLOOKUP(Switch!$D$37,$F$2:$G$44,2,FALSE)+ROW()-2)),\"\")","v":{"$error":"#N/A"}},{"$f":"IF(INDIRECT(\"c\" & (VLOOKUP(Switch!$D$38,$F$2:$G$44,2,FALSE)+ROW()-2))=Switch!$D$38,INDIRECT(\"a\" & (VLOOKUP(Switch!$D$38,$F$2:$G$44,2,FALSE)+ROW()-2)),\"\")","v":{"$error":"#N/A"}},{"$f":"IF(INDIRECT(\"c\" & (VLOOKUP(Switch!$D$39,$F$2:$G$44,2,FALSE)+ROW()-2))=Switch!$D$39,INDIRECT(\"a\" & (VLOOKUP(Switch!$D$39,$F$2:$G$44,2,FALSE)+ROW()-2)),\"\")","v":{"$error":"#N/A"}},{"$f":"IF(INDIRECT(\"c\" & (VLOOKUP(Switch!$D$40,$F$2:$G$44,2,FALSE)+ROW()-2))=Switch!$D$40,INDIRECT(\"a\" & (VLOOKUP(Switch!$D$40,$F$2:$G$44,2,FALSE)+ROW()-2)),\"\")","v":{"$error":"#N/A"}},{"$f":"IF(INDIRECT(\"c\" & (VLOOKUP(Switch!$D$52,$F$2:$G$44,2,FALSE)+ROW()-2))=Switch!$D$52,INDIRECT(\"a\" & (VLOOKUP(Switch!$D$52,$F$2:$G$44,2,FALSE)+ROW()-2)),\"\")","v":{"$error":"#N/A"}},{"$f":"IF(INDIRECT(\"c\" & (VLOOKUP(Switch!$D$53,$F$2:$G$44,2,FALSE)+ROW()-2))=Switch!$D$53,INDIRECT(\"a\" & (VLOOKUP(Switch!$D$53,$F$2:$G$44,2,FALSE)+ROW()-2)),\"\")","v":{"$error":"#N/A"}},{"$f":"IF(INDIRECT(\"c\" & (VLOOKUP(Switch!$D$54,$F$2:$G$44,2,FALSE)+ROW()-2))=Switch!$D$54,INDIRECT(\"a\" & (VLOOKUP(Switch!$D$54,$F$2:$G$44,2,FALSE)+ROW()-2)),\"\")","v":{"$error":"#N/A"}},{"$f":"IF(INDIRECT(\"c\" & (VLOOKUP(Switch!$D$55,$F$2:$G$44,2,FALSE)+ROW()-2))=Switch!$D$55,INDIRECT(\"a\" & (VLOOKUP(Switch!$D$55,$F$2:$G$44,2,FALSE)+ROW()-2)),\"\")","v":{"$error":"#N/A"}},{"$f":"IF(INDIRECT(\"c\" & (VLOOKUP(Switch!$D$56,$F$2:$G$44,2,FALSE)+ROW()-2))=Switch!$D$56,INDIRECT(\"a\" & (VLOOKUP(Switch!$D$56,$F$2:$G$44,2,FALSE)+ROW()-2)),\"\")","v":{"$error":"#N/A"}},{"$f":"IF(INDIRECT(\"c\" & (VLOOKUP(Switch!$D$57,$F$2:$G$44,2,FALSE)+ROW()-2))=Switch!$D$57,INDIRECT(\"a\" & (VLOOKUP(Switch!$D$57,$F$2:$G$44,2,FALSE)+ROW()-2)),\"\")","v":{"$error":"#N/A"}},{"$f":"IF(INDIRECT(\"c\" & (VLOOKUP(Switch!$D$58,$F$2:$G$44,2,FALSE)+ROW()-2))=Switch!$D$58,INDIRECT(\"a\" & (VLOOKUP(Switch!$D$58,$F$2:$G$44,2,FALSE)+ROW()-2)),\"\")","v":{"$error":"#N/A"}},{"$f":"IF(INDIRECT(\"c\" & (VLOOKUP(Switch!$D$59,$F$2:$G$44,2,FALSE)+ROW()-2))=Switch!$D$59,INDIRECT(\"a\" & (VLOOKUP(Switch!$D$59,$F$2:$G$44,2,FALSE)+ROW()-2)),\"\")","v":{"$error":"#N/A"}},{"$f":"IF(INDIRECT(\"c\" & (VLOOKUP(Switch!$D$60,$F$2:$G$44,2,FALSE)+ROW()-2))=Switch!$D$60,INDIRECT(\"a\" & (VLOOKUP(Switch!$D$60,$F$2:$G$44,2,FALSE)+ROW()-2)),\"\")","v":{"$error":"#N/A"}},{"$f":"IF(INDIRECT(\"c\" & (VLOOKUP(Switch!$D$61,$F$2:$G$44,2,FALSE)+ROW()-2))=Switch!$D$61,INDIRECT(\"a\" & (VLOOKUP(Switch!$D$61,$F$2:$G$44,2,FALSE)+ROW()-2)),\"\")","v":{"$error":"#N/A"}},{"$f":"IF(INDIRECT(\"c\" & (VLOOKUP(Switch!$D$62,$F$2:$G$44,2,FALSE)+ROW()-2))=Switch!$D$62,INDIRECT(\"a\" & (VLOOKUP(Switch!$D$62,$F$2:$G$44,2,FALSE)+ROW()-2)),\"\")","v":{"$error":"#N/A"}},{"$f":"IF(INDIRECT(\"c\" & (VLOOKUP(Switch!$D$63,$F$2:$G$44,2,FALSE)+ROW()-2))=Switch!$D$63,INDIRECT(\"a\" & (VLOOKUP(Switch!$D$63,$F$2:$G$44,2,FALSE)+ROW()-2)),\"\")","v":{"$error":"#N/A"}},{"$f":"IF(INDIRECT(\"c\" & (VLOOKUP(Switch!$D$64,$F$2:$G$44,2,FALSE)+ROW()-2))=Switch!$D$64,INDIRECT(\"a\" & (VLOOKUP(Switch!$D$64,$F$2:$G$44,2,FALSE)+ROW()-2)),\"\")","v":{"$error":"#N/A"}},{"$f":"IF(INDIRECT(\"c\" & (VLOOKUP(Switch!$D$65,$F$2:$G$44,2,FALSE)+ROW()-2))=Switch!$D$65,INDIRECT(\"a\" & (VLOOKUP(Switch!$D$65,$F$2:$G$44,2,FALSE)+ROW()-2)),\"\")","v":{"$error":"#N/A"}},{"$f":"IF(INDIRECT(\"c\" & (VLOOKUP(Switch!$D$66,$F$2:$G$44,2,FALSE)+ROW()-2))=Switch!$D$66,INDIRECT(\"a\" & (VLOOKUP(Switch!$D$66,$F$2:$G$44,2,FALSE)+ROW()-2)),\"\")","v":{"$error":"#N/A"}}]
["Nedgroup Inv Flexible Income Fund R","NEIFB","Nedgroup Collective Investments Ltd",{"$f":"ROW()","v":364},null,null,{"$f":"VLOOKUP(F364,$C$2:$D$637,2,FALSE)","v":{"$error":"#N/A"}},{"$f":"IF(INDIRECT(\"c\" & (VLOOKUP(Switch!$D$26,$F$2:$G$44,2,FALSE)+ROW()-2))=Switch!$D$26,INDIRECT(\"a\" & (VLOOKUP(Switch!$D$26,$F$2:$G$44,2,FALSE)+ROW()-2)),\"\")","v":{"$error":"#N/A"}},{"$f":"IF(INDIRECT(\"c\" & (VLOOKUP(Switch!$D$27,$F$2:$G$44,2,FALSE)+ROW()-2))=Switch!$D$27,INDIRECT(\"a\" & (VLOOKUP(Switch!$D$27,$F$2:$G$44,2,FALSE)+ROW()-2)),\"\")","v":{"$error":"#N/A"}},{"$f":"IF(INDIRECT(\"c\" & (VLOOKUP(Switch!$D$28,$F$2:$G$44,2,FALSE)+ROW()-2))=Switch!$D$28,INDIRECT(\"a\" & (VLOOKUP(Switch!$D$28,$F$2:$G$44,2,FALSE)+ROW()-2)),\"\")","v":{"$error":"#N/A"}},{"$f":"IF(INDIRECT(\"c\" & (VLOOKUP(Switch!$D$29,$F$2:$G$44,2,FALSE)+ROW()-2))=Switch!$D$29,INDIRECT(\"a\" & (VLOOKUP(Switch!$D$29,$F$2:$G$44,2,FALSE)+ROW()-2)),\"\")","v":{"$error":"#N/A"}},{"$f":"IF(INDIRECT(\"c\" & (VLOOKUP(Switch!$D$30,$F$2:$G$44,2,FALSE)+ROW()-2))=Switch!$D$30,INDIRECT(\"a\" & (VLOOKUP(Switch!$D$30,$F$2:$G$44,2,FALSE)+ROW()-2)),\"\")","v":{"$error":"#N/A"}},{"$f":"IF(INDIRECT(\"c\" & (VLOOKUP(Switch!$D$31,$F$2:$G$44,2,FALSE)+ROW()-2))=Switch!$D$31,INDIRECT(\"a\" & (VLOOKUP(Switch!$D$31,$F$2:$G$44,2,FALSE)+ROW()-2)),\"\")","v":{"$error":"#N/A"}},{"$f":"IF(INDIRECT(\"c\" & (VLOOKUP(Switch!$D$32,$F$2:$G$44,2,FALSE)+ROW()-2))=Switch!$D$32,INDIRECT(\"a\" & (VLOOKUP(Switch!$D$32,$F$2:$G$44,2,FALSE)+ROW()-2)),\"\")","v":{"$error":"#N/A"}},{"$f":"IF(INDIRECT(\"c\" & (VLOOKUP(Switch!$D$33,$F$2:$G$44,2,FALSE)+ROW()-2))=Switch!$D$33,INDIRECT(\"a\" & (VLOOKUP(Switch!$D$33,$F$2:$G$44,2,FALSE)+ROW()-2)),\"\")","v":{"$error":"#N/A"}},{"$f":"IF(INDIRECT(\"c\" & (VLOOKUP(Switch!$D$34,$F$2:$G$44,2,FALSE)+ROW()-2))=Switch!$D$34,INDIRECT(\"a\" & (VLOOKUP(Switch!$D$34,$F$2:$G$44,2,FALSE)+ROW()-2)),\"\")","v":{"$error":"#N/A"}},{"$f":"IF(INDIRECT(\"c\" & (VLOOKUP(Switch!$D$35,$F$2:$G$44,2,FALSE)+ROW()-2))=Switch!$D$35,INDIRECT(\"a\" & (VLOOKUP(Switch!$D$35,$F$2:$G$44,2,FALSE)+ROW()-2)),\"\")","v":{"$error":"#N/A"}},{"$f":"IF(INDIRECT(\"c\" & (VLOOKUP(Switch!$D$36,$F$2:$G$44,2,FALSE)+ROW()-2))=Switch!$D$36,INDIRECT(\"a\" & (VLOOKUP(Switch!$D$36,$F$2:$G$44,2,FALSE)+ROW()-2)),\"\")","v":{"$error":"#N/A"}},{"$f":"IF(INDIRECT(\"c\" & (VLOOKUP(Switch!$D$37,$F$2:$G$44,2,FALSE)+ROW()-2))=Switch!$D$37,INDIRECT(\"a\" & (VLOOKUP(Switch!$D$37,$F$2:$G$44,2,FALSE)+ROW()-2)),\"\")","v":{"$error":"#N/A"}},{"$f":"IF(INDIRECT(\"c\" & (VLOOKUP(Switch!$D$38,$F$2:$G$44,2,FALSE)+ROW()-2))=Switch!$D$38,INDIRECT(\"a\" & (VLOOKUP(Switch!$D$38,$F$2:$G$44,2,FALSE)+ROW()-2)),\"\")","v":{"$error":"#N/A"}},{"$f":"IF(INDIRECT(\"c\" & (VLOOKUP(Switch!$D$39,$F$2:$G$44,2,FALSE)+ROW()-2))=Switch!$D$39,INDIRECT(\"a\" & (VLOOKUP(Switch!$D$39,$F$2:$G$44,2,FALSE)+ROW()-2)),\"\")","v":{"$error":"#N/A"}},{"$f":"IF(INDIRECT(\"c\" & (VLOOKUP(Switch!$D$40,$F$2:$G$44,2,FALSE)+ROW()-2))=Switch!$D$40,INDIRECT(\"a\" & (VLOOKUP(Switch!$D$40,$F$2:$G$44,2,FALSE)+ROW()-2)),\"\")","v":{"$error":"#N/A"}},{"$f":"IF(INDIRECT(\"c\" & (VLOOKUP(Switch!$D$52,$F$2:$G$44,2,FALSE)+ROW()-2))=Switch!$D$52,INDIRECT(\"a\" & (VLOOKUP(Switch!$D$52,$F$2:$G$44,2,FALSE)+ROW()-2)),\"\")","v":{"$error":"#N/A"}},{"$f":"IF(INDIRECT(\"c\" & (VLOOKUP(Switch!$D$53,$F$2:$G$44,2,FALSE)+ROW()-2))=Switch!$D$53,INDIRECT(\"a\" & (VLOOKUP(Switch!$D$53,$F$2:$G$44,2,FALSE)+ROW()-2)),\"\")","v":{"$error":"#N/A"}},{"$f":"IF(INDIRECT(\"c\" & (VLOOKUP(Switch!$D$54,$F$2:$G$44,2,FALSE)+ROW()-2))=Switch!$D$54,INDIRECT(\"a\" & (VLOOKUP(Switch!$D$54,$F$2:$G$44,2,FALSE)+ROW()-2)),\"\")","v":{"$error":"#N/A"}},{"$f":"IF(INDIRECT(\"c\" & (VLOOKUP(Switch!$D$55,$F$2:$G$44,2,FALSE)+ROW()-2))=Switch!$D$55,INDIRECT(\"a\" & (VLOOKUP(Switch!$D$55,$F$2:$G$44,2,FALSE)+ROW()-2)),\"\")","v":{"$error":"#N/A"}},{"$f":"IF(INDIRECT(\"c\" & (VLOOKUP(Switch!$D$56,$F$2:$G$44,2,FALSE)+ROW()-2))=Switch!$D$56,INDIRECT(\"a\" & (VLOOKUP(Switch!$D$56,$F$2:$G$44,2,FALSE)+ROW()-2)),\"\")","v":{"$error":"#N/A"}},{"$f":"IF(INDIRECT(\"c\" & (VLOOKUP(Switch!$D$57,$F$2:$G$44,2,FALSE)+ROW()-2))=Switch!$D$57,INDIRECT(\"a\" & (VLOOKUP(Switch!$D$57,$F$2:$G$44,2,FALSE)+ROW()-2)),\"\")","v":{"$error":"#N/A"}},{"$f":"IF(INDIRECT(\"c\" & (VLOOKUP(Switch!$D$58,$F$2:$G$44,2,FALSE)+ROW()-2))=Switch!$D$58,INDIRECT(\"a\" & (VLOOKUP(Switch!$D$58,$F$2:$G$44,2,FALSE)+ROW()-2)),\"\")","v":{"$error":"#N/A"}},{"$f":"IF(INDIRECT(\"c\" & (VLOOKUP(Switch!$D$59,$F$2:$G$44,2,FALSE)+ROW()-2))=Switch!$D$59,INDIRECT(\"a\" & (VLOOKUP(Switch!$D$59,$F$2:$G$44,2,FALSE)+ROW()-2)),\"\")","v":{"$error":"#N/A"}},{"$f":"IF(INDIRECT(\"c\" & (VLOOKUP(Switch!$D$60,$F$2:$G$44,2,FALSE)+ROW()-2))=Switch!$D$60,INDIRECT(\"a\" & (VLOOKUP(Switch!$D$60,$F$2:$G$44,2,FALSE)+ROW()-2)),\"\")","v":{"$error":"#N/A"}},{"$f":"IF(INDIRECT(\"c\" & (VLOOKUP(Switch!$D$61,$F$2:$G$44,2,FALSE)+ROW()-2))=Switch!$D$61,INDIRECT(\"a\" & (VLOOKUP(Switch!$D$61,$F$2:$G$44,2,FALSE)+ROW()-2)),\"\")","v":{"$error":"#N/A"}},{"$f":"IF(INDIRECT(\"c\" & (VLOOKUP(Switch!$D$62,$F$2:$G$44,2,FALSE)+ROW()-2))=Switch!$D$62,INDIRECT(\"a\" & (VLOOKUP(Switch!$D$62,$F$2:$G$44,2,FALSE)+ROW()-2)),\"\")","v":{"$error":"#N/A"}},{"$f":"IF(INDIRECT(\"c\" & (VLOOKUP(Switch!$D$63,$F$2:$G$44,2,FALSE)+ROW()-2))=Switch!$D$63,INDIRECT(\"a\" & (VLOOKUP(Switch!$D$63,$F$2:$G$44,2,FALSE)+ROW()-2)),\"\")","v":{"$error":"#N/A"}},{"$f":"IF(INDIRECT(\"c\" & (VLOOKUP(Switch!$D$64,$F$2:$G$44,2,FALSE)+ROW()-2))=Switch!$D$64,INDIRECT(\"a\" & (VLOOKUP(Switch!$D$64,$F$2:$G$44,2,FALSE)+ROW()-2)),\"\")","v":{"$error":"#N/A"}},{"$f":"IF(INDIRECT(\"c\" & (VLOOKUP(Switch!$D$65,$F$2:$G$44,2,FALSE)+ROW()-2))=Switch!$D$65,INDIRECT(\"a\" & (VLOOKUP(Switch!$D$65,$F$2:$G$44,2,FALSE)+ROW()-2)),\"\")","v":{"$error":"#N/A"}},{"$f":"IF(INDIRECT(\"c\" & (VLOOKUP(Switch!$D$66,$F$2:$G$44,2,FALSE)+ROW()-2))=Switch!$D$66,INDIRECT(\"a\" & (VLOOKUP(Switch!$D$66,$F$2:$G$44,2,FALSE)+ROW()-2)),\"\")","v":{"$error":"#N/A"}}]
["Nedgroup Inv Flexible Income Fund A","NEIFB","Nedgroup Collective Investments Ltd",{"$f":"ROW()","v":365},null,null,{"$f":"VLOOKUP(F365,$C$2:$D$637,2,FALSE)","v":{"$error":"#N/A"}},{"$f":"IF(INDIRECT(\"c\" & (VLOOKUP(Switch!$D$26,$F$2:$G$44,2,FALSE)+ROW()-2))=Switch!$D$26,INDIRECT(\"a\" & (VLOOKUP(Switch!$D$26,$F$2:$G$44,2,FALSE)+ROW()-2)),\"\")","v":{"$error":"#N/A"}},{"$f":"IF(INDIRECT(\"c\" & (VLOOKUP(Switch!$D$27,$F$2:$G$44,2,FALSE)+ROW()-2))=Switch!$D$27,INDIRECT(\"a\" & (VLOOKUP(Switch!$D$27,$F$2:$G$44,2,FALSE)+ROW()-2)),\"\")","v":{"$error":"#N/A"}},{"$f":"IF(INDIRECT(\"c\" & (VLOOKUP(Switch!$D$28,$F$2:$G$44,2,FALSE)+ROW()-2))=Switch!$D$28,INDIRECT(\"a\" & (VLOOKUP(Switch!$D$28,$F$2:$G$44,2,FALSE)+ROW()-2)),\"\")","v":{"$error":"#N/A"}},{"$f":"IF(INDIRECT(\"c\" & (VLOOKUP(Switch!$D$29,$F$2:$G$44,2,FALSE)+ROW()-2))=Switch!$D$29,INDIRECT(\"a\" & (VLOOKUP(Switch!$D$29,$F$2:$G$44,2,FALSE)+ROW()-2)),\"\")","v":{"$error":"#N/A"}},{"$f":"IF(INDIRECT(\"c\" & (VLOOKUP(Switch!$D$30,$F$2:$G$44,2,FALSE)+ROW()-2))=Switch!$D$30,INDIRECT(\"a\" & (VLOOKUP(Switch!$D$30,$F$2:$G$44,2,FALSE)+ROW()-2)),\"\")","v":{"$error":"#N/A"}},{"$f":"IF(INDIRECT(\"c\" & (VLOOKUP(Switch!$D$31,$F$2:$G$44,2,FALSE)+ROW()-2))=Switch!$D$31,INDIRECT(\"a\" & (VLOOKUP(Switch!$D$31,$F$2:$G$44,2,FALSE)+ROW()-2)),\"\")","v":{"$error":"#N/A"}},{"$f":"IF(INDIRECT(\"c\" & (VLOOKUP(Switch!$D$32,$F$2:$G$44,2,FALSE)+ROW()-2))=Switch!$D$32,INDIRECT(\"a\" & (VLOOKUP(Switch!$D$32,$F$2:$G$44,2,FALSE)+ROW()-2)),\"\")","v":{"$error":"#N/A"}},{"$f":"IF(INDIRECT(\"c\" & (VLOOKUP(Switch!$D$33,$F$2:$G$44,2,FALSE)+ROW()-2))=Switch!$D$33,INDIRECT(\"a\" & (VLOOKUP(Switch!$D$33,$F$2:$G$44,2,FALSE)+ROW()-2)),\"\")","v":{"$error":"#N/A"}},{"$f":"IF(INDIRECT(\"c\" & (VLOOKUP(Switch!$D$34,$F$2:$G$44,2,FALSE)+ROW()-2))=Switch!$D$34,INDIRECT(\"a\" & (VLOOKUP(Switch!$D$34,$F$2:$G$44,2,FALSE)+ROW()-2)),\"\")","v":{"$error":"#N/A"}},{"$f":"IF(INDIRECT(\"c\" & (VLOOKUP(Switch!$D$35,$F$2:$G$44,2,FALSE)+ROW()-2))=Switch!$D$35,INDIRECT(\"a\" & (VLOOKUP(Switch!$D$35,$F$2:$G$44,2,FALSE)+ROW()-2)),\"\")","v":{"$error":"#N/A"}},{"$f":"IF(INDIRECT(\"c\" & (VLOOKUP(Switch!$D$36,$F$2:$G$44,2,FALSE)+ROW()-2))=Switch!$D$36,INDIRECT(\"a\" & (VLOOKUP(Switch!$D$36,$F$2:$G$44,2,FALSE)+ROW()-2)),\"\")","v":{"$error":"#N/A"}},{"$f":"IF(INDIRECT(\"c\" & (VLOOKUP(Switch!$D$37,$F$2:$G$44,2,FALSE)+ROW()-2))=Switch!$D$37,INDIRECT(\"a\" & (VLOOKUP(Switch!$D$37,$F$2:$G$44,2,FALSE)+ROW()-2)),\"\")","v":{"$error":"#N/A"}},{"$f":"IF(INDIRECT(\"c\" & (VLOOKUP(Switch!$D$38,$F$2:$G$44,2,FALSE)+ROW()-2))=Switch!$D$38,INDIRECT(\"a\" & (VLOOKUP(Switch!$D$38,$F$2:$G$44,2,FALSE)+ROW()-2)),\"\")","v":{"$error":"#N/A"}},{"$f":"IF(INDIRECT(\"c\" & (VLOOKUP(Switch!$D$39,$F$2:$G$44,2,FALSE)+ROW()-2))=Switch!$D$39,INDIRECT(\"a\" & (VLOOKUP(Switch!$D$39,$F$2:$G$44,2,FALSE)+ROW()-2)),\"\")","v":{"$error":"#N/A"}},{"$f":"IF(INDIRECT(\"c\" & (VLOOKUP(Switch!$D$40,$F$2:$G$44,2,FALSE)+ROW()-2))=Switch!$D$40,INDIRECT(\"a\" & (VLOOKUP(Switch!$D$40,$F$2:$G$44,2,FALSE)+ROW()-2)),\"\")","v":{"$error":"#N/A"}},{"$f":"IF(INDIRECT(\"c\" & (VLOOKUP(Switch!$D$52,$F$2:$G$44,2,FALSE)+ROW()-2))=Switch!$D$52,INDIRECT(\"a\" & (VLOOKUP(Switch!$D$52,$F$2:$G$44,2,FALSE)+ROW()-2)),\"\")","v":{"$error":"#N/A"}},{"$f":"IF(INDIRECT(\"c\" & (VLOOKUP(Switch!$D$53,$F$2:$G$44,2,FALSE)+ROW()-2))=Switch!$D$53,INDIRECT(\"a\" & (VLOOKUP(Switch!$D$53,$F$2:$G$44,2,FALSE)+ROW()-2)),\"\")","v":{"$error":"#N/A"}},{"$f":"IF(INDIRECT(\"c\" & (VLOOKUP(Switch!$D$54,$F$2:$G$44,2,FALSE)+ROW()-2))=Switch!$D$54,INDIRECT(\"a\" & (VLOOKUP(Switch!$D$54,$F$2:$G$44,2,FALSE)+ROW()-2)),\"\")","v":{"$error":"#N/A"}},{"$f":"IF(INDIRECT(\"c\" & (VLOOKUP(Switch!$D$55,$F$2:$G$44,2,FALSE)+ROW()-2))=Switch!$D$55,INDIRECT(\"a\" & (VLOOKUP(Switch!$D$55,$F$2:$G$44,2,FALSE)+ROW()-2)),\"\")","v":{"$error":"#N/A"}},{"$f":"IF(INDIRECT(\"c\" & (VLOOKUP(Switch!$D$56,$F$2:$G$44,2,FALSE)+ROW()-2))=Switch!$D$56,INDIRECT(\"a\" & (VLOOKUP(Switch!$D$56,$F$2:$G$44,2,FALSE)+ROW()-2)),\"\")","v":{"$error":"#N/A"}},{"$f":"IF(INDIRECT(\"c\" & (VLOOKUP(Switch!$D$57,$F$2:$G$44,2,FALSE)+ROW()-2))=Switch!$D$57,INDIRECT(\"a\" & (VLOOKUP(Switch!$D$57,$F$2:$G$44,2,FALSE)+ROW()-2)),\"\")","v":{"$error":"#N/A"}},{"$f":"IF(INDIRECT(\"c\" & (VLOOKUP(Switch!$D$58,$F$2:$G$44,2,FALSE)+ROW()-2))=Switch!$D$58,INDIRECT(\"a\" & (VLOOKUP(Switch!$D$58,$F$2:$G$44,2,FALSE)+ROW()-2)),\"\")","v":{"$error":"#N/A"}},{"$f":"IF(INDIRECT(\"c\" & (VLOOKUP(Switch!$D$59,$F$2:$G$44,2,FALSE)+ROW()-2))=Switch!$D$59,INDIRECT(\"a\" & (VLOOKUP(Switch!$D$59,$F$2:$G$44,2,FALSE)+ROW()-2)),\"\")","v":{"$error":"#N/A"}},{"$f":"IF(INDIRECT(\"c\" & (VLOOKUP(Switch!$D$60,$F$2:$G$44,2,FALSE)+ROW()-2))=Switch!$D$60,INDIRECT(\"a\" & (VLOOKUP(Switch!$D$60,$F$2:$G$44,2,FALSE)+ROW()-2)),\"\")","v":{"$error":"#N/A"}},{"$f":"IF(INDIRECT(\"c\" & (VLOOKUP(Switch!$D$61,$F$2:$G$44,2,FALSE)+ROW()-2))=Switch!$D$61,INDIRECT(\"a\" & (VLOOKUP(Switch!$D$61,$F$2:$G$44,2,FALSE)+ROW()-2)),\"\")","v":{"$error":"#N/A"}},{"$f":"IF(INDIRECT(\"c\" & (VLOOKUP(Switch!$D$62,$F$2:$G$44,2,FALSE)+ROW()-2))=Switch!$D$62,INDIRECT(\"a\" & (VLOOKUP(Switch!$D$62,$F$2:$G$44,2,FALSE)+ROW()-2)),\"\")","v":{"$error":"#N/A"}},{"$f":"IF(INDIRECT(\"c\" & (VLOOKUP(Switch!$D$63,$F$2:$G$44,2,FALSE)+ROW()-2))=Switch!$D$63,INDIRECT(\"a\" & (VLOOKUP(Switch!$D$63,$F$2:$G$44,2,FALSE)+ROW()-2)),\"\")","v":{"$error":"#N/A"}},{"$f":"IF(INDIRECT(\"c\" & (VLOOKUP(Switch!$D$64,$F$2:$G$44,2,FALSE)+ROW()-2))=Switch!$D$64,INDIRECT(\"a\" & (VLOOKUP(Switch!$D$64,$F$2:$G$44,2,FALSE)+ROW()-2)),\"\")","v":{"$error":"#N/A"}},{"$f":"IF(INDIRECT(\"c\" & (VLOOKUP(Switch!$D$65,$F$2:$G$44,2,FALSE)+ROW()-2))=Switch!$D$65,INDIRECT(\"a\" & (VLOOKUP(Switch!$D$65,$F$2:$G$44,2,FALSE)+ROW()-2)),\"\")","v":{"$error":"#N/A"}},{"$f":"IF(INDIRECT(\"c\" & (VLOOKUP(Switch!$D$66,$F$2:$G$44,2,FALSE)+ROW()-2))=Switch!$D$66,INDIRECT(\"a\" & (VLOOKUP(Switch!$D$66,$F$2:$G$44,2,FALSE)+ROW()-2)),\"\")","v":{"$error":"#N/A"}}]
["Nedgroup Investments Financials Fund A","UALA","Nedgroup Collective Investments Ltd",{"$f":"ROW()","v":366},null,null,{"$f":"VLOOKUP(F366,$C$2:$D$637,2,FALSE)","v":{"$error":"#N/A"}},{"$f":"IF(INDIRECT(\"c\" & (VLOOKUP(Switch!$D$26,$F$2:$G$44,2,FALSE)+ROW()-2))=Switch!$D$26,INDIRECT(\"a\" & (VLOOKUP(Switch!$D$26,$F$2:$G$44,2,FALSE)+ROW()-2)),\"\")","v":{"$error":"#N/A"}},{"$f":"IF(INDIRECT(\"c\" & (VLOOKUP(Switch!$D$27,$F$2:$G$44,2,FALSE)+ROW()-2))=Switch!$D$27,INDIRECT(\"a\" & (VLOOKUP(Switch!$D$27,$F$2:$G$44,2,FALSE)+ROW()-2)),\"\")","v":{"$error":"#N/A"}},{"$f":"IF(INDIRECT(\"c\" & (VLOOKUP(Switch!$D$28,$F$2:$G$44,2,FALSE)+ROW()-2))=Switch!$D$28,INDIRECT(\"a\" & (VLOOKUP(Switch!$D$28,$F$2:$G$44,2,FALSE)+ROW()-2)),\"\")","v":{"$error":"#N/A"}},{"$f":"IF(INDIRECT(\"c\" & (VLOOKUP(Switch!$D$29,$F$2:$G$44,2,FALSE)+ROW()-2))=Switch!$D$29,INDIRECT(\"a\" & (VLOOKUP(Switch!$D$29,$F$2:$G$44,2,FALSE)+ROW()-2)),\"\")","v":{"$error":"#N/A"}},{"$f":"IF(INDIRECT(\"c\" & (VLOOKUP(Switch!$D$30,$F$2:$G$44,2,FALSE)+ROW()-2))=Switch!$D$30,INDIRECT(\"a\" & (VLOOKUP(Switch!$D$30,$F$2:$G$44,2,FALSE)+ROW()-2)),\"\")","v":{"$error":"#N/A"}},{"$f":"IF(INDIRECT(\"c\" & (VLOOKUP(Switch!$D$31,$F$2:$G$44,2,FALSE)+ROW()-2))=Switch!$D$31,INDIRECT(\"a\" & (VLOOKUP(Switch!$D$31,$F$2:$G$44,2,FALSE)+ROW()-2)),\"\")","v":{"$error":"#N/A"}},{"$f":"IF(INDIRECT(\"c\" & (VLOOKUP(Switch!$D$32,$F$2:$G$44,2,FALSE)+ROW()-2))=Switch!$D$32,INDIRECT(\"a\" & (VLOOKUP(Switch!$D$32,$F$2:$G$44,2,FALSE)+ROW()-2)),\"\")","v":{"$error":"#N/A"}},{"$f":"IF(INDIRECT(\"c\" & (VLOOKUP(Switch!$D$33,$F$2:$G$44,2,FALSE)+ROW()-2))=Switch!$D$33,INDIRECT(\"a\" & (VLOOKUP(Switch!$D$33,$F$2:$G$44,2,FALSE)+ROW()-2)),\"\")","v":{"$error":"#N/A"}},{"$f":"IF(INDIRECT(\"c\" & (VLOOKUP(Switch!$D$34,$F$2:$G$44,2,FALSE)+ROW()-2))=Switch!$D$34,INDIRECT(\"a\" & (VLOOKUP(Switch!$D$34,$F$2:$G$44,2,FALSE)+ROW()-2)),\"\")","v":{"$error":"#N/A"}},{"$f":"IF(INDIRECT(\"c\" & (VLOOKUP(Switch!$D$35,$F$2:$G$44,2,FALSE)+ROW()-2))=Switch!$D$35,INDIRECT(\"a\" & (VLOOKUP(Switch!$D$35,$F$2:$G$44,2,FALSE)+ROW()-2)),\"\")","v":{"$error":"#N/A"}},{"$f":"IF(INDIRECT(\"c\" & (VLOOKUP(Switch!$D$36,$F$2:$G$44,2,FALSE)+ROW()-2))=Switch!$D$36,INDIRECT(\"a\" & (VLOOKUP(Switch!$D$36,$F$2:$G$44,2,FALSE)+ROW()-2)),\"\")","v":{"$error":"#N/A"}},{"$f":"IF(INDIRECT(\"c\" & (VLOOKUP(Switch!$D$37,$F$2:$G$44,2,FALSE)+ROW()-2))=Switch!$D$37,INDIRECT(\"a\" & (VLOOKUP(Switch!$D$37,$F$2:$G$44,2,FALSE)+ROW()-2)),\"\")","v":{"$error":"#N/A"}},{"$f":"IF(INDIRECT(\"c\" & (VLOOKUP(Switch!$D$38,$F$2:$G$44,2,FALSE)+ROW()-2))=Switch!$D$38,INDIRECT(\"a\" & (VLOOKUP(Switch!$D$38,$F$2:$G$44,2,FALSE)+ROW()-2)),\"\")","v":{"$error":"#N/A"}},{"$f":"IF(INDIRECT(\"c\" & (VLOOKUP(Switch!$D$39,$F$2:$G$44,2,FALSE)+ROW()-2))=Switch!$D$39,INDIRECT(\"a\" & (VLOOKUP(Switch!$D$39,$F$2:$G$44,2,FALSE)+ROW()-2)),\"\")","v":{"$error":"#N/A"}},{"$f":"IF(INDIRECT(\"c\" & (VLOOKUP(Switch!$D$40,$F$2:$G$44,2,FALSE)+ROW()-2))=Switch!$D$40,INDIRECT(\"a\" & (VLOOKUP(Switch!$D$40,$F$2:$G$44,2,FALSE)+ROW()-2)),\"\")","v":{"$error":"#N/A"}},{"$f":"IF(INDIRECT(\"c\" & (VLOOKUP(Switch!$D$52,$F$2:$G$44,2,FALSE)+ROW()-2))=Switch!$D$52,INDIRECT(\"a\" & (VLOOKUP(Switch!$D$52,$F$2:$G$44,2,FALSE)+ROW()-2)),\"\")","v":{"$error":"#N/A"}},{"$f":"IF(INDIRECT(\"c\" & (VLOOKUP(Switch!$D$53,$F$2:$G$44,2,FALSE)+ROW()-2))=Switch!$D$53,INDIRECT(\"a\" & (VLOOKUP(Switch!$D$53,$F$2:$G$44,2,FALSE)+ROW()-2)),\"\")","v":{"$error":"#N/A"}},{"$f":"IF(INDIRECT(\"c\" & (VLOOKUP(Switch!$D$54,$F$2:$G$44,2,FALSE)+ROW()-2))=Switch!$D$54,INDIRECT(\"a\" & (VLOOKUP(Switch!$D$54,$F$2:$G$44,2,FALSE)+ROW()-2)),\"\")","v":{"$error":"#N/A"}},{"$f":"IF(INDIRECT(\"c\" & (VLOOKUP(Switch!$D$55,$F$2:$G$44,2,FALSE)+ROW()-2))=Switch!$D$55,INDIRECT(\"a\" & (VLOOKUP(Switch!$D$55,$F$2:$G$44,2,FALSE)+ROW()-2)),\"\")","v":{"$error":"#N/A"}},{"$f":"IF(INDIRECT(\"c\" & (VLOOKUP(Switch!$D$56,$F$2:$G$44,2,FALSE)+ROW()-2))=Switch!$D$56,INDIRECT(\"a\" & (VLOOKUP(Switch!$D$56,$F$2:$G$44,2,FALSE)+ROW()-2)),\"\")","v":{"$error":"#N/A"}},{"$f":"IF(INDIRECT(\"c\" & (VLOOKUP(Switch!$D$57,$F$2:$G$44,2,FALSE)+ROW()-2))=Switch!$D$57,INDIRECT(\"a\" & (VLOOKUP(Switch!$D$57,$F$2:$G$44,2,FALSE)+ROW()-2)),\"\")","v":{"$error":"#N/A"}},{"$f":"IF(INDIRECT(\"c\" & (VLOOKUP(Switch!$D$58,$F$2:$G$44,2,FALSE)+ROW()-2))=Switch!$D$58,INDIRECT(\"a\" & (VLOOKUP(Switch!$D$58,$F$2:$G$44,2,FALSE)+ROW()-2)),\"\")","v":{"$error":"#N/A"}},{"$f":"IF(INDIRECT(\"c\" & (VLOOKUP(Switch!$D$59,$F$2:$G$44,2,FALSE)+ROW()-2))=Switch!$D$59,INDIRECT(\"a\" & (VLOOKUP(Switch!$D$59,$F$2:$G$44,2,FALSE)+ROW()-2)),\"\")","v":{"$error":"#N/A"}},{"$f":"IF(INDIRECT(\"c\" & (VLOOKUP(Switch!$D$60,$F$2:$G$44,2,FALSE)+ROW()-2))=Switch!$D$60,INDIRECT(\"a\" & (VLOOKUP(Switch!$D$60,$F$2:$G$44,2,FALSE)+ROW()-2)),\"\")","v":{"$error":"#N/A"}},{"$f":"IF(INDIRECT(\"c\" & (VLOOKUP(Switch!$D$61,$F$2:$G$44,2,FALSE)+ROW()-2))=Switch!$D$61,INDIRECT(\"a\" & (VLOOKUP(Switch!$D$61,$F$2:$G$44,2,FALSE)+ROW()-2)),\"\")","v":{"$error":"#N/A"}},{"$f":"IF(INDIRECT(\"c\" & (VLOOKUP(Switch!$D$62,$F$2:$G$44,2,FALSE)+ROW()-2))=Switch!$D$62,INDIRECT(\"a\" & (VLOOKUP(Switch!$D$62,$F$2:$G$44,2,FALSE)+ROW()-2)),\"\")","v":{"$error":"#N/A"}},{"$f":"IF(INDIRECT(\"c\" & (VLOOKUP(Switch!$D$63,$F$2:$G$44,2,FALSE)+ROW()-2))=Switch!$D$63,INDIRECT(\"a\" & (VLOOKUP(Switch!$D$63,$F$2:$G$44,2,FALSE)+ROW()-2)),\"\")","v":{"$error":"#N/A"}},{"$f":"IF(INDIRECT(\"c\" & (VLOOKUP(Switch!$D$64,$F$2:$G$44,2,FALSE)+ROW()-2))=Switch!$D$64,INDIRECT(\"a\" & (VLOOKUP(Switch!$D$64,$F$2:$G$44,2,FALSE)+ROW()-2)),\"\")","v":{"$error":"#N/A"}},{"$f":"IF(INDIRECT(\"c\" & (VLOOKUP(Switch!$D$65,$F$2:$G$44,2,FALSE)+ROW()-2))=Switch!$D$65,INDIRECT(\"a\" & (VLOOKUP(Switch!$D$65,$F$2:$G$44,2,FALSE)+ROW()-2)),\"\")","v":{"$error":"#N/A"}},{"$f":"IF(INDIRECT(\"c\" & (VLOOKUP(Switch!$D$66,$F$2:$G$44,2,FALSE)+ROW()-2))=Switch!$D$66,INDIRECT(\"a\" & (VLOOKUP(Switch!$D$66,$F$2:$G$44,2,FALSE)+ROW()-2)),\"\")","v":{"$error":"#N/A"}}]
["Nedgroup Inv Entrepreneur Fund ","NEFB","Nedgroup Collective Investments Ltd",{"$f":"ROW()","v":367},null,null,{"$f":"VLOOKUP(F367,$C$2:$D$637,2,FALSE)","v":{"$error":"#N/A"}},{"$f":"IF(INDIRECT(\"c\" & (VLOOKUP(Switch!$D$26,$F$2:$G$44,2,FALSE)+ROW()-2))=Switch!$D$26,INDIRECT(\"a\" & (VLOOKUP(Switch!$D$26,$F$2:$G$44,2,FALSE)+ROW()-2)),\"\")","v":{"$error":"#N/A"}},{"$f":"IF(INDIRECT(\"c\" & (VLOOKUP(Switch!$D$27,$F$2:$G$44,2,FALSE)+ROW()-2))=Switch!$D$27,INDIRECT(\"a\" & (VLOOKUP(Switch!$D$27,$F$2:$G$44,2,FALSE)+ROW()-2)),\"\")","v":{"$error":"#N/A"}},{"$f":"IF(INDIRECT(\"c\" & (VLOOKUP(Switch!$D$28,$F$2:$G$44,2,FALSE)+ROW()-2))=Switch!$D$28,INDIRECT(\"a\" & (VLOOKUP(Switch!$D$28,$F$2:$G$44,2,FALSE)+ROW()-2)),\"\")","v":{"$error":"#N/A"}},{"$f":"IF(INDIRECT(\"c\" & (VLOOKUP(Switch!$D$29,$F$2:$G$44,2,FALSE)+ROW()-2))=Switch!$D$29,INDIRECT(\"a\" & (VLOOKUP(Switch!$D$29,$F$2:$G$44,2,FALSE)+ROW()-2)),\"\")","v":{"$error":"#N/A"}},{"$f":"IF(INDIRECT(\"c\" & (VLOOKUP(Switch!$D$30,$F$2:$G$44,2,FALSE)+ROW()-2))=Switch!$D$30,INDIRECT(\"a\" & (VLOOKUP(Switch!$D$30,$F$2:$G$44,2,FALSE)+ROW()-2)),\"\")","v":{"$error":"#N/A"}},{"$f":"IF(INDIRECT(\"c\" & (VLOOKUP(Switch!$D$31,$F$2:$G$44,2,FALSE)+ROW()-2))=Switch!$D$31,INDIRECT(\"a\" & (VLOOKUP(Switch!$D$31,$F$2:$G$44,2,FALSE)+ROW()-2)),\"\")","v":{"$error":"#N/A"}},{"$f":"IF(INDIRECT(\"c\" & (VLOOKUP(Switch!$D$32,$F$2:$G$44,2,FALSE)+ROW()-2))=Switch!$D$32,INDIRECT(\"a\" & (VLOOKUP(Switch!$D$32,$F$2:$G$44,2,FALSE)+ROW()-2)),\"\")","v":{"$error":"#N/A"}},{"$f":"IF(INDIRECT(\"c\" & (VLOOKUP(Switch!$D$33,$F$2:$G$44,2,FALSE)+ROW()-2))=Switch!$D$33,INDIRECT(\"a\" & (VLOOKUP(Switch!$D$33,$F$2:$G$44,2,FALSE)+ROW()-2)),\"\")","v":{"$error":"#N/A"}},{"$f":"IF(INDIRECT(\"c\" & (VLOOKUP(Switch!$D$34,$F$2:$G$44,2,FALSE)+ROW()-2))=Switch!$D$34,INDIRECT(\"a\" & (VLOOKUP(Switch!$D$34,$F$2:$G$44,2,FALSE)+ROW()-2)),\"\")","v":{"$error":"#N/A"}},{"$f":"IF(INDIRECT(\"c\" & (VLOOKUP(Switch!$D$35,$F$2:$G$44,2,FALSE)+ROW()-2))=Switch!$D$35,INDIRECT(\"a\" & (VLOOKUP(Switch!$D$35,$F$2:$G$44,2,FALSE)+ROW()-2)),\"\")","v":{"$error":"#N/A"}},{"$f":"IF(INDIRECT(\"c\" & (VLOOKUP(Switch!$D$36,$F$2:$G$44,2,FALSE)+ROW()-2))=Switch!$D$36,INDIRECT(\"a\" & (VLOOKUP(Switch!$D$36,$F$2:$G$44,2,FALSE)+ROW()-2)),\"\")","v":{"$error":"#N/A"}},{"$f":"IF(INDIRECT(\"c\" & (VLOOKUP(Switch!$D$37,$F$2:$G$44,2,FALSE)+ROW()-2))=Switch!$D$37,INDIRECT(\"a\" & (VLOOKUP(Switch!$D$37,$F$2:$G$44,2,FALSE)+ROW()-2)),\"\")","v":{"$error":"#N/A"}},{"$f":"IF(INDIRECT(\"c\" & (VLOOKUP(Switch!$D$38,$F$2:$G$44,2,FALSE)+ROW()-2))=Switch!$D$38,INDIRECT(\"a\" & (VLOOKUP(Switch!$D$38,$F$2:$G$44,2,FALSE)+ROW()-2)),\"\")","v":{"$error":"#N/A"}},{"$f":"IF(INDIRECT(\"c\" & (VLOOKUP(Switch!$D$39,$F$2:$G$44,2,FALSE)+ROW()-2))=Switch!$D$39,INDIRECT(\"a\" & (VLOOKUP(Switch!$D$39,$F$2:$G$44,2,FALSE)+ROW()-2)),\"\")","v":{"$error":"#N/A"}},{"$f":"IF(INDIRECT(\"c\" & (VLOOKUP(Switch!$D$40,$F$2:$G$44,2,FALSE)+ROW()-2))=Switch!$D$40,INDIRECT(\"a\" & (VLOOKUP(Switch!$D$40,$F$2:$G$44,2,FALSE)+ROW()-2)),\"\")","v":{"$error":"#N/A"}},{"$f":"IF(INDIRECT(\"c\" & (VLOOKUP(Switch!$D$52,$F$2:$G$44,2,FALSE)+ROW()-2))=Switch!$D$52,INDIRECT(\"a\" & (VLOOKUP(Switch!$D$52,$F$2:$G$44,2,FALSE)+ROW()-2)),\"\")","v":{"$error":"#N/A"}},{"$f":"IF(INDIRECT(\"c\" & (VLOOKUP(Switch!$D$53,$F$2:$G$44,2,FALSE)+ROW()-2))=Switch!$D$53,INDIRECT(\"a\" & (VLOOKUP(Switch!$D$53,$F$2:$G$44,2,FALSE)+ROW()-2)),\"\")","v":{"$error":"#N/A"}},{"$f":"IF(INDIRECT(\"c\" & (VLOOKUP(Switch!$D$54,$F$2:$G$44,2,FALSE)+ROW()-2))=Switch!$D$54,INDIRECT(\"a\" & (VLOOKUP(Switch!$D$54,$F$2:$G$44,2,FALSE)+ROW()-2)),\"\")","v":{"$error":"#N/A"}},{"$f":"IF(INDIRECT(\"c\" & (VLOOKUP(Switch!$D$55,$F$2:$G$44,2,FALSE)+ROW()-2))=Switch!$D$55,INDIRECT(\"a\" & (VLOOKUP(Switch!$D$55,$F$2:$G$44,2,FALSE)+ROW()-2)),\"\")","v":{"$error":"#N/A"}},{"$f":"IF(INDIRECT(\"c\" & (VLOOKUP(Switch!$D$56,$F$2:$G$44,2,FALSE)+ROW()-2))=Switch!$D$56,INDIRECT(\"a\" & (VLOOKUP(Switch!$D$56,$F$2:$G$44,2,FALSE)+ROW()-2)),\"\")","v":{"$error":"#N/A"}},{"$f":"IF(INDIRECT(\"c\" & (VLOOKUP(Switch!$D$57,$F$2:$G$44,2,FALSE)+ROW()-2))=Switch!$D$57,INDIRECT(\"a\" & (VLOOKUP(Switch!$D$57,$F$2:$G$44,2,FALSE)+ROW()-2)),\"\")","v":{"$error":"#N/A"}},{"$f":"IF(INDIRECT(\"c\" & (VLOOKUP(Switch!$D$58,$F$2:$G$44,2,FALSE)+ROW()-2))=Switch!$D$58,INDIRECT(\"a\" & (VLOOKUP(Switch!$D$58,$F$2:$G$44,2,FALSE)+ROW()-2)),\"\")","v":{"$error":"#N/A"}},{"$f":"IF(INDIRECT(\"c\" & (VLOOKUP(Switch!$D$59,$F$2:$G$44,2,FALSE)+ROW()-2))=Switch!$D$59,INDIRECT(\"a\" & (VLOOKUP(Switch!$D$59,$F$2:$G$44,2,FALSE)+ROW()-2)),\"\")","v":{"$error":"#N/A"}},{"$f":"IF(INDIRECT(\"c\" & (VLOOKUP(Switch!$D$60,$F$2:$G$44,2,FALSE)+ROW()-2))=Switch!$D$60,INDIRECT(\"a\" & (VLOOKUP(Switch!$D$60,$F$2:$G$44,2,FALSE)+ROW()-2)),\"\")","v":{"$error":"#N/A"}},{"$f":"IF(INDIRECT(\"c\" & (VLOOKUP(Switch!$D$61,$F$2:$G$44,2,FALSE)+ROW()-2))=Switch!$D$61,INDIRECT(\"a\" & (VLOOKUP(Switch!$D$61,$F$2:$G$44,2,FALSE)+ROW()-2)),\"\")","v":{"$error":"#N/A"}},{"$f":"IF(INDIRECT(\"c\" & (VLOOKUP(Switch!$D$62,$F$2:$G$44,2,FALSE)+ROW()-2))=Switch!$D$62,INDIRECT(\"a\" & (VLOOKUP(Switch!$D$62,$F$2:$G$44,2,FALSE)+ROW()-2)),\"\")","v":{"$error":"#N/A"}},{"$f":"IF(INDIRECT(\"c\" & (VLOOKUP(Switch!$D$63,$F$2:$G$44,2,FALSE)+ROW()-2))=Switch!$D$63,INDIRECT(\"a\" & (VLOOKUP(Switch!$D$63,$F$2:$G$44,2,FALSE)+ROW()-2)),\"\")","v":{"$error":"#N/A"}},{"$f":"IF(INDIRECT(\"c\" & (VLOOKUP(Switch!$D$64,$F$2:$G$44,2,FALSE)+ROW()-2))=Switch!$D$64,INDIRECT(\"a\" & (VLOOKUP(Switch!$D$64,$F$2:$G$44,2,FALSE)+ROW()-2)),\"\")","v":{"$error":"#N/A"}},{"$f":"IF(INDIRECT(\"c\" & (VLOOKUP(Switch!$D$65,$F$2:$G$44,2,FALSE)+ROW()-2))=Switch!$D$65,INDIRECT(\"a\" & (VLOOKUP(Switch!$D$65,$F$2:$G$44,2,FALSE)+ROW()-2)),\"\")","v":{"$error":"#N/A"}},{"$f":"IF(INDIRECT(\"c\" & (VLOOKUP(Switch!$D$66,$F$2:$G$44,2,FALSE)+ROW()-2))=Switch!$D$66,INDIRECT(\"a\" & (VLOOKUP(Switch!$D$66,$F$2:$G$44,2,FALSE)+ROW()-2)),\"\")","v":{"$error":"#N/A"}}]
["Nedgroup Inv Global Cautious Feeder Fund A","NIGCFA","Nedgroup Collective Investments Ltd",{"$f":"ROW()","v":368},null,null,{"$f":"VLOOKUP(F368,$C$2:$D$637,2,FALSE)","v":{"$error":"#N/A"}},{"$f":"IF(INDIRECT(\"c\" & (VLOOKUP(Switch!$D$26,$F$2:$G$44,2,FALSE)+ROW()-2))=Switch!$D$26,INDIRECT(\"a\" & (VLOOKUP(Switch!$D$26,$F$2:$G$44,2,FALSE)+ROW()-2)),\"\")","v":{"$error":"#N/A"}},{"$f":"IF(INDIRECT(\"c\" & (VLOOKUP(Switch!$D$27,$F$2:$G$44,2,FALSE)+ROW()-2))=Switch!$D$27,INDIRECT(\"a\" & (VLOOKUP(Switch!$D$27,$F$2:$G$44,2,FALSE)+ROW()-2)),\"\")","v":{"$error":"#N/A"}},{"$f":"IF(INDIRECT(\"c\" & (VLOOKUP(Switch!$D$28,$F$2:$G$44,2,FALSE)+ROW()-2))=Switch!$D$28,INDIRECT(\"a\" & (VLOOKUP(Switch!$D$28,$F$2:$G$44,2,FALSE)+ROW()-2)),\"\")","v":{"$error":"#N/A"}},{"$f":"IF(INDIRECT(\"c\" & (VLOOKUP(Switch!$D$29,$F$2:$G$44,2,FALSE)+ROW()-2))=Switch!$D$29,INDIRECT(\"a\" & (VLOOKUP(Switch!$D$29,$F$2:$G$44,2,FALSE)+ROW()-2)),\"\")","v":{"$error":"#N/A"}},{"$f":"IF(INDIRECT(\"c\" & (VLOOKUP(Switch!$D$30,$F$2:$G$44,2,FALSE)+ROW()-2))=Switch!$D$30,INDIRECT(\"a\" & (VLOOKUP(Switch!$D$30,$F$2:$G$44,2,FALSE)+ROW()-2)),\"\")","v":{"$error":"#N/A"}},{"$f":"IF(INDIRECT(\"c\" & (VLOOKUP(Switch!$D$31,$F$2:$G$44,2,FALSE)+ROW()-2))=Switch!$D$31,INDIRECT(\"a\" & (VLOOKUP(Switch!$D$31,$F$2:$G$44,2,FALSE)+ROW()-2)),\"\")","v":{"$error":"#N/A"}},{"$f":"IF(INDIRECT(\"c\" & (VLOOKUP(Switch!$D$32,$F$2:$G$44,2,FALSE)+ROW()-2))=Switch!$D$32,INDIRECT(\"a\" & (VLOOKUP(Switch!$D$32,$F$2:$G$44,2,FALSE)+ROW()-2)),\"\")","v":{"$error":"#N/A"}},{"$f":"IF(INDIRECT(\"c\" & (VLOOKUP(Switch!$D$33,$F$2:$G$44,2,FALSE)+ROW()-2))=Switch!$D$33,INDIRECT(\"a\" & (VLOOKUP(Switch!$D$33,$F$2:$G$44,2,FALSE)+ROW()-2)),\"\")","v":{"$error":"#N/A"}},{"$f":"IF(INDIRECT(\"c\" & (VLOOKUP(Switch!$D$34,$F$2:$G$44,2,FALSE)+ROW()-2))=Switch!$D$34,INDIRECT(\"a\" & (VLOOKUP(Switch!$D$34,$F$2:$G$44,2,FALSE)+ROW()-2)),\"\")","v":{"$error":"#N/A"}},{"$f":"IF(INDIRECT(\"c\" & (VLOOKUP(Switch!$D$35,$F$2:$G$44,2,FALSE)+ROW()-2))=Switch!$D$35,INDIRECT(\"a\" & (VLOOKUP(Switch!$D$35,$F$2:$G$44,2,FALSE)+ROW()-2)),\"\")","v":{"$error":"#N/A"}},{"$f":"IF(INDIRECT(\"c\" & (VLOOKUP(Switch!$D$36,$F$2:$G$44,2,FALSE)+ROW()-2))=Switch!$D$36,INDIRECT(\"a\" & (VLOOKUP(Switch!$D$36,$F$2:$G$44,2,FALSE)+ROW()-2)),\"\")","v":{"$error":"#N/A"}},{"$f":"IF(INDIRECT(\"c\" & (VLOOKUP(Switch!$D$37,$F$2:$G$44,2,FALSE)+ROW()-2))=Switch!$D$37,INDIRECT(\"a\" & (VLOOKUP(Switch!$D$37,$F$2:$G$44,2,FALSE)+ROW()-2)),\"\")","v":{"$error":"#N/A"}},{"$f":"IF(INDIRECT(\"c\" & (VLOOKUP(Switch!$D$38,$F$2:$G$44,2,FALSE)+ROW()-2))=Switch!$D$38,INDIRECT(\"a\" & (VLOOKUP(Switch!$D$38,$F$2:$G$44,2,FALSE)+ROW()-2)),\"\")","v":{"$error":"#N/A"}},{"$f":"IF(INDIRECT(\"c\" & (VLOOKUP(Switch!$D$39,$F$2:$G$44,2,FALSE)+ROW()-2))=Switch!$D$39,INDIRECT(\"a\" & (VLOOKUP(Switch!$D$39,$F$2:$G$44,2,FALSE)+ROW()-2)),\"\")","v":{"$error":"#N/A"}},{"$f":"IF(INDIRECT(\"c\" & (VLOOKUP(Switch!$D$40,$F$2:$G$44,2,FALSE)+ROW()-2))=Switch!$D$40,INDIRECT(\"a\" & (VLOOKUP(Switch!$D$40,$F$2:$G$44,2,FALSE)+ROW()-2)),\"\")","v":{"$error":"#N/A"}},{"$f":"IF(INDIRECT(\"c\" & (VLOOKUP(Switch!$D$52,$F$2:$G$44,2,FALSE)+ROW()-2))=Switch!$D$52,INDIRECT(\"a\" & (VLOOKUP(Switch!$D$52,$F$2:$G$44,2,FALSE)+ROW()-2)),\"\")","v":{"$error":"#N/A"}},{"$f":"IF(INDIRECT(\"c\" & (VLOOKUP(Switch!$D$53,$F$2:$G$44,2,FALSE)+ROW()-2))=Switch!$D$53,INDIRECT(\"a\" & (VLOOKUP(Switch!$D$53,$F$2:$G$44,2,FALSE)+ROW()-2)),\"\")","v":{"$error":"#N/A"}},{"$f":"IF(INDIRECT(\"c\" & (VLOOKUP(Switch!$D$54,$F$2:$G$44,2,FALSE)+ROW()-2))=Switch!$D$54,INDIRECT(\"a\" & (VLOOKUP(Switch!$D$54,$F$2:$G$44,2,FALSE)+ROW()-2)),\"\")","v":{"$error":"#N/A"}},{"$f":"IF(INDIRECT(\"c\" & (VLOOKUP(Switch!$D$55,$F$2:$G$44,2,FALSE)+ROW()-2))=Switch!$D$55,INDIRECT(\"a\" & (VLOOKUP(Switch!$D$55,$F$2:$G$44,2,FALSE)+ROW()-2)),\"\")","v":{"$error":"#N/A"}},{"$f":"IF(INDIRECT(\"c\" & (VLOOKUP(Switch!$D$56,$F$2:$G$44,2,FALSE)+ROW()-2))=Switch!$D$56,INDIRECT(\"a\" & (VLOOKUP(Switch!$D$56,$F$2:$G$44,2,FALSE)+ROW()-2)),\"\")","v":{"$error":"#N/A"}},{"$f":"IF(INDIRECT(\"c\" & (VLOOKUP(Switch!$D$57,$F$2:$G$44,2,FALSE)+ROW()-2))=Switch!$D$57,INDIRECT(\"a\" & (VLOOKUP(Switch!$D$57,$F$2:$G$44,2,FALSE)+ROW()-2)),\"\")","v":{"$error":"#N/A"}},{"$f":"IF(INDIRECT(\"c\" & (VLOOKUP(Switch!$D$58,$F$2:$G$44,2,FALSE)+ROW()-2))=Switch!$D$58,INDIRECT(\"a\" & (VLOOKUP(Switch!$D$58,$F$2:$G$44,2,FALSE)+ROW()-2)),\"\")","v":{"$error":"#N/A"}},{"$f":"IF(INDIRECT(\"c\" & (VLOOKUP(Switch!$D$59,$F$2:$G$44,2,FALSE)+ROW()-2))=Switch!$D$59,INDIRECT(\"a\" & (VLOOKUP(Switch!$D$59,$F$2:$G$44,2,FALSE)+ROW()-2)),\"\")","v":{"$error":"#N/A"}},{"$f":"IF(INDIRECT(\"c\" & (VLOOKUP(Switch!$D$60,$F$2:$G$44,2,FALSE)+ROW()-2))=Switch!$D$60,INDIRECT(\"a\" & (VLOOKUP(Switch!$D$60,$F$2:$G$44,2,FALSE)+ROW()-2)),\"\")","v":{"$error":"#N/A"}},{"$f":"IF(INDIRECT(\"c\" & (VLOOKUP(Switch!$D$61,$F$2:$G$44,2,FALSE)+ROW()-2))=Switch!$D$61,INDIRECT(\"a\" & (VLOOKUP(Switch!$D$61,$F$2:$G$44,2,FALSE)+ROW()-2)),\"\")","v":{"$error":"#N/A"}},{"$f":"IF(INDIRECT(\"c\" & (VLOOKUP(Switch!$D$62,$F$2:$G$44,2,FALSE)+ROW()-2))=Switch!$D$62,INDIRECT(\"a\" & (VLOOKUP(Switch!$D$62,$F$2:$G$44,2,FALSE)+ROW()-2)),\"\")","v":{"$error":"#N/A"}},{"$f":"IF(INDIRECT(\"c\" & (VLOOKUP(Switch!$D$63,$F$2:$G$44,2,FALSE)+ROW()-2))=Switch!$D$63,INDIRECT(\"a\" & (VLOOKUP(Switch!$D$63,$F$2:$G$44,2,FALSE)+ROW()-2)),\"\")","v":{"$error":"#N/A"}},{"$f":"IF(INDIRECT(\"c\" & (VLOOKUP(Switch!$D$64,$F$2:$G$44,2,FALSE)+ROW()-2))=Switch!$D$64,INDIRECT(\"a\" & (VLOOKUP(Switch!$D$64,$F$2:$G$44,2,FALSE)+ROW()-2)),\"\")","v":{"$error":"#N/A"}},{"$f":"IF(INDIRECT(\"c\" & (VLOOKUP(Switch!$D$65,$F$2:$G$44,2,FALSE)+ROW()-2))=Switch!$D$65,INDIRECT(\"a\" & (VLOOKUP(Switch!$D$65,$F$2:$G$44,2,FALSE)+ROW()-2)),\"\")","v":{"$error":"#N/A"}},{"$f":"IF(INDIRECT(\"c\" & (VLOOKUP(Switch!$D$66,$F$2:$G$44,2,FALSE)+ROW()-2))=Switch!$D$66,INDIRECT(\"a\" & (VLOOKUP(Switch!$D$66,$F$2:$G$44,2,FALSE)+ROW()-2)),\"\")","v":{"$error":"#N/A"}}]
["Nedgroup Inv Global Cautious Feeder Fund B2","NIGCFA","Nedgroup Collective Investments Ltd",{"$f":"ROW()","v":369},null,null,{"$f":"VLOOKUP(F369,$C$2:$D$637,2,FALSE)","v":{"$error":"#N/A"}},{"$f":"IF(INDIRECT(\"c\" & (VLOOKUP(Switch!$D$26,$F$2:$G$44,2,FALSE)+ROW()-2))=Switch!$D$26,INDIRECT(\"a\" & (VLOOKUP(Switch!$D$26,$F$2:$G$44,2,FALSE)+ROW()-2)),\"\")","v":{"$error":"#N/A"}},{"$f":"IF(INDIRECT(\"c\" & (VLOOKUP(Switch!$D$27,$F$2:$G$44,2,FALSE)+ROW()-2))=Switch!$D$27,INDIRECT(\"a\" & (VLOOKUP(Switch!$D$27,$F$2:$G$44,2,FALSE)+ROW()-2)),\"\")","v":{"$error":"#N/A"}},{"$f":"IF(INDIRECT(\"c\" & (VLOOKUP(Switch!$D$28,$F$2:$G$44,2,FALSE)+ROW()-2))=Switch!$D$28,INDIRECT(\"a\" & (VLOOKUP(Switch!$D$28,$F$2:$G$44,2,FALSE)+ROW()-2)),\"\")","v":{"$error":"#N/A"}},{"$f":"IF(INDIRECT(\"c\" & (VLOOKUP(Switch!$D$29,$F$2:$G$44,2,FALSE)+ROW()-2))=Switch!$D$29,INDIRECT(\"a\" & (VLOOKUP(Switch!$D$29,$F$2:$G$44,2,FALSE)+ROW()-2)),\"\")","v":{"$error":"#N/A"}},{"$f":"IF(INDIRECT(\"c\" & (VLOOKUP(Switch!$D$30,$F$2:$G$44,2,FALSE)+ROW()-2))=Switch!$D$30,INDIRECT(\"a\" & (VLOOKUP(Switch!$D$30,$F$2:$G$44,2,FALSE)+ROW()-2)),\"\")","v":{"$error":"#N/A"}},{"$f":"IF(INDIRECT(\"c\" & (VLOOKUP(Switch!$D$31,$F$2:$G$44,2,FALSE)+ROW()-2))=Switch!$D$31,INDIRECT(\"a\" & (VLOOKUP(Switch!$D$31,$F$2:$G$44,2,FALSE)+ROW()-2)),\"\")","v":{"$error":"#N/A"}},{"$f":"IF(INDIRECT(\"c\" & (VLOOKUP(Switch!$D$32,$F$2:$G$44,2,FALSE)+ROW()-2))=Switch!$D$32,INDIRECT(\"a\" & (VLOOKUP(Switch!$D$32,$F$2:$G$44,2,FALSE)+ROW()-2)),\"\")","v":{"$error":"#N/A"}},{"$f":"IF(INDIRECT(\"c\" & (VLOOKUP(Switch!$D$33,$F$2:$G$44,2,FALSE)+ROW()-2))=Switch!$D$33,INDIRECT(\"a\" & (VLOOKUP(Switch!$D$33,$F$2:$G$44,2,FALSE)+ROW()-2)),\"\")","v":{"$error":"#N/A"}},{"$f":"IF(INDIRECT(\"c\" & (VLOOKUP(Switch!$D$34,$F$2:$G$44,2,FALSE)+ROW()-2))=Switch!$D$34,INDIRECT(\"a\" & (VLOOKUP(Switch!$D$34,$F$2:$G$44,2,FALSE)+ROW()-2)),\"\")","v":{"$error":"#N/A"}},{"$f":"IF(INDIRECT(\"c\" & (VLOOKUP(Switch!$D$35,$F$2:$G$44,2,FALSE)+ROW()-2))=Switch!$D$35,INDIRECT(\"a\" & (VLOOKUP(Switch!$D$35,$F$2:$G$44,2,FALSE)+ROW()-2)),\"\")","v":{"$error":"#N/A"}},{"$f":"IF(INDIRECT(\"c\" & (VLOOKUP(Switch!$D$36,$F$2:$G$44,2,FALSE)+ROW()-2))=Switch!$D$36,INDIRECT(\"a\" & (VLOOKUP(Switch!$D$36,$F$2:$G$44,2,FALSE)+ROW()-2)),\"\")","v":{"$error":"#N/A"}},{"$f":"IF(INDIRECT(\"c\" & (VLOOKUP(Switch!$D$37,$F$2:$G$44,2,FALSE)+ROW()-2))=Switch!$D$37,INDIRECT(\"a\" & (VLOOKUP(Switch!$D$37,$F$2:$G$44,2,FALSE)+ROW()-2)),\"\")","v":{"$error":"#N/A"}},{"$f":"IF(INDIRECT(\"c\" & (VLOOKUP(Switch!$D$38,$F$2:$G$44,2,FALSE)+ROW()-2))=Switch!$D$38,INDIRECT(\"a\" & (VLOOKUP(Switch!$D$38,$F$2:$G$44,2,FALSE)+ROW()-2)),\"\")","v":{"$error":"#N/A"}},{"$f":"IF(INDIRECT(\"c\" & (VLOOKUP(Switch!$D$39,$F$2:$G$44,2,FALSE)+ROW()-2))=Switch!$D$39,INDIRECT(\"a\" & (VLOOKUP(Switch!$D$39,$F$2:$G$44,2,FALSE)+ROW()-2)),\"\")","v":{"$error":"#N/A"}},{"$f":"IF(INDIRECT(\"c\" & (VLOOKUP(Switch!$D$40,$F$2:$G$44,2,FALSE)+ROW()-2))=Switch!$D$40,INDIRECT(\"a\" & (VLOOKUP(Switch!$D$40,$F$2:$G$44,2,FALSE)+ROW()-2)),\"\")","v":{"$error":"#N/A"}},{"$f":"IF(INDIRECT(\"c\" & (VLOOKUP(Switch!$D$52,$F$2:$G$44,2,FALSE)+ROW()-2))=Switch!$D$52,INDIRECT(\"a\" & (VLOOKUP(Switch!$D$52,$F$2:$G$44,2,FALSE)+ROW()-2)),\"\")","v":{"$error":"#N/A"}},{"$f":"IF(INDIRECT(\"c\" & (VLOOKUP(Switch!$D$53,$F$2:$G$44,2,FALSE)+ROW()-2))=Switch!$D$53,INDIRECT(\"a\" & (VLOOKUP(Switch!$D$53,$F$2:$G$44,2,FALSE)+ROW()-2)),\"\")","v":{"$error":"#N/A"}},{"$f":"IF(INDIRECT(\"c\" & (VLOOKUP(Switch!$D$54,$F$2:$G$44,2,FALSE)+ROW()-2))=Switch!$D$54,INDIRECT(\"a\" & (VLOOKUP(Switch!$D$54,$F$2:$G$44,2,FALSE)+ROW()-2)),\"\")","v":{"$error":"#N/A"}},{"$f":"IF(INDIRECT(\"c\" & (VLOOKUP(Switch!$D$55,$F$2:$G$44,2,FALSE)+ROW()-2))=Switch!$D$55,INDIRECT(\"a\" & (VLOOKUP(Switch!$D$55,$F$2:$G$44,2,FALSE)+ROW()-2)),\"\")","v":{"$error":"#N/A"}},{"$f":"IF(INDIRECT(\"c\" & (VLOOKUP(Switch!$D$56,$F$2:$G$44,2,FALSE)+ROW()-2))=Switch!$D$56,INDIRECT(\"a\" & (VLOOKUP(Switch!$D$56,$F$2:$G$44,2,FALSE)+ROW()-2)),\"\")","v":{"$error":"#N/A"}},{"$f":"IF(INDIRECT(\"c\" & (VLOOKUP(Switch!$D$57,$F$2:$G$44,2,FALSE)+ROW()-2))=Switch!$D$57,INDIRECT(\"a\" & (VLOOKUP(Switch!$D$57,$F$2:$G$44,2,FALSE)+ROW()-2)),\"\")","v":{"$error":"#N/A"}},{"$f":"IF(INDIRECT(\"c\" & (VLOOKUP(Switch!$D$58,$F$2:$G$44,2,FALSE)+ROW()-2))=Switch!$D$58,INDIRECT(\"a\" & (VLOOKUP(Switch!$D$58,$F$2:$G$44,2,FALSE)+ROW()-2)),\"\")","v":{"$error":"#N/A"}},{"$f":"IF(INDIRECT(\"c\" & (VLOOKUP(Switch!$D$59,$F$2:$G$44,2,FALSE)+ROW()-2))=Switch!$D$59,INDIRECT(\"a\" & (VLOOKUP(Switch!$D$59,$F$2:$G$44,2,FALSE)+ROW()-2)),\"\")","v":{"$error":"#N/A"}},{"$f":"IF(INDIRECT(\"c\" & (VLOOKUP(Switch!$D$60,$F$2:$G$44,2,FALSE)+ROW()-2))=Switch!$D$60,INDIRECT(\"a\" & (VLOOKUP(Switch!$D$60,$F$2:$G$44,2,FALSE)+ROW()-2)),\"\")","v":{"$error":"#N/A"}},{"$f":"IF(INDIRECT(\"c\" & (VLOOKUP(Switch!$D$61,$F$2:$G$44,2,FALSE)+ROW()-2))=Switch!$D$61,INDIRECT(\"a\" & (VLOOKUP(Switch!$D$61,$F$2:$G$44,2,FALSE)+ROW()-2)),\"\")","v":{"$error":"#N/A"}},{"$f":"IF(INDIRECT(\"c\" & (VLOOKUP(Switch!$D$62,$F$2:$G$44,2,FALSE)+ROW()-2))=Switch!$D$62,INDIRECT(\"a\" & (VLOOKUP(Switch!$D$62,$F$2:$G$44,2,FALSE)+ROW()-2)),\"\")","v":{"$error":"#N/A"}},{"$f":"IF(INDIRECT(\"c\" & (VLOOKUP(Switch!$D$63,$F$2:$G$44,2,FALSE)+ROW()-2))=Switch!$D$63,INDIRECT(\"a\" & (VLOOKUP(Switch!$D$63,$F$2:$G$44,2,FALSE)+ROW()-2)),\"\")","v":{"$error":"#N/A"}},{"$f":"IF(INDIRECT(\"c\" & (VLOOKUP(Switch!$D$64,$F$2:$G$44,2,FALSE)+ROW()-2))=Switch!$D$64,INDIRECT(\"a\" & (VLOOKUP(Switch!$D$64,$F$2:$G$44,2,FALSE)+ROW()-2)),\"\")","v":{"$error":"#N/A"}},{"$f":"IF(INDIRECT(\"c\" & (VLOOKUP(Switch!$D$65,$F$2:$G$44,2,FALSE)+ROW()-2))=Switch!$D$65,INDIRECT(\"a\" & (VLOOKUP(Switch!$D$65,$F$2:$G$44,2,FALSE)+ROW()-2)),\"\")","v":{"$error":"#N/A"}},{"$f":"IF(INDIRECT(\"c\" & (VLOOKUP(Switch!$D$66,$F$2:$G$44,2,FALSE)+ROW()-2))=Switch!$D$66,INDIRECT(\"a\" & (VLOOKUP(Switch!$D$66,$F$2:$G$44,2,FALSE)+ROW()-2)),\"\")","v":{"$error":"#N/A"}}]
["Nedgroup Inv Global Equity Feeder Fund B2","GEFF","Nedgroup Collective Investments Ltd",{"$f":"ROW()","v":370},null,null,{"$f":"VLOOKUP(F370,$C$2:$D$637,2,FALSE)","v":{"$error":"#N/A"}},{"$f":"IF(INDIRECT(\"c\" & (VLOOKUP(Switch!$D$26,$F$2:$G$44,2,FALSE)+ROW()-2))=Switch!$D$26,INDIRECT(\"a\" & (VLOOKUP(Switch!$D$26,$F$2:$G$44,2,FALSE)+ROW()-2)),\"\")","v":{"$error":"#N/A"}},{"$f":"IF(INDIRECT(\"c\" & (VLOOKUP(Switch!$D$27,$F$2:$G$44,2,FALSE)+ROW()-2))=Switch!$D$27,INDIRECT(\"a\" & (VLOOKUP(Switch!$D$27,$F$2:$G$44,2,FALSE)+ROW()-2)),\"\")","v":{"$error":"#N/A"}},{"$f":"IF(INDIRECT(\"c\" & (VLOOKUP(Switch!$D$28,$F$2:$G$44,2,FALSE)+ROW()-2))=Switch!$D$28,INDIRECT(\"a\" & (VLOOKUP(Switch!$D$28,$F$2:$G$44,2,FALSE)+ROW()-2)),\"\")","v":{"$error":"#N/A"}},{"$f":"IF(INDIRECT(\"c\" & (VLOOKUP(Switch!$D$29,$F$2:$G$44,2,FALSE)+ROW()-2))=Switch!$D$29,INDIRECT(\"a\" & (VLOOKUP(Switch!$D$29,$F$2:$G$44,2,FALSE)+ROW()-2)),\"\")","v":{"$error":"#N/A"}},{"$f":"IF(INDIRECT(\"c\" & (VLOOKUP(Switch!$D$30,$F$2:$G$44,2,FALSE)+ROW()-2))=Switch!$D$30,INDIRECT(\"a\" & (VLOOKUP(Switch!$D$30,$F$2:$G$44,2,FALSE)+ROW()-2)),\"\")","v":{"$error":"#N/A"}},{"$f":"IF(INDIRECT(\"c\" & (VLOOKUP(Switch!$D$31,$F$2:$G$44,2,FALSE)+ROW()-2))=Switch!$D$31,INDIRECT(\"a\" & (VLOOKUP(Switch!$D$31,$F$2:$G$44,2,FALSE)+ROW()-2)),\"\")","v":{"$error":"#N/A"}},{"$f":"IF(INDIRECT(\"c\" & (VLOOKUP(Switch!$D$32,$F$2:$G$44,2,FALSE)+ROW()-2))=Switch!$D$32,INDIRECT(\"a\" & (VLOOKUP(Switch!$D$32,$F$2:$G$44,2,FALSE)+ROW()-2)),\"\")","v":{"$error":"#N/A"}},{"$f":"IF(INDIRECT(\"c\" & (VLOOKUP(Switch!$D$33,$F$2:$G$44,2,FALSE)+ROW()-2))=Switch!$D$33,INDIRECT(\"a\" & (VLOOKUP(Switch!$D$33,$F$2:$G$44,2,FALSE)+ROW()-2)),\"\")","v":{"$error":"#N/A"}},{"$f":"IF(INDIRECT(\"c\" & (VLOOKUP(Switch!$D$34,$F$2:$G$44,2,FALSE)+ROW()-2))=Switch!$D$34,INDIRECT(\"a\" & (VLOOKUP(Switch!$D$34,$F$2:$G$44,2,FALSE)+ROW()-2)),\"\")","v":{"$error":"#N/A"}},{"$f":"IF(INDIRECT(\"c\" & (VLOOKUP(Switch!$D$35,$F$2:$G$44,2,FALSE)+ROW()-2))=Switch!$D$35,INDIRECT(\"a\" & (VLOOKUP(Switch!$D$35,$F$2:$G$44,2,FALSE)+ROW()-2)),\"\")","v":{"$error":"#N/A"}},{"$f":"IF(INDIRECT(\"c\" & (VLOOKUP(Switch!$D$36,$F$2:$G$44,2,FALSE)+ROW()-2))=Switch!$D$36,INDIRECT(\"a\" & (VLOOKUP(Switch!$D$36,$F$2:$G$44,2,FALSE)+ROW()-2)),\"\")","v":{"$error":"#N/A"}},{"$f":"IF(INDIRECT(\"c\" & (VLOOKUP(Switch!$D$37,$F$2:$G$44,2,FALSE)+ROW()-2))=Switch!$D$37,INDIRECT(\"a\" & (VLOOKUP(Switch!$D$37,$F$2:$G$44,2,FALSE)+ROW()-2)),\"\")","v":{"$error":"#N/A"}},{"$f":"IF(INDIRECT(\"c\" & (VLOOKUP(Switch!$D$38,$F$2:$G$44,2,FALSE)+ROW()-2))=Switch!$D$38,INDIRECT(\"a\" & (VLOOKUP(Switch!$D$38,$F$2:$G$44,2,FALSE)+ROW()-2)),\"\")","v":{"$error":"#N/A"}},{"$f":"IF(INDIRECT(\"c\" & (VLOOKUP(Switch!$D$39,$F$2:$G$44,2,FALSE)+ROW()-2))=Switch!$D$39,INDIRECT(\"a\" & (VLOOKUP(Switch!$D$39,$F$2:$G$44,2,FALSE)+ROW()-2)),\"\")","v":{"$error":"#N/A"}},{"$f":"IF(INDIRECT(\"c\" & (VLOOKUP(Switch!$D$40,$F$2:$G$44,2,FALSE)+ROW()-2))=Switch!$D$40,INDIRECT(\"a\" & (VLOOKUP(Switch!$D$40,$F$2:$G$44,2,FALSE)+ROW()-2)),\"\")","v":{"$error":"#N/A"}},{"$f":"IF(INDIRECT(\"c\" & (VLOOKUP(Switch!$D$52,$F$2:$G$44,2,FALSE)+ROW()-2))=Switch!$D$52,INDIRECT(\"a\" & (VLOOKUP(Switch!$D$52,$F$2:$G$44,2,FALSE)+ROW()-2)),\"\")","v":{"$error":"#N/A"}},{"$f":"IF(INDIRECT(\"c\" & (VLOOKUP(Switch!$D$53,$F$2:$G$44,2,FALSE)+ROW()-2))=Switch!$D$53,INDIRECT(\"a\" & (VLOOKUP(Switch!$D$53,$F$2:$G$44,2,FALSE)+ROW()-2)),\"\")","v":{"$error":"#N/A"}},{"$f":"IF(INDIRECT(\"c\" & (VLOOKUP(Switch!$D$54,$F$2:$G$44,2,FALSE)+ROW()-2))=Switch!$D$54,INDIRECT(\"a\" & (VLOOKUP(Switch!$D$54,$F$2:$G$44,2,FALSE)+ROW()-2)),\"\")","v":{"$error":"#N/A"}},{"$f":"IF(INDIRECT(\"c\" & (VLOOKUP(Switch!$D$55,$F$2:$G$44,2,FALSE)+ROW()-2))=Switch!$D$55,INDIRECT(\"a\" & (VLOOKUP(Switch!$D$55,$F$2:$G$44,2,FALSE)+ROW()-2)),\"\")","v":{"$error":"#N/A"}},{"$f":"IF(INDIRECT(\"c\" & (VLOOKUP(Switch!$D$56,$F$2:$G$44,2,FALSE)+ROW()-2))=Switch!$D$56,INDIRECT(\"a\" & (VLOOKUP(Switch!$D$56,$F$2:$G$44,2,FALSE)+ROW()-2)),\"\")","v":{"$error":"#N/A"}},{"$f":"IF(INDIRECT(\"c\" & (VLOOKUP(Switch!$D$57,$F$2:$G$44,2,FALSE)+ROW()-2))=Switch!$D$57,INDIRECT(\"a\" & (VLOOKUP(Switch!$D$57,$F$2:$G$44,2,FALSE)+ROW()-2)),\"\")","v":{"$error":"#N/A"}},{"$f":"IF(INDIRECT(\"c\" & (VLOOKUP(Switch!$D$58,$F$2:$G$44,2,FALSE)+ROW()-2))=Switch!$D$58,INDIRECT(\"a\" & (VLOOKUP(Switch!$D$58,$F$2:$G$44,2,FALSE)+ROW()-2)),\"\")","v":{"$error":"#N/A"}},{"$f":"IF(INDIRECT(\"c\" & (VLOOKUP(Switch!$D$59,$F$2:$G$44,2,FALSE)+ROW()-2))=Switch!$D$59,INDIRECT(\"a\" & (VLOOKUP(Switch!$D$59,$F$2:$G$44,2,FALSE)+ROW()-2)),\"\")","v":{"$error":"#N/A"}},{"$f":"IF(INDIRECT(\"c\" & (VLOOKUP(Switch!$D$60,$F$2:$G$44,2,FALSE)+ROW()-2))=Switch!$D$60,INDIRECT(\"a\" & (VLOOKUP(Switch!$D$60,$F$2:$G$44,2,FALSE)+ROW()-2)),\"\")","v":{"$error":"#N/A"}},{"$f":"IF(INDIRECT(\"c\" & (VLOOKUP(Switch!$D$61,$F$2:$G$44,2,FALSE)+ROW()-2))=Switch!$D$61,INDIRECT(\"a\" & (VLOOKUP(Switch!$D$61,$F$2:$G$44,2,FALSE)+ROW()-2)),\"\")","v":{"$error":"#N/A"}},{"$f":"IF(INDIRECT(\"c\" & (VLOOKUP(Switch!$D$62,$F$2:$G$44,2,FALSE)+ROW()-2))=Switch!$D$62,INDIRECT(\"a\" & (VLOOKUP(Switch!$D$62,$F$2:$G$44,2,FALSE)+ROW()-2)),\"\")","v":{"$error":"#N/A"}},{"$f":"IF(INDIRECT(\"c\" & (VLOOKUP(Switch!$D$63,$F$2:$G$44,2,FALSE)+ROW()-2))=Switch!$D$63,INDIRECT(\"a\" & (VLOOKUP(Switch!$D$63,$F$2:$G$44,2,FALSE)+ROW()-2)),\"\")","v":{"$error":"#N/A"}},{"$f":"IF(INDIRECT(\"c\" & (VLOOKUP(Switch!$D$64,$F$2:$G$44,2,FALSE)+ROW()-2))=Switch!$D$64,INDIRECT(\"a\" & (VLOOKUP(Switch!$D$64,$F$2:$G$44,2,FALSE)+ROW()-2)),\"\")","v":{"$error":"#N/A"}},{"$f":"IF(INDIRECT(\"c\" & (VLOOKUP(Switch!$D$65,$F$2:$G$44,2,FALSE)+ROW()-2))=Switch!$D$65,INDIRECT(\"a\" & (VLOOKUP(Switch!$D$65,$F$2:$G$44,2,FALSE)+ROW()-2)),\"\")","v":{"$error":"#N/A"}},{"$f":"IF(INDIRECT(\"c\" & (VLOOKUP(Switch!$D$66,$F$2:$G$44,2,FALSE)+ROW()-2))=Switch!$D$66,INDIRECT(\"a\" & (VLOOKUP(Switch!$D$66,$F$2:$G$44,2,FALSE)+ROW()-2)),\"\")","v":{"$error":"#N/A"}}]
["Nedgroup Inv Global Equity Feeder Fund A","GEFF","Nedgroup Collective Investments Ltd",{"$f":"ROW()","v":371},null,null,{"$f":"VLOOKUP(F371,$C$2:$D$637,2,FALSE)","v":{"$error":"#N/A"}},{"$f":"IF(INDIRECT(\"c\" & (VLOOKUP(Switch!$D$26,$F$2:$G$44,2,FALSE)+ROW()-2))=Switch!$D$26,INDIRECT(\"a\" & (VLOOKUP(Switch!$D$26,$F$2:$G$44,2,FALSE)+ROW()-2)),\"\")","v":{"$error":"#N/A"}},{"$f":"IF(INDIRECT(\"c\" & (VLOOKUP(Switch!$D$27,$F$2:$G$44,2,FALSE)+ROW()-2))=Switch!$D$27,INDIRECT(\"a\" & (VLOOKUP(Switch!$D$27,$F$2:$G$44,2,FALSE)+ROW()-2)),\"\")","v":{"$error":"#N/A"}},{"$f":"IF(INDIRECT(\"c\" & (VLOOKUP(Switch!$D$28,$F$2:$G$44,2,FALSE)+ROW()-2))=Switch!$D$28,INDIRECT(\"a\" & (VLOOKUP(Switch!$D$28,$F$2:$G$44,2,FALSE)+ROW()-2)),\"\")","v":{"$error":"#N/A"}},{"$f":"IF(INDIRECT(\"c\" & (VLOOKUP(Switch!$D$29,$F$2:$G$44,2,FALSE)+ROW()-2))=Switch!$D$29,INDIRECT(\"a\" & (VLOOKUP(Switch!$D$29,$F$2:$G$44,2,FALSE)+ROW()-2)),\"\")","v":{"$error":"#N/A"}},{"$f":"IF(INDIRECT(\"c\" & (VLOOKUP(Switch!$D$30,$F$2:$G$44,2,FALSE)+ROW()-2))=Switch!$D$30,INDIRECT(\"a\" & (VLOOKUP(Switch!$D$30,$F$2:$G$44,2,FALSE)+ROW()-2)),\"\")","v":{"$error":"#N/A"}},{"$f":"IF(INDIRECT(\"c\" & (VLOOKUP(Switch!$D$31,$F$2:$G$44,2,FALSE)+ROW()-2))=Switch!$D$31,INDIRECT(\"a\" & (VLOOKUP(Switch!$D$31,$F$2:$G$44,2,FALSE)+ROW()-2)),\"\")","v":{"$error":"#N/A"}},{"$f":"IF(INDIRECT(\"c\" & (VLOOKUP(Switch!$D$32,$F$2:$G$44,2,FALSE)+ROW()-2))=Switch!$D$32,INDIRECT(\"a\" & (VLOOKUP(Switch!$D$32,$F$2:$G$44,2,FALSE)+ROW()-2)),\"\")","v":{"$error":"#N/A"}},{"$f":"IF(INDIRECT(\"c\" & (VLOOKUP(Switch!$D$33,$F$2:$G$44,2,FALSE)+ROW()-2))=Switch!$D$33,INDIRECT(\"a\" & (VLOOKUP(Switch!$D$33,$F$2:$G$44,2,FALSE)+ROW()-2)),\"\")","v":{"$error":"#N/A"}},{"$f":"IF(INDIRECT(\"c\" & (VLOOKUP(Switch!$D$34,$F$2:$G$44,2,FALSE)+ROW()-2))=Switch!$D$34,INDIRECT(\"a\" & (VLOOKUP(Switch!$D$34,$F$2:$G$44,2,FALSE)+ROW()-2)),\"\")","v":{"$error":"#N/A"}},{"$f":"IF(INDIRECT(\"c\" & (VLOOKUP(Switch!$D$35,$F$2:$G$44,2,FALSE)+ROW()-2))=Switch!$D$35,INDIRECT(\"a\" & (VLOOKUP(Switch!$D$35,$F$2:$G$44,2,FALSE)+ROW()-2)),\"\")","v":{"$error":"#N/A"}},{"$f":"IF(INDIRECT(\"c\" & (VLOOKUP(Switch!$D$36,$F$2:$G$44,2,FALSE)+ROW()-2))=Switch!$D$36,INDIRECT(\"a\" & (VLOOKUP(Switch!$D$36,$F$2:$G$44,2,FALSE)+ROW()-2)),\"\")","v":{"$error":"#N/A"}},{"$f":"IF(INDIRECT(\"c\" & (VLOOKUP(Switch!$D$37,$F$2:$G$44,2,FALSE)+ROW()-2))=Switch!$D$37,INDIRECT(\"a\" & (VLOOKUP(Switch!$D$37,$F$2:$G$44,2,FALSE)+ROW()-2)),\"\")","v":{"$error":"#N/A"}},{"$f":"IF(INDIRECT(\"c\" & (VLOOKUP(Switch!$D$38,$F$2:$G$44,2,FALSE)+ROW()-2))=Switch!$D$38,INDIRECT(\"a\" & (VLOOKUP(Switch!$D$38,$F$2:$G$44,2,FALSE)+ROW()-2)),\"\")","v":{"$error":"#N/A"}},{"$f":"IF(INDIRECT(\"c\" & (VLOOKUP(Switch!$D$39,$F$2:$G$44,2,FALSE)+ROW()-2))=Switch!$D$39,INDIRECT(\"a\" & (VLOOKUP(Switch!$D$39,$F$2:$G$44,2,FALSE)+ROW()-2)),\"\")","v":{"$error":"#N/A"}},{"$f":"IF(INDIRECT(\"c\" & (VLOOKUP(Switch!$D$40,$F$2:$G$44,2,FALSE)+ROW()-2))=Switch!$D$40,INDIRECT(\"a\" & (VLOOKUP(Switch!$D$40,$F$2:$G$44,2,FALSE)+ROW()-2)),\"\")","v":{"$error":"#N/A"}},{"$f":"IF(INDIRECT(\"c\" & (VLOOKUP(Switch!$D$52,$F$2:$G$44,2,FALSE)+ROW()-2))=Switch!$D$52,INDIRECT(\"a\" & (VLOOKUP(Switch!$D$52,$F$2:$G$44,2,FALSE)+ROW()-2)),\"\")","v":{"$error":"#N/A"}},{"$f":"IF(INDIRECT(\"c\" & (VLOOKUP(Switch!$D$53,$F$2:$G$44,2,FALSE)+ROW()-2))=Switch!$D$53,INDIRECT(\"a\" & (VLOOKUP(Switch!$D$53,$F$2:$G$44,2,FALSE)+ROW()-2)),\"\")","v":{"$error":"#N/A"}},{"$f":"IF(INDIRECT(\"c\" & (VLOOKUP(Switch!$D$54,$F$2:$G$44,2,FALSE)+ROW()-2))=Switch!$D$54,INDIRECT(\"a\" & (VLOOKUP(Switch!$D$54,$F$2:$G$44,2,FALSE)+ROW()-2)),\"\")","v":{"$error":"#N/A"}},{"$f":"IF(INDIRECT(\"c\" & (VLOOKUP(Switch!$D$55,$F$2:$G$44,2,FALSE)+ROW()-2))=Switch!$D$55,INDIRECT(\"a\" & (VLOOKUP(Switch!$D$55,$F$2:$G$44,2,FALSE)+ROW()-2)),\"\")","v":{"$error":"#N/A"}},{"$f":"IF(INDIRECT(\"c\" & (VLOOKUP(Switch!$D$56,$F$2:$G$44,2,FALSE)+ROW()-2))=Switch!$D$56,INDIRECT(\"a\" & (VLOOKUP(Switch!$D$56,$F$2:$G$44,2,FALSE)+ROW()-2)),\"\")","v":{"$error":"#N/A"}},{"$f":"IF(INDIRECT(\"c\" & (VLOOKUP(Switch!$D$57,$F$2:$G$44,2,FALSE)+ROW()-2))=Switch!$D$57,INDIRECT(\"a\" & (VLOOKUP(Switch!$D$57,$F$2:$G$44,2,FALSE)+ROW()-2)),\"\")","v":{"$error":"#N/A"}},{"$f":"IF(INDIRECT(\"c\" & (VLOOKUP(Switch!$D$58,$F$2:$G$44,2,FALSE)+ROW()-2))=Switch!$D$58,INDIRECT(\"a\" & (VLOOKUP(Switch!$D$58,$F$2:$G$44,2,FALSE)+ROW()-2)),\"\")","v":{"$error":"#N/A"}},{"$f":"IF(INDIRECT(\"c\" & (VLOOKUP(Switch!$D$59,$F$2:$G$44,2,FALSE)+ROW()-2))=Switch!$D$59,INDIRECT(\"a\" & (VLOOKUP(Switch!$D$59,$F$2:$G$44,2,FALSE)+ROW()-2)),\"\")","v":{"$error":"#N/A"}},{"$f":"IF(INDIRECT(\"c\" & (VLOOKUP(Switch!$D$60,$F$2:$G$44,2,FALSE)+ROW()-2))=Switch!$D$60,INDIRECT(\"a\" & (VLOOKUP(Switch!$D$60,$F$2:$G$44,2,FALSE)+ROW()-2)),\"\")","v":{"$error":"#N/A"}},{"$f":"IF(INDIRECT(\"c\" & (VLOOKUP(Switch!$D$61,$F$2:$G$44,2,FALSE)+ROW()-2))=Switch!$D$61,INDIRECT(\"a\" & (VLOOKUP(Switch!$D$61,$F$2:$G$44,2,FALSE)+ROW()-2)),\"\")","v":{"$error":"#N/A"}},{"$f":"IF(INDIRECT(\"c\" & (VLOOKUP(Switch!$D$62,$F$2:$G$44,2,FALSE)+ROW()-2))=Switch!$D$62,INDIRECT(\"a\" & (VLOOKUP(Switch!$D$62,$F$2:$G$44,2,FALSE)+ROW()-2)),\"\")","v":{"$error":"#N/A"}},{"$f":"IF(INDIRECT(\"c\" & (VLOOKUP(Switch!$D$63,$F$2:$G$44,2,FALSE)+ROW()-2))=Switch!$D$63,INDIRECT(\"a\" & (VLOOKUP(Switch!$D$63,$F$2:$G$44,2,FALSE)+ROW()-2)),\"\")","v":{"$error":"#N/A"}},{"$f":"IF(INDIRECT(\"c\" & (VLOOKUP(Switch!$D$64,$F$2:$G$44,2,FALSE)+ROW()-2))=Switch!$D$64,INDIRECT(\"a\" & (VLOOKUP(Switch!$D$64,$F$2:$G$44,2,FALSE)+ROW()-2)),\"\")","v":{"$error":"#N/A"}},{"$f":"IF(INDIRECT(\"c\" & (VLOOKUP(Switch!$D$65,$F$2:$G$44,2,FALSE)+ROW()-2))=Switch!$D$65,INDIRECT(\"a\" & (VLOOKUP(Switch!$D$65,$F$2:$G$44,2,FALSE)+ROW()-2)),\"\")","v":{"$error":"#N/A"}},{"$f":"IF(INDIRECT(\"c\" & (VLOOKUP(Switch!$D$66,$F$2:$G$44,2,FALSE)+ROW()-2))=Switch!$D$66,INDIRECT(\"a\" & (VLOOKUP(Switch!$D$66,$F$2:$G$44,2,FALSE)+ROW()-2)),\"\")","v":{"$error":"#N/A"}}]
["Nedgroup Inv Global Flexible Feeder Fund B2","NEIG","Nedgroup Collective Investments Ltd",{"$f":"ROW()","v":372},null,null,{"$f":"VLOOKUP(F372,$C$2:$D$637,2,FALSE)","v":{"$error":"#N/A"}},{"$f":"IF(INDIRECT(\"c\" & (VLOOKUP(Switch!$D$26,$F$2:$G$44,2,FALSE)+ROW()-2))=Switch!$D$26,INDIRECT(\"a\" & (VLOOKUP(Switch!$D$26,$F$2:$G$44,2,FALSE)+ROW()-2)),\"\")","v":{"$error":"#N/A"}},{"$f":"IF(INDIRECT(\"c\" & (VLOOKUP(Switch!$D$27,$F$2:$G$44,2,FALSE)+ROW()-2))=Switch!$D$27,INDIRECT(\"a\" & (VLOOKUP(Switch!$D$27,$F$2:$G$44,2,FALSE)+ROW()-2)),\"\")","v":{"$error":"#N/A"}},{"$f":"IF(INDIRECT(\"c\" & (VLOOKUP(Switch!$D$28,$F$2:$G$44,2,FALSE)+ROW()-2))=Switch!$D$28,INDIRECT(\"a\" & (VLOOKUP(Switch!$D$28,$F$2:$G$44,2,FALSE)+ROW()-2)),\"\")","v":{"$error":"#N/A"}},{"$f":"IF(INDIRECT(\"c\" & (VLOOKUP(Switch!$D$29,$F$2:$G$44,2,FALSE)+ROW()-2))=Switch!$D$29,INDIRECT(\"a\" & (VLOOKUP(Switch!$D$29,$F$2:$G$44,2,FALSE)+ROW()-2)),\"\")","v":{"$error":"#N/A"}},{"$f":"IF(INDIRECT(\"c\" & (VLOOKUP(Switch!$D$30,$F$2:$G$44,2,FALSE)+ROW()-2))=Switch!$D$30,INDIRECT(\"a\" & (VLOOKUP(Switch!$D$30,$F$2:$G$44,2,FALSE)+ROW()-2)),\"\")","v":{"$error":"#N/A"}},{"$f":"IF(INDIRECT(\"c\" & (VLOOKUP(Switch!$D$31,$F$2:$G$44,2,FALSE)+ROW()-2))=Switch!$D$31,INDIRECT(\"a\" & (VLOOKUP(Switch!$D$31,$F$2:$G$44,2,FALSE)+ROW()-2)),\"\")","v":{"$error":"#N/A"}},{"$f":"IF(INDIRECT(\"c\" & (VLOOKUP(Switch!$D$32,$F$2:$G$44,2,FALSE)+ROW()-2))=Switch!$D$32,INDIRECT(\"a\" & (VLOOKUP(Switch!$D$32,$F$2:$G$44,2,FALSE)+ROW()-2)),\"\")","v":{"$error":"#N/A"}},{"$f":"IF(INDIRECT(\"c\" & (VLOOKUP(Switch!$D$33,$F$2:$G$44,2,FALSE)+ROW()-2))=Switch!$D$33,INDIRECT(\"a\" & (VLOOKUP(Switch!$D$33,$F$2:$G$44,2,FALSE)+ROW()-2)),\"\")","v":{"$error":"#N/A"}},{"$f":"IF(INDIRECT(\"c\" & (VLOOKUP(Switch!$D$34,$F$2:$G$44,2,FALSE)+ROW()-2))=Switch!$D$34,INDIRECT(\"a\" & (VLOOKUP(Switch!$D$34,$F$2:$G$44,2,FALSE)+ROW()-2)),\"\")","v":{"$error":"#N/A"}},{"$f":"IF(INDIRECT(\"c\" & (VLOOKUP(Switch!$D$35,$F$2:$G$44,2,FALSE)+ROW()-2))=Switch!$D$35,INDIRECT(\"a\" & (VLOOKUP(Switch!$D$35,$F$2:$G$44,2,FALSE)+ROW()-2)),\"\")","v":{"$error":"#N/A"}},{"$f":"IF(INDIRECT(\"c\" & (VLOOKUP(Switch!$D$36,$F$2:$G$44,2,FALSE)+ROW()-2))=Switch!$D$36,INDIRECT(\"a\" & (VLOOKUP(Switch!$D$36,$F$2:$G$44,2,FALSE)+ROW()-2)),\"\")","v":{"$error":"#N/A"}},{"$f":"IF(INDIRECT(\"c\" & (VLOOKUP(Switch!$D$37,$F$2:$G$44,2,FALSE)+ROW()-2))=Switch!$D$37,INDIRECT(\"a\" & (VLOOKUP(Switch!$D$37,$F$2:$G$44,2,FALSE)+ROW()-2)),\"\")","v":{"$error":"#N/A"}},{"$f":"IF(INDIRECT(\"c\" & (VLOOKUP(Switch!$D$38,$F$2:$G$44,2,FALSE)+ROW()-2))=Switch!$D$38,INDIRECT(\"a\" & (VLOOKUP(Switch!$D$38,$F$2:$G$44,2,FALSE)+ROW()-2)),\"\")","v":{"$error":"#N/A"}},{"$f":"IF(INDIRECT(\"c\" & (VLOOKUP(Switch!$D$39,$F$2:$G$44,2,FALSE)+ROW()-2))=Switch!$D$39,INDIRECT(\"a\" & (VLOOKUP(Switch!$D$39,$F$2:$G$44,2,FALSE)+ROW()-2)),\"\")","v":{"$error":"#N/A"}},{"$f":"IF(INDIRECT(\"c\" & (VLOOKUP(Switch!$D$40,$F$2:$G$44,2,FALSE)+ROW()-2))=Switch!$D$40,INDIRECT(\"a\" & (VLOOKUP(Switch!$D$40,$F$2:$G$44,2,FALSE)+ROW()-2)),\"\")","v":{"$error":"#N/A"}},{"$f":"IF(INDIRECT(\"c\" & (VLOOKUP(Switch!$D$52,$F$2:$G$44,2,FALSE)+ROW()-2))=Switch!$D$52,INDIRECT(\"a\" & (VLOOKUP(Switch!$D$52,$F$2:$G$44,2,FALSE)+ROW()-2)),\"\")","v":{"$error":"#N/A"}},{"$f":"IF(INDIRECT(\"c\" & (VLOOKUP(Switch!$D$53,$F$2:$G$44,2,FALSE)+ROW()-2))=Switch!$D$53,INDIRECT(\"a\" & (VLOOKUP(Switch!$D$53,$F$2:$G$44,2,FALSE)+ROW()-2)),\"\")","v":{"$error":"#N/A"}},{"$f":"IF(INDIRECT(\"c\" & (VLOOKUP(Switch!$D$54,$F$2:$G$44,2,FALSE)+ROW()-2))=Switch!$D$54,INDIRECT(\"a\" & (VLOOKUP(Switch!$D$54,$F$2:$G$44,2,FALSE)+ROW()-2)),\"\")","v":{"$error":"#N/A"}},{"$f":"IF(INDIRECT(\"c\" & (VLOOKUP(Switch!$D$55,$F$2:$G$44,2,FALSE)+ROW()-2))=Switch!$D$55,INDIRECT(\"a\" & (VLOOKUP(Switch!$D$55,$F$2:$G$44,2,FALSE)+ROW()-2)),\"\")","v":{"$error":"#N/A"}},{"$f":"IF(INDIRECT(\"c\" & (VLOOKUP(Switch!$D$56,$F$2:$G$44,2,FALSE)+ROW()-2))=Switch!$D$56,INDIRECT(\"a\" & (VLOOKUP(Switch!$D$56,$F$2:$G$44,2,FALSE)+ROW()-2)),\"\")","v":{"$error":"#N/A"}},{"$f":"IF(INDIRECT(\"c\" & (VLOOKUP(Switch!$D$57,$F$2:$G$44,2,FALSE)+ROW()-2))=Switch!$D$57,INDIRECT(\"a\" & (VLOOKUP(Switch!$D$57,$F$2:$G$44,2,FALSE)+ROW()-2)),\"\")","v":{"$error":"#N/A"}},{"$f":"IF(INDIRECT(\"c\" & (VLOOKUP(Switch!$D$58,$F$2:$G$44,2,FALSE)+ROW()-2))=Switch!$D$58,INDIRECT(\"a\" & (VLOOKUP(Switch!$D$58,$F$2:$G$44,2,FALSE)+ROW()-2)),\"\")","v":{"$error":"#N/A"}},{"$f":"IF(INDIRECT(\"c\" & (VLOOKUP(Switch!$D$59,$F$2:$G$44,2,FALSE)+ROW()-2))=Switch!$D$59,INDIRECT(\"a\" & (VLOOKUP(Switch!$D$59,$F$2:$G$44,2,FALSE)+ROW()-2)),\"\")","v":{"$error":"#N/A"}},{"$f":"IF(INDIRECT(\"c\" & (VLOOKUP(Switch!$D$60,$F$2:$G$44,2,FALSE)+ROW()-2))=Switch!$D$60,INDIRECT(\"a\" & (VLOOKUP(Switch!$D$60,$F$2:$G$44,2,FALSE)+ROW()-2)),\"\")","v":{"$error":"#N/A"}},{"$f":"IF(INDIRECT(\"c\" & (VLOOKUP(Switch!$D$61,$F$2:$G$44,2,FALSE)+ROW()-2))=Switch!$D$61,INDIRECT(\"a\" & (VLOOKUP(Switch!$D$61,$F$2:$G$44,2,FALSE)+ROW()-2)),\"\")","v":{"$error":"#N/A"}},{"$f":"IF(INDIRECT(\"c\" & (VLOOKUP(Switch!$D$62,$F$2:$G$44,2,FALSE)+ROW()-2))=Switch!$D$62,INDIRECT(\"a\" & (VLOOKUP(Switch!$D$62,$F$2:$G$44,2,FALSE)+ROW()-2)),\"\")","v":{"$error":"#N/A"}},{"$f":"IF(INDIRECT(\"c\" & (VLOOKUP(Switch!$D$63,$F$2:$G$44,2,FALSE)+ROW()-2))=Switch!$D$63,INDIRECT(\"a\" & (VLOOKUP(Switch!$D$63,$F$2:$G$44,2,FALSE)+ROW()-2)),\"\")","v":{"$error":"#N/A"}},{"$f":"IF(INDIRECT(\"c\" & (VLOOKUP(Switch!$D$64,$F$2:$G$44,2,FALSE)+ROW()-2))=Switch!$D$64,INDIRECT(\"a\" & (VLOOKUP(Switch!$D$64,$F$2:$G$44,2,FALSE)+ROW()-2)),\"\")","v":{"$error":"#N/A"}},{"$f":"IF(INDIRECT(\"c\" & (VLOOKUP(Switch!$D$65,$F$2:$G$44,2,FALSE)+ROW()-2))=Switch!$D$65,INDIRECT(\"a\" & (VLOOKUP(Switch!$D$65,$F$2:$G$44,2,FALSE)+ROW()-2)),\"\")","v":{"$error":"#N/A"}},{"$f":"IF(INDIRECT(\"c\" & (VLOOKUP(Switch!$D$66,$F$2:$G$44,2,FALSE)+ROW()-2))=Switch!$D$66,INDIRECT(\"a\" & (VLOOKUP(Switch!$D$66,$F$2:$G$44,2,FALSE)+ROW()-2)),\"\")","v":{"$error":"#N/A"}}]
["Nedgroup Inv Global Flexible Feeder Fund R","NEIG","Nedgroup Collective Investments Ltd",{"$f":"ROW()","v":373},null,null,{"$f":"VLOOKUP(F373,$C$2:$D$637,2,FALSE)","v":{"$error":"#N/A"}},{"$f":"IF(INDIRECT(\"c\" & (VLOOKUP(Switch!$D$26,$F$2:$G$44,2,FALSE)+ROW()-2))=Switch!$D$26,INDIRECT(\"a\" & (VLOOKUP(Switch!$D$26,$F$2:$G$44,2,FALSE)+ROW()-2)),\"\")","v":{"$error":"#N/A"}},{"$f":"IF(INDIRECT(\"c\" & (VLOOKUP(Switch!$D$27,$F$2:$G$44,2,FALSE)+ROW()-2))=Switch!$D$27,INDIRECT(\"a\" & (VLOOKUP(Switch!$D$27,$F$2:$G$44,2,FALSE)+ROW()-2)),\"\")","v":{"$error":"#N/A"}},{"$f":"IF(INDIRECT(\"c\" & (VLOOKUP(Switch!$D$28,$F$2:$G$44,2,FALSE)+ROW()-2))=Switch!$D$28,INDIRECT(\"a\" & (VLOOKUP(Switch!$D$28,$F$2:$G$44,2,FALSE)+ROW()-2)),\"\")","v":{"$error":"#N/A"}},{"$f":"IF(INDIRECT(\"c\" & (VLOOKUP(Switch!$D$29,$F$2:$G$44,2,FALSE)+ROW()-2))=Switch!$D$29,INDIRECT(\"a\" & (VLOOKUP(Switch!$D$29,$F$2:$G$44,2,FALSE)+ROW()-2)),\"\")","v":{"$error":"#N/A"}},{"$f":"IF(INDIRECT(\"c\" & (VLOOKUP(Switch!$D$30,$F$2:$G$44,2,FALSE)+ROW()-2))=Switch!$D$30,INDIRECT(\"a\" & (VLOOKUP(Switch!$D$30,$F$2:$G$44,2,FALSE)+ROW()-2)),\"\")","v":{"$error":"#N/A"}},{"$f":"IF(INDIRECT(\"c\" & (VLOOKUP(Switch!$D$31,$F$2:$G$44,2,FALSE)+ROW()-2))=Switch!$D$31,INDIRECT(\"a\" & (VLOOKUP(Switch!$D$31,$F$2:$G$44,2,FALSE)+ROW()-2)),\"\")","v":{"$error":"#N/A"}},{"$f":"IF(INDIRECT(\"c\" & (VLOOKUP(Switch!$D$32,$F$2:$G$44,2,FALSE)+ROW()-2))=Switch!$D$32,INDIRECT(\"a\" & (VLOOKUP(Switch!$D$32,$F$2:$G$44,2,FALSE)+ROW()-2)),\"\")","v":{"$error":"#N/A"}},{"$f":"IF(INDIRECT(\"c\" & (VLOOKUP(Switch!$D$33,$F$2:$G$44,2,FALSE)+ROW()-2))=Switch!$D$33,INDIRECT(\"a\" & (VLOOKUP(Switch!$D$33,$F$2:$G$44,2,FALSE)+ROW()-2)),\"\")","v":{"$error":"#N/A"}},{"$f":"IF(INDIRECT(\"c\" & (VLOOKUP(Switch!$D$34,$F$2:$G$44,2,FALSE)+ROW()-2))=Switch!$D$34,INDIRECT(\"a\" & (VLOOKUP(Switch!$D$34,$F$2:$G$44,2,FALSE)+ROW()-2)),\"\")","v":{"$error":"#N/A"}},{"$f":"IF(INDIRECT(\"c\" & (VLOOKUP(Switch!$D$35,$F$2:$G$44,2,FALSE)+ROW()-2))=Switch!$D$35,INDIRECT(\"a\" & (VLOOKUP(Switch!$D$35,$F$2:$G$44,2,FALSE)+ROW()-2)),\"\")","v":{"$error":"#N/A"}},{"$f":"IF(INDIRECT(\"c\" & (VLOOKUP(Switch!$D$36,$F$2:$G$44,2,FALSE)+ROW()-2))=Switch!$D$36,INDIRECT(\"a\" & (VLOOKUP(Switch!$D$36,$F$2:$G$44,2,FALSE)+ROW()-2)),\"\")","v":{"$error":"#N/A"}},{"$f":"IF(INDIRECT(\"c\" & (VLOOKUP(Switch!$D$37,$F$2:$G$44,2,FALSE)+ROW()-2))=Switch!$D$37,INDIRECT(\"a\" & (VLOOKUP(Switch!$D$37,$F$2:$G$44,2,FALSE)+ROW()-2)),\"\")","v":{"$error":"#N/A"}},{"$f":"IF(INDIRECT(\"c\" & (VLOOKUP(Switch!$D$38,$F$2:$G$44,2,FALSE)+ROW()-2))=Switch!$D$38,INDIRECT(\"a\" & (VLOOKUP(Switch!$D$38,$F$2:$G$44,2,FALSE)+ROW()-2)),\"\")","v":{"$error":"#N/A"}},{"$f":"IF(INDIRECT(\"c\" & (VLOOKUP(Switch!$D$39,$F$2:$G$44,2,FALSE)+ROW()-2))=Switch!$D$39,INDIRECT(\"a\" & (VLOOKUP(Switch!$D$39,$F$2:$G$44,2,FALSE)+ROW()-2)),\"\")","v":{"$error":"#N/A"}},{"$f":"IF(INDIRECT(\"c\" & (VLOOKUP(Switch!$D$40,$F$2:$G$44,2,FALSE)+ROW()-2))=Switch!$D$40,INDIRECT(\"a\" & (VLOOKUP(Switch!$D$40,$F$2:$G$44,2,FALSE)+ROW()-2)),\"\")","v":{"$error":"#N/A"}},{"$f":"IF(INDIRECT(\"c\" & (VLOOKUP(Switch!$D$52,$F$2:$G$44,2,FALSE)+ROW()-2))=Switch!$D$52,INDIRECT(\"a\" & (VLOOKUP(Switch!$D$52,$F$2:$G$44,2,FALSE)+ROW()-2)),\"\")","v":{"$error":"#N/A"}},{"$f":"IF(INDIRECT(\"c\" & (VLOOKUP(Switch!$D$53,$F$2:$G$44,2,FALSE)+ROW()-2))=Switch!$D$53,INDIRECT(\"a\" & (VLOOKUP(Switch!$D$53,$F$2:$G$44,2,FALSE)+ROW()-2)),\"\")","v":{"$error":"#N/A"}},{"$f":"IF(INDIRECT(\"c\" & (VLOOKUP(Switch!$D$54,$F$2:$G$44,2,FALSE)+ROW()-2))=Switch!$D$54,INDIRECT(\"a\" & (VLOOKUP(Switch!$D$54,$F$2:$G$44,2,FALSE)+ROW()-2)),\"\")","v":{"$error":"#N/A"}},{"$f":"IF(INDIRECT(\"c\" & (VLOOKUP(Switch!$D$55,$F$2:$G$44,2,FALSE)+ROW()-2))=Switch!$D$55,INDIRECT(\"a\" & (VLOOKUP(Switch!$D$55,$F$2:$G$44,2,FALSE)+ROW()-2)),\"\")","v":{"$error":"#N/A"}},{"$f":"IF(INDIRECT(\"c\" & (VLOOKUP(Switch!$D$56,$F$2:$G$44,2,FALSE)+ROW()-2))=Switch!$D$56,INDIRECT(\"a\" & (VLOOKUP(Switch!$D$56,$F$2:$G$44,2,FALSE)+ROW()-2)),\"\")","v":{"$error":"#N/A"}},{"$f":"IF(INDIRECT(\"c\" & (VLOOKUP(Switch!$D$57,$F$2:$G$44,2,FALSE)+ROW()-2))=Switch!$D$57,INDIRECT(\"a\" & (VLOOKUP(Switch!$D$57,$F$2:$G$44,2,FALSE)+ROW()-2)),\"\")","v":{"$error":"#N/A"}},{"$f":"IF(INDIRECT(\"c\" & (VLOOKUP(Switch!$D$58,$F$2:$G$44,2,FALSE)+ROW()-2))=Switch!$D$58,INDIRECT(\"a\" & (VLOOKUP(Switch!$D$58,$F$2:$G$44,2,FALSE)+ROW()-2)),\"\")","v":{"$error":"#N/A"}},{"$f":"IF(INDIRECT(\"c\" & (VLOOKUP(Switch!$D$59,$F$2:$G$44,2,FALSE)+ROW()-2))=Switch!$D$59,INDIRECT(\"a\" & (VLOOKUP(Switch!$D$59,$F$2:$G$44,2,FALSE)+ROW()-2)),\"\")","v":{"$error":"#N/A"}},{"$f":"IF(INDIRECT(\"c\" & (VLOOKUP(Switch!$D$60,$F$2:$G$44,2,FALSE)+ROW()-2))=Switch!$D$60,INDIRECT(\"a\" & (VLOOKUP(Switch!$D$60,$F$2:$G$44,2,FALSE)+ROW()-2)),\"\")","v":{"$error":"#N/A"}},{"$f":"IF(INDIRECT(\"c\" & (VLOOKUP(Switch!$D$61,$F$2:$G$44,2,FALSE)+ROW()-2))=Switch!$D$61,INDIRECT(\"a\" & (VLOOKUP(Switch!$D$61,$F$2:$G$44,2,FALSE)+ROW()-2)),\"\")","v":{"$error":"#N/A"}},{"$f":"IF(INDIRECT(\"c\" & (VLOOKUP(Switch!$D$62,$F$2:$G$44,2,FALSE)+ROW()-2))=Switch!$D$62,INDIRECT(\"a\" & (VLOOKUP(Switch!$D$62,$F$2:$G$44,2,FALSE)+ROW()-2)),\"\")","v":{"$error":"#N/A"}},{"$f":"IF(INDIRECT(\"c\" & (VLOOKUP(Switch!$D$63,$F$2:$G$44,2,FALSE)+ROW()-2))=Switch!$D$63,INDIRECT(\"a\" & (VLOOKUP(Switch!$D$63,$F$2:$G$44,2,FALSE)+ROW()-2)),\"\")","v":{"$error":"#N/A"}},{"$f":"IF(INDIRECT(\"c\" & (VLOOKUP(Switch!$D$64,$F$2:$G$44,2,FALSE)+ROW()-2))=Switch!$D$64,INDIRECT(\"a\" & (VLOOKUP(Switch!$D$64,$F$2:$G$44,2,FALSE)+ROW()-2)),\"\")","v":{"$error":"#N/A"}},{"$f":"IF(INDIRECT(\"c\" & (VLOOKUP(Switch!$D$65,$F$2:$G$44,2,FALSE)+ROW()-2))=Switch!$D$65,INDIRECT(\"a\" & (VLOOKUP(Switch!$D$65,$F$2:$G$44,2,FALSE)+ROW()-2)),\"\")","v":{"$error":"#N/A"}},{"$f":"IF(INDIRECT(\"c\" & (VLOOKUP(Switch!$D$66,$F$2:$G$44,2,FALSE)+ROW()-2))=Switch!$D$66,INDIRECT(\"a\" & (VLOOKUP(Switch!$D$66,$F$2:$G$44,2,FALSE)+ROW()-2)),\"\")","v":{"$error":"#N/A"}}]
["Nedgroup Investments Global Property Feeder Fund B","NEFCB","Nedgroup Collective Investments Ltd",{"$f":"ROW()","v":374},null,null,{"$f":"VLOOKUP(F374,$C$2:$D$637,2,FALSE)","v":{"$error":"#N/A"}},{"$f":"IF(INDIRECT(\"c\" & (VLOOKUP(Switch!$D$26,$F$2:$G$44,2,FALSE)+ROW()-2))=Switch!$D$26,INDIRECT(\"a\" & (VLOOKUP(Switch!$D$26,$F$2:$G$44,2,FALSE)+ROW()-2)),\"\")","v":{"$error":"#N/A"}},{"$f":"IF(INDIRECT(\"c\" & (VLOOKUP(Switch!$D$27,$F$2:$G$44,2,FALSE)+ROW()-2))=Switch!$D$27,INDIRECT(\"a\" & (VLOOKUP(Switch!$D$27,$F$2:$G$44,2,FALSE)+ROW()-2)),\"\")","v":{"$error":"#N/A"}},{"$f":"IF(INDIRECT(\"c\" & (VLOOKUP(Switch!$D$28,$F$2:$G$44,2,FALSE)+ROW()-2))=Switch!$D$28,INDIRECT(\"a\" & (VLOOKUP(Switch!$D$28,$F$2:$G$44,2,FALSE)+ROW()-2)),\"\")","v":{"$error":"#N/A"}},{"$f":"IF(INDIRECT(\"c\" & (VLOOKUP(Switch!$D$29,$F$2:$G$44,2,FALSE)+ROW()-2))=Switch!$D$29,INDIRECT(\"a\" & (VLOOKUP(Switch!$D$29,$F$2:$G$44,2,FALSE)+ROW()-2)),\"\")","v":{"$error":"#N/A"}},{"$f":"IF(INDIRECT(\"c\" & (VLOOKUP(Switch!$D$30,$F$2:$G$44,2,FALSE)+ROW()-2))=Switch!$D$30,INDIRECT(\"a\" & (VLOOKUP(Switch!$D$30,$F$2:$G$44,2,FALSE)+ROW()-2)),\"\")","v":{"$error":"#N/A"}},{"$f":"IF(INDIRECT(\"c\" & (VLOOKUP(Switch!$D$31,$F$2:$G$44,2,FALSE)+ROW()-2))=Switch!$D$31,INDIRECT(\"a\" & (VLOOKUP(Switch!$D$31,$F$2:$G$44,2,FALSE)+ROW()-2)),\"\")","v":{"$error":"#N/A"}},{"$f":"IF(INDIRECT(\"c\" & (VLOOKUP(Switch!$D$32,$F$2:$G$44,2,FALSE)+ROW()-2))=Switch!$D$32,INDIRECT(\"a\" & (VLOOKUP(Switch!$D$32,$F$2:$G$44,2,FALSE)+ROW()-2)),\"\")","v":{"$error":"#N/A"}},{"$f":"IF(INDIRECT(\"c\" & (VLOOKUP(Switch!$D$33,$F$2:$G$44,2,FALSE)+ROW()-2))=Switch!$D$33,INDIRECT(\"a\" & (VLOOKUP(Switch!$D$33,$F$2:$G$44,2,FALSE)+ROW()-2)),\"\")","v":{"$error":"#N/A"}},{"$f":"IF(INDIRECT(\"c\" & (VLOOKUP(Switch!$D$34,$F$2:$G$44,2,FALSE)+ROW()-2))=Switch!$D$34,INDIRECT(\"a\" & (VLOOKUP(Switch!$D$34,$F$2:$G$44,2,FALSE)+ROW()-2)),\"\")","v":{"$error":"#N/A"}},{"$f":"IF(INDIRECT(\"c\" & (VLOOKUP(Switch!$D$35,$F$2:$G$44,2,FALSE)+ROW()-2))=Switch!$D$35,INDIRECT(\"a\" & (VLOOKUP(Switch!$D$35,$F$2:$G$44,2,FALSE)+ROW()-2)),\"\")","v":{"$error":"#N/A"}},{"$f":"IF(INDIRECT(\"c\" & (VLOOKUP(Switch!$D$36,$F$2:$G$44,2,FALSE)+ROW()-2))=Switch!$D$36,INDIRECT(\"a\" & (VLOOKUP(Switch!$D$36,$F$2:$G$44,2,FALSE)+ROW()-2)),\"\")","v":{"$error":"#N/A"}},{"$f":"IF(INDIRECT(\"c\" & (VLOOKUP(Switch!$D$37,$F$2:$G$44,2,FALSE)+ROW()-2))=Switch!$D$37,INDIRECT(\"a\" & (VLOOKUP(Switch!$D$37,$F$2:$G$44,2,FALSE)+ROW()-2)),\"\")","v":{"$error":"#N/A"}},{"$f":"IF(INDIRECT(\"c\" & (VLOOKUP(Switch!$D$38,$F$2:$G$44,2,FALSE)+ROW()-2))=Switch!$D$38,INDIRECT(\"a\" & (VLOOKUP(Switch!$D$38,$F$2:$G$44,2,FALSE)+ROW()-2)),\"\")","v":{"$error":"#N/A"}},{"$f":"IF(INDIRECT(\"c\" & (VLOOKUP(Switch!$D$39,$F$2:$G$44,2,FALSE)+ROW()-2))=Switch!$D$39,INDIRECT(\"a\" & (VLOOKUP(Switch!$D$39,$F$2:$G$44,2,FALSE)+ROW()-2)),\"\")","v":{"$error":"#N/A"}},{"$f":"IF(INDIRECT(\"c\" & (VLOOKUP(Switch!$D$40,$F$2:$G$44,2,FALSE)+ROW()-2))=Switch!$D$40,INDIRECT(\"a\" & (VLOOKUP(Switch!$D$40,$F$2:$G$44,2,FALSE)+ROW()-2)),\"\")","v":{"$error":"#N/A"}},{"$f":"IF(INDIRECT(\"c\" & (VLOOKUP(Switch!$D$52,$F$2:$G$44,2,FALSE)+ROW()-2))=Switch!$D$52,INDIRECT(\"a\" & (VLOOKUP(Switch!$D$52,$F$2:$G$44,2,FALSE)+ROW()-2)),\"\")","v":{"$error":"#N/A"}},{"$f":"IF(INDIRECT(\"c\" & (VLOOKUP(Switch!$D$53,$F$2:$G$44,2,FALSE)+ROW()-2))=Switch!$D$53,INDIRECT(\"a\" & (VLOOKUP(Switch!$D$53,$F$2:$G$44,2,FALSE)+ROW()-2)),\"\")","v":{"$error":"#N/A"}},{"$f":"IF(INDIRECT(\"c\" & (VLOOKUP(Switch!$D$54,$F$2:$G$44,2,FALSE)+ROW()-2))=Switch!$D$54,INDIRECT(\"a\" & (VLOOKUP(Switch!$D$54,$F$2:$G$44,2,FALSE)+ROW()-2)),\"\")","v":{"$error":"#N/A"}},{"$f":"IF(INDIRECT(\"c\" & (VLOOKUP(Switch!$D$55,$F$2:$G$44,2,FALSE)+ROW()-2))=Switch!$D$55,INDIRECT(\"a\" & (VLOOKUP(Switch!$D$55,$F$2:$G$44,2,FALSE)+ROW()-2)),\"\")","v":{"$error":"#N/A"}},{"$f":"IF(INDIRECT(\"c\" & (VLOOKUP(Switch!$D$56,$F$2:$G$44,2,FALSE)+ROW()-2))=Switch!$D$56,INDIRECT(\"a\" & (VLOOKUP(Switch!$D$56,$F$2:$G$44,2,FALSE)+ROW()-2)),\"\")","v":{"$error":"#N/A"}},{"$f":"IF(INDIRECT(\"c\" & (VLOOKUP(Switch!$D$57,$F$2:$G$44,2,FALSE)+ROW()-2))=Switch!$D$57,INDIRECT(\"a\" & (VLOOKUP(Switch!$D$57,$F$2:$G$44,2,FALSE)+ROW()-2)),\"\")","v":{"$error":"#N/A"}},{"$f":"IF(INDIRECT(\"c\" & (VLOOKUP(Switch!$D$58,$F$2:$G$44,2,FALSE)+ROW()-2))=Switch!$D$58,INDIRECT(\"a\" & (VLOOKUP(Switch!$D$58,$F$2:$G$44,2,FALSE)+ROW()-2)),\"\")","v":{"$error":"#N/A"}},{"$f":"IF(INDIRECT(\"c\" & (VLOOKUP(Switch!$D$59,$F$2:$G$44,2,FALSE)+ROW()-2))=Switch!$D$59,INDIRECT(\"a\" & (VLOOKUP(Switch!$D$59,$F$2:$G$44,2,FALSE)+ROW()-2)),\"\")","v":{"$error":"#N/A"}},{"$f":"IF(INDIRECT(\"c\" & (VLOOKUP(Switch!$D$60,$F$2:$G$44,2,FALSE)+ROW()-2))=Switch!$D$60,INDIRECT(\"a\" & (VLOOKUP(Switch!$D$60,$F$2:$G$44,2,FALSE)+ROW()-2)),\"\")","v":{"$error":"#N/A"}},{"$f":"IF(INDIRECT(\"c\" & (VLOOKUP(Switch!$D$61,$F$2:$G$44,2,FALSE)+ROW()-2))=Switch!$D$61,INDIRECT(\"a\" & (VLOOKUP(Switch!$D$61,$F$2:$G$44,2,FALSE)+ROW()-2)),\"\")","v":{"$error":"#N/A"}},{"$f":"IF(INDIRECT(\"c\" & (VLOOKUP(Switch!$D$62,$F$2:$G$44,2,FALSE)+ROW()-2))=Switch!$D$62,INDIRECT(\"a\" & (VLOOKUP(Switch!$D$62,$F$2:$G$44,2,FALSE)+ROW()-2)),\"\")","v":{"$error":"#N/A"}},{"$f":"IF(INDIRECT(\"c\" & (VLOOKUP(Switch!$D$63,$F$2:$G$44,2,FALSE)+ROW()-2))=Switch!$D$63,INDIRECT(\"a\" & (VLOOKUP(Switch!$D$63,$F$2:$G$44,2,FALSE)+ROW()-2)),\"\")","v":{"$error":"#N/A"}},{"$f":"IF(INDIRECT(\"c\" & (VLOOKUP(Switch!$D$64,$F$2:$G$44,2,FALSE)+ROW()-2))=Switch!$D$64,INDIRECT(\"a\" & (VLOOKUP(Switch!$D$64,$F$2:$G$44,2,FALSE)+ROW()-2)),\"\")","v":{"$error":"#N/A"}},{"$f":"IF(INDIRECT(\"c\" & (VLOOKUP(Switch!$D$65,$F$2:$G$44,2,FALSE)+ROW()-2))=Switch!$D$65,INDIRECT(\"a\" & (VLOOKUP(Switch!$D$65,$F$2:$G$44,2,FALSE)+ROW()-2)),\"\")","v":{"$error":"#N/A"}},{"$f":"IF(INDIRECT(\"c\" & (VLOOKUP(Switch!$D$66,$F$2:$G$44,2,FALSE)+ROW()-2))=Switch!$D$66,INDIRECT(\"a\" & (VLOOKUP(Switch!$D$66,$F$2:$G$44,2,FALSE)+ROW()-2)),\"\")","v":{"$error":"#N/A"}}]
["Nedgroup Inv Opportunity Fund B2","NIOB","Nedgroup Collective Investments Ltd",{"$f":"ROW()","v":375},null,null,{"$f":"VLOOKUP(F375,$C$2:$D$637,2,FALSE)","v":{"$error":"#N/A"}},{"$f":"IF(INDIRECT(\"c\" & (VLOOKUP(Switch!$D$26,$F$2:$G$44,2,FALSE)+ROW()-2))=Switch!$D$26,INDIRECT(\"a\" & (VLOOKUP(Switch!$D$26,$F$2:$G$44,2,FALSE)+ROW()-2)),\"\")","v":{"$error":"#N/A"}},{"$f":"IF(INDIRECT(\"c\" & (VLOOKUP(Switch!$D$27,$F$2:$G$44,2,FALSE)+ROW()-2))=Switch!$D$27,INDIRECT(\"a\" & (VLOOKUP(Switch!$D$27,$F$2:$G$44,2,FALSE)+ROW()-2)),\"\")","v":{"$error":"#N/A"}},{"$f":"IF(INDIRECT(\"c\" & (VLOOKUP(Switch!$D$28,$F$2:$G$44,2,FALSE)+ROW()-2))=Switch!$D$28,INDIRECT(\"a\" & (VLOOKUP(Switch!$D$28,$F$2:$G$44,2,FALSE)+ROW()-2)),\"\")","v":{"$error":"#N/A"}},{"$f":"IF(INDIRECT(\"c\" & (VLOOKUP(Switch!$D$29,$F$2:$G$44,2,FALSE)+ROW()-2))=Switch!$D$29,INDIRECT(\"a\" & (VLOOKUP(Switch!$D$29,$F$2:$G$44,2,FALSE)+ROW()-2)),\"\")","v":{"$error":"#N/A"}},{"$f":"IF(INDIRECT(\"c\" & (VLOOKUP(Switch!$D$30,$F$2:$G$44,2,FALSE)+ROW()-2))=Switch!$D$30,INDIRECT(\"a\" & (VLOOKUP(Switch!$D$30,$F$2:$G$44,2,FALSE)+ROW()-2)),\"\")","v":{"$error":"#N/A"}},{"$f":"IF(INDIRECT(\"c\" & (VLOOKUP(Switch!$D$31,$F$2:$G$44,2,FALSE)+ROW()-2))=Switch!$D$31,INDIRECT(\"a\" & (VLOOKUP(Switch!$D$31,$F$2:$G$44,2,FALSE)+ROW()-2)),\"\")","v":{"$error":"#N/A"}},{"$f":"IF(INDIRECT(\"c\" & (VLOOKUP(Switch!$D$32,$F$2:$G$44,2,FALSE)+ROW()-2))=Switch!$D$32,INDIRECT(\"a\" & (VLOOKUP(Switch!$D$32,$F$2:$G$44,2,FALSE)+ROW()-2)),\"\")","v":{"$error":"#N/A"}},{"$f":"IF(INDIRECT(\"c\" & (VLOOKUP(Switch!$D$33,$F$2:$G$44,2,FALSE)+ROW()-2))=Switch!$D$33,INDIRECT(\"a\" & (VLOOKUP(Switch!$D$33,$F$2:$G$44,2,FALSE)+ROW()-2)),\"\")","v":{"$error":"#N/A"}},{"$f":"IF(INDIRECT(\"c\" & (VLOOKUP(Switch!$D$34,$F$2:$G$44,2,FALSE)+ROW()-2))=Switch!$D$34,INDIRECT(\"a\" & (VLOOKUP(Switch!$D$34,$F$2:$G$44,2,FALSE)+ROW()-2)),\"\")","v":{"$error":"#N/A"}},{"$f":"IF(INDIRECT(\"c\" & (VLOOKUP(Switch!$D$35,$F$2:$G$44,2,FALSE)+ROW()-2))=Switch!$D$35,INDIRECT(\"a\" & (VLOOKUP(Switch!$D$35,$F$2:$G$44,2,FALSE)+ROW()-2)),\"\")","v":{"$error":"#N/A"}},{"$f":"IF(INDIRECT(\"c\" & (VLOOKUP(Switch!$D$36,$F$2:$G$44,2,FALSE)+ROW()-2))=Switch!$D$36,INDIRECT(\"a\" & (VLOOKUP(Switch!$D$36,$F$2:$G$44,2,FALSE)+ROW()-2)),\"\")","v":{"$error":"#N/A"}},{"$f":"IF(INDIRECT(\"c\" & (VLOOKUP(Switch!$D$37,$F$2:$G$44,2,FALSE)+ROW()-2))=Switch!$D$37,INDIRECT(\"a\" & (VLOOKUP(Switch!$D$37,$F$2:$G$44,2,FALSE)+ROW()-2)),\"\")","v":{"$error":"#N/A"}},{"$f":"IF(INDIRECT(\"c\" & (VLOOKUP(Switch!$D$38,$F$2:$G$44,2,FALSE)+ROW()-2))=Switch!$D$38,INDIRECT(\"a\" & (VLOOKUP(Switch!$D$38,$F$2:$G$44,2,FALSE)+ROW()-2)),\"\")","v":{"$error":"#N/A"}},{"$f":"IF(INDIRECT(\"c\" & (VLOOKUP(Switch!$D$39,$F$2:$G$44,2,FALSE)+ROW()-2))=Switch!$D$39,INDIRECT(\"a\" & (VLOOKUP(Switch!$D$39,$F$2:$G$44,2,FALSE)+ROW()-2)),\"\")","v":{"$error":"#N/A"}},{"$f":"IF(INDIRECT(\"c\" & (VLOOKUP(Switch!$D$40,$F$2:$G$44,2,FALSE)+ROW()-2))=Switch!$D$40,INDIRECT(\"a\" & (VLOOKUP(Switch!$D$40,$F$2:$G$44,2,FALSE)+ROW()-2)),\"\")","v":{"$error":"#N/A"}},{"$f":"IF(INDIRECT(\"c\" & (VLOOKUP(Switch!$D$52,$F$2:$G$44,2,FALSE)+ROW()-2))=Switch!$D$52,INDIRECT(\"a\" & (VLOOKUP(Switch!$D$52,$F$2:$G$44,2,FALSE)+ROW()-2)),\"\")","v":{"$error":"#N/A"}},{"$f":"IF(INDIRECT(\"c\" & (VLOOKUP(Switch!$D$53,$F$2:$G$44,2,FALSE)+ROW()-2))=Switch!$D$53,INDIRECT(\"a\" & (VLOOKUP(Switch!$D$53,$F$2:$G$44,2,FALSE)+ROW()-2)),\"\")","v":{"$error":"#N/A"}},{"$f":"IF(INDIRECT(\"c\" & (VLOOKUP(Switch!$D$54,$F$2:$G$44,2,FALSE)+ROW()-2))=Switch!$D$54,INDIRECT(\"a\" & (VLOOKUP(Switch!$D$54,$F$2:$G$44,2,FALSE)+ROW()-2)),\"\")","v":{"$error":"#N/A"}},{"$f":"IF(INDIRECT(\"c\" & (VLOOKUP(Switch!$D$55,$F$2:$G$44,2,FALSE)+ROW()-2))=Switch!$D$55,INDIRECT(\"a\" & (VLOOKUP(Switch!$D$55,$F$2:$G$44,2,FALSE)+ROW()-2)),\"\")","v":{"$error":"#N/A"}},{"$f":"IF(INDIRECT(\"c\" & (VLOOKUP(Switch!$D$56,$F$2:$G$44,2,FALSE)+ROW()-2))=Switch!$D$56,INDIRECT(\"a\" & (VLOOKUP(Switch!$D$56,$F$2:$G$44,2,FALSE)+ROW()-2)),\"\")","v":{"$error":"#N/A"}},{"$f":"IF(INDIRECT(\"c\" & (VLOOKUP(Switch!$D$57,$F$2:$G$44,2,FALSE)+ROW()-2))=Switch!$D$57,INDIRECT(\"a\" & (VLOOKUP(Switch!$D$57,$F$2:$G$44,2,FALSE)+ROW()-2)),\"\")","v":{"$error":"#N/A"}},{"$f":"IF(INDIRECT(\"c\" & (VLOOKUP(Switch!$D$58,$F$2:$G$44,2,FALSE)+ROW()-2))=Switch!$D$58,INDIRECT(\"a\" & (VLOOKUP(Switch!$D$58,$F$2:$G$44,2,FALSE)+ROW()-2)),\"\")","v":{"$error":"#N/A"}},{"$f":"IF(INDIRECT(\"c\" & (VLOOKUP(Switch!$D$59,$F$2:$G$44,2,FALSE)+ROW()-2))=Switch!$D$59,INDIRECT(\"a\" & (VLOOKUP(Switch!$D$59,$F$2:$G$44,2,FALSE)+ROW()-2)),\"\")","v":{"$error":"#N/A"}},{"$f":"IF(INDIRECT(\"c\" & (VLOOKUP(Switch!$D$60,$F$2:$G$44,2,FALSE)+ROW()-2))=Switch!$D$60,INDIRECT(\"a\" & (VLOOKUP(Switch!$D$60,$F$2:$G$44,2,FALSE)+ROW()-2)),\"\")","v":{"$error":"#N/A"}},{"$f":"IF(INDIRECT(\"c\" & (VLOOKUP(Switch!$D$61,$F$2:$G$44,2,FALSE)+ROW()-2))=Switch!$D$61,INDIRECT(\"a\" & (VLOOKUP(Switch!$D$61,$F$2:$G$44,2,FALSE)+ROW()-2)),\"\")","v":{"$error":"#N/A"}},{"$f":"IF(INDIRECT(\"c\" & (VLOOKUP(Switch!$D$62,$F$2:$G$44,2,FALSE)+ROW()-2))=Switch!$D$62,INDIRECT(\"a\" & (VLOOKUP(Switch!$D$62,$F$2:$G$44,2,FALSE)+ROW()-2)),\"\")","v":{"$error":"#N/A"}},{"$f":"IF(INDIRECT(\"c\" & (VLOOKUP(Switch!$D$63,$F$2:$G$44,2,FALSE)+ROW()-2))=Switch!$D$63,INDIRECT(\"a\" & (VLOOKUP(Switch!$D$63,$F$2:$G$44,2,FALSE)+ROW()-2)),\"\")","v":{"$error":"#N/A"}},{"$f":"IF(INDIRECT(\"c\" & (VLOOKUP(Switch!$D$64,$F$2:$G$44,2,FALSE)+ROW()-2))=Switch!$D$64,INDIRECT(\"a\" & (VLOOKUP(Switch!$D$64,$F$2:$G$44,2,FALSE)+ROW()-2)),\"\")","v":{"$error":"#N/A"}},{"$f":"IF(INDIRECT(\"c\" & (VLOOKUP(Switch!$D$65,$F$2:$G$44,2,FALSE)+ROW()-2))=Switch!$D$65,INDIRECT(\"a\" & (VLOOKUP(Switch!$D$65,$F$2:$G$44,2,FALSE)+ROW()-2)),\"\")","v":{"$error":"#N/A"}},{"$f":"IF(INDIRECT(\"c\" & (VLOOKUP(Switch!$D$66,$F$2:$G$44,2,FALSE)+ROW()-2))=Switch!$D$66,INDIRECT(\"a\" & (VLOOKUP(Switch!$D$66,$F$2:$G$44,2,FALSE)+ROW()-2)),\"\")","v":{"$error":"#N/A"}}]
["Nedgroup Inv Opportunity Fund B2","NIOB","Nedgroup Collective Investments Ltd",{"$f":"ROW()","v":376},null,null,{"$f":"VLOOKUP(F376,$C$2:$D$637,2,FALSE)","v":{"$error":"#N/A"}},{"$f":"IF(INDIRECT(\"c\" & (VLOOKUP(Switch!$D$26,$F$2:$G$44,2,FALSE)+ROW()-2))=Switch!$D$26,INDIRECT(\"a\" & (VLOOKUP(Switch!$D$26,$F$2:$G$44,2,FALSE)+ROW()-2)),\"\")","v":{"$error":"#N/A"}},{"$f":"IF(INDIRECT(\"c\" & (VLOOKUP(Switch!$D$27,$F$2:$G$44,2,FALSE)+ROW()-2))=Switch!$D$27,INDIRECT(\"a\" & (VLOOKUP(Switch!$D$27,$F$2:$G$44,2,FALSE)+ROW()-2)),\"\")","v":{"$error":"#N/A"}},{"$f":"IF(INDIRECT(\"c\" & (VLOOKUP(Switch!$D$28,$F$2:$G$44,2,FALSE)+ROW()-2))=Switch!$D$28,INDIRECT(\"a\" & (VLOOKUP(Switch!$D$28,$F$2:$G$44,2,FALSE)+ROW()-2)),\"\")","v":{"$error":"#N/A"}},{"$f":"IF(INDIRECT(\"c\" & (VLOOKUP(Switch!$D$29,$F$2:$G$44,2,FALSE)+ROW()-2))=Switch!$D$29,INDIRECT(\"a\" & (VLOOKUP(Switch!$D$29,$F$2:$G$44,2,FALSE)+ROW()-2)),\"\")","v":{"$error":"#N/A"}},{"$f":"IF(INDIRECT(\"c\" & (VLOOKUP(Switch!$D$30,$F$2:$G$44,2,FALSE)+ROW()-2))=Switch!$D$30,INDIRECT(\"a\" & (VLOOKUP(Switch!$D$30,$F$2:$G$44,2,FALSE)+ROW()-2)),\"\")","v":{"$error":"#N/A"}},{"$f":"IF(INDIRECT(\"c\" & (VLOOKUP(Switch!$D$31,$F$2:$G$44,2,FALSE)+ROW()-2))=Switch!$D$31,INDIRECT(\"a\" & (VLOOKUP(Switch!$D$31,$F$2:$G$44,2,FALSE)+ROW()-2)),\"\")","v":{"$error":"#N/A"}},{"$f":"IF(INDIRECT(\"c\" & (VLOOKUP(Switch!$D$32,$F$2:$G$44,2,FALSE)+ROW()-2))=Switch!$D$32,INDIRECT(\"a\" & (VLOOKUP(Switch!$D$32,$F$2:$G$44,2,FALSE)+ROW()-2)),\"\")","v":{"$error":"#N/A"}},{"$f":"IF(INDIRECT(\"c\" & (VLOOKUP(Switch!$D$33,$F$2:$G$44,2,FALSE)+ROW()-2))=Switch!$D$33,INDIRECT(\"a\" & (VLOOKUP(Switch!$D$33,$F$2:$G$44,2,FALSE)+ROW()-2)),\"\")","v":{"$error":"#N/A"}},{"$f":"IF(INDIRECT(\"c\" & (VLOOKUP(Switch!$D$34,$F$2:$G$44,2,FALSE)+ROW()-2))=Switch!$D$34,INDIRECT(\"a\" & (VLOOKUP(Switch!$D$34,$F$2:$G$44,2,FALSE)+ROW()-2)),\"\")","v":{"$error":"#N/A"}},{"$f":"IF(INDIRECT(\"c\" & (VLOOKUP(Switch!$D$35,$F$2:$G$44,2,FALSE)+ROW()-2))=Switch!$D$35,INDIRECT(\"a\" & (VLOOKUP(Switch!$D$35,$F$2:$G$44,2,FALSE)+ROW()-2)),\"\")","v":{"$error":"#N/A"}},{"$f":"IF(INDIRECT(\"c\" & (VLOOKUP(Switch!$D$36,$F$2:$G$44,2,FALSE)+ROW()-2))=Switch!$D$36,INDIRECT(\"a\" & (VLOOKUP(Switch!$D$36,$F$2:$G$44,2,FALSE)+ROW()-2)),\"\")","v":{"$error":"#N/A"}},{"$f":"IF(INDIRECT(\"c\" & (VLOOKUP(Switch!$D$37,$F$2:$G$44,2,FALSE)+ROW()-2))=Switch!$D$37,INDIRECT(\"a\" & (VLOOKUP(Switch!$D$37,$F$2:$G$44,2,FALSE)+ROW()-2)),\"\")","v":{"$error":"#N/A"}},{"$f":"IF(INDIRECT(\"c\" & (VLOOKUP(Switch!$D$38,$F$2:$G$44,2,FALSE)+ROW()-2))=Switch!$D$38,INDIRECT(\"a\" & (VLOOKUP(Switch!$D$38,$F$2:$G$44,2,FALSE)+ROW()-2)),\"\")","v":{"$error":"#N/A"}},{"$f":"IF(INDIRECT(\"c\" & (VLOOKUP(Switch!$D$39,$F$2:$G$44,2,FALSE)+ROW()-2))=Switch!$D$39,INDIRECT(\"a\" & (VLOOKUP(Switch!$D$39,$F$2:$G$44,2,FALSE)+ROW()-2)),\"\")","v":{"$error":"#N/A"}},{"$f":"IF(INDIRECT(\"c\" & (VLOOKUP(Switch!$D$40,$F$2:$G$44,2,FALSE)+ROW()-2))=Switch!$D$40,INDIRECT(\"a\" & (VLOOKUP(Switch!$D$40,$F$2:$G$44,2,FALSE)+ROW()-2)),\"\")","v":{"$error":"#N/A"}},{"$f":"IF(INDIRECT(\"c\" & (VLOOKUP(Switch!$D$52,$F$2:$G$44,2,FALSE)+ROW()-2))=Switch!$D$52,INDIRECT(\"a\" & (VLOOKUP(Switch!$D$52,$F$2:$G$44,2,FALSE)+ROW()-2)),\"\")","v":{"$error":"#N/A"}},{"$f":"IF(INDIRECT(\"c\" & (VLOOKUP(Switch!$D$53,$F$2:$G$44,2,FALSE)+ROW()-2))=Switch!$D$53,INDIRECT(\"a\" & (VLOOKUP(Switch!$D$53,$F$2:$G$44,2,FALSE)+ROW()-2)),\"\")","v":{"$error":"#N/A"}},{"$f":"IF(INDIRECT(\"c\" & (VLOOKUP(Switch!$D$54,$F$2:$G$44,2,FALSE)+ROW()-2))=Switch!$D$54,INDIRECT(\"a\" & (VLOOKUP(Switch!$D$54,$F$2:$G$44,2,FALSE)+ROW()-2)),\"\")","v":{"$error":"#N/A"}},{"$f":"IF(INDIRECT(\"c\" & (VLOOKUP(Switch!$D$55,$F$2:$G$44,2,FALSE)+ROW()-2))=Switch!$D$55,INDIRECT(\"a\" & (VLOOKUP(Switch!$D$55,$F$2:$G$44,2,FALSE)+ROW()-2)),\"\")","v":{"$error":"#N/A"}},{"$f":"IF(INDIRECT(\"c\" & (VLOOKUP(Switch!$D$56,$F$2:$G$44,2,FALSE)+ROW()-2))=Switch!$D$56,INDIRECT(\"a\" & (VLOOKUP(Switch!$D$56,$F$2:$G$44,2,FALSE)+ROW()-2)),\"\")","v":{"$error":"#N/A"}},{"$f":"IF(INDIRECT(\"c\" & (VLOOKUP(Switch!$D$57,$F$2:$G$44,2,FALSE)+ROW()-2))=Switch!$D$57,INDIRECT(\"a\" & (VLOOKUP(Switch!$D$57,$F$2:$G$44,2,FALSE)+ROW()-2)),\"\")","v":{"$error":"#N/A"}},{"$f":"IF(INDIRECT(\"c\" & (VLOOKUP(Switch!$D$58,$F$2:$G$44,2,FALSE)+ROW()-2))=Switch!$D$58,INDIRECT(\"a\" & (VLOOKUP(Switch!$D$58,$F$2:$G$44,2,FALSE)+ROW()-2)),\"\")","v":{"$error":"#N/A"}},{"$f":"IF(INDIRECT(\"c\" & (VLOOKUP(Switch!$D$59,$F$2:$G$44,2,FALSE)+ROW()-2))=Switch!$D$59,INDIRECT(\"a\" & (VLOOKUP(Switch!$D$59,$F$2:$G$44,2,FALSE)+ROW()-2)),\"\")","v":{"$error":"#N/A"}},{"$f":"IF(INDIRECT(\"c\" & (VLOOKUP(Switch!$D$60,$F$2:$G$44,2,FALSE)+ROW()-2))=Switch!$D$60,INDIRECT(\"a\" & (VLOOKUP(Switch!$D$60,$F$2:$G$44,2,FALSE)+ROW()-2)),\"\")","v":{"$error":"#N/A"}},{"$f":"IF(INDIRECT(\"c\" & (VLOOKUP(Switch!$D$61,$F$2:$G$44,2,FALSE)+ROW()-2))=Switch!$D$61,INDIRECT(\"a\" & (VLOOKUP(Switch!$D$61,$F$2:$G$44,2,FALSE)+ROW()-2)),\"\")","v":{"$error":"#N/A"}},{"$f":"IF(INDIRECT(\"c\" & (VLOOKUP(Switch!$D$62,$F$2:$G$44,2,FALSE)+ROW()-2))=Switch!$D$62,INDIRECT(\"a\" & (VLOOKUP(Switch!$D$62,$F$2:$G$44,2,FALSE)+ROW()-2)),\"\")","v":{"$error":"#N/A"}},{"$f":"IF(INDIRECT(\"c\" & (VLOOKUP(Switch!$D$63,$F$2:$G$44,2,FALSE)+ROW()-2))=Switch!$D$63,INDIRECT(\"a\" & (VLOOKUP(Switch!$D$63,$F$2:$G$44,2,FALSE)+ROW()-2)),\"\")","v":{"$error":"#N/A"}},{"$f":"IF(INDIRECT(\"c\" & (VLOOKUP(Switch!$D$64,$F$2:$G$44,2,FALSE)+ROW()-2))=Switch!$D$64,INDIRECT(\"a\" & (VLOOKUP(Switch!$D$64,$F$2:$G$44,2,FALSE)+ROW()-2)),\"\")","v":{"$error":"#N/A"}},{"$f":"IF(INDIRECT(\"c\" & (VLOOKUP(Switch!$D$65,$F$2:$G$44,2,FALSE)+ROW()-2))=Switch!$D$65,INDIRECT(\"a\" & (VLOOKUP(Switch!$D$65,$F$2:$G$44,2,FALSE)+ROW()-2)),\"\")","v":{"$error":"#N/A"}},{"$f":"IF(INDIRECT(\"c\" & (VLOOKUP(Switch!$D$66,$F$2:$G$44,2,FALSE)+ROW()-2))=Switch!$D$66,INDIRECT(\"a\" & (VLOOKUP(Switch!$D$66,$F$2:$G$44,2,FALSE)+ROW()-2)),\"\")","v":{"$error":"#N/A"}}]
["Nedgroup Inv Property Fund A","NIPAC","Nedgroup Collective Investments Ltd",{"$f":"ROW()","v":377},null,null,{"$f":"VLOOKUP(F377,$C$2:$D$637,2,FALSE)","v":{"$error":"#N/A"}},{"$f":"IF(INDIRECT(\"c\" & (VLOOKUP(Switch!$D$26,$F$2:$G$44,2,FALSE)+ROW()-2))=Switch!$D$26,INDIRECT(\"a\" & (VLOOKUP(Switch!$D$26,$F$2:$G$44,2,FALSE)+ROW()-2)),\"\")","v":{"$error":"#N/A"}},{"$f":"IF(INDIRECT(\"c\" & (VLOOKUP(Switch!$D$27,$F$2:$G$44,2,FALSE)+ROW()-2))=Switch!$D$27,INDIRECT(\"a\" & (VLOOKUP(Switch!$D$27,$F$2:$G$44,2,FALSE)+ROW()-2)),\"\")","v":{"$error":"#N/A"}},{"$f":"IF(INDIRECT(\"c\" & (VLOOKUP(Switch!$D$28,$F$2:$G$44,2,FALSE)+ROW()-2))=Switch!$D$28,INDIRECT(\"a\" & (VLOOKUP(Switch!$D$28,$F$2:$G$44,2,FALSE)+ROW()-2)),\"\")","v":{"$error":"#N/A"}},{"$f":"IF(INDIRECT(\"c\" & (VLOOKUP(Switch!$D$29,$F$2:$G$44,2,FALSE)+ROW()-2))=Switch!$D$29,INDIRECT(\"a\" & (VLOOKUP(Switch!$D$29,$F$2:$G$44,2,FALSE)+ROW()-2)),\"\")","v":{"$error":"#N/A"}},{"$f":"IF(INDIRECT(\"c\" & (VLOOKUP(Switch!$D$30,$F$2:$G$44,2,FALSE)+ROW()-2))=Switch!$D$30,INDIRECT(\"a\" & (VLOOKUP(Switch!$D$30,$F$2:$G$44,2,FALSE)+ROW()-2)),\"\")","v":{"$error":"#N/A"}},{"$f":"IF(INDIRECT(\"c\" & (VLOOKUP(Switch!$D$31,$F$2:$G$44,2,FALSE)+ROW()-2))=Switch!$D$31,INDIRECT(\"a\" & (VLOOKUP(Switch!$D$31,$F$2:$G$44,2,FALSE)+ROW()-2)),\"\")","v":{"$error":"#N/A"}},{"$f":"IF(INDIRECT(\"c\" & (VLOOKUP(Switch!$D$32,$F$2:$G$44,2,FALSE)+ROW()-2))=Switch!$D$32,INDIRECT(\"a\" & (VLOOKUP(Switch!$D$32,$F$2:$G$44,2,FALSE)+ROW()-2)),\"\")","v":{"$error":"#N/A"}},{"$f":"IF(INDIRECT(\"c\" & (VLOOKUP(Switch!$D$33,$F$2:$G$44,2,FALSE)+ROW()-2))=Switch!$D$33,INDIRECT(\"a\" & (VLOOKUP(Switch!$D$33,$F$2:$G$44,2,FALSE)+ROW()-2)),\"\")","v":{"$error":"#N/A"}},{"$f":"IF(INDIRECT(\"c\" & (VLOOKUP(Switch!$D$34,$F$2:$G$44,2,FALSE)+ROW()-2))=Switch!$D$34,INDIRECT(\"a\" & (VLOOKUP(Switch!$D$34,$F$2:$G$44,2,FALSE)+ROW()-2)),\"\")","v":{"$error":"#N/A"}},{"$f":"IF(INDIRECT(\"c\" & (VLOOKUP(Switch!$D$35,$F$2:$G$44,2,FALSE)+ROW()-2))=Switch!$D$35,INDIRECT(\"a\" & (VLOOKUP(Switch!$D$35,$F$2:$G$44,2,FALSE)+ROW()-2)),\"\")","v":{"$error":"#N/A"}},{"$f":"IF(INDIRECT(\"c\" & (VLOOKUP(Switch!$D$36,$F$2:$G$44,2,FALSE)+ROW()-2))=Switch!$D$36,INDIRECT(\"a\" & (VLOOKUP(Switch!$D$36,$F$2:$G$44,2,FALSE)+ROW()-2)),\"\")","v":{"$error":"#N/A"}},{"$f":"IF(INDIRECT(\"c\" & (VLOOKUP(Switch!$D$37,$F$2:$G$44,2,FALSE)+ROW()-2))=Switch!$D$37,INDIRECT(\"a\" & (VLOOKUP(Switch!$D$37,$F$2:$G$44,2,FALSE)+ROW()-2)),\"\")","v":{"$error":"#N/A"}},{"$f":"IF(INDIRECT(\"c\" & (VLOOKUP(Switch!$D$38,$F$2:$G$44,2,FALSE)+ROW()-2))=Switch!$D$38,INDIRECT(\"a\" & (VLOOKUP(Switch!$D$38,$F$2:$G$44,2,FALSE)+ROW()-2)),\"\")","v":{"$error":"#N/A"}},{"$f":"IF(INDIRECT(\"c\" & (VLOOKUP(Switch!$D$39,$F$2:$G$44,2,FALSE)+ROW()-2))=Switch!$D$39,INDIRECT(\"a\" & (VLOOKUP(Switch!$D$39,$F$2:$G$44,2,FALSE)+ROW()-2)),\"\")","v":{"$error":"#N/A"}},{"$f":"IF(INDIRECT(\"c\" & (VLOOKUP(Switch!$D$40,$F$2:$G$44,2,FALSE)+ROW()-2))=Switch!$D$40,INDIRECT(\"a\" & (VLOOKUP(Switch!$D$40,$F$2:$G$44,2,FALSE)+ROW()-2)),\"\")","v":{"$error":"#N/A"}},{"$f":"IF(INDIRECT(\"c\" & (VLOOKUP(Switch!$D$52,$F$2:$G$44,2,FALSE)+ROW()-2))=Switch!$D$52,INDIRECT(\"a\" & (VLOOKUP(Switch!$D$52,$F$2:$G$44,2,FALSE)+ROW()-2)),\"\")","v":{"$error":"#N/A"}},{"$f":"IF(INDIRECT(\"c\" & (VLOOKUP(Switch!$D$53,$F$2:$G$44,2,FALSE)+ROW()-2))=Switch!$D$53,INDIRECT(\"a\" & (VLOOKUP(Switch!$D$53,$F$2:$G$44,2,FALSE)+ROW()-2)),\"\")","v":{"$error":"#N/A"}},{"$f":"IF(INDIRECT(\"c\" & (VLOOKUP(Switch!$D$54,$F$2:$G$44,2,FALSE)+ROW()-2))=Switch!$D$54,INDIRECT(\"a\" & (VLOOKUP(Switch!$D$54,$F$2:$G$44,2,FALSE)+ROW()-2)),\"\")","v":{"$error":"#N/A"}},{"$f":"IF(INDIRECT(\"c\" & (VLOOKUP(Switch!$D$55,$F$2:$G$44,2,FALSE)+ROW()-2))=Switch!$D$55,INDIRECT(\"a\" & (VLOOKUP(Switch!$D$55,$F$2:$G$44,2,FALSE)+ROW()-2)),\"\")","v":{"$error":"#N/A"}},{"$f":"IF(INDIRECT(\"c\" & (VLOOKUP(Switch!$D$56,$F$2:$G$44,2,FALSE)+ROW()-2))=Switch!$D$56,INDIRECT(\"a\" & (VLOOKUP(Switch!$D$56,$F$2:$G$44,2,FALSE)+ROW()-2)),\"\")","v":{"$error":"#N/A"}},{"$f":"IF(INDIRECT(\"c\" & (VLOOKUP(Switch!$D$57,$F$2:$G$44,2,FALSE)+ROW()-2))=Switch!$D$57,INDIRECT(\"a\" & (VLOOKUP(Switch!$D$57,$F$2:$G$44,2,FALSE)+ROW()-2)),\"\")","v":{"$error":"#N/A"}},{"$f":"IF(INDIRECT(\"c\" & (VLOOKUP(Switch!$D$58,$F$2:$G$44,2,FALSE)+ROW()-2))=Switch!$D$58,INDIRECT(\"a\" & (VLOOKUP(Switch!$D$58,$F$2:$G$44,2,FALSE)+ROW()-2)),\"\")","v":{"$error":"#N/A"}},{"$f":"IF(INDIRECT(\"c\" & (VLOOKUP(Switch!$D$59,$F$2:$G$44,2,FALSE)+ROW()-2))=Switch!$D$59,INDIRECT(\"a\" & (VLOOKUP(Switch!$D$59,$F$2:$G$44,2,FALSE)+ROW()-2)),\"\")","v":{"$error":"#N/A"}},{"$f":"IF(INDIRECT(\"c\" & (VLOOKUP(Switch!$D$60,$F$2:$G$44,2,FALSE)+ROW()-2))=Switch!$D$60,INDIRECT(\"a\" & (VLOOKUP(Switch!$D$60,$F$2:$G$44,2,FALSE)+ROW()-2)),\"\")","v":{"$error":"#N/A"}},{"$f":"IF(INDIRECT(\"c\" & (VLOOKUP(Switch!$D$61,$F$2:$G$44,2,FALSE)+ROW()-2))=Switch!$D$61,INDIRECT(\"a\" & (VLOOKUP(Switch!$D$61,$F$2:$G$44,2,FALSE)+ROW()-2)),\"\")","v":{"$error":"#N/A"}},{"$f":"IF(INDIRECT(\"c\" & (VLOOKUP(Switch!$D$62,$F$2:$G$44,2,FALSE)+ROW()-2))=Switch!$D$62,INDIRECT(\"a\" & (VLOOKUP(Switch!$D$62,$F$2:$G$44,2,FALSE)+ROW()-2)),\"\")","v":{"$error":"#N/A"}},{"$f":"IF(INDIRECT(\"c\" & (VLOOKUP(Switch!$D$63,$F$2:$G$44,2,FALSE)+ROW()-2))=Switch!$D$63,INDIRECT(\"a\" & (VLOOKUP(Switch!$D$63,$F$2:$G$44,2,FALSE)+ROW()-2)),\"\")","v":{"$error":"#N/A"}},{"$f":"IF(INDIRECT(\"c\" & (VLOOKUP(Switch!$D$64,$F$2:$G$44,2,FALSE)+ROW()-2))=Switch!$D$64,INDIRECT(\"a\" & (VLOOKUP(Switch!$D$64,$F$2:$G$44,2,FALSE)+ROW()-2)),\"\")","v":{"$error":"#N/A"}},{"$f":"IF(INDIRECT(\"c\" & (VLOOKUP(Switch!$D$65,$F$2:$G$44,2,FALSE)+ROW()-2))=Switch!$D$65,INDIRECT(\"a\" & (VLOOKUP(Switch!$D$65,$F$2:$G$44,2,FALSE)+ROW()-2)),\"\")","v":{"$error":"#N/A"}},{"$f":"IF(INDIRECT(\"c\" & (VLOOKUP(Switch!$D$66,$F$2:$G$44,2,FALSE)+ROW()-2))=Switch!$D$66,INDIRECT(\"a\" & (VLOOKUP(Switch!$D$66,$F$2:$G$44,2,FALSE)+ROW()-2)),\"\")","v":{"$error":"#N/A"}}]
["Nedgroup Inv Property Fund A1","NIPAC","Nedgroup Collective Investments Ltd",{"$f":"ROW()","v":378},null,null,{"$f":"VLOOKUP(F378,$C$2:$D$637,2,FALSE)","v":{"$error":"#N/A"}},{"$f":"IF(INDIRECT(\"c\" & (VLOOKUP(Switch!$D$26,$F$2:$G$44,2,FALSE)+ROW()-2))=Switch!$D$26,INDIRECT(\"a\" & (VLOOKUP(Switch!$D$26,$F$2:$G$44,2,FALSE)+ROW()-2)),\"\")","v":{"$error":"#N/A"}},{"$f":"IF(INDIRECT(\"c\" & (VLOOKUP(Switch!$D$27,$F$2:$G$44,2,FALSE)+ROW()-2))=Switch!$D$27,INDIRECT(\"a\" & (VLOOKUP(Switch!$D$27,$F$2:$G$44,2,FALSE)+ROW()-2)),\"\")","v":{"$error":"#N/A"}},{"$f":"IF(INDIRECT(\"c\" & (VLOOKUP(Switch!$D$28,$F$2:$G$44,2,FALSE)+ROW()-2))=Switch!$D$28,INDIRECT(\"a\" & (VLOOKUP(Switch!$D$28,$F$2:$G$44,2,FALSE)+ROW()-2)),\"\")","v":{"$error":"#N/A"}},{"$f":"IF(INDIRECT(\"c\" & (VLOOKUP(Switch!$D$29,$F$2:$G$44,2,FALSE)+ROW()-2))=Switch!$D$29,INDIRECT(\"a\" & (VLOOKUP(Switch!$D$29,$F$2:$G$44,2,FALSE)+ROW()-2)),\"\")","v":{"$error":"#N/A"}},{"$f":"IF(INDIRECT(\"c\" & (VLOOKUP(Switch!$D$30,$F$2:$G$44,2,FALSE)+ROW()-2))=Switch!$D$30,INDIRECT(\"a\" & (VLOOKUP(Switch!$D$30,$F$2:$G$44,2,FALSE)+ROW()-2)),\"\")","v":{"$error":"#N/A"}},{"$f":"IF(INDIRECT(\"c\" & (VLOOKUP(Switch!$D$31,$F$2:$G$44,2,FALSE)+ROW()-2))=Switch!$D$31,INDIRECT(\"a\" & (VLOOKUP(Switch!$D$31,$F$2:$G$44,2,FALSE)+ROW()-2)),\"\")","v":{"$error":"#N/A"}},{"$f":"IF(INDIRECT(\"c\" & (VLOOKUP(Switch!$D$32,$F$2:$G$44,2,FALSE)+ROW()-2))=Switch!$D$32,INDIRECT(\"a\" & (VLOOKUP(Switch!$D$32,$F$2:$G$44,2,FALSE)+ROW()-2)),\"\")","v":{"$error":"#N/A"}},{"$f":"IF(INDIRECT(\"c\" & (VLOOKUP(Switch!$D$33,$F$2:$G$44,2,FALSE)+ROW()-2))=Switch!$D$33,INDIRECT(\"a\" & (VLOOKUP(Switch!$D$33,$F$2:$G$44,2,FALSE)+ROW()-2)),\"\")","v":{"$error":"#N/A"}},{"$f":"IF(INDIRECT(\"c\" & (VLOOKUP(Switch!$D$34,$F$2:$G$44,2,FALSE)+ROW()-2))=Switch!$D$34,INDIRECT(\"a\" & (VLOOKUP(Switch!$D$34,$F$2:$G$44,2,FALSE)+ROW()-2)),\"\")","v":{"$error":"#N/A"}},{"$f":"IF(INDIRECT(\"c\" & (VLOOKUP(Switch!$D$35,$F$2:$G$44,2,FALSE)+ROW()-2))=Switch!$D$35,INDIRECT(\"a\" & (VLOOKUP(Switch!$D$35,$F$2:$G$44,2,FALSE)+ROW()-2)),\"\")","v":{"$error":"#N/A"}},{"$f":"IF(INDIRECT(\"c\" & (VLOOKUP(Switch!$D$36,$F$2:$G$44,2,FALSE)+ROW()-2))=Switch!$D$36,INDIRECT(\"a\" & (VLOOKUP(Switch!$D$36,$F$2:$G$44,2,FALSE)+ROW()-2)),\"\")","v":{"$error":"#N/A"}},{"$f":"IF(INDIRECT(\"c\" & (VLOOKUP(Switch!$D$37,$F$2:$G$44,2,FALSE)+ROW()-2))=Switch!$D$37,INDIRECT(\"a\" & (VLOOKUP(Switch!$D$37,$F$2:$G$44,2,FALSE)+ROW()-2)),\"\")","v":{"$error":"#N/A"}},{"$f":"IF(INDIRECT(\"c\" & (VLOOKUP(Switch!$D$38,$F$2:$G$44,2,FALSE)+ROW()-2))=Switch!$D$38,INDIRECT(\"a\" & (VLOOKUP(Switch!$D$38,$F$2:$G$44,2,FALSE)+ROW()-2)),\"\")","v":{"$error":"#N/A"}},{"$f":"IF(INDIRECT(\"c\" & (VLOOKUP(Switch!$D$39,$F$2:$G$44,2,FALSE)+ROW()-2))=Switch!$D$39,INDIRECT(\"a\" & (VLOOKUP(Switch!$D$39,$F$2:$G$44,2,FALSE)+ROW()-2)),\"\")","v":{"$error":"#N/A"}},{"$f":"IF(INDIRECT(\"c\" & (VLOOKUP(Switch!$D$40,$F$2:$G$44,2,FALSE)+ROW()-2))=Switch!$D$40,INDIRECT(\"a\" & (VLOOKUP(Switch!$D$40,$F$2:$G$44,2,FALSE)+ROW()-2)),\"\")","v":{"$error":"#N/A"}},{"$f":"IF(INDIRECT(\"c\" & (VLOOKUP(Switch!$D$52,$F$2:$G$44,2,FALSE)+ROW()-2))=Switch!$D$52,INDIRECT(\"a\" & (VLOOKUP(Switch!$D$52,$F$2:$G$44,2,FALSE)+ROW()-2)),\"\")","v":{"$error":"#N/A"}},{"$f":"IF(INDIRECT(\"c\" & (VLOOKUP(Switch!$D$53,$F$2:$G$44,2,FALSE)+ROW()-2))=Switch!$D$53,INDIRECT(\"a\" & (VLOOKUP(Switch!$D$53,$F$2:$G$44,2,FALSE)+ROW()-2)),\"\")","v":{"$error":"#N/A"}},{"$f":"IF(INDIRECT(\"c\" & (VLOOKUP(Switch!$D$54,$F$2:$G$44,2,FALSE)+ROW()-2))=Switch!$D$54,INDIRECT(\"a\" & (VLOOKUP(Switch!$D$54,$F$2:$G$44,2,FALSE)+ROW()-2)),\"\")","v":{"$error":"#N/A"}},{"$f":"IF(INDIRECT(\"c\" & (VLOOKUP(Switch!$D$55,$F$2:$G$44,2,FALSE)+ROW()-2))=Switch!$D$55,INDIRECT(\"a\" & (VLOOKUP(Switch!$D$55,$F$2:$G$44,2,FALSE)+ROW()-2)),\"\")","v":{"$error":"#N/A"}},{"$f":"IF(INDIRECT(\"c\" & (VLOOKUP(Switch!$D$56,$F$2:$G$44,2,FALSE)+ROW()-2))=Switch!$D$56,INDIRECT(\"a\" & (VLOOKUP(Switch!$D$56,$F$2:$G$44,2,FALSE)+ROW()-2)),\"\")","v":{"$error":"#N/A"}},{"$f":"IF(INDIRECT(\"c\" & (VLOOKUP(Switch!$D$57,$F$2:$G$44,2,FALSE)+ROW()-2))=Switch!$D$57,INDIRECT(\"a\" & (VLOOKUP(Switch!$D$57,$F$2:$G$44,2,FALSE)+ROW()-2)),\"\")","v":{"$error":"#N/A"}},{"$f":"IF(INDIRECT(\"c\" & (VLOOKUP(Switch!$D$58,$F$2:$G$44,2,FALSE)+ROW()-2))=Switch!$D$58,INDIRECT(\"a\" & (VLOOKUP(Switch!$D$58,$F$2:$G$44,2,FALSE)+ROW()-2)),\"\")","v":{"$error":"#N/A"}},{"$f":"IF(INDIRECT(\"c\" & (VLOOKUP(Switch!$D$59,$F$2:$G$44,2,FALSE)+ROW()-2))=Switch!$D$59,INDIRECT(\"a\" & (VLOOKUP(Switch!$D$59,$F$2:$G$44,2,FALSE)+ROW()-2)),\"\")","v":{"$error":"#N/A"}},{"$f":"IF(INDIRECT(\"c\" & (VLOOKUP(Switch!$D$60,$F$2:$G$44,2,FALSE)+ROW()-2))=Switch!$D$60,INDIRECT(\"a\" & (VLOOKUP(Switch!$D$60,$F$2:$G$44,2,FALSE)+ROW()-2)),\"\")","v":{"$error":"#N/A"}},{"$f":"IF(INDIRECT(\"c\" & (VLOOKUP(Switch!$D$61,$F$2:$G$44,2,FALSE)+ROW()-2))=Switch!$D$61,INDIRECT(\"a\" & (VLOOKUP(Switch!$D$61,$F$2:$G$44,2,FALSE)+ROW()-2)),\"\")","v":{"$error":"#N/A"}},{"$f":"IF(INDIRECT(\"c\" & (VLOOKUP(Switch!$D$62,$F$2:$G$44,2,FALSE)+ROW()-2))=Switch!$D$62,INDIRECT(\"a\" & (VLOOKUP(Switch!$D$62,$F$2:$G$44,2,FALSE)+ROW()-2)),\"\")","v":{"$error":"#N/A"}},{"$f":"IF(INDIRECT(\"c\" & (VLOOKUP(Switch!$D$63,$F$2:$G$44,2,FALSE)+ROW()-2))=Switch!$D$63,INDIRECT(\"a\" & (VLOOKUP(Switch!$D$63,$F$2:$G$44,2,FALSE)+ROW()-2)),\"\")","v":{"$error":"#N/A"}},{"$f":"IF(INDIRECT(\"c\" & (VLOOKUP(Switch!$D$64,$F$2:$G$44,2,FALSE)+ROW()-2))=Switch!$D$64,INDIRECT(\"a\" & (VLOOKUP(Switch!$D$64,$F$2:$G$44,2,FALSE)+ROW()-2)),\"\")","v":{"$error":"#N/A"}},{"$f":"IF(INDIRECT(\"c\" & (VLOOKUP(Switch!$D$65,$F$2:$G$44,2,FALSE)+ROW()-2))=Switch!$D$65,INDIRECT(\"a\" & (VLOOKUP(Switch!$D$65,$F$2:$G$44,2,FALSE)+ROW()-2)),\"\")","v":{"$error":"#N/A"}},{"$f":"IF(INDIRECT(\"c\" & (VLOOKUP(Switch!$D$66,$F$2:$G$44,2,FALSE)+ROW()-2))=Switch!$D$66,INDIRECT(\"a\" & (VLOOKUP(Switch!$D$66,$F$2:$G$44,2,FALSE)+ROW()-2)),\"\")","v":{"$error":"#N/A"}}]
["Nedgroup Inv Rainmaker Fund B2","NIRB","Nedgroup Collective Investments Ltd",{"$f":"ROW()","v":379},null,null,{"$f":"VLOOKUP(F379,$C$2:$D$637,2,FALSE)","v":{"$error":"#N/A"}},{"$f":"IF(INDIRECT(\"c\" & (VLOOKUP(Switch!$D$26,$F$2:$G$44,2,FALSE)+ROW()-2))=Switch!$D$26,INDIRECT(\"a\" & (VLOOKUP(Switch!$D$26,$F$2:$G$44,2,FALSE)+ROW()-2)),\"\")","v":{"$error":"#N/A"}},{"$f":"IF(INDIRECT(\"c\" & (VLOOKUP(Switch!$D$27,$F$2:$G$44,2,FALSE)+ROW()-2))=Switch!$D$27,INDIRECT(\"a\" & (VLOOKUP(Switch!$D$27,$F$2:$G$44,2,FALSE)+ROW()-2)),\"\")","v":{"$error":"#N/A"}},{"$f":"IF(INDIRECT(\"c\" & (VLOOKUP(Switch!$D$28,$F$2:$G$44,2,FALSE)+ROW()-2))=Switch!$D$28,INDIRECT(\"a\" & (VLOOKUP(Switch!$D$28,$F$2:$G$44,2,FALSE)+ROW()-2)),\"\")","v":{"$error":"#N/A"}},{"$f":"IF(INDIRECT(\"c\" & (VLOOKUP(Switch!$D$29,$F$2:$G$44,2,FALSE)+ROW()-2))=Switch!$D$29,INDIRECT(\"a\" & (VLOOKUP(Switch!$D$29,$F$2:$G$44,2,FALSE)+ROW()-2)),\"\")","v":{"$error":"#N/A"}},{"$f":"IF(INDIRECT(\"c\" & (VLOOKUP(Switch!$D$30,$F$2:$G$44,2,FALSE)+ROW()-2))=Switch!$D$30,INDIRECT(\"a\" & (VLOOKUP(Switch!$D$30,$F$2:$G$44,2,FALSE)+ROW()-2)),\"\")","v":{"$error":"#N/A"}},{"$f":"IF(INDIRECT(\"c\" & (VLOOKUP(Switch!$D$31,$F$2:$G$44,2,FALSE)+ROW()-2))=Switch!$D$31,INDIRECT(\"a\" & (VLOOKUP(Switch!$D$31,$F$2:$G$44,2,FALSE)+ROW()-2)),\"\")","v":{"$error":"#N/A"}},{"$f":"IF(INDIRECT(\"c\" & (VLOOKUP(Switch!$D$32,$F$2:$G$44,2,FALSE)+ROW()-2))=Switch!$D$32,INDIRECT(\"a\" & (VLOOKUP(Switch!$D$32,$F$2:$G$44,2,FALSE)+ROW()-2)),\"\")","v":{"$error":"#N/A"}},{"$f":"IF(INDIRECT(\"c\" & (VLOOKUP(Switch!$D$33,$F$2:$G$44,2,FALSE)+ROW()-2))=Switch!$D$33,INDIRECT(\"a\" & (VLOOKUP(Switch!$D$33,$F$2:$G$44,2,FALSE)+ROW()-2)),\"\")","v":{"$error":"#N/A"}},{"$f":"IF(INDIRECT(\"c\" & (VLOOKUP(Switch!$D$34,$F$2:$G$44,2,FALSE)+ROW()-2))=Switch!$D$34,INDIRECT(\"a\" & (VLOOKUP(Switch!$D$34,$F$2:$G$44,2,FALSE)+ROW()-2)),\"\")","v":{"$error":"#N/A"}},{"$f":"IF(INDIRECT(\"c\" & (VLOOKUP(Switch!$D$35,$F$2:$G$44,2,FALSE)+ROW()-2))=Switch!$D$35,INDIRECT(\"a\" & (VLOOKUP(Switch!$D$35,$F$2:$G$44,2,FALSE)+ROW()-2)),\"\")","v":{"$error":"#N/A"}},{"$f":"IF(INDIRECT(\"c\" & (VLOOKUP(Switch!$D$36,$F$2:$G$44,2,FALSE)+ROW()-2))=Switch!$D$36,INDIRECT(\"a\" & (VLOOKUP(Switch!$D$36,$F$2:$G$44,2,FALSE)+ROW()-2)),\"\")","v":{"$error":"#N/A"}},{"$f":"IF(INDIRECT(\"c\" & (VLOOKUP(Switch!$D$37,$F$2:$G$44,2,FALSE)+ROW()-2))=Switch!$D$37,INDIRECT(\"a\" & (VLOOKUP(Switch!$D$37,$F$2:$G$44,2,FALSE)+ROW()-2)),\"\")","v":{"$error":"#N/A"}},{"$f":"IF(INDIRECT(\"c\" & (VLOOKUP(Switch!$D$38,$F$2:$G$44,2,FALSE)+ROW()-2))=Switch!$D$38,INDIRECT(\"a\" & (VLOOKUP(Switch!$D$38,$F$2:$G$44,2,FALSE)+ROW()-2)),\"\")","v":{"$error":"#N/A"}},{"$f":"IF(INDIRECT(\"c\" & (VLOOKUP(Switch!$D$39,$F$2:$G$44,2,FALSE)+ROW()-2))=Switch!$D$39,INDIRECT(\"a\" & (VLOOKUP(Switch!$D$39,$F$2:$G$44,2,FALSE)+ROW()-2)),\"\")","v":{"$error":"#N/A"}},{"$f":"IF(INDIRECT(\"c\" & (VLOOKUP(Switch!$D$40,$F$2:$G$44,2,FALSE)+ROW()-2))=Switch!$D$40,INDIRECT(\"a\" & (VLOOKUP(Switch!$D$40,$F$2:$G$44,2,FALSE)+ROW()-2)),\"\")","v":{"$error":"#N/A"}},{"$f":"IF(INDIRECT(\"c\" & (VLOOKUP(Switch!$D$52,$F$2:$G$44,2,FALSE)+ROW()-2))=Switch!$D$52,INDIRECT(\"a\" & (VLOOKUP(Switch!$D$52,$F$2:$G$44,2,FALSE)+ROW()-2)),\"\")","v":{"$error":"#N/A"}},{"$f":"IF(INDIRECT(\"c\" & (VLOOKUP(Switch!$D$53,$F$2:$G$44,2,FALSE)+ROW()-2))=Switch!$D$53,INDIRECT(\"a\" & (VLOOKUP(Switch!$D$53,$F$2:$G$44,2,FALSE)+ROW()-2)),\"\")","v":{"$error":"#N/A"}},{"$f":"IF(INDIRECT(\"c\" & (VLOOKUP(Switch!$D$54,$F$2:$G$44,2,FALSE)+ROW()-2))=Switch!$D$54,INDIRECT(\"a\" & (VLOOKUP(Switch!$D$54,$F$2:$G$44,2,FALSE)+ROW()-2)),\"\")","v":{"$error":"#N/A"}},{"$f":"IF(INDIRECT(\"c\" & (VLOOKUP(Switch!$D$55,$F$2:$G$44,2,FALSE)+ROW()-2))=Switch!$D$55,INDIRECT(\"a\" & (VLOOKUP(Switch!$D$55,$F$2:$G$44,2,FALSE)+ROW()-2)),\"\")","v":{"$error":"#N/A"}},{"$f":"IF(INDIRECT(\"c\" & (VLOOKUP(Switch!$D$56,$F$2:$G$44,2,FALSE)+ROW()-2))=Switch!$D$56,INDIRECT(\"a\" & (VLOOKUP(Switch!$D$56,$F$2:$G$44,2,FALSE)+ROW()-2)),\"\")","v":{"$error":"#N/A"}},{"$f":"IF(INDIRECT(\"c\" & (VLOOKUP(Switch!$D$57,$F$2:$G$44,2,FALSE)+ROW()-2))=Switch!$D$57,INDIRECT(\"a\" & (VLOOKUP(Switch!$D$57,$F$2:$G$44,2,FALSE)+ROW()-2)),\"\")","v":{"$error":"#N/A"}},{"$f":"IF(INDIRECT(\"c\" & (VLOOKUP(Switch!$D$58,$F$2:$G$44,2,FALSE)+ROW()-2))=Switch!$D$58,INDIRECT(\"a\" & (VLOOKUP(Switch!$D$58,$F$2:$G$44,2,FALSE)+ROW()-2)),\"\")","v":{"$error":"#N/A"}},{"$f":"IF(INDIRECT(\"c\" & (VLOOKUP(Switch!$D$59,$F$2:$G$44,2,FALSE)+ROW()-2))=Switch!$D$59,INDIRECT(\"a\" & (VLOOKUP(Switch!$D$59,$F$2:$G$44,2,FALSE)+ROW()-2)),\"\")","v":{"$error":"#N/A"}},{"$f":"IF(INDIRECT(\"c\" & (VLOOKUP(Switch!$D$60,$F$2:$G$44,2,FALSE)+ROW()-2))=Switch!$D$60,INDIRECT(\"a\" & (VLOOKUP(Switch!$D$60,$F$2:$G$44,2,FALSE)+ROW()-2)),\"\")","v":{"$error":"#N/A"}},{"$f":"IF(INDIRECT(\"c\" & (VLOOKUP(Switch!$D$61,$F$2:$G$44,2,FALSE)+ROW()-2))=Switch!$D$61,INDIRECT(\"a\" & (VLOOKUP(Switch!$D$61,$F$2:$G$44,2,FALSE)+ROW()-2)),\"\")","v":{"$error":"#N/A"}},{"$f":"IF(INDIRECT(\"c\" & (VLOOKUP(Switch!$D$62,$F$2:$G$44,2,FALSE)+ROW()-2))=Switch!$D$62,INDIRECT(\"a\" & (VLOOKUP(Switch!$D$62,$F$2:$G$44,2,FALSE)+ROW()-2)),\"\")","v":{"$error":"#N/A"}},{"$f":"IF(INDIRECT(\"c\" & (VLOOKUP(Switch!$D$63,$F$2:$G$44,2,FALSE)+ROW()-2))=Switch!$D$63,INDIRECT(\"a\" & (VLOOKUP(Switch!$D$63,$F$2:$G$44,2,FALSE)+ROW()-2)),\"\")","v":{"$error":"#N/A"}},{"$f":"IF(INDIRECT(\"c\" & (VLOOKUP(Switch!$D$64,$F$2:$G$44,2,FALSE)+ROW()-2))=Switch!$D$64,INDIRECT(\"a\" & (VLOOKUP(Switch!$D$64,$F$2:$G$44,2,FALSE)+ROW()-2)),\"\")","v":{"$error":"#N/A"}},{"$f":"IF(INDIRECT(\"c\" & (VLOOKUP(Switch!$D$65,$F$2:$G$44,2,FALSE)+ROW()-2))=Switch!$D$65,INDIRECT(\"a\" & (VLOOKUP(Switch!$D$65,$F$2:$G$44,2,FALSE)+ROW()-2)),\"\")","v":{"$error":"#N/A"}},{"$f":"IF(INDIRECT(\"c\" & (VLOOKUP(Switch!$D$66,$F$2:$G$44,2,FALSE)+ROW()-2))=Switch!$D$66,INDIRECT(\"a\" & (VLOOKUP(Switch!$D$66,$F$2:$G$44,2,FALSE)+ROW()-2)),\"\")","v":{"$error":"#N/A"}}]
["Nedgroup Inv Rainmaker Fund A","NIRB","Nedgroup Collective Investments Ltd",{"$f":"ROW()","v":380},null,null,{"$f":"VLOOKUP(F380,$C$2:$D$637,2,FALSE)","v":{"$error":"#N/A"}},{"$f":"IF(INDIRECT(\"c\" & (VLOOKUP(Switch!$D$26,$F$2:$G$44,2,FALSE)+ROW()-2))=Switch!$D$26,INDIRECT(\"a\" & (VLOOKUP(Switch!$D$26,$F$2:$G$44,2,FALSE)+ROW()-2)),\"\")","v":{"$error":"#N/A"}},{"$f":"IF(INDIRECT(\"c\" & (VLOOKUP(Switch!$D$27,$F$2:$G$44,2,FALSE)+ROW()-2))=Switch!$D$27,INDIRECT(\"a\" & (VLOOKUP(Switch!$D$27,$F$2:$G$44,2,FALSE)+ROW()-2)),\"\")","v":{"$error":"#N/A"}},{"$f":"IF(INDIRECT(\"c\" & (VLOOKUP(Switch!$D$28,$F$2:$G$44,2,FALSE)+ROW()-2))=Switch!$D$28,INDIRECT(\"a\" & (VLOOKUP(Switch!$D$28,$F$2:$G$44,2,FALSE)+ROW()-2)),\"\")","v":{"$error":"#N/A"}},{"$f":"IF(INDIRECT(\"c\" & (VLOOKUP(Switch!$D$29,$F$2:$G$44,2,FALSE)+ROW()-2))=Switch!$D$29,INDIRECT(\"a\" & (VLOOKUP(Switch!$D$29,$F$2:$G$44,2,FALSE)+ROW()-2)),\"\")","v":{"$error":"#N/A"}},{"$f":"IF(INDIRECT(\"c\" & (VLOOKUP(Switch!$D$30,$F$2:$G$44,2,FALSE)+ROW()-2))=Switch!$D$30,INDIRECT(\"a\" & (VLOOKUP(Switch!$D$30,$F$2:$G$44,2,FALSE)+ROW()-2)),\"\")","v":{"$error":"#N/A"}},{"$f":"IF(INDIRECT(\"c\" & (VLOOKUP(Switch!$D$31,$F$2:$G$44,2,FALSE)+ROW()-2))=Switch!$D$31,INDIRECT(\"a\" & (VLOOKUP(Switch!$D$31,$F$2:$G$44,2,FALSE)+ROW()-2)),\"\")","v":{"$error":"#N/A"}},{"$f":"IF(INDIRECT(\"c\" & (VLOOKUP(Switch!$D$32,$F$2:$G$44,2,FALSE)+ROW()-2))=Switch!$D$32,INDIRECT(\"a\" & (VLOOKUP(Switch!$D$32,$F$2:$G$44,2,FALSE)+ROW()-2)),\"\")","v":{"$error":"#N/A"}},{"$f":"IF(INDIRECT(\"c\" & (VLOOKUP(Switch!$D$33,$F$2:$G$44,2,FALSE)+ROW()-2))=Switch!$D$33,INDIRECT(\"a\" & (VLOOKUP(Switch!$D$33,$F$2:$G$44,2,FALSE)+ROW()-2)),\"\")","v":{"$error":"#N/A"}},{"$f":"IF(INDIRECT(\"c\" & (VLOOKUP(Switch!$D$34,$F$2:$G$44,2,FALSE)+ROW()-2))=Switch!$D$34,INDIRECT(\"a\" & (VLOOKUP(Switch!$D$34,$F$2:$G$44,2,FALSE)+ROW()-2)),\"\")","v":{"$error":"#N/A"}},{"$f":"IF(INDIRECT(\"c\" & (VLOOKUP(Switch!$D$35,$F$2:$G$44,2,FALSE)+ROW()-2))=Switch!$D$35,INDIRECT(\"a\" & (VLOOKUP(Switch!$D$35,$F$2:$G$44,2,FALSE)+ROW()-2)),\"\")","v":{"$error":"#N/A"}},{"$f":"IF(INDIRECT(\"c\" & (VLOOKUP(Switch!$D$36,$F$2:$G$44,2,FALSE)+ROW()-2))=Switch!$D$36,INDIRECT(\"a\" & (VLOOKUP(Switch!$D$36,$F$2:$G$44,2,FALSE)+ROW()-2)),\"\")","v":{"$error":"#N/A"}},{"$f":"IF(INDIRECT(\"c\" & (VLOOKUP(Switch!$D$37,$F$2:$G$44,2,FALSE)+ROW()-2))=Switch!$D$37,INDIRECT(\"a\" & (VLOOKUP(Switch!$D$37,$F$2:$G$44,2,FALSE)+ROW()-2)),\"\")","v":{"$error":"#N/A"}},{"$f":"IF(INDIRECT(\"c\" & (VLOOKUP(Switch!$D$38,$F$2:$G$44,2,FALSE)+ROW()-2))=Switch!$D$38,INDIRECT(\"a\" & (VLOOKUP(Switch!$D$38,$F$2:$G$44,2,FALSE)+ROW()-2)),\"\")","v":{"$error":"#N/A"}},{"$f":"IF(INDIRECT(\"c\" & (VLOOKUP(Switch!$D$39,$F$2:$G$44,2,FALSE)+ROW()-2))=Switch!$D$39,INDIRECT(\"a\" & (VLOOKUP(Switch!$D$39,$F$2:$G$44,2,FALSE)+ROW()-2)),\"\")","v":{"$error":"#N/A"}},{"$f":"IF(INDIRECT(\"c\" & (VLOOKUP(Switch!$D$40,$F$2:$G$44,2,FALSE)+ROW()-2))=Switch!$D$40,INDIRECT(\"a\" & (VLOOKUP(Switch!$D$40,$F$2:$G$44,2,FALSE)+ROW()-2)),\"\")","v":{"$error":"#N/A"}},{"$f":"IF(INDIRECT(\"c\" & (VLOOKUP(Switch!$D$52,$F$2:$G$44,2,FALSE)+ROW()-2))=Switch!$D$52,INDIRECT(\"a\" & (VLOOKUP(Switch!$D$52,$F$2:$G$44,2,FALSE)+ROW()-2)),\"\")","v":{"$error":"#N/A"}},{"$f":"IF(INDIRECT(\"c\" & (VLOOKUP(Switch!$D$53,$F$2:$G$44,2,FALSE)+ROW()-2))=Switch!$D$53,INDIRECT(\"a\" & (VLOOKUP(Switch!$D$53,$F$2:$G$44,2,FALSE)+ROW()-2)),\"\")","v":{"$error":"#N/A"}},{"$f":"IF(INDIRECT(\"c\" & (VLOOKUP(Switch!$D$54,$F$2:$G$44,2,FALSE)+ROW()-2))=Switch!$D$54,INDIRECT(\"a\" & (VLOOKUP(Switch!$D$54,$F$2:$G$44,2,FALSE)+ROW()-2)),\"\")","v":{"$error":"#N/A"}},{"$f":"IF(INDIRECT(\"c\" & (VLOOKUP(Switch!$D$55,$F$2:$G$44,2,FALSE)+ROW()-2))=Switch!$D$55,INDIRECT(\"a\" & (VLOOKUP(Switch!$D$55,$F$2:$G$44,2,FALSE)+ROW()-2)),\"\")","v":{"$error":"#N/A"}},{"$f":"IF(INDIRECT(\"c\" & (VLOOKUP(Switch!$D$56,$F$2:$G$44,2,FALSE)+ROW()-2))=Switch!$D$56,INDIRECT(\"a\" & (VLOOKUP(Switch!$D$56,$F$2:$G$44,2,FALSE)+ROW()-2)),\"\")","v":{"$error":"#N/A"}},{"$f":"IF(INDIRECT(\"c\" & (VLOOKUP(Switch!$D$57,$F$2:$G$44,2,FALSE)+ROW()-2))=Switch!$D$57,INDIRECT(\"a\" & (VLOOKUP(Switch!$D$57,$F$2:$G$44,2,FALSE)+ROW()-2)),\"\")","v":{"$error":"#N/A"}},{"$f":"IF(INDIRECT(\"c\" & (VLOOKUP(Switch!$D$58,$F$2:$G$44,2,FALSE)+ROW()-2))=Switch!$D$58,INDIRECT(\"a\" & (VLOOKUP(Switch!$D$58,$F$2:$G$44,2,FALSE)+ROW()-2)),\"\")","v":{"$error":"#N/A"}},{"$f":"IF(INDIRECT(\"c\" & (VLOOKUP(Switch!$D$59,$F$2:$G$44,2,FALSE)+ROW()-2))=Switch!$D$59,INDIRECT(\"a\" & (VLOOKUP(Switch!$D$59,$F$2:$G$44,2,FALSE)+ROW()-2)),\"\")","v":{"$error":"#N/A"}},{"$f":"IF(INDIRECT(\"c\" & (VLOOKUP(Switch!$D$60,$F$2:$G$44,2,FALSE)+ROW()-2))=Switch!$D$60,INDIRECT(\"a\" & (VLOOKUP(Switch!$D$60,$F$2:$G$44,2,FALSE)+ROW()-2)),\"\")","v":{"$error":"#N/A"}},{"$f":"IF(INDIRECT(\"c\" & (VLOOKUP(Switch!$D$61,$F$2:$G$44,2,FALSE)+ROW()-2))=Switch!$D$61,INDIRECT(\"a\" & (VLOOKUP(Switch!$D$61,$F$2:$G$44,2,FALSE)+ROW()-2)),\"\")","v":{"$error":"#N/A"}},{"$f":"IF(INDIRECT(\"c\" & (VLOOKUP(Switch!$D$62,$F$2:$G$44,2,FALSE)+ROW()-2))=Switch!$D$62,INDIRECT(\"a\" & (VLOOKUP(Switch!$D$62,$F$2:$G$44,2,FALSE)+ROW()-2)),\"\")","v":{"$error":"#N/A"}},{"$f":"IF(INDIRECT(\"c\" & (VLOOKUP(Switch!$D$63,$F$2:$G$44,2,FALSE)+ROW()-2))=Switch!$D$63,INDIRECT(\"a\" & (VLOOKUP(Switch!$D$63,$F$2:$G$44,2,FALSE)+ROW()-2)),\"\")","v":{"$error":"#N/A"}},{"$f":"IF(INDIRECT(\"c\" & (VLOOKUP(Switch!$D$64,$F$2:$G$44,2,FALSE)+ROW()-2))=Switch!$D$64,INDIRECT(\"a\" & (VLOOKUP(Switch!$D$64,$F$2:$G$44,2,FALSE)+ROW()-2)),\"\")","v":{"$error":"#N/A"}},{"$f":"IF(INDIRECT(\"c\" & (VLOOKUP(Switch!$D$65,$F$2:$G$44,2,FALSE)+ROW()-2))=Switch!$D$65,INDIRECT(\"a\" & (VLOOKUP(Switch!$D$65,$F$2:$G$44,2,FALSE)+ROW()-2)),\"\")","v":{"$error":"#N/A"}},{"$f":"IF(INDIRECT(\"c\" & (VLOOKUP(Switch!$D$66,$F$2:$G$44,2,FALSE)+ROW()-2))=Switch!$D$66,INDIRECT(\"a\" & (VLOOKUP(Switch!$D$66,$F$2:$G$44,2,FALSE)+ROW()-2)),\"\")","v":{"$error":"#N/A"}}]
["Nedgroup Inv Stable Fund A2","NISA","Nedgroup Collective Investments Ltd",{"$f":"ROW()","v":381},null,null,{"$f":"VLOOKUP(F381,$C$2:$D$637,2,FALSE)","v":{"$error":"#N/A"}},{"$f":"IF(INDIRECT(\"c\" & (VLOOKUP(Switch!$D$26,$F$2:$G$44,2,FALSE)+ROW()-2))=Switch!$D$26,INDIRECT(\"a\" & (VLOOKUP(Switch!$D$26,$F$2:$G$44,2,FALSE)+ROW()-2)),\"\")","v":{"$error":"#N/A"}},{"$f":"IF(INDIRECT(\"c\" & (VLOOKUP(Switch!$D$27,$F$2:$G$44,2,FALSE)+ROW()-2))=Switch!$D$27,INDIRECT(\"a\" & (VLOOKUP(Switch!$D$27,$F$2:$G$44,2,FALSE)+ROW()-2)),\"\")","v":{"$error":"#N/A"}},{"$f":"IF(INDIRECT(\"c\" & (VLOOKUP(Switch!$D$28,$F$2:$G$44,2,FALSE)+ROW()-2))=Switch!$D$28,INDIRECT(\"a\" & (VLOOKUP(Switch!$D$28,$F$2:$G$44,2,FALSE)+ROW()-2)),\"\")","v":{"$error":"#N/A"}},{"$f":"IF(INDIRECT(\"c\" & (VLOOKUP(Switch!$D$29,$F$2:$G$44,2,FALSE)+ROW()-2))=Switch!$D$29,INDIRECT(\"a\" & (VLOOKUP(Switch!$D$29,$F$2:$G$44,2,FALSE)+ROW()-2)),\"\")","v":{"$error":"#N/A"}},{"$f":"IF(INDIRECT(\"c\" & (VLOOKUP(Switch!$D$30,$F$2:$G$44,2,FALSE)+ROW()-2))=Switch!$D$30,INDIRECT(\"a\" & (VLOOKUP(Switch!$D$30,$F$2:$G$44,2,FALSE)+ROW()-2)),\"\")","v":{"$error":"#N/A"}},{"$f":"IF(INDIRECT(\"c\" & (VLOOKUP(Switch!$D$31,$F$2:$G$44,2,FALSE)+ROW()-2))=Switch!$D$31,INDIRECT(\"a\" & (VLOOKUP(Switch!$D$31,$F$2:$G$44,2,FALSE)+ROW()-2)),\"\")","v":{"$error":"#N/A"}},{"$f":"IF(INDIRECT(\"c\" & (VLOOKUP(Switch!$D$32,$F$2:$G$44,2,FALSE)+ROW()-2))=Switch!$D$32,INDIRECT(\"a\" & (VLOOKUP(Switch!$D$32,$F$2:$G$44,2,FALSE)+ROW()-2)),\"\")","v":{"$error":"#N/A"}},{"$f":"IF(INDIRECT(\"c\" & (VLOOKUP(Switch!$D$33,$F$2:$G$44,2,FALSE)+ROW()-2))=Switch!$D$33,INDIRECT(\"a\" & (VLOOKUP(Switch!$D$33,$F$2:$G$44,2,FALSE)+ROW()-2)),\"\")","v":{"$error":"#N/A"}},{"$f":"IF(INDIRECT(\"c\" & (VLOOKUP(Switch!$D$34,$F$2:$G$44,2,FALSE)+ROW()-2))=Switch!$D$34,INDIRECT(\"a\" & (VLOOKUP(Switch!$D$34,$F$2:$G$44,2,FALSE)+ROW()-2)),\"\")","v":{"$error":"#N/A"}},{"$f":"IF(INDIRECT(\"c\" & (VLOOKUP(Switch!$D$35,$F$2:$G$44,2,FALSE)+ROW()-2))=Switch!$D$35,INDIRECT(\"a\" & (VLOOKUP(Switch!$D$35,$F$2:$G$44,2,FALSE)+ROW()-2)),\"\")","v":{"$error":"#N/A"}},{"$f":"IF(INDIRECT(\"c\" & (VLOOKUP(Switch!$D$36,$F$2:$G$44,2,FALSE)+ROW()-2))=Switch!$D$36,INDIRECT(\"a\" & (VLOOKUP(Switch!$D$36,$F$2:$G$44,2,FALSE)+ROW()-2)),\"\")","v":{"$error":"#N/A"}},{"$f":"IF(INDIRECT(\"c\" & (VLOOKUP(Switch!$D$37,$F$2:$G$44,2,FALSE)+ROW()-2))=Switch!$D$37,INDIRECT(\"a\" & (VLOOKUP(Switch!$D$37,$F$2:$G$44,2,FALSE)+ROW()-2)),\"\")","v":{"$error":"#N/A"}},{"$f":"IF(INDIRECT(\"c\" & (VLOOKUP(Switch!$D$38,$F$2:$G$44,2,FALSE)+ROW()-2))=Switch!$D$38,INDIRECT(\"a\" & (VLOOKUP(Switch!$D$38,$F$2:$G$44,2,FALSE)+ROW()-2)),\"\")","v":{"$error":"#N/A"}},{"$f":"IF(INDIRECT(\"c\" & (VLOOKUP(Switch!$D$39,$F$2:$G$44,2,FALSE)+ROW()-2))=Switch!$D$39,INDIRECT(\"a\" & (VLOOKUP(Switch!$D$39,$F$2:$G$44,2,FALSE)+ROW()-2)),\"\")","v":{"$error":"#N/A"}},{"$f":"IF(INDIRECT(\"c\" & (VLOOKUP(Switch!$D$40,$F$2:$G$44,2,FALSE)+ROW()-2))=Switch!$D$40,INDIRECT(\"a\" & (VLOOKUP(Switch!$D$40,$F$2:$G$44,2,FALSE)+ROW()-2)),\"\")","v":{"$error":"#N/A"}},{"$f":"IF(INDIRECT(\"c\" & (VLOOKUP(Switch!$D$52,$F$2:$G$44,2,FALSE)+ROW()-2))=Switch!$D$52,INDIRECT(\"a\" & (VLOOKUP(Switch!$D$52,$F$2:$G$44,2,FALSE)+ROW()-2)),\"\")","v":{"$error":"#N/A"}},{"$f":"IF(INDIRECT(\"c\" & (VLOOKUP(Switch!$D$53,$F$2:$G$44,2,FALSE)+ROW()-2))=Switch!$D$53,INDIRECT(\"a\" & (VLOOKUP(Switch!$D$53,$F$2:$G$44,2,FALSE)+ROW()-2)),\"\")","v":{"$error":"#N/A"}},{"$f":"IF(INDIRECT(\"c\" & (VLOOKUP(Switch!$D$54,$F$2:$G$44,2,FALSE)+ROW()-2))=Switch!$D$54,INDIRECT(\"a\" & (VLOOKUP(Switch!$D$54,$F$2:$G$44,2,FALSE)+ROW()-2)),\"\")","v":{"$error":"#N/A"}},{"$f":"IF(INDIRECT(\"c\" & (VLOOKUP(Switch!$D$55,$F$2:$G$44,2,FALSE)+ROW()-2))=Switch!$D$55,INDIRECT(\"a\" & (VLOOKUP(Switch!$D$55,$F$2:$G$44,2,FALSE)+ROW()-2)),\"\")","v":{"$error":"#N/A"}},{"$f":"IF(INDIRECT(\"c\" & (VLOOKUP(Switch!$D$56,$F$2:$G$44,2,FALSE)+ROW()-2))=Switch!$D$56,INDIRECT(\"a\" & (VLOOKUP(Switch!$D$56,$F$2:$G$44,2,FALSE)+ROW()-2)),\"\")","v":{"$error":"#N/A"}},{"$f":"IF(INDIRECT(\"c\" & (VLOOKUP(Switch!$D$57,$F$2:$G$44,2,FALSE)+ROW()-2))=Switch!$D$57,INDIRECT(\"a\" & (VLOOKUP(Switch!$D$57,$F$2:$G$44,2,FALSE)+ROW()-2)),\"\")","v":{"$error":"#N/A"}},{"$f":"IF(INDIRECT(\"c\" & (VLOOKUP(Switch!$D$58,$F$2:$G$44,2,FALSE)+ROW()-2))=Switch!$D$58,INDIRECT(\"a\" & (VLOOKUP(Switch!$D$58,$F$2:$G$44,2,FALSE)+ROW()-2)),\"\")","v":{"$error":"#N/A"}},{"$f":"IF(INDIRECT(\"c\" & (VLOOKUP(Switch!$D$59,$F$2:$G$44,2,FALSE)+ROW()-2))=Switch!$D$59,INDIRECT(\"a\" & (VLOOKUP(Switch!$D$59,$F$2:$G$44,2,FALSE)+ROW()-2)),\"\")","v":{"$error":"#N/A"}},{"$f":"IF(INDIRECT(\"c\" & (VLOOKUP(Switch!$D$60,$F$2:$G$44,2,FALSE)+ROW()-2))=Switch!$D$60,INDIRECT(\"a\" & (VLOOKUP(Switch!$D$60,$F$2:$G$44,2,FALSE)+ROW()-2)),\"\")","v":{"$error":"#N/A"}},{"$f":"IF(INDIRECT(\"c\" & (VLOOKUP(Switch!$D$61,$F$2:$G$44,2,FALSE)+ROW()-2))=Switch!$D$61,INDIRECT(\"a\" & (VLOOKUP(Switch!$D$61,$F$2:$G$44,2,FALSE)+ROW()-2)),\"\")","v":{"$error":"#N/A"}},{"$f":"IF(INDIRECT(\"c\" & (VLOOKUP(Switch!$D$62,$F$2:$G$44,2,FALSE)+ROW()-2))=Switch!$D$62,INDIRECT(\"a\" & (VLOOKUP(Switch!$D$62,$F$2:$G$44,2,FALSE)+ROW()-2)),\"\")","v":{"$error":"#N/A"}},{"$f":"IF(INDIRECT(\"c\" & (VLOOKUP(Switch!$D$63,$F$2:$G$44,2,FALSE)+ROW()-2))=Switch!$D$63,INDIRECT(\"a\" & (VLOOKUP(Switch!$D$63,$F$2:$G$44,2,FALSE)+ROW()-2)),\"\")","v":{"$error":"#N/A"}},{"$f":"IF(INDIRECT(\"c\" & (VLOOKUP(Switch!$D$64,$F$2:$G$44,2,FALSE)+ROW()-2))=Switch!$D$64,INDIRECT(\"a\" & (VLOOKUP(Switch!$D$64,$F$2:$G$44,2,FALSE)+ROW()-2)),\"\")","v":{"$error":"#N/A"}},{"$f":"IF(INDIRECT(\"c\" & (VLOOKUP(Switch!$D$65,$F$2:$G$44,2,FALSE)+ROW()-2))=Switch!$D$65,INDIRECT(\"a\" & (VLOOKUP(Switch!$D$65,$F$2:$G$44,2,FALSE)+ROW()-2)),\"\")","v":{"$error":"#N/A"}},{"$f":"IF(INDIRECT(\"c\" & (VLOOKUP(Switch!$D$66,$F$2:$G$44,2,FALSE)+ROW()-2))=Switch!$D$66,INDIRECT(\"a\" & (VLOOKUP(Switch!$D$66,$F$2:$G$44,2,FALSE)+ROW()-2)),\"\")","v":{"$error":"#N/A"}}]
["Nedgroup Inv Stable Fund C","NISA","Nedgroup Collective Investments Ltd",{"$f":"ROW()","v":382},null,null,{"$f":"VLOOKUP(F382,$C$2:$D$637,2,FALSE)","v":{"$error":"#N/A"}},{"$f":"IF(INDIRECT(\"c\" & (VLOOKUP(Switch!$D$26,$F$2:$G$44,2,FALSE)+ROW()-2))=Switch!$D$26,INDIRECT(\"a\" & (VLOOKUP(Switch!$D$26,$F$2:$G$44,2,FALSE)+ROW()-2)),\"\")","v":{"$error":"#N/A"}},{"$f":"IF(INDIRECT(\"c\" & (VLOOKUP(Switch!$D$27,$F$2:$G$44,2,FALSE)+ROW()-2))=Switch!$D$27,INDIRECT(\"a\" & (VLOOKUP(Switch!$D$27,$F$2:$G$44,2,FALSE)+ROW()-2)),\"\")","v":{"$error":"#N/A"}},{"$f":"IF(INDIRECT(\"c\" & (VLOOKUP(Switch!$D$28,$F$2:$G$44,2,FALSE)+ROW()-2))=Switch!$D$28,INDIRECT(\"a\" & (VLOOKUP(Switch!$D$28,$F$2:$G$44,2,FALSE)+ROW()-2)),\"\")","v":{"$error":"#N/A"}},{"$f":"IF(INDIRECT(\"c\" & (VLOOKUP(Switch!$D$29,$F$2:$G$44,2,FALSE)+ROW()-2))=Switch!$D$29,INDIRECT(\"a\" & (VLOOKUP(Switch!$D$29,$F$2:$G$44,2,FALSE)+ROW()-2)),\"\")","v":{"$error":"#N/A"}},{"$f":"IF(INDIRECT(\"c\" & (VLOOKUP(Switch!$D$30,$F$2:$G$44,2,FALSE)+ROW()-2))=Switch!$D$30,INDIRECT(\"a\" & (VLOOKUP(Switch!$D$30,$F$2:$G$44,2,FALSE)+ROW()-2)),\"\")","v":{"$error":"#N/A"}},{"$f":"IF(INDIRECT(\"c\" & (VLOOKUP(Switch!$D$31,$F$2:$G$44,2,FALSE)+ROW()-2))=Switch!$D$31,INDIRECT(\"a\" & (VLOOKUP(Switch!$D$31,$F$2:$G$44,2,FALSE)+ROW()-2)),\"\")","v":{"$error":"#N/A"}},{"$f":"IF(INDIRECT(\"c\" & (VLOOKUP(Switch!$D$32,$F$2:$G$44,2,FALSE)+ROW()-2))=Switch!$D$32,INDIRECT(\"a\" & (VLOOKUP(Switch!$D$32,$F$2:$G$44,2,FALSE)+ROW()-2)),\"\")","v":{"$error":"#N/A"}},{"$f":"IF(INDIRECT(\"c\" & (VLOOKUP(Switch!$D$33,$F$2:$G$44,2,FALSE)+ROW()-2))=Switch!$D$33,INDIRECT(\"a\" & (VLOOKUP(Switch!$D$33,$F$2:$G$44,2,FALSE)+ROW()-2)),\"\")","v":{"$error":"#N/A"}},{"$f":"IF(INDIRECT(\"c\" & (VLOOKUP(Switch!$D$34,$F$2:$G$44,2,FALSE)+ROW()-2))=Switch!$D$34,INDIRECT(\"a\" & (VLOOKUP(Switch!$D$34,$F$2:$G$44,2,FALSE)+ROW()-2)),\"\")","v":{"$error":"#N/A"}},{"$f":"IF(INDIRECT(\"c\" & (VLOOKUP(Switch!$D$35,$F$2:$G$44,2,FALSE)+ROW()-2))=Switch!$D$35,INDIRECT(\"a\" & (VLOOKUP(Switch!$D$35,$F$2:$G$44,2,FALSE)+ROW()-2)),\"\")","v":{"$error":"#N/A"}},{"$f":"IF(INDIRECT(\"c\" & (VLOOKUP(Switch!$D$36,$F$2:$G$44,2,FALSE)+ROW()-2))=Switch!$D$36,INDIRECT(\"a\" & (VLOOKUP(Switch!$D$36,$F$2:$G$44,2,FALSE)+ROW()-2)),\"\")","v":{"$error":"#N/A"}},{"$f":"IF(INDIRECT(\"c\" & (VLOOKUP(Switch!$D$37,$F$2:$G$44,2,FALSE)+ROW()-2))=Switch!$D$37,INDIRECT(\"a\" & (VLOOKUP(Switch!$D$37,$F$2:$G$44,2,FALSE)+ROW()-2)),\"\")","v":{"$error":"#N/A"}},{"$f":"IF(INDIRECT(\"c\" & (VLOOKUP(Switch!$D$38,$F$2:$G$44,2,FALSE)+ROW()-2))=Switch!$D$38,INDIRECT(\"a\" & (VLOOKUP(Switch!$D$38,$F$2:$G$44,2,FALSE)+ROW()-2)),\"\")","v":{"$error":"#N/A"}},{"$f":"IF(INDIRECT(\"c\" & (VLOOKUP(Switch!$D$39,$F$2:$G$44,2,FALSE)+ROW()-2))=Switch!$D$39,INDIRECT(\"a\" & (VLOOKUP(Switch!$D$39,$F$2:$G$44,2,FALSE)+ROW()-2)),\"\")","v":{"$error":"#N/A"}},{"$f":"IF(INDIRECT(\"c\" & (VLOOKUP(Switch!$D$40,$F$2:$G$44,2,FALSE)+ROW()-2))=Switch!$D$40,INDIRECT(\"a\" & (VLOOKUP(Switch!$D$40,$F$2:$G$44,2,FALSE)+ROW()-2)),\"\")","v":{"$error":"#N/A"}},{"$f":"IF(INDIRECT(\"c\" & (VLOOKUP(Switch!$D$52,$F$2:$G$44,2,FALSE)+ROW()-2))=Switch!$D$52,INDIRECT(\"a\" & (VLOOKUP(Switch!$D$52,$F$2:$G$44,2,FALSE)+ROW()-2)),\"\")","v":{"$error":"#N/A"}},{"$f":"IF(INDIRECT(\"c\" & (VLOOKUP(Switch!$D$53,$F$2:$G$44,2,FALSE)+ROW()-2))=Switch!$D$53,INDIRECT(\"a\" & (VLOOKUP(Switch!$D$53,$F$2:$G$44,2,FALSE)+ROW()-2)),\"\")","v":{"$error":"#N/A"}},{"$f":"IF(INDIRECT(\"c\" & (VLOOKUP(Switch!$D$54,$F$2:$G$44,2,FALSE)+ROW()-2))=Switch!$D$54,INDIRECT(\"a\" & (VLOOKUP(Switch!$D$54,$F$2:$G$44,2,FALSE)+ROW()-2)),\"\")","v":{"$error":"#N/A"}},{"$f":"IF(INDIRECT(\"c\" & (VLOOKUP(Switch!$D$55,$F$2:$G$44,2,FALSE)+ROW()-2))=Switch!$D$55,INDIRECT(\"a\" & (VLOOKUP(Switch!$D$55,$F$2:$G$44,2,FALSE)+ROW()-2)),\"\")","v":{"$error":"#N/A"}},{"$f":"IF(INDIRECT(\"c\" & (VLOOKUP(Switch!$D$56,$F$2:$G$44,2,FALSE)+ROW()-2))=Switch!$D$56,INDIRECT(\"a\" & (VLOOKUP(Switch!$D$56,$F$2:$G$44,2,FALSE)+ROW()-2)),\"\")","v":{"$error":"#N/A"}},{"$f":"IF(INDIRECT(\"c\" & (VLOOKUP(Switch!$D$57,$F$2:$G$44,2,FALSE)+ROW()-2))=Switch!$D$57,INDIRECT(\"a\" & (VLOOKUP(Switch!$D$57,$F$2:$G$44,2,FALSE)+ROW()-2)),\"\")","v":{"$error":"#N/A"}},{"$f":"IF(INDIRECT(\"c\" & (VLOOKUP(Switch!$D$58,$F$2:$G$44,2,FALSE)+ROW()-2))=Switch!$D$58,INDIRECT(\"a\" & (VLOOKUP(Switch!$D$58,$F$2:$G$44,2,FALSE)+ROW()-2)),\"\")","v":{"$error":"#N/A"}},{"$f":"IF(INDIRECT(\"c\" & (VLOOKUP(Switch!$D$59,$F$2:$G$44,2,FALSE)+ROW()-2))=Switch!$D$59,INDIRECT(\"a\" & (VLOOKUP(Switch!$D$59,$F$2:$G$44,2,FALSE)+ROW()-2)),\"\")","v":{"$error":"#N/A"}},{"$f":"IF(INDIRECT(\"c\" & (VLOOKUP(Switch!$D$60,$F$2:$G$44,2,FALSE)+ROW()-2))=Switch!$D$60,INDIRECT(\"a\" & (VLOOKUP(Switch!$D$60,$F$2:$G$44,2,FALSE)+ROW()-2)),\"\")","v":{"$error":"#N/A"}},{"$f":"IF(INDIRECT(\"c\" & (VLOOKUP(Switch!$D$61,$F$2:$G$44,2,FALSE)+ROW()-2))=Switch!$D$61,INDIRECT(\"a\" & (VLOOKUP(Switch!$D$61,$F$2:$G$44,2,FALSE)+ROW()-2)),\"\")","v":{"$error":"#N/A"}},{"$f":"IF(INDIRECT(\"c\" & (VLOOKUP(Switch!$D$62,$F$2:$G$44,2,FALSE)+ROW()-2))=Switch!$D$62,INDIRECT(\"a\" & (VLOOKUP(Switch!$D$62,$F$2:$G$44,2,FALSE)+ROW()-2)),\"\")","v":{"$error":"#N/A"}},{"$f":"IF(INDIRECT(\"c\" & (VLOOKUP(Switch!$D$63,$F$2:$G$44,2,FALSE)+ROW()-2))=Switch!$D$63,INDIRECT(\"a\" & (VLOOKUP(Switch!$D$63,$F$2:$G$44,2,FALSE)+ROW()-2)),\"\")","v":{"$error":"#N/A"}},{"$f":"IF(INDIRECT(\"c\" & (VLOOKUP(Switch!$D$64,$F$2:$G$44,2,FALSE)+ROW()-2))=Switch!$D$64,INDIRECT(\"a\" & (VLOOKUP(Switch!$D$64,$F$2:$G$44,2,FALSE)+ROW()-2)),\"\")","v":{"$error":"#N/A"}},{"$f":"IF(INDIRECT(\"c\" & (VLOOKUP(Switch!$D$65,$F$2:$G$44,2,FALSE)+ROW()-2))=Switch!$D$65,INDIRECT(\"a\" & (VLOOKUP(Switch!$D$65,$F$2:$G$44,2,FALSE)+ROW()-2)),\"\")","v":{"$error":"#N/A"}},{"$f":"IF(INDIRECT(\"c\" & (VLOOKUP(Switch!$D$66,$F$2:$G$44,2,FALSE)+ROW()-2))=Switch!$D$66,INDIRECT(\"a\" & (VLOOKUP(Switch!$D$66,$F$2:$G$44,2,FALSE)+ROW()-2)),\"\")","v":{"$error":"#N/A"}}]
["Nedgroup Inv Stable Fund Class A","NISA","Nedgroup Collective Investments Ltd",{"$f":"ROW()","v":383},null,null,{"$f":"VLOOKUP(F383,$C$2:$D$637,2,FALSE)","v":{"$error":"#N/A"}},{"$f":"IF(INDIRECT(\"c\" & (VLOOKUP(Switch!$D$26,$F$2:$G$44,2,FALSE)+ROW()-2))=Switch!$D$26,INDIRECT(\"a\" & (VLOOKUP(Switch!$D$26,$F$2:$G$44,2,FALSE)+ROW()-2)),\"\")","v":{"$error":"#N/A"}},{"$f":"IF(INDIRECT(\"c\" & (VLOOKUP(Switch!$D$27,$F$2:$G$44,2,FALSE)+ROW()-2))=Switch!$D$27,INDIRECT(\"a\" & (VLOOKUP(Switch!$D$27,$F$2:$G$44,2,FALSE)+ROW()-2)),\"\")","v":{"$error":"#N/A"}},{"$f":"IF(INDIRECT(\"c\" & (VLOOKUP(Switch!$D$28,$F$2:$G$44,2,FALSE)+ROW()-2))=Switch!$D$28,INDIRECT(\"a\" & (VLOOKUP(Switch!$D$28,$F$2:$G$44,2,FALSE)+ROW()-2)),\"\")","v":{"$error":"#N/A"}},{"$f":"IF(INDIRECT(\"c\" & (VLOOKUP(Switch!$D$29,$F$2:$G$44,2,FALSE)+ROW()-2))=Switch!$D$29,INDIRECT(\"a\" & (VLOOKUP(Switch!$D$29,$F$2:$G$44,2,FALSE)+ROW()-2)),\"\")","v":{"$error":"#N/A"}},{"$f":"IF(INDIRECT(\"c\" & (VLOOKUP(Switch!$D$30,$F$2:$G$44,2,FALSE)+ROW()-2))=Switch!$D$30,INDIRECT(\"a\" & (VLOOKUP(Switch!$D$30,$F$2:$G$44,2,FALSE)+ROW()-2)),\"\")","v":{"$error":"#N/A"}},{"$f":"IF(INDIRECT(\"c\" & (VLOOKUP(Switch!$D$31,$F$2:$G$44,2,FALSE)+ROW()-2))=Switch!$D$31,INDIRECT(\"a\" & (VLOOKUP(Switch!$D$31,$F$2:$G$44,2,FALSE)+ROW()-2)),\"\")","v":{"$error":"#N/A"}},{"$f":"IF(INDIRECT(\"c\" & (VLOOKUP(Switch!$D$32,$F$2:$G$44,2,FALSE)+ROW()-2))=Switch!$D$32,INDIRECT(\"a\" & (VLOOKUP(Switch!$D$32,$F$2:$G$44,2,FALSE)+ROW()-2)),\"\")","v":{"$error":"#N/A"}},{"$f":"IF(INDIRECT(\"c\" & (VLOOKUP(Switch!$D$33,$F$2:$G$44,2,FALSE)+ROW()-2))=Switch!$D$33,INDIRECT(\"a\" & (VLOOKUP(Switch!$D$33,$F$2:$G$44,2,FALSE)+ROW()-2)),\"\")","v":{"$error":"#N/A"}},{"$f":"IF(INDIRECT(\"c\" & (VLOOKUP(Switch!$D$34,$F$2:$G$44,2,FALSE)+ROW()-2))=Switch!$D$34,INDIRECT(\"a\" & (VLOOKUP(Switch!$D$34,$F$2:$G$44,2,FALSE)+ROW()-2)),\"\")","v":{"$error":"#N/A"}},{"$f":"IF(INDIRECT(\"c\" & (VLOOKUP(Switch!$D$35,$F$2:$G$44,2,FALSE)+ROW()-2))=Switch!$D$35,INDIRECT(\"a\" & (VLOOKUP(Switch!$D$35,$F$2:$G$44,2,FALSE)+ROW()-2)),\"\")","v":{"$error":"#N/A"}},{"$f":"IF(INDIRECT(\"c\" & (VLOOKUP(Switch!$D$36,$F$2:$G$44,2,FALSE)+ROW()-2))=Switch!$D$36,INDIRECT(\"a\" & (VLOOKUP(Switch!$D$36,$F$2:$G$44,2,FALSE)+ROW()-2)),\"\")","v":{"$error":"#N/A"}},{"$f":"IF(INDIRECT(\"c\" & (VLOOKUP(Switch!$D$37,$F$2:$G$44,2,FALSE)+ROW()-2))=Switch!$D$37,INDIRECT(\"a\" & (VLOOKUP(Switch!$D$37,$F$2:$G$44,2,FALSE)+ROW()-2)),\"\")","v":{"$error":"#N/A"}},{"$f":"IF(INDIRECT(\"c\" & (VLOOKUP(Switch!$D$38,$F$2:$G$44,2,FALSE)+ROW()-2))=Switch!$D$38,INDIRECT(\"a\" & (VLOOKUP(Switch!$D$38,$F$2:$G$44,2,FALSE)+ROW()-2)),\"\")","v":{"$error":"#N/A"}},{"$f":"IF(INDIRECT(\"c\" & (VLOOKUP(Switch!$D$39,$F$2:$G$44,2,FALSE)+ROW()-2))=Switch!$D$39,INDIRECT(\"a\" & (VLOOKUP(Switch!$D$39,$F$2:$G$44,2,FALSE)+ROW()-2)),\"\")","v":{"$error":"#N/A"}},{"$f":"IF(INDIRECT(\"c\" & (VLOOKUP(Switch!$D$40,$F$2:$G$44,2,FALSE)+ROW()-2))=Switch!$D$40,INDIRECT(\"a\" & (VLOOKUP(Switch!$D$40,$F$2:$G$44,2,FALSE)+ROW()-2)),\"\")","v":{"$error":"#N/A"}},{"$f":"IF(INDIRECT(\"c\" & (VLOOKUP(Switch!$D$52,$F$2:$G$44,2,FALSE)+ROW()-2))=Switch!$D$52,INDIRECT(\"a\" & (VLOOKUP(Switch!$D$52,$F$2:$G$44,2,FALSE)+ROW()-2)),\"\")","v":{"$error":"#N/A"}},{"$f":"IF(INDIRECT(\"c\" & (VLOOKUP(Switch!$D$53,$F$2:$G$44,2,FALSE)+ROW()-2))=Switch!$D$53,INDIRECT(\"a\" & (VLOOKUP(Switch!$D$53,$F$2:$G$44,2,FALSE)+ROW()-2)),\"\")","v":{"$error":"#N/A"}},{"$f":"IF(INDIRECT(\"c\" & (VLOOKUP(Switch!$D$54,$F$2:$G$44,2,FALSE)+ROW()-2))=Switch!$D$54,INDIRECT(\"a\" & (VLOOKUP(Switch!$D$54,$F$2:$G$44,2,FALSE)+ROW()-2)),\"\")","v":{"$error":"#N/A"}},{"$f":"IF(INDIRECT(\"c\" & (VLOOKUP(Switch!$D$55,$F$2:$G$44,2,FALSE)+ROW()-2))=Switch!$D$55,INDIRECT(\"a\" & (VLOOKUP(Switch!$D$55,$F$2:$G$44,2,FALSE)+ROW()-2)),\"\")","v":{"$error":"#N/A"}},{"$f":"IF(INDIRECT(\"c\" & (VLOOKUP(Switch!$D$56,$F$2:$G$44,2,FALSE)+ROW()-2))=Switch!$D$56,INDIRECT(\"a\" & (VLOOKUP(Switch!$D$56,$F$2:$G$44,2,FALSE)+ROW()-2)),\"\")","v":{"$error":"#N/A"}},{"$f":"IF(INDIRECT(\"c\" & (VLOOKUP(Switch!$D$57,$F$2:$G$44,2,FALSE)+ROW()-2))=Switch!$D$57,INDIRECT(\"a\" & (VLOOKUP(Switch!$D$57,$F$2:$G$44,2,FALSE)+ROW()-2)),\"\")","v":{"$error":"#N/A"}},{"$f":"IF(INDIRECT(\"c\" & (VLOOKUP(Switch!$D$58,$F$2:$G$44,2,FALSE)+ROW()-2))=Switch!$D$58,INDIRECT(\"a\" & (VLOOKUP(Switch!$D$58,$F$2:$G$44,2,FALSE)+ROW()-2)),\"\")","v":{"$error":"#N/A"}},{"$f":"IF(INDIRECT(\"c\" & (VLOOKUP(Switch!$D$59,$F$2:$G$44,2,FALSE)+ROW()-2))=Switch!$D$59,INDIRECT(\"a\" & (VLOOKUP(Switch!$D$59,$F$2:$G$44,2,FALSE)+ROW()-2)),\"\")","v":{"$error":"#N/A"}},{"$f":"IF(INDIRECT(\"c\" & (VLOOKUP(Switch!$D$60,$F$2:$G$44,2,FALSE)+ROW()-2))=Switch!$D$60,INDIRECT(\"a\" & (VLOOKUP(Switch!$D$60,$F$2:$G$44,2,FALSE)+ROW()-2)),\"\")","v":{"$error":"#N/A"}},{"$f":"IF(INDIRECT(\"c\" & (VLOOKUP(Switch!$D$61,$F$2:$G$44,2,FALSE)+ROW()-2))=Switch!$D$61,INDIRECT(\"a\" & (VLOOKUP(Switch!$D$61,$F$2:$G$44,2,FALSE)+ROW()-2)),\"\")","v":{"$error":"#N/A"}},{"$f":"IF(INDIRECT(\"c\" & (VLOOKUP(Switch!$D$62,$F$2:$G$44,2,FALSE)+ROW()-2))=Switch!$D$62,INDIRECT(\"a\" & (VLOOKUP(Switch!$D$62,$F$2:$G$44,2,FALSE)+ROW()-2)),\"\")","v":{"$error":"#N/A"}},{"$f":"IF(INDIRECT(\"c\" & (VLOOKUP(Switch!$D$63,$F$2:$G$44,2,FALSE)+ROW()-2))=Switch!$D$63,INDIRECT(\"a\" & (VLOOKUP(Switch!$D$63,$F$2:$G$44,2,FALSE)+ROW()-2)),\"\")","v":{"$error":"#N/A"}},{"$f":"IF(INDIRECT(\"c\" & (VLOOKUP(Switch!$D$64,$F$2:$G$44,2,FALSE)+ROW()-2))=Switch!$D$64,INDIRECT(\"a\" & (VLOOKUP(Switch!$D$64,$F$2:$G$44,2,FALSE)+ROW()-2)),\"\")","v":{"$error":"#N/A"}},{"$f":"IF(INDIRECT(\"c\" & (VLOOKUP(Switch!$D$65,$F$2:$G$44,2,FALSE)+ROW()-2))=Switch!$D$65,INDIRECT(\"a\" & (VLOOKUP(Switch!$D$65,$F$2:$G$44,2,FALSE)+ROW()-2)),\"\")","v":{"$error":"#N/A"}},{"$f":"IF(INDIRECT(\"c\" & (VLOOKUP(Switch!$D$66,$F$2:$G$44,2,FALSE)+ROW()-2))=Switch!$D$66,INDIRECT(\"a\" & (VLOOKUP(Switch!$D$66,$F$2:$G$44,2,FALSE)+ROW()-2)),\"\")","v":{"$error":"#N/A"}}]
["Nedgroup Inv Entrepreneur Fund A","NEFB","Nedgroup Collective Investments Ltd",{"$f":"ROW()","v":384},null,null,{"$f":"VLOOKUP(F384,$C$2:$D$637,2,FALSE)","v":{"$error":"#N/A"}},{"$f":"IF(INDIRECT(\"c\" & (VLOOKUP(Switch!$D$26,$F$2:$G$44,2,FALSE)+ROW()-2))=Switch!$D$26,INDIRECT(\"a\" & (VLOOKUP(Switch!$D$26,$F$2:$G$44,2,FALSE)+ROW()-2)),\"\")","v":{"$error":"#N/A"}},{"$f":"IF(INDIRECT(\"c\" & (VLOOKUP(Switch!$D$27,$F$2:$G$44,2,FALSE)+ROW()-2))=Switch!$D$27,INDIRECT(\"a\" & (VLOOKUP(Switch!$D$27,$F$2:$G$44,2,FALSE)+ROW()-2)),\"\")","v":{"$error":"#N/A"}},{"$f":"IF(INDIRECT(\"c\" & (VLOOKUP(Switch!$D$28,$F$2:$G$44,2,FALSE)+ROW()-2))=Switch!$D$28,INDIRECT(\"a\" & (VLOOKUP(Switch!$D$28,$F$2:$G$44,2,FALSE)+ROW()-2)),\"\")","v":{"$error":"#N/A"}},{"$f":"IF(INDIRECT(\"c\" & (VLOOKUP(Switch!$D$29,$F$2:$G$44,2,FALSE)+ROW()-2))=Switch!$D$29,INDIRECT(\"a\" & (VLOOKUP(Switch!$D$29,$F$2:$G$44,2,FALSE)+ROW()-2)),\"\")","v":{"$error":"#N/A"}},{"$f":"IF(INDIRECT(\"c\" & (VLOOKUP(Switch!$D$30,$F$2:$G$44,2,FALSE)+ROW()-2))=Switch!$D$30,INDIRECT(\"a\" & (VLOOKUP(Switch!$D$30,$F$2:$G$44,2,FALSE)+ROW()-2)),\"\")","v":{"$error":"#N/A"}},{"$f":"IF(INDIRECT(\"c\" & (VLOOKUP(Switch!$D$31,$F$2:$G$44,2,FALSE)+ROW()-2))=Switch!$D$31,INDIRECT(\"a\" & (VLOOKUP(Switch!$D$31,$F$2:$G$44,2,FALSE)+ROW()-2)),\"\")","v":{"$error":"#N/A"}},{"$f":"IF(INDIRECT(\"c\" & (VLOOKUP(Switch!$D$32,$F$2:$G$44,2,FALSE)+ROW()-2))=Switch!$D$32,INDIRECT(\"a\" & (VLOOKUP(Switch!$D$32,$F$2:$G$44,2,FALSE)+ROW()-2)),\"\")","v":{"$error":"#N/A"}},{"$f":"IF(INDIRECT(\"c\" & (VLOOKUP(Switch!$D$33,$F$2:$G$44,2,FALSE)+ROW()-2))=Switch!$D$33,INDIRECT(\"a\" & (VLOOKUP(Switch!$D$33,$F$2:$G$44,2,FALSE)+ROW()-2)),\"\")","v":{"$error":"#N/A"}},{"$f":"IF(INDIRECT(\"c\" & (VLOOKUP(Switch!$D$34,$F$2:$G$44,2,FALSE)+ROW()-2))=Switch!$D$34,INDIRECT(\"a\" & (VLOOKUP(Switch!$D$34,$F$2:$G$44,2,FALSE)+ROW()-2)),\"\")","v":{"$error":"#N/A"}},{"$f":"IF(INDIRECT(\"c\" & (VLOOKUP(Switch!$D$35,$F$2:$G$44,2,FALSE)+ROW()-2))=Switch!$D$35,INDIRECT(\"a\" & (VLOOKUP(Switch!$D$35,$F$2:$G$44,2,FALSE)+ROW()-2)),\"\")","v":{"$error":"#N/A"}},{"$f":"IF(INDIRECT(\"c\" & (VLOOKUP(Switch!$D$36,$F$2:$G$44,2,FALSE)+ROW()-2))=Switch!$D$36,INDIRECT(\"a\" & (VLOOKUP(Switch!$D$36,$F$2:$G$44,2,FALSE)+ROW()-2)),\"\")","v":{"$error":"#N/A"}},{"$f":"IF(INDIRECT(\"c\" & (VLOOKUP(Switch!$D$37,$F$2:$G$44,2,FALSE)+ROW()-2))=Switch!$D$37,INDIRECT(\"a\" & (VLOOKUP(Switch!$D$37,$F$2:$G$44,2,FALSE)+ROW()-2)),\"\")","v":{"$error":"#N/A"}},{"$f":"IF(INDIRECT(\"c\" & (VLOOKUP(Switch!$D$38,$F$2:$G$44,2,FALSE)+ROW()-2))=Switch!$D$38,INDIRECT(\"a\" & (VLOOKUP(Switch!$D$38,$F$2:$G$44,2,FALSE)+ROW()-2)),\"\")","v":{"$error":"#N/A"}},{"$f":"IF(INDIRECT(\"c\" & (VLOOKUP(Switch!$D$39,$F$2:$G$44,2,FALSE)+ROW()-2))=Switch!$D$39,INDIRECT(\"a\" & (VLOOKUP(Switch!$D$39,$F$2:$G$44,2,FALSE)+ROW()-2)),\"\")","v":{"$error":"#N/A"}},{"$f":"IF(INDIRECT(\"c\" & (VLOOKUP(Switch!$D$40,$F$2:$G$44,2,FALSE)+ROW()-2))=Switch!$D$40,INDIRECT(\"a\" & (VLOOKUP(Switch!$D$40,$F$2:$G$44,2,FALSE)+ROW()-2)),\"\")","v":{"$error":"#N/A"}},{"$f":"IF(INDIRECT(\"c\" & (VLOOKUP(Switch!$D$52,$F$2:$G$44,2,FALSE)+ROW()-2))=Switch!$D$52,INDIRECT(\"a\" & (VLOOKUP(Switch!$D$52,$F$2:$G$44,2,FALSE)+ROW()-2)),\"\")","v":{"$error":"#N/A"}},{"$f":"IF(INDIRECT(\"c\" & (VLOOKUP(Switch!$D$53,$F$2:$G$44,2,FALSE)+ROW()-2))=Switch!$D$53,INDIRECT(\"a\" & (VLOOKUP(Switch!$D$53,$F$2:$G$44,2,FALSE)+ROW()-2)),\"\")","v":{"$error":"#N/A"}},{"$f":"IF(INDIRECT(\"c\" & (VLOOKUP(Switch!$D$54,$F$2:$G$44,2,FALSE)+ROW()-2))=Switch!$D$54,INDIRECT(\"a\" & (VLOOKUP(Switch!$D$54,$F$2:$G$44,2,FALSE)+ROW()-2)),\"\")","v":{"$error":"#N/A"}},{"$f":"IF(INDIRECT(\"c\" & (VLOOKUP(Switch!$D$55,$F$2:$G$44,2,FALSE)+ROW()-2))=Switch!$D$55,INDIRECT(\"a\" & (VLOOKUP(Switch!$D$55,$F$2:$G$44,2,FALSE)+ROW()-2)),\"\")","v":{"$error":"#N/A"}},{"$f":"IF(INDIRECT(\"c\" & (VLOOKUP(Switch!$D$56,$F$2:$G$44,2,FALSE)+ROW()-2))=Switch!$D$56,INDIRECT(\"a\" & (VLOOKUP(Switch!$D$56,$F$2:$G$44,2,FALSE)+ROW()-2)),\"\")","v":{"$error":"#N/A"}},{"$f":"IF(INDIRECT(\"c\" & (VLOOKUP(Switch!$D$57,$F$2:$G$44,2,FALSE)+ROW()-2))=Switch!$D$57,INDIRECT(\"a\" & (VLOOKUP(Switch!$D$57,$F$2:$G$44,2,FALSE)+ROW()-2)),\"\")","v":{"$error":"#N/A"}},{"$f":"IF(INDIRECT(\"c\" & (VLOOKUP(Switch!$D$58,$F$2:$G$44,2,FALSE)+ROW()-2))=Switch!$D$58,INDIRECT(\"a\" & (VLOOKUP(Switch!$D$58,$F$2:$G$44,2,FALSE)+ROW()-2)),\"\")","v":{"$error":"#N/A"}},{"$f":"IF(INDIRECT(\"c\" & (VLOOKUP(Switch!$D$59,$F$2:$G$44,2,FALSE)+ROW()-2))=Switch!$D$59,INDIRECT(\"a\" & (VLOOKUP(Switch!$D$59,$F$2:$G$44,2,FALSE)+ROW()-2)),\"\")","v":{"$error":"#N/A"}},{"$f":"IF(INDIRECT(\"c\" & (VLOOKUP(Switch!$D$60,$F$2:$G$44,2,FALSE)+ROW()-2))=Switch!$D$60,INDIRECT(\"a\" & (VLOOKUP(Switch!$D$60,$F$2:$G$44,2,FALSE)+ROW()-2)),\"\")","v":{"$error":"#N/A"}},{"$f":"IF(INDIRECT(\"c\" & (VLOOKUP(Switch!$D$61,$F$2:$G$44,2,FALSE)+ROW()-2))=Switch!$D$61,INDIRECT(\"a\" & (VLOOKUP(Switch!$D$61,$F$2:$G$44,2,FALSE)+ROW()-2)),\"\")","v":{"$error":"#N/A"}},{"$f":"IF(INDIRECT(\"c\" & (VLOOKUP(Switch!$D$62,$F$2:$G$44,2,FALSE)+ROW()-2))=Switch!$D$62,INDIRECT(\"a\" & (VLOOKUP(Switch!$D$62,$F$2:$G$44,2,FALSE)+ROW()-2)),\"\")","v":{"$error":"#N/A"}},{"$f":"IF(INDIRECT(\"c\" & (VLOOKUP(Switch!$D$63,$F$2:$G$44,2,FALSE)+ROW()-2))=Switch!$D$63,INDIRECT(\"a\" & (VLOOKUP(Switch!$D$63,$F$2:$G$44,2,FALSE)+ROW()-2)),\"\")","v":{"$error":"#N/A"}},{"$f":"IF(INDIRECT(\"c\" & (VLOOKUP(Switch!$D$64,$F$2:$G$44,2,FALSE)+ROW()-2))=Switch!$D$64,INDIRECT(\"a\" & (VLOOKUP(Switch!$D$64,$F$2:$G$44,2,FALSE)+ROW()-2)),\"\")","v":{"$error":"#N/A"}},{"$f":"IF(INDIRECT(\"c\" & (VLOOKUP(Switch!$D$65,$F$2:$G$44,2,FALSE)+ROW()-2))=Switch!$D$65,INDIRECT(\"a\" & (VLOOKUP(Switch!$D$65,$F$2:$G$44,2,FALSE)+ROW()-2)),\"\")","v":{"$error":"#N/A"}},{"$f":"IF(INDIRECT(\"c\" & (VLOOKUP(Switch!$D$66,$F$2:$G$44,2,FALSE)+ROW()-2))=Switch!$D$66,INDIRECT(\"a\" & (VLOOKUP(Switch!$D$66,$F$2:$G$44,2,FALSE)+ROW()-2)),\"\")","v":{"$error":"#N/A"}}]
["Nedgroup Inv Financials Fund A","UALA","Nedgroup Collective Investments Ltd",{"$f":"ROW()","v":385},null,null,{"$f":"VLOOKUP(F385,$C$2:$D$637,2,FALSE)","v":{"$error":"#N/A"}},{"$f":"IF(INDIRECT(\"c\" & (VLOOKUP(Switch!$D$26,$F$2:$G$44,2,FALSE)+ROW()-2))=Switch!$D$26,INDIRECT(\"a\" & (VLOOKUP(Switch!$D$26,$F$2:$G$44,2,FALSE)+ROW()-2)),\"\")","v":{"$error":"#N/A"}},{"$f":"IF(INDIRECT(\"c\" & (VLOOKUP(Switch!$D$27,$F$2:$G$44,2,FALSE)+ROW()-2))=Switch!$D$27,INDIRECT(\"a\" & (VLOOKUP(Switch!$D$27,$F$2:$G$44,2,FALSE)+ROW()-2)),\"\")","v":{"$error":"#N/A"}},{"$f":"IF(INDIRECT(\"c\" & (VLOOKUP(Switch!$D$28,$F$2:$G$44,2,FALSE)+ROW()-2))=Switch!$D$28,INDIRECT(\"a\" & (VLOOKUP(Switch!$D$28,$F$2:$G$44,2,FALSE)+ROW()-2)),\"\")","v":{"$error":"#N/A"}},{"$f":"IF(INDIRECT(\"c\" & (VLOOKUP(Switch!$D$29,$F$2:$G$44,2,FALSE)+ROW()-2))=Switch!$D$29,INDIRECT(\"a\" & (VLOOKUP(Switch!$D$29,$F$2:$G$44,2,FALSE)+ROW()-2)),\"\")","v":{"$error":"#N/A"}},{"$f":"IF(INDIRECT(\"c\" & (VLOOKUP(Switch!$D$30,$F$2:$G$44,2,FALSE)+ROW()-2))=Switch!$D$30,INDIRECT(\"a\" & (VLOOKUP(Switch!$D$30,$F$2:$G$44,2,FALSE)+ROW()-2)),\"\")","v":{"$error":"#N/A"}},{"$f":"IF(INDIRECT(\"c\" & (VLOOKUP(Switch!$D$31,$F$2:$G$44,2,FALSE)+ROW()-2))=Switch!$D$31,INDIRECT(\"a\" & (VLOOKUP(Switch!$D$31,$F$2:$G$44,2,FALSE)+ROW()-2)),\"\")","v":{"$error":"#N/A"}},{"$f":"IF(INDIRECT(\"c\" & (VLOOKUP(Switch!$D$32,$F$2:$G$44,2,FALSE)+ROW()-2))=Switch!$D$32,INDIRECT(\"a\" & (VLOOKUP(Switch!$D$32,$F$2:$G$44,2,FALSE)+ROW()-2)),\"\")","v":{"$error":"#N/A"}},{"$f":"IF(INDIRECT(\"c\" & (VLOOKUP(Switch!$D$33,$F$2:$G$44,2,FALSE)+ROW()-2))=Switch!$D$33,INDIRECT(\"a\" & (VLOOKUP(Switch!$D$33,$F$2:$G$44,2,FALSE)+ROW()-2)),\"\")","v":{"$error":"#N/A"}},{"$f":"IF(INDIRECT(\"c\" & (VLOOKUP(Switch!$D$34,$F$2:$G$44,2,FALSE)+ROW()-2))=Switch!$D$34,INDIRECT(\"a\" & (VLOOKUP(Switch!$D$34,$F$2:$G$44,2,FALSE)+ROW()-2)),\"\")","v":{"$error":"#N/A"}},{"$f":"IF(INDIRECT(\"c\" & (VLOOKUP(Switch!$D$35,$F$2:$G$44,2,FALSE)+ROW()-2))=Switch!$D$35,INDIRECT(\"a\" & (VLOOKUP(Switch!$D$35,$F$2:$G$44,2,FALSE)+ROW()-2)),\"\")","v":{"$error":"#N/A"}},{"$f":"IF(INDIRECT(\"c\" & (VLOOKUP(Switch!$D$36,$F$2:$G$44,2,FALSE)+ROW()-2))=Switch!$D$36,INDIRECT(\"a\" & (VLOOKUP(Switch!$D$36,$F$2:$G$44,2,FALSE)+ROW()-2)),\"\")","v":{"$error":"#N/A"}},{"$f":"IF(INDIRECT(\"c\" & (VLOOKUP(Switch!$D$37,$F$2:$G$44,2,FALSE)+ROW()-2))=Switch!$D$37,INDIRECT(\"a\" & (VLOOKUP(Switch!$D$37,$F$2:$G$44,2,FALSE)+ROW()-2)),\"\")","v":{"$error":"#N/A"}},{"$f":"IF(INDIRECT(\"c\" & (VLOOKUP(Switch!$D$38,$F$2:$G$44,2,FALSE)+ROW()-2))=Switch!$D$38,INDIRECT(\"a\" & (VLOOKUP(Switch!$D$38,$F$2:$G$44,2,FALSE)+ROW()-2)),\"\")","v":{"$error":"#N/A"}},{"$f":"IF(INDIRECT(\"c\" & (VLOOKUP(Switch!$D$39,$F$2:$G$44,2,FALSE)+ROW()-2))=Switch!$D$39,INDIRECT(\"a\" & (VLOOKUP(Switch!$D$39,$F$2:$G$44,2,FALSE)+ROW()-2)),\"\")","v":{"$error":"#N/A"}},{"$f":"IF(INDIRECT(\"c\" & (VLOOKUP(Switch!$D$40,$F$2:$G$44,2,FALSE)+ROW()-2))=Switch!$D$40,INDIRECT(\"a\" & (VLOOKUP(Switch!$D$40,$F$2:$G$44,2,FALSE)+ROW()-2)),\"\")","v":{"$error":"#N/A"}},{"$f":"IF(INDIRECT(\"c\" & (VLOOKUP(Switch!$D$52,$F$2:$G$44,2,FALSE)+ROW()-2))=Switch!$D$52,INDIRECT(\"a\" & (VLOOKUP(Switch!$D$52,$F$2:$G$44,2,FALSE)+ROW()-2)),\"\")","v":{"$error":"#N/A"}},{"$f":"IF(INDIRECT(\"c\" & (VLOOKUP(Switch!$D$53,$F$2:$G$44,2,FALSE)+ROW()-2))=Switch!$D$53,INDIRECT(\"a\" & (VLOOKUP(Switch!$D$53,$F$2:$G$44,2,FALSE)+ROW()-2)),\"\")","v":{"$error":"#N/A"}},{"$f":"IF(INDIRECT(\"c\" & (VLOOKUP(Switch!$D$54,$F$2:$G$44,2,FALSE)+ROW()-2))=Switch!$D$54,INDIRECT(\"a\" & (VLOOKUP(Switch!$D$54,$F$2:$G$44,2,FALSE)+ROW()-2)),\"\")","v":{"$error":"#N/A"}},{"$f":"IF(INDIRECT(\"c\" & (VLOOKUP(Switch!$D$55,$F$2:$G$44,2,FALSE)+ROW()-2))=Switch!$D$55,INDIRECT(\"a\" & (VLOOKUP(Switch!$D$55,$F$2:$G$44,2,FALSE)+ROW()-2)),\"\")","v":{"$error":"#N/A"}},{"$f":"IF(INDIRECT(\"c\" & (VLOOKUP(Switch!$D$56,$F$2:$G$44,2,FALSE)+ROW()-2))=Switch!$D$56,INDIRECT(\"a\" & (VLOOKUP(Switch!$D$56,$F$2:$G$44,2,FALSE)+ROW()-2)),\"\")","v":{"$error":"#N/A"}},{"$f":"IF(INDIRECT(\"c\" & (VLOOKUP(Switch!$D$57,$F$2:$G$44,2,FALSE)+ROW()-2))=Switch!$D$57,INDIRECT(\"a\" & (VLOOKUP(Switch!$D$57,$F$2:$G$44,2,FALSE)+ROW()-2)),\"\")","v":{"$error":"#N/A"}},{"$f":"IF(INDIRECT(\"c\" & (VLOOKUP(Switch!$D$58,$F$2:$G$44,2,FALSE)+ROW()-2))=Switch!$D$58,INDIRECT(\"a\" & (VLOOKUP(Switch!$D$58,$F$2:$G$44,2,FALSE)+ROW()-2)),\"\")","v":{"$error":"#N/A"}},{"$f":"IF(INDIRECT(\"c\" & (VLOOKUP(Switch!$D$59,$F$2:$G$44,2,FALSE)+ROW()-2))=Switch!$D$59,INDIRECT(\"a\" & (VLOOKUP(Switch!$D$59,$F$2:$G$44,2,FALSE)+ROW()-2)),\"\")","v":{"$error":"#N/A"}},{"$f":"IF(INDIRECT(\"c\" & (VLOOKUP(Switch!$D$60,$F$2:$G$44,2,FALSE)+ROW()-2))=Switch!$D$60,INDIRECT(\"a\" & (VLOOKUP(Switch!$D$60,$F$2:$G$44,2,FALSE)+ROW()-2)),\"\")","v":{"$error":"#N/A"}},{"$f":"IF(INDIRECT(\"c\" & (VLOOKUP(Switch!$D$61,$F$2:$G$44,2,FALSE)+ROW()-2))=Switch!$D$61,INDIRECT(\"a\" & (VLOOKUP(Switch!$D$61,$F$2:$G$44,2,FALSE)+ROW()-2)),\"\")","v":{"$error":"#N/A"}},{"$f":"IF(INDIRECT(\"c\" & (VLOOKUP(Switch!$D$62,$F$2:$G$44,2,FALSE)+ROW()-2))=Switch!$D$62,INDIRECT(\"a\" & (VLOOKUP(Switch!$D$62,$F$2:$G$44,2,FALSE)+ROW()-2)),\"\")","v":{"$error":"#N/A"}},{"$f":"IF(INDIRECT(\"c\" & (VLOOKUP(Switch!$D$63,$F$2:$G$44,2,FALSE)+ROW()-2))=Switch!$D$63,INDIRECT(\"a\" & (VLOOKUP(Switch!$D$63,$F$2:$G$44,2,FALSE)+ROW()-2)),\"\")","v":{"$error":"#N/A"}},{"$f":"IF(INDIRECT(\"c\" & (VLOOKUP(Switch!$D$64,$F$2:$G$44,2,FALSE)+ROW()-2))=Switch!$D$64,INDIRECT(\"a\" & (VLOOKUP(Switch!$D$64,$F$2:$G$44,2,FALSE)+ROW()-2)),\"\")","v":{"$error":"#N/A"}},{"$f":"IF(INDIRECT(\"c\" & (VLOOKUP(Switch!$D$65,$F$2:$G$44,2,FALSE)+ROW()-2))=Switch!$D$65,INDIRECT(\"a\" & (VLOOKUP(Switch!$D$65,$F$2:$G$44,2,FALSE)+ROW()-2)),\"\")","v":{"$error":"#N/A"}},{"$f":"IF(INDIRECT(\"c\" & (VLOOKUP(Switch!$D$66,$F$2:$G$44,2,FALSE)+ROW()-2))=Switch!$D$66,INDIRECT(\"a\" & (VLOOKUP(Switch!$D$66,$F$2:$G$44,2,FALSE)+ROW()-2)),\"\")","v":{"$error":"#N/A"}}]
["Nedgroup Inv Managed Fund A","NDBM","Nedgroup Collective Investments Ltd",{"$f":"ROW()","v":386},null,null,{"$f":"VLOOKUP(F386,$C$2:$D$637,2,FALSE)","v":{"$error":"#N/A"}},{"$f":"IF(INDIRECT(\"c\" & (VLOOKUP(Switch!$D$26,$F$2:$G$44,2,FALSE)+ROW()-2))=Switch!$D$26,INDIRECT(\"a\" & (VLOOKUP(Switch!$D$26,$F$2:$G$44,2,FALSE)+ROW()-2)),\"\")","v":{"$error":"#N/A"}},{"$f":"IF(INDIRECT(\"c\" & (VLOOKUP(Switch!$D$27,$F$2:$G$44,2,FALSE)+ROW()-2))=Switch!$D$27,INDIRECT(\"a\" & (VLOOKUP(Switch!$D$27,$F$2:$G$44,2,FALSE)+ROW()-2)),\"\")","v":{"$error":"#N/A"}},{"$f":"IF(INDIRECT(\"c\" & (VLOOKUP(Switch!$D$28,$F$2:$G$44,2,FALSE)+ROW()-2))=Switch!$D$28,INDIRECT(\"a\" & (VLOOKUP(Switch!$D$28,$F$2:$G$44,2,FALSE)+ROW()-2)),\"\")","v":{"$error":"#N/A"}},{"$f":"IF(INDIRECT(\"c\" & (VLOOKUP(Switch!$D$29,$F$2:$G$44,2,FALSE)+ROW()-2))=Switch!$D$29,INDIRECT(\"a\" & (VLOOKUP(Switch!$D$29,$F$2:$G$44,2,FALSE)+ROW()-2)),\"\")","v":{"$error":"#N/A"}},{"$f":"IF(INDIRECT(\"c\" & (VLOOKUP(Switch!$D$30,$F$2:$G$44,2,FALSE)+ROW()-2))=Switch!$D$30,INDIRECT(\"a\" & (VLOOKUP(Switch!$D$30,$F$2:$G$44,2,FALSE)+ROW()-2)),\"\")","v":{"$error":"#N/A"}},{"$f":"IF(INDIRECT(\"c\" & (VLOOKUP(Switch!$D$31,$F$2:$G$44,2,FALSE)+ROW()-2))=Switch!$D$31,INDIRECT(\"a\" & (VLOOKUP(Switch!$D$31,$F$2:$G$44,2,FALSE)+ROW()-2)),\"\")","v":{"$error":"#N/A"}},{"$f":"IF(INDIRECT(\"c\" & (VLOOKUP(Switch!$D$32,$F$2:$G$44,2,FALSE)+ROW()-2))=Switch!$D$32,INDIRECT(\"a\" & (VLOOKUP(Switch!$D$32,$F$2:$G$44,2,FALSE)+ROW()-2)),\"\")","v":{"$error":"#N/A"}},{"$f":"IF(INDIRECT(\"c\" & (VLOOKUP(Switch!$D$33,$F$2:$G$44,2,FALSE)+ROW()-2))=Switch!$D$33,INDIRECT(\"a\" & (VLOOKUP(Switch!$D$33,$F$2:$G$44,2,FALSE)+ROW()-2)),\"\")","v":{"$error":"#N/A"}},{"$f":"IF(INDIRECT(\"c\" & (VLOOKUP(Switch!$D$34,$F$2:$G$44,2,FALSE)+ROW()-2))=Switch!$D$34,INDIRECT(\"a\" & (VLOOKUP(Switch!$D$34,$F$2:$G$44,2,FALSE)+ROW()-2)),\"\")","v":{"$error":"#N/A"}},{"$f":"IF(INDIRECT(\"c\" & (VLOOKUP(Switch!$D$35,$F$2:$G$44,2,FALSE)+ROW()-2))=Switch!$D$35,INDIRECT(\"a\" & (VLOOKUP(Switch!$D$35,$F$2:$G$44,2,FALSE)+ROW()-2)),\"\")","v":{"$error":"#N/A"}},{"$f":"IF(INDIRECT(\"c\" & (VLOOKUP(Switch!$D$36,$F$2:$G$44,2,FALSE)+ROW()-2))=Switch!$D$36,INDIRECT(\"a\" & (VLOOKUP(Switch!$D$36,$F$2:$G$44,2,FALSE)+ROW()-2)),\"\")","v":{"$error":"#N/A"}},{"$f":"IF(INDIRECT(\"c\" & (VLOOKUP(Switch!$D$37,$F$2:$G$44,2,FALSE)+ROW()-2))=Switch!$D$37,INDIRECT(\"a\" & (VLOOKUP(Switch!$D$37,$F$2:$G$44,2,FALSE)+ROW()-2)),\"\")","v":{"$error":"#N/A"}},{"$f":"IF(INDIRECT(\"c\" & (VLOOKUP(Switch!$D$38,$F$2:$G$44,2,FALSE)+ROW()-2))=Switch!$D$38,INDIRECT(\"a\" & (VLOOKUP(Switch!$D$38,$F$2:$G$44,2,FALSE)+ROW()-2)),\"\")","v":{"$error":"#N/A"}},{"$f":"IF(INDIRECT(\"c\" & (VLOOKUP(Switch!$D$39,$F$2:$G$44,2,FALSE)+ROW()-2))=Switch!$D$39,INDIRECT(\"a\" & (VLOOKUP(Switch!$D$39,$F$2:$G$44,2,FALSE)+ROW()-2)),\"\")","v":{"$error":"#N/A"}},{"$f":"IF(INDIRECT(\"c\" & (VLOOKUP(Switch!$D$40,$F$2:$G$44,2,FALSE)+ROW()-2))=Switch!$D$40,INDIRECT(\"a\" & (VLOOKUP(Switch!$D$40,$F$2:$G$44,2,FALSE)+ROW()-2)),\"\")","v":{"$error":"#N/A"}},{"$f":"IF(INDIRECT(\"c\" & (VLOOKUP(Switch!$D$52,$F$2:$G$44,2,FALSE)+ROW()-2))=Switch!$D$52,INDIRECT(\"a\" & (VLOOKUP(Switch!$D$52,$F$2:$G$44,2,FALSE)+ROW()-2)),\"\")","v":{"$error":"#N/A"}},{"$f":"IF(INDIRECT(\"c\" & (VLOOKUP(Switch!$D$53,$F$2:$G$44,2,FALSE)+ROW()-2))=Switch!$D$53,INDIRECT(\"a\" & (VLOOKUP(Switch!$D$53,$F$2:$G$44,2,FALSE)+ROW()-2)),\"\")","v":{"$error":"#N/A"}},{"$f":"IF(INDIRECT(\"c\" & (VLOOKUP(Switch!$D$54,$F$2:$G$44,2,FALSE)+ROW()-2))=Switch!$D$54,INDIRECT(\"a\" & (VLOOKUP(Switch!$D$54,$F$2:$G$44,2,FALSE)+ROW()-2)),\"\")","v":{"$error":"#N/A"}},{"$f":"IF(INDIRECT(\"c\" & (VLOOKUP(Switch!$D$55,$F$2:$G$44,2,FALSE)+ROW()-2))=Switch!$D$55,INDIRECT(\"a\" & (VLOOKUP(Switch!$D$55,$F$2:$G$44,2,FALSE)+ROW()-2)),\"\")","v":{"$error":"#N/A"}},{"$f":"IF(INDIRECT(\"c\" & (VLOOKUP(Switch!$D$56,$F$2:$G$44,2,FALSE)+ROW()-2))=Switch!$D$56,INDIRECT(\"a\" & (VLOOKUP(Switch!$D$56,$F$2:$G$44,2,FALSE)+ROW()-2)),\"\")","v":{"$error":"#N/A"}},{"$f":"IF(INDIRECT(\"c\" & (VLOOKUP(Switch!$D$57,$F$2:$G$44,2,FALSE)+ROW()-2))=Switch!$D$57,INDIRECT(\"a\" & (VLOOKUP(Switch!$D$57,$F$2:$G$44,2,FALSE)+ROW()-2)),\"\")","v":{"$error":"#N/A"}},{"$f":"IF(INDIRECT(\"c\" & (VLOOKUP(Switch!$D$58,$F$2:$G$44,2,FALSE)+ROW()-2))=Switch!$D$58,INDIRECT(\"a\" & (VLOOKUP(Switch!$D$58,$F$2:$G$44,2,FALSE)+ROW()-2)),\"\")","v":{"$error":"#N/A"}},{"$f":"IF(INDIRECT(\"c\" & (VLOOKUP(Switch!$D$59,$F$2:$G$44,2,FALSE)+ROW()-2))=Switch!$D$59,INDIRECT(\"a\" & (VLOOKUP(Switch!$D$59,$F$2:$G$44,2,FALSE)+ROW()-2)),\"\")","v":{"$error":"#N/A"}},{"$f":"IF(INDIRECT(\"c\" & (VLOOKUP(Switch!$D$60,$F$2:$G$44,2,FALSE)+ROW()-2))=Switch!$D$60,INDIRECT(\"a\" & (VLOOKUP(Switch!$D$60,$F$2:$G$44,2,FALSE)+ROW()-2)),\"\")","v":{"$error":"#N/A"}},{"$f":"IF(INDIRECT(\"c\" & (VLOOKUP(Switch!$D$61,$F$2:$G$44,2,FALSE)+ROW()-2))=Switch!$D$61,INDIRECT(\"a\" & (VLOOKUP(Switch!$D$61,$F$2:$G$44,2,FALSE)+ROW()-2)),\"\")","v":{"$error":"#N/A"}},{"$f":"IF(INDIRECT(\"c\" & (VLOOKUP(Switch!$D$62,$F$2:$G$44,2,FALSE)+ROW()-2))=Switch!$D$62,INDIRECT(\"a\" & (VLOOKUP(Switch!$D$62,$F$2:$G$44,2,FALSE)+ROW()-2)),\"\")","v":{"$error":"#N/A"}},{"$f":"IF(INDIRECT(\"c\" & (VLOOKUP(Switch!$D$63,$F$2:$G$44,2,FALSE)+ROW()-2))=Switch!$D$63,INDIRECT(\"a\" & (VLOOKUP(Switch!$D$63,$F$2:$G$44,2,FALSE)+ROW()-2)),\"\")","v":{"$error":"#N/A"}},{"$f":"IF(INDIRECT(\"c\" & (VLOOKUP(Switch!$D$64,$F$2:$G$44,2,FALSE)+ROW()-2))=Switch!$D$64,INDIRECT(\"a\" & (VLOOKUP(Switch!$D$64,$F$2:$G$44,2,FALSE)+ROW()-2)),\"\")","v":{"$error":"#N/A"}},{"$f":"IF(INDIRECT(\"c\" & (VLOOKUP(Switch!$D$65,$F$2:$G$44,2,FALSE)+ROW()-2))=Switch!$D$65,INDIRECT(\"a\" & (VLOOKUP(Switch!$D$65,$F$2:$G$44,2,FALSE)+ROW()-2)),\"\")","v":{"$error":"#N/A"}},{"$f":"IF(INDIRECT(\"c\" & (VLOOKUP(Switch!$D$66,$F$2:$G$44,2,FALSE)+ROW()-2))=Switch!$D$66,INDIRECT(\"a\" & (VLOOKUP(Switch!$D$66,$F$2:$G$44,2,FALSE)+ROW()-2)),\"\")","v":{"$error":"#N/A"}}]
["Nedgroup Inv Value Fund B2","NIVB","Nedgroup Collective Investments Ltd",{"$f":"ROW()","v":387},null,null,{"$f":"VLOOKUP(F387,$C$2:$D$637,2,FALSE)","v":{"$error":"#N/A"}},{"$f":"IF(INDIRECT(\"c\" & (VLOOKUP(Switch!$D$26,$F$2:$G$44,2,FALSE)+ROW()-2))=Switch!$D$26,INDIRECT(\"a\" & (VLOOKUP(Switch!$D$26,$F$2:$G$44,2,FALSE)+ROW()-2)),\"\")","v":{"$error":"#N/A"}},{"$f":"IF(INDIRECT(\"c\" & (VLOOKUP(Switch!$D$27,$F$2:$G$44,2,FALSE)+ROW()-2))=Switch!$D$27,INDIRECT(\"a\" & (VLOOKUP(Switch!$D$27,$F$2:$G$44,2,FALSE)+ROW()-2)),\"\")","v":{"$error":"#N/A"}},{"$f":"IF(INDIRECT(\"c\" & (VLOOKUP(Switch!$D$28,$F$2:$G$44,2,FALSE)+ROW()-2))=Switch!$D$28,INDIRECT(\"a\" & (VLOOKUP(Switch!$D$28,$F$2:$G$44,2,FALSE)+ROW()-2)),\"\")","v":{"$error":"#N/A"}},{"$f":"IF(INDIRECT(\"c\" & (VLOOKUP(Switch!$D$29,$F$2:$G$44,2,FALSE)+ROW()-2))=Switch!$D$29,INDIRECT(\"a\" & (VLOOKUP(Switch!$D$29,$F$2:$G$44,2,FALSE)+ROW()-2)),\"\")","v":{"$error":"#N/A"}},{"$f":"IF(INDIRECT(\"c\" & (VLOOKUP(Switch!$D$30,$F$2:$G$44,2,FALSE)+ROW()-2))=Switch!$D$30,INDIRECT(\"a\" & (VLOOKUP(Switch!$D$30,$F$2:$G$44,2,FALSE)+ROW()-2)),\"\")","v":{"$error":"#N/A"}},{"$f":"IF(INDIRECT(\"c\" & (VLOOKUP(Switch!$D$31,$F$2:$G$44,2,FALSE)+ROW()-2))=Switch!$D$31,INDIRECT(\"a\" & (VLOOKUP(Switch!$D$31,$F$2:$G$44,2,FALSE)+ROW()-2)),\"\")","v":{"$error":"#N/A"}},{"$f":"IF(INDIRECT(\"c\" & (VLOOKUP(Switch!$D$32,$F$2:$G$44,2,FALSE)+ROW()-2))=Switch!$D$32,INDIRECT(\"a\" & (VLOOKUP(Switch!$D$32,$F$2:$G$44,2,FALSE)+ROW()-2)),\"\")","v":{"$error":"#N/A"}},{"$f":"IF(INDIRECT(\"c\" & (VLOOKUP(Switch!$D$33,$F$2:$G$44,2,FALSE)+ROW()-2))=Switch!$D$33,INDIRECT(\"a\" & (VLOOKUP(Switch!$D$33,$F$2:$G$44,2,FALSE)+ROW()-2)),\"\")","v":{"$error":"#N/A"}},{"$f":"IF(INDIRECT(\"c\" & (VLOOKUP(Switch!$D$34,$F$2:$G$44,2,FALSE)+ROW()-2))=Switch!$D$34,INDIRECT(\"a\" & (VLOOKUP(Switch!$D$34,$F$2:$G$44,2,FALSE)+ROW()-2)),\"\")","v":{"$error":"#N/A"}},{"$f":"IF(INDIRECT(\"c\" & (VLOOKUP(Switch!$D$35,$F$2:$G$44,2,FALSE)+ROW()-2))=Switch!$D$35,INDIRECT(\"a\" & (VLOOKUP(Switch!$D$35,$F$2:$G$44,2,FALSE)+ROW()-2)),\"\")","v":{"$error":"#N/A"}},{"$f":"IF(INDIRECT(\"c\" & (VLOOKUP(Switch!$D$36,$F$2:$G$44,2,FALSE)+ROW()-2))=Switch!$D$36,INDIRECT(\"a\" & (VLOOKUP(Switch!$D$36,$F$2:$G$44,2,FALSE)+ROW()-2)),\"\")","v":{"$error":"#N/A"}},{"$f":"IF(INDIRECT(\"c\" & (VLOOKUP(Switch!$D$37,$F$2:$G$44,2,FALSE)+ROW()-2))=Switch!$D$37,INDIRECT(\"a\" & (VLOOKUP(Switch!$D$37,$F$2:$G$44,2,FALSE)+ROW()-2)),\"\")","v":{"$error":"#N/A"}},{"$f":"IF(INDIRECT(\"c\" & (VLOOKUP(Switch!$D$38,$F$2:$G$44,2,FALSE)+ROW()-2))=Switch!$D$38,INDIRECT(\"a\" & (VLOOKUP(Switch!$D$38,$F$2:$G$44,2,FALSE)+ROW()-2)),\"\")","v":{"$error":"#N/A"}},{"$f":"IF(INDIRECT(\"c\" & (VLOOKUP(Switch!$D$39,$F$2:$G$44,2,FALSE)+ROW()-2))=Switch!$D$39,INDIRECT(\"a\" & (VLOOKUP(Switch!$D$39,$F$2:$G$44,2,FALSE)+ROW()-2)),\"\")","v":{"$error":"#N/A"}},{"$f":"IF(INDIRECT(\"c\" & (VLOOKUP(Switch!$D$40,$F$2:$G$44,2,FALSE)+ROW()-2))=Switch!$D$40,INDIRECT(\"a\" & (VLOOKUP(Switch!$D$40,$F$2:$G$44,2,FALSE)+ROW()-2)),\"\")","v":{"$error":"#N/A"}},{"$f":"IF(INDIRECT(\"c\" & (VLOOKUP(Switch!$D$52,$F$2:$G$44,2,FALSE)+ROW()-2))=Switch!$D$52,INDIRECT(\"a\" & (VLOOKUP(Switch!$D$52,$F$2:$G$44,2,FALSE)+ROW()-2)),\"\")","v":{"$error":"#N/A"}},{"$f":"IF(INDIRECT(\"c\" & (VLOOKUP(Switch!$D$53,$F$2:$G$44,2,FALSE)+ROW()-2))=Switch!$D$53,INDIRECT(\"a\" & (VLOOKUP(Switch!$D$53,$F$2:$G$44,2,FALSE)+ROW()-2)),\"\")","v":{"$error":"#N/A"}},{"$f":"IF(INDIRECT(\"c\" & (VLOOKUP(Switch!$D$54,$F$2:$G$44,2,FALSE)+ROW()-2))=Switch!$D$54,INDIRECT(\"a\" & (VLOOKUP(Switch!$D$54,$F$2:$G$44,2,FALSE)+ROW()-2)),\"\")","v":{"$error":"#N/A"}},{"$f":"IF(INDIRECT(\"c\" & (VLOOKUP(Switch!$D$55,$F$2:$G$44,2,FALSE)+ROW()-2))=Switch!$D$55,INDIRECT(\"a\" & (VLOOKUP(Switch!$D$55,$F$2:$G$44,2,FALSE)+ROW()-2)),\"\")","v":{"$error":"#N/A"}},{"$f":"IF(INDIRECT(\"c\" & (VLOOKUP(Switch!$D$56,$F$2:$G$44,2,FALSE)+ROW()-2))=Switch!$D$56,INDIRECT(\"a\" & (VLOOKUP(Switch!$D$56,$F$2:$G$44,2,FALSE)+ROW()-2)),\"\")","v":{"$error":"#N/A"}},{"$f":"IF(INDIRECT(\"c\" & (VLOOKUP(Switch!$D$57,$F$2:$G$44,2,FALSE)+ROW()-2))=Switch!$D$57,INDIRECT(\"a\" & (VLOOKUP(Switch!$D$57,$F$2:$G$44,2,FALSE)+ROW()-2)),\"\")","v":{"$error":"#N/A"}},{"$f":"IF(INDIRECT(\"c\" & (VLOOKUP(Switch!$D$58,$F$2:$G$44,2,FALSE)+ROW()-2))=Switch!$D$58,INDIRECT(\"a\" & (VLOOKUP(Switch!$D$58,$F$2:$G$44,2,FALSE)+ROW()-2)),\"\")","v":{"$error":"#N/A"}},{"$f":"IF(INDIRECT(\"c\" & (VLOOKUP(Switch!$D$59,$F$2:$G$44,2,FALSE)+ROW()-2))=Switch!$D$59,INDIRECT(\"a\" & (VLOOKUP(Switch!$D$59,$F$2:$G$44,2,FALSE)+ROW()-2)),\"\")","v":{"$error":"#N/A"}},{"$f":"IF(INDIRECT(\"c\" & (VLOOKUP(Switch!$D$60,$F$2:$G$44,2,FALSE)+ROW()-2))=Switch!$D$60,INDIRECT(\"a\" & (VLOOKUP(Switch!$D$60,$F$2:$G$44,2,FALSE)+ROW()-2)),\"\")","v":{"$error":"#N/A"}},{"$f":"IF(INDIRECT(\"c\" & (VLOOKUP(Switch!$D$61,$F$2:$G$44,2,FALSE)+ROW()-2))=Switch!$D$61,INDIRECT(\"a\" & (VLOOKUP(Switch!$D$61,$F$2:$G$44,2,FALSE)+ROW()-2)),\"\")","v":{"$error":"#N/A"}},{"$f":"IF(INDIRECT(\"c\" & (VLOOKUP(Switch!$D$62,$F$2:$G$44,2,FALSE)+ROW()-2))=Switch!$D$62,INDIRECT(\"a\" & (VLOOKUP(Switch!$D$62,$F$2:$G$44,2,FALSE)+ROW()-2)),\"\")","v":{"$error":"#N/A"}},{"$f":"IF(INDIRECT(\"c\" & (VLOOKUP(Switch!$D$63,$F$2:$G$44,2,FALSE)+ROW()-2))=Switch!$D$63,INDIRECT(\"a\" & (VLOOKUP(Switch!$D$63,$F$2:$G$44,2,FALSE)+ROW()-2)),\"\")","v":{"$error":"#N/A"}},{"$f":"IF(INDIRECT(\"c\" & (VLOOKUP(Switch!$D$64,$F$2:$G$44,2,FALSE)+ROW()-2))=Switch!$D$64,INDIRECT(\"a\" & (VLOOKUP(Switch!$D$64,$F$2:$G$44,2,FALSE)+ROW()-2)),\"\")","v":{"$error":"#N/A"}},{"$f":"IF(INDIRECT(\"c\" & (VLOOKUP(Switch!$D$65,$F$2:$G$44,2,FALSE)+ROW()-2))=Switch!$D$65,INDIRECT(\"a\" & (VLOOKUP(Switch!$D$65,$F$2:$G$44,2,FALSE)+ROW()-2)),\"\")","v":{"$error":"#N/A"}},{"$f":"IF(INDIRECT(\"c\" & (VLOOKUP(Switch!$D$66,$F$2:$G$44,2,FALSE)+ROW()-2))=Switch!$D$66,INDIRECT(\"a\" & (VLOOKUP(Switch!$D$66,$F$2:$G$44,2,FALSE)+ROW()-2)),\"\")","v":{"$error":"#N/A"}}]
["Oasis Balanced Fund B","OBUTB","Oasis Crescent Management Company Ltd",{"$f":"ROW()","v":388},null,null,{"$f":"VLOOKUP(F388,$C$2:$D$637,2,FALSE)","v":{"$error":"#N/A"}},{"$f":"IF(INDIRECT(\"c\" & (VLOOKUP(Switch!$D$26,$F$2:$G$44,2,FALSE)+ROW()-2))=Switch!$D$26,INDIRECT(\"a\" & (VLOOKUP(Switch!$D$26,$F$2:$G$44,2,FALSE)+ROW()-2)),\"\")","v":{"$error":"#N/A"}},{"$f":"IF(INDIRECT(\"c\" & (VLOOKUP(Switch!$D$27,$F$2:$G$44,2,FALSE)+ROW()-2))=Switch!$D$27,INDIRECT(\"a\" & (VLOOKUP(Switch!$D$27,$F$2:$G$44,2,FALSE)+ROW()-2)),\"\")","v":{"$error":"#N/A"}},{"$f":"IF(INDIRECT(\"c\" & (VLOOKUP(Switch!$D$28,$F$2:$G$44,2,FALSE)+ROW()-2))=Switch!$D$28,INDIRECT(\"a\" & (VLOOKUP(Switch!$D$28,$F$2:$G$44,2,FALSE)+ROW()-2)),\"\")","v":{"$error":"#N/A"}},{"$f":"IF(INDIRECT(\"c\" & (VLOOKUP(Switch!$D$29,$F$2:$G$44,2,FALSE)+ROW()-2))=Switch!$D$29,INDIRECT(\"a\" & (VLOOKUP(Switch!$D$29,$F$2:$G$44,2,FALSE)+ROW()-2)),\"\")","v":{"$error":"#N/A"}},{"$f":"IF(INDIRECT(\"c\" & (VLOOKUP(Switch!$D$30,$F$2:$G$44,2,FALSE)+ROW()-2))=Switch!$D$30,INDIRECT(\"a\" & (VLOOKUP(Switch!$D$30,$F$2:$G$44,2,FALSE)+ROW()-2)),\"\")","v":{"$error":"#N/A"}},{"$f":"IF(INDIRECT(\"c\" & (VLOOKUP(Switch!$D$31,$F$2:$G$44,2,FALSE)+ROW()-2))=Switch!$D$31,INDIRECT(\"a\" & (VLOOKUP(Switch!$D$31,$F$2:$G$44,2,FALSE)+ROW()-2)),\"\")","v":{"$error":"#N/A"}},{"$f":"IF(INDIRECT(\"c\" & (VLOOKUP(Switch!$D$32,$F$2:$G$44,2,FALSE)+ROW()-2))=Switch!$D$32,INDIRECT(\"a\" & (VLOOKUP(Switch!$D$32,$F$2:$G$44,2,FALSE)+ROW()-2)),\"\")","v":{"$error":"#N/A"}},{"$f":"IF(INDIRECT(\"c\" & (VLOOKUP(Switch!$D$33,$F$2:$G$44,2,FALSE)+ROW()-2))=Switch!$D$33,INDIRECT(\"a\" & (VLOOKUP(Switch!$D$33,$F$2:$G$44,2,FALSE)+ROW()-2)),\"\")","v":{"$error":"#N/A"}},{"$f":"IF(INDIRECT(\"c\" & (VLOOKUP(Switch!$D$34,$F$2:$G$44,2,FALSE)+ROW()-2))=Switch!$D$34,INDIRECT(\"a\" & (VLOOKUP(Switch!$D$34,$F$2:$G$44,2,FALSE)+ROW()-2)),\"\")","v":{"$error":"#N/A"}},{"$f":"IF(INDIRECT(\"c\" & (VLOOKUP(Switch!$D$35,$F$2:$G$44,2,FALSE)+ROW()-2))=Switch!$D$35,INDIRECT(\"a\" & (VLOOKUP(Switch!$D$35,$F$2:$G$44,2,FALSE)+ROW()-2)),\"\")","v":{"$error":"#N/A"}},{"$f":"IF(INDIRECT(\"c\" & (VLOOKUP(Switch!$D$36,$F$2:$G$44,2,FALSE)+ROW()-2))=Switch!$D$36,INDIRECT(\"a\" & (VLOOKUP(Switch!$D$36,$F$2:$G$44,2,FALSE)+ROW()-2)),\"\")","v":{"$error":"#N/A"}},{"$f":"IF(INDIRECT(\"c\" & (VLOOKUP(Switch!$D$37,$F$2:$G$44,2,FALSE)+ROW()-2))=Switch!$D$37,INDIRECT(\"a\" & (VLOOKUP(Switch!$D$37,$F$2:$G$44,2,FALSE)+ROW()-2)),\"\")","v":{"$error":"#N/A"}},{"$f":"IF(INDIRECT(\"c\" & (VLOOKUP(Switch!$D$38,$F$2:$G$44,2,FALSE)+ROW()-2))=Switch!$D$38,INDIRECT(\"a\" & (VLOOKUP(Switch!$D$38,$F$2:$G$44,2,FALSE)+ROW()-2)),\"\")","v":{"$error":"#N/A"}},{"$f":"IF(INDIRECT(\"c\" & (VLOOKUP(Switch!$D$39,$F$2:$G$44,2,FALSE)+ROW()-2))=Switch!$D$39,INDIRECT(\"a\" & (VLOOKUP(Switch!$D$39,$F$2:$G$44,2,FALSE)+ROW()-2)),\"\")","v":{"$error":"#N/A"}},{"$f":"IF(INDIRECT(\"c\" & (VLOOKUP(Switch!$D$40,$F$2:$G$44,2,FALSE)+ROW()-2))=Switch!$D$40,INDIRECT(\"a\" & (VLOOKUP(Switch!$D$40,$F$2:$G$44,2,FALSE)+ROW()-2)),\"\")","v":{"$error":"#N/A"}},{"$f":"IF(INDIRECT(\"c\" & (VLOOKUP(Switch!$D$52,$F$2:$G$44,2,FALSE)+ROW()-2))=Switch!$D$52,INDIRECT(\"a\" & (VLOOKUP(Switch!$D$52,$F$2:$G$44,2,FALSE)+ROW()-2)),\"\")","v":{"$error":"#N/A"}},{"$f":"IF(INDIRECT(\"c\" & (VLOOKUP(Switch!$D$53,$F$2:$G$44,2,FALSE)+ROW()-2))=Switch!$D$53,INDIRECT(\"a\" & (VLOOKUP(Switch!$D$53,$F$2:$G$44,2,FALSE)+ROW()-2)),\"\")","v":{"$error":"#N/A"}},{"$f":"IF(INDIRECT(\"c\" & (VLOOKUP(Switch!$D$54,$F$2:$G$44,2,FALSE)+ROW()-2))=Switch!$D$54,INDIRECT(\"a\" & (VLOOKUP(Switch!$D$54,$F$2:$G$44,2,FALSE)+ROW()-2)),\"\")","v":{"$error":"#N/A"}},{"$f":"IF(INDIRECT(\"c\" & (VLOOKUP(Switch!$D$55,$F$2:$G$44,2,FALSE)+ROW()-2))=Switch!$D$55,INDIRECT(\"a\" & (VLOOKUP(Switch!$D$55,$F$2:$G$44,2,FALSE)+ROW()-2)),\"\")","v":{"$error":"#N/A"}},{"$f":"IF(INDIRECT(\"c\" & (VLOOKUP(Switch!$D$56,$F$2:$G$44,2,FALSE)+ROW()-2))=Switch!$D$56,INDIRECT(\"a\" & (VLOOKUP(Switch!$D$56,$F$2:$G$44,2,FALSE)+ROW()-2)),\"\")","v":{"$error":"#N/A"}},{"$f":"IF(INDIRECT(\"c\" & (VLOOKUP(Switch!$D$57,$F$2:$G$44,2,FALSE)+ROW()-2))=Switch!$D$57,INDIRECT(\"a\" & (VLOOKUP(Switch!$D$57,$F$2:$G$44,2,FALSE)+ROW()-2)),\"\")","v":{"$error":"#N/A"}},{"$f":"IF(INDIRECT(\"c\" & (VLOOKUP(Switch!$D$58,$F$2:$G$44,2,FALSE)+ROW()-2))=Switch!$D$58,INDIRECT(\"a\" & (VLOOKUP(Switch!$D$58,$F$2:$G$44,2,FALSE)+ROW()-2)),\"\")","v":{"$error":"#N/A"}},{"$f":"IF(INDIRECT(\"c\" & (VLOOKUP(Switch!$D$59,$F$2:$G$44,2,FALSE)+ROW()-2))=Switch!$D$59,INDIRECT(\"a\" & (VLOOKUP(Switch!$D$59,$F$2:$G$44,2,FALSE)+ROW()-2)),\"\")","v":{"$error":"#N/A"}},{"$f":"IF(INDIRECT(\"c\" & (VLOOKUP(Switch!$D$60,$F$2:$G$44,2,FALSE)+ROW()-2))=Switch!$D$60,INDIRECT(\"a\" & (VLOOKUP(Switch!$D$60,$F$2:$G$44,2,FALSE)+ROW()-2)),\"\")","v":{"$error":"#N/A"}},{"$f":"IF(INDIRECT(\"c\" & (VLOOKUP(Switch!$D$61,$F$2:$G$44,2,FALSE)+ROW()-2))=Switch!$D$61,INDIRECT(\"a\" & (VLOOKUP(Switch!$D$61,$F$2:$G$44,2,FALSE)+ROW()-2)),\"\")","v":{"$error":"#N/A"}},{"$f":"IF(INDIRECT(\"c\" & (VLOOKUP(Switch!$D$62,$F$2:$G$44,2,FALSE)+ROW()-2))=Switch!$D$62,INDIRECT(\"a\" & (VLOOKUP(Switch!$D$62,$F$2:$G$44,2,FALSE)+ROW()-2)),\"\")","v":{"$error":"#N/A"}},{"$f":"IF(INDIRECT(\"c\" & (VLOOKUP(Switch!$D$63,$F$2:$G$44,2,FALSE)+ROW()-2))=Switch!$D$63,INDIRECT(\"a\" & (VLOOKUP(Switch!$D$63,$F$2:$G$44,2,FALSE)+ROW()-2)),\"\")","v":{"$error":"#N/A"}},{"$f":"IF(INDIRECT(\"c\" & (VLOOKUP(Switch!$D$64,$F$2:$G$44,2,FALSE)+ROW()-2))=Switch!$D$64,INDIRECT(\"a\" & (VLOOKUP(Switch!$D$64,$F$2:$G$44,2,FALSE)+ROW()-2)),\"\")","v":{"$error":"#N/A"}},{"$f":"IF(INDIRECT(\"c\" & (VLOOKUP(Switch!$D$65,$F$2:$G$44,2,FALSE)+ROW()-2))=Switch!$D$65,INDIRECT(\"a\" & (VLOOKUP(Switch!$D$65,$F$2:$G$44,2,FALSE)+ROW()-2)),\"\")","v":{"$error":"#N/A"}},{"$f":"IF(INDIRECT(\"c\" & (VLOOKUP(Switch!$D$66,$F$2:$G$44,2,FALSE)+ROW()-2))=Switch!$D$66,INDIRECT(\"a\" & (VLOOKUP(Switch!$D$66,$F$2:$G$44,2,FALSE)+ROW()-2)),\"\")","v":{"$error":"#N/A"}}]
["Oasis Crescent Balanced High Equity FoF B","OCBHFD","Oasis Crescent Management Company Ltd",{"$f":"ROW()","v":389},null,null,{"$f":"VLOOKUP(F389,$C$2:$D$637,2,FALSE)","v":{"$error":"#N/A"}},{"$f":"IF(INDIRECT(\"c\" & (VLOOKUP(Switch!$D$26,$F$2:$G$44,2,FALSE)+ROW()-2))=Switch!$D$26,INDIRECT(\"a\" & (VLOOKUP(Switch!$D$26,$F$2:$G$44,2,FALSE)+ROW()-2)),\"\")","v":{"$error":"#N/A"}},{"$f":"IF(INDIRECT(\"c\" & (VLOOKUP(Switch!$D$27,$F$2:$G$44,2,FALSE)+ROW()-2))=Switch!$D$27,INDIRECT(\"a\" & (VLOOKUP(Switch!$D$27,$F$2:$G$44,2,FALSE)+ROW()-2)),\"\")","v":{"$error":"#N/A"}},{"$f":"IF(INDIRECT(\"c\" & (VLOOKUP(Switch!$D$28,$F$2:$G$44,2,FALSE)+ROW()-2))=Switch!$D$28,INDIRECT(\"a\" & (VLOOKUP(Switch!$D$28,$F$2:$G$44,2,FALSE)+ROW()-2)),\"\")","v":{"$error":"#N/A"}},{"$f":"IF(INDIRECT(\"c\" & (VLOOKUP(Switch!$D$29,$F$2:$G$44,2,FALSE)+ROW()-2))=Switch!$D$29,INDIRECT(\"a\" & (VLOOKUP(Switch!$D$29,$F$2:$G$44,2,FALSE)+ROW()-2)),\"\")","v":{"$error":"#N/A"}},{"$f":"IF(INDIRECT(\"c\" & (VLOOKUP(Switch!$D$30,$F$2:$G$44,2,FALSE)+ROW()-2))=Switch!$D$30,INDIRECT(\"a\" & (VLOOKUP(Switch!$D$30,$F$2:$G$44,2,FALSE)+ROW()-2)),\"\")","v":{"$error":"#N/A"}},{"$f":"IF(INDIRECT(\"c\" & (VLOOKUP(Switch!$D$31,$F$2:$G$44,2,FALSE)+ROW()-2))=Switch!$D$31,INDIRECT(\"a\" & (VLOOKUP(Switch!$D$31,$F$2:$G$44,2,FALSE)+ROW()-2)),\"\")","v":{"$error":"#N/A"}},{"$f":"IF(INDIRECT(\"c\" & (VLOOKUP(Switch!$D$32,$F$2:$G$44,2,FALSE)+ROW()-2))=Switch!$D$32,INDIRECT(\"a\" & (VLOOKUP(Switch!$D$32,$F$2:$G$44,2,FALSE)+ROW()-2)),\"\")","v":{"$error":"#N/A"}},{"$f":"IF(INDIRECT(\"c\" & (VLOOKUP(Switch!$D$33,$F$2:$G$44,2,FALSE)+ROW()-2))=Switch!$D$33,INDIRECT(\"a\" & (VLOOKUP(Switch!$D$33,$F$2:$G$44,2,FALSE)+ROW()-2)),\"\")","v":{"$error":"#N/A"}},{"$f":"IF(INDIRECT(\"c\" & (VLOOKUP(Switch!$D$34,$F$2:$G$44,2,FALSE)+ROW()-2))=Switch!$D$34,INDIRECT(\"a\" & (VLOOKUP(Switch!$D$34,$F$2:$G$44,2,FALSE)+ROW()-2)),\"\")","v":{"$error":"#N/A"}},{"$f":"IF(INDIRECT(\"c\" & (VLOOKUP(Switch!$D$35,$F$2:$G$44,2,FALSE)+ROW()-2))=Switch!$D$35,INDIRECT(\"a\" & (VLOOKUP(Switch!$D$35,$F$2:$G$44,2,FALSE)+ROW()-2)),\"\")","v":{"$error":"#N/A"}},{"$f":"IF(INDIRECT(\"c\" & (VLOOKUP(Switch!$D$36,$F$2:$G$44,2,FALSE)+ROW()-2))=Switch!$D$36,INDIRECT(\"a\" & (VLOOKUP(Switch!$D$36,$F$2:$G$44,2,FALSE)+ROW()-2)),\"\")","v":{"$error":"#N/A"}},{"$f":"IF(INDIRECT(\"c\" & (VLOOKUP(Switch!$D$37,$F$2:$G$44,2,FALSE)+ROW()-2))=Switch!$D$37,INDIRECT(\"a\" & (VLOOKUP(Switch!$D$37,$F$2:$G$44,2,FALSE)+ROW()-2)),\"\")","v":{"$error":"#N/A"}},{"$f":"IF(INDIRECT(\"c\" & (VLOOKUP(Switch!$D$38,$F$2:$G$44,2,FALSE)+ROW()-2))=Switch!$D$38,INDIRECT(\"a\" & (VLOOKUP(Switch!$D$38,$F$2:$G$44,2,FALSE)+ROW()-2)),\"\")","v":{"$error":"#N/A"}},{"$f":"IF(INDIRECT(\"c\" & (VLOOKUP(Switch!$D$39,$F$2:$G$44,2,FALSE)+ROW()-2))=Switch!$D$39,INDIRECT(\"a\" & (VLOOKUP(Switch!$D$39,$F$2:$G$44,2,FALSE)+ROW()-2)),\"\")","v":{"$error":"#N/A"}},{"$f":"IF(INDIRECT(\"c\" & (VLOOKUP(Switch!$D$40,$F$2:$G$44,2,FALSE)+ROW()-2))=Switch!$D$40,INDIRECT(\"a\" & (VLOOKUP(Switch!$D$40,$F$2:$G$44,2,FALSE)+ROW()-2)),\"\")","v":{"$error":"#N/A"}},{"$f":"IF(INDIRECT(\"c\" & (VLOOKUP(Switch!$D$52,$F$2:$G$44,2,FALSE)+ROW()-2))=Switch!$D$52,INDIRECT(\"a\" & (VLOOKUP(Switch!$D$52,$F$2:$G$44,2,FALSE)+ROW()-2)),\"\")","v":{"$error":"#N/A"}},{"$f":"IF(INDIRECT(\"c\" & (VLOOKUP(Switch!$D$53,$F$2:$G$44,2,FALSE)+ROW()-2))=Switch!$D$53,INDIRECT(\"a\" & (VLOOKUP(Switch!$D$53,$F$2:$G$44,2,FALSE)+ROW()-2)),\"\")","v":{"$error":"#N/A"}},{"$f":"IF(INDIRECT(\"c\" & (VLOOKUP(Switch!$D$54,$F$2:$G$44,2,FALSE)+ROW()-2))=Switch!$D$54,INDIRECT(\"a\" & (VLOOKUP(Switch!$D$54,$F$2:$G$44,2,FALSE)+ROW()-2)),\"\")","v":{"$error":"#N/A"}},{"$f":"IF(INDIRECT(\"c\" & (VLOOKUP(Switch!$D$55,$F$2:$G$44,2,FALSE)+ROW()-2))=Switch!$D$55,INDIRECT(\"a\" & (VLOOKUP(Switch!$D$55,$F$2:$G$44,2,FALSE)+ROW()-2)),\"\")","v":{"$error":"#N/A"}},{"$f":"IF(INDIRECT(\"c\" & (VLOOKUP(Switch!$D$56,$F$2:$G$44,2,FALSE)+ROW()-2))=Switch!$D$56,INDIRECT(\"a\" & (VLOOKUP(Switch!$D$56,$F$2:$G$44,2,FALSE)+ROW()-2)),\"\")","v":{"$error":"#N/A"}},{"$f":"IF(INDIRECT(\"c\" & (VLOOKUP(Switch!$D$57,$F$2:$G$44,2,FALSE)+ROW()-2))=Switch!$D$57,INDIRECT(\"a\" & (VLOOKUP(Switch!$D$57,$F$2:$G$44,2,FALSE)+ROW()-2)),\"\")","v":{"$error":"#N/A"}},{"$f":"IF(INDIRECT(\"c\" & (VLOOKUP(Switch!$D$58,$F$2:$G$44,2,FALSE)+ROW()-2))=Switch!$D$58,INDIRECT(\"a\" & (VLOOKUP(Switch!$D$58,$F$2:$G$44,2,FALSE)+ROW()-2)),\"\")","v":{"$error":"#N/A"}},{"$f":"IF(INDIRECT(\"c\" & (VLOOKUP(Switch!$D$59,$F$2:$G$44,2,FALSE)+ROW()-2))=Switch!$D$59,INDIRECT(\"a\" & (VLOOKUP(Switch!$D$59,$F$2:$G$44,2,FALSE)+ROW()-2)),\"\")","v":{"$error":"#N/A"}},{"$f":"IF(INDIRECT(\"c\" & (VLOOKUP(Switch!$D$60,$F$2:$G$44,2,FALSE)+ROW()-2))=Switch!$D$60,INDIRECT(\"a\" & (VLOOKUP(Switch!$D$60,$F$2:$G$44,2,FALSE)+ROW()-2)),\"\")","v":{"$error":"#N/A"}},{"$f":"IF(INDIRECT(\"c\" & (VLOOKUP(Switch!$D$61,$F$2:$G$44,2,FALSE)+ROW()-2))=Switch!$D$61,INDIRECT(\"a\" & (VLOOKUP(Switch!$D$61,$F$2:$G$44,2,FALSE)+ROW()-2)),\"\")","v":{"$error":"#N/A"}},{"$f":"IF(INDIRECT(\"c\" & (VLOOKUP(Switch!$D$62,$F$2:$G$44,2,FALSE)+ROW()-2))=Switch!$D$62,INDIRECT(\"a\" & (VLOOKUP(Switch!$D$62,$F$2:$G$44,2,FALSE)+ROW()-2)),\"\")","v":{"$error":"#N/A"}},{"$f":"IF(INDIRECT(\"c\" & (VLOOKUP(Switch!$D$63,$F$2:$G$44,2,FALSE)+ROW()-2))=Switch!$D$63,INDIRECT(\"a\" & (VLOOKUP(Switch!$D$63,$F$2:$G$44,2,FALSE)+ROW()-2)),\"\")","v":{"$error":"#N/A"}},{"$f":"IF(INDIRECT(\"c\" & (VLOOKUP(Switch!$D$64,$F$2:$G$44,2,FALSE)+ROW()-2))=Switch!$D$64,INDIRECT(\"a\" & (VLOOKUP(Switch!$D$64,$F$2:$G$44,2,FALSE)+ROW()-2)),\"\")","v":{"$error":"#N/A"}},{"$f":"IF(INDIRECT(\"c\" & (VLOOKUP(Switch!$D$65,$F$2:$G$44,2,FALSE)+ROW()-2))=Switch!$D$65,INDIRECT(\"a\" & (VLOOKUP(Switch!$D$65,$F$2:$G$44,2,FALSE)+ROW()-2)),\"\")","v":{"$error":"#N/A"}},{"$f":"IF(INDIRECT(\"c\" & (VLOOKUP(Switch!$D$66,$F$2:$G$44,2,FALSE)+ROW()-2))=Switch!$D$66,INDIRECT(\"a\" & (VLOOKUP(Switch!$D$66,$F$2:$G$44,2,FALSE)+ROW()-2)),\"\")","v":{"$error":"#N/A"}}]
["Oasis Crescent Balanced Stable FoF B","OCBSFB","Oasis Crescent Management Company Ltd",{"$f":"ROW()","v":390},null,null,{"$f":"VLOOKUP(F390,$C$2:$D$637,2,FALSE)","v":{"$error":"#N/A"}},{"$f":"IF(INDIRECT(\"c\" & (VLOOKUP(Switch!$D$26,$F$2:$G$44,2,FALSE)+ROW()-2))=Switch!$D$26,INDIRECT(\"a\" & (VLOOKUP(Switch!$D$26,$F$2:$G$44,2,FALSE)+ROW()-2)),\"\")","v":{"$error":"#N/A"}},{"$f":"IF(INDIRECT(\"c\" & (VLOOKUP(Switch!$D$27,$F$2:$G$44,2,FALSE)+ROW()-2))=Switch!$D$27,INDIRECT(\"a\" & (VLOOKUP(Switch!$D$27,$F$2:$G$44,2,FALSE)+ROW()-2)),\"\")","v":{"$error":"#N/A"}},{"$f":"IF(INDIRECT(\"c\" & (VLOOKUP(Switch!$D$28,$F$2:$G$44,2,FALSE)+ROW()-2))=Switch!$D$28,INDIRECT(\"a\" & (VLOOKUP(Switch!$D$28,$F$2:$G$44,2,FALSE)+ROW()-2)),\"\")","v":{"$error":"#N/A"}},{"$f":"IF(INDIRECT(\"c\" & (VLOOKUP(Switch!$D$29,$F$2:$G$44,2,FALSE)+ROW()-2))=Switch!$D$29,INDIRECT(\"a\" & (VLOOKUP(Switch!$D$29,$F$2:$G$44,2,FALSE)+ROW()-2)),\"\")","v":{"$error":"#N/A"}},{"$f":"IF(INDIRECT(\"c\" & (VLOOKUP(Switch!$D$30,$F$2:$G$44,2,FALSE)+ROW()-2))=Switch!$D$30,INDIRECT(\"a\" & (VLOOKUP(Switch!$D$30,$F$2:$G$44,2,FALSE)+ROW()-2)),\"\")","v":{"$error":"#N/A"}},{"$f":"IF(INDIRECT(\"c\" & (VLOOKUP(Switch!$D$31,$F$2:$G$44,2,FALSE)+ROW()-2))=Switch!$D$31,INDIRECT(\"a\" & (VLOOKUP(Switch!$D$31,$F$2:$G$44,2,FALSE)+ROW()-2)),\"\")","v":{"$error":"#N/A"}},{"$f":"IF(INDIRECT(\"c\" & (VLOOKUP(Switch!$D$32,$F$2:$G$44,2,FALSE)+ROW()-2))=Switch!$D$32,INDIRECT(\"a\" & (VLOOKUP(Switch!$D$32,$F$2:$G$44,2,FALSE)+ROW()-2)),\"\")","v":{"$error":"#N/A"}},{"$f":"IF(INDIRECT(\"c\" & (VLOOKUP(Switch!$D$33,$F$2:$G$44,2,FALSE)+ROW()-2))=Switch!$D$33,INDIRECT(\"a\" & (VLOOKUP(Switch!$D$33,$F$2:$G$44,2,FALSE)+ROW()-2)),\"\")","v":{"$error":"#N/A"}},{"$f":"IF(INDIRECT(\"c\" & (VLOOKUP(Switch!$D$34,$F$2:$G$44,2,FALSE)+ROW()-2))=Switch!$D$34,INDIRECT(\"a\" & (VLOOKUP(Switch!$D$34,$F$2:$G$44,2,FALSE)+ROW()-2)),\"\")","v":{"$error":"#N/A"}},{"$f":"IF(INDIRECT(\"c\" & (VLOOKUP(Switch!$D$35,$F$2:$G$44,2,FALSE)+ROW()-2))=Switch!$D$35,INDIRECT(\"a\" & (VLOOKUP(Switch!$D$35,$F$2:$G$44,2,FALSE)+ROW()-2)),\"\")","v":{"$error":"#N/A"}},{"$f":"IF(INDIRECT(\"c\" & (VLOOKUP(Switch!$D$36,$F$2:$G$44,2,FALSE)+ROW()-2))=Switch!$D$36,INDIRECT(\"a\" & (VLOOKUP(Switch!$D$36,$F$2:$G$44,2,FALSE)+ROW()-2)),\"\")","v":{"$error":"#N/A"}},{"$f":"IF(INDIRECT(\"c\" & (VLOOKUP(Switch!$D$37,$F$2:$G$44,2,FALSE)+ROW()-2))=Switch!$D$37,INDIRECT(\"a\" & (VLOOKUP(Switch!$D$37,$F$2:$G$44,2,FALSE)+ROW()-2)),\"\")","v":{"$error":"#N/A"}},{"$f":"IF(INDIRECT(\"c\" & (VLOOKUP(Switch!$D$38,$F$2:$G$44,2,FALSE)+ROW()-2))=Switch!$D$38,INDIRECT(\"a\" & (VLOOKUP(Switch!$D$38,$F$2:$G$44,2,FALSE)+ROW()-2)),\"\")","v":{"$error":"#N/A"}},{"$f":"IF(INDIRECT(\"c\" & (VLOOKUP(Switch!$D$39,$F$2:$G$44,2,FALSE)+ROW()-2))=Switch!$D$39,INDIRECT(\"a\" & (VLOOKUP(Switch!$D$39,$F$2:$G$44,2,FALSE)+ROW()-2)),\"\")","v":{"$error":"#N/A"}},{"$f":"IF(INDIRECT(\"c\" & (VLOOKUP(Switch!$D$40,$F$2:$G$44,2,FALSE)+ROW()-2))=Switch!$D$40,INDIRECT(\"a\" & (VLOOKUP(Switch!$D$40,$F$2:$G$44,2,FALSE)+ROW()-2)),\"\")","v":{"$error":"#N/A"}},{"$f":"IF(INDIRECT(\"c\" & (VLOOKUP(Switch!$D$52,$F$2:$G$44,2,FALSE)+ROW()-2))=Switch!$D$52,INDIRECT(\"a\" & (VLOOKUP(Switch!$D$52,$F$2:$G$44,2,FALSE)+ROW()-2)),\"\")","v":{"$error":"#N/A"}},{"$f":"IF(INDIRECT(\"c\" & (VLOOKUP(Switch!$D$53,$F$2:$G$44,2,FALSE)+ROW()-2))=Switch!$D$53,INDIRECT(\"a\" & (VLOOKUP(Switch!$D$53,$F$2:$G$44,2,FALSE)+ROW()-2)),\"\")","v":{"$error":"#N/A"}},{"$f":"IF(INDIRECT(\"c\" & (VLOOKUP(Switch!$D$54,$F$2:$G$44,2,FALSE)+ROW()-2))=Switch!$D$54,INDIRECT(\"a\" & (VLOOKUP(Switch!$D$54,$F$2:$G$44,2,FALSE)+ROW()-2)),\"\")","v":{"$error":"#N/A"}},{"$f":"IF(INDIRECT(\"c\" & (VLOOKUP(Switch!$D$55,$F$2:$G$44,2,FALSE)+ROW()-2))=Switch!$D$55,INDIRECT(\"a\" & (VLOOKUP(Switch!$D$55,$F$2:$G$44,2,FALSE)+ROW()-2)),\"\")","v":{"$error":"#N/A"}},{"$f":"IF(INDIRECT(\"c\" & (VLOOKUP(Switch!$D$56,$F$2:$G$44,2,FALSE)+ROW()-2))=Switch!$D$56,INDIRECT(\"a\" & (VLOOKUP(Switch!$D$56,$F$2:$G$44,2,FALSE)+ROW()-2)),\"\")","v":{"$error":"#N/A"}},{"$f":"IF(INDIRECT(\"c\" & (VLOOKUP(Switch!$D$57,$F$2:$G$44,2,FALSE)+ROW()-2))=Switch!$D$57,INDIRECT(\"a\" & (VLOOKUP(Switch!$D$57,$F$2:$G$44,2,FALSE)+ROW()-2)),\"\")","v":{"$error":"#N/A"}},{"$f":"IF(INDIRECT(\"c\" & (VLOOKUP(Switch!$D$58,$F$2:$G$44,2,FALSE)+ROW()-2))=Switch!$D$58,INDIRECT(\"a\" & (VLOOKUP(Switch!$D$58,$F$2:$G$44,2,FALSE)+ROW()-2)),\"\")","v":{"$error":"#N/A"}},{"$f":"IF(INDIRECT(\"c\" & (VLOOKUP(Switch!$D$59,$F$2:$G$44,2,FALSE)+ROW()-2))=Switch!$D$59,INDIRECT(\"a\" & (VLOOKUP(Switch!$D$59,$F$2:$G$44,2,FALSE)+ROW()-2)),\"\")","v":{"$error":"#N/A"}},{"$f":"IF(INDIRECT(\"c\" & (VLOOKUP(Switch!$D$60,$F$2:$G$44,2,FALSE)+ROW()-2))=Switch!$D$60,INDIRECT(\"a\" & (VLOOKUP(Switch!$D$60,$F$2:$G$44,2,FALSE)+ROW()-2)),\"\")","v":{"$error":"#N/A"}},{"$f":"IF(INDIRECT(\"c\" & (VLOOKUP(Switch!$D$61,$F$2:$G$44,2,FALSE)+ROW()-2))=Switch!$D$61,INDIRECT(\"a\" & (VLOOKUP(Switch!$D$61,$F$2:$G$44,2,FALSE)+ROW()-2)),\"\")","v":{"$error":"#N/A"}},{"$f":"IF(INDIRECT(\"c\" & (VLOOKUP(Switch!$D$62,$F$2:$G$44,2,FALSE)+ROW()-2))=Switch!$D$62,INDIRECT(\"a\" & (VLOOKUP(Switch!$D$62,$F$2:$G$44,2,FALSE)+ROW()-2)),\"\")","v":{"$error":"#N/A"}},{"$f":"IF(INDIRECT(\"c\" & (VLOOKUP(Switch!$D$63,$F$2:$G$44,2,FALSE)+ROW()-2))=Switch!$D$63,INDIRECT(\"a\" & (VLOOKUP(Switch!$D$63,$F$2:$G$44,2,FALSE)+ROW()-2)),\"\")","v":{"$error":"#N/A"}},{"$f":"IF(INDIRECT(\"c\" & (VLOOKUP(Switch!$D$64,$F$2:$G$44,2,FALSE)+ROW()-2))=Switch!$D$64,INDIRECT(\"a\" & (VLOOKUP(Switch!$D$64,$F$2:$G$44,2,FALSE)+ROW()-2)),\"\")","v":{"$error":"#N/A"}},{"$f":"IF(INDIRECT(\"c\" & (VLOOKUP(Switch!$D$65,$F$2:$G$44,2,FALSE)+ROW()-2))=Switch!$D$65,INDIRECT(\"a\" & (VLOOKUP(Switch!$D$65,$F$2:$G$44,2,FALSE)+ROW()-2)),\"\")","v":{"$error":"#N/A"}},{"$f":"IF(INDIRECT(\"c\" & (VLOOKUP(Switch!$D$66,$F$2:$G$44,2,FALSE)+ROW()-2))=Switch!$D$66,INDIRECT(\"a\" & (VLOOKUP(Switch!$D$66,$F$2:$G$44,2,FALSE)+ROW()-2)),\"\")","v":{"$error":"#N/A"}}]
["Oasis Crescent Equity Fund B","OCEFB","Oasis Crescent Management Company Ltd",{"$f":"ROW()","v":391},null,null,{"$f":"VLOOKUP(F391,$C$2:$D$637,2,FALSE)","v":{"$error":"#N/A"}},{"$f":"IF(INDIRECT(\"c\" & (VLOOKUP(Switch!$D$26,$F$2:$G$44,2,FALSE)+ROW()-2))=Switch!$D$26,INDIRECT(\"a\" & (VLOOKUP(Switch!$D$26,$F$2:$G$44,2,FALSE)+ROW()-2)),\"\")","v":{"$error":"#N/A"}},{"$f":"IF(INDIRECT(\"c\" & (VLOOKUP(Switch!$D$27,$F$2:$G$44,2,FALSE)+ROW()-2))=Switch!$D$27,INDIRECT(\"a\" & (VLOOKUP(Switch!$D$27,$F$2:$G$44,2,FALSE)+ROW()-2)),\"\")","v":{"$error":"#N/A"}},{"$f":"IF(INDIRECT(\"c\" & (VLOOKUP(Switch!$D$28,$F$2:$G$44,2,FALSE)+ROW()-2))=Switch!$D$28,INDIRECT(\"a\" & (VLOOKUP(Switch!$D$28,$F$2:$G$44,2,FALSE)+ROW()-2)),\"\")","v":{"$error":"#N/A"}},{"$f":"IF(INDIRECT(\"c\" & (VLOOKUP(Switch!$D$29,$F$2:$G$44,2,FALSE)+ROW()-2))=Switch!$D$29,INDIRECT(\"a\" & (VLOOKUP(Switch!$D$29,$F$2:$G$44,2,FALSE)+ROW()-2)),\"\")","v":{"$error":"#N/A"}},{"$f":"IF(INDIRECT(\"c\" & (VLOOKUP(Switch!$D$30,$F$2:$G$44,2,FALSE)+ROW()-2))=Switch!$D$30,INDIRECT(\"a\" & (VLOOKUP(Switch!$D$30,$F$2:$G$44,2,FALSE)+ROW()-2)),\"\")","v":{"$error":"#N/A"}},{"$f":"IF(INDIRECT(\"c\" & (VLOOKUP(Switch!$D$31,$F$2:$G$44,2,FALSE)+ROW()-2))=Switch!$D$31,INDIRECT(\"a\" & (VLOOKUP(Switch!$D$31,$F$2:$G$44,2,FALSE)+ROW()-2)),\"\")","v":{"$error":"#N/A"}},{"$f":"IF(INDIRECT(\"c\" & (VLOOKUP(Switch!$D$32,$F$2:$G$44,2,FALSE)+ROW()-2))=Switch!$D$32,INDIRECT(\"a\" & (VLOOKUP(Switch!$D$32,$F$2:$G$44,2,FALSE)+ROW()-2)),\"\")","v":{"$error":"#N/A"}},{"$f":"IF(INDIRECT(\"c\" & (VLOOKUP(Switch!$D$33,$F$2:$G$44,2,FALSE)+ROW()-2))=Switch!$D$33,INDIRECT(\"a\" & (VLOOKUP(Switch!$D$33,$F$2:$G$44,2,FALSE)+ROW()-2)),\"\")","v":{"$error":"#N/A"}},{"$f":"IF(INDIRECT(\"c\" & (VLOOKUP(Switch!$D$34,$F$2:$G$44,2,FALSE)+ROW()-2))=Switch!$D$34,INDIRECT(\"a\" & (VLOOKUP(Switch!$D$34,$F$2:$G$44,2,FALSE)+ROW()-2)),\"\")","v":{"$error":"#N/A"}},{"$f":"IF(INDIRECT(\"c\" & (VLOOKUP(Switch!$D$35,$F$2:$G$44,2,FALSE)+ROW()-2))=Switch!$D$35,INDIRECT(\"a\" & (VLOOKUP(Switch!$D$35,$F$2:$G$44,2,FALSE)+ROW()-2)),\"\")","v":{"$error":"#N/A"}},{"$f":"IF(INDIRECT(\"c\" & (VLOOKUP(Switch!$D$36,$F$2:$G$44,2,FALSE)+ROW()-2))=Switch!$D$36,INDIRECT(\"a\" & (VLOOKUP(Switch!$D$36,$F$2:$G$44,2,FALSE)+ROW()-2)),\"\")","v":{"$error":"#N/A"}},{"$f":"IF(INDIRECT(\"c\" & (VLOOKUP(Switch!$D$37,$F$2:$G$44,2,FALSE)+ROW()-2))=Switch!$D$37,INDIRECT(\"a\" & (VLOOKUP(Switch!$D$37,$F$2:$G$44,2,FALSE)+ROW()-2)),\"\")","v":{"$error":"#N/A"}},{"$f":"IF(INDIRECT(\"c\" & (VLOOKUP(Switch!$D$38,$F$2:$G$44,2,FALSE)+ROW()-2))=Switch!$D$38,INDIRECT(\"a\" & (VLOOKUP(Switch!$D$38,$F$2:$G$44,2,FALSE)+ROW()-2)),\"\")","v":{"$error":"#N/A"}},{"$f":"IF(INDIRECT(\"c\" & (VLOOKUP(Switch!$D$39,$F$2:$G$44,2,FALSE)+ROW()-2))=Switch!$D$39,INDIRECT(\"a\" & (VLOOKUP(Switch!$D$39,$F$2:$G$44,2,FALSE)+ROW()-2)),\"\")","v":{"$error":"#N/A"}},{"$f":"IF(INDIRECT(\"c\" & (VLOOKUP(Switch!$D$40,$F$2:$G$44,2,FALSE)+ROW()-2))=Switch!$D$40,INDIRECT(\"a\" & (VLOOKUP(Switch!$D$40,$F$2:$G$44,2,FALSE)+ROW()-2)),\"\")","v":{"$error":"#N/A"}},{"$f":"IF(INDIRECT(\"c\" & (VLOOKUP(Switch!$D$52,$F$2:$G$44,2,FALSE)+ROW()-2))=Switch!$D$52,INDIRECT(\"a\" & (VLOOKUP(Switch!$D$52,$F$2:$G$44,2,FALSE)+ROW()-2)),\"\")","v":{"$error":"#N/A"}},{"$f":"IF(INDIRECT(\"c\" & (VLOOKUP(Switch!$D$53,$F$2:$G$44,2,FALSE)+ROW()-2))=Switch!$D$53,INDIRECT(\"a\" & (VLOOKUP(Switch!$D$53,$F$2:$G$44,2,FALSE)+ROW()-2)),\"\")","v":{"$error":"#N/A"}},{"$f":"IF(INDIRECT(\"c\" & (VLOOKUP(Switch!$D$54,$F$2:$G$44,2,FALSE)+ROW()-2))=Switch!$D$54,INDIRECT(\"a\" & (VLOOKUP(Switch!$D$54,$F$2:$G$44,2,FALSE)+ROW()-2)),\"\")","v":{"$error":"#N/A"}},{"$f":"IF(INDIRECT(\"c\" & (VLOOKUP(Switch!$D$55,$F$2:$G$44,2,FALSE)+ROW()-2))=Switch!$D$55,INDIRECT(\"a\" & (VLOOKUP(Switch!$D$55,$F$2:$G$44,2,FALSE)+ROW()-2)),\"\")","v":{"$error":"#N/A"}},{"$f":"IF(INDIRECT(\"c\" & (VLOOKUP(Switch!$D$56,$F$2:$G$44,2,FALSE)+ROW()-2))=Switch!$D$56,INDIRECT(\"a\" & (VLOOKUP(Switch!$D$56,$F$2:$G$44,2,FALSE)+ROW()-2)),\"\")","v":{"$error":"#N/A"}},{"$f":"IF(INDIRECT(\"c\" & (VLOOKUP(Switch!$D$57,$F$2:$G$44,2,FALSE)+ROW()-2))=Switch!$D$57,INDIRECT(\"a\" & (VLOOKUP(Switch!$D$57,$F$2:$G$44,2,FALSE)+ROW()-2)),\"\")","v":{"$error":"#N/A"}},{"$f":"IF(INDIRECT(\"c\" & (VLOOKUP(Switch!$D$58,$F$2:$G$44,2,FALSE)+ROW()-2))=Switch!$D$58,INDIRECT(\"a\" & (VLOOKUP(Switch!$D$58,$F$2:$G$44,2,FALSE)+ROW()-2)),\"\")","v":{"$error":"#N/A"}},{"$f":"IF(INDIRECT(\"c\" & (VLOOKUP(Switch!$D$59,$F$2:$G$44,2,FALSE)+ROW()-2))=Switch!$D$59,INDIRECT(\"a\" & (VLOOKUP(Switch!$D$59,$F$2:$G$44,2,FALSE)+ROW()-2)),\"\")","v":{"$error":"#N/A"}},{"$f":"IF(INDIRECT(\"c\" & (VLOOKUP(Switch!$D$60,$F$2:$G$44,2,FALSE)+ROW()-2))=Switch!$D$60,INDIRECT(\"a\" & (VLOOKUP(Switch!$D$60,$F$2:$G$44,2,FALSE)+ROW()-2)),\"\")","v":{"$error":"#N/A"}},{"$f":"IF(INDIRECT(\"c\" & (VLOOKUP(Switch!$D$61,$F$2:$G$44,2,FALSE)+ROW()-2))=Switch!$D$61,INDIRECT(\"a\" & (VLOOKUP(Switch!$D$61,$F$2:$G$44,2,FALSE)+ROW()-2)),\"\")","v":{"$error":"#N/A"}},{"$f":"IF(INDIRECT(\"c\" & (VLOOKUP(Switch!$D$62,$F$2:$G$44,2,FALSE)+ROW()-2))=Switch!$D$62,INDIRECT(\"a\" & (VLOOKUP(Switch!$D$62,$F$2:$G$44,2,FALSE)+ROW()-2)),\"\")","v":{"$error":"#N/A"}},{"$f":"IF(INDIRECT(\"c\" & (VLOOKUP(Switch!$D$63,$F$2:$G$44,2,FALSE)+ROW()-2))=Switch!$D$63,INDIRECT(\"a\" & (VLOOKUP(Switch!$D$63,$F$2:$G$44,2,FALSE)+ROW()-2)),\"\")","v":{"$error":"#N/A"}},{"$f":"IF(INDIRECT(\"c\" & (VLOOKUP(Switch!$D$64,$F$2:$G$44,2,FALSE)+ROW()-2))=Switch!$D$64,INDIRECT(\"a\" & (VLOOKUP(Switch!$D$64,$F$2:$G$44,2,FALSE)+ROW()-2)),\"\")","v":{"$error":"#N/A"}},{"$f":"IF(INDIRECT(\"c\" & (VLOOKUP(Switch!$D$65,$F$2:$G$44,2,FALSE)+ROW()-2))=Switch!$D$65,INDIRECT(\"a\" & (VLOOKUP(Switch!$D$65,$F$2:$G$44,2,FALSE)+ROW()-2)),\"\")","v":{"$error":"#N/A"}},{"$f":"IF(INDIRECT(\"c\" & (VLOOKUP(Switch!$D$66,$F$2:$G$44,2,FALSE)+ROW()-2))=Switch!$D$66,INDIRECT(\"a\" & (VLOOKUP(Switch!$D$66,$F$2:$G$44,2,FALSE)+ROW()-2)),\"\")","v":{"$error":"#N/A"}}]
["Oasis Crescent Income Fund B","OCINFB","Oasis Crescent Management Company Ltd",{"$f":"ROW()","v":392},null,null,{"$f":"VLOOKUP(F392,$C$2:$D$637,2,FALSE)","v":{"$error":"#N/A"}},{"$f":"IF(INDIRECT(\"c\" & (VLOOKUP(Switch!$D$26,$F$2:$G$44,2,FALSE)+ROW()-2))=Switch!$D$26,INDIRECT(\"a\" & (VLOOKUP(Switch!$D$26,$F$2:$G$44,2,FALSE)+ROW()-2)),\"\")","v":{"$error":"#N/A"}},{"$f":"IF(INDIRECT(\"c\" & (VLOOKUP(Switch!$D$27,$F$2:$G$44,2,FALSE)+ROW()-2))=Switch!$D$27,INDIRECT(\"a\" & (VLOOKUP(Switch!$D$27,$F$2:$G$44,2,FALSE)+ROW()-2)),\"\")","v":{"$error":"#N/A"}},{"$f":"IF(INDIRECT(\"c\" & (VLOOKUP(Switch!$D$28,$F$2:$G$44,2,FALSE)+ROW()-2))=Switch!$D$28,INDIRECT(\"a\" & (VLOOKUP(Switch!$D$28,$F$2:$G$44,2,FALSE)+ROW()-2)),\"\")","v":{"$error":"#N/A"}},{"$f":"IF(INDIRECT(\"c\" & (VLOOKUP(Switch!$D$29,$F$2:$G$44,2,FALSE)+ROW()-2))=Switch!$D$29,INDIRECT(\"a\" & (VLOOKUP(Switch!$D$29,$F$2:$G$44,2,FALSE)+ROW()-2)),\"\")","v":{"$error":"#N/A"}},{"$f":"IF(INDIRECT(\"c\" & (VLOOKUP(Switch!$D$30,$F$2:$G$44,2,FALSE)+ROW()-2))=Switch!$D$30,INDIRECT(\"a\" & (VLOOKUP(Switch!$D$30,$F$2:$G$44,2,FALSE)+ROW()-2)),\"\")","v":{"$error":"#N/A"}},{"$f":"IF(INDIRECT(\"c\" & (VLOOKUP(Switch!$D$31,$F$2:$G$44,2,FALSE)+ROW()-2))=Switch!$D$31,INDIRECT(\"a\" & (VLOOKUP(Switch!$D$31,$F$2:$G$44,2,FALSE)+ROW()-2)),\"\")","v":{"$error":"#N/A"}},{"$f":"IF(INDIRECT(\"c\" & (VLOOKUP(Switch!$D$32,$F$2:$G$44,2,FALSE)+ROW()-2))=Switch!$D$32,INDIRECT(\"a\" & (VLOOKUP(Switch!$D$32,$F$2:$G$44,2,FALSE)+ROW()-2)),\"\")","v":{"$error":"#N/A"}},{"$f":"IF(INDIRECT(\"c\" & (VLOOKUP(Switch!$D$33,$F$2:$G$44,2,FALSE)+ROW()-2))=Switch!$D$33,INDIRECT(\"a\" & (VLOOKUP(Switch!$D$33,$F$2:$G$44,2,FALSE)+ROW()-2)),\"\")","v":{"$error":"#N/A"}},{"$f":"IF(INDIRECT(\"c\" & (VLOOKUP(Switch!$D$34,$F$2:$G$44,2,FALSE)+ROW()-2))=Switch!$D$34,INDIRECT(\"a\" & (VLOOKUP(Switch!$D$34,$F$2:$G$44,2,FALSE)+ROW()-2)),\"\")","v":{"$error":"#N/A"}},{"$f":"IF(INDIRECT(\"c\" & (VLOOKUP(Switch!$D$35,$F$2:$G$44,2,FALSE)+ROW()-2))=Switch!$D$35,INDIRECT(\"a\" & (VLOOKUP(Switch!$D$35,$F$2:$G$44,2,FALSE)+ROW()-2)),\"\")","v":{"$error":"#N/A"}},{"$f":"IF(INDIRECT(\"c\" & (VLOOKUP(Switch!$D$36,$F$2:$G$44,2,FALSE)+ROW()-2))=Switch!$D$36,INDIRECT(\"a\" & (VLOOKUP(Switch!$D$36,$F$2:$G$44,2,FALSE)+ROW()-2)),\"\")","v":{"$error":"#N/A"}},{"$f":"IF(INDIRECT(\"c\" & (VLOOKUP(Switch!$D$37,$F$2:$G$44,2,FALSE)+ROW()-2))=Switch!$D$37,INDIRECT(\"a\" & (VLOOKUP(Switch!$D$37,$F$2:$G$44,2,FALSE)+ROW()-2)),\"\")","v":{"$error":"#N/A"}},{"$f":"IF(INDIRECT(\"c\" & (VLOOKUP(Switch!$D$38,$F$2:$G$44,2,FALSE)+ROW()-2))=Switch!$D$38,INDIRECT(\"a\" & (VLOOKUP(Switch!$D$38,$F$2:$G$44,2,FALSE)+ROW()-2)),\"\")","v":{"$error":"#N/A"}},{"$f":"IF(INDIRECT(\"c\" & (VLOOKUP(Switch!$D$39,$F$2:$G$44,2,FALSE)+ROW()-2))=Switch!$D$39,INDIRECT(\"a\" & (VLOOKUP(Switch!$D$39,$F$2:$G$44,2,FALSE)+ROW()-2)),\"\")","v":{"$error":"#N/A"}},{"$f":"IF(INDIRECT(\"c\" & (VLOOKUP(Switch!$D$40,$F$2:$G$44,2,FALSE)+ROW()-2))=Switch!$D$40,INDIRECT(\"a\" & (VLOOKUP(Switch!$D$40,$F$2:$G$44,2,FALSE)+ROW()-2)),\"\")","v":{"$error":"#N/A"}},{"$f":"IF(INDIRECT(\"c\" & (VLOOKUP(Switch!$D$52,$F$2:$G$44,2,FALSE)+ROW()-2))=Switch!$D$52,INDIRECT(\"a\" & (VLOOKUP(Switch!$D$52,$F$2:$G$44,2,FALSE)+ROW()-2)),\"\")","v":{"$error":"#N/A"}},{"$f":"IF(INDIRECT(\"c\" & (VLOOKUP(Switch!$D$53,$F$2:$G$44,2,FALSE)+ROW()-2))=Switch!$D$53,INDIRECT(\"a\" & (VLOOKUP(Switch!$D$53,$F$2:$G$44,2,FALSE)+ROW()-2)),\"\")","v":{"$error":"#N/A"}},{"$f":"IF(INDIRECT(\"c\" & (VLOOKUP(Switch!$D$54,$F$2:$G$44,2,FALSE)+ROW()-2))=Switch!$D$54,INDIRECT(\"a\" & (VLOOKUP(Switch!$D$54,$F$2:$G$44,2,FALSE)+ROW()-2)),\"\")","v":{"$error":"#N/A"}},{"$f":"IF(INDIRECT(\"c\" & (VLOOKUP(Switch!$D$55,$F$2:$G$44,2,FALSE)+ROW()-2))=Switch!$D$55,INDIRECT(\"a\" & (VLOOKUP(Switch!$D$55,$F$2:$G$44,2,FALSE)+ROW()-2)),\"\")","v":{"$error":"#N/A"}},{"$f":"IF(INDIRECT(\"c\" & (VLOOKUP(Switch!$D$56,$F$2:$G$44,2,FALSE)+ROW()-2))=Switch!$D$56,INDIRECT(\"a\" & (VLOOKUP(Switch!$D$56,$F$2:$G$44,2,FALSE)+ROW()-2)),\"\")","v":{"$error":"#N/A"}},{"$f":"IF(INDIRECT(\"c\" & (VLOOKUP(Switch!$D$57,$F$2:$G$44,2,FALSE)+ROW()-2))=Switch!$D$57,INDIRECT(\"a\" & (VLOOKUP(Switch!$D$57,$F$2:$G$44,2,FALSE)+ROW()-2)),\"\")","v":{"$error":"#N/A"}},{"$f":"IF(INDIRECT(\"c\" & (VLOOKUP(Switch!$D$58,$F$2:$G$44,2,FALSE)+ROW()-2))=Switch!$D$58,INDIRECT(\"a\" & (VLOOKUP(Switch!$D$58,$F$2:$G$44,2,FALSE)+ROW()-2)),\"\")","v":{"$error":"#N/A"}},{"$f":"IF(INDIRECT(\"c\" & (VLOOKUP(Switch!$D$59,$F$2:$G$44,2,FALSE)+ROW()-2))=Switch!$D$59,INDIRECT(\"a\" & (VLOOKUP(Switch!$D$59,$F$2:$G$44,2,FALSE)+ROW()-2)),\"\")","v":{"$error":"#N/A"}},{"$f":"IF(INDIRECT(\"c\" & (VLOOKUP(Switch!$D$60,$F$2:$G$44,2,FALSE)+ROW()-2))=Switch!$D$60,INDIRECT(\"a\" & (VLOOKUP(Switch!$D$60,$F$2:$G$44,2,FALSE)+ROW()-2)),\"\")","v":{"$error":"#N/A"}},{"$f":"IF(INDIRECT(\"c\" & (VLOOKUP(Switch!$D$61,$F$2:$G$44,2,FALSE)+ROW()-2))=Switch!$D$61,INDIRECT(\"a\" & (VLOOKUP(Switch!$D$61,$F$2:$G$44,2,FALSE)+ROW()-2)),\"\")","v":{"$error":"#N/A"}},{"$f":"IF(INDIRECT(\"c\" & (VLOOKUP(Switch!$D$62,$F$2:$G$44,2,FALSE)+ROW()-2))=Switch!$D$62,INDIRECT(\"a\" & (VLOOKUP(Switch!$D$62,$F$2:$G$44,2,FALSE)+ROW()-2)),\"\")","v":{"$error":"#N/A"}},{"$f":"IF(INDIRECT(\"c\" & (VLOOKUP(Switch!$D$63,$F$2:$G$44,2,FALSE)+ROW()-2))=Switch!$D$63,INDIRECT(\"a\" & (VLOOKUP(Switch!$D$63,$F$2:$G$44,2,FALSE)+ROW()-2)),\"\")","v":{"$error":"#N/A"}},{"$f":"IF(INDIRECT(\"c\" & (VLOOKUP(Switch!$D$64,$F$2:$G$44,2,FALSE)+ROW()-2))=Switch!$D$64,INDIRECT(\"a\" & (VLOOKUP(Switch!$D$64,$F$2:$G$44,2,FALSE)+ROW()-2)),\"\")","v":{"$error":"#N/A"}},{"$f":"IF(INDIRECT(\"c\" & (VLOOKUP(Switch!$D$65,$F$2:$G$44,2,FALSE)+ROW()-2))=Switch!$D$65,INDIRECT(\"a\" & (VLOOKUP(Switch!$D$65,$F$2:$G$44,2,FALSE)+ROW()-2)),\"\")","v":{"$error":"#N/A"}},{"$f":"IF(INDIRECT(\"c\" & (VLOOKUP(Switch!$D$66,$F$2:$G$44,2,FALSE)+ROW()-2))=Switch!$D$66,INDIRECT(\"a\" & (VLOOKUP(Switch!$D$66,$F$2:$G$44,2,FALSE)+ROW()-2)),\"\")","v":{"$error":"#N/A"}}]
["Oasis Crescent Inter Property Equity Feeder Fund B","OCIPED","Oasis Crescent Management Company Ltd",{"$f":"ROW()","v":393},null,null,{"$f":"VLOOKUP(F393,$C$2:$D$637,2,FALSE)","v":{"$error":"#N/A"}},{"$f":"IF(INDIRECT(\"c\" & (VLOOKUP(Switch!$D$26,$F$2:$G$44,2,FALSE)+ROW()-2))=Switch!$D$26,INDIRECT(\"a\" & (VLOOKUP(Switch!$D$26,$F$2:$G$44,2,FALSE)+ROW()-2)),\"\")","v":{"$error":"#N/A"}},{"$f":"IF(INDIRECT(\"c\" & (VLOOKUP(Switch!$D$27,$F$2:$G$44,2,FALSE)+ROW()-2))=Switch!$D$27,INDIRECT(\"a\" & (VLOOKUP(Switch!$D$27,$F$2:$G$44,2,FALSE)+ROW()-2)),\"\")","v":{"$error":"#N/A"}},{"$f":"IF(INDIRECT(\"c\" & (VLOOKUP(Switch!$D$28,$F$2:$G$44,2,FALSE)+ROW()-2))=Switch!$D$28,INDIRECT(\"a\" & (VLOOKUP(Switch!$D$28,$F$2:$G$44,2,FALSE)+ROW()-2)),\"\")","v":{"$error":"#N/A"}},{"$f":"IF(INDIRECT(\"c\" & (VLOOKUP(Switch!$D$29,$F$2:$G$44,2,FALSE)+ROW()-2))=Switch!$D$29,INDIRECT(\"a\" & (VLOOKUP(Switch!$D$29,$F$2:$G$44,2,FALSE)+ROW()-2)),\"\")","v":{"$error":"#N/A"}},{"$f":"IF(INDIRECT(\"c\" & (VLOOKUP(Switch!$D$30,$F$2:$G$44,2,FALSE)+ROW()-2))=Switch!$D$30,INDIRECT(\"a\" & (VLOOKUP(Switch!$D$30,$F$2:$G$44,2,FALSE)+ROW()-2)),\"\")","v":{"$error":"#N/A"}},{"$f":"IF(INDIRECT(\"c\" & (VLOOKUP(Switch!$D$31,$F$2:$G$44,2,FALSE)+ROW()-2))=Switch!$D$31,INDIRECT(\"a\" & (VLOOKUP(Switch!$D$31,$F$2:$G$44,2,FALSE)+ROW()-2)),\"\")","v":{"$error":"#N/A"}},{"$f":"IF(INDIRECT(\"c\" & (VLOOKUP(Switch!$D$32,$F$2:$G$44,2,FALSE)+ROW()-2))=Switch!$D$32,INDIRECT(\"a\" & (VLOOKUP(Switch!$D$32,$F$2:$G$44,2,FALSE)+ROW()-2)),\"\")","v":{"$error":"#N/A"}},{"$f":"IF(INDIRECT(\"c\" & (VLOOKUP(Switch!$D$33,$F$2:$G$44,2,FALSE)+ROW()-2))=Switch!$D$33,INDIRECT(\"a\" & (VLOOKUP(Switch!$D$33,$F$2:$G$44,2,FALSE)+ROW()-2)),\"\")","v":{"$error":"#N/A"}},{"$f":"IF(INDIRECT(\"c\" & (VLOOKUP(Switch!$D$34,$F$2:$G$44,2,FALSE)+ROW()-2))=Switch!$D$34,INDIRECT(\"a\" & (VLOOKUP(Switch!$D$34,$F$2:$G$44,2,FALSE)+ROW()-2)),\"\")","v":{"$error":"#N/A"}},{"$f":"IF(INDIRECT(\"c\" & (VLOOKUP(Switch!$D$35,$F$2:$G$44,2,FALSE)+ROW()-2))=Switch!$D$35,INDIRECT(\"a\" & (VLOOKUP(Switch!$D$35,$F$2:$G$44,2,FALSE)+ROW()-2)),\"\")","v":{"$error":"#N/A"}},{"$f":"IF(INDIRECT(\"c\" & (VLOOKUP(Switch!$D$36,$F$2:$G$44,2,FALSE)+ROW()-2))=Switch!$D$36,INDIRECT(\"a\" & (VLOOKUP(Switch!$D$36,$F$2:$G$44,2,FALSE)+ROW()-2)),\"\")","v":{"$error":"#N/A"}},{"$f":"IF(INDIRECT(\"c\" & (VLOOKUP(Switch!$D$37,$F$2:$G$44,2,FALSE)+ROW()-2))=Switch!$D$37,INDIRECT(\"a\" & (VLOOKUP(Switch!$D$37,$F$2:$G$44,2,FALSE)+ROW()-2)),\"\")","v":{"$error":"#N/A"}},{"$f":"IF(INDIRECT(\"c\" & (VLOOKUP(Switch!$D$38,$F$2:$G$44,2,FALSE)+ROW()-2))=Switch!$D$38,INDIRECT(\"a\" & (VLOOKUP(Switch!$D$38,$F$2:$G$44,2,FALSE)+ROW()-2)),\"\")","v":{"$error":"#N/A"}},{"$f":"IF(INDIRECT(\"c\" & (VLOOKUP(Switch!$D$39,$F$2:$G$44,2,FALSE)+ROW()-2))=Switch!$D$39,INDIRECT(\"a\" & (VLOOKUP(Switch!$D$39,$F$2:$G$44,2,FALSE)+ROW()-2)),\"\")","v":{"$error":"#N/A"}},{"$f":"IF(INDIRECT(\"c\" & (VLOOKUP(Switch!$D$40,$F$2:$G$44,2,FALSE)+ROW()-2))=Switch!$D$40,INDIRECT(\"a\" & (VLOOKUP(Switch!$D$40,$F$2:$G$44,2,FALSE)+ROW()-2)),\"\")","v":{"$error":"#N/A"}},{"$f":"IF(INDIRECT(\"c\" & (VLOOKUP(Switch!$D$52,$F$2:$G$44,2,FALSE)+ROW()-2))=Switch!$D$52,INDIRECT(\"a\" & (VLOOKUP(Switch!$D$52,$F$2:$G$44,2,FALSE)+ROW()-2)),\"\")","v":{"$error":"#N/A"}},{"$f":"IF(INDIRECT(\"c\" & (VLOOKUP(Switch!$D$53,$F$2:$G$44,2,FALSE)+ROW()-2))=Switch!$D$53,INDIRECT(\"a\" & (VLOOKUP(Switch!$D$53,$F$2:$G$44,2,FALSE)+ROW()-2)),\"\")","v":{"$error":"#N/A"}},{"$f":"IF(INDIRECT(\"c\" & (VLOOKUP(Switch!$D$54,$F$2:$G$44,2,FALSE)+ROW()-2))=Switch!$D$54,INDIRECT(\"a\" & (VLOOKUP(Switch!$D$54,$F$2:$G$44,2,FALSE)+ROW()-2)),\"\")","v":{"$error":"#N/A"}},{"$f":"IF(INDIRECT(\"c\" & (VLOOKUP(Switch!$D$55,$F$2:$G$44,2,FALSE)+ROW()-2))=Switch!$D$55,INDIRECT(\"a\" & (VLOOKUP(Switch!$D$55,$F$2:$G$44,2,FALSE)+ROW()-2)),\"\")","v":{"$error":"#N/A"}},{"$f":"IF(INDIRECT(\"c\" & (VLOOKUP(Switch!$D$56,$F$2:$G$44,2,FALSE)+ROW()-2))=Switch!$D$56,INDIRECT(\"a\" & (VLOOKUP(Switch!$D$56,$F$2:$G$44,2,FALSE)+ROW()-2)),\"\")","v":{"$error":"#N/A"}},{"$f":"IF(INDIRECT(\"c\" & (VLOOKUP(Switch!$D$57,$F$2:$G$44,2,FALSE)+ROW()-2))=Switch!$D$57,INDIRECT(\"a\" & (VLOOKUP(Switch!$D$57,$F$2:$G$44,2,FALSE)+ROW()-2)),\"\")","v":{"$error":"#N/A"}},{"$f":"IF(INDIRECT(\"c\" & (VLOOKUP(Switch!$D$58,$F$2:$G$44,2,FALSE)+ROW()-2))=Switch!$D$58,INDIRECT(\"a\" & (VLOOKUP(Switch!$D$58,$F$2:$G$44,2,FALSE)+ROW()-2)),\"\")","v":{"$error":"#N/A"}},{"$f":"IF(INDIRECT(\"c\" & (VLOOKUP(Switch!$D$59,$F$2:$G$44,2,FALSE)+ROW()-2))=Switch!$D$59,INDIRECT(\"a\" & (VLOOKUP(Switch!$D$59,$F$2:$G$44,2,FALSE)+ROW()-2)),\"\")","v":{"$error":"#N/A"}},{"$f":"IF(INDIRECT(\"c\" & (VLOOKUP(Switch!$D$60,$F$2:$G$44,2,FALSE)+ROW()-2))=Switch!$D$60,INDIRECT(\"a\" & (VLOOKUP(Switch!$D$60,$F$2:$G$44,2,FALSE)+ROW()-2)),\"\")","v":{"$error":"#N/A"}},{"$f":"IF(INDIRECT(\"c\" & (VLOOKUP(Switch!$D$61,$F$2:$G$44,2,FALSE)+ROW()-2))=Switch!$D$61,INDIRECT(\"a\" & (VLOOKUP(Switch!$D$61,$F$2:$G$44,2,FALSE)+ROW()-2)),\"\")","v":{"$error":"#N/A"}},{"$f":"IF(INDIRECT(\"c\" & (VLOOKUP(Switch!$D$62,$F$2:$G$44,2,FALSE)+ROW()-2))=Switch!$D$62,INDIRECT(\"a\" & (VLOOKUP(Switch!$D$62,$F$2:$G$44,2,FALSE)+ROW()-2)),\"\")","v":{"$error":"#N/A"}},{"$f":"IF(INDIRECT(\"c\" & (VLOOKUP(Switch!$D$63,$F$2:$G$44,2,FALSE)+ROW()-2))=Switch!$D$63,INDIRECT(\"a\" & (VLOOKUP(Switch!$D$63,$F$2:$G$44,2,FALSE)+ROW()-2)),\"\")","v":{"$error":"#N/A"}},{"$f":"IF(INDIRECT(\"c\" & (VLOOKUP(Switch!$D$64,$F$2:$G$44,2,FALSE)+ROW()-2))=Switch!$D$64,INDIRECT(\"a\" & (VLOOKUP(Switch!$D$64,$F$2:$G$44,2,FALSE)+ROW()-2)),\"\")","v":{"$error":"#N/A"}},{"$f":"IF(INDIRECT(\"c\" & (VLOOKUP(Switch!$D$65,$F$2:$G$44,2,FALSE)+ROW()-2))=Switch!$D$65,INDIRECT(\"a\" & (VLOOKUP(Switch!$D$65,$F$2:$G$44,2,FALSE)+ROW()-2)),\"\")","v":{"$error":"#N/A"}},{"$f":"IF(INDIRECT(\"c\" & (VLOOKUP(Switch!$D$66,$F$2:$G$44,2,FALSE)+ROW()-2))=Switch!$D$66,INDIRECT(\"a\" & (VLOOKUP(Switch!$D$66,$F$2:$G$44,2,FALSE)+ROW()-2)),\"\")","v":{"$error":"#N/A"}}]
["Oasis Crescent International Feeder Fund","OCIFB","Oasis Crescent Management Company Ltd",{"$f":"ROW()","v":394},null,null,{"$f":"VLOOKUP(F394,$C$2:$D$637,2,FALSE)","v":{"$error":"#N/A"}},{"$f":"IF(INDIRECT(\"c\" & (VLOOKUP(Switch!$D$26,$F$2:$G$44,2,FALSE)+ROW()-2))=Switch!$D$26,INDIRECT(\"a\" & (VLOOKUP(Switch!$D$26,$F$2:$G$44,2,FALSE)+ROW()-2)),\"\")","v":{"$error":"#N/A"}},{"$f":"IF(INDIRECT(\"c\" & (VLOOKUP(Switch!$D$27,$F$2:$G$44,2,FALSE)+ROW()-2))=Switch!$D$27,INDIRECT(\"a\" & (VLOOKUP(Switch!$D$27,$F$2:$G$44,2,FALSE)+ROW()-2)),\"\")","v":{"$error":"#N/A"}},{"$f":"IF(INDIRECT(\"c\" & (VLOOKUP(Switch!$D$28,$F$2:$G$44,2,FALSE)+ROW()-2))=Switch!$D$28,INDIRECT(\"a\" & (VLOOKUP(Switch!$D$28,$F$2:$G$44,2,FALSE)+ROW()-2)),\"\")","v":{"$error":"#N/A"}},{"$f":"IF(INDIRECT(\"c\" & (VLOOKUP(Switch!$D$29,$F$2:$G$44,2,FALSE)+ROW()-2))=Switch!$D$29,INDIRECT(\"a\" & (VLOOKUP(Switch!$D$29,$F$2:$G$44,2,FALSE)+ROW()-2)),\"\")","v":{"$error":"#N/A"}},{"$f":"IF(INDIRECT(\"c\" & (VLOOKUP(Switch!$D$30,$F$2:$G$44,2,FALSE)+ROW()-2))=Switch!$D$30,INDIRECT(\"a\" & (VLOOKUP(Switch!$D$30,$F$2:$G$44,2,FALSE)+ROW()-2)),\"\")","v":{"$error":"#N/A"}},{"$f":"IF(INDIRECT(\"c\" & (VLOOKUP(Switch!$D$31,$F$2:$G$44,2,FALSE)+ROW()-2))=Switch!$D$31,INDIRECT(\"a\" & (VLOOKUP(Switch!$D$31,$F$2:$G$44,2,FALSE)+ROW()-2)),\"\")","v":{"$error":"#N/A"}},{"$f":"IF(INDIRECT(\"c\" & (VLOOKUP(Switch!$D$32,$F$2:$G$44,2,FALSE)+ROW()-2))=Switch!$D$32,INDIRECT(\"a\" & (VLOOKUP(Switch!$D$32,$F$2:$G$44,2,FALSE)+ROW()-2)),\"\")","v":{"$error":"#N/A"}},{"$f":"IF(INDIRECT(\"c\" & (VLOOKUP(Switch!$D$33,$F$2:$G$44,2,FALSE)+ROW()-2))=Switch!$D$33,INDIRECT(\"a\" & (VLOOKUP(Switch!$D$33,$F$2:$G$44,2,FALSE)+ROW()-2)),\"\")","v":{"$error":"#N/A"}},{"$f":"IF(INDIRECT(\"c\" & (VLOOKUP(Switch!$D$34,$F$2:$G$44,2,FALSE)+ROW()-2))=Switch!$D$34,INDIRECT(\"a\" & (VLOOKUP(Switch!$D$34,$F$2:$G$44,2,FALSE)+ROW()-2)),\"\")","v":{"$error":"#N/A"}},{"$f":"IF(INDIRECT(\"c\" & (VLOOKUP(Switch!$D$35,$F$2:$G$44,2,FALSE)+ROW()-2))=Switch!$D$35,INDIRECT(\"a\" & (VLOOKUP(Switch!$D$35,$F$2:$G$44,2,FALSE)+ROW()-2)),\"\")","v":{"$error":"#N/A"}},{"$f":"IF(INDIRECT(\"c\" & (VLOOKUP(Switch!$D$36,$F$2:$G$44,2,FALSE)+ROW()-2))=Switch!$D$36,INDIRECT(\"a\" & (VLOOKUP(Switch!$D$36,$F$2:$G$44,2,FALSE)+ROW()-2)),\"\")","v":{"$error":"#N/A"}},{"$f":"IF(INDIRECT(\"c\" & (VLOOKUP(Switch!$D$37,$F$2:$G$44,2,FALSE)+ROW()-2))=Switch!$D$37,INDIRECT(\"a\" & (VLOOKUP(Switch!$D$37,$F$2:$G$44,2,FALSE)+ROW()-2)),\"\")","v":{"$error":"#N/A"}},{"$f":"IF(INDIRECT(\"c\" & (VLOOKUP(Switch!$D$38,$F$2:$G$44,2,FALSE)+ROW()-2))=Switch!$D$38,INDIRECT(\"a\" & (VLOOKUP(Switch!$D$38,$F$2:$G$44,2,FALSE)+ROW()-2)),\"\")","v":{"$error":"#N/A"}},{"$f":"IF(INDIRECT(\"c\" & (VLOOKUP(Switch!$D$39,$F$2:$G$44,2,FALSE)+ROW()-2))=Switch!$D$39,INDIRECT(\"a\" & (VLOOKUP(Switch!$D$39,$F$2:$G$44,2,FALSE)+ROW()-2)),\"\")","v":{"$error":"#N/A"}},{"$f":"IF(INDIRECT(\"c\" & (VLOOKUP(Switch!$D$40,$F$2:$G$44,2,FALSE)+ROW()-2))=Switch!$D$40,INDIRECT(\"a\" & (VLOOKUP(Switch!$D$40,$F$2:$G$44,2,FALSE)+ROW()-2)),\"\")","v":{"$error":"#N/A"}},{"$f":"IF(INDIRECT(\"c\" & (VLOOKUP(Switch!$D$52,$F$2:$G$44,2,FALSE)+ROW()-2))=Switch!$D$52,INDIRECT(\"a\" & (VLOOKUP(Switch!$D$52,$F$2:$G$44,2,FALSE)+ROW()-2)),\"\")","v":{"$error":"#N/A"}},{"$f":"IF(INDIRECT(\"c\" & (VLOOKUP(Switch!$D$53,$F$2:$G$44,2,FALSE)+ROW()-2))=Switch!$D$53,INDIRECT(\"a\" & (VLOOKUP(Switch!$D$53,$F$2:$G$44,2,FALSE)+ROW()-2)),\"\")","v":{"$error":"#N/A"}},{"$f":"IF(INDIRECT(\"c\" & (VLOOKUP(Switch!$D$54,$F$2:$G$44,2,FALSE)+ROW()-2))=Switch!$D$54,INDIRECT(\"a\" & (VLOOKUP(Switch!$D$54,$F$2:$G$44,2,FALSE)+ROW()-2)),\"\")","v":{"$error":"#N/A"}},{"$f":"IF(INDIRECT(\"c\" & (VLOOKUP(Switch!$D$55,$F$2:$G$44,2,FALSE)+ROW()-2))=Switch!$D$55,INDIRECT(\"a\" & (VLOOKUP(Switch!$D$55,$F$2:$G$44,2,FALSE)+ROW()-2)),\"\")","v":{"$error":"#N/A"}},{"$f":"IF(INDIRECT(\"c\" & (VLOOKUP(Switch!$D$56,$F$2:$G$44,2,FALSE)+ROW()-2))=Switch!$D$56,INDIRECT(\"a\" & (VLOOKUP(Switch!$D$56,$F$2:$G$44,2,FALSE)+ROW()-2)),\"\")","v":{"$error":"#N/A"}},{"$f":"IF(INDIRECT(\"c\" & (VLOOKUP(Switch!$D$57,$F$2:$G$44,2,FALSE)+ROW()-2))=Switch!$D$57,INDIRECT(\"a\" & (VLOOKUP(Switch!$D$57,$F$2:$G$44,2,FALSE)+ROW()-2)),\"\")","v":{"$error":"#N/A"}},{"$f":"IF(INDIRECT(\"c\" & (VLOOKUP(Switch!$D$58,$F$2:$G$44,2,FALSE)+ROW()-2))=Switch!$D$58,INDIRECT(\"a\" & (VLOOKUP(Switch!$D$58,$F$2:$G$44,2,FALSE)+ROW()-2)),\"\")","v":{"$error":"#N/A"}},{"$f":"IF(INDIRECT(\"c\" & (VLOOKUP(Switch!$D$59,$F$2:$G$44,2,FALSE)+ROW()-2))=Switch!$D$59,INDIRECT(\"a\" & (VLOOKUP(Switch!$D$59,$F$2:$G$44,2,FALSE)+ROW()-2)),\"\")","v":{"$error":"#N/A"}},{"$f":"IF(INDIRECT(\"c\" & (VLOOKUP(Switch!$D$60,$F$2:$G$44,2,FALSE)+ROW()-2))=Switch!$D$60,INDIRECT(\"a\" & (VLOOKUP(Switch!$D$60,$F$2:$G$44,2,FALSE)+ROW()-2)),\"\")","v":{"$error":"#N/A"}},{"$f":"IF(INDIRECT(\"c\" & (VLOOKUP(Switch!$D$61,$F$2:$G$44,2,FALSE)+ROW()-2))=Switch!$D$61,INDIRECT(\"a\" & (VLOOKUP(Switch!$D$61,$F$2:$G$44,2,FALSE)+ROW()-2)),\"\")","v":{"$error":"#N/A"}},{"$f":"IF(INDIRECT(\"c\" & (VLOOKUP(Switch!$D$62,$F$2:$G$44,2,FALSE)+ROW()-2))=Switch!$D$62,INDIRECT(\"a\" & (VLOOKUP(Switch!$D$62,$F$2:$G$44,2,FALSE)+ROW()-2)),\"\")","v":{"$error":"#N/A"}},{"$f":"IF(INDIRECT(\"c\" & (VLOOKUP(Switch!$D$63,$F$2:$G$44,2,FALSE)+ROW()-2))=Switch!$D$63,INDIRECT(\"a\" & (VLOOKUP(Switch!$D$63,$F$2:$G$44,2,FALSE)+ROW()-2)),\"\")","v":{"$error":"#N/A"}},{"$f":"IF(INDIRECT(\"c\" & (VLOOKUP(Switch!$D$64,$F$2:$G$44,2,FALSE)+ROW()-2))=Switch!$D$64,INDIRECT(\"a\" & (VLOOKUP(Switch!$D$64,$F$2:$G$44,2,FALSE)+ROW()-2)),\"\")","v":{"$error":"#N/A"}},{"$f":"IF(INDIRECT(\"c\" & (VLOOKUP(Switch!$D$65,$F$2:$G$44,2,FALSE)+ROW()-2))=Switch!$D$65,INDIRECT(\"a\" & (VLOOKUP(Switch!$D$65,$F$2:$G$44,2,FALSE)+ROW()-2)),\"\")","v":{"$error":"#N/A"}},{"$f":"IF(INDIRECT(\"c\" & (VLOOKUP(Switch!$D$66,$F$2:$G$44,2,FALSE)+ROW()-2))=Switch!$D$66,INDIRECT(\"a\" & (VLOOKUP(Switch!$D$66,$F$2:$G$44,2,FALSE)+ROW()-2)),\"\")","v":{"$error":"#N/A"}}]
["Oasis Property Equity Fund B","OPEFB","Oasis Crescent Management Company Ltd",{"$f":"ROW()","v":395},null,null,{"$f":"VLOOKUP(F395,$C$2:$D$637,2,FALSE)","v":{"$error":"#N/A"}},{"$f":"IF(INDIRECT(\"c\" & (VLOOKUP(Switch!$D$26,$F$2:$G$44,2,FALSE)+ROW()-2))=Switch!$D$26,INDIRECT(\"a\" & (VLOOKUP(Switch!$D$26,$F$2:$G$44,2,FALSE)+ROW()-2)),\"\")","v":{"$error":"#N/A"}},{"$f":"IF(INDIRECT(\"c\" & (VLOOKUP(Switch!$D$27,$F$2:$G$44,2,FALSE)+ROW()-2))=Switch!$D$27,INDIRECT(\"a\" & (VLOOKUP(Switch!$D$27,$F$2:$G$44,2,FALSE)+ROW()-2)),\"\")","v":{"$error":"#N/A"}},{"$f":"IF(INDIRECT(\"c\" & (VLOOKUP(Switch!$D$28,$F$2:$G$44,2,FALSE)+ROW()-2))=Switch!$D$28,INDIRECT(\"a\" & (VLOOKUP(Switch!$D$28,$F$2:$G$44,2,FALSE)+ROW()-2)),\"\")","v":{"$error":"#N/A"}},{"$f":"IF(INDIRECT(\"c\" & (VLOOKUP(Switch!$D$29,$F$2:$G$44,2,FALSE)+ROW()-2))=Switch!$D$29,INDIRECT(\"a\" & (VLOOKUP(Switch!$D$29,$F$2:$G$44,2,FALSE)+ROW()-2)),\"\")","v":{"$error":"#N/A"}},{"$f":"IF(INDIRECT(\"c\" & (VLOOKUP(Switch!$D$30,$F$2:$G$44,2,FALSE)+ROW()-2))=Switch!$D$30,INDIRECT(\"a\" & (VLOOKUP(Switch!$D$30,$F$2:$G$44,2,FALSE)+ROW()-2)),\"\")","v":{"$error":"#N/A"}},{"$f":"IF(INDIRECT(\"c\" & (VLOOKUP(Switch!$D$31,$F$2:$G$44,2,FALSE)+ROW()-2))=Switch!$D$31,INDIRECT(\"a\" & (VLOOKUP(Switch!$D$31,$F$2:$G$44,2,FALSE)+ROW()-2)),\"\")","v":{"$error":"#N/A"}},{"$f":"IF(INDIRECT(\"c\" & (VLOOKUP(Switch!$D$32,$F$2:$G$44,2,FALSE)+ROW()-2))=Switch!$D$32,INDIRECT(\"a\" & (VLOOKUP(Switch!$D$32,$F$2:$G$44,2,FALSE)+ROW()-2)),\"\")","v":{"$error":"#N/A"}},{"$f":"IF(INDIRECT(\"c\" & (VLOOKUP(Switch!$D$33,$F$2:$G$44,2,FALSE)+ROW()-2))=Switch!$D$33,INDIRECT(\"a\" & (VLOOKUP(Switch!$D$33,$F$2:$G$44,2,FALSE)+ROW()-2)),\"\")","v":{"$error":"#N/A"}},{"$f":"IF(INDIRECT(\"c\" & (VLOOKUP(Switch!$D$34,$F$2:$G$44,2,FALSE)+ROW()-2))=Switch!$D$34,INDIRECT(\"a\" & (VLOOKUP(Switch!$D$34,$F$2:$G$44,2,FALSE)+ROW()-2)),\"\")","v":{"$error":"#N/A"}},{"$f":"IF(INDIRECT(\"c\" & (VLOOKUP(Switch!$D$35,$F$2:$G$44,2,FALSE)+ROW()-2))=Switch!$D$35,INDIRECT(\"a\" & (VLOOKUP(Switch!$D$35,$F$2:$G$44,2,FALSE)+ROW()-2)),\"\")","v":{"$error":"#N/A"}},{"$f":"IF(INDIRECT(\"c\" & (VLOOKUP(Switch!$D$36,$F$2:$G$44,2,FALSE)+ROW()-2))=Switch!$D$36,INDIRECT(\"a\" & (VLOOKUP(Switch!$D$36,$F$2:$G$44,2,FALSE)+ROW()-2)),\"\")","v":{"$error":"#N/A"}},{"$f":"IF(INDIRECT(\"c\" & (VLOOKUP(Switch!$D$37,$F$2:$G$44,2,FALSE)+ROW()-2))=Switch!$D$37,INDIRECT(\"a\" & (VLOOKUP(Switch!$D$37,$F$2:$G$44,2,FALSE)+ROW()-2)),\"\")","v":{"$error":"#N/A"}},{"$f":"IF(INDIRECT(\"c\" & (VLOOKUP(Switch!$D$38,$F$2:$G$44,2,FALSE)+ROW()-2))=Switch!$D$38,INDIRECT(\"a\" & (VLOOKUP(Switch!$D$38,$F$2:$G$44,2,FALSE)+ROW()-2)),\"\")","v":{"$error":"#N/A"}},{"$f":"IF(INDIRECT(\"c\" & (VLOOKUP(Switch!$D$39,$F$2:$G$44,2,FALSE)+ROW()-2))=Switch!$D$39,INDIRECT(\"a\" & (VLOOKUP(Switch!$D$39,$F$2:$G$44,2,FALSE)+ROW()-2)),\"\")","v":{"$error":"#N/A"}},{"$f":"IF(INDIRECT(\"c\" & (VLOOKUP(Switch!$D$40,$F$2:$G$44,2,FALSE)+ROW()-2))=Switch!$D$40,INDIRECT(\"a\" & (VLOOKUP(Switch!$D$40,$F$2:$G$44,2,FALSE)+ROW()-2)),\"\")","v":{"$error":"#N/A"}},{"$f":"IF(INDIRECT(\"c\" & (VLOOKUP(Switch!$D$52,$F$2:$G$44,2,FALSE)+ROW()-2))=Switch!$D$52,INDIRECT(\"a\" & (VLOOKUP(Switch!$D$52,$F$2:$G$44,2,FALSE)+ROW()-2)),\"\")","v":{"$error":"#N/A"}},{"$f":"IF(INDIRECT(\"c\" & (VLOOKUP(Switch!$D$53,$F$2:$G$44,2,FALSE)+ROW()-2))=Switch!$D$53,INDIRECT(\"a\" & (VLOOKUP(Switch!$D$53,$F$2:$G$44,2,FALSE)+ROW()-2)),\"\")","v":{"$error":"#N/A"}},{"$f":"IF(INDIRECT(\"c\" & (VLOOKUP(Switch!$D$54,$F$2:$G$44,2,FALSE)+ROW()-2))=Switch!$D$54,INDIRECT(\"a\" & (VLOOKUP(Switch!$D$54,$F$2:$G$44,2,FALSE)+ROW()-2)),\"\")","v":{"$error":"#N/A"}},{"$f":"IF(INDIRECT(\"c\" & (VLOOKUP(Switch!$D$55,$F$2:$G$44,2,FALSE)+ROW()-2))=Switch!$D$55,INDIRECT(\"a\" & (VLOOKUP(Switch!$D$55,$F$2:$G$44,2,FALSE)+ROW()-2)),\"\")","v":{"$error":"#N/A"}},{"$f":"IF(INDIRECT(\"c\" & (VLOOKUP(Switch!$D$56,$F$2:$G$44,2,FALSE)+ROW()-2))=Switch!$D$56,INDIRECT(\"a\" & (VLOOKUP(Switch!$D$56,$F$2:$G$44,2,FALSE)+ROW()-2)),\"\")","v":{"$error":"#N/A"}},{"$f":"IF(INDIRECT(\"c\" & (VLOOKUP(Switch!$D$57,$F$2:$G$44,2,FALSE)+ROW()-2))=Switch!$D$57,INDIRECT(\"a\" & (VLOOKUP(Switch!$D$57,$F$2:$G$44,2,FALSE)+ROW()-2)),\"\")","v":{"$error":"#N/A"}},{"$f":"IF(INDIRECT(\"c\" & (VLOOKUP(Switch!$D$58,$F$2:$G$44,2,FALSE)+ROW()-2))=Switch!$D$58,INDIRECT(\"a\" & (VLOOKUP(Switch!$D$58,$F$2:$G$44,2,FALSE)+ROW()-2)),\"\")","v":{"$error":"#N/A"}},{"$f":"IF(INDIRECT(\"c\" & (VLOOKUP(Switch!$D$59,$F$2:$G$44,2,FALSE)+ROW()-2))=Switch!$D$59,INDIRECT(\"a\" & (VLOOKUP(Switch!$D$59,$F$2:$G$44,2,FALSE)+ROW()-2)),\"\")","v":{"$error":"#N/A"}},{"$f":"IF(INDIRECT(\"c\" & (VLOOKUP(Switch!$D$60,$F$2:$G$44,2,FALSE)+ROW()-2))=Switch!$D$60,INDIRECT(\"a\" & (VLOOKUP(Switch!$D$60,$F$2:$G$44,2,FALSE)+ROW()-2)),\"\")","v":{"$error":"#N/A"}},{"$f":"IF(INDIRECT(\"c\" & (VLOOKUP(Switch!$D$61,$F$2:$G$44,2,FALSE)+ROW()-2))=Switch!$D$61,INDIRECT(\"a\" & (VLOOKUP(Switch!$D$61,$F$2:$G$44,2,FALSE)+ROW()-2)),\"\")","v":{"$error":"#N/A"}},{"$f":"IF(INDIRECT(\"c\" & (VLOOKUP(Switch!$D$62,$F$2:$G$44,2,FALSE)+ROW()-2))=Switch!$D$62,INDIRECT(\"a\" & (VLOOKUP(Switch!$D$62,$F$2:$G$44,2,FALSE)+ROW()-2)),\"\")","v":{"$error":"#N/A"}},{"$f":"IF(INDIRECT(\"c\" & (VLOOKUP(Switch!$D$63,$F$2:$G$44,2,FALSE)+ROW()-2))=Switch!$D$63,INDIRECT(\"a\" & (VLOOKUP(Switch!$D$63,$F$2:$G$44,2,FALSE)+ROW()-2)),\"\")","v":{"$error":"#N/A"}},{"$f":"IF(INDIRECT(\"c\" & (VLOOKUP(Switch!$D$64,$F$2:$G$44,2,FALSE)+ROW()-2))=Switch!$D$64,INDIRECT(\"a\" & (VLOOKUP(Switch!$D$64,$F$2:$G$44,2,FALSE)+ROW()-2)),\"\")","v":{"$error":"#N/A"}},{"$f":"IF(INDIRECT(\"c\" & (VLOOKUP(Switch!$D$65,$F$2:$G$44,2,FALSE)+ROW()-2))=Switch!$D$65,INDIRECT(\"a\" & (VLOOKUP(Switch!$D$65,$F$2:$G$44,2,FALSE)+ROW()-2)),\"\")","v":{"$error":"#N/A"}},{"$f":"IF(INDIRECT(\"c\" & (VLOOKUP(Switch!$D$66,$F$2:$G$44,2,FALSE)+ROW()-2))=Switch!$D$66,INDIRECT(\"a\" & (VLOOKUP(Switch!$D$66,$F$2:$G$44,2,FALSE)+ROW()-2)),\"\")","v":{"$error":"#N/A"}}]
["Adviceworx Old Mutual Inflation Plus 2-3% FoF B1","AMIB1","Old Mutual Unit Trust Managers Limited",{"$f":"ROW()","v":396},null,null,{"$f":"VLOOKUP(F396,$C$2:$D$637,2,FALSE)","v":{"$error":"#N/A"}},{"$f":"IF(INDIRECT(\"c\" & (VLOOKUP(Switch!$D$26,$F$2:$G$44,2,FALSE)+ROW()-2))=Switch!$D$26,INDIRECT(\"a\" & (VLOOKUP(Switch!$D$26,$F$2:$G$44,2,FALSE)+ROW()-2)),\"\")","v":{"$error":"#N/A"}},{"$f":"IF(INDIRECT(\"c\" & (VLOOKUP(Switch!$D$27,$F$2:$G$44,2,FALSE)+ROW()-2))=Switch!$D$27,INDIRECT(\"a\" & (VLOOKUP(Switch!$D$27,$F$2:$G$44,2,FALSE)+ROW()-2)),\"\")","v":{"$error":"#N/A"}},{"$f":"IF(INDIRECT(\"c\" & (VLOOKUP(Switch!$D$28,$F$2:$G$44,2,FALSE)+ROW()-2))=Switch!$D$28,INDIRECT(\"a\" & (VLOOKUP(Switch!$D$28,$F$2:$G$44,2,FALSE)+ROW()-2)),\"\")","v":{"$error":"#N/A"}},{"$f":"IF(INDIRECT(\"c\" & (VLOOKUP(Switch!$D$29,$F$2:$G$44,2,FALSE)+ROW()-2))=Switch!$D$29,INDIRECT(\"a\" & (VLOOKUP(Switch!$D$29,$F$2:$G$44,2,FALSE)+ROW()-2)),\"\")","v":{"$error":"#N/A"}},{"$f":"IF(INDIRECT(\"c\" & (VLOOKUP(Switch!$D$30,$F$2:$G$44,2,FALSE)+ROW()-2))=Switch!$D$30,INDIRECT(\"a\" & (VLOOKUP(Switch!$D$30,$F$2:$G$44,2,FALSE)+ROW()-2)),\"\")","v":{"$error":"#N/A"}},{"$f":"IF(INDIRECT(\"c\" & (VLOOKUP(Switch!$D$31,$F$2:$G$44,2,FALSE)+ROW()-2))=Switch!$D$31,INDIRECT(\"a\" & (VLOOKUP(Switch!$D$31,$F$2:$G$44,2,FALSE)+ROW()-2)),\"\")","v":{"$error":"#N/A"}},{"$f":"IF(INDIRECT(\"c\" & (VLOOKUP(Switch!$D$32,$F$2:$G$44,2,FALSE)+ROW()-2))=Switch!$D$32,INDIRECT(\"a\" & (VLOOKUP(Switch!$D$32,$F$2:$G$44,2,FALSE)+ROW()-2)),\"\")","v":{"$error":"#N/A"}},{"$f":"IF(INDIRECT(\"c\" & (VLOOKUP(Switch!$D$33,$F$2:$G$44,2,FALSE)+ROW()-2))=Switch!$D$33,INDIRECT(\"a\" & (VLOOKUP(Switch!$D$33,$F$2:$G$44,2,FALSE)+ROW()-2)),\"\")","v":{"$error":"#N/A"}},{"$f":"IF(INDIRECT(\"c\" & (VLOOKUP(Switch!$D$34,$F$2:$G$44,2,FALSE)+ROW()-2))=Switch!$D$34,INDIRECT(\"a\" & (VLOOKUP(Switch!$D$34,$F$2:$G$44,2,FALSE)+ROW()-2)),\"\")","v":{"$error":"#N/A"}},{"$f":"IF(INDIRECT(\"c\" & (VLOOKUP(Switch!$D$35,$F$2:$G$44,2,FALSE)+ROW()-2))=Switch!$D$35,INDIRECT(\"a\" & (VLOOKUP(Switch!$D$35,$F$2:$G$44,2,FALSE)+ROW()-2)),\"\")","v":{"$error":"#N/A"}},{"$f":"IF(INDIRECT(\"c\" & (VLOOKUP(Switch!$D$36,$F$2:$G$44,2,FALSE)+ROW()-2))=Switch!$D$36,INDIRECT(\"a\" & (VLOOKUP(Switch!$D$36,$F$2:$G$44,2,FALSE)+ROW()-2)),\"\")","v":{"$error":"#N/A"}},{"$f":"IF(INDIRECT(\"c\" & (VLOOKUP(Switch!$D$37,$F$2:$G$44,2,FALSE)+ROW()-2))=Switch!$D$37,INDIRECT(\"a\" & (VLOOKUP(Switch!$D$37,$F$2:$G$44,2,FALSE)+ROW()-2)),\"\")","v":{"$error":"#N/A"}},{"$f":"IF(INDIRECT(\"c\" & (VLOOKUP(Switch!$D$38,$F$2:$G$44,2,FALSE)+ROW()-2))=Switch!$D$38,INDIRECT(\"a\" & (VLOOKUP(Switch!$D$38,$F$2:$G$44,2,FALSE)+ROW()-2)),\"\")","v":{"$error":"#N/A"}},{"$f":"IF(INDIRECT(\"c\" & (VLOOKUP(Switch!$D$39,$F$2:$G$44,2,FALSE)+ROW()-2))=Switch!$D$39,INDIRECT(\"a\" & (VLOOKUP(Switch!$D$39,$F$2:$G$44,2,FALSE)+ROW()-2)),\"\")","v":{"$error":"#N/A"}},{"$f":"IF(INDIRECT(\"c\" & (VLOOKUP(Switch!$D$40,$F$2:$G$44,2,FALSE)+ROW()-2))=Switch!$D$40,INDIRECT(\"a\" & (VLOOKUP(Switch!$D$40,$F$2:$G$44,2,FALSE)+ROW()-2)),\"\")","v":{"$error":"#N/A"}},{"$f":"IF(INDIRECT(\"c\" & (VLOOKUP(Switch!$D$52,$F$2:$G$44,2,FALSE)+ROW()-2))=Switch!$D$52,INDIRECT(\"a\" & (VLOOKUP(Switch!$D$52,$F$2:$G$44,2,FALSE)+ROW()-2)),\"\")","v":{"$error":"#N/A"}},{"$f":"IF(INDIRECT(\"c\" & (VLOOKUP(Switch!$D$53,$F$2:$G$44,2,FALSE)+ROW()-2))=Switch!$D$53,INDIRECT(\"a\" & (VLOOKUP(Switch!$D$53,$F$2:$G$44,2,FALSE)+ROW()-2)),\"\")","v":{"$error":"#N/A"}},{"$f":"IF(INDIRECT(\"c\" & (VLOOKUP(Switch!$D$54,$F$2:$G$44,2,FALSE)+ROW()-2))=Switch!$D$54,INDIRECT(\"a\" & (VLOOKUP(Switch!$D$54,$F$2:$G$44,2,FALSE)+ROW()-2)),\"\")","v":{"$error":"#N/A"}},{"$f":"IF(INDIRECT(\"c\" & (VLOOKUP(Switch!$D$55,$F$2:$G$44,2,FALSE)+ROW()-2))=Switch!$D$55,INDIRECT(\"a\" & (VLOOKUP(Switch!$D$55,$F$2:$G$44,2,FALSE)+ROW()-2)),\"\")","v":{"$error":"#N/A"}},{"$f":"IF(INDIRECT(\"c\" & (VLOOKUP(Switch!$D$56,$F$2:$G$44,2,FALSE)+ROW()-2))=Switch!$D$56,INDIRECT(\"a\" & (VLOOKUP(Switch!$D$56,$F$2:$G$44,2,FALSE)+ROW()-2)),\"\")","v":{"$error":"#N/A"}},{"$f":"IF(INDIRECT(\"c\" & (VLOOKUP(Switch!$D$57,$F$2:$G$44,2,FALSE)+ROW()-2))=Switch!$D$57,INDIRECT(\"a\" & (VLOOKUP(Switch!$D$57,$F$2:$G$44,2,FALSE)+ROW()-2)),\"\")","v":{"$error":"#N/A"}},{"$f":"IF(INDIRECT(\"c\" & (VLOOKUP(Switch!$D$58,$F$2:$G$44,2,FALSE)+ROW()-2))=Switch!$D$58,INDIRECT(\"a\" & (VLOOKUP(Switch!$D$58,$F$2:$G$44,2,FALSE)+ROW()-2)),\"\")","v":{"$error":"#N/A"}},{"$f":"IF(INDIRECT(\"c\" & (VLOOKUP(Switch!$D$59,$F$2:$G$44,2,FALSE)+ROW()-2))=Switch!$D$59,INDIRECT(\"a\" & (VLOOKUP(Switch!$D$59,$F$2:$G$44,2,FALSE)+ROW()-2)),\"\")","v":{"$error":"#N/A"}},{"$f":"IF(INDIRECT(\"c\" & (VLOOKUP(Switch!$D$60,$F$2:$G$44,2,FALSE)+ROW()-2))=Switch!$D$60,INDIRECT(\"a\" & (VLOOKUP(Switch!$D$60,$F$2:$G$44,2,FALSE)+ROW()-2)),\"\")","v":{"$error":"#N/A"}},{"$f":"IF(INDIRECT(\"c\" & (VLOOKUP(Switch!$D$61,$F$2:$G$44,2,FALSE)+ROW()-2))=Switch!$D$61,INDIRECT(\"a\" & (VLOOKUP(Switch!$D$61,$F$2:$G$44,2,FALSE)+ROW()-2)),\"\")","v":{"$error":"#N/A"}},{"$f":"IF(INDIRECT(\"c\" & (VLOOKUP(Switch!$D$62,$F$2:$G$44,2,FALSE)+ROW()-2))=Switch!$D$62,INDIRECT(\"a\" & (VLOOKUP(Switch!$D$62,$F$2:$G$44,2,FALSE)+ROW()-2)),\"\")","v":{"$error":"#N/A"}},{"$f":"IF(INDIRECT(\"c\" & (VLOOKUP(Switch!$D$63,$F$2:$G$44,2,FALSE)+ROW()-2))=Switch!$D$63,INDIRECT(\"a\" & (VLOOKUP(Switch!$D$63,$F$2:$G$44,2,FALSE)+ROW()-2)),\"\")","v":{"$error":"#N/A"}},{"$f":"IF(INDIRECT(\"c\" & (VLOOKUP(Switch!$D$64,$F$2:$G$44,2,FALSE)+ROW()-2))=Switch!$D$64,INDIRECT(\"a\" & (VLOOKUP(Switch!$D$64,$F$2:$G$44,2,FALSE)+ROW()-2)),\"\")","v":{"$error":"#N/A"}},{"$f":"IF(INDIRECT(\"c\" & (VLOOKUP(Switch!$D$65,$F$2:$G$44,2,FALSE)+ROW()-2))=Switch!$D$65,INDIRECT(\"a\" & (VLOOKUP(Switch!$D$65,$F$2:$G$44,2,FALSE)+ROW()-2)),\"\")","v":{"$error":"#N/A"}},{"$f":"IF(INDIRECT(\"c\" & (VLOOKUP(Switch!$D$66,$F$2:$G$44,2,FALSE)+ROW()-2))=Switch!$D$66,INDIRECT(\"a\" & (VLOOKUP(Switch!$D$66,$F$2:$G$44,2,FALSE)+ROW()-2)),\"\")","v":{"$error":"#N/A"}}]
["Adviceworx Old Mutual Inflation Plus 3-4% FoF B1","AOIB1","Old Mutual Unit Trust Managers Limited",{"$f":"ROW()","v":397},null,null,{"$f":"VLOOKUP(F397,$C$2:$D$637,2,FALSE)","v":{"$error":"#N/A"}},{"$f":"IF(INDIRECT(\"c\" & (VLOOKUP(Switch!$D$26,$F$2:$G$44,2,FALSE)+ROW()-2))=Switch!$D$26,INDIRECT(\"a\" & (VLOOKUP(Switch!$D$26,$F$2:$G$44,2,FALSE)+ROW()-2)),\"\")","v":{"$error":"#N/A"}},{"$f":"IF(INDIRECT(\"c\" & (VLOOKUP(Switch!$D$27,$F$2:$G$44,2,FALSE)+ROW()-2))=Switch!$D$27,INDIRECT(\"a\" & (VLOOKUP(Switch!$D$27,$F$2:$G$44,2,FALSE)+ROW()-2)),\"\")","v":{"$error":"#N/A"}},{"$f":"IF(INDIRECT(\"c\" & (VLOOKUP(Switch!$D$28,$F$2:$G$44,2,FALSE)+ROW()-2))=Switch!$D$28,INDIRECT(\"a\" & (VLOOKUP(Switch!$D$28,$F$2:$G$44,2,FALSE)+ROW()-2)),\"\")","v":{"$error":"#N/A"}},{"$f":"IF(INDIRECT(\"c\" & (VLOOKUP(Switch!$D$29,$F$2:$G$44,2,FALSE)+ROW()-2))=Switch!$D$29,INDIRECT(\"a\" & (VLOOKUP(Switch!$D$29,$F$2:$G$44,2,FALSE)+ROW()-2)),\"\")","v":{"$error":"#N/A"}},{"$f":"IF(INDIRECT(\"c\" & (VLOOKUP(Switch!$D$30,$F$2:$G$44,2,FALSE)+ROW()-2))=Switch!$D$30,INDIRECT(\"a\" & (VLOOKUP(Switch!$D$30,$F$2:$G$44,2,FALSE)+ROW()-2)),\"\")","v":{"$error":"#N/A"}},{"$f":"IF(INDIRECT(\"c\" & (VLOOKUP(Switch!$D$31,$F$2:$G$44,2,FALSE)+ROW()-2))=Switch!$D$31,INDIRECT(\"a\" & (VLOOKUP(Switch!$D$31,$F$2:$G$44,2,FALSE)+ROW()-2)),\"\")","v":{"$error":"#N/A"}},{"$f":"IF(INDIRECT(\"c\" & (VLOOKUP(Switch!$D$32,$F$2:$G$44,2,FALSE)+ROW()-2))=Switch!$D$32,INDIRECT(\"a\" & (VLOOKUP(Switch!$D$32,$F$2:$G$44,2,FALSE)+ROW()-2)),\"\")","v":{"$error":"#N/A"}},{"$f":"IF(INDIRECT(\"c\" & (VLOOKUP(Switch!$D$33,$F$2:$G$44,2,FALSE)+ROW()-2))=Switch!$D$33,INDIRECT(\"a\" & (VLOOKUP(Switch!$D$33,$F$2:$G$44,2,FALSE)+ROW()-2)),\"\")","v":{"$error":"#N/A"}},{"$f":"IF(INDIRECT(\"c\" & (VLOOKUP(Switch!$D$34,$F$2:$G$44,2,FALSE)+ROW()-2))=Switch!$D$34,INDIRECT(\"a\" & (VLOOKUP(Switch!$D$34,$F$2:$G$44,2,FALSE)+ROW()-2)),\"\")","v":{"$error":"#N/A"}},{"$f":"IF(INDIRECT(\"c\" & (VLOOKUP(Switch!$D$35,$F$2:$G$44,2,FALSE)+ROW()-2))=Switch!$D$35,INDIRECT(\"a\" & (VLOOKUP(Switch!$D$35,$F$2:$G$44,2,FALSE)+ROW()-2)),\"\")","v":{"$error":"#N/A"}},{"$f":"IF(INDIRECT(\"c\" & (VLOOKUP(Switch!$D$36,$F$2:$G$44,2,FALSE)+ROW()-2))=Switch!$D$36,INDIRECT(\"a\" & (VLOOKUP(Switch!$D$36,$F$2:$G$44,2,FALSE)+ROW()-2)),\"\")","v":{"$error":"#N/A"}},{"$f":"IF(INDIRECT(\"c\" & (VLOOKUP(Switch!$D$37,$F$2:$G$44,2,FALSE)+ROW()-2))=Switch!$D$37,INDIRECT(\"a\" & (VLOOKUP(Switch!$D$37,$F$2:$G$44,2,FALSE)+ROW()-2)),\"\")","v":{"$error":"#N/A"}},{"$f":"IF(INDIRECT(\"c\" & (VLOOKUP(Switch!$D$38,$F$2:$G$44,2,FALSE)+ROW()-2))=Switch!$D$38,INDIRECT(\"a\" & (VLOOKUP(Switch!$D$38,$F$2:$G$44,2,FALSE)+ROW()-2)),\"\")","v":{"$error":"#N/A"}},{"$f":"IF(INDIRECT(\"c\" & (VLOOKUP(Switch!$D$39,$F$2:$G$44,2,FALSE)+ROW()-2))=Switch!$D$39,INDIRECT(\"a\" & (VLOOKUP(Switch!$D$39,$F$2:$G$44,2,FALSE)+ROW()-2)),\"\")","v":{"$error":"#N/A"}},{"$f":"IF(INDIRECT(\"c\" & (VLOOKUP(Switch!$D$40,$F$2:$G$44,2,FALSE)+ROW()-2))=Switch!$D$40,INDIRECT(\"a\" & (VLOOKUP(Switch!$D$40,$F$2:$G$44,2,FALSE)+ROW()-2)),\"\")","v":{"$error":"#N/A"}},{"$f":"IF(INDIRECT(\"c\" & (VLOOKUP(Switch!$D$52,$F$2:$G$44,2,FALSE)+ROW()-2))=Switch!$D$52,INDIRECT(\"a\" & (VLOOKUP(Switch!$D$52,$F$2:$G$44,2,FALSE)+ROW()-2)),\"\")","v":{"$error":"#N/A"}},{"$f":"IF(INDIRECT(\"c\" & (VLOOKUP(Switch!$D$53,$F$2:$G$44,2,FALSE)+ROW()-2))=Switch!$D$53,INDIRECT(\"a\" & (VLOOKUP(Switch!$D$53,$F$2:$G$44,2,FALSE)+ROW()-2)),\"\")","v":{"$error":"#N/A"}},{"$f":"IF(INDIRECT(\"c\" & (VLOOKUP(Switch!$D$54,$F$2:$G$44,2,FALSE)+ROW()-2))=Switch!$D$54,INDIRECT(\"a\" & (VLOOKUP(Switch!$D$54,$F$2:$G$44,2,FALSE)+ROW()-2)),\"\")","v":{"$error":"#N/A"}},{"$f":"IF(INDIRECT(\"c\" & (VLOOKUP(Switch!$D$55,$F$2:$G$44,2,FALSE)+ROW()-2))=Switch!$D$55,INDIRECT(\"a\" & (VLOOKUP(Switch!$D$55,$F$2:$G$44,2,FALSE)+ROW()-2)),\"\")","v":{"$error":"#N/A"}},{"$f":"IF(INDIRECT(\"c\" & (VLOOKUP(Switch!$D$56,$F$2:$G$44,2,FALSE)+ROW()-2))=Switch!$D$56,INDIRECT(\"a\" & (VLOOKUP(Switch!$D$56,$F$2:$G$44,2,FALSE)+ROW()-2)),\"\")","v":{"$error":"#N/A"}},{"$f":"IF(INDIRECT(\"c\" & (VLOOKUP(Switch!$D$57,$F$2:$G$44,2,FALSE)+ROW()-2))=Switch!$D$57,INDIRECT(\"a\" & (VLOOKUP(Switch!$D$57,$F$2:$G$44,2,FALSE)+ROW()-2)),\"\")","v":{"$error":"#N/A"}},{"$f":"IF(INDIRECT(\"c\" & (VLOOKUP(Switch!$D$58,$F$2:$G$44,2,FALSE)+ROW()-2))=Switch!$D$58,INDIRECT(\"a\" & (VLOOKUP(Switch!$D$58,$F$2:$G$44,2,FALSE)+ROW()-2)),\"\")","v":{"$error":"#N/A"}},{"$f":"IF(INDIRECT(\"c\" & (VLOOKUP(Switch!$D$59,$F$2:$G$44,2,FALSE)+ROW()-2))=Switch!$D$59,INDIRECT(\"a\" & (VLOOKUP(Switch!$D$59,$F$2:$G$44,2,FALSE)+ROW()-2)),\"\")","v":{"$error":"#N/A"}},{"$f":"IF(INDIRECT(\"c\" & (VLOOKUP(Switch!$D$60,$F$2:$G$44,2,FALSE)+ROW()-2))=Switch!$D$60,INDIRECT(\"a\" & (VLOOKUP(Switch!$D$60,$F$2:$G$44,2,FALSE)+ROW()-2)),\"\")","v":{"$error":"#N/A"}},{"$f":"IF(INDIRECT(\"c\" & (VLOOKUP(Switch!$D$61,$F$2:$G$44,2,FALSE)+ROW()-2))=Switch!$D$61,INDIRECT(\"a\" & (VLOOKUP(Switch!$D$61,$F$2:$G$44,2,FALSE)+ROW()-2)),\"\")","v":{"$error":"#N/A"}},{"$f":"IF(INDIRECT(\"c\" & (VLOOKUP(Switch!$D$62,$F$2:$G$44,2,FALSE)+ROW()-2))=Switch!$D$62,INDIRECT(\"a\" & (VLOOKUP(Switch!$D$62,$F$2:$G$44,2,FALSE)+ROW()-2)),\"\")","v":{"$error":"#N/A"}},{"$f":"IF(INDIRECT(\"c\" & (VLOOKUP(Switch!$D$63,$F$2:$G$44,2,FALSE)+ROW()-2))=Switch!$D$63,INDIRECT(\"a\" & (VLOOKUP(Switch!$D$63,$F$2:$G$44,2,FALSE)+ROW()-2)),\"\")","v":{"$error":"#N/A"}},{"$f":"IF(INDIRECT(\"c\" & (VLOOKUP(Switch!$D$64,$F$2:$G$44,2,FALSE)+ROW()-2))=Switch!$D$64,INDIRECT(\"a\" & (VLOOKUP(Switch!$D$64,$F$2:$G$44,2,FALSE)+ROW()-2)),\"\")","v":{"$error":"#N/A"}},{"$f":"IF(INDIRECT(\"c\" & (VLOOKUP(Switch!$D$65,$F$2:$G$44,2,FALSE)+ROW()-2))=Switch!$D$65,INDIRECT(\"a\" & (VLOOKUP(Switch!$D$65,$F$2:$G$44,2,FALSE)+ROW()-2)),\"\")","v":{"$error":"#N/A"}},{"$f":"IF(INDIRECT(\"c\" & (VLOOKUP(Switch!$D$66,$F$2:$G$44,2,FALSE)+ROW()-2))=Switch!$D$66,INDIRECT(\"a\" & (VLOOKUP(Switch!$D$66,$F$2:$G$44,2,FALSE)+ROW()-2)),\"\")","v":{"$error":"#N/A"}}]
["Adviceworx Old Mutual Inflation Plus 4-5% FoF B1","AMOB1","Old Mutual Unit Trust Managers Limited",{"$f":"ROW()","v":398},null,null,{"$f":"VLOOKUP(F398,$C$2:$D$637,2,FALSE)","v":{"$error":"#N/A"}},{"$f":"IF(INDIRECT(\"c\" & (VLOOKUP(Switch!$D$26,$F$2:$G$44,2,FALSE)+ROW()-2))=Switch!$D$26,INDIRECT(\"a\" & (VLOOKUP(Switch!$D$26,$F$2:$G$44,2,FALSE)+ROW()-2)),\"\")","v":{"$error":"#N/A"}},{"$f":"IF(INDIRECT(\"c\" & (VLOOKUP(Switch!$D$27,$F$2:$G$44,2,FALSE)+ROW()-2))=Switch!$D$27,INDIRECT(\"a\" & (VLOOKUP(Switch!$D$27,$F$2:$G$44,2,FALSE)+ROW()-2)),\"\")","v":{"$error":"#N/A"}},{"$f":"IF(INDIRECT(\"c\" & (VLOOKUP(Switch!$D$28,$F$2:$G$44,2,FALSE)+ROW()-2))=Switch!$D$28,INDIRECT(\"a\" & (VLOOKUP(Switch!$D$28,$F$2:$G$44,2,FALSE)+ROW()-2)),\"\")","v":{"$error":"#N/A"}},{"$f":"IF(INDIRECT(\"c\" & (VLOOKUP(Switch!$D$29,$F$2:$G$44,2,FALSE)+ROW()-2))=Switch!$D$29,INDIRECT(\"a\" & (VLOOKUP(Switch!$D$29,$F$2:$G$44,2,FALSE)+ROW()-2)),\"\")","v":{"$error":"#N/A"}},{"$f":"IF(INDIRECT(\"c\" & (VLOOKUP(Switch!$D$30,$F$2:$G$44,2,FALSE)+ROW()-2))=Switch!$D$30,INDIRECT(\"a\" & (VLOOKUP(Switch!$D$30,$F$2:$G$44,2,FALSE)+ROW()-2)),\"\")","v":{"$error":"#N/A"}},{"$f":"IF(INDIRECT(\"c\" & (VLOOKUP(Switch!$D$31,$F$2:$G$44,2,FALSE)+ROW()-2))=Switch!$D$31,INDIRECT(\"a\" & (VLOOKUP(Switch!$D$31,$F$2:$G$44,2,FALSE)+ROW()-2)),\"\")","v":{"$error":"#N/A"}},{"$f":"IF(INDIRECT(\"c\" & (VLOOKUP(Switch!$D$32,$F$2:$G$44,2,FALSE)+ROW()-2))=Switch!$D$32,INDIRECT(\"a\" & (VLOOKUP(Switch!$D$32,$F$2:$G$44,2,FALSE)+ROW()-2)),\"\")","v":{"$error":"#N/A"}},{"$f":"IF(INDIRECT(\"c\" & (VLOOKUP(Switch!$D$33,$F$2:$G$44,2,FALSE)+ROW()-2))=Switch!$D$33,INDIRECT(\"a\" & (VLOOKUP(Switch!$D$33,$F$2:$G$44,2,FALSE)+ROW()-2)),\"\")","v":{"$error":"#N/A"}},{"$f":"IF(INDIRECT(\"c\" & (VLOOKUP(Switch!$D$34,$F$2:$G$44,2,FALSE)+ROW()-2))=Switch!$D$34,INDIRECT(\"a\" & (VLOOKUP(Switch!$D$34,$F$2:$G$44,2,FALSE)+ROW()-2)),\"\")","v":{"$error":"#N/A"}},{"$f":"IF(INDIRECT(\"c\" & (VLOOKUP(Switch!$D$35,$F$2:$G$44,2,FALSE)+ROW()-2))=Switch!$D$35,INDIRECT(\"a\" & (VLOOKUP(Switch!$D$35,$F$2:$G$44,2,FALSE)+ROW()-2)),\"\")","v":{"$error":"#N/A"}},{"$f":"IF(INDIRECT(\"c\" & (VLOOKUP(Switch!$D$36,$F$2:$G$44,2,FALSE)+ROW()-2))=Switch!$D$36,INDIRECT(\"a\" & (VLOOKUP(Switch!$D$36,$F$2:$G$44,2,FALSE)+ROW()-2)),\"\")","v":{"$error":"#N/A"}},{"$f":"IF(INDIRECT(\"c\" & (VLOOKUP(Switch!$D$37,$F$2:$G$44,2,FALSE)+ROW()-2))=Switch!$D$37,INDIRECT(\"a\" & (VLOOKUP(Switch!$D$37,$F$2:$G$44,2,FALSE)+ROW()-2)),\"\")","v":{"$error":"#N/A"}},{"$f":"IF(INDIRECT(\"c\" & (VLOOKUP(Switch!$D$38,$F$2:$G$44,2,FALSE)+ROW()-2))=Switch!$D$38,INDIRECT(\"a\" & (VLOOKUP(Switch!$D$38,$F$2:$G$44,2,FALSE)+ROW()-2)),\"\")","v":{"$error":"#N/A"}},{"$f":"IF(INDIRECT(\"c\" & (VLOOKUP(Switch!$D$39,$F$2:$G$44,2,FALSE)+ROW()-2))=Switch!$D$39,INDIRECT(\"a\" & (VLOOKUP(Switch!$D$39,$F$2:$G$44,2,FALSE)+ROW()-2)),\"\")","v":{"$error":"#N/A"}},{"$f":"IF(INDIRECT(\"c\" & (VLOOKUP(Switch!$D$40,$F$2:$G$44,2,FALSE)+ROW()-2))=Switch!$D$40,INDIRECT(\"a\" & (VLOOKUP(Switch!$D$40,$F$2:$G$44,2,FALSE)+ROW()-2)),\"\")","v":{"$error":"#N/A"}},{"$f":"IF(INDIRECT(\"c\" & (VLOOKUP(Switch!$D$52,$F$2:$G$44,2,FALSE)+ROW()-2))=Switch!$D$52,INDIRECT(\"a\" & (VLOOKUP(Switch!$D$52,$F$2:$G$44,2,FALSE)+ROW()-2)),\"\")","v":{"$error":"#N/A"}},{"$f":"IF(INDIRECT(\"c\" & (VLOOKUP(Switch!$D$53,$F$2:$G$44,2,FALSE)+ROW()-2))=Switch!$D$53,INDIRECT(\"a\" & (VLOOKUP(Switch!$D$53,$F$2:$G$44,2,FALSE)+ROW()-2)),\"\")","v":{"$error":"#N/A"}},{"$f":"IF(INDIRECT(\"c\" & (VLOOKUP(Switch!$D$54,$F$2:$G$44,2,FALSE)+ROW()-2))=Switch!$D$54,INDIRECT(\"a\" & (VLOOKUP(Switch!$D$54,$F$2:$G$44,2,FALSE)+ROW()-2)),\"\")","v":{"$error":"#N/A"}},{"$f":"IF(INDIRECT(\"c\" & (VLOOKUP(Switch!$D$55,$F$2:$G$44,2,FALSE)+ROW()-2))=Switch!$D$55,INDIRECT(\"a\" & (VLOOKUP(Switch!$D$55,$F$2:$G$44,2,FALSE)+ROW()-2)),\"\")","v":{"$error":"#N/A"}},{"$f":"IF(INDIRECT(\"c\" & (VLOOKUP(Switch!$D$56,$F$2:$G$44,2,FALSE)+ROW()-2))=Switch!$D$56,INDIRECT(\"a\" & (VLOOKUP(Switch!$D$56,$F$2:$G$44,2,FALSE)+ROW()-2)),\"\")","v":{"$error":"#N/A"}},{"$f":"IF(INDIRECT(\"c\" & (VLOOKUP(Switch!$D$57,$F$2:$G$44,2,FALSE)+ROW()-2))=Switch!$D$57,INDIRECT(\"a\" & (VLOOKUP(Switch!$D$57,$F$2:$G$44,2,FALSE)+ROW()-2)),\"\")","v":{"$error":"#N/A"}},{"$f":"IF(INDIRECT(\"c\" & (VLOOKUP(Switch!$D$58,$F$2:$G$44,2,FALSE)+ROW()-2))=Switch!$D$58,INDIRECT(\"a\" & (VLOOKUP(Switch!$D$58,$F$2:$G$44,2,FALSE)+ROW()-2)),\"\")","v":{"$error":"#N/A"}},{"$f":"IF(INDIRECT(\"c\" & (VLOOKUP(Switch!$D$59,$F$2:$G$44,2,FALSE)+ROW()-2))=Switch!$D$59,INDIRECT(\"a\" & (VLOOKUP(Switch!$D$59,$F$2:$G$44,2,FALSE)+ROW()-2)),\"\")","v":{"$error":"#N/A"}},{"$f":"IF(INDIRECT(\"c\" & (VLOOKUP(Switch!$D$60,$F$2:$G$44,2,FALSE)+ROW()-2))=Switch!$D$60,INDIRECT(\"a\" & (VLOOKUP(Switch!$D$60,$F$2:$G$44,2,FALSE)+ROW()-2)),\"\")","v":{"$error":"#N/A"}},{"$f":"IF(INDIRECT(\"c\" & (VLOOKUP(Switch!$D$61,$F$2:$G$44,2,FALSE)+ROW()-2))=Switch!$D$61,INDIRECT(\"a\" & (VLOOKUP(Switch!$D$61,$F$2:$G$44,2,FALSE)+ROW()-2)),\"\")","v":{"$error":"#N/A"}},{"$f":"IF(INDIRECT(\"c\" & (VLOOKUP(Switch!$D$62,$F$2:$G$44,2,FALSE)+ROW()-2))=Switch!$D$62,INDIRECT(\"a\" & (VLOOKUP(Switch!$D$62,$F$2:$G$44,2,FALSE)+ROW()-2)),\"\")","v":{"$error":"#N/A"}},{"$f":"IF(INDIRECT(\"c\" & (VLOOKUP(Switch!$D$63,$F$2:$G$44,2,FALSE)+ROW()-2))=Switch!$D$63,INDIRECT(\"a\" & (VLOOKUP(Switch!$D$63,$F$2:$G$44,2,FALSE)+ROW()-2)),\"\")","v":{"$error":"#N/A"}},{"$f":"IF(INDIRECT(\"c\" & (VLOOKUP(Switch!$D$64,$F$2:$G$44,2,FALSE)+ROW()-2))=Switch!$D$64,INDIRECT(\"a\" & (VLOOKUP(Switch!$D$64,$F$2:$G$44,2,FALSE)+ROW()-2)),\"\")","v":{"$error":"#N/A"}},{"$f":"IF(INDIRECT(\"c\" & (VLOOKUP(Switch!$D$65,$F$2:$G$44,2,FALSE)+ROW()-2))=Switch!$D$65,INDIRECT(\"a\" & (VLOOKUP(Switch!$D$65,$F$2:$G$44,2,FALSE)+ROW()-2)),\"\")","v":{"$error":"#N/A"}},{"$f":"IF(INDIRECT(\"c\" & (VLOOKUP(Switch!$D$66,$F$2:$G$44,2,FALSE)+ROW()-2))=Switch!$D$66,INDIRECT(\"a\" & (VLOOKUP(Switch!$D$66,$F$2:$G$44,2,FALSE)+ROW()-2)),\"\")","v":{"$error":"#N/A"}}]
["Adviceworx Old Mutual Inflation Plus 5-7% FoF B1","AOPB1","Old Mutual Unit Trust Managers Limited",{"$f":"ROW()","v":399},null,null,{"$f":"VLOOKUP(F399,$C$2:$D$637,2,FALSE)","v":{"$error":"#N/A"}},{"$f":"IF(INDIRECT(\"c\" & (VLOOKUP(Switch!$D$26,$F$2:$G$44,2,FALSE)+ROW()-2))=Switch!$D$26,INDIRECT(\"a\" & (VLOOKUP(Switch!$D$26,$F$2:$G$44,2,FALSE)+ROW()-2)),\"\")","v":{"$error":"#N/A"}},{"$f":"IF(INDIRECT(\"c\" & (VLOOKUP(Switch!$D$27,$F$2:$G$44,2,FALSE)+ROW()-2))=Switch!$D$27,INDIRECT(\"a\" & (VLOOKUP(Switch!$D$27,$F$2:$G$44,2,FALSE)+ROW()-2)),\"\")","v":{"$error":"#N/A"}},{"$f":"IF(INDIRECT(\"c\" & (VLOOKUP(Switch!$D$28,$F$2:$G$44,2,FALSE)+ROW()-2))=Switch!$D$28,INDIRECT(\"a\" & (VLOOKUP(Switch!$D$28,$F$2:$G$44,2,FALSE)+ROW()-2)),\"\")","v":{"$error":"#N/A"}},{"$f":"IF(INDIRECT(\"c\" & (VLOOKUP(Switch!$D$29,$F$2:$G$44,2,FALSE)+ROW()-2))=Switch!$D$29,INDIRECT(\"a\" & (VLOOKUP(Switch!$D$29,$F$2:$G$44,2,FALSE)+ROW()-2)),\"\")","v":{"$error":"#N/A"}},{"$f":"IF(INDIRECT(\"c\" & (VLOOKUP(Switch!$D$30,$F$2:$G$44,2,FALSE)+ROW()-2))=Switch!$D$30,INDIRECT(\"a\" & (VLOOKUP(Switch!$D$30,$F$2:$G$44,2,FALSE)+ROW()-2)),\"\")","v":{"$error":"#N/A"}},{"$f":"IF(INDIRECT(\"c\" & (VLOOKUP(Switch!$D$31,$F$2:$G$44,2,FALSE)+ROW()-2))=Switch!$D$31,INDIRECT(\"a\" & (VLOOKUP(Switch!$D$31,$F$2:$G$44,2,FALSE)+ROW()-2)),\"\")","v":{"$error":"#N/A"}},{"$f":"IF(INDIRECT(\"c\" & (VLOOKUP(Switch!$D$32,$F$2:$G$44,2,FALSE)+ROW()-2))=Switch!$D$32,INDIRECT(\"a\" & (VLOOKUP(Switch!$D$32,$F$2:$G$44,2,FALSE)+ROW()-2)),\"\")","v":{"$error":"#N/A"}},{"$f":"IF(INDIRECT(\"c\" & (VLOOKUP(Switch!$D$33,$F$2:$G$44,2,FALSE)+ROW()-2))=Switch!$D$33,INDIRECT(\"a\" & (VLOOKUP(Switch!$D$33,$F$2:$G$44,2,FALSE)+ROW()-2)),\"\")","v":{"$error":"#N/A"}},{"$f":"IF(INDIRECT(\"c\" & (VLOOKUP(Switch!$D$34,$F$2:$G$44,2,FALSE)+ROW()-2))=Switch!$D$34,INDIRECT(\"a\" & (VLOOKUP(Switch!$D$34,$F$2:$G$44,2,FALSE)+ROW()-2)),\"\")","v":{"$error":"#N/A"}},{"$f":"IF(INDIRECT(\"c\" & (VLOOKUP(Switch!$D$35,$F$2:$G$44,2,FALSE)+ROW()-2))=Switch!$D$35,INDIRECT(\"a\" & (VLOOKUP(Switch!$D$35,$F$2:$G$44,2,FALSE)+ROW()-2)),\"\")","v":{"$error":"#N/A"}},{"$f":"IF(INDIRECT(\"c\" & (VLOOKUP(Switch!$D$36,$F$2:$G$44,2,FALSE)+ROW()-2))=Switch!$D$36,INDIRECT(\"a\" & (VLOOKUP(Switch!$D$36,$F$2:$G$44,2,FALSE)+ROW()-2)),\"\")","v":{"$error":"#N/A"}},{"$f":"IF(INDIRECT(\"c\" & (VLOOKUP(Switch!$D$37,$F$2:$G$44,2,FALSE)+ROW()-2))=Switch!$D$37,INDIRECT(\"a\" & (VLOOKUP(Switch!$D$37,$F$2:$G$44,2,FALSE)+ROW()-2)),\"\")","v":{"$error":"#N/A"}},{"$f":"IF(INDIRECT(\"c\" & (VLOOKUP(Switch!$D$38,$F$2:$G$44,2,FALSE)+ROW()-2))=Switch!$D$38,INDIRECT(\"a\" & (VLOOKUP(Switch!$D$38,$F$2:$G$44,2,FALSE)+ROW()-2)),\"\")","v":{"$error":"#N/A"}},{"$f":"IF(INDIRECT(\"c\" & (VLOOKUP(Switch!$D$39,$F$2:$G$44,2,FALSE)+ROW()-2))=Switch!$D$39,INDIRECT(\"a\" & (VLOOKUP(Switch!$D$39,$F$2:$G$44,2,FALSE)+ROW()-2)),\"\")","v":{"$error":"#N/A"}},{"$f":"IF(INDIRECT(\"c\" & (VLOOKUP(Switch!$D$40,$F$2:$G$44,2,FALSE)+ROW()-2))=Switch!$D$40,INDIRECT(\"a\" & (VLOOKUP(Switch!$D$40,$F$2:$G$44,2,FALSE)+ROW()-2)),\"\")","v":{"$error":"#N/A"}},{"$f":"IF(INDIRECT(\"c\" & (VLOOKUP(Switch!$D$52,$F$2:$G$44,2,FALSE)+ROW()-2))=Switch!$D$52,INDIRECT(\"a\" & (VLOOKUP(Switch!$D$52,$F$2:$G$44,2,FALSE)+ROW()-2)),\"\")","v":{"$error":"#N/A"}},{"$f":"IF(INDIRECT(\"c\" & (VLOOKUP(Switch!$D$53,$F$2:$G$44,2,FALSE)+ROW()-2))=Switch!$D$53,INDIRECT(\"a\" & (VLOOKUP(Switch!$D$53,$F$2:$G$44,2,FALSE)+ROW()-2)),\"\")","v":{"$error":"#N/A"}},{"$f":"IF(INDIRECT(\"c\" & (VLOOKUP(Switch!$D$54,$F$2:$G$44,2,FALSE)+ROW()-2))=Switch!$D$54,INDIRECT(\"a\" & (VLOOKUP(Switch!$D$54,$F$2:$G$44,2,FALSE)+ROW()-2)),\"\")","v":{"$error":"#N/A"}},{"$f":"IF(INDIRECT(\"c\" & (VLOOKUP(Switch!$D$55,$F$2:$G$44,2,FALSE)+ROW()-2))=Switch!$D$55,INDIRECT(\"a\" & (VLOOKUP(Switch!$D$55,$F$2:$G$44,2,FALSE)+ROW()-2)),\"\")","v":{"$error":"#N/A"}},{"$f":"IF(INDIRECT(\"c\" & (VLOOKUP(Switch!$D$56,$F$2:$G$44,2,FALSE)+ROW()-2))=Switch!$D$56,INDIRECT(\"a\" & (VLOOKUP(Switch!$D$56,$F$2:$G$44,2,FALSE)+ROW()-2)),\"\")","v":{"$error":"#N/A"}},{"$f":"IF(INDIRECT(\"c\" & (VLOOKUP(Switch!$D$57,$F$2:$G$44,2,FALSE)+ROW()-2))=Switch!$D$57,INDIRECT(\"a\" & (VLOOKUP(Switch!$D$57,$F$2:$G$44,2,FALSE)+ROW()-2)),\"\")","v":{"$error":"#N/A"}},{"$f":"IF(INDIRECT(\"c\" & (VLOOKUP(Switch!$D$58,$F$2:$G$44,2,FALSE)+ROW()-2))=Switch!$D$58,INDIRECT(\"a\" & (VLOOKUP(Switch!$D$58,$F$2:$G$44,2,FALSE)+ROW()-2)),\"\")","v":{"$error":"#N/A"}},{"$f":"IF(INDIRECT(\"c\" & (VLOOKUP(Switch!$D$59,$F$2:$G$44,2,FALSE)+ROW()-2))=Switch!$D$59,INDIRECT(\"a\" & (VLOOKUP(Switch!$D$59,$F$2:$G$44,2,FALSE)+ROW()-2)),\"\")","v":{"$error":"#N/A"}},{"$f":"IF(INDIRECT(\"c\" & (VLOOKUP(Switch!$D$60,$F$2:$G$44,2,FALSE)+ROW()-2))=Switch!$D$60,INDIRECT(\"a\" & (VLOOKUP(Switch!$D$60,$F$2:$G$44,2,FALSE)+ROW()-2)),\"\")","v":{"$error":"#N/A"}},{"$f":"IF(INDIRECT(\"c\" & (VLOOKUP(Switch!$D$61,$F$2:$G$44,2,FALSE)+ROW()-2))=Switch!$D$61,INDIRECT(\"a\" & (VLOOKUP(Switch!$D$61,$F$2:$G$44,2,FALSE)+ROW()-2)),\"\")","v":{"$error":"#N/A"}},{"$f":"IF(INDIRECT(\"c\" & (VLOOKUP(Switch!$D$62,$F$2:$G$44,2,FALSE)+ROW()-2))=Switch!$D$62,INDIRECT(\"a\" & (VLOOKUP(Switch!$D$62,$F$2:$G$44,2,FALSE)+ROW()-2)),\"\")","v":{"$error":"#N/A"}},{"$f":"IF(INDIRECT(\"c\" & (VLOOKUP(Switch!$D$63,$F$2:$G$44,2,FALSE)+ROW()-2))=Switch!$D$63,INDIRECT(\"a\" & (VLOOKUP(Switch!$D$63,$F$2:$G$44,2,FALSE)+ROW()-2)),\"\")","v":{"$error":"#N/A"}},{"$f":"IF(INDIRECT(\"c\" & (VLOOKUP(Switch!$D$64,$F$2:$G$44,2,FALSE)+ROW()-2))=Switch!$D$64,INDIRECT(\"a\" & (VLOOKUP(Switch!$D$64,$F$2:$G$44,2,FALSE)+ROW()-2)),\"\")","v":{"$error":"#N/A"}},{"$f":"IF(INDIRECT(\"c\" & (VLOOKUP(Switch!$D$65,$F$2:$G$44,2,FALSE)+ROW()-2))=Switch!$D$65,INDIRECT(\"a\" & (VLOOKUP(Switch!$D$65,$F$2:$G$44,2,FALSE)+ROW()-2)),\"\")","v":{"$error":"#N/A"}},{"$f":"IF(INDIRECT(\"c\" & (VLOOKUP(Switch!$D$66,$F$2:$G$44,2,FALSE)+ROW()-2))=Switch!$D$66,INDIRECT(\"a\" & (VLOOKUP(Switch!$D$66,$F$2:$G$44,2,FALSE)+ROW()-2)),\"\")","v":{"$error":"#N/A"}}]
["Old Mutual Active Quant Equity Fund A","OMAA","Old Mutual Unit Trust Managers Limited",{"$f":"ROW()","v":400},null,null,{"$f":"VLOOKUP(F400,$C$2:$D$637,2,FALSE)","v":{"$error":"#N/A"}},{"$f":"IF(INDIRECT(\"c\" & (VLOOKUP(Switch!$D$26,$F$2:$G$44,2,FALSE)+ROW()-2))=Switch!$D$26,INDIRECT(\"a\" & (VLOOKUP(Switch!$D$26,$F$2:$G$44,2,FALSE)+ROW()-2)),\"\")","v":{"$error":"#N/A"}},{"$f":"IF(INDIRECT(\"c\" & (VLOOKUP(Switch!$D$27,$F$2:$G$44,2,FALSE)+ROW()-2))=Switch!$D$27,INDIRECT(\"a\" & (VLOOKUP(Switch!$D$27,$F$2:$G$44,2,FALSE)+ROW()-2)),\"\")","v":{"$error":"#N/A"}},{"$f":"IF(INDIRECT(\"c\" & (VLOOKUP(Switch!$D$28,$F$2:$G$44,2,FALSE)+ROW()-2))=Switch!$D$28,INDIRECT(\"a\" & (VLOOKUP(Switch!$D$28,$F$2:$G$44,2,FALSE)+ROW()-2)),\"\")","v":{"$error":"#N/A"}},{"$f":"IF(INDIRECT(\"c\" & (VLOOKUP(Switch!$D$29,$F$2:$G$44,2,FALSE)+ROW()-2))=Switch!$D$29,INDIRECT(\"a\" & (VLOOKUP(Switch!$D$29,$F$2:$G$44,2,FALSE)+ROW()-2)),\"\")","v":{"$error":"#N/A"}},{"$f":"IF(INDIRECT(\"c\" & (VLOOKUP(Switch!$D$30,$F$2:$G$44,2,FALSE)+ROW()-2))=Switch!$D$30,INDIRECT(\"a\" & (VLOOKUP(Switch!$D$30,$F$2:$G$44,2,FALSE)+ROW()-2)),\"\")","v":{"$error":"#N/A"}},{"$f":"IF(INDIRECT(\"c\" & (VLOOKUP(Switch!$D$31,$F$2:$G$44,2,FALSE)+ROW()-2))=Switch!$D$31,INDIRECT(\"a\" & (VLOOKUP(Switch!$D$31,$F$2:$G$44,2,FALSE)+ROW()-2)),\"\")","v":{"$error":"#N/A"}},{"$f":"IF(INDIRECT(\"c\" & (VLOOKUP(Switch!$D$32,$F$2:$G$44,2,FALSE)+ROW()-2))=Switch!$D$32,INDIRECT(\"a\" & (VLOOKUP(Switch!$D$32,$F$2:$G$44,2,FALSE)+ROW()-2)),\"\")","v":{"$error":"#N/A"}},{"$f":"IF(INDIRECT(\"c\" & (VLOOKUP(Switch!$D$33,$F$2:$G$44,2,FALSE)+ROW()-2))=Switch!$D$33,INDIRECT(\"a\" & (VLOOKUP(Switch!$D$33,$F$2:$G$44,2,FALSE)+ROW()-2)),\"\")","v":{"$error":"#N/A"}},{"$f":"IF(INDIRECT(\"c\" & (VLOOKUP(Switch!$D$34,$F$2:$G$44,2,FALSE)+ROW()-2))=Switch!$D$34,INDIRECT(\"a\" & (VLOOKUP(Switch!$D$34,$F$2:$G$44,2,FALSE)+ROW()-2)),\"\")","v":{"$error":"#N/A"}},{"$f":"IF(INDIRECT(\"c\" & (VLOOKUP(Switch!$D$35,$F$2:$G$44,2,FALSE)+ROW()-2))=Switch!$D$35,INDIRECT(\"a\" & (VLOOKUP(Switch!$D$35,$F$2:$G$44,2,FALSE)+ROW()-2)),\"\")","v":{"$error":"#N/A"}},{"$f":"IF(INDIRECT(\"c\" & (VLOOKUP(Switch!$D$36,$F$2:$G$44,2,FALSE)+ROW()-2))=Switch!$D$36,INDIRECT(\"a\" & (VLOOKUP(Switch!$D$36,$F$2:$G$44,2,FALSE)+ROW()-2)),\"\")","v":{"$error":"#N/A"}},{"$f":"IF(INDIRECT(\"c\" & (VLOOKUP(Switch!$D$37,$F$2:$G$44,2,FALSE)+ROW()-2))=Switch!$D$37,INDIRECT(\"a\" & (VLOOKUP(Switch!$D$37,$F$2:$G$44,2,FALSE)+ROW()-2)),\"\")","v":{"$error":"#N/A"}},{"$f":"IF(INDIRECT(\"c\" & (VLOOKUP(Switch!$D$38,$F$2:$G$44,2,FALSE)+ROW()-2))=Switch!$D$38,INDIRECT(\"a\" & (VLOOKUP(Switch!$D$38,$F$2:$G$44,2,FALSE)+ROW()-2)),\"\")","v":{"$error":"#N/A"}},{"$f":"IF(INDIRECT(\"c\" & (VLOOKUP(Switch!$D$39,$F$2:$G$44,2,FALSE)+ROW()-2))=Switch!$D$39,INDIRECT(\"a\" & (VLOOKUP(Switch!$D$39,$F$2:$G$44,2,FALSE)+ROW()-2)),\"\")","v":{"$error":"#N/A"}},{"$f":"IF(INDIRECT(\"c\" & (VLOOKUP(Switch!$D$40,$F$2:$G$44,2,FALSE)+ROW()-2))=Switch!$D$40,INDIRECT(\"a\" & (VLOOKUP(Switch!$D$40,$F$2:$G$44,2,FALSE)+ROW()-2)),\"\")","v":{"$error":"#N/A"}},{"$f":"IF(INDIRECT(\"c\" & (VLOOKUP(Switch!$D$52,$F$2:$G$44,2,FALSE)+ROW()-2))=Switch!$D$52,INDIRECT(\"a\" & (VLOOKUP(Switch!$D$52,$F$2:$G$44,2,FALSE)+ROW()-2)),\"\")","v":{"$error":"#N/A"}},{"$f":"IF(INDIRECT(\"c\" & (VLOOKUP(Switch!$D$53,$F$2:$G$44,2,FALSE)+ROW()-2))=Switch!$D$53,INDIRECT(\"a\" & (VLOOKUP(Switch!$D$53,$F$2:$G$44,2,FALSE)+ROW()-2)),\"\")","v":{"$error":"#N/A"}},{"$f":"IF(INDIRECT(\"c\" & (VLOOKUP(Switch!$D$54,$F$2:$G$44,2,FALSE)+ROW()-2))=Switch!$D$54,INDIRECT(\"a\" & (VLOOKUP(Switch!$D$54,$F$2:$G$44,2,FALSE)+ROW()-2)),\"\")","v":{"$error":"#N/A"}},{"$f":"IF(INDIRECT(\"c\" & (VLOOKUP(Switch!$D$55,$F$2:$G$44,2,FALSE)+ROW()-2))=Switch!$D$55,INDIRECT(\"a\" & (VLOOKUP(Switch!$D$55,$F$2:$G$44,2,FALSE)+ROW()-2)),\"\")","v":{"$error":"#N/A"}},{"$f":"IF(INDIRECT(\"c\" & (VLOOKUP(Switch!$D$56,$F$2:$G$44,2,FALSE)+ROW()-2))=Switch!$D$56,INDIRECT(\"a\" & (VLOOKUP(Switch!$D$56,$F$2:$G$44,2,FALSE)+ROW()-2)),\"\")","v":{"$error":"#N/A"}},{"$f":"IF(INDIRECT(\"c\" & (VLOOKUP(Switch!$D$57,$F$2:$G$44,2,FALSE)+ROW()-2))=Switch!$D$57,INDIRECT(\"a\" & (VLOOKUP(Switch!$D$57,$F$2:$G$44,2,FALSE)+ROW()-2)),\"\")","v":{"$error":"#N/A"}},{"$f":"IF(INDIRECT(\"c\" & (VLOOKUP(Switch!$D$58,$F$2:$G$44,2,FALSE)+ROW()-2))=Switch!$D$58,INDIRECT(\"a\" & (VLOOKUP(Switch!$D$58,$F$2:$G$44,2,FALSE)+ROW()-2)),\"\")","v":{"$error":"#N/A"}},{"$f":"IF(INDIRECT(\"c\" & (VLOOKUP(Switch!$D$59,$F$2:$G$44,2,FALSE)+ROW()-2))=Switch!$D$59,INDIRECT(\"a\" & (VLOOKUP(Switch!$D$59,$F$2:$G$44,2,FALSE)+ROW()-2)),\"\")","v":{"$error":"#N/A"}},{"$f":"IF(INDIRECT(\"c\" & (VLOOKUP(Switch!$D$60,$F$2:$G$44,2,FALSE)+ROW()-2))=Switch!$D$60,INDIRECT(\"a\" & (VLOOKUP(Switch!$D$60,$F$2:$G$44,2,FALSE)+ROW()-2)),\"\")","v":{"$error":"#N/A"}},{"$f":"IF(INDIRECT(\"c\" & (VLOOKUP(Switch!$D$61,$F$2:$G$44,2,FALSE)+ROW()-2))=Switch!$D$61,INDIRECT(\"a\" & (VLOOKUP(Switch!$D$61,$F$2:$G$44,2,FALSE)+ROW()-2)),\"\")","v":{"$error":"#N/A"}},{"$f":"IF(INDIRECT(\"c\" & (VLOOKUP(Switch!$D$62,$F$2:$G$44,2,FALSE)+ROW()-2))=Switch!$D$62,INDIRECT(\"a\" & (VLOOKUP(Switch!$D$62,$F$2:$G$44,2,FALSE)+ROW()-2)),\"\")","v":{"$error":"#N/A"}},{"$f":"IF(INDIRECT(\"c\" & (VLOOKUP(Switch!$D$63,$F$2:$G$44,2,FALSE)+ROW()-2))=Switch!$D$63,INDIRECT(\"a\" & (VLOOKUP(Switch!$D$63,$F$2:$G$44,2,FALSE)+ROW()-2)),\"\")","v":{"$error":"#N/A"}},{"$f":"IF(INDIRECT(\"c\" & (VLOOKUP(Switch!$D$64,$F$2:$G$44,2,FALSE)+ROW()-2))=Switch!$D$64,INDIRECT(\"a\" & (VLOOKUP(Switch!$D$64,$F$2:$G$44,2,FALSE)+ROW()-2)),\"\")","v":{"$error":"#N/A"}},{"$f":"IF(INDIRECT(\"c\" & (VLOOKUP(Switch!$D$65,$F$2:$G$44,2,FALSE)+ROW()-2))=Switch!$D$65,INDIRECT(\"a\" & (VLOOKUP(Switch!$D$65,$F$2:$G$44,2,FALSE)+ROW()-2)),\"\")","v":{"$error":"#N/A"}},{"$f":"IF(INDIRECT(\"c\" & (VLOOKUP(Switch!$D$66,$F$2:$G$44,2,FALSE)+ROW()-2))=Switch!$D$66,INDIRECT(\"a\" & (VLOOKUP(Switch!$D$66,$F$2:$G$44,2,FALSE)+ROW()-2)),\"\")","v":{"$error":"#N/A"}}]
["Old Mutual Albaraka Equity Fund A","OAEB1","Old Mutual Unit Trust Managers Limited",{"$f":"ROW()","v":401},null,null,{"$f":"VLOOKUP(F401,$C$2:$D$637,2,FALSE)","v":{"$error":"#N/A"}},{"$f":"IF(INDIRECT(\"c\" & (VLOOKUP(Switch!$D$26,$F$2:$G$44,2,FALSE)+ROW()-2))=Switch!$D$26,INDIRECT(\"a\" & (VLOOKUP(Switch!$D$26,$F$2:$G$44,2,FALSE)+ROW()-2)),\"\")","v":{"$error":"#N/A"}},{"$f":"IF(INDIRECT(\"c\" & (VLOOKUP(Switch!$D$27,$F$2:$G$44,2,FALSE)+ROW()-2))=Switch!$D$27,INDIRECT(\"a\" & (VLOOKUP(Switch!$D$27,$F$2:$G$44,2,FALSE)+ROW()-2)),\"\")","v":{"$error":"#N/A"}},{"$f":"IF(INDIRECT(\"c\" & (VLOOKUP(Switch!$D$28,$F$2:$G$44,2,FALSE)+ROW()-2))=Switch!$D$28,INDIRECT(\"a\" & (VLOOKUP(Switch!$D$28,$F$2:$G$44,2,FALSE)+ROW()-2)),\"\")","v":{"$error":"#N/A"}},{"$f":"IF(INDIRECT(\"c\" & (VLOOKUP(Switch!$D$29,$F$2:$G$44,2,FALSE)+ROW()-2))=Switch!$D$29,INDIRECT(\"a\" & (VLOOKUP(Switch!$D$29,$F$2:$G$44,2,FALSE)+ROW()-2)),\"\")","v":{"$error":"#N/A"}},{"$f":"IF(INDIRECT(\"c\" & (VLOOKUP(Switch!$D$30,$F$2:$G$44,2,FALSE)+ROW()-2))=Switch!$D$30,INDIRECT(\"a\" & (VLOOKUP(Switch!$D$30,$F$2:$G$44,2,FALSE)+ROW()-2)),\"\")","v":{"$error":"#N/A"}},{"$f":"IF(INDIRECT(\"c\" & (VLOOKUP(Switch!$D$31,$F$2:$G$44,2,FALSE)+ROW()-2))=Switch!$D$31,INDIRECT(\"a\" & (VLOOKUP(Switch!$D$31,$F$2:$G$44,2,FALSE)+ROW()-2)),\"\")","v":{"$error":"#N/A"}},{"$f":"IF(INDIRECT(\"c\" & (VLOOKUP(Switch!$D$32,$F$2:$G$44,2,FALSE)+ROW()-2))=Switch!$D$32,INDIRECT(\"a\" & (VLOOKUP(Switch!$D$32,$F$2:$G$44,2,FALSE)+ROW()-2)),\"\")","v":{"$error":"#N/A"}},{"$f":"IF(INDIRECT(\"c\" & (VLOOKUP(Switch!$D$33,$F$2:$G$44,2,FALSE)+ROW()-2))=Switch!$D$33,INDIRECT(\"a\" & (VLOOKUP(Switch!$D$33,$F$2:$G$44,2,FALSE)+ROW()-2)),\"\")","v":{"$error":"#N/A"}},{"$f":"IF(INDIRECT(\"c\" & (VLOOKUP(Switch!$D$34,$F$2:$G$44,2,FALSE)+ROW()-2))=Switch!$D$34,INDIRECT(\"a\" & (VLOOKUP(Switch!$D$34,$F$2:$G$44,2,FALSE)+ROW()-2)),\"\")","v":{"$error":"#N/A"}},{"$f":"IF(INDIRECT(\"c\" & (VLOOKUP(Switch!$D$35,$F$2:$G$44,2,FALSE)+ROW()-2))=Switch!$D$35,INDIRECT(\"a\" & (VLOOKUP(Switch!$D$35,$F$2:$G$44,2,FALSE)+ROW()-2)),\"\")","v":{"$error":"#N/A"}},{"$f":"IF(INDIRECT(\"c\" & (VLOOKUP(Switch!$D$36,$F$2:$G$44,2,FALSE)+ROW()-2))=Switch!$D$36,INDIRECT(\"a\" & (VLOOKUP(Switch!$D$36,$F$2:$G$44,2,FALSE)+ROW()-2)),\"\")","v":{"$error":"#N/A"}},{"$f":"IF(INDIRECT(\"c\" & (VLOOKUP(Switch!$D$37,$F$2:$G$44,2,FALSE)+ROW()-2))=Switch!$D$37,INDIRECT(\"a\" & (VLOOKUP(Switch!$D$37,$F$2:$G$44,2,FALSE)+ROW()-2)),\"\")","v":{"$error":"#N/A"}},{"$f":"IF(INDIRECT(\"c\" & (VLOOKUP(Switch!$D$38,$F$2:$G$44,2,FALSE)+ROW()-2))=Switch!$D$38,INDIRECT(\"a\" & (VLOOKUP(Switch!$D$38,$F$2:$G$44,2,FALSE)+ROW()-2)),\"\")","v":{"$error":"#N/A"}},{"$f":"IF(INDIRECT(\"c\" & (VLOOKUP(Switch!$D$39,$F$2:$G$44,2,FALSE)+ROW()-2))=Switch!$D$39,INDIRECT(\"a\" & (VLOOKUP(Switch!$D$39,$F$2:$G$44,2,FALSE)+ROW()-2)),\"\")","v":{"$error":"#N/A"}},{"$f":"IF(INDIRECT(\"c\" & (VLOOKUP(Switch!$D$40,$F$2:$G$44,2,FALSE)+ROW()-2))=Switch!$D$40,INDIRECT(\"a\" & (VLOOKUP(Switch!$D$40,$F$2:$G$44,2,FALSE)+ROW()-2)),\"\")","v":{"$error":"#N/A"}},{"$f":"IF(INDIRECT(\"c\" & (VLOOKUP(Switch!$D$52,$F$2:$G$44,2,FALSE)+ROW()-2))=Switch!$D$52,INDIRECT(\"a\" & (VLOOKUP(Switch!$D$52,$F$2:$G$44,2,FALSE)+ROW()-2)),\"\")","v":{"$error":"#N/A"}},{"$f":"IF(INDIRECT(\"c\" & (VLOOKUP(Switch!$D$53,$F$2:$G$44,2,FALSE)+ROW()-2))=Switch!$D$53,INDIRECT(\"a\" & (VLOOKUP(Switch!$D$53,$F$2:$G$44,2,FALSE)+ROW()-2)),\"\")","v":{"$error":"#N/A"}},{"$f":"IF(INDIRECT(\"c\" & (VLOOKUP(Switch!$D$54,$F$2:$G$44,2,FALSE)+ROW()-2))=Switch!$D$54,INDIRECT(\"a\" & (VLOOKUP(Switch!$D$54,$F$2:$G$44,2,FALSE)+ROW()-2)),\"\")","v":{"$error":"#N/A"}},{"$f":"IF(INDIRECT(\"c\" & (VLOOKUP(Switch!$D$55,$F$2:$G$44,2,FALSE)+ROW()-2))=Switch!$D$55,INDIRECT(\"a\" & (VLOOKUP(Switch!$D$55,$F$2:$G$44,2,FALSE)+ROW()-2)),\"\")","v":{"$error":"#N/A"}},{"$f":"IF(INDIRECT(\"c\" & (VLOOKUP(Switch!$D$56,$F$2:$G$44,2,FALSE)+ROW()-2))=Switch!$D$56,INDIRECT(\"a\" & (VLOOKUP(Switch!$D$56,$F$2:$G$44,2,FALSE)+ROW()-2)),\"\")","v":{"$error":"#N/A"}},{"$f":"IF(INDIRECT(\"c\" & (VLOOKUP(Switch!$D$57,$F$2:$G$44,2,FALSE)+ROW()-2))=Switch!$D$57,INDIRECT(\"a\" & (VLOOKUP(Switch!$D$57,$F$2:$G$44,2,FALSE)+ROW()-2)),\"\")","v":{"$error":"#N/A"}},{"$f":"IF(INDIRECT(\"c\" & (VLOOKUP(Switch!$D$58,$F$2:$G$44,2,FALSE)+ROW()-2))=Switch!$D$58,INDIRECT(\"a\" & (VLOOKUP(Switch!$D$58,$F$2:$G$44,2,FALSE)+ROW()-2)),\"\")","v":{"$error":"#N/A"}},{"$f":"IF(INDIRECT(\"c\" & (VLOOKUP(Switch!$D$59,$F$2:$G$44,2,FALSE)+ROW()-2))=Switch!$D$59,INDIRECT(\"a\" & (VLOOKUP(Switch!$D$59,$F$2:$G$44,2,FALSE)+ROW()-2)),\"\")","v":{"$error":"#N/A"}},{"$f":"IF(INDIRECT(\"c\" & (VLOOKUP(Switch!$D$60,$F$2:$G$44,2,FALSE)+ROW()-2))=Switch!$D$60,INDIRECT(\"a\" & (VLOOKUP(Switch!$D$60,$F$2:$G$44,2,FALSE)+ROW()-2)),\"\")","v":{"$error":"#N/A"}},{"$f":"IF(INDIRECT(\"c\" & (VLOOKUP(Switch!$D$61,$F$2:$G$44,2,FALSE)+ROW()-2))=Switch!$D$61,INDIRECT(\"a\" & (VLOOKUP(Switch!$D$61,$F$2:$G$44,2,FALSE)+ROW()-2)),\"\")","v":{"$error":"#N/A"}},{"$f":"IF(INDIRECT(\"c\" & (VLOOKUP(Switch!$D$62,$F$2:$G$44,2,FALSE)+ROW()-2))=Switch!$D$62,INDIRECT(\"a\" & (VLOOKUP(Switch!$D$62,$F$2:$G$44,2,FALSE)+ROW()-2)),\"\")","v":{"$error":"#N/A"}},{"$f":"IF(INDIRECT(\"c\" & (VLOOKUP(Switch!$D$63,$F$2:$G$44,2,FALSE)+ROW()-2))=Switch!$D$63,INDIRECT(\"a\" & (VLOOKUP(Switch!$D$63,$F$2:$G$44,2,FALSE)+ROW()-2)),\"\")","v":{"$error":"#N/A"}},{"$f":"IF(INDIRECT(\"c\" & (VLOOKUP(Switch!$D$64,$F$2:$G$44,2,FALSE)+ROW()-2))=Switch!$D$64,INDIRECT(\"a\" & (VLOOKUP(Switch!$D$64,$F$2:$G$44,2,FALSE)+ROW()-2)),\"\")","v":{"$error":"#N/A"}},{"$f":"IF(INDIRECT(\"c\" & (VLOOKUP(Switch!$D$65,$F$2:$G$44,2,FALSE)+ROW()-2))=Switch!$D$65,INDIRECT(\"a\" & (VLOOKUP(Switch!$D$65,$F$2:$G$44,2,FALSE)+ROW()-2)),\"\")","v":{"$error":"#N/A"}},{"$f":"IF(INDIRECT(\"c\" & (VLOOKUP(Switch!$D$66,$F$2:$G$44,2,FALSE)+ROW()-2))=Switch!$D$66,INDIRECT(\"a\" & (VLOOKUP(Switch!$D$66,$F$2:$G$44,2,FALSE)+ROW()-2)),\"\")","v":{"$error":"#N/A"}}]
["Old Mutual Albaraka Equity Fund B1","OAEB1","Old Mutual Unit Trust Managers Limited",{"$f":"ROW()","v":402},null,null,{"$f":"VLOOKUP(F402,$C$2:$D$637,2,FALSE)","v":{"$error":"#N/A"}},{"$f":"IF(INDIRECT(\"c\" & (VLOOKUP(Switch!$D$26,$F$2:$G$44,2,FALSE)+ROW()-2))=Switch!$D$26,INDIRECT(\"a\" & (VLOOKUP(Switch!$D$26,$F$2:$G$44,2,FALSE)+ROW()-2)),\"\")","v":{"$error":"#N/A"}},{"$f":"IF(INDIRECT(\"c\" & (VLOOKUP(Switch!$D$27,$F$2:$G$44,2,FALSE)+ROW()-2))=Switch!$D$27,INDIRECT(\"a\" & (VLOOKUP(Switch!$D$27,$F$2:$G$44,2,FALSE)+ROW()-2)),\"\")","v":{"$error":"#N/A"}},{"$f":"IF(INDIRECT(\"c\" & (VLOOKUP(Switch!$D$28,$F$2:$G$44,2,FALSE)+ROW()-2))=Switch!$D$28,INDIRECT(\"a\" & (VLOOKUP(Switch!$D$28,$F$2:$G$44,2,FALSE)+ROW()-2)),\"\")","v":{"$error":"#N/A"}},{"$f":"IF(INDIRECT(\"c\" & (VLOOKUP(Switch!$D$29,$F$2:$G$44,2,FALSE)+ROW()-2))=Switch!$D$29,INDIRECT(\"a\" & (VLOOKUP(Switch!$D$29,$F$2:$G$44,2,FALSE)+ROW()-2)),\"\")","v":{"$error":"#N/A"}},{"$f":"IF(INDIRECT(\"c\" & (VLOOKUP(Switch!$D$30,$F$2:$G$44,2,FALSE)+ROW()-2))=Switch!$D$30,INDIRECT(\"a\" & (VLOOKUP(Switch!$D$30,$F$2:$G$44,2,FALSE)+ROW()-2)),\"\")","v":{"$error":"#N/A"}},{"$f":"IF(INDIRECT(\"c\" & (VLOOKUP(Switch!$D$31,$F$2:$G$44,2,FALSE)+ROW()-2))=Switch!$D$31,INDIRECT(\"a\" & (VLOOKUP(Switch!$D$31,$F$2:$G$44,2,FALSE)+ROW()-2)),\"\")","v":{"$error":"#N/A"}},{"$f":"IF(INDIRECT(\"c\" & (VLOOKUP(Switch!$D$32,$F$2:$G$44,2,FALSE)+ROW()-2))=Switch!$D$32,INDIRECT(\"a\" & (VLOOKUP(Switch!$D$32,$F$2:$G$44,2,FALSE)+ROW()-2)),\"\")","v":{"$error":"#N/A"}},{"$f":"IF(INDIRECT(\"c\" & (VLOOKUP(Switch!$D$33,$F$2:$G$44,2,FALSE)+ROW()-2))=Switch!$D$33,INDIRECT(\"a\" & (VLOOKUP(Switch!$D$33,$F$2:$G$44,2,FALSE)+ROW()-2)),\"\")","v":{"$error":"#N/A"}},{"$f":"IF(INDIRECT(\"c\" & (VLOOKUP(Switch!$D$34,$F$2:$G$44,2,FALSE)+ROW()-2))=Switch!$D$34,INDIRECT(\"a\" & (VLOOKUP(Switch!$D$34,$F$2:$G$44,2,FALSE)+ROW()-2)),\"\")","v":{"$error":"#N/A"}},{"$f":"IF(INDIRECT(\"c\" & (VLOOKUP(Switch!$D$35,$F$2:$G$44,2,FALSE)+ROW()-2))=Switch!$D$35,INDIRECT(\"a\" & (VLOOKUP(Switch!$D$35,$F$2:$G$44,2,FALSE)+ROW()-2)),\"\")","v":{"$error":"#N/A"}},{"$f":"IF(INDIRECT(\"c\" & (VLOOKUP(Switch!$D$36,$F$2:$G$44,2,FALSE)+ROW()-2))=Switch!$D$36,INDIRECT(\"a\" & (VLOOKUP(Switch!$D$36,$F$2:$G$44,2,FALSE)+ROW()-2)),\"\")","v":{"$error":"#N/A"}},{"$f":"IF(INDIRECT(\"c\" & (VLOOKUP(Switch!$D$37,$F$2:$G$44,2,FALSE)+ROW()-2))=Switch!$D$37,INDIRECT(\"a\" & (VLOOKUP(Switch!$D$37,$F$2:$G$44,2,FALSE)+ROW()-2)),\"\")","v":{"$error":"#N/A"}},{"$f":"IF(INDIRECT(\"c\" & (VLOOKUP(Switch!$D$38,$F$2:$G$44,2,FALSE)+ROW()-2))=Switch!$D$38,INDIRECT(\"a\" & (VLOOKUP(Switch!$D$38,$F$2:$G$44,2,FALSE)+ROW()-2)),\"\")","v":{"$error":"#N/A"}},{"$f":"IF(INDIRECT(\"c\" & (VLOOKUP(Switch!$D$39,$F$2:$G$44,2,FALSE)+ROW()-2))=Switch!$D$39,INDIRECT(\"a\" & (VLOOKUP(Switch!$D$39,$F$2:$G$44,2,FALSE)+ROW()-2)),\"\")","v":{"$error":"#N/A"}},{"$f":"IF(INDIRECT(\"c\" & (VLOOKUP(Switch!$D$40,$F$2:$G$44,2,FALSE)+ROW()-2))=Switch!$D$40,INDIRECT(\"a\" & (VLOOKUP(Switch!$D$40,$F$2:$G$44,2,FALSE)+ROW()-2)),\"\")","v":{"$error":"#N/A"}},{"$f":"IF(INDIRECT(\"c\" & (VLOOKUP(Switch!$D$52,$F$2:$G$44,2,FALSE)+ROW()-2))=Switch!$D$52,INDIRECT(\"a\" & (VLOOKUP(Switch!$D$52,$F$2:$G$44,2,FALSE)+ROW()-2)),\"\")","v":{"$error":"#N/A"}},{"$f":"IF(INDIRECT(\"c\" & (VLOOKUP(Switch!$D$53,$F$2:$G$44,2,FALSE)+ROW()-2))=Switch!$D$53,INDIRECT(\"a\" & (VLOOKUP(Switch!$D$53,$F$2:$G$44,2,FALSE)+ROW()-2)),\"\")","v":{"$error":"#N/A"}},{"$f":"IF(INDIRECT(\"c\" & (VLOOKUP(Switch!$D$54,$F$2:$G$44,2,FALSE)+ROW()-2))=Switch!$D$54,INDIRECT(\"a\" & (VLOOKUP(Switch!$D$54,$F$2:$G$44,2,FALSE)+ROW()-2)),\"\")","v":{"$error":"#N/A"}},{"$f":"IF(INDIRECT(\"c\" & (VLOOKUP(Switch!$D$55,$F$2:$G$44,2,FALSE)+ROW()-2))=Switch!$D$55,INDIRECT(\"a\" & (VLOOKUP(Switch!$D$55,$F$2:$G$44,2,FALSE)+ROW()-2)),\"\")","v":{"$error":"#N/A"}},{"$f":"IF(INDIRECT(\"c\" & (VLOOKUP(Switch!$D$56,$F$2:$G$44,2,FALSE)+ROW()-2))=Switch!$D$56,INDIRECT(\"a\" & (VLOOKUP(Switch!$D$56,$F$2:$G$44,2,FALSE)+ROW()-2)),\"\")","v":{"$error":"#N/A"}},{"$f":"IF(INDIRECT(\"c\" & (VLOOKUP(Switch!$D$57,$F$2:$G$44,2,FALSE)+ROW()-2))=Switch!$D$57,INDIRECT(\"a\" & (VLOOKUP(Switch!$D$57,$F$2:$G$44,2,FALSE)+ROW()-2)),\"\")","v":{"$error":"#N/A"}},{"$f":"IF(INDIRECT(\"c\" & (VLOOKUP(Switch!$D$58,$F$2:$G$44,2,FALSE)+ROW()-2))=Switch!$D$58,INDIRECT(\"a\" & (VLOOKUP(Switch!$D$58,$F$2:$G$44,2,FALSE)+ROW()-2)),\"\")","v":{"$error":"#N/A"}},{"$f":"IF(INDIRECT(\"c\" & (VLOOKUP(Switch!$D$59,$F$2:$G$44,2,FALSE)+ROW()-2))=Switch!$D$59,INDIRECT(\"a\" & (VLOOKUP(Switch!$D$59,$F$2:$G$44,2,FALSE)+ROW()-2)),\"\")","v":{"$error":"#N/A"}},{"$f":"IF(INDIRECT(\"c\" & (VLOOKUP(Switch!$D$60,$F$2:$G$44,2,FALSE)+ROW()-2))=Switch!$D$60,INDIRECT(\"a\" & (VLOOKUP(Switch!$D$60,$F$2:$G$44,2,FALSE)+ROW()-2)),\"\")","v":{"$error":"#N/A"}},{"$f":"IF(INDIRECT(\"c\" & (VLOOKUP(Switch!$D$61,$F$2:$G$44,2,FALSE)+ROW()-2))=Switch!$D$61,INDIRECT(\"a\" & (VLOOKUP(Switch!$D$61,$F$2:$G$44,2,FALSE)+ROW()-2)),\"\")","v":{"$error":"#N/A"}},{"$f":"IF(INDIRECT(\"c\" & (VLOOKUP(Switch!$D$62,$F$2:$G$44,2,FALSE)+ROW()-2))=Switch!$D$62,INDIRECT(\"a\" & (VLOOKUP(Switch!$D$62,$F$2:$G$44,2,FALSE)+ROW()-2)),\"\")","v":{"$error":"#N/A"}},{"$f":"IF(INDIRECT(\"c\" & (VLOOKUP(Switch!$D$63,$F$2:$G$44,2,FALSE)+ROW()-2))=Switch!$D$63,INDIRECT(\"a\" & (VLOOKUP(Switch!$D$63,$F$2:$G$44,2,FALSE)+ROW()-2)),\"\")","v":{"$error":"#N/A"}},{"$f":"IF(INDIRECT(\"c\" & (VLOOKUP(Switch!$D$64,$F$2:$G$44,2,FALSE)+ROW()-2))=Switch!$D$64,INDIRECT(\"a\" & (VLOOKUP(Switch!$D$64,$F$2:$G$44,2,FALSE)+ROW()-2)),\"\")","v":{"$error":"#N/A"}},{"$f":"IF(INDIRECT(\"c\" & (VLOOKUP(Switch!$D$65,$F$2:$G$44,2,FALSE)+ROW()-2))=Switch!$D$65,INDIRECT(\"a\" & (VLOOKUP(Switch!$D$65,$F$2:$G$44,2,FALSE)+ROW()-2)),\"\")","v":{"$error":"#N/A"}},{"$f":"IF(INDIRECT(\"c\" & (VLOOKUP(Switch!$D$66,$F$2:$G$44,2,FALSE)+ROW()-2))=Switch!$D$66,INDIRECT(\"a\" & (VLOOKUP(Switch!$D$66,$F$2:$G$44,2,FALSE)+ROW()-2)),\"\")","v":{"$error":"#N/A"}}]
["Old Mutual Albaraka Balanced Fund B1","OMAB1","Old Mutual Unit Trust Managers Limited",{"$f":"ROW()","v":403},null,null,{"$f":"VLOOKUP(F403,$C$2:$D$637,2,FALSE)","v":{"$error":"#N/A"}},{"$f":"IF(INDIRECT(\"c\" & (VLOOKUP(Switch!$D$26,$F$2:$G$44,2,FALSE)+ROW()-2))=Switch!$D$26,INDIRECT(\"a\" & (VLOOKUP(Switch!$D$26,$F$2:$G$44,2,FALSE)+ROW()-2)),\"\")","v":{"$error":"#N/A"}},{"$f":"IF(INDIRECT(\"c\" & (VLOOKUP(Switch!$D$27,$F$2:$G$44,2,FALSE)+ROW()-2))=Switch!$D$27,INDIRECT(\"a\" & (VLOOKUP(Switch!$D$27,$F$2:$G$44,2,FALSE)+ROW()-2)),\"\")","v":{"$error":"#N/A"}},{"$f":"IF(INDIRECT(\"c\" & (VLOOKUP(Switch!$D$28,$F$2:$G$44,2,FALSE)+ROW()-2))=Switch!$D$28,INDIRECT(\"a\" & (VLOOKUP(Switch!$D$28,$F$2:$G$44,2,FALSE)+ROW()-2)),\"\")","v":{"$error":"#N/A"}},{"$f":"IF(INDIRECT(\"c\" & (VLOOKUP(Switch!$D$29,$F$2:$G$44,2,FALSE)+ROW()-2))=Switch!$D$29,INDIRECT(\"a\" & (VLOOKUP(Switch!$D$29,$F$2:$G$44,2,FALSE)+ROW()-2)),\"\")","v":{"$error":"#N/A"}},{"$f":"IF(INDIRECT(\"c\" & (VLOOKUP(Switch!$D$30,$F$2:$G$44,2,FALSE)+ROW()-2))=Switch!$D$30,INDIRECT(\"a\" & (VLOOKUP(Switch!$D$30,$F$2:$G$44,2,FALSE)+ROW()-2)),\"\")","v":{"$error":"#N/A"}},{"$f":"IF(INDIRECT(\"c\" & (VLOOKUP(Switch!$D$31,$F$2:$G$44,2,FALSE)+ROW()-2))=Switch!$D$31,INDIRECT(\"a\" & (VLOOKUP(Switch!$D$31,$F$2:$G$44,2,FALSE)+ROW()-2)),\"\")","v":{"$error":"#N/A"}},{"$f":"IF(INDIRECT(\"c\" & (VLOOKUP(Switch!$D$32,$F$2:$G$44,2,FALSE)+ROW()-2))=Switch!$D$32,INDIRECT(\"a\" & (VLOOKUP(Switch!$D$32,$F$2:$G$44,2,FALSE)+ROW()-2)),\"\")","v":{"$error":"#N/A"}},{"$f":"IF(INDIRECT(\"c\" & (VLOOKUP(Switch!$D$33,$F$2:$G$44,2,FALSE)+ROW()-2))=Switch!$D$33,INDIRECT(\"a\" & (VLOOKUP(Switch!$D$33,$F$2:$G$44,2,FALSE)+ROW()-2)),\"\")","v":{"$error":"#N/A"}},{"$f":"IF(INDIRECT(\"c\" & (VLOOKUP(Switch!$D$34,$F$2:$G$44,2,FALSE)+ROW()-2))=Switch!$D$34,INDIRECT(\"a\" & (VLOOKUP(Switch!$D$34,$F$2:$G$44,2,FALSE)+ROW()-2)),\"\")","v":{"$error":"#N/A"}},{"$f":"IF(INDIRECT(\"c\" & (VLOOKUP(Switch!$D$35,$F$2:$G$44,2,FALSE)+ROW()-2))=Switch!$D$35,INDIRECT(\"a\" & (VLOOKUP(Switch!$D$35,$F$2:$G$44,2,FALSE)+ROW()-2)),\"\")","v":{"$error":"#N/A"}},{"$f":"IF(INDIRECT(\"c\" & (VLOOKUP(Switch!$D$36,$F$2:$G$44,2,FALSE)+ROW()-2))=Switch!$D$36,INDIRECT(\"a\" & (VLOOKUP(Switch!$D$36,$F$2:$G$44,2,FALSE)+ROW()-2)),\"\")","v":{"$error":"#N/A"}},{"$f":"IF(INDIRECT(\"c\" & (VLOOKUP(Switch!$D$37,$F$2:$G$44,2,FALSE)+ROW()-2))=Switch!$D$37,INDIRECT(\"a\" & (VLOOKUP(Switch!$D$37,$F$2:$G$44,2,FALSE)+ROW()-2)),\"\")","v":{"$error":"#N/A"}},{"$f":"IF(INDIRECT(\"c\" & (VLOOKUP(Switch!$D$38,$F$2:$G$44,2,FALSE)+ROW()-2))=Switch!$D$38,INDIRECT(\"a\" & (VLOOKUP(Switch!$D$38,$F$2:$G$44,2,FALSE)+ROW()-2)),\"\")","v":{"$error":"#N/A"}},{"$f":"IF(INDIRECT(\"c\" & (VLOOKUP(Switch!$D$39,$F$2:$G$44,2,FALSE)+ROW()-2))=Switch!$D$39,INDIRECT(\"a\" & (VLOOKUP(Switch!$D$39,$F$2:$G$44,2,FALSE)+ROW()-2)),\"\")","v":{"$error":"#N/A"}},{"$f":"IF(INDIRECT(\"c\" & (VLOOKUP(Switch!$D$40,$F$2:$G$44,2,FALSE)+ROW()-2))=Switch!$D$40,INDIRECT(\"a\" & (VLOOKUP(Switch!$D$40,$F$2:$G$44,2,FALSE)+ROW()-2)),\"\")","v":{"$error":"#N/A"}},{"$f":"IF(INDIRECT(\"c\" & (VLOOKUP(Switch!$D$52,$F$2:$G$44,2,FALSE)+ROW()-2))=Switch!$D$52,INDIRECT(\"a\" & (VLOOKUP(Switch!$D$52,$F$2:$G$44,2,FALSE)+ROW()-2)),\"\")","v":{"$error":"#N/A"}},{"$f":"IF(INDIRECT(\"c\" & (VLOOKUP(Switch!$D$53,$F$2:$G$44,2,FALSE)+ROW()-2))=Switch!$D$53,INDIRECT(\"a\" & (VLOOKUP(Switch!$D$53,$F$2:$G$44,2,FALSE)+ROW()-2)),\"\")","v":{"$error":"#N/A"}},{"$f":"IF(INDIRECT(\"c\" & (VLOOKUP(Switch!$D$54,$F$2:$G$44,2,FALSE)+ROW()-2))=Switch!$D$54,INDIRECT(\"a\" & (VLOOKUP(Switch!$D$54,$F$2:$G$44,2,FALSE)+ROW()-2)),\"\")","v":{"$error":"#N/A"}},{"$f":"IF(INDIRECT(\"c\" & (VLOOKUP(Switch!$D$55,$F$2:$G$44,2,FALSE)+ROW()-2))=Switch!$D$55,INDIRECT(\"a\" & (VLOOKUP(Switch!$D$55,$F$2:$G$44,2,FALSE)+ROW()-2)),\"\")","v":{"$error":"#N/A"}},{"$f":"IF(INDIRECT(\"c\" & (VLOOKUP(Switch!$D$56,$F$2:$G$44,2,FALSE)+ROW()-2))=Switch!$D$56,INDIRECT(\"a\" & (VLOOKUP(Switch!$D$56,$F$2:$G$44,2,FALSE)+ROW()-2)),\"\")","v":{"$error":"#N/A"}},{"$f":"IF(INDIRECT(\"c\" & (VLOOKUP(Switch!$D$57,$F$2:$G$44,2,FALSE)+ROW()-2))=Switch!$D$57,INDIRECT(\"a\" & (VLOOKUP(Switch!$D$57,$F$2:$G$44,2,FALSE)+ROW()-2)),\"\")","v":{"$error":"#N/A"}},{"$f":"IF(INDIRECT(\"c\" & (VLOOKUP(Switch!$D$58,$F$2:$G$44,2,FALSE)+ROW()-2))=Switch!$D$58,INDIRECT(\"a\" & (VLOOKUP(Switch!$D$58,$F$2:$G$44,2,FALSE)+ROW()-2)),\"\")","v":{"$error":"#N/A"}},{"$f":"IF(INDIRECT(\"c\" & (VLOOKUP(Switch!$D$59,$F$2:$G$44,2,FALSE)+ROW()-2))=Switch!$D$59,INDIRECT(\"a\" & (VLOOKUP(Switch!$D$59,$F$2:$G$44,2,FALSE)+ROW()-2)),\"\")","v":{"$error":"#N/A"}},{"$f":"IF(INDIRECT(\"c\" & (VLOOKUP(Switch!$D$60,$F$2:$G$44,2,FALSE)+ROW()-2))=Switch!$D$60,INDIRECT(\"a\" & (VLOOKUP(Switch!$D$60,$F$2:$G$44,2,FALSE)+ROW()-2)),\"\")","v":{"$error":"#N/A"}},{"$f":"IF(INDIRECT(\"c\" & (VLOOKUP(Switch!$D$61,$F$2:$G$44,2,FALSE)+ROW()-2))=Switch!$D$61,INDIRECT(\"a\" & (VLOOKUP(Switch!$D$61,$F$2:$G$44,2,FALSE)+ROW()-2)),\"\")","v":{"$error":"#N/A"}},{"$f":"IF(INDIRECT(\"c\" & (VLOOKUP(Switch!$D$62,$F$2:$G$44,2,FALSE)+ROW()-2))=Switch!$D$62,INDIRECT(\"a\" & (VLOOKUP(Switch!$D$62,$F$2:$G$44,2,FALSE)+ROW()-2)),\"\")","v":{"$error":"#N/A"}},{"$f":"IF(INDIRECT(\"c\" & (VLOOKUP(Switch!$D$63,$F$2:$G$44,2,FALSE)+ROW()-2))=Switch!$D$63,INDIRECT(\"a\" & (VLOOKUP(Switch!$D$63,$F$2:$G$44,2,FALSE)+ROW()-2)),\"\")","v":{"$error":"#N/A"}},{"$f":"IF(INDIRECT(\"c\" & (VLOOKUP(Switch!$D$64,$F$2:$G$44,2,FALSE)+ROW()-2))=Switch!$D$64,INDIRECT(\"a\" & (VLOOKUP(Switch!$D$64,$F$2:$G$44,2,FALSE)+ROW()-2)),\"\")","v":{"$error":"#N/A"}},{"$f":"IF(INDIRECT(\"c\" & (VLOOKUP(Switch!$D$65,$F$2:$G$44,2,FALSE)+ROW()-2))=Switch!$D$65,INDIRECT(\"a\" & (VLOOKUP(Switch!$D$65,$F$2:$G$44,2,FALSE)+ROW()-2)),\"\")","v":{"$error":"#N/A"}},{"$f":"IF(INDIRECT(\"c\" & (VLOOKUP(Switch!$D$66,$F$2:$G$44,2,FALSE)+ROW()-2))=Switch!$D$66,INDIRECT(\"a\" & (VLOOKUP(Switch!$D$66,$F$2:$G$44,2,FALSE)+ROW()-2)),\"\")","v":{"$error":"#N/A"}}]
["Old Mutual Balanced Fund B1","OMBB1","Old Mutual Unit Trust Managers Limited",{"$f":"ROW()","v":404},null,null,{"$f":"VLOOKUP(F404,$C$2:$D$637,2,FALSE)","v":{"$error":"#N/A"}},{"$f":"IF(INDIRECT(\"c\" & (VLOOKUP(Switch!$D$26,$F$2:$G$44,2,FALSE)+ROW()-2))=Switch!$D$26,INDIRECT(\"a\" & (VLOOKUP(Switch!$D$26,$F$2:$G$44,2,FALSE)+ROW()-2)),\"\")","v":{"$error":"#N/A"}},{"$f":"IF(INDIRECT(\"c\" & (VLOOKUP(Switch!$D$27,$F$2:$G$44,2,FALSE)+ROW()-2))=Switch!$D$27,INDIRECT(\"a\" & (VLOOKUP(Switch!$D$27,$F$2:$G$44,2,FALSE)+ROW()-2)),\"\")","v":{"$error":"#N/A"}},{"$f":"IF(INDIRECT(\"c\" & (VLOOKUP(Switch!$D$28,$F$2:$G$44,2,FALSE)+ROW()-2))=Switch!$D$28,INDIRECT(\"a\" & (VLOOKUP(Switch!$D$28,$F$2:$G$44,2,FALSE)+ROW()-2)),\"\")","v":{"$error":"#N/A"}},{"$f":"IF(INDIRECT(\"c\" & (VLOOKUP(Switch!$D$29,$F$2:$G$44,2,FALSE)+ROW()-2))=Switch!$D$29,INDIRECT(\"a\" & (VLOOKUP(Switch!$D$29,$F$2:$G$44,2,FALSE)+ROW()-2)),\"\")","v":{"$error":"#N/A"}},{"$f":"IF(INDIRECT(\"c\" & (VLOOKUP(Switch!$D$30,$F$2:$G$44,2,FALSE)+ROW()-2))=Switch!$D$30,INDIRECT(\"a\" & (VLOOKUP(Switch!$D$30,$F$2:$G$44,2,FALSE)+ROW()-2)),\"\")","v":{"$error":"#N/A"}},{"$f":"IF(INDIRECT(\"c\" & (VLOOKUP(Switch!$D$31,$F$2:$G$44,2,FALSE)+ROW()-2))=Switch!$D$31,INDIRECT(\"a\" & (VLOOKUP(Switch!$D$31,$F$2:$G$44,2,FALSE)+ROW()-2)),\"\")","v":{"$error":"#N/A"}},{"$f":"IF(INDIRECT(\"c\" & (VLOOKUP(Switch!$D$32,$F$2:$G$44,2,FALSE)+ROW()-2))=Switch!$D$32,INDIRECT(\"a\" & (VLOOKUP(Switch!$D$32,$F$2:$G$44,2,FALSE)+ROW()-2)),\"\")","v":{"$error":"#N/A"}},{"$f":"IF(INDIRECT(\"c\" & (VLOOKUP(Switch!$D$33,$F$2:$G$44,2,FALSE)+ROW()-2))=Switch!$D$33,INDIRECT(\"a\" & (VLOOKUP(Switch!$D$33,$F$2:$G$44,2,FALSE)+ROW()-2)),\"\")","v":{"$error":"#N/A"}},{"$f":"IF(INDIRECT(\"c\" & (VLOOKUP(Switch!$D$34,$F$2:$G$44,2,FALSE)+ROW()-2))=Switch!$D$34,INDIRECT(\"a\" & (VLOOKUP(Switch!$D$34,$F$2:$G$44,2,FALSE)+ROW()-2)),\"\")","v":{"$error":"#N/A"}},{"$f":"IF(INDIRECT(\"c\" & (VLOOKUP(Switch!$D$35,$F$2:$G$44,2,FALSE)+ROW()-2))=Switch!$D$35,INDIRECT(\"a\" & (VLOOKUP(Switch!$D$35,$F$2:$G$44,2,FALSE)+ROW()-2)),\"\")","v":{"$error":"#N/A"}},{"$f":"IF(INDIRECT(\"c\" & (VLOOKUP(Switch!$D$36,$F$2:$G$44,2,FALSE)+ROW()-2))=Switch!$D$36,INDIRECT(\"a\" & (VLOOKUP(Switch!$D$36,$F$2:$G$44,2,FALSE)+ROW()-2)),\"\")","v":{"$error":"#N/A"}},{"$f":"IF(INDIRECT(\"c\" & (VLOOKUP(Switch!$D$37,$F$2:$G$44,2,FALSE)+ROW()-2))=Switch!$D$37,INDIRECT(\"a\" & (VLOOKUP(Switch!$D$37,$F$2:$G$44,2,FALSE)+ROW()-2)),\"\")","v":{"$error":"#N/A"}},{"$f":"IF(INDIRECT(\"c\" & (VLOOKUP(Switch!$D$38,$F$2:$G$44,2,FALSE)+ROW()-2))=Switch!$D$38,INDIRECT(\"a\" & (VLOOKUP(Switch!$D$38,$F$2:$G$44,2,FALSE)+ROW()-2)),\"\")","v":{"$error":"#N/A"}},{"$f":"IF(INDIRECT(\"c\" & (VLOOKUP(Switch!$D$39,$F$2:$G$44,2,FALSE)+ROW()-2))=Switch!$D$39,INDIRECT(\"a\" & (VLOOKUP(Switch!$D$39,$F$2:$G$44,2,FALSE)+ROW()-2)),\"\")","v":{"$error":"#N/A"}},{"$f":"IF(INDIRECT(\"c\" & (VLOOKUP(Switch!$D$40,$F$2:$G$44,2,FALSE)+ROW()-2))=Switch!$D$40,INDIRECT(\"a\" & (VLOOKUP(Switch!$D$40,$F$2:$G$44,2,FALSE)+ROW()-2)),\"\")","v":{"$error":"#N/A"}},{"$f":"IF(INDIRECT(\"c\" & (VLOOKUP(Switch!$D$52,$F$2:$G$44,2,FALSE)+ROW()-2))=Switch!$D$52,INDIRECT(\"a\" & (VLOOKUP(Switch!$D$52,$F$2:$G$44,2,FALSE)+ROW()-2)),\"\")","v":{"$error":"#N/A"}},{"$f":"IF(INDIRECT(\"c\" & (VLOOKUP(Switch!$D$53,$F$2:$G$44,2,FALSE)+ROW()-2))=Switch!$D$53,INDIRECT(\"a\" & (VLOOKUP(Switch!$D$53,$F$2:$G$44,2,FALSE)+ROW()-2)),\"\")","v":{"$error":"#N/A"}},{"$f":"IF(INDIRECT(\"c\" & (VLOOKUP(Switch!$D$54,$F$2:$G$44,2,FALSE)+ROW()-2))=Switch!$D$54,INDIRECT(\"a\" & (VLOOKUP(Switch!$D$54,$F$2:$G$44,2,FALSE)+ROW()-2)),\"\")","v":{"$error":"#N/A"}},{"$f":"IF(INDIRECT(\"c\" & (VLOOKUP(Switch!$D$55,$F$2:$G$44,2,FALSE)+ROW()-2))=Switch!$D$55,INDIRECT(\"a\" & (VLOOKUP(Switch!$D$55,$F$2:$G$44,2,FALSE)+ROW()-2)),\"\")","v":{"$error":"#N/A"}},{"$f":"IF(INDIRECT(\"c\" & (VLOOKUP(Switch!$D$56,$F$2:$G$44,2,FALSE)+ROW()-2))=Switch!$D$56,INDIRECT(\"a\" & (VLOOKUP(Switch!$D$56,$F$2:$G$44,2,FALSE)+ROW()-2)),\"\")","v":{"$error":"#N/A"}},{"$f":"IF(INDIRECT(\"c\" & (VLOOKUP(Switch!$D$57,$F$2:$G$44,2,FALSE)+ROW()-2))=Switch!$D$57,INDIRECT(\"a\" & (VLOOKUP(Switch!$D$57,$F$2:$G$44,2,FALSE)+ROW()-2)),\"\")","v":{"$error":"#N/A"}},{"$f":"IF(INDIRECT(\"c\" & (VLOOKUP(Switch!$D$58,$F$2:$G$44,2,FALSE)+ROW()-2))=Switch!$D$58,INDIRECT(\"a\" & (VLOOKUP(Switch!$D$58,$F$2:$G$44,2,FALSE)+ROW()-2)),\"\")","v":{"$error":"#N/A"}},{"$f":"IF(INDIRECT(\"c\" & (VLOOKUP(Switch!$D$59,$F$2:$G$44,2,FALSE)+ROW()-2))=Switch!$D$59,INDIRECT(\"a\" & (VLOOKUP(Switch!$D$59,$F$2:$G$44,2,FALSE)+ROW()-2)),\"\")","v":{"$error":"#N/A"}},{"$f":"IF(INDIRECT(\"c\" & (VLOOKUP(Switch!$D$60,$F$2:$G$44,2,FALSE)+ROW()-2))=Switch!$D$60,INDIRECT(\"a\" & (VLOOKUP(Switch!$D$60,$F$2:$G$44,2,FALSE)+ROW()-2)),\"\")","v":{"$error":"#N/A"}},{"$f":"IF(INDIRECT(\"c\" & (VLOOKUP(Switch!$D$61,$F$2:$G$44,2,FALSE)+ROW()-2))=Switch!$D$61,INDIRECT(\"a\" & (VLOOKUP(Switch!$D$61,$F$2:$G$44,2,FALSE)+ROW()-2)),\"\")","v":{"$error":"#N/A"}},{"$f":"IF(INDIRECT(\"c\" & (VLOOKUP(Switch!$D$62,$F$2:$G$44,2,FALSE)+ROW()-2))=Switch!$D$62,INDIRECT(\"a\" & (VLOOKUP(Switch!$D$62,$F$2:$G$44,2,FALSE)+ROW()-2)),\"\")","v":{"$error":"#N/A"}},{"$f":"IF(INDIRECT(\"c\" & (VLOOKUP(Switch!$D$63,$F$2:$G$44,2,FALSE)+ROW()-2))=Switch!$D$63,INDIRECT(\"a\" & (VLOOKUP(Switch!$D$63,$F$2:$G$44,2,FALSE)+ROW()-2)),\"\")","v":{"$error":"#N/A"}},{"$f":"IF(INDIRECT(\"c\" & (VLOOKUP(Switch!$D$64,$F$2:$G$44,2,FALSE)+ROW()-2))=Switch!$D$64,INDIRECT(\"a\" & (VLOOKUP(Switch!$D$64,$F$2:$G$44,2,FALSE)+ROW()-2)),\"\")","v":{"$error":"#N/A"}},{"$f":"IF(INDIRECT(\"c\" & (VLOOKUP(Switch!$D$65,$F$2:$G$44,2,FALSE)+ROW()-2))=Switch!$D$65,INDIRECT(\"a\" & (VLOOKUP(Switch!$D$65,$F$2:$G$44,2,FALSE)+ROW()-2)),\"\")","v":{"$error":"#N/A"}},{"$f":"IF(INDIRECT(\"c\" & (VLOOKUP(Switch!$D$66,$F$2:$G$44,2,FALSE)+ROW()-2))=Switch!$D$66,INDIRECT(\"a\" & (VLOOKUP(Switch!$D$66,$F$2:$G$44,2,FALSE)+ROW()-2)),\"\")","v":{"$error":"#N/A"}}]
["Old Mutual Bond Fund B1","OGTB","Old Mutual Unit Trust Managers Limited",{"$f":"ROW()","v":405},null,null,{"$f":"VLOOKUP(F405,$C$2:$D$637,2,FALSE)","v":{"$error":"#N/A"}},{"$f":"IF(INDIRECT(\"c\" & (VLOOKUP(Switch!$D$26,$F$2:$G$44,2,FALSE)+ROW()-2))=Switch!$D$26,INDIRECT(\"a\" & (VLOOKUP(Switch!$D$26,$F$2:$G$44,2,FALSE)+ROW()-2)),\"\")","v":{"$error":"#N/A"}},{"$f":"IF(INDIRECT(\"c\" & (VLOOKUP(Switch!$D$27,$F$2:$G$44,2,FALSE)+ROW()-2))=Switch!$D$27,INDIRECT(\"a\" & (VLOOKUP(Switch!$D$27,$F$2:$G$44,2,FALSE)+ROW()-2)),\"\")","v":{"$error":"#N/A"}},{"$f":"IF(INDIRECT(\"c\" & (VLOOKUP(Switch!$D$28,$F$2:$G$44,2,FALSE)+ROW()-2))=Switch!$D$28,INDIRECT(\"a\" & (VLOOKUP(Switch!$D$28,$F$2:$G$44,2,FALSE)+ROW()-2)),\"\")","v":{"$error":"#N/A"}},{"$f":"IF(INDIRECT(\"c\" & (VLOOKUP(Switch!$D$29,$F$2:$G$44,2,FALSE)+ROW()-2))=Switch!$D$29,INDIRECT(\"a\" & (VLOOKUP(Switch!$D$29,$F$2:$G$44,2,FALSE)+ROW()-2)),\"\")","v":{"$error":"#N/A"}},{"$f":"IF(INDIRECT(\"c\" & (VLOOKUP(Switch!$D$30,$F$2:$G$44,2,FALSE)+ROW()-2))=Switch!$D$30,INDIRECT(\"a\" & (VLOOKUP(Switch!$D$30,$F$2:$G$44,2,FALSE)+ROW()-2)),\"\")","v":{"$error":"#N/A"}},{"$f":"IF(INDIRECT(\"c\" & (VLOOKUP(Switch!$D$31,$F$2:$G$44,2,FALSE)+ROW()-2))=Switch!$D$31,INDIRECT(\"a\" & (VLOOKUP(Switch!$D$31,$F$2:$G$44,2,FALSE)+ROW()-2)),\"\")","v":{"$error":"#N/A"}},{"$f":"IF(INDIRECT(\"c\" & (VLOOKUP(Switch!$D$32,$F$2:$G$44,2,FALSE)+ROW()-2))=Switch!$D$32,INDIRECT(\"a\" & (VLOOKUP(Switch!$D$32,$F$2:$G$44,2,FALSE)+ROW()-2)),\"\")","v":{"$error":"#N/A"}},{"$f":"IF(INDIRECT(\"c\" & (VLOOKUP(Switch!$D$33,$F$2:$G$44,2,FALSE)+ROW()-2))=Switch!$D$33,INDIRECT(\"a\" & (VLOOKUP(Switch!$D$33,$F$2:$G$44,2,FALSE)+ROW()-2)),\"\")","v":{"$error":"#N/A"}},{"$f":"IF(INDIRECT(\"c\" & (VLOOKUP(Switch!$D$34,$F$2:$G$44,2,FALSE)+ROW()-2))=Switch!$D$34,INDIRECT(\"a\" & (VLOOKUP(Switch!$D$34,$F$2:$G$44,2,FALSE)+ROW()-2)),\"\")","v":{"$error":"#N/A"}},{"$f":"IF(INDIRECT(\"c\" & (VLOOKUP(Switch!$D$35,$F$2:$G$44,2,FALSE)+ROW()-2))=Switch!$D$35,INDIRECT(\"a\" & (VLOOKUP(Switch!$D$35,$F$2:$G$44,2,FALSE)+ROW()-2)),\"\")","v":{"$error":"#N/A"}},{"$f":"IF(INDIRECT(\"c\" & (VLOOKUP(Switch!$D$36,$F$2:$G$44,2,FALSE)+ROW()-2))=Switch!$D$36,INDIRECT(\"a\" & (VLOOKUP(Switch!$D$36,$F$2:$G$44,2,FALSE)+ROW()-2)),\"\")","v":{"$error":"#N/A"}},{"$f":"IF(INDIRECT(\"c\" & (VLOOKUP(Switch!$D$37,$F$2:$G$44,2,FALSE)+ROW()-2))=Switch!$D$37,INDIRECT(\"a\" & (VLOOKUP(Switch!$D$37,$F$2:$G$44,2,FALSE)+ROW()-2)),\"\")","v":{"$error":"#N/A"}},{"$f":"IF(INDIRECT(\"c\" & (VLOOKUP(Switch!$D$38,$F$2:$G$44,2,FALSE)+ROW()-2))=Switch!$D$38,INDIRECT(\"a\" & (VLOOKUP(Switch!$D$38,$F$2:$G$44,2,FALSE)+ROW()-2)),\"\")","v":{"$error":"#N/A"}},{"$f":"IF(INDIRECT(\"c\" & (VLOOKUP(Switch!$D$39,$F$2:$G$44,2,FALSE)+ROW()-2))=Switch!$D$39,INDIRECT(\"a\" & (VLOOKUP(Switch!$D$39,$F$2:$G$44,2,FALSE)+ROW()-2)),\"\")","v":{"$error":"#N/A"}},{"$f":"IF(INDIRECT(\"c\" & (VLOOKUP(Switch!$D$40,$F$2:$G$44,2,FALSE)+ROW()-2))=Switch!$D$40,INDIRECT(\"a\" & (VLOOKUP(Switch!$D$40,$F$2:$G$44,2,FALSE)+ROW()-2)),\"\")","v":{"$error":"#N/A"}},{"$f":"IF(INDIRECT(\"c\" & (VLOOKUP(Switch!$D$52,$F$2:$G$44,2,FALSE)+ROW()-2))=Switch!$D$52,INDIRECT(\"a\" & (VLOOKUP(Switch!$D$52,$F$2:$G$44,2,FALSE)+ROW()-2)),\"\")","v":{"$error":"#N/A"}},{"$f":"IF(INDIRECT(\"c\" & (VLOOKUP(Switch!$D$53,$F$2:$G$44,2,FALSE)+ROW()-2))=Switch!$D$53,INDIRECT(\"a\" & (VLOOKUP(Switch!$D$53,$F$2:$G$44,2,FALSE)+ROW()-2)),\"\")","v":{"$error":"#N/A"}},{"$f":"IF(INDIRECT(\"c\" & (VLOOKUP(Switch!$D$54,$F$2:$G$44,2,FALSE)+ROW()-2))=Switch!$D$54,INDIRECT(\"a\" & (VLOOKUP(Switch!$D$54,$F$2:$G$44,2,FALSE)+ROW()-2)),\"\")","v":{"$error":"#N/A"}},{"$f":"IF(INDIRECT(\"c\" & (VLOOKUP(Switch!$D$55,$F$2:$G$44,2,FALSE)+ROW()-2))=Switch!$D$55,INDIRECT(\"a\" & (VLOOKUP(Switch!$D$55,$F$2:$G$44,2,FALSE)+ROW()-2)),\"\")","v":{"$error":"#N/A"}},{"$f":"IF(INDIRECT(\"c\" & (VLOOKUP(Switch!$D$56,$F$2:$G$44,2,FALSE)+ROW()-2))=Switch!$D$56,INDIRECT(\"a\" & (VLOOKUP(Switch!$D$56,$F$2:$G$44,2,FALSE)+ROW()-2)),\"\")","v":{"$error":"#N/A"}},{"$f":"IF(INDIRECT(\"c\" & (VLOOKUP(Switch!$D$57,$F$2:$G$44,2,FALSE)+ROW()-2))=Switch!$D$57,INDIRECT(\"a\" & (VLOOKUP(Switch!$D$57,$F$2:$G$44,2,FALSE)+ROW()-2)),\"\")","v":{"$error":"#N/A"}},{"$f":"IF(INDIRECT(\"c\" & (VLOOKUP(Switch!$D$58,$F$2:$G$44,2,FALSE)+ROW()-2))=Switch!$D$58,INDIRECT(\"a\" & (VLOOKUP(Switch!$D$58,$F$2:$G$44,2,FALSE)+ROW()-2)),\"\")","v":{"$error":"#N/A"}},{"$f":"IF(INDIRECT(\"c\" & (VLOOKUP(Switch!$D$59,$F$2:$G$44,2,FALSE)+ROW()-2))=Switch!$D$59,INDIRECT(\"a\" & (VLOOKUP(Switch!$D$59,$F$2:$G$44,2,FALSE)+ROW()-2)),\"\")","v":{"$error":"#N/A"}},{"$f":"IF(INDIRECT(\"c\" & (VLOOKUP(Switch!$D$60,$F$2:$G$44,2,FALSE)+ROW()-2))=Switch!$D$60,INDIRECT(\"a\" & (VLOOKUP(Switch!$D$60,$F$2:$G$44,2,FALSE)+ROW()-2)),\"\")","v":{"$error":"#N/A"}},{"$f":"IF(INDIRECT(\"c\" & (VLOOKUP(Switch!$D$61,$F$2:$G$44,2,FALSE)+ROW()-2))=Switch!$D$61,INDIRECT(\"a\" & (VLOOKUP(Switch!$D$61,$F$2:$G$44,2,FALSE)+ROW()-2)),\"\")","v":{"$error":"#N/A"}},{"$f":"IF(INDIRECT(\"c\" & (VLOOKUP(Switch!$D$62,$F$2:$G$44,2,FALSE)+ROW()-2))=Switch!$D$62,INDIRECT(\"a\" & (VLOOKUP(Switch!$D$62,$F$2:$G$44,2,FALSE)+ROW()-2)),\"\")","v":{"$error":"#N/A"}},{"$f":"IF(INDIRECT(\"c\" & (VLOOKUP(Switch!$D$63,$F$2:$G$44,2,FALSE)+ROW()-2))=Switch!$D$63,INDIRECT(\"a\" & (VLOOKUP(Switch!$D$63,$F$2:$G$44,2,FALSE)+ROW()-2)),\"\")","v":{"$error":"#N/A"}},{"$f":"IF(INDIRECT(\"c\" & (VLOOKUP(Switch!$D$64,$F$2:$G$44,2,FALSE)+ROW()-2))=Switch!$D$64,INDIRECT(\"a\" & (VLOOKUP(Switch!$D$64,$F$2:$G$44,2,FALSE)+ROW()-2)),\"\")","v":{"$error":"#N/A"}},{"$f":"IF(INDIRECT(\"c\" & (VLOOKUP(Switch!$D$65,$F$2:$G$44,2,FALSE)+ROW()-2))=Switch!$D$65,INDIRECT(\"a\" & (VLOOKUP(Switch!$D$65,$F$2:$G$44,2,FALSE)+ROW()-2)),\"\")","v":{"$error":"#N/A"}},{"$f":"IF(INDIRECT(\"c\" & (VLOOKUP(Switch!$D$66,$F$2:$G$44,2,FALSE)+ROW()-2))=Switch!$D$66,INDIRECT(\"a\" & (VLOOKUP(Switch!$D$66,$F$2:$G$44,2,FALSE)+ROW()-2)),\"\")","v":{"$error":"#N/A"}}]
["Old Mutual Dynamic Floor Fund B1","DYFB","Old Mutual Unit Trust Managers Limited",{"$f":"ROW()","v":406},null,null,{"$f":"VLOOKUP(F406,$C$2:$D$637,2,FALSE)","v":{"$error":"#N/A"}},{"$error":"#N/A"},{"$error":"#N/A"},{"$error":"#N/A"},{"$error":"#N/A"},{"$error":"#N/A"},{"$error":"#N/A"},{"$error":"#N/A"},{"$error":"#N/A"},{"$error":"#N/A"},{"$error":"#N/A"},{"$error":"#N/A"},{"$error":"#N/A"},{"$error":"#N/A"},{"$error":"#N/A"},{"$error":"#N/A"},{"$error":"#N/A"},{"$error":"#N/A"},{"$error":"#N/A"},{"$error":"#N/A"},{"$error":"#N/A"},{"$error":"#N/A"},{"$error":"#N/A"},{"$error":"#N/A"},{"$error":"#N/A"},{"$error":"#N/A"},{"$error":"#N/A"},{"$error":"#N/A"},{"$error":"#N/A"},{"$error":"#N/A"},{"$error":"#N/A"}]
["Old Mutual Equity Fund B1","OMEQB1","Old Mutual Unit Trust Managers Limited",{"$f":"ROW()","v":407},null,null,{"$f":"VLOOKUP(F407,$C$2:$D$637,2,FALSE)","v":{"$error":"#N/A"}},{"$f":"IF(INDIRECT(\"c\" & (VLOOKUP(Switch!$D$26,$F$2:$G$44,2,FALSE)+ROW()-2))=Switch!$D$26,INDIRECT(\"a\" & (VLOOKUP(Switch!$D$26,$F$2:$G$44,2,FALSE)+ROW()-2)),\"\")","v":{"$error":"#N/A"}},{"$f":"IF(INDIRECT(\"c\" & (VLOOKUP(Switch!$D$27,$F$2:$G$44,2,FALSE)+ROW()-2))=Switch!$D$27,INDIRECT(\"a\" & (VLOOKUP(Switch!$D$27,$F$2:$G$44,2,FALSE)+ROW()-2)),\"\")","v":{"$error":"#N/A"}},{"$f":"IF(INDIRECT(\"c\" & (VLOOKUP(Switch!$D$28,$F$2:$G$44,2,FALSE)+ROW()-2))=Switch!$D$28,INDIRECT(\"a\" & (VLOOKUP(Switch!$D$28,$F$2:$G$44,2,FALSE)+ROW()-2)),\"\")","v":{"$error":"#N/A"}},{"$f":"IF(INDIRECT(\"c\" & (VLOOKUP(Switch!$D$29,$F$2:$G$44,2,FALSE)+ROW()-2))=Switch!$D$29,INDIRECT(\"a\" & (VLOOKUP(Switch!$D$29,$F$2:$G$44,2,FALSE)+ROW()-2)),\"\")","v":{"$error":"#N/A"}},{"$f":"IF(INDIRECT(\"c\" & (VLOOKUP(Switch!$D$30,$F$2:$G$44,2,FALSE)+ROW()-2))=Switch!$D$30,INDIRECT(\"a\" & (VLOOKUP(Switch!$D$30,$F$2:$G$44,2,FALSE)+ROW()-2)),\"\")","v":{"$error":"#N/A"}},{"$f":"IF(INDIRECT(\"c\" & (VLOOKUP(Switch!$D$31,$F$2:$G$44,2,FALSE)+ROW()-2))=Switch!$D$31,INDIRECT(\"a\" & (VLOOKUP(Switch!$D$31,$F$2:$G$44,2,FALSE)+ROW()-2)),\"\")","v":{"$error":"#N/A"}},{"$f":"IF(INDIRECT(\"c\" & (VLOOKUP(Switch!$D$32,$F$2:$G$44,2,FALSE)+ROW()-2))=Switch!$D$32,INDIRECT(\"a\" & (VLOOKUP(Switch!$D$32,$F$2:$G$44,2,FALSE)+ROW()-2)),\"\")","v":{"$error":"#N/A"}},{"$f":"IF(INDIRECT(\"c\" & (VLOOKUP(Switch!$D$33,$F$2:$G$44,2,FALSE)+ROW()-2))=Switch!$D$33,INDIRECT(\"a\" & (VLOOKUP(Switch!$D$33,$F$2:$G$44,2,FALSE)+ROW()-2)),\"\")","v":{"$error":"#N/A"}},{"$f":"IF(INDIRECT(\"c\" & (VLOOKUP(Switch!$D$34,$F$2:$G$44,2,FALSE)+ROW()-2))=Switch!$D$34,INDIRECT(\"a\" & (VLOOKUP(Switch!$D$34,$F$2:$G$44,2,FALSE)+ROW()-2)),\"\")","v":{"$error":"#N/A"}},{"$f":"IF(INDIRECT(\"c\" & (VLOOKUP(Switch!$D$35,$F$2:$G$44,2,FALSE)+ROW()-2))=Switch!$D$35,INDIRECT(\"a\" & (VLOOKUP(Switch!$D$35,$F$2:$G$44,2,FALSE)+ROW()-2)),\"\")","v":{"$error":"#N/A"}},{"$f":"IF(INDIRECT(\"c\" & (VLOOKUP(Switch!$D$36,$F$2:$G$44,2,FALSE)+ROW()-2))=Switch!$D$36,INDIRECT(\"a\" & (VLOOKUP(Switch!$D$36,$F$2:$G$44,2,FALSE)+ROW()-2)),\"\")","v":{"$error":"#N/A"}},{"$f":"IF(INDIRECT(\"c\" & (VLOOKUP(Switch!$D$37,$F$2:$G$44,2,FALSE)+ROW()-2))=Switch!$D$37,INDIRECT(\"a\" & (VLOOKUP(Switch!$D$37,$F$2:$G$44,2,FALSE)+ROW()-2)),\"\")","v":{"$error":"#N/A"}},{"$f":"IF(INDIRECT(\"c\" & (VLOOKUP(Switch!$D$38,$F$2:$G$44,2,FALSE)+ROW()-2))=Switch!$D$38,INDIRECT(\"a\" & (VLOOKUP(Switch!$D$38,$F$2:$G$44,2,FALSE)+ROW()-2)),\"\")","v":{"$error":"#N/A"}},{"$f":"IF(INDIRECT(\"c\" & (VLOOKUP(Switch!$D$39,$F$2:$G$44,2,FALSE)+ROW()-2))=Switch!$D$39,INDIRECT(\"a\" & (VLOOKUP(Switch!$D$39,$F$2:$G$44,2,FALSE)+ROW()-2)),\"\")","v":{"$error":"#N/A"}},{"$f":"IF(INDIRECT(\"c\" & (VLOOKUP(Switch!$D$40,$F$2:$G$44,2,FALSE)+ROW()-2))=Switch!$D$40,INDIRECT(\"a\" & (VLOOKUP(Switch!$D$40,$F$2:$G$44,2,FALSE)+ROW()-2)),\"\")","v":{"$error":"#N/A"}},{"$f":"IF(INDIRECT(\"c\" & (VLOOKUP(Switch!$D$52,$F$2:$G$44,2,FALSE)+ROW()-2))=Switch!$D$52,INDIRECT(\"a\" & (VLOOKUP(Switch!$D$52,$F$2:$G$44,2,FALSE)+ROW()-2)),\"\")","v":{"$error":"#N/A"}},{"$f":"IF(INDIRECT(\"c\" & (VLOOKUP(Switch!$D$53,$F$2:$G$44,2,FALSE)+ROW()-2))=Switch!$D$53,INDIRECT(\"a\" & (VLOOKUP(Switch!$D$53,$F$2:$G$44,2,FALSE)+ROW()-2)),\"\")","v":{"$error":"#N/A"}},{"$f":"IF(INDIRECT(\"c\" & (VLOOKUP(Switch!$D$54,$F$2:$G$44,2,FALSE)+ROW()-2))=Switch!$D$54,INDIRECT(\"a\" & (VLOOKUP(Switch!$D$54,$F$2:$G$44,2,FALSE)+ROW()-2)),\"\")","v":{"$error":"#N/A"}},{"$f":"IF(INDIRECT(\"c\" & (VLOOKUP(Switch!$D$55,$F$2:$G$44,2,FALSE)+ROW()-2))=Switch!$D$55,INDIRECT(\"a\" & (VLOOKUP(Switch!$D$55,$F$2:$G$44,2,FALSE)+ROW()-2)),\"\")","v":{"$error":"#N/A"}},{"$f":"IF(INDIRECT(\"c\" & (VLOOKUP(Switch!$D$56,$F$2:$G$44,2,FALSE)+ROW()-2))=Switch!$D$56,INDIRECT(\"a\" & (VLOOKUP(Switch!$D$56,$F$2:$G$44,2,FALSE)+ROW()-2)),\"\")","v":{"$error":"#N/A"}},{"$f":"IF(INDIRECT(\"c\" & (VLOOKUP(Switch!$D$57,$F$2:$G$44,2,FALSE)+ROW()-2))=Switch!$D$57,INDIRECT(\"a\" & (VLOOKUP(Switch!$D$57,$F$2:$G$44,2,FALSE)+ROW()-2)),\"\")","v":{"$error":"#N/A"}},{"$f":"IF(INDIRECT(\"c\" & (VLOOKUP(Switch!$D$58,$F$2:$G$44,2,FALSE)+ROW()-2))=Switch!$D$58,INDIRECT(\"a\" & (VLOOKUP(Switch!$D$58,$F$2:$G$44,2,FALSE)+ROW()-2)),\"\")","v":{"$error":"#N/A"}},{"$f":"IF(INDIRECT(\"c\" & (VLOOKUP(Switch!$D$59,$F$2:$G$44,2,FALSE)+ROW()-2))=Switch!$D$59,INDIRECT(\"a\" & (VLOOKUP(Switch!$D$59,$F$2:$G$44,2,FALSE)+ROW()-2)),\"\")","v":{"$error":"#N/A"}},{"$f":"IF(INDIRECT(\"c\" & (VLOOKUP(Switch!$D$60,$F$2:$G$44,2,FALSE)+ROW()-2))=Switch!$D$60,INDIRECT(\"a\" & (VLOOKUP(Switch!$D$60,$F$2:$G$44,2,FALSE)+ROW()-2)),\"\")","v":{"$error":"#N/A"}},{"$f":"IF(INDIRECT(\"c\" & (VLOOKUP(Switch!$D$61,$F$2:$G$44,2,FALSE)+ROW()-2))=Switch!$D$61,INDIRECT(\"a\" & (VLOOKUP(Switch!$D$61,$F$2:$G$44,2,FALSE)+ROW()-2)),\"\")","v":{"$error":"#N/A"}},{"$f":"IF(INDIRECT(\"c\" & (VLOOKUP(Switch!$D$62,$F$2:$G$44,2,FALSE)+ROW()-2))=Switch!$D$62,INDIRECT(\"a\" & (VLOOKUP(Switch!$D$62,$F$2:$G$44,2,FALSE)+ROW()-2)),\"\")","v":{"$error":"#N/A"}},{"$f":"IF(INDIRECT(\"c\" & (VLOOKUP(Switch!$D$63,$F$2:$G$44,2,FALSE)+ROW()-2))=Switch!$D$63,INDIRECT(\"a\" & (VLOOKUP(Switch!$D$63,$F$2:$G$44,2,FALSE)+ROW()-2)),\"\")","v":{"$error":"#N/A"}},{"$f":"IF(INDIRECT(\"c\" & (VLOOKUP(Switch!$D$64,$F$2:$G$44,2,FALSE)+ROW()-2))=Switch!$D$64,INDIRECT(\"a\" & (VLOOKUP(Switch!$D$64,$F$2:$G$44,2,FALSE)+ROW()-2)),\"\")","v":{"$error":"#N/A"}},{"$f":"IF(INDIRECT(\"c\" & (VLOOKUP(Switch!$D$65,$F$2:$G$44,2,FALSE)+ROW()-2))=Switch!$D$65,INDIRECT(\"a\" & (VLOOKUP(Switch!$D$65,$F$2:$G$44,2,FALSE)+ROW()-2)),\"\")","v":{"$error":"#N/A"}},{"$f":"IF(INDIRECT(\"c\" & (VLOOKUP(Switch!$D$66,$F$2:$G$44,2,FALSE)+ROW()-2))=Switch!$D$66,INDIRECT(\"a\" & (VLOOKUP(Switch!$D$66,$F$2:$G$44,2,FALSE)+ROW()-2)),\"\")","v":{"$error":"#N/A"}}]
["Old Mutual Flexible Fund","OMFB1","Old Mutual Unit Trust Managers Limited",{"$f":"ROW()","v":408},null,null,{"$f":"VLOOKUP(F408,$C$2:$D$637,2,FALSE)","v":{"$error":"#N/A"}},{"$f":"IF(INDIRECT(\"c\" & (VLOOKUP(Switch!$D$26,$F$2:$G$44,2,FALSE)+ROW()-2))=Switch!$D$26,INDIRECT(\"a\" & (VLOOKUP(Switch!$D$26,$F$2:$G$44,2,FALSE)+ROW()-2)),\"\")","v":{"$error":"#N/A"}},{"$f":"IF(INDIRECT(\"c\" & (VLOOKUP(Switch!$D$27,$F$2:$G$44,2,FALSE)+ROW()-2))=Switch!$D$27,INDIRECT(\"a\" & (VLOOKUP(Switch!$D$27,$F$2:$G$44,2,FALSE)+ROW()-2)),\"\")","v":{"$error":"#N/A"}},{"$f":"IF(INDIRECT(\"c\" & (VLOOKUP(Switch!$D$28,$F$2:$G$44,2,FALSE)+ROW()-2))=Switch!$D$28,INDIRECT(\"a\" & (VLOOKUP(Switch!$D$28,$F$2:$G$44,2,FALSE)+ROW()-2)),\"\")","v":{"$error":"#N/A"}},{"$f":"IF(INDIRECT(\"c\" & (VLOOKUP(Switch!$D$29,$F$2:$G$44,2,FALSE)+ROW()-2))=Switch!$D$29,INDIRECT(\"a\" & (VLOOKUP(Switch!$D$29,$F$2:$G$44,2,FALSE)+ROW()-2)),\"\")","v":{"$error":"#N/A"}},{"$f":"IF(INDIRECT(\"c\" & (VLOOKUP(Switch!$D$30,$F$2:$G$44,2,FALSE)+ROW()-2))=Switch!$D$30,INDIRECT(\"a\" & (VLOOKUP(Switch!$D$30,$F$2:$G$44,2,FALSE)+ROW()-2)),\"\")","v":{"$error":"#N/A"}},{"$f":"IF(INDIRECT(\"c\" & (VLOOKUP(Switch!$D$31,$F$2:$G$44,2,FALSE)+ROW()-2))=Switch!$D$31,INDIRECT(\"a\" & (VLOOKUP(Switch!$D$31,$F$2:$G$44,2,FALSE)+ROW()-2)),\"\")","v":{"$error":"#N/A"}},{"$f":"IF(INDIRECT(\"c\" & (VLOOKUP(Switch!$D$32,$F$2:$G$44,2,FALSE)+ROW()-2))=Switch!$D$32,INDIRECT(\"a\" & (VLOOKUP(Switch!$D$32,$F$2:$G$44,2,FALSE)+ROW()-2)),\"\")","v":{"$error":"#N/A"}},{"$f":"IF(INDIRECT(\"c\" & (VLOOKUP(Switch!$D$33,$F$2:$G$44,2,FALSE)+ROW()-2))=Switch!$D$33,INDIRECT(\"a\" & (VLOOKUP(Switch!$D$33,$F$2:$G$44,2,FALSE)+ROW()-2)),\"\")","v":{"$error":"#N/A"}},{"$f":"IF(INDIRECT(\"c\" & (VLOOKUP(Switch!$D$34,$F$2:$G$44,2,FALSE)+ROW()-2))=Switch!$D$34,INDIRECT(\"a\" & (VLOOKUP(Switch!$D$34,$F$2:$G$44,2,FALSE)+ROW()-2)),\"\")","v":{"$error":"#N/A"}},{"$f":"IF(INDIRECT(\"c\" & (VLOOKUP(Switch!$D$35,$F$2:$G$44,2,FALSE)+ROW()-2))=Switch!$D$35,INDIRECT(\"a\" & (VLOOKUP(Switch!$D$35,$F$2:$G$44,2,FALSE)+ROW()-2)),\"\")","v":{"$error":"#N/A"}},{"$f":"IF(INDIRECT(\"c\" & (VLOOKUP(Switch!$D$36,$F$2:$G$44,2,FALSE)+ROW()-2))=Switch!$D$36,INDIRECT(\"a\" & (VLOOKUP(Switch!$D$36,$F$2:$G$44,2,FALSE)+ROW()-2)),\"\")","v":{"$error":"#N/A"}},{"$f":"IF(INDIRECT(\"c\" & (VLOOKUP(Switch!$D$37,$F$2:$G$44,2,FALSE)+ROW()-2))=Switch!$D$37,INDIRECT(\"a\" & (VLOOKUP(Switch!$D$37,$F$2:$G$44,2,FALSE)+ROW()-2)),\"\")","v":{"$error":"#N/A"}},{"$f":"IF(INDIRECT(\"c\" & (VLOOKUP(Switch!$D$38,$F$2:$G$44,2,FALSE)+ROW()-2))=Switch!$D$38,INDIRECT(\"a\" & (VLOOKUP(Switch!$D$38,$F$2:$G$44,2,FALSE)+ROW()-2)),\"\")","v":{"$error":"#N/A"}},{"$f":"IF(INDIRECT(\"c\" & (VLOOKUP(Switch!$D$39,$F$2:$G$44,2,FALSE)+ROW()-2))=Switch!$D$39,INDIRECT(\"a\" & (VLOOKUP(Switch!$D$39,$F$2:$G$44,2,FALSE)+ROW()-2)),\"\")","v":{"$error":"#N/A"}},{"$f":"IF(INDIRECT(\"c\" & (VLOOKUP(Switch!$D$40,$F$2:$G$44,2,FALSE)+ROW()-2))=Switch!$D$40,INDIRECT(\"a\" & (VLOOKUP(Switch!$D$40,$F$2:$G$44,2,FALSE)+ROW()-2)),\"\")","v":{"$error":"#N/A"}},{"$f":"IF(INDIRECT(\"c\" & (VLOOKUP(Switch!$D$52,$F$2:$G$44,2,FALSE)+ROW()-2))=Switch!$D$52,INDIRECT(\"a\" & (VLOOKUP(Switch!$D$52,$F$2:$G$44,2,FALSE)+ROW()-2)),\"\")","v":{"$error":"#N/A"}},{"$f":"IF(INDIRECT(\"c\" & (VLOOKUP(Switch!$D$53,$F$2:$G$44,2,FALSE)+ROW()-2))=Switch!$D$53,INDIRECT(\"a\" & (VLOOKUP(Switch!$D$53,$F$2:$G$44,2,FALSE)+ROW()-2)),\"\")","v":{"$error":"#N/A"}},{"$f":"IF(INDIRECT(\"c\" & (VLOOKUP(Switch!$D$54,$F$2:$G$44,2,FALSE)+ROW()-2))=Switch!$D$54,INDIRECT(\"a\" & (VLOOKUP(Switch!$D$54,$F$2:$G$44,2,FALSE)+ROW()-2)),\"\")","v":{"$error":"#N/A"}},{"$f":"IF(INDIRECT(\"c\" & (VLOOKUP(Switch!$D$55,$F$2:$G$44,2,FALSE)+ROW()-2))=Switch!$D$55,INDIRECT(\"a\" & (VLOOKUP(Switch!$D$55,$F$2:$G$44,2,FALSE)+ROW()-2)),\"\")","v":{"$error":"#N/A"}},{"$f":"IF(INDIRECT(\"c\" & (VLOOKUP(Switch!$D$56,$F$2:$G$44,2,FALSE)+ROW()-2))=Switch!$D$56,INDIRECT(\"a\" & (VLOOKUP(Switch!$D$56,$F$2:$G$44,2,FALSE)+ROW()-2)),\"\")","v":{"$error":"#N/A"}},{"$f":"IF(INDIRECT(\"c\" & (VLOOKUP(Switch!$D$57,$F$2:$G$44,2,FALSE)+ROW()-2))=Switch!$D$57,INDIRECT(\"a\" & (VLOOKUP(Switch!$D$57,$F$2:$G$44,2,FALSE)+ROW()-2)),\"\")","v":{"$error":"#N/A"}},{"$f":"IF(INDIRECT(\"c\" & (VLOOKUP(Switch!$D$58,$F$2:$G$44,2,FALSE)+ROW()-2))=Switch!$D$58,INDIRECT(\"a\" & (VLOOKUP(Switch!$D$58,$F$2:$G$44,2,FALSE)+ROW()-2)),\"\")","v":{"$error":"#N/A"}},{"$f":"IF(INDIRECT(\"c\" & (VLOOKUP(Switch!$D$59,$F$2:$G$44,2,FALSE)+ROW()-2))=Switch!$D$59,INDIRECT(\"a\" & (VLOOKUP(Switch!$D$59,$F$2:$G$44,2,FALSE)+ROW()-2)),\"\")","v":{"$error":"#N/A"}},{"$f":"IF(INDIRECT(\"c\" & (VLOOKUP(Switch!$D$60,$F$2:$G$44,2,FALSE)+ROW()-2))=Switch!$D$60,INDIRECT(\"a\" & (VLOOKUP(Switch!$D$60,$F$2:$G$44,2,FALSE)+ROW()-2)),\"\")","v":{"$error":"#N/A"}},{"$f":"IF(INDIRECT(\"c\" & (VLOOKUP(Switch!$D$61,$F$2:$G$44,2,FALSE)+ROW()-2))=Switch!$D$61,INDIRECT(\"a\" & (VLOOKUP(Switch!$D$61,$F$2:$G$44,2,FALSE)+ROW()-2)),\"\")","v":{"$error":"#N/A"}},{"$f":"IF(INDIRECT(\"c\" & (VLOOKUP(Switch!$D$62,$F$2:$G$44,2,FALSE)+ROW()-2))=Switch!$D$62,INDIRECT(\"a\" & (VLOOKUP(Switch!$D$62,$F$2:$G$44,2,FALSE)+ROW()-2)),\"\")","v":{"$error":"#N/A"}},{"$f":"IF(INDIRECT(\"c\" & (VLOOKUP(Switch!$D$63,$F$2:$G$44,2,FALSE)+ROW()-2))=Switch!$D$63,INDIRECT(\"a\" & (VLOOKUP(Switch!$D$63,$F$2:$G$44,2,FALSE)+ROW()-2)),\"\")","v":{"$error":"#N/A"}},{"$f":"IF(INDIRECT(\"c\" & (VLOOKUP(Switch!$D$64,$F$2:$G$44,2,FALSE)+ROW()-2))=Switch!$D$64,INDIRECT(\"a\" & (VLOOKUP(Switch!$D$64,$F$2:$G$44,2,FALSE)+ROW()-2)),\"\")","v":{"$error":"#N/A"}},{"$f":"IF(INDIRECT(\"c\" & (VLOOKUP(Switch!$D$65,$F$2:$G$44,2,FALSE)+ROW()-2))=Switch!$D$65,INDIRECT(\"a\" & (VLOOKUP(Switch!$D$65,$F$2:$G$44,2,FALSE)+ROW()-2)),\"\")","v":{"$error":"#N/A"}},{"$f":"IF(INDIRECT(\"c\" & (VLOOKUP(Switch!$D$66,$F$2:$G$44,2,FALSE)+ROW()-2))=Switch!$D$66,INDIRECT(\"a\" & (VLOOKUP(Switch!$D$66,$F$2:$G$44,2,FALSE)+ROW()-2)),\"\")","v":{"$error":"#N/A"}}]
["Old Mutual FTSE RAFI All World Index Feeder Fund B1","OMGFF","Old Mutual Unit Trust Managers Limited",{"$f":"ROW()","v":409},null,null,{"$f":"VLOOKUP(F409,$C$2:$D$637,2,FALSE)","v":{"$error":"#N/A"}},{"$f":"IF(INDIRECT(\"c\" & (VLOOKUP(Switch!$D$26,$F$2:$G$44,2,FALSE)+ROW()-2))=Switch!$D$26,INDIRECT(\"a\" & (VLOOKUP(Switch!$D$26,$F$2:$G$44,2,FALSE)+ROW()-2)),\"\")","v":{"$error":"#N/A"}},{"$f":"IF(INDIRECT(\"c\" & (VLOOKUP(Switch!$D$27,$F$2:$G$44,2,FALSE)+ROW()-2))=Switch!$D$27,INDIRECT(\"a\" & (VLOOKUP(Switch!$D$27,$F$2:$G$44,2,FALSE)+ROW()-2)),\"\")","v":{"$error":"#N/A"}},{"$f":"IF(INDIRECT(\"c\" & (VLOOKUP(Switch!$D$28,$F$2:$G$44,2,FALSE)+ROW()-2))=Switch!$D$28,INDIRECT(\"a\" & (VLOOKUP(Switch!$D$28,$F$2:$G$44,2,FALSE)+ROW()-2)),\"\")","v":{"$error":"#N/A"}},{"$f":"IF(INDIRECT(\"c\" & (VLOOKUP(Switch!$D$29,$F$2:$G$44,2,FALSE)+ROW()-2))=Switch!$D$29,INDIRECT(\"a\" & (VLOOKUP(Switch!$D$29,$F$2:$G$44,2,FALSE)+ROW()-2)),\"\")","v":{"$error":"#N/A"}},{"$f":"IF(INDIRECT(\"c\" & (VLOOKUP(Switch!$D$30,$F$2:$G$44,2,FALSE)+ROW()-2))=Switch!$D$30,INDIRECT(\"a\" & (VLOOKUP(Switch!$D$30,$F$2:$G$44,2,FALSE)+ROW()-2)),\"\")","v":{"$error":"#N/A"}},{"$f":"IF(INDIRECT(\"c\" & (VLOOKUP(Switch!$D$31,$F$2:$G$44,2,FALSE)+ROW()-2))=Switch!$D$31,INDIRECT(\"a\" & (VLOOKUP(Switch!$D$31,$F$2:$G$44,2,FALSE)+ROW()-2)),\"\")","v":{"$error":"#N/A"}},{"$f":"IF(INDIRECT(\"c\" & (VLOOKUP(Switch!$D$32,$F$2:$G$44,2,FALSE)+ROW()-2))=Switch!$D$32,INDIRECT(\"a\" & (VLOOKUP(Switch!$D$32,$F$2:$G$44,2,FALSE)+ROW()-2)),\"\")","v":{"$error":"#N/A"}},{"$f":"IF(INDIRECT(\"c\" & (VLOOKUP(Switch!$D$33,$F$2:$G$44,2,FALSE)+ROW()-2))=Switch!$D$33,INDIRECT(\"a\" & (VLOOKUP(Switch!$D$33,$F$2:$G$44,2,FALSE)+ROW()-2)),\"\")","v":{"$error":"#N/A"}},{"$f":"IF(INDIRECT(\"c\" & (VLOOKUP(Switch!$D$34,$F$2:$G$44,2,FALSE)+ROW()-2))=Switch!$D$34,INDIRECT(\"a\" & (VLOOKUP(Switch!$D$34,$F$2:$G$44,2,FALSE)+ROW()-2)),\"\")","v":{"$error":"#N/A"}},{"$f":"IF(INDIRECT(\"c\" & (VLOOKUP(Switch!$D$35,$F$2:$G$44,2,FALSE)+ROW()-2))=Switch!$D$35,INDIRECT(\"a\" & (VLOOKUP(Switch!$D$35,$F$2:$G$44,2,FALSE)+ROW()-2)),\"\")","v":{"$error":"#N/A"}},{"$f":"IF(INDIRECT(\"c\" & (VLOOKUP(Switch!$D$36,$F$2:$G$44,2,FALSE)+ROW()-2))=Switch!$D$36,INDIRECT(\"a\" & (VLOOKUP(Switch!$D$36,$F$2:$G$44,2,FALSE)+ROW()-2)),\"\")","v":{"$error":"#N/A"}},{"$f":"IF(INDIRECT(\"c\" & (VLOOKUP(Switch!$D$37,$F$2:$G$44,2,FALSE)+ROW()-2))=Switch!$D$37,INDIRECT(\"a\" & (VLOOKUP(Switch!$D$37,$F$2:$G$44,2,FALSE)+ROW()-2)),\"\")","v":{"$error":"#N/A"}},{"$f":"IF(INDIRECT(\"c\" & (VLOOKUP(Switch!$D$38,$F$2:$G$44,2,FALSE)+ROW()-2))=Switch!$D$38,INDIRECT(\"a\" & (VLOOKUP(Switch!$D$38,$F$2:$G$44,2,FALSE)+ROW()-2)),\"\")","v":{"$error":"#N/A"}},{"$f":"IF(INDIRECT(\"c\" & (VLOOKUP(Switch!$D$39,$F$2:$G$44,2,FALSE)+ROW()-2))=Switch!$D$39,INDIRECT(\"a\" & (VLOOKUP(Switch!$D$39,$F$2:$G$44,2,FALSE)+ROW()-2)),\"\")","v":{"$error":"#N/A"}},{"$f":"IF(INDIRECT(\"c\" & (VLOOKUP(Switch!$D$40,$F$2:$G$44,2,FALSE)+ROW()-2))=Switch!$D$40,INDIRECT(\"a\" & (VLOOKUP(Switch!$D$40,$F$2:$G$44,2,FALSE)+ROW()-2)),\"\")","v":{"$error":"#N/A"}},{"$f":"IF(INDIRECT(\"c\" & (VLOOKUP(Switch!$D$52,$F$2:$G$44,2,FALSE)+ROW()-2))=Switch!$D$52,INDIRECT(\"a\" & (VLOOKUP(Switch!$D$52,$F$2:$G$44,2,FALSE)+ROW()-2)),\"\")","v":{"$error":"#N/A"}},{"$f":"IF(INDIRECT(\"c\" & (VLOOKUP(Switch!$D$53,$F$2:$G$44,2,FALSE)+ROW()-2))=Switch!$D$53,INDIRECT(\"a\" & (VLOOKUP(Switch!$D$53,$F$2:$G$44,2,FALSE)+ROW()-2)),\"\")","v":{"$error":"#N/A"}},{"$f":"IF(INDIRECT(\"c\" & (VLOOKUP(Switch!$D$54,$F$2:$G$44,2,FALSE)+ROW()-2))=Switch!$D$54,INDIRECT(\"a\" & (VLOOKUP(Switch!$D$54,$F$2:$G$44,2,FALSE)+ROW()-2)),\"\")","v":{"$error":"#N/A"}},{"$f":"IF(INDIRECT(\"c\" & (VLOOKUP(Switch!$D$55,$F$2:$G$44,2,FALSE)+ROW()-2))=Switch!$D$55,INDIRECT(\"a\" & (VLOOKUP(Switch!$D$55,$F$2:$G$44,2,FALSE)+ROW()-2)),\"\")","v":{"$error":"#N/A"}},{"$f":"IF(INDIRECT(\"c\" & (VLOOKUP(Switch!$D$56,$F$2:$G$44,2,FALSE)+ROW()-2))=Switch!$D$56,INDIRECT(\"a\" & (VLOOKUP(Switch!$D$56,$F$2:$G$44,2,FALSE)+ROW()-2)),\"\")","v":{"$error":"#N/A"}},{"$f":"IF(INDIRECT(\"c\" & (VLOOKUP(Switch!$D$57,$F$2:$G$44,2,FALSE)+ROW()-2))=Switch!$D$57,INDIRECT(\"a\" & (VLOOKUP(Switch!$D$57,$F$2:$G$44,2,FALSE)+ROW()-2)),\"\")","v":{"$error":"#N/A"}},{"$f":"IF(INDIRECT(\"c\" & (VLOOKUP(Switch!$D$58,$F$2:$G$44,2,FALSE)+ROW()-2))=Switch!$D$58,INDIRECT(\"a\" & (VLOOKUP(Switch!$D$58,$F$2:$G$44,2,FALSE)+ROW()-2)),\"\")","v":{"$error":"#N/A"}},{"$f":"IF(INDIRECT(\"c\" & (VLOOKUP(Switch!$D$59,$F$2:$G$44,2,FALSE)+ROW()-2))=Switch!$D$59,INDIRECT(\"a\" & (VLOOKUP(Switch!$D$59,$F$2:$G$44,2,FALSE)+ROW()-2)),\"\")","v":{"$error":"#N/A"}},{"$f":"IF(INDIRECT(\"c\" & (VLOOKUP(Switch!$D$60,$F$2:$G$44,2,FALSE)+ROW()-2))=Switch!$D$60,INDIRECT(\"a\" & (VLOOKUP(Switch!$D$60,$F$2:$G$44,2,FALSE)+ROW()-2)),\"\")","v":{"$error":"#N/A"}},{"$f":"IF(INDIRECT(\"c\" & (VLOOKUP(Switch!$D$61,$F$2:$G$44,2,FALSE)+ROW()-2))=Switch!$D$61,INDIRECT(\"a\" & (VLOOKUP(Switch!$D$61,$F$2:$G$44,2,FALSE)+ROW()-2)),\"\")","v":{"$error":"#N/A"}},{"$f":"IF(INDIRECT(\"c\" & (VLOOKUP(Switch!$D$62,$F$2:$G$44,2,FALSE)+ROW()-2))=Switch!$D$62,INDIRECT(\"a\" & (VLOOKUP(Switch!$D$62,$F$2:$G$44,2,FALSE)+ROW()-2)),\"\")","v":{"$error":"#N/A"}},{"$f":"IF(INDIRECT(\"c\" & (VLOOKUP(Switch!$D$63,$F$2:$G$44,2,FALSE)+ROW()-2))=Switch!$D$63,INDIRECT(\"a\" & (VLOOKUP(Switch!$D$63,$F$2:$G$44,2,FALSE)+ROW()-2)),\"\")","v":{"$error":"#N/A"}},{"$f":"IF(INDIRECT(\"c\" & (VLOOKUP(Switch!$D$64,$F$2:$G$44,2,FALSE)+ROW()-2))=Switch!$D$64,INDIRECT(\"a\" & (VLOOKUP(Switch!$D$64,$F$2:$G$44,2,FALSE)+ROW()-2)),\"\")","v":{"$error":"#N/A"}},{"$f":"IF(INDIRECT(\"c\" & (VLOOKUP(Switch!$D$65,$F$2:$G$44,2,FALSE)+ROW()-2))=Switch!$D$65,INDIRECT(\"a\" & (VLOOKUP(Switch!$D$65,$F$2:$G$44,2,FALSE)+ROW()-2)),\"\")","v":{"$error":"#N/A"}},{"$f":"IF(INDIRECT(\"c\" & (VLOOKUP(Switch!$D$66,$F$2:$G$44,2,FALSE)+ROW()-2))=Switch!$D$66,INDIRECT(\"a\" & (VLOOKUP(Switch!$D$66,$F$2:$G$44,2,FALSE)+ROW()-2)),\"\")","v":{"$error":"#N/A"}}]
["Old Mutual Gilt Fund","OMGI","Old Mutual Unit Trust Managers Limited",{"$f":"ROW()","v":410},null,null,{"$f":"VLOOKUP(F410,$C$2:$D$637,2,FALSE)","v":{"$error":"#N/A"}},{"$f":"IF(INDIRECT(\"c\" & (VLOOKUP(Switch!$D$26,$F$2:$G$44,2,FALSE)+ROW()-2))=Switch!$D$26,INDIRECT(\"a\" & (VLOOKUP(Switch!$D$26,$F$2:$G$44,2,FALSE)+ROW()-2)),\"\")","v":{"$error":"#N/A"}},{"$f":"IF(INDIRECT(\"c\" & (VLOOKUP(Switch!$D$27,$F$2:$G$44,2,FALSE)+ROW()-2))=Switch!$D$27,INDIRECT(\"a\" & (VLOOKUP(Switch!$D$27,$F$2:$G$44,2,FALSE)+ROW()-2)),\"\")","v":{"$error":"#N/A"}},{"$f":"IF(INDIRECT(\"c\" & (VLOOKUP(Switch!$D$28,$F$2:$G$44,2,FALSE)+ROW()-2))=Switch!$D$28,INDIRECT(\"a\" & (VLOOKUP(Switch!$D$28,$F$2:$G$44,2,FALSE)+ROW()-2)),\"\")","v":{"$error":"#N/A"}},{"$f":"IF(INDIRECT(\"c\" & (VLOOKUP(Switch!$D$29,$F$2:$G$44,2,FALSE)+ROW()-2))=Switch!$D$29,INDIRECT(\"a\" & (VLOOKUP(Switch!$D$29,$F$2:$G$44,2,FALSE)+ROW()-2)),\"\")","v":{"$error":"#N/A"}},{"$f":"IF(INDIRECT(\"c\" & (VLOOKUP(Switch!$D$30,$F$2:$G$44,2,FALSE)+ROW()-2))=Switch!$D$30,INDIRECT(\"a\" & (VLOOKUP(Switch!$D$30,$F$2:$G$44,2,FALSE)+ROW()-2)),\"\")","v":{"$error":"#N/A"}},{"$f":"IF(INDIRECT(\"c\" & (VLOOKUP(Switch!$D$31,$F$2:$G$44,2,FALSE)+ROW()-2))=Switch!$D$31,INDIRECT(\"a\" & (VLOOKUP(Switch!$D$31,$F$2:$G$44,2,FALSE)+ROW()-2)),\"\")","v":{"$error":"#N/A"}},{"$f":"IF(INDIRECT(\"c\" & (VLOOKUP(Switch!$D$32,$F$2:$G$44,2,FALSE)+ROW()-2))=Switch!$D$32,INDIRECT(\"a\" & (VLOOKUP(Switch!$D$32,$F$2:$G$44,2,FALSE)+ROW()-2)),\"\")","v":{"$error":"#N/A"}},{"$f":"IF(INDIRECT(\"c\" & (VLOOKUP(Switch!$D$33,$F$2:$G$44,2,FALSE)+ROW()-2))=Switch!$D$33,INDIRECT(\"a\" & (VLOOKUP(Switch!$D$33,$F$2:$G$44,2,FALSE)+ROW()-2)),\"\")","v":{"$error":"#N/A"}},{"$f":"IF(INDIRECT(\"c\" & (VLOOKUP(Switch!$D$34,$F$2:$G$44,2,FALSE)+ROW()-2))=Switch!$D$34,INDIRECT(\"a\" & (VLOOKUP(Switch!$D$34,$F$2:$G$44,2,FALSE)+ROW()-2)),\"\")","v":{"$error":"#N/A"}},{"$f":"IF(INDIRECT(\"c\" & (VLOOKUP(Switch!$D$35,$F$2:$G$44,2,FALSE)+ROW()-2))=Switch!$D$35,INDIRECT(\"a\" & (VLOOKUP(Switch!$D$35,$F$2:$G$44,2,FALSE)+ROW()-2)),\"\")","v":{"$error":"#N/A"}},{"$f":"IF(INDIRECT(\"c\" & (VLOOKUP(Switch!$D$36,$F$2:$G$44,2,FALSE)+ROW()-2))=Switch!$D$36,INDIRECT(\"a\" & (VLOOKUP(Switch!$D$36,$F$2:$G$44,2,FALSE)+ROW()-2)),\"\")","v":{"$error":"#N/A"}},{"$f":"IF(INDIRECT(\"c\" & (VLOOKUP(Switch!$D$37,$F$2:$G$44,2,FALSE)+ROW()-2))=Switch!$D$37,INDIRECT(\"a\" & (VLOOKUP(Switch!$D$37,$F$2:$G$44,2,FALSE)+ROW()-2)),\"\")","v":{"$error":"#N/A"}},{"$f":"IF(INDIRECT(\"c\" & (VLOOKUP(Switch!$D$38,$F$2:$G$44,2,FALSE)+ROW()-2))=Switch!$D$38,INDIRECT(\"a\" & (VLOOKUP(Switch!$D$38,$F$2:$G$44,2,FALSE)+ROW()-2)),\"\")","v":{"$error":"#N/A"}},{"$f":"IF(INDIRECT(\"c\" & (VLOOKUP(Switch!$D$39,$F$2:$G$44,2,FALSE)+ROW()-2))=Switch!$D$39,INDIRECT(\"a\" & (VLOOKUP(Switch!$D$39,$F$2:$G$44,2,FALSE)+ROW()-2)),\"\")","v":{"$error":"#N/A"}},{"$f":"IF(INDIRECT(\"c\" & (VLOOKUP(Switch!$D$40,$F$2:$G$44,2,FALSE)+ROW()-2))=Switch!$D$40,INDIRECT(\"a\" & (VLOOKUP(Switch!$D$40,$F$2:$G$44,2,FALSE)+ROW()-2)),\"\")","v":{"$error":"#N/A"}},{"$f":"IF(INDIRECT(\"c\" & (VLOOKUP(Switch!$D$52,$F$2:$G$44,2,FALSE)+ROW()-2))=Switch!$D$52,INDIRECT(\"a\" & (VLOOKUP(Switch!$D$52,$F$2:$G$44,2,FALSE)+ROW()-2)),\"\")","v":{"$error":"#N/A"}},{"$f":"IF(INDIRECT(\"c\" & (VLOOKUP(Switch!$D$53,$F$2:$G$44,2,FALSE)+ROW()-2))=Switch!$D$53,INDIRECT(\"a\" & (VLOOKUP(Switch!$D$53,$F$2:$G$44,2,FALSE)+ROW()-2)),\"\")","v":{"$error":"#N/A"}},{"$f":"IF(INDIRECT(\"c\" & (VLOOKUP(Switch!$D$54,$F$2:$G$44,2,FALSE)+ROW()-2))=Switch!$D$54,INDIRECT(\"a\" & (VLOOKUP(Switch!$D$54,$F$2:$G$44,2,FALSE)+ROW()-2)),\"\")","v":{"$error":"#N/A"}},{"$f":"IF(INDIRECT(\"c\" & (VLOOKUP(Switch!$D$55,$F$2:$G$44,2,FALSE)+ROW()-2))=Switch!$D$55,INDIRECT(\"a\" & (VLOOKUP(Switch!$D$55,$F$2:$G$44,2,FALSE)+ROW()-2)),\"\")","v":{"$error":"#N/A"}},{"$f":"IF(INDIRECT(\"c\" & (VLOOKUP(Switch!$D$56,$F$2:$G$44,2,FALSE)+ROW()-2))=Switch!$D$56,INDIRECT(\"a\" & (VLOOKUP(Switch!$D$56,$F$2:$G$44,2,FALSE)+ROW()-2)),\"\")","v":{"$error":"#N/A"}},{"$f":"IF(INDIRECT(\"c\" & (VLOOKUP(Switch!$D$57,$F$2:$G$44,2,FALSE)+ROW()-2))=Switch!$D$57,INDIRECT(\"a\" & (VLOOKUP(Switch!$D$57,$F$2:$G$44,2,FALSE)+ROW()-2)),\"\")","v":{"$error":"#N/A"}},{"$f":"IF(INDIRECT(\"c\" & (VLOOKUP(Switch!$D$58,$F$2:$G$44,2,FALSE)+ROW()-2))=Switch!$D$58,INDIRECT(\"a\" & (VLOOKUP(Switch!$D$58,$F$2:$G$44,2,FALSE)+ROW()-2)),\"\")","v":{"$error":"#N/A"}},{"$f":"IF(INDIRECT(\"c\" & (VLOOKUP(Switch!$D$59,$F$2:$G$44,2,FALSE)+ROW()-2))=Switch!$D$59,INDIRECT(\"a\" & (VLOOKUP(Switch!$D$59,$F$2:$G$44,2,FALSE)+ROW()-2)),\"\")","v":{"$error":"#N/A"}},{"$f":"IF(INDIRECT(\"c\" & (VLOOKUP(Switch!$D$60,$F$2:$G$44,2,FALSE)+ROW()-2))=Switch!$D$60,INDIRECT(\"a\" & (VLOOKUP(Switch!$D$60,$F$2:$G$44,2,FALSE)+ROW()-2)),\"\")","v":{"$error":"#N/A"}},{"$f":"IF(INDIRECT(\"c\" & (VLOOKUP(Switch!$D$61,$F$2:$G$44,2,FALSE)+ROW()-2))=Switch!$D$61,INDIRECT(\"a\" & (VLOOKUP(Switch!$D$61,$F$2:$G$44,2,FALSE)+ROW()-2)),\"\")","v":{"$error":"#N/A"}},{"$f":"IF(INDIRECT(\"c\" & (VLOOKUP(Switch!$D$62,$F$2:$G$44,2,FALSE)+ROW()-2))=Switch!$D$62,INDIRECT(\"a\" & (VLOOKUP(Switch!$D$62,$F$2:$G$44,2,FALSE)+ROW()-2)),\"\")","v":{"$error":"#N/A"}},{"$f":"IF(INDIRECT(\"c\" & (VLOOKUP(Switch!$D$63,$F$2:$G$44,2,FALSE)+ROW()-2))=Switch!$D$63,INDIRECT(\"a\" & (VLOOKUP(Switch!$D$63,$F$2:$G$44,2,FALSE)+ROW()-2)),\"\")","v":{"$error":"#N/A"}},{"$f":"IF(INDIRECT(\"c\" & (VLOOKUP(Switch!$D$64,$F$2:$G$44,2,FALSE)+ROW()-2))=Switch!$D$64,INDIRECT(\"a\" & (VLOOKUP(Switch!$D$64,$F$2:$G$44,2,FALSE)+ROW()-2)),\"\")","v":{"$error":"#N/A"}},{"$f":"IF(INDIRECT(\"c\" & (VLOOKUP(Switch!$D$65,$F$2:$G$44,2,FALSE)+ROW()-2))=Switch!$D$65,INDIRECT(\"a\" & (VLOOKUP(Switch!$D$65,$F$2:$G$44,2,FALSE)+ROW()-2)),\"\")","v":{"$error":"#N/A"}},{"$f":"IF(INDIRECT(\"c\" & (VLOOKUP(Switch!$D$66,$F$2:$G$44,2,FALSE)+ROW()-2))=Switch!$D$66,INDIRECT(\"a\" & (VLOOKUP(Switch!$D$66,$F$2:$G$44,2,FALSE)+ROW()-2)),\"\")","v":{"$error":"#N/A"}}]
["Old Mutual Global Currency Feeder Fund B1","OGCB1","Old Mutual Unit Trust Managers Limited",{"$f":"ROW()","v":411},null,null,{"$f":"VLOOKUP(F411,$C$2:$D$637,2,FALSE)","v":{"$error":"#N/A"}},{"$f":"IF(INDIRECT(\"c\" & (VLOOKUP(Switch!$D$26,$F$2:$G$44,2,FALSE)+ROW()-2))=Switch!$D$26,INDIRECT(\"a\" & (VLOOKUP(Switch!$D$26,$F$2:$G$44,2,FALSE)+ROW()-2)),\"\")","v":{"$error":"#N/A"}},{"$f":"IF(INDIRECT(\"c\" & (VLOOKUP(Switch!$D$27,$F$2:$G$44,2,FALSE)+ROW()-2))=Switch!$D$27,INDIRECT(\"a\" & (VLOOKUP(Switch!$D$27,$F$2:$G$44,2,FALSE)+ROW()-2)),\"\")","v":{"$error":"#N/A"}},{"$f":"IF(INDIRECT(\"c\" & (VLOOKUP(Switch!$D$28,$F$2:$G$44,2,FALSE)+ROW()-2))=Switch!$D$28,INDIRECT(\"a\" & (VLOOKUP(Switch!$D$28,$F$2:$G$44,2,FALSE)+ROW()-2)),\"\")","v":{"$error":"#N/A"}},{"$f":"IF(INDIRECT(\"c\" & (VLOOKUP(Switch!$D$29,$F$2:$G$44,2,FALSE)+ROW()-2))=Switch!$D$29,INDIRECT(\"a\" & (VLOOKUP(Switch!$D$29,$F$2:$G$44,2,FALSE)+ROW()-2)),\"\")","v":{"$error":"#N/A"}},{"$f":"IF(INDIRECT(\"c\" & (VLOOKUP(Switch!$D$30,$F$2:$G$44,2,FALSE)+ROW()-2))=Switch!$D$30,INDIRECT(\"a\" & (VLOOKUP(Switch!$D$30,$F$2:$G$44,2,FALSE)+ROW()-2)),\"\")","v":{"$error":"#N/A"}},{"$f":"IF(INDIRECT(\"c\" & (VLOOKUP(Switch!$D$31,$F$2:$G$44,2,FALSE)+ROW()-2))=Switch!$D$31,INDIRECT(\"a\" & (VLOOKUP(Switch!$D$31,$F$2:$G$44,2,FALSE)+ROW()-2)),\"\")","v":{"$error":"#N/A"}},{"$f":"IF(INDIRECT(\"c\" & (VLOOKUP(Switch!$D$32,$F$2:$G$44,2,FALSE)+ROW()-2))=Switch!$D$32,INDIRECT(\"a\" & (VLOOKUP(Switch!$D$32,$F$2:$G$44,2,FALSE)+ROW()-2)),\"\")","v":{"$error":"#N/A"}},{"$f":"IF(INDIRECT(\"c\" & (VLOOKUP(Switch!$D$33,$F$2:$G$44,2,FALSE)+ROW()-2))=Switch!$D$33,INDIRECT(\"a\" & (VLOOKUP(Switch!$D$33,$F$2:$G$44,2,FALSE)+ROW()-2)),\"\")","v":{"$error":"#N/A"}},{"$f":"IF(INDIRECT(\"c\" & (VLOOKUP(Switch!$D$34,$F$2:$G$44,2,FALSE)+ROW()-2))=Switch!$D$34,INDIRECT(\"a\" & (VLOOKUP(Switch!$D$34,$F$2:$G$44,2,FALSE)+ROW()-2)),\"\")","v":{"$error":"#N/A"}},{"$f":"IF(INDIRECT(\"c\" & (VLOOKUP(Switch!$D$35,$F$2:$G$44,2,FALSE)+ROW()-2))=Switch!$D$35,INDIRECT(\"a\" & (VLOOKUP(Switch!$D$35,$F$2:$G$44,2,FALSE)+ROW()-2)),\"\")","v":{"$error":"#N/A"}},{"$f":"IF(INDIRECT(\"c\" & (VLOOKUP(Switch!$D$36,$F$2:$G$44,2,FALSE)+ROW()-2))=Switch!$D$36,INDIRECT(\"a\" & (VLOOKUP(Switch!$D$36,$F$2:$G$44,2,FALSE)+ROW()-2)),\"\")","v":{"$error":"#N/A"}},{"$f":"IF(INDIRECT(\"c\" & (VLOOKUP(Switch!$D$37,$F$2:$G$44,2,FALSE)+ROW()-2))=Switch!$D$37,INDIRECT(\"a\" & (VLOOKUP(Switch!$D$37,$F$2:$G$44,2,FALSE)+ROW()-2)),\"\")","v":{"$error":"#N/A"}},{"$f":"IF(INDIRECT(\"c\" & (VLOOKUP(Switch!$D$38,$F$2:$G$44,2,FALSE)+ROW()-2))=Switch!$D$38,INDIRECT(\"a\" & (VLOOKUP(Switch!$D$38,$F$2:$G$44,2,FALSE)+ROW()-2)),\"\")","v":{"$error":"#N/A"}},{"$f":"IF(INDIRECT(\"c\" & (VLOOKUP(Switch!$D$39,$F$2:$G$44,2,FALSE)+ROW()-2))=Switch!$D$39,INDIRECT(\"a\" & (VLOOKUP(Switch!$D$39,$F$2:$G$44,2,FALSE)+ROW()-2)),\"\")","v":{"$error":"#N/A"}},{"$f":"IF(INDIRECT(\"c\" & (VLOOKUP(Switch!$D$40,$F$2:$G$44,2,FALSE)+ROW()-2))=Switch!$D$40,INDIRECT(\"a\" & (VLOOKUP(Switch!$D$40,$F$2:$G$44,2,FALSE)+ROW()-2)),\"\")","v":{"$error":"#N/A"}},{"$f":"IF(INDIRECT(\"c\" & (VLOOKUP(Switch!$D$52,$F$2:$G$44,2,FALSE)+ROW()-2))=Switch!$D$52,INDIRECT(\"a\" & (VLOOKUP(Switch!$D$52,$F$2:$G$44,2,FALSE)+ROW()-2)),\"\")","v":{"$error":"#N/A"}},{"$f":"IF(INDIRECT(\"c\" & (VLOOKUP(Switch!$D$53,$F$2:$G$44,2,FALSE)+ROW()-2))=Switch!$D$53,INDIRECT(\"a\" & (VLOOKUP(Switch!$D$53,$F$2:$G$44,2,FALSE)+ROW()-2)),\"\")","v":{"$error":"#N/A"}},{"$f":"IF(INDIRECT(\"c\" & (VLOOKUP(Switch!$D$54,$F$2:$G$44,2,FALSE)+ROW()-2))=Switch!$D$54,INDIRECT(\"a\" & (VLOOKUP(Switch!$D$54,$F$2:$G$44,2,FALSE)+ROW()-2)),\"\")","v":{"$error":"#N/A"}},{"$f":"IF(INDIRECT(\"c\" & (VLOOKUP(Switch!$D$55,$F$2:$G$44,2,FALSE)+ROW()-2))=Switch!$D$55,INDIRECT(\"a\" & (VLOOKUP(Switch!$D$55,$F$2:$G$44,2,FALSE)+ROW()-2)),\"\")","v":{"$error":"#N/A"}},{"$f":"IF(INDIRECT(\"c\" & (VLOOKUP(Switch!$D$56,$F$2:$G$44,2,FALSE)+ROW()-2))=Switch!$D$56,INDIRECT(\"a\" & (VLOOKUP(Switch!$D$56,$F$2:$G$44,2,FALSE)+ROW()-2)),\"\")","v":{"$error":"#N/A"}},{"$f":"IF(INDIRECT(\"c\" & (VLOOKUP(Switch!$D$57,$F$2:$G$44,2,FALSE)+ROW()-2))=Switch!$D$57,INDIRECT(\"a\" & (VLOOKUP(Switch!$D$57,$F$2:$G$44,2,FALSE)+ROW()-2)),\"\")","v":{"$error":"#N/A"}},{"$f":"IF(INDIRECT(\"c\" & (VLOOKUP(Switch!$D$58,$F$2:$G$44,2,FALSE)+ROW()-2))=Switch!$D$58,INDIRECT(\"a\" & (VLOOKUP(Switch!$D$58,$F$2:$G$44,2,FALSE)+ROW()-2)),\"\")","v":{"$error":"#N/A"}},{"$f":"IF(INDIRECT(\"c\" & (VLOOKUP(Switch!$D$59,$F$2:$G$44,2,FALSE)+ROW()-2))=Switch!$D$59,INDIRECT(\"a\" & (VLOOKUP(Switch!$D$59,$F$2:$G$44,2,FALSE)+ROW()-2)),\"\")","v":{"$error":"#N/A"}},{"$f":"IF(INDIRECT(\"c\" & (VLOOKUP(Switch!$D$60,$F$2:$G$44,2,FALSE)+ROW()-2))=Switch!$D$60,INDIRECT(\"a\" & (VLOOKUP(Switch!$D$60,$F$2:$G$44,2,FALSE)+ROW()-2)),\"\")","v":{"$error":"#N/A"}},{"$f":"IF(INDIRECT(\"c\" & (VLOOKUP(Switch!$D$61,$F$2:$G$44,2,FALSE)+ROW()-2))=Switch!$D$61,INDIRECT(\"a\" & (VLOOKUP(Switch!$D$61,$F$2:$G$44,2,FALSE)+ROW()-2)),\"\")","v":{"$error":"#N/A"}},{"$f":"IF(INDIRECT(\"c\" & (VLOOKUP(Switch!$D$62,$F$2:$G$44,2,FALSE)+ROW()-2))=Switch!$D$62,INDIRECT(\"a\" & (VLOOKUP(Switch!$D$62,$F$2:$G$44,2,FALSE)+ROW()-2)),\"\")","v":{"$error":"#N/A"}},{"$f":"IF(INDIRECT(\"c\" & (VLOOKUP(Switch!$D$63,$F$2:$G$44,2,FALSE)+ROW()-2))=Switch!$D$63,INDIRECT(\"a\" & (VLOOKUP(Switch!$D$63,$F$2:$G$44,2,FALSE)+ROW()-2)),\"\")","v":{"$error":"#N/A"}},{"$f":"IF(INDIRECT(\"c\" & (VLOOKUP(Switch!$D$64,$F$2:$G$44,2,FALSE)+ROW()-2))=Switch!$D$64,INDIRECT(\"a\" & (VLOOKUP(Switch!$D$64,$F$2:$G$44,2,FALSE)+ROW()-2)),\"\")","v":{"$error":"#N/A"}},{"$f":"IF(INDIRECT(\"c\" & (VLOOKUP(Switch!$D$65,$F$2:$G$44,2,FALSE)+ROW()-2))=Switch!$D$65,INDIRECT(\"a\" & (VLOOKUP(Switch!$D$65,$F$2:$G$44,2,FALSE)+ROW()-2)),\"\")","v":{"$error":"#N/A"}},{"$f":"IF(INDIRECT(\"c\" & (VLOOKUP(Switch!$D$66,$F$2:$G$44,2,FALSE)+ROW()-2))=Switch!$D$66,INDIRECT(\"a\" & (VLOOKUP(Switch!$D$66,$F$2:$G$44,2,FALSE)+ROW()-2)),\"\")","v":{"$error":"#N/A"}}]
["Old Mutual Global Equity Fund A","OMGB1","Old Mutual Unit Trust Managers Limited",{"$f":"ROW()","v":412},null,null,{"$f":"VLOOKUP(F412,$C$2:$D$637,2,FALSE)","v":{"$error":"#N/A"}},{"$f":"IF(INDIRECT(\"c\" & (VLOOKUP(Switch!$D$26,$F$2:$G$44,2,FALSE)+ROW()-2))=Switch!$D$26,INDIRECT(\"a\" & (VLOOKUP(Switch!$D$26,$F$2:$G$44,2,FALSE)+ROW()-2)),\"\")","v":{"$error":"#N/A"}},{"$f":"IF(INDIRECT(\"c\" & (VLOOKUP(Switch!$D$27,$F$2:$G$44,2,FALSE)+ROW()-2))=Switch!$D$27,INDIRECT(\"a\" & (VLOOKUP(Switch!$D$27,$F$2:$G$44,2,FALSE)+ROW()-2)),\"\")","v":{"$error":"#N/A"}},{"$f":"IF(INDIRECT(\"c\" & (VLOOKUP(Switch!$D$28,$F$2:$G$44,2,FALSE)+ROW()-2))=Switch!$D$28,INDIRECT(\"a\" & (VLOOKUP(Switch!$D$28,$F$2:$G$44,2,FALSE)+ROW()-2)),\"\")","v":{"$error":"#N/A"}},{"$f":"IF(INDIRECT(\"c\" & (VLOOKUP(Switch!$D$29,$F$2:$G$44,2,FALSE)+ROW()-2))=Switch!$D$29,INDIRECT(\"a\" & (VLOOKUP(Switch!$D$29,$F$2:$G$44,2,FALSE)+ROW()-2)),\"\")","v":{"$error":"#N/A"}},{"$f":"IF(INDIRECT(\"c\" & (VLOOKUP(Switch!$D$30,$F$2:$G$44,2,FALSE)+ROW()-2))=Switch!$D$30,INDIRECT(\"a\" & (VLOOKUP(Switch!$D$30,$F$2:$G$44,2,FALSE)+ROW()-2)),\"\")","v":{"$error":"#N/A"}},{"$f":"IF(INDIRECT(\"c\" & (VLOOKUP(Switch!$D$31,$F$2:$G$44,2,FALSE)+ROW()-2))=Switch!$D$31,INDIRECT(\"a\" & (VLOOKUP(Switch!$D$31,$F$2:$G$44,2,FALSE)+ROW()-2)),\"\")","v":{"$error":"#N/A"}},{"$f":"IF(INDIRECT(\"c\" & (VLOOKUP(Switch!$D$32,$F$2:$G$44,2,FALSE)+ROW()-2))=Switch!$D$32,INDIRECT(\"a\" & (VLOOKUP(Switch!$D$32,$F$2:$G$44,2,FALSE)+ROW()-2)),\"\")","v":{"$error":"#N/A"}},{"$f":"IF(INDIRECT(\"c\" & (VLOOKUP(Switch!$D$33,$F$2:$G$44,2,FALSE)+ROW()-2))=Switch!$D$33,INDIRECT(\"a\" & (VLOOKUP(Switch!$D$33,$F$2:$G$44,2,FALSE)+ROW()-2)),\"\")","v":{"$error":"#N/A"}},{"$f":"IF(INDIRECT(\"c\" & (VLOOKUP(Switch!$D$34,$F$2:$G$44,2,FALSE)+ROW()-2))=Switch!$D$34,INDIRECT(\"a\" & (VLOOKUP(Switch!$D$34,$F$2:$G$44,2,FALSE)+ROW()-2)),\"\")","v":{"$error":"#N/A"}},{"$f":"IF(INDIRECT(\"c\" & (VLOOKUP(Switch!$D$35,$F$2:$G$44,2,FALSE)+ROW()-2))=Switch!$D$35,INDIRECT(\"a\" & (VLOOKUP(Switch!$D$35,$F$2:$G$44,2,FALSE)+ROW()-2)),\"\")","v":{"$error":"#N/A"}},{"$f":"IF(INDIRECT(\"c\" & (VLOOKUP(Switch!$D$36,$F$2:$G$44,2,FALSE)+ROW()-2))=Switch!$D$36,INDIRECT(\"a\" & (VLOOKUP(Switch!$D$36,$F$2:$G$44,2,FALSE)+ROW()-2)),\"\")","v":{"$error":"#N/A"}},{"$f":"IF(INDIRECT(\"c\" & (VLOOKUP(Switch!$D$37,$F$2:$G$44,2,FALSE)+ROW()-2))=Switch!$D$37,INDIRECT(\"a\" & (VLOOKUP(Switch!$D$37,$F$2:$G$44,2,FALSE)+ROW()-2)),\"\")","v":{"$error":"#N/A"}},{"$f":"IF(INDIRECT(\"c\" & (VLOOKUP(Switch!$D$38,$F$2:$G$44,2,FALSE)+ROW()-2))=Switch!$D$38,INDIRECT(\"a\" & (VLOOKUP(Switch!$D$38,$F$2:$G$44,2,FALSE)+ROW()-2)),\"\")","v":{"$error":"#N/A"}},{"$f":"IF(INDIRECT(\"c\" & (VLOOKUP(Switch!$D$39,$F$2:$G$44,2,FALSE)+ROW()-2))=Switch!$D$39,INDIRECT(\"a\" & (VLOOKUP(Switch!$D$39,$F$2:$G$44,2,FALSE)+ROW()-2)),\"\")","v":{"$error":"#N/A"}},{"$f":"IF(INDIRECT(\"c\" & (VLOOKUP(Switch!$D$40,$F$2:$G$44,2,FALSE)+ROW()-2))=Switch!$D$40,INDIRECT(\"a\" & (VLOOKUP(Switch!$D$40,$F$2:$G$44,2,FALSE)+ROW()-2)),\"\")","v":{"$error":"#N/A"}},{"$f":"IF(INDIRECT(\"c\" & (VLOOKUP(Switch!$D$52,$F$2:$G$44,2,FALSE)+ROW()-2))=Switch!$D$52,INDIRECT(\"a\" & (VLOOKUP(Switch!$D$52,$F$2:$G$44,2,FALSE)+ROW()-2)),\"\")","v":{"$error":"#N/A"}},{"$f":"IF(INDIRECT(\"c\" & (VLOOKUP(Switch!$D$53,$F$2:$G$44,2,FALSE)+ROW()-2))=Switch!$D$53,INDIRECT(\"a\" & (VLOOKUP(Switch!$D$53,$F$2:$G$44,2,FALSE)+ROW()-2)),\"\")","v":{"$error":"#N/A"}},{"$f":"IF(INDIRECT(\"c\" & (VLOOKUP(Switch!$D$54,$F$2:$G$44,2,FALSE)+ROW()-2))=Switch!$D$54,INDIRECT(\"a\" & (VLOOKUP(Switch!$D$54,$F$2:$G$44,2,FALSE)+ROW()-2)),\"\")","v":{"$error":"#N/A"}},{"$f":"IF(INDIRECT(\"c\" & (VLOOKUP(Switch!$D$55,$F$2:$G$44,2,FALSE)+ROW()-2))=Switch!$D$55,INDIRECT(\"a\" & (VLOOKUP(Switch!$D$55,$F$2:$G$44,2,FALSE)+ROW()-2)),\"\")","v":{"$error":"#N/A"}},{"$f":"IF(INDIRECT(\"c\" & (VLOOKUP(Switch!$D$56,$F$2:$G$44,2,FALSE)+ROW()-2))=Switch!$D$56,INDIRECT(\"a\" & (VLOOKUP(Switch!$D$56,$F$2:$G$44,2,FALSE)+ROW()-2)),\"\")","v":{"$error":"#N/A"}},{"$f":"IF(INDIRECT(\"c\" & (VLOOKUP(Switch!$D$57,$F$2:$G$44,2,FALSE)+ROW()-2))=Switch!$D$57,INDIRECT(\"a\" & (VLOOKUP(Switch!$D$57,$F$2:$G$44,2,FALSE)+ROW()-2)),\"\")","v":{"$error":"#N/A"}},{"$f":"IF(INDIRECT(\"c\" & (VLOOKUP(Switch!$D$58,$F$2:$G$44,2,FALSE)+ROW()-2))=Switch!$D$58,INDIRECT(\"a\" & (VLOOKUP(Switch!$D$58,$F$2:$G$44,2,FALSE)+ROW()-2)),\"\")","v":{"$error":"#N/A"}},{"$f":"IF(INDIRECT(\"c\" & (VLOOKUP(Switch!$D$59,$F$2:$G$44,2,FALSE)+ROW()-2))=Switch!$D$59,INDIRECT(\"a\" & (VLOOKUP(Switch!$D$59,$F$2:$G$44,2,FALSE)+ROW()-2)),\"\")","v":{"$error":"#N/A"}},{"$f":"IF(INDIRECT(\"c\" & (VLOOKUP(Switch!$D$60,$F$2:$G$44,2,FALSE)+ROW()-2))=Switch!$D$60,INDIRECT(\"a\" & (VLOOKUP(Switch!$D$60,$F$2:$G$44,2,FALSE)+ROW()-2)),\"\")","v":{"$error":"#N/A"}},{"$f":"IF(INDIRECT(\"c\" & (VLOOKUP(Switch!$D$61,$F$2:$G$44,2,FALSE)+ROW()-2))=Switch!$D$61,INDIRECT(\"a\" & (VLOOKUP(Switch!$D$61,$F$2:$G$44,2,FALSE)+ROW()-2)),\"\")","v":{"$error":"#N/A"}},{"$f":"IF(INDIRECT(\"c\" & (VLOOKUP(Switch!$D$62,$F$2:$G$44,2,FALSE)+ROW()-2))=Switch!$D$62,INDIRECT(\"a\" & (VLOOKUP(Switch!$D$62,$F$2:$G$44,2,FALSE)+ROW()-2)),\"\")","v":{"$error":"#N/A"}},{"$f":"IF(INDIRECT(\"c\" & (VLOOKUP(Switch!$D$63,$F$2:$G$44,2,FALSE)+ROW()-2))=Switch!$D$63,INDIRECT(\"a\" & (VLOOKUP(Switch!$D$63,$F$2:$G$44,2,FALSE)+ROW()-2)),\"\")","v":{"$error":"#N/A"}},{"$f":"IF(INDIRECT(\"c\" & (VLOOKUP(Switch!$D$64,$F$2:$G$44,2,FALSE)+ROW()-2))=Switch!$D$64,INDIRECT(\"a\" & (VLOOKUP(Switch!$D$64,$F$2:$G$44,2,FALSE)+ROW()-2)),\"\")","v":{"$error":"#N/A"}},{"$f":"IF(INDIRECT(\"c\" & (VLOOKUP(Switch!$D$65,$F$2:$G$44,2,FALSE)+ROW()-2))=Switch!$D$65,INDIRECT(\"a\" & (VLOOKUP(Switch!$D$65,$F$2:$G$44,2,FALSE)+ROW()-2)),\"\")","v":{"$error":"#N/A"}},{"$f":"IF(INDIRECT(\"c\" & (VLOOKUP(Switch!$D$66,$F$2:$G$44,2,FALSE)+ROW()-2))=Switch!$D$66,INDIRECT(\"a\" & (VLOOKUP(Switch!$D$66,$F$2:$G$44,2,FALSE)+ROW()-2)),\"\")","v":{"$error":"#N/A"}}]
["Old Mutual Global Equity Fund B1","OMGB1","Old Mutual Unit Trust Managers Limited",{"$f":"ROW()","v":413},null,null,{"$f":"VLOOKUP(F413,$C$2:$D$637,2,FALSE)","v":{"$error":"#N/A"}},{"$f":"IF(INDIRECT(\"c\" & (VLOOKUP(Switch!$D$26,$F$2:$G$44,2,FALSE)+ROW()-2))=Switch!$D$26,INDIRECT(\"a\" & (VLOOKUP(Switch!$D$26,$F$2:$G$44,2,FALSE)+ROW()-2)),\"\")","v":{"$error":"#N/A"}},{"$f":"IF(INDIRECT(\"c\" & (VLOOKUP(Switch!$D$27,$F$2:$G$44,2,FALSE)+ROW()-2))=Switch!$D$27,INDIRECT(\"a\" & (VLOOKUP(Switch!$D$27,$F$2:$G$44,2,FALSE)+ROW()-2)),\"\")","v":{"$error":"#N/A"}},{"$f":"IF(INDIRECT(\"c\" & (VLOOKUP(Switch!$D$28,$F$2:$G$44,2,FALSE)+ROW()-2))=Switch!$D$28,INDIRECT(\"a\" & (VLOOKUP(Switch!$D$28,$F$2:$G$44,2,FALSE)+ROW()-2)),\"\")","v":{"$error":"#N/A"}},{"$f":"IF(INDIRECT(\"c\" & (VLOOKUP(Switch!$D$29,$F$2:$G$44,2,FALSE)+ROW()-2))=Switch!$D$29,INDIRECT(\"a\" & (VLOOKUP(Switch!$D$29,$F$2:$G$44,2,FALSE)+ROW()-2)),\"\")","v":{"$error":"#N/A"}},{"$f":"IF(INDIRECT(\"c\" & (VLOOKUP(Switch!$D$30,$F$2:$G$44,2,FALSE)+ROW()-2))=Switch!$D$30,INDIRECT(\"a\" & (VLOOKUP(Switch!$D$30,$F$2:$G$44,2,FALSE)+ROW()-2)),\"\")","v":{"$error":"#N/A"}},{"$f":"IF(INDIRECT(\"c\" & (VLOOKUP(Switch!$D$31,$F$2:$G$44,2,FALSE)+ROW()-2))=Switch!$D$31,INDIRECT(\"a\" & (VLOOKUP(Switch!$D$31,$F$2:$G$44,2,FALSE)+ROW()-2)),\"\")","v":{"$error":"#N/A"}},{"$f":"IF(INDIRECT(\"c\" & (VLOOKUP(Switch!$D$32,$F$2:$G$44,2,FALSE)+ROW()-2))=Switch!$D$32,INDIRECT(\"a\" & (VLOOKUP(Switch!$D$32,$F$2:$G$44,2,FALSE)+ROW()-2)),\"\")","v":{"$error":"#N/A"}},{"$f":"IF(INDIRECT(\"c\" & (VLOOKUP(Switch!$D$33,$F$2:$G$44,2,FALSE)+ROW()-2))=Switch!$D$33,INDIRECT(\"a\" & (VLOOKUP(Switch!$D$33,$F$2:$G$44,2,FALSE)+ROW()-2)),\"\")","v":{"$error":"#N/A"}},{"$f":"IF(INDIRECT(\"c\" & (VLOOKUP(Switch!$D$34,$F$2:$G$44,2,FALSE)+ROW()-2))=Switch!$D$34,INDIRECT(\"a\" & (VLOOKUP(Switch!$D$34,$F$2:$G$44,2,FALSE)+ROW()-2)),\"\")","v":{"$error":"#N/A"}},{"$f":"IF(INDIRECT(\"c\" & (VLOOKUP(Switch!$D$35,$F$2:$G$44,2,FALSE)+ROW()-2))=Switch!$D$35,INDIRECT(\"a\" & (VLOOKUP(Switch!$D$35,$F$2:$G$44,2,FALSE)+ROW()-2)),\"\")","v":{"$error":"#N/A"}},{"$f":"IF(INDIRECT(\"c\" & (VLOOKUP(Switch!$D$36,$F$2:$G$44,2,FALSE)+ROW()-2))=Switch!$D$36,INDIRECT(\"a\" & (VLOOKUP(Switch!$D$36,$F$2:$G$44,2,FALSE)+ROW()-2)),\"\")","v":{"$error":"#N/A"}},{"$f":"IF(INDIRECT(\"c\" & (VLOOKUP(Switch!$D$37,$F$2:$G$44,2,FALSE)+ROW()-2))=Switch!$D$37,INDIRECT(\"a\" & (VLOOKUP(Switch!$D$37,$F$2:$G$44,2,FALSE)+ROW()-2)),\"\")","v":{"$error":"#N/A"}},{"$f":"IF(INDIRECT(\"c\" & (VLOOKUP(Switch!$D$38,$F$2:$G$44,2,FALSE)+ROW()-2))=Switch!$D$38,INDIRECT(\"a\" & (VLOOKUP(Switch!$D$38,$F$2:$G$44,2,FALSE)+ROW()-2)),\"\")","v":{"$error":"#N/A"}},{"$f":"IF(INDIRECT(\"c\" & (VLOOKUP(Switch!$D$39,$F$2:$G$44,2,FALSE)+ROW()-2))=Switch!$D$39,INDIRECT(\"a\" & (VLOOKUP(Switch!$D$39,$F$2:$G$44,2,FALSE)+ROW()-2)),\"\")","v":{"$error":"#N/A"}},{"$f":"IF(INDIRECT(\"c\" & (VLOOKUP(Switch!$D$40,$F$2:$G$44,2,FALSE)+ROW()-2))=Switch!$D$40,INDIRECT(\"a\" & (VLOOKUP(Switch!$D$40,$F$2:$G$44,2,FALSE)+ROW()-2)),\"\")","v":{"$error":"#N/A"}},{"$f":"IF(INDIRECT(\"c\" & (VLOOKUP(Switch!$D$52,$F$2:$G$44,2,FALSE)+ROW()-2))=Switch!$D$52,INDIRECT(\"a\" & (VLOOKUP(Switch!$D$52,$F$2:$G$44,2,FALSE)+ROW()-2)),\"\")","v":{"$error":"#N/A"}},{"$f":"IF(INDIRECT(\"c\" & (VLOOKUP(Switch!$D$53,$F$2:$G$44,2,FALSE)+ROW()-2))=Switch!$D$53,INDIRECT(\"a\" & (VLOOKUP(Switch!$D$53,$F$2:$G$44,2,FALSE)+ROW()-2)),\"\")","v":{"$error":"#N/A"}},{"$f":"IF(INDIRECT(\"c\" & (VLOOKUP(Switch!$D$54,$F$2:$G$44,2,FALSE)+ROW()-2))=Switch!$D$54,INDIRECT(\"a\" & (VLOOKUP(Switch!$D$54,$F$2:$G$44,2,FALSE)+ROW()-2)),\"\")","v":{"$error":"#N/A"}},{"$f":"IF(INDIRECT(\"c\" & (VLOOKUP(Switch!$D$55,$F$2:$G$44,2,FALSE)+ROW()-2))=Switch!$D$55,INDIRECT(\"a\" & (VLOOKUP(Switch!$D$55,$F$2:$G$44,2,FALSE)+ROW()-2)),\"\")","v":{"$error":"#N/A"}},{"$f":"IF(INDIRECT(\"c\" & (VLOOKUP(Switch!$D$56,$F$2:$G$44,2,FALSE)+ROW()-2))=Switch!$D$56,INDIRECT(\"a\" & (VLOOKUP(Switch!$D$56,$F$2:$G$44,2,FALSE)+ROW()-2)),\"\")","v":{"$error":"#N/A"}},{"$f":"IF(INDIRECT(\"c\" & (VLOOKUP(Switch!$D$57,$F$2:$G$44,2,FALSE)+ROW()-2))=Switch!$D$57,INDIRECT(\"a\" & (VLOOKUP(Switch!$D$57,$F$2:$G$44,2,FALSE)+ROW()-2)),\"\")","v":{"$error":"#N/A"}},{"$f":"IF(INDIRECT(\"c\" & (VLOOKUP(Switch!$D$58,$F$2:$G$44,2,FALSE)+ROW()-2))=Switch!$D$58,INDIRECT(\"a\" & (VLOOKUP(Switch!$D$58,$F$2:$G$44,2,FALSE)+ROW()-2)),\"\")","v":{"$error":"#N/A"}},{"$f":"IF(INDIRECT(\"c\" & (VLOOKUP(Switch!$D$59,$F$2:$G$44,2,FALSE)+ROW()-2))=Switch!$D$59,INDIRECT(\"a\" & (VLOOKUP(Switch!$D$59,$F$2:$G$44,2,FALSE)+ROW()-2)),\"\")","v":{"$error":"#N/A"}},{"$f":"IF(INDIRECT(\"c\" & (VLOOKUP(Switch!$D$60,$F$2:$G$44,2,FALSE)+ROW()-2))=Switch!$D$60,INDIRECT(\"a\" & (VLOOKUP(Switch!$D$60,$F$2:$G$44,2,FALSE)+ROW()-2)),\"\")","v":{"$error":"#N/A"}},{"$f":"IF(INDIRECT(\"c\" & (VLOOKUP(Switch!$D$61,$F$2:$G$44,2,FALSE)+ROW()-2))=Switch!$D$61,INDIRECT(\"a\" & (VLOOKUP(Switch!$D$61,$F$2:$G$44,2,FALSE)+ROW()-2)),\"\")","v":{"$error":"#N/A"}},{"$f":"IF(INDIRECT(\"c\" & (VLOOKUP(Switch!$D$62,$F$2:$G$44,2,FALSE)+ROW()-2))=Switch!$D$62,INDIRECT(\"a\" & (VLOOKUP(Switch!$D$62,$F$2:$G$44,2,FALSE)+ROW()-2)),\"\")","v":{"$error":"#N/A"}},{"$f":"IF(INDIRECT(\"c\" & (VLOOKUP(Switch!$D$63,$F$2:$G$44,2,FALSE)+ROW()-2))=Switch!$D$63,INDIRECT(\"a\" & (VLOOKUP(Switch!$D$63,$F$2:$G$44,2,FALSE)+ROW()-2)),\"\")","v":{"$error":"#N/A"}},{"$f":"IF(INDIRECT(\"c\" & (VLOOKUP(Switch!$D$64,$F$2:$G$44,2,FALSE)+ROW()-2))=Switch!$D$64,INDIRECT(\"a\" & (VLOOKUP(Switch!$D$64,$F$2:$G$44,2,FALSE)+ROW()-2)),\"\")","v":{"$error":"#N/A"}},{"$f":"IF(INDIRECT(\"c\" & (VLOOKUP(Switch!$D$65,$F$2:$G$44,2,FALSE)+ROW()-2))=Switch!$D$65,INDIRECT(\"a\" & (VLOOKUP(Switch!$D$65,$F$2:$G$44,2,FALSE)+ROW()-2)),\"\")","v":{"$error":"#N/A"}},{"$f":"IF(INDIRECT(\"c\" & (VLOOKUP(Switch!$D$66,$F$2:$G$44,2,FALSE)+ROW()-2))=Switch!$D$66,INDIRECT(\"a\" & (VLOOKUP(Switch!$D$66,$F$2:$G$44,2,FALSE)+ROW()-2)),\"\")","v":{"$error":"#N/A"}}]
["Old Mutual Global FTSE RAFI All World Index Feeder Fund A","OMGRF","Old Mutual Unit Trust Managers Limited",{"$f":"ROW()","v":414},null,null,{"$f":"VLOOKUP(F414,$C$2:$D$637,2,FALSE)","v":{"$error":"#N/A"}},{"$f":"IF(INDIRECT(\"c\" & (VLOOKUP(Switch!$D$26,$F$2:$G$44,2,FALSE)+ROW()-2))=Switch!$D$26,INDIRECT(\"a\" & (VLOOKUP(Switch!$D$26,$F$2:$G$44,2,FALSE)+ROW()-2)),\"\")","v":{"$error":"#N/A"}},{"$f":"IF(INDIRECT(\"c\" & (VLOOKUP(Switch!$D$27,$F$2:$G$44,2,FALSE)+ROW()-2))=Switch!$D$27,INDIRECT(\"a\" & (VLOOKUP(Switch!$D$27,$F$2:$G$44,2,FALSE)+ROW()-2)),\"\")","v":{"$error":"#N/A"}},{"$f":"IF(INDIRECT(\"c\" & (VLOOKUP(Switch!$D$28,$F$2:$G$44,2,FALSE)+ROW()-2))=Switch!$D$28,INDIRECT(\"a\" & (VLOOKUP(Switch!$D$28,$F$2:$G$44,2,FALSE)+ROW()-2)),\"\")","v":{"$error":"#N/A"}},{"$f":"IF(INDIRECT(\"c\" & (VLOOKUP(Switch!$D$29,$F$2:$G$44,2,FALSE)+ROW()-2))=Switch!$D$29,INDIRECT(\"a\" & (VLOOKUP(Switch!$D$29,$F$2:$G$44,2,FALSE)+ROW()-2)),\"\")","v":{"$error":"#N/A"}},{"$f":"IF(INDIRECT(\"c\" & (VLOOKUP(Switch!$D$30,$F$2:$G$44,2,FALSE)+ROW()-2))=Switch!$D$30,INDIRECT(\"a\" & (VLOOKUP(Switch!$D$30,$F$2:$G$44,2,FALSE)+ROW()-2)),\"\")","v":{"$error":"#N/A"}},{"$f":"IF(INDIRECT(\"c\" & (VLOOKUP(Switch!$D$31,$F$2:$G$44,2,FALSE)+ROW()-2))=Switch!$D$31,INDIRECT(\"a\" & (VLOOKUP(Switch!$D$31,$F$2:$G$44,2,FALSE)+ROW()-2)),\"\")","v":{"$error":"#N/A"}},{"$f":"IF(INDIRECT(\"c\" & (VLOOKUP(Switch!$D$32,$F$2:$G$44,2,FALSE)+ROW()-2))=Switch!$D$32,INDIRECT(\"a\" & (VLOOKUP(Switch!$D$32,$F$2:$G$44,2,FALSE)+ROW()-2)),\"\")","v":{"$error":"#N/A"}},{"$f":"IF(INDIRECT(\"c\" & (VLOOKUP(Switch!$D$33,$F$2:$G$44,2,FALSE)+ROW()-2))=Switch!$D$33,INDIRECT(\"a\" & (VLOOKUP(Switch!$D$33,$F$2:$G$44,2,FALSE)+ROW()-2)),\"\")","v":{"$error":"#N/A"}},{"$f":"IF(INDIRECT(\"c\" & (VLOOKUP(Switch!$D$34,$F$2:$G$44,2,FALSE)+ROW()-2))=Switch!$D$34,INDIRECT(\"a\" & (VLOOKUP(Switch!$D$34,$F$2:$G$44,2,FALSE)+ROW()-2)),\"\")","v":{"$error":"#N/A"}},{"$f":"IF(INDIRECT(\"c\" & (VLOOKUP(Switch!$D$35,$F$2:$G$44,2,FALSE)+ROW()-2))=Switch!$D$35,INDIRECT(\"a\" & (VLOOKUP(Switch!$D$35,$F$2:$G$44,2,FALSE)+ROW()-2)),\"\")","v":{"$error":"#N/A"}},{"$f":"IF(INDIRECT(\"c\" & (VLOOKUP(Switch!$D$36,$F$2:$G$44,2,FALSE)+ROW()-2))=Switch!$D$36,INDIRECT(\"a\" & (VLOOKUP(Switch!$D$36,$F$2:$G$44,2,FALSE)+ROW()-2)),\"\")","v":{"$error":"#N/A"}},{"$f":"IF(INDIRECT(\"c\" & (VLOOKUP(Switch!$D$37,$F$2:$G$44,2,FALSE)+ROW()-2))=Switch!$D$37,INDIRECT(\"a\" & (VLOOKUP(Switch!$D$37,$F$2:$G$44,2,FALSE)+ROW()-2)),\"\")","v":{"$error":"#N/A"}},{"$f":"IF(INDIRECT(\"c\" & (VLOOKUP(Switch!$D$38,$F$2:$G$44,2,FALSE)+ROW()-2))=Switch!$D$38,INDIRECT(\"a\" & (VLOOKUP(Switch!$D$38,$F$2:$G$44,2,FALSE)+ROW()-2)),\"\")","v":{"$error":"#N/A"}},{"$f":"IF(INDIRECT(\"c\" & (VLOOKUP(Switch!$D$39,$F$2:$G$44,2,FALSE)+ROW()-2))=Switch!$D$39,INDIRECT(\"a\" & (VLOOKUP(Switch!$D$39,$F$2:$G$44,2,FALSE)+ROW()-2)),\"\")","v":{"$error":"#N/A"}},{"$f":"IF(INDIRECT(\"c\" & (VLOOKUP(Switch!$D$40,$F$2:$G$44,2,FALSE)+ROW()-2))=Switch!$D$40,INDIRECT(\"a\" & (VLOOKUP(Switch!$D$40,$F$2:$G$44,2,FALSE)+ROW()-2)),\"\")","v":{"$error":"#N/A"}},{"$f":"IF(INDIRECT(\"c\" & (VLOOKUP(Switch!$D$52,$F$2:$G$44,2,FALSE)+ROW()-2))=Switch!$D$52,INDIRECT(\"a\" & (VLOOKUP(Switch!$D$52,$F$2:$G$44,2,FALSE)+ROW()-2)),\"\")","v":{"$error":"#N/A"}},{"$f":"IF(INDIRECT(\"c\" & (VLOOKUP(Switch!$D$53,$F$2:$G$44,2,FALSE)+ROW()-2))=Switch!$D$53,INDIRECT(\"a\" & (VLOOKUP(Switch!$D$53,$F$2:$G$44,2,FALSE)+ROW()-2)),\"\")","v":{"$error":"#N/A"}},{"$f":"IF(INDIRECT(\"c\" & (VLOOKUP(Switch!$D$54,$F$2:$G$44,2,FALSE)+ROW()-2))=Switch!$D$54,INDIRECT(\"a\" & (VLOOKUP(Switch!$D$54,$F$2:$G$44,2,FALSE)+ROW()-2)),\"\")","v":{"$error":"#N/A"}},{"$f":"IF(INDIRECT(\"c\" & (VLOOKUP(Switch!$D$55,$F$2:$G$44,2,FALSE)+ROW()-2))=Switch!$D$55,INDIRECT(\"a\" & (VLOOKUP(Switch!$D$55,$F$2:$G$44,2,FALSE)+ROW()-2)),\"\")","v":{"$error":"#N/A"}},{"$f":"IF(INDIRECT(\"c\" & (VLOOKUP(Switch!$D$56,$F$2:$G$44,2,FALSE)+ROW()-2))=Switch!$D$56,INDIRECT(\"a\" & (VLOOKUP(Switch!$D$56,$F$2:$G$44,2,FALSE)+ROW()-2)),\"\")","v":{"$error":"#N/A"}},{"$f":"IF(INDIRECT(\"c\" & (VLOOKUP(Switch!$D$57,$F$2:$G$44,2,FALSE)+ROW()-2))=Switch!$D$57,INDIRECT(\"a\" & (VLOOKUP(Switch!$D$57,$F$2:$G$44,2,FALSE)+ROW()-2)),\"\")","v":{"$error":"#N/A"}},{"$f":"IF(INDIRECT(\"c\" & (VLOOKUP(Switch!$D$58,$F$2:$G$44,2,FALSE)+ROW()-2))=Switch!$D$58,INDIRECT(\"a\" & (VLOOKUP(Switch!$D$58,$F$2:$G$44,2,FALSE)+ROW()-2)),\"\")","v":{"$error":"#N/A"}},{"$f":"IF(INDIRECT(\"c\" & (VLOOKUP(Switch!$D$59,$F$2:$G$44,2,FALSE)+ROW()-2))=Switch!$D$59,INDIRECT(\"a\" & (VLOOKUP(Switch!$D$59,$F$2:$G$44,2,FALSE)+ROW()-2)),\"\")","v":{"$error":"#N/A"}},{"$f":"IF(INDIRECT(\"c\" & (VLOOKUP(Switch!$D$60,$F$2:$G$44,2,FALSE)+ROW()-2))=Switch!$D$60,INDIRECT(\"a\" & (VLOOKUP(Switch!$D$60,$F$2:$G$44,2,FALSE)+ROW()-2)),\"\")","v":{"$error":"#N/A"}},{"$f":"IF(INDIRECT(\"c\" & (VLOOKUP(Switch!$D$61,$F$2:$G$44,2,FALSE)+ROW()-2))=Switch!$D$61,INDIRECT(\"a\" & (VLOOKUP(Switch!$D$61,$F$2:$G$44,2,FALSE)+ROW()-2)),\"\")","v":{"$error":"#N/A"}},{"$f":"IF(INDIRECT(\"c\" & (VLOOKUP(Switch!$D$62,$F$2:$G$44,2,FALSE)+ROW()-2))=Switch!$D$62,INDIRECT(\"a\" & (VLOOKUP(Switch!$D$62,$F$2:$G$44,2,FALSE)+ROW()-2)),\"\")","v":{"$error":"#N/A"}},{"$f":"IF(INDIRECT(\"c\" & (VLOOKUP(Switch!$D$63,$F$2:$G$44,2,FALSE)+ROW()-2))=Switch!$D$63,INDIRECT(\"a\" & (VLOOKUP(Switch!$D$63,$F$2:$G$44,2,FALSE)+ROW()-2)),\"\")","v":{"$error":"#N/A"}},{"$f":"IF(INDIRECT(\"c\" & (VLOOKUP(Switch!$D$64,$F$2:$G$44,2,FALSE)+ROW()-2))=Switch!$D$64,INDIRECT(\"a\" & (VLOOKUP(Switch!$D$64,$F$2:$G$44,2,FALSE)+ROW()-2)),\"\")","v":{"$error":"#N/A"}},{"$f":"IF(INDIRECT(\"c\" & (VLOOKUP(Switch!$D$65,$F$2:$G$44,2,FALSE)+ROW()-2))=Switch!$D$65,INDIRECT(\"a\" & (VLOOKUP(Switch!$D$65,$F$2:$G$44,2,FALSE)+ROW()-2)),\"\")","v":{"$error":"#N/A"}},{"$f":"IF(INDIRECT(\"c\" & (VLOOKUP(Switch!$D$66,$F$2:$G$44,2,FALSE)+ROW()-2))=Switch!$D$66,INDIRECT(\"a\" & (VLOOKUP(Switch!$D$66,$F$2:$G$44,2,FALSE)+ROW()-2)),\"\")","v":{"$error":"#N/A"}}]
["Old Mutual Gold Fund Class A","GFB1C","Old Mutual Unit Trust Managers Limited",{"$f":"ROW()","v":415},null,null,{"$f":"VLOOKUP(F415,$C$2:$D$637,2,FALSE)","v":{"$error":"#N/A"}},{"$f":"IF(INDIRECT(\"c\" & (VLOOKUP(Switch!$D$26,$F$2:$G$44,2,FALSE)+ROW()-2))=Switch!$D$26,INDIRECT(\"a\" & (VLOOKUP(Switch!$D$26,$F$2:$G$44,2,FALSE)+ROW()-2)),\"\")","v":{"$error":"#N/A"}},{"$f":"IF(INDIRECT(\"c\" & (VLOOKUP(Switch!$D$27,$F$2:$G$44,2,FALSE)+ROW()-2))=Switch!$D$27,INDIRECT(\"a\" & (VLOOKUP(Switch!$D$27,$F$2:$G$44,2,FALSE)+ROW()-2)),\"\")","v":{"$error":"#N/A"}},{"$f":"IF(INDIRECT(\"c\" & (VLOOKUP(Switch!$D$28,$F$2:$G$44,2,FALSE)+ROW()-2))=Switch!$D$28,INDIRECT(\"a\" & (VLOOKUP(Switch!$D$28,$F$2:$G$44,2,FALSE)+ROW()-2)),\"\")","v":{"$error":"#N/A"}},{"$f":"IF(INDIRECT(\"c\" & (VLOOKUP(Switch!$D$29,$F$2:$G$44,2,FALSE)+ROW()-2))=Switch!$D$29,INDIRECT(\"a\" & (VLOOKUP(Switch!$D$29,$F$2:$G$44,2,FALSE)+ROW()-2)),\"\")","v":{"$error":"#N/A"}},{"$f":"IF(INDIRECT(\"c\" & (VLOOKUP(Switch!$D$30,$F$2:$G$44,2,FALSE)+ROW()-2))=Switch!$D$30,INDIRECT(\"a\" & (VLOOKUP(Switch!$D$30,$F$2:$G$44,2,FALSE)+ROW()-2)),\"\")","v":{"$error":"#N/A"}},{"$f":"IF(INDIRECT(\"c\" & (VLOOKUP(Switch!$D$31,$F$2:$G$44,2,FALSE)+ROW()-2))=Switch!$D$31,INDIRECT(\"a\" & (VLOOKUP(Switch!$D$31,$F$2:$G$44,2,FALSE)+ROW()-2)),\"\")","v":{"$error":"#N/A"}},{"$f":"IF(INDIRECT(\"c\" & (VLOOKUP(Switch!$D$32,$F$2:$G$44,2,FALSE)+ROW()-2))=Switch!$D$32,INDIRECT(\"a\" & (VLOOKUP(Switch!$D$32,$F$2:$G$44,2,FALSE)+ROW()-2)),\"\")","v":{"$error":"#N/A"}},{"$f":"IF(INDIRECT(\"c\" & (VLOOKUP(Switch!$D$33,$F$2:$G$44,2,FALSE)+ROW()-2))=Switch!$D$33,INDIRECT(\"a\" & (VLOOKUP(Switch!$D$33,$F$2:$G$44,2,FALSE)+ROW()-2)),\"\")","v":{"$error":"#N/A"}},{"$f":"IF(INDIRECT(\"c\" & (VLOOKUP(Switch!$D$34,$F$2:$G$44,2,FALSE)+ROW()-2))=Switch!$D$34,INDIRECT(\"a\" & (VLOOKUP(Switch!$D$34,$F$2:$G$44,2,FALSE)+ROW()-2)),\"\")","v":{"$error":"#N/A"}},{"$f":"IF(INDIRECT(\"c\" & (VLOOKUP(Switch!$D$35,$F$2:$G$44,2,FALSE)+ROW()-2))=Switch!$D$35,INDIRECT(\"a\" & (VLOOKUP(Switch!$D$35,$F$2:$G$44,2,FALSE)+ROW()-2)),\"\")","v":{"$error":"#N/A"}},{"$f":"IF(INDIRECT(\"c\" & (VLOOKUP(Switch!$D$36,$F$2:$G$44,2,FALSE)+ROW()-2))=Switch!$D$36,INDIRECT(\"a\" & (VLOOKUP(Switch!$D$36,$F$2:$G$44,2,FALSE)+ROW()-2)),\"\")","v":{"$error":"#N/A"}},{"$f":"IF(INDIRECT(\"c\" & (VLOOKUP(Switch!$D$37,$F$2:$G$44,2,FALSE)+ROW()-2))=Switch!$D$37,INDIRECT(\"a\" & (VLOOKUP(Switch!$D$37,$F$2:$G$44,2,FALSE)+ROW()-2)),\"\")","v":{"$error":"#N/A"}},{"$f":"IF(INDIRECT(\"c\" & (VLOOKUP(Switch!$D$38,$F$2:$G$44,2,FALSE)+ROW()-2))=Switch!$D$38,INDIRECT(\"a\" & (VLOOKUP(Switch!$D$38,$F$2:$G$44,2,FALSE)+ROW()-2)),\"\")","v":{"$error":"#N/A"}},{"$f":"IF(INDIRECT(\"c\" & (VLOOKUP(Switch!$D$39,$F$2:$G$44,2,FALSE)+ROW()-2))=Switch!$D$39,INDIRECT(\"a\" & (VLOOKUP(Switch!$D$39,$F$2:$G$44,2,FALSE)+ROW()-2)),\"\")","v":{"$error":"#N/A"}},{"$f":"IF(INDIRECT(\"c\" & (VLOOKUP(Switch!$D$40,$F$2:$G$44,2,FALSE)+ROW()-2))=Switch!$D$40,INDIRECT(\"a\" & (VLOOKUP(Switch!$D$40,$F$2:$G$44,2,FALSE)+ROW()-2)),\"\")","v":{"$error":"#N/A"}},{"$f":"IF(INDIRECT(\"c\" & (VLOOKUP(Switch!$D$52,$F$2:$G$44,2,FALSE)+ROW()-2))=Switch!$D$52,INDIRECT(\"a\" & (VLOOKUP(Switch!$D$52,$F$2:$G$44,2,FALSE)+ROW()-2)),\"\")","v":{"$error":"#N/A"}},{"$f":"IF(INDIRECT(\"c\" & (VLOOKUP(Switch!$D$53,$F$2:$G$44,2,FALSE)+ROW()-2))=Switch!$D$53,INDIRECT(\"a\" & (VLOOKUP(Switch!$D$53,$F$2:$G$44,2,FALSE)+ROW()-2)),\"\")","v":{"$error":"#N/A"}},{"$f":"IF(INDIRECT(\"c\" & (VLOOKUP(Switch!$D$54,$F$2:$G$44,2,FALSE)+ROW()-2))=Switch!$D$54,INDIRECT(\"a\" & (VLOOKUP(Switch!$D$54,$F$2:$G$44,2,FALSE)+ROW()-2)),\"\")","v":{"$error":"#N/A"}},{"$f":"IF(INDIRECT(\"c\" & (VLOOKUP(Switch!$D$55,$F$2:$G$44,2,FALSE)+ROW()-2))=Switch!$D$55,INDIRECT(\"a\" & (VLOOKUP(Switch!$D$55,$F$2:$G$44,2,FALSE)+ROW()-2)),\"\")","v":{"$error":"#N/A"}},{"$f":"IF(INDIRECT(\"c\" & (VLOOKUP(Switch!$D$56,$F$2:$G$44,2,FALSE)+ROW()-2))=Switch!$D$56,INDIRECT(\"a\" & (VLOOKUP(Switch!$D$56,$F$2:$G$44,2,FALSE)+ROW()-2)),\"\")","v":{"$error":"#N/A"}},{"$f":"IF(INDIRECT(\"c\" & (VLOOKUP(Switch!$D$57,$F$2:$G$44,2,FALSE)+ROW()-2))=Switch!$D$57,INDIRECT(\"a\" & (VLOOKUP(Switch!$D$57,$F$2:$G$44,2,FALSE)+ROW()-2)),\"\")","v":{"$error":"#N/A"}},{"$f":"IF(INDIRECT(\"c\" & (VLOOKUP(Switch!$D$58,$F$2:$G$44,2,FALSE)+ROW()-2))=Switch!$D$58,INDIRECT(\"a\" & (VLOOKUP(Switch!$D$58,$F$2:$G$44,2,FALSE)+ROW()-2)),\"\")","v":{"$error":"#N/A"}},{"$f":"IF(INDIRECT(\"c\" & (VLOOKUP(Switch!$D$59,$F$2:$G$44,2,FALSE)+ROW()-2))=Switch!$D$59,INDIRECT(\"a\" & (VLOOKUP(Switch!$D$59,$F$2:$G$44,2,FALSE)+ROW()-2)),\"\")","v":{"$error":"#N/A"}},{"$f":"IF(INDIRECT(\"c\" & (VLOOKUP(Switch!$D$60,$F$2:$G$44,2,FALSE)+ROW()-2))=Switch!$D$60,INDIRECT(\"a\" & (VLOOKUP(Switch!$D$60,$F$2:$G$44,2,FALSE)+ROW()-2)),\"\")","v":{"$error":"#N/A"}},{"$f":"IF(INDIRECT(\"c\" & (VLOOKUP(Switch!$D$61,$F$2:$G$44,2,FALSE)+ROW()-2))=Switch!$D$61,INDIRECT(\"a\" & (VLOOKUP(Switch!$D$61,$F$2:$G$44,2,FALSE)+ROW()-2)),\"\")","v":{"$error":"#N/A"}},{"$f":"IF(INDIRECT(\"c\" & (VLOOKUP(Switch!$D$62,$F$2:$G$44,2,FALSE)+ROW()-2))=Switch!$D$62,INDIRECT(\"a\" & (VLOOKUP(Switch!$D$62,$F$2:$G$44,2,FALSE)+ROW()-2)),\"\")","v":{"$error":"#N/A"}},{"$f":"IF(INDIRECT(\"c\" & (VLOOKUP(Switch!$D$63,$F$2:$G$44,2,FALSE)+ROW()-2))=Switch!$D$63,INDIRECT(\"a\" & (VLOOKUP(Switch!$D$63,$F$2:$G$44,2,FALSE)+ROW()-2)),\"\")","v":{"$error":"#N/A"}},{"$f":"IF(INDIRECT(\"c\" & (VLOOKUP(Switch!$D$64,$F$2:$G$44,2,FALSE)+ROW()-2))=Switch!$D$64,INDIRECT(\"a\" & (VLOOKUP(Switch!$D$64,$F$2:$G$44,2,FALSE)+ROW()-2)),\"\")","v":{"$error":"#N/A"}},{"$f":"IF(INDIRECT(\"c\" & (VLOOKUP(Switch!$D$65,$F$2:$G$44,2,FALSE)+ROW()-2))=Switch!$D$65,INDIRECT(\"a\" & (VLOOKUP(Switch!$D$65,$F$2:$G$44,2,FALSE)+ROW()-2)),\"\")","v":{"$error":"#N/A"}},{"$f":"IF(INDIRECT(\"c\" & (VLOOKUP(Switch!$D$66,$F$2:$G$44,2,FALSE)+ROW()-2))=Switch!$D$66,INDIRECT(\"a\" & (VLOOKUP(Switch!$D$66,$F$2:$G$44,2,FALSE)+ROW()-2)),\"\")","v":{"$error":"#N/A"}}]
["Old Mutual Growth Fund Class A","OMGRA","Old Mutual Unit Trust Managers Limited",{"$f":"ROW()","v":416},null,null,{"$f":"VLOOKUP(F416,$C$2:$D$637,2,FALSE)","v":{"$error":"#N/A"}},{"$f":"IF(INDIRECT(\"c\" & (VLOOKUP(Switch!$D$26,$F$2:$G$44,2,FALSE)+ROW()-2))=Switch!$D$26,INDIRECT(\"a\" & (VLOOKUP(Switch!$D$26,$F$2:$G$44,2,FALSE)+ROW()-2)),\"\")","v":{"$error":"#N/A"}},{"$f":"IF(INDIRECT(\"c\" & (VLOOKUP(Switch!$D$27,$F$2:$G$44,2,FALSE)+ROW()-2))=Switch!$D$27,INDIRECT(\"a\" & (VLOOKUP(Switch!$D$27,$F$2:$G$44,2,FALSE)+ROW()-2)),\"\")","v":{"$error":"#N/A"}},{"$f":"IF(INDIRECT(\"c\" & (VLOOKUP(Switch!$D$28,$F$2:$G$44,2,FALSE)+ROW()-2))=Switch!$D$28,INDIRECT(\"a\" & (VLOOKUP(Switch!$D$28,$F$2:$G$44,2,FALSE)+ROW()-2)),\"\")","v":{"$error":"#N/A"}},{"$f":"IF(INDIRECT(\"c\" & (VLOOKUP(Switch!$D$29,$F$2:$G$44,2,FALSE)+ROW()-2))=Switch!$D$29,INDIRECT(\"a\" & (VLOOKUP(Switch!$D$29,$F$2:$G$44,2,FALSE)+ROW()-2)),\"\")","v":{"$error":"#N/A"}},{"$f":"IF(INDIRECT(\"c\" & (VLOOKUP(Switch!$D$30,$F$2:$G$44,2,FALSE)+ROW()-2))=Switch!$D$30,INDIRECT(\"a\" & (VLOOKUP(Switch!$D$30,$F$2:$G$44,2,FALSE)+ROW()-2)),\"\")","v":{"$error":"#N/A"}},{"$f":"IF(INDIRECT(\"c\" & (VLOOKUP(Switch!$D$31,$F$2:$G$44,2,FALSE)+ROW()-2))=Switch!$D$31,INDIRECT(\"a\" & (VLOOKUP(Switch!$D$31,$F$2:$G$44,2,FALSE)+ROW()-2)),\"\")","v":{"$error":"#N/A"}},{"$f":"IF(INDIRECT(\"c\" & (VLOOKUP(Switch!$D$32,$F$2:$G$44,2,FALSE)+ROW()-2))=Switch!$D$32,INDIRECT(\"a\" & (VLOOKUP(Switch!$D$32,$F$2:$G$44,2,FALSE)+ROW()-2)),\"\")","v":{"$error":"#N/A"}},{"$f":"IF(INDIRECT(\"c\" & (VLOOKUP(Switch!$D$33,$F$2:$G$44,2,FALSE)+ROW()-2))=Switch!$D$33,INDIRECT(\"a\" & (VLOOKUP(Switch!$D$33,$F$2:$G$44,2,FALSE)+ROW()-2)),\"\")","v":{"$error":"#N/A"}},{"$f":"IF(INDIRECT(\"c\" & (VLOOKUP(Switch!$D$34,$F$2:$G$44,2,FALSE)+ROW()-2))=Switch!$D$34,INDIRECT(\"a\" & (VLOOKUP(Switch!$D$34,$F$2:$G$44,2,FALSE)+ROW()-2)),\"\")","v":{"$error":"#N/A"}},{"$f":"IF(INDIRECT(\"c\" & (VLOOKUP(Switch!$D$35,$F$2:$G$44,2,FALSE)+ROW()-2))=Switch!$D$35,INDIRECT(\"a\" & (VLOOKUP(Switch!$D$35,$F$2:$G$44,2,FALSE)+ROW()-2)),\"\")","v":{"$error":"#N/A"}},{"$f":"IF(INDIRECT(\"c\" & (VLOOKUP(Switch!$D$36,$F$2:$G$44,2,FALSE)+ROW()-2))=Switch!$D$36,INDIRECT(\"a\" & (VLOOKUP(Switch!$D$36,$F$2:$G$44,2,FALSE)+ROW()-2)),\"\")","v":{"$error":"#N/A"}},{"$f":"IF(INDIRECT(\"c\" & (VLOOKUP(Switch!$D$37,$F$2:$G$44,2,FALSE)+ROW()-2))=Switch!$D$37,INDIRECT(\"a\" & (VLOOKUP(Switch!$D$37,$F$2:$G$44,2,FALSE)+ROW()-2)),\"\")","v":{"$error":"#N/A"}},{"$f":"IF(INDIRECT(\"c\" & (VLOOKUP(Switch!$D$38,$F$2:$G$44,2,FALSE)+ROW()-2))=Switch!$D$38,INDIRECT(\"a\" & (VLOOKUP(Switch!$D$38,$F$2:$G$44,2,FALSE)+ROW()-2)),\"\")","v":{"$error":"#N/A"}},{"$f":"IF(INDIRECT(\"c\" & (VLOOKUP(Switch!$D$39,$F$2:$G$44,2,FALSE)+ROW()-2))=Switch!$D$39,INDIRECT(\"a\" & (VLOOKUP(Switch!$D$39,$F$2:$G$44,2,FALSE)+ROW()-2)),\"\")","v":{"$error":"#N/A"}},{"$f":"IF(INDIRECT(\"c\" & (VLOOKUP(Switch!$D$40,$F$2:$G$44,2,FALSE)+ROW()-2))=Switch!$D$40,INDIRECT(\"a\" & (VLOOKUP(Switch!$D$40,$F$2:$G$44,2,FALSE)+ROW()-2)),\"\")","v":{"$error":"#N/A"}},{"$f":"IF(INDIRECT(\"c\" & (VLOOKUP(Switch!$D$52,$F$2:$G$44,2,FALSE)+ROW()-2))=Switch!$D$52,INDIRECT(\"a\" & (VLOOKUP(Switch!$D$52,$F$2:$G$44,2,FALSE)+ROW()-2)),\"\")","v":{"$error":"#N/A"}},{"$f":"IF(INDIRECT(\"c\" & (VLOOKUP(Switch!$D$53,$F$2:$G$44,2,FALSE)+ROW()-2))=Switch!$D$53,INDIRECT(\"a\" & (VLOOKUP(Switch!$D$53,$F$2:$G$44,2,FALSE)+ROW()-2)),\"\")","v":{"$error":"#N/A"}},{"$f":"IF(INDIRECT(\"c\" & (VLOOKUP(Switch!$D$54,$F$2:$G$44,2,FALSE)+ROW()-2))=Switch!$D$54,INDIRECT(\"a\" & (VLOOKUP(Switch!$D$54,$F$2:$G$44,2,FALSE)+ROW()-2)),\"\")","v":{"$error":"#N/A"}},{"$f":"IF(INDIRECT(\"c\" & (VLOOKUP(Switch!$D$55,$F$2:$G$44,2,FALSE)+ROW()-2))=Switch!$D$55,INDIRECT(\"a\" & (VLOOKUP(Switch!$D$55,$F$2:$G$44,2,FALSE)+ROW()-2)),\"\")","v":{"$error":"#N/A"}},{"$f":"IF(INDIRECT(\"c\" & (VLOOKUP(Switch!$D$56,$F$2:$G$44,2,FALSE)+ROW()-2))=Switch!$D$56,INDIRECT(\"a\" & (VLOOKUP(Switch!$D$56,$F$2:$G$44,2,FALSE)+ROW()-2)),\"\")","v":{"$error":"#N/A"}},{"$f":"IF(INDIRECT(\"c\" & (VLOOKUP(Switch!$D$57,$F$2:$G$44,2,FALSE)+ROW()-2))=Switch!$D$57,INDIRECT(\"a\" & (VLOOKUP(Switch!$D$57,$F$2:$G$44,2,FALSE)+ROW()-2)),\"\")","v":{"$error":"#N/A"}},{"$f":"IF(INDIRECT(\"c\" & (VLOOKUP(Switch!$D$58,$F$2:$G$44,2,FALSE)+ROW()-2))=Switch!$D$58,INDIRECT(\"a\" & (VLOOKUP(Switch!$D$58,$F$2:$G$44,2,FALSE)+ROW()-2)),\"\")","v":{"$error":"#N/A"}},{"$f":"IF(INDIRECT(\"c\" & (VLOOKUP(Switch!$D$59,$F$2:$G$44,2,FALSE)+ROW()-2))=Switch!$D$59,INDIRECT(\"a\" & (VLOOKUP(Switch!$D$59,$F$2:$G$44,2,FALSE)+ROW()-2)),\"\")","v":{"$error":"#N/A"}},{"$f":"IF(INDIRECT(\"c\" & (VLOOKUP(Switch!$D$60,$F$2:$G$44,2,FALSE)+ROW()-2))=Switch!$D$60,INDIRECT(\"a\" & (VLOOKUP(Switch!$D$60,$F$2:$G$44,2,FALSE)+ROW()-2)),\"\")","v":{"$error":"#N/A"}},{"$f":"IF(INDIRECT(\"c\" & (VLOOKUP(Switch!$D$61,$F$2:$G$44,2,FALSE)+ROW()-2))=Switch!$D$61,INDIRECT(\"a\" & (VLOOKUP(Switch!$D$61,$F$2:$G$44,2,FALSE)+ROW()-2)),\"\")","v":{"$error":"#N/A"}},{"$f":"IF(INDIRECT(\"c\" & (VLOOKUP(Switch!$D$62,$F$2:$G$44,2,FALSE)+ROW()-2))=Switch!$D$62,INDIRECT(\"a\" & (VLOOKUP(Switch!$D$62,$F$2:$G$44,2,FALSE)+ROW()-2)),\"\")","v":{"$error":"#N/A"}},{"$f":"IF(INDIRECT(\"c\" & (VLOOKUP(Switch!$D$63,$F$2:$G$44,2,FALSE)+ROW()-2))=Switch!$D$63,INDIRECT(\"a\" & (VLOOKUP(Switch!$D$63,$F$2:$G$44,2,FALSE)+ROW()-2)),\"\")","v":{"$error":"#N/A"}},{"$f":"IF(INDIRECT(\"c\" & (VLOOKUP(Switch!$D$64,$F$2:$G$44,2,FALSE)+ROW()-2))=Switch!$D$64,INDIRECT(\"a\" & (VLOOKUP(Switch!$D$64,$F$2:$G$44,2,FALSE)+ROW()-2)),\"\")","v":{"$error":"#N/A"}},{"$f":"IF(INDIRECT(\"c\" & (VLOOKUP(Switch!$D$65,$F$2:$G$44,2,FALSE)+ROW()-2))=Switch!$D$65,INDIRECT(\"a\" & (VLOOKUP(Switch!$D$65,$F$2:$G$44,2,FALSE)+ROW()-2)),\"\")","v":{"$error":"#N/A"}},{"$f":"IF(INDIRECT(\"c\" & (VLOOKUP(Switch!$D$66,$F$2:$G$44,2,FALSE)+ROW()-2))=Switch!$D$66,INDIRECT(\"a\" & (VLOOKUP(Switch!$D$66,$F$2:$G$44,2,FALSE)+ROW()-2)),\"\")","v":{"$error":"#N/A"}}]
["Old Mutual High Yield Opportunity Fund A","OMHY","Old Mutual Unit Trust Managers Limited",{"$f":"ROW()","v":417},null,null,{"$f":"VLOOKUP(F417,$C$2:$D$637,2,FALSE)","v":{"$error":"#N/A"}},{"$f":"IF(INDIRECT(\"c\" & (VLOOKUP(Switch!$D$26,$F$2:$G$44,2,FALSE)+ROW()-2))=Switch!$D$26,INDIRECT(\"a\" & (VLOOKUP(Switch!$D$26,$F$2:$G$44,2,FALSE)+ROW()-2)),\"\")","v":{"$error":"#N/A"}},{"$f":"IF(INDIRECT(\"c\" & (VLOOKUP(Switch!$D$27,$F$2:$G$44,2,FALSE)+ROW()-2))=Switch!$D$27,INDIRECT(\"a\" & (VLOOKUP(Switch!$D$27,$F$2:$G$44,2,FALSE)+ROW()-2)),\"\")","v":{"$error":"#N/A"}},{"$f":"IF(INDIRECT(\"c\" & (VLOOKUP(Switch!$D$28,$F$2:$G$44,2,FALSE)+ROW()-2))=Switch!$D$28,INDIRECT(\"a\" & (VLOOKUP(Switch!$D$28,$F$2:$G$44,2,FALSE)+ROW()-2)),\"\")","v":{"$error":"#N/A"}},{"$f":"IF(INDIRECT(\"c\" & (VLOOKUP(Switch!$D$29,$F$2:$G$44,2,FALSE)+ROW()-2))=Switch!$D$29,INDIRECT(\"a\" & (VLOOKUP(Switch!$D$29,$F$2:$G$44,2,FALSE)+ROW()-2)),\"\")","v":{"$error":"#N/A"}},{"$f":"IF(INDIRECT(\"c\" & (VLOOKUP(Switch!$D$30,$F$2:$G$44,2,FALSE)+ROW()-2))=Switch!$D$30,INDIRECT(\"a\" & (VLOOKUP(Switch!$D$30,$F$2:$G$44,2,FALSE)+ROW()-2)),\"\")","v":{"$error":"#N/A"}},{"$f":"IF(INDIRECT(\"c\" & (VLOOKUP(Switch!$D$31,$F$2:$G$44,2,FALSE)+ROW()-2))=Switch!$D$31,INDIRECT(\"a\" & (VLOOKUP(Switch!$D$31,$F$2:$G$44,2,FALSE)+ROW()-2)),\"\")","v":{"$error":"#N/A"}},{"$f":"IF(INDIRECT(\"c\" & (VLOOKUP(Switch!$D$32,$F$2:$G$44,2,FALSE)+ROW()-2))=Switch!$D$32,INDIRECT(\"a\" & (VLOOKUP(Switch!$D$32,$F$2:$G$44,2,FALSE)+ROW()-2)),\"\")","v":{"$error":"#N/A"}},{"$f":"IF(INDIRECT(\"c\" & (VLOOKUP(Switch!$D$33,$F$2:$G$44,2,FALSE)+ROW()-2))=Switch!$D$33,INDIRECT(\"a\" & (VLOOKUP(Switch!$D$33,$F$2:$G$44,2,FALSE)+ROW()-2)),\"\")","v":{"$error":"#N/A"}},{"$f":"IF(INDIRECT(\"c\" & (VLOOKUP(Switch!$D$34,$F$2:$G$44,2,FALSE)+ROW()-2))=Switch!$D$34,INDIRECT(\"a\" & (VLOOKUP(Switch!$D$34,$F$2:$G$44,2,FALSE)+ROW()-2)),\"\")","v":{"$error":"#N/A"}},{"$f":"IF(INDIRECT(\"c\" & (VLOOKUP(Switch!$D$35,$F$2:$G$44,2,FALSE)+ROW()-2))=Switch!$D$35,INDIRECT(\"a\" & (VLOOKUP(Switch!$D$35,$F$2:$G$44,2,FALSE)+ROW()-2)),\"\")","v":{"$error":"#N/A"}},{"$f":"IF(INDIRECT(\"c\" & (VLOOKUP(Switch!$D$36,$F$2:$G$44,2,FALSE)+ROW()-2))=Switch!$D$36,INDIRECT(\"a\" & (VLOOKUP(Switch!$D$36,$F$2:$G$44,2,FALSE)+ROW()-2)),\"\")","v":{"$error":"#N/A"}},{"$f":"IF(INDIRECT(\"c\" & (VLOOKUP(Switch!$D$37,$F$2:$G$44,2,FALSE)+ROW()-2))=Switch!$D$37,INDIRECT(\"a\" & (VLOOKUP(Switch!$D$37,$F$2:$G$44,2,FALSE)+ROW()-2)),\"\")","v":{"$error":"#N/A"}},{"$f":"IF(INDIRECT(\"c\" & (VLOOKUP(Switch!$D$38,$F$2:$G$44,2,FALSE)+ROW()-2))=Switch!$D$38,INDIRECT(\"a\" & (VLOOKUP(Switch!$D$38,$F$2:$G$44,2,FALSE)+ROW()-2)),\"\")","v":{"$error":"#N/A"}},{"$f":"IF(INDIRECT(\"c\" & (VLOOKUP(Switch!$D$39,$F$2:$G$44,2,FALSE)+ROW()-2))=Switch!$D$39,INDIRECT(\"a\" & (VLOOKUP(Switch!$D$39,$F$2:$G$44,2,FALSE)+ROW()-2)),\"\")","v":{"$error":"#N/A"}},{"$f":"IF(INDIRECT(\"c\" & (VLOOKUP(Switch!$D$40,$F$2:$G$44,2,FALSE)+ROW()-2))=Switch!$D$40,INDIRECT(\"a\" & (VLOOKUP(Switch!$D$40,$F$2:$G$44,2,FALSE)+ROW()-2)),\"\")","v":{"$error":"#N/A"}},{"$f":"IF(INDIRECT(\"c\" & (VLOOKUP(Switch!$D$52,$F$2:$G$44,2,FALSE)+ROW()-2))=Switch!$D$52,INDIRECT(\"a\" & (VLOOKUP(Switch!$D$52,$F$2:$G$44,2,FALSE)+ROW()-2)),\"\")","v":{"$error":"#N/A"}},{"$f":"IF(INDIRECT(\"c\" & (VLOOKUP(Switch!$D$53,$F$2:$G$44,2,FALSE)+ROW()-2))=Switch!$D$53,INDIRECT(\"a\" & (VLOOKUP(Switch!$D$53,$F$2:$G$44,2,FALSE)+ROW()-2)),\"\")","v":{"$error":"#N/A"}},{"$f":"IF(INDIRECT(\"c\" & (VLOOKUP(Switch!$D$54,$F$2:$G$44,2,FALSE)+ROW()-2))=Switch!$D$54,INDIRECT(\"a\" & (VLOOKUP(Switch!$D$54,$F$2:$G$44,2,FALSE)+ROW()-2)),\"\")","v":{"$error":"#N/A"}},{"$f":"IF(INDIRECT(\"c\" & (VLOOKUP(Switch!$D$55,$F$2:$G$44,2,FALSE)+ROW()-2))=Switch!$D$55,INDIRECT(\"a\" & (VLOOKUP(Switch!$D$55,$F$2:$G$44,2,FALSE)+ROW()-2)),\"\")","v":{"$error":"#N/A"}},{"$f":"IF(INDIRECT(\"c\" & (VLOOKUP(Switch!$D$56,$F$2:$G$44,2,FALSE)+ROW()-2))=Switch!$D$56,INDIRECT(\"a\" & (VLOOKUP(Switch!$D$56,$F$2:$G$44,2,FALSE)+ROW()-2)),\"\")","v":{"$error":"#N/A"}},{"$f":"IF(INDIRECT(\"c\" & (VLOOKUP(Switch!$D$57,$F$2:$G$44,2,FALSE)+ROW()-2))=Switch!$D$57,INDIRECT(\"a\" & (VLOOKUP(Switch!$D$57,$F$2:$G$44,2,FALSE)+ROW()-2)),\"\")","v":{"$error":"#N/A"}},{"$f":"IF(INDIRECT(\"c\" & (VLOOKUP(Switch!$D$58,$F$2:$G$44,2,FALSE)+ROW()-2))=Switch!$D$58,INDIRECT(\"a\" & (VLOOKUP(Switch!$D$58,$F$2:$G$44,2,FALSE)+ROW()-2)),\"\")","v":{"$error":"#N/A"}},{"$f":"IF(INDIRECT(\"c\" & (VLOOKUP(Switch!$D$59,$F$2:$G$44,2,FALSE)+ROW()-2))=Switch!$D$59,INDIRECT(\"a\" & (VLOOKUP(Switch!$D$59,$F$2:$G$44,2,FALSE)+ROW()-2)),\"\")","v":{"$error":"#N/A"}},{"$f":"IF(INDIRECT(\"c\" & (VLOOKUP(Switch!$D$60,$F$2:$G$44,2,FALSE)+ROW()-2))=Switch!$D$60,INDIRECT(\"a\" & (VLOOKUP(Switch!$D$60,$F$2:$G$44,2,FALSE)+ROW()-2)),\"\")","v":{"$error":"#N/A"}},{"$f":"IF(INDIRECT(\"c\" & (VLOOKUP(Switch!$D$61,$F$2:$G$44,2,FALSE)+ROW()-2))=Switch!$D$61,INDIRECT(\"a\" & (VLOOKUP(Switch!$D$61,$F$2:$G$44,2,FALSE)+ROW()-2)),\"\")","v":{"$error":"#N/A"}},{"$f":"IF(INDIRECT(\"c\" & (VLOOKUP(Switch!$D$62,$F$2:$G$44,2,FALSE)+ROW()-2))=Switch!$D$62,INDIRECT(\"a\" & (VLOOKUP(Switch!$D$62,$F$2:$G$44,2,FALSE)+ROW()-2)),\"\")","v":{"$error":"#N/A"}},{"$f":"IF(INDIRECT(\"c\" & (VLOOKUP(Switch!$D$63,$F$2:$G$44,2,FALSE)+ROW()-2))=Switch!$D$63,INDIRECT(\"a\" & (VLOOKUP(Switch!$D$63,$F$2:$G$44,2,FALSE)+ROW()-2)),\"\")","v":{"$error":"#N/A"}},{"$f":"IF(INDIRECT(\"c\" & (VLOOKUP(Switch!$D$64,$F$2:$G$44,2,FALSE)+ROW()-2))=Switch!$D$64,INDIRECT(\"a\" & (VLOOKUP(Switch!$D$64,$F$2:$G$44,2,FALSE)+ROW()-2)),\"\")","v":{"$error":"#N/A"}},{"$f":"IF(INDIRECT(\"c\" & (VLOOKUP(Switch!$D$65,$F$2:$G$44,2,FALSE)+ROW()-2))=Switch!$D$65,INDIRECT(\"a\" & (VLOOKUP(Switch!$D$65,$F$2:$G$44,2,FALSE)+ROW()-2)),\"\")","v":{"$error":"#N/A"}},{"$f":"IF(INDIRECT(\"c\" & (VLOOKUP(Switch!$D$66,$F$2:$G$44,2,FALSE)+ROW()-2))=Switch!$D$66,INDIRECT(\"a\" & (VLOOKUP(Switch!$D$66,$F$2:$G$44,2,FALSE)+ROW()-2)),\"\")","v":{"$error":"#N/A"}}]
["Old Mutual High Yield Opportunity Fund B1","OMHY","Old Mutual Unit Trust Managers Limited",{"$f":"ROW()","v":418},null,null,{"$f":"VLOOKUP(F418,$C$2:$D$637,2,FALSE)","v":{"$error":"#N/A"}},{"$f":"IF(INDIRECT(\"c\" & (VLOOKUP(Switch!$D$26,$F$2:$G$44,2,FALSE)+ROW()-2))=Switch!$D$26,INDIRECT(\"a\" & (VLOOKUP(Switch!$D$26,$F$2:$G$44,2,FALSE)+ROW()-2)),\"\")","v":{"$error":"#N/A"}},{"$f":"IF(INDIRECT(\"c\" & (VLOOKUP(Switch!$D$27,$F$2:$G$44,2,FALSE)+ROW()-2))=Switch!$D$27,INDIRECT(\"a\" & (VLOOKUP(Switch!$D$27,$F$2:$G$44,2,FALSE)+ROW()-2)),\"\")","v":{"$error":"#N/A"}},{"$f":"IF(INDIRECT(\"c\" & (VLOOKUP(Switch!$D$28,$F$2:$G$44,2,FALSE)+ROW()-2))=Switch!$D$28,INDIRECT(\"a\" & (VLOOKUP(Switch!$D$28,$F$2:$G$44,2,FALSE)+ROW()-2)),\"\")","v":{"$error":"#N/A"}},{"$f":"IF(INDIRECT(\"c\" & (VLOOKUP(Switch!$D$29,$F$2:$G$44,2,FALSE)+ROW()-2))=Switch!$D$29,INDIRECT(\"a\" & (VLOOKUP(Switch!$D$29,$F$2:$G$44,2,FALSE)+ROW()-2)),\"\")","v":{"$error":"#N/A"}},{"$f":"IF(INDIRECT(\"c\" & (VLOOKUP(Switch!$D$30,$F$2:$G$44,2,FALSE)+ROW()-2))=Switch!$D$30,INDIRECT(\"a\" & (VLOOKUP(Switch!$D$30,$F$2:$G$44,2,FALSE)+ROW()-2)),\"\")","v":{"$error":"#N/A"}},{"$f":"IF(INDIRECT(\"c\" & (VLOOKUP(Switch!$D$31,$F$2:$G$44,2,FALSE)+ROW()-2))=Switch!$D$31,INDIRECT(\"a\" & (VLOOKUP(Switch!$D$31,$F$2:$G$44,2,FALSE)+ROW()-2)),\"\")","v":{"$error":"#N/A"}},{"$f":"IF(INDIRECT(\"c\" & (VLOOKUP(Switch!$D$32,$F$2:$G$44,2,FALSE)+ROW()-2))=Switch!$D$32,INDIRECT(\"a\" & (VLOOKUP(Switch!$D$32,$F$2:$G$44,2,FALSE)+ROW()-2)),\"\")","v":{"$error":"#N/A"}},{"$f":"IF(INDIRECT(\"c\" & (VLOOKUP(Switch!$D$33,$F$2:$G$44,2,FALSE)+ROW()-2))=Switch!$D$33,INDIRECT(\"a\" & (VLOOKUP(Switch!$D$33,$F$2:$G$44,2,FALSE)+ROW()-2)),\"\")","v":{"$error":"#N/A"}},{"$f":"IF(INDIRECT(\"c\" & (VLOOKUP(Switch!$D$34,$F$2:$G$44,2,FALSE)+ROW()-2))=Switch!$D$34,INDIRECT(\"a\" & (VLOOKUP(Switch!$D$34,$F$2:$G$44,2,FALSE)+ROW()-2)),\"\")","v":{"$error":"#N/A"}},{"$f":"IF(INDIRECT(\"c\" & (VLOOKUP(Switch!$D$35,$F$2:$G$44,2,FALSE)+ROW()-2))=Switch!$D$35,INDIRECT(\"a\" & (VLOOKUP(Switch!$D$35,$F$2:$G$44,2,FALSE)+ROW()-2)),\"\")","v":{"$error":"#N/A"}},{"$f":"IF(INDIRECT(\"c\" & (VLOOKUP(Switch!$D$36,$F$2:$G$44,2,FALSE)+ROW()-2))=Switch!$D$36,INDIRECT(\"a\" & (VLOOKUP(Switch!$D$36,$F$2:$G$44,2,FALSE)+ROW()-2)),\"\")","v":{"$error":"#N/A"}},{"$f":"IF(INDIRECT(\"c\" & (VLOOKUP(Switch!$D$37,$F$2:$G$44,2,FALSE)+ROW()-2))=Switch!$D$37,INDIRECT(\"a\" & (VLOOKUP(Switch!$D$37,$F$2:$G$44,2,FALSE)+ROW()-2)),\"\")","v":{"$error":"#N/A"}},{"$f":"IF(INDIRECT(\"c\" & (VLOOKUP(Switch!$D$38,$F$2:$G$44,2,FALSE)+ROW()-2))=Switch!$D$38,INDIRECT(\"a\" & (VLOOKUP(Switch!$D$38,$F$2:$G$44,2,FALSE)+ROW()-2)),\"\")","v":{"$error":"#N/A"}},{"$f":"IF(INDIRECT(\"c\" & (VLOOKUP(Switch!$D$39,$F$2:$G$44,2,FALSE)+ROW()-2))=Switch!$D$39,INDIRECT(\"a\" & (VLOOKUP(Switch!$D$39,$F$2:$G$44,2,FALSE)+ROW()-2)),\"\")","v":{"$error":"#N/A"}},{"$f":"IF(INDIRECT(\"c\" & (VLOOKUP(Switch!$D$40,$F$2:$G$44,2,FALSE)+ROW()-2))=Switch!$D$40,INDIRECT(\"a\" & (VLOOKUP(Switch!$D$40,$F$2:$G$44,2,FALSE)+ROW()-2)),\"\")","v":{"$error":"#N/A"}},{"$f":"IF(INDIRECT(\"c\" & (VLOOKUP(Switch!$D$52,$F$2:$G$44,2,FALSE)+ROW()-2))=Switch!$D$52,INDIRECT(\"a\" & (VLOOKUP(Switch!$D$52,$F$2:$G$44,2,FALSE)+ROW()-2)),\"\")","v":{"$error":"#N/A"}},{"$f":"IF(INDIRECT(\"c\" & (VLOOKUP(Switch!$D$53,$F$2:$G$44,2,FALSE)+ROW()-2))=Switch!$D$53,INDIRECT(\"a\" & (VLOOKUP(Switch!$D$53,$F$2:$G$44,2,FALSE)+ROW()-2)),\"\")","v":{"$error":"#N/A"}},{"$f":"IF(INDIRECT(\"c\" & (VLOOKUP(Switch!$D$54,$F$2:$G$44,2,FALSE)+ROW()-2))=Switch!$D$54,INDIRECT(\"a\" & (VLOOKUP(Switch!$D$54,$F$2:$G$44,2,FALSE)+ROW()-2)),\"\")","v":{"$error":"#N/A"}},{"$f":"IF(INDIRECT(\"c\" & (VLOOKUP(Switch!$D$55,$F$2:$G$44,2,FALSE)+ROW()-2))=Switch!$D$55,INDIRECT(\"a\" & (VLOOKUP(Switch!$D$55,$F$2:$G$44,2,FALSE)+ROW()-2)),\"\")","v":{"$error":"#N/A"}},{"$f":"IF(INDIRECT(\"c\" & (VLOOKUP(Switch!$D$56,$F$2:$G$44,2,FALSE)+ROW()-2))=Switch!$D$56,INDIRECT(\"a\" & (VLOOKUP(Switch!$D$56,$F$2:$G$44,2,FALSE)+ROW()-2)),\"\")","v":{"$error":"#N/A"}},{"$f":"IF(INDIRECT(\"c\" & (VLOOKUP(Switch!$D$57,$F$2:$G$44,2,FALSE)+ROW()-2))=Switch!$D$57,INDIRECT(\"a\" & (VLOOKUP(Switch!$D$57,$F$2:$G$44,2,FALSE)+ROW()-2)),\"\")","v":{"$error":"#N/A"}},{"$f":"IF(INDIRECT(\"c\" & (VLOOKUP(Switch!$D$58,$F$2:$G$44,2,FALSE)+ROW()-2))=Switch!$D$58,INDIRECT(\"a\" & (VLOOKUP(Switch!$D$58,$F$2:$G$44,2,FALSE)+ROW()-2)),\"\")","v":{"$error":"#N/A"}},{"$f":"IF(INDIRECT(\"c\" & (VLOOKUP(Switch!$D$59,$F$2:$G$44,2,FALSE)+ROW()-2))=Switch!$D$59,INDIRECT(\"a\" & (VLOOKUP(Switch!$D$59,$F$2:$G$44,2,FALSE)+ROW()-2)),\"\")","v":{"$error":"#N/A"}},{"$f":"IF(INDIRECT(\"c\" & (VLOOKUP(Switch!$D$60,$F$2:$G$44,2,FALSE)+ROW()-2))=Switch!$D$60,INDIRECT(\"a\" & (VLOOKUP(Switch!$D$60,$F$2:$G$44,2,FALSE)+ROW()-2)),\"\")","v":{"$error":"#N/A"}},{"$f":"IF(INDIRECT(\"c\" & (VLOOKUP(Switch!$D$61,$F$2:$G$44,2,FALSE)+ROW()-2))=Switch!$D$61,INDIRECT(\"a\" & (VLOOKUP(Switch!$D$61,$F$2:$G$44,2,FALSE)+ROW()-2)),\"\")","v":{"$error":"#N/A"}},{"$f":"IF(INDIRECT(\"c\" & (VLOOKUP(Switch!$D$62,$F$2:$G$44,2,FALSE)+ROW()-2))=Switch!$D$62,INDIRECT(\"a\" & (VLOOKUP(Switch!$D$62,$F$2:$G$44,2,FALSE)+ROW()-2)),\"\")","v":{"$error":"#N/A"}},{"$f":"IF(INDIRECT(\"c\" & (VLOOKUP(Switch!$D$63,$F$2:$G$44,2,FALSE)+ROW()-2))=Switch!$D$63,INDIRECT(\"a\" & (VLOOKUP(Switch!$D$63,$F$2:$G$44,2,FALSE)+ROW()-2)),\"\")","v":{"$error":"#N/A"}},{"$f":"IF(INDIRECT(\"c\" & (VLOOKUP(Switch!$D$64,$F$2:$G$44,2,FALSE)+ROW()-2))=Switch!$D$64,INDIRECT(\"a\" & (VLOOKUP(Switch!$D$64,$F$2:$G$44,2,FALSE)+ROW()-2)),\"\")","v":{"$error":"#N/A"}},{"$f":"IF(INDIRECT(\"c\" & (VLOOKUP(Switch!$D$65,$F$2:$G$44,2,FALSE)+ROW()-2))=Switch!$D$65,INDIRECT(\"a\" & (VLOOKUP(Switch!$D$65,$F$2:$G$44,2,FALSE)+ROW()-2)),\"\")","v":{"$error":"#N/A"}},{"$f":"IF(INDIRECT(\"c\" & (VLOOKUP(Switch!$D$66,$F$2:$G$44,2,FALSE)+ROW()-2))=Switch!$D$66,INDIRECT(\"a\" & (VLOOKUP(Switch!$D$66,$F$2:$G$44,2,FALSE)+ROW()-2)),\"\")","v":{"$error":"#N/A"}}]
["Old Mutual Income Fund","OMIB1","Old Mutual Unit Trust Managers Limited",{"$f":"ROW()","v":419},null,null,{"$f":"VLOOKUP(F419,$C$2:$D$637,2,FALSE)","v":{"$error":"#N/A"}},{"$f":"IF(INDIRECT(\"c\" & (VLOOKUP(Switch!$D$26,$F$2:$G$44,2,FALSE)+ROW()-2))=Switch!$D$26,INDIRECT(\"a\" & (VLOOKUP(Switch!$D$26,$F$2:$G$44,2,FALSE)+ROW()-2)),\"\")","v":{"$error":"#N/A"}},{"$f":"IF(INDIRECT(\"c\" & (VLOOKUP(Switch!$D$27,$F$2:$G$44,2,FALSE)+ROW()-2))=Switch!$D$27,INDIRECT(\"a\" & (VLOOKUP(Switch!$D$27,$F$2:$G$44,2,FALSE)+ROW()-2)),\"\")","v":{"$error":"#N/A"}},{"$f":"IF(INDIRECT(\"c\" & (VLOOKUP(Switch!$D$28,$F$2:$G$44,2,FALSE)+ROW()-2))=Switch!$D$28,INDIRECT(\"a\" & (VLOOKUP(Switch!$D$28,$F$2:$G$44,2,FALSE)+ROW()-2)),\"\")","v":{"$error":"#N/A"}},{"$f":"IF(INDIRECT(\"c\" & (VLOOKUP(Switch!$D$29,$F$2:$G$44,2,FALSE)+ROW()-2))=Switch!$D$29,INDIRECT(\"a\" & (VLOOKUP(Switch!$D$29,$F$2:$G$44,2,FALSE)+ROW()-2)),\"\")","v":{"$error":"#N/A"}},{"$f":"IF(INDIRECT(\"c\" & (VLOOKUP(Switch!$D$30,$F$2:$G$44,2,FALSE)+ROW()-2))=Switch!$D$30,INDIRECT(\"a\" & (VLOOKUP(Switch!$D$30,$F$2:$G$44,2,FALSE)+ROW()-2)),\"\")","v":{"$error":"#N/A"}},{"$f":"IF(INDIRECT(\"c\" & (VLOOKUP(Switch!$D$31,$F$2:$G$44,2,FALSE)+ROW()-2))=Switch!$D$31,INDIRECT(\"a\" & (VLOOKUP(Switch!$D$31,$F$2:$G$44,2,FALSE)+ROW()-2)),\"\")","v":{"$error":"#N/A"}},{"$f":"IF(INDIRECT(\"c\" & (VLOOKUP(Switch!$D$32,$F$2:$G$44,2,FALSE)+ROW()-2))=Switch!$D$32,INDIRECT(\"a\" & (VLOOKUP(Switch!$D$32,$F$2:$G$44,2,FALSE)+ROW()-2)),\"\")","v":{"$error":"#N/A"}},{"$f":"IF(INDIRECT(\"c\" & (VLOOKUP(Switch!$D$33,$F$2:$G$44,2,FALSE)+ROW()-2))=Switch!$D$33,INDIRECT(\"a\" & (VLOOKUP(Switch!$D$33,$F$2:$G$44,2,FALSE)+ROW()-2)),\"\")","v":{"$error":"#N/A"}},{"$f":"IF(INDIRECT(\"c\" & (VLOOKUP(Switch!$D$34,$F$2:$G$44,2,FALSE)+ROW()-2))=Switch!$D$34,INDIRECT(\"a\" & (VLOOKUP(Switch!$D$34,$F$2:$G$44,2,FALSE)+ROW()-2)),\"\")","v":{"$error":"#N/A"}},{"$f":"IF(INDIRECT(\"c\" & (VLOOKUP(Switch!$D$35,$F$2:$G$44,2,FALSE)+ROW()-2))=Switch!$D$35,INDIRECT(\"a\" & (VLOOKUP(Switch!$D$35,$F$2:$G$44,2,FALSE)+ROW()-2)),\"\")","v":{"$error":"#N/A"}},{"$f":"IF(INDIRECT(\"c\" & (VLOOKUP(Switch!$D$36,$F$2:$G$44,2,FALSE)+ROW()-2))=Switch!$D$36,INDIRECT(\"a\" & (VLOOKUP(Switch!$D$36,$F$2:$G$44,2,FALSE)+ROW()-2)),\"\")","v":{"$error":"#N/A"}},{"$f":"IF(INDIRECT(\"c\" & (VLOOKUP(Switch!$D$37,$F$2:$G$44,2,FALSE)+ROW()-2))=Switch!$D$37,INDIRECT(\"a\" & (VLOOKUP(Switch!$D$37,$F$2:$G$44,2,FALSE)+ROW()-2)),\"\")","v":{"$error":"#N/A"}},{"$f":"IF(INDIRECT(\"c\" & (VLOOKUP(Switch!$D$38,$F$2:$G$44,2,FALSE)+ROW()-2))=Switch!$D$38,INDIRECT(\"a\" & (VLOOKUP(Switch!$D$38,$F$2:$G$44,2,FALSE)+ROW()-2)),\"\")","v":{"$error":"#N/A"}},{"$f":"IF(INDIRECT(\"c\" & (VLOOKUP(Switch!$D$39,$F$2:$G$44,2,FALSE)+ROW()-2))=Switch!$D$39,INDIRECT(\"a\" & (VLOOKUP(Switch!$D$39,$F$2:$G$44,2,FALSE)+ROW()-2)),\"\")","v":{"$error":"#N/A"}},{"$f":"IF(INDIRECT(\"c\" & (VLOOKUP(Switch!$D$40,$F$2:$G$44,2,FALSE)+ROW()-2))=Switch!$D$40,INDIRECT(\"a\" & (VLOOKUP(Switch!$D$40,$F$2:$G$44,2,FALSE)+ROW()-2)),\"\")","v":{"$error":"#N/A"}},{"$f":"IF(INDIRECT(\"c\" & (VLOOKUP(Switch!$D$52,$F$2:$G$44,2,FALSE)+ROW()-2))=Switch!$D$52,INDIRECT(\"a\" & (VLOOKUP(Switch!$D$52,$F$2:$G$44,2,FALSE)+ROW()-2)),\"\")","v":{"$error":"#N/A"}},{"$f":"IF(INDIRECT(\"c\" & (VLOOKUP(Switch!$D$53,$F$2:$G$44,2,FALSE)+ROW()-2))=Switch!$D$53,INDIRECT(\"a\" & (VLOOKUP(Switch!$D$53,$F$2:$G$44,2,FALSE)+ROW()-2)),\"\")","v":{"$error":"#N/A"}},{"$f":"IF(INDIRECT(\"c\" & (VLOOKUP(Switch!$D$54,$F$2:$G$44,2,FALSE)+ROW()-2))=Switch!$D$54,INDIRECT(\"a\" & (VLOOKUP(Switch!$D$54,$F$2:$G$44,2,FALSE)+ROW()-2)),\"\")","v":{"$error":"#N/A"}},{"$f":"IF(INDIRECT(\"c\" & (VLOOKUP(Switch!$D$55,$F$2:$G$44,2,FALSE)+ROW()-2))=Switch!$D$55,INDIRECT(\"a\" & (VLOOKUP(Switch!$D$55,$F$2:$G$44,2,FALSE)+ROW()-2)),\"\")","v":{"$error":"#N/A"}},{"$f":"IF(INDIRECT(\"c\" & (VLOOKUP(Switch!$D$56,$F$2:$G$44,2,FALSE)+ROW()-2))=Switch!$D$56,INDIRECT(\"a\" & (VLOOKUP(Switch!$D$56,$F$2:$G$44,2,FALSE)+ROW()-2)),\"\")","v":{"$error":"#N/A"}},{"$f":"IF(INDIRECT(\"c\" & (VLOOKUP(Switch!$D$57,$F$2:$G$44,2,FALSE)+ROW()-2))=Switch!$D$57,INDIRECT(\"a\" & (VLOOKUP(Switch!$D$57,$F$2:$G$44,2,FALSE)+ROW()-2)),\"\")","v":{"$error":"#N/A"}},{"$f":"IF(INDIRECT(\"c\" & (VLOOKUP(Switch!$D$58,$F$2:$G$44,2,FALSE)+ROW()-2))=Switch!$D$58,INDIRECT(\"a\" & (VLOOKUP(Switch!$D$58,$F$2:$G$44,2,FALSE)+ROW()-2)),\"\")","v":{"$error":"#N/A"}},{"$f":"IF(INDIRECT(\"c\" & (VLOOKUP(Switch!$D$59,$F$2:$G$44,2,FALSE)+ROW()-2))=Switch!$D$59,INDIRECT(\"a\" & (VLOOKUP(Switch!$D$59,$F$2:$G$44,2,FALSE)+ROW()-2)),\"\")","v":{"$error":"#N/A"}},{"$f":"IF(INDIRECT(\"c\" & (VLOOKUP(Switch!$D$60,$F$2:$G$44,2,FALSE)+ROW()-2))=Switch!$D$60,INDIRECT(\"a\" & (VLOOKUP(Switch!$D$60,$F$2:$G$44,2,FALSE)+ROW()-2)),\"\")","v":{"$error":"#N/A"}},{"$f":"IF(INDIRECT(\"c\" & (VLOOKUP(Switch!$D$61,$F$2:$G$44,2,FALSE)+ROW()-2))=Switch!$D$61,INDIRECT(\"a\" & (VLOOKUP(Switch!$D$61,$F$2:$G$44,2,FALSE)+ROW()-2)),\"\")","v":{"$error":"#N/A"}},{"$f":"IF(INDIRECT(\"c\" & (VLOOKUP(Switch!$D$62,$F$2:$G$44,2,FALSE)+ROW()-2))=Switch!$D$62,INDIRECT(\"a\" & (VLOOKUP(Switch!$D$62,$F$2:$G$44,2,FALSE)+ROW()-2)),\"\")","v":{"$error":"#N/A"}},{"$f":"IF(INDIRECT(\"c\" & (VLOOKUP(Switch!$D$63,$F$2:$G$44,2,FALSE)+ROW()-2))=Switch!$D$63,INDIRECT(\"a\" & (VLOOKUP(Switch!$D$63,$F$2:$G$44,2,FALSE)+ROW()-2)),\"\")","v":{"$error":"#N/A"}},{"$f":"IF(INDIRECT(\"c\" & (VLOOKUP(Switch!$D$64,$F$2:$G$44,2,FALSE)+ROW()-2))=Switch!$D$64,INDIRECT(\"a\" & (VLOOKUP(Switch!$D$64,$F$2:$G$44,2,FALSE)+ROW()-2)),\"\")","v":{"$error":"#N/A"}},{"$f":"IF(INDIRECT(\"c\" & (VLOOKUP(Switch!$D$65,$F$2:$G$44,2,FALSE)+ROW()-2))=Switch!$D$65,INDIRECT(\"a\" & (VLOOKUP(Switch!$D$65,$F$2:$G$44,2,FALSE)+ROW()-2)),\"\")","v":{"$error":"#N/A"}},{"$f":"IF(INDIRECT(\"c\" & (VLOOKUP(Switch!$D$66,$F$2:$G$44,2,FALSE)+ROW()-2))=Switch!$D$66,INDIRECT(\"a\" & (VLOOKUP(Switch!$D$66,$F$2:$G$44,2,FALSE)+ROW()-2)),\"\")","v":{"$error":"#N/A"}}]
["Old Mutual Industrial Fund","OMCF","Old Mutual Unit Trust Managers Limited",{"$f":"ROW()","v":420},null,null,{"$f":"VLOOKUP(F420,$C$2:$D$637,2,FALSE)","v":{"$error":"#N/A"}},{"$f":"IF(INDIRECT(\"c\" & (VLOOKUP(Switch!$D$26,$F$2:$G$44,2,FALSE)+ROW()-2))=Switch!$D$26,INDIRECT(\"a\" & (VLOOKUP(Switch!$D$26,$F$2:$G$44,2,FALSE)+ROW()-2)),\"\")","v":{"$error":"#N/A"}},{"$f":"IF(INDIRECT(\"c\" & (VLOOKUP(Switch!$D$27,$F$2:$G$44,2,FALSE)+ROW()-2))=Switch!$D$27,INDIRECT(\"a\" & (VLOOKUP(Switch!$D$27,$F$2:$G$44,2,FALSE)+ROW()-2)),\"\")","v":{"$error":"#N/A"}},{"$f":"IF(INDIRECT(\"c\" & (VLOOKUP(Switch!$D$28,$F$2:$G$44,2,FALSE)+ROW()-2))=Switch!$D$28,INDIRECT(\"a\" & (VLOOKUP(Switch!$D$28,$F$2:$G$44,2,FALSE)+ROW()-2)),\"\")","v":{"$error":"#N/A"}},{"$f":"IF(INDIRECT(\"c\" & (VLOOKUP(Switch!$D$29,$F$2:$G$44,2,FALSE)+ROW()-2))=Switch!$D$29,INDIRECT(\"a\" & (VLOOKUP(Switch!$D$29,$F$2:$G$44,2,FALSE)+ROW()-2)),\"\")","v":{"$error":"#N/A"}},{"$f":"IF(INDIRECT(\"c\" & (VLOOKUP(Switch!$D$30,$F$2:$G$44,2,FALSE)+ROW()-2))=Switch!$D$30,INDIRECT(\"a\" & (VLOOKUP(Switch!$D$30,$F$2:$G$44,2,FALSE)+ROW()-2)),\"\")","v":{"$error":"#N/A"}},{"$f":"IF(INDIRECT(\"c\" & (VLOOKUP(Switch!$D$31,$F$2:$G$44,2,FALSE)+ROW()-2))=Switch!$D$31,INDIRECT(\"a\" & (VLOOKUP(Switch!$D$31,$F$2:$G$44,2,FALSE)+ROW()-2)),\"\")","v":{"$error":"#N/A"}},{"$f":"IF(INDIRECT(\"c\" & (VLOOKUP(Switch!$D$32,$F$2:$G$44,2,FALSE)+ROW()-2))=Switch!$D$32,INDIRECT(\"a\" & (VLOOKUP(Switch!$D$32,$F$2:$G$44,2,FALSE)+ROW()-2)),\"\")","v":{"$error":"#N/A"}},{"$f":"IF(INDIRECT(\"c\" & (VLOOKUP(Switch!$D$33,$F$2:$G$44,2,FALSE)+ROW()-2))=Switch!$D$33,INDIRECT(\"a\" & (VLOOKUP(Switch!$D$33,$F$2:$G$44,2,FALSE)+ROW()-2)),\"\")","v":{"$error":"#N/A"}},{"$f":"IF(INDIRECT(\"c\" & (VLOOKUP(Switch!$D$34,$F$2:$G$44,2,FALSE)+ROW()-2))=Switch!$D$34,INDIRECT(\"a\" & (VLOOKUP(Switch!$D$34,$F$2:$G$44,2,FALSE)+ROW()-2)),\"\")","v":{"$error":"#N/A"}},{"$f":"IF(INDIRECT(\"c\" & (VLOOKUP(Switch!$D$35,$F$2:$G$44,2,FALSE)+ROW()-2))=Switch!$D$35,INDIRECT(\"a\" & (VLOOKUP(Switch!$D$35,$F$2:$G$44,2,FALSE)+ROW()-2)),\"\")","v":{"$error":"#N/A"}},{"$f":"IF(INDIRECT(\"c\" & (VLOOKUP(Switch!$D$36,$F$2:$G$44,2,FALSE)+ROW()-2))=Switch!$D$36,INDIRECT(\"a\" & (VLOOKUP(Switch!$D$36,$F$2:$G$44,2,FALSE)+ROW()-2)),\"\")","v":{"$error":"#N/A"}},{"$f":"IF(INDIRECT(\"c\" & (VLOOKUP(Switch!$D$37,$F$2:$G$44,2,FALSE)+ROW()-2))=Switch!$D$37,INDIRECT(\"a\" & (VLOOKUP(Switch!$D$37,$F$2:$G$44,2,FALSE)+ROW()-2)),\"\")","v":{"$error":"#N/A"}},{"$f":"IF(INDIRECT(\"c\" & (VLOOKUP(Switch!$D$38,$F$2:$G$44,2,FALSE)+ROW()-2))=Switch!$D$38,INDIRECT(\"a\" & (VLOOKUP(Switch!$D$38,$F$2:$G$44,2,FALSE)+ROW()-2)),\"\")","v":{"$error":"#N/A"}},{"$f":"IF(INDIRECT(\"c\" & (VLOOKUP(Switch!$D$39,$F$2:$G$44,2,FALSE)+ROW()-2))=Switch!$D$39,INDIRECT(\"a\" & (VLOOKUP(Switch!$D$39,$F$2:$G$44,2,FALSE)+ROW()-2)),\"\")","v":{"$error":"#N/A"}},{"$f":"IF(INDIRECT(\"c\" & (VLOOKUP(Switch!$D$40,$F$2:$G$44,2,FALSE)+ROW()-2))=Switch!$D$40,INDIRECT(\"a\" & (VLOOKUP(Switch!$D$40,$F$2:$G$44,2,FALSE)+ROW()-2)),\"\")","v":{"$error":"#N/A"}},{"$f":"IF(INDIRECT(\"c\" & (VLOOKUP(Switch!$D$52,$F$2:$G$44,2,FALSE)+ROW()-2))=Switch!$D$52,INDIRECT(\"a\" & (VLOOKUP(Switch!$D$52,$F$2:$G$44,2,FALSE)+ROW()-2)),\"\")","v":{"$error":"#N/A"}},{"$f":"IF(INDIRECT(\"c\" & (VLOOKUP(Switch!$D$53,$F$2:$G$44,2,FALSE)+ROW()-2))=Switch!$D$53,INDIRECT(\"a\" & (VLOOKUP(Switch!$D$53,$F$2:$G$44,2,FALSE)+ROW()-2)),\"\")","v":{"$error":"#N/A"}},{"$f":"IF(INDIRECT(\"c\" & (VLOOKUP(Switch!$D$54,$F$2:$G$44,2,FALSE)+ROW()-2))=Switch!$D$54,INDIRECT(\"a\" & (VLOOKUP(Switch!$D$54,$F$2:$G$44,2,FALSE)+ROW()-2)),\"\")","v":{"$error":"#N/A"}},{"$f":"IF(INDIRECT(\"c\" & (VLOOKUP(Switch!$D$55,$F$2:$G$44,2,FALSE)+ROW()-2))=Switch!$D$55,INDIRECT(\"a\" & (VLOOKUP(Switch!$D$55,$F$2:$G$44,2,FALSE)+ROW()-2)),\"\")","v":{"$error":"#N/A"}},{"$f":"IF(INDIRECT(\"c\" & (VLOOKUP(Switch!$D$56,$F$2:$G$44,2,FALSE)+ROW()-2))=Switch!$D$56,INDIRECT(\"a\" & (VLOOKUP(Switch!$D$56,$F$2:$G$44,2,FALSE)+ROW()-2)),\"\")","v":{"$error":"#N/A"}},{"$f":"IF(INDIRECT(\"c\" & (VLOOKUP(Switch!$D$57,$F$2:$G$44,2,FALSE)+ROW()-2))=Switch!$D$57,INDIRECT(\"a\" & (VLOOKUP(Switch!$D$57,$F$2:$G$44,2,FALSE)+ROW()-2)),\"\")","v":{"$error":"#N/A"}},{"$f":"IF(INDIRECT(\"c\" & (VLOOKUP(Switch!$D$58,$F$2:$G$44,2,FALSE)+ROW()-2))=Switch!$D$58,INDIRECT(\"a\" & (VLOOKUP(Switch!$D$58,$F$2:$G$44,2,FALSE)+ROW()-2)),\"\")","v":{"$error":"#N/A"}},{"$f":"IF(INDIRECT(\"c\" & (VLOOKUP(Switch!$D$59,$F$2:$G$44,2,FALSE)+ROW()-2))=Switch!$D$59,INDIRECT(\"a\" & (VLOOKUP(Switch!$D$59,$F$2:$G$44,2,FALSE)+ROW()-2)),\"\")","v":{"$error":"#N/A"}},{"$f":"IF(INDIRECT(\"c\" & (VLOOKUP(Switch!$D$60,$F$2:$G$44,2,FALSE)+ROW()-2))=Switch!$D$60,INDIRECT(\"a\" & (VLOOKUP(Switch!$D$60,$F$2:$G$44,2,FALSE)+ROW()-2)),\"\")","v":{"$error":"#N/A"}},{"$f":"IF(INDIRECT(\"c\" & (VLOOKUP(Switch!$D$61,$F$2:$G$44,2,FALSE)+ROW()-2))=Switch!$D$61,INDIRECT(\"a\" & (VLOOKUP(Switch!$D$61,$F$2:$G$44,2,FALSE)+ROW()-2)),\"\")","v":{"$error":"#N/A"}},{"$f":"IF(INDIRECT(\"c\" & (VLOOKUP(Switch!$D$62,$F$2:$G$44,2,FALSE)+ROW()-2))=Switch!$D$62,INDIRECT(\"a\" & (VLOOKUP(Switch!$D$62,$F$2:$G$44,2,FALSE)+ROW()-2)),\"\")","v":{"$error":"#N/A"}},{"$f":"IF(INDIRECT(\"c\" & (VLOOKUP(Switch!$D$63,$F$2:$G$44,2,FALSE)+ROW()-2))=Switch!$D$63,INDIRECT(\"a\" & (VLOOKUP(Switch!$D$63,$F$2:$G$44,2,FALSE)+ROW()-2)),\"\")","v":{"$error":"#N/A"}},{"$f":"IF(INDIRECT(\"c\" & (VLOOKUP(Switch!$D$64,$F$2:$G$44,2,FALSE)+ROW()-2))=Switch!$D$64,INDIRECT(\"a\" & (VLOOKUP(Switch!$D$64,$F$2:$G$44,2,FALSE)+ROW()-2)),\"\")","v":{"$error":"#N/A"}},{"$f":"IF(INDIRECT(\"c\" & (VLOOKUP(Switch!$D$65,$F$2:$G$44,2,FALSE)+ROW()-2))=Switch!$D$65,INDIRECT(\"a\" & (VLOOKUP(Switch!$D$65,$F$2:$G$44,2,FALSE)+ROW()-2)),\"\")","v":{"$error":"#N/A"}},{"$f":"IF(INDIRECT(\"c\" & (VLOOKUP(Switch!$D$66,$F$2:$G$44,2,FALSE)+ROW()-2))=Switch!$D$66,INDIRECT(\"a\" & (VLOOKUP(Switch!$D$66,$F$2:$G$44,2,FALSE)+ROW()-2)),\"\")","v":{"$error":"#N/A"}}]
["Old Mutual International Growth FoF B","OMIG","Old Mutual Unit Trust Managers Limited",{"$f":"ROW()","v":421},null,null,{"$f":"VLOOKUP(F421,$C$2:$D$637,2,FALSE)","v":{"$error":"#N/A"}},{"$f":"IF(INDIRECT(\"c\" & (VLOOKUP(Switch!$D$26,$F$2:$G$44,2,FALSE)+ROW()-2))=Switch!$D$26,INDIRECT(\"a\" & (VLOOKUP(Switch!$D$26,$F$2:$G$44,2,FALSE)+ROW()-2)),\"\")","v":{"$error":"#N/A"}},{"$f":"IF(INDIRECT(\"c\" & (VLOOKUP(Switch!$D$27,$F$2:$G$44,2,FALSE)+ROW()-2))=Switch!$D$27,INDIRECT(\"a\" & (VLOOKUP(Switch!$D$27,$F$2:$G$44,2,FALSE)+ROW()-2)),\"\")","v":{"$error":"#N/A"}},{"$f":"IF(INDIRECT(\"c\" & (VLOOKUP(Switch!$D$28,$F$2:$G$44,2,FALSE)+ROW()-2))=Switch!$D$28,INDIRECT(\"a\" & (VLOOKUP(Switch!$D$28,$F$2:$G$44,2,FALSE)+ROW()-2)),\"\")","v":{"$error":"#N/A"}},{"$f":"IF(INDIRECT(\"c\" & (VLOOKUP(Switch!$D$29,$F$2:$G$44,2,FALSE)+ROW()-2))=Switch!$D$29,INDIRECT(\"a\" & (VLOOKUP(Switch!$D$29,$F$2:$G$44,2,FALSE)+ROW()-2)),\"\")","v":{"$error":"#N/A"}},{"$f":"IF(INDIRECT(\"c\" & (VLOOKUP(Switch!$D$30,$F$2:$G$44,2,FALSE)+ROW()-2))=Switch!$D$30,INDIRECT(\"a\" & (VLOOKUP(Switch!$D$30,$F$2:$G$44,2,FALSE)+ROW()-2)),\"\")","v":{"$error":"#N/A"}},{"$f":"IF(INDIRECT(\"c\" & (VLOOKUP(Switch!$D$31,$F$2:$G$44,2,FALSE)+ROW()-2))=Switch!$D$31,INDIRECT(\"a\" & (VLOOKUP(Switch!$D$31,$F$2:$G$44,2,FALSE)+ROW()-2)),\"\")","v":{"$error":"#N/A"}},{"$f":"IF(INDIRECT(\"c\" & (VLOOKUP(Switch!$D$32,$F$2:$G$44,2,FALSE)+ROW()-2))=Switch!$D$32,INDIRECT(\"a\" & (VLOOKUP(Switch!$D$32,$F$2:$G$44,2,FALSE)+ROW()-2)),\"\")","v":{"$error":"#N/A"}},{"$f":"IF(INDIRECT(\"c\" & (VLOOKUP(Switch!$D$33,$F$2:$G$44,2,FALSE)+ROW()-2))=Switch!$D$33,INDIRECT(\"a\" & (VLOOKUP(Switch!$D$33,$F$2:$G$44,2,FALSE)+ROW()-2)),\"\")","v":{"$error":"#N/A"}},{"$f":"IF(INDIRECT(\"c\" & (VLOOKUP(Switch!$D$34,$F$2:$G$44,2,FALSE)+ROW()-2))=Switch!$D$34,INDIRECT(\"a\" & (VLOOKUP(Switch!$D$34,$F$2:$G$44,2,FALSE)+ROW()-2)),\"\")","v":{"$error":"#N/A"}},{"$f":"IF(INDIRECT(\"c\" & (VLOOKUP(Switch!$D$35,$F$2:$G$44,2,FALSE)+ROW()-2))=Switch!$D$35,INDIRECT(\"a\" & (VLOOKUP(Switch!$D$35,$F$2:$G$44,2,FALSE)+ROW()-2)),\"\")","v":{"$error":"#N/A"}},{"$f":"IF(INDIRECT(\"c\" & (VLOOKUP(Switch!$D$36,$F$2:$G$44,2,FALSE)+ROW()-2))=Switch!$D$36,INDIRECT(\"a\" & (VLOOKUP(Switch!$D$36,$F$2:$G$44,2,FALSE)+ROW()-2)),\"\")","v":{"$error":"#N/A"}},{"$f":"IF(INDIRECT(\"c\" & (VLOOKUP(Switch!$D$37,$F$2:$G$44,2,FALSE)+ROW()-2))=Switch!$D$37,INDIRECT(\"a\" & (VLOOKUP(Switch!$D$37,$F$2:$G$44,2,FALSE)+ROW()-2)),\"\")","v":{"$error":"#N/A"}},{"$f":"IF(INDIRECT(\"c\" & (VLOOKUP(Switch!$D$38,$F$2:$G$44,2,FALSE)+ROW()-2))=Switch!$D$38,INDIRECT(\"a\" & (VLOOKUP(Switch!$D$38,$F$2:$G$44,2,FALSE)+ROW()-2)),\"\")","v":{"$error":"#N/A"}},{"$f":"IF(INDIRECT(\"c\" & (VLOOKUP(Switch!$D$39,$F$2:$G$44,2,FALSE)+ROW()-2))=Switch!$D$39,INDIRECT(\"a\" & (VLOOKUP(Switch!$D$39,$F$2:$G$44,2,FALSE)+ROW()-2)),\"\")","v":{"$error":"#N/A"}},{"$f":"IF(INDIRECT(\"c\" & (VLOOKUP(Switch!$D$40,$F$2:$G$44,2,FALSE)+ROW()-2))=Switch!$D$40,INDIRECT(\"a\" & (VLOOKUP(Switch!$D$40,$F$2:$G$44,2,FALSE)+ROW()-2)),\"\")","v":{"$error":"#N/A"}},{"$f":"IF(INDIRECT(\"c\" & (VLOOKUP(Switch!$D$52,$F$2:$G$44,2,FALSE)+ROW()-2))=Switch!$D$52,INDIRECT(\"a\" & (VLOOKUP(Switch!$D$52,$F$2:$G$44,2,FALSE)+ROW()-2)),\"\")","v":{"$error":"#N/A"}},{"$f":"IF(INDIRECT(\"c\" & (VLOOKUP(Switch!$D$53,$F$2:$G$44,2,FALSE)+ROW()-2))=Switch!$D$53,INDIRECT(\"a\" & (VLOOKUP(Switch!$D$53,$F$2:$G$44,2,FALSE)+ROW()-2)),\"\")","v":{"$error":"#N/A"}},{"$f":"IF(INDIRECT(\"c\" & (VLOOKUP(Switch!$D$54,$F$2:$G$44,2,FALSE)+ROW()-2))=Switch!$D$54,INDIRECT(\"a\" & (VLOOKUP(Switch!$D$54,$F$2:$G$44,2,FALSE)+ROW()-2)),\"\")","v":{"$error":"#N/A"}},{"$f":"IF(INDIRECT(\"c\" & (VLOOKUP(Switch!$D$55,$F$2:$G$44,2,FALSE)+ROW()-2))=Switch!$D$55,INDIRECT(\"a\" & (VLOOKUP(Switch!$D$55,$F$2:$G$44,2,FALSE)+ROW()-2)),\"\")","v":{"$error":"#N/A"}},{"$f":"IF(INDIRECT(\"c\" & (VLOOKUP(Switch!$D$56,$F$2:$G$44,2,FALSE)+ROW()-2))=Switch!$D$56,INDIRECT(\"a\" & (VLOOKUP(Switch!$D$56,$F$2:$G$44,2,FALSE)+ROW()-2)),\"\")","v":{"$error":"#N/A"}},{"$f":"IF(INDIRECT(\"c\" & (VLOOKUP(Switch!$D$57,$F$2:$G$44,2,FALSE)+ROW()-2))=Switch!$D$57,INDIRECT(\"a\" & (VLOOKUP(Switch!$D$57,$F$2:$G$44,2,FALSE)+ROW()-2)),\"\")","v":{"$error":"#N/A"}},{"$f":"IF(INDIRECT(\"c\" & (VLOOKUP(Switch!$D$58,$F$2:$G$44,2,FALSE)+ROW()-2))=Switch!$D$58,INDIRECT(\"a\" & (VLOOKUP(Switch!$D$58,$F$2:$G$44,2,FALSE)+ROW()-2)),\"\")","v":{"$error":"#N/A"}},{"$f":"IF(INDIRECT(\"c\" & (VLOOKUP(Switch!$D$59,$F$2:$G$44,2,FALSE)+ROW()-2))=Switch!$D$59,INDIRECT(\"a\" & (VLOOKUP(Switch!$D$59,$F$2:$G$44,2,FALSE)+ROW()-2)),\"\")","v":{"$error":"#N/A"}},{"$f":"IF(INDIRECT(\"c\" & (VLOOKUP(Switch!$D$60,$F$2:$G$44,2,FALSE)+ROW()-2))=Switch!$D$60,INDIRECT(\"a\" & (VLOOKUP(Switch!$D$60,$F$2:$G$44,2,FALSE)+ROW()-2)),\"\")","v":{"$error":"#N/A"}},{"$f":"IF(INDIRECT(\"c\" & (VLOOKUP(Switch!$D$61,$F$2:$G$44,2,FALSE)+ROW()-2))=Switch!$D$61,INDIRECT(\"a\" & (VLOOKUP(Switch!$D$61,$F$2:$G$44,2,FALSE)+ROW()-2)),\"\")","v":{"$error":"#N/A"}},{"$f":"IF(INDIRECT(\"c\" & (VLOOKUP(Switch!$D$62,$F$2:$G$44,2,FALSE)+ROW()-2))=Switch!$D$62,INDIRECT(\"a\" & (VLOOKUP(Switch!$D$62,$F$2:$G$44,2,FALSE)+ROW()-2)),\"\")","v":{"$error":"#N/A"}},{"$f":"IF(INDIRECT(\"c\" & (VLOOKUP(Switch!$D$63,$F$2:$G$44,2,FALSE)+ROW()-2))=Switch!$D$63,INDIRECT(\"a\" & (VLOOKUP(Switch!$D$63,$F$2:$G$44,2,FALSE)+ROW()-2)),\"\")","v":{"$error":"#N/A"}},{"$f":"IF(INDIRECT(\"c\" & (VLOOKUP(Switch!$D$64,$F$2:$G$44,2,FALSE)+ROW()-2))=Switch!$D$64,INDIRECT(\"a\" & (VLOOKUP(Switch!$D$64,$F$2:$G$44,2,FALSE)+ROW()-2)),\"\")","v":{"$error":"#N/A"}},{"$f":"IF(INDIRECT(\"c\" & (VLOOKUP(Switch!$D$65,$F$2:$G$44,2,FALSE)+ROW()-2))=Switch!$D$65,INDIRECT(\"a\" & (VLOOKUP(Switch!$D$65,$F$2:$G$44,2,FALSE)+ROW()-2)),\"\")","v":{"$error":"#N/A"}},{"$f":"IF(INDIRECT(\"c\" & (VLOOKUP(Switch!$D$66,$F$2:$G$44,2,FALSE)+ROW()-2))=Switch!$D$66,INDIRECT(\"a\" & (VLOOKUP(Switch!$D$66,$F$2:$G$44,2,FALSE)+ROW()-2)),\"\")","v":{"$error":"#N/A"}}]
["Old Mutual Investors Fund","ODIB1","Old Mutual Unit Trust Managers Limited",{"$f":"ROW()","v":422},null,null,{"$f":"VLOOKUP(F422,$C$2:$D$637,2,FALSE)","v":{"$error":"#N/A"}},{"$f":"IF(INDIRECT(\"c\" & (VLOOKUP(Switch!$D$26,$F$2:$G$44,2,FALSE)+ROW()-2))=Switch!$D$26,INDIRECT(\"a\" & (VLOOKUP(Switch!$D$26,$F$2:$G$44,2,FALSE)+ROW()-2)),\"\")","v":{"$error":"#N/A"}},{"$f":"IF(INDIRECT(\"c\" & (VLOOKUP(Switch!$D$27,$F$2:$G$44,2,FALSE)+ROW()-2))=Switch!$D$27,INDIRECT(\"a\" & (VLOOKUP(Switch!$D$27,$F$2:$G$44,2,FALSE)+ROW()-2)),\"\")","v":{"$error":"#N/A"}},{"$f":"IF(INDIRECT(\"c\" & (VLOOKUP(Switch!$D$28,$F$2:$G$44,2,FALSE)+ROW()-2))=Switch!$D$28,INDIRECT(\"a\" & (VLOOKUP(Switch!$D$28,$F$2:$G$44,2,FALSE)+ROW()-2)),\"\")","v":{"$error":"#N/A"}},{"$f":"IF(INDIRECT(\"c\" & (VLOOKUP(Switch!$D$29,$F$2:$G$44,2,FALSE)+ROW()-2))=Switch!$D$29,INDIRECT(\"a\" & (VLOOKUP(Switch!$D$29,$F$2:$G$44,2,FALSE)+ROW()-2)),\"\")","v":{"$error":"#N/A"}},{"$f":"IF(INDIRECT(\"c\" & (VLOOKUP(Switch!$D$30,$F$2:$G$44,2,FALSE)+ROW()-2))=Switch!$D$30,INDIRECT(\"a\" & (VLOOKUP(Switch!$D$30,$F$2:$G$44,2,FALSE)+ROW()-2)),\"\")","v":{"$error":"#N/A"}},{"$f":"IF(INDIRECT(\"c\" & (VLOOKUP(Switch!$D$31,$F$2:$G$44,2,FALSE)+ROW()-2))=Switch!$D$31,INDIRECT(\"a\" & (VLOOKUP(Switch!$D$31,$F$2:$G$44,2,FALSE)+ROW()-2)),\"\")","v":{"$error":"#N/A"}},{"$f":"IF(INDIRECT(\"c\" & (VLOOKUP(Switch!$D$32,$F$2:$G$44,2,FALSE)+ROW()-2))=Switch!$D$32,INDIRECT(\"a\" & (VLOOKUP(Switch!$D$32,$F$2:$G$44,2,FALSE)+ROW()-2)),\"\")","v":{"$error":"#N/A"}},{"$f":"IF(INDIRECT(\"c\" & (VLOOKUP(Switch!$D$33,$F$2:$G$44,2,FALSE)+ROW()-2))=Switch!$D$33,INDIRECT(\"a\" & (VLOOKUP(Switch!$D$33,$F$2:$G$44,2,FALSE)+ROW()-2)),\"\")","v":{"$error":"#N/A"}},{"$f":"IF(INDIRECT(\"c\" & (VLOOKUP(Switch!$D$34,$F$2:$G$44,2,FALSE)+ROW()-2))=Switch!$D$34,INDIRECT(\"a\" & (VLOOKUP(Switch!$D$34,$F$2:$G$44,2,FALSE)+ROW()-2)),\"\")","v":{"$error":"#N/A"}},{"$f":"IF(INDIRECT(\"c\" & (VLOOKUP(Switch!$D$35,$F$2:$G$44,2,FALSE)+ROW()-2))=Switch!$D$35,INDIRECT(\"a\" & (VLOOKUP(Switch!$D$35,$F$2:$G$44,2,FALSE)+ROW()-2)),\"\")","v":{"$error":"#N/A"}},{"$f":"IF(INDIRECT(\"c\" & (VLOOKUP(Switch!$D$36,$F$2:$G$44,2,FALSE)+ROW()-2))=Switch!$D$36,INDIRECT(\"a\" & (VLOOKUP(Switch!$D$36,$F$2:$G$44,2,FALSE)+ROW()-2)),\"\")","v":{"$error":"#N/A"}},{"$f":"IF(INDIRECT(\"c\" & (VLOOKUP(Switch!$D$37,$F$2:$G$44,2,FALSE)+ROW()-2))=Switch!$D$37,INDIRECT(\"a\" & (VLOOKUP(Switch!$D$37,$F$2:$G$44,2,FALSE)+ROW()-2)),\"\")","v":{"$error":"#N/A"}},{"$f":"IF(INDIRECT(\"c\" & (VLOOKUP(Switch!$D$38,$F$2:$G$44,2,FALSE)+ROW()-2))=Switch!$D$38,INDIRECT(\"a\" & (VLOOKUP(Switch!$D$38,$F$2:$G$44,2,FALSE)+ROW()-2)),\"\")","v":{"$error":"#N/A"}},{"$f":"IF(INDIRECT(\"c\" & (VLOOKUP(Switch!$D$39,$F$2:$G$44,2,FALSE)+ROW()-2))=Switch!$D$39,INDIRECT(\"a\" & (VLOOKUP(Switch!$D$39,$F$2:$G$44,2,FALSE)+ROW()-2)),\"\")","v":{"$error":"#N/A"}},{"$f":"IF(INDIRECT(\"c\" & (VLOOKUP(Switch!$D$40,$F$2:$G$44,2,FALSE)+ROW()-2))=Switch!$D$40,INDIRECT(\"a\" & (VLOOKUP(Switch!$D$40,$F$2:$G$44,2,FALSE)+ROW()-2)),\"\")","v":{"$error":"#N/A"}},{"$f":"IF(INDIRECT(\"c\" & (VLOOKUP(Switch!$D$52,$F$2:$G$44,2,FALSE)+ROW()-2))=Switch!$D$52,INDIRECT(\"a\" & (VLOOKUP(Switch!$D$52,$F$2:$G$44,2,FALSE)+ROW()-2)),\"\")","v":{"$error":"#N/A"}},{"$f":"IF(INDIRECT(\"c\" & (VLOOKUP(Switch!$D$53,$F$2:$G$44,2,FALSE)+ROW()-2))=Switch!$D$53,INDIRECT(\"a\" & (VLOOKUP(Switch!$D$53,$F$2:$G$44,2,FALSE)+ROW()-2)),\"\")","v":{"$error":"#N/A"}},{"$f":"IF(INDIRECT(\"c\" & (VLOOKUP(Switch!$D$54,$F$2:$G$44,2,FALSE)+ROW()-2))=Switch!$D$54,INDIRECT(\"a\" & (VLOOKUP(Switch!$D$54,$F$2:$G$44,2,FALSE)+ROW()-2)),\"\")","v":{"$error":"#N/A"}},{"$f":"IF(INDIRECT(\"c\" & (VLOOKUP(Switch!$D$55,$F$2:$G$44,2,FALSE)+ROW()-2))=Switch!$D$55,INDIRECT(\"a\" & (VLOOKUP(Switch!$D$55,$F$2:$G$44,2,FALSE)+ROW()-2)),\"\")","v":{"$error":"#N/A"}},{"$f":"IF(INDIRECT(\"c\" & (VLOOKUP(Switch!$D$56,$F$2:$G$44,2,FALSE)+ROW()-2))=Switch!$D$56,INDIRECT(\"a\" & (VLOOKUP(Switch!$D$56,$F$2:$G$44,2,FALSE)+ROW()-2)),\"\")","v":{"$error":"#N/A"}},{"$f":"IF(INDIRECT(\"c\" & (VLOOKUP(Switch!$D$57,$F$2:$G$44,2,FALSE)+ROW()-2))=Switch!$D$57,INDIRECT(\"a\" & (VLOOKUP(Switch!$D$57,$F$2:$G$44,2,FALSE)+ROW()-2)),\"\")","v":{"$error":"#N/A"}},{"$f":"IF(INDIRECT(\"c\" & (VLOOKUP(Switch!$D$58,$F$2:$G$44,2,FALSE)+ROW()-2))=Switch!$D$58,INDIRECT(\"a\" & (VLOOKUP(Switch!$D$58,$F$2:$G$44,2,FALSE)+ROW()-2)),\"\")","v":{"$error":"#N/A"}},{"$f":"IF(INDIRECT(\"c\" & (VLOOKUP(Switch!$D$59,$F$2:$G$44,2,FALSE)+ROW()-2))=Switch!$D$59,INDIRECT(\"a\" & (VLOOKUP(Switch!$D$59,$F$2:$G$44,2,FALSE)+ROW()-2)),\"\")","v":{"$error":"#N/A"}},{"$f":"IF(INDIRECT(\"c\" & (VLOOKUP(Switch!$D$60,$F$2:$G$44,2,FALSE)+ROW()-2))=Switch!$D$60,INDIRECT(\"a\" & (VLOOKUP(Switch!$D$60,$F$2:$G$44,2,FALSE)+ROW()-2)),\"\")","v":{"$error":"#N/A"}},{"$f":"IF(INDIRECT(\"c\" & (VLOOKUP(Switch!$D$61,$F$2:$G$44,2,FALSE)+ROW()-2))=Switch!$D$61,INDIRECT(\"a\" & (VLOOKUP(Switch!$D$61,$F$2:$G$44,2,FALSE)+ROW()-2)),\"\")","v":{"$error":"#N/A"}},{"$f":"IF(INDIRECT(\"c\" & (VLOOKUP(Switch!$D$62,$F$2:$G$44,2,FALSE)+ROW()-2))=Switch!$D$62,INDIRECT(\"a\" & (VLOOKUP(Switch!$D$62,$F$2:$G$44,2,FALSE)+ROW()-2)),\"\")","v":{"$error":"#N/A"}},{"$f":"IF(INDIRECT(\"c\" & (VLOOKUP(Switch!$D$63,$F$2:$G$44,2,FALSE)+ROW()-2))=Switch!$D$63,INDIRECT(\"a\" & (VLOOKUP(Switch!$D$63,$F$2:$G$44,2,FALSE)+ROW()-2)),\"\")","v":{"$error":"#N/A"}},{"$f":"IF(INDIRECT(\"c\" & (VLOOKUP(Switch!$D$64,$F$2:$G$44,2,FALSE)+ROW()-2))=Switch!$D$64,INDIRECT(\"a\" & (VLOOKUP(Switch!$D$64,$F$2:$G$44,2,FALSE)+ROW()-2)),\"\")","v":{"$error":"#N/A"}},{"$f":"IF(INDIRECT(\"c\" & (VLOOKUP(Switch!$D$65,$F$2:$G$44,2,FALSE)+ROW()-2))=Switch!$D$65,INDIRECT(\"a\" & (VLOOKUP(Switch!$D$65,$F$2:$G$44,2,FALSE)+ROW()-2)),\"\")","v":{"$error":"#N/A"}},{"$f":"IF(INDIRECT(\"c\" & (VLOOKUP(Switch!$D$66,$F$2:$G$44,2,FALSE)+ROW()-2))=Switch!$D$66,INDIRECT(\"a\" & (VLOOKUP(Switch!$D$66,$F$2:$G$44,2,FALSE)+ROW()-2)),\"\")","v":{"$error":"#N/A"}}]
["Old Mutual Investors Fund Class A","ODIB1","Old Mutual Unit Trust Managers Limited",{"$f":"ROW()","v":423},null,null,{"$f":"VLOOKUP(F423,$C$2:$D$637,2,FALSE)","v":{"$error":"#N/A"}},{"$f":"IF(INDIRECT(\"c\" & (VLOOKUP(Switch!$D$26,$F$2:$G$44,2,FALSE)+ROW()-2))=Switch!$D$26,INDIRECT(\"a\" & (VLOOKUP(Switch!$D$26,$F$2:$G$44,2,FALSE)+ROW()-2)),\"\")","v":{"$error":"#N/A"}},{"$f":"IF(INDIRECT(\"c\" & (VLOOKUP(Switch!$D$27,$F$2:$G$44,2,FALSE)+ROW()-2))=Switch!$D$27,INDIRECT(\"a\" & (VLOOKUP(Switch!$D$27,$F$2:$G$44,2,FALSE)+ROW()-2)),\"\")","v":{"$error":"#N/A"}},{"$f":"IF(INDIRECT(\"c\" & (VLOOKUP(Switch!$D$28,$F$2:$G$44,2,FALSE)+ROW()-2))=Switch!$D$28,INDIRECT(\"a\" & (VLOOKUP(Switch!$D$28,$F$2:$G$44,2,FALSE)+ROW()-2)),\"\")","v":{"$error":"#N/A"}},{"$f":"IF(INDIRECT(\"c\" & (VLOOKUP(Switch!$D$29,$F$2:$G$44,2,FALSE)+ROW()-2))=Switch!$D$29,INDIRECT(\"a\" & (VLOOKUP(Switch!$D$29,$F$2:$G$44,2,FALSE)+ROW()-2)),\"\")","v":{"$error":"#N/A"}},{"$f":"IF(INDIRECT(\"c\" & (VLOOKUP(Switch!$D$30,$F$2:$G$44,2,FALSE)+ROW()-2))=Switch!$D$30,INDIRECT(\"a\" & (VLOOKUP(Switch!$D$30,$F$2:$G$44,2,FALSE)+ROW()-2)),\"\")","v":{"$error":"#N/A"}},{"$f":"IF(INDIRECT(\"c\" & (VLOOKUP(Switch!$D$31,$F$2:$G$44,2,FALSE)+ROW()-2))=Switch!$D$31,INDIRECT(\"a\" & (VLOOKUP(Switch!$D$31,$F$2:$G$44,2,FALSE)+ROW()-2)),\"\")","v":{"$error":"#N/A"}},{"$f":"IF(INDIRECT(\"c\" & (VLOOKUP(Switch!$D$32,$F$2:$G$44,2,FALSE)+ROW()-2))=Switch!$D$32,INDIRECT(\"a\" & (VLOOKUP(Switch!$D$32,$F$2:$G$44,2,FALSE)+ROW()-2)),\"\")","v":{"$error":"#N/A"}},{"$f":"IF(INDIRECT(\"c\" & (VLOOKUP(Switch!$D$33,$F$2:$G$44,2,FALSE)+ROW()-2))=Switch!$D$33,INDIRECT(\"a\" & (VLOOKUP(Switch!$D$33,$F$2:$G$44,2,FALSE)+ROW()-2)),\"\")","v":{"$error":"#N/A"}},{"$f":"IF(INDIRECT(\"c\" & (VLOOKUP(Switch!$D$34,$F$2:$G$44,2,FALSE)+ROW()-2))=Switch!$D$34,INDIRECT(\"a\" & (VLOOKUP(Switch!$D$34,$F$2:$G$44,2,FALSE)+ROW()-2)),\"\")","v":{"$error":"#N/A"}},{"$f":"IF(INDIRECT(\"c\" & (VLOOKUP(Switch!$D$35,$F$2:$G$44,2,FALSE)+ROW()-2))=Switch!$D$35,INDIRECT(\"a\" & (VLOOKUP(Switch!$D$35,$F$2:$G$44,2,FALSE)+ROW()-2)),\"\")","v":{"$error":"#N/A"}},{"$f":"IF(INDIRECT(\"c\" & (VLOOKUP(Switch!$D$36,$F$2:$G$44,2,FALSE)+ROW()-2))=Switch!$D$36,INDIRECT(\"a\" & (VLOOKUP(Switch!$D$36,$F$2:$G$44,2,FALSE)+ROW()-2)),\"\")","v":{"$error":"#N/A"}},{"$f":"IF(INDIRECT(\"c\" & (VLOOKUP(Switch!$D$37,$F$2:$G$44,2,FALSE)+ROW()-2))=Switch!$D$37,INDIRECT(\"a\" & (VLOOKUP(Switch!$D$37,$F$2:$G$44,2,FALSE)+ROW()-2)),\"\")","v":{"$error":"#N/A"}},{"$f":"IF(INDIRECT(\"c\" & (VLOOKUP(Switch!$D$38,$F$2:$G$44,2,FALSE)+ROW()-2))=Switch!$D$38,INDIRECT(\"a\" & (VLOOKUP(Switch!$D$38,$F$2:$G$44,2,FALSE)+ROW()-2)),\"\")","v":{"$error":"#N/A"}},{"$f":"IF(INDIRECT(\"c\" & (VLOOKUP(Switch!$D$39,$F$2:$G$44,2,FALSE)+ROW()-2))=Switch!$D$39,INDIRECT(\"a\" & (VLOOKUP(Switch!$D$39,$F$2:$G$44,2,FALSE)+ROW()-2)),\"\")","v":{"$error":"#N/A"}},{"$f":"IF(INDIRECT(\"c\" & (VLOOKUP(Switch!$D$40,$F$2:$G$44,2,FALSE)+ROW()-2))=Switch!$D$40,INDIRECT(\"a\" & (VLOOKUP(Switch!$D$40,$F$2:$G$44,2,FALSE)+ROW()-2)),\"\")","v":{"$error":"#N/A"}},{"$f":"IF(INDIRECT(\"c\" & (VLOOKUP(Switch!$D$52,$F$2:$G$44,2,FALSE)+ROW()-2))=Switch!$D$52,INDIRECT(\"a\" & (VLOOKUP(Switch!$D$52,$F$2:$G$44,2,FALSE)+ROW()-2)),\"\")","v":{"$error":"#N/A"}},{"$f":"IF(INDIRECT(\"c\" & (VLOOKUP(Switch!$D$53,$F$2:$G$44,2,FALSE)+ROW()-2))=Switch!$D$53,INDIRECT(\"a\" & (VLOOKUP(Switch!$D$53,$F$2:$G$44,2,FALSE)+ROW()-2)),\"\")","v":{"$error":"#N/A"}},{"$f":"IF(INDIRECT(\"c\" & (VLOOKUP(Switch!$D$54,$F$2:$G$44,2,FALSE)+ROW()-2))=Switch!$D$54,INDIRECT(\"a\" & (VLOOKUP(Switch!$D$54,$F$2:$G$44,2,FALSE)+ROW()-2)),\"\")","v":{"$error":"#N/A"}},{"$f":"IF(INDIRECT(\"c\" & (VLOOKUP(Switch!$D$55,$F$2:$G$44,2,FALSE)+ROW()-2))=Switch!$D$55,INDIRECT(\"a\" & (VLOOKUP(Switch!$D$55,$F$2:$G$44,2,FALSE)+ROW()-2)),\"\")","v":{"$error":"#N/A"}},{"$f":"IF(INDIRECT(\"c\" & (VLOOKUP(Switch!$D$56,$F$2:$G$44,2,FALSE)+ROW()-2))=Switch!$D$56,INDIRECT(\"a\" & (VLOOKUP(Switch!$D$56,$F$2:$G$44,2,FALSE)+ROW()-2)),\"\")","v":{"$error":"#N/A"}},{"$f":"IF(INDIRECT(\"c\" & (VLOOKUP(Switch!$D$57,$F$2:$G$44,2,FALSE)+ROW()-2))=Switch!$D$57,INDIRECT(\"a\" & (VLOOKUP(Switch!$D$57,$F$2:$G$44,2,FALSE)+ROW()-2)),\"\")","v":{"$error":"#N/A"}},{"$f":"IF(INDIRECT(\"c\" & (VLOOKUP(Switch!$D$58,$F$2:$G$44,2,FALSE)+ROW()-2))=Switch!$D$58,INDIRECT(\"a\" & (VLOOKUP(Switch!$D$58,$F$2:$G$44,2,FALSE)+ROW()-2)),\"\")","v":{"$error":"#N/A"}},{"$f":"IF(INDIRECT(\"c\" & (VLOOKUP(Switch!$D$59,$F$2:$G$44,2,FALSE)+ROW()-2))=Switch!$D$59,INDIRECT(\"a\" & (VLOOKUP(Switch!$D$59,$F$2:$G$44,2,FALSE)+ROW()-2)),\"\")","v":{"$error":"#N/A"}},{"$f":"IF(INDIRECT(\"c\" & (VLOOKUP(Switch!$D$60,$F$2:$G$44,2,FALSE)+ROW()-2))=Switch!$D$60,INDIRECT(\"a\" & (VLOOKUP(Switch!$D$60,$F$2:$G$44,2,FALSE)+ROW()-2)),\"\")","v":{"$error":"#N/A"}},{"$f":"IF(INDIRECT(\"c\" & (VLOOKUP(Switch!$D$61,$F$2:$G$44,2,FALSE)+ROW()-2))=Switch!$D$61,INDIRECT(\"a\" & (VLOOKUP(Switch!$D$61,$F$2:$G$44,2,FALSE)+ROW()-2)),\"\")","v":{"$error":"#N/A"}},{"$f":"IF(INDIRECT(\"c\" & (VLOOKUP(Switch!$D$62,$F$2:$G$44,2,FALSE)+ROW()-2))=Switch!$D$62,INDIRECT(\"a\" & (VLOOKUP(Switch!$D$62,$F$2:$G$44,2,FALSE)+ROW()-2)),\"\")","v":{"$error":"#N/A"}},{"$f":"IF(INDIRECT(\"c\" & (VLOOKUP(Switch!$D$63,$F$2:$G$44,2,FALSE)+ROW()-2))=Switch!$D$63,INDIRECT(\"a\" & (VLOOKUP(Switch!$D$63,$F$2:$G$44,2,FALSE)+ROW()-2)),\"\")","v":{"$error":"#N/A"}},{"$f":"IF(INDIRECT(\"c\" & (VLOOKUP(Switch!$D$64,$F$2:$G$44,2,FALSE)+ROW()-2))=Switch!$D$64,INDIRECT(\"a\" & (VLOOKUP(Switch!$D$64,$F$2:$G$44,2,FALSE)+ROW()-2)),\"\")","v":{"$error":"#N/A"}},{"$f":"IF(INDIRECT(\"c\" & (VLOOKUP(Switch!$D$65,$F$2:$G$44,2,FALSE)+ROW()-2))=Switch!$D$65,INDIRECT(\"a\" & (VLOOKUP(Switch!$D$65,$F$2:$G$44,2,FALSE)+ROW()-2)),\"\")","v":{"$error":"#N/A"}},{"$f":"IF(INDIRECT(\"c\" & (VLOOKUP(Switch!$D$66,$F$2:$G$44,2,FALSE)+ROW()-2))=Switch!$D$66,INDIRECT(\"a\" & (VLOOKUP(Switch!$D$66,$F$2:$G$44,2,FALSE)+ROW()-2)),\"\")","v":{"$error":"#N/A"}}]
["Old Mutual Maximum Return Fund of Funds A","OMRFA","Old Mutual Unit Trust Managers Limited",{"$f":"ROW()","v":424},null,null,{"$f":"VLOOKUP(F424,$C$2:$D$637,2,FALSE)","v":{"$error":"#N/A"}},{"$f":"IF(INDIRECT(\"c\" & (VLOOKUP(Switch!$D$26,$F$2:$G$44,2,FALSE)+ROW()-2))=Switch!$D$26,INDIRECT(\"a\" & (VLOOKUP(Switch!$D$26,$F$2:$G$44,2,FALSE)+ROW()-2)),\"\")","v":{"$error":"#N/A"}},{"$f":"IF(INDIRECT(\"c\" & (VLOOKUP(Switch!$D$27,$F$2:$G$44,2,FALSE)+ROW()-2))=Switch!$D$27,INDIRECT(\"a\" & (VLOOKUP(Switch!$D$27,$F$2:$G$44,2,FALSE)+ROW()-2)),\"\")","v":{"$error":"#N/A"}},{"$f":"IF(INDIRECT(\"c\" & (VLOOKUP(Switch!$D$28,$F$2:$G$44,2,FALSE)+ROW()-2))=Switch!$D$28,INDIRECT(\"a\" & (VLOOKUP(Switch!$D$28,$F$2:$G$44,2,FALSE)+ROW()-2)),\"\")","v":{"$error":"#N/A"}},{"$f":"IF(INDIRECT(\"c\" & (VLOOKUP(Switch!$D$29,$F$2:$G$44,2,FALSE)+ROW()-2))=Switch!$D$29,INDIRECT(\"a\" & (VLOOKUP(Switch!$D$29,$F$2:$G$44,2,FALSE)+ROW()-2)),\"\")","v":{"$error":"#N/A"}},{"$f":"IF(INDIRECT(\"c\" & (VLOOKUP(Switch!$D$30,$F$2:$G$44,2,FALSE)+ROW()-2))=Switch!$D$30,INDIRECT(\"a\" & (VLOOKUP(Switch!$D$30,$F$2:$G$44,2,FALSE)+ROW()-2)),\"\")","v":{"$error":"#N/A"}},{"$f":"IF(INDIRECT(\"c\" & (VLOOKUP(Switch!$D$31,$F$2:$G$44,2,FALSE)+ROW()-2))=Switch!$D$31,INDIRECT(\"a\" & (VLOOKUP(Switch!$D$31,$F$2:$G$44,2,FALSE)+ROW()-2)),\"\")","v":{"$error":"#N/A"}},{"$f":"IF(INDIRECT(\"c\" & (VLOOKUP(Switch!$D$32,$F$2:$G$44,2,FALSE)+ROW()-2))=Switch!$D$32,INDIRECT(\"a\" & (VLOOKUP(Switch!$D$32,$F$2:$G$44,2,FALSE)+ROW()-2)),\"\")","v":{"$error":"#N/A"}},{"$f":"IF(INDIRECT(\"c\" & (VLOOKUP(Switch!$D$33,$F$2:$G$44,2,FALSE)+ROW()-2))=Switch!$D$33,INDIRECT(\"a\" & (VLOOKUP(Switch!$D$33,$F$2:$G$44,2,FALSE)+ROW()-2)),\"\")","v":{"$error":"#N/A"}},{"$f":"IF(INDIRECT(\"c\" & (VLOOKUP(Switch!$D$34,$F$2:$G$44,2,FALSE)+ROW()-2))=Switch!$D$34,INDIRECT(\"a\" & (VLOOKUP(Switch!$D$34,$F$2:$G$44,2,FALSE)+ROW()-2)),\"\")","v":{"$error":"#N/A"}},{"$f":"IF(INDIRECT(\"c\" & (VLOOKUP(Switch!$D$35,$F$2:$G$44,2,FALSE)+ROW()-2))=Switch!$D$35,INDIRECT(\"a\" & (VLOOKUP(Switch!$D$35,$F$2:$G$44,2,FALSE)+ROW()-2)),\"\")","v":{"$error":"#N/A"}},{"$f":"IF(INDIRECT(\"c\" & (VLOOKUP(Switch!$D$36,$F$2:$G$44,2,FALSE)+ROW()-2))=Switch!$D$36,INDIRECT(\"a\" & (VLOOKUP(Switch!$D$36,$F$2:$G$44,2,FALSE)+ROW()-2)),\"\")","v":{"$error":"#N/A"}},{"$f":"IF(INDIRECT(\"c\" & (VLOOKUP(Switch!$D$37,$F$2:$G$44,2,FALSE)+ROW()-2))=Switch!$D$37,INDIRECT(\"a\" & (VLOOKUP(Switch!$D$37,$F$2:$G$44,2,FALSE)+ROW()-2)),\"\")","v":{"$error":"#N/A"}},{"$f":"IF(INDIRECT(\"c\" & (VLOOKUP(Switch!$D$38,$F$2:$G$44,2,FALSE)+ROW()-2))=Switch!$D$38,INDIRECT(\"a\" & (VLOOKUP(Switch!$D$38,$F$2:$G$44,2,FALSE)+ROW()-2)),\"\")","v":{"$error":"#N/A"}},{"$f":"IF(INDIRECT(\"c\" & (VLOOKUP(Switch!$D$39,$F$2:$G$44,2,FALSE)+ROW()-2))=Switch!$D$39,INDIRECT(\"a\" & (VLOOKUP(Switch!$D$39,$F$2:$G$44,2,FALSE)+ROW()-2)),\"\")","v":{"$error":"#N/A"}},{"$f":"IF(INDIRECT(\"c\" & (VLOOKUP(Switch!$D$40,$F$2:$G$44,2,FALSE)+ROW()-2))=Switch!$D$40,INDIRECT(\"a\" & (VLOOKUP(Switch!$D$40,$F$2:$G$44,2,FALSE)+ROW()-2)),\"\")","v":{"$error":"#N/A"}},{"$f":"IF(INDIRECT(\"c\" & (VLOOKUP(Switch!$D$52,$F$2:$G$44,2,FALSE)+ROW()-2))=Switch!$D$52,INDIRECT(\"a\" & (VLOOKUP(Switch!$D$52,$F$2:$G$44,2,FALSE)+ROW()-2)),\"\")","v":{"$error":"#N/A"}},{"$f":"IF(INDIRECT(\"c\" & (VLOOKUP(Switch!$D$53,$F$2:$G$44,2,FALSE)+ROW()-2))=Switch!$D$53,INDIRECT(\"a\" & (VLOOKUP(Switch!$D$53,$F$2:$G$44,2,FALSE)+ROW()-2)),\"\")","v":{"$error":"#N/A"}},{"$f":"IF(INDIRECT(\"c\" & (VLOOKUP(Switch!$D$54,$F$2:$G$44,2,FALSE)+ROW()-2))=Switch!$D$54,INDIRECT(\"a\" & (VLOOKUP(Switch!$D$54,$F$2:$G$44,2,FALSE)+ROW()-2)),\"\")","v":{"$error":"#N/A"}},{"$f":"IF(INDIRECT(\"c\" & (VLOOKUP(Switch!$D$55,$F$2:$G$44,2,FALSE)+ROW()-2))=Switch!$D$55,INDIRECT(\"a\" & (VLOOKUP(Switch!$D$55,$F$2:$G$44,2,FALSE)+ROW()-2)),\"\")","v":{"$error":"#N/A"}},{"$f":"IF(INDIRECT(\"c\" & (VLOOKUP(Switch!$D$56,$F$2:$G$44,2,FALSE)+ROW()-2))=Switch!$D$56,INDIRECT(\"a\" & (VLOOKUP(Switch!$D$56,$F$2:$G$44,2,FALSE)+ROW()-2)),\"\")","v":{"$error":"#N/A"}},{"$f":"IF(INDIRECT(\"c\" & (VLOOKUP(Switch!$D$57,$F$2:$G$44,2,FALSE)+ROW()-2))=Switch!$D$57,INDIRECT(\"a\" & (VLOOKUP(Switch!$D$57,$F$2:$G$44,2,FALSE)+ROW()-2)),\"\")","v":{"$error":"#N/A"}},{"$f":"IF(INDIRECT(\"c\" & (VLOOKUP(Switch!$D$58,$F$2:$G$44,2,FALSE)+ROW()-2))=Switch!$D$58,INDIRECT(\"a\" & (VLOOKUP(Switch!$D$58,$F$2:$G$44,2,FALSE)+ROW()-2)),\"\")","v":{"$error":"#N/A"}},{"$f":"IF(INDIRECT(\"c\" & (VLOOKUP(Switch!$D$59,$F$2:$G$44,2,FALSE)+ROW()-2))=Switch!$D$59,INDIRECT(\"a\" & (VLOOKUP(Switch!$D$59,$F$2:$G$44,2,FALSE)+ROW()-2)),\"\")","v":{"$error":"#N/A"}},{"$f":"IF(INDIRECT(\"c\" & (VLOOKUP(Switch!$D$60,$F$2:$G$44,2,FALSE)+ROW()-2))=Switch!$D$60,INDIRECT(\"a\" & (VLOOKUP(Switch!$D$60,$F$2:$G$44,2,FALSE)+ROW()-2)),\"\")","v":{"$error":"#N/A"}},{"$f":"IF(INDIRECT(\"c\" & (VLOOKUP(Switch!$D$61,$F$2:$G$44,2,FALSE)+ROW()-2))=Switch!$D$61,INDIRECT(\"a\" & (VLOOKUP(Switch!$D$61,$F$2:$G$44,2,FALSE)+ROW()-2)),\"\")","v":{"$error":"#N/A"}},{"$f":"IF(INDIRECT(\"c\" & (VLOOKUP(Switch!$D$62,$F$2:$G$44,2,FALSE)+ROW()-2))=Switch!$D$62,INDIRECT(\"a\" & (VLOOKUP(Switch!$D$62,$F$2:$G$44,2,FALSE)+ROW()-2)),\"\")","v":{"$error":"#N/A"}},{"$f":"IF(INDIRECT(\"c\" & (VLOOKUP(Switch!$D$63,$F$2:$G$44,2,FALSE)+ROW()-2))=Switch!$D$63,INDIRECT(\"a\" & (VLOOKUP(Switch!$D$63,$F$2:$G$44,2,FALSE)+ROW()-2)),\"\")","v":{"$error":"#N/A"}},{"$f":"IF(INDIRECT(\"c\" & (VLOOKUP(Switch!$D$64,$F$2:$G$44,2,FALSE)+ROW()-2))=Switch!$D$64,INDIRECT(\"a\" & (VLOOKUP(Switch!$D$64,$F$2:$G$44,2,FALSE)+ROW()-2)),\"\")","v":{"$error":"#N/A"}},{"$f":"IF(INDIRECT(\"c\" & (VLOOKUP(Switch!$D$65,$F$2:$G$44,2,FALSE)+ROW()-2))=Switch!$D$65,INDIRECT(\"a\" & (VLOOKUP(Switch!$D$65,$F$2:$G$44,2,FALSE)+ROW()-2)),\"\")","v":{"$error":"#N/A"}},{"$f":"IF(INDIRECT(\"c\" & (VLOOKUP(Switch!$D$66,$F$2:$G$44,2,FALSE)+ROW()-2))=Switch!$D$66,INDIRECT(\"a\" & (VLOOKUP(Switch!$D$66,$F$2:$G$44,2,FALSE)+ROW()-2)),\"\")","v":{"$error":"#N/A"}}]
["Old Mutual Maximum Return Fund of Funds B1","OMRFA","Old Mutual Unit Trust Managers Limited",{"$f":"ROW()","v":425},null,null,{"$f":"VLOOKUP(F425,$C$2:$D$637,2,FALSE)","v":{"$error":"#N/A"}},{"$f":"IF(INDIRECT(\"c\" & (VLOOKUP(Switch!$D$26,$F$2:$G$44,2,FALSE)+ROW()-2))=Switch!$D$26,INDIRECT(\"a\" & (VLOOKUP(Switch!$D$26,$F$2:$G$44,2,FALSE)+ROW()-2)),\"\")","v":{"$error":"#N/A"}},{"$f":"IF(INDIRECT(\"c\" & (VLOOKUP(Switch!$D$27,$F$2:$G$44,2,FALSE)+ROW()-2))=Switch!$D$27,INDIRECT(\"a\" & (VLOOKUP(Switch!$D$27,$F$2:$G$44,2,FALSE)+ROW()-2)),\"\")","v":{"$error":"#N/A"}},{"$f":"IF(INDIRECT(\"c\" & (VLOOKUP(Switch!$D$28,$F$2:$G$44,2,FALSE)+ROW()-2))=Switch!$D$28,INDIRECT(\"a\" & (VLOOKUP(Switch!$D$28,$F$2:$G$44,2,FALSE)+ROW()-2)),\"\")","v":{"$error":"#N/A"}},{"$f":"IF(INDIRECT(\"c\" & (VLOOKUP(Switch!$D$29,$F$2:$G$44,2,FALSE)+ROW()-2))=Switch!$D$29,INDIRECT(\"a\" & (VLOOKUP(Switch!$D$29,$F$2:$G$44,2,FALSE)+ROW()-2)),\"\")","v":{"$error":"#N/A"}},{"$f":"IF(INDIRECT(\"c\" & (VLOOKUP(Switch!$D$30,$F$2:$G$44,2,FALSE)+ROW()-2))=Switch!$D$30,INDIRECT(\"a\" & (VLOOKUP(Switch!$D$30,$F$2:$G$44,2,FALSE)+ROW()-2)),\"\")","v":{"$error":"#N/A"}},{"$f":"IF(INDIRECT(\"c\" & (VLOOKUP(Switch!$D$31,$F$2:$G$44,2,FALSE)+ROW()-2))=Switch!$D$31,INDIRECT(\"a\" & (VLOOKUP(Switch!$D$31,$F$2:$G$44,2,FALSE)+ROW()-2)),\"\")","v":{"$error":"#N/A"}},{"$f":"IF(INDIRECT(\"c\" & (VLOOKUP(Switch!$D$32,$F$2:$G$44,2,FALSE)+ROW()-2))=Switch!$D$32,INDIRECT(\"a\" & (VLOOKUP(Switch!$D$32,$F$2:$G$44,2,FALSE)+ROW()-2)),\"\")","v":{"$error":"#N/A"}},{"$f":"IF(INDIRECT(\"c\" & (VLOOKUP(Switch!$D$33,$F$2:$G$44,2,FALSE)+ROW()-2))=Switch!$D$33,INDIRECT(\"a\" & (VLOOKUP(Switch!$D$33,$F$2:$G$44,2,FALSE)+ROW()-2)),\"\")","v":{"$error":"#N/A"}},{"$f":"IF(INDIRECT(\"c\" & (VLOOKUP(Switch!$D$34,$F$2:$G$44,2,FALSE)+ROW()-2))=Switch!$D$34,INDIRECT(\"a\" & (VLOOKUP(Switch!$D$34,$F$2:$G$44,2,FALSE)+ROW()-2)),\"\")","v":{"$error":"#N/A"}},{"$f":"IF(INDIRECT(\"c\" & (VLOOKUP(Switch!$D$35,$F$2:$G$44,2,FALSE)+ROW()-2))=Switch!$D$35,INDIRECT(\"a\" & (VLOOKUP(Switch!$D$35,$F$2:$G$44,2,FALSE)+ROW()-2)),\"\")","v":{"$error":"#N/A"}},{"$f":"IF(INDIRECT(\"c\" & (VLOOKUP(Switch!$D$36,$F$2:$G$44,2,FALSE)+ROW()-2))=Switch!$D$36,INDIRECT(\"a\" & (VLOOKUP(Switch!$D$36,$F$2:$G$44,2,FALSE)+ROW()-2)),\"\")","v":{"$error":"#N/A"}},{"$f":"IF(INDIRECT(\"c\" & (VLOOKUP(Switch!$D$37,$F$2:$G$44,2,FALSE)+ROW()-2))=Switch!$D$37,INDIRECT(\"a\" & (VLOOKUP(Switch!$D$37,$F$2:$G$44,2,FALSE)+ROW()-2)),\"\")","v":{"$error":"#N/A"}},{"$f":"IF(INDIRECT(\"c\" & (VLOOKUP(Switch!$D$38,$F$2:$G$44,2,FALSE)+ROW()-2))=Switch!$D$38,INDIRECT(\"a\" & (VLOOKUP(Switch!$D$38,$F$2:$G$44,2,FALSE)+ROW()-2)),\"\")","v":{"$error":"#N/A"}},{"$f":"IF(INDIRECT(\"c\" & (VLOOKUP(Switch!$D$39,$F$2:$G$44,2,FALSE)+ROW()-2))=Switch!$D$39,INDIRECT(\"a\" & (VLOOKUP(Switch!$D$39,$F$2:$G$44,2,FALSE)+ROW()-2)),\"\")","v":{"$error":"#N/A"}},{"$f":"IF(INDIRECT(\"c\" & (VLOOKUP(Switch!$D$40,$F$2:$G$44,2,FALSE)+ROW()-2))=Switch!$D$40,INDIRECT(\"a\" & (VLOOKUP(Switch!$D$40,$F$2:$G$44,2,FALSE)+ROW()-2)),\"\")","v":{"$error":"#N/A"}},{"$f":"IF(INDIRECT(\"c\" & (VLOOKUP(Switch!$D$52,$F$2:$G$44,2,FALSE)+ROW()-2))=Switch!$D$52,INDIRECT(\"a\" & (VLOOKUP(Switch!$D$52,$F$2:$G$44,2,FALSE)+ROW()-2)),\"\")","v":{"$error":"#N/A"}},{"$f":"IF(INDIRECT(\"c\" & (VLOOKUP(Switch!$D$53,$F$2:$G$44,2,FALSE)+ROW()-2))=Switch!$D$53,INDIRECT(\"a\" & (VLOOKUP(Switch!$D$53,$F$2:$G$44,2,FALSE)+ROW()-2)),\"\")","v":{"$error":"#N/A"}},{"$f":"IF(INDIRECT(\"c\" & (VLOOKUP(Switch!$D$54,$F$2:$G$44,2,FALSE)+ROW()-2))=Switch!$D$54,INDIRECT(\"a\" & (VLOOKUP(Switch!$D$54,$F$2:$G$44,2,FALSE)+ROW()-2)),\"\")","v":{"$error":"#N/A"}},{"$f":"IF(INDIRECT(\"c\" & (VLOOKUP(Switch!$D$55,$F$2:$G$44,2,FALSE)+ROW()-2))=Switch!$D$55,INDIRECT(\"a\" & (VLOOKUP(Switch!$D$55,$F$2:$G$44,2,FALSE)+ROW()-2)),\"\")","v":{"$error":"#N/A"}},{"$f":"IF(INDIRECT(\"c\" & (VLOOKUP(Switch!$D$56,$F$2:$G$44,2,FALSE)+ROW()-2))=Switch!$D$56,INDIRECT(\"a\" & (VLOOKUP(Switch!$D$56,$F$2:$G$44,2,FALSE)+ROW()-2)),\"\")","v":{"$error":"#N/A"}},{"$f":"IF(INDIRECT(\"c\" & (VLOOKUP(Switch!$D$57,$F$2:$G$44,2,FALSE)+ROW()-2))=Switch!$D$57,INDIRECT(\"a\" & (VLOOKUP(Switch!$D$57,$F$2:$G$44,2,FALSE)+ROW()-2)),\"\")","v":{"$error":"#N/A"}},{"$f":"IF(INDIRECT(\"c\" & (VLOOKUP(Switch!$D$58,$F$2:$G$44,2,FALSE)+ROW()-2))=Switch!$D$58,INDIRECT(\"a\" & (VLOOKUP(Switch!$D$58,$F$2:$G$44,2,FALSE)+ROW()-2)),\"\")","v":{"$error":"#N/A"}},{"$f":"IF(INDIRECT(\"c\" & (VLOOKUP(Switch!$D$59,$F$2:$G$44,2,FALSE)+ROW()-2))=Switch!$D$59,INDIRECT(\"a\" & (VLOOKUP(Switch!$D$59,$F$2:$G$44,2,FALSE)+ROW()-2)),\"\")","v":{"$error":"#N/A"}},{"$f":"IF(INDIRECT(\"c\" & (VLOOKUP(Switch!$D$60,$F$2:$G$44,2,FALSE)+ROW()-2))=Switch!$D$60,INDIRECT(\"a\" & (VLOOKUP(Switch!$D$60,$F$2:$G$44,2,FALSE)+ROW()-2)),\"\")","v":{"$error":"#N/A"}},{"$f":"IF(INDIRECT(\"c\" & (VLOOKUP(Switch!$D$61,$F$2:$G$44,2,FALSE)+ROW()-2))=Switch!$D$61,INDIRECT(\"a\" & (VLOOKUP(Switch!$D$61,$F$2:$G$44,2,FALSE)+ROW()-2)),\"\")","v":{"$error":"#N/A"}},{"$f":"IF(INDIRECT(\"c\" & (VLOOKUP(Switch!$D$62,$F$2:$G$44,2,FALSE)+ROW()-2))=Switch!$D$62,INDIRECT(\"a\" & (VLOOKUP(Switch!$D$62,$F$2:$G$44,2,FALSE)+ROW()-2)),\"\")","v":{"$error":"#N/A"}},{"$f":"IF(INDIRECT(\"c\" & (VLOOKUP(Switch!$D$63,$F$2:$G$44,2,FALSE)+ROW()-2))=Switch!$D$63,INDIRECT(\"a\" & (VLOOKUP(Switch!$D$63,$F$2:$G$44,2,FALSE)+ROW()-2)),\"\")","v":{"$error":"#N/A"}},{"$f":"IF(INDIRECT(\"c\" & (VLOOKUP(Switch!$D$64,$F$2:$G$44,2,FALSE)+ROW()-2))=Switch!$D$64,INDIRECT(\"a\" & (VLOOKUP(Switch!$D$64,$F$2:$G$44,2,FALSE)+ROW()-2)),\"\")","v":{"$error":"#N/A"}},{"$f":"IF(INDIRECT(\"c\" & (VLOOKUP(Switch!$D$65,$F$2:$G$44,2,FALSE)+ROW()-2))=Switch!$D$65,INDIRECT(\"a\" & (VLOOKUP(Switch!$D$65,$F$2:$G$44,2,FALSE)+ROW()-2)),\"\")","v":{"$error":"#N/A"}},{"$f":"IF(INDIRECT(\"c\" & (VLOOKUP(Switch!$D$66,$F$2:$G$44,2,FALSE)+ROW()-2))=Switch!$D$66,INDIRECT(\"a\" & (VLOOKUP(Switch!$D$66,$F$2:$G$44,2,FALSE)+ROW()-2)),\"\")","v":{"$error":"#N/A"}}]
["Old Mutual Mid & Small Cap Fund B1","OMSB1","Old Mutual Unit Trust Managers Limited",{"$f":"ROW()","v":426},null,null,{"$f":"VLOOKUP(F426,$C$2:$D$637,2,FALSE)","v":{"$error":"#N/A"}},{"$f":"IF(INDIRECT(\"c\" & (VLOOKUP(Switch!$D$26,$F$2:$G$44,2,FALSE)+ROW()-2))=Switch!$D$26,INDIRECT(\"a\" & (VLOOKUP(Switch!$D$26,$F$2:$G$44,2,FALSE)+ROW()-2)),\"\")","v":{"$error":"#N/A"}},{"$f":"IF(INDIRECT(\"c\" & (VLOOKUP(Switch!$D$27,$F$2:$G$44,2,FALSE)+ROW()-2))=Switch!$D$27,INDIRECT(\"a\" & (VLOOKUP(Switch!$D$27,$F$2:$G$44,2,FALSE)+ROW()-2)),\"\")","v":{"$error":"#N/A"}},{"$f":"IF(INDIRECT(\"c\" & (VLOOKUP(Switch!$D$28,$F$2:$G$44,2,FALSE)+ROW()-2))=Switch!$D$28,INDIRECT(\"a\" & (VLOOKUP(Switch!$D$28,$F$2:$G$44,2,FALSE)+ROW()-2)),\"\")","v":{"$error":"#N/A"}},{"$f":"IF(INDIRECT(\"c\" & (VLOOKUP(Switch!$D$29,$F$2:$G$44,2,FALSE)+ROW()-2))=Switch!$D$29,INDIRECT(\"a\" & (VLOOKUP(Switch!$D$29,$F$2:$G$44,2,FALSE)+ROW()-2)),\"\")","v":{"$error":"#N/A"}},{"$f":"IF(INDIRECT(\"c\" & (VLOOKUP(Switch!$D$30,$F$2:$G$44,2,FALSE)+ROW()-2))=Switch!$D$30,INDIRECT(\"a\" & (VLOOKUP(Switch!$D$30,$F$2:$G$44,2,FALSE)+ROW()-2)),\"\")","v":{"$error":"#N/A"}},{"$f":"IF(INDIRECT(\"c\" & (VLOOKUP(Switch!$D$31,$F$2:$G$44,2,FALSE)+ROW()-2))=Switch!$D$31,INDIRECT(\"a\" & (VLOOKUP(Switch!$D$31,$F$2:$G$44,2,FALSE)+ROW()-2)),\"\")","v":{"$error":"#N/A"}},{"$f":"IF(INDIRECT(\"c\" & (VLOOKUP(Switch!$D$32,$F$2:$G$44,2,FALSE)+ROW()-2))=Switch!$D$32,INDIRECT(\"a\" & (VLOOKUP(Switch!$D$32,$F$2:$G$44,2,FALSE)+ROW()-2)),\"\")","v":{"$error":"#N/A"}},{"$f":"IF(INDIRECT(\"c\" & (VLOOKUP(Switch!$D$33,$F$2:$G$44,2,FALSE)+ROW()-2))=Switch!$D$33,INDIRECT(\"a\" & (VLOOKUP(Switch!$D$33,$F$2:$G$44,2,FALSE)+ROW()-2)),\"\")","v":{"$error":"#N/A"}},{"$f":"IF(INDIRECT(\"c\" & (VLOOKUP(Switch!$D$34,$F$2:$G$44,2,FALSE)+ROW()-2))=Switch!$D$34,INDIRECT(\"a\" & (VLOOKUP(Switch!$D$34,$F$2:$G$44,2,FALSE)+ROW()-2)),\"\")","v":{"$error":"#N/A"}},{"$f":"IF(INDIRECT(\"c\" & (VLOOKUP(Switch!$D$35,$F$2:$G$44,2,FALSE)+ROW()-2))=Switch!$D$35,INDIRECT(\"a\" & (VLOOKUP(Switch!$D$35,$F$2:$G$44,2,FALSE)+ROW()-2)),\"\")","v":{"$error":"#N/A"}},{"$f":"IF(INDIRECT(\"c\" & (VLOOKUP(Switch!$D$36,$F$2:$G$44,2,FALSE)+ROW()-2))=Switch!$D$36,INDIRECT(\"a\" & (VLOOKUP(Switch!$D$36,$F$2:$G$44,2,FALSE)+ROW()-2)),\"\")","v":{"$error":"#N/A"}},{"$f":"IF(INDIRECT(\"c\" & (VLOOKUP(Switch!$D$37,$F$2:$G$44,2,FALSE)+ROW()-2))=Switch!$D$37,INDIRECT(\"a\" & (VLOOKUP(Switch!$D$37,$F$2:$G$44,2,FALSE)+ROW()-2)),\"\")","v":{"$error":"#N/A"}},{"$f":"IF(INDIRECT(\"c\" & (VLOOKUP(Switch!$D$38,$F$2:$G$44,2,FALSE)+ROW()-2))=Switch!$D$38,INDIRECT(\"a\" & (VLOOKUP(Switch!$D$38,$F$2:$G$44,2,FALSE)+ROW()-2)),\"\")","v":{"$error":"#N/A"}},{"$f":"IF(INDIRECT(\"c\" & (VLOOKUP(Switch!$D$39,$F$2:$G$44,2,FALSE)+ROW()-2))=Switch!$D$39,INDIRECT(\"a\" & (VLOOKUP(Switch!$D$39,$F$2:$G$44,2,FALSE)+ROW()-2)),\"\")","v":{"$error":"#N/A"}},{"$f":"IF(INDIRECT(\"c\" & (VLOOKUP(Switch!$D$40,$F$2:$G$44,2,FALSE)+ROW()-2))=Switch!$D$40,INDIRECT(\"a\" & (VLOOKUP(Switch!$D$40,$F$2:$G$44,2,FALSE)+ROW()-2)),\"\")","v":{"$error":"#N/A"}},{"$f":"IF(INDIRECT(\"c\" & (VLOOKUP(Switch!$D$52,$F$2:$G$44,2,FALSE)+ROW()-2))=Switch!$D$52,INDIRECT(\"a\" & (VLOOKUP(Switch!$D$52,$F$2:$G$44,2,FALSE)+ROW()-2)),\"\")","v":{"$error":"#N/A"}},{"$f":"IF(INDIRECT(\"c\" & (VLOOKUP(Switch!$D$53,$F$2:$G$44,2,FALSE)+ROW()-2))=Switch!$D$53,INDIRECT(\"a\" & (VLOOKUP(Switch!$D$53,$F$2:$G$44,2,FALSE)+ROW()-2)),\"\")","v":{"$error":"#N/A"}},{"$f":"IF(INDIRECT(\"c\" & (VLOOKUP(Switch!$D$54,$F$2:$G$44,2,FALSE)+ROW()-2))=Switch!$D$54,INDIRECT(\"a\" & (VLOOKUP(Switch!$D$54,$F$2:$G$44,2,FALSE)+ROW()-2)),\"\")","v":{"$error":"#N/A"}},{"$f":"IF(INDIRECT(\"c\" & (VLOOKUP(Switch!$D$55,$F$2:$G$44,2,FALSE)+ROW()-2))=Switch!$D$55,INDIRECT(\"a\" & (VLOOKUP(Switch!$D$55,$F$2:$G$44,2,FALSE)+ROW()-2)),\"\")","v":{"$error":"#N/A"}},{"$f":"IF(INDIRECT(\"c\" & (VLOOKUP(Switch!$D$56,$F$2:$G$44,2,FALSE)+ROW()-2))=Switch!$D$56,INDIRECT(\"a\" & (VLOOKUP(Switch!$D$56,$F$2:$G$44,2,FALSE)+ROW()-2)),\"\")","v":{"$error":"#N/A"}},{"$f":"IF(INDIRECT(\"c\" & (VLOOKUP(Switch!$D$57,$F$2:$G$44,2,FALSE)+ROW()-2))=Switch!$D$57,INDIRECT(\"a\" & (VLOOKUP(Switch!$D$57,$F$2:$G$44,2,FALSE)+ROW()-2)),\"\")","v":{"$error":"#N/A"}},{"$f":"IF(INDIRECT(\"c\" & (VLOOKUP(Switch!$D$58,$F$2:$G$44,2,FALSE)+ROW()-2))=Switch!$D$58,INDIRECT(\"a\" & (VLOOKUP(Switch!$D$58,$F$2:$G$44,2,FALSE)+ROW()-2)),\"\")","v":{"$error":"#N/A"}},{"$f":"IF(INDIRECT(\"c\" & (VLOOKUP(Switch!$D$59,$F$2:$G$44,2,FALSE)+ROW()-2))=Switch!$D$59,INDIRECT(\"a\" & (VLOOKUP(Switch!$D$59,$F$2:$G$44,2,FALSE)+ROW()-2)),\"\")","v":{"$error":"#N/A"}},{"$f":"IF(INDIRECT(\"c\" & (VLOOKUP(Switch!$D$60,$F$2:$G$44,2,FALSE)+ROW()-2))=Switch!$D$60,INDIRECT(\"a\" & (VLOOKUP(Switch!$D$60,$F$2:$G$44,2,FALSE)+ROW()-2)),\"\")","v":{"$error":"#N/A"}},{"$f":"IF(INDIRECT(\"c\" & (VLOOKUP(Switch!$D$61,$F$2:$G$44,2,FALSE)+ROW()-2))=Switch!$D$61,INDIRECT(\"a\" & (VLOOKUP(Switch!$D$61,$F$2:$G$44,2,FALSE)+ROW()-2)),\"\")","v":{"$error":"#N/A"}},{"$f":"IF(INDIRECT(\"c\" & (VLOOKUP(Switch!$D$62,$F$2:$G$44,2,FALSE)+ROW()-2))=Switch!$D$62,INDIRECT(\"a\" & (VLOOKUP(Switch!$D$62,$F$2:$G$44,2,FALSE)+ROW()-2)),\"\")","v":{"$error":"#N/A"}},{"$f":"IF(INDIRECT(\"c\" & (VLOOKUP(Switch!$D$63,$F$2:$G$44,2,FALSE)+ROW()-2))=Switch!$D$63,INDIRECT(\"a\" & (VLOOKUP(Switch!$D$63,$F$2:$G$44,2,FALSE)+ROW()-2)),\"\")","v":{"$error":"#N/A"}},{"$f":"IF(INDIRECT(\"c\" & (VLOOKUP(Switch!$D$64,$F$2:$G$44,2,FALSE)+ROW()-2))=Switch!$D$64,INDIRECT(\"a\" & (VLOOKUP(Switch!$D$64,$F$2:$G$44,2,FALSE)+ROW()-2)),\"\")","v":{"$error":"#N/A"}},{"$f":"IF(INDIRECT(\"c\" & (VLOOKUP(Switch!$D$65,$F$2:$G$44,2,FALSE)+ROW()-2))=Switch!$D$65,INDIRECT(\"a\" & (VLOOKUP(Switch!$D$65,$F$2:$G$44,2,FALSE)+ROW()-2)),\"\")","v":{"$error":"#N/A"}},{"$f":"IF(INDIRECT(\"c\" & (VLOOKUP(Switch!$D$66,$F$2:$G$44,2,FALSE)+ROW()-2))=Switch!$D$66,INDIRECT(\"a\" & (VLOOKUP(Switch!$D$66,$F$2:$G$44,2,FALSE)+ROW()-2)),\"\")","v":{"$error":"#N/A"}}]
["Old Mutual Mining and Resources Fund Class A","OMTM","Old Mutual Unit Trust Managers Limited",{"$f":"ROW()","v":427},null,null,{"$f":"VLOOKUP(F427,$C$2:$D$637,2,FALSE)","v":{"$error":"#N/A"}},{"$f":"IF(INDIRECT(\"c\" & (VLOOKUP(Switch!$D$26,$F$2:$G$44,2,FALSE)+ROW()-2))=Switch!$D$26,INDIRECT(\"a\" & (VLOOKUP(Switch!$D$26,$F$2:$G$44,2,FALSE)+ROW()-2)),\"\")","v":{"$error":"#N/A"}},{"$f":"IF(INDIRECT(\"c\" & (VLOOKUP(Switch!$D$27,$F$2:$G$44,2,FALSE)+ROW()-2))=Switch!$D$27,INDIRECT(\"a\" & (VLOOKUP(Switch!$D$27,$F$2:$G$44,2,FALSE)+ROW()-2)),\"\")","v":{"$error":"#N/A"}},{"$f":"IF(INDIRECT(\"c\" & (VLOOKUP(Switch!$D$28,$F$2:$G$44,2,FALSE)+ROW()-2))=Switch!$D$28,INDIRECT(\"a\" & (VLOOKUP(Switch!$D$28,$F$2:$G$44,2,FALSE)+ROW()-2)),\"\")","v":{"$error":"#N/A"}},{"$f":"IF(INDIRECT(\"c\" & (VLOOKUP(Switch!$D$29,$F$2:$G$44,2,FALSE)+ROW()-2))=Switch!$D$29,INDIRECT(\"a\" & (VLOOKUP(Switch!$D$29,$F$2:$G$44,2,FALSE)+ROW()-2)),\"\")","v":{"$error":"#N/A"}},{"$f":"IF(INDIRECT(\"c\" & (VLOOKUP(Switch!$D$30,$F$2:$G$44,2,FALSE)+ROW()-2))=Switch!$D$30,INDIRECT(\"a\" & (VLOOKUP(Switch!$D$30,$F$2:$G$44,2,FALSE)+ROW()-2)),\"\")","v":{"$error":"#N/A"}},{"$f":"IF(INDIRECT(\"c\" & (VLOOKUP(Switch!$D$31,$F$2:$G$44,2,FALSE)+ROW()-2))=Switch!$D$31,INDIRECT(\"a\" & (VLOOKUP(Switch!$D$31,$F$2:$G$44,2,FALSE)+ROW()-2)),\"\")","v":{"$error":"#N/A"}},{"$f":"IF(INDIRECT(\"c\" & (VLOOKUP(Switch!$D$32,$F$2:$G$44,2,FALSE)+ROW()-2))=Switch!$D$32,INDIRECT(\"a\" & (VLOOKUP(Switch!$D$32,$F$2:$G$44,2,FALSE)+ROW()-2)),\"\")","v":{"$error":"#N/A"}},{"$f":"IF(INDIRECT(\"c\" & (VLOOKUP(Switch!$D$33,$F$2:$G$44,2,FALSE)+ROW()-2))=Switch!$D$33,INDIRECT(\"a\" & (VLOOKUP(Switch!$D$33,$F$2:$G$44,2,FALSE)+ROW()-2)),\"\")","v":{"$error":"#N/A"}},{"$f":"IF(INDIRECT(\"c\" & (VLOOKUP(Switch!$D$34,$F$2:$G$44,2,FALSE)+ROW()-2))=Switch!$D$34,INDIRECT(\"a\" & (VLOOKUP(Switch!$D$34,$F$2:$G$44,2,FALSE)+ROW()-2)),\"\")","v":{"$error":"#N/A"}},{"$f":"IF(INDIRECT(\"c\" & (VLOOKUP(Switch!$D$35,$F$2:$G$44,2,FALSE)+ROW()-2))=Switch!$D$35,INDIRECT(\"a\" & (VLOOKUP(Switch!$D$35,$F$2:$G$44,2,FALSE)+ROW()-2)),\"\")","v":{"$error":"#N/A"}},{"$f":"IF(INDIRECT(\"c\" & (VLOOKUP(Switch!$D$36,$F$2:$G$44,2,FALSE)+ROW()-2))=Switch!$D$36,INDIRECT(\"a\" & (VLOOKUP(Switch!$D$36,$F$2:$G$44,2,FALSE)+ROW()-2)),\"\")","v":{"$error":"#N/A"}},{"$f":"IF(INDIRECT(\"c\" & (VLOOKUP(Switch!$D$37,$F$2:$G$44,2,FALSE)+ROW()-2))=Switch!$D$37,INDIRECT(\"a\" & (VLOOKUP(Switch!$D$37,$F$2:$G$44,2,FALSE)+ROW()-2)),\"\")","v":{"$error":"#N/A"}},{"$f":"IF(INDIRECT(\"c\" & (VLOOKUP(Switch!$D$38,$F$2:$G$44,2,FALSE)+ROW()-2))=Switch!$D$38,INDIRECT(\"a\" & (VLOOKUP(Switch!$D$38,$F$2:$G$44,2,FALSE)+ROW()-2)),\"\")","v":{"$error":"#N/A"}},{"$f":"IF(INDIRECT(\"c\" & (VLOOKUP(Switch!$D$39,$F$2:$G$44,2,FALSE)+ROW()-2))=Switch!$D$39,INDIRECT(\"a\" & (VLOOKUP(Switch!$D$39,$F$2:$G$44,2,FALSE)+ROW()-2)),\"\")","v":{"$error":"#N/A"}},{"$f":"IF(INDIRECT(\"c\" & (VLOOKUP(Switch!$D$40,$F$2:$G$44,2,FALSE)+ROW()-2))=Switch!$D$40,INDIRECT(\"a\" & (VLOOKUP(Switch!$D$40,$F$2:$G$44,2,FALSE)+ROW()-2)),\"\")","v":{"$error":"#N/A"}},{"$f":"IF(INDIRECT(\"c\" & (VLOOKUP(Switch!$D$52,$F$2:$G$44,2,FALSE)+ROW()-2))=Switch!$D$52,INDIRECT(\"a\" & (VLOOKUP(Switch!$D$52,$F$2:$G$44,2,FALSE)+ROW()-2)),\"\")","v":{"$error":"#N/A"}},{"$f":"IF(INDIRECT(\"c\" & (VLOOKUP(Switch!$D$53,$F$2:$G$44,2,FALSE)+ROW()-2))=Switch!$D$53,INDIRECT(\"a\" & (VLOOKUP(Switch!$D$53,$F$2:$G$44,2,FALSE)+ROW()-2)),\"\")","v":{"$error":"#N/A"}},{"$f":"IF(INDIRECT(\"c\" & (VLOOKUP(Switch!$D$54,$F$2:$G$44,2,FALSE)+ROW()-2))=Switch!$D$54,INDIRECT(\"a\" & (VLOOKUP(Switch!$D$54,$F$2:$G$44,2,FALSE)+ROW()-2)),\"\")","v":{"$error":"#N/A"}},{"$f":"IF(INDIRECT(\"c\" & (VLOOKUP(Switch!$D$55,$F$2:$G$44,2,FALSE)+ROW()-2))=Switch!$D$55,INDIRECT(\"a\" & (VLOOKUP(Switch!$D$55,$F$2:$G$44,2,FALSE)+ROW()-2)),\"\")","v":{"$error":"#N/A"}},{"$f":"IF(INDIRECT(\"c\" & (VLOOKUP(Switch!$D$56,$F$2:$G$44,2,FALSE)+ROW()-2))=Switch!$D$56,INDIRECT(\"a\" & (VLOOKUP(Switch!$D$56,$F$2:$G$44,2,FALSE)+ROW()-2)),\"\")","v":{"$error":"#N/A"}},{"$f":"IF(INDIRECT(\"c\" & (VLOOKUP(Switch!$D$57,$F$2:$G$44,2,FALSE)+ROW()-2))=Switch!$D$57,INDIRECT(\"a\" & (VLOOKUP(Switch!$D$57,$F$2:$G$44,2,FALSE)+ROW()-2)),\"\")","v":{"$error":"#N/A"}},{"$f":"IF(INDIRECT(\"c\" & (VLOOKUP(Switch!$D$58,$F$2:$G$44,2,FALSE)+ROW()-2))=Switch!$D$58,INDIRECT(\"a\" & (VLOOKUP(Switch!$D$58,$F$2:$G$44,2,FALSE)+ROW()-2)),\"\")","v":{"$error":"#N/A"}},{"$f":"IF(INDIRECT(\"c\" & (VLOOKUP(Switch!$D$59,$F$2:$G$44,2,FALSE)+ROW()-2))=Switch!$D$59,INDIRECT(\"a\" & (VLOOKUP(Switch!$D$59,$F$2:$G$44,2,FALSE)+ROW()-2)),\"\")","v":{"$error":"#N/A"}},{"$f":"IF(INDIRECT(\"c\" & (VLOOKUP(Switch!$D$60,$F$2:$G$44,2,FALSE)+ROW()-2))=Switch!$D$60,INDIRECT(\"a\" & (VLOOKUP(Switch!$D$60,$F$2:$G$44,2,FALSE)+ROW()-2)),\"\")","v":{"$error":"#N/A"}},{"$f":"IF(INDIRECT(\"c\" & (VLOOKUP(Switch!$D$61,$F$2:$G$44,2,FALSE)+ROW()-2))=Switch!$D$61,INDIRECT(\"a\" & (VLOOKUP(Switch!$D$61,$F$2:$G$44,2,FALSE)+ROW()-2)),\"\")","v":{"$error":"#N/A"}},{"$f":"IF(INDIRECT(\"c\" & (VLOOKUP(Switch!$D$62,$F$2:$G$44,2,FALSE)+ROW()-2))=Switch!$D$62,INDIRECT(\"a\" & (VLOOKUP(Switch!$D$62,$F$2:$G$44,2,FALSE)+ROW()-2)),\"\")","v":{"$error":"#N/A"}},{"$f":"IF(INDIRECT(\"c\" & (VLOOKUP(Switch!$D$63,$F$2:$G$44,2,FALSE)+ROW()-2))=Switch!$D$63,INDIRECT(\"a\" & (VLOOKUP(Switch!$D$63,$F$2:$G$44,2,FALSE)+ROW()-2)),\"\")","v":{"$error":"#N/A"}},{"$f":"IF(INDIRECT(\"c\" & (VLOOKUP(Switch!$D$64,$F$2:$G$44,2,FALSE)+ROW()-2))=Switch!$D$64,INDIRECT(\"a\" & (VLOOKUP(Switch!$D$64,$F$2:$G$44,2,FALSE)+ROW()-2)),\"\")","v":{"$error":"#N/A"}},{"$f":"IF(INDIRECT(\"c\" & (VLOOKUP(Switch!$D$65,$F$2:$G$44,2,FALSE)+ROW()-2))=Switch!$D$65,INDIRECT(\"a\" & (VLOOKUP(Switch!$D$65,$F$2:$G$44,2,FALSE)+ROW()-2)),\"\")","v":{"$error":"#N/A"}},{"$f":"IF(INDIRECT(\"c\" & (VLOOKUP(Switch!$D$66,$F$2:$G$44,2,FALSE)+ROW()-2))=Switch!$D$66,INDIRECT(\"a\" & (VLOOKUP(Switch!$D$66,$F$2:$G$44,2,FALSE)+ROW()-2)),\"\")","v":{"$error":"#N/A"}}]
["Old Mutual MSCI Emerging Markets ESG Index Feeder Fund B1","OCEMB1","Old Mutual Unit Trust Managers Limited",{"$f":"ROW()","v":428},null,null,{"$f":"VLOOKUP(F428,$C$2:$D$637,2,FALSE)","v":{"$error":"#N/A"}},{"$f":"IF(INDIRECT(\"c\" & (VLOOKUP(Switch!$D$26,$F$2:$G$44,2,FALSE)+ROW()-2))=Switch!$D$26,INDIRECT(\"a\" & (VLOOKUP(Switch!$D$26,$F$2:$G$44,2,FALSE)+ROW()-2)),\"\")","v":{"$error":"#N/A"}},{"$f":"IF(INDIRECT(\"c\" & (VLOOKUP(Switch!$D$27,$F$2:$G$44,2,FALSE)+ROW()-2))=Switch!$D$27,INDIRECT(\"a\" & (VLOOKUP(Switch!$D$27,$F$2:$G$44,2,FALSE)+ROW()-2)),\"\")","v":{"$error":"#N/A"}},{"$f":"IF(INDIRECT(\"c\" & (VLOOKUP(Switch!$D$28,$F$2:$G$44,2,FALSE)+ROW()-2))=Switch!$D$28,INDIRECT(\"a\" & (VLOOKUP(Switch!$D$28,$F$2:$G$44,2,FALSE)+ROW()-2)),\"\")","v":{"$error":"#N/A"}},{"$f":"IF(INDIRECT(\"c\" & (VLOOKUP(Switch!$D$29,$F$2:$G$44,2,FALSE)+ROW()-2))=Switch!$D$29,INDIRECT(\"a\" & (VLOOKUP(Switch!$D$29,$F$2:$G$44,2,FALSE)+ROW()-2)),\"\")","v":{"$error":"#N/A"}},{"$f":"IF(INDIRECT(\"c\" & (VLOOKUP(Switch!$D$30,$F$2:$G$44,2,FALSE)+ROW()-2))=Switch!$D$30,INDIRECT(\"a\" & (VLOOKUP(Switch!$D$30,$F$2:$G$44,2,FALSE)+ROW()-2)),\"\")","v":{"$error":"#N/A"}},{"$f":"IF(INDIRECT(\"c\" & (VLOOKUP(Switch!$D$31,$F$2:$G$44,2,FALSE)+ROW()-2))=Switch!$D$31,INDIRECT(\"a\" & (VLOOKUP(Switch!$D$31,$F$2:$G$44,2,FALSE)+ROW()-2)),\"\")","v":{"$error":"#N/A"}},{"$f":"IF(INDIRECT(\"c\" & (VLOOKUP(Switch!$D$32,$F$2:$G$44,2,FALSE)+ROW()-2))=Switch!$D$32,INDIRECT(\"a\" & (VLOOKUP(Switch!$D$32,$F$2:$G$44,2,FALSE)+ROW()-2)),\"\")","v":{"$error":"#N/A"}},{"$f":"IF(INDIRECT(\"c\" & (VLOOKUP(Switch!$D$33,$F$2:$G$44,2,FALSE)+ROW()-2))=Switch!$D$33,INDIRECT(\"a\" & (VLOOKUP(Switch!$D$33,$F$2:$G$44,2,FALSE)+ROW()-2)),\"\")","v":{"$error":"#N/A"}},{"$f":"IF(INDIRECT(\"c\" & (VLOOKUP(Switch!$D$34,$F$2:$G$44,2,FALSE)+ROW()-2))=Switch!$D$34,INDIRECT(\"a\" & (VLOOKUP(Switch!$D$34,$F$2:$G$44,2,FALSE)+ROW()-2)),\"\")","v":{"$error":"#N/A"}},{"$f":"IF(INDIRECT(\"c\" & (VLOOKUP(Switch!$D$35,$F$2:$G$44,2,FALSE)+ROW()-2))=Switch!$D$35,INDIRECT(\"a\" & (VLOOKUP(Switch!$D$35,$F$2:$G$44,2,FALSE)+ROW()-2)),\"\")","v":{"$error":"#N/A"}},{"$f":"IF(INDIRECT(\"c\" & (VLOOKUP(Switch!$D$36,$F$2:$G$44,2,FALSE)+ROW()-2))=Switch!$D$36,INDIRECT(\"a\" & (VLOOKUP(Switch!$D$36,$F$2:$G$44,2,FALSE)+ROW()-2)),\"\")","v":{"$error":"#N/A"}},{"$f":"IF(INDIRECT(\"c\" & (VLOOKUP(Switch!$D$37,$F$2:$G$44,2,FALSE)+ROW()-2))=Switch!$D$37,INDIRECT(\"a\" & (VLOOKUP(Switch!$D$37,$F$2:$G$44,2,FALSE)+ROW()-2)),\"\")","v":{"$error":"#N/A"}},{"$f":"IF(INDIRECT(\"c\" & (VLOOKUP(Switch!$D$38,$F$2:$G$44,2,FALSE)+ROW()-2))=Switch!$D$38,INDIRECT(\"a\" & (VLOOKUP(Switch!$D$38,$F$2:$G$44,2,FALSE)+ROW()-2)),\"\")","v":{"$error":"#N/A"}},{"$f":"IF(INDIRECT(\"c\" & (VLOOKUP(Switch!$D$39,$F$2:$G$44,2,FALSE)+ROW()-2))=Switch!$D$39,INDIRECT(\"a\" & (VLOOKUP(Switch!$D$39,$F$2:$G$44,2,FALSE)+ROW()-2)),\"\")","v":{"$error":"#N/A"}},{"$f":"IF(INDIRECT(\"c\" & (VLOOKUP(Switch!$D$40,$F$2:$G$44,2,FALSE)+ROW()-2))=Switch!$D$40,INDIRECT(\"a\" & (VLOOKUP(Switch!$D$40,$F$2:$G$44,2,FALSE)+ROW()-2)),\"\")","v":{"$error":"#N/A"}},{"$f":"IF(INDIRECT(\"c\" & (VLOOKUP(Switch!$D$52,$F$2:$G$44,2,FALSE)+ROW()-2))=Switch!$D$52,INDIRECT(\"a\" & (VLOOKUP(Switch!$D$52,$F$2:$G$44,2,FALSE)+ROW()-2)),\"\")","v":{"$error":"#N/A"}},{"$f":"IF(INDIRECT(\"c\" & (VLOOKUP(Switch!$D$53,$F$2:$G$44,2,FALSE)+ROW()-2))=Switch!$D$53,INDIRECT(\"a\" & (VLOOKUP(Switch!$D$53,$F$2:$G$44,2,FALSE)+ROW()-2)),\"\")","v":{"$error":"#N/A"}},{"$f":"IF(INDIRECT(\"c\" & (VLOOKUP(Switch!$D$54,$F$2:$G$44,2,FALSE)+ROW()-2))=Switch!$D$54,INDIRECT(\"a\" & (VLOOKUP(Switch!$D$54,$F$2:$G$44,2,FALSE)+ROW()-2)),\"\")","v":{"$error":"#N/A"}},{"$f":"IF(INDIRECT(\"c\" & (VLOOKUP(Switch!$D$55,$F$2:$G$44,2,FALSE)+ROW()-2))=Switch!$D$55,INDIRECT(\"a\" & (VLOOKUP(Switch!$D$55,$F$2:$G$44,2,FALSE)+ROW()-2)),\"\")","v":{"$error":"#N/A"}},{"$f":"IF(INDIRECT(\"c\" & (VLOOKUP(Switch!$D$56,$F$2:$G$44,2,FALSE)+ROW()-2))=Switch!$D$56,INDIRECT(\"a\" & (VLOOKUP(Switch!$D$56,$F$2:$G$44,2,FALSE)+ROW()-2)),\"\")","v":{"$error":"#N/A"}},{"$f":"IF(INDIRECT(\"c\" & (VLOOKUP(Switch!$D$57,$F$2:$G$44,2,FALSE)+ROW()-2))=Switch!$D$57,INDIRECT(\"a\" & (VLOOKUP(Switch!$D$57,$F$2:$G$44,2,FALSE)+ROW()-2)),\"\")","v":{"$error":"#N/A"}},{"$f":"IF(INDIRECT(\"c\" & (VLOOKUP(Switch!$D$58,$F$2:$G$44,2,FALSE)+ROW()-2))=Switch!$D$58,INDIRECT(\"a\" & (VLOOKUP(Switch!$D$58,$F$2:$G$44,2,FALSE)+ROW()-2)),\"\")","v":{"$error":"#N/A"}},{"$f":"IF(INDIRECT(\"c\" & (VLOOKUP(Switch!$D$59,$F$2:$G$44,2,FALSE)+ROW()-2))=Switch!$D$59,INDIRECT(\"a\" & (VLOOKUP(Switch!$D$59,$F$2:$G$44,2,FALSE)+ROW()-2)),\"\")","v":{"$error":"#N/A"}},{"$f":"IF(INDIRECT(\"c\" & (VLOOKUP(Switch!$D$60,$F$2:$G$44,2,FALSE)+ROW()-2))=Switch!$D$60,INDIRECT(\"a\" & (VLOOKUP(Switch!$D$60,$F$2:$G$44,2,FALSE)+ROW()-2)),\"\")","v":{"$error":"#N/A"}},{"$f":"IF(INDIRECT(\"c\" & (VLOOKUP(Switch!$D$61,$F$2:$G$44,2,FALSE)+ROW()-2))=Switch!$D$61,INDIRECT(\"a\" & (VLOOKUP(Switch!$D$61,$F$2:$G$44,2,FALSE)+ROW()-2)),\"\")","v":{"$error":"#N/A"}},{"$f":"IF(INDIRECT(\"c\" & (VLOOKUP(Switch!$D$62,$F$2:$G$44,2,FALSE)+ROW()-2))=Switch!$D$62,INDIRECT(\"a\" & (VLOOKUP(Switch!$D$62,$F$2:$G$44,2,FALSE)+ROW()-2)),\"\")","v":{"$error":"#N/A"}},{"$f":"IF(INDIRECT(\"c\" & (VLOOKUP(Switch!$D$63,$F$2:$G$44,2,FALSE)+ROW()-2))=Switch!$D$63,INDIRECT(\"a\" & (VLOOKUP(Switch!$D$63,$F$2:$G$44,2,FALSE)+ROW()-2)),\"\")","v":{"$error":"#N/A"}},{"$f":"IF(INDIRECT(\"c\" & (VLOOKUP(Switch!$D$64,$F$2:$G$44,2,FALSE)+ROW()-2))=Switch!$D$64,INDIRECT(\"a\" & (VLOOKUP(Switch!$D$64,$F$2:$G$44,2,FALSE)+ROW()-2)),\"\")","v":{"$error":"#N/A"}},{"$f":"IF(INDIRECT(\"c\" & (VLOOKUP(Switch!$D$65,$F$2:$G$44,2,FALSE)+ROW()-2))=Switch!$D$65,INDIRECT(\"a\" & (VLOOKUP(Switch!$D$65,$F$2:$G$44,2,FALSE)+ROW()-2)),\"\")","v":{"$error":"#N/A"}},{"$f":"IF(INDIRECT(\"c\" & (VLOOKUP(Switch!$D$66,$F$2:$G$44,2,FALSE)+ROW()-2))=Switch!$D$66,INDIRECT(\"a\" & (VLOOKUP(Switch!$D$66,$F$2:$G$44,2,FALSE)+ROW()-2)),\"\")","v":{"$error":"#N/A"}}]
["Old Mutual Multi-Managers Balanced Fund of Funds B4","SYBB4","Old Mutual Unit Trust Managers Limited",{"$f":"ROW()","v":429},null,null,{"$f":"VLOOKUP(F429,$C$2:$D$637,2,FALSE)","v":{"$error":"#N/A"}},{"$f":"IF(INDIRECT(\"c\" & (VLOOKUP(Switch!$D$26,$F$2:$G$44,2,FALSE)+ROW()-2))=Switch!$D$26,INDIRECT(\"a\" & (VLOOKUP(Switch!$D$26,$F$2:$G$44,2,FALSE)+ROW()-2)),\"\")","v":{"$error":"#N/A"}},{"$f":"IF(INDIRECT(\"c\" & (VLOOKUP(Switch!$D$27,$F$2:$G$44,2,FALSE)+ROW()-2))=Switch!$D$27,INDIRECT(\"a\" & (VLOOKUP(Switch!$D$27,$F$2:$G$44,2,FALSE)+ROW()-2)),\"\")","v":{"$error":"#N/A"}},{"$f":"IF(INDIRECT(\"c\" & (VLOOKUP(Switch!$D$28,$F$2:$G$44,2,FALSE)+ROW()-2))=Switch!$D$28,INDIRECT(\"a\" & (VLOOKUP(Switch!$D$28,$F$2:$G$44,2,FALSE)+ROW()-2)),\"\")","v":{"$error":"#N/A"}},{"$f":"IF(INDIRECT(\"c\" & (VLOOKUP(Switch!$D$29,$F$2:$G$44,2,FALSE)+ROW()-2))=Switch!$D$29,INDIRECT(\"a\" & (VLOOKUP(Switch!$D$29,$F$2:$G$44,2,FALSE)+ROW()-2)),\"\")","v":{"$error":"#N/A"}},{"$f":"IF(INDIRECT(\"c\" & (VLOOKUP(Switch!$D$30,$F$2:$G$44,2,FALSE)+ROW()-2))=Switch!$D$30,INDIRECT(\"a\" & (VLOOKUP(Switch!$D$30,$F$2:$G$44,2,FALSE)+ROW()-2)),\"\")","v":{"$error":"#N/A"}},{"$f":"IF(INDIRECT(\"c\" & (VLOOKUP(Switch!$D$31,$F$2:$G$44,2,FALSE)+ROW()-2))=Switch!$D$31,INDIRECT(\"a\" & (VLOOKUP(Switch!$D$31,$F$2:$G$44,2,FALSE)+ROW()-2)),\"\")","v":{"$error":"#N/A"}},{"$f":"IF(INDIRECT(\"c\" & (VLOOKUP(Switch!$D$32,$F$2:$G$44,2,FALSE)+ROW()-2))=Switch!$D$32,INDIRECT(\"a\" & (VLOOKUP(Switch!$D$32,$F$2:$G$44,2,FALSE)+ROW()-2)),\"\")","v":{"$error":"#N/A"}},{"$f":"IF(INDIRECT(\"c\" & (VLOOKUP(Switch!$D$33,$F$2:$G$44,2,FALSE)+ROW()-2))=Switch!$D$33,INDIRECT(\"a\" & (VLOOKUP(Switch!$D$33,$F$2:$G$44,2,FALSE)+ROW()-2)),\"\")","v":{"$error":"#N/A"}},{"$f":"IF(INDIRECT(\"c\" & (VLOOKUP(Switch!$D$34,$F$2:$G$44,2,FALSE)+ROW()-2))=Switch!$D$34,INDIRECT(\"a\" & (VLOOKUP(Switch!$D$34,$F$2:$G$44,2,FALSE)+ROW()-2)),\"\")","v":{"$error":"#N/A"}},{"$f":"IF(INDIRECT(\"c\" & (VLOOKUP(Switch!$D$35,$F$2:$G$44,2,FALSE)+ROW()-2))=Switch!$D$35,INDIRECT(\"a\" & (VLOOKUP(Switch!$D$35,$F$2:$G$44,2,FALSE)+ROW()-2)),\"\")","v":{"$error":"#N/A"}},{"$f":"IF(INDIRECT(\"c\" & (VLOOKUP(Switch!$D$36,$F$2:$G$44,2,FALSE)+ROW()-2))=Switch!$D$36,INDIRECT(\"a\" & (VLOOKUP(Switch!$D$36,$F$2:$G$44,2,FALSE)+ROW()-2)),\"\")","v":{"$error":"#N/A"}},{"$f":"IF(INDIRECT(\"c\" & (VLOOKUP(Switch!$D$37,$F$2:$G$44,2,FALSE)+ROW()-2))=Switch!$D$37,INDIRECT(\"a\" & (VLOOKUP(Switch!$D$37,$F$2:$G$44,2,FALSE)+ROW()-2)),\"\")","v":{"$error":"#N/A"}},{"$f":"IF(INDIRECT(\"c\" & (VLOOKUP(Switch!$D$38,$F$2:$G$44,2,FALSE)+ROW()-2))=Switch!$D$38,INDIRECT(\"a\" & (VLOOKUP(Switch!$D$38,$F$2:$G$44,2,FALSE)+ROW()-2)),\"\")","v":{"$error":"#N/A"}},{"$f":"IF(INDIRECT(\"c\" & (VLOOKUP(Switch!$D$39,$F$2:$G$44,2,FALSE)+ROW()-2))=Switch!$D$39,INDIRECT(\"a\" & (VLOOKUP(Switch!$D$39,$F$2:$G$44,2,FALSE)+ROW()-2)),\"\")","v":{"$error":"#N/A"}},{"$f":"IF(INDIRECT(\"c\" & (VLOOKUP(Switch!$D$40,$F$2:$G$44,2,FALSE)+ROW()-2))=Switch!$D$40,INDIRECT(\"a\" & (VLOOKUP(Switch!$D$40,$F$2:$G$44,2,FALSE)+ROW()-2)),\"\")","v":{"$error":"#N/A"}},{"$f":"IF(INDIRECT(\"c\" & (VLOOKUP(Switch!$D$52,$F$2:$G$44,2,FALSE)+ROW()-2))=Switch!$D$52,INDIRECT(\"a\" & (VLOOKUP(Switch!$D$52,$F$2:$G$44,2,FALSE)+ROW()-2)),\"\")","v":{"$error":"#N/A"}},{"$f":"IF(INDIRECT(\"c\" & (VLOOKUP(Switch!$D$53,$F$2:$G$44,2,FALSE)+ROW()-2))=Switch!$D$53,INDIRECT(\"a\" & (VLOOKUP(Switch!$D$53,$F$2:$G$44,2,FALSE)+ROW()-2)),\"\")","v":{"$error":"#N/A"}},{"$f":"IF(INDIRECT(\"c\" & (VLOOKUP(Switch!$D$54,$F$2:$G$44,2,FALSE)+ROW()-2))=Switch!$D$54,INDIRECT(\"a\" & (VLOOKUP(Switch!$D$54,$F$2:$G$44,2,FALSE)+ROW()-2)),\"\")","v":{"$error":"#N/A"}},{"$f":"IF(INDIRECT(\"c\" & (VLOOKUP(Switch!$D$55,$F$2:$G$44,2,FALSE)+ROW()-2))=Switch!$D$55,INDIRECT(\"a\" & (VLOOKUP(Switch!$D$55,$F$2:$G$44,2,FALSE)+ROW()-2)),\"\")","v":{"$error":"#N/A"}},{"$f":"IF(INDIRECT(\"c\" & (VLOOKUP(Switch!$D$56,$F$2:$G$44,2,FALSE)+ROW()-2))=Switch!$D$56,INDIRECT(\"a\" & (VLOOKUP(Switch!$D$56,$F$2:$G$44,2,FALSE)+ROW()-2)),\"\")","v":{"$error":"#N/A"}},{"$f":"IF(INDIRECT(\"c\" & (VLOOKUP(Switch!$D$57,$F$2:$G$44,2,FALSE)+ROW()-2))=Switch!$D$57,INDIRECT(\"a\" & (VLOOKUP(Switch!$D$57,$F$2:$G$44,2,FALSE)+ROW()-2)),\"\")","v":{"$error":"#N/A"}},{"$f":"IF(INDIRECT(\"c\" & (VLOOKUP(Switch!$D$58,$F$2:$G$44,2,FALSE)+ROW()-2))=Switch!$D$58,INDIRECT(\"a\" & (VLOOKUP(Switch!$D$58,$F$2:$G$44,2,FALSE)+ROW()-2)),\"\")","v":{"$error":"#N/A"}},{"$f":"IF(INDIRECT(\"c\" & (VLOOKUP(Switch!$D$59,$F$2:$G$44,2,FALSE)+ROW()-2))=Switch!$D$59,INDIRECT(\"a\" & (VLOOKUP(Switch!$D$59,$F$2:$G$44,2,FALSE)+ROW()-2)),\"\")","v":{"$error":"#N/A"}},{"$f":"IF(INDIRECT(\"c\" & (VLOOKUP(Switch!$D$60,$F$2:$G$44,2,FALSE)+ROW()-2))=Switch!$D$60,INDIRECT(\"a\" & (VLOOKUP(Switch!$D$60,$F$2:$G$44,2,FALSE)+ROW()-2)),\"\")","v":{"$error":"#N/A"}},{"$f":"IF(INDIRECT(\"c\" & (VLOOKUP(Switch!$D$61,$F$2:$G$44,2,FALSE)+ROW()-2))=Switch!$D$61,INDIRECT(\"a\" & (VLOOKUP(Switch!$D$61,$F$2:$G$44,2,FALSE)+ROW()-2)),\"\")","v":{"$error":"#N/A"}},{"$f":"IF(INDIRECT(\"c\" & (VLOOKUP(Switch!$D$62,$F$2:$G$44,2,FALSE)+ROW()-2))=Switch!$D$62,INDIRECT(\"a\" & (VLOOKUP(Switch!$D$62,$F$2:$G$44,2,FALSE)+ROW()-2)),\"\")","v":{"$error":"#N/A"}},{"$f":"IF(INDIRECT(\"c\" & (VLOOKUP(Switch!$D$63,$F$2:$G$44,2,FALSE)+ROW()-2))=Switch!$D$63,INDIRECT(\"a\" & (VLOOKUP(Switch!$D$63,$F$2:$G$44,2,FALSE)+ROW()-2)),\"\")","v":{"$error":"#N/A"}},{"$f":"IF(INDIRECT(\"c\" & (VLOOKUP(Switch!$D$64,$F$2:$G$44,2,FALSE)+ROW()-2))=Switch!$D$64,INDIRECT(\"a\" & (VLOOKUP(Switch!$D$64,$F$2:$G$44,2,FALSE)+ROW()-2)),\"\")","v":{"$error":"#N/A"}},{"$f":"IF(INDIRECT(\"c\" & (VLOOKUP(Switch!$D$65,$F$2:$G$44,2,FALSE)+ROW()-2))=Switch!$D$65,INDIRECT(\"a\" & (VLOOKUP(Switch!$D$65,$F$2:$G$44,2,FALSE)+ROW()-2)),\"\")","v":{"$error":"#N/A"}},{"$f":"IF(INDIRECT(\"c\" & (VLOOKUP(Switch!$D$66,$F$2:$G$44,2,FALSE)+ROW()-2))=Switch!$D$66,INDIRECT(\"a\" & (VLOOKUP(Switch!$D$66,$F$2:$G$44,2,FALSE)+ROW()-2)),\"\")","v":{"$error":"#N/A"}}]
["Old Mutual Real Income Fund A","MICA","Old Mutual Unit Trust Managers Limited",{"$f":"ROW()","v":430},null,null,{"$f":"VLOOKUP(F430,$C$2:$D$637,2,FALSE)","v":{"$error":"#N/A"}},{"$f":"IF(INDIRECT(\"c\" & (VLOOKUP(Switch!$D$26,$F$2:$G$44,2,FALSE)+ROW()-2))=Switch!$D$26,INDIRECT(\"a\" & (VLOOKUP(Switch!$D$26,$F$2:$G$44,2,FALSE)+ROW()-2)),\"\")","v":{"$error":"#N/A"}},{"$f":"IF(INDIRECT(\"c\" & (VLOOKUP(Switch!$D$27,$F$2:$G$44,2,FALSE)+ROW()-2))=Switch!$D$27,INDIRECT(\"a\" & (VLOOKUP(Switch!$D$27,$F$2:$G$44,2,FALSE)+ROW()-2)),\"\")","v":{"$error":"#N/A"}},{"$f":"IF(INDIRECT(\"c\" & (VLOOKUP(Switch!$D$28,$F$2:$G$44,2,FALSE)+ROW()-2))=Switch!$D$28,INDIRECT(\"a\" & (VLOOKUP(Switch!$D$28,$F$2:$G$44,2,FALSE)+ROW()-2)),\"\")","v":{"$error":"#N/A"}},{"$f":"IF(INDIRECT(\"c\" & (VLOOKUP(Switch!$D$29,$F$2:$G$44,2,FALSE)+ROW()-2))=Switch!$D$29,INDIRECT(\"a\" & (VLOOKUP(Switch!$D$29,$F$2:$G$44,2,FALSE)+ROW()-2)),\"\")","v":{"$error":"#N/A"}},{"$f":"IF(INDIRECT(\"c\" & (VLOOKUP(Switch!$D$30,$F$2:$G$44,2,FALSE)+ROW()-2))=Switch!$D$30,INDIRECT(\"a\" & (VLOOKUP(Switch!$D$30,$F$2:$G$44,2,FALSE)+ROW()-2)),\"\")","v":{"$error":"#N/A"}},{"$f":"IF(INDIRECT(\"c\" & (VLOOKUP(Switch!$D$31,$F$2:$G$44,2,FALSE)+ROW()-2))=Switch!$D$31,INDIRECT(\"a\" & (VLOOKUP(Switch!$D$31,$F$2:$G$44,2,FALSE)+ROW()-2)),\"\")","v":{"$error":"#N/A"}},{"$f":"IF(INDIRECT(\"c\" & (VLOOKUP(Switch!$D$32,$F$2:$G$44,2,FALSE)+ROW()-2))=Switch!$D$32,INDIRECT(\"a\" & (VLOOKUP(Switch!$D$32,$F$2:$G$44,2,FALSE)+ROW()-2)),\"\")","v":{"$error":"#N/A"}},{"$f":"IF(INDIRECT(\"c\" & (VLOOKUP(Switch!$D$33,$F$2:$G$44,2,FALSE)+ROW()-2))=Switch!$D$33,INDIRECT(\"a\" & (VLOOKUP(Switch!$D$33,$F$2:$G$44,2,FALSE)+ROW()-2)),\"\")","v":{"$error":"#N/A"}},{"$f":"IF(INDIRECT(\"c\" & (VLOOKUP(Switch!$D$34,$F$2:$G$44,2,FALSE)+ROW()-2))=Switch!$D$34,INDIRECT(\"a\" & (VLOOKUP(Switch!$D$34,$F$2:$G$44,2,FALSE)+ROW()-2)),\"\")","v":{"$error":"#N/A"}},{"$f":"IF(INDIRECT(\"c\" & (VLOOKUP(Switch!$D$35,$F$2:$G$44,2,FALSE)+ROW()-2))=Switch!$D$35,INDIRECT(\"a\" & (VLOOKUP(Switch!$D$35,$F$2:$G$44,2,FALSE)+ROW()-2)),\"\")","v":{"$error":"#N/A"}},{"$f":"IF(INDIRECT(\"c\" & (VLOOKUP(Switch!$D$36,$F$2:$G$44,2,FALSE)+ROW()-2))=Switch!$D$36,INDIRECT(\"a\" & (VLOOKUP(Switch!$D$36,$F$2:$G$44,2,FALSE)+ROW()-2)),\"\")","v":{"$error":"#N/A"}},{"$f":"IF(INDIRECT(\"c\" & (VLOOKUP(Switch!$D$37,$F$2:$G$44,2,FALSE)+ROW()-2))=Switch!$D$37,INDIRECT(\"a\" & (VLOOKUP(Switch!$D$37,$F$2:$G$44,2,FALSE)+ROW()-2)),\"\")","v":{"$error":"#N/A"}},{"$f":"IF(INDIRECT(\"c\" & (VLOOKUP(Switch!$D$38,$F$2:$G$44,2,FALSE)+ROW()-2))=Switch!$D$38,INDIRECT(\"a\" & (VLOOKUP(Switch!$D$38,$F$2:$G$44,2,FALSE)+ROW()-2)),\"\")","v":{"$error":"#N/A"}},{"$f":"IF(INDIRECT(\"c\" & (VLOOKUP(Switch!$D$39,$F$2:$G$44,2,FALSE)+ROW()-2))=Switch!$D$39,INDIRECT(\"a\" & (VLOOKUP(Switch!$D$39,$F$2:$G$44,2,FALSE)+ROW()-2)),\"\")","v":{"$error":"#N/A"}},{"$f":"IF(INDIRECT(\"c\" & (VLOOKUP(Switch!$D$40,$F$2:$G$44,2,FALSE)+ROW()-2))=Switch!$D$40,INDIRECT(\"a\" & (VLOOKUP(Switch!$D$40,$F$2:$G$44,2,FALSE)+ROW()-2)),\"\")","v":{"$error":"#N/A"}},{"$f":"IF(INDIRECT(\"c\" & (VLOOKUP(Switch!$D$52,$F$2:$G$44,2,FALSE)+ROW()-2))=Switch!$D$52,INDIRECT(\"a\" & (VLOOKUP(Switch!$D$52,$F$2:$G$44,2,FALSE)+ROW()-2)),\"\")","v":{"$error":"#N/A"}},{"$f":"IF(INDIRECT(\"c\" & (VLOOKUP(Switch!$D$53,$F$2:$G$44,2,FALSE)+ROW()-2))=Switch!$D$53,INDIRECT(\"a\" & (VLOOKUP(Switch!$D$53,$F$2:$G$44,2,FALSE)+ROW()-2)),\"\")","v":{"$error":"#N/A"}},{"$f":"IF(INDIRECT(\"c\" & (VLOOKUP(Switch!$D$54,$F$2:$G$44,2,FALSE)+ROW()-2))=Switch!$D$54,INDIRECT(\"a\" & (VLOOKUP(Switch!$D$54,$F$2:$G$44,2,FALSE)+ROW()-2)),\"\")","v":{"$error":"#N/A"}},{"$f":"IF(INDIRECT(\"c\" & (VLOOKUP(Switch!$D$55,$F$2:$G$44,2,FALSE)+ROW()-2))=Switch!$D$55,INDIRECT(\"a\" & (VLOOKUP(Switch!$D$55,$F$2:$G$44,2,FALSE)+ROW()-2)),\"\")","v":{"$error":"#N/A"}},{"$f":"IF(INDIRECT(\"c\" & (VLOOKUP(Switch!$D$56,$F$2:$G$44,2,FALSE)+ROW()-2))=Switch!$D$56,INDIRECT(\"a\" & (VLOOKUP(Switch!$D$56,$F$2:$G$44,2,FALSE)+ROW()-2)),\"\")","v":{"$error":"#N/A"}},{"$f":"IF(INDIRECT(\"c\" & (VLOOKUP(Switch!$D$57,$F$2:$G$44,2,FALSE)+ROW()-2))=Switch!$D$57,INDIRECT(\"a\" & (VLOOKUP(Switch!$D$57,$F$2:$G$44,2,FALSE)+ROW()-2)),\"\")","v":{"$error":"#N/A"}},{"$f":"IF(INDIRECT(\"c\" & (VLOOKUP(Switch!$D$58,$F$2:$G$44,2,FALSE)+ROW()-2))=Switch!$D$58,INDIRECT(\"a\" & (VLOOKUP(Switch!$D$58,$F$2:$G$44,2,FALSE)+ROW()-2)),\"\")","v":{"$error":"#N/A"}},{"$f":"IF(INDIRECT(\"c\" & (VLOOKUP(Switch!$D$59,$F$2:$G$44,2,FALSE)+ROW()-2))=Switch!$D$59,INDIRECT(\"a\" & (VLOOKUP(Switch!$D$59,$F$2:$G$44,2,FALSE)+ROW()-2)),\"\")","v":{"$error":"#N/A"}},{"$f":"IF(INDIRECT(\"c\" & (VLOOKUP(Switch!$D$60,$F$2:$G$44,2,FALSE)+ROW()-2))=Switch!$D$60,INDIRECT(\"a\" & (VLOOKUP(Switch!$D$60,$F$2:$G$44,2,FALSE)+ROW()-2)),\"\")","v":{"$error":"#N/A"}},{"$f":"IF(INDIRECT(\"c\" & (VLOOKUP(Switch!$D$61,$F$2:$G$44,2,FALSE)+ROW()-2))=Switch!$D$61,INDIRECT(\"a\" & (VLOOKUP(Switch!$D$61,$F$2:$G$44,2,FALSE)+ROW()-2)),\"\")","v":{"$error":"#N/A"}},{"$f":"IF(INDIRECT(\"c\" & (VLOOKUP(Switch!$D$62,$F$2:$G$44,2,FALSE)+ROW()-2))=Switch!$D$62,INDIRECT(\"a\" & (VLOOKUP(Switch!$D$62,$F$2:$G$44,2,FALSE)+ROW()-2)),\"\")","v":{"$error":"#N/A"}},{"$f":"IF(INDIRECT(\"c\" & (VLOOKUP(Switch!$D$63,$F$2:$G$44,2,FALSE)+ROW()-2))=Switch!$D$63,INDIRECT(\"a\" & (VLOOKUP(Switch!$D$63,$F$2:$G$44,2,FALSE)+ROW()-2)),\"\")","v":{"$error":"#N/A"}},{"$f":"IF(INDIRECT(\"c\" & (VLOOKUP(Switch!$D$64,$F$2:$G$44,2,FALSE)+ROW()-2))=Switch!$D$64,INDIRECT(\"a\" & (VLOOKUP(Switch!$D$64,$F$2:$G$44,2,FALSE)+ROW()-2)),\"\")","v":{"$error":"#N/A"}},{"$f":"IF(INDIRECT(\"c\" & (VLOOKUP(Switch!$D$65,$F$2:$G$44,2,FALSE)+ROW()-2))=Switch!$D$65,INDIRECT(\"a\" & (VLOOKUP(Switch!$D$65,$F$2:$G$44,2,FALSE)+ROW()-2)),\"\")","v":{"$error":"#N/A"}},{"$f":"IF(INDIRECT(\"c\" & (VLOOKUP(Switch!$D$66,$F$2:$G$44,2,FALSE)+ROW()-2))=Switch!$D$66,INDIRECT(\"a\" & (VLOOKUP(Switch!$D$66,$F$2:$G$44,2,FALSE)+ROW()-2)),\"\")","v":{"$error":"#N/A"}}]
["Old Mutual Real Income Fund B","MICA","Old Mutual Unit Trust Managers Limited",{"$f":"ROW()","v":431},null,null,{"$f":"VLOOKUP(F431,$C$2:$D$637,2,FALSE)","v":{"$error":"#N/A"}},{"$f":"IF(INDIRECT(\"c\" & (VLOOKUP(Switch!$D$26,$F$2:$G$44,2,FALSE)+ROW()-2))=Switch!$D$26,INDIRECT(\"a\" & (VLOOKUP(Switch!$D$26,$F$2:$G$44,2,FALSE)+ROW()-2)),\"\")","v":{"$error":"#N/A"}},{"$f":"IF(INDIRECT(\"c\" & (VLOOKUP(Switch!$D$27,$F$2:$G$44,2,FALSE)+ROW()-2))=Switch!$D$27,INDIRECT(\"a\" & (VLOOKUP(Switch!$D$27,$F$2:$G$44,2,FALSE)+ROW()-2)),\"\")","v":{"$error":"#N/A"}},{"$f":"IF(INDIRECT(\"c\" & (VLOOKUP(Switch!$D$28,$F$2:$G$44,2,FALSE)+ROW()-2))=Switch!$D$28,INDIRECT(\"a\" & (VLOOKUP(Switch!$D$28,$F$2:$G$44,2,FALSE)+ROW()-2)),\"\")","v":{"$error":"#N/A"}},{"$f":"IF(INDIRECT(\"c\" & (VLOOKUP(Switch!$D$29,$F$2:$G$44,2,FALSE)+ROW()-2))=Switch!$D$29,INDIRECT(\"a\" & (VLOOKUP(Switch!$D$29,$F$2:$G$44,2,FALSE)+ROW()-2)),\"\")","v":{"$error":"#N/A"}},{"$f":"IF(INDIRECT(\"c\" & (VLOOKUP(Switch!$D$30,$F$2:$G$44,2,FALSE)+ROW()-2))=Switch!$D$30,INDIRECT(\"a\" & (VLOOKUP(Switch!$D$30,$F$2:$G$44,2,FALSE)+ROW()-2)),\"\")","v":{"$error":"#N/A"}},{"$f":"IF(INDIRECT(\"c\" & (VLOOKUP(Switch!$D$31,$F$2:$G$44,2,FALSE)+ROW()-2))=Switch!$D$31,INDIRECT(\"a\" & (VLOOKUP(Switch!$D$31,$F$2:$G$44,2,FALSE)+ROW()-2)),\"\")","v":{"$error":"#N/A"}},{"$f":"IF(INDIRECT(\"c\" & (VLOOKUP(Switch!$D$32,$F$2:$G$44,2,FALSE)+ROW()-2))=Switch!$D$32,INDIRECT(\"a\" & (VLOOKUP(Switch!$D$32,$F$2:$G$44,2,FALSE)+ROW()-2)),\"\")","v":{"$error":"#N/A"}},{"$f":"IF(INDIRECT(\"c\" & (VLOOKUP(Switch!$D$33,$F$2:$G$44,2,FALSE)+ROW()-2))=Switch!$D$33,INDIRECT(\"a\" & (VLOOKUP(Switch!$D$33,$F$2:$G$44,2,FALSE)+ROW()-2)),\"\")","v":{"$error":"#N/A"}},{"$f":"IF(INDIRECT(\"c\" & (VLOOKUP(Switch!$D$34,$F$2:$G$44,2,FALSE)+ROW()-2))=Switch!$D$34,INDIRECT(\"a\" & (VLOOKUP(Switch!$D$34,$F$2:$G$44,2,FALSE)+ROW()-2)),\"\")","v":{"$error":"#N/A"}},{"$f":"IF(INDIRECT(\"c\" & (VLOOKUP(Switch!$D$35,$F$2:$G$44,2,FALSE)+ROW()-2))=Switch!$D$35,INDIRECT(\"a\" & (VLOOKUP(Switch!$D$35,$F$2:$G$44,2,FALSE)+ROW()-2)),\"\")","v":{"$error":"#N/A"}},{"$f":"IF(INDIRECT(\"c\" & (VLOOKUP(Switch!$D$36,$F$2:$G$44,2,FALSE)+ROW()-2))=Switch!$D$36,INDIRECT(\"a\" & (VLOOKUP(Switch!$D$36,$F$2:$G$44,2,FALSE)+ROW()-2)),\"\")","v":{"$error":"#N/A"}},{"$f":"IF(INDIRECT(\"c\" & (VLOOKUP(Switch!$D$37,$F$2:$G$44,2,FALSE)+ROW()-2))=Switch!$D$37,INDIRECT(\"a\" & (VLOOKUP(Switch!$D$37,$F$2:$G$44,2,FALSE)+ROW()-2)),\"\")","v":{"$error":"#N/A"}},{"$f":"IF(INDIRECT(\"c\" & (VLOOKUP(Switch!$D$38,$F$2:$G$44,2,FALSE)+ROW()-2))=Switch!$D$38,INDIRECT(\"a\" & (VLOOKUP(Switch!$D$38,$F$2:$G$44,2,FALSE)+ROW()-2)),\"\")","v":{"$error":"#N/A"}},{"$f":"IF(INDIRECT(\"c\" & (VLOOKUP(Switch!$D$39,$F$2:$G$44,2,FALSE)+ROW()-2))=Switch!$D$39,INDIRECT(\"a\" & (VLOOKUP(Switch!$D$39,$F$2:$G$44,2,FALSE)+ROW()-2)),\"\")","v":{"$error":"#N/A"}},{"$f":"IF(INDIRECT(\"c\" & (VLOOKUP(Switch!$D$40,$F$2:$G$44,2,FALSE)+ROW()-2))=Switch!$D$40,INDIRECT(\"a\" & (VLOOKUP(Switch!$D$40,$F$2:$G$44,2,FALSE)+ROW()-2)),\"\")","v":{"$error":"#N/A"}},{"$f":"IF(INDIRECT(\"c\" & (VLOOKUP(Switch!$D$52,$F$2:$G$44,2,FALSE)+ROW()-2))=Switch!$D$52,INDIRECT(\"a\" & (VLOOKUP(Switch!$D$52,$F$2:$G$44,2,FALSE)+ROW()-2)),\"\")","v":{"$error":"#N/A"}},{"$f":"IF(INDIRECT(\"c\" & (VLOOKUP(Switch!$D$53,$F$2:$G$44,2,FALSE)+ROW()-2))=Switch!$D$53,INDIRECT(\"a\" & (VLOOKUP(Switch!$D$53,$F$2:$G$44,2,FALSE)+ROW()-2)),\"\")","v":{"$error":"#N/A"}},{"$f":"IF(INDIRECT(\"c\" & (VLOOKUP(Switch!$D$54,$F$2:$G$44,2,FALSE)+ROW()-2))=Switch!$D$54,INDIRECT(\"a\" & (VLOOKUP(Switch!$D$54,$F$2:$G$44,2,FALSE)+ROW()-2)),\"\")","v":{"$error":"#N/A"}},{"$f":"IF(INDIRECT(\"c\" & (VLOOKUP(Switch!$D$55,$F$2:$G$44,2,FALSE)+ROW()-2))=Switch!$D$55,INDIRECT(\"a\" & (VLOOKUP(Switch!$D$55,$F$2:$G$44,2,FALSE)+ROW()-2)),\"\")","v":{"$error":"#N/A"}},{"$f":"IF(INDIRECT(\"c\" & (VLOOKUP(Switch!$D$56,$F$2:$G$44,2,FALSE)+ROW()-2))=Switch!$D$56,INDIRECT(\"a\" & (VLOOKUP(Switch!$D$56,$F$2:$G$44,2,FALSE)+ROW()-2)),\"\")","v":{"$error":"#N/A"}},{"$f":"IF(INDIRECT(\"c\" & (VLOOKUP(Switch!$D$57,$F$2:$G$44,2,FALSE)+ROW()-2))=Switch!$D$57,INDIRECT(\"a\" & (VLOOKUP(Switch!$D$57,$F$2:$G$44,2,FALSE)+ROW()-2)),\"\")","v":{"$error":"#N/A"}},{"$f":"IF(INDIRECT(\"c\" & (VLOOKUP(Switch!$D$58,$F$2:$G$44,2,FALSE)+ROW()-2))=Switch!$D$58,INDIRECT(\"a\" & (VLOOKUP(Switch!$D$58,$F$2:$G$44,2,FALSE)+ROW()-2)),\"\")","v":{"$error":"#N/A"}},{"$f":"IF(INDIRECT(\"c\" & (VLOOKUP(Switch!$D$59,$F$2:$G$44,2,FALSE)+ROW()-2))=Switch!$D$59,INDIRECT(\"a\" & (VLOOKUP(Switch!$D$59,$F$2:$G$44,2,FALSE)+ROW()-2)),\"\")","v":{"$error":"#N/A"}},{"$f":"IF(INDIRECT(\"c\" & (VLOOKUP(Switch!$D$60,$F$2:$G$44,2,FALSE)+ROW()-2))=Switch!$D$60,INDIRECT(\"a\" & (VLOOKUP(Switch!$D$60,$F$2:$G$44,2,FALSE)+ROW()-2)),\"\")","v":{"$error":"#N/A"}},{"$f":"IF(INDIRECT(\"c\" & (VLOOKUP(Switch!$D$61,$F$2:$G$44,2,FALSE)+ROW()-2))=Switch!$D$61,INDIRECT(\"a\" & (VLOOKUP(Switch!$D$61,$F$2:$G$44,2,FALSE)+ROW()-2)),\"\")","v":{"$error":"#N/A"}},{"$f":"IF(INDIRECT(\"c\" & (VLOOKUP(Switch!$D$62,$F$2:$G$44,2,FALSE)+ROW()-2))=Switch!$D$62,INDIRECT(\"a\" & (VLOOKUP(Switch!$D$62,$F$2:$G$44,2,FALSE)+ROW()-2)),\"\")","v":{"$error":"#N/A"}},{"$f":"IF(INDIRECT(\"c\" & (VLOOKUP(Switch!$D$63,$F$2:$G$44,2,FALSE)+ROW()-2))=Switch!$D$63,INDIRECT(\"a\" & (VLOOKUP(Switch!$D$63,$F$2:$G$44,2,FALSE)+ROW()-2)),\"\")","v":{"$error":"#N/A"}},{"$f":"IF(INDIRECT(\"c\" & (VLOOKUP(Switch!$D$64,$F$2:$G$44,2,FALSE)+ROW()-2))=Switch!$D$64,INDIRECT(\"a\" & (VLOOKUP(Switch!$D$64,$F$2:$G$44,2,FALSE)+ROW()-2)),\"\")","v":{"$error":"#N/A"}},{"$f":"IF(INDIRECT(\"c\" & (VLOOKUP(Switch!$D$65,$F$2:$G$44,2,FALSE)+ROW()-2))=Switch!$D$65,INDIRECT(\"a\" & (VLOOKUP(Switch!$D$65,$F$2:$G$44,2,FALSE)+ROW()-2)),\"\")","v":{"$error":"#N/A"}},{"$f":"IF(INDIRECT(\"c\" & (VLOOKUP(Switch!$D$66,$F$2:$G$44,2,FALSE)+ROW()-2))=Switch!$D$66,INDIRECT(\"a\" & (VLOOKUP(Switch!$D$66,$F$2:$G$44,2,FALSE)+ROW()-2)),\"\")","v":{"$error":"#N/A"}}]
["Old Mutual SA Quoted Property Fund B4","OSAB4","Old Mutual Unit Trust Managers Limited",{"$f":"ROW()","v":432},null,null,{"$f":"VLOOKUP(F432,$C$2:$D$637,2,FALSE)","v":{"$error":"#N/A"}},{"$f":"IF(INDIRECT(\"c\" & (VLOOKUP(Switch!$D$26,$F$2:$G$44,2,FALSE)+ROW()-2))=Switch!$D$26,INDIRECT(\"a\" & (VLOOKUP(Switch!$D$26,$F$2:$G$44,2,FALSE)+ROW()-2)),\"\")","v":{"$error":"#N/A"}},{"$f":"IF(INDIRECT(\"c\" & (VLOOKUP(Switch!$D$27,$F$2:$G$44,2,FALSE)+ROW()-2))=Switch!$D$27,INDIRECT(\"a\" & (VLOOKUP(Switch!$D$27,$F$2:$G$44,2,FALSE)+ROW()-2)),\"\")","v":{"$error":"#N/A"}},{"$f":"IF(INDIRECT(\"c\" & (VLOOKUP(Switch!$D$28,$F$2:$G$44,2,FALSE)+ROW()-2))=Switch!$D$28,INDIRECT(\"a\" & (VLOOKUP(Switch!$D$28,$F$2:$G$44,2,FALSE)+ROW()-2)),\"\")","v":{"$error":"#N/A"}},{"$f":"IF(INDIRECT(\"c\" & (VLOOKUP(Switch!$D$29,$F$2:$G$44,2,FALSE)+ROW()-2))=Switch!$D$29,INDIRECT(\"a\" & (VLOOKUP(Switch!$D$29,$F$2:$G$44,2,FALSE)+ROW()-2)),\"\")","v":{"$error":"#N/A"}},{"$f":"IF(INDIRECT(\"c\" & (VLOOKUP(Switch!$D$30,$F$2:$G$44,2,FALSE)+ROW()-2))=Switch!$D$30,INDIRECT(\"a\" & (VLOOKUP(Switch!$D$30,$F$2:$G$44,2,FALSE)+ROW()-2)),\"\")","v":{"$error":"#N/A"}},{"$f":"IF(INDIRECT(\"c\" & (VLOOKUP(Switch!$D$31,$F$2:$G$44,2,FALSE)+ROW()-2))=Switch!$D$31,INDIRECT(\"a\" & (VLOOKUP(Switch!$D$31,$F$2:$G$44,2,FALSE)+ROW()-2)),\"\")","v":{"$error":"#N/A"}},{"$f":"IF(INDIRECT(\"c\" & (VLOOKUP(Switch!$D$32,$F$2:$G$44,2,FALSE)+ROW()-2))=Switch!$D$32,INDIRECT(\"a\" & (VLOOKUP(Switch!$D$32,$F$2:$G$44,2,FALSE)+ROW()-2)),\"\")","v":{"$error":"#N/A"}},{"$f":"IF(INDIRECT(\"c\" & (VLOOKUP(Switch!$D$33,$F$2:$G$44,2,FALSE)+ROW()-2))=Switch!$D$33,INDIRECT(\"a\" & (VLOOKUP(Switch!$D$33,$F$2:$G$44,2,FALSE)+ROW()-2)),\"\")","v":{"$error":"#N/A"}},{"$f":"IF(INDIRECT(\"c\" & (VLOOKUP(Switch!$D$34,$F$2:$G$44,2,FALSE)+ROW()-2))=Switch!$D$34,INDIRECT(\"a\" & (VLOOKUP(Switch!$D$34,$F$2:$G$44,2,FALSE)+ROW()-2)),\"\")","v":{"$error":"#N/A"}},{"$f":"IF(INDIRECT(\"c\" & (VLOOKUP(Switch!$D$35,$F$2:$G$44,2,FALSE)+ROW()-2))=Switch!$D$35,INDIRECT(\"a\" & (VLOOKUP(Switch!$D$35,$F$2:$G$44,2,FALSE)+ROW()-2)),\"\")","v":{"$error":"#N/A"}},{"$f":"IF(INDIRECT(\"c\" & (VLOOKUP(Switch!$D$36,$F$2:$G$44,2,FALSE)+ROW()-2))=Switch!$D$36,INDIRECT(\"a\" & (VLOOKUP(Switch!$D$36,$F$2:$G$44,2,FALSE)+ROW()-2)),\"\")","v":{"$error":"#N/A"}},{"$f":"IF(INDIRECT(\"c\" & (VLOOKUP(Switch!$D$37,$F$2:$G$44,2,FALSE)+ROW()-2))=Switch!$D$37,INDIRECT(\"a\" & (VLOOKUP(Switch!$D$37,$F$2:$G$44,2,FALSE)+ROW()-2)),\"\")","v":{"$error":"#N/A"}},{"$f":"IF(INDIRECT(\"c\" & (VLOOKUP(Switch!$D$38,$F$2:$G$44,2,FALSE)+ROW()-2))=Switch!$D$38,INDIRECT(\"a\" & (VLOOKUP(Switch!$D$38,$F$2:$G$44,2,FALSE)+ROW()-2)),\"\")","v":{"$error":"#N/A"}},{"$f":"IF(INDIRECT(\"c\" & (VLOOKUP(Switch!$D$39,$F$2:$G$44,2,FALSE)+ROW()-2))=Switch!$D$39,INDIRECT(\"a\" & (VLOOKUP(Switch!$D$39,$F$2:$G$44,2,FALSE)+ROW()-2)),\"\")","v":{"$error":"#N/A"}},{"$f":"IF(INDIRECT(\"c\" & (VLOOKUP(Switch!$D$40,$F$2:$G$44,2,FALSE)+ROW()-2))=Switch!$D$40,INDIRECT(\"a\" & (VLOOKUP(Switch!$D$40,$F$2:$G$44,2,FALSE)+ROW()-2)),\"\")","v":{"$error":"#N/A"}},{"$f":"IF(INDIRECT(\"c\" & (VLOOKUP(Switch!$D$52,$F$2:$G$44,2,FALSE)+ROW()-2))=Switch!$D$52,INDIRECT(\"a\" & (VLOOKUP(Switch!$D$52,$F$2:$G$44,2,FALSE)+ROW()-2)),\"\")","v":{"$error":"#N/A"}},{"$f":"IF(INDIRECT(\"c\" & (VLOOKUP(Switch!$D$53,$F$2:$G$44,2,FALSE)+ROW()-2))=Switch!$D$53,INDIRECT(\"a\" & (VLOOKUP(Switch!$D$53,$F$2:$G$44,2,FALSE)+ROW()-2)),\"\")","v":{"$error":"#N/A"}},{"$f":"IF(INDIRECT(\"c\" & (VLOOKUP(Switch!$D$54,$F$2:$G$44,2,FALSE)+ROW()-2))=Switch!$D$54,INDIRECT(\"a\" & (VLOOKUP(Switch!$D$54,$F$2:$G$44,2,FALSE)+ROW()-2)),\"\")","v":{"$error":"#N/A"}},{"$f":"IF(INDIRECT(\"c\" & (VLOOKUP(Switch!$D$55,$F$2:$G$44,2,FALSE)+ROW()-2))=Switch!$D$55,INDIRECT(\"a\" & (VLOOKUP(Switch!$D$55,$F$2:$G$44,2,FALSE)+ROW()-2)),\"\")","v":{"$error":"#N/A"}},{"$f":"IF(INDIRECT(\"c\" & (VLOOKUP(Switch!$D$56,$F$2:$G$44,2,FALSE)+ROW()-2))=Switch!$D$56,INDIRECT(\"a\" & (VLOOKUP(Switch!$D$56,$F$2:$G$44,2,FALSE)+ROW()-2)),\"\")","v":{"$error":"#N/A"}},{"$f":"IF(INDIRECT(\"c\" & (VLOOKUP(Switch!$D$57,$F$2:$G$44,2,FALSE)+ROW()-2))=Switch!$D$57,INDIRECT(\"a\" & (VLOOKUP(Switch!$D$57,$F$2:$G$44,2,FALSE)+ROW()-2)),\"\")","v":{"$error":"#N/A"}},{"$f":"IF(INDIRECT(\"c\" & (VLOOKUP(Switch!$D$58,$F$2:$G$44,2,FALSE)+ROW()-2))=Switch!$D$58,INDIRECT(\"a\" & (VLOOKUP(Switch!$D$58,$F$2:$G$44,2,FALSE)+ROW()-2)),\"\")","v":{"$error":"#N/A"}},{"$f":"IF(INDIRECT(\"c\" & (VLOOKUP(Switch!$D$59,$F$2:$G$44,2,FALSE)+ROW()-2))=Switch!$D$59,INDIRECT(\"a\" & (VLOOKUP(Switch!$D$59,$F$2:$G$44,2,FALSE)+ROW()-2)),\"\")","v":{"$error":"#N/A"}},{"$f":"IF(INDIRECT(\"c\" & (VLOOKUP(Switch!$D$60,$F$2:$G$44,2,FALSE)+ROW()-2))=Switch!$D$60,INDIRECT(\"a\" & (VLOOKUP(Switch!$D$60,$F$2:$G$44,2,FALSE)+ROW()-2)),\"\")","v":{"$error":"#N/A"}},{"$f":"IF(INDIRECT(\"c\" & (VLOOKUP(Switch!$D$61,$F$2:$G$44,2,FALSE)+ROW()-2))=Switch!$D$61,INDIRECT(\"a\" & (VLOOKUP(Switch!$D$61,$F$2:$G$44,2,FALSE)+ROW()-2)),\"\")","v":{"$error":"#N/A"}},{"$f":"IF(INDIRECT(\"c\" & (VLOOKUP(Switch!$D$62,$F$2:$G$44,2,FALSE)+ROW()-2))=Switch!$D$62,INDIRECT(\"a\" & (VLOOKUP(Switch!$D$62,$F$2:$G$44,2,FALSE)+ROW()-2)),\"\")","v":{"$error":"#N/A"}},{"$f":"IF(INDIRECT(\"c\" & (VLOOKUP(Switch!$D$63,$F$2:$G$44,2,FALSE)+ROW()-2))=Switch!$D$63,INDIRECT(\"a\" & (VLOOKUP(Switch!$D$63,$F$2:$G$44,2,FALSE)+ROW()-2)),\"\")","v":{"$error":"#N/A"}},{"$f":"IF(INDIRECT(\"c\" & (VLOOKUP(Switch!$D$64,$F$2:$G$44,2,FALSE)+ROW()-2))=Switch!$D$64,INDIRECT(\"a\" & (VLOOKUP(Switch!$D$64,$F$2:$G$44,2,FALSE)+ROW()-2)),\"\")","v":{"$error":"#N/A"}},{"$f":"IF(INDIRECT(\"c\" & (VLOOKUP(Switch!$D$65,$F$2:$G$44,2,FALSE)+ROW()-2))=Switch!$D$65,INDIRECT(\"a\" & (VLOOKUP(Switch!$D$65,$F$2:$G$44,2,FALSE)+ROW()-2)),\"\")","v":{"$error":"#N/A"}},{"$f":"IF(INDIRECT(\"c\" & (VLOOKUP(Switch!$D$66,$F$2:$G$44,2,FALSE)+ROW()-2))=Switch!$D$66,INDIRECT(\"a\" & (VLOOKUP(Switch!$D$66,$F$2:$G$44,2,FALSE)+ROW()-2)),\"\")","v":{"$error":"#N/A"}}]
["Old Mutual SA Quoted Property Fund C","OSAB4","Old Mutual Unit Trust Managers Limited",{"$f":"ROW()","v":433},null,null,{"$f":"VLOOKUP(F433,$C$2:$D$637,2,FALSE)","v":{"$error":"#N/A"}},{"$f":"IF(INDIRECT(\"c\" & (VLOOKUP(Switch!$D$26,$F$2:$G$44,2,FALSE)+ROW()-2))=Switch!$D$26,INDIRECT(\"a\" & (VLOOKUP(Switch!$D$26,$F$2:$G$44,2,FALSE)+ROW()-2)),\"\")","v":{"$error":"#N/A"}},{"$f":"IF(INDIRECT(\"c\" & (VLOOKUP(Switch!$D$27,$F$2:$G$44,2,FALSE)+ROW()-2))=Switch!$D$27,INDIRECT(\"a\" & (VLOOKUP(Switch!$D$27,$F$2:$G$44,2,FALSE)+ROW()-2)),\"\")","v":{"$error":"#N/A"}},{"$f":"IF(INDIRECT(\"c\" & (VLOOKUP(Switch!$D$28,$F$2:$G$44,2,FALSE)+ROW()-2))=Switch!$D$28,INDIRECT(\"a\" & (VLOOKUP(Switch!$D$28,$F$2:$G$44,2,FALSE)+ROW()-2)),\"\")","v":{"$error":"#N/A"}},{"$f":"IF(INDIRECT(\"c\" & (VLOOKUP(Switch!$D$29,$F$2:$G$44,2,FALSE)+ROW()-2))=Switch!$D$29,INDIRECT(\"a\" & (VLOOKUP(Switch!$D$29,$F$2:$G$44,2,FALSE)+ROW()-2)),\"\")","v":{"$error":"#N/A"}},{"$f":"IF(INDIRECT(\"c\" & (VLOOKUP(Switch!$D$30,$F$2:$G$44,2,FALSE)+ROW()-2))=Switch!$D$30,INDIRECT(\"a\" & (VLOOKUP(Switch!$D$30,$F$2:$G$44,2,FALSE)+ROW()-2)),\"\")","v":{"$error":"#N/A"}},{"$f":"IF(INDIRECT(\"c\" & (VLOOKUP(Switch!$D$31,$F$2:$G$44,2,FALSE)+ROW()-2))=Switch!$D$31,INDIRECT(\"a\" & (VLOOKUP(Switch!$D$31,$F$2:$G$44,2,FALSE)+ROW()-2)),\"\")","v":{"$error":"#N/A"}},{"$f":"IF(INDIRECT(\"c\" & (VLOOKUP(Switch!$D$32,$F$2:$G$44,2,FALSE)+ROW()-2))=Switch!$D$32,INDIRECT(\"a\" & (VLOOKUP(Switch!$D$32,$F$2:$G$44,2,FALSE)+ROW()-2)),\"\")","v":{"$error":"#N/A"}},{"$f":"IF(INDIRECT(\"c\" & (VLOOKUP(Switch!$D$33,$F$2:$G$44,2,FALSE)+ROW()-2))=Switch!$D$33,INDIRECT(\"a\" & (VLOOKUP(Switch!$D$33,$F$2:$G$44,2,FALSE)+ROW()-2)),\"\")","v":{"$error":"#N/A"}},{"$f":"IF(INDIRECT(\"c\" & (VLOOKUP(Switch!$D$34,$F$2:$G$44,2,FALSE)+ROW()-2))=Switch!$D$34,INDIRECT(\"a\" & (VLOOKUP(Switch!$D$34,$F$2:$G$44,2,FALSE)+ROW()-2)),\"\")","v":{"$error":"#N/A"}},{"$f":"IF(INDIRECT(\"c\" & (VLOOKUP(Switch!$D$35,$F$2:$G$44,2,FALSE)+ROW()-2))=Switch!$D$35,INDIRECT(\"a\" & (VLOOKUP(Switch!$D$35,$F$2:$G$44,2,FALSE)+ROW()-2)),\"\")","v":{"$error":"#N/A"}},{"$f":"IF(INDIRECT(\"c\" & (VLOOKUP(Switch!$D$36,$F$2:$G$44,2,FALSE)+ROW()-2))=Switch!$D$36,INDIRECT(\"a\" & (VLOOKUP(Switch!$D$36,$F$2:$G$44,2,FALSE)+ROW()-2)),\"\")","v":{"$error":"#N/A"}},{"$f":"IF(INDIRECT(\"c\" & (VLOOKUP(Switch!$D$37,$F$2:$G$44,2,FALSE)+ROW()-2))=Switch!$D$37,INDIRECT(\"a\" & (VLOOKUP(Switch!$D$37,$F$2:$G$44,2,FALSE)+ROW()-2)),\"\")","v":{"$error":"#N/A"}},{"$f":"IF(INDIRECT(\"c\" & (VLOOKUP(Switch!$D$38,$F$2:$G$44,2,FALSE)+ROW()-2))=Switch!$D$38,INDIRECT(\"a\" & (VLOOKUP(Switch!$D$38,$F$2:$G$44,2,FALSE)+ROW()-2)),\"\")","v":{"$error":"#N/A"}},{"$f":"IF(INDIRECT(\"c\" & (VLOOKUP(Switch!$D$39,$F$2:$G$44,2,FALSE)+ROW()-2))=Switch!$D$39,INDIRECT(\"a\" & (VLOOKUP(Switch!$D$39,$F$2:$G$44,2,FALSE)+ROW()-2)),\"\")","v":{"$error":"#N/A"}},{"$f":"IF(INDIRECT(\"c\" & (VLOOKUP(Switch!$D$40,$F$2:$G$44,2,FALSE)+ROW()-2))=Switch!$D$40,INDIRECT(\"a\" & (VLOOKUP(Switch!$D$40,$F$2:$G$44,2,FALSE)+ROW()-2)),\"\")","v":{"$error":"#N/A"}},{"$f":"IF(INDIRECT(\"c\" & (VLOOKUP(Switch!$D$52,$F$2:$G$44,2,FALSE)+ROW()-2))=Switch!$D$52,INDIRECT(\"a\" & (VLOOKUP(Switch!$D$52,$F$2:$G$44,2,FALSE)+ROW()-2)),\"\")","v":{"$error":"#N/A"}},{"$f":"IF(INDIRECT(\"c\" & (VLOOKUP(Switch!$D$53,$F$2:$G$44,2,FALSE)+ROW()-2))=Switch!$D$53,INDIRECT(\"a\" & (VLOOKUP(Switch!$D$53,$F$2:$G$44,2,FALSE)+ROW()-2)),\"\")","v":{"$error":"#N/A"}},{"$f":"IF(INDIRECT(\"c\" & (VLOOKUP(Switch!$D$54,$F$2:$G$44,2,FALSE)+ROW()-2))=Switch!$D$54,INDIRECT(\"a\" & (VLOOKUP(Switch!$D$54,$F$2:$G$44,2,FALSE)+ROW()-2)),\"\")","v":{"$error":"#N/A"}},{"$f":"IF(INDIRECT(\"c\" & (VLOOKUP(Switch!$D$55,$F$2:$G$44,2,FALSE)+ROW()-2))=Switch!$D$55,INDIRECT(\"a\" & (VLOOKUP(Switch!$D$55,$F$2:$G$44,2,FALSE)+ROW()-2)),\"\")","v":{"$error":"#N/A"}},{"$f":"IF(INDIRECT(\"c\" & (VLOOKUP(Switch!$D$56,$F$2:$G$44,2,FALSE)+ROW()-2))=Switch!$D$56,INDIRECT(\"a\" & (VLOOKUP(Switch!$D$56,$F$2:$G$44,2,FALSE)+ROW()-2)),\"\")","v":{"$error":"#N/A"}},{"$f":"IF(INDIRECT(\"c\" & (VLOOKUP(Switch!$D$57,$F$2:$G$44,2,FALSE)+ROW()-2))=Switch!$D$57,INDIRECT(\"a\" & (VLOOKUP(Switch!$D$57,$F$2:$G$44,2,FALSE)+ROW()-2)),\"\")","v":{"$error":"#N/A"}},{"$f":"IF(INDIRECT(\"c\" & (VLOOKUP(Switch!$D$58,$F$2:$G$44,2,FALSE)+ROW()-2))=Switch!$D$58,INDIRECT(\"a\" & (VLOOKUP(Switch!$D$58,$F$2:$G$44,2,FALSE)+ROW()-2)),\"\")","v":{"$error":"#N/A"}},{"$f":"IF(INDIRECT(\"c\" & (VLOOKUP(Switch!$D$59,$F$2:$G$44,2,FALSE)+ROW()-2))=Switch!$D$59,INDIRECT(\"a\" & (VLOOKUP(Switch!$D$59,$F$2:$G$44,2,FALSE)+ROW()-2)),\"\")","v":{"$error":"#N/A"}},{"$f":"IF(INDIRECT(\"c\" & (VLOOKUP(Switch!$D$60,$F$2:$G$44,2,FALSE)+ROW()-2))=Switch!$D$60,INDIRECT(\"a\" & (VLOOKUP(Switch!$D$60,$F$2:$G$44,2,FALSE)+ROW()-2)),\"\")","v":{"$error":"#N/A"}},{"$f":"IF(INDIRECT(\"c\" & (VLOOKUP(Switch!$D$61,$F$2:$G$44,2,FALSE)+ROW()-2))=Switch!$D$61,INDIRECT(\"a\" & (VLOOKUP(Switch!$D$61,$F$2:$G$44,2,FALSE)+ROW()-2)),\"\")","v":{"$error":"#N/A"}},{"$f":"IF(INDIRECT(\"c\" & (VLOOKUP(Switch!$D$62,$F$2:$G$44,2,FALSE)+ROW()-2))=Switch!$D$62,INDIRECT(\"a\" & (VLOOKUP(Switch!$D$62,$F$2:$G$44,2,FALSE)+ROW()-2)),\"\")","v":{"$error":"#N/A"}},{"$f":"IF(INDIRECT(\"c\" & (VLOOKUP(Switch!$D$63,$F$2:$G$44,2,FALSE)+ROW()-2))=Switch!$D$63,INDIRECT(\"a\" & (VLOOKUP(Switch!$D$63,$F$2:$G$44,2,FALSE)+ROW()-2)),\"\")","v":{"$error":"#N/A"}},{"$f":"IF(INDIRECT(\"c\" & (VLOOKUP(Switch!$D$64,$F$2:$G$44,2,FALSE)+ROW()-2))=Switch!$D$64,INDIRECT(\"a\" & (VLOOKUP(Switch!$D$64,$F$2:$G$44,2,FALSE)+ROW()-2)),\"\")","v":{"$error":"#N/A"}},{"$f":"IF(INDIRECT(\"c\" & (VLOOKUP(Switch!$D$65,$F$2:$G$44,2,FALSE)+ROW()-2))=Switch!$D$65,INDIRECT(\"a\" & (VLOOKUP(Switch!$D$65,$F$2:$G$44,2,FALSE)+ROW()-2)),\"\")","v":{"$error":"#N/A"}},{"$f":"IF(INDIRECT(\"c\" & (VLOOKUP(Switch!$D$66,$F$2:$G$44,2,FALSE)+ROW()-2))=Switch!$D$66,INDIRECT(\"a\" & (VLOOKUP(Switch!$D$66,$F$2:$G$44,2,FALSE)+ROW()-2)),\"\")","v":{"$error":"#N/A"}}]
["Old Mutual Small Companies Fund Class A","OMCFA","Old Mutual Unit Trust Managers Limited",{"$f":"ROW()","v":434},null,null,{"$f":"VLOOKUP(F434,$C$2:$D$637,2,FALSE)","v":{"$error":"#N/A"}},{"$f":"IF(INDIRECT(\"c\" & (VLOOKUP(Switch!$D$26,$F$2:$G$44,2,FALSE)+ROW()-2))=Switch!$D$26,INDIRECT(\"a\" & (VLOOKUP(Switch!$D$26,$F$2:$G$44,2,FALSE)+ROW()-2)),\"\")","v":{"$error":"#N/A"}},{"$f":"IF(INDIRECT(\"c\" & (VLOOKUP(Switch!$D$27,$F$2:$G$44,2,FALSE)+ROW()-2))=Switch!$D$27,INDIRECT(\"a\" & (VLOOKUP(Switch!$D$27,$F$2:$G$44,2,FALSE)+ROW()-2)),\"\")","v":{"$error":"#N/A"}},{"$f":"IF(INDIRECT(\"c\" & (VLOOKUP(Switch!$D$28,$F$2:$G$44,2,FALSE)+ROW()-2))=Switch!$D$28,INDIRECT(\"a\" & (VLOOKUP(Switch!$D$28,$F$2:$G$44,2,FALSE)+ROW()-2)),\"\")","v":{"$error":"#N/A"}},{"$f":"IF(INDIRECT(\"c\" & (VLOOKUP(Switch!$D$29,$F$2:$G$44,2,FALSE)+ROW()-2))=Switch!$D$29,INDIRECT(\"a\" & (VLOOKUP(Switch!$D$29,$F$2:$G$44,2,FALSE)+ROW()-2)),\"\")","v":{"$error":"#N/A"}},{"$f":"IF(INDIRECT(\"c\" & (VLOOKUP(Switch!$D$30,$F$2:$G$44,2,FALSE)+ROW()-2))=Switch!$D$30,INDIRECT(\"a\" & (VLOOKUP(Switch!$D$30,$F$2:$G$44,2,FALSE)+ROW()-2)),\"\")","v":{"$error":"#N/A"}},{"$f":"IF(INDIRECT(\"c\" & (VLOOKUP(Switch!$D$31,$F$2:$G$44,2,FALSE)+ROW()-2))=Switch!$D$31,INDIRECT(\"a\" & (VLOOKUP(Switch!$D$31,$F$2:$G$44,2,FALSE)+ROW()-2)),\"\")","v":{"$error":"#N/A"}},{"$f":"IF(INDIRECT(\"c\" & (VLOOKUP(Switch!$D$32,$F$2:$G$44,2,FALSE)+ROW()-2))=Switch!$D$32,INDIRECT(\"a\" & (VLOOKUP(Switch!$D$32,$F$2:$G$44,2,FALSE)+ROW()-2)),\"\")","v":{"$error":"#N/A"}},{"$f":"IF(INDIRECT(\"c\" & (VLOOKUP(Switch!$D$33,$F$2:$G$44,2,FALSE)+ROW()-2))=Switch!$D$33,INDIRECT(\"a\" & (VLOOKUP(Switch!$D$33,$F$2:$G$44,2,FALSE)+ROW()-2)),\"\")","v":{"$error":"#N/A"}},{"$f":"IF(INDIRECT(\"c\" & (VLOOKUP(Switch!$D$34,$F$2:$G$44,2,FALSE)+ROW()-2))=Switch!$D$34,INDIRECT(\"a\" & (VLOOKUP(Switch!$D$34,$F$2:$G$44,2,FALSE)+ROW()-2)),\"\")","v":{"$error":"#N/A"}},{"$f":"IF(INDIRECT(\"c\" & (VLOOKUP(Switch!$D$35,$F$2:$G$44,2,FALSE)+ROW()-2))=Switch!$D$35,INDIRECT(\"a\" & (VLOOKUP(Switch!$D$35,$F$2:$G$44,2,FALSE)+ROW()-2)),\"\")","v":{"$error":"#N/A"}},{"$f":"IF(INDIRECT(\"c\" & (VLOOKUP(Switch!$D$36,$F$2:$G$44,2,FALSE)+ROW()-2))=Switch!$D$36,INDIRECT(\"a\" & (VLOOKUP(Switch!$D$36,$F$2:$G$44,2,FALSE)+ROW()-2)),\"\")","v":{"$error":"#N/A"}},{"$f":"IF(INDIRECT(\"c\" & (VLOOKUP(Switch!$D$37,$F$2:$G$44,2,FALSE)+ROW()-2))=Switch!$D$37,INDIRECT(\"a\" & (VLOOKUP(Switch!$D$37,$F$2:$G$44,2,FALSE)+ROW()-2)),\"\")","v":{"$error":"#N/A"}},{"$f":"IF(INDIRECT(\"c\" & (VLOOKUP(Switch!$D$38,$F$2:$G$44,2,FALSE)+ROW()-2))=Switch!$D$38,INDIRECT(\"a\" & (VLOOKUP(Switch!$D$38,$F$2:$G$44,2,FALSE)+ROW()-2)),\"\")","v":{"$error":"#N/A"}},{"$f":"IF(INDIRECT(\"c\" & (VLOOKUP(Switch!$D$39,$F$2:$G$44,2,FALSE)+ROW()-2))=Switch!$D$39,INDIRECT(\"a\" & (VLOOKUP(Switch!$D$39,$F$2:$G$44,2,FALSE)+ROW()-2)),\"\")","v":{"$error":"#N/A"}},{"$f":"IF(INDIRECT(\"c\" & (VLOOKUP(Switch!$D$40,$F$2:$G$44,2,FALSE)+ROW()-2))=Switch!$D$40,INDIRECT(\"a\" & (VLOOKUP(Switch!$D$40,$F$2:$G$44,2,FALSE)+ROW()-2)),\"\")","v":{"$error":"#N/A"}},{"$f":"IF(INDIRECT(\"c\" & (VLOOKUP(Switch!$D$52,$F$2:$G$44,2,FALSE)+ROW()-2))=Switch!$D$52,INDIRECT(\"a\" & (VLOOKUP(Switch!$D$52,$F$2:$G$44,2,FALSE)+ROW()-2)),\"\")","v":{"$error":"#N/A"}},{"$f":"IF(INDIRECT(\"c\" & (VLOOKUP(Switch!$D$53,$F$2:$G$44,2,FALSE)+ROW()-2))=Switch!$D$53,INDIRECT(\"a\" & (VLOOKUP(Switch!$D$53,$F$2:$G$44,2,FALSE)+ROW()-2)),\"\")","v":{"$error":"#N/A"}},{"$f":"IF(INDIRECT(\"c\" & (VLOOKUP(Switch!$D$54,$F$2:$G$44,2,FALSE)+ROW()-2))=Switch!$D$54,INDIRECT(\"a\" & (VLOOKUP(Switch!$D$54,$F$2:$G$44,2,FALSE)+ROW()-2)),\"\")","v":{"$error":"#N/A"}},{"$f":"IF(INDIRECT(\"c\" & (VLOOKUP(Switch!$D$55,$F$2:$G$44,2,FALSE)+ROW()-2))=Switch!$D$55,INDIRECT(\"a\" & (VLOOKUP(Switch!$D$55,$F$2:$G$44,2,FALSE)+ROW()-2)),\"\")","v":{"$error":"#N/A"}},{"$f":"IF(INDIRECT(\"c\" & (VLOOKUP(Switch!$D$56,$F$2:$G$44,2,FALSE)+ROW()-2))=Switch!$D$56,INDIRECT(\"a\" & (VLOOKUP(Switch!$D$56,$F$2:$G$44,2,FALSE)+ROW()-2)),\"\")","v":{"$error":"#N/A"}},{"$f":"IF(INDIRECT(\"c\" & (VLOOKUP(Switch!$D$57,$F$2:$G$44,2,FALSE)+ROW()-2))=Switch!$D$57,INDIRECT(\"a\" & (VLOOKUP(Switch!$D$57,$F$2:$G$44,2,FALSE)+ROW()-2)),\"\")","v":{"$error":"#N/A"}},{"$f":"IF(INDIRECT(\"c\" & (VLOOKUP(Switch!$D$58,$F$2:$G$44,2,FALSE)+ROW()-2))=Switch!$D$58,INDIRECT(\"a\" & (VLOOKUP(Switch!$D$58,$F$2:$G$44,2,FALSE)+ROW()-2)),\"\")","v":{"$error":"#N/A"}},{"$f":"IF(INDIRECT(\"c\" & (VLOOKUP(Switch!$D$59,$F$2:$G$44,2,FALSE)+ROW()-2))=Switch!$D$59,INDIRECT(\"a\" & (VLOOKUP(Switch!$D$59,$F$2:$G$44,2,FALSE)+ROW()-2)),\"\")","v":{"$error":"#N/A"}},{"$f":"IF(INDIRECT(\"c\" & (VLOOKUP(Switch!$D$60,$F$2:$G$44,2,FALSE)+ROW()-2))=Switch!$D$60,INDIRECT(\"a\" & (VLOOKUP(Switch!$D$60,$F$2:$G$44,2,FALSE)+ROW()-2)),\"\")","v":{"$error":"#N/A"}},{"$f":"IF(INDIRECT(\"c\" & (VLOOKUP(Switch!$D$61,$F$2:$G$44,2,FALSE)+ROW()-2))=Switch!$D$61,INDIRECT(\"a\" & (VLOOKUP(Switch!$D$61,$F$2:$G$44,2,FALSE)+ROW()-2)),\"\")","v":{"$error":"#N/A"}},{"$f":"IF(INDIRECT(\"c\" & (VLOOKUP(Switch!$D$62,$F$2:$G$44,2,FALSE)+ROW()-2))=Switch!$D$62,INDIRECT(\"a\" & (VLOOKUP(Switch!$D$62,$F$2:$G$44,2,FALSE)+ROW()-2)),\"\")","v":{"$error":"#N/A"}},{"$f":"IF(INDIRECT(\"c\" & (VLOOKUP(Switch!$D$63,$F$2:$G$44,2,FALSE)+ROW()-2))=Switch!$D$63,INDIRECT(\"a\" & (VLOOKUP(Switch!$D$63,$F$2:$G$44,2,FALSE)+ROW()-2)),\"\")","v":{"$error":"#N/A"}},{"$f":"IF(INDIRECT(\"c\" & (VLOOKUP(Switch!$D$64,$F$2:$G$44,2,FALSE)+ROW()-2))=Switch!$D$64,INDIRECT(\"a\" & (VLOOKUP(Switch!$D$64,$F$2:$G$44,2,FALSE)+ROW()-2)),\"\")","v":{"$error":"#N/A"}},{"$f":"IF(INDIRECT(\"c\" & (VLOOKUP(Switch!$D$65,$F$2:$G$44,2,FALSE)+ROW()-2))=Switch!$D$65,INDIRECT(\"a\" & (VLOOKUP(Switch!$D$65,$F$2:$G$44,2,FALSE)+ROW()-2)),\"\")","v":{"$error":"#N/A"}},{"$f":"IF(INDIRECT(\"c\" & (VLOOKUP(Switch!$D$66,$F$2:$G$44,2,FALSE)+ROW()-2))=Switch!$D$66,INDIRECT(\"a\" & (VLOOKUP(Switch!$D$66,$F$2:$G$44,2,FALSE)+ROW()-2)),\"\")","v":{"$error":"#N/A"}}]
["Old Mutual Top Companies Fund Class A","OMTFA","Old Mutual Unit Trust Managers Limited",{"$f":"ROW()","v":435},null,null,{"$f":"VLOOKUP(F435,$C$2:$D$637,2,FALSE)","v":{"$error":"#N/A"}},{"$f":"IF(INDIRECT(\"c\" & (VLOOKUP(Switch!$D$26,$F$2:$G$44,2,FALSE)+ROW()-2))=Switch!$D$26,INDIRECT(\"a\" & (VLOOKUP(Switch!$D$26,$F$2:$G$44,2,FALSE)+ROW()-2)),\"\")","v":{"$error":"#N/A"}},{"$f":"IF(INDIRECT(\"c\" & (VLOOKUP(Switch!$D$27,$F$2:$G$44,2,FALSE)+ROW()-2))=Switch!$D$27,INDIRECT(\"a\" & (VLOOKUP(Switch!$D$27,$F$2:$G$44,2,FALSE)+ROW()-2)),\"\")","v":{"$error":"#N/A"}},{"$f":"IF(INDIRECT(\"c\" & (VLOOKUP(Switch!$D$28,$F$2:$G$44,2,FALSE)+ROW()-2))=Switch!$D$28,INDIRECT(\"a\" & (VLOOKUP(Switch!$D$28,$F$2:$G$44,2,FALSE)+ROW()-2)),\"\")","v":{"$error":"#N/A"}},{"$f":"IF(INDIRECT(\"c\" & (VLOOKUP(Switch!$D$29,$F$2:$G$44,2,FALSE)+ROW()-2))=Switch!$D$29,INDIRECT(\"a\" & (VLOOKUP(Switch!$D$29,$F$2:$G$44,2,FALSE)+ROW()-2)),\"\")","v":{"$error":"#N/A"}},{"$f":"IF(INDIRECT(\"c\" & (VLOOKUP(Switch!$D$30,$F$2:$G$44,2,FALSE)+ROW()-2))=Switch!$D$30,INDIRECT(\"a\" & (VLOOKUP(Switch!$D$30,$F$2:$G$44,2,FALSE)+ROW()-2)),\"\")","v":{"$error":"#N/A"}},{"$f":"IF(INDIRECT(\"c\" & (VLOOKUP(Switch!$D$31,$F$2:$G$44,2,FALSE)+ROW()-2))=Switch!$D$31,INDIRECT(\"a\" & (VLOOKUP(Switch!$D$31,$F$2:$G$44,2,FALSE)+ROW()-2)),\"\")","v":{"$error":"#N/A"}},{"$f":"IF(INDIRECT(\"c\" & (VLOOKUP(Switch!$D$32,$F$2:$G$44,2,FALSE)+ROW()-2))=Switch!$D$32,INDIRECT(\"a\" & (VLOOKUP(Switch!$D$32,$F$2:$G$44,2,FALSE)+ROW()-2)),\"\")","v":{"$error":"#N/A"}},{"$f":"IF(INDIRECT(\"c\" & (VLOOKUP(Switch!$D$33,$F$2:$G$44,2,FALSE)+ROW()-2))=Switch!$D$33,INDIRECT(\"a\" & (VLOOKUP(Switch!$D$33,$F$2:$G$44,2,FALSE)+ROW()-2)),\"\")","v":{"$error":"#N/A"}},{"$f":"IF(INDIRECT(\"c\" & (VLOOKUP(Switch!$D$34,$F$2:$G$44,2,FALSE)+ROW()-2))=Switch!$D$34,INDIRECT(\"a\" & (VLOOKUP(Switch!$D$34,$F$2:$G$44,2,FALSE)+ROW()-2)),\"\")","v":{"$error":"#N/A"}},{"$f":"IF(INDIRECT(\"c\" & (VLOOKUP(Switch!$D$35,$F$2:$G$44,2,FALSE)+ROW()-2))=Switch!$D$35,INDIRECT(\"a\" & (VLOOKUP(Switch!$D$35,$F$2:$G$44,2,FALSE)+ROW()-2)),\"\")","v":{"$error":"#N/A"}},{"$f":"IF(INDIRECT(\"c\" & (VLOOKUP(Switch!$D$36,$F$2:$G$44,2,FALSE)+ROW()-2))=Switch!$D$36,INDIRECT(\"a\" & (VLOOKUP(Switch!$D$36,$F$2:$G$44,2,FALSE)+ROW()-2)),\"\")","v":{"$error":"#N/A"}},{"$f":"IF(INDIRECT(\"c\" & (VLOOKUP(Switch!$D$37,$F$2:$G$44,2,FALSE)+ROW()-2))=Switch!$D$37,INDIRECT(\"a\" & (VLOOKUP(Switch!$D$37,$F$2:$G$44,2,FALSE)+ROW()-2)),\"\")","v":{"$error":"#N/A"}},{"$f":"IF(INDIRECT(\"c\" & (VLOOKUP(Switch!$D$38,$F$2:$G$44,2,FALSE)+ROW()-2))=Switch!$D$38,INDIRECT(\"a\" & (VLOOKUP(Switch!$D$38,$F$2:$G$44,2,FALSE)+ROW()-2)),\"\")","v":{"$error":"#N/A"}},{"$f":"IF(INDIRECT(\"c\" & (VLOOKUP(Switch!$D$39,$F$2:$G$44,2,FALSE)+ROW()-2))=Switch!$D$39,INDIRECT(\"a\" & (VLOOKUP(Switch!$D$39,$F$2:$G$44,2,FALSE)+ROW()-2)),\"\")","v":{"$error":"#N/A"}},{"$f":"IF(INDIRECT(\"c\" & (VLOOKUP(Switch!$D$40,$F$2:$G$44,2,FALSE)+ROW()-2))=Switch!$D$40,INDIRECT(\"a\" & (VLOOKUP(Switch!$D$40,$F$2:$G$44,2,FALSE)+ROW()-2)),\"\")","v":{"$error":"#N/A"}},{"$f":"IF(INDIRECT(\"c\" & (VLOOKUP(Switch!$D$52,$F$2:$G$44,2,FALSE)+ROW()-2))=Switch!$D$52,INDIRECT(\"a\" & (VLOOKUP(Switch!$D$52,$F$2:$G$44,2,FALSE)+ROW()-2)),\"\")","v":{"$error":"#N/A"}},{"$f":"IF(INDIRECT(\"c\" & (VLOOKUP(Switch!$D$53,$F$2:$G$44,2,FALSE)+ROW()-2))=Switch!$D$53,INDIRECT(\"a\" & (VLOOKUP(Switch!$D$53,$F$2:$G$44,2,FALSE)+ROW()-2)),\"\")","v":{"$error":"#N/A"}},{"$f":"IF(INDIRECT(\"c\" & (VLOOKUP(Switch!$D$54,$F$2:$G$44,2,FALSE)+ROW()-2))=Switch!$D$54,INDIRECT(\"a\" & (VLOOKUP(Switch!$D$54,$F$2:$G$44,2,FALSE)+ROW()-2)),\"\")","v":{"$error":"#N/A"}},{"$f":"IF(INDIRECT(\"c\" & (VLOOKUP(Switch!$D$55,$F$2:$G$44,2,FALSE)+ROW()-2))=Switch!$D$55,INDIRECT(\"a\" & (VLOOKUP(Switch!$D$55,$F$2:$G$44,2,FALSE)+ROW()-2)),\"\")","v":{"$error":"#N/A"}},{"$f":"IF(INDIRECT(\"c\" & (VLOOKUP(Switch!$D$56,$F$2:$G$44,2,FALSE)+ROW()-2))=Switch!$D$56,INDIRECT(\"a\" & (VLOOKUP(Switch!$D$56,$F$2:$G$44,2,FALSE)+ROW()-2)),\"\")","v":{"$error":"#N/A"}},{"$f":"IF(INDIRECT(\"c\" & (VLOOKUP(Switch!$D$57,$F$2:$G$44,2,FALSE)+ROW()-2))=Switch!$D$57,INDIRECT(\"a\" & (VLOOKUP(Switch!$D$57,$F$2:$G$44,2,FALSE)+ROW()-2)),\"\")","v":{"$error":"#N/A"}},{"$f":"IF(INDIRECT(\"c\" & (VLOOKUP(Switch!$D$58,$F$2:$G$44,2,FALSE)+ROW()-2))=Switch!$D$58,INDIRECT(\"a\" & (VLOOKUP(Switch!$D$58,$F$2:$G$44,2,FALSE)+ROW()-2)),\"\")","v":{"$error":"#N/A"}},{"$f":"IF(INDIRECT(\"c\" & (VLOOKUP(Switch!$D$59,$F$2:$G$44,2,FALSE)+ROW()-2))=Switch!$D$59,INDIRECT(\"a\" & (VLOOKUP(Switch!$D$59,$F$2:$G$44,2,FALSE)+ROW()-2)),\"\")","v":{"$error":"#N/A"}},{"$f":"IF(INDIRECT(\"c\" & (VLOOKUP(Switch!$D$60,$F$2:$G$44,2,FALSE)+ROW()-2))=Switch!$D$60,INDIRECT(\"a\" & (VLOOKUP(Switch!$D$60,$F$2:$G$44,2,FALSE)+ROW()-2)),\"\")","v":{"$error":"#N/A"}},{"$f":"IF(INDIRECT(\"c\" & (VLOOKUP(Switch!$D$61,$F$2:$G$44,2,FALSE)+ROW()-2))=Switch!$D$61,INDIRECT(\"a\" & (VLOOKUP(Switch!$D$61,$F$2:$G$44,2,FALSE)+ROW()-2)),\"\")","v":{"$error":"#N/A"}},{"$f":"IF(INDIRECT(\"c\" & (VLOOKUP(Switch!$D$62,$F$2:$G$44,2,FALSE)+ROW()-2))=Switch!$D$62,INDIRECT(\"a\" & (VLOOKUP(Switch!$D$62,$F$2:$G$44,2,FALSE)+ROW()-2)),\"\")","v":{"$error":"#N/A"}},{"$f":"IF(INDIRECT(\"c\" & (VLOOKUP(Switch!$D$63,$F$2:$G$44,2,FALSE)+ROW()-2))=Switch!$D$63,INDIRECT(\"a\" & (VLOOKUP(Switch!$D$63,$F$2:$G$44,2,FALSE)+ROW()-2)),\"\")","v":{"$error":"#N/A"}},{"$f":"IF(INDIRECT(\"c\" & (VLOOKUP(Switch!$D$64,$F$2:$G$44,2,FALSE)+ROW()-2))=Switch!$D$64,INDIRECT(\"a\" & (VLOOKUP(Switch!$D$64,$F$2:$G$44,2,FALSE)+ROW()-2)),\"\")","v":{"$error":"#N/A"}},{"$f":"IF(INDIRECT(\"c\" & (VLOOKUP(Switch!$D$65,$F$2:$G$44,2,FALSE)+ROW()-2))=Switch!$D$65,INDIRECT(\"a\" & (VLOOKUP(Switch!$D$65,$F$2:$G$44,2,FALSE)+ROW()-2)),\"\")","v":{"$error":"#N/A"}},{"$f":"IF(INDIRECT(\"c\" & (VLOOKUP(Switch!$D$66,$F$2:$G$44,2,FALSE)+ROW()-2))=Switch!$D$66,INDIRECT(\"a\" & (VLOOKUP(Switch!$D$66,$F$2:$G$44,2,FALSE)+ROW()-2)),\"\")","v":{"$error":"#N/A"}}]
["27four Balanced Prescient Fund of Funds A6","BPFA6","Prescient Management Company Ltd",{"$f":"ROW()","v":436},null,null,{"$f":"VLOOKUP(F436,$C$2:$D$637,2,FALSE)","v":{"$error":"#N/A"}},{"$f":"IF(INDIRECT(\"c\" & (VLOOKUP(Switch!$D$26,$F$2:$G$44,2,FALSE)+ROW()-2))=Switch!$D$26,INDIRECT(\"a\" & (VLOOKUP(Switch!$D$26,$F$2:$G$44,2,FALSE)+ROW()-2)),\"\")","v":{"$error":"#N/A"}},{"$f":"IF(INDIRECT(\"c\" & (VLOOKUP(Switch!$D$27,$F$2:$G$44,2,FALSE)+ROW()-2))=Switch!$D$27,INDIRECT(\"a\" & (VLOOKUP(Switch!$D$27,$F$2:$G$44,2,FALSE)+ROW()-2)),\"\")","v":{"$error":"#N/A"}},{"$f":"IF(INDIRECT(\"c\" & (VLOOKUP(Switch!$D$28,$F$2:$G$44,2,FALSE)+ROW()-2))=Switch!$D$28,INDIRECT(\"a\" & (VLOOKUP(Switch!$D$28,$F$2:$G$44,2,FALSE)+ROW()-2)),\"\")","v":{"$error":"#N/A"}},{"$f":"IF(INDIRECT(\"c\" & (VLOOKUP(Switch!$D$29,$F$2:$G$44,2,FALSE)+ROW()-2))=Switch!$D$29,INDIRECT(\"a\" & (VLOOKUP(Switch!$D$29,$F$2:$G$44,2,FALSE)+ROW()-2)),\"\")","v":{"$error":"#N/A"}},{"$f":"IF(INDIRECT(\"c\" & (VLOOKUP(Switch!$D$30,$F$2:$G$44,2,FALSE)+ROW()-2))=Switch!$D$30,INDIRECT(\"a\" & (VLOOKUP(Switch!$D$30,$F$2:$G$44,2,FALSE)+ROW()-2)),\"\")","v":{"$error":"#N/A"}},{"$f":"IF(INDIRECT(\"c\" & (VLOOKUP(Switch!$D$31,$F$2:$G$44,2,FALSE)+ROW()-2))=Switch!$D$31,INDIRECT(\"a\" & (VLOOKUP(Switch!$D$31,$F$2:$G$44,2,FALSE)+ROW()-2)),\"\")","v":{"$error":"#N/A"}},{"$f":"IF(INDIRECT(\"c\" & (VLOOKUP(Switch!$D$32,$F$2:$G$44,2,FALSE)+ROW()-2))=Switch!$D$32,INDIRECT(\"a\" & (VLOOKUP(Switch!$D$32,$F$2:$G$44,2,FALSE)+ROW()-2)),\"\")","v":{"$error":"#N/A"}},{"$f":"IF(INDIRECT(\"c\" & (VLOOKUP(Switch!$D$33,$F$2:$G$44,2,FALSE)+ROW()-2))=Switch!$D$33,INDIRECT(\"a\" & (VLOOKUP(Switch!$D$33,$F$2:$G$44,2,FALSE)+ROW()-2)),\"\")","v":{"$error":"#N/A"}},{"$f":"IF(INDIRECT(\"c\" & (VLOOKUP(Switch!$D$34,$F$2:$G$44,2,FALSE)+ROW()-2))=Switch!$D$34,INDIRECT(\"a\" & (VLOOKUP(Switch!$D$34,$F$2:$G$44,2,FALSE)+ROW()-2)),\"\")","v":{"$error":"#N/A"}},{"$f":"IF(INDIRECT(\"c\" & (VLOOKUP(Switch!$D$35,$F$2:$G$44,2,FALSE)+ROW()-2))=Switch!$D$35,INDIRECT(\"a\" & (VLOOKUP(Switch!$D$35,$F$2:$G$44,2,FALSE)+ROW()-2)),\"\")","v":{"$error":"#N/A"}},{"$f":"IF(INDIRECT(\"c\" & (VLOOKUP(Switch!$D$36,$F$2:$G$44,2,FALSE)+ROW()-2))=Switch!$D$36,INDIRECT(\"a\" & (VLOOKUP(Switch!$D$36,$F$2:$G$44,2,FALSE)+ROW()-2)),\"\")","v":{"$error":"#N/A"}},{"$f":"IF(INDIRECT(\"c\" & (VLOOKUP(Switch!$D$37,$F$2:$G$44,2,FALSE)+ROW()-2))=Switch!$D$37,INDIRECT(\"a\" & (VLOOKUP(Switch!$D$37,$F$2:$G$44,2,FALSE)+ROW()-2)),\"\")","v":{"$error":"#N/A"}},{"$f":"IF(INDIRECT(\"c\" & (VLOOKUP(Switch!$D$38,$F$2:$G$44,2,FALSE)+ROW()-2))=Switch!$D$38,INDIRECT(\"a\" & (VLOOKUP(Switch!$D$38,$F$2:$G$44,2,FALSE)+ROW()-2)),\"\")","v":{"$error":"#N/A"}},{"$f":"IF(INDIRECT(\"c\" & (VLOOKUP(Switch!$D$39,$F$2:$G$44,2,FALSE)+ROW()-2))=Switch!$D$39,INDIRECT(\"a\" & (VLOOKUP(Switch!$D$39,$F$2:$G$44,2,FALSE)+ROW()-2)),\"\")","v":{"$error":"#N/A"}},{"$f":"IF(INDIRECT(\"c\" & (VLOOKUP(Switch!$D$40,$F$2:$G$44,2,FALSE)+ROW()-2))=Switch!$D$40,INDIRECT(\"a\" & (VLOOKUP(Switch!$D$40,$F$2:$G$44,2,FALSE)+ROW()-2)),\"\")","v":{"$error":"#N/A"}},{"$f":"IF(INDIRECT(\"c\" & (VLOOKUP(Switch!$D$52,$F$2:$G$44,2,FALSE)+ROW()-2))=Switch!$D$52,INDIRECT(\"a\" & (VLOOKUP(Switch!$D$52,$F$2:$G$44,2,FALSE)+ROW()-2)),\"\")","v":{"$error":"#N/A"}},{"$f":"IF(INDIRECT(\"c\" & (VLOOKUP(Switch!$D$53,$F$2:$G$44,2,FALSE)+ROW()-2))=Switch!$D$53,INDIRECT(\"a\" & (VLOOKUP(Switch!$D$53,$F$2:$G$44,2,FALSE)+ROW()-2)),\"\")","v":{"$error":"#N/A"}},{"$f":"IF(INDIRECT(\"c\" & (VLOOKUP(Switch!$D$54,$F$2:$G$44,2,FALSE)+ROW()-2))=Switch!$D$54,INDIRECT(\"a\" & (VLOOKUP(Switch!$D$54,$F$2:$G$44,2,FALSE)+ROW()-2)),\"\")","v":{"$error":"#N/A"}},{"$f":"IF(INDIRECT(\"c\" & (VLOOKUP(Switch!$D$55,$F$2:$G$44,2,FALSE)+ROW()-2))=Switch!$D$55,INDIRECT(\"a\" & (VLOOKUP(Switch!$D$55,$F$2:$G$44,2,FALSE)+ROW()-2)),\"\")","v":{"$error":"#N/A"}},{"$f":"IF(INDIRECT(\"c\" & (VLOOKUP(Switch!$D$56,$F$2:$G$44,2,FALSE)+ROW()-2))=Switch!$D$56,INDIRECT(\"a\" & (VLOOKUP(Switch!$D$56,$F$2:$G$44,2,FALSE)+ROW()-2)),\"\")","v":{"$error":"#N/A"}},{"$f":"IF(INDIRECT(\"c\" & (VLOOKUP(Switch!$D$57,$F$2:$G$44,2,FALSE)+ROW()-2))=Switch!$D$57,INDIRECT(\"a\" & (VLOOKUP(Switch!$D$57,$F$2:$G$44,2,FALSE)+ROW()-2)),\"\")","v":{"$error":"#N/A"}},{"$f":"IF(INDIRECT(\"c\" & (VLOOKUP(Switch!$D$58,$F$2:$G$44,2,FALSE)+ROW()-2))=Switch!$D$58,INDIRECT(\"a\" & (VLOOKUP(Switch!$D$58,$F$2:$G$44,2,FALSE)+ROW()-2)),\"\")","v":{"$error":"#N/A"}},{"$f":"IF(INDIRECT(\"c\" & (VLOOKUP(Switch!$D$59,$F$2:$G$44,2,FALSE)+ROW()-2))=Switch!$D$59,INDIRECT(\"a\" & (VLOOKUP(Switch!$D$59,$F$2:$G$44,2,FALSE)+ROW()-2)),\"\")","v":{"$error":"#N/A"}},{"$f":"IF(INDIRECT(\"c\" & (VLOOKUP(Switch!$D$60,$F$2:$G$44,2,FALSE)+ROW()-2))=Switch!$D$60,INDIRECT(\"a\" & (VLOOKUP(Switch!$D$60,$F$2:$G$44,2,FALSE)+ROW()-2)),\"\")","v":{"$error":"#N/A"}},{"$f":"IF(INDIRECT(\"c\" & (VLOOKUP(Switch!$D$61,$F$2:$G$44,2,FALSE)+ROW()-2))=Switch!$D$61,INDIRECT(\"a\" & (VLOOKUP(Switch!$D$61,$F$2:$G$44,2,FALSE)+ROW()-2)),\"\")","v":{"$error":"#N/A"}},{"$f":"IF(INDIRECT(\"c\" & (VLOOKUP(Switch!$D$62,$F$2:$G$44,2,FALSE)+ROW()-2))=Switch!$D$62,INDIRECT(\"a\" & (VLOOKUP(Switch!$D$62,$F$2:$G$44,2,FALSE)+ROW()-2)),\"\")","v":{"$error":"#N/A"}},{"$f":"IF(INDIRECT(\"c\" & (VLOOKUP(Switch!$D$63,$F$2:$G$44,2,FALSE)+ROW()-2))=Switch!$D$63,INDIRECT(\"a\" & (VLOOKUP(Switch!$D$63,$F$2:$G$44,2,FALSE)+ROW()-2)),\"\")","v":{"$error":"#N/A"}},{"$f":"IF(INDIRECT(\"c\" & (VLOOKUP(Switch!$D$64,$F$2:$G$44,2,FALSE)+ROW()-2))=Switch!$D$64,INDIRECT(\"a\" & (VLOOKUP(Switch!$D$64,$F$2:$G$44,2,FALSE)+ROW()-2)),\"\")","v":{"$error":"#N/A"}},{"$f":"IF(INDIRECT(\"c\" & (VLOOKUP(Switch!$D$65,$F$2:$G$44,2,FALSE)+ROW()-2))=Switch!$D$65,INDIRECT(\"a\" & (VLOOKUP(Switch!$D$65,$F$2:$G$44,2,FALSE)+ROW()-2)),\"\")","v":{"$error":"#N/A"}},{"$f":"IF(INDIRECT(\"c\" & (VLOOKUP(Switch!$D$66,$F$2:$G$44,2,FALSE)+ROW()-2))=Switch!$D$66,INDIRECT(\"a\" & (VLOOKUP(Switch!$D$66,$F$2:$G$44,2,FALSE)+ROW()-2)),\"\")","v":{"$error":"#N/A"}}]
["27four Stable Prescient Fund of Funds A6","SPFA6","Prescient Management Company Ltd",{"$f":"ROW()","v":437},null,null,{"$f":"VLOOKUP(F437,$C$2:$D$637,2,FALSE)","v":{"$error":"#N/A"}},{"$f":"IF(INDIRECT(\"c\" & (VLOOKUP(Switch!$D$26,$F$2:$G$44,2,FALSE)+ROW()-2))=Switch!$D$26,INDIRECT(\"a\" & (VLOOKUP(Switch!$D$26,$F$2:$G$44,2,FALSE)+ROW()-2)),\"\")","v":{"$error":"#N/A"}},{"$f":"IF(INDIRECT(\"c\" & (VLOOKUP(Switch!$D$27,$F$2:$G$44,2,FALSE)+ROW()-2))=Switch!$D$27,INDIRECT(\"a\" & (VLOOKUP(Switch!$D$27,$F$2:$G$44,2,FALSE)+ROW()-2)),\"\")","v":{"$error":"#N/A"}},{"$f":"IF(INDIRECT(\"c\" & (VLOOKUP(Switch!$D$28,$F$2:$G$44,2,FALSE)+ROW()-2))=Switch!$D$28,INDIRECT(\"a\" & (VLOOKUP(Switch!$D$28,$F$2:$G$44,2,FALSE)+ROW()-2)),\"\")","v":{"$error":"#N/A"}},{"$f":"IF(INDIRECT(\"c\" & (VLOOKUP(Switch!$D$29,$F$2:$G$44,2,FALSE)+ROW()-2))=Switch!$D$29,INDIRECT(\"a\" & (VLOOKUP(Switch!$D$29,$F$2:$G$44,2,FALSE)+ROW()-2)),\"\")","v":{"$error":"#N/A"}},{"$f":"IF(INDIRECT(\"c\" & (VLOOKUP(Switch!$D$30,$F$2:$G$44,2,FALSE)+ROW()-2))=Switch!$D$30,INDIRECT(\"a\" & (VLOOKUP(Switch!$D$30,$F$2:$G$44,2,FALSE)+ROW()-2)),\"\")","v":{"$error":"#N/A"}},{"$f":"IF(INDIRECT(\"c\" & (VLOOKUP(Switch!$D$31,$F$2:$G$44,2,FALSE)+ROW()-2))=Switch!$D$31,INDIRECT(\"a\" & (VLOOKUP(Switch!$D$31,$F$2:$G$44,2,FALSE)+ROW()-2)),\"\")","v":{"$error":"#N/A"}},{"$f":"IF(INDIRECT(\"c\" & (VLOOKUP(Switch!$D$32,$F$2:$G$44,2,FALSE)+ROW()-2))=Switch!$D$32,INDIRECT(\"a\" & (VLOOKUP(Switch!$D$32,$F$2:$G$44,2,FALSE)+ROW()-2)),\"\")","v":{"$error":"#N/A"}},{"$f":"IF(INDIRECT(\"c\" & (VLOOKUP(Switch!$D$33,$F$2:$G$44,2,FALSE)+ROW()-2))=Switch!$D$33,INDIRECT(\"a\" & (VLOOKUP(Switch!$D$33,$F$2:$G$44,2,FALSE)+ROW()-2)),\"\")","v":{"$error":"#N/A"}},{"$f":"IF(INDIRECT(\"c\" & (VLOOKUP(Switch!$D$34,$F$2:$G$44,2,FALSE)+ROW()-2))=Switch!$D$34,INDIRECT(\"a\" & (VLOOKUP(Switch!$D$34,$F$2:$G$44,2,FALSE)+ROW()-2)),\"\")","v":{"$error":"#N/A"}},{"$f":"IF(INDIRECT(\"c\" & (VLOOKUP(Switch!$D$35,$F$2:$G$44,2,FALSE)+ROW()-2))=Switch!$D$35,INDIRECT(\"a\" & (VLOOKUP(Switch!$D$35,$F$2:$G$44,2,FALSE)+ROW()-2)),\"\")","v":{"$error":"#N/A"}},{"$f":"IF(INDIRECT(\"c\" & (VLOOKUP(Switch!$D$36,$F$2:$G$44,2,FALSE)+ROW()-2))=Switch!$D$36,INDIRECT(\"a\" & (VLOOKUP(Switch!$D$36,$F$2:$G$44,2,FALSE)+ROW()-2)),\"\")","v":{"$error":"#N/A"}},{"$f":"IF(INDIRECT(\"c\" & (VLOOKUP(Switch!$D$37,$F$2:$G$44,2,FALSE)+ROW()-2))=Switch!$D$37,INDIRECT(\"a\" & (VLOOKUP(Switch!$D$37,$F$2:$G$44,2,FALSE)+ROW()-2)),\"\")","v":{"$error":"#N/A"}},{"$f":"IF(INDIRECT(\"c\" & (VLOOKUP(Switch!$D$38,$F$2:$G$44,2,FALSE)+ROW()-2))=Switch!$D$38,INDIRECT(\"a\" & (VLOOKUP(Switch!$D$38,$F$2:$G$44,2,FALSE)+ROW()-2)),\"\")","v":{"$error":"#N/A"}},{"$f":"IF(INDIRECT(\"c\" & (VLOOKUP(Switch!$D$39,$F$2:$G$44,2,FALSE)+ROW()-2))=Switch!$D$39,INDIRECT(\"a\" & (VLOOKUP(Switch!$D$39,$F$2:$G$44,2,FALSE)+ROW()-2)),\"\")","v":{"$error":"#N/A"}},{"$f":"IF(INDIRECT(\"c\" & (VLOOKUP(Switch!$D$40,$F$2:$G$44,2,FALSE)+ROW()-2))=Switch!$D$40,INDIRECT(\"a\" & (VLOOKUP(Switch!$D$40,$F$2:$G$44,2,FALSE)+ROW()-2)),\"\")","v":{"$error":"#N/A"}},{"$f":"IF(INDIRECT(\"c\" & (VLOOKUP(Switch!$D$52,$F$2:$G$44,2,FALSE)+ROW()-2))=Switch!$D$52,INDIRECT(\"a\" & (VLOOKUP(Switch!$D$52,$F$2:$G$44,2,FALSE)+ROW()-2)),\"\")","v":{"$error":"#N/A"}},{"$f":"IF(INDIRECT(\"c\" & (VLOOKUP(Switch!$D$53,$F$2:$G$44,2,FALSE)+ROW()-2))=Switch!$D$53,INDIRECT(\"a\" & (VLOOKUP(Switch!$D$53,$F$2:$G$44,2,FALSE)+ROW()-2)),\"\")","v":{"$error":"#N/A"}},{"$f":"IF(INDIRECT(\"c\" & (VLOOKUP(Switch!$D$54,$F$2:$G$44,2,FALSE)+ROW()-2))=Switch!$D$54,INDIRECT(\"a\" & (VLOOKUP(Switch!$D$54,$F$2:$G$44,2,FALSE)+ROW()-2)),\"\")","v":{"$error":"#N/A"}},{"$f":"IF(INDIRECT(\"c\" & (VLOOKUP(Switch!$D$55,$F$2:$G$44,2,FALSE)+ROW()-2))=Switch!$D$55,INDIRECT(\"a\" & (VLOOKUP(Switch!$D$55,$F$2:$G$44,2,FALSE)+ROW()-2)),\"\")","v":{"$error":"#N/A"}},{"$f":"IF(INDIRECT(\"c\" & (VLOOKUP(Switch!$D$56,$F$2:$G$44,2,FALSE)+ROW()-2))=Switch!$D$56,INDIRECT(\"a\" & (VLOOKUP(Switch!$D$56,$F$2:$G$44,2,FALSE)+ROW()-2)),\"\")","v":{"$error":"#N/A"}},{"$f":"IF(INDIRECT(\"c\" & (VLOOKUP(Switch!$D$57,$F$2:$G$44,2,FALSE)+ROW()-2))=Switch!$D$57,INDIRECT(\"a\" & (VLOOKUP(Switch!$D$57,$F$2:$G$44,2,FALSE)+ROW()-2)),\"\")","v":{"$error":"#N/A"}},{"$f":"IF(INDIRECT(\"c\" & (VLOOKUP(Switch!$D$58,$F$2:$G$44,2,FALSE)+ROW()-2))=Switch!$D$58,INDIRECT(\"a\" & (VLOOKUP(Switch!$D$58,$F$2:$G$44,2,FALSE)+ROW()-2)),\"\")","v":{"$error":"#N/A"}},{"$f":"IF(INDIRECT(\"c\" & (VLOOKUP(Switch!$D$59,$F$2:$G$44,2,FALSE)+ROW()-2))=Switch!$D$59,INDIRECT(\"a\" & (VLOOKUP(Switch!$D$59,$F$2:$G$44,2,FALSE)+ROW()-2)),\"\")","v":{"$error":"#N/A"}},{"$f":"IF(INDIRECT(\"c\" & (VLOOKUP(Switch!$D$60,$F$2:$G$44,2,FALSE)+ROW()-2))=Switch!$D$60,INDIRECT(\"a\" & (VLOOKUP(Switch!$D$60,$F$2:$G$44,2,FALSE)+ROW()-2)),\"\")","v":{"$error":"#N/A"}},{"$f":"IF(INDIRECT(\"c\" & (VLOOKUP(Switch!$D$61,$F$2:$G$44,2,FALSE)+ROW()-2))=Switch!$D$61,INDIRECT(\"a\" & (VLOOKUP(Switch!$D$61,$F$2:$G$44,2,FALSE)+ROW()-2)),\"\")","v":{"$error":"#N/A"}},{"$f":"IF(INDIRECT(\"c\" & (VLOOKUP(Switch!$D$62,$F$2:$G$44,2,FALSE)+ROW()-2))=Switch!$D$62,INDIRECT(\"a\" & (VLOOKUP(Switch!$D$62,$F$2:$G$44,2,FALSE)+ROW()-2)),\"\")","v":{"$error":"#N/A"}},{"$f":"IF(INDIRECT(\"c\" & (VLOOKUP(Switch!$D$63,$F$2:$G$44,2,FALSE)+ROW()-2))=Switch!$D$63,INDIRECT(\"a\" & (VLOOKUP(Switch!$D$63,$F$2:$G$44,2,FALSE)+ROW()-2)),\"\")","v":{"$error":"#N/A"}},{"$f":"IF(INDIRECT(\"c\" & (VLOOKUP(Switch!$D$64,$F$2:$G$44,2,FALSE)+ROW()-2))=Switch!$D$64,INDIRECT(\"a\" & (VLOOKUP(Switch!$D$64,$F$2:$G$44,2,FALSE)+ROW()-2)),\"\")","v":{"$error":"#N/A"}},{"$f":"IF(INDIRECT(\"c\" & (VLOOKUP(Switch!$D$65,$F$2:$G$44,2,FALSE)+ROW()-2))=Switch!$D$65,INDIRECT(\"a\" & (VLOOKUP(Switch!$D$65,$F$2:$G$44,2,FALSE)+ROW()-2)),\"\")","v":{"$error":"#N/A"}},{"$f":"IF(INDIRECT(\"c\" & (VLOOKUP(Switch!$D$66,$F$2:$G$44,2,FALSE)+ROW()-2))=Switch!$D$66,INDIRECT(\"a\" & (VLOOKUP(Switch!$D$66,$F$2:$G$44,2,FALSE)+ROW()-2)),\"\")","v":{"$error":"#N/A"}}]
["27Four Shariah Income Provider Fund A1","27SPA1","Prescient Management Company Ltd",{"$f":"ROW()","v":438},null,null,{"$f":"VLOOKUP(F438,$C$2:$D$637,2,FALSE)","v":{"$error":"#N/A"}},{"$f":"IF(INDIRECT(\"c\" & (VLOOKUP(Switch!$D$26,$F$2:$G$44,2,FALSE)+ROW()-2))=Switch!$D$26,INDIRECT(\"a\" & (VLOOKUP(Switch!$D$26,$F$2:$G$44,2,FALSE)+ROW()-2)),\"\")","v":{"$error":"#N/A"}},{"$f":"IF(INDIRECT(\"c\" & (VLOOKUP(Switch!$D$27,$F$2:$G$44,2,FALSE)+ROW()-2))=Switch!$D$27,INDIRECT(\"a\" & (VLOOKUP(Switch!$D$27,$F$2:$G$44,2,FALSE)+ROW()-2)),\"\")","v":{"$error":"#N/A"}},{"$f":"IF(INDIRECT(\"c\" & (VLOOKUP(Switch!$D$28,$F$2:$G$44,2,FALSE)+ROW()-2))=Switch!$D$28,INDIRECT(\"a\" & (VLOOKUP(Switch!$D$28,$F$2:$G$44,2,FALSE)+ROW()-2)),\"\")","v":{"$error":"#N/A"}},{"$f":"IF(INDIRECT(\"c\" & (VLOOKUP(Switch!$D$29,$F$2:$G$44,2,FALSE)+ROW()-2))=Switch!$D$29,INDIRECT(\"a\" & (VLOOKUP(Switch!$D$29,$F$2:$G$44,2,FALSE)+ROW()-2)),\"\")","v":{"$error":"#N/A"}},{"$f":"IF(INDIRECT(\"c\" & (VLOOKUP(Switch!$D$30,$F$2:$G$44,2,FALSE)+ROW()-2))=Switch!$D$30,INDIRECT(\"a\" & (VLOOKUP(Switch!$D$30,$F$2:$G$44,2,FALSE)+ROW()-2)),\"\")","v":{"$error":"#N/A"}},{"$f":"IF(INDIRECT(\"c\" & (VLOOKUP(Switch!$D$31,$F$2:$G$44,2,FALSE)+ROW()-2))=Switch!$D$31,INDIRECT(\"a\" & (VLOOKUP(Switch!$D$31,$F$2:$G$44,2,FALSE)+ROW()-2)),\"\")","v":{"$error":"#N/A"}},{"$f":"IF(INDIRECT(\"c\" & (VLOOKUP(Switch!$D$32,$F$2:$G$44,2,FALSE)+ROW()-2))=Switch!$D$32,INDIRECT(\"a\" & (VLOOKUP(Switch!$D$32,$F$2:$G$44,2,FALSE)+ROW()-2)),\"\")","v":{"$error":"#N/A"}},{"$f":"IF(INDIRECT(\"c\" & (VLOOKUP(Switch!$D$33,$F$2:$G$44,2,FALSE)+ROW()-2))=Switch!$D$33,INDIRECT(\"a\" & (VLOOKUP(Switch!$D$33,$F$2:$G$44,2,FALSE)+ROW()-2)),\"\")","v":{"$error":"#N/A"}},{"$f":"IF(INDIRECT(\"c\" & (VLOOKUP(Switch!$D$34,$F$2:$G$44,2,FALSE)+ROW()-2))=Switch!$D$34,INDIRECT(\"a\" & (VLOOKUP(Switch!$D$34,$F$2:$G$44,2,FALSE)+ROW()-2)),\"\")","v":{"$error":"#N/A"}},{"$f":"IF(INDIRECT(\"c\" & (VLOOKUP(Switch!$D$35,$F$2:$G$44,2,FALSE)+ROW()-2))=Switch!$D$35,INDIRECT(\"a\" & (VLOOKUP(Switch!$D$35,$F$2:$G$44,2,FALSE)+ROW()-2)),\"\")","v":{"$error":"#N/A"}},{"$f":"IF(INDIRECT(\"c\" & (VLOOKUP(Switch!$D$36,$F$2:$G$44,2,FALSE)+ROW()-2))=Switch!$D$36,INDIRECT(\"a\" & (VLOOKUP(Switch!$D$36,$F$2:$G$44,2,FALSE)+ROW()-2)),\"\")","v":{"$error":"#N/A"}},{"$f":"IF(INDIRECT(\"c\" & (VLOOKUP(Switch!$D$37,$F$2:$G$44,2,FALSE)+ROW()-2))=Switch!$D$37,INDIRECT(\"a\" & (VLOOKUP(Switch!$D$37,$F$2:$G$44,2,FALSE)+ROW()-2)),\"\")","v":{"$error":"#N/A"}},{"$f":"IF(INDIRECT(\"c\" & (VLOOKUP(Switch!$D$38,$F$2:$G$44,2,FALSE)+ROW()-2))=Switch!$D$38,INDIRECT(\"a\" & (VLOOKUP(Switch!$D$38,$F$2:$G$44,2,FALSE)+ROW()-2)),\"\")","v":{"$error":"#N/A"}},{"$f":"IF(INDIRECT(\"c\" & (VLOOKUP(Switch!$D$39,$F$2:$G$44,2,FALSE)+ROW()-2))=Switch!$D$39,INDIRECT(\"a\" & (VLOOKUP(Switch!$D$39,$F$2:$G$44,2,FALSE)+ROW()-2)),\"\")","v":{"$error":"#N/A"}},{"$f":"IF(INDIRECT(\"c\" & (VLOOKUP(Switch!$D$40,$F$2:$G$44,2,FALSE)+ROW()-2))=Switch!$D$40,INDIRECT(\"a\" & (VLOOKUP(Switch!$D$40,$F$2:$G$44,2,FALSE)+ROW()-2)),\"\")","v":{"$error":"#N/A"}},{"$f":"IF(INDIRECT(\"c\" & (VLOOKUP(Switch!$D$52,$F$2:$G$44,2,FALSE)+ROW()-2))=Switch!$D$52,INDIRECT(\"a\" & (VLOOKUP(Switch!$D$52,$F$2:$G$44,2,FALSE)+ROW()-2)),\"\")","v":{"$error":"#N/A"}},{"$f":"IF(INDIRECT(\"c\" & (VLOOKUP(Switch!$D$53,$F$2:$G$44,2,FALSE)+ROW()-2))=Switch!$D$53,INDIRECT(\"a\" & (VLOOKUP(Switch!$D$53,$F$2:$G$44,2,FALSE)+ROW()-2)),\"\")","v":{"$error":"#N/A"}},{"$f":"IF(INDIRECT(\"c\" & (VLOOKUP(Switch!$D$54,$F$2:$G$44,2,FALSE)+ROW()-2))=Switch!$D$54,INDIRECT(\"a\" & (VLOOKUP(Switch!$D$54,$F$2:$G$44,2,FALSE)+ROW()-2)),\"\")","v":{"$error":"#N/A"}},{"$f":"IF(INDIRECT(\"c\" & (VLOOKUP(Switch!$D$55,$F$2:$G$44,2,FALSE)+ROW()-2))=Switch!$D$55,INDIRECT(\"a\" & (VLOOKUP(Switch!$D$55,$F$2:$G$44,2,FALSE)+ROW()-2)),\"\")","v":{"$error":"#N/A"}},{"$f":"IF(INDIRECT(\"c\" & (VLOOKUP(Switch!$D$56,$F$2:$G$44,2,FALSE)+ROW()-2))=Switch!$D$56,INDIRECT(\"a\" & (VLOOKUP(Switch!$D$56,$F$2:$G$44,2,FALSE)+ROW()-2)),\"\")","v":{"$error":"#N/A"}},{"$f":"IF(INDIRECT(\"c\" & (VLOOKUP(Switch!$D$57,$F$2:$G$44,2,FALSE)+ROW()-2))=Switch!$D$57,INDIRECT(\"a\" & (VLOOKUP(Switch!$D$57,$F$2:$G$44,2,FALSE)+ROW()-2)),\"\")","v":{"$error":"#N/A"}},{"$f":"IF(INDIRECT(\"c\" & (VLOOKUP(Switch!$D$58,$F$2:$G$44,2,FALSE)+ROW()-2))=Switch!$D$58,INDIRECT(\"a\" & (VLOOKUP(Switch!$D$58,$F$2:$G$44,2,FALSE)+ROW()-2)),\"\")","v":{"$error":"#N/A"}},{"$f":"IF(INDIRECT(\"c\" & (VLOOKUP(Switch!$D$59,$F$2:$G$44,2,FALSE)+ROW()-2))=Switch!$D$59,INDIRECT(\"a\" & (VLOOKUP(Switch!$D$59,$F$2:$G$44,2,FALSE)+ROW()-2)),\"\")","v":{"$error":"#N/A"}},{"$f":"IF(INDIRECT(\"c\" & (VLOOKUP(Switch!$D$60,$F$2:$G$44,2,FALSE)+ROW()-2))=Switch!$D$60,INDIRECT(\"a\" & (VLOOKUP(Switch!$D$60,$F$2:$G$44,2,FALSE)+ROW()-2)),\"\")","v":{"$error":"#N/A"}},{"$f":"IF(INDIRECT(\"c\" & (VLOOKUP(Switch!$D$61,$F$2:$G$44,2,FALSE)+ROW()-2))=Switch!$D$61,INDIRECT(\"a\" & (VLOOKUP(Switch!$D$61,$F$2:$G$44,2,FALSE)+ROW()-2)),\"\")","v":{"$error":"#N/A"}},{"$f":"IF(INDIRECT(\"c\" & (VLOOKUP(Switch!$D$62,$F$2:$G$44,2,FALSE)+ROW()-2))=Switch!$D$62,INDIRECT(\"a\" & (VLOOKUP(Switch!$D$62,$F$2:$G$44,2,FALSE)+ROW()-2)),\"\")","v":{"$error":"#N/A"}},{"$f":"IF(INDIRECT(\"c\" & (VLOOKUP(Switch!$D$63,$F$2:$G$44,2,FALSE)+ROW()-2))=Switch!$D$63,INDIRECT(\"a\" & (VLOOKUP(Switch!$D$63,$F$2:$G$44,2,FALSE)+ROW()-2)),\"\")","v":{"$error":"#N/A"}},{"$f":"IF(INDIRECT(\"c\" & (VLOOKUP(Switch!$D$64,$F$2:$G$44,2,FALSE)+ROW()-2))=Switch!$D$64,INDIRECT(\"a\" & (VLOOKUP(Switch!$D$64,$F$2:$G$44,2,FALSE)+ROW()-2)),\"\")","v":{"$error":"#N/A"}},{"$f":"IF(INDIRECT(\"c\" & (VLOOKUP(Switch!$D$65,$F$2:$G$44,2,FALSE)+ROW()-2))=Switch!$D$65,INDIRECT(\"a\" & (VLOOKUP(Switch!$D$65,$F$2:$G$44,2,FALSE)+ROW()-2)),\"\")","v":{"$error":"#N/A"}},{"$f":"IF(INDIRECT(\"c\" & (VLOOKUP(Switch!$D$66,$F$2:$G$44,2,FALSE)+ROW()-2))=Switch!$D$66,INDIRECT(\"a\" & (VLOOKUP(Switch!$D$66,$F$2:$G$44,2,FALSE)+ROW()-2)),\"\")","v":{"$error":"#N/A"}}]
["27Four Shariah Balanced Prescient Fund of Funds A1","27SA1","Prescient Management Company Ltd",{"$f":"ROW()","v":439},null,null,{"$f":"VLOOKUP(F439,$C$2:$D$637,2,FALSE)","v":{"$error":"#N/A"}},{"$f":"IF(INDIRECT(\"c\" & (VLOOKUP(Switch!$D$26,$F$2:$G$44,2,FALSE)+ROW()-2))=Switch!$D$26,INDIRECT(\"a\" & (VLOOKUP(Switch!$D$26,$F$2:$G$44,2,FALSE)+ROW()-2)),\"\")","v":{"$error":"#N/A"}},{"$f":"IF(INDIRECT(\"c\" & (VLOOKUP(Switch!$D$27,$F$2:$G$44,2,FALSE)+ROW()-2))=Switch!$D$27,INDIRECT(\"a\" & (VLOOKUP(Switch!$D$27,$F$2:$G$44,2,FALSE)+ROW()-2)),\"\")","v":{"$error":"#N/A"}},{"$f":"IF(INDIRECT(\"c\" & (VLOOKUP(Switch!$D$28,$F$2:$G$44,2,FALSE)+ROW()-2))=Switch!$D$28,INDIRECT(\"a\" & (VLOOKUP(Switch!$D$28,$F$2:$G$44,2,FALSE)+ROW()-2)),\"\")","v":{"$error":"#N/A"}},{"$f":"IF(INDIRECT(\"c\" & (VLOOKUP(Switch!$D$29,$F$2:$G$44,2,FALSE)+ROW()-2))=Switch!$D$29,INDIRECT(\"a\" & (VLOOKUP(Switch!$D$29,$F$2:$G$44,2,FALSE)+ROW()-2)),\"\")","v":{"$error":"#N/A"}},{"$f":"IF(INDIRECT(\"c\" & (VLOOKUP(Switch!$D$30,$F$2:$G$44,2,FALSE)+ROW()-2))=Switch!$D$30,INDIRECT(\"a\" & (VLOOKUP(Switch!$D$30,$F$2:$G$44,2,FALSE)+ROW()-2)),\"\")","v":{"$error":"#N/A"}},{"$f":"IF(INDIRECT(\"c\" & (VLOOKUP(Switch!$D$31,$F$2:$G$44,2,FALSE)+ROW()-2))=Switch!$D$31,INDIRECT(\"a\" & (VLOOKUP(Switch!$D$31,$F$2:$G$44,2,FALSE)+ROW()-2)),\"\")","v":{"$error":"#N/A"}},{"$f":"IF(INDIRECT(\"c\" & (VLOOKUP(Switch!$D$32,$F$2:$G$44,2,FALSE)+ROW()-2))=Switch!$D$32,INDIRECT(\"a\" & (VLOOKUP(Switch!$D$32,$F$2:$G$44,2,FALSE)+ROW()-2)),\"\")","v":{"$error":"#N/A"}},{"$f":"IF(INDIRECT(\"c\" & (VLOOKUP(Switch!$D$33,$F$2:$G$44,2,FALSE)+ROW()-2))=Switch!$D$33,INDIRECT(\"a\" & (VLOOKUP(Switch!$D$33,$F$2:$G$44,2,FALSE)+ROW()-2)),\"\")","v":{"$error":"#N/A"}},{"$f":"IF(INDIRECT(\"c\" & (VLOOKUP(Switch!$D$34,$F$2:$G$44,2,FALSE)+ROW()-2))=Switch!$D$34,INDIRECT(\"a\" & (VLOOKUP(Switch!$D$34,$F$2:$G$44,2,FALSE)+ROW()-2)),\"\")","v":{"$error":"#N/A"}},{"$f":"IF(INDIRECT(\"c\" & (VLOOKUP(Switch!$D$35,$F$2:$G$44,2,FALSE)+ROW()-2))=Switch!$D$35,INDIRECT(\"a\" & (VLOOKUP(Switch!$D$35,$F$2:$G$44,2,FALSE)+ROW()-2)),\"\")","v":{"$error":"#N/A"}},{"$f":"IF(INDIRECT(\"c\" & (VLOOKUP(Switch!$D$36,$F$2:$G$44,2,FALSE)+ROW()-2))=Switch!$D$36,INDIRECT(\"a\" & (VLOOKUP(Switch!$D$36,$F$2:$G$44,2,FALSE)+ROW()-2)),\"\")","v":{"$error":"#N/A"}},{"$f":"IF(INDIRECT(\"c\" & (VLOOKUP(Switch!$D$37,$F$2:$G$44,2,FALSE)+ROW()-2))=Switch!$D$37,INDIRECT(\"a\" & (VLOOKUP(Switch!$D$37,$F$2:$G$44,2,FALSE)+ROW()-2)),\"\")","v":{"$error":"#N/A"}},{"$f":"IF(INDIRECT(\"c\" & (VLOOKUP(Switch!$D$38,$F$2:$G$44,2,FALSE)+ROW()-2))=Switch!$D$38,INDIRECT(\"a\" & (VLOOKUP(Switch!$D$38,$F$2:$G$44,2,FALSE)+ROW()-2)),\"\")","v":{"$error":"#N/A"}},{"$f":"IF(INDIRECT(\"c\" & (VLOOKUP(Switch!$D$39,$F$2:$G$44,2,FALSE)+ROW()-2))=Switch!$D$39,INDIRECT(\"a\" & (VLOOKUP(Switch!$D$39,$F$2:$G$44,2,FALSE)+ROW()-2)),\"\")","v":{"$error":"#N/A"}},{"$f":"IF(INDIRECT(\"c\" & (VLOOKUP(Switch!$D$40,$F$2:$G$44,2,FALSE)+ROW()-2))=Switch!$D$40,INDIRECT(\"a\" & (VLOOKUP(Switch!$D$40,$F$2:$G$44,2,FALSE)+ROW()-2)),\"\")","v":{"$error":"#N/A"}},{"$f":"IF(INDIRECT(\"c\" & (VLOOKUP(Switch!$D$52,$F$2:$G$44,2,FALSE)+ROW()-2))=Switch!$D$52,INDIRECT(\"a\" & (VLOOKUP(Switch!$D$52,$F$2:$G$44,2,FALSE)+ROW()-2)),\"\")","v":{"$error":"#N/A"}},{"$f":"IF(INDIRECT(\"c\" & (VLOOKUP(Switch!$D$53,$F$2:$G$44,2,FALSE)+ROW()-2))=Switch!$D$53,INDIRECT(\"a\" & (VLOOKUP(Switch!$D$53,$F$2:$G$44,2,FALSE)+ROW()-2)),\"\")","v":{"$error":"#N/A"}},{"$f":"IF(INDIRECT(\"c\" & (VLOOKUP(Switch!$D$54,$F$2:$G$44,2,FALSE)+ROW()-2))=Switch!$D$54,INDIRECT(\"a\" & (VLOOKUP(Switch!$D$54,$F$2:$G$44,2,FALSE)+ROW()-2)),\"\")","v":{"$error":"#N/A"}},{"$f":"IF(INDIRECT(\"c\" & (VLOOKUP(Switch!$D$55,$F$2:$G$44,2,FALSE)+ROW()-2))=Switch!$D$55,INDIRECT(\"a\" & (VLOOKUP(Switch!$D$55,$F$2:$G$44,2,FALSE)+ROW()-2)),\"\")","v":{"$error":"#N/A"}},{"$f":"IF(INDIRECT(\"c\" & (VLOOKUP(Switch!$D$56,$F$2:$G$44,2,FALSE)+ROW()-2))=Switch!$D$56,INDIRECT(\"a\" & (VLOOKUP(Switch!$D$56,$F$2:$G$44,2,FALSE)+ROW()-2)),\"\")","v":{"$error":"#N/A"}},{"$f":"IF(INDIRECT(\"c\" & (VLOOKUP(Switch!$D$57,$F$2:$G$44,2,FALSE)+ROW()-2))=Switch!$D$57,INDIRECT(\"a\" & (VLOOKUP(Switch!$D$57,$F$2:$G$44,2,FALSE)+ROW()-2)),\"\")","v":{"$error":"#N/A"}},{"$f":"IF(INDIRECT(\"c\" & (VLOOKUP(Switch!$D$58,$F$2:$G$44,2,FALSE)+ROW()-2))=Switch!$D$58,INDIRECT(\"a\" & (VLOOKUP(Switch!$D$58,$F$2:$G$44,2,FALSE)+ROW()-2)),\"\")","v":{"$error":"#N/A"}},{"$f":"IF(INDIRECT(\"c\" & (VLOOKUP(Switch!$D$59,$F$2:$G$44,2,FALSE)+ROW()-2))=Switch!$D$59,INDIRECT(\"a\" & (VLOOKUP(Switch!$D$59,$F$2:$G$44,2,FALSE)+ROW()-2)),\"\")","v":{"$error":"#N/A"}},{"$f":"IF(INDIRECT(\"c\" & (VLOOKUP(Switch!$D$60,$F$2:$G$44,2,FALSE)+ROW()-2))=Switch!$D$60,INDIRECT(\"a\" & (VLOOKUP(Switch!$D$60,$F$2:$G$44,2,FALSE)+ROW()-2)),\"\")","v":{"$error":"#N/A"}},{"$f":"IF(INDIRECT(\"c\" & (VLOOKUP(Switch!$D$61,$F$2:$G$44,2,FALSE)+ROW()-2))=Switch!$D$61,INDIRECT(\"a\" & (VLOOKUP(Switch!$D$61,$F$2:$G$44,2,FALSE)+ROW()-2)),\"\")","v":{"$error":"#N/A"}},{"$f":"IF(INDIRECT(\"c\" & (VLOOKUP(Switch!$D$62,$F$2:$G$44,2,FALSE)+ROW()-2))=Switch!$D$62,INDIRECT(\"a\" & (VLOOKUP(Switch!$D$62,$F$2:$G$44,2,FALSE)+ROW()-2)),\"\")","v":{"$error":"#N/A"}},{"$f":"IF(INDIRECT(\"c\" & (VLOOKUP(Switch!$D$63,$F$2:$G$44,2,FALSE)+ROW()-2))=Switch!$D$63,INDIRECT(\"a\" & (VLOOKUP(Switch!$D$63,$F$2:$G$44,2,FALSE)+ROW()-2)),\"\")","v":{"$error":"#N/A"}},{"$f":"IF(INDIRECT(\"c\" & (VLOOKUP(Switch!$D$64,$F$2:$G$44,2,FALSE)+ROW()-2))=Switch!$D$64,INDIRECT(\"a\" & (VLOOKUP(Switch!$D$64,$F$2:$G$44,2,FALSE)+ROW()-2)),\"\")","v":{"$error":"#N/A"}},{"$f":"IF(INDIRECT(\"c\" & (VLOOKUP(Switch!$D$65,$F$2:$G$44,2,FALSE)+ROW()-2))=Switch!$D$65,INDIRECT(\"a\" & (VLOOKUP(Switch!$D$65,$F$2:$G$44,2,FALSE)+ROW()-2)),\"\")","v":{"$error":"#N/A"}},{"$f":"IF(INDIRECT(\"c\" & (VLOOKUP(Switch!$D$66,$F$2:$G$44,2,FALSE)+ROW()-2))=Switch!$D$66,INDIRECT(\"a\" & (VLOOKUP(Switch!$D$66,$F$2:$G$44,2,FALSE)+ROW()-2)),\"\")","v":{"$error":"#N/A"}}]
["27four Shariah Active Equity Fund A1","27FA1","Prescient Management Company Ltd",{"$f":"ROW()","v":440},null,null,{"$f":"VLOOKUP(F440,$C$2:$D$637,2,FALSE)","v":{"$error":"#N/A"}},{"$f":"IF(INDIRECT(\"c\" & (VLOOKUP(Switch!$D$26,$F$2:$G$44,2,FALSE)+ROW()-2))=Switch!$D$26,INDIRECT(\"a\" & (VLOOKUP(Switch!$D$26,$F$2:$G$44,2,FALSE)+ROW()-2)),\"\")","v":{"$error":"#N/A"}},{"$f":"IF(INDIRECT(\"c\" & (VLOOKUP(Switch!$D$27,$F$2:$G$44,2,FALSE)+ROW()-2))=Switch!$D$27,INDIRECT(\"a\" & (VLOOKUP(Switch!$D$27,$F$2:$G$44,2,FALSE)+ROW()-2)),\"\")","v":{"$error":"#N/A"}},{"$f":"IF(INDIRECT(\"c\" & (VLOOKUP(Switch!$D$28,$F$2:$G$44,2,FALSE)+ROW()-2))=Switch!$D$28,INDIRECT(\"a\" & (VLOOKUP(Switch!$D$28,$F$2:$G$44,2,FALSE)+ROW()-2)),\"\")","v":{"$error":"#N/A"}},{"$f":"IF(INDIRECT(\"c\" & (VLOOKUP(Switch!$D$29,$F$2:$G$44,2,FALSE)+ROW()-2))=Switch!$D$29,INDIRECT(\"a\" & (VLOOKUP(Switch!$D$29,$F$2:$G$44,2,FALSE)+ROW()-2)),\"\")","v":{"$error":"#N/A"}},{"$f":"IF(INDIRECT(\"c\" & (VLOOKUP(Switch!$D$30,$F$2:$G$44,2,FALSE)+ROW()-2))=Switch!$D$30,INDIRECT(\"a\" & (VLOOKUP(Switch!$D$30,$F$2:$G$44,2,FALSE)+ROW()-2)),\"\")","v":{"$error":"#N/A"}},{"$f":"IF(INDIRECT(\"c\" & (VLOOKUP(Switch!$D$31,$F$2:$G$44,2,FALSE)+ROW()-2))=Switch!$D$31,INDIRECT(\"a\" & (VLOOKUP(Switch!$D$31,$F$2:$G$44,2,FALSE)+ROW()-2)),\"\")","v":{"$error":"#N/A"}},{"$f":"IF(INDIRECT(\"c\" & (VLOOKUP(Switch!$D$32,$F$2:$G$44,2,FALSE)+ROW()-2))=Switch!$D$32,INDIRECT(\"a\" & (VLOOKUP(Switch!$D$32,$F$2:$G$44,2,FALSE)+ROW()-2)),\"\")","v":{"$error":"#N/A"}},{"$f":"IF(INDIRECT(\"c\" & (VLOOKUP(Switch!$D$33,$F$2:$G$44,2,FALSE)+ROW()-2))=Switch!$D$33,INDIRECT(\"a\" & (VLOOKUP(Switch!$D$33,$F$2:$G$44,2,FALSE)+ROW()-2)),\"\")","v":{"$error":"#N/A"}},{"$f":"IF(INDIRECT(\"c\" & (VLOOKUP(Switch!$D$34,$F$2:$G$44,2,FALSE)+ROW()-2))=Switch!$D$34,INDIRECT(\"a\" & (VLOOKUP(Switch!$D$34,$F$2:$G$44,2,FALSE)+ROW()-2)),\"\")","v":{"$error":"#N/A"}},{"$f":"IF(INDIRECT(\"c\" & (VLOOKUP(Switch!$D$35,$F$2:$G$44,2,FALSE)+ROW()-2))=Switch!$D$35,INDIRECT(\"a\" & (VLOOKUP(Switch!$D$35,$F$2:$G$44,2,FALSE)+ROW()-2)),\"\")","v":{"$error":"#N/A"}},{"$f":"IF(INDIRECT(\"c\" & (VLOOKUP(Switch!$D$36,$F$2:$G$44,2,FALSE)+ROW()-2))=Switch!$D$36,INDIRECT(\"a\" & (VLOOKUP(Switch!$D$36,$F$2:$G$44,2,FALSE)+ROW()-2)),\"\")","v":{"$error":"#N/A"}},{"$f":"IF(INDIRECT(\"c\" & (VLOOKUP(Switch!$D$37,$F$2:$G$44,2,FALSE)+ROW()-2))=Switch!$D$37,INDIRECT(\"a\" & (VLOOKUP(Switch!$D$37,$F$2:$G$44,2,FALSE)+ROW()-2)),\"\")","v":{"$error":"#N/A"}},{"$f":"IF(INDIRECT(\"c\" & (VLOOKUP(Switch!$D$38,$F$2:$G$44,2,FALSE)+ROW()-2))=Switch!$D$38,INDIRECT(\"a\" & (VLOOKUP(Switch!$D$38,$F$2:$G$44,2,FALSE)+ROW()-2)),\"\")","v":{"$error":"#N/A"}},{"$f":"IF(INDIRECT(\"c\" & (VLOOKUP(Switch!$D$39,$F$2:$G$44,2,FALSE)+ROW()-2))=Switch!$D$39,INDIRECT(\"a\" & (VLOOKUP(Switch!$D$39,$F$2:$G$44,2,FALSE)+ROW()-2)),\"\")","v":{"$error":"#N/A"}},{"$f":"IF(INDIRECT(\"c\" & (VLOOKUP(Switch!$D$40,$F$2:$G$44,2,FALSE)+ROW()-2))=Switch!$D$40,INDIRECT(\"a\" & (VLOOKUP(Switch!$D$40,$F$2:$G$44,2,FALSE)+ROW()-2)),\"\")","v":{"$error":"#N/A"}},{"$f":"IF(INDIRECT(\"c\" & (VLOOKUP(Switch!$D$52,$F$2:$G$44,2,FALSE)+ROW()-2))=Switch!$D$52,INDIRECT(\"a\" & (VLOOKUP(Switch!$D$52,$F$2:$G$44,2,FALSE)+ROW()-2)),\"\")","v":{"$error":"#N/A"}},{"$f":"IF(INDIRECT(\"c\" & (VLOOKUP(Switch!$D$53,$F$2:$G$44,2,FALSE)+ROW()-2))=Switch!$D$53,INDIRECT(\"a\" & (VLOOKUP(Switch!$D$53,$F$2:$G$44,2,FALSE)+ROW()-2)),\"\")","v":{"$error":"#N/A"}},{"$f":"IF(INDIRECT(\"c\" & (VLOOKUP(Switch!$D$54,$F$2:$G$44,2,FALSE)+ROW()-2))=Switch!$D$54,INDIRECT(\"a\" & (VLOOKUP(Switch!$D$54,$F$2:$G$44,2,FALSE)+ROW()-2)),\"\")","v":{"$error":"#N/A"}},{"$f":"IF(INDIRECT(\"c\" & (VLOOKUP(Switch!$D$55,$F$2:$G$44,2,FALSE)+ROW()-2))=Switch!$D$55,INDIRECT(\"a\" & (VLOOKUP(Switch!$D$55,$F$2:$G$44,2,FALSE)+ROW()-2)),\"\")","v":{"$error":"#N/A"}},{"$f":"IF(INDIRECT(\"c\" & (VLOOKUP(Switch!$D$56,$F$2:$G$44,2,FALSE)+ROW()-2))=Switch!$D$56,INDIRECT(\"a\" & (VLOOKUP(Switch!$D$56,$F$2:$G$44,2,FALSE)+ROW()-2)),\"\")","v":{"$error":"#N/A"}},{"$f":"IF(INDIRECT(\"c\" & (VLOOKUP(Switch!$D$57,$F$2:$G$44,2,FALSE)+ROW()-2))=Switch!$D$57,INDIRECT(\"a\" & (VLOOKUP(Switch!$D$57,$F$2:$G$44,2,FALSE)+ROW()-2)),\"\")","v":{"$error":"#N/A"}},{"$f":"IF(INDIRECT(\"c\" & (VLOOKUP(Switch!$D$58,$F$2:$G$44,2,FALSE)+ROW()-2))=Switch!$D$58,INDIRECT(\"a\" & (VLOOKUP(Switch!$D$58,$F$2:$G$44,2,FALSE)+ROW()-2)),\"\")","v":{"$error":"#N/A"}},{"$f":"IF(INDIRECT(\"c\" & (VLOOKUP(Switch!$D$59,$F$2:$G$44,2,FALSE)+ROW()-2))=Switch!$D$59,INDIRECT(\"a\" & (VLOOKUP(Switch!$D$59,$F$2:$G$44,2,FALSE)+ROW()-2)),\"\")","v":{"$error":"#N/A"}},{"$f":"IF(INDIRECT(\"c\" & (VLOOKUP(Switch!$D$60,$F$2:$G$44,2,FALSE)+ROW()-2))=Switch!$D$60,INDIRECT(\"a\" & (VLOOKUP(Switch!$D$60,$F$2:$G$44,2,FALSE)+ROW()-2)),\"\")","v":{"$error":"#N/A"}},{"$f":"IF(INDIRECT(\"c\" & (VLOOKUP(Switch!$D$61,$F$2:$G$44,2,FALSE)+ROW()-2))=Switch!$D$61,INDIRECT(\"a\" & (VLOOKUP(Switch!$D$61,$F$2:$G$44,2,FALSE)+ROW()-2)),\"\")","v":{"$error":"#N/A"}},{"$f":"IF(INDIRECT(\"c\" & (VLOOKUP(Switch!$D$62,$F$2:$G$44,2,FALSE)+ROW()-2))=Switch!$D$62,INDIRECT(\"a\" & (VLOOKUP(Switch!$D$62,$F$2:$G$44,2,FALSE)+ROW()-2)),\"\")","v":{"$error":"#N/A"}},{"$f":"IF(INDIRECT(\"c\" & (VLOOKUP(Switch!$D$63,$F$2:$G$44,2,FALSE)+ROW()-2))=Switch!$D$63,INDIRECT(\"a\" & (VLOOKUP(Switch!$D$63,$F$2:$G$44,2,FALSE)+ROW()-2)),\"\")","v":{"$error":"#N/A"}},{"$f":"IF(INDIRECT(\"c\" & (VLOOKUP(Switch!$D$64,$F$2:$G$44,2,FALSE)+ROW()-2))=Switch!$D$64,INDIRECT(\"a\" & (VLOOKUP(Switch!$D$64,$F$2:$G$44,2,FALSE)+ROW()-2)),\"\")","v":{"$error":"#N/A"}},{"$f":"IF(INDIRECT(\"c\" & (VLOOKUP(Switch!$D$65,$F$2:$G$44,2,FALSE)+ROW()-2))=Switch!$D$65,INDIRECT(\"a\" & (VLOOKUP(Switch!$D$65,$F$2:$G$44,2,FALSE)+ROW()-2)),\"\")","v":{"$error":"#N/A"}},{"$f":"IF(INDIRECT(\"c\" & (VLOOKUP(Switch!$D$66,$F$2:$G$44,2,FALSE)+ROW()-2))=Switch!$D$66,INDIRECT(\"a\" & (VLOOKUP(Switch!$D$66,$F$2:$G$44,2,FALSE)+ROW()-2)),\"\")","v":{"$error":"#N/A"}}]
["ABAX Absolute Prescient Fund  A","ABRA","Prescient Management Company Ltd",{"$f":"ROW()","v":441},null,null,{"$f":"VLOOKUP(F441,$C$2:$D$637,2,FALSE)","v":{"$error":"#N/A"}},{"$f":"IF(INDIRECT(\"c\" & (VLOOKUP(Switch!$D$26,$F$2:$G$44,2,FALSE)+ROW()-2))=Switch!$D$26,INDIRECT(\"a\" & (VLOOKUP(Switch!$D$26,$F$2:$G$44,2,FALSE)+ROW()-2)),\"\")","v":{"$error":"#N/A"}},{"$f":"IF(INDIRECT(\"c\" & (VLOOKUP(Switch!$D$27,$F$2:$G$44,2,FALSE)+ROW()-2))=Switch!$D$27,INDIRECT(\"a\" & (VLOOKUP(Switch!$D$27,$F$2:$G$44,2,FALSE)+ROW()-2)),\"\")","v":{"$error":"#N/A"}},{"$f":"IF(INDIRECT(\"c\" & (VLOOKUP(Switch!$D$28,$F$2:$G$44,2,FALSE)+ROW()-2))=Switch!$D$28,INDIRECT(\"a\" & (VLOOKUP(Switch!$D$28,$F$2:$G$44,2,FALSE)+ROW()-2)),\"\")","v":{"$error":"#N/A"}},{"$f":"IF(INDIRECT(\"c\" & (VLOOKUP(Switch!$D$29,$F$2:$G$44,2,FALSE)+ROW()-2))=Switch!$D$29,INDIRECT(\"a\" & (VLOOKUP(Switch!$D$29,$F$2:$G$44,2,FALSE)+ROW()-2)),\"\")","v":{"$error":"#N/A"}},{"$f":"IF(INDIRECT(\"c\" & (VLOOKUP(Switch!$D$30,$F$2:$G$44,2,FALSE)+ROW()-2))=Switch!$D$30,INDIRECT(\"a\" & (VLOOKUP(Switch!$D$30,$F$2:$G$44,2,FALSE)+ROW()-2)),\"\")","v":{"$error":"#N/A"}},{"$f":"IF(INDIRECT(\"c\" & (VLOOKUP(Switch!$D$31,$F$2:$G$44,2,FALSE)+ROW()-2))=Switch!$D$31,INDIRECT(\"a\" & (VLOOKUP(Switch!$D$31,$F$2:$G$44,2,FALSE)+ROW()-2)),\"\")","v":{"$error":"#N/A"}},{"$f":"IF(INDIRECT(\"c\" & (VLOOKUP(Switch!$D$32,$F$2:$G$44,2,FALSE)+ROW()-2))=Switch!$D$32,INDIRECT(\"a\" & (VLOOKUP(Switch!$D$32,$F$2:$G$44,2,FALSE)+ROW()-2)),\"\")","v":{"$error":"#N/A"}},{"$f":"IF(INDIRECT(\"c\" & (VLOOKUP(Switch!$D$33,$F$2:$G$44,2,FALSE)+ROW()-2))=Switch!$D$33,INDIRECT(\"a\" & (VLOOKUP(Switch!$D$33,$F$2:$G$44,2,FALSE)+ROW()-2)),\"\")","v":{"$error":"#N/A"}},{"$f":"IF(INDIRECT(\"c\" & (VLOOKUP(Switch!$D$34,$F$2:$G$44,2,FALSE)+ROW()-2))=Switch!$D$34,INDIRECT(\"a\" & (VLOOKUP(Switch!$D$34,$F$2:$G$44,2,FALSE)+ROW()-2)),\"\")","v":{"$error":"#N/A"}},{"$f":"IF(INDIRECT(\"c\" & (VLOOKUP(Switch!$D$35,$F$2:$G$44,2,FALSE)+ROW()-2))=Switch!$D$35,INDIRECT(\"a\" & (VLOOKUP(Switch!$D$35,$F$2:$G$44,2,FALSE)+ROW()-2)),\"\")","v":{"$error":"#N/A"}},{"$f":"IF(INDIRECT(\"c\" & (VLOOKUP(Switch!$D$36,$F$2:$G$44,2,FALSE)+ROW()-2))=Switch!$D$36,INDIRECT(\"a\" & (VLOOKUP(Switch!$D$36,$F$2:$G$44,2,FALSE)+ROW()-2)),\"\")","v":{"$error":"#N/A"}},{"$f":"IF(INDIRECT(\"c\" & (VLOOKUP(Switch!$D$37,$F$2:$G$44,2,FALSE)+ROW()-2))=Switch!$D$37,INDIRECT(\"a\" & (VLOOKUP(Switch!$D$37,$F$2:$G$44,2,FALSE)+ROW()-2)),\"\")","v":{"$error":"#N/A"}},{"$f":"IF(INDIRECT(\"c\" & (VLOOKUP(Switch!$D$38,$F$2:$G$44,2,FALSE)+ROW()-2))=Switch!$D$38,INDIRECT(\"a\" & (VLOOKUP(Switch!$D$38,$F$2:$G$44,2,FALSE)+ROW()-2)),\"\")","v":{"$error":"#N/A"}},{"$f":"IF(INDIRECT(\"c\" & (VLOOKUP(Switch!$D$39,$F$2:$G$44,2,FALSE)+ROW()-2))=Switch!$D$39,INDIRECT(\"a\" & (VLOOKUP(Switch!$D$39,$F$2:$G$44,2,FALSE)+ROW()-2)),\"\")","v":{"$error":"#N/A"}},{"$f":"IF(INDIRECT(\"c\" & (VLOOKUP(Switch!$D$40,$F$2:$G$44,2,FALSE)+ROW()-2))=Switch!$D$40,INDIRECT(\"a\" & (VLOOKUP(Switch!$D$40,$F$2:$G$44,2,FALSE)+ROW()-2)),\"\")","v":{"$error":"#N/A"}},{"$f":"IF(INDIRECT(\"c\" & (VLOOKUP(Switch!$D$52,$F$2:$G$44,2,FALSE)+ROW()-2))=Switch!$D$52,INDIRECT(\"a\" & (VLOOKUP(Switch!$D$52,$F$2:$G$44,2,FALSE)+ROW()-2)),\"\")","v":{"$error":"#N/A"}},{"$f":"IF(INDIRECT(\"c\" & (VLOOKUP(Switch!$D$53,$F$2:$G$44,2,FALSE)+ROW()-2))=Switch!$D$53,INDIRECT(\"a\" & (VLOOKUP(Switch!$D$53,$F$2:$G$44,2,FALSE)+ROW()-2)),\"\")","v":{"$error":"#N/A"}},{"$f":"IF(INDIRECT(\"c\" & (VLOOKUP(Switch!$D$54,$F$2:$G$44,2,FALSE)+ROW()-2))=Switch!$D$54,INDIRECT(\"a\" & (VLOOKUP(Switch!$D$54,$F$2:$G$44,2,FALSE)+ROW()-2)),\"\")","v":{"$error":"#N/A"}},{"$f":"IF(INDIRECT(\"c\" & (VLOOKUP(Switch!$D$55,$F$2:$G$44,2,FALSE)+ROW()-2))=Switch!$D$55,INDIRECT(\"a\" & (VLOOKUP(Switch!$D$55,$F$2:$G$44,2,FALSE)+ROW()-2)),\"\")","v":{"$error":"#N/A"}},{"$f":"IF(INDIRECT(\"c\" & (VLOOKUP(Switch!$D$56,$F$2:$G$44,2,FALSE)+ROW()-2))=Switch!$D$56,INDIRECT(\"a\" & (VLOOKUP(Switch!$D$56,$F$2:$G$44,2,FALSE)+ROW()-2)),\"\")","v":{"$error":"#N/A"}},{"$f":"IF(INDIRECT(\"c\" & (VLOOKUP(Switch!$D$57,$F$2:$G$44,2,FALSE)+ROW()-2))=Switch!$D$57,INDIRECT(\"a\" & (VLOOKUP(Switch!$D$57,$F$2:$G$44,2,FALSE)+ROW()-2)),\"\")","v":{"$error":"#N/A"}},{"$f":"IF(INDIRECT(\"c\" & (VLOOKUP(Switch!$D$58,$F$2:$G$44,2,FALSE)+ROW()-2))=Switch!$D$58,INDIRECT(\"a\" & (VLOOKUP(Switch!$D$58,$F$2:$G$44,2,FALSE)+ROW()-2)),\"\")","v":{"$error":"#N/A"}},{"$f":"IF(INDIRECT(\"c\" & (VLOOKUP(Switch!$D$59,$F$2:$G$44,2,FALSE)+ROW()-2))=Switch!$D$59,INDIRECT(\"a\" & (VLOOKUP(Switch!$D$59,$F$2:$G$44,2,FALSE)+ROW()-2)),\"\")","v":{"$error":"#N/A"}},{"$f":"IF(INDIRECT(\"c\" & (VLOOKUP(Switch!$D$60,$F$2:$G$44,2,FALSE)+ROW()-2))=Switch!$D$60,INDIRECT(\"a\" & (VLOOKUP(Switch!$D$60,$F$2:$G$44,2,FALSE)+ROW()-2)),\"\")","v":{"$error":"#N/A"}},{"$f":"IF(INDIRECT(\"c\" & (VLOOKUP(Switch!$D$61,$F$2:$G$44,2,FALSE)+ROW()-2))=Switch!$D$61,INDIRECT(\"a\" & (VLOOKUP(Switch!$D$61,$F$2:$G$44,2,FALSE)+ROW()-2)),\"\")","v":{"$error":"#N/A"}},{"$f":"IF(INDIRECT(\"c\" & (VLOOKUP(Switch!$D$62,$F$2:$G$44,2,FALSE)+ROW()-2))=Switch!$D$62,INDIRECT(\"a\" & (VLOOKUP(Switch!$D$62,$F$2:$G$44,2,FALSE)+ROW()-2)),\"\")","v":{"$error":"#N/A"}},{"$f":"IF(INDIRECT(\"c\" & (VLOOKUP(Switch!$D$63,$F$2:$G$44,2,FALSE)+ROW()-2))=Switch!$D$63,INDIRECT(\"a\" & (VLOOKUP(Switch!$D$63,$F$2:$G$44,2,FALSE)+ROW()-2)),\"\")","v":{"$error":"#N/A"}},{"$f":"IF(INDIRECT(\"c\" & (VLOOKUP(Switch!$D$64,$F$2:$G$44,2,FALSE)+ROW()-2))=Switch!$D$64,INDIRECT(\"a\" & (VLOOKUP(Switch!$D$64,$F$2:$G$44,2,FALSE)+ROW()-2)),\"\")","v":{"$error":"#N/A"}},{"$f":"IF(INDIRECT(\"c\" & (VLOOKUP(Switch!$D$65,$F$2:$G$44,2,FALSE)+ROW()-2))=Switch!$D$65,INDIRECT(\"a\" & (VLOOKUP(Switch!$D$65,$F$2:$G$44,2,FALSE)+ROW()-2)),\"\")","v":{"$error":"#N/A"}},{"$f":"IF(INDIRECT(\"c\" & (VLOOKUP(Switch!$D$66,$F$2:$G$44,2,FALSE)+ROW()-2))=Switch!$D$66,INDIRECT(\"a\" & (VLOOKUP(Switch!$D$66,$F$2:$G$44,2,FALSE)+ROW()-2)),\"\")","v":{"$error":"#N/A"}}]
["ABAX Balanced Prescient Fund A1","AABA1","Prescient Management Company Ltd",{"$f":"ROW()","v":442},null,null,{"$f":"VLOOKUP(F442,$C$2:$D$637,2,FALSE)","v":{"$error":"#N/A"}},{"$f":"IF(INDIRECT(\"c\" & (VLOOKUP(Switch!$D$26,$F$2:$G$44,2,FALSE)+ROW()-2))=Switch!$D$26,INDIRECT(\"a\" & (VLOOKUP(Switch!$D$26,$F$2:$G$44,2,FALSE)+ROW()-2)),\"\")","v":{"$error":"#N/A"}},{"$f":"IF(INDIRECT(\"c\" & (VLOOKUP(Switch!$D$27,$F$2:$G$44,2,FALSE)+ROW()-2))=Switch!$D$27,INDIRECT(\"a\" & (VLOOKUP(Switch!$D$27,$F$2:$G$44,2,FALSE)+ROW()-2)),\"\")","v":{"$error":"#N/A"}},{"$f":"IF(INDIRECT(\"c\" & (VLOOKUP(Switch!$D$28,$F$2:$G$44,2,FALSE)+ROW()-2))=Switch!$D$28,INDIRECT(\"a\" & (VLOOKUP(Switch!$D$28,$F$2:$G$44,2,FALSE)+ROW()-2)),\"\")","v":{"$error":"#N/A"}},{"$f":"IF(INDIRECT(\"c\" & (VLOOKUP(Switch!$D$29,$F$2:$G$44,2,FALSE)+ROW()-2))=Switch!$D$29,INDIRECT(\"a\" & (VLOOKUP(Switch!$D$29,$F$2:$G$44,2,FALSE)+ROW()-2)),\"\")","v":{"$error":"#N/A"}},{"$f":"IF(INDIRECT(\"c\" & (VLOOKUP(Switch!$D$30,$F$2:$G$44,2,FALSE)+ROW()-2))=Switch!$D$30,INDIRECT(\"a\" & (VLOOKUP(Switch!$D$30,$F$2:$G$44,2,FALSE)+ROW()-2)),\"\")","v":{"$error":"#N/A"}},{"$f":"IF(INDIRECT(\"c\" & (VLOOKUP(Switch!$D$31,$F$2:$G$44,2,FALSE)+ROW()-2))=Switch!$D$31,INDIRECT(\"a\" & (VLOOKUP(Switch!$D$31,$F$2:$G$44,2,FALSE)+ROW()-2)),\"\")","v":{"$error":"#N/A"}},{"$f":"IF(INDIRECT(\"c\" & (VLOOKUP(Switch!$D$32,$F$2:$G$44,2,FALSE)+ROW()-2))=Switch!$D$32,INDIRECT(\"a\" & (VLOOKUP(Switch!$D$32,$F$2:$G$44,2,FALSE)+ROW()-2)),\"\")","v":{"$error":"#N/A"}},{"$f":"IF(INDIRECT(\"c\" & (VLOOKUP(Switch!$D$33,$F$2:$G$44,2,FALSE)+ROW()-2))=Switch!$D$33,INDIRECT(\"a\" & (VLOOKUP(Switch!$D$33,$F$2:$G$44,2,FALSE)+ROW()-2)),\"\")","v":{"$error":"#N/A"}},{"$f":"IF(INDIRECT(\"c\" & (VLOOKUP(Switch!$D$34,$F$2:$G$44,2,FALSE)+ROW()-2))=Switch!$D$34,INDIRECT(\"a\" & (VLOOKUP(Switch!$D$34,$F$2:$G$44,2,FALSE)+ROW()-2)),\"\")","v":{"$error":"#N/A"}},{"$f":"IF(INDIRECT(\"c\" & (VLOOKUP(Switch!$D$35,$F$2:$G$44,2,FALSE)+ROW()-2))=Switch!$D$35,INDIRECT(\"a\" & (VLOOKUP(Switch!$D$35,$F$2:$G$44,2,FALSE)+ROW()-2)),\"\")","v":{"$error":"#N/A"}},{"$f":"IF(INDIRECT(\"c\" & (VLOOKUP(Switch!$D$36,$F$2:$G$44,2,FALSE)+ROW()-2))=Switch!$D$36,INDIRECT(\"a\" & (VLOOKUP(Switch!$D$36,$F$2:$G$44,2,FALSE)+ROW()-2)),\"\")","v":{"$error":"#N/A"}},{"$f":"IF(INDIRECT(\"c\" & (VLOOKUP(Switch!$D$37,$F$2:$G$44,2,FALSE)+ROW()-2))=Switch!$D$37,INDIRECT(\"a\" & (VLOOKUP(Switch!$D$37,$F$2:$G$44,2,FALSE)+ROW()-2)),\"\")","v":{"$error":"#N/A"}},{"$f":"IF(INDIRECT(\"c\" & (VLOOKUP(Switch!$D$38,$F$2:$G$44,2,FALSE)+ROW()-2))=Switch!$D$38,INDIRECT(\"a\" & (VLOOKUP(Switch!$D$38,$F$2:$G$44,2,FALSE)+ROW()-2)),\"\")","v":{"$error":"#N/A"}},{"$f":"IF(INDIRECT(\"c\" & (VLOOKUP(Switch!$D$39,$F$2:$G$44,2,FALSE)+ROW()-2))=Switch!$D$39,INDIRECT(\"a\" & (VLOOKUP(Switch!$D$39,$F$2:$G$44,2,FALSE)+ROW()-2)),\"\")","v":{"$error":"#N/A"}},{"$f":"IF(INDIRECT(\"c\" & (VLOOKUP(Switch!$D$40,$F$2:$G$44,2,FALSE)+ROW()-2))=Switch!$D$40,INDIRECT(\"a\" & (VLOOKUP(Switch!$D$40,$F$2:$G$44,2,FALSE)+ROW()-2)),\"\")","v":{"$error":"#N/A"}},{"$f":"IF(INDIRECT(\"c\" & (VLOOKUP(Switch!$D$52,$F$2:$G$44,2,FALSE)+ROW()-2))=Switch!$D$52,INDIRECT(\"a\" & (VLOOKUP(Switch!$D$52,$F$2:$G$44,2,FALSE)+ROW()-2)),\"\")","v":{"$error":"#N/A"}},{"$f":"IF(INDIRECT(\"c\" & (VLOOKUP(Switch!$D$53,$F$2:$G$44,2,FALSE)+ROW()-2))=Switch!$D$53,INDIRECT(\"a\" & (VLOOKUP(Switch!$D$53,$F$2:$G$44,2,FALSE)+ROW()-2)),\"\")","v":{"$error":"#N/A"}},{"$f":"IF(INDIRECT(\"c\" & (VLOOKUP(Switch!$D$54,$F$2:$G$44,2,FALSE)+ROW()-2))=Switch!$D$54,INDIRECT(\"a\" & (VLOOKUP(Switch!$D$54,$F$2:$G$44,2,FALSE)+ROW()-2)),\"\")","v":{"$error":"#N/A"}},{"$f":"IF(INDIRECT(\"c\" & (VLOOKUP(Switch!$D$55,$F$2:$G$44,2,FALSE)+ROW()-2))=Switch!$D$55,INDIRECT(\"a\" & (VLOOKUP(Switch!$D$55,$F$2:$G$44,2,FALSE)+ROW()-2)),\"\")","v":{"$error":"#N/A"}},{"$f":"IF(INDIRECT(\"c\" & (VLOOKUP(Switch!$D$56,$F$2:$G$44,2,FALSE)+ROW()-2))=Switch!$D$56,INDIRECT(\"a\" & (VLOOKUP(Switch!$D$56,$F$2:$G$44,2,FALSE)+ROW()-2)),\"\")","v":{"$error":"#N/A"}},{"$f":"IF(INDIRECT(\"c\" & (VLOOKUP(Switch!$D$57,$F$2:$G$44,2,FALSE)+ROW()-2))=Switch!$D$57,INDIRECT(\"a\" & (VLOOKUP(Switch!$D$57,$F$2:$G$44,2,FALSE)+ROW()-2)),\"\")","v":{"$error":"#N/A"}},{"$f":"IF(INDIRECT(\"c\" & (VLOOKUP(Switch!$D$58,$F$2:$G$44,2,FALSE)+ROW()-2))=Switch!$D$58,INDIRECT(\"a\" & (VLOOKUP(Switch!$D$58,$F$2:$G$44,2,FALSE)+ROW()-2)),\"\")","v":{"$error":"#N/A"}},{"$f":"IF(INDIRECT(\"c\" & (VLOOKUP(Switch!$D$59,$F$2:$G$44,2,FALSE)+ROW()-2))=Switch!$D$59,INDIRECT(\"a\" & (VLOOKUP(Switch!$D$59,$F$2:$G$44,2,FALSE)+ROW()-2)),\"\")","v":{"$error":"#N/A"}},{"$f":"IF(INDIRECT(\"c\" & (VLOOKUP(Switch!$D$60,$F$2:$G$44,2,FALSE)+ROW()-2))=Switch!$D$60,INDIRECT(\"a\" & (VLOOKUP(Switch!$D$60,$F$2:$G$44,2,FALSE)+ROW()-2)),\"\")","v":{"$error":"#N/A"}},{"$f":"IF(INDIRECT(\"c\" & (VLOOKUP(Switch!$D$61,$F$2:$G$44,2,FALSE)+ROW()-2))=Switch!$D$61,INDIRECT(\"a\" & (VLOOKUP(Switch!$D$61,$F$2:$G$44,2,FALSE)+ROW()-2)),\"\")","v":{"$error":"#N/A"}},{"$f":"IF(INDIRECT(\"c\" & (VLOOKUP(Switch!$D$62,$F$2:$G$44,2,FALSE)+ROW()-2))=Switch!$D$62,INDIRECT(\"a\" & (VLOOKUP(Switch!$D$62,$F$2:$G$44,2,FALSE)+ROW()-2)),\"\")","v":{"$error":"#N/A"}},{"$f":"IF(INDIRECT(\"c\" & (VLOOKUP(Switch!$D$63,$F$2:$G$44,2,FALSE)+ROW()-2))=Switch!$D$63,INDIRECT(\"a\" & (VLOOKUP(Switch!$D$63,$F$2:$G$44,2,FALSE)+ROW()-2)),\"\")","v":{"$error":"#N/A"}},{"$f":"IF(INDIRECT(\"c\" & (VLOOKUP(Switch!$D$64,$F$2:$G$44,2,FALSE)+ROW()-2))=Switch!$D$64,INDIRECT(\"a\" & (VLOOKUP(Switch!$D$64,$F$2:$G$44,2,FALSE)+ROW()-2)),\"\")","v":{"$error":"#N/A"}},{"$f":"IF(INDIRECT(\"c\" & (VLOOKUP(Switch!$D$65,$F$2:$G$44,2,FALSE)+ROW()-2))=Switch!$D$65,INDIRECT(\"a\" & (VLOOKUP(Switch!$D$65,$F$2:$G$44,2,FALSE)+ROW()-2)),\"\")","v":{"$error":"#N/A"}},{"$f":"IF(INDIRECT(\"c\" & (VLOOKUP(Switch!$D$66,$F$2:$G$44,2,FALSE)+ROW()-2))=Switch!$D$66,INDIRECT(\"a\" & (VLOOKUP(Switch!$D$66,$F$2:$G$44,2,FALSE)+ROW()-2)),\"\")","v":{"$error":"#N/A"}}]
["ABAX Equity Prescient Fund B1","ABEB1","Prescient Management Company Ltd",{"$f":"ROW()","v":443},null,null,{"$f":"VLOOKUP(F443,$C$2:$D$637,2,FALSE)","v":{"$error":"#N/A"}},{"$f":"IF(INDIRECT(\"c\" & (VLOOKUP(Switch!$D$26,$F$2:$G$44,2,FALSE)+ROW()-2))=Switch!$D$26,INDIRECT(\"a\" & (VLOOKUP(Switch!$D$26,$F$2:$G$44,2,FALSE)+ROW()-2)),\"\")","v":{"$error":"#N/A"}},{"$f":"IF(INDIRECT(\"c\" & (VLOOKUP(Switch!$D$27,$F$2:$G$44,2,FALSE)+ROW()-2))=Switch!$D$27,INDIRECT(\"a\" & (VLOOKUP(Switch!$D$27,$F$2:$G$44,2,FALSE)+ROW()-2)),\"\")","v":{"$error":"#N/A"}},{"$f":"IF(INDIRECT(\"c\" & (VLOOKUP(Switch!$D$28,$F$2:$G$44,2,FALSE)+ROW()-2))=Switch!$D$28,INDIRECT(\"a\" & (VLOOKUP(Switch!$D$28,$F$2:$G$44,2,FALSE)+ROW()-2)),\"\")","v":{"$error":"#N/A"}},{"$f":"IF(INDIRECT(\"c\" & (VLOOKUP(Switch!$D$29,$F$2:$G$44,2,FALSE)+ROW()-2))=Switch!$D$29,INDIRECT(\"a\" & (VLOOKUP(Switch!$D$29,$F$2:$G$44,2,FALSE)+ROW()-2)),\"\")","v":{"$error":"#N/A"}},{"$f":"IF(INDIRECT(\"c\" & (VLOOKUP(Switch!$D$30,$F$2:$G$44,2,FALSE)+ROW()-2))=Switch!$D$30,INDIRECT(\"a\" & (VLOOKUP(Switch!$D$30,$F$2:$G$44,2,FALSE)+ROW()-2)),\"\")","v":{"$error":"#N/A"}},{"$f":"IF(INDIRECT(\"c\" & (VLOOKUP(Switch!$D$31,$F$2:$G$44,2,FALSE)+ROW()-2))=Switch!$D$31,INDIRECT(\"a\" & (VLOOKUP(Switch!$D$31,$F$2:$G$44,2,FALSE)+ROW()-2)),\"\")","v":{"$error":"#N/A"}},{"$f":"IF(INDIRECT(\"c\" & (VLOOKUP(Switch!$D$32,$F$2:$G$44,2,FALSE)+ROW()-2))=Switch!$D$32,INDIRECT(\"a\" & (VLOOKUP(Switch!$D$32,$F$2:$G$44,2,FALSE)+ROW()-2)),\"\")","v":{"$error":"#N/A"}},{"$f":"IF(INDIRECT(\"c\" & (VLOOKUP(Switch!$D$33,$F$2:$G$44,2,FALSE)+ROW()-2))=Switch!$D$33,INDIRECT(\"a\" & (VLOOKUP(Switch!$D$33,$F$2:$G$44,2,FALSE)+ROW()-2)),\"\")","v":{"$error":"#N/A"}},{"$f":"IF(INDIRECT(\"c\" & (VLOOKUP(Switch!$D$34,$F$2:$G$44,2,FALSE)+ROW()-2))=Switch!$D$34,INDIRECT(\"a\" & (VLOOKUP(Switch!$D$34,$F$2:$G$44,2,FALSE)+ROW()-2)),\"\")","v":{"$error":"#N/A"}},{"$f":"IF(INDIRECT(\"c\" & (VLOOKUP(Switch!$D$35,$F$2:$G$44,2,FALSE)+ROW()-2))=Switch!$D$35,INDIRECT(\"a\" & (VLOOKUP(Switch!$D$35,$F$2:$G$44,2,FALSE)+ROW()-2)),\"\")","v":{"$error":"#N/A"}},{"$f":"IF(INDIRECT(\"c\" & (VLOOKUP(Switch!$D$36,$F$2:$G$44,2,FALSE)+ROW()-2))=Switch!$D$36,INDIRECT(\"a\" & (VLOOKUP(Switch!$D$36,$F$2:$G$44,2,FALSE)+ROW()-2)),\"\")","v":{"$error":"#N/A"}},{"$f":"IF(INDIRECT(\"c\" & (VLOOKUP(Switch!$D$37,$F$2:$G$44,2,FALSE)+ROW()-2))=Switch!$D$37,INDIRECT(\"a\" & (VLOOKUP(Switch!$D$37,$F$2:$G$44,2,FALSE)+ROW()-2)),\"\")","v":{"$error":"#N/A"}},{"$f":"IF(INDIRECT(\"c\" & (VLOOKUP(Switch!$D$38,$F$2:$G$44,2,FALSE)+ROW()-2))=Switch!$D$38,INDIRECT(\"a\" & (VLOOKUP(Switch!$D$38,$F$2:$G$44,2,FALSE)+ROW()-2)),\"\")","v":{"$error":"#N/A"}},{"$f":"IF(INDIRECT(\"c\" & (VLOOKUP(Switch!$D$39,$F$2:$G$44,2,FALSE)+ROW()-2))=Switch!$D$39,INDIRECT(\"a\" & (VLOOKUP(Switch!$D$39,$F$2:$G$44,2,FALSE)+ROW()-2)),\"\")","v":{"$error":"#N/A"}},{"$f":"IF(INDIRECT(\"c\" & (VLOOKUP(Switch!$D$40,$F$2:$G$44,2,FALSE)+ROW()-2))=Switch!$D$40,INDIRECT(\"a\" & (VLOOKUP(Switch!$D$40,$F$2:$G$44,2,FALSE)+ROW()-2)),\"\")","v":{"$error":"#N/A"}},{"$f":"IF(INDIRECT(\"c\" & (VLOOKUP(Switch!$D$52,$F$2:$G$44,2,FALSE)+ROW()-2))=Switch!$D$52,INDIRECT(\"a\" & (VLOOKUP(Switch!$D$52,$F$2:$G$44,2,FALSE)+ROW()-2)),\"\")","v":{"$error":"#N/A"}},{"$f":"IF(INDIRECT(\"c\" & (VLOOKUP(Switch!$D$53,$F$2:$G$44,2,FALSE)+ROW()-2))=Switch!$D$53,INDIRECT(\"a\" & (VLOOKUP(Switch!$D$53,$F$2:$G$44,2,FALSE)+ROW()-2)),\"\")","v":{"$error":"#N/A"}},{"$f":"IF(INDIRECT(\"c\" & (VLOOKUP(Switch!$D$54,$F$2:$G$44,2,FALSE)+ROW()-2))=Switch!$D$54,INDIRECT(\"a\" & (VLOOKUP(Switch!$D$54,$F$2:$G$44,2,FALSE)+ROW()-2)),\"\")","v":{"$error":"#N/A"}},{"$f":"IF(INDIRECT(\"c\" & (VLOOKUP(Switch!$D$55,$F$2:$G$44,2,FALSE)+ROW()-2))=Switch!$D$55,INDIRECT(\"a\" & (VLOOKUP(Switch!$D$55,$F$2:$G$44,2,FALSE)+ROW()-2)),\"\")","v":{"$error":"#N/A"}},{"$f":"IF(INDIRECT(\"c\" & (VLOOKUP(Switch!$D$56,$F$2:$G$44,2,FALSE)+ROW()-2))=Switch!$D$56,INDIRECT(\"a\" & (VLOOKUP(Switch!$D$56,$F$2:$G$44,2,FALSE)+ROW()-2)),\"\")","v":{"$error":"#N/A"}},{"$f":"IF(INDIRECT(\"c\" & (VLOOKUP(Switch!$D$57,$F$2:$G$44,2,FALSE)+ROW()-2))=Switch!$D$57,INDIRECT(\"a\" & (VLOOKUP(Switch!$D$57,$F$2:$G$44,2,FALSE)+ROW()-2)),\"\")","v":{"$error":"#N/A"}},{"$f":"IF(INDIRECT(\"c\" & (VLOOKUP(Switch!$D$58,$F$2:$G$44,2,FALSE)+ROW()-2))=Switch!$D$58,INDIRECT(\"a\" & (VLOOKUP(Switch!$D$58,$F$2:$G$44,2,FALSE)+ROW()-2)),\"\")","v":{"$error":"#N/A"}},{"$f":"IF(INDIRECT(\"c\" & (VLOOKUP(Switch!$D$59,$F$2:$G$44,2,FALSE)+ROW()-2))=Switch!$D$59,INDIRECT(\"a\" & (VLOOKUP(Switch!$D$59,$F$2:$G$44,2,FALSE)+ROW()-2)),\"\")","v":{"$error":"#N/A"}},{"$f":"IF(INDIRECT(\"c\" & (VLOOKUP(Switch!$D$60,$F$2:$G$44,2,FALSE)+ROW()-2))=Switch!$D$60,INDIRECT(\"a\" & (VLOOKUP(Switch!$D$60,$F$2:$G$44,2,FALSE)+ROW()-2)),\"\")","v":{"$error":"#N/A"}},{"$f":"IF(INDIRECT(\"c\" & (VLOOKUP(Switch!$D$61,$F$2:$G$44,2,FALSE)+ROW()-2))=Switch!$D$61,INDIRECT(\"a\" & (VLOOKUP(Switch!$D$61,$F$2:$G$44,2,FALSE)+ROW()-2)),\"\")","v":{"$error":"#N/A"}},{"$f":"IF(INDIRECT(\"c\" & (VLOOKUP(Switch!$D$62,$F$2:$G$44,2,FALSE)+ROW()-2))=Switch!$D$62,INDIRECT(\"a\" & (VLOOKUP(Switch!$D$62,$F$2:$G$44,2,FALSE)+ROW()-2)),\"\")","v":{"$error":"#N/A"}},{"$f":"IF(INDIRECT(\"c\" & (VLOOKUP(Switch!$D$63,$F$2:$G$44,2,FALSE)+ROW()-2))=Switch!$D$63,INDIRECT(\"a\" & (VLOOKUP(Switch!$D$63,$F$2:$G$44,2,FALSE)+ROW()-2)),\"\")","v":{"$error":"#N/A"}},{"$f":"IF(INDIRECT(\"c\" & (VLOOKUP(Switch!$D$64,$F$2:$G$44,2,FALSE)+ROW()-2))=Switch!$D$64,INDIRECT(\"a\" & (VLOOKUP(Switch!$D$64,$F$2:$G$44,2,FALSE)+ROW()-2)),\"\")","v":{"$error":"#N/A"}},{"$f":"IF(INDIRECT(\"c\" & (VLOOKUP(Switch!$D$65,$F$2:$G$44,2,FALSE)+ROW()-2))=Switch!$D$65,INDIRECT(\"a\" & (VLOOKUP(Switch!$D$65,$F$2:$G$44,2,FALSE)+ROW()-2)),\"\")","v":{"$error":"#N/A"}},{"$f":"IF(INDIRECT(\"c\" & (VLOOKUP(Switch!$D$66,$F$2:$G$44,2,FALSE)+ROW()-2))=Switch!$D$66,INDIRECT(\"a\" & (VLOOKUP(Switch!$D$66,$F$2:$G$44,2,FALSE)+ROW()-2)),\"\")","v":{"$error":"#N/A"}}]
["Aylett Balanced Prescient Fund A1","AYPA1","Prescient Management Company Ltd",{"$f":"ROW()","v":444},null,null,{"$f":"VLOOKUP(F444,$C$2:$D$637,2,FALSE)","v":{"$error":"#N/A"}},{"$f":"IF(INDIRECT(\"c\" & (VLOOKUP(Switch!$D$26,$F$2:$G$44,2,FALSE)+ROW()-2))=Switch!$D$26,INDIRECT(\"a\" & (VLOOKUP(Switch!$D$26,$F$2:$G$44,2,FALSE)+ROW()-2)),\"\")","v":{"$error":"#N/A"}},{"$f":"IF(INDIRECT(\"c\" & (VLOOKUP(Switch!$D$27,$F$2:$G$44,2,FALSE)+ROW()-2))=Switch!$D$27,INDIRECT(\"a\" & (VLOOKUP(Switch!$D$27,$F$2:$G$44,2,FALSE)+ROW()-2)),\"\")","v":{"$error":"#N/A"}},{"$f":"IF(INDIRECT(\"c\" & (VLOOKUP(Switch!$D$28,$F$2:$G$44,2,FALSE)+ROW()-2))=Switch!$D$28,INDIRECT(\"a\" & (VLOOKUP(Switch!$D$28,$F$2:$G$44,2,FALSE)+ROW()-2)),\"\")","v":{"$error":"#N/A"}},{"$f":"IF(INDIRECT(\"c\" & (VLOOKUP(Switch!$D$29,$F$2:$G$44,2,FALSE)+ROW()-2))=Switch!$D$29,INDIRECT(\"a\" & (VLOOKUP(Switch!$D$29,$F$2:$G$44,2,FALSE)+ROW()-2)),\"\")","v":{"$error":"#N/A"}},{"$f":"IF(INDIRECT(\"c\" & (VLOOKUP(Switch!$D$30,$F$2:$G$44,2,FALSE)+ROW()-2))=Switch!$D$30,INDIRECT(\"a\" & (VLOOKUP(Switch!$D$30,$F$2:$G$44,2,FALSE)+ROW()-2)),\"\")","v":{"$error":"#N/A"}},{"$f":"IF(INDIRECT(\"c\" & (VLOOKUP(Switch!$D$31,$F$2:$G$44,2,FALSE)+ROW()-2))=Switch!$D$31,INDIRECT(\"a\" & (VLOOKUP(Switch!$D$31,$F$2:$G$44,2,FALSE)+ROW()-2)),\"\")","v":{"$error":"#N/A"}},{"$f":"IF(INDIRECT(\"c\" & (VLOOKUP(Switch!$D$32,$F$2:$G$44,2,FALSE)+ROW()-2))=Switch!$D$32,INDIRECT(\"a\" & (VLOOKUP(Switch!$D$32,$F$2:$G$44,2,FALSE)+ROW()-2)),\"\")","v":{"$error":"#N/A"}},{"$f":"IF(INDIRECT(\"c\" & (VLOOKUP(Switch!$D$33,$F$2:$G$44,2,FALSE)+ROW()-2))=Switch!$D$33,INDIRECT(\"a\" & (VLOOKUP(Switch!$D$33,$F$2:$G$44,2,FALSE)+ROW()-2)),\"\")","v":{"$error":"#N/A"}},{"$f":"IF(INDIRECT(\"c\" & (VLOOKUP(Switch!$D$34,$F$2:$G$44,2,FALSE)+ROW()-2))=Switch!$D$34,INDIRECT(\"a\" & (VLOOKUP(Switch!$D$34,$F$2:$G$44,2,FALSE)+ROW()-2)),\"\")","v":{"$error":"#N/A"}},{"$f":"IF(INDIRECT(\"c\" & (VLOOKUP(Switch!$D$35,$F$2:$G$44,2,FALSE)+ROW()-2))=Switch!$D$35,INDIRECT(\"a\" & (VLOOKUP(Switch!$D$35,$F$2:$G$44,2,FALSE)+ROW()-2)),\"\")","v":{"$error":"#N/A"}},{"$f":"IF(INDIRECT(\"c\" & (VLOOKUP(Switch!$D$36,$F$2:$G$44,2,FALSE)+ROW()-2))=Switch!$D$36,INDIRECT(\"a\" & (VLOOKUP(Switch!$D$36,$F$2:$G$44,2,FALSE)+ROW()-2)),\"\")","v":{"$error":"#N/A"}},{"$f":"IF(INDIRECT(\"c\" & (VLOOKUP(Switch!$D$37,$F$2:$G$44,2,FALSE)+ROW()-2))=Switch!$D$37,INDIRECT(\"a\" & (VLOOKUP(Switch!$D$37,$F$2:$G$44,2,FALSE)+ROW()-2)),\"\")","v":{"$error":"#N/A"}},{"$f":"IF(INDIRECT(\"c\" & (VLOOKUP(Switch!$D$38,$F$2:$G$44,2,FALSE)+ROW()-2))=Switch!$D$38,INDIRECT(\"a\" & (VLOOKUP(Switch!$D$38,$F$2:$G$44,2,FALSE)+ROW()-2)),\"\")","v":{"$error":"#N/A"}},{"$f":"IF(INDIRECT(\"c\" & (VLOOKUP(Switch!$D$39,$F$2:$G$44,2,FALSE)+ROW()-2))=Switch!$D$39,INDIRECT(\"a\" & (VLOOKUP(Switch!$D$39,$F$2:$G$44,2,FALSE)+ROW()-2)),\"\")","v":{"$error":"#N/A"}},{"$f":"IF(INDIRECT(\"c\" & (VLOOKUP(Switch!$D$40,$F$2:$G$44,2,FALSE)+ROW()-2))=Switch!$D$40,INDIRECT(\"a\" & (VLOOKUP(Switch!$D$40,$F$2:$G$44,2,FALSE)+ROW()-2)),\"\")","v":{"$error":"#N/A"}},{"$f":"IF(INDIRECT(\"c\" & (VLOOKUP(Switch!$D$52,$F$2:$G$44,2,FALSE)+ROW()-2))=Switch!$D$52,INDIRECT(\"a\" & (VLOOKUP(Switch!$D$52,$F$2:$G$44,2,FALSE)+ROW()-2)),\"\")","v":{"$error":"#N/A"}},{"$f":"IF(INDIRECT(\"c\" & (VLOOKUP(Switch!$D$53,$F$2:$G$44,2,FALSE)+ROW()-2))=Switch!$D$53,INDIRECT(\"a\" & (VLOOKUP(Switch!$D$53,$F$2:$G$44,2,FALSE)+ROW()-2)),\"\")","v":{"$error":"#N/A"}},{"$f":"IF(INDIRECT(\"c\" & (VLOOKUP(Switch!$D$54,$F$2:$G$44,2,FALSE)+ROW()-2))=Switch!$D$54,INDIRECT(\"a\" & (VLOOKUP(Switch!$D$54,$F$2:$G$44,2,FALSE)+ROW()-2)),\"\")","v":{"$error":"#N/A"}},{"$f":"IF(INDIRECT(\"c\" & (VLOOKUP(Switch!$D$55,$F$2:$G$44,2,FALSE)+ROW()-2))=Switch!$D$55,INDIRECT(\"a\" & (VLOOKUP(Switch!$D$55,$F$2:$G$44,2,FALSE)+ROW()-2)),\"\")","v":{"$error":"#N/A"}},{"$f":"IF(INDIRECT(\"c\" & (VLOOKUP(Switch!$D$56,$F$2:$G$44,2,FALSE)+ROW()-2))=Switch!$D$56,INDIRECT(\"a\" & (VLOOKUP(Switch!$D$56,$F$2:$G$44,2,FALSE)+ROW()-2)),\"\")","v":{"$error":"#N/A"}},{"$f":"IF(INDIRECT(\"c\" & (VLOOKUP(Switch!$D$57,$F$2:$G$44,2,FALSE)+ROW()-2))=Switch!$D$57,INDIRECT(\"a\" & (VLOOKUP(Switch!$D$57,$F$2:$G$44,2,FALSE)+ROW()-2)),\"\")","v":{"$error":"#N/A"}},{"$f":"IF(INDIRECT(\"c\" & (VLOOKUP(Switch!$D$58,$F$2:$G$44,2,FALSE)+ROW()-2))=Switch!$D$58,INDIRECT(\"a\" & (VLOOKUP(Switch!$D$58,$F$2:$G$44,2,FALSE)+ROW()-2)),\"\")","v":{"$error":"#N/A"}},{"$f":"IF(INDIRECT(\"c\" & (VLOOKUP(Switch!$D$59,$F$2:$G$44,2,FALSE)+ROW()-2))=Switch!$D$59,INDIRECT(\"a\" & (VLOOKUP(Switch!$D$59,$F$2:$G$44,2,FALSE)+ROW()-2)),\"\")","v":{"$error":"#N/A"}},{"$f":"IF(INDIRECT(\"c\" & (VLOOKUP(Switch!$D$60,$F$2:$G$44,2,FALSE)+ROW()-2))=Switch!$D$60,INDIRECT(\"a\" & (VLOOKUP(Switch!$D$60,$F$2:$G$44,2,FALSE)+ROW()-2)),\"\")","v":{"$error":"#N/A"}},{"$f":"IF(INDIRECT(\"c\" & (VLOOKUP(Switch!$D$61,$F$2:$G$44,2,FALSE)+ROW()-2))=Switch!$D$61,INDIRECT(\"a\" & (VLOOKUP(Switch!$D$61,$F$2:$G$44,2,FALSE)+ROW()-2)),\"\")","v":{"$error":"#N/A"}},{"$f":"IF(INDIRECT(\"c\" & (VLOOKUP(Switch!$D$62,$F$2:$G$44,2,FALSE)+ROW()-2))=Switch!$D$62,INDIRECT(\"a\" & (VLOOKUP(Switch!$D$62,$F$2:$G$44,2,FALSE)+ROW()-2)),\"\")","v":{"$error":"#N/A"}},{"$f":"IF(INDIRECT(\"c\" & (VLOOKUP(Switch!$D$63,$F$2:$G$44,2,FALSE)+ROW()-2))=Switch!$D$63,INDIRECT(\"a\" & (VLOOKUP(Switch!$D$63,$F$2:$G$44,2,FALSE)+ROW()-2)),\"\")","v":{"$error":"#N/A"}},{"$f":"IF(INDIRECT(\"c\" & (VLOOKUP(Switch!$D$64,$F$2:$G$44,2,FALSE)+ROW()-2))=Switch!$D$64,INDIRECT(\"a\" & (VLOOKUP(Switch!$D$64,$F$2:$G$44,2,FALSE)+ROW()-2)),\"\")","v":{"$error":"#N/A"}},{"$f":"IF(INDIRECT(\"c\" & (VLOOKUP(Switch!$D$65,$F$2:$G$44,2,FALSE)+ROW()-2))=Switch!$D$65,INDIRECT(\"a\" & (VLOOKUP(Switch!$D$65,$F$2:$G$44,2,FALSE)+ROW()-2)),\"\")","v":{"$error":"#N/A"}},{"$f":"IF(INDIRECT(\"c\" & (VLOOKUP(Switch!$D$66,$F$2:$G$44,2,FALSE)+ROW()-2))=Switch!$D$66,INDIRECT(\"a\" & (VLOOKUP(Switch!$D$66,$F$2:$G$44,2,FALSE)+ROW()-2)),\"\")","v":{"$error":"#N/A"}}]
["Aylett Equity Prescient Fund A1","AYEF","Prescient Management Company Ltd",{"$f":"ROW()","v":445},null,null,{"$f":"VLOOKUP(F445,$C$2:$D$637,2,FALSE)","v":{"$error":"#N/A"}},{"$f":"IF(INDIRECT(\"c\" & (VLOOKUP(Switch!$D$26,$F$2:$G$44,2,FALSE)+ROW()-2))=Switch!$D$26,INDIRECT(\"a\" & (VLOOKUP(Switch!$D$26,$F$2:$G$44,2,FALSE)+ROW()-2)),\"\")","v":{"$error":"#N/A"}},{"$f":"IF(INDIRECT(\"c\" & (VLOOKUP(Switch!$D$27,$F$2:$G$44,2,FALSE)+ROW()-2))=Switch!$D$27,INDIRECT(\"a\" & (VLOOKUP(Switch!$D$27,$F$2:$G$44,2,FALSE)+ROW()-2)),\"\")","v":{"$error":"#N/A"}},{"$f":"IF(INDIRECT(\"c\" & (VLOOKUP(Switch!$D$28,$F$2:$G$44,2,FALSE)+ROW()-2))=Switch!$D$28,INDIRECT(\"a\" & (VLOOKUP(Switch!$D$28,$F$2:$G$44,2,FALSE)+ROW()-2)),\"\")","v":{"$error":"#N/A"}},{"$f":"IF(INDIRECT(\"c\" & (VLOOKUP(Switch!$D$29,$F$2:$G$44,2,FALSE)+ROW()-2))=Switch!$D$29,INDIRECT(\"a\" & (VLOOKUP(Switch!$D$29,$F$2:$G$44,2,FALSE)+ROW()-2)),\"\")","v":{"$error":"#N/A"}},{"$f":"IF(INDIRECT(\"c\" & (VLOOKUP(Switch!$D$30,$F$2:$G$44,2,FALSE)+ROW()-2))=Switch!$D$30,INDIRECT(\"a\" & (VLOOKUP(Switch!$D$30,$F$2:$G$44,2,FALSE)+ROW()-2)),\"\")","v":{"$error":"#N/A"}},{"$f":"IF(INDIRECT(\"c\" & (VLOOKUP(Switch!$D$31,$F$2:$G$44,2,FALSE)+ROW()-2))=Switch!$D$31,INDIRECT(\"a\" & (VLOOKUP(Switch!$D$31,$F$2:$G$44,2,FALSE)+ROW()-2)),\"\")","v":{"$error":"#N/A"}},{"$f":"IF(INDIRECT(\"c\" & (VLOOKUP(Switch!$D$32,$F$2:$G$44,2,FALSE)+ROW()-2))=Switch!$D$32,INDIRECT(\"a\" & (VLOOKUP(Switch!$D$32,$F$2:$G$44,2,FALSE)+ROW()-2)),\"\")","v":{"$error":"#N/A"}},{"$f":"IF(INDIRECT(\"c\" & (VLOOKUP(Switch!$D$33,$F$2:$G$44,2,FALSE)+ROW()-2))=Switch!$D$33,INDIRECT(\"a\" & (VLOOKUP(Switch!$D$33,$F$2:$G$44,2,FALSE)+ROW()-2)),\"\")","v":{"$error":"#N/A"}},{"$f":"IF(INDIRECT(\"c\" & (VLOOKUP(Switch!$D$34,$F$2:$G$44,2,FALSE)+ROW()-2))=Switch!$D$34,INDIRECT(\"a\" & (VLOOKUP(Switch!$D$34,$F$2:$G$44,2,FALSE)+ROW()-2)),\"\")","v":{"$error":"#N/A"}},{"$f":"IF(INDIRECT(\"c\" & (VLOOKUP(Switch!$D$35,$F$2:$G$44,2,FALSE)+ROW()-2))=Switch!$D$35,INDIRECT(\"a\" & (VLOOKUP(Switch!$D$35,$F$2:$G$44,2,FALSE)+ROW()-2)),\"\")","v":{"$error":"#N/A"}},{"$f":"IF(INDIRECT(\"c\" & (VLOOKUP(Switch!$D$36,$F$2:$G$44,2,FALSE)+ROW()-2))=Switch!$D$36,INDIRECT(\"a\" & (VLOOKUP(Switch!$D$36,$F$2:$G$44,2,FALSE)+ROW()-2)),\"\")","v":{"$error":"#N/A"}},{"$f":"IF(INDIRECT(\"c\" & (VLOOKUP(Switch!$D$37,$F$2:$G$44,2,FALSE)+ROW()-2))=Switch!$D$37,INDIRECT(\"a\" & (VLOOKUP(Switch!$D$37,$F$2:$G$44,2,FALSE)+ROW()-2)),\"\")","v":{"$error":"#N/A"}},{"$f":"IF(INDIRECT(\"c\" & (VLOOKUP(Switch!$D$38,$F$2:$G$44,2,FALSE)+ROW()-2))=Switch!$D$38,INDIRECT(\"a\" & (VLOOKUP(Switch!$D$38,$F$2:$G$44,2,FALSE)+ROW()-2)),\"\")","v":{"$error":"#N/A"}},{"$f":"IF(INDIRECT(\"c\" & (VLOOKUP(Switch!$D$39,$F$2:$G$44,2,FALSE)+ROW()-2))=Switch!$D$39,INDIRECT(\"a\" & (VLOOKUP(Switch!$D$39,$F$2:$G$44,2,FALSE)+ROW()-2)),\"\")","v":{"$error":"#N/A"}},{"$f":"IF(INDIRECT(\"c\" & (VLOOKUP(Switch!$D$40,$F$2:$G$44,2,FALSE)+ROW()-2))=Switch!$D$40,INDIRECT(\"a\" & (VLOOKUP(Switch!$D$40,$F$2:$G$44,2,FALSE)+ROW()-2)),\"\")","v":{"$error":"#N/A"}},{"$f":"IF(INDIRECT(\"c\" & (VLOOKUP(Switch!$D$52,$F$2:$G$44,2,FALSE)+ROW()-2))=Switch!$D$52,INDIRECT(\"a\" & (VLOOKUP(Switch!$D$52,$F$2:$G$44,2,FALSE)+ROW()-2)),\"\")","v":{"$error":"#N/A"}},{"$f":"IF(INDIRECT(\"c\" & (VLOOKUP(Switch!$D$53,$F$2:$G$44,2,FALSE)+ROW()-2))=Switch!$D$53,INDIRECT(\"a\" & (VLOOKUP(Switch!$D$53,$F$2:$G$44,2,FALSE)+ROW()-2)),\"\")","v":{"$error":"#N/A"}},{"$f":"IF(INDIRECT(\"c\" & (VLOOKUP(Switch!$D$54,$F$2:$G$44,2,FALSE)+ROW()-2))=Switch!$D$54,INDIRECT(\"a\" & (VLOOKUP(Switch!$D$54,$F$2:$G$44,2,FALSE)+ROW()-2)),\"\")","v":{"$error":"#N/A"}},{"$f":"IF(INDIRECT(\"c\" & (VLOOKUP(Switch!$D$55,$F$2:$G$44,2,FALSE)+ROW()-2))=Switch!$D$55,INDIRECT(\"a\" & (VLOOKUP(Switch!$D$55,$F$2:$G$44,2,FALSE)+ROW()-2)),\"\")","v":{"$error":"#N/A"}},{"$f":"IF(INDIRECT(\"c\" & (VLOOKUP(Switch!$D$56,$F$2:$G$44,2,FALSE)+ROW()-2))=Switch!$D$56,INDIRECT(\"a\" & (VLOOKUP(Switch!$D$56,$F$2:$G$44,2,FALSE)+ROW()-2)),\"\")","v":{"$error":"#N/A"}},{"$f":"IF(INDIRECT(\"c\" & (VLOOKUP(Switch!$D$57,$F$2:$G$44,2,FALSE)+ROW()-2))=Switch!$D$57,INDIRECT(\"a\" & (VLOOKUP(Switch!$D$57,$F$2:$G$44,2,FALSE)+ROW()-2)),\"\")","v":{"$error":"#N/A"}},{"$f":"IF(INDIRECT(\"c\" & (VLOOKUP(Switch!$D$58,$F$2:$G$44,2,FALSE)+ROW()-2))=Switch!$D$58,INDIRECT(\"a\" & (VLOOKUP(Switch!$D$58,$F$2:$G$44,2,FALSE)+ROW()-2)),\"\")","v":{"$error":"#N/A"}},{"$f":"IF(INDIRECT(\"c\" & (VLOOKUP(Switch!$D$59,$F$2:$G$44,2,FALSE)+ROW()-2))=Switch!$D$59,INDIRECT(\"a\" & (VLOOKUP(Switch!$D$59,$F$2:$G$44,2,FALSE)+ROW()-2)),\"\")","v":{"$error":"#N/A"}},{"$f":"IF(INDIRECT(\"c\" & (VLOOKUP(Switch!$D$60,$F$2:$G$44,2,FALSE)+ROW()-2))=Switch!$D$60,INDIRECT(\"a\" & (VLOOKUP(Switch!$D$60,$F$2:$G$44,2,FALSE)+ROW()-2)),\"\")","v":{"$error":"#N/A"}},{"$f":"IF(INDIRECT(\"c\" & (VLOOKUP(Switch!$D$61,$F$2:$G$44,2,FALSE)+ROW()-2))=Switch!$D$61,INDIRECT(\"a\" & (VLOOKUP(Switch!$D$61,$F$2:$G$44,2,FALSE)+ROW()-2)),\"\")","v":{"$error":"#N/A"}},{"$f":"IF(INDIRECT(\"c\" & (VLOOKUP(Switch!$D$62,$F$2:$G$44,2,FALSE)+ROW()-2))=Switch!$D$62,INDIRECT(\"a\" & (VLOOKUP(Switch!$D$62,$F$2:$G$44,2,FALSE)+ROW()-2)),\"\")","v":{"$error":"#N/A"}},{"$f":"IF(INDIRECT(\"c\" & (VLOOKUP(Switch!$D$63,$F$2:$G$44,2,FALSE)+ROW()-2))=Switch!$D$63,INDIRECT(\"a\" & (VLOOKUP(Switch!$D$63,$F$2:$G$44,2,FALSE)+ROW()-2)),\"\")","v":{"$error":"#N/A"}},{"$f":"IF(INDIRECT(\"c\" & (VLOOKUP(Switch!$D$64,$F$2:$G$44,2,FALSE)+ROW()-2))=Switch!$D$64,INDIRECT(\"a\" & (VLOOKUP(Switch!$D$64,$F$2:$G$44,2,FALSE)+ROW()-2)),\"\")","v":{"$error":"#N/A"}},{"$f":"IF(INDIRECT(\"c\" & (VLOOKUP(Switch!$D$65,$F$2:$G$44,2,FALSE)+ROW()-2))=Switch!$D$65,INDIRECT(\"a\" & (VLOOKUP(Switch!$D$65,$F$2:$G$44,2,FALSE)+ROW()-2)),\"\")","v":{"$error":"#N/A"}},{"$f":"IF(INDIRECT(\"c\" & (VLOOKUP(Switch!$D$66,$F$2:$G$44,2,FALSE)+ROW()-2))=Switch!$D$66,INDIRECT(\"a\" & (VLOOKUP(Switch!$D$66,$F$2:$G$44,2,FALSE)+ROW()-2)),\"\")","v":{"$error":"#N/A"}}]
["ClucasGray Equilibrium Prescient Fund B2","CGPB2","Prescient Management Company Ltd",{"$f":"ROW()","v":446},null,null,{"$f":"VLOOKUP(F446,$C$2:$D$637,2,FALSE)","v":{"$error":"#N/A"}},{"$f":"IF(INDIRECT(\"c\" & (VLOOKUP(Switch!$D$26,$F$2:$G$44,2,FALSE)+ROW()-2))=Switch!$D$26,INDIRECT(\"a\" & (VLOOKUP(Switch!$D$26,$F$2:$G$44,2,FALSE)+ROW()-2)),\"\")","v":{"$error":"#N/A"}},{"$f":"IF(INDIRECT(\"c\" & (VLOOKUP(Switch!$D$27,$F$2:$G$44,2,FALSE)+ROW()-2))=Switch!$D$27,INDIRECT(\"a\" & (VLOOKUP(Switch!$D$27,$F$2:$G$44,2,FALSE)+ROW()-2)),\"\")","v":{"$error":"#N/A"}},{"$f":"IF(INDIRECT(\"c\" & (VLOOKUP(Switch!$D$28,$F$2:$G$44,2,FALSE)+ROW()-2))=Switch!$D$28,INDIRECT(\"a\" & (VLOOKUP(Switch!$D$28,$F$2:$G$44,2,FALSE)+ROW()-2)),\"\")","v":{"$error":"#N/A"}},{"$f":"IF(INDIRECT(\"c\" & (VLOOKUP(Switch!$D$29,$F$2:$G$44,2,FALSE)+ROW()-2))=Switch!$D$29,INDIRECT(\"a\" & (VLOOKUP(Switch!$D$29,$F$2:$G$44,2,FALSE)+ROW()-2)),\"\")","v":{"$error":"#N/A"}},{"$f":"IF(INDIRECT(\"c\" & (VLOOKUP(Switch!$D$30,$F$2:$G$44,2,FALSE)+ROW()-2))=Switch!$D$30,INDIRECT(\"a\" & (VLOOKUP(Switch!$D$30,$F$2:$G$44,2,FALSE)+ROW()-2)),\"\")","v":{"$error":"#N/A"}},{"$f":"IF(INDIRECT(\"c\" & (VLOOKUP(Switch!$D$31,$F$2:$G$44,2,FALSE)+ROW()-2))=Switch!$D$31,INDIRECT(\"a\" & (VLOOKUP(Switch!$D$31,$F$2:$G$44,2,FALSE)+ROW()-2)),\"\")","v":{"$error":"#N/A"}},{"$f":"IF(INDIRECT(\"c\" & (VLOOKUP(Switch!$D$32,$F$2:$G$44,2,FALSE)+ROW()-2))=Switch!$D$32,INDIRECT(\"a\" & (VLOOKUP(Switch!$D$32,$F$2:$G$44,2,FALSE)+ROW()-2)),\"\")","v":{"$error":"#N/A"}},{"$f":"IF(INDIRECT(\"c\" & (VLOOKUP(Switch!$D$33,$F$2:$G$44,2,FALSE)+ROW()-2))=Switch!$D$33,INDIRECT(\"a\" & (VLOOKUP(Switch!$D$33,$F$2:$G$44,2,FALSE)+ROW()-2)),\"\")","v":{"$error":"#N/A"}},{"$f":"IF(INDIRECT(\"c\" & (VLOOKUP(Switch!$D$34,$F$2:$G$44,2,FALSE)+ROW()-2))=Switch!$D$34,INDIRECT(\"a\" & (VLOOKUP(Switch!$D$34,$F$2:$G$44,2,FALSE)+ROW()-2)),\"\")","v":{"$error":"#N/A"}},{"$f":"IF(INDIRECT(\"c\" & (VLOOKUP(Switch!$D$35,$F$2:$G$44,2,FALSE)+ROW()-2))=Switch!$D$35,INDIRECT(\"a\" & (VLOOKUP(Switch!$D$35,$F$2:$G$44,2,FALSE)+ROW()-2)),\"\")","v":{"$error":"#N/A"}},{"$f":"IF(INDIRECT(\"c\" & (VLOOKUP(Switch!$D$36,$F$2:$G$44,2,FALSE)+ROW()-2))=Switch!$D$36,INDIRECT(\"a\" & (VLOOKUP(Switch!$D$36,$F$2:$G$44,2,FALSE)+ROW()-2)),\"\")","v":{"$error":"#N/A"}},{"$f":"IF(INDIRECT(\"c\" & (VLOOKUP(Switch!$D$37,$F$2:$G$44,2,FALSE)+ROW()-2))=Switch!$D$37,INDIRECT(\"a\" & (VLOOKUP(Switch!$D$37,$F$2:$G$44,2,FALSE)+ROW()-2)),\"\")","v":{"$error":"#N/A"}},{"$f":"IF(INDIRECT(\"c\" & (VLOOKUP(Switch!$D$38,$F$2:$G$44,2,FALSE)+ROW()-2))=Switch!$D$38,INDIRECT(\"a\" & (VLOOKUP(Switch!$D$38,$F$2:$G$44,2,FALSE)+ROW()-2)),\"\")","v":{"$error":"#N/A"}},{"$f":"IF(INDIRECT(\"c\" & (VLOOKUP(Switch!$D$39,$F$2:$G$44,2,FALSE)+ROW()-2))=Switch!$D$39,INDIRECT(\"a\" & (VLOOKUP(Switch!$D$39,$F$2:$G$44,2,FALSE)+ROW()-2)),\"\")","v":{"$error":"#N/A"}},{"$f":"IF(INDIRECT(\"c\" & (VLOOKUP(Switch!$D$40,$F$2:$G$44,2,FALSE)+ROW()-2))=Switch!$D$40,INDIRECT(\"a\" & (VLOOKUP(Switch!$D$40,$F$2:$G$44,2,FALSE)+ROW()-2)),\"\")","v":{"$error":"#N/A"}},{"$f":"IF(INDIRECT(\"c\" & (VLOOKUP(Switch!$D$52,$F$2:$G$44,2,FALSE)+ROW()-2))=Switch!$D$52,INDIRECT(\"a\" & (VLOOKUP(Switch!$D$52,$F$2:$G$44,2,FALSE)+ROW()-2)),\"\")","v":{"$error":"#N/A"}},{"$f":"IF(INDIRECT(\"c\" & (VLOOKUP(Switch!$D$53,$F$2:$G$44,2,FALSE)+ROW()-2))=Switch!$D$53,INDIRECT(\"a\" & (VLOOKUP(Switch!$D$53,$F$2:$G$44,2,FALSE)+ROW()-2)),\"\")","v":{"$error":"#N/A"}},{"$f":"IF(INDIRECT(\"c\" & (VLOOKUP(Switch!$D$54,$F$2:$G$44,2,FALSE)+ROW()-2))=Switch!$D$54,INDIRECT(\"a\" & (VLOOKUP(Switch!$D$54,$F$2:$G$44,2,FALSE)+ROW()-2)),\"\")","v":{"$error":"#N/A"}},{"$f":"IF(INDIRECT(\"c\" & (VLOOKUP(Switch!$D$55,$F$2:$G$44,2,FALSE)+ROW()-2))=Switch!$D$55,INDIRECT(\"a\" & (VLOOKUP(Switch!$D$55,$F$2:$G$44,2,FALSE)+ROW()-2)),\"\")","v":{"$error":"#N/A"}},{"$f":"IF(INDIRECT(\"c\" & (VLOOKUP(Switch!$D$56,$F$2:$G$44,2,FALSE)+ROW()-2))=Switch!$D$56,INDIRECT(\"a\" & (VLOOKUP(Switch!$D$56,$F$2:$G$44,2,FALSE)+ROW()-2)),\"\")","v":{"$error":"#N/A"}},{"$f":"IF(INDIRECT(\"c\" & (VLOOKUP(Switch!$D$57,$F$2:$G$44,2,FALSE)+ROW()-2))=Switch!$D$57,INDIRECT(\"a\" & (VLOOKUP(Switch!$D$57,$F$2:$G$44,2,FALSE)+ROW()-2)),\"\")","v":{"$error":"#N/A"}},{"$f":"IF(INDIRECT(\"c\" & (VLOOKUP(Switch!$D$58,$F$2:$G$44,2,FALSE)+ROW()-2))=Switch!$D$58,INDIRECT(\"a\" & (VLOOKUP(Switch!$D$58,$F$2:$G$44,2,FALSE)+ROW()-2)),\"\")","v":{"$error":"#N/A"}},{"$f":"IF(INDIRECT(\"c\" & (VLOOKUP(Switch!$D$59,$F$2:$G$44,2,FALSE)+ROW()-2))=Switch!$D$59,INDIRECT(\"a\" & (VLOOKUP(Switch!$D$59,$F$2:$G$44,2,FALSE)+ROW()-2)),\"\")","v":{"$error":"#N/A"}},{"$f":"IF(INDIRECT(\"c\" & (VLOOKUP(Switch!$D$60,$F$2:$G$44,2,FALSE)+ROW()-2))=Switch!$D$60,INDIRECT(\"a\" & (VLOOKUP(Switch!$D$60,$F$2:$G$44,2,FALSE)+ROW()-2)),\"\")","v":{"$error":"#N/A"}},{"$f":"IF(INDIRECT(\"c\" & (VLOOKUP(Switch!$D$61,$F$2:$G$44,2,FALSE)+ROW()-2))=Switch!$D$61,INDIRECT(\"a\" & (VLOOKUP(Switch!$D$61,$F$2:$G$44,2,FALSE)+ROW()-2)),\"\")","v":{"$error":"#N/A"}},{"$f":"IF(INDIRECT(\"c\" & (VLOOKUP(Switch!$D$62,$F$2:$G$44,2,FALSE)+ROW()-2))=Switch!$D$62,INDIRECT(\"a\" & (VLOOKUP(Switch!$D$62,$F$2:$G$44,2,FALSE)+ROW()-2)),\"\")","v":{"$error":"#N/A"}},{"$f":"IF(INDIRECT(\"c\" & (VLOOKUP(Switch!$D$63,$F$2:$G$44,2,FALSE)+ROW()-2))=Switch!$D$63,INDIRECT(\"a\" & (VLOOKUP(Switch!$D$63,$F$2:$G$44,2,FALSE)+ROW()-2)),\"\")","v":{"$error":"#N/A"}},{"$f":"IF(INDIRECT(\"c\" & (VLOOKUP(Switch!$D$64,$F$2:$G$44,2,FALSE)+ROW()-2))=Switch!$D$64,INDIRECT(\"a\" & (VLOOKUP(Switch!$D$64,$F$2:$G$44,2,FALSE)+ROW()-2)),\"\")","v":{"$error":"#N/A"}},{"$f":"IF(INDIRECT(\"c\" & (VLOOKUP(Switch!$D$65,$F$2:$G$44,2,FALSE)+ROW()-2))=Switch!$D$65,INDIRECT(\"a\" & (VLOOKUP(Switch!$D$65,$F$2:$G$44,2,FALSE)+ROW()-2)),\"\")","v":{"$error":"#N/A"}},{"$f":"IF(INDIRECT(\"c\" & (VLOOKUP(Switch!$D$66,$F$2:$G$44,2,FALSE)+ROW()-2))=Switch!$D$66,INDIRECT(\"a\" & (VLOOKUP(Switch!$D$66,$F$2:$G$44,2,FALSE)+ROW()-2)),\"\")","v":{"$error":"#N/A"}}]
["ClucasGray Equity Prescient Fund","CEFA1","Prescient Management Company Ltd",{"$f":"ROW()","v":447},null,null,{"$f":"VLOOKUP(F447,$C$2:$D$637,2,FALSE)","v":{"$error":"#N/A"}},{"$f":"IF(INDIRECT(\"c\" & (VLOOKUP(Switch!$D$26,$F$2:$G$44,2,FALSE)+ROW()-2))=Switch!$D$26,INDIRECT(\"a\" & (VLOOKUP(Switch!$D$26,$F$2:$G$44,2,FALSE)+ROW()-2)),\"\")","v":{"$error":"#N/A"}},{"$f":"IF(INDIRECT(\"c\" & (VLOOKUP(Switch!$D$27,$F$2:$G$44,2,FALSE)+ROW()-2))=Switch!$D$27,INDIRECT(\"a\" & (VLOOKUP(Switch!$D$27,$F$2:$G$44,2,FALSE)+ROW()-2)),\"\")","v":{"$error":"#N/A"}},{"$f":"IF(INDIRECT(\"c\" & (VLOOKUP(Switch!$D$28,$F$2:$G$44,2,FALSE)+ROW()-2))=Switch!$D$28,INDIRECT(\"a\" & (VLOOKUP(Switch!$D$28,$F$2:$G$44,2,FALSE)+ROW()-2)),\"\")","v":{"$error":"#N/A"}},{"$f":"IF(INDIRECT(\"c\" & (VLOOKUP(Switch!$D$29,$F$2:$G$44,2,FALSE)+ROW()-2))=Switch!$D$29,INDIRECT(\"a\" & (VLOOKUP(Switch!$D$29,$F$2:$G$44,2,FALSE)+ROW()-2)),\"\")","v":{"$error":"#N/A"}},{"$f":"IF(INDIRECT(\"c\" & (VLOOKUP(Switch!$D$30,$F$2:$G$44,2,FALSE)+ROW()-2))=Switch!$D$30,INDIRECT(\"a\" & (VLOOKUP(Switch!$D$30,$F$2:$G$44,2,FALSE)+ROW()-2)),\"\")","v":{"$error":"#N/A"}},{"$f":"IF(INDIRECT(\"c\" & (VLOOKUP(Switch!$D$31,$F$2:$G$44,2,FALSE)+ROW()-2))=Switch!$D$31,INDIRECT(\"a\" & (VLOOKUP(Switch!$D$31,$F$2:$G$44,2,FALSE)+ROW()-2)),\"\")","v":{"$error":"#N/A"}},{"$f":"IF(INDIRECT(\"c\" & (VLOOKUP(Switch!$D$32,$F$2:$G$44,2,FALSE)+ROW()-2))=Switch!$D$32,INDIRECT(\"a\" & (VLOOKUP(Switch!$D$32,$F$2:$G$44,2,FALSE)+ROW()-2)),\"\")","v":{"$error":"#N/A"}},{"$f":"IF(INDIRECT(\"c\" & (VLOOKUP(Switch!$D$33,$F$2:$G$44,2,FALSE)+ROW()-2))=Switch!$D$33,INDIRECT(\"a\" & (VLOOKUP(Switch!$D$33,$F$2:$G$44,2,FALSE)+ROW()-2)),\"\")","v":{"$error":"#N/A"}},{"$f":"IF(INDIRECT(\"c\" & (VLOOKUP(Switch!$D$34,$F$2:$G$44,2,FALSE)+ROW()-2))=Switch!$D$34,INDIRECT(\"a\" & (VLOOKUP(Switch!$D$34,$F$2:$G$44,2,FALSE)+ROW()-2)),\"\")","v":{"$error":"#N/A"}},{"$f":"IF(INDIRECT(\"c\" & (VLOOKUP(Switch!$D$35,$F$2:$G$44,2,FALSE)+ROW()-2))=Switch!$D$35,INDIRECT(\"a\" & (VLOOKUP(Switch!$D$35,$F$2:$G$44,2,FALSE)+ROW()-2)),\"\")","v":{"$error":"#N/A"}},{"$f":"IF(INDIRECT(\"c\" & (VLOOKUP(Switch!$D$36,$F$2:$G$44,2,FALSE)+ROW()-2))=Switch!$D$36,INDIRECT(\"a\" & (VLOOKUP(Switch!$D$36,$F$2:$G$44,2,FALSE)+ROW()-2)),\"\")","v":{"$error":"#N/A"}},{"$f":"IF(INDIRECT(\"c\" & (VLOOKUP(Switch!$D$37,$F$2:$G$44,2,FALSE)+ROW()-2))=Switch!$D$37,INDIRECT(\"a\" & (VLOOKUP(Switch!$D$37,$F$2:$G$44,2,FALSE)+ROW()-2)),\"\")","v":{"$error":"#N/A"}},{"$f":"IF(INDIRECT(\"c\" & (VLOOKUP(Switch!$D$38,$F$2:$G$44,2,FALSE)+ROW()-2))=Switch!$D$38,INDIRECT(\"a\" & (VLOOKUP(Switch!$D$38,$F$2:$G$44,2,FALSE)+ROW()-2)),\"\")","v":{"$error":"#N/A"}},{"$f":"IF(INDIRECT(\"c\" & (VLOOKUP(Switch!$D$39,$F$2:$G$44,2,FALSE)+ROW()-2))=Switch!$D$39,INDIRECT(\"a\" & (VLOOKUP(Switch!$D$39,$F$2:$G$44,2,FALSE)+ROW()-2)),\"\")","v":{"$error":"#N/A"}},{"$f":"IF(INDIRECT(\"c\" & (VLOOKUP(Switch!$D$40,$F$2:$G$44,2,FALSE)+ROW()-2))=Switch!$D$40,INDIRECT(\"a\" & (VLOOKUP(Switch!$D$40,$F$2:$G$44,2,FALSE)+ROW()-2)),\"\")","v":{"$error":"#N/A"}},{"$f":"IF(INDIRECT(\"c\" & (VLOOKUP(Switch!$D$52,$F$2:$G$44,2,FALSE)+ROW()-2))=Switch!$D$52,INDIRECT(\"a\" & (VLOOKUP(Switch!$D$52,$F$2:$G$44,2,FALSE)+ROW()-2)),\"\")","v":{"$error":"#N/A"}},{"$f":"IF(INDIRECT(\"c\" & (VLOOKUP(Switch!$D$53,$F$2:$G$44,2,FALSE)+ROW()-2))=Switch!$D$53,INDIRECT(\"a\" & (VLOOKUP(Switch!$D$53,$F$2:$G$44,2,FALSE)+ROW()-2)),\"\")","v":{"$error":"#N/A"}},{"$f":"IF(INDIRECT(\"c\" & (VLOOKUP(Switch!$D$54,$F$2:$G$44,2,FALSE)+ROW()-2))=Switch!$D$54,INDIRECT(\"a\" & (VLOOKUP(Switch!$D$54,$F$2:$G$44,2,FALSE)+ROW()-2)),\"\")","v":{"$error":"#N/A"}},{"$f":"IF(INDIRECT(\"c\" & (VLOOKUP(Switch!$D$55,$F$2:$G$44,2,FALSE)+ROW()-2))=Switch!$D$55,INDIRECT(\"a\" & (VLOOKUP(Switch!$D$55,$F$2:$G$44,2,FALSE)+ROW()-2)),\"\")","v":{"$error":"#N/A"}},{"$f":"IF(INDIRECT(\"c\" & (VLOOKUP(Switch!$D$56,$F$2:$G$44,2,FALSE)+ROW()-2))=Switch!$D$56,INDIRECT(\"a\" & (VLOOKUP(Switch!$D$56,$F$2:$G$44,2,FALSE)+ROW()-2)),\"\")","v":{"$error":"#N/A"}},{"$f":"IF(INDIRECT(\"c\" & (VLOOKUP(Switch!$D$57,$F$2:$G$44,2,FALSE)+ROW()-2))=Switch!$D$57,INDIRECT(\"a\" & (VLOOKUP(Switch!$D$57,$F$2:$G$44,2,FALSE)+ROW()-2)),\"\")","v":{"$error":"#N/A"}},{"$f":"IF(INDIRECT(\"c\" & (VLOOKUP(Switch!$D$58,$F$2:$G$44,2,FALSE)+ROW()-2))=Switch!$D$58,INDIRECT(\"a\" & (VLOOKUP(Switch!$D$58,$F$2:$G$44,2,FALSE)+ROW()-2)),\"\")","v":{"$error":"#N/A"}},{"$f":"IF(INDIRECT(\"c\" & (VLOOKUP(Switch!$D$59,$F$2:$G$44,2,FALSE)+ROW()-2))=Switch!$D$59,INDIRECT(\"a\" & (VLOOKUP(Switch!$D$59,$F$2:$G$44,2,FALSE)+ROW()-2)),\"\")","v":{"$error":"#N/A"}},{"$f":"IF(INDIRECT(\"c\" & (VLOOKUP(Switch!$D$60,$F$2:$G$44,2,FALSE)+ROW()-2))=Switch!$D$60,INDIRECT(\"a\" & (VLOOKUP(Switch!$D$60,$F$2:$G$44,2,FALSE)+ROW()-2)),\"\")","v":{"$error":"#N/A"}},{"$f":"IF(INDIRECT(\"c\" & (VLOOKUP(Switch!$D$61,$F$2:$G$44,2,FALSE)+ROW()-2))=Switch!$D$61,INDIRECT(\"a\" & (VLOOKUP(Switch!$D$61,$F$2:$G$44,2,FALSE)+ROW()-2)),\"\")","v":{"$error":"#N/A"}},{"$f":"IF(INDIRECT(\"c\" & (VLOOKUP(Switch!$D$62,$F$2:$G$44,2,FALSE)+ROW()-2))=Switch!$D$62,INDIRECT(\"a\" & (VLOOKUP(Switch!$D$62,$F$2:$G$44,2,FALSE)+ROW()-2)),\"\")","v":{"$error":"#N/A"}},{"$f":"IF(INDIRECT(\"c\" & (VLOOKUP(Switch!$D$63,$F$2:$G$44,2,FALSE)+ROW()-2))=Switch!$D$63,INDIRECT(\"a\" & (VLOOKUP(Switch!$D$63,$F$2:$G$44,2,FALSE)+ROW()-2)),\"\")","v":{"$error":"#N/A"}},{"$f":"IF(INDIRECT(\"c\" & (VLOOKUP(Switch!$D$64,$F$2:$G$44,2,FALSE)+ROW()-2))=Switch!$D$64,INDIRECT(\"a\" & (VLOOKUP(Switch!$D$64,$F$2:$G$44,2,FALSE)+ROW()-2)),\"\")","v":{"$error":"#N/A"}},{"$f":"IF(INDIRECT(\"c\" & (VLOOKUP(Switch!$D$65,$F$2:$G$44,2,FALSE)+ROW()-2))=Switch!$D$65,INDIRECT(\"a\" & (VLOOKUP(Switch!$D$65,$F$2:$G$44,2,FALSE)+ROW()-2)),\"\")","v":{"$error":"#N/A"}},{"$f":"IF(INDIRECT(\"c\" & (VLOOKUP(Switch!$D$66,$F$2:$G$44,2,FALSE)+ROW()-2))=Switch!$D$66,INDIRECT(\"a\" & (VLOOKUP(Switch!$D$66,$F$2:$G$44,2,FALSE)+ROW()-2)),\"\")","v":{"$error":"#N/A"}}]
["ClucasGray Future Titans Prescient Fund A3","CGFT","Prescient Management Company Ltd",{"$f":"ROW()","v":448},null,null,{"$f":"VLOOKUP(F448,$C$2:$D$637,2,FALSE)","v":{"$error":"#N/A"}},{"$f":"IF(INDIRECT(\"c\" & (VLOOKUP(Switch!$D$26,$F$2:$G$44,2,FALSE)+ROW()-2))=Switch!$D$26,INDIRECT(\"a\" & (VLOOKUP(Switch!$D$26,$F$2:$G$44,2,FALSE)+ROW()-2)),\"\")","v":{"$error":"#N/A"}},{"$f":"IF(INDIRECT(\"c\" & (VLOOKUP(Switch!$D$27,$F$2:$G$44,2,FALSE)+ROW()-2))=Switch!$D$27,INDIRECT(\"a\" & (VLOOKUP(Switch!$D$27,$F$2:$G$44,2,FALSE)+ROW()-2)),\"\")","v":{"$error":"#N/A"}},{"$f":"IF(INDIRECT(\"c\" & (VLOOKUP(Switch!$D$28,$F$2:$G$44,2,FALSE)+ROW()-2))=Switch!$D$28,INDIRECT(\"a\" & (VLOOKUP(Switch!$D$28,$F$2:$G$44,2,FALSE)+ROW()-2)),\"\")","v":{"$error":"#N/A"}},{"$f":"IF(INDIRECT(\"c\" & (VLOOKUP(Switch!$D$29,$F$2:$G$44,2,FALSE)+ROW()-2))=Switch!$D$29,INDIRECT(\"a\" & (VLOOKUP(Switch!$D$29,$F$2:$G$44,2,FALSE)+ROW()-2)),\"\")","v":{"$error":"#N/A"}},{"$f":"IF(INDIRECT(\"c\" & (VLOOKUP(Switch!$D$30,$F$2:$G$44,2,FALSE)+ROW()-2))=Switch!$D$30,INDIRECT(\"a\" & (VLOOKUP(Switch!$D$30,$F$2:$G$44,2,FALSE)+ROW()-2)),\"\")","v":{"$error":"#N/A"}},{"$f":"IF(INDIRECT(\"c\" & (VLOOKUP(Switch!$D$31,$F$2:$G$44,2,FALSE)+ROW()-2))=Switch!$D$31,INDIRECT(\"a\" & (VLOOKUP(Switch!$D$31,$F$2:$G$44,2,FALSE)+ROW()-2)),\"\")","v":{"$error":"#N/A"}},{"$f":"IF(INDIRECT(\"c\" & (VLOOKUP(Switch!$D$32,$F$2:$G$44,2,FALSE)+ROW()-2))=Switch!$D$32,INDIRECT(\"a\" & (VLOOKUP(Switch!$D$32,$F$2:$G$44,2,FALSE)+ROW()-2)),\"\")","v":{"$error":"#N/A"}},{"$f":"IF(INDIRECT(\"c\" & (VLOOKUP(Switch!$D$33,$F$2:$G$44,2,FALSE)+ROW()-2))=Switch!$D$33,INDIRECT(\"a\" & (VLOOKUP(Switch!$D$33,$F$2:$G$44,2,FALSE)+ROW()-2)),\"\")","v":{"$error":"#N/A"}},{"$f":"IF(INDIRECT(\"c\" & (VLOOKUP(Switch!$D$34,$F$2:$G$44,2,FALSE)+ROW()-2))=Switch!$D$34,INDIRECT(\"a\" & (VLOOKUP(Switch!$D$34,$F$2:$G$44,2,FALSE)+ROW()-2)),\"\")","v":{"$error":"#N/A"}},{"$f":"IF(INDIRECT(\"c\" & (VLOOKUP(Switch!$D$35,$F$2:$G$44,2,FALSE)+ROW()-2))=Switch!$D$35,INDIRECT(\"a\" & (VLOOKUP(Switch!$D$35,$F$2:$G$44,2,FALSE)+ROW()-2)),\"\")","v":{"$error":"#N/A"}},{"$f":"IF(INDIRECT(\"c\" & (VLOOKUP(Switch!$D$36,$F$2:$G$44,2,FALSE)+ROW()-2))=Switch!$D$36,INDIRECT(\"a\" & (VLOOKUP(Switch!$D$36,$F$2:$G$44,2,FALSE)+ROW()-2)),\"\")","v":{"$error":"#N/A"}},{"$f":"IF(INDIRECT(\"c\" & (VLOOKUP(Switch!$D$37,$F$2:$G$44,2,FALSE)+ROW()-2))=Switch!$D$37,INDIRECT(\"a\" & (VLOOKUP(Switch!$D$37,$F$2:$G$44,2,FALSE)+ROW()-2)),\"\")","v":{"$error":"#N/A"}},{"$f":"IF(INDIRECT(\"c\" & (VLOOKUP(Switch!$D$38,$F$2:$G$44,2,FALSE)+ROW()-2))=Switch!$D$38,INDIRECT(\"a\" & (VLOOKUP(Switch!$D$38,$F$2:$G$44,2,FALSE)+ROW()-2)),\"\")","v":{"$error":"#N/A"}},{"$f":"IF(INDIRECT(\"c\" & (VLOOKUP(Switch!$D$39,$F$2:$G$44,2,FALSE)+ROW()-2))=Switch!$D$39,INDIRECT(\"a\" & (VLOOKUP(Switch!$D$39,$F$2:$G$44,2,FALSE)+ROW()-2)),\"\")","v":{"$error":"#N/A"}},{"$f":"IF(INDIRECT(\"c\" & (VLOOKUP(Switch!$D$40,$F$2:$G$44,2,FALSE)+ROW()-2))=Switch!$D$40,INDIRECT(\"a\" & (VLOOKUP(Switch!$D$40,$F$2:$G$44,2,FALSE)+ROW()-2)),\"\")","v":{"$error":"#N/A"}},{"$f":"IF(INDIRECT(\"c\" & (VLOOKUP(Switch!$D$52,$F$2:$G$44,2,FALSE)+ROW()-2))=Switch!$D$52,INDIRECT(\"a\" & (VLOOKUP(Switch!$D$52,$F$2:$G$44,2,FALSE)+ROW()-2)),\"\")","v":{"$error":"#N/A"}},{"$f":"IF(INDIRECT(\"c\" & (VLOOKUP(Switch!$D$53,$F$2:$G$44,2,FALSE)+ROW()-2))=Switch!$D$53,INDIRECT(\"a\" & (VLOOKUP(Switch!$D$53,$F$2:$G$44,2,FALSE)+ROW()-2)),\"\")","v":{"$error":"#N/A"}},{"$f":"IF(INDIRECT(\"c\" & (VLOOKUP(Switch!$D$54,$F$2:$G$44,2,FALSE)+ROW()-2))=Switch!$D$54,INDIRECT(\"a\" & (VLOOKUP(Switch!$D$54,$F$2:$G$44,2,FALSE)+ROW()-2)),\"\")","v":{"$error":"#N/A"}},{"$f":"IF(INDIRECT(\"c\" & (VLOOKUP(Switch!$D$55,$F$2:$G$44,2,FALSE)+ROW()-2))=Switch!$D$55,INDIRECT(\"a\" & (VLOOKUP(Switch!$D$55,$F$2:$G$44,2,FALSE)+ROW()-2)),\"\")","v":{"$error":"#N/A"}},{"$f":"IF(INDIRECT(\"c\" & (VLOOKUP(Switch!$D$56,$F$2:$G$44,2,FALSE)+ROW()-2))=Switch!$D$56,INDIRECT(\"a\" & (VLOOKUP(Switch!$D$56,$F$2:$G$44,2,FALSE)+ROW()-2)),\"\")","v":{"$error":"#N/A"}},{"$f":"IF(INDIRECT(\"c\" & (VLOOKUP(Switch!$D$57,$F$2:$G$44,2,FALSE)+ROW()-2))=Switch!$D$57,INDIRECT(\"a\" & (VLOOKUP(Switch!$D$57,$F$2:$G$44,2,FALSE)+ROW()-2)),\"\")","v":{"$error":"#N/A"}},{"$f":"IF(INDIRECT(\"c\" & (VLOOKUP(Switch!$D$58,$F$2:$G$44,2,FALSE)+ROW()-2))=Switch!$D$58,INDIRECT(\"a\" & (VLOOKUP(Switch!$D$58,$F$2:$G$44,2,FALSE)+ROW()-2)),\"\")","v":{"$error":"#N/A"}},{"$f":"IF(INDIRECT(\"c\" & (VLOOKUP(Switch!$D$59,$F$2:$G$44,2,FALSE)+ROW()-2))=Switch!$D$59,INDIRECT(\"a\" & (VLOOKUP(Switch!$D$59,$F$2:$G$44,2,FALSE)+ROW()-2)),\"\")","v":{"$error":"#N/A"}},{"$f":"IF(INDIRECT(\"c\" & (VLOOKUP(Switch!$D$60,$F$2:$G$44,2,FALSE)+ROW()-2))=Switch!$D$60,INDIRECT(\"a\" & (VLOOKUP(Switch!$D$60,$F$2:$G$44,2,FALSE)+ROW()-2)),\"\")","v":{"$error":"#N/A"}},{"$f":"IF(INDIRECT(\"c\" & (VLOOKUP(Switch!$D$61,$F$2:$G$44,2,FALSE)+ROW()-2))=Switch!$D$61,INDIRECT(\"a\" & (VLOOKUP(Switch!$D$61,$F$2:$G$44,2,FALSE)+ROW()-2)),\"\")","v":{"$error":"#N/A"}},{"$f":"IF(INDIRECT(\"c\" & (VLOOKUP(Switch!$D$62,$F$2:$G$44,2,FALSE)+ROW()-2))=Switch!$D$62,INDIRECT(\"a\" & (VLOOKUP(Switch!$D$62,$F$2:$G$44,2,FALSE)+ROW()-2)),\"\")","v":{"$error":"#N/A"}},{"$f":"IF(INDIRECT(\"c\" & (VLOOKUP(Switch!$D$63,$F$2:$G$44,2,FALSE)+ROW()-2))=Switch!$D$63,INDIRECT(\"a\" & (VLOOKUP(Switch!$D$63,$F$2:$G$44,2,FALSE)+ROW()-2)),\"\")","v":{"$error":"#N/A"}},{"$f":"IF(INDIRECT(\"c\" & (VLOOKUP(Switch!$D$64,$F$2:$G$44,2,FALSE)+ROW()-2))=Switch!$D$64,INDIRECT(\"a\" & (VLOOKUP(Switch!$D$64,$F$2:$G$44,2,FALSE)+ROW()-2)),\"\")","v":{"$error":"#N/A"}},{"$f":"IF(INDIRECT(\"c\" & (VLOOKUP(Switch!$D$65,$F$2:$G$44,2,FALSE)+ROW()-2))=Switch!$D$65,INDIRECT(\"a\" & (VLOOKUP(Switch!$D$65,$F$2:$G$44,2,FALSE)+ROW()-2)),\"\")","v":{"$error":"#N/A"}},{"$f":"IF(INDIRECT(\"c\" & (VLOOKUP(Switch!$D$66,$F$2:$G$44,2,FALSE)+ROW()-2))=Switch!$D$66,INDIRECT(\"a\" & (VLOOKUP(Switch!$D$66,$F$2:$G$44,2,FALSE)+ROW()-2)),\"\")","v":{"$error":"#N/A"}}]
["Fairtree Equity Prescient Fund A2","FEPA2","Prescient Management Company Ltd",{"$f":"ROW()","v":449},null,null,{"$f":"VLOOKUP(F449,$C$2:$D$637,2,FALSE)","v":{"$error":"#N/A"}},{"$f":"IF(INDIRECT(\"c\" & (VLOOKUP(Switch!$D$26,$F$2:$G$44,2,FALSE)+ROW()-2))=Switch!$D$26,INDIRECT(\"a\" & (VLOOKUP(Switch!$D$26,$F$2:$G$44,2,FALSE)+ROW()-2)),\"\")","v":{"$error":"#N/A"}},{"$f":"IF(INDIRECT(\"c\" & (VLOOKUP(Switch!$D$27,$F$2:$G$44,2,FALSE)+ROW()-2))=Switch!$D$27,INDIRECT(\"a\" & (VLOOKUP(Switch!$D$27,$F$2:$G$44,2,FALSE)+ROW()-2)),\"\")","v":{"$error":"#N/A"}},{"$f":"IF(INDIRECT(\"c\" & (VLOOKUP(Switch!$D$28,$F$2:$G$44,2,FALSE)+ROW()-2))=Switch!$D$28,INDIRECT(\"a\" & (VLOOKUP(Switch!$D$28,$F$2:$G$44,2,FALSE)+ROW()-2)),\"\")","v":{"$error":"#N/A"}},{"$f":"IF(INDIRECT(\"c\" & (VLOOKUP(Switch!$D$29,$F$2:$G$44,2,FALSE)+ROW()-2))=Switch!$D$29,INDIRECT(\"a\" & (VLOOKUP(Switch!$D$29,$F$2:$G$44,2,FALSE)+ROW()-2)),\"\")","v":{"$error":"#N/A"}},{"$f":"IF(INDIRECT(\"c\" & (VLOOKUP(Switch!$D$30,$F$2:$G$44,2,FALSE)+ROW()-2))=Switch!$D$30,INDIRECT(\"a\" & (VLOOKUP(Switch!$D$30,$F$2:$G$44,2,FALSE)+ROW()-2)),\"\")","v":{"$error":"#N/A"}},{"$f":"IF(INDIRECT(\"c\" & (VLOOKUP(Switch!$D$31,$F$2:$G$44,2,FALSE)+ROW()-2))=Switch!$D$31,INDIRECT(\"a\" & (VLOOKUP(Switch!$D$31,$F$2:$G$44,2,FALSE)+ROW()-2)),\"\")","v":{"$error":"#N/A"}},{"$f":"IF(INDIRECT(\"c\" & (VLOOKUP(Switch!$D$32,$F$2:$G$44,2,FALSE)+ROW()-2))=Switch!$D$32,INDIRECT(\"a\" & (VLOOKUP(Switch!$D$32,$F$2:$G$44,2,FALSE)+ROW()-2)),\"\")","v":{"$error":"#N/A"}},{"$f":"IF(INDIRECT(\"c\" & (VLOOKUP(Switch!$D$33,$F$2:$G$44,2,FALSE)+ROW()-2))=Switch!$D$33,INDIRECT(\"a\" & (VLOOKUP(Switch!$D$33,$F$2:$G$44,2,FALSE)+ROW()-2)),\"\")","v":{"$error":"#N/A"}},{"$f":"IF(INDIRECT(\"c\" & (VLOOKUP(Switch!$D$34,$F$2:$G$44,2,FALSE)+ROW()-2))=Switch!$D$34,INDIRECT(\"a\" & (VLOOKUP(Switch!$D$34,$F$2:$G$44,2,FALSE)+ROW()-2)),\"\")","v":{"$error":"#N/A"}},{"$f":"IF(INDIRECT(\"c\" & (VLOOKUP(Switch!$D$35,$F$2:$G$44,2,FALSE)+ROW()-2))=Switch!$D$35,INDIRECT(\"a\" & (VLOOKUP(Switch!$D$35,$F$2:$G$44,2,FALSE)+ROW()-2)),\"\")","v":{"$error":"#N/A"}},{"$f":"IF(INDIRECT(\"c\" & (VLOOKUP(Switch!$D$36,$F$2:$G$44,2,FALSE)+ROW()-2))=Switch!$D$36,INDIRECT(\"a\" & (VLOOKUP(Switch!$D$36,$F$2:$G$44,2,FALSE)+ROW()-2)),\"\")","v":{"$error":"#N/A"}},{"$f":"IF(INDIRECT(\"c\" & (VLOOKUP(Switch!$D$37,$F$2:$G$44,2,FALSE)+ROW()-2))=Switch!$D$37,INDIRECT(\"a\" & (VLOOKUP(Switch!$D$37,$F$2:$G$44,2,FALSE)+ROW()-2)),\"\")","v":{"$error":"#N/A"}},{"$f":"IF(INDIRECT(\"c\" & (VLOOKUP(Switch!$D$38,$F$2:$G$44,2,FALSE)+ROW()-2))=Switch!$D$38,INDIRECT(\"a\" & (VLOOKUP(Switch!$D$38,$F$2:$G$44,2,FALSE)+ROW()-2)),\"\")","v":{"$error":"#N/A"}},{"$f":"IF(INDIRECT(\"c\" & (VLOOKUP(Switch!$D$39,$F$2:$G$44,2,FALSE)+ROW()-2))=Switch!$D$39,INDIRECT(\"a\" & (VLOOKUP(Switch!$D$39,$F$2:$G$44,2,FALSE)+ROW()-2)),\"\")","v":{"$error":"#N/A"}},{"$f":"IF(INDIRECT(\"c\" & (VLOOKUP(Switch!$D$40,$F$2:$G$44,2,FALSE)+ROW()-2))=Switch!$D$40,INDIRECT(\"a\" & (VLOOKUP(Switch!$D$40,$F$2:$G$44,2,FALSE)+ROW()-2)),\"\")","v":{"$error":"#N/A"}},{"$f":"IF(INDIRECT(\"c\" & (VLOOKUP(Switch!$D$52,$F$2:$G$44,2,FALSE)+ROW()-2))=Switch!$D$52,INDIRECT(\"a\" & (VLOOKUP(Switch!$D$52,$F$2:$G$44,2,FALSE)+ROW()-2)),\"\")","v":{"$error":"#N/A"}},{"$f":"IF(INDIRECT(\"c\" & (VLOOKUP(Switch!$D$53,$F$2:$G$44,2,FALSE)+ROW()-2))=Switch!$D$53,INDIRECT(\"a\" & (VLOOKUP(Switch!$D$53,$F$2:$G$44,2,FALSE)+ROW()-2)),\"\")","v":{"$error":"#N/A"}},{"$f":"IF(INDIRECT(\"c\" & (VLOOKUP(Switch!$D$54,$F$2:$G$44,2,FALSE)+ROW()-2))=Switch!$D$54,INDIRECT(\"a\" & (VLOOKUP(Switch!$D$54,$F$2:$G$44,2,FALSE)+ROW()-2)),\"\")","v":{"$error":"#N/A"}},{"$f":"IF(INDIRECT(\"c\" & (VLOOKUP(Switch!$D$55,$F$2:$G$44,2,FALSE)+ROW()-2))=Switch!$D$55,INDIRECT(\"a\" & (VLOOKUP(Switch!$D$55,$F$2:$G$44,2,FALSE)+ROW()-2)),\"\")","v":{"$error":"#N/A"}},{"$f":"IF(INDIRECT(\"c\" & (VLOOKUP(Switch!$D$56,$F$2:$G$44,2,FALSE)+ROW()-2))=Switch!$D$56,INDIRECT(\"a\" & (VLOOKUP(Switch!$D$56,$F$2:$G$44,2,FALSE)+ROW()-2)),\"\")","v":{"$error":"#N/A"}},{"$f":"IF(INDIRECT(\"c\" & (VLOOKUP(Switch!$D$57,$F$2:$G$44,2,FALSE)+ROW()-2))=Switch!$D$57,INDIRECT(\"a\" & (VLOOKUP(Switch!$D$57,$F$2:$G$44,2,FALSE)+ROW()-2)),\"\")","v":{"$error":"#N/A"}},{"$f":"IF(INDIRECT(\"c\" & (VLOOKUP(Switch!$D$58,$F$2:$G$44,2,FALSE)+ROW()-2))=Switch!$D$58,INDIRECT(\"a\" & (VLOOKUP(Switch!$D$58,$F$2:$G$44,2,FALSE)+ROW()-2)),\"\")","v":{"$error":"#N/A"}},{"$f":"IF(INDIRECT(\"c\" & (VLOOKUP(Switch!$D$59,$F$2:$G$44,2,FALSE)+ROW()-2))=Switch!$D$59,INDIRECT(\"a\" & (VLOOKUP(Switch!$D$59,$F$2:$G$44,2,FALSE)+ROW()-2)),\"\")","v":{"$error":"#N/A"}},{"$f":"IF(INDIRECT(\"c\" & (VLOOKUP(Switch!$D$60,$F$2:$G$44,2,FALSE)+ROW()-2))=Switch!$D$60,INDIRECT(\"a\" & (VLOOKUP(Switch!$D$60,$F$2:$G$44,2,FALSE)+ROW()-2)),\"\")","v":{"$error":"#N/A"}},{"$f":"IF(INDIRECT(\"c\" & (VLOOKUP(Switch!$D$61,$F$2:$G$44,2,FALSE)+ROW()-2))=Switch!$D$61,INDIRECT(\"a\" & (VLOOKUP(Switch!$D$61,$F$2:$G$44,2,FALSE)+ROW()-2)),\"\")","v":{"$error":"#N/A"}},{"$f":"IF(INDIRECT(\"c\" & (VLOOKUP(Switch!$D$62,$F$2:$G$44,2,FALSE)+ROW()-2))=Switch!$D$62,INDIRECT(\"a\" & (VLOOKUP(Switch!$D$62,$F$2:$G$44,2,FALSE)+ROW()-2)),\"\")","v":{"$error":"#N/A"}},{"$f":"IF(INDIRECT(\"c\" & (VLOOKUP(Switch!$D$63,$F$2:$G$44,2,FALSE)+ROW()-2))=Switch!$D$63,INDIRECT(\"a\" & (VLOOKUP(Switch!$D$63,$F$2:$G$44,2,FALSE)+ROW()-2)),\"\")","v":{"$error":"#N/A"}},{"$f":"IF(INDIRECT(\"c\" & (VLOOKUP(Switch!$D$64,$F$2:$G$44,2,FALSE)+ROW()-2))=Switch!$D$64,INDIRECT(\"a\" & (VLOOKUP(Switch!$D$64,$F$2:$G$44,2,FALSE)+ROW()-2)),\"\")","v":{"$error":"#N/A"}},{"$f":"IF(INDIRECT(\"c\" & (VLOOKUP(Switch!$D$65,$F$2:$G$44,2,FALSE)+ROW()-2))=Switch!$D$65,INDIRECT(\"a\" & (VLOOKUP(Switch!$D$65,$F$2:$G$44,2,FALSE)+ROW()-2)),\"\")","v":{"$error":"#N/A"}},{"$f":"IF(INDIRECT(\"c\" & (VLOOKUP(Switch!$D$66,$F$2:$G$44,2,FALSE)+ROW()-2))=Switch!$D$66,INDIRECT(\"a\" & (VLOOKUP(Switch!$D$66,$F$2:$G$44,2,FALSE)+ROW()-2)),\"\")","v":{"$error":"#N/A"}}]
["Fairtree Flexible Income Plus Prescient Fund A1","MIPCA","Prescient Management Company Ltd",{"$f":"ROW()","v":450},null,null,{"$f":"VLOOKUP(F450,$C$2:$D$637,2,FALSE)","v":{"$error":"#N/A"}},{"$f":"IF(INDIRECT(\"c\" & (VLOOKUP(Switch!$D$26,$F$2:$G$44,2,FALSE)+ROW()-2))=Switch!$D$26,INDIRECT(\"a\" & (VLOOKUP(Switch!$D$26,$F$2:$G$44,2,FALSE)+ROW()-2)),\"\")","v":{"$error":"#N/A"}},{"$f":"IF(INDIRECT(\"c\" & (VLOOKUP(Switch!$D$27,$F$2:$G$44,2,FALSE)+ROW()-2))=Switch!$D$27,INDIRECT(\"a\" & (VLOOKUP(Switch!$D$27,$F$2:$G$44,2,FALSE)+ROW()-2)),\"\")","v":{"$error":"#N/A"}},{"$f":"IF(INDIRECT(\"c\" & (VLOOKUP(Switch!$D$28,$F$2:$G$44,2,FALSE)+ROW()-2))=Switch!$D$28,INDIRECT(\"a\" & (VLOOKUP(Switch!$D$28,$F$2:$G$44,2,FALSE)+ROW()-2)),\"\")","v":{"$error":"#N/A"}},{"$f":"IF(INDIRECT(\"c\" & (VLOOKUP(Switch!$D$29,$F$2:$G$44,2,FALSE)+ROW()-2))=Switch!$D$29,INDIRECT(\"a\" & (VLOOKUP(Switch!$D$29,$F$2:$G$44,2,FALSE)+ROW()-2)),\"\")","v":{"$error":"#N/A"}},{"$f":"IF(INDIRECT(\"c\" & (VLOOKUP(Switch!$D$30,$F$2:$G$44,2,FALSE)+ROW()-2))=Switch!$D$30,INDIRECT(\"a\" & (VLOOKUP(Switch!$D$30,$F$2:$G$44,2,FALSE)+ROW()-2)),\"\")","v":{"$error":"#N/A"}},{"$f":"IF(INDIRECT(\"c\" & (VLOOKUP(Switch!$D$31,$F$2:$G$44,2,FALSE)+ROW()-2))=Switch!$D$31,INDIRECT(\"a\" & (VLOOKUP(Switch!$D$31,$F$2:$G$44,2,FALSE)+ROW()-2)),\"\")","v":{"$error":"#N/A"}},{"$f":"IF(INDIRECT(\"c\" & (VLOOKUP(Switch!$D$32,$F$2:$G$44,2,FALSE)+ROW()-2))=Switch!$D$32,INDIRECT(\"a\" & (VLOOKUP(Switch!$D$32,$F$2:$G$44,2,FALSE)+ROW()-2)),\"\")","v":{"$error":"#N/A"}},{"$f":"IF(INDIRECT(\"c\" & (VLOOKUP(Switch!$D$33,$F$2:$G$44,2,FALSE)+ROW()-2))=Switch!$D$33,INDIRECT(\"a\" & (VLOOKUP(Switch!$D$33,$F$2:$G$44,2,FALSE)+ROW()-2)),\"\")","v":{"$error":"#N/A"}},{"$f":"IF(INDIRECT(\"c\" & (VLOOKUP(Switch!$D$34,$F$2:$G$44,2,FALSE)+ROW()-2))=Switch!$D$34,INDIRECT(\"a\" & (VLOOKUP(Switch!$D$34,$F$2:$G$44,2,FALSE)+ROW()-2)),\"\")","v":{"$error":"#N/A"}},{"$f":"IF(INDIRECT(\"c\" & (VLOOKUP(Switch!$D$35,$F$2:$G$44,2,FALSE)+ROW()-2))=Switch!$D$35,INDIRECT(\"a\" & (VLOOKUP(Switch!$D$35,$F$2:$G$44,2,FALSE)+ROW()-2)),\"\")","v":{"$error":"#N/A"}},{"$f":"IF(INDIRECT(\"c\" & (VLOOKUP(Switch!$D$36,$F$2:$G$44,2,FALSE)+ROW()-2))=Switch!$D$36,INDIRECT(\"a\" & (VLOOKUP(Switch!$D$36,$F$2:$G$44,2,FALSE)+ROW()-2)),\"\")","v":{"$error":"#N/A"}},{"$f":"IF(INDIRECT(\"c\" & (VLOOKUP(Switch!$D$37,$F$2:$G$44,2,FALSE)+ROW()-2))=Switch!$D$37,INDIRECT(\"a\" & (VLOOKUP(Switch!$D$37,$F$2:$G$44,2,FALSE)+ROW()-2)),\"\")","v":{"$error":"#N/A"}},{"$f":"IF(INDIRECT(\"c\" & (VLOOKUP(Switch!$D$38,$F$2:$G$44,2,FALSE)+ROW()-2))=Switch!$D$38,INDIRECT(\"a\" & (VLOOKUP(Switch!$D$38,$F$2:$G$44,2,FALSE)+ROW()-2)),\"\")","v":{"$error":"#N/A"}},{"$f":"IF(INDIRECT(\"c\" & (VLOOKUP(Switch!$D$39,$F$2:$G$44,2,FALSE)+ROW()-2))=Switch!$D$39,INDIRECT(\"a\" & (VLOOKUP(Switch!$D$39,$F$2:$G$44,2,FALSE)+ROW()-2)),\"\")","v":{"$error":"#N/A"}},{"$f":"IF(INDIRECT(\"c\" & (VLOOKUP(Switch!$D$40,$F$2:$G$44,2,FALSE)+ROW()-2))=Switch!$D$40,INDIRECT(\"a\" & (VLOOKUP(Switch!$D$40,$F$2:$G$44,2,FALSE)+ROW()-2)),\"\")","v":{"$error":"#N/A"}},{"$f":"IF(INDIRECT(\"c\" & (VLOOKUP(Switch!$D$52,$F$2:$G$44,2,FALSE)+ROW()-2))=Switch!$D$52,INDIRECT(\"a\" & (VLOOKUP(Switch!$D$52,$F$2:$G$44,2,FALSE)+ROW()-2)),\"\")","v":{"$error":"#N/A"}},{"$f":"IF(INDIRECT(\"c\" & (VLOOKUP(Switch!$D$53,$F$2:$G$44,2,FALSE)+ROW()-2))=Switch!$D$53,INDIRECT(\"a\" & (VLOOKUP(Switch!$D$53,$F$2:$G$44,2,FALSE)+ROW()-2)),\"\")","v":{"$error":"#N/A"}},{"$f":"IF(INDIRECT(\"c\" & (VLOOKUP(Switch!$D$54,$F$2:$G$44,2,FALSE)+ROW()-2))=Switch!$D$54,INDIRECT(\"a\" & (VLOOKUP(Switch!$D$54,$F$2:$G$44,2,FALSE)+ROW()-2)),\"\")","v":{"$error":"#N/A"}},{"$f":"IF(INDIRECT(\"c\" & (VLOOKUP(Switch!$D$55,$F$2:$G$44,2,FALSE)+ROW()-2))=Switch!$D$55,INDIRECT(\"a\" & (VLOOKUP(Switch!$D$55,$F$2:$G$44,2,FALSE)+ROW()-2)),\"\")","v":{"$error":"#N/A"}},{"$f":"IF(INDIRECT(\"c\" & (VLOOKUP(Switch!$D$56,$F$2:$G$44,2,FALSE)+ROW()-2))=Switch!$D$56,INDIRECT(\"a\" & (VLOOKUP(Switch!$D$56,$F$2:$G$44,2,FALSE)+ROW()-2)),\"\")","v":{"$error":"#N/A"}},{"$f":"IF(INDIRECT(\"c\" & (VLOOKUP(Switch!$D$57,$F$2:$G$44,2,FALSE)+ROW()-2))=Switch!$D$57,INDIRECT(\"a\" & (VLOOKUP(Switch!$D$57,$F$2:$G$44,2,FALSE)+ROW()-2)),\"\")","v":{"$error":"#N/A"}},{"$f":"IF(INDIRECT(\"c\" & (VLOOKUP(Switch!$D$58,$F$2:$G$44,2,FALSE)+ROW()-2))=Switch!$D$58,INDIRECT(\"a\" & (VLOOKUP(Switch!$D$58,$F$2:$G$44,2,FALSE)+ROW()-2)),\"\")","v":{"$error":"#N/A"}},{"$f":"IF(INDIRECT(\"c\" & (VLOOKUP(Switch!$D$59,$F$2:$G$44,2,FALSE)+ROW()-2))=Switch!$D$59,INDIRECT(\"a\" & (VLOOKUP(Switch!$D$59,$F$2:$G$44,2,FALSE)+ROW()-2)),\"\")","v":{"$error":"#N/A"}},{"$f":"IF(INDIRECT(\"c\" & (VLOOKUP(Switch!$D$60,$F$2:$G$44,2,FALSE)+ROW()-2))=Switch!$D$60,INDIRECT(\"a\" & (VLOOKUP(Switch!$D$60,$F$2:$G$44,2,FALSE)+ROW()-2)),\"\")","v":{"$error":"#N/A"}},{"$f":"IF(INDIRECT(\"c\" & (VLOOKUP(Switch!$D$61,$F$2:$G$44,2,FALSE)+ROW()-2))=Switch!$D$61,INDIRECT(\"a\" & (VLOOKUP(Switch!$D$61,$F$2:$G$44,2,FALSE)+ROW()-2)),\"\")","v":{"$error":"#N/A"}},{"$f":"IF(INDIRECT(\"c\" & (VLOOKUP(Switch!$D$62,$F$2:$G$44,2,FALSE)+ROW()-2))=Switch!$D$62,INDIRECT(\"a\" & (VLOOKUP(Switch!$D$62,$F$2:$G$44,2,FALSE)+ROW()-2)),\"\")","v":{"$error":"#N/A"}},{"$f":"IF(INDIRECT(\"c\" & (VLOOKUP(Switch!$D$63,$F$2:$G$44,2,FALSE)+ROW()-2))=Switch!$D$63,INDIRECT(\"a\" & (VLOOKUP(Switch!$D$63,$F$2:$G$44,2,FALSE)+ROW()-2)),\"\")","v":{"$error":"#N/A"}},{"$f":"IF(INDIRECT(\"c\" & (VLOOKUP(Switch!$D$64,$F$2:$G$44,2,FALSE)+ROW()-2))=Switch!$D$64,INDIRECT(\"a\" & (VLOOKUP(Switch!$D$64,$F$2:$G$44,2,FALSE)+ROW()-2)),\"\")","v":{"$error":"#N/A"}},{"$f":"IF(INDIRECT(\"c\" & (VLOOKUP(Switch!$D$65,$F$2:$G$44,2,FALSE)+ROW()-2))=Switch!$D$65,INDIRECT(\"a\" & (VLOOKUP(Switch!$D$65,$F$2:$G$44,2,FALSE)+ROW()-2)),\"\")","v":{"$error":"#N/A"}},{"$f":"IF(INDIRECT(\"c\" & (VLOOKUP(Switch!$D$66,$F$2:$G$44,2,FALSE)+ROW()-2))=Switch!$D$66,INDIRECT(\"a\" & (VLOOKUP(Switch!$D$66,$F$2:$G$44,2,FALSE)+ROW()-2)),\"\")","v":{"$error":"#N/A"}}]
["Fairtree Global Smart Beta Prescient Fund A1","FGSA1","Prescient Management Company Ltd",{"$f":"ROW()","v":451},null,null,{"$f":"VLOOKUP(F451,$C$2:$D$637,2,FALSE)","v":{"$error":"#N/A"}},{"$f":"IF(INDIRECT(\"c\" & (VLOOKUP(Switch!$D$26,$F$2:$G$44,2,FALSE)+ROW()-2))=Switch!$D$26,INDIRECT(\"a\" & (VLOOKUP(Switch!$D$26,$F$2:$G$44,2,FALSE)+ROW()-2)),\"\")","v":{"$error":"#N/A"}},{"$f":"IF(INDIRECT(\"c\" & (VLOOKUP(Switch!$D$27,$F$2:$G$44,2,FALSE)+ROW()-2))=Switch!$D$27,INDIRECT(\"a\" & (VLOOKUP(Switch!$D$27,$F$2:$G$44,2,FALSE)+ROW()-2)),\"\")","v":{"$error":"#N/A"}},{"$f":"IF(INDIRECT(\"c\" & (VLOOKUP(Switch!$D$28,$F$2:$G$44,2,FALSE)+ROW()-2))=Switch!$D$28,INDIRECT(\"a\" & (VLOOKUP(Switch!$D$28,$F$2:$G$44,2,FALSE)+ROW()-2)),\"\")","v":{"$error":"#N/A"}},{"$f":"IF(INDIRECT(\"c\" & (VLOOKUP(Switch!$D$29,$F$2:$G$44,2,FALSE)+ROW()-2))=Switch!$D$29,INDIRECT(\"a\" & (VLOOKUP(Switch!$D$29,$F$2:$G$44,2,FALSE)+ROW()-2)),\"\")","v":{"$error":"#N/A"}},{"$f":"IF(INDIRECT(\"c\" & (VLOOKUP(Switch!$D$30,$F$2:$G$44,2,FALSE)+ROW()-2))=Switch!$D$30,INDIRECT(\"a\" & (VLOOKUP(Switch!$D$30,$F$2:$G$44,2,FALSE)+ROW()-2)),\"\")","v":{"$error":"#N/A"}},{"$f":"IF(INDIRECT(\"c\" & (VLOOKUP(Switch!$D$31,$F$2:$G$44,2,FALSE)+ROW()-2))=Switch!$D$31,INDIRECT(\"a\" & (VLOOKUP(Switch!$D$31,$F$2:$G$44,2,FALSE)+ROW()-2)),\"\")","v":{"$error":"#N/A"}},{"$f":"IF(INDIRECT(\"c\" & (VLOOKUP(Switch!$D$32,$F$2:$G$44,2,FALSE)+ROW()-2))=Switch!$D$32,INDIRECT(\"a\" & (VLOOKUP(Switch!$D$32,$F$2:$G$44,2,FALSE)+ROW()-2)),\"\")","v":{"$error":"#N/A"}},{"$f":"IF(INDIRECT(\"c\" & (VLOOKUP(Switch!$D$33,$F$2:$G$44,2,FALSE)+ROW()-2))=Switch!$D$33,INDIRECT(\"a\" & (VLOOKUP(Switch!$D$33,$F$2:$G$44,2,FALSE)+ROW()-2)),\"\")","v":{"$error":"#N/A"}},{"$f":"IF(INDIRECT(\"c\" & (VLOOKUP(Switch!$D$34,$F$2:$G$44,2,FALSE)+ROW()-2))=Switch!$D$34,INDIRECT(\"a\" & (VLOOKUP(Switch!$D$34,$F$2:$G$44,2,FALSE)+ROW()-2)),\"\")","v":{"$error":"#N/A"}},{"$f":"IF(INDIRECT(\"c\" & (VLOOKUP(Switch!$D$35,$F$2:$G$44,2,FALSE)+ROW()-2))=Switch!$D$35,INDIRECT(\"a\" & (VLOOKUP(Switch!$D$35,$F$2:$G$44,2,FALSE)+ROW()-2)),\"\")","v":{"$error":"#N/A"}},{"$f":"IF(INDIRECT(\"c\" & (VLOOKUP(Switch!$D$36,$F$2:$G$44,2,FALSE)+ROW()-2))=Switch!$D$36,INDIRECT(\"a\" & (VLOOKUP(Switch!$D$36,$F$2:$G$44,2,FALSE)+ROW()-2)),\"\")","v":{"$error":"#N/A"}},{"$f":"IF(INDIRECT(\"c\" & (VLOOKUP(Switch!$D$37,$F$2:$G$44,2,FALSE)+ROW()-2))=Switch!$D$37,INDIRECT(\"a\" & (VLOOKUP(Switch!$D$37,$F$2:$G$44,2,FALSE)+ROW()-2)),\"\")","v":{"$error":"#N/A"}},{"$f":"IF(INDIRECT(\"c\" & (VLOOKUP(Switch!$D$38,$F$2:$G$44,2,FALSE)+ROW()-2))=Switch!$D$38,INDIRECT(\"a\" & (VLOOKUP(Switch!$D$38,$F$2:$G$44,2,FALSE)+ROW()-2)),\"\")","v":{"$error":"#N/A"}},{"$f":"IF(INDIRECT(\"c\" & (VLOOKUP(Switch!$D$39,$F$2:$G$44,2,FALSE)+ROW()-2))=Switch!$D$39,INDIRECT(\"a\" & (VLOOKUP(Switch!$D$39,$F$2:$G$44,2,FALSE)+ROW()-2)),\"\")","v":{"$error":"#N/A"}},{"$f":"IF(INDIRECT(\"c\" & (VLOOKUP(Switch!$D$40,$F$2:$G$44,2,FALSE)+ROW()-2))=Switch!$D$40,INDIRECT(\"a\" & (VLOOKUP(Switch!$D$40,$F$2:$G$44,2,FALSE)+ROW()-2)),\"\")","v":{"$error":"#N/A"}},{"$f":"IF(INDIRECT(\"c\" & (VLOOKUP(Switch!$D$52,$F$2:$G$44,2,FALSE)+ROW()-2))=Switch!$D$52,INDIRECT(\"a\" & (VLOOKUP(Switch!$D$52,$F$2:$G$44,2,FALSE)+ROW()-2)),\"\")","v":{"$error":"#N/A"}},{"$f":"IF(INDIRECT(\"c\" & (VLOOKUP(Switch!$D$53,$F$2:$G$44,2,FALSE)+ROW()-2))=Switch!$D$53,INDIRECT(\"a\" & (VLOOKUP(Switch!$D$53,$F$2:$G$44,2,FALSE)+ROW()-2)),\"\")","v":{"$error":"#N/A"}},{"$f":"IF(INDIRECT(\"c\" & (VLOOKUP(Switch!$D$54,$F$2:$G$44,2,FALSE)+ROW()-2))=Switch!$D$54,INDIRECT(\"a\" & (VLOOKUP(Switch!$D$54,$F$2:$G$44,2,FALSE)+ROW()-2)),\"\")","v":{"$error":"#N/A"}},{"$f":"IF(INDIRECT(\"c\" & (VLOOKUP(Switch!$D$55,$F$2:$G$44,2,FALSE)+ROW()-2))=Switch!$D$55,INDIRECT(\"a\" & (VLOOKUP(Switch!$D$55,$F$2:$G$44,2,FALSE)+ROW()-2)),\"\")","v":{"$error":"#N/A"}},{"$f":"IF(INDIRECT(\"c\" & (VLOOKUP(Switch!$D$56,$F$2:$G$44,2,FALSE)+ROW()-2))=Switch!$D$56,INDIRECT(\"a\" & (VLOOKUP(Switch!$D$56,$F$2:$G$44,2,FALSE)+ROW()-2)),\"\")","v":{"$error":"#N/A"}},{"$f":"IF(INDIRECT(\"c\" & (VLOOKUP(Switch!$D$57,$F$2:$G$44,2,FALSE)+ROW()-2))=Switch!$D$57,INDIRECT(\"a\" & (VLOOKUP(Switch!$D$57,$F$2:$G$44,2,FALSE)+ROW()-2)),\"\")","v":{"$error":"#N/A"}},{"$f":"IF(INDIRECT(\"c\" & (VLOOKUP(Switch!$D$58,$F$2:$G$44,2,FALSE)+ROW()-2))=Switch!$D$58,INDIRECT(\"a\" & (VLOOKUP(Switch!$D$58,$F$2:$G$44,2,FALSE)+ROW()-2)),\"\")","v":{"$error":"#N/A"}},{"$f":"IF(INDIRECT(\"c\" & (VLOOKUP(Switch!$D$59,$F$2:$G$44,2,FALSE)+ROW()-2))=Switch!$D$59,INDIRECT(\"a\" & (VLOOKUP(Switch!$D$59,$F$2:$G$44,2,FALSE)+ROW()-2)),\"\")","v":{"$error":"#N/A"}},{"$f":"IF(INDIRECT(\"c\" & (VLOOKUP(Switch!$D$60,$F$2:$G$44,2,FALSE)+ROW()-2))=Switch!$D$60,INDIRECT(\"a\" & (VLOOKUP(Switch!$D$60,$F$2:$G$44,2,FALSE)+ROW()-2)),\"\")","v":{"$error":"#N/A"}},{"$f":"IF(INDIRECT(\"c\" & (VLOOKUP(Switch!$D$61,$F$2:$G$44,2,FALSE)+ROW()-2))=Switch!$D$61,INDIRECT(\"a\" & (VLOOKUP(Switch!$D$61,$F$2:$G$44,2,FALSE)+ROW()-2)),\"\")","v":{"$error":"#N/A"}},{"$f":"IF(INDIRECT(\"c\" & (VLOOKUP(Switch!$D$62,$F$2:$G$44,2,FALSE)+ROW()-2))=Switch!$D$62,INDIRECT(\"a\" & (VLOOKUP(Switch!$D$62,$F$2:$G$44,2,FALSE)+ROW()-2)),\"\")","v":{"$error":"#N/A"}},{"$f":"IF(INDIRECT(\"c\" & (VLOOKUP(Switch!$D$63,$F$2:$G$44,2,FALSE)+ROW()-2))=Switch!$D$63,INDIRECT(\"a\" & (VLOOKUP(Switch!$D$63,$F$2:$G$44,2,FALSE)+ROW()-2)),\"\")","v":{"$error":"#N/A"}},{"$f":"IF(INDIRECT(\"c\" & (VLOOKUP(Switch!$D$64,$F$2:$G$44,2,FALSE)+ROW()-2))=Switch!$D$64,INDIRECT(\"a\" & (VLOOKUP(Switch!$D$64,$F$2:$G$44,2,FALSE)+ROW()-2)),\"\")","v":{"$error":"#N/A"}},{"$f":"IF(INDIRECT(\"c\" & (VLOOKUP(Switch!$D$65,$F$2:$G$44,2,FALSE)+ROW()-2))=Switch!$D$65,INDIRECT(\"a\" & (VLOOKUP(Switch!$D$65,$F$2:$G$44,2,FALSE)+ROW()-2)),\"\")","v":{"$error":"#N/A"}},{"$f":"IF(INDIRECT(\"c\" & (VLOOKUP(Switch!$D$66,$F$2:$G$44,2,FALSE)+ROW()-2))=Switch!$D$66,INDIRECT(\"a\" & (VLOOKUP(Switch!$D$66,$F$2:$G$44,2,FALSE)+ROW()-2)),\"\")","v":{"$error":"#N/A"}}]
["Fairtree Worldwide Multi-Strategy Flexible Prescient A1","FMFPA1","Prescient Management Company Ltd",{"$f":"ROW()","v":452},null,null,{"$f":"VLOOKUP(F452,$C$2:$D$637,2,FALSE)","v":{"$error":"#N/A"}},{"$f":"IF(INDIRECT(\"c\" & (VLOOKUP(Switch!$D$26,$F$2:$G$44,2,FALSE)+ROW()-2))=Switch!$D$26,INDIRECT(\"a\" & (VLOOKUP(Switch!$D$26,$F$2:$G$44,2,FALSE)+ROW()-2)),\"\")","v":{"$error":"#N/A"}},{"$f":"IF(INDIRECT(\"c\" & (VLOOKUP(Switch!$D$27,$F$2:$G$44,2,FALSE)+ROW()-2))=Switch!$D$27,INDIRECT(\"a\" & (VLOOKUP(Switch!$D$27,$F$2:$G$44,2,FALSE)+ROW()-2)),\"\")","v":{"$error":"#N/A"}},{"$f":"IF(INDIRECT(\"c\" & (VLOOKUP(Switch!$D$28,$F$2:$G$44,2,FALSE)+ROW()-2))=Switch!$D$28,INDIRECT(\"a\" & (VLOOKUP(Switch!$D$28,$F$2:$G$44,2,FALSE)+ROW()-2)),\"\")","v":{"$error":"#N/A"}},{"$f":"IF(INDIRECT(\"c\" & (VLOOKUP(Switch!$D$29,$F$2:$G$44,2,FALSE)+ROW()-2))=Switch!$D$29,INDIRECT(\"a\" & (VLOOKUP(Switch!$D$29,$F$2:$G$44,2,FALSE)+ROW()-2)),\"\")","v":{"$error":"#N/A"}},{"$f":"IF(INDIRECT(\"c\" & (VLOOKUP(Switch!$D$30,$F$2:$G$44,2,FALSE)+ROW()-2))=Switch!$D$30,INDIRECT(\"a\" & (VLOOKUP(Switch!$D$30,$F$2:$G$44,2,FALSE)+ROW()-2)),\"\")","v":{"$error":"#N/A"}},{"$f":"IF(INDIRECT(\"c\" & (VLOOKUP(Switch!$D$31,$F$2:$G$44,2,FALSE)+ROW()-2))=Switch!$D$31,INDIRECT(\"a\" & (VLOOKUP(Switch!$D$31,$F$2:$G$44,2,FALSE)+ROW()-2)),\"\")","v":{"$error":"#N/A"}},{"$f":"IF(INDIRECT(\"c\" & (VLOOKUP(Switch!$D$32,$F$2:$G$44,2,FALSE)+ROW()-2))=Switch!$D$32,INDIRECT(\"a\" & (VLOOKUP(Switch!$D$32,$F$2:$G$44,2,FALSE)+ROW()-2)),\"\")","v":{"$error":"#N/A"}},{"$f":"IF(INDIRECT(\"c\" & (VLOOKUP(Switch!$D$33,$F$2:$G$44,2,FALSE)+ROW()-2))=Switch!$D$33,INDIRECT(\"a\" & (VLOOKUP(Switch!$D$33,$F$2:$G$44,2,FALSE)+ROW()-2)),\"\")","v":{"$error":"#N/A"}},{"$f":"IF(INDIRECT(\"c\" & (VLOOKUP(Switch!$D$34,$F$2:$G$44,2,FALSE)+ROW()-2))=Switch!$D$34,INDIRECT(\"a\" & (VLOOKUP(Switch!$D$34,$F$2:$G$44,2,FALSE)+ROW()-2)),\"\")","v":{"$error":"#N/A"}},{"$f":"IF(INDIRECT(\"c\" & (VLOOKUP(Switch!$D$35,$F$2:$G$44,2,FALSE)+ROW()-2))=Switch!$D$35,INDIRECT(\"a\" & (VLOOKUP(Switch!$D$35,$F$2:$G$44,2,FALSE)+ROW()-2)),\"\")","v":{"$error":"#N/A"}},{"$f":"IF(INDIRECT(\"c\" & (VLOOKUP(Switch!$D$36,$F$2:$G$44,2,FALSE)+ROW()-2))=Switch!$D$36,INDIRECT(\"a\" & (VLOOKUP(Switch!$D$36,$F$2:$G$44,2,FALSE)+ROW()-2)),\"\")","v":{"$error":"#N/A"}},{"$f":"IF(INDIRECT(\"c\" & (VLOOKUP(Switch!$D$37,$F$2:$G$44,2,FALSE)+ROW()-2))=Switch!$D$37,INDIRECT(\"a\" & (VLOOKUP(Switch!$D$37,$F$2:$G$44,2,FALSE)+ROW()-2)),\"\")","v":{"$error":"#N/A"}},{"$f":"IF(INDIRECT(\"c\" & (VLOOKUP(Switch!$D$38,$F$2:$G$44,2,FALSE)+ROW()-2))=Switch!$D$38,INDIRECT(\"a\" & (VLOOKUP(Switch!$D$38,$F$2:$G$44,2,FALSE)+ROW()-2)),\"\")","v":{"$error":"#N/A"}},{"$f":"IF(INDIRECT(\"c\" & (VLOOKUP(Switch!$D$39,$F$2:$G$44,2,FALSE)+ROW()-2))=Switch!$D$39,INDIRECT(\"a\" & (VLOOKUP(Switch!$D$39,$F$2:$G$44,2,FALSE)+ROW()-2)),\"\")","v":{"$error":"#N/A"}},{"$f":"IF(INDIRECT(\"c\" & (VLOOKUP(Switch!$D$40,$F$2:$G$44,2,FALSE)+ROW()-2))=Switch!$D$40,INDIRECT(\"a\" & (VLOOKUP(Switch!$D$40,$F$2:$G$44,2,FALSE)+ROW()-2)),\"\")","v":{"$error":"#N/A"}},{"$f":"IF(INDIRECT(\"c\" & (VLOOKUP(Switch!$D$52,$F$2:$G$44,2,FALSE)+ROW()-2))=Switch!$D$52,INDIRECT(\"a\" & (VLOOKUP(Switch!$D$52,$F$2:$G$44,2,FALSE)+ROW()-2)),\"\")","v":{"$error":"#N/A"}},{"$f":"IF(INDIRECT(\"c\" & (VLOOKUP(Switch!$D$53,$F$2:$G$44,2,FALSE)+ROW()-2))=Switch!$D$53,INDIRECT(\"a\" & (VLOOKUP(Switch!$D$53,$F$2:$G$44,2,FALSE)+ROW()-2)),\"\")","v":{"$error":"#N/A"}},{"$f":"IF(INDIRECT(\"c\" & (VLOOKUP(Switch!$D$54,$F$2:$G$44,2,FALSE)+ROW()-2))=Switch!$D$54,INDIRECT(\"a\" & (VLOOKUP(Switch!$D$54,$F$2:$G$44,2,FALSE)+ROW()-2)),\"\")","v":{"$error":"#N/A"}},{"$f":"IF(INDIRECT(\"c\" & (VLOOKUP(Switch!$D$55,$F$2:$G$44,2,FALSE)+ROW()-2))=Switch!$D$55,INDIRECT(\"a\" & (VLOOKUP(Switch!$D$55,$F$2:$G$44,2,FALSE)+ROW()-2)),\"\")","v":{"$error":"#N/A"}},{"$f":"IF(INDIRECT(\"c\" & (VLOOKUP(Switch!$D$56,$F$2:$G$44,2,FALSE)+ROW()-2))=Switch!$D$56,INDIRECT(\"a\" & (VLOOKUP(Switch!$D$56,$F$2:$G$44,2,FALSE)+ROW()-2)),\"\")","v":{"$error":"#N/A"}},{"$f":"IF(INDIRECT(\"c\" & (VLOOKUP(Switch!$D$57,$F$2:$G$44,2,FALSE)+ROW()-2))=Switch!$D$57,INDIRECT(\"a\" & (VLOOKUP(Switch!$D$57,$F$2:$G$44,2,FALSE)+ROW()-2)),\"\")","v":{"$error":"#N/A"}},{"$f":"IF(INDIRECT(\"c\" & (VLOOKUP(Switch!$D$58,$F$2:$G$44,2,FALSE)+ROW()-2))=Switch!$D$58,INDIRECT(\"a\" & (VLOOKUP(Switch!$D$58,$F$2:$G$44,2,FALSE)+ROW()-2)),\"\")","v":{"$error":"#N/A"}},{"$f":"IF(INDIRECT(\"c\" & (VLOOKUP(Switch!$D$59,$F$2:$G$44,2,FALSE)+ROW()-2))=Switch!$D$59,INDIRECT(\"a\" & (VLOOKUP(Switch!$D$59,$F$2:$G$44,2,FALSE)+ROW()-2)),\"\")","v":{"$error":"#N/A"}},{"$f":"IF(INDIRECT(\"c\" & (VLOOKUP(Switch!$D$60,$F$2:$G$44,2,FALSE)+ROW()-2))=Switch!$D$60,INDIRECT(\"a\" & (VLOOKUP(Switch!$D$60,$F$2:$G$44,2,FALSE)+ROW()-2)),\"\")","v":{"$error":"#N/A"}},{"$f":"IF(INDIRECT(\"c\" & (VLOOKUP(Switch!$D$61,$F$2:$G$44,2,FALSE)+ROW()-2))=Switch!$D$61,INDIRECT(\"a\" & (VLOOKUP(Switch!$D$61,$F$2:$G$44,2,FALSE)+ROW()-2)),\"\")","v":{"$error":"#N/A"}},{"$f":"IF(INDIRECT(\"c\" & (VLOOKUP(Switch!$D$62,$F$2:$G$44,2,FALSE)+ROW()-2))=Switch!$D$62,INDIRECT(\"a\" & (VLOOKUP(Switch!$D$62,$F$2:$G$44,2,FALSE)+ROW()-2)),\"\")","v":{"$error":"#N/A"}},{"$f":"IF(INDIRECT(\"c\" & (VLOOKUP(Switch!$D$63,$F$2:$G$44,2,FALSE)+ROW()-2))=Switch!$D$63,INDIRECT(\"a\" & (VLOOKUP(Switch!$D$63,$F$2:$G$44,2,FALSE)+ROW()-2)),\"\")","v":{"$error":"#N/A"}},{"$f":"IF(INDIRECT(\"c\" & (VLOOKUP(Switch!$D$64,$F$2:$G$44,2,FALSE)+ROW()-2))=Switch!$D$64,INDIRECT(\"a\" & (VLOOKUP(Switch!$D$64,$F$2:$G$44,2,FALSE)+ROW()-2)),\"\")","v":{"$error":"#N/A"}},{"$f":"IF(INDIRECT(\"c\" & (VLOOKUP(Switch!$D$65,$F$2:$G$44,2,FALSE)+ROW()-2))=Switch!$D$65,INDIRECT(\"a\" & (VLOOKUP(Switch!$D$65,$F$2:$G$44,2,FALSE)+ROW()-2)),\"\")","v":{"$error":"#N/A"}},{"$f":"IF(INDIRECT(\"c\" & (VLOOKUP(Switch!$D$66,$F$2:$G$44,2,FALSE)+ROW()-2))=Switch!$D$66,INDIRECT(\"a\" & (VLOOKUP(Switch!$D$66,$F$2:$G$44,2,FALSE)+ROW()-2)),\"\")","v":{"$error":"#N/A"}}]
["Dalebrook Equity Prescient Fund A3","NBIEA3","Prescient Management Company Ltd",{"$f":"ROW()","v":453},null,null,{"$f":"VLOOKUP(F453,$C$2:$D$637,2,FALSE)","v":{"$error":"#N/A"}},{"$f":"IF(INDIRECT(\"c\" & (VLOOKUP(Switch!$D$26,$F$2:$G$44,2,FALSE)+ROW()-2))=Switch!$D$26,INDIRECT(\"a\" & (VLOOKUP(Switch!$D$26,$F$2:$G$44,2,FALSE)+ROW()-2)),\"\")","v":{"$error":"#N/A"}},{"$f":"IF(INDIRECT(\"c\" & (VLOOKUP(Switch!$D$27,$F$2:$G$44,2,FALSE)+ROW()-2))=Switch!$D$27,INDIRECT(\"a\" & (VLOOKUP(Switch!$D$27,$F$2:$G$44,2,FALSE)+ROW()-2)),\"\")","v":{"$error":"#N/A"}},{"$f":"IF(INDIRECT(\"c\" & (VLOOKUP(Switch!$D$28,$F$2:$G$44,2,FALSE)+ROW()-2))=Switch!$D$28,INDIRECT(\"a\" & (VLOOKUP(Switch!$D$28,$F$2:$G$44,2,FALSE)+ROW()-2)),\"\")","v":{"$error":"#N/A"}},{"$f":"IF(INDIRECT(\"c\" & (VLOOKUP(Switch!$D$29,$F$2:$G$44,2,FALSE)+ROW()-2))=Switch!$D$29,INDIRECT(\"a\" & (VLOOKUP(Switch!$D$29,$F$2:$G$44,2,FALSE)+ROW()-2)),\"\")","v":{"$error":"#N/A"}},{"$f":"IF(INDIRECT(\"c\" & (VLOOKUP(Switch!$D$30,$F$2:$G$44,2,FALSE)+ROW()-2))=Switch!$D$30,INDIRECT(\"a\" & (VLOOKUP(Switch!$D$30,$F$2:$G$44,2,FALSE)+ROW()-2)),\"\")","v":{"$error":"#N/A"}},{"$f":"IF(INDIRECT(\"c\" & (VLOOKUP(Switch!$D$31,$F$2:$G$44,2,FALSE)+ROW()-2))=Switch!$D$31,INDIRECT(\"a\" & (VLOOKUP(Switch!$D$31,$F$2:$G$44,2,FALSE)+ROW()-2)),\"\")","v":{"$error":"#N/A"}},{"$f":"IF(INDIRECT(\"c\" & (VLOOKUP(Switch!$D$32,$F$2:$G$44,2,FALSE)+ROW()-2))=Switch!$D$32,INDIRECT(\"a\" & (VLOOKUP(Switch!$D$32,$F$2:$G$44,2,FALSE)+ROW()-2)),\"\")","v":{"$error":"#N/A"}},{"$f":"IF(INDIRECT(\"c\" & (VLOOKUP(Switch!$D$33,$F$2:$G$44,2,FALSE)+ROW()-2))=Switch!$D$33,INDIRECT(\"a\" & (VLOOKUP(Switch!$D$33,$F$2:$G$44,2,FALSE)+ROW()-2)),\"\")","v":{"$error":"#N/A"}},{"$f":"IF(INDIRECT(\"c\" & (VLOOKUP(Switch!$D$34,$F$2:$G$44,2,FALSE)+ROW()-2))=Switch!$D$34,INDIRECT(\"a\" & (VLOOKUP(Switch!$D$34,$F$2:$G$44,2,FALSE)+ROW()-2)),\"\")","v":{"$error":"#N/A"}},{"$f":"IF(INDIRECT(\"c\" & (VLOOKUP(Switch!$D$35,$F$2:$G$44,2,FALSE)+ROW()-2))=Switch!$D$35,INDIRECT(\"a\" & (VLOOKUP(Switch!$D$35,$F$2:$G$44,2,FALSE)+ROW()-2)),\"\")","v":{"$error":"#N/A"}},{"$f":"IF(INDIRECT(\"c\" & (VLOOKUP(Switch!$D$36,$F$2:$G$44,2,FALSE)+ROW()-2))=Switch!$D$36,INDIRECT(\"a\" & (VLOOKUP(Switch!$D$36,$F$2:$G$44,2,FALSE)+ROW()-2)),\"\")","v":{"$error":"#N/A"}},{"$f":"IF(INDIRECT(\"c\" & (VLOOKUP(Switch!$D$37,$F$2:$G$44,2,FALSE)+ROW()-2))=Switch!$D$37,INDIRECT(\"a\" & (VLOOKUP(Switch!$D$37,$F$2:$G$44,2,FALSE)+ROW()-2)),\"\")","v":{"$error":"#N/A"}},{"$f":"IF(INDIRECT(\"c\" & (VLOOKUP(Switch!$D$38,$F$2:$G$44,2,FALSE)+ROW()-2))=Switch!$D$38,INDIRECT(\"a\" & (VLOOKUP(Switch!$D$38,$F$2:$G$44,2,FALSE)+ROW()-2)),\"\")","v":{"$error":"#N/A"}},{"$f":"IF(INDIRECT(\"c\" & (VLOOKUP(Switch!$D$39,$F$2:$G$44,2,FALSE)+ROW()-2))=Switch!$D$39,INDIRECT(\"a\" & (VLOOKUP(Switch!$D$39,$F$2:$G$44,2,FALSE)+ROW()-2)),\"\")","v":{"$error":"#N/A"}},{"$f":"IF(INDIRECT(\"c\" & (VLOOKUP(Switch!$D$40,$F$2:$G$44,2,FALSE)+ROW()-2))=Switch!$D$40,INDIRECT(\"a\" & (VLOOKUP(Switch!$D$40,$F$2:$G$44,2,FALSE)+ROW()-2)),\"\")","v":{"$error":"#N/A"}},{"$f":"IF(INDIRECT(\"c\" & (VLOOKUP(Switch!$D$52,$F$2:$G$44,2,FALSE)+ROW()-2))=Switch!$D$52,INDIRECT(\"a\" & (VLOOKUP(Switch!$D$52,$F$2:$G$44,2,FALSE)+ROW()-2)),\"\")","v":{"$error":"#N/A"}},{"$f":"IF(INDIRECT(\"c\" & (VLOOKUP(Switch!$D$53,$F$2:$G$44,2,FALSE)+ROW()-2))=Switch!$D$53,INDIRECT(\"a\" & (VLOOKUP(Switch!$D$53,$F$2:$G$44,2,FALSE)+ROW()-2)),\"\")","v":{"$error":"#N/A"}},{"$f":"IF(INDIRECT(\"c\" & (VLOOKUP(Switch!$D$54,$F$2:$G$44,2,FALSE)+ROW()-2))=Switch!$D$54,INDIRECT(\"a\" & (VLOOKUP(Switch!$D$54,$F$2:$G$44,2,FALSE)+ROW()-2)),\"\")","v":{"$error":"#N/A"}},{"$f":"IF(INDIRECT(\"c\" & (VLOOKUP(Switch!$D$55,$F$2:$G$44,2,FALSE)+ROW()-2))=Switch!$D$55,INDIRECT(\"a\" & (VLOOKUP(Switch!$D$55,$F$2:$G$44,2,FALSE)+ROW()-2)),\"\")","v":{"$error":"#N/A"}},{"$f":"IF(INDIRECT(\"c\" & (VLOOKUP(Switch!$D$56,$F$2:$G$44,2,FALSE)+ROW()-2))=Switch!$D$56,INDIRECT(\"a\" & (VLOOKUP(Switch!$D$56,$F$2:$G$44,2,FALSE)+ROW()-2)),\"\")","v":{"$error":"#N/A"}},{"$f":"IF(INDIRECT(\"c\" & (VLOOKUP(Switch!$D$57,$F$2:$G$44,2,FALSE)+ROW()-2))=Switch!$D$57,INDIRECT(\"a\" & (VLOOKUP(Switch!$D$57,$F$2:$G$44,2,FALSE)+ROW()-2)),\"\")","v":{"$error":"#N/A"}},{"$f":"IF(INDIRECT(\"c\" & (VLOOKUP(Switch!$D$58,$F$2:$G$44,2,FALSE)+ROW()-2))=Switch!$D$58,INDIRECT(\"a\" & (VLOOKUP(Switch!$D$58,$F$2:$G$44,2,FALSE)+ROW()-2)),\"\")","v":{"$error":"#N/A"}},{"$f":"IF(INDIRECT(\"c\" & (VLOOKUP(Switch!$D$59,$F$2:$G$44,2,FALSE)+ROW()-2))=Switch!$D$59,INDIRECT(\"a\" & (VLOOKUP(Switch!$D$59,$F$2:$G$44,2,FALSE)+ROW()-2)),\"\")","v":{"$error":"#N/A"}},{"$f":"IF(INDIRECT(\"c\" & (VLOOKUP(Switch!$D$60,$F$2:$G$44,2,FALSE)+ROW()-2))=Switch!$D$60,INDIRECT(\"a\" & (VLOOKUP(Switch!$D$60,$F$2:$G$44,2,FALSE)+ROW()-2)),\"\")","v":{"$error":"#N/A"}},{"$f":"IF(INDIRECT(\"c\" & (VLOOKUP(Switch!$D$61,$F$2:$G$44,2,FALSE)+ROW()-2))=Switch!$D$61,INDIRECT(\"a\" & (VLOOKUP(Switch!$D$61,$F$2:$G$44,2,FALSE)+ROW()-2)),\"\")","v":{"$error":"#N/A"}},{"$f":"IF(INDIRECT(\"c\" & (VLOOKUP(Switch!$D$62,$F$2:$G$44,2,FALSE)+ROW()-2))=Switch!$D$62,INDIRECT(\"a\" & (VLOOKUP(Switch!$D$62,$F$2:$G$44,2,FALSE)+ROW()-2)),\"\")","v":{"$error":"#N/A"}},{"$f":"IF(INDIRECT(\"c\" & (VLOOKUP(Switch!$D$63,$F$2:$G$44,2,FALSE)+ROW()-2))=Switch!$D$63,INDIRECT(\"a\" & (VLOOKUP(Switch!$D$63,$F$2:$G$44,2,FALSE)+ROW()-2)),\"\")","v":{"$error":"#N/A"}},{"$f":"IF(INDIRECT(\"c\" & (VLOOKUP(Switch!$D$64,$F$2:$G$44,2,FALSE)+ROW()-2))=Switch!$D$64,INDIRECT(\"a\" & (VLOOKUP(Switch!$D$64,$F$2:$G$44,2,FALSE)+ROW()-2)),\"\")","v":{"$error":"#N/A"}},{"$f":"IF(INDIRECT(\"c\" & (VLOOKUP(Switch!$D$65,$F$2:$G$44,2,FALSE)+ROW()-2))=Switch!$D$65,INDIRECT(\"a\" & (VLOOKUP(Switch!$D$65,$F$2:$G$44,2,FALSE)+ROW()-2)),\"\")","v":{"$error":"#N/A"}},{"$f":"IF(INDIRECT(\"c\" & (VLOOKUP(Switch!$D$66,$F$2:$G$44,2,FALSE)+ROW()-2))=Switch!$D$66,INDIRECT(\"a\" & (VLOOKUP(Switch!$D$66,$F$2:$G$44,2,FALSE)+ROW()-2)),\"\")","v":{"$error":"#N/A"}}]
["Laurium Flexible Prescient Fund A1","LFPA1","Prescient Management Company Ltd",{"$f":"ROW()","v":454},null,null,{"$f":"VLOOKUP(F454,$C$2:$D$637,2,FALSE)","v":{"$error":"#N/A"}},{"$f":"IF(INDIRECT(\"c\" & (VLOOKUP(Switch!$D$26,$F$2:$G$44,2,FALSE)+ROW()-2))=Switch!$D$26,INDIRECT(\"a\" & (VLOOKUP(Switch!$D$26,$F$2:$G$44,2,FALSE)+ROW()-2)),\"\")","v":{"$error":"#N/A"}},{"$f":"IF(INDIRECT(\"c\" & (VLOOKUP(Switch!$D$27,$F$2:$G$44,2,FALSE)+ROW()-2))=Switch!$D$27,INDIRECT(\"a\" & (VLOOKUP(Switch!$D$27,$F$2:$G$44,2,FALSE)+ROW()-2)),\"\")","v":{"$error":"#N/A"}},{"$f":"IF(INDIRECT(\"c\" & (VLOOKUP(Switch!$D$28,$F$2:$G$44,2,FALSE)+ROW()-2))=Switch!$D$28,INDIRECT(\"a\" & (VLOOKUP(Switch!$D$28,$F$2:$G$44,2,FALSE)+ROW()-2)),\"\")","v":{"$error":"#N/A"}},{"$f":"IF(INDIRECT(\"c\" & (VLOOKUP(Switch!$D$29,$F$2:$G$44,2,FALSE)+ROW()-2))=Switch!$D$29,INDIRECT(\"a\" & (VLOOKUP(Switch!$D$29,$F$2:$G$44,2,FALSE)+ROW()-2)),\"\")","v":{"$error":"#N/A"}},{"$f":"IF(INDIRECT(\"c\" & (VLOOKUP(Switch!$D$30,$F$2:$G$44,2,FALSE)+ROW()-2))=Switch!$D$30,INDIRECT(\"a\" & (VLOOKUP(Switch!$D$30,$F$2:$G$44,2,FALSE)+ROW()-2)),\"\")","v":{"$error":"#N/A"}},{"$f":"IF(INDIRECT(\"c\" & (VLOOKUP(Switch!$D$31,$F$2:$G$44,2,FALSE)+ROW()-2))=Switch!$D$31,INDIRECT(\"a\" & (VLOOKUP(Switch!$D$31,$F$2:$G$44,2,FALSE)+ROW()-2)),\"\")","v":{"$error":"#N/A"}},{"$f":"IF(INDIRECT(\"c\" & (VLOOKUP(Switch!$D$32,$F$2:$G$44,2,FALSE)+ROW()-2))=Switch!$D$32,INDIRECT(\"a\" & (VLOOKUP(Switch!$D$32,$F$2:$G$44,2,FALSE)+ROW()-2)),\"\")","v":{"$error":"#N/A"}},{"$f":"IF(INDIRECT(\"c\" & (VLOOKUP(Switch!$D$33,$F$2:$G$44,2,FALSE)+ROW()-2))=Switch!$D$33,INDIRECT(\"a\" & (VLOOKUP(Switch!$D$33,$F$2:$G$44,2,FALSE)+ROW()-2)),\"\")","v":{"$error":"#N/A"}},{"$f":"IF(INDIRECT(\"c\" & (VLOOKUP(Switch!$D$34,$F$2:$G$44,2,FALSE)+ROW()-2))=Switch!$D$34,INDIRECT(\"a\" & (VLOOKUP(Switch!$D$34,$F$2:$G$44,2,FALSE)+ROW()-2)),\"\")","v":{"$error":"#N/A"}},{"$f":"IF(INDIRECT(\"c\" & (VLOOKUP(Switch!$D$35,$F$2:$G$44,2,FALSE)+ROW()-2))=Switch!$D$35,INDIRECT(\"a\" & (VLOOKUP(Switch!$D$35,$F$2:$G$44,2,FALSE)+ROW()-2)),\"\")","v":{"$error":"#N/A"}},{"$f":"IF(INDIRECT(\"c\" & (VLOOKUP(Switch!$D$36,$F$2:$G$44,2,FALSE)+ROW()-2))=Switch!$D$36,INDIRECT(\"a\" & (VLOOKUP(Switch!$D$36,$F$2:$G$44,2,FALSE)+ROW()-2)),\"\")","v":{"$error":"#N/A"}},{"$f":"IF(INDIRECT(\"c\" & (VLOOKUP(Switch!$D$37,$F$2:$G$44,2,FALSE)+ROW()-2))=Switch!$D$37,INDIRECT(\"a\" & (VLOOKUP(Switch!$D$37,$F$2:$G$44,2,FALSE)+ROW()-2)),\"\")","v":{"$error":"#N/A"}},{"$f":"IF(INDIRECT(\"c\" & (VLOOKUP(Switch!$D$38,$F$2:$G$44,2,FALSE)+ROW()-2))=Switch!$D$38,INDIRECT(\"a\" & (VLOOKUP(Switch!$D$38,$F$2:$G$44,2,FALSE)+ROW()-2)),\"\")","v":{"$error":"#N/A"}},{"$f":"IF(INDIRECT(\"c\" & (VLOOKUP(Switch!$D$39,$F$2:$G$44,2,FALSE)+ROW()-2))=Switch!$D$39,INDIRECT(\"a\" & (VLOOKUP(Switch!$D$39,$F$2:$G$44,2,FALSE)+ROW()-2)),\"\")","v":{"$error":"#N/A"}},{"$f":"IF(INDIRECT(\"c\" & (VLOOKUP(Switch!$D$40,$F$2:$G$44,2,FALSE)+ROW()-2))=Switch!$D$40,INDIRECT(\"a\" & (VLOOKUP(Switch!$D$40,$F$2:$G$44,2,FALSE)+ROW()-2)),\"\")","v":{"$error":"#N/A"}},{"$f":"IF(INDIRECT(\"c\" & (VLOOKUP(Switch!$D$52,$F$2:$G$44,2,FALSE)+ROW()-2))=Switch!$D$52,INDIRECT(\"a\" & (VLOOKUP(Switch!$D$52,$F$2:$G$44,2,FALSE)+ROW()-2)),\"\")","v":{"$error":"#N/A"}},{"$f":"IF(INDIRECT(\"c\" & (VLOOKUP(Switch!$D$53,$F$2:$G$44,2,FALSE)+ROW()-2))=Switch!$D$53,INDIRECT(\"a\" & (VLOOKUP(Switch!$D$53,$F$2:$G$44,2,FALSE)+ROW()-2)),\"\")","v":{"$error":"#N/A"}},{"$f":"IF(INDIRECT(\"c\" & (VLOOKUP(Switch!$D$54,$F$2:$G$44,2,FALSE)+ROW()-2))=Switch!$D$54,INDIRECT(\"a\" & (VLOOKUP(Switch!$D$54,$F$2:$G$44,2,FALSE)+ROW()-2)),\"\")","v":{"$error":"#N/A"}},{"$f":"IF(INDIRECT(\"c\" & (VLOOKUP(Switch!$D$55,$F$2:$G$44,2,FALSE)+ROW()-2))=Switch!$D$55,INDIRECT(\"a\" & (VLOOKUP(Switch!$D$55,$F$2:$G$44,2,FALSE)+ROW()-2)),\"\")","v":{"$error":"#N/A"}},{"$f":"IF(INDIRECT(\"c\" & (VLOOKUP(Switch!$D$56,$F$2:$G$44,2,FALSE)+ROW()-2))=Switch!$D$56,INDIRECT(\"a\" & (VLOOKUP(Switch!$D$56,$F$2:$G$44,2,FALSE)+ROW()-2)),\"\")","v":{"$error":"#N/A"}},{"$f":"IF(INDIRECT(\"c\" & (VLOOKUP(Switch!$D$57,$F$2:$G$44,2,FALSE)+ROW()-2))=Switch!$D$57,INDIRECT(\"a\" & (VLOOKUP(Switch!$D$57,$F$2:$G$44,2,FALSE)+ROW()-2)),\"\")","v":{"$error":"#N/A"}},{"$f":"IF(INDIRECT(\"c\" & (VLOOKUP(Switch!$D$58,$F$2:$G$44,2,FALSE)+ROW()-2))=Switch!$D$58,INDIRECT(\"a\" & (VLOOKUP(Switch!$D$58,$F$2:$G$44,2,FALSE)+ROW()-2)),\"\")","v":{"$error":"#N/A"}},{"$f":"IF(INDIRECT(\"c\" & (VLOOKUP(Switch!$D$59,$F$2:$G$44,2,FALSE)+ROW()-2))=Switch!$D$59,INDIRECT(\"a\" & (VLOOKUP(Switch!$D$59,$F$2:$G$44,2,FALSE)+ROW()-2)),\"\")","v":{"$error":"#N/A"}},{"$f":"IF(INDIRECT(\"c\" & (VLOOKUP(Switch!$D$60,$F$2:$G$44,2,FALSE)+ROW()-2))=Switch!$D$60,INDIRECT(\"a\" & (VLOOKUP(Switch!$D$60,$F$2:$G$44,2,FALSE)+ROW()-2)),\"\")","v":{"$error":"#N/A"}},{"$f":"IF(INDIRECT(\"c\" & (VLOOKUP(Switch!$D$61,$F$2:$G$44,2,FALSE)+ROW()-2))=Switch!$D$61,INDIRECT(\"a\" & (VLOOKUP(Switch!$D$61,$F$2:$G$44,2,FALSE)+ROW()-2)),\"\")","v":{"$error":"#N/A"}},{"$f":"IF(INDIRECT(\"c\" & (VLOOKUP(Switch!$D$62,$F$2:$G$44,2,FALSE)+ROW()-2))=Switch!$D$62,INDIRECT(\"a\" & (VLOOKUP(Switch!$D$62,$F$2:$G$44,2,FALSE)+ROW()-2)),\"\")","v":{"$error":"#N/A"}},{"$f":"IF(INDIRECT(\"c\" & (VLOOKUP(Switch!$D$63,$F$2:$G$44,2,FALSE)+ROW()-2))=Switch!$D$63,INDIRECT(\"a\" & (VLOOKUP(Switch!$D$63,$F$2:$G$44,2,FALSE)+ROW()-2)),\"\")","v":{"$error":"#N/A"}},{"$f":"IF(INDIRECT(\"c\" & (VLOOKUP(Switch!$D$64,$F$2:$G$44,2,FALSE)+ROW()-2))=Switch!$D$64,INDIRECT(\"a\" & (VLOOKUP(Switch!$D$64,$F$2:$G$44,2,FALSE)+ROW()-2)),\"\")","v":{"$error":"#N/A"}},{"$f":"IF(INDIRECT(\"c\" & (VLOOKUP(Switch!$D$65,$F$2:$G$44,2,FALSE)+ROW()-2))=Switch!$D$65,INDIRECT(\"a\" & (VLOOKUP(Switch!$D$65,$F$2:$G$44,2,FALSE)+ROW()-2)),\"\")","v":{"$error":"#N/A"}},{"$f":"IF(INDIRECT(\"c\" & (VLOOKUP(Switch!$D$66,$F$2:$G$44,2,FALSE)+ROW()-2))=Switch!$D$66,INDIRECT(\"a\" & (VLOOKUP(Switch!$D$66,$F$2:$G$44,2,FALSE)+ROW()-2)),\"\")","v":{"$error":"#N/A"}}]
["Laurium Flexible Prescient Fund B4","LFPA1","Prescient Management Company Ltd",{"$f":"ROW()","v":455},null,null,{"$f":"VLOOKUP(F455,$C$2:$D$637,2,FALSE)","v":{"$error":"#N/A"}},{"$f":"IF(INDIRECT(\"c\" & (VLOOKUP(Switch!$D$26,$F$2:$G$44,2,FALSE)+ROW()-2))=Switch!$D$26,INDIRECT(\"a\" & (VLOOKUP(Switch!$D$26,$F$2:$G$44,2,FALSE)+ROW()-2)),\"\")","v":{"$error":"#N/A"}},{"$f":"IF(INDIRECT(\"c\" & (VLOOKUP(Switch!$D$27,$F$2:$G$44,2,FALSE)+ROW()-2))=Switch!$D$27,INDIRECT(\"a\" & (VLOOKUP(Switch!$D$27,$F$2:$G$44,2,FALSE)+ROW()-2)),\"\")","v":{"$error":"#N/A"}},{"$f":"IF(INDIRECT(\"c\" & (VLOOKUP(Switch!$D$28,$F$2:$G$44,2,FALSE)+ROW()-2))=Switch!$D$28,INDIRECT(\"a\" & (VLOOKUP(Switch!$D$28,$F$2:$G$44,2,FALSE)+ROW()-2)),\"\")","v":{"$error":"#N/A"}},{"$f":"IF(INDIRECT(\"c\" & (VLOOKUP(Switch!$D$29,$F$2:$G$44,2,FALSE)+ROW()-2))=Switch!$D$29,INDIRECT(\"a\" & (VLOOKUP(Switch!$D$29,$F$2:$G$44,2,FALSE)+ROW()-2)),\"\")","v":{"$error":"#N/A"}},{"$f":"IF(INDIRECT(\"c\" & (VLOOKUP(Switch!$D$30,$F$2:$G$44,2,FALSE)+ROW()-2))=Switch!$D$30,INDIRECT(\"a\" & (VLOOKUP(Switch!$D$30,$F$2:$G$44,2,FALSE)+ROW()-2)),\"\")","v":{"$error":"#N/A"}},{"$f":"IF(INDIRECT(\"c\" & (VLOOKUP(Switch!$D$31,$F$2:$G$44,2,FALSE)+ROW()-2))=Switch!$D$31,INDIRECT(\"a\" & (VLOOKUP(Switch!$D$31,$F$2:$G$44,2,FALSE)+ROW()-2)),\"\")","v":{"$error":"#N/A"}},{"$f":"IF(INDIRECT(\"c\" & (VLOOKUP(Switch!$D$32,$F$2:$G$44,2,FALSE)+ROW()-2))=Switch!$D$32,INDIRECT(\"a\" & (VLOOKUP(Switch!$D$32,$F$2:$G$44,2,FALSE)+ROW()-2)),\"\")","v":{"$error":"#N/A"}},{"$f":"IF(INDIRECT(\"c\" & (VLOOKUP(Switch!$D$33,$F$2:$G$44,2,FALSE)+ROW()-2))=Switch!$D$33,INDIRECT(\"a\" & (VLOOKUP(Switch!$D$33,$F$2:$G$44,2,FALSE)+ROW()-2)),\"\")","v":{"$error":"#N/A"}},{"$f":"IF(INDIRECT(\"c\" & (VLOOKUP(Switch!$D$34,$F$2:$G$44,2,FALSE)+ROW()-2))=Switch!$D$34,INDIRECT(\"a\" & (VLOOKUP(Switch!$D$34,$F$2:$G$44,2,FALSE)+ROW()-2)),\"\")","v":{"$error":"#N/A"}},{"$f":"IF(INDIRECT(\"c\" & (VLOOKUP(Switch!$D$35,$F$2:$G$44,2,FALSE)+ROW()-2))=Switch!$D$35,INDIRECT(\"a\" & (VLOOKUP(Switch!$D$35,$F$2:$G$44,2,FALSE)+ROW()-2)),\"\")","v":{"$error":"#N/A"}},{"$f":"IF(INDIRECT(\"c\" & (VLOOKUP(Switch!$D$36,$F$2:$G$44,2,FALSE)+ROW()-2))=Switch!$D$36,INDIRECT(\"a\" & (VLOOKUP(Switch!$D$36,$F$2:$G$44,2,FALSE)+ROW()-2)),\"\")","v":{"$error":"#N/A"}},{"$f":"IF(INDIRECT(\"c\" & (VLOOKUP(Switch!$D$37,$F$2:$G$44,2,FALSE)+ROW()-2))=Switch!$D$37,INDIRECT(\"a\" & (VLOOKUP(Switch!$D$37,$F$2:$G$44,2,FALSE)+ROW()-2)),\"\")","v":{"$error":"#N/A"}},{"$f":"IF(INDIRECT(\"c\" & (VLOOKUP(Switch!$D$38,$F$2:$G$44,2,FALSE)+ROW()-2))=Switch!$D$38,INDIRECT(\"a\" & (VLOOKUP(Switch!$D$38,$F$2:$G$44,2,FALSE)+ROW()-2)),\"\")","v":{"$error":"#N/A"}},{"$f":"IF(INDIRECT(\"c\" & (VLOOKUP(Switch!$D$39,$F$2:$G$44,2,FALSE)+ROW()-2))=Switch!$D$39,INDIRECT(\"a\" & (VLOOKUP(Switch!$D$39,$F$2:$G$44,2,FALSE)+ROW()-2)),\"\")","v":{"$error":"#N/A"}},{"$f":"IF(INDIRECT(\"c\" & (VLOOKUP(Switch!$D$40,$F$2:$G$44,2,FALSE)+ROW()-2))=Switch!$D$40,INDIRECT(\"a\" & (VLOOKUP(Switch!$D$40,$F$2:$G$44,2,FALSE)+ROW()-2)),\"\")","v":{"$error":"#N/A"}},{"$f":"IF(INDIRECT(\"c\" & (VLOOKUP(Switch!$D$52,$F$2:$G$44,2,FALSE)+ROW()-2))=Switch!$D$52,INDIRECT(\"a\" & (VLOOKUP(Switch!$D$52,$F$2:$G$44,2,FALSE)+ROW()-2)),\"\")","v":{"$error":"#N/A"}},{"$f":"IF(INDIRECT(\"c\" & (VLOOKUP(Switch!$D$53,$F$2:$G$44,2,FALSE)+ROW()-2))=Switch!$D$53,INDIRECT(\"a\" & (VLOOKUP(Switch!$D$53,$F$2:$G$44,2,FALSE)+ROW()-2)),\"\")","v":{"$error":"#N/A"}},{"$f":"IF(INDIRECT(\"c\" & (VLOOKUP(Switch!$D$54,$F$2:$G$44,2,FALSE)+ROW()-2))=Switch!$D$54,INDIRECT(\"a\" & (VLOOKUP(Switch!$D$54,$F$2:$G$44,2,FALSE)+ROW()-2)),\"\")","v":{"$error":"#N/A"}},{"$f":"IF(INDIRECT(\"c\" & (VLOOKUP(Switch!$D$55,$F$2:$G$44,2,FALSE)+ROW()-2))=Switch!$D$55,INDIRECT(\"a\" & (VLOOKUP(Switch!$D$55,$F$2:$G$44,2,FALSE)+ROW()-2)),\"\")","v":{"$error":"#N/A"}},{"$f":"IF(INDIRECT(\"c\" & (VLOOKUP(Switch!$D$56,$F$2:$G$44,2,FALSE)+ROW()-2))=Switch!$D$56,INDIRECT(\"a\" & (VLOOKUP(Switch!$D$56,$F$2:$G$44,2,FALSE)+ROW()-2)),\"\")","v":{"$error":"#N/A"}},{"$f":"IF(INDIRECT(\"c\" & (VLOOKUP(Switch!$D$57,$F$2:$G$44,2,FALSE)+ROW()-2))=Switch!$D$57,INDIRECT(\"a\" & (VLOOKUP(Switch!$D$57,$F$2:$G$44,2,FALSE)+ROW()-2)),\"\")","v":{"$error":"#N/A"}},{"$f":"IF(INDIRECT(\"c\" & (VLOOKUP(Switch!$D$58,$F$2:$G$44,2,FALSE)+ROW()-2))=Switch!$D$58,INDIRECT(\"a\" & (VLOOKUP(Switch!$D$58,$F$2:$G$44,2,FALSE)+ROW()-2)),\"\")","v":{"$error":"#N/A"}},{"$f":"IF(INDIRECT(\"c\" & (VLOOKUP(Switch!$D$59,$F$2:$G$44,2,FALSE)+ROW()-2))=Switch!$D$59,INDIRECT(\"a\" & (VLOOKUP(Switch!$D$59,$F$2:$G$44,2,FALSE)+ROW()-2)),\"\")","v":{"$error":"#N/A"}},{"$f":"IF(INDIRECT(\"c\" & (VLOOKUP(Switch!$D$60,$F$2:$G$44,2,FALSE)+ROW()-2))=Switch!$D$60,INDIRECT(\"a\" & (VLOOKUP(Switch!$D$60,$F$2:$G$44,2,FALSE)+ROW()-2)),\"\")","v":{"$error":"#N/A"}},{"$f":"IF(INDIRECT(\"c\" & (VLOOKUP(Switch!$D$61,$F$2:$G$44,2,FALSE)+ROW()-2))=Switch!$D$61,INDIRECT(\"a\" & (VLOOKUP(Switch!$D$61,$F$2:$G$44,2,FALSE)+ROW()-2)),\"\")","v":{"$error":"#N/A"}},{"$f":"IF(INDIRECT(\"c\" & (VLOOKUP(Switch!$D$62,$F$2:$G$44,2,FALSE)+ROW()-2))=Switch!$D$62,INDIRECT(\"a\" & (VLOOKUP(Switch!$D$62,$F$2:$G$44,2,FALSE)+ROW()-2)),\"\")","v":{"$error":"#N/A"}},{"$f":"IF(INDIRECT(\"c\" & (VLOOKUP(Switch!$D$63,$F$2:$G$44,2,FALSE)+ROW()-2))=Switch!$D$63,INDIRECT(\"a\" & (VLOOKUP(Switch!$D$63,$F$2:$G$44,2,FALSE)+ROW()-2)),\"\")","v":{"$error":"#N/A"}},{"$f":"IF(INDIRECT(\"c\" & (VLOOKUP(Switch!$D$64,$F$2:$G$44,2,FALSE)+ROW()-2))=Switch!$D$64,INDIRECT(\"a\" & (VLOOKUP(Switch!$D$64,$F$2:$G$44,2,FALSE)+ROW()-2)),\"\")","v":{"$error":"#N/A"}},{"$f":"IF(INDIRECT(\"c\" & (VLOOKUP(Switch!$D$65,$F$2:$G$44,2,FALSE)+ROW()-2))=Switch!$D$65,INDIRECT(\"a\" & (VLOOKUP(Switch!$D$65,$F$2:$G$44,2,FALSE)+ROW()-2)),\"\")","v":{"$error":"#N/A"}},{"$f":"IF(INDIRECT(\"c\" & (VLOOKUP(Switch!$D$66,$F$2:$G$44,2,FALSE)+ROW()-2))=Switch!$D$66,INDIRECT(\"a\" & (VLOOKUP(Switch!$D$66,$F$2:$G$44,2,FALSE)+ROW()-2)),\"\")","v":{"$error":"#N/A"}}]
["Laurium Balanced Prescient Fund","LBPA2","Prescient Management Company Ltd",{"$f":"ROW()","v":456},null,null,{"$f":"VLOOKUP(F456,$C$2:$D$637,2,FALSE)","v":{"$error":"#N/A"}},{"$f":"IF(INDIRECT(\"c\" & (VLOOKUP(Switch!$D$26,$F$2:$G$44,2,FALSE)+ROW()-2))=Switch!$D$26,INDIRECT(\"a\" & (VLOOKUP(Switch!$D$26,$F$2:$G$44,2,FALSE)+ROW()-2)),\"\")","v":{"$error":"#N/A"}},{"$f":"IF(INDIRECT(\"c\" & (VLOOKUP(Switch!$D$27,$F$2:$G$44,2,FALSE)+ROW()-2))=Switch!$D$27,INDIRECT(\"a\" & (VLOOKUP(Switch!$D$27,$F$2:$G$44,2,FALSE)+ROW()-2)),\"\")","v":{"$error":"#N/A"}},{"$f":"IF(INDIRECT(\"c\" & (VLOOKUP(Switch!$D$28,$F$2:$G$44,2,FALSE)+ROW()-2))=Switch!$D$28,INDIRECT(\"a\" & (VLOOKUP(Switch!$D$28,$F$2:$G$44,2,FALSE)+ROW()-2)),\"\")","v":{"$error":"#N/A"}},{"$f":"IF(INDIRECT(\"c\" & (VLOOKUP(Switch!$D$29,$F$2:$G$44,2,FALSE)+ROW()-2))=Switch!$D$29,INDIRECT(\"a\" & (VLOOKUP(Switch!$D$29,$F$2:$G$44,2,FALSE)+ROW()-2)),\"\")","v":{"$error":"#N/A"}},{"$f":"IF(INDIRECT(\"c\" & (VLOOKUP(Switch!$D$30,$F$2:$G$44,2,FALSE)+ROW()-2))=Switch!$D$30,INDIRECT(\"a\" & (VLOOKUP(Switch!$D$30,$F$2:$G$44,2,FALSE)+ROW()-2)),\"\")","v":{"$error":"#N/A"}},{"$f":"IF(INDIRECT(\"c\" & (VLOOKUP(Switch!$D$31,$F$2:$G$44,2,FALSE)+ROW()-2))=Switch!$D$31,INDIRECT(\"a\" & (VLOOKUP(Switch!$D$31,$F$2:$G$44,2,FALSE)+ROW()-2)),\"\")","v":{"$error":"#N/A"}},{"$f":"IF(INDIRECT(\"c\" & (VLOOKUP(Switch!$D$32,$F$2:$G$44,2,FALSE)+ROW()-2))=Switch!$D$32,INDIRECT(\"a\" & (VLOOKUP(Switch!$D$32,$F$2:$G$44,2,FALSE)+ROW()-2)),\"\")","v":{"$error":"#N/A"}},{"$f":"IF(INDIRECT(\"c\" & (VLOOKUP(Switch!$D$33,$F$2:$G$44,2,FALSE)+ROW()-2))=Switch!$D$33,INDIRECT(\"a\" & (VLOOKUP(Switch!$D$33,$F$2:$G$44,2,FALSE)+ROW()-2)),\"\")","v":{"$error":"#N/A"}},{"$f":"IF(INDIRECT(\"c\" & (VLOOKUP(Switch!$D$34,$F$2:$G$44,2,FALSE)+ROW()-2))=Switch!$D$34,INDIRECT(\"a\" & (VLOOKUP(Switch!$D$34,$F$2:$G$44,2,FALSE)+ROW()-2)),\"\")","v":{"$error":"#N/A"}},{"$f":"IF(INDIRECT(\"c\" & (VLOOKUP(Switch!$D$35,$F$2:$G$44,2,FALSE)+ROW()-2))=Switch!$D$35,INDIRECT(\"a\" & (VLOOKUP(Switch!$D$35,$F$2:$G$44,2,FALSE)+ROW()-2)),\"\")","v":{"$error":"#N/A"}},{"$f":"IF(INDIRECT(\"c\" & (VLOOKUP(Switch!$D$36,$F$2:$G$44,2,FALSE)+ROW()-2))=Switch!$D$36,INDIRECT(\"a\" & (VLOOKUP(Switch!$D$36,$F$2:$G$44,2,FALSE)+ROW()-2)),\"\")","v":{"$error":"#N/A"}},{"$f":"IF(INDIRECT(\"c\" & (VLOOKUP(Switch!$D$37,$F$2:$G$44,2,FALSE)+ROW()-2))=Switch!$D$37,INDIRECT(\"a\" & (VLOOKUP(Switch!$D$37,$F$2:$G$44,2,FALSE)+ROW()-2)),\"\")","v":{"$error":"#N/A"}},{"$f":"IF(INDIRECT(\"c\" & (VLOOKUP(Switch!$D$38,$F$2:$G$44,2,FALSE)+ROW()-2))=Switch!$D$38,INDIRECT(\"a\" & (VLOOKUP(Switch!$D$38,$F$2:$G$44,2,FALSE)+ROW()-2)),\"\")","v":{"$error":"#N/A"}},{"$f":"IF(INDIRECT(\"c\" & (VLOOKUP(Switch!$D$39,$F$2:$G$44,2,FALSE)+ROW()-2))=Switch!$D$39,INDIRECT(\"a\" & (VLOOKUP(Switch!$D$39,$F$2:$G$44,2,FALSE)+ROW()-2)),\"\")","v":{"$error":"#N/A"}},{"$f":"IF(INDIRECT(\"c\" & (VLOOKUP(Switch!$D$40,$F$2:$G$44,2,FALSE)+ROW()-2))=Switch!$D$40,INDIRECT(\"a\" & (VLOOKUP(Switch!$D$40,$F$2:$G$44,2,FALSE)+ROW()-2)),\"\")","v":{"$error":"#N/A"}},{"$f":"IF(INDIRECT(\"c\" & (VLOOKUP(Switch!$D$52,$F$2:$G$44,2,FALSE)+ROW()-2))=Switch!$D$52,INDIRECT(\"a\" & (VLOOKUP(Switch!$D$52,$F$2:$G$44,2,FALSE)+ROW()-2)),\"\")","v":{"$error":"#N/A"}},{"$f":"IF(INDIRECT(\"c\" & (VLOOKUP(Switch!$D$53,$F$2:$G$44,2,FALSE)+ROW()-2))=Switch!$D$53,INDIRECT(\"a\" & (VLOOKUP(Switch!$D$53,$F$2:$G$44,2,FALSE)+ROW()-2)),\"\")","v":{"$error":"#N/A"}},{"$f":"IF(INDIRECT(\"c\" & (VLOOKUP(Switch!$D$54,$F$2:$G$44,2,FALSE)+ROW()-2))=Switch!$D$54,INDIRECT(\"a\" & (VLOOKUP(Switch!$D$54,$F$2:$G$44,2,FALSE)+ROW()-2)),\"\")","v":{"$error":"#N/A"}},{"$f":"IF(INDIRECT(\"c\" & (VLOOKUP(Switch!$D$55,$F$2:$G$44,2,FALSE)+ROW()-2))=Switch!$D$55,INDIRECT(\"a\" & (VLOOKUP(Switch!$D$55,$F$2:$G$44,2,FALSE)+ROW()-2)),\"\")","v":{"$error":"#N/A"}},{"$f":"IF(INDIRECT(\"c\" & (VLOOKUP(Switch!$D$56,$F$2:$G$44,2,FALSE)+ROW()-2))=Switch!$D$56,INDIRECT(\"a\" & (VLOOKUP(Switch!$D$56,$F$2:$G$44,2,FALSE)+ROW()-2)),\"\")","v":{"$error":"#N/A"}},{"$f":"IF(INDIRECT(\"c\" & (VLOOKUP(Switch!$D$57,$F$2:$G$44,2,FALSE)+ROW()-2))=Switch!$D$57,INDIRECT(\"a\" & (VLOOKUP(Switch!$D$57,$F$2:$G$44,2,FALSE)+ROW()-2)),\"\")","v":{"$error":"#N/A"}},{"$f":"IF(INDIRECT(\"c\" & (VLOOKUP(Switch!$D$58,$F$2:$G$44,2,FALSE)+ROW()-2))=Switch!$D$58,INDIRECT(\"a\" & (VLOOKUP(Switch!$D$58,$F$2:$G$44,2,FALSE)+ROW()-2)),\"\")","v":{"$error":"#N/A"}},{"$f":"IF(INDIRECT(\"c\" & (VLOOKUP(Switch!$D$59,$F$2:$G$44,2,FALSE)+ROW()-2))=Switch!$D$59,INDIRECT(\"a\" & (VLOOKUP(Switch!$D$59,$F$2:$G$44,2,FALSE)+ROW()-2)),\"\")","v":{"$error":"#N/A"}},{"$f":"IF(INDIRECT(\"c\" & (VLOOKUP(Switch!$D$60,$F$2:$G$44,2,FALSE)+ROW()-2))=Switch!$D$60,INDIRECT(\"a\" & (VLOOKUP(Switch!$D$60,$F$2:$G$44,2,FALSE)+ROW()-2)),\"\")","v":{"$error":"#N/A"}},{"$f":"IF(INDIRECT(\"c\" & (VLOOKUP(Switch!$D$61,$F$2:$G$44,2,FALSE)+ROW()-2))=Switch!$D$61,INDIRECT(\"a\" & (VLOOKUP(Switch!$D$61,$F$2:$G$44,2,FALSE)+ROW()-2)),\"\")","v":{"$error":"#N/A"}},{"$f":"IF(INDIRECT(\"c\" & (VLOOKUP(Switch!$D$62,$F$2:$G$44,2,FALSE)+ROW()-2))=Switch!$D$62,INDIRECT(\"a\" & (VLOOKUP(Switch!$D$62,$F$2:$G$44,2,FALSE)+ROW()-2)),\"\")","v":{"$error":"#N/A"}},{"$f":"IF(INDIRECT(\"c\" & (VLOOKUP(Switch!$D$63,$F$2:$G$44,2,FALSE)+ROW()-2))=Switch!$D$63,INDIRECT(\"a\" & (VLOOKUP(Switch!$D$63,$F$2:$G$44,2,FALSE)+ROW()-2)),\"\")","v":{"$error":"#N/A"}},{"$f":"IF(INDIRECT(\"c\" & (VLOOKUP(Switch!$D$64,$F$2:$G$44,2,FALSE)+ROW()-2))=Switch!$D$64,INDIRECT(\"a\" & (VLOOKUP(Switch!$D$64,$F$2:$G$44,2,FALSE)+ROW()-2)),\"\")","v":{"$error":"#N/A"}},{"$f":"IF(INDIRECT(\"c\" & (VLOOKUP(Switch!$D$65,$F$2:$G$44,2,FALSE)+ROW()-2))=Switch!$D$65,INDIRECT(\"a\" & (VLOOKUP(Switch!$D$65,$F$2:$G$44,2,FALSE)+ROW()-2)),\"\")","v":{"$error":"#N/A"}},{"$f":"IF(INDIRECT(\"c\" & (VLOOKUP(Switch!$D$66,$F$2:$G$44,2,FALSE)+ROW()-2))=Switch!$D$66,INDIRECT(\"a\" & (VLOOKUP(Switch!$D$66,$F$2:$G$44,2,FALSE)+ROW()-2)),\"\")","v":{"$error":"#N/A"}}]
["Laurium Equity Prescient Fund","LEPA1","Prescient Management Company Ltd",{"$f":"ROW()","v":457},null,null,{"$f":"VLOOKUP(F457,$C$2:$D$637,2,FALSE)","v":{"$error":"#N/A"}},{"$f":"IF(INDIRECT(\"c\" & (VLOOKUP(Switch!$D$26,$F$2:$G$44,2,FALSE)+ROW()-2))=Switch!$D$26,INDIRECT(\"a\" & (VLOOKUP(Switch!$D$26,$F$2:$G$44,2,FALSE)+ROW()-2)),\"\")","v":{"$error":"#N/A"}},{"$f":"IF(INDIRECT(\"c\" & (VLOOKUP(Switch!$D$27,$F$2:$G$44,2,FALSE)+ROW()-2))=Switch!$D$27,INDIRECT(\"a\" & (VLOOKUP(Switch!$D$27,$F$2:$G$44,2,FALSE)+ROW()-2)),\"\")","v":{"$error":"#N/A"}},{"$f":"IF(INDIRECT(\"c\" & (VLOOKUP(Switch!$D$28,$F$2:$G$44,2,FALSE)+ROW()-2))=Switch!$D$28,INDIRECT(\"a\" & (VLOOKUP(Switch!$D$28,$F$2:$G$44,2,FALSE)+ROW()-2)),\"\")","v":{"$error":"#N/A"}},{"$f":"IF(INDIRECT(\"c\" & (VLOOKUP(Switch!$D$29,$F$2:$G$44,2,FALSE)+ROW()-2))=Switch!$D$29,INDIRECT(\"a\" & (VLOOKUP(Switch!$D$29,$F$2:$G$44,2,FALSE)+ROW()-2)),\"\")","v":{"$error":"#N/A"}},{"$f":"IF(INDIRECT(\"c\" & (VLOOKUP(Switch!$D$30,$F$2:$G$44,2,FALSE)+ROW()-2))=Switch!$D$30,INDIRECT(\"a\" & (VLOOKUP(Switch!$D$30,$F$2:$G$44,2,FALSE)+ROW()-2)),\"\")","v":{"$error":"#N/A"}},{"$f":"IF(INDIRECT(\"c\" & (VLOOKUP(Switch!$D$31,$F$2:$G$44,2,FALSE)+ROW()-2))=Switch!$D$31,INDIRECT(\"a\" & (VLOOKUP(Switch!$D$31,$F$2:$G$44,2,FALSE)+ROW()-2)),\"\")","v":{"$error":"#N/A"}},{"$f":"IF(INDIRECT(\"c\" & (VLOOKUP(Switch!$D$32,$F$2:$G$44,2,FALSE)+ROW()-2))=Switch!$D$32,INDIRECT(\"a\" & (VLOOKUP(Switch!$D$32,$F$2:$G$44,2,FALSE)+ROW()-2)),\"\")","v":{"$error":"#N/A"}},{"$f":"IF(INDIRECT(\"c\" & (VLOOKUP(Switch!$D$33,$F$2:$G$44,2,FALSE)+ROW()-2))=Switch!$D$33,INDIRECT(\"a\" & (VLOOKUP(Switch!$D$33,$F$2:$G$44,2,FALSE)+ROW()-2)),\"\")","v":{"$error":"#N/A"}},{"$f":"IF(INDIRECT(\"c\" & (VLOOKUP(Switch!$D$34,$F$2:$G$44,2,FALSE)+ROW()-2))=Switch!$D$34,INDIRECT(\"a\" & (VLOOKUP(Switch!$D$34,$F$2:$G$44,2,FALSE)+ROW()-2)),\"\")","v":{"$error":"#N/A"}},{"$f":"IF(INDIRECT(\"c\" & (VLOOKUP(Switch!$D$35,$F$2:$G$44,2,FALSE)+ROW()-2))=Switch!$D$35,INDIRECT(\"a\" & (VLOOKUP(Switch!$D$35,$F$2:$G$44,2,FALSE)+ROW()-2)),\"\")","v":{"$error":"#N/A"}},{"$f":"IF(INDIRECT(\"c\" & (VLOOKUP(Switch!$D$36,$F$2:$G$44,2,FALSE)+ROW()-2))=Switch!$D$36,INDIRECT(\"a\" & (VLOOKUP(Switch!$D$36,$F$2:$G$44,2,FALSE)+ROW()-2)),\"\")","v":{"$error":"#N/A"}},{"$f":"IF(INDIRECT(\"c\" & (VLOOKUP(Switch!$D$37,$F$2:$G$44,2,FALSE)+ROW()-2))=Switch!$D$37,INDIRECT(\"a\" & (VLOOKUP(Switch!$D$37,$F$2:$G$44,2,FALSE)+ROW()-2)),\"\")","v":{"$error":"#N/A"}},{"$f":"IF(INDIRECT(\"c\" & (VLOOKUP(Switch!$D$38,$F$2:$G$44,2,FALSE)+ROW()-2))=Switch!$D$38,INDIRECT(\"a\" & (VLOOKUP(Switch!$D$38,$F$2:$G$44,2,FALSE)+ROW()-2)),\"\")","v":{"$error":"#N/A"}},{"$f":"IF(INDIRECT(\"c\" & (VLOOKUP(Switch!$D$39,$F$2:$G$44,2,FALSE)+ROW()-2))=Switch!$D$39,INDIRECT(\"a\" & (VLOOKUP(Switch!$D$39,$F$2:$G$44,2,FALSE)+ROW()-2)),\"\")","v":{"$error":"#N/A"}},{"$f":"IF(INDIRECT(\"c\" & (VLOOKUP(Switch!$D$40,$F$2:$G$44,2,FALSE)+ROW()-2))=Switch!$D$40,INDIRECT(\"a\" & (VLOOKUP(Switch!$D$40,$F$2:$G$44,2,FALSE)+ROW()-2)),\"\")","v":{"$error":"#N/A"}},{"$f":"IF(INDIRECT(\"c\" & (VLOOKUP(Switch!$D$52,$F$2:$G$44,2,FALSE)+ROW()-2))=Switch!$D$52,INDIRECT(\"a\" & (VLOOKUP(Switch!$D$52,$F$2:$G$44,2,FALSE)+ROW()-2)),\"\")","v":{"$error":"#N/A"}},{"$f":"IF(INDIRECT(\"c\" & (VLOOKUP(Switch!$D$53,$F$2:$G$44,2,FALSE)+ROW()-2))=Switch!$D$53,INDIRECT(\"a\" & (VLOOKUP(Switch!$D$53,$F$2:$G$44,2,FALSE)+ROW()-2)),\"\")","v":{"$error":"#N/A"}},{"$f":"IF(INDIRECT(\"c\" & (VLOOKUP(Switch!$D$54,$F$2:$G$44,2,FALSE)+ROW()-2))=Switch!$D$54,INDIRECT(\"a\" & (VLOOKUP(Switch!$D$54,$F$2:$G$44,2,FALSE)+ROW()-2)),\"\")","v":{"$error":"#N/A"}},{"$f":"IF(INDIRECT(\"c\" & (VLOOKUP(Switch!$D$55,$F$2:$G$44,2,FALSE)+ROW()-2))=Switch!$D$55,INDIRECT(\"a\" & (VLOOKUP(Switch!$D$55,$F$2:$G$44,2,FALSE)+ROW()-2)),\"\")","v":{"$error":"#N/A"}},{"$f":"IF(INDIRECT(\"c\" & (VLOOKUP(Switch!$D$56,$F$2:$G$44,2,FALSE)+ROW()-2))=Switch!$D$56,INDIRECT(\"a\" & (VLOOKUP(Switch!$D$56,$F$2:$G$44,2,FALSE)+ROW()-2)),\"\")","v":{"$error":"#N/A"}},{"$f":"IF(INDIRECT(\"c\" & (VLOOKUP(Switch!$D$57,$F$2:$G$44,2,FALSE)+ROW()-2))=Switch!$D$57,INDIRECT(\"a\" & (VLOOKUP(Switch!$D$57,$F$2:$G$44,2,FALSE)+ROW()-2)),\"\")","v":{"$error":"#N/A"}},{"$f":"IF(INDIRECT(\"c\" & (VLOOKUP(Switch!$D$58,$F$2:$G$44,2,FALSE)+ROW()-2))=Switch!$D$58,INDIRECT(\"a\" & (VLOOKUP(Switch!$D$58,$F$2:$G$44,2,FALSE)+ROW()-2)),\"\")","v":{"$error":"#N/A"}},{"$f":"IF(INDIRECT(\"c\" & (VLOOKUP(Switch!$D$59,$F$2:$G$44,2,FALSE)+ROW()-2))=Switch!$D$59,INDIRECT(\"a\" & (VLOOKUP(Switch!$D$59,$F$2:$G$44,2,FALSE)+ROW()-2)),\"\")","v":{"$error":"#N/A"}},{"$f":"IF(INDIRECT(\"c\" & (VLOOKUP(Switch!$D$60,$F$2:$G$44,2,FALSE)+ROW()-2))=Switch!$D$60,INDIRECT(\"a\" & (VLOOKUP(Switch!$D$60,$F$2:$G$44,2,FALSE)+ROW()-2)),\"\")","v":{"$error":"#N/A"}},{"$f":"IF(INDIRECT(\"c\" & (VLOOKUP(Switch!$D$61,$F$2:$G$44,2,FALSE)+ROW()-2))=Switch!$D$61,INDIRECT(\"a\" & (VLOOKUP(Switch!$D$61,$F$2:$G$44,2,FALSE)+ROW()-2)),\"\")","v":{"$error":"#N/A"}},{"$f":"IF(INDIRECT(\"c\" & (VLOOKUP(Switch!$D$62,$F$2:$G$44,2,FALSE)+ROW()-2))=Switch!$D$62,INDIRECT(\"a\" & (VLOOKUP(Switch!$D$62,$F$2:$G$44,2,FALSE)+ROW()-2)),\"\")","v":{"$error":"#N/A"}},{"$f":"IF(INDIRECT(\"c\" & (VLOOKUP(Switch!$D$63,$F$2:$G$44,2,FALSE)+ROW()-2))=Switch!$D$63,INDIRECT(\"a\" & (VLOOKUP(Switch!$D$63,$F$2:$G$44,2,FALSE)+ROW()-2)),\"\")","v":{"$error":"#N/A"}},{"$f":"IF(INDIRECT(\"c\" & (VLOOKUP(Switch!$D$64,$F$2:$G$44,2,FALSE)+ROW()-2))=Switch!$D$64,INDIRECT(\"a\" & (VLOOKUP(Switch!$D$64,$F$2:$G$44,2,FALSE)+ROW()-2)),\"\")","v":{"$error":"#N/A"}},{"$f":"IF(INDIRECT(\"c\" & (VLOOKUP(Switch!$D$65,$F$2:$G$44,2,FALSE)+ROW()-2))=Switch!$D$65,INDIRECT(\"a\" & (VLOOKUP(Switch!$D$65,$F$2:$G$44,2,FALSE)+ROW()-2)),\"\")","v":{"$error":"#N/A"}},{"$f":"IF(INDIRECT(\"c\" & (VLOOKUP(Switch!$D$66,$F$2:$G$44,2,FALSE)+ROW()-2))=Switch!$D$66,INDIRECT(\"a\" & (VLOOKUP(Switch!$D$66,$F$2:$G$44,2,FALSE)+ROW()-2)),\"\")","v":{"$error":"#N/A"}}]
["Prescient Absolute Balanced Fund A1","PBFF","Prescient Management Company Ltd",{"$f":"ROW()","v":458},null,null,{"$f":"VLOOKUP(F458,$C$2:$D$637,2,FALSE)","v":{"$error":"#N/A"}},{"$f":"IF(INDIRECT(\"c\" & (VLOOKUP(Switch!$D$26,$F$2:$G$44,2,FALSE)+ROW()-2))=Switch!$D$26,INDIRECT(\"a\" & (VLOOKUP(Switch!$D$26,$F$2:$G$44,2,FALSE)+ROW()-2)),\"\")","v":{"$error":"#N/A"}},{"$f":"IF(INDIRECT(\"c\" & (VLOOKUP(Switch!$D$27,$F$2:$G$44,2,FALSE)+ROW()-2))=Switch!$D$27,INDIRECT(\"a\" & (VLOOKUP(Switch!$D$27,$F$2:$G$44,2,FALSE)+ROW()-2)),\"\")","v":{"$error":"#N/A"}},{"$f":"IF(INDIRECT(\"c\" & (VLOOKUP(Switch!$D$28,$F$2:$G$44,2,FALSE)+ROW()-2))=Switch!$D$28,INDIRECT(\"a\" & (VLOOKUP(Switch!$D$28,$F$2:$G$44,2,FALSE)+ROW()-2)),\"\")","v":{"$error":"#N/A"}},{"$f":"IF(INDIRECT(\"c\" & (VLOOKUP(Switch!$D$29,$F$2:$G$44,2,FALSE)+ROW()-2))=Switch!$D$29,INDIRECT(\"a\" & (VLOOKUP(Switch!$D$29,$F$2:$G$44,2,FALSE)+ROW()-2)),\"\")","v":{"$error":"#N/A"}},{"$f":"IF(INDIRECT(\"c\" & (VLOOKUP(Switch!$D$30,$F$2:$G$44,2,FALSE)+ROW()-2))=Switch!$D$30,INDIRECT(\"a\" & (VLOOKUP(Switch!$D$30,$F$2:$G$44,2,FALSE)+ROW()-2)),\"\")","v":{"$error":"#N/A"}},{"$f":"IF(INDIRECT(\"c\" & (VLOOKUP(Switch!$D$31,$F$2:$G$44,2,FALSE)+ROW()-2))=Switch!$D$31,INDIRECT(\"a\" & (VLOOKUP(Switch!$D$31,$F$2:$G$44,2,FALSE)+ROW()-2)),\"\")","v":{"$error":"#N/A"}},{"$f":"IF(INDIRECT(\"c\" & (VLOOKUP(Switch!$D$32,$F$2:$G$44,2,FALSE)+ROW()-2))=Switch!$D$32,INDIRECT(\"a\" & (VLOOKUP(Switch!$D$32,$F$2:$G$44,2,FALSE)+ROW()-2)),\"\")","v":{"$error":"#N/A"}},{"$f":"IF(INDIRECT(\"c\" & (VLOOKUP(Switch!$D$33,$F$2:$G$44,2,FALSE)+ROW()-2))=Switch!$D$33,INDIRECT(\"a\" & (VLOOKUP(Switch!$D$33,$F$2:$G$44,2,FALSE)+ROW()-2)),\"\")","v":{"$error":"#N/A"}},{"$f":"IF(INDIRECT(\"c\" & (VLOOKUP(Switch!$D$34,$F$2:$G$44,2,FALSE)+ROW()-2))=Switch!$D$34,INDIRECT(\"a\" & (VLOOKUP(Switch!$D$34,$F$2:$G$44,2,FALSE)+ROW()-2)),\"\")","v":{"$error":"#N/A"}},{"$f":"IF(INDIRECT(\"c\" & (VLOOKUP(Switch!$D$35,$F$2:$G$44,2,FALSE)+ROW()-2))=Switch!$D$35,INDIRECT(\"a\" & (VLOOKUP(Switch!$D$35,$F$2:$G$44,2,FALSE)+ROW()-2)),\"\")","v":{"$error":"#N/A"}},{"$f":"IF(INDIRECT(\"c\" & (VLOOKUP(Switch!$D$36,$F$2:$G$44,2,FALSE)+ROW()-2))=Switch!$D$36,INDIRECT(\"a\" & (VLOOKUP(Switch!$D$36,$F$2:$G$44,2,FALSE)+ROW()-2)),\"\")","v":{"$error":"#N/A"}},{"$f":"IF(INDIRECT(\"c\" & (VLOOKUP(Switch!$D$37,$F$2:$G$44,2,FALSE)+ROW()-2))=Switch!$D$37,INDIRECT(\"a\" & (VLOOKUP(Switch!$D$37,$F$2:$G$44,2,FALSE)+ROW()-2)),\"\")","v":{"$error":"#N/A"}},{"$f":"IF(INDIRECT(\"c\" & (VLOOKUP(Switch!$D$38,$F$2:$G$44,2,FALSE)+ROW()-2))=Switch!$D$38,INDIRECT(\"a\" & (VLOOKUP(Switch!$D$38,$F$2:$G$44,2,FALSE)+ROW()-2)),\"\")","v":{"$error":"#N/A"}},{"$f":"IF(INDIRECT(\"c\" & (VLOOKUP(Switch!$D$39,$F$2:$G$44,2,FALSE)+ROW()-2))=Switch!$D$39,INDIRECT(\"a\" & (VLOOKUP(Switch!$D$39,$F$2:$G$44,2,FALSE)+ROW()-2)),\"\")","v":{"$error":"#N/A"}},{"$f":"IF(INDIRECT(\"c\" & (VLOOKUP(Switch!$D$40,$F$2:$G$44,2,FALSE)+ROW()-2))=Switch!$D$40,INDIRECT(\"a\" & (VLOOKUP(Switch!$D$40,$F$2:$G$44,2,FALSE)+ROW()-2)),\"\")","v":{"$error":"#N/A"}},{"$f":"IF(INDIRECT(\"c\" & (VLOOKUP(Switch!$D$52,$F$2:$G$44,2,FALSE)+ROW()-2))=Switch!$D$52,INDIRECT(\"a\" & (VLOOKUP(Switch!$D$52,$F$2:$G$44,2,FALSE)+ROW()-2)),\"\")","v":{"$error":"#N/A"}},{"$f":"IF(INDIRECT(\"c\" & (VLOOKUP(Switch!$D$53,$F$2:$G$44,2,FALSE)+ROW()-2))=Switch!$D$53,INDIRECT(\"a\" & (VLOOKUP(Switch!$D$53,$F$2:$G$44,2,FALSE)+ROW()-2)),\"\")","v":{"$error":"#N/A"}},{"$f":"IF(INDIRECT(\"c\" & (VLOOKUP(Switch!$D$54,$F$2:$G$44,2,FALSE)+ROW()-2))=Switch!$D$54,INDIRECT(\"a\" & (VLOOKUP(Switch!$D$54,$F$2:$G$44,2,FALSE)+ROW()-2)),\"\")","v":{"$error":"#N/A"}},{"$f":"IF(INDIRECT(\"c\" & (VLOOKUP(Switch!$D$55,$F$2:$G$44,2,FALSE)+ROW()-2))=Switch!$D$55,INDIRECT(\"a\" & (VLOOKUP(Switch!$D$55,$F$2:$G$44,2,FALSE)+ROW()-2)),\"\")","v":{"$error":"#N/A"}},{"$f":"IF(INDIRECT(\"c\" & (VLOOKUP(Switch!$D$56,$F$2:$G$44,2,FALSE)+ROW()-2))=Switch!$D$56,INDIRECT(\"a\" & (VLOOKUP(Switch!$D$56,$F$2:$G$44,2,FALSE)+ROW()-2)),\"\")","v":{"$error":"#N/A"}},{"$f":"IF(INDIRECT(\"c\" & (VLOOKUP(Switch!$D$57,$F$2:$G$44,2,FALSE)+ROW()-2))=Switch!$D$57,INDIRECT(\"a\" & (VLOOKUP(Switch!$D$57,$F$2:$G$44,2,FALSE)+ROW()-2)),\"\")","v":{"$error":"#N/A"}},{"$f":"IF(INDIRECT(\"c\" & (VLOOKUP(Switch!$D$58,$F$2:$G$44,2,FALSE)+ROW()-2))=Switch!$D$58,INDIRECT(\"a\" & (VLOOKUP(Switch!$D$58,$F$2:$G$44,2,FALSE)+ROW()-2)),\"\")","v":{"$error":"#N/A"}},{"$f":"IF(INDIRECT(\"c\" & (VLOOKUP(Switch!$D$59,$F$2:$G$44,2,FALSE)+ROW()-2))=Switch!$D$59,INDIRECT(\"a\" & (VLOOKUP(Switch!$D$59,$F$2:$G$44,2,FALSE)+ROW()-2)),\"\")","v":{"$error":"#N/A"}},{"$f":"IF(INDIRECT(\"c\" & (VLOOKUP(Switch!$D$60,$F$2:$G$44,2,FALSE)+ROW()-2))=Switch!$D$60,INDIRECT(\"a\" & (VLOOKUP(Switch!$D$60,$F$2:$G$44,2,FALSE)+ROW()-2)),\"\")","v":{"$error":"#N/A"}},{"$f":"IF(INDIRECT(\"c\" & (VLOOKUP(Switch!$D$61,$F$2:$G$44,2,FALSE)+ROW()-2))=Switch!$D$61,INDIRECT(\"a\" & (VLOOKUP(Switch!$D$61,$F$2:$G$44,2,FALSE)+ROW()-2)),\"\")","v":{"$error":"#N/A"}},{"$f":"IF(INDIRECT(\"c\" & (VLOOKUP(Switch!$D$62,$F$2:$G$44,2,FALSE)+ROW()-2))=Switch!$D$62,INDIRECT(\"a\" & (VLOOKUP(Switch!$D$62,$F$2:$G$44,2,FALSE)+ROW()-2)),\"\")","v":{"$error":"#N/A"}},{"$f":"IF(INDIRECT(\"c\" & (VLOOKUP(Switch!$D$63,$F$2:$G$44,2,FALSE)+ROW()-2))=Switch!$D$63,INDIRECT(\"a\" & (VLOOKUP(Switch!$D$63,$F$2:$G$44,2,FALSE)+ROW()-2)),\"\")","v":{"$error":"#N/A"}},{"$f":"IF(INDIRECT(\"c\" & (VLOOKUP(Switch!$D$64,$F$2:$G$44,2,FALSE)+ROW()-2))=Switch!$D$64,INDIRECT(\"a\" & (VLOOKUP(Switch!$D$64,$F$2:$G$44,2,FALSE)+ROW()-2)),\"\")","v":{"$error":"#N/A"}},{"$f":"IF(INDIRECT(\"c\" & (VLOOKUP(Switch!$D$65,$F$2:$G$44,2,FALSE)+ROW()-2))=Switch!$D$65,INDIRECT(\"a\" & (VLOOKUP(Switch!$D$65,$F$2:$G$44,2,FALSE)+ROW()-2)),\"\")","v":{"$error":"#N/A"}},{"$f":"IF(INDIRECT(\"c\" & (VLOOKUP(Switch!$D$66,$F$2:$G$44,2,FALSE)+ROW()-2))=Switch!$D$66,INDIRECT(\"a\" & (VLOOKUP(Switch!$D$66,$F$2:$G$44,2,FALSE)+ROW()-2)),\"\")","v":{"$error":"#N/A"}}]
["Prescient Absolute Defensive Fund A2","PADA2","Prescient Management Company Ltd",{"$f":"ROW()","v":459},null,null,{"$f":"VLOOKUP(F459,$C$2:$D$637,2,FALSE)","v":{"$error":"#N/A"}},{"$f":"IF(INDIRECT(\"c\" & (VLOOKUP(Switch!$D$26,$F$2:$G$44,2,FALSE)+ROW()-2))=Switch!$D$26,INDIRECT(\"a\" & (VLOOKUP(Switch!$D$26,$F$2:$G$44,2,FALSE)+ROW()-2)),\"\")","v":{"$error":"#N/A"}},{"$f":"IF(INDIRECT(\"c\" & (VLOOKUP(Switch!$D$27,$F$2:$G$44,2,FALSE)+ROW()-2))=Switch!$D$27,INDIRECT(\"a\" & (VLOOKUP(Switch!$D$27,$F$2:$G$44,2,FALSE)+ROW()-2)),\"\")","v":{"$error":"#N/A"}},{"$f":"IF(INDIRECT(\"c\" & (VLOOKUP(Switch!$D$28,$F$2:$G$44,2,FALSE)+ROW()-2))=Switch!$D$28,INDIRECT(\"a\" & (VLOOKUP(Switch!$D$28,$F$2:$G$44,2,FALSE)+ROW()-2)),\"\")","v":{"$error":"#N/A"}},{"$f":"IF(INDIRECT(\"c\" & (VLOOKUP(Switch!$D$29,$F$2:$G$44,2,FALSE)+ROW()-2))=Switch!$D$29,INDIRECT(\"a\" & (VLOOKUP(Switch!$D$29,$F$2:$G$44,2,FALSE)+ROW()-2)),\"\")","v":{"$error":"#N/A"}},{"$f":"IF(INDIRECT(\"c\" & (VLOOKUP(Switch!$D$30,$F$2:$G$44,2,FALSE)+ROW()-2))=Switch!$D$30,INDIRECT(\"a\" & (VLOOKUP(Switch!$D$30,$F$2:$G$44,2,FALSE)+ROW()-2)),\"\")","v":{"$error":"#N/A"}},{"$f":"IF(INDIRECT(\"c\" & (VLOOKUP(Switch!$D$31,$F$2:$G$44,2,FALSE)+ROW()-2))=Switch!$D$31,INDIRECT(\"a\" & (VLOOKUP(Switch!$D$31,$F$2:$G$44,2,FALSE)+ROW()-2)),\"\")","v":{"$error":"#N/A"}},{"$f":"IF(INDIRECT(\"c\" & (VLOOKUP(Switch!$D$32,$F$2:$G$44,2,FALSE)+ROW()-2))=Switch!$D$32,INDIRECT(\"a\" & (VLOOKUP(Switch!$D$32,$F$2:$G$44,2,FALSE)+ROW()-2)),\"\")","v":{"$error":"#N/A"}},{"$f":"IF(INDIRECT(\"c\" & (VLOOKUP(Switch!$D$33,$F$2:$G$44,2,FALSE)+ROW()-2))=Switch!$D$33,INDIRECT(\"a\" & (VLOOKUP(Switch!$D$33,$F$2:$G$44,2,FALSE)+ROW()-2)),\"\")","v":{"$error":"#N/A"}},{"$f":"IF(INDIRECT(\"c\" & (VLOOKUP(Switch!$D$34,$F$2:$G$44,2,FALSE)+ROW()-2))=Switch!$D$34,INDIRECT(\"a\" & (VLOOKUP(Switch!$D$34,$F$2:$G$44,2,FALSE)+ROW()-2)),\"\")","v":{"$error":"#N/A"}},{"$f":"IF(INDIRECT(\"c\" & (VLOOKUP(Switch!$D$35,$F$2:$G$44,2,FALSE)+ROW()-2))=Switch!$D$35,INDIRECT(\"a\" & (VLOOKUP(Switch!$D$35,$F$2:$G$44,2,FALSE)+ROW()-2)),\"\")","v":{"$error":"#N/A"}},{"$f":"IF(INDIRECT(\"c\" & (VLOOKUP(Switch!$D$36,$F$2:$G$44,2,FALSE)+ROW()-2))=Switch!$D$36,INDIRECT(\"a\" & (VLOOKUP(Switch!$D$36,$F$2:$G$44,2,FALSE)+ROW()-2)),\"\")","v":{"$error":"#N/A"}},{"$f":"IF(INDIRECT(\"c\" & (VLOOKUP(Switch!$D$37,$F$2:$G$44,2,FALSE)+ROW()-2))=Switch!$D$37,INDIRECT(\"a\" & (VLOOKUP(Switch!$D$37,$F$2:$G$44,2,FALSE)+ROW()-2)),\"\")","v":{"$error":"#N/A"}},{"$f":"IF(INDIRECT(\"c\" & (VLOOKUP(Switch!$D$38,$F$2:$G$44,2,FALSE)+ROW()-2))=Switch!$D$38,INDIRECT(\"a\" & (VLOOKUP(Switch!$D$38,$F$2:$G$44,2,FALSE)+ROW()-2)),\"\")","v":{"$error":"#N/A"}},{"$f":"IF(INDIRECT(\"c\" & (VLOOKUP(Switch!$D$39,$F$2:$G$44,2,FALSE)+ROW()-2))=Switch!$D$39,INDIRECT(\"a\" & (VLOOKUP(Switch!$D$39,$F$2:$G$44,2,FALSE)+ROW()-2)),\"\")","v":{"$error":"#N/A"}},{"$f":"IF(INDIRECT(\"c\" & (VLOOKUP(Switch!$D$40,$F$2:$G$44,2,FALSE)+ROW()-2))=Switch!$D$40,INDIRECT(\"a\" & (VLOOKUP(Switch!$D$40,$F$2:$G$44,2,FALSE)+ROW()-2)),\"\")","v":{"$error":"#N/A"}},{"$f":"IF(INDIRECT(\"c\" & (VLOOKUP(Switch!$D$52,$F$2:$G$44,2,FALSE)+ROW()-2))=Switch!$D$52,INDIRECT(\"a\" & (VLOOKUP(Switch!$D$52,$F$2:$G$44,2,FALSE)+ROW()-2)),\"\")","v":{"$error":"#N/A"}},{"$f":"IF(INDIRECT(\"c\" & (VLOOKUP(Switch!$D$53,$F$2:$G$44,2,FALSE)+ROW()-2))=Switch!$D$53,INDIRECT(\"a\" & (VLOOKUP(Switch!$D$53,$F$2:$G$44,2,FALSE)+ROW()-2)),\"\")","v":{"$error":"#N/A"}},{"$f":"IF(INDIRECT(\"c\" & (VLOOKUP(Switch!$D$54,$F$2:$G$44,2,FALSE)+ROW()-2))=Switch!$D$54,INDIRECT(\"a\" & (VLOOKUP(Switch!$D$54,$F$2:$G$44,2,FALSE)+ROW()-2)),\"\")","v":{"$error":"#N/A"}},{"$f":"IF(INDIRECT(\"c\" & (VLOOKUP(Switch!$D$55,$F$2:$G$44,2,FALSE)+ROW()-2))=Switch!$D$55,INDIRECT(\"a\" & (VLOOKUP(Switch!$D$55,$F$2:$G$44,2,FALSE)+ROW()-2)),\"\")","v":{"$error":"#N/A"}},{"$f":"IF(INDIRECT(\"c\" & (VLOOKUP(Switch!$D$56,$F$2:$G$44,2,FALSE)+ROW()-2))=Switch!$D$56,INDIRECT(\"a\" & (VLOOKUP(Switch!$D$56,$F$2:$G$44,2,FALSE)+ROW()-2)),\"\")","v":{"$error":"#N/A"}},{"$f":"IF(INDIRECT(\"c\" & (VLOOKUP(Switch!$D$57,$F$2:$G$44,2,FALSE)+ROW()-2))=Switch!$D$57,INDIRECT(\"a\" & (VLOOKUP(Switch!$D$57,$F$2:$G$44,2,FALSE)+ROW()-2)),\"\")","v":{"$error":"#N/A"}},{"$f":"IF(INDIRECT(\"c\" & (VLOOKUP(Switch!$D$58,$F$2:$G$44,2,FALSE)+ROW()-2))=Switch!$D$58,INDIRECT(\"a\" & (VLOOKUP(Switch!$D$58,$F$2:$G$44,2,FALSE)+ROW()-2)),\"\")","v":{"$error":"#N/A"}},{"$f":"IF(INDIRECT(\"c\" & (VLOOKUP(Switch!$D$59,$F$2:$G$44,2,FALSE)+ROW()-2))=Switch!$D$59,INDIRECT(\"a\" & (VLOOKUP(Switch!$D$59,$F$2:$G$44,2,FALSE)+ROW()-2)),\"\")","v":{"$error":"#N/A"}},{"$f":"IF(INDIRECT(\"c\" & (VLOOKUP(Switch!$D$60,$F$2:$G$44,2,FALSE)+ROW()-2))=Switch!$D$60,INDIRECT(\"a\" & (VLOOKUP(Switch!$D$60,$F$2:$G$44,2,FALSE)+ROW()-2)),\"\")","v":{"$error":"#N/A"}},{"$f":"IF(INDIRECT(\"c\" & (VLOOKUP(Switch!$D$61,$F$2:$G$44,2,FALSE)+ROW()-2))=Switch!$D$61,INDIRECT(\"a\" & (VLOOKUP(Switch!$D$61,$F$2:$G$44,2,FALSE)+ROW()-2)),\"\")","v":{"$error":"#N/A"}},{"$f":"IF(INDIRECT(\"c\" & (VLOOKUP(Switch!$D$62,$F$2:$G$44,2,FALSE)+ROW()-2))=Switch!$D$62,INDIRECT(\"a\" & (VLOOKUP(Switch!$D$62,$F$2:$G$44,2,FALSE)+ROW()-2)),\"\")","v":{"$error":"#N/A"}},{"$f":"IF(INDIRECT(\"c\" & (VLOOKUP(Switch!$D$63,$F$2:$G$44,2,FALSE)+ROW()-2))=Switch!$D$63,INDIRECT(\"a\" & (VLOOKUP(Switch!$D$63,$F$2:$G$44,2,FALSE)+ROW()-2)),\"\")","v":{"$error":"#N/A"}},{"$f":"IF(INDIRECT(\"c\" & (VLOOKUP(Switch!$D$64,$F$2:$G$44,2,FALSE)+ROW()-2))=Switch!$D$64,INDIRECT(\"a\" & (VLOOKUP(Switch!$D$64,$F$2:$G$44,2,FALSE)+ROW()-2)),\"\")","v":{"$error":"#N/A"}},{"$f":"IF(INDIRECT(\"c\" & (VLOOKUP(Switch!$D$65,$F$2:$G$44,2,FALSE)+ROW()-2))=Switch!$D$65,INDIRECT(\"a\" & (VLOOKUP(Switch!$D$65,$F$2:$G$44,2,FALSE)+ROW()-2)),\"\")","v":{"$error":"#N/A"}},{"$f":"IF(INDIRECT(\"c\" & (VLOOKUP(Switch!$D$66,$F$2:$G$44,2,FALSE)+ROW()-2))=Switch!$D$66,INDIRECT(\"a\" & (VLOOKUP(Switch!$D$66,$F$2:$G$44,2,FALSE)+ROW()-2)),\"\")","v":{"$error":"#N/A"}}]
["Prescient Balanced Fund A2","PRBA2","Prescient Management Company Ltd",{"$f":"ROW()","v":460},null,null,{"$f":"VLOOKUP(F460,$C$2:$D$637,2,FALSE)","v":{"$error":"#N/A"}},{"$f":"IF(INDIRECT(\"c\" & (VLOOKUP(Switch!$D$26,$F$2:$G$44,2,FALSE)+ROW()-2))=Switch!$D$26,INDIRECT(\"a\" & (VLOOKUP(Switch!$D$26,$F$2:$G$44,2,FALSE)+ROW()-2)),\"\")","v":{"$error":"#N/A"}},{"$f":"IF(INDIRECT(\"c\" & (VLOOKUP(Switch!$D$27,$F$2:$G$44,2,FALSE)+ROW()-2))=Switch!$D$27,INDIRECT(\"a\" & (VLOOKUP(Switch!$D$27,$F$2:$G$44,2,FALSE)+ROW()-2)),\"\")","v":{"$error":"#N/A"}},{"$f":"IF(INDIRECT(\"c\" & (VLOOKUP(Switch!$D$28,$F$2:$G$44,2,FALSE)+ROW()-2))=Switch!$D$28,INDIRECT(\"a\" & (VLOOKUP(Switch!$D$28,$F$2:$G$44,2,FALSE)+ROW()-2)),\"\")","v":{"$error":"#N/A"}},{"$f":"IF(INDIRECT(\"c\" & (VLOOKUP(Switch!$D$29,$F$2:$G$44,2,FALSE)+ROW()-2))=Switch!$D$29,INDIRECT(\"a\" & (VLOOKUP(Switch!$D$29,$F$2:$G$44,2,FALSE)+ROW()-2)),\"\")","v":{"$error":"#N/A"}},{"$f":"IF(INDIRECT(\"c\" & (VLOOKUP(Switch!$D$30,$F$2:$G$44,2,FALSE)+ROW()-2))=Switch!$D$30,INDIRECT(\"a\" & (VLOOKUP(Switch!$D$30,$F$2:$G$44,2,FALSE)+ROW()-2)),\"\")","v":{"$error":"#N/A"}},{"$f":"IF(INDIRECT(\"c\" & (VLOOKUP(Switch!$D$31,$F$2:$G$44,2,FALSE)+ROW()-2))=Switch!$D$31,INDIRECT(\"a\" & (VLOOKUP(Switch!$D$31,$F$2:$G$44,2,FALSE)+ROW()-2)),\"\")","v":{"$error":"#N/A"}},{"$f":"IF(INDIRECT(\"c\" & (VLOOKUP(Switch!$D$32,$F$2:$G$44,2,FALSE)+ROW()-2))=Switch!$D$32,INDIRECT(\"a\" & (VLOOKUP(Switch!$D$32,$F$2:$G$44,2,FALSE)+ROW()-2)),\"\")","v":{"$error":"#N/A"}},{"$f":"IF(INDIRECT(\"c\" & (VLOOKUP(Switch!$D$33,$F$2:$G$44,2,FALSE)+ROW()-2))=Switch!$D$33,INDIRECT(\"a\" & (VLOOKUP(Switch!$D$33,$F$2:$G$44,2,FALSE)+ROW()-2)),\"\")","v":{"$error":"#N/A"}},{"$f":"IF(INDIRECT(\"c\" & (VLOOKUP(Switch!$D$34,$F$2:$G$44,2,FALSE)+ROW()-2))=Switch!$D$34,INDIRECT(\"a\" & (VLOOKUP(Switch!$D$34,$F$2:$G$44,2,FALSE)+ROW()-2)),\"\")","v":{"$error":"#N/A"}},{"$f":"IF(INDIRECT(\"c\" & (VLOOKUP(Switch!$D$35,$F$2:$G$44,2,FALSE)+ROW()-2))=Switch!$D$35,INDIRECT(\"a\" & (VLOOKUP(Switch!$D$35,$F$2:$G$44,2,FALSE)+ROW()-2)),\"\")","v":{"$error":"#N/A"}},{"$f":"IF(INDIRECT(\"c\" & (VLOOKUP(Switch!$D$36,$F$2:$G$44,2,FALSE)+ROW()-2))=Switch!$D$36,INDIRECT(\"a\" & (VLOOKUP(Switch!$D$36,$F$2:$G$44,2,FALSE)+ROW()-2)),\"\")","v":{"$error":"#N/A"}},{"$f":"IF(INDIRECT(\"c\" & (VLOOKUP(Switch!$D$37,$F$2:$G$44,2,FALSE)+ROW()-2))=Switch!$D$37,INDIRECT(\"a\" & (VLOOKUP(Switch!$D$37,$F$2:$G$44,2,FALSE)+ROW()-2)),\"\")","v":{"$error":"#N/A"}},{"$f":"IF(INDIRECT(\"c\" & (VLOOKUP(Switch!$D$38,$F$2:$G$44,2,FALSE)+ROW()-2))=Switch!$D$38,INDIRECT(\"a\" & (VLOOKUP(Switch!$D$38,$F$2:$G$44,2,FALSE)+ROW()-2)),\"\")","v":{"$error":"#N/A"}},{"$f":"IF(INDIRECT(\"c\" & (VLOOKUP(Switch!$D$39,$F$2:$G$44,2,FALSE)+ROW()-2))=Switch!$D$39,INDIRECT(\"a\" & (VLOOKUP(Switch!$D$39,$F$2:$G$44,2,FALSE)+ROW()-2)),\"\")","v":{"$error":"#N/A"}},{"$f":"IF(INDIRECT(\"c\" & (VLOOKUP(Switch!$D$40,$F$2:$G$44,2,FALSE)+ROW()-2))=Switch!$D$40,INDIRECT(\"a\" & (VLOOKUP(Switch!$D$40,$F$2:$G$44,2,FALSE)+ROW()-2)),\"\")","v":{"$error":"#N/A"}},{"$f":"IF(INDIRECT(\"c\" & (VLOOKUP(Switch!$D$52,$F$2:$G$44,2,FALSE)+ROW()-2))=Switch!$D$52,INDIRECT(\"a\" & (VLOOKUP(Switch!$D$52,$F$2:$G$44,2,FALSE)+ROW()-2)),\"\")","v":{"$error":"#N/A"}},{"$f":"IF(INDIRECT(\"c\" & (VLOOKUP(Switch!$D$53,$F$2:$G$44,2,FALSE)+ROW()-2))=Switch!$D$53,INDIRECT(\"a\" & (VLOOKUP(Switch!$D$53,$F$2:$G$44,2,FALSE)+ROW()-2)),\"\")","v":{"$error":"#N/A"}},{"$f":"IF(INDIRECT(\"c\" & (VLOOKUP(Switch!$D$54,$F$2:$G$44,2,FALSE)+ROW()-2))=Switch!$D$54,INDIRECT(\"a\" & (VLOOKUP(Switch!$D$54,$F$2:$G$44,2,FALSE)+ROW()-2)),\"\")","v":{"$error":"#N/A"}},{"$f":"IF(INDIRECT(\"c\" & (VLOOKUP(Switch!$D$55,$F$2:$G$44,2,FALSE)+ROW()-2))=Switch!$D$55,INDIRECT(\"a\" & (VLOOKUP(Switch!$D$55,$F$2:$G$44,2,FALSE)+ROW()-2)),\"\")","v":{"$error":"#N/A"}},{"$f":"IF(INDIRECT(\"c\" & (VLOOKUP(Switch!$D$56,$F$2:$G$44,2,FALSE)+ROW()-2))=Switch!$D$56,INDIRECT(\"a\" & (VLOOKUP(Switch!$D$56,$F$2:$G$44,2,FALSE)+ROW()-2)),\"\")","v":{"$error":"#N/A"}},{"$f":"IF(INDIRECT(\"c\" & (VLOOKUP(Switch!$D$57,$F$2:$G$44,2,FALSE)+ROW()-2))=Switch!$D$57,INDIRECT(\"a\" & (VLOOKUP(Switch!$D$57,$F$2:$G$44,2,FALSE)+ROW()-2)),\"\")","v":{"$error":"#N/A"}},{"$f":"IF(INDIRECT(\"c\" & (VLOOKUP(Switch!$D$58,$F$2:$G$44,2,FALSE)+ROW()-2))=Switch!$D$58,INDIRECT(\"a\" & (VLOOKUP(Switch!$D$58,$F$2:$G$44,2,FALSE)+ROW()-2)),\"\")","v":{"$error":"#N/A"}},{"$f":"IF(INDIRECT(\"c\" & (VLOOKUP(Switch!$D$59,$F$2:$G$44,2,FALSE)+ROW()-2))=Switch!$D$59,INDIRECT(\"a\" & (VLOOKUP(Switch!$D$59,$F$2:$G$44,2,FALSE)+ROW()-2)),\"\")","v":{"$error":"#N/A"}},{"$f":"IF(INDIRECT(\"c\" & (VLOOKUP(Switch!$D$60,$F$2:$G$44,2,FALSE)+ROW()-2))=Switch!$D$60,INDIRECT(\"a\" & (VLOOKUP(Switch!$D$60,$F$2:$G$44,2,FALSE)+ROW()-2)),\"\")","v":{"$error":"#N/A"}},{"$f":"IF(INDIRECT(\"c\" & (VLOOKUP(Switch!$D$61,$F$2:$G$44,2,FALSE)+ROW()-2))=Switch!$D$61,INDIRECT(\"a\" & (VLOOKUP(Switch!$D$61,$F$2:$G$44,2,FALSE)+ROW()-2)),\"\")","v":{"$error":"#N/A"}},{"$f":"IF(INDIRECT(\"c\" & (VLOOKUP(Switch!$D$62,$F$2:$G$44,2,FALSE)+ROW()-2))=Switch!$D$62,INDIRECT(\"a\" & (VLOOKUP(Switch!$D$62,$F$2:$G$44,2,FALSE)+ROW()-2)),\"\")","v":{"$error":"#N/A"}},{"$f":"IF(INDIRECT(\"c\" & (VLOOKUP(Switch!$D$63,$F$2:$G$44,2,FALSE)+ROW()-2))=Switch!$D$63,INDIRECT(\"a\" & (VLOOKUP(Switch!$D$63,$F$2:$G$44,2,FALSE)+ROW()-2)),\"\")","v":{"$error":"#N/A"}},{"$f":"IF(INDIRECT(\"c\" & (VLOOKUP(Switch!$D$64,$F$2:$G$44,2,FALSE)+ROW()-2))=Switch!$D$64,INDIRECT(\"a\" & (VLOOKUP(Switch!$D$64,$F$2:$G$44,2,FALSE)+ROW()-2)),\"\")","v":{"$error":"#N/A"}},{"$f":"IF(INDIRECT(\"c\" & (VLOOKUP(Switch!$D$65,$F$2:$G$44,2,FALSE)+ROW()-2))=Switch!$D$65,INDIRECT(\"a\" & (VLOOKUP(Switch!$D$65,$F$2:$G$44,2,FALSE)+ROW()-2)),\"\")","v":{"$error":"#N/A"}},{"$f":"IF(INDIRECT(\"c\" & (VLOOKUP(Switch!$D$66,$F$2:$G$44,2,FALSE)+ROW()-2))=Switch!$D$66,INDIRECT(\"a\" & (VLOOKUP(Switch!$D$66,$F$2:$G$44,2,FALSE)+ROW()-2)),\"\")","v":{"$error":"#N/A"}}]
["Prescient Bond Quant Plus Fund B1","PBQF","Prescient Management Company Ltd",{"$f":"ROW()","v":461},null,null,{"$f":"VLOOKUP(F461,$C$2:$D$637,2,FALSE)","v":{"$error":"#N/A"}},{"$f":"IF(INDIRECT(\"c\" & (VLOOKUP(Switch!$D$26,$F$2:$G$44,2,FALSE)+ROW()-2))=Switch!$D$26,INDIRECT(\"a\" & (VLOOKUP(Switch!$D$26,$F$2:$G$44,2,FALSE)+ROW()-2)),\"\")","v":{"$error":"#N/A"}},{"$f":"IF(INDIRECT(\"c\" & (VLOOKUP(Switch!$D$27,$F$2:$G$44,2,FALSE)+ROW()-2))=Switch!$D$27,INDIRECT(\"a\" & (VLOOKUP(Switch!$D$27,$F$2:$G$44,2,FALSE)+ROW()-2)),\"\")","v":{"$error":"#N/A"}},{"$f":"IF(INDIRECT(\"c\" & (VLOOKUP(Switch!$D$28,$F$2:$G$44,2,FALSE)+ROW()-2))=Switch!$D$28,INDIRECT(\"a\" & (VLOOKUP(Switch!$D$28,$F$2:$G$44,2,FALSE)+ROW()-2)),\"\")","v":{"$error":"#N/A"}},{"$f":"IF(INDIRECT(\"c\" & (VLOOKUP(Switch!$D$29,$F$2:$G$44,2,FALSE)+ROW()-2))=Switch!$D$29,INDIRECT(\"a\" & (VLOOKUP(Switch!$D$29,$F$2:$G$44,2,FALSE)+ROW()-2)),\"\")","v":{"$error":"#N/A"}},{"$f":"IF(INDIRECT(\"c\" & (VLOOKUP(Switch!$D$30,$F$2:$G$44,2,FALSE)+ROW()-2))=Switch!$D$30,INDIRECT(\"a\" & (VLOOKUP(Switch!$D$30,$F$2:$G$44,2,FALSE)+ROW()-2)),\"\")","v":{"$error":"#N/A"}},{"$f":"IF(INDIRECT(\"c\" & (VLOOKUP(Switch!$D$31,$F$2:$G$44,2,FALSE)+ROW()-2))=Switch!$D$31,INDIRECT(\"a\" & (VLOOKUP(Switch!$D$31,$F$2:$G$44,2,FALSE)+ROW()-2)),\"\")","v":{"$error":"#N/A"}},{"$f":"IF(INDIRECT(\"c\" & (VLOOKUP(Switch!$D$32,$F$2:$G$44,2,FALSE)+ROW()-2))=Switch!$D$32,INDIRECT(\"a\" & (VLOOKUP(Switch!$D$32,$F$2:$G$44,2,FALSE)+ROW()-2)),\"\")","v":{"$error":"#N/A"}},{"$f":"IF(INDIRECT(\"c\" & (VLOOKUP(Switch!$D$33,$F$2:$G$44,2,FALSE)+ROW()-2))=Switch!$D$33,INDIRECT(\"a\" & (VLOOKUP(Switch!$D$33,$F$2:$G$44,2,FALSE)+ROW()-2)),\"\")","v":{"$error":"#N/A"}},{"$f":"IF(INDIRECT(\"c\" & (VLOOKUP(Switch!$D$34,$F$2:$G$44,2,FALSE)+ROW()-2))=Switch!$D$34,INDIRECT(\"a\" & (VLOOKUP(Switch!$D$34,$F$2:$G$44,2,FALSE)+ROW()-2)),\"\")","v":{"$error":"#N/A"}},{"$f":"IF(INDIRECT(\"c\" & (VLOOKUP(Switch!$D$35,$F$2:$G$44,2,FALSE)+ROW()-2))=Switch!$D$35,INDIRECT(\"a\" & (VLOOKUP(Switch!$D$35,$F$2:$G$44,2,FALSE)+ROW()-2)),\"\")","v":{"$error":"#N/A"}},{"$f":"IF(INDIRECT(\"c\" & (VLOOKUP(Switch!$D$36,$F$2:$G$44,2,FALSE)+ROW()-2))=Switch!$D$36,INDIRECT(\"a\" & (VLOOKUP(Switch!$D$36,$F$2:$G$44,2,FALSE)+ROW()-2)),\"\")","v":{"$error":"#N/A"}},{"$f":"IF(INDIRECT(\"c\" & (VLOOKUP(Switch!$D$37,$F$2:$G$44,2,FALSE)+ROW()-2))=Switch!$D$37,INDIRECT(\"a\" & (VLOOKUP(Switch!$D$37,$F$2:$G$44,2,FALSE)+ROW()-2)),\"\")","v":{"$error":"#N/A"}},{"$f":"IF(INDIRECT(\"c\" & (VLOOKUP(Switch!$D$38,$F$2:$G$44,2,FALSE)+ROW()-2))=Switch!$D$38,INDIRECT(\"a\" & (VLOOKUP(Switch!$D$38,$F$2:$G$44,2,FALSE)+ROW()-2)),\"\")","v":{"$error":"#N/A"}},{"$f":"IF(INDIRECT(\"c\" & (VLOOKUP(Switch!$D$39,$F$2:$G$44,2,FALSE)+ROW()-2))=Switch!$D$39,INDIRECT(\"a\" & (VLOOKUP(Switch!$D$39,$F$2:$G$44,2,FALSE)+ROW()-2)),\"\")","v":{"$error":"#N/A"}},{"$f":"IF(INDIRECT(\"c\" & (VLOOKUP(Switch!$D$40,$F$2:$G$44,2,FALSE)+ROW()-2))=Switch!$D$40,INDIRECT(\"a\" & (VLOOKUP(Switch!$D$40,$F$2:$G$44,2,FALSE)+ROW()-2)),\"\")","v":{"$error":"#N/A"}},{"$f":"IF(INDIRECT(\"c\" & (VLOOKUP(Switch!$D$52,$F$2:$G$44,2,FALSE)+ROW()-2))=Switch!$D$52,INDIRECT(\"a\" & (VLOOKUP(Switch!$D$52,$F$2:$G$44,2,FALSE)+ROW()-2)),\"\")","v":{"$error":"#N/A"}},{"$f":"IF(INDIRECT(\"c\" & (VLOOKUP(Switch!$D$53,$F$2:$G$44,2,FALSE)+ROW()-2))=Switch!$D$53,INDIRECT(\"a\" & (VLOOKUP(Switch!$D$53,$F$2:$G$44,2,FALSE)+ROW()-2)),\"\")","v":{"$error":"#N/A"}},{"$f":"IF(INDIRECT(\"c\" & (VLOOKUP(Switch!$D$54,$F$2:$G$44,2,FALSE)+ROW()-2))=Switch!$D$54,INDIRECT(\"a\" & (VLOOKUP(Switch!$D$54,$F$2:$G$44,2,FALSE)+ROW()-2)),\"\")","v":{"$error":"#N/A"}},{"$f":"IF(INDIRECT(\"c\" & (VLOOKUP(Switch!$D$55,$F$2:$G$44,2,FALSE)+ROW()-2))=Switch!$D$55,INDIRECT(\"a\" & (VLOOKUP(Switch!$D$55,$F$2:$G$44,2,FALSE)+ROW()-2)),\"\")","v":{"$error":"#N/A"}},{"$f":"IF(INDIRECT(\"c\" & (VLOOKUP(Switch!$D$56,$F$2:$G$44,2,FALSE)+ROW()-2))=Switch!$D$56,INDIRECT(\"a\" & (VLOOKUP(Switch!$D$56,$F$2:$G$44,2,FALSE)+ROW()-2)),\"\")","v":{"$error":"#N/A"}},{"$f":"IF(INDIRECT(\"c\" & (VLOOKUP(Switch!$D$57,$F$2:$G$44,2,FALSE)+ROW()-2))=Switch!$D$57,INDIRECT(\"a\" & (VLOOKUP(Switch!$D$57,$F$2:$G$44,2,FALSE)+ROW()-2)),\"\")","v":{"$error":"#N/A"}},{"$f":"IF(INDIRECT(\"c\" & (VLOOKUP(Switch!$D$58,$F$2:$G$44,2,FALSE)+ROW()-2))=Switch!$D$58,INDIRECT(\"a\" & (VLOOKUP(Switch!$D$58,$F$2:$G$44,2,FALSE)+ROW()-2)),\"\")","v":{"$error":"#N/A"}},{"$f":"IF(INDIRECT(\"c\" & (VLOOKUP(Switch!$D$59,$F$2:$G$44,2,FALSE)+ROW()-2))=Switch!$D$59,INDIRECT(\"a\" & (VLOOKUP(Switch!$D$59,$F$2:$G$44,2,FALSE)+ROW()-2)),\"\")","v":{"$error":"#N/A"}},{"$f":"IF(INDIRECT(\"c\" & (VLOOKUP(Switch!$D$60,$F$2:$G$44,2,FALSE)+ROW()-2))=Switch!$D$60,INDIRECT(\"a\" & (VLOOKUP(Switch!$D$60,$F$2:$G$44,2,FALSE)+ROW()-2)),\"\")","v":{"$error":"#N/A"}},{"$f":"IF(INDIRECT(\"c\" & (VLOOKUP(Switch!$D$61,$F$2:$G$44,2,FALSE)+ROW()-2))=Switch!$D$61,INDIRECT(\"a\" & (VLOOKUP(Switch!$D$61,$F$2:$G$44,2,FALSE)+ROW()-2)),\"\")","v":{"$error":"#N/A"}},{"$f":"IF(INDIRECT(\"c\" & (VLOOKUP(Switch!$D$62,$F$2:$G$44,2,FALSE)+ROW()-2))=Switch!$D$62,INDIRECT(\"a\" & (VLOOKUP(Switch!$D$62,$F$2:$G$44,2,FALSE)+ROW()-2)),\"\")","v":{"$error":"#N/A"}},{"$f":"IF(INDIRECT(\"c\" & (VLOOKUP(Switch!$D$63,$F$2:$G$44,2,FALSE)+ROW()-2))=Switch!$D$63,INDIRECT(\"a\" & (VLOOKUP(Switch!$D$63,$F$2:$G$44,2,FALSE)+ROW()-2)),\"\")","v":{"$error":"#N/A"}},{"$f":"IF(INDIRECT(\"c\" & (VLOOKUP(Switch!$D$64,$F$2:$G$44,2,FALSE)+ROW()-2))=Switch!$D$64,INDIRECT(\"a\" & (VLOOKUP(Switch!$D$64,$F$2:$G$44,2,FALSE)+ROW()-2)),\"\")","v":{"$error":"#N/A"}},{"$f":"IF(INDIRECT(\"c\" & (VLOOKUP(Switch!$D$65,$F$2:$G$44,2,FALSE)+ROW()-2))=Switch!$D$65,INDIRECT(\"a\" & (VLOOKUP(Switch!$D$65,$F$2:$G$44,2,FALSE)+ROW()-2)),\"\")","v":{"$error":"#N/A"}},{"$f":"IF(INDIRECT(\"c\" & (VLOOKUP(Switch!$D$66,$F$2:$G$44,2,FALSE)+ROW()-2))=Switch!$D$66,INDIRECT(\"a\" & (VLOOKUP(Switch!$D$66,$F$2:$G$44,2,FALSE)+ROW()-2)),\"\")","v":{"$error":"#N/A"}}]
["Prescient Core Equity Fund A2","PCEA2","Prescient Management Company Ltd",{"$f":"ROW()","v":462},null,null,{"$f":"VLOOKUP(F462,$C$2:$D$637,2,FALSE)","v":{"$error":"#N/A"}},{"$f":"IF(INDIRECT(\"c\" & (VLOOKUP(Switch!$D$26,$F$2:$G$44,2,FALSE)+ROW()-2))=Switch!$D$26,INDIRECT(\"a\" & (VLOOKUP(Switch!$D$26,$F$2:$G$44,2,FALSE)+ROW()-2)),\"\")","v":{"$error":"#N/A"}},{"$f":"IF(INDIRECT(\"c\" & (VLOOKUP(Switch!$D$27,$F$2:$G$44,2,FALSE)+ROW()-2))=Switch!$D$27,INDIRECT(\"a\" & (VLOOKUP(Switch!$D$27,$F$2:$G$44,2,FALSE)+ROW()-2)),\"\")","v":{"$error":"#N/A"}},{"$f":"IF(INDIRECT(\"c\" & (VLOOKUP(Switch!$D$28,$F$2:$G$44,2,FALSE)+ROW()-2))=Switch!$D$28,INDIRECT(\"a\" & (VLOOKUP(Switch!$D$28,$F$2:$G$44,2,FALSE)+ROW()-2)),\"\")","v":{"$error":"#N/A"}},{"$f":"IF(INDIRECT(\"c\" & (VLOOKUP(Switch!$D$29,$F$2:$G$44,2,FALSE)+ROW()-2))=Switch!$D$29,INDIRECT(\"a\" & (VLOOKUP(Switch!$D$29,$F$2:$G$44,2,FALSE)+ROW()-2)),\"\")","v":{"$error":"#N/A"}},{"$f":"IF(INDIRECT(\"c\" & (VLOOKUP(Switch!$D$30,$F$2:$G$44,2,FALSE)+ROW()-2))=Switch!$D$30,INDIRECT(\"a\" & (VLOOKUP(Switch!$D$30,$F$2:$G$44,2,FALSE)+ROW()-2)),\"\")","v":{"$error":"#N/A"}},{"$f":"IF(INDIRECT(\"c\" & (VLOOKUP(Switch!$D$31,$F$2:$G$44,2,FALSE)+ROW()-2))=Switch!$D$31,INDIRECT(\"a\" & (VLOOKUP(Switch!$D$31,$F$2:$G$44,2,FALSE)+ROW()-2)),\"\")","v":{"$error":"#N/A"}},{"$f":"IF(INDIRECT(\"c\" & (VLOOKUP(Switch!$D$32,$F$2:$G$44,2,FALSE)+ROW()-2))=Switch!$D$32,INDIRECT(\"a\" & (VLOOKUP(Switch!$D$32,$F$2:$G$44,2,FALSE)+ROW()-2)),\"\")","v":{"$error":"#N/A"}},{"$f":"IF(INDIRECT(\"c\" & (VLOOKUP(Switch!$D$33,$F$2:$G$44,2,FALSE)+ROW()-2))=Switch!$D$33,INDIRECT(\"a\" & (VLOOKUP(Switch!$D$33,$F$2:$G$44,2,FALSE)+ROW()-2)),\"\")","v":{"$error":"#N/A"}},{"$f":"IF(INDIRECT(\"c\" & (VLOOKUP(Switch!$D$34,$F$2:$G$44,2,FALSE)+ROW()-2))=Switch!$D$34,INDIRECT(\"a\" & (VLOOKUP(Switch!$D$34,$F$2:$G$44,2,FALSE)+ROW()-2)),\"\")","v":{"$error":"#N/A"}},{"$f":"IF(INDIRECT(\"c\" & (VLOOKUP(Switch!$D$35,$F$2:$G$44,2,FALSE)+ROW()-2))=Switch!$D$35,INDIRECT(\"a\" & (VLOOKUP(Switch!$D$35,$F$2:$G$44,2,FALSE)+ROW()-2)),\"\")","v":{"$error":"#N/A"}},{"$f":"IF(INDIRECT(\"c\" & (VLOOKUP(Switch!$D$36,$F$2:$G$44,2,FALSE)+ROW()-2))=Switch!$D$36,INDIRECT(\"a\" & (VLOOKUP(Switch!$D$36,$F$2:$G$44,2,FALSE)+ROW()-2)),\"\")","v":{"$error":"#N/A"}},{"$f":"IF(INDIRECT(\"c\" & (VLOOKUP(Switch!$D$37,$F$2:$G$44,2,FALSE)+ROW()-2))=Switch!$D$37,INDIRECT(\"a\" & (VLOOKUP(Switch!$D$37,$F$2:$G$44,2,FALSE)+ROW()-2)),\"\")","v":{"$error":"#N/A"}},{"$f":"IF(INDIRECT(\"c\" & (VLOOKUP(Switch!$D$38,$F$2:$G$44,2,FALSE)+ROW()-2))=Switch!$D$38,INDIRECT(\"a\" & (VLOOKUP(Switch!$D$38,$F$2:$G$44,2,FALSE)+ROW()-2)),\"\")","v":{"$error":"#N/A"}},{"$f":"IF(INDIRECT(\"c\" & (VLOOKUP(Switch!$D$39,$F$2:$G$44,2,FALSE)+ROW()-2))=Switch!$D$39,INDIRECT(\"a\" & (VLOOKUP(Switch!$D$39,$F$2:$G$44,2,FALSE)+ROW()-2)),\"\")","v":{"$error":"#N/A"}},{"$f":"IF(INDIRECT(\"c\" & (VLOOKUP(Switch!$D$40,$F$2:$G$44,2,FALSE)+ROW()-2))=Switch!$D$40,INDIRECT(\"a\" & (VLOOKUP(Switch!$D$40,$F$2:$G$44,2,FALSE)+ROW()-2)),\"\")","v":{"$error":"#N/A"}},{"$f":"IF(INDIRECT(\"c\" & (VLOOKUP(Switch!$D$52,$F$2:$G$44,2,FALSE)+ROW()-2))=Switch!$D$52,INDIRECT(\"a\" & (VLOOKUP(Switch!$D$52,$F$2:$G$44,2,FALSE)+ROW()-2)),\"\")","v":{"$error":"#N/A"}},{"$f":"IF(INDIRECT(\"c\" & (VLOOKUP(Switch!$D$53,$F$2:$G$44,2,FALSE)+ROW()-2))=Switch!$D$53,INDIRECT(\"a\" & (VLOOKUP(Switch!$D$53,$F$2:$G$44,2,FALSE)+ROW()-2)),\"\")","v":{"$error":"#N/A"}},{"$f":"IF(INDIRECT(\"c\" & (VLOOKUP(Switch!$D$54,$F$2:$G$44,2,FALSE)+ROW()-2))=Switch!$D$54,INDIRECT(\"a\" & (VLOOKUP(Switch!$D$54,$F$2:$G$44,2,FALSE)+ROW()-2)),\"\")","v":{"$error":"#N/A"}},{"$f":"IF(INDIRECT(\"c\" & (VLOOKUP(Switch!$D$55,$F$2:$G$44,2,FALSE)+ROW()-2))=Switch!$D$55,INDIRECT(\"a\" & (VLOOKUP(Switch!$D$55,$F$2:$G$44,2,FALSE)+ROW()-2)),\"\")","v":{"$error":"#N/A"}},{"$f":"IF(INDIRECT(\"c\" & (VLOOKUP(Switch!$D$56,$F$2:$G$44,2,FALSE)+ROW()-2))=Switch!$D$56,INDIRECT(\"a\" & (VLOOKUP(Switch!$D$56,$F$2:$G$44,2,FALSE)+ROW()-2)),\"\")","v":{"$error":"#N/A"}},{"$f":"IF(INDIRECT(\"c\" & (VLOOKUP(Switch!$D$57,$F$2:$G$44,2,FALSE)+ROW()-2))=Switch!$D$57,INDIRECT(\"a\" & (VLOOKUP(Switch!$D$57,$F$2:$G$44,2,FALSE)+ROW()-2)),\"\")","v":{"$error":"#N/A"}},{"$f":"IF(INDIRECT(\"c\" & (VLOOKUP(Switch!$D$58,$F$2:$G$44,2,FALSE)+ROW()-2))=Switch!$D$58,INDIRECT(\"a\" & (VLOOKUP(Switch!$D$58,$F$2:$G$44,2,FALSE)+ROW()-2)),\"\")","v":{"$error":"#N/A"}},{"$f":"IF(INDIRECT(\"c\" & (VLOOKUP(Switch!$D$59,$F$2:$G$44,2,FALSE)+ROW()-2))=Switch!$D$59,INDIRECT(\"a\" & (VLOOKUP(Switch!$D$59,$F$2:$G$44,2,FALSE)+ROW()-2)),\"\")","v":{"$error":"#N/A"}},{"$f":"IF(INDIRECT(\"c\" & (VLOOKUP(Switch!$D$60,$F$2:$G$44,2,FALSE)+ROW()-2))=Switch!$D$60,INDIRECT(\"a\" & (VLOOKUP(Switch!$D$60,$F$2:$G$44,2,FALSE)+ROW()-2)),\"\")","v":{"$error":"#N/A"}},{"$f":"IF(INDIRECT(\"c\" & (VLOOKUP(Switch!$D$61,$F$2:$G$44,2,FALSE)+ROW()-2))=Switch!$D$61,INDIRECT(\"a\" & (VLOOKUP(Switch!$D$61,$F$2:$G$44,2,FALSE)+ROW()-2)),\"\")","v":{"$error":"#N/A"}},{"$f":"IF(INDIRECT(\"c\" & (VLOOKUP(Switch!$D$62,$F$2:$G$44,2,FALSE)+ROW()-2))=Switch!$D$62,INDIRECT(\"a\" & (VLOOKUP(Switch!$D$62,$F$2:$G$44,2,FALSE)+ROW()-2)),\"\")","v":{"$error":"#N/A"}},{"$f":"IF(INDIRECT(\"c\" & (VLOOKUP(Switch!$D$63,$F$2:$G$44,2,FALSE)+ROW()-2))=Switch!$D$63,INDIRECT(\"a\" & (VLOOKUP(Switch!$D$63,$F$2:$G$44,2,FALSE)+ROW()-2)),\"\")","v":{"$error":"#N/A"}},{"$f":"IF(INDIRECT(\"c\" & (VLOOKUP(Switch!$D$64,$F$2:$G$44,2,FALSE)+ROW()-2))=Switch!$D$64,INDIRECT(\"a\" & (VLOOKUP(Switch!$D$64,$F$2:$G$44,2,FALSE)+ROW()-2)),\"\")","v":{"$error":"#N/A"}},{"$f":"IF(INDIRECT(\"c\" & (VLOOKUP(Switch!$D$65,$F$2:$G$44,2,FALSE)+ROW()-2))=Switch!$D$65,INDIRECT(\"a\" & (VLOOKUP(Switch!$D$65,$F$2:$G$44,2,FALSE)+ROW()-2)),\"\")","v":{"$error":"#N/A"}},{"$f":"IF(INDIRECT(\"c\" & (VLOOKUP(Switch!$D$66,$F$2:$G$44,2,FALSE)+ROW()-2))=Switch!$D$66,INDIRECT(\"a\" & (VLOOKUP(Switch!$D$66,$F$2:$G$44,2,FALSE)+ROW()-2)),\"\")","v":{"$error":"#N/A"}}]
["Prescient Global Growth Feeder Fund A2","PGGA2","Prescient Management Company Ltd",{"$f":"ROW()","v":463},null,null,{"$f":"VLOOKUP(F463,$C$2:$D$637,2,FALSE)","v":{"$error":"#N/A"}},{"$f":"IF(INDIRECT(\"c\" & (VLOOKUP(Switch!$D$26,$F$2:$G$44,2,FALSE)+ROW()-2))=Switch!$D$26,INDIRECT(\"a\" & (VLOOKUP(Switch!$D$26,$F$2:$G$44,2,FALSE)+ROW()-2)),\"\")","v":{"$error":"#N/A"}},{"$f":"IF(INDIRECT(\"c\" & (VLOOKUP(Switch!$D$27,$F$2:$G$44,2,FALSE)+ROW()-2))=Switch!$D$27,INDIRECT(\"a\" & (VLOOKUP(Switch!$D$27,$F$2:$G$44,2,FALSE)+ROW()-2)),\"\")","v":{"$error":"#N/A"}},{"$f":"IF(INDIRECT(\"c\" & (VLOOKUP(Switch!$D$28,$F$2:$G$44,2,FALSE)+ROW()-2))=Switch!$D$28,INDIRECT(\"a\" & (VLOOKUP(Switch!$D$28,$F$2:$G$44,2,FALSE)+ROW()-2)),\"\")","v":{"$error":"#N/A"}},{"$f":"IF(INDIRECT(\"c\" & (VLOOKUP(Switch!$D$29,$F$2:$G$44,2,FALSE)+ROW()-2))=Switch!$D$29,INDIRECT(\"a\" & (VLOOKUP(Switch!$D$29,$F$2:$G$44,2,FALSE)+ROW()-2)),\"\")","v":{"$error":"#N/A"}},{"$f":"IF(INDIRECT(\"c\" & (VLOOKUP(Switch!$D$30,$F$2:$G$44,2,FALSE)+ROW()-2))=Switch!$D$30,INDIRECT(\"a\" & (VLOOKUP(Switch!$D$30,$F$2:$G$44,2,FALSE)+ROW()-2)),\"\")","v":{"$error":"#N/A"}},{"$f":"IF(INDIRECT(\"c\" & (VLOOKUP(Switch!$D$31,$F$2:$G$44,2,FALSE)+ROW()-2))=Switch!$D$31,INDIRECT(\"a\" & (VLOOKUP(Switch!$D$31,$F$2:$G$44,2,FALSE)+ROW()-2)),\"\")","v":{"$error":"#N/A"}},{"$f":"IF(INDIRECT(\"c\" & (VLOOKUP(Switch!$D$32,$F$2:$G$44,2,FALSE)+ROW()-2))=Switch!$D$32,INDIRECT(\"a\" & (VLOOKUP(Switch!$D$32,$F$2:$G$44,2,FALSE)+ROW()-2)),\"\")","v":{"$error":"#N/A"}},{"$f":"IF(INDIRECT(\"c\" & (VLOOKUP(Switch!$D$33,$F$2:$G$44,2,FALSE)+ROW()-2))=Switch!$D$33,INDIRECT(\"a\" & (VLOOKUP(Switch!$D$33,$F$2:$G$44,2,FALSE)+ROW()-2)),\"\")","v":{"$error":"#N/A"}},{"$f":"IF(INDIRECT(\"c\" & (VLOOKUP(Switch!$D$34,$F$2:$G$44,2,FALSE)+ROW()-2))=Switch!$D$34,INDIRECT(\"a\" & (VLOOKUP(Switch!$D$34,$F$2:$G$44,2,FALSE)+ROW()-2)),\"\")","v":{"$error":"#N/A"}},{"$f":"IF(INDIRECT(\"c\" & (VLOOKUP(Switch!$D$35,$F$2:$G$44,2,FALSE)+ROW()-2))=Switch!$D$35,INDIRECT(\"a\" & (VLOOKUP(Switch!$D$35,$F$2:$G$44,2,FALSE)+ROW()-2)),\"\")","v":{"$error":"#N/A"}},{"$f":"IF(INDIRECT(\"c\" & (VLOOKUP(Switch!$D$36,$F$2:$G$44,2,FALSE)+ROW()-2))=Switch!$D$36,INDIRECT(\"a\" & (VLOOKUP(Switch!$D$36,$F$2:$G$44,2,FALSE)+ROW()-2)),\"\")","v":{"$error":"#N/A"}},{"$f":"IF(INDIRECT(\"c\" & (VLOOKUP(Switch!$D$37,$F$2:$G$44,2,FALSE)+ROW()-2))=Switch!$D$37,INDIRECT(\"a\" & (VLOOKUP(Switch!$D$37,$F$2:$G$44,2,FALSE)+ROW()-2)),\"\")","v":{"$error":"#N/A"}},{"$f":"IF(INDIRECT(\"c\" & (VLOOKUP(Switch!$D$38,$F$2:$G$44,2,FALSE)+ROW()-2))=Switch!$D$38,INDIRECT(\"a\" & (VLOOKUP(Switch!$D$38,$F$2:$G$44,2,FALSE)+ROW()-2)),\"\")","v":{"$error":"#N/A"}},{"$f":"IF(INDIRECT(\"c\" & (VLOOKUP(Switch!$D$39,$F$2:$G$44,2,FALSE)+ROW()-2))=Switch!$D$39,INDIRECT(\"a\" & (VLOOKUP(Switch!$D$39,$F$2:$G$44,2,FALSE)+ROW()-2)),\"\")","v":{"$error":"#N/A"}},{"$f":"IF(INDIRECT(\"c\" & (VLOOKUP(Switch!$D$40,$F$2:$G$44,2,FALSE)+ROW()-2))=Switch!$D$40,INDIRECT(\"a\" & (VLOOKUP(Switch!$D$40,$F$2:$G$44,2,FALSE)+ROW()-2)),\"\")","v":{"$error":"#N/A"}},{"$f":"IF(INDIRECT(\"c\" & (VLOOKUP(Switch!$D$52,$F$2:$G$44,2,FALSE)+ROW()-2))=Switch!$D$52,INDIRECT(\"a\" & (VLOOKUP(Switch!$D$52,$F$2:$G$44,2,FALSE)+ROW()-2)),\"\")","v":{"$error":"#N/A"}},{"$f":"IF(INDIRECT(\"c\" & (VLOOKUP(Switch!$D$53,$F$2:$G$44,2,FALSE)+ROW()-2))=Switch!$D$53,INDIRECT(\"a\" & (VLOOKUP(Switch!$D$53,$F$2:$G$44,2,FALSE)+ROW()-2)),\"\")","v":{"$error":"#N/A"}},{"$f":"IF(INDIRECT(\"c\" & (VLOOKUP(Switch!$D$54,$F$2:$G$44,2,FALSE)+ROW()-2))=Switch!$D$54,INDIRECT(\"a\" & (VLOOKUP(Switch!$D$54,$F$2:$G$44,2,FALSE)+ROW()-2)),\"\")","v":{"$error":"#N/A"}},{"$f":"IF(INDIRECT(\"c\" & (VLOOKUP(Switch!$D$55,$F$2:$G$44,2,FALSE)+ROW()-2))=Switch!$D$55,INDIRECT(\"a\" & (VLOOKUP(Switch!$D$55,$F$2:$G$44,2,FALSE)+ROW()-2)),\"\")","v":{"$error":"#N/A"}},{"$f":"IF(INDIRECT(\"c\" & (VLOOKUP(Switch!$D$56,$F$2:$G$44,2,FALSE)+ROW()-2))=Switch!$D$56,INDIRECT(\"a\" & (VLOOKUP(Switch!$D$56,$F$2:$G$44,2,FALSE)+ROW()-2)),\"\")","v":{"$error":"#N/A"}},{"$f":"IF(INDIRECT(\"c\" & (VLOOKUP(Switch!$D$57,$F$2:$G$44,2,FALSE)+ROW()-2))=Switch!$D$57,INDIRECT(\"a\" & (VLOOKUP(Switch!$D$57,$F$2:$G$44,2,FALSE)+ROW()-2)),\"\")","v":{"$error":"#N/A"}},{"$f":"IF(INDIRECT(\"c\" & (VLOOKUP(Switch!$D$58,$F$2:$G$44,2,FALSE)+ROW()-2))=Switch!$D$58,INDIRECT(\"a\" & (VLOOKUP(Switch!$D$58,$F$2:$G$44,2,FALSE)+ROW()-2)),\"\")","v":{"$error":"#N/A"}},{"$f":"IF(INDIRECT(\"c\" & (VLOOKUP(Switch!$D$59,$F$2:$G$44,2,FALSE)+ROW()-2))=Switch!$D$59,INDIRECT(\"a\" & (VLOOKUP(Switch!$D$59,$F$2:$G$44,2,FALSE)+ROW()-2)),\"\")","v":{"$error":"#N/A"}},{"$f":"IF(INDIRECT(\"c\" & (VLOOKUP(Switch!$D$60,$F$2:$G$44,2,FALSE)+ROW()-2))=Switch!$D$60,INDIRECT(\"a\" & (VLOOKUP(Switch!$D$60,$F$2:$G$44,2,FALSE)+ROW()-2)),\"\")","v":{"$error":"#N/A"}},{"$f":"IF(INDIRECT(\"c\" & (VLOOKUP(Switch!$D$61,$F$2:$G$44,2,FALSE)+ROW()-2))=Switch!$D$61,INDIRECT(\"a\" & (VLOOKUP(Switch!$D$61,$F$2:$G$44,2,FALSE)+ROW()-2)),\"\")","v":{"$error":"#N/A"}},{"$f":"IF(INDIRECT(\"c\" & (VLOOKUP(Switch!$D$62,$F$2:$G$44,2,FALSE)+ROW()-2))=Switch!$D$62,INDIRECT(\"a\" & (VLOOKUP(Switch!$D$62,$F$2:$G$44,2,FALSE)+ROW()-2)),\"\")","v":{"$error":"#N/A"}},{"$f":"IF(INDIRECT(\"c\" & (VLOOKUP(Switch!$D$63,$F$2:$G$44,2,FALSE)+ROW()-2))=Switch!$D$63,INDIRECT(\"a\" & (VLOOKUP(Switch!$D$63,$F$2:$G$44,2,FALSE)+ROW()-2)),\"\")","v":{"$error":"#N/A"}},{"$f":"IF(INDIRECT(\"c\" & (VLOOKUP(Switch!$D$64,$F$2:$G$44,2,FALSE)+ROW()-2))=Switch!$D$64,INDIRECT(\"a\" & (VLOOKUP(Switch!$D$64,$F$2:$G$44,2,FALSE)+ROW()-2)),\"\")","v":{"$error":"#N/A"}},{"$f":"IF(INDIRECT(\"c\" & (VLOOKUP(Switch!$D$65,$F$2:$G$44,2,FALSE)+ROW()-2))=Switch!$D$65,INDIRECT(\"a\" & (VLOOKUP(Switch!$D$65,$F$2:$G$44,2,FALSE)+ROW()-2)),\"\")","v":{"$error":"#N/A"}},{"$f":"IF(INDIRECT(\"c\" & (VLOOKUP(Switch!$D$66,$F$2:$G$44,2,FALSE)+ROW()-2))=Switch!$D$66,INDIRECT(\"a\" & (VLOOKUP(Switch!$D$66,$F$2:$G$44,2,FALSE)+ROW()-2)),\"\")","v":{"$error":"#N/A"}}]
["Prescient Income Provider Fund A2","PIPFB5","Prescient Management Company Ltd",{"$f":"ROW()","v":464},null,null,{"$f":"VLOOKUP(F464,$C$2:$D$637,2,FALSE)","v":{"$error":"#N/A"}},{"$f":"IF(INDIRECT(\"c\" & (VLOOKUP(Switch!$D$26,$F$2:$G$44,2,FALSE)+ROW()-2))=Switch!$D$26,INDIRECT(\"a\" & (VLOOKUP(Switch!$D$26,$F$2:$G$44,2,FALSE)+ROW()-2)),\"\")","v":{"$error":"#N/A"}},{"$f":"IF(INDIRECT(\"c\" & (VLOOKUP(Switch!$D$27,$F$2:$G$44,2,FALSE)+ROW()-2))=Switch!$D$27,INDIRECT(\"a\" & (VLOOKUP(Switch!$D$27,$F$2:$G$44,2,FALSE)+ROW()-2)),\"\")","v":{"$error":"#N/A"}},{"$f":"IF(INDIRECT(\"c\" & (VLOOKUP(Switch!$D$28,$F$2:$G$44,2,FALSE)+ROW()-2))=Switch!$D$28,INDIRECT(\"a\" & (VLOOKUP(Switch!$D$28,$F$2:$G$44,2,FALSE)+ROW()-2)),\"\")","v":{"$error":"#N/A"}},{"$f":"IF(INDIRECT(\"c\" & (VLOOKUP(Switch!$D$29,$F$2:$G$44,2,FALSE)+ROW()-2))=Switch!$D$29,INDIRECT(\"a\" & (VLOOKUP(Switch!$D$29,$F$2:$G$44,2,FALSE)+ROW()-2)),\"\")","v":{"$error":"#N/A"}},{"$f":"IF(INDIRECT(\"c\" & (VLOOKUP(Switch!$D$30,$F$2:$G$44,2,FALSE)+ROW()-2))=Switch!$D$30,INDIRECT(\"a\" & (VLOOKUP(Switch!$D$30,$F$2:$G$44,2,FALSE)+ROW()-2)),\"\")","v":{"$error":"#N/A"}},{"$f":"IF(INDIRECT(\"c\" & (VLOOKUP(Switch!$D$31,$F$2:$G$44,2,FALSE)+ROW()-2))=Switch!$D$31,INDIRECT(\"a\" & (VLOOKUP(Switch!$D$31,$F$2:$G$44,2,FALSE)+ROW()-2)),\"\")","v":{"$error":"#N/A"}},{"$f":"IF(INDIRECT(\"c\" & (VLOOKUP(Switch!$D$32,$F$2:$G$44,2,FALSE)+ROW()-2))=Switch!$D$32,INDIRECT(\"a\" & (VLOOKUP(Switch!$D$32,$F$2:$G$44,2,FALSE)+ROW()-2)),\"\")","v":{"$error":"#N/A"}},{"$f":"IF(INDIRECT(\"c\" & (VLOOKUP(Switch!$D$33,$F$2:$G$44,2,FALSE)+ROW()-2))=Switch!$D$33,INDIRECT(\"a\" & (VLOOKUP(Switch!$D$33,$F$2:$G$44,2,FALSE)+ROW()-2)),\"\")","v":{"$error":"#N/A"}},{"$f":"IF(INDIRECT(\"c\" & (VLOOKUP(Switch!$D$34,$F$2:$G$44,2,FALSE)+ROW()-2))=Switch!$D$34,INDIRECT(\"a\" & (VLOOKUP(Switch!$D$34,$F$2:$G$44,2,FALSE)+ROW()-2)),\"\")","v":{"$error":"#N/A"}},{"$f":"IF(INDIRECT(\"c\" & (VLOOKUP(Switch!$D$35,$F$2:$G$44,2,FALSE)+ROW()-2))=Switch!$D$35,INDIRECT(\"a\" & (VLOOKUP(Switch!$D$35,$F$2:$G$44,2,FALSE)+ROW()-2)),\"\")","v":{"$error":"#N/A"}},{"$f":"IF(INDIRECT(\"c\" & (VLOOKUP(Switch!$D$36,$F$2:$G$44,2,FALSE)+ROW()-2))=Switch!$D$36,INDIRECT(\"a\" & (VLOOKUP(Switch!$D$36,$F$2:$G$44,2,FALSE)+ROW()-2)),\"\")","v":{"$error":"#N/A"}},{"$f":"IF(INDIRECT(\"c\" & (VLOOKUP(Switch!$D$37,$F$2:$G$44,2,FALSE)+ROW()-2))=Switch!$D$37,INDIRECT(\"a\" & (VLOOKUP(Switch!$D$37,$F$2:$G$44,2,FALSE)+ROW()-2)),\"\")","v":{"$error":"#N/A"}},{"$f":"IF(INDIRECT(\"c\" & (VLOOKUP(Switch!$D$38,$F$2:$G$44,2,FALSE)+ROW()-2))=Switch!$D$38,INDIRECT(\"a\" & (VLOOKUP(Switch!$D$38,$F$2:$G$44,2,FALSE)+ROW()-2)),\"\")","v":{"$error":"#N/A"}},{"$f":"IF(INDIRECT(\"c\" & (VLOOKUP(Switch!$D$39,$F$2:$G$44,2,FALSE)+ROW()-2))=Switch!$D$39,INDIRECT(\"a\" & (VLOOKUP(Switch!$D$39,$F$2:$G$44,2,FALSE)+ROW()-2)),\"\")","v":{"$error":"#N/A"}},{"$f":"IF(INDIRECT(\"c\" & (VLOOKUP(Switch!$D$40,$F$2:$G$44,2,FALSE)+ROW()-2))=Switch!$D$40,INDIRECT(\"a\" & (VLOOKUP(Switch!$D$40,$F$2:$G$44,2,FALSE)+ROW()-2)),\"\")","v":{"$error":"#N/A"}},{"$f":"IF(INDIRECT(\"c\" & (VLOOKUP(Switch!$D$52,$F$2:$G$44,2,FALSE)+ROW()-2))=Switch!$D$52,INDIRECT(\"a\" & (VLOOKUP(Switch!$D$52,$F$2:$G$44,2,FALSE)+ROW()-2)),\"\")","v":{"$error":"#N/A"}},{"$f":"IF(INDIRECT(\"c\" & (VLOOKUP(Switch!$D$53,$F$2:$G$44,2,FALSE)+ROW()-2))=Switch!$D$53,INDIRECT(\"a\" & (VLOOKUP(Switch!$D$53,$F$2:$G$44,2,FALSE)+ROW()-2)),\"\")","v":{"$error":"#N/A"}},{"$f":"IF(INDIRECT(\"c\" & (VLOOKUP(Switch!$D$54,$F$2:$G$44,2,FALSE)+ROW()-2))=Switch!$D$54,INDIRECT(\"a\" & (VLOOKUP(Switch!$D$54,$F$2:$G$44,2,FALSE)+ROW()-2)),\"\")","v":{"$error":"#N/A"}},{"$f":"IF(INDIRECT(\"c\" & (VLOOKUP(Switch!$D$55,$F$2:$G$44,2,FALSE)+ROW()-2))=Switch!$D$55,INDIRECT(\"a\" & (VLOOKUP(Switch!$D$55,$F$2:$G$44,2,FALSE)+ROW()-2)),\"\")","v":{"$error":"#N/A"}},{"$f":"IF(INDIRECT(\"c\" & (VLOOKUP(Switch!$D$56,$F$2:$G$44,2,FALSE)+ROW()-2))=Switch!$D$56,INDIRECT(\"a\" & (VLOOKUP(Switch!$D$56,$F$2:$G$44,2,FALSE)+ROW()-2)),\"\")","v":{"$error":"#N/A"}},{"$f":"IF(INDIRECT(\"c\" & (VLOOKUP(Switch!$D$57,$F$2:$G$44,2,FALSE)+ROW()-2))=Switch!$D$57,INDIRECT(\"a\" & (VLOOKUP(Switch!$D$57,$F$2:$G$44,2,FALSE)+ROW()-2)),\"\")","v":{"$error":"#N/A"}},{"$f":"IF(INDIRECT(\"c\" & (VLOOKUP(Switch!$D$58,$F$2:$G$44,2,FALSE)+ROW()-2))=Switch!$D$58,INDIRECT(\"a\" & (VLOOKUP(Switch!$D$58,$F$2:$G$44,2,FALSE)+ROW()-2)),\"\")","v":{"$error":"#N/A"}},{"$f":"IF(INDIRECT(\"c\" & (VLOOKUP(Switch!$D$59,$F$2:$G$44,2,FALSE)+ROW()-2))=Switch!$D$59,INDIRECT(\"a\" & (VLOOKUP(Switch!$D$59,$F$2:$G$44,2,FALSE)+ROW()-2)),\"\")","v":{"$error":"#N/A"}},{"$f":"IF(INDIRECT(\"c\" & (VLOOKUP(Switch!$D$60,$F$2:$G$44,2,FALSE)+ROW()-2))=Switch!$D$60,INDIRECT(\"a\" & (VLOOKUP(Switch!$D$60,$F$2:$G$44,2,FALSE)+ROW()-2)),\"\")","v":{"$error":"#N/A"}},{"$f":"IF(INDIRECT(\"c\" & (VLOOKUP(Switch!$D$61,$F$2:$G$44,2,FALSE)+ROW()-2))=Switch!$D$61,INDIRECT(\"a\" & (VLOOKUP(Switch!$D$61,$F$2:$G$44,2,FALSE)+ROW()-2)),\"\")","v":{"$error":"#N/A"}},{"$f":"IF(INDIRECT(\"c\" & (VLOOKUP(Switch!$D$62,$F$2:$G$44,2,FALSE)+ROW()-2))=Switch!$D$62,INDIRECT(\"a\" & (VLOOKUP(Switch!$D$62,$F$2:$G$44,2,FALSE)+ROW()-2)),\"\")","v":{"$error":"#N/A"}},{"$f":"IF(INDIRECT(\"c\" & (VLOOKUP(Switch!$D$63,$F$2:$G$44,2,FALSE)+ROW()-2))=Switch!$D$63,INDIRECT(\"a\" & (VLOOKUP(Switch!$D$63,$F$2:$G$44,2,FALSE)+ROW()-2)),\"\")","v":{"$error":"#N/A"}},{"$f":"IF(INDIRECT(\"c\" & (VLOOKUP(Switch!$D$64,$F$2:$G$44,2,FALSE)+ROW()-2))=Switch!$D$64,INDIRECT(\"a\" & (VLOOKUP(Switch!$D$64,$F$2:$G$44,2,FALSE)+ROW()-2)),\"\")","v":{"$error":"#N/A"}},{"$f":"IF(INDIRECT(\"c\" & (VLOOKUP(Switch!$D$65,$F$2:$G$44,2,FALSE)+ROW()-2))=Switch!$D$65,INDIRECT(\"a\" & (VLOOKUP(Switch!$D$65,$F$2:$G$44,2,FALSE)+ROW()-2)),\"\")","v":{"$error":"#N/A"}},{"$f":"IF(INDIRECT(\"c\" & (VLOOKUP(Switch!$D$66,$F$2:$G$44,2,FALSE)+ROW()-2))=Switch!$D$66,INDIRECT(\"a\" & (VLOOKUP(Switch!$D$66,$F$2:$G$44,2,FALSE)+ROW()-2)),\"\")","v":{"$error":"#N/A"}}]
["Prescient Positive Return QuantPlus Fund A2","PPRQA2","Prescient Management Company Ltd",{"$f":"ROW()","v":465},null,null,{"$f":"VLOOKUP(F465,$C$2:$D$637,2,FALSE)","v":{"$error":"#N/A"}},{"$f":"IF(INDIRECT(\"c\" & (VLOOKUP(Switch!$D$26,$F$2:$G$44,2,FALSE)+ROW()-2))=Switch!$D$26,INDIRECT(\"a\" & (VLOOKUP(Switch!$D$26,$F$2:$G$44,2,FALSE)+ROW()-2)),\"\")","v":{"$error":"#N/A"}},{"$f":"IF(INDIRECT(\"c\" & (VLOOKUP(Switch!$D$27,$F$2:$G$44,2,FALSE)+ROW()-2))=Switch!$D$27,INDIRECT(\"a\" & (VLOOKUP(Switch!$D$27,$F$2:$G$44,2,FALSE)+ROW()-2)),\"\")","v":{"$error":"#N/A"}},{"$f":"IF(INDIRECT(\"c\" & (VLOOKUP(Switch!$D$28,$F$2:$G$44,2,FALSE)+ROW()-2))=Switch!$D$28,INDIRECT(\"a\" & (VLOOKUP(Switch!$D$28,$F$2:$G$44,2,FALSE)+ROW()-2)),\"\")","v":{"$error":"#N/A"}},{"$f":"IF(INDIRECT(\"c\" & (VLOOKUP(Switch!$D$29,$F$2:$G$44,2,FALSE)+ROW()-2))=Switch!$D$29,INDIRECT(\"a\" & (VLOOKUP(Switch!$D$29,$F$2:$G$44,2,FALSE)+ROW()-2)),\"\")","v":{"$error":"#N/A"}},{"$f":"IF(INDIRECT(\"c\" & (VLOOKUP(Switch!$D$30,$F$2:$G$44,2,FALSE)+ROW()-2))=Switch!$D$30,INDIRECT(\"a\" & (VLOOKUP(Switch!$D$30,$F$2:$G$44,2,FALSE)+ROW()-2)),\"\")","v":{"$error":"#N/A"}},{"$f":"IF(INDIRECT(\"c\" & (VLOOKUP(Switch!$D$31,$F$2:$G$44,2,FALSE)+ROW()-2))=Switch!$D$31,INDIRECT(\"a\" & (VLOOKUP(Switch!$D$31,$F$2:$G$44,2,FALSE)+ROW()-2)),\"\")","v":{"$error":"#N/A"}},{"$f":"IF(INDIRECT(\"c\" & (VLOOKUP(Switch!$D$32,$F$2:$G$44,2,FALSE)+ROW()-2))=Switch!$D$32,INDIRECT(\"a\" & (VLOOKUP(Switch!$D$32,$F$2:$G$44,2,FALSE)+ROW()-2)),\"\")","v":{"$error":"#N/A"}},{"$f":"IF(INDIRECT(\"c\" & (VLOOKUP(Switch!$D$33,$F$2:$G$44,2,FALSE)+ROW()-2))=Switch!$D$33,INDIRECT(\"a\" & (VLOOKUP(Switch!$D$33,$F$2:$G$44,2,FALSE)+ROW()-2)),\"\")","v":{"$error":"#N/A"}},{"$f":"IF(INDIRECT(\"c\" & (VLOOKUP(Switch!$D$34,$F$2:$G$44,2,FALSE)+ROW()-2))=Switch!$D$34,INDIRECT(\"a\" & (VLOOKUP(Switch!$D$34,$F$2:$G$44,2,FALSE)+ROW()-2)),\"\")","v":{"$error":"#N/A"}},{"$f":"IF(INDIRECT(\"c\" & (VLOOKUP(Switch!$D$35,$F$2:$G$44,2,FALSE)+ROW()-2))=Switch!$D$35,INDIRECT(\"a\" & (VLOOKUP(Switch!$D$35,$F$2:$G$44,2,FALSE)+ROW()-2)),\"\")","v":{"$error":"#N/A"}},{"$f":"IF(INDIRECT(\"c\" & (VLOOKUP(Switch!$D$36,$F$2:$G$44,2,FALSE)+ROW()-2))=Switch!$D$36,INDIRECT(\"a\" & (VLOOKUP(Switch!$D$36,$F$2:$G$44,2,FALSE)+ROW()-2)),\"\")","v":{"$error":"#N/A"}},{"$f":"IF(INDIRECT(\"c\" & (VLOOKUP(Switch!$D$37,$F$2:$G$44,2,FALSE)+ROW()-2))=Switch!$D$37,INDIRECT(\"a\" & (VLOOKUP(Switch!$D$37,$F$2:$G$44,2,FALSE)+ROW()-2)),\"\")","v":{"$error":"#N/A"}},{"$f":"IF(INDIRECT(\"c\" & (VLOOKUP(Switch!$D$38,$F$2:$G$44,2,FALSE)+ROW()-2))=Switch!$D$38,INDIRECT(\"a\" & (VLOOKUP(Switch!$D$38,$F$2:$G$44,2,FALSE)+ROW()-2)),\"\")","v":{"$error":"#N/A"}},{"$f":"IF(INDIRECT(\"c\" & (VLOOKUP(Switch!$D$39,$F$2:$G$44,2,FALSE)+ROW()-2))=Switch!$D$39,INDIRECT(\"a\" & (VLOOKUP(Switch!$D$39,$F$2:$G$44,2,FALSE)+ROW()-2)),\"\")","v":{"$error":"#N/A"}},{"$f":"IF(INDIRECT(\"c\" & (VLOOKUP(Switch!$D$40,$F$2:$G$44,2,FALSE)+ROW()-2))=Switch!$D$40,INDIRECT(\"a\" & (VLOOKUP(Switch!$D$40,$F$2:$G$44,2,FALSE)+ROW()-2)),\"\")","v":{"$error":"#N/A"}},{"$f":"IF(INDIRECT(\"c\" & (VLOOKUP(Switch!$D$52,$F$2:$G$44,2,FALSE)+ROW()-2))=Switch!$D$52,INDIRECT(\"a\" & (VLOOKUP(Switch!$D$52,$F$2:$G$44,2,FALSE)+ROW()-2)),\"\")","v":{"$error":"#N/A"}},{"$f":"IF(INDIRECT(\"c\" & (VLOOKUP(Switch!$D$53,$F$2:$G$44,2,FALSE)+ROW()-2))=Switch!$D$53,INDIRECT(\"a\" & (VLOOKUP(Switch!$D$53,$F$2:$G$44,2,FALSE)+ROW()-2)),\"\")","v":{"$error":"#N/A"}},{"$f":"IF(INDIRECT(\"c\" & (VLOOKUP(Switch!$D$54,$F$2:$G$44,2,FALSE)+ROW()-2))=Switch!$D$54,INDIRECT(\"a\" & (VLOOKUP(Switch!$D$54,$F$2:$G$44,2,FALSE)+ROW()-2)),\"\")","v":{"$error":"#N/A"}},{"$f":"IF(INDIRECT(\"c\" & (VLOOKUP(Switch!$D$55,$F$2:$G$44,2,FALSE)+ROW()-2))=Switch!$D$55,INDIRECT(\"a\" & (VLOOKUP(Switch!$D$55,$F$2:$G$44,2,FALSE)+ROW()-2)),\"\")","v":{"$error":"#N/A"}},{"$f":"IF(INDIRECT(\"c\" & (VLOOKUP(Switch!$D$56,$F$2:$G$44,2,FALSE)+ROW()-2))=Switch!$D$56,INDIRECT(\"a\" & (VLOOKUP(Switch!$D$56,$F$2:$G$44,2,FALSE)+ROW()-2)),\"\")","v":{"$error":"#N/A"}},{"$f":"IF(INDIRECT(\"c\" & (VLOOKUP(Switch!$D$57,$F$2:$G$44,2,FALSE)+ROW()-2))=Switch!$D$57,INDIRECT(\"a\" & (VLOOKUP(Switch!$D$57,$F$2:$G$44,2,FALSE)+ROW()-2)),\"\")","v":{"$error":"#N/A"}},{"$f":"IF(INDIRECT(\"c\" & (VLOOKUP(Switch!$D$58,$F$2:$G$44,2,FALSE)+ROW()-2))=Switch!$D$58,INDIRECT(\"a\" & (VLOOKUP(Switch!$D$58,$F$2:$G$44,2,FALSE)+ROW()-2)),\"\")","v":{"$error":"#N/A"}},{"$f":"IF(INDIRECT(\"c\" & (VLOOKUP(Switch!$D$59,$F$2:$G$44,2,FALSE)+ROW()-2))=Switch!$D$59,INDIRECT(\"a\" & (VLOOKUP(Switch!$D$59,$F$2:$G$44,2,FALSE)+ROW()-2)),\"\")","v":{"$error":"#N/A"}},{"$f":"IF(INDIRECT(\"c\" & (VLOOKUP(Switch!$D$60,$F$2:$G$44,2,FALSE)+ROW()-2))=Switch!$D$60,INDIRECT(\"a\" & (VLOOKUP(Switch!$D$60,$F$2:$G$44,2,FALSE)+ROW()-2)),\"\")","v":{"$error":"#N/A"}},{"$f":"IF(INDIRECT(\"c\" & (VLOOKUP(Switch!$D$61,$F$2:$G$44,2,FALSE)+ROW()-2))=Switch!$D$61,INDIRECT(\"a\" & (VLOOKUP(Switch!$D$61,$F$2:$G$44,2,FALSE)+ROW()-2)),\"\")","v":{"$error":"#N/A"}},{"$f":"IF(INDIRECT(\"c\" & (VLOOKUP(Switch!$D$62,$F$2:$G$44,2,FALSE)+ROW()-2))=Switch!$D$62,INDIRECT(\"a\" & (VLOOKUP(Switch!$D$62,$F$2:$G$44,2,FALSE)+ROW()-2)),\"\")","v":{"$error":"#N/A"}},{"$f":"IF(INDIRECT(\"c\" & (VLOOKUP(Switch!$D$63,$F$2:$G$44,2,FALSE)+ROW()-2))=Switch!$D$63,INDIRECT(\"a\" & (VLOOKUP(Switch!$D$63,$F$2:$G$44,2,FALSE)+ROW()-2)),\"\")","v":{"$error":"#N/A"}},{"$f":"IF(INDIRECT(\"c\" & (VLOOKUP(Switch!$D$64,$F$2:$G$44,2,FALSE)+ROW()-2))=Switch!$D$64,INDIRECT(\"a\" & (VLOOKUP(Switch!$D$64,$F$2:$G$44,2,FALSE)+ROW()-2)),\"\")","v":{"$error":"#N/A"}},{"$f":"IF(INDIRECT(\"c\" & (VLOOKUP(Switch!$D$65,$F$2:$G$44,2,FALSE)+ROW()-2))=Switch!$D$65,INDIRECT(\"a\" & (VLOOKUP(Switch!$D$65,$F$2:$G$44,2,FALSE)+ROW()-2)),\"\")","v":{"$error":"#N/A"}},{"$f":"IF(INDIRECT(\"c\" & (VLOOKUP(Switch!$D$66,$F$2:$G$44,2,FALSE)+ROW()-2))=Switch!$D$66,INDIRECT(\"a\" & (VLOOKUP(Switch!$D$66,$F$2:$G$44,2,FALSE)+ROW()-2)),\"\")","v":{"$error":"#N/A"}}]
["Seed Income Fund A1","SIFA1","Prescient Management Company Ltd",{"$f":"ROW()","v":466},null,null,{"$f":"VLOOKUP(F466,$C$2:$D$637,2,FALSE)","v":{"$error":"#N/A"}},{"$f":"IF(INDIRECT(\"c\" & (VLOOKUP(Switch!$D$26,$F$2:$G$44,2,FALSE)+ROW()-2))=Switch!$D$26,INDIRECT(\"a\" & (VLOOKUP(Switch!$D$26,$F$2:$G$44,2,FALSE)+ROW()-2)),\"\")","v":{"$error":"#N/A"}},{"$f":"IF(INDIRECT(\"c\" & (VLOOKUP(Switch!$D$27,$F$2:$G$44,2,FALSE)+ROW()-2))=Switch!$D$27,INDIRECT(\"a\" & (VLOOKUP(Switch!$D$27,$F$2:$G$44,2,FALSE)+ROW()-2)),\"\")","v":{"$error":"#N/A"}},{"$f":"IF(INDIRECT(\"c\" & (VLOOKUP(Switch!$D$28,$F$2:$G$44,2,FALSE)+ROW()-2))=Switch!$D$28,INDIRECT(\"a\" & (VLOOKUP(Switch!$D$28,$F$2:$G$44,2,FALSE)+ROW()-2)),\"\")","v":{"$error":"#N/A"}},{"$f":"IF(INDIRECT(\"c\" & (VLOOKUP(Switch!$D$29,$F$2:$G$44,2,FALSE)+ROW()-2))=Switch!$D$29,INDIRECT(\"a\" & (VLOOKUP(Switch!$D$29,$F$2:$G$44,2,FALSE)+ROW()-2)),\"\")","v":{"$error":"#N/A"}},{"$f":"IF(INDIRECT(\"c\" & (VLOOKUP(Switch!$D$30,$F$2:$G$44,2,FALSE)+ROW()-2))=Switch!$D$30,INDIRECT(\"a\" & (VLOOKUP(Switch!$D$30,$F$2:$G$44,2,FALSE)+ROW()-2)),\"\")","v":{"$error":"#N/A"}},{"$f":"IF(INDIRECT(\"c\" & (VLOOKUP(Switch!$D$31,$F$2:$G$44,2,FALSE)+ROW()-2))=Switch!$D$31,INDIRECT(\"a\" & (VLOOKUP(Switch!$D$31,$F$2:$G$44,2,FALSE)+ROW()-2)),\"\")","v":{"$error":"#N/A"}},{"$f":"IF(INDIRECT(\"c\" & (VLOOKUP(Switch!$D$32,$F$2:$G$44,2,FALSE)+ROW()-2))=Switch!$D$32,INDIRECT(\"a\" & (VLOOKUP(Switch!$D$32,$F$2:$G$44,2,FALSE)+ROW()-2)),\"\")","v":{"$error":"#N/A"}},{"$f":"IF(INDIRECT(\"c\" & (VLOOKUP(Switch!$D$33,$F$2:$G$44,2,FALSE)+ROW()-2))=Switch!$D$33,INDIRECT(\"a\" & (VLOOKUP(Switch!$D$33,$F$2:$G$44,2,FALSE)+ROW()-2)),\"\")","v":{"$error":"#N/A"}},{"$f":"IF(INDIRECT(\"c\" & (VLOOKUP(Switch!$D$34,$F$2:$G$44,2,FALSE)+ROW()-2))=Switch!$D$34,INDIRECT(\"a\" & (VLOOKUP(Switch!$D$34,$F$2:$G$44,2,FALSE)+ROW()-2)),\"\")","v":{"$error":"#N/A"}},{"$f":"IF(INDIRECT(\"c\" & (VLOOKUP(Switch!$D$35,$F$2:$G$44,2,FALSE)+ROW()-2))=Switch!$D$35,INDIRECT(\"a\" & (VLOOKUP(Switch!$D$35,$F$2:$G$44,2,FALSE)+ROW()-2)),\"\")","v":{"$error":"#N/A"}},{"$f":"IF(INDIRECT(\"c\" & (VLOOKUP(Switch!$D$36,$F$2:$G$44,2,FALSE)+ROW()-2))=Switch!$D$36,INDIRECT(\"a\" & (VLOOKUP(Switch!$D$36,$F$2:$G$44,2,FALSE)+ROW()-2)),\"\")","v":{"$error":"#N/A"}},{"$f":"IF(INDIRECT(\"c\" & (VLOOKUP(Switch!$D$37,$F$2:$G$44,2,FALSE)+ROW()-2))=Switch!$D$37,INDIRECT(\"a\" & (VLOOKUP(Switch!$D$37,$F$2:$G$44,2,FALSE)+ROW()-2)),\"\")","v":{"$error":"#N/A"}},{"$f":"IF(INDIRECT(\"c\" & (VLOOKUP(Switch!$D$38,$F$2:$G$44,2,FALSE)+ROW()-2))=Switch!$D$38,INDIRECT(\"a\" & (VLOOKUP(Switch!$D$38,$F$2:$G$44,2,FALSE)+ROW()-2)),\"\")","v":{"$error":"#N/A"}},{"$f":"IF(INDIRECT(\"c\" & (VLOOKUP(Switch!$D$39,$F$2:$G$44,2,FALSE)+ROW()-2))=Switch!$D$39,INDIRECT(\"a\" & (VLOOKUP(Switch!$D$39,$F$2:$G$44,2,FALSE)+ROW()-2)),\"\")","v":{"$error":"#N/A"}},{"$f":"IF(INDIRECT(\"c\" & (VLOOKUP(Switch!$D$40,$F$2:$G$44,2,FALSE)+ROW()-2))=Switch!$D$40,INDIRECT(\"a\" & (VLOOKUP(Switch!$D$40,$F$2:$G$44,2,FALSE)+ROW()-2)),\"\")","v":{"$error":"#N/A"}},{"$f":"IF(INDIRECT(\"c\" & (VLOOKUP(Switch!$D$52,$F$2:$G$44,2,FALSE)+ROW()-2))=Switch!$D$52,INDIRECT(\"a\" & (VLOOKUP(Switch!$D$52,$F$2:$G$44,2,FALSE)+ROW()-2)),\"\")","v":{"$error":"#N/A"}},{"$f":"IF(INDIRECT(\"c\" & (VLOOKUP(Switch!$D$53,$F$2:$G$44,2,FALSE)+ROW()-2))=Switch!$D$53,INDIRECT(\"a\" & (VLOOKUP(Switch!$D$53,$F$2:$G$44,2,FALSE)+ROW()-2)),\"\")","v":{"$error":"#N/A"}},{"$f":"IF(INDIRECT(\"c\" & (VLOOKUP(Switch!$D$54,$F$2:$G$44,2,FALSE)+ROW()-2))=Switch!$D$54,INDIRECT(\"a\" & (VLOOKUP(Switch!$D$54,$F$2:$G$44,2,FALSE)+ROW()-2)),\"\")","v":{"$error":"#N/A"}},{"$f":"IF(INDIRECT(\"c\" & (VLOOKUP(Switch!$D$55,$F$2:$G$44,2,FALSE)+ROW()-2))=Switch!$D$55,INDIRECT(\"a\" & (VLOOKUP(Switch!$D$55,$F$2:$G$44,2,FALSE)+ROW()-2)),\"\")","v":{"$error":"#N/A"}},{"$f":"IF(INDIRECT(\"c\" & (VLOOKUP(Switch!$D$56,$F$2:$G$44,2,FALSE)+ROW()-2))=Switch!$D$56,INDIRECT(\"a\" & (VLOOKUP(Switch!$D$56,$F$2:$G$44,2,FALSE)+ROW()-2)),\"\")","v":{"$error":"#N/A"}},{"$f":"IF(INDIRECT(\"c\" & (VLOOKUP(Switch!$D$57,$F$2:$G$44,2,FALSE)+ROW()-2))=Switch!$D$57,INDIRECT(\"a\" & (VLOOKUP(Switch!$D$57,$F$2:$G$44,2,FALSE)+ROW()-2)),\"\")","v":{"$error":"#N/A"}},{"$f":"IF(INDIRECT(\"c\" & (VLOOKUP(Switch!$D$58,$F$2:$G$44,2,FALSE)+ROW()-2))=Switch!$D$58,INDIRECT(\"a\" & (VLOOKUP(Switch!$D$58,$F$2:$G$44,2,FALSE)+ROW()-2)),\"\")","v":{"$error":"#N/A"}},{"$f":"IF(INDIRECT(\"c\" & (VLOOKUP(Switch!$D$59,$F$2:$G$44,2,FALSE)+ROW()-2))=Switch!$D$59,INDIRECT(\"a\" & (VLOOKUP(Switch!$D$59,$F$2:$G$44,2,FALSE)+ROW()-2)),\"\")","v":{"$error":"#N/A"}},{"$f":"IF(INDIRECT(\"c\" & (VLOOKUP(Switch!$D$60,$F$2:$G$44,2,FALSE)+ROW()-2))=Switch!$D$60,INDIRECT(\"a\" & (VLOOKUP(Switch!$D$60,$F$2:$G$44,2,FALSE)+ROW()-2)),\"\")","v":{"$error":"#N/A"}},{"$f":"IF(INDIRECT(\"c\" & (VLOOKUP(Switch!$D$61,$F$2:$G$44,2,FALSE)+ROW()-2))=Switch!$D$61,INDIRECT(\"a\" & (VLOOKUP(Switch!$D$61,$F$2:$G$44,2,FALSE)+ROW()-2)),\"\")","v":{"$error":"#N/A"}},{"$f":"IF(INDIRECT(\"c\" & (VLOOKUP(Switch!$D$62,$F$2:$G$44,2,FALSE)+ROW()-2))=Switch!$D$62,INDIRECT(\"a\" & (VLOOKUP(Switch!$D$62,$F$2:$G$44,2,FALSE)+ROW()-2)),\"\")","v":{"$error":"#N/A"}},{"$f":"IF(INDIRECT(\"c\" & (VLOOKUP(Switch!$D$63,$F$2:$G$44,2,FALSE)+ROW()-2))=Switch!$D$63,INDIRECT(\"a\" & (VLOOKUP(Switch!$D$63,$F$2:$G$44,2,FALSE)+ROW()-2)),\"\")","v":{"$error":"#N/A"}},{"$f":"IF(INDIRECT(\"c\" & (VLOOKUP(Switch!$D$64,$F$2:$G$44,2,FALSE)+ROW()-2))=Switch!$D$64,INDIRECT(\"a\" & (VLOOKUP(Switch!$D$64,$F$2:$G$44,2,FALSE)+ROW()-2)),\"\")","v":{"$error":"#N/A"}},{"$f":"IF(INDIRECT(\"c\" & (VLOOKUP(Switch!$D$65,$F$2:$G$44,2,FALSE)+ROW()-2))=Switch!$D$65,INDIRECT(\"a\" & (VLOOKUP(Switch!$D$65,$F$2:$G$44,2,FALSE)+ROW()-2)),\"\")","v":{"$error":"#N/A"}},{"$f":"IF(INDIRECT(\"c\" & (VLOOKUP(Switch!$D$66,$F$2:$G$44,2,FALSE)+ROW()-2))=Switch!$D$66,INDIRECT(\"a\" & (VLOOKUP(Switch!$D$66,$F$2:$G$44,2,FALSE)+ROW()-2)),\"\")","v":{"$error":"#N/A"}}]
["Seed Stable – A1","MSAR","Prescient Management Company Ltd",{"$f":"ROW()","v":467},null,null,{"$f":"VLOOKUP(F467,$C$2:$D$637,2,FALSE)","v":{"$error":"#N/A"}},{"$f":"IF(INDIRECT(\"c\" & (VLOOKUP(Switch!$D$26,$F$2:$G$44,2,FALSE)+ROW()-2))=Switch!$D$26,INDIRECT(\"a\" & (VLOOKUP(Switch!$D$26,$F$2:$G$44,2,FALSE)+ROW()-2)),\"\")","v":{"$error":"#N/A"}},{"$f":"IF(INDIRECT(\"c\" & (VLOOKUP(Switch!$D$27,$F$2:$G$44,2,FALSE)+ROW()-2))=Switch!$D$27,INDIRECT(\"a\" & (VLOOKUP(Switch!$D$27,$F$2:$G$44,2,FALSE)+ROW()-2)),\"\")","v":{"$error":"#N/A"}},{"$f":"IF(INDIRECT(\"c\" & (VLOOKUP(Switch!$D$28,$F$2:$G$44,2,FALSE)+ROW()-2))=Switch!$D$28,INDIRECT(\"a\" & (VLOOKUP(Switch!$D$28,$F$2:$G$44,2,FALSE)+ROW()-2)),\"\")","v":{"$error":"#N/A"}},{"$f":"IF(INDIRECT(\"c\" & (VLOOKUP(Switch!$D$29,$F$2:$G$44,2,FALSE)+ROW()-2))=Switch!$D$29,INDIRECT(\"a\" & (VLOOKUP(Switch!$D$29,$F$2:$G$44,2,FALSE)+ROW()-2)),\"\")","v":{"$error":"#N/A"}},{"$f":"IF(INDIRECT(\"c\" & (VLOOKUP(Switch!$D$30,$F$2:$G$44,2,FALSE)+ROW()-2))=Switch!$D$30,INDIRECT(\"a\" & (VLOOKUP(Switch!$D$30,$F$2:$G$44,2,FALSE)+ROW()-2)),\"\")","v":{"$error":"#N/A"}},{"$f":"IF(INDIRECT(\"c\" & (VLOOKUP(Switch!$D$31,$F$2:$G$44,2,FALSE)+ROW()-2))=Switch!$D$31,INDIRECT(\"a\" & (VLOOKUP(Switch!$D$31,$F$2:$G$44,2,FALSE)+ROW()-2)),\"\")","v":{"$error":"#N/A"}},{"$f":"IF(INDIRECT(\"c\" & (VLOOKUP(Switch!$D$32,$F$2:$G$44,2,FALSE)+ROW()-2))=Switch!$D$32,INDIRECT(\"a\" & (VLOOKUP(Switch!$D$32,$F$2:$G$44,2,FALSE)+ROW()-2)),\"\")","v":{"$error":"#N/A"}},{"$f":"IF(INDIRECT(\"c\" & (VLOOKUP(Switch!$D$33,$F$2:$G$44,2,FALSE)+ROW()-2))=Switch!$D$33,INDIRECT(\"a\" & (VLOOKUP(Switch!$D$33,$F$2:$G$44,2,FALSE)+ROW()-2)),\"\")","v":{"$error":"#N/A"}},{"$f":"IF(INDIRECT(\"c\" & (VLOOKUP(Switch!$D$34,$F$2:$G$44,2,FALSE)+ROW()-2))=Switch!$D$34,INDIRECT(\"a\" & (VLOOKUP(Switch!$D$34,$F$2:$G$44,2,FALSE)+ROW()-2)),\"\")","v":{"$error":"#N/A"}},{"$f":"IF(INDIRECT(\"c\" & (VLOOKUP(Switch!$D$35,$F$2:$G$44,2,FALSE)+ROW()-2))=Switch!$D$35,INDIRECT(\"a\" & (VLOOKUP(Switch!$D$35,$F$2:$G$44,2,FALSE)+ROW()-2)),\"\")","v":{"$error":"#N/A"}},{"$f":"IF(INDIRECT(\"c\" & (VLOOKUP(Switch!$D$36,$F$2:$G$44,2,FALSE)+ROW()-2))=Switch!$D$36,INDIRECT(\"a\" & (VLOOKUP(Switch!$D$36,$F$2:$G$44,2,FALSE)+ROW()-2)),\"\")","v":{"$error":"#N/A"}},{"$f":"IF(INDIRECT(\"c\" & (VLOOKUP(Switch!$D$37,$F$2:$G$44,2,FALSE)+ROW()-2))=Switch!$D$37,INDIRECT(\"a\" & (VLOOKUP(Switch!$D$37,$F$2:$G$44,2,FALSE)+ROW()-2)),\"\")","v":{"$error":"#N/A"}},{"$f":"IF(INDIRECT(\"c\" & (VLOOKUP(Switch!$D$38,$F$2:$G$44,2,FALSE)+ROW()-2))=Switch!$D$38,INDIRECT(\"a\" & (VLOOKUP(Switch!$D$38,$F$2:$G$44,2,FALSE)+ROW()-2)),\"\")","v":{"$error":"#N/A"}},{"$f":"IF(INDIRECT(\"c\" & (VLOOKUP(Switch!$D$39,$F$2:$G$44,2,FALSE)+ROW()-2))=Switch!$D$39,INDIRECT(\"a\" & (VLOOKUP(Switch!$D$39,$F$2:$G$44,2,FALSE)+ROW()-2)),\"\")","v":{"$error":"#N/A"}},{"$f":"IF(INDIRECT(\"c\" & (VLOOKUP(Switch!$D$40,$F$2:$G$44,2,FALSE)+ROW()-2))=Switch!$D$40,INDIRECT(\"a\" & (VLOOKUP(Switch!$D$40,$F$2:$G$44,2,FALSE)+ROW()-2)),\"\")","v":{"$error":"#N/A"}},{"$f":"IF(INDIRECT(\"c\" & (VLOOKUP(Switch!$D$52,$F$2:$G$44,2,FALSE)+ROW()-2))=Switch!$D$52,INDIRECT(\"a\" & (VLOOKUP(Switch!$D$52,$F$2:$G$44,2,FALSE)+ROW()-2)),\"\")","v":{"$error":"#N/A"}},{"$f":"IF(INDIRECT(\"c\" & (VLOOKUP(Switch!$D$53,$F$2:$G$44,2,FALSE)+ROW()-2))=Switch!$D$53,INDIRECT(\"a\" & (VLOOKUP(Switch!$D$53,$F$2:$G$44,2,FALSE)+ROW()-2)),\"\")","v":{"$error":"#N/A"}},{"$f":"IF(INDIRECT(\"c\" & (VLOOKUP(Switch!$D$54,$F$2:$G$44,2,FALSE)+ROW()-2))=Switch!$D$54,INDIRECT(\"a\" & (VLOOKUP(Switch!$D$54,$F$2:$G$44,2,FALSE)+ROW()-2)),\"\")","v":{"$error":"#N/A"}},{"$f":"IF(INDIRECT(\"c\" & (VLOOKUP(Switch!$D$55,$F$2:$G$44,2,FALSE)+ROW()-2))=Switch!$D$55,INDIRECT(\"a\" & (VLOOKUP(Switch!$D$55,$F$2:$G$44,2,FALSE)+ROW()-2)),\"\")","v":{"$error":"#N/A"}},{"$f":"IF(INDIRECT(\"c\" & (VLOOKUP(Switch!$D$56,$F$2:$G$44,2,FALSE)+ROW()-2))=Switch!$D$56,INDIRECT(\"a\" & (VLOOKUP(Switch!$D$56,$F$2:$G$44,2,FALSE)+ROW()-2)),\"\")","v":{"$error":"#N/A"}},{"$f":"IF(INDIRECT(\"c\" & (VLOOKUP(Switch!$D$57,$F$2:$G$44,2,FALSE)+ROW()-2))=Switch!$D$57,INDIRECT(\"a\" & (VLOOKUP(Switch!$D$57,$F$2:$G$44,2,FALSE)+ROW()-2)),\"\")","v":{"$error":"#N/A"}},{"$f":"IF(INDIRECT(\"c\" & (VLOOKUP(Switch!$D$58,$F$2:$G$44,2,FALSE)+ROW()-2))=Switch!$D$58,INDIRECT(\"a\" & (VLOOKUP(Switch!$D$58,$F$2:$G$44,2,FALSE)+ROW()-2)),\"\")","v":{"$error":"#N/A"}},{"$f":"IF(INDIRECT(\"c\" & (VLOOKUP(Switch!$D$59,$F$2:$G$44,2,FALSE)+ROW()-2))=Switch!$D$59,INDIRECT(\"a\" & (VLOOKUP(Switch!$D$59,$F$2:$G$44,2,FALSE)+ROW()-2)),\"\")","v":{"$error":"#N/A"}},{"$f":"IF(INDIRECT(\"c\" & (VLOOKUP(Switch!$D$60,$F$2:$G$44,2,FALSE)+ROW()-2))=Switch!$D$60,INDIRECT(\"a\" & (VLOOKUP(Switch!$D$60,$F$2:$G$44,2,FALSE)+ROW()-2)),\"\")","v":{"$error":"#N/A"}},{"$f":"IF(INDIRECT(\"c\" & (VLOOKUP(Switch!$D$61,$F$2:$G$44,2,FALSE)+ROW()-2))=Switch!$D$61,INDIRECT(\"a\" & (VLOOKUP(Switch!$D$61,$F$2:$G$44,2,FALSE)+ROW()-2)),\"\")","v":{"$error":"#N/A"}},{"$f":"IF(INDIRECT(\"c\" & (VLOOKUP(Switch!$D$62,$F$2:$G$44,2,FALSE)+ROW()-2))=Switch!$D$62,INDIRECT(\"a\" & (VLOOKUP(Switch!$D$62,$F$2:$G$44,2,FALSE)+ROW()-2)),\"\")","v":{"$error":"#N/A"}},{"$f":"IF(INDIRECT(\"c\" & (VLOOKUP(Switch!$D$63,$F$2:$G$44,2,FALSE)+ROW()-2))=Switch!$D$63,INDIRECT(\"a\" & (VLOOKUP(Switch!$D$63,$F$2:$G$44,2,FALSE)+ROW()-2)),\"\")","v":{"$error":"#N/A"}},{"$f":"IF(INDIRECT(\"c\" & (VLOOKUP(Switch!$D$64,$F$2:$G$44,2,FALSE)+ROW()-2))=Switch!$D$64,INDIRECT(\"a\" & (VLOOKUP(Switch!$D$64,$F$2:$G$44,2,FALSE)+ROW()-2)),\"\")","v":{"$error":"#N/A"}},{"$f":"IF(INDIRECT(\"c\" & (VLOOKUP(Switch!$D$65,$F$2:$G$44,2,FALSE)+ROW()-2))=Switch!$D$65,INDIRECT(\"a\" & (VLOOKUP(Switch!$D$65,$F$2:$G$44,2,FALSE)+ROW()-2)),\"\")","v":{"$error":"#N/A"}},{"$f":"IF(INDIRECT(\"c\" & (VLOOKUP(Switch!$D$66,$F$2:$G$44,2,FALSE)+ROW()-2))=Switch!$D$66,INDIRECT(\"a\" & (VLOOKUP(Switch!$D$66,$F$2:$G$44,2,FALSE)+ROW()-2)),\"\")","v":{"$error":"#N/A"}}]
["Seed Equity A1","SEFCA","Prescient Management Company Ltd",{"$f":"ROW()","v":468},null,null,{"$f":"VLOOKUP(F468,$C$2:$D$637,2,FALSE)","v":{"$error":"#N/A"}},{"$f":"IF(INDIRECT(\"c\" & (VLOOKUP(Switch!$D$26,$F$2:$G$44,2,FALSE)+ROW()-2))=Switch!$D$26,INDIRECT(\"a\" & (VLOOKUP(Switch!$D$26,$F$2:$G$44,2,FALSE)+ROW()-2)),\"\")","v":{"$error":"#N/A"}},{"$f":"IF(INDIRECT(\"c\" & (VLOOKUP(Switch!$D$27,$F$2:$G$44,2,FALSE)+ROW()-2))=Switch!$D$27,INDIRECT(\"a\" & (VLOOKUP(Switch!$D$27,$F$2:$G$44,2,FALSE)+ROW()-2)),\"\")","v":{"$error":"#N/A"}},{"$f":"IF(INDIRECT(\"c\" & (VLOOKUP(Switch!$D$28,$F$2:$G$44,2,FALSE)+ROW()-2))=Switch!$D$28,INDIRECT(\"a\" & (VLOOKUP(Switch!$D$28,$F$2:$G$44,2,FALSE)+ROW()-2)),\"\")","v":{"$error":"#N/A"}},{"$f":"IF(INDIRECT(\"c\" & (VLOOKUP(Switch!$D$29,$F$2:$G$44,2,FALSE)+ROW()-2))=Switch!$D$29,INDIRECT(\"a\" & (VLOOKUP(Switch!$D$29,$F$2:$G$44,2,FALSE)+ROW()-2)),\"\")","v":{"$error":"#N/A"}},{"$f":"IF(INDIRECT(\"c\" & (VLOOKUP(Switch!$D$30,$F$2:$G$44,2,FALSE)+ROW()-2))=Switch!$D$30,INDIRECT(\"a\" & (VLOOKUP(Switch!$D$30,$F$2:$G$44,2,FALSE)+ROW()-2)),\"\")","v":{"$error":"#N/A"}},{"$f":"IF(INDIRECT(\"c\" & (VLOOKUP(Switch!$D$31,$F$2:$G$44,2,FALSE)+ROW()-2))=Switch!$D$31,INDIRECT(\"a\" & (VLOOKUP(Switch!$D$31,$F$2:$G$44,2,FALSE)+ROW()-2)),\"\")","v":{"$error":"#N/A"}},{"$f":"IF(INDIRECT(\"c\" & (VLOOKUP(Switch!$D$32,$F$2:$G$44,2,FALSE)+ROW()-2))=Switch!$D$32,INDIRECT(\"a\" & (VLOOKUP(Switch!$D$32,$F$2:$G$44,2,FALSE)+ROW()-2)),\"\")","v":{"$error":"#N/A"}},{"$f":"IF(INDIRECT(\"c\" & (VLOOKUP(Switch!$D$33,$F$2:$G$44,2,FALSE)+ROW()-2))=Switch!$D$33,INDIRECT(\"a\" & (VLOOKUP(Switch!$D$33,$F$2:$G$44,2,FALSE)+ROW()-2)),\"\")","v":{"$error":"#N/A"}},{"$f":"IF(INDIRECT(\"c\" & (VLOOKUP(Switch!$D$34,$F$2:$G$44,2,FALSE)+ROW()-2))=Switch!$D$34,INDIRECT(\"a\" & (VLOOKUP(Switch!$D$34,$F$2:$G$44,2,FALSE)+ROW()-2)),\"\")","v":{"$error":"#N/A"}},{"$f":"IF(INDIRECT(\"c\" & (VLOOKUP(Switch!$D$35,$F$2:$G$44,2,FALSE)+ROW()-2))=Switch!$D$35,INDIRECT(\"a\" & (VLOOKUP(Switch!$D$35,$F$2:$G$44,2,FALSE)+ROW()-2)),\"\")","v":{"$error":"#N/A"}},{"$f":"IF(INDIRECT(\"c\" & (VLOOKUP(Switch!$D$36,$F$2:$G$44,2,FALSE)+ROW()-2))=Switch!$D$36,INDIRECT(\"a\" & (VLOOKUP(Switch!$D$36,$F$2:$G$44,2,FALSE)+ROW()-2)),\"\")","v":{"$error":"#N/A"}},{"$f":"IF(INDIRECT(\"c\" & (VLOOKUP(Switch!$D$37,$F$2:$G$44,2,FALSE)+ROW()-2))=Switch!$D$37,INDIRECT(\"a\" & (VLOOKUP(Switch!$D$37,$F$2:$G$44,2,FALSE)+ROW()-2)),\"\")","v":{"$error":"#N/A"}},{"$f":"IF(INDIRECT(\"c\" & (VLOOKUP(Switch!$D$38,$F$2:$G$44,2,FALSE)+ROW()-2))=Switch!$D$38,INDIRECT(\"a\" & (VLOOKUP(Switch!$D$38,$F$2:$G$44,2,FALSE)+ROW()-2)),\"\")","v":{"$error":"#N/A"}},{"$f":"IF(INDIRECT(\"c\" & (VLOOKUP(Switch!$D$39,$F$2:$G$44,2,FALSE)+ROW()-2))=Switch!$D$39,INDIRECT(\"a\" & (VLOOKUP(Switch!$D$39,$F$2:$G$44,2,FALSE)+ROW()-2)),\"\")","v":{"$error":"#N/A"}},{"$f":"IF(INDIRECT(\"c\" & (VLOOKUP(Switch!$D$40,$F$2:$G$44,2,FALSE)+ROW()-2))=Switch!$D$40,INDIRECT(\"a\" & (VLOOKUP(Switch!$D$40,$F$2:$G$44,2,FALSE)+ROW()-2)),\"\")","v":{"$error":"#N/A"}},{"$f":"IF(INDIRECT(\"c\" & (VLOOKUP(Switch!$D$52,$F$2:$G$44,2,FALSE)+ROW()-2))=Switch!$D$52,INDIRECT(\"a\" & (VLOOKUP(Switch!$D$52,$F$2:$G$44,2,FALSE)+ROW()-2)),\"\")","v":{"$error":"#N/A"}},{"$f":"IF(INDIRECT(\"c\" & (VLOOKUP(Switch!$D$53,$F$2:$G$44,2,FALSE)+ROW()-2))=Switch!$D$53,INDIRECT(\"a\" & (VLOOKUP(Switch!$D$53,$F$2:$G$44,2,FALSE)+ROW()-2)),\"\")","v":{"$error":"#N/A"}},{"$f":"IF(INDIRECT(\"c\" & (VLOOKUP(Switch!$D$54,$F$2:$G$44,2,FALSE)+ROW()-2))=Switch!$D$54,INDIRECT(\"a\" & (VLOOKUP(Switch!$D$54,$F$2:$G$44,2,FALSE)+ROW()-2)),\"\")","v":{"$error":"#N/A"}},{"$f":"IF(INDIRECT(\"c\" & (VLOOKUP(Switch!$D$55,$F$2:$G$44,2,FALSE)+ROW()-2))=Switch!$D$55,INDIRECT(\"a\" & (VLOOKUP(Switch!$D$55,$F$2:$G$44,2,FALSE)+ROW()-2)),\"\")","v":{"$error":"#N/A"}},{"$f":"IF(INDIRECT(\"c\" & (VLOOKUP(Switch!$D$56,$F$2:$G$44,2,FALSE)+ROW()-2))=Switch!$D$56,INDIRECT(\"a\" & (VLOOKUP(Switch!$D$56,$F$2:$G$44,2,FALSE)+ROW()-2)),\"\")","v":{"$error":"#N/A"}},{"$f":"IF(INDIRECT(\"c\" & (VLOOKUP(Switch!$D$57,$F$2:$G$44,2,FALSE)+ROW()-2))=Switch!$D$57,INDIRECT(\"a\" & (VLOOKUP(Switch!$D$57,$F$2:$G$44,2,FALSE)+ROW()-2)),\"\")","v":{"$error":"#N/A"}},{"$f":"IF(INDIRECT(\"c\" & (VLOOKUP(Switch!$D$58,$F$2:$G$44,2,FALSE)+ROW()-2))=Switch!$D$58,INDIRECT(\"a\" & (VLOOKUP(Switch!$D$58,$F$2:$G$44,2,FALSE)+ROW()-2)),\"\")","v":{"$error":"#N/A"}},{"$f":"IF(INDIRECT(\"c\" & (VLOOKUP(Switch!$D$59,$F$2:$G$44,2,FALSE)+ROW()-2))=Switch!$D$59,INDIRECT(\"a\" & (VLOOKUP(Switch!$D$59,$F$2:$G$44,2,FALSE)+ROW()-2)),\"\")","v":{"$error":"#N/A"}},{"$f":"IF(INDIRECT(\"c\" & (VLOOKUP(Switch!$D$60,$F$2:$G$44,2,FALSE)+ROW()-2))=Switch!$D$60,INDIRECT(\"a\" & (VLOOKUP(Switch!$D$60,$F$2:$G$44,2,FALSE)+ROW()-2)),\"\")","v":{"$error":"#N/A"}},{"$f":"IF(INDIRECT(\"c\" & (VLOOKUP(Switch!$D$61,$F$2:$G$44,2,FALSE)+ROW()-2))=Switch!$D$61,INDIRECT(\"a\" & (VLOOKUP(Switch!$D$61,$F$2:$G$44,2,FALSE)+ROW()-2)),\"\")","v":{"$error":"#N/A"}},{"$f":"IF(INDIRECT(\"c\" & (VLOOKUP(Switch!$D$62,$F$2:$G$44,2,FALSE)+ROW()-2))=Switch!$D$62,INDIRECT(\"a\" & (VLOOKUP(Switch!$D$62,$F$2:$G$44,2,FALSE)+ROW()-2)),\"\")","v":{"$error":"#N/A"}},{"$f":"IF(INDIRECT(\"c\" & (VLOOKUP(Switch!$D$63,$F$2:$G$44,2,FALSE)+ROW()-2))=Switch!$D$63,INDIRECT(\"a\" & (VLOOKUP(Switch!$D$63,$F$2:$G$44,2,FALSE)+ROW()-2)),\"\")","v":{"$error":"#N/A"}},{"$f":"IF(INDIRECT(\"c\" & (VLOOKUP(Switch!$D$64,$F$2:$G$44,2,FALSE)+ROW()-2))=Switch!$D$64,INDIRECT(\"a\" & (VLOOKUP(Switch!$D$64,$F$2:$G$44,2,FALSE)+ROW()-2)),\"\")","v":{"$error":"#N/A"}},{"$f":"IF(INDIRECT(\"c\" & (VLOOKUP(Switch!$D$65,$F$2:$G$44,2,FALSE)+ROW()-2))=Switch!$D$65,INDIRECT(\"a\" & (VLOOKUP(Switch!$D$65,$F$2:$G$44,2,FALSE)+ROW()-2)),\"\")","v":{"$error":"#N/A"}},{"$f":"IF(INDIRECT(\"c\" & (VLOOKUP(Switch!$D$66,$F$2:$G$44,2,FALSE)+ROW()-2))=Switch!$D$66,INDIRECT(\"a\" & (VLOOKUP(Switch!$D$66,$F$2:$G$44,2,FALSE)+ROW()-2)),\"\")","v":{"$error":"#N/A"}}]
["Seed Balanced – A1","MSEF","Prescient Management Company Ltd",{"$f":"ROW()","v":469},null,null,{"$f":"VLOOKUP(F469,$C$2:$D$637,2,FALSE)","v":{"$error":"#N/A"}},{"$f":"IF(INDIRECT(\"c\" & (VLOOKUP(Switch!$D$26,$F$2:$G$44,2,FALSE)+ROW()-2))=Switch!$D$26,INDIRECT(\"a\" & (VLOOKUP(Switch!$D$26,$F$2:$G$44,2,FALSE)+ROW()-2)),\"\")","v":{"$error":"#N/A"}},{"$f":"IF(INDIRECT(\"c\" & (VLOOKUP(Switch!$D$27,$F$2:$G$44,2,FALSE)+ROW()-2))=Switch!$D$27,INDIRECT(\"a\" & (VLOOKUP(Switch!$D$27,$F$2:$G$44,2,FALSE)+ROW()-2)),\"\")","v":{"$error":"#N/A"}},{"$f":"IF(INDIRECT(\"c\" & (VLOOKUP(Switch!$D$28,$F$2:$G$44,2,FALSE)+ROW()-2))=Switch!$D$28,INDIRECT(\"a\" & (VLOOKUP(Switch!$D$28,$F$2:$G$44,2,FALSE)+ROW()-2)),\"\")","v":{"$error":"#N/A"}},{"$f":"IF(INDIRECT(\"c\" & (VLOOKUP(Switch!$D$29,$F$2:$G$44,2,FALSE)+ROW()-2))=Switch!$D$29,INDIRECT(\"a\" & (VLOOKUP(Switch!$D$29,$F$2:$G$44,2,FALSE)+ROW()-2)),\"\")","v":{"$error":"#N/A"}},{"$f":"IF(INDIRECT(\"c\" & (VLOOKUP(Switch!$D$30,$F$2:$G$44,2,FALSE)+ROW()-2))=Switch!$D$30,INDIRECT(\"a\" & (VLOOKUP(Switch!$D$30,$F$2:$G$44,2,FALSE)+ROW()-2)),\"\")","v":{"$error":"#N/A"}},{"$f":"IF(INDIRECT(\"c\" & (VLOOKUP(Switch!$D$31,$F$2:$G$44,2,FALSE)+ROW()-2))=Switch!$D$31,INDIRECT(\"a\" & (VLOOKUP(Switch!$D$31,$F$2:$G$44,2,FALSE)+ROW()-2)),\"\")","v":{"$error":"#N/A"}},{"$f":"IF(INDIRECT(\"c\" & (VLOOKUP(Switch!$D$32,$F$2:$G$44,2,FALSE)+ROW()-2))=Switch!$D$32,INDIRECT(\"a\" & (VLOOKUP(Switch!$D$32,$F$2:$G$44,2,FALSE)+ROW()-2)),\"\")","v":{"$error":"#N/A"}},{"$f":"IF(INDIRECT(\"c\" & (VLOOKUP(Switch!$D$33,$F$2:$G$44,2,FALSE)+ROW()-2))=Switch!$D$33,INDIRECT(\"a\" & (VLOOKUP(Switch!$D$33,$F$2:$G$44,2,FALSE)+ROW()-2)),\"\")","v":{"$error":"#N/A"}},{"$f":"IF(INDIRECT(\"c\" & (VLOOKUP(Switch!$D$34,$F$2:$G$44,2,FALSE)+ROW()-2))=Switch!$D$34,INDIRECT(\"a\" & (VLOOKUP(Switch!$D$34,$F$2:$G$44,2,FALSE)+ROW()-2)),\"\")","v":{"$error":"#N/A"}},{"$f":"IF(INDIRECT(\"c\" & (VLOOKUP(Switch!$D$35,$F$2:$G$44,2,FALSE)+ROW()-2))=Switch!$D$35,INDIRECT(\"a\" & (VLOOKUP(Switch!$D$35,$F$2:$G$44,2,FALSE)+ROW()-2)),\"\")","v":{"$error":"#N/A"}},{"$f":"IF(INDIRECT(\"c\" & (VLOOKUP(Switch!$D$36,$F$2:$G$44,2,FALSE)+ROW()-2))=Switch!$D$36,INDIRECT(\"a\" & (VLOOKUP(Switch!$D$36,$F$2:$G$44,2,FALSE)+ROW()-2)),\"\")","v":{"$error":"#N/A"}},{"$f":"IF(INDIRECT(\"c\" & (VLOOKUP(Switch!$D$37,$F$2:$G$44,2,FALSE)+ROW()-2))=Switch!$D$37,INDIRECT(\"a\" & (VLOOKUP(Switch!$D$37,$F$2:$G$44,2,FALSE)+ROW()-2)),\"\")","v":{"$error":"#N/A"}},{"$f":"IF(INDIRECT(\"c\" & (VLOOKUP(Switch!$D$38,$F$2:$G$44,2,FALSE)+ROW()-2))=Switch!$D$38,INDIRECT(\"a\" & (VLOOKUP(Switch!$D$38,$F$2:$G$44,2,FALSE)+ROW()-2)),\"\")","v":{"$error":"#N/A"}},{"$f":"IF(INDIRECT(\"c\" & (VLOOKUP(Switch!$D$39,$F$2:$G$44,2,FALSE)+ROW()-2))=Switch!$D$39,INDIRECT(\"a\" & (VLOOKUP(Switch!$D$39,$F$2:$G$44,2,FALSE)+ROW()-2)),\"\")","v":{"$error":"#N/A"}},{"$f":"IF(INDIRECT(\"c\" & (VLOOKUP(Switch!$D$40,$F$2:$G$44,2,FALSE)+ROW()-2))=Switch!$D$40,INDIRECT(\"a\" & (VLOOKUP(Switch!$D$40,$F$2:$G$44,2,FALSE)+ROW()-2)),\"\")","v":{"$error":"#N/A"}},{"$f":"IF(INDIRECT(\"c\" & (VLOOKUP(Switch!$D$52,$F$2:$G$44,2,FALSE)+ROW()-2))=Switch!$D$52,INDIRECT(\"a\" & (VLOOKUP(Switch!$D$52,$F$2:$G$44,2,FALSE)+ROW()-2)),\"\")","v":{"$error":"#N/A"}},{"$f":"IF(INDIRECT(\"c\" & (VLOOKUP(Switch!$D$53,$F$2:$G$44,2,FALSE)+ROW()-2))=Switch!$D$53,INDIRECT(\"a\" & (VLOOKUP(Switch!$D$53,$F$2:$G$44,2,FALSE)+ROW()-2)),\"\")","v":{"$error":"#N/A"}},{"$f":"IF(INDIRECT(\"c\" & (VLOOKUP(Switch!$D$54,$F$2:$G$44,2,FALSE)+ROW()-2))=Switch!$D$54,INDIRECT(\"a\" & (VLOOKUP(Switch!$D$54,$F$2:$G$44,2,FALSE)+ROW()-2)),\"\")","v":{"$error":"#N/A"}},{"$f":"IF(INDIRECT(\"c\" & (VLOOKUP(Switch!$D$55,$F$2:$G$44,2,FALSE)+ROW()-2))=Switch!$D$55,INDIRECT(\"a\" & (VLOOKUP(Switch!$D$55,$F$2:$G$44,2,FALSE)+ROW()-2)),\"\")","v":{"$error":"#N/A"}},{"$f":"IF(INDIRECT(\"c\" & (VLOOKUP(Switch!$D$56,$F$2:$G$44,2,FALSE)+ROW()-2))=Switch!$D$56,INDIRECT(\"a\" & (VLOOKUP(Switch!$D$56,$F$2:$G$44,2,FALSE)+ROW()-2)),\"\")","v":{"$error":"#N/A"}},{"$f":"IF(INDIRECT(\"c\" & (VLOOKUP(Switch!$D$57,$F$2:$G$44,2,FALSE)+ROW()-2))=Switch!$D$57,INDIRECT(\"a\" & (VLOOKUP(Switch!$D$57,$F$2:$G$44,2,FALSE)+ROW()-2)),\"\")","v":{"$error":"#N/A"}},{"$f":"IF(INDIRECT(\"c\" & (VLOOKUP(Switch!$D$58,$F$2:$G$44,2,FALSE)+ROW()-2))=Switch!$D$58,INDIRECT(\"a\" & (VLOOKUP(Switch!$D$58,$F$2:$G$44,2,FALSE)+ROW()-2)),\"\")","v":{"$error":"#N/A"}},{"$f":"IF(INDIRECT(\"c\" & (VLOOKUP(Switch!$D$59,$F$2:$G$44,2,FALSE)+ROW()-2))=Switch!$D$59,INDIRECT(\"a\" & (VLOOKUP(Switch!$D$59,$F$2:$G$44,2,FALSE)+ROW()-2)),\"\")","v":{"$error":"#N/A"}},{"$f":"IF(INDIRECT(\"c\" & (VLOOKUP(Switch!$D$60,$F$2:$G$44,2,FALSE)+ROW()-2))=Switch!$D$60,INDIRECT(\"a\" & (VLOOKUP(Switch!$D$60,$F$2:$G$44,2,FALSE)+ROW()-2)),\"\")","v":{"$error":"#N/A"}},{"$f":"IF(INDIRECT(\"c\" & (VLOOKUP(Switch!$D$61,$F$2:$G$44,2,FALSE)+ROW()-2))=Switch!$D$61,INDIRECT(\"a\" & (VLOOKUP(Switch!$D$61,$F$2:$G$44,2,FALSE)+ROW()-2)),\"\")","v":{"$error":"#N/A"}},{"$f":"IF(INDIRECT(\"c\" & (VLOOKUP(Switch!$D$62,$F$2:$G$44,2,FALSE)+ROW()-2))=Switch!$D$62,INDIRECT(\"a\" & (VLOOKUP(Switch!$D$62,$F$2:$G$44,2,FALSE)+ROW()-2)),\"\")","v":{"$error":"#N/A"}},{"$f":"IF(INDIRECT(\"c\" & (VLOOKUP(Switch!$D$63,$F$2:$G$44,2,FALSE)+ROW()-2))=Switch!$D$63,INDIRECT(\"a\" & (VLOOKUP(Switch!$D$63,$F$2:$G$44,2,FALSE)+ROW()-2)),\"\")","v":{"$error":"#N/A"}},{"$f":"IF(INDIRECT(\"c\" & (VLOOKUP(Switch!$D$64,$F$2:$G$44,2,FALSE)+ROW()-2))=Switch!$D$64,INDIRECT(\"a\" & (VLOOKUP(Switch!$D$64,$F$2:$G$44,2,FALSE)+ROW()-2)),\"\")","v":{"$error":"#N/A"}},{"$f":"IF(INDIRECT(\"c\" & (VLOOKUP(Switch!$D$65,$F$2:$G$44,2,FALSE)+ROW()-2))=Switch!$D$65,INDIRECT(\"a\" & (VLOOKUP(Switch!$D$65,$F$2:$G$44,2,FALSE)+ROW()-2)),\"\")","v":{"$error":"#N/A"}},{"$f":"IF(INDIRECT(\"c\" & (VLOOKUP(Switch!$D$66,$F$2:$G$44,2,FALSE)+ROW()-2))=Switch!$D$66,INDIRECT(\"a\" & (VLOOKUP(Switch!$D$66,$F$2:$G$44,2,FALSE)+ROW()-2)),\"\")","v":{"$error":"#N/A"}}]
["Wellsfaber Balanced RECM Fund of Funds A","WFBALA","Prescient Management Company Ltd",{"$f":"ROW()","v":470},null,null,{"$f":"VLOOKUP(F470,$C$2:$D$637,2,FALSE)","v":{"$error":"#N/A"}},{"$f":"IF(INDIRECT(\"c\" & (VLOOKUP(Switch!$D$26,$F$2:$G$44,2,FALSE)+ROW()-2))=Switch!$D$26,INDIRECT(\"a\" & (VLOOKUP(Switch!$D$26,$F$2:$G$44,2,FALSE)+ROW()-2)),\"\")","v":{"$error":"#N/A"}},{"$f":"IF(INDIRECT(\"c\" & (VLOOKUP(Switch!$D$27,$F$2:$G$44,2,FALSE)+ROW()-2))=Switch!$D$27,INDIRECT(\"a\" & (VLOOKUP(Switch!$D$27,$F$2:$G$44,2,FALSE)+ROW()-2)),\"\")","v":{"$error":"#N/A"}},{"$f":"IF(INDIRECT(\"c\" & (VLOOKUP(Switch!$D$28,$F$2:$G$44,2,FALSE)+ROW()-2))=Switch!$D$28,INDIRECT(\"a\" & (VLOOKUP(Switch!$D$28,$F$2:$G$44,2,FALSE)+ROW()-2)),\"\")","v":{"$error":"#N/A"}},{"$f":"IF(INDIRECT(\"c\" & (VLOOKUP(Switch!$D$29,$F$2:$G$44,2,FALSE)+ROW()-2))=Switch!$D$29,INDIRECT(\"a\" & (VLOOKUP(Switch!$D$29,$F$2:$G$44,2,FALSE)+ROW()-2)),\"\")","v":{"$error":"#N/A"}},{"$f":"IF(INDIRECT(\"c\" & (VLOOKUP(Switch!$D$30,$F$2:$G$44,2,FALSE)+ROW()-2))=Switch!$D$30,INDIRECT(\"a\" & (VLOOKUP(Switch!$D$30,$F$2:$G$44,2,FALSE)+ROW()-2)),\"\")","v":{"$error":"#N/A"}},{"$f":"IF(INDIRECT(\"c\" & (VLOOKUP(Switch!$D$31,$F$2:$G$44,2,FALSE)+ROW()-2))=Switch!$D$31,INDIRECT(\"a\" & (VLOOKUP(Switch!$D$31,$F$2:$G$44,2,FALSE)+ROW()-2)),\"\")","v":{"$error":"#N/A"}},{"$f":"IF(INDIRECT(\"c\" & (VLOOKUP(Switch!$D$32,$F$2:$G$44,2,FALSE)+ROW()-2))=Switch!$D$32,INDIRECT(\"a\" & (VLOOKUP(Switch!$D$32,$F$2:$G$44,2,FALSE)+ROW()-2)),\"\")","v":{"$error":"#N/A"}},{"$f":"IF(INDIRECT(\"c\" & (VLOOKUP(Switch!$D$33,$F$2:$G$44,2,FALSE)+ROW()-2))=Switch!$D$33,INDIRECT(\"a\" & (VLOOKUP(Switch!$D$33,$F$2:$G$44,2,FALSE)+ROW()-2)),\"\")","v":{"$error":"#N/A"}},{"$f":"IF(INDIRECT(\"c\" & (VLOOKUP(Switch!$D$34,$F$2:$G$44,2,FALSE)+ROW()-2))=Switch!$D$34,INDIRECT(\"a\" & (VLOOKUP(Switch!$D$34,$F$2:$G$44,2,FALSE)+ROW()-2)),\"\")","v":{"$error":"#N/A"}},{"$f":"IF(INDIRECT(\"c\" & (VLOOKUP(Switch!$D$35,$F$2:$G$44,2,FALSE)+ROW()-2))=Switch!$D$35,INDIRECT(\"a\" & (VLOOKUP(Switch!$D$35,$F$2:$G$44,2,FALSE)+ROW()-2)),\"\")","v":{"$error":"#N/A"}},{"$f":"IF(INDIRECT(\"c\" & (VLOOKUP(Switch!$D$36,$F$2:$G$44,2,FALSE)+ROW()-2))=Switch!$D$36,INDIRECT(\"a\" & (VLOOKUP(Switch!$D$36,$F$2:$G$44,2,FALSE)+ROW()-2)),\"\")","v":{"$error":"#N/A"}},{"$f":"IF(INDIRECT(\"c\" & (VLOOKUP(Switch!$D$37,$F$2:$G$44,2,FALSE)+ROW()-2))=Switch!$D$37,INDIRECT(\"a\" & (VLOOKUP(Switch!$D$37,$F$2:$G$44,2,FALSE)+ROW()-2)),\"\")","v":{"$error":"#N/A"}},{"$f":"IF(INDIRECT(\"c\" & (VLOOKUP(Switch!$D$38,$F$2:$G$44,2,FALSE)+ROW()-2))=Switch!$D$38,INDIRECT(\"a\" & (VLOOKUP(Switch!$D$38,$F$2:$G$44,2,FALSE)+ROW()-2)),\"\")","v":{"$error":"#N/A"}},{"$f":"IF(INDIRECT(\"c\" & (VLOOKUP(Switch!$D$39,$F$2:$G$44,2,FALSE)+ROW()-2))=Switch!$D$39,INDIRECT(\"a\" & (VLOOKUP(Switch!$D$39,$F$2:$G$44,2,FALSE)+ROW()-2)),\"\")","v":{"$error":"#N/A"}},{"$f":"IF(INDIRECT(\"c\" & (VLOOKUP(Switch!$D$40,$F$2:$G$44,2,FALSE)+ROW()-2))=Switch!$D$40,INDIRECT(\"a\" & (VLOOKUP(Switch!$D$40,$F$2:$G$44,2,FALSE)+ROW()-2)),\"\")","v":{"$error":"#N/A"}},{"$f":"IF(INDIRECT(\"c\" & (VLOOKUP(Switch!$D$52,$F$2:$G$44,2,FALSE)+ROW()-2))=Switch!$D$52,INDIRECT(\"a\" & (VLOOKUP(Switch!$D$52,$F$2:$G$44,2,FALSE)+ROW()-2)),\"\")","v":{"$error":"#N/A"}},{"$f":"IF(INDIRECT(\"c\" & (VLOOKUP(Switch!$D$53,$F$2:$G$44,2,FALSE)+ROW()-2))=Switch!$D$53,INDIRECT(\"a\" & (VLOOKUP(Switch!$D$53,$F$2:$G$44,2,FALSE)+ROW()-2)),\"\")","v":{"$error":"#N/A"}},{"$f":"IF(INDIRECT(\"c\" & (VLOOKUP(Switch!$D$54,$F$2:$G$44,2,FALSE)+ROW()-2))=Switch!$D$54,INDIRECT(\"a\" & (VLOOKUP(Switch!$D$54,$F$2:$G$44,2,FALSE)+ROW()-2)),\"\")","v":{"$error":"#N/A"}},{"$f":"IF(INDIRECT(\"c\" & (VLOOKUP(Switch!$D$55,$F$2:$G$44,2,FALSE)+ROW()-2))=Switch!$D$55,INDIRECT(\"a\" & (VLOOKUP(Switch!$D$55,$F$2:$G$44,2,FALSE)+ROW()-2)),\"\")","v":{"$error":"#N/A"}},{"$f":"IF(INDIRECT(\"c\" & (VLOOKUP(Switch!$D$56,$F$2:$G$44,2,FALSE)+ROW()-2))=Switch!$D$56,INDIRECT(\"a\" & (VLOOKUP(Switch!$D$56,$F$2:$G$44,2,FALSE)+ROW()-2)),\"\")","v":{"$error":"#N/A"}},{"$f":"IF(INDIRECT(\"c\" & (VLOOKUP(Switch!$D$57,$F$2:$G$44,2,FALSE)+ROW()-2))=Switch!$D$57,INDIRECT(\"a\" & (VLOOKUP(Switch!$D$57,$F$2:$G$44,2,FALSE)+ROW()-2)),\"\")","v":{"$error":"#N/A"}},{"$f":"IF(INDIRECT(\"c\" & (VLOOKUP(Switch!$D$58,$F$2:$G$44,2,FALSE)+ROW()-2))=Switch!$D$58,INDIRECT(\"a\" & (VLOOKUP(Switch!$D$58,$F$2:$G$44,2,FALSE)+ROW()-2)),\"\")","v":{"$error":"#N/A"}},{"$f":"IF(INDIRECT(\"c\" & (VLOOKUP(Switch!$D$59,$F$2:$G$44,2,FALSE)+ROW()-2))=Switch!$D$59,INDIRECT(\"a\" & (VLOOKUP(Switch!$D$59,$F$2:$G$44,2,FALSE)+ROW()-2)),\"\")","v":{"$error":"#N/A"}},{"$f":"IF(INDIRECT(\"c\" & (VLOOKUP(Switch!$D$60,$F$2:$G$44,2,FALSE)+ROW()-2))=Switch!$D$60,INDIRECT(\"a\" & (VLOOKUP(Switch!$D$60,$F$2:$G$44,2,FALSE)+ROW()-2)),\"\")","v":{"$error":"#N/A"}},{"$f":"IF(INDIRECT(\"c\" & (VLOOKUP(Switch!$D$61,$F$2:$G$44,2,FALSE)+ROW()-2))=Switch!$D$61,INDIRECT(\"a\" & (VLOOKUP(Switch!$D$61,$F$2:$G$44,2,FALSE)+ROW()-2)),\"\")","v":{"$error":"#N/A"}},{"$f":"IF(INDIRECT(\"c\" & (VLOOKUP(Switch!$D$62,$F$2:$G$44,2,FALSE)+ROW()-2))=Switch!$D$62,INDIRECT(\"a\" & (VLOOKUP(Switch!$D$62,$F$2:$G$44,2,FALSE)+ROW()-2)),\"\")","v":{"$error":"#N/A"}},{"$f":"IF(INDIRECT(\"c\" & (VLOOKUP(Switch!$D$63,$F$2:$G$44,2,FALSE)+ROW()-2))=Switch!$D$63,INDIRECT(\"a\" & (VLOOKUP(Switch!$D$63,$F$2:$G$44,2,FALSE)+ROW()-2)),\"\")","v":{"$error":"#N/A"}},{"$f":"IF(INDIRECT(\"c\" & (VLOOKUP(Switch!$D$64,$F$2:$G$44,2,FALSE)+ROW()-2))=Switch!$D$64,INDIRECT(\"a\" & (VLOOKUP(Switch!$D$64,$F$2:$G$44,2,FALSE)+ROW()-2)),\"\")","v":{"$error":"#N/A"}},{"$f":"IF(INDIRECT(\"c\" & (VLOOKUP(Switch!$D$65,$F$2:$G$44,2,FALSE)+ROW()-2))=Switch!$D$65,INDIRECT(\"a\" & (VLOOKUP(Switch!$D$65,$F$2:$G$44,2,FALSE)+ROW()-2)),\"\")","v":{"$error":"#N/A"}},{"$f":"IF(INDIRECT(\"c\" & (VLOOKUP(Switch!$D$66,$F$2:$G$44,2,FALSE)+ROW()-2))=Switch!$D$66,INDIRECT(\"a\" & (VLOOKUP(Switch!$D$66,$F$2:$G$44,2,FALSE)+ROW()-2)),\"\")","v":{"$error":"#N/A"}}]
["Wellsfaber Stable RECM Fund of Funds A","WFSTAA","Prescient Management Company Ltd",{"$f":"ROW()","v":471},null,null,{"$f":"VLOOKUP(F471,$C$2:$D$637,2,FALSE)","v":{"$error":"#N/A"}},{"$error":"#N/A"},{"$error":"#N/A"},{"$error":"#N/A"},{"$error":"#N/A"},{"$error":"#N/A"},{"$error":"#N/A"},{"$error":"#N/A"},{"$error":"#N/A"},{"$error":"#N/A"},{"$error":"#N/A"},{"$error":"#N/A"},{"$error":"#N/A"},{"$error":"#N/A"},{"$error":"#N/A"},{"$error":"#N/A"},{"$error":"#N/A"},{"$error":"#N/A"},{"$error":"#N/A"},{"$error":"#N/A"},{"$error":"#N/A"},{"$error":"#N/A"},{"$error":"#N/A"},{"$error":"#N/A"},{"$error":"#N/A"},{"$error":"#N/A"},{"$error":"#N/A"},{"$error":"#N/A"},{"$error":"#N/A"},{"$error":"#N/A"},{"$error":"#N/A"}]
["Prudential Balanced Fund B","PRAB","Prudential Management",{"$f":"ROW()","v":472},null,null,{"$f":"VLOOKUP(F472,$C$2:$D$637,2,FALSE)","v":{"$error":"#N/A"}},{"$f":"IF(INDIRECT(\"c\" & (VLOOKUP(Switch!$D$26,$F$2:$G$44,2,FALSE)+ROW()-2))=Switch!$D$26,INDIRECT(\"a\" & (VLOOKUP(Switch!$D$26,$F$2:$G$44,2,FALSE)+ROW()-2)),\"\")","v":{"$error":"#N/A"}},{"$f":"IF(INDIRECT(\"c\" & (VLOOKUP(Switch!$D$27,$F$2:$G$44,2,FALSE)+ROW()-2))=Switch!$D$27,INDIRECT(\"a\" & (VLOOKUP(Switch!$D$27,$F$2:$G$44,2,FALSE)+ROW()-2)),\"\")","v":{"$error":"#N/A"}},{"$f":"IF(INDIRECT(\"c\" & (VLOOKUP(Switch!$D$28,$F$2:$G$44,2,FALSE)+ROW()-2))=Switch!$D$28,INDIRECT(\"a\" & (VLOOKUP(Switch!$D$28,$F$2:$G$44,2,FALSE)+ROW()-2)),\"\")","v":{"$error":"#N/A"}},{"$f":"IF(INDIRECT(\"c\" & (VLOOKUP(Switch!$D$29,$F$2:$G$44,2,FALSE)+ROW()-2))=Switch!$D$29,INDIRECT(\"a\" & (VLOOKUP(Switch!$D$29,$F$2:$G$44,2,FALSE)+ROW()-2)),\"\")","v":{"$error":"#N/A"}},{"$f":"IF(INDIRECT(\"c\" & (VLOOKUP(Switch!$D$30,$F$2:$G$44,2,FALSE)+ROW()-2))=Switch!$D$30,INDIRECT(\"a\" & (VLOOKUP(Switch!$D$30,$F$2:$G$44,2,FALSE)+ROW()-2)),\"\")","v":{"$error":"#N/A"}},{"$f":"IF(INDIRECT(\"c\" & (VLOOKUP(Switch!$D$31,$F$2:$G$44,2,FALSE)+ROW()-2))=Switch!$D$31,INDIRECT(\"a\" & (VLOOKUP(Switch!$D$31,$F$2:$G$44,2,FALSE)+ROW()-2)),\"\")","v":{"$error":"#N/A"}},{"$f":"IF(INDIRECT(\"c\" & (VLOOKUP(Switch!$D$32,$F$2:$G$44,2,FALSE)+ROW()-2))=Switch!$D$32,INDIRECT(\"a\" & (VLOOKUP(Switch!$D$32,$F$2:$G$44,2,FALSE)+ROW()-2)),\"\")","v":{"$error":"#N/A"}},{"$f":"IF(INDIRECT(\"c\" & (VLOOKUP(Switch!$D$33,$F$2:$G$44,2,FALSE)+ROW()-2))=Switch!$D$33,INDIRECT(\"a\" & (VLOOKUP(Switch!$D$33,$F$2:$G$44,2,FALSE)+ROW()-2)),\"\")","v":{"$error":"#N/A"}},{"$f":"IF(INDIRECT(\"c\" & (VLOOKUP(Switch!$D$34,$F$2:$G$44,2,FALSE)+ROW()-2))=Switch!$D$34,INDIRECT(\"a\" & (VLOOKUP(Switch!$D$34,$F$2:$G$44,2,FALSE)+ROW()-2)),\"\")","v":{"$error":"#N/A"}},{"$f":"IF(INDIRECT(\"c\" & (VLOOKUP(Switch!$D$35,$F$2:$G$44,2,FALSE)+ROW()-2))=Switch!$D$35,INDIRECT(\"a\" & (VLOOKUP(Switch!$D$35,$F$2:$G$44,2,FALSE)+ROW()-2)),\"\")","v":{"$error":"#N/A"}},{"$f":"IF(INDIRECT(\"c\" & (VLOOKUP(Switch!$D$36,$F$2:$G$44,2,FALSE)+ROW()-2))=Switch!$D$36,INDIRECT(\"a\" & (VLOOKUP(Switch!$D$36,$F$2:$G$44,2,FALSE)+ROW()-2)),\"\")","v":{"$error":"#N/A"}},{"$f":"IF(INDIRECT(\"c\" & (VLOOKUP(Switch!$D$37,$F$2:$G$44,2,FALSE)+ROW()-2))=Switch!$D$37,INDIRECT(\"a\" & (VLOOKUP(Switch!$D$37,$F$2:$G$44,2,FALSE)+ROW()-2)),\"\")","v":{"$error":"#N/A"}},{"$f":"IF(INDIRECT(\"c\" & (VLOOKUP(Switch!$D$38,$F$2:$G$44,2,FALSE)+ROW()-2))=Switch!$D$38,INDIRECT(\"a\" & (VLOOKUP(Switch!$D$38,$F$2:$G$44,2,FALSE)+ROW()-2)),\"\")","v":{"$error":"#N/A"}},{"$f":"IF(INDIRECT(\"c\" & (VLOOKUP(Switch!$D$39,$F$2:$G$44,2,FALSE)+ROW()-2))=Switch!$D$39,INDIRECT(\"a\" & (VLOOKUP(Switch!$D$39,$F$2:$G$44,2,FALSE)+ROW()-2)),\"\")","v":{"$error":"#N/A"}},{"$f":"IF(INDIRECT(\"c\" & (VLOOKUP(Switch!$D$40,$F$2:$G$44,2,FALSE)+ROW()-2))=Switch!$D$40,INDIRECT(\"a\" & (VLOOKUP(Switch!$D$40,$F$2:$G$44,2,FALSE)+ROW()-2)),\"\")","v":{"$error":"#N/A"}},{"$f":"IF(INDIRECT(\"c\" & (VLOOKUP(Switch!$D$52,$F$2:$G$44,2,FALSE)+ROW()-2))=Switch!$D$52,INDIRECT(\"a\" & (VLOOKUP(Switch!$D$52,$F$2:$G$44,2,FALSE)+ROW()-2)),\"\")","v":{"$error":"#N/A"}},{"$f":"IF(INDIRECT(\"c\" & (VLOOKUP(Switch!$D$53,$F$2:$G$44,2,FALSE)+ROW()-2))=Switch!$D$53,INDIRECT(\"a\" & (VLOOKUP(Switch!$D$53,$F$2:$G$44,2,FALSE)+ROW()-2)),\"\")","v":{"$error":"#N/A"}},{"$f":"IF(INDIRECT(\"c\" & (VLOOKUP(Switch!$D$54,$F$2:$G$44,2,FALSE)+ROW()-2))=Switch!$D$54,INDIRECT(\"a\" & (VLOOKUP(Switch!$D$54,$F$2:$G$44,2,FALSE)+ROW()-2)),\"\")","v":{"$error":"#N/A"}},{"$f":"IF(INDIRECT(\"c\" & (VLOOKUP(Switch!$D$55,$F$2:$G$44,2,FALSE)+ROW()-2))=Switch!$D$55,INDIRECT(\"a\" & (VLOOKUP(Switch!$D$55,$F$2:$G$44,2,FALSE)+ROW()-2)),\"\")","v":{"$error":"#N/A"}},{"$f":"IF(INDIRECT(\"c\" & (VLOOKUP(Switch!$D$56,$F$2:$G$44,2,FALSE)+ROW()-2))=Switch!$D$56,INDIRECT(\"a\" & (VLOOKUP(Switch!$D$56,$F$2:$G$44,2,FALSE)+ROW()-2)),\"\")","v":{"$error":"#N/A"}},{"$f":"IF(INDIRECT(\"c\" & (VLOOKUP(Switch!$D$57,$F$2:$G$44,2,FALSE)+ROW()-2))=Switch!$D$57,INDIRECT(\"a\" & (VLOOKUP(Switch!$D$57,$F$2:$G$44,2,FALSE)+ROW()-2)),\"\")","v":{"$error":"#N/A"}},{"$f":"IF(INDIRECT(\"c\" & (VLOOKUP(Switch!$D$58,$F$2:$G$44,2,FALSE)+ROW()-2))=Switch!$D$58,INDIRECT(\"a\" & (VLOOKUP(Switch!$D$58,$F$2:$G$44,2,FALSE)+ROW()-2)),\"\")","v":{"$error":"#N/A"}},{"$f":"IF(INDIRECT(\"c\" & (VLOOKUP(Switch!$D$59,$F$2:$G$44,2,FALSE)+ROW()-2))=Switch!$D$59,INDIRECT(\"a\" & (VLOOKUP(Switch!$D$59,$F$2:$G$44,2,FALSE)+ROW()-2)),\"\")","v":{"$error":"#N/A"}},{"$f":"IF(INDIRECT(\"c\" & (VLOOKUP(Switch!$D$60,$F$2:$G$44,2,FALSE)+ROW()-2))=Switch!$D$60,INDIRECT(\"a\" & (VLOOKUP(Switch!$D$60,$F$2:$G$44,2,FALSE)+ROW()-2)),\"\")","v":{"$error":"#N/A"}},{"$f":"IF(INDIRECT(\"c\" & (VLOOKUP(Switch!$D$61,$F$2:$G$44,2,FALSE)+ROW()-2))=Switch!$D$61,INDIRECT(\"a\" & (VLOOKUP(Switch!$D$61,$F$2:$G$44,2,FALSE)+ROW()-2)),\"\")","v":{"$error":"#N/A"}},{"$f":"IF(INDIRECT(\"c\" & (VLOOKUP(Switch!$D$62,$F$2:$G$44,2,FALSE)+ROW()-2))=Switch!$D$62,INDIRECT(\"a\" & (VLOOKUP(Switch!$D$62,$F$2:$G$44,2,FALSE)+ROW()-2)),\"\")","v":{"$error":"#N/A"}},{"$f":"IF(INDIRECT(\"c\" & (VLOOKUP(Switch!$D$63,$F$2:$G$44,2,FALSE)+ROW()-2))=Switch!$D$63,INDIRECT(\"a\" & (VLOOKUP(Switch!$D$63,$F$2:$G$44,2,FALSE)+ROW()-2)),\"\")","v":{"$error":"#N/A"}},{"$f":"IF(INDIRECT(\"c\" & (VLOOKUP(Switch!$D$64,$F$2:$G$44,2,FALSE)+ROW()-2))=Switch!$D$64,INDIRECT(\"a\" & (VLOOKUP(Switch!$D$64,$F$2:$G$44,2,FALSE)+ROW()-2)),\"\")","v":{"$error":"#N/A"}},{"$f":"IF(INDIRECT(\"c\" & (VLOOKUP(Switch!$D$65,$F$2:$G$44,2,FALSE)+ROW()-2))=Switch!$D$65,INDIRECT(\"a\" & (VLOOKUP(Switch!$D$65,$F$2:$G$44,2,FALSE)+ROW()-2)),\"\")","v":{"$error":"#N/A"}},{"$f":"IF(INDIRECT(\"c\" & (VLOOKUP(Switch!$D$66,$F$2:$G$44,2,FALSE)+ROW()-2))=Switch!$D$66,INDIRECT(\"a\" & (VLOOKUP(Switch!$D$66,$F$2:$G$44,2,FALSE)+ROW()-2)),\"\")","v":{"$error":"#N/A"}}]
["Prudential Dividend Maximiser Fund B","PDMB","Prudential Management",{"$f":"ROW()","v":473},null,null,{"$f":"VLOOKUP(F473,$C$2:$D$637,2,FALSE)","v":{"$error":"#N/A"}},{"$f":"IF(INDIRECT(\"c\" & (VLOOKUP(Switch!$D$26,$F$2:$G$44,2,FALSE)+ROW()-2))=Switch!$D$26,INDIRECT(\"a\" & (VLOOKUP(Switch!$D$26,$F$2:$G$44,2,FALSE)+ROW()-2)),\"\")","v":{"$error":"#N/A"}},{"$f":"IF(INDIRECT(\"c\" & (VLOOKUP(Switch!$D$27,$F$2:$G$44,2,FALSE)+ROW()-2))=Switch!$D$27,INDIRECT(\"a\" & (VLOOKUP(Switch!$D$27,$F$2:$G$44,2,FALSE)+ROW()-2)),\"\")","v":{"$error":"#N/A"}},{"$f":"IF(INDIRECT(\"c\" & (VLOOKUP(Switch!$D$28,$F$2:$G$44,2,FALSE)+ROW()-2))=Switch!$D$28,INDIRECT(\"a\" & (VLOOKUP(Switch!$D$28,$F$2:$G$44,2,FALSE)+ROW()-2)),\"\")","v":{"$error":"#N/A"}},{"$f":"IF(INDIRECT(\"c\" & (VLOOKUP(Switch!$D$29,$F$2:$G$44,2,FALSE)+ROW()-2))=Switch!$D$29,INDIRECT(\"a\" & (VLOOKUP(Switch!$D$29,$F$2:$G$44,2,FALSE)+ROW()-2)),\"\")","v":{"$error":"#N/A"}},{"$f":"IF(INDIRECT(\"c\" & (VLOOKUP(Switch!$D$30,$F$2:$G$44,2,FALSE)+ROW()-2))=Switch!$D$30,INDIRECT(\"a\" & (VLOOKUP(Switch!$D$30,$F$2:$G$44,2,FALSE)+ROW()-2)),\"\")","v":{"$error":"#N/A"}},{"$f":"IF(INDIRECT(\"c\" & (VLOOKUP(Switch!$D$31,$F$2:$G$44,2,FALSE)+ROW()-2))=Switch!$D$31,INDIRECT(\"a\" & (VLOOKUP(Switch!$D$31,$F$2:$G$44,2,FALSE)+ROW()-2)),\"\")","v":{"$error":"#N/A"}},{"$f":"IF(INDIRECT(\"c\" & (VLOOKUP(Switch!$D$32,$F$2:$G$44,2,FALSE)+ROW()-2))=Switch!$D$32,INDIRECT(\"a\" & (VLOOKUP(Switch!$D$32,$F$2:$G$44,2,FALSE)+ROW()-2)),\"\")","v":{"$error":"#N/A"}},{"$f":"IF(INDIRECT(\"c\" & (VLOOKUP(Switch!$D$33,$F$2:$G$44,2,FALSE)+ROW()-2))=Switch!$D$33,INDIRECT(\"a\" & (VLOOKUP(Switch!$D$33,$F$2:$G$44,2,FALSE)+ROW()-2)),\"\")","v":{"$error":"#N/A"}},{"$f":"IF(INDIRECT(\"c\" & (VLOOKUP(Switch!$D$34,$F$2:$G$44,2,FALSE)+ROW()-2))=Switch!$D$34,INDIRECT(\"a\" & (VLOOKUP(Switch!$D$34,$F$2:$G$44,2,FALSE)+ROW()-2)),\"\")","v":{"$error":"#N/A"}},{"$f":"IF(INDIRECT(\"c\" & (VLOOKUP(Switch!$D$35,$F$2:$G$44,2,FALSE)+ROW()-2))=Switch!$D$35,INDIRECT(\"a\" & (VLOOKUP(Switch!$D$35,$F$2:$G$44,2,FALSE)+ROW()-2)),\"\")","v":{"$error":"#N/A"}},{"$f":"IF(INDIRECT(\"c\" & (VLOOKUP(Switch!$D$36,$F$2:$G$44,2,FALSE)+ROW()-2))=Switch!$D$36,INDIRECT(\"a\" & (VLOOKUP(Switch!$D$36,$F$2:$G$44,2,FALSE)+ROW()-2)),\"\")","v":{"$error":"#N/A"}},{"$f":"IF(INDIRECT(\"c\" & (VLOOKUP(Switch!$D$37,$F$2:$G$44,2,FALSE)+ROW()-2))=Switch!$D$37,INDIRECT(\"a\" & (VLOOKUP(Switch!$D$37,$F$2:$G$44,2,FALSE)+ROW()-2)),\"\")","v":{"$error":"#N/A"}},{"$f":"IF(INDIRECT(\"c\" & (VLOOKUP(Switch!$D$38,$F$2:$G$44,2,FALSE)+ROW()-2))=Switch!$D$38,INDIRECT(\"a\" & (VLOOKUP(Switch!$D$38,$F$2:$G$44,2,FALSE)+ROW()-2)),\"\")","v":{"$error":"#N/A"}},{"$f":"IF(INDIRECT(\"c\" & (VLOOKUP(Switch!$D$39,$F$2:$G$44,2,FALSE)+ROW()-2))=Switch!$D$39,INDIRECT(\"a\" & (VLOOKUP(Switch!$D$39,$F$2:$G$44,2,FALSE)+ROW()-2)),\"\")","v":{"$error":"#N/A"}},{"$f":"IF(INDIRECT(\"c\" & (VLOOKUP(Switch!$D$40,$F$2:$G$44,2,FALSE)+ROW()-2))=Switch!$D$40,INDIRECT(\"a\" & (VLOOKUP(Switch!$D$40,$F$2:$G$44,2,FALSE)+ROW()-2)),\"\")","v":{"$error":"#N/A"}},{"$f":"IF(INDIRECT(\"c\" & (VLOOKUP(Switch!$D$52,$F$2:$G$44,2,FALSE)+ROW()-2))=Switch!$D$52,INDIRECT(\"a\" & (VLOOKUP(Switch!$D$52,$F$2:$G$44,2,FALSE)+ROW()-2)),\"\")","v":{"$error":"#N/A"}},{"$f":"IF(INDIRECT(\"c\" & (VLOOKUP(Switch!$D$53,$F$2:$G$44,2,FALSE)+ROW()-2))=Switch!$D$53,INDIRECT(\"a\" & (VLOOKUP(Switch!$D$53,$F$2:$G$44,2,FALSE)+ROW()-2)),\"\")","v":{"$error":"#N/A"}},{"$f":"IF(INDIRECT(\"c\" & (VLOOKUP(Switch!$D$54,$F$2:$G$44,2,FALSE)+ROW()-2))=Switch!$D$54,INDIRECT(\"a\" & (VLOOKUP(Switch!$D$54,$F$2:$G$44,2,FALSE)+ROW()-2)),\"\")","v":{"$error":"#N/A"}},{"$f":"IF(INDIRECT(\"c\" & (VLOOKUP(Switch!$D$55,$F$2:$G$44,2,FALSE)+ROW()-2))=Switch!$D$55,INDIRECT(\"a\" & (VLOOKUP(Switch!$D$55,$F$2:$G$44,2,FALSE)+ROW()-2)),\"\")","v":{"$error":"#N/A"}},{"$f":"IF(INDIRECT(\"c\" & (VLOOKUP(Switch!$D$56,$F$2:$G$44,2,FALSE)+ROW()-2))=Switch!$D$56,INDIRECT(\"a\" & (VLOOKUP(Switch!$D$56,$F$2:$G$44,2,FALSE)+ROW()-2)),\"\")","v":{"$error":"#N/A"}},{"$f":"IF(INDIRECT(\"c\" & (VLOOKUP(Switch!$D$57,$F$2:$G$44,2,FALSE)+ROW()-2))=Switch!$D$57,INDIRECT(\"a\" & (VLOOKUP(Switch!$D$57,$F$2:$G$44,2,FALSE)+ROW()-2)),\"\")","v":{"$error":"#N/A"}},{"$f":"IF(INDIRECT(\"c\" & (VLOOKUP(Switch!$D$58,$F$2:$G$44,2,FALSE)+ROW()-2))=Switch!$D$58,INDIRECT(\"a\" & (VLOOKUP(Switch!$D$58,$F$2:$G$44,2,FALSE)+ROW()-2)),\"\")","v":{"$error":"#N/A"}},{"$f":"IF(INDIRECT(\"c\" & (VLOOKUP(Switch!$D$59,$F$2:$G$44,2,FALSE)+ROW()-2))=Switch!$D$59,INDIRECT(\"a\" & (VLOOKUP(Switch!$D$59,$F$2:$G$44,2,FALSE)+ROW()-2)),\"\")","v":{"$error":"#N/A"}},{"$f":"IF(INDIRECT(\"c\" & (VLOOKUP(Switch!$D$60,$F$2:$G$44,2,FALSE)+ROW()-2))=Switch!$D$60,INDIRECT(\"a\" & (VLOOKUP(Switch!$D$60,$F$2:$G$44,2,FALSE)+ROW()-2)),\"\")","v":{"$error":"#N/A"}},{"$f":"IF(INDIRECT(\"c\" & (VLOOKUP(Switch!$D$61,$F$2:$G$44,2,FALSE)+ROW()-2))=Switch!$D$61,INDIRECT(\"a\" & (VLOOKUP(Switch!$D$61,$F$2:$G$44,2,FALSE)+ROW()-2)),\"\")","v":{"$error":"#N/A"}},{"$f":"IF(INDIRECT(\"c\" & (VLOOKUP(Switch!$D$62,$F$2:$G$44,2,FALSE)+ROW()-2))=Switch!$D$62,INDIRECT(\"a\" & (VLOOKUP(Switch!$D$62,$F$2:$G$44,2,FALSE)+ROW()-2)),\"\")","v":{"$error":"#N/A"}},{"$f":"IF(INDIRECT(\"c\" & (VLOOKUP(Switch!$D$63,$F$2:$G$44,2,FALSE)+ROW()-2))=Switch!$D$63,INDIRECT(\"a\" & (VLOOKUP(Switch!$D$63,$F$2:$G$44,2,FALSE)+ROW()-2)),\"\")","v":{"$error":"#N/A"}},{"$f":"IF(INDIRECT(\"c\" & (VLOOKUP(Switch!$D$64,$F$2:$G$44,2,FALSE)+ROW()-2))=Switch!$D$64,INDIRECT(\"a\" & (VLOOKUP(Switch!$D$64,$F$2:$G$44,2,FALSE)+ROW()-2)),\"\")","v":{"$error":"#N/A"}},{"$f":"IF(INDIRECT(\"c\" & (VLOOKUP(Switch!$D$65,$F$2:$G$44,2,FALSE)+ROW()-2))=Switch!$D$65,INDIRECT(\"a\" & (VLOOKUP(Switch!$D$65,$F$2:$G$44,2,FALSE)+ROW()-2)),\"\")","v":{"$error":"#N/A"}},{"$f":"IF(INDIRECT(\"c\" & (VLOOKUP(Switch!$D$66,$F$2:$G$44,2,FALSE)+ROW()-2))=Switch!$D$66,INDIRECT(\"a\" & (VLOOKUP(Switch!$D$66,$F$2:$G$44,2,FALSE)+ROW()-2)),\"\")","v":{"$error":"#N/A"}}]
["Prudential Enhanced Income Fund D","PEICD","Prudential Management",{"$f":"ROW()","v":474},null,null,{"$f":"VLOOKUP(F474,$C$2:$D$637,2,FALSE)","v":{"$error":"#N/A"}},{"$f":"IF(INDIRECT(\"c\" & (VLOOKUP(Switch!$D$26,$F$2:$G$44,2,FALSE)+ROW()-2))=Switch!$D$26,INDIRECT(\"a\" & (VLOOKUP(Switch!$D$26,$F$2:$G$44,2,FALSE)+ROW()-2)),\"\")","v":{"$error":"#N/A"}},{"$f":"IF(INDIRECT(\"c\" & (VLOOKUP(Switch!$D$27,$F$2:$G$44,2,FALSE)+ROW()-2))=Switch!$D$27,INDIRECT(\"a\" & (VLOOKUP(Switch!$D$27,$F$2:$G$44,2,FALSE)+ROW()-2)),\"\")","v":{"$error":"#N/A"}},{"$f":"IF(INDIRECT(\"c\" & (VLOOKUP(Switch!$D$28,$F$2:$G$44,2,FALSE)+ROW()-2))=Switch!$D$28,INDIRECT(\"a\" & (VLOOKUP(Switch!$D$28,$F$2:$G$44,2,FALSE)+ROW()-2)),\"\")","v":{"$error":"#N/A"}},{"$f":"IF(INDIRECT(\"c\" & (VLOOKUP(Switch!$D$29,$F$2:$G$44,2,FALSE)+ROW()-2))=Switch!$D$29,INDIRECT(\"a\" & (VLOOKUP(Switch!$D$29,$F$2:$G$44,2,FALSE)+ROW()-2)),\"\")","v":{"$error":"#N/A"}},{"$f":"IF(INDIRECT(\"c\" & (VLOOKUP(Switch!$D$30,$F$2:$G$44,2,FALSE)+ROW()-2))=Switch!$D$30,INDIRECT(\"a\" & (VLOOKUP(Switch!$D$30,$F$2:$G$44,2,FALSE)+ROW()-2)),\"\")","v":{"$error":"#N/A"}},{"$f":"IF(INDIRECT(\"c\" & (VLOOKUP(Switch!$D$31,$F$2:$G$44,2,FALSE)+ROW()-2))=Switch!$D$31,INDIRECT(\"a\" & (VLOOKUP(Switch!$D$31,$F$2:$G$44,2,FALSE)+ROW()-2)),\"\")","v":{"$error":"#N/A"}},{"$f":"IF(INDIRECT(\"c\" & (VLOOKUP(Switch!$D$32,$F$2:$G$44,2,FALSE)+ROW()-2))=Switch!$D$32,INDIRECT(\"a\" & (VLOOKUP(Switch!$D$32,$F$2:$G$44,2,FALSE)+ROW()-2)),\"\")","v":{"$error":"#N/A"}},{"$f":"IF(INDIRECT(\"c\" & (VLOOKUP(Switch!$D$33,$F$2:$G$44,2,FALSE)+ROW()-2))=Switch!$D$33,INDIRECT(\"a\" & (VLOOKUP(Switch!$D$33,$F$2:$G$44,2,FALSE)+ROW()-2)),\"\")","v":{"$error":"#N/A"}},{"$f":"IF(INDIRECT(\"c\" & (VLOOKUP(Switch!$D$34,$F$2:$G$44,2,FALSE)+ROW()-2))=Switch!$D$34,INDIRECT(\"a\" & (VLOOKUP(Switch!$D$34,$F$2:$G$44,2,FALSE)+ROW()-2)),\"\")","v":{"$error":"#N/A"}},{"$f":"IF(INDIRECT(\"c\" & (VLOOKUP(Switch!$D$35,$F$2:$G$44,2,FALSE)+ROW()-2))=Switch!$D$35,INDIRECT(\"a\" & (VLOOKUP(Switch!$D$35,$F$2:$G$44,2,FALSE)+ROW()-2)),\"\")","v":{"$error":"#N/A"}},{"$f":"IF(INDIRECT(\"c\" & (VLOOKUP(Switch!$D$36,$F$2:$G$44,2,FALSE)+ROW()-2))=Switch!$D$36,INDIRECT(\"a\" & (VLOOKUP(Switch!$D$36,$F$2:$G$44,2,FALSE)+ROW()-2)),\"\")","v":{"$error":"#N/A"}},{"$f":"IF(INDIRECT(\"c\" & (VLOOKUP(Switch!$D$37,$F$2:$G$44,2,FALSE)+ROW()-2))=Switch!$D$37,INDIRECT(\"a\" & (VLOOKUP(Switch!$D$37,$F$2:$G$44,2,FALSE)+ROW()-2)),\"\")","v":{"$error":"#N/A"}},{"$f":"IF(INDIRECT(\"c\" & (VLOOKUP(Switch!$D$38,$F$2:$G$44,2,FALSE)+ROW()-2))=Switch!$D$38,INDIRECT(\"a\" & (VLOOKUP(Switch!$D$38,$F$2:$G$44,2,FALSE)+ROW()-2)),\"\")","v":{"$error":"#N/A"}},{"$f":"IF(INDIRECT(\"c\" & (VLOOKUP(Switch!$D$39,$F$2:$G$44,2,FALSE)+ROW()-2))=Switch!$D$39,INDIRECT(\"a\" & (VLOOKUP(Switch!$D$39,$F$2:$G$44,2,FALSE)+ROW()-2)),\"\")","v":{"$error":"#N/A"}},{"$f":"IF(INDIRECT(\"c\" & (VLOOKUP(Switch!$D$40,$F$2:$G$44,2,FALSE)+ROW()-2))=Switch!$D$40,INDIRECT(\"a\" & (VLOOKUP(Switch!$D$40,$F$2:$G$44,2,FALSE)+ROW()-2)),\"\")","v":{"$error":"#N/A"}},{"$f":"IF(INDIRECT(\"c\" & (VLOOKUP(Switch!$D$52,$F$2:$G$44,2,FALSE)+ROW()-2))=Switch!$D$52,INDIRECT(\"a\" & (VLOOKUP(Switch!$D$52,$F$2:$G$44,2,FALSE)+ROW()-2)),\"\")","v":{"$error":"#N/A"}},{"$f":"IF(INDIRECT(\"c\" & (VLOOKUP(Switch!$D$53,$F$2:$G$44,2,FALSE)+ROW()-2))=Switch!$D$53,INDIRECT(\"a\" & (VLOOKUP(Switch!$D$53,$F$2:$G$44,2,FALSE)+ROW()-2)),\"\")","v":{"$error":"#N/A"}},{"$f":"IF(INDIRECT(\"c\" & (VLOOKUP(Switch!$D$54,$F$2:$G$44,2,FALSE)+ROW()-2))=Switch!$D$54,INDIRECT(\"a\" & (VLOOKUP(Switch!$D$54,$F$2:$G$44,2,FALSE)+ROW()-2)),\"\")","v":{"$error":"#N/A"}},{"$f":"IF(INDIRECT(\"c\" & (VLOOKUP(Switch!$D$55,$F$2:$G$44,2,FALSE)+ROW()-2))=Switch!$D$55,INDIRECT(\"a\" & (VLOOKUP(Switch!$D$55,$F$2:$G$44,2,FALSE)+ROW()-2)),\"\")","v":{"$error":"#N/A"}},{"$f":"IF(INDIRECT(\"c\" & (VLOOKUP(Switch!$D$56,$F$2:$G$44,2,FALSE)+ROW()-2))=Switch!$D$56,INDIRECT(\"a\" & (VLOOKUP(Switch!$D$56,$F$2:$G$44,2,FALSE)+ROW()-2)),\"\")","v":{"$error":"#N/A"}},{"$f":"IF(INDIRECT(\"c\" & (VLOOKUP(Switch!$D$57,$F$2:$G$44,2,FALSE)+ROW()-2))=Switch!$D$57,INDIRECT(\"a\" & (VLOOKUP(Switch!$D$57,$F$2:$G$44,2,FALSE)+ROW()-2)),\"\")","v":{"$error":"#N/A"}},{"$f":"IF(INDIRECT(\"c\" & (VLOOKUP(Switch!$D$58,$F$2:$G$44,2,FALSE)+ROW()-2))=Switch!$D$58,INDIRECT(\"a\" & (VLOOKUP(Switch!$D$58,$F$2:$G$44,2,FALSE)+ROW()-2)),\"\")","v":{"$error":"#N/A"}},{"$f":"IF(INDIRECT(\"c\" & (VLOOKUP(Switch!$D$59,$F$2:$G$44,2,FALSE)+ROW()-2))=Switch!$D$59,INDIRECT(\"a\" & (VLOOKUP(Switch!$D$59,$F$2:$G$44,2,FALSE)+ROW()-2)),\"\")","v":{"$error":"#N/A"}},{"$f":"IF(INDIRECT(\"c\" & (VLOOKUP(Switch!$D$60,$F$2:$G$44,2,FALSE)+ROW()-2))=Switch!$D$60,INDIRECT(\"a\" & (VLOOKUP(Switch!$D$60,$F$2:$G$44,2,FALSE)+ROW()-2)),\"\")","v":{"$error":"#N/A"}},{"$f":"IF(INDIRECT(\"c\" & (VLOOKUP(Switch!$D$61,$F$2:$G$44,2,FALSE)+ROW()-2))=Switch!$D$61,INDIRECT(\"a\" & (VLOOKUP(Switch!$D$61,$F$2:$G$44,2,FALSE)+ROW()-2)),\"\")","v":{"$error":"#N/A"}},{"$f":"IF(INDIRECT(\"c\" & (VLOOKUP(Switch!$D$62,$F$2:$G$44,2,FALSE)+ROW()-2))=Switch!$D$62,INDIRECT(\"a\" & (VLOOKUP(Switch!$D$62,$F$2:$G$44,2,FALSE)+ROW()-2)),\"\")","v":{"$error":"#N/A"}},{"$f":"IF(INDIRECT(\"c\" & (VLOOKUP(Switch!$D$63,$F$2:$G$44,2,FALSE)+ROW()-2))=Switch!$D$63,INDIRECT(\"a\" & (VLOOKUP(Switch!$D$63,$F$2:$G$44,2,FALSE)+ROW()-2)),\"\")","v":{"$error":"#N/A"}},{"$f":"IF(INDIRECT(\"c\" & (VLOOKUP(Switch!$D$64,$F$2:$G$44,2,FALSE)+ROW()-2))=Switch!$D$64,INDIRECT(\"a\" & (VLOOKUP(Switch!$D$64,$F$2:$G$44,2,FALSE)+ROW()-2)),\"\")","v":{"$error":"#N/A"}},{"$f":"IF(INDIRECT(\"c\" & (VLOOKUP(Switch!$D$65,$F$2:$G$44,2,FALSE)+ROW()-2))=Switch!$D$65,INDIRECT(\"a\" & (VLOOKUP(Switch!$D$65,$F$2:$G$44,2,FALSE)+ROW()-2)),\"\")","v":{"$error":"#N/A"}},{"$f":"IF(INDIRECT(\"c\" & (VLOOKUP(Switch!$D$66,$F$2:$G$44,2,FALSE)+ROW()-2))=Switch!$D$66,INDIRECT(\"a\" & (VLOOKUP(Switch!$D$66,$F$2:$G$44,2,FALSE)+ROW()-2)),\"\")","v":{"$error":"#N/A"}}]
["Prudential Enhanced SA Property Tracker Fund D","PEPI","Prudential Management",{"$f":"ROW()","v":475},null,null,{"$f":"VLOOKUP(F475,$C$2:$D$637,2,FALSE)","v":{"$error":"#N/A"}},{"$f":"IF(INDIRECT(\"c\" & (VLOOKUP(Switch!$D$26,$F$2:$G$44,2,FALSE)+ROW()-2))=Switch!$D$26,INDIRECT(\"a\" & (VLOOKUP(Switch!$D$26,$F$2:$G$44,2,FALSE)+ROW()-2)),\"\")","v":{"$error":"#N/A"}},{"$f":"IF(INDIRECT(\"c\" & (VLOOKUP(Switch!$D$27,$F$2:$G$44,2,FALSE)+ROW()-2))=Switch!$D$27,INDIRECT(\"a\" & (VLOOKUP(Switch!$D$27,$F$2:$G$44,2,FALSE)+ROW()-2)),\"\")","v":{"$error":"#N/A"}},{"$f":"IF(INDIRECT(\"c\" & (VLOOKUP(Switch!$D$28,$F$2:$G$44,2,FALSE)+ROW()-2))=Switch!$D$28,INDIRECT(\"a\" & (VLOOKUP(Switch!$D$28,$F$2:$G$44,2,FALSE)+ROW()-2)),\"\")","v":{"$error":"#N/A"}},{"$f":"IF(INDIRECT(\"c\" & (VLOOKUP(Switch!$D$29,$F$2:$G$44,2,FALSE)+ROW()-2))=Switch!$D$29,INDIRECT(\"a\" & (VLOOKUP(Switch!$D$29,$F$2:$G$44,2,FALSE)+ROW()-2)),\"\")","v":{"$error":"#N/A"}},{"$f":"IF(INDIRECT(\"c\" & (VLOOKUP(Switch!$D$30,$F$2:$G$44,2,FALSE)+ROW()-2))=Switch!$D$30,INDIRECT(\"a\" & (VLOOKUP(Switch!$D$30,$F$2:$G$44,2,FALSE)+ROW()-2)),\"\")","v":{"$error":"#N/A"}},{"$f":"IF(INDIRECT(\"c\" & (VLOOKUP(Switch!$D$31,$F$2:$G$44,2,FALSE)+ROW()-2))=Switch!$D$31,INDIRECT(\"a\" & (VLOOKUP(Switch!$D$31,$F$2:$G$44,2,FALSE)+ROW()-2)),\"\")","v":{"$error":"#N/A"}},{"$f":"IF(INDIRECT(\"c\" & (VLOOKUP(Switch!$D$32,$F$2:$G$44,2,FALSE)+ROW()-2))=Switch!$D$32,INDIRECT(\"a\" & (VLOOKUP(Switch!$D$32,$F$2:$G$44,2,FALSE)+ROW()-2)),\"\")","v":{"$error":"#N/A"}},{"$f":"IF(INDIRECT(\"c\" & (VLOOKUP(Switch!$D$33,$F$2:$G$44,2,FALSE)+ROW()-2))=Switch!$D$33,INDIRECT(\"a\" & (VLOOKUP(Switch!$D$33,$F$2:$G$44,2,FALSE)+ROW()-2)),\"\")","v":{"$error":"#N/A"}},{"$f":"IF(INDIRECT(\"c\" & (VLOOKUP(Switch!$D$34,$F$2:$G$44,2,FALSE)+ROW()-2))=Switch!$D$34,INDIRECT(\"a\" & (VLOOKUP(Switch!$D$34,$F$2:$G$44,2,FALSE)+ROW()-2)),\"\")","v":{"$error":"#N/A"}},{"$f":"IF(INDIRECT(\"c\" & (VLOOKUP(Switch!$D$35,$F$2:$G$44,2,FALSE)+ROW()-2))=Switch!$D$35,INDIRECT(\"a\" & (VLOOKUP(Switch!$D$35,$F$2:$G$44,2,FALSE)+ROW()-2)),\"\")","v":{"$error":"#N/A"}},{"$f":"IF(INDIRECT(\"c\" & (VLOOKUP(Switch!$D$36,$F$2:$G$44,2,FALSE)+ROW()-2))=Switch!$D$36,INDIRECT(\"a\" & (VLOOKUP(Switch!$D$36,$F$2:$G$44,2,FALSE)+ROW()-2)),\"\")","v":{"$error":"#N/A"}},{"$f":"IF(INDIRECT(\"c\" & (VLOOKUP(Switch!$D$37,$F$2:$G$44,2,FALSE)+ROW()-2))=Switch!$D$37,INDIRECT(\"a\" & (VLOOKUP(Switch!$D$37,$F$2:$G$44,2,FALSE)+ROW()-2)),\"\")","v":{"$error":"#N/A"}},{"$f":"IF(INDIRECT(\"c\" & (VLOOKUP(Switch!$D$38,$F$2:$G$44,2,FALSE)+ROW()-2))=Switch!$D$38,INDIRECT(\"a\" & (VLOOKUP(Switch!$D$38,$F$2:$G$44,2,FALSE)+ROW()-2)),\"\")","v":{"$error":"#N/A"}},{"$f":"IF(INDIRECT(\"c\" & (VLOOKUP(Switch!$D$39,$F$2:$G$44,2,FALSE)+ROW()-2))=Switch!$D$39,INDIRECT(\"a\" & (VLOOKUP(Switch!$D$39,$F$2:$G$44,2,FALSE)+ROW()-2)),\"\")","v":{"$error":"#N/A"}},{"$f":"IF(INDIRECT(\"c\" & (VLOOKUP(Switch!$D$40,$F$2:$G$44,2,FALSE)+ROW()-2))=Switch!$D$40,INDIRECT(\"a\" & (VLOOKUP(Switch!$D$40,$F$2:$G$44,2,FALSE)+ROW()-2)),\"\")","v":{"$error":"#N/A"}},{"$f":"IF(INDIRECT(\"c\" & (VLOOKUP(Switch!$D$52,$F$2:$G$44,2,FALSE)+ROW()-2))=Switch!$D$52,INDIRECT(\"a\" & (VLOOKUP(Switch!$D$52,$F$2:$G$44,2,FALSE)+ROW()-2)),\"\")","v":{"$error":"#N/A"}},{"$f":"IF(INDIRECT(\"c\" & (VLOOKUP(Switch!$D$53,$F$2:$G$44,2,FALSE)+ROW()-2))=Switch!$D$53,INDIRECT(\"a\" & (VLOOKUP(Switch!$D$53,$F$2:$G$44,2,FALSE)+ROW()-2)),\"\")","v":{"$error":"#N/A"}},{"$f":"IF(INDIRECT(\"c\" & (VLOOKUP(Switch!$D$54,$F$2:$G$44,2,FALSE)+ROW()-2))=Switch!$D$54,INDIRECT(\"a\" & (VLOOKUP(Switch!$D$54,$F$2:$G$44,2,FALSE)+ROW()-2)),\"\")","v":{"$error":"#N/A"}},{"$f":"IF(INDIRECT(\"c\" & (VLOOKUP(Switch!$D$55,$F$2:$G$44,2,FALSE)+ROW()-2))=Switch!$D$55,INDIRECT(\"a\" & (VLOOKUP(Switch!$D$55,$F$2:$G$44,2,FALSE)+ROW()-2)),\"\")","v":{"$error":"#N/A"}},{"$f":"IF(INDIRECT(\"c\" & (VLOOKUP(Switch!$D$56,$F$2:$G$44,2,FALSE)+ROW()-2))=Switch!$D$56,INDIRECT(\"a\" & (VLOOKUP(Switch!$D$56,$F$2:$G$44,2,FALSE)+ROW()-2)),\"\")","v":{"$error":"#N/A"}},{"$f":"IF(INDIRECT(\"c\" & (VLOOKUP(Switch!$D$57,$F$2:$G$44,2,FALSE)+ROW()-2))=Switch!$D$57,INDIRECT(\"a\" & (VLOOKUP(Switch!$D$57,$F$2:$G$44,2,FALSE)+ROW()-2)),\"\")","v":{"$error":"#N/A"}},{"$f":"IF(INDIRECT(\"c\" & (VLOOKUP(Switch!$D$58,$F$2:$G$44,2,FALSE)+ROW()-2))=Switch!$D$58,INDIRECT(\"a\" & (VLOOKUP(Switch!$D$58,$F$2:$G$44,2,FALSE)+ROW()-2)),\"\")","v":{"$error":"#N/A"}},{"$f":"IF(INDIRECT(\"c\" & (VLOOKUP(Switch!$D$59,$F$2:$G$44,2,FALSE)+ROW()-2))=Switch!$D$59,INDIRECT(\"a\" & (VLOOKUP(Switch!$D$59,$F$2:$G$44,2,FALSE)+ROW()-2)),\"\")","v":{"$error":"#N/A"}},{"$f":"IF(INDIRECT(\"c\" & (VLOOKUP(Switch!$D$60,$F$2:$G$44,2,FALSE)+ROW()-2))=Switch!$D$60,INDIRECT(\"a\" & (VLOOKUP(Switch!$D$60,$F$2:$G$44,2,FALSE)+ROW()-2)),\"\")","v":{"$error":"#N/A"}},{"$f":"IF(INDIRECT(\"c\" & (VLOOKUP(Switch!$D$61,$F$2:$G$44,2,FALSE)+ROW()-2))=Switch!$D$61,INDIRECT(\"a\" & (VLOOKUP(Switch!$D$61,$F$2:$G$44,2,FALSE)+ROW()-2)),\"\")","v":{"$error":"#N/A"}},{"$f":"IF(INDIRECT(\"c\" & (VLOOKUP(Switch!$D$62,$F$2:$G$44,2,FALSE)+ROW()-2))=Switch!$D$62,INDIRECT(\"a\" & (VLOOKUP(Switch!$D$62,$F$2:$G$44,2,FALSE)+ROW()-2)),\"\")","v":{"$error":"#N/A"}},{"$f":"IF(INDIRECT(\"c\" & (VLOOKUP(Switch!$D$63,$F$2:$G$44,2,FALSE)+ROW()-2))=Switch!$D$63,INDIRECT(\"a\" & (VLOOKUP(Switch!$D$63,$F$2:$G$44,2,FALSE)+ROW()-2)),\"\")","v":{"$error":"#N/A"}},{"$f":"IF(INDIRECT(\"c\" & (VLOOKUP(Switch!$D$64,$F$2:$G$44,2,FALSE)+ROW()-2))=Switch!$D$64,INDIRECT(\"a\" & (VLOOKUP(Switch!$D$64,$F$2:$G$44,2,FALSE)+ROW()-2)),\"\")","v":{"$error":"#N/A"}},{"$f":"IF(INDIRECT(\"c\" & (VLOOKUP(Switch!$D$65,$F$2:$G$44,2,FALSE)+ROW()-2))=Switch!$D$65,INDIRECT(\"a\" & (VLOOKUP(Switch!$D$65,$F$2:$G$44,2,FALSE)+ROW()-2)),\"\")","v":{"$error":"#N/A"}},{"$f":"IF(INDIRECT(\"c\" & (VLOOKUP(Switch!$D$66,$F$2:$G$44,2,FALSE)+ROW()-2))=Switch!$D$66,INDIRECT(\"a\" & (VLOOKUP(Switch!$D$66,$F$2:$G$44,2,FALSE)+ROW()-2)),\"\")","v":{"$error":"#N/A"}}]
["Prudential Equity Fund B","PEFB","Prudential Management",{"$f":"ROW()","v":476},null,null,{"$f":"VLOOKUP(F476,$C$2:$D$637,2,FALSE)","v":{"$error":"#N/A"}},{"$f":"IF(INDIRECT(\"c\" & (VLOOKUP(Switch!$D$26,$F$2:$G$44,2,FALSE)+ROW()-2))=Switch!$D$26,INDIRECT(\"a\" & (VLOOKUP(Switch!$D$26,$F$2:$G$44,2,FALSE)+ROW()-2)),\"\")","v":{"$error":"#N/A"}},{"$f":"IF(INDIRECT(\"c\" & (VLOOKUP(Switch!$D$27,$F$2:$G$44,2,FALSE)+ROW()-2))=Switch!$D$27,INDIRECT(\"a\" & (VLOOKUP(Switch!$D$27,$F$2:$G$44,2,FALSE)+ROW()-2)),\"\")","v":{"$error":"#N/A"}},{"$f":"IF(INDIRECT(\"c\" & (VLOOKUP(Switch!$D$28,$F$2:$G$44,2,FALSE)+ROW()-2))=Switch!$D$28,INDIRECT(\"a\" & (VLOOKUP(Switch!$D$28,$F$2:$G$44,2,FALSE)+ROW()-2)),\"\")","v":{"$error":"#N/A"}},{"$f":"IF(INDIRECT(\"c\" & (VLOOKUP(Switch!$D$29,$F$2:$G$44,2,FALSE)+ROW()-2))=Switch!$D$29,INDIRECT(\"a\" & (VLOOKUP(Switch!$D$29,$F$2:$G$44,2,FALSE)+ROW()-2)),\"\")","v":{"$error":"#N/A"}},{"$f":"IF(INDIRECT(\"c\" & (VLOOKUP(Switch!$D$30,$F$2:$G$44,2,FALSE)+ROW()-2))=Switch!$D$30,INDIRECT(\"a\" & (VLOOKUP(Switch!$D$30,$F$2:$G$44,2,FALSE)+ROW()-2)),\"\")","v":{"$error":"#N/A"}},{"$f":"IF(INDIRECT(\"c\" & (VLOOKUP(Switch!$D$31,$F$2:$G$44,2,FALSE)+ROW()-2))=Switch!$D$31,INDIRECT(\"a\" & (VLOOKUP(Switch!$D$31,$F$2:$G$44,2,FALSE)+ROW()-2)),\"\")","v":{"$error":"#N/A"}},{"$f":"IF(INDIRECT(\"c\" & (VLOOKUP(Switch!$D$32,$F$2:$G$44,2,FALSE)+ROW()-2))=Switch!$D$32,INDIRECT(\"a\" & (VLOOKUP(Switch!$D$32,$F$2:$G$44,2,FALSE)+ROW()-2)),\"\")","v":{"$error":"#N/A"}},{"$f":"IF(INDIRECT(\"c\" & (VLOOKUP(Switch!$D$33,$F$2:$G$44,2,FALSE)+ROW()-2))=Switch!$D$33,INDIRECT(\"a\" & (VLOOKUP(Switch!$D$33,$F$2:$G$44,2,FALSE)+ROW()-2)),\"\")","v":{"$error":"#N/A"}},{"$f":"IF(INDIRECT(\"c\" & (VLOOKUP(Switch!$D$34,$F$2:$G$44,2,FALSE)+ROW()-2))=Switch!$D$34,INDIRECT(\"a\" & (VLOOKUP(Switch!$D$34,$F$2:$G$44,2,FALSE)+ROW()-2)),\"\")","v":{"$error":"#N/A"}},{"$f":"IF(INDIRECT(\"c\" & (VLOOKUP(Switch!$D$35,$F$2:$G$44,2,FALSE)+ROW()-2))=Switch!$D$35,INDIRECT(\"a\" & (VLOOKUP(Switch!$D$35,$F$2:$G$44,2,FALSE)+ROW()-2)),\"\")","v":{"$error":"#N/A"}},{"$f":"IF(INDIRECT(\"c\" & (VLOOKUP(Switch!$D$36,$F$2:$G$44,2,FALSE)+ROW()-2))=Switch!$D$36,INDIRECT(\"a\" & (VLOOKUP(Switch!$D$36,$F$2:$G$44,2,FALSE)+ROW()-2)),\"\")","v":{"$error":"#N/A"}},{"$f":"IF(INDIRECT(\"c\" & (VLOOKUP(Switch!$D$37,$F$2:$G$44,2,FALSE)+ROW()-2))=Switch!$D$37,INDIRECT(\"a\" & (VLOOKUP(Switch!$D$37,$F$2:$G$44,2,FALSE)+ROW()-2)),\"\")","v":{"$error":"#N/A"}},{"$f":"IF(INDIRECT(\"c\" & (VLOOKUP(Switch!$D$38,$F$2:$G$44,2,FALSE)+ROW()-2))=Switch!$D$38,INDIRECT(\"a\" & (VLOOKUP(Switch!$D$38,$F$2:$G$44,2,FALSE)+ROW()-2)),\"\")","v":{"$error":"#N/A"}},{"$f":"IF(INDIRECT(\"c\" & (VLOOKUP(Switch!$D$39,$F$2:$G$44,2,FALSE)+ROW()-2))=Switch!$D$39,INDIRECT(\"a\" & (VLOOKUP(Switch!$D$39,$F$2:$G$44,2,FALSE)+ROW()-2)),\"\")","v":{"$error":"#N/A"}},{"$f":"IF(INDIRECT(\"c\" & (VLOOKUP(Switch!$D$40,$F$2:$G$44,2,FALSE)+ROW()-2))=Switch!$D$40,INDIRECT(\"a\" & (VLOOKUP(Switch!$D$40,$F$2:$G$44,2,FALSE)+ROW()-2)),\"\")","v":{"$error":"#N/A"}},{"$f":"IF(INDIRECT(\"c\" & (VLOOKUP(Switch!$D$52,$F$2:$G$44,2,FALSE)+ROW()-2))=Switch!$D$52,INDIRECT(\"a\" & (VLOOKUP(Switch!$D$52,$F$2:$G$44,2,FALSE)+ROW()-2)),\"\")","v":{"$error":"#N/A"}},{"$f":"IF(INDIRECT(\"c\" & (VLOOKUP(Switch!$D$53,$F$2:$G$44,2,FALSE)+ROW()-2))=Switch!$D$53,INDIRECT(\"a\" & (VLOOKUP(Switch!$D$53,$F$2:$G$44,2,FALSE)+ROW()-2)),\"\")","v":{"$error":"#N/A"}},{"$f":"IF(INDIRECT(\"c\" & (VLOOKUP(Switch!$D$54,$F$2:$G$44,2,FALSE)+ROW()-2))=Switch!$D$54,INDIRECT(\"a\" & (VLOOKUP(Switch!$D$54,$F$2:$G$44,2,FALSE)+ROW()-2)),\"\")","v":{"$error":"#N/A"}},{"$f":"IF(INDIRECT(\"c\" & (VLOOKUP(Switch!$D$55,$F$2:$G$44,2,FALSE)+ROW()-2))=Switch!$D$55,INDIRECT(\"a\" & (VLOOKUP(Switch!$D$55,$F$2:$G$44,2,FALSE)+ROW()-2)),\"\")","v":{"$error":"#N/A"}},{"$f":"IF(INDIRECT(\"c\" & (VLOOKUP(Switch!$D$56,$F$2:$G$44,2,FALSE)+ROW()-2))=Switch!$D$56,INDIRECT(\"a\" & (VLOOKUP(Switch!$D$56,$F$2:$G$44,2,FALSE)+ROW()-2)),\"\")","v":{"$error":"#N/A"}},{"$f":"IF(INDIRECT(\"c\" & (VLOOKUP(Switch!$D$57,$F$2:$G$44,2,FALSE)+ROW()-2))=Switch!$D$57,INDIRECT(\"a\" & (VLOOKUP(Switch!$D$57,$F$2:$G$44,2,FALSE)+ROW()-2)),\"\")","v":{"$error":"#N/A"}},{"$f":"IF(INDIRECT(\"c\" & (VLOOKUP(Switch!$D$58,$F$2:$G$44,2,FALSE)+ROW()-2))=Switch!$D$58,INDIRECT(\"a\" & (VLOOKUP(Switch!$D$58,$F$2:$G$44,2,FALSE)+ROW()-2)),\"\")","v":{"$error":"#N/A"}},{"$f":"IF(INDIRECT(\"c\" & (VLOOKUP(Switch!$D$59,$F$2:$G$44,2,FALSE)+ROW()-2))=Switch!$D$59,INDIRECT(\"a\" & (VLOOKUP(Switch!$D$59,$F$2:$G$44,2,FALSE)+ROW()-2)),\"\")","v":{"$error":"#N/A"}},{"$f":"IF(INDIRECT(\"c\" & (VLOOKUP(Switch!$D$60,$F$2:$G$44,2,FALSE)+ROW()-2))=Switch!$D$60,INDIRECT(\"a\" & (VLOOKUP(Switch!$D$60,$F$2:$G$44,2,FALSE)+ROW()-2)),\"\")","v":{"$error":"#N/A"}},{"$f":"IF(INDIRECT(\"c\" & (VLOOKUP(Switch!$D$61,$F$2:$G$44,2,FALSE)+ROW()-2))=Switch!$D$61,INDIRECT(\"a\" & (VLOOKUP(Switch!$D$61,$F$2:$G$44,2,FALSE)+ROW()-2)),\"\")","v":{"$error":"#N/A"}},{"$f":"IF(INDIRECT(\"c\" & (VLOOKUP(Switch!$D$62,$F$2:$G$44,2,FALSE)+ROW()-2))=Switch!$D$62,INDIRECT(\"a\" & (VLOOKUP(Switch!$D$62,$F$2:$G$44,2,FALSE)+ROW()-2)),\"\")","v":{"$error":"#N/A"}},{"$f":"IF(INDIRECT(\"c\" & (VLOOKUP(Switch!$D$63,$F$2:$G$44,2,FALSE)+ROW()-2))=Switch!$D$63,INDIRECT(\"a\" & (VLOOKUP(Switch!$D$63,$F$2:$G$44,2,FALSE)+ROW()-2)),\"\")","v":{"$error":"#N/A"}},{"$f":"IF(INDIRECT(\"c\" & (VLOOKUP(Switch!$D$64,$F$2:$G$44,2,FALSE)+ROW()-2))=Switch!$D$64,INDIRECT(\"a\" & (VLOOKUP(Switch!$D$64,$F$2:$G$44,2,FALSE)+ROW()-2)),\"\")","v":{"$error":"#N/A"}},{"$f":"IF(INDIRECT(\"c\" & (VLOOKUP(Switch!$D$65,$F$2:$G$44,2,FALSE)+ROW()-2))=Switch!$D$65,INDIRECT(\"a\" & (VLOOKUP(Switch!$D$65,$F$2:$G$44,2,FALSE)+ROW()-2)),\"\")","v":{"$error":"#N/A"}},{"$f":"IF(INDIRECT(\"c\" & (VLOOKUP(Switch!$D$66,$F$2:$G$44,2,FALSE)+ROW()-2))=Switch!$D$66,INDIRECT(\"a\" & (VLOOKUP(Switch!$D$66,$F$2:$G$44,2,FALSE)+ROW()-2)),\"\")","v":{"$error":"#N/A"}}]
["Prudential Inflation Plus Fund B","PRCB","Prudential Management",{"$f":"ROW()","v":477},null,null,{"$f":"VLOOKUP(F477,$C$2:$D$637,2,FALSE)","v":{"$error":"#N/A"}},{"$f":"IF(INDIRECT(\"c\" & (VLOOKUP(Switch!$D$26,$F$2:$G$44,2,FALSE)+ROW()-2))=Switch!$D$26,INDIRECT(\"a\" & (VLOOKUP(Switch!$D$26,$F$2:$G$44,2,FALSE)+ROW()-2)),\"\")","v":{"$error":"#N/A"}},{"$f":"IF(INDIRECT(\"c\" & (VLOOKUP(Switch!$D$27,$F$2:$G$44,2,FALSE)+ROW()-2))=Switch!$D$27,INDIRECT(\"a\" & (VLOOKUP(Switch!$D$27,$F$2:$G$44,2,FALSE)+ROW()-2)),\"\")","v":{"$error":"#N/A"}},{"$f":"IF(INDIRECT(\"c\" & (VLOOKUP(Switch!$D$28,$F$2:$G$44,2,FALSE)+ROW()-2))=Switch!$D$28,INDIRECT(\"a\" & (VLOOKUP(Switch!$D$28,$F$2:$G$44,2,FALSE)+ROW()-2)),\"\")","v":{"$error":"#N/A"}},{"$f":"IF(INDIRECT(\"c\" & (VLOOKUP(Switch!$D$29,$F$2:$G$44,2,FALSE)+ROW()-2))=Switch!$D$29,INDIRECT(\"a\" & (VLOOKUP(Switch!$D$29,$F$2:$G$44,2,FALSE)+ROW()-2)),\"\")","v":{"$error":"#N/A"}},{"$f":"IF(INDIRECT(\"c\" & (VLOOKUP(Switch!$D$30,$F$2:$G$44,2,FALSE)+ROW()-2))=Switch!$D$30,INDIRECT(\"a\" & (VLOOKUP(Switch!$D$30,$F$2:$G$44,2,FALSE)+ROW()-2)),\"\")","v":{"$error":"#N/A"}},{"$f":"IF(INDIRECT(\"c\" & (VLOOKUP(Switch!$D$31,$F$2:$G$44,2,FALSE)+ROW()-2))=Switch!$D$31,INDIRECT(\"a\" & (VLOOKUP(Switch!$D$31,$F$2:$G$44,2,FALSE)+ROW()-2)),\"\")","v":{"$error":"#N/A"}},{"$f":"IF(INDIRECT(\"c\" & (VLOOKUP(Switch!$D$32,$F$2:$G$44,2,FALSE)+ROW()-2))=Switch!$D$32,INDIRECT(\"a\" & (VLOOKUP(Switch!$D$32,$F$2:$G$44,2,FALSE)+ROW()-2)),\"\")","v":{"$error":"#N/A"}},{"$f":"IF(INDIRECT(\"c\" & (VLOOKUP(Switch!$D$33,$F$2:$G$44,2,FALSE)+ROW()-2))=Switch!$D$33,INDIRECT(\"a\" & (VLOOKUP(Switch!$D$33,$F$2:$G$44,2,FALSE)+ROW()-2)),\"\")","v":{"$error":"#N/A"}},{"$f":"IF(INDIRECT(\"c\" & (VLOOKUP(Switch!$D$34,$F$2:$G$44,2,FALSE)+ROW()-2))=Switch!$D$34,INDIRECT(\"a\" & (VLOOKUP(Switch!$D$34,$F$2:$G$44,2,FALSE)+ROW()-2)),\"\")","v":{"$error":"#N/A"}},{"$f":"IF(INDIRECT(\"c\" & (VLOOKUP(Switch!$D$35,$F$2:$G$44,2,FALSE)+ROW()-2))=Switch!$D$35,INDIRECT(\"a\" & (VLOOKUP(Switch!$D$35,$F$2:$G$44,2,FALSE)+ROW()-2)),\"\")","v":{"$error":"#N/A"}},{"$f":"IF(INDIRECT(\"c\" & (VLOOKUP(Switch!$D$36,$F$2:$G$44,2,FALSE)+ROW()-2))=Switch!$D$36,INDIRECT(\"a\" & (VLOOKUP(Switch!$D$36,$F$2:$G$44,2,FALSE)+ROW()-2)),\"\")","v":{"$error":"#N/A"}},{"$f":"IF(INDIRECT(\"c\" & (VLOOKUP(Switch!$D$37,$F$2:$G$44,2,FALSE)+ROW()-2))=Switch!$D$37,INDIRECT(\"a\" & (VLOOKUP(Switch!$D$37,$F$2:$G$44,2,FALSE)+ROW()-2)),\"\")","v":{"$error":"#N/A"}},{"$f":"IF(INDIRECT(\"c\" & (VLOOKUP(Switch!$D$38,$F$2:$G$44,2,FALSE)+ROW()-2))=Switch!$D$38,INDIRECT(\"a\" & (VLOOKUP(Switch!$D$38,$F$2:$G$44,2,FALSE)+ROW()-2)),\"\")","v":{"$error":"#N/A"}},{"$f":"IF(INDIRECT(\"c\" & (VLOOKUP(Switch!$D$39,$F$2:$G$44,2,FALSE)+ROW()-2))=Switch!$D$39,INDIRECT(\"a\" & (VLOOKUP(Switch!$D$39,$F$2:$G$44,2,FALSE)+ROW()-2)),\"\")","v":{"$error":"#N/A"}},{"$f":"IF(INDIRECT(\"c\" & (VLOOKUP(Switch!$D$40,$F$2:$G$44,2,FALSE)+ROW()-2))=Switch!$D$40,INDIRECT(\"a\" & (VLOOKUP(Switch!$D$40,$F$2:$G$44,2,FALSE)+ROW()-2)),\"\")","v":{"$error":"#N/A"}},{"$f":"IF(INDIRECT(\"c\" & (VLOOKUP(Switch!$D$52,$F$2:$G$44,2,FALSE)+ROW()-2))=Switch!$D$52,INDIRECT(\"a\" & (VLOOKUP(Switch!$D$52,$F$2:$G$44,2,FALSE)+ROW()-2)),\"\")","v":{"$error":"#N/A"}},{"$f":"IF(INDIRECT(\"c\" & (VLOOKUP(Switch!$D$53,$F$2:$G$44,2,FALSE)+ROW()-2))=Switch!$D$53,INDIRECT(\"a\" & (VLOOKUP(Switch!$D$53,$F$2:$G$44,2,FALSE)+ROW()-2)),\"\")","v":{"$error":"#N/A"}},{"$f":"IF(INDIRECT(\"c\" & (VLOOKUP(Switch!$D$54,$F$2:$G$44,2,FALSE)+ROW()-2))=Switch!$D$54,INDIRECT(\"a\" & (VLOOKUP(Switch!$D$54,$F$2:$G$44,2,FALSE)+ROW()-2)),\"\")","v":{"$error":"#N/A"}},{"$f":"IF(INDIRECT(\"c\" & (VLOOKUP(Switch!$D$55,$F$2:$G$44,2,FALSE)+ROW()-2))=Switch!$D$55,INDIRECT(\"a\" & (VLOOKUP(Switch!$D$55,$F$2:$G$44,2,FALSE)+ROW()-2)),\"\")","v":{"$error":"#N/A"}},{"$f":"IF(INDIRECT(\"c\" & (VLOOKUP(Switch!$D$56,$F$2:$G$44,2,FALSE)+ROW()-2))=Switch!$D$56,INDIRECT(\"a\" & (VLOOKUP(Switch!$D$56,$F$2:$G$44,2,FALSE)+ROW()-2)),\"\")","v":{"$error":"#N/A"}},{"$f":"IF(INDIRECT(\"c\" & (VLOOKUP(Switch!$D$57,$F$2:$G$44,2,FALSE)+ROW()-2))=Switch!$D$57,INDIRECT(\"a\" & (VLOOKUP(Switch!$D$57,$F$2:$G$44,2,FALSE)+ROW()-2)),\"\")","v":{"$error":"#N/A"}},{"$f":"IF(INDIRECT(\"c\" & (VLOOKUP(Switch!$D$58,$F$2:$G$44,2,FALSE)+ROW()-2))=Switch!$D$58,INDIRECT(\"a\" & (VLOOKUP(Switch!$D$58,$F$2:$G$44,2,FALSE)+ROW()-2)),\"\")","v":{"$error":"#N/A"}},{"$f":"IF(INDIRECT(\"c\" & (VLOOKUP(Switch!$D$59,$F$2:$G$44,2,FALSE)+ROW()-2))=Switch!$D$59,INDIRECT(\"a\" & (VLOOKUP(Switch!$D$59,$F$2:$G$44,2,FALSE)+ROW()-2)),\"\")","v":{"$error":"#N/A"}},{"$f":"IF(INDIRECT(\"c\" & (VLOOKUP(Switch!$D$60,$F$2:$G$44,2,FALSE)+ROW()-2))=Switch!$D$60,INDIRECT(\"a\" & (VLOOKUP(Switch!$D$60,$F$2:$G$44,2,FALSE)+ROW()-2)),\"\")","v":{"$error":"#N/A"}},{"$f":"IF(INDIRECT(\"c\" & (VLOOKUP(Switch!$D$61,$F$2:$G$44,2,FALSE)+ROW()-2))=Switch!$D$61,INDIRECT(\"a\" & (VLOOKUP(Switch!$D$61,$F$2:$G$44,2,FALSE)+ROW()-2)),\"\")","v":{"$error":"#N/A"}},{"$f":"IF(INDIRECT(\"c\" & (VLOOKUP(Switch!$D$62,$F$2:$G$44,2,FALSE)+ROW()-2))=Switch!$D$62,INDIRECT(\"a\" & (VLOOKUP(Switch!$D$62,$F$2:$G$44,2,FALSE)+ROW()-2)),\"\")","v":{"$error":"#N/A"}},{"$f":"IF(INDIRECT(\"c\" & (VLOOKUP(Switch!$D$63,$F$2:$G$44,2,FALSE)+ROW()-2))=Switch!$D$63,INDIRECT(\"a\" & (VLOOKUP(Switch!$D$63,$F$2:$G$44,2,FALSE)+ROW()-2)),\"\")","v":{"$error":"#N/A"}},{"$f":"IF(INDIRECT(\"c\" & (VLOOKUP(Switch!$D$64,$F$2:$G$44,2,FALSE)+ROW()-2))=Switch!$D$64,INDIRECT(\"a\" & (VLOOKUP(Switch!$D$64,$F$2:$G$44,2,FALSE)+ROW()-2)),\"\")","v":{"$error":"#N/A"}},{"$f":"IF(INDIRECT(\"c\" & (VLOOKUP(Switch!$D$65,$F$2:$G$44,2,FALSE)+ROW()-2))=Switch!$D$65,INDIRECT(\"a\" & (VLOOKUP(Switch!$D$65,$F$2:$G$44,2,FALSE)+ROW()-2)),\"\")","v":{"$error":"#N/A"}},{"$f":"IF(INDIRECT(\"c\" & (VLOOKUP(Switch!$D$66,$F$2:$G$44,2,FALSE)+ROW()-2))=Switch!$D$66,INDIRECT(\"a\" & (VLOOKUP(Switch!$D$66,$F$2:$G$44,2,FALSE)+ROW()-2)),\"\")","v":{"$error":"#N/A"}}]
["Prudential Inflation Plus Fund Class X","PRIP","Prudential Management",{"$f":"ROW()","v":478},null,null,{"$f":"VLOOKUP(F478,$C$2:$D$637,2,FALSE)","v":{"$error":"#N/A"}},{"$f":"IF(INDIRECT(\"c\" & (VLOOKUP(Switch!$D$26,$F$2:$G$44,2,FALSE)+ROW()-2))=Switch!$D$26,INDIRECT(\"a\" & (VLOOKUP(Switch!$D$26,$F$2:$G$44,2,FALSE)+ROW()-2)),\"\")","v":{"$error":"#N/A"}},{"$f":"IF(INDIRECT(\"c\" & (VLOOKUP(Switch!$D$27,$F$2:$G$44,2,FALSE)+ROW()-2))=Switch!$D$27,INDIRECT(\"a\" & (VLOOKUP(Switch!$D$27,$F$2:$G$44,2,FALSE)+ROW()-2)),\"\")","v":{"$error":"#N/A"}},{"$f":"IF(INDIRECT(\"c\" & (VLOOKUP(Switch!$D$28,$F$2:$G$44,2,FALSE)+ROW()-2))=Switch!$D$28,INDIRECT(\"a\" & (VLOOKUP(Switch!$D$28,$F$2:$G$44,2,FALSE)+ROW()-2)),\"\")","v":{"$error":"#N/A"}},{"$f":"IF(INDIRECT(\"c\" & (VLOOKUP(Switch!$D$29,$F$2:$G$44,2,FALSE)+ROW()-2))=Switch!$D$29,INDIRECT(\"a\" & (VLOOKUP(Switch!$D$29,$F$2:$G$44,2,FALSE)+ROW()-2)),\"\")","v":{"$error":"#N/A"}},{"$f":"IF(INDIRECT(\"c\" & (VLOOKUP(Switch!$D$30,$F$2:$G$44,2,FALSE)+ROW()-2))=Switch!$D$30,INDIRECT(\"a\" & (VLOOKUP(Switch!$D$30,$F$2:$G$44,2,FALSE)+ROW()-2)),\"\")","v":{"$error":"#N/A"}},{"$f":"IF(INDIRECT(\"c\" & (VLOOKUP(Switch!$D$31,$F$2:$G$44,2,FALSE)+ROW()-2))=Switch!$D$31,INDIRECT(\"a\" & (VLOOKUP(Switch!$D$31,$F$2:$G$44,2,FALSE)+ROW()-2)),\"\")","v":{"$error":"#N/A"}},{"$f":"IF(INDIRECT(\"c\" & (VLOOKUP(Switch!$D$32,$F$2:$G$44,2,FALSE)+ROW()-2))=Switch!$D$32,INDIRECT(\"a\" & (VLOOKUP(Switch!$D$32,$F$2:$G$44,2,FALSE)+ROW()-2)),\"\")","v":{"$error":"#N/A"}},{"$f":"IF(INDIRECT(\"c\" & (VLOOKUP(Switch!$D$33,$F$2:$G$44,2,FALSE)+ROW()-2))=Switch!$D$33,INDIRECT(\"a\" & (VLOOKUP(Switch!$D$33,$F$2:$G$44,2,FALSE)+ROW()-2)),\"\")","v":{"$error":"#N/A"}},{"$f":"IF(INDIRECT(\"c\" & (VLOOKUP(Switch!$D$34,$F$2:$G$44,2,FALSE)+ROW()-2))=Switch!$D$34,INDIRECT(\"a\" & (VLOOKUP(Switch!$D$34,$F$2:$G$44,2,FALSE)+ROW()-2)),\"\")","v":{"$error":"#N/A"}},{"$f":"IF(INDIRECT(\"c\" & (VLOOKUP(Switch!$D$35,$F$2:$G$44,2,FALSE)+ROW()-2))=Switch!$D$35,INDIRECT(\"a\" & (VLOOKUP(Switch!$D$35,$F$2:$G$44,2,FALSE)+ROW()-2)),\"\")","v":{"$error":"#N/A"}},{"$f":"IF(INDIRECT(\"c\" & (VLOOKUP(Switch!$D$36,$F$2:$G$44,2,FALSE)+ROW()-2))=Switch!$D$36,INDIRECT(\"a\" & (VLOOKUP(Switch!$D$36,$F$2:$G$44,2,FALSE)+ROW()-2)),\"\")","v":{"$error":"#N/A"}},{"$f":"IF(INDIRECT(\"c\" & (VLOOKUP(Switch!$D$37,$F$2:$G$44,2,FALSE)+ROW()-2))=Switch!$D$37,INDIRECT(\"a\" & (VLOOKUP(Switch!$D$37,$F$2:$G$44,2,FALSE)+ROW()-2)),\"\")","v":{"$error":"#N/A"}},{"$f":"IF(INDIRECT(\"c\" & (VLOOKUP(Switch!$D$38,$F$2:$G$44,2,FALSE)+ROW()-2))=Switch!$D$38,INDIRECT(\"a\" & (VLOOKUP(Switch!$D$38,$F$2:$G$44,2,FALSE)+ROW()-2)),\"\")","v":{"$error":"#N/A"}},{"$f":"IF(INDIRECT(\"c\" & (VLOOKUP(Switch!$D$39,$F$2:$G$44,2,FALSE)+ROW()-2))=Switch!$D$39,INDIRECT(\"a\" & (VLOOKUP(Switch!$D$39,$F$2:$G$44,2,FALSE)+ROW()-2)),\"\")","v":{"$error":"#N/A"}},{"$f":"IF(INDIRECT(\"c\" & (VLOOKUP(Switch!$D$40,$F$2:$G$44,2,FALSE)+ROW()-2))=Switch!$D$40,INDIRECT(\"a\" & (VLOOKUP(Switch!$D$40,$F$2:$G$44,2,FALSE)+ROW()-2)),\"\")","v":{"$error":"#N/A"}},{"$f":"IF(INDIRECT(\"c\" & (VLOOKUP(Switch!$D$52,$F$2:$G$44,2,FALSE)+ROW()-2))=Switch!$D$52,INDIRECT(\"a\" & (VLOOKUP(Switch!$D$52,$F$2:$G$44,2,FALSE)+ROW()-2)),\"\")","v":{"$error":"#N/A"}},{"$f":"IF(INDIRECT(\"c\" & (VLOOKUP(Switch!$D$53,$F$2:$G$44,2,FALSE)+ROW()-2))=Switch!$D$53,INDIRECT(\"a\" & (VLOOKUP(Switch!$D$53,$F$2:$G$44,2,FALSE)+ROW()-2)),\"\")","v":{"$error":"#N/A"}},{"$f":"IF(INDIRECT(\"c\" & (VLOOKUP(Switch!$D$54,$F$2:$G$44,2,FALSE)+ROW()-2))=Switch!$D$54,INDIRECT(\"a\" & (VLOOKUP(Switch!$D$54,$F$2:$G$44,2,FALSE)+ROW()-2)),\"\")","v":{"$error":"#N/A"}},{"$f":"IF(INDIRECT(\"c\" & (VLOOKUP(Switch!$D$55,$F$2:$G$44,2,FALSE)+ROW()-2))=Switch!$D$55,INDIRECT(\"a\" & (VLOOKUP(Switch!$D$55,$F$2:$G$44,2,FALSE)+ROW()-2)),\"\")","v":{"$error":"#N/A"}},{"$f":"IF(INDIRECT(\"c\" & (VLOOKUP(Switch!$D$56,$F$2:$G$44,2,FALSE)+ROW()-2))=Switch!$D$56,INDIRECT(\"a\" & (VLOOKUP(Switch!$D$56,$F$2:$G$44,2,FALSE)+ROW()-2)),\"\")","v":{"$error":"#N/A"}},{"$f":"IF(INDIRECT(\"c\" & (VLOOKUP(Switch!$D$57,$F$2:$G$44,2,FALSE)+ROW()-2))=Switch!$D$57,INDIRECT(\"a\" & (VLOOKUP(Switch!$D$57,$F$2:$G$44,2,FALSE)+ROW()-2)),\"\")","v":{"$error":"#N/A"}},{"$f":"IF(INDIRECT(\"c\" & (VLOOKUP(Switch!$D$58,$F$2:$G$44,2,FALSE)+ROW()-2))=Switch!$D$58,INDIRECT(\"a\" & (VLOOKUP(Switch!$D$58,$F$2:$G$44,2,FALSE)+ROW()-2)),\"\")","v":{"$error":"#N/A"}},{"$f":"IF(INDIRECT(\"c\" & (VLOOKUP(Switch!$D$59,$F$2:$G$44,2,FALSE)+ROW()-2))=Switch!$D$59,INDIRECT(\"a\" & (VLOOKUP(Switch!$D$59,$F$2:$G$44,2,FALSE)+ROW()-2)),\"\")","v":{"$error":"#N/A"}},{"$f":"IF(INDIRECT(\"c\" & (VLOOKUP(Switch!$D$60,$F$2:$G$44,2,FALSE)+ROW()-2))=Switch!$D$60,INDIRECT(\"a\" & (VLOOKUP(Switch!$D$60,$F$2:$G$44,2,FALSE)+ROW()-2)),\"\")","v":{"$error":"#N/A"}},{"$f":"IF(INDIRECT(\"c\" & (VLOOKUP(Switch!$D$61,$F$2:$G$44,2,FALSE)+ROW()-2))=Switch!$D$61,INDIRECT(\"a\" & (VLOOKUP(Switch!$D$61,$F$2:$G$44,2,FALSE)+ROW()-2)),\"\")","v":{"$error":"#N/A"}},{"$f":"IF(INDIRECT(\"c\" & (VLOOKUP(Switch!$D$62,$F$2:$G$44,2,FALSE)+ROW()-2))=Switch!$D$62,INDIRECT(\"a\" & (VLOOKUP(Switch!$D$62,$F$2:$G$44,2,FALSE)+ROW()-2)),\"\")","v":{"$error":"#N/A"}},{"$f":"IF(INDIRECT(\"c\" & (VLOOKUP(Switch!$D$63,$F$2:$G$44,2,FALSE)+ROW()-2))=Switch!$D$63,INDIRECT(\"a\" & (VLOOKUP(Switch!$D$63,$F$2:$G$44,2,FALSE)+ROW()-2)),\"\")","v":{"$error":"#N/A"}},{"$f":"IF(INDIRECT(\"c\" & (VLOOKUP(Switch!$D$64,$F$2:$G$44,2,FALSE)+ROW()-2))=Switch!$D$64,INDIRECT(\"a\" & (VLOOKUP(Switch!$D$64,$F$2:$G$44,2,FALSE)+ROW()-2)),\"\")","v":{"$error":"#N/A"}},{"$f":"IF(INDIRECT(\"c\" & (VLOOKUP(Switch!$D$65,$F$2:$G$44,2,FALSE)+ROW()-2))=Switch!$D$65,INDIRECT(\"a\" & (VLOOKUP(Switch!$D$65,$F$2:$G$44,2,FALSE)+ROW()-2)),\"\")","v":{"$error":"#N/A"}},{"$f":"IF(INDIRECT(\"c\" & (VLOOKUP(Switch!$D$66,$F$2:$G$44,2,FALSE)+ROW()-2))=Switch!$D$66,INDIRECT(\"a\" & (VLOOKUP(Switch!$D$66,$F$2:$G$44,2,FALSE)+ROW()-2)),\"\")","v":{"$error":"#N/A"}}]
["Prudential SA Equity Fund F","PCVCF","Prudential Management",{"$f":"ROW()","v":479},null,null,{"$f":"VLOOKUP(F479,$C$2:$D$637,2,FALSE)","v":{"$error":"#N/A"}},{"$f":"IF(INDIRECT(\"c\" & (VLOOKUP(Switch!$D$26,$F$2:$G$44,2,FALSE)+ROW()-2))=Switch!$D$26,INDIRECT(\"a\" & (VLOOKUP(Switch!$D$26,$F$2:$G$44,2,FALSE)+ROW()-2)),\"\")","v":{"$error":"#N/A"}},{"$f":"IF(INDIRECT(\"c\" & (VLOOKUP(Switch!$D$27,$F$2:$G$44,2,FALSE)+ROW()-2))=Switch!$D$27,INDIRECT(\"a\" & (VLOOKUP(Switch!$D$27,$F$2:$G$44,2,FALSE)+ROW()-2)),\"\")","v":{"$error":"#N/A"}},{"$f":"IF(INDIRECT(\"c\" & (VLOOKUP(Switch!$D$28,$F$2:$G$44,2,FALSE)+ROW()-2))=Switch!$D$28,INDIRECT(\"a\" & (VLOOKUP(Switch!$D$28,$F$2:$G$44,2,FALSE)+ROW()-2)),\"\")","v":{"$error":"#N/A"}},{"$f":"IF(INDIRECT(\"c\" & (VLOOKUP(Switch!$D$29,$F$2:$G$44,2,FALSE)+ROW()-2))=Switch!$D$29,INDIRECT(\"a\" & (VLOOKUP(Switch!$D$29,$F$2:$G$44,2,FALSE)+ROW()-2)),\"\")","v":{"$error":"#N/A"}},{"$f":"IF(INDIRECT(\"c\" & (VLOOKUP(Switch!$D$30,$F$2:$G$44,2,FALSE)+ROW()-2))=Switch!$D$30,INDIRECT(\"a\" & (VLOOKUP(Switch!$D$30,$F$2:$G$44,2,FALSE)+ROW()-2)),\"\")","v":{"$error":"#N/A"}},{"$f":"IF(INDIRECT(\"c\" & (VLOOKUP(Switch!$D$31,$F$2:$G$44,2,FALSE)+ROW()-2))=Switch!$D$31,INDIRECT(\"a\" & (VLOOKUP(Switch!$D$31,$F$2:$G$44,2,FALSE)+ROW()-2)),\"\")","v":{"$error":"#N/A"}},{"$f":"IF(INDIRECT(\"c\" & (VLOOKUP(Switch!$D$32,$F$2:$G$44,2,FALSE)+ROW()-2))=Switch!$D$32,INDIRECT(\"a\" & (VLOOKUP(Switch!$D$32,$F$2:$G$44,2,FALSE)+ROW()-2)),\"\")","v":{"$error":"#N/A"}},{"$f":"IF(INDIRECT(\"c\" & (VLOOKUP(Switch!$D$33,$F$2:$G$44,2,FALSE)+ROW()-2))=Switch!$D$33,INDIRECT(\"a\" & (VLOOKUP(Switch!$D$33,$F$2:$G$44,2,FALSE)+ROW()-2)),\"\")","v":{"$error":"#N/A"}},{"$f":"IF(INDIRECT(\"c\" & (VLOOKUP(Switch!$D$34,$F$2:$G$44,2,FALSE)+ROW()-2))=Switch!$D$34,INDIRECT(\"a\" & (VLOOKUP(Switch!$D$34,$F$2:$G$44,2,FALSE)+ROW()-2)),\"\")","v":{"$error":"#N/A"}},{"$f":"IF(INDIRECT(\"c\" & (VLOOKUP(Switch!$D$35,$F$2:$G$44,2,FALSE)+ROW()-2))=Switch!$D$35,INDIRECT(\"a\" & (VLOOKUP(Switch!$D$35,$F$2:$G$44,2,FALSE)+ROW()-2)),\"\")","v":{"$error":"#N/A"}},{"$f":"IF(INDIRECT(\"c\" & (VLOOKUP(Switch!$D$36,$F$2:$G$44,2,FALSE)+ROW()-2))=Switch!$D$36,INDIRECT(\"a\" & (VLOOKUP(Switch!$D$36,$F$2:$G$44,2,FALSE)+ROW()-2)),\"\")","v":{"$error":"#N/A"}},{"$f":"IF(INDIRECT(\"c\" & (VLOOKUP(Switch!$D$37,$F$2:$G$44,2,FALSE)+ROW()-2))=Switch!$D$37,INDIRECT(\"a\" & (VLOOKUP(Switch!$D$37,$F$2:$G$44,2,FALSE)+ROW()-2)),\"\")","v":{"$error":"#N/A"}},{"$f":"IF(INDIRECT(\"c\" & (VLOOKUP(Switch!$D$38,$F$2:$G$44,2,FALSE)+ROW()-2))=Switch!$D$38,INDIRECT(\"a\" & (VLOOKUP(Switch!$D$38,$F$2:$G$44,2,FALSE)+ROW()-2)),\"\")","v":{"$error":"#N/A"}},{"$f":"IF(INDIRECT(\"c\" & (VLOOKUP(Switch!$D$39,$F$2:$G$44,2,FALSE)+ROW()-2))=Switch!$D$39,INDIRECT(\"a\" & (VLOOKUP(Switch!$D$39,$F$2:$G$44,2,FALSE)+ROW()-2)),\"\")","v":{"$error":"#N/A"}},{"$f":"IF(INDIRECT(\"c\" & (VLOOKUP(Switch!$D$40,$F$2:$G$44,2,FALSE)+ROW()-2))=Switch!$D$40,INDIRECT(\"a\" & (VLOOKUP(Switch!$D$40,$F$2:$G$44,2,FALSE)+ROW()-2)),\"\")","v":{"$error":"#N/A"}},{"$f":"IF(INDIRECT(\"c\" & (VLOOKUP(Switch!$D$52,$F$2:$G$44,2,FALSE)+ROW()-2))=Switch!$D$52,INDIRECT(\"a\" & (VLOOKUP(Switch!$D$52,$F$2:$G$44,2,FALSE)+ROW()-2)),\"\")","v":{"$error":"#N/A"}},{"$f":"IF(INDIRECT(\"c\" & (VLOOKUP(Switch!$D$53,$F$2:$G$44,2,FALSE)+ROW()-2))=Switch!$D$53,INDIRECT(\"a\" & (VLOOKUP(Switch!$D$53,$F$2:$G$44,2,FALSE)+ROW()-2)),\"\")","v":{"$error":"#N/A"}},{"$f":"IF(INDIRECT(\"c\" & (VLOOKUP(Switch!$D$54,$F$2:$G$44,2,FALSE)+ROW()-2))=Switch!$D$54,INDIRECT(\"a\" & (VLOOKUP(Switch!$D$54,$F$2:$G$44,2,FALSE)+ROW()-2)),\"\")","v":{"$error":"#N/A"}},{"$f":"IF(INDIRECT(\"c\" & (VLOOKUP(Switch!$D$55,$F$2:$G$44,2,FALSE)+ROW()-2))=Switch!$D$55,INDIRECT(\"a\" & (VLOOKUP(Switch!$D$55,$F$2:$G$44,2,FALSE)+ROW()-2)),\"\")","v":{"$error":"#N/A"}},{"$f":"IF(INDIRECT(\"c\" & (VLOOKUP(Switch!$D$56,$F$2:$G$44,2,FALSE)+ROW()-2))=Switch!$D$56,INDIRECT(\"a\" & (VLOOKUP(Switch!$D$56,$F$2:$G$44,2,FALSE)+ROW()-2)),\"\")","v":{"$error":"#N/A"}},{"$f":"IF(INDIRECT(\"c\" & (VLOOKUP(Switch!$D$57,$F$2:$G$44,2,FALSE)+ROW()-2))=Switch!$D$57,INDIRECT(\"a\" & (VLOOKUP(Switch!$D$57,$F$2:$G$44,2,FALSE)+ROW()-2)),\"\")","v":{"$error":"#N/A"}},{"$f":"IF(INDIRECT(\"c\" & (VLOOKUP(Switch!$D$58,$F$2:$G$44,2,FALSE)+ROW()-2))=Switch!$D$58,INDIRECT(\"a\" & (VLOOKUP(Switch!$D$58,$F$2:$G$44,2,FALSE)+ROW()-2)),\"\")","v":{"$error":"#N/A"}},{"$f":"IF(INDIRECT(\"c\" & (VLOOKUP(Switch!$D$59,$F$2:$G$44,2,FALSE)+ROW()-2))=Switch!$D$59,INDIRECT(\"a\" & (VLOOKUP(Switch!$D$59,$F$2:$G$44,2,FALSE)+ROW()-2)),\"\")","v":{"$error":"#N/A"}},{"$f":"IF(INDIRECT(\"c\" & (VLOOKUP(Switch!$D$60,$F$2:$G$44,2,FALSE)+ROW()-2))=Switch!$D$60,INDIRECT(\"a\" & (VLOOKUP(Switch!$D$60,$F$2:$G$44,2,FALSE)+ROW()-2)),\"\")","v":{"$error":"#N/A"}},{"$f":"IF(INDIRECT(\"c\" & (VLOOKUP(Switch!$D$61,$F$2:$G$44,2,FALSE)+ROW()-2))=Switch!$D$61,INDIRECT(\"a\" & (VLOOKUP(Switch!$D$61,$F$2:$G$44,2,FALSE)+ROW()-2)),\"\")","v":{"$error":"#N/A"}},{"$f":"IF(INDIRECT(\"c\" & (VLOOKUP(Switch!$D$62,$F$2:$G$44,2,FALSE)+ROW()-2))=Switch!$D$62,INDIRECT(\"a\" & (VLOOKUP(Switch!$D$62,$F$2:$G$44,2,FALSE)+ROW()-2)),\"\")","v":{"$error":"#N/A"}},{"$f":"IF(INDIRECT(\"c\" & (VLOOKUP(Switch!$D$63,$F$2:$G$44,2,FALSE)+ROW()-2))=Switch!$D$63,INDIRECT(\"a\" & (VLOOKUP(Switch!$D$63,$F$2:$G$44,2,FALSE)+ROW()-2)),\"\")","v":{"$error":"#N/A"}},{"$f":"IF(INDIRECT(\"c\" & (VLOOKUP(Switch!$D$64,$F$2:$G$44,2,FALSE)+ROW()-2))=Switch!$D$64,INDIRECT(\"a\" & (VLOOKUP(Switch!$D$64,$F$2:$G$44,2,FALSE)+ROW()-2)),\"\")","v":{"$error":"#N/A"}},{"$f":"IF(INDIRECT(\"c\" & (VLOOKUP(Switch!$D$65,$F$2:$G$44,2,FALSE)+ROW()-2))=Switch!$D$65,INDIRECT(\"a\" & (VLOOKUP(Switch!$D$65,$F$2:$G$44,2,FALSE)+ROW()-2)),\"\")","v":{"$error":"#N/A"}},{"$f":"IF(INDIRECT(\"c\" & (VLOOKUP(Switch!$D$66,$F$2:$G$44,2,FALSE)+ROW()-2))=Switch!$D$66,INDIRECT(\"a\" & (VLOOKUP(Switch!$D$66,$F$2:$G$44,2,FALSE)+ROW()-2)),\"\")","v":{"$error":"#N/A"}}]
["Catalyst SA Property Equity Fund D","CSPEF","PSG Collective Investments Ltd",{"$f":"ROW()","v":480},null,null,{"$f":"VLOOKUP(F480,$C$2:$D$637,2,FALSE)","v":{"$error":"#N/A"}},{"$f":"IF(INDIRECT(\"c\" & (VLOOKUP(Switch!$D$26,$F$2:$G$44,2,FALSE)+ROW()-2))=Switch!$D$26,INDIRECT(\"a\" & (VLOOKUP(Switch!$D$26,$F$2:$G$44,2,FALSE)+ROW()-2)),\"\")","v":{"$error":"#N/A"}},{"$f":"IF(INDIRECT(\"c\" & (VLOOKUP(Switch!$D$27,$F$2:$G$44,2,FALSE)+ROW()-2))=Switch!$D$27,INDIRECT(\"a\" & (VLOOKUP(Switch!$D$27,$F$2:$G$44,2,FALSE)+ROW()-2)),\"\")","v":{"$error":"#N/A"}},{"$f":"IF(INDIRECT(\"c\" & (VLOOKUP(Switch!$D$28,$F$2:$G$44,2,FALSE)+ROW()-2))=Switch!$D$28,INDIRECT(\"a\" & (VLOOKUP(Switch!$D$28,$F$2:$G$44,2,FALSE)+ROW()-2)),\"\")","v":{"$error":"#N/A"}},{"$f":"IF(INDIRECT(\"c\" & (VLOOKUP(Switch!$D$29,$F$2:$G$44,2,FALSE)+ROW()-2))=Switch!$D$29,INDIRECT(\"a\" & (VLOOKUP(Switch!$D$29,$F$2:$G$44,2,FALSE)+ROW()-2)),\"\")","v":{"$error":"#N/A"}},{"$f":"IF(INDIRECT(\"c\" & (VLOOKUP(Switch!$D$30,$F$2:$G$44,2,FALSE)+ROW()-2))=Switch!$D$30,INDIRECT(\"a\" & (VLOOKUP(Switch!$D$30,$F$2:$G$44,2,FALSE)+ROW()-2)),\"\")","v":{"$error":"#N/A"}},{"$f":"IF(INDIRECT(\"c\" & (VLOOKUP(Switch!$D$31,$F$2:$G$44,2,FALSE)+ROW()-2))=Switch!$D$31,INDIRECT(\"a\" & (VLOOKUP(Switch!$D$31,$F$2:$G$44,2,FALSE)+ROW()-2)),\"\")","v":{"$error":"#N/A"}},{"$f":"IF(INDIRECT(\"c\" & (VLOOKUP(Switch!$D$32,$F$2:$G$44,2,FALSE)+ROW()-2))=Switch!$D$32,INDIRECT(\"a\" & (VLOOKUP(Switch!$D$32,$F$2:$G$44,2,FALSE)+ROW()-2)),\"\")","v":{"$error":"#N/A"}},{"$f":"IF(INDIRECT(\"c\" & (VLOOKUP(Switch!$D$33,$F$2:$G$44,2,FALSE)+ROW()-2))=Switch!$D$33,INDIRECT(\"a\" & (VLOOKUP(Switch!$D$33,$F$2:$G$44,2,FALSE)+ROW()-2)),\"\")","v":{"$error":"#N/A"}},{"$f":"IF(INDIRECT(\"c\" & (VLOOKUP(Switch!$D$34,$F$2:$G$44,2,FALSE)+ROW()-2))=Switch!$D$34,INDIRECT(\"a\" & (VLOOKUP(Switch!$D$34,$F$2:$G$44,2,FALSE)+ROW()-2)),\"\")","v":{"$error":"#N/A"}},{"$f":"IF(INDIRECT(\"c\" & (VLOOKUP(Switch!$D$35,$F$2:$G$44,2,FALSE)+ROW()-2))=Switch!$D$35,INDIRECT(\"a\" & (VLOOKUP(Switch!$D$35,$F$2:$G$44,2,FALSE)+ROW()-2)),\"\")","v":{"$error":"#N/A"}},{"$f":"IF(INDIRECT(\"c\" & (VLOOKUP(Switch!$D$36,$F$2:$G$44,2,FALSE)+ROW()-2))=Switch!$D$36,INDIRECT(\"a\" & (VLOOKUP(Switch!$D$36,$F$2:$G$44,2,FALSE)+ROW()-2)),\"\")","v":{"$error":"#N/A"}},{"$f":"IF(INDIRECT(\"c\" & (VLOOKUP(Switch!$D$37,$F$2:$G$44,2,FALSE)+ROW()-2))=Switch!$D$37,INDIRECT(\"a\" & (VLOOKUP(Switch!$D$37,$F$2:$G$44,2,FALSE)+ROW()-2)),\"\")","v":{"$error":"#N/A"}},{"$f":"IF(INDIRECT(\"c\" & (VLOOKUP(Switch!$D$38,$F$2:$G$44,2,FALSE)+ROW()-2))=Switch!$D$38,INDIRECT(\"a\" & (VLOOKUP(Switch!$D$38,$F$2:$G$44,2,FALSE)+ROW()-2)),\"\")","v":{"$error":"#N/A"}},{"$f":"IF(INDIRECT(\"c\" & (VLOOKUP(Switch!$D$39,$F$2:$G$44,2,FALSE)+ROW()-2))=Switch!$D$39,INDIRECT(\"a\" & (VLOOKUP(Switch!$D$39,$F$2:$G$44,2,FALSE)+ROW()-2)),\"\")","v":{"$error":"#N/A"}},{"$f":"IF(INDIRECT(\"c\" & (VLOOKUP(Switch!$D$40,$F$2:$G$44,2,FALSE)+ROW()-2))=Switch!$D$40,INDIRECT(\"a\" & (VLOOKUP(Switch!$D$40,$F$2:$G$44,2,FALSE)+ROW()-2)),\"\")","v":{"$error":"#N/A"}},{"$f":"IF(INDIRECT(\"c\" & (VLOOKUP(Switch!$D$52,$F$2:$G$44,2,FALSE)+ROW()-2))=Switch!$D$52,INDIRECT(\"a\" & (VLOOKUP(Switch!$D$52,$F$2:$G$44,2,FALSE)+ROW()-2)),\"\")","v":{"$error":"#N/A"}},{"$f":"IF(INDIRECT(\"c\" & (VLOOKUP(Switch!$D$53,$F$2:$G$44,2,FALSE)+ROW()-2))=Switch!$D$53,INDIRECT(\"a\" & (VLOOKUP(Switch!$D$53,$F$2:$G$44,2,FALSE)+ROW()-2)),\"\")","v":{"$error":"#N/A"}},{"$f":"IF(INDIRECT(\"c\" & (VLOOKUP(Switch!$D$54,$F$2:$G$44,2,FALSE)+ROW()-2))=Switch!$D$54,INDIRECT(\"a\" & (VLOOKUP(Switch!$D$54,$F$2:$G$44,2,FALSE)+ROW()-2)),\"\")","v":{"$error":"#N/A"}},{"$f":"IF(INDIRECT(\"c\" & (VLOOKUP(Switch!$D$55,$F$2:$G$44,2,FALSE)+ROW()-2))=Switch!$D$55,INDIRECT(\"a\" & (VLOOKUP(Switch!$D$55,$F$2:$G$44,2,FALSE)+ROW()-2)),\"\")","v":{"$error":"#N/A"}},{"$f":"IF(INDIRECT(\"c\" & (VLOOKUP(Switch!$D$56,$F$2:$G$44,2,FALSE)+ROW()-2))=Switch!$D$56,INDIRECT(\"a\" & (VLOOKUP(Switch!$D$56,$F$2:$G$44,2,FALSE)+ROW()-2)),\"\")","v":{"$error":"#N/A"}},{"$f":"IF(INDIRECT(\"c\" & (VLOOKUP(Switch!$D$57,$F$2:$G$44,2,FALSE)+ROW()-2))=Switch!$D$57,INDIRECT(\"a\" & (VLOOKUP(Switch!$D$57,$F$2:$G$44,2,FALSE)+ROW()-2)),\"\")","v":{"$error":"#N/A"}},{"$f":"IF(INDIRECT(\"c\" & (VLOOKUP(Switch!$D$58,$F$2:$G$44,2,FALSE)+ROW()-2))=Switch!$D$58,INDIRECT(\"a\" & (VLOOKUP(Switch!$D$58,$F$2:$G$44,2,FALSE)+ROW()-2)),\"\")","v":{"$error":"#N/A"}},{"$f":"IF(INDIRECT(\"c\" & (VLOOKUP(Switch!$D$59,$F$2:$G$44,2,FALSE)+ROW()-2))=Switch!$D$59,INDIRECT(\"a\" & (VLOOKUP(Switch!$D$59,$F$2:$G$44,2,FALSE)+ROW()-2)),\"\")","v":{"$error":"#N/A"}},{"$f":"IF(INDIRECT(\"c\" & (VLOOKUP(Switch!$D$60,$F$2:$G$44,2,FALSE)+ROW()-2))=Switch!$D$60,INDIRECT(\"a\" & (VLOOKUP(Switch!$D$60,$F$2:$G$44,2,FALSE)+ROW()-2)),\"\")","v":{"$error":"#N/A"}},{"$f":"IF(INDIRECT(\"c\" & (VLOOKUP(Switch!$D$61,$F$2:$G$44,2,FALSE)+ROW()-2))=Switch!$D$61,INDIRECT(\"a\" & (VLOOKUP(Switch!$D$61,$F$2:$G$44,2,FALSE)+ROW()-2)),\"\")","v":{"$error":"#N/A"}},{"$f":"IF(INDIRECT(\"c\" & (VLOOKUP(Switch!$D$62,$F$2:$G$44,2,FALSE)+ROW()-2))=Switch!$D$62,INDIRECT(\"a\" & (VLOOKUP(Switch!$D$62,$F$2:$G$44,2,FALSE)+ROW()-2)),\"\")","v":{"$error":"#N/A"}},{"$f":"IF(INDIRECT(\"c\" & (VLOOKUP(Switch!$D$63,$F$2:$G$44,2,FALSE)+ROW()-2))=Switch!$D$63,INDIRECT(\"a\" & (VLOOKUP(Switch!$D$63,$F$2:$G$44,2,FALSE)+ROW()-2)),\"\")","v":{"$error":"#N/A"}},{"$f":"IF(INDIRECT(\"c\" & (VLOOKUP(Switch!$D$64,$F$2:$G$44,2,FALSE)+ROW()-2))=Switch!$D$64,INDIRECT(\"a\" & (VLOOKUP(Switch!$D$64,$F$2:$G$44,2,FALSE)+ROW()-2)),\"\")","v":{"$error":"#N/A"}},{"$f":"IF(INDIRECT(\"c\" & (VLOOKUP(Switch!$D$65,$F$2:$G$44,2,FALSE)+ROW()-2))=Switch!$D$65,INDIRECT(\"a\" & (VLOOKUP(Switch!$D$65,$F$2:$G$44,2,FALSE)+ROW()-2)),\"\")","v":{"$error":"#N/A"}},{"$f":"IF(INDIRECT(\"c\" & (VLOOKUP(Switch!$D$66,$F$2:$G$44,2,FALSE)+ROW()-2))=Switch!$D$66,INDIRECT(\"a\" & (VLOOKUP(Switch!$D$66,$F$2:$G$44,2,FALSE)+ROW()-2)),\"\")","v":{"$error":"#N/A"}}]
["PSG Balanced Fund E","PBFE","PSG Collective Investments Ltd",{"$f":"ROW()","v":481},null,null,{"$f":"VLOOKUP(F481,$C$2:$D$637,2,FALSE)","v":{"$error":"#N/A"}},{"$f":"IF(INDIRECT(\"c\" & (VLOOKUP(Switch!$D$26,$F$2:$G$44,2,FALSE)+ROW()-2))=Switch!$D$26,INDIRECT(\"a\" & (VLOOKUP(Switch!$D$26,$F$2:$G$44,2,FALSE)+ROW()-2)),\"\")","v":{"$error":"#N/A"}},{"$f":"IF(INDIRECT(\"c\" & (VLOOKUP(Switch!$D$27,$F$2:$G$44,2,FALSE)+ROW()-2))=Switch!$D$27,INDIRECT(\"a\" & (VLOOKUP(Switch!$D$27,$F$2:$G$44,2,FALSE)+ROW()-2)),\"\")","v":{"$error":"#N/A"}},{"$f":"IF(INDIRECT(\"c\" & (VLOOKUP(Switch!$D$28,$F$2:$G$44,2,FALSE)+ROW()-2))=Switch!$D$28,INDIRECT(\"a\" & (VLOOKUP(Switch!$D$28,$F$2:$G$44,2,FALSE)+ROW()-2)),\"\")","v":{"$error":"#N/A"}},{"$f":"IF(INDIRECT(\"c\" & (VLOOKUP(Switch!$D$29,$F$2:$G$44,2,FALSE)+ROW()-2))=Switch!$D$29,INDIRECT(\"a\" & (VLOOKUP(Switch!$D$29,$F$2:$G$44,2,FALSE)+ROW()-2)),\"\")","v":{"$error":"#N/A"}},{"$f":"IF(INDIRECT(\"c\" & (VLOOKUP(Switch!$D$30,$F$2:$G$44,2,FALSE)+ROW()-2))=Switch!$D$30,INDIRECT(\"a\" & (VLOOKUP(Switch!$D$30,$F$2:$G$44,2,FALSE)+ROW()-2)),\"\")","v":{"$error":"#N/A"}},{"$f":"IF(INDIRECT(\"c\" & (VLOOKUP(Switch!$D$31,$F$2:$G$44,2,FALSE)+ROW()-2))=Switch!$D$31,INDIRECT(\"a\" & (VLOOKUP(Switch!$D$31,$F$2:$G$44,2,FALSE)+ROW()-2)),\"\")","v":{"$error":"#N/A"}},{"$f":"IF(INDIRECT(\"c\" & (VLOOKUP(Switch!$D$32,$F$2:$G$44,2,FALSE)+ROW()-2))=Switch!$D$32,INDIRECT(\"a\" & (VLOOKUP(Switch!$D$32,$F$2:$G$44,2,FALSE)+ROW()-2)),\"\")","v":{"$error":"#N/A"}},{"$f":"IF(INDIRECT(\"c\" & (VLOOKUP(Switch!$D$33,$F$2:$G$44,2,FALSE)+ROW()-2))=Switch!$D$33,INDIRECT(\"a\" & (VLOOKUP(Switch!$D$33,$F$2:$G$44,2,FALSE)+ROW()-2)),\"\")","v":{"$error":"#N/A"}},{"$f":"IF(INDIRECT(\"c\" & (VLOOKUP(Switch!$D$34,$F$2:$G$44,2,FALSE)+ROW()-2))=Switch!$D$34,INDIRECT(\"a\" & (VLOOKUP(Switch!$D$34,$F$2:$G$44,2,FALSE)+ROW()-2)),\"\")","v":{"$error":"#N/A"}},{"$f":"IF(INDIRECT(\"c\" & (VLOOKUP(Switch!$D$35,$F$2:$G$44,2,FALSE)+ROW()-2))=Switch!$D$35,INDIRECT(\"a\" & (VLOOKUP(Switch!$D$35,$F$2:$G$44,2,FALSE)+ROW()-2)),\"\")","v":{"$error":"#N/A"}},{"$f":"IF(INDIRECT(\"c\" & (VLOOKUP(Switch!$D$36,$F$2:$G$44,2,FALSE)+ROW()-2))=Switch!$D$36,INDIRECT(\"a\" & (VLOOKUP(Switch!$D$36,$F$2:$G$44,2,FALSE)+ROW()-2)),\"\")","v":{"$error":"#N/A"}},{"$f":"IF(INDIRECT(\"c\" & (VLOOKUP(Switch!$D$37,$F$2:$G$44,2,FALSE)+ROW()-2))=Switch!$D$37,INDIRECT(\"a\" & (VLOOKUP(Switch!$D$37,$F$2:$G$44,2,FALSE)+ROW()-2)),\"\")","v":{"$error":"#N/A"}},{"$f":"IF(INDIRECT(\"c\" & (VLOOKUP(Switch!$D$38,$F$2:$G$44,2,FALSE)+ROW()-2))=Switch!$D$38,INDIRECT(\"a\" & (VLOOKUP(Switch!$D$38,$F$2:$G$44,2,FALSE)+ROW()-2)),\"\")","v":{"$error":"#N/A"}},{"$f":"IF(INDIRECT(\"c\" & (VLOOKUP(Switch!$D$39,$F$2:$G$44,2,FALSE)+ROW()-2))=Switch!$D$39,INDIRECT(\"a\" & (VLOOKUP(Switch!$D$39,$F$2:$G$44,2,FALSE)+ROW()-2)),\"\")","v":{"$error":"#N/A"}},{"$f":"IF(INDIRECT(\"c\" & (VLOOKUP(Switch!$D$40,$F$2:$G$44,2,FALSE)+ROW()-2))=Switch!$D$40,INDIRECT(\"a\" & (VLOOKUP(Switch!$D$40,$F$2:$G$44,2,FALSE)+ROW()-2)),\"\")","v":{"$error":"#N/A"}},{"$f":"IF(INDIRECT(\"c\" & (VLOOKUP(Switch!$D$52,$F$2:$G$44,2,FALSE)+ROW()-2))=Switch!$D$52,INDIRECT(\"a\" & (VLOOKUP(Switch!$D$52,$F$2:$G$44,2,FALSE)+ROW()-2)),\"\")","v":{"$error":"#N/A"}},{"$f":"IF(INDIRECT(\"c\" & (VLOOKUP(Switch!$D$53,$F$2:$G$44,2,FALSE)+ROW()-2))=Switch!$D$53,INDIRECT(\"a\" & (VLOOKUP(Switch!$D$53,$F$2:$G$44,2,FALSE)+ROW()-2)),\"\")","v":{"$error":"#N/A"}},{"$f":"IF(INDIRECT(\"c\" & (VLOOKUP(Switch!$D$54,$F$2:$G$44,2,FALSE)+ROW()-2))=Switch!$D$54,INDIRECT(\"a\" & (VLOOKUP(Switch!$D$54,$F$2:$G$44,2,FALSE)+ROW()-2)),\"\")","v":{"$error":"#N/A"}},{"$f":"IF(INDIRECT(\"c\" & (VLOOKUP(Switch!$D$55,$F$2:$G$44,2,FALSE)+ROW()-2))=Switch!$D$55,INDIRECT(\"a\" & (VLOOKUP(Switch!$D$55,$F$2:$G$44,2,FALSE)+ROW()-2)),\"\")","v":{"$error":"#N/A"}},{"$f":"IF(INDIRECT(\"c\" & (VLOOKUP(Switch!$D$56,$F$2:$G$44,2,FALSE)+ROW()-2))=Switch!$D$56,INDIRECT(\"a\" & (VLOOKUP(Switch!$D$56,$F$2:$G$44,2,FALSE)+ROW()-2)),\"\")","v":{"$error":"#N/A"}},{"$f":"IF(INDIRECT(\"c\" & (VLOOKUP(Switch!$D$57,$F$2:$G$44,2,FALSE)+ROW()-2))=Switch!$D$57,INDIRECT(\"a\" & (VLOOKUP(Switch!$D$57,$F$2:$G$44,2,FALSE)+ROW()-2)),\"\")","v":{"$error":"#N/A"}},{"$f":"IF(INDIRECT(\"c\" & (VLOOKUP(Switch!$D$58,$F$2:$G$44,2,FALSE)+ROW()-2))=Switch!$D$58,INDIRECT(\"a\" & (VLOOKUP(Switch!$D$58,$F$2:$G$44,2,FALSE)+ROW()-2)),\"\")","v":{"$error":"#N/A"}},{"$f":"IF(INDIRECT(\"c\" & (VLOOKUP(Switch!$D$59,$F$2:$G$44,2,FALSE)+ROW()-2))=Switch!$D$59,INDIRECT(\"a\" & (VLOOKUP(Switch!$D$59,$F$2:$G$44,2,FALSE)+ROW()-2)),\"\")","v":{"$error":"#N/A"}},{"$f":"IF(INDIRECT(\"c\" & (VLOOKUP(Switch!$D$60,$F$2:$G$44,2,FALSE)+ROW()-2))=Switch!$D$60,INDIRECT(\"a\" & (VLOOKUP(Switch!$D$60,$F$2:$G$44,2,FALSE)+ROW()-2)),\"\")","v":{"$error":"#N/A"}},{"$f":"IF(INDIRECT(\"c\" & (VLOOKUP(Switch!$D$61,$F$2:$G$44,2,FALSE)+ROW()-2))=Switch!$D$61,INDIRECT(\"a\" & (VLOOKUP(Switch!$D$61,$F$2:$G$44,2,FALSE)+ROW()-2)),\"\")","v":{"$error":"#N/A"}},{"$f":"IF(INDIRECT(\"c\" & (VLOOKUP(Switch!$D$62,$F$2:$G$44,2,FALSE)+ROW()-2))=Switch!$D$62,INDIRECT(\"a\" & (VLOOKUP(Switch!$D$62,$F$2:$G$44,2,FALSE)+ROW()-2)),\"\")","v":{"$error":"#N/A"}},{"$f":"IF(INDIRECT(\"c\" & (VLOOKUP(Switch!$D$63,$F$2:$G$44,2,FALSE)+ROW()-2))=Switch!$D$63,INDIRECT(\"a\" & (VLOOKUP(Switch!$D$63,$F$2:$G$44,2,FALSE)+ROW()-2)),\"\")","v":{"$error":"#N/A"}},{"$f":"IF(INDIRECT(\"c\" & (VLOOKUP(Switch!$D$64,$F$2:$G$44,2,FALSE)+ROW()-2))=Switch!$D$64,INDIRECT(\"a\" & (VLOOKUP(Switch!$D$64,$F$2:$G$44,2,FALSE)+ROW()-2)),\"\")","v":{"$error":"#N/A"}},{"$f":"IF(INDIRECT(\"c\" & (VLOOKUP(Switch!$D$65,$F$2:$G$44,2,FALSE)+ROW()-2))=Switch!$D$65,INDIRECT(\"a\" & (VLOOKUP(Switch!$D$65,$F$2:$G$44,2,FALSE)+ROW()-2)),\"\")","v":{"$error":"#N/A"}},{"$f":"IF(INDIRECT(\"c\" & (VLOOKUP(Switch!$D$66,$F$2:$G$44,2,FALSE)+ROW()-2))=Switch!$D$66,INDIRECT(\"a\" & (VLOOKUP(Switch!$D$66,$F$2:$G$44,2,FALSE)+ROW()-2)),\"\")","v":{"$error":"#N/A"}}]
["PSG Destiny Multi Asset FoF","APMF","PSG Collective Investments Ltd",{"$f":"ROW()","v":482},null,null,{"$f":"VLOOKUP(F482,$C$2:$D$637,2,FALSE)","v":{"$error":"#N/A"}},{"$f":"IF(INDIRECT(\"c\" & (VLOOKUP(Switch!$D$26,$F$2:$G$44,2,FALSE)+ROW()-2))=Switch!$D$26,INDIRECT(\"a\" & (VLOOKUP(Switch!$D$26,$F$2:$G$44,2,FALSE)+ROW()-2)),\"\")","v":{"$error":"#N/A"}},{"$f":"IF(INDIRECT(\"c\" & (VLOOKUP(Switch!$D$27,$F$2:$G$44,2,FALSE)+ROW()-2))=Switch!$D$27,INDIRECT(\"a\" & (VLOOKUP(Switch!$D$27,$F$2:$G$44,2,FALSE)+ROW()-2)),\"\")","v":{"$error":"#N/A"}},{"$f":"IF(INDIRECT(\"c\" & (VLOOKUP(Switch!$D$28,$F$2:$G$44,2,FALSE)+ROW()-2))=Switch!$D$28,INDIRECT(\"a\" & (VLOOKUP(Switch!$D$28,$F$2:$G$44,2,FALSE)+ROW()-2)),\"\")","v":{"$error":"#N/A"}},{"$f":"IF(INDIRECT(\"c\" & (VLOOKUP(Switch!$D$29,$F$2:$G$44,2,FALSE)+ROW()-2))=Switch!$D$29,INDIRECT(\"a\" & (VLOOKUP(Switch!$D$29,$F$2:$G$44,2,FALSE)+ROW()-2)),\"\")","v":{"$error":"#N/A"}},{"$f":"IF(INDIRECT(\"c\" & (VLOOKUP(Switch!$D$30,$F$2:$G$44,2,FALSE)+ROW()-2))=Switch!$D$30,INDIRECT(\"a\" & (VLOOKUP(Switch!$D$30,$F$2:$G$44,2,FALSE)+ROW()-2)),\"\")","v":{"$error":"#N/A"}},{"$f":"IF(INDIRECT(\"c\" & (VLOOKUP(Switch!$D$31,$F$2:$G$44,2,FALSE)+ROW()-2))=Switch!$D$31,INDIRECT(\"a\" & (VLOOKUP(Switch!$D$31,$F$2:$G$44,2,FALSE)+ROW()-2)),\"\")","v":{"$error":"#N/A"}},{"$f":"IF(INDIRECT(\"c\" & (VLOOKUP(Switch!$D$32,$F$2:$G$44,2,FALSE)+ROW()-2))=Switch!$D$32,INDIRECT(\"a\" & (VLOOKUP(Switch!$D$32,$F$2:$G$44,2,FALSE)+ROW()-2)),\"\")","v":{"$error":"#N/A"}},{"$f":"IF(INDIRECT(\"c\" & (VLOOKUP(Switch!$D$33,$F$2:$G$44,2,FALSE)+ROW()-2))=Switch!$D$33,INDIRECT(\"a\" & (VLOOKUP(Switch!$D$33,$F$2:$G$44,2,FALSE)+ROW()-2)),\"\")","v":{"$error":"#N/A"}},{"$f":"IF(INDIRECT(\"c\" & (VLOOKUP(Switch!$D$34,$F$2:$G$44,2,FALSE)+ROW()-2))=Switch!$D$34,INDIRECT(\"a\" & (VLOOKUP(Switch!$D$34,$F$2:$G$44,2,FALSE)+ROW()-2)),\"\")","v":{"$error":"#N/A"}},{"$f":"IF(INDIRECT(\"c\" & (VLOOKUP(Switch!$D$35,$F$2:$G$44,2,FALSE)+ROW()-2))=Switch!$D$35,INDIRECT(\"a\" & (VLOOKUP(Switch!$D$35,$F$2:$G$44,2,FALSE)+ROW()-2)),\"\")","v":{"$error":"#N/A"}},{"$f":"IF(INDIRECT(\"c\" & (VLOOKUP(Switch!$D$36,$F$2:$G$44,2,FALSE)+ROW()-2))=Switch!$D$36,INDIRECT(\"a\" & (VLOOKUP(Switch!$D$36,$F$2:$G$44,2,FALSE)+ROW()-2)),\"\")","v":{"$error":"#N/A"}},{"$f":"IF(INDIRECT(\"c\" & (VLOOKUP(Switch!$D$37,$F$2:$G$44,2,FALSE)+ROW()-2))=Switch!$D$37,INDIRECT(\"a\" & (VLOOKUP(Switch!$D$37,$F$2:$G$44,2,FALSE)+ROW()-2)),\"\")","v":{"$error":"#N/A"}},{"$f":"IF(INDIRECT(\"c\" & (VLOOKUP(Switch!$D$38,$F$2:$G$44,2,FALSE)+ROW()-2))=Switch!$D$38,INDIRECT(\"a\" & (VLOOKUP(Switch!$D$38,$F$2:$G$44,2,FALSE)+ROW()-2)),\"\")","v":{"$error":"#N/A"}},{"$f":"IF(INDIRECT(\"c\" & (VLOOKUP(Switch!$D$39,$F$2:$G$44,2,FALSE)+ROW()-2))=Switch!$D$39,INDIRECT(\"a\" & (VLOOKUP(Switch!$D$39,$F$2:$G$44,2,FALSE)+ROW()-2)),\"\")","v":{"$error":"#N/A"}},{"$f":"IF(INDIRECT(\"c\" & (VLOOKUP(Switch!$D$40,$F$2:$G$44,2,FALSE)+ROW()-2))=Switch!$D$40,INDIRECT(\"a\" & (VLOOKUP(Switch!$D$40,$F$2:$G$44,2,FALSE)+ROW()-2)),\"\")","v":{"$error":"#N/A"}},{"$f":"IF(INDIRECT(\"c\" & (VLOOKUP(Switch!$D$52,$F$2:$G$44,2,FALSE)+ROW()-2))=Switch!$D$52,INDIRECT(\"a\" & (VLOOKUP(Switch!$D$52,$F$2:$G$44,2,FALSE)+ROW()-2)),\"\")","v":{"$error":"#N/A"}},{"$f":"IF(INDIRECT(\"c\" & (VLOOKUP(Switch!$D$53,$F$2:$G$44,2,FALSE)+ROW()-2))=Switch!$D$53,INDIRECT(\"a\" & (VLOOKUP(Switch!$D$53,$F$2:$G$44,2,FALSE)+ROW()-2)),\"\")","v":{"$error":"#N/A"}},{"$f":"IF(INDIRECT(\"c\" & (VLOOKUP(Switch!$D$54,$F$2:$G$44,2,FALSE)+ROW()-2))=Switch!$D$54,INDIRECT(\"a\" & (VLOOKUP(Switch!$D$54,$F$2:$G$44,2,FALSE)+ROW()-2)),\"\")","v":{"$error":"#N/A"}},{"$f":"IF(INDIRECT(\"c\" & (VLOOKUP(Switch!$D$55,$F$2:$G$44,2,FALSE)+ROW()-2))=Switch!$D$55,INDIRECT(\"a\" & (VLOOKUP(Switch!$D$55,$F$2:$G$44,2,FALSE)+ROW()-2)),\"\")","v":{"$error":"#N/A"}},{"$f":"IF(INDIRECT(\"c\" & (VLOOKUP(Switch!$D$56,$F$2:$G$44,2,FALSE)+ROW()-2))=Switch!$D$56,INDIRECT(\"a\" & (VLOOKUP(Switch!$D$56,$F$2:$G$44,2,FALSE)+ROW()-2)),\"\")","v":{"$error":"#N/A"}},{"$f":"IF(INDIRECT(\"c\" & (VLOOKUP(Switch!$D$57,$F$2:$G$44,2,FALSE)+ROW()-2))=Switch!$D$57,INDIRECT(\"a\" & (VLOOKUP(Switch!$D$57,$F$2:$G$44,2,FALSE)+ROW()-2)),\"\")","v":{"$error":"#N/A"}},{"$f":"IF(INDIRECT(\"c\" & (VLOOKUP(Switch!$D$58,$F$2:$G$44,2,FALSE)+ROW()-2))=Switch!$D$58,INDIRECT(\"a\" & (VLOOKUP(Switch!$D$58,$F$2:$G$44,2,FALSE)+ROW()-2)),\"\")","v":{"$error":"#N/A"}},{"$f":"IF(INDIRECT(\"c\" & (VLOOKUP(Switch!$D$59,$F$2:$G$44,2,FALSE)+ROW()-2))=Switch!$D$59,INDIRECT(\"a\" & (VLOOKUP(Switch!$D$59,$F$2:$G$44,2,FALSE)+ROW()-2)),\"\")","v":{"$error":"#N/A"}},{"$f":"IF(INDIRECT(\"c\" & (VLOOKUP(Switch!$D$60,$F$2:$G$44,2,FALSE)+ROW()-2))=Switch!$D$60,INDIRECT(\"a\" & (VLOOKUP(Switch!$D$60,$F$2:$G$44,2,FALSE)+ROW()-2)),\"\")","v":{"$error":"#N/A"}},{"$f":"IF(INDIRECT(\"c\" & (VLOOKUP(Switch!$D$61,$F$2:$G$44,2,FALSE)+ROW()-2))=Switch!$D$61,INDIRECT(\"a\" & (VLOOKUP(Switch!$D$61,$F$2:$G$44,2,FALSE)+ROW()-2)),\"\")","v":{"$error":"#N/A"}},{"$f":"IF(INDIRECT(\"c\" & (VLOOKUP(Switch!$D$62,$F$2:$G$44,2,FALSE)+ROW()-2))=Switch!$D$62,INDIRECT(\"a\" & (VLOOKUP(Switch!$D$62,$F$2:$G$44,2,FALSE)+ROW()-2)),\"\")","v":{"$error":"#N/A"}},{"$f":"IF(INDIRECT(\"c\" & (VLOOKUP(Switch!$D$63,$F$2:$G$44,2,FALSE)+ROW()-2))=Switch!$D$63,INDIRECT(\"a\" & (VLOOKUP(Switch!$D$63,$F$2:$G$44,2,FALSE)+ROW()-2)),\"\")","v":{"$error":"#N/A"}},{"$f":"IF(INDIRECT(\"c\" & (VLOOKUP(Switch!$D$64,$F$2:$G$44,2,FALSE)+ROW()-2))=Switch!$D$64,INDIRECT(\"a\" & (VLOOKUP(Switch!$D$64,$F$2:$G$44,2,FALSE)+ROW()-2)),\"\")","v":{"$error":"#N/A"}},{"$f":"IF(INDIRECT(\"c\" & (VLOOKUP(Switch!$D$65,$F$2:$G$44,2,FALSE)+ROW()-2))=Switch!$D$65,INDIRECT(\"a\" & (VLOOKUP(Switch!$D$65,$F$2:$G$44,2,FALSE)+ROW()-2)),\"\")","v":{"$error":"#N/A"}},{"$f":"IF(INDIRECT(\"c\" & (VLOOKUP(Switch!$D$66,$F$2:$G$44,2,FALSE)+ROW()-2))=Switch!$D$66,INDIRECT(\"a\" & (VLOOKUP(Switch!$D$66,$F$2:$G$44,2,FALSE)+ROW()-2)),\"\")","v":{"$error":"#N/A"}}]
["PSG Equity Fund E","PGEF","PSG Collective Investments Ltd",{"$f":"ROW()","v":483},null,null,{"$f":"VLOOKUP(F483,$C$2:$D$637,2,FALSE)","v":{"$error":"#N/A"}},{"$f":"IF(INDIRECT(\"c\" & (VLOOKUP(Switch!$D$26,$F$2:$G$44,2,FALSE)+ROW()-2))=Switch!$D$26,INDIRECT(\"a\" & (VLOOKUP(Switch!$D$26,$F$2:$G$44,2,FALSE)+ROW()-2)),\"\")","v":{"$error":"#N/A"}},{"$f":"IF(INDIRECT(\"c\" & (VLOOKUP(Switch!$D$27,$F$2:$G$44,2,FALSE)+ROW()-2))=Switch!$D$27,INDIRECT(\"a\" & (VLOOKUP(Switch!$D$27,$F$2:$G$44,2,FALSE)+ROW()-2)),\"\")","v":{"$error":"#N/A"}},{"$f":"IF(INDIRECT(\"c\" & (VLOOKUP(Switch!$D$28,$F$2:$G$44,2,FALSE)+ROW()-2))=Switch!$D$28,INDIRECT(\"a\" & (VLOOKUP(Switch!$D$28,$F$2:$G$44,2,FALSE)+ROW()-2)),\"\")","v":{"$error":"#N/A"}},{"$f":"IF(INDIRECT(\"c\" & (VLOOKUP(Switch!$D$29,$F$2:$G$44,2,FALSE)+ROW()-2))=Switch!$D$29,INDIRECT(\"a\" & (VLOOKUP(Switch!$D$29,$F$2:$G$44,2,FALSE)+ROW()-2)),\"\")","v":{"$error":"#N/A"}},{"$f":"IF(INDIRECT(\"c\" & (VLOOKUP(Switch!$D$30,$F$2:$G$44,2,FALSE)+ROW()-2))=Switch!$D$30,INDIRECT(\"a\" & (VLOOKUP(Switch!$D$30,$F$2:$G$44,2,FALSE)+ROW()-2)),\"\")","v":{"$error":"#N/A"}},{"$f":"IF(INDIRECT(\"c\" & (VLOOKUP(Switch!$D$31,$F$2:$G$44,2,FALSE)+ROW()-2))=Switch!$D$31,INDIRECT(\"a\" & (VLOOKUP(Switch!$D$31,$F$2:$G$44,2,FALSE)+ROW()-2)),\"\")","v":{"$error":"#N/A"}},{"$f":"IF(INDIRECT(\"c\" & (VLOOKUP(Switch!$D$32,$F$2:$G$44,2,FALSE)+ROW()-2))=Switch!$D$32,INDIRECT(\"a\" & (VLOOKUP(Switch!$D$32,$F$2:$G$44,2,FALSE)+ROW()-2)),\"\")","v":{"$error":"#N/A"}},{"$f":"IF(INDIRECT(\"c\" & (VLOOKUP(Switch!$D$33,$F$2:$G$44,2,FALSE)+ROW()-2))=Switch!$D$33,INDIRECT(\"a\" & (VLOOKUP(Switch!$D$33,$F$2:$G$44,2,FALSE)+ROW()-2)),\"\")","v":{"$error":"#N/A"}},{"$f":"IF(INDIRECT(\"c\" & (VLOOKUP(Switch!$D$34,$F$2:$G$44,2,FALSE)+ROW()-2))=Switch!$D$34,INDIRECT(\"a\" & (VLOOKUP(Switch!$D$34,$F$2:$G$44,2,FALSE)+ROW()-2)),\"\")","v":{"$error":"#N/A"}},{"$f":"IF(INDIRECT(\"c\" & (VLOOKUP(Switch!$D$35,$F$2:$G$44,2,FALSE)+ROW()-2))=Switch!$D$35,INDIRECT(\"a\" & (VLOOKUP(Switch!$D$35,$F$2:$G$44,2,FALSE)+ROW()-2)),\"\")","v":{"$error":"#N/A"}},{"$f":"IF(INDIRECT(\"c\" & (VLOOKUP(Switch!$D$36,$F$2:$G$44,2,FALSE)+ROW()-2))=Switch!$D$36,INDIRECT(\"a\" & (VLOOKUP(Switch!$D$36,$F$2:$G$44,2,FALSE)+ROW()-2)),\"\")","v":{"$error":"#N/A"}},{"$f":"IF(INDIRECT(\"c\" & (VLOOKUP(Switch!$D$37,$F$2:$G$44,2,FALSE)+ROW()-2))=Switch!$D$37,INDIRECT(\"a\" & (VLOOKUP(Switch!$D$37,$F$2:$G$44,2,FALSE)+ROW()-2)),\"\")","v":{"$error":"#N/A"}},{"$f":"IF(INDIRECT(\"c\" & (VLOOKUP(Switch!$D$38,$F$2:$G$44,2,FALSE)+ROW()-2))=Switch!$D$38,INDIRECT(\"a\" & (VLOOKUP(Switch!$D$38,$F$2:$G$44,2,FALSE)+ROW()-2)),\"\")","v":{"$error":"#N/A"}},{"$f":"IF(INDIRECT(\"c\" & (VLOOKUP(Switch!$D$39,$F$2:$G$44,2,FALSE)+ROW()-2))=Switch!$D$39,INDIRECT(\"a\" & (VLOOKUP(Switch!$D$39,$F$2:$G$44,2,FALSE)+ROW()-2)),\"\")","v":{"$error":"#N/A"}},{"$f":"IF(INDIRECT(\"c\" & (VLOOKUP(Switch!$D$40,$F$2:$G$44,2,FALSE)+ROW()-2))=Switch!$D$40,INDIRECT(\"a\" & (VLOOKUP(Switch!$D$40,$F$2:$G$44,2,FALSE)+ROW()-2)),\"\")","v":{"$error":"#N/A"}},{"$f":"IF(INDIRECT(\"c\" & (VLOOKUP(Switch!$D$52,$F$2:$G$44,2,FALSE)+ROW()-2))=Switch!$D$52,INDIRECT(\"a\" & (VLOOKUP(Switch!$D$52,$F$2:$G$44,2,FALSE)+ROW()-2)),\"\")","v":{"$error":"#N/A"}},{"$f":"IF(INDIRECT(\"c\" & (VLOOKUP(Switch!$D$53,$F$2:$G$44,2,FALSE)+ROW()-2))=Switch!$D$53,INDIRECT(\"a\" & (VLOOKUP(Switch!$D$53,$F$2:$G$44,2,FALSE)+ROW()-2)),\"\")","v":{"$error":"#N/A"}},{"$f":"IF(INDIRECT(\"c\" & (VLOOKUP(Switch!$D$54,$F$2:$G$44,2,FALSE)+ROW()-2))=Switch!$D$54,INDIRECT(\"a\" & (VLOOKUP(Switch!$D$54,$F$2:$G$44,2,FALSE)+ROW()-2)),\"\")","v":{"$error":"#N/A"}},{"$f":"IF(INDIRECT(\"c\" & (VLOOKUP(Switch!$D$55,$F$2:$G$44,2,FALSE)+ROW()-2))=Switch!$D$55,INDIRECT(\"a\" & (VLOOKUP(Switch!$D$55,$F$2:$G$44,2,FALSE)+ROW()-2)),\"\")","v":{"$error":"#N/A"}},{"$f":"IF(INDIRECT(\"c\" & (VLOOKUP(Switch!$D$56,$F$2:$G$44,2,FALSE)+ROW()-2))=Switch!$D$56,INDIRECT(\"a\" & (VLOOKUP(Switch!$D$56,$F$2:$G$44,2,FALSE)+ROW()-2)),\"\")","v":{"$error":"#N/A"}},{"$f":"IF(INDIRECT(\"c\" & (VLOOKUP(Switch!$D$57,$F$2:$G$44,2,FALSE)+ROW()-2))=Switch!$D$57,INDIRECT(\"a\" & (VLOOKUP(Switch!$D$57,$F$2:$G$44,2,FALSE)+ROW()-2)),\"\")","v":{"$error":"#N/A"}},{"$f":"IF(INDIRECT(\"c\" & (VLOOKUP(Switch!$D$58,$F$2:$G$44,2,FALSE)+ROW()-2))=Switch!$D$58,INDIRECT(\"a\" & (VLOOKUP(Switch!$D$58,$F$2:$G$44,2,FALSE)+ROW()-2)),\"\")","v":{"$error":"#N/A"}},{"$f":"IF(INDIRECT(\"c\" & (VLOOKUP(Switch!$D$59,$F$2:$G$44,2,FALSE)+ROW()-2))=Switch!$D$59,INDIRECT(\"a\" & (VLOOKUP(Switch!$D$59,$F$2:$G$44,2,FALSE)+ROW()-2)),\"\")","v":{"$error":"#N/A"}},{"$f":"IF(INDIRECT(\"c\" & (VLOOKUP(Switch!$D$60,$F$2:$G$44,2,FALSE)+ROW()-2))=Switch!$D$60,INDIRECT(\"a\" & (VLOOKUP(Switch!$D$60,$F$2:$G$44,2,FALSE)+ROW()-2)),\"\")","v":{"$error":"#N/A"}},{"$f":"IF(INDIRECT(\"c\" & (VLOOKUP(Switch!$D$61,$F$2:$G$44,2,FALSE)+ROW()-2))=Switch!$D$61,INDIRECT(\"a\" & (VLOOKUP(Switch!$D$61,$F$2:$G$44,2,FALSE)+ROW()-2)),\"\")","v":{"$error":"#N/A"}},{"$f":"IF(INDIRECT(\"c\" & (VLOOKUP(Switch!$D$62,$F$2:$G$44,2,FALSE)+ROW()-2))=Switch!$D$62,INDIRECT(\"a\" & (VLOOKUP(Switch!$D$62,$F$2:$G$44,2,FALSE)+ROW()-2)),\"\")","v":{"$error":"#N/A"}},{"$f":"IF(INDIRECT(\"c\" & (VLOOKUP(Switch!$D$63,$F$2:$G$44,2,FALSE)+ROW()-2))=Switch!$D$63,INDIRECT(\"a\" & (VLOOKUP(Switch!$D$63,$F$2:$G$44,2,FALSE)+ROW()-2)),\"\")","v":{"$error":"#N/A"}},{"$f":"IF(INDIRECT(\"c\" & (VLOOKUP(Switch!$D$64,$F$2:$G$44,2,FALSE)+ROW()-2))=Switch!$D$64,INDIRECT(\"a\" & (VLOOKUP(Switch!$D$64,$F$2:$G$44,2,FALSE)+ROW()-2)),\"\")","v":{"$error":"#N/A"}},{"$f":"IF(INDIRECT(\"c\" & (VLOOKUP(Switch!$D$65,$F$2:$G$44,2,FALSE)+ROW()-2))=Switch!$D$65,INDIRECT(\"a\" & (VLOOKUP(Switch!$D$65,$F$2:$G$44,2,FALSE)+ROW()-2)),\"\")","v":{"$error":"#N/A"}},{"$f":"IF(INDIRECT(\"c\" & (VLOOKUP(Switch!$D$66,$F$2:$G$44,2,FALSE)+ROW()-2))=Switch!$D$66,INDIRECT(\"a\" & (VLOOKUP(Switch!$D$66,$F$2:$G$44,2,FALSE)+ROW()-2)),\"\")","v":{"$error":"#N/A"}}]
["PSG Flexible Fund E","PFFE","PSG Collective Investments Ltd",{"$f":"ROW()","v":484},null,null,{"$f":"VLOOKUP(F484,$C$2:$D$637,2,FALSE)","v":{"$error":"#N/A"}},{"$f":"IF(INDIRECT(\"c\" & (VLOOKUP(Switch!$D$26,$F$2:$G$44,2,FALSE)+ROW()-2))=Switch!$D$26,INDIRECT(\"a\" & (VLOOKUP(Switch!$D$26,$F$2:$G$44,2,FALSE)+ROW()-2)),\"\")","v":{"$error":"#N/A"}},{"$f":"IF(INDIRECT(\"c\" & (VLOOKUP(Switch!$D$27,$F$2:$G$44,2,FALSE)+ROW()-2))=Switch!$D$27,INDIRECT(\"a\" & (VLOOKUP(Switch!$D$27,$F$2:$G$44,2,FALSE)+ROW()-2)),\"\")","v":{"$error":"#N/A"}},{"$f":"IF(INDIRECT(\"c\" & (VLOOKUP(Switch!$D$28,$F$2:$G$44,2,FALSE)+ROW()-2))=Switch!$D$28,INDIRECT(\"a\" & (VLOOKUP(Switch!$D$28,$F$2:$G$44,2,FALSE)+ROW()-2)),\"\")","v":{"$error":"#N/A"}},{"$f":"IF(INDIRECT(\"c\" & (VLOOKUP(Switch!$D$29,$F$2:$G$44,2,FALSE)+ROW()-2))=Switch!$D$29,INDIRECT(\"a\" & (VLOOKUP(Switch!$D$29,$F$2:$G$44,2,FALSE)+ROW()-2)),\"\")","v":{"$error":"#N/A"}},{"$f":"IF(INDIRECT(\"c\" & (VLOOKUP(Switch!$D$30,$F$2:$G$44,2,FALSE)+ROW()-2))=Switch!$D$30,INDIRECT(\"a\" & (VLOOKUP(Switch!$D$30,$F$2:$G$44,2,FALSE)+ROW()-2)),\"\")","v":{"$error":"#N/A"}},{"$f":"IF(INDIRECT(\"c\" & (VLOOKUP(Switch!$D$31,$F$2:$G$44,2,FALSE)+ROW()-2))=Switch!$D$31,INDIRECT(\"a\" & (VLOOKUP(Switch!$D$31,$F$2:$G$44,2,FALSE)+ROW()-2)),\"\")","v":{"$error":"#N/A"}},{"$f":"IF(INDIRECT(\"c\" & (VLOOKUP(Switch!$D$32,$F$2:$G$44,2,FALSE)+ROW()-2))=Switch!$D$32,INDIRECT(\"a\" & (VLOOKUP(Switch!$D$32,$F$2:$G$44,2,FALSE)+ROW()-2)),\"\")","v":{"$error":"#N/A"}},{"$f":"IF(INDIRECT(\"c\" & (VLOOKUP(Switch!$D$33,$F$2:$G$44,2,FALSE)+ROW()-2))=Switch!$D$33,INDIRECT(\"a\" & (VLOOKUP(Switch!$D$33,$F$2:$G$44,2,FALSE)+ROW()-2)),\"\")","v":{"$error":"#N/A"}},{"$f":"IF(INDIRECT(\"c\" & (VLOOKUP(Switch!$D$34,$F$2:$G$44,2,FALSE)+ROW()-2))=Switch!$D$34,INDIRECT(\"a\" & (VLOOKUP(Switch!$D$34,$F$2:$G$44,2,FALSE)+ROW()-2)),\"\")","v":{"$error":"#N/A"}},{"$f":"IF(INDIRECT(\"c\" & (VLOOKUP(Switch!$D$35,$F$2:$G$44,2,FALSE)+ROW()-2))=Switch!$D$35,INDIRECT(\"a\" & (VLOOKUP(Switch!$D$35,$F$2:$G$44,2,FALSE)+ROW()-2)),\"\")","v":{"$error":"#N/A"}},{"$f":"IF(INDIRECT(\"c\" & (VLOOKUP(Switch!$D$36,$F$2:$G$44,2,FALSE)+ROW()-2))=Switch!$D$36,INDIRECT(\"a\" & (VLOOKUP(Switch!$D$36,$F$2:$G$44,2,FALSE)+ROW()-2)),\"\")","v":{"$error":"#N/A"}},{"$f":"IF(INDIRECT(\"c\" & (VLOOKUP(Switch!$D$37,$F$2:$G$44,2,FALSE)+ROW()-2))=Switch!$D$37,INDIRECT(\"a\" & (VLOOKUP(Switch!$D$37,$F$2:$G$44,2,FALSE)+ROW()-2)),\"\")","v":{"$error":"#N/A"}},{"$f":"IF(INDIRECT(\"c\" & (VLOOKUP(Switch!$D$38,$F$2:$G$44,2,FALSE)+ROW()-2))=Switch!$D$38,INDIRECT(\"a\" & (VLOOKUP(Switch!$D$38,$F$2:$G$44,2,FALSE)+ROW()-2)),\"\")","v":{"$error":"#N/A"}},{"$f":"IF(INDIRECT(\"c\" & (VLOOKUP(Switch!$D$39,$F$2:$G$44,2,FALSE)+ROW()-2))=Switch!$D$39,INDIRECT(\"a\" & (VLOOKUP(Switch!$D$39,$F$2:$G$44,2,FALSE)+ROW()-2)),\"\")","v":{"$error":"#N/A"}},{"$f":"IF(INDIRECT(\"c\" & (VLOOKUP(Switch!$D$40,$F$2:$G$44,2,FALSE)+ROW()-2))=Switch!$D$40,INDIRECT(\"a\" & (VLOOKUP(Switch!$D$40,$F$2:$G$44,2,FALSE)+ROW()-2)),\"\")","v":{"$error":"#N/A"}},{"$f":"IF(INDIRECT(\"c\" & (VLOOKUP(Switch!$D$52,$F$2:$G$44,2,FALSE)+ROW()-2))=Switch!$D$52,INDIRECT(\"a\" & (VLOOKUP(Switch!$D$52,$F$2:$G$44,2,FALSE)+ROW()-2)),\"\")","v":{"$error":"#N/A"}},{"$f":"IF(INDIRECT(\"c\" & (VLOOKUP(Switch!$D$53,$F$2:$G$44,2,FALSE)+ROW()-2))=Switch!$D$53,INDIRECT(\"a\" & (VLOOKUP(Switch!$D$53,$F$2:$G$44,2,FALSE)+ROW()-2)),\"\")","v":{"$error":"#N/A"}},{"$f":"IF(INDIRECT(\"c\" & (VLOOKUP(Switch!$D$54,$F$2:$G$44,2,FALSE)+ROW()-2))=Switch!$D$54,INDIRECT(\"a\" & (VLOOKUP(Switch!$D$54,$F$2:$G$44,2,FALSE)+ROW()-2)),\"\")","v":{"$error":"#N/A"}},{"$f":"IF(INDIRECT(\"c\" & (VLOOKUP(Switch!$D$55,$F$2:$G$44,2,FALSE)+ROW()-2))=Switch!$D$55,INDIRECT(\"a\" & (VLOOKUP(Switch!$D$55,$F$2:$G$44,2,FALSE)+ROW()-2)),\"\")","v":{"$error":"#N/A"}},{"$f":"IF(INDIRECT(\"c\" & (VLOOKUP(Switch!$D$56,$F$2:$G$44,2,FALSE)+ROW()-2))=Switch!$D$56,INDIRECT(\"a\" & (VLOOKUP(Switch!$D$56,$F$2:$G$44,2,FALSE)+ROW()-2)),\"\")","v":{"$error":"#N/A"}},{"$f":"IF(INDIRECT(\"c\" & (VLOOKUP(Switch!$D$57,$F$2:$G$44,2,FALSE)+ROW()-2))=Switch!$D$57,INDIRECT(\"a\" & (VLOOKUP(Switch!$D$57,$F$2:$G$44,2,FALSE)+ROW()-2)),\"\")","v":{"$error":"#N/A"}},{"$f":"IF(INDIRECT(\"c\" & (VLOOKUP(Switch!$D$58,$F$2:$G$44,2,FALSE)+ROW()-2))=Switch!$D$58,INDIRECT(\"a\" & (VLOOKUP(Switch!$D$58,$F$2:$G$44,2,FALSE)+ROW()-2)),\"\")","v":{"$error":"#N/A"}},{"$f":"IF(INDIRECT(\"c\" & (VLOOKUP(Switch!$D$59,$F$2:$G$44,2,FALSE)+ROW()-2))=Switch!$D$59,INDIRECT(\"a\" & (VLOOKUP(Switch!$D$59,$F$2:$G$44,2,FALSE)+ROW()-2)),\"\")","v":{"$error":"#N/A"}},{"$f":"IF(INDIRECT(\"c\" & (VLOOKUP(Switch!$D$60,$F$2:$G$44,2,FALSE)+ROW()-2))=Switch!$D$60,INDIRECT(\"a\" & (VLOOKUP(Switch!$D$60,$F$2:$G$44,2,FALSE)+ROW()-2)),\"\")","v":{"$error":"#N/A"}},{"$f":"IF(INDIRECT(\"c\" & (VLOOKUP(Switch!$D$61,$F$2:$G$44,2,FALSE)+ROW()-2))=Switch!$D$61,INDIRECT(\"a\" & (VLOOKUP(Switch!$D$61,$F$2:$G$44,2,FALSE)+ROW()-2)),\"\")","v":{"$error":"#N/A"}},{"$f":"IF(INDIRECT(\"c\" & (VLOOKUP(Switch!$D$62,$F$2:$G$44,2,FALSE)+ROW()-2))=Switch!$D$62,INDIRECT(\"a\" & (VLOOKUP(Switch!$D$62,$F$2:$G$44,2,FALSE)+ROW()-2)),\"\")","v":{"$error":"#N/A"}},{"$f":"IF(INDIRECT(\"c\" & (VLOOKUP(Switch!$D$63,$F$2:$G$44,2,FALSE)+ROW()-2))=Switch!$D$63,INDIRECT(\"a\" & (VLOOKUP(Switch!$D$63,$F$2:$G$44,2,FALSE)+ROW()-2)),\"\")","v":{"$error":"#N/A"}},{"$f":"IF(INDIRECT(\"c\" & (VLOOKUP(Switch!$D$64,$F$2:$G$44,2,FALSE)+ROW()-2))=Switch!$D$64,INDIRECT(\"a\" & (VLOOKUP(Switch!$D$64,$F$2:$G$44,2,FALSE)+ROW()-2)),\"\")","v":{"$error":"#N/A"}},{"$f":"IF(INDIRECT(\"c\" & (VLOOKUP(Switch!$D$65,$F$2:$G$44,2,FALSE)+ROW()-2))=Switch!$D$65,INDIRECT(\"a\" & (VLOOKUP(Switch!$D$65,$F$2:$G$44,2,FALSE)+ROW()-2)),\"\")","v":{"$error":"#N/A"}},{"$f":"IF(INDIRECT(\"c\" & (VLOOKUP(Switch!$D$66,$F$2:$G$44,2,FALSE)+ROW()-2))=Switch!$D$66,INDIRECT(\"a\" & (VLOOKUP(Switch!$D$66,$F$2:$G$44,2,FALSE)+ROW()-2)),\"\")","v":{"$error":"#N/A"}}]
["PSG Global Flexible Feeder Fund B","PFFA","PSG Collective Investments Ltd",{"$f":"ROW()","v":485},null,null,{"$f":"VLOOKUP(F485,$C$2:$D$637,2,FALSE)","v":{"$error":"#N/A"}},{"$f":"IF(INDIRECT(\"c\" & (VLOOKUP(Switch!$D$26,$F$2:$G$44,2,FALSE)+ROW()-2))=Switch!$D$26,INDIRECT(\"a\" & (VLOOKUP(Switch!$D$26,$F$2:$G$44,2,FALSE)+ROW()-2)),\"\")","v":{"$error":"#N/A"}},{"$f":"IF(INDIRECT(\"c\" & (VLOOKUP(Switch!$D$27,$F$2:$G$44,2,FALSE)+ROW()-2))=Switch!$D$27,INDIRECT(\"a\" & (VLOOKUP(Switch!$D$27,$F$2:$G$44,2,FALSE)+ROW()-2)),\"\")","v":{"$error":"#N/A"}},{"$f":"IF(INDIRECT(\"c\" & (VLOOKUP(Switch!$D$28,$F$2:$G$44,2,FALSE)+ROW()-2))=Switch!$D$28,INDIRECT(\"a\" & (VLOOKUP(Switch!$D$28,$F$2:$G$44,2,FALSE)+ROW()-2)),\"\")","v":{"$error":"#N/A"}},{"$f":"IF(INDIRECT(\"c\" & (VLOOKUP(Switch!$D$29,$F$2:$G$44,2,FALSE)+ROW()-2))=Switch!$D$29,INDIRECT(\"a\" & (VLOOKUP(Switch!$D$29,$F$2:$G$44,2,FALSE)+ROW()-2)),\"\")","v":{"$error":"#N/A"}},{"$f":"IF(INDIRECT(\"c\" & (VLOOKUP(Switch!$D$30,$F$2:$G$44,2,FALSE)+ROW()-2))=Switch!$D$30,INDIRECT(\"a\" & (VLOOKUP(Switch!$D$30,$F$2:$G$44,2,FALSE)+ROW()-2)),\"\")","v":{"$error":"#N/A"}},{"$f":"IF(INDIRECT(\"c\" & (VLOOKUP(Switch!$D$31,$F$2:$G$44,2,FALSE)+ROW()-2))=Switch!$D$31,INDIRECT(\"a\" & (VLOOKUP(Switch!$D$31,$F$2:$G$44,2,FALSE)+ROW()-2)),\"\")","v":{"$error":"#N/A"}},{"$f":"IF(INDIRECT(\"c\" & (VLOOKUP(Switch!$D$32,$F$2:$G$44,2,FALSE)+ROW()-2))=Switch!$D$32,INDIRECT(\"a\" & (VLOOKUP(Switch!$D$32,$F$2:$G$44,2,FALSE)+ROW()-2)),\"\")","v":{"$error":"#N/A"}},{"$f":"IF(INDIRECT(\"c\" & (VLOOKUP(Switch!$D$33,$F$2:$G$44,2,FALSE)+ROW()-2))=Switch!$D$33,INDIRECT(\"a\" & (VLOOKUP(Switch!$D$33,$F$2:$G$44,2,FALSE)+ROW()-2)),\"\")","v":{"$error":"#N/A"}},{"$f":"IF(INDIRECT(\"c\" & (VLOOKUP(Switch!$D$34,$F$2:$G$44,2,FALSE)+ROW()-2))=Switch!$D$34,INDIRECT(\"a\" & (VLOOKUP(Switch!$D$34,$F$2:$G$44,2,FALSE)+ROW()-2)),\"\")","v":{"$error":"#N/A"}},{"$f":"IF(INDIRECT(\"c\" & (VLOOKUP(Switch!$D$35,$F$2:$G$44,2,FALSE)+ROW()-2))=Switch!$D$35,INDIRECT(\"a\" & (VLOOKUP(Switch!$D$35,$F$2:$G$44,2,FALSE)+ROW()-2)),\"\")","v":{"$error":"#N/A"}},{"$f":"IF(INDIRECT(\"c\" & (VLOOKUP(Switch!$D$36,$F$2:$G$44,2,FALSE)+ROW()-2))=Switch!$D$36,INDIRECT(\"a\" & (VLOOKUP(Switch!$D$36,$F$2:$G$44,2,FALSE)+ROW()-2)),\"\")","v":{"$error":"#N/A"}},{"$f":"IF(INDIRECT(\"c\" & (VLOOKUP(Switch!$D$37,$F$2:$G$44,2,FALSE)+ROW()-2))=Switch!$D$37,INDIRECT(\"a\" & (VLOOKUP(Switch!$D$37,$F$2:$G$44,2,FALSE)+ROW()-2)),\"\")","v":{"$error":"#N/A"}},{"$f":"IF(INDIRECT(\"c\" & (VLOOKUP(Switch!$D$38,$F$2:$G$44,2,FALSE)+ROW()-2))=Switch!$D$38,INDIRECT(\"a\" & (VLOOKUP(Switch!$D$38,$F$2:$G$44,2,FALSE)+ROW()-2)),\"\")","v":{"$error":"#N/A"}},{"$f":"IF(INDIRECT(\"c\" & (VLOOKUP(Switch!$D$39,$F$2:$G$44,2,FALSE)+ROW()-2))=Switch!$D$39,INDIRECT(\"a\" & (VLOOKUP(Switch!$D$39,$F$2:$G$44,2,FALSE)+ROW()-2)),\"\")","v":{"$error":"#N/A"}},{"$f":"IF(INDIRECT(\"c\" & (VLOOKUP(Switch!$D$40,$F$2:$G$44,2,FALSE)+ROW()-2))=Switch!$D$40,INDIRECT(\"a\" & (VLOOKUP(Switch!$D$40,$F$2:$G$44,2,FALSE)+ROW()-2)),\"\")","v":{"$error":"#N/A"}},{"$f":"IF(INDIRECT(\"c\" & (VLOOKUP(Switch!$D$52,$F$2:$G$44,2,FALSE)+ROW()-2))=Switch!$D$52,INDIRECT(\"a\" & (VLOOKUP(Switch!$D$52,$F$2:$G$44,2,FALSE)+ROW()-2)),\"\")","v":{"$error":"#N/A"}},{"$f":"IF(INDIRECT(\"c\" & (VLOOKUP(Switch!$D$53,$F$2:$G$44,2,FALSE)+ROW()-2))=Switch!$D$53,INDIRECT(\"a\" & (VLOOKUP(Switch!$D$53,$F$2:$G$44,2,FALSE)+ROW()-2)),\"\")","v":{"$error":"#N/A"}},{"$f":"IF(INDIRECT(\"c\" & (VLOOKUP(Switch!$D$54,$F$2:$G$44,2,FALSE)+ROW()-2))=Switch!$D$54,INDIRECT(\"a\" & (VLOOKUP(Switch!$D$54,$F$2:$G$44,2,FALSE)+ROW()-2)),\"\")","v":{"$error":"#N/A"}},{"$f":"IF(INDIRECT(\"c\" & (VLOOKUP(Switch!$D$55,$F$2:$G$44,2,FALSE)+ROW()-2))=Switch!$D$55,INDIRECT(\"a\" & (VLOOKUP(Switch!$D$55,$F$2:$G$44,2,FALSE)+ROW()-2)),\"\")","v":{"$error":"#N/A"}},{"$f":"IF(INDIRECT(\"c\" & (VLOOKUP(Switch!$D$56,$F$2:$G$44,2,FALSE)+ROW()-2))=Switch!$D$56,INDIRECT(\"a\" & (VLOOKUP(Switch!$D$56,$F$2:$G$44,2,FALSE)+ROW()-2)),\"\")","v":{"$error":"#N/A"}},{"$f":"IF(INDIRECT(\"c\" & (VLOOKUP(Switch!$D$57,$F$2:$G$44,2,FALSE)+ROW()-2))=Switch!$D$57,INDIRECT(\"a\" & (VLOOKUP(Switch!$D$57,$F$2:$G$44,2,FALSE)+ROW()-2)),\"\")","v":{"$error":"#N/A"}},{"$f":"IF(INDIRECT(\"c\" & (VLOOKUP(Switch!$D$58,$F$2:$G$44,2,FALSE)+ROW()-2))=Switch!$D$58,INDIRECT(\"a\" & (VLOOKUP(Switch!$D$58,$F$2:$G$44,2,FALSE)+ROW()-2)),\"\")","v":{"$error":"#N/A"}},{"$f":"IF(INDIRECT(\"c\" & (VLOOKUP(Switch!$D$59,$F$2:$G$44,2,FALSE)+ROW()-2))=Switch!$D$59,INDIRECT(\"a\" & (VLOOKUP(Switch!$D$59,$F$2:$G$44,2,FALSE)+ROW()-2)),\"\")","v":{"$error":"#N/A"}},{"$f":"IF(INDIRECT(\"c\" & (VLOOKUP(Switch!$D$60,$F$2:$G$44,2,FALSE)+ROW()-2))=Switch!$D$60,INDIRECT(\"a\" & (VLOOKUP(Switch!$D$60,$F$2:$G$44,2,FALSE)+ROW()-2)),\"\")","v":{"$error":"#N/A"}},{"$f":"IF(INDIRECT(\"c\" & (VLOOKUP(Switch!$D$61,$F$2:$G$44,2,FALSE)+ROW()-2))=Switch!$D$61,INDIRECT(\"a\" & (VLOOKUP(Switch!$D$61,$F$2:$G$44,2,FALSE)+ROW()-2)),\"\")","v":{"$error":"#N/A"}},{"$f":"IF(INDIRECT(\"c\" & (VLOOKUP(Switch!$D$62,$F$2:$G$44,2,FALSE)+ROW()-2))=Switch!$D$62,INDIRECT(\"a\" & (VLOOKUP(Switch!$D$62,$F$2:$G$44,2,FALSE)+ROW()-2)),\"\")","v":{"$error":"#N/A"}},{"$f":"IF(INDIRECT(\"c\" & (VLOOKUP(Switch!$D$63,$F$2:$G$44,2,FALSE)+ROW()-2))=Switch!$D$63,INDIRECT(\"a\" & (VLOOKUP(Switch!$D$63,$F$2:$G$44,2,FALSE)+ROW()-2)),\"\")","v":{"$error":"#N/A"}},{"$f":"IF(INDIRECT(\"c\" & (VLOOKUP(Switch!$D$64,$F$2:$G$44,2,FALSE)+ROW()-2))=Switch!$D$64,INDIRECT(\"a\" & (VLOOKUP(Switch!$D$64,$F$2:$G$44,2,FALSE)+ROW()-2)),\"\")","v":{"$error":"#N/A"}},{"$f":"IF(INDIRECT(\"c\" & (VLOOKUP(Switch!$D$65,$F$2:$G$44,2,FALSE)+ROW()-2))=Switch!$D$65,INDIRECT(\"a\" & (VLOOKUP(Switch!$D$65,$F$2:$G$44,2,FALSE)+ROW()-2)),\"\")","v":{"$error":"#N/A"}},{"$f":"IF(INDIRECT(\"c\" & (VLOOKUP(Switch!$D$66,$F$2:$G$44,2,FALSE)+ROW()-2))=Switch!$D$66,INDIRECT(\"a\" & (VLOOKUP(Switch!$D$66,$F$2:$G$44,2,FALSE)+ROW()-2)),\"\")","v":{"$error":"#N/A"}}]
["PSG Stable Fund E","PSSE","PSG Collective Investments Ltd",{"$f":"ROW()","v":486},null,null,{"$f":"VLOOKUP(F486,$C$2:$D$637,2,FALSE)","v":{"$error":"#N/A"}},{"$f":"IF(INDIRECT(\"c\" & (VLOOKUP(Switch!$D$26,$F$2:$G$44,2,FALSE)+ROW()-2))=Switch!$D$26,INDIRECT(\"a\" & (VLOOKUP(Switch!$D$26,$F$2:$G$44,2,FALSE)+ROW()-2)),\"\")","v":{"$error":"#N/A"}},{"$f":"IF(INDIRECT(\"c\" & (VLOOKUP(Switch!$D$27,$F$2:$G$44,2,FALSE)+ROW()-2))=Switch!$D$27,INDIRECT(\"a\" & (VLOOKUP(Switch!$D$27,$F$2:$G$44,2,FALSE)+ROW()-2)),\"\")","v":{"$error":"#N/A"}},{"$f":"IF(INDIRECT(\"c\" & (VLOOKUP(Switch!$D$28,$F$2:$G$44,2,FALSE)+ROW()-2))=Switch!$D$28,INDIRECT(\"a\" & (VLOOKUP(Switch!$D$28,$F$2:$G$44,2,FALSE)+ROW()-2)),\"\")","v":{"$error":"#N/A"}},{"$f":"IF(INDIRECT(\"c\" & (VLOOKUP(Switch!$D$29,$F$2:$G$44,2,FALSE)+ROW()-2))=Switch!$D$29,INDIRECT(\"a\" & (VLOOKUP(Switch!$D$29,$F$2:$G$44,2,FALSE)+ROW()-2)),\"\")","v":{"$error":"#N/A"}},{"$f":"IF(INDIRECT(\"c\" & (VLOOKUP(Switch!$D$30,$F$2:$G$44,2,FALSE)+ROW()-2))=Switch!$D$30,INDIRECT(\"a\" & (VLOOKUP(Switch!$D$30,$F$2:$G$44,2,FALSE)+ROW()-2)),\"\")","v":{"$error":"#N/A"}},{"$f":"IF(INDIRECT(\"c\" & (VLOOKUP(Switch!$D$31,$F$2:$G$44,2,FALSE)+ROW()-2))=Switch!$D$31,INDIRECT(\"a\" & (VLOOKUP(Switch!$D$31,$F$2:$G$44,2,FALSE)+ROW()-2)),\"\")","v":{"$error":"#N/A"}},{"$f":"IF(INDIRECT(\"c\" & (VLOOKUP(Switch!$D$32,$F$2:$G$44,2,FALSE)+ROW()-2))=Switch!$D$32,INDIRECT(\"a\" & (VLOOKUP(Switch!$D$32,$F$2:$G$44,2,FALSE)+ROW()-2)),\"\")","v":{"$error":"#N/A"}},{"$f":"IF(INDIRECT(\"c\" & (VLOOKUP(Switch!$D$33,$F$2:$G$44,2,FALSE)+ROW()-2))=Switch!$D$33,INDIRECT(\"a\" & (VLOOKUP(Switch!$D$33,$F$2:$G$44,2,FALSE)+ROW()-2)),\"\")","v":{"$error":"#N/A"}},{"$f":"IF(INDIRECT(\"c\" & (VLOOKUP(Switch!$D$34,$F$2:$G$44,2,FALSE)+ROW()-2))=Switch!$D$34,INDIRECT(\"a\" & (VLOOKUP(Switch!$D$34,$F$2:$G$44,2,FALSE)+ROW()-2)),\"\")","v":{"$error":"#N/A"}},{"$f":"IF(INDIRECT(\"c\" & (VLOOKUP(Switch!$D$35,$F$2:$G$44,2,FALSE)+ROW()-2))=Switch!$D$35,INDIRECT(\"a\" & (VLOOKUP(Switch!$D$35,$F$2:$G$44,2,FALSE)+ROW()-2)),\"\")","v":{"$error":"#N/A"}},{"$f":"IF(INDIRECT(\"c\" & (VLOOKUP(Switch!$D$36,$F$2:$G$44,2,FALSE)+ROW()-2))=Switch!$D$36,INDIRECT(\"a\" & (VLOOKUP(Switch!$D$36,$F$2:$G$44,2,FALSE)+ROW()-2)),\"\")","v":{"$error":"#N/A"}},{"$f":"IF(INDIRECT(\"c\" & (VLOOKUP(Switch!$D$37,$F$2:$G$44,2,FALSE)+ROW()-2))=Switch!$D$37,INDIRECT(\"a\" & (VLOOKUP(Switch!$D$37,$F$2:$G$44,2,FALSE)+ROW()-2)),\"\")","v":{"$error":"#N/A"}},{"$f":"IF(INDIRECT(\"c\" & (VLOOKUP(Switch!$D$38,$F$2:$G$44,2,FALSE)+ROW()-2))=Switch!$D$38,INDIRECT(\"a\" & (VLOOKUP(Switch!$D$38,$F$2:$G$44,2,FALSE)+ROW()-2)),\"\")","v":{"$error":"#N/A"}},{"$f":"IF(INDIRECT(\"c\" & (VLOOKUP(Switch!$D$39,$F$2:$G$44,2,FALSE)+ROW()-2))=Switch!$D$39,INDIRECT(\"a\" & (VLOOKUP(Switch!$D$39,$F$2:$G$44,2,FALSE)+ROW()-2)),\"\")","v":{"$error":"#N/A"}},{"$f":"IF(INDIRECT(\"c\" & (VLOOKUP(Switch!$D$40,$F$2:$G$44,2,FALSE)+ROW()-2))=Switch!$D$40,INDIRECT(\"a\" & (VLOOKUP(Switch!$D$40,$F$2:$G$44,2,FALSE)+ROW()-2)),\"\")","v":{"$error":"#N/A"}},{"$f":"IF(INDIRECT(\"c\" & (VLOOKUP(Switch!$D$52,$F$2:$G$44,2,FALSE)+ROW()-2))=Switch!$D$52,INDIRECT(\"a\" & (VLOOKUP(Switch!$D$52,$F$2:$G$44,2,FALSE)+ROW()-2)),\"\")","v":{"$error":"#N/A"}},{"$f":"IF(INDIRECT(\"c\" & (VLOOKUP(Switch!$D$53,$F$2:$G$44,2,FALSE)+ROW()-2))=Switch!$D$53,INDIRECT(\"a\" & (VLOOKUP(Switch!$D$53,$F$2:$G$44,2,FALSE)+ROW()-2)),\"\")","v":{"$error":"#N/A"}},{"$f":"IF(INDIRECT(\"c\" & (VLOOKUP(Switch!$D$54,$F$2:$G$44,2,FALSE)+ROW()-2))=Switch!$D$54,INDIRECT(\"a\" & (VLOOKUP(Switch!$D$54,$F$2:$G$44,2,FALSE)+ROW()-2)),\"\")","v":{"$error":"#N/A"}},{"$f":"IF(INDIRECT(\"c\" & (VLOOKUP(Switch!$D$55,$F$2:$G$44,2,FALSE)+ROW()-2))=Switch!$D$55,INDIRECT(\"a\" & (VLOOKUP(Switch!$D$55,$F$2:$G$44,2,FALSE)+ROW()-2)),\"\")","v":{"$error":"#N/A"}},{"$f":"IF(INDIRECT(\"c\" & (VLOOKUP(Switch!$D$56,$F$2:$G$44,2,FALSE)+ROW()-2))=Switch!$D$56,INDIRECT(\"a\" & (VLOOKUP(Switch!$D$56,$F$2:$G$44,2,FALSE)+ROW()-2)),\"\")","v":{"$error":"#N/A"}},{"$f":"IF(INDIRECT(\"c\" & (VLOOKUP(Switch!$D$57,$F$2:$G$44,2,FALSE)+ROW()-2))=Switch!$D$57,INDIRECT(\"a\" & (VLOOKUP(Switch!$D$57,$F$2:$G$44,2,FALSE)+ROW()-2)),\"\")","v":{"$error":"#N/A"}},{"$f":"IF(INDIRECT(\"c\" & (VLOOKUP(Switch!$D$58,$F$2:$G$44,2,FALSE)+ROW()-2))=Switch!$D$58,INDIRECT(\"a\" & (VLOOKUP(Switch!$D$58,$F$2:$G$44,2,FALSE)+ROW()-2)),\"\")","v":{"$error":"#N/A"}},{"$f":"IF(INDIRECT(\"c\" & (VLOOKUP(Switch!$D$59,$F$2:$G$44,2,FALSE)+ROW()-2))=Switch!$D$59,INDIRECT(\"a\" & (VLOOKUP(Switch!$D$59,$F$2:$G$44,2,FALSE)+ROW()-2)),\"\")","v":{"$error":"#N/A"}},{"$f":"IF(INDIRECT(\"c\" & (VLOOKUP(Switch!$D$60,$F$2:$G$44,2,FALSE)+ROW()-2))=Switch!$D$60,INDIRECT(\"a\" & (VLOOKUP(Switch!$D$60,$F$2:$G$44,2,FALSE)+ROW()-2)),\"\")","v":{"$error":"#N/A"}},{"$f":"IF(INDIRECT(\"c\" & (VLOOKUP(Switch!$D$61,$F$2:$G$44,2,FALSE)+ROW()-2))=Switch!$D$61,INDIRECT(\"a\" & (VLOOKUP(Switch!$D$61,$F$2:$G$44,2,FALSE)+ROW()-2)),\"\")","v":{"$error":"#N/A"}},{"$f":"IF(INDIRECT(\"c\" & (VLOOKUP(Switch!$D$62,$F$2:$G$44,2,FALSE)+ROW()-2))=Switch!$D$62,INDIRECT(\"a\" & (VLOOKUP(Switch!$D$62,$F$2:$G$44,2,FALSE)+ROW()-2)),\"\")","v":{"$error":"#N/A"}},{"$f":"IF(INDIRECT(\"c\" & (VLOOKUP(Switch!$D$63,$F$2:$G$44,2,FALSE)+ROW()-2))=Switch!$D$63,INDIRECT(\"a\" & (VLOOKUP(Switch!$D$63,$F$2:$G$44,2,FALSE)+ROW()-2)),\"\")","v":{"$error":"#N/A"}},{"$f":"IF(INDIRECT(\"c\" & (VLOOKUP(Switch!$D$64,$F$2:$G$44,2,FALSE)+ROW()-2))=Switch!$D$64,INDIRECT(\"a\" & (VLOOKUP(Switch!$D$64,$F$2:$G$44,2,FALSE)+ROW()-2)),\"\")","v":{"$error":"#N/A"}},{"$f":"IF(INDIRECT(\"c\" & (VLOOKUP(Switch!$D$65,$F$2:$G$44,2,FALSE)+ROW()-2))=Switch!$D$65,INDIRECT(\"a\" & (VLOOKUP(Switch!$D$65,$F$2:$G$44,2,FALSE)+ROW()-2)),\"\")","v":{"$error":"#N/A"}},{"$f":"IF(INDIRECT(\"c\" & (VLOOKUP(Switch!$D$66,$F$2:$G$44,2,FALSE)+ROW()-2))=Switch!$D$66,INDIRECT(\"a\" & (VLOOKUP(Switch!$D$66,$F$2:$G$44,2,FALSE)+ROW()-2)),\"\")","v":{"$error":"#N/A"}}]
["PSG Wealth Creator FoF A","PACD","PSG Collective Investments Ltd",{"$f":"ROW()","v":487},null,null,{"$f":"VLOOKUP(F487,$C$2:$D$637,2,FALSE)","v":{"$error":"#N/A"}},{"$f":"IF(INDIRECT(\"c\" & (VLOOKUP(Switch!$D$26,$F$2:$G$44,2,FALSE)+ROW()-2))=Switch!$D$26,INDIRECT(\"a\" & (VLOOKUP(Switch!$D$26,$F$2:$G$44,2,FALSE)+ROW()-2)),\"\")","v":{"$error":"#N/A"}},{"$f":"IF(INDIRECT(\"c\" & (VLOOKUP(Switch!$D$27,$F$2:$G$44,2,FALSE)+ROW()-2))=Switch!$D$27,INDIRECT(\"a\" & (VLOOKUP(Switch!$D$27,$F$2:$G$44,2,FALSE)+ROW()-2)),\"\")","v":{"$error":"#N/A"}},{"$f":"IF(INDIRECT(\"c\" & (VLOOKUP(Switch!$D$28,$F$2:$G$44,2,FALSE)+ROW()-2))=Switch!$D$28,INDIRECT(\"a\" & (VLOOKUP(Switch!$D$28,$F$2:$G$44,2,FALSE)+ROW()-2)),\"\")","v":{"$error":"#N/A"}},{"$f":"IF(INDIRECT(\"c\" & (VLOOKUP(Switch!$D$29,$F$2:$G$44,2,FALSE)+ROW()-2))=Switch!$D$29,INDIRECT(\"a\" & (VLOOKUP(Switch!$D$29,$F$2:$G$44,2,FALSE)+ROW()-2)),\"\")","v":{"$error":"#N/A"}},{"$f":"IF(INDIRECT(\"c\" & (VLOOKUP(Switch!$D$30,$F$2:$G$44,2,FALSE)+ROW()-2))=Switch!$D$30,INDIRECT(\"a\" & (VLOOKUP(Switch!$D$30,$F$2:$G$44,2,FALSE)+ROW()-2)),\"\")","v":{"$error":"#N/A"}},{"$f":"IF(INDIRECT(\"c\" & (VLOOKUP(Switch!$D$31,$F$2:$G$44,2,FALSE)+ROW()-2))=Switch!$D$31,INDIRECT(\"a\" & (VLOOKUP(Switch!$D$31,$F$2:$G$44,2,FALSE)+ROW()-2)),\"\")","v":{"$error":"#N/A"}},{"$f":"IF(INDIRECT(\"c\" & (VLOOKUP(Switch!$D$32,$F$2:$G$44,2,FALSE)+ROW()-2))=Switch!$D$32,INDIRECT(\"a\" & (VLOOKUP(Switch!$D$32,$F$2:$G$44,2,FALSE)+ROW()-2)),\"\")","v":{"$error":"#N/A"}},{"$f":"IF(INDIRECT(\"c\" & (VLOOKUP(Switch!$D$33,$F$2:$G$44,2,FALSE)+ROW()-2))=Switch!$D$33,INDIRECT(\"a\" & (VLOOKUP(Switch!$D$33,$F$2:$G$44,2,FALSE)+ROW()-2)),\"\")","v":{"$error":"#N/A"}},{"$f":"IF(INDIRECT(\"c\" & (VLOOKUP(Switch!$D$34,$F$2:$G$44,2,FALSE)+ROW()-2))=Switch!$D$34,INDIRECT(\"a\" & (VLOOKUP(Switch!$D$34,$F$2:$G$44,2,FALSE)+ROW()-2)),\"\")","v":{"$error":"#N/A"}},{"$f":"IF(INDIRECT(\"c\" & (VLOOKUP(Switch!$D$35,$F$2:$G$44,2,FALSE)+ROW()-2))=Switch!$D$35,INDIRECT(\"a\" & (VLOOKUP(Switch!$D$35,$F$2:$G$44,2,FALSE)+ROW()-2)),\"\")","v":{"$error":"#N/A"}},{"$f":"IF(INDIRECT(\"c\" & (VLOOKUP(Switch!$D$36,$F$2:$G$44,2,FALSE)+ROW()-2))=Switch!$D$36,INDIRECT(\"a\" & (VLOOKUP(Switch!$D$36,$F$2:$G$44,2,FALSE)+ROW()-2)),\"\")","v":{"$error":"#N/A"}},{"$f":"IF(INDIRECT(\"c\" & (VLOOKUP(Switch!$D$37,$F$2:$G$44,2,FALSE)+ROW()-2))=Switch!$D$37,INDIRECT(\"a\" & (VLOOKUP(Switch!$D$37,$F$2:$G$44,2,FALSE)+ROW()-2)),\"\")","v":{"$error":"#N/A"}},{"$f":"IF(INDIRECT(\"c\" & (VLOOKUP(Switch!$D$38,$F$2:$G$44,2,FALSE)+ROW()-2))=Switch!$D$38,INDIRECT(\"a\" & (VLOOKUP(Switch!$D$38,$F$2:$G$44,2,FALSE)+ROW()-2)),\"\")","v":{"$error":"#N/A"}},{"$f":"IF(INDIRECT(\"c\" & (VLOOKUP(Switch!$D$39,$F$2:$G$44,2,FALSE)+ROW()-2))=Switch!$D$39,INDIRECT(\"a\" & (VLOOKUP(Switch!$D$39,$F$2:$G$44,2,FALSE)+ROW()-2)),\"\")","v":{"$error":"#N/A"}},{"$f":"IF(INDIRECT(\"c\" & (VLOOKUP(Switch!$D$40,$F$2:$G$44,2,FALSE)+ROW()-2))=Switch!$D$40,INDIRECT(\"a\" & (VLOOKUP(Switch!$D$40,$F$2:$G$44,2,FALSE)+ROW()-2)),\"\")","v":{"$error":"#N/A"}},{"$f":"IF(INDIRECT(\"c\" & (VLOOKUP(Switch!$D$52,$F$2:$G$44,2,FALSE)+ROW()-2))=Switch!$D$52,INDIRECT(\"a\" & (VLOOKUP(Switch!$D$52,$F$2:$G$44,2,FALSE)+ROW()-2)),\"\")","v":{"$error":"#N/A"}},{"$f":"IF(INDIRECT(\"c\" & (VLOOKUP(Switch!$D$53,$F$2:$G$44,2,FALSE)+ROW()-2))=Switch!$D$53,INDIRECT(\"a\" & (VLOOKUP(Switch!$D$53,$F$2:$G$44,2,FALSE)+ROW()-2)),\"\")","v":{"$error":"#N/A"}},{"$f":"IF(INDIRECT(\"c\" & (VLOOKUP(Switch!$D$54,$F$2:$G$44,2,FALSE)+ROW()-2))=Switch!$D$54,INDIRECT(\"a\" & (VLOOKUP(Switch!$D$54,$F$2:$G$44,2,FALSE)+ROW()-2)),\"\")","v":{"$error":"#N/A"}},{"$f":"IF(INDIRECT(\"c\" & (VLOOKUP(Switch!$D$55,$F$2:$G$44,2,FALSE)+ROW()-2))=Switch!$D$55,INDIRECT(\"a\" & (VLOOKUP(Switch!$D$55,$F$2:$G$44,2,FALSE)+ROW()-2)),\"\")","v":{"$error":"#N/A"}},{"$f":"IF(INDIRECT(\"c\" & (VLOOKUP(Switch!$D$56,$F$2:$G$44,2,FALSE)+ROW()-2))=Switch!$D$56,INDIRECT(\"a\" & (VLOOKUP(Switch!$D$56,$F$2:$G$44,2,FALSE)+ROW()-2)),\"\")","v":{"$error":"#N/A"}},{"$f":"IF(INDIRECT(\"c\" & (VLOOKUP(Switch!$D$57,$F$2:$G$44,2,FALSE)+ROW()-2))=Switch!$D$57,INDIRECT(\"a\" & (VLOOKUP(Switch!$D$57,$F$2:$G$44,2,FALSE)+ROW()-2)),\"\")","v":{"$error":"#N/A"}},{"$f":"IF(INDIRECT(\"c\" & (VLOOKUP(Switch!$D$58,$F$2:$G$44,2,FALSE)+ROW()-2))=Switch!$D$58,INDIRECT(\"a\" & (VLOOKUP(Switch!$D$58,$F$2:$G$44,2,FALSE)+ROW()-2)),\"\")","v":{"$error":"#N/A"}},{"$f":"IF(INDIRECT(\"c\" & (VLOOKUP(Switch!$D$59,$F$2:$G$44,2,FALSE)+ROW()-2))=Switch!$D$59,INDIRECT(\"a\" & (VLOOKUP(Switch!$D$59,$F$2:$G$44,2,FALSE)+ROW()-2)),\"\")","v":{"$error":"#N/A"}},{"$f":"IF(INDIRECT(\"c\" & (VLOOKUP(Switch!$D$60,$F$2:$G$44,2,FALSE)+ROW()-2))=Switch!$D$60,INDIRECT(\"a\" & (VLOOKUP(Switch!$D$60,$F$2:$G$44,2,FALSE)+ROW()-2)),\"\")","v":{"$error":"#N/A"}},{"$f":"IF(INDIRECT(\"c\" & (VLOOKUP(Switch!$D$61,$F$2:$G$44,2,FALSE)+ROW()-2))=Switch!$D$61,INDIRECT(\"a\" & (VLOOKUP(Switch!$D$61,$F$2:$G$44,2,FALSE)+ROW()-2)),\"\")","v":{"$error":"#N/A"}},{"$f":"IF(INDIRECT(\"c\" & (VLOOKUP(Switch!$D$62,$F$2:$G$44,2,FALSE)+ROW()-2))=Switch!$D$62,INDIRECT(\"a\" & (VLOOKUP(Switch!$D$62,$F$2:$G$44,2,FALSE)+ROW()-2)),\"\")","v":{"$error":"#N/A"}},{"$f":"IF(INDIRECT(\"c\" & (VLOOKUP(Switch!$D$63,$F$2:$G$44,2,FALSE)+ROW()-2))=Switch!$D$63,INDIRECT(\"a\" & (VLOOKUP(Switch!$D$63,$F$2:$G$44,2,FALSE)+ROW()-2)),\"\")","v":{"$error":"#N/A"}},{"$f":"IF(INDIRECT(\"c\" & (VLOOKUP(Switch!$D$64,$F$2:$G$44,2,FALSE)+ROW()-2))=Switch!$D$64,INDIRECT(\"a\" & (VLOOKUP(Switch!$D$64,$F$2:$G$44,2,FALSE)+ROW()-2)),\"\")","v":{"$error":"#N/A"}},{"$f":"IF(INDIRECT(\"c\" & (VLOOKUP(Switch!$D$65,$F$2:$G$44,2,FALSE)+ROW()-2))=Switch!$D$65,INDIRECT(\"a\" & (VLOOKUP(Switch!$D$65,$F$2:$G$44,2,FALSE)+ROW()-2)),\"\")","v":{"$error":"#N/A"}},{"$f":"IF(INDIRECT(\"c\" & (VLOOKUP(Switch!$D$66,$F$2:$G$44,2,FALSE)+ROW()-2))=Switch!$D$66,INDIRECT(\"a\" & (VLOOKUP(Switch!$D$66,$F$2:$G$44,2,FALSE)+ROW()-2)),\"\")","v":{"$error":"#N/A"}}]
["PSG Wealth Creator FoF B","PACD","PSG Collective Investments Ltd",{"$f":"ROW()","v":488},null,null,{"$f":"VLOOKUP(F488,$C$2:$D$637,2,FALSE)","v":{"$error":"#N/A"}},{"$f":"IF(INDIRECT(\"c\" & (VLOOKUP(Switch!$D$26,$F$2:$G$44,2,FALSE)+ROW()-2))=Switch!$D$26,INDIRECT(\"a\" & (VLOOKUP(Switch!$D$26,$F$2:$G$44,2,FALSE)+ROW()-2)),\"\")","v":{"$error":"#N/A"}},{"$f":"IF(INDIRECT(\"c\" & (VLOOKUP(Switch!$D$27,$F$2:$G$44,2,FALSE)+ROW()-2))=Switch!$D$27,INDIRECT(\"a\" & (VLOOKUP(Switch!$D$27,$F$2:$G$44,2,FALSE)+ROW()-2)),\"\")","v":{"$error":"#N/A"}},{"$f":"IF(INDIRECT(\"c\" & (VLOOKUP(Switch!$D$28,$F$2:$G$44,2,FALSE)+ROW()-2))=Switch!$D$28,INDIRECT(\"a\" & (VLOOKUP(Switch!$D$28,$F$2:$G$44,2,FALSE)+ROW()-2)),\"\")","v":{"$error":"#N/A"}},{"$f":"IF(INDIRECT(\"c\" & (VLOOKUP(Switch!$D$29,$F$2:$G$44,2,FALSE)+ROW()-2))=Switch!$D$29,INDIRECT(\"a\" & (VLOOKUP(Switch!$D$29,$F$2:$G$44,2,FALSE)+ROW()-2)),\"\")","v":{"$error":"#N/A"}},{"$f":"IF(INDIRECT(\"c\" & (VLOOKUP(Switch!$D$30,$F$2:$G$44,2,FALSE)+ROW()-2))=Switch!$D$30,INDIRECT(\"a\" & (VLOOKUP(Switch!$D$30,$F$2:$G$44,2,FALSE)+ROW()-2)),\"\")","v":{"$error":"#N/A"}},{"$f":"IF(INDIRECT(\"c\" & (VLOOKUP(Switch!$D$31,$F$2:$G$44,2,FALSE)+ROW()-2))=Switch!$D$31,INDIRECT(\"a\" & (VLOOKUP(Switch!$D$31,$F$2:$G$44,2,FALSE)+ROW()-2)),\"\")","v":{"$error":"#N/A"}},{"$f":"IF(INDIRECT(\"c\" & (VLOOKUP(Switch!$D$32,$F$2:$G$44,2,FALSE)+ROW()-2))=Switch!$D$32,INDIRECT(\"a\" & (VLOOKUP(Switch!$D$32,$F$2:$G$44,2,FALSE)+ROW()-2)),\"\")","v":{"$error":"#N/A"}},{"$f":"IF(INDIRECT(\"c\" & (VLOOKUP(Switch!$D$33,$F$2:$G$44,2,FALSE)+ROW()-2))=Switch!$D$33,INDIRECT(\"a\" & (VLOOKUP(Switch!$D$33,$F$2:$G$44,2,FALSE)+ROW()-2)),\"\")","v":{"$error":"#N/A"}},{"$f":"IF(INDIRECT(\"c\" & (VLOOKUP(Switch!$D$34,$F$2:$G$44,2,FALSE)+ROW()-2))=Switch!$D$34,INDIRECT(\"a\" & (VLOOKUP(Switch!$D$34,$F$2:$G$44,2,FALSE)+ROW()-2)),\"\")","v":{"$error":"#N/A"}},{"$f":"IF(INDIRECT(\"c\" & (VLOOKUP(Switch!$D$35,$F$2:$G$44,2,FALSE)+ROW()-2))=Switch!$D$35,INDIRECT(\"a\" & (VLOOKUP(Switch!$D$35,$F$2:$G$44,2,FALSE)+ROW()-2)),\"\")","v":{"$error":"#N/A"}},{"$f":"IF(INDIRECT(\"c\" & (VLOOKUP(Switch!$D$36,$F$2:$G$44,2,FALSE)+ROW()-2))=Switch!$D$36,INDIRECT(\"a\" & (VLOOKUP(Switch!$D$36,$F$2:$G$44,2,FALSE)+ROW()-2)),\"\")","v":{"$error":"#N/A"}},{"$f":"IF(INDIRECT(\"c\" & (VLOOKUP(Switch!$D$37,$F$2:$G$44,2,FALSE)+ROW()-2))=Switch!$D$37,INDIRECT(\"a\" & (VLOOKUP(Switch!$D$37,$F$2:$G$44,2,FALSE)+ROW()-2)),\"\")","v":{"$error":"#N/A"}},{"$f":"IF(INDIRECT(\"c\" & (VLOOKUP(Switch!$D$38,$F$2:$G$44,2,FALSE)+ROW()-2))=Switch!$D$38,INDIRECT(\"a\" & (VLOOKUP(Switch!$D$38,$F$2:$G$44,2,FALSE)+ROW()-2)),\"\")","v":{"$error":"#N/A"}},{"$f":"IF(INDIRECT(\"c\" & (VLOOKUP(Switch!$D$39,$F$2:$G$44,2,FALSE)+ROW()-2))=Switch!$D$39,INDIRECT(\"a\" & (VLOOKUP(Switch!$D$39,$F$2:$G$44,2,FALSE)+ROW()-2)),\"\")","v":{"$error":"#N/A"}},{"$f":"IF(INDIRECT(\"c\" & (VLOOKUP(Switch!$D$40,$F$2:$G$44,2,FALSE)+ROW()-2))=Switch!$D$40,INDIRECT(\"a\" & (VLOOKUP(Switch!$D$40,$F$2:$G$44,2,FALSE)+ROW()-2)),\"\")","v":{"$error":"#N/A"}},{"$f":"IF(INDIRECT(\"c\" & (VLOOKUP(Switch!$D$52,$F$2:$G$44,2,FALSE)+ROW()-2))=Switch!$D$52,INDIRECT(\"a\" & (VLOOKUP(Switch!$D$52,$F$2:$G$44,2,FALSE)+ROW()-2)),\"\")","v":{"$error":"#N/A"}},{"$f":"IF(INDIRECT(\"c\" & (VLOOKUP(Switch!$D$53,$F$2:$G$44,2,FALSE)+ROW()-2))=Switch!$D$53,INDIRECT(\"a\" & (VLOOKUP(Switch!$D$53,$F$2:$G$44,2,FALSE)+ROW()-2)),\"\")","v":{"$error":"#N/A"}},{"$f":"IF(INDIRECT(\"c\" & (VLOOKUP(Switch!$D$54,$F$2:$G$44,2,FALSE)+ROW()-2))=Switch!$D$54,INDIRECT(\"a\" & (VLOOKUP(Switch!$D$54,$F$2:$G$44,2,FALSE)+ROW()-2)),\"\")","v":{"$error":"#N/A"}},{"$f":"IF(INDIRECT(\"c\" & (VLOOKUP(Switch!$D$55,$F$2:$G$44,2,FALSE)+ROW()-2))=Switch!$D$55,INDIRECT(\"a\" & (VLOOKUP(Switch!$D$55,$F$2:$G$44,2,FALSE)+ROW()-2)),\"\")","v":{"$error":"#N/A"}},{"$f":"IF(INDIRECT(\"c\" & (VLOOKUP(Switch!$D$56,$F$2:$G$44,2,FALSE)+ROW()-2))=Switch!$D$56,INDIRECT(\"a\" & (VLOOKUP(Switch!$D$56,$F$2:$G$44,2,FALSE)+ROW()-2)),\"\")","v":{"$error":"#N/A"}},{"$f":"IF(INDIRECT(\"c\" & (VLOOKUP(Switch!$D$57,$F$2:$G$44,2,FALSE)+ROW()-2))=Switch!$D$57,INDIRECT(\"a\" & (VLOOKUP(Switch!$D$57,$F$2:$G$44,2,FALSE)+ROW()-2)),\"\")","v":{"$error":"#N/A"}},{"$f":"IF(INDIRECT(\"c\" & (VLOOKUP(Switch!$D$58,$F$2:$G$44,2,FALSE)+ROW()-2))=Switch!$D$58,INDIRECT(\"a\" & (VLOOKUP(Switch!$D$58,$F$2:$G$44,2,FALSE)+ROW()-2)),\"\")","v":{"$error":"#N/A"}},{"$f":"IF(INDIRECT(\"c\" & (VLOOKUP(Switch!$D$59,$F$2:$G$44,2,FALSE)+ROW()-2))=Switch!$D$59,INDIRECT(\"a\" & (VLOOKUP(Switch!$D$59,$F$2:$G$44,2,FALSE)+ROW()-2)),\"\")","v":{"$error":"#N/A"}},{"$f":"IF(INDIRECT(\"c\" & (VLOOKUP(Switch!$D$60,$F$2:$G$44,2,FALSE)+ROW()-2))=Switch!$D$60,INDIRECT(\"a\" & (VLOOKUP(Switch!$D$60,$F$2:$G$44,2,FALSE)+ROW()-2)),\"\")","v":{"$error":"#N/A"}},{"$f":"IF(INDIRECT(\"c\" & (VLOOKUP(Switch!$D$61,$F$2:$G$44,2,FALSE)+ROW()-2))=Switch!$D$61,INDIRECT(\"a\" & (VLOOKUP(Switch!$D$61,$F$2:$G$44,2,FALSE)+ROW()-2)),\"\")","v":{"$error":"#N/A"}},{"$f":"IF(INDIRECT(\"c\" & (VLOOKUP(Switch!$D$62,$F$2:$G$44,2,FALSE)+ROW()-2))=Switch!$D$62,INDIRECT(\"a\" & (VLOOKUP(Switch!$D$62,$F$2:$G$44,2,FALSE)+ROW()-2)),\"\")","v":{"$error":"#N/A"}},{"$f":"IF(INDIRECT(\"c\" & (VLOOKUP(Switch!$D$63,$F$2:$G$44,2,FALSE)+ROW()-2))=Switch!$D$63,INDIRECT(\"a\" & (VLOOKUP(Switch!$D$63,$F$2:$G$44,2,FALSE)+ROW()-2)),\"\")","v":{"$error":"#N/A"}},{"$f":"IF(INDIRECT(\"c\" & (VLOOKUP(Switch!$D$64,$F$2:$G$44,2,FALSE)+ROW()-2))=Switch!$D$64,INDIRECT(\"a\" & (VLOOKUP(Switch!$D$64,$F$2:$G$44,2,FALSE)+ROW()-2)),\"\")","v":{"$error":"#N/A"}},{"$f":"IF(INDIRECT(\"c\" & (VLOOKUP(Switch!$D$65,$F$2:$G$44,2,FALSE)+ROW()-2))=Switch!$D$65,INDIRECT(\"a\" & (VLOOKUP(Switch!$D$65,$F$2:$G$44,2,FALSE)+ROW()-2)),\"\")","v":{"$error":"#N/A"}},{"$f":"IF(INDIRECT(\"c\" & (VLOOKUP(Switch!$D$66,$F$2:$G$44,2,FALSE)+ROW()-2))=Switch!$D$66,INDIRECT(\"a\" & (VLOOKUP(Switch!$D$66,$F$2:$G$44,2,FALSE)+ROW()-2)),\"\")","v":{"$error":"#N/A"}}]
["PSG Wealth Creator FoF D","PACD","PSG Collective Investments Ltd",{"$f":"ROW()","v":489},null,null,{"$f":"VLOOKUP(F489,$C$2:$D$637,2,FALSE)","v":{"$error":"#N/A"}},{"$f":"IF(INDIRECT(\"c\" & (VLOOKUP(Switch!$D$26,$F$2:$G$44,2,FALSE)+ROW()-2))=Switch!$D$26,INDIRECT(\"a\" & (VLOOKUP(Switch!$D$26,$F$2:$G$44,2,FALSE)+ROW()-2)),\"\")","v":{"$error":"#N/A"}},{"$f":"IF(INDIRECT(\"c\" & (VLOOKUP(Switch!$D$27,$F$2:$G$44,2,FALSE)+ROW()-2))=Switch!$D$27,INDIRECT(\"a\" & (VLOOKUP(Switch!$D$27,$F$2:$G$44,2,FALSE)+ROW()-2)),\"\")","v":{"$error":"#N/A"}},{"$f":"IF(INDIRECT(\"c\" & (VLOOKUP(Switch!$D$28,$F$2:$G$44,2,FALSE)+ROW()-2))=Switch!$D$28,INDIRECT(\"a\" & (VLOOKUP(Switch!$D$28,$F$2:$G$44,2,FALSE)+ROW()-2)),\"\")","v":{"$error":"#N/A"}},{"$f":"IF(INDIRECT(\"c\" & (VLOOKUP(Switch!$D$29,$F$2:$G$44,2,FALSE)+ROW()-2))=Switch!$D$29,INDIRECT(\"a\" & (VLOOKUP(Switch!$D$29,$F$2:$G$44,2,FALSE)+ROW()-2)),\"\")","v":{"$error":"#N/A"}},{"$f":"IF(INDIRECT(\"c\" & (VLOOKUP(Switch!$D$30,$F$2:$G$44,2,FALSE)+ROW()-2))=Switch!$D$30,INDIRECT(\"a\" & (VLOOKUP(Switch!$D$30,$F$2:$G$44,2,FALSE)+ROW()-2)),\"\")","v":{"$error":"#N/A"}},{"$f":"IF(INDIRECT(\"c\" & (VLOOKUP(Switch!$D$31,$F$2:$G$44,2,FALSE)+ROW()-2))=Switch!$D$31,INDIRECT(\"a\" & (VLOOKUP(Switch!$D$31,$F$2:$G$44,2,FALSE)+ROW()-2)),\"\")","v":{"$error":"#N/A"}},{"$f":"IF(INDIRECT(\"c\" & (VLOOKUP(Switch!$D$32,$F$2:$G$44,2,FALSE)+ROW()-2))=Switch!$D$32,INDIRECT(\"a\" & (VLOOKUP(Switch!$D$32,$F$2:$G$44,2,FALSE)+ROW()-2)),\"\")","v":{"$error":"#N/A"}},{"$f":"IF(INDIRECT(\"c\" & (VLOOKUP(Switch!$D$33,$F$2:$G$44,2,FALSE)+ROW()-2))=Switch!$D$33,INDIRECT(\"a\" & (VLOOKUP(Switch!$D$33,$F$2:$G$44,2,FALSE)+ROW()-2)),\"\")","v":{"$error":"#N/A"}},{"$f":"IF(INDIRECT(\"c\" & (VLOOKUP(Switch!$D$34,$F$2:$G$44,2,FALSE)+ROW()-2))=Switch!$D$34,INDIRECT(\"a\" & (VLOOKUP(Switch!$D$34,$F$2:$G$44,2,FALSE)+ROW()-2)),\"\")","v":{"$error":"#N/A"}},{"$f":"IF(INDIRECT(\"c\" & (VLOOKUP(Switch!$D$35,$F$2:$G$44,2,FALSE)+ROW()-2))=Switch!$D$35,INDIRECT(\"a\" & (VLOOKUP(Switch!$D$35,$F$2:$G$44,2,FALSE)+ROW()-2)),\"\")","v":{"$error":"#N/A"}},{"$f":"IF(INDIRECT(\"c\" & (VLOOKUP(Switch!$D$36,$F$2:$G$44,2,FALSE)+ROW()-2))=Switch!$D$36,INDIRECT(\"a\" & (VLOOKUP(Switch!$D$36,$F$2:$G$44,2,FALSE)+ROW()-2)),\"\")","v":{"$error":"#N/A"}},{"$f":"IF(INDIRECT(\"c\" & (VLOOKUP(Switch!$D$37,$F$2:$G$44,2,FALSE)+ROW()-2))=Switch!$D$37,INDIRECT(\"a\" & (VLOOKUP(Switch!$D$37,$F$2:$G$44,2,FALSE)+ROW()-2)),\"\")","v":{"$error":"#N/A"}},{"$f":"IF(INDIRECT(\"c\" & (VLOOKUP(Switch!$D$38,$F$2:$G$44,2,FALSE)+ROW()-2))=Switch!$D$38,INDIRECT(\"a\" & (VLOOKUP(Switch!$D$38,$F$2:$G$44,2,FALSE)+ROW()-2)),\"\")","v":{"$error":"#N/A"}},{"$f":"IF(INDIRECT(\"c\" & (VLOOKUP(Switch!$D$39,$F$2:$G$44,2,FALSE)+ROW()-2))=Switch!$D$39,INDIRECT(\"a\" & (VLOOKUP(Switch!$D$39,$F$2:$G$44,2,FALSE)+ROW()-2)),\"\")","v":{"$error":"#N/A"}},{"$f":"IF(INDIRECT(\"c\" & (VLOOKUP(Switch!$D$40,$F$2:$G$44,2,FALSE)+ROW()-2))=Switch!$D$40,INDIRECT(\"a\" & (VLOOKUP(Switch!$D$40,$F$2:$G$44,2,FALSE)+ROW()-2)),\"\")","v":{"$error":"#N/A"}},{"$f":"IF(INDIRECT(\"c\" & (VLOOKUP(Switch!$D$52,$F$2:$G$44,2,FALSE)+ROW()-2))=Switch!$D$52,INDIRECT(\"a\" & (VLOOKUP(Switch!$D$52,$F$2:$G$44,2,FALSE)+ROW()-2)),\"\")","v":{"$error":"#N/A"}},{"$f":"IF(INDIRECT(\"c\" & (VLOOKUP(Switch!$D$53,$F$2:$G$44,2,FALSE)+ROW()-2))=Switch!$D$53,INDIRECT(\"a\" & (VLOOKUP(Switch!$D$53,$F$2:$G$44,2,FALSE)+ROW()-2)),\"\")","v":{"$error":"#N/A"}},{"$f":"IF(INDIRECT(\"c\" & (VLOOKUP(Switch!$D$54,$F$2:$G$44,2,FALSE)+ROW()-2))=Switch!$D$54,INDIRECT(\"a\" & (VLOOKUP(Switch!$D$54,$F$2:$G$44,2,FALSE)+ROW()-2)),\"\")","v":{"$error":"#N/A"}},{"$f":"IF(INDIRECT(\"c\" & (VLOOKUP(Switch!$D$55,$F$2:$G$44,2,FALSE)+ROW()-2))=Switch!$D$55,INDIRECT(\"a\" & (VLOOKUP(Switch!$D$55,$F$2:$G$44,2,FALSE)+ROW()-2)),\"\")","v":{"$error":"#N/A"}},{"$f":"IF(INDIRECT(\"c\" & (VLOOKUP(Switch!$D$56,$F$2:$G$44,2,FALSE)+ROW()-2))=Switch!$D$56,INDIRECT(\"a\" & (VLOOKUP(Switch!$D$56,$F$2:$G$44,2,FALSE)+ROW()-2)),\"\")","v":{"$error":"#N/A"}},{"$f":"IF(INDIRECT(\"c\" & (VLOOKUP(Switch!$D$57,$F$2:$G$44,2,FALSE)+ROW()-2))=Switch!$D$57,INDIRECT(\"a\" & (VLOOKUP(Switch!$D$57,$F$2:$G$44,2,FALSE)+ROW()-2)),\"\")","v":{"$error":"#N/A"}},{"$f":"IF(INDIRECT(\"c\" & (VLOOKUP(Switch!$D$58,$F$2:$G$44,2,FALSE)+ROW()-2))=Switch!$D$58,INDIRECT(\"a\" & (VLOOKUP(Switch!$D$58,$F$2:$G$44,2,FALSE)+ROW()-2)),\"\")","v":{"$error":"#N/A"}},{"$f":"IF(INDIRECT(\"c\" & (VLOOKUP(Switch!$D$59,$F$2:$G$44,2,FALSE)+ROW()-2))=Switch!$D$59,INDIRECT(\"a\" & (VLOOKUP(Switch!$D$59,$F$2:$G$44,2,FALSE)+ROW()-2)),\"\")","v":{"$error":"#N/A"}},{"$f":"IF(INDIRECT(\"c\" & (VLOOKUP(Switch!$D$60,$F$2:$G$44,2,FALSE)+ROW()-2))=Switch!$D$60,INDIRECT(\"a\" & (VLOOKUP(Switch!$D$60,$F$2:$G$44,2,FALSE)+ROW()-2)),\"\")","v":{"$error":"#N/A"}},{"$f":"IF(INDIRECT(\"c\" & (VLOOKUP(Switch!$D$61,$F$2:$G$44,2,FALSE)+ROW()-2))=Switch!$D$61,INDIRECT(\"a\" & (VLOOKUP(Switch!$D$61,$F$2:$G$44,2,FALSE)+ROW()-2)),\"\")","v":{"$error":"#N/A"}},{"$f":"IF(INDIRECT(\"c\" & (VLOOKUP(Switch!$D$62,$F$2:$G$44,2,FALSE)+ROW()-2))=Switch!$D$62,INDIRECT(\"a\" & (VLOOKUP(Switch!$D$62,$F$2:$G$44,2,FALSE)+ROW()-2)),\"\")","v":{"$error":"#N/A"}},{"$f":"IF(INDIRECT(\"c\" & (VLOOKUP(Switch!$D$63,$F$2:$G$44,2,FALSE)+ROW()-2))=Switch!$D$63,INDIRECT(\"a\" & (VLOOKUP(Switch!$D$63,$F$2:$G$44,2,FALSE)+ROW()-2)),\"\")","v":{"$error":"#N/A"}},{"$f":"IF(INDIRECT(\"c\" & (VLOOKUP(Switch!$D$64,$F$2:$G$44,2,FALSE)+ROW()-2))=Switch!$D$64,INDIRECT(\"a\" & (VLOOKUP(Switch!$D$64,$F$2:$G$44,2,FALSE)+ROW()-2)),\"\")","v":{"$error":"#N/A"}},{"$f":"IF(INDIRECT(\"c\" & (VLOOKUP(Switch!$D$65,$F$2:$G$44,2,FALSE)+ROW()-2))=Switch!$D$65,INDIRECT(\"a\" & (VLOOKUP(Switch!$D$65,$F$2:$G$44,2,FALSE)+ROW()-2)),\"\")","v":{"$error":"#N/A"}},{"$f":"IF(INDIRECT(\"c\" & (VLOOKUP(Switch!$D$66,$F$2:$G$44,2,FALSE)+ROW()-2))=Switch!$D$66,INDIRECT(\"a\" & (VLOOKUP(Switch!$D$66,$F$2:$G$44,2,FALSE)+ROW()-2)),\"\")","v":{"$error":"#N/A"}}]
["PSG Wealth Global Moderate Feeder Fund A","PKID","PSG Collective Investments Ltd",{"$f":"ROW()","v":490},null,null,{"$f":"VLOOKUP(F490,$C$2:$D$637,2,FALSE)","v":{"$error":"#N/A"}},{"$f":"IF(INDIRECT(\"c\" & (VLOOKUP(Switch!$D$26,$F$2:$G$44,2,FALSE)+ROW()-2))=Switch!$D$26,INDIRECT(\"a\" & (VLOOKUP(Switch!$D$26,$F$2:$G$44,2,FALSE)+ROW()-2)),\"\")","v":{"$error":"#N/A"}},{"$f":"IF(INDIRECT(\"c\" & (VLOOKUP(Switch!$D$27,$F$2:$G$44,2,FALSE)+ROW()-2))=Switch!$D$27,INDIRECT(\"a\" & (VLOOKUP(Switch!$D$27,$F$2:$G$44,2,FALSE)+ROW()-2)),\"\")","v":{"$error":"#N/A"}},{"$f":"IF(INDIRECT(\"c\" & (VLOOKUP(Switch!$D$28,$F$2:$G$44,2,FALSE)+ROW()-2))=Switch!$D$28,INDIRECT(\"a\" & (VLOOKUP(Switch!$D$28,$F$2:$G$44,2,FALSE)+ROW()-2)),\"\")","v":{"$error":"#N/A"}},{"$f":"IF(INDIRECT(\"c\" & (VLOOKUP(Switch!$D$29,$F$2:$G$44,2,FALSE)+ROW()-2))=Switch!$D$29,INDIRECT(\"a\" & (VLOOKUP(Switch!$D$29,$F$2:$G$44,2,FALSE)+ROW()-2)),\"\")","v":{"$error":"#N/A"}},{"$f":"IF(INDIRECT(\"c\" & (VLOOKUP(Switch!$D$30,$F$2:$G$44,2,FALSE)+ROW()-2))=Switch!$D$30,INDIRECT(\"a\" & (VLOOKUP(Switch!$D$30,$F$2:$G$44,2,FALSE)+ROW()-2)),\"\")","v":{"$error":"#N/A"}},{"$f":"IF(INDIRECT(\"c\" & (VLOOKUP(Switch!$D$31,$F$2:$G$44,2,FALSE)+ROW()-2))=Switch!$D$31,INDIRECT(\"a\" & (VLOOKUP(Switch!$D$31,$F$2:$G$44,2,FALSE)+ROW()-2)),\"\")","v":{"$error":"#N/A"}},{"$f":"IF(INDIRECT(\"c\" & (VLOOKUP(Switch!$D$32,$F$2:$G$44,2,FALSE)+ROW()-2))=Switch!$D$32,INDIRECT(\"a\" & (VLOOKUP(Switch!$D$32,$F$2:$G$44,2,FALSE)+ROW()-2)),\"\")","v":{"$error":"#N/A"}},{"$f":"IF(INDIRECT(\"c\" & (VLOOKUP(Switch!$D$33,$F$2:$G$44,2,FALSE)+ROW()-2))=Switch!$D$33,INDIRECT(\"a\" & (VLOOKUP(Switch!$D$33,$F$2:$G$44,2,FALSE)+ROW()-2)),\"\")","v":{"$error":"#N/A"}},{"$f":"IF(INDIRECT(\"c\" & (VLOOKUP(Switch!$D$34,$F$2:$G$44,2,FALSE)+ROW()-2))=Switch!$D$34,INDIRECT(\"a\" & (VLOOKUP(Switch!$D$34,$F$2:$G$44,2,FALSE)+ROW()-2)),\"\")","v":{"$error":"#N/A"}},{"$f":"IF(INDIRECT(\"c\" & (VLOOKUP(Switch!$D$35,$F$2:$G$44,2,FALSE)+ROW()-2))=Switch!$D$35,INDIRECT(\"a\" & (VLOOKUP(Switch!$D$35,$F$2:$G$44,2,FALSE)+ROW()-2)),\"\")","v":{"$error":"#N/A"}},{"$f":"IF(INDIRECT(\"c\" & (VLOOKUP(Switch!$D$36,$F$2:$G$44,2,FALSE)+ROW()-2))=Switch!$D$36,INDIRECT(\"a\" & (VLOOKUP(Switch!$D$36,$F$2:$G$44,2,FALSE)+ROW()-2)),\"\")","v":{"$error":"#N/A"}},{"$f":"IF(INDIRECT(\"c\" & (VLOOKUP(Switch!$D$37,$F$2:$G$44,2,FALSE)+ROW()-2))=Switch!$D$37,INDIRECT(\"a\" & (VLOOKUP(Switch!$D$37,$F$2:$G$44,2,FALSE)+ROW()-2)),\"\")","v":{"$error":"#N/A"}},{"$f":"IF(INDIRECT(\"c\" & (VLOOKUP(Switch!$D$38,$F$2:$G$44,2,FALSE)+ROW()-2))=Switch!$D$38,INDIRECT(\"a\" & (VLOOKUP(Switch!$D$38,$F$2:$G$44,2,FALSE)+ROW()-2)),\"\")","v":{"$error":"#N/A"}},{"$f":"IF(INDIRECT(\"c\" & (VLOOKUP(Switch!$D$39,$F$2:$G$44,2,FALSE)+ROW()-2))=Switch!$D$39,INDIRECT(\"a\" & (VLOOKUP(Switch!$D$39,$F$2:$G$44,2,FALSE)+ROW()-2)),\"\")","v":{"$error":"#N/A"}},{"$f":"IF(INDIRECT(\"c\" & (VLOOKUP(Switch!$D$40,$F$2:$G$44,2,FALSE)+ROW()-2))=Switch!$D$40,INDIRECT(\"a\" & (VLOOKUP(Switch!$D$40,$F$2:$G$44,2,FALSE)+ROW()-2)),\"\")","v":{"$error":"#N/A"}},{"$f":"IF(INDIRECT(\"c\" & (VLOOKUP(Switch!$D$52,$F$2:$G$44,2,FALSE)+ROW()-2))=Switch!$D$52,INDIRECT(\"a\" & (VLOOKUP(Switch!$D$52,$F$2:$G$44,2,FALSE)+ROW()-2)),\"\")","v":{"$error":"#N/A"}},{"$f":"IF(INDIRECT(\"c\" & (VLOOKUP(Switch!$D$53,$F$2:$G$44,2,FALSE)+ROW()-2))=Switch!$D$53,INDIRECT(\"a\" & (VLOOKUP(Switch!$D$53,$F$2:$G$44,2,FALSE)+ROW()-2)),\"\")","v":{"$error":"#N/A"}},{"$f":"IF(INDIRECT(\"c\" & (VLOOKUP(Switch!$D$54,$F$2:$G$44,2,FALSE)+ROW()-2))=Switch!$D$54,INDIRECT(\"a\" & (VLOOKUP(Switch!$D$54,$F$2:$G$44,2,FALSE)+ROW()-2)),\"\")","v":{"$error":"#N/A"}},{"$f":"IF(INDIRECT(\"c\" & (VLOOKUP(Switch!$D$55,$F$2:$G$44,2,FALSE)+ROW()-2))=Switch!$D$55,INDIRECT(\"a\" & (VLOOKUP(Switch!$D$55,$F$2:$G$44,2,FALSE)+ROW()-2)),\"\")","v":{"$error":"#N/A"}},{"$f":"IF(INDIRECT(\"c\" & (VLOOKUP(Switch!$D$56,$F$2:$G$44,2,FALSE)+ROW()-2))=Switch!$D$56,INDIRECT(\"a\" & (VLOOKUP(Switch!$D$56,$F$2:$G$44,2,FALSE)+ROW()-2)),\"\")","v":{"$error":"#N/A"}},{"$f":"IF(INDIRECT(\"c\" & (VLOOKUP(Switch!$D$57,$F$2:$G$44,2,FALSE)+ROW()-2))=Switch!$D$57,INDIRECT(\"a\" & (VLOOKUP(Switch!$D$57,$F$2:$G$44,2,FALSE)+ROW()-2)),\"\")","v":{"$error":"#N/A"}},{"$f":"IF(INDIRECT(\"c\" & (VLOOKUP(Switch!$D$58,$F$2:$G$44,2,FALSE)+ROW()-2))=Switch!$D$58,INDIRECT(\"a\" & (VLOOKUP(Switch!$D$58,$F$2:$G$44,2,FALSE)+ROW()-2)),\"\")","v":{"$error":"#N/A"}},{"$f":"IF(INDIRECT(\"c\" & (VLOOKUP(Switch!$D$59,$F$2:$G$44,2,FALSE)+ROW()-2))=Switch!$D$59,INDIRECT(\"a\" & (VLOOKUP(Switch!$D$59,$F$2:$G$44,2,FALSE)+ROW()-2)),\"\")","v":{"$error":"#N/A"}},{"$f":"IF(INDIRECT(\"c\" & (VLOOKUP(Switch!$D$60,$F$2:$G$44,2,FALSE)+ROW()-2))=Switch!$D$60,INDIRECT(\"a\" & (VLOOKUP(Switch!$D$60,$F$2:$G$44,2,FALSE)+ROW()-2)),\"\")","v":{"$error":"#N/A"}},{"$f":"IF(INDIRECT(\"c\" & (VLOOKUP(Switch!$D$61,$F$2:$G$44,2,FALSE)+ROW()-2))=Switch!$D$61,INDIRECT(\"a\" & (VLOOKUP(Switch!$D$61,$F$2:$G$44,2,FALSE)+ROW()-2)),\"\")","v":{"$error":"#N/A"}},{"$f":"IF(INDIRECT(\"c\" & (VLOOKUP(Switch!$D$62,$F$2:$G$44,2,FALSE)+ROW()-2))=Switch!$D$62,INDIRECT(\"a\" & (VLOOKUP(Switch!$D$62,$F$2:$G$44,2,FALSE)+ROW()-2)),\"\")","v":{"$error":"#N/A"}},{"$f":"IF(INDIRECT(\"c\" & (VLOOKUP(Switch!$D$63,$F$2:$G$44,2,FALSE)+ROW()-2))=Switch!$D$63,INDIRECT(\"a\" & (VLOOKUP(Switch!$D$63,$F$2:$G$44,2,FALSE)+ROW()-2)),\"\")","v":{"$error":"#N/A"}},{"$f":"IF(INDIRECT(\"c\" & (VLOOKUP(Switch!$D$64,$F$2:$G$44,2,FALSE)+ROW()-2))=Switch!$D$64,INDIRECT(\"a\" & (VLOOKUP(Switch!$D$64,$F$2:$G$44,2,FALSE)+ROW()-2)),\"\")","v":{"$error":"#N/A"}},{"$f":"IF(INDIRECT(\"c\" & (VLOOKUP(Switch!$D$65,$F$2:$G$44,2,FALSE)+ROW()-2))=Switch!$D$65,INDIRECT(\"a\" & (VLOOKUP(Switch!$D$65,$F$2:$G$44,2,FALSE)+ROW()-2)),\"\")","v":{"$error":"#N/A"}},{"$f":"IF(INDIRECT(\"c\" & (VLOOKUP(Switch!$D$66,$F$2:$G$44,2,FALSE)+ROW()-2))=Switch!$D$66,INDIRECT(\"a\" & (VLOOKUP(Switch!$D$66,$F$2:$G$44,2,FALSE)+ROW()-2)),\"\")","v":{"$error":"#N/A"}}]
["PSG Wealth Income FoF A","PAID","PSG Collective Investments Ltd",{"$f":"ROW()","v":491},null,null,{"$f":"VLOOKUP(F491,$C$2:$D$637,2,FALSE)","v":{"$error":"#N/A"}},{"$f":"IF(INDIRECT(\"c\" & (VLOOKUP(Switch!$D$26,$F$2:$G$44,2,FALSE)+ROW()-2))=Switch!$D$26,INDIRECT(\"a\" & (VLOOKUP(Switch!$D$26,$F$2:$G$44,2,FALSE)+ROW()-2)),\"\")","v":{"$error":"#N/A"}},{"$f":"IF(INDIRECT(\"c\" & (VLOOKUP(Switch!$D$27,$F$2:$G$44,2,FALSE)+ROW()-2))=Switch!$D$27,INDIRECT(\"a\" & (VLOOKUP(Switch!$D$27,$F$2:$G$44,2,FALSE)+ROW()-2)),\"\")","v":{"$error":"#N/A"}},{"$f":"IF(INDIRECT(\"c\" & (VLOOKUP(Switch!$D$28,$F$2:$G$44,2,FALSE)+ROW()-2))=Switch!$D$28,INDIRECT(\"a\" & (VLOOKUP(Switch!$D$28,$F$2:$G$44,2,FALSE)+ROW()-2)),\"\")","v":{"$error":"#N/A"}},{"$f":"IF(INDIRECT(\"c\" & (VLOOKUP(Switch!$D$29,$F$2:$G$44,2,FALSE)+ROW()-2))=Switch!$D$29,INDIRECT(\"a\" & (VLOOKUP(Switch!$D$29,$F$2:$G$44,2,FALSE)+ROW()-2)),\"\")","v":{"$error":"#N/A"}},{"$f":"IF(INDIRECT(\"c\" & (VLOOKUP(Switch!$D$30,$F$2:$G$44,2,FALSE)+ROW()-2))=Switch!$D$30,INDIRECT(\"a\" & (VLOOKUP(Switch!$D$30,$F$2:$G$44,2,FALSE)+ROW()-2)),\"\")","v":{"$error":"#N/A"}},{"$f":"IF(INDIRECT(\"c\" & (VLOOKUP(Switch!$D$31,$F$2:$G$44,2,FALSE)+ROW()-2))=Switch!$D$31,INDIRECT(\"a\" & (VLOOKUP(Switch!$D$31,$F$2:$G$44,2,FALSE)+ROW()-2)),\"\")","v":{"$error":"#N/A"}},{"$f":"IF(INDIRECT(\"c\" & (VLOOKUP(Switch!$D$32,$F$2:$G$44,2,FALSE)+ROW()-2))=Switch!$D$32,INDIRECT(\"a\" & (VLOOKUP(Switch!$D$32,$F$2:$G$44,2,FALSE)+ROW()-2)),\"\")","v":{"$error":"#N/A"}},{"$f":"IF(INDIRECT(\"c\" & (VLOOKUP(Switch!$D$33,$F$2:$G$44,2,FALSE)+ROW()-2))=Switch!$D$33,INDIRECT(\"a\" & (VLOOKUP(Switch!$D$33,$F$2:$G$44,2,FALSE)+ROW()-2)),\"\")","v":{"$error":"#N/A"}},{"$f":"IF(INDIRECT(\"c\" & (VLOOKUP(Switch!$D$34,$F$2:$G$44,2,FALSE)+ROW()-2))=Switch!$D$34,INDIRECT(\"a\" & (VLOOKUP(Switch!$D$34,$F$2:$G$44,2,FALSE)+ROW()-2)),\"\")","v":{"$error":"#N/A"}},{"$f":"IF(INDIRECT(\"c\" & (VLOOKUP(Switch!$D$35,$F$2:$G$44,2,FALSE)+ROW()-2))=Switch!$D$35,INDIRECT(\"a\" & (VLOOKUP(Switch!$D$35,$F$2:$G$44,2,FALSE)+ROW()-2)),\"\")","v":{"$error":"#N/A"}},{"$f":"IF(INDIRECT(\"c\" & (VLOOKUP(Switch!$D$36,$F$2:$G$44,2,FALSE)+ROW()-2))=Switch!$D$36,INDIRECT(\"a\" & (VLOOKUP(Switch!$D$36,$F$2:$G$44,2,FALSE)+ROW()-2)),\"\")","v":{"$error":"#N/A"}},{"$f":"IF(INDIRECT(\"c\" & (VLOOKUP(Switch!$D$37,$F$2:$G$44,2,FALSE)+ROW()-2))=Switch!$D$37,INDIRECT(\"a\" & (VLOOKUP(Switch!$D$37,$F$2:$G$44,2,FALSE)+ROW()-2)),\"\")","v":{"$error":"#N/A"}},{"$f":"IF(INDIRECT(\"c\" & (VLOOKUP(Switch!$D$38,$F$2:$G$44,2,FALSE)+ROW()-2))=Switch!$D$38,INDIRECT(\"a\" & (VLOOKUP(Switch!$D$38,$F$2:$G$44,2,FALSE)+ROW()-2)),\"\")","v":{"$error":"#N/A"}},{"$f":"IF(INDIRECT(\"c\" & (VLOOKUP(Switch!$D$39,$F$2:$G$44,2,FALSE)+ROW()-2))=Switch!$D$39,INDIRECT(\"a\" & (VLOOKUP(Switch!$D$39,$F$2:$G$44,2,FALSE)+ROW()-2)),\"\")","v":{"$error":"#N/A"}},{"$f":"IF(INDIRECT(\"c\" & (VLOOKUP(Switch!$D$40,$F$2:$G$44,2,FALSE)+ROW()-2))=Switch!$D$40,INDIRECT(\"a\" & (VLOOKUP(Switch!$D$40,$F$2:$G$44,2,FALSE)+ROW()-2)),\"\")","v":{"$error":"#N/A"}},{"$f":"IF(INDIRECT(\"c\" & (VLOOKUP(Switch!$D$52,$F$2:$G$44,2,FALSE)+ROW()-2))=Switch!$D$52,INDIRECT(\"a\" & (VLOOKUP(Switch!$D$52,$F$2:$G$44,2,FALSE)+ROW()-2)),\"\")","v":{"$error":"#N/A"}},{"$f":"IF(INDIRECT(\"c\" & (VLOOKUP(Switch!$D$53,$F$2:$G$44,2,FALSE)+ROW()-2))=Switch!$D$53,INDIRECT(\"a\" & (VLOOKUP(Switch!$D$53,$F$2:$G$44,2,FALSE)+ROW()-2)),\"\")","v":{"$error":"#N/A"}},{"$f":"IF(INDIRECT(\"c\" & (VLOOKUP(Switch!$D$54,$F$2:$G$44,2,FALSE)+ROW()-2))=Switch!$D$54,INDIRECT(\"a\" & (VLOOKUP(Switch!$D$54,$F$2:$G$44,2,FALSE)+ROW()-2)),\"\")","v":{"$error":"#N/A"}},{"$f":"IF(INDIRECT(\"c\" & (VLOOKUP(Switch!$D$55,$F$2:$G$44,2,FALSE)+ROW()-2))=Switch!$D$55,INDIRECT(\"a\" & (VLOOKUP(Switch!$D$55,$F$2:$G$44,2,FALSE)+ROW()-2)),\"\")","v":{"$error":"#N/A"}},{"$f":"IF(INDIRECT(\"c\" & (VLOOKUP(Switch!$D$56,$F$2:$G$44,2,FALSE)+ROW()-2))=Switch!$D$56,INDIRECT(\"a\" & (VLOOKUP(Switch!$D$56,$F$2:$G$44,2,FALSE)+ROW()-2)),\"\")","v":{"$error":"#N/A"}},{"$f":"IF(INDIRECT(\"c\" & (VLOOKUP(Switch!$D$57,$F$2:$G$44,2,FALSE)+ROW()-2))=Switch!$D$57,INDIRECT(\"a\" & (VLOOKUP(Switch!$D$57,$F$2:$G$44,2,FALSE)+ROW()-2)),\"\")","v":{"$error":"#N/A"}},{"$f":"IF(INDIRECT(\"c\" & (VLOOKUP(Switch!$D$58,$F$2:$G$44,2,FALSE)+ROW()-2))=Switch!$D$58,INDIRECT(\"a\" & (VLOOKUP(Switch!$D$58,$F$2:$G$44,2,FALSE)+ROW()-2)),\"\")","v":{"$error":"#N/A"}},{"$f":"IF(INDIRECT(\"c\" & (VLOOKUP(Switch!$D$59,$F$2:$G$44,2,FALSE)+ROW()-2))=Switch!$D$59,INDIRECT(\"a\" & (VLOOKUP(Switch!$D$59,$F$2:$G$44,2,FALSE)+ROW()-2)),\"\")","v":{"$error":"#N/A"}},{"$f":"IF(INDIRECT(\"c\" & (VLOOKUP(Switch!$D$60,$F$2:$G$44,2,FALSE)+ROW()-2))=Switch!$D$60,INDIRECT(\"a\" & (VLOOKUP(Switch!$D$60,$F$2:$G$44,2,FALSE)+ROW()-2)),\"\")","v":{"$error":"#N/A"}},{"$f":"IF(INDIRECT(\"c\" & (VLOOKUP(Switch!$D$61,$F$2:$G$44,2,FALSE)+ROW()-2))=Switch!$D$61,INDIRECT(\"a\" & (VLOOKUP(Switch!$D$61,$F$2:$G$44,2,FALSE)+ROW()-2)),\"\")","v":{"$error":"#N/A"}},{"$f":"IF(INDIRECT(\"c\" & (VLOOKUP(Switch!$D$62,$F$2:$G$44,2,FALSE)+ROW()-2))=Switch!$D$62,INDIRECT(\"a\" & (VLOOKUP(Switch!$D$62,$F$2:$G$44,2,FALSE)+ROW()-2)),\"\")","v":{"$error":"#N/A"}},{"$f":"IF(INDIRECT(\"c\" & (VLOOKUP(Switch!$D$63,$F$2:$G$44,2,FALSE)+ROW()-2))=Switch!$D$63,INDIRECT(\"a\" & (VLOOKUP(Switch!$D$63,$F$2:$G$44,2,FALSE)+ROW()-2)),\"\")","v":{"$error":"#N/A"}},{"$f":"IF(INDIRECT(\"c\" & (VLOOKUP(Switch!$D$64,$F$2:$G$44,2,FALSE)+ROW()-2))=Switch!$D$64,INDIRECT(\"a\" & (VLOOKUP(Switch!$D$64,$F$2:$G$44,2,FALSE)+ROW()-2)),\"\")","v":{"$error":"#N/A"}},{"$f":"IF(INDIRECT(\"c\" & (VLOOKUP(Switch!$D$65,$F$2:$G$44,2,FALSE)+ROW()-2))=Switch!$D$65,INDIRECT(\"a\" & (VLOOKUP(Switch!$D$65,$F$2:$G$44,2,FALSE)+ROW()-2)),\"\")","v":{"$error":"#N/A"}},{"$f":"IF(INDIRECT(\"c\" & (VLOOKUP(Switch!$D$66,$F$2:$G$44,2,FALSE)+ROW()-2))=Switch!$D$66,INDIRECT(\"a\" & (VLOOKUP(Switch!$D$66,$F$2:$G$44,2,FALSE)+ROW()-2)),\"\")","v":{"$error":"#N/A"}}]
["PSG Wealth Income FoF B","PAID","PSG Collective Investments Ltd",{"$f":"ROW()","v":492},null,null,{"$f":"VLOOKUP(F492,$C$2:$D$637,2,FALSE)","v":{"$error":"#N/A"}},{"$f":"IF(INDIRECT(\"c\" & (VLOOKUP(Switch!$D$26,$F$2:$G$44,2,FALSE)+ROW()-2))=Switch!$D$26,INDIRECT(\"a\" & (VLOOKUP(Switch!$D$26,$F$2:$G$44,2,FALSE)+ROW()-2)),\"\")","v":{"$error":"#N/A"}},{"$f":"IF(INDIRECT(\"c\" & (VLOOKUP(Switch!$D$27,$F$2:$G$44,2,FALSE)+ROW()-2))=Switch!$D$27,INDIRECT(\"a\" & (VLOOKUP(Switch!$D$27,$F$2:$G$44,2,FALSE)+ROW()-2)),\"\")","v":{"$error":"#N/A"}},{"$f":"IF(INDIRECT(\"c\" & (VLOOKUP(Switch!$D$28,$F$2:$G$44,2,FALSE)+ROW()-2))=Switch!$D$28,INDIRECT(\"a\" & (VLOOKUP(Switch!$D$28,$F$2:$G$44,2,FALSE)+ROW()-2)),\"\")","v":{"$error":"#N/A"}},{"$f":"IF(INDIRECT(\"c\" & (VLOOKUP(Switch!$D$29,$F$2:$G$44,2,FALSE)+ROW()-2))=Switch!$D$29,INDIRECT(\"a\" & (VLOOKUP(Switch!$D$29,$F$2:$G$44,2,FALSE)+ROW()-2)),\"\")","v":{"$error":"#N/A"}},{"$f":"IF(INDIRECT(\"c\" & (VLOOKUP(Switch!$D$30,$F$2:$G$44,2,FALSE)+ROW()-2))=Switch!$D$30,INDIRECT(\"a\" & (VLOOKUP(Switch!$D$30,$F$2:$G$44,2,FALSE)+ROW()-2)),\"\")","v":{"$error":"#N/A"}},{"$f":"IF(INDIRECT(\"c\" & (VLOOKUP(Switch!$D$31,$F$2:$G$44,2,FALSE)+ROW()-2))=Switch!$D$31,INDIRECT(\"a\" & (VLOOKUP(Switch!$D$31,$F$2:$G$44,2,FALSE)+ROW()-2)),\"\")","v":{"$error":"#N/A"}},{"$f":"IF(INDIRECT(\"c\" & (VLOOKUP(Switch!$D$32,$F$2:$G$44,2,FALSE)+ROW()-2))=Switch!$D$32,INDIRECT(\"a\" & (VLOOKUP(Switch!$D$32,$F$2:$G$44,2,FALSE)+ROW()-2)),\"\")","v":{"$error":"#N/A"}},{"$f":"IF(INDIRECT(\"c\" & (VLOOKUP(Switch!$D$33,$F$2:$G$44,2,FALSE)+ROW()-2))=Switch!$D$33,INDIRECT(\"a\" & (VLOOKUP(Switch!$D$33,$F$2:$G$44,2,FALSE)+ROW()-2)),\"\")","v":{"$error":"#N/A"}},{"$f":"IF(INDIRECT(\"c\" & (VLOOKUP(Switch!$D$34,$F$2:$G$44,2,FALSE)+ROW()-2))=Switch!$D$34,INDIRECT(\"a\" & (VLOOKUP(Switch!$D$34,$F$2:$G$44,2,FALSE)+ROW()-2)),\"\")","v":{"$error":"#N/A"}},{"$f":"IF(INDIRECT(\"c\" & (VLOOKUP(Switch!$D$35,$F$2:$G$44,2,FALSE)+ROW()-2))=Switch!$D$35,INDIRECT(\"a\" & (VLOOKUP(Switch!$D$35,$F$2:$G$44,2,FALSE)+ROW()-2)),\"\")","v":{"$error":"#N/A"}},{"$f":"IF(INDIRECT(\"c\" & (VLOOKUP(Switch!$D$36,$F$2:$G$44,2,FALSE)+ROW()-2))=Switch!$D$36,INDIRECT(\"a\" & (VLOOKUP(Switch!$D$36,$F$2:$G$44,2,FALSE)+ROW()-2)),\"\")","v":{"$error":"#N/A"}},{"$f":"IF(INDIRECT(\"c\" & (VLOOKUP(Switch!$D$37,$F$2:$G$44,2,FALSE)+ROW()-2))=Switch!$D$37,INDIRECT(\"a\" & (VLOOKUP(Switch!$D$37,$F$2:$G$44,2,FALSE)+ROW()-2)),\"\")","v":{"$error":"#N/A"}},{"$f":"IF(INDIRECT(\"c\" & (VLOOKUP(Switch!$D$38,$F$2:$G$44,2,FALSE)+ROW()-2))=Switch!$D$38,INDIRECT(\"a\" & (VLOOKUP(Switch!$D$38,$F$2:$G$44,2,FALSE)+ROW()-2)),\"\")","v":{"$error":"#N/A"}},{"$f":"IF(INDIRECT(\"c\" & (VLOOKUP(Switch!$D$39,$F$2:$G$44,2,FALSE)+ROW()-2))=Switch!$D$39,INDIRECT(\"a\" & (VLOOKUP(Switch!$D$39,$F$2:$G$44,2,FALSE)+ROW()-2)),\"\")","v":{"$error":"#N/A"}},{"$f":"IF(INDIRECT(\"c\" & (VLOOKUP(Switch!$D$40,$F$2:$G$44,2,FALSE)+ROW()-2))=Switch!$D$40,INDIRECT(\"a\" & (VLOOKUP(Switch!$D$40,$F$2:$G$44,2,FALSE)+ROW()-2)),\"\")","v":{"$error":"#N/A"}},{"$f":"IF(INDIRECT(\"c\" & (VLOOKUP(Switch!$D$52,$F$2:$G$44,2,FALSE)+ROW()-2))=Switch!$D$52,INDIRECT(\"a\" & (VLOOKUP(Switch!$D$52,$F$2:$G$44,2,FALSE)+ROW()-2)),\"\")","v":{"$error":"#N/A"}},{"$f":"IF(INDIRECT(\"c\" & (VLOOKUP(Switch!$D$53,$F$2:$G$44,2,FALSE)+ROW()-2))=Switch!$D$53,INDIRECT(\"a\" & (VLOOKUP(Switch!$D$53,$F$2:$G$44,2,FALSE)+ROW()-2)),\"\")","v":{"$error":"#N/A"}},{"$f":"IF(INDIRECT(\"c\" & (VLOOKUP(Switch!$D$54,$F$2:$G$44,2,FALSE)+ROW()-2))=Switch!$D$54,INDIRECT(\"a\" & (VLOOKUP(Switch!$D$54,$F$2:$G$44,2,FALSE)+ROW()-2)),\"\")","v":{"$error":"#N/A"}},{"$f":"IF(INDIRECT(\"c\" & (VLOOKUP(Switch!$D$55,$F$2:$G$44,2,FALSE)+ROW()-2))=Switch!$D$55,INDIRECT(\"a\" & (VLOOKUP(Switch!$D$55,$F$2:$G$44,2,FALSE)+ROW()-2)),\"\")","v":{"$error":"#N/A"}},{"$f":"IF(INDIRECT(\"c\" & (VLOOKUP(Switch!$D$56,$F$2:$G$44,2,FALSE)+ROW()-2))=Switch!$D$56,INDIRECT(\"a\" & (VLOOKUP(Switch!$D$56,$F$2:$G$44,2,FALSE)+ROW()-2)),\"\")","v":{"$error":"#N/A"}},{"$f":"IF(INDIRECT(\"c\" & (VLOOKUP(Switch!$D$57,$F$2:$G$44,2,FALSE)+ROW()-2))=Switch!$D$57,INDIRECT(\"a\" & (VLOOKUP(Switch!$D$57,$F$2:$G$44,2,FALSE)+ROW()-2)),\"\")","v":{"$error":"#N/A"}},{"$f":"IF(INDIRECT(\"c\" & (VLOOKUP(Switch!$D$58,$F$2:$G$44,2,FALSE)+ROW()-2))=Switch!$D$58,INDIRECT(\"a\" & (VLOOKUP(Switch!$D$58,$F$2:$G$44,2,FALSE)+ROW()-2)),\"\")","v":{"$error":"#N/A"}},{"$f":"IF(INDIRECT(\"c\" & (VLOOKUP(Switch!$D$59,$F$2:$G$44,2,FALSE)+ROW()-2))=Switch!$D$59,INDIRECT(\"a\" & (VLOOKUP(Switch!$D$59,$F$2:$G$44,2,FALSE)+ROW()-2)),\"\")","v":{"$error":"#N/A"}},{"$f":"IF(INDIRECT(\"c\" & (VLOOKUP(Switch!$D$60,$F$2:$G$44,2,FALSE)+ROW()-2))=Switch!$D$60,INDIRECT(\"a\" & (VLOOKUP(Switch!$D$60,$F$2:$G$44,2,FALSE)+ROW()-2)),\"\")","v":{"$error":"#N/A"}},{"$f":"IF(INDIRECT(\"c\" & (VLOOKUP(Switch!$D$61,$F$2:$G$44,2,FALSE)+ROW()-2))=Switch!$D$61,INDIRECT(\"a\" & (VLOOKUP(Switch!$D$61,$F$2:$G$44,2,FALSE)+ROW()-2)),\"\")","v":{"$error":"#N/A"}},{"$f":"IF(INDIRECT(\"c\" & (VLOOKUP(Switch!$D$62,$F$2:$G$44,2,FALSE)+ROW()-2))=Switch!$D$62,INDIRECT(\"a\" & (VLOOKUP(Switch!$D$62,$F$2:$G$44,2,FALSE)+ROW()-2)),\"\")","v":{"$error":"#N/A"}},{"$f":"IF(INDIRECT(\"c\" & (VLOOKUP(Switch!$D$63,$F$2:$G$44,2,FALSE)+ROW()-2))=Switch!$D$63,INDIRECT(\"a\" & (VLOOKUP(Switch!$D$63,$F$2:$G$44,2,FALSE)+ROW()-2)),\"\")","v":{"$error":"#N/A"}},{"$f":"IF(INDIRECT(\"c\" & (VLOOKUP(Switch!$D$64,$F$2:$G$44,2,FALSE)+ROW()-2))=Switch!$D$64,INDIRECT(\"a\" & (VLOOKUP(Switch!$D$64,$F$2:$G$44,2,FALSE)+ROW()-2)),\"\")","v":{"$error":"#N/A"}},{"$f":"IF(INDIRECT(\"c\" & (VLOOKUP(Switch!$D$65,$F$2:$G$44,2,FALSE)+ROW()-2))=Switch!$D$65,INDIRECT(\"a\" & (VLOOKUP(Switch!$D$65,$F$2:$G$44,2,FALSE)+ROW()-2)),\"\")","v":{"$error":"#N/A"}},{"$f":"IF(INDIRECT(\"c\" & (VLOOKUP(Switch!$D$66,$F$2:$G$44,2,FALSE)+ROW()-2))=Switch!$D$66,INDIRECT(\"a\" & (VLOOKUP(Switch!$D$66,$F$2:$G$44,2,FALSE)+ROW()-2)),\"\")","v":{"$error":"#N/A"}}]
["PSG Wealth Income FoF D","PAID","PSG Collective Investments Ltd",{"$f":"ROW()","v":493},null,null,{"$f":"VLOOKUP(F493,$C$2:$D$637,2,FALSE)","v":{"$error":"#N/A"}},{"$f":"IF(INDIRECT(\"c\" & (VLOOKUP(Switch!$D$26,$F$2:$G$44,2,FALSE)+ROW()-2))=Switch!$D$26,INDIRECT(\"a\" & (VLOOKUP(Switch!$D$26,$F$2:$G$44,2,FALSE)+ROW()-2)),\"\")","v":{"$error":"#N/A"}},{"$f":"IF(INDIRECT(\"c\" & (VLOOKUP(Switch!$D$27,$F$2:$G$44,2,FALSE)+ROW()-2))=Switch!$D$27,INDIRECT(\"a\" & (VLOOKUP(Switch!$D$27,$F$2:$G$44,2,FALSE)+ROW()-2)),\"\")","v":{"$error":"#N/A"}},{"$f":"IF(INDIRECT(\"c\" & (VLOOKUP(Switch!$D$28,$F$2:$G$44,2,FALSE)+ROW()-2))=Switch!$D$28,INDIRECT(\"a\" & (VLOOKUP(Switch!$D$28,$F$2:$G$44,2,FALSE)+ROW()-2)),\"\")","v":{"$error":"#N/A"}},{"$f":"IF(INDIRECT(\"c\" & (VLOOKUP(Switch!$D$29,$F$2:$G$44,2,FALSE)+ROW()-2))=Switch!$D$29,INDIRECT(\"a\" & (VLOOKUP(Switch!$D$29,$F$2:$G$44,2,FALSE)+ROW()-2)),\"\")","v":{"$error":"#N/A"}},{"$f":"IF(INDIRECT(\"c\" & (VLOOKUP(Switch!$D$30,$F$2:$G$44,2,FALSE)+ROW()-2))=Switch!$D$30,INDIRECT(\"a\" & (VLOOKUP(Switch!$D$30,$F$2:$G$44,2,FALSE)+ROW()-2)),\"\")","v":{"$error":"#N/A"}},{"$f":"IF(INDIRECT(\"c\" & (VLOOKUP(Switch!$D$31,$F$2:$G$44,2,FALSE)+ROW()-2))=Switch!$D$31,INDIRECT(\"a\" & (VLOOKUP(Switch!$D$31,$F$2:$G$44,2,FALSE)+ROW()-2)),\"\")","v":{"$error":"#N/A"}},{"$f":"IF(INDIRECT(\"c\" & (VLOOKUP(Switch!$D$32,$F$2:$G$44,2,FALSE)+ROW()-2))=Switch!$D$32,INDIRECT(\"a\" & (VLOOKUP(Switch!$D$32,$F$2:$G$44,2,FALSE)+ROW()-2)),\"\")","v":{"$error":"#N/A"}},{"$f":"IF(INDIRECT(\"c\" & (VLOOKUP(Switch!$D$33,$F$2:$G$44,2,FALSE)+ROW()-2))=Switch!$D$33,INDIRECT(\"a\" & (VLOOKUP(Switch!$D$33,$F$2:$G$44,2,FALSE)+ROW()-2)),\"\")","v":{"$error":"#N/A"}},{"$f":"IF(INDIRECT(\"c\" & (VLOOKUP(Switch!$D$34,$F$2:$G$44,2,FALSE)+ROW()-2))=Switch!$D$34,INDIRECT(\"a\" & (VLOOKUP(Switch!$D$34,$F$2:$G$44,2,FALSE)+ROW()-2)),\"\")","v":{"$error":"#N/A"}},{"$f":"IF(INDIRECT(\"c\" & (VLOOKUP(Switch!$D$35,$F$2:$G$44,2,FALSE)+ROW()-2))=Switch!$D$35,INDIRECT(\"a\" & (VLOOKUP(Switch!$D$35,$F$2:$G$44,2,FALSE)+ROW()-2)),\"\")","v":{"$error":"#N/A"}},{"$f":"IF(INDIRECT(\"c\" & (VLOOKUP(Switch!$D$36,$F$2:$G$44,2,FALSE)+ROW()-2))=Switch!$D$36,INDIRECT(\"a\" & (VLOOKUP(Switch!$D$36,$F$2:$G$44,2,FALSE)+ROW()-2)),\"\")","v":{"$error":"#N/A"}},{"$f":"IF(INDIRECT(\"c\" & (VLOOKUP(Switch!$D$37,$F$2:$G$44,2,FALSE)+ROW()-2))=Switch!$D$37,INDIRECT(\"a\" & (VLOOKUP(Switch!$D$37,$F$2:$G$44,2,FALSE)+ROW()-2)),\"\")","v":{"$error":"#N/A"}},{"$f":"IF(INDIRECT(\"c\" & (VLOOKUP(Switch!$D$38,$F$2:$G$44,2,FALSE)+ROW()-2))=Switch!$D$38,INDIRECT(\"a\" & (VLOOKUP(Switch!$D$38,$F$2:$G$44,2,FALSE)+ROW()-2)),\"\")","v":{"$error":"#N/A"}},{"$f":"IF(INDIRECT(\"c\" & (VLOOKUP(Switch!$D$39,$F$2:$G$44,2,FALSE)+ROW()-2))=Switch!$D$39,INDIRECT(\"a\" & (VLOOKUP(Switch!$D$39,$F$2:$G$44,2,FALSE)+ROW()-2)),\"\")","v":{"$error":"#N/A"}},{"$f":"IF(INDIRECT(\"c\" & (VLOOKUP(Switch!$D$40,$F$2:$G$44,2,FALSE)+ROW()-2))=Switch!$D$40,INDIRECT(\"a\" & (VLOOKUP(Switch!$D$40,$F$2:$G$44,2,FALSE)+ROW()-2)),\"\")","v":{"$error":"#N/A"}},{"$f":"IF(INDIRECT(\"c\" & (VLOOKUP(Switch!$D$52,$F$2:$G$44,2,FALSE)+ROW()-2))=Switch!$D$52,INDIRECT(\"a\" & (VLOOKUP(Switch!$D$52,$F$2:$G$44,2,FALSE)+ROW()-2)),\"\")","v":{"$error":"#N/A"}},{"$f":"IF(INDIRECT(\"c\" & (VLOOKUP(Switch!$D$53,$F$2:$G$44,2,FALSE)+ROW()-2))=Switch!$D$53,INDIRECT(\"a\" & (VLOOKUP(Switch!$D$53,$F$2:$G$44,2,FALSE)+ROW()-2)),\"\")","v":{"$error":"#N/A"}},{"$f":"IF(INDIRECT(\"c\" & (VLOOKUP(Switch!$D$54,$F$2:$G$44,2,FALSE)+ROW()-2))=Switch!$D$54,INDIRECT(\"a\" & (VLOOKUP(Switch!$D$54,$F$2:$G$44,2,FALSE)+ROW()-2)),\"\")","v":{"$error":"#N/A"}},{"$f":"IF(INDIRECT(\"c\" & (VLOOKUP(Switch!$D$55,$F$2:$G$44,2,FALSE)+ROW()-2))=Switch!$D$55,INDIRECT(\"a\" & (VLOOKUP(Switch!$D$55,$F$2:$G$44,2,FALSE)+ROW()-2)),\"\")","v":{"$error":"#N/A"}},{"$f":"IF(INDIRECT(\"c\" & (VLOOKUP(Switch!$D$56,$F$2:$G$44,2,FALSE)+ROW()-2))=Switch!$D$56,INDIRECT(\"a\" & (VLOOKUP(Switch!$D$56,$F$2:$G$44,2,FALSE)+ROW()-2)),\"\")","v":{"$error":"#N/A"}},{"$f":"IF(INDIRECT(\"c\" & (VLOOKUP(Switch!$D$57,$F$2:$G$44,2,FALSE)+ROW()-2))=Switch!$D$57,INDIRECT(\"a\" & (VLOOKUP(Switch!$D$57,$F$2:$G$44,2,FALSE)+ROW()-2)),\"\")","v":{"$error":"#N/A"}},{"$f":"IF(INDIRECT(\"c\" & (VLOOKUP(Switch!$D$58,$F$2:$G$44,2,FALSE)+ROW()-2))=Switch!$D$58,INDIRECT(\"a\" & (VLOOKUP(Switch!$D$58,$F$2:$G$44,2,FALSE)+ROW()-2)),\"\")","v":{"$error":"#N/A"}},{"$f":"IF(INDIRECT(\"c\" & (VLOOKUP(Switch!$D$59,$F$2:$G$44,2,FALSE)+ROW()-2))=Switch!$D$59,INDIRECT(\"a\" & (VLOOKUP(Switch!$D$59,$F$2:$G$44,2,FALSE)+ROW()-2)),\"\")","v":{"$error":"#N/A"}},{"$f":"IF(INDIRECT(\"c\" & (VLOOKUP(Switch!$D$60,$F$2:$G$44,2,FALSE)+ROW()-2))=Switch!$D$60,INDIRECT(\"a\" & (VLOOKUP(Switch!$D$60,$F$2:$G$44,2,FALSE)+ROW()-2)),\"\")","v":{"$error":"#N/A"}},{"$f":"IF(INDIRECT(\"c\" & (VLOOKUP(Switch!$D$61,$F$2:$G$44,2,FALSE)+ROW()-2))=Switch!$D$61,INDIRECT(\"a\" & (VLOOKUP(Switch!$D$61,$F$2:$G$44,2,FALSE)+ROW()-2)),\"\")","v":{"$error":"#N/A"}},{"$f":"IF(INDIRECT(\"c\" & (VLOOKUP(Switch!$D$62,$F$2:$G$44,2,FALSE)+ROW()-2))=Switch!$D$62,INDIRECT(\"a\" & (VLOOKUP(Switch!$D$62,$F$2:$G$44,2,FALSE)+ROW()-2)),\"\")","v":{"$error":"#N/A"}},{"$f":"IF(INDIRECT(\"c\" & (VLOOKUP(Switch!$D$63,$F$2:$G$44,2,FALSE)+ROW()-2))=Switch!$D$63,INDIRECT(\"a\" & (VLOOKUP(Switch!$D$63,$F$2:$G$44,2,FALSE)+ROW()-2)),\"\")","v":{"$error":"#N/A"}},{"$f":"IF(INDIRECT(\"c\" & (VLOOKUP(Switch!$D$64,$F$2:$G$44,2,FALSE)+ROW()-2))=Switch!$D$64,INDIRECT(\"a\" & (VLOOKUP(Switch!$D$64,$F$2:$G$44,2,FALSE)+ROW()-2)),\"\")","v":{"$error":"#N/A"}},{"$f":"IF(INDIRECT(\"c\" & (VLOOKUP(Switch!$D$65,$F$2:$G$44,2,FALSE)+ROW()-2))=Switch!$D$65,INDIRECT(\"a\" & (VLOOKUP(Switch!$D$65,$F$2:$G$44,2,FALSE)+ROW()-2)),\"\")","v":{"$error":"#N/A"}},{"$f":"IF(INDIRECT(\"c\" & (VLOOKUP(Switch!$D$66,$F$2:$G$44,2,FALSE)+ROW()-2))=Switch!$D$66,INDIRECT(\"a\" & (VLOOKUP(Switch!$D$66,$F$2:$G$44,2,FALSE)+ROW()-2)),\"\")","v":{"$error":"#N/A"}}]
["PSG Wealth Moderate FoF A","PWMD","PSG Collective Investments Ltd",{"$f":"ROW()","v":494},null,null,{"$f":"VLOOKUP(F494,$C$2:$D$637,2,FALSE)","v":{"$error":"#N/A"}},{"$f":"IF(INDIRECT(\"c\" & (VLOOKUP(Switch!$D$26,$F$2:$G$43,2,FALSE)+ROW()-2))=Switch!$D$26,INDIRECT(\"a\" & (VLOOKUP(Switch!$D$26,$F$2:$G$43,2,FALSE)+ROW()-2)),\"\")","v":{"$error":"#N/A"}},{"$f":"IF(INDIRECT(\"c\" & (VLOOKUP(Switch!$D$27,$F$2:$G$43,2,FALSE)+ROW()-2))=Switch!$D$27,INDIRECT(\"a\" & (VLOOKUP(Switch!$D$27,$F$2:$G$43,2,FALSE)+ROW()-2)),\"\")","v":{"$error":"#N/A"}},{"$f":"IF(INDIRECT(\"c\" & (VLOOKUP(Switch!$D$28,$F$2:$G$43,2,FALSE)+ROW()-2))=Switch!$D$28,INDIRECT(\"a\" & (VLOOKUP(Switch!$D$28,$F$2:$G$43,2,FALSE)+ROW()-2)),\"\")","v":{"$error":"#N/A"}},{"$f":"IF(INDIRECT(\"c\" & (VLOOKUP(Switch!$D$29,$F$2:$G$43,2,FALSE)+ROW()-2))=Switch!$D$29,INDIRECT(\"a\" & (VLOOKUP(Switch!$D$29,$F$2:$G$43,2,FALSE)+ROW()-2)),\"\")","v":{"$error":"#N/A"}},{"$f":"IF(INDIRECT(\"c\" & (VLOOKUP(Switch!$D$30,$F$2:$G$43,2,FALSE)+ROW()-2))=Switch!$D$30,INDIRECT(\"a\" & (VLOOKUP(Switch!$D$30,$F$2:$G$43,2,FALSE)+ROW()-2)),\"\")","v":{"$error":"#N/A"}},{"$f":"IF(INDIRECT(\"c\" & (VLOOKUP(Switch!$D$31,$F$2:$G$43,2,FALSE)+ROW()-2))=Switch!$D$31,INDIRECT(\"a\" & (VLOOKUP(Switch!$D$31,$F$2:$G$43,2,FALSE)+ROW()-2)),\"\")","v":{"$error":"#N/A"}},{"$f":"IF(INDIRECT(\"c\" & (VLOOKUP(Switch!$D$32,$F$2:$G$43,2,FALSE)+ROW()-2))=Switch!$D$32,INDIRECT(\"a\" & (VLOOKUP(Switch!$D$32,$F$2:$G$43,2,FALSE)+ROW()-2)),\"\")","v":{"$error":"#N/A"}},{"$f":"IF(INDIRECT(\"c\" & (VLOOKUP(Switch!$D$33,$F$2:$G$43,2,FALSE)+ROW()-2))=Switch!$D$33,INDIRECT(\"a\" & (VLOOKUP(Switch!$D$33,$F$2:$G$43,2,FALSE)+ROW()-2)),\"\")","v":{"$error":"#N/A"}},{"$f":"IF(INDIRECT(\"c\" & (VLOOKUP(Switch!$D$34,$F$2:$G$43,2,FALSE)+ROW()-2))=Switch!$D$34,INDIRECT(\"a\" & (VLOOKUP(Switch!$D$34,$F$2:$G$43,2,FALSE)+ROW()-2)),\"\")","v":{"$error":"#N/A"}},{"$f":"IF(INDIRECT(\"c\" & (VLOOKUP(Switch!$D$35,$F$2:$G$43,2,FALSE)+ROW()-2))=Switch!$D$35,INDIRECT(\"a\" & (VLOOKUP(Switch!$D$35,$F$2:$G$43,2,FALSE)+ROW()-2)),\"\")","v":{"$error":"#N/A"}},{"$f":"IF(INDIRECT(\"c\" & (VLOOKUP(Switch!$D$36,$F$2:$G$43,2,FALSE)+ROW()-2))=Switch!$D$36,INDIRECT(\"a\" & (VLOOKUP(Switch!$D$36,$F$2:$G$43,2,FALSE)+ROW()-2)),\"\")","v":{"$error":"#N/A"}},{"$f":"IF(INDIRECT(\"c\" & (VLOOKUP(Switch!$D$37,$F$2:$G$43,2,FALSE)+ROW()-2))=Switch!$D$37,INDIRECT(\"a\" & (VLOOKUP(Switch!$D$37,$F$2:$G$43,2,FALSE)+ROW()-2)),\"\")","v":{"$error":"#N/A"}},{"$f":"IF(INDIRECT(\"c\" & (VLOOKUP(Switch!$D$38,$F$2:$G$43,2,FALSE)+ROW()-2))=Switch!$D$38,INDIRECT(\"a\" & (VLOOKUP(Switch!$D$38,$F$2:$G$43,2,FALSE)+ROW()-2)),\"\")","v":{"$error":"#N/A"}},{"$f":"IF(INDIRECT(\"c\" & (VLOOKUP(Switch!$D$39,$F$2:$G$43,2,FALSE)+ROW()-2))=Switch!$D$39,INDIRECT(\"a\" & (VLOOKUP(Switch!$D$39,$F$2:$G$43,2,FALSE)+ROW()-2)),\"\")","v":{"$error":"#N/A"}},{"$f":"IF(INDIRECT(\"c\" & (VLOOKUP(Switch!$D$40,$F$2:$G$43,2,FALSE)+ROW()-2))=Switch!$D$40,INDIRECT(\"a\" & (VLOOKUP(Switch!$D$40,$F$2:$G$43,2,FALSE)+ROW()-2)),\"\")","v":{"$error":"#N/A"}},{"$f":"IF(INDIRECT(\"c\" & (VLOOKUP(Switch!$D$52,$F$2:$G$43,2,FALSE)+ROW()-2))=Switch!$D$52,INDIRECT(\"a\" & (VLOOKUP(Switch!$D$52,$F$2:$G$43,2,FALSE)+ROW()-2)),\"\")","v":{"$error":"#N/A"}},{"$f":"IF(INDIRECT(\"c\" & (VLOOKUP(Switch!$D$53,$F$2:$G$43,2,FALSE)+ROW()-2))=Switch!$D$53,INDIRECT(\"a\" & (VLOOKUP(Switch!$D$53,$F$2:$G$43,2,FALSE)+ROW()-2)),\"\")","v":{"$error":"#N/A"}},{"$f":"IF(INDIRECT(\"c\" & (VLOOKUP(Switch!$D$54,$F$2:$G$43,2,FALSE)+ROW()-2))=Switch!$D$54,INDIRECT(\"a\" & (VLOOKUP(Switch!$D$54,$F$2:$G$43,2,FALSE)+ROW()-2)),\"\")","v":{"$error":"#N/A"}},{"$f":"IF(INDIRECT(\"c\" & (VLOOKUP(Switch!$D$55,$F$2:$G$43,2,FALSE)+ROW()-2))=Switch!$D$55,INDIRECT(\"a\" & (VLOOKUP(Switch!$D$55,$F$2:$G$43,2,FALSE)+ROW()-2)),\"\")","v":{"$error":"#N/A"}},{"$f":"IF(INDIRECT(\"c\" & (VLOOKUP(Switch!$D$56,$F$2:$G$43,2,FALSE)+ROW()-2))=Switch!$D$56,INDIRECT(\"a\" & (VLOOKUP(Switch!$D$56,$F$2:$G$43,2,FALSE)+ROW()-2)),\"\")","v":{"$error":"#N/A"}},{"$f":"IF(INDIRECT(\"c\" & (VLOOKUP(Switch!$D$57,$F$2:$G$43,2,FALSE)+ROW()-2))=Switch!$D$57,INDIRECT(\"a\" & (VLOOKUP(Switch!$D$57,$F$2:$G$43,2,FALSE)+ROW()-2)),\"\")","v":{"$error":"#N/A"}},{"$f":"IF(INDIRECT(\"c\" & (VLOOKUP(Switch!$D$58,$F$2:$G$43,2,FALSE)+ROW()-2))=Switch!$D$58,INDIRECT(\"a\" & (VLOOKUP(Switch!$D$58,$F$2:$G$43,2,FALSE)+ROW()-2)),\"\")","v":{"$error":"#N/A"}},{"$f":"IF(INDIRECT(\"c\" & (VLOOKUP(Switch!$D$59,$F$2:$G$43,2,FALSE)+ROW()-2))=Switch!$D$59,INDIRECT(\"a\" & (VLOOKUP(Switch!$D$59,$F$2:$G$43,2,FALSE)+ROW()-2)),\"\")","v":{"$error":"#N/A"}},{"$f":"IF(INDIRECT(\"c\" & (VLOOKUP(Switch!$D$60,$F$2:$G$43,2,FALSE)+ROW()-2))=Switch!$D$60,INDIRECT(\"a\" & (VLOOKUP(Switch!$D$60,$F$2:$G$43,2,FALSE)+ROW()-2)),\"\")","v":{"$error":"#N/A"}},{"$f":"IF(INDIRECT(\"c\" & (VLOOKUP(Switch!$D$61,$F$2:$G$43,2,FALSE)+ROW()-2))=Switch!$D$61,INDIRECT(\"a\" & (VLOOKUP(Switch!$D$61,$F$2:$G$43,2,FALSE)+ROW()-2)),\"\")","v":{"$error":"#N/A"}},{"$f":"IF(INDIRECT(\"c\" & (VLOOKUP(Switch!$D$62,$F$2:$G$43,2,FALSE)+ROW()-2))=Switch!$D$62,INDIRECT(\"a\" & (VLOOKUP(Switch!$D$62,$F$2:$G$43,2,FALSE)+ROW()-2)),\"\")","v":{"$error":"#N/A"}},{"$f":"IF(INDIRECT(\"c\" & (VLOOKUP(Switch!$D$63,$F$2:$G$43,2,FALSE)+ROW()-2))=Switch!$D$63,INDIRECT(\"a\" & (VLOOKUP(Switch!$D$63,$F$2:$G$43,2,FALSE)+ROW()-2)),\"\")","v":{"$error":"#N/A"}},{"$f":"IF(INDIRECT(\"c\" & (VLOOKUP(Switch!$D$64,$F$2:$G$43,2,FALSE)+ROW()-2))=Switch!$D$64,INDIRECT(\"a\" & (VLOOKUP(Switch!$D$64,$F$2:$G$43,2,FALSE)+ROW()-2)),\"\")","v":{"$error":"#N/A"}},{"$f":"IF(INDIRECT(\"c\" & (VLOOKUP(Switch!$D$65,$F$2:$G$43,2,FALSE)+ROW()-2))=Switch!$D$65,INDIRECT(\"a\" & (VLOOKUP(Switch!$D$65,$F$2:$G$43,2,FALSE)+ROW()-2)),\"\")","v":{"$error":"#N/A"}},{"$f":"IF(INDIRECT(\"c\" & (VLOOKUP(Switch!$D$66,$F$2:$G$43,2,FALSE)+ROW()-2))=Switch!$D$66,INDIRECT(\"a\" & (VLOOKUP(Switch!$D$66,$F$2:$G$43,2,FALSE)+ROW()-2)),\"\")","v":{"$error":"#N/A"}}]
["PSG Wealth Moderate FoF B","PWMD","PSG Collective Investments Ltd",{"$f":"ROW()","v":495},null,null,{"$f":"VLOOKUP(F495,$C$2:$D$637,2,FALSE)","v":{"$error":"#N/A"}},{"$f":"IF(INDIRECT(\"c\" & (VLOOKUP(Switch!$D$26,$F$2:$G$43,2,FALSE)+ROW()-2))=Switch!$D$26,INDIRECT(\"a\" & (VLOOKUP(Switch!$D$26,$F$2:$G$43,2,FALSE)+ROW()-2)),\"\")","v":{"$error":"#N/A"}},{"$f":"IF(INDIRECT(\"c\" & (VLOOKUP(Switch!$D$27,$F$2:$G$43,2,FALSE)+ROW()-2))=Switch!$D$27,INDIRECT(\"a\" & (VLOOKUP(Switch!$D$27,$F$2:$G$43,2,FALSE)+ROW()-2)),\"\")","v":{"$error":"#N/A"}},{"$f":"IF(INDIRECT(\"c\" & (VLOOKUP(Switch!$D$28,$F$2:$G$43,2,FALSE)+ROW()-2))=Switch!$D$28,INDIRECT(\"a\" & (VLOOKUP(Switch!$D$28,$F$2:$G$43,2,FALSE)+ROW()-2)),\"\")","v":{"$error":"#N/A"}},{"$f":"IF(INDIRECT(\"c\" & (VLOOKUP(Switch!$D$29,$F$2:$G$43,2,FALSE)+ROW()-2))=Switch!$D$29,INDIRECT(\"a\" & (VLOOKUP(Switch!$D$29,$F$2:$G$43,2,FALSE)+ROW()-2)),\"\")","v":{"$error":"#N/A"}},{"$f":"IF(INDIRECT(\"c\" & (VLOOKUP(Switch!$D$30,$F$2:$G$43,2,FALSE)+ROW()-2))=Switch!$D$30,INDIRECT(\"a\" & (VLOOKUP(Switch!$D$30,$F$2:$G$43,2,FALSE)+ROW()-2)),\"\")","v":{"$error":"#N/A"}},{"$f":"IF(INDIRECT(\"c\" & (VLOOKUP(Switch!$D$31,$F$2:$G$43,2,FALSE)+ROW()-2))=Switch!$D$31,INDIRECT(\"a\" & (VLOOKUP(Switch!$D$31,$F$2:$G$43,2,FALSE)+ROW()-2)),\"\")","v":{"$error":"#N/A"}},{"$f":"IF(INDIRECT(\"c\" & (VLOOKUP(Switch!$D$32,$F$2:$G$43,2,FALSE)+ROW()-2))=Switch!$D$32,INDIRECT(\"a\" & (VLOOKUP(Switch!$D$32,$F$2:$G$43,2,FALSE)+ROW()-2)),\"\")","v":{"$error":"#N/A"}},{"$f":"IF(INDIRECT(\"c\" & (VLOOKUP(Switch!$D$33,$F$2:$G$43,2,FALSE)+ROW()-2))=Switch!$D$33,INDIRECT(\"a\" & (VLOOKUP(Switch!$D$33,$F$2:$G$43,2,FALSE)+ROW()-2)),\"\")","v":{"$error":"#N/A"}},{"$f":"IF(INDIRECT(\"c\" & (VLOOKUP(Switch!$D$34,$F$2:$G$43,2,FALSE)+ROW()-2))=Switch!$D$34,INDIRECT(\"a\" & (VLOOKUP(Switch!$D$34,$F$2:$G$43,2,FALSE)+ROW()-2)),\"\")","v":{"$error":"#N/A"}},{"$f":"IF(INDIRECT(\"c\" & (VLOOKUP(Switch!$D$35,$F$2:$G$43,2,FALSE)+ROW()-2))=Switch!$D$35,INDIRECT(\"a\" & (VLOOKUP(Switch!$D$35,$F$2:$G$43,2,FALSE)+ROW()-2)),\"\")","v":{"$error":"#N/A"}},{"$f":"IF(INDIRECT(\"c\" & (VLOOKUP(Switch!$D$36,$F$2:$G$43,2,FALSE)+ROW()-2))=Switch!$D$36,INDIRECT(\"a\" & (VLOOKUP(Switch!$D$36,$F$2:$G$43,2,FALSE)+ROW()-2)),\"\")","v":{"$error":"#N/A"}},{"$f":"IF(INDIRECT(\"c\" & (VLOOKUP(Switch!$D$37,$F$2:$G$43,2,FALSE)+ROW()-2))=Switch!$D$37,INDIRECT(\"a\" & (VLOOKUP(Switch!$D$37,$F$2:$G$43,2,FALSE)+ROW()-2)),\"\")","v":{"$error":"#N/A"}},{"$f":"IF(INDIRECT(\"c\" & (VLOOKUP(Switch!$D$38,$F$2:$G$43,2,FALSE)+ROW()-2))=Switch!$D$38,INDIRECT(\"a\" & (VLOOKUP(Switch!$D$38,$F$2:$G$43,2,FALSE)+ROW()-2)),\"\")","v":{"$error":"#N/A"}},{"$f":"IF(INDIRECT(\"c\" & (VLOOKUP(Switch!$D$39,$F$2:$G$43,2,FALSE)+ROW()-2))=Switch!$D$39,INDIRECT(\"a\" & (VLOOKUP(Switch!$D$39,$F$2:$G$43,2,FALSE)+ROW()-2)),\"\")","v":{"$error":"#N/A"}},{"$f":"IF(INDIRECT(\"c\" & (VLOOKUP(Switch!$D$40,$F$2:$G$43,2,FALSE)+ROW()-2))=Switch!$D$40,INDIRECT(\"a\" & (VLOOKUP(Switch!$D$40,$F$2:$G$43,2,FALSE)+ROW()-2)),\"\")","v":{"$error":"#N/A"}},{"$f":"IF(INDIRECT(\"c\" & (VLOOKUP(Switch!$D$52,$F$2:$G$43,2,FALSE)+ROW()-2))=Switch!$D$52,INDIRECT(\"a\" & (VLOOKUP(Switch!$D$52,$F$2:$G$43,2,FALSE)+ROW()-2)),\"\")","v":{"$error":"#N/A"}},{"$f":"IF(INDIRECT(\"c\" & (VLOOKUP(Switch!$D$53,$F$2:$G$43,2,FALSE)+ROW()-2))=Switch!$D$53,INDIRECT(\"a\" & (VLOOKUP(Switch!$D$53,$F$2:$G$43,2,FALSE)+ROW()-2)),\"\")","v":{"$error":"#N/A"}},{"$f":"IF(INDIRECT(\"c\" & (VLOOKUP(Switch!$D$54,$F$2:$G$43,2,FALSE)+ROW()-2))=Switch!$D$54,INDIRECT(\"a\" & (VLOOKUP(Switch!$D$54,$F$2:$G$43,2,FALSE)+ROW()-2)),\"\")","v":{"$error":"#N/A"}},{"$f":"IF(INDIRECT(\"c\" & (VLOOKUP(Switch!$D$55,$F$2:$G$43,2,FALSE)+ROW()-2))=Switch!$D$55,INDIRECT(\"a\" & (VLOOKUP(Switch!$D$55,$F$2:$G$43,2,FALSE)+ROW()-2)),\"\")","v":{"$error":"#N/A"}},{"$f":"IF(INDIRECT(\"c\" & (VLOOKUP(Switch!$D$56,$F$2:$G$43,2,FALSE)+ROW()-2))=Switch!$D$56,INDIRECT(\"a\" & (VLOOKUP(Switch!$D$56,$F$2:$G$43,2,FALSE)+ROW()-2)),\"\")","v":{"$error":"#N/A"}},{"$f":"IF(INDIRECT(\"c\" & (VLOOKUP(Switch!$D$57,$F$2:$G$43,2,FALSE)+ROW()-2))=Switch!$D$57,INDIRECT(\"a\" & (VLOOKUP(Switch!$D$57,$F$2:$G$43,2,FALSE)+ROW()-2)),\"\")","v":{"$error":"#N/A"}},{"$f":"IF(INDIRECT(\"c\" & (VLOOKUP(Switch!$D$58,$F$2:$G$43,2,FALSE)+ROW()-2))=Switch!$D$58,INDIRECT(\"a\" & (VLOOKUP(Switch!$D$58,$F$2:$G$43,2,FALSE)+ROW()-2)),\"\")","v":{"$error":"#N/A"}},{"$f":"IF(INDIRECT(\"c\" & (VLOOKUP(Switch!$D$59,$F$2:$G$43,2,FALSE)+ROW()-2))=Switch!$D$59,INDIRECT(\"a\" & (VLOOKUP(Switch!$D$59,$F$2:$G$43,2,FALSE)+ROW()-2)),\"\")","v":{"$error":"#N/A"}},{"$f":"IF(INDIRECT(\"c\" & (VLOOKUP(Switch!$D$60,$F$2:$G$43,2,FALSE)+ROW()-2))=Switch!$D$60,INDIRECT(\"a\" & (VLOOKUP(Switch!$D$60,$F$2:$G$43,2,FALSE)+ROW()-2)),\"\")","v":{"$error":"#N/A"}},{"$f":"IF(INDIRECT(\"c\" & (VLOOKUP(Switch!$D$61,$F$2:$G$43,2,FALSE)+ROW()-2))=Switch!$D$61,INDIRECT(\"a\" & (VLOOKUP(Switch!$D$61,$F$2:$G$43,2,FALSE)+ROW()-2)),\"\")","v":{"$error":"#N/A"}},{"$f":"IF(INDIRECT(\"c\" & (VLOOKUP(Switch!$D$62,$F$2:$G$43,2,FALSE)+ROW()-2))=Switch!$D$62,INDIRECT(\"a\" & (VLOOKUP(Switch!$D$62,$F$2:$G$43,2,FALSE)+ROW()-2)),\"\")","v":{"$error":"#N/A"}},{"$f":"IF(INDIRECT(\"c\" & (VLOOKUP(Switch!$D$63,$F$2:$G$43,2,FALSE)+ROW()-2))=Switch!$D$63,INDIRECT(\"a\" & (VLOOKUP(Switch!$D$63,$F$2:$G$43,2,FALSE)+ROW()-2)),\"\")","v":{"$error":"#N/A"}},{"$f":"IF(INDIRECT(\"c\" & (VLOOKUP(Switch!$D$64,$F$2:$G$43,2,FALSE)+ROW()-2))=Switch!$D$64,INDIRECT(\"a\" & (VLOOKUP(Switch!$D$64,$F$2:$G$43,2,FALSE)+ROW()-2)),\"\")","v":{"$error":"#N/A"}},{"$f":"IF(INDIRECT(\"c\" & (VLOOKUP(Switch!$D$65,$F$2:$G$43,2,FALSE)+ROW()-2))=Switch!$D$65,INDIRECT(\"a\" & (VLOOKUP(Switch!$D$65,$F$2:$G$43,2,FALSE)+ROW()-2)),\"\")","v":{"$error":"#N/A"}},{"$f":"IF(INDIRECT(\"c\" & (VLOOKUP(Switch!$D$66,$F$2:$G$43,2,FALSE)+ROW()-2))=Switch!$D$66,INDIRECT(\"a\" & (VLOOKUP(Switch!$D$66,$F$2:$G$43,2,FALSE)+ROW()-2)),\"\")","v":{"$error":"#N/A"}}]
["PSG Wealth Moderate FoF D","PWMD","PSG Collective Investments Ltd",{"$f":"ROW()","v":496},null,null,{"$f":"VLOOKUP(F496,$C$2:$D$637,2,FALSE)","v":{"$error":"#N/A"}},{"$f":"IF(INDIRECT(\"c\" & (VLOOKUP(Switch!$D$26,$F$2:$G$43,2,FALSE)+ROW()-2))=Switch!$D$26,INDIRECT(\"a\" & (VLOOKUP(Switch!$D$26,$F$2:$G$43,2,FALSE)+ROW()-2)),\"\")","v":{"$error":"#N/A"}},{"$f":"IF(INDIRECT(\"c\" & (VLOOKUP(Switch!$D$27,$F$2:$G$43,2,FALSE)+ROW()-2))=Switch!$D$27,INDIRECT(\"a\" & (VLOOKUP(Switch!$D$27,$F$2:$G$43,2,FALSE)+ROW()-2)),\"\")","v":{"$error":"#N/A"}},{"$f":"IF(INDIRECT(\"c\" & (VLOOKUP(Switch!$D$28,$F$2:$G$43,2,FALSE)+ROW()-2))=Switch!$D$28,INDIRECT(\"a\" & (VLOOKUP(Switch!$D$28,$F$2:$G$43,2,FALSE)+ROW()-2)),\"\")","v":{"$error":"#N/A"}},{"$f":"IF(INDIRECT(\"c\" & (VLOOKUP(Switch!$D$29,$F$2:$G$43,2,FALSE)+ROW()-2))=Switch!$D$29,INDIRECT(\"a\" & (VLOOKUP(Switch!$D$29,$F$2:$G$43,2,FALSE)+ROW()-2)),\"\")","v":{"$error":"#N/A"}},{"$f":"IF(INDIRECT(\"c\" & (VLOOKUP(Switch!$D$30,$F$2:$G$43,2,FALSE)+ROW()-2))=Switch!$D$30,INDIRECT(\"a\" & (VLOOKUP(Switch!$D$30,$F$2:$G$43,2,FALSE)+ROW()-2)),\"\")","v":{"$error":"#N/A"}},{"$f":"IF(INDIRECT(\"c\" & (VLOOKUP(Switch!$D$31,$F$2:$G$43,2,FALSE)+ROW()-2))=Switch!$D$31,INDIRECT(\"a\" & (VLOOKUP(Switch!$D$31,$F$2:$G$43,2,FALSE)+ROW()-2)),\"\")","v":{"$error":"#N/A"}},{"$f":"IF(INDIRECT(\"c\" & (VLOOKUP(Switch!$D$32,$F$2:$G$43,2,FALSE)+ROW()-2))=Switch!$D$32,INDIRECT(\"a\" & (VLOOKUP(Switch!$D$32,$F$2:$G$43,2,FALSE)+ROW()-2)),\"\")","v":{"$error":"#N/A"}},{"$f":"IF(INDIRECT(\"c\" & (VLOOKUP(Switch!$D$33,$F$2:$G$43,2,FALSE)+ROW()-2))=Switch!$D$33,INDIRECT(\"a\" & (VLOOKUP(Switch!$D$33,$F$2:$G$43,2,FALSE)+ROW()-2)),\"\")","v":{"$error":"#N/A"}},{"$f":"IF(INDIRECT(\"c\" & (VLOOKUP(Switch!$D$34,$F$2:$G$43,2,FALSE)+ROW()-2))=Switch!$D$34,INDIRECT(\"a\" & (VLOOKUP(Switch!$D$34,$F$2:$G$43,2,FALSE)+ROW()-2)),\"\")","v":{"$error":"#N/A"}},{"$f":"IF(INDIRECT(\"c\" & (VLOOKUP(Switch!$D$35,$F$2:$G$43,2,FALSE)+ROW()-2))=Switch!$D$35,INDIRECT(\"a\" & (VLOOKUP(Switch!$D$35,$F$2:$G$43,2,FALSE)+ROW()-2)),\"\")","v":{"$error":"#N/A"}},{"$f":"IF(INDIRECT(\"c\" & (VLOOKUP(Switch!$D$36,$F$2:$G$43,2,FALSE)+ROW()-2))=Switch!$D$36,INDIRECT(\"a\" & (VLOOKUP(Switch!$D$36,$F$2:$G$43,2,FALSE)+ROW()-2)),\"\")","v":{"$error":"#N/A"}},{"$f":"IF(INDIRECT(\"c\" & (VLOOKUP(Switch!$D$37,$F$2:$G$43,2,FALSE)+ROW()-2))=Switch!$D$37,INDIRECT(\"a\" & (VLOOKUP(Switch!$D$37,$F$2:$G$43,2,FALSE)+ROW()-2)),\"\")","v":{"$error":"#N/A"}},{"$f":"IF(INDIRECT(\"c\" & (VLOOKUP(Switch!$D$38,$F$2:$G$43,2,FALSE)+ROW()-2))=Switch!$D$38,INDIRECT(\"a\" & (VLOOKUP(Switch!$D$38,$F$2:$G$43,2,FALSE)+ROW()-2)),\"\")","v":{"$error":"#N/A"}},{"$f":"IF(INDIRECT(\"c\" & (VLOOKUP(Switch!$D$39,$F$2:$G$43,2,FALSE)+ROW()-2))=Switch!$D$39,INDIRECT(\"a\" & (VLOOKUP(Switch!$D$39,$F$2:$G$43,2,FALSE)+ROW()-2)),\"\")","v":{"$error":"#N/A"}},{"$f":"IF(INDIRECT(\"c\" & (VLOOKUP(Switch!$D$40,$F$2:$G$43,2,FALSE)+ROW()-2))=Switch!$D$40,INDIRECT(\"a\" & (VLOOKUP(Switch!$D$40,$F$2:$G$43,2,FALSE)+ROW()-2)),\"\")","v":{"$error":"#N/A"}},{"$f":"IF(INDIRECT(\"c\" & (VLOOKUP(Switch!$D$52,$F$2:$G$43,2,FALSE)+ROW()-2))=Switch!$D$52,INDIRECT(\"a\" & (VLOOKUP(Switch!$D$52,$F$2:$G$43,2,FALSE)+ROW()-2)),\"\")","v":{"$error":"#N/A"}},{"$f":"IF(INDIRECT(\"c\" & (VLOOKUP(Switch!$D$53,$F$2:$G$43,2,FALSE)+ROW()-2))=Switch!$D$53,INDIRECT(\"a\" & (VLOOKUP(Switch!$D$53,$F$2:$G$43,2,FALSE)+ROW()-2)),\"\")","v":{"$error":"#N/A"}},{"$f":"IF(INDIRECT(\"c\" & (VLOOKUP(Switch!$D$54,$F$2:$G$43,2,FALSE)+ROW()-2))=Switch!$D$54,INDIRECT(\"a\" & (VLOOKUP(Switch!$D$54,$F$2:$G$43,2,FALSE)+ROW()-2)),\"\")","v":{"$error":"#N/A"}},{"$f":"IF(INDIRECT(\"c\" & (VLOOKUP(Switch!$D$55,$F$2:$G$43,2,FALSE)+ROW()-2))=Switch!$D$55,INDIRECT(\"a\" & (VLOOKUP(Switch!$D$55,$F$2:$G$43,2,FALSE)+ROW()-2)),\"\")","v":{"$error":"#N/A"}},{"$f":"IF(INDIRECT(\"c\" & (VLOOKUP(Switch!$D$56,$F$2:$G$43,2,FALSE)+ROW()-2))=Switch!$D$56,INDIRECT(\"a\" & (VLOOKUP(Switch!$D$56,$F$2:$G$43,2,FALSE)+ROW()-2)),\"\")","v":{"$error":"#N/A"}},{"$f":"IF(INDIRECT(\"c\" & (VLOOKUP(Switch!$D$57,$F$2:$G$43,2,FALSE)+ROW()-2))=Switch!$D$57,INDIRECT(\"a\" & (VLOOKUP(Switch!$D$57,$F$2:$G$43,2,FALSE)+ROW()-2)),\"\")","v":{"$error":"#N/A"}},{"$f":"IF(INDIRECT(\"c\" & (VLOOKUP(Switch!$D$58,$F$2:$G$43,2,FALSE)+ROW()-2))=Switch!$D$58,INDIRECT(\"a\" & (VLOOKUP(Switch!$D$58,$F$2:$G$43,2,FALSE)+ROW()-2)),\"\")","v":{"$error":"#N/A"}},{"$f":"IF(INDIRECT(\"c\" & (VLOOKUP(Switch!$D$59,$F$2:$G$43,2,FALSE)+ROW()-2))=Switch!$D$59,INDIRECT(\"a\" & (VLOOKUP(Switch!$D$59,$F$2:$G$43,2,FALSE)+ROW()-2)),\"\")","v":{"$error":"#N/A"}},{"$f":"IF(INDIRECT(\"c\" & (VLOOKUP(Switch!$D$60,$F$2:$G$43,2,FALSE)+ROW()-2))=Switch!$D$60,INDIRECT(\"a\" & (VLOOKUP(Switch!$D$60,$F$2:$G$43,2,FALSE)+ROW()-2)),\"\")","v":{"$error":"#N/A"}},{"$f":"IF(INDIRECT(\"c\" & (VLOOKUP(Switch!$D$61,$F$2:$G$43,2,FALSE)+ROW()-2))=Switch!$D$61,INDIRECT(\"a\" & (VLOOKUP(Switch!$D$61,$F$2:$G$43,2,FALSE)+ROW()-2)),\"\")","v":{"$error":"#N/A"}},{"$f":"IF(INDIRECT(\"c\" & (VLOOKUP(Switch!$D$62,$F$2:$G$43,2,FALSE)+ROW()-2))=Switch!$D$62,INDIRECT(\"a\" & (VLOOKUP(Switch!$D$62,$F$2:$G$43,2,FALSE)+ROW()-2)),\"\")","v":{"$error":"#N/A"}},{"$f":"IF(INDIRECT(\"c\" & (VLOOKUP(Switch!$D$63,$F$2:$G$43,2,FALSE)+ROW()-2))=Switch!$D$63,INDIRECT(\"a\" & (VLOOKUP(Switch!$D$63,$F$2:$G$43,2,FALSE)+ROW()-2)),\"\")","v":{"$error":"#N/A"}},{"$f":"IF(INDIRECT(\"c\" & (VLOOKUP(Switch!$D$64,$F$2:$G$43,2,FALSE)+ROW()-2))=Switch!$D$64,INDIRECT(\"a\" & (VLOOKUP(Switch!$D$64,$F$2:$G$43,2,FALSE)+ROW()-2)),\"\")","v":{"$error":"#N/A"}},{"$f":"IF(INDIRECT(\"c\" & (VLOOKUP(Switch!$D$65,$F$2:$G$43,2,FALSE)+ROW()-2))=Switch!$D$65,INDIRECT(\"a\" & (VLOOKUP(Switch!$D$65,$F$2:$G$43,2,FALSE)+ROW()-2)),\"\")","v":{"$error":"#N/A"}},{"$f":"IF(INDIRECT(\"c\" & (VLOOKUP(Switch!$D$66,$F$2:$G$43,2,FALSE)+ROW()-2))=Switch!$D$66,INDIRECT(\"a\" & (VLOOKUP(Switch!$D$66,$F$2:$G$43,2,FALSE)+ROW()-2)),\"\")","v":{"$error":"#N/A"}}]
["PSG Wealth Preserver FoF A","PAPD","PSG Collective Investments Ltd",{"$f":"ROW()","v":497},null,null,{"$f":"VLOOKUP(F497,$C$2:$D$637,2,FALSE)","v":{"$error":"#N/A"}},{"$f":"IF(INDIRECT(\"c\" & (VLOOKUP(Switch!$D$26,$F$2:$G$43,2,FALSE)+ROW()-2))=Switch!$D$26,INDIRECT(\"a\" & (VLOOKUP(Switch!$D$26,$F$2:$G$43,2,FALSE)+ROW()-2)),\"\")","v":{"$error":"#N/A"}},{"$f":"IF(INDIRECT(\"c\" & (VLOOKUP(Switch!$D$27,$F$2:$G$43,2,FALSE)+ROW()-2))=Switch!$D$27,INDIRECT(\"a\" & (VLOOKUP(Switch!$D$27,$F$2:$G$43,2,FALSE)+ROW()-2)),\"\")","v":{"$error":"#N/A"}},{"$f":"IF(INDIRECT(\"c\" & (VLOOKUP(Switch!$D$28,$F$2:$G$43,2,FALSE)+ROW()-2))=Switch!$D$28,INDIRECT(\"a\" & (VLOOKUP(Switch!$D$28,$F$2:$G$43,2,FALSE)+ROW()-2)),\"\")","v":{"$error":"#N/A"}},{"$f":"IF(INDIRECT(\"c\" & (VLOOKUP(Switch!$D$29,$F$2:$G$43,2,FALSE)+ROW()-2))=Switch!$D$29,INDIRECT(\"a\" & (VLOOKUP(Switch!$D$29,$F$2:$G$43,2,FALSE)+ROW()-2)),\"\")","v":{"$error":"#N/A"}},{"$f":"IF(INDIRECT(\"c\" & (VLOOKUP(Switch!$D$30,$F$2:$G$43,2,FALSE)+ROW()-2))=Switch!$D$30,INDIRECT(\"a\" & (VLOOKUP(Switch!$D$30,$F$2:$G$43,2,FALSE)+ROW()-2)),\"\")","v":{"$error":"#N/A"}},{"$f":"IF(INDIRECT(\"c\" & (VLOOKUP(Switch!$D$31,$F$2:$G$43,2,FALSE)+ROW()-2))=Switch!$D$31,INDIRECT(\"a\" & (VLOOKUP(Switch!$D$31,$F$2:$G$43,2,FALSE)+ROW()-2)),\"\")","v":{"$error":"#N/A"}},{"$f":"IF(INDIRECT(\"c\" & (VLOOKUP(Switch!$D$32,$F$2:$G$43,2,FALSE)+ROW()-2))=Switch!$D$32,INDIRECT(\"a\" & (VLOOKUP(Switch!$D$32,$F$2:$G$43,2,FALSE)+ROW()-2)),\"\")","v":{"$error":"#N/A"}},{"$f":"IF(INDIRECT(\"c\" & (VLOOKUP(Switch!$D$33,$F$2:$G$43,2,FALSE)+ROW()-2))=Switch!$D$33,INDIRECT(\"a\" & (VLOOKUP(Switch!$D$33,$F$2:$G$43,2,FALSE)+ROW()-2)),\"\")","v":{"$error":"#N/A"}},{"$f":"IF(INDIRECT(\"c\" & (VLOOKUP(Switch!$D$34,$F$2:$G$43,2,FALSE)+ROW()-2))=Switch!$D$34,INDIRECT(\"a\" & (VLOOKUP(Switch!$D$34,$F$2:$G$43,2,FALSE)+ROW()-2)),\"\")","v":{"$error":"#N/A"}},{"$f":"IF(INDIRECT(\"c\" & (VLOOKUP(Switch!$D$35,$F$2:$G$43,2,FALSE)+ROW()-2))=Switch!$D$35,INDIRECT(\"a\" & (VLOOKUP(Switch!$D$35,$F$2:$G$43,2,FALSE)+ROW()-2)),\"\")","v":{"$error":"#N/A"}},{"$f":"IF(INDIRECT(\"c\" & (VLOOKUP(Switch!$D$36,$F$2:$G$43,2,FALSE)+ROW()-2))=Switch!$D$36,INDIRECT(\"a\" & (VLOOKUP(Switch!$D$36,$F$2:$G$43,2,FALSE)+ROW()-2)),\"\")","v":{"$error":"#N/A"}},{"$f":"IF(INDIRECT(\"c\" & (VLOOKUP(Switch!$D$37,$F$2:$G$43,2,FALSE)+ROW()-2))=Switch!$D$37,INDIRECT(\"a\" & (VLOOKUP(Switch!$D$37,$F$2:$G$43,2,FALSE)+ROW()-2)),\"\")","v":{"$error":"#N/A"}},{"$f":"IF(INDIRECT(\"c\" & (VLOOKUP(Switch!$D$38,$F$2:$G$43,2,FALSE)+ROW()-2))=Switch!$D$38,INDIRECT(\"a\" & (VLOOKUP(Switch!$D$38,$F$2:$G$43,2,FALSE)+ROW()-2)),\"\")","v":{"$error":"#N/A"}},{"$f":"IF(INDIRECT(\"c\" & (VLOOKUP(Switch!$D$39,$F$2:$G$43,2,FALSE)+ROW()-2))=Switch!$D$39,INDIRECT(\"a\" & (VLOOKUP(Switch!$D$39,$F$2:$G$43,2,FALSE)+ROW()-2)),\"\")","v":{"$error":"#N/A"}},{"$f":"IF(INDIRECT(\"c\" & (VLOOKUP(Switch!$D$40,$F$2:$G$43,2,FALSE)+ROW()-2))=Switch!$D$40,INDIRECT(\"a\" & (VLOOKUP(Switch!$D$40,$F$2:$G$43,2,FALSE)+ROW()-2)),\"\")","v":{"$error":"#N/A"}},{"$f":"IF(INDIRECT(\"c\" & (VLOOKUP(Switch!$D$52,$F$2:$G$43,2,FALSE)+ROW()-2))=Switch!$D$52,INDIRECT(\"a\" & (VLOOKUP(Switch!$D$52,$F$2:$G$43,2,FALSE)+ROW()-2)),\"\")","v":{"$error":"#N/A"}},{"$f":"IF(INDIRECT(\"c\" & (VLOOKUP(Switch!$D$53,$F$2:$G$43,2,FALSE)+ROW()-2))=Switch!$D$53,INDIRECT(\"a\" & (VLOOKUP(Switch!$D$53,$F$2:$G$43,2,FALSE)+ROW()-2)),\"\")","v":{"$error":"#N/A"}},{"$f":"IF(INDIRECT(\"c\" & (VLOOKUP(Switch!$D$54,$F$2:$G$43,2,FALSE)+ROW()-2))=Switch!$D$54,INDIRECT(\"a\" & (VLOOKUP(Switch!$D$54,$F$2:$G$43,2,FALSE)+ROW()-2)),\"\")","v":{"$error":"#N/A"}},{"$f":"IF(INDIRECT(\"c\" & (VLOOKUP(Switch!$D$55,$F$2:$G$43,2,FALSE)+ROW()-2))=Switch!$D$55,INDIRECT(\"a\" & (VLOOKUP(Switch!$D$55,$F$2:$G$43,2,FALSE)+ROW()-2)),\"\")","v":{"$error":"#N/A"}},{"$f":"IF(INDIRECT(\"c\" & (VLOOKUP(Switch!$D$56,$F$2:$G$43,2,FALSE)+ROW()-2))=Switch!$D$56,INDIRECT(\"a\" & (VLOOKUP(Switch!$D$56,$F$2:$G$43,2,FALSE)+ROW()-2)),\"\")","v":{"$error":"#N/A"}},{"$f":"IF(INDIRECT(\"c\" & (VLOOKUP(Switch!$D$57,$F$2:$G$43,2,FALSE)+ROW()-2))=Switch!$D$57,INDIRECT(\"a\" & (VLOOKUP(Switch!$D$57,$F$2:$G$43,2,FALSE)+ROW()-2)),\"\")","v":{"$error":"#N/A"}},{"$f":"IF(INDIRECT(\"c\" & (VLOOKUP(Switch!$D$58,$F$2:$G$43,2,FALSE)+ROW()-2))=Switch!$D$58,INDIRECT(\"a\" & (VLOOKUP(Switch!$D$58,$F$2:$G$43,2,FALSE)+ROW()-2)),\"\")","v":{"$error":"#N/A"}},{"$f":"IF(INDIRECT(\"c\" & (VLOOKUP(Switch!$D$59,$F$2:$G$43,2,FALSE)+ROW()-2))=Switch!$D$59,INDIRECT(\"a\" & (VLOOKUP(Switch!$D$59,$F$2:$G$43,2,FALSE)+ROW()-2)),\"\")","v":{"$error":"#N/A"}},{"$f":"IF(INDIRECT(\"c\" & (VLOOKUP(Switch!$D$60,$F$2:$G$43,2,FALSE)+ROW()-2))=Switch!$D$60,INDIRECT(\"a\" & (VLOOKUP(Switch!$D$60,$F$2:$G$43,2,FALSE)+ROW()-2)),\"\")","v":{"$error":"#N/A"}},{"$f":"IF(INDIRECT(\"c\" & (VLOOKUP(Switch!$D$61,$F$2:$G$43,2,FALSE)+ROW()-2))=Switch!$D$61,INDIRECT(\"a\" & (VLOOKUP(Switch!$D$61,$F$2:$G$43,2,FALSE)+ROW()-2)),\"\")","v":{"$error":"#N/A"}},{"$f":"IF(INDIRECT(\"c\" & (VLOOKUP(Switch!$D$62,$F$2:$G$43,2,FALSE)+ROW()-2))=Switch!$D$62,INDIRECT(\"a\" & (VLOOKUP(Switch!$D$62,$F$2:$G$43,2,FALSE)+ROW()-2)),\"\")","v":{"$error":"#N/A"}},{"$f":"IF(INDIRECT(\"c\" & (VLOOKUP(Switch!$D$63,$F$2:$G$43,2,FALSE)+ROW()-2))=Switch!$D$63,INDIRECT(\"a\" & (VLOOKUP(Switch!$D$63,$F$2:$G$43,2,FALSE)+ROW()-2)),\"\")","v":{"$error":"#N/A"}},{"$f":"IF(INDIRECT(\"c\" & (VLOOKUP(Switch!$D$64,$F$2:$G$43,2,FALSE)+ROW()-2))=Switch!$D$64,INDIRECT(\"a\" & (VLOOKUP(Switch!$D$64,$F$2:$G$43,2,FALSE)+ROW()-2)),\"\")","v":{"$error":"#N/A"}},{"$f":"IF(INDIRECT(\"c\" & (VLOOKUP(Switch!$D$65,$F$2:$G$43,2,FALSE)+ROW()-2))=Switch!$D$65,INDIRECT(\"a\" & (VLOOKUP(Switch!$D$65,$F$2:$G$43,2,FALSE)+ROW()-2)),\"\")","v":{"$error":"#N/A"}},{"$f":"IF(INDIRECT(\"c\" & (VLOOKUP(Switch!$D$66,$F$2:$G$43,2,FALSE)+ROW()-2))=Switch!$D$66,INDIRECT(\"a\" & (VLOOKUP(Switch!$D$66,$F$2:$G$43,2,FALSE)+ROW()-2)),\"\")","v":{"$error":"#N/A"}}]
["PSG Wealth Preserver FoF B","PAPD","PSG Collective Investments Ltd",{"$f":"ROW()","v":498},null,null,{"$f":"VLOOKUP(F498,$C$2:$D$637,2,FALSE)","v":{"$error":"#N/A"}},{"$f":"IF(INDIRECT(\"c\" & (VLOOKUP(Switch!$D$26,$F$2:$G$43,2,FALSE)+ROW()-2))=Switch!$D$26,INDIRECT(\"a\" & (VLOOKUP(Switch!$D$26,$F$2:$G$43,2,FALSE)+ROW()-2)),\"\")","v":{"$error":"#N/A"}},{"$f":"IF(INDIRECT(\"c\" & (VLOOKUP(Switch!$D$27,$F$2:$G$43,2,FALSE)+ROW()-2))=Switch!$D$27,INDIRECT(\"a\" & (VLOOKUP(Switch!$D$27,$F$2:$G$43,2,FALSE)+ROW()-2)),\"\")","v":{"$error":"#N/A"}},{"$f":"IF(INDIRECT(\"c\" & (VLOOKUP(Switch!$D$28,$F$2:$G$43,2,FALSE)+ROW()-2))=Switch!$D$28,INDIRECT(\"a\" & (VLOOKUP(Switch!$D$28,$F$2:$G$43,2,FALSE)+ROW()-2)),\"\")","v":{"$error":"#N/A"}},{"$f":"IF(INDIRECT(\"c\" & (VLOOKUP(Switch!$D$29,$F$2:$G$43,2,FALSE)+ROW()-2))=Switch!$D$29,INDIRECT(\"a\" & (VLOOKUP(Switch!$D$29,$F$2:$G$43,2,FALSE)+ROW()-2)),\"\")","v":{"$error":"#N/A"}},{"$f":"IF(INDIRECT(\"c\" & (VLOOKUP(Switch!$D$30,$F$2:$G$43,2,FALSE)+ROW()-2))=Switch!$D$30,INDIRECT(\"a\" & (VLOOKUP(Switch!$D$30,$F$2:$G$43,2,FALSE)+ROW()-2)),\"\")","v":{"$error":"#N/A"}},{"$f":"IF(INDIRECT(\"c\" & (VLOOKUP(Switch!$D$31,$F$2:$G$43,2,FALSE)+ROW()-2))=Switch!$D$31,INDIRECT(\"a\" & (VLOOKUP(Switch!$D$31,$F$2:$G$43,2,FALSE)+ROW()-2)),\"\")","v":{"$error":"#N/A"}},{"$f":"IF(INDIRECT(\"c\" & (VLOOKUP(Switch!$D$32,$F$2:$G$43,2,FALSE)+ROW()-2))=Switch!$D$32,INDIRECT(\"a\" & (VLOOKUP(Switch!$D$32,$F$2:$G$43,2,FALSE)+ROW()-2)),\"\")","v":{"$error":"#N/A"}},{"$f":"IF(INDIRECT(\"c\" & (VLOOKUP(Switch!$D$33,$F$2:$G$43,2,FALSE)+ROW()-2))=Switch!$D$33,INDIRECT(\"a\" & (VLOOKUP(Switch!$D$33,$F$2:$G$43,2,FALSE)+ROW()-2)),\"\")","v":{"$error":"#N/A"}},{"$f":"IF(INDIRECT(\"c\" & (VLOOKUP(Switch!$D$34,$F$2:$G$43,2,FALSE)+ROW()-2))=Switch!$D$34,INDIRECT(\"a\" & (VLOOKUP(Switch!$D$34,$F$2:$G$43,2,FALSE)+ROW()-2)),\"\")","v":{"$error":"#N/A"}},{"$f":"IF(INDIRECT(\"c\" & (VLOOKUP(Switch!$D$35,$F$2:$G$43,2,FALSE)+ROW()-2))=Switch!$D$35,INDIRECT(\"a\" & (VLOOKUP(Switch!$D$35,$F$2:$G$43,2,FALSE)+ROW()-2)),\"\")","v":{"$error":"#N/A"}},{"$f":"IF(INDIRECT(\"c\" & (VLOOKUP(Switch!$D$36,$F$2:$G$43,2,FALSE)+ROW()-2))=Switch!$D$36,INDIRECT(\"a\" & (VLOOKUP(Switch!$D$36,$F$2:$G$43,2,FALSE)+ROW()-2)),\"\")","v":{"$error":"#N/A"}},{"$f":"IF(INDIRECT(\"c\" & (VLOOKUP(Switch!$D$37,$F$2:$G$43,2,FALSE)+ROW()-2))=Switch!$D$37,INDIRECT(\"a\" & (VLOOKUP(Switch!$D$37,$F$2:$G$43,2,FALSE)+ROW()-2)),\"\")","v":{"$error":"#N/A"}},{"$f":"IF(INDIRECT(\"c\" & (VLOOKUP(Switch!$D$38,$F$2:$G$43,2,FALSE)+ROW()-2))=Switch!$D$38,INDIRECT(\"a\" & (VLOOKUP(Switch!$D$38,$F$2:$G$43,2,FALSE)+ROW()-2)),\"\")","v":{"$error":"#N/A"}},{"$f":"IF(INDIRECT(\"c\" & (VLOOKUP(Switch!$D$39,$F$2:$G$43,2,FALSE)+ROW()-2))=Switch!$D$39,INDIRECT(\"a\" & (VLOOKUP(Switch!$D$39,$F$2:$G$43,2,FALSE)+ROW()-2)),\"\")","v":{"$error":"#N/A"}},{"$f":"IF(INDIRECT(\"c\" & (VLOOKUP(Switch!$D$40,$F$2:$G$43,2,FALSE)+ROW()-2))=Switch!$D$40,INDIRECT(\"a\" & (VLOOKUP(Switch!$D$40,$F$2:$G$43,2,FALSE)+ROW()-2)),\"\")","v":{"$error":"#N/A"}},{"$f":"IF(INDIRECT(\"c\" & (VLOOKUP(Switch!$D$52,$F$2:$G$43,2,FALSE)+ROW()-2))=Switch!$D$52,INDIRECT(\"a\" & (VLOOKUP(Switch!$D$52,$F$2:$G$43,2,FALSE)+ROW()-2)),\"\")","v":{"$error":"#N/A"}},{"$f":"IF(INDIRECT(\"c\" & (VLOOKUP(Switch!$D$53,$F$2:$G$43,2,FALSE)+ROW()-2))=Switch!$D$53,INDIRECT(\"a\" & (VLOOKUP(Switch!$D$53,$F$2:$G$43,2,FALSE)+ROW()-2)),\"\")","v":{"$error":"#N/A"}},{"$f":"IF(INDIRECT(\"c\" & (VLOOKUP(Switch!$D$54,$F$2:$G$43,2,FALSE)+ROW()-2))=Switch!$D$54,INDIRECT(\"a\" & (VLOOKUP(Switch!$D$54,$F$2:$G$43,2,FALSE)+ROW()-2)),\"\")","v":{"$error":"#N/A"}},{"$f":"IF(INDIRECT(\"c\" & (VLOOKUP(Switch!$D$55,$F$2:$G$43,2,FALSE)+ROW()-2))=Switch!$D$55,INDIRECT(\"a\" & (VLOOKUP(Switch!$D$55,$F$2:$G$43,2,FALSE)+ROW()-2)),\"\")","v":{"$error":"#N/A"}},{"$f":"IF(INDIRECT(\"c\" & (VLOOKUP(Switch!$D$56,$F$2:$G$43,2,FALSE)+ROW()-2))=Switch!$D$56,INDIRECT(\"a\" & (VLOOKUP(Switch!$D$56,$F$2:$G$43,2,FALSE)+ROW()-2)),\"\")","v":{"$error":"#N/A"}},{"$f":"IF(INDIRECT(\"c\" & (VLOOKUP(Switch!$D$57,$F$2:$G$43,2,FALSE)+ROW()-2))=Switch!$D$57,INDIRECT(\"a\" & (VLOOKUP(Switch!$D$57,$F$2:$G$43,2,FALSE)+ROW()-2)),\"\")","v":{"$error":"#N/A"}},{"$f":"IF(INDIRECT(\"c\" & (VLOOKUP(Switch!$D$58,$F$2:$G$43,2,FALSE)+ROW()-2))=Switch!$D$58,INDIRECT(\"a\" & (VLOOKUP(Switch!$D$58,$F$2:$G$43,2,FALSE)+ROW()-2)),\"\")","v":{"$error":"#N/A"}},{"$f":"IF(INDIRECT(\"c\" & (VLOOKUP(Switch!$D$59,$F$2:$G$43,2,FALSE)+ROW()-2))=Switch!$D$59,INDIRECT(\"a\" & (VLOOKUP(Switch!$D$59,$F$2:$G$43,2,FALSE)+ROW()-2)),\"\")","v":{"$error":"#N/A"}},{"$f":"IF(INDIRECT(\"c\" & (VLOOKUP(Switch!$D$60,$F$2:$G$43,2,FALSE)+ROW()-2))=Switch!$D$60,INDIRECT(\"a\" & (VLOOKUP(Switch!$D$60,$F$2:$G$43,2,FALSE)+ROW()-2)),\"\")","v":{"$error":"#N/A"}},{"$f":"IF(INDIRECT(\"c\" & (VLOOKUP(Switch!$D$61,$F$2:$G$43,2,FALSE)+ROW()-2))=Switch!$D$61,INDIRECT(\"a\" & (VLOOKUP(Switch!$D$61,$F$2:$G$43,2,FALSE)+ROW()-2)),\"\")","v":{"$error":"#N/A"}},{"$f":"IF(INDIRECT(\"c\" & (VLOOKUP(Switch!$D$62,$F$2:$G$43,2,FALSE)+ROW()-2))=Switch!$D$62,INDIRECT(\"a\" & (VLOOKUP(Switch!$D$62,$F$2:$G$43,2,FALSE)+ROW()-2)),\"\")","v":{"$error":"#N/A"}},{"$f":"IF(INDIRECT(\"c\" & (VLOOKUP(Switch!$D$63,$F$2:$G$43,2,FALSE)+ROW()-2))=Switch!$D$63,INDIRECT(\"a\" & (VLOOKUP(Switch!$D$63,$F$2:$G$43,2,FALSE)+ROW()-2)),\"\")","v":{"$error":"#N/A"}},{"$f":"IF(INDIRECT(\"c\" & (VLOOKUP(Switch!$D$64,$F$2:$G$43,2,FALSE)+ROW()-2))=Switch!$D$64,INDIRECT(\"a\" & (VLOOKUP(Switch!$D$64,$F$2:$G$43,2,FALSE)+ROW()-2)),\"\")","v":{"$error":"#N/A"}},{"$f":"IF(INDIRECT(\"c\" & (VLOOKUP(Switch!$D$65,$F$2:$G$43,2,FALSE)+ROW()-2))=Switch!$D$65,INDIRECT(\"a\" & (VLOOKUP(Switch!$D$65,$F$2:$G$43,2,FALSE)+ROW()-2)),\"\")","v":{"$error":"#N/A"}},{"$f":"IF(INDIRECT(\"c\" & (VLOOKUP(Switch!$D$66,$F$2:$G$43,2,FALSE)+ROW()-2))=Switch!$D$66,INDIRECT(\"a\" & (VLOOKUP(Switch!$D$66,$F$2:$G$43,2,FALSE)+ROW()-2)),\"\")","v":{"$error":"#N/A"}}]
["PSG Wealth Preserver FoF D","PAPD","PSG Collective Investments Ltd",{"$f":"ROW()","v":499},null,null,{"$f":"VLOOKUP(F499,$C$2:$D$637,2,FALSE)","v":{"$error":"#N/A"}},{"$f":"IF(INDIRECT(\"c\" & (VLOOKUP(Switch!$D$26,$F$2:$G$43,2,FALSE)+ROW()-2))=Switch!$D$26,INDIRECT(\"a\" & (VLOOKUP(Switch!$D$26,$F$2:$G$43,2,FALSE)+ROW()-2)),\"\")","v":{"$error":"#N/A"}},{"$f":"IF(INDIRECT(\"c\" & (VLOOKUP(Switch!$D$27,$F$2:$G$43,2,FALSE)+ROW()-2))=Switch!$D$27,INDIRECT(\"a\" & (VLOOKUP(Switch!$D$27,$F$2:$G$43,2,FALSE)+ROW()-2)),\"\")","v":{"$error":"#N/A"}},{"$f":"IF(INDIRECT(\"c\" & (VLOOKUP(Switch!$D$28,$F$2:$G$43,2,FALSE)+ROW()-2))=Switch!$D$28,INDIRECT(\"a\" & (VLOOKUP(Switch!$D$28,$F$2:$G$43,2,FALSE)+ROW()-2)),\"\")","v":{"$error":"#N/A"}},{"$f":"IF(INDIRECT(\"c\" & (VLOOKUP(Switch!$D$29,$F$2:$G$43,2,FALSE)+ROW()-2))=Switch!$D$29,INDIRECT(\"a\" & (VLOOKUP(Switch!$D$29,$F$2:$G$43,2,FALSE)+ROW()-2)),\"\")","v":{"$error":"#N/A"}},{"$f":"IF(INDIRECT(\"c\" & (VLOOKUP(Switch!$D$30,$F$2:$G$43,2,FALSE)+ROW()-2))=Switch!$D$30,INDIRECT(\"a\" & (VLOOKUP(Switch!$D$30,$F$2:$G$43,2,FALSE)+ROW()-2)),\"\")","v":{"$error":"#N/A"}},{"$f":"IF(INDIRECT(\"c\" & (VLOOKUP(Switch!$D$31,$F$2:$G$43,2,FALSE)+ROW()-2))=Switch!$D$31,INDIRECT(\"a\" & (VLOOKUP(Switch!$D$31,$F$2:$G$43,2,FALSE)+ROW()-2)),\"\")","v":{"$error":"#N/A"}},{"$f":"IF(INDIRECT(\"c\" & (VLOOKUP(Switch!$D$32,$F$2:$G$43,2,FALSE)+ROW()-2))=Switch!$D$32,INDIRECT(\"a\" & (VLOOKUP(Switch!$D$32,$F$2:$G$43,2,FALSE)+ROW()-2)),\"\")","v":{"$error":"#N/A"}},{"$f":"IF(INDIRECT(\"c\" & (VLOOKUP(Switch!$D$33,$F$2:$G$43,2,FALSE)+ROW()-2))=Switch!$D$33,INDIRECT(\"a\" & (VLOOKUP(Switch!$D$33,$F$2:$G$43,2,FALSE)+ROW()-2)),\"\")","v":{"$error":"#N/A"}},{"$f":"IF(INDIRECT(\"c\" & (VLOOKUP(Switch!$D$34,$F$2:$G$43,2,FALSE)+ROW()-2))=Switch!$D$34,INDIRECT(\"a\" & (VLOOKUP(Switch!$D$34,$F$2:$G$43,2,FALSE)+ROW()-2)),\"\")","v":{"$error":"#N/A"}},{"$f":"IF(INDIRECT(\"c\" & (VLOOKUP(Switch!$D$35,$F$2:$G$43,2,FALSE)+ROW()-2))=Switch!$D$35,INDIRECT(\"a\" & (VLOOKUP(Switch!$D$35,$F$2:$G$43,2,FALSE)+ROW()-2)),\"\")","v":{"$error":"#N/A"}},{"$f":"IF(INDIRECT(\"c\" & (VLOOKUP(Switch!$D$36,$F$2:$G$43,2,FALSE)+ROW()-2))=Switch!$D$36,INDIRECT(\"a\" & (VLOOKUP(Switch!$D$36,$F$2:$G$43,2,FALSE)+ROW()-2)),\"\")","v":{"$error":"#N/A"}},{"$f":"IF(INDIRECT(\"c\" & (VLOOKUP(Switch!$D$37,$F$2:$G$43,2,FALSE)+ROW()-2))=Switch!$D$37,INDIRECT(\"a\" & (VLOOKUP(Switch!$D$37,$F$2:$G$43,2,FALSE)+ROW()-2)),\"\")","v":{"$error":"#N/A"}},{"$f":"IF(INDIRECT(\"c\" & (VLOOKUP(Switch!$D$38,$F$2:$G$43,2,FALSE)+ROW()-2))=Switch!$D$38,INDIRECT(\"a\" & (VLOOKUP(Switch!$D$38,$F$2:$G$43,2,FALSE)+ROW()-2)),\"\")","v":{"$error":"#N/A"}},{"$f":"IF(INDIRECT(\"c\" & (VLOOKUP(Switch!$D$39,$F$2:$G$43,2,FALSE)+ROW()-2))=Switch!$D$39,INDIRECT(\"a\" & (VLOOKUP(Switch!$D$39,$F$2:$G$43,2,FALSE)+ROW()-2)),\"\")","v":{"$error":"#N/A"}},{"$f":"IF(INDIRECT(\"c\" & (VLOOKUP(Switch!$D$40,$F$2:$G$43,2,FALSE)+ROW()-2))=Switch!$D$40,INDIRECT(\"a\" & (VLOOKUP(Switch!$D$40,$F$2:$G$43,2,FALSE)+ROW()-2)),\"\")","v":{"$error":"#N/A"}},{"$f":"IF(INDIRECT(\"c\" & (VLOOKUP(Switch!$D$52,$F$2:$G$43,2,FALSE)+ROW()-2))=Switch!$D$52,INDIRECT(\"a\" & (VLOOKUP(Switch!$D$52,$F$2:$G$43,2,FALSE)+ROW()-2)),\"\")","v":{"$error":"#N/A"}},{"$f":"IF(INDIRECT(\"c\" & (VLOOKUP(Switch!$D$53,$F$2:$G$43,2,FALSE)+ROW()-2))=Switch!$D$53,INDIRECT(\"a\" & (VLOOKUP(Switch!$D$53,$F$2:$G$43,2,FALSE)+ROW()-2)),\"\")","v":{"$error":"#N/A"}},{"$f":"IF(INDIRECT(\"c\" & (VLOOKUP(Switch!$D$54,$F$2:$G$43,2,FALSE)+ROW()-2))=Switch!$D$54,INDIRECT(\"a\" & (VLOOKUP(Switch!$D$54,$F$2:$G$43,2,FALSE)+ROW()-2)),\"\")","v":{"$error":"#N/A"}},{"$f":"IF(INDIRECT(\"c\" & (VLOOKUP(Switch!$D$55,$F$2:$G$43,2,FALSE)+ROW()-2))=Switch!$D$55,INDIRECT(\"a\" & (VLOOKUP(Switch!$D$55,$F$2:$G$43,2,FALSE)+ROW()-2)),\"\")","v":{"$error":"#N/A"}},{"$f":"IF(INDIRECT(\"c\" & (VLOOKUP(Switch!$D$56,$F$2:$G$43,2,FALSE)+ROW()-2))=Switch!$D$56,INDIRECT(\"a\" & (VLOOKUP(Switch!$D$56,$F$2:$G$43,2,FALSE)+ROW()-2)),\"\")","v":{"$error":"#N/A"}},{"$f":"IF(INDIRECT(\"c\" & (VLOOKUP(Switch!$D$57,$F$2:$G$43,2,FALSE)+ROW()-2))=Switch!$D$57,INDIRECT(\"a\" & (VLOOKUP(Switch!$D$57,$F$2:$G$43,2,FALSE)+ROW()-2)),\"\")","v":{"$error":"#N/A"}},{"$f":"IF(INDIRECT(\"c\" & (VLOOKUP(Switch!$D$58,$F$2:$G$43,2,FALSE)+ROW()-2))=Switch!$D$58,INDIRECT(\"a\" & (VLOOKUP(Switch!$D$58,$F$2:$G$43,2,FALSE)+ROW()-2)),\"\")","v":{"$error":"#N/A"}},{"$f":"IF(INDIRECT(\"c\" & (VLOOKUP(Switch!$D$59,$F$2:$G$43,2,FALSE)+ROW()-2))=Switch!$D$59,INDIRECT(\"a\" & (VLOOKUP(Switch!$D$59,$F$2:$G$43,2,FALSE)+ROW()-2)),\"\")","v":{"$error":"#N/A"}},{"$f":"IF(INDIRECT(\"c\" & (VLOOKUP(Switch!$D$60,$F$2:$G$43,2,FALSE)+ROW()-2))=Switch!$D$60,INDIRECT(\"a\" & (VLOOKUP(Switch!$D$60,$F$2:$G$43,2,FALSE)+ROW()-2)),\"\")","v":{"$error":"#N/A"}},{"$f":"IF(INDIRECT(\"c\" & (VLOOKUP(Switch!$D$61,$F$2:$G$43,2,FALSE)+ROW()-2))=Switch!$D$61,INDIRECT(\"a\" & (VLOOKUP(Switch!$D$61,$F$2:$G$43,2,FALSE)+ROW()-2)),\"\")","v":{"$error":"#N/A"}},{"$f":"IF(INDIRECT(\"c\" & (VLOOKUP(Switch!$D$62,$F$2:$G$43,2,FALSE)+ROW()-2))=Switch!$D$62,INDIRECT(\"a\" & (VLOOKUP(Switch!$D$62,$F$2:$G$43,2,FALSE)+ROW()-2)),\"\")","v":{"$error":"#N/A"}},{"$f":"IF(INDIRECT(\"c\" & (VLOOKUP(Switch!$D$63,$F$2:$G$43,2,FALSE)+ROW()-2))=Switch!$D$63,INDIRECT(\"a\" & (VLOOKUP(Switch!$D$63,$F$2:$G$43,2,FALSE)+ROW()-2)),\"\")","v":{"$error":"#N/A"}},{"$f":"IF(INDIRECT(\"c\" & (VLOOKUP(Switch!$D$64,$F$2:$G$43,2,FALSE)+ROW()-2))=Switch!$D$64,INDIRECT(\"a\" & (VLOOKUP(Switch!$D$64,$F$2:$G$43,2,FALSE)+ROW()-2)),\"\")","v":{"$error":"#N/A"}},{"$f":"IF(INDIRECT(\"c\" & (VLOOKUP(Switch!$D$65,$F$2:$G$43,2,FALSE)+ROW()-2))=Switch!$D$65,INDIRECT(\"a\" & (VLOOKUP(Switch!$D$65,$F$2:$G$43,2,FALSE)+ROW()-2)),\"\")","v":{"$error":"#N/A"}},{"$f":"IF(INDIRECT(\"c\" & (VLOOKUP(Switch!$D$66,$F$2:$G$43,2,FALSE)+ROW()-2))=Switch!$D$66,INDIRECT(\"a\" & (VLOOKUP(Switch!$D$66,$F$2:$G$43,2,FALSE)+ROW()-2)),\"\")","v":{"$error":"#N/A"}}]
["Rezco Equity Fund C","REFCC","Rezco Collective Investments Ltd",{"$f":"ROW()","v":500},null,null,{"$f":"VLOOKUP(F500,$C$2:$D$637,2,FALSE)","v":{"$error":"#N/A"}},{"$f":"IF(INDIRECT(\"c\" & (VLOOKUP(Switch!$D$26,$F$2:$G$43,2,FALSE)+ROW()-2))=Switch!$D$26,INDIRECT(\"a\" & (VLOOKUP(Switch!$D$26,$F$2:$G$43,2,FALSE)+ROW()-2)),\"\")","v":{"$error":"#N/A"}},{"$f":"IF(INDIRECT(\"c\" & (VLOOKUP(Switch!$D$27,$F$2:$G$43,2,FALSE)+ROW()-2))=Switch!$D$27,INDIRECT(\"a\" & (VLOOKUP(Switch!$D$27,$F$2:$G$43,2,FALSE)+ROW()-2)),\"\")","v":{"$error":"#N/A"}},{"$f":"IF(INDIRECT(\"c\" & (VLOOKUP(Switch!$D$28,$F$2:$G$43,2,FALSE)+ROW()-2))=Switch!$D$28,INDIRECT(\"a\" & (VLOOKUP(Switch!$D$28,$F$2:$G$43,2,FALSE)+ROW()-2)),\"\")","v":{"$error":"#N/A"}},{"$f":"IF(INDIRECT(\"c\" & (VLOOKUP(Switch!$D$29,$F$2:$G$43,2,FALSE)+ROW()-2))=Switch!$D$29,INDIRECT(\"a\" & (VLOOKUP(Switch!$D$29,$F$2:$G$43,2,FALSE)+ROW()-2)),\"\")","v":{"$error":"#N/A"}},{"$f":"IF(INDIRECT(\"c\" & (VLOOKUP(Switch!$D$30,$F$2:$G$43,2,FALSE)+ROW()-2))=Switch!$D$30,INDIRECT(\"a\" & (VLOOKUP(Switch!$D$30,$F$2:$G$43,2,FALSE)+ROW()-2)),\"\")","v":{"$error":"#N/A"}},{"$f":"IF(INDIRECT(\"c\" & (VLOOKUP(Switch!$D$31,$F$2:$G$43,2,FALSE)+ROW()-2))=Switch!$D$31,INDIRECT(\"a\" & (VLOOKUP(Switch!$D$31,$F$2:$G$43,2,FALSE)+ROW()-2)),\"\")","v":{"$error":"#N/A"}},{"$f":"IF(INDIRECT(\"c\" & (VLOOKUP(Switch!$D$32,$F$2:$G$43,2,FALSE)+ROW()-2))=Switch!$D$32,INDIRECT(\"a\" & (VLOOKUP(Switch!$D$32,$F$2:$G$43,2,FALSE)+ROW()-2)),\"\")","v":{"$error":"#N/A"}},{"$f":"IF(INDIRECT(\"c\" & (VLOOKUP(Switch!$D$33,$F$2:$G$43,2,FALSE)+ROW()-2))=Switch!$D$33,INDIRECT(\"a\" & (VLOOKUP(Switch!$D$33,$F$2:$G$43,2,FALSE)+ROW()-2)),\"\")","v":{"$error":"#N/A"}},{"$f":"IF(INDIRECT(\"c\" & (VLOOKUP(Switch!$D$34,$F$2:$G$43,2,FALSE)+ROW()-2))=Switch!$D$34,INDIRECT(\"a\" & (VLOOKUP(Switch!$D$34,$F$2:$G$43,2,FALSE)+ROW()-2)),\"\")","v":{"$error":"#N/A"}},{"$f":"IF(INDIRECT(\"c\" & (VLOOKUP(Switch!$D$35,$F$2:$G$43,2,FALSE)+ROW()-2))=Switch!$D$35,INDIRECT(\"a\" & (VLOOKUP(Switch!$D$35,$F$2:$G$43,2,FALSE)+ROW()-2)),\"\")","v":{"$error":"#N/A"}},{"$f":"IF(INDIRECT(\"c\" & (VLOOKUP(Switch!$D$36,$F$2:$G$43,2,FALSE)+ROW()-2))=Switch!$D$36,INDIRECT(\"a\" & (VLOOKUP(Switch!$D$36,$F$2:$G$43,2,FALSE)+ROW()-2)),\"\")","v":{"$error":"#N/A"}},{"$f":"IF(INDIRECT(\"c\" & (VLOOKUP(Switch!$D$37,$F$2:$G$43,2,FALSE)+ROW()-2))=Switch!$D$37,INDIRECT(\"a\" & (VLOOKUP(Switch!$D$37,$F$2:$G$43,2,FALSE)+ROW()-2)),\"\")","v":{"$error":"#N/A"}},{"$f":"IF(INDIRECT(\"c\" & (VLOOKUP(Switch!$D$38,$F$2:$G$43,2,FALSE)+ROW()-2))=Switch!$D$38,INDIRECT(\"a\" & (VLOOKUP(Switch!$D$38,$F$2:$G$43,2,FALSE)+ROW()-2)),\"\")","v":{"$error":"#N/A"}},{"$f":"IF(INDIRECT(\"c\" & (VLOOKUP(Switch!$D$39,$F$2:$G$43,2,FALSE)+ROW()-2))=Switch!$D$39,INDIRECT(\"a\" & (VLOOKUP(Switch!$D$39,$F$2:$G$43,2,FALSE)+ROW()-2)),\"\")","v":{"$error":"#N/A"}},{"$f":"IF(INDIRECT(\"c\" & (VLOOKUP(Switch!$D$40,$F$2:$G$43,2,FALSE)+ROW()-2))=Switch!$D$40,INDIRECT(\"a\" & (VLOOKUP(Switch!$D$40,$F$2:$G$43,2,FALSE)+ROW()-2)),\"\")","v":{"$error":"#N/A"}},{"$f":"IF(INDIRECT(\"c\" & (VLOOKUP(Switch!$D$52,$F$2:$G$43,2,FALSE)+ROW()-2))=Switch!$D$52,INDIRECT(\"a\" & (VLOOKUP(Switch!$D$52,$F$2:$G$43,2,FALSE)+ROW()-2)),\"\")","v":{"$error":"#N/A"}},{"$f":"IF(INDIRECT(\"c\" & (VLOOKUP(Switch!$D$53,$F$2:$G$43,2,FALSE)+ROW()-2))=Switch!$D$53,INDIRECT(\"a\" & (VLOOKUP(Switch!$D$53,$F$2:$G$43,2,FALSE)+ROW()-2)),\"\")","v":{"$error":"#N/A"}},{"$f":"IF(INDIRECT(\"c\" & (VLOOKUP(Switch!$D$54,$F$2:$G$43,2,FALSE)+ROW()-2))=Switch!$D$54,INDIRECT(\"a\" & (VLOOKUP(Switch!$D$54,$F$2:$G$43,2,FALSE)+ROW()-2)),\"\")","v":{"$error":"#N/A"}},{"$f":"IF(INDIRECT(\"c\" & (VLOOKUP(Switch!$D$55,$F$2:$G$43,2,FALSE)+ROW()-2))=Switch!$D$55,INDIRECT(\"a\" & (VLOOKUP(Switch!$D$55,$F$2:$G$43,2,FALSE)+ROW()-2)),\"\")","v":{"$error":"#N/A"}},{"$f":"IF(INDIRECT(\"c\" & (VLOOKUP(Switch!$D$56,$F$2:$G$43,2,FALSE)+ROW()-2))=Switch!$D$56,INDIRECT(\"a\" & (VLOOKUP(Switch!$D$56,$F$2:$G$43,2,FALSE)+ROW()-2)),\"\")","v":{"$error":"#N/A"}},{"$f":"IF(INDIRECT(\"c\" & (VLOOKUP(Switch!$D$57,$F$2:$G$43,2,FALSE)+ROW()-2))=Switch!$D$57,INDIRECT(\"a\" & (VLOOKUP(Switch!$D$57,$F$2:$G$43,2,FALSE)+ROW()-2)),\"\")","v":{"$error":"#N/A"}},{"$f":"IF(INDIRECT(\"c\" & (VLOOKUP(Switch!$D$58,$F$2:$G$43,2,FALSE)+ROW()-2))=Switch!$D$58,INDIRECT(\"a\" & (VLOOKUP(Switch!$D$58,$F$2:$G$43,2,FALSE)+ROW()-2)),\"\")","v":{"$error":"#N/A"}},{"$f":"IF(INDIRECT(\"c\" & (VLOOKUP(Switch!$D$59,$F$2:$G$43,2,FALSE)+ROW()-2))=Switch!$D$59,INDIRECT(\"a\" & (VLOOKUP(Switch!$D$59,$F$2:$G$43,2,FALSE)+ROW()-2)),\"\")","v":{"$error":"#N/A"}},{"$f":"IF(INDIRECT(\"c\" & (VLOOKUP(Switch!$D$60,$F$2:$G$43,2,FALSE)+ROW()-2))=Switch!$D$60,INDIRECT(\"a\" & (VLOOKUP(Switch!$D$60,$F$2:$G$43,2,FALSE)+ROW()-2)),\"\")","v":{"$error":"#N/A"}},{"$f":"IF(INDIRECT(\"c\" & (VLOOKUP(Switch!$D$61,$F$2:$G$43,2,FALSE)+ROW()-2))=Switch!$D$61,INDIRECT(\"a\" & (VLOOKUP(Switch!$D$61,$F$2:$G$43,2,FALSE)+ROW()-2)),\"\")","v":{"$error":"#N/A"}},{"$f":"IF(INDIRECT(\"c\" & (VLOOKUP(Switch!$D$62,$F$2:$G$43,2,FALSE)+ROW()-2))=Switch!$D$62,INDIRECT(\"a\" & (VLOOKUP(Switch!$D$62,$F$2:$G$43,2,FALSE)+ROW()-2)),\"\")","v":{"$error":"#N/A"}},{"$f":"IF(INDIRECT(\"c\" & (VLOOKUP(Switch!$D$63,$F$2:$G$43,2,FALSE)+ROW()-2))=Switch!$D$63,INDIRECT(\"a\" & (VLOOKUP(Switch!$D$63,$F$2:$G$43,2,FALSE)+ROW()-2)),\"\")","v":{"$error":"#N/A"}},{"$f":"IF(INDIRECT(\"c\" & (VLOOKUP(Switch!$D$64,$F$2:$G$43,2,FALSE)+ROW()-2))=Switch!$D$64,INDIRECT(\"a\" & (VLOOKUP(Switch!$D$64,$F$2:$G$43,2,FALSE)+ROW()-2)),\"\")","v":{"$error":"#N/A"}},{"$f":"IF(INDIRECT(\"c\" & (VLOOKUP(Switch!$D$65,$F$2:$G$43,2,FALSE)+ROW()-2))=Switch!$D$65,INDIRECT(\"a\" & (VLOOKUP(Switch!$D$65,$F$2:$G$43,2,FALSE)+ROW()-2)),\"\")","v":{"$error":"#N/A"}},{"$f":"IF(INDIRECT(\"c\" & (VLOOKUP(Switch!$D$66,$F$2:$G$43,2,FALSE)+ROW()-2))=Switch!$D$66,INDIRECT(\"a\" & (VLOOKUP(Switch!$D$66,$F$2:$G$43,2,FALSE)+ROW()-2)),\"\")","v":{"$error":"#N/A"}}]
["Rezco Managed Plus C","RPFCC","Rezco Collective Investments Ltd",{"$f":"ROW()","v":501},null,null,{"$f":"VLOOKUP(F501,$C$2:$D$637,2,FALSE)","v":{"$error":"#N/A"}},{"$f":"IF(INDIRECT(\"c\" & (VLOOKUP(Switch!$D$26,$F$2:$G$43,2,FALSE)+ROW()-2))=Switch!$D$26,INDIRECT(\"a\" & (VLOOKUP(Switch!$D$26,$F$2:$G$43,2,FALSE)+ROW()-2)),\"\")","v":{"$error":"#N/A"}},{"$f":"IF(INDIRECT(\"c\" & (VLOOKUP(Switch!$D$27,$F$2:$G$43,2,FALSE)+ROW()-2))=Switch!$D$27,INDIRECT(\"a\" & (VLOOKUP(Switch!$D$27,$F$2:$G$43,2,FALSE)+ROW()-2)),\"\")","v":{"$error":"#N/A"}},{"$f":"IF(INDIRECT(\"c\" & (VLOOKUP(Switch!$D$28,$F$2:$G$43,2,FALSE)+ROW()-2))=Switch!$D$28,INDIRECT(\"a\" & (VLOOKUP(Switch!$D$28,$F$2:$G$43,2,FALSE)+ROW()-2)),\"\")","v":{"$error":"#N/A"}},{"$f":"IF(INDIRECT(\"c\" & (VLOOKUP(Switch!$D$29,$F$2:$G$43,2,FALSE)+ROW()-2))=Switch!$D$29,INDIRECT(\"a\" & (VLOOKUP(Switch!$D$29,$F$2:$G$43,2,FALSE)+ROW()-2)),\"\")","v":{"$error":"#N/A"}},{"$f":"IF(INDIRECT(\"c\" & (VLOOKUP(Switch!$D$30,$F$2:$G$43,2,FALSE)+ROW()-2))=Switch!$D$30,INDIRECT(\"a\" & (VLOOKUP(Switch!$D$30,$F$2:$G$43,2,FALSE)+ROW()-2)),\"\")","v":{"$error":"#N/A"}},{"$f":"IF(INDIRECT(\"c\" & (VLOOKUP(Switch!$D$31,$F$2:$G$43,2,FALSE)+ROW()-2))=Switch!$D$31,INDIRECT(\"a\" & (VLOOKUP(Switch!$D$31,$F$2:$G$43,2,FALSE)+ROW()-2)),\"\")","v":{"$error":"#N/A"}},{"$f":"IF(INDIRECT(\"c\" & (VLOOKUP(Switch!$D$32,$F$2:$G$43,2,FALSE)+ROW()-2))=Switch!$D$32,INDIRECT(\"a\" & (VLOOKUP(Switch!$D$32,$F$2:$G$43,2,FALSE)+ROW()-2)),\"\")","v":{"$error":"#N/A"}},{"$f":"IF(INDIRECT(\"c\" & (VLOOKUP(Switch!$D$33,$F$2:$G$43,2,FALSE)+ROW()-2))=Switch!$D$33,INDIRECT(\"a\" & (VLOOKUP(Switch!$D$33,$F$2:$G$43,2,FALSE)+ROW()-2)),\"\")","v":{"$error":"#N/A"}},{"$f":"IF(INDIRECT(\"c\" & (VLOOKUP(Switch!$D$34,$F$2:$G$43,2,FALSE)+ROW()-2))=Switch!$D$34,INDIRECT(\"a\" & (VLOOKUP(Switch!$D$34,$F$2:$G$43,2,FALSE)+ROW()-2)),\"\")","v":{"$error":"#N/A"}},{"$f":"IF(INDIRECT(\"c\" & (VLOOKUP(Switch!$D$35,$F$2:$G$43,2,FALSE)+ROW()-2))=Switch!$D$35,INDIRECT(\"a\" & (VLOOKUP(Switch!$D$35,$F$2:$G$43,2,FALSE)+ROW()-2)),\"\")","v":{"$error":"#N/A"}},{"$f":"IF(INDIRECT(\"c\" & (VLOOKUP(Switch!$D$36,$F$2:$G$43,2,FALSE)+ROW()-2))=Switch!$D$36,INDIRECT(\"a\" & (VLOOKUP(Switch!$D$36,$F$2:$G$43,2,FALSE)+ROW()-2)),\"\")","v":{"$error":"#N/A"}},{"$f":"IF(INDIRECT(\"c\" & (VLOOKUP(Switch!$D$37,$F$2:$G$43,2,FALSE)+ROW()-2))=Switch!$D$37,INDIRECT(\"a\" & (VLOOKUP(Switch!$D$37,$F$2:$G$43,2,FALSE)+ROW()-2)),\"\")","v":{"$error":"#N/A"}},{"$f":"IF(INDIRECT(\"c\" & (VLOOKUP(Switch!$D$38,$F$2:$G$43,2,FALSE)+ROW()-2))=Switch!$D$38,INDIRECT(\"a\" & (VLOOKUP(Switch!$D$38,$F$2:$G$43,2,FALSE)+ROW()-2)),\"\")","v":{"$error":"#N/A"}},{"$f":"IF(INDIRECT(\"c\" & (VLOOKUP(Switch!$D$39,$F$2:$G$43,2,FALSE)+ROW()-2))=Switch!$D$39,INDIRECT(\"a\" & (VLOOKUP(Switch!$D$39,$F$2:$G$43,2,FALSE)+ROW()-2)),\"\")","v":{"$error":"#N/A"}},{"$f":"IF(INDIRECT(\"c\" & (VLOOKUP(Switch!$D$40,$F$2:$G$43,2,FALSE)+ROW()-2))=Switch!$D$40,INDIRECT(\"a\" & (VLOOKUP(Switch!$D$40,$F$2:$G$43,2,FALSE)+ROW()-2)),\"\")","v":{"$error":"#N/A"}},{"$f":"IF(INDIRECT(\"c\" & (VLOOKUP(Switch!$D$52,$F$2:$G$43,2,FALSE)+ROW()-2))=Switch!$D$52,INDIRECT(\"a\" & (VLOOKUP(Switch!$D$52,$F$2:$G$43,2,FALSE)+ROW()-2)),\"\")","v":{"$error":"#N/A"}},{"$f":"IF(INDIRECT(\"c\" & (VLOOKUP(Switch!$D$53,$F$2:$G$43,2,FALSE)+ROW()-2))=Switch!$D$53,INDIRECT(\"a\" & (VLOOKUP(Switch!$D$53,$F$2:$G$43,2,FALSE)+ROW()-2)),\"\")","v":{"$error":"#N/A"}},{"$f":"IF(INDIRECT(\"c\" & (VLOOKUP(Switch!$D$54,$F$2:$G$43,2,FALSE)+ROW()-2))=Switch!$D$54,INDIRECT(\"a\" & (VLOOKUP(Switch!$D$54,$F$2:$G$43,2,FALSE)+ROW()-2)),\"\")","v":{"$error":"#N/A"}},{"$f":"IF(INDIRECT(\"c\" & (VLOOKUP(Switch!$D$55,$F$2:$G$43,2,FALSE)+ROW()-2))=Switch!$D$55,INDIRECT(\"a\" & (VLOOKUP(Switch!$D$55,$F$2:$G$43,2,FALSE)+ROW()-2)),\"\")","v":{"$error":"#N/A"}},{"$f":"IF(INDIRECT(\"c\" & (VLOOKUP(Switch!$D$56,$F$2:$G$43,2,FALSE)+ROW()-2))=Switch!$D$56,INDIRECT(\"a\" & (VLOOKUP(Switch!$D$56,$F$2:$G$43,2,FALSE)+ROW()-2)),\"\")","v":{"$error":"#N/A"}},{"$f":"IF(INDIRECT(\"c\" & (VLOOKUP(Switch!$D$57,$F$2:$G$43,2,FALSE)+ROW()-2))=Switch!$D$57,INDIRECT(\"a\" & (VLOOKUP(Switch!$D$57,$F$2:$G$43,2,FALSE)+ROW()-2)),\"\")","v":{"$error":"#N/A"}},{"$f":"IF(INDIRECT(\"c\" & (VLOOKUP(Switch!$D$58,$F$2:$G$43,2,FALSE)+ROW()-2))=Switch!$D$58,INDIRECT(\"a\" & (VLOOKUP(Switch!$D$58,$F$2:$G$43,2,FALSE)+ROW()-2)),\"\")","v":{"$error":"#N/A"}},{"$f":"IF(INDIRECT(\"c\" & (VLOOKUP(Switch!$D$59,$F$2:$G$43,2,FALSE)+ROW()-2))=Switch!$D$59,INDIRECT(\"a\" & (VLOOKUP(Switch!$D$59,$F$2:$G$43,2,FALSE)+ROW()-2)),\"\")","v":{"$error":"#N/A"}},{"$f":"IF(INDIRECT(\"c\" & (VLOOKUP(Switch!$D$60,$F$2:$G$43,2,FALSE)+ROW()-2))=Switch!$D$60,INDIRECT(\"a\" & (VLOOKUP(Switch!$D$60,$F$2:$G$43,2,FALSE)+ROW()-2)),\"\")","v":{"$error":"#N/A"}},{"$f":"IF(INDIRECT(\"c\" & (VLOOKUP(Switch!$D$61,$F$2:$G$43,2,FALSE)+ROW()-2))=Switch!$D$61,INDIRECT(\"a\" & (VLOOKUP(Switch!$D$61,$F$2:$G$43,2,FALSE)+ROW()-2)),\"\")","v":{"$error":"#N/A"}},{"$f":"IF(INDIRECT(\"c\" & (VLOOKUP(Switch!$D$62,$F$2:$G$43,2,FALSE)+ROW()-2))=Switch!$D$62,INDIRECT(\"a\" & (VLOOKUP(Switch!$D$62,$F$2:$G$43,2,FALSE)+ROW()-2)),\"\")","v":{"$error":"#N/A"}},{"$f":"IF(INDIRECT(\"c\" & (VLOOKUP(Switch!$D$63,$F$2:$G$43,2,FALSE)+ROW()-2))=Switch!$D$63,INDIRECT(\"a\" & (VLOOKUP(Switch!$D$63,$F$2:$G$43,2,FALSE)+ROW()-2)),\"\")","v":{"$error":"#N/A"}},{"$f":"IF(INDIRECT(\"c\" & (VLOOKUP(Switch!$D$64,$F$2:$G$43,2,FALSE)+ROW()-2))=Switch!$D$64,INDIRECT(\"a\" & (VLOOKUP(Switch!$D$64,$F$2:$G$43,2,FALSE)+ROW()-2)),\"\")","v":{"$error":"#N/A"}},{"$f":"IF(INDIRECT(\"c\" & (VLOOKUP(Switch!$D$65,$F$2:$G$43,2,FALSE)+ROW()-2))=Switch!$D$65,INDIRECT(\"a\" & (VLOOKUP(Switch!$D$65,$F$2:$G$43,2,FALSE)+ROW()-2)),\"\")","v":{"$error":"#N/A"}},{"$f":"IF(INDIRECT(\"c\" & (VLOOKUP(Switch!$D$66,$F$2:$G$43,2,FALSE)+ROW()-2))=Switch!$D$66,INDIRECT(\"a\" & (VLOOKUP(Switch!$D$66,$F$2:$G$43,2,FALSE)+ROW()-2)),\"\")","v":{"$error":"#N/A"}}]
["Rezco Stable Fund C","RESTC","Rezco Collective Investments Ltd",{"$f":"ROW()","v":502},null,null,{"$f":"VLOOKUP(F502,$C$2:$D$637,2,FALSE)","v":{"$error":"#N/A"}},{"$f":"IF(INDIRECT(\"c\" & (VLOOKUP(Switch!$D$26,$F$2:$G$43,2,FALSE)+ROW()-2))=Switch!$D$26,INDIRECT(\"a\" & (VLOOKUP(Switch!$D$26,$F$2:$G$43,2,FALSE)+ROW()-2)),\"\")","v":{"$error":"#N/A"}},{"$f":"IF(INDIRECT(\"c\" & (VLOOKUP(Switch!$D$27,$F$2:$G$43,2,FALSE)+ROW()-2))=Switch!$D$27,INDIRECT(\"a\" & (VLOOKUP(Switch!$D$27,$F$2:$G$43,2,FALSE)+ROW()-2)),\"\")","v":{"$error":"#N/A"}},{"$f":"IF(INDIRECT(\"c\" & (VLOOKUP(Switch!$D$28,$F$2:$G$43,2,FALSE)+ROW()-2))=Switch!$D$28,INDIRECT(\"a\" & (VLOOKUP(Switch!$D$28,$F$2:$G$43,2,FALSE)+ROW()-2)),\"\")","v":{"$error":"#N/A"}},{"$f":"IF(INDIRECT(\"c\" & (VLOOKUP(Switch!$D$29,$F$2:$G$43,2,FALSE)+ROW()-2))=Switch!$D$29,INDIRECT(\"a\" & (VLOOKUP(Switch!$D$29,$F$2:$G$43,2,FALSE)+ROW()-2)),\"\")","v":{"$error":"#N/A"}},{"$f":"IF(INDIRECT(\"c\" & (VLOOKUP(Switch!$D$30,$F$2:$G$43,2,FALSE)+ROW()-2))=Switch!$D$30,INDIRECT(\"a\" & (VLOOKUP(Switch!$D$30,$F$2:$G$43,2,FALSE)+ROW()-2)),\"\")","v":{"$error":"#N/A"}},{"$f":"IF(INDIRECT(\"c\" & (VLOOKUP(Switch!$D$31,$F$2:$G$43,2,FALSE)+ROW()-2))=Switch!$D$31,INDIRECT(\"a\" & (VLOOKUP(Switch!$D$31,$F$2:$G$43,2,FALSE)+ROW()-2)),\"\")","v":{"$error":"#N/A"}},{"$f":"IF(INDIRECT(\"c\" & (VLOOKUP(Switch!$D$32,$F$2:$G$43,2,FALSE)+ROW()-2))=Switch!$D$32,INDIRECT(\"a\" & (VLOOKUP(Switch!$D$32,$F$2:$G$43,2,FALSE)+ROW()-2)),\"\")","v":{"$error":"#N/A"}},{"$f":"IF(INDIRECT(\"c\" & (VLOOKUP(Switch!$D$33,$F$2:$G$43,2,FALSE)+ROW()-2))=Switch!$D$33,INDIRECT(\"a\" & (VLOOKUP(Switch!$D$33,$F$2:$G$43,2,FALSE)+ROW()-2)),\"\")","v":{"$error":"#N/A"}},{"$f":"IF(INDIRECT(\"c\" & (VLOOKUP(Switch!$D$34,$F$2:$G$43,2,FALSE)+ROW()-2))=Switch!$D$34,INDIRECT(\"a\" & (VLOOKUP(Switch!$D$34,$F$2:$G$43,2,FALSE)+ROW()-2)),\"\")","v":{"$error":"#N/A"}},{"$f":"IF(INDIRECT(\"c\" & (VLOOKUP(Switch!$D$35,$F$2:$G$43,2,FALSE)+ROW()-2))=Switch!$D$35,INDIRECT(\"a\" & (VLOOKUP(Switch!$D$35,$F$2:$G$43,2,FALSE)+ROW()-2)),\"\")","v":{"$error":"#N/A"}},{"$f":"IF(INDIRECT(\"c\" & (VLOOKUP(Switch!$D$36,$F$2:$G$43,2,FALSE)+ROW()-2))=Switch!$D$36,INDIRECT(\"a\" & (VLOOKUP(Switch!$D$36,$F$2:$G$43,2,FALSE)+ROW()-2)),\"\")","v":{"$error":"#N/A"}},{"$f":"IF(INDIRECT(\"c\" & (VLOOKUP(Switch!$D$37,$F$2:$G$43,2,FALSE)+ROW()-2))=Switch!$D$37,INDIRECT(\"a\" & (VLOOKUP(Switch!$D$37,$F$2:$G$43,2,FALSE)+ROW()-2)),\"\")","v":{"$error":"#N/A"}},{"$f":"IF(INDIRECT(\"c\" & (VLOOKUP(Switch!$D$38,$F$2:$G$43,2,FALSE)+ROW()-2))=Switch!$D$38,INDIRECT(\"a\" & (VLOOKUP(Switch!$D$38,$F$2:$G$43,2,FALSE)+ROW()-2)),\"\")","v":{"$error":"#N/A"}},{"$f":"IF(INDIRECT(\"c\" & (VLOOKUP(Switch!$D$39,$F$2:$G$43,2,FALSE)+ROW()-2))=Switch!$D$39,INDIRECT(\"a\" & (VLOOKUP(Switch!$D$39,$F$2:$G$43,2,FALSE)+ROW()-2)),\"\")","v":{"$error":"#N/A"}},{"$f":"IF(INDIRECT(\"c\" & (VLOOKUP(Switch!$D$40,$F$2:$G$43,2,FALSE)+ROW()-2))=Switch!$D$40,INDIRECT(\"a\" & (VLOOKUP(Switch!$D$40,$F$2:$G$43,2,FALSE)+ROW()-2)),\"\")","v":{"$error":"#N/A"}},{"$f":"IF(INDIRECT(\"c\" & (VLOOKUP(Switch!$D$52,$F$2:$G$43,2,FALSE)+ROW()-2))=Switch!$D$52,INDIRECT(\"a\" & (VLOOKUP(Switch!$D$52,$F$2:$G$43,2,FALSE)+ROW()-2)),\"\")","v":{"$error":"#N/A"}},{"$f":"IF(INDIRECT(\"c\" & (VLOOKUP(Switch!$D$53,$F$2:$G$43,2,FALSE)+ROW()-2))=Switch!$D$53,INDIRECT(\"a\" & (VLOOKUP(Switch!$D$53,$F$2:$G$43,2,FALSE)+ROW()-2)),\"\")","v":{"$error":"#N/A"}},{"$f":"IF(INDIRECT(\"c\" & (VLOOKUP(Switch!$D$54,$F$2:$G$43,2,FALSE)+ROW()-2))=Switch!$D$54,INDIRECT(\"a\" & (VLOOKUP(Switch!$D$54,$F$2:$G$43,2,FALSE)+ROW()-2)),\"\")","v":{"$error":"#N/A"}},{"$f":"IF(INDIRECT(\"c\" & (VLOOKUP(Switch!$D$55,$F$2:$G$43,2,FALSE)+ROW()-2))=Switch!$D$55,INDIRECT(\"a\" & (VLOOKUP(Switch!$D$55,$F$2:$G$43,2,FALSE)+ROW()-2)),\"\")","v":{"$error":"#N/A"}},{"$f":"IF(INDIRECT(\"c\" & (VLOOKUP(Switch!$D$56,$F$2:$G$43,2,FALSE)+ROW()-2))=Switch!$D$56,INDIRECT(\"a\" & (VLOOKUP(Switch!$D$56,$F$2:$G$43,2,FALSE)+ROW()-2)),\"\")","v":{"$error":"#N/A"}},{"$f":"IF(INDIRECT(\"c\" & (VLOOKUP(Switch!$D$57,$F$2:$G$43,2,FALSE)+ROW()-2))=Switch!$D$57,INDIRECT(\"a\" & (VLOOKUP(Switch!$D$57,$F$2:$G$43,2,FALSE)+ROW()-2)),\"\")","v":{"$error":"#N/A"}},{"$f":"IF(INDIRECT(\"c\" & (VLOOKUP(Switch!$D$58,$F$2:$G$43,2,FALSE)+ROW()-2))=Switch!$D$58,INDIRECT(\"a\" & (VLOOKUP(Switch!$D$58,$F$2:$G$43,2,FALSE)+ROW()-2)),\"\")","v":{"$error":"#N/A"}},{"$f":"IF(INDIRECT(\"c\" & (VLOOKUP(Switch!$D$59,$F$2:$G$43,2,FALSE)+ROW()-2))=Switch!$D$59,INDIRECT(\"a\" & (VLOOKUP(Switch!$D$59,$F$2:$G$43,2,FALSE)+ROW()-2)),\"\")","v":{"$error":"#N/A"}},{"$f":"IF(INDIRECT(\"c\" & (VLOOKUP(Switch!$D$60,$F$2:$G$43,2,FALSE)+ROW()-2))=Switch!$D$60,INDIRECT(\"a\" & (VLOOKUP(Switch!$D$60,$F$2:$G$43,2,FALSE)+ROW()-2)),\"\")","v":{"$error":"#N/A"}},{"$f":"IF(INDIRECT(\"c\" & (VLOOKUP(Switch!$D$61,$F$2:$G$43,2,FALSE)+ROW()-2))=Switch!$D$61,INDIRECT(\"a\" & (VLOOKUP(Switch!$D$61,$F$2:$G$43,2,FALSE)+ROW()-2)),\"\")","v":{"$error":"#N/A"}},{"$f":"IF(INDIRECT(\"c\" & (VLOOKUP(Switch!$D$62,$F$2:$G$43,2,FALSE)+ROW()-2))=Switch!$D$62,INDIRECT(\"a\" & (VLOOKUP(Switch!$D$62,$F$2:$G$43,2,FALSE)+ROW()-2)),\"\")","v":{"$error":"#N/A"}},{"$f":"IF(INDIRECT(\"c\" & (VLOOKUP(Switch!$D$63,$F$2:$G$43,2,FALSE)+ROW()-2))=Switch!$D$63,INDIRECT(\"a\" & (VLOOKUP(Switch!$D$63,$F$2:$G$43,2,FALSE)+ROW()-2)),\"\")","v":{"$error":"#N/A"}},{"$f":"IF(INDIRECT(\"c\" & (VLOOKUP(Switch!$D$64,$F$2:$G$43,2,FALSE)+ROW()-2))=Switch!$D$64,INDIRECT(\"a\" & (VLOOKUP(Switch!$D$64,$F$2:$G$43,2,FALSE)+ROW()-2)),\"\")","v":{"$error":"#N/A"}},{"$f":"IF(INDIRECT(\"c\" & (VLOOKUP(Switch!$D$65,$F$2:$G$43,2,FALSE)+ROW()-2))=Switch!$D$65,INDIRECT(\"a\" & (VLOOKUP(Switch!$D$65,$F$2:$G$43,2,FALSE)+ROW()-2)),\"\")","v":{"$error":"#N/A"}},{"$f":"IF(INDIRECT(\"c\" & (VLOOKUP(Switch!$D$66,$F$2:$G$43,2,FALSE)+ROW()-2))=Switch!$D$66,INDIRECT(\"a\" & (VLOOKUP(Switch!$D$66,$F$2:$G$43,2,FALSE)+ROW()-2)),\"\")","v":{"$error":"#N/A"}}]
["Rezco Value Trend Fund C","RVTCC","Rezco Collective Investments Ltd",{"$f":"ROW()","v":503},null,null,{"$f":"VLOOKUP(F503,$C$2:$D$637,2,FALSE)","v":{"$error":"#N/A"}},{"$f":"IF(INDIRECT(\"c\" & (VLOOKUP(Switch!$D$26,$F$2:$G$43,2,FALSE)+ROW()-2))=Switch!$D$26,INDIRECT(\"a\" & (VLOOKUP(Switch!$D$26,$F$2:$G$43,2,FALSE)+ROW()-2)),\"\")","v":{"$error":"#N/A"}},{"$f":"IF(INDIRECT(\"c\" & (VLOOKUP(Switch!$D$27,$F$2:$G$43,2,FALSE)+ROW()-2))=Switch!$D$27,INDIRECT(\"a\" & (VLOOKUP(Switch!$D$27,$F$2:$G$43,2,FALSE)+ROW()-2)),\"\")","v":{"$error":"#N/A"}},{"$f":"IF(INDIRECT(\"c\" & (VLOOKUP(Switch!$D$28,$F$2:$G$43,2,FALSE)+ROW()-2))=Switch!$D$28,INDIRECT(\"a\" & (VLOOKUP(Switch!$D$28,$F$2:$G$43,2,FALSE)+ROW()-2)),\"\")","v":{"$error":"#N/A"}},{"$f":"IF(INDIRECT(\"c\" & (VLOOKUP(Switch!$D$29,$F$2:$G$43,2,FALSE)+ROW()-2))=Switch!$D$29,INDIRECT(\"a\" & (VLOOKUP(Switch!$D$29,$F$2:$G$43,2,FALSE)+ROW()-2)),\"\")","v":{"$error":"#N/A"}},{"$f":"IF(INDIRECT(\"c\" & (VLOOKUP(Switch!$D$30,$F$2:$G$43,2,FALSE)+ROW()-2))=Switch!$D$30,INDIRECT(\"a\" & (VLOOKUP(Switch!$D$30,$F$2:$G$43,2,FALSE)+ROW()-2)),\"\")","v":{"$error":"#N/A"}},{"$f":"IF(INDIRECT(\"c\" & (VLOOKUP(Switch!$D$31,$F$2:$G$43,2,FALSE)+ROW()-2))=Switch!$D$31,INDIRECT(\"a\" & (VLOOKUP(Switch!$D$31,$F$2:$G$43,2,FALSE)+ROW()-2)),\"\")","v":{"$error":"#N/A"}},{"$f":"IF(INDIRECT(\"c\" & (VLOOKUP(Switch!$D$32,$F$2:$G$43,2,FALSE)+ROW()-2))=Switch!$D$32,INDIRECT(\"a\" & (VLOOKUP(Switch!$D$32,$F$2:$G$43,2,FALSE)+ROW()-2)),\"\")","v":{"$error":"#N/A"}},{"$f":"IF(INDIRECT(\"c\" & (VLOOKUP(Switch!$D$33,$F$2:$G$43,2,FALSE)+ROW()-2))=Switch!$D$33,INDIRECT(\"a\" & (VLOOKUP(Switch!$D$33,$F$2:$G$43,2,FALSE)+ROW()-2)),\"\")","v":{"$error":"#N/A"}},{"$f":"IF(INDIRECT(\"c\" & (VLOOKUP(Switch!$D$34,$F$2:$G$43,2,FALSE)+ROW()-2))=Switch!$D$34,INDIRECT(\"a\" & (VLOOKUP(Switch!$D$34,$F$2:$G$43,2,FALSE)+ROW()-2)),\"\")","v":{"$error":"#N/A"}},{"$f":"IF(INDIRECT(\"c\" & (VLOOKUP(Switch!$D$35,$F$2:$G$43,2,FALSE)+ROW()-2))=Switch!$D$35,INDIRECT(\"a\" & (VLOOKUP(Switch!$D$35,$F$2:$G$43,2,FALSE)+ROW()-2)),\"\")","v":{"$error":"#N/A"}},{"$f":"IF(INDIRECT(\"c\" & (VLOOKUP(Switch!$D$36,$F$2:$G$43,2,FALSE)+ROW()-2))=Switch!$D$36,INDIRECT(\"a\" & (VLOOKUP(Switch!$D$36,$F$2:$G$43,2,FALSE)+ROW()-2)),\"\")","v":{"$error":"#N/A"}},{"$f":"IF(INDIRECT(\"c\" & (VLOOKUP(Switch!$D$37,$F$2:$G$43,2,FALSE)+ROW()-2))=Switch!$D$37,INDIRECT(\"a\" & (VLOOKUP(Switch!$D$37,$F$2:$G$43,2,FALSE)+ROW()-2)),\"\")","v":{"$error":"#N/A"}},{"$f":"IF(INDIRECT(\"c\" & (VLOOKUP(Switch!$D$38,$F$2:$G$43,2,FALSE)+ROW()-2))=Switch!$D$38,INDIRECT(\"a\" & (VLOOKUP(Switch!$D$38,$F$2:$G$43,2,FALSE)+ROW()-2)),\"\")","v":{"$error":"#N/A"}},{"$f":"IF(INDIRECT(\"c\" & (VLOOKUP(Switch!$D$39,$F$2:$G$43,2,FALSE)+ROW()-2))=Switch!$D$39,INDIRECT(\"a\" & (VLOOKUP(Switch!$D$39,$F$2:$G$43,2,FALSE)+ROW()-2)),\"\")","v":{"$error":"#N/A"}},{"$f":"IF(INDIRECT(\"c\" & (VLOOKUP(Switch!$D$40,$F$2:$G$43,2,FALSE)+ROW()-2))=Switch!$D$40,INDIRECT(\"a\" & (VLOOKUP(Switch!$D$40,$F$2:$G$43,2,FALSE)+ROW()-2)),\"\")","v":{"$error":"#N/A"}},{"$f":"IF(INDIRECT(\"c\" & (VLOOKUP(Switch!$D$52,$F$2:$G$43,2,FALSE)+ROW()-2))=Switch!$D$52,INDIRECT(\"a\" & (VLOOKUP(Switch!$D$52,$F$2:$G$43,2,FALSE)+ROW()-2)),\"\")","v":{"$error":"#N/A"}},{"$f":"IF(INDIRECT(\"c\" & (VLOOKUP(Switch!$D$53,$F$2:$G$43,2,FALSE)+ROW()-2))=Switch!$D$53,INDIRECT(\"a\" & (VLOOKUP(Switch!$D$53,$F$2:$G$43,2,FALSE)+ROW()-2)),\"\")","v":{"$error":"#N/A"}},{"$f":"IF(INDIRECT(\"c\" & (VLOOKUP(Switch!$D$54,$F$2:$G$43,2,FALSE)+ROW()-2))=Switch!$D$54,INDIRECT(\"a\" & (VLOOKUP(Switch!$D$54,$F$2:$G$43,2,FALSE)+ROW()-2)),\"\")","v":{"$error":"#N/A"}},{"$f":"IF(INDIRECT(\"c\" & (VLOOKUP(Switch!$D$55,$F$2:$G$43,2,FALSE)+ROW()-2))=Switch!$D$55,INDIRECT(\"a\" & (VLOOKUP(Switch!$D$55,$F$2:$G$43,2,FALSE)+ROW()-2)),\"\")","v":{"$error":"#N/A"}},{"$f":"IF(INDIRECT(\"c\" & (VLOOKUP(Switch!$D$56,$F$2:$G$43,2,FALSE)+ROW()-2))=Switch!$D$56,INDIRECT(\"a\" & (VLOOKUP(Switch!$D$56,$F$2:$G$43,2,FALSE)+ROW()-2)),\"\")","v":{"$error":"#N/A"}},{"$f":"IF(INDIRECT(\"c\" & (VLOOKUP(Switch!$D$57,$F$2:$G$43,2,FALSE)+ROW()-2))=Switch!$D$57,INDIRECT(\"a\" & (VLOOKUP(Switch!$D$57,$F$2:$G$43,2,FALSE)+ROW()-2)),\"\")","v":{"$error":"#N/A"}},{"$f":"IF(INDIRECT(\"c\" & (VLOOKUP(Switch!$D$58,$F$2:$G$43,2,FALSE)+ROW()-2))=Switch!$D$58,INDIRECT(\"a\" & (VLOOKUP(Switch!$D$58,$F$2:$G$43,2,FALSE)+ROW()-2)),\"\")","v":{"$error":"#N/A"}},{"$f":"IF(INDIRECT(\"c\" & (VLOOKUP(Switch!$D$59,$F$2:$G$43,2,FALSE)+ROW()-2))=Switch!$D$59,INDIRECT(\"a\" & (VLOOKUP(Switch!$D$59,$F$2:$G$43,2,FALSE)+ROW()-2)),\"\")","v":{"$error":"#N/A"}},{"$f":"IF(INDIRECT(\"c\" & (VLOOKUP(Switch!$D$60,$F$2:$G$43,2,FALSE)+ROW()-2))=Switch!$D$60,INDIRECT(\"a\" & (VLOOKUP(Switch!$D$60,$F$2:$G$43,2,FALSE)+ROW()-2)),\"\")","v":{"$error":"#N/A"}},{"$f":"IF(INDIRECT(\"c\" & (VLOOKUP(Switch!$D$61,$F$2:$G$43,2,FALSE)+ROW()-2))=Switch!$D$61,INDIRECT(\"a\" & (VLOOKUP(Switch!$D$61,$F$2:$G$43,2,FALSE)+ROW()-2)),\"\")","v":{"$error":"#N/A"}},{"$f":"IF(INDIRECT(\"c\" & (VLOOKUP(Switch!$D$62,$F$2:$G$43,2,FALSE)+ROW()-2))=Switch!$D$62,INDIRECT(\"a\" & (VLOOKUP(Switch!$D$62,$F$2:$G$43,2,FALSE)+ROW()-2)),\"\")","v":{"$error":"#N/A"}},{"$f":"IF(INDIRECT(\"c\" & (VLOOKUP(Switch!$D$63,$F$2:$G$43,2,FALSE)+ROW()-2))=Switch!$D$63,INDIRECT(\"a\" & (VLOOKUP(Switch!$D$63,$F$2:$G$43,2,FALSE)+ROW()-2)),\"\")","v":{"$error":"#N/A"}},{"$f":"IF(INDIRECT(\"c\" & (VLOOKUP(Switch!$D$64,$F$2:$G$43,2,FALSE)+ROW()-2))=Switch!$D$64,INDIRECT(\"a\" & (VLOOKUP(Switch!$D$64,$F$2:$G$43,2,FALSE)+ROW()-2)),\"\")","v":{"$error":"#N/A"}},{"$f":"IF(INDIRECT(\"c\" & (VLOOKUP(Switch!$D$65,$F$2:$G$43,2,FALSE)+ROW()-2))=Switch!$D$65,INDIRECT(\"a\" & (VLOOKUP(Switch!$D$65,$F$2:$G$43,2,FALSE)+ROW()-2)),\"\")","v":{"$error":"#N/A"}},{"$f":"IF(INDIRECT(\"c\" & (VLOOKUP(Switch!$D$66,$F$2:$G$43,2,FALSE)+ROW()-2))=Switch!$D$66,INDIRECT(\"a\" & (VLOOKUP(Switch!$D$66,$F$2:$G$43,2,FALSE)+ROW()-2)),\"\")","v":{"$error":"#N/A"}}]
["Counterpoint SCI Balanced Plus Fund A1","MEBA1","Sanlam Collective Investments",{"$f":"ROW()","v":504},null,null,{"$f":"VLOOKUP(F504,$C$2:$D$637,2,FALSE)","v":{"$error":"#N/A"}},{"$f":"IF(INDIRECT(\"c\" & (VLOOKUP(Switch!$D$26,$F$2:$G$43,2,FALSE)+ROW()-2))=Switch!$D$26,INDIRECT(\"a\" & (VLOOKUP(Switch!$D$26,$F$2:$G$43,2,FALSE)+ROW()-2)),\"\")","v":{"$error":"#N/A"}},{"$f":"IF(INDIRECT(\"c\" & (VLOOKUP(Switch!$D$27,$F$2:$G$43,2,FALSE)+ROW()-2))=Switch!$D$27,INDIRECT(\"a\" & (VLOOKUP(Switch!$D$27,$F$2:$G$43,2,FALSE)+ROW()-2)),\"\")","v":{"$error":"#N/A"}},{"$f":"IF(INDIRECT(\"c\" & (VLOOKUP(Switch!$D$28,$F$2:$G$43,2,FALSE)+ROW()-2))=Switch!$D$28,INDIRECT(\"a\" & (VLOOKUP(Switch!$D$28,$F$2:$G$43,2,FALSE)+ROW()-2)),\"\")","v":{"$error":"#N/A"}},{"$f":"IF(INDIRECT(\"c\" & (VLOOKUP(Switch!$D$29,$F$2:$G$43,2,FALSE)+ROW()-2))=Switch!$D$29,INDIRECT(\"a\" & (VLOOKUP(Switch!$D$29,$F$2:$G$43,2,FALSE)+ROW()-2)),\"\")","v":{"$error":"#N/A"}},{"$f":"IF(INDIRECT(\"c\" & (VLOOKUP(Switch!$D$30,$F$2:$G$43,2,FALSE)+ROW()-2))=Switch!$D$30,INDIRECT(\"a\" & (VLOOKUP(Switch!$D$30,$F$2:$G$43,2,FALSE)+ROW()-2)),\"\")","v":{"$error":"#N/A"}},{"$f":"IF(INDIRECT(\"c\" & (VLOOKUP(Switch!$D$31,$F$2:$G$43,2,FALSE)+ROW()-2))=Switch!$D$31,INDIRECT(\"a\" & (VLOOKUP(Switch!$D$31,$F$2:$G$43,2,FALSE)+ROW()-2)),\"\")","v":{"$error":"#N/A"}},{"$f":"IF(INDIRECT(\"c\" & (VLOOKUP(Switch!$D$32,$F$2:$G$43,2,FALSE)+ROW()-2))=Switch!$D$32,INDIRECT(\"a\" & (VLOOKUP(Switch!$D$32,$F$2:$G$43,2,FALSE)+ROW()-2)),\"\")","v":{"$error":"#N/A"}},{"$f":"IF(INDIRECT(\"c\" & (VLOOKUP(Switch!$D$33,$F$2:$G$43,2,FALSE)+ROW()-2))=Switch!$D$33,INDIRECT(\"a\" & (VLOOKUP(Switch!$D$33,$F$2:$G$43,2,FALSE)+ROW()-2)),\"\")","v":{"$error":"#N/A"}},{"$f":"IF(INDIRECT(\"c\" & (VLOOKUP(Switch!$D$34,$F$2:$G$43,2,FALSE)+ROW()-2))=Switch!$D$34,INDIRECT(\"a\" & (VLOOKUP(Switch!$D$34,$F$2:$G$43,2,FALSE)+ROW()-2)),\"\")","v":{"$error":"#N/A"}},{"$f":"IF(INDIRECT(\"c\" & (VLOOKUP(Switch!$D$35,$F$2:$G$43,2,FALSE)+ROW()-2))=Switch!$D$35,INDIRECT(\"a\" & (VLOOKUP(Switch!$D$35,$F$2:$G$43,2,FALSE)+ROW()-2)),\"\")","v":{"$error":"#N/A"}},{"$f":"IF(INDIRECT(\"c\" & (VLOOKUP(Switch!$D$36,$F$2:$G$43,2,FALSE)+ROW()-2))=Switch!$D$36,INDIRECT(\"a\" & (VLOOKUP(Switch!$D$36,$F$2:$G$43,2,FALSE)+ROW()-2)),\"\")","v":{"$error":"#N/A"}},{"$f":"IF(INDIRECT(\"c\" & (VLOOKUP(Switch!$D$37,$F$2:$G$43,2,FALSE)+ROW()-2))=Switch!$D$37,INDIRECT(\"a\" & (VLOOKUP(Switch!$D$37,$F$2:$G$43,2,FALSE)+ROW()-2)),\"\")","v":{"$error":"#N/A"}},{"$f":"IF(INDIRECT(\"c\" & (VLOOKUP(Switch!$D$38,$F$2:$G$43,2,FALSE)+ROW()-2))=Switch!$D$38,INDIRECT(\"a\" & (VLOOKUP(Switch!$D$38,$F$2:$G$43,2,FALSE)+ROW()-2)),\"\")","v":{"$error":"#N/A"}},{"$f":"IF(INDIRECT(\"c\" & (VLOOKUP(Switch!$D$39,$F$2:$G$43,2,FALSE)+ROW()-2))=Switch!$D$39,INDIRECT(\"a\" & (VLOOKUP(Switch!$D$39,$F$2:$G$43,2,FALSE)+ROW()-2)),\"\")","v":{"$error":"#N/A"}},{"$f":"IF(INDIRECT(\"c\" & (VLOOKUP(Switch!$D$40,$F$2:$G$43,2,FALSE)+ROW()-2))=Switch!$D$40,INDIRECT(\"a\" & (VLOOKUP(Switch!$D$40,$F$2:$G$43,2,FALSE)+ROW()-2)),\"\")","v":{"$error":"#N/A"}},{"$f":"IF(INDIRECT(\"c\" & (VLOOKUP(Switch!$D$52,$F$2:$G$43,2,FALSE)+ROW()-2))=Switch!$D$52,INDIRECT(\"a\" & (VLOOKUP(Switch!$D$52,$F$2:$G$43,2,FALSE)+ROW()-2)),\"\")","v":{"$error":"#N/A"}},{"$f":"IF(INDIRECT(\"c\" & (VLOOKUP(Switch!$D$53,$F$2:$G$43,2,FALSE)+ROW()-2))=Switch!$D$53,INDIRECT(\"a\" & (VLOOKUP(Switch!$D$53,$F$2:$G$43,2,FALSE)+ROW()-2)),\"\")","v":{"$error":"#N/A"}},{"$f":"IF(INDIRECT(\"c\" & (VLOOKUP(Switch!$D$54,$F$2:$G$43,2,FALSE)+ROW()-2))=Switch!$D$54,INDIRECT(\"a\" & (VLOOKUP(Switch!$D$54,$F$2:$G$43,2,FALSE)+ROW()-2)),\"\")","v":{"$error":"#N/A"}},{"$f":"IF(INDIRECT(\"c\" & (VLOOKUP(Switch!$D$55,$F$2:$G$43,2,FALSE)+ROW()-2))=Switch!$D$55,INDIRECT(\"a\" & (VLOOKUP(Switch!$D$55,$F$2:$G$43,2,FALSE)+ROW()-2)),\"\")","v":{"$error":"#N/A"}},{"$f":"IF(INDIRECT(\"c\" & (VLOOKUP(Switch!$D$56,$F$2:$G$43,2,FALSE)+ROW()-2))=Switch!$D$56,INDIRECT(\"a\" & (VLOOKUP(Switch!$D$56,$F$2:$G$43,2,FALSE)+ROW()-2)),\"\")","v":{"$error":"#N/A"}},{"$f":"IF(INDIRECT(\"c\" & (VLOOKUP(Switch!$D$57,$F$2:$G$43,2,FALSE)+ROW()-2))=Switch!$D$57,INDIRECT(\"a\" & (VLOOKUP(Switch!$D$57,$F$2:$G$43,2,FALSE)+ROW()-2)),\"\")","v":{"$error":"#N/A"}},{"$f":"IF(INDIRECT(\"c\" & (VLOOKUP(Switch!$D$58,$F$2:$G$43,2,FALSE)+ROW()-2))=Switch!$D$58,INDIRECT(\"a\" & (VLOOKUP(Switch!$D$58,$F$2:$G$43,2,FALSE)+ROW()-2)),\"\")","v":{"$error":"#N/A"}},{"$f":"IF(INDIRECT(\"c\" & (VLOOKUP(Switch!$D$59,$F$2:$G$43,2,FALSE)+ROW()-2))=Switch!$D$59,INDIRECT(\"a\" & (VLOOKUP(Switch!$D$59,$F$2:$G$43,2,FALSE)+ROW()-2)),\"\")","v":{"$error":"#N/A"}},{"$f":"IF(INDIRECT(\"c\" & (VLOOKUP(Switch!$D$60,$F$2:$G$43,2,FALSE)+ROW()-2))=Switch!$D$60,INDIRECT(\"a\" & (VLOOKUP(Switch!$D$60,$F$2:$G$43,2,FALSE)+ROW()-2)),\"\")","v":{"$error":"#N/A"}},{"$f":"IF(INDIRECT(\"c\" & (VLOOKUP(Switch!$D$61,$F$2:$G$43,2,FALSE)+ROW()-2))=Switch!$D$61,INDIRECT(\"a\" & (VLOOKUP(Switch!$D$61,$F$2:$G$43,2,FALSE)+ROW()-2)),\"\")","v":{"$error":"#N/A"}},{"$f":"IF(INDIRECT(\"c\" & (VLOOKUP(Switch!$D$62,$F$2:$G$43,2,FALSE)+ROW()-2))=Switch!$D$62,INDIRECT(\"a\" & (VLOOKUP(Switch!$D$62,$F$2:$G$43,2,FALSE)+ROW()-2)),\"\")","v":{"$error":"#N/A"}},{"$f":"IF(INDIRECT(\"c\" & (VLOOKUP(Switch!$D$63,$F$2:$G$43,2,FALSE)+ROW()-2))=Switch!$D$63,INDIRECT(\"a\" & (VLOOKUP(Switch!$D$63,$F$2:$G$43,2,FALSE)+ROW()-2)),\"\")","v":{"$error":"#N/A"}},{"$f":"IF(INDIRECT(\"c\" & (VLOOKUP(Switch!$D$64,$F$2:$G$43,2,FALSE)+ROW()-2))=Switch!$D$64,INDIRECT(\"a\" & (VLOOKUP(Switch!$D$64,$F$2:$G$43,2,FALSE)+ROW()-2)),\"\")","v":{"$error":"#N/A"}},{"$f":"IF(INDIRECT(\"c\" & (VLOOKUP(Switch!$D$65,$F$2:$G$43,2,FALSE)+ROW()-2))=Switch!$D$65,INDIRECT(\"a\" & (VLOOKUP(Switch!$D$65,$F$2:$G$43,2,FALSE)+ROW()-2)),\"\")","v":{"$error":"#N/A"}},{"$f":"IF(INDIRECT(\"c\" & (VLOOKUP(Switch!$D$66,$F$2:$G$43,2,FALSE)+ROW()-2))=Switch!$D$66,INDIRECT(\"a\" & (VLOOKUP(Switch!$D$66,$F$2:$G$43,2,FALSE)+ROW()-2)),\"\")","v":{"$error":"#N/A"}}]
["Counterpoint SCI Cautious Fund A1","MCAA","Sanlam Collective Investments",{"$f":"ROW()","v":505},null,null,{"$f":"VLOOKUP(F505,$C$2:$D$637,2,FALSE)","v":{"$error":"#N/A"}},{"$f":"IF(INDIRECT(\"c\" & (VLOOKUP(Switch!$D$26,$F$2:$G$43,2,FALSE)+ROW()-2))=Switch!$D$26,INDIRECT(\"a\" & (VLOOKUP(Switch!$D$26,$F$2:$G$43,2,FALSE)+ROW()-2)),\"\")","v":{"$error":"#N/A"}},{"$f":"IF(INDIRECT(\"c\" & (VLOOKUP(Switch!$D$27,$F$2:$G$43,2,FALSE)+ROW()-2))=Switch!$D$27,INDIRECT(\"a\" & (VLOOKUP(Switch!$D$27,$F$2:$G$43,2,FALSE)+ROW()-2)),\"\")","v":{"$error":"#N/A"}},{"$f":"IF(INDIRECT(\"c\" & (VLOOKUP(Switch!$D$28,$F$2:$G$43,2,FALSE)+ROW()-2))=Switch!$D$28,INDIRECT(\"a\" & (VLOOKUP(Switch!$D$28,$F$2:$G$43,2,FALSE)+ROW()-2)),\"\")","v":{"$error":"#N/A"}},{"$f":"IF(INDIRECT(\"c\" & (VLOOKUP(Switch!$D$29,$F$2:$G$43,2,FALSE)+ROW()-2))=Switch!$D$29,INDIRECT(\"a\" & (VLOOKUP(Switch!$D$29,$F$2:$G$43,2,FALSE)+ROW()-2)),\"\")","v":{"$error":"#N/A"}},{"$f":"IF(INDIRECT(\"c\" & (VLOOKUP(Switch!$D$30,$F$2:$G$43,2,FALSE)+ROW()-2))=Switch!$D$30,INDIRECT(\"a\" & (VLOOKUP(Switch!$D$30,$F$2:$G$43,2,FALSE)+ROW()-2)),\"\")","v":{"$error":"#N/A"}},{"$f":"IF(INDIRECT(\"c\" & (VLOOKUP(Switch!$D$31,$F$2:$G$43,2,FALSE)+ROW()-2))=Switch!$D$31,INDIRECT(\"a\" & (VLOOKUP(Switch!$D$31,$F$2:$G$43,2,FALSE)+ROW()-2)),\"\")","v":{"$error":"#N/A"}},{"$f":"IF(INDIRECT(\"c\" & (VLOOKUP(Switch!$D$32,$F$2:$G$43,2,FALSE)+ROW()-2))=Switch!$D$32,INDIRECT(\"a\" & (VLOOKUP(Switch!$D$32,$F$2:$G$43,2,FALSE)+ROW()-2)),\"\")","v":{"$error":"#N/A"}},{"$f":"IF(INDIRECT(\"c\" & (VLOOKUP(Switch!$D$33,$F$2:$G$43,2,FALSE)+ROW()-2))=Switch!$D$33,INDIRECT(\"a\" & (VLOOKUP(Switch!$D$33,$F$2:$G$43,2,FALSE)+ROW()-2)),\"\")","v":{"$error":"#N/A"}},{"$f":"IF(INDIRECT(\"c\" & (VLOOKUP(Switch!$D$34,$F$2:$G$43,2,FALSE)+ROW()-2))=Switch!$D$34,INDIRECT(\"a\" & (VLOOKUP(Switch!$D$34,$F$2:$G$43,2,FALSE)+ROW()-2)),\"\")","v":{"$error":"#N/A"}},{"$f":"IF(INDIRECT(\"c\" & (VLOOKUP(Switch!$D$35,$F$2:$G$43,2,FALSE)+ROW()-2))=Switch!$D$35,INDIRECT(\"a\" & (VLOOKUP(Switch!$D$35,$F$2:$G$43,2,FALSE)+ROW()-2)),\"\")","v":{"$error":"#N/A"}},{"$f":"IF(INDIRECT(\"c\" & (VLOOKUP(Switch!$D$36,$F$2:$G$43,2,FALSE)+ROW()-2))=Switch!$D$36,INDIRECT(\"a\" & (VLOOKUP(Switch!$D$36,$F$2:$G$43,2,FALSE)+ROW()-2)),\"\")","v":{"$error":"#N/A"}},{"$f":"IF(INDIRECT(\"c\" & (VLOOKUP(Switch!$D$37,$F$2:$G$43,2,FALSE)+ROW()-2))=Switch!$D$37,INDIRECT(\"a\" & (VLOOKUP(Switch!$D$37,$F$2:$G$43,2,FALSE)+ROW()-2)),\"\")","v":{"$error":"#N/A"}},{"$f":"IF(INDIRECT(\"c\" & (VLOOKUP(Switch!$D$38,$F$2:$G$43,2,FALSE)+ROW()-2))=Switch!$D$38,INDIRECT(\"a\" & (VLOOKUP(Switch!$D$38,$F$2:$G$43,2,FALSE)+ROW()-2)),\"\")","v":{"$error":"#N/A"}},{"$f":"IF(INDIRECT(\"c\" & (VLOOKUP(Switch!$D$39,$F$2:$G$43,2,FALSE)+ROW()-2))=Switch!$D$39,INDIRECT(\"a\" & (VLOOKUP(Switch!$D$39,$F$2:$G$43,2,FALSE)+ROW()-2)),\"\")","v":{"$error":"#N/A"}},{"$f":"IF(INDIRECT(\"c\" & (VLOOKUP(Switch!$D$40,$F$2:$G$43,2,FALSE)+ROW()-2))=Switch!$D$40,INDIRECT(\"a\" & (VLOOKUP(Switch!$D$40,$F$2:$G$43,2,FALSE)+ROW()-2)),\"\")","v":{"$error":"#N/A"}},{"$f":"IF(INDIRECT(\"c\" & (VLOOKUP(Switch!$D$52,$F$2:$G$43,2,FALSE)+ROW()-2))=Switch!$D$52,INDIRECT(\"a\" & (VLOOKUP(Switch!$D$52,$F$2:$G$43,2,FALSE)+ROW()-2)),\"\")","v":{"$error":"#N/A"}},{"$f":"IF(INDIRECT(\"c\" & (VLOOKUP(Switch!$D$53,$F$2:$G$43,2,FALSE)+ROW()-2))=Switch!$D$53,INDIRECT(\"a\" & (VLOOKUP(Switch!$D$53,$F$2:$G$43,2,FALSE)+ROW()-2)),\"\")","v":{"$error":"#N/A"}},{"$f":"IF(INDIRECT(\"c\" & (VLOOKUP(Switch!$D$54,$F$2:$G$43,2,FALSE)+ROW()-2))=Switch!$D$54,INDIRECT(\"a\" & (VLOOKUP(Switch!$D$54,$F$2:$G$43,2,FALSE)+ROW()-2)),\"\")","v":{"$error":"#N/A"}},{"$f":"IF(INDIRECT(\"c\" & (VLOOKUP(Switch!$D$55,$F$2:$G$43,2,FALSE)+ROW()-2))=Switch!$D$55,INDIRECT(\"a\" & (VLOOKUP(Switch!$D$55,$F$2:$G$43,2,FALSE)+ROW()-2)),\"\")","v":{"$error":"#N/A"}},{"$f":"IF(INDIRECT(\"c\" & (VLOOKUP(Switch!$D$56,$F$2:$G$43,2,FALSE)+ROW()-2))=Switch!$D$56,INDIRECT(\"a\" & (VLOOKUP(Switch!$D$56,$F$2:$G$43,2,FALSE)+ROW()-2)),\"\")","v":{"$error":"#N/A"}},{"$f":"IF(INDIRECT(\"c\" & (VLOOKUP(Switch!$D$57,$F$2:$G$43,2,FALSE)+ROW()-2))=Switch!$D$57,INDIRECT(\"a\" & (VLOOKUP(Switch!$D$57,$F$2:$G$43,2,FALSE)+ROW()-2)),\"\")","v":{"$error":"#N/A"}},{"$f":"IF(INDIRECT(\"c\" & (VLOOKUP(Switch!$D$58,$F$2:$G$43,2,FALSE)+ROW()-2))=Switch!$D$58,INDIRECT(\"a\" & (VLOOKUP(Switch!$D$58,$F$2:$G$43,2,FALSE)+ROW()-2)),\"\")","v":{"$error":"#N/A"}},{"$f":"IF(INDIRECT(\"c\" & (VLOOKUP(Switch!$D$59,$F$2:$G$43,2,FALSE)+ROW()-2))=Switch!$D$59,INDIRECT(\"a\" & (VLOOKUP(Switch!$D$59,$F$2:$G$43,2,FALSE)+ROW()-2)),\"\")","v":{"$error":"#N/A"}},{"$f":"IF(INDIRECT(\"c\" & (VLOOKUP(Switch!$D$60,$F$2:$G$43,2,FALSE)+ROW()-2))=Switch!$D$60,INDIRECT(\"a\" & (VLOOKUP(Switch!$D$60,$F$2:$G$43,2,FALSE)+ROW()-2)),\"\")","v":{"$error":"#N/A"}},{"$f":"IF(INDIRECT(\"c\" & (VLOOKUP(Switch!$D$61,$F$2:$G$43,2,FALSE)+ROW()-2))=Switch!$D$61,INDIRECT(\"a\" & (VLOOKUP(Switch!$D$61,$F$2:$G$43,2,FALSE)+ROW()-2)),\"\")","v":{"$error":"#N/A"}},{"$f":"IF(INDIRECT(\"c\" & (VLOOKUP(Switch!$D$62,$F$2:$G$43,2,FALSE)+ROW()-2))=Switch!$D$62,INDIRECT(\"a\" & (VLOOKUP(Switch!$D$62,$F$2:$G$43,2,FALSE)+ROW()-2)),\"\")","v":{"$error":"#N/A"}},{"$f":"IF(INDIRECT(\"c\" & (VLOOKUP(Switch!$D$63,$F$2:$G$43,2,FALSE)+ROW()-2))=Switch!$D$63,INDIRECT(\"a\" & (VLOOKUP(Switch!$D$63,$F$2:$G$43,2,FALSE)+ROW()-2)),\"\")","v":{"$error":"#N/A"}},{"$f":"IF(INDIRECT(\"c\" & (VLOOKUP(Switch!$D$64,$F$2:$G$43,2,FALSE)+ROW()-2))=Switch!$D$64,INDIRECT(\"a\" & (VLOOKUP(Switch!$D$64,$F$2:$G$43,2,FALSE)+ROW()-2)),\"\")","v":{"$error":"#N/A"}},{"$f":"IF(INDIRECT(\"c\" & (VLOOKUP(Switch!$D$65,$F$2:$G$43,2,FALSE)+ROW()-2))=Switch!$D$65,INDIRECT(\"a\" & (VLOOKUP(Switch!$D$65,$F$2:$G$43,2,FALSE)+ROW()-2)),\"\")","v":{"$error":"#N/A"}},{"$f":"IF(INDIRECT(\"c\" & (VLOOKUP(Switch!$D$66,$F$2:$G$43,2,FALSE)+ROW()-2))=Switch!$D$66,INDIRECT(\"a\" & (VLOOKUP(Switch!$D$66,$F$2:$G$43,2,FALSE)+ROW()-2)),\"\")","v":{"$error":"#N/A"}}]
["Counterpoint SCI Enhanced Income Fund A1","MEIA","Sanlam Collective Investments",{"$f":"ROW()","v":506},null,null,{"$f":"VLOOKUP(F506,$C$2:$D$637,2,FALSE)","v":{"$error":"#N/A"}},{"$f":"IF(INDIRECT(\"c\" & (VLOOKUP(Switch!$D$26,$F$2:$G$43,2,FALSE)+ROW()-2))=Switch!$D$26,INDIRECT(\"a\" & (VLOOKUP(Switch!$D$26,$F$2:$G$43,2,FALSE)+ROW()-2)),\"\")","v":{"$error":"#N/A"}},{"$f":"IF(INDIRECT(\"c\" & (VLOOKUP(Switch!$D$27,$F$2:$G$43,2,FALSE)+ROW()-2))=Switch!$D$27,INDIRECT(\"a\" & (VLOOKUP(Switch!$D$27,$F$2:$G$43,2,FALSE)+ROW()-2)),\"\")","v":{"$error":"#N/A"}},{"$f":"IF(INDIRECT(\"c\" & (VLOOKUP(Switch!$D$28,$F$2:$G$43,2,FALSE)+ROW()-2))=Switch!$D$28,INDIRECT(\"a\" & (VLOOKUP(Switch!$D$28,$F$2:$G$43,2,FALSE)+ROW()-2)),\"\")","v":{"$error":"#N/A"}},{"$f":"IF(INDIRECT(\"c\" & (VLOOKUP(Switch!$D$29,$F$2:$G$43,2,FALSE)+ROW()-2))=Switch!$D$29,INDIRECT(\"a\" & (VLOOKUP(Switch!$D$29,$F$2:$G$43,2,FALSE)+ROW()-2)),\"\")","v":{"$error":"#N/A"}},{"$f":"IF(INDIRECT(\"c\" & (VLOOKUP(Switch!$D$30,$F$2:$G$43,2,FALSE)+ROW()-2))=Switch!$D$30,INDIRECT(\"a\" & (VLOOKUP(Switch!$D$30,$F$2:$G$43,2,FALSE)+ROW()-2)),\"\")","v":{"$error":"#N/A"}},{"$f":"IF(INDIRECT(\"c\" & (VLOOKUP(Switch!$D$31,$F$2:$G$43,2,FALSE)+ROW()-2))=Switch!$D$31,INDIRECT(\"a\" & (VLOOKUP(Switch!$D$31,$F$2:$G$43,2,FALSE)+ROW()-2)),\"\")","v":{"$error":"#N/A"}},{"$f":"IF(INDIRECT(\"c\" & (VLOOKUP(Switch!$D$32,$F$2:$G$43,2,FALSE)+ROW()-2))=Switch!$D$32,INDIRECT(\"a\" & (VLOOKUP(Switch!$D$32,$F$2:$G$43,2,FALSE)+ROW()-2)),\"\")","v":{"$error":"#N/A"}},{"$f":"IF(INDIRECT(\"c\" & (VLOOKUP(Switch!$D$33,$F$2:$G$43,2,FALSE)+ROW()-2))=Switch!$D$33,INDIRECT(\"a\" & (VLOOKUP(Switch!$D$33,$F$2:$G$43,2,FALSE)+ROW()-2)),\"\")","v":{"$error":"#N/A"}},{"$f":"IF(INDIRECT(\"c\" & (VLOOKUP(Switch!$D$34,$F$2:$G$43,2,FALSE)+ROW()-2))=Switch!$D$34,INDIRECT(\"a\" & (VLOOKUP(Switch!$D$34,$F$2:$G$43,2,FALSE)+ROW()-2)),\"\")","v":{"$error":"#N/A"}},{"$f":"IF(INDIRECT(\"c\" & (VLOOKUP(Switch!$D$35,$F$2:$G$43,2,FALSE)+ROW()-2))=Switch!$D$35,INDIRECT(\"a\" & (VLOOKUP(Switch!$D$35,$F$2:$G$43,2,FALSE)+ROW()-2)),\"\")","v":{"$error":"#N/A"}},{"$f":"IF(INDIRECT(\"c\" & (VLOOKUP(Switch!$D$36,$F$2:$G$43,2,FALSE)+ROW()-2))=Switch!$D$36,INDIRECT(\"a\" & (VLOOKUP(Switch!$D$36,$F$2:$G$43,2,FALSE)+ROW()-2)),\"\")","v":{"$error":"#N/A"}},{"$f":"IF(INDIRECT(\"c\" & (VLOOKUP(Switch!$D$37,$F$2:$G$43,2,FALSE)+ROW()-2))=Switch!$D$37,INDIRECT(\"a\" & (VLOOKUP(Switch!$D$37,$F$2:$G$43,2,FALSE)+ROW()-2)),\"\")","v":{"$error":"#N/A"}},{"$f":"IF(INDIRECT(\"c\" & (VLOOKUP(Switch!$D$38,$F$2:$G$43,2,FALSE)+ROW()-2))=Switch!$D$38,INDIRECT(\"a\" & (VLOOKUP(Switch!$D$38,$F$2:$G$43,2,FALSE)+ROW()-2)),\"\")","v":{"$error":"#N/A"}},{"$f":"IF(INDIRECT(\"c\" & (VLOOKUP(Switch!$D$39,$F$2:$G$43,2,FALSE)+ROW()-2))=Switch!$D$39,INDIRECT(\"a\" & (VLOOKUP(Switch!$D$39,$F$2:$G$43,2,FALSE)+ROW()-2)),\"\")","v":{"$error":"#N/A"}},{"$f":"IF(INDIRECT(\"c\" & (VLOOKUP(Switch!$D$40,$F$2:$G$43,2,FALSE)+ROW()-2))=Switch!$D$40,INDIRECT(\"a\" & (VLOOKUP(Switch!$D$40,$F$2:$G$43,2,FALSE)+ROW()-2)),\"\")","v":{"$error":"#N/A"}},{"$f":"IF(INDIRECT(\"c\" & (VLOOKUP(Switch!$D$52,$F$2:$G$43,2,FALSE)+ROW()-2))=Switch!$D$52,INDIRECT(\"a\" & (VLOOKUP(Switch!$D$52,$F$2:$G$43,2,FALSE)+ROW()-2)),\"\")","v":{"$error":"#N/A"}},{"$f":"IF(INDIRECT(\"c\" & (VLOOKUP(Switch!$D$53,$F$2:$G$43,2,FALSE)+ROW()-2))=Switch!$D$53,INDIRECT(\"a\" & (VLOOKUP(Switch!$D$53,$F$2:$G$43,2,FALSE)+ROW()-2)),\"\")","v":{"$error":"#N/A"}},{"$f":"IF(INDIRECT(\"c\" & (VLOOKUP(Switch!$D$54,$F$2:$G$43,2,FALSE)+ROW()-2))=Switch!$D$54,INDIRECT(\"a\" & (VLOOKUP(Switch!$D$54,$F$2:$G$43,2,FALSE)+ROW()-2)),\"\")","v":{"$error":"#N/A"}},{"$f":"IF(INDIRECT(\"c\" & (VLOOKUP(Switch!$D$55,$F$2:$G$43,2,FALSE)+ROW()-2))=Switch!$D$55,INDIRECT(\"a\" & (VLOOKUP(Switch!$D$55,$F$2:$G$43,2,FALSE)+ROW()-2)),\"\")","v":{"$error":"#N/A"}},{"$f":"IF(INDIRECT(\"c\" & (VLOOKUP(Switch!$D$56,$F$2:$G$43,2,FALSE)+ROW()-2))=Switch!$D$56,INDIRECT(\"a\" & (VLOOKUP(Switch!$D$56,$F$2:$G$43,2,FALSE)+ROW()-2)),\"\")","v":{"$error":"#N/A"}},{"$f":"IF(INDIRECT(\"c\" & (VLOOKUP(Switch!$D$57,$F$2:$G$43,2,FALSE)+ROW()-2))=Switch!$D$57,INDIRECT(\"a\" & (VLOOKUP(Switch!$D$57,$F$2:$G$43,2,FALSE)+ROW()-2)),\"\")","v":{"$error":"#N/A"}},{"$f":"IF(INDIRECT(\"c\" & (VLOOKUP(Switch!$D$58,$F$2:$G$43,2,FALSE)+ROW()-2))=Switch!$D$58,INDIRECT(\"a\" & (VLOOKUP(Switch!$D$58,$F$2:$G$43,2,FALSE)+ROW()-2)),\"\")","v":{"$error":"#N/A"}},{"$f":"IF(INDIRECT(\"c\" & (VLOOKUP(Switch!$D$59,$F$2:$G$43,2,FALSE)+ROW()-2))=Switch!$D$59,INDIRECT(\"a\" & (VLOOKUP(Switch!$D$59,$F$2:$G$43,2,FALSE)+ROW()-2)),\"\")","v":{"$error":"#N/A"}},{"$f":"IF(INDIRECT(\"c\" & (VLOOKUP(Switch!$D$60,$F$2:$G$43,2,FALSE)+ROW()-2))=Switch!$D$60,INDIRECT(\"a\" & (VLOOKUP(Switch!$D$60,$F$2:$G$43,2,FALSE)+ROW()-2)),\"\")","v":{"$error":"#N/A"}},{"$f":"IF(INDIRECT(\"c\" & (VLOOKUP(Switch!$D$61,$F$2:$G$43,2,FALSE)+ROW()-2))=Switch!$D$61,INDIRECT(\"a\" & (VLOOKUP(Switch!$D$61,$F$2:$G$43,2,FALSE)+ROW()-2)),\"\")","v":{"$error":"#N/A"}},{"$f":"IF(INDIRECT(\"c\" & (VLOOKUP(Switch!$D$62,$F$2:$G$43,2,FALSE)+ROW()-2))=Switch!$D$62,INDIRECT(\"a\" & (VLOOKUP(Switch!$D$62,$F$2:$G$43,2,FALSE)+ROW()-2)),\"\")","v":{"$error":"#N/A"}},{"$f":"IF(INDIRECT(\"c\" & (VLOOKUP(Switch!$D$63,$F$2:$G$43,2,FALSE)+ROW()-2))=Switch!$D$63,INDIRECT(\"a\" & (VLOOKUP(Switch!$D$63,$F$2:$G$43,2,FALSE)+ROW()-2)),\"\")","v":{"$error":"#N/A"}},{"$f":"IF(INDIRECT(\"c\" & (VLOOKUP(Switch!$D$64,$F$2:$G$43,2,FALSE)+ROW()-2))=Switch!$D$64,INDIRECT(\"a\" & (VLOOKUP(Switch!$D$64,$F$2:$G$43,2,FALSE)+ROW()-2)),\"\")","v":{"$error":"#N/A"}},{"$f":"IF(INDIRECT(\"c\" & (VLOOKUP(Switch!$D$65,$F$2:$G$43,2,FALSE)+ROW()-2))=Switch!$D$65,INDIRECT(\"a\" & (VLOOKUP(Switch!$D$65,$F$2:$G$43,2,FALSE)+ROW()-2)),\"\")","v":{"$error":"#N/A"}},{"$f":"IF(INDIRECT(\"c\" & (VLOOKUP(Switch!$D$66,$F$2:$G$43,2,FALSE)+ROW()-2))=Switch!$D$66,INDIRECT(\"a\" & (VLOOKUP(Switch!$D$66,$F$2:$G$43,2,FALSE)+ROW()-2)),\"\")","v":{"$error":"#N/A"}}]
["Counterpoint SCI High Yield Equity Fund A1","MEHA1","Sanlam Collective Investments",{"$f":"ROW()","v":507},null,null,{"$f":"VLOOKUP(F507,$C$2:$D$637,2,FALSE)","v":{"$error":"#N/A"}},{"$f":"IF(INDIRECT(\"c\" & (VLOOKUP(Switch!$D$26,$F$2:$G$43,2,FALSE)+ROW()-2))=Switch!$D$26,INDIRECT(\"a\" & (VLOOKUP(Switch!$D$26,$F$2:$G$43,2,FALSE)+ROW()-2)),\"\")","v":{"$error":"#N/A"}},{"$f":"IF(INDIRECT(\"c\" & (VLOOKUP(Switch!$D$27,$F$2:$G$43,2,FALSE)+ROW()-2))=Switch!$D$27,INDIRECT(\"a\" & (VLOOKUP(Switch!$D$27,$F$2:$G$43,2,FALSE)+ROW()-2)),\"\")","v":{"$error":"#N/A"}},{"$f":"IF(INDIRECT(\"c\" & (VLOOKUP(Switch!$D$28,$F$2:$G$43,2,FALSE)+ROW()-2))=Switch!$D$28,INDIRECT(\"a\" & (VLOOKUP(Switch!$D$28,$F$2:$G$43,2,FALSE)+ROW()-2)),\"\")","v":{"$error":"#N/A"}},{"$f":"IF(INDIRECT(\"c\" & (VLOOKUP(Switch!$D$29,$F$2:$G$43,2,FALSE)+ROW()-2))=Switch!$D$29,INDIRECT(\"a\" & (VLOOKUP(Switch!$D$29,$F$2:$G$43,2,FALSE)+ROW()-2)),\"\")","v":{"$error":"#N/A"}},{"$f":"IF(INDIRECT(\"c\" & (VLOOKUP(Switch!$D$30,$F$2:$G$43,2,FALSE)+ROW()-2))=Switch!$D$30,INDIRECT(\"a\" & (VLOOKUP(Switch!$D$30,$F$2:$G$43,2,FALSE)+ROW()-2)),\"\")","v":{"$error":"#N/A"}},{"$f":"IF(INDIRECT(\"c\" & (VLOOKUP(Switch!$D$31,$F$2:$G$43,2,FALSE)+ROW()-2))=Switch!$D$31,INDIRECT(\"a\" & (VLOOKUP(Switch!$D$31,$F$2:$G$43,2,FALSE)+ROW()-2)),\"\")","v":{"$error":"#N/A"}},{"$f":"IF(INDIRECT(\"c\" & (VLOOKUP(Switch!$D$32,$F$2:$G$43,2,FALSE)+ROW()-2))=Switch!$D$32,INDIRECT(\"a\" & (VLOOKUP(Switch!$D$32,$F$2:$G$43,2,FALSE)+ROW()-2)),\"\")","v":{"$error":"#N/A"}},{"$f":"IF(INDIRECT(\"c\" & (VLOOKUP(Switch!$D$33,$F$2:$G$43,2,FALSE)+ROW()-2))=Switch!$D$33,INDIRECT(\"a\" & (VLOOKUP(Switch!$D$33,$F$2:$G$43,2,FALSE)+ROW()-2)),\"\")","v":{"$error":"#N/A"}},{"$f":"IF(INDIRECT(\"c\" & (VLOOKUP(Switch!$D$34,$F$2:$G$43,2,FALSE)+ROW()-2))=Switch!$D$34,INDIRECT(\"a\" & (VLOOKUP(Switch!$D$34,$F$2:$G$43,2,FALSE)+ROW()-2)),\"\")","v":{"$error":"#N/A"}},{"$f":"IF(INDIRECT(\"c\" & (VLOOKUP(Switch!$D$35,$F$2:$G$43,2,FALSE)+ROW()-2))=Switch!$D$35,INDIRECT(\"a\" & (VLOOKUP(Switch!$D$35,$F$2:$G$43,2,FALSE)+ROW()-2)),\"\")","v":{"$error":"#N/A"}},{"$f":"IF(INDIRECT(\"c\" & (VLOOKUP(Switch!$D$36,$F$2:$G$43,2,FALSE)+ROW()-2))=Switch!$D$36,INDIRECT(\"a\" & (VLOOKUP(Switch!$D$36,$F$2:$G$43,2,FALSE)+ROW()-2)),\"\")","v":{"$error":"#N/A"}},{"$f":"IF(INDIRECT(\"c\" & (VLOOKUP(Switch!$D$37,$F$2:$G$43,2,FALSE)+ROW()-2))=Switch!$D$37,INDIRECT(\"a\" & (VLOOKUP(Switch!$D$37,$F$2:$G$43,2,FALSE)+ROW()-2)),\"\")","v":{"$error":"#N/A"}},{"$f":"IF(INDIRECT(\"c\" & (VLOOKUP(Switch!$D$38,$F$2:$G$43,2,FALSE)+ROW()-2))=Switch!$D$38,INDIRECT(\"a\" & (VLOOKUP(Switch!$D$38,$F$2:$G$43,2,FALSE)+ROW()-2)),\"\")","v":{"$error":"#N/A"}},{"$f":"IF(INDIRECT(\"c\" & (VLOOKUP(Switch!$D$39,$F$2:$G$43,2,FALSE)+ROW()-2))=Switch!$D$39,INDIRECT(\"a\" & (VLOOKUP(Switch!$D$39,$F$2:$G$43,2,FALSE)+ROW()-2)),\"\")","v":{"$error":"#N/A"}},{"$f":"IF(INDIRECT(\"c\" & (VLOOKUP(Switch!$D$40,$F$2:$G$43,2,FALSE)+ROW()-2))=Switch!$D$40,INDIRECT(\"a\" & (VLOOKUP(Switch!$D$40,$F$2:$G$43,2,FALSE)+ROW()-2)),\"\")","v":{"$error":"#N/A"}},{"$f":"IF(INDIRECT(\"c\" & (VLOOKUP(Switch!$D$52,$F$2:$G$43,2,FALSE)+ROW()-2))=Switch!$D$52,INDIRECT(\"a\" & (VLOOKUP(Switch!$D$52,$F$2:$G$43,2,FALSE)+ROW()-2)),\"\")","v":{"$error":"#N/A"}},{"$f":"IF(INDIRECT(\"c\" & (VLOOKUP(Switch!$D$53,$F$2:$G$43,2,FALSE)+ROW()-2))=Switch!$D$53,INDIRECT(\"a\" & (VLOOKUP(Switch!$D$53,$F$2:$G$43,2,FALSE)+ROW()-2)),\"\")","v":{"$error":"#N/A"}},{"$f":"IF(INDIRECT(\"c\" & (VLOOKUP(Switch!$D$54,$F$2:$G$43,2,FALSE)+ROW()-2))=Switch!$D$54,INDIRECT(\"a\" & (VLOOKUP(Switch!$D$54,$F$2:$G$43,2,FALSE)+ROW()-2)),\"\")","v":{"$error":"#N/A"}},{"$f":"IF(INDIRECT(\"c\" & (VLOOKUP(Switch!$D$55,$F$2:$G$43,2,FALSE)+ROW()-2))=Switch!$D$55,INDIRECT(\"a\" & (VLOOKUP(Switch!$D$55,$F$2:$G$43,2,FALSE)+ROW()-2)),\"\")","v":{"$error":"#N/A"}},{"$f":"IF(INDIRECT(\"c\" & (VLOOKUP(Switch!$D$56,$F$2:$G$43,2,FALSE)+ROW()-2))=Switch!$D$56,INDIRECT(\"a\" & (VLOOKUP(Switch!$D$56,$F$2:$G$43,2,FALSE)+ROW()-2)),\"\")","v":{"$error":"#N/A"}},{"$f":"IF(INDIRECT(\"c\" & (VLOOKUP(Switch!$D$57,$F$2:$G$43,2,FALSE)+ROW()-2))=Switch!$D$57,INDIRECT(\"a\" & (VLOOKUP(Switch!$D$57,$F$2:$G$43,2,FALSE)+ROW()-2)),\"\")","v":{"$error":"#N/A"}},{"$f":"IF(INDIRECT(\"c\" & (VLOOKUP(Switch!$D$58,$F$2:$G$43,2,FALSE)+ROW()-2))=Switch!$D$58,INDIRECT(\"a\" & (VLOOKUP(Switch!$D$58,$F$2:$G$43,2,FALSE)+ROW()-2)),\"\")","v":{"$error":"#N/A"}},{"$f":"IF(INDIRECT(\"c\" & (VLOOKUP(Switch!$D$59,$F$2:$G$43,2,FALSE)+ROW()-2))=Switch!$D$59,INDIRECT(\"a\" & (VLOOKUP(Switch!$D$59,$F$2:$G$43,2,FALSE)+ROW()-2)),\"\")","v":{"$error":"#N/A"}},{"$f":"IF(INDIRECT(\"c\" & (VLOOKUP(Switch!$D$60,$F$2:$G$43,2,FALSE)+ROW()-2))=Switch!$D$60,INDIRECT(\"a\" & (VLOOKUP(Switch!$D$60,$F$2:$G$43,2,FALSE)+ROW()-2)),\"\")","v":{"$error":"#N/A"}},{"$f":"IF(INDIRECT(\"c\" & (VLOOKUP(Switch!$D$61,$F$2:$G$43,2,FALSE)+ROW()-2))=Switch!$D$61,INDIRECT(\"a\" & (VLOOKUP(Switch!$D$61,$F$2:$G$43,2,FALSE)+ROW()-2)),\"\")","v":{"$error":"#N/A"}},{"$f":"IF(INDIRECT(\"c\" & (VLOOKUP(Switch!$D$62,$F$2:$G$43,2,FALSE)+ROW()-2))=Switch!$D$62,INDIRECT(\"a\" & (VLOOKUP(Switch!$D$62,$F$2:$G$43,2,FALSE)+ROW()-2)),\"\")","v":{"$error":"#N/A"}},{"$f":"IF(INDIRECT(\"c\" & (VLOOKUP(Switch!$D$63,$F$2:$G$43,2,FALSE)+ROW()-2))=Switch!$D$63,INDIRECT(\"a\" & (VLOOKUP(Switch!$D$63,$F$2:$G$43,2,FALSE)+ROW()-2)),\"\")","v":{"$error":"#N/A"}},{"$f":"IF(INDIRECT(\"c\" & (VLOOKUP(Switch!$D$64,$F$2:$G$43,2,FALSE)+ROW()-2))=Switch!$D$64,INDIRECT(\"a\" & (VLOOKUP(Switch!$D$64,$F$2:$G$43,2,FALSE)+ROW()-2)),\"\")","v":{"$error":"#N/A"}},{"$f":"IF(INDIRECT(\"c\" & (VLOOKUP(Switch!$D$65,$F$2:$G$43,2,FALSE)+ROW()-2))=Switch!$D$65,INDIRECT(\"a\" & (VLOOKUP(Switch!$D$65,$F$2:$G$43,2,FALSE)+ROW()-2)),\"\")","v":{"$error":"#N/A"}},{"$f":"IF(INDIRECT(\"c\" & (VLOOKUP(Switch!$D$66,$F$2:$G$43,2,FALSE)+ROW()-2))=Switch!$D$66,INDIRECT(\"a\" & (VLOOKUP(Switch!$D$66,$F$2:$G$43,2,FALSE)+ROW()-2)),\"\")","v":{"$error":"#N/A"}}]
["Counterpoint SCI Global Equity Feeder Fund B","CMGFB","Sanlam Collective Investments",{"$f":"ROW()","v":508},null,null,{"$f":"VLOOKUP(F508,$C$2:$D$637,2,FALSE)","v":{"$error":"#N/A"}},{"$f":"IF(INDIRECT(\"c\" & (VLOOKUP(Switch!$D$26,$F$2:$G$43,2,FALSE)+ROW()-2))=Switch!$D$26,INDIRECT(\"a\" & (VLOOKUP(Switch!$D$26,$F$2:$G$43,2,FALSE)+ROW()-2)),\"\")","v":{"$error":"#N/A"}},{"$f":"IF(INDIRECT(\"c\" & (VLOOKUP(Switch!$D$27,$F$2:$G$43,2,FALSE)+ROW()-2))=Switch!$D$27,INDIRECT(\"a\" & (VLOOKUP(Switch!$D$27,$F$2:$G$43,2,FALSE)+ROW()-2)),\"\")","v":{"$error":"#N/A"}},{"$f":"IF(INDIRECT(\"c\" & (VLOOKUP(Switch!$D$28,$F$2:$G$43,2,FALSE)+ROW()-2))=Switch!$D$28,INDIRECT(\"a\" & (VLOOKUP(Switch!$D$28,$F$2:$G$43,2,FALSE)+ROW()-2)),\"\")","v":{"$error":"#N/A"}},{"$f":"IF(INDIRECT(\"c\" & (VLOOKUP(Switch!$D$29,$F$2:$G$43,2,FALSE)+ROW()-2))=Switch!$D$29,INDIRECT(\"a\" & (VLOOKUP(Switch!$D$29,$F$2:$G$43,2,FALSE)+ROW()-2)),\"\")","v":{"$error":"#N/A"}},{"$f":"IF(INDIRECT(\"c\" & (VLOOKUP(Switch!$D$30,$F$2:$G$43,2,FALSE)+ROW()-2))=Switch!$D$30,INDIRECT(\"a\" & (VLOOKUP(Switch!$D$30,$F$2:$G$43,2,FALSE)+ROW()-2)),\"\")","v":{"$error":"#N/A"}},{"$f":"IF(INDIRECT(\"c\" & (VLOOKUP(Switch!$D$31,$F$2:$G$43,2,FALSE)+ROW()-2))=Switch!$D$31,INDIRECT(\"a\" & (VLOOKUP(Switch!$D$31,$F$2:$G$43,2,FALSE)+ROW()-2)),\"\")","v":{"$error":"#N/A"}},{"$f":"IF(INDIRECT(\"c\" & (VLOOKUP(Switch!$D$32,$F$2:$G$43,2,FALSE)+ROW()-2))=Switch!$D$32,INDIRECT(\"a\" & (VLOOKUP(Switch!$D$32,$F$2:$G$43,2,FALSE)+ROW()-2)),\"\")","v":{"$error":"#N/A"}},{"$f":"IF(INDIRECT(\"c\" & (VLOOKUP(Switch!$D$33,$F$2:$G$43,2,FALSE)+ROW()-2))=Switch!$D$33,INDIRECT(\"a\" & (VLOOKUP(Switch!$D$33,$F$2:$G$43,2,FALSE)+ROW()-2)),\"\")","v":{"$error":"#N/A"}},{"$f":"IF(INDIRECT(\"c\" & (VLOOKUP(Switch!$D$34,$F$2:$G$43,2,FALSE)+ROW()-2))=Switch!$D$34,INDIRECT(\"a\" & (VLOOKUP(Switch!$D$34,$F$2:$G$43,2,FALSE)+ROW()-2)),\"\")","v":{"$error":"#N/A"}},{"$f":"IF(INDIRECT(\"c\" & (VLOOKUP(Switch!$D$35,$F$2:$G$43,2,FALSE)+ROW()-2))=Switch!$D$35,INDIRECT(\"a\" & (VLOOKUP(Switch!$D$35,$F$2:$G$43,2,FALSE)+ROW()-2)),\"\")","v":{"$error":"#N/A"}},{"$f":"IF(INDIRECT(\"c\" & (VLOOKUP(Switch!$D$36,$F$2:$G$43,2,FALSE)+ROW()-2))=Switch!$D$36,INDIRECT(\"a\" & (VLOOKUP(Switch!$D$36,$F$2:$G$43,2,FALSE)+ROW()-2)),\"\")","v":{"$error":"#N/A"}},{"$f":"IF(INDIRECT(\"c\" & (VLOOKUP(Switch!$D$37,$F$2:$G$43,2,FALSE)+ROW()-2))=Switch!$D$37,INDIRECT(\"a\" & (VLOOKUP(Switch!$D$37,$F$2:$G$43,2,FALSE)+ROW()-2)),\"\")","v":{"$error":"#N/A"}},{"$f":"IF(INDIRECT(\"c\" & (VLOOKUP(Switch!$D$38,$F$2:$G$43,2,FALSE)+ROW()-2))=Switch!$D$38,INDIRECT(\"a\" & (VLOOKUP(Switch!$D$38,$F$2:$G$43,2,FALSE)+ROW()-2)),\"\")","v":{"$error":"#N/A"}},{"$f":"IF(INDIRECT(\"c\" & (VLOOKUP(Switch!$D$39,$F$2:$G$43,2,FALSE)+ROW()-2))=Switch!$D$39,INDIRECT(\"a\" & (VLOOKUP(Switch!$D$39,$F$2:$G$43,2,FALSE)+ROW()-2)),\"\")","v":{"$error":"#N/A"}},{"$f":"IF(INDIRECT(\"c\" & (VLOOKUP(Switch!$D$40,$F$2:$G$43,2,FALSE)+ROW()-2))=Switch!$D$40,INDIRECT(\"a\" & (VLOOKUP(Switch!$D$40,$F$2:$G$43,2,FALSE)+ROW()-2)),\"\")","v":{"$error":"#N/A"}},{"$f":"IF(INDIRECT(\"c\" & (VLOOKUP(Switch!$D$52,$F$2:$G$43,2,FALSE)+ROW()-2))=Switch!$D$52,INDIRECT(\"a\" & (VLOOKUP(Switch!$D$52,$F$2:$G$43,2,FALSE)+ROW()-2)),\"\")","v":{"$error":"#N/A"}},{"$f":"IF(INDIRECT(\"c\" & (VLOOKUP(Switch!$D$53,$F$2:$G$43,2,FALSE)+ROW()-2))=Switch!$D$53,INDIRECT(\"a\" & (VLOOKUP(Switch!$D$53,$F$2:$G$43,2,FALSE)+ROW()-2)),\"\")","v":{"$error":"#N/A"}},{"$f":"IF(INDIRECT(\"c\" & (VLOOKUP(Switch!$D$54,$F$2:$G$43,2,FALSE)+ROW()-2))=Switch!$D$54,INDIRECT(\"a\" & (VLOOKUP(Switch!$D$54,$F$2:$G$43,2,FALSE)+ROW()-2)),\"\")","v":{"$error":"#N/A"}},{"$f":"IF(INDIRECT(\"c\" & (VLOOKUP(Switch!$D$55,$F$2:$G$43,2,FALSE)+ROW()-2))=Switch!$D$55,INDIRECT(\"a\" & (VLOOKUP(Switch!$D$55,$F$2:$G$43,2,FALSE)+ROW()-2)),\"\")","v":{"$error":"#N/A"}},{"$f":"IF(INDIRECT(\"c\" & (VLOOKUP(Switch!$D$56,$F$2:$G$43,2,FALSE)+ROW()-2))=Switch!$D$56,INDIRECT(\"a\" & (VLOOKUP(Switch!$D$56,$F$2:$G$43,2,FALSE)+ROW()-2)),\"\")","v":{"$error":"#N/A"}},{"$f":"IF(INDIRECT(\"c\" & (VLOOKUP(Switch!$D$57,$F$2:$G$43,2,FALSE)+ROW()-2))=Switch!$D$57,INDIRECT(\"a\" & (VLOOKUP(Switch!$D$57,$F$2:$G$43,2,FALSE)+ROW()-2)),\"\")","v":{"$error":"#N/A"}},{"$f":"IF(INDIRECT(\"c\" & (VLOOKUP(Switch!$D$58,$F$2:$G$43,2,FALSE)+ROW()-2))=Switch!$D$58,INDIRECT(\"a\" & (VLOOKUP(Switch!$D$58,$F$2:$G$43,2,FALSE)+ROW()-2)),\"\")","v":{"$error":"#N/A"}},{"$f":"IF(INDIRECT(\"c\" & (VLOOKUP(Switch!$D$59,$F$2:$G$43,2,FALSE)+ROW()-2))=Switch!$D$59,INDIRECT(\"a\" & (VLOOKUP(Switch!$D$59,$F$2:$G$43,2,FALSE)+ROW()-2)),\"\")","v":{"$error":"#N/A"}},{"$f":"IF(INDIRECT(\"c\" & (VLOOKUP(Switch!$D$60,$F$2:$G$43,2,FALSE)+ROW()-2))=Switch!$D$60,INDIRECT(\"a\" & (VLOOKUP(Switch!$D$60,$F$2:$G$43,2,FALSE)+ROW()-2)),\"\")","v":{"$error":"#N/A"}},{"$f":"IF(INDIRECT(\"c\" & (VLOOKUP(Switch!$D$61,$F$2:$G$43,2,FALSE)+ROW()-2))=Switch!$D$61,INDIRECT(\"a\" & (VLOOKUP(Switch!$D$61,$F$2:$G$43,2,FALSE)+ROW()-2)),\"\")","v":{"$error":"#N/A"}},{"$f":"IF(INDIRECT(\"c\" & (VLOOKUP(Switch!$D$62,$F$2:$G$43,2,FALSE)+ROW()-2))=Switch!$D$62,INDIRECT(\"a\" & (VLOOKUP(Switch!$D$62,$F$2:$G$43,2,FALSE)+ROW()-2)),\"\")","v":{"$error":"#N/A"}},{"$f":"IF(INDIRECT(\"c\" & (VLOOKUP(Switch!$D$63,$F$2:$G$43,2,FALSE)+ROW()-2))=Switch!$D$63,INDIRECT(\"a\" & (VLOOKUP(Switch!$D$63,$F$2:$G$43,2,FALSE)+ROW()-2)),\"\")","v":{"$error":"#N/A"}},{"$f":"IF(INDIRECT(\"c\" & (VLOOKUP(Switch!$D$64,$F$2:$G$43,2,FALSE)+ROW()-2))=Switch!$D$64,INDIRECT(\"a\" & (VLOOKUP(Switch!$D$64,$F$2:$G$43,2,FALSE)+ROW()-2)),\"\")","v":{"$error":"#N/A"}},{"$f":"IF(INDIRECT(\"c\" & (VLOOKUP(Switch!$D$65,$F$2:$G$43,2,FALSE)+ROW()-2))=Switch!$D$65,INDIRECT(\"a\" & (VLOOKUP(Switch!$D$65,$F$2:$G$43,2,FALSE)+ROW()-2)),\"\")","v":{"$error":"#N/A"}},{"$f":"IF(INDIRECT(\"c\" & (VLOOKUP(Switch!$D$66,$F$2:$G$43,2,FALSE)+ROW()-2))=Switch!$D$66,INDIRECT(\"a\" & (VLOOKUP(Switch!$D$66,$F$2:$G$43,2,FALSE)+ROW()-2)),\"\")","v":{"$error":"#N/A"}}]
["Counterpoint SCI Moderate Fund A1","MEMA1","Sanlam Collective Investments",{"$f":"ROW()","v":509},null,null,{"$f":"VLOOKUP(F509,$C$2:$D$637,2,FALSE)","v":{"$error":"#N/A"}},{"$f":"IF(INDIRECT(\"c\" & (VLOOKUP(Switch!$D$26,$F$2:$G$43,2,FALSE)+ROW()-2))=Switch!$D$26,INDIRECT(\"a\" & (VLOOKUP(Switch!$D$26,$F$2:$G$43,2,FALSE)+ROW()-2)),\"\")","v":{"$error":"#N/A"}},{"$f":"IF(INDIRECT(\"c\" & (VLOOKUP(Switch!$D$27,$F$2:$G$43,2,FALSE)+ROW()-2))=Switch!$D$27,INDIRECT(\"a\" & (VLOOKUP(Switch!$D$27,$F$2:$G$43,2,FALSE)+ROW()-2)),\"\")","v":{"$error":"#N/A"}},{"$f":"IF(INDIRECT(\"c\" & (VLOOKUP(Switch!$D$28,$F$2:$G$43,2,FALSE)+ROW()-2))=Switch!$D$28,INDIRECT(\"a\" & (VLOOKUP(Switch!$D$28,$F$2:$G$43,2,FALSE)+ROW()-2)),\"\")","v":{"$error":"#N/A"}},{"$f":"IF(INDIRECT(\"c\" & (VLOOKUP(Switch!$D$29,$F$2:$G$43,2,FALSE)+ROW()-2))=Switch!$D$29,INDIRECT(\"a\" & (VLOOKUP(Switch!$D$29,$F$2:$G$43,2,FALSE)+ROW()-2)),\"\")","v":{"$error":"#N/A"}},{"$f":"IF(INDIRECT(\"c\" & (VLOOKUP(Switch!$D$30,$F$2:$G$43,2,FALSE)+ROW()-2))=Switch!$D$30,INDIRECT(\"a\" & (VLOOKUP(Switch!$D$30,$F$2:$G$43,2,FALSE)+ROW()-2)),\"\")","v":{"$error":"#N/A"}},{"$f":"IF(INDIRECT(\"c\" & (VLOOKUP(Switch!$D$31,$F$2:$G$43,2,FALSE)+ROW()-2))=Switch!$D$31,INDIRECT(\"a\" & (VLOOKUP(Switch!$D$31,$F$2:$G$43,2,FALSE)+ROW()-2)),\"\")","v":{"$error":"#N/A"}},{"$f":"IF(INDIRECT(\"c\" & (VLOOKUP(Switch!$D$32,$F$2:$G$43,2,FALSE)+ROW()-2))=Switch!$D$32,INDIRECT(\"a\" & (VLOOKUP(Switch!$D$32,$F$2:$G$43,2,FALSE)+ROW()-2)),\"\")","v":{"$error":"#N/A"}},{"$f":"IF(INDIRECT(\"c\" & (VLOOKUP(Switch!$D$33,$F$2:$G$43,2,FALSE)+ROW()-2))=Switch!$D$33,INDIRECT(\"a\" & (VLOOKUP(Switch!$D$33,$F$2:$G$43,2,FALSE)+ROW()-2)),\"\")","v":{"$error":"#N/A"}},{"$f":"IF(INDIRECT(\"c\" & (VLOOKUP(Switch!$D$34,$F$2:$G$43,2,FALSE)+ROW()-2))=Switch!$D$34,INDIRECT(\"a\" & (VLOOKUP(Switch!$D$34,$F$2:$G$43,2,FALSE)+ROW()-2)),\"\")","v":{"$error":"#N/A"}},{"$f":"IF(INDIRECT(\"c\" & (VLOOKUP(Switch!$D$35,$F$2:$G$43,2,FALSE)+ROW()-2))=Switch!$D$35,INDIRECT(\"a\" & (VLOOKUP(Switch!$D$35,$F$2:$G$43,2,FALSE)+ROW()-2)),\"\")","v":{"$error":"#N/A"}},{"$f":"IF(INDIRECT(\"c\" & (VLOOKUP(Switch!$D$36,$F$2:$G$43,2,FALSE)+ROW()-2))=Switch!$D$36,INDIRECT(\"a\" & (VLOOKUP(Switch!$D$36,$F$2:$G$43,2,FALSE)+ROW()-2)),\"\")","v":{"$error":"#N/A"}},{"$f":"IF(INDIRECT(\"c\" & (VLOOKUP(Switch!$D$37,$F$2:$G$43,2,FALSE)+ROW()-2))=Switch!$D$37,INDIRECT(\"a\" & (VLOOKUP(Switch!$D$37,$F$2:$G$43,2,FALSE)+ROW()-2)),\"\")","v":{"$error":"#N/A"}},{"$f":"IF(INDIRECT(\"c\" & (VLOOKUP(Switch!$D$38,$F$2:$G$43,2,FALSE)+ROW()-2))=Switch!$D$38,INDIRECT(\"a\" & (VLOOKUP(Switch!$D$38,$F$2:$G$43,2,FALSE)+ROW()-2)),\"\")","v":{"$error":"#N/A"}},{"$f":"IF(INDIRECT(\"c\" & (VLOOKUP(Switch!$D$39,$F$2:$G$43,2,FALSE)+ROW()-2))=Switch!$D$39,INDIRECT(\"a\" & (VLOOKUP(Switch!$D$39,$F$2:$G$43,2,FALSE)+ROW()-2)),\"\")","v":{"$error":"#N/A"}},{"$f":"IF(INDIRECT(\"c\" & (VLOOKUP(Switch!$D$40,$F$2:$G$43,2,FALSE)+ROW()-2))=Switch!$D$40,INDIRECT(\"a\" & (VLOOKUP(Switch!$D$40,$F$2:$G$43,2,FALSE)+ROW()-2)),\"\")","v":{"$error":"#N/A"}},{"$f":"IF(INDIRECT(\"c\" & (VLOOKUP(Switch!$D$52,$F$2:$G$43,2,FALSE)+ROW()-2))=Switch!$D$52,INDIRECT(\"a\" & (VLOOKUP(Switch!$D$52,$F$2:$G$43,2,FALSE)+ROW()-2)),\"\")","v":{"$error":"#N/A"}},{"$f":"IF(INDIRECT(\"c\" & (VLOOKUP(Switch!$D$53,$F$2:$G$43,2,FALSE)+ROW()-2))=Switch!$D$53,INDIRECT(\"a\" & (VLOOKUP(Switch!$D$53,$F$2:$G$43,2,FALSE)+ROW()-2)),\"\")","v":{"$error":"#N/A"}},{"$f":"IF(INDIRECT(\"c\" & (VLOOKUP(Switch!$D$54,$F$2:$G$43,2,FALSE)+ROW()-2))=Switch!$D$54,INDIRECT(\"a\" & (VLOOKUP(Switch!$D$54,$F$2:$G$43,2,FALSE)+ROW()-2)),\"\")","v":{"$error":"#N/A"}},{"$f":"IF(INDIRECT(\"c\" & (VLOOKUP(Switch!$D$55,$F$2:$G$43,2,FALSE)+ROW()-2))=Switch!$D$55,INDIRECT(\"a\" & (VLOOKUP(Switch!$D$55,$F$2:$G$43,2,FALSE)+ROW()-2)),\"\")","v":{"$error":"#N/A"}},{"$f":"IF(INDIRECT(\"c\" & (VLOOKUP(Switch!$D$56,$F$2:$G$43,2,FALSE)+ROW()-2))=Switch!$D$56,INDIRECT(\"a\" & (VLOOKUP(Switch!$D$56,$F$2:$G$43,2,FALSE)+ROW()-2)),\"\")","v":{"$error":"#N/A"}},{"$f":"IF(INDIRECT(\"c\" & (VLOOKUP(Switch!$D$57,$F$2:$G$43,2,FALSE)+ROW()-2))=Switch!$D$57,INDIRECT(\"a\" & (VLOOKUP(Switch!$D$57,$F$2:$G$43,2,FALSE)+ROW()-2)),\"\")","v":{"$error":"#N/A"}},{"$f":"IF(INDIRECT(\"c\" & (VLOOKUP(Switch!$D$58,$F$2:$G$43,2,FALSE)+ROW()-2))=Switch!$D$58,INDIRECT(\"a\" & (VLOOKUP(Switch!$D$58,$F$2:$G$43,2,FALSE)+ROW()-2)),\"\")","v":{"$error":"#N/A"}},{"$f":"IF(INDIRECT(\"c\" & (VLOOKUP(Switch!$D$59,$F$2:$G$43,2,FALSE)+ROW()-2))=Switch!$D$59,INDIRECT(\"a\" & (VLOOKUP(Switch!$D$59,$F$2:$G$43,2,FALSE)+ROW()-2)),\"\")","v":{"$error":"#N/A"}},{"$f":"IF(INDIRECT(\"c\" & (VLOOKUP(Switch!$D$60,$F$2:$G$43,2,FALSE)+ROW()-2))=Switch!$D$60,INDIRECT(\"a\" & (VLOOKUP(Switch!$D$60,$F$2:$G$43,2,FALSE)+ROW()-2)),\"\")","v":{"$error":"#N/A"}},{"$f":"IF(INDIRECT(\"c\" & (VLOOKUP(Switch!$D$61,$F$2:$G$43,2,FALSE)+ROW()-2))=Switch!$D$61,INDIRECT(\"a\" & (VLOOKUP(Switch!$D$61,$F$2:$G$43,2,FALSE)+ROW()-2)),\"\")","v":{"$error":"#N/A"}},{"$f":"IF(INDIRECT(\"c\" & (VLOOKUP(Switch!$D$62,$F$2:$G$43,2,FALSE)+ROW()-2))=Switch!$D$62,INDIRECT(\"a\" & (VLOOKUP(Switch!$D$62,$F$2:$G$43,2,FALSE)+ROW()-2)),\"\")","v":{"$error":"#N/A"}},{"$f":"IF(INDIRECT(\"c\" & (VLOOKUP(Switch!$D$63,$F$2:$G$43,2,FALSE)+ROW()-2))=Switch!$D$63,INDIRECT(\"a\" & (VLOOKUP(Switch!$D$63,$F$2:$G$43,2,FALSE)+ROW()-2)),\"\")","v":{"$error":"#N/A"}},{"$f":"IF(INDIRECT(\"c\" & (VLOOKUP(Switch!$D$64,$F$2:$G$43,2,FALSE)+ROW()-2))=Switch!$D$64,INDIRECT(\"a\" & (VLOOKUP(Switch!$D$64,$F$2:$G$43,2,FALSE)+ROW()-2)),\"\")","v":{"$error":"#N/A"}},{"$f":"IF(INDIRECT(\"c\" & (VLOOKUP(Switch!$D$65,$F$2:$G$43,2,FALSE)+ROW()-2))=Switch!$D$65,INDIRECT(\"a\" & (VLOOKUP(Switch!$D$65,$F$2:$G$43,2,FALSE)+ROW()-2)),\"\")","v":{"$error":"#N/A"}},{"$f":"IF(INDIRECT(\"c\" & (VLOOKUP(Switch!$D$66,$F$2:$G$43,2,FALSE)+ROW()-2))=Switch!$D$66,INDIRECT(\"a\" & (VLOOKUP(Switch!$D$66,$F$2:$G$43,2,FALSE)+ROW()-2)),\"\")","v":{"$error":"#N/A"}}]
["Counterpoint SCI Value Fund A1","MBHD","Sanlam Collective Investments",{"$f":"ROW()","v":510},null,null,{"$f":"VLOOKUP(F510,$C$2:$D$637,2,FALSE)","v":{"$error":"#N/A"}},{"$f":"IF(INDIRECT(\"c\" & (VLOOKUP(Switch!$D$26,$F$2:$G$43,2,FALSE)+ROW()-2))=Switch!$D$26,INDIRECT(\"a\" & (VLOOKUP(Switch!$D$26,$F$2:$G$43,2,FALSE)+ROW()-2)),\"\")","v":{"$error":"#N/A"}},{"$f":"IF(INDIRECT(\"c\" & (VLOOKUP(Switch!$D$27,$F$2:$G$43,2,FALSE)+ROW()-2))=Switch!$D$27,INDIRECT(\"a\" & (VLOOKUP(Switch!$D$27,$F$2:$G$43,2,FALSE)+ROW()-2)),\"\")","v":{"$error":"#N/A"}},{"$f":"IF(INDIRECT(\"c\" & (VLOOKUP(Switch!$D$28,$F$2:$G$43,2,FALSE)+ROW()-2))=Switch!$D$28,INDIRECT(\"a\" & (VLOOKUP(Switch!$D$28,$F$2:$G$43,2,FALSE)+ROW()-2)),\"\")","v":{"$error":"#N/A"}},{"$f":"IF(INDIRECT(\"c\" & (VLOOKUP(Switch!$D$29,$F$2:$G$43,2,FALSE)+ROW()-2))=Switch!$D$29,INDIRECT(\"a\" & (VLOOKUP(Switch!$D$29,$F$2:$G$43,2,FALSE)+ROW()-2)),\"\")","v":{"$error":"#N/A"}},{"$f":"IF(INDIRECT(\"c\" & (VLOOKUP(Switch!$D$30,$F$2:$G$43,2,FALSE)+ROW()-2))=Switch!$D$30,INDIRECT(\"a\" & (VLOOKUP(Switch!$D$30,$F$2:$G$43,2,FALSE)+ROW()-2)),\"\")","v":{"$error":"#N/A"}},{"$f":"IF(INDIRECT(\"c\" & (VLOOKUP(Switch!$D$31,$F$2:$G$43,2,FALSE)+ROW()-2))=Switch!$D$31,INDIRECT(\"a\" & (VLOOKUP(Switch!$D$31,$F$2:$G$43,2,FALSE)+ROW()-2)),\"\")","v":{"$error":"#N/A"}},{"$f":"IF(INDIRECT(\"c\" & (VLOOKUP(Switch!$D$32,$F$2:$G$43,2,FALSE)+ROW()-2))=Switch!$D$32,INDIRECT(\"a\" & (VLOOKUP(Switch!$D$32,$F$2:$G$43,2,FALSE)+ROW()-2)),\"\")","v":{"$error":"#N/A"}},{"$f":"IF(INDIRECT(\"c\" & (VLOOKUP(Switch!$D$33,$F$2:$G$43,2,FALSE)+ROW()-2))=Switch!$D$33,INDIRECT(\"a\" & (VLOOKUP(Switch!$D$33,$F$2:$G$43,2,FALSE)+ROW()-2)),\"\")","v":{"$error":"#N/A"}},{"$f":"IF(INDIRECT(\"c\" & (VLOOKUP(Switch!$D$34,$F$2:$G$43,2,FALSE)+ROW()-2))=Switch!$D$34,INDIRECT(\"a\" & (VLOOKUP(Switch!$D$34,$F$2:$G$43,2,FALSE)+ROW()-2)),\"\")","v":{"$error":"#N/A"}},{"$f":"IF(INDIRECT(\"c\" & (VLOOKUP(Switch!$D$35,$F$2:$G$43,2,FALSE)+ROW()-2))=Switch!$D$35,INDIRECT(\"a\" & (VLOOKUP(Switch!$D$35,$F$2:$G$43,2,FALSE)+ROW()-2)),\"\")","v":{"$error":"#N/A"}},{"$f":"IF(INDIRECT(\"c\" & (VLOOKUP(Switch!$D$36,$F$2:$G$43,2,FALSE)+ROW()-2))=Switch!$D$36,INDIRECT(\"a\" & (VLOOKUP(Switch!$D$36,$F$2:$G$43,2,FALSE)+ROW()-2)),\"\")","v":{"$error":"#N/A"}},{"$f":"IF(INDIRECT(\"c\" & (VLOOKUP(Switch!$D$37,$F$2:$G$43,2,FALSE)+ROW()-2))=Switch!$D$37,INDIRECT(\"a\" & (VLOOKUP(Switch!$D$37,$F$2:$G$43,2,FALSE)+ROW()-2)),\"\")","v":{"$error":"#N/A"}},{"$f":"IF(INDIRECT(\"c\" & (VLOOKUP(Switch!$D$38,$F$2:$G$43,2,FALSE)+ROW()-2))=Switch!$D$38,INDIRECT(\"a\" & (VLOOKUP(Switch!$D$38,$F$2:$G$43,2,FALSE)+ROW()-2)),\"\")","v":{"$error":"#N/A"}},{"$f":"IF(INDIRECT(\"c\" & (VLOOKUP(Switch!$D$39,$F$2:$G$43,2,FALSE)+ROW()-2))=Switch!$D$39,INDIRECT(\"a\" & (VLOOKUP(Switch!$D$39,$F$2:$G$43,2,FALSE)+ROW()-2)),\"\")","v":{"$error":"#N/A"}},{"$f":"IF(INDIRECT(\"c\" & (VLOOKUP(Switch!$D$40,$F$2:$G$43,2,FALSE)+ROW()-2))=Switch!$D$40,INDIRECT(\"a\" & (VLOOKUP(Switch!$D$40,$F$2:$G$43,2,FALSE)+ROW()-2)),\"\")","v":{"$error":"#N/A"}},{"$f":"IF(INDIRECT(\"c\" & (VLOOKUP(Switch!$D$52,$F$2:$G$43,2,FALSE)+ROW()-2))=Switch!$D$52,INDIRECT(\"a\" & (VLOOKUP(Switch!$D$52,$F$2:$G$43,2,FALSE)+ROW()-2)),\"\")","v":{"$error":"#N/A"}},{"$f":"IF(INDIRECT(\"c\" & (VLOOKUP(Switch!$D$53,$F$2:$G$43,2,FALSE)+ROW()-2))=Switch!$D$53,INDIRECT(\"a\" & (VLOOKUP(Switch!$D$53,$F$2:$G$43,2,FALSE)+ROW()-2)),\"\")","v":{"$error":"#N/A"}},{"$f":"IF(INDIRECT(\"c\" & (VLOOKUP(Switch!$D$54,$F$2:$G$43,2,FALSE)+ROW()-2))=Switch!$D$54,INDIRECT(\"a\" & (VLOOKUP(Switch!$D$54,$F$2:$G$43,2,FALSE)+ROW()-2)),\"\")","v":{"$error":"#N/A"}},{"$f":"IF(INDIRECT(\"c\" & (VLOOKUP(Switch!$D$55,$F$2:$G$43,2,FALSE)+ROW()-2))=Switch!$D$55,INDIRECT(\"a\" & (VLOOKUP(Switch!$D$55,$F$2:$G$43,2,FALSE)+ROW()-2)),\"\")","v":{"$error":"#N/A"}},{"$f":"IF(INDIRECT(\"c\" & (VLOOKUP(Switch!$D$56,$F$2:$G$43,2,FALSE)+ROW()-2))=Switch!$D$56,INDIRECT(\"a\" & (VLOOKUP(Switch!$D$56,$F$2:$G$43,2,FALSE)+ROW()-2)),\"\")","v":{"$error":"#N/A"}},{"$f":"IF(INDIRECT(\"c\" & (VLOOKUP(Switch!$D$57,$F$2:$G$43,2,FALSE)+ROW()-2))=Switch!$D$57,INDIRECT(\"a\" & (VLOOKUP(Switch!$D$57,$F$2:$G$43,2,FALSE)+ROW()-2)),\"\")","v":{"$error":"#N/A"}},{"$f":"IF(INDIRECT(\"c\" & (VLOOKUP(Switch!$D$58,$F$2:$G$43,2,FALSE)+ROW()-2))=Switch!$D$58,INDIRECT(\"a\" & (VLOOKUP(Switch!$D$58,$F$2:$G$43,2,FALSE)+ROW()-2)),\"\")","v":{"$error":"#N/A"}},{"$f":"IF(INDIRECT(\"c\" & (VLOOKUP(Switch!$D$59,$F$2:$G$43,2,FALSE)+ROW()-2))=Switch!$D$59,INDIRECT(\"a\" & (VLOOKUP(Switch!$D$59,$F$2:$G$43,2,FALSE)+ROW()-2)),\"\")","v":{"$error":"#N/A"}},{"$f":"IF(INDIRECT(\"c\" & (VLOOKUP(Switch!$D$60,$F$2:$G$43,2,FALSE)+ROW()-2))=Switch!$D$60,INDIRECT(\"a\" & (VLOOKUP(Switch!$D$60,$F$2:$G$43,2,FALSE)+ROW()-2)),\"\")","v":{"$error":"#N/A"}},{"$f":"IF(INDIRECT(\"c\" & (VLOOKUP(Switch!$D$61,$F$2:$G$43,2,FALSE)+ROW()-2))=Switch!$D$61,INDIRECT(\"a\" & (VLOOKUP(Switch!$D$61,$F$2:$G$43,2,FALSE)+ROW()-2)),\"\")","v":{"$error":"#N/A"}},{"$f":"IF(INDIRECT(\"c\" & (VLOOKUP(Switch!$D$62,$F$2:$G$43,2,FALSE)+ROW()-2))=Switch!$D$62,INDIRECT(\"a\" & (VLOOKUP(Switch!$D$62,$F$2:$G$43,2,FALSE)+ROW()-2)),\"\")","v":{"$error":"#N/A"}},{"$f":"IF(INDIRECT(\"c\" & (VLOOKUP(Switch!$D$63,$F$2:$G$43,2,FALSE)+ROW()-2))=Switch!$D$63,INDIRECT(\"a\" & (VLOOKUP(Switch!$D$63,$F$2:$G$43,2,FALSE)+ROW()-2)),\"\")","v":{"$error":"#N/A"}},{"$f":"IF(INDIRECT(\"c\" & (VLOOKUP(Switch!$D$64,$F$2:$G$43,2,FALSE)+ROW()-2))=Switch!$D$64,INDIRECT(\"a\" & (VLOOKUP(Switch!$D$64,$F$2:$G$43,2,FALSE)+ROW()-2)),\"\")","v":{"$error":"#N/A"}},{"$f":"IF(INDIRECT(\"c\" & (VLOOKUP(Switch!$D$65,$F$2:$G$43,2,FALSE)+ROW()-2))=Switch!$D$65,INDIRECT(\"a\" & (VLOOKUP(Switch!$D$65,$F$2:$G$43,2,FALSE)+ROW()-2)),\"\")","v":{"$error":"#N/A"}},{"$f":"IF(INDIRECT(\"c\" & (VLOOKUP(Switch!$D$66,$F$2:$G$43,2,FALSE)+ROW()-2))=Switch!$D$66,INDIRECT(\"a\" & (VLOOKUP(Switch!$D$66,$F$2:$G$43,2,FALSE)+ROW()-2)),\"\")","v":{"$error":"#N/A"}}]
["Denker SCI Global Equity Feeder Fund B2","SGBB2","Sanlam Collective Investments",{"$f":"ROW()","v":511},null,null,{"$f":"VLOOKUP(F511,$C$2:$D$637,2,FALSE)","v":{"$error":"#N/A"}},{"$f":"IF(INDIRECT(\"c\" & (VLOOKUP(Switch!$D$26,$F$2:$G$43,2,FALSE)+ROW()-2))=Switch!$D$26,INDIRECT(\"a\" & (VLOOKUP(Switch!$D$26,$F$2:$G$43,2,FALSE)+ROW()-2)),\"\")","v":{"$error":"#N/A"}},{"$f":"IF(INDIRECT(\"c\" & (VLOOKUP(Switch!$D$27,$F$2:$G$43,2,FALSE)+ROW()-2))=Switch!$D$27,INDIRECT(\"a\" & (VLOOKUP(Switch!$D$27,$F$2:$G$43,2,FALSE)+ROW()-2)),\"\")","v":{"$error":"#N/A"}},{"$f":"IF(INDIRECT(\"c\" & (VLOOKUP(Switch!$D$28,$F$2:$G$43,2,FALSE)+ROW()-2))=Switch!$D$28,INDIRECT(\"a\" & (VLOOKUP(Switch!$D$28,$F$2:$G$43,2,FALSE)+ROW()-2)),\"\")","v":{"$error":"#N/A"}},{"$f":"IF(INDIRECT(\"c\" & (VLOOKUP(Switch!$D$29,$F$2:$G$43,2,FALSE)+ROW()-2))=Switch!$D$29,INDIRECT(\"a\" & (VLOOKUP(Switch!$D$29,$F$2:$G$43,2,FALSE)+ROW()-2)),\"\")","v":{"$error":"#N/A"}},{"$f":"IF(INDIRECT(\"c\" & (VLOOKUP(Switch!$D$30,$F$2:$G$43,2,FALSE)+ROW()-2))=Switch!$D$30,INDIRECT(\"a\" & (VLOOKUP(Switch!$D$30,$F$2:$G$43,2,FALSE)+ROW()-2)),\"\")","v":{"$error":"#N/A"}},{"$f":"IF(INDIRECT(\"c\" & (VLOOKUP(Switch!$D$31,$F$2:$G$43,2,FALSE)+ROW()-2))=Switch!$D$31,INDIRECT(\"a\" & (VLOOKUP(Switch!$D$31,$F$2:$G$43,2,FALSE)+ROW()-2)),\"\")","v":{"$error":"#N/A"}},{"$f":"IF(INDIRECT(\"c\" & (VLOOKUP(Switch!$D$32,$F$2:$G$43,2,FALSE)+ROW()-2))=Switch!$D$32,INDIRECT(\"a\" & (VLOOKUP(Switch!$D$32,$F$2:$G$43,2,FALSE)+ROW()-2)),\"\")","v":{"$error":"#N/A"}},{"$f":"IF(INDIRECT(\"c\" & (VLOOKUP(Switch!$D$33,$F$2:$G$43,2,FALSE)+ROW()-2))=Switch!$D$33,INDIRECT(\"a\" & (VLOOKUP(Switch!$D$33,$F$2:$G$43,2,FALSE)+ROW()-2)),\"\")","v":{"$error":"#N/A"}},{"$f":"IF(INDIRECT(\"c\" & (VLOOKUP(Switch!$D$34,$F$2:$G$43,2,FALSE)+ROW()-2))=Switch!$D$34,INDIRECT(\"a\" & (VLOOKUP(Switch!$D$34,$F$2:$G$43,2,FALSE)+ROW()-2)),\"\")","v":{"$error":"#N/A"}},{"$f":"IF(INDIRECT(\"c\" & (VLOOKUP(Switch!$D$35,$F$2:$G$43,2,FALSE)+ROW()-2))=Switch!$D$35,INDIRECT(\"a\" & (VLOOKUP(Switch!$D$35,$F$2:$G$43,2,FALSE)+ROW()-2)),\"\")","v":{"$error":"#N/A"}},{"$f":"IF(INDIRECT(\"c\" & (VLOOKUP(Switch!$D$36,$F$2:$G$43,2,FALSE)+ROW()-2))=Switch!$D$36,INDIRECT(\"a\" & (VLOOKUP(Switch!$D$36,$F$2:$G$43,2,FALSE)+ROW()-2)),\"\")","v":{"$error":"#N/A"}},{"$f":"IF(INDIRECT(\"c\" & (VLOOKUP(Switch!$D$37,$F$2:$G$43,2,FALSE)+ROW()-2))=Switch!$D$37,INDIRECT(\"a\" & (VLOOKUP(Switch!$D$37,$F$2:$G$43,2,FALSE)+ROW()-2)),\"\")","v":{"$error":"#N/A"}},{"$f":"IF(INDIRECT(\"c\" & (VLOOKUP(Switch!$D$38,$F$2:$G$43,2,FALSE)+ROW()-2))=Switch!$D$38,INDIRECT(\"a\" & (VLOOKUP(Switch!$D$38,$F$2:$G$43,2,FALSE)+ROW()-2)),\"\")","v":{"$error":"#N/A"}},{"$f":"IF(INDIRECT(\"c\" & (VLOOKUP(Switch!$D$39,$F$2:$G$43,2,FALSE)+ROW()-2))=Switch!$D$39,INDIRECT(\"a\" & (VLOOKUP(Switch!$D$39,$F$2:$G$43,2,FALSE)+ROW()-2)),\"\")","v":{"$error":"#N/A"}},{"$f":"IF(INDIRECT(\"c\" & (VLOOKUP(Switch!$D$40,$F$2:$G$43,2,FALSE)+ROW()-2))=Switch!$D$40,INDIRECT(\"a\" & (VLOOKUP(Switch!$D$40,$F$2:$G$43,2,FALSE)+ROW()-2)),\"\")","v":{"$error":"#N/A"}},{"$f":"IF(INDIRECT(\"c\" & (VLOOKUP(Switch!$D$52,$F$2:$G$43,2,FALSE)+ROW()-2))=Switch!$D$52,INDIRECT(\"a\" & (VLOOKUP(Switch!$D$52,$F$2:$G$43,2,FALSE)+ROW()-2)),\"\")","v":{"$error":"#N/A"}},{"$f":"IF(INDIRECT(\"c\" & (VLOOKUP(Switch!$D$53,$F$2:$G$43,2,FALSE)+ROW()-2))=Switch!$D$53,INDIRECT(\"a\" & (VLOOKUP(Switch!$D$53,$F$2:$G$43,2,FALSE)+ROW()-2)),\"\")","v":{"$error":"#N/A"}},{"$f":"IF(INDIRECT(\"c\" & (VLOOKUP(Switch!$D$54,$F$2:$G$43,2,FALSE)+ROW()-2))=Switch!$D$54,INDIRECT(\"a\" & (VLOOKUP(Switch!$D$54,$F$2:$G$43,2,FALSE)+ROW()-2)),\"\")","v":{"$error":"#N/A"}},{"$f":"IF(INDIRECT(\"c\" & (VLOOKUP(Switch!$D$55,$F$2:$G$43,2,FALSE)+ROW()-2))=Switch!$D$55,INDIRECT(\"a\" & (VLOOKUP(Switch!$D$55,$F$2:$G$43,2,FALSE)+ROW()-2)),\"\")","v":{"$error":"#N/A"}},{"$f":"IF(INDIRECT(\"c\" & (VLOOKUP(Switch!$D$56,$F$2:$G$43,2,FALSE)+ROW()-2))=Switch!$D$56,INDIRECT(\"a\" & (VLOOKUP(Switch!$D$56,$F$2:$G$43,2,FALSE)+ROW()-2)),\"\")","v":{"$error":"#N/A"}},{"$f":"IF(INDIRECT(\"c\" & (VLOOKUP(Switch!$D$57,$F$2:$G$43,2,FALSE)+ROW()-2))=Switch!$D$57,INDIRECT(\"a\" & (VLOOKUP(Switch!$D$57,$F$2:$G$43,2,FALSE)+ROW()-2)),\"\")","v":{"$error":"#N/A"}},{"$f":"IF(INDIRECT(\"c\" & (VLOOKUP(Switch!$D$58,$F$2:$G$43,2,FALSE)+ROW()-2))=Switch!$D$58,INDIRECT(\"a\" & (VLOOKUP(Switch!$D$58,$F$2:$G$43,2,FALSE)+ROW()-2)),\"\")","v":{"$error":"#N/A"}},{"$f":"IF(INDIRECT(\"c\" & (VLOOKUP(Switch!$D$59,$F$2:$G$43,2,FALSE)+ROW()-2))=Switch!$D$59,INDIRECT(\"a\" & (VLOOKUP(Switch!$D$59,$F$2:$G$43,2,FALSE)+ROW()-2)),\"\")","v":{"$error":"#N/A"}},{"$f":"IF(INDIRECT(\"c\" & (VLOOKUP(Switch!$D$60,$F$2:$G$43,2,FALSE)+ROW()-2))=Switch!$D$60,INDIRECT(\"a\" & (VLOOKUP(Switch!$D$60,$F$2:$G$43,2,FALSE)+ROW()-2)),\"\")","v":{"$error":"#N/A"}},{"$f":"IF(INDIRECT(\"c\" & (VLOOKUP(Switch!$D$61,$F$2:$G$43,2,FALSE)+ROW()-2))=Switch!$D$61,INDIRECT(\"a\" & (VLOOKUP(Switch!$D$61,$F$2:$G$43,2,FALSE)+ROW()-2)),\"\")","v":{"$error":"#N/A"}},{"$f":"IF(INDIRECT(\"c\" & (VLOOKUP(Switch!$D$62,$F$2:$G$43,2,FALSE)+ROW()-2))=Switch!$D$62,INDIRECT(\"a\" & (VLOOKUP(Switch!$D$62,$F$2:$G$43,2,FALSE)+ROW()-2)),\"\")","v":{"$error":"#N/A"}},{"$f":"IF(INDIRECT(\"c\" & (VLOOKUP(Switch!$D$63,$F$2:$G$43,2,FALSE)+ROW()-2))=Switch!$D$63,INDIRECT(\"a\" & (VLOOKUP(Switch!$D$63,$F$2:$G$43,2,FALSE)+ROW()-2)),\"\")","v":{"$error":"#N/A"}},{"$f":"IF(INDIRECT(\"c\" & (VLOOKUP(Switch!$D$64,$F$2:$G$43,2,FALSE)+ROW()-2))=Switch!$D$64,INDIRECT(\"a\" & (VLOOKUP(Switch!$D$64,$F$2:$G$43,2,FALSE)+ROW()-2)),\"\")","v":{"$error":"#N/A"}},{"$f":"IF(INDIRECT(\"c\" & (VLOOKUP(Switch!$D$65,$F$2:$G$43,2,FALSE)+ROW()-2))=Switch!$D$65,INDIRECT(\"a\" & (VLOOKUP(Switch!$D$65,$F$2:$G$43,2,FALSE)+ROW()-2)),\"\")","v":{"$error":"#N/A"}},{"$f":"IF(INDIRECT(\"c\" & (VLOOKUP(Switch!$D$66,$F$2:$G$43,2,FALSE)+ROW()-2))=Switch!$D$66,INDIRECT(\"a\" & (VLOOKUP(Switch!$D$66,$F$2:$G$43,2,FALSE)+ROW()-2)),\"\")","v":{"$error":"#N/A"}}]
["Element Earth Equity SCI Fund C","FEEC","Sanlam Collective Investments",{"$f":"ROW()","v":512},null,null,{"$f":"VLOOKUP(F512,$C$2:$D$637,2,FALSE)","v":{"$error":"#N/A"}},{"$f":"IF(INDIRECT(\"c\" & (VLOOKUP(Switch!$D$26,$F$2:$G$43,2,FALSE)+ROW()-2))=Switch!$D$26,INDIRECT(\"a\" & (VLOOKUP(Switch!$D$26,$F$2:$G$43,2,FALSE)+ROW()-2)),\"\")","v":{"$error":"#N/A"}},{"$f":"IF(INDIRECT(\"c\" & (VLOOKUP(Switch!$D$27,$F$2:$G$43,2,FALSE)+ROW()-2))=Switch!$D$27,INDIRECT(\"a\" & (VLOOKUP(Switch!$D$27,$F$2:$G$43,2,FALSE)+ROW()-2)),\"\")","v":{"$error":"#N/A"}},{"$f":"IF(INDIRECT(\"c\" & (VLOOKUP(Switch!$D$28,$F$2:$G$43,2,FALSE)+ROW()-2))=Switch!$D$28,INDIRECT(\"a\" & (VLOOKUP(Switch!$D$28,$F$2:$G$43,2,FALSE)+ROW()-2)),\"\")","v":{"$error":"#N/A"}},{"$f":"IF(INDIRECT(\"c\" & (VLOOKUP(Switch!$D$29,$F$2:$G$43,2,FALSE)+ROW()-2))=Switch!$D$29,INDIRECT(\"a\" & (VLOOKUP(Switch!$D$29,$F$2:$G$43,2,FALSE)+ROW()-2)),\"\")","v":{"$error":"#N/A"}},{"$f":"IF(INDIRECT(\"c\" & (VLOOKUP(Switch!$D$30,$F$2:$G$43,2,FALSE)+ROW()-2))=Switch!$D$30,INDIRECT(\"a\" & (VLOOKUP(Switch!$D$30,$F$2:$G$43,2,FALSE)+ROW()-2)),\"\")","v":{"$error":"#N/A"}},{"$f":"IF(INDIRECT(\"c\" & (VLOOKUP(Switch!$D$31,$F$2:$G$43,2,FALSE)+ROW()-2))=Switch!$D$31,INDIRECT(\"a\" & (VLOOKUP(Switch!$D$31,$F$2:$G$43,2,FALSE)+ROW()-2)),\"\")","v":{"$error":"#N/A"}},{"$f":"IF(INDIRECT(\"c\" & (VLOOKUP(Switch!$D$32,$F$2:$G$43,2,FALSE)+ROW()-2))=Switch!$D$32,INDIRECT(\"a\" & (VLOOKUP(Switch!$D$32,$F$2:$G$43,2,FALSE)+ROW()-2)),\"\")","v":{"$error":"#N/A"}},{"$f":"IF(INDIRECT(\"c\" & (VLOOKUP(Switch!$D$33,$F$2:$G$43,2,FALSE)+ROW()-2))=Switch!$D$33,INDIRECT(\"a\" & (VLOOKUP(Switch!$D$33,$F$2:$G$43,2,FALSE)+ROW()-2)),\"\")","v":{"$error":"#N/A"}},{"$f":"IF(INDIRECT(\"c\" & (VLOOKUP(Switch!$D$34,$F$2:$G$43,2,FALSE)+ROW()-2))=Switch!$D$34,INDIRECT(\"a\" & (VLOOKUP(Switch!$D$34,$F$2:$G$43,2,FALSE)+ROW()-2)),\"\")","v":{"$error":"#N/A"}},{"$f":"IF(INDIRECT(\"c\" & (VLOOKUP(Switch!$D$35,$F$2:$G$43,2,FALSE)+ROW()-2))=Switch!$D$35,INDIRECT(\"a\" & (VLOOKUP(Switch!$D$35,$F$2:$G$43,2,FALSE)+ROW()-2)),\"\")","v":{"$error":"#N/A"}},{"$f":"IF(INDIRECT(\"c\" & (VLOOKUP(Switch!$D$36,$F$2:$G$43,2,FALSE)+ROW()-2))=Switch!$D$36,INDIRECT(\"a\" & (VLOOKUP(Switch!$D$36,$F$2:$G$43,2,FALSE)+ROW()-2)),\"\")","v":{"$error":"#N/A"}},{"$f":"IF(INDIRECT(\"c\" & (VLOOKUP(Switch!$D$37,$F$2:$G$43,2,FALSE)+ROW()-2))=Switch!$D$37,INDIRECT(\"a\" & (VLOOKUP(Switch!$D$37,$F$2:$G$43,2,FALSE)+ROW()-2)),\"\")","v":{"$error":"#N/A"}},{"$f":"IF(INDIRECT(\"c\" & (VLOOKUP(Switch!$D$38,$F$2:$G$43,2,FALSE)+ROW()-2))=Switch!$D$38,INDIRECT(\"a\" & (VLOOKUP(Switch!$D$38,$F$2:$G$43,2,FALSE)+ROW()-2)),\"\")","v":{"$error":"#N/A"}},{"$f":"IF(INDIRECT(\"c\" & (VLOOKUP(Switch!$D$39,$F$2:$G$43,2,FALSE)+ROW()-2))=Switch!$D$39,INDIRECT(\"a\" & (VLOOKUP(Switch!$D$39,$F$2:$G$43,2,FALSE)+ROW()-2)),\"\")","v":{"$error":"#N/A"}},{"$f":"IF(INDIRECT(\"c\" & (VLOOKUP(Switch!$D$40,$F$2:$G$43,2,FALSE)+ROW()-2))=Switch!$D$40,INDIRECT(\"a\" & (VLOOKUP(Switch!$D$40,$F$2:$G$43,2,FALSE)+ROW()-2)),\"\")","v":{"$error":"#N/A"}},{"$f":"IF(INDIRECT(\"c\" & (VLOOKUP(Switch!$D$52,$F$2:$G$43,2,FALSE)+ROW()-2))=Switch!$D$52,INDIRECT(\"a\" & (VLOOKUP(Switch!$D$52,$F$2:$G$43,2,FALSE)+ROW()-2)),\"\")","v":{"$error":"#N/A"}},{"$f":"IF(INDIRECT(\"c\" & (VLOOKUP(Switch!$D$53,$F$2:$G$43,2,FALSE)+ROW()-2))=Switch!$D$53,INDIRECT(\"a\" & (VLOOKUP(Switch!$D$53,$F$2:$G$43,2,FALSE)+ROW()-2)),\"\")","v":{"$error":"#N/A"}},{"$f":"IF(INDIRECT(\"c\" & (VLOOKUP(Switch!$D$54,$F$2:$G$43,2,FALSE)+ROW()-2))=Switch!$D$54,INDIRECT(\"a\" & (VLOOKUP(Switch!$D$54,$F$2:$G$43,2,FALSE)+ROW()-2)),\"\")","v":{"$error":"#N/A"}},{"$f":"IF(INDIRECT(\"c\" & (VLOOKUP(Switch!$D$55,$F$2:$G$43,2,FALSE)+ROW()-2))=Switch!$D$55,INDIRECT(\"a\" & (VLOOKUP(Switch!$D$55,$F$2:$G$43,2,FALSE)+ROW()-2)),\"\")","v":{"$error":"#N/A"}},{"$f":"IF(INDIRECT(\"c\" & (VLOOKUP(Switch!$D$56,$F$2:$G$43,2,FALSE)+ROW()-2))=Switch!$D$56,INDIRECT(\"a\" & (VLOOKUP(Switch!$D$56,$F$2:$G$43,2,FALSE)+ROW()-2)),\"\")","v":{"$error":"#N/A"}},{"$f":"IF(INDIRECT(\"c\" & (VLOOKUP(Switch!$D$57,$F$2:$G$43,2,FALSE)+ROW()-2))=Switch!$D$57,INDIRECT(\"a\" & (VLOOKUP(Switch!$D$57,$F$2:$G$43,2,FALSE)+ROW()-2)),\"\")","v":{"$error":"#N/A"}},{"$f":"IF(INDIRECT(\"c\" & (VLOOKUP(Switch!$D$58,$F$2:$G$43,2,FALSE)+ROW()-2))=Switch!$D$58,INDIRECT(\"a\" & (VLOOKUP(Switch!$D$58,$F$2:$G$43,2,FALSE)+ROW()-2)),\"\")","v":{"$error":"#N/A"}},{"$f":"IF(INDIRECT(\"c\" & (VLOOKUP(Switch!$D$59,$F$2:$G$43,2,FALSE)+ROW()-2))=Switch!$D$59,INDIRECT(\"a\" & (VLOOKUP(Switch!$D$59,$F$2:$G$43,2,FALSE)+ROW()-2)),\"\")","v":{"$error":"#N/A"}},{"$f":"IF(INDIRECT(\"c\" & (VLOOKUP(Switch!$D$60,$F$2:$G$43,2,FALSE)+ROW()-2))=Switch!$D$60,INDIRECT(\"a\" & (VLOOKUP(Switch!$D$60,$F$2:$G$43,2,FALSE)+ROW()-2)),\"\")","v":{"$error":"#N/A"}},{"$f":"IF(INDIRECT(\"c\" & (VLOOKUP(Switch!$D$61,$F$2:$G$43,2,FALSE)+ROW()-2))=Switch!$D$61,INDIRECT(\"a\" & (VLOOKUP(Switch!$D$61,$F$2:$G$43,2,FALSE)+ROW()-2)),\"\")","v":{"$error":"#N/A"}},{"$f":"IF(INDIRECT(\"c\" & (VLOOKUP(Switch!$D$62,$F$2:$G$43,2,FALSE)+ROW()-2))=Switch!$D$62,INDIRECT(\"a\" & (VLOOKUP(Switch!$D$62,$F$2:$G$43,2,FALSE)+ROW()-2)),\"\")","v":{"$error":"#N/A"}},{"$f":"IF(INDIRECT(\"c\" & (VLOOKUP(Switch!$D$63,$F$2:$G$43,2,FALSE)+ROW()-2))=Switch!$D$63,INDIRECT(\"a\" & (VLOOKUP(Switch!$D$63,$F$2:$G$43,2,FALSE)+ROW()-2)),\"\")","v":{"$error":"#N/A"}},{"$f":"IF(INDIRECT(\"c\" & (VLOOKUP(Switch!$D$64,$F$2:$G$43,2,FALSE)+ROW()-2))=Switch!$D$64,INDIRECT(\"a\" & (VLOOKUP(Switch!$D$64,$F$2:$G$43,2,FALSE)+ROW()-2)),\"\")","v":{"$error":"#N/A"}},{"$f":"IF(INDIRECT(\"c\" & (VLOOKUP(Switch!$D$65,$F$2:$G$43,2,FALSE)+ROW()-2))=Switch!$D$65,INDIRECT(\"a\" & (VLOOKUP(Switch!$D$65,$F$2:$G$43,2,FALSE)+ROW()-2)),\"\")","v":{"$error":"#N/A"}},{"$f":"IF(INDIRECT(\"c\" & (VLOOKUP(Switch!$D$66,$F$2:$G$43,2,FALSE)+ROW()-2))=Switch!$D$66,INDIRECT(\"a\" & (VLOOKUP(Switch!$D$66,$F$2:$G$43,2,FALSE)+ROW()-2)),\"\")","v":{"$error":"#N/A"}}]
["Element Flexible Fund SCI Fund C","FFFC","Sanlam Collective Investments",{"$f":"ROW()","v":513},null,null,{"$f":"VLOOKUP(F513,$C$2:$D$637,2,FALSE)","v":{"$error":"#N/A"}},{"$f":"IF(INDIRECT(\"c\" & (VLOOKUP(Switch!$D$26,$F$2:$G$43,2,FALSE)+ROW()-2))=Switch!$D$26,INDIRECT(\"a\" & (VLOOKUP(Switch!$D$26,$F$2:$G$43,2,FALSE)+ROW()-2)),\"\")","v":{"$error":"#N/A"}},{"$f":"IF(INDIRECT(\"c\" & (VLOOKUP(Switch!$D$27,$F$2:$G$43,2,FALSE)+ROW()-2))=Switch!$D$27,INDIRECT(\"a\" & (VLOOKUP(Switch!$D$27,$F$2:$G$43,2,FALSE)+ROW()-2)),\"\")","v":{"$error":"#N/A"}},{"$f":"IF(INDIRECT(\"c\" & (VLOOKUP(Switch!$D$28,$F$2:$G$43,2,FALSE)+ROW()-2))=Switch!$D$28,INDIRECT(\"a\" & (VLOOKUP(Switch!$D$28,$F$2:$G$43,2,FALSE)+ROW()-2)),\"\")","v":{"$error":"#N/A"}},{"$f":"IF(INDIRECT(\"c\" & (VLOOKUP(Switch!$D$29,$F$2:$G$43,2,FALSE)+ROW()-2))=Switch!$D$29,INDIRECT(\"a\" & (VLOOKUP(Switch!$D$29,$F$2:$G$43,2,FALSE)+ROW()-2)),\"\")","v":{"$error":"#N/A"}},{"$f":"IF(INDIRECT(\"c\" & (VLOOKUP(Switch!$D$30,$F$2:$G$43,2,FALSE)+ROW()-2))=Switch!$D$30,INDIRECT(\"a\" & (VLOOKUP(Switch!$D$30,$F$2:$G$43,2,FALSE)+ROW()-2)),\"\")","v":{"$error":"#N/A"}},{"$f":"IF(INDIRECT(\"c\" & (VLOOKUP(Switch!$D$31,$F$2:$G$43,2,FALSE)+ROW()-2))=Switch!$D$31,INDIRECT(\"a\" & (VLOOKUP(Switch!$D$31,$F$2:$G$43,2,FALSE)+ROW()-2)),\"\")","v":{"$error":"#N/A"}},{"$f":"IF(INDIRECT(\"c\" & (VLOOKUP(Switch!$D$32,$F$2:$G$43,2,FALSE)+ROW()-2))=Switch!$D$32,INDIRECT(\"a\" & (VLOOKUP(Switch!$D$32,$F$2:$G$43,2,FALSE)+ROW()-2)),\"\")","v":{"$error":"#N/A"}},{"$f":"IF(INDIRECT(\"c\" & (VLOOKUP(Switch!$D$33,$F$2:$G$43,2,FALSE)+ROW()-2))=Switch!$D$33,INDIRECT(\"a\" & (VLOOKUP(Switch!$D$33,$F$2:$G$43,2,FALSE)+ROW()-2)),\"\")","v":{"$error":"#N/A"}},{"$f":"IF(INDIRECT(\"c\" & (VLOOKUP(Switch!$D$34,$F$2:$G$43,2,FALSE)+ROW()-2))=Switch!$D$34,INDIRECT(\"a\" & (VLOOKUP(Switch!$D$34,$F$2:$G$43,2,FALSE)+ROW()-2)),\"\")","v":{"$error":"#N/A"}},{"$f":"IF(INDIRECT(\"c\" & (VLOOKUP(Switch!$D$35,$F$2:$G$43,2,FALSE)+ROW()-2))=Switch!$D$35,INDIRECT(\"a\" & (VLOOKUP(Switch!$D$35,$F$2:$G$43,2,FALSE)+ROW()-2)),\"\")","v":{"$error":"#N/A"}},{"$f":"IF(INDIRECT(\"c\" & (VLOOKUP(Switch!$D$36,$F$2:$G$43,2,FALSE)+ROW()-2))=Switch!$D$36,INDIRECT(\"a\" & (VLOOKUP(Switch!$D$36,$F$2:$G$43,2,FALSE)+ROW()-2)),\"\")","v":{"$error":"#N/A"}},{"$f":"IF(INDIRECT(\"c\" & (VLOOKUP(Switch!$D$37,$F$2:$G$43,2,FALSE)+ROW()-2))=Switch!$D$37,INDIRECT(\"a\" & (VLOOKUP(Switch!$D$37,$F$2:$G$43,2,FALSE)+ROW()-2)),\"\")","v":{"$error":"#N/A"}},{"$f":"IF(INDIRECT(\"c\" & (VLOOKUP(Switch!$D$38,$F$2:$G$43,2,FALSE)+ROW()-2))=Switch!$D$38,INDIRECT(\"a\" & (VLOOKUP(Switch!$D$38,$F$2:$G$43,2,FALSE)+ROW()-2)),\"\")","v":{"$error":"#N/A"}},{"$f":"IF(INDIRECT(\"c\" & (VLOOKUP(Switch!$D$39,$F$2:$G$43,2,FALSE)+ROW()-2))=Switch!$D$39,INDIRECT(\"a\" & (VLOOKUP(Switch!$D$39,$F$2:$G$43,2,FALSE)+ROW()-2)),\"\")","v":{"$error":"#N/A"}},{"$f":"IF(INDIRECT(\"c\" & (VLOOKUP(Switch!$D$40,$F$2:$G$43,2,FALSE)+ROW()-2))=Switch!$D$40,INDIRECT(\"a\" & (VLOOKUP(Switch!$D$40,$F$2:$G$43,2,FALSE)+ROW()-2)),\"\")","v":{"$error":"#N/A"}},{"$f":"IF(INDIRECT(\"c\" & (VLOOKUP(Switch!$D$52,$F$2:$G$43,2,FALSE)+ROW()-2))=Switch!$D$52,INDIRECT(\"a\" & (VLOOKUP(Switch!$D$52,$F$2:$G$43,2,FALSE)+ROW()-2)),\"\")","v":{"$error":"#N/A"}},{"$f":"IF(INDIRECT(\"c\" & (VLOOKUP(Switch!$D$53,$F$2:$G$43,2,FALSE)+ROW()-2))=Switch!$D$53,INDIRECT(\"a\" & (VLOOKUP(Switch!$D$53,$F$2:$G$43,2,FALSE)+ROW()-2)),\"\")","v":{"$error":"#N/A"}},{"$f":"IF(INDIRECT(\"c\" & (VLOOKUP(Switch!$D$54,$F$2:$G$43,2,FALSE)+ROW()-2))=Switch!$D$54,INDIRECT(\"a\" & (VLOOKUP(Switch!$D$54,$F$2:$G$43,2,FALSE)+ROW()-2)),\"\")","v":{"$error":"#N/A"}},{"$f":"IF(INDIRECT(\"c\" & (VLOOKUP(Switch!$D$55,$F$2:$G$43,2,FALSE)+ROW()-2))=Switch!$D$55,INDIRECT(\"a\" & (VLOOKUP(Switch!$D$55,$F$2:$G$43,2,FALSE)+ROW()-2)),\"\")","v":{"$error":"#N/A"}},{"$f":"IF(INDIRECT(\"c\" & (VLOOKUP(Switch!$D$56,$F$2:$G$43,2,FALSE)+ROW()-2))=Switch!$D$56,INDIRECT(\"a\" & (VLOOKUP(Switch!$D$56,$F$2:$G$43,2,FALSE)+ROW()-2)),\"\")","v":{"$error":"#N/A"}},{"$f":"IF(INDIRECT(\"c\" & (VLOOKUP(Switch!$D$57,$F$2:$G$43,2,FALSE)+ROW()-2))=Switch!$D$57,INDIRECT(\"a\" & (VLOOKUP(Switch!$D$57,$F$2:$G$43,2,FALSE)+ROW()-2)),\"\")","v":{"$error":"#N/A"}},{"$f":"IF(INDIRECT(\"c\" & (VLOOKUP(Switch!$D$58,$F$2:$G$43,2,FALSE)+ROW()-2))=Switch!$D$58,INDIRECT(\"a\" & (VLOOKUP(Switch!$D$58,$F$2:$G$43,2,FALSE)+ROW()-2)),\"\")","v":{"$error":"#N/A"}},{"$f":"IF(INDIRECT(\"c\" & (VLOOKUP(Switch!$D$59,$F$2:$G$43,2,FALSE)+ROW()-2))=Switch!$D$59,INDIRECT(\"a\" & (VLOOKUP(Switch!$D$59,$F$2:$G$43,2,FALSE)+ROW()-2)),\"\")","v":{"$error":"#N/A"}},{"$f":"IF(INDIRECT(\"c\" & (VLOOKUP(Switch!$D$60,$F$2:$G$43,2,FALSE)+ROW()-2))=Switch!$D$60,INDIRECT(\"a\" & (VLOOKUP(Switch!$D$60,$F$2:$G$43,2,FALSE)+ROW()-2)),\"\")","v":{"$error":"#N/A"}},{"$f":"IF(INDIRECT(\"c\" & (VLOOKUP(Switch!$D$61,$F$2:$G$43,2,FALSE)+ROW()-2))=Switch!$D$61,INDIRECT(\"a\" & (VLOOKUP(Switch!$D$61,$F$2:$G$43,2,FALSE)+ROW()-2)),\"\")","v":{"$error":"#N/A"}},{"$f":"IF(INDIRECT(\"c\" & (VLOOKUP(Switch!$D$62,$F$2:$G$43,2,FALSE)+ROW()-2))=Switch!$D$62,INDIRECT(\"a\" & (VLOOKUP(Switch!$D$62,$F$2:$G$43,2,FALSE)+ROW()-2)),\"\")","v":{"$error":"#N/A"}},{"$f":"IF(INDIRECT(\"c\" & (VLOOKUP(Switch!$D$63,$F$2:$G$43,2,FALSE)+ROW()-2))=Switch!$D$63,INDIRECT(\"a\" & (VLOOKUP(Switch!$D$63,$F$2:$G$43,2,FALSE)+ROW()-2)),\"\")","v":{"$error":"#N/A"}},{"$f":"IF(INDIRECT(\"c\" & (VLOOKUP(Switch!$D$64,$F$2:$G$43,2,FALSE)+ROW()-2))=Switch!$D$64,INDIRECT(\"a\" & (VLOOKUP(Switch!$D$64,$F$2:$G$43,2,FALSE)+ROW()-2)),\"\")","v":{"$error":"#N/A"}},{"$f":"IF(INDIRECT(\"c\" & (VLOOKUP(Switch!$D$65,$F$2:$G$43,2,FALSE)+ROW()-2))=Switch!$D$65,INDIRECT(\"a\" & (VLOOKUP(Switch!$D$65,$F$2:$G$43,2,FALSE)+ROW()-2)),\"\")","v":{"$error":"#N/A"}},{"$f":"IF(INDIRECT(\"c\" & (VLOOKUP(Switch!$D$66,$F$2:$G$43,2,FALSE)+ROW()-2))=Switch!$D$66,INDIRECT(\"a\" & (VLOOKUP(Switch!$D$66,$F$2:$G$43,2,FALSE)+ROW()-2)),\"\")","v":{"$error":"#N/A"}}]
["Granate Multi Income Fund B","RSMIB","Sanlam Collective Investments",{"$f":"ROW()","v":514},null,null,{"$f":"VLOOKUP(F514,$C$2:$D$637,2,FALSE)","v":{"$error":"#N/A"}},{"$f":"IF(INDIRECT(\"c\" & (VLOOKUP(Switch!$D$26,$F$2:$G$43,2,FALSE)+ROW()-2))=Switch!$D$26,INDIRECT(\"a\" & (VLOOKUP(Switch!$D$26,$F$2:$G$43,2,FALSE)+ROW()-2)),\"\")","v":{"$error":"#N/A"}},{"$f":"IF(INDIRECT(\"c\" & (VLOOKUP(Switch!$D$27,$F$2:$G$43,2,FALSE)+ROW()-2))=Switch!$D$27,INDIRECT(\"a\" & (VLOOKUP(Switch!$D$27,$F$2:$G$43,2,FALSE)+ROW()-2)),\"\")","v":{"$error":"#N/A"}},{"$f":"IF(INDIRECT(\"c\" & (VLOOKUP(Switch!$D$28,$F$2:$G$43,2,FALSE)+ROW()-2))=Switch!$D$28,INDIRECT(\"a\" & (VLOOKUP(Switch!$D$28,$F$2:$G$43,2,FALSE)+ROW()-2)),\"\")","v":{"$error":"#N/A"}},{"$f":"IF(INDIRECT(\"c\" & (VLOOKUP(Switch!$D$29,$F$2:$G$43,2,FALSE)+ROW()-2))=Switch!$D$29,INDIRECT(\"a\" & (VLOOKUP(Switch!$D$29,$F$2:$G$43,2,FALSE)+ROW()-2)),\"\")","v":{"$error":"#N/A"}},{"$f":"IF(INDIRECT(\"c\" & (VLOOKUP(Switch!$D$30,$F$2:$G$43,2,FALSE)+ROW()-2))=Switch!$D$30,INDIRECT(\"a\" & (VLOOKUP(Switch!$D$30,$F$2:$G$43,2,FALSE)+ROW()-2)),\"\")","v":{"$error":"#N/A"}},{"$f":"IF(INDIRECT(\"c\" & (VLOOKUP(Switch!$D$31,$F$2:$G$43,2,FALSE)+ROW()-2))=Switch!$D$31,INDIRECT(\"a\" & (VLOOKUP(Switch!$D$31,$F$2:$G$43,2,FALSE)+ROW()-2)),\"\")","v":{"$error":"#N/A"}},{"$f":"IF(INDIRECT(\"c\" & (VLOOKUP(Switch!$D$32,$F$2:$G$43,2,FALSE)+ROW()-2))=Switch!$D$32,INDIRECT(\"a\" & (VLOOKUP(Switch!$D$32,$F$2:$G$43,2,FALSE)+ROW()-2)),\"\")","v":{"$error":"#N/A"}},{"$f":"IF(INDIRECT(\"c\" & (VLOOKUP(Switch!$D$33,$F$2:$G$43,2,FALSE)+ROW()-2))=Switch!$D$33,INDIRECT(\"a\" & (VLOOKUP(Switch!$D$33,$F$2:$G$43,2,FALSE)+ROW()-2)),\"\")","v":{"$error":"#N/A"}},{"$f":"IF(INDIRECT(\"c\" & (VLOOKUP(Switch!$D$34,$F$2:$G$43,2,FALSE)+ROW()-2))=Switch!$D$34,INDIRECT(\"a\" & (VLOOKUP(Switch!$D$34,$F$2:$G$43,2,FALSE)+ROW()-2)),\"\")","v":{"$error":"#N/A"}},{"$f":"IF(INDIRECT(\"c\" & (VLOOKUP(Switch!$D$35,$F$2:$G$43,2,FALSE)+ROW()-2))=Switch!$D$35,INDIRECT(\"a\" & (VLOOKUP(Switch!$D$35,$F$2:$G$43,2,FALSE)+ROW()-2)),\"\")","v":{"$error":"#N/A"}},{"$f":"IF(INDIRECT(\"c\" & (VLOOKUP(Switch!$D$36,$F$2:$G$43,2,FALSE)+ROW()-2))=Switch!$D$36,INDIRECT(\"a\" & (VLOOKUP(Switch!$D$36,$F$2:$G$43,2,FALSE)+ROW()-2)),\"\")","v":{"$error":"#N/A"}},{"$f":"IF(INDIRECT(\"c\" & (VLOOKUP(Switch!$D$37,$F$2:$G$43,2,FALSE)+ROW()-2))=Switch!$D$37,INDIRECT(\"a\" & (VLOOKUP(Switch!$D$37,$F$2:$G$43,2,FALSE)+ROW()-2)),\"\")","v":{"$error":"#N/A"}},{"$f":"IF(INDIRECT(\"c\" & (VLOOKUP(Switch!$D$38,$F$2:$G$43,2,FALSE)+ROW()-2))=Switch!$D$38,INDIRECT(\"a\" & (VLOOKUP(Switch!$D$38,$F$2:$G$43,2,FALSE)+ROW()-2)),\"\")","v":{"$error":"#N/A"}},{"$f":"IF(INDIRECT(\"c\" & (VLOOKUP(Switch!$D$39,$F$2:$G$43,2,FALSE)+ROW()-2))=Switch!$D$39,INDIRECT(\"a\" & (VLOOKUP(Switch!$D$39,$F$2:$G$43,2,FALSE)+ROW()-2)),\"\")","v":{"$error":"#N/A"}},{"$f":"IF(INDIRECT(\"c\" & (VLOOKUP(Switch!$D$40,$F$2:$G$43,2,FALSE)+ROW()-2))=Switch!$D$40,INDIRECT(\"a\" & (VLOOKUP(Switch!$D$40,$F$2:$G$43,2,FALSE)+ROW()-2)),\"\")","v":{"$error":"#N/A"}},{"$f":"IF(INDIRECT(\"c\" & (VLOOKUP(Switch!$D$52,$F$2:$G$43,2,FALSE)+ROW()-2))=Switch!$D$52,INDIRECT(\"a\" & (VLOOKUP(Switch!$D$52,$F$2:$G$43,2,FALSE)+ROW()-2)),\"\")","v":{"$error":"#N/A"}},{"$f":"IF(INDIRECT(\"c\" & (VLOOKUP(Switch!$D$53,$F$2:$G$43,2,FALSE)+ROW()-2))=Switch!$D$53,INDIRECT(\"a\" & (VLOOKUP(Switch!$D$53,$F$2:$G$43,2,FALSE)+ROW()-2)),\"\")","v":{"$error":"#N/A"}},{"$f":"IF(INDIRECT(\"c\" & (VLOOKUP(Switch!$D$54,$F$2:$G$43,2,FALSE)+ROW()-2))=Switch!$D$54,INDIRECT(\"a\" & (VLOOKUP(Switch!$D$54,$F$2:$G$43,2,FALSE)+ROW()-2)),\"\")","v":{"$error":"#N/A"}},{"$f":"IF(INDIRECT(\"c\" & (VLOOKUP(Switch!$D$55,$F$2:$G$43,2,FALSE)+ROW()-2))=Switch!$D$55,INDIRECT(\"a\" & (VLOOKUP(Switch!$D$55,$F$2:$G$43,2,FALSE)+ROW()-2)),\"\")","v":{"$error":"#N/A"}},{"$f":"IF(INDIRECT(\"c\" & (VLOOKUP(Switch!$D$56,$F$2:$G$43,2,FALSE)+ROW()-2))=Switch!$D$56,INDIRECT(\"a\" & (VLOOKUP(Switch!$D$56,$F$2:$G$43,2,FALSE)+ROW()-2)),\"\")","v":{"$error":"#N/A"}},{"$f":"IF(INDIRECT(\"c\" & (VLOOKUP(Switch!$D$57,$F$2:$G$43,2,FALSE)+ROW()-2))=Switch!$D$57,INDIRECT(\"a\" & (VLOOKUP(Switch!$D$57,$F$2:$G$43,2,FALSE)+ROW()-2)),\"\")","v":{"$error":"#N/A"}},{"$f":"IF(INDIRECT(\"c\" & (VLOOKUP(Switch!$D$58,$F$2:$G$43,2,FALSE)+ROW()-2))=Switch!$D$58,INDIRECT(\"a\" & (VLOOKUP(Switch!$D$58,$F$2:$G$43,2,FALSE)+ROW()-2)),\"\")","v":{"$error":"#N/A"}},{"$f":"IF(INDIRECT(\"c\" & (VLOOKUP(Switch!$D$59,$F$2:$G$43,2,FALSE)+ROW()-2))=Switch!$D$59,INDIRECT(\"a\" & (VLOOKUP(Switch!$D$59,$F$2:$G$43,2,FALSE)+ROW()-2)),\"\")","v":{"$error":"#N/A"}},{"$f":"IF(INDIRECT(\"c\" & (VLOOKUP(Switch!$D$60,$F$2:$G$43,2,FALSE)+ROW()-2))=Switch!$D$60,INDIRECT(\"a\" & (VLOOKUP(Switch!$D$60,$F$2:$G$43,2,FALSE)+ROW()-2)),\"\")","v":{"$error":"#N/A"}},{"$f":"IF(INDIRECT(\"c\" & (VLOOKUP(Switch!$D$61,$F$2:$G$43,2,FALSE)+ROW()-2))=Switch!$D$61,INDIRECT(\"a\" & (VLOOKUP(Switch!$D$61,$F$2:$G$43,2,FALSE)+ROW()-2)),\"\")","v":{"$error":"#N/A"}},{"$f":"IF(INDIRECT(\"c\" & (VLOOKUP(Switch!$D$62,$F$2:$G$43,2,FALSE)+ROW()-2))=Switch!$D$62,INDIRECT(\"a\" & (VLOOKUP(Switch!$D$62,$F$2:$G$43,2,FALSE)+ROW()-2)),\"\")","v":{"$error":"#N/A"}},{"$f":"IF(INDIRECT(\"c\" & (VLOOKUP(Switch!$D$63,$F$2:$G$43,2,FALSE)+ROW()-2))=Switch!$D$63,INDIRECT(\"a\" & (VLOOKUP(Switch!$D$63,$F$2:$G$43,2,FALSE)+ROW()-2)),\"\")","v":{"$error":"#N/A"}},{"$f":"IF(INDIRECT(\"c\" & (VLOOKUP(Switch!$D$64,$F$2:$G$43,2,FALSE)+ROW()-2))=Switch!$D$64,INDIRECT(\"a\" & (VLOOKUP(Switch!$D$64,$F$2:$G$43,2,FALSE)+ROW()-2)),\"\")","v":{"$error":"#N/A"}},{"$f":"IF(INDIRECT(\"c\" & (VLOOKUP(Switch!$D$65,$F$2:$G$43,2,FALSE)+ROW()-2))=Switch!$D$65,INDIRECT(\"a\" & (VLOOKUP(Switch!$D$65,$F$2:$G$43,2,FALSE)+ROW()-2)),\"\")","v":{"$error":"#N/A"}},{"$f":"IF(INDIRECT(\"c\" & (VLOOKUP(Switch!$D$66,$F$2:$G$43,2,FALSE)+ROW()-2))=Switch!$D$66,INDIRECT(\"a\" & (VLOOKUP(Switch!$D$66,$F$2:$G$43,2,FALSE)+ROW()-2)),\"\")","v":{"$error":"#N/A"}}]
["Lynx SCI Balanced FoF B1","RBA1","Sanlam Collective Investments",{"$f":"ROW()","v":515},null,null,{"$f":"VLOOKUP(F515,$C$2:$D$637,2,FALSE)","v":{"$error":"#N/A"}},{"$f":"IF(INDIRECT(\"c\" & (VLOOKUP(Switch!$D$26,$F$2:$G$43,2,FALSE)+ROW()-2))=Switch!$D$26,INDIRECT(\"a\" & (VLOOKUP(Switch!$D$26,$F$2:$G$43,2,FALSE)+ROW()-2)),\"\")","v":{"$error":"#N/A"}},{"$f":"IF(INDIRECT(\"c\" & (VLOOKUP(Switch!$D$27,$F$2:$G$43,2,FALSE)+ROW()-2))=Switch!$D$27,INDIRECT(\"a\" & (VLOOKUP(Switch!$D$27,$F$2:$G$43,2,FALSE)+ROW()-2)),\"\")","v":{"$error":"#N/A"}},{"$f":"IF(INDIRECT(\"c\" & (VLOOKUP(Switch!$D$28,$F$2:$G$43,2,FALSE)+ROW()-2))=Switch!$D$28,INDIRECT(\"a\" & (VLOOKUP(Switch!$D$28,$F$2:$G$43,2,FALSE)+ROW()-2)),\"\")","v":{"$error":"#N/A"}},{"$f":"IF(INDIRECT(\"c\" & (VLOOKUP(Switch!$D$29,$F$2:$G$43,2,FALSE)+ROW()-2))=Switch!$D$29,INDIRECT(\"a\" & (VLOOKUP(Switch!$D$29,$F$2:$G$43,2,FALSE)+ROW()-2)),\"\")","v":{"$error":"#N/A"}},{"$f":"IF(INDIRECT(\"c\" & (VLOOKUP(Switch!$D$30,$F$2:$G$43,2,FALSE)+ROW()-2))=Switch!$D$30,INDIRECT(\"a\" & (VLOOKUP(Switch!$D$30,$F$2:$G$43,2,FALSE)+ROW()-2)),\"\")","v":{"$error":"#N/A"}},{"$f":"IF(INDIRECT(\"c\" & (VLOOKUP(Switch!$D$31,$F$2:$G$43,2,FALSE)+ROW()-2))=Switch!$D$31,INDIRECT(\"a\" & (VLOOKUP(Switch!$D$31,$F$2:$G$43,2,FALSE)+ROW()-2)),\"\")","v":{"$error":"#N/A"}},{"$f":"IF(INDIRECT(\"c\" & (VLOOKUP(Switch!$D$32,$F$2:$G$43,2,FALSE)+ROW()-2))=Switch!$D$32,INDIRECT(\"a\" & (VLOOKUP(Switch!$D$32,$F$2:$G$43,2,FALSE)+ROW()-2)),\"\")","v":{"$error":"#N/A"}},{"$f":"IF(INDIRECT(\"c\" & (VLOOKUP(Switch!$D$33,$F$2:$G$43,2,FALSE)+ROW()-2))=Switch!$D$33,INDIRECT(\"a\" & (VLOOKUP(Switch!$D$33,$F$2:$G$43,2,FALSE)+ROW()-2)),\"\")","v":{"$error":"#N/A"}},{"$f":"IF(INDIRECT(\"c\" & (VLOOKUP(Switch!$D$34,$F$2:$G$43,2,FALSE)+ROW()-2))=Switch!$D$34,INDIRECT(\"a\" & (VLOOKUP(Switch!$D$34,$F$2:$G$43,2,FALSE)+ROW()-2)),\"\")","v":{"$error":"#N/A"}},{"$f":"IF(INDIRECT(\"c\" & (VLOOKUP(Switch!$D$35,$F$2:$G$43,2,FALSE)+ROW()-2))=Switch!$D$35,INDIRECT(\"a\" & (VLOOKUP(Switch!$D$35,$F$2:$G$43,2,FALSE)+ROW()-2)),\"\")","v":{"$error":"#N/A"}},{"$f":"IF(INDIRECT(\"c\" & (VLOOKUP(Switch!$D$36,$F$2:$G$43,2,FALSE)+ROW()-2))=Switch!$D$36,INDIRECT(\"a\" & (VLOOKUP(Switch!$D$36,$F$2:$G$43,2,FALSE)+ROW()-2)),\"\")","v":{"$error":"#N/A"}},{"$f":"IF(INDIRECT(\"c\" & (VLOOKUP(Switch!$D$37,$F$2:$G$43,2,FALSE)+ROW()-2))=Switch!$D$37,INDIRECT(\"a\" & (VLOOKUP(Switch!$D$37,$F$2:$G$43,2,FALSE)+ROW()-2)),\"\")","v":{"$error":"#N/A"}},{"$f":"IF(INDIRECT(\"c\" & (VLOOKUP(Switch!$D$38,$F$2:$G$43,2,FALSE)+ROW()-2))=Switch!$D$38,INDIRECT(\"a\" & (VLOOKUP(Switch!$D$38,$F$2:$G$43,2,FALSE)+ROW()-2)),\"\")","v":{"$error":"#N/A"}},{"$f":"IF(INDIRECT(\"c\" & (VLOOKUP(Switch!$D$39,$F$2:$G$43,2,FALSE)+ROW()-2))=Switch!$D$39,INDIRECT(\"a\" & (VLOOKUP(Switch!$D$39,$F$2:$G$43,2,FALSE)+ROW()-2)),\"\")","v":{"$error":"#N/A"}},{"$f":"IF(INDIRECT(\"c\" & (VLOOKUP(Switch!$D$40,$F$2:$G$43,2,FALSE)+ROW()-2))=Switch!$D$40,INDIRECT(\"a\" & (VLOOKUP(Switch!$D$40,$F$2:$G$43,2,FALSE)+ROW()-2)),\"\")","v":{"$error":"#N/A"}},{"$f":"IF(INDIRECT(\"c\" & (VLOOKUP(Switch!$D$52,$F$2:$G$43,2,FALSE)+ROW()-2))=Switch!$D$52,INDIRECT(\"a\" & (VLOOKUP(Switch!$D$52,$F$2:$G$43,2,FALSE)+ROW()-2)),\"\")","v":{"$error":"#N/A"}},{"$f":"IF(INDIRECT(\"c\" & (VLOOKUP(Switch!$D$53,$F$2:$G$43,2,FALSE)+ROW()-2))=Switch!$D$53,INDIRECT(\"a\" & (VLOOKUP(Switch!$D$53,$F$2:$G$43,2,FALSE)+ROW()-2)),\"\")","v":{"$error":"#N/A"}},{"$f":"IF(INDIRECT(\"c\" & (VLOOKUP(Switch!$D$54,$F$2:$G$43,2,FALSE)+ROW()-2))=Switch!$D$54,INDIRECT(\"a\" & (VLOOKUP(Switch!$D$54,$F$2:$G$43,2,FALSE)+ROW()-2)),\"\")","v":{"$error":"#N/A"}},{"$f":"IF(INDIRECT(\"c\" & (VLOOKUP(Switch!$D$55,$F$2:$G$43,2,FALSE)+ROW()-2))=Switch!$D$55,INDIRECT(\"a\" & (VLOOKUP(Switch!$D$55,$F$2:$G$43,2,FALSE)+ROW()-2)),\"\")","v":{"$error":"#N/A"}},{"$f":"IF(INDIRECT(\"c\" & (VLOOKUP(Switch!$D$56,$F$2:$G$43,2,FALSE)+ROW()-2))=Switch!$D$56,INDIRECT(\"a\" & (VLOOKUP(Switch!$D$56,$F$2:$G$43,2,FALSE)+ROW()-2)),\"\")","v":{"$error":"#N/A"}},{"$f":"IF(INDIRECT(\"c\" & (VLOOKUP(Switch!$D$57,$F$2:$G$43,2,FALSE)+ROW()-2))=Switch!$D$57,INDIRECT(\"a\" & (VLOOKUP(Switch!$D$57,$F$2:$G$43,2,FALSE)+ROW()-2)),\"\")","v":{"$error":"#N/A"}},{"$f":"IF(INDIRECT(\"c\" & (VLOOKUP(Switch!$D$58,$F$2:$G$43,2,FALSE)+ROW()-2))=Switch!$D$58,INDIRECT(\"a\" & (VLOOKUP(Switch!$D$58,$F$2:$G$43,2,FALSE)+ROW()-2)),\"\")","v":{"$error":"#N/A"}},{"$f":"IF(INDIRECT(\"c\" & (VLOOKUP(Switch!$D$59,$F$2:$G$43,2,FALSE)+ROW()-2))=Switch!$D$59,INDIRECT(\"a\" & (VLOOKUP(Switch!$D$59,$F$2:$G$43,2,FALSE)+ROW()-2)),\"\")","v":{"$error":"#N/A"}},{"$f":"IF(INDIRECT(\"c\" & (VLOOKUP(Switch!$D$60,$F$2:$G$43,2,FALSE)+ROW()-2))=Switch!$D$60,INDIRECT(\"a\" & (VLOOKUP(Switch!$D$60,$F$2:$G$43,2,FALSE)+ROW()-2)),\"\")","v":{"$error":"#N/A"}},{"$f":"IF(INDIRECT(\"c\" & (VLOOKUP(Switch!$D$61,$F$2:$G$43,2,FALSE)+ROW()-2))=Switch!$D$61,INDIRECT(\"a\" & (VLOOKUP(Switch!$D$61,$F$2:$G$43,2,FALSE)+ROW()-2)),\"\")","v":{"$error":"#N/A"}},{"$f":"IF(INDIRECT(\"c\" & (VLOOKUP(Switch!$D$62,$F$2:$G$43,2,FALSE)+ROW()-2))=Switch!$D$62,INDIRECT(\"a\" & (VLOOKUP(Switch!$D$62,$F$2:$G$43,2,FALSE)+ROW()-2)),\"\")","v":{"$error":"#N/A"}},{"$f":"IF(INDIRECT(\"c\" & (VLOOKUP(Switch!$D$63,$F$2:$G$43,2,FALSE)+ROW()-2))=Switch!$D$63,INDIRECT(\"a\" & (VLOOKUP(Switch!$D$63,$F$2:$G$43,2,FALSE)+ROW()-2)),\"\")","v":{"$error":"#N/A"}},{"$f":"IF(INDIRECT(\"c\" & (VLOOKUP(Switch!$D$64,$F$2:$G$43,2,FALSE)+ROW()-2))=Switch!$D$64,INDIRECT(\"a\" & (VLOOKUP(Switch!$D$64,$F$2:$G$43,2,FALSE)+ROW()-2)),\"\")","v":{"$error":"#N/A"}},{"$f":"IF(INDIRECT(\"c\" & (VLOOKUP(Switch!$D$65,$F$2:$G$43,2,FALSE)+ROW()-2))=Switch!$D$65,INDIRECT(\"a\" & (VLOOKUP(Switch!$D$65,$F$2:$G$43,2,FALSE)+ROW()-2)),\"\")","v":{"$error":"#N/A"}},{"$f":"IF(INDIRECT(\"c\" & (VLOOKUP(Switch!$D$66,$F$2:$G$43,2,FALSE)+ROW()-2))=Switch!$D$66,INDIRECT(\"a\" & (VLOOKUP(Switch!$D$66,$F$2:$G$43,2,FALSE)+ROW()-2)),\"\")","v":{"$error":"#N/A"}}]
["Lynx SCI Cautious FoF B1","RWA1","Sanlam Collective Investments",{"$f":"ROW()","v":516},null,null,{"$f":"VLOOKUP(F516,$C$2:$D$637,2,FALSE)","v":{"$error":"#N/A"}},{"$f":"IF(INDIRECT(\"c\" & (VLOOKUP(Switch!$D$26,$F$2:$G$43,2,FALSE)+ROW()-2))=Switch!$D$26,INDIRECT(\"a\" & (VLOOKUP(Switch!$D$26,$F$2:$G$43,2,FALSE)+ROW()-2)),\"\")","v":{"$error":"#N/A"}},{"$f":"IF(INDIRECT(\"c\" & (VLOOKUP(Switch!$D$27,$F$2:$G$43,2,FALSE)+ROW()-2))=Switch!$D$27,INDIRECT(\"a\" & (VLOOKUP(Switch!$D$27,$F$2:$G$43,2,FALSE)+ROW()-2)),\"\")","v":{"$error":"#N/A"}},{"$f":"IF(INDIRECT(\"c\" & (VLOOKUP(Switch!$D$28,$F$2:$G$43,2,FALSE)+ROW()-2))=Switch!$D$28,INDIRECT(\"a\" & (VLOOKUP(Switch!$D$28,$F$2:$G$43,2,FALSE)+ROW()-2)),\"\")","v":{"$error":"#N/A"}},{"$f":"IF(INDIRECT(\"c\" & (VLOOKUP(Switch!$D$29,$F$2:$G$43,2,FALSE)+ROW()-2))=Switch!$D$29,INDIRECT(\"a\" & (VLOOKUP(Switch!$D$29,$F$2:$G$43,2,FALSE)+ROW()-2)),\"\")","v":{"$error":"#N/A"}},{"$f":"IF(INDIRECT(\"c\" & (VLOOKUP(Switch!$D$30,$F$2:$G$43,2,FALSE)+ROW()-2))=Switch!$D$30,INDIRECT(\"a\" & (VLOOKUP(Switch!$D$30,$F$2:$G$43,2,FALSE)+ROW()-2)),\"\")","v":{"$error":"#N/A"}},{"$f":"IF(INDIRECT(\"c\" & (VLOOKUP(Switch!$D$31,$F$2:$G$43,2,FALSE)+ROW()-2))=Switch!$D$31,INDIRECT(\"a\" & (VLOOKUP(Switch!$D$31,$F$2:$G$43,2,FALSE)+ROW()-2)),\"\")","v":{"$error":"#N/A"}},{"$f":"IF(INDIRECT(\"c\" & (VLOOKUP(Switch!$D$32,$F$2:$G$43,2,FALSE)+ROW()-2))=Switch!$D$32,INDIRECT(\"a\" & (VLOOKUP(Switch!$D$32,$F$2:$G$43,2,FALSE)+ROW()-2)),\"\")","v":{"$error":"#N/A"}},{"$f":"IF(INDIRECT(\"c\" & (VLOOKUP(Switch!$D$33,$F$2:$G$43,2,FALSE)+ROW()-2))=Switch!$D$33,INDIRECT(\"a\" & (VLOOKUP(Switch!$D$33,$F$2:$G$43,2,FALSE)+ROW()-2)),\"\")","v":{"$error":"#N/A"}},{"$f":"IF(INDIRECT(\"c\" & (VLOOKUP(Switch!$D$34,$F$2:$G$43,2,FALSE)+ROW()-2))=Switch!$D$34,INDIRECT(\"a\" & (VLOOKUP(Switch!$D$34,$F$2:$G$43,2,FALSE)+ROW()-2)),\"\")","v":{"$error":"#N/A"}},{"$f":"IF(INDIRECT(\"c\" & (VLOOKUP(Switch!$D$35,$F$2:$G$43,2,FALSE)+ROW()-2))=Switch!$D$35,INDIRECT(\"a\" & (VLOOKUP(Switch!$D$35,$F$2:$G$43,2,FALSE)+ROW()-2)),\"\")","v":{"$error":"#N/A"}},{"$f":"IF(INDIRECT(\"c\" & (VLOOKUP(Switch!$D$36,$F$2:$G$43,2,FALSE)+ROW()-2))=Switch!$D$36,INDIRECT(\"a\" & (VLOOKUP(Switch!$D$36,$F$2:$G$43,2,FALSE)+ROW()-2)),\"\")","v":{"$error":"#N/A"}},{"$f":"IF(INDIRECT(\"c\" & (VLOOKUP(Switch!$D$37,$F$2:$G$43,2,FALSE)+ROW()-2))=Switch!$D$37,INDIRECT(\"a\" & (VLOOKUP(Switch!$D$37,$F$2:$G$43,2,FALSE)+ROW()-2)),\"\")","v":{"$error":"#N/A"}},{"$f":"IF(INDIRECT(\"c\" & (VLOOKUP(Switch!$D$38,$F$2:$G$43,2,FALSE)+ROW()-2))=Switch!$D$38,INDIRECT(\"a\" & (VLOOKUP(Switch!$D$38,$F$2:$G$43,2,FALSE)+ROW()-2)),\"\")","v":{"$error":"#N/A"}},{"$f":"IF(INDIRECT(\"c\" & (VLOOKUP(Switch!$D$39,$F$2:$G$43,2,FALSE)+ROW()-2))=Switch!$D$39,INDIRECT(\"a\" & (VLOOKUP(Switch!$D$39,$F$2:$G$43,2,FALSE)+ROW()-2)),\"\")","v":{"$error":"#N/A"}},{"$f":"IF(INDIRECT(\"c\" & (VLOOKUP(Switch!$D$40,$F$2:$G$43,2,FALSE)+ROW()-2))=Switch!$D$40,INDIRECT(\"a\" & (VLOOKUP(Switch!$D$40,$F$2:$G$43,2,FALSE)+ROW()-2)),\"\")","v":{"$error":"#N/A"}},{"$f":"IF(INDIRECT(\"c\" & (VLOOKUP(Switch!$D$52,$F$2:$G$43,2,FALSE)+ROW()-2))=Switch!$D$52,INDIRECT(\"a\" & (VLOOKUP(Switch!$D$52,$F$2:$G$43,2,FALSE)+ROW()-2)),\"\")","v":{"$error":"#N/A"}},{"$f":"IF(INDIRECT(\"c\" & (VLOOKUP(Switch!$D$53,$F$2:$G$43,2,FALSE)+ROW()-2))=Switch!$D$53,INDIRECT(\"a\" & (VLOOKUP(Switch!$D$53,$F$2:$G$43,2,FALSE)+ROW()-2)),\"\")","v":{"$error":"#N/A"}},{"$f":"IF(INDIRECT(\"c\" & (VLOOKUP(Switch!$D$54,$F$2:$G$43,2,FALSE)+ROW()-2))=Switch!$D$54,INDIRECT(\"a\" & (VLOOKUP(Switch!$D$54,$F$2:$G$43,2,FALSE)+ROW()-2)),\"\")","v":{"$error":"#N/A"}},{"$f":"IF(INDIRECT(\"c\" & (VLOOKUP(Switch!$D$55,$F$2:$G$43,2,FALSE)+ROW()-2))=Switch!$D$55,INDIRECT(\"a\" & (VLOOKUP(Switch!$D$55,$F$2:$G$43,2,FALSE)+ROW()-2)),\"\")","v":{"$error":"#N/A"}},{"$f":"IF(INDIRECT(\"c\" & (VLOOKUP(Switch!$D$56,$F$2:$G$43,2,FALSE)+ROW()-2))=Switch!$D$56,INDIRECT(\"a\" & (VLOOKUP(Switch!$D$56,$F$2:$G$43,2,FALSE)+ROW()-2)),\"\")","v":{"$error":"#N/A"}},{"$f":"IF(INDIRECT(\"c\" & (VLOOKUP(Switch!$D$57,$F$2:$G$43,2,FALSE)+ROW()-2))=Switch!$D$57,INDIRECT(\"a\" & (VLOOKUP(Switch!$D$57,$F$2:$G$43,2,FALSE)+ROW()-2)),\"\")","v":{"$error":"#N/A"}},{"$f":"IF(INDIRECT(\"c\" & (VLOOKUP(Switch!$D$58,$F$2:$G$43,2,FALSE)+ROW()-2))=Switch!$D$58,INDIRECT(\"a\" & (VLOOKUP(Switch!$D$58,$F$2:$G$43,2,FALSE)+ROW()-2)),\"\")","v":{"$error":"#N/A"}},{"$f":"IF(INDIRECT(\"c\" & (VLOOKUP(Switch!$D$59,$F$2:$G$43,2,FALSE)+ROW()-2))=Switch!$D$59,INDIRECT(\"a\" & (VLOOKUP(Switch!$D$59,$F$2:$G$43,2,FALSE)+ROW()-2)),\"\")","v":{"$error":"#N/A"}},{"$f":"IF(INDIRECT(\"c\" & (VLOOKUP(Switch!$D$60,$F$2:$G$43,2,FALSE)+ROW()-2))=Switch!$D$60,INDIRECT(\"a\" & (VLOOKUP(Switch!$D$60,$F$2:$G$43,2,FALSE)+ROW()-2)),\"\")","v":{"$error":"#N/A"}},{"$f":"IF(INDIRECT(\"c\" & (VLOOKUP(Switch!$D$61,$F$2:$G$43,2,FALSE)+ROW()-2))=Switch!$D$61,INDIRECT(\"a\" & (VLOOKUP(Switch!$D$61,$F$2:$G$43,2,FALSE)+ROW()-2)),\"\")","v":{"$error":"#N/A"}},{"$f":"IF(INDIRECT(\"c\" & (VLOOKUP(Switch!$D$62,$F$2:$G$43,2,FALSE)+ROW()-2))=Switch!$D$62,INDIRECT(\"a\" & (VLOOKUP(Switch!$D$62,$F$2:$G$43,2,FALSE)+ROW()-2)),\"\")","v":{"$error":"#N/A"}},{"$f":"IF(INDIRECT(\"c\" & (VLOOKUP(Switch!$D$63,$F$2:$G$43,2,FALSE)+ROW()-2))=Switch!$D$63,INDIRECT(\"a\" & (VLOOKUP(Switch!$D$63,$F$2:$G$43,2,FALSE)+ROW()-2)),\"\")","v":{"$error":"#N/A"}},{"$f":"IF(INDIRECT(\"c\" & (VLOOKUP(Switch!$D$64,$F$2:$G$43,2,FALSE)+ROW()-2))=Switch!$D$64,INDIRECT(\"a\" & (VLOOKUP(Switch!$D$64,$F$2:$G$43,2,FALSE)+ROW()-2)),\"\")","v":{"$error":"#N/A"}},{"$f":"IF(INDIRECT(\"c\" & (VLOOKUP(Switch!$D$65,$F$2:$G$43,2,FALSE)+ROW()-2))=Switch!$D$65,INDIRECT(\"a\" & (VLOOKUP(Switch!$D$65,$F$2:$G$43,2,FALSE)+ROW()-2)),\"\")","v":{"$error":"#N/A"}},{"$f":"IF(INDIRECT(\"c\" & (VLOOKUP(Switch!$D$66,$F$2:$G$43,2,FALSE)+ROW()-2))=Switch!$D$66,INDIRECT(\"a\" & (VLOOKUP(Switch!$D$66,$F$2:$G$43,2,FALSE)+ROW()-2)),\"\")","v":{"$error":"#N/A"}}]
["Lynx SCI Global Diversified FoF B1","LYGA1","Sanlam Collective Investments",{"$f":"ROW()","v":517},null,null,{"$f":"VLOOKUP(F517,$C$2:$D$637,2,FALSE)","v":{"$error":"#N/A"}},{"$f":"IF(INDIRECT(\"c\" & (VLOOKUP(Switch!$D$26,$F$2:$G$43,2,FALSE)+ROW()-2))=Switch!$D$26,INDIRECT(\"a\" & (VLOOKUP(Switch!$D$26,$F$2:$G$43,2,FALSE)+ROW()-2)),\"\")","v":{"$error":"#N/A"}},{"$f":"IF(INDIRECT(\"c\" & (VLOOKUP(Switch!$D$27,$F$2:$G$43,2,FALSE)+ROW()-2))=Switch!$D$27,INDIRECT(\"a\" & (VLOOKUP(Switch!$D$27,$F$2:$G$43,2,FALSE)+ROW()-2)),\"\")","v":{"$error":"#N/A"}},{"$f":"IF(INDIRECT(\"c\" & (VLOOKUP(Switch!$D$28,$F$2:$G$43,2,FALSE)+ROW()-2))=Switch!$D$28,INDIRECT(\"a\" & (VLOOKUP(Switch!$D$28,$F$2:$G$43,2,FALSE)+ROW()-2)),\"\")","v":{"$error":"#N/A"}},{"$f":"IF(INDIRECT(\"c\" & (VLOOKUP(Switch!$D$29,$F$2:$G$43,2,FALSE)+ROW()-2))=Switch!$D$29,INDIRECT(\"a\" & (VLOOKUP(Switch!$D$29,$F$2:$G$43,2,FALSE)+ROW()-2)),\"\")","v":{"$error":"#N/A"}},{"$f":"IF(INDIRECT(\"c\" & (VLOOKUP(Switch!$D$30,$F$2:$G$43,2,FALSE)+ROW()-2))=Switch!$D$30,INDIRECT(\"a\" & (VLOOKUP(Switch!$D$30,$F$2:$G$43,2,FALSE)+ROW()-2)),\"\")","v":{"$error":"#N/A"}},{"$f":"IF(INDIRECT(\"c\" & (VLOOKUP(Switch!$D$31,$F$2:$G$43,2,FALSE)+ROW()-2))=Switch!$D$31,INDIRECT(\"a\" & (VLOOKUP(Switch!$D$31,$F$2:$G$43,2,FALSE)+ROW()-2)),\"\")","v":{"$error":"#N/A"}},{"$f":"IF(INDIRECT(\"c\" & (VLOOKUP(Switch!$D$32,$F$2:$G$43,2,FALSE)+ROW()-2))=Switch!$D$32,INDIRECT(\"a\" & (VLOOKUP(Switch!$D$32,$F$2:$G$43,2,FALSE)+ROW()-2)),\"\")","v":{"$error":"#N/A"}},{"$f":"IF(INDIRECT(\"c\" & (VLOOKUP(Switch!$D$33,$F$2:$G$43,2,FALSE)+ROW()-2))=Switch!$D$33,INDIRECT(\"a\" & (VLOOKUP(Switch!$D$33,$F$2:$G$43,2,FALSE)+ROW()-2)),\"\")","v":{"$error":"#N/A"}},{"$f":"IF(INDIRECT(\"c\" & (VLOOKUP(Switch!$D$34,$F$2:$G$43,2,FALSE)+ROW()-2))=Switch!$D$34,INDIRECT(\"a\" & (VLOOKUP(Switch!$D$34,$F$2:$G$43,2,FALSE)+ROW()-2)),\"\")","v":{"$error":"#N/A"}},{"$f":"IF(INDIRECT(\"c\" & (VLOOKUP(Switch!$D$35,$F$2:$G$43,2,FALSE)+ROW()-2))=Switch!$D$35,INDIRECT(\"a\" & (VLOOKUP(Switch!$D$35,$F$2:$G$43,2,FALSE)+ROW()-2)),\"\")","v":{"$error":"#N/A"}},{"$f":"IF(INDIRECT(\"c\" & (VLOOKUP(Switch!$D$36,$F$2:$G$43,2,FALSE)+ROW()-2))=Switch!$D$36,INDIRECT(\"a\" & (VLOOKUP(Switch!$D$36,$F$2:$G$43,2,FALSE)+ROW()-2)),\"\")","v":{"$error":"#N/A"}},{"$f":"IF(INDIRECT(\"c\" & (VLOOKUP(Switch!$D$37,$F$2:$G$43,2,FALSE)+ROW()-2))=Switch!$D$37,INDIRECT(\"a\" & (VLOOKUP(Switch!$D$37,$F$2:$G$43,2,FALSE)+ROW()-2)),\"\")","v":{"$error":"#N/A"}},{"$f":"IF(INDIRECT(\"c\" & (VLOOKUP(Switch!$D$38,$F$2:$G$43,2,FALSE)+ROW()-2))=Switch!$D$38,INDIRECT(\"a\" & (VLOOKUP(Switch!$D$38,$F$2:$G$43,2,FALSE)+ROW()-2)),\"\")","v":{"$error":"#N/A"}},{"$f":"IF(INDIRECT(\"c\" & (VLOOKUP(Switch!$D$39,$F$2:$G$43,2,FALSE)+ROW()-2))=Switch!$D$39,INDIRECT(\"a\" & (VLOOKUP(Switch!$D$39,$F$2:$G$43,2,FALSE)+ROW()-2)),\"\")","v":{"$error":"#N/A"}},{"$f":"IF(INDIRECT(\"c\" & (VLOOKUP(Switch!$D$40,$F$2:$G$43,2,FALSE)+ROW()-2))=Switch!$D$40,INDIRECT(\"a\" & (VLOOKUP(Switch!$D$40,$F$2:$G$43,2,FALSE)+ROW()-2)),\"\")","v":{"$error":"#N/A"}},{"$f":"IF(INDIRECT(\"c\" & (VLOOKUP(Switch!$D$52,$F$2:$G$43,2,FALSE)+ROW()-2))=Switch!$D$52,INDIRECT(\"a\" & (VLOOKUP(Switch!$D$52,$F$2:$G$43,2,FALSE)+ROW()-2)),\"\")","v":{"$error":"#N/A"}},{"$f":"IF(INDIRECT(\"c\" & (VLOOKUP(Switch!$D$53,$F$2:$G$43,2,FALSE)+ROW()-2))=Switch!$D$53,INDIRECT(\"a\" & (VLOOKUP(Switch!$D$53,$F$2:$G$43,2,FALSE)+ROW()-2)),\"\")","v":{"$error":"#N/A"}},{"$f":"IF(INDIRECT(\"c\" & (VLOOKUP(Switch!$D$54,$F$2:$G$43,2,FALSE)+ROW()-2))=Switch!$D$54,INDIRECT(\"a\" & (VLOOKUP(Switch!$D$54,$F$2:$G$43,2,FALSE)+ROW()-2)),\"\")","v":{"$error":"#N/A"}},{"$f":"IF(INDIRECT(\"c\" & (VLOOKUP(Switch!$D$55,$F$2:$G$43,2,FALSE)+ROW()-2))=Switch!$D$55,INDIRECT(\"a\" & (VLOOKUP(Switch!$D$55,$F$2:$G$43,2,FALSE)+ROW()-2)),\"\")","v":{"$error":"#N/A"}},{"$f":"IF(INDIRECT(\"c\" & (VLOOKUP(Switch!$D$56,$F$2:$G$43,2,FALSE)+ROW()-2))=Switch!$D$56,INDIRECT(\"a\" & (VLOOKUP(Switch!$D$56,$F$2:$G$43,2,FALSE)+ROW()-2)),\"\")","v":{"$error":"#N/A"}},{"$f":"IF(INDIRECT(\"c\" & (VLOOKUP(Switch!$D$57,$F$2:$G$43,2,FALSE)+ROW()-2))=Switch!$D$57,INDIRECT(\"a\" & (VLOOKUP(Switch!$D$57,$F$2:$G$43,2,FALSE)+ROW()-2)),\"\")","v":{"$error":"#N/A"}},{"$f":"IF(INDIRECT(\"c\" & (VLOOKUP(Switch!$D$58,$F$2:$G$43,2,FALSE)+ROW()-2))=Switch!$D$58,INDIRECT(\"a\" & (VLOOKUP(Switch!$D$58,$F$2:$G$43,2,FALSE)+ROW()-2)),\"\")","v":{"$error":"#N/A"}},{"$f":"IF(INDIRECT(\"c\" & (VLOOKUP(Switch!$D$59,$F$2:$G$43,2,FALSE)+ROW()-2))=Switch!$D$59,INDIRECT(\"a\" & (VLOOKUP(Switch!$D$59,$F$2:$G$43,2,FALSE)+ROW()-2)),\"\")","v":{"$error":"#N/A"}},{"$f":"IF(INDIRECT(\"c\" & (VLOOKUP(Switch!$D$60,$F$2:$G$43,2,FALSE)+ROW()-2))=Switch!$D$60,INDIRECT(\"a\" & (VLOOKUP(Switch!$D$60,$F$2:$G$43,2,FALSE)+ROW()-2)),\"\")","v":{"$error":"#N/A"}},{"$f":"IF(INDIRECT(\"c\" & (VLOOKUP(Switch!$D$61,$F$2:$G$43,2,FALSE)+ROW()-2))=Switch!$D$61,INDIRECT(\"a\" & (VLOOKUP(Switch!$D$61,$F$2:$G$43,2,FALSE)+ROW()-2)),\"\")","v":{"$error":"#N/A"}},{"$f":"IF(INDIRECT(\"c\" & (VLOOKUP(Switch!$D$62,$F$2:$G$43,2,FALSE)+ROW()-2))=Switch!$D$62,INDIRECT(\"a\" & (VLOOKUP(Switch!$D$62,$F$2:$G$43,2,FALSE)+ROW()-2)),\"\")","v":{"$error":"#N/A"}},{"$f":"IF(INDIRECT(\"c\" & (VLOOKUP(Switch!$D$63,$F$2:$G$43,2,FALSE)+ROW()-2))=Switch!$D$63,INDIRECT(\"a\" & (VLOOKUP(Switch!$D$63,$F$2:$G$43,2,FALSE)+ROW()-2)),\"\")","v":{"$error":"#N/A"}},{"$f":"IF(INDIRECT(\"c\" & (VLOOKUP(Switch!$D$64,$F$2:$G$43,2,FALSE)+ROW()-2))=Switch!$D$64,INDIRECT(\"a\" & (VLOOKUP(Switch!$D$64,$F$2:$G$43,2,FALSE)+ROW()-2)),\"\")","v":{"$error":"#N/A"}},{"$f":"IF(INDIRECT(\"c\" & (VLOOKUP(Switch!$D$65,$F$2:$G$43,2,FALSE)+ROW()-2))=Switch!$D$65,INDIRECT(\"a\" & (VLOOKUP(Switch!$D$65,$F$2:$G$43,2,FALSE)+ROW()-2)),\"\")","v":{"$error":"#N/A"}},{"$f":"IF(INDIRECT(\"c\" & (VLOOKUP(Switch!$D$66,$F$2:$G$43,2,FALSE)+ROW()-2))=Switch!$D$66,INDIRECT(\"a\" & (VLOOKUP(Switch!$D$66,$F$2:$G$43,2,FALSE)+ROW()-2)),\"\")","v":{"$error":"#N/A"}}]
["Lynx SCI Opportunities FoF C2","RWOCA","Sanlam Collective Investments",{"$f":"ROW()","v":518},null,null,{"$f":"VLOOKUP(F518,$C$2:$D$637,2,FALSE)","v":{"$error":"#N/A"}},{"$f":"IF(INDIRECT(\"c\" & (VLOOKUP(Switch!$D$26,$F$2:$G$43,2,FALSE)+ROW()-2))=Switch!$D$26,INDIRECT(\"a\" & (VLOOKUP(Switch!$D$26,$F$2:$G$43,2,FALSE)+ROW()-2)),\"\")","v":{"$error":"#N/A"}},{"$f":"IF(INDIRECT(\"c\" & (VLOOKUP(Switch!$D$27,$F$2:$G$43,2,FALSE)+ROW()-2))=Switch!$D$27,INDIRECT(\"a\" & (VLOOKUP(Switch!$D$27,$F$2:$G$43,2,FALSE)+ROW()-2)),\"\")","v":{"$error":"#N/A"}},{"$f":"IF(INDIRECT(\"c\" & (VLOOKUP(Switch!$D$28,$F$2:$G$43,2,FALSE)+ROW()-2))=Switch!$D$28,INDIRECT(\"a\" & (VLOOKUP(Switch!$D$28,$F$2:$G$43,2,FALSE)+ROW()-2)),\"\")","v":{"$error":"#N/A"}},{"$f":"IF(INDIRECT(\"c\" & (VLOOKUP(Switch!$D$29,$F$2:$G$43,2,FALSE)+ROW()-2))=Switch!$D$29,INDIRECT(\"a\" & (VLOOKUP(Switch!$D$29,$F$2:$G$43,2,FALSE)+ROW()-2)),\"\")","v":{"$error":"#N/A"}},{"$f":"IF(INDIRECT(\"c\" & (VLOOKUP(Switch!$D$30,$F$2:$G$43,2,FALSE)+ROW()-2))=Switch!$D$30,INDIRECT(\"a\" & (VLOOKUP(Switch!$D$30,$F$2:$G$43,2,FALSE)+ROW()-2)),\"\")","v":{"$error":"#N/A"}},{"$f":"IF(INDIRECT(\"c\" & (VLOOKUP(Switch!$D$31,$F$2:$G$43,2,FALSE)+ROW()-2))=Switch!$D$31,INDIRECT(\"a\" & (VLOOKUP(Switch!$D$31,$F$2:$G$43,2,FALSE)+ROW()-2)),\"\")","v":{"$error":"#N/A"}},{"$f":"IF(INDIRECT(\"c\" & (VLOOKUP(Switch!$D$32,$F$2:$G$43,2,FALSE)+ROW()-2))=Switch!$D$32,INDIRECT(\"a\" & (VLOOKUP(Switch!$D$32,$F$2:$G$43,2,FALSE)+ROW()-2)),\"\")","v":{"$error":"#N/A"}},{"$f":"IF(INDIRECT(\"c\" & (VLOOKUP(Switch!$D$33,$F$2:$G$43,2,FALSE)+ROW()-2))=Switch!$D$33,INDIRECT(\"a\" & (VLOOKUP(Switch!$D$33,$F$2:$G$43,2,FALSE)+ROW()-2)),\"\")","v":{"$error":"#N/A"}},{"$f":"IF(INDIRECT(\"c\" & (VLOOKUP(Switch!$D$34,$F$2:$G$43,2,FALSE)+ROW()-2))=Switch!$D$34,INDIRECT(\"a\" & (VLOOKUP(Switch!$D$34,$F$2:$G$43,2,FALSE)+ROW()-2)),\"\")","v":{"$error":"#N/A"}},{"$f":"IF(INDIRECT(\"c\" & (VLOOKUP(Switch!$D$35,$F$2:$G$43,2,FALSE)+ROW()-2))=Switch!$D$35,INDIRECT(\"a\" & (VLOOKUP(Switch!$D$35,$F$2:$G$43,2,FALSE)+ROW()-2)),\"\")","v":{"$error":"#N/A"}},{"$f":"IF(INDIRECT(\"c\" & (VLOOKUP(Switch!$D$36,$F$2:$G$43,2,FALSE)+ROW()-2))=Switch!$D$36,INDIRECT(\"a\" & (VLOOKUP(Switch!$D$36,$F$2:$G$43,2,FALSE)+ROW()-2)),\"\")","v":{"$error":"#N/A"}},{"$f":"IF(INDIRECT(\"c\" & (VLOOKUP(Switch!$D$37,$F$2:$G$43,2,FALSE)+ROW()-2))=Switch!$D$37,INDIRECT(\"a\" & (VLOOKUP(Switch!$D$37,$F$2:$G$43,2,FALSE)+ROW()-2)),\"\")","v":{"$error":"#N/A"}},{"$f":"IF(INDIRECT(\"c\" & (VLOOKUP(Switch!$D$38,$F$2:$G$43,2,FALSE)+ROW()-2))=Switch!$D$38,INDIRECT(\"a\" & (VLOOKUP(Switch!$D$38,$F$2:$G$43,2,FALSE)+ROW()-2)),\"\")","v":{"$error":"#N/A"}},{"$f":"IF(INDIRECT(\"c\" & (VLOOKUP(Switch!$D$39,$F$2:$G$43,2,FALSE)+ROW()-2))=Switch!$D$39,INDIRECT(\"a\" & (VLOOKUP(Switch!$D$39,$F$2:$G$43,2,FALSE)+ROW()-2)),\"\")","v":{"$error":"#N/A"}},{"$f":"IF(INDIRECT(\"c\" & (VLOOKUP(Switch!$D$40,$F$2:$G$43,2,FALSE)+ROW()-2))=Switch!$D$40,INDIRECT(\"a\" & (VLOOKUP(Switch!$D$40,$F$2:$G$43,2,FALSE)+ROW()-2)),\"\")","v":{"$error":"#N/A"}},{"$f":"IF(INDIRECT(\"c\" & (VLOOKUP(Switch!$D$52,$F$2:$G$43,2,FALSE)+ROW()-2))=Switch!$D$52,INDIRECT(\"a\" & (VLOOKUP(Switch!$D$52,$F$2:$G$43,2,FALSE)+ROW()-2)),\"\")","v":{"$error":"#N/A"}},{"$f":"IF(INDIRECT(\"c\" & (VLOOKUP(Switch!$D$53,$F$2:$G$43,2,FALSE)+ROW()-2))=Switch!$D$53,INDIRECT(\"a\" & (VLOOKUP(Switch!$D$53,$F$2:$G$43,2,FALSE)+ROW()-2)),\"\")","v":{"$error":"#N/A"}},{"$f":"IF(INDIRECT(\"c\" & (VLOOKUP(Switch!$D$54,$F$2:$G$43,2,FALSE)+ROW()-2))=Switch!$D$54,INDIRECT(\"a\" & (VLOOKUP(Switch!$D$54,$F$2:$G$43,2,FALSE)+ROW()-2)),\"\")","v":{"$error":"#N/A"}},{"$f":"IF(INDIRECT(\"c\" & (VLOOKUP(Switch!$D$55,$F$2:$G$43,2,FALSE)+ROW()-2))=Switch!$D$55,INDIRECT(\"a\" & (VLOOKUP(Switch!$D$55,$F$2:$G$43,2,FALSE)+ROW()-2)),\"\")","v":{"$error":"#N/A"}},{"$f":"IF(INDIRECT(\"c\" & (VLOOKUP(Switch!$D$56,$F$2:$G$43,2,FALSE)+ROW()-2))=Switch!$D$56,INDIRECT(\"a\" & (VLOOKUP(Switch!$D$56,$F$2:$G$43,2,FALSE)+ROW()-2)),\"\")","v":{"$error":"#N/A"}},{"$f":"IF(INDIRECT(\"c\" & (VLOOKUP(Switch!$D$57,$F$2:$G$43,2,FALSE)+ROW()-2))=Switch!$D$57,INDIRECT(\"a\" & (VLOOKUP(Switch!$D$57,$F$2:$G$43,2,FALSE)+ROW()-2)),\"\")","v":{"$error":"#N/A"}},{"$f":"IF(INDIRECT(\"c\" & (VLOOKUP(Switch!$D$58,$F$2:$G$43,2,FALSE)+ROW()-2))=Switch!$D$58,INDIRECT(\"a\" & (VLOOKUP(Switch!$D$58,$F$2:$G$43,2,FALSE)+ROW()-2)),\"\")","v":{"$error":"#N/A"}},{"$f":"IF(INDIRECT(\"c\" & (VLOOKUP(Switch!$D$59,$F$2:$G$43,2,FALSE)+ROW()-2))=Switch!$D$59,INDIRECT(\"a\" & (VLOOKUP(Switch!$D$59,$F$2:$G$43,2,FALSE)+ROW()-2)),\"\")","v":{"$error":"#N/A"}},{"$f":"IF(INDIRECT(\"c\" & (VLOOKUP(Switch!$D$60,$F$2:$G$43,2,FALSE)+ROW()-2))=Switch!$D$60,INDIRECT(\"a\" & (VLOOKUP(Switch!$D$60,$F$2:$G$43,2,FALSE)+ROW()-2)),\"\")","v":{"$error":"#N/A"}},{"$f":"IF(INDIRECT(\"c\" & (VLOOKUP(Switch!$D$61,$F$2:$G$43,2,FALSE)+ROW()-2))=Switch!$D$61,INDIRECT(\"a\" & (VLOOKUP(Switch!$D$61,$F$2:$G$43,2,FALSE)+ROW()-2)),\"\")","v":{"$error":"#N/A"}},{"$f":"IF(INDIRECT(\"c\" & (VLOOKUP(Switch!$D$62,$F$2:$G$43,2,FALSE)+ROW()-2))=Switch!$D$62,INDIRECT(\"a\" & (VLOOKUP(Switch!$D$62,$F$2:$G$43,2,FALSE)+ROW()-2)),\"\")","v":{"$error":"#N/A"}},{"$f":"IF(INDIRECT(\"c\" & (VLOOKUP(Switch!$D$63,$F$2:$G$43,2,FALSE)+ROW()-2))=Switch!$D$63,INDIRECT(\"a\" & (VLOOKUP(Switch!$D$63,$F$2:$G$43,2,FALSE)+ROW()-2)),\"\")","v":{"$error":"#N/A"}},{"$f":"IF(INDIRECT(\"c\" & (VLOOKUP(Switch!$D$64,$F$2:$G$43,2,FALSE)+ROW()-2))=Switch!$D$64,INDIRECT(\"a\" & (VLOOKUP(Switch!$D$64,$F$2:$G$43,2,FALSE)+ROW()-2)),\"\")","v":{"$error":"#N/A"}},{"$f":"IF(INDIRECT(\"c\" & (VLOOKUP(Switch!$D$65,$F$2:$G$43,2,FALSE)+ROW()-2))=Switch!$D$65,INDIRECT(\"a\" & (VLOOKUP(Switch!$D$65,$F$2:$G$43,2,FALSE)+ROW()-2)),\"\")","v":{"$error":"#N/A"}},{"$f":"IF(INDIRECT(\"c\" & (VLOOKUP(Switch!$D$66,$F$2:$G$43,2,FALSE)+ROW()-2))=Switch!$D$66,INDIRECT(\"a\" & (VLOOKUP(Switch!$D$66,$F$2:$G$43,2,FALSE)+ROW()-2)),\"\")","v":{"$error":"#N/A"}}]
["Amplify Sanlam Collective Investments Defensive Balanced Fund B3","SPLB3","Sanlam Collective Investments",{"$f":"ROW()","v":519},null,null,{"$f":"VLOOKUP(F519,$C$2:$D$637,2,FALSE)","v":{"$error":"#N/A"}},{"$f":"IF(INDIRECT(\"c\" & (VLOOKUP(Switch!$D$26,$F$2:$G$43,2,FALSE)+ROW()-2))=Switch!$D$26,INDIRECT(\"a\" & (VLOOKUP(Switch!$D$26,$F$2:$G$43,2,FALSE)+ROW()-2)),\"\")","v":{"$error":"#N/A"}},{"$f":"IF(INDIRECT(\"c\" & (VLOOKUP(Switch!$D$27,$F$2:$G$43,2,FALSE)+ROW()-2))=Switch!$D$27,INDIRECT(\"a\" & (VLOOKUP(Switch!$D$27,$F$2:$G$43,2,FALSE)+ROW()-2)),\"\")","v":{"$error":"#N/A"}},{"$f":"IF(INDIRECT(\"c\" & (VLOOKUP(Switch!$D$28,$F$2:$G$43,2,FALSE)+ROW()-2))=Switch!$D$28,INDIRECT(\"a\" & (VLOOKUP(Switch!$D$28,$F$2:$G$43,2,FALSE)+ROW()-2)),\"\")","v":{"$error":"#N/A"}},{"$f":"IF(INDIRECT(\"c\" & (VLOOKUP(Switch!$D$29,$F$2:$G$43,2,FALSE)+ROW()-2))=Switch!$D$29,INDIRECT(\"a\" & (VLOOKUP(Switch!$D$29,$F$2:$G$43,2,FALSE)+ROW()-2)),\"\")","v":{"$error":"#N/A"}},{"$f":"IF(INDIRECT(\"c\" & (VLOOKUP(Switch!$D$30,$F$2:$G$43,2,FALSE)+ROW()-2))=Switch!$D$30,INDIRECT(\"a\" & (VLOOKUP(Switch!$D$30,$F$2:$G$43,2,FALSE)+ROW()-2)),\"\")","v":{"$error":"#N/A"}},{"$f":"IF(INDIRECT(\"c\" & (VLOOKUP(Switch!$D$31,$F$2:$G$43,2,FALSE)+ROW()-2))=Switch!$D$31,INDIRECT(\"a\" & (VLOOKUP(Switch!$D$31,$F$2:$G$43,2,FALSE)+ROW()-2)),\"\")","v":{"$error":"#N/A"}},{"$f":"IF(INDIRECT(\"c\" & (VLOOKUP(Switch!$D$32,$F$2:$G$43,2,FALSE)+ROW()-2))=Switch!$D$32,INDIRECT(\"a\" & (VLOOKUP(Switch!$D$32,$F$2:$G$43,2,FALSE)+ROW()-2)),\"\")","v":{"$error":"#N/A"}},{"$f":"IF(INDIRECT(\"c\" & (VLOOKUP(Switch!$D$33,$F$2:$G$43,2,FALSE)+ROW()-2))=Switch!$D$33,INDIRECT(\"a\" & (VLOOKUP(Switch!$D$33,$F$2:$G$43,2,FALSE)+ROW()-2)),\"\")","v":{"$error":"#N/A"}},{"$f":"IF(INDIRECT(\"c\" & (VLOOKUP(Switch!$D$34,$F$2:$G$43,2,FALSE)+ROW()-2))=Switch!$D$34,INDIRECT(\"a\" & (VLOOKUP(Switch!$D$34,$F$2:$G$43,2,FALSE)+ROW()-2)),\"\")","v":{"$error":"#N/A"}},{"$f":"IF(INDIRECT(\"c\" & (VLOOKUP(Switch!$D$35,$F$2:$G$43,2,FALSE)+ROW()-2))=Switch!$D$35,INDIRECT(\"a\" & (VLOOKUP(Switch!$D$35,$F$2:$G$43,2,FALSE)+ROW()-2)),\"\")","v":{"$error":"#N/A"}},{"$f":"IF(INDIRECT(\"c\" & (VLOOKUP(Switch!$D$36,$F$2:$G$43,2,FALSE)+ROW()-2))=Switch!$D$36,INDIRECT(\"a\" & (VLOOKUP(Switch!$D$36,$F$2:$G$43,2,FALSE)+ROW()-2)),\"\")","v":{"$error":"#N/A"}},{"$f":"IF(INDIRECT(\"c\" & (VLOOKUP(Switch!$D$37,$F$2:$G$43,2,FALSE)+ROW()-2))=Switch!$D$37,INDIRECT(\"a\" & (VLOOKUP(Switch!$D$37,$F$2:$G$43,2,FALSE)+ROW()-2)),\"\")","v":{"$error":"#N/A"}},{"$f":"IF(INDIRECT(\"c\" & (VLOOKUP(Switch!$D$38,$F$2:$G$43,2,FALSE)+ROW()-2))=Switch!$D$38,INDIRECT(\"a\" & (VLOOKUP(Switch!$D$38,$F$2:$G$43,2,FALSE)+ROW()-2)),\"\")","v":{"$error":"#N/A"}},{"$f":"IF(INDIRECT(\"c\" & (VLOOKUP(Switch!$D$39,$F$2:$G$43,2,FALSE)+ROW()-2))=Switch!$D$39,INDIRECT(\"a\" & (VLOOKUP(Switch!$D$39,$F$2:$G$43,2,FALSE)+ROW()-2)),\"\")","v":{"$error":"#N/A"}},{"$f":"IF(INDIRECT(\"c\" & (VLOOKUP(Switch!$D$40,$F$2:$G$43,2,FALSE)+ROW()-2))=Switch!$D$40,INDIRECT(\"a\" & (VLOOKUP(Switch!$D$40,$F$2:$G$43,2,FALSE)+ROW()-2)),\"\")","v":{"$error":"#N/A"}},{"$f":"IF(INDIRECT(\"c\" & (VLOOKUP(Switch!$D$52,$F$2:$G$43,2,FALSE)+ROW()-2))=Switch!$D$52,INDIRECT(\"a\" & (VLOOKUP(Switch!$D$52,$F$2:$G$43,2,FALSE)+ROW()-2)),\"\")","v":{"$error":"#N/A"}},{"$f":"IF(INDIRECT(\"c\" & (VLOOKUP(Switch!$D$53,$F$2:$G$43,2,FALSE)+ROW()-2))=Switch!$D$53,INDIRECT(\"a\" & (VLOOKUP(Switch!$D$53,$F$2:$G$43,2,FALSE)+ROW()-2)),\"\")","v":{"$error":"#N/A"}},{"$f":"IF(INDIRECT(\"c\" & (VLOOKUP(Switch!$D$54,$F$2:$G$43,2,FALSE)+ROW()-2))=Switch!$D$54,INDIRECT(\"a\" & (VLOOKUP(Switch!$D$54,$F$2:$G$43,2,FALSE)+ROW()-2)),\"\")","v":{"$error":"#N/A"}},{"$f":"IF(INDIRECT(\"c\" & (VLOOKUP(Switch!$D$55,$F$2:$G$43,2,FALSE)+ROW()-2))=Switch!$D$55,INDIRECT(\"a\" & (VLOOKUP(Switch!$D$55,$F$2:$G$43,2,FALSE)+ROW()-2)),\"\")","v":{"$error":"#N/A"}},{"$f":"IF(INDIRECT(\"c\" & (VLOOKUP(Switch!$D$56,$F$2:$G$43,2,FALSE)+ROW()-2))=Switch!$D$56,INDIRECT(\"a\" & (VLOOKUP(Switch!$D$56,$F$2:$G$43,2,FALSE)+ROW()-2)),\"\")","v":{"$error":"#N/A"}},{"$f":"IF(INDIRECT(\"c\" & (VLOOKUP(Switch!$D$57,$F$2:$G$43,2,FALSE)+ROW()-2))=Switch!$D$57,INDIRECT(\"a\" & (VLOOKUP(Switch!$D$57,$F$2:$G$43,2,FALSE)+ROW()-2)),\"\")","v":{"$error":"#N/A"}},{"$f":"IF(INDIRECT(\"c\" & (VLOOKUP(Switch!$D$58,$F$2:$G$43,2,FALSE)+ROW()-2))=Switch!$D$58,INDIRECT(\"a\" & (VLOOKUP(Switch!$D$58,$F$2:$G$43,2,FALSE)+ROW()-2)),\"\")","v":{"$error":"#N/A"}},{"$f":"IF(INDIRECT(\"c\" & (VLOOKUP(Switch!$D$59,$F$2:$G$43,2,FALSE)+ROW()-2))=Switch!$D$59,INDIRECT(\"a\" & (VLOOKUP(Switch!$D$59,$F$2:$G$43,2,FALSE)+ROW()-2)),\"\")","v":{"$error":"#N/A"}},{"$f":"IF(INDIRECT(\"c\" & (VLOOKUP(Switch!$D$60,$F$2:$G$43,2,FALSE)+ROW()-2))=Switch!$D$60,INDIRECT(\"a\" & (VLOOKUP(Switch!$D$60,$F$2:$G$43,2,FALSE)+ROW()-2)),\"\")","v":{"$error":"#N/A"}},{"$f":"IF(INDIRECT(\"c\" & (VLOOKUP(Switch!$D$61,$F$2:$G$43,2,FALSE)+ROW()-2))=Switch!$D$61,INDIRECT(\"a\" & (VLOOKUP(Switch!$D$61,$F$2:$G$43,2,FALSE)+ROW()-2)),\"\")","v":{"$error":"#N/A"}},{"$f":"IF(INDIRECT(\"c\" & (VLOOKUP(Switch!$D$62,$F$2:$G$43,2,FALSE)+ROW()-2))=Switch!$D$62,INDIRECT(\"a\" & (VLOOKUP(Switch!$D$62,$F$2:$G$43,2,FALSE)+ROW()-2)),\"\")","v":{"$error":"#N/A"}},{"$f":"IF(INDIRECT(\"c\" & (VLOOKUP(Switch!$D$63,$F$2:$G$43,2,FALSE)+ROW()-2))=Switch!$D$63,INDIRECT(\"a\" & (VLOOKUP(Switch!$D$63,$F$2:$G$43,2,FALSE)+ROW()-2)),\"\")","v":{"$error":"#N/A"}},{"$f":"IF(INDIRECT(\"c\" & (VLOOKUP(Switch!$D$64,$F$2:$G$43,2,FALSE)+ROW()-2))=Switch!$D$64,INDIRECT(\"a\" & (VLOOKUP(Switch!$D$64,$F$2:$G$43,2,FALSE)+ROW()-2)),\"\")","v":{"$error":"#N/A"}},{"$f":"IF(INDIRECT(\"c\" & (VLOOKUP(Switch!$D$65,$F$2:$G$43,2,FALSE)+ROW()-2))=Switch!$D$65,INDIRECT(\"a\" & (VLOOKUP(Switch!$D$65,$F$2:$G$43,2,FALSE)+ROW()-2)),\"\")","v":{"$error":"#N/A"}},{"$f":"IF(INDIRECT(\"c\" & (VLOOKUP(Switch!$D$66,$F$2:$G$43,2,FALSE)+ROW()-2))=Switch!$D$66,INDIRECT(\"a\" & (VLOOKUP(Switch!$D$66,$F$2:$G$43,2,FALSE)+ROW()-2)),\"\")","v":{"$error":"#N/A"}}]
["Sanlam Asia Pacific FoF","SANA","Sanlam Collective Investments",{"$f":"ROW()","v":520},null,null,{"$f":"VLOOKUP(F520,$C$2:$D$637,2,FALSE)","v":{"$error":"#N/A"}},{"$f":"IF(INDIRECT(\"c\" & (VLOOKUP(Switch!$D$26,$F$2:$G$43,2,FALSE)+ROW()-2))=Switch!$D$26,INDIRECT(\"a\" & (VLOOKUP(Switch!$D$26,$F$2:$G$43,2,FALSE)+ROW()-2)),\"\")","v":{"$error":"#N/A"}},{"$f":"IF(INDIRECT(\"c\" & (VLOOKUP(Switch!$D$27,$F$2:$G$43,2,FALSE)+ROW()-2))=Switch!$D$27,INDIRECT(\"a\" & (VLOOKUP(Switch!$D$27,$F$2:$G$43,2,FALSE)+ROW()-2)),\"\")","v":{"$error":"#N/A"}},{"$f":"IF(INDIRECT(\"c\" & (VLOOKUP(Switch!$D$28,$F$2:$G$43,2,FALSE)+ROW()-2))=Switch!$D$28,INDIRECT(\"a\" & (VLOOKUP(Switch!$D$28,$F$2:$G$43,2,FALSE)+ROW()-2)),\"\")","v":{"$error":"#N/A"}},{"$f":"IF(INDIRECT(\"c\" & (VLOOKUP(Switch!$D$29,$F$2:$G$43,2,FALSE)+ROW()-2))=Switch!$D$29,INDIRECT(\"a\" & (VLOOKUP(Switch!$D$29,$F$2:$G$43,2,FALSE)+ROW()-2)),\"\")","v":{"$error":"#N/A"}},{"$f":"IF(INDIRECT(\"c\" & (VLOOKUP(Switch!$D$30,$F$2:$G$43,2,FALSE)+ROW()-2))=Switch!$D$30,INDIRECT(\"a\" & (VLOOKUP(Switch!$D$30,$F$2:$G$43,2,FALSE)+ROW()-2)),\"\")","v":{"$error":"#N/A"}},{"$f":"IF(INDIRECT(\"c\" & (VLOOKUP(Switch!$D$31,$F$2:$G$43,2,FALSE)+ROW()-2))=Switch!$D$31,INDIRECT(\"a\" & (VLOOKUP(Switch!$D$31,$F$2:$G$43,2,FALSE)+ROW()-2)),\"\")","v":{"$error":"#N/A"}},{"$f":"IF(INDIRECT(\"c\" & (VLOOKUP(Switch!$D$32,$F$2:$G$43,2,FALSE)+ROW()-2))=Switch!$D$32,INDIRECT(\"a\" & (VLOOKUP(Switch!$D$32,$F$2:$G$43,2,FALSE)+ROW()-2)),\"\")","v":{"$error":"#N/A"}},{"$f":"IF(INDIRECT(\"c\" & (VLOOKUP(Switch!$D$33,$F$2:$G$43,2,FALSE)+ROW()-2))=Switch!$D$33,INDIRECT(\"a\" & (VLOOKUP(Switch!$D$33,$F$2:$G$43,2,FALSE)+ROW()-2)),\"\")","v":{"$error":"#N/A"}},{"$f":"IF(INDIRECT(\"c\" & (VLOOKUP(Switch!$D$34,$F$2:$G$43,2,FALSE)+ROW()-2))=Switch!$D$34,INDIRECT(\"a\" & (VLOOKUP(Switch!$D$34,$F$2:$G$43,2,FALSE)+ROW()-2)),\"\")","v":{"$error":"#N/A"}},{"$f":"IF(INDIRECT(\"c\" & (VLOOKUP(Switch!$D$35,$F$2:$G$43,2,FALSE)+ROW()-2))=Switch!$D$35,INDIRECT(\"a\" & (VLOOKUP(Switch!$D$35,$F$2:$G$43,2,FALSE)+ROW()-2)),\"\")","v":{"$error":"#N/A"}},{"$f":"IF(INDIRECT(\"c\" & (VLOOKUP(Switch!$D$36,$F$2:$G$43,2,FALSE)+ROW()-2))=Switch!$D$36,INDIRECT(\"a\" & (VLOOKUP(Switch!$D$36,$F$2:$G$43,2,FALSE)+ROW()-2)),\"\")","v":{"$error":"#N/A"}},{"$f":"IF(INDIRECT(\"c\" & (VLOOKUP(Switch!$D$37,$F$2:$G$43,2,FALSE)+ROW()-2))=Switch!$D$37,INDIRECT(\"a\" & (VLOOKUP(Switch!$D$37,$F$2:$G$43,2,FALSE)+ROW()-2)),\"\")","v":{"$error":"#N/A"}},{"$f":"IF(INDIRECT(\"c\" & (VLOOKUP(Switch!$D$38,$F$2:$G$43,2,FALSE)+ROW()-2))=Switch!$D$38,INDIRECT(\"a\" & (VLOOKUP(Switch!$D$38,$F$2:$G$43,2,FALSE)+ROW()-2)),\"\")","v":{"$error":"#N/A"}},{"$f":"IF(INDIRECT(\"c\" & (VLOOKUP(Switch!$D$39,$F$2:$G$43,2,FALSE)+ROW()-2))=Switch!$D$39,INDIRECT(\"a\" & (VLOOKUP(Switch!$D$39,$F$2:$G$43,2,FALSE)+ROW()-2)),\"\")","v":{"$error":"#N/A"}},{"$f":"IF(INDIRECT(\"c\" & (VLOOKUP(Switch!$D$40,$F$2:$G$43,2,FALSE)+ROW()-2))=Switch!$D$40,INDIRECT(\"a\" & (VLOOKUP(Switch!$D$40,$F$2:$G$43,2,FALSE)+ROW()-2)),\"\")","v":{"$error":"#N/A"}},{"$f":"IF(INDIRECT(\"c\" & (VLOOKUP(Switch!$D$52,$F$2:$G$43,2,FALSE)+ROW()-2))=Switch!$D$52,INDIRECT(\"a\" & (VLOOKUP(Switch!$D$52,$F$2:$G$43,2,FALSE)+ROW()-2)),\"\")","v":{"$error":"#N/A"}},{"$f":"IF(INDIRECT(\"c\" & (VLOOKUP(Switch!$D$53,$F$2:$G$43,2,FALSE)+ROW()-2))=Switch!$D$53,INDIRECT(\"a\" & (VLOOKUP(Switch!$D$53,$F$2:$G$43,2,FALSE)+ROW()-2)),\"\")","v":{"$error":"#N/A"}},{"$f":"IF(INDIRECT(\"c\" & (VLOOKUP(Switch!$D$54,$F$2:$G$43,2,FALSE)+ROW()-2))=Switch!$D$54,INDIRECT(\"a\" & (VLOOKUP(Switch!$D$54,$F$2:$G$43,2,FALSE)+ROW()-2)),\"\")","v":{"$error":"#N/A"}},{"$f":"IF(INDIRECT(\"c\" & (VLOOKUP(Switch!$D$55,$F$2:$G$43,2,FALSE)+ROW()-2))=Switch!$D$55,INDIRECT(\"a\" & (VLOOKUP(Switch!$D$55,$F$2:$G$43,2,FALSE)+ROW()-2)),\"\")","v":{"$error":"#N/A"}},{"$f":"IF(INDIRECT(\"c\" & (VLOOKUP(Switch!$D$56,$F$2:$G$43,2,FALSE)+ROW()-2))=Switch!$D$56,INDIRECT(\"a\" & (VLOOKUP(Switch!$D$56,$F$2:$G$43,2,FALSE)+ROW()-2)),\"\")","v":{"$error":"#N/A"}},{"$f":"IF(INDIRECT(\"c\" & (VLOOKUP(Switch!$D$57,$F$2:$G$43,2,FALSE)+ROW()-2))=Switch!$D$57,INDIRECT(\"a\" & (VLOOKUP(Switch!$D$57,$F$2:$G$43,2,FALSE)+ROW()-2)),\"\")","v":{"$error":"#N/A"}},{"$f":"IF(INDIRECT(\"c\" & (VLOOKUP(Switch!$D$58,$F$2:$G$43,2,FALSE)+ROW()-2))=Switch!$D$58,INDIRECT(\"a\" & (VLOOKUP(Switch!$D$58,$F$2:$G$43,2,FALSE)+ROW()-2)),\"\")","v":{"$error":"#N/A"}},{"$f":"IF(INDIRECT(\"c\" & (VLOOKUP(Switch!$D$59,$F$2:$G$43,2,FALSE)+ROW()-2))=Switch!$D$59,INDIRECT(\"a\" & (VLOOKUP(Switch!$D$59,$F$2:$G$43,2,FALSE)+ROW()-2)),\"\")","v":{"$error":"#N/A"}},{"$f":"IF(INDIRECT(\"c\" & (VLOOKUP(Switch!$D$60,$F$2:$G$43,2,FALSE)+ROW()-2))=Switch!$D$60,INDIRECT(\"a\" & (VLOOKUP(Switch!$D$60,$F$2:$G$43,2,FALSE)+ROW()-2)),\"\")","v":{"$error":"#N/A"}},{"$f":"IF(INDIRECT(\"c\" & (VLOOKUP(Switch!$D$61,$F$2:$G$43,2,FALSE)+ROW()-2))=Switch!$D$61,INDIRECT(\"a\" & (VLOOKUP(Switch!$D$61,$F$2:$G$43,2,FALSE)+ROW()-2)),\"\")","v":{"$error":"#N/A"}},{"$f":"IF(INDIRECT(\"c\" & (VLOOKUP(Switch!$D$62,$F$2:$G$43,2,FALSE)+ROW()-2))=Switch!$D$62,INDIRECT(\"a\" & (VLOOKUP(Switch!$D$62,$F$2:$G$43,2,FALSE)+ROW()-2)),\"\")","v":{"$error":"#N/A"}},{"$f":"IF(INDIRECT(\"c\" & (VLOOKUP(Switch!$D$63,$F$2:$G$43,2,FALSE)+ROW()-2))=Switch!$D$63,INDIRECT(\"a\" & (VLOOKUP(Switch!$D$63,$F$2:$G$43,2,FALSE)+ROW()-2)),\"\")","v":{"$error":"#N/A"}},{"$f":"IF(INDIRECT(\"c\" & (VLOOKUP(Switch!$D$64,$F$2:$G$43,2,FALSE)+ROW()-2))=Switch!$D$64,INDIRECT(\"a\" & (VLOOKUP(Switch!$D$64,$F$2:$G$43,2,FALSE)+ROW()-2)),\"\")","v":{"$error":"#N/A"}},{"$f":"IF(INDIRECT(\"c\" & (VLOOKUP(Switch!$D$65,$F$2:$G$43,2,FALSE)+ROW()-2))=Switch!$D$65,INDIRECT(\"a\" & (VLOOKUP(Switch!$D$65,$F$2:$G$43,2,FALSE)+ROW()-2)),\"\")","v":{"$error":"#N/A"}},{"$f":"IF(INDIRECT(\"c\" & (VLOOKUP(Switch!$D$66,$F$2:$G$43,2,FALSE)+ROW()-2))=Switch!$D$66,INDIRECT(\"a\" & (VLOOKUP(Switch!$D$66,$F$2:$G$43,2,FALSE)+ROW()-2)),\"\")","v":{"$error":"#N/A"}}]
["Sanlam Global Cautious FoF A","SAIA","Sanlam Collective Investments",{"$f":"ROW()","v":521},null,null,{"$f":"VLOOKUP(F521,$C$2:$D$637,2,FALSE)","v":{"$error":"#N/A"}},{"$f":"IF(INDIRECT(\"c\" & (VLOOKUP(Switch!$D$26,$F$2:$G$43,2,FALSE)+ROW()-2))=Switch!$D$26,INDIRECT(\"a\" & (VLOOKUP(Switch!$D$26,$F$2:$G$43,2,FALSE)+ROW()-2)),\"\")","v":{"$error":"#N/A"}},{"$f":"IF(INDIRECT(\"c\" & (VLOOKUP(Switch!$D$27,$F$2:$G$43,2,FALSE)+ROW()-2))=Switch!$D$27,INDIRECT(\"a\" & (VLOOKUP(Switch!$D$27,$F$2:$G$43,2,FALSE)+ROW()-2)),\"\")","v":{"$error":"#N/A"}},{"$f":"IF(INDIRECT(\"c\" & (VLOOKUP(Switch!$D$28,$F$2:$G$43,2,FALSE)+ROW()-2))=Switch!$D$28,INDIRECT(\"a\" & (VLOOKUP(Switch!$D$28,$F$2:$G$43,2,FALSE)+ROW()-2)),\"\")","v":{"$error":"#N/A"}},{"$f":"IF(INDIRECT(\"c\" & (VLOOKUP(Switch!$D$29,$F$2:$G$43,2,FALSE)+ROW()-2))=Switch!$D$29,INDIRECT(\"a\" & (VLOOKUP(Switch!$D$29,$F$2:$G$43,2,FALSE)+ROW()-2)),\"\")","v":{"$error":"#N/A"}},{"$f":"IF(INDIRECT(\"c\" & (VLOOKUP(Switch!$D$30,$F$2:$G$43,2,FALSE)+ROW()-2))=Switch!$D$30,INDIRECT(\"a\" & (VLOOKUP(Switch!$D$30,$F$2:$G$43,2,FALSE)+ROW()-2)),\"\")","v":{"$error":"#N/A"}},{"$f":"IF(INDIRECT(\"c\" & (VLOOKUP(Switch!$D$31,$F$2:$G$43,2,FALSE)+ROW()-2))=Switch!$D$31,INDIRECT(\"a\" & (VLOOKUP(Switch!$D$31,$F$2:$G$43,2,FALSE)+ROW()-2)),\"\")","v":{"$error":"#N/A"}},{"$f":"IF(INDIRECT(\"c\" & (VLOOKUP(Switch!$D$32,$F$2:$G$43,2,FALSE)+ROW()-2))=Switch!$D$32,INDIRECT(\"a\" & (VLOOKUP(Switch!$D$32,$F$2:$G$43,2,FALSE)+ROW()-2)),\"\")","v":{"$error":"#N/A"}},{"$f":"IF(INDIRECT(\"c\" & (VLOOKUP(Switch!$D$33,$F$2:$G$43,2,FALSE)+ROW()-2))=Switch!$D$33,INDIRECT(\"a\" & (VLOOKUP(Switch!$D$33,$F$2:$G$43,2,FALSE)+ROW()-2)),\"\")","v":{"$error":"#N/A"}},{"$f":"IF(INDIRECT(\"c\" & (VLOOKUP(Switch!$D$34,$F$2:$G$43,2,FALSE)+ROW()-2))=Switch!$D$34,INDIRECT(\"a\" & (VLOOKUP(Switch!$D$34,$F$2:$G$43,2,FALSE)+ROW()-2)),\"\")","v":{"$error":"#N/A"}},{"$f":"IF(INDIRECT(\"c\" & (VLOOKUP(Switch!$D$35,$F$2:$G$43,2,FALSE)+ROW()-2))=Switch!$D$35,INDIRECT(\"a\" & (VLOOKUP(Switch!$D$35,$F$2:$G$43,2,FALSE)+ROW()-2)),\"\")","v":{"$error":"#N/A"}},{"$f":"IF(INDIRECT(\"c\" & (VLOOKUP(Switch!$D$36,$F$2:$G$43,2,FALSE)+ROW()-2))=Switch!$D$36,INDIRECT(\"a\" & (VLOOKUP(Switch!$D$36,$F$2:$G$43,2,FALSE)+ROW()-2)),\"\")","v":{"$error":"#N/A"}},{"$f":"IF(INDIRECT(\"c\" & (VLOOKUP(Switch!$D$37,$F$2:$G$43,2,FALSE)+ROW()-2))=Switch!$D$37,INDIRECT(\"a\" & (VLOOKUP(Switch!$D$37,$F$2:$G$43,2,FALSE)+ROW()-2)),\"\")","v":{"$error":"#N/A"}},{"$f":"IF(INDIRECT(\"c\" & (VLOOKUP(Switch!$D$38,$F$2:$G$43,2,FALSE)+ROW()-2))=Switch!$D$38,INDIRECT(\"a\" & (VLOOKUP(Switch!$D$38,$F$2:$G$43,2,FALSE)+ROW()-2)),\"\")","v":{"$error":"#N/A"}},{"$f":"IF(INDIRECT(\"c\" & (VLOOKUP(Switch!$D$39,$F$2:$G$43,2,FALSE)+ROW()-2))=Switch!$D$39,INDIRECT(\"a\" & (VLOOKUP(Switch!$D$39,$F$2:$G$43,2,FALSE)+ROW()-2)),\"\")","v":{"$error":"#N/A"}},{"$f":"IF(INDIRECT(\"c\" & (VLOOKUP(Switch!$D$40,$F$2:$G$43,2,FALSE)+ROW()-2))=Switch!$D$40,INDIRECT(\"a\" & (VLOOKUP(Switch!$D$40,$F$2:$G$43,2,FALSE)+ROW()-2)),\"\")","v":{"$error":"#N/A"}},{"$f":"IF(INDIRECT(\"c\" & (VLOOKUP(Switch!$D$52,$F$2:$G$43,2,FALSE)+ROW()-2))=Switch!$D$52,INDIRECT(\"a\" & (VLOOKUP(Switch!$D$52,$F$2:$G$43,2,FALSE)+ROW()-2)),\"\")","v":{"$error":"#N/A"}},{"$f":"IF(INDIRECT(\"c\" & (VLOOKUP(Switch!$D$53,$F$2:$G$43,2,FALSE)+ROW()-2))=Switch!$D$53,INDIRECT(\"a\" & (VLOOKUP(Switch!$D$53,$F$2:$G$43,2,FALSE)+ROW()-2)),\"\")","v":{"$error":"#N/A"}},{"$f":"IF(INDIRECT(\"c\" & (VLOOKUP(Switch!$D$54,$F$2:$G$43,2,FALSE)+ROW()-2))=Switch!$D$54,INDIRECT(\"a\" & (VLOOKUP(Switch!$D$54,$F$2:$G$43,2,FALSE)+ROW()-2)),\"\")","v":{"$error":"#N/A"}},{"$f":"IF(INDIRECT(\"c\" & (VLOOKUP(Switch!$D$55,$F$2:$G$43,2,FALSE)+ROW()-2))=Switch!$D$55,INDIRECT(\"a\" & (VLOOKUP(Switch!$D$55,$F$2:$G$43,2,FALSE)+ROW()-2)),\"\")","v":{"$error":"#N/A"}},{"$f":"IF(INDIRECT(\"c\" & (VLOOKUP(Switch!$D$56,$F$2:$G$43,2,FALSE)+ROW()-2))=Switch!$D$56,INDIRECT(\"a\" & (VLOOKUP(Switch!$D$56,$F$2:$G$43,2,FALSE)+ROW()-2)),\"\")","v":{"$error":"#N/A"}},{"$f":"IF(INDIRECT(\"c\" & (VLOOKUP(Switch!$D$57,$F$2:$G$43,2,FALSE)+ROW()-2))=Switch!$D$57,INDIRECT(\"a\" & (VLOOKUP(Switch!$D$57,$F$2:$G$43,2,FALSE)+ROW()-2)),\"\")","v":{"$error":"#N/A"}},{"$f":"IF(INDIRECT(\"c\" & (VLOOKUP(Switch!$D$58,$F$2:$G$43,2,FALSE)+ROW()-2))=Switch!$D$58,INDIRECT(\"a\" & (VLOOKUP(Switch!$D$58,$F$2:$G$43,2,FALSE)+ROW()-2)),\"\")","v":{"$error":"#N/A"}},{"$f":"IF(INDIRECT(\"c\" & (VLOOKUP(Switch!$D$59,$F$2:$G$43,2,FALSE)+ROW()-2))=Switch!$D$59,INDIRECT(\"a\" & (VLOOKUP(Switch!$D$59,$F$2:$G$43,2,FALSE)+ROW()-2)),\"\")","v":{"$error":"#N/A"}},{"$f":"IF(INDIRECT(\"c\" & (VLOOKUP(Switch!$D$60,$F$2:$G$43,2,FALSE)+ROW()-2))=Switch!$D$60,INDIRECT(\"a\" & (VLOOKUP(Switch!$D$60,$F$2:$G$43,2,FALSE)+ROW()-2)),\"\")","v":{"$error":"#N/A"}},{"$f":"IF(INDIRECT(\"c\" & (VLOOKUP(Switch!$D$61,$F$2:$G$43,2,FALSE)+ROW()-2))=Switch!$D$61,INDIRECT(\"a\" & (VLOOKUP(Switch!$D$61,$F$2:$G$43,2,FALSE)+ROW()-2)),\"\")","v":{"$error":"#N/A"}},{"$f":"IF(INDIRECT(\"c\" & (VLOOKUP(Switch!$D$62,$F$2:$G$43,2,FALSE)+ROW()-2))=Switch!$D$62,INDIRECT(\"a\" & (VLOOKUP(Switch!$D$62,$F$2:$G$43,2,FALSE)+ROW()-2)),\"\")","v":{"$error":"#N/A"}},{"$f":"IF(INDIRECT(\"c\" & (VLOOKUP(Switch!$D$63,$F$2:$G$43,2,FALSE)+ROW()-2))=Switch!$D$63,INDIRECT(\"a\" & (VLOOKUP(Switch!$D$63,$F$2:$G$43,2,FALSE)+ROW()-2)),\"\")","v":{"$error":"#N/A"}},{"$f":"IF(INDIRECT(\"c\" & (VLOOKUP(Switch!$D$64,$F$2:$G$43,2,FALSE)+ROW()-2))=Switch!$D$64,INDIRECT(\"a\" & (VLOOKUP(Switch!$D$64,$F$2:$G$43,2,FALSE)+ROW()-2)),\"\")","v":{"$error":"#N/A"}},{"$f":"IF(INDIRECT(\"c\" & (VLOOKUP(Switch!$D$65,$F$2:$G$43,2,FALSE)+ROW()-2))=Switch!$D$65,INDIRECT(\"a\" & (VLOOKUP(Switch!$D$65,$F$2:$G$43,2,FALSE)+ROW()-2)),\"\")","v":{"$error":"#N/A"}},{"$f":"IF(INDIRECT(\"c\" & (VLOOKUP(Switch!$D$66,$F$2:$G$43,2,FALSE)+ROW()-2))=Switch!$D$66,INDIRECT(\"a\" & (VLOOKUP(Switch!$D$66,$F$2:$G$43,2,FALSE)+ROW()-2)),\"\")","v":{"$error":"#N/A"}}]
["Sanlam Global Equity R","SORT","Sanlam Collective Investments",{"$f":"ROW()","v":522},null,null,{"$f":"VLOOKUP(F522,$C$2:$D$637,2,FALSE)","v":{"$error":"#N/A"}},{"$f":"IF(INDIRECT(\"c\" & (VLOOKUP(Switch!$D$26,$F$2:$G$43,2,FALSE)+ROW()-2))=Switch!$D$26,INDIRECT(\"a\" & (VLOOKUP(Switch!$D$26,$F$2:$G$43,2,FALSE)+ROW()-2)),\"\")","v":{"$error":"#N/A"}},{"$f":"IF(INDIRECT(\"c\" & (VLOOKUP(Switch!$D$27,$F$2:$G$43,2,FALSE)+ROW()-2))=Switch!$D$27,INDIRECT(\"a\" & (VLOOKUP(Switch!$D$27,$F$2:$G$43,2,FALSE)+ROW()-2)),\"\")","v":{"$error":"#N/A"}},{"$f":"IF(INDIRECT(\"c\" & (VLOOKUP(Switch!$D$28,$F$2:$G$43,2,FALSE)+ROW()-2))=Switch!$D$28,INDIRECT(\"a\" & (VLOOKUP(Switch!$D$28,$F$2:$G$43,2,FALSE)+ROW()-2)),\"\")","v":{"$error":"#N/A"}},{"$f":"IF(INDIRECT(\"c\" & (VLOOKUP(Switch!$D$29,$F$2:$G$43,2,FALSE)+ROW()-2))=Switch!$D$29,INDIRECT(\"a\" & (VLOOKUP(Switch!$D$29,$F$2:$G$43,2,FALSE)+ROW()-2)),\"\")","v":{"$error":"#N/A"}},{"$f":"IF(INDIRECT(\"c\" & (VLOOKUP(Switch!$D$30,$F$2:$G$43,2,FALSE)+ROW()-2))=Switch!$D$30,INDIRECT(\"a\" & (VLOOKUP(Switch!$D$30,$F$2:$G$43,2,FALSE)+ROW()-2)),\"\")","v":{"$error":"#N/A"}},{"$f":"IF(INDIRECT(\"c\" & (VLOOKUP(Switch!$D$31,$F$2:$G$43,2,FALSE)+ROW()-2))=Switch!$D$31,INDIRECT(\"a\" & (VLOOKUP(Switch!$D$31,$F$2:$G$43,2,FALSE)+ROW()-2)),\"\")","v":{"$error":"#N/A"}},{"$f":"IF(INDIRECT(\"c\" & (VLOOKUP(Switch!$D$32,$F$2:$G$43,2,FALSE)+ROW()-2))=Switch!$D$32,INDIRECT(\"a\" & (VLOOKUP(Switch!$D$32,$F$2:$G$43,2,FALSE)+ROW()-2)),\"\")","v":{"$error":"#N/A"}},{"$f":"IF(INDIRECT(\"c\" & (VLOOKUP(Switch!$D$33,$F$2:$G$43,2,FALSE)+ROW()-2))=Switch!$D$33,INDIRECT(\"a\" & (VLOOKUP(Switch!$D$33,$F$2:$G$43,2,FALSE)+ROW()-2)),\"\")","v":{"$error":"#N/A"}},{"$f":"IF(INDIRECT(\"c\" & (VLOOKUP(Switch!$D$34,$F$2:$G$43,2,FALSE)+ROW()-2))=Switch!$D$34,INDIRECT(\"a\" & (VLOOKUP(Switch!$D$34,$F$2:$G$43,2,FALSE)+ROW()-2)),\"\")","v":{"$error":"#N/A"}},{"$f":"IF(INDIRECT(\"c\" & (VLOOKUP(Switch!$D$35,$F$2:$G$43,2,FALSE)+ROW()-2))=Switch!$D$35,INDIRECT(\"a\" & (VLOOKUP(Switch!$D$35,$F$2:$G$43,2,FALSE)+ROW()-2)),\"\")","v":{"$error":"#N/A"}},{"$f":"IF(INDIRECT(\"c\" & (VLOOKUP(Switch!$D$36,$F$2:$G$43,2,FALSE)+ROW()-2))=Switch!$D$36,INDIRECT(\"a\" & (VLOOKUP(Switch!$D$36,$F$2:$G$43,2,FALSE)+ROW()-2)),\"\")","v":{"$error":"#N/A"}},{"$f":"IF(INDIRECT(\"c\" & (VLOOKUP(Switch!$D$37,$F$2:$G$43,2,FALSE)+ROW()-2))=Switch!$D$37,INDIRECT(\"a\" & (VLOOKUP(Switch!$D$37,$F$2:$G$43,2,FALSE)+ROW()-2)),\"\")","v":{"$error":"#N/A"}},{"$f":"IF(INDIRECT(\"c\" & (VLOOKUP(Switch!$D$38,$F$2:$G$43,2,FALSE)+ROW()-2))=Switch!$D$38,INDIRECT(\"a\" & (VLOOKUP(Switch!$D$38,$F$2:$G$43,2,FALSE)+ROW()-2)),\"\")","v":{"$error":"#N/A"}},{"$f":"IF(INDIRECT(\"c\" & (VLOOKUP(Switch!$D$39,$F$2:$G$43,2,FALSE)+ROW()-2))=Switch!$D$39,INDIRECT(\"a\" & (VLOOKUP(Switch!$D$39,$F$2:$G$43,2,FALSE)+ROW()-2)),\"\")","v":{"$error":"#N/A"}},{"$f":"IF(INDIRECT(\"c\" & (VLOOKUP(Switch!$D$40,$F$2:$G$43,2,FALSE)+ROW()-2))=Switch!$D$40,INDIRECT(\"a\" & (VLOOKUP(Switch!$D$40,$F$2:$G$43,2,FALSE)+ROW()-2)),\"\")","v":{"$error":"#N/A"}},{"$f":"IF(INDIRECT(\"c\" & (VLOOKUP(Switch!$D$52,$F$2:$G$43,2,FALSE)+ROW()-2))=Switch!$D$52,INDIRECT(\"a\" & (VLOOKUP(Switch!$D$52,$F$2:$G$43,2,FALSE)+ROW()-2)),\"\")","v":{"$error":"#N/A"}},{"$f":"IF(INDIRECT(\"c\" & (VLOOKUP(Switch!$D$53,$F$2:$G$43,2,FALSE)+ROW()-2))=Switch!$D$53,INDIRECT(\"a\" & (VLOOKUP(Switch!$D$53,$F$2:$G$43,2,FALSE)+ROW()-2)),\"\")","v":{"$error":"#N/A"}},{"$f":"IF(INDIRECT(\"c\" & (VLOOKUP(Switch!$D$54,$F$2:$G$43,2,FALSE)+ROW()-2))=Switch!$D$54,INDIRECT(\"a\" & (VLOOKUP(Switch!$D$54,$F$2:$G$43,2,FALSE)+ROW()-2)),\"\")","v":{"$error":"#N/A"}},{"$f":"IF(INDIRECT(\"c\" & (VLOOKUP(Switch!$D$55,$F$2:$G$43,2,FALSE)+ROW()-2))=Switch!$D$55,INDIRECT(\"a\" & (VLOOKUP(Switch!$D$55,$F$2:$G$43,2,FALSE)+ROW()-2)),\"\")","v":{"$error":"#N/A"}},{"$f":"IF(INDIRECT(\"c\" & (VLOOKUP(Switch!$D$56,$F$2:$G$43,2,FALSE)+ROW()-2))=Switch!$D$56,INDIRECT(\"a\" & (VLOOKUP(Switch!$D$56,$F$2:$G$43,2,FALSE)+ROW()-2)),\"\")","v":{"$error":"#N/A"}},{"$f":"IF(INDIRECT(\"c\" & (VLOOKUP(Switch!$D$57,$F$2:$G$43,2,FALSE)+ROW()-2))=Switch!$D$57,INDIRECT(\"a\" & (VLOOKUP(Switch!$D$57,$F$2:$G$43,2,FALSE)+ROW()-2)),\"\")","v":{"$error":"#N/A"}},{"$f":"IF(INDIRECT(\"c\" & (VLOOKUP(Switch!$D$58,$F$2:$G$43,2,FALSE)+ROW()-2))=Switch!$D$58,INDIRECT(\"a\" & (VLOOKUP(Switch!$D$58,$F$2:$G$43,2,FALSE)+ROW()-2)),\"\")","v":{"$error":"#N/A"}},{"$f":"IF(INDIRECT(\"c\" & (VLOOKUP(Switch!$D$59,$F$2:$G$43,2,FALSE)+ROW()-2))=Switch!$D$59,INDIRECT(\"a\" & (VLOOKUP(Switch!$D$59,$F$2:$G$43,2,FALSE)+ROW()-2)),\"\")","v":{"$error":"#N/A"}},{"$f":"IF(INDIRECT(\"c\" & (VLOOKUP(Switch!$D$60,$F$2:$G$43,2,FALSE)+ROW()-2))=Switch!$D$60,INDIRECT(\"a\" & (VLOOKUP(Switch!$D$60,$F$2:$G$43,2,FALSE)+ROW()-2)),\"\")","v":{"$error":"#N/A"}},{"$f":"IF(INDIRECT(\"c\" & (VLOOKUP(Switch!$D$61,$F$2:$G$43,2,FALSE)+ROW()-2))=Switch!$D$61,INDIRECT(\"a\" & (VLOOKUP(Switch!$D$61,$F$2:$G$43,2,FALSE)+ROW()-2)),\"\")","v":{"$error":"#N/A"}},{"$f":"IF(INDIRECT(\"c\" & (VLOOKUP(Switch!$D$62,$F$2:$G$43,2,FALSE)+ROW()-2))=Switch!$D$62,INDIRECT(\"a\" & (VLOOKUP(Switch!$D$62,$F$2:$G$43,2,FALSE)+ROW()-2)),\"\")","v":{"$error":"#N/A"}},{"$f":"IF(INDIRECT(\"c\" & (VLOOKUP(Switch!$D$63,$F$2:$G$43,2,FALSE)+ROW()-2))=Switch!$D$63,INDIRECT(\"a\" & (VLOOKUP(Switch!$D$63,$F$2:$G$43,2,FALSE)+ROW()-2)),\"\")","v":{"$error":"#N/A"}},{"$f":"IF(INDIRECT(\"c\" & (VLOOKUP(Switch!$D$64,$F$2:$G$43,2,FALSE)+ROW()-2))=Switch!$D$64,INDIRECT(\"a\" & (VLOOKUP(Switch!$D$64,$F$2:$G$43,2,FALSE)+ROW()-2)),\"\")","v":{"$error":"#N/A"}},{"$f":"IF(INDIRECT(\"c\" & (VLOOKUP(Switch!$D$65,$F$2:$G$43,2,FALSE)+ROW()-2))=Switch!$D$65,INDIRECT(\"a\" & (VLOOKUP(Switch!$D$65,$F$2:$G$43,2,FALSE)+ROW()-2)),\"\")","v":{"$error":"#N/A"}},{"$f":"IF(INDIRECT(\"c\" & (VLOOKUP(Switch!$D$66,$F$2:$G$43,2,FALSE)+ROW()-2))=Switch!$D$66,INDIRECT(\"a\" & (VLOOKUP(Switch!$D$66,$F$2:$G$43,2,FALSE)+ROW()-2)),\"\")","v":{"$error":"#N/A"}}]
["Sanlam Diversified Income Fund of Funds B3","SDFB3","Sanlam Collective Investments",{"$f":"ROW()","v":523},null,null,{"$f":"VLOOKUP(F523,$C$2:$D$637,2,FALSE)","v":{"$error":"#N/A"}},{"$f":"IF(INDIRECT(\"c\" & (VLOOKUP(Switch!$D$26,$F$2:$G$43,2,FALSE)+ROW()-2))=Switch!$D$26,INDIRECT(\"a\" & (VLOOKUP(Switch!$D$26,$F$2:$G$43,2,FALSE)+ROW()-2)),\"\")","v":{"$error":"#N/A"}},{"$f":"IF(INDIRECT(\"c\" & (VLOOKUP(Switch!$D$27,$F$2:$G$43,2,FALSE)+ROW()-2))=Switch!$D$27,INDIRECT(\"a\" & (VLOOKUP(Switch!$D$27,$F$2:$G$43,2,FALSE)+ROW()-2)),\"\")","v":{"$error":"#N/A"}},{"$f":"IF(INDIRECT(\"c\" & (VLOOKUP(Switch!$D$28,$F$2:$G$43,2,FALSE)+ROW()-2))=Switch!$D$28,INDIRECT(\"a\" & (VLOOKUP(Switch!$D$28,$F$2:$G$43,2,FALSE)+ROW()-2)),\"\")","v":{"$error":"#N/A"}},{"$f":"IF(INDIRECT(\"c\" & (VLOOKUP(Switch!$D$29,$F$2:$G$43,2,FALSE)+ROW()-2))=Switch!$D$29,INDIRECT(\"a\" & (VLOOKUP(Switch!$D$29,$F$2:$G$43,2,FALSE)+ROW()-2)),\"\")","v":{"$error":"#N/A"}},{"$f":"IF(INDIRECT(\"c\" & (VLOOKUP(Switch!$D$30,$F$2:$G$43,2,FALSE)+ROW()-2))=Switch!$D$30,INDIRECT(\"a\" & (VLOOKUP(Switch!$D$30,$F$2:$G$43,2,FALSE)+ROW()-2)),\"\")","v":{"$error":"#N/A"}},{"$f":"IF(INDIRECT(\"c\" & (VLOOKUP(Switch!$D$31,$F$2:$G$43,2,FALSE)+ROW()-2))=Switch!$D$31,INDIRECT(\"a\" & (VLOOKUP(Switch!$D$31,$F$2:$G$43,2,FALSE)+ROW()-2)),\"\")","v":{"$error":"#N/A"}},{"$f":"IF(INDIRECT(\"c\" & (VLOOKUP(Switch!$D$32,$F$2:$G$43,2,FALSE)+ROW()-2))=Switch!$D$32,INDIRECT(\"a\" & (VLOOKUP(Switch!$D$32,$F$2:$G$43,2,FALSE)+ROW()-2)),\"\")","v":{"$error":"#N/A"}},{"$f":"IF(INDIRECT(\"c\" & (VLOOKUP(Switch!$D$33,$F$2:$G$43,2,FALSE)+ROW()-2))=Switch!$D$33,INDIRECT(\"a\" & (VLOOKUP(Switch!$D$33,$F$2:$G$43,2,FALSE)+ROW()-2)),\"\")","v":{"$error":"#N/A"}},{"$f":"IF(INDIRECT(\"c\" & (VLOOKUP(Switch!$D$34,$F$2:$G$43,2,FALSE)+ROW()-2))=Switch!$D$34,INDIRECT(\"a\" & (VLOOKUP(Switch!$D$34,$F$2:$G$43,2,FALSE)+ROW()-2)),\"\")","v":{"$error":"#N/A"}},{"$f":"IF(INDIRECT(\"c\" & (VLOOKUP(Switch!$D$35,$F$2:$G$43,2,FALSE)+ROW()-2))=Switch!$D$35,INDIRECT(\"a\" & (VLOOKUP(Switch!$D$35,$F$2:$G$43,2,FALSE)+ROW()-2)),\"\")","v":{"$error":"#N/A"}},{"$f":"IF(INDIRECT(\"c\" & (VLOOKUP(Switch!$D$36,$F$2:$G$43,2,FALSE)+ROW()-2))=Switch!$D$36,INDIRECT(\"a\" & (VLOOKUP(Switch!$D$36,$F$2:$G$43,2,FALSE)+ROW()-2)),\"\")","v":{"$error":"#N/A"}},{"$f":"IF(INDIRECT(\"c\" & (VLOOKUP(Switch!$D$37,$F$2:$G$43,2,FALSE)+ROW()-2))=Switch!$D$37,INDIRECT(\"a\" & (VLOOKUP(Switch!$D$37,$F$2:$G$43,2,FALSE)+ROW()-2)),\"\")","v":{"$error":"#N/A"}},{"$f":"IF(INDIRECT(\"c\" & (VLOOKUP(Switch!$D$38,$F$2:$G$43,2,FALSE)+ROW()-2))=Switch!$D$38,INDIRECT(\"a\" & (VLOOKUP(Switch!$D$38,$F$2:$G$43,2,FALSE)+ROW()-2)),\"\")","v":{"$error":"#N/A"}},{"$f":"IF(INDIRECT(\"c\" & (VLOOKUP(Switch!$D$39,$F$2:$G$43,2,FALSE)+ROW()-2))=Switch!$D$39,INDIRECT(\"a\" & (VLOOKUP(Switch!$D$39,$F$2:$G$43,2,FALSE)+ROW()-2)),\"\")","v":{"$error":"#N/A"}},{"$f":"IF(INDIRECT(\"c\" & (VLOOKUP(Switch!$D$40,$F$2:$G$43,2,FALSE)+ROW()-2))=Switch!$D$40,INDIRECT(\"a\" & (VLOOKUP(Switch!$D$40,$F$2:$G$43,2,FALSE)+ROW()-2)),\"\")","v":{"$error":"#N/A"}},{"$f":"IF(INDIRECT(\"c\" & (VLOOKUP(Switch!$D$52,$F$2:$G$43,2,FALSE)+ROW()-2))=Switch!$D$52,INDIRECT(\"a\" & (VLOOKUP(Switch!$D$52,$F$2:$G$43,2,FALSE)+ROW()-2)),\"\")","v":{"$error":"#N/A"}},{"$f":"IF(INDIRECT(\"c\" & (VLOOKUP(Switch!$D$53,$F$2:$G$43,2,FALSE)+ROW()-2))=Switch!$D$53,INDIRECT(\"a\" & (VLOOKUP(Switch!$D$53,$F$2:$G$43,2,FALSE)+ROW()-2)),\"\")","v":{"$error":"#N/A"}},{"$f":"IF(INDIRECT(\"c\" & (VLOOKUP(Switch!$D$54,$F$2:$G$43,2,FALSE)+ROW()-2))=Switch!$D$54,INDIRECT(\"a\" & (VLOOKUP(Switch!$D$54,$F$2:$G$43,2,FALSE)+ROW()-2)),\"\")","v":{"$error":"#N/A"}},{"$f":"IF(INDIRECT(\"c\" & (VLOOKUP(Switch!$D$55,$F$2:$G$43,2,FALSE)+ROW()-2))=Switch!$D$55,INDIRECT(\"a\" & (VLOOKUP(Switch!$D$55,$F$2:$G$43,2,FALSE)+ROW()-2)),\"\")","v":{"$error":"#N/A"}},{"$f":"IF(INDIRECT(\"c\" & (VLOOKUP(Switch!$D$56,$F$2:$G$43,2,FALSE)+ROW()-2))=Switch!$D$56,INDIRECT(\"a\" & (VLOOKUP(Switch!$D$56,$F$2:$G$43,2,FALSE)+ROW()-2)),\"\")","v":{"$error":"#N/A"}},{"$f":"IF(INDIRECT(\"c\" & (VLOOKUP(Switch!$D$57,$F$2:$G$43,2,FALSE)+ROW()-2))=Switch!$D$57,INDIRECT(\"a\" & (VLOOKUP(Switch!$D$57,$F$2:$G$43,2,FALSE)+ROW()-2)),\"\")","v":{"$error":"#N/A"}},{"$f":"IF(INDIRECT(\"c\" & (VLOOKUP(Switch!$D$58,$F$2:$G$43,2,FALSE)+ROW()-2))=Switch!$D$58,INDIRECT(\"a\" & (VLOOKUP(Switch!$D$58,$F$2:$G$43,2,FALSE)+ROW()-2)),\"\")","v":{"$error":"#N/A"}},{"$f":"IF(INDIRECT(\"c\" & (VLOOKUP(Switch!$D$59,$F$2:$G$43,2,FALSE)+ROW()-2))=Switch!$D$59,INDIRECT(\"a\" & (VLOOKUP(Switch!$D$59,$F$2:$G$43,2,FALSE)+ROW()-2)),\"\")","v":{"$error":"#N/A"}},{"$f":"IF(INDIRECT(\"c\" & (VLOOKUP(Switch!$D$60,$F$2:$G$43,2,FALSE)+ROW()-2))=Switch!$D$60,INDIRECT(\"a\" & (VLOOKUP(Switch!$D$60,$F$2:$G$43,2,FALSE)+ROW()-2)),\"\")","v":{"$error":"#N/A"}},{"$f":"IF(INDIRECT(\"c\" & (VLOOKUP(Switch!$D$61,$F$2:$G$43,2,FALSE)+ROW()-2))=Switch!$D$61,INDIRECT(\"a\" & (VLOOKUP(Switch!$D$61,$F$2:$G$43,2,FALSE)+ROW()-2)),\"\")","v":{"$error":"#N/A"}},{"$f":"IF(INDIRECT(\"c\" & (VLOOKUP(Switch!$D$62,$F$2:$G$43,2,FALSE)+ROW()-2))=Switch!$D$62,INDIRECT(\"a\" & (VLOOKUP(Switch!$D$62,$F$2:$G$43,2,FALSE)+ROW()-2)),\"\")","v":{"$error":"#N/A"}},{"$f":"IF(INDIRECT(\"c\" & (VLOOKUP(Switch!$D$63,$F$2:$G$43,2,FALSE)+ROW()-2))=Switch!$D$63,INDIRECT(\"a\" & (VLOOKUP(Switch!$D$63,$F$2:$G$43,2,FALSE)+ROW()-2)),\"\")","v":{"$error":"#N/A"}},{"$f":"IF(INDIRECT(\"c\" & (VLOOKUP(Switch!$D$64,$F$2:$G$43,2,FALSE)+ROW()-2))=Switch!$D$64,INDIRECT(\"a\" & (VLOOKUP(Switch!$D$64,$F$2:$G$43,2,FALSE)+ROW()-2)),\"\")","v":{"$error":"#N/A"}},{"$f":"IF(INDIRECT(\"c\" & (VLOOKUP(Switch!$D$65,$F$2:$G$43,2,FALSE)+ROW()-2))=Switch!$D$65,INDIRECT(\"a\" & (VLOOKUP(Switch!$D$65,$F$2:$G$43,2,FALSE)+ROW()-2)),\"\")","v":{"$error":"#N/A"}},{"$f":"IF(INDIRECT(\"c\" & (VLOOKUP(Switch!$D$66,$F$2:$G$43,2,FALSE)+ROW()-2))=Switch!$D$66,INDIRECT(\"a\" & (VLOOKUP(Switch!$D$66,$F$2:$G$43,2,FALSE)+ROW()-2)),\"\")","v":{"$error":"#N/A"}}]
["Sanlam India Opportunities Feeder Fund","SNFF","Sanlam Collective Investments",{"$f":"ROW()","v":524},null,null,{"$f":"VLOOKUP(F524,$C$2:$D$637,2,FALSE)","v":{"$error":"#N/A"}},{"$f":"IF(INDIRECT(\"c\" & (VLOOKUP(Switch!$D$26,$F$2:$G$43,2,FALSE)+ROW()-2))=Switch!$D$26,INDIRECT(\"a\" & (VLOOKUP(Switch!$D$26,$F$2:$G$43,2,FALSE)+ROW()-2)),\"\")","v":{"$error":"#N/A"}},{"$f":"IF(INDIRECT(\"c\" & (VLOOKUP(Switch!$D$27,$F$2:$G$43,2,FALSE)+ROW()-2))=Switch!$D$27,INDIRECT(\"a\" & (VLOOKUP(Switch!$D$27,$F$2:$G$43,2,FALSE)+ROW()-2)),\"\")","v":{"$error":"#N/A"}},{"$f":"IF(INDIRECT(\"c\" & (VLOOKUP(Switch!$D$28,$F$2:$G$43,2,FALSE)+ROW()-2))=Switch!$D$28,INDIRECT(\"a\" & (VLOOKUP(Switch!$D$28,$F$2:$G$43,2,FALSE)+ROW()-2)),\"\")","v":{"$error":"#N/A"}},{"$f":"IF(INDIRECT(\"c\" & (VLOOKUP(Switch!$D$29,$F$2:$G$43,2,FALSE)+ROW()-2))=Switch!$D$29,INDIRECT(\"a\" & (VLOOKUP(Switch!$D$29,$F$2:$G$43,2,FALSE)+ROW()-2)),\"\")","v":{"$error":"#N/A"}},{"$f":"IF(INDIRECT(\"c\" & (VLOOKUP(Switch!$D$30,$F$2:$G$43,2,FALSE)+ROW()-2))=Switch!$D$30,INDIRECT(\"a\" & (VLOOKUP(Switch!$D$30,$F$2:$G$43,2,FALSE)+ROW()-2)),\"\")","v":{"$error":"#N/A"}},{"$f":"IF(INDIRECT(\"c\" & (VLOOKUP(Switch!$D$31,$F$2:$G$43,2,FALSE)+ROW()-2))=Switch!$D$31,INDIRECT(\"a\" & (VLOOKUP(Switch!$D$31,$F$2:$G$43,2,FALSE)+ROW()-2)),\"\")","v":{"$error":"#N/A"}},{"$f":"IF(INDIRECT(\"c\" & (VLOOKUP(Switch!$D$32,$F$2:$G$43,2,FALSE)+ROW()-2))=Switch!$D$32,INDIRECT(\"a\" & (VLOOKUP(Switch!$D$32,$F$2:$G$43,2,FALSE)+ROW()-2)),\"\")","v":{"$error":"#N/A"}},{"$f":"IF(INDIRECT(\"c\" & (VLOOKUP(Switch!$D$33,$F$2:$G$43,2,FALSE)+ROW()-2))=Switch!$D$33,INDIRECT(\"a\" & (VLOOKUP(Switch!$D$33,$F$2:$G$43,2,FALSE)+ROW()-2)),\"\")","v":{"$error":"#N/A"}},{"$f":"IF(INDIRECT(\"c\" & (VLOOKUP(Switch!$D$34,$F$2:$G$43,2,FALSE)+ROW()-2))=Switch!$D$34,INDIRECT(\"a\" & (VLOOKUP(Switch!$D$34,$F$2:$G$43,2,FALSE)+ROW()-2)),\"\")","v":{"$error":"#N/A"}},{"$f":"IF(INDIRECT(\"c\" & (VLOOKUP(Switch!$D$35,$F$2:$G$43,2,FALSE)+ROW()-2))=Switch!$D$35,INDIRECT(\"a\" & (VLOOKUP(Switch!$D$35,$F$2:$G$43,2,FALSE)+ROW()-2)),\"\")","v":{"$error":"#N/A"}},{"$f":"IF(INDIRECT(\"c\" & (VLOOKUP(Switch!$D$36,$F$2:$G$43,2,FALSE)+ROW()-2))=Switch!$D$36,INDIRECT(\"a\" & (VLOOKUP(Switch!$D$36,$F$2:$G$43,2,FALSE)+ROW()-2)),\"\")","v":{"$error":"#N/A"}},{"$f":"IF(INDIRECT(\"c\" & (VLOOKUP(Switch!$D$37,$F$2:$G$43,2,FALSE)+ROW()-2))=Switch!$D$37,INDIRECT(\"a\" & (VLOOKUP(Switch!$D$37,$F$2:$G$43,2,FALSE)+ROW()-2)),\"\")","v":{"$error":"#N/A"}},{"$f":"IF(INDIRECT(\"c\" & (VLOOKUP(Switch!$D$38,$F$2:$G$43,2,FALSE)+ROW()-2))=Switch!$D$38,INDIRECT(\"a\" & (VLOOKUP(Switch!$D$38,$F$2:$G$43,2,FALSE)+ROW()-2)),\"\")","v":{"$error":"#N/A"}},{"$f":"IF(INDIRECT(\"c\" & (VLOOKUP(Switch!$D$39,$F$2:$G$43,2,FALSE)+ROW()-2))=Switch!$D$39,INDIRECT(\"a\" & (VLOOKUP(Switch!$D$39,$F$2:$G$43,2,FALSE)+ROW()-2)),\"\")","v":{"$error":"#N/A"}},{"$f":"IF(INDIRECT(\"c\" & (VLOOKUP(Switch!$D$40,$F$2:$G$43,2,FALSE)+ROW()-2))=Switch!$D$40,INDIRECT(\"a\" & (VLOOKUP(Switch!$D$40,$F$2:$G$43,2,FALSE)+ROW()-2)),\"\")","v":{"$error":"#N/A"}},{"$f":"IF(INDIRECT(\"c\" & (VLOOKUP(Switch!$D$52,$F$2:$G$43,2,FALSE)+ROW()-2))=Switch!$D$52,INDIRECT(\"a\" & (VLOOKUP(Switch!$D$52,$F$2:$G$43,2,FALSE)+ROW()-2)),\"\")","v":{"$error":"#N/A"}},{"$f":"IF(INDIRECT(\"c\" & (VLOOKUP(Switch!$D$53,$F$2:$G$43,2,FALSE)+ROW()-2))=Switch!$D$53,INDIRECT(\"a\" & (VLOOKUP(Switch!$D$53,$F$2:$G$43,2,FALSE)+ROW()-2)),\"\")","v":{"$error":"#N/A"}},{"$f":"IF(INDIRECT(\"c\" & (VLOOKUP(Switch!$D$54,$F$2:$G$43,2,FALSE)+ROW()-2))=Switch!$D$54,INDIRECT(\"a\" & (VLOOKUP(Switch!$D$54,$F$2:$G$43,2,FALSE)+ROW()-2)),\"\")","v":{"$error":"#N/A"}},{"$f":"IF(INDIRECT(\"c\" & (VLOOKUP(Switch!$D$55,$F$2:$G$43,2,FALSE)+ROW()-2))=Switch!$D$55,INDIRECT(\"a\" & (VLOOKUP(Switch!$D$55,$F$2:$G$43,2,FALSE)+ROW()-2)),\"\")","v":{"$error":"#N/A"}},{"$f":"IF(INDIRECT(\"c\" & (VLOOKUP(Switch!$D$56,$F$2:$G$43,2,FALSE)+ROW()-2))=Switch!$D$56,INDIRECT(\"a\" & (VLOOKUP(Switch!$D$56,$F$2:$G$43,2,FALSE)+ROW()-2)),\"\")","v":{"$error":"#N/A"}},{"$f":"IF(INDIRECT(\"c\" & (VLOOKUP(Switch!$D$57,$F$2:$G$43,2,FALSE)+ROW()-2))=Switch!$D$57,INDIRECT(\"a\" & (VLOOKUP(Switch!$D$57,$F$2:$G$43,2,FALSE)+ROW()-2)),\"\")","v":{"$error":"#N/A"}},{"$f":"IF(INDIRECT(\"c\" & (VLOOKUP(Switch!$D$58,$F$2:$G$43,2,FALSE)+ROW()-2))=Switch!$D$58,INDIRECT(\"a\" & (VLOOKUP(Switch!$D$58,$F$2:$G$43,2,FALSE)+ROW()-2)),\"\")","v":{"$error":"#N/A"}},{"$f":"IF(INDIRECT(\"c\" & (VLOOKUP(Switch!$D$59,$F$2:$G$43,2,FALSE)+ROW()-2))=Switch!$D$59,INDIRECT(\"a\" & (VLOOKUP(Switch!$D$59,$F$2:$G$43,2,FALSE)+ROW()-2)),\"\")","v":{"$error":"#N/A"}},{"$f":"IF(INDIRECT(\"c\" & (VLOOKUP(Switch!$D$60,$F$2:$G$43,2,FALSE)+ROW()-2))=Switch!$D$60,INDIRECT(\"a\" & (VLOOKUP(Switch!$D$60,$F$2:$G$43,2,FALSE)+ROW()-2)),\"\")","v":{"$error":"#N/A"}},{"$f":"IF(INDIRECT(\"c\" & (VLOOKUP(Switch!$D$61,$F$2:$G$43,2,FALSE)+ROW()-2))=Switch!$D$61,INDIRECT(\"a\" & (VLOOKUP(Switch!$D$61,$F$2:$G$43,2,FALSE)+ROW()-2)),\"\")","v":{"$error":"#N/A"}},{"$f":"IF(INDIRECT(\"c\" & (VLOOKUP(Switch!$D$62,$F$2:$G$43,2,FALSE)+ROW()-2))=Switch!$D$62,INDIRECT(\"a\" & (VLOOKUP(Switch!$D$62,$F$2:$G$43,2,FALSE)+ROW()-2)),\"\")","v":{"$error":"#N/A"}},{"$f":"IF(INDIRECT(\"c\" & (VLOOKUP(Switch!$D$63,$F$2:$G$43,2,FALSE)+ROW()-2))=Switch!$D$63,INDIRECT(\"a\" & (VLOOKUP(Switch!$D$63,$F$2:$G$43,2,FALSE)+ROW()-2)),\"\")","v":{"$error":"#N/A"}},{"$f":"IF(INDIRECT(\"c\" & (VLOOKUP(Switch!$D$64,$F$2:$G$43,2,FALSE)+ROW()-2))=Switch!$D$64,INDIRECT(\"a\" & (VLOOKUP(Switch!$D$64,$F$2:$G$43,2,FALSE)+ROW()-2)),\"\")","v":{"$error":"#N/A"}},{"$f":"IF(INDIRECT(\"c\" & (VLOOKUP(Switch!$D$65,$F$2:$G$43,2,FALSE)+ROW()-2))=Switch!$D$65,INDIRECT(\"a\" & (VLOOKUP(Switch!$D$65,$F$2:$G$43,2,FALSE)+ROW()-2)),\"\")","v":{"$error":"#N/A"}},{"$f":"IF(INDIRECT(\"c\" & (VLOOKUP(Switch!$D$66,$F$2:$G$43,2,FALSE)+ROW()-2))=Switch!$D$66,INDIRECT(\"a\" & (VLOOKUP(Switch!$D$66,$F$2:$G$43,2,FALSE)+ROW()-2)),\"\")","v":{"$error":"#N/A"}}]
["Sanlam Sesfikile SCI Property Fund B2","SSPB2","Sanlam Collective Investments",{"$f":"ROW()","v":525},null,null,{"$f":"VLOOKUP(F525,$C$2:$D$637,2,FALSE)","v":{"$error":"#N/A"}},{"$f":"IF(INDIRECT(\"c\" & (VLOOKUP(Switch!$D$26,$F$2:$G$43,2,FALSE)+ROW()-2))=Switch!$D$26,INDIRECT(\"a\" & (VLOOKUP(Switch!$D$26,$F$2:$G$43,2,FALSE)+ROW()-2)),\"\")","v":{"$error":"#N/A"}},{"$f":"IF(INDIRECT(\"c\" & (VLOOKUP(Switch!$D$27,$F$2:$G$43,2,FALSE)+ROW()-2))=Switch!$D$27,INDIRECT(\"a\" & (VLOOKUP(Switch!$D$27,$F$2:$G$43,2,FALSE)+ROW()-2)),\"\")","v":{"$error":"#N/A"}},{"$f":"IF(INDIRECT(\"c\" & (VLOOKUP(Switch!$D$28,$F$2:$G$43,2,FALSE)+ROW()-2))=Switch!$D$28,INDIRECT(\"a\" & (VLOOKUP(Switch!$D$28,$F$2:$G$43,2,FALSE)+ROW()-2)),\"\")","v":{"$error":"#N/A"}},{"$f":"IF(INDIRECT(\"c\" & (VLOOKUP(Switch!$D$29,$F$2:$G$43,2,FALSE)+ROW()-2))=Switch!$D$29,INDIRECT(\"a\" & (VLOOKUP(Switch!$D$29,$F$2:$G$43,2,FALSE)+ROW()-2)),\"\")","v":{"$error":"#N/A"}},{"$f":"IF(INDIRECT(\"c\" & (VLOOKUP(Switch!$D$30,$F$2:$G$43,2,FALSE)+ROW()-2))=Switch!$D$30,INDIRECT(\"a\" & (VLOOKUP(Switch!$D$30,$F$2:$G$43,2,FALSE)+ROW()-2)),\"\")","v":{"$error":"#N/A"}},{"$f":"IF(INDIRECT(\"c\" & (VLOOKUP(Switch!$D$31,$F$2:$G$43,2,FALSE)+ROW()-2))=Switch!$D$31,INDIRECT(\"a\" & (VLOOKUP(Switch!$D$31,$F$2:$G$43,2,FALSE)+ROW()-2)),\"\")","v":{"$error":"#N/A"}},{"$f":"IF(INDIRECT(\"c\" & (VLOOKUP(Switch!$D$32,$F$2:$G$43,2,FALSE)+ROW()-2))=Switch!$D$32,INDIRECT(\"a\" & (VLOOKUP(Switch!$D$32,$F$2:$G$43,2,FALSE)+ROW()-2)),\"\")","v":{"$error":"#N/A"}},{"$f":"IF(INDIRECT(\"c\" & (VLOOKUP(Switch!$D$33,$F$2:$G$43,2,FALSE)+ROW()-2))=Switch!$D$33,INDIRECT(\"a\" & (VLOOKUP(Switch!$D$33,$F$2:$G$43,2,FALSE)+ROW()-2)),\"\")","v":{"$error":"#N/A"}},{"$f":"IF(INDIRECT(\"c\" & (VLOOKUP(Switch!$D$34,$F$2:$G$43,2,FALSE)+ROW()-2))=Switch!$D$34,INDIRECT(\"a\" & (VLOOKUP(Switch!$D$34,$F$2:$G$43,2,FALSE)+ROW()-2)),\"\")","v":{"$error":"#N/A"}},{"$f":"IF(INDIRECT(\"c\" & (VLOOKUP(Switch!$D$35,$F$2:$G$43,2,FALSE)+ROW()-2))=Switch!$D$35,INDIRECT(\"a\" & (VLOOKUP(Switch!$D$35,$F$2:$G$43,2,FALSE)+ROW()-2)),\"\")","v":{"$error":"#N/A"}},{"$f":"IF(INDIRECT(\"c\" & (VLOOKUP(Switch!$D$36,$F$2:$G$43,2,FALSE)+ROW()-2))=Switch!$D$36,INDIRECT(\"a\" & (VLOOKUP(Switch!$D$36,$F$2:$G$43,2,FALSE)+ROW()-2)),\"\")","v":{"$error":"#N/A"}},{"$f":"IF(INDIRECT(\"c\" & (VLOOKUP(Switch!$D$37,$F$2:$G$43,2,FALSE)+ROW()-2))=Switch!$D$37,INDIRECT(\"a\" & (VLOOKUP(Switch!$D$37,$F$2:$G$43,2,FALSE)+ROW()-2)),\"\")","v":{"$error":"#N/A"}},{"$f":"IF(INDIRECT(\"c\" & (VLOOKUP(Switch!$D$38,$F$2:$G$43,2,FALSE)+ROW()-2))=Switch!$D$38,INDIRECT(\"a\" & (VLOOKUP(Switch!$D$38,$F$2:$G$43,2,FALSE)+ROW()-2)),\"\")","v":{"$error":"#N/A"}},{"$f":"IF(INDIRECT(\"c\" & (VLOOKUP(Switch!$D$39,$F$2:$G$43,2,FALSE)+ROW()-2))=Switch!$D$39,INDIRECT(\"a\" & (VLOOKUP(Switch!$D$39,$F$2:$G$43,2,FALSE)+ROW()-2)),\"\")","v":{"$error":"#N/A"}},{"$f":"IF(INDIRECT(\"c\" & (VLOOKUP(Switch!$D$40,$F$2:$G$43,2,FALSE)+ROW()-2))=Switch!$D$40,INDIRECT(\"a\" & (VLOOKUP(Switch!$D$40,$F$2:$G$43,2,FALSE)+ROW()-2)),\"\")","v":{"$error":"#N/A"}},{"$f":"IF(INDIRECT(\"c\" & (VLOOKUP(Switch!$D$52,$F$2:$G$43,2,FALSE)+ROW()-2))=Switch!$D$52,INDIRECT(\"a\" & (VLOOKUP(Switch!$D$52,$F$2:$G$43,2,FALSE)+ROW()-2)),\"\")","v":{"$error":"#N/A"}},{"$f":"IF(INDIRECT(\"c\" & (VLOOKUP(Switch!$D$53,$F$2:$G$43,2,FALSE)+ROW()-2))=Switch!$D$53,INDIRECT(\"a\" & (VLOOKUP(Switch!$D$53,$F$2:$G$43,2,FALSE)+ROW()-2)),\"\")","v":{"$error":"#N/A"}},{"$f":"IF(INDIRECT(\"c\" & (VLOOKUP(Switch!$D$54,$F$2:$G$43,2,FALSE)+ROW()-2))=Switch!$D$54,INDIRECT(\"a\" & (VLOOKUP(Switch!$D$54,$F$2:$G$43,2,FALSE)+ROW()-2)),\"\")","v":{"$error":"#N/A"}},{"$f":"IF(INDIRECT(\"c\" & (VLOOKUP(Switch!$D$55,$F$2:$G$43,2,FALSE)+ROW()-2))=Switch!$D$55,INDIRECT(\"a\" & (VLOOKUP(Switch!$D$55,$F$2:$G$43,2,FALSE)+ROW()-2)),\"\")","v":{"$error":"#N/A"}},{"$f":"IF(INDIRECT(\"c\" & (VLOOKUP(Switch!$D$56,$F$2:$G$43,2,FALSE)+ROW()-2))=Switch!$D$56,INDIRECT(\"a\" & (VLOOKUP(Switch!$D$56,$F$2:$G$43,2,FALSE)+ROW()-2)),\"\")","v":{"$error":"#N/A"}},{"$f":"IF(INDIRECT(\"c\" & (VLOOKUP(Switch!$D$57,$F$2:$G$43,2,FALSE)+ROW()-2))=Switch!$D$57,INDIRECT(\"a\" & (VLOOKUP(Switch!$D$57,$F$2:$G$43,2,FALSE)+ROW()-2)),\"\")","v":{"$error":"#N/A"}},{"$f":"IF(INDIRECT(\"c\" & (VLOOKUP(Switch!$D$58,$F$2:$G$43,2,FALSE)+ROW()-2))=Switch!$D$58,INDIRECT(\"a\" & (VLOOKUP(Switch!$D$58,$F$2:$G$43,2,FALSE)+ROW()-2)),\"\")","v":{"$error":"#N/A"}},{"$f":"IF(INDIRECT(\"c\" & (VLOOKUP(Switch!$D$59,$F$2:$G$43,2,FALSE)+ROW()-2))=Switch!$D$59,INDIRECT(\"a\" & (VLOOKUP(Switch!$D$59,$F$2:$G$43,2,FALSE)+ROW()-2)),\"\")","v":{"$error":"#N/A"}},{"$f":"IF(INDIRECT(\"c\" & (VLOOKUP(Switch!$D$60,$F$2:$G$43,2,FALSE)+ROW()-2))=Switch!$D$60,INDIRECT(\"a\" & (VLOOKUP(Switch!$D$60,$F$2:$G$43,2,FALSE)+ROW()-2)),\"\")","v":{"$error":"#N/A"}},{"$f":"IF(INDIRECT(\"c\" & (VLOOKUP(Switch!$D$61,$F$2:$G$43,2,FALSE)+ROW()-2))=Switch!$D$61,INDIRECT(\"a\" & (VLOOKUP(Switch!$D$61,$F$2:$G$43,2,FALSE)+ROW()-2)),\"\")","v":{"$error":"#N/A"}},{"$f":"IF(INDIRECT(\"c\" & (VLOOKUP(Switch!$D$62,$F$2:$G$43,2,FALSE)+ROW()-2))=Switch!$D$62,INDIRECT(\"a\" & (VLOOKUP(Switch!$D$62,$F$2:$G$43,2,FALSE)+ROW()-2)),\"\")","v":{"$error":"#N/A"}},{"$f":"IF(INDIRECT(\"c\" & (VLOOKUP(Switch!$D$63,$F$2:$G$43,2,FALSE)+ROW()-2))=Switch!$D$63,INDIRECT(\"a\" & (VLOOKUP(Switch!$D$63,$F$2:$G$43,2,FALSE)+ROW()-2)),\"\")","v":{"$error":"#N/A"}},{"$f":"IF(INDIRECT(\"c\" & (VLOOKUP(Switch!$D$64,$F$2:$G$43,2,FALSE)+ROW()-2))=Switch!$D$64,INDIRECT(\"a\" & (VLOOKUP(Switch!$D$64,$F$2:$G$43,2,FALSE)+ROW()-2)),\"\")","v":{"$error":"#N/A"}},{"$f":"IF(INDIRECT(\"c\" & (VLOOKUP(Switch!$D$65,$F$2:$G$43,2,FALSE)+ROW()-2))=Switch!$D$65,INDIRECT(\"a\" & (VLOOKUP(Switch!$D$65,$F$2:$G$43,2,FALSE)+ROW()-2)),\"\")","v":{"$error":"#N/A"}},{"$f":"IF(INDIRECT(\"c\" & (VLOOKUP(Switch!$D$66,$F$2:$G$43,2,FALSE)+ROW()-2))=Switch!$D$66,INDIRECT(\"a\" & (VLOOKUP(Switch!$D$66,$F$2:$G$43,2,FALSE)+ROW()-2)),\"\")","v":{"$error":"#N/A"}}]
["Sentio SCI Hikma Shariah Balanced B1","SHB1","Sanlam Collective Investments",{"$f":"ROW()","v":526},null,null,{"$f":"VLOOKUP(F526,$C$2:$D$637,2,FALSE)","v":{"$error":"#N/A"}},{"$f":"IF(INDIRECT(\"c\" & (VLOOKUP(Switch!$D$26,$F$2:$G$43,2,FALSE)+ROW()-2))=Switch!$D$26,INDIRECT(\"a\" & (VLOOKUP(Switch!$D$26,$F$2:$G$43,2,FALSE)+ROW()-2)),\"\")","v":{"$error":"#N/A"}},{"$f":"IF(INDIRECT(\"c\" & (VLOOKUP(Switch!$D$27,$F$2:$G$43,2,FALSE)+ROW()-2))=Switch!$D$27,INDIRECT(\"a\" & (VLOOKUP(Switch!$D$27,$F$2:$G$43,2,FALSE)+ROW()-2)),\"\")","v":{"$error":"#N/A"}},{"$f":"IF(INDIRECT(\"c\" & (VLOOKUP(Switch!$D$28,$F$2:$G$43,2,FALSE)+ROW()-2))=Switch!$D$28,INDIRECT(\"a\" & (VLOOKUP(Switch!$D$28,$F$2:$G$43,2,FALSE)+ROW()-2)),\"\")","v":{"$error":"#N/A"}},{"$f":"IF(INDIRECT(\"c\" & (VLOOKUP(Switch!$D$29,$F$2:$G$43,2,FALSE)+ROW()-2))=Switch!$D$29,INDIRECT(\"a\" & (VLOOKUP(Switch!$D$29,$F$2:$G$43,2,FALSE)+ROW()-2)),\"\")","v":{"$error":"#N/A"}},{"$f":"IF(INDIRECT(\"c\" & (VLOOKUP(Switch!$D$30,$F$2:$G$43,2,FALSE)+ROW()-2))=Switch!$D$30,INDIRECT(\"a\" & (VLOOKUP(Switch!$D$30,$F$2:$G$43,2,FALSE)+ROW()-2)),\"\")","v":{"$error":"#N/A"}},{"$f":"IF(INDIRECT(\"c\" & (VLOOKUP(Switch!$D$31,$F$2:$G$43,2,FALSE)+ROW()-2))=Switch!$D$31,INDIRECT(\"a\" & (VLOOKUP(Switch!$D$31,$F$2:$G$43,2,FALSE)+ROW()-2)),\"\")","v":{"$error":"#N/A"}},{"$f":"IF(INDIRECT(\"c\" & (VLOOKUP(Switch!$D$32,$F$2:$G$43,2,FALSE)+ROW()-2))=Switch!$D$32,INDIRECT(\"a\" & (VLOOKUP(Switch!$D$32,$F$2:$G$43,2,FALSE)+ROW()-2)),\"\")","v":{"$error":"#N/A"}},{"$f":"IF(INDIRECT(\"c\" & (VLOOKUP(Switch!$D$33,$F$2:$G$43,2,FALSE)+ROW()-2))=Switch!$D$33,INDIRECT(\"a\" & (VLOOKUP(Switch!$D$33,$F$2:$G$43,2,FALSE)+ROW()-2)),\"\")","v":{"$error":"#N/A"}},{"$f":"IF(INDIRECT(\"c\" & (VLOOKUP(Switch!$D$34,$F$2:$G$43,2,FALSE)+ROW()-2))=Switch!$D$34,INDIRECT(\"a\" & (VLOOKUP(Switch!$D$34,$F$2:$G$43,2,FALSE)+ROW()-2)),\"\")","v":{"$error":"#N/A"}},{"$f":"IF(INDIRECT(\"c\" & (VLOOKUP(Switch!$D$35,$F$2:$G$43,2,FALSE)+ROW()-2))=Switch!$D$35,INDIRECT(\"a\" & (VLOOKUP(Switch!$D$35,$F$2:$G$43,2,FALSE)+ROW()-2)),\"\")","v":{"$error":"#N/A"}},{"$f":"IF(INDIRECT(\"c\" & (VLOOKUP(Switch!$D$36,$F$2:$G$43,2,FALSE)+ROW()-2))=Switch!$D$36,INDIRECT(\"a\" & (VLOOKUP(Switch!$D$36,$F$2:$G$43,2,FALSE)+ROW()-2)),\"\")","v":{"$error":"#N/A"}},{"$f":"IF(INDIRECT(\"c\" & (VLOOKUP(Switch!$D$37,$F$2:$G$43,2,FALSE)+ROW()-2))=Switch!$D$37,INDIRECT(\"a\" & (VLOOKUP(Switch!$D$37,$F$2:$G$43,2,FALSE)+ROW()-2)),\"\")","v":{"$error":"#N/A"}},{"$f":"IF(INDIRECT(\"c\" & (VLOOKUP(Switch!$D$38,$F$2:$G$43,2,FALSE)+ROW()-2))=Switch!$D$38,INDIRECT(\"a\" & (VLOOKUP(Switch!$D$38,$F$2:$G$43,2,FALSE)+ROW()-2)),\"\")","v":{"$error":"#N/A"}},{"$f":"IF(INDIRECT(\"c\" & (VLOOKUP(Switch!$D$39,$F$2:$G$43,2,FALSE)+ROW()-2))=Switch!$D$39,INDIRECT(\"a\" & (VLOOKUP(Switch!$D$39,$F$2:$G$43,2,FALSE)+ROW()-2)),\"\")","v":{"$error":"#N/A"}},{"$f":"IF(INDIRECT(\"c\" & (VLOOKUP(Switch!$D$40,$F$2:$G$43,2,FALSE)+ROW()-2))=Switch!$D$40,INDIRECT(\"a\" & (VLOOKUP(Switch!$D$40,$F$2:$G$43,2,FALSE)+ROW()-2)),\"\")","v":{"$error":"#N/A"}},{"$f":"IF(INDIRECT(\"c\" & (VLOOKUP(Switch!$D$52,$F$2:$G$43,2,FALSE)+ROW()-2))=Switch!$D$52,INDIRECT(\"a\" & (VLOOKUP(Switch!$D$52,$F$2:$G$43,2,FALSE)+ROW()-2)),\"\")","v":{"$error":"#N/A"}},{"$f":"IF(INDIRECT(\"c\" & (VLOOKUP(Switch!$D$53,$F$2:$G$43,2,FALSE)+ROW()-2))=Switch!$D$53,INDIRECT(\"a\" & (VLOOKUP(Switch!$D$53,$F$2:$G$43,2,FALSE)+ROW()-2)),\"\")","v":{"$error":"#N/A"}},{"$f":"IF(INDIRECT(\"c\" & (VLOOKUP(Switch!$D$54,$F$2:$G$43,2,FALSE)+ROW()-2))=Switch!$D$54,INDIRECT(\"a\" & (VLOOKUP(Switch!$D$54,$F$2:$G$43,2,FALSE)+ROW()-2)),\"\")","v":{"$error":"#N/A"}},{"$f":"IF(INDIRECT(\"c\" & (VLOOKUP(Switch!$D$55,$F$2:$G$43,2,FALSE)+ROW()-2))=Switch!$D$55,INDIRECT(\"a\" & (VLOOKUP(Switch!$D$55,$F$2:$G$43,2,FALSE)+ROW()-2)),\"\")","v":{"$error":"#N/A"}},{"$f":"IF(INDIRECT(\"c\" & (VLOOKUP(Switch!$D$56,$F$2:$G$43,2,FALSE)+ROW()-2))=Switch!$D$56,INDIRECT(\"a\" & (VLOOKUP(Switch!$D$56,$F$2:$G$43,2,FALSE)+ROW()-2)),\"\")","v":{"$error":"#N/A"}},{"$f":"IF(INDIRECT(\"c\" & (VLOOKUP(Switch!$D$57,$F$2:$G$43,2,FALSE)+ROW()-2))=Switch!$D$57,INDIRECT(\"a\" & (VLOOKUP(Switch!$D$57,$F$2:$G$43,2,FALSE)+ROW()-2)),\"\")","v":{"$error":"#N/A"}},{"$f":"IF(INDIRECT(\"c\" & (VLOOKUP(Switch!$D$58,$F$2:$G$43,2,FALSE)+ROW()-2))=Switch!$D$58,INDIRECT(\"a\" & (VLOOKUP(Switch!$D$58,$F$2:$G$43,2,FALSE)+ROW()-2)),\"\")","v":{"$error":"#N/A"}},{"$f":"IF(INDIRECT(\"c\" & (VLOOKUP(Switch!$D$59,$F$2:$G$43,2,FALSE)+ROW()-2))=Switch!$D$59,INDIRECT(\"a\" & (VLOOKUP(Switch!$D$59,$F$2:$G$43,2,FALSE)+ROW()-2)),\"\")","v":{"$error":"#N/A"}},{"$f":"IF(INDIRECT(\"c\" & (VLOOKUP(Switch!$D$60,$F$2:$G$43,2,FALSE)+ROW()-2))=Switch!$D$60,INDIRECT(\"a\" & (VLOOKUP(Switch!$D$60,$F$2:$G$43,2,FALSE)+ROW()-2)),\"\")","v":{"$error":"#N/A"}},{"$f":"IF(INDIRECT(\"c\" & (VLOOKUP(Switch!$D$61,$F$2:$G$43,2,FALSE)+ROW()-2))=Switch!$D$61,INDIRECT(\"a\" & (VLOOKUP(Switch!$D$61,$F$2:$G$43,2,FALSE)+ROW()-2)),\"\")","v":{"$error":"#N/A"}},{"$f":"IF(INDIRECT(\"c\" & (VLOOKUP(Switch!$D$62,$F$2:$G$43,2,FALSE)+ROW()-2))=Switch!$D$62,INDIRECT(\"a\" & (VLOOKUP(Switch!$D$62,$F$2:$G$43,2,FALSE)+ROW()-2)),\"\")","v":{"$error":"#N/A"}},{"$f":"IF(INDIRECT(\"c\" & (VLOOKUP(Switch!$D$63,$F$2:$G$43,2,FALSE)+ROW()-2))=Switch!$D$63,INDIRECT(\"a\" & (VLOOKUP(Switch!$D$63,$F$2:$G$43,2,FALSE)+ROW()-2)),\"\")","v":{"$error":"#N/A"}},{"$f":"IF(INDIRECT(\"c\" & (VLOOKUP(Switch!$D$64,$F$2:$G$43,2,FALSE)+ROW()-2))=Switch!$D$64,INDIRECT(\"a\" & (VLOOKUP(Switch!$D$64,$F$2:$G$43,2,FALSE)+ROW()-2)),\"\")","v":{"$error":"#N/A"}},{"$f":"IF(INDIRECT(\"c\" & (VLOOKUP(Switch!$D$65,$F$2:$G$43,2,FALSE)+ROW()-2))=Switch!$D$65,INDIRECT(\"a\" & (VLOOKUP(Switch!$D$65,$F$2:$G$43,2,FALSE)+ROW()-2)),\"\")","v":{"$error":"#N/A"}},{"$f":"IF(INDIRECT(\"c\" & (VLOOKUP(Switch!$D$66,$F$2:$G$43,2,FALSE)+ROW()-2))=Switch!$D$66,INDIRECT(\"a\" & (VLOOKUP(Switch!$D$66,$F$2:$G$43,2,FALSE)+ROW()-2)),\"\")","v":{"$error":"#N/A"}}]
["Sequoia BCI Managed Growth Fund of Funds A","BCIGFA","Sanlam Collective Investments",{"$f":"ROW()","v":527},null,null,{"$f":"VLOOKUP(F527,$C$2:$D$637,2,FALSE)","v":{"$error":"#N/A"}},{"$f":"IF(INDIRECT(\"c\" & (VLOOKUP(Switch!$D$26,$F$2:$G$43,2,FALSE)+ROW()-2))=Switch!$D$26,INDIRECT(\"a\" & (VLOOKUP(Switch!$D$26,$F$2:$G$43,2,FALSE)+ROW()-2)),\"\")","v":{"$error":"#N/A"}},{"$f":"IF(INDIRECT(\"c\" & (VLOOKUP(Switch!$D$27,$F$2:$G$43,2,FALSE)+ROW()-2))=Switch!$D$27,INDIRECT(\"a\" & (VLOOKUP(Switch!$D$27,$F$2:$G$43,2,FALSE)+ROW()-2)),\"\")","v":{"$error":"#N/A"}},{"$f":"IF(INDIRECT(\"c\" & (VLOOKUP(Switch!$D$28,$F$2:$G$43,2,FALSE)+ROW()-2))=Switch!$D$28,INDIRECT(\"a\" & (VLOOKUP(Switch!$D$28,$F$2:$G$43,2,FALSE)+ROW()-2)),\"\")","v":{"$error":"#N/A"}},{"$f":"IF(INDIRECT(\"c\" & (VLOOKUP(Switch!$D$29,$F$2:$G$43,2,FALSE)+ROW()-2))=Switch!$D$29,INDIRECT(\"a\" & (VLOOKUP(Switch!$D$29,$F$2:$G$43,2,FALSE)+ROW()-2)),\"\")","v":{"$error":"#N/A"}},{"$f":"IF(INDIRECT(\"c\" & (VLOOKUP(Switch!$D$30,$F$2:$G$43,2,FALSE)+ROW()-2))=Switch!$D$30,INDIRECT(\"a\" & (VLOOKUP(Switch!$D$30,$F$2:$G$43,2,FALSE)+ROW()-2)),\"\")","v":{"$error":"#N/A"}},{"$f":"IF(INDIRECT(\"c\" & (VLOOKUP(Switch!$D$31,$F$2:$G$43,2,FALSE)+ROW()-2))=Switch!$D$31,INDIRECT(\"a\" & (VLOOKUP(Switch!$D$31,$F$2:$G$43,2,FALSE)+ROW()-2)),\"\")","v":{"$error":"#N/A"}},{"$f":"IF(INDIRECT(\"c\" & (VLOOKUP(Switch!$D$32,$F$2:$G$43,2,FALSE)+ROW()-2))=Switch!$D$32,INDIRECT(\"a\" & (VLOOKUP(Switch!$D$32,$F$2:$G$43,2,FALSE)+ROW()-2)),\"\")","v":{"$error":"#N/A"}},{"$f":"IF(INDIRECT(\"c\" & (VLOOKUP(Switch!$D$33,$F$2:$G$43,2,FALSE)+ROW()-2))=Switch!$D$33,INDIRECT(\"a\" & (VLOOKUP(Switch!$D$33,$F$2:$G$43,2,FALSE)+ROW()-2)),\"\")","v":{"$error":"#N/A"}},{"$f":"IF(INDIRECT(\"c\" & (VLOOKUP(Switch!$D$34,$F$2:$G$43,2,FALSE)+ROW()-2))=Switch!$D$34,INDIRECT(\"a\" & (VLOOKUP(Switch!$D$34,$F$2:$G$43,2,FALSE)+ROW()-2)),\"\")","v":{"$error":"#N/A"}},{"$f":"IF(INDIRECT(\"c\" & (VLOOKUP(Switch!$D$35,$F$2:$G$43,2,FALSE)+ROW()-2))=Switch!$D$35,INDIRECT(\"a\" & (VLOOKUP(Switch!$D$35,$F$2:$G$43,2,FALSE)+ROW()-2)),\"\")","v":{"$error":"#N/A"}},{"$f":"IF(INDIRECT(\"c\" & (VLOOKUP(Switch!$D$36,$F$2:$G$43,2,FALSE)+ROW()-2))=Switch!$D$36,INDIRECT(\"a\" & (VLOOKUP(Switch!$D$36,$F$2:$G$43,2,FALSE)+ROW()-2)),\"\")","v":{"$error":"#N/A"}},{"$f":"IF(INDIRECT(\"c\" & (VLOOKUP(Switch!$D$37,$F$2:$G$43,2,FALSE)+ROW()-2))=Switch!$D$37,INDIRECT(\"a\" & (VLOOKUP(Switch!$D$37,$F$2:$G$43,2,FALSE)+ROW()-2)),\"\")","v":{"$error":"#N/A"}},{"$f":"IF(INDIRECT(\"c\" & (VLOOKUP(Switch!$D$38,$F$2:$G$43,2,FALSE)+ROW()-2))=Switch!$D$38,INDIRECT(\"a\" & (VLOOKUP(Switch!$D$38,$F$2:$G$43,2,FALSE)+ROW()-2)),\"\")","v":{"$error":"#N/A"}},{"$f":"IF(INDIRECT(\"c\" & (VLOOKUP(Switch!$D$39,$F$2:$G$43,2,FALSE)+ROW()-2))=Switch!$D$39,INDIRECT(\"a\" & (VLOOKUP(Switch!$D$39,$F$2:$G$43,2,FALSE)+ROW()-2)),\"\")","v":{"$error":"#N/A"}},{"$f":"IF(INDIRECT(\"c\" & (VLOOKUP(Switch!$D$40,$F$2:$G$43,2,FALSE)+ROW()-2))=Switch!$D$40,INDIRECT(\"a\" & (VLOOKUP(Switch!$D$40,$F$2:$G$43,2,FALSE)+ROW()-2)),\"\")","v":{"$error":"#N/A"}},{"$f":"IF(INDIRECT(\"c\" & (VLOOKUP(Switch!$D$52,$F$2:$G$43,2,FALSE)+ROW()-2))=Switch!$D$52,INDIRECT(\"a\" & (VLOOKUP(Switch!$D$52,$F$2:$G$43,2,FALSE)+ROW()-2)),\"\")","v":{"$error":"#N/A"}},{"$f":"IF(INDIRECT(\"c\" & (VLOOKUP(Switch!$D$53,$F$2:$G$43,2,FALSE)+ROW()-2))=Switch!$D$53,INDIRECT(\"a\" & (VLOOKUP(Switch!$D$53,$F$2:$G$43,2,FALSE)+ROW()-2)),\"\")","v":{"$error":"#N/A"}},{"$f":"IF(INDIRECT(\"c\" & (VLOOKUP(Switch!$D$54,$F$2:$G$43,2,FALSE)+ROW()-2))=Switch!$D$54,INDIRECT(\"a\" & (VLOOKUP(Switch!$D$54,$F$2:$G$43,2,FALSE)+ROW()-2)),\"\")","v":{"$error":"#N/A"}},{"$f":"IF(INDIRECT(\"c\" & (VLOOKUP(Switch!$D$55,$F$2:$G$43,2,FALSE)+ROW()-2))=Switch!$D$55,INDIRECT(\"a\" & (VLOOKUP(Switch!$D$55,$F$2:$G$43,2,FALSE)+ROW()-2)),\"\")","v":{"$error":"#N/A"}},{"$f":"IF(INDIRECT(\"c\" & (VLOOKUP(Switch!$D$56,$F$2:$G$43,2,FALSE)+ROW()-2))=Switch!$D$56,INDIRECT(\"a\" & (VLOOKUP(Switch!$D$56,$F$2:$G$43,2,FALSE)+ROW()-2)),\"\")","v":{"$error":"#N/A"}},{"$f":"IF(INDIRECT(\"c\" & (VLOOKUP(Switch!$D$57,$F$2:$G$43,2,FALSE)+ROW()-2))=Switch!$D$57,INDIRECT(\"a\" & (VLOOKUP(Switch!$D$57,$F$2:$G$43,2,FALSE)+ROW()-2)),\"\")","v":{"$error":"#N/A"}},{"$f":"IF(INDIRECT(\"c\" & (VLOOKUP(Switch!$D$58,$F$2:$G$43,2,FALSE)+ROW()-2))=Switch!$D$58,INDIRECT(\"a\" & (VLOOKUP(Switch!$D$58,$F$2:$G$43,2,FALSE)+ROW()-2)),\"\")","v":{"$error":"#N/A"}},{"$f":"IF(INDIRECT(\"c\" & (VLOOKUP(Switch!$D$59,$F$2:$G$43,2,FALSE)+ROW()-2))=Switch!$D$59,INDIRECT(\"a\" & (VLOOKUP(Switch!$D$59,$F$2:$G$43,2,FALSE)+ROW()-2)),\"\")","v":{"$error":"#N/A"}},{"$f":"IF(INDIRECT(\"c\" & (VLOOKUP(Switch!$D$60,$F$2:$G$43,2,FALSE)+ROW()-2))=Switch!$D$60,INDIRECT(\"a\" & (VLOOKUP(Switch!$D$60,$F$2:$G$43,2,FALSE)+ROW()-2)),\"\")","v":{"$error":"#N/A"}},{"$f":"IF(INDIRECT(\"c\" & (VLOOKUP(Switch!$D$61,$F$2:$G$43,2,FALSE)+ROW()-2))=Switch!$D$61,INDIRECT(\"a\" & (VLOOKUP(Switch!$D$61,$F$2:$G$43,2,FALSE)+ROW()-2)),\"\")","v":{"$error":"#N/A"}},{"$f":"IF(INDIRECT(\"c\" & (VLOOKUP(Switch!$D$62,$F$2:$G$43,2,FALSE)+ROW()-2))=Switch!$D$62,INDIRECT(\"a\" & (VLOOKUP(Switch!$D$62,$F$2:$G$43,2,FALSE)+ROW()-2)),\"\")","v":{"$error":"#N/A"}},{"$f":"IF(INDIRECT(\"c\" & (VLOOKUP(Switch!$D$63,$F$2:$G$43,2,FALSE)+ROW()-2))=Switch!$D$63,INDIRECT(\"a\" & (VLOOKUP(Switch!$D$63,$F$2:$G$43,2,FALSE)+ROW()-2)),\"\")","v":{"$error":"#N/A"}},{"$f":"IF(INDIRECT(\"c\" & (VLOOKUP(Switch!$D$64,$F$2:$G$43,2,FALSE)+ROW()-2))=Switch!$D$64,INDIRECT(\"a\" & (VLOOKUP(Switch!$D$64,$F$2:$G$43,2,FALSE)+ROW()-2)),\"\")","v":{"$error":"#N/A"}},{"$f":"IF(INDIRECT(\"c\" & (VLOOKUP(Switch!$D$65,$F$2:$G$43,2,FALSE)+ROW()-2))=Switch!$D$65,INDIRECT(\"a\" & (VLOOKUP(Switch!$D$65,$F$2:$G$43,2,FALSE)+ROW()-2)),\"\")","v":{"$error":"#N/A"}},{"$f":"IF(INDIRECT(\"c\" & (VLOOKUP(Switch!$D$66,$F$2:$G$43,2,FALSE)+ROW()-2))=Switch!$D$66,INDIRECT(\"a\" & (VLOOKUP(Switch!$D$66,$F$2:$G$43,2,FALSE)+ROW()-2)),\"\")","v":{"$error":"#N/A"}}]
["Sequoia BCI Stable Fund of Funds A","BCISFA","Sanlam Collective Investments",{"$f":"ROW()","v":528},null,null,{"$f":"VLOOKUP(F528,$C$2:$D$637,2,FALSE)","v":{"$error":"#N/A"}},{"$f":"IF(INDIRECT(\"c\" & (VLOOKUP(Switch!$D$26,$F$2:$G$43,2,FALSE)+ROW()-2))=Switch!$D$26,INDIRECT(\"a\" & (VLOOKUP(Switch!$D$26,$F$2:$G$43,2,FALSE)+ROW()-2)),\"\")","v":{"$error":"#N/A"}},{"$f":"IF(INDIRECT(\"c\" & (VLOOKUP(Switch!$D$27,$F$2:$G$43,2,FALSE)+ROW()-2))=Switch!$D$27,INDIRECT(\"a\" & (VLOOKUP(Switch!$D$27,$F$2:$G$43,2,FALSE)+ROW()-2)),\"\")","v":{"$error":"#N/A"}},{"$f":"IF(INDIRECT(\"c\" & (VLOOKUP(Switch!$D$28,$F$2:$G$43,2,FALSE)+ROW()-2))=Switch!$D$28,INDIRECT(\"a\" & (VLOOKUP(Switch!$D$28,$F$2:$G$43,2,FALSE)+ROW()-2)),\"\")","v":{"$error":"#N/A"}},{"$f":"IF(INDIRECT(\"c\" & (VLOOKUP(Switch!$D$29,$F$2:$G$43,2,FALSE)+ROW()-2))=Switch!$D$29,INDIRECT(\"a\" & (VLOOKUP(Switch!$D$29,$F$2:$G$43,2,FALSE)+ROW()-2)),\"\")","v":{"$error":"#N/A"}},{"$f":"IF(INDIRECT(\"c\" & (VLOOKUP(Switch!$D$30,$F$2:$G$43,2,FALSE)+ROW()-2))=Switch!$D$30,INDIRECT(\"a\" & (VLOOKUP(Switch!$D$30,$F$2:$G$43,2,FALSE)+ROW()-2)),\"\")","v":{"$error":"#N/A"}},{"$f":"IF(INDIRECT(\"c\" & (VLOOKUP(Switch!$D$31,$F$2:$G$43,2,FALSE)+ROW()-2))=Switch!$D$31,INDIRECT(\"a\" & (VLOOKUP(Switch!$D$31,$F$2:$G$43,2,FALSE)+ROW()-2)),\"\")","v":{"$error":"#N/A"}},{"$f":"IF(INDIRECT(\"c\" & (VLOOKUP(Switch!$D$32,$F$2:$G$43,2,FALSE)+ROW()-2))=Switch!$D$32,INDIRECT(\"a\" & (VLOOKUP(Switch!$D$32,$F$2:$G$43,2,FALSE)+ROW()-2)),\"\")","v":{"$error":"#N/A"}},{"$f":"IF(INDIRECT(\"c\" & (VLOOKUP(Switch!$D$33,$F$2:$G$43,2,FALSE)+ROW()-2))=Switch!$D$33,INDIRECT(\"a\" & (VLOOKUP(Switch!$D$33,$F$2:$G$43,2,FALSE)+ROW()-2)),\"\")","v":{"$error":"#N/A"}},{"$f":"IF(INDIRECT(\"c\" & (VLOOKUP(Switch!$D$34,$F$2:$G$43,2,FALSE)+ROW()-2))=Switch!$D$34,INDIRECT(\"a\" & (VLOOKUP(Switch!$D$34,$F$2:$G$43,2,FALSE)+ROW()-2)),\"\")","v":{"$error":"#N/A"}},{"$f":"IF(INDIRECT(\"c\" & (VLOOKUP(Switch!$D$35,$F$2:$G$43,2,FALSE)+ROW()-2))=Switch!$D$35,INDIRECT(\"a\" & (VLOOKUP(Switch!$D$35,$F$2:$G$43,2,FALSE)+ROW()-2)),\"\")","v":{"$error":"#N/A"}},{"$f":"IF(INDIRECT(\"c\" & (VLOOKUP(Switch!$D$36,$F$2:$G$43,2,FALSE)+ROW()-2))=Switch!$D$36,INDIRECT(\"a\" & (VLOOKUP(Switch!$D$36,$F$2:$G$43,2,FALSE)+ROW()-2)),\"\")","v":{"$error":"#N/A"}},{"$f":"IF(INDIRECT(\"c\" & (VLOOKUP(Switch!$D$37,$F$2:$G$43,2,FALSE)+ROW()-2))=Switch!$D$37,INDIRECT(\"a\" & (VLOOKUP(Switch!$D$37,$F$2:$G$43,2,FALSE)+ROW()-2)),\"\")","v":{"$error":"#N/A"}},{"$f":"IF(INDIRECT(\"c\" & (VLOOKUP(Switch!$D$38,$F$2:$G$43,2,FALSE)+ROW()-2))=Switch!$D$38,INDIRECT(\"a\" & (VLOOKUP(Switch!$D$38,$F$2:$G$43,2,FALSE)+ROW()-2)),\"\")","v":{"$error":"#N/A"}},{"$f":"IF(INDIRECT(\"c\" & (VLOOKUP(Switch!$D$39,$F$2:$G$43,2,FALSE)+ROW()-2))=Switch!$D$39,INDIRECT(\"a\" & (VLOOKUP(Switch!$D$39,$F$2:$G$43,2,FALSE)+ROW()-2)),\"\")","v":{"$error":"#N/A"}},{"$f":"IF(INDIRECT(\"c\" & (VLOOKUP(Switch!$D$40,$F$2:$G$43,2,FALSE)+ROW()-2))=Switch!$D$40,INDIRECT(\"a\" & (VLOOKUP(Switch!$D$40,$F$2:$G$43,2,FALSE)+ROW()-2)),\"\")","v":{"$error":"#N/A"}},{"$f":"IF(INDIRECT(\"c\" & (VLOOKUP(Switch!$D$52,$F$2:$G$43,2,FALSE)+ROW()-2))=Switch!$D$52,INDIRECT(\"a\" & (VLOOKUP(Switch!$D$52,$F$2:$G$43,2,FALSE)+ROW()-2)),\"\")","v":{"$error":"#N/A"}},{"$f":"IF(INDIRECT(\"c\" & (VLOOKUP(Switch!$D$53,$F$2:$G$43,2,FALSE)+ROW()-2))=Switch!$D$53,INDIRECT(\"a\" & (VLOOKUP(Switch!$D$53,$F$2:$G$43,2,FALSE)+ROW()-2)),\"\")","v":{"$error":"#N/A"}},{"$f":"IF(INDIRECT(\"c\" & (VLOOKUP(Switch!$D$54,$F$2:$G$43,2,FALSE)+ROW()-2))=Switch!$D$54,INDIRECT(\"a\" & (VLOOKUP(Switch!$D$54,$F$2:$G$43,2,FALSE)+ROW()-2)),\"\")","v":{"$error":"#N/A"}},{"$f":"IF(INDIRECT(\"c\" & (VLOOKUP(Switch!$D$55,$F$2:$G$43,2,FALSE)+ROW()-2))=Switch!$D$55,INDIRECT(\"a\" & (VLOOKUP(Switch!$D$55,$F$2:$G$43,2,FALSE)+ROW()-2)),\"\")","v":{"$error":"#N/A"}},{"$f":"IF(INDIRECT(\"c\" & (VLOOKUP(Switch!$D$56,$F$2:$G$43,2,FALSE)+ROW()-2))=Switch!$D$56,INDIRECT(\"a\" & (VLOOKUP(Switch!$D$56,$F$2:$G$43,2,FALSE)+ROW()-2)),\"\")","v":{"$error":"#N/A"}},{"$f":"IF(INDIRECT(\"c\" & (VLOOKUP(Switch!$D$57,$F$2:$G$43,2,FALSE)+ROW()-2))=Switch!$D$57,INDIRECT(\"a\" & (VLOOKUP(Switch!$D$57,$F$2:$G$43,2,FALSE)+ROW()-2)),\"\")","v":{"$error":"#N/A"}},{"$f":"IF(INDIRECT(\"c\" & (VLOOKUP(Switch!$D$58,$F$2:$G$43,2,FALSE)+ROW()-2))=Switch!$D$58,INDIRECT(\"a\" & (VLOOKUP(Switch!$D$58,$F$2:$G$43,2,FALSE)+ROW()-2)),\"\")","v":{"$error":"#N/A"}},{"$f":"IF(INDIRECT(\"c\" & (VLOOKUP(Switch!$D$59,$F$2:$G$43,2,FALSE)+ROW()-2))=Switch!$D$59,INDIRECT(\"a\" & (VLOOKUP(Switch!$D$59,$F$2:$G$43,2,FALSE)+ROW()-2)),\"\")","v":{"$error":"#N/A"}},{"$f":"IF(INDIRECT(\"c\" & (VLOOKUP(Switch!$D$60,$F$2:$G$43,2,FALSE)+ROW()-2))=Switch!$D$60,INDIRECT(\"a\" & (VLOOKUP(Switch!$D$60,$F$2:$G$43,2,FALSE)+ROW()-2)),\"\")","v":{"$error":"#N/A"}},{"$f":"IF(INDIRECT(\"c\" & (VLOOKUP(Switch!$D$61,$F$2:$G$43,2,FALSE)+ROW()-2))=Switch!$D$61,INDIRECT(\"a\" & (VLOOKUP(Switch!$D$61,$F$2:$G$43,2,FALSE)+ROW()-2)),\"\")","v":{"$error":"#N/A"}},{"$f":"IF(INDIRECT(\"c\" & (VLOOKUP(Switch!$D$62,$F$2:$G$43,2,FALSE)+ROW()-2))=Switch!$D$62,INDIRECT(\"a\" & (VLOOKUP(Switch!$D$62,$F$2:$G$43,2,FALSE)+ROW()-2)),\"\")","v":{"$error":"#N/A"}},{"$f":"IF(INDIRECT(\"c\" & (VLOOKUP(Switch!$D$63,$F$2:$G$43,2,FALSE)+ROW()-2))=Switch!$D$63,INDIRECT(\"a\" & (VLOOKUP(Switch!$D$63,$F$2:$G$43,2,FALSE)+ROW()-2)),\"\")","v":{"$error":"#N/A"}},{"$f":"IF(INDIRECT(\"c\" & (VLOOKUP(Switch!$D$64,$F$2:$G$43,2,FALSE)+ROW()-2))=Switch!$D$64,INDIRECT(\"a\" & (VLOOKUP(Switch!$D$64,$F$2:$G$43,2,FALSE)+ROW()-2)),\"\")","v":{"$error":"#N/A"}},{"$f":"IF(INDIRECT(\"c\" & (VLOOKUP(Switch!$D$65,$F$2:$G$43,2,FALSE)+ROW()-2))=Switch!$D$65,INDIRECT(\"a\" & (VLOOKUP(Switch!$D$65,$F$2:$G$43,2,FALSE)+ROW()-2)),\"\")","v":{"$error":"#N/A"}},{"$f":"IF(INDIRECT(\"c\" & (VLOOKUP(Switch!$D$66,$F$2:$G$43,2,FALSE)+ROW()-2))=Switch!$D$66,INDIRECT(\"a\" & (VLOOKUP(Switch!$D$66,$F$2:$G$43,2,FALSE)+ROW()-2)),\"\")","v":{"$error":"#N/A"}}]
["SIM Absolute Return Income Fund","SAAR","Sanlam Collective Investments",{"$f":"ROW()","v":529},null,null,{"$f":"VLOOKUP(F529,$C$2:$D$637,2,FALSE)","v":{"$error":"#N/A"}},{"$f":"IF(INDIRECT(\"c\" & (VLOOKUP(Switch!$D$26,$F$2:$G$43,2,FALSE)+ROW()-2))=Switch!$D$26,INDIRECT(\"a\" & (VLOOKUP(Switch!$D$26,$F$2:$G$43,2,FALSE)+ROW()-2)),\"\")","v":{"$error":"#N/A"}},{"$f":"IF(INDIRECT(\"c\" & (VLOOKUP(Switch!$D$27,$F$2:$G$43,2,FALSE)+ROW()-2))=Switch!$D$27,INDIRECT(\"a\" & (VLOOKUP(Switch!$D$27,$F$2:$G$43,2,FALSE)+ROW()-2)),\"\")","v":{"$error":"#N/A"}},{"$f":"IF(INDIRECT(\"c\" & (VLOOKUP(Switch!$D$28,$F$2:$G$43,2,FALSE)+ROW()-2))=Switch!$D$28,INDIRECT(\"a\" & (VLOOKUP(Switch!$D$28,$F$2:$G$43,2,FALSE)+ROW()-2)),\"\")","v":{"$error":"#N/A"}},{"$f":"IF(INDIRECT(\"c\" & (VLOOKUP(Switch!$D$29,$F$2:$G$43,2,FALSE)+ROW()-2))=Switch!$D$29,INDIRECT(\"a\" & (VLOOKUP(Switch!$D$29,$F$2:$G$43,2,FALSE)+ROW()-2)),\"\")","v":{"$error":"#N/A"}},{"$f":"IF(INDIRECT(\"c\" & (VLOOKUP(Switch!$D$30,$F$2:$G$43,2,FALSE)+ROW()-2))=Switch!$D$30,INDIRECT(\"a\" & (VLOOKUP(Switch!$D$30,$F$2:$G$43,2,FALSE)+ROW()-2)),\"\")","v":{"$error":"#N/A"}},{"$f":"IF(INDIRECT(\"c\" & (VLOOKUP(Switch!$D$31,$F$2:$G$43,2,FALSE)+ROW()-2))=Switch!$D$31,INDIRECT(\"a\" & (VLOOKUP(Switch!$D$31,$F$2:$G$43,2,FALSE)+ROW()-2)),\"\")","v":{"$error":"#N/A"}},{"$f":"IF(INDIRECT(\"c\" & (VLOOKUP(Switch!$D$32,$F$2:$G$43,2,FALSE)+ROW()-2))=Switch!$D$32,INDIRECT(\"a\" & (VLOOKUP(Switch!$D$32,$F$2:$G$43,2,FALSE)+ROW()-2)),\"\")","v":{"$error":"#N/A"}},{"$f":"IF(INDIRECT(\"c\" & (VLOOKUP(Switch!$D$33,$F$2:$G$43,2,FALSE)+ROW()-2))=Switch!$D$33,INDIRECT(\"a\" & (VLOOKUP(Switch!$D$33,$F$2:$G$43,2,FALSE)+ROW()-2)),\"\")","v":{"$error":"#N/A"}},{"$f":"IF(INDIRECT(\"c\" & (VLOOKUP(Switch!$D$34,$F$2:$G$43,2,FALSE)+ROW()-2))=Switch!$D$34,INDIRECT(\"a\" & (VLOOKUP(Switch!$D$34,$F$2:$G$43,2,FALSE)+ROW()-2)),\"\")","v":{"$error":"#N/A"}},{"$f":"IF(INDIRECT(\"c\" & (VLOOKUP(Switch!$D$35,$F$2:$G$43,2,FALSE)+ROW()-2))=Switch!$D$35,INDIRECT(\"a\" & (VLOOKUP(Switch!$D$35,$F$2:$G$43,2,FALSE)+ROW()-2)),\"\")","v":{"$error":"#N/A"}},{"$f":"IF(INDIRECT(\"c\" & (VLOOKUP(Switch!$D$36,$F$2:$G$43,2,FALSE)+ROW()-2))=Switch!$D$36,INDIRECT(\"a\" & (VLOOKUP(Switch!$D$36,$F$2:$G$43,2,FALSE)+ROW()-2)),\"\")","v":{"$error":"#N/A"}},{"$f":"IF(INDIRECT(\"c\" & (VLOOKUP(Switch!$D$37,$F$2:$G$43,2,FALSE)+ROW()-2))=Switch!$D$37,INDIRECT(\"a\" & (VLOOKUP(Switch!$D$37,$F$2:$G$43,2,FALSE)+ROW()-2)),\"\")","v":{"$error":"#N/A"}},{"$f":"IF(INDIRECT(\"c\" & (VLOOKUP(Switch!$D$38,$F$2:$G$43,2,FALSE)+ROW()-2))=Switch!$D$38,INDIRECT(\"a\" & (VLOOKUP(Switch!$D$38,$F$2:$G$43,2,FALSE)+ROW()-2)),\"\")","v":{"$error":"#N/A"}},{"$f":"IF(INDIRECT(\"c\" & (VLOOKUP(Switch!$D$39,$F$2:$G$43,2,FALSE)+ROW()-2))=Switch!$D$39,INDIRECT(\"a\" & (VLOOKUP(Switch!$D$39,$F$2:$G$43,2,FALSE)+ROW()-2)),\"\")","v":{"$error":"#N/A"}},{"$f":"IF(INDIRECT(\"c\" & (VLOOKUP(Switch!$D$40,$F$2:$G$43,2,FALSE)+ROW()-2))=Switch!$D$40,INDIRECT(\"a\" & (VLOOKUP(Switch!$D$40,$F$2:$G$43,2,FALSE)+ROW()-2)),\"\")","v":{"$error":"#N/A"}},{"$f":"IF(INDIRECT(\"c\" & (VLOOKUP(Switch!$D$52,$F$2:$G$43,2,FALSE)+ROW()-2))=Switch!$D$52,INDIRECT(\"a\" & (VLOOKUP(Switch!$D$52,$F$2:$G$43,2,FALSE)+ROW()-2)),\"\")","v":{"$error":"#N/A"}},{"$f":"IF(INDIRECT(\"c\" & (VLOOKUP(Switch!$D$53,$F$2:$G$43,2,FALSE)+ROW()-2))=Switch!$D$53,INDIRECT(\"a\" & (VLOOKUP(Switch!$D$53,$F$2:$G$43,2,FALSE)+ROW()-2)),\"\")","v":{"$error":"#N/A"}},{"$f":"IF(INDIRECT(\"c\" & (VLOOKUP(Switch!$D$54,$F$2:$G$43,2,FALSE)+ROW()-2))=Switch!$D$54,INDIRECT(\"a\" & (VLOOKUP(Switch!$D$54,$F$2:$G$43,2,FALSE)+ROW()-2)),\"\")","v":{"$error":"#N/A"}},{"$f":"IF(INDIRECT(\"c\" & (VLOOKUP(Switch!$D$55,$F$2:$G$43,2,FALSE)+ROW()-2))=Switch!$D$55,INDIRECT(\"a\" & (VLOOKUP(Switch!$D$55,$F$2:$G$43,2,FALSE)+ROW()-2)),\"\")","v":{"$error":"#N/A"}},{"$f":"IF(INDIRECT(\"c\" & (VLOOKUP(Switch!$D$56,$F$2:$G$43,2,FALSE)+ROW()-2))=Switch!$D$56,INDIRECT(\"a\" & (VLOOKUP(Switch!$D$56,$F$2:$G$43,2,FALSE)+ROW()-2)),\"\")","v":{"$error":"#N/A"}},{"$f":"IF(INDIRECT(\"c\" & (VLOOKUP(Switch!$D$57,$F$2:$G$43,2,FALSE)+ROW()-2))=Switch!$D$57,INDIRECT(\"a\" & (VLOOKUP(Switch!$D$57,$F$2:$G$43,2,FALSE)+ROW()-2)),\"\")","v":{"$error":"#N/A"}},{"$f":"IF(INDIRECT(\"c\" & (VLOOKUP(Switch!$D$58,$F$2:$G$43,2,FALSE)+ROW()-2))=Switch!$D$58,INDIRECT(\"a\" & (VLOOKUP(Switch!$D$58,$F$2:$G$43,2,FALSE)+ROW()-2)),\"\")","v":{"$error":"#N/A"}},{"$f":"IF(INDIRECT(\"c\" & (VLOOKUP(Switch!$D$59,$F$2:$G$43,2,FALSE)+ROW()-2))=Switch!$D$59,INDIRECT(\"a\" & (VLOOKUP(Switch!$D$59,$F$2:$G$43,2,FALSE)+ROW()-2)),\"\")","v":{"$error":"#N/A"}},{"$f":"IF(INDIRECT(\"c\" & (VLOOKUP(Switch!$D$60,$F$2:$G$43,2,FALSE)+ROW()-2))=Switch!$D$60,INDIRECT(\"a\" & (VLOOKUP(Switch!$D$60,$F$2:$G$43,2,FALSE)+ROW()-2)),\"\")","v":{"$error":"#N/A"}},{"$f":"IF(INDIRECT(\"c\" & (VLOOKUP(Switch!$D$61,$F$2:$G$43,2,FALSE)+ROW()-2))=Switch!$D$61,INDIRECT(\"a\" & (VLOOKUP(Switch!$D$61,$F$2:$G$43,2,FALSE)+ROW()-2)),\"\")","v":{"$error":"#N/A"}},{"$f":"IF(INDIRECT(\"c\" & (VLOOKUP(Switch!$D$62,$F$2:$G$43,2,FALSE)+ROW()-2))=Switch!$D$62,INDIRECT(\"a\" & (VLOOKUP(Switch!$D$62,$F$2:$G$43,2,FALSE)+ROW()-2)),\"\")","v":{"$error":"#N/A"}},{"$f":"IF(INDIRECT(\"c\" & (VLOOKUP(Switch!$D$63,$F$2:$G$43,2,FALSE)+ROW()-2))=Switch!$D$63,INDIRECT(\"a\" & (VLOOKUP(Switch!$D$63,$F$2:$G$43,2,FALSE)+ROW()-2)),\"\")","v":{"$error":"#N/A"}},{"$f":"IF(INDIRECT(\"c\" & (VLOOKUP(Switch!$D$64,$F$2:$G$43,2,FALSE)+ROW()-2))=Switch!$D$64,INDIRECT(\"a\" & (VLOOKUP(Switch!$D$64,$F$2:$G$43,2,FALSE)+ROW()-2)),\"\")","v":{"$error":"#N/A"}},{"$f":"IF(INDIRECT(\"c\" & (VLOOKUP(Switch!$D$65,$F$2:$G$43,2,FALSE)+ROW()-2))=Switch!$D$65,INDIRECT(\"a\" & (VLOOKUP(Switch!$D$65,$F$2:$G$43,2,FALSE)+ROW()-2)),\"\")","v":{"$error":"#N/A"}},{"$f":"IF(INDIRECT(\"c\" & (VLOOKUP(Switch!$D$66,$F$2:$G$43,2,FALSE)+ROW()-2))=Switch!$D$66,INDIRECT(\"a\" & (VLOOKUP(Switch!$D$66,$F$2:$G$43,2,FALSE)+ROW()-2)),\"\")","v":{"$error":"#N/A"}}]
["SIM Active Income Fund b4","SIAB5","Sanlam Collective Investments",{"$f":"ROW()","v":530},null,null,{"$f":"VLOOKUP(F530,$C$2:$D$637,2,FALSE)","v":{"$error":"#N/A"}},{"$f":"IF(INDIRECT(\"c\" & (VLOOKUP(Switch!$D$26,$F$2:$G$43,2,FALSE)+ROW()-2))=Switch!$D$26,INDIRECT(\"a\" & (VLOOKUP(Switch!$D$26,$F$2:$G$43,2,FALSE)+ROW()-2)),\"\")","v":{"$error":"#N/A"}},{"$f":"IF(INDIRECT(\"c\" & (VLOOKUP(Switch!$D$27,$F$2:$G$43,2,FALSE)+ROW()-2))=Switch!$D$27,INDIRECT(\"a\" & (VLOOKUP(Switch!$D$27,$F$2:$G$43,2,FALSE)+ROW()-2)),\"\")","v":{"$error":"#N/A"}},{"$f":"IF(INDIRECT(\"c\" & (VLOOKUP(Switch!$D$28,$F$2:$G$43,2,FALSE)+ROW()-2))=Switch!$D$28,INDIRECT(\"a\" & (VLOOKUP(Switch!$D$28,$F$2:$G$43,2,FALSE)+ROW()-2)),\"\")","v":{"$error":"#N/A"}},{"$f":"IF(INDIRECT(\"c\" & (VLOOKUP(Switch!$D$29,$F$2:$G$43,2,FALSE)+ROW()-2))=Switch!$D$29,INDIRECT(\"a\" & (VLOOKUP(Switch!$D$29,$F$2:$G$43,2,FALSE)+ROW()-2)),\"\")","v":{"$error":"#N/A"}},{"$f":"IF(INDIRECT(\"c\" & (VLOOKUP(Switch!$D$30,$F$2:$G$43,2,FALSE)+ROW()-2))=Switch!$D$30,INDIRECT(\"a\" & (VLOOKUP(Switch!$D$30,$F$2:$G$43,2,FALSE)+ROW()-2)),\"\")","v":{"$error":"#N/A"}},{"$f":"IF(INDIRECT(\"c\" & (VLOOKUP(Switch!$D$31,$F$2:$G$43,2,FALSE)+ROW()-2))=Switch!$D$31,INDIRECT(\"a\" & (VLOOKUP(Switch!$D$31,$F$2:$G$43,2,FALSE)+ROW()-2)),\"\")","v":{"$error":"#N/A"}},{"$f":"IF(INDIRECT(\"c\" & (VLOOKUP(Switch!$D$32,$F$2:$G$43,2,FALSE)+ROW()-2))=Switch!$D$32,INDIRECT(\"a\" & (VLOOKUP(Switch!$D$32,$F$2:$G$43,2,FALSE)+ROW()-2)),\"\")","v":{"$error":"#N/A"}},{"$f":"IF(INDIRECT(\"c\" & (VLOOKUP(Switch!$D$33,$F$2:$G$43,2,FALSE)+ROW()-2))=Switch!$D$33,INDIRECT(\"a\" & (VLOOKUP(Switch!$D$33,$F$2:$G$43,2,FALSE)+ROW()-2)),\"\")","v":{"$error":"#N/A"}},{"$f":"IF(INDIRECT(\"c\" & (VLOOKUP(Switch!$D$34,$F$2:$G$43,2,FALSE)+ROW()-2))=Switch!$D$34,INDIRECT(\"a\" & (VLOOKUP(Switch!$D$34,$F$2:$G$43,2,FALSE)+ROW()-2)),\"\")","v":{"$error":"#N/A"}},{"$f":"IF(INDIRECT(\"c\" & (VLOOKUP(Switch!$D$35,$F$2:$G$43,2,FALSE)+ROW()-2))=Switch!$D$35,INDIRECT(\"a\" & (VLOOKUP(Switch!$D$35,$F$2:$G$43,2,FALSE)+ROW()-2)),\"\")","v":{"$error":"#N/A"}},{"$f":"IF(INDIRECT(\"c\" & (VLOOKUP(Switch!$D$36,$F$2:$G$43,2,FALSE)+ROW()-2))=Switch!$D$36,INDIRECT(\"a\" & (VLOOKUP(Switch!$D$36,$F$2:$G$43,2,FALSE)+ROW()-2)),\"\")","v":{"$error":"#N/A"}},{"$f":"IF(INDIRECT(\"c\" & (VLOOKUP(Switch!$D$37,$F$2:$G$43,2,FALSE)+ROW()-2))=Switch!$D$37,INDIRECT(\"a\" & (VLOOKUP(Switch!$D$37,$F$2:$G$43,2,FALSE)+ROW()-2)),\"\")","v":{"$error":"#N/A"}},{"$f":"IF(INDIRECT(\"c\" & (VLOOKUP(Switch!$D$38,$F$2:$G$43,2,FALSE)+ROW()-2))=Switch!$D$38,INDIRECT(\"a\" & (VLOOKUP(Switch!$D$38,$F$2:$G$43,2,FALSE)+ROW()-2)),\"\")","v":{"$error":"#N/A"}},{"$f":"IF(INDIRECT(\"c\" & (VLOOKUP(Switch!$D$39,$F$2:$G$43,2,FALSE)+ROW()-2))=Switch!$D$39,INDIRECT(\"a\" & (VLOOKUP(Switch!$D$39,$F$2:$G$43,2,FALSE)+ROW()-2)),\"\")","v":{"$error":"#N/A"}},{"$f":"IF(INDIRECT(\"c\" & (VLOOKUP(Switch!$D$40,$F$2:$G$43,2,FALSE)+ROW()-2))=Switch!$D$40,INDIRECT(\"a\" & (VLOOKUP(Switch!$D$40,$F$2:$G$43,2,FALSE)+ROW()-2)),\"\")","v":{"$error":"#N/A"}},{"$f":"IF(INDIRECT(\"c\" & (VLOOKUP(Switch!$D$52,$F$2:$G$43,2,FALSE)+ROW()-2))=Switch!$D$52,INDIRECT(\"a\" & (VLOOKUP(Switch!$D$52,$F$2:$G$43,2,FALSE)+ROW()-2)),\"\")","v":{"$error":"#N/A"}},{"$f":"IF(INDIRECT(\"c\" & (VLOOKUP(Switch!$D$53,$F$2:$G$43,2,FALSE)+ROW()-2))=Switch!$D$53,INDIRECT(\"a\" & (VLOOKUP(Switch!$D$53,$F$2:$G$43,2,FALSE)+ROW()-2)),\"\")","v":{"$error":"#N/A"}},{"$f":"IF(INDIRECT(\"c\" & (VLOOKUP(Switch!$D$54,$F$2:$G$43,2,FALSE)+ROW()-2))=Switch!$D$54,INDIRECT(\"a\" & (VLOOKUP(Switch!$D$54,$F$2:$G$43,2,FALSE)+ROW()-2)),\"\")","v":{"$error":"#N/A"}},{"$f":"IF(INDIRECT(\"c\" & (VLOOKUP(Switch!$D$55,$F$2:$G$43,2,FALSE)+ROW()-2))=Switch!$D$55,INDIRECT(\"a\" & (VLOOKUP(Switch!$D$55,$F$2:$G$43,2,FALSE)+ROW()-2)),\"\")","v":{"$error":"#N/A"}},{"$f":"IF(INDIRECT(\"c\" & (VLOOKUP(Switch!$D$56,$F$2:$G$43,2,FALSE)+ROW()-2))=Switch!$D$56,INDIRECT(\"a\" & (VLOOKUP(Switch!$D$56,$F$2:$G$43,2,FALSE)+ROW()-2)),\"\")","v":{"$error":"#N/A"}},{"$f":"IF(INDIRECT(\"c\" & (VLOOKUP(Switch!$D$57,$F$2:$G$43,2,FALSE)+ROW()-2))=Switch!$D$57,INDIRECT(\"a\" & (VLOOKUP(Switch!$D$57,$F$2:$G$43,2,FALSE)+ROW()-2)),\"\")","v":{"$error":"#N/A"}},{"$f":"IF(INDIRECT(\"c\" & (VLOOKUP(Switch!$D$58,$F$2:$G$43,2,FALSE)+ROW()-2))=Switch!$D$58,INDIRECT(\"a\" & (VLOOKUP(Switch!$D$58,$F$2:$G$43,2,FALSE)+ROW()-2)),\"\")","v":{"$error":"#N/A"}},{"$f":"IF(INDIRECT(\"c\" & (VLOOKUP(Switch!$D$59,$F$2:$G$43,2,FALSE)+ROW()-2))=Switch!$D$59,INDIRECT(\"a\" & (VLOOKUP(Switch!$D$59,$F$2:$G$43,2,FALSE)+ROW()-2)),\"\")","v":{"$error":"#N/A"}},{"$f":"IF(INDIRECT(\"c\" & (VLOOKUP(Switch!$D$60,$F$2:$G$43,2,FALSE)+ROW()-2))=Switch!$D$60,INDIRECT(\"a\" & (VLOOKUP(Switch!$D$60,$F$2:$G$43,2,FALSE)+ROW()-2)),\"\")","v":{"$error":"#N/A"}},{"$f":"IF(INDIRECT(\"c\" & (VLOOKUP(Switch!$D$61,$F$2:$G$43,2,FALSE)+ROW()-2))=Switch!$D$61,INDIRECT(\"a\" & (VLOOKUP(Switch!$D$61,$F$2:$G$43,2,FALSE)+ROW()-2)),\"\")","v":{"$error":"#N/A"}},{"$f":"IF(INDIRECT(\"c\" & (VLOOKUP(Switch!$D$62,$F$2:$G$43,2,FALSE)+ROW()-2))=Switch!$D$62,INDIRECT(\"a\" & (VLOOKUP(Switch!$D$62,$F$2:$G$43,2,FALSE)+ROW()-2)),\"\")","v":{"$error":"#N/A"}},{"$f":"IF(INDIRECT(\"c\" & (VLOOKUP(Switch!$D$63,$F$2:$G$43,2,FALSE)+ROW()-2))=Switch!$D$63,INDIRECT(\"a\" & (VLOOKUP(Switch!$D$63,$F$2:$G$43,2,FALSE)+ROW()-2)),\"\")","v":{"$error":"#N/A"}},{"$f":"IF(INDIRECT(\"c\" & (VLOOKUP(Switch!$D$64,$F$2:$G$43,2,FALSE)+ROW()-2))=Switch!$D$64,INDIRECT(\"a\" & (VLOOKUP(Switch!$D$64,$F$2:$G$43,2,FALSE)+ROW()-2)),\"\")","v":{"$error":"#N/A"}},{"$f":"IF(INDIRECT(\"c\" & (VLOOKUP(Switch!$D$65,$F$2:$G$43,2,FALSE)+ROW()-2))=Switch!$D$65,INDIRECT(\"a\" & (VLOOKUP(Switch!$D$65,$F$2:$G$43,2,FALSE)+ROW()-2)),\"\")","v":{"$error":"#N/A"}},{"$f":"IF(INDIRECT(\"c\" & (VLOOKUP(Switch!$D$66,$F$2:$G$43,2,FALSE)+ROW()-2))=Switch!$D$66,INDIRECT(\"a\" & (VLOOKUP(Switch!$D$66,$F$2:$G$43,2,FALSE)+ROW()-2)),\"\")","v":{"$error":"#N/A"}}]
["SIM Active Income B5","SIAB5","Sanlam Collective Investments",{"$f":"ROW()","v":531},null,null,{"$f":"VLOOKUP(F531,$C$2:$D$637,2,FALSE)","v":{"$error":"#N/A"}},{"$f":"IF(INDIRECT(\"c\" & (VLOOKUP(Switch!$D$26,$F$2:$G$43,2,FALSE)+ROW()-2))=Switch!$D$26,INDIRECT(\"a\" & (VLOOKUP(Switch!$D$26,$F$2:$G$43,2,FALSE)+ROW()-2)),\"\")","v":{"$error":"#N/A"}},{"$f":"IF(INDIRECT(\"c\" & (VLOOKUP(Switch!$D$27,$F$2:$G$43,2,FALSE)+ROW()-2))=Switch!$D$27,INDIRECT(\"a\" & (VLOOKUP(Switch!$D$27,$F$2:$G$43,2,FALSE)+ROW()-2)),\"\")","v":{"$error":"#N/A"}},{"$f":"IF(INDIRECT(\"c\" & (VLOOKUP(Switch!$D$28,$F$2:$G$43,2,FALSE)+ROW()-2))=Switch!$D$28,INDIRECT(\"a\" & (VLOOKUP(Switch!$D$28,$F$2:$G$43,2,FALSE)+ROW()-2)),\"\")","v":{"$error":"#N/A"}},{"$f":"IF(INDIRECT(\"c\" & (VLOOKUP(Switch!$D$29,$F$2:$G$43,2,FALSE)+ROW()-2))=Switch!$D$29,INDIRECT(\"a\" & (VLOOKUP(Switch!$D$29,$F$2:$G$43,2,FALSE)+ROW()-2)),\"\")","v":{"$error":"#N/A"}},{"$f":"IF(INDIRECT(\"c\" & (VLOOKUP(Switch!$D$30,$F$2:$G$43,2,FALSE)+ROW()-2))=Switch!$D$30,INDIRECT(\"a\" & (VLOOKUP(Switch!$D$30,$F$2:$G$43,2,FALSE)+ROW()-2)),\"\")","v":{"$error":"#N/A"}},{"$f":"IF(INDIRECT(\"c\" & (VLOOKUP(Switch!$D$31,$F$2:$G$43,2,FALSE)+ROW()-2))=Switch!$D$31,INDIRECT(\"a\" & (VLOOKUP(Switch!$D$31,$F$2:$G$43,2,FALSE)+ROW()-2)),\"\")","v":{"$error":"#N/A"}},{"$f":"IF(INDIRECT(\"c\" & (VLOOKUP(Switch!$D$32,$F$2:$G$43,2,FALSE)+ROW()-2))=Switch!$D$32,INDIRECT(\"a\" & (VLOOKUP(Switch!$D$32,$F$2:$G$43,2,FALSE)+ROW()-2)),\"\")","v":{"$error":"#N/A"}},{"$f":"IF(INDIRECT(\"c\" & (VLOOKUP(Switch!$D$33,$F$2:$G$43,2,FALSE)+ROW()-2))=Switch!$D$33,INDIRECT(\"a\" & (VLOOKUP(Switch!$D$33,$F$2:$G$43,2,FALSE)+ROW()-2)),\"\")","v":{"$error":"#N/A"}},{"$f":"IF(INDIRECT(\"c\" & (VLOOKUP(Switch!$D$34,$F$2:$G$43,2,FALSE)+ROW()-2))=Switch!$D$34,INDIRECT(\"a\" & (VLOOKUP(Switch!$D$34,$F$2:$G$43,2,FALSE)+ROW()-2)),\"\")","v":{"$error":"#N/A"}},{"$f":"IF(INDIRECT(\"c\" & (VLOOKUP(Switch!$D$35,$F$2:$G$43,2,FALSE)+ROW()-2))=Switch!$D$35,INDIRECT(\"a\" & (VLOOKUP(Switch!$D$35,$F$2:$G$43,2,FALSE)+ROW()-2)),\"\")","v":{"$error":"#N/A"}},{"$f":"IF(INDIRECT(\"c\" & (VLOOKUP(Switch!$D$36,$F$2:$G$43,2,FALSE)+ROW()-2))=Switch!$D$36,INDIRECT(\"a\" & (VLOOKUP(Switch!$D$36,$F$2:$G$43,2,FALSE)+ROW()-2)),\"\")","v":{"$error":"#N/A"}},{"$f":"IF(INDIRECT(\"c\" & (VLOOKUP(Switch!$D$37,$F$2:$G$43,2,FALSE)+ROW()-2))=Switch!$D$37,INDIRECT(\"a\" & (VLOOKUP(Switch!$D$37,$F$2:$G$43,2,FALSE)+ROW()-2)),\"\")","v":{"$error":"#N/A"}},{"$f":"IF(INDIRECT(\"c\" & (VLOOKUP(Switch!$D$38,$F$2:$G$43,2,FALSE)+ROW()-2))=Switch!$D$38,INDIRECT(\"a\" & (VLOOKUP(Switch!$D$38,$F$2:$G$43,2,FALSE)+ROW()-2)),\"\")","v":{"$error":"#N/A"}},{"$f":"IF(INDIRECT(\"c\" & (VLOOKUP(Switch!$D$39,$F$2:$G$43,2,FALSE)+ROW()-2))=Switch!$D$39,INDIRECT(\"a\" & (VLOOKUP(Switch!$D$39,$F$2:$G$43,2,FALSE)+ROW()-2)),\"\")","v":{"$error":"#N/A"}},{"$f":"IF(INDIRECT(\"c\" & (VLOOKUP(Switch!$D$40,$F$2:$G$43,2,FALSE)+ROW()-2))=Switch!$D$40,INDIRECT(\"a\" & (VLOOKUP(Switch!$D$40,$F$2:$G$43,2,FALSE)+ROW()-2)),\"\")","v":{"$error":"#N/A"}},{"$f":"IF(INDIRECT(\"c\" & (VLOOKUP(Switch!$D$52,$F$2:$G$43,2,FALSE)+ROW()-2))=Switch!$D$52,INDIRECT(\"a\" & (VLOOKUP(Switch!$D$52,$F$2:$G$43,2,FALSE)+ROW()-2)),\"\")","v":{"$error":"#N/A"}},{"$f":"IF(INDIRECT(\"c\" & (VLOOKUP(Switch!$D$53,$F$2:$G$43,2,FALSE)+ROW()-2))=Switch!$D$53,INDIRECT(\"a\" & (VLOOKUP(Switch!$D$53,$F$2:$G$43,2,FALSE)+ROW()-2)),\"\")","v":{"$error":"#N/A"}},{"$f":"IF(INDIRECT(\"c\" & (VLOOKUP(Switch!$D$54,$F$2:$G$43,2,FALSE)+ROW()-2))=Switch!$D$54,INDIRECT(\"a\" & (VLOOKUP(Switch!$D$54,$F$2:$G$43,2,FALSE)+ROW()-2)),\"\")","v":{"$error":"#N/A"}},{"$f":"IF(INDIRECT(\"c\" & (VLOOKUP(Switch!$D$55,$F$2:$G$43,2,FALSE)+ROW()-2))=Switch!$D$55,INDIRECT(\"a\" & (VLOOKUP(Switch!$D$55,$F$2:$G$43,2,FALSE)+ROW()-2)),\"\")","v":{"$error":"#N/A"}},{"$f":"IF(INDIRECT(\"c\" & (VLOOKUP(Switch!$D$56,$F$2:$G$43,2,FALSE)+ROW()-2))=Switch!$D$56,INDIRECT(\"a\" & (VLOOKUP(Switch!$D$56,$F$2:$G$43,2,FALSE)+ROW()-2)),\"\")","v":{"$error":"#N/A"}},{"$f":"IF(INDIRECT(\"c\" & (VLOOKUP(Switch!$D$57,$F$2:$G$43,2,FALSE)+ROW()-2))=Switch!$D$57,INDIRECT(\"a\" & (VLOOKUP(Switch!$D$57,$F$2:$G$43,2,FALSE)+ROW()-2)),\"\")","v":{"$error":"#N/A"}},{"$f":"IF(INDIRECT(\"c\" & (VLOOKUP(Switch!$D$58,$F$2:$G$43,2,FALSE)+ROW()-2))=Switch!$D$58,INDIRECT(\"a\" & (VLOOKUP(Switch!$D$58,$F$2:$G$43,2,FALSE)+ROW()-2)),\"\")","v":{"$error":"#N/A"}},{"$f":"IF(INDIRECT(\"c\" & (VLOOKUP(Switch!$D$59,$F$2:$G$43,2,FALSE)+ROW()-2))=Switch!$D$59,INDIRECT(\"a\" & (VLOOKUP(Switch!$D$59,$F$2:$G$43,2,FALSE)+ROW()-2)),\"\")","v":{"$error":"#N/A"}},{"$f":"IF(INDIRECT(\"c\" & (VLOOKUP(Switch!$D$60,$F$2:$G$43,2,FALSE)+ROW()-2))=Switch!$D$60,INDIRECT(\"a\" & (VLOOKUP(Switch!$D$60,$F$2:$G$43,2,FALSE)+ROW()-2)),\"\")","v":{"$error":"#N/A"}},{"$f":"IF(INDIRECT(\"c\" & (VLOOKUP(Switch!$D$61,$F$2:$G$43,2,FALSE)+ROW()-2))=Switch!$D$61,INDIRECT(\"a\" & (VLOOKUP(Switch!$D$61,$F$2:$G$43,2,FALSE)+ROW()-2)),\"\")","v":{"$error":"#N/A"}},{"$f":"IF(INDIRECT(\"c\" & (VLOOKUP(Switch!$D$62,$F$2:$G$43,2,FALSE)+ROW()-2))=Switch!$D$62,INDIRECT(\"a\" & (VLOOKUP(Switch!$D$62,$F$2:$G$43,2,FALSE)+ROW()-2)),\"\")","v":{"$error":"#N/A"}},{"$f":"IF(INDIRECT(\"c\" & (VLOOKUP(Switch!$D$63,$F$2:$G$43,2,FALSE)+ROW()-2))=Switch!$D$63,INDIRECT(\"a\" & (VLOOKUP(Switch!$D$63,$F$2:$G$43,2,FALSE)+ROW()-2)),\"\")","v":{"$error":"#N/A"}},{"$f":"IF(INDIRECT(\"c\" & (VLOOKUP(Switch!$D$64,$F$2:$G$43,2,FALSE)+ROW()-2))=Switch!$D$64,INDIRECT(\"a\" & (VLOOKUP(Switch!$D$64,$F$2:$G$43,2,FALSE)+ROW()-2)),\"\")","v":{"$error":"#N/A"}},{"$f":"IF(INDIRECT(\"c\" & (VLOOKUP(Switch!$D$65,$F$2:$G$43,2,FALSE)+ROW()-2))=Switch!$D$65,INDIRECT(\"a\" & (VLOOKUP(Switch!$D$65,$F$2:$G$43,2,FALSE)+ROW()-2)),\"\")","v":{"$error":"#N/A"}},{"$f":"IF(INDIRECT(\"c\" & (VLOOKUP(Switch!$D$66,$F$2:$G$43,2,FALSE)+ROW()-2))=Switch!$D$66,INDIRECT(\"a\" & (VLOOKUP(Switch!$D$66,$F$2:$G$43,2,FALSE)+ROW()-2)),\"\")","v":{"$error":"#N/A"}}]
["SIM Balanced Fund B3","SBCB3","Sanlam Collective Investments",{"$f":"ROW()","v":532},null,null,{"$f":"VLOOKUP(F532,$C$2:$D$637,2,FALSE)","v":{"$error":"#N/A"}},{"$f":"IF(INDIRECT(\"c\" & (VLOOKUP(Switch!$D$26,$F$2:$G$43,2,FALSE)+ROW()-2))=Switch!$D$26,INDIRECT(\"a\" & (VLOOKUP(Switch!$D$26,$F$2:$G$43,2,FALSE)+ROW()-2)),\"\")","v":{"$error":"#N/A"}},{"$f":"IF(INDIRECT(\"c\" & (VLOOKUP(Switch!$D$27,$F$2:$G$43,2,FALSE)+ROW()-2))=Switch!$D$27,INDIRECT(\"a\" & (VLOOKUP(Switch!$D$27,$F$2:$G$43,2,FALSE)+ROW()-2)),\"\")","v":{"$error":"#N/A"}},{"$f":"IF(INDIRECT(\"c\" & (VLOOKUP(Switch!$D$28,$F$2:$G$43,2,FALSE)+ROW()-2))=Switch!$D$28,INDIRECT(\"a\" & (VLOOKUP(Switch!$D$28,$F$2:$G$43,2,FALSE)+ROW()-2)),\"\")","v":{"$error":"#N/A"}},{"$f":"IF(INDIRECT(\"c\" & (VLOOKUP(Switch!$D$29,$F$2:$G$43,2,FALSE)+ROW()-2))=Switch!$D$29,INDIRECT(\"a\" & (VLOOKUP(Switch!$D$29,$F$2:$G$43,2,FALSE)+ROW()-2)),\"\")","v":{"$error":"#N/A"}},{"$f":"IF(INDIRECT(\"c\" & (VLOOKUP(Switch!$D$30,$F$2:$G$43,2,FALSE)+ROW()-2))=Switch!$D$30,INDIRECT(\"a\" & (VLOOKUP(Switch!$D$30,$F$2:$G$43,2,FALSE)+ROW()-2)),\"\")","v":{"$error":"#N/A"}},{"$f":"IF(INDIRECT(\"c\" & (VLOOKUP(Switch!$D$31,$F$2:$G$43,2,FALSE)+ROW()-2))=Switch!$D$31,INDIRECT(\"a\" & (VLOOKUP(Switch!$D$31,$F$2:$G$43,2,FALSE)+ROW()-2)),\"\")","v":{"$error":"#N/A"}},{"$f":"IF(INDIRECT(\"c\" & (VLOOKUP(Switch!$D$32,$F$2:$G$43,2,FALSE)+ROW()-2))=Switch!$D$32,INDIRECT(\"a\" & (VLOOKUP(Switch!$D$32,$F$2:$G$43,2,FALSE)+ROW()-2)),\"\")","v":{"$error":"#N/A"}},{"$f":"IF(INDIRECT(\"c\" & (VLOOKUP(Switch!$D$33,$F$2:$G$43,2,FALSE)+ROW()-2))=Switch!$D$33,INDIRECT(\"a\" & (VLOOKUP(Switch!$D$33,$F$2:$G$43,2,FALSE)+ROW()-2)),\"\")","v":{"$error":"#N/A"}},{"$f":"IF(INDIRECT(\"c\" & (VLOOKUP(Switch!$D$34,$F$2:$G$43,2,FALSE)+ROW()-2))=Switch!$D$34,INDIRECT(\"a\" & (VLOOKUP(Switch!$D$34,$F$2:$G$43,2,FALSE)+ROW()-2)),\"\")","v":{"$error":"#N/A"}},{"$f":"IF(INDIRECT(\"c\" & (VLOOKUP(Switch!$D$35,$F$2:$G$43,2,FALSE)+ROW()-2))=Switch!$D$35,INDIRECT(\"a\" & (VLOOKUP(Switch!$D$35,$F$2:$G$43,2,FALSE)+ROW()-2)),\"\")","v":{"$error":"#N/A"}},{"$f":"IF(INDIRECT(\"c\" & (VLOOKUP(Switch!$D$36,$F$2:$G$43,2,FALSE)+ROW()-2))=Switch!$D$36,INDIRECT(\"a\" & (VLOOKUP(Switch!$D$36,$F$2:$G$43,2,FALSE)+ROW()-2)),\"\")","v":{"$error":"#N/A"}},{"$f":"IF(INDIRECT(\"c\" & (VLOOKUP(Switch!$D$37,$F$2:$G$43,2,FALSE)+ROW()-2))=Switch!$D$37,INDIRECT(\"a\" & (VLOOKUP(Switch!$D$37,$F$2:$G$43,2,FALSE)+ROW()-2)),\"\")","v":{"$error":"#N/A"}},{"$f":"IF(INDIRECT(\"c\" & (VLOOKUP(Switch!$D$38,$F$2:$G$43,2,FALSE)+ROW()-2))=Switch!$D$38,INDIRECT(\"a\" & (VLOOKUP(Switch!$D$38,$F$2:$G$43,2,FALSE)+ROW()-2)),\"\")","v":{"$error":"#N/A"}},{"$f":"IF(INDIRECT(\"c\" & (VLOOKUP(Switch!$D$39,$F$2:$G$43,2,FALSE)+ROW()-2))=Switch!$D$39,INDIRECT(\"a\" & (VLOOKUP(Switch!$D$39,$F$2:$G$43,2,FALSE)+ROW()-2)),\"\")","v":{"$error":"#N/A"}},{"$f":"IF(INDIRECT(\"c\" & (VLOOKUP(Switch!$D$40,$F$2:$G$43,2,FALSE)+ROW()-2))=Switch!$D$40,INDIRECT(\"a\" & (VLOOKUP(Switch!$D$40,$F$2:$G$43,2,FALSE)+ROW()-2)),\"\")","v":{"$error":"#N/A"}},{"$f":"IF(INDIRECT(\"c\" & (VLOOKUP(Switch!$D$52,$F$2:$G$43,2,FALSE)+ROW()-2))=Switch!$D$52,INDIRECT(\"a\" & (VLOOKUP(Switch!$D$52,$F$2:$G$43,2,FALSE)+ROW()-2)),\"\")","v":{"$error":"#N/A"}},{"$f":"IF(INDIRECT(\"c\" & (VLOOKUP(Switch!$D$53,$F$2:$G$43,2,FALSE)+ROW()-2))=Switch!$D$53,INDIRECT(\"a\" & (VLOOKUP(Switch!$D$53,$F$2:$G$43,2,FALSE)+ROW()-2)),\"\")","v":{"$error":"#N/A"}},{"$f":"IF(INDIRECT(\"c\" & (VLOOKUP(Switch!$D$54,$F$2:$G$43,2,FALSE)+ROW()-2))=Switch!$D$54,INDIRECT(\"a\" & (VLOOKUP(Switch!$D$54,$F$2:$G$43,2,FALSE)+ROW()-2)),\"\")","v":{"$error":"#N/A"}},{"$f":"IF(INDIRECT(\"c\" & (VLOOKUP(Switch!$D$55,$F$2:$G$43,2,FALSE)+ROW()-2))=Switch!$D$55,INDIRECT(\"a\" & (VLOOKUP(Switch!$D$55,$F$2:$G$43,2,FALSE)+ROW()-2)),\"\")","v":{"$error":"#N/A"}},{"$f":"IF(INDIRECT(\"c\" & (VLOOKUP(Switch!$D$56,$F$2:$G$43,2,FALSE)+ROW()-2))=Switch!$D$56,INDIRECT(\"a\" & (VLOOKUP(Switch!$D$56,$F$2:$G$43,2,FALSE)+ROW()-2)),\"\")","v":{"$error":"#N/A"}},{"$f":"IF(INDIRECT(\"c\" & (VLOOKUP(Switch!$D$57,$F$2:$G$43,2,FALSE)+ROW()-2))=Switch!$D$57,INDIRECT(\"a\" & (VLOOKUP(Switch!$D$57,$F$2:$G$43,2,FALSE)+ROW()-2)),\"\")","v":{"$error":"#N/A"}},{"$f":"IF(INDIRECT(\"c\" & (VLOOKUP(Switch!$D$58,$F$2:$G$43,2,FALSE)+ROW()-2))=Switch!$D$58,INDIRECT(\"a\" & (VLOOKUP(Switch!$D$58,$F$2:$G$43,2,FALSE)+ROW()-2)),\"\")","v":{"$error":"#N/A"}},{"$f":"IF(INDIRECT(\"c\" & (VLOOKUP(Switch!$D$59,$F$2:$G$43,2,FALSE)+ROW()-2))=Switch!$D$59,INDIRECT(\"a\" & (VLOOKUP(Switch!$D$59,$F$2:$G$43,2,FALSE)+ROW()-2)),\"\")","v":{"$error":"#N/A"}},{"$f":"IF(INDIRECT(\"c\" & (VLOOKUP(Switch!$D$60,$F$2:$G$43,2,FALSE)+ROW()-2))=Switch!$D$60,INDIRECT(\"a\" & (VLOOKUP(Switch!$D$60,$F$2:$G$43,2,FALSE)+ROW()-2)),\"\")","v":{"$error":"#N/A"}},{"$f":"IF(INDIRECT(\"c\" & (VLOOKUP(Switch!$D$61,$F$2:$G$43,2,FALSE)+ROW()-2))=Switch!$D$61,INDIRECT(\"a\" & (VLOOKUP(Switch!$D$61,$F$2:$G$43,2,FALSE)+ROW()-2)),\"\")","v":{"$error":"#N/A"}},{"$f":"IF(INDIRECT(\"c\" & (VLOOKUP(Switch!$D$62,$F$2:$G$43,2,FALSE)+ROW()-2))=Switch!$D$62,INDIRECT(\"a\" & (VLOOKUP(Switch!$D$62,$F$2:$G$43,2,FALSE)+ROW()-2)),\"\")","v":{"$error":"#N/A"}},{"$f":"IF(INDIRECT(\"c\" & (VLOOKUP(Switch!$D$63,$F$2:$G$43,2,FALSE)+ROW()-2))=Switch!$D$63,INDIRECT(\"a\" & (VLOOKUP(Switch!$D$63,$F$2:$G$43,2,FALSE)+ROW()-2)),\"\")","v":{"$error":"#N/A"}},{"$f":"IF(INDIRECT(\"c\" & (VLOOKUP(Switch!$D$64,$F$2:$G$43,2,FALSE)+ROW()-2))=Switch!$D$64,INDIRECT(\"a\" & (VLOOKUP(Switch!$D$64,$F$2:$G$43,2,FALSE)+ROW()-2)),\"\")","v":{"$error":"#N/A"}},{"$f":"IF(INDIRECT(\"c\" & (VLOOKUP(Switch!$D$65,$F$2:$G$43,2,FALSE)+ROW()-2))=Switch!$D$65,INDIRECT(\"a\" & (VLOOKUP(Switch!$D$65,$F$2:$G$43,2,FALSE)+ROW()-2)),\"\")","v":{"$error":"#N/A"}},{"$f":"IF(INDIRECT(\"c\" & (VLOOKUP(Switch!$D$66,$F$2:$G$43,2,FALSE)+ROW()-2))=Switch!$D$66,INDIRECT(\"a\" & (VLOOKUP(Switch!$D$66,$F$2:$G$43,2,FALSE)+ROW()-2)),\"\")","v":{"$error":"#N/A"}}]
["SIM Bond Plus Fund","SNGF","Sanlam Collective Investments",{"$f":"ROW()","v":533},null,null,{"$f":"VLOOKUP(F533,$C$2:$D$637,2,FALSE)","v":{"$error":"#N/A"}},{"$f":"IF(INDIRECT(\"c\" & (VLOOKUP(Switch!$D$26,$F$2:$G$43,2,FALSE)+ROW()-2))=Switch!$D$26,INDIRECT(\"a\" & (VLOOKUP(Switch!$D$26,$F$2:$G$43,2,FALSE)+ROW()-2)),\"\")","v":{"$error":"#N/A"}},{"$f":"IF(INDIRECT(\"c\" & (VLOOKUP(Switch!$D$27,$F$2:$G$43,2,FALSE)+ROW()-2))=Switch!$D$27,INDIRECT(\"a\" & (VLOOKUP(Switch!$D$27,$F$2:$G$43,2,FALSE)+ROW()-2)),\"\")","v":{"$error":"#N/A"}},{"$f":"IF(INDIRECT(\"c\" & (VLOOKUP(Switch!$D$28,$F$2:$G$43,2,FALSE)+ROW()-2))=Switch!$D$28,INDIRECT(\"a\" & (VLOOKUP(Switch!$D$28,$F$2:$G$43,2,FALSE)+ROW()-2)),\"\")","v":{"$error":"#N/A"}},{"$f":"IF(INDIRECT(\"c\" & (VLOOKUP(Switch!$D$29,$F$2:$G$43,2,FALSE)+ROW()-2))=Switch!$D$29,INDIRECT(\"a\" & (VLOOKUP(Switch!$D$29,$F$2:$G$43,2,FALSE)+ROW()-2)),\"\")","v":{"$error":"#N/A"}},{"$f":"IF(INDIRECT(\"c\" & (VLOOKUP(Switch!$D$30,$F$2:$G$43,2,FALSE)+ROW()-2))=Switch!$D$30,INDIRECT(\"a\" & (VLOOKUP(Switch!$D$30,$F$2:$G$43,2,FALSE)+ROW()-2)),\"\")","v":{"$error":"#N/A"}},{"$f":"IF(INDIRECT(\"c\" & (VLOOKUP(Switch!$D$31,$F$2:$G$43,2,FALSE)+ROW()-2))=Switch!$D$31,INDIRECT(\"a\" & (VLOOKUP(Switch!$D$31,$F$2:$G$43,2,FALSE)+ROW()-2)),\"\")","v":{"$error":"#N/A"}},{"$f":"IF(INDIRECT(\"c\" & (VLOOKUP(Switch!$D$32,$F$2:$G$43,2,FALSE)+ROW()-2))=Switch!$D$32,INDIRECT(\"a\" & (VLOOKUP(Switch!$D$32,$F$2:$G$43,2,FALSE)+ROW()-2)),\"\")","v":{"$error":"#N/A"}},{"$f":"IF(INDIRECT(\"c\" & (VLOOKUP(Switch!$D$33,$F$2:$G$43,2,FALSE)+ROW()-2))=Switch!$D$33,INDIRECT(\"a\" & (VLOOKUP(Switch!$D$33,$F$2:$G$43,2,FALSE)+ROW()-2)),\"\")","v":{"$error":"#N/A"}},{"$f":"IF(INDIRECT(\"c\" & (VLOOKUP(Switch!$D$34,$F$2:$G$43,2,FALSE)+ROW()-2))=Switch!$D$34,INDIRECT(\"a\" & (VLOOKUP(Switch!$D$34,$F$2:$G$43,2,FALSE)+ROW()-2)),\"\")","v":{"$error":"#N/A"}},{"$f":"IF(INDIRECT(\"c\" & (VLOOKUP(Switch!$D$35,$F$2:$G$43,2,FALSE)+ROW()-2))=Switch!$D$35,INDIRECT(\"a\" & (VLOOKUP(Switch!$D$35,$F$2:$G$43,2,FALSE)+ROW()-2)),\"\")","v":{"$error":"#N/A"}},{"$f":"IF(INDIRECT(\"c\" & (VLOOKUP(Switch!$D$36,$F$2:$G$43,2,FALSE)+ROW()-2))=Switch!$D$36,INDIRECT(\"a\" & (VLOOKUP(Switch!$D$36,$F$2:$G$43,2,FALSE)+ROW()-2)),\"\")","v":{"$error":"#N/A"}},{"$f":"IF(INDIRECT(\"c\" & (VLOOKUP(Switch!$D$37,$F$2:$G$43,2,FALSE)+ROW()-2))=Switch!$D$37,INDIRECT(\"a\" & (VLOOKUP(Switch!$D$37,$F$2:$G$43,2,FALSE)+ROW()-2)),\"\")","v":{"$error":"#N/A"}},{"$f":"IF(INDIRECT(\"c\" & (VLOOKUP(Switch!$D$38,$F$2:$G$43,2,FALSE)+ROW()-2))=Switch!$D$38,INDIRECT(\"a\" & (VLOOKUP(Switch!$D$38,$F$2:$G$43,2,FALSE)+ROW()-2)),\"\")","v":{"$error":"#N/A"}},{"$f":"IF(INDIRECT(\"c\" & (VLOOKUP(Switch!$D$39,$F$2:$G$43,2,FALSE)+ROW()-2))=Switch!$D$39,INDIRECT(\"a\" & (VLOOKUP(Switch!$D$39,$F$2:$G$43,2,FALSE)+ROW()-2)),\"\")","v":{"$error":"#N/A"}},{"$f":"IF(INDIRECT(\"c\" & (VLOOKUP(Switch!$D$40,$F$2:$G$43,2,FALSE)+ROW()-2))=Switch!$D$40,INDIRECT(\"a\" & (VLOOKUP(Switch!$D$40,$F$2:$G$43,2,FALSE)+ROW()-2)),\"\")","v":{"$error":"#N/A"}},{"$f":"IF(INDIRECT(\"c\" & (VLOOKUP(Switch!$D$52,$F$2:$G$43,2,FALSE)+ROW()-2))=Switch!$D$52,INDIRECT(\"a\" & (VLOOKUP(Switch!$D$52,$F$2:$G$43,2,FALSE)+ROW()-2)),\"\")","v":{"$error":"#N/A"}},{"$f":"IF(INDIRECT(\"c\" & (VLOOKUP(Switch!$D$53,$F$2:$G$43,2,FALSE)+ROW()-2))=Switch!$D$53,INDIRECT(\"a\" & (VLOOKUP(Switch!$D$53,$F$2:$G$43,2,FALSE)+ROW()-2)),\"\")","v":{"$error":"#N/A"}},{"$f":"IF(INDIRECT(\"c\" & (VLOOKUP(Switch!$D$54,$F$2:$G$43,2,FALSE)+ROW()-2))=Switch!$D$54,INDIRECT(\"a\" & (VLOOKUP(Switch!$D$54,$F$2:$G$43,2,FALSE)+ROW()-2)),\"\")","v":{"$error":"#N/A"}},{"$f":"IF(INDIRECT(\"c\" & (VLOOKUP(Switch!$D$55,$F$2:$G$43,2,FALSE)+ROW()-2))=Switch!$D$55,INDIRECT(\"a\" & (VLOOKUP(Switch!$D$55,$F$2:$G$43,2,FALSE)+ROW()-2)),\"\")","v":{"$error":"#N/A"}},{"$f":"IF(INDIRECT(\"c\" & (VLOOKUP(Switch!$D$56,$F$2:$G$43,2,FALSE)+ROW()-2))=Switch!$D$56,INDIRECT(\"a\" & (VLOOKUP(Switch!$D$56,$F$2:$G$43,2,FALSE)+ROW()-2)),\"\")","v":{"$error":"#N/A"}},{"$f":"IF(INDIRECT(\"c\" & (VLOOKUP(Switch!$D$57,$F$2:$G$43,2,FALSE)+ROW()-2))=Switch!$D$57,INDIRECT(\"a\" & (VLOOKUP(Switch!$D$57,$F$2:$G$43,2,FALSE)+ROW()-2)),\"\")","v":{"$error":"#N/A"}},{"$f":"IF(INDIRECT(\"c\" & (VLOOKUP(Switch!$D$58,$F$2:$G$43,2,FALSE)+ROW()-2))=Switch!$D$58,INDIRECT(\"a\" & (VLOOKUP(Switch!$D$58,$F$2:$G$43,2,FALSE)+ROW()-2)),\"\")","v":{"$error":"#N/A"}},{"$f":"IF(INDIRECT(\"c\" & (VLOOKUP(Switch!$D$59,$F$2:$G$43,2,FALSE)+ROW()-2))=Switch!$D$59,INDIRECT(\"a\" & (VLOOKUP(Switch!$D$59,$F$2:$G$43,2,FALSE)+ROW()-2)),\"\")","v":{"$error":"#N/A"}},{"$f":"IF(INDIRECT(\"c\" & (VLOOKUP(Switch!$D$60,$F$2:$G$43,2,FALSE)+ROW()-2))=Switch!$D$60,INDIRECT(\"a\" & (VLOOKUP(Switch!$D$60,$F$2:$G$43,2,FALSE)+ROW()-2)),\"\")","v":{"$error":"#N/A"}},{"$f":"IF(INDIRECT(\"c\" & (VLOOKUP(Switch!$D$61,$F$2:$G$43,2,FALSE)+ROW()-2))=Switch!$D$61,INDIRECT(\"a\" & (VLOOKUP(Switch!$D$61,$F$2:$G$43,2,FALSE)+ROW()-2)),\"\")","v":{"$error":"#N/A"}},{"$f":"IF(INDIRECT(\"c\" & (VLOOKUP(Switch!$D$62,$F$2:$G$43,2,FALSE)+ROW()-2))=Switch!$D$62,INDIRECT(\"a\" & (VLOOKUP(Switch!$D$62,$F$2:$G$43,2,FALSE)+ROW()-2)),\"\")","v":{"$error":"#N/A"}},{"$f":"IF(INDIRECT(\"c\" & (VLOOKUP(Switch!$D$63,$F$2:$G$43,2,FALSE)+ROW()-2))=Switch!$D$63,INDIRECT(\"a\" & (VLOOKUP(Switch!$D$63,$F$2:$G$43,2,FALSE)+ROW()-2)),\"\")","v":{"$error":"#N/A"}},{"$f":"IF(INDIRECT(\"c\" & (VLOOKUP(Switch!$D$64,$F$2:$G$43,2,FALSE)+ROW()-2))=Switch!$D$64,INDIRECT(\"a\" & (VLOOKUP(Switch!$D$64,$F$2:$G$43,2,FALSE)+ROW()-2)),\"\")","v":{"$error":"#N/A"}},{"$f":"IF(INDIRECT(\"c\" & (VLOOKUP(Switch!$D$65,$F$2:$G$43,2,FALSE)+ROW()-2))=Switch!$D$65,INDIRECT(\"a\" & (VLOOKUP(Switch!$D$65,$F$2:$G$43,2,FALSE)+ROW()-2)),\"\")","v":{"$error":"#N/A"}},{"$f":"IF(INDIRECT(\"c\" & (VLOOKUP(Switch!$D$66,$F$2:$G$43,2,FALSE)+ROW()-2))=Switch!$D$66,INDIRECT(\"a\" & (VLOOKUP(Switch!$D$66,$F$2:$G$43,2,FALSE)+ROW()-2)),\"\")","v":{"$error":"#N/A"}}]
["SIM Enhanced Yield Fund B1","SEYB1","Sanlam Collective Investments",{"$f":"ROW()","v":534},null,null,{"$f":"VLOOKUP(F534,$C$2:$D$637,2,FALSE)","v":{"$error":"#N/A"}},{"$f":"IF(INDIRECT(\"c\" & (VLOOKUP(Switch!$D$26,$F$2:$G$43,2,FALSE)+ROW()-2))=Switch!$D$26,INDIRECT(\"a\" & (VLOOKUP(Switch!$D$26,$F$2:$G$43,2,FALSE)+ROW()-2)),\"\")","v":{"$error":"#N/A"}},{"$f":"IF(INDIRECT(\"c\" & (VLOOKUP(Switch!$D$27,$F$2:$G$43,2,FALSE)+ROW()-2))=Switch!$D$27,INDIRECT(\"a\" & (VLOOKUP(Switch!$D$27,$F$2:$G$43,2,FALSE)+ROW()-2)),\"\")","v":{"$error":"#N/A"}},{"$f":"IF(INDIRECT(\"c\" & (VLOOKUP(Switch!$D$28,$F$2:$G$43,2,FALSE)+ROW()-2))=Switch!$D$28,INDIRECT(\"a\" & (VLOOKUP(Switch!$D$28,$F$2:$G$43,2,FALSE)+ROW()-2)),\"\")","v":{"$error":"#N/A"}},{"$f":"IF(INDIRECT(\"c\" & (VLOOKUP(Switch!$D$29,$F$2:$G$43,2,FALSE)+ROW()-2))=Switch!$D$29,INDIRECT(\"a\" & (VLOOKUP(Switch!$D$29,$F$2:$G$43,2,FALSE)+ROW()-2)),\"\")","v":{"$error":"#N/A"}},{"$f":"IF(INDIRECT(\"c\" & (VLOOKUP(Switch!$D$30,$F$2:$G$43,2,FALSE)+ROW()-2))=Switch!$D$30,INDIRECT(\"a\" & (VLOOKUP(Switch!$D$30,$F$2:$G$43,2,FALSE)+ROW()-2)),\"\")","v":{"$error":"#N/A"}},{"$f":"IF(INDIRECT(\"c\" & (VLOOKUP(Switch!$D$31,$F$2:$G$43,2,FALSE)+ROW()-2))=Switch!$D$31,INDIRECT(\"a\" & (VLOOKUP(Switch!$D$31,$F$2:$G$43,2,FALSE)+ROW()-2)),\"\")","v":{"$error":"#N/A"}},{"$f":"IF(INDIRECT(\"c\" & (VLOOKUP(Switch!$D$32,$F$2:$G$43,2,FALSE)+ROW()-2))=Switch!$D$32,INDIRECT(\"a\" & (VLOOKUP(Switch!$D$32,$F$2:$G$43,2,FALSE)+ROW()-2)),\"\")","v":{"$error":"#N/A"}},{"$f":"IF(INDIRECT(\"c\" & (VLOOKUP(Switch!$D$33,$F$2:$G$43,2,FALSE)+ROW()-2))=Switch!$D$33,INDIRECT(\"a\" & (VLOOKUP(Switch!$D$33,$F$2:$G$43,2,FALSE)+ROW()-2)),\"\")","v":{"$error":"#N/A"}},{"$f":"IF(INDIRECT(\"c\" & (VLOOKUP(Switch!$D$34,$F$2:$G$43,2,FALSE)+ROW()-2))=Switch!$D$34,INDIRECT(\"a\" & (VLOOKUP(Switch!$D$34,$F$2:$G$43,2,FALSE)+ROW()-2)),\"\")","v":{"$error":"#N/A"}},{"$f":"IF(INDIRECT(\"c\" & (VLOOKUP(Switch!$D$35,$F$2:$G$43,2,FALSE)+ROW()-2))=Switch!$D$35,INDIRECT(\"a\" & (VLOOKUP(Switch!$D$35,$F$2:$G$43,2,FALSE)+ROW()-2)),\"\")","v":{"$error":"#N/A"}},{"$f":"IF(INDIRECT(\"c\" & (VLOOKUP(Switch!$D$36,$F$2:$G$43,2,FALSE)+ROW()-2))=Switch!$D$36,INDIRECT(\"a\" & (VLOOKUP(Switch!$D$36,$F$2:$G$43,2,FALSE)+ROW()-2)),\"\")","v":{"$error":"#N/A"}},{"$f":"IF(INDIRECT(\"c\" & (VLOOKUP(Switch!$D$37,$F$2:$G$43,2,FALSE)+ROW()-2))=Switch!$D$37,INDIRECT(\"a\" & (VLOOKUP(Switch!$D$37,$F$2:$G$43,2,FALSE)+ROW()-2)),\"\")","v":{"$error":"#N/A"}},{"$f":"IF(INDIRECT(\"c\" & (VLOOKUP(Switch!$D$38,$F$2:$G$43,2,FALSE)+ROW()-2))=Switch!$D$38,INDIRECT(\"a\" & (VLOOKUP(Switch!$D$38,$F$2:$G$43,2,FALSE)+ROW()-2)),\"\")","v":{"$error":"#N/A"}},{"$f":"IF(INDIRECT(\"c\" & (VLOOKUP(Switch!$D$39,$F$2:$G$43,2,FALSE)+ROW()-2))=Switch!$D$39,INDIRECT(\"a\" & (VLOOKUP(Switch!$D$39,$F$2:$G$43,2,FALSE)+ROW()-2)),\"\")","v":{"$error":"#N/A"}},{"$f":"IF(INDIRECT(\"c\" & (VLOOKUP(Switch!$D$40,$F$2:$G$43,2,FALSE)+ROW()-2))=Switch!$D$40,INDIRECT(\"a\" & (VLOOKUP(Switch!$D$40,$F$2:$G$43,2,FALSE)+ROW()-2)),\"\")","v":{"$error":"#N/A"}},{"$f":"IF(INDIRECT(\"c\" & (VLOOKUP(Switch!$D$52,$F$2:$G$43,2,FALSE)+ROW()-2))=Switch!$D$52,INDIRECT(\"a\" & (VLOOKUP(Switch!$D$52,$F$2:$G$43,2,FALSE)+ROW()-2)),\"\")","v":{"$error":"#N/A"}},{"$f":"IF(INDIRECT(\"c\" & (VLOOKUP(Switch!$D$53,$F$2:$G$43,2,FALSE)+ROW()-2))=Switch!$D$53,INDIRECT(\"a\" & (VLOOKUP(Switch!$D$53,$F$2:$G$43,2,FALSE)+ROW()-2)),\"\")","v":{"$error":"#N/A"}},{"$f":"IF(INDIRECT(\"c\" & (VLOOKUP(Switch!$D$54,$F$2:$G$43,2,FALSE)+ROW()-2))=Switch!$D$54,INDIRECT(\"a\" & (VLOOKUP(Switch!$D$54,$F$2:$G$43,2,FALSE)+ROW()-2)),\"\")","v":{"$error":"#N/A"}},{"$f":"IF(INDIRECT(\"c\" & (VLOOKUP(Switch!$D$55,$F$2:$G$43,2,FALSE)+ROW()-2))=Switch!$D$55,INDIRECT(\"a\" & (VLOOKUP(Switch!$D$55,$F$2:$G$43,2,FALSE)+ROW()-2)),\"\")","v":{"$error":"#N/A"}},{"$f":"IF(INDIRECT(\"c\" & (VLOOKUP(Switch!$D$56,$F$2:$G$43,2,FALSE)+ROW()-2))=Switch!$D$56,INDIRECT(\"a\" & (VLOOKUP(Switch!$D$56,$F$2:$G$43,2,FALSE)+ROW()-2)),\"\")","v":{"$error":"#N/A"}},{"$f":"IF(INDIRECT(\"c\" & (VLOOKUP(Switch!$D$57,$F$2:$G$43,2,FALSE)+ROW()-2))=Switch!$D$57,INDIRECT(\"a\" & (VLOOKUP(Switch!$D$57,$F$2:$G$43,2,FALSE)+ROW()-2)),\"\")","v":{"$error":"#N/A"}},{"$f":"IF(INDIRECT(\"c\" & (VLOOKUP(Switch!$D$58,$F$2:$G$43,2,FALSE)+ROW()-2))=Switch!$D$58,INDIRECT(\"a\" & (VLOOKUP(Switch!$D$58,$F$2:$G$43,2,FALSE)+ROW()-2)),\"\")","v":{"$error":"#N/A"}},{"$f":"IF(INDIRECT(\"c\" & (VLOOKUP(Switch!$D$59,$F$2:$G$43,2,FALSE)+ROW()-2))=Switch!$D$59,INDIRECT(\"a\" & (VLOOKUP(Switch!$D$59,$F$2:$G$43,2,FALSE)+ROW()-2)),\"\")","v":{"$error":"#N/A"}},{"$f":"IF(INDIRECT(\"c\" & (VLOOKUP(Switch!$D$60,$F$2:$G$43,2,FALSE)+ROW()-2))=Switch!$D$60,INDIRECT(\"a\" & (VLOOKUP(Switch!$D$60,$F$2:$G$43,2,FALSE)+ROW()-2)),\"\")","v":{"$error":"#N/A"}},{"$f":"IF(INDIRECT(\"c\" & (VLOOKUP(Switch!$D$61,$F$2:$G$43,2,FALSE)+ROW()-2))=Switch!$D$61,INDIRECT(\"a\" & (VLOOKUP(Switch!$D$61,$F$2:$G$43,2,FALSE)+ROW()-2)),\"\")","v":{"$error":"#N/A"}},{"$f":"IF(INDIRECT(\"c\" & (VLOOKUP(Switch!$D$62,$F$2:$G$43,2,FALSE)+ROW()-2))=Switch!$D$62,INDIRECT(\"a\" & (VLOOKUP(Switch!$D$62,$F$2:$G$43,2,FALSE)+ROW()-2)),\"\")","v":{"$error":"#N/A"}},{"$f":"IF(INDIRECT(\"c\" & (VLOOKUP(Switch!$D$63,$F$2:$G$43,2,FALSE)+ROW()-2))=Switch!$D$63,INDIRECT(\"a\" & (VLOOKUP(Switch!$D$63,$F$2:$G$43,2,FALSE)+ROW()-2)),\"\")","v":{"$error":"#N/A"}},{"$f":"IF(INDIRECT(\"c\" & (VLOOKUP(Switch!$D$64,$F$2:$G$43,2,FALSE)+ROW()-2))=Switch!$D$64,INDIRECT(\"a\" & (VLOOKUP(Switch!$D$64,$F$2:$G$43,2,FALSE)+ROW()-2)),\"\")","v":{"$error":"#N/A"}},{"$f":"IF(INDIRECT(\"c\" & (VLOOKUP(Switch!$D$65,$F$2:$G$43,2,FALSE)+ROW()-2))=Switch!$D$65,INDIRECT(\"a\" & (VLOOKUP(Switch!$D$65,$F$2:$G$43,2,FALSE)+ROW()-2)),\"\")","v":{"$error":"#N/A"}},{"$f":"IF(INDIRECT(\"c\" & (VLOOKUP(Switch!$D$66,$F$2:$G$43,2,FALSE)+ROW()-2))=Switch!$D$66,INDIRECT(\"a\" & (VLOOKUP(Switch!$D$66,$F$2:$G$43,2,FALSE)+ROW()-2)),\"\")","v":{"$error":"#N/A"}}]
["SIM General Equity Fund B6","SGEB6","Sanlam Collective Investments",{"$f":"ROW()","v":535},null,null,{"$f":"VLOOKUP(F535,$C$2:$D$637,2,FALSE)","v":{"$error":"#N/A"}},{"$f":"IF(INDIRECT(\"c\" & (VLOOKUP(Switch!$D$26,$F$2:$G$43,2,FALSE)+ROW()-2))=Switch!$D$26,INDIRECT(\"a\" & (VLOOKUP(Switch!$D$26,$F$2:$G$43,2,FALSE)+ROW()-2)),\"\")","v":{"$error":"#N/A"}},{"$f":"IF(INDIRECT(\"c\" & (VLOOKUP(Switch!$D$27,$F$2:$G$43,2,FALSE)+ROW()-2))=Switch!$D$27,INDIRECT(\"a\" & (VLOOKUP(Switch!$D$27,$F$2:$G$43,2,FALSE)+ROW()-2)),\"\")","v":{"$error":"#N/A"}},{"$f":"IF(INDIRECT(\"c\" & (VLOOKUP(Switch!$D$28,$F$2:$G$43,2,FALSE)+ROW()-2))=Switch!$D$28,INDIRECT(\"a\" & (VLOOKUP(Switch!$D$28,$F$2:$G$43,2,FALSE)+ROW()-2)),\"\")","v":{"$error":"#N/A"}},{"$f":"IF(INDIRECT(\"c\" & (VLOOKUP(Switch!$D$29,$F$2:$G$43,2,FALSE)+ROW()-2))=Switch!$D$29,INDIRECT(\"a\" & (VLOOKUP(Switch!$D$29,$F$2:$G$43,2,FALSE)+ROW()-2)),\"\")","v":{"$error":"#N/A"}},{"$f":"IF(INDIRECT(\"c\" & (VLOOKUP(Switch!$D$30,$F$2:$G$43,2,FALSE)+ROW()-2))=Switch!$D$30,INDIRECT(\"a\" & (VLOOKUP(Switch!$D$30,$F$2:$G$43,2,FALSE)+ROW()-2)),\"\")","v":{"$error":"#N/A"}},{"$f":"IF(INDIRECT(\"c\" & (VLOOKUP(Switch!$D$31,$F$2:$G$43,2,FALSE)+ROW()-2))=Switch!$D$31,INDIRECT(\"a\" & (VLOOKUP(Switch!$D$31,$F$2:$G$43,2,FALSE)+ROW()-2)),\"\")","v":{"$error":"#N/A"}},{"$f":"IF(INDIRECT(\"c\" & (VLOOKUP(Switch!$D$32,$F$2:$G$43,2,FALSE)+ROW()-2))=Switch!$D$32,INDIRECT(\"a\" & (VLOOKUP(Switch!$D$32,$F$2:$G$43,2,FALSE)+ROW()-2)),\"\")","v":{"$error":"#N/A"}},{"$f":"IF(INDIRECT(\"c\" & (VLOOKUP(Switch!$D$33,$F$2:$G$43,2,FALSE)+ROW()-2))=Switch!$D$33,INDIRECT(\"a\" & (VLOOKUP(Switch!$D$33,$F$2:$G$43,2,FALSE)+ROW()-2)),\"\")","v":{"$error":"#N/A"}},{"$f":"IF(INDIRECT(\"c\" & (VLOOKUP(Switch!$D$34,$F$2:$G$43,2,FALSE)+ROW()-2))=Switch!$D$34,INDIRECT(\"a\" & (VLOOKUP(Switch!$D$34,$F$2:$G$43,2,FALSE)+ROW()-2)),\"\")","v":{"$error":"#N/A"}},{"$f":"IF(INDIRECT(\"c\" & (VLOOKUP(Switch!$D$35,$F$2:$G$43,2,FALSE)+ROW()-2))=Switch!$D$35,INDIRECT(\"a\" & (VLOOKUP(Switch!$D$35,$F$2:$G$43,2,FALSE)+ROW()-2)),\"\")","v":{"$error":"#N/A"}},{"$f":"IF(INDIRECT(\"c\" & (VLOOKUP(Switch!$D$36,$F$2:$G$43,2,FALSE)+ROW()-2))=Switch!$D$36,INDIRECT(\"a\" & (VLOOKUP(Switch!$D$36,$F$2:$G$43,2,FALSE)+ROW()-2)),\"\")","v":{"$error":"#N/A"}},{"$f":"IF(INDIRECT(\"c\" & (VLOOKUP(Switch!$D$37,$F$2:$G$43,2,FALSE)+ROW()-2))=Switch!$D$37,INDIRECT(\"a\" & (VLOOKUP(Switch!$D$37,$F$2:$G$43,2,FALSE)+ROW()-2)),\"\")","v":{"$error":"#N/A"}},{"$f":"IF(INDIRECT(\"c\" & (VLOOKUP(Switch!$D$38,$F$2:$G$43,2,FALSE)+ROW()-2))=Switch!$D$38,INDIRECT(\"a\" & (VLOOKUP(Switch!$D$38,$F$2:$G$43,2,FALSE)+ROW()-2)),\"\")","v":{"$error":"#N/A"}},{"$f":"IF(INDIRECT(\"c\" & (VLOOKUP(Switch!$D$39,$F$2:$G$43,2,FALSE)+ROW()-2))=Switch!$D$39,INDIRECT(\"a\" & (VLOOKUP(Switch!$D$39,$F$2:$G$43,2,FALSE)+ROW()-2)),\"\")","v":{"$error":"#N/A"}},{"$f":"IF(INDIRECT(\"c\" & (VLOOKUP(Switch!$D$40,$F$2:$G$43,2,FALSE)+ROW()-2))=Switch!$D$40,INDIRECT(\"a\" & (VLOOKUP(Switch!$D$40,$F$2:$G$43,2,FALSE)+ROW()-2)),\"\")","v":{"$error":"#N/A"}},{"$f":"IF(INDIRECT(\"c\" & (VLOOKUP(Switch!$D$52,$F$2:$G$43,2,FALSE)+ROW()-2))=Switch!$D$52,INDIRECT(\"a\" & (VLOOKUP(Switch!$D$52,$F$2:$G$43,2,FALSE)+ROW()-2)),\"\")","v":{"$error":"#N/A"}},{"$f":"IF(INDIRECT(\"c\" & (VLOOKUP(Switch!$D$53,$F$2:$G$43,2,FALSE)+ROW()-2))=Switch!$D$53,INDIRECT(\"a\" & (VLOOKUP(Switch!$D$53,$F$2:$G$43,2,FALSE)+ROW()-2)),\"\")","v":{"$error":"#N/A"}},{"$f":"IF(INDIRECT(\"c\" & (VLOOKUP(Switch!$D$54,$F$2:$G$43,2,FALSE)+ROW()-2))=Switch!$D$54,INDIRECT(\"a\" & (VLOOKUP(Switch!$D$54,$F$2:$G$43,2,FALSE)+ROW()-2)),\"\")","v":{"$error":"#N/A"}},{"$f":"IF(INDIRECT(\"c\" & (VLOOKUP(Switch!$D$55,$F$2:$G$43,2,FALSE)+ROW()-2))=Switch!$D$55,INDIRECT(\"a\" & (VLOOKUP(Switch!$D$55,$F$2:$G$43,2,FALSE)+ROW()-2)),\"\")","v":{"$error":"#N/A"}},{"$f":"IF(INDIRECT(\"c\" & (VLOOKUP(Switch!$D$56,$F$2:$G$43,2,FALSE)+ROW()-2))=Switch!$D$56,INDIRECT(\"a\" & (VLOOKUP(Switch!$D$56,$F$2:$G$43,2,FALSE)+ROW()-2)),\"\")","v":{"$error":"#N/A"}},{"$f":"IF(INDIRECT(\"c\" & (VLOOKUP(Switch!$D$57,$F$2:$G$43,2,FALSE)+ROW()-2))=Switch!$D$57,INDIRECT(\"a\" & (VLOOKUP(Switch!$D$57,$F$2:$G$43,2,FALSE)+ROW()-2)),\"\")","v":{"$error":"#N/A"}},{"$f":"IF(INDIRECT(\"c\" & (VLOOKUP(Switch!$D$58,$F$2:$G$43,2,FALSE)+ROW()-2))=Switch!$D$58,INDIRECT(\"a\" & (VLOOKUP(Switch!$D$58,$F$2:$G$43,2,FALSE)+ROW()-2)),\"\")","v":{"$error":"#N/A"}},{"$f":"IF(INDIRECT(\"c\" & (VLOOKUP(Switch!$D$59,$F$2:$G$43,2,FALSE)+ROW()-2))=Switch!$D$59,INDIRECT(\"a\" & (VLOOKUP(Switch!$D$59,$F$2:$G$43,2,FALSE)+ROW()-2)),\"\")","v":{"$error":"#N/A"}},{"$f":"IF(INDIRECT(\"c\" & (VLOOKUP(Switch!$D$60,$F$2:$G$43,2,FALSE)+ROW()-2))=Switch!$D$60,INDIRECT(\"a\" & (VLOOKUP(Switch!$D$60,$F$2:$G$43,2,FALSE)+ROW()-2)),\"\")","v":{"$error":"#N/A"}},{"$f":"IF(INDIRECT(\"c\" & (VLOOKUP(Switch!$D$61,$F$2:$G$43,2,FALSE)+ROW()-2))=Switch!$D$61,INDIRECT(\"a\" & (VLOOKUP(Switch!$D$61,$F$2:$G$43,2,FALSE)+ROW()-2)),\"\")","v":{"$error":"#N/A"}},{"$f":"IF(INDIRECT(\"c\" & (VLOOKUP(Switch!$D$62,$F$2:$G$43,2,FALSE)+ROW()-2))=Switch!$D$62,INDIRECT(\"a\" & (VLOOKUP(Switch!$D$62,$F$2:$G$43,2,FALSE)+ROW()-2)),\"\")","v":{"$error":"#N/A"}},{"$f":"IF(INDIRECT(\"c\" & (VLOOKUP(Switch!$D$63,$F$2:$G$43,2,FALSE)+ROW()-2))=Switch!$D$63,INDIRECT(\"a\" & (VLOOKUP(Switch!$D$63,$F$2:$G$43,2,FALSE)+ROW()-2)),\"\")","v":{"$error":"#N/A"}},{"$f":"IF(INDIRECT(\"c\" & (VLOOKUP(Switch!$D$64,$F$2:$G$43,2,FALSE)+ROW()-2))=Switch!$D$64,INDIRECT(\"a\" & (VLOOKUP(Switch!$D$64,$F$2:$G$43,2,FALSE)+ROW()-2)),\"\")","v":{"$error":"#N/A"}},{"$f":"IF(INDIRECT(\"c\" & (VLOOKUP(Switch!$D$65,$F$2:$G$43,2,FALSE)+ROW()-2))=Switch!$D$65,INDIRECT(\"a\" & (VLOOKUP(Switch!$D$65,$F$2:$G$43,2,FALSE)+ROW()-2)),\"\")","v":{"$error":"#N/A"}},{"$f":"IF(INDIRECT(\"c\" & (VLOOKUP(Switch!$D$66,$F$2:$G$43,2,FALSE)+ROW()-2))=Switch!$D$66,INDIRECT(\"a\" & (VLOOKUP(Switch!$D$66,$F$2:$G$43,2,FALSE)+ROW()-2)),\"\")","v":{"$error":"#N/A"}}]
["SIM Global Best Ideas Feeder Fund B2","SIGA1","Sanlam Collective Investments",{"$f":"ROW()","v":536},null,null,{"$f":"VLOOKUP(F536,$C$2:$D$637,2,FALSE)","v":{"$error":"#N/A"}},{"$f":"IF(INDIRECT(\"c\" & (VLOOKUP(Switch!$D$26,$F$2:$G$43,2,FALSE)+ROW()-2))=Switch!$D$26,INDIRECT(\"a\" & (VLOOKUP(Switch!$D$26,$F$2:$G$43,2,FALSE)+ROW()-2)),\"\")","v":{"$error":"#N/A"}},{"$f":"IF(INDIRECT(\"c\" & (VLOOKUP(Switch!$D$27,$F$2:$G$43,2,FALSE)+ROW()-2))=Switch!$D$27,INDIRECT(\"a\" & (VLOOKUP(Switch!$D$27,$F$2:$G$43,2,FALSE)+ROW()-2)),\"\")","v":{"$error":"#N/A"}},{"$f":"IF(INDIRECT(\"c\" & (VLOOKUP(Switch!$D$28,$F$2:$G$43,2,FALSE)+ROW()-2))=Switch!$D$28,INDIRECT(\"a\" & (VLOOKUP(Switch!$D$28,$F$2:$G$43,2,FALSE)+ROW()-2)),\"\")","v":{"$error":"#N/A"}},{"$f":"IF(INDIRECT(\"c\" & (VLOOKUP(Switch!$D$29,$F$2:$G$43,2,FALSE)+ROW()-2))=Switch!$D$29,INDIRECT(\"a\" & (VLOOKUP(Switch!$D$29,$F$2:$G$43,2,FALSE)+ROW()-2)),\"\")","v":{"$error":"#N/A"}},{"$f":"IF(INDIRECT(\"c\" & (VLOOKUP(Switch!$D$30,$F$2:$G$43,2,FALSE)+ROW()-2))=Switch!$D$30,INDIRECT(\"a\" & (VLOOKUP(Switch!$D$30,$F$2:$G$43,2,FALSE)+ROW()-2)),\"\")","v":{"$error":"#N/A"}},{"$f":"IF(INDIRECT(\"c\" & (VLOOKUP(Switch!$D$31,$F$2:$G$43,2,FALSE)+ROW()-2))=Switch!$D$31,INDIRECT(\"a\" & (VLOOKUP(Switch!$D$31,$F$2:$G$43,2,FALSE)+ROW()-2)),\"\")","v":{"$error":"#N/A"}},{"$f":"IF(INDIRECT(\"c\" & (VLOOKUP(Switch!$D$32,$F$2:$G$43,2,FALSE)+ROW()-2))=Switch!$D$32,INDIRECT(\"a\" & (VLOOKUP(Switch!$D$32,$F$2:$G$43,2,FALSE)+ROW()-2)),\"\")","v":{"$error":"#N/A"}},{"$f":"IF(INDIRECT(\"c\" & (VLOOKUP(Switch!$D$33,$F$2:$G$43,2,FALSE)+ROW()-2))=Switch!$D$33,INDIRECT(\"a\" & (VLOOKUP(Switch!$D$33,$F$2:$G$43,2,FALSE)+ROW()-2)),\"\")","v":{"$error":"#N/A"}},{"$f":"IF(INDIRECT(\"c\" & (VLOOKUP(Switch!$D$34,$F$2:$G$43,2,FALSE)+ROW()-2))=Switch!$D$34,INDIRECT(\"a\" & (VLOOKUP(Switch!$D$34,$F$2:$G$43,2,FALSE)+ROW()-2)),\"\")","v":{"$error":"#N/A"}},{"$f":"IF(INDIRECT(\"c\" & (VLOOKUP(Switch!$D$35,$F$2:$G$43,2,FALSE)+ROW()-2))=Switch!$D$35,INDIRECT(\"a\" & (VLOOKUP(Switch!$D$35,$F$2:$G$43,2,FALSE)+ROW()-2)),\"\")","v":{"$error":"#N/A"}},{"$f":"IF(INDIRECT(\"c\" & (VLOOKUP(Switch!$D$36,$F$2:$G$43,2,FALSE)+ROW()-2))=Switch!$D$36,INDIRECT(\"a\" & (VLOOKUP(Switch!$D$36,$F$2:$G$43,2,FALSE)+ROW()-2)),\"\")","v":{"$error":"#N/A"}},{"$f":"IF(INDIRECT(\"c\" & (VLOOKUP(Switch!$D$37,$F$2:$G$43,2,FALSE)+ROW()-2))=Switch!$D$37,INDIRECT(\"a\" & (VLOOKUP(Switch!$D$37,$F$2:$G$43,2,FALSE)+ROW()-2)),\"\")","v":{"$error":"#N/A"}},{"$f":"IF(INDIRECT(\"c\" & (VLOOKUP(Switch!$D$38,$F$2:$G$43,2,FALSE)+ROW()-2))=Switch!$D$38,INDIRECT(\"a\" & (VLOOKUP(Switch!$D$38,$F$2:$G$43,2,FALSE)+ROW()-2)),\"\")","v":{"$error":"#N/A"}},{"$f":"IF(INDIRECT(\"c\" & (VLOOKUP(Switch!$D$39,$F$2:$G$43,2,FALSE)+ROW()-2))=Switch!$D$39,INDIRECT(\"a\" & (VLOOKUP(Switch!$D$39,$F$2:$G$43,2,FALSE)+ROW()-2)),\"\")","v":{"$error":"#N/A"}},{"$f":"IF(INDIRECT(\"c\" & (VLOOKUP(Switch!$D$40,$F$2:$G$43,2,FALSE)+ROW()-2))=Switch!$D$40,INDIRECT(\"a\" & (VLOOKUP(Switch!$D$40,$F$2:$G$43,2,FALSE)+ROW()-2)),\"\")","v":{"$error":"#N/A"}},{"$f":"IF(INDIRECT(\"c\" & (VLOOKUP(Switch!$D$52,$F$2:$G$43,2,FALSE)+ROW()-2))=Switch!$D$52,INDIRECT(\"a\" & (VLOOKUP(Switch!$D$52,$F$2:$G$43,2,FALSE)+ROW()-2)),\"\")","v":{"$error":"#N/A"}},{"$f":"IF(INDIRECT(\"c\" & (VLOOKUP(Switch!$D$53,$F$2:$G$43,2,FALSE)+ROW()-2))=Switch!$D$53,INDIRECT(\"a\" & (VLOOKUP(Switch!$D$53,$F$2:$G$43,2,FALSE)+ROW()-2)),\"\")","v":{"$error":"#N/A"}},{"$f":"IF(INDIRECT(\"c\" & (VLOOKUP(Switch!$D$54,$F$2:$G$43,2,FALSE)+ROW()-2))=Switch!$D$54,INDIRECT(\"a\" & (VLOOKUP(Switch!$D$54,$F$2:$G$43,2,FALSE)+ROW()-2)),\"\")","v":{"$error":"#N/A"}},{"$f":"IF(INDIRECT(\"c\" & (VLOOKUP(Switch!$D$55,$F$2:$G$43,2,FALSE)+ROW()-2))=Switch!$D$55,INDIRECT(\"a\" & (VLOOKUP(Switch!$D$55,$F$2:$G$43,2,FALSE)+ROW()-2)),\"\")","v":{"$error":"#N/A"}},{"$f":"IF(INDIRECT(\"c\" & (VLOOKUP(Switch!$D$56,$F$2:$G$43,2,FALSE)+ROW()-2))=Switch!$D$56,INDIRECT(\"a\" & (VLOOKUP(Switch!$D$56,$F$2:$G$43,2,FALSE)+ROW()-2)),\"\")","v":{"$error":"#N/A"}},{"$f":"IF(INDIRECT(\"c\" & (VLOOKUP(Switch!$D$57,$F$2:$G$43,2,FALSE)+ROW()-2))=Switch!$D$57,INDIRECT(\"a\" & (VLOOKUP(Switch!$D$57,$F$2:$G$43,2,FALSE)+ROW()-2)),\"\")","v":{"$error":"#N/A"}},{"$f":"IF(INDIRECT(\"c\" & (VLOOKUP(Switch!$D$58,$F$2:$G$43,2,FALSE)+ROW()-2))=Switch!$D$58,INDIRECT(\"a\" & (VLOOKUP(Switch!$D$58,$F$2:$G$43,2,FALSE)+ROW()-2)),\"\")","v":{"$error":"#N/A"}},{"$f":"IF(INDIRECT(\"c\" & (VLOOKUP(Switch!$D$59,$F$2:$G$43,2,FALSE)+ROW()-2))=Switch!$D$59,INDIRECT(\"a\" & (VLOOKUP(Switch!$D$59,$F$2:$G$43,2,FALSE)+ROW()-2)),\"\")","v":{"$error":"#N/A"}},{"$f":"IF(INDIRECT(\"c\" & (VLOOKUP(Switch!$D$60,$F$2:$G$43,2,FALSE)+ROW()-2))=Switch!$D$60,INDIRECT(\"a\" & (VLOOKUP(Switch!$D$60,$F$2:$G$43,2,FALSE)+ROW()-2)),\"\")","v":{"$error":"#N/A"}},{"$f":"IF(INDIRECT(\"c\" & (VLOOKUP(Switch!$D$61,$F$2:$G$43,2,FALSE)+ROW()-2))=Switch!$D$61,INDIRECT(\"a\" & (VLOOKUP(Switch!$D$61,$F$2:$G$43,2,FALSE)+ROW()-2)),\"\")","v":{"$error":"#N/A"}},{"$f":"IF(INDIRECT(\"c\" & (VLOOKUP(Switch!$D$62,$F$2:$G$43,2,FALSE)+ROW()-2))=Switch!$D$62,INDIRECT(\"a\" & (VLOOKUP(Switch!$D$62,$F$2:$G$43,2,FALSE)+ROW()-2)),\"\")","v":{"$error":"#N/A"}},{"$f":"IF(INDIRECT(\"c\" & (VLOOKUP(Switch!$D$63,$F$2:$G$43,2,FALSE)+ROW()-2))=Switch!$D$63,INDIRECT(\"a\" & (VLOOKUP(Switch!$D$63,$F$2:$G$43,2,FALSE)+ROW()-2)),\"\")","v":{"$error":"#N/A"}},{"$f":"IF(INDIRECT(\"c\" & (VLOOKUP(Switch!$D$64,$F$2:$G$43,2,FALSE)+ROW()-2))=Switch!$D$64,INDIRECT(\"a\" & (VLOOKUP(Switch!$D$64,$F$2:$G$43,2,FALSE)+ROW()-2)),\"\")","v":{"$error":"#N/A"}},{"$f":"IF(INDIRECT(\"c\" & (VLOOKUP(Switch!$D$65,$F$2:$G$43,2,FALSE)+ROW()-2))=Switch!$D$65,INDIRECT(\"a\" & (VLOOKUP(Switch!$D$65,$F$2:$G$43,2,FALSE)+ROW()-2)),\"\")","v":{"$error":"#N/A"}},{"$f":"IF(INDIRECT(\"c\" & (VLOOKUP(Switch!$D$66,$F$2:$G$43,2,FALSE)+ROW()-2))=Switch!$D$66,INDIRECT(\"a\" & (VLOOKUP(Switch!$D$66,$F$2:$G$43,2,FALSE)+ROW()-2)),\"\")","v":{"$error":"#N/A"}}]
["SIM Global Best Ideas Fund A1","SIGA1","Sanlam Collective Investments",{"$f":"ROW()","v":537},null,null,{"$f":"VLOOKUP(F537,$C$2:$D$637,2,FALSE)","v":{"$error":"#N/A"}},{"$f":"IF(INDIRECT(\"c\" & (VLOOKUP(Switch!$D$26,$F$2:$G$43,2,FALSE)+ROW()-2))=Switch!$D$26,INDIRECT(\"a\" & (VLOOKUP(Switch!$D$26,$F$2:$G$43,2,FALSE)+ROW()-2)),\"\")","v":{"$error":"#N/A"}},{"$f":"IF(INDIRECT(\"c\" & (VLOOKUP(Switch!$D$27,$F$2:$G$43,2,FALSE)+ROW()-2))=Switch!$D$27,INDIRECT(\"a\" & (VLOOKUP(Switch!$D$27,$F$2:$G$43,2,FALSE)+ROW()-2)),\"\")","v":{"$error":"#N/A"}},{"$f":"IF(INDIRECT(\"c\" & (VLOOKUP(Switch!$D$28,$F$2:$G$43,2,FALSE)+ROW()-2))=Switch!$D$28,INDIRECT(\"a\" & (VLOOKUP(Switch!$D$28,$F$2:$G$43,2,FALSE)+ROW()-2)),\"\")","v":{"$error":"#N/A"}},{"$f":"IF(INDIRECT(\"c\" & (VLOOKUP(Switch!$D$29,$F$2:$G$43,2,FALSE)+ROW()-2))=Switch!$D$29,INDIRECT(\"a\" & (VLOOKUP(Switch!$D$29,$F$2:$G$43,2,FALSE)+ROW()-2)),\"\")","v":{"$error":"#N/A"}},{"$f":"IF(INDIRECT(\"c\" & (VLOOKUP(Switch!$D$30,$F$2:$G$43,2,FALSE)+ROW()-2))=Switch!$D$30,INDIRECT(\"a\" & (VLOOKUP(Switch!$D$30,$F$2:$G$43,2,FALSE)+ROW()-2)),\"\")","v":{"$error":"#N/A"}},{"$f":"IF(INDIRECT(\"c\" & (VLOOKUP(Switch!$D$31,$F$2:$G$43,2,FALSE)+ROW()-2))=Switch!$D$31,INDIRECT(\"a\" & (VLOOKUP(Switch!$D$31,$F$2:$G$43,2,FALSE)+ROW()-2)),\"\")","v":{"$error":"#N/A"}},{"$f":"IF(INDIRECT(\"c\" & (VLOOKUP(Switch!$D$32,$F$2:$G$43,2,FALSE)+ROW()-2))=Switch!$D$32,INDIRECT(\"a\" & (VLOOKUP(Switch!$D$32,$F$2:$G$43,2,FALSE)+ROW()-2)),\"\")","v":{"$error":"#N/A"}},{"$f":"IF(INDIRECT(\"c\" & (VLOOKUP(Switch!$D$33,$F$2:$G$43,2,FALSE)+ROW()-2))=Switch!$D$33,INDIRECT(\"a\" & (VLOOKUP(Switch!$D$33,$F$2:$G$43,2,FALSE)+ROW()-2)),\"\")","v":{"$error":"#N/A"}},{"$f":"IF(INDIRECT(\"c\" & (VLOOKUP(Switch!$D$34,$F$2:$G$43,2,FALSE)+ROW()-2))=Switch!$D$34,INDIRECT(\"a\" & (VLOOKUP(Switch!$D$34,$F$2:$G$43,2,FALSE)+ROW()-2)),\"\")","v":{"$error":"#N/A"}},{"$f":"IF(INDIRECT(\"c\" & (VLOOKUP(Switch!$D$35,$F$2:$G$43,2,FALSE)+ROW()-2))=Switch!$D$35,INDIRECT(\"a\" & (VLOOKUP(Switch!$D$35,$F$2:$G$43,2,FALSE)+ROW()-2)),\"\")","v":{"$error":"#N/A"}},{"$f":"IF(INDIRECT(\"c\" & (VLOOKUP(Switch!$D$36,$F$2:$G$43,2,FALSE)+ROW()-2))=Switch!$D$36,INDIRECT(\"a\" & (VLOOKUP(Switch!$D$36,$F$2:$G$43,2,FALSE)+ROW()-2)),\"\")","v":{"$error":"#N/A"}},{"$f":"IF(INDIRECT(\"c\" & (VLOOKUP(Switch!$D$37,$F$2:$G$43,2,FALSE)+ROW()-2))=Switch!$D$37,INDIRECT(\"a\" & (VLOOKUP(Switch!$D$37,$F$2:$G$43,2,FALSE)+ROW()-2)),\"\")","v":{"$error":"#N/A"}},{"$f":"IF(INDIRECT(\"c\" & (VLOOKUP(Switch!$D$38,$F$2:$G$43,2,FALSE)+ROW()-2))=Switch!$D$38,INDIRECT(\"a\" & (VLOOKUP(Switch!$D$38,$F$2:$G$43,2,FALSE)+ROW()-2)),\"\")","v":{"$error":"#N/A"}},{"$f":"IF(INDIRECT(\"c\" & (VLOOKUP(Switch!$D$39,$F$2:$G$43,2,FALSE)+ROW()-2))=Switch!$D$39,INDIRECT(\"a\" & (VLOOKUP(Switch!$D$39,$F$2:$G$43,2,FALSE)+ROW()-2)),\"\")","v":{"$error":"#N/A"}},{"$f":"IF(INDIRECT(\"c\" & (VLOOKUP(Switch!$D$40,$F$2:$G$43,2,FALSE)+ROW()-2))=Switch!$D$40,INDIRECT(\"a\" & (VLOOKUP(Switch!$D$40,$F$2:$G$43,2,FALSE)+ROW()-2)),\"\")","v":{"$error":"#N/A"}},{"$f":"IF(INDIRECT(\"c\" & (VLOOKUP(Switch!$D$52,$F$2:$G$43,2,FALSE)+ROW()-2))=Switch!$D$52,INDIRECT(\"a\" & (VLOOKUP(Switch!$D$52,$F$2:$G$43,2,FALSE)+ROW()-2)),\"\")","v":{"$error":"#N/A"}},{"$f":"IF(INDIRECT(\"c\" & (VLOOKUP(Switch!$D$53,$F$2:$G$43,2,FALSE)+ROW()-2))=Switch!$D$53,INDIRECT(\"a\" & (VLOOKUP(Switch!$D$53,$F$2:$G$43,2,FALSE)+ROW()-2)),\"\")","v":{"$error":"#N/A"}},{"$f":"IF(INDIRECT(\"c\" & (VLOOKUP(Switch!$D$54,$F$2:$G$43,2,FALSE)+ROW()-2))=Switch!$D$54,INDIRECT(\"a\" & (VLOOKUP(Switch!$D$54,$F$2:$G$43,2,FALSE)+ROW()-2)),\"\")","v":{"$error":"#N/A"}},{"$f":"IF(INDIRECT(\"c\" & (VLOOKUP(Switch!$D$55,$F$2:$G$43,2,FALSE)+ROW()-2))=Switch!$D$55,INDIRECT(\"a\" & (VLOOKUP(Switch!$D$55,$F$2:$G$43,2,FALSE)+ROW()-2)),\"\")","v":{"$error":"#N/A"}},{"$f":"IF(INDIRECT(\"c\" & (VLOOKUP(Switch!$D$56,$F$2:$G$43,2,FALSE)+ROW()-2))=Switch!$D$56,INDIRECT(\"a\" & (VLOOKUP(Switch!$D$56,$F$2:$G$43,2,FALSE)+ROW()-2)),\"\")","v":{"$error":"#N/A"}},{"$f":"IF(INDIRECT(\"c\" & (VLOOKUP(Switch!$D$57,$F$2:$G$43,2,FALSE)+ROW()-2))=Switch!$D$57,INDIRECT(\"a\" & (VLOOKUP(Switch!$D$57,$F$2:$G$43,2,FALSE)+ROW()-2)),\"\")","v":{"$error":"#N/A"}},{"$f":"IF(INDIRECT(\"c\" & (VLOOKUP(Switch!$D$58,$F$2:$G$43,2,FALSE)+ROW()-2))=Switch!$D$58,INDIRECT(\"a\" & (VLOOKUP(Switch!$D$58,$F$2:$G$43,2,FALSE)+ROW()-2)),\"\")","v":{"$error":"#N/A"}},{"$f":"IF(INDIRECT(\"c\" & (VLOOKUP(Switch!$D$59,$F$2:$G$43,2,FALSE)+ROW()-2))=Switch!$D$59,INDIRECT(\"a\" & (VLOOKUP(Switch!$D$59,$F$2:$G$43,2,FALSE)+ROW()-2)),\"\")","v":{"$error":"#N/A"}},{"$f":"IF(INDIRECT(\"c\" & (VLOOKUP(Switch!$D$60,$F$2:$G$43,2,FALSE)+ROW()-2))=Switch!$D$60,INDIRECT(\"a\" & (VLOOKUP(Switch!$D$60,$F$2:$G$43,2,FALSE)+ROW()-2)),\"\")","v":{"$error":"#N/A"}},{"$f":"IF(INDIRECT(\"c\" & (VLOOKUP(Switch!$D$61,$F$2:$G$43,2,FALSE)+ROW()-2))=Switch!$D$61,INDIRECT(\"a\" & (VLOOKUP(Switch!$D$61,$F$2:$G$43,2,FALSE)+ROW()-2)),\"\")","v":{"$error":"#N/A"}},{"$f":"IF(INDIRECT(\"c\" & (VLOOKUP(Switch!$D$62,$F$2:$G$43,2,FALSE)+ROW()-2))=Switch!$D$62,INDIRECT(\"a\" & (VLOOKUP(Switch!$D$62,$F$2:$G$43,2,FALSE)+ROW()-2)),\"\")","v":{"$error":"#N/A"}},{"$f":"IF(INDIRECT(\"c\" & (VLOOKUP(Switch!$D$63,$F$2:$G$43,2,FALSE)+ROW()-2))=Switch!$D$63,INDIRECT(\"a\" & (VLOOKUP(Switch!$D$63,$F$2:$G$43,2,FALSE)+ROW()-2)),\"\")","v":{"$error":"#N/A"}},{"$f":"IF(INDIRECT(\"c\" & (VLOOKUP(Switch!$D$64,$F$2:$G$43,2,FALSE)+ROW()-2))=Switch!$D$64,INDIRECT(\"a\" & (VLOOKUP(Switch!$D$64,$F$2:$G$43,2,FALSE)+ROW()-2)),\"\")","v":{"$error":"#N/A"}},{"$f":"IF(INDIRECT(\"c\" & (VLOOKUP(Switch!$D$65,$F$2:$G$43,2,FALSE)+ROW()-2))=Switch!$D$65,INDIRECT(\"a\" & (VLOOKUP(Switch!$D$65,$F$2:$G$43,2,FALSE)+ROW()-2)),\"\")","v":{"$error":"#N/A"}},{"$f":"IF(INDIRECT(\"c\" & (VLOOKUP(Switch!$D$66,$F$2:$G$43,2,FALSE)+ROW()-2))=Switch!$D$66,INDIRECT(\"a\" & (VLOOKUP(Switch!$D$66,$F$2:$G$43,2,FALSE)+ROW()-2)),\"\")","v":{"$error":"#N/A"}}]
["SIM Inflation Plus Fund B4","SAIB4","Sanlam Collective Investments",{"$f":"ROW()","v":538},null,null,{"$f":"VLOOKUP(F538,$C$2:$D$637,2,FALSE)","v":{"$error":"#N/A"}},{"$f":"IF(INDIRECT(\"c\" & (VLOOKUP(Switch!$D$26,$F$2:$G$43,2,FALSE)+ROW()-2))=Switch!$D$26,INDIRECT(\"a\" & (VLOOKUP(Switch!$D$26,$F$2:$G$43,2,FALSE)+ROW()-2)),\"\")","v":{"$error":"#N/A"}},{"$f":"IF(INDIRECT(\"c\" & (VLOOKUP(Switch!$D$27,$F$2:$G$43,2,FALSE)+ROW()-2))=Switch!$D$27,INDIRECT(\"a\" & (VLOOKUP(Switch!$D$27,$F$2:$G$43,2,FALSE)+ROW()-2)),\"\")","v":{"$error":"#N/A"}},{"$f":"IF(INDIRECT(\"c\" & (VLOOKUP(Switch!$D$28,$F$2:$G$43,2,FALSE)+ROW()-2))=Switch!$D$28,INDIRECT(\"a\" & (VLOOKUP(Switch!$D$28,$F$2:$G$43,2,FALSE)+ROW()-2)),\"\")","v":{"$error":"#N/A"}},{"$f":"IF(INDIRECT(\"c\" & (VLOOKUP(Switch!$D$29,$F$2:$G$43,2,FALSE)+ROW()-2))=Switch!$D$29,INDIRECT(\"a\" & (VLOOKUP(Switch!$D$29,$F$2:$G$43,2,FALSE)+ROW()-2)),\"\")","v":{"$error":"#N/A"}},{"$f":"IF(INDIRECT(\"c\" & (VLOOKUP(Switch!$D$30,$F$2:$G$43,2,FALSE)+ROW()-2))=Switch!$D$30,INDIRECT(\"a\" & (VLOOKUP(Switch!$D$30,$F$2:$G$43,2,FALSE)+ROW()-2)),\"\")","v":{"$error":"#N/A"}},{"$f":"IF(INDIRECT(\"c\" & (VLOOKUP(Switch!$D$31,$F$2:$G$43,2,FALSE)+ROW()-2))=Switch!$D$31,INDIRECT(\"a\" & (VLOOKUP(Switch!$D$31,$F$2:$G$43,2,FALSE)+ROW()-2)),\"\")","v":{"$error":"#N/A"}},{"$f":"IF(INDIRECT(\"c\" & (VLOOKUP(Switch!$D$32,$F$2:$G$43,2,FALSE)+ROW()-2))=Switch!$D$32,INDIRECT(\"a\" & (VLOOKUP(Switch!$D$32,$F$2:$G$43,2,FALSE)+ROW()-2)),\"\")","v":{"$error":"#N/A"}},{"$f":"IF(INDIRECT(\"c\" & (VLOOKUP(Switch!$D$33,$F$2:$G$43,2,FALSE)+ROW()-2))=Switch!$D$33,INDIRECT(\"a\" & (VLOOKUP(Switch!$D$33,$F$2:$G$43,2,FALSE)+ROW()-2)),\"\")","v":{"$error":"#N/A"}},{"$f":"IF(INDIRECT(\"c\" & (VLOOKUP(Switch!$D$34,$F$2:$G$43,2,FALSE)+ROW()-2))=Switch!$D$34,INDIRECT(\"a\" & (VLOOKUP(Switch!$D$34,$F$2:$G$43,2,FALSE)+ROW()-2)),\"\")","v":{"$error":"#N/A"}},{"$f":"IF(INDIRECT(\"c\" & (VLOOKUP(Switch!$D$35,$F$2:$G$43,2,FALSE)+ROW()-2))=Switch!$D$35,INDIRECT(\"a\" & (VLOOKUP(Switch!$D$35,$F$2:$G$43,2,FALSE)+ROW()-2)),\"\")","v":{"$error":"#N/A"}},{"$f":"IF(INDIRECT(\"c\" & (VLOOKUP(Switch!$D$36,$F$2:$G$43,2,FALSE)+ROW()-2))=Switch!$D$36,INDIRECT(\"a\" & (VLOOKUP(Switch!$D$36,$F$2:$G$43,2,FALSE)+ROW()-2)),\"\")","v":{"$error":"#N/A"}},{"$f":"IF(INDIRECT(\"c\" & (VLOOKUP(Switch!$D$37,$F$2:$G$43,2,FALSE)+ROW()-2))=Switch!$D$37,INDIRECT(\"a\" & (VLOOKUP(Switch!$D$37,$F$2:$G$43,2,FALSE)+ROW()-2)),\"\")","v":{"$error":"#N/A"}},{"$f":"IF(INDIRECT(\"c\" & (VLOOKUP(Switch!$D$38,$F$2:$G$43,2,FALSE)+ROW()-2))=Switch!$D$38,INDIRECT(\"a\" & (VLOOKUP(Switch!$D$38,$F$2:$G$43,2,FALSE)+ROW()-2)),\"\")","v":{"$error":"#N/A"}},{"$f":"IF(INDIRECT(\"c\" & (VLOOKUP(Switch!$D$39,$F$2:$G$43,2,FALSE)+ROW()-2))=Switch!$D$39,INDIRECT(\"a\" & (VLOOKUP(Switch!$D$39,$F$2:$G$43,2,FALSE)+ROW()-2)),\"\")","v":{"$error":"#N/A"}},{"$f":"IF(INDIRECT(\"c\" & (VLOOKUP(Switch!$D$40,$F$2:$G$43,2,FALSE)+ROW()-2))=Switch!$D$40,INDIRECT(\"a\" & (VLOOKUP(Switch!$D$40,$F$2:$G$43,2,FALSE)+ROW()-2)),\"\")","v":{"$error":"#N/A"}},{"$f":"IF(INDIRECT(\"c\" & (VLOOKUP(Switch!$D$52,$F$2:$G$43,2,FALSE)+ROW()-2))=Switch!$D$52,INDIRECT(\"a\" & (VLOOKUP(Switch!$D$52,$F$2:$G$43,2,FALSE)+ROW()-2)),\"\")","v":{"$error":"#N/A"}},{"$f":"IF(INDIRECT(\"c\" & (VLOOKUP(Switch!$D$53,$F$2:$G$43,2,FALSE)+ROW()-2))=Switch!$D$53,INDIRECT(\"a\" & (VLOOKUP(Switch!$D$53,$F$2:$G$43,2,FALSE)+ROW()-2)),\"\")","v":{"$error":"#N/A"}},{"$f":"IF(INDIRECT(\"c\" & (VLOOKUP(Switch!$D$54,$F$2:$G$43,2,FALSE)+ROW()-2))=Switch!$D$54,INDIRECT(\"a\" & (VLOOKUP(Switch!$D$54,$F$2:$G$43,2,FALSE)+ROW()-2)),\"\")","v":{"$error":"#N/A"}},{"$f":"IF(INDIRECT(\"c\" & (VLOOKUP(Switch!$D$55,$F$2:$G$43,2,FALSE)+ROW()-2))=Switch!$D$55,INDIRECT(\"a\" & (VLOOKUP(Switch!$D$55,$F$2:$G$43,2,FALSE)+ROW()-2)),\"\")","v":{"$error":"#N/A"}},{"$f":"IF(INDIRECT(\"c\" & (VLOOKUP(Switch!$D$56,$F$2:$G$43,2,FALSE)+ROW()-2))=Switch!$D$56,INDIRECT(\"a\" & (VLOOKUP(Switch!$D$56,$F$2:$G$43,2,FALSE)+ROW()-2)),\"\")","v":{"$error":"#N/A"}},{"$f":"IF(INDIRECT(\"c\" & (VLOOKUP(Switch!$D$57,$F$2:$G$43,2,FALSE)+ROW()-2))=Switch!$D$57,INDIRECT(\"a\" & (VLOOKUP(Switch!$D$57,$F$2:$G$43,2,FALSE)+ROW()-2)),\"\")","v":{"$error":"#N/A"}},{"$f":"IF(INDIRECT(\"c\" & (VLOOKUP(Switch!$D$58,$F$2:$G$43,2,FALSE)+ROW()-2))=Switch!$D$58,INDIRECT(\"a\" & (VLOOKUP(Switch!$D$58,$F$2:$G$43,2,FALSE)+ROW()-2)),\"\")","v":{"$error":"#N/A"}},{"$f":"IF(INDIRECT(\"c\" & (VLOOKUP(Switch!$D$59,$F$2:$G$43,2,FALSE)+ROW()-2))=Switch!$D$59,INDIRECT(\"a\" & (VLOOKUP(Switch!$D$59,$F$2:$G$43,2,FALSE)+ROW()-2)),\"\")","v":{"$error":"#N/A"}},{"$f":"IF(INDIRECT(\"c\" & (VLOOKUP(Switch!$D$60,$F$2:$G$43,2,FALSE)+ROW()-2))=Switch!$D$60,INDIRECT(\"a\" & (VLOOKUP(Switch!$D$60,$F$2:$G$43,2,FALSE)+ROW()-2)),\"\")","v":{"$error":"#N/A"}},{"$f":"IF(INDIRECT(\"c\" & (VLOOKUP(Switch!$D$61,$F$2:$G$43,2,FALSE)+ROW()-2))=Switch!$D$61,INDIRECT(\"a\" & (VLOOKUP(Switch!$D$61,$F$2:$G$43,2,FALSE)+ROW()-2)),\"\")","v":{"$error":"#N/A"}},{"$f":"IF(INDIRECT(\"c\" & (VLOOKUP(Switch!$D$62,$F$2:$G$43,2,FALSE)+ROW()-2))=Switch!$D$62,INDIRECT(\"a\" & (VLOOKUP(Switch!$D$62,$F$2:$G$43,2,FALSE)+ROW()-2)),\"\")","v":{"$error":"#N/A"}},{"$f":"IF(INDIRECT(\"c\" & (VLOOKUP(Switch!$D$63,$F$2:$G$43,2,FALSE)+ROW()-2))=Switch!$D$63,INDIRECT(\"a\" & (VLOOKUP(Switch!$D$63,$F$2:$G$43,2,FALSE)+ROW()-2)),\"\")","v":{"$error":"#N/A"}},{"$f":"IF(INDIRECT(\"c\" & (VLOOKUP(Switch!$D$64,$F$2:$G$43,2,FALSE)+ROW()-2))=Switch!$D$64,INDIRECT(\"a\" & (VLOOKUP(Switch!$D$64,$F$2:$G$43,2,FALSE)+ROW()-2)),\"\")","v":{"$error":"#N/A"}},{"$f":"IF(INDIRECT(\"c\" & (VLOOKUP(Switch!$D$65,$F$2:$G$43,2,FALSE)+ROW()-2))=Switch!$D$65,INDIRECT(\"a\" & (VLOOKUP(Switch!$D$65,$F$2:$G$43,2,FALSE)+ROW()-2)),\"\")","v":{"$error":"#N/A"}},{"$f":"IF(INDIRECT(\"c\" & (VLOOKUP(Switch!$D$66,$F$2:$G$43,2,FALSE)+ROW()-2))=Switch!$D$66,INDIRECT(\"a\" & (VLOOKUP(Switch!$D$66,$F$2:$G$43,2,FALSE)+ROW()-2)),\"\")","v":{"$error":"#N/A"}}]
["SIM Small Cap Fund R","SNST","Sanlam Collective Investments",{"$f":"ROW()","v":539},null,null,{"$f":"VLOOKUP(F539,$C$2:$D$637,2,FALSE)","v":{"$error":"#N/A"}},{"$f":"IF(INDIRECT(\"c\" & (VLOOKUP(Switch!$D$26,$F$2:$G$43,2,FALSE)+ROW()-2))=Switch!$D$26,INDIRECT(\"a\" & (VLOOKUP(Switch!$D$26,$F$2:$G$43,2,FALSE)+ROW()-2)),\"\")","v":{"$error":"#N/A"}},{"$f":"IF(INDIRECT(\"c\" & (VLOOKUP(Switch!$D$27,$F$2:$G$43,2,FALSE)+ROW()-2))=Switch!$D$27,INDIRECT(\"a\" & (VLOOKUP(Switch!$D$27,$F$2:$G$43,2,FALSE)+ROW()-2)),\"\")","v":{"$error":"#N/A"}},{"$f":"IF(INDIRECT(\"c\" & (VLOOKUP(Switch!$D$28,$F$2:$G$43,2,FALSE)+ROW()-2))=Switch!$D$28,INDIRECT(\"a\" & (VLOOKUP(Switch!$D$28,$F$2:$G$43,2,FALSE)+ROW()-2)),\"\")","v":{"$error":"#N/A"}},{"$f":"IF(INDIRECT(\"c\" & (VLOOKUP(Switch!$D$29,$F$2:$G$43,2,FALSE)+ROW()-2))=Switch!$D$29,INDIRECT(\"a\" & (VLOOKUP(Switch!$D$29,$F$2:$G$43,2,FALSE)+ROW()-2)),\"\")","v":{"$error":"#N/A"}},{"$f":"IF(INDIRECT(\"c\" & (VLOOKUP(Switch!$D$30,$F$2:$G$43,2,FALSE)+ROW()-2))=Switch!$D$30,INDIRECT(\"a\" & (VLOOKUP(Switch!$D$30,$F$2:$G$43,2,FALSE)+ROW()-2)),\"\")","v":{"$error":"#N/A"}},{"$f":"IF(INDIRECT(\"c\" & (VLOOKUP(Switch!$D$31,$F$2:$G$43,2,FALSE)+ROW()-2))=Switch!$D$31,INDIRECT(\"a\" & (VLOOKUP(Switch!$D$31,$F$2:$G$43,2,FALSE)+ROW()-2)),\"\")","v":{"$error":"#N/A"}},{"$f":"IF(INDIRECT(\"c\" & (VLOOKUP(Switch!$D$32,$F$2:$G$43,2,FALSE)+ROW()-2))=Switch!$D$32,INDIRECT(\"a\" & (VLOOKUP(Switch!$D$32,$F$2:$G$43,2,FALSE)+ROW()-2)),\"\")","v":{"$error":"#N/A"}},{"$f":"IF(INDIRECT(\"c\" & (VLOOKUP(Switch!$D$33,$F$2:$G$43,2,FALSE)+ROW()-2))=Switch!$D$33,INDIRECT(\"a\" & (VLOOKUP(Switch!$D$33,$F$2:$G$43,2,FALSE)+ROW()-2)),\"\")","v":{"$error":"#N/A"}},{"$f":"IF(INDIRECT(\"c\" & (VLOOKUP(Switch!$D$34,$F$2:$G$43,2,FALSE)+ROW()-2))=Switch!$D$34,INDIRECT(\"a\" & (VLOOKUP(Switch!$D$34,$F$2:$G$43,2,FALSE)+ROW()-2)),\"\")","v":{"$error":"#N/A"}},{"$f":"IF(INDIRECT(\"c\" & (VLOOKUP(Switch!$D$35,$F$2:$G$43,2,FALSE)+ROW()-2))=Switch!$D$35,INDIRECT(\"a\" & (VLOOKUP(Switch!$D$35,$F$2:$G$43,2,FALSE)+ROW()-2)),\"\")","v":{"$error":"#N/A"}},{"$f":"IF(INDIRECT(\"c\" & (VLOOKUP(Switch!$D$36,$F$2:$G$43,2,FALSE)+ROW()-2))=Switch!$D$36,INDIRECT(\"a\" & (VLOOKUP(Switch!$D$36,$F$2:$G$43,2,FALSE)+ROW()-2)),\"\")","v":{"$error":"#N/A"}},{"$f":"IF(INDIRECT(\"c\" & (VLOOKUP(Switch!$D$37,$F$2:$G$43,2,FALSE)+ROW()-2))=Switch!$D$37,INDIRECT(\"a\" & (VLOOKUP(Switch!$D$37,$F$2:$G$43,2,FALSE)+ROW()-2)),\"\")","v":{"$error":"#N/A"}},{"$f":"IF(INDIRECT(\"c\" & (VLOOKUP(Switch!$D$38,$F$2:$G$43,2,FALSE)+ROW()-2))=Switch!$D$38,INDIRECT(\"a\" & (VLOOKUP(Switch!$D$38,$F$2:$G$43,2,FALSE)+ROW()-2)),\"\")","v":{"$error":"#N/A"}},{"$f":"IF(INDIRECT(\"c\" & (VLOOKUP(Switch!$D$39,$F$2:$G$43,2,FALSE)+ROW()-2))=Switch!$D$39,INDIRECT(\"a\" & (VLOOKUP(Switch!$D$39,$F$2:$G$43,2,FALSE)+ROW()-2)),\"\")","v":{"$error":"#N/A"}},{"$f":"IF(INDIRECT(\"c\" & (VLOOKUP(Switch!$D$40,$F$2:$G$43,2,FALSE)+ROW()-2))=Switch!$D$40,INDIRECT(\"a\" & (VLOOKUP(Switch!$D$40,$F$2:$G$43,2,FALSE)+ROW()-2)),\"\")","v":{"$error":"#N/A"}},{"$f":"IF(INDIRECT(\"c\" & (VLOOKUP(Switch!$D$52,$F$2:$G$43,2,FALSE)+ROW()-2))=Switch!$D$52,INDIRECT(\"a\" & (VLOOKUP(Switch!$D$52,$F$2:$G$43,2,FALSE)+ROW()-2)),\"\")","v":{"$error":"#N/A"}},{"$f":"IF(INDIRECT(\"c\" & (VLOOKUP(Switch!$D$53,$F$2:$G$43,2,FALSE)+ROW()-2))=Switch!$D$53,INDIRECT(\"a\" & (VLOOKUP(Switch!$D$53,$F$2:$G$43,2,FALSE)+ROW()-2)),\"\")","v":{"$error":"#N/A"}},{"$f":"IF(INDIRECT(\"c\" & (VLOOKUP(Switch!$D$54,$F$2:$G$43,2,FALSE)+ROW()-2))=Switch!$D$54,INDIRECT(\"a\" & (VLOOKUP(Switch!$D$54,$F$2:$G$43,2,FALSE)+ROW()-2)),\"\")","v":{"$error":"#N/A"}},{"$f":"IF(INDIRECT(\"c\" & (VLOOKUP(Switch!$D$55,$F$2:$G$43,2,FALSE)+ROW()-2))=Switch!$D$55,INDIRECT(\"a\" & (VLOOKUP(Switch!$D$55,$F$2:$G$43,2,FALSE)+ROW()-2)),\"\")","v":{"$error":"#N/A"}},{"$f":"IF(INDIRECT(\"c\" & (VLOOKUP(Switch!$D$56,$F$2:$G$43,2,FALSE)+ROW()-2))=Switch!$D$56,INDIRECT(\"a\" & (VLOOKUP(Switch!$D$56,$F$2:$G$43,2,FALSE)+ROW()-2)),\"\")","v":{"$error":"#N/A"}},{"$f":"IF(INDIRECT(\"c\" & (VLOOKUP(Switch!$D$57,$F$2:$G$43,2,FALSE)+ROW()-2))=Switch!$D$57,INDIRECT(\"a\" & (VLOOKUP(Switch!$D$57,$F$2:$G$43,2,FALSE)+ROW()-2)),\"\")","v":{"$error":"#N/A"}},{"$f":"IF(INDIRECT(\"c\" & (VLOOKUP(Switch!$D$58,$F$2:$G$43,2,FALSE)+ROW()-2))=Switch!$D$58,INDIRECT(\"a\" & (VLOOKUP(Switch!$D$58,$F$2:$G$43,2,FALSE)+ROW()-2)),\"\")","v":{"$error":"#N/A"}},{"$f":"IF(INDIRECT(\"c\" & (VLOOKUP(Switch!$D$59,$F$2:$G$43,2,FALSE)+ROW()-2))=Switch!$D$59,INDIRECT(\"a\" & (VLOOKUP(Switch!$D$59,$F$2:$G$43,2,FALSE)+ROW()-2)),\"\")","v":{"$error":"#N/A"}},{"$f":"IF(INDIRECT(\"c\" & (VLOOKUP(Switch!$D$60,$F$2:$G$43,2,FALSE)+ROW()-2))=Switch!$D$60,INDIRECT(\"a\" & (VLOOKUP(Switch!$D$60,$F$2:$G$43,2,FALSE)+ROW()-2)),\"\")","v":{"$error":"#N/A"}},{"$f":"IF(INDIRECT(\"c\" & (VLOOKUP(Switch!$D$61,$F$2:$G$43,2,FALSE)+ROW()-2))=Switch!$D$61,INDIRECT(\"a\" & (VLOOKUP(Switch!$D$61,$F$2:$G$43,2,FALSE)+ROW()-2)),\"\")","v":{"$error":"#N/A"}},{"$f":"IF(INDIRECT(\"c\" & (VLOOKUP(Switch!$D$62,$F$2:$G$43,2,FALSE)+ROW()-2))=Switch!$D$62,INDIRECT(\"a\" & (VLOOKUP(Switch!$D$62,$F$2:$G$43,2,FALSE)+ROW()-2)),\"\")","v":{"$error":"#N/A"}},{"$f":"IF(INDIRECT(\"c\" & (VLOOKUP(Switch!$D$63,$F$2:$G$43,2,FALSE)+ROW()-2))=Switch!$D$63,INDIRECT(\"a\" & (VLOOKUP(Switch!$D$63,$F$2:$G$43,2,FALSE)+ROW()-2)),\"\")","v":{"$error":"#N/A"}},{"$f":"IF(INDIRECT(\"c\" & (VLOOKUP(Switch!$D$64,$F$2:$G$43,2,FALSE)+ROW()-2))=Switch!$D$64,INDIRECT(\"a\" & (VLOOKUP(Switch!$D$64,$F$2:$G$43,2,FALSE)+ROW()-2)),\"\")","v":{"$error":"#N/A"}},{"$f":"IF(INDIRECT(\"c\" & (VLOOKUP(Switch!$D$65,$F$2:$G$43,2,FALSE)+ROW()-2))=Switch!$D$65,INDIRECT(\"a\" & (VLOOKUP(Switch!$D$65,$F$2:$G$43,2,FALSE)+ROW()-2)),\"\")","v":{"$error":"#N/A"}},{"$f":"IF(INDIRECT(\"c\" & (VLOOKUP(Switch!$D$66,$F$2:$G$43,2,FALSE)+ROW()-2))=Switch!$D$66,INDIRECT(\"a\" & (VLOOKUP(Switch!$D$66,$F$2:$G$43,2,FALSE)+ROW()-2)),\"\")","v":{"$error":"#N/A"}}]
["SIM Top Choice Fund B4","STTB4","Sanlam Collective Investments",{"$f":"ROW()","v":540},null,null,{"$f":"VLOOKUP(F540,$C$2:$D$637,2,FALSE)","v":{"$error":"#N/A"}},{"$f":"IF(INDIRECT(\"c\" & (VLOOKUP(Switch!$D$26,$F$2:$G$43,2,FALSE)+ROW()-2))=Switch!$D$26,INDIRECT(\"a\" & (VLOOKUP(Switch!$D$26,$F$2:$G$43,2,FALSE)+ROW()-2)),\"\")","v":{"$error":"#N/A"}},{"$f":"IF(INDIRECT(\"c\" & (VLOOKUP(Switch!$D$27,$F$2:$G$43,2,FALSE)+ROW()-2))=Switch!$D$27,INDIRECT(\"a\" & (VLOOKUP(Switch!$D$27,$F$2:$G$43,2,FALSE)+ROW()-2)),\"\")","v":{"$error":"#N/A"}},{"$f":"IF(INDIRECT(\"c\" & (VLOOKUP(Switch!$D$28,$F$2:$G$43,2,FALSE)+ROW()-2))=Switch!$D$28,INDIRECT(\"a\" & (VLOOKUP(Switch!$D$28,$F$2:$G$43,2,FALSE)+ROW()-2)),\"\")","v":{"$error":"#N/A"}},{"$f":"IF(INDIRECT(\"c\" & (VLOOKUP(Switch!$D$29,$F$2:$G$43,2,FALSE)+ROW()-2))=Switch!$D$29,INDIRECT(\"a\" & (VLOOKUP(Switch!$D$29,$F$2:$G$43,2,FALSE)+ROW()-2)),\"\")","v":{"$error":"#N/A"}},{"$f":"IF(INDIRECT(\"c\" & (VLOOKUP(Switch!$D$30,$F$2:$G$43,2,FALSE)+ROW()-2))=Switch!$D$30,INDIRECT(\"a\" & (VLOOKUP(Switch!$D$30,$F$2:$G$43,2,FALSE)+ROW()-2)),\"\")","v":{"$error":"#N/A"}},{"$f":"IF(INDIRECT(\"c\" & (VLOOKUP(Switch!$D$31,$F$2:$G$43,2,FALSE)+ROW()-2))=Switch!$D$31,INDIRECT(\"a\" & (VLOOKUP(Switch!$D$31,$F$2:$G$43,2,FALSE)+ROW()-2)),\"\")","v":{"$error":"#N/A"}},{"$f":"IF(INDIRECT(\"c\" & (VLOOKUP(Switch!$D$32,$F$2:$G$43,2,FALSE)+ROW()-2))=Switch!$D$32,INDIRECT(\"a\" & (VLOOKUP(Switch!$D$32,$F$2:$G$43,2,FALSE)+ROW()-2)),\"\")","v":{"$error":"#N/A"}},{"$f":"IF(INDIRECT(\"c\" & (VLOOKUP(Switch!$D$33,$F$2:$G$43,2,FALSE)+ROW()-2))=Switch!$D$33,INDIRECT(\"a\" & (VLOOKUP(Switch!$D$33,$F$2:$G$43,2,FALSE)+ROW()-2)),\"\")","v":{"$error":"#N/A"}},{"$f":"IF(INDIRECT(\"c\" & (VLOOKUP(Switch!$D$34,$F$2:$G$43,2,FALSE)+ROW()-2))=Switch!$D$34,INDIRECT(\"a\" & (VLOOKUP(Switch!$D$34,$F$2:$G$43,2,FALSE)+ROW()-2)),\"\")","v":{"$error":"#N/A"}},{"$f":"IF(INDIRECT(\"c\" & (VLOOKUP(Switch!$D$35,$F$2:$G$43,2,FALSE)+ROW()-2))=Switch!$D$35,INDIRECT(\"a\" & (VLOOKUP(Switch!$D$35,$F$2:$G$43,2,FALSE)+ROW()-2)),\"\")","v":{"$error":"#N/A"}},{"$f":"IF(INDIRECT(\"c\" & (VLOOKUP(Switch!$D$36,$F$2:$G$43,2,FALSE)+ROW()-2))=Switch!$D$36,INDIRECT(\"a\" & (VLOOKUP(Switch!$D$36,$F$2:$G$43,2,FALSE)+ROW()-2)),\"\")","v":{"$error":"#N/A"}},{"$f":"IF(INDIRECT(\"c\" & (VLOOKUP(Switch!$D$37,$F$2:$G$43,2,FALSE)+ROW()-2))=Switch!$D$37,INDIRECT(\"a\" & (VLOOKUP(Switch!$D$37,$F$2:$G$43,2,FALSE)+ROW()-2)),\"\")","v":{"$error":"#N/A"}},{"$f":"IF(INDIRECT(\"c\" & (VLOOKUP(Switch!$D$38,$F$2:$G$43,2,FALSE)+ROW()-2))=Switch!$D$38,INDIRECT(\"a\" & (VLOOKUP(Switch!$D$38,$F$2:$G$43,2,FALSE)+ROW()-2)),\"\")","v":{"$error":"#N/A"}},{"$f":"IF(INDIRECT(\"c\" & (VLOOKUP(Switch!$D$39,$F$2:$G$43,2,FALSE)+ROW()-2))=Switch!$D$39,INDIRECT(\"a\" & (VLOOKUP(Switch!$D$39,$F$2:$G$43,2,FALSE)+ROW()-2)),\"\")","v":{"$error":"#N/A"}},{"$f":"IF(INDIRECT(\"c\" & (VLOOKUP(Switch!$D$40,$F$2:$G$43,2,FALSE)+ROW()-2))=Switch!$D$40,INDIRECT(\"a\" & (VLOOKUP(Switch!$D$40,$F$2:$G$43,2,FALSE)+ROW()-2)),\"\")","v":{"$error":"#N/A"}},{"$f":"IF(INDIRECT(\"c\" & (VLOOKUP(Switch!$D$52,$F$2:$G$43,2,FALSE)+ROW()-2))=Switch!$D$52,INDIRECT(\"a\" & (VLOOKUP(Switch!$D$52,$F$2:$G$43,2,FALSE)+ROW()-2)),\"\")","v":{"$error":"#N/A"}},{"$f":"IF(INDIRECT(\"c\" & (VLOOKUP(Switch!$D$53,$F$2:$G$43,2,FALSE)+ROW()-2))=Switch!$D$53,INDIRECT(\"a\" & (VLOOKUP(Switch!$D$53,$F$2:$G$43,2,FALSE)+ROW()-2)),\"\")","v":{"$error":"#N/A"}},{"$f":"IF(INDIRECT(\"c\" & (VLOOKUP(Switch!$D$54,$F$2:$G$43,2,FALSE)+ROW()-2))=Switch!$D$54,INDIRECT(\"a\" & (VLOOKUP(Switch!$D$54,$F$2:$G$43,2,FALSE)+ROW()-2)),\"\")","v":{"$error":"#N/A"}},{"$f":"IF(INDIRECT(\"c\" & (VLOOKUP(Switch!$D$55,$F$2:$G$43,2,FALSE)+ROW()-2))=Switch!$D$55,INDIRECT(\"a\" & (VLOOKUP(Switch!$D$55,$F$2:$G$43,2,FALSE)+ROW()-2)),\"\")","v":{"$error":"#N/A"}},{"$f":"IF(INDIRECT(\"c\" & (VLOOKUP(Switch!$D$56,$F$2:$G$43,2,FALSE)+ROW()-2))=Switch!$D$56,INDIRECT(\"a\" & (VLOOKUP(Switch!$D$56,$F$2:$G$43,2,FALSE)+ROW()-2)),\"\")","v":{"$error":"#N/A"}},{"$f":"IF(INDIRECT(\"c\" & (VLOOKUP(Switch!$D$57,$F$2:$G$43,2,FALSE)+ROW()-2))=Switch!$D$57,INDIRECT(\"a\" & (VLOOKUP(Switch!$D$57,$F$2:$G$43,2,FALSE)+ROW()-2)),\"\")","v":{"$error":"#N/A"}},{"$f":"IF(INDIRECT(\"c\" & (VLOOKUP(Switch!$D$58,$F$2:$G$43,2,FALSE)+ROW()-2))=Switch!$D$58,INDIRECT(\"a\" & (VLOOKUP(Switch!$D$58,$F$2:$G$43,2,FALSE)+ROW()-2)),\"\")","v":{"$error":"#N/A"}},{"$f":"IF(INDIRECT(\"c\" & (VLOOKUP(Switch!$D$59,$F$2:$G$43,2,FALSE)+ROW()-2))=Switch!$D$59,INDIRECT(\"a\" & (VLOOKUP(Switch!$D$59,$F$2:$G$43,2,FALSE)+ROW()-2)),\"\")","v":{"$error":"#N/A"}},{"$f":"IF(INDIRECT(\"c\" & (VLOOKUP(Switch!$D$60,$F$2:$G$43,2,FALSE)+ROW()-2))=Switch!$D$60,INDIRECT(\"a\" & (VLOOKUP(Switch!$D$60,$F$2:$G$43,2,FALSE)+ROW()-2)),\"\")","v":{"$error":"#N/A"}},{"$f":"IF(INDIRECT(\"c\" & (VLOOKUP(Switch!$D$61,$F$2:$G$43,2,FALSE)+ROW()-2))=Switch!$D$61,INDIRECT(\"a\" & (VLOOKUP(Switch!$D$61,$F$2:$G$43,2,FALSE)+ROW()-2)),\"\")","v":{"$error":"#N/A"}},{"$f":"IF(INDIRECT(\"c\" & (VLOOKUP(Switch!$D$62,$F$2:$G$43,2,FALSE)+ROW()-2))=Switch!$D$62,INDIRECT(\"a\" & (VLOOKUP(Switch!$D$62,$F$2:$G$43,2,FALSE)+ROW()-2)),\"\")","v":{"$error":"#N/A"}},{"$f":"IF(INDIRECT(\"c\" & (VLOOKUP(Switch!$D$63,$F$2:$G$43,2,FALSE)+ROW()-2))=Switch!$D$63,INDIRECT(\"a\" & (VLOOKUP(Switch!$D$63,$F$2:$G$43,2,FALSE)+ROW()-2)),\"\")","v":{"$error":"#N/A"}},{"$f":"IF(INDIRECT(\"c\" & (VLOOKUP(Switch!$D$64,$F$2:$G$43,2,FALSE)+ROW()-2))=Switch!$D$64,INDIRECT(\"a\" & (VLOOKUP(Switch!$D$64,$F$2:$G$43,2,FALSE)+ROW()-2)),\"\")","v":{"$error":"#N/A"}},{"$f":"IF(INDIRECT(\"c\" & (VLOOKUP(Switch!$D$65,$F$2:$G$43,2,FALSE)+ROW()-2))=Switch!$D$65,INDIRECT(\"a\" & (VLOOKUP(Switch!$D$65,$F$2:$G$43,2,FALSE)+ROW()-2)),\"\")","v":{"$error":"#N/A"}},{"$f":"IF(INDIRECT(\"c\" & (VLOOKUP(Switch!$D$66,$F$2:$G$43,2,FALSE)+ROW()-2))=Switch!$D$66,INDIRECT(\"a\" & (VLOOKUP(Switch!$D$66,$F$2:$G$43,2,FALSE)+ROW()-2)),\"\")","v":{"$error":"#N/A"}}]
["SIM Value Fund","SNVL","Sanlam Collective Investments",{"$f":"ROW()","v":541},null,null,{"$f":"VLOOKUP(F541,$C$2:$D$637,2,FALSE)","v":{"$error":"#N/A"}},{"$f":"IF(INDIRECT(\"c\" & (VLOOKUP(Switch!$D$26,$F$2:$G$43,2,FALSE)+ROW()-2))=Switch!$D$26,INDIRECT(\"a\" & (VLOOKUP(Switch!$D$26,$F$2:$G$43,2,FALSE)+ROW()-2)),\"\")","v":{"$error":"#N/A"}},{"$f":"IF(INDIRECT(\"c\" & (VLOOKUP(Switch!$D$27,$F$2:$G$43,2,FALSE)+ROW()-2))=Switch!$D$27,INDIRECT(\"a\" & (VLOOKUP(Switch!$D$27,$F$2:$G$43,2,FALSE)+ROW()-2)),\"\")","v":{"$error":"#N/A"}},{"$f":"IF(INDIRECT(\"c\" & (VLOOKUP(Switch!$D$28,$F$2:$G$43,2,FALSE)+ROW()-2))=Switch!$D$28,INDIRECT(\"a\" & (VLOOKUP(Switch!$D$28,$F$2:$G$43,2,FALSE)+ROW()-2)),\"\")","v":{"$error":"#N/A"}},{"$f":"IF(INDIRECT(\"c\" & (VLOOKUP(Switch!$D$29,$F$2:$G$43,2,FALSE)+ROW()-2))=Switch!$D$29,INDIRECT(\"a\" & (VLOOKUP(Switch!$D$29,$F$2:$G$43,2,FALSE)+ROW()-2)),\"\")","v":{"$error":"#N/A"}},{"$f":"IF(INDIRECT(\"c\" & (VLOOKUP(Switch!$D$30,$F$2:$G$43,2,FALSE)+ROW()-2))=Switch!$D$30,INDIRECT(\"a\" & (VLOOKUP(Switch!$D$30,$F$2:$G$43,2,FALSE)+ROW()-2)),\"\")","v":{"$error":"#N/A"}},{"$f":"IF(INDIRECT(\"c\" & (VLOOKUP(Switch!$D$31,$F$2:$G$43,2,FALSE)+ROW()-2))=Switch!$D$31,INDIRECT(\"a\" & (VLOOKUP(Switch!$D$31,$F$2:$G$43,2,FALSE)+ROW()-2)),\"\")","v":{"$error":"#N/A"}},{"$f":"IF(INDIRECT(\"c\" & (VLOOKUP(Switch!$D$32,$F$2:$G$43,2,FALSE)+ROW()-2))=Switch!$D$32,INDIRECT(\"a\" & (VLOOKUP(Switch!$D$32,$F$2:$G$43,2,FALSE)+ROW()-2)),\"\")","v":{"$error":"#N/A"}},{"$f":"IF(INDIRECT(\"c\" & (VLOOKUP(Switch!$D$33,$F$2:$G$43,2,FALSE)+ROW()-2))=Switch!$D$33,INDIRECT(\"a\" & (VLOOKUP(Switch!$D$33,$F$2:$G$43,2,FALSE)+ROW()-2)),\"\")","v":{"$error":"#N/A"}},{"$f":"IF(INDIRECT(\"c\" & (VLOOKUP(Switch!$D$34,$F$2:$G$43,2,FALSE)+ROW()-2))=Switch!$D$34,INDIRECT(\"a\" & (VLOOKUP(Switch!$D$34,$F$2:$G$43,2,FALSE)+ROW()-2)),\"\")","v":{"$error":"#N/A"}},{"$f":"IF(INDIRECT(\"c\" & (VLOOKUP(Switch!$D$35,$F$2:$G$43,2,FALSE)+ROW()-2))=Switch!$D$35,INDIRECT(\"a\" & (VLOOKUP(Switch!$D$35,$F$2:$G$43,2,FALSE)+ROW()-2)),\"\")","v":{"$error":"#N/A"}},{"$f":"IF(INDIRECT(\"c\" & (VLOOKUP(Switch!$D$36,$F$2:$G$43,2,FALSE)+ROW()-2))=Switch!$D$36,INDIRECT(\"a\" & (VLOOKUP(Switch!$D$36,$F$2:$G$43,2,FALSE)+ROW()-2)),\"\")","v":{"$error":"#N/A"}},{"$f":"IF(INDIRECT(\"c\" & (VLOOKUP(Switch!$D$37,$F$2:$G$43,2,FALSE)+ROW()-2))=Switch!$D$37,INDIRECT(\"a\" & (VLOOKUP(Switch!$D$37,$F$2:$G$43,2,FALSE)+ROW()-2)),\"\")","v":{"$error":"#N/A"}},{"$f":"IF(INDIRECT(\"c\" & (VLOOKUP(Switch!$D$38,$F$2:$G$43,2,FALSE)+ROW()-2))=Switch!$D$38,INDIRECT(\"a\" & (VLOOKUP(Switch!$D$38,$F$2:$G$43,2,FALSE)+ROW()-2)),\"\")","v":{"$error":"#N/A"}},{"$f":"IF(INDIRECT(\"c\" & (VLOOKUP(Switch!$D$39,$F$2:$G$43,2,FALSE)+ROW()-2))=Switch!$D$39,INDIRECT(\"a\" & (VLOOKUP(Switch!$D$39,$F$2:$G$43,2,FALSE)+ROW()-2)),\"\")","v":{"$error":"#N/A"}},{"$f":"IF(INDIRECT(\"c\" & (VLOOKUP(Switch!$D$40,$F$2:$G$43,2,FALSE)+ROW()-2))=Switch!$D$40,INDIRECT(\"a\" & (VLOOKUP(Switch!$D$40,$F$2:$G$43,2,FALSE)+ROW()-2)),\"\")","v":{"$error":"#N/A"}},{"$f":"IF(INDIRECT(\"c\" & (VLOOKUP(Switch!$D$52,$F$2:$G$43,2,FALSE)+ROW()-2))=Switch!$D$52,INDIRECT(\"a\" & (VLOOKUP(Switch!$D$52,$F$2:$G$43,2,FALSE)+ROW()-2)),\"\")","v":{"$error":"#N/A"}},{"$f":"IF(INDIRECT(\"c\" & (VLOOKUP(Switch!$D$53,$F$2:$G$43,2,FALSE)+ROW()-2))=Switch!$D$53,INDIRECT(\"a\" & (VLOOKUP(Switch!$D$53,$F$2:$G$43,2,FALSE)+ROW()-2)),\"\")","v":{"$error":"#N/A"}},{"$f":"IF(INDIRECT(\"c\" & (VLOOKUP(Switch!$D$54,$F$2:$G$43,2,FALSE)+ROW()-2))=Switch!$D$54,INDIRECT(\"a\" & (VLOOKUP(Switch!$D$54,$F$2:$G$43,2,FALSE)+ROW()-2)),\"\")","v":{"$error":"#N/A"}},{"$f":"IF(INDIRECT(\"c\" & (VLOOKUP(Switch!$D$55,$F$2:$G$43,2,FALSE)+ROW()-2))=Switch!$D$55,INDIRECT(\"a\" & (VLOOKUP(Switch!$D$55,$F$2:$G$43,2,FALSE)+ROW()-2)),\"\")","v":{"$error":"#N/A"}},{"$f":"IF(INDIRECT(\"c\" & (VLOOKUP(Switch!$D$56,$F$2:$G$43,2,FALSE)+ROW()-2))=Switch!$D$56,INDIRECT(\"a\" & (VLOOKUP(Switch!$D$56,$F$2:$G$43,2,FALSE)+ROW()-2)),\"\")","v":{"$error":"#N/A"}},{"$f":"IF(INDIRECT(\"c\" & (VLOOKUP(Switch!$D$57,$F$2:$G$43,2,FALSE)+ROW()-2))=Switch!$D$57,INDIRECT(\"a\" & (VLOOKUP(Switch!$D$57,$F$2:$G$43,2,FALSE)+ROW()-2)),\"\")","v":{"$error":"#N/A"}},{"$f":"IF(INDIRECT(\"c\" & (VLOOKUP(Switch!$D$58,$F$2:$G$43,2,FALSE)+ROW()-2))=Switch!$D$58,INDIRECT(\"a\" & (VLOOKUP(Switch!$D$58,$F$2:$G$43,2,FALSE)+ROW()-2)),\"\")","v":{"$error":"#N/A"}},{"$f":"IF(INDIRECT(\"c\" & (VLOOKUP(Switch!$D$59,$F$2:$G$43,2,FALSE)+ROW()-2))=Switch!$D$59,INDIRECT(\"a\" & (VLOOKUP(Switch!$D$59,$F$2:$G$43,2,FALSE)+ROW()-2)),\"\")","v":{"$error":"#N/A"}},{"$f":"IF(INDIRECT(\"c\" & (VLOOKUP(Switch!$D$60,$F$2:$G$43,2,FALSE)+ROW()-2))=Switch!$D$60,INDIRECT(\"a\" & (VLOOKUP(Switch!$D$60,$F$2:$G$43,2,FALSE)+ROW()-2)),\"\")","v":{"$error":"#N/A"}},{"$f":"IF(INDIRECT(\"c\" & (VLOOKUP(Switch!$D$61,$F$2:$G$43,2,FALSE)+ROW()-2))=Switch!$D$61,INDIRECT(\"a\" & (VLOOKUP(Switch!$D$61,$F$2:$G$43,2,FALSE)+ROW()-2)),\"\")","v":{"$error":"#N/A"}},{"$f":"IF(INDIRECT(\"c\" & (VLOOKUP(Switch!$D$62,$F$2:$G$43,2,FALSE)+ROW()-2))=Switch!$D$62,INDIRECT(\"a\" & (VLOOKUP(Switch!$D$62,$F$2:$G$43,2,FALSE)+ROW()-2)),\"\")","v":{"$error":"#N/A"}},{"$f":"IF(INDIRECT(\"c\" & (VLOOKUP(Switch!$D$63,$F$2:$G$43,2,FALSE)+ROW()-2))=Switch!$D$63,INDIRECT(\"a\" & (VLOOKUP(Switch!$D$63,$F$2:$G$43,2,FALSE)+ROW()-2)),\"\")","v":{"$error":"#N/A"}},{"$f":"IF(INDIRECT(\"c\" & (VLOOKUP(Switch!$D$64,$F$2:$G$43,2,FALSE)+ROW()-2))=Switch!$D$64,INDIRECT(\"a\" & (VLOOKUP(Switch!$D$64,$F$2:$G$43,2,FALSE)+ROW()-2)),\"\")","v":{"$error":"#N/A"}},{"$f":"IF(INDIRECT(\"c\" & (VLOOKUP(Switch!$D$65,$F$2:$G$43,2,FALSE)+ROW()-2))=Switch!$D$65,INDIRECT(\"a\" & (VLOOKUP(Switch!$D$65,$F$2:$G$43,2,FALSE)+ROW()-2)),\"\")","v":{"$error":"#N/A"}},{"$f":"IF(INDIRECT(\"c\" & (VLOOKUP(Switch!$D$66,$F$2:$G$43,2,FALSE)+ROW()-2))=Switch!$D$66,INDIRECT(\"a\" & (VLOOKUP(Switch!$D$66,$F$2:$G$43,2,FALSE)+ROW()-2)),\"\")","v":{"$error":"#N/A"}}]
["SIM Value Fund B6","SNVL","Sanlam Collective Investments",{"$f":"ROW()","v":542},null,null,{"$f":"VLOOKUP(F542,$C$2:$D$637,2,FALSE)","v":{"$error":"#N/A"}},{"$f":"IF(INDIRECT(\"c\" & (VLOOKUP(Switch!$D$26,$F$2:$G$43,2,FALSE)+ROW()-2))=Switch!$D$26,INDIRECT(\"a\" & (VLOOKUP(Switch!$D$26,$F$2:$G$43,2,FALSE)+ROW()-2)),\"\")","v":{"$error":"#N/A"}},{"$f":"IF(INDIRECT(\"c\" & (VLOOKUP(Switch!$D$27,$F$2:$G$43,2,FALSE)+ROW()-2))=Switch!$D$27,INDIRECT(\"a\" & (VLOOKUP(Switch!$D$27,$F$2:$G$43,2,FALSE)+ROW()-2)),\"\")","v":{"$error":"#N/A"}},{"$f":"IF(INDIRECT(\"c\" & (VLOOKUP(Switch!$D$28,$F$2:$G$43,2,FALSE)+ROW()-2))=Switch!$D$28,INDIRECT(\"a\" & (VLOOKUP(Switch!$D$28,$F$2:$G$43,2,FALSE)+ROW()-2)),\"\")","v":{"$error":"#N/A"}},{"$f":"IF(INDIRECT(\"c\" & (VLOOKUP(Switch!$D$29,$F$2:$G$43,2,FALSE)+ROW()-2))=Switch!$D$29,INDIRECT(\"a\" & (VLOOKUP(Switch!$D$29,$F$2:$G$43,2,FALSE)+ROW()-2)),\"\")","v":{"$error":"#N/A"}},{"$f":"IF(INDIRECT(\"c\" & (VLOOKUP(Switch!$D$30,$F$2:$G$43,2,FALSE)+ROW()-2))=Switch!$D$30,INDIRECT(\"a\" & (VLOOKUP(Switch!$D$30,$F$2:$G$43,2,FALSE)+ROW()-2)),\"\")","v":{"$error":"#N/A"}},{"$f":"IF(INDIRECT(\"c\" & (VLOOKUP(Switch!$D$31,$F$2:$G$43,2,FALSE)+ROW()-2))=Switch!$D$31,INDIRECT(\"a\" & (VLOOKUP(Switch!$D$31,$F$2:$G$43,2,FALSE)+ROW()-2)),\"\")","v":{"$error":"#N/A"}},{"$f":"IF(INDIRECT(\"c\" & (VLOOKUP(Switch!$D$32,$F$2:$G$43,2,FALSE)+ROW()-2))=Switch!$D$32,INDIRECT(\"a\" & (VLOOKUP(Switch!$D$32,$F$2:$G$43,2,FALSE)+ROW()-2)),\"\")","v":{"$error":"#N/A"}},{"$f":"IF(INDIRECT(\"c\" & (VLOOKUP(Switch!$D$33,$F$2:$G$43,2,FALSE)+ROW()-2))=Switch!$D$33,INDIRECT(\"a\" & (VLOOKUP(Switch!$D$33,$F$2:$G$43,2,FALSE)+ROW()-2)),\"\")","v":{"$error":"#N/A"}},{"$f":"IF(INDIRECT(\"c\" & (VLOOKUP(Switch!$D$34,$F$2:$G$43,2,FALSE)+ROW()-2))=Switch!$D$34,INDIRECT(\"a\" & (VLOOKUP(Switch!$D$34,$F$2:$G$43,2,FALSE)+ROW()-2)),\"\")","v":{"$error":"#N/A"}},{"$f":"IF(INDIRECT(\"c\" & (VLOOKUP(Switch!$D$35,$F$2:$G$43,2,FALSE)+ROW()-2))=Switch!$D$35,INDIRECT(\"a\" & (VLOOKUP(Switch!$D$35,$F$2:$G$43,2,FALSE)+ROW()-2)),\"\")","v":{"$error":"#N/A"}},{"$f":"IF(INDIRECT(\"c\" & (VLOOKUP(Switch!$D$36,$F$2:$G$43,2,FALSE)+ROW()-2))=Switch!$D$36,INDIRECT(\"a\" & (VLOOKUP(Switch!$D$36,$F$2:$G$43,2,FALSE)+ROW()-2)),\"\")","v":{"$error":"#N/A"}},{"$f":"IF(INDIRECT(\"c\" & (VLOOKUP(Switch!$D$37,$F$2:$G$43,2,FALSE)+ROW()-2))=Switch!$D$37,INDIRECT(\"a\" & (VLOOKUP(Switch!$D$37,$F$2:$G$43,2,FALSE)+ROW()-2)),\"\")","v":{"$error":"#N/A"}},{"$f":"IF(INDIRECT(\"c\" & (VLOOKUP(Switch!$D$38,$F$2:$G$43,2,FALSE)+ROW()-2))=Switch!$D$38,INDIRECT(\"a\" & (VLOOKUP(Switch!$D$38,$F$2:$G$43,2,FALSE)+ROW()-2)),\"\")","v":{"$error":"#N/A"}},{"$f":"IF(INDIRECT(\"c\" & (VLOOKUP(Switch!$D$39,$F$2:$G$43,2,FALSE)+ROW()-2))=Switch!$D$39,INDIRECT(\"a\" & (VLOOKUP(Switch!$D$39,$F$2:$G$43,2,FALSE)+ROW()-2)),\"\")","v":{"$error":"#N/A"}},{"$f":"IF(INDIRECT(\"c\" & (VLOOKUP(Switch!$D$40,$F$2:$G$43,2,FALSE)+ROW()-2))=Switch!$D$40,INDIRECT(\"a\" & (VLOOKUP(Switch!$D$40,$F$2:$G$43,2,FALSE)+ROW()-2)),\"\")","v":{"$error":"#N/A"}},{"$f":"IF(INDIRECT(\"c\" & (VLOOKUP(Switch!$D$52,$F$2:$G$43,2,FALSE)+ROW()-2))=Switch!$D$52,INDIRECT(\"a\" & (VLOOKUP(Switch!$D$52,$F$2:$G$43,2,FALSE)+ROW()-2)),\"\")","v":{"$error":"#N/A"}},{"$f":"IF(INDIRECT(\"c\" & (VLOOKUP(Switch!$D$53,$F$2:$G$43,2,FALSE)+ROW()-2))=Switch!$D$53,INDIRECT(\"a\" & (VLOOKUP(Switch!$D$53,$F$2:$G$43,2,FALSE)+ROW()-2)),\"\")","v":{"$error":"#N/A"}},{"$f":"IF(INDIRECT(\"c\" & (VLOOKUP(Switch!$D$54,$F$2:$G$43,2,FALSE)+ROW()-2))=Switch!$D$54,INDIRECT(\"a\" & (VLOOKUP(Switch!$D$54,$F$2:$G$43,2,FALSE)+ROW()-2)),\"\")","v":{"$error":"#N/A"}},{"$f":"IF(INDIRECT(\"c\" & (VLOOKUP(Switch!$D$55,$F$2:$G$43,2,FALSE)+ROW()-2))=Switch!$D$55,INDIRECT(\"a\" & (VLOOKUP(Switch!$D$55,$F$2:$G$43,2,FALSE)+ROW()-2)),\"\")","v":{"$error":"#N/A"}},{"$f":"IF(INDIRECT(\"c\" & (VLOOKUP(Switch!$D$56,$F$2:$G$43,2,FALSE)+ROW()-2))=Switch!$D$56,INDIRECT(\"a\" & (VLOOKUP(Switch!$D$56,$F$2:$G$43,2,FALSE)+ROW()-2)),\"\")","v":{"$error":"#N/A"}},{"$f":"IF(INDIRECT(\"c\" & (VLOOKUP(Switch!$D$57,$F$2:$G$43,2,FALSE)+ROW()-2))=Switch!$D$57,INDIRECT(\"a\" & (VLOOKUP(Switch!$D$57,$F$2:$G$43,2,FALSE)+ROW()-2)),\"\")","v":{"$error":"#N/A"}},{"$f":"IF(INDIRECT(\"c\" & (VLOOKUP(Switch!$D$58,$F$2:$G$43,2,FALSE)+ROW()-2))=Switch!$D$58,INDIRECT(\"a\" & (VLOOKUP(Switch!$D$58,$F$2:$G$43,2,FALSE)+ROW()-2)),\"\")","v":{"$error":"#N/A"}},{"$f":"IF(INDIRECT(\"c\" & (VLOOKUP(Switch!$D$59,$F$2:$G$43,2,FALSE)+ROW()-2))=Switch!$D$59,INDIRECT(\"a\" & (VLOOKUP(Switch!$D$59,$F$2:$G$43,2,FALSE)+ROW()-2)),\"\")","v":{"$error":"#N/A"}},{"$f":"IF(INDIRECT(\"c\" & (VLOOKUP(Switch!$D$60,$F$2:$G$43,2,FALSE)+ROW()-2))=Switch!$D$60,INDIRECT(\"a\" & (VLOOKUP(Switch!$D$60,$F$2:$G$43,2,FALSE)+ROW()-2)),\"\")","v":{"$error":"#N/A"}},{"$f":"IF(INDIRECT(\"c\" & (VLOOKUP(Switch!$D$61,$F$2:$G$43,2,FALSE)+ROW()-2))=Switch!$D$61,INDIRECT(\"a\" & (VLOOKUP(Switch!$D$61,$F$2:$G$43,2,FALSE)+ROW()-2)),\"\")","v":{"$error":"#N/A"}},{"$f":"IF(INDIRECT(\"c\" & (VLOOKUP(Switch!$D$62,$F$2:$G$43,2,FALSE)+ROW()-2))=Switch!$D$62,INDIRECT(\"a\" & (VLOOKUP(Switch!$D$62,$F$2:$G$43,2,FALSE)+ROW()-2)),\"\")","v":{"$error":"#N/A"}},{"$f":"IF(INDIRECT(\"c\" & (VLOOKUP(Switch!$D$63,$F$2:$G$43,2,FALSE)+ROW()-2))=Switch!$D$63,INDIRECT(\"a\" & (VLOOKUP(Switch!$D$63,$F$2:$G$43,2,FALSE)+ROW()-2)),\"\")","v":{"$error":"#N/A"}},{"$f":"IF(INDIRECT(\"c\" & (VLOOKUP(Switch!$D$64,$F$2:$G$43,2,FALSE)+ROW()-2))=Switch!$D$64,INDIRECT(\"a\" & (VLOOKUP(Switch!$D$64,$F$2:$G$43,2,FALSE)+ROW()-2)),\"\")","v":{"$error":"#N/A"}},{"$f":"IF(INDIRECT(\"c\" & (VLOOKUP(Switch!$D$65,$F$2:$G$43,2,FALSE)+ROW()-2))=Switch!$D$65,INDIRECT(\"a\" & (VLOOKUP(Switch!$D$65,$F$2:$G$43,2,FALSE)+ROW()-2)),\"\")","v":{"$error":"#N/A"}},{"$f":"IF(INDIRECT(\"c\" & (VLOOKUP(Switch!$D$66,$F$2:$G$43,2,FALSE)+ROW()-2))=Switch!$D$66,INDIRECT(\"a\" & (VLOOKUP(Switch!$D$66,$F$2:$G$43,2,FALSE)+ROW()-2)),\"\")","v":{"$error":"#N/A"}}]
["SMMI Equity Fund of Funds","SAFF","Sanlam Collective Investments",{"$f":"ROW()","v":543},null,null,{"$f":"VLOOKUP(F543,$C$2:$D$637,2,FALSE)","v":{"$error":"#N/A"}},{"$f":"IF(INDIRECT(\"c\" & (VLOOKUP(Switch!$D$26,$F$2:$G$43,2,FALSE)+ROW()-2))=Switch!$D$26,INDIRECT(\"a\" & (VLOOKUP(Switch!$D$26,$F$2:$G$43,2,FALSE)+ROW()-2)),\"\")","v":{"$error":"#N/A"}},{"$f":"IF(INDIRECT(\"c\" & (VLOOKUP(Switch!$D$27,$F$2:$G$43,2,FALSE)+ROW()-2))=Switch!$D$27,INDIRECT(\"a\" & (VLOOKUP(Switch!$D$27,$F$2:$G$43,2,FALSE)+ROW()-2)),\"\")","v":{"$error":"#N/A"}},{"$f":"IF(INDIRECT(\"c\" & (VLOOKUP(Switch!$D$28,$F$2:$G$43,2,FALSE)+ROW()-2))=Switch!$D$28,INDIRECT(\"a\" & (VLOOKUP(Switch!$D$28,$F$2:$G$43,2,FALSE)+ROW()-2)),\"\")","v":{"$error":"#N/A"}},{"$f":"IF(INDIRECT(\"c\" & (VLOOKUP(Switch!$D$29,$F$2:$G$43,2,FALSE)+ROW()-2))=Switch!$D$29,INDIRECT(\"a\" & (VLOOKUP(Switch!$D$29,$F$2:$G$43,2,FALSE)+ROW()-2)),\"\")","v":{"$error":"#N/A"}},{"$f":"IF(INDIRECT(\"c\" & (VLOOKUP(Switch!$D$30,$F$2:$G$43,2,FALSE)+ROW()-2))=Switch!$D$30,INDIRECT(\"a\" & (VLOOKUP(Switch!$D$30,$F$2:$G$43,2,FALSE)+ROW()-2)),\"\")","v":{"$error":"#N/A"}},{"$f":"IF(INDIRECT(\"c\" & (VLOOKUP(Switch!$D$31,$F$2:$G$43,2,FALSE)+ROW()-2))=Switch!$D$31,INDIRECT(\"a\" & (VLOOKUP(Switch!$D$31,$F$2:$G$43,2,FALSE)+ROW()-2)),\"\")","v":{"$error":"#N/A"}},{"$f":"IF(INDIRECT(\"c\" & (VLOOKUP(Switch!$D$32,$F$2:$G$43,2,FALSE)+ROW()-2))=Switch!$D$32,INDIRECT(\"a\" & (VLOOKUP(Switch!$D$32,$F$2:$G$43,2,FALSE)+ROW()-2)),\"\")","v":{"$error":"#N/A"}},{"$f":"IF(INDIRECT(\"c\" & (VLOOKUP(Switch!$D$33,$F$2:$G$43,2,FALSE)+ROW()-2))=Switch!$D$33,INDIRECT(\"a\" & (VLOOKUP(Switch!$D$33,$F$2:$G$43,2,FALSE)+ROW()-2)),\"\")","v":{"$error":"#N/A"}},{"$f":"IF(INDIRECT(\"c\" & (VLOOKUP(Switch!$D$34,$F$2:$G$43,2,FALSE)+ROW()-2))=Switch!$D$34,INDIRECT(\"a\" & (VLOOKUP(Switch!$D$34,$F$2:$G$43,2,FALSE)+ROW()-2)),\"\")","v":{"$error":"#N/A"}},{"$f":"IF(INDIRECT(\"c\" & (VLOOKUP(Switch!$D$35,$F$2:$G$43,2,FALSE)+ROW()-2))=Switch!$D$35,INDIRECT(\"a\" & (VLOOKUP(Switch!$D$35,$F$2:$G$43,2,FALSE)+ROW()-2)),\"\")","v":{"$error":"#N/A"}},{"$f":"IF(INDIRECT(\"c\" & (VLOOKUP(Switch!$D$36,$F$2:$G$43,2,FALSE)+ROW()-2))=Switch!$D$36,INDIRECT(\"a\" & (VLOOKUP(Switch!$D$36,$F$2:$G$43,2,FALSE)+ROW()-2)),\"\")","v":{"$error":"#N/A"}},{"$f":"IF(INDIRECT(\"c\" & (VLOOKUP(Switch!$D$37,$F$2:$G$43,2,FALSE)+ROW()-2))=Switch!$D$37,INDIRECT(\"a\" & (VLOOKUP(Switch!$D$37,$F$2:$G$43,2,FALSE)+ROW()-2)),\"\")","v":{"$error":"#N/A"}},{"$f":"IF(INDIRECT(\"c\" & (VLOOKUP(Switch!$D$38,$F$2:$G$43,2,FALSE)+ROW()-2))=Switch!$D$38,INDIRECT(\"a\" & (VLOOKUP(Switch!$D$38,$F$2:$G$43,2,FALSE)+ROW()-2)),\"\")","v":{"$error":"#N/A"}},{"$f":"IF(INDIRECT(\"c\" & (VLOOKUP(Switch!$D$39,$F$2:$G$43,2,FALSE)+ROW()-2))=Switch!$D$39,INDIRECT(\"a\" & (VLOOKUP(Switch!$D$39,$F$2:$G$43,2,FALSE)+ROW()-2)),\"\")","v":{"$error":"#N/A"}},{"$f":"IF(INDIRECT(\"c\" & (VLOOKUP(Switch!$D$40,$F$2:$G$43,2,FALSE)+ROW()-2))=Switch!$D$40,INDIRECT(\"a\" & (VLOOKUP(Switch!$D$40,$F$2:$G$43,2,FALSE)+ROW()-2)),\"\")","v":{"$error":"#N/A"}},{"$f":"IF(INDIRECT(\"c\" & (VLOOKUP(Switch!$D$52,$F$2:$G$43,2,FALSE)+ROW()-2))=Switch!$D$52,INDIRECT(\"a\" & (VLOOKUP(Switch!$D$52,$F$2:$G$43,2,FALSE)+ROW()-2)),\"\")","v":{"$error":"#N/A"}},{"$f":"IF(INDIRECT(\"c\" & (VLOOKUP(Switch!$D$53,$F$2:$G$43,2,FALSE)+ROW()-2))=Switch!$D$53,INDIRECT(\"a\" & (VLOOKUP(Switch!$D$53,$F$2:$G$43,2,FALSE)+ROW()-2)),\"\")","v":{"$error":"#N/A"}},{"$f":"IF(INDIRECT(\"c\" & (VLOOKUP(Switch!$D$54,$F$2:$G$43,2,FALSE)+ROW()-2))=Switch!$D$54,INDIRECT(\"a\" & (VLOOKUP(Switch!$D$54,$F$2:$G$43,2,FALSE)+ROW()-2)),\"\")","v":{"$error":"#N/A"}},{"$f":"IF(INDIRECT(\"c\" & (VLOOKUP(Switch!$D$55,$F$2:$G$43,2,FALSE)+ROW()-2))=Switch!$D$55,INDIRECT(\"a\" & (VLOOKUP(Switch!$D$55,$F$2:$G$43,2,FALSE)+ROW()-2)),\"\")","v":{"$error":"#N/A"}},{"$f":"IF(INDIRECT(\"c\" & (VLOOKUP(Switch!$D$56,$F$2:$G$43,2,FALSE)+ROW()-2))=Switch!$D$56,INDIRECT(\"a\" & (VLOOKUP(Switch!$D$56,$F$2:$G$43,2,FALSE)+ROW()-2)),\"\")","v":{"$error":"#N/A"}},{"$f":"IF(INDIRECT(\"c\" & (VLOOKUP(Switch!$D$57,$F$2:$G$43,2,FALSE)+ROW()-2))=Switch!$D$57,INDIRECT(\"a\" & (VLOOKUP(Switch!$D$57,$F$2:$G$43,2,FALSE)+ROW()-2)),\"\")","v":{"$error":"#N/A"}},{"$f":"IF(INDIRECT(\"c\" & (VLOOKUP(Switch!$D$58,$F$2:$G$43,2,FALSE)+ROW()-2))=Switch!$D$58,INDIRECT(\"a\" & (VLOOKUP(Switch!$D$58,$F$2:$G$43,2,FALSE)+ROW()-2)),\"\")","v":{"$error":"#N/A"}},{"$f":"IF(INDIRECT(\"c\" & (VLOOKUP(Switch!$D$59,$F$2:$G$43,2,FALSE)+ROW()-2))=Switch!$D$59,INDIRECT(\"a\" & (VLOOKUP(Switch!$D$59,$F$2:$G$43,2,FALSE)+ROW()-2)),\"\")","v":{"$error":"#N/A"}},{"$f":"IF(INDIRECT(\"c\" & (VLOOKUP(Switch!$D$60,$F$2:$G$43,2,FALSE)+ROW()-2))=Switch!$D$60,INDIRECT(\"a\" & (VLOOKUP(Switch!$D$60,$F$2:$G$43,2,FALSE)+ROW()-2)),\"\")","v":{"$error":"#N/A"}},{"$f":"IF(INDIRECT(\"c\" & (VLOOKUP(Switch!$D$61,$F$2:$G$43,2,FALSE)+ROW()-2))=Switch!$D$61,INDIRECT(\"a\" & (VLOOKUP(Switch!$D$61,$F$2:$G$43,2,FALSE)+ROW()-2)),\"\")","v":{"$error":"#N/A"}},{"$f":"IF(INDIRECT(\"c\" & (VLOOKUP(Switch!$D$62,$F$2:$G$43,2,FALSE)+ROW()-2))=Switch!$D$62,INDIRECT(\"a\" & (VLOOKUP(Switch!$D$62,$F$2:$G$43,2,FALSE)+ROW()-2)),\"\")","v":{"$error":"#N/A"}},{"$f":"IF(INDIRECT(\"c\" & (VLOOKUP(Switch!$D$63,$F$2:$G$43,2,FALSE)+ROW()-2))=Switch!$D$63,INDIRECT(\"a\" & (VLOOKUP(Switch!$D$63,$F$2:$G$43,2,FALSE)+ROW()-2)),\"\")","v":{"$error":"#N/A"}},{"$f":"IF(INDIRECT(\"c\" & (VLOOKUP(Switch!$D$64,$F$2:$G$43,2,FALSE)+ROW()-2))=Switch!$D$64,INDIRECT(\"a\" & (VLOOKUP(Switch!$D$64,$F$2:$G$43,2,FALSE)+ROW()-2)),\"\")","v":{"$error":"#N/A"}},{"$f":"IF(INDIRECT(\"c\" & (VLOOKUP(Switch!$D$65,$F$2:$G$43,2,FALSE)+ROW()-2))=Switch!$D$65,INDIRECT(\"a\" & (VLOOKUP(Switch!$D$65,$F$2:$G$43,2,FALSE)+ROW()-2)),\"\")","v":{"$error":"#N/A"}},{"$f":"IF(INDIRECT(\"c\" & (VLOOKUP(Switch!$D$66,$F$2:$G$43,2,FALSE)+ROW()-2))=Switch!$D$66,INDIRECT(\"a\" & (VLOOKUP(Switch!$D$66,$F$2:$G$43,2,FALSE)+ROW()-2)),\"\")","v":{"$error":"#N/A"}}]
["Satrix Alsi Index Fund B1","STAB1","Satrix Managers (RF) (Pty) Ltd",{"$f":"ROW()","v":544},null,null,{"$f":"VLOOKUP(F544,$C$2:$D$637,2,FALSE)","v":{"$error":"#N/A"}},{"$f":"IF(INDIRECT(\"c\" & (VLOOKUP(Switch!$D$26,$F$2:$G$43,2,FALSE)+ROW()-2))=Switch!$D$26,INDIRECT(\"a\" & (VLOOKUP(Switch!$D$26,$F$2:$G$43,2,FALSE)+ROW()-2)),\"\")","v":{"$error":"#N/A"}},{"$f":"IF(INDIRECT(\"c\" & (VLOOKUP(Switch!$D$27,$F$2:$G$43,2,FALSE)+ROW()-2))=Switch!$D$27,INDIRECT(\"a\" & (VLOOKUP(Switch!$D$27,$F$2:$G$43,2,FALSE)+ROW()-2)),\"\")","v":{"$error":"#N/A"}},{"$f":"IF(INDIRECT(\"c\" & (VLOOKUP(Switch!$D$28,$F$2:$G$43,2,FALSE)+ROW()-2))=Switch!$D$28,INDIRECT(\"a\" & (VLOOKUP(Switch!$D$28,$F$2:$G$43,2,FALSE)+ROW()-2)),\"\")","v":{"$error":"#N/A"}},{"$f":"IF(INDIRECT(\"c\" & (VLOOKUP(Switch!$D$29,$F$2:$G$43,2,FALSE)+ROW()-2))=Switch!$D$29,INDIRECT(\"a\" & (VLOOKUP(Switch!$D$29,$F$2:$G$43,2,FALSE)+ROW()-2)),\"\")","v":{"$error":"#N/A"}},{"$f":"IF(INDIRECT(\"c\" & (VLOOKUP(Switch!$D$30,$F$2:$G$43,2,FALSE)+ROW()-2))=Switch!$D$30,INDIRECT(\"a\" & (VLOOKUP(Switch!$D$30,$F$2:$G$43,2,FALSE)+ROW()-2)),\"\")","v":{"$error":"#N/A"}},{"$f":"IF(INDIRECT(\"c\" & (VLOOKUP(Switch!$D$31,$F$2:$G$43,2,FALSE)+ROW()-2))=Switch!$D$31,INDIRECT(\"a\" & (VLOOKUP(Switch!$D$31,$F$2:$G$43,2,FALSE)+ROW()-2)),\"\")","v":{"$error":"#N/A"}},{"$f":"IF(INDIRECT(\"c\" & (VLOOKUP(Switch!$D$32,$F$2:$G$43,2,FALSE)+ROW()-2))=Switch!$D$32,INDIRECT(\"a\" & (VLOOKUP(Switch!$D$32,$F$2:$G$43,2,FALSE)+ROW()-2)),\"\")","v":{"$error":"#N/A"}},{"$f":"IF(INDIRECT(\"c\" & (VLOOKUP(Switch!$D$33,$F$2:$G$43,2,FALSE)+ROW()-2))=Switch!$D$33,INDIRECT(\"a\" & (VLOOKUP(Switch!$D$33,$F$2:$G$43,2,FALSE)+ROW()-2)),\"\")","v":{"$error":"#N/A"}},{"$f":"IF(INDIRECT(\"c\" & (VLOOKUP(Switch!$D$34,$F$2:$G$43,2,FALSE)+ROW()-2))=Switch!$D$34,INDIRECT(\"a\" & (VLOOKUP(Switch!$D$34,$F$2:$G$43,2,FALSE)+ROW()-2)),\"\")","v":{"$error":"#N/A"}},{"$f":"IF(INDIRECT(\"c\" & (VLOOKUP(Switch!$D$35,$F$2:$G$43,2,FALSE)+ROW()-2))=Switch!$D$35,INDIRECT(\"a\" & (VLOOKUP(Switch!$D$35,$F$2:$G$43,2,FALSE)+ROW()-2)),\"\")","v":{"$error":"#N/A"}},{"$f":"IF(INDIRECT(\"c\" & (VLOOKUP(Switch!$D$36,$F$2:$G$43,2,FALSE)+ROW()-2))=Switch!$D$36,INDIRECT(\"a\" & (VLOOKUP(Switch!$D$36,$F$2:$G$43,2,FALSE)+ROW()-2)),\"\")","v":{"$error":"#N/A"}},{"$f":"IF(INDIRECT(\"c\" & (VLOOKUP(Switch!$D$37,$F$2:$G$43,2,FALSE)+ROW()-2))=Switch!$D$37,INDIRECT(\"a\" & (VLOOKUP(Switch!$D$37,$F$2:$G$43,2,FALSE)+ROW()-2)),\"\")","v":{"$error":"#N/A"}},{"$f":"IF(INDIRECT(\"c\" & (VLOOKUP(Switch!$D$38,$F$2:$G$43,2,FALSE)+ROW()-2))=Switch!$D$38,INDIRECT(\"a\" & (VLOOKUP(Switch!$D$38,$F$2:$G$43,2,FALSE)+ROW()-2)),\"\")","v":{"$error":"#N/A"}},{"$f":"IF(INDIRECT(\"c\" & (VLOOKUP(Switch!$D$39,$F$2:$G$43,2,FALSE)+ROW()-2))=Switch!$D$39,INDIRECT(\"a\" & (VLOOKUP(Switch!$D$39,$F$2:$G$43,2,FALSE)+ROW()-2)),\"\")","v":{"$error":"#N/A"}},{"$f":"IF(INDIRECT(\"c\" & (VLOOKUP(Switch!$D$40,$F$2:$G$43,2,FALSE)+ROW()-2))=Switch!$D$40,INDIRECT(\"a\" & (VLOOKUP(Switch!$D$40,$F$2:$G$43,2,FALSE)+ROW()-2)),\"\")","v":{"$error":"#N/A"}},{"$f":"IF(INDIRECT(\"c\" & (VLOOKUP(Switch!$D$52,$F$2:$G$43,2,FALSE)+ROW()-2))=Switch!$D$52,INDIRECT(\"a\" & (VLOOKUP(Switch!$D$52,$F$2:$G$43,2,FALSE)+ROW()-2)),\"\")","v":{"$error":"#N/A"}},{"$f":"IF(INDIRECT(\"c\" & (VLOOKUP(Switch!$D$53,$F$2:$G$43,2,FALSE)+ROW()-2))=Switch!$D$53,INDIRECT(\"a\" & (VLOOKUP(Switch!$D$53,$F$2:$G$43,2,FALSE)+ROW()-2)),\"\")","v":{"$error":"#N/A"}},{"$f":"IF(INDIRECT(\"c\" & (VLOOKUP(Switch!$D$54,$F$2:$G$43,2,FALSE)+ROW()-2))=Switch!$D$54,INDIRECT(\"a\" & (VLOOKUP(Switch!$D$54,$F$2:$G$43,2,FALSE)+ROW()-2)),\"\")","v":{"$error":"#N/A"}},{"$f":"IF(INDIRECT(\"c\" & (VLOOKUP(Switch!$D$55,$F$2:$G$43,2,FALSE)+ROW()-2))=Switch!$D$55,INDIRECT(\"a\" & (VLOOKUP(Switch!$D$55,$F$2:$G$43,2,FALSE)+ROW()-2)),\"\")","v":{"$error":"#N/A"}},{"$f":"IF(INDIRECT(\"c\" & (VLOOKUP(Switch!$D$56,$F$2:$G$43,2,FALSE)+ROW()-2))=Switch!$D$56,INDIRECT(\"a\" & (VLOOKUP(Switch!$D$56,$F$2:$G$43,2,FALSE)+ROW()-2)),\"\")","v":{"$error":"#N/A"}},{"$f":"IF(INDIRECT(\"c\" & (VLOOKUP(Switch!$D$57,$F$2:$G$43,2,FALSE)+ROW()-2))=Switch!$D$57,INDIRECT(\"a\" & (VLOOKUP(Switch!$D$57,$F$2:$G$43,2,FALSE)+ROW()-2)),\"\")","v":{"$error":"#N/A"}},{"$f":"IF(INDIRECT(\"c\" & (VLOOKUP(Switch!$D$58,$F$2:$G$43,2,FALSE)+ROW()-2))=Switch!$D$58,INDIRECT(\"a\" & (VLOOKUP(Switch!$D$58,$F$2:$G$43,2,FALSE)+ROW()-2)),\"\")","v":{"$error":"#N/A"}},{"$f":"IF(INDIRECT(\"c\" & (VLOOKUP(Switch!$D$59,$F$2:$G$43,2,FALSE)+ROW()-2))=Switch!$D$59,INDIRECT(\"a\" & (VLOOKUP(Switch!$D$59,$F$2:$G$43,2,FALSE)+ROW()-2)),\"\")","v":{"$error":"#N/A"}},{"$f":"IF(INDIRECT(\"c\" & (VLOOKUP(Switch!$D$60,$F$2:$G$43,2,FALSE)+ROW()-2))=Switch!$D$60,INDIRECT(\"a\" & (VLOOKUP(Switch!$D$60,$F$2:$G$43,2,FALSE)+ROW()-2)),\"\")","v":{"$error":"#N/A"}},{"$f":"IF(INDIRECT(\"c\" & (VLOOKUP(Switch!$D$61,$F$2:$G$43,2,FALSE)+ROW()-2))=Switch!$D$61,INDIRECT(\"a\" & (VLOOKUP(Switch!$D$61,$F$2:$G$43,2,FALSE)+ROW()-2)),\"\")","v":{"$error":"#N/A"}},{"$f":"IF(INDIRECT(\"c\" & (VLOOKUP(Switch!$D$62,$F$2:$G$43,2,FALSE)+ROW()-2))=Switch!$D$62,INDIRECT(\"a\" & (VLOOKUP(Switch!$D$62,$F$2:$G$43,2,FALSE)+ROW()-2)),\"\")","v":{"$error":"#N/A"}},{"$f":"IF(INDIRECT(\"c\" & (VLOOKUP(Switch!$D$63,$F$2:$G$43,2,FALSE)+ROW()-2))=Switch!$D$63,INDIRECT(\"a\" & (VLOOKUP(Switch!$D$63,$F$2:$G$43,2,FALSE)+ROW()-2)),\"\")","v":{"$error":"#N/A"}},{"$f":"IF(INDIRECT(\"c\" & (VLOOKUP(Switch!$D$64,$F$2:$G$43,2,FALSE)+ROW()-2))=Switch!$D$64,INDIRECT(\"a\" & (VLOOKUP(Switch!$D$64,$F$2:$G$43,2,FALSE)+ROW()-2)),\"\")","v":{"$error":"#N/A"}},{"$f":"IF(INDIRECT(\"c\" & (VLOOKUP(Switch!$D$65,$F$2:$G$43,2,FALSE)+ROW()-2))=Switch!$D$65,INDIRECT(\"a\" & (VLOOKUP(Switch!$D$65,$F$2:$G$43,2,FALSE)+ROW()-2)),\"\")","v":{"$error":"#N/A"}},{"$f":"IF(INDIRECT(\"c\" & (VLOOKUP(Switch!$D$66,$F$2:$G$43,2,FALSE)+ROW()-2))=Switch!$D$66,INDIRECT(\"a\" & (VLOOKUP(Switch!$D$66,$F$2:$G$43,2,FALSE)+ROW()-2)),\"\")","v":{"$error":"#N/A"}}]
["Satrix Balanced Index Fund B1","STIB1","Satrix Managers (RF) (Pty) Ltd",{"$f":"ROW()","v":545},null,null,{"$f":"VLOOKUP(F545,$C$2:$D$637,2,FALSE)","v":{"$error":"#N/A"}},{"$f":"IF(INDIRECT(\"c\" & (VLOOKUP(Switch!$D$26,$F$2:$G$43,2,FALSE)+ROW()-2))=Switch!$D$26,INDIRECT(\"a\" & (VLOOKUP(Switch!$D$26,$F$2:$G$43,2,FALSE)+ROW()-2)),\"\")","v":{"$error":"#N/A"}},{"$f":"IF(INDIRECT(\"c\" & (VLOOKUP(Switch!$D$27,$F$2:$G$43,2,FALSE)+ROW()-2))=Switch!$D$27,INDIRECT(\"a\" & (VLOOKUP(Switch!$D$27,$F$2:$G$43,2,FALSE)+ROW()-2)),\"\")","v":{"$error":"#N/A"}},{"$f":"IF(INDIRECT(\"c\" & (VLOOKUP(Switch!$D$28,$F$2:$G$43,2,FALSE)+ROW()-2))=Switch!$D$28,INDIRECT(\"a\" & (VLOOKUP(Switch!$D$28,$F$2:$G$43,2,FALSE)+ROW()-2)),\"\")","v":{"$error":"#N/A"}},{"$f":"IF(INDIRECT(\"c\" & (VLOOKUP(Switch!$D$29,$F$2:$G$43,2,FALSE)+ROW()-2))=Switch!$D$29,INDIRECT(\"a\" & (VLOOKUP(Switch!$D$29,$F$2:$G$43,2,FALSE)+ROW()-2)),\"\")","v":{"$error":"#N/A"}},{"$f":"IF(INDIRECT(\"c\" & (VLOOKUP(Switch!$D$30,$F$2:$G$43,2,FALSE)+ROW()-2))=Switch!$D$30,INDIRECT(\"a\" & (VLOOKUP(Switch!$D$30,$F$2:$G$43,2,FALSE)+ROW()-2)),\"\")","v":{"$error":"#N/A"}},{"$f":"IF(INDIRECT(\"c\" & (VLOOKUP(Switch!$D$31,$F$2:$G$43,2,FALSE)+ROW()-2))=Switch!$D$31,INDIRECT(\"a\" & (VLOOKUP(Switch!$D$31,$F$2:$G$43,2,FALSE)+ROW()-2)),\"\")","v":{"$error":"#N/A"}},{"$f":"IF(INDIRECT(\"c\" & (VLOOKUP(Switch!$D$32,$F$2:$G$43,2,FALSE)+ROW()-2))=Switch!$D$32,INDIRECT(\"a\" & (VLOOKUP(Switch!$D$32,$F$2:$G$43,2,FALSE)+ROW()-2)),\"\")","v":{"$error":"#N/A"}},{"$f":"IF(INDIRECT(\"c\" & (VLOOKUP(Switch!$D$33,$F$2:$G$43,2,FALSE)+ROW()-2))=Switch!$D$33,INDIRECT(\"a\" & (VLOOKUP(Switch!$D$33,$F$2:$G$43,2,FALSE)+ROW()-2)),\"\")","v":{"$error":"#N/A"}},{"$f":"IF(INDIRECT(\"c\" & (VLOOKUP(Switch!$D$34,$F$2:$G$43,2,FALSE)+ROW()-2))=Switch!$D$34,INDIRECT(\"a\" & (VLOOKUP(Switch!$D$34,$F$2:$G$43,2,FALSE)+ROW()-2)),\"\")","v":{"$error":"#N/A"}},{"$f":"IF(INDIRECT(\"c\" & (VLOOKUP(Switch!$D$35,$F$2:$G$43,2,FALSE)+ROW()-2))=Switch!$D$35,INDIRECT(\"a\" & (VLOOKUP(Switch!$D$35,$F$2:$G$43,2,FALSE)+ROW()-2)),\"\")","v":{"$error":"#N/A"}},{"$f":"IF(INDIRECT(\"c\" & (VLOOKUP(Switch!$D$36,$F$2:$G$43,2,FALSE)+ROW()-2))=Switch!$D$36,INDIRECT(\"a\" & (VLOOKUP(Switch!$D$36,$F$2:$G$43,2,FALSE)+ROW()-2)),\"\")","v":{"$error":"#N/A"}},{"$f":"IF(INDIRECT(\"c\" & (VLOOKUP(Switch!$D$37,$F$2:$G$43,2,FALSE)+ROW()-2))=Switch!$D$37,INDIRECT(\"a\" & (VLOOKUP(Switch!$D$37,$F$2:$G$43,2,FALSE)+ROW()-2)),\"\")","v":{"$error":"#N/A"}},{"$f":"IF(INDIRECT(\"c\" & (VLOOKUP(Switch!$D$38,$F$2:$G$43,2,FALSE)+ROW()-2))=Switch!$D$38,INDIRECT(\"a\" & (VLOOKUP(Switch!$D$38,$F$2:$G$43,2,FALSE)+ROW()-2)),\"\")","v":{"$error":"#N/A"}},{"$f":"IF(INDIRECT(\"c\" & (VLOOKUP(Switch!$D$39,$F$2:$G$43,2,FALSE)+ROW()-2))=Switch!$D$39,INDIRECT(\"a\" & (VLOOKUP(Switch!$D$39,$F$2:$G$43,2,FALSE)+ROW()-2)),\"\")","v":{"$error":"#N/A"}},{"$f":"IF(INDIRECT(\"c\" & (VLOOKUP(Switch!$D$40,$F$2:$G$43,2,FALSE)+ROW()-2))=Switch!$D$40,INDIRECT(\"a\" & (VLOOKUP(Switch!$D$40,$F$2:$G$43,2,FALSE)+ROW()-2)),\"\")","v":{"$error":"#N/A"}},{"$f":"IF(INDIRECT(\"c\" & (VLOOKUP(Switch!$D$52,$F$2:$G$43,2,FALSE)+ROW()-2))=Switch!$D$52,INDIRECT(\"a\" & (VLOOKUP(Switch!$D$52,$F$2:$G$43,2,FALSE)+ROW()-2)),\"\")","v":{"$error":"#N/A"}},{"$f":"IF(INDIRECT(\"c\" & (VLOOKUP(Switch!$D$53,$F$2:$G$43,2,FALSE)+ROW()-2))=Switch!$D$53,INDIRECT(\"a\" & (VLOOKUP(Switch!$D$53,$F$2:$G$43,2,FALSE)+ROW()-2)),\"\")","v":{"$error":"#N/A"}},{"$f":"IF(INDIRECT(\"c\" & (VLOOKUP(Switch!$D$54,$F$2:$G$43,2,FALSE)+ROW()-2))=Switch!$D$54,INDIRECT(\"a\" & (VLOOKUP(Switch!$D$54,$F$2:$G$43,2,FALSE)+ROW()-2)),\"\")","v":{"$error":"#N/A"}},{"$f":"IF(INDIRECT(\"c\" & (VLOOKUP(Switch!$D$55,$F$2:$G$43,2,FALSE)+ROW()-2))=Switch!$D$55,INDIRECT(\"a\" & (VLOOKUP(Switch!$D$55,$F$2:$G$43,2,FALSE)+ROW()-2)),\"\")","v":{"$error":"#N/A"}},{"$f":"IF(INDIRECT(\"c\" & (VLOOKUP(Switch!$D$56,$F$2:$G$43,2,FALSE)+ROW()-2))=Switch!$D$56,INDIRECT(\"a\" & (VLOOKUP(Switch!$D$56,$F$2:$G$43,2,FALSE)+ROW()-2)),\"\")","v":{"$error":"#N/A"}},{"$f":"IF(INDIRECT(\"c\" & (VLOOKUP(Switch!$D$57,$F$2:$G$43,2,FALSE)+ROW()-2))=Switch!$D$57,INDIRECT(\"a\" & (VLOOKUP(Switch!$D$57,$F$2:$G$43,2,FALSE)+ROW()-2)),\"\")","v":{"$error":"#N/A"}},{"$f":"IF(INDIRECT(\"c\" & (VLOOKUP(Switch!$D$58,$F$2:$G$43,2,FALSE)+ROW()-2))=Switch!$D$58,INDIRECT(\"a\" & (VLOOKUP(Switch!$D$58,$F$2:$G$43,2,FALSE)+ROW()-2)),\"\")","v":{"$error":"#N/A"}},{"$f":"IF(INDIRECT(\"c\" & (VLOOKUP(Switch!$D$59,$F$2:$G$43,2,FALSE)+ROW()-2))=Switch!$D$59,INDIRECT(\"a\" & (VLOOKUP(Switch!$D$59,$F$2:$G$43,2,FALSE)+ROW()-2)),\"\")","v":{"$error":"#N/A"}},{"$f":"IF(INDIRECT(\"c\" & (VLOOKUP(Switch!$D$60,$F$2:$G$43,2,FALSE)+ROW()-2))=Switch!$D$60,INDIRECT(\"a\" & (VLOOKUP(Switch!$D$60,$F$2:$G$43,2,FALSE)+ROW()-2)),\"\")","v":{"$error":"#N/A"}},{"$f":"IF(INDIRECT(\"c\" & (VLOOKUP(Switch!$D$61,$F$2:$G$43,2,FALSE)+ROW()-2))=Switch!$D$61,INDIRECT(\"a\" & (VLOOKUP(Switch!$D$61,$F$2:$G$43,2,FALSE)+ROW()-2)),\"\")","v":{"$error":"#N/A"}},{"$f":"IF(INDIRECT(\"c\" & (VLOOKUP(Switch!$D$62,$F$2:$G$43,2,FALSE)+ROW()-2))=Switch!$D$62,INDIRECT(\"a\" & (VLOOKUP(Switch!$D$62,$F$2:$G$43,2,FALSE)+ROW()-2)),\"\")","v":{"$error":"#N/A"}},{"$f":"IF(INDIRECT(\"c\" & (VLOOKUP(Switch!$D$63,$F$2:$G$43,2,FALSE)+ROW()-2))=Switch!$D$63,INDIRECT(\"a\" & (VLOOKUP(Switch!$D$63,$F$2:$G$43,2,FALSE)+ROW()-2)),\"\")","v":{"$error":"#N/A"}},{"$f":"IF(INDIRECT(\"c\" & (VLOOKUP(Switch!$D$64,$F$2:$G$43,2,FALSE)+ROW()-2))=Switch!$D$64,INDIRECT(\"a\" & (VLOOKUP(Switch!$D$64,$F$2:$G$43,2,FALSE)+ROW()-2)),\"\")","v":{"$error":"#N/A"}},{"$f":"IF(INDIRECT(\"c\" & (VLOOKUP(Switch!$D$65,$F$2:$G$43,2,FALSE)+ROW()-2))=Switch!$D$65,INDIRECT(\"a\" & (VLOOKUP(Switch!$D$65,$F$2:$G$43,2,FALSE)+ROW()-2)),\"\")","v":{"$error":"#N/A"}},{"$f":"IF(INDIRECT(\"c\" & (VLOOKUP(Switch!$D$66,$F$2:$G$43,2,FALSE)+ROW()-2))=Switch!$D$66,INDIRECT(\"a\" & (VLOOKUP(Switch!$D$66,$F$2:$G$43,2,FALSE)+ROW()-2)),\"\")","v":{"$error":"#N/A"}}]
["Satrix Bond Index Fund A2","SBIA2","Satrix Managers (RF) (Pty) Ltd",{"$f":"ROW()","v":546},null,null,{"$f":"VLOOKUP(F546,$C$2:$D$637,2,FALSE)","v":{"$error":"#N/A"}},{"$f":"IF(INDIRECT(\"c\" & (VLOOKUP(Switch!$D$26,$F$2:$G$43,2,FALSE)+ROW()-2))=Switch!$D$26,INDIRECT(\"a\" & (VLOOKUP(Switch!$D$26,$F$2:$G$43,2,FALSE)+ROW()-2)),\"\")","v":{"$error":"#N/A"}},{"$f":"IF(INDIRECT(\"c\" & (VLOOKUP(Switch!$D$27,$F$2:$G$43,2,FALSE)+ROW()-2))=Switch!$D$27,INDIRECT(\"a\" & (VLOOKUP(Switch!$D$27,$F$2:$G$43,2,FALSE)+ROW()-2)),\"\")","v":{"$error":"#N/A"}},{"$f":"IF(INDIRECT(\"c\" & (VLOOKUP(Switch!$D$28,$F$2:$G$43,2,FALSE)+ROW()-2))=Switch!$D$28,INDIRECT(\"a\" & (VLOOKUP(Switch!$D$28,$F$2:$G$43,2,FALSE)+ROW()-2)),\"\")","v":{"$error":"#N/A"}},{"$f":"IF(INDIRECT(\"c\" & (VLOOKUP(Switch!$D$29,$F$2:$G$43,2,FALSE)+ROW()-2))=Switch!$D$29,INDIRECT(\"a\" & (VLOOKUP(Switch!$D$29,$F$2:$G$43,2,FALSE)+ROW()-2)),\"\")","v":{"$error":"#N/A"}},{"$f":"IF(INDIRECT(\"c\" & (VLOOKUP(Switch!$D$30,$F$2:$G$43,2,FALSE)+ROW()-2))=Switch!$D$30,INDIRECT(\"a\" & (VLOOKUP(Switch!$D$30,$F$2:$G$43,2,FALSE)+ROW()-2)),\"\")","v":{"$error":"#N/A"}},{"$f":"IF(INDIRECT(\"c\" & (VLOOKUP(Switch!$D$31,$F$2:$G$43,2,FALSE)+ROW()-2))=Switch!$D$31,INDIRECT(\"a\" & (VLOOKUP(Switch!$D$31,$F$2:$G$43,2,FALSE)+ROW()-2)),\"\")","v":{"$error":"#N/A"}},{"$f":"IF(INDIRECT(\"c\" & (VLOOKUP(Switch!$D$32,$F$2:$G$43,2,FALSE)+ROW()-2))=Switch!$D$32,INDIRECT(\"a\" & (VLOOKUP(Switch!$D$32,$F$2:$G$43,2,FALSE)+ROW()-2)),\"\")","v":{"$error":"#N/A"}},{"$f":"IF(INDIRECT(\"c\" & (VLOOKUP(Switch!$D$33,$F$2:$G$43,2,FALSE)+ROW()-2))=Switch!$D$33,INDIRECT(\"a\" & (VLOOKUP(Switch!$D$33,$F$2:$G$43,2,FALSE)+ROW()-2)),\"\")","v":{"$error":"#N/A"}},{"$f":"IF(INDIRECT(\"c\" & (VLOOKUP(Switch!$D$34,$F$2:$G$43,2,FALSE)+ROW()-2))=Switch!$D$34,INDIRECT(\"a\" & (VLOOKUP(Switch!$D$34,$F$2:$G$43,2,FALSE)+ROW()-2)),\"\")","v":{"$error":"#N/A"}},{"$f":"IF(INDIRECT(\"c\" & (VLOOKUP(Switch!$D$35,$F$2:$G$43,2,FALSE)+ROW()-2))=Switch!$D$35,INDIRECT(\"a\" & (VLOOKUP(Switch!$D$35,$F$2:$G$43,2,FALSE)+ROW()-2)),\"\")","v":{"$error":"#N/A"}},{"$f":"IF(INDIRECT(\"c\" & (VLOOKUP(Switch!$D$36,$F$2:$G$43,2,FALSE)+ROW()-2))=Switch!$D$36,INDIRECT(\"a\" & (VLOOKUP(Switch!$D$36,$F$2:$G$43,2,FALSE)+ROW()-2)),\"\")","v":{"$error":"#N/A"}},{"$f":"IF(INDIRECT(\"c\" & (VLOOKUP(Switch!$D$37,$F$2:$G$43,2,FALSE)+ROW()-2))=Switch!$D$37,INDIRECT(\"a\" & (VLOOKUP(Switch!$D$37,$F$2:$G$43,2,FALSE)+ROW()-2)),\"\")","v":{"$error":"#N/A"}},{"$f":"IF(INDIRECT(\"c\" & (VLOOKUP(Switch!$D$38,$F$2:$G$43,2,FALSE)+ROW()-2))=Switch!$D$38,INDIRECT(\"a\" & (VLOOKUP(Switch!$D$38,$F$2:$G$43,2,FALSE)+ROW()-2)),\"\")","v":{"$error":"#N/A"}},{"$f":"IF(INDIRECT(\"c\" & (VLOOKUP(Switch!$D$39,$F$2:$G$43,2,FALSE)+ROW()-2))=Switch!$D$39,INDIRECT(\"a\" & (VLOOKUP(Switch!$D$39,$F$2:$G$43,2,FALSE)+ROW()-2)),\"\")","v":{"$error":"#N/A"}},{"$f":"IF(INDIRECT(\"c\" & (VLOOKUP(Switch!$D$40,$F$2:$G$43,2,FALSE)+ROW()-2))=Switch!$D$40,INDIRECT(\"a\" & (VLOOKUP(Switch!$D$40,$F$2:$G$43,2,FALSE)+ROW()-2)),\"\")","v":{"$error":"#N/A"}},{"$f":"IF(INDIRECT(\"c\" & (VLOOKUP(Switch!$D$52,$F$2:$G$43,2,FALSE)+ROW()-2))=Switch!$D$52,INDIRECT(\"a\" & (VLOOKUP(Switch!$D$52,$F$2:$G$43,2,FALSE)+ROW()-2)),\"\")","v":{"$error":"#N/A"}},{"$f":"IF(INDIRECT(\"c\" & (VLOOKUP(Switch!$D$53,$F$2:$G$43,2,FALSE)+ROW()-2))=Switch!$D$53,INDIRECT(\"a\" & (VLOOKUP(Switch!$D$53,$F$2:$G$43,2,FALSE)+ROW()-2)),\"\")","v":{"$error":"#N/A"}},{"$f":"IF(INDIRECT(\"c\" & (VLOOKUP(Switch!$D$54,$F$2:$G$43,2,FALSE)+ROW()-2))=Switch!$D$54,INDIRECT(\"a\" & (VLOOKUP(Switch!$D$54,$F$2:$G$43,2,FALSE)+ROW()-2)),\"\")","v":{"$error":"#N/A"}},{"$f":"IF(INDIRECT(\"c\" & (VLOOKUP(Switch!$D$55,$F$2:$G$43,2,FALSE)+ROW()-2))=Switch!$D$55,INDIRECT(\"a\" & (VLOOKUP(Switch!$D$55,$F$2:$G$43,2,FALSE)+ROW()-2)),\"\")","v":{"$error":"#N/A"}},{"$f":"IF(INDIRECT(\"c\" & (VLOOKUP(Switch!$D$56,$F$2:$G$43,2,FALSE)+ROW()-2))=Switch!$D$56,INDIRECT(\"a\" & (VLOOKUP(Switch!$D$56,$F$2:$G$43,2,FALSE)+ROW()-2)),\"\")","v":{"$error":"#N/A"}},{"$f":"IF(INDIRECT(\"c\" & (VLOOKUP(Switch!$D$57,$F$2:$G$43,2,FALSE)+ROW()-2))=Switch!$D$57,INDIRECT(\"a\" & (VLOOKUP(Switch!$D$57,$F$2:$G$43,2,FALSE)+ROW()-2)),\"\")","v":{"$error":"#N/A"}},{"$f":"IF(INDIRECT(\"c\" & (VLOOKUP(Switch!$D$58,$F$2:$G$43,2,FALSE)+ROW()-2))=Switch!$D$58,INDIRECT(\"a\" & (VLOOKUP(Switch!$D$58,$F$2:$G$43,2,FALSE)+ROW()-2)),\"\")","v":{"$error":"#N/A"}},{"$f":"IF(INDIRECT(\"c\" & (VLOOKUP(Switch!$D$59,$F$2:$G$43,2,FALSE)+ROW()-2))=Switch!$D$59,INDIRECT(\"a\" & (VLOOKUP(Switch!$D$59,$F$2:$G$43,2,FALSE)+ROW()-2)),\"\")","v":{"$error":"#N/A"}},{"$f":"IF(INDIRECT(\"c\" & (VLOOKUP(Switch!$D$60,$F$2:$G$43,2,FALSE)+ROW()-2))=Switch!$D$60,INDIRECT(\"a\" & (VLOOKUP(Switch!$D$60,$F$2:$G$43,2,FALSE)+ROW()-2)),\"\")","v":{"$error":"#N/A"}},{"$f":"IF(INDIRECT(\"c\" & (VLOOKUP(Switch!$D$61,$F$2:$G$43,2,FALSE)+ROW()-2))=Switch!$D$61,INDIRECT(\"a\" & (VLOOKUP(Switch!$D$61,$F$2:$G$43,2,FALSE)+ROW()-2)),\"\")","v":{"$error":"#N/A"}},{"$f":"IF(INDIRECT(\"c\" & (VLOOKUP(Switch!$D$62,$F$2:$G$43,2,FALSE)+ROW()-2))=Switch!$D$62,INDIRECT(\"a\" & (VLOOKUP(Switch!$D$62,$F$2:$G$43,2,FALSE)+ROW()-2)),\"\")","v":{"$error":"#N/A"}},{"$f":"IF(INDIRECT(\"c\" & (VLOOKUP(Switch!$D$63,$F$2:$G$43,2,FALSE)+ROW()-2))=Switch!$D$63,INDIRECT(\"a\" & (VLOOKUP(Switch!$D$63,$F$2:$G$43,2,FALSE)+ROW()-2)),\"\")","v":{"$error":"#N/A"}},{"$f":"IF(INDIRECT(\"c\" & (VLOOKUP(Switch!$D$64,$F$2:$G$43,2,FALSE)+ROW()-2))=Switch!$D$64,INDIRECT(\"a\" & (VLOOKUP(Switch!$D$64,$F$2:$G$43,2,FALSE)+ROW()-2)),\"\")","v":{"$error":"#N/A"}},{"$f":"IF(INDIRECT(\"c\" & (VLOOKUP(Switch!$D$65,$F$2:$G$43,2,FALSE)+ROW()-2))=Switch!$D$65,INDIRECT(\"a\" & (VLOOKUP(Switch!$D$65,$F$2:$G$43,2,FALSE)+ROW()-2)),\"\")","v":{"$error":"#N/A"}},{"$f":"IF(INDIRECT(\"c\" & (VLOOKUP(Switch!$D$66,$F$2:$G$43,2,FALSE)+ROW()-2))=Switch!$D$66,INDIRECT(\"a\" & (VLOOKUP(Switch!$D$66,$F$2:$G$43,2,FALSE)+ROW()-2)),\"\")","v":{"$error":"#N/A"}}]
["Satrix Dividend Plus Index Fund B1","STDB1","Satrix Managers (RF) (Pty) Ltd",{"$f":"ROW()","v":547},null,null,{"$f":"VLOOKUP(F547,$C$2:$D$637,2,FALSE)","v":{"$error":"#N/A"}},{"$f":"IF(INDIRECT(\"c\" & (VLOOKUP(Switch!$D$26,$F$2:$G$43,2,FALSE)+ROW()-2))=Switch!$D$26,INDIRECT(\"a\" & (VLOOKUP(Switch!$D$26,$F$2:$G$43,2,FALSE)+ROW()-2)),\"\")","v":{"$error":"#N/A"}},{"$f":"IF(INDIRECT(\"c\" & (VLOOKUP(Switch!$D$27,$F$2:$G$43,2,FALSE)+ROW()-2))=Switch!$D$27,INDIRECT(\"a\" & (VLOOKUP(Switch!$D$27,$F$2:$G$43,2,FALSE)+ROW()-2)),\"\")","v":{"$error":"#N/A"}},{"$f":"IF(INDIRECT(\"c\" & (VLOOKUP(Switch!$D$28,$F$2:$G$43,2,FALSE)+ROW()-2))=Switch!$D$28,INDIRECT(\"a\" & (VLOOKUP(Switch!$D$28,$F$2:$G$43,2,FALSE)+ROW()-2)),\"\")","v":{"$error":"#N/A"}},{"$f":"IF(INDIRECT(\"c\" & (VLOOKUP(Switch!$D$29,$F$2:$G$43,2,FALSE)+ROW()-2))=Switch!$D$29,INDIRECT(\"a\" & (VLOOKUP(Switch!$D$29,$F$2:$G$43,2,FALSE)+ROW()-2)),\"\")","v":{"$error":"#N/A"}},{"$f":"IF(INDIRECT(\"c\" & (VLOOKUP(Switch!$D$30,$F$2:$G$43,2,FALSE)+ROW()-2))=Switch!$D$30,INDIRECT(\"a\" & (VLOOKUP(Switch!$D$30,$F$2:$G$43,2,FALSE)+ROW()-2)),\"\")","v":{"$error":"#N/A"}},{"$f":"IF(INDIRECT(\"c\" & (VLOOKUP(Switch!$D$31,$F$2:$G$43,2,FALSE)+ROW()-2))=Switch!$D$31,INDIRECT(\"a\" & (VLOOKUP(Switch!$D$31,$F$2:$G$43,2,FALSE)+ROW()-2)),\"\")","v":{"$error":"#N/A"}},{"$f":"IF(INDIRECT(\"c\" & (VLOOKUP(Switch!$D$32,$F$2:$G$43,2,FALSE)+ROW()-2))=Switch!$D$32,INDIRECT(\"a\" & (VLOOKUP(Switch!$D$32,$F$2:$G$43,2,FALSE)+ROW()-2)),\"\")","v":{"$error":"#N/A"}},{"$f":"IF(INDIRECT(\"c\" & (VLOOKUP(Switch!$D$33,$F$2:$G$43,2,FALSE)+ROW()-2))=Switch!$D$33,INDIRECT(\"a\" & (VLOOKUP(Switch!$D$33,$F$2:$G$43,2,FALSE)+ROW()-2)),\"\")","v":{"$error":"#N/A"}},{"$f":"IF(INDIRECT(\"c\" & (VLOOKUP(Switch!$D$34,$F$2:$G$43,2,FALSE)+ROW()-2))=Switch!$D$34,INDIRECT(\"a\" & (VLOOKUP(Switch!$D$34,$F$2:$G$43,2,FALSE)+ROW()-2)),\"\")","v":{"$error":"#N/A"}},{"$f":"IF(INDIRECT(\"c\" & (VLOOKUP(Switch!$D$35,$F$2:$G$43,2,FALSE)+ROW()-2))=Switch!$D$35,INDIRECT(\"a\" & (VLOOKUP(Switch!$D$35,$F$2:$G$43,2,FALSE)+ROW()-2)),\"\")","v":{"$error":"#N/A"}},{"$f":"IF(INDIRECT(\"c\" & (VLOOKUP(Switch!$D$36,$F$2:$G$43,2,FALSE)+ROW()-2))=Switch!$D$36,INDIRECT(\"a\" & (VLOOKUP(Switch!$D$36,$F$2:$G$43,2,FALSE)+ROW()-2)),\"\")","v":{"$error":"#N/A"}},{"$f":"IF(INDIRECT(\"c\" & (VLOOKUP(Switch!$D$37,$F$2:$G$43,2,FALSE)+ROW()-2))=Switch!$D$37,INDIRECT(\"a\" & (VLOOKUP(Switch!$D$37,$F$2:$G$43,2,FALSE)+ROW()-2)),\"\")","v":{"$error":"#N/A"}},{"$f":"IF(INDIRECT(\"c\" & (VLOOKUP(Switch!$D$38,$F$2:$G$43,2,FALSE)+ROW()-2))=Switch!$D$38,INDIRECT(\"a\" & (VLOOKUP(Switch!$D$38,$F$2:$G$43,2,FALSE)+ROW()-2)),\"\")","v":{"$error":"#N/A"}},{"$f":"IF(INDIRECT(\"c\" & (VLOOKUP(Switch!$D$39,$F$2:$G$43,2,FALSE)+ROW()-2))=Switch!$D$39,INDIRECT(\"a\" & (VLOOKUP(Switch!$D$39,$F$2:$G$43,2,FALSE)+ROW()-2)),\"\")","v":{"$error":"#N/A"}},{"$f":"IF(INDIRECT(\"c\" & (VLOOKUP(Switch!$D$40,$F$2:$G$43,2,FALSE)+ROW()-2))=Switch!$D$40,INDIRECT(\"a\" & (VLOOKUP(Switch!$D$40,$F$2:$G$43,2,FALSE)+ROW()-2)),\"\")","v":{"$error":"#N/A"}},{"$f":"IF(INDIRECT(\"c\" & (VLOOKUP(Switch!$D$52,$F$2:$G$43,2,FALSE)+ROW()-2))=Switch!$D$52,INDIRECT(\"a\" & (VLOOKUP(Switch!$D$52,$F$2:$G$43,2,FALSE)+ROW()-2)),\"\")","v":{"$error":"#N/A"}},{"$f":"IF(INDIRECT(\"c\" & (VLOOKUP(Switch!$D$53,$F$2:$G$43,2,FALSE)+ROW()-2))=Switch!$D$53,INDIRECT(\"a\" & (VLOOKUP(Switch!$D$53,$F$2:$G$43,2,FALSE)+ROW()-2)),\"\")","v":{"$error":"#N/A"}},{"$f":"IF(INDIRECT(\"c\" & (VLOOKUP(Switch!$D$54,$F$2:$G$43,2,FALSE)+ROW()-2))=Switch!$D$54,INDIRECT(\"a\" & (VLOOKUP(Switch!$D$54,$F$2:$G$43,2,FALSE)+ROW()-2)),\"\")","v":{"$error":"#N/A"}},{"$f":"IF(INDIRECT(\"c\" & (VLOOKUP(Switch!$D$55,$F$2:$G$43,2,FALSE)+ROW()-2))=Switch!$D$55,INDIRECT(\"a\" & (VLOOKUP(Switch!$D$55,$F$2:$G$43,2,FALSE)+ROW()-2)),\"\")","v":{"$error":"#N/A"}},{"$f":"IF(INDIRECT(\"c\" & (VLOOKUP(Switch!$D$56,$F$2:$G$43,2,FALSE)+ROW()-2))=Switch!$D$56,INDIRECT(\"a\" & (VLOOKUP(Switch!$D$56,$F$2:$G$43,2,FALSE)+ROW()-2)),\"\")","v":{"$error":"#N/A"}},{"$f":"IF(INDIRECT(\"c\" & (VLOOKUP(Switch!$D$57,$F$2:$G$43,2,FALSE)+ROW()-2))=Switch!$D$57,INDIRECT(\"a\" & (VLOOKUP(Switch!$D$57,$F$2:$G$43,2,FALSE)+ROW()-2)),\"\")","v":{"$error":"#N/A"}},{"$f":"IF(INDIRECT(\"c\" & (VLOOKUP(Switch!$D$58,$F$2:$G$43,2,FALSE)+ROW()-2))=Switch!$D$58,INDIRECT(\"a\" & (VLOOKUP(Switch!$D$58,$F$2:$G$43,2,FALSE)+ROW()-2)),\"\")","v":{"$error":"#N/A"}},{"$f":"IF(INDIRECT(\"c\" & (VLOOKUP(Switch!$D$59,$F$2:$G$43,2,FALSE)+ROW()-2))=Switch!$D$59,INDIRECT(\"a\" & (VLOOKUP(Switch!$D$59,$F$2:$G$43,2,FALSE)+ROW()-2)),\"\")","v":{"$error":"#N/A"}},{"$f":"IF(INDIRECT(\"c\" & (VLOOKUP(Switch!$D$60,$F$2:$G$43,2,FALSE)+ROW()-2))=Switch!$D$60,INDIRECT(\"a\" & (VLOOKUP(Switch!$D$60,$F$2:$G$43,2,FALSE)+ROW()-2)),\"\")","v":{"$error":"#N/A"}},{"$f":"IF(INDIRECT(\"c\" & (VLOOKUP(Switch!$D$61,$F$2:$G$43,2,FALSE)+ROW()-2))=Switch!$D$61,INDIRECT(\"a\" & (VLOOKUP(Switch!$D$61,$F$2:$G$43,2,FALSE)+ROW()-2)),\"\")","v":{"$error":"#N/A"}},{"$f":"IF(INDIRECT(\"c\" & (VLOOKUP(Switch!$D$62,$F$2:$G$43,2,FALSE)+ROW()-2))=Switch!$D$62,INDIRECT(\"a\" & (VLOOKUP(Switch!$D$62,$F$2:$G$43,2,FALSE)+ROW()-2)),\"\")","v":{"$error":"#N/A"}},{"$f":"IF(INDIRECT(\"c\" & (VLOOKUP(Switch!$D$63,$F$2:$G$43,2,FALSE)+ROW()-2))=Switch!$D$63,INDIRECT(\"a\" & (VLOOKUP(Switch!$D$63,$F$2:$G$43,2,FALSE)+ROW()-2)),\"\")","v":{"$error":"#N/A"}},{"$f":"IF(INDIRECT(\"c\" & (VLOOKUP(Switch!$D$64,$F$2:$G$43,2,FALSE)+ROW()-2))=Switch!$D$64,INDIRECT(\"a\" & (VLOOKUP(Switch!$D$64,$F$2:$G$43,2,FALSE)+ROW()-2)),\"\")","v":{"$error":"#N/A"}},{"$f":"IF(INDIRECT(\"c\" & (VLOOKUP(Switch!$D$65,$F$2:$G$43,2,FALSE)+ROW()-2))=Switch!$D$65,INDIRECT(\"a\" & (VLOOKUP(Switch!$D$65,$F$2:$G$43,2,FALSE)+ROW()-2)),\"\")","v":{"$error":"#N/A"}},{"$f":"IF(INDIRECT(\"c\" & (VLOOKUP(Switch!$D$66,$F$2:$G$43,2,FALSE)+ROW()-2))=Switch!$D$66,INDIRECT(\"a\" & (VLOOKUP(Switch!$D$66,$F$2:$G$43,2,FALSE)+ROW()-2)),\"\")","v":{"$error":"#N/A"}}]
["Satrix Equally Weighted TOP 40 Index Fund B1","STWB1","Satrix Managers (RF) (Pty) Ltd",{"$f":"ROW()","v":548},null,null,{"$f":"VLOOKUP(F548,$C$2:$D$637,2,FALSE)","v":{"$error":"#N/A"}},{"$f":"IF(INDIRECT(\"c\" & (VLOOKUP(Switch!$D$26,$F$2:$G$43,2,FALSE)+ROW()-2))=Switch!$D$26,INDIRECT(\"a\" & (VLOOKUP(Switch!$D$26,$F$2:$G$43,2,FALSE)+ROW()-2)),\"\")","v":{"$error":"#N/A"}},{"$f":"IF(INDIRECT(\"c\" & (VLOOKUP(Switch!$D$27,$F$2:$G$43,2,FALSE)+ROW()-2))=Switch!$D$27,INDIRECT(\"a\" & (VLOOKUP(Switch!$D$27,$F$2:$G$43,2,FALSE)+ROW()-2)),\"\")","v":{"$error":"#N/A"}},{"$f":"IF(INDIRECT(\"c\" & (VLOOKUP(Switch!$D$28,$F$2:$G$43,2,FALSE)+ROW()-2))=Switch!$D$28,INDIRECT(\"a\" & (VLOOKUP(Switch!$D$28,$F$2:$G$43,2,FALSE)+ROW()-2)),\"\")","v":{"$error":"#N/A"}},{"$f":"IF(INDIRECT(\"c\" & (VLOOKUP(Switch!$D$29,$F$2:$G$43,2,FALSE)+ROW()-2))=Switch!$D$29,INDIRECT(\"a\" & (VLOOKUP(Switch!$D$29,$F$2:$G$43,2,FALSE)+ROW()-2)),\"\")","v":{"$error":"#N/A"}},{"$f":"IF(INDIRECT(\"c\" & (VLOOKUP(Switch!$D$30,$F$2:$G$43,2,FALSE)+ROW()-2))=Switch!$D$30,INDIRECT(\"a\" & (VLOOKUP(Switch!$D$30,$F$2:$G$43,2,FALSE)+ROW()-2)),\"\")","v":{"$error":"#N/A"}},{"$f":"IF(INDIRECT(\"c\" & (VLOOKUP(Switch!$D$31,$F$2:$G$43,2,FALSE)+ROW()-2))=Switch!$D$31,INDIRECT(\"a\" & (VLOOKUP(Switch!$D$31,$F$2:$G$43,2,FALSE)+ROW()-2)),\"\")","v":{"$error":"#N/A"}},{"$f":"IF(INDIRECT(\"c\" & (VLOOKUP(Switch!$D$32,$F$2:$G$43,2,FALSE)+ROW()-2))=Switch!$D$32,INDIRECT(\"a\" & (VLOOKUP(Switch!$D$32,$F$2:$G$43,2,FALSE)+ROW()-2)),\"\")","v":{"$error":"#N/A"}},{"$f":"IF(INDIRECT(\"c\" & (VLOOKUP(Switch!$D$33,$F$2:$G$43,2,FALSE)+ROW()-2))=Switch!$D$33,INDIRECT(\"a\" & (VLOOKUP(Switch!$D$33,$F$2:$G$43,2,FALSE)+ROW()-2)),\"\")","v":{"$error":"#N/A"}},{"$f":"IF(INDIRECT(\"c\" & (VLOOKUP(Switch!$D$34,$F$2:$G$43,2,FALSE)+ROW()-2))=Switch!$D$34,INDIRECT(\"a\" & (VLOOKUP(Switch!$D$34,$F$2:$G$43,2,FALSE)+ROW()-2)),\"\")","v":{"$error":"#N/A"}},{"$f":"IF(INDIRECT(\"c\" & (VLOOKUP(Switch!$D$35,$F$2:$G$43,2,FALSE)+ROW()-2))=Switch!$D$35,INDIRECT(\"a\" & (VLOOKUP(Switch!$D$35,$F$2:$G$43,2,FALSE)+ROW()-2)),\"\")","v":{"$error":"#N/A"}},{"$f":"IF(INDIRECT(\"c\" & (VLOOKUP(Switch!$D$36,$F$2:$G$43,2,FALSE)+ROW()-2))=Switch!$D$36,INDIRECT(\"a\" & (VLOOKUP(Switch!$D$36,$F$2:$G$43,2,FALSE)+ROW()-2)),\"\")","v":{"$error":"#N/A"}},{"$f":"IF(INDIRECT(\"c\" & (VLOOKUP(Switch!$D$37,$F$2:$G$43,2,FALSE)+ROW()-2))=Switch!$D$37,INDIRECT(\"a\" & (VLOOKUP(Switch!$D$37,$F$2:$G$43,2,FALSE)+ROW()-2)),\"\")","v":{"$error":"#N/A"}},{"$f":"IF(INDIRECT(\"c\" & (VLOOKUP(Switch!$D$38,$F$2:$G$43,2,FALSE)+ROW()-2))=Switch!$D$38,INDIRECT(\"a\" & (VLOOKUP(Switch!$D$38,$F$2:$G$43,2,FALSE)+ROW()-2)),\"\")","v":{"$error":"#N/A"}},{"$f":"IF(INDIRECT(\"c\" & (VLOOKUP(Switch!$D$39,$F$2:$G$43,2,FALSE)+ROW()-2))=Switch!$D$39,INDIRECT(\"a\" & (VLOOKUP(Switch!$D$39,$F$2:$G$43,2,FALSE)+ROW()-2)),\"\")","v":{"$error":"#N/A"}},{"$f":"IF(INDIRECT(\"c\" & (VLOOKUP(Switch!$D$40,$F$2:$G$43,2,FALSE)+ROW()-2))=Switch!$D$40,INDIRECT(\"a\" & (VLOOKUP(Switch!$D$40,$F$2:$G$43,2,FALSE)+ROW()-2)),\"\")","v":{"$error":"#N/A"}},{"$f":"IF(INDIRECT(\"c\" & (VLOOKUP(Switch!$D$52,$F$2:$G$43,2,FALSE)+ROW()-2))=Switch!$D$52,INDIRECT(\"a\" & (VLOOKUP(Switch!$D$52,$F$2:$G$43,2,FALSE)+ROW()-2)),\"\")","v":{"$error":"#N/A"}},{"$f":"IF(INDIRECT(\"c\" & (VLOOKUP(Switch!$D$53,$F$2:$G$43,2,FALSE)+ROW()-2))=Switch!$D$53,INDIRECT(\"a\" & (VLOOKUP(Switch!$D$53,$F$2:$G$43,2,FALSE)+ROW()-2)),\"\")","v":{"$error":"#N/A"}},{"$f":"IF(INDIRECT(\"c\" & (VLOOKUP(Switch!$D$54,$F$2:$G$43,2,FALSE)+ROW()-2))=Switch!$D$54,INDIRECT(\"a\" & (VLOOKUP(Switch!$D$54,$F$2:$G$43,2,FALSE)+ROW()-2)),\"\")","v":{"$error":"#N/A"}},{"$f":"IF(INDIRECT(\"c\" & (VLOOKUP(Switch!$D$55,$F$2:$G$43,2,FALSE)+ROW()-2))=Switch!$D$55,INDIRECT(\"a\" & (VLOOKUP(Switch!$D$55,$F$2:$G$43,2,FALSE)+ROW()-2)),\"\")","v":{"$error":"#N/A"}},{"$f":"IF(INDIRECT(\"c\" & (VLOOKUP(Switch!$D$56,$F$2:$G$43,2,FALSE)+ROW()-2))=Switch!$D$56,INDIRECT(\"a\" & (VLOOKUP(Switch!$D$56,$F$2:$G$43,2,FALSE)+ROW()-2)),\"\")","v":{"$error":"#N/A"}},{"$f":"IF(INDIRECT(\"c\" & (VLOOKUP(Switch!$D$57,$F$2:$G$43,2,FALSE)+ROW()-2))=Switch!$D$57,INDIRECT(\"a\" & (VLOOKUP(Switch!$D$57,$F$2:$G$43,2,FALSE)+ROW()-2)),\"\")","v":{"$error":"#N/A"}},{"$f":"IF(INDIRECT(\"c\" & (VLOOKUP(Switch!$D$58,$F$2:$G$43,2,FALSE)+ROW()-2))=Switch!$D$58,INDIRECT(\"a\" & (VLOOKUP(Switch!$D$58,$F$2:$G$43,2,FALSE)+ROW()-2)),\"\")","v":{"$error":"#N/A"}},{"$f":"IF(INDIRECT(\"c\" & (VLOOKUP(Switch!$D$59,$F$2:$G$43,2,FALSE)+ROW()-2))=Switch!$D$59,INDIRECT(\"a\" & (VLOOKUP(Switch!$D$59,$F$2:$G$43,2,FALSE)+ROW()-2)),\"\")","v":{"$error":"#N/A"}},{"$f":"IF(INDIRECT(\"c\" & (VLOOKUP(Switch!$D$60,$F$2:$G$43,2,FALSE)+ROW()-2))=Switch!$D$60,INDIRECT(\"a\" & (VLOOKUP(Switch!$D$60,$F$2:$G$43,2,FALSE)+ROW()-2)),\"\")","v":{"$error":"#N/A"}},{"$f":"IF(INDIRECT(\"c\" & (VLOOKUP(Switch!$D$61,$F$2:$G$43,2,FALSE)+ROW()-2))=Switch!$D$61,INDIRECT(\"a\" & (VLOOKUP(Switch!$D$61,$F$2:$G$43,2,FALSE)+ROW()-2)),\"\")","v":{"$error":"#N/A"}},{"$f":"IF(INDIRECT(\"c\" & (VLOOKUP(Switch!$D$62,$F$2:$G$43,2,FALSE)+ROW()-2))=Switch!$D$62,INDIRECT(\"a\" & (VLOOKUP(Switch!$D$62,$F$2:$G$43,2,FALSE)+ROW()-2)),\"\")","v":{"$error":"#N/A"}},{"$f":"IF(INDIRECT(\"c\" & (VLOOKUP(Switch!$D$63,$F$2:$G$43,2,FALSE)+ROW()-2))=Switch!$D$63,INDIRECT(\"a\" & (VLOOKUP(Switch!$D$63,$F$2:$G$43,2,FALSE)+ROW()-2)),\"\")","v":{"$error":"#N/A"}},{"$f":"IF(INDIRECT(\"c\" & (VLOOKUP(Switch!$D$64,$F$2:$G$43,2,FALSE)+ROW()-2))=Switch!$D$64,INDIRECT(\"a\" & (VLOOKUP(Switch!$D$64,$F$2:$G$43,2,FALSE)+ROW()-2)),\"\")","v":{"$error":"#N/A"}},{"$f":"IF(INDIRECT(\"c\" & (VLOOKUP(Switch!$D$65,$F$2:$G$43,2,FALSE)+ROW()-2))=Switch!$D$65,INDIRECT(\"a\" & (VLOOKUP(Switch!$D$65,$F$2:$G$43,2,FALSE)+ROW()-2)),\"\")","v":{"$error":"#N/A"}},{"$f":"IF(INDIRECT(\"c\" & (VLOOKUP(Switch!$D$66,$F$2:$G$43,2,FALSE)+ROW()-2))=Switch!$D$66,INDIRECT(\"a\" & (VLOOKUP(Switch!$D$66,$F$2:$G$43,2,FALSE)+ROW()-2)),\"\")","v":{"$error":"#N/A"}}]
["Satrix Low EQ Balanced Index fund B1","SLEB1","Satrix Managers (RF) (Pty) Ltd",{"$f":"ROW()","v":549},null,null,{"$f":"VLOOKUP(F549,$C$2:$D$637,2,FALSE)","v":{"$error":"#N/A"}},{"$f":"IF(INDIRECT(\"c\" & (VLOOKUP(Switch!$D$26,$F$2:$G$43,2,FALSE)+ROW()-2))=Switch!$D$26,INDIRECT(\"a\" & (VLOOKUP(Switch!$D$26,$F$2:$G$43,2,FALSE)+ROW()-2)),\"\")","v":{"$error":"#N/A"}},{"$f":"IF(INDIRECT(\"c\" & (VLOOKUP(Switch!$D$27,$F$2:$G$43,2,FALSE)+ROW()-2))=Switch!$D$27,INDIRECT(\"a\" & (VLOOKUP(Switch!$D$27,$F$2:$G$43,2,FALSE)+ROW()-2)),\"\")","v":{"$error":"#N/A"}},{"$f":"IF(INDIRECT(\"c\" & (VLOOKUP(Switch!$D$28,$F$2:$G$43,2,FALSE)+ROW()-2))=Switch!$D$28,INDIRECT(\"a\" & (VLOOKUP(Switch!$D$28,$F$2:$G$43,2,FALSE)+ROW()-2)),\"\")","v":{"$error":"#N/A"}},{"$f":"IF(INDIRECT(\"c\" & (VLOOKUP(Switch!$D$29,$F$2:$G$43,2,FALSE)+ROW()-2))=Switch!$D$29,INDIRECT(\"a\" & (VLOOKUP(Switch!$D$29,$F$2:$G$43,2,FALSE)+ROW()-2)),\"\")","v":{"$error":"#N/A"}},{"$f":"IF(INDIRECT(\"c\" & (VLOOKUP(Switch!$D$30,$F$2:$G$43,2,FALSE)+ROW()-2))=Switch!$D$30,INDIRECT(\"a\" & (VLOOKUP(Switch!$D$30,$F$2:$G$43,2,FALSE)+ROW()-2)),\"\")","v":{"$error":"#N/A"}},{"$f":"IF(INDIRECT(\"c\" & (VLOOKUP(Switch!$D$31,$F$2:$G$43,2,FALSE)+ROW()-2))=Switch!$D$31,INDIRECT(\"a\" & (VLOOKUP(Switch!$D$31,$F$2:$G$43,2,FALSE)+ROW()-2)),\"\")","v":{"$error":"#N/A"}},{"$f":"IF(INDIRECT(\"c\" & (VLOOKUP(Switch!$D$32,$F$2:$G$43,2,FALSE)+ROW()-2))=Switch!$D$32,INDIRECT(\"a\" & (VLOOKUP(Switch!$D$32,$F$2:$G$43,2,FALSE)+ROW()-2)),\"\")","v":{"$error":"#N/A"}},{"$f":"IF(INDIRECT(\"c\" & (VLOOKUP(Switch!$D$33,$F$2:$G$43,2,FALSE)+ROW()-2))=Switch!$D$33,INDIRECT(\"a\" & (VLOOKUP(Switch!$D$33,$F$2:$G$43,2,FALSE)+ROW()-2)),\"\")","v":{"$error":"#N/A"}},{"$f":"IF(INDIRECT(\"c\" & (VLOOKUP(Switch!$D$34,$F$2:$G$43,2,FALSE)+ROW()-2))=Switch!$D$34,INDIRECT(\"a\" & (VLOOKUP(Switch!$D$34,$F$2:$G$43,2,FALSE)+ROW()-2)),\"\")","v":{"$error":"#N/A"}},{"$f":"IF(INDIRECT(\"c\" & (VLOOKUP(Switch!$D$35,$F$2:$G$43,2,FALSE)+ROW()-2))=Switch!$D$35,INDIRECT(\"a\" & (VLOOKUP(Switch!$D$35,$F$2:$G$43,2,FALSE)+ROW()-2)),\"\")","v":{"$error":"#N/A"}},{"$f":"IF(INDIRECT(\"c\" & (VLOOKUP(Switch!$D$36,$F$2:$G$43,2,FALSE)+ROW()-2))=Switch!$D$36,INDIRECT(\"a\" & (VLOOKUP(Switch!$D$36,$F$2:$G$43,2,FALSE)+ROW()-2)),\"\")","v":{"$error":"#N/A"}},{"$f":"IF(INDIRECT(\"c\" & (VLOOKUP(Switch!$D$37,$F$2:$G$43,2,FALSE)+ROW()-2))=Switch!$D$37,INDIRECT(\"a\" & (VLOOKUP(Switch!$D$37,$F$2:$G$43,2,FALSE)+ROW()-2)),\"\")","v":{"$error":"#N/A"}},{"$f":"IF(INDIRECT(\"c\" & (VLOOKUP(Switch!$D$38,$F$2:$G$43,2,FALSE)+ROW()-2))=Switch!$D$38,INDIRECT(\"a\" & (VLOOKUP(Switch!$D$38,$F$2:$G$43,2,FALSE)+ROW()-2)),\"\")","v":{"$error":"#N/A"}},{"$f":"IF(INDIRECT(\"c\" & (VLOOKUP(Switch!$D$39,$F$2:$G$43,2,FALSE)+ROW()-2))=Switch!$D$39,INDIRECT(\"a\" & (VLOOKUP(Switch!$D$39,$F$2:$G$43,2,FALSE)+ROW()-2)),\"\")","v":{"$error":"#N/A"}},{"$f":"IF(INDIRECT(\"c\" & (VLOOKUP(Switch!$D$40,$F$2:$G$43,2,FALSE)+ROW()-2))=Switch!$D$40,INDIRECT(\"a\" & (VLOOKUP(Switch!$D$40,$F$2:$G$43,2,FALSE)+ROW()-2)),\"\")","v":{"$error":"#N/A"}},{"$f":"IF(INDIRECT(\"c\" & (VLOOKUP(Switch!$D$52,$F$2:$G$43,2,FALSE)+ROW()-2))=Switch!$D$52,INDIRECT(\"a\" & (VLOOKUP(Switch!$D$52,$F$2:$G$43,2,FALSE)+ROW()-2)),\"\")","v":{"$error":"#N/A"}},{"$f":"IF(INDIRECT(\"c\" & (VLOOKUP(Switch!$D$53,$F$2:$G$43,2,FALSE)+ROW()-2))=Switch!$D$53,INDIRECT(\"a\" & (VLOOKUP(Switch!$D$53,$F$2:$G$43,2,FALSE)+ROW()-2)),\"\")","v":{"$error":"#N/A"}},{"$f":"IF(INDIRECT(\"c\" & (VLOOKUP(Switch!$D$54,$F$2:$G$43,2,FALSE)+ROW()-2))=Switch!$D$54,INDIRECT(\"a\" & (VLOOKUP(Switch!$D$54,$F$2:$G$43,2,FALSE)+ROW()-2)),\"\")","v":{"$error":"#N/A"}},{"$f":"IF(INDIRECT(\"c\" & (VLOOKUP(Switch!$D$55,$F$2:$G$43,2,FALSE)+ROW()-2))=Switch!$D$55,INDIRECT(\"a\" & (VLOOKUP(Switch!$D$55,$F$2:$G$43,2,FALSE)+ROW()-2)),\"\")","v":{"$error":"#N/A"}},{"$f":"IF(INDIRECT(\"c\" & (VLOOKUP(Switch!$D$56,$F$2:$G$43,2,FALSE)+ROW()-2))=Switch!$D$56,INDIRECT(\"a\" & (VLOOKUP(Switch!$D$56,$F$2:$G$43,2,FALSE)+ROW()-2)),\"\")","v":{"$error":"#N/A"}},{"$f":"IF(INDIRECT(\"c\" & (VLOOKUP(Switch!$D$57,$F$2:$G$43,2,FALSE)+ROW()-2))=Switch!$D$57,INDIRECT(\"a\" & (VLOOKUP(Switch!$D$57,$F$2:$G$43,2,FALSE)+ROW()-2)),\"\")","v":{"$error":"#N/A"}},{"$f":"IF(INDIRECT(\"c\" & (VLOOKUP(Switch!$D$58,$F$2:$G$43,2,FALSE)+ROW()-2))=Switch!$D$58,INDIRECT(\"a\" & (VLOOKUP(Switch!$D$58,$F$2:$G$43,2,FALSE)+ROW()-2)),\"\")","v":{"$error":"#N/A"}},{"$f":"IF(INDIRECT(\"c\" & (VLOOKUP(Switch!$D$59,$F$2:$G$43,2,FALSE)+ROW()-2))=Switch!$D$59,INDIRECT(\"a\" & (VLOOKUP(Switch!$D$59,$F$2:$G$43,2,FALSE)+ROW()-2)),\"\")","v":{"$error":"#N/A"}},{"$f":"IF(INDIRECT(\"c\" & (VLOOKUP(Switch!$D$60,$F$2:$G$43,2,FALSE)+ROW()-2))=Switch!$D$60,INDIRECT(\"a\" & (VLOOKUP(Switch!$D$60,$F$2:$G$43,2,FALSE)+ROW()-2)),\"\")","v":{"$error":"#N/A"}},{"$f":"IF(INDIRECT(\"c\" & (VLOOKUP(Switch!$D$61,$F$2:$G$43,2,FALSE)+ROW()-2))=Switch!$D$61,INDIRECT(\"a\" & (VLOOKUP(Switch!$D$61,$F$2:$G$43,2,FALSE)+ROW()-2)),\"\")","v":{"$error":"#N/A"}},{"$f":"IF(INDIRECT(\"c\" & (VLOOKUP(Switch!$D$62,$F$2:$G$43,2,FALSE)+ROW()-2))=Switch!$D$62,INDIRECT(\"a\" & (VLOOKUP(Switch!$D$62,$F$2:$G$43,2,FALSE)+ROW()-2)),\"\")","v":{"$error":"#N/A"}},{"$f":"IF(INDIRECT(\"c\" & (VLOOKUP(Switch!$D$63,$F$2:$G$43,2,FALSE)+ROW()-2))=Switch!$D$63,INDIRECT(\"a\" & (VLOOKUP(Switch!$D$63,$F$2:$G$43,2,FALSE)+ROW()-2)),\"\")","v":{"$error":"#N/A"}},{"$f":"IF(INDIRECT(\"c\" & (VLOOKUP(Switch!$D$64,$F$2:$G$43,2,FALSE)+ROW()-2))=Switch!$D$64,INDIRECT(\"a\" & (VLOOKUP(Switch!$D$64,$F$2:$G$43,2,FALSE)+ROW()-2)),\"\")","v":{"$error":"#N/A"}},{"$f":"IF(INDIRECT(\"c\" & (VLOOKUP(Switch!$D$65,$F$2:$G$43,2,FALSE)+ROW()-2))=Switch!$D$65,INDIRECT(\"a\" & (VLOOKUP(Switch!$D$65,$F$2:$G$43,2,FALSE)+ROW()-2)),\"\")","v":{"$error":"#N/A"}},{"$f":"IF(INDIRECT(\"c\" & (VLOOKUP(Switch!$D$66,$F$2:$G$43,2,FALSE)+ROW()-2))=Switch!$D$66,INDIRECT(\"a\" & (VLOOKUP(Switch!$D$66,$F$2:$G$43,2,FALSE)+ROW()-2)),\"\")","v":{"$error":"#N/A"}}]
["Satrix MSCI World Equity Index Feeder Fund B2","SWEB2","Satrix Managers (RF) (Pty) Ltd",{"$f":"ROW()","v":550},null,null,{"$f":"VLOOKUP(F550,$C$2:$D$637,2,FALSE)","v":{"$error":"#N/A"}},{"$f":"IF(INDIRECT(\"c\" & (VLOOKUP(Switch!$D$26,$F$2:$G$43,2,FALSE)+ROW()-2))=Switch!$D$26,INDIRECT(\"a\" & (VLOOKUP(Switch!$D$26,$F$2:$G$43,2,FALSE)+ROW()-2)),\"\")","v":{"$error":"#N/A"}},{"$f":"IF(INDIRECT(\"c\" & (VLOOKUP(Switch!$D$27,$F$2:$G$43,2,FALSE)+ROW()-2))=Switch!$D$27,INDIRECT(\"a\" & (VLOOKUP(Switch!$D$27,$F$2:$G$43,2,FALSE)+ROW()-2)),\"\")","v":{"$error":"#N/A"}},{"$f":"IF(INDIRECT(\"c\" & (VLOOKUP(Switch!$D$28,$F$2:$G$43,2,FALSE)+ROW()-2))=Switch!$D$28,INDIRECT(\"a\" & (VLOOKUP(Switch!$D$28,$F$2:$G$43,2,FALSE)+ROW()-2)),\"\")","v":{"$error":"#N/A"}},{"$f":"IF(INDIRECT(\"c\" & (VLOOKUP(Switch!$D$29,$F$2:$G$43,2,FALSE)+ROW()-2))=Switch!$D$29,INDIRECT(\"a\" & (VLOOKUP(Switch!$D$29,$F$2:$G$43,2,FALSE)+ROW()-2)),\"\")","v":{"$error":"#N/A"}},{"$f":"IF(INDIRECT(\"c\" & (VLOOKUP(Switch!$D$30,$F$2:$G$43,2,FALSE)+ROW()-2))=Switch!$D$30,INDIRECT(\"a\" & (VLOOKUP(Switch!$D$30,$F$2:$G$43,2,FALSE)+ROW()-2)),\"\")","v":{"$error":"#N/A"}},{"$f":"IF(INDIRECT(\"c\" & (VLOOKUP(Switch!$D$31,$F$2:$G$43,2,FALSE)+ROW()-2))=Switch!$D$31,INDIRECT(\"a\" & (VLOOKUP(Switch!$D$31,$F$2:$G$43,2,FALSE)+ROW()-2)),\"\")","v":{"$error":"#N/A"}},{"$f":"IF(INDIRECT(\"c\" & (VLOOKUP(Switch!$D$32,$F$2:$G$43,2,FALSE)+ROW()-2))=Switch!$D$32,INDIRECT(\"a\" & (VLOOKUP(Switch!$D$32,$F$2:$G$43,2,FALSE)+ROW()-2)),\"\")","v":{"$error":"#N/A"}},{"$f":"IF(INDIRECT(\"c\" & (VLOOKUP(Switch!$D$33,$F$2:$G$43,2,FALSE)+ROW()-2))=Switch!$D$33,INDIRECT(\"a\" & (VLOOKUP(Switch!$D$33,$F$2:$G$43,2,FALSE)+ROW()-2)),\"\")","v":{"$error":"#N/A"}},{"$f":"IF(INDIRECT(\"c\" & (VLOOKUP(Switch!$D$34,$F$2:$G$43,2,FALSE)+ROW()-2))=Switch!$D$34,INDIRECT(\"a\" & (VLOOKUP(Switch!$D$34,$F$2:$G$43,2,FALSE)+ROW()-2)),\"\")","v":{"$error":"#N/A"}},{"$f":"IF(INDIRECT(\"c\" & (VLOOKUP(Switch!$D$35,$F$2:$G$43,2,FALSE)+ROW()-2))=Switch!$D$35,INDIRECT(\"a\" & (VLOOKUP(Switch!$D$35,$F$2:$G$43,2,FALSE)+ROW()-2)),\"\")","v":{"$error":"#N/A"}},{"$f":"IF(INDIRECT(\"c\" & (VLOOKUP(Switch!$D$36,$F$2:$G$43,2,FALSE)+ROW()-2))=Switch!$D$36,INDIRECT(\"a\" & (VLOOKUP(Switch!$D$36,$F$2:$G$43,2,FALSE)+ROW()-2)),\"\")","v":{"$error":"#N/A"}},{"$f":"IF(INDIRECT(\"c\" & (VLOOKUP(Switch!$D$37,$F$2:$G$43,2,FALSE)+ROW()-2))=Switch!$D$37,INDIRECT(\"a\" & (VLOOKUP(Switch!$D$37,$F$2:$G$43,2,FALSE)+ROW()-2)),\"\")","v":{"$error":"#N/A"}},{"$f":"IF(INDIRECT(\"c\" & (VLOOKUP(Switch!$D$38,$F$2:$G$43,2,FALSE)+ROW()-2))=Switch!$D$38,INDIRECT(\"a\" & (VLOOKUP(Switch!$D$38,$F$2:$G$43,2,FALSE)+ROW()-2)),\"\")","v":{"$error":"#N/A"}},{"$f":"IF(INDIRECT(\"c\" & (VLOOKUP(Switch!$D$39,$F$2:$G$43,2,FALSE)+ROW()-2))=Switch!$D$39,INDIRECT(\"a\" & (VLOOKUP(Switch!$D$39,$F$2:$G$43,2,FALSE)+ROW()-2)),\"\")","v":{"$error":"#N/A"}},{"$f":"IF(INDIRECT(\"c\" & (VLOOKUP(Switch!$D$40,$F$2:$G$43,2,FALSE)+ROW()-2))=Switch!$D$40,INDIRECT(\"a\" & (VLOOKUP(Switch!$D$40,$F$2:$G$43,2,FALSE)+ROW()-2)),\"\")","v":{"$error":"#N/A"}},{"$f":"IF(INDIRECT(\"c\" & (VLOOKUP(Switch!$D$52,$F$2:$G$43,2,FALSE)+ROW()-2))=Switch!$D$52,INDIRECT(\"a\" & (VLOOKUP(Switch!$D$52,$F$2:$G$43,2,FALSE)+ROW()-2)),\"\")","v":{"$error":"#N/A"}},{"$f":"IF(INDIRECT(\"c\" & (VLOOKUP(Switch!$D$53,$F$2:$G$43,2,FALSE)+ROW()-2))=Switch!$D$53,INDIRECT(\"a\" & (VLOOKUP(Switch!$D$53,$F$2:$G$43,2,FALSE)+ROW()-2)),\"\")","v":{"$error":"#N/A"}},{"$f":"IF(INDIRECT(\"c\" & (VLOOKUP(Switch!$D$54,$F$2:$G$43,2,FALSE)+ROW()-2))=Switch!$D$54,INDIRECT(\"a\" & (VLOOKUP(Switch!$D$54,$F$2:$G$43,2,FALSE)+ROW()-2)),\"\")","v":{"$error":"#N/A"}},{"$f":"IF(INDIRECT(\"c\" & (VLOOKUP(Switch!$D$55,$F$2:$G$43,2,FALSE)+ROW()-2))=Switch!$D$55,INDIRECT(\"a\" & (VLOOKUP(Switch!$D$55,$F$2:$G$43,2,FALSE)+ROW()-2)),\"\")","v":{"$error":"#N/A"}},{"$f":"IF(INDIRECT(\"c\" & (VLOOKUP(Switch!$D$56,$F$2:$G$43,2,FALSE)+ROW()-2))=Switch!$D$56,INDIRECT(\"a\" & (VLOOKUP(Switch!$D$56,$F$2:$G$43,2,FALSE)+ROW()-2)),\"\")","v":{"$error":"#N/A"}},{"$f":"IF(INDIRECT(\"c\" & (VLOOKUP(Switch!$D$57,$F$2:$G$43,2,FALSE)+ROW()-2))=Switch!$D$57,INDIRECT(\"a\" & (VLOOKUP(Switch!$D$57,$F$2:$G$43,2,FALSE)+ROW()-2)),\"\")","v":{"$error":"#N/A"}},{"$f":"IF(INDIRECT(\"c\" & (VLOOKUP(Switch!$D$58,$F$2:$G$43,2,FALSE)+ROW()-2))=Switch!$D$58,INDIRECT(\"a\" & (VLOOKUP(Switch!$D$58,$F$2:$G$43,2,FALSE)+ROW()-2)),\"\")","v":{"$error":"#N/A"}},{"$f":"IF(INDIRECT(\"c\" & (VLOOKUP(Switch!$D$59,$F$2:$G$43,2,FALSE)+ROW()-2))=Switch!$D$59,INDIRECT(\"a\" & (VLOOKUP(Switch!$D$59,$F$2:$G$43,2,FALSE)+ROW()-2)),\"\")","v":{"$error":"#N/A"}},{"$f":"IF(INDIRECT(\"c\" & (VLOOKUP(Switch!$D$60,$F$2:$G$43,2,FALSE)+ROW()-2))=Switch!$D$60,INDIRECT(\"a\" & (VLOOKUP(Switch!$D$60,$F$2:$G$43,2,FALSE)+ROW()-2)),\"\")","v":{"$error":"#N/A"}},{"$f":"IF(INDIRECT(\"c\" & (VLOOKUP(Switch!$D$61,$F$2:$G$43,2,FALSE)+ROW()-2))=Switch!$D$61,INDIRECT(\"a\" & (VLOOKUP(Switch!$D$61,$F$2:$G$43,2,FALSE)+ROW()-2)),\"\")","v":{"$error":"#N/A"}},{"$f":"IF(INDIRECT(\"c\" & (VLOOKUP(Switch!$D$62,$F$2:$G$43,2,FALSE)+ROW()-2))=Switch!$D$62,INDIRECT(\"a\" & (VLOOKUP(Switch!$D$62,$F$2:$G$43,2,FALSE)+ROW()-2)),\"\")","v":{"$error":"#N/A"}},{"$f":"IF(INDIRECT(\"c\" & (VLOOKUP(Switch!$D$63,$F$2:$G$43,2,FALSE)+ROW()-2))=Switch!$D$63,INDIRECT(\"a\" & (VLOOKUP(Switch!$D$63,$F$2:$G$43,2,FALSE)+ROW()-2)),\"\")","v":{"$error":"#N/A"}},{"$f":"IF(INDIRECT(\"c\" & (VLOOKUP(Switch!$D$64,$F$2:$G$43,2,FALSE)+ROW()-2))=Switch!$D$64,INDIRECT(\"a\" & (VLOOKUP(Switch!$D$64,$F$2:$G$43,2,FALSE)+ROW()-2)),\"\")","v":{"$error":"#N/A"}},{"$f":"IF(INDIRECT(\"c\" & (VLOOKUP(Switch!$D$65,$F$2:$G$43,2,FALSE)+ROW()-2))=Switch!$D$65,INDIRECT(\"a\" & (VLOOKUP(Switch!$D$65,$F$2:$G$43,2,FALSE)+ROW()-2)),\"\")","v":{"$error":"#N/A"}},{"$f":"IF(INDIRECT(\"c\" & (VLOOKUP(Switch!$D$66,$F$2:$G$43,2,FALSE)+ROW()-2))=Switch!$D$66,INDIRECT(\"a\" & (VLOOKUP(Switch!$D$66,$F$2:$G$43,2,FALSE)+ROW()-2)),\"\")","v":{"$error":"#N/A"}}]
["Satrix Property Index Fund B1","STPB1","Satrix Managers (RF) (Pty) Ltd",{"$f":"ROW()","v":551},null,null,{"$f":"VLOOKUP(F551,$C$2:$D$637,2,FALSE)","v":{"$error":"#N/A"}},{"$f":"IF(INDIRECT(\"c\" & (VLOOKUP(Switch!$D$26,$F$2:$G$43,2,FALSE)+ROW()-2))=Switch!$D$26,INDIRECT(\"a\" & (VLOOKUP(Switch!$D$26,$F$2:$G$43,2,FALSE)+ROW()-2)),\"\")","v":{"$error":"#N/A"}},{"$f":"IF(INDIRECT(\"c\" & (VLOOKUP(Switch!$D$27,$F$2:$G$43,2,FALSE)+ROW()-2))=Switch!$D$27,INDIRECT(\"a\" & (VLOOKUP(Switch!$D$27,$F$2:$G$43,2,FALSE)+ROW()-2)),\"\")","v":{"$error":"#N/A"}},{"$f":"IF(INDIRECT(\"c\" & (VLOOKUP(Switch!$D$28,$F$2:$G$43,2,FALSE)+ROW()-2))=Switch!$D$28,INDIRECT(\"a\" & (VLOOKUP(Switch!$D$28,$F$2:$G$43,2,FALSE)+ROW()-2)),\"\")","v":{"$error":"#N/A"}},{"$f":"IF(INDIRECT(\"c\" & (VLOOKUP(Switch!$D$29,$F$2:$G$43,2,FALSE)+ROW()-2))=Switch!$D$29,INDIRECT(\"a\" & (VLOOKUP(Switch!$D$29,$F$2:$G$43,2,FALSE)+ROW()-2)),\"\")","v":{"$error":"#N/A"}},{"$f":"IF(INDIRECT(\"c\" & (VLOOKUP(Switch!$D$30,$F$2:$G$43,2,FALSE)+ROW()-2))=Switch!$D$30,INDIRECT(\"a\" & (VLOOKUP(Switch!$D$30,$F$2:$G$43,2,FALSE)+ROW()-2)),\"\")","v":{"$error":"#N/A"}},{"$f":"IF(INDIRECT(\"c\" & (VLOOKUP(Switch!$D$31,$F$2:$G$43,2,FALSE)+ROW()-2))=Switch!$D$31,INDIRECT(\"a\" & (VLOOKUP(Switch!$D$31,$F$2:$G$43,2,FALSE)+ROW()-2)),\"\")","v":{"$error":"#N/A"}},{"$f":"IF(INDIRECT(\"c\" & (VLOOKUP(Switch!$D$32,$F$2:$G$43,2,FALSE)+ROW()-2))=Switch!$D$32,INDIRECT(\"a\" & (VLOOKUP(Switch!$D$32,$F$2:$G$43,2,FALSE)+ROW()-2)),\"\")","v":{"$error":"#N/A"}},{"$f":"IF(INDIRECT(\"c\" & (VLOOKUP(Switch!$D$33,$F$2:$G$43,2,FALSE)+ROW()-2))=Switch!$D$33,INDIRECT(\"a\" & (VLOOKUP(Switch!$D$33,$F$2:$G$43,2,FALSE)+ROW()-2)),\"\")","v":{"$error":"#N/A"}},{"$f":"IF(INDIRECT(\"c\" & (VLOOKUP(Switch!$D$34,$F$2:$G$43,2,FALSE)+ROW()-2))=Switch!$D$34,INDIRECT(\"a\" & (VLOOKUP(Switch!$D$34,$F$2:$G$43,2,FALSE)+ROW()-2)),\"\")","v":{"$error":"#N/A"}},{"$f":"IF(INDIRECT(\"c\" & (VLOOKUP(Switch!$D$35,$F$2:$G$43,2,FALSE)+ROW()-2))=Switch!$D$35,INDIRECT(\"a\" & (VLOOKUP(Switch!$D$35,$F$2:$G$43,2,FALSE)+ROW()-2)),\"\")","v":{"$error":"#N/A"}},{"$f":"IF(INDIRECT(\"c\" & (VLOOKUP(Switch!$D$36,$F$2:$G$43,2,FALSE)+ROW()-2))=Switch!$D$36,INDIRECT(\"a\" & (VLOOKUP(Switch!$D$36,$F$2:$G$43,2,FALSE)+ROW()-2)),\"\")","v":{"$error":"#N/A"}},{"$f":"IF(INDIRECT(\"c\" & (VLOOKUP(Switch!$D$37,$F$2:$G$43,2,FALSE)+ROW()-2))=Switch!$D$37,INDIRECT(\"a\" & (VLOOKUP(Switch!$D$37,$F$2:$G$43,2,FALSE)+ROW()-2)),\"\")","v":{"$error":"#N/A"}},{"$f":"IF(INDIRECT(\"c\" & (VLOOKUP(Switch!$D$38,$F$2:$G$43,2,FALSE)+ROW()-2))=Switch!$D$38,INDIRECT(\"a\" & (VLOOKUP(Switch!$D$38,$F$2:$G$43,2,FALSE)+ROW()-2)),\"\")","v":{"$error":"#N/A"}},{"$f":"IF(INDIRECT(\"c\" & (VLOOKUP(Switch!$D$39,$F$2:$G$43,2,FALSE)+ROW()-2))=Switch!$D$39,INDIRECT(\"a\" & (VLOOKUP(Switch!$D$39,$F$2:$G$43,2,FALSE)+ROW()-2)),\"\")","v":{"$error":"#N/A"}},{"$f":"IF(INDIRECT(\"c\" & (VLOOKUP(Switch!$D$40,$F$2:$G$43,2,FALSE)+ROW()-2))=Switch!$D$40,INDIRECT(\"a\" & (VLOOKUP(Switch!$D$40,$F$2:$G$43,2,FALSE)+ROW()-2)),\"\")","v":{"$error":"#N/A"}},{"$f":"IF(INDIRECT(\"c\" & (VLOOKUP(Switch!$D$52,$F$2:$G$43,2,FALSE)+ROW()-2))=Switch!$D$52,INDIRECT(\"a\" & (VLOOKUP(Switch!$D$52,$F$2:$G$43,2,FALSE)+ROW()-2)),\"\")","v":{"$error":"#N/A"}},{"$f":"IF(INDIRECT(\"c\" & (VLOOKUP(Switch!$D$53,$F$2:$G$43,2,FALSE)+ROW()-2))=Switch!$D$53,INDIRECT(\"a\" & (VLOOKUP(Switch!$D$53,$F$2:$G$43,2,FALSE)+ROW()-2)),\"\")","v":{"$error":"#N/A"}},{"$f":"IF(INDIRECT(\"c\" & (VLOOKUP(Switch!$D$54,$F$2:$G$43,2,FALSE)+ROW()-2))=Switch!$D$54,INDIRECT(\"a\" & (VLOOKUP(Switch!$D$54,$F$2:$G$43,2,FALSE)+ROW()-2)),\"\")","v":{"$error":"#N/A"}},{"$f":"IF(INDIRECT(\"c\" & (VLOOKUP(Switch!$D$55,$F$2:$G$43,2,FALSE)+ROW()-2))=Switch!$D$55,INDIRECT(\"a\" & (VLOOKUP(Switch!$D$55,$F$2:$G$43,2,FALSE)+ROW()-2)),\"\")","v":{"$error":"#N/A"}},{"$f":"IF(INDIRECT(\"c\" & (VLOOKUP(Switch!$D$56,$F$2:$G$43,2,FALSE)+ROW()-2))=Switch!$D$56,INDIRECT(\"a\" & (VLOOKUP(Switch!$D$56,$F$2:$G$43,2,FALSE)+ROW()-2)),\"\")","v":{"$error":"#N/A"}},{"$f":"IF(INDIRECT(\"c\" & (VLOOKUP(Switch!$D$57,$F$2:$G$43,2,FALSE)+ROW()-2))=Switch!$D$57,INDIRECT(\"a\" & (VLOOKUP(Switch!$D$57,$F$2:$G$43,2,FALSE)+ROW()-2)),\"\")","v":{"$error":"#N/A"}},{"$f":"IF(INDIRECT(\"c\" & (VLOOKUP(Switch!$D$58,$F$2:$G$43,2,FALSE)+ROW()-2))=Switch!$D$58,INDIRECT(\"a\" & (VLOOKUP(Switch!$D$58,$F$2:$G$43,2,FALSE)+ROW()-2)),\"\")","v":{"$error":"#N/A"}},{"$f":"IF(INDIRECT(\"c\" & (VLOOKUP(Switch!$D$59,$F$2:$G$43,2,FALSE)+ROW()-2))=Switch!$D$59,INDIRECT(\"a\" & (VLOOKUP(Switch!$D$59,$F$2:$G$43,2,FALSE)+ROW()-2)),\"\")","v":{"$error":"#N/A"}},{"$f":"IF(INDIRECT(\"c\" & (VLOOKUP(Switch!$D$60,$F$2:$G$43,2,FALSE)+ROW()-2))=Switch!$D$60,INDIRECT(\"a\" & (VLOOKUP(Switch!$D$60,$F$2:$G$43,2,FALSE)+ROW()-2)),\"\")","v":{"$error":"#N/A"}},{"$f":"IF(INDIRECT(\"c\" & (VLOOKUP(Switch!$D$61,$F$2:$G$43,2,FALSE)+ROW()-2))=Switch!$D$61,INDIRECT(\"a\" & (VLOOKUP(Switch!$D$61,$F$2:$G$43,2,FALSE)+ROW()-2)),\"\")","v":{"$error":"#N/A"}},{"$f":"IF(INDIRECT(\"c\" & (VLOOKUP(Switch!$D$62,$F$2:$G$43,2,FALSE)+ROW()-2))=Switch!$D$62,INDIRECT(\"a\" & (VLOOKUP(Switch!$D$62,$F$2:$G$43,2,FALSE)+ROW()-2)),\"\")","v":{"$error":"#N/A"}},{"$f":"IF(INDIRECT(\"c\" & (VLOOKUP(Switch!$D$63,$F$2:$G$43,2,FALSE)+ROW()-2))=Switch!$D$63,INDIRECT(\"a\" & (VLOOKUP(Switch!$D$63,$F$2:$G$43,2,FALSE)+ROW()-2)),\"\")","v":{"$error":"#N/A"}},{"$f":"IF(INDIRECT(\"c\" & (VLOOKUP(Switch!$D$64,$F$2:$G$43,2,FALSE)+ROW()-2))=Switch!$D$64,INDIRECT(\"a\" & (VLOOKUP(Switch!$D$64,$F$2:$G$43,2,FALSE)+ROW()-2)),\"\")","v":{"$error":"#N/A"}},{"$f":"IF(INDIRECT(\"c\" & (VLOOKUP(Switch!$D$65,$F$2:$G$43,2,FALSE)+ROW()-2))=Switch!$D$65,INDIRECT(\"a\" & (VLOOKUP(Switch!$D$65,$F$2:$G$43,2,FALSE)+ROW()-2)),\"\")","v":{"$error":"#N/A"}},{"$f":"IF(INDIRECT(\"c\" & (VLOOKUP(Switch!$D$66,$F$2:$G$43,2,FALSE)+ROW()-2))=Switch!$D$66,INDIRECT(\"a\" & (VLOOKUP(Switch!$D$66,$F$2:$G$43,2,FALSE)+ROW()-2)),\"\")","v":{"$error":"#N/A"}}]
["Satrix RAFI 40 Index Fund B1","STRB1","Satrix Managers (RF) (Pty) Ltd",{"$f":"ROW()","v":552},null,null,{"$f":"VLOOKUP(F552,$C$2:$D$637,2,FALSE)","v":{"$error":"#N/A"}},{"$f":"IF(INDIRECT(\"c\" & (VLOOKUP(Switch!$D$26,$F$2:$G$43,2,FALSE)+ROW()-2))=Switch!$D$26,INDIRECT(\"a\" & (VLOOKUP(Switch!$D$26,$F$2:$G$43,2,FALSE)+ROW()-2)),\"\")","v":{"$error":"#N/A"}},{"$f":"IF(INDIRECT(\"c\" & (VLOOKUP(Switch!$D$27,$F$2:$G$43,2,FALSE)+ROW()-2))=Switch!$D$27,INDIRECT(\"a\" & (VLOOKUP(Switch!$D$27,$F$2:$G$43,2,FALSE)+ROW()-2)),\"\")","v":{"$error":"#N/A"}},{"$f":"IF(INDIRECT(\"c\" & (VLOOKUP(Switch!$D$28,$F$2:$G$43,2,FALSE)+ROW()-2))=Switch!$D$28,INDIRECT(\"a\" & (VLOOKUP(Switch!$D$28,$F$2:$G$43,2,FALSE)+ROW()-2)),\"\")","v":{"$error":"#N/A"}},{"$f":"IF(INDIRECT(\"c\" & (VLOOKUP(Switch!$D$29,$F$2:$G$43,2,FALSE)+ROW()-2))=Switch!$D$29,INDIRECT(\"a\" & (VLOOKUP(Switch!$D$29,$F$2:$G$43,2,FALSE)+ROW()-2)),\"\")","v":{"$error":"#N/A"}},{"$f":"IF(INDIRECT(\"c\" & (VLOOKUP(Switch!$D$30,$F$2:$G$43,2,FALSE)+ROW()-2))=Switch!$D$30,INDIRECT(\"a\" & (VLOOKUP(Switch!$D$30,$F$2:$G$43,2,FALSE)+ROW()-2)),\"\")","v":{"$error":"#N/A"}},{"$f":"IF(INDIRECT(\"c\" & (VLOOKUP(Switch!$D$31,$F$2:$G$43,2,FALSE)+ROW()-2))=Switch!$D$31,INDIRECT(\"a\" & (VLOOKUP(Switch!$D$31,$F$2:$G$43,2,FALSE)+ROW()-2)),\"\")","v":{"$error":"#N/A"}},{"$f":"IF(INDIRECT(\"c\" & (VLOOKUP(Switch!$D$32,$F$2:$G$43,2,FALSE)+ROW()-2))=Switch!$D$32,INDIRECT(\"a\" & (VLOOKUP(Switch!$D$32,$F$2:$G$43,2,FALSE)+ROW()-2)),\"\")","v":{"$error":"#N/A"}},{"$f":"IF(INDIRECT(\"c\" & (VLOOKUP(Switch!$D$33,$F$2:$G$43,2,FALSE)+ROW()-2))=Switch!$D$33,INDIRECT(\"a\" & (VLOOKUP(Switch!$D$33,$F$2:$G$43,2,FALSE)+ROW()-2)),\"\")","v":{"$error":"#N/A"}},{"$f":"IF(INDIRECT(\"c\" & (VLOOKUP(Switch!$D$34,$F$2:$G$43,2,FALSE)+ROW()-2))=Switch!$D$34,INDIRECT(\"a\" & (VLOOKUP(Switch!$D$34,$F$2:$G$43,2,FALSE)+ROW()-2)),\"\")","v":{"$error":"#N/A"}},{"$f":"IF(INDIRECT(\"c\" & (VLOOKUP(Switch!$D$35,$F$2:$G$43,2,FALSE)+ROW()-2))=Switch!$D$35,INDIRECT(\"a\" & (VLOOKUP(Switch!$D$35,$F$2:$G$43,2,FALSE)+ROW()-2)),\"\")","v":{"$error":"#N/A"}},{"$f":"IF(INDIRECT(\"c\" & (VLOOKUP(Switch!$D$36,$F$2:$G$43,2,FALSE)+ROW()-2))=Switch!$D$36,INDIRECT(\"a\" & (VLOOKUP(Switch!$D$36,$F$2:$G$43,2,FALSE)+ROW()-2)),\"\")","v":{"$error":"#N/A"}},{"$f":"IF(INDIRECT(\"c\" & (VLOOKUP(Switch!$D$37,$F$2:$G$43,2,FALSE)+ROW()-2))=Switch!$D$37,INDIRECT(\"a\" & (VLOOKUP(Switch!$D$37,$F$2:$G$43,2,FALSE)+ROW()-2)),\"\")","v":{"$error":"#N/A"}},{"$f":"IF(INDIRECT(\"c\" & (VLOOKUP(Switch!$D$38,$F$2:$G$43,2,FALSE)+ROW()-2))=Switch!$D$38,INDIRECT(\"a\" & (VLOOKUP(Switch!$D$38,$F$2:$G$43,2,FALSE)+ROW()-2)),\"\")","v":{"$error":"#N/A"}},{"$f":"IF(INDIRECT(\"c\" & (VLOOKUP(Switch!$D$39,$F$2:$G$43,2,FALSE)+ROW()-2))=Switch!$D$39,INDIRECT(\"a\" & (VLOOKUP(Switch!$D$39,$F$2:$G$43,2,FALSE)+ROW()-2)),\"\")","v":{"$error":"#N/A"}},{"$f":"IF(INDIRECT(\"c\" & (VLOOKUP(Switch!$D$40,$F$2:$G$43,2,FALSE)+ROW()-2))=Switch!$D$40,INDIRECT(\"a\" & (VLOOKUP(Switch!$D$40,$F$2:$G$43,2,FALSE)+ROW()-2)),\"\")","v":{"$error":"#N/A"}},{"$f":"IF(INDIRECT(\"c\" & (VLOOKUP(Switch!$D$52,$F$2:$G$43,2,FALSE)+ROW()-2))=Switch!$D$52,INDIRECT(\"a\" & (VLOOKUP(Switch!$D$52,$F$2:$G$43,2,FALSE)+ROW()-2)),\"\")","v":{"$error":"#N/A"}},{"$f":"IF(INDIRECT(\"c\" & (VLOOKUP(Switch!$D$53,$F$2:$G$43,2,FALSE)+ROW()-2))=Switch!$D$53,INDIRECT(\"a\" & (VLOOKUP(Switch!$D$53,$F$2:$G$43,2,FALSE)+ROW()-2)),\"\")","v":{"$error":"#N/A"}},{"$f":"IF(INDIRECT(\"c\" & (VLOOKUP(Switch!$D$54,$F$2:$G$43,2,FALSE)+ROW()-2))=Switch!$D$54,INDIRECT(\"a\" & (VLOOKUP(Switch!$D$54,$F$2:$G$43,2,FALSE)+ROW()-2)),\"\")","v":{"$error":"#N/A"}},{"$f":"IF(INDIRECT(\"c\" & (VLOOKUP(Switch!$D$55,$F$2:$G$43,2,FALSE)+ROW()-2))=Switch!$D$55,INDIRECT(\"a\" & (VLOOKUP(Switch!$D$55,$F$2:$G$43,2,FALSE)+ROW()-2)),\"\")","v":{"$error":"#N/A"}},{"$f":"IF(INDIRECT(\"c\" & (VLOOKUP(Switch!$D$56,$F$2:$G$43,2,FALSE)+ROW()-2))=Switch!$D$56,INDIRECT(\"a\" & (VLOOKUP(Switch!$D$56,$F$2:$G$43,2,FALSE)+ROW()-2)),\"\")","v":{"$error":"#N/A"}},{"$f":"IF(INDIRECT(\"c\" & (VLOOKUP(Switch!$D$57,$F$2:$G$43,2,FALSE)+ROW()-2))=Switch!$D$57,INDIRECT(\"a\" & (VLOOKUP(Switch!$D$57,$F$2:$G$43,2,FALSE)+ROW()-2)),\"\")","v":{"$error":"#N/A"}},{"$f":"IF(INDIRECT(\"c\" & (VLOOKUP(Switch!$D$58,$F$2:$G$43,2,FALSE)+ROW()-2))=Switch!$D$58,INDIRECT(\"a\" & (VLOOKUP(Switch!$D$58,$F$2:$G$43,2,FALSE)+ROW()-2)),\"\")","v":{"$error":"#N/A"}},{"$f":"IF(INDIRECT(\"c\" & (VLOOKUP(Switch!$D$59,$F$2:$G$43,2,FALSE)+ROW()-2))=Switch!$D$59,INDIRECT(\"a\" & (VLOOKUP(Switch!$D$59,$F$2:$G$43,2,FALSE)+ROW()-2)),\"\")","v":{"$error":"#N/A"}},{"$f":"IF(INDIRECT(\"c\" & (VLOOKUP(Switch!$D$60,$F$2:$G$43,2,FALSE)+ROW()-2))=Switch!$D$60,INDIRECT(\"a\" & (VLOOKUP(Switch!$D$60,$F$2:$G$43,2,FALSE)+ROW()-2)),\"\")","v":{"$error":"#N/A"}},{"$f":"IF(INDIRECT(\"c\" & (VLOOKUP(Switch!$D$61,$F$2:$G$43,2,FALSE)+ROW()-2))=Switch!$D$61,INDIRECT(\"a\" & (VLOOKUP(Switch!$D$61,$F$2:$G$43,2,FALSE)+ROW()-2)),\"\")","v":{"$error":"#N/A"}},{"$f":"IF(INDIRECT(\"c\" & (VLOOKUP(Switch!$D$62,$F$2:$G$43,2,FALSE)+ROW()-2))=Switch!$D$62,INDIRECT(\"a\" & (VLOOKUP(Switch!$D$62,$F$2:$G$43,2,FALSE)+ROW()-2)),\"\")","v":{"$error":"#N/A"}},{"$f":"IF(INDIRECT(\"c\" & (VLOOKUP(Switch!$D$63,$F$2:$G$43,2,FALSE)+ROW()-2))=Switch!$D$63,INDIRECT(\"a\" & (VLOOKUP(Switch!$D$63,$F$2:$G$43,2,FALSE)+ROW()-2)),\"\")","v":{"$error":"#N/A"}},{"$f":"IF(INDIRECT(\"c\" & (VLOOKUP(Switch!$D$64,$F$2:$G$43,2,FALSE)+ROW()-2))=Switch!$D$64,INDIRECT(\"a\" & (VLOOKUP(Switch!$D$64,$F$2:$G$43,2,FALSE)+ROW()-2)),\"\")","v":{"$error":"#N/A"}},{"$f":"IF(INDIRECT(\"c\" & (VLOOKUP(Switch!$D$65,$F$2:$G$43,2,FALSE)+ROW()-2))=Switch!$D$65,INDIRECT(\"a\" & (VLOOKUP(Switch!$D$65,$F$2:$G$43,2,FALSE)+ROW()-2)),\"\")","v":{"$error":"#N/A"}},{"$f":"IF(INDIRECT(\"c\" & (VLOOKUP(Switch!$D$66,$F$2:$G$43,2,FALSE)+ROW()-2))=Switch!$D$66,INDIRECT(\"a\" & (VLOOKUP(Switch!$D$66,$F$2:$G$43,2,FALSE)+ROW()-2)),\"\")","v":{"$error":"#N/A"}}]
["Satrix Top 40 Index Fund B1","STFB1","Satrix Managers (RF) (Pty) Ltd",{"$f":"ROW()","v":553},null,null,{"$f":"VLOOKUP(F553,$C$2:$D$637,2,FALSE)","v":{"$error":"#N/A"}},{"$f":"IF(INDIRECT(\"c\" & (VLOOKUP(Switch!$D$26,$F$2:$G$43,2,FALSE)+ROW()-2))=Switch!$D$26,INDIRECT(\"a\" & (VLOOKUP(Switch!$D$26,$F$2:$G$43,2,FALSE)+ROW()-2)),\"\")","v":{"$error":"#N/A"}},{"$f":"IF(INDIRECT(\"c\" & (VLOOKUP(Switch!$D$27,$F$2:$G$43,2,FALSE)+ROW()-2))=Switch!$D$27,INDIRECT(\"a\" & (VLOOKUP(Switch!$D$27,$F$2:$G$43,2,FALSE)+ROW()-2)),\"\")","v":{"$error":"#N/A"}},{"$f":"IF(INDIRECT(\"c\" & (VLOOKUP(Switch!$D$28,$F$2:$G$43,2,FALSE)+ROW()-2))=Switch!$D$28,INDIRECT(\"a\" & (VLOOKUP(Switch!$D$28,$F$2:$G$43,2,FALSE)+ROW()-2)),\"\")","v":{"$error":"#N/A"}},{"$f":"IF(INDIRECT(\"c\" & (VLOOKUP(Switch!$D$29,$F$2:$G$43,2,FALSE)+ROW()-2))=Switch!$D$29,INDIRECT(\"a\" & (VLOOKUP(Switch!$D$29,$F$2:$G$43,2,FALSE)+ROW()-2)),\"\")","v":{"$error":"#N/A"}},{"$f":"IF(INDIRECT(\"c\" & (VLOOKUP(Switch!$D$30,$F$2:$G$43,2,FALSE)+ROW()-2))=Switch!$D$30,INDIRECT(\"a\" & (VLOOKUP(Switch!$D$30,$F$2:$G$43,2,FALSE)+ROW()-2)),\"\")","v":{"$error":"#N/A"}},{"$f":"IF(INDIRECT(\"c\" & (VLOOKUP(Switch!$D$31,$F$2:$G$43,2,FALSE)+ROW()-2))=Switch!$D$31,INDIRECT(\"a\" & (VLOOKUP(Switch!$D$31,$F$2:$G$43,2,FALSE)+ROW()-2)),\"\")","v":{"$error":"#N/A"}},{"$f":"IF(INDIRECT(\"c\" & (VLOOKUP(Switch!$D$32,$F$2:$G$43,2,FALSE)+ROW()-2))=Switch!$D$32,INDIRECT(\"a\" & (VLOOKUP(Switch!$D$32,$F$2:$G$43,2,FALSE)+ROW()-2)),\"\")","v":{"$error":"#N/A"}},{"$f":"IF(INDIRECT(\"c\" & (VLOOKUP(Switch!$D$33,$F$2:$G$43,2,FALSE)+ROW()-2))=Switch!$D$33,INDIRECT(\"a\" & (VLOOKUP(Switch!$D$33,$F$2:$G$43,2,FALSE)+ROW()-2)),\"\")","v":{"$error":"#N/A"}},{"$f":"IF(INDIRECT(\"c\" & (VLOOKUP(Switch!$D$34,$F$2:$G$43,2,FALSE)+ROW()-2))=Switch!$D$34,INDIRECT(\"a\" & (VLOOKUP(Switch!$D$34,$F$2:$G$43,2,FALSE)+ROW()-2)),\"\")","v":{"$error":"#N/A"}},{"$f":"IF(INDIRECT(\"c\" & (VLOOKUP(Switch!$D$35,$F$2:$G$43,2,FALSE)+ROW()-2))=Switch!$D$35,INDIRECT(\"a\" & (VLOOKUP(Switch!$D$35,$F$2:$G$43,2,FALSE)+ROW()-2)),\"\")","v":{"$error":"#N/A"}},{"$f":"IF(INDIRECT(\"c\" & (VLOOKUP(Switch!$D$36,$F$2:$G$43,2,FALSE)+ROW()-2))=Switch!$D$36,INDIRECT(\"a\" & (VLOOKUP(Switch!$D$36,$F$2:$G$43,2,FALSE)+ROW()-2)),\"\")","v":{"$error":"#N/A"}},{"$f":"IF(INDIRECT(\"c\" & (VLOOKUP(Switch!$D$37,$F$2:$G$43,2,FALSE)+ROW()-2))=Switch!$D$37,INDIRECT(\"a\" & (VLOOKUP(Switch!$D$37,$F$2:$G$43,2,FALSE)+ROW()-2)),\"\")","v":{"$error":"#N/A"}},{"$f":"IF(INDIRECT(\"c\" & (VLOOKUP(Switch!$D$38,$F$2:$G$43,2,FALSE)+ROW()-2))=Switch!$D$38,INDIRECT(\"a\" & (VLOOKUP(Switch!$D$38,$F$2:$G$43,2,FALSE)+ROW()-2)),\"\")","v":{"$error":"#N/A"}},{"$f":"IF(INDIRECT(\"c\" & (VLOOKUP(Switch!$D$39,$F$2:$G$43,2,FALSE)+ROW()-2))=Switch!$D$39,INDIRECT(\"a\" & (VLOOKUP(Switch!$D$39,$F$2:$G$43,2,FALSE)+ROW()-2)),\"\")","v":{"$error":"#N/A"}},{"$f":"IF(INDIRECT(\"c\" & (VLOOKUP(Switch!$D$40,$F$2:$G$43,2,FALSE)+ROW()-2))=Switch!$D$40,INDIRECT(\"a\" & (VLOOKUP(Switch!$D$40,$F$2:$G$43,2,FALSE)+ROW()-2)),\"\")","v":{"$error":"#N/A"}},{"$f":"IF(INDIRECT(\"c\" & (VLOOKUP(Switch!$D$52,$F$2:$G$43,2,FALSE)+ROW()-2))=Switch!$D$52,INDIRECT(\"a\" & (VLOOKUP(Switch!$D$52,$F$2:$G$43,2,FALSE)+ROW()-2)),\"\")","v":{"$error":"#N/A"}},{"$f":"IF(INDIRECT(\"c\" & (VLOOKUP(Switch!$D$53,$F$2:$G$43,2,FALSE)+ROW()-2))=Switch!$D$53,INDIRECT(\"a\" & (VLOOKUP(Switch!$D$53,$F$2:$G$43,2,FALSE)+ROW()-2)),\"\")","v":{"$error":"#N/A"}},{"$f":"IF(INDIRECT(\"c\" & (VLOOKUP(Switch!$D$54,$F$2:$G$43,2,FALSE)+ROW()-2))=Switch!$D$54,INDIRECT(\"a\" & (VLOOKUP(Switch!$D$54,$F$2:$G$43,2,FALSE)+ROW()-2)),\"\")","v":{"$error":"#N/A"}},{"$f":"IF(INDIRECT(\"c\" & (VLOOKUP(Switch!$D$55,$F$2:$G$43,2,FALSE)+ROW()-2))=Switch!$D$55,INDIRECT(\"a\" & (VLOOKUP(Switch!$D$55,$F$2:$G$43,2,FALSE)+ROW()-2)),\"\")","v":{"$error":"#N/A"}},{"$f":"IF(INDIRECT(\"c\" & (VLOOKUP(Switch!$D$56,$F$2:$G$43,2,FALSE)+ROW()-2))=Switch!$D$56,INDIRECT(\"a\" & (VLOOKUP(Switch!$D$56,$F$2:$G$43,2,FALSE)+ROW()-2)),\"\")","v":{"$error":"#N/A"}},{"$f":"IF(INDIRECT(\"c\" & (VLOOKUP(Switch!$D$57,$F$2:$G$43,2,FALSE)+ROW()-2))=Switch!$D$57,INDIRECT(\"a\" & (VLOOKUP(Switch!$D$57,$F$2:$G$43,2,FALSE)+ROW()-2)),\"\")","v":{"$error":"#N/A"}},{"$f":"IF(INDIRECT(\"c\" & (VLOOKUP(Switch!$D$58,$F$2:$G$43,2,FALSE)+ROW()-2))=Switch!$D$58,INDIRECT(\"a\" & (VLOOKUP(Switch!$D$58,$F$2:$G$43,2,FALSE)+ROW()-2)),\"\")","v":{"$error":"#N/A"}},{"$f":"IF(INDIRECT(\"c\" & (VLOOKUP(Switch!$D$59,$F$2:$G$43,2,FALSE)+ROW()-2))=Switch!$D$59,INDIRECT(\"a\" & (VLOOKUP(Switch!$D$59,$F$2:$G$43,2,FALSE)+ROW()-2)),\"\")","v":{"$error":"#N/A"}},{"$f":"IF(INDIRECT(\"c\" & (VLOOKUP(Switch!$D$60,$F$2:$G$43,2,FALSE)+ROW()-2))=Switch!$D$60,INDIRECT(\"a\" & (VLOOKUP(Switch!$D$60,$F$2:$G$43,2,FALSE)+ROW()-2)),\"\")","v":{"$error":"#N/A"}},{"$f":"IF(INDIRECT(\"c\" & (VLOOKUP(Switch!$D$61,$F$2:$G$43,2,FALSE)+ROW()-2))=Switch!$D$61,INDIRECT(\"a\" & (VLOOKUP(Switch!$D$61,$F$2:$G$43,2,FALSE)+ROW()-2)),\"\")","v":{"$error":"#N/A"}},{"$f":"IF(INDIRECT(\"c\" & (VLOOKUP(Switch!$D$62,$F$2:$G$43,2,FALSE)+ROW()-2))=Switch!$D$62,INDIRECT(\"a\" & (VLOOKUP(Switch!$D$62,$F$2:$G$43,2,FALSE)+ROW()-2)),\"\")","v":{"$error":"#N/A"}},{"$f":"IF(INDIRECT(\"c\" & (VLOOKUP(Switch!$D$63,$F$2:$G$43,2,FALSE)+ROW()-2))=Switch!$D$63,INDIRECT(\"a\" & (VLOOKUP(Switch!$D$63,$F$2:$G$43,2,FALSE)+ROW()-2)),\"\")","v":{"$error":"#N/A"}},{"$f":"IF(INDIRECT(\"c\" & (VLOOKUP(Switch!$D$64,$F$2:$G$43,2,FALSE)+ROW()-2))=Switch!$D$64,INDIRECT(\"a\" & (VLOOKUP(Switch!$D$64,$F$2:$G$43,2,FALSE)+ROW()-2)),\"\")","v":{"$error":"#N/A"}},{"$f":"IF(INDIRECT(\"c\" & (VLOOKUP(Switch!$D$65,$F$2:$G$43,2,FALSE)+ROW()-2))=Switch!$D$65,INDIRECT(\"a\" & (VLOOKUP(Switch!$D$65,$F$2:$G$43,2,FALSE)+ROW()-2)),\"\")","v":{"$error":"#N/A"}},{"$f":"IF(INDIRECT(\"c\" & (VLOOKUP(Switch!$D$66,$F$2:$G$43,2,FALSE)+ROW()-2))=Switch!$D$66,INDIRECT(\"a\" & (VLOOKUP(Switch!$D$66,$F$2:$G$43,2,FALSE)+ROW()-2)),\"\")","v":{"$error":"#N/A"}}]
["Sygnia 4th Industrial Revolution Global Equity Fund A","SIRGA","Sygnia Asset Management (Pty) Limited",{"$f":"ROW()","v":554},null,null,{"$f":"VLOOKUP(F554,$C$2:$D$637,2,FALSE)","v":{"$error":"#N/A"}},{"$f":"IF(INDIRECT(\"c\" & (VLOOKUP(Switch!$D$26,$F$2:$G$43,2,FALSE)+ROW()-2))=Switch!$D$26,INDIRECT(\"a\" & (VLOOKUP(Switch!$D$26,$F$2:$G$43,2,FALSE)+ROW()-2)),\"\")","v":{"$error":"#N/A"}},{"$f":"IF(INDIRECT(\"c\" & (VLOOKUP(Switch!$D$27,$F$2:$G$43,2,FALSE)+ROW()-2))=Switch!$D$27,INDIRECT(\"a\" & (VLOOKUP(Switch!$D$27,$F$2:$G$43,2,FALSE)+ROW()-2)),\"\")","v":{"$error":"#N/A"}},{"$f":"IF(INDIRECT(\"c\" & (VLOOKUP(Switch!$D$28,$F$2:$G$43,2,FALSE)+ROW()-2))=Switch!$D$28,INDIRECT(\"a\" & (VLOOKUP(Switch!$D$28,$F$2:$G$43,2,FALSE)+ROW()-2)),\"\")","v":{"$error":"#N/A"}},{"$f":"IF(INDIRECT(\"c\" & (VLOOKUP(Switch!$D$29,$F$2:$G$43,2,FALSE)+ROW()-2))=Switch!$D$29,INDIRECT(\"a\" & (VLOOKUP(Switch!$D$29,$F$2:$G$43,2,FALSE)+ROW()-2)),\"\")","v":{"$error":"#N/A"}},{"$f":"IF(INDIRECT(\"c\" & (VLOOKUP(Switch!$D$30,$F$2:$G$43,2,FALSE)+ROW()-2))=Switch!$D$30,INDIRECT(\"a\" & (VLOOKUP(Switch!$D$30,$F$2:$G$43,2,FALSE)+ROW()-2)),\"\")","v":{"$error":"#N/A"}},{"$f":"IF(INDIRECT(\"c\" & (VLOOKUP(Switch!$D$31,$F$2:$G$43,2,FALSE)+ROW()-2))=Switch!$D$31,INDIRECT(\"a\" & (VLOOKUP(Switch!$D$31,$F$2:$G$43,2,FALSE)+ROW()-2)),\"\")","v":{"$error":"#N/A"}},{"$f":"IF(INDIRECT(\"c\" & (VLOOKUP(Switch!$D$32,$F$2:$G$43,2,FALSE)+ROW()-2))=Switch!$D$32,INDIRECT(\"a\" & (VLOOKUP(Switch!$D$32,$F$2:$G$43,2,FALSE)+ROW()-2)),\"\")","v":{"$error":"#N/A"}},{"$f":"IF(INDIRECT(\"c\" & (VLOOKUP(Switch!$D$33,$F$2:$G$43,2,FALSE)+ROW()-2))=Switch!$D$33,INDIRECT(\"a\" & (VLOOKUP(Switch!$D$33,$F$2:$G$43,2,FALSE)+ROW()-2)),\"\")","v":{"$error":"#N/A"}},{"$f":"IF(INDIRECT(\"c\" & (VLOOKUP(Switch!$D$34,$F$2:$G$43,2,FALSE)+ROW()-2))=Switch!$D$34,INDIRECT(\"a\" & (VLOOKUP(Switch!$D$34,$F$2:$G$43,2,FALSE)+ROW()-2)),\"\")","v":{"$error":"#N/A"}},{"$f":"IF(INDIRECT(\"c\" & (VLOOKUP(Switch!$D$35,$F$2:$G$43,2,FALSE)+ROW()-2))=Switch!$D$35,INDIRECT(\"a\" & (VLOOKUP(Switch!$D$35,$F$2:$G$43,2,FALSE)+ROW()-2)),\"\")","v":{"$error":"#N/A"}},{"$f":"IF(INDIRECT(\"c\" & (VLOOKUP(Switch!$D$36,$F$2:$G$43,2,FALSE)+ROW()-2))=Switch!$D$36,INDIRECT(\"a\" & (VLOOKUP(Switch!$D$36,$F$2:$G$43,2,FALSE)+ROW()-2)),\"\")","v":{"$error":"#N/A"}},{"$f":"IF(INDIRECT(\"c\" & (VLOOKUP(Switch!$D$37,$F$2:$G$43,2,FALSE)+ROW()-2))=Switch!$D$37,INDIRECT(\"a\" & (VLOOKUP(Switch!$D$37,$F$2:$G$43,2,FALSE)+ROW()-2)),\"\")","v":{"$error":"#N/A"}},{"$f":"IF(INDIRECT(\"c\" & (VLOOKUP(Switch!$D$38,$F$2:$G$43,2,FALSE)+ROW()-2))=Switch!$D$38,INDIRECT(\"a\" & (VLOOKUP(Switch!$D$38,$F$2:$G$43,2,FALSE)+ROW()-2)),\"\")","v":{"$error":"#N/A"}},{"$f":"IF(INDIRECT(\"c\" & (VLOOKUP(Switch!$D$39,$F$2:$G$43,2,FALSE)+ROW()-2))=Switch!$D$39,INDIRECT(\"a\" & (VLOOKUP(Switch!$D$39,$F$2:$G$43,2,FALSE)+ROW()-2)),\"\")","v":{"$error":"#N/A"}},{"$f":"IF(INDIRECT(\"c\" & (VLOOKUP(Switch!$D$40,$F$2:$G$43,2,FALSE)+ROW()-2))=Switch!$D$40,INDIRECT(\"a\" & (VLOOKUP(Switch!$D$40,$F$2:$G$43,2,FALSE)+ROW()-2)),\"\")","v":{"$error":"#N/A"}},{"$f":"IF(INDIRECT(\"c\" & (VLOOKUP(Switch!$D$52,$F$2:$G$43,2,FALSE)+ROW()-2))=Switch!$D$52,INDIRECT(\"a\" & (VLOOKUP(Switch!$D$52,$F$2:$G$43,2,FALSE)+ROW()-2)),\"\")","v":{"$error":"#N/A"}},{"$f":"IF(INDIRECT(\"c\" & (VLOOKUP(Switch!$D$53,$F$2:$G$43,2,FALSE)+ROW()-2))=Switch!$D$53,INDIRECT(\"a\" & (VLOOKUP(Switch!$D$53,$F$2:$G$43,2,FALSE)+ROW()-2)),\"\")","v":{"$error":"#N/A"}},{"$f":"IF(INDIRECT(\"c\" & (VLOOKUP(Switch!$D$54,$F$2:$G$43,2,FALSE)+ROW()-2))=Switch!$D$54,INDIRECT(\"a\" & (VLOOKUP(Switch!$D$54,$F$2:$G$43,2,FALSE)+ROW()-2)),\"\")","v":{"$error":"#N/A"}},{"$f":"IF(INDIRECT(\"c\" & (VLOOKUP(Switch!$D$55,$F$2:$G$43,2,FALSE)+ROW()-2))=Switch!$D$55,INDIRECT(\"a\" & (VLOOKUP(Switch!$D$55,$F$2:$G$43,2,FALSE)+ROW()-2)),\"\")","v":{"$error":"#N/A"}},{"$f":"IF(INDIRECT(\"c\" & (VLOOKUP(Switch!$D$56,$F$2:$G$43,2,FALSE)+ROW()-2))=Switch!$D$56,INDIRECT(\"a\" & (VLOOKUP(Switch!$D$56,$F$2:$G$43,2,FALSE)+ROW()-2)),\"\")","v":{"$error":"#N/A"}},{"$f":"IF(INDIRECT(\"c\" & (VLOOKUP(Switch!$D$57,$F$2:$G$43,2,FALSE)+ROW()-2))=Switch!$D$57,INDIRECT(\"a\" & (VLOOKUP(Switch!$D$57,$F$2:$G$43,2,FALSE)+ROW()-2)),\"\")","v":{"$error":"#N/A"}},{"$f":"IF(INDIRECT(\"c\" & (VLOOKUP(Switch!$D$58,$F$2:$G$43,2,FALSE)+ROW()-2))=Switch!$D$58,INDIRECT(\"a\" & (VLOOKUP(Switch!$D$58,$F$2:$G$43,2,FALSE)+ROW()-2)),\"\")","v":{"$error":"#N/A"}},{"$f":"IF(INDIRECT(\"c\" & (VLOOKUP(Switch!$D$59,$F$2:$G$43,2,FALSE)+ROW()-2))=Switch!$D$59,INDIRECT(\"a\" & (VLOOKUP(Switch!$D$59,$F$2:$G$43,2,FALSE)+ROW()-2)),\"\")","v":{"$error":"#N/A"}},{"$f":"IF(INDIRECT(\"c\" & (VLOOKUP(Switch!$D$60,$F$2:$G$43,2,FALSE)+ROW()-2))=Switch!$D$60,INDIRECT(\"a\" & (VLOOKUP(Switch!$D$60,$F$2:$G$43,2,FALSE)+ROW()-2)),\"\")","v":{"$error":"#N/A"}},{"$f":"IF(INDIRECT(\"c\" & (VLOOKUP(Switch!$D$61,$F$2:$G$43,2,FALSE)+ROW()-2))=Switch!$D$61,INDIRECT(\"a\" & (VLOOKUP(Switch!$D$61,$F$2:$G$43,2,FALSE)+ROW()-2)),\"\")","v":{"$error":"#N/A"}},{"$f":"IF(INDIRECT(\"c\" & (VLOOKUP(Switch!$D$62,$F$2:$G$43,2,FALSE)+ROW()-2))=Switch!$D$62,INDIRECT(\"a\" & (VLOOKUP(Switch!$D$62,$F$2:$G$43,2,FALSE)+ROW()-2)),\"\")","v":{"$error":"#N/A"}},{"$f":"IF(INDIRECT(\"c\" & (VLOOKUP(Switch!$D$63,$F$2:$G$43,2,FALSE)+ROW()-2))=Switch!$D$63,INDIRECT(\"a\" & (VLOOKUP(Switch!$D$63,$F$2:$G$43,2,FALSE)+ROW()-2)),\"\")","v":{"$error":"#N/A"}},{"$f":"IF(INDIRECT(\"c\" & (VLOOKUP(Switch!$D$64,$F$2:$G$43,2,FALSE)+ROW()-2))=Switch!$D$64,INDIRECT(\"a\" & (VLOOKUP(Switch!$D$64,$F$2:$G$43,2,FALSE)+ROW()-2)),\"\")","v":{"$error":"#N/A"}},{"$f":"IF(INDIRECT(\"c\" & (VLOOKUP(Switch!$D$65,$F$2:$G$43,2,FALSE)+ROW()-2))=Switch!$D$65,INDIRECT(\"a\" & (VLOOKUP(Switch!$D$65,$F$2:$G$43,2,FALSE)+ROW()-2)),\"\")","v":{"$error":"#N/A"}},{"$f":"IF(INDIRECT(\"c\" & (VLOOKUP(Switch!$D$66,$F$2:$G$43,2,FALSE)+ROW()-2))=Switch!$D$66,INDIRECT(\"a\" & (VLOOKUP(Switch!$D$66,$F$2:$G$43,2,FALSE)+ROW()-2)),\"\")","v":{"$error":"#N/A"}}]
["SBG Securities Conservative PSP","PSP1","SBG Securities",{"$f":"ROW()","v":555},null,null,{"$f":"VLOOKUP(F555,$C$2:$D$637,2,FALSE)","v":{"$error":"#N/A"}},{"$f":"IF(INDIRECT(\"c\" & (VLOOKUP(Switch!$D$26,$F$2:$G$43,2,FALSE)+ROW()-2))=Switch!$D$26,INDIRECT(\"a\" & (VLOOKUP(Switch!$D$26,$F$2:$G$43,2,FALSE)+ROW()-2)),\"\")","v":{"$error":"#N/A"}},{"$f":"IF(INDIRECT(\"c\" & (VLOOKUP(Switch!$D$27,$F$2:$G$43,2,FALSE)+ROW()-2))=Switch!$D$27,INDIRECT(\"a\" & (VLOOKUP(Switch!$D$27,$F$2:$G$43,2,FALSE)+ROW()-2)),\"\")","v":{"$error":"#N/A"}},{"$f":"IF(INDIRECT(\"c\" & (VLOOKUP(Switch!$D$28,$F$2:$G$43,2,FALSE)+ROW()-2))=Switch!$D$28,INDIRECT(\"a\" & (VLOOKUP(Switch!$D$28,$F$2:$G$43,2,FALSE)+ROW()-2)),\"\")","v":{"$error":"#N/A"}},{"$f":"IF(INDIRECT(\"c\" & (VLOOKUP(Switch!$D$29,$F$2:$G$43,2,FALSE)+ROW()-2))=Switch!$D$29,INDIRECT(\"a\" & (VLOOKUP(Switch!$D$29,$F$2:$G$43,2,FALSE)+ROW()-2)),\"\")","v":{"$error":"#N/A"}},{"$f":"IF(INDIRECT(\"c\" & (VLOOKUP(Switch!$D$30,$F$2:$G$43,2,FALSE)+ROW()-2))=Switch!$D$30,INDIRECT(\"a\" & (VLOOKUP(Switch!$D$30,$F$2:$G$43,2,FALSE)+ROW()-2)),\"\")","v":{"$error":"#N/A"}},{"$f":"IF(INDIRECT(\"c\" & (VLOOKUP(Switch!$D$31,$F$2:$G$43,2,FALSE)+ROW()-2))=Switch!$D$31,INDIRECT(\"a\" & (VLOOKUP(Switch!$D$31,$F$2:$G$43,2,FALSE)+ROW()-2)),\"\")","v":{"$error":"#N/A"}},{"$f":"IF(INDIRECT(\"c\" & (VLOOKUP(Switch!$D$32,$F$2:$G$43,2,FALSE)+ROW()-2))=Switch!$D$32,INDIRECT(\"a\" & (VLOOKUP(Switch!$D$32,$F$2:$G$43,2,FALSE)+ROW()-2)),\"\")","v":{"$error":"#N/A"}},{"$f":"IF(INDIRECT(\"c\" & (VLOOKUP(Switch!$D$33,$F$2:$G$43,2,FALSE)+ROW()-2))=Switch!$D$33,INDIRECT(\"a\" & (VLOOKUP(Switch!$D$33,$F$2:$G$43,2,FALSE)+ROW()-2)),\"\")","v":{"$error":"#N/A"}},{"$f":"IF(INDIRECT(\"c\" & (VLOOKUP(Switch!$D$34,$F$2:$G$43,2,FALSE)+ROW()-2))=Switch!$D$34,INDIRECT(\"a\" & (VLOOKUP(Switch!$D$34,$F$2:$G$43,2,FALSE)+ROW()-2)),\"\")","v":{"$error":"#N/A"}},{"$f":"IF(INDIRECT(\"c\" & (VLOOKUP(Switch!$D$35,$F$2:$G$43,2,FALSE)+ROW()-2))=Switch!$D$35,INDIRECT(\"a\" & (VLOOKUP(Switch!$D$35,$F$2:$G$43,2,FALSE)+ROW()-2)),\"\")","v":{"$error":"#N/A"}},{"$f":"IF(INDIRECT(\"c\" & (VLOOKUP(Switch!$D$36,$F$2:$G$43,2,FALSE)+ROW()-2))=Switch!$D$36,INDIRECT(\"a\" & (VLOOKUP(Switch!$D$36,$F$2:$G$43,2,FALSE)+ROW()-2)),\"\")","v":{"$error":"#N/A"}},{"$f":"IF(INDIRECT(\"c\" & (VLOOKUP(Switch!$D$37,$F$2:$G$43,2,FALSE)+ROW()-2))=Switch!$D$37,INDIRECT(\"a\" & (VLOOKUP(Switch!$D$37,$F$2:$G$43,2,FALSE)+ROW()-2)),\"\")","v":{"$error":"#N/A"}},{"$f":"IF(INDIRECT(\"c\" & (VLOOKUP(Switch!$D$38,$F$2:$G$43,2,FALSE)+ROW()-2))=Switch!$D$38,INDIRECT(\"a\" & (VLOOKUP(Switch!$D$38,$F$2:$G$43,2,FALSE)+ROW()-2)),\"\")","v":{"$error":"#N/A"}},{"$f":"IF(INDIRECT(\"c\" & (VLOOKUP(Switch!$D$39,$F$2:$G$43,2,FALSE)+ROW()-2))=Switch!$D$39,INDIRECT(\"a\" & (VLOOKUP(Switch!$D$39,$F$2:$G$43,2,FALSE)+ROW()-2)),\"\")","v":{"$error":"#N/A"}},{"$f":"IF(INDIRECT(\"c\" & (VLOOKUP(Switch!$D$40,$F$2:$G$43,2,FALSE)+ROW()-2))=Switch!$D$40,INDIRECT(\"a\" & (VLOOKUP(Switch!$D$40,$F$2:$G$43,2,FALSE)+ROW()-2)),\"\")","v":{"$error":"#N/A"}},{"$f":"IF(INDIRECT(\"c\" & (VLOOKUP(Switch!$D$52,$F$2:$G$43,2,FALSE)+ROW()-2))=Switch!$D$52,INDIRECT(\"a\" & (VLOOKUP(Switch!$D$52,$F$2:$G$43,2,FALSE)+ROW()-2)),\"\")","v":{"$error":"#N/A"}},{"$f":"IF(INDIRECT(\"c\" & (VLOOKUP(Switch!$D$53,$F$2:$G$43,2,FALSE)+ROW()-2))=Switch!$D$53,INDIRECT(\"a\" & (VLOOKUP(Switch!$D$53,$F$2:$G$43,2,FALSE)+ROW()-2)),\"\")","v":{"$error":"#N/A"}},{"$f":"IF(INDIRECT(\"c\" & (VLOOKUP(Switch!$D$54,$F$2:$G$43,2,FALSE)+ROW()-2))=Switch!$D$54,INDIRECT(\"a\" & (VLOOKUP(Switch!$D$54,$F$2:$G$43,2,FALSE)+ROW()-2)),\"\")","v":{"$error":"#N/A"}},{"$f":"IF(INDIRECT(\"c\" & (VLOOKUP(Switch!$D$55,$F$2:$G$43,2,FALSE)+ROW()-2))=Switch!$D$55,INDIRECT(\"a\" & (VLOOKUP(Switch!$D$55,$F$2:$G$43,2,FALSE)+ROW()-2)),\"\")","v":{"$error":"#N/A"}},{"$f":"IF(INDIRECT(\"c\" & (VLOOKUP(Switch!$D$56,$F$2:$G$43,2,FALSE)+ROW()-2))=Switch!$D$56,INDIRECT(\"a\" & (VLOOKUP(Switch!$D$56,$F$2:$G$43,2,FALSE)+ROW()-2)),\"\")","v":{"$error":"#N/A"}},{"$f":"IF(INDIRECT(\"c\" & (VLOOKUP(Switch!$D$57,$F$2:$G$43,2,FALSE)+ROW()-2))=Switch!$D$57,INDIRECT(\"a\" & (VLOOKUP(Switch!$D$57,$F$2:$G$43,2,FALSE)+ROW()-2)),\"\")","v":{"$error":"#N/A"}},{"$f":"IF(INDIRECT(\"c\" & (VLOOKUP(Switch!$D$58,$F$2:$G$43,2,FALSE)+ROW()-2))=Switch!$D$58,INDIRECT(\"a\" & (VLOOKUP(Switch!$D$58,$F$2:$G$43,2,FALSE)+ROW()-2)),\"\")","v":{"$error":"#N/A"}},{"$f":"IF(INDIRECT(\"c\" & (VLOOKUP(Switch!$D$59,$F$2:$G$43,2,FALSE)+ROW()-2))=Switch!$D$59,INDIRECT(\"a\" & (VLOOKUP(Switch!$D$59,$F$2:$G$43,2,FALSE)+ROW()-2)),\"\")","v":{"$error":"#N/A"}},{"$f":"IF(INDIRECT(\"c\" & (VLOOKUP(Switch!$D$60,$F$2:$G$43,2,FALSE)+ROW()-2))=Switch!$D$60,INDIRECT(\"a\" & (VLOOKUP(Switch!$D$60,$F$2:$G$43,2,FALSE)+ROW()-2)),\"\")","v":{"$error":"#N/A"}},{"$f":"IF(INDIRECT(\"c\" & (VLOOKUP(Switch!$D$61,$F$2:$G$43,2,FALSE)+ROW()-2))=Switch!$D$61,INDIRECT(\"a\" & (VLOOKUP(Switch!$D$61,$F$2:$G$43,2,FALSE)+ROW()-2)),\"\")","v":{"$error":"#N/A"}},{"$f":"IF(INDIRECT(\"c\" & (VLOOKUP(Switch!$D$62,$F$2:$G$43,2,FALSE)+ROW()-2))=Switch!$D$62,INDIRECT(\"a\" & (VLOOKUP(Switch!$D$62,$F$2:$G$43,2,FALSE)+ROW()-2)),\"\")","v":{"$error":"#N/A"}},{"$f":"IF(INDIRECT(\"c\" & (VLOOKUP(Switch!$D$63,$F$2:$G$43,2,FALSE)+ROW()-2))=Switch!$D$63,INDIRECT(\"a\" & (VLOOKUP(Switch!$D$63,$F$2:$G$43,2,FALSE)+ROW()-2)),\"\")","v":{"$error":"#N/A"}},{"$f":"IF(INDIRECT(\"c\" & (VLOOKUP(Switch!$D$64,$F$2:$G$43,2,FALSE)+ROW()-2))=Switch!$D$64,INDIRECT(\"a\" & (VLOOKUP(Switch!$D$64,$F$2:$G$43,2,FALSE)+ROW()-2)),\"\")","v":{"$error":"#N/A"}},{"$f":"IF(INDIRECT(\"c\" & (VLOOKUP(Switch!$D$65,$F$2:$G$43,2,FALSE)+ROW()-2))=Switch!$D$65,INDIRECT(\"a\" & (VLOOKUP(Switch!$D$65,$F$2:$G$43,2,FALSE)+ROW()-2)),\"\")","v":{"$error":"#N/A"}},{"$f":"IF(INDIRECT(\"c\" & (VLOOKUP(Switch!$D$66,$F$2:$G$43,2,FALSE)+ROW()-2))=Switch!$D$66,INDIRECT(\"a\" & (VLOOKUP(Switch!$D$66,$F$2:$G$43,2,FALSE)+ROW()-2)),\"\")","v":{"$error":"#N/A"}}]
["SBG Securities Diversified PSP","PSP2","SBG Securities",{"$f":"ROW()","v":556},null,null,{"$f":"VLOOKUP(F556,$C$2:$D$637,2,FALSE)","v":{"$error":"#N/A"}},{"$f":"IF(INDIRECT(\"c\" & (VLOOKUP(Switch!$D$26,$F$2:$G$43,2,FALSE)+ROW()-2))=Switch!$D$26,INDIRECT(\"a\" & (VLOOKUP(Switch!$D$26,$F$2:$G$43,2,FALSE)+ROW()-2)),\"\")","v":{"$error":"#N/A"}},{"$f":"IF(INDIRECT(\"c\" & (VLOOKUP(Switch!$D$27,$F$2:$G$43,2,FALSE)+ROW()-2))=Switch!$D$27,INDIRECT(\"a\" & (VLOOKUP(Switch!$D$27,$F$2:$G$43,2,FALSE)+ROW()-2)),\"\")","v":{"$error":"#N/A"}},{"$f":"IF(INDIRECT(\"c\" & (VLOOKUP(Switch!$D$28,$F$2:$G$43,2,FALSE)+ROW()-2))=Switch!$D$28,INDIRECT(\"a\" & (VLOOKUP(Switch!$D$28,$F$2:$G$43,2,FALSE)+ROW()-2)),\"\")","v":{"$error":"#N/A"}},{"$f":"IF(INDIRECT(\"c\" & (VLOOKUP(Switch!$D$29,$F$2:$G$43,2,FALSE)+ROW()-2))=Switch!$D$29,INDIRECT(\"a\" & (VLOOKUP(Switch!$D$29,$F$2:$G$43,2,FALSE)+ROW()-2)),\"\")","v":{"$error":"#N/A"}},{"$f":"IF(INDIRECT(\"c\" & (VLOOKUP(Switch!$D$30,$F$2:$G$43,2,FALSE)+ROW()-2))=Switch!$D$30,INDIRECT(\"a\" & (VLOOKUP(Switch!$D$30,$F$2:$G$43,2,FALSE)+ROW()-2)),\"\")","v":{"$error":"#N/A"}},{"$f":"IF(INDIRECT(\"c\" & (VLOOKUP(Switch!$D$31,$F$2:$G$43,2,FALSE)+ROW()-2))=Switch!$D$31,INDIRECT(\"a\" & (VLOOKUP(Switch!$D$31,$F$2:$G$43,2,FALSE)+ROW()-2)),\"\")","v":{"$error":"#N/A"}},{"$f":"IF(INDIRECT(\"c\" & (VLOOKUP(Switch!$D$32,$F$2:$G$43,2,FALSE)+ROW()-2))=Switch!$D$32,INDIRECT(\"a\" & (VLOOKUP(Switch!$D$32,$F$2:$G$43,2,FALSE)+ROW()-2)),\"\")","v":{"$error":"#N/A"}},{"$f":"IF(INDIRECT(\"c\" & (VLOOKUP(Switch!$D$33,$F$2:$G$43,2,FALSE)+ROW()-2))=Switch!$D$33,INDIRECT(\"a\" & (VLOOKUP(Switch!$D$33,$F$2:$G$43,2,FALSE)+ROW()-2)),\"\")","v":{"$error":"#N/A"}},{"$f":"IF(INDIRECT(\"c\" & (VLOOKUP(Switch!$D$34,$F$2:$G$43,2,FALSE)+ROW()-2))=Switch!$D$34,INDIRECT(\"a\" & (VLOOKUP(Switch!$D$34,$F$2:$G$43,2,FALSE)+ROW()-2)),\"\")","v":{"$error":"#N/A"}},{"$f":"IF(INDIRECT(\"c\" & (VLOOKUP(Switch!$D$35,$F$2:$G$43,2,FALSE)+ROW()-2))=Switch!$D$35,INDIRECT(\"a\" & (VLOOKUP(Switch!$D$35,$F$2:$G$43,2,FALSE)+ROW()-2)),\"\")","v":{"$error":"#N/A"}},{"$f":"IF(INDIRECT(\"c\" & (VLOOKUP(Switch!$D$36,$F$2:$G$43,2,FALSE)+ROW()-2))=Switch!$D$36,INDIRECT(\"a\" & (VLOOKUP(Switch!$D$36,$F$2:$G$43,2,FALSE)+ROW()-2)),\"\")","v":{"$error":"#N/A"}},{"$f":"IF(INDIRECT(\"c\" & (VLOOKUP(Switch!$D$37,$F$2:$G$43,2,FALSE)+ROW()-2))=Switch!$D$37,INDIRECT(\"a\" & (VLOOKUP(Switch!$D$37,$F$2:$G$43,2,FALSE)+ROW()-2)),\"\")","v":{"$error":"#N/A"}},{"$f":"IF(INDIRECT(\"c\" & (VLOOKUP(Switch!$D$38,$F$2:$G$43,2,FALSE)+ROW()-2))=Switch!$D$38,INDIRECT(\"a\" & (VLOOKUP(Switch!$D$38,$F$2:$G$43,2,FALSE)+ROW()-2)),\"\")","v":{"$error":"#N/A"}},{"$f":"IF(INDIRECT(\"c\" & (VLOOKUP(Switch!$D$39,$F$2:$G$43,2,FALSE)+ROW()-2))=Switch!$D$39,INDIRECT(\"a\" & (VLOOKUP(Switch!$D$39,$F$2:$G$43,2,FALSE)+ROW()-2)),\"\")","v":{"$error":"#N/A"}},{"$f":"IF(INDIRECT(\"c\" & (VLOOKUP(Switch!$D$40,$F$2:$G$43,2,FALSE)+ROW()-2))=Switch!$D$40,INDIRECT(\"a\" & (VLOOKUP(Switch!$D$40,$F$2:$G$43,2,FALSE)+ROW()-2)),\"\")","v":{"$error":"#N/A"}},{"$f":"IF(INDIRECT(\"c\" & (VLOOKUP(Switch!$D$52,$F$2:$G$43,2,FALSE)+ROW()-2))=Switch!$D$52,INDIRECT(\"a\" & (VLOOKUP(Switch!$D$52,$F$2:$G$43,2,FALSE)+ROW()-2)),\"\")","v":{"$error":"#N/A"}},{"$f":"IF(INDIRECT(\"c\" & (VLOOKUP(Switch!$D$53,$F$2:$G$43,2,FALSE)+ROW()-2))=Switch!$D$53,INDIRECT(\"a\" & (VLOOKUP(Switch!$D$53,$F$2:$G$43,2,FALSE)+ROW()-2)),\"\")","v":{"$error":"#N/A"}},{"$f":"IF(INDIRECT(\"c\" & (VLOOKUP(Switch!$D$54,$F$2:$G$43,2,FALSE)+ROW()-2))=Switch!$D$54,INDIRECT(\"a\" & (VLOOKUP(Switch!$D$54,$F$2:$G$43,2,FALSE)+ROW()-2)),\"\")","v":{"$error":"#N/A"}},{"$f":"IF(INDIRECT(\"c\" & (VLOOKUP(Switch!$D$55,$F$2:$G$43,2,FALSE)+ROW()-2))=Switch!$D$55,INDIRECT(\"a\" & (VLOOKUP(Switch!$D$55,$F$2:$G$43,2,FALSE)+ROW()-2)),\"\")","v":{"$error":"#N/A"}},{"$f":"IF(INDIRECT(\"c\" & (VLOOKUP(Switch!$D$56,$F$2:$G$43,2,FALSE)+ROW()-2))=Switch!$D$56,INDIRECT(\"a\" & (VLOOKUP(Switch!$D$56,$F$2:$G$43,2,FALSE)+ROW()-2)),\"\")","v":{"$error":"#N/A"}},{"$f":"IF(INDIRECT(\"c\" & (VLOOKUP(Switch!$D$57,$F$2:$G$43,2,FALSE)+ROW()-2))=Switch!$D$57,INDIRECT(\"a\" & (VLOOKUP(Switch!$D$57,$F$2:$G$43,2,FALSE)+ROW()-2)),\"\")","v":{"$error":"#N/A"}},{"$f":"IF(INDIRECT(\"c\" & (VLOOKUP(Switch!$D$58,$F$2:$G$43,2,FALSE)+ROW()-2))=Switch!$D$58,INDIRECT(\"a\" & (VLOOKUP(Switch!$D$58,$F$2:$G$43,2,FALSE)+ROW()-2)),\"\")","v":{"$error":"#N/A"}},{"$f":"IF(INDIRECT(\"c\" & (VLOOKUP(Switch!$D$59,$F$2:$G$43,2,FALSE)+ROW()-2))=Switch!$D$59,INDIRECT(\"a\" & (VLOOKUP(Switch!$D$59,$F$2:$G$43,2,FALSE)+ROW()-2)),\"\")","v":{"$error":"#N/A"}},{"$f":"IF(INDIRECT(\"c\" & (VLOOKUP(Switch!$D$60,$F$2:$G$43,2,FALSE)+ROW()-2))=Switch!$D$60,INDIRECT(\"a\" & (VLOOKUP(Switch!$D$60,$F$2:$G$43,2,FALSE)+ROW()-2)),\"\")","v":{"$error":"#N/A"}},{"$f":"IF(INDIRECT(\"c\" & (VLOOKUP(Switch!$D$61,$F$2:$G$43,2,FALSE)+ROW()-2))=Switch!$D$61,INDIRECT(\"a\" & (VLOOKUP(Switch!$D$61,$F$2:$G$43,2,FALSE)+ROW()-2)),\"\")","v":{"$error":"#N/A"}},{"$f":"IF(INDIRECT(\"c\" & (VLOOKUP(Switch!$D$62,$F$2:$G$43,2,FALSE)+ROW()-2))=Switch!$D$62,INDIRECT(\"a\" & (VLOOKUP(Switch!$D$62,$F$2:$G$43,2,FALSE)+ROW()-2)),\"\")","v":{"$error":"#N/A"}},{"$f":"IF(INDIRECT(\"c\" & (VLOOKUP(Switch!$D$63,$F$2:$G$43,2,FALSE)+ROW()-2))=Switch!$D$63,INDIRECT(\"a\" & (VLOOKUP(Switch!$D$63,$F$2:$G$43,2,FALSE)+ROW()-2)),\"\")","v":{"$error":"#N/A"}},{"$f":"IF(INDIRECT(\"c\" & (VLOOKUP(Switch!$D$64,$F$2:$G$43,2,FALSE)+ROW()-2))=Switch!$D$64,INDIRECT(\"a\" & (VLOOKUP(Switch!$D$64,$F$2:$G$43,2,FALSE)+ROW()-2)),\"\")","v":{"$error":"#N/A"}},{"$f":"IF(INDIRECT(\"c\" & (VLOOKUP(Switch!$D$65,$F$2:$G$43,2,FALSE)+ROW()-2))=Switch!$D$65,INDIRECT(\"a\" & (VLOOKUP(Switch!$D$65,$F$2:$G$43,2,FALSE)+ROW()-2)),\"\")","v":{"$error":"#N/A"}},{"$f":"IF(INDIRECT(\"c\" & (VLOOKUP(Switch!$D$66,$F$2:$G$43,2,FALSE)+ROW()-2))=Switch!$D$66,INDIRECT(\"a\" & (VLOOKUP(Switch!$D$66,$F$2:$G$43,2,FALSE)+ROW()-2)),\"\")","v":{"$error":"#N/A"}}]
["SBG Securities High Dividend PSP","PSP4","SBG Securities",{"$f":"ROW()","v":557},null,null,{"$f":"VLOOKUP(F557,$C$2:$D$637,2,FALSE)","v":{"$error":"#N/A"}},{"$f":"IF(INDIRECT(\"c\" & (VLOOKUP(Switch!$D$26,$F$2:$G$43,2,FALSE)+ROW()-2))=Switch!$D$26,INDIRECT(\"a\" & (VLOOKUP(Switch!$D$26,$F$2:$G$43,2,FALSE)+ROW()-2)),\"\")","v":{"$error":"#N/A"}},{"$f":"IF(INDIRECT(\"c\" & (VLOOKUP(Switch!$D$27,$F$2:$G$43,2,FALSE)+ROW()-2))=Switch!$D$27,INDIRECT(\"a\" & (VLOOKUP(Switch!$D$27,$F$2:$G$43,2,FALSE)+ROW()-2)),\"\")","v":{"$error":"#N/A"}},{"$f":"IF(INDIRECT(\"c\" & (VLOOKUP(Switch!$D$28,$F$2:$G$43,2,FALSE)+ROW()-2))=Switch!$D$28,INDIRECT(\"a\" & (VLOOKUP(Switch!$D$28,$F$2:$G$43,2,FALSE)+ROW()-2)),\"\")","v":{"$error":"#N/A"}},{"$f":"IF(INDIRECT(\"c\" & (VLOOKUP(Switch!$D$29,$F$2:$G$43,2,FALSE)+ROW()-2))=Switch!$D$29,INDIRECT(\"a\" & (VLOOKUP(Switch!$D$29,$F$2:$G$43,2,FALSE)+ROW()-2)),\"\")","v":{"$error":"#N/A"}},{"$f":"IF(INDIRECT(\"c\" & (VLOOKUP(Switch!$D$30,$F$2:$G$43,2,FALSE)+ROW()-2))=Switch!$D$30,INDIRECT(\"a\" & (VLOOKUP(Switch!$D$30,$F$2:$G$43,2,FALSE)+ROW()-2)),\"\")","v":{"$error":"#N/A"}},{"$f":"IF(INDIRECT(\"c\" & (VLOOKUP(Switch!$D$31,$F$2:$G$43,2,FALSE)+ROW()-2))=Switch!$D$31,INDIRECT(\"a\" & (VLOOKUP(Switch!$D$31,$F$2:$G$43,2,FALSE)+ROW()-2)),\"\")","v":{"$error":"#N/A"}},{"$f":"IF(INDIRECT(\"c\" & (VLOOKUP(Switch!$D$32,$F$2:$G$43,2,FALSE)+ROW()-2))=Switch!$D$32,INDIRECT(\"a\" & (VLOOKUP(Switch!$D$32,$F$2:$G$43,2,FALSE)+ROW()-2)),\"\")","v":{"$error":"#N/A"}},{"$f":"IF(INDIRECT(\"c\" & (VLOOKUP(Switch!$D$33,$F$2:$G$43,2,FALSE)+ROW()-2))=Switch!$D$33,INDIRECT(\"a\" & (VLOOKUP(Switch!$D$33,$F$2:$G$43,2,FALSE)+ROW()-2)),\"\")","v":{"$error":"#N/A"}},{"$f":"IF(INDIRECT(\"c\" & (VLOOKUP(Switch!$D$34,$F$2:$G$43,2,FALSE)+ROW()-2))=Switch!$D$34,INDIRECT(\"a\" & (VLOOKUP(Switch!$D$34,$F$2:$G$43,2,FALSE)+ROW()-2)),\"\")","v":{"$error":"#N/A"}},{"$f":"IF(INDIRECT(\"c\" & (VLOOKUP(Switch!$D$35,$F$2:$G$43,2,FALSE)+ROW()-2))=Switch!$D$35,INDIRECT(\"a\" & (VLOOKUP(Switch!$D$35,$F$2:$G$43,2,FALSE)+ROW()-2)),\"\")","v":{"$error":"#N/A"}},{"$f":"IF(INDIRECT(\"c\" & (VLOOKUP(Switch!$D$36,$F$2:$G$43,2,FALSE)+ROW()-2))=Switch!$D$36,INDIRECT(\"a\" & (VLOOKUP(Switch!$D$36,$F$2:$G$43,2,FALSE)+ROW()-2)),\"\")","v":{"$error":"#N/A"}},{"$f":"IF(INDIRECT(\"c\" & (VLOOKUP(Switch!$D$37,$F$2:$G$43,2,FALSE)+ROW()-2))=Switch!$D$37,INDIRECT(\"a\" & (VLOOKUP(Switch!$D$37,$F$2:$G$43,2,FALSE)+ROW()-2)),\"\")","v":{"$error":"#N/A"}},{"$f":"IF(INDIRECT(\"c\" & (VLOOKUP(Switch!$D$38,$F$2:$G$43,2,FALSE)+ROW()-2))=Switch!$D$38,INDIRECT(\"a\" & (VLOOKUP(Switch!$D$38,$F$2:$G$43,2,FALSE)+ROW()-2)),\"\")","v":{"$error":"#N/A"}},{"$f":"IF(INDIRECT(\"c\" & (VLOOKUP(Switch!$D$39,$F$2:$G$43,2,FALSE)+ROW()-2))=Switch!$D$39,INDIRECT(\"a\" & (VLOOKUP(Switch!$D$39,$F$2:$G$43,2,FALSE)+ROW()-2)),\"\")","v":{"$error":"#N/A"}},{"$f":"IF(INDIRECT(\"c\" & (VLOOKUP(Switch!$D$40,$F$2:$G$43,2,FALSE)+ROW()-2))=Switch!$D$40,INDIRECT(\"a\" & (VLOOKUP(Switch!$D$40,$F$2:$G$43,2,FALSE)+ROW()-2)),\"\")","v":{"$error":"#N/A"}},{"$f":"IF(INDIRECT(\"c\" & (VLOOKUP(Switch!$D$52,$F$2:$G$43,2,FALSE)+ROW()-2))=Switch!$D$52,INDIRECT(\"a\" & (VLOOKUP(Switch!$D$52,$F$2:$G$43,2,FALSE)+ROW()-2)),\"\")","v":{"$error":"#N/A"}},{"$f":"IF(INDIRECT(\"c\" & (VLOOKUP(Switch!$D$53,$F$2:$G$43,2,FALSE)+ROW()-2))=Switch!$D$53,INDIRECT(\"a\" & (VLOOKUP(Switch!$D$53,$F$2:$G$43,2,FALSE)+ROW()-2)),\"\")","v":{"$error":"#N/A"}},{"$f":"IF(INDIRECT(\"c\" & (VLOOKUP(Switch!$D$54,$F$2:$G$43,2,FALSE)+ROW()-2))=Switch!$D$54,INDIRECT(\"a\" & (VLOOKUP(Switch!$D$54,$F$2:$G$43,2,FALSE)+ROW()-2)),\"\")","v":{"$error":"#N/A"}},{"$f":"IF(INDIRECT(\"c\" & (VLOOKUP(Switch!$D$55,$F$2:$G$43,2,FALSE)+ROW()-2))=Switch!$D$55,INDIRECT(\"a\" & (VLOOKUP(Switch!$D$55,$F$2:$G$43,2,FALSE)+ROW()-2)),\"\")","v":{"$error":"#N/A"}},{"$f":"IF(INDIRECT(\"c\" & (VLOOKUP(Switch!$D$56,$F$2:$G$43,2,FALSE)+ROW()-2))=Switch!$D$56,INDIRECT(\"a\" & (VLOOKUP(Switch!$D$56,$F$2:$G$43,2,FALSE)+ROW()-2)),\"\")","v":{"$error":"#N/A"}},{"$f":"IF(INDIRECT(\"c\" & (VLOOKUP(Switch!$D$57,$F$2:$G$43,2,FALSE)+ROW()-2))=Switch!$D$57,INDIRECT(\"a\" & (VLOOKUP(Switch!$D$57,$F$2:$G$43,2,FALSE)+ROW()-2)),\"\")","v":{"$error":"#N/A"}},{"$f":"IF(INDIRECT(\"c\" & (VLOOKUP(Switch!$D$58,$F$2:$G$43,2,FALSE)+ROW()-2))=Switch!$D$58,INDIRECT(\"a\" & (VLOOKUP(Switch!$D$58,$F$2:$G$43,2,FALSE)+ROW()-2)),\"\")","v":{"$error":"#N/A"}},{"$f":"IF(INDIRECT(\"c\" & (VLOOKUP(Switch!$D$59,$F$2:$G$43,2,FALSE)+ROW()-2))=Switch!$D$59,INDIRECT(\"a\" & (VLOOKUP(Switch!$D$59,$F$2:$G$43,2,FALSE)+ROW()-2)),\"\")","v":{"$error":"#N/A"}},{"$f":"IF(INDIRECT(\"c\" & (VLOOKUP(Switch!$D$60,$F$2:$G$43,2,FALSE)+ROW()-2))=Switch!$D$60,INDIRECT(\"a\" & (VLOOKUP(Switch!$D$60,$F$2:$G$43,2,FALSE)+ROW()-2)),\"\")","v":{"$error":"#N/A"}},{"$f":"IF(INDIRECT(\"c\" & (VLOOKUP(Switch!$D$61,$F$2:$G$43,2,FALSE)+ROW()-2))=Switch!$D$61,INDIRECT(\"a\" & (VLOOKUP(Switch!$D$61,$F$2:$G$43,2,FALSE)+ROW()-2)),\"\")","v":{"$error":"#N/A"}},{"$f":"IF(INDIRECT(\"c\" & (VLOOKUP(Switch!$D$62,$F$2:$G$43,2,FALSE)+ROW()-2))=Switch!$D$62,INDIRECT(\"a\" & (VLOOKUP(Switch!$D$62,$F$2:$G$43,2,FALSE)+ROW()-2)),\"\")","v":{"$error":"#N/A"}},{"$f":"IF(INDIRECT(\"c\" & (VLOOKUP(Switch!$D$63,$F$2:$G$43,2,FALSE)+ROW()-2))=Switch!$D$63,INDIRECT(\"a\" & (VLOOKUP(Switch!$D$63,$F$2:$G$43,2,FALSE)+ROW()-2)),\"\")","v":{"$error":"#N/A"}},{"$f":"IF(INDIRECT(\"c\" & (VLOOKUP(Switch!$D$64,$F$2:$G$43,2,FALSE)+ROW()-2))=Switch!$D$64,INDIRECT(\"a\" & (VLOOKUP(Switch!$D$64,$F$2:$G$43,2,FALSE)+ROW()-2)),\"\")","v":{"$error":"#N/A"}},{"$f":"IF(INDIRECT(\"c\" & (VLOOKUP(Switch!$D$65,$F$2:$G$43,2,FALSE)+ROW()-2))=Switch!$D$65,INDIRECT(\"a\" & (VLOOKUP(Switch!$D$65,$F$2:$G$43,2,FALSE)+ROW()-2)),\"\")","v":{"$error":"#N/A"}},{"$f":"IF(INDIRECT(\"c\" & (VLOOKUP(Switch!$D$66,$F$2:$G$43,2,FALSE)+ROW()-2))=Switch!$D$66,INDIRECT(\"a\" & (VLOOKUP(Switch!$D$66,$F$2:$G$43,2,FALSE)+ROW()-2)),\"\")","v":{"$error":"#N/A"}}]
["SBG Securities Income PSP","PSP3","SBG Securities",{"$f":"ROW()","v":558},null,null,{"$f":"VLOOKUP(F558,$C$2:$D$637,2,FALSE)","v":{"$error":"#N/A"}},{"$f":"IF(INDIRECT(\"c\" & (VLOOKUP(Switch!$D$26,$F$2:$G$43,2,FALSE)+ROW()-2))=Switch!$D$26,INDIRECT(\"a\" & (VLOOKUP(Switch!$D$26,$F$2:$G$43,2,FALSE)+ROW()-2)),\"\")","v":{"$error":"#N/A"}},{"$f":"IF(INDIRECT(\"c\" & (VLOOKUP(Switch!$D$27,$F$2:$G$43,2,FALSE)+ROW()-2))=Switch!$D$27,INDIRECT(\"a\" & (VLOOKUP(Switch!$D$27,$F$2:$G$43,2,FALSE)+ROW()-2)),\"\")","v":{"$error":"#N/A"}},{"$f":"IF(INDIRECT(\"c\" & (VLOOKUP(Switch!$D$28,$F$2:$G$43,2,FALSE)+ROW()-2))=Switch!$D$28,INDIRECT(\"a\" & (VLOOKUP(Switch!$D$28,$F$2:$G$43,2,FALSE)+ROW()-2)),\"\")","v":{"$error":"#N/A"}},{"$f":"IF(INDIRECT(\"c\" & (VLOOKUP(Switch!$D$29,$F$2:$G$43,2,FALSE)+ROW()-2))=Switch!$D$29,INDIRECT(\"a\" & (VLOOKUP(Switch!$D$29,$F$2:$G$43,2,FALSE)+ROW()-2)),\"\")","v":{"$error":"#N/A"}},{"$f":"IF(INDIRECT(\"c\" & (VLOOKUP(Switch!$D$30,$F$2:$G$43,2,FALSE)+ROW()-2))=Switch!$D$30,INDIRECT(\"a\" & (VLOOKUP(Switch!$D$30,$F$2:$G$43,2,FALSE)+ROW()-2)),\"\")","v":{"$error":"#N/A"}},{"$f":"IF(INDIRECT(\"c\" & (VLOOKUP(Switch!$D$31,$F$2:$G$43,2,FALSE)+ROW()-2))=Switch!$D$31,INDIRECT(\"a\" & (VLOOKUP(Switch!$D$31,$F$2:$G$43,2,FALSE)+ROW()-2)),\"\")","v":{"$error":"#N/A"}},{"$f":"IF(INDIRECT(\"c\" & (VLOOKUP(Switch!$D$32,$F$2:$G$43,2,FALSE)+ROW()-2))=Switch!$D$32,INDIRECT(\"a\" & (VLOOKUP(Switch!$D$32,$F$2:$G$43,2,FALSE)+ROW()-2)),\"\")","v":{"$error":"#N/A"}},{"$f":"IF(INDIRECT(\"c\" & (VLOOKUP(Switch!$D$33,$F$2:$G$43,2,FALSE)+ROW()-2))=Switch!$D$33,INDIRECT(\"a\" & (VLOOKUP(Switch!$D$33,$F$2:$G$43,2,FALSE)+ROW()-2)),\"\")","v":{"$error":"#N/A"}},{"$f":"IF(INDIRECT(\"c\" & (VLOOKUP(Switch!$D$34,$F$2:$G$43,2,FALSE)+ROW()-2))=Switch!$D$34,INDIRECT(\"a\" & (VLOOKUP(Switch!$D$34,$F$2:$G$43,2,FALSE)+ROW()-2)),\"\")","v":{"$error":"#N/A"}},{"$f":"IF(INDIRECT(\"c\" & (VLOOKUP(Switch!$D$35,$F$2:$G$43,2,FALSE)+ROW()-2))=Switch!$D$35,INDIRECT(\"a\" & (VLOOKUP(Switch!$D$35,$F$2:$G$43,2,FALSE)+ROW()-2)),\"\")","v":{"$error":"#N/A"}},{"$f":"IF(INDIRECT(\"c\" & (VLOOKUP(Switch!$D$36,$F$2:$G$43,2,FALSE)+ROW()-2))=Switch!$D$36,INDIRECT(\"a\" & (VLOOKUP(Switch!$D$36,$F$2:$G$43,2,FALSE)+ROW()-2)),\"\")","v":{"$error":"#N/A"}},{"$f":"IF(INDIRECT(\"c\" & (VLOOKUP(Switch!$D$37,$F$2:$G$43,2,FALSE)+ROW()-2))=Switch!$D$37,INDIRECT(\"a\" & (VLOOKUP(Switch!$D$37,$F$2:$G$43,2,FALSE)+ROW()-2)),\"\")","v":{"$error":"#N/A"}},{"$f":"IF(INDIRECT(\"c\" & (VLOOKUP(Switch!$D$38,$F$2:$G$43,2,FALSE)+ROW()-2))=Switch!$D$38,INDIRECT(\"a\" & (VLOOKUP(Switch!$D$38,$F$2:$G$43,2,FALSE)+ROW()-2)),\"\")","v":{"$error":"#N/A"}},{"$f":"IF(INDIRECT(\"c\" & (VLOOKUP(Switch!$D$39,$F$2:$G$43,2,FALSE)+ROW()-2))=Switch!$D$39,INDIRECT(\"a\" & (VLOOKUP(Switch!$D$39,$F$2:$G$43,2,FALSE)+ROW()-2)),\"\")","v":{"$error":"#N/A"}},{"$f":"IF(INDIRECT(\"c\" & (VLOOKUP(Switch!$D$40,$F$2:$G$43,2,FALSE)+ROW()-2))=Switch!$D$40,INDIRECT(\"a\" & (VLOOKUP(Switch!$D$40,$F$2:$G$43,2,FALSE)+ROW()-2)),\"\")","v":{"$error":"#N/A"}},{"$f":"IF(INDIRECT(\"c\" & (VLOOKUP(Switch!$D$52,$F$2:$G$43,2,FALSE)+ROW()-2))=Switch!$D$52,INDIRECT(\"a\" & (VLOOKUP(Switch!$D$52,$F$2:$G$43,2,FALSE)+ROW()-2)),\"\")","v":{"$error":"#N/A"}},{"$f":"IF(INDIRECT(\"c\" & (VLOOKUP(Switch!$D$53,$F$2:$G$43,2,FALSE)+ROW()-2))=Switch!$D$53,INDIRECT(\"a\" & (VLOOKUP(Switch!$D$53,$F$2:$G$43,2,FALSE)+ROW()-2)),\"\")","v":{"$error":"#N/A"}},{"$f":"IF(INDIRECT(\"c\" & (VLOOKUP(Switch!$D$54,$F$2:$G$43,2,FALSE)+ROW()-2))=Switch!$D$54,INDIRECT(\"a\" & (VLOOKUP(Switch!$D$54,$F$2:$G$43,2,FALSE)+ROW()-2)),\"\")","v":{"$error":"#N/A"}},{"$f":"IF(INDIRECT(\"c\" & (VLOOKUP(Switch!$D$55,$F$2:$G$43,2,FALSE)+ROW()-2))=Switch!$D$55,INDIRECT(\"a\" & (VLOOKUP(Switch!$D$55,$F$2:$G$43,2,FALSE)+ROW()-2)),\"\")","v":{"$error":"#N/A"}},{"$f":"IF(INDIRECT(\"c\" & (VLOOKUP(Switch!$D$56,$F$2:$G$43,2,FALSE)+ROW()-2))=Switch!$D$56,INDIRECT(\"a\" & (VLOOKUP(Switch!$D$56,$F$2:$G$43,2,FALSE)+ROW()-2)),\"\")","v":{"$error":"#N/A"}},{"$f":"IF(INDIRECT(\"c\" & (VLOOKUP(Switch!$D$57,$F$2:$G$43,2,FALSE)+ROW()-2))=Switch!$D$57,INDIRECT(\"a\" & (VLOOKUP(Switch!$D$57,$F$2:$G$43,2,FALSE)+ROW()-2)),\"\")","v":{"$error":"#N/A"}},{"$f":"IF(INDIRECT(\"c\" & (VLOOKUP(Switch!$D$58,$F$2:$G$43,2,FALSE)+ROW()-2))=Switch!$D$58,INDIRECT(\"a\" & (VLOOKUP(Switch!$D$58,$F$2:$G$43,2,FALSE)+ROW()-2)),\"\")","v":{"$error":"#N/A"}},{"$f":"IF(INDIRECT(\"c\" & (VLOOKUP(Switch!$D$59,$F$2:$G$43,2,FALSE)+ROW()-2))=Switch!$D$59,INDIRECT(\"a\" & (VLOOKUP(Switch!$D$59,$F$2:$G$43,2,FALSE)+ROW()-2)),\"\")","v":{"$error":"#N/A"}},{"$f":"IF(INDIRECT(\"c\" & (VLOOKUP(Switch!$D$60,$F$2:$G$43,2,FALSE)+ROW()-2))=Switch!$D$60,INDIRECT(\"a\" & (VLOOKUP(Switch!$D$60,$F$2:$G$43,2,FALSE)+ROW()-2)),\"\")","v":{"$error":"#N/A"}},{"$f":"IF(INDIRECT(\"c\" & (VLOOKUP(Switch!$D$61,$F$2:$G$43,2,FALSE)+ROW()-2))=Switch!$D$61,INDIRECT(\"a\" & (VLOOKUP(Switch!$D$61,$F$2:$G$43,2,FALSE)+ROW()-2)),\"\")","v":{"$error":"#N/A"}},{"$f":"IF(INDIRECT(\"c\" & (VLOOKUP(Switch!$D$62,$F$2:$G$43,2,FALSE)+ROW()-2))=Switch!$D$62,INDIRECT(\"a\" & (VLOOKUP(Switch!$D$62,$F$2:$G$43,2,FALSE)+ROW()-2)),\"\")","v":{"$error":"#N/A"}},{"$f":"IF(INDIRECT(\"c\" & (VLOOKUP(Switch!$D$63,$F$2:$G$43,2,FALSE)+ROW()-2))=Switch!$D$63,INDIRECT(\"a\" & (VLOOKUP(Switch!$D$63,$F$2:$G$43,2,FALSE)+ROW()-2)),\"\")","v":{"$error":"#N/A"}},{"$f":"IF(INDIRECT(\"c\" & (VLOOKUP(Switch!$D$64,$F$2:$G$43,2,FALSE)+ROW()-2))=Switch!$D$64,INDIRECT(\"a\" & (VLOOKUP(Switch!$D$64,$F$2:$G$43,2,FALSE)+ROW()-2)),\"\")","v":{"$error":"#N/A"}},{"$f":"IF(INDIRECT(\"c\" & (VLOOKUP(Switch!$D$65,$F$2:$G$43,2,FALSE)+ROW()-2))=Switch!$D$65,INDIRECT(\"a\" & (VLOOKUP(Switch!$D$65,$F$2:$G$43,2,FALSE)+ROW()-2)),\"\")","v":{"$error":"#N/A"}},{"$f":"IF(INDIRECT(\"c\" & (VLOOKUP(Switch!$D$66,$F$2:$G$43,2,FALSE)+ROW()-2))=Switch!$D$66,INDIRECT(\"a\" & (VLOOKUP(Switch!$D$66,$F$2:$G$43,2,FALSE)+ROW()-2)),\"\")","v":{"$error":"#N/A"}}]
["SBG Securities Listed Property PSP","PSP5","SBG Securities",{"$f":"ROW()","v":559},null,null,{"$f":"VLOOKUP(F559,$C$2:$D$637,2,FALSE)","v":{"$error":"#N/A"}},{"$f":"IF(INDIRECT(\"c\" & (VLOOKUP(Switch!$D$26,$F$2:$G$43,2,FALSE)+ROW()-2))=Switch!$D$26,INDIRECT(\"a\" & (VLOOKUP(Switch!$D$26,$F$2:$G$43,2,FALSE)+ROW()-2)),\"\")","v":{"$error":"#N/A"}},{"$f":"IF(INDIRECT(\"c\" & (VLOOKUP(Switch!$D$27,$F$2:$G$43,2,FALSE)+ROW()-2))=Switch!$D$27,INDIRECT(\"a\" & (VLOOKUP(Switch!$D$27,$F$2:$G$43,2,FALSE)+ROW()-2)),\"\")","v":{"$error":"#N/A"}},{"$f":"IF(INDIRECT(\"c\" & (VLOOKUP(Switch!$D$28,$F$2:$G$43,2,FALSE)+ROW()-2))=Switch!$D$28,INDIRECT(\"a\" & (VLOOKUP(Switch!$D$28,$F$2:$G$43,2,FALSE)+ROW()-2)),\"\")","v":{"$error":"#N/A"}},{"$f":"IF(INDIRECT(\"c\" & (VLOOKUP(Switch!$D$29,$F$2:$G$43,2,FALSE)+ROW()-2))=Switch!$D$29,INDIRECT(\"a\" & (VLOOKUP(Switch!$D$29,$F$2:$G$43,2,FALSE)+ROW()-2)),\"\")","v":{"$error":"#N/A"}},{"$f":"IF(INDIRECT(\"c\" & (VLOOKUP(Switch!$D$30,$F$2:$G$43,2,FALSE)+ROW()-2))=Switch!$D$30,INDIRECT(\"a\" & (VLOOKUP(Switch!$D$30,$F$2:$G$43,2,FALSE)+ROW()-2)),\"\")","v":{"$error":"#N/A"}},{"$f":"IF(INDIRECT(\"c\" & (VLOOKUP(Switch!$D$31,$F$2:$G$43,2,FALSE)+ROW()-2))=Switch!$D$31,INDIRECT(\"a\" & (VLOOKUP(Switch!$D$31,$F$2:$G$43,2,FALSE)+ROW()-2)),\"\")","v":{"$error":"#N/A"}},{"$f":"IF(INDIRECT(\"c\" & (VLOOKUP(Switch!$D$32,$F$2:$G$43,2,FALSE)+ROW()-2))=Switch!$D$32,INDIRECT(\"a\" & (VLOOKUP(Switch!$D$32,$F$2:$G$43,2,FALSE)+ROW()-2)),\"\")","v":{"$error":"#N/A"}},{"$f":"IF(INDIRECT(\"c\" & (VLOOKUP(Switch!$D$33,$F$2:$G$43,2,FALSE)+ROW()-2))=Switch!$D$33,INDIRECT(\"a\" & (VLOOKUP(Switch!$D$33,$F$2:$G$43,2,FALSE)+ROW()-2)),\"\")","v":{"$error":"#N/A"}},{"$f":"IF(INDIRECT(\"c\" & (VLOOKUP(Switch!$D$34,$F$2:$G$43,2,FALSE)+ROW()-2))=Switch!$D$34,INDIRECT(\"a\" & (VLOOKUP(Switch!$D$34,$F$2:$G$43,2,FALSE)+ROW()-2)),\"\")","v":{"$error":"#N/A"}},{"$f":"IF(INDIRECT(\"c\" & (VLOOKUP(Switch!$D$35,$F$2:$G$43,2,FALSE)+ROW()-2))=Switch!$D$35,INDIRECT(\"a\" & (VLOOKUP(Switch!$D$35,$F$2:$G$43,2,FALSE)+ROW()-2)),\"\")","v":{"$error":"#N/A"}},{"$f":"IF(INDIRECT(\"c\" & (VLOOKUP(Switch!$D$36,$F$2:$G$43,2,FALSE)+ROW()-2))=Switch!$D$36,INDIRECT(\"a\" & (VLOOKUP(Switch!$D$36,$F$2:$G$43,2,FALSE)+ROW()-2)),\"\")","v":{"$error":"#N/A"}},{"$f":"IF(INDIRECT(\"c\" & (VLOOKUP(Switch!$D$37,$F$2:$G$43,2,FALSE)+ROW()-2))=Switch!$D$37,INDIRECT(\"a\" & (VLOOKUP(Switch!$D$37,$F$2:$G$43,2,FALSE)+ROW()-2)),\"\")","v":{"$error":"#N/A"}},{"$f":"IF(INDIRECT(\"c\" & (VLOOKUP(Switch!$D$38,$F$2:$G$43,2,FALSE)+ROW()-2))=Switch!$D$38,INDIRECT(\"a\" & (VLOOKUP(Switch!$D$38,$F$2:$G$43,2,FALSE)+ROW()-2)),\"\")","v":{"$error":"#N/A"}},{"$f":"IF(INDIRECT(\"c\" & (VLOOKUP(Switch!$D$39,$F$2:$G$43,2,FALSE)+ROW()-2))=Switch!$D$39,INDIRECT(\"a\" & (VLOOKUP(Switch!$D$39,$F$2:$G$43,2,FALSE)+ROW()-2)),\"\")","v":{"$error":"#N/A"}},{"$f":"IF(INDIRECT(\"c\" & (VLOOKUP(Switch!$D$40,$F$2:$G$43,2,FALSE)+ROW()-2))=Switch!$D$40,INDIRECT(\"a\" & (VLOOKUP(Switch!$D$40,$F$2:$G$43,2,FALSE)+ROW()-2)),\"\")","v":{"$error":"#N/A"}},{"$f":"IF(INDIRECT(\"c\" & (VLOOKUP(Switch!$D$52,$F$2:$G$43,2,FALSE)+ROW()-2))=Switch!$D$52,INDIRECT(\"a\" & (VLOOKUP(Switch!$D$52,$F$2:$G$43,2,FALSE)+ROW()-2)),\"\")","v":{"$error":"#N/A"}},{"$f":"IF(INDIRECT(\"c\" & (VLOOKUP(Switch!$D$53,$F$2:$G$43,2,FALSE)+ROW()-2))=Switch!$D$53,INDIRECT(\"a\" & (VLOOKUP(Switch!$D$53,$F$2:$G$43,2,FALSE)+ROW()-2)),\"\")","v":{"$error":"#N/A"}},{"$f":"IF(INDIRECT(\"c\" & (VLOOKUP(Switch!$D$54,$F$2:$G$43,2,FALSE)+ROW()-2))=Switch!$D$54,INDIRECT(\"a\" & (VLOOKUP(Switch!$D$54,$F$2:$G$43,2,FALSE)+ROW()-2)),\"\")","v":{"$error":"#N/A"}},{"$f":"IF(INDIRECT(\"c\" & (VLOOKUP(Switch!$D$55,$F$2:$G$43,2,FALSE)+ROW()-2))=Switch!$D$55,INDIRECT(\"a\" & (VLOOKUP(Switch!$D$55,$F$2:$G$43,2,FALSE)+ROW()-2)),\"\")","v":{"$error":"#N/A"}},{"$f":"IF(INDIRECT(\"c\" & (VLOOKUP(Switch!$D$56,$F$2:$G$43,2,FALSE)+ROW()-2))=Switch!$D$56,INDIRECT(\"a\" & (VLOOKUP(Switch!$D$56,$F$2:$G$43,2,FALSE)+ROW()-2)),\"\")","v":{"$error":"#N/A"}},{"$f":"IF(INDIRECT(\"c\" & (VLOOKUP(Switch!$D$57,$F$2:$G$43,2,FALSE)+ROW()-2))=Switch!$D$57,INDIRECT(\"a\" & (VLOOKUP(Switch!$D$57,$F$2:$G$43,2,FALSE)+ROW()-2)),\"\")","v":{"$error":"#N/A"}},{"$f":"IF(INDIRECT(\"c\" & (VLOOKUP(Switch!$D$58,$F$2:$G$43,2,FALSE)+ROW()-2))=Switch!$D$58,INDIRECT(\"a\" & (VLOOKUP(Switch!$D$58,$F$2:$G$43,2,FALSE)+ROW()-2)),\"\")","v":{"$error":"#N/A"}},{"$f":"IF(INDIRECT(\"c\" & (VLOOKUP(Switch!$D$59,$F$2:$G$43,2,FALSE)+ROW()-2))=Switch!$D$59,INDIRECT(\"a\" & (VLOOKUP(Switch!$D$59,$F$2:$G$43,2,FALSE)+ROW()-2)),\"\")","v":{"$error":"#N/A"}},{"$f":"IF(INDIRECT(\"c\" & (VLOOKUP(Switch!$D$60,$F$2:$G$43,2,FALSE)+ROW()-2))=Switch!$D$60,INDIRECT(\"a\" & (VLOOKUP(Switch!$D$60,$F$2:$G$43,2,FALSE)+ROW()-2)),\"\")","v":{"$error":"#N/A"}},{"$f":"IF(INDIRECT(\"c\" & (VLOOKUP(Switch!$D$61,$F$2:$G$43,2,FALSE)+ROW()-2))=Switch!$D$61,INDIRECT(\"a\" & (VLOOKUP(Switch!$D$61,$F$2:$G$43,2,FALSE)+ROW()-2)),\"\")","v":{"$error":"#N/A"}},{"$f":"IF(INDIRECT(\"c\" & (VLOOKUP(Switch!$D$62,$F$2:$G$43,2,FALSE)+ROW()-2))=Switch!$D$62,INDIRECT(\"a\" & (VLOOKUP(Switch!$D$62,$F$2:$G$43,2,FALSE)+ROW()-2)),\"\")","v":{"$error":"#N/A"}},{"$f":"IF(INDIRECT(\"c\" & (VLOOKUP(Switch!$D$63,$F$2:$G$43,2,FALSE)+ROW()-2))=Switch!$D$63,INDIRECT(\"a\" & (VLOOKUP(Switch!$D$63,$F$2:$G$43,2,FALSE)+ROW()-2)),\"\")","v":{"$error":"#N/A"}},{"$f":"IF(INDIRECT(\"c\" & (VLOOKUP(Switch!$D$64,$F$2:$G$43,2,FALSE)+ROW()-2))=Switch!$D$64,INDIRECT(\"a\" & (VLOOKUP(Switch!$D$64,$F$2:$G$43,2,FALSE)+ROW()-2)),\"\")","v":{"$error":"#N/A"}},{"$f":"IF(INDIRECT(\"c\" & (VLOOKUP(Switch!$D$65,$F$2:$G$43,2,FALSE)+ROW()-2))=Switch!$D$65,INDIRECT(\"a\" & (VLOOKUP(Switch!$D$65,$F$2:$G$43,2,FALSE)+ROW()-2)),\"\")","v":{"$error":"#N/A"}},{"$f":"IF(INDIRECT(\"c\" & (VLOOKUP(Switch!$D$66,$F$2:$G$43,2,FALSE)+ROW()-2))=Switch!$D$66,INDIRECT(\"a\" & (VLOOKUP(Switch!$D$66,$F$2:$G$43,2,FALSE)+ROW()-2)),\"\")","v":{"$error":"#N/A"}}]
["Withdrawal ",null,"Withdrawal",{"$f":"ROW()","v":560},null,null,{"$f":"VLOOKUP(F560,$C$2:$D$637,2,FALSE)","v":{"$error":"#N/A"}},{"$f":"IF(INDIRECT(\"c\" & (VLOOKUP(Switch!$D$26,$F$2:$G$43,2,FALSE)+ROW()-2))=Switch!$D$26,INDIRECT(\"a\" & (VLOOKUP(Switch!$D$26,$F$2:$G$43,2,FALSE)+ROW()-2)),\"\")","v":{"$error":"#N/A"}},{"$f":"IF(INDIRECT(\"c\" & (VLOOKUP(Switch!$D$27,$F$2:$G$43,2,FALSE)+ROW()-2))=Switch!$D$27,INDIRECT(\"a\" & (VLOOKUP(Switch!$D$27,$F$2:$G$43,2,FALSE)+ROW()-2)),\"\")","v":{"$error":"#N/A"}},{"$f":"IF(INDIRECT(\"c\" & (VLOOKUP(Switch!$D$28,$F$2:$G$43,2,FALSE)+ROW()-2))=Switch!$D$28,INDIRECT(\"a\" & (VLOOKUP(Switch!$D$28,$F$2:$G$43,2,FALSE)+ROW()-2)),\"\")","v":{"$error":"#N/A"}},{"$f":"IF(INDIRECT(\"c\" & (VLOOKUP(Switch!$D$29,$F$2:$G$43,2,FALSE)+ROW()-2))=Switch!$D$29,INDIRECT(\"a\" & (VLOOKUP(Switch!$D$29,$F$2:$G$43,2,FALSE)+ROW()-2)),\"\")","v":{"$error":"#N/A"}},{"$f":"IF(INDIRECT(\"c\" & (VLOOKUP(Switch!$D$30,$F$2:$G$43,2,FALSE)+ROW()-2))=Switch!$D$30,INDIRECT(\"a\" & (VLOOKUP(Switch!$D$30,$F$2:$G$43,2,FALSE)+ROW()-2)),\"\")","v":{"$error":"#N/A"}},{"$f":"IF(INDIRECT(\"c\" & (VLOOKUP(Switch!$D$31,$F$2:$G$43,2,FALSE)+ROW()-2))=Switch!$D$31,INDIRECT(\"a\" & (VLOOKUP(Switch!$D$31,$F$2:$G$43,2,FALSE)+ROW()-2)),\"\")","v":{"$error":"#N/A"}},{"$f":"IF(INDIRECT(\"c\" & (VLOOKUP(Switch!$D$32,$F$2:$G$43,2,FALSE)+ROW()-2))=Switch!$D$32,INDIRECT(\"a\" & (VLOOKUP(Switch!$D$32,$F$2:$G$43,2,FALSE)+ROW()-2)),\"\")","v":{"$error":"#N/A"}},{"$f":"IF(INDIRECT(\"c\" & (VLOOKUP(Switch!$D$33,$F$2:$G$43,2,FALSE)+ROW()-2))=Switch!$D$33,INDIRECT(\"a\" & (VLOOKUP(Switch!$D$33,$F$2:$G$43,2,FALSE)+ROW()-2)),\"\")","v":{"$error":"#N/A"}},{"$f":"IF(INDIRECT(\"c\" & (VLOOKUP(Switch!$D$34,$F$2:$G$43,2,FALSE)+ROW()-2))=Switch!$D$34,INDIRECT(\"a\" & (VLOOKUP(Switch!$D$34,$F$2:$G$43,2,FALSE)+ROW()-2)),\"\")","v":{"$error":"#N/A"}},{"$f":"IF(INDIRECT(\"c\" & (VLOOKUP(Switch!$D$35,$F$2:$G$43,2,FALSE)+ROW()-2))=Switch!$D$35,INDIRECT(\"a\" & (VLOOKUP(Switch!$D$35,$F$2:$G$43,2,FALSE)+ROW()-2)),\"\")","v":{"$error":"#N/A"}},{"$f":"IF(INDIRECT(\"c\" & (VLOOKUP(Switch!$D$36,$F$2:$G$43,2,FALSE)+ROW()-2))=Switch!$D$36,INDIRECT(\"a\" & (VLOOKUP(Switch!$D$36,$F$2:$G$43,2,FALSE)+ROW()-2)),\"\")","v":{"$error":"#N/A"}},{"$f":"IF(INDIRECT(\"c\" & (VLOOKUP(Switch!$D$37,$F$2:$G$43,2,FALSE)+ROW()-2))=Switch!$D$37,INDIRECT(\"a\" & (VLOOKUP(Switch!$D$37,$F$2:$G$43,2,FALSE)+ROW()-2)),\"\")","v":{"$error":"#N/A"}},{"$f":"IF(INDIRECT(\"c\" & (VLOOKUP(Switch!$D$38,$F$2:$G$43,2,FALSE)+ROW()-2))=Switch!$D$38,INDIRECT(\"a\" & (VLOOKUP(Switch!$D$38,$F$2:$G$43,2,FALSE)+ROW()-2)),\"\")","v":{"$error":"#N/A"}},{"$f":"IF(INDIRECT(\"c\" & (VLOOKUP(Switch!$D$39,$F$2:$G$43,2,FALSE)+ROW()-2))=Switch!$D$39,INDIRECT(\"a\" & (VLOOKUP(Switch!$D$39,$F$2:$G$43,2,FALSE)+ROW()-2)),\"\")","v":{"$error":"#N/A"}},{"$f":"IF(INDIRECT(\"c\" & (VLOOKUP(Switch!$D$40,$F$2:$G$43,2,FALSE)+ROW()-2))=Switch!$D$40,INDIRECT(\"a\" & (VLOOKUP(Switch!$D$40,$F$2:$G$43,2,FALSE)+ROW()-2)),\"\")","v":{"$error":"#N/A"}},{"$f":"IF(INDIRECT(\"c\" & (VLOOKUP(Switch!$D$52,$F$2:$G$43,2,FALSE)+ROW()-2))=Switch!$D$52,INDIRECT(\"a\" & (VLOOKUP(Switch!$D$52,$F$2:$G$43,2,FALSE)+ROW()-2)),\"\")","v":{"$error":"#N/A"}},{"$f":"IF(INDIRECT(\"c\" & (VLOOKUP(Switch!$D$53,$F$2:$G$43,2,FALSE)+ROW()-2))=Switch!$D$53,INDIRECT(\"a\" & (VLOOKUP(Switch!$D$53,$F$2:$G$43,2,FALSE)+ROW()-2)),\"\")","v":{"$error":"#N/A"}},{"$f":"IF(INDIRECT(\"c\" & (VLOOKUP(Switch!$D$54,$F$2:$G$43,2,FALSE)+ROW()-2))=Switch!$D$54,INDIRECT(\"a\" & (VLOOKUP(Switch!$D$54,$F$2:$G$43,2,FALSE)+ROW()-2)),\"\")","v":{"$error":"#N/A"}},{"$f":"IF(INDIRECT(\"c\" & (VLOOKUP(Switch!$D$55,$F$2:$G$43,2,FALSE)+ROW()-2))=Switch!$D$55,INDIRECT(\"a\" & (VLOOKUP(Switch!$D$55,$F$2:$G$43,2,FALSE)+ROW()-2)),\"\")","v":{"$error":"#N/A"}},{"$f":"IF(INDIRECT(\"c\" & (VLOOKUP(Switch!$D$56,$F$2:$G$43,2,FALSE)+ROW()-2))=Switch!$D$56,INDIRECT(\"a\" & (VLOOKUP(Switch!$D$56,$F$2:$G$43,2,FALSE)+ROW()-2)),\"\")","v":{"$error":"#N/A"}},{"$f":"IF(INDIRECT(\"c\" & (VLOOKUP(Switch!$D$57,$F$2:$G$43,2,FALSE)+ROW()-2))=Switch!$D$57,INDIRECT(\"a\" & (VLOOKUP(Switch!$D$57,$F$2:$G$43,2,FALSE)+ROW()-2)),\"\")","v":{"$error":"#N/A"}},{"$f":"IF(INDIRECT(\"c\" & (VLOOKUP(Switch!$D$58,$F$2:$G$43,2,FALSE)+ROW()-2))=Switch!$D$58,INDIRECT(\"a\" & (VLOOKUP(Switch!$D$58,$F$2:$G$43,2,FALSE)+ROW()-2)),\"\")","v":{"$error":"#N/A"}},{"$f":"IF(INDIRECT(\"c\" & (VLOOKUP(Switch!$D$59,$F$2:$G$43,2,FALSE)+ROW()-2))=Switch!$D$59,INDIRECT(\"a\" & (VLOOKUP(Switch!$D$59,$F$2:$G$43,2,FALSE)+ROW()-2)),\"\")","v":{"$error":"#N/A"}},{"$f":"IF(INDIRECT(\"c\" & (VLOOKUP(Switch!$D$60,$F$2:$G$43,2,FALSE)+ROW()-2))=Switch!$D$60,INDIRECT(\"a\" & (VLOOKUP(Switch!$D$60,$F$2:$G$43,2,FALSE)+ROW()-2)),\"\")","v":{"$error":"#N/A"}},{"$f":"IF(INDIRECT(\"c\" & (VLOOKUP(Switch!$D$61,$F$2:$G$43,2,FALSE)+ROW()-2))=Switch!$D$61,INDIRECT(\"a\" & (VLOOKUP(Switch!$D$61,$F$2:$G$43,2,FALSE)+ROW()-2)),\"\")","v":{"$error":"#N/A"}},{"$f":"IF(INDIRECT(\"c\" & (VLOOKUP(Switch!$D$62,$F$2:$G$43,2,FALSE)+ROW()-2))=Switch!$D$62,INDIRECT(\"a\" & (VLOOKUP(Switch!$D$62,$F$2:$G$43,2,FALSE)+ROW()-2)),\"\")","v":{"$error":"#N/A"}},{"$f":"IF(INDIRECT(\"c\" & (VLOOKUP(Switch!$D$63,$F$2:$G$43,2,FALSE)+ROW()-2))=Switch!$D$63,INDIRECT(\"a\" & (VLOOKUP(Switch!$D$63,$F$2:$G$43,2,FALSE)+ROW()-2)),\"\")","v":{"$error":"#N/A"}},{"$f":"IF(INDIRECT(\"c\" & (VLOOKUP(Switch!$D$64,$F$2:$G$43,2,FALSE)+ROW()-2))=Switch!$D$64,INDIRECT(\"a\" & (VLOOKUP(Switch!$D$64,$F$2:$G$43,2,FALSE)+ROW()-2)),\"\")","v":{"$error":"#N/A"}},{"$f":"IF(INDIRECT(\"c\" & (VLOOKUP(Switch!$D$65,$F$2:$G$43,2,FALSE)+ROW()-2))=Switch!$D$65,INDIRECT(\"a\" & (VLOOKUP(Switch!$D$65,$F$2:$G$43,2,FALSE)+ROW()-2)),\"\")","v":{"$error":"#N/A"}},{"$f":"IF(INDIRECT(\"c\" & (VLOOKUP(Switch!$D$66,$F$2:$G$43,2,FALSE)+ROW()-2))=Switch!$D$66,INDIRECT(\"a\" & (VLOOKUP(Switch!$D$66,$F$2:$G$43,2,FALSE)+ROW()-2)),\"\")","v":{"$error":"#N/A"}}]
[null,null,null,{"$f":"ROW()","v":561},null,null,{"$f":"VLOOKUP(F561,$C$2:$D$637,2,FALSE)","v":{"$error":"#N/A"}},{"$f":"IF(INDIRECT(\"c\" & (VLOOKUP(Switch!$D$26,$F$2:$G$43,2,FALSE)+ROW()-2))=Switch!$D$26,INDIRECT(\"a\" & (VLOOKUP(Switch!$D$26,$F$2:$G$43,2,FALSE)+ROW()-2)),\"\")","v":{"$error":"#N/A"}},{"$f":"IF(INDIRECT(\"c\" & (VLOOKUP(Switch!$D$27,$F$2:$G$43,2,FALSE)+ROW()-2))=Switch!$D$27,INDIRECT(\"a\" & (VLOOKUP(Switch!$D$27,$F$2:$G$43,2,FALSE)+ROW()-2)),\"\")","v":{"$error":"#N/A"}},{"$f":"IF(INDIRECT(\"c\" & (VLOOKUP(Switch!$D$28,$F$2:$G$43,2,FALSE)+ROW()-2))=Switch!$D$28,INDIRECT(\"a\" & (VLOOKUP(Switch!$D$28,$F$2:$G$43,2,FALSE)+ROW()-2)),\"\")","v":{"$error":"#N/A"}},{"$f":"IF(INDIRECT(\"c\" & (VLOOKUP(Switch!$D$29,$F$2:$G$43,2,FALSE)+ROW()-2))=Switch!$D$29,INDIRECT(\"a\" & (VLOOKUP(Switch!$D$29,$F$2:$G$43,2,FALSE)+ROW()-2)),\"\")","v":{"$error":"#N/A"}},{"$f":"IF(INDIRECT(\"c\" & (VLOOKUP(Switch!$D$30,$F$2:$G$43,2,FALSE)+ROW()-2))=Switch!$D$30,INDIRECT(\"a\" & (VLOOKUP(Switch!$D$30,$F$2:$G$43,2,FALSE)+ROW()-2)),\"\")","v":{"$error":"#N/A"}},{"$f":"IF(INDIRECT(\"c\" & (VLOOKUP(Switch!$D$31,$F$2:$G$43,2,FALSE)+ROW()-2))=Switch!$D$31,INDIRECT(\"a\" & (VLOOKUP(Switch!$D$31,$F$2:$G$43,2,FALSE)+ROW()-2)),\"\")","v":{"$error":"#N/A"}},{"$f":"IF(INDIRECT(\"c\" & (VLOOKUP(Switch!$D$32,$F$2:$G$43,2,FALSE)+ROW()-2))=Switch!$D$32,INDIRECT(\"a\" & (VLOOKUP(Switch!$D$32,$F$2:$G$43,2,FALSE)+ROW()-2)),\"\")","v":{"$error":"#N/A"}},{"$f":"IF(INDIRECT(\"c\" & (VLOOKUP(Switch!$D$33,$F$2:$G$43,2,FALSE)+ROW()-2))=Switch!$D$33,INDIRECT(\"a\" & (VLOOKUP(Switch!$D$33,$F$2:$G$43,2,FALSE)+ROW()-2)),\"\")","v":{"$error":"#N/A"}},{"$f":"IF(INDIRECT(\"c\" & (VLOOKUP(Switch!$D$34,$F$2:$G$43,2,FALSE)+ROW()-2))=Switch!$D$34,INDIRECT(\"a\" & (VLOOKUP(Switch!$D$34,$F$2:$G$43,2,FALSE)+ROW()-2)),\"\")","v":{"$error":"#N/A"}},{"$f":"IF(INDIRECT(\"c\" & (VLOOKUP(Switch!$D$35,$F$2:$G$43,2,FALSE)+ROW()-2))=Switch!$D$35,INDIRECT(\"a\" & (VLOOKUP(Switch!$D$35,$F$2:$G$43,2,FALSE)+ROW()-2)),\"\")","v":{"$error":"#N/A"}},{"$f":"IF(INDIRECT(\"c\" & (VLOOKUP(Switch!$D$36,$F$2:$G$43,2,FALSE)+ROW()-2))=Switch!$D$36,INDIRECT(\"a\" & (VLOOKUP(Switch!$D$36,$F$2:$G$43,2,FALSE)+ROW()-2)),\"\")","v":{"$error":"#N/A"}},{"$f":"IF(INDIRECT(\"c\" & (VLOOKUP(Switch!$D$37,$F$2:$G$43,2,FALSE)+ROW()-2))=Switch!$D$37,INDIRECT(\"a\" & (VLOOKUP(Switch!$D$37,$F$2:$G$43,2,FALSE)+ROW()-2)),\"\")","v":{"$error":"#N/A"}},{"$f":"IF(INDIRECT(\"c\" & (VLOOKUP(Switch!$D$38,$F$2:$G$43,2,FALSE)+ROW()-2))=Switch!$D$38,INDIRECT(\"a\" & (VLOOKUP(Switch!$D$38,$F$2:$G$43,2,FALSE)+ROW()-2)),\"\")","v":{"$error":"#N/A"}},{"$f":"IF(INDIRECT(\"c\" & (VLOOKUP(Switch!$D$39,$F$2:$G$43,2,FALSE)+ROW()-2))=Switch!$D$39,INDIRECT(\"a\" & (VLOOKUP(Switch!$D$39,$F$2:$G$43,2,FALSE)+ROW()-2)),\"\")","v":{"$error":"#N/A"}},{"$f":"IF(INDIRECT(\"c\" & (VLOOKUP(Switch!$D$40,$F$2:$G$43,2,FALSE)+ROW()-2))=Switch!$D$40,INDIRECT(\"a\" & (VLOOKUP(Switch!$D$40,$F$2:$G$43,2,FALSE)+ROW()-2)),\"\")","v":{"$error":"#N/A"}},{"$f":"IF(INDIRECT(\"c\" & (VLOOKUP(Switch!$D$52,$F$2:$G$43,2,FALSE)+ROW()-2))=Switch!$D$52,INDIRECT(\"a\" & (VLOOKUP(Switch!$D$52,$F$2:$G$43,2,FALSE)+ROW()-2)),\"\")","v":{"$error":"#N/A"}},{"$f":"IF(INDIRECT(\"c\" & (VLOOKUP(Switch!$D$53,$F$2:$G$43,2,FALSE)+ROW()-2))=Switch!$D$53,INDIRECT(\"a\" & (VLOOKUP(Switch!$D$53,$F$2:$G$43,2,FALSE)+ROW()-2)),\"\")","v":{"$error":"#N/A"}},{"$f":"IF(INDIRECT(\"c\" & (VLOOKUP(Switch!$D$54,$F$2:$G$43,2,FALSE)+ROW()-2))=Switch!$D$54,INDIRECT(\"a\" & (VLOOKUP(Switch!$D$54,$F$2:$G$43,2,FALSE)+ROW()-2)),\"\")","v":{"$error":"#N/A"}},{"$f":"IF(INDIRECT(\"c\" & (VLOOKUP(Switch!$D$55,$F$2:$G$43,2,FALSE)+ROW()-2))=Switch!$D$55,INDIRECT(\"a\" & (VLOOKUP(Switch!$D$55,$F$2:$G$43,2,FALSE)+ROW()-2)),\"\")","v":{"$error":"#N/A"}},{"$f":"IF(INDIRECT(\"c\" & (VLOOKUP(Switch!$D$56,$F$2:$G$43,2,FALSE)+ROW()-2))=Switch!$D$56,INDIRECT(\"a\" & (VLOOKUP(Switch!$D$56,$F$2:$G$43,2,FALSE)+ROW()-2)),\"\")","v":{"$error":"#N/A"}},{"$f":"IF(INDIRECT(\"c\" & (VLOOKUP(Switch!$D$57,$F$2:$G$43,2,FALSE)+ROW()-2))=Switch!$D$57,INDIRECT(\"a\" & (VLOOKUP(Switch!$D$57,$F$2:$G$43,2,FALSE)+ROW()-2)),\"\")","v":{"$error":"#N/A"}},{"$f":"IF(INDIRECT(\"c\" & (VLOOKUP(Switch!$D$58,$F$2:$G$43,2,FALSE)+ROW()-2))=Switch!$D$58,INDIRECT(\"a\" & (VLOOKUP(Switch!$D$58,$F$2:$G$43,2,FALSE)+ROW()-2)),\"\")","v":{"$error":"#N/A"}},{"$f":"IF(INDIRECT(\"c\" & (VLOOKUP(Switch!$D$59,$F$2:$G$43,2,FALSE)+ROW()-2))=Switch!$D$59,INDIRECT(\"a\" & (VLOOKUP(Switch!$D$59,$F$2:$G$43,2,FALSE)+ROW()-2)),\"\")","v":{"$error":"#N/A"}},{"$f":"IF(INDIRECT(\"c\" & (VLOOKUP(Switch!$D$60,$F$2:$G$43,2,FALSE)+ROW()-2))=Switch!$D$60,INDIRECT(\"a\" & (VLOOKUP(Switch!$D$60,$F$2:$G$43,2,FALSE)+ROW()-2)),\"\")","v":{"$error":"#N/A"}},{"$f":"IF(INDIRECT(\"c\" & (VLOOKUP(Switch!$D$61,$F$2:$G$43,2,FALSE)+ROW()-2))=Switch!$D$61,INDIRECT(\"a\" & (VLOOKUP(Switch!$D$61,$F$2:$G$43,2,FALSE)+ROW()-2)),\"\")","v":{"$error":"#N/A"}},{"$f":"IF(INDIRECT(\"c\" & (VLOOKUP(Switch!$D$62,$F$2:$G$43,2,FALSE)+ROW()-2))=Switch!$D$62,INDIRECT(\"a\" & (VLOOKUP(Switch!$D$62,$F$2:$G$43,2,FALSE)+ROW()-2)),\"\")","v":{"$error":"#N/A"}},{"$f":"IF(INDIRECT(\"c\" & (VLOOKUP(Switch!$D$63,$F$2:$G$43,2,FALSE)+ROW()-2))=Switch!$D$63,INDIRECT(\"a\" & (VLOOKUP(Switch!$D$63,$F$2:$G$43,2,FALSE)+ROW()-2)),\"\")","v":{"$error":"#N/A"}},{"$f":"IF(INDIRECT(\"c\" & (VLOOKUP(Switch!$D$64,$F$2:$G$43,2,FALSE)+ROW()-2))=Switch!$D$64,INDIRECT(\"a\" & (VLOOKUP(Switch!$D$64,$F$2:$G$43,2,FALSE)+ROW()-2)),\"\")","v":{"$error":"#N/A"}},{"$f":"IF(INDIRECT(\"c\" & (VLOOKUP(Switch!$D$65,$F$2:$G$43,2,FALSE)+ROW()-2))=Switch!$D$65,INDIRECT(\"a\" & (VLOOKUP(Switch!$D$65,$F$2:$G$43,2,FALSE)+ROW()-2)),\"\")","v":{"$error":"#N/A"}},{"$f":"IF(INDIRECT(\"c\" & (VLOOKUP(Switch!$D$66,$F$2:$G$43,2,FALSE)+ROW()-2))=Switch!$D$66,INDIRECT(\"a\" & (VLOOKUP(Switch!$D$66,$F$2:$G$43,2,FALSE)+ROW()-2)),\"\")","v":{"$error":"#N/A"}}]
[null,null,null,{"$f":"ROW()","v":562},null,null,{"$f":"VLOOKUP(F562,$C$2:$D$637,2,FALSE)","v":{"$error":"#N/A"}},{"$f":"IF(INDIRECT(\"c\" & (VLOOKUP(Switch!$D$26,$F$2:$G$43,2,FALSE)+ROW()-2))=Switch!$D$26,INDIRECT(\"a\" & (VLOOKUP(Switch!$D$26,$F$2:$G$43,2,FALSE)+ROW()-2)),\"\")","v":{"$error":"#N/A"}},{"$f":"IF(INDIRECT(\"c\" & (VLOOKUP(Switch!$D$27,$F$2:$G$43,2,FALSE)+ROW()-2))=Switch!$D$27,INDIRECT(\"a\" & (VLOOKUP(Switch!$D$27,$F$2:$G$43,2,FALSE)+ROW()-2)),\"\")","v":{"$error":"#N/A"}},{"$f":"IF(INDIRECT(\"c\" & (VLOOKUP(Switch!$D$28,$F$2:$G$43,2,FALSE)+ROW()-2))=Switch!$D$28,INDIRECT(\"a\" & (VLOOKUP(Switch!$D$28,$F$2:$G$43,2,FALSE)+ROW()-2)),\"\")","v":{"$error":"#N/A"}},{"$f":"IF(INDIRECT(\"c\" & (VLOOKUP(Switch!$D$29,$F$2:$G$43,2,FALSE)+ROW()-2))=Switch!$D$29,INDIRECT(\"a\" & (VLOOKUP(Switch!$D$29,$F$2:$G$43,2,FALSE)+ROW()-2)),\"\")","v":{"$error":"#N/A"}},{"$f":"IF(INDIRECT(\"c\" & (VLOOKUP(Switch!$D$30,$F$2:$G$43,2,FALSE)+ROW()-2))=Switch!$D$30,INDIRECT(\"a\" & (VLOOKUP(Switch!$D$30,$F$2:$G$43,2,FALSE)+ROW()-2)),\"\")","v":{"$error":"#N/A"}},{"$f":"IF(INDIRECT(\"c\" & (VLOOKUP(Switch!$D$31,$F$2:$G$43,2,FALSE)+ROW()-2))=Switch!$D$31,INDIRECT(\"a\" & (VLOOKUP(Switch!$D$31,$F$2:$G$43,2,FALSE)+ROW()-2)),\"\")","v":{"$error":"#N/A"}},{"$f":"IF(INDIRECT(\"c\" & (VLOOKUP(Switch!$D$32,$F$2:$G$43,2,FALSE)+ROW()-2))=Switch!$D$32,INDIRECT(\"a\" & (VLOOKUP(Switch!$D$32,$F$2:$G$43,2,FALSE)+ROW()-2)),\"\")","v":{"$error":"#N/A"}},{"$f":"IF(INDIRECT(\"c\" & (VLOOKUP(Switch!$D$33,$F$2:$G$43,2,FALSE)+ROW()-2))=Switch!$D$33,INDIRECT(\"a\" & (VLOOKUP(Switch!$D$33,$F$2:$G$43,2,FALSE)+ROW()-2)),\"\")","v":{"$error":"#N/A"}},{"$f":"IF(INDIRECT(\"c\" & (VLOOKUP(Switch!$D$34,$F$2:$G$43,2,FALSE)+ROW()-2))=Switch!$D$34,INDIRECT(\"a\" & (VLOOKUP(Switch!$D$34,$F$2:$G$43,2,FALSE)+ROW()-2)),\"\")","v":{"$error":"#N/A"}},{"$f":"IF(INDIRECT(\"c\" & (VLOOKUP(Switch!$D$35,$F$2:$G$43,2,FALSE)+ROW()-2))=Switch!$D$35,INDIRECT(\"a\" & (VLOOKUP(Switch!$D$35,$F$2:$G$43,2,FALSE)+ROW()-2)),\"\")","v":{"$error":"#N/A"}},{"$f":"IF(INDIRECT(\"c\" & (VLOOKUP(Switch!$D$36,$F$2:$G$43,2,FALSE)+ROW()-2))=Switch!$D$36,INDIRECT(\"a\" & (VLOOKUP(Switch!$D$36,$F$2:$G$43,2,FALSE)+ROW()-2)),\"\")","v":{"$error":"#N/A"}},{"$f":"IF(INDIRECT(\"c\" & (VLOOKUP(Switch!$D$37,$F$2:$G$43,2,FALSE)+ROW()-2))=Switch!$D$37,INDIRECT(\"a\" & (VLOOKUP(Switch!$D$37,$F$2:$G$43,2,FALSE)+ROW()-2)),\"\")","v":{"$error":"#N/A"}},{"$f":"IF(INDIRECT(\"c\" & (VLOOKUP(Switch!$D$38,$F$2:$G$43,2,FALSE)+ROW()-2))=Switch!$D$38,INDIRECT(\"a\" & (VLOOKUP(Switch!$D$38,$F$2:$G$43,2,FALSE)+ROW()-2)),\"\")","v":{"$error":"#N/A"}},{"$f":"IF(INDIRECT(\"c\" & (VLOOKUP(Switch!$D$39,$F$2:$G$43,2,FALSE)+ROW()-2))=Switch!$D$39,INDIRECT(\"a\" & (VLOOKUP(Switch!$D$39,$F$2:$G$43,2,FALSE)+ROW()-2)),\"\")","v":{"$error":"#N/A"}},{"$f":"IF(INDIRECT(\"c\" & (VLOOKUP(Switch!$D$40,$F$2:$G$43,2,FALSE)+ROW()-2))=Switch!$D$40,INDIRECT(\"a\" & (VLOOKUP(Switch!$D$40,$F$2:$G$43,2,FALSE)+ROW()-2)),\"\")","v":{"$error":"#N/A"}},{"$f":"IF(INDIRECT(\"c\" & (VLOOKUP(Switch!$D$52,$F$2:$G$43,2,FALSE)+ROW()-2))=Switch!$D$52,INDIRECT(\"a\" & (VLOOKUP(Switch!$D$52,$F$2:$G$43,2,FALSE)+ROW()-2)),\"\")","v":{"$error":"#N/A"}},{"$f":"IF(INDIRECT(\"c\" & (VLOOKUP(Switch!$D$53,$F$2:$G$43,2,FALSE)+ROW()-2))=Switch!$D$53,INDIRECT(\"a\" & (VLOOKUP(Switch!$D$53,$F$2:$G$43,2,FALSE)+ROW()-2)),\"\")","v":{"$error":"#N/A"}},{"$f":"IF(INDIRECT(\"c\" & (VLOOKUP(Switch!$D$54,$F$2:$G$43,2,FALSE)+ROW()-2))=Switch!$D$54,INDIRECT(\"a\" & (VLOOKUP(Switch!$D$54,$F$2:$G$43,2,FALSE)+ROW()-2)),\"\")","v":{"$error":"#N/A"}},{"$f":"IF(INDIRECT(\"c\" & (VLOOKUP(Switch!$D$55,$F$2:$G$43,2,FALSE)+ROW()-2))=Switch!$D$55,INDIRECT(\"a\" & (VLOOKUP(Switch!$D$55,$F$2:$G$43,2,FALSE)+ROW()-2)),\"\")","v":{"$error":"#N/A"}},{"$f":"IF(INDIRECT(\"c\" & (VLOOKUP(Switch!$D$56,$F$2:$G$43,2,FALSE)+ROW()-2))=Switch!$D$56,INDIRECT(\"a\" & (VLOOKUP(Switch!$D$56,$F$2:$G$43,2,FALSE)+ROW()-2)),\"\")","v":{"$error":"#N/A"}},{"$f":"IF(INDIRECT(\"c\" & (VLOOKUP(Switch!$D$57,$F$2:$G$43,2,FALSE)+ROW()-2))=Switch!$D$57,INDIRECT(\"a\" & (VLOOKUP(Switch!$D$57,$F$2:$G$43,2,FALSE)+ROW()-2)),\"\")","v":{"$error":"#N/A"}},{"$f":"IF(INDIRECT(\"c\" & (VLOOKUP(Switch!$D$58,$F$2:$G$43,2,FALSE)+ROW()-2))=Switch!$D$58,INDIRECT(\"a\" & (VLOOKUP(Switch!$D$58,$F$2:$G$43,2,FALSE)+ROW()-2)),\"\")","v":{"$error":"#N/A"}},{"$f":"IF(INDIRECT(\"c\" & (VLOOKUP(Switch!$D$59,$F$2:$G$43,2,FALSE)+ROW()-2))=Switch!$D$59,INDIRECT(\"a\" & (VLOOKUP(Switch!$D$59,$F$2:$G$43,2,FALSE)+ROW()-2)),\"\")","v":{"$error":"#N/A"}},{"$f":"IF(INDIRECT(\"c\" & (VLOOKUP(Switch!$D$60,$F$2:$G$43,2,FALSE)+ROW()-2))=Switch!$D$60,INDIRECT(\"a\" & (VLOOKUP(Switch!$D$60,$F$2:$G$43,2,FALSE)+ROW()-2)),\"\")","v":{"$error":"#N/A"}},{"$f":"IF(INDIRECT(\"c\" & (VLOOKUP(Switch!$D$61,$F$2:$G$43,2,FALSE)+ROW()-2))=Switch!$D$61,INDIRECT(\"a\" & (VLOOKUP(Switch!$D$61,$F$2:$G$43,2,FALSE)+ROW()-2)),\"\")","v":{"$error":"#N/A"}},{"$f":"IF(INDIRECT(\"c\" & (VLOOKUP(Switch!$D$62,$F$2:$G$43,2,FALSE)+ROW()-2))=Switch!$D$62,INDIRECT(\"a\" & (VLOOKUP(Switch!$D$62,$F$2:$G$43,2,FALSE)+ROW()-2)),\"\")","v":{"$error":"#N/A"}},{"$f":"IF(INDIRECT(\"c\" & (VLOOKUP(Switch!$D$63,$F$2:$G$43,2,FALSE)+ROW()-2))=Switch!$D$63,INDIRECT(\"a\" & (VLOOKUP(Switch!$D$63,$F$2:$G$43,2,FALSE)+ROW()-2)),\"\")","v":{"$error":"#N/A"}},{"$f":"IF(INDIRECT(\"c\" & (VLOOKUP(Switch!$D$64,$F$2:$G$43,2,FALSE)+ROW()-2))=Switch!$D$64,INDIRECT(\"a\" & (VLOOKUP(Switch!$D$64,$F$2:$G$43,2,FALSE)+ROW()-2)),\"\")","v":{"$error":"#N/A"}},{"$f":"IF(INDIRECT(\"c\" & (VLOOKUP(Switch!$D$65,$F$2:$G$43,2,FALSE)+ROW()-2))=Switch!$D$65,INDIRECT(\"a\" & (VLOOKUP(Switch!$D$65,$F$2:$G$43,2,FALSE)+ROW()-2)),\"\")","v":{"$error":"#N/A"}},{"$f":"IF(INDIRECT(\"c\" & (VLOOKUP(Switch!$D$66,$F$2:$G$43,2,FALSE)+ROW()-2))=Switch!$D$66,INDIRECT(\"a\" & (VLOOKUP(Switch!$D$66,$F$2:$G$43,2,FALSE)+ROW()-2)),\"\")","v":{"$error":"#N/A"}}]
[null,null,null,{"$f":"ROW()","v":563},null,null,{"$f":"VLOOKUP(F563,$C$2:$D$637,2,FALSE)","v":{"$error":"#N/A"}},{"$f":"IF(INDIRECT(\"c\" & (VLOOKUP(Switch!$D$26,$F$2:$G$43,2,FALSE)+ROW()-2))=Switch!$D$26,INDIRECT(\"a\" & (VLOOKUP(Switch!$D$26,$F$2:$G$43,2,FALSE)+ROW()-2)),\"\")","v":{"$error":"#N/A"}},{"$f":"IF(INDIRECT(\"c\" & (VLOOKUP(Switch!$D$27,$F$2:$G$43,2,FALSE)+ROW()-2))=Switch!$D$27,INDIRECT(\"a\" & (VLOOKUP(Switch!$D$27,$F$2:$G$43,2,FALSE)+ROW()-2)),\"\")","v":{"$error":"#N/A"}},{"$f":"IF(INDIRECT(\"c\" & (VLOOKUP(Switch!$D$28,$F$2:$G$43,2,FALSE)+ROW()-2))=Switch!$D$28,INDIRECT(\"a\" & (VLOOKUP(Switch!$D$28,$F$2:$G$43,2,FALSE)+ROW()-2)),\"\")","v":{"$error":"#N/A"}},{"$f":"IF(INDIRECT(\"c\" & (VLOOKUP(Switch!$D$29,$F$2:$G$43,2,FALSE)+ROW()-2))=Switch!$D$29,INDIRECT(\"a\" & (VLOOKUP(Switch!$D$29,$F$2:$G$43,2,FALSE)+ROW()-2)),\"\")","v":{"$error":"#N/A"}},{"$f":"IF(INDIRECT(\"c\" & (VLOOKUP(Switch!$D$30,$F$2:$G$43,2,FALSE)+ROW()-2))=Switch!$D$30,INDIRECT(\"a\" & (VLOOKUP(Switch!$D$30,$F$2:$G$43,2,FALSE)+ROW()-2)),\"\")","v":{"$error":"#N/A"}},{"$f":"IF(INDIRECT(\"c\" & (VLOOKUP(Switch!$D$31,$F$2:$G$43,2,FALSE)+ROW()-2))=Switch!$D$31,INDIRECT(\"a\" & (VLOOKUP(Switch!$D$31,$F$2:$G$43,2,FALSE)+ROW()-2)),\"\")","v":{"$error":"#N/A"}},{"$f":"IF(INDIRECT(\"c\" & (VLOOKUP(Switch!$D$32,$F$2:$G$43,2,FALSE)+ROW()-2))=Switch!$D$32,INDIRECT(\"a\" & (VLOOKUP(Switch!$D$32,$F$2:$G$43,2,FALSE)+ROW()-2)),\"\")","v":{"$error":"#N/A"}},{"$f":"IF(INDIRECT(\"c\" & (VLOOKUP(Switch!$D$33,$F$2:$G$43,2,FALSE)+ROW()-2))=Switch!$D$33,INDIRECT(\"a\" & (VLOOKUP(Switch!$D$33,$F$2:$G$43,2,FALSE)+ROW()-2)),\"\")","v":{"$error":"#N/A"}},{"$f":"IF(INDIRECT(\"c\" & (VLOOKUP(Switch!$D$34,$F$2:$G$43,2,FALSE)+ROW()-2))=Switch!$D$34,INDIRECT(\"a\" & (VLOOKUP(Switch!$D$34,$F$2:$G$43,2,FALSE)+ROW()-2)),\"\")","v":{"$error":"#N/A"}},{"$f":"IF(INDIRECT(\"c\" & (VLOOKUP(Switch!$D$35,$F$2:$G$43,2,FALSE)+ROW()-2))=Switch!$D$35,INDIRECT(\"a\" & (VLOOKUP(Switch!$D$35,$F$2:$G$43,2,FALSE)+ROW()-2)),\"\")","v":{"$error":"#N/A"}},{"$f":"IF(INDIRECT(\"c\" & (VLOOKUP(Switch!$D$36,$F$2:$G$43,2,FALSE)+ROW()-2))=Switch!$D$36,INDIRECT(\"a\" & (VLOOKUP(Switch!$D$36,$F$2:$G$43,2,FALSE)+ROW()-2)),\"\")","v":{"$error":"#N/A"}},{"$f":"IF(INDIRECT(\"c\" & (VLOOKUP(Switch!$D$37,$F$2:$G$43,2,FALSE)+ROW()-2))=Switch!$D$37,INDIRECT(\"a\" & (VLOOKUP(Switch!$D$37,$F$2:$G$43,2,FALSE)+ROW()-2)),\"\")","v":{"$error":"#N/A"}},{"$f":"IF(INDIRECT(\"c\" & (VLOOKUP(Switch!$D$38,$F$2:$G$43,2,FALSE)+ROW()-2))=Switch!$D$38,INDIRECT(\"a\" & (VLOOKUP(Switch!$D$38,$F$2:$G$43,2,FALSE)+ROW()-2)),\"\")","v":{"$error":"#N/A"}},{"$f":"IF(INDIRECT(\"c\" & (VLOOKUP(Switch!$D$39,$F$2:$G$43,2,FALSE)+ROW()-2))=Switch!$D$39,INDIRECT(\"a\" & (VLOOKUP(Switch!$D$39,$F$2:$G$43,2,FALSE)+ROW()-2)),\"\")","v":{"$error":"#N/A"}},{"$f":"IF(INDIRECT(\"c\" & (VLOOKUP(Switch!$D$40,$F$2:$G$43,2,FALSE)+ROW()-2))=Switch!$D$40,INDIRECT(\"a\" & (VLOOKUP(Switch!$D$40,$F$2:$G$43,2,FALSE)+ROW()-2)),\"\")","v":{"$error":"#N/A"}},{"$f":"IF(INDIRECT(\"c\" & (VLOOKUP(Switch!$D$52,$F$2:$G$43,2,FALSE)+ROW()-2))=Switch!$D$52,INDIRECT(\"a\" & (VLOOKUP(Switch!$D$52,$F$2:$G$43,2,FALSE)+ROW()-2)),\"\")","v":{"$error":"#N/A"}},{"$f":"IF(INDIRECT(\"c\" & (VLOOKUP(Switch!$D$53,$F$2:$G$43,2,FALSE)+ROW()-2))=Switch!$D$53,INDIRECT(\"a\" & (VLOOKUP(Switch!$D$53,$F$2:$G$43,2,FALSE)+ROW()-2)),\"\")","v":{"$error":"#N/A"}},{"$f":"IF(INDIRECT(\"c\" & (VLOOKUP(Switch!$D$54,$F$2:$G$43,2,FALSE)+ROW()-2))=Switch!$D$54,INDIRECT(\"a\" & (VLOOKUP(Switch!$D$54,$F$2:$G$43,2,FALSE)+ROW()-2)),\"\")","v":{"$error":"#N/A"}},{"$f":"IF(INDIRECT(\"c\" & (VLOOKUP(Switch!$D$55,$F$2:$G$43,2,FALSE)+ROW()-2))=Switch!$D$55,INDIRECT(\"a\" & (VLOOKUP(Switch!$D$55,$F$2:$G$43,2,FALSE)+ROW()-2)),\"\")","v":{"$error":"#N/A"}},{"$f":"IF(INDIRECT(\"c\" & (VLOOKUP(Switch!$D$56,$F$2:$G$43,2,FALSE)+ROW()-2))=Switch!$D$56,INDIRECT(\"a\" & (VLOOKUP(Switch!$D$56,$F$2:$G$43,2,FALSE)+ROW()-2)),\"\")","v":{"$error":"#N/A"}},{"$f":"IF(INDIRECT(\"c\" & (VLOOKUP(Switch!$D$57,$F$2:$G$43,2,FALSE)+ROW()-2))=Switch!$D$57,INDIRECT(\"a\" & (VLOOKUP(Switch!$D$57,$F$2:$G$43,2,FALSE)+ROW()-2)),\"\")","v":{"$error":"#N/A"}},{"$f":"IF(INDIRECT(\"c\" & (VLOOKUP(Switch!$D$58,$F$2:$G$43,2,FALSE)+ROW()-2))=Switch!$D$58,INDIRECT(\"a\" & (VLOOKUP(Switch!$D$58,$F$2:$G$43,2,FALSE)+ROW()-2)),\"\")","v":{"$error":"#N/A"}},{"$f":"IF(INDIRECT(\"c\" & (VLOOKUP(Switch!$D$59,$F$2:$G$43,2,FALSE)+ROW()-2))=Switch!$D$59,INDIRECT(\"a\" & (VLOOKUP(Switch!$D$59,$F$2:$G$43,2,FALSE)+ROW()-2)),\"\")","v":{"$error":"#N/A"}},{"$f":"IF(INDIRECT(\"c\" & (VLOOKUP(Switch!$D$60,$F$2:$G$43,2,FALSE)+ROW()-2))=Switch!$D$60,INDIRECT(\"a\" & (VLOOKUP(Switch!$D$60,$F$2:$G$43,2,FALSE)+ROW()-2)),\"\")","v":{"$error":"#N/A"}},{"$f":"IF(INDIRECT(\"c\" & (VLOOKUP(Switch!$D$61,$F$2:$G$43,2,FALSE)+ROW()-2))=Switch!$D$61,INDIRECT(\"a\" & (VLOOKUP(Switch!$D$61,$F$2:$G$43,2,FALSE)+ROW()-2)),\"\")","v":{"$error":"#N/A"}},{"$f":"IF(INDIRECT(\"c\" & (VLOOKUP(Switch!$D$62,$F$2:$G$43,2,FALSE)+ROW()-2))=Switch!$D$62,INDIRECT(\"a\" & (VLOOKUP(Switch!$D$62,$F$2:$G$43,2,FALSE)+ROW()-2)),\"\")","v":{"$error":"#N/A"}},{"$f":"IF(INDIRECT(\"c\" & (VLOOKUP(Switch!$D$63,$F$2:$G$43,2,FALSE)+ROW()-2))=Switch!$D$63,INDIRECT(\"a\" & (VLOOKUP(Switch!$D$63,$F$2:$G$43,2,FALSE)+ROW()-2)),\"\")","v":{"$error":"#N/A"}},{"$f":"IF(INDIRECT(\"c\" & (VLOOKUP(Switch!$D$64,$F$2:$G$43,2,FALSE)+ROW()-2))=Switch!$D$64,INDIRECT(\"a\" & (VLOOKUP(Switch!$D$64,$F$2:$G$43,2,FALSE)+ROW()-2)),\"\")","v":{"$error":"#N/A"}},{"$f":"IF(INDIRECT(\"c\" & (VLOOKUP(Switch!$D$65,$F$2:$G$43,2,FALSE)+ROW()-2))=Switch!$D$65,INDIRECT(\"a\" & (VLOOKUP(Switch!$D$65,$F$2:$G$43,2,FALSE)+ROW()-2)),\"\")","v":{"$error":"#N/A"}},{"$f":"IF(INDIRECT(\"c\" & (VLOOKUP(Switch!$D$66,$F$2:$G$43,2,FALSE)+ROW()-2))=Switch!$D$66,INDIRECT(\"a\" & (VLOOKUP(Switch!$D$66,$F$2:$G$43,2,FALSE)+ROW()-2)),\"\")","v":{"$error":"#N/A"}}]
[null,null,null,{"$f":"ROW()","v":564},null,null,{"$f":"VLOOKUP(F564,$C$2:$D$637,2,FALSE)","v":{"$error":"#N/A"}},{"$f":"IF(INDIRECT(\"c\" & (VLOOKUP(Switch!$D$26,$F$2:$G$43,2,FALSE)+ROW()-2))=Switch!$D$26,INDIRECT(\"a\" & (VLOOKUP(Switch!$D$26,$F$2:$G$43,2,FALSE)+ROW()-2)),\"\")","v":{"$error":"#N/A"}},{"$f":"IF(INDIRECT(\"c\" & (VLOOKUP(Switch!$D$27,$F$2:$G$43,2,FALSE)+ROW()-2))=Switch!$D$27,INDIRECT(\"a\" & (VLOOKUP(Switch!$D$27,$F$2:$G$43,2,FALSE)+ROW()-2)),\"\")","v":{"$error":"#N/A"}},{"$f":"IF(INDIRECT(\"c\" & (VLOOKUP(Switch!$D$28,$F$2:$G$43,2,FALSE)+ROW()-2))=Switch!$D$28,INDIRECT(\"a\" & (VLOOKUP(Switch!$D$28,$F$2:$G$43,2,FALSE)+ROW()-2)),\"\")","v":{"$error":"#N/A"}},{"$f":"IF(INDIRECT(\"c\" & (VLOOKUP(Switch!$D$29,$F$2:$G$43,2,FALSE)+ROW()-2))=Switch!$D$29,INDIRECT(\"a\" & (VLOOKUP(Switch!$D$29,$F$2:$G$43,2,FALSE)+ROW()-2)),\"\")","v":{"$error":"#N/A"}},{"$f":"IF(INDIRECT(\"c\" & (VLOOKUP(Switch!$D$30,$F$2:$G$43,2,FALSE)+ROW()-2))=Switch!$D$30,INDIRECT(\"a\" & (VLOOKUP(Switch!$D$30,$F$2:$G$43,2,FALSE)+ROW()-2)),\"\")","v":{"$error":"#N/A"}},{"$f":"IF(INDIRECT(\"c\" & (VLOOKUP(Switch!$D$31,$F$2:$G$43,2,FALSE)+ROW()-2))=Switch!$D$31,INDIRECT(\"a\" & (VLOOKUP(Switch!$D$31,$F$2:$G$43,2,FALSE)+ROW()-2)),\"\")","v":{"$error":"#N/A"}},{"$f":"IF(INDIRECT(\"c\" & (VLOOKUP(Switch!$D$32,$F$2:$G$43,2,FALSE)+ROW()-2))=Switch!$D$32,INDIRECT(\"a\" & (VLOOKUP(Switch!$D$32,$F$2:$G$43,2,FALSE)+ROW()-2)),\"\")","v":{"$error":"#N/A"}},{"$f":"IF(INDIRECT(\"c\" & (VLOOKUP(Switch!$D$33,$F$2:$G$43,2,FALSE)+ROW()-2))=Switch!$D$33,INDIRECT(\"a\" & (VLOOKUP(Switch!$D$33,$F$2:$G$43,2,FALSE)+ROW()-2)),\"\")","v":{"$error":"#N/A"}},{"$f":"IF(INDIRECT(\"c\" & (VLOOKUP(Switch!$D$34,$F$2:$G$43,2,FALSE)+ROW()-2))=Switch!$D$34,INDIRECT(\"a\" & (VLOOKUP(Switch!$D$34,$F$2:$G$43,2,FALSE)+ROW()-2)),\"\")","v":{"$error":"#N/A"}},{"$f":"IF(INDIRECT(\"c\" & (VLOOKUP(Switch!$D$35,$F$2:$G$43,2,FALSE)+ROW()-2))=Switch!$D$35,INDIRECT(\"a\" & (VLOOKUP(Switch!$D$35,$F$2:$G$43,2,FALSE)+ROW()-2)),\"\")","v":{"$error":"#N/A"}},{"$f":"IF(INDIRECT(\"c\" & (VLOOKUP(Switch!$D$36,$F$2:$G$43,2,FALSE)+ROW()-2))=Switch!$D$36,INDIRECT(\"a\" & (VLOOKUP(Switch!$D$36,$F$2:$G$43,2,FALSE)+ROW()-2)),\"\")","v":{"$error":"#N/A"}},{"$f":"IF(INDIRECT(\"c\" & (VLOOKUP(Switch!$D$37,$F$2:$G$43,2,FALSE)+ROW()-2))=Switch!$D$37,INDIRECT(\"a\" & (VLOOKUP(Switch!$D$37,$F$2:$G$43,2,FALSE)+ROW()-2)),\"\")","v":{"$error":"#N/A"}},{"$f":"IF(INDIRECT(\"c\" & (VLOOKUP(Switch!$D$38,$F$2:$G$43,2,FALSE)+ROW()-2))=Switch!$D$38,INDIRECT(\"a\" & (VLOOKUP(Switch!$D$38,$F$2:$G$43,2,FALSE)+ROW()-2)),\"\")","v":{"$error":"#N/A"}},{"$f":"IF(INDIRECT(\"c\" & (VLOOKUP(Switch!$D$39,$F$2:$G$43,2,FALSE)+ROW()-2))=Switch!$D$39,INDIRECT(\"a\" & (VLOOKUP(Switch!$D$39,$F$2:$G$43,2,FALSE)+ROW()-2)),\"\")","v":{"$error":"#N/A"}},{"$f":"IF(INDIRECT(\"c\" & (VLOOKUP(Switch!$D$40,$F$2:$G$43,2,FALSE)+ROW()-2))=Switch!$D$40,INDIRECT(\"a\" & (VLOOKUP(Switch!$D$40,$F$2:$G$43,2,FALSE)+ROW()-2)),\"\")","v":{"$error":"#N/A"}},{"$f":"IF(INDIRECT(\"c\" & (VLOOKUP(Switch!$D$52,$F$2:$G$43,2,FALSE)+ROW()-2))=Switch!$D$52,INDIRECT(\"a\" & (VLOOKUP(Switch!$D$52,$F$2:$G$43,2,FALSE)+ROW()-2)),\"\")","v":{"$error":"#N/A"}},{"$f":"IF(INDIRECT(\"c\" & (VLOOKUP(Switch!$D$53,$F$2:$G$43,2,FALSE)+ROW()-2))=Switch!$D$53,INDIRECT(\"a\" & (VLOOKUP(Switch!$D$53,$F$2:$G$43,2,FALSE)+ROW()-2)),\"\")","v":{"$error":"#N/A"}},{"$f":"IF(INDIRECT(\"c\" & (VLOOKUP(Switch!$D$54,$F$2:$G$43,2,FALSE)+ROW()-2))=Switch!$D$54,INDIRECT(\"a\" & (VLOOKUP(Switch!$D$54,$F$2:$G$43,2,FALSE)+ROW()-2)),\"\")","v":{"$error":"#N/A"}},{"$f":"IF(INDIRECT(\"c\" & (VLOOKUP(Switch!$D$55,$F$2:$G$43,2,FALSE)+ROW()-2))=Switch!$D$55,INDIRECT(\"a\" & (VLOOKUP(Switch!$D$55,$F$2:$G$43,2,FALSE)+ROW()-2)),\"\")","v":{"$error":"#N/A"}},{"$f":"IF(INDIRECT(\"c\" & (VLOOKUP(Switch!$D$56,$F$2:$G$43,2,FALSE)+ROW()-2))=Switch!$D$56,INDIRECT(\"a\" & (VLOOKUP(Switch!$D$56,$F$2:$G$43,2,FALSE)+ROW()-2)),\"\")","v":{"$error":"#N/A"}},{"$f":"IF(INDIRECT(\"c\" & (VLOOKUP(Switch!$D$57,$F$2:$G$43,2,FALSE)+ROW()-2))=Switch!$D$57,INDIRECT(\"a\" & (VLOOKUP(Switch!$D$57,$F$2:$G$43,2,FALSE)+ROW()-2)),\"\")","v":{"$error":"#N/A"}},{"$f":"IF(INDIRECT(\"c\" & (VLOOKUP(Switch!$D$58,$F$2:$G$43,2,FALSE)+ROW()-2))=Switch!$D$58,INDIRECT(\"a\" & (VLOOKUP(Switch!$D$58,$F$2:$G$43,2,FALSE)+ROW()-2)),\"\")","v":{"$error":"#N/A"}},{"$f":"IF(INDIRECT(\"c\" & (VLOOKUP(Switch!$D$59,$F$2:$G$43,2,FALSE)+ROW()-2))=Switch!$D$59,INDIRECT(\"a\" & (VLOOKUP(Switch!$D$59,$F$2:$G$43,2,FALSE)+ROW()-2)),\"\")","v":{"$error":"#N/A"}},{"$f":"IF(INDIRECT(\"c\" & (VLOOKUP(Switch!$D$60,$F$2:$G$43,2,FALSE)+ROW()-2))=Switch!$D$60,INDIRECT(\"a\" & (VLOOKUP(Switch!$D$60,$F$2:$G$43,2,FALSE)+ROW()-2)),\"\")","v":{"$error":"#N/A"}},{"$f":"IF(INDIRECT(\"c\" & (VLOOKUP(Switch!$D$61,$F$2:$G$43,2,FALSE)+ROW()-2))=Switch!$D$61,INDIRECT(\"a\" & (VLOOKUP(Switch!$D$61,$F$2:$G$43,2,FALSE)+ROW()-2)),\"\")","v":{"$error":"#N/A"}},{"$f":"IF(INDIRECT(\"c\" & (VLOOKUP(Switch!$D$62,$F$2:$G$43,2,FALSE)+ROW()-2))=Switch!$D$62,INDIRECT(\"a\" & (VLOOKUP(Switch!$D$62,$F$2:$G$43,2,FALSE)+ROW()-2)),\"\")","v":{"$error":"#N/A"}},{"$f":"IF(INDIRECT(\"c\" & (VLOOKUP(Switch!$D$63,$F$2:$G$43,2,FALSE)+ROW()-2))=Switch!$D$63,INDIRECT(\"a\" & (VLOOKUP(Switch!$D$63,$F$2:$G$43,2,FALSE)+ROW()-2)),\"\")","v":{"$error":"#N/A"}},{"$f":"IF(INDIRECT(\"c\" & (VLOOKUP(Switch!$D$64,$F$2:$G$43,2,FALSE)+ROW()-2))=Switch!$D$64,INDIRECT(\"a\" & (VLOOKUP(Switch!$D$64,$F$2:$G$43,2,FALSE)+ROW()-2)),\"\")","v":{"$error":"#N/A"}},{"$f":"IF(INDIRECT(\"c\" & (VLOOKUP(Switch!$D$65,$F$2:$G$43,2,FALSE)+ROW()-2))=Switch!$D$65,INDIRECT(\"a\" & (VLOOKUP(Switch!$D$65,$F$2:$G$43,2,FALSE)+ROW()-2)),\"\")","v":{"$error":"#N/A"}},{"$f":"IF(INDIRECT(\"c\" & (VLOOKUP(Switch!$D$66,$F$2:$G$43,2,FALSE)+ROW()-2))=Switch!$D$66,INDIRECT(\"a\" & (VLOOKUP(Switch!$D$66,$F$2:$G$43,2,FALSE)+ROW()-2)),\"\")","v":{"$error":"#N/A"}}]
[null,null,null,{"$f":"ROW()","v":565},null,null,{"$f":"VLOOKUP(F565,$C$2:$D$637,2,FALSE)","v":{"$error":"#N/A"}},{"$f":"IF(INDIRECT(\"c\" & (VLOOKUP(Switch!$D$26,$F$2:$G$43,2,FALSE)+ROW()-2))=Switch!$D$26,INDIRECT(\"a\" & (VLOOKUP(Switch!$D$26,$F$2:$G$43,2,FALSE)+ROW()-2)),\"\")","v":{"$error":"#N/A"}},{"$f":"IF(INDIRECT(\"c\" & (VLOOKUP(Switch!$D$27,$F$2:$G$43,2,FALSE)+ROW()-2))=Switch!$D$27,INDIRECT(\"a\" & (VLOOKUP(Switch!$D$27,$F$2:$G$43,2,FALSE)+ROW()-2)),\"\")","v":{"$error":"#N/A"}},{"$f":"IF(INDIRECT(\"c\" & (VLOOKUP(Switch!$D$28,$F$2:$G$43,2,FALSE)+ROW()-2))=Switch!$D$28,INDIRECT(\"a\" & (VLOOKUP(Switch!$D$28,$F$2:$G$43,2,FALSE)+ROW()-2)),\"\")","v":{"$error":"#N/A"}},{"$f":"IF(INDIRECT(\"c\" & (VLOOKUP(Switch!$D$29,$F$2:$G$43,2,FALSE)+ROW()-2))=Switch!$D$29,INDIRECT(\"a\" & (VLOOKUP(Switch!$D$29,$F$2:$G$43,2,FALSE)+ROW()-2)),\"\")","v":{"$error":"#N/A"}},{"$f":"IF(INDIRECT(\"c\" & (VLOOKUP(Switch!$D$30,$F$2:$G$43,2,FALSE)+ROW()-2))=Switch!$D$30,INDIRECT(\"a\" & (VLOOKUP(Switch!$D$30,$F$2:$G$43,2,FALSE)+ROW()-2)),\"\")","v":{"$error":"#N/A"}},{"$f":"IF(INDIRECT(\"c\" & (VLOOKUP(Switch!$D$31,$F$2:$G$43,2,FALSE)+ROW()-2))=Switch!$D$31,INDIRECT(\"a\" & (VLOOKUP(Switch!$D$31,$F$2:$G$43,2,FALSE)+ROW()-2)),\"\")","v":{"$error":"#N/A"}},{"$f":"IF(INDIRECT(\"c\" & (VLOOKUP(Switch!$D$32,$F$2:$G$43,2,FALSE)+ROW()-2))=Switch!$D$32,INDIRECT(\"a\" & (VLOOKUP(Switch!$D$32,$F$2:$G$43,2,FALSE)+ROW()-2)),\"\")","v":{"$error":"#N/A"}},{"$f":"IF(INDIRECT(\"c\" & (VLOOKUP(Switch!$D$33,$F$2:$G$43,2,FALSE)+ROW()-2))=Switch!$D$33,INDIRECT(\"a\" & (VLOOKUP(Switch!$D$33,$F$2:$G$43,2,FALSE)+ROW()-2)),\"\")","v":{"$error":"#N/A"}},{"$f":"IF(INDIRECT(\"c\" & (VLOOKUP(Switch!$D$34,$F$2:$G$43,2,FALSE)+ROW()-2))=Switch!$D$34,INDIRECT(\"a\" & (VLOOKUP(Switch!$D$34,$F$2:$G$43,2,FALSE)+ROW()-2)),\"\")","v":{"$error":"#N/A"}},{"$f":"IF(INDIRECT(\"c\" & (VLOOKUP(Switch!$D$35,$F$2:$G$43,2,FALSE)+ROW()-2))=Switch!$D$35,INDIRECT(\"a\" & (VLOOKUP(Switch!$D$35,$F$2:$G$43,2,FALSE)+ROW()-2)),\"\")","v":{"$error":"#N/A"}},{"$f":"IF(INDIRECT(\"c\" & (VLOOKUP(Switch!$D$36,$F$2:$G$43,2,FALSE)+ROW()-2))=Switch!$D$36,INDIRECT(\"a\" & (VLOOKUP(Switch!$D$36,$F$2:$G$43,2,FALSE)+ROW()-2)),\"\")","v":{"$error":"#N/A"}},{"$f":"IF(INDIRECT(\"c\" & (VLOOKUP(Switch!$D$37,$F$2:$G$43,2,FALSE)+ROW()-2))=Switch!$D$37,INDIRECT(\"a\" & (VLOOKUP(Switch!$D$37,$F$2:$G$43,2,FALSE)+ROW()-2)),\"\")","v":{"$error":"#N/A"}},{"$f":"IF(INDIRECT(\"c\" & (VLOOKUP(Switch!$D$38,$F$2:$G$43,2,FALSE)+ROW()-2))=Switch!$D$38,INDIRECT(\"a\" & (VLOOKUP(Switch!$D$38,$F$2:$G$43,2,FALSE)+ROW()-2)),\"\")","v":{"$error":"#N/A"}},{"$f":"IF(INDIRECT(\"c\" & (VLOOKUP(Switch!$D$39,$F$2:$G$43,2,FALSE)+ROW()-2))=Switch!$D$39,INDIRECT(\"a\" & (VLOOKUP(Switch!$D$39,$F$2:$G$43,2,FALSE)+ROW()-2)),\"\")","v":{"$error":"#N/A"}},{"$f":"IF(INDIRECT(\"c\" & (VLOOKUP(Switch!$D$40,$F$2:$G$43,2,FALSE)+ROW()-2))=Switch!$D$40,INDIRECT(\"a\" & (VLOOKUP(Switch!$D$40,$F$2:$G$43,2,FALSE)+ROW()-2)),\"\")","v":{"$error":"#N/A"}},{"$f":"IF(INDIRECT(\"c\" & (VLOOKUP(Switch!$D$52,$F$2:$G$43,2,FALSE)+ROW()-2))=Switch!$D$52,INDIRECT(\"a\" & (VLOOKUP(Switch!$D$52,$F$2:$G$43,2,FALSE)+ROW()-2)),\"\")","v":{"$error":"#N/A"}},{"$f":"IF(INDIRECT(\"c\" & (VLOOKUP(Switch!$D$53,$F$2:$G$43,2,FALSE)+ROW()-2))=Switch!$D$53,INDIRECT(\"a\" & (VLOOKUP(Switch!$D$53,$F$2:$G$43,2,FALSE)+ROW()-2)),\"\")","v":{"$error":"#N/A"}},{"$f":"IF(INDIRECT(\"c\" & (VLOOKUP(Switch!$D$54,$F$2:$G$43,2,FALSE)+ROW()-2))=Switch!$D$54,INDIRECT(\"a\" & (VLOOKUP(Switch!$D$54,$F$2:$G$43,2,FALSE)+ROW()-2)),\"\")","v":{"$error":"#N/A"}},{"$f":"IF(INDIRECT(\"c\" & (VLOOKUP(Switch!$D$55,$F$2:$G$43,2,FALSE)+ROW()-2))=Switch!$D$55,INDIRECT(\"a\" & (VLOOKUP(Switch!$D$55,$F$2:$G$43,2,FALSE)+ROW()-2)),\"\")","v":{"$error":"#N/A"}},{"$f":"IF(INDIRECT(\"c\" & (VLOOKUP(Switch!$D$56,$F$2:$G$43,2,FALSE)+ROW()-2))=Switch!$D$56,INDIRECT(\"a\" & (VLOOKUP(Switch!$D$56,$F$2:$G$43,2,FALSE)+ROW()-2)),\"\")","v":{"$error":"#N/A"}},{"$f":"IF(INDIRECT(\"c\" & (VLOOKUP(Switch!$D$57,$F$2:$G$43,2,FALSE)+ROW()-2))=Switch!$D$57,INDIRECT(\"a\" & (VLOOKUP(Switch!$D$57,$F$2:$G$43,2,FALSE)+ROW()-2)),\"\")","v":{"$error":"#N/A"}},{"$f":"IF(INDIRECT(\"c\" & (VLOOKUP(Switch!$D$58,$F$2:$G$43,2,FALSE)+ROW()-2))=Switch!$D$58,INDIRECT(\"a\" & (VLOOKUP(Switch!$D$58,$F$2:$G$43,2,FALSE)+ROW()-2)),\"\")","v":{"$error":"#N/A"}},{"$f":"IF(INDIRECT(\"c\" & (VLOOKUP(Switch!$D$59,$F$2:$G$43,2,FALSE)+ROW()-2))=Switch!$D$59,INDIRECT(\"a\" & (VLOOKUP(Switch!$D$59,$F$2:$G$43,2,FALSE)+ROW()-2)),\"\")","v":{"$error":"#N/A"}},{"$f":"IF(INDIRECT(\"c\" & (VLOOKUP(Switch!$D$60,$F$2:$G$43,2,FALSE)+ROW()-2))=Switch!$D$60,INDIRECT(\"a\" & (VLOOKUP(Switch!$D$60,$F$2:$G$43,2,FALSE)+ROW()-2)),\"\")","v":{"$error":"#N/A"}},{"$f":"IF(INDIRECT(\"c\" & (VLOOKUP(Switch!$D$61,$F$2:$G$43,2,FALSE)+ROW()-2))=Switch!$D$61,INDIRECT(\"a\" & (VLOOKUP(Switch!$D$61,$F$2:$G$43,2,FALSE)+ROW()-2)),\"\")","v":{"$error":"#N/A"}},{"$f":"IF(INDIRECT(\"c\" & (VLOOKUP(Switch!$D$62,$F$2:$G$43,2,FALSE)+ROW()-2))=Switch!$D$62,INDIRECT(\"a\" & (VLOOKUP(Switch!$D$62,$F$2:$G$43,2,FALSE)+ROW()-2)),\"\")","v":{"$error":"#N/A"}},{"$f":"IF(INDIRECT(\"c\" & (VLOOKUP(Switch!$D$63,$F$2:$G$43,2,FALSE)+ROW()-2))=Switch!$D$63,INDIRECT(\"a\" & (VLOOKUP(Switch!$D$63,$F$2:$G$43,2,FALSE)+ROW()-2)),\"\")","v":{"$error":"#N/A"}},{"$f":"IF(INDIRECT(\"c\" & (VLOOKUP(Switch!$D$64,$F$2:$G$43,2,FALSE)+ROW()-2))=Switch!$D$64,INDIRECT(\"a\" & (VLOOKUP(Switch!$D$64,$F$2:$G$43,2,FALSE)+ROW()-2)),\"\")","v":{"$error":"#N/A"}},{"$f":"IF(INDIRECT(\"c\" & (VLOOKUP(Switch!$D$65,$F$2:$G$43,2,FALSE)+ROW()-2))=Switch!$D$65,INDIRECT(\"a\" & (VLOOKUP(Switch!$D$65,$F$2:$G$43,2,FALSE)+ROW()-2)),\"\")","v":{"$error":"#N/A"}},{"$f":"IF(INDIRECT(\"c\" & (VLOOKUP(Switch!$D$66,$F$2:$G$43,2,FALSE)+ROW()-2))=Switch!$D$66,INDIRECT(\"a\" & (VLOOKUP(Switch!$D$66,$F$2:$G$43,2,FALSE)+ROW()-2)),\"\")","v":{"$error":"#N/A"}}]
[null,null,null,{"$f":"ROW()","v":566},null,null,{"$f":"VLOOKUP(F566,$C$2:$D$637,2,FALSE)","v":{"$error":"#N/A"}},{"$f":"IF(INDIRECT(\"c\" & (VLOOKUP(Switch!$D$26,$F$2:$G$43,2,FALSE)+ROW()-2))=Switch!$D$26,INDIRECT(\"a\" & (VLOOKUP(Switch!$D$26,$F$2:$G$43,2,FALSE)+ROW()-2)),\"\")","v":{"$error":"#N/A"}},{"$f":"IF(INDIRECT(\"c\" & (VLOOKUP(Switch!$D$27,$F$2:$G$43,2,FALSE)+ROW()-2))=Switch!$D$27,INDIRECT(\"a\" & (VLOOKUP(Switch!$D$27,$F$2:$G$43,2,FALSE)+ROW()-2)),\"\")","v":{"$error":"#N/A"}},{"$f":"IF(INDIRECT(\"c\" & (VLOOKUP(Switch!$D$28,$F$2:$G$43,2,FALSE)+ROW()-2))=Switch!$D$28,INDIRECT(\"a\" & (VLOOKUP(Switch!$D$28,$F$2:$G$43,2,FALSE)+ROW()-2)),\"\")","v":{"$error":"#N/A"}},{"$f":"IF(INDIRECT(\"c\" & (VLOOKUP(Switch!$D$29,$F$2:$G$43,2,FALSE)+ROW()-2))=Switch!$D$29,INDIRECT(\"a\" & (VLOOKUP(Switch!$D$29,$F$2:$G$43,2,FALSE)+ROW()-2)),\"\")","v":{"$error":"#N/A"}},{"$f":"IF(INDIRECT(\"c\" & (VLOOKUP(Switch!$D$30,$F$2:$G$43,2,FALSE)+ROW()-2))=Switch!$D$30,INDIRECT(\"a\" & (VLOOKUP(Switch!$D$30,$F$2:$G$43,2,FALSE)+ROW()-2)),\"\")","v":{"$error":"#N/A"}},{"$f":"IF(INDIRECT(\"c\" & (VLOOKUP(Switch!$D$31,$F$2:$G$43,2,FALSE)+ROW()-2))=Switch!$D$31,INDIRECT(\"a\" & (VLOOKUP(Switch!$D$31,$F$2:$G$43,2,FALSE)+ROW()-2)),\"\")","v":{"$error":"#N/A"}},{"$f":"IF(INDIRECT(\"c\" & (VLOOKUP(Switch!$D$32,$F$2:$G$43,2,FALSE)+ROW()-2))=Switch!$D$32,INDIRECT(\"a\" & (VLOOKUP(Switch!$D$32,$F$2:$G$43,2,FALSE)+ROW()-2)),\"\")","v":{"$error":"#N/A"}},{"$f":"IF(INDIRECT(\"c\" & (VLOOKUP(Switch!$D$33,$F$2:$G$43,2,FALSE)+ROW()-2))=Switch!$D$33,INDIRECT(\"a\" & (VLOOKUP(Switch!$D$33,$F$2:$G$43,2,FALSE)+ROW()-2)),\"\")","v":{"$error":"#N/A"}},{"$f":"IF(INDIRECT(\"c\" & (VLOOKUP(Switch!$D$34,$F$2:$G$43,2,FALSE)+ROW()-2))=Switch!$D$34,INDIRECT(\"a\" & (VLOOKUP(Switch!$D$34,$F$2:$G$43,2,FALSE)+ROW()-2)),\"\")","v":{"$error":"#N/A"}},{"$f":"IF(INDIRECT(\"c\" & (VLOOKUP(Switch!$D$35,$F$2:$G$43,2,FALSE)+ROW()-2))=Switch!$D$35,INDIRECT(\"a\" & (VLOOKUP(Switch!$D$35,$F$2:$G$43,2,FALSE)+ROW()-2)),\"\")","v":{"$error":"#N/A"}},{"$f":"IF(INDIRECT(\"c\" & (VLOOKUP(Switch!$D$36,$F$2:$G$43,2,FALSE)+ROW()-2))=Switch!$D$36,INDIRECT(\"a\" & (VLOOKUP(Switch!$D$36,$F$2:$G$43,2,FALSE)+ROW()-2)),\"\")","v":{"$error":"#N/A"}},{"$f":"IF(INDIRECT(\"c\" & (VLOOKUP(Switch!$D$37,$F$2:$G$43,2,FALSE)+ROW()-2))=Switch!$D$37,INDIRECT(\"a\" & (VLOOKUP(Switch!$D$37,$F$2:$G$43,2,FALSE)+ROW()-2)),\"\")","v":{"$error":"#N/A"}},{"$f":"IF(INDIRECT(\"c\" & (VLOOKUP(Switch!$D$38,$F$2:$G$43,2,FALSE)+ROW()-2))=Switch!$D$38,INDIRECT(\"a\" & (VLOOKUP(Switch!$D$38,$F$2:$G$43,2,FALSE)+ROW()-2)),\"\")","v":{"$error":"#N/A"}},{"$f":"IF(INDIRECT(\"c\" & (VLOOKUP(Switch!$D$39,$F$2:$G$43,2,FALSE)+ROW()-2))=Switch!$D$39,INDIRECT(\"a\" & (VLOOKUP(Switch!$D$39,$F$2:$G$43,2,FALSE)+ROW()-2)),\"\")","v":{"$error":"#N/A"}},{"$f":"IF(INDIRECT(\"c\" & (VLOOKUP(Switch!$D$40,$F$2:$G$43,2,FALSE)+ROW()-2))=Switch!$D$40,INDIRECT(\"a\" & (VLOOKUP(Switch!$D$40,$F$2:$G$43,2,FALSE)+ROW()-2)),\"\")","v":{"$error":"#N/A"}},{"$f":"IF(INDIRECT(\"c\" & (VLOOKUP(Switch!$D$52,$F$2:$G$43,2,FALSE)+ROW()-2))=Switch!$D$52,INDIRECT(\"a\" & (VLOOKUP(Switch!$D$52,$F$2:$G$43,2,FALSE)+ROW()-2)),\"\")","v":{"$error":"#N/A"}},{"$f":"IF(INDIRECT(\"c\" & (VLOOKUP(Switch!$D$53,$F$2:$G$43,2,FALSE)+ROW()-2))=Switch!$D$53,INDIRECT(\"a\" & (VLOOKUP(Switch!$D$53,$F$2:$G$43,2,FALSE)+ROW()-2)),\"\")","v":{"$error":"#N/A"}},{"$f":"IF(INDIRECT(\"c\" & (VLOOKUP(Switch!$D$54,$F$2:$G$43,2,FALSE)+ROW()-2))=Switch!$D$54,INDIRECT(\"a\" & (VLOOKUP(Switch!$D$54,$F$2:$G$43,2,FALSE)+ROW()-2)),\"\")","v":{"$error":"#N/A"}},{"$f":"IF(INDIRECT(\"c\" & (VLOOKUP(Switch!$D$55,$F$2:$G$43,2,FALSE)+ROW()-2))=Switch!$D$55,INDIRECT(\"a\" & (VLOOKUP(Switch!$D$55,$F$2:$G$43,2,FALSE)+ROW()-2)),\"\")","v":{"$error":"#N/A"}},{"$f":"IF(INDIRECT(\"c\" & (VLOOKUP(Switch!$D$56,$F$2:$G$43,2,FALSE)+ROW()-2))=Switch!$D$56,INDIRECT(\"a\" & (VLOOKUP(Switch!$D$56,$F$2:$G$43,2,FALSE)+ROW()-2)),\"\")","v":{"$error":"#N/A"}},{"$f":"IF(INDIRECT(\"c\" & (VLOOKUP(Switch!$D$57,$F$2:$G$43,2,FALSE)+ROW()-2))=Switch!$D$57,INDIRECT(\"a\" & (VLOOKUP(Switch!$D$57,$F$2:$G$43,2,FALSE)+ROW()-2)),\"\")","v":{"$error":"#N/A"}},{"$f":"IF(INDIRECT(\"c\" & (VLOOKUP(Switch!$D$58,$F$2:$G$43,2,FALSE)+ROW()-2))=Switch!$D$58,INDIRECT(\"a\" & (VLOOKUP(Switch!$D$58,$F$2:$G$43,2,FALSE)+ROW()-2)),\"\")","v":{"$error":"#N/A"}},{"$f":"IF(INDIRECT(\"c\" & (VLOOKUP(Switch!$D$59,$F$2:$G$43,2,FALSE)+ROW()-2))=Switch!$D$59,INDIRECT(\"a\" & (VLOOKUP(Switch!$D$59,$F$2:$G$43,2,FALSE)+ROW()-2)),\"\")","v":{"$error":"#N/A"}},{"$f":"IF(INDIRECT(\"c\" & (VLOOKUP(Switch!$D$60,$F$2:$G$43,2,FALSE)+ROW()-2))=Switch!$D$60,INDIRECT(\"a\" & (VLOOKUP(Switch!$D$60,$F$2:$G$43,2,FALSE)+ROW()-2)),\"\")","v":{"$error":"#N/A"}},{"$f":"IF(INDIRECT(\"c\" & (VLOOKUP(Switch!$D$61,$F$2:$G$43,2,FALSE)+ROW()-2))=Switch!$D$61,INDIRECT(\"a\" & (VLOOKUP(Switch!$D$61,$F$2:$G$43,2,FALSE)+ROW()-2)),\"\")","v":{"$error":"#N/A"}},{"$f":"IF(INDIRECT(\"c\" & (VLOOKUP(Switch!$D$62,$F$2:$G$43,2,FALSE)+ROW()-2))=Switch!$D$62,INDIRECT(\"a\" & (VLOOKUP(Switch!$D$62,$F$2:$G$43,2,FALSE)+ROW()-2)),\"\")","v":{"$error":"#N/A"}},{"$f":"IF(INDIRECT(\"c\" & (VLOOKUP(Switch!$D$63,$F$2:$G$43,2,FALSE)+ROW()-2))=Switch!$D$63,INDIRECT(\"a\" & (VLOOKUP(Switch!$D$63,$F$2:$G$43,2,FALSE)+ROW()-2)),\"\")","v":{"$error":"#N/A"}},{"$f":"IF(INDIRECT(\"c\" & (VLOOKUP(Switch!$D$64,$F$2:$G$43,2,FALSE)+ROW()-2))=Switch!$D$64,INDIRECT(\"a\" & (VLOOKUP(Switch!$D$64,$F$2:$G$43,2,FALSE)+ROW()-2)),\"\")","v":{"$error":"#N/A"}},{"$f":"IF(INDIRECT(\"c\" & (VLOOKUP(Switch!$D$65,$F$2:$G$43,2,FALSE)+ROW()-2))=Switch!$D$65,INDIRECT(\"a\" & (VLOOKUP(Switch!$D$65,$F$2:$G$43,2,FALSE)+ROW()-2)),\"\")","v":{"$error":"#N/A"}},{"$f":"IF(INDIRECT(\"c\" & (VLOOKUP(Switch!$D$66,$F$2:$G$43,2,FALSE)+ROW()-2))=Switch!$D$66,INDIRECT(\"a\" & (VLOOKUP(Switch!$D$66,$F$2:$G$43,2,FALSE)+ROW()-2)),\"\")","v":{"$error":"#N/A"}}]
[null,null,null,{"$f":"ROW()","v":567},null,null,{"$f":"VLOOKUP(F567,$C$2:$D$637,2,FALSE)","v":{"$error":"#N/A"}},{"$f":"IF(INDIRECT(\"c\" & (VLOOKUP(Switch!$D$26,$F$2:$G$43,2,FALSE)+ROW()-2))=Switch!$D$26,INDIRECT(\"a\" & (VLOOKUP(Switch!$D$26,$F$2:$G$43,2,FALSE)+ROW()-2)),\"\")","v":{"$error":"#N/A"}},{"$f":"IF(INDIRECT(\"c\" & (VLOOKUP(Switch!$D$27,$F$2:$G$43,2,FALSE)+ROW()-2))=Switch!$D$27,INDIRECT(\"a\" & (VLOOKUP(Switch!$D$27,$F$2:$G$43,2,FALSE)+ROW()-2)),\"\")","v":{"$error":"#N/A"}},{"$f":"IF(INDIRECT(\"c\" & (VLOOKUP(Switch!$D$28,$F$2:$G$43,2,FALSE)+ROW()-2))=Switch!$D$28,INDIRECT(\"a\" & (VLOOKUP(Switch!$D$28,$F$2:$G$43,2,FALSE)+ROW()-2)),\"\")","v":{"$error":"#N/A"}},{"$f":"IF(INDIRECT(\"c\" & (VLOOKUP(Switch!$D$29,$F$2:$G$43,2,FALSE)+ROW()-2))=Switch!$D$29,INDIRECT(\"a\" & (VLOOKUP(Switch!$D$29,$F$2:$G$43,2,FALSE)+ROW()-2)),\"\")","v":{"$error":"#N/A"}},{"$f":"IF(INDIRECT(\"c\" & (VLOOKUP(Switch!$D$30,$F$2:$G$43,2,FALSE)+ROW()-2))=Switch!$D$30,INDIRECT(\"a\" & (VLOOKUP(Switch!$D$30,$F$2:$G$43,2,FALSE)+ROW()-2)),\"\")","v":{"$error":"#N/A"}},{"$f":"IF(INDIRECT(\"c\" & (VLOOKUP(Switch!$D$31,$F$2:$G$43,2,FALSE)+ROW()-2))=Switch!$D$31,INDIRECT(\"a\" & (VLOOKUP(Switch!$D$31,$F$2:$G$43,2,FALSE)+ROW()-2)),\"\")","v":{"$error":"#N/A"}},{"$f":"IF(INDIRECT(\"c\" & (VLOOKUP(Switch!$D$32,$F$2:$G$43,2,FALSE)+ROW()-2))=Switch!$D$32,INDIRECT(\"a\" & (VLOOKUP(Switch!$D$32,$F$2:$G$43,2,FALSE)+ROW()-2)),\"\")","v":{"$error":"#N/A"}},{"$f":"IF(INDIRECT(\"c\" & (VLOOKUP(Switch!$D$33,$F$2:$G$43,2,FALSE)+ROW()-2))=Switch!$D$33,INDIRECT(\"a\" & (VLOOKUP(Switch!$D$33,$F$2:$G$43,2,FALSE)+ROW()-2)),\"\")","v":{"$error":"#N/A"}},{"$f":"IF(INDIRECT(\"c\" & (VLOOKUP(Switch!$D$34,$F$2:$G$43,2,FALSE)+ROW()-2))=Switch!$D$34,INDIRECT(\"a\" & (VLOOKUP(Switch!$D$34,$F$2:$G$43,2,FALSE)+ROW()-2)),\"\")","v":{"$error":"#N/A"}},{"$f":"IF(INDIRECT(\"c\" & (VLOOKUP(Switch!$D$35,$F$2:$G$43,2,FALSE)+ROW()-2))=Switch!$D$35,INDIRECT(\"a\" & (VLOOKUP(Switch!$D$35,$F$2:$G$43,2,FALSE)+ROW()-2)),\"\")","v":{"$error":"#N/A"}},{"$f":"IF(INDIRECT(\"c\" & (VLOOKUP(Switch!$D$36,$F$2:$G$43,2,FALSE)+ROW()-2))=Switch!$D$36,INDIRECT(\"a\" & (VLOOKUP(Switch!$D$36,$F$2:$G$43,2,FALSE)+ROW()-2)),\"\")","v":{"$error":"#N/A"}},{"$f":"IF(INDIRECT(\"c\" & (VLOOKUP(Switch!$D$37,$F$2:$G$43,2,FALSE)+ROW()-2))=Switch!$D$37,INDIRECT(\"a\" & (VLOOKUP(Switch!$D$37,$F$2:$G$43,2,FALSE)+ROW()-2)),\"\")","v":{"$error":"#N/A"}},{"$f":"IF(INDIRECT(\"c\" & (VLOOKUP(Switch!$D$38,$F$2:$G$43,2,FALSE)+ROW()-2))=Switch!$D$38,INDIRECT(\"a\" & (VLOOKUP(Switch!$D$38,$F$2:$G$43,2,FALSE)+ROW()-2)),\"\")","v":{"$error":"#N/A"}},{"$f":"IF(INDIRECT(\"c\" & (VLOOKUP(Switch!$D$39,$F$2:$G$43,2,FALSE)+ROW()-2))=Switch!$D$39,INDIRECT(\"a\" & (VLOOKUP(Switch!$D$39,$F$2:$G$43,2,FALSE)+ROW()-2)),\"\")","v":{"$error":"#N/A"}},{"$f":"IF(INDIRECT(\"c\" & (VLOOKUP(Switch!$D$40,$F$2:$G$43,2,FALSE)+ROW()-2))=Switch!$D$40,INDIRECT(\"a\" & (VLOOKUP(Switch!$D$40,$F$2:$G$43,2,FALSE)+ROW()-2)),\"\")","v":{"$error":"#N/A"}},{"$f":"IF(INDIRECT(\"c\" & (VLOOKUP(Switch!$D$52,$F$2:$G$43,2,FALSE)+ROW()-2))=Switch!$D$52,INDIRECT(\"a\" & (VLOOKUP(Switch!$D$52,$F$2:$G$43,2,FALSE)+ROW()-2)),\"\")","v":{"$error":"#N/A"}},{"$f":"IF(INDIRECT(\"c\" & (VLOOKUP(Switch!$D$53,$F$2:$G$43,2,FALSE)+ROW()-2))=Switch!$D$53,INDIRECT(\"a\" & (VLOOKUP(Switch!$D$53,$F$2:$G$43,2,FALSE)+ROW()-2)),\"\")","v":{"$error":"#N/A"}},{"$f":"IF(INDIRECT(\"c\" & (VLOOKUP(Switch!$D$54,$F$2:$G$43,2,FALSE)+ROW()-2))=Switch!$D$54,INDIRECT(\"a\" & (VLOOKUP(Switch!$D$54,$F$2:$G$43,2,FALSE)+ROW()-2)),\"\")","v":{"$error":"#N/A"}},{"$f":"IF(INDIRECT(\"c\" & (VLOOKUP(Switch!$D$55,$F$2:$G$43,2,FALSE)+ROW()-2))=Switch!$D$55,INDIRECT(\"a\" & (VLOOKUP(Switch!$D$55,$F$2:$G$43,2,FALSE)+ROW()-2)),\"\")","v":{"$error":"#N/A"}},{"$f":"IF(INDIRECT(\"c\" & (VLOOKUP(Switch!$D$56,$F$2:$G$43,2,FALSE)+ROW()-2))=Switch!$D$56,INDIRECT(\"a\" & (VLOOKUP(Switch!$D$56,$F$2:$G$43,2,FALSE)+ROW()-2)),\"\")","v":{"$error":"#N/A"}},{"$f":"IF(INDIRECT(\"c\" & (VLOOKUP(Switch!$D$57,$F$2:$G$43,2,FALSE)+ROW()-2))=Switch!$D$57,INDIRECT(\"a\" & (VLOOKUP(Switch!$D$57,$F$2:$G$43,2,FALSE)+ROW()-2)),\"\")","v":{"$error":"#N/A"}},{"$f":"IF(INDIRECT(\"c\" & (VLOOKUP(Switch!$D$58,$F$2:$G$43,2,FALSE)+ROW()-2))=Switch!$D$58,INDIRECT(\"a\" & (VLOOKUP(Switch!$D$58,$F$2:$G$43,2,FALSE)+ROW()-2)),\"\")","v":{"$error":"#N/A"}},{"$f":"IF(INDIRECT(\"c\" & (VLOOKUP(Switch!$D$59,$F$2:$G$43,2,FALSE)+ROW()-2))=Switch!$D$59,INDIRECT(\"a\" & (VLOOKUP(Switch!$D$59,$F$2:$G$43,2,FALSE)+ROW()-2)),\"\")","v":{"$error":"#N/A"}},{"$f":"IF(INDIRECT(\"c\" & (VLOOKUP(Switch!$D$60,$F$2:$G$43,2,FALSE)+ROW()-2))=Switch!$D$60,INDIRECT(\"a\" & (VLOOKUP(Switch!$D$60,$F$2:$G$43,2,FALSE)+ROW()-2)),\"\")","v":{"$error":"#N/A"}},{"$f":"IF(INDIRECT(\"c\" & (VLOOKUP(Switch!$D$61,$F$2:$G$43,2,FALSE)+ROW()-2))=Switch!$D$61,INDIRECT(\"a\" & (VLOOKUP(Switch!$D$61,$F$2:$G$43,2,FALSE)+ROW()-2)),\"\")","v":{"$error":"#N/A"}},{"$f":"IF(INDIRECT(\"c\" & (VLOOKUP(Switch!$D$62,$F$2:$G$43,2,FALSE)+ROW()-2))=Switch!$D$62,INDIRECT(\"a\" & (VLOOKUP(Switch!$D$62,$F$2:$G$43,2,FALSE)+ROW()-2)),\"\")","v":{"$error":"#N/A"}},{"$f":"IF(INDIRECT(\"c\" & (VLOOKUP(Switch!$D$63,$F$2:$G$43,2,FALSE)+ROW()-2))=Switch!$D$63,INDIRECT(\"a\" & (VLOOKUP(Switch!$D$63,$F$2:$G$43,2,FALSE)+ROW()-2)),\"\")","v":{"$error":"#N/A"}},{"$f":"IF(INDIRECT(\"c\" & (VLOOKUP(Switch!$D$64,$F$2:$G$43,2,FALSE)+ROW()-2))=Switch!$D$64,INDIRECT(\"a\" & (VLOOKUP(Switch!$D$64,$F$2:$G$43,2,FALSE)+ROW()-2)),\"\")","v":{"$error":"#N/A"}},{"$f":"IF(INDIRECT(\"c\" & (VLOOKUP(Switch!$D$65,$F$2:$G$43,2,FALSE)+ROW()-2))=Switch!$D$65,INDIRECT(\"a\" & (VLOOKUP(Switch!$D$65,$F$2:$G$43,2,FALSE)+ROW()-2)),\"\")","v":{"$error":"#N/A"}},{"$f":"IF(INDIRECT(\"c\" & (VLOOKUP(Switch!$D$66,$F$2:$G$43,2,FALSE)+ROW()-2))=Switch!$D$66,INDIRECT(\"a\" & (VLOOKUP(Switch!$D$66,$F$2:$G$43,2,FALSE)+ROW()-2)),\"\")","v":{"$error":"#N/A"}}]
[null,null,null,{"$f":"ROW()","v":568},null,null,{"$f":"VLOOKUP(F568,$C$2:$D$637,2,FALSE)","v":{"$error":"#N/A"}},{"$f":"IF(INDIRECT(\"c\" & (VLOOKUP(Switch!$D$26,$F$2:$G$43,2,FALSE)+ROW()-2))=Switch!$D$26,INDIRECT(\"a\" & (VLOOKUP(Switch!$D$26,$F$2:$G$43,2,FALSE)+ROW()-2)),\"\")","v":{"$error":"#N/A"}},{"$f":"IF(INDIRECT(\"c\" & (VLOOKUP(Switch!$D$27,$F$2:$G$43,2,FALSE)+ROW()-2))=Switch!$D$27,INDIRECT(\"a\" & (VLOOKUP(Switch!$D$27,$F$2:$G$43,2,FALSE)+ROW()-2)),\"\")","v":{"$error":"#N/A"}},{"$f":"IF(INDIRECT(\"c\" & (VLOOKUP(Switch!$D$28,$F$2:$G$43,2,FALSE)+ROW()-2))=Switch!$D$28,INDIRECT(\"a\" & (VLOOKUP(Switch!$D$28,$F$2:$G$43,2,FALSE)+ROW()-2)),\"\")","v":{"$error":"#N/A"}},{"$f":"IF(INDIRECT(\"c\" & (VLOOKUP(Switch!$D$29,$F$2:$G$43,2,FALSE)+ROW()-2))=Switch!$D$29,INDIRECT(\"a\" & (VLOOKUP(Switch!$D$29,$F$2:$G$43,2,FALSE)+ROW()-2)),\"\")","v":{"$error":"#N/A"}},{"$f":"IF(INDIRECT(\"c\" & (VLOOKUP(Switch!$D$30,$F$2:$G$43,2,FALSE)+ROW()-2))=Switch!$D$30,INDIRECT(\"a\" & (VLOOKUP(Switch!$D$30,$F$2:$G$43,2,FALSE)+ROW()-2)),\"\")","v":{"$error":"#N/A"}},{"$f":"IF(INDIRECT(\"c\" & (VLOOKUP(Switch!$D$31,$F$2:$G$43,2,FALSE)+ROW()-2))=Switch!$D$31,INDIRECT(\"a\" & (VLOOKUP(Switch!$D$31,$F$2:$G$43,2,FALSE)+ROW()-2)),\"\")","v":{"$error":"#N/A"}},{"$f":"IF(INDIRECT(\"c\" & (VLOOKUP(Switch!$D$32,$F$2:$G$43,2,FALSE)+ROW()-2))=Switch!$D$32,INDIRECT(\"a\" & (VLOOKUP(Switch!$D$32,$F$2:$G$43,2,FALSE)+ROW()-2)),\"\")","v":{"$error":"#N/A"}},{"$f":"IF(INDIRECT(\"c\" & (VLOOKUP(Switch!$D$33,$F$2:$G$43,2,FALSE)+ROW()-2))=Switch!$D$33,INDIRECT(\"a\" & (VLOOKUP(Switch!$D$33,$F$2:$G$43,2,FALSE)+ROW()-2)),\"\")","v":{"$error":"#N/A"}},{"$f":"IF(INDIRECT(\"c\" & (VLOOKUP(Switch!$D$34,$F$2:$G$43,2,FALSE)+ROW()-2))=Switch!$D$34,INDIRECT(\"a\" & (VLOOKUP(Switch!$D$34,$F$2:$G$43,2,FALSE)+ROW()-2)),\"\")","v":{"$error":"#N/A"}},{"$f":"IF(INDIRECT(\"c\" & (VLOOKUP(Switch!$D$35,$F$2:$G$43,2,FALSE)+ROW()-2))=Switch!$D$35,INDIRECT(\"a\" & (VLOOKUP(Switch!$D$35,$F$2:$G$43,2,FALSE)+ROW()-2)),\"\")","v":{"$error":"#N/A"}},{"$f":"IF(INDIRECT(\"c\" & (VLOOKUP(Switch!$D$36,$F$2:$G$43,2,FALSE)+ROW()-2))=Switch!$D$36,INDIRECT(\"a\" & (VLOOKUP(Switch!$D$36,$F$2:$G$43,2,FALSE)+ROW()-2)),\"\")","v":{"$error":"#N/A"}},{"$f":"IF(INDIRECT(\"c\" & (VLOOKUP(Switch!$D$37,$F$2:$G$43,2,FALSE)+ROW()-2))=Switch!$D$37,INDIRECT(\"a\" & (VLOOKUP(Switch!$D$37,$F$2:$G$43,2,FALSE)+ROW()-2)),\"\")","v":{"$error":"#N/A"}},{"$f":"IF(INDIRECT(\"c\" & (VLOOKUP(Switch!$D$38,$F$2:$G$43,2,FALSE)+ROW()-2))=Switch!$D$38,INDIRECT(\"a\" & (VLOOKUP(Switch!$D$38,$F$2:$G$43,2,FALSE)+ROW()-2)),\"\")","v":{"$error":"#N/A"}},{"$f":"IF(INDIRECT(\"c\" & (VLOOKUP(Switch!$D$39,$F$2:$G$43,2,FALSE)+ROW()-2))=Switch!$D$39,INDIRECT(\"a\" & (VLOOKUP(Switch!$D$39,$F$2:$G$43,2,FALSE)+ROW()-2)),\"\")","v":{"$error":"#N/A"}},{"$f":"IF(INDIRECT(\"c\" & (VLOOKUP(Switch!$D$40,$F$2:$G$43,2,FALSE)+ROW()-2))=Switch!$D$40,INDIRECT(\"a\" & (VLOOKUP(Switch!$D$40,$F$2:$G$43,2,FALSE)+ROW()-2)),\"\")","v":{"$error":"#N/A"}},{"$f":"IF(INDIRECT(\"c\" & (VLOOKUP(Switch!$D$52,$F$2:$G$43,2,FALSE)+ROW()-2))=Switch!$D$52,INDIRECT(\"a\" & (VLOOKUP(Switch!$D$52,$F$2:$G$43,2,FALSE)+ROW()-2)),\"\")","v":{"$error":"#N/A"}},{"$f":"IF(INDIRECT(\"c\" & (VLOOKUP(Switch!$D$53,$F$2:$G$43,2,FALSE)+ROW()-2))=Switch!$D$53,INDIRECT(\"a\" & (VLOOKUP(Switch!$D$53,$F$2:$G$43,2,FALSE)+ROW()-2)),\"\")","v":{"$error":"#N/A"}},{"$f":"IF(INDIRECT(\"c\" & (VLOOKUP(Switch!$D$54,$F$2:$G$43,2,FALSE)+ROW()-2))=Switch!$D$54,INDIRECT(\"a\" & (VLOOKUP(Switch!$D$54,$F$2:$G$43,2,FALSE)+ROW()-2)),\"\")","v":{"$error":"#N/A"}},{"$f":"IF(INDIRECT(\"c\" & (VLOOKUP(Switch!$D$55,$F$2:$G$43,2,FALSE)+ROW()-2))=Switch!$D$55,INDIRECT(\"a\" & (VLOOKUP(Switch!$D$55,$F$2:$G$43,2,FALSE)+ROW()-2)),\"\")","v":{"$error":"#N/A"}},{"$f":"IF(INDIRECT(\"c\" & (VLOOKUP(Switch!$D$56,$F$2:$G$43,2,FALSE)+ROW()-2))=Switch!$D$56,INDIRECT(\"a\" & (VLOOKUP(Switch!$D$56,$F$2:$G$43,2,FALSE)+ROW()-2)),\"\")","v":{"$error":"#N/A"}},{"$f":"IF(INDIRECT(\"c\" & (VLOOKUP(Switch!$D$57,$F$2:$G$43,2,FALSE)+ROW()-2))=Switch!$D$57,INDIRECT(\"a\" & (VLOOKUP(Switch!$D$57,$F$2:$G$43,2,FALSE)+ROW()-2)),\"\")","v":{"$error":"#N/A"}},{"$f":"IF(INDIRECT(\"c\" & (VLOOKUP(Switch!$D$58,$F$2:$G$43,2,FALSE)+ROW()-2))=Switch!$D$58,INDIRECT(\"a\" & (VLOOKUP(Switch!$D$58,$F$2:$G$43,2,FALSE)+ROW()-2)),\"\")","v":{"$error":"#N/A"}},{"$f":"IF(INDIRECT(\"c\" & (VLOOKUP(Switch!$D$59,$F$2:$G$43,2,FALSE)+ROW()-2))=Switch!$D$59,INDIRECT(\"a\" & (VLOOKUP(Switch!$D$59,$F$2:$G$43,2,FALSE)+ROW()-2)),\"\")","v":{"$error":"#N/A"}},{"$f":"IF(INDIRECT(\"c\" & (VLOOKUP(Switch!$D$60,$F$2:$G$43,2,FALSE)+ROW()-2))=Switch!$D$60,INDIRECT(\"a\" & (VLOOKUP(Switch!$D$60,$F$2:$G$43,2,FALSE)+ROW()-2)),\"\")","v":{"$error":"#N/A"}},{"$f":"IF(INDIRECT(\"c\" & (VLOOKUP(Switch!$D$61,$F$2:$G$43,2,FALSE)+ROW()-2))=Switch!$D$61,INDIRECT(\"a\" & (VLOOKUP(Switch!$D$61,$F$2:$G$43,2,FALSE)+ROW()-2)),\"\")","v":{"$error":"#N/A"}},{"$f":"IF(INDIRECT(\"c\" & (VLOOKUP(Switch!$D$62,$F$2:$G$43,2,FALSE)+ROW()-2))=Switch!$D$62,INDIRECT(\"a\" & (VLOOKUP(Switch!$D$62,$F$2:$G$43,2,FALSE)+ROW()-2)),\"\")","v":{"$error":"#N/A"}},{"$f":"IF(INDIRECT(\"c\" & (VLOOKUP(Switch!$D$63,$F$2:$G$43,2,FALSE)+ROW()-2))=Switch!$D$63,INDIRECT(\"a\" & (VLOOKUP(Switch!$D$63,$F$2:$G$43,2,FALSE)+ROW()-2)),\"\")","v":{"$error":"#N/A"}},{"$f":"IF(INDIRECT(\"c\" & (VLOOKUP(Switch!$D$64,$F$2:$G$43,2,FALSE)+ROW()-2))=Switch!$D$64,INDIRECT(\"a\" & (VLOOKUP(Switch!$D$64,$F$2:$G$43,2,FALSE)+ROW()-2)),\"\")","v":{"$error":"#N/A"}},{"$f":"IF(INDIRECT(\"c\" & (VLOOKUP(Switch!$D$65,$F$2:$G$43,2,FALSE)+ROW()-2))=Switch!$D$65,INDIRECT(\"a\" & (VLOOKUP(Switch!$D$65,$F$2:$G$43,2,FALSE)+ROW()-2)),\"\")","v":{"$error":"#N/A"}},{"$f":"IF(INDIRECT(\"c\" & (VLOOKUP(Switch!$D$66,$F$2:$G$43,2,FALSE)+ROW()-2))=Switch!$D$66,INDIRECT(\"a\" & (VLOOKUP(Switch!$D$66,$F$2:$G$43,2,FALSE)+ROW()-2)),\"\")","v":{"$error":"#N/A"}}]
[null,null,null,{"$f":"ROW()","v":569},null,null,{"$f":"VLOOKUP(F569,$C$2:$D$637,2,FALSE)","v":{"$error":"#N/A"}},{"$f":"IF(INDIRECT(\"c\" & (VLOOKUP(Switch!$D$26,$F$2:$G$43,2,FALSE)+ROW()-2))=Switch!$D$26,INDIRECT(\"a\" & (VLOOKUP(Switch!$D$26,$F$2:$G$43,2,FALSE)+ROW()-2)),\"\")","v":{"$error":"#N/A"}},{"$f":"IF(INDIRECT(\"c\" & (VLOOKUP(Switch!$D$27,$F$2:$G$43,2,FALSE)+ROW()-2))=Switch!$D$27,INDIRECT(\"a\" & (VLOOKUP(Switch!$D$27,$F$2:$G$43,2,FALSE)+ROW()-2)),\"\")","v":{"$error":"#N/A"}},{"$f":"IF(INDIRECT(\"c\" & (VLOOKUP(Switch!$D$28,$F$2:$G$43,2,FALSE)+ROW()-2))=Switch!$D$28,INDIRECT(\"a\" & (VLOOKUP(Switch!$D$28,$F$2:$G$43,2,FALSE)+ROW()-2)),\"\")","v":{"$error":"#N/A"}},{"$f":"IF(INDIRECT(\"c\" & (VLOOKUP(Switch!$D$29,$F$2:$G$43,2,FALSE)+ROW()-2))=Switch!$D$29,INDIRECT(\"a\" & (VLOOKUP(Switch!$D$29,$F$2:$G$43,2,FALSE)+ROW()-2)),\"\")","v":{"$error":"#N/A"}},{"$f":"IF(INDIRECT(\"c\" & (VLOOKUP(Switch!$D$30,$F$2:$G$43,2,FALSE)+ROW()-2))=Switch!$D$30,INDIRECT(\"a\" & (VLOOKUP(Switch!$D$30,$F$2:$G$43,2,FALSE)+ROW()-2)),\"\")","v":{"$error":"#N/A"}},{"$f":"IF(INDIRECT(\"c\" & (VLOOKUP(Switch!$D$31,$F$2:$G$43,2,FALSE)+ROW()-2))=Switch!$D$31,INDIRECT(\"a\" & (VLOOKUP(Switch!$D$31,$F$2:$G$43,2,FALSE)+ROW()-2)),\"\")","v":{"$error":"#N/A"}},{"$f":"IF(INDIRECT(\"c\" & (VLOOKUP(Switch!$D$32,$F$2:$G$43,2,FALSE)+ROW()-2))=Switch!$D$32,INDIRECT(\"a\" & (VLOOKUP(Switch!$D$32,$F$2:$G$43,2,FALSE)+ROW()-2)),\"\")","v":{"$error":"#N/A"}},{"$f":"IF(INDIRECT(\"c\" & (VLOOKUP(Switch!$D$33,$F$2:$G$43,2,FALSE)+ROW()-2))=Switch!$D$33,INDIRECT(\"a\" & (VLOOKUP(Switch!$D$33,$F$2:$G$43,2,FALSE)+ROW()-2)),\"\")","v":{"$error":"#N/A"}},{"$f":"IF(INDIRECT(\"c\" & (VLOOKUP(Switch!$D$34,$F$2:$G$43,2,FALSE)+ROW()-2))=Switch!$D$34,INDIRECT(\"a\" & (VLOOKUP(Switch!$D$34,$F$2:$G$43,2,FALSE)+ROW()-2)),\"\")","v":{"$error":"#N/A"}},{"$f":"IF(INDIRECT(\"c\" & (VLOOKUP(Switch!$D$35,$F$2:$G$43,2,FALSE)+ROW()-2))=Switch!$D$35,INDIRECT(\"a\" & (VLOOKUP(Switch!$D$35,$F$2:$G$43,2,FALSE)+ROW()-2)),\"\")","v":{"$error":"#N/A"}},{"$f":"IF(INDIRECT(\"c\" & (VLOOKUP(Switch!$D$36,$F$2:$G$43,2,FALSE)+ROW()-2))=Switch!$D$36,INDIRECT(\"a\" & (VLOOKUP(Switch!$D$36,$F$2:$G$43,2,FALSE)+ROW()-2)),\"\")","v":{"$error":"#N/A"}},{"$f":"IF(INDIRECT(\"c\" & (VLOOKUP(Switch!$D$37,$F$2:$G$43,2,FALSE)+ROW()-2))=Switch!$D$37,INDIRECT(\"a\" & (VLOOKUP(Switch!$D$37,$F$2:$G$43,2,FALSE)+ROW()-2)),\"\")","v":{"$error":"#N/A"}},{"$f":"IF(INDIRECT(\"c\" & (VLOOKUP(Switch!$D$38,$F$2:$G$43,2,FALSE)+ROW()-2))=Switch!$D$38,INDIRECT(\"a\" & (VLOOKUP(Switch!$D$38,$F$2:$G$43,2,FALSE)+ROW()-2)),\"\")","v":{"$error":"#N/A"}},{"$f":"IF(INDIRECT(\"c\" & (VLOOKUP(Switch!$D$39,$F$2:$G$43,2,FALSE)+ROW()-2))=Switch!$D$39,INDIRECT(\"a\" & (VLOOKUP(Switch!$D$39,$F$2:$G$43,2,FALSE)+ROW()-2)),\"\")","v":{"$error":"#N/A"}},{"$f":"IF(INDIRECT(\"c\" & (VLOOKUP(Switch!$D$40,$F$2:$G$43,2,FALSE)+ROW()-2))=Switch!$D$40,INDIRECT(\"a\" & (VLOOKUP(Switch!$D$40,$F$2:$G$43,2,FALSE)+ROW()-2)),\"\")","v":{"$error":"#N/A"}},{"$f":"IF(INDIRECT(\"c\" & (VLOOKUP(Switch!$D$52,$F$2:$G$43,2,FALSE)+ROW()-2))=Switch!$D$52,INDIRECT(\"a\" & (VLOOKUP(Switch!$D$52,$F$2:$G$43,2,FALSE)+ROW()-2)),\"\")","v":{"$error":"#N/A"}},{"$f":"IF(INDIRECT(\"c\" & (VLOOKUP(Switch!$D$53,$F$2:$G$43,2,FALSE)+ROW()-2))=Switch!$D$53,INDIRECT(\"a\" & (VLOOKUP(Switch!$D$53,$F$2:$G$43,2,FALSE)+ROW()-2)),\"\")","v":{"$error":"#N/A"}},{"$f":"IF(INDIRECT(\"c\" & (VLOOKUP(Switch!$D$54,$F$2:$G$43,2,FALSE)+ROW()-2))=Switch!$D$54,INDIRECT(\"a\" & (VLOOKUP(Switch!$D$54,$F$2:$G$43,2,FALSE)+ROW()-2)),\"\")","v":{"$error":"#N/A"}},{"$f":"IF(INDIRECT(\"c\" & (VLOOKUP(Switch!$D$55,$F$2:$G$43,2,FALSE)+ROW()-2))=Switch!$D$55,INDIRECT(\"a\" & (VLOOKUP(Switch!$D$55,$F$2:$G$43,2,FALSE)+ROW()-2)),\"\")","v":{"$error":"#N/A"}},{"$f":"IF(INDIRECT(\"c\" & (VLOOKUP(Switch!$D$56,$F$2:$G$43,2,FALSE)+ROW()-2))=Switch!$D$56,INDIRECT(\"a\" & (VLOOKUP(Switch!$D$56,$F$2:$G$43,2,FALSE)+ROW()-2)),\"\")","v":{"$error":"#N/A"}},{"$f":"IF(INDIRECT(\"c\" & (VLOOKUP(Switch!$D$57,$F$2:$G$43,2,FALSE)+ROW()-2))=Switch!$D$57,INDIRECT(\"a\" & (VLOOKUP(Switch!$D$57,$F$2:$G$43,2,FALSE)+ROW()-2)),\"\")","v":{"$error":"#N/A"}},{"$f":"IF(INDIRECT(\"c\" & (VLOOKUP(Switch!$D$58,$F$2:$G$43,2,FALSE)+ROW()-2))=Switch!$D$58,INDIRECT(\"a\" & (VLOOKUP(Switch!$D$58,$F$2:$G$43,2,FALSE)+ROW()-2)),\"\")","v":{"$error":"#N/A"}},{"$f":"IF(INDIRECT(\"c\" & (VLOOKUP(Switch!$D$59,$F$2:$G$43,2,FALSE)+ROW()-2))=Switch!$D$59,INDIRECT(\"a\" & (VLOOKUP(Switch!$D$59,$F$2:$G$43,2,FALSE)+ROW()-2)),\"\")","v":{"$error":"#N/A"}},{"$f":"IF(INDIRECT(\"c\" & (VLOOKUP(Switch!$D$60,$F$2:$G$43,2,FALSE)+ROW()-2))=Switch!$D$60,INDIRECT(\"a\" & (VLOOKUP(Switch!$D$60,$F$2:$G$43,2,FALSE)+ROW()-2)),\"\")","v":{"$error":"#N/A"}},{"$f":"IF(INDIRECT(\"c\" & (VLOOKUP(Switch!$D$61,$F$2:$G$43,2,FALSE)+ROW()-2))=Switch!$D$61,INDIRECT(\"a\" & (VLOOKUP(Switch!$D$61,$F$2:$G$43,2,FALSE)+ROW()-2)),\"\")","v":{"$error":"#N/A"}},{"$f":"IF(INDIRECT(\"c\" & (VLOOKUP(Switch!$D$62,$F$2:$G$43,2,FALSE)+ROW()-2))=Switch!$D$62,INDIRECT(\"a\" & (VLOOKUP(Switch!$D$62,$F$2:$G$43,2,FALSE)+ROW()-2)),\"\")","v":{"$error":"#N/A"}},{"$f":"IF(INDIRECT(\"c\" & (VLOOKUP(Switch!$D$63,$F$2:$G$43,2,FALSE)+ROW()-2))=Switch!$D$63,INDIRECT(\"a\" & (VLOOKUP(Switch!$D$63,$F$2:$G$43,2,FALSE)+ROW()-2)),\"\")","v":{"$error":"#N/A"}},{"$f":"IF(INDIRECT(\"c\" & (VLOOKUP(Switch!$D$64,$F$2:$G$43,2,FALSE)+ROW()-2))=Switch!$D$64,INDIRECT(\"a\" & (VLOOKUP(Switch!$D$64,$F$2:$G$43,2,FALSE)+ROW()-2)),\"\")","v":{"$error":"#N/A"}},{"$f":"IF(INDIRECT(\"c\" & (VLOOKUP(Switch!$D$65,$F$2:$G$43,2,FALSE)+ROW()-2))=Switch!$D$65,INDIRECT(\"a\" & (VLOOKUP(Switch!$D$65,$F$2:$G$43,2,FALSE)+ROW()-2)),\"\")","v":{"$error":"#N/A"}},{"$f":"IF(INDIRECT(\"c\" & (VLOOKUP(Switch!$D$66,$F$2:$G$43,2,FALSE)+ROW()-2))=Switch!$D$66,INDIRECT(\"a\" & (VLOOKUP(Switch!$D$66,$F$2:$G$43,2,FALSE)+ROW()-2)),\"\")","v":{"$error":"#N/A"}}]
[null,null,null,{"$f":"ROW()","v":570},null,null,{"$f":"VLOOKUP(F570,$C$2:$D$637,2,FALSE)","v":{"$error":"#N/A"}},{"$f":"IF(INDIRECT(\"c\" & (VLOOKUP(Switch!$D$26,$F$2:$G$43,2,FALSE)+ROW()-2))=Switch!$D$26,INDIRECT(\"a\" & (VLOOKUP(Switch!$D$26,$F$2:$G$43,2,FALSE)+ROW()-2)),\"\")","v":{"$error":"#N/A"}},{"$f":"IF(INDIRECT(\"c\" & (VLOOKUP(Switch!$D$27,$F$2:$G$43,2,FALSE)+ROW()-2))=Switch!$D$27,INDIRECT(\"a\" & (VLOOKUP(Switch!$D$27,$F$2:$G$43,2,FALSE)+ROW()-2)),\"\")","v":{"$error":"#N/A"}},{"$f":"IF(INDIRECT(\"c\" & (VLOOKUP(Switch!$D$28,$F$2:$G$43,2,FALSE)+ROW()-2))=Switch!$D$28,INDIRECT(\"a\" & (VLOOKUP(Switch!$D$28,$F$2:$G$43,2,FALSE)+ROW()-2)),\"\")","v":{"$error":"#N/A"}},{"$f":"IF(INDIRECT(\"c\" & (VLOOKUP(Switch!$D$29,$F$2:$G$43,2,FALSE)+ROW()-2))=Switch!$D$29,INDIRECT(\"a\" & (VLOOKUP(Switch!$D$29,$F$2:$G$43,2,FALSE)+ROW()-2)),\"\")","v":{"$error":"#N/A"}},{"$f":"IF(INDIRECT(\"c\" & (VLOOKUP(Switch!$D$30,$F$2:$G$43,2,FALSE)+ROW()-2))=Switch!$D$30,INDIRECT(\"a\" & (VLOOKUP(Switch!$D$30,$F$2:$G$43,2,FALSE)+ROW()-2)),\"\")","v":{"$error":"#N/A"}},{"$f":"IF(INDIRECT(\"c\" & (VLOOKUP(Switch!$D$31,$F$2:$G$43,2,FALSE)+ROW()-2))=Switch!$D$31,INDIRECT(\"a\" & (VLOOKUP(Switch!$D$31,$F$2:$G$43,2,FALSE)+ROW()-2)),\"\")","v":{"$error":"#N/A"}},{"$f":"IF(INDIRECT(\"c\" & (VLOOKUP(Switch!$D$32,$F$2:$G$43,2,FALSE)+ROW()-2))=Switch!$D$32,INDIRECT(\"a\" & (VLOOKUP(Switch!$D$32,$F$2:$G$43,2,FALSE)+ROW()-2)),\"\")","v":{"$error":"#N/A"}},{"$f":"IF(INDIRECT(\"c\" & (VLOOKUP(Switch!$D$33,$F$2:$G$43,2,FALSE)+ROW()-2))=Switch!$D$33,INDIRECT(\"a\" & (VLOOKUP(Switch!$D$33,$F$2:$G$43,2,FALSE)+ROW()-2)),\"\")","v":{"$error":"#N/A"}},{"$f":"IF(INDIRECT(\"c\" & (VLOOKUP(Switch!$D$34,$F$2:$G$43,2,FALSE)+ROW()-2))=Switch!$D$34,INDIRECT(\"a\" & (VLOOKUP(Switch!$D$34,$F$2:$G$43,2,FALSE)+ROW()-2)),\"\")","v":{"$error":"#N/A"}},{"$f":"IF(INDIRECT(\"c\" & (VLOOKUP(Switch!$D$35,$F$2:$G$43,2,FALSE)+ROW()-2))=Switch!$D$35,INDIRECT(\"a\" & (VLOOKUP(Switch!$D$35,$F$2:$G$43,2,FALSE)+ROW()-2)),\"\")","v":{"$error":"#N/A"}},{"$f":"IF(INDIRECT(\"c\" & (VLOOKUP(Switch!$D$36,$F$2:$G$43,2,FALSE)+ROW()-2))=Switch!$D$36,INDIRECT(\"a\" & (VLOOKUP(Switch!$D$36,$F$2:$G$43,2,FALSE)+ROW()-2)),\"\")","v":{"$error":"#N/A"}},{"$f":"IF(INDIRECT(\"c\" & (VLOOKUP(Switch!$D$37,$F$2:$G$43,2,FALSE)+ROW()-2))=Switch!$D$37,INDIRECT(\"a\" & (VLOOKUP(Switch!$D$37,$F$2:$G$43,2,FALSE)+ROW()-2)),\"\")","v":{"$error":"#N/A"}},{"$f":"IF(INDIRECT(\"c\" & (VLOOKUP(Switch!$D$38,$F$2:$G$43,2,FALSE)+ROW()-2))=Switch!$D$38,INDIRECT(\"a\" & (VLOOKUP(Switch!$D$38,$F$2:$G$43,2,FALSE)+ROW()-2)),\"\")","v":{"$error":"#N/A"}},{"$f":"IF(INDIRECT(\"c\" & (VLOOKUP(Switch!$D$39,$F$2:$G$43,2,FALSE)+ROW()-2))=Switch!$D$39,INDIRECT(\"a\" & (VLOOKUP(Switch!$D$39,$F$2:$G$43,2,FALSE)+ROW()-2)),\"\")","v":{"$error":"#N/A"}},{"$f":"IF(INDIRECT(\"c\" & (VLOOKUP(Switch!$D$40,$F$2:$G$43,2,FALSE)+ROW()-2))=Switch!$D$40,INDIRECT(\"a\" & (VLOOKUP(Switch!$D$40,$F$2:$G$43,2,FALSE)+ROW()-2)),\"\")","v":{"$error":"#N/A"}},{"$f":"IF(INDIRECT(\"c\" & (VLOOKUP(Switch!$D$52,$F$2:$G$43,2,FALSE)+ROW()-2))=Switch!$D$52,INDIRECT(\"a\" & (VLOOKUP(Switch!$D$52,$F$2:$G$43,2,FALSE)+ROW()-2)),\"\")","v":{"$error":"#N/A"}},{"$f":"IF(INDIRECT(\"c\" & (VLOOKUP(Switch!$D$53,$F$2:$G$43,2,FALSE)+ROW()-2))=Switch!$D$53,INDIRECT(\"a\" & (VLOOKUP(Switch!$D$53,$F$2:$G$43,2,FALSE)+ROW()-2)),\"\")","v":{"$error":"#N/A"}},{"$f":"IF(INDIRECT(\"c\" & (VLOOKUP(Switch!$D$54,$F$2:$G$43,2,FALSE)+ROW()-2))=Switch!$D$54,INDIRECT(\"a\" & (VLOOKUP(Switch!$D$54,$F$2:$G$43,2,FALSE)+ROW()-2)),\"\")","v":{"$error":"#N/A"}},{"$f":"IF(INDIRECT(\"c\" & (VLOOKUP(Switch!$D$55,$F$2:$G$43,2,FALSE)+ROW()-2))=Switch!$D$55,INDIRECT(\"a\" & (VLOOKUP(Switch!$D$55,$F$2:$G$43,2,FALSE)+ROW()-2)),\"\")","v":{"$error":"#N/A"}},{"$f":"IF(INDIRECT(\"c\" & (VLOOKUP(Switch!$D$56,$F$2:$G$43,2,FALSE)+ROW()-2))=Switch!$D$56,INDIRECT(\"a\" & (VLOOKUP(Switch!$D$56,$F$2:$G$43,2,FALSE)+ROW()-2)),\"\")","v":{"$error":"#N/A"}},{"$f":"IF(INDIRECT(\"c\" & (VLOOKUP(Switch!$D$57,$F$2:$G$43,2,FALSE)+ROW()-2))=Switch!$D$57,INDIRECT(\"a\" & (VLOOKUP(Switch!$D$57,$F$2:$G$43,2,FALSE)+ROW()-2)),\"\")","v":{"$error":"#N/A"}},{"$f":"IF(INDIRECT(\"c\" & (VLOOKUP(Switch!$D$58,$F$2:$G$43,2,FALSE)+ROW()-2))=Switch!$D$58,INDIRECT(\"a\" & (VLOOKUP(Switch!$D$58,$F$2:$G$43,2,FALSE)+ROW()-2)),\"\")","v":{"$error":"#N/A"}},{"$f":"IF(INDIRECT(\"c\" & (VLOOKUP(Switch!$D$59,$F$2:$G$43,2,FALSE)+ROW()-2))=Switch!$D$59,INDIRECT(\"a\" & (VLOOKUP(Switch!$D$59,$F$2:$G$43,2,FALSE)+ROW()-2)),\"\")","v":{"$error":"#N/A"}},{"$f":"IF(INDIRECT(\"c\" & (VLOOKUP(Switch!$D$60,$F$2:$G$43,2,FALSE)+ROW()-2))=Switch!$D$60,INDIRECT(\"a\" & (VLOOKUP(Switch!$D$60,$F$2:$G$43,2,FALSE)+ROW()-2)),\"\")","v":{"$error":"#N/A"}},{"$f":"IF(INDIRECT(\"c\" & (VLOOKUP(Switch!$D$61,$F$2:$G$43,2,FALSE)+ROW()-2))=Switch!$D$61,INDIRECT(\"a\" & (VLOOKUP(Switch!$D$61,$F$2:$G$43,2,FALSE)+ROW()-2)),\"\")","v":{"$error":"#N/A"}},{"$f":"IF(INDIRECT(\"c\" & (VLOOKUP(Switch!$D$62,$F$2:$G$43,2,FALSE)+ROW()-2))=Switch!$D$62,INDIRECT(\"a\" & (VLOOKUP(Switch!$D$62,$F$2:$G$43,2,FALSE)+ROW()-2)),\"\")","v":{"$error":"#N/A"}},{"$f":"IF(INDIRECT(\"c\" & (VLOOKUP(Switch!$D$63,$F$2:$G$43,2,FALSE)+ROW()-2))=Switch!$D$63,INDIRECT(\"a\" & (VLOOKUP(Switch!$D$63,$F$2:$G$43,2,FALSE)+ROW()-2)),\"\")","v":{"$error":"#N/A"}},{"$f":"IF(INDIRECT(\"c\" & (VLOOKUP(Switch!$D$64,$F$2:$G$43,2,FALSE)+ROW()-2))=Switch!$D$64,INDIRECT(\"a\" & (VLOOKUP(Switch!$D$64,$F$2:$G$43,2,FALSE)+ROW()-2)),\"\")","v":{"$error":"#N/A"}},{"$f":"IF(INDIRECT(\"c\" & (VLOOKUP(Switch!$D$65,$F$2:$G$43,2,FALSE)+ROW()-2))=Switch!$D$65,INDIRECT(\"a\" & (VLOOKUP(Switch!$D$65,$F$2:$G$43,2,FALSE)+ROW()-2)),\"\")","v":{"$error":"#N/A"}},{"$f":"IF(INDIRECT(\"c\" & (VLOOKUP(Switch!$D$66,$F$2:$G$43,2,FALSE)+ROW()-2))=Switch!$D$66,INDIRECT(\"a\" & (VLOOKUP(Switch!$D$66,$F$2:$G$43,2,FALSE)+ROW()-2)),\"\")","v":{"$error":"#N/A"}}]
[null,null,null,{"$f":"ROW()","v":571},null,null,{"$f":"VLOOKUP(F571,$C$2:$D$637,2,FALSE)","v":{"$error":"#N/A"}},{"$f":"IF(INDIRECT(\"c\" & (VLOOKUP(Switch!$D$26,$F$2:$G$43,2,FALSE)+ROW()-2))=Switch!$D$26,INDIRECT(\"a\" & (VLOOKUP(Switch!$D$26,$F$2:$G$43,2,FALSE)+ROW()-2)),\"\")","v":{"$error":"#N/A"}},{"$f":"IF(INDIRECT(\"c\" & (VLOOKUP(Switch!$D$27,$F$2:$G$43,2,FALSE)+ROW()-2))=Switch!$D$27,INDIRECT(\"a\" & (VLOOKUP(Switch!$D$27,$F$2:$G$43,2,FALSE)+ROW()-2)),\"\")","v":{"$error":"#N/A"}},{"$f":"IF(INDIRECT(\"c\" & (VLOOKUP(Switch!$D$28,$F$2:$G$43,2,FALSE)+ROW()-2))=Switch!$D$28,INDIRECT(\"a\" & (VLOOKUP(Switch!$D$28,$F$2:$G$43,2,FALSE)+ROW()-2)),\"\")","v":{"$error":"#N/A"}},{"$f":"IF(INDIRECT(\"c\" & (VLOOKUP(Switch!$D$29,$F$2:$G$43,2,FALSE)+ROW()-2))=Switch!$D$29,INDIRECT(\"a\" & (VLOOKUP(Switch!$D$29,$F$2:$G$43,2,FALSE)+ROW()-2)),\"\")","v":{"$error":"#N/A"}},{"$f":"IF(INDIRECT(\"c\" & (VLOOKUP(Switch!$D$30,$F$2:$G$43,2,FALSE)+ROW()-2))=Switch!$D$30,INDIRECT(\"a\" & (VLOOKUP(Switch!$D$30,$F$2:$G$43,2,FALSE)+ROW()-2)),\"\")","v":{"$error":"#N/A"}},{"$f":"IF(INDIRECT(\"c\" & (VLOOKUP(Switch!$D$31,$F$2:$G$43,2,FALSE)+ROW()-2))=Switch!$D$31,INDIRECT(\"a\" & (VLOOKUP(Switch!$D$31,$F$2:$G$43,2,FALSE)+ROW()-2)),\"\")","v":{"$error":"#N/A"}},{"$f":"IF(INDIRECT(\"c\" & (VLOOKUP(Switch!$D$32,$F$2:$G$43,2,FALSE)+ROW()-2))=Switch!$D$32,INDIRECT(\"a\" & (VLOOKUP(Switch!$D$32,$F$2:$G$43,2,FALSE)+ROW()-2)),\"\")","v":{"$error":"#N/A"}},{"$f":"IF(INDIRECT(\"c\" & (VLOOKUP(Switch!$D$33,$F$2:$G$43,2,FALSE)+ROW()-2))=Switch!$D$33,INDIRECT(\"a\" & (VLOOKUP(Switch!$D$33,$F$2:$G$43,2,FALSE)+ROW()-2)),\"\")","v":{"$error":"#N/A"}},{"$f":"IF(INDIRECT(\"c\" & (VLOOKUP(Switch!$D$34,$F$2:$G$43,2,FALSE)+ROW()-2))=Switch!$D$34,INDIRECT(\"a\" & (VLOOKUP(Switch!$D$34,$F$2:$G$43,2,FALSE)+ROW()-2)),\"\")","v":{"$error":"#N/A"}},{"$f":"IF(INDIRECT(\"c\" & (VLOOKUP(Switch!$D$35,$F$2:$G$43,2,FALSE)+ROW()-2))=Switch!$D$35,INDIRECT(\"a\" & (VLOOKUP(Switch!$D$35,$F$2:$G$43,2,FALSE)+ROW()-2)),\"\")","v":{"$error":"#N/A"}},{"$f":"IF(INDIRECT(\"c\" & (VLOOKUP(Switch!$D$36,$F$2:$G$43,2,FALSE)+ROW()-2))=Switch!$D$36,INDIRECT(\"a\" & (VLOOKUP(Switch!$D$36,$F$2:$G$43,2,FALSE)+ROW()-2)),\"\")","v":{"$error":"#N/A"}},{"$f":"IF(INDIRECT(\"c\" & (VLOOKUP(Switch!$D$37,$F$2:$G$43,2,FALSE)+ROW()-2))=Switch!$D$37,INDIRECT(\"a\" & (VLOOKUP(Switch!$D$37,$F$2:$G$43,2,FALSE)+ROW()-2)),\"\")","v":{"$error":"#N/A"}},{"$f":"IF(INDIRECT(\"c\" & (VLOOKUP(Switch!$D$38,$F$2:$G$43,2,FALSE)+ROW()-2))=Switch!$D$38,INDIRECT(\"a\" & (VLOOKUP(Switch!$D$38,$F$2:$G$43,2,FALSE)+ROW()-2)),\"\")","v":{"$error":"#N/A"}},{"$f":"IF(INDIRECT(\"c\" & (VLOOKUP(Switch!$D$39,$F$2:$G$43,2,FALSE)+ROW()-2))=Switch!$D$39,INDIRECT(\"a\" & (VLOOKUP(Switch!$D$39,$F$2:$G$43,2,FALSE)+ROW()-2)),\"\")","v":{"$error":"#N/A"}},{"$f":"IF(INDIRECT(\"c\" & (VLOOKUP(Switch!$D$40,$F$2:$G$43,2,FALSE)+ROW()-2))=Switch!$D$40,INDIRECT(\"a\" & (VLOOKUP(Switch!$D$40,$F$2:$G$43,2,FALSE)+ROW()-2)),\"\")","v":{"$error":"#N/A"}},{"$f":"IF(INDIRECT(\"c\" & (VLOOKUP(Switch!$D$52,$F$2:$G$43,2,FALSE)+ROW()-2))=Switch!$D$52,INDIRECT(\"a\" & (VLOOKUP(Switch!$D$52,$F$2:$G$43,2,FALSE)+ROW()-2)),\"\")","v":{"$error":"#N/A"}},{"$f":"IF(INDIRECT(\"c\" & (VLOOKUP(Switch!$D$53,$F$2:$G$43,2,FALSE)+ROW()-2))=Switch!$D$53,INDIRECT(\"a\" & (VLOOKUP(Switch!$D$53,$F$2:$G$43,2,FALSE)+ROW()-2)),\"\")","v":{"$error":"#N/A"}},{"$f":"IF(INDIRECT(\"c\" & (VLOOKUP(Switch!$D$54,$F$2:$G$43,2,FALSE)+ROW()-2))=Switch!$D$54,INDIRECT(\"a\" & (VLOOKUP(Switch!$D$54,$F$2:$G$43,2,FALSE)+ROW()-2)),\"\")","v":{"$error":"#N/A"}},{"$f":"IF(INDIRECT(\"c\" & (VLOOKUP(Switch!$D$55,$F$2:$G$43,2,FALSE)+ROW()-2))=Switch!$D$55,INDIRECT(\"a\" & (VLOOKUP(Switch!$D$55,$F$2:$G$43,2,FALSE)+ROW()-2)),\"\")","v":{"$error":"#N/A"}},{"$f":"IF(INDIRECT(\"c\" & (VLOOKUP(Switch!$D$56,$F$2:$G$43,2,FALSE)+ROW()-2))=Switch!$D$56,INDIRECT(\"a\" & (VLOOKUP(Switch!$D$56,$F$2:$G$43,2,FALSE)+ROW()-2)),\"\")","v":{"$error":"#N/A"}},{"$f":"IF(INDIRECT(\"c\" & (VLOOKUP(Switch!$D$57,$F$2:$G$43,2,FALSE)+ROW()-2))=Switch!$D$57,INDIRECT(\"a\" & (VLOOKUP(Switch!$D$57,$F$2:$G$43,2,FALSE)+ROW()-2)),\"\")","v":{"$error":"#N/A"}},{"$f":"IF(INDIRECT(\"c\" & (VLOOKUP(Switch!$D$58,$F$2:$G$43,2,FALSE)+ROW()-2))=Switch!$D$58,INDIRECT(\"a\" & (VLOOKUP(Switch!$D$58,$F$2:$G$43,2,FALSE)+ROW()-2)),\"\")","v":{"$error":"#N/A"}},{"$f":"IF(INDIRECT(\"c\" & (VLOOKUP(Switch!$D$59,$F$2:$G$43,2,FALSE)+ROW()-2))=Switch!$D$59,INDIRECT(\"a\" & (VLOOKUP(Switch!$D$59,$F$2:$G$43,2,FALSE)+ROW()-2)),\"\")","v":{"$error":"#N/A"}},{"$f":"IF(INDIRECT(\"c\" & (VLOOKUP(Switch!$D$60,$F$2:$G$43,2,FALSE)+ROW()-2))=Switch!$D$60,INDIRECT(\"a\" & (VLOOKUP(Switch!$D$60,$F$2:$G$43,2,FALSE)+ROW()-2)),\"\")","v":{"$error":"#N/A"}},{"$f":"IF(INDIRECT(\"c\" & (VLOOKUP(Switch!$D$61,$F$2:$G$43,2,FALSE)+ROW()-2))=Switch!$D$61,INDIRECT(\"a\" & (VLOOKUP(Switch!$D$61,$F$2:$G$43,2,FALSE)+ROW()-2)),\"\")","v":{"$error":"#N/A"}},{"$f":"IF(INDIRECT(\"c\" & (VLOOKUP(Switch!$D$62,$F$2:$G$43,2,FALSE)+ROW()-2))=Switch!$D$62,INDIRECT(\"a\" & (VLOOKUP(Switch!$D$62,$F$2:$G$43,2,FALSE)+ROW()-2)),\"\")","v":{"$error":"#N/A"}},{"$f":"IF(INDIRECT(\"c\" & (VLOOKUP(Switch!$D$63,$F$2:$G$43,2,FALSE)+ROW()-2))=Switch!$D$63,INDIRECT(\"a\" & (VLOOKUP(Switch!$D$63,$F$2:$G$43,2,FALSE)+ROW()-2)),\"\")","v":{"$error":"#N/A"}},{"$f":"IF(INDIRECT(\"c\" & (VLOOKUP(Switch!$D$64,$F$2:$G$43,2,FALSE)+ROW()-2))=Switch!$D$64,INDIRECT(\"a\" & (VLOOKUP(Switch!$D$64,$F$2:$G$43,2,FALSE)+ROW()-2)),\"\")","v":{"$error":"#N/A"}},{"$f":"IF(INDIRECT(\"c\" & (VLOOKUP(Switch!$D$65,$F$2:$G$43,2,FALSE)+ROW()-2))=Switch!$D$65,INDIRECT(\"a\" & (VLOOKUP(Switch!$D$65,$F$2:$G$43,2,FALSE)+ROW()-2)),\"\")","v":{"$error":"#N/A"}},{"$f":"IF(INDIRECT(\"c\" & (VLOOKUP(Switch!$D$66,$F$2:$G$43,2,FALSE)+ROW()-2))=Switch!$D$66,INDIRECT(\"a\" & (VLOOKUP(Switch!$D$66,$F$2:$G$43,2,FALSE)+ROW()-2)),\"\")","v":{"$error":"#N/A"}}]
[null,null,null,{"$f":"ROW()","v":572},null,null,{"$f":"VLOOKUP(F572,$C$2:$D$637,2,FALSE)","v":{"$error":"#N/A"}},{"$f":"IF(INDIRECT(\"c\" & (VLOOKUP(Switch!$D$26,$F$2:$G$43,2,FALSE)+ROW()-2))=Switch!$D$26,INDIRECT(\"a\" & (VLOOKUP(Switch!$D$26,$F$2:$G$43,2,FALSE)+ROW()-2)),\"\")","v":{"$error":"#N/A"}},{"$f":"IF(INDIRECT(\"c\" & (VLOOKUP(Switch!$D$27,$F$2:$G$43,2,FALSE)+ROW()-2))=Switch!$D$27,INDIRECT(\"a\" & (VLOOKUP(Switch!$D$27,$F$2:$G$43,2,FALSE)+ROW()-2)),\"\")","v":{"$error":"#N/A"}},{"$f":"IF(INDIRECT(\"c\" & (VLOOKUP(Switch!$D$28,$F$2:$G$43,2,FALSE)+ROW()-2))=Switch!$D$28,INDIRECT(\"a\" & (VLOOKUP(Switch!$D$28,$F$2:$G$43,2,FALSE)+ROW()-2)),\"\")","v":{"$error":"#N/A"}},{"$f":"IF(INDIRECT(\"c\" & (VLOOKUP(Switch!$D$29,$F$2:$G$43,2,FALSE)+ROW()-2))=Switch!$D$29,INDIRECT(\"a\" & (VLOOKUP(Switch!$D$29,$F$2:$G$43,2,FALSE)+ROW()-2)),\"\")","v":{"$error":"#N/A"}},{"$f":"IF(INDIRECT(\"c\" & (VLOOKUP(Switch!$D$30,$F$2:$G$43,2,FALSE)+ROW()-2))=Switch!$D$30,INDIRECT(\"a\" & (VLOOKUP(Switch!$D$30,$F$2:$G$43,2,FALSE)+ROW()-2)),\"\")","v":{"$error":"#N/A"}},{"$f":"IF(INDIRECT(\"c\" & (VLOOKUP(Switch!$D$31,$F$2:$G$43,2,FALSE)+ROW()-2))=Switch!$D$31,INDIRECT(\"a\" & (VLOOKUP(Switch!$D$31,$F$2:$G$43,2,FALSE)+ROW()-2)),\"\")","v":{"$error":"#N/A"}},{"$f":"IF(INDIRECT(\"c\" & (VLOOKUP(Switch!$D$32,$F$2:$G$43,2,FALSE)+ROW()-2))=Switch!$D$32,INDIRECT(\"a\" & (VLOOKUP(Switch!$D$32,$F$2:$G$43,2,FALSE)+ROW()-2)),\"\")","v":{"$error":"#N/A"}},{"$f":"IF(INDIRECT(\"c\" & (VLOOKUP(Switch!$D$33,$F$2:$G$43,2,FALSE)+ROW()-2))=Switch!$D$33,INDIRECT(\"a\" & (VLOOKUP(Switch!$D$33,$F$2:$G$43,2,FALSE)+ROW()-2)),\"\")","v":{"$error":"#N/A"}},{"$f":"IF(INDIRECT(\"c\" & (VLOOKUP(Switch!$D$34,$F$2:$G$43,2,FALSE)+ROW()-2))=Switch!$D$34,INDIRECT(\"a\" & (VLOOKUP(Switch!$D$34,$F$2:$G$43,2,FALSE)+ROW()-2)),\"\")","v":{"$error":"#N/A"}},{"$f":"IF(INDIRECT(\"c\" & (VLOOKUP(Switch!$D$35,$F$2:$G$43,2,FALSE)+ROW()-2))=Switch!$D$35,INDIRECT(\"a\" & (VLOOKUP(Switch!$D$35,$F$2:$G$43,2,FALSE)+ROW()-2)),\"\")","v":{"$error":"#N/A"}},{"$f":"IF(INDIRECT(\"c\" & (VLOOKUP(Switch!$D$36,$F$2:$G$43,2,FALSE)+ROW()-2))=Switch!$D$36,INDIRECT(\"a\" & (VLOOKUP(Switch!$D$36,$F$2:$G$43,2,FALSE)+ROW()-2)),\"\")","v":{"$error":"#N/A"}},{"$f":"IF(INDIRECT(\"c\" & (VLOOKUP(Switch!$D$37,$F$2:$G$43,2,FALSE)+ROW()-2))=Switch!$D$37,INDIRECT(\"a\" & (VLOOKUP(Switch!$D$37,$F$2:$G$43,2,FALSE)+ROW()-2)),\"\")","v":{"$error":"#N/A"}},{"$f":"IF(INDIRECT(\"c\" & (VLOOKUP(Switch!$D$38,$F$2:$G$43,2,FALSE)+ROW()-2))=Switch!$D$38,INDIRECT(\"a\" & (VLOOKUP(Switch!$D$38,$F$2:$G$43,2,FALSE)+ROW()-2)),\"\")","v":{"$error":"#N/A"}},{"$f":"IF(INDIRECT(\"c\" & (VLOOKUP(Switch!$D$39,$F$2:$G$43,2,FALSE)+ROW()-2))=Switch!$D$39,INDIRECT(\"a\" & (VLOOKUP(Switch!$D$39,$F$2:$G$43,2,FALSE)+ROW()-2)),\"\")","v":{"$error":"#N/A"}},{"$f":"IF(INDIRECT(\"c\" & (VLOOKUP(Switch!$D$40,$F$2:$G$43,2,FALSE)+ROW()-2))=Switch!$D$40,INDIRECT(\"a\" & (VLOOKUP(Switch!$D$40,$F$2:$G$43,2,FALSE)+ROW()-2)),\"\")","v":{"$error":"#N/A"}},{"$f":"IF(INDIRECT(\"c\" & (VLOOKUP(Switch!$D$52,$F$2:$G$43,2,FALSE)+ROW()-2))=Switch!$D$52,INDIRECT(\"a\" & (VLOOKUP(Switch!$D$52,$F$2:$G$43,2,FALSE)+ROW()-2)),\"\")","v":{"$error":"#N/A"}},{"$f":"IF(INDIRECT(\"c\" & (VLOOKUP(Switch!$D$53,$F$2:$G$43,2,FALSE)+ROW()-2))=Switch!$D$53,INDIRECT(\"a\" & (VLOOKUP(Switch!$D$53,$F$2:$G$43,2,FALSE)+ROW()-2)),\"\")","v":{"$error":"#N/A"}},{"$f":"IF(INDIRECT(\"c\" & (VLOOKUP(Switch!$D$54,$F$2:$G$43,2,FALSE)+ROW()-2))=Switch!$D$54,INDIRECT(\"a\" & (VLOOKUP(Switch!$D$54,$F$2:$G$43,2,FALSE)+ROW()-2)),\"\")","v":{"$error":"#N/A"}},{"$f":"IF(INDIRECT(\"c\" & (VLOOKUP(Switch!$D$55,$F$2:$G$43,2,FALSE)+ROW()-2))=Switch!$D$55,INDIRECT(\"a\" & (VLOOKUP(Switch!$D$55,$F$2:$G$43,2,FALSE)+ROW()-2)),\"\")","v":{"$error":"#N/A"}},{"$f":"IF(INDIRECT(\"c\" & (VLOOKUP(Switch!$D$56,$F$2:$G$43,2,FALSE)+ROW()-2))=Switch!$D$56,INDIRECT(\"a\" & (VLOOKUP(Switch!$D$56,$F$2:$G$43,2,FALSE)+ROW()-2)),\"\")","v":{"$error":"#N/A"}},{"$f":"IF(INDIRECT(\"c\" & (VLOOKUP(Switch!$D$57,$F$2:$G$43,2,FALSE)+ROW()-2))=Switch!$D$57,INDIRECT(\"a\" & (VLOOKUP(Switch!$D$57,$F$2:$G$43,2,FALSE)+ROW()-2)),\"\")","v":{"$error":"#N/A"}},{"$f":"IF(INDIRECT(\"c\" & (VLOOKUP(Switch!$D$58,$F$2:$G$43,2,FALSE)+ROW()-2))=Switch!$D$58,INDIRECT(\"a\" & (VLOOKUP(Switch!$D$58,$F$2:$G$43,2,FALSE)+ROW()-2)),\"\")","v":{"$error":"#N/A"}},{"$f":"IF(INDIRECT(\"c\" & (VLOOKUP(Switch!$D$59,$F$2:$G$43,2,FALSE)+ROW()-2))=Switch!$D$59,INDIRECT(\"a\" & (VLOOKUP(Switch!$D$59,$F$2:$G$43,2,FALSE)+ROW()-2)),\"\")","v":{"$error":"#N/A"}},{"$f":"IF(INDIRECT(\"c\" & (VLOOKUP(Switch!$D$60,$F$2:$G$43,2,FALSE)+ROW()-2))=Switch!$D$60,INDIRECT(\"a\" & (VLOOKUP(Switch!$D$60,$F$2:$G$43,2,FALSE)+ROW()-2)),\"\")","v":{"$error":"#N/A"}},{"$f":"IF(INDIRECT(\"c\" & (VLOOKUP(Switch!$D$61,$F$2:$G$43,2,FALSE)+ROW()-2))=Switch!$D$61,INDIRECT(\"a\" & (VLOOKUP(Switch!$D$61,$F$2:$G$43,2,FALSE)+ROW()-2)),\"\")","v":{"$error":"#N/A"}},{"$f":"IF(INDIRECT(\"c\" & (VLOOKUP(Switch!$D$62,$F$2:$G$43,2,FALSE)+ROW()-2))=Switch!$D$62,INDIRECT(\"a\" & (VLOOKUP(Switch!$D$62,$F$2:$G$43,2,FALSE)+ROW()-2)),\"\")","v":{"$error":"#N/A"}},{"$f":"IF(INDIRECT(\"c\" & (VLOOKUP(Switch!$D$63,$F$2:$G$43,2,FALSE)+ROW()-2))=Switch!$D$63,INDIRECT(\"a\" & (VLOOKUP(Switch!$D$63,$F$2:$G$43,2,FALSE)+ROW()-2)),\"\")","v":{"$error":"#N/A"}},{"$f":"IF(INDIRECT(\"c\" & (VLOOKUP(Switch!$D$64,$F$2:$G$43,2,FALSE)+ROW()-2))=Switch!$D$64,INDIRECT(\"a\" & (VLOOKUP(Switch!$D$64,$F$2:$G$43,2,FALSE)+ROW()-2)),\"\")","v":{"$error":"#N/A"}},{"$f":"IF(INDIRECT(\"c\" & (VLOOKUP(Switch!$D$65,$F$2:$G$43,2,FALSE)+ROW()-2))=Switch!$D$65,INDIRECT(\"a\" & (VLOOKUP(Switch!$D$65,$F$2:$G$43,2,FALSE)+ROW()-2)),\"\")","v":{"$error":"#N/A"}},{"$f":"IF(INDIRECT(\"c\" & (VLOOKUP(Switch!$D$66,$F$2:$G$43,2,FALSE)+ROW()-2))=Switch!$D$66,INDIRECT(\"a\" & (VLOOKUP(Switch!$D$66,$F$2:$G$43,2,FALSE)+ROW()-2)),\"\")","v":{"$error":"#N/A"}}]
[null,null,null,{"$f":"ROW()","v":573},null,null,{"$f":"VLOOKUP(F573,$C$2:$D$637,2,FALSE)","v":{"$error":"#N/A"}},{"$f":"IF(INDIRECT(\"c\" & (VLOOKUP(Switch!$D$26,$F$2:$G$43,2,FALSE)+ROW()-2))=Switch!$D$26,INDIRECT(\"a\" & (VLOOKUP(Switch!$D$26,$F$2:$G$43,2,FALSE)+ROW()-2)),\"\")","v":{"$error":"#N/A"}},{"$f":"IF(INDIRECT(\"c\" & (VLOOKUP(Switch!$D$27,$F$2:$G$43,2,FALSE)+ROW()-2))=Switch!$D$27,INDIRECT(\"a\" & (VLOOKUP(Switch!$D$27,$F$2:$G$43,2,FALSE)+ROW()-2)),\"\")","v":{"$error":"#N/A"}},{"$f":"IF(INDIRECT(\"c\" & (VLOOKUP(Switch!$D$28,$F$2:$G$43,2,FALSE)+ROW()-2))=Switch!$D$28,INDIRECT(\"a\" & (VLOOKUP(Switch!$D$28,$F$2:$G$43,2,FALSE)+ROW()-2)),\"\")","v":{"$error":"#N/A"}},{"$f":"IF(INDIRECT(\"c\" & (VLOOKUP(Switch!$D$29,$F$2:$G$43,2,FALSE)+ROW()-2))=Switch!$D$29,INDIRECT(\"a\" & (VLOOKUP(Switch!$D$29,$F$2:$G$43,2,FALSE)+ROW()-2)),\"\")","v":{"$error":"#N/A"}},{"$f":"IF(INDIRECT(\"c\" & (VLOOKUP(Switch!$D$30,$F$2:$G$43,2,FALSE)+ROW()-2))=Switch!$D$30,INDIRECT(\"a\" & (VLOOKUP(Switch!$D$30,$F$2:$G$43,2,FALSE)+ROW()-2)),\"\")","v":{"$error":"#N/A"}},{"$f":"IF(INDIRECT(\"c\" & (VLOOKUP(Switch!$D$31,$F$2:$G$43,2,FALSE)+ROW()-2))=Switch!$D$31,INDIRECT(\"a\" & (VLOOKUP(Switch!$D$31,$F$2:$G$43,2,FALSE)+ROW()-2)),\"\")","v":{"$error":"#N/A"}},{"$f":"IF(INDIRECT(\"c\" & (VLOOKUP(Switch!$D$32,$F$2:$G$43,2,FALSE)+ROW()-2))=Switch!$D$32,INDIRECT(\"a\" & (VLOOKUP(Switch!$D$32,$F$2:$G$43,2,FALSE)+ROW()-2)),\"\")","v":{"$error":"#N/A"}},{"$f":"IF(INDIRECT(\"c\" & (VLOOKUP(Switch!$D$33,$F$2:$G$43,2,FALSE)+ROW()-2))=Switch!$D$33,INDIRECT(\"a\" & (VLOOKUP(Switch!$D$33,$F$2:$G$43,2,FALSE)+ROW()-2)),\"\")","v":{"$error":"#N/A"}},{"$f":"IF(INDIRECT(\"c\" & (VLOOKUP(Switch!$D$34,$F$2:$G$43,2,FALSE)+ROW()-2))=Switch!$D$34,INDIRECT(\"a\" & (VLOOKUP(Switch!$D$34,$F$2:$G$43,2,FALSE)+ROW()-2)),\"\")","v":{"$error":"#N/A"}},{"$f":"IF(INDIRECT(\"c\" & (VLOOKUP(Switch!$D$35,$F$2:$G$43,2,FALSE)+ROW()-2))=Switch!$D$35,INDIRECT(\"a\" & (VLOOKUP(Switch!$D$35,$F$2:$G$43,2,FALSE)+ROW()-2)),\"\")","v":{"$error":"#N/A"}},{"$f":"IF(INDIRECT(\"c\" & (VLOOKUP(Switch!$D$36,$F$2:$G$43,2,FALSE)+ROW()-2))=Switch!$D$36,INDIRECT(\"a\" & (VLOOKUP(Switch!$D$36,$F$2:$G$43,2,FALSE)+ROW()-2)),\"\")","v":{"$error":"#N/A"}},{"$f":"IF(INDIRECT(\"c\" & (VLOOKUP(Switch!$D$37,$F$2:$G$43,2,FALSE)+ROW()-2))=Switch!$D$37,INDIRECT(\"a\" & (VLOOKUP(Switch!$D$37,$F$2:$G$43,2,FALSE)+ROW()-2)),\"\")","v":{"$error":"#N/A"}},{"$f":"IF(INDIRECT(\"c\" & (VLOOKUP(Switch!$D$38,$F$2:$G$43,2,FALSE)+ROW()-2))=Switch!$D$38,INDIRECT(\"a\" & (VLOOKUP(Switch!$D$38,$F$2:$G$43,2,FALSE)+ROW()-2)),\"\")","v":{"$error":"#N/A"}},{"$f":"IF(INDIRECT(\"c\" & (VLOOKUP(Switch!$D$39,$F$2:$G$43,2,FALSE)+ROW()-2))=Switch!$D$39,INDIRECT(\"a\" & (VLOOKUP(Switch!$D$39,$F$2:$G$43,2,FALSE)+ROW()-2)),\"\")","v":{"$error":"#N/A"}},{"$f":"IF(INDIRECT(\"c\" & (VLOOKUP(Switch!$D$40,$F$2:$G$43,2,FALSE)+ROW()-2))=Switch!$D$40,INDIRECT(\"a\" & (VLOOKUP(Switch!$D$40,$F$2:$G$43,2,FALSE)+ROW()-2)),\"\")","v":{"$error":"#N/A"}},{"$f":"IF(INDIRECT(\"c\" & (VLOOKUP(Switch!$D$52,$F$2:$G$43,2,FALSE)+ROW()-2))=Switch!$D$52,INDIRECT(\"a\" & (VLOOKUP(Switch!$D$52,$F$2:$G$43,2,FALSE)+ROW()-2)),\"\")","v":{"$error":"#N/A"}},{"$f":"IF(INDIRECT(\"c\" & (VLOOKUP(Switch!$D$53,$F$2:$G$43,2,FALSE)+ROW()-2))=Switch!$D$53,INDIRECT(\"a\" & (VLOOKUP(Switch!$D$53,$F$2:$G$43,2,FALSE)+ROW()-2)),\"\")","v":{"$error":"#N/A"}},{"$f":"IF(INDIRECT(\"c\" & (VLOOKUP(Switch!$D$54,$F$2:$G$43,2,FALSE)+ROW()-2))=Switch!$D$54,INDIRECT(\"a\" & (VLOOKUP(Switch!$D$54,$F$2:$G$43,2,FALSE)+ROW()-2)),\"\")","v":{"$error":"#N/A"}},{"$f":"IF(INDIRECT(\"c\" & (VLOOKUP(Switch!$D$55,$F$2:$G$43,2,FALSE)+ROW()-2))=Switch!$D$55,INDIRECT(\"a\" & (VLOOKUP(Switch!$D$55,$F$2:$G$43,2,FALSE)+ROW()-2)),\"\")","v":{"$error":"#N/A"}},{"$f":"IF(INDIRECT(\"c\" & (VLOOKUP(Switch!$D$56,$F$2:$G$43,2,FALSE)+ROW()-2))=Switch!$D$56,INDIRECT(\"a\" & (VLOOKUP(Switch!$D$56,$F$2:$G$43,2,FALSE)+ROW()-2)),\"\")","v":{"$error":"#N/A"}},{"$f":"IF(INDIRECT(\"c\" & (VLOOKUP(Switch!$D$57,$F$2:$G$43,2,FALSE)+ROW()-2))=Switch!$D$57,INDIRECT(\"a\" & (VLOOKUP(Switch!$D$57,$F$2:$G$43,2,FALSE)+ROW()-2)),\"\")","v":{"$error":"#N/A"}},{"$f":"IF(INDIRECT(\"c\" & (VLOOKUP(Switch!$D$58,$F$2:$G$43,2,FALSE)+ROW()-2))=Switch!$D$58,INDIRECT(\"a\" & (VLOOKUP(Switch!$D$58,$F$2:$G$43,2,FALSE)+ROW()-2)),\"\")","v":{"$error":"#N/A"}},{"$f":"IF(INDIRECT(\"c\" & (VLOOKUP(Switch!$D$59,$F$2:$G$43,2,FALSE)+ROW()-2))=Switch!$D$59,INDIRECT(\"a\" & (VLOOKUP(Switch!$D$59,$F$2:$G$43,2,FALSE)+ROW()-2)),\"\")","v":{"$error":"#N/A"}},{"$f":"IF(INDIRECT(\"c\" & (VLOOKUP(Switch!$D$60,$F$2:$G$43,2,FALSE)+ROW()-2))=Switch!$D$60,INDIRECT(\"a\" & (VLOOKUP(Switch!$D$60,$F$2:$G$43,2,FALSE)+ROW()-2)),\"\")","v":{"$error":"#N/A"}},{"$f":"IF(INDIRECT(\"c\" & (VLOOKUP(Switch!$D$61,$F$2:$G$43,2,FALSE)+ROW()-2))=Switch!$D$61,INDIRECT(\"a\" & (VLOOKUP(Switch!$D$61,$F$2:$G$43,2,FALSE)+ROW()-2)),\"\")","v":{"$error":"#N/A"}},{"$f":"IF(INDIRECT(\"c\" & (VLOOKUP(Switch!$D$62,$F$2:$G$43,2,FALSE)+ROW()-2))=Switch!$D$62,INDIRECT(\"a\" & (VLOOKUP(Switch!$D$62,$F$2:$G$43,2,FALSE)+ROW()-2)),\"\")","v":{"$error":"#N/A"}},{"$f":"IF(INDIRECT(\"c\" & (VLOOKUP(Switch!$D$63,$F$2:$G$43,2,FALSE)+ROW()-2))=Switch!$D$63,INDIRECT(\"a\" & (VLOOKUP(Switch!$D$63,$F$2:$G$43,2,FALSE)+ROW()-2)),\"\")","v":{"$error":"#N/A"}},{"$f":"IF(INDIRECT(\"c\" & (VLOOKUP(Switch!$D$64,$F$2:$G$43,2,FALSE)+ROW()-2))=Switch!$D$64,INDIRECT(\"a\" & (VLOOKUP(Switch!$D$64,$F$2:$G$43,2,FALSE)+ROW()-2)),\"\")","v":{"$error":"#N/A"}},{"$f":"IF(INDIRECT(\"c\" & (VLOOKUP(Switch!$D$65,$F$2:$G$43,2,FALSE)+ROW()-2))=Switch!$D$65,INDIRECT(\"a\" & (VLOOKUP(Switch!$D$65,$F$2:$G$43,2,FALSE)+ROW()-2)),\"\")","v":{"$error":"#N/A"}},{"$f":"IF(INDIRECT(\"c\" & (VLOOKUP(Switch!$D$66,$F$2:$G$43,2,FALSE)+ROW()-2))=Switch!$D$66,INDIRECT(\"a\" & (VLOOKUP(Switch!$D$66,$F$2:$G$43,2,FALSE)+ROW()-2)),\"\")","v":{"$error":"#N/A"}}]
[null,null,null,{"$f":"ROW()","v":574},null,null,{"$f":"VLOOKUP(F574,$C$2:$D$637,2,FALSE)","v":{"$error":"#N/A"}},{"$f":"IF(INDIRECT(\"c\" & (VLOOKUP(Switch!$D$26,$F$2:$G$43,2,FALSE)+ROW()-2))=Switch!$D$26,INDIRECT(\"a\" & (VLOOKUP(Switch!$D$26,$F$2:$G$43,2,FALSE)+ROW()-2)),\"\")","v":{"$error":"#N/A"}},{"$f":"IF(INDIRECT(\"c\" & (VLOOKUP(Switch!$D$27,$F$2:$G$43,2,FALSE)+ROW()-2))=Switch!$D$27,INDIRECT(\"a\" & (VLOOKUP(Switch!$D$27,$F$2:$G$43,2,FALSE)+ROW()-2)),\"\")","v":{"$error":"#N/A"}},{"$f":"IF(INDIRECT(\"c\" & (VLOOKUP(Switch!$D$28,$F$2:$G$43,2,FALSE)+ROW()-2))=Switch!$D$28,INDIRECT(\"a\" & (VLOOKUP(Switch!$D$28,$F$2:$G$43,2,FALSE)+ROW()-2)),\"\")","v":{"$error":"#N/A"}},{"$f":"IF(INDIRECT(\"c\" & (VLOOKUP(Switch!$D$29,$F$2:$G$43,2,FALSE)+ROW()-2))=Switch!$D$29,INDIRECT(\"a\" & (VLOOKUP(Switch!$D$29,$F$2:$G$43,2,FALSE)+ROW()-2)),\"\")","v":{"$error":"#N/A"}},{"$f":"IF(INDIRECT(\"c\" & (VLOOKUP(Switch!$D$30,$F$2:$G$43,2,FALSE)+ROW()-2))=Switch!$D$30,INDIRECT(\"a\" & (VLOOKUP(Switch!$D$30,$F$2:$G$43,2,FALSE)+ROW()-2)),\"\")","v":{"$error":"#N/A"}},{"$f":"IF(INDIRECT(\"c\" & (VLOOKUP(Switch!$D$31,$F$2:$G$43,2,FALSE)+ROW()-2))=Switch!$D$31,INDIRECT(\"a\" & (VLOOKUP(Switch!$D$31,$F$2:$G$43,2,FALSE)+ROW()-2)),\"\")","v":{"$error":"#N/A"}},{"$f":"IF(INDIRECT(\"c\" & (VLOOKUP(Switch!$D$32,$F$2:$G$43,2,FALSE)+ROW()-2))=Switch!$D$32,INDIRECT(\"a\" & (VLOOKUP(Switch!$D$32,$F$2:$G$43,2,FALSE)+ROW()-2)),\"\")","v":{"$error":"#N/A"}},{"$f":"IF(INDIRECT(\"c\" & (VLOOKUP(Switch!$D$33,$F$2:$G$43,2,FALSE)+ROW()-2))=Switch!$D$33,INDIRECT(\"a\" & (VLOOKUP(Switch!$D$33,$F$2:$G$43,2,FALSE)+ROW()-2)),\"\")","v":{"$error":"#N/A"}},{"$f":"IF(INDIRECT(\"c\" & (VLOOKUP(Switch!$D$34,$F$2:$G$43,2,FALSE)+ROW()-2))=Switch!$D$34,INDIRECT(\"a\" & (VLOOKUP(Switch!$D$34,$F$2:$G$43,2,FALSE)+ROW()-2)),\"\")","v":{"$error":"#N/A"}},{"$f":"IF(INDIRECT(\"c\" & (VLOOKUP(Switch!$D$35,$F$2:$G$43,2,FALSE)+ROW()-2))=Switch!$D$35,INDIRECT(\"a\" & (VLOOKUP(Switch!$D$35,$F$2:$G$43,2,FALSE)+ROW()-2)),\"\")","v":{"$error":"#N/A"}},{"$f":"IF(INDIRECT(\"c\" & (VLOOKUP(Switch!$D$36,$F$2:$G$43,2,FALSE)+ROW()-2))=Switch!$D$36,INDIRECT(\"a\" & (VLOOKUP(Switch!$D$36,$F$2:$G$43,2,FALSE)+ROW()-2)),\"\")","v":{"$error":"#N/A"}},{"$f":"IF(INDIRECT(\"c\" & (VLOOKUP(Switch!$D$37,$F$2:$G$43,2,FALSE)+ROW()-2))=Switch!$D$37,INDIRECT(\"a\" & (VLOOKUP(Switch!$D$37,$F$2:$G$43,2,FALSE)+ROW()-2)),\"\")","v":{"$error":"#N/A"}},{"$f":"IF(INDIRECT(\"c\" & (VLOOKUP(Switch!$D$38,$F$2:$G$43,2,FALSE)+ROW()-2))=Switch!$D$38,INDIRECT(\"a\" & (VLOOKUP(Switch!$D$38,$F$2:$G$43,2,FALSE)+ROW()-2)),\"\")","v":{"$error":"#N/A"}},{"$f":"IF(INDIRECT(\"c\" & (VLOOKUP(Switch!$D$39,$F$2:$G$43,2,FALSE)+ROW()-2))=Switch!$D$39,INDIRECT(\"a\" & (VLOOKUP(Switch!$D$39,$F$2:$G$43,2,FALSE)+ROW()-2)),\"\")","v":{"$error":"#N/A"}},{"$f":"IF(INDIRECT(\"c\" & (VLOOKUP(Switch!$D$40,$F$2:$G$43,2,FALSE)+ROW()-2))=Switch!$D$40,INDIRECT(\"a\" & (VLOOKUP(Switch!$D$40,$F$2:$G$43,2,FALSE)+ROW()-2)),\"\")","v":{"$error":"#N/A"}},{"$f":"IF(INDIRECT(\"c\" & (VLOOKUP(Switch!$D$52,$F$2:$G$43,2,FALSE)+ROW()-2))=Switch!$D$52,INDIRECT(\"a\" & (VLOOKUP(Switch!$D$52,$F$2:$G$43,2,FALSE)+ROW()-2)),\"\")","v":{"$error":"#N/A"}},{"$f":"IF(INDIRECT(\"c\" & (VLOOKUP(Switch!$D$53,$F$2:$G$43,2,FALSE)+ROW()-2))=Switch!$D$53,INDIRECT(\"a\" & (VLOOKUP(Switch!$D$53,$F$2:$G$43,2,FALSE)+ROW()-2)),\"\")","v":{"$error":"#N/A"}},{"$f":"IF(INDIRECT(\"c\" & (VLOOKUP(Switch!$D$54,$F$2:$G$43,2,FALSE)+ROW()-2))=Switch!$D$54,INDIRECT(\"a\" & (VLOOKUP(Switch!$D$54,$F$2:$G$43,2,FALSE)+ROW()-2)),\"\")","v":{"$error":"#N/A"}},{"$f":"IF(INDIRECT(\"c\" & (VLOOKUP(Switch!$D$55,$F$2:$G$43,2,FALSE)+ROW()-2))=Switch!$D$55,INDIRECT(\"a\" & (VLOOKUP(Switch!$D$55,$F$2:$G$43,2,FALSE)+ROW()-2)),\"\")","v":{"$error":"#N/A"}},{"$f":"IF(INDIRECT(\"c\" & (VLOOKUP(Switch!$D$56,$F$2:$G$43,2,FALSE)+ROW()-2))=Switch!$D$56,INDIRECT(\"a\" & (VLOOKUP(Switch!$D$56,$F$2:$G$43,2,FALSE)+ROW()-2)),\"\")","v":{"$error":"#N/A"}},{"$f":"IF(INDIRECT(\"c\" & (VLOOKUP(Switch!$D$57,$F$2:$G$43,2,FALSE)+ROW()-2))=Switch!$D$57,INDIRECT(\"a\" & (VLOOKUP(Switch!$D$57,$F$2:$G$43,2,FALSE)+ROW()-2)),\"\")","v":{"$error":"#N/A"}},{"$f":"IF(INDIRECT(\"c\" & (VLOOKUP(Switch!$D$58,$F$2:$G$43,2,FALSE)+ROW()-2))=Switch!$D$58,INDIRECT(\"a\" & (VLOOKUP(Switch!$D$58,$F$2:$G$43,2,FALSE)+ROW()-2)),\"\")","v":{"$error":"#N/A"}},{"$f":"IF(INDIRECT(\"c\" & (VLOOKUP(Switch!$D$59,$F$2:$G$43,2,FALSE)+ROW()-2))=Switch!$D$59,INDIRECT(\"a\" & (VLOOKUP(Switch!$D$59,$F$2:$G$43,2,FALSE)+ROW()-2)),\"\")","v":{"$error":"#N/A"}},{"$f":"IF(INDIRECT(\"c\" & (VLOOKUP(Switch!$D$60,$F$2:$G$43,2,FALSE)+ROW()-2))=Switch!$D$60,INDIRECT(\"a\" & (VLOOKUP(Switch!$D$60,$F$2:$G$43,2,FALSE)+ROW()-2)),\"\")","v":{"$error":"#N/A"}},{"$f":"IF(INDIRECT(\"c\" & (VLOOKUP(Switch!$D$61,$F$2:$G$43,2,FALSE)+ROW()-2))=Switch!$D$61,INDIRECT(\"a\" & (VLOOKUP(Switch!$D$61,$F$2:$G$43,2,FALSE)+ROW()-2)),\"\")","v":{"$error":"#N/A"}},{"$f":"IF(INDIRECT(\"c\" & (VLOOKUP(Switch!$D$62,$F$2:$G$43,2,FALSE)+ROW()-2))=Switch!$D$62,INDIRECT(\"a\" & (VLOOKUP(Switch!$D$62,$F$2:$G$43,2,FALSE)+ROW()-2)),\"\")","v":{"$error":"#N/A"}},{"$f":"IF(INDIRECT(\"c\" & (VLOOKUP(Switch!$D$63,$F$2:$G$43,2,FALSE)+ROW()-2))=Switch!$D$63,INDIRECT(\"a\" & (VLOOKUP(Switch!$D$63,$F$2:$G$43,2,FALSE)+ROW()-2)),\"\")","v":{"$error":"#N/A"}},{"$f":"IF(INDIRECT(\"c\" & (VLOOKUP(Switch!$D$64,$F$2:$G$43,2,FALSE)+ROW()-2))=Switch!$D$64,INDIRECT(\"a\" & (VLOOKUP(Switch!$D$64,$F$2:$G$43,2,FALSE)+ROW()-2)),\"\")","v":{"$error":"#N/A"}},{"$f":"IF(INDIRECT(\"c\" & (VLOOKUP(Switch!$D$65,$F$2:$G$43,2,FALSE)+ROW()-2))=Switch!$D$65,INDIRECT(\"a\" & (VLOOKUP(Switch!$D$65,$F$2:$G$43,2,FALSE)+ROW()-2)),\"\")","v":{"$error":"#N/A"}},{"$f":"IF(INDIRECT(\"c\" & (VLOOKUP(Switch!$D$66,$F$2:$G$43,2,FALSE)+ROW()-2))=Switch!$D$66,INDIRECT(\"a\" & (VLOOKUP(Switch!$D$66,$F$2:$G$43,2,FALSE)+ROW()-2)),\"\")","v":{"$error":"#N/A"}}]
[null,null,null,{"$f":"ROW()","v":575},null,null,{"$f":"VLOOKUP(F575,$C$2:$D$637,2,FALSE)","v":{"$error":"#N/A"}},{"$f":"IF(INDIRECT(\"c\" & (VLOOKUP(Switch!$D$26,$F$2:$G$43,2,FALSE)+ROW()-2))=Switch!$D$26,INDIRECT(\"a\" & (VLOOKUP(Switch!$D$26,$F$2:$G$43,2,FALSE)+ROW()-2)),\"\")","v":{"$error":"#N/A"}},{"$f":"IF(INDIRECT(\"c\" & (VLOOKUP(Switch!$D$27,$F$2:$G$43,2,FALSE)+ROW()-2))=Switch!$D$27,INDIRECT(\"a\" & (VLOOKUP(Switch!$D$27,$F$2:$G$43,2,FALSE)+ROW()-2)),\"\")","v":{"$error":"#N/A"}},{"$f":"IF(INDIRECT(\"c\" & (VLOOKUP(Switch!$D$28,$F$2:$G$43,2,FALSE)+ROW()-2))=Switch!$D$28,INDIRECT(\"a\" & (VLOOKUP(Switch!$D$28,$F$2:$G$43,2,FALSE)+ROW()-2)),\"\")","v":{"$error":"#N/A"}},{"$f":"IF(INDIRECT(\"c\" & (VLOOKUP(Switch!$D$29,$F$2:$G$43,2,FALSE)+ROW()-2))=Switch!$D$29,INDIRECT(\"a\" & (VLOOKUP(Switch!$D$29,$F$2:$G$43,2,FALSE)+ROW()-2)),\"\")","v":{"$error":"#N/A"}},{"$f":"IF(INDIRECT(\"c\" & (VLOOKUP(Switch!$D$30,$F$2:$G$43,2,FALSE)+ROW()-2))=Switch!$D$30,INDIRECT(\"a\" & (VLOOKUP(Switch!$D$30,$F$2:$G$43,2,FALSE)+ROW()-2)),\"\")","v":{"$error":"#N/A"}},{"$f":"IF(INDIRECT(\"c\" & (VLOOKUP(Switch!$D$31,$F$2:$G$43,2,FALSE)+ROW()-2))=Switch!$D$31,INDIRECT(\"a\" & (VLOOKUP(Switch!$D$31,$F$2:$G$43,2,FALSE)+ROW()-2)),\"\")","v":{"$error":"#N/A"}},{"$f":"IF(INDIRECT(\"c\" & (VLOOKUP(Switch!$D$32,$F$2:$G$43,2,FALSE)+ROW()-2))=Switch!$D$32,INDIRECT(\"a\" & (VLOOKUP(Switch!$D$32,$F$2:$G$43,2,FALSE)+ROW()-2)),\"\")","v":{"$error":"#N/A"}},{"$f":"IF(INDIRECT(\"c\" & (VLOOKUP(Switch!$D$33,$F$2:$G$43,2,FALSE)+ROW()-2))=Switch!$D$33,INDIRECT(\"a\" & (VLOOKUP(Switch!$D$33,$F$2:$G$43,2,FALSE)+ROW()-2)),\"\")","v":{"$error":"#N/A"}},{"$f":"IF(INDIRECT(\"c\" & (VLOOKUP(Switch!$D$34,$F$2:$G$43,2,FALSE)+ROW()-2))=Switch!$D$34,INDIRECT(\"a\" & (VLOOKUP(Switch!$D$34,$F$2:$G$43,2,FALSE)+ROW()-2)),\"\")","v":{"$error":"#N/A"}},{"$f":"IF(INDIRECT(\"c\" & (VLOOKUP(Switch!$D$35,$F$2:$G$43,2,FALSE)+ROW()-2))=Switch!$D$35,INDIRECT(\"a\" & (VLOOKUP(Switch!$D$35,$F$2:$G$43,2,FALSE)+ROW()-2)),\"\")","v":{"$error":"#N/A"}},{"$f":"IF(INDIRECT(\"c\" & (VLOOKUP(Switch!$D$36,$F$2:$G$43,2,FALSE)+ROW()-2))=Switch!$D$36,INDIRECT(\"a\" & (VLOOKUP(Switch!$D$36,$F$2:$G$43,2,FALSE)+ROW()-2)),\"\")","v":{"$error":"#N/A"}},{"$f":"IF(INDIRECT(\"c\" & (VLOOKUP(Switch!$D$37,$F$2:$G$43,2,FALSE)+ROW()-2))=Switch!$D$37,INDIRECT(\"a\" & (VLOOKUP(Switch!$D$37,$F$2:$G$43,2,FALSE)+ROW()-2)),\"\")","v":{"$error":"#N/A"}},{"$f":"IF(INDIRECT(\"c\" & (VLOOKUP(Switch!$D$38,$F$2:$G$43,2,FALSE)+ROW()-2))=Switch!$D$38,INDIRECT(\"a\" & (VLOOKUP(Switch!$D$38,$F$2:$G$43,2,FALSE)+ROW()-2)),\"\")","v":{"$error":"#N/A"}},{"$f":"IF(INDIRECT(\"c\" & (VLOOKUP(Switch!$D$39,$F$2:$G$43,2,FALSE)+ROW()-2))=Switch!$D$39,INDIRECT(\"a\" & (VLOOKUP(Switch!$D$39,$F$2:$G$43,2,FALSE)+ROW()-2)),\"\")","v":{"$error":"#N/A"}},{"$f":"IF(INDIRECT(\"c\" & (VLOOKUP(Switch!$D$40,$F$2:$G$43,2,FALSE)+ROW()-2))=Switch!$D$40,INDIRECT(\"a\" & (VLOOKUP(Switch!$D$40,$F$2:$G$43,2,FALSE)+ROW()-2)),\"\")","v":{"$error":"#N/A"}},{"$f":"IF(INDIRECT(\"c\" & (VLOOKUP(Switch!$D$52,$F$2:$G$43,2,FALSE)+ROW()-2))=Switch!$D$52,INDIRECT(\"a\" & (VLOOKUP(Switch!$D$52,$F$2:$G$43,2,FALSE)+ROW()-2)),\"\")","v":{"$error":"#N/A"}},{"$f":"IF(INDIRECT(\"c\" & (VLOOKUP(Switch!$D$53,$F$2:$G$43,2,FALSE)+ROW()-2))=Switch!$D$53,INDIRECT(\"a\" & (VLOOKUP(Switch!$D$53,$F$2:$G$43,2,FALSE)+ROW()-2)),\"\")","v":{"$error":"#N/A"}},{"$f":"IF(INDIRECT(\"c\" & (VLOOKUP(Switch!$D$54,$F$2:$G$43,2,FALSE)+ROW()-2))=Switch!$D$54,INDIRECT(\"a\" & (VLOOKUP(Switch!$D$54,$F$2:$G$43,2,FALSE)+ROW()-2)),\"\")","v":{"$error":"#N/A"}},{"$f":"IF(INDIRECT(\"c\" & (VLOOKUP(Switch!$D$55,$F$2:$G$43,2,FALSE)+ROW()-2))=Switch!$D$55,INDIRECT(\"a\" & (VLOOKUP(Switch!$D$55,$F$2:$G$43,2,FALSE)+ROW()-2)),\"\")","v":{"$error":"#N/A"}},{"$f":"IF(INDIRECT(\"c\" & (VLOOKUP(Switch!$D$56,$F$2:$G$43,2,FALSE)+ROW()-2))=Switch!$D$56,INDIRECT(\"a\" & (VLOOKUP(Switch!$D$56,$F$2:$G$43,2,FALSE)+ROW()-2)),\"\")","v":{"$error":"#N/A"}},{"$f":"IF(INDIRECT(\"c\" & (VLOOKUP(Switch!$D$57,$F$2:$G$43,2,FALSE)+ROW()-2))=Switch!$D$57,INDIRECT(\"a\" & (VLOOKUP(Switch!$D$57,$F$2:$G$43,2,FALSE)+ROW()-2)),\"\")","v":{"$error":"#N/A"}},{"$f":"IF(INDIRECT(\"c\" & (VLOOKUP(Switch!$D$58,$F$2:$G$43,2,FALSE)+ROW()-2))=Switch!$D$58,INDIRECT(\"a\" & (VLOOKUP(Switch!$D$58,$F$2:$G$43,2,FALSE)+ROW()-2)),\"\")","v":{"$error":"#N/A"}},{"$f":"IF(INDIRECT(\"c\" & (VLOOKUP(Switch!$D$59,$F$2:$G$43,2,FALSE)+ROW()-2))=Switch!$D$59,INDIRECT(\"a\" & (VLOOKUP(Switch!$D$59,$F$2:$G$43,2,FALSE)+ROW()-2)),\"\")","v":{"$error":"#N/A"}},{"$f":"IF(INDIRECT(\"c\" & (VLOOKUP(Switch!$D$60,$F$2:$G$43,2,FALSE)+ROW()-2))=Switch!$D$60,INDIRECT(\"a\" & (VLOOKUP(Switch!$D$60,$F$2:$G$43,2,FALSE)+ROW()-2)),\"\")","v":{"$error":"#N/A"}},{"$f":"IF(INDIRECT(\"c\" & (VLOOKUP(Switch!$D$61,$F$2:$G$43,2,FALSE)+ROW()-2))=Switch!$D$61,INDIRECT(\"a\" & (VLOOKUP(Switch!$D$61,$F$2:$G$43,2,FALSE)+ROW()-2)),\"\")","v":{"$error":"#N/A"}},{"$f":"IF(INDIRECT(\"c\" & (VLOOKUP(Switch!$D$62,$F$2:$G$43,2,FALSE)+ROW()-2))=Switch!$D$62,INDIRECT(\"a\" & (VLOOKUP(Switch!$D$62,$F$2:$G$43,2,FALSE)+ROW()-2)),\"\")","v":{"$error":"#N/A"}},{"$f":"IF(INDIRECT(\"c\" & (VLOOKUP(Switch!$D$63,$F$2:$G$43,2,FALSE)+ROW()-2))=Switch!$D$63,INDIRECT(\"a\" & (VLOOKUP(Switch!$D$63,$F$2:$G$43,2,FALSE)+ROW()-2)),\"\")","v":{"$error":"#N/A"}},{"$f":"IF(INDIRECT(\"c\" & (VLOOKUP(Switch!$D$64,$F$2:$G$43,2,FALSE)+ROW()-2))=Switch!$D$64,INDIRECT(\"a\" & (VLOOKUP(Switch!$D$64,$F$2:$G$43,2,FALSE)+ROW()-2)),\"\")","v":{"$error":"#N/A"}},{"$f":"IF(INDIRECT(\"c\" & (VLOOKUP(Switch!$D$65,$F$2:$G$43,2,FALSE)+ROW()-2))=Switch!$D$65,INDIRECT(\"a\" & (VLOOKUP(Switch!$D$65,$F$2:$G$43,2,FALSE)+ROW()-2)),\"\")","v":{"$error":"#N/A"}},{"$f":"IF(INDIRECT(\"c\" & (VLOOKUP(Switch!$D$66,$F$2:$G$43,2,FALSE)+ROW()-2))=Switch!$D$66,INDIRECT(\"a\" & (VLOOKUP(Switch!$D$66,$F$2:$G$43,2,FALSE)+ROW()-2)),\"\")","v":{"$error":"#N/A"}}]
[null,null,null,{"$f":"ROW()","v":576},null,null,{"$f":"VLOOKUP(F576,$C$2:$D$637,2,FALSE)","v":{"$error":"#N/A"}},{"$f":"IF(INDIRECT(\"c\" & (VLOOKUP(Switch!$D$26,$F$2:$G$43,2,FALSE)+ROW()-2))=Switch!$D$26,INDIRECT(\"a\" & (VLOOKUP(Switch!$D$26,$F$2:$G$43,2,FALSE)+ROW()-2)),\"\")","v":{"$error":"#N/A"}},{"$f":"IF(INDIRECT(\"c\" & (VLOOKUP(Switch!$D$27,$F$2:$G$43,2,FALSE)+ROW()-2))=Switch!$D$27,INDIRECT(\"a\" & (VLOOKUP(Switch!$D$27,$F$2:$G$43,2,FALSE)+ROW()-2)),\"\")","v":{"$error":"#N/A"}},{"$f":"IF(INDIRECT(\"c\" & (VLOOKUP(Switch!$D$28,$F$2:$G$43,2,FALSE)+ROW()-2))=Switch!$D$28,INDIRECT(\"a\" & (VLOOKUP(Switch!$D$28,$F$2:$G$43,2,FALSE)+ROW()-2)),\"\")","v":{"$error":"#N/A"}},{"$f":"IF(INDIRECT(\"c\" & (VLOOKUP(Switch!$D$29,$F$2:$G$43,2,FALSE)+ROW()-2))=Switch!$D$29,INDIRECT(\"a\" & (VLOOKUP(Switch!$D$29,$F$2:$G$43,2,FALSE)+ROW()-2)),\"\")","v":{"$error":"#N/A"}},{"$f":"IF(INDIRECT(\"c\" & (VLOOKUP(Switch!$D$30,$F$2:$G$43,2,FALSE)+ROW()-2))=Switch!$D$30,INDIRECT(\"a\" & (VLOOKUP(Switch!$D$30,$F$2:$G$43,2,FALSE)+ROW()-2)),\"\")","v":{"$error":"#N/A"}},{"$f":"IF(INDIRECT(\"c\" & (VLOOKUP(Switch!$D$31,$F$2:$G$43,2,FALSE)+ROW()-2))=Switch!$D$31,INDIRECT(\"a\" & (VLOOKUP(Switch!$D$31,$F$2:$G$43,2,FALSE)+ROW()-2)),\"\")","v":{"$error":"#N/A"}},{"$f":"IF(INDIRECT(\"c\" & (VLOOKUP(Switch!$D$32,$F$2:$G$43,2,FALSE)+ROW()-2))=Switch!$D$32,INDIRECT(\"a\" & (VLOOKUP(Switch!$D$32,$F$2:$G$43,2,FALSE)+ROW()-2)),\"\")","v":{"$error":"#N/A"}},{"$f":"IF(INDIRECT(\"c\" & (VLOOKUP(Switch!$D$33,$F$2:$G$43,2,FALSE)+ROW()-2))=Switch!$D$33,INDIRECT(\"a\" & (VLOOKUP(Switch!$D$33,$F$2:$G$43,2,FALSE)+ROW()-2)),\"\")","v":{"$error":"#N/A"}},{"$f":"IF(INDIRECT(\"c\" & (VLOOKUP(Switch!$D$34,$F$2:$G$43,2,FALSE)+ROW()-2))=Switch!$D$34,INDIRECT(\"a\" & (VLOOKUP(Switch!$D$34,$F$2:$G$43,2,FALSE)+ROW()-2)),\"\")","v":{"$error":"#N/A"}},{"$f":"IF(INDIRECT(\"c\" & (VLOOKUP(Switch!$D$35,$F$2:$G$43,2,FALSE)+ROW()-2))=Switch!$D$35,INDIRECT(\"a\" & (VLOOKUP(Switch!$D$35,$F$2:$G$43,2,FALSE)+ROW()-2)),\"\")","v":{"$error":"#N/A"}},{"$f":"IF(INDIRECT(\"c\" & (VLOOKUP(Switch!$D$36,$F$2:$G$43,2,FALSE)+ROW()-2))=Switch!$D$36,INDIRECT(\"a\" & (VLOOKUP(Switch!$D$36,$F$2:$G$43,2,FALSE)+ROW()-2)),\"\")","v":{"$error":"#N/A"}},{"$f":"IF(INDIRECT(\"c\" & (VLOOKUP(Switch!$D$37,$F$2:$G$43,2,FALSE)+ROW()-2))=Switch!$D$37,INDIRECT(\"a\" & (VLOOKUP(Switch!$D$37,$F$2:$G$43,2,FALSE)+ROW()-2)),\"\")","v":{"$error":"#N/A"}},{"$f":"IF(INDIRECT(\"c\" & (VLOOKUP(Switch!$D$38,$F$2:$G$43,2,FALSE)+ROW()-2))=Switch!$D$38,INDIRECT(\"a\" & (VLOOKUP(Switch!$D$38,$F$2:$G$43,2,FALSE)+ROW()-2)),\"\")","v":{"$error":"#N/A"}},{"$f":"IF(INDIRECT(\"c\" & (VLOOKUP(Switch!$D$39,$F$2:$G$43,2,FALSE)+ROW()-2))=Switch!$D$39,INDIRECT(\"a\" & (VLOOKUP(Switch!$D$39,$F$2:$G$43,2,FALSE)+ROW()-2)),\"\")","v":{"$error":"#N/A"}},{"$f":"IF(INDIRECT(\"c\" & (VLOOKUP(Switch!$D$40,$F$2:$G$43,2,FALSE)+ROW()-2))=Switch!$D$40,INDIRECT(\"a\" & (VLOOKUP(Switch!$D$40,$F$2:$G$43,2,FALSE)+ROW()-2)),\"\")","v":{"$error":"#N/A"}},{"$f":"IF(INDIRECT(\"c\" & (VLOOKUP(Switch!$D$52,$F$2:$G$43,2,FALSE)+ROW()-2))=Switch!$D$52,INDIRECT(\"a\" & (VLOOKUP(Switch!$D$52,$F$2:$G$43,2,FALSE)+ROW()-2)),\"\")","v":{"$error":"#N/A"}},{"$f":"IF(INDIRECT(\"c\" & (VLOOKUP(Switch!$D$53,$F$2:$G$43,2,FALSE)+ROW()-2))=Switch!$D$53,INDIRECT(\"a\" & (VLOOKUP(Switch!$D$53,$F$2:$G$43,2,FALSE)+ROW()-2)),\"\")","v":{"$error":"#N/A"}},{"$f":"IF(INDIRECT(\"c\" & (VLOOKUP(Switch!$D$54,$F$2:$G$43,2,FALSE)+ROW()-2))=Switch!$D$54,INDIRECT(\"a\" & (VLOOKUP(Switch!$D$54,$F$2:$G$43,2,FALSE)+ROW()-2)),\"\")","v":{"$error":"#N/A"}},{"$f":"IF(INDIRECT(\"c\" & (VLOOKUP(Switch!$D$55,$F$2:$G$43,2,FALSE)+ROW()-2))=Switch!$D$55,INDIRECT(\"a\" & (VLOOKUP(Switch!$D$55,$F$2:$G$43,2,FALSE)+ROW()-2)),\"\")","v":{"$error":"#N/A"}},{"$f":"IF(INDIRECT(\"c\" & (VLOOKUP(Switch!$D$56,$F$2:$G$43,2,FALSE)+ROW()-2))=Switch!$D$56,INDIRECT(\"a\" & (VLOOKUP(Switch!$D$56,$F$2:$G$43,2,FALSE)+ROW()-2)),\"\")","v":{"$error":"#N/A"}},{"$f":"IF(INDIRECT(\"c\" & (VLOOKUP(Switch!$D$57,$F$2:$G$43,2,FALSE)+ROW()-2))=Switch!$D$57,INDIRECT(\"a\" & (VLOOKUP(Switch!$D$57,$F$2:$G$43,2,FALSE)+ROW()-2)),\"\")","v":{"$error":"#N/A"}},{"$f":"IF(INDIRECT(\"c\" & (VLOOKUP(Switch!$D$58,$F$2:$G$43,2,FALSE)+ROW()-2))=Switch!$D$58,INDIRECT(\"a\" & (VLOOKUP(Switch!$D$58,$F$2:$G$43,2,FALSE)+ROW()-2)),\"\")","v":{"$error":"#N/A"}},{"$f":"IF(INDIRECT(\"c\" & (VLOOKUP(Switch!$D$59,$F$2:$G$43,2,FALSE)+ROW()-2))=Switch!$D$59,INDIRECT(\"a\" & (VLOOKUP(Switch!$D$59,$F$2:$G$43,2,FALSE)+ROW()-2)),\"\")","v":{"$error":"#N/A"}},{"$f":"IF(INDIRECT(\"c\" & (VLOOKUP(Switch!$D$60,$F$2:$G$43,2,FALSE)+ROW()-2))=Switch!$D$60,INDIRECT(\"a\" & (VLOOKUP(Switch!$D$60,$F$2:$G$43,2,FALSE)+ROW()-2)),\"\")","v":{"$error":"#N/A"}},{"$f":"IF(INDIRECT(\"c\" & (VLOOKUP(Switch!$D$61,$F$2:$G$43,2,FALSE)+ROW()-2))=Switch!$D$61,INDIRECT(\"a\" & (VLOOKUP(Switch!$D$61,$F$2:$G$43,2,FALSE)+ROW()-2)),\"\")","v":{"$error":"#N/A"}},{"$f":"IF(INDIRECT(\"c\" & (VLOOKUP(Switch!$D$62,$F$2:$G$43,2,FALSE)+ROW()-2))=Switch!$D$62,INDIRECT(\"a\" & (VLOOKUP(Switch!$D$62,$F$2:$G$43,2,FALSE)+ROW()-2)),\"\")","v":{"$error":"#N/A"}},{"$f":"IF(INDIRECT(\"c\" & (VLOOKUP(Switch!$D$63,$F$2:$G$43,2,FALSE)+ROW()-2))=Switch!$D$63,INDIRECT(\"a\" & (VLOOKUP(Switch!$D$63,$F$2:$G$43,2,FALSE)+ROW()-2)),\"\")","v":{"$error":"#N/A"}},{"$f":"IF(INDIRECT(\"c\" & (VLOOKUP(Switch!$D$64,$F$2:$G$43,2,FALSE)+ROW()-2))=Switch!$D$64,INDIRECT(\"a\" & (VLOOKUP(Switch!$D$64,$F$2:$G$43,2,FALSE)+ROW()-2)),\"\")","v":{"$error":"#N/A"}},{"$f":"IF(INDIRECT(\"c\" & (VLOOKUP(Switch!$D$65,$F$2:$G$43,2,FALSE)+ROW()-2))=Switch!$D$65,INDIRECT(\"a\" & (VLOOKUP(Switch!$D$65,$F$2:$G$43,2,FALSE)+ROW()-2)),\"\")","v":{"$error":"#N/A"}},{"$f":"IF(INDIRECT(\"c\" & (VLOOKUP(Switch!$D$66,$F$2:$G$43,2,FALSE)+ROW()-2))=Switch!$D$66,INDIRECT(\"a\" & (VLOOKUP(Switch!$D$66,$F$2:$G$43,2,FALSE)+ROW()-2)),\"\")","v":{"$error":"#N/A"}}]
[null,null,null,{"$f":"ROW()","v":577},null,null,{"$f":"VLOOKUP(F577,$C$2:$D$637,2,FALSE)","v":{"$error":"#N/A"}},{"$f":"IF(INDIRECT(\"c\" & (VLOOKUP(Switch!$D$26,$F$2:$G$43,2,FALSE)+ROW()-2))=Switch!$D$26,INDIRECT(\"a\" & (VLOOKUP(Switch!$D$26,$F$2:$G$43,2,FALSE)+ROW()-2)),\"\")","v":{"$error":"#N/A"}},{"$f":"IF(INDIRECT(\"c\" & (VLOOKUP(Switch!$D$27,$F$2:$G$43,2,FALSE)+ROW()-2))=Switch!$D$27,INDIRECT(\"a\" & (VLOOKUP(Switch!$D$27,$F$2:$G$43,2,FALSE)+ROW()-2)),\"\")","v":{"$error":"#N/A"}},{"$f":"IF(INDIRECT(\"c\" & (VLOOKUP(Switch!$D$28,$F$2:$G$43,2,FALSE)+ROW()-2))=Switch!$D$28,INDIRECT(\"a\" & (VLOOKUP(Switch!$D$28,$F$2:$G$43,2,FALSE)+ROW()-2)),\"\")","v":{"$error":"#N/A"}},{"$f":"IF(INDIRECT(\"c\" & (VLOOKUP(Switch!$D$29,$F$2:$G$43,2,FALSE)+ROW()-2))=Switch!$D$29,INDIRECT(\"a\" & (VLOOKUP(Switch!$D$29,$F$2:$G$43,2,FALSE)+ROW()-2)),\"\")","v":{"$error":"#N/A"}},{"$f":"IF(INDIRECT(\"c\" & (VLOOKUP(Switch!$D$30,$F$2:$G$43,2,FALSE)+ROW()-2))=Switch!$D$30,INDIRECT(\"a\" & (VLOOKUP(Switch!$D$30,$F$2:$G$43,2,FALSE)+ROW()-2)),\"\")","v":{"$error":"#N/A"}},{"$f":"IF(INDIRECT(\"c\" & (VLOOKUP(Switch!$D$31,$F$2:$G$43,2,FALSE)+ROW()-2))=Switch!$D$31,INDIRECT(\"a\" & (VLOOKUP(Switch!$D$31,$F$2:$G$43,2,FALSE)+ROW()-2)),\"\")","v":{"$error":"#N/A"}},{"$f":"IF(INDIRECT(\"c\" & (VLOOKUP(Switch!$D$32,$F$2:$G$43,2,FALSE)+ROW()-2))=Switch!$D$32,INDIRECT(\"a\" & (VLOOKUP(Switch!$D$32,$F$2:$G$43,2,FALSE)+ROW()-2)),\"\")","v":{"$error":"#N/A"}},{"$f":"IF(INDIRECT(\"c\" & (VLOOKUP(Switch!$D$33,$F$2:$G$43,2,FALSE)+ROW()-2))=Switch!$D$33,INDIRECT(\"a\" & (VLOOKUP(Switch!$D$33,$F$2:$G$43,2,FALSE)+ROW()-2)),\"\")","v":{"$error":"#N/A"}},{"$f":"IF(INDIRECT(\"c\" & (VLOOKUP(Switch!$D$34,$F$2:$G$43,2,FALSE)+ROW()-2))=Switch!$D$34,INDIRECT(\"a\" & (VLOOKUP(Switch!$D$34,$F$2:$G$43,2,FALSE)+ROW()-2)),\"\")","v":{"$error":"#N/A"}},{"$f":"IF(INDIRECT(\"c\" & (VLOOKUP(Switch!$D$35,$F$2:$G$43,2,FALSE)+ROW()-2))=Switch!$D$35,INDIRECT(\"a\" & (VLOOKUP(Switch!$D$35,$F$2:$G$43,2,FALSE)+ROW()-2)),\"\")","v":{"$error":"#N/A"}},{"$f":"IF(INDIRECT(\"c\" & (VLOOKUP(Switch!$D$36,$F$2:$G$43,2,FALSE)+ROW()-2))=Switch!$D$36,INDIRECT(\"a\" & (VLOOKUP(Switch!$D$36,$F$2:$G$43,2,FALSE)+ROW()-2)),\"\")","v":{"$error":"#N/A"}},{"$f":"IF(INDIRECT(\"c\" & (VLOOKUP(Switch!$D$37,$F$2:$G$43,2,FALSE)+ROW()-2))=Switch!$D$37,INDIRECT(\"a\" & (VLOOKUP(Switch!$D$37,$F$2:$G$43,2,FALSE)+ROW()-2)),\"\")","v":{"$error":"#N/A"}},{"$f":"IF(INDIRECT(\"c\" & (VLOOKUP(Switch!$D$38,$F$2:$G$43,2,FALSE)+ROW()-2))=Switch!$D$38,INDIRECT(\"a\" & (VLOOKUP(Switch!$D$38,$F$2:$G$43,2,FALSE)+ROW()-2)),\"\")","v":{"$error":"#N/A"}},{"$f":"IF(INDIRECT(\"c\" & (VLOOKUP(Switch!$D$39,$F$2:$G$43,2,FALSE)+ROW()-2))=Switch!$D$39,INDIRECT(\"a\" & (VLOOKUP(Switch!$D$39,$F$2:$G$43,2,FALSE)+ROW()-2)),\"\")","v":{"$error":"#N/A"}},{"$f":"IF(INDIRECT(\"c\" & (VLOOKUP(Switch!$D$40,$F$2:$G$43,2,FALSE)+ROW()-2))=Switch!$D$40,INDIRECT(\"a\" & (VLOOKUP(Switch!$D$40,$F$2:$G$43,2,FALSE)+ROW()-2)),\"\")","v":{"$error":"#N/A"}},{"$f":"IF(INDIRECT(\"c\" & (VLOOKUP(Switch!$D$52,$F$2:$G$43,2,FALSE)+ROW()-2))=Switch!$D$52,INDIRECT(\"a\" & (VLOOKUP(Switch!$D$52,$F$2:$G$43,2,FALSE)+ROW()-2)),\"\")","v":{"$error":"#N/A"}},{"$f":"IF(INDIRECT(\"c\" & (VLOOKUP(Switch!$D$53,$F$2:$G$43,2,FALSE)+ROW()-2))=Switch!$D$53,INDIRECT(\"a\" & (VLOOKUP(Switch!$D$53,$F$2:$G$43,2,FALSE)+ROW()-2)),\"\")","v":{"$error":"#N/A"}},{"$f":"IF(INDIRECT(\"c\" & (VLOOKUP(Switch!$D$54,$F$2:$G$43,2,FALSE)+ROW()-2))=Switch!$D$54,INDIRECT(\"a\" & (VLOOKUP(Switch!$D$54,$F$2:$G$43,2,FALSE)+ROW()-2)),\"\")","v":{"$error":"#N/A"}},{"$f":"IF(INDIRECT(\"c\" & (VLOOKUP(Switch!$D$55,$F$2:$G$43,2,FALSE)+ROW()-2))=Switch!$D$55,INDIRECT(\"a\" & (VLOOKUP(Switch!$D$55,$F$2:$G$43,2,FALSE)+ROW()-2)),\"\")","v":{"$error":"#N/A"}},{"$f":"IF(INDIRECT(\"c\" & (VLOOKUP(Switch!$D$56,$F$2:$G$43,2,FALSE)+ROW()-2))=Switch!$D$56,INDIRECT(\"a\" & (VLOOKUP(Switch!$D$56,$F$2:$G$43,2,FALSE)+ROW()-2)),\"\")","v":{"$error":"#N/A"}},{"$f":"IF(INDIRECT(\"c\" & (VLOOKUP(Switch!$D$57,$F$2:$G$43,2,FALSE)+ROW()-2))=Switch!$D$57,INDIRECT(\"a\" & (VLOOKUP(Switch!$D$57,$F$2:$G$43,2,FALSE)+ROW()-2)),\"\")","v":{"$error":"#N/A"}},{"$f":"IF(INDIRECT(\"c\" & (VLOOKUP(Switch!$D$58,$F$2:$G$43,2,FALSE)+ROW()-2))=Switch!$D$58,INDIRECT(\"a\" & (VLOOKUP(Switch!$D$58,$F$2:$G$43,2,FALSE)+ROW()-2)),\"\")","v":{"$error":"#N/A"}},{"$f":"IF(INDIRECT(\"c\" & (VLOOKUP(Switch!$D$59,$F$2:$G$43,2,FALSE)+ROW()-2))=Switch!$D$59,INDIRECT(\"a\" & (VLOOKUP(Switch!$D$59,$F$2:$G$43,2,FALSE)+ROW()-2)),\"\")","v":{"$error":"#N/A"}},{"$f":"IF(INDIRECT(\"c\" & (VLOOKUP(Switch!$D$60,$F$2:$G$43,2,FALSE)+ROW()-2))=Switch!$D$60,INDIRECT(\"a\" & (VLOOKUP(Switch!$D$60,$F$2:$G$43,2,FALSE)+ROW()-2)),\"\")","v":{"$error":"#N/A"}},{"$f":"IF(INDIRECT(\"c\" & (VLOOKUP(Switch!$D$61,$F$2:$G$43,2,FALSE)+ROW()-2))=Switch!$D$61,INDIRECT(\"a\" & (VLOOKUP(Switch!$D$61,$F$2:$G$43,2,FALSE)+ROW()-2)),\"\")","v":{"$error":"#N/A"}},{"$f":"IF(INDIRECT(\"c\" & (VLOOKUP(Switch!$D$62,$F$2:$G$43,2,FALSE)+ROW()-2))=Switch!$D$62,INDIRECT(\"a\" & (VLOOKUP(Switch!$D$62,$F$2:$G$43,2,FALSE)+ROW()-2)),\"\")","v":{"$error":"#N/A"}},{"$f":"IF(INDIRECT(\"c\" & (VLOOKUP(Switch!$D$63,$F$2:$G$43,2,FALSE)+ROW()-2))=Switch!$D$63,INDIRECT(\"a\" & (VLOOKUP(Switch!$D$63,$F$2:$G$43,2,FALSE)+ROW()-2)),\"\")","v":{"$error":"#N/A"}},{"$f":"IF(INDIRECT(\"c\" & (VLOOKUP(Switch!$D$64,$F$2:$G$43,2,FALSE)+ROW()-2))=Switch!$D$64,INDIRECT(\"a\" & (VLOOKUP(Switch!$D$64,$F$2:$G$43,2,FALSE)+ROW()-2)),\"\")","v":{"$error":"#N/A"}},{"$f":"IF(INDIRECT(\"c\" & (VLOOKUP(Switch!$D$65,$F$2:$G$43,2,FALSE)+ROW()-2))=Switch!$D$65,INDIRECT(\"a\" & (VLOOKUP(Switch!$D$65,$F$2:$G$43,2,FALSE)+ROW()-2)),\"\")","v":{"$error":"#N/A"}},{"$f":"IF(INDIRECT(\"c\" & (VLOOKUP(Switch!$D$66,$F$2:$G$43,2,FALSE)+ROW()-2))=Switch!$D$66,INDIRECT(\"a\" & (VLOOKUP(Switch!$D$66,$F$2:$G$43,2,FALSE)+ROW()-2)),\"\")","v":{"$error":"#N/A"}}]
[null,null,null,{"$f":"ROW()","v":578},null,null,{"$f":"VLOOKUP(F578,$C$2:$D$637,2,FALSE)","v":{"$error":"#N/A"}},{"$f":"IF(INDIRECT(\"c\" & (VLOOKUP(Switch!$D$26,$F$2:$G$43,2,FALSE)+ROW()-2))=Switch!$D$26,INDIRECT(\"a\" & (VLOOKUP(Switch!$D$26,$F$2:$G$43,2,FALSE)+ROW()-2)),\"\")","v":{"$error":"#N/A"}},{"$f":"IF(INDIRECT(\"c\" & (VLOOKUP(Switch!$D$27,$F$2:$G$43,2,FALSE)+ROW()-2))=Switch!$D$27,INDIRECT(\"a\" & (VLOOKUP(Switch!$D$27,$F$2:$G$43,2,FALSE)+ROW()-2)),\"\")","v":{"$error":"#N/A"}},{"$f":"IF(INDIRECT(\"c\" & (VLOOKUP(Switch!$D$28,$F$2:$G$43,2,FALSE)+ROW()-2))=Switch!$D$28,INDIRECT(\"a\" & (VLOOKUP(Switch!$D$28,$F$2:$G$43,2,FALSE)+ROW()-2)),\"\")","v":{"$error":"#N/A"}},{"$f":"IF(INDIRECT(\"c\" & (VLOOKUP(Switch!$D$29,$F$2:$G$43,2,FALSE)+ROW()-2))=Switch!$D$29,INDIRECT(\"a\" & (VLOOKUP(Switch!$D$29,$F$2:$G$43,2,FALSE)+ROW()-2)),\"\")","v":{"$error":"#N/A"}},{"$f":"IF(INDIRECT(\"c\" & (VLOOKUP(Switch!$D$30,$F$2:$G$43,2,FALSE)+ROW()-2))=Switch!$D$30,INDIRECT(\"a\" & (VLOOKUP(Switch!$D$30,$F$2:$G$43,2,FALSE)+ROW()-2)),\"\")","v":{"$error":"#N/A"}},{"$f":"IF(INDIRECT(\"c\" & (VLOOKUP(Switch!$D$31,$F$2:$G$43,2,FALSE)+ROW()-2))=Switch!$D$31,INDIRECT(\"a\" & (VLOOKUP(Switch!$D$31,$F$2:$G$43,2,FALSE)+ROW()-2)),\"\")","v":{"$error":"#N/A"}},{"$f":"IF(INDIRECT(\"c\" & (VLOOKUP(Switch!$D$32,$F$2:$G$43,2,FALSE)+ROW()-2))=Switch!$D$32,INDIRECT(\"a\" & (VLOOKUP(Switch!$D$32,$F$2:$G$43,2,FALSE)+ROW()-2)),\"\")","v":{"$error":"#N/A"}},{"$f":"IF(INDIRECT(\"c\" & (VLOOKUP(Switch!$D$33,$F$2:$G$43,2,FALSE)+ROW()-2))=Switch!$D$33,INDIRECT(\"a\" & (VLOOKUP(Switch!$D$33,$F$2:$G$43,2,FALSE)+ROW()-2)),\"\")","v":{"$error":"#N/A"}},{"$f":"IF(INDIRECT(\"c\" & (VLOOKUP(Switch!$D$34,$F$2:$G$43,2,FALSE)+ROW()-2))=Switch!$D$34,INDIRECT(\"a\" & (VLOOKUP(Switch!$D$34,$F$2:$G$43,2,FALSE)+ROW()-2)),\"\")","v":{"$error":"#N/A"}},{"$f":"IF(INDIRECT(\"c\" & (VLOOKUP(Switch!$D$35,$F$2:$G$43,2,FALSE)+ROW()-2))=Switch!$D$35,INDIRECT(\"a\" & (VLOOKUP(Switch!$D$35,$F$2:$G$43,2,FALSE)+ROW()-2)),\"\")","v":{"$error":"#N/A"}},{"$f":"IF(INDIRECT(\"c\" & (VLOOKUP(Switch!$D$36,$F$2:$G$43,2,FALSE)+ROW()-2))=Switch!$D$36,INDIRECT(\"a\" & (VLOOKUP(Switch!$D$36,$F$2:$G$43,2,FALSE)+ROW()-2)),\"\")","v":{"$error":"#N/A"}},{"$f":"IF(INDIRECT(\"c\" & (VLOOKUP(Switch!$D$37,$F$2:$G$43,2,FALSE)+ROW()-2))=Switch!$D$37,INDIRECT(\"a\" & (VLOOKUP(Switch!$D$37,$F$2:$G$43,2,FALSE)+ROW()-2)),\"\")","v":{"$error":"#N/A"}},{"$f":"IF(INDIRECT(\"c\" & (VLOOKUP(Switch!$D$38,$F$2:$G$43,2,FALSE)+ROW()-2))=Switch!$D$38,INDIRECT(\"a\" & (VLOOKUP(Switch!$D$38,$F$2:$G$43,2,FALSE)+ROW()-2)),\"\")","v":{"$error":"#N/A"}},{"$f":"IF(INDIRECT(\"c\" & (VLOOKUP(Switch!$D$39,$F$2:$G$43,2,FALSE)+ROW()-2))=Switch!$D$39,INDIRECT(\"a\" & (VLOOKUP(Switch!$D$39,$F$2:$G$43,2,FALSE)+ROW()-2)),\"\")","v":{"$error":"#N/A"}},{"$f":"IF(INDIRECT(\"c\" & (VLOOKUP(Switch!$D$40,$F$2:$G$43,2,FALSE)+ROW()-2))=Switch!$D$40,INDIRECT(\"a\" & (VLOOKUP(Switch!$D$40,$F$2:$G$43,2,FALSE)+ROW()-2)),\"\")","v":{"$error":"#N/A"}},{"$f":"IF(INDIRECT(\"c\" & (VLOOKUP(Switch!$D$52,$F$2:$G$43,2,FALSE)+ROW()-2))=Switch!$D$52,INDIRECT(\"a\" & (VLOOKUP(Switch!$D$52,$F$2:$G$43,2,FALSE)+ROW()-2)),\"\")","v":{"$error":"#N/A"}},{"$f":"IF(INDIRECT(\"c\" & (VLOOKUP(Switch!$D$53,$F$2:$G$43,2,FALSE)+ROW()-2))=Switch!$D$53,INDIRECT(\"a\" & (VLOOKUP(Switch!$D$53,$F$2:$G$43,2,FALSE)+ROW()-2)),\"\")","v":{"$error":"#N/A"}},{"$f":"IF(INDIRECT(\"c\" & (VLOOKUP(Switch!$D$54,$F$2:$G$43,2,FALSE)+ROW()-2))=Switch!$D$54,INDIRECT(\"a\" & (VLOOKUP(Switch!$D$54,$F$2:$G$43,2,FALSE)+ROW()-2)),\"\")","v":{"$error":"#N/A"}},{"$f":"IF(INDIRECT(\"c\" & (VLOOKUP(Switch!$D$55,$F$2:$G$43,2,FALSE)+ROW()-2))=Switch!$D$55,INDIRECT(\"a\" & (VLOOKUP(Switch!$D$55,$F$2:$G$43,2,FALSE)+ROW()-2)),\"\")","v":{"$error":"#N/A"}},{"$f":"IF(INDIRECT(\"c\" & (VLOOKUP(Switch!$D$56,$F$2:$G$43,2,FALSE)+ROW()-2))=Switch!$D$56,INDIRECT(\"a\" & (VLOOKUP(Switch!$D$56,$F$2:$G$43,2,FALSE)+ROW()-2)),\"\")","v":{"$error":"#N/A"}},{"$f":"IF(INDIRECT(\"c\" & (VLOOKUP(Switch!$D$57,$F$2:$G$43,2,FALSE)+ROW()-2))=Switch!$D$57,INDIRECT(\"a\" & (VLOOKUP(Switch!$D$57,$F$2:$G$43,2,FALSE)+ROW()-2)),\"\")","v":{"$error":"#N/A"}},{"$f":"IF(INDIRECT(\"c\" & (VLOOKUP(Switch!$D$58,$F$2:$G$43,2,FALSE)+ROW()-2))=Switch!$D$58,INDIRECT(\"a\" & (VLOOKUP(Switch!$D$58,$F$2:$G$43,2,FALSE)+ROW()-2)),\"\")","v":{"$error":"#N/A"}},{"$f":"IF(INDIRECT(\"c\" & (VLOOKUP(Switch!$D$59,$F$2:$G$43,2,FALSE)+ROW()-2))=Switch!$D$59,INDIRECT(\"a\" & (VLOOKUP(Switch!$D$59,$F$2:$G$43,2,FALSE)+ROW()-2)),\"\")","v":{"$error":"#N/A"}},{"$f":"IF(INDIRECT(\"c\" & (VLOOKUP(Switch!$D$60,$F$2:$G$43,2,FALSE)+ROW()-2))=Switch!$D$60,INDIRECT(\"a\" & (VLOOKUP(Switch!$D$60,$F$2:$G$43,2,FALSE)+ROW()-2)),\"\")","v":{"$error":"#N/A"}},{"$f":"IF(INDIRECT(\"c\" & (VLOOKUP(Switch!$D$61,$F$2:$G$43,2,FALSE)+ROW()-2))=Switch!$D$61,INDIRECT(\"a\" & (VLOOKUP(Switch!$D$61,$F$2:$G$43,2,FALSE)+ROW()-2)),\"\")","v":{"$error":"#N/A"}},{"$f":"IF(INDIRECT(\"c\" & (VLOOKUP(Switch!$D$62,$F$2:$G$43,2,FALSE)+ROW()-2))=Switch!$D$62,INDIRECT(\"a\" & (VLOOKUP(Switch!$D$62,$F$2:$G$43,2,FALSE)+ROW()-2)),\"\")","v":{"$error":"#N/A"}},{"$f":"IF(INDIRECT(\"c\" & (VLOOKUP(Switch!$D$63,$F$2:$G$43,2,FALSE)+ROW()-2))=Switch!$D$63,INDIRECT(\"a\" & (VLOOKUP(Switch!$D$63,$F$2:$G$43,2,FALSE)+ROW()-2)),\"\")","v":{"$error":"#N/A"}},{"$f":"IF(INDIRECT(\"c\" & (VLOOKUP(Switch!$D$64,$F$2:$G$43,2,FALSE)+ROW()-2))=Switch!$D$64,INDIRECT(\"a\" & (VLOOKUP(Switch!$D$64,$F$2:$G$43,2,FALSE)+ROW()-2)),\"\")","v":{"$error":"#N/A"}},{"$f":"IF(INDIRECT(\"c\" & (VLOOKUP(Switch!$D$65,$F$2:$G$43,2,FALSE)+ROW()-2))=Switch!$D$65,INDIRECT(\"a\" & (VLOOKUP(Switch!$D$65,$F$2:$G$43,2,FALSE)+ROW()-2)),\"\")","v":{"$error":"#N/A"}},{"$f":"IF(INDIRECT(\"c\" & (VLOOKUP(Switch!$D$66,$F$2:$G$43,2,FALSE)+ROW()-2))=Switch!$D$66,INDIRECT(\"a\" & (VLOOKUP(Switch!$D$66,$F$2:$G$43,2,FALSE)+ROW()-2)),\"\")","v":{"$error":"#N/A"}}]
[null,null,null,{"$f":"ROW()","v":579},null,null,{"$f":"VLOOKUP(F579,$C$2:$D$637,2,FALSE)","v":{"$error":"#N/A"}},{"$f":"IF(INDIRECT(\"c\" & (VLOOKUP(Switch!$D$26,$F$2:$G$43,2,FALSE)+ROW()-2))=Switch!$D$26,INDIRECT(\"a\" & (VLOOKUP(Switch!$D$26,$F$2:$G$43,2,FALSE)+ROW()-2)),\"\")","v":{"$error":"#N/A"}},{"$f":"IF(INDIRECT(\"c\" & (VLOOKUP(Switch!$D$27,$F$2:$G$43,2,FALSE)+ROW()-2))=Switch!$D$27,INDIRECT(\"a\" & (VLOOKUP(Switch!$D$27,$F$2:$G$43,2,FALSE)+ROW()-2)),\"\")","v":{"$error":"#N/A"}},{"$f":"IF(INDIRECT(\"c\" & (VLOOKUP(Switch!$D$28,$F$2:$G$43,2,FALSE)+ROW()-2))=Switch!$D$28,INDIRECT(\"a\" & (VLOOKUP(Switch!$D$28,$F$2:$G$43,2,FALSE)+ROW()-2)),\"\")","v":{"$error":"#N/A"}},{"$f":"IF(INDIRECT(\"c\" & (VLOOKUP(Switch!$D$29,$F$2:$G$43,2,FALSE)+ROW()-2))=Switch!$D$29,INDIRECT(\"a\" & (VLOOKUP(Switch!$D$29,$F$2:$G$43,2,FALSE)+ROW()-2)),\"\")","v":{"$error":"#N/A"}},{"$f":"IF(INDIRECT(\"c\" & (VLOOKUP(Switch!$D$30,$F$2:$G$43,2,FALSE)+ROW()-2))=Switch!$D$30,INDIRECT(\"a\" & (VLOOKUP(Switch!$D$30,$F$2:$G$43,2,FALSE)+ROW()-2)),\"\")","v":{"$error":"#N/A"}},{"$f":"IF(INDIRECT(\"c\" & (VLOOKUP(Switch!$D$31,$F$2:$G$43,2,FALSE)+ROW()-2))=Switch!$D$31,INDIRECT(\"a\" & (VLOOKUP(Switch!$D$31,$F$2:$G$43,2,FALSE)+ROW()-2)),\"\")","v":{"$error":"#N/A"}},{"$f":"IF(INDIRECT(\"c\" & (VLOOKUP(Switch!$D$32,$F$2:$G$43,2,FALSE)+ROW()-2))=Switch!$D$32,INDIRECT(\"a\" & (VLOOKUP(Switch!$D$32,$F$2:$G$43,2,FALSE)+ROW()-2)),\"\")","v":{"$error":"#N/A"}},{"$f":"IF(INDIRECT(\"c\" & (VLOOKUP(Switch!$D$33,$F$2:$G$43,2,FALSE)+ROW()-2))=Switch!$D$33,INDIRECT(\"a\" & (VLOOKUP(Switch!$D$33,$F$2:$G$43,2,FALSE)+ROW()-2)),\"\")","v":{"$error":"#N/A"}},{"$f":"IF(INDIRECT(\"c\" & (VLOOKUP(Switch!$D$34,$F$2:$G$43,2,FALSE)+ROW()-2))=Switch!$D$34,INDIRECT(\"a\" & (VLOOKUP(Switch!$D$34,$F$2:$G$43,2,FALSE)+ROW()-2)),\"\")","v":{"$error":"#N/A"}},{"$f":"IF(INDIRECT(\"c\" & (VLOOKUP(Switch!$D$35,$F$2:$G$43,2,FALSE)+ROW()-2))=Switch!$D$35,INDIRECT(\"a\" & (VLOOKUP(Switch!$D$35,$F$2:$G$43,2,FALSE)+ROW()-2)),\"\")","v":{"$error":"#N/A"}},{"$f":"IF(INDIRECT(\"c\" & (VLOOKUP(Switch!$D$36,$F$2:$G$43,2,FALSE)+ROW()-2))=Switch!$D$36,INDIRECT(\"a\" & (VLOOKUP(Switch!$D$36,$F$2:$G$43,2,FALSE)+ROW()-2)),\"\")","v":{"$error":"#N/A"}},{"$f":"IF(INDIRECT(\"c\" & (VLOOKUP(Switch!$D$37,$F$2:$G$43,2,FALSE)+ROW()-2))=Switch!$D$37,INDIRECT(\"a\" & (VLOOKUP(Switch!$D$37,$F$2:$G$43,2,FALSE)+ROW()-2)),\"\")","v":{"$error":"#N/A"}},{"$f":"IF(INDIRECT(\"c\" & (VLOOKUP(Switch!$D$38,$F$2:$G$43,2,FALSE)+ROW()-2))=Switch!$D$38,INDIRECT(\"a\" & (VLOOKUP(Switch!$D$38,$F$2:$G$43,2,FALSE)+ROW()-2)),\"\")","v":{"$error":"#N/A"}},{"$f":"IF(INDIRECT(\"c\" & (VLOOKUP(Switch!$D$39,$F$2:$G$43,2,FALSE)+ROW()-2))=Switch!$D$39,INDIRECT(\"a\" & (VLOOKUP(Switch!$D$39,$F$2:$G$43,2,FALSE)+ROW()-2)),\"\")","v":{"$error":"#N/A"}},{"$f":"IF(INDIRECT(\"c\" & (VLOOKUP(Switch!$D$40,$F$2:$G$43,2,FALSE)+ROW()-2))=Switch!$D$40,INDIRECT(\"a\" & (VLOOKUP(Switch!$D$40,$F$2:$G$43,2,FALSE)+ROW()-2)),\"\")","v":{"$error":"#N/A"}},{"$f":"IF(INDIRECT(\"c\" & (VLOOKUP(Switch!$D$52,$F$2:$G$43,2,FALSE)+ROW()-2))=Switch!$D$52,INDIRECT(\"a\" & (VLOOKUP(Switch!$D$52,$F$2:$G$43,2,FALSE)+ROW()-2)),\"\")","v":{"$error":"#N/A"}},{"$f":"IF(INDIRECT(\"c\" & (VLOOKUP(Switch!$D$53,$F$2:$G$43,2,FALSE)+ROW()-2))=Switch!$D$53,INDIRECT(\"a\" & (VLOOKUP(Switch!$D$53,$F$2:$G$43,2,FALSE)+ROW()-2)),\"\")","v":{"$error":"#N/A"}},{"$f":"IF(INDIRECT(\"c\" & (VLOOKUP(Switch!$D$54,$F$2:$G$43,2,FALSE)+ROW()-2))=Switch!$D$54,INDIRECT(\"a\" & (VLOOKUP(Switch!$D$54,$F$2:$G$43,2,FALSE)+ROW()-2)),\"\")","v":{"$error":"#N/A"}},{"$f":"IF(INDIRECT(\"c\" & (VLOOKUP(Switch!$D$55,$F$2:$G$43,2,FALSE)+ROW()-2))=Switch!$D$55,INDIRECT(\"a\" & (VLOOKUP(Switch!$D$55,$F$2:$G$43,2,FALSE)+ROW()-2)),\"\")","v":{"$error":"#N/A"}},{"$f":"IF(INDIRECT(\"c\" & (VLOOKUP(Switch!$D$56,$F$2:$G$43,2,FALSE)+ROW()-2))=Switch!$D$56,INDIRECT(\"a\" & (VLOOKUP(Switch!$D$56,$F$2:$G$43,2,FALSE)+ROW()-2)),\"\")","v":{"$error":"#N/A"}},{"$f":"IF(INDIRECT(\"c\" & (VLOOKUP(Switch!$D$57,$F$2:$G$43,2,FALSE)+ROW()-2))=Switch!$D$57,INDIRECT(\"a\" & (VLOOKUP(Switch!$D$57,$F$2:$G$43,2,FALSE)+ROW()-2)),\"\")","v":{"$error":"#N/A"}},{"$f":"IF(INDIRECT(\"c\" & (VLOOKUP(Switch!$D$58,$F$2:$G$43,2,FALSE)+ROW()-2))=Switch!$D$58,INDIRECT(\"a\" & (VLOOKUP(Switch!$D$58,$F$2:$G$43,2,FALSE)+ROW()-2)),\"\")","v":{"$error":"#N/A"}},{"$f":"IF(INDIRECT(\"c\" & (VLOOKUP(Switch!$D$59,$F$2:$G$43,2,FALSE)+ROW()-2))=Switch!$D$59,INDIRECT(\"a\" & (VLOOKUP(Switch!$D$59,$F$2:$G$43,2,FALSE)+ROW()-2)),\"\")","v":{"$error":"#N/A"}},{"$f":"IF(INDIRECT(\"c\" & (VLOOKUP(Switch!$D$60,$F$2:$G$43,2,FALSE)+ROW()-2))=Switch!$D$60,INDIRECT(\"a\" & (VLOOKUP(Switch!$D$60,$F$2:$G$43,2,FALSE)+ROW()-2)),\"\")","v":{"$error":"#N/A"}},{"$f":"IF(INDIRECT(\"c\" & (VLOOKUP(Switch!$D$61,$F$2:$G$43,2,FALSE)+ROW()-2))=Switch!$D$61,INDIRECT(\"a\" & (VLOOKUP(Switch!$D$61,$F$2:$G$43,2,FALSE)+ROW()-2)),\"\")","v":{"$error":"#N/A"}},{"$f":"IF(INDIRECT(\"c\" & (VLOOKUP(Switch!$D$62,$F$2:$G$43,2,FALSE)+ROW()-2))=Switch!$D$62,INDIRECT(\"a\" & (VLOOKUP(Switch!$D$62,$F$2:$G$43,2,FALSE)+ROW()-2)),\"\")","v":{"$error":"#N/A"}},{"$f":"IF(INDIRECT(\"c\" & (VLOOKUP(Switch!$D$63,$F$2:$G$43,2,FALSE)+ROW()-2))=Switch!$D$63,INDIRECT(\"a\" & (VLOOKUP(Switch!$D$63,$F$2:$G$43,2,FALSE)+ROW()-2)),\"\")","v":{"$error":"#N/A"}},{"$f":"IF(INDIRECT(\"c\" & (VLOOKUP(Switch!$D$64,$F$2:$G$43,2,FALSE)+ROW()-2))=Switch!$D$64,INDIRECT(\"a\" & (VLOOKUP(Switch!$D$64,$F$2:$G$43,2,FALSE)+ROW()-2)),\"\")","v":{"$error":"#N/A"}},{"$f":"IF(INDIRECT(\"c\" & (VLOOKUP(Switch!$D$65,$F$2:$G$43,2,FALSE)+ROW()-2))=Switch!$D$65,INDIRECT(\"a\" & (VLOOKUP(Switch!$D$65,$F$2:$G$43,2,FALSE)+ROW()-2)),\"\")","v":{"$error":"#N/A"}},{"$f":"IF(INDIRECT(\"c\" & (VLOOKUP(Switch!$D$66,$F$2:$G$43,2,FALSE)+ROW()-2))=Switch!$D$66,INDIRECT(\"a\" & (VLOOKUP(Switch!$D$66,$F$2:$G$43,2,FALSE)+ROW()-2)),\"\")","v":{"$error":"#N/A"}}]
[null,null,null,{"$f":"ROW()","v":580},null,null,{"$f":"VLOOKUP(F580,$C$2:$D$637,2,FALSE)","v":{"$error":"#N/A"}},{"$f":"IF(INDIRECT(\"c\" & (VLOOKUP(Switch!$D$26,$F$2:$G$43,2,FALSE)+ROW()-2))=Switch!$D$26,INDIRECT(\"a\" & (VLOOKUP(Switch!$D$26,$F$2:$G$43,2,FALSE)+ROW()-2)),\"\")","v":{"$error":"#N/A"}},{"$f":"IF(INDIRECT(\"c\" & (VLOOKUP(Switch!$D$27,$F$2:$G$43,2,FALSE)+ROW()-2))=Switch!$D$27,INDIRECT(\"a\" & (VLOOKUP(Switch!$D$27,$F$2:$G$43,2,FALSE)+ROW()-2)),\"\")","v":{"$error":"#N/A"}},{"$f":"IF(INDIRECT(\"c\" & (VLOOKUP(Switch!$D$28,$F$2:$G$43,2,FALSE)+ROW()-2))=Switch!$D$28,INDIRECT(\"a\" & (VLOOKUP(Switch!$D$28,$F$2:$G$43,2,FALSE)+ROW()-2)),\"\")","v":{"$error":"#N/A"}},{"$f":"IF(INDIRECT(\"c\" & (VLOOKUP(Switch!$D$29,$F$2:$G$43,2,FALSE)+ROW()-2))=Switch!$D$29,INDIRECT(\"a\" & (VLOOKUP(Switch!$D$29,$F$2:$G$43,2,FALSE)+ROW()-2)),\"\")","v":{"$error":"#N/A"}},{"$f":"IF(INDIRECT(\"c\" & (VLOOKUP(Switch!$D$30,$F$2:$G$43,2,FALSE)+ROW()-2))=Switch!$D$30,INDIRECT(\"a\" & (VLOOKUP(Switch!$D$30,$F$2:$G$43,2,FALSE)+ROW()-2)),\"\")","v":{"$error":"#N/A"}},{"$f":"IF(INDIRECT(\"c\" & (VLOOKUP(Switch!$D$31,$F$2:$G$43,2,FALSE)+ROW()-2))=Switch!$D$31,INDIRECT(\"a\" & (VLOOKUP(Switch!$D$31,$F$2:$G$43,2,FALSE)+ROW()-2)),\"\")","v":{"$error":"#N/A"}},{"$f":"IF(INDIRECT(\"c\" & (VLOOKUP(Switch!$D$32,$F$2:$G$43,2,FALSE)+ROW()-2))=Switch!$D$32,INDIRECT(\"a\" & (VLOOKUP(Switch!$D$32,$F$2:$G$43,2,FALSE)+ROW()-2)),\"\")","v":{"$error":"#N/A"}},{"$f":"IF(INDIRECT(\"c\" & (VLOOKUP(Switch!$D$33,$F$2:$G$43,2,FALSE)+ROW()-2))=Switch!$D$33,INDIRECT(\"a\" & (VLOOKUP(Switch!$D$33,$F$2:$G$43,2,FALSE)+ROW()-2)),\"\")","v":{"$error":"#N/A"}},{"$f":"IF(INDIRECT(\"c\" & (VLOOKUP(Switch!$D$34,$F$2:$G$43,2,FALSE)+ROW()-2))=Switch!$D$34,INDIRECT(\"a\" & (VLOOKUP(Switch!$D$34,$F$2:$G$43,2,FALSE)+ROW()-2)),\"\")","v":{"$error":"#N/A"}},{"$f":"IF(INDIRECT(\"c\" & (VLOOKUP(Switch!$D$35,$F$2:$G$43,2,FALSE)+ROW()-2))=Switch!$D$35,INDIRECT(\"a\" & (VLOOKUP(Switch!$D$35,$F$2:$G$43,2,FALSE)+ROW()-2)),\"\")","v":{"$error":"#N/A"}},{"$f":"IF(INDIRECT(\"c\" & (VLOOKUP(Switch!$D$36,$F$2:$G$43,2,FALSE)+ROW()-2))=Switch!$D$36,INDIRECT(\"a\" & (VLOOKUP(Switch!$D$36,$F$2:$G$43,2,FALSE)+ROW()-2)),\"\")","v":{"$error":"#N/A"}},{"$f":"IF(INDIRECT(\"c\" & (VLOOKUP(Switch!$D$37,$F$2:$G$43,2,FALSE)+ROW()-2))=Switch!$D$37,INDIRECT(\"a\" & (VLOOKUP(Switch!$D$37,$F$2:$G$43,2,FALSE)+ROW()-2)),\"\")","v":{"$error":"#N/A"}},{"$f":"IF(INDIRECT(\"c\" & (VLOOKUP(Switch!$D$38,$F$2:$G$43,2,FALSE)+ROW()-2))=Switch!$D$38,INDIRECT(\"a\" & (VLOOKUP(Switch!$D$38,$F$2:$G$43,2,FALSE)+ROW()-2)),\"\")","v":{"$error":"#N/A"}},{"$f":"IF(INDIRECT(\"c\" & (VLOOKUP(Switch!$D$39,$F$2:$G$43,2,FALSE)+ROW()-2))=Switch!$D$39,INDIRECT(\"a\" & (VLOOKUP(Switch!$D$39,$F$2:$G$43,2,FALSE)+ROW()-2)),\"\")","v":{"$error":"#N/A"}},{"$f":"IF(INDIRECT(\"c\" & (VLOOKUP(Switch!$D$40,$F$2:$G$43,2,FALSE)+ROW()-2))=Switch!$D$40,INDIRECT(\"a\" & (VLOOKUP(Switch!$D$40,$F$2:$G$43,2,FALSE)+ROW()-2)),\"\")","v":{"$error":"#N/A"}},{"$f":"IF(INDIRECT(\"c\" & (VLOOKUP(Switch!$D$52,$F$2:$G$43,2,FALSE)+ROW()-2))=Switch!$D$52,INDIRECT(\"a\" & (VLOOKUP(Switch!$D$52,$F$2:$G$43,2,FALSE)+ROW()-2)),\"\")","v":{"$error":"#N/A"}},{"$f":"IF(INDIRECT(\"c\" & (VLOOKUP(Switch!$D$53,$F$2:$G$43,2,FALSE)+ROW()-2))=Switch!$D$53,INDIRECT(\"a\" & (VLOOKUP(Switch!$D$53,$F$2:$G$43,2,FALSE)+ROW()-2)),\"\")","v":{"$error":"#N/A"}},{"$f":"IF(INDIRECT(\"c\" & (VLOOKUP(Switch!$D$54,$F$2:$G$43,2,FALSE)+ROW()-2))=Switch!$D$54,INDIRECT(\"a\" & (VLOOKUP(Switch!$D$54,$F$2:$G$43,2,FALSE)+ROW()-2)),\"\")","v":{"$error":"#N/A"}},{"$f":"IF(INDIRECT(\"c\" & (VLOOKUP(Switch!$D$55,$F$2:$G$43,2,FALSE)+ROW()-2))=Switch!$D$55,INDIRECT(\"a\" & (VLOOKUP(Switch!$D$55,$F$2:$G$43,2,FALSE)+ROW()-2)),\"\")","v":{"$error":"#N/A"}},{"$f":"IF(INDIRECT(\"c\" & (VLOOKUP(Switch!$D$56,$F$2:$G$43,2,FALSE)+ROW()-2))=Switch!$D$56,INDIRECT(\"a\" & (VLOOKUP(Switch!$D$56,$F$2:$G$43,2,FALSE)+ROW()-2)),\"\")","v":{"$error":"#N/A"}},{"$f":"IF(INDIRECT(\"c\" & (VLOOKUP(Switch!$D$57,$F$2:$G$43,2,FALSE)+ROW()-2))=Switch!$D$57,INDIRECT(\"a\" & (VLOOKUP(Switch!$D$57,$F$2:$G$43,2,FALSE)+ROW()-2)),\"\")","v":{"$error":"#N/A"}},{"$f":"IF(INDIRECT(\"c\" & (VLOOKUP(Switch!$D$58,$F$2:$G$43,2,FALSE)+ROW()-2))=Switch!$D$58,INDIRECT(\"a\" & (VLOOKUP(Switch!$D$58,$F$2:$G$43,2,FALSE)+ROW()-2)),\"\")","v":{"$error":"#N/A"}},{"$f":"IF(INDIRECT(\"c\" & (VLOOKUP(Switch!$D$59,$F$2:$G$43,2,FALSE)+ROW()-2))=Switch!$D$59,INDIRECT(\"a\" & (VLOOKUP(Switch!$D$59,$F$2:$G$43,2,FALSE)+ROW()-2)),\"\")","v":{"$error":"#N/A"}},{"$f":"IF(INDIRECT(\"c\" & (VLOOKUP(Switch!$D$60,$F$2:$G$43,2,FALSE)+ROW()-2))=Switch!$D$60,INDIRECT(\"a\" & (VLOOKUP(Switch!$D$60,$F$2:$G$43,2,FALSE)+ROW()-2)),\"\")","v":{"$error":"#N/A"}},{"$f":"IF(INDIRECT(\"c\" & (VLOOKUP(Switch!$D$61,$F$2:$G$43,2,FALSE)+ROW()-2))=Switch!$D$61,INDIRECT(\"a\" & (VLOOKUP(Switch!$D$61,$F$2:$G$43,2,FALSE)+ROW()-2)),\"\")","v":{"$error":"#N/A"}},{"$f":"IF(INDIRECT(\"c\" & (VLOOKUP(Switch!$D$62,$F$2:$G$43,2,FALSE)+ROW()-2))=Switch!$D$62,INDIRECT(\"a\" & (VLOOKUP(Switch!$D$62,$F$2:$G$43,2,FALSE)+ROW()-2)),\"\")","v":{"$error":"#N/A"}},{"$f":"IF(INDIRECT(\"c\" & (VLOOKUP(Switch!$D$63,$F$2:$G$43,2,FALSE)+ROW()-2))=Switch!$D$63,INDIRECT(\"a\" & (VLOOKUP(Switch!$D$63,$F$2:$G$43,2,FALSE)+ROW()-2)),\"\")","v":{"$error":"#N/A"}},{"$f":"IF(INDIRECT(\"c\" & (VLOOKUP(Switch!$D$64,$F$2:$G$43,2,FALSE)+ROW()-2))=Switch!$D$64,INDIRECT(\"a\" & (VLOOKUP(Switch!$D$64,$F$2:$G$43,2,FALSE)+ROW()-2)),\"\")","v":{"$error":"#N/A"}},{"$f":"IF(INDIRECT(\"c\" & (VLOOKUP(Switch!$D$65,$F$2:$G$43,2,FALSE)+ROW()-2))=Switch!$D$65,INDIRECT(\"a\" & (VLOOKUP(Switch!$D$65,$F$2:$G$43,2,FALSE)+ROW()-2)),\"\")","v":{"$error":"#N/A"}},{"$f":"IF(INDIRECT(\"c\" & (VLOOKUP(Switch!$D$66,$F$2:$G$43,2,FALSE)+ROW()-2))=Switch!$D$66,INDIRECT(\"a\" & (VLOOKUP(Switch!$D$66,$F$2:$G$43,2,FALSE)+ROW()-2)),\"\")","v":{"$error":"#N/A"}}]
[null,null,null,{"$f":"ROW()","v":581},null,null,{"$f":"VLOOKUP(F581,$C$2:$D$637,2,FALSE)","v":{"$error":"#N/A"}},{"$f":"IF(INDIRECT(\"c\" & (VLOOKUP(Switch!$D$26,$F$2:$G$43,2,FALSE)+ROW()-2))=Switch!$D$26,INDIRECT(\"a\" & (VLOOKUP(Switch!$D$26,$F$2:$G$43,2,FALSE)+ROW()-2)),\"\")","v":{"$error":"#N/A"}},{"$f":"IF(INDIRECT(\"c\" & (VLOOKUP(Switch!$D$27,$F$2:$G$43,2,FALSE)+ROW()-2))=Switch!$D$27,INDIRECT(\"a\" & (VLOOKUP(Switch!$D$27,$F$2:$G$43,2,FALSE)+ROW()-2)),\"\")","v":{"$error":"#N/A"}},{"$f":"IF(INDIRECT(\"c\" & (VLOOKUP(Switch!$D$28,$F$2:$G$43,2,FALSE)+ROW()-2))=Switch!$D$28,INDIRECT(\"a\" & (VLOOKUP(Switch!$D$28,$F$2:$G$43,2,FALSE)+ROW()-2)),\"\")","v":{"$error":"#N/A"}},{"$f":"IF(INDIRECT(\"c\" & (VLOOKUP(Switch!$D$29,$F$2:$G$43,2,FALSE)+ROW()-2))=Switch!$D$29,INDIRECT(\"a\" & (VLOOKUP(Switch!$D$29,$F$2:$G$43,2,FALSE)+ROW()-2)),\"\")","v":{"$error":"#N/A"}},{"$f":"IF(INDIRECT(\"c\" & (VLOOKUP(Switch!$D$30,$F$2:$G$43,2,FALSE)+ROW()-2))=Switch!$D$30,INDIRECT(\"a\" & (VLOOKUP(Switch!$D$30,$F$2:$G$43,2,FALSE)+ROW()-2)),\"\")","v":{"$error":"#N/A"}},{"$f":"IF(INDIRECT(\"c\" & (VLOOKUP(Switch!$D$31,$F$2:$G$43,2,FALSE)+ROW()-2))=Switch!$D$31,INDIRECT(\"a\" & (VLOOKUP(Switch!$D$31,$F$2:$G$43,2,FALSE)+ROW()-2)),\"\")","v":{"$error":"#N/A"}},{"$f":"IF(INDIRECT(\"c\" & (VLOOKUP(Switch!$D$32,$F$2:$G$43,2,FALSE)+ROW()-2))=Switch!$D$32,INDIRECT(\"a\" & (VLOOKUP(Switch!$D$32,$F$2:$G$43,2,FALSE)+ROW()-2)),\"\")","v":{"$error":"#N/A"}},{"$f":"IF(INDIRECT(\"c\" & (VLOOKUP(Switch!$D$33,$F$2:$G$43,2,FALSE)+ROW()-2))=Switch!$D$33,INDIRECT(\"a\" & (VLOOKUP(Switch!$D$33,$F$2:$G$43,2,FALSE)+ROW()-2)),\"\")","v":{"$error":"#N/A"}},{"$f":"IF(INDIRECT(\"c\" & (VLOOKUP(Switch!$D$34,$F$2:$G$43,2,FALSE)+ROW()-2))=Switch!$D$34,INDIRECT(\"a\" & (VLOOKUP(Switch!$D$34,$F$2:$G$43,2,FALSE)+ROW()-2)),\"\")","v":{"$error":"#N/A"}},{"$f":"IF(INDIRECT(\"c\" & (VLOOKUP(Switch!$D$35,$F$2:$G$43,2,FALSE)+ROW()-2))=Switch!$D$35,INDIRECT(\"a\" & (VLOOKUP(Switch!$D$35,$F$2:$G$43,2,FALSE)+ROW()-2)),\"\")","v":{"$error":"#N/A"}},{"$f":"IF(INDIRECT(\"c\" & (VLOOKUP(Switch!$D$36,$F$2:$G$43,2,FALSE)+ROW()-2))=Switch!$D$36,INDIRECT(\"a\" & (VLOOKUP(Switch!$D$36,$F$2:$G$43,2,FALSE)+ROW()-2)),\"\")","v":{"$error":"#N/A"}},{"$f":"IF(INDIRECT(\"c\" & (VLOOKUP(Switch!$D$37,$F$2:$G$43,2,FALSE)+ROW()-2))=Switch!$D$37,INDIRECT(\"a\" & (VLOOKUP(Switch!$D$37,$F$2:$G$43,2,FALSE)+ROW()-2)),\"\")","v":{"$error":"#N/A"}},{"$f":"IF(INDIRECT(\"c\" & (VLOOKUP(Switch!$D$38,$F$2:$G$43,2,FALSE)+ROW()-2))=Switch!$D$38,INDIRECT(\"a\" & (VLOOKUP(Switch!$D$38,$F$2:$G$43,2,FALSE)+ROW()-2)),\"\")","v":{"$error":"#N/A"}},{"$f":"IF(INDIRECT(\"c\" & (VLOOKUP(Switch!$D$39,$F$2:$G$43,2,FALSE)+ROW()-2))=Switch!$D$39,INDIRECT(\"a\" & (VLOOKUP(Switch!$D$39,$F$2:$G$43,2,FALSE)+ROW()-2)),\"\")","v":{"$error":"#N/A"}},{"$f":"IF(INDIRECT(\"c\" & (VLOOKUP(Switch!$D$40,$F$2:$G$43,2,FALSE)+ROW()-2))=Switch!$D$40,INDIRECT(\"a\" & (VLOOKUP(Switch!$D$40,$F$2:$G$43,2,FALSE)+ROW()-2)),\"\")","v":{"$error":"#N/A"}},{"$f":"IF(INDIRECT(\"c\" & (VLOOKUP(Switch!$D$52,$F$2:$G$43,2,FALSE)+ROW()-2))=Switch!$D$52,INDIRECT(\"a\" & (VLOOKUP(Switch!$D$52,$F$2:$G$43,2,FALSE)+ROW()-2)),\"\")","v":{"$error":"#N/A"}},{"$f":"IF(INDIRECT(\"c\" & (VLOOKUP(Switch!$D$53,$F$2:$G$43,2,FALSE)+ROW()-2))=Switch!$D$53,INDIRECT(\"a\" & (VLOOKUP(Switch!$D$53,$F$2:$G$43,2,FALSE)+ROW()-2)),\"\")","v":{"$error":"#N/A"}},{"$f":"IF(INDIRECT(\"c\" & (VLOOKUP(Switch!$D$54,$F$2:$G$43,2,FALSE)+ROW()-2))=Switch!$D$54,INDIRECT(\"a\" & (VLOOKUP(Switch!$D$54,$F$2:$G$43,2,FALSE)+ROW()-2)),\"\")","v":{"$error":"#N/A"}},{"$f":"IF(INDIRECT(\"c\" & (VLOOKUP(Switch!$D$55,$F$2:$G$43,2,FALSE)+ROW()-2))=Switch!$D$55,INDIRECT(\"a\" & (VLOOKUP(Switch!$D$55,$F$2:$G$43,2,FALSE)+ROW()-2)),\"\")","v":{"$error":"#N/A"}},{"$f":"IF(INDIRECT(\"c\" & (VLOOKUP(Switch!$D$56,$F$2:$G$43,2,FALSE)+ROW()-2))=Switch!$D$56,INDIRECT(\"a\" & (VLOOKUP(Switch!$D$56,$F$2:$G$43,2,FALSE)+ROW()-2)),\"\")","v":{"$error":"#N/A"}},{"$f":"IF(INDIRECT(\"c\" & (VLOOKUP(Switch!$D$57,$F$2:$G$43,2,FALSE)+ROW()-2))=Switch!$D$57,INDIRECT(\"a\" & (VLOOKUP(Switch!$D$57,$F$2:$G$43,2,FALSE)+ROW()-2)),\"\")","v":{"$error":"#N/A"}},{"$f":"IF(INDIRECT(\"c\" & (VLOOKUP(Switch!$D$58,$F$2:$G$43,2,FALSE)+ROW()-2))=Switch!$D$58,INDIRECT(\"a\" & (VLOOKUP(Switch!$D$58,$F$2:$G$43,2,FALSE)+ROW()-2)),\"\")","v":{"$error":"#N/A"}},{"$f":"IF(INDIRECT(\"c\" & (VLOOKUP(Switch!$D$59,$F$2:$G$43,2,FALSE)+ROW()-2))=Switch!$D$59,INDIRECT(\"a\" & (VLOOKUP(Switch!$D$59,$F$2:$G$43,2,FALSE)+ROW()-2)),\"\")","v":{"$error":"#N/A"}},{"$f":"IF(INDIRECT(\"c\" & (VLOOKUP(Switch!$D$60,$F$2:$G$43,2,FALSE)+ROW()-2))=Switch!$D$60,INDIRECT(\"a\" & (VLOOKUP(Switch!$D$60,$F$2:$G$43,2,FALSE)+ROW()-2)),\"\")","v":{"$error":"#N/A"}},{"$f":"IF(INDIRECT(\"c\" & (VLOOKUP(Switch!$D$61,$F$2:$G$43,2,FALSE)+ROW()-2))=Switch!$D$61,INDIRECT(\"a\" & (VLOOKUP(Switch!$D$61,$F$2:$G$43,2,FALSE)+ROW()-2)),\"\")","v":{"$error":"#N/A"}},{"$f":"IF(INDIRECT(\"c\" & (VLOOKUP(Switch!$D$62,$F$2:$G$43,2,FALSE)+ROW()-2))=Switch!$D$62,INDIRECT(\"a\" & (VLOOKUP(Switch!$D$62,$F$2:$G$43,2,FALSE)+ROW()-2)),\"\")","v":{"$error":"#N/A"}},{"$f":"IF(INDIRECT(\"c\" & (VLOOKUP(Switch!$D$63,$F$2:$G$43,2,FALSE)+ROW()-2))=Switch!$D$63,INDIRECT(\"a\" & (VLOOKUP(Switch!$D$63,$F$2:$G$43,2,FALSE)+ROW()-2)),\"\")","v":{"$error":"#N/A"}},{"$f":"IF(INDIRECT(\"c\" & (VLOOKUP(Switch!$D$64,$F$2:$G$43,2,FALSE)+ROW()-2))=Switch!$D$64,INDIRECT(\"a\" & (VLOOKUP(Switch!$D$64,$F$2:$G$43,2,FALSE)+ROW()-2)),\"\")","v":{"$error":"#N/A"}},{"$f":"IF(INDIRECT(\"c\" & (VLOOKUP(Switch!$D$65,$F$2:$G$43,2,FALSE)+ROW()-2))=Switch!$D$65,INDIRECT(\"a\" & (VLOOKUP(Switch!$D$65,$F$2:$G$43,2,FALSE)+ROW()-2)),\"\")","v":{"$error":"#N/A"}},{"$f":"IF(INDIRECT(\"c\" & (VLOOKUP(Switch!$D$66,$F$2:$G$43,2,FALSE)+ROW()-2))=Switch!$D$66,INDIRECT(\"a\" & (VLOOKUP(Switch!$D$66,$F$2:$G$43,2,FALSE)+ROW()-2)),\"\")","v":{"$error":"#N/A"}}]
[null,null,null,{"$f":"ROW()","v":582},null,null,{"$f":"VLOOKUP(F582,$C$2:$D$637,2,FALSE)","v":{"$error":"#N/A"}},{"$f":"IF(INDIRECT(\"c\" & (VLOOKUP(Switch!$D$26,$F$2:$G$43,2,FALSE)+ROW()-2))=Switch!$D$26,INDIRECT(\"a\" & (VLOOKUP(Switch!$D$26,$F$2:$G$43,2,FALSE)+ROW()-2)),\"\")","v":{"$error":"#N/A"}},{"$f":"IF(INDIRECT(\"c\" & (VLOOKUP(Switch!$D$27,$F$2:$G$43,2,FALSE)+ROW()-2))=Switch!$D$27,INDIRECT(\"a\" & (VLOOKUP(Switch!$D$27,$F$2:$G$43,2,FALSE)+ROW()-2)),\"\")","v":{"$error":"#N/A"}},{"$f":"IF(INDIRECT(\"c\" & (VLOOKUP(Switch!$D$28,$F$2:$G$43,2,FALSE)+ROW()-2))=Switch!$D$28,INDIRECT(\"a\" & (VLOOKUP(Switch!$D$28,$F$2:$G$43,2,FALSE)+ROW()-2)),\"\")","v":{"$error":"#N/A"}},{"$f":"IF(INDIRECT(\"c\" & (VLOOKUP(Switch!$D$29,$F$2:$G$43,2,FALSE)+ROW()-2))=Switch!$D$29,INDIRECT(\"a\" & (VLOOKUP(Switch!$D$29,$F$2:$G$43,2,FALSE)+ROW()-2)),\"\")","v":{"$error":"#N/A"}},{"$f":"IF(INDIRECT(\"c\" & (VLOOKUP(Switch!$D$30,$F$2:$G$43,2,FALSE)+ROW()-2))=Switch!$D$30,INDIRECT(\"a\" & (VLOOKUP(Switch!$D$30,$F$2:$G$43,2,FALSE)+ROW()-2)),\"\")","v":{"$error":"#N/A"}},{"$f":"IF(INDIRECT(\"c\" & (VLOOKUP(Switch!$D$31,$F$2:$G$43,2,FALSE)+ROW()-2))=Switch!$D$31,INDIRECT(\"a\" & (VLOOKUP(Switch!$D$31,$F$2:$G$43,2,FALSE)+ROW()-2)),\"\")","v":{"$error":"#N/A"}},{"$f":"IF(INDIRECT(\"c\" & (VLOOKUP(Switch!$D$32,$F$2:$G$43,2,FALSE)+ROW()-2))=Switch!$D$32,INDIRECT(\"a\" & (VLOOKUP(Switch!$D$32,$F$2:$G$43,2,FALSE)+ROW()-2)),\"\")","v":{"$error":"#N/A"}},{"$f":"IF(INDIRECT(\"c\" & (VLOOKUP(Switch!$D$33,$F$2:$G$43,2,FALSE)+ROW()-2))=Switch!$D$33,INDIRECT(\"a\" & (VLOOKUP(Switch!$D$33,$F$2:$G$43,2,FALSE)+ROW()-2)),\"\")","v":{"$error":"#N/A"}},{"$f":"IF(INDIRECT(\"c\" & (VLOOKUP(Switch!$D$34,$F$2:$G$43,2,FALSE)+ROW()-2))=Switch!$D$34,INDIRECT(\"a\" & (VLOOKUP(Switch!$D$34,$F$2:$G$43,2,FALSE)+ROW()-2)),\"\")","v":{"$error":"#N/A"}},{"$f":"IF(INDIRECT(\"c\" & (VLOOKUP(Switch!$D$35,$F$2:$G$43,2,FALSE)+ROW()-2))=Switch!$D$35,INDIRECT(\"a\" & (VLOOKUP(Switch!$D$35,$F$2:$G$43,2,FALSE)+ROW()-2)),\"\")","v":{"$error":"#N/A"}},{"$f":"IF(INDIRECT(\"c\" & (VLOOKUP(Switch!$D$36,$F$2:$G$43,2,FALSE)+ROW()-2))=Switch!$D$36,INDIRECT(\"a\" & (VLOOKUP(Switch!$D$36,$F$2:$G$43,2,FALSE)+ROW()-2)),\"\")","v":{"$error":"#N/A"}},{"$f":"IF(INDIRECT(\"c\" & (VLOOKUP(Switch!$D$37,$F$2:$G$43,2,FALSE)+ROW()-2))=Switch!$D$37,INDIRECT(\"a\" & (VLOOKUP(Switch!$D$37,$F$2:$G$43,2,FALSE)+ROW()-2)),\"\")","v":{"$error":"#N/A"}},{"$f":"IF(INDIRECT(\"c\" & (VLOOKUP(Switch!$D$38,$F$2:$G$43,2,FALSE)+ROW()-2))=Switch!$D$38,INDIRECT(\"a\" & (VLOOKUP(Switch!$D$38,$F$2:$G$43,2,FALSE)+ROW()-2)),\"\")","v":{"$error":"#N/A"}},{"$f":"IF(INDIRECT(\"c\" & (VLOOKUP(Switch!$D$39,$F$2:$G$43,2,FALSE)+ROW()-2))=Switch!$D$39,INDIRECT(\"a\" & (VLOOKUP(Switch!$D$39,$F$2:$G$43,2,FALSE)+ROW()-2)),\"\")","v":{"$error":"#N/A"}},{"$f":"IF(INDIRECT(\"c\" & (VLOOKUP(Switch!$D$40,$F$2:$G$43,2,FALSE)+ROW()-2))=Switch!$D$40,INDIRECT(\"a\" & (VLOOKUP(Switch!$D$40,$F$2:$G$43,2,FALSE)+ROW()-2)),\"\")","v":{"$error":"#N/A"}},{"$f":"IF(INDIRECT(\"c\" & (VLOOKUP(Switch!$D$52,$F$2:$G$43,2,FALSE)+ROW()-2))=Switch!$D$52,INDIRECT(\"a\" & (VLOOKUP(Switch!$D$52,$F$2:$G$43,2,FALSE)+ROW()-2)),\"\")","v":{"$error":"#N/A"}},{"$f":"IF(INDIRECT(\"c\" & (VLOOKUP(Switch!$D$53,$F$2:$G$43,2,FALSE)+ROW()-2))=Switch!$D$53,INDIRECT(\"a\" & (VLOOKUP(Switch!$D$53,$F$2:$G$43,2,FALSE)+ROW()-2)),\"\")","v":{"$error":"#N/A"}},{"$f":"IF(INDIRECT(\"c\" & (VLOOKUP(Switch!$D$54,$F$2:$G$43,2,FALSE)+ROW()-2))=Switch!$D$54,INDIRECT(\"a\" & (VLOOKUP(Switch!$D$54,$F$2:$G$43,2,FALSE)+ROW()-2)),\"\")","v":{"$error":"#N/A"}},{"$f":"IF(INDIRECT(\"c\" & (VLOOKUP(Switch!$D$55,$F$2:$G$43,2,FALSE)+ROW()-2))=Switch!$D$55,INDIRECT(\"a\" & (VLOOKUP(Switch!$D$55,$F$2:$G$43,2,FALSE)+ROW()-2)),\"\")","v":{"$error":"#N/A"}},{"$f":"IF(INDIRECT(\"c\" & (VLOOKUP(Switch!$D$56,$F$2:$G$43,2,FALSE)+ROW()-2))=Switch!$D$56,INDIRECT(\"a\" & (VLOOKUP(Switch!$D$56,$F$2:$G$43,2,FALSE)+ROW()-2)),\"\")","v":{"$error":"#N/A"}},{"$f":"IF(INDIRECT(\"c\" & (VLOOKUP(Switch!$D$57,$F$2:$G$43,2,FALSE)+ROW()-2))=Switch!$D$57,INDIRECT(\"a\" & (VLOOKUP(Switch!$D$57,$F$2:$G$43,2,FALSE)+ROW()-2)),\"\")","v":{"$error":"#N/A"}},{"$f":"IF(INDIRECT(\"c\" & (VLOOKUP(Switch!$D$58,$F$2:$G$43,2,FALSE)+ROW()-2))=Switch!$D$58,INDIRECT(\"a\" & (VLOOKUP(Switch!$D$58,$F$2:$G$43,2,FALSE)+ROW()-2)),\"\")","v":{"$error":"#N/A"}},{"$f":"IF(INDIRECT(\"c\" & (VLOOKUP(Switch!$D$59,$F$2:$G$43,2,FALSE)+ROW()-2))=Switch!$D$59,INDIRECT(\"a\" & (VLOOKUP(Switch!$D$59,$F$2:$G$43,2,FALSE)+ROW()-2)),\"\")","v":{"$error":"#N/A"}},{"$f":"IF(INDIRECT(\"c\" & (VLOOKUP(Switch!$D$60,$F$2:$G$43,2,FALSE)+ROW()-2))=Switch!$D$60,INDIRECT(\"a\" & (VLOOKUP(Switch!$D$60,$F$2:$G$43,2,FALSE)+ROW()-2)),\"\")","v":{"$error":"#N/A"}},{"$f":"IF(INDIRECT(\"c\" & (VLOOKUP(Switch!$D$61,$F$2:$G$43,2,FALSE)+ROW()-2))=Switch!$D$61,INDIRECT(\"a\" & (VLOOKUP(Switch!$D$61,$F$2:$G$43,2,FALSE)+ROW()-2)),\"\")","v":{"$error":"#N/A"}},{"$f":"IF(INDIRECT(\"c\" & (VLOOKUP(Switch!$D$62,$F$2:$G$43,2,FALSE)+ROW()-2))=Switch!$D$62,INDIRECT(\"a\" & (VLOOKUP(Switch!$D$62,$F$2:$G$43,2,FALSE)+ROW()-2)),\"\")","v":{"$error":"#N/A"}},{"$f":"IF(INDIRECT(\"c\" & (VLOOKUP(Switch!$D$63,$F$2:$G$43,2,FALSE)+ROW()-2))=Switch!$D$63,INDIRECT(\"a\" & (VLOOKUP(Switch!$D$63,$F$2:$G$43,2,FALSE)+ROW()-2)),\"\")","v":{"$error":"#N/A"}},{"$f":"IF(INDIRECT(\"c\" & (VLOOKUP(Switch!$D$64,$F$2:$G$43,2,FALSE)+ROW()-2))=Switch!$D$64,INDIRECT(\"a\" & (VLOOKUP(Switch!$D$64,$F$2:$G$43,2,FALSE)+ROW()-2)),\"\")","v":{"$error":"#N/A"}},{"$f":"IF(INDIRECT(\"c\" & (VLOOKUP(Switch!$D$65,$F$2:$G$43,2,FALSE)+ROW()-2))=Switch!$D$65,INDIRECT(\"a\" & (VLOOKUP(Switch!$D$65,$F$2:$G$43,2,FALSE)+ROW()-2)),\"\")","v":{"$error":"#N/A"}},{"$f":"IF(INDIRECT(\"c\" & (VLOOKUP(Switch!$D$66,$F$2:$G$43,2,FALSE)+ROW()-2))=Switch!$D$66,INDIRECT(\"a\" & (VLOOKUP(Switch!$D$66,$F$2:$G$43,2,FALSE)+ROW()-2)),\"\")","v":{"$error":"#N/A"}}]
[null,null,null,{"$f":"ROW()","v":583},null,null,{"$f":"VLOOKUP(F583,$C$2:$D$637,2,FALSE)","v":{"$error":"#N/A"}},{"$f":"IF(INDIRECT(\"c\" & (VLOOKUP(Switch!$D$26,$F$2:$G$43,2,FALSE)+ROW()-2))=Switch!$D$26,INDIRECT(\"a\" & (VLOOKUP(Switch!$D$26,$F$2:$G$43,2,FALSE)+ROW()-2)),\"\")","v":{"$error":"#N/A"}},{"$f":"IF(INDIRECT(\"c\" & (VLOOKUP(Switch!$D$27,$F$2:$G$43,2,FALSE)+ROW()-2))=Switch!$D$27,INDIRECT(\"a\" & (VLOOKUP(Switch!$D$27,$F$2:$G$43,2,FALSE)+ROW()-2)),\"\")","v":{"$error":"#N/A"}},{"$f":"IF(INDIRECT(\"c\" & (VLOOKUP(Switch!$D$28,$F$2:$G$43,2,FALSE)+ROW()-2))=Switch!$D$28,INDIRECT(\"a\" & (VLOOKUP(Switch!$D$28,$F$2:$G$43,2,FALSE)+ROW()-2)),\"\")","v":{"$error":"#N/A"}},{"$f":"IF(INDIRECT(\"c\" & (VLOOKUP(Switch!$D$29,$F$2:$G$43,2,FALSE)+ROW()-2))=Switch!$D$29,INDIRECT(\"a\" & (VLOOKUP(Switch!$D$29,$F$2:$G$43,2,FALSE)+ROW()-2)),\"\")","v":{"$error":"#N/A"}},{"$f":"IF(INDIRECT(\"c\" & (VLOOKUP(Switch!$D$30,$F$2:$G$43,2,FALSE)+ROW()-2))=Switch!$D$30,INDIRECT(\"a\" & (VLOOKUP(Switch!$D$30,$F$2:$G$43,2,FALSE)+ROW()-2)),\"\")","v":{"$error":"#N/A"}},{"$f":"IF(INDIRECT(\"c\" & (VLOOKUP(Switch!$D$31,$F$2:$G$43,2,FALSE)+ROW()-2))=Switch!$D$31,INDIRECT(\"a\" & (VLOOKUP(Switch!$D$31,$F$2:$G$43,2,FALSE)+ROW()-2)),\"\")","v":{"$error":"#N/A"}},{"$f":"IF(INDIRECT(\"c\" & (VLOOKUP(Switch!$D$32,$F$2:$G$43,2,FALSE)+ROW()-2))=Switch!$D$32,INDIRECT(\"a\" & (VLOOKUP(Switch!$D$32,$F$2:$G$43,2,FALSE)+ROW()-2)),\"\")","v":{"$error":"#N/A"}},{"$f":"IF(INDIRECT(\"c\" & (VLOOKUP(Switch!$D$33,$F$2:$G$43,2,FALSE)+ROW()-2))=Switch!$D$33,INDIRECT(\"a\" & (VLOOKUP(Switch!$D$33,$F$2:$G$43,2,FALSE)+ROW()-2)),\"\")","v":{"$error":"#N/A"}},{"$f":"IF(INDIRECT(\"c\" & (VLOOKUP(Switch!$D$34,$F$2:$G$43,2,FALSE)+ROW()-2))=Switch!$D$34,INDIRECT(\"a\" & (VLOOKUP(Switch!$D$34,$F$2:$G$43,2,FALSE)+ROW()-2)),\"\")","v":{"$error":"#N/A"}},{"$f":"IF(INDIRECT(\"c\" & (VLOOKUP(Switch!$D$35,$F$2:$G$43,2,FALSE)+ROW()-2))=Switch!$D$35,INDIRECT(\"a\" & (VLOOKUP(Switch!$D$35,$F$2:$G$43,2,FALSE)+ROW()-2)),\"\")","v":{"$error":"#N/A"}},{"$f":"IF(INDIRECT(\"c\" & (VLOOKUP(Switch!$D$36,$F$2:$G$43,2,FALSE)+ROW()-2))=Switch!$D$36,INDIRECT(\"a\" & (VLOOKUP(Switch!$D$36,$F$2:$G$43,2,FALSE)+ROW()-2)),\"\")","v":{"$error":"#N/A"}},{"$f":"IF(INDIRECT(\"c\" & (VLOOKUP(Switch!$D$37,$F$2:$G$43,2,FALSE)+ROW()-2))=Switch!$D$37,INDIRECT(\"a\" & (VLOOKUP(Switch!$D$37,$F$2:$G$43,2,FALSE)+ROW()-2)),\"\")","v":{"$error":"#N/A"}},{"$f":"IF(INDIRECT(\"c\" & (VLOOKUP(Switch!$D$38,$F$2:$G$43,2,FALSE)+ROW()-2))=Switch!$D$38,INDIRECT(\"a\" & (VLOOKUP(Switch!$D$38,$F$2:$G$43,2,FALSE)+ROW()-2)),\"\")","v":{"$error":"#N/A"}},{"$f":"IF(INDIRECT(\"c\" & (VLOOKUP(Switch!$D$39,$F$2:$G$43,2,FALSE)+ROW()-2))=Switch!$D$39,INDIRECT(\"a\" & (VLOOKUP(Switch!$D$39,$F$2:$G$43,2,FALSE)+ROW()-2)),\"\")","v":{"$error":"#N/A"}},{"$f":"IF(INDIRECT(\"c\" & (VLOOKUP(Switch!$D$40,$F$2:$G$43,2,FALSE)+ROW()-2))=Switch!$D$40,INDIRECT(\"a\" & (VLOOKUP(Switch!$D$40,$F$2:$G$43,2,FALSE)+ROW()-2)),\"\")","v":{"$error":"#N/A"}},{"$f":"IF(INDIRECT(\"c\" & (VLOOKUP(Switch!$D$52,$F$2:$G$43,2,FALSE)+ROW()-2))=Switch!$D$52,INDIRECT(\"a\" & (VLOOKUP(Switch!$D$52,$F$2:$G$43,2,FALSE)+ROW()-2)),\"\")","v":{"$error":"#N/A"}},{"$f":"IF(INDIRECT(\"c\" & (VLOOKUP(Switch!$D$53,$F$2:$G$43,2,FALSE)+ROW()-2))=Switch!$D$53,INDIRECT(\"a\" & (VLOOKUP(Switch!$D$53,$F$2:$G$43,2,FALSE)+ROW()-2)),\"\")","v":{"$error":"#N/A"}},{"$f":"IF(INDIRECT(\"c\" & (VLOOKUP(Switch!$D$54,$F$2:$G$43,2,FALSE)+ROW()-2))=Switch!$D$54,INDIRECT(\"a\" & (VLOOKUP(Switch!$D$54,$F$2:$G$43,2,FALSE)+ROW()-2)),\"\")","v":{"$error":"#N/A"}},{"$f":"IF(INDIRECT(\"c\" & (VLOOKUP(Switch!$D$55,$F$2:$G$43,2,FALSE)+ROW()-2))=Switch!$D$55,INDIRECT(\"a\" & (VLOOKUP(Switch!$D$55,$F$2:$G$43,2,FALSE)+ROW()-2)),\"\")","v":{"$error":"#N/A"}},{"$f":"IF(INDIRECT(\"c\" & (VLOOKUP(Switch!$D$56,$F$2:$G$43,2,FALSE)+ROW()-2))=Switch!$D$56,INDIRECT(\"a\" & (VLOOKUP(Switch!$D$56,$F$2:$G$43,2,FALSE)+ROW()-2)),\"\")","v":{"$error":"#N/A"}},{"$f":"IF(INDIRECT(\"c\" & (VLOOKUP(Switch!$D$57,$F$2:$G$43,2,FALSE)+ROW()-2))=Switch!$D$57,INDIRECT(\"a\" & (VLOOKUP(Switch!$D$57,$F$2:$G$43,2,FALSE)+ROW()-2)),\"\")","v":{"$error":"#N/A"}},{"$f":"IF(INDIRECT(\"c\" & (VLOOKUP(Switch!$D$58,$F$2:$G$43,2,FALSE)+ROW()-2))=Switch!$D$58,INDIRECT(\"a\" & (VLOOKUP(Switch!$D$58,$F$2:$G$43,2,FALSE)+ROW()-2)),\"\")","v":{"$error":"#N/A"}},{"$f":"IF(INDIRECT(\"c\" & (VLOOKUP(Switch!$D$59,$F$2:$G$43,2,FALSE)+ROW()-2))=Switch!$D$59,INDIRECT(\"a\" & (VLOOKUP(Switch!$D$59,$F$2:$G$43,2,FALSE)+ROW()-2)),\"\")","v":{"$error":"#N/A"}},{"$f":"IF(INDIRECT(\"c\" & (VLOOKUP(Switch!$D$60,$F$2:$G$43,2,FALSE)+ROW()-2))=Switch!$D$60,INDIRECT(\"a\" & (VLOOKUP(Switch!$D$60,$F$2:$G$43,2,FALSE)+ROW()-2)),\"\")","v":{"$error":"#N/A"}},{"$f":"IF(INDIRECT(\"c\" & (VLOOKUP(Switch!$D$61,$F$2:$G$43,2,FALSE)+ROW()-2))=Switch!$D$61,INDIRECT(\"a\" & (VLOOKUP(Switch!$D$61,$F$2:$G$43,2,FALSE)+ROW()-2)),\"\")","v":{"$error":"#N/A"}},{"$f":"IF(INDIRECT(\"c\" & (VLOOKUP(Switch!$D$62,$F$2:$G$43,2,FALSE)+ROW()-2))=Switch!$D$62,INDIRECT(\"a\" & (VLOOKUP(Switch!$D$62,$F$2:$G$43,2,FALSE)+ROW()-2)),\"\")","v":{"$error":"#N/A"}},{"$f":"IF(INDIRECT(\"c\" & (VLOOKUP(Switch!$D$63,$F$2:$G$43,2,FALSE)+ROW()-2))=Switch!$D$63,INDIRECT(\"a\" & (VLOOKUP(Switch!$D$63,$F$2:$G$43,2,FALSE)+ROW()-2)),\"\")","v":{"$error":"#N/A"}},{"$f":"IF(INDIRECT(\"c\" & (VLOOKUP(Switch!$D$64,$F$2:$G$43,2,FALSE)+ROW()-2))=Switch!$D$64,INDIRECT(\"a\" & (VLOOKUP(Switch!$D$64,$F$2:$G$43,2,FALSE)+ROW()-2)),\"\")","v":{"$error":"#N/A"}},{"$f":"IF(INDIRECT(\"c\" & (VLOOKUP(Switch!$D$65,$F$2:$G$43,2,FALSE)+ROW()-2))=Switch!$D$65,INDIRECT(\"a\" & (VLOOKUP(Switch!$D$65,$F$2:$G$43,2,FALSE)+ROW()-2)),\"\")","v":{"$error":"#N/A"}},{"$f":"IF(INDIRECT(\"c\" & (VLOOKUP(Switch!$D$66,$F$2:$G$43,2,FALSE)+ROW()-2))=Switch!$D$66,INDIRECT(\"a\" & (VLOOKUP(Switch!$D$66,$F$2:$G$43,2,FALSE)+ROW()-2)),\"\")","v":{"$error":"#N/A"}}]
[null,null,null,{"$f":"ROW()","v":584},null,null,{"$f":"VLOOKUP(F584,$C$2:$D$637,2,FALSE)","v":{"$error":"#N/A"}},{"$f":"IF(INDIRECT(\"c\" & (VLOOKUP(Switch!$D$26,$F$2:$G$43,2,FALSE)+ROW()-2))=Switch!$D$26,INDIRECT(\"a\" & (VLOOKUP(Switch!$D$26,$F$2:$G$43,2,FALSE)+ROW()-2)),\"\")","v":{"$error":"#N/A"}},{"$f":"IF(INDIRECT(\"c\" & (VLOOKUP(Switch!$D$27,$F$2:$G$43,2,FALSE)+ROW()-2))=Switch!$D$27,INDIRECT(\"a\" & (VLOOKUP(Switch!$D$27,$F$2:$G$43,2,FALSE)+ROW()-2)),\"\")","v":{"$error":"#N/A"}},{"$f":"IF(INDIRECT(\"c\" & (VLOOKUP(Switch!$D$28,$F$2:$G$43,2,FALSE)+ROW()-2))=Switch!$D$28,INDIRECT(\"a\" & (VLOOKUP(Switch!$D$28,$F$2:$G$43,2,FALSE)+ROW()-2)),\"\")","v":{"$error":"#N/A"}},{"$f":"IF(INDIRECT(\"c\" & (VLOOKUP(Switch!$D$29,$F$2:$G$43,2,FALSE)+ROW()-2))=Switch!$D$29,INDIRECT(\"a\" & (VLOOKUP(Switch!$D$29,$F$2:$G$43,2,FALSE)+ROW()-2)),\"\")","v":{"$error":"#N/A"}},{"$f":"IF(INDIRECT(\"c\" & (VLOOKUP(Switch!$D$30,$F$2:$G$43,2,FALSE)+ROW()-2))=Switch!$D$30,INDIRECT(\"a\" & (VLOOKUP(Switch!$D$30,$F$2:$G$43,2,FALSE)+ROW()-2)),\"\")","v":{"$error":"#N/A"}},{"$f":"IF(INDIRECT(\"c\" & (VLOOKUP(Switch!$D$31,$F$2:$G$43,2,FALSE)+ROW()-2))=Switch!$D$31,INDIRECT(\"a\" & (VLOOKUP(Switch!$D$31,$F$2:$G$43,2,FALSE)+ROW()-2)),\"\")","v":{"$error":"#N/A"}},{"$f":"IF(INDIRECT(\"c\" & (VLOOKUP(Switch!$D$32,$F$2:$G$43,2,FALSE)+ROW()-2))=Switch!$D$32,INDIRECT(\"a\" & (VLOOKUP(Switch!$D$32,$F$2:$G$43,2,FALSE)+ROW()-2)),\"\")","v":{"$error":"#N/A"}},{"$f":"IF(INDIRECT(\"c\" & (VLOOKUP(Switch!$D$33,$F$2:$G$43,2,FALSE)+ROW()-2))=Switch!$D$33,INDIRECT(\"a\" & (VLOOKUP(Switch!$D$33,$F$2:$G$43,2,FALSE)+ROW()-2)),\"\")","v":{"$error":"#N/A"}},{"$f":"IF(INDIRECT(\"c\" & (VLOOKUP(Switch!$D$34,$F$2:$G$43,2,FALSE)+ROW()-2))=Switch!$D$34,INDIRECT(\"a\" & (VLOOKUP(Switch!$D$34,$F$2:$G$43,2,FALSE)+ROW()-2)),\"\")","v":{"$error":"#N/A"}},{"$f":"IF(INDIRECT(\"c\" & (VLOOKUP(Switch!$D$35,$F$2:$G$43,2,FALSE)+ROW()-2))=Switch!$D$35,INDIRECT(\"a\" & (VLOOKUP(Switch!$D$35,$F$2:$G$43,2,FALSE)+ROW()-2)),\"\")","v":{"$error":"#N/A"}},{"$f":"IF(INDIRECT(\"c\" & (VLOOKUP(Switch!$D$36,$F$2:$G$43,2,FALSE)+ROW()-2))=Switch!$D$36,INDIRECT(\"a\" & (VLOOKUP(Switch!$D$36,$F$2:$G$43,2,FALSE)+ROW()-2)),\"\")","v":{"$error":"#N/A"}},{"$f":"IF(INDIRECT(\"c\" & (VLOOKUP(Switch!$D$37,$F$2:$G$43,2,FALSE)+ROW()-2))=Switch!$D$37,INDIRECT(\"a\" & (VLOOKUP(Switch!$D$37,$F$2:$G$43,2,FALSE)+ROW()-2)),\"\")","v":{"$error":"#N/A"}},{"$f":"IF(INDIRECT(\"c\" & (VLOOKUP(Switch!$D$38,$F$2:$G$43,2,FALSE)+ROW()-2))=Switch!$D$38,INDIRECT(\"a\" & (VLOOKUP(Switch!$D$38,$F$2:$G$43,2,FALSE)+ROW()-2)),\"\")","v":{"$error":"#N/A"}},{"$f":"IF(INDIRECT(\"c\" & (VLOOKUP(Switch!$D$39,$F$2:$G$43,2,FALSE)+ROW()-2))=Switch!$D$39,INDIRECT(\"a\" & (VLOOKUP(Switch!$D$39,$F$2:$G$43,2,FALSE)+ROW()-2)),\"\")","v":{"$error":"#N/A"}},{"$f":"IF(INDIRECT(\"c\" & (VLOOKUP(Switch!$D$40,$F$2:$G$43,2,FALSE)+ROW()-2))=Switch!$D$40,INDIRECT(\"a\" & (VLOOKUP(Switch!$D$40,$F$2:$G$43,2,FALSE)+ROW()-2)),\"\")","v":{"$error":"#N/A"}},{"$f":"IF(INDIRECT(\"c\" & (VLOOKUP(Switch!$D$52,$F$2:$G$43,2,FALSE)+ROW()-2))=Switch!$D$52,INDIRECT(\"a\" & (VLOOKUP(Switch!$D$52,$F$2:$G$43,2,FALSE)+ROW()-2)),\"\")","v":{"$error":"#N/A"}},{"$f":"IF(INDIRECT(\"c\" & (VLOOKUP(Switch!$D$53,$F$2:$G$43,2,FALSE)+ROW()-2))=Switch!$D$53,INDIRECT(\"a\" & (VLOOKUP(Switch!$D$53,$F$2:$G$43,2,FALSE)+ROW()-2)),\"\")","v":{"$error":"#N/A"}},{"$f":"IF(INDIRECT(\"c\" & (VLOOKUP(Switch!$D$54,$F$2:$G$43,2,FALSE)+ROW()-2))=Switch!$D$54,INDIRECT(\"a\" & (VLOOKUP(Switch!$D$54,$F$2:$G$43,2,FALSE)+ROW()-2)),\"\")","v":{"$error":"#N/A"}},{"$f":"IF(INDIRECT(\"c\" & (VLOOKUP(Switch!$D$55,$F$2:$G$43,2,FALSE)+ROW()-2))=Switch!$D$55,INDIRECT(\"a\" & (VLOOKUP(Switch!$D$55,$F$2:$G$43,2,FALSE)+ROW()-2)),\"\")","v":{"$error":"#N/A"}},{"$f":"IF(INDIRECT(\"c\" & (VLOOKUP(Switch!$D$56,$F$2:$G$43,2,FALSE)+ROW()-2))=Switch!$D$56,INDIRECT(\"a\" & (VLOOKUP(Switch!$D$56,$F$2:$G$43,2,FALSE)+ROW()-2)),\"\")","v":{"$error":"#N/A"}},{"$f":"IF(INDIRECT(\"c\" & (VLOOKUP(Switch!$D$57,$F$2:$G$43,2,FALSE)+ROW()-2))=Switch!$D$57,INDIRECT(\"a\" & (VLOOKUP(Switch!$D$57,$F$2:$G$43,2,FALSE)+ROW()-2)),\"\")","v":{"$error":"#N/A"}},{"$f":"IF(INDIRECT(\"c\" & (VLOOKUP(Switch!$D$58,$F$2:$G$43,2,FALSE)+ROW()-2))=Switch!$D$58,INDIRECT(\"a\" & (VLOOKUP(Switch!$D$58,$F$2:$G$43,2,FALSE)+ROW()-2)),\"\")","v":{"$error":"#N/A"}},{"$f":"IF(INDIRECT(\"c\" & (VLOOKUP(Switch!$D$59,$F$2:$G$43,2,FALSE)+ROW()-2))=Switch!$D$59,INDIRECT(\"a\" & (VLOOKUP(Switch!$D$59,$F$2:$G$43,2,FALSE)+ROW()-2)),\"\")","v":{"$error":"#N/A"}},{"$f":"IF(INDIRECT(\"c\" & (VLOOKUP(Switch!$D$60,$F$2:$G$43,2,FALSE)+ROW()-2))=Switch!$D$60,INDIRECT(\"a\" & (VLOOKUP(Switch!$D$60,$F$2:$G$43,2,FALSE)+ROW()-2)),\"\")","v":{"$error":"#N/A"}},{"$f":"IF(INDIRECT(\"c\" & (VLOOKUP(Switch!$D$61,$F$2:$G$43,2,FALSE)+ROW()-2))=Switch!$D$61,INDIRECT(\"a\" & (VLOOKUP(Switch!$D$61,$F$2:$G$43,2,FALSE)+ROW()-2)),\"\")","v":{"$error":"#N/A"}},{"$f":"IF(INDIRECT(\"c\" & (VLOOKUP(Switch!$D$62,$F$2:$G$43,2,FALSE)+ROW()-2))=Switch!$D$62,INDIRECT(\"a\" & (VLOOKUP(Switch!$D$62,$F$2:$G$43,2,FALSE)+ROW()-2)),\"\")","v":{"$error":"#N/A"}},{"$f":"IF(INDIRECT(\"c\" & (VLOOKUP(Switch!$D$63,$F$2:$G$43,2,FALSE)+ROW()-2))=Switch!$D$63,INDIRECT(\"a\" & (VLOOKUP(Switch!$D$63,$F$2:$G$43,2,FALSE)+ROW()-2)),\"\")","v":{"$error":"#N/A"}},{"$f":"IF(INDIRECT(\"c\" & (VLOOKUP(Switch!$D$64,$F$2:$G$43,2,FALSE)+ROW()-2))=Switch!$D$64,INDIRECT(\"a\" & (VLOOKUP(Switch!$D$64,$F$2:$G$43,2,FALSE)+ROW()-2)),\"\")","v":{"$error":"#N/A"}},{"$f":"IF(INDIRECT(\"c\" & (VLOOKUP(Switch!$D$65,$F$2:$G$43,2,FALSE)+ROW()-2))=Switch!$D$65,INDIRECT(\"a\" & (VLOOKUP(Switch!$D$65,$F$2:$G$43,2,FALSE)+ROW()-2)),\"\")","v":{"$error":"#N/A"}},{"$f":"IF(INDIRECT(\"c\" & (VLOOKUP(Switch!$D$66,$F$2:$G$43,2,FALSE)+ROW()-2))=Switch!$D$66,INDIRECT(\"a\" & (VLOOKUP(Switch!$D$66,$F$2:$G$43,2,FALSE)+ROW()-2)),\"\")","v":{"$error":"#N/A"}}]
[null,null,null,{"$f":"ROW()","v":585},null,null,{"$f":"VLOOKUP(F585,$C$2:$D$637,2,FALSE)","v":{"$error":"#N/A"}},{"$f":"IF(INDIRECT(\"c\" & (VLOOKUP(Switch!$D$26,$F$2:$G$43,2,FALSE)+ROW()-2))=Switch!$D$26,INDIRECT(\"a\" & (VLOOKUP(Switch!$D$26,$F$2:$G$43,2,FALSE)+ROW()-2)),\"\")","v":{"$error":"#N/A"}},{"$f":"IF(INDIRECT(\"c\" & (VLOOKUP(Switch!$D$27,$F$2:$G$43,2,FALSE)+ROW()-2))=Switch!$D$27,INDIRECT(\"a\" & (VLOOKUP(Switch!$D$27,$F$2:$G$43,2,FALSE)+ROW()-2)),\"\")","v":{"$error":"#N/A"}},{"$f":"IF(INDIRECT(\"c\" & (VLOOKUP(Switch!$D$28,$F$2:$G$43,2,FALSE)+ROW()-2))=Switch!$D$28,INDIRECT(\"a\" & (VLOOKUP(Switch!$D$28,$F$2:$G$43,2,FALSE)+ROW()-2)),\"\")","v":{"$error":"#N/A"}},{"$f":"IF(INDIRECT(\"c\" & (VLOOKUP(Switch!$D$29,$F$2:$G$43,2,FALSE)+ROW()-2))=Switch!$D$29,INDIRECT(\"a\" & (VLOOKUP(Switch!$D$29,$F$2:$G$43,2,FALSE)+ROW()-2)),\"\")","v":{"$error":"#N/A"}},{"$f":"IF(INDIRECT(\"c\" & (VLOOKUP(Switch!$D$30,$F$2:$G$43,2,FALSE)+ROW()-2))=Switch!$D$30,INDIRECT(\"a\" & (VLOOKUP(Switch!$D$30,$F$2:$G$43,2,FALSE)+ROW()-2)),\"\")","v":{"$error":"#N/A"}},{"$f":"IF(INDIRECT(\"c\" & (VLOOKUP(Switch!$D$31,$F$2:$G$43,2,FALSE)+ROW()-2))=Switch!$D$31,INDIRECT(\"a\" & (VLOOKUP(Switch!$D$31,$F$2:$G$43,2,FALSE)+ROW()-2)),\"\")","v":{"$error":"#N/A"}},{"$f":"IF(INDIRECT(\"c\" & (VLOOKUP(Switch!$D$32,$F$2:$G$43,2,FALSE)+ROW()-2))=Switch!$D$32,INDIRECT(\"a\" & (VLOOKUP(Switch!$D$32,$F$2:$G$43,2,FALSE)+ROW()-2)),\"\")","v":{"$error":"#N/A"}},{"$f":"IF(INDIRECT(\"c\" & (VLOOKUP(Switch!$D$33,$F$2:$G$43,2,FALSE)+ROW()-2))=Switch!$D$33,INDIRECT(\"a\" & (VLOOKUP(Switch!$D$33,$F$2:$G$43,2,FALSE)+ROW()-2)),\"\")","v":{"$error":"#N/A"}},{"$f":"IF(INDIRECT(\"c\" & (VLOOKUP(Switch!$D$34,$F$2:$G$43,2,FALSE)+ROW()-2))=Switch!$D$34,INDIRECT(\"a\" & (VLOOKUP(Switch!$D$34,$F$2:$G$43,2,FALSE)+ROW()-2)),\"\")","v":{"$error":"#N/A"}},{"$f":"IF(INDIRECT(\"c\" & (VLOOKUP(Switch!$D$35,$F$2:$G$43,2,FALSE)+ROW()-2))=Switch!$D$35,INDIRECT(\"a\" & (VLOOKUP(Switch!$D$35,$F$2:$G$43,2,FALSE)+ROW()-2)),\"\")","v":{"$error":"#N/A"}},{"$f":"IF(INDIRECT(\"c\" & (VLOOKUP(Switch!$D$36,$F$2:$G$43,2,FALSE)+ROW()-2))=Switch!$D$36,INDIRECT(\"a\" & (VLOOKUP(Switch!$D$36,$F$2:$G$43,2,FALSE)+ROW()-2)),\"\")","v":{"$error":"#N/A"}},{"$f":"IF(INDIRECT(\"c\" & (VLOOKUP(Switch!$D$37,$F$2:$G$43,2,FALSE)+ROW()-2))=Switch!$D$37,INDIRECT(\"a\" & (VLOOKUP(Switch!$D$37,$F$2:$G$43,2,FALSE)+ROW()-2)),\"\")","v":{"$error":"#N/A"}},{"$f":"IF(INDIRECT(\"c\" & (VLOOKUP(Switch!$D$38,$F$2:$G$43,2,FALSE)+ROW()-2))=Switch!$D$38,INDIRECT(\"a\" & (VLOOKUP(Switch!$D$38,$F$2:$G$43,2,FALSE)+ROW()-2)),\"\")","v":{"$error":"#N/A"}},{"$f":"IF(INDIRECT(\"c\" & (VLOOKUP(Switch!$D$39,$F$2:$G$43,2,FALSE)+ROW()-2))=Switch!$D$39,INDIRECT(\"a\" & (VLOOKUP(Switch!$D$39,$F$2:$G$43,2,FALSE)+ROW()-2)),\"\")","v":{"$error":"#N/A"}},{"$f":"IF(INDIRECT(\"c\" & (VLOOKUP(Switch!$D$40,$F$2:$G$43,2,FALSE)+ROW()-2))=Switch!$D$40,INDIRECT(\"a\" & (VLOOKUP(Switch!$D$40,$F$2:$G$43,2,FALSE)+ROW()-2)),\"\")","v":{"$error":"#N/A"}},{"$f":"IF(INDIRECT(\"c\" & (VLOOKUP(Switch!$D$52,$F$2:$G$43,2,FALSE)+ROW()-2))=Switch!$D$52,INDIRECT(\"a\" & (VLOOKUP(Switch!$D$52,$F$2:$G$43,2,FALSE)+ROW()-2)),\"\")","v":{"$error":"#N/A"}},{"$f":"IF(INDIRECT(\"c\" & (VLOOKUP(Switch!$D$53,$F$2:$G$43,2,FALSE)+ROW()-2))=Switch!$D$53,INDIRECT(\"a\" & (VLOOKUP(Switch!$D$53,$F$2:$G$43,2,FALSE)+ROW()-2)),\"\")","v":{"$error":"#N/A"}},{"$f":"IF(INDIRECT(\"c\" & (VLOOKUP(Switch!$D$54,$F$2:$G$43,2,FALSE)+ROW()-2))=Switch!$D$54,INDIRECT(\"a\" & (VLOOKUP(Switch!$D$54,$F$2:$G$43,2,FALSE)+ROW()-2)),\"\")","v":{"$error":"#N/A"}},{"$f":"IF(INDIRECT(\"c\" & (VLOOKUP(Switch!$D$55,$F$2:$G$43,2,FALSE)+ROW()-2))=Switch!$D$55,INDIRECT(\"a\" & (VLOOKUP(Switch!$D$55,$F$2:$G$43,2,FALSE)+ROW()-2)),\"\")","v":{"$error":"#N/A"}},{"$f":"IF(INDIRECT(\"c\" & (VLOOKUP(Switch!$D$56,$F$2:$G$43,2,FALSE)+ROW()-2))=Switch!$D$56,INDIRECT(\"a\" & (VLOOKUP(Switch!$D$56,$F$2:$G$43,2,FALSE)+ROW()-2)),\"\")","v":{"$error":"#N/A"}},{"$f":"IF(INDIRECT(\"c\" & (VLOOKUP(Switch!$D$57,$F$2:$G$43,2,FALSE)+ROW()-2))=Switch!$D$57,INDIRECT(\"a\" & (VLOOKUP(Switch!$D$57,$F$2:$G$43,2,FALSE)+ROW()-2)),\"\")","v":{"$error":"#N/A"}},{"$f":"IF(INDIRECT(\"c\" & (VLOOKUP(Switch!$D$58,$F$2:$G$43,2,FALSE)+ROW()-2))=Switch!$D$58,INDIRECT(\"a\" & (VLOOKUP(Switch!$D$58,$F$2:$G$43,2,FALSE)+ROW()-2)),\"\")","v":{"$error":"#N/A"}},{"$f":"IF(INDIRECT(\"c\" & (VLOOKUP(Switch!$D$59,$F$2:$G$43,2,FALSE)+ROW()-2))=Switch!$D$59,INDIRECT(\"a\" & (VLOOKUP(Switch!$D$59,$F$2:$G$43,2,FALSE)+ROW()-2)),\"\")","v":{"$error":"#N/A"}},{"$f":"IF(INDIRECT(\"c\" & (VLOOKUP(Switch!$D$60,$F$2:$G$43,2,FALSE)+ROW()-2))=Switch!$D$60,INDIRECT(\"a\" & (VLOOKUP(Switch!$D$60,$F$2:$G$43,2,FALSE)+ROW()-2)),\"\")","v":{"$error":"#N/A"}},{"$f":"IF(INDIRECT(\"c\" & (VLOOKUP(Switch!$D$61,$F$2:$G$43,2,FALSE)+ROW()-2))=Switch!$D$61,INDIRECT(\"a\" & (VLOOKUP(Switch!$D$61,$F$2:$G$43,2,FALSE)+ROW()-2)),\"\")","v":{"$error":"#N/A"}},{"$f":"IF(INDIRECT(\"c\" & (VLOOKUP(Switch!$D$62,$F$2:$G$43,2,FALSE)+ROW()-2))=Switch!$D$62,INDIRECT(\"a\" & (VLOOKUP(Switch!$D$62,$F$2:$G$43,2,FALSE)+ROW()-2)),\"\")","v":{"$error":"#N/A"}},{"$f":"IF(INDIRECT(\"c\" & (VLOOKUP(Switch!$D$63,$F$2:$G$43,2,FALSE)+ROW()-2))=Switch!$D$63,INDIRECT(\"a\" & (VLOOKUP(Switch!$D$63,$F$2:$G$43,2,FALSE)+ROW()-2)),\"\")","v":{"$error":"#N/A"}},{"$f":"IF(INDIRECT(\"c\" & (VLOOKUP(Switch!$D$64,$F$2:$G$43,2,FALSE)+ROW()-2))=Switch!$D$64,INDIRECT(\"a\" & (VLOOKUP(Switch!$D$64,$F$2:$G$43,2,FALSE)+ROW()-2)),\"\")","v":{"$error":"#N/A"}},{"$f":"IF(INDIRECT(\"c\" & (VLOOKUP(Switch!$D$65,$F$2:$G$43,2,FALSE)+ROW()-2))=Switch!$D$65,INDIRECT(\"a\" & (VLOOKUP(Switch!$D$65,$F$2:$G$43,2,FALSE)+ROW()-2)),\"\")","v":{"$error":"#N/A"}},{"$f":"IF(INDIRECT(\"c\" & (VLOOKUP(Switch!$D$66,$F$2:$G$43,2,FALSE)+ROW()-2))=Switch!$D$66,INDIRECT(\"a\" & (VLOOKUP(Switch!$D$66,$F$2:$G$43,2,FALSE)+ROW()-2)),\"\")","v":{"$error":"#N/A"}}]
[null,null,null,{"$f":"ROW()","v":586},null,null,{"$f":"VLOOKUP(F586,$C$2:$D$637,2,FALSE)","v":{"$error":"#N/A"}},{"$f":"IF(INDIRECT(\"c\" & (VLOOKUP(Switch!$D$26,$F$2:$G$43,2,FALSE)+ROW()-2))=Switch!$D$26,INDIRECT(\"a\" & (VLOOKUP(Switch!$D$26,$F$2:$G$43,2,FALSE)+ROW()-2)),\"\")","v":{"$error":"#N/A"}},{"$f":"IF(INDIRECT(\"c\" & (VLOOKUP(Switch!$D$27,$F$2:$G$43,2,FALSE)+ROW()-2))=Switch!$D$27,INDIRECT(\"a\" & (VLOOKUP(Switch!$D$27,$F$2:$G$43,2,FALSE)+ROW()-2)),\"\")","v":{"$error":"#N/A"}},{"$f":"IF(INDIRECT(\"c\" & (VLOOKUP(Switch!$D$28,$F$2:$G$43,2,FALSE)+ROW()-2))=Switch!$D$28,INDIRECT(\"a\" & (VLOOKUP(Switch!$D$28,$F$2:$G$43,2,FALSE)+ROW()-2)),\"\")","v":{"$error":"#N/A"}},{"$f":"IF(INDIRECT(\"c\" & (VLOOKUP(Switch!$D$29,$F$2:$G$43,2,FALSE)+ROW()-2))=Switch!$D$29,INDIRECT(\"a\" & (VLOOKUP(Switch!$D$29,$F$2:$G$43,2,FALSE)+ROW()-2)),\"\")","v":{"$error":"#N/A"}},{"$f":"IF(INDIRECT(\"c\" & (VLOOKUP(Switch!$D$30,$F$2:$G$43,2,FALSE)+ROW()-2))=Switch!$D$30,INDIRECT(\"a\" & (VLOOKUP(Switch!$D$30,$F$2:$G$43,2,FALSE)+ROW()-2)),\"\")","v":{"$error":"#N/A"}},{"$f":"IF(INDIRECT(\"c\" & (VLOOKUP(Switch!$D$31,$F$2:$G$43,2,FALSE)+ROW()-2))=Switch!$D$31,INDIRECT(\"a\" & (VLOOKUP(Switch!$D$31,$F$2:$G$43,2,FALSE)+ROW()-2)),\"\")","v":{"$error":"#N/A"}},{"$f":"IF(INDIRECT(\"c\" & (VLOOKUP(Switch!$D$32,$F$2:$G$43,2,FALSE)+ROW()-2))=Switch!$D$32,INDIRECT(\"a\" & (VLOOKUP(Switch!$D$32,$F$2:$G$43,2,FALSE)+ROW()-2)),\"\")","v":{"$error":"#N/A"}},{"$f":"IF(INDIRECT(\"c\" & (VLOOKUP(Switch!$D$33,$F$2:$G$43,2,FALSE)+ROW()-2))=Switch!$D$33,INDIRECT(\"a\" & (VLOOKUP(Switch!$D$33,$F$2:$G$43,2,FALSE)+ROW()-2)),\"\")","v":{"$error":"#N/A"}},{"$f":"IF(INDIRECT(\"c\" & (VLOOKUP(Switch!$D$34,$F$2:$G$43,2,FALSE)+ROW()-2))=Switch!$D$34,INDIRECT(\"a\" & (VLOOKUP(Switch!$D$34,$F$2:$G$43,2,FALSE)+ROW()-2)),\"\")","v":{"$error":"#N/A"}},{"$f":"IF(INDIRECT(\"c\" & (VLOOKUP(Switch!$D$35,$F$2:$G$43,2,FALSE)+ROW()-2))=Switch!$D$35,INDIRECT(\"a\" & (VLOOKUP(Switch!$D$35,$F$2:$G$43,2,FALSE)+ROW()-2)),\"\")","v":{"$error":"#N/A"}},{"$f":"IF(INDIRECT(\"c\" & (VLOOKUP(Switch!$D$36,$F$2:$G$43,2,FALSE)+ROW()-2))=Switch!$D$36,INDIRECT(\"a\" & (VLOOKUP(Switch!$D$36,$F$2:$G$43,2,FALSE)+ROW()-2)),\"\")","v":{"$error":"#N/A"}},{"$f":"IF(INDIRECT(\"c\" & (VLOOKUP(Switch!$D$37,$F$2:$G$43,2,FALSE)+ROW()-2))=Switch!$D$37,INDIRECT(\"a\" & (VLOOKUP(Switch!$D$37,$F$2:$G$43,2,FALSE)+ROW()-2)),\"\")","v":{"$error":"#N/A"}},{"$f":"IF(INDIRECT(\"c\" & (VLOOKUP(Switch!$D$38,$F$2:$G$43,2,FALSE)+ROW()-2))=Switch!$D$38,INDIRECT(\"a\" & (VLOOKUP(Switch!$D$38,$F$2:$G$43,2,FALSE)+ROW()-2)),\"\")","v":{"$error":"#N/A"}},{"$f":"IF(INDIRECT(\"c\" & (VLOOKUP(Switch!$D$39,$F$2:$G$43,2,FALSE)+ROW()-2))=Switch!$D$39,INDIRECT(\"a\" & (VLOOKUP(Switch!$D$39,$F$2:$G$43,2,FALSE)+ROW()-2)),\"\")","v":{"$error":"#N/A"}},{"$f":"IF(INDIRECT(\"c\" & (VLOOKUP(Switch!$D$40,$F$2:$G$43,2,FALSE)+ROW()-2))=Switch!$D$40,INDIRECT(\"a\" & (VLOOKUP(Switch!$D$40,$F$2:$G$43,2,FALSE)+ROW()-2)),\"\")","v":{"$error":"#N/A"}},{"$f":"IF(INDIRECT(\"c\" & (VLOOKUP(Switch!$D$52,$F$2:$G$43,2,FALSE)+ROW()-2))=Switch!$D$52,INDIRECT(\"a\" & (VLOOKUP(Switch!$D$52,$F$2:$G$43,2,FALSE)+ROW()-2)),\"\")","v":{"$error":"#N/A"}},{"$f":"IF(INDIRECT(\"c\" & (VLOOKUP(Switch!$D$53,$F$2:$G$43,2,FALSE)+ROW()-2))=Switch!$D$53,INDIRECT(\"a\" & (VLOOKUP(Switch!$D$53,$F$2:$G$43,2,FALSE)+ROW()-2)),\"\")","v":{"$error":"#N/A"}},{"$f":"IF(INDIRECT(\"c\" & (VLOOKUP(Switch!$D$54,$F$2:$G$43,2,FALSE)+ROW()-2))=Switch!$D$54,INDIRECT(\"a\" & (VLOOKUP(Switch!$D$54,$F$2:$G$43,2,FALSE)+ROW()-2)),\"\")","v":{"$error":"#N/A"}},{"$f":"IF(INDIRECT(\"c\" & (VLOOKUP(Switch!$D$55,$F$2:$G$43,2,FALSE)+ROW()-2))=Switch!$D$55,INDIRECT(\"a\" & (VLOOKUP(Switch!$D$55,$F$2:$G$43,2,FALSE)+ROW()-2)),\"\")","v":{"$error":"#N/A"}},{"$f":"IF(INDIRECT(\"c\" & (VLOOKUP(Switch!$D$56,$F$2:$G$43,2,FALSE)+ROW()-2))=Switch!$D$56,INDIRECT(\"a\" & (VLOOKUP(Switch!$D$56,$F$2:$G$43,2,FALSE)+ROW()-2)),\"\")","v":{"$error":"#N/A"}},{"$f":"IF(INDIRECT(\"c\" & (VLOOKUP(Switch!$D$57,$F$2:$G$43,2,FALSE)+ROW()-2))=Switch!$D$57,INDIRECT(\"a\" & (VLOOKUP(Switch!$D$57,$F$2:$G$43,2,FALSE)+ROW()-2)),\"\")","v":{"$error":"#N/A"}},{"$f":"IF(INDIRECT(\"c\" & (VLOOKUP(Switch!$D$58,$F$2:$G$43,2,FALSE)+ROW()-2))=Switch!$D$58,INDIRECT(\"a\" & (VLOOKUP(Switch!$D$58,$F$2:$G$43,2,FALSE)+ROW()-2)),\"\")","v":{"$error":"#N/A"}},{"$f":"IF(INDIRECT(\"c\" & (VLOOKUP(Switch!$D$59,$F$2:$G$43,2,FALSE)+ROW()-2))=Switch!$D$59,INDIRECT(\"a\" & (VLOOKUP(Switch!$D$59,$F$2:$G$43,2,FALSE)+ROW()-2)),\"\")","v":{"$error":"#N/A"}},{"$f":"IF(INDIRECT(\"c\" & (VLOOKUP(Switch!$D$60,$F$2:$G$43,2,FALSE)+ROW()-2))=Switch!$D$60,INDIRECT(\"a\" & (VLOOKUP(Switch!$D$60,$F$2:$G$43,2,FALSE)+ROW()-2)),\"\")","v":{"$error":"#N/A"}},{"$f":"IF(INDIRECT(\"c\" & (VLOOKUP(Switch!$D$61,$F$2:$G$43,2,FALSE)+ROW()-2))=Switch!$D$61,INDIRECT(\"a\" & (VLOOKUP(Switch!$D$61,$F$2:$G$43,2,FALSE)+ROW()-2)),\"\")","v":{"$error":"#N/A"}},{"$f":"IF(INDIRECT(\"c\" & (VLOOKUP(Switch!$D$62,$F$2:$G$43,2,FALSE)+ROW()-2))=Switch!$D$62,INDIRECT(\"a\" & (VLOOKUP(Switch!$D$62,$F$2:$G$43,2,FALSE)+ROW()-2)),\"\")","v":{"$error":"#N/A"}},{"$f":"IF(INDIRECT(\"c\" & (VLOOKUP(Switch!$D$63,$F$2:$G$43,2,FALSE)+ROW()-2))=Switch!$D$63,INDIRECT(\"a\" & (VLOOKUP(Switch!$D$63,$F$2:$G$43,2,FALSE)+ROW()-2)),\"\")","v":{"$error":"#N/A"}},{"$f":"IF(INDIRECT(\"c\" & (VLOOKUP(Switch!$D$64,$F$2:$G$43,2,FALSE)+ROW()-2))=Switch!$D$64,INDIRECT(\"a\" & (VLOOKUP(Switch!$D$64,$F$2:$G$43,2,FALSE)+ROW()-2)),\"\")","v":{"$error":"#N/A"}},{"$f":"IF(INDIRECT(\"c\" & (VLOOKUP(Switch!$D$65,$F$2:$G$43,2,FALSE)+ROW()-2))=Switch!$D$65,INDIRECT(\"a\" & (VLOOKUP(Switch!$D$65,$F$2:$G$43,2,FALSE)+ROW()-2)),\"\")","v":{"$error":"#N/A"}},{"$f":"IF(INDIRECT(\"c\" & (VLOOKUP(Switch!$D$66,$F$2:$G$43,2,FALSE)+ROW()-2))=Switch!$D$66,INDIRECT(\"a\" & (VLOOKUP(Switch!$D$66,$F$2:$G$43,2,FALSE)+ROW()-2)),\"\")","v":{"$error":"#N/A"}}]
[null,null,null,{"$f":"ROW()","v":587},null,null,{"$f":"VLOOKUP(F587,$C$2:$D$637,2,FALSE)","v":{"$error":"#N/A"}},{"$f":"IF(INDIRECT(\"c\" & (VLOOKUP(Switch!$D$26,$F$2:$G$43,2,FALSE)+ROW()-2))=Switch!$D$26,INDIRECT(\"a\" & (VLOOKUP(Switch!$D$26,$F$2:$G$43,2,FALSE)+ROW()-2)),\"\")","v":{"$error":"#N/A"}},{"$f":"IF(INDIRECT(\"c\" & (VLOOKUP(Switch!$D$27,$F$2:$G$43,2,FALSE)+ROW()-2))=Switch!$D$27,INDIRECT(\"a\" & (VLOOKUP(Switch!$D$27,$F$2:$G$43,2,FALSE)+ROW()-2)),\"\")","v":{"$error":"#N/A"}},{"$f":"IF(INDIRECT(\"c\" & (VLOOKUP(Switch!$D$28,$F$2:$G$43,2,FALSE)+ROW()-2))=Switch!$D$28,INDIRECT(\"a\" & (VLOOKUP(Switch!$D$28,$F$2:$G$43,2,FALSE)+ROW()-2)),\"\")","v":{"$error":"#N/A"}},{"$f":"IF(INDIRECT(\"c\" & (VLOOKUP(Switch!$D$29,$F$2:$G$43,2,FALSE)+ROW()-2))=Switch!$D$29,INDIRECT(\"a\" & (VLOOKUP(Switch!$D$29,$F$2:$G$43,2,FALSE)+ROW()-2)),\"\")","v":{"$error":"#N/A"}},{"$f":"IF(INDIRECT(\"c\" & (VLOOKUP(Switch!$D$30,$F$2:$G$43,2,FALSE)+ROW()-2))=Switch!$D$30,INDIRECT(\"a\" & (VLOOKUP(Switch!$D$30,$F$2:$G$43,2,FALSE)+ROW()-2)),\"\")","v":{"$error":"#N/A"}},{"$f":"IF(INDIRECT(\"c\" & (VLOOKUP(Switch!$D$31,$F$2:$G$43,2,FALSE)+ROW()-2))=Switch!$D$31,INDIRECT(\"a\" & (VLOOKUP(Switch!$D$31,$F$2:$G$43,2,FALSE)+ROW()-2)),\"\")","v":{"$error":"#N/A"}},{"$f":"IF(INDIRECT(\"c\" & (VLOOKUP(Switch!$D$32,$F$2:$G$43,2,FALSE)+ROW()-2))=Switch!$D$32,INDIRECT(\"a\" & (VLOOKUP(Switch!$D$32,$F$2:$G$43,2,FALSE)+ROW()-2)),\"\")","v":{"$error":"#N/A"}},{"$f":"IF(INDIRECT(\"c\" & (VLOOKUP(Switch!$D$33,$F$2:$G$43,2,FALSE)+ROW()-2))=Switch!$D$33,INDIRECT(\"a\" & (VLOOKUP(Switch!$D$33,$F$2:$G$43,2,FALSE)+ROW()-2)),\"\")","v":{"$error":"#N/A"}},{"$f":"IF(INDIRECT(\"c\" & (VLOOKUP(Switch!$D$34,$F$2:$G$43,2,FALSE)+ROW()-2))=Switch!$D$34,INDIRECT(\"a\" & (VLOOKUP(Switch!$D$34,$F$2:$G$43,2,FALSE)+ROW()-2)),\"\")","v":{"$error":"#N/A"}},{"$f":"IF(INDIRECT(\"c\" & (VLOOKUP(Switch!$D$35,$F$2:$G$43,2,FALSE)+ROW()-2))=Switch!$D$35,INDIRECT(\"a\" & (VLOOKUP(Switch!$D$35,$F$2:$G$43,2,FALSE)+ROW()-2)),\"\")","v":{"$error":"#N/A"}},{"$f":"IF(INDIRECT(\"c\" & (VLOOKUP(Switch!$D$36,$F$2:$G$43,2,FALSE)+ROW()-2))=Switch!$D$36,INDIRECT(\"a\" & (VLOOKUP(Switch!$D$36,$F$2:$G$43,2,FALSE)+ROW()-2)),\"\")","v":{"$error":"#N/A"}},{"$f":"IF(INDIRECT(\"c\" & (VLOOKUP(Switch!$D$37,$F$2:$G$43,2,FALSE)+ROW()-2))=Switch!$D$37,INDIRECT(\"a\" & (VLOOKUP(Switch!$D$37,$F$2:$G$43,2,FALSE)+ROW()-2)),\"\")","v":{"$error":"#N/A"}},{"$f":"IF(INDIRECT(\"c\" & (VLOOKUP(Switch!$D$38,$F$2:$G$43,2,FALSE)+ROW()-2))=Switch!$D$38,INDIRECT(\"a\" & (VLOOKUP(Switch!$D$38,$F$2:$G$43,2,FALSE)+ROW()-2)),\"\")","v":{"$error":"#N/A"}},{"$f":"IF(INDIRECT(\"c\" & (VLOOKUP(Switch!$D$39,$F$2:$G$43,2,FALSE)+ROW()-2))=Switch!$D$39,INDIRECT(\"a\" & (VLOOKUP(Switch!$D$39,$F$2:$G$43,2,FALSE)+ROW()-2)),\"\")","v":{"$error":"#N/A"}},{"$f":"IF(INDIRECT(\"c\" & (VLOOKUP(Switch!$D$40,$F$2:$G$43,2,FALSE)+ROW()-2))=Switch!$D$40,INDIRECT(\"a\" & (VLOOKUP(Switch!$D$40,$F$2:$G$43,2,FALSE)+ROW()-2)),\"\")","v":{"$error":"#N/A"}},{"$f":"IF(INDIRECT(\"c\" & (VLOOKUP(Switch!$D$52,$F$2:$G$43,2,FALSE)+ROW()-2))=Switch!$D$52,INDIRECT(\"a\" & (VLOOKUP(Switch!$D$52,$F$2:$G$43,2,FALSE)+ROW()-2)),\"\")","v":{"$error":"#N/A"}},{"$f":"IF(INDIRECT(\"c\" & (VLOOKUP(Switch!$D$53,$F$2:$G$43,2,FALSE)+ROW()-2))=Switch!$D$53,INDIRECT(\"a\" & (VLOOKUP(Switch!$D$53,$F$2:$G$43,2,FALSE)+ROW()-2)),\"\")","v":{"$error":"#N/A"}},{"$f":"IF(INDIRECT(\"c\" & (VLOOKUP(Switch!$D$54,$F$2:$G$43,2,FALSE)+ROW()-2))=Switch!$D$54,INDIRECT(\"a\" & (VLOOKUP(Switch!$D$54,$F$2:$G$43,2,FALSE)+ROW()-2)),\"\")","v":{"$error":"#N/A"}},{"$f":"IF(INDIRECT(\"c\" & (VLOOKUP(Switch!$D$55,$F$2:$G$43,2,FALSE)+ROW()-2))=Switch!$D$55,INDIRECT(\"a\" & (VLOOKUP(Switch!$D$55,$F$2:$G$43,2,FALSE)+ROW()-2)),\"\")","v":{"$error":"#N/A"}},{"$f":"IF(INDIRECT(\"c\" & (VLOOKUP(Switch!$D$56,$F$2:$G$43,2,FALSE)+ROW()-2))=Switch!$D$56,INDIRECT(\"a\" & (VLOOKUP(Switch!$D$56,$F$2:$G$43,2,FALSE)+ROW()-2)),\"\")","v":{"$error":"#N/A"}},{"$f":"IF(INDIRECT(\"c\" & (VLOOKUP(Switch!$D$57,$F$2:$G$43,2,FALSE)+ROW()-2))=Switch!$D$57,INDIRECT(\"a\" & (VLOOKUP(Switch!$D$57,$F$2:$G$43,2,FALSE)+ROW()-2)),\"\")","v":{"$error":"#N/A"}},{"$f":"IF(INDIRECT(\"c\" & (VLOOKUP(Switch!$D$58,$F$2:$G$43,2,FALSE)+ROW()-2))=Switch!$D$58,INDIRECT(\"a\" & (VLOOKUP(Switch!$D$58,$F$2:$G$43,2,FALSE)+ROW()-2)),\"\")","v":{"$error":"#N/A"}},{"$f":"IF(INDIRECT(\"c\" & (VLOOKUP(Switch!$D$59,$F$2:$G$43,2,FALSE)+ROW()-2))=Switch!$D$59,INDIRECT(\"a\" & (VLOOKUP(Switch!$D$59,$F$2:$G$43,2,FALSE)+ROW()-2)),\"\")","v":{"$error":"#N/A"}},{"$f":"IF(INDIRECT(\"c\" & (VLOOKUP(Switch!$D$60,$F$2:$G$43,2,FALSE)+ROW()-2))=Switch!$D$60,INDIRECT(\"a\" & (VLOOKUP(Switch!$D$60,$F$2:$G$43,2,FALSE)+ROW()-2)),\"\")","v":{"$error":"#N/A"}},{"$f":"IF(INDIRECT(\"c\" & (VLOOKUP(Switch!$D$61,$F$2:$G$43,2,FALSE)+ROW()-2))=Switch!$D$61,INDIRECT(\"a\" & (VLOOKUP(Switch!$D$61,$F$2:$G$43,2,FALSE)+ROW()-2)),\"\")","v":{"$error":"#N/A"}},{"$f":"IF(INDIRECT(\"c\" & (VLOOKUP(Switch!$D$62,$F$2:$G$43,2,FALSE)+ROW()-2))=Switch!$D$62,INDIRECT(\"a\" & (VLOOKUP(Switch!$D$62,$F$2:$G$43,2,FALSE)+ROW()-2)),\"\")","v":{"$error":"#N/A"}},{"$f":"IF(INDIRECT(\"c\" & (VLOOKUP(Switch!$D$63,$F$2:$G$43,2,FALSE)+ROW()-2))=Switch!$D$63,INDIRECT(\"a\" & (VLOOKUP(Switch!$D$63,$F$2:$G$43,2,FALSE)+ROW()-2)),\"\")","v":{"$error":"#N/A"}},{"$f":"IF(INDIRECT(\"c\" & (VLOOKUP(Switch!$D$64,$F$2:$G$43,2,FALSE)+ROW()-2))=Switch!$D$64,INDIRECT(\"a\" & (VLOOKUP(Switch!$D$64,$F$2:$G$43,2,FALSE)+ROW()-2)),\"\")","v":{"$error":"#N/A"}},{"$f":"IF(INDIRECT(\"c\" & (VLOOKUP(Switch!$D$65,$F$2:$G$43,2,FALSE)+ROW()-2))=Switch!$D$65,INDIRECT(\"a\" & (VLOOKUP(Switch!$D$65,$F$2:$G$43,2,FALSE)+ROW()-2)),\"\")","v":{"$error":"#N/A"}},{"$f":"IF(INDIRECT(\"c\" & (VLOOKUP(Switch!$D$66,$F$2:$G$43,2,FALSE)+ROW()-2))=Switch!$D$66,INDIRECT(\"a\" & (VLOOKUP(Switch!$D$66,$F$2:$G$43,2,FALSE)+ROW()-2)),\"\")","v":{"$error":"#N/A"}}]
[null,null,null,{"$f":"ROW()","v":588},null,null,{"$f":"VLOOKUP(F588,$C$2:$D$637,2,FALSE)","v":{"$error":"#N/A"}},{"$f":"IF(INDIRECT(\"c\" & (VLOOKUP(Switch!$D$26,$F$2:$G$43,2,FALSE)+ROW()-2))=Switch!$D$26,INDIRECT(\"a\" & (VLOOKUP(Switch!$D$26,$F$2:$G$43,2,FALSE)+ROW()-2)),\"\")","v":{"$error":"#N/A"}},{"$f":"IF(INDIRECT(\"c\" & (VLOOKUP(Switch!$D$27,$F$2:$G$43,2,FALSE)+ROW()-2))=Switch!$D$27,INDIRECT(\"a\" & (VLOOKUP(Switch!$D$27,$F$2:$G$43,2,FALSE)+ROW()-2)),\"\")","v":{"$error":"#N/A"}},{"$f":"IF(INDIRECT(\"c\" & (VLOOKUP(Switch!$D$28,$F$2:$G$43,2,FALSE)+ROW()-2))=Switch!$D$28,INDIRECT(\"a\" & (VLOOKUP(Switch!$D$28,$F$2:$G$43,2,FALSE)+ROW()-2)),\"\")","v":{"$error":"#N/A"}},{"$f":"IF(INDIRECT(\"c\" & (VLOOKUP(Switch!$D$29,$F$2:$G$43,2,FALSE)+ROW()-2))=Switch!$D$29,INDIRECT(\"a\" & (VLOOKUP(Switch!$D$29,$F$2:$G$43,2,FALSE)+ROW()-2)),\"\")","v":{"$error":"#N/A"}},{"$f":"IF(INDIRECT(\"c\" & (VLOOKUP(Switch!$D$30,$F$2:$G$43,2,FALSE)+ROW()-2))=Switch!$D$30,INDIRECT(\"a\" & (VLOOKUP(Switch!$D$30,$F$2:$G$43,2,FALSE)+ROW()-2)),\"\")","v":{"$error":"#N/A"}},{"$f":"IF(INDIRECT(\"c\" & (VLOOKUP(Switch!$D$31,$F$2:$G$43,2,FALSE)+ROW()-2))=Switch!$D$31,INDIRECT(\"a\" & (VLOOKUP(Switch!$D$31,$F$2:$G$43,2,FALSE)+ROW()-2)),\"\")","v":{"$error":"#N/A"}},{"$f":"IF(INDIRECT(\"c\" & (VLOOKUP(Switch!$D$32,$F$2:$G$43,2,FALSE)+ROW()-2))=Switch!$D$32,INDIRECT(\"a\" & (VLOOKUP(Switch!$D$32,$F$2:$G$43,2,FALSE)+ROW()-2)),\"\")","v":{"$error":"#N/A"}},{"$f":"IF(INDIRECT(\"c\" & (VLOOKUP(Switch!$D$33,$F$2:$G$43,2,FALSE)+ROW()-2))=Switch!$D$33,INDIRECT(\"a\" & (VLOOKUP(Switch!$D$33,$F$2:$G$43,2,FALSE)+ROW()-2)),\"\")","v":{"$error":"#N/A"}},{"$f":"IF(INDIRECT(\"c\" & (VLOOKUP(Switch!$D$34,$F$2:$G$43,2,FALSE)+ROW()-2))=Switch!$D$34,INDIRECT(\"a\" & (VLOOKUP(Switch!$D$34,$F$2:$G$43,2,FALSE)+ROW()-2)),\"\")","v":{"$error":"#N/A"}},{"$f":"IF(INDIRECT(\"c\" & (VLOOKUP(Switch!$D$35,$F$2:$G$43,2,FALSE)+ROW()-2))=Switch!$D$35,INDIRECT(\"a\" & (VLOOKUP(Switch!$D$35,$F$2:$G$43,2,FALSE)+ROW()-2)),\"\")","v":{"$error":"#N/A"}},{"$f":"IF(INDIRECT(\"c\" & (VLOOKUP(Switch!$D$36,$F$2:$G$43,2,FALSE)+ROW()-2))=Switch!$D$36,INDIRECT(\"a\" & (VLOOKUP(Switch!$D$36,$F$2:$G$43,2,FALSE)+ROW()-2)),\"\")","v":{"$error":"#N/A"}},{"$f":"IF(INDIRECT(\"c\" & (VLOOKUP(Switch!$D$37,$F$2:$G$43,2,FALSE)+ROW()-2))=Switch!$D$37,INDIRECT(\"a\" & (VLOOKUP(Switch!$D$37,$F$2:$G$43,2,FALSE)+ROW()-2)),\"\")","v":{"$error":"#N/A"}},{"$f":"IF(INDIRECT(\"c\" & (VLOOKUP(Switch!$D$38,$F$2:$G$43,2,FALSE)+ROW()-2))=Switch!$D$38,INDIRECT(\"a\" & (VLOOKUP(Switch!$D$38,$F$2:$G$43,2,FALSE)+ROW()-2)),\"\")","v":{"$error":"#N/A"}},{"$f":"IF(INDIRECT(\"c\" & (VLOOKUP(Switch!$D$39,$F$2:$G$43,2,FALSE)+ROW()-2))=Switch!$D$39,INDIRECT(\"a\" & (VLOOKUP(Switch!$D$39,$F$2:$G$43,2,FALSE)+ROW()-2)),\"\")","v":{"$error":"#N/A"}},{"$f":"IF(INDIRECT(\"c\" & (VLOOKUP(Switch!$D$40,$F$2:$G$43,2,FALSE)+ROW()-2))=Switch!$D$40,INDIRECT(\"a\" & (VLOOKUP(Switch!$D$40,$F$2:$G$43,2,FALSE)+ROW()-2)),\"\")","v":{"$error":"#N/A"}},{"$f":"IF(INDIRECT(\"c\" & (VLOOKUP(Switch!$D$52,$F$2:$G$43,2,FALSE)+ROW()-2))=Switch!$D$52,INDIRECT(\"a\" & (VLOOKUP(Switch!$D$52,$F$2:$G$43,2,FALSE)+ROW()-2)),\"\")","v":{"$error":"#N/A"}},{"$f":"IF(INDIRECT(\"c\" & (VLOOKUP(Switch!$D$53,$F$2:$G$43,2,FALSE)+ROW()-2))=Switch!$D$53,INDIRECT(\"a\" & (VLOOKUP(Switch!$D$53,$F$2:$G$43,2,FALSE)+ROW()-2)),\"\")","v":{"$error":"#N/A"}},{"$f":"IF(INDIRECT(\"c\" & (VLOOKUP(Switch!$D$54,$F$2:$G$43,2,FALSE)+ROW()-2))=Switch!$D$54,INDIRECT(\"a\" & (VLOOKUP(Switch!$D$54,$F$2:$G$43,2,FALSE)+ROW()-2)),\"\")","v":{"$error":"#N/A"}},{"$f":"IF(INDIRECT(\"c\" & (VLOOKUP(Switch!$D$55,$F$2:$G$43,2,FALSE)+ROW()-2))=Switch!$D$55,INDIRECT(\"a\" & (VLOOKUP(Switch!$D$55,$F$2:$G$43,2,FALSE)+ROW()-2)),\"\")","v":{"$error":"#N/A"}},{"$f":"IF(INDIRECT(\"c\" & (VLOOKUP(Switch!$D$56,$F$2:$G$43,2,FALSE)+ROW()-2))=Switch!$D$56,INDIRECT(\"a\" & (VLOOKUP(Switch!$D$56,$F$2:$G$43,2,FALSE)+ROW()-2)),\"\")","v":{"$error":"#N/A"}},{"$f":"IF(INDIRECT(\"c\" & (VLOOKUP(Switch!$D$57,$F$2:$G$43,2,FALSE)+ROW()-2))=Switch!$D$57,INDIRECT(\"a\" & (VLOOKUP(Switch!$D$57,$F$2:$G$43,2,FALSE)+ROW()-2)),\"\")","v":{"$error":"#N/A"}},{"$f":"IF(INDIRECT(\"c\" & (VLOOKUP(Switch!$D$58,$F$2:$G$43,2,FALSE)+ROW()-2))=Switch!$D$58,INDIRECT(\"a\" & (VLOOKUP(Switch!$D$58,$F$2:$G$43,2,FALSE)+ROW()-2)),\"\")","v":{"$error":"#N/A"}},{"$f":"IF(INDIRECT(\"c\" & (VLOOKUP(Switch!$D$59,$F$2:$G$43,2,FALSE)+ROW()-2))=Switch!$D$59,INDIRECT(\"a\" & (VLOOKUP(Switch!$D$59,$F$2:$G$43,2,FALSE)+ROW()-2)),\"\")","v":{"$error":"#N/A"}},{"$f":"IF(INDIRECT(\"c\" & (VLOOKUP(Switch!$D$60,$F$2:$G$43,2,FALSE)+ROW()-2))=Switch!$D$60,INDIRECT(\"a\" & (VLOOKUP(Switch!$D$60,$F$2:$G$43,2,FALSE)+ROW()-2)),\"\")","v":{"$error":"#N/A"}},{"$f":"IF(INDIRECT(\"c\" & (VLOOKUP(Switch!$D$61,$F$2:$G$43,2,FALSE)+ROW()-2))=Switch!$D$61,INDIRECT(\"a\" & (VLOOKUP(Switch!$D$61,$F$2:$G$43,2,FALSE)+ROW()-2)),\"\")","v":{"$error":"#N/A"}},{"$f":"IF(INDIRECT(\"c\" & (VLOOKUP(Switch!$D$62,$F$2:$G$43,2,FALSE)+ROW()-2))=Switch!$D$62,INDIRECT(\"a\" & (VLOOKUP(Switch!$D$62,$F$2:$G$43,2,FALSE)+ROW()-2)),\"\")","v":{"$error":"#N/A"}},{"$f":"IF(INDIRECT(\"c\" & (VLOOKUP(Switch!$D$63,$F$2:$G$43,2,FALSE)+ROW()-2))=Switch!$D$63,INDIRECT(\"a\" & (VLOOKUP(Switch!$D$63,$F$2:$G$43,2,FALSE)+ROW()-2)),\"\")","v":{"$error":"#N/A"}},{"$f":"IF(INDIRECT(\"c\" & (VLOOKUP(Switch!$D$64,$F$2:$G$43,2,FALSE)+ROW()-2))=Switch!$D$64,INDIRECT(\"a\" & (VLOOKUP(Switch!$D$64,$F$2:$G$43,2,FALSE)+ROW()-2)),\"\")","v":{"$error":"#N/A"}},{"$f":"IF(INDIRECT(\"c\" & (VLOOKUP(Switch!$D$65,$F$2:$G$43,2,FALSE)+ROW()-2))=Switch!$D$65,INDIRECT(\"a\" & (VLOOKUP(Switch!$D$65,$F$2:$G$43,2,FALSE)+ROW()-2)),\"\")","v":{"$error":"#N/A"}},{"$f":"IF(INDIRECT(\"c\" & (VLOOKUP(Switch!$D$66,$F$2:$G$43,2,FALSE)+ROW()-2))=Switch!$D$66,INDIRECT(\"a\" & (VLOOKUP(Switch!$D$66,$F$2:$G$43,2,FALSE)+ROW()-2)),\"\")","v":{"$error":"#N/A"}}]
[null,null,null,{"$f":"ROW()","v":589},null,null,{"$f":"VLOOKUP(F589,$C$2:$D$637,2,FALSE)","v":{"$error":"#N/A"}},{"$f":"IF(INDIRECT(\"c\" & (VLOOKUP(Switch!$D$26,$F$2:$G$43,2,FALSE)+ROW()-2))=Switch!$D$26,INDIRECT(\"a\" & (VLOOKUP(Switch!$D$26,$F$2:$G$43,2,FALSE)+ROW()-2)),\"\")","v":{"$error":"#N/A"}},{"$f":"IF(INDIRECT(\"c\" & (VLOOKUP(Switch!$D$27,$F$2:$G$43,2,FALSE)+ROW()-2))=Switch!$D$27,INDIRECT(\"a\" & (VLOOKUP(Switch!$D$27,$F$2:$G$43,2,FALSE)+ROW()-2)),\"\")","v":{"$error":"#N/A"}},{"$f":"IF(INDIRECT(\"c\" & (VLOOKUP(Switch!$D$28,$F$2:$G$43,2,FALSE)+ROW()-2))=Switch!$D$28,INDIRECT(\"a\" & (VLOOKUP(Switch!$D$28,$F$2:$G$43,2,FALSE)+ROW()-2)),\"\")","v":{"$error":"#N/A"}},{"$f":"IF(INDIRECT(\"c\" & (VLOOKUP(Switch!$D$29,$F$2:$G$43,2,FALSE)+ROW()-2))=Switch!$D$29,INDIRECT(\"a\" & (VLOOKUP(Switch!$D$29,$F$2:$G$43,2,FALSE)+ROW()-2)),\"\")","v":{"$error":"#N/A"}},{"$f":"IF(INDIRECT(\"c\" & (VLOOKUP(Switch!$D$30,$F$2:$G$43,2,FALSE)+ROW()-2))=Switch!$D$30,INDIRECT(\"a\" & (VLOOKUP(Switch!$D$30,$F$2:$G$43,2,FALSE)+ROW()-2)),\"\")","v":{"$error":"#N/A"}},{"$f":"IF(INDIRECT(\"c\" & (VLOOKUP(Switch!$D$31,$F$2:$G$43,2,FALSE)+ROW()-2))=Switch!$D$31,INDIRECT(\"a\" & (VLOOKUP(Switch!$D$31,$F$2:$G$43,2,FALSE)+ROW()-2)),\"\")","v":{"$error":"#N/A"}},{"$f":"IF(INDIRECT(\"c\" & (VLOOKUP(Switch!$D$32,$F$2:$G$43,2,FALSE)+ROW()-2))=Switch!$D$32,INDIRECT(\"a\" & (VLOOKUP(Switch!$D$32,$F$2:$G$43,2,FALSE)+ROW()-2)),\"\")","v":{"$error":"#N/A"}},{"$f":"IF(INDIRECT(\"c\" & (VLOOKUP(Switch!$D$33,$F$2:$G$43,2,FALSE)+ROW()-2))=Switch!$D$33,INDIRECT(\"a\" & (VLOOKUP(Switch!$D$33,$F$2:$G$43,2,FALSE)+ROW()-2)),\"\")","v":{"$error":"#N/A"}},{"$f":"IF(INDIRECT(\"c\" & (VLOOKUP(Switch!$D$34,$F$2:$G$43,2,FALSE)+ROW()-2))=Switch!$D$34,INDIRECT(\"a\" & (VLOOKUP(Switch!$D$34,$F$2:$G$43,2,FALSE)+ROW()-2)),\"\")","v":{"$error":"#N/A"}},{"$f":"IF(INDIRECT(\"c\" & (VLOOKUP(Switch!$D$35,$F$2:$G$43,2,FALSE)+ROW()-2))=Switch!$D$35,INDIRECT(\"a\" & (VLOOKUP(Switch!$D$35,$F$2:$G$43,2,FALSE)+ROW()-2)),\"\")","v":{"$error":"#N/A"}},{"$f":"IF(INDIRECT(\"c\" & (VLOOKUP(Switch!$D$36,$F$2:$G$43,2,FALSE)+ROW()-2))=Switch!$D$36,INDIRECT(\"a\" & (VLOOKUP(Switch!$D$36,$F$2:$G$43,2,FALSE)+ROW()-2)),\"\")","v":{"$error":"#N/A"}},{"$f":"IF(INDIRECT(\"c\" & (VLOOKUP(Switch!$D$37,$F$2:$G$43,2,FALSE)+ROW()-2))=Switch!$D$37,INDIRECT(\"a\" & (VLOOKUP(Switch!$D$37,$F$2:$G$43,2,FALSE)+ROW()-2)),\"\")","v":{"$error":"#N/A"}},{"$f":"IF(INDIRECT(\"c\" & (VLOOKUP(Switch!$D$38,$F$2:$G$43,2,FALSE)+ROW()-2))=Switch!$D$38,INDIRECT(\"a\" & (VLOOKUP(Switch!$D$38,$F$2:$G$43,2,FALSE)+ROW()-2)),\"\")","v":{"$error":"#N/A"}},{"$f":"IF(INDIRECT(\"c\" & (VLOOKUP(Switch!$D$39,$F$2:$G$43,2,FALSE)+ROW()-2))=Switch!$D$39,INDIRECT(\"a\" & (VLOOKUP(Switch!$D$39,$F$2:$G$43,2,FALSE)+ROW()-2)),\"\")","v":{"$error":"#N/A"}},{"$f":"IF(INDIRECT(\"c\" & (VLOOKUP(Switch!$D$40,$F$2:$G$43,2,FALSE)+ROW()-2))=Switch!$D$40,INDIRECT(\"a\" & (VLOOKUP(Switch!$D$40,$F$2:$G$43,2,FALSE)+ROW()-2)),\"\")","v":{"$error":"#N/A"}},{"$f":"IF(INDIRECT(\"c\" & (VLOOKUP(Switch!$D$52,$F$2:$G$43,2,FALSE)+ROW()-2))=Switch!$D$52,INDIRECT(\"a\" & (VLOOKUP(Switch!$D$52,$F$2:$G$43,2,FALSE)+ROW()-2)),\"\")","v":{"$error":"#N/A"}},{"$f":"IF(INDIRECT(\"c\" & (VLOOKUP(Switch!$D$53,$F$2:$G$43,2,FALSE)+ROW()-2))=Switch!$D$53,INDIRECT(\"a\" & (VLOOKUP(Switch!$D$53,$F$2:$G$43,2,FALSE)+ROW()-2)),\"\")","v":{"$error":"#N/A"}},{"$f":"IF(INDIRECT(\"c\" & (VLOOKUP(Switch!$D$54,$F$2:$G$43,2,FALSE)+ROW()-2))=Switch!$D$54,INDIRECT(\"a\" & (VLOOKUP(Switch!$D$54,$F$2:$G$43,2,FALSE)+ROW()-2)),\"\")","v":{"$error":"#N/A"}},{"$f":"IF(INDIRECT(\"c\" & (VLOOKUP(Switch!$D$55,$F$2:$G$43,2,FALSE)+ROW()-2))=Switch!$D$55,INDIRECT(\"a\" & (VLOOKUP(Switch!$D$55,$F$2:$G$43,2,FALSE)+ROW()-2)),\"\")","v":{"$error":"#N/A"}},{"$f":"IF(INDIRECT(\"c\" & (VLOOKUP(Switch!$D$56,$F$2:$G$43,2,FALSE)+ROW()-2))=Switch!$D$56,INDIRECT(\"a\" & (VLOOKUP(Switch!$D$56,$F$2:$G$43,2,FALSE)+ROW()-2)),\"\")","v":{"$error":"#N/A"}},{"$f":"IF(INDIRECT(\"c\" & (VLOOKUP(Switch!$D$57,$F$2:$G$43,2,FALSE)+ROW()-2))=Switch!$D$57,INDIRECT(\"a\" & (VLOOKUP(Switch!$D$57,$F$2:$G$43,2,FALSE)+ROW()-2)),\"\")","v":{"$error":"#N/A"}},{"$f":"IF(INDIRECT(\"c\" & (VLOOKUP(Switch!$D$58,$F$2:$G$43,2,FALSE)+ROW()-2))=Switch!$D$58,INDIRECT(\"a\" & (VLOOKUP(Switch!$D$58,$F$2:$G$43,2,FALSE)+ROW()-2)),\"\")","v":{"$error":"#N/A"}},{"$f":"IF(INDIRECT(\"c\" & (VLOOKUP(Switch!$D$59,$F$2:$G$43,2,FALSE)+ROW()-2))=Switch!$D$59,INDIRECT(\"a\" & (VLOOKUP(Switch!$D$59,$F$2:$G$43,2,FALSE)+ROW()-2)),\"\")","v":{"$error":"#N/A"}},{"$f":"IF(INDIRECT(\"c\" & (VLOOKUP(Switch!$D$60,$F$2:$G$43,2,FALSE)+ROW()-2))=Switch!$D$60,INDIRECT(\"a\" & (VLOOKUP(Switch!$D$60,$F$2:$G$43,2,FALSE)+ROW()-2)),\"\")","v":{"$error":"#N/A"}},{"$f":"IF(INDIRECT(\"c\" & (VLOOKUP(Switch!$D$61,$F$2:$G$43,2,FALSE)+ROW()-2))=Switch!$D$61,INDIRECT(\"a\" & (VLOOKUP(Switch!$D$61,$F$2:$G$43,2,FALSE)+ROW()-2)),\"\")","v":{"$error":"#N/A"}},{"$f":"IF(INDIRECT(\"c\" & (VLOOKUP(Switch!$D$62,$F$2:$G$43,2,FALSE)+ROW()-2))=Switch!$D$62,INDIRECT(\"a\" & (VLOOKUP(Switch!$D$62,$F$2:$G$43,2,FALSE)+ROW()-2)),\"\")","v":{"$error":"#N/A"}},{"$f":"IF(INDIRECT(\"c\" & (VLOOKUP(Switch!$D$63,$F$2:$G$43,2,FALSE)+ROW()-2))=Switch!$D$63,INDIRECT(\"a\" & (VLOOKUP(Switch!$D$63,$F$2:$G$43,2,FALSE)+ROW()-2)),\"\")","v":{"$error":"#N/A"}},{"$f":"IF(INDIRECT(\"c\" & (VLOOKUP(Switch!$D$64,$F$2:$G$43,2,FALSE)+ROW()-2))=Switch!$D$64,INDIRECT(\"a\" & (VLOOKUP(Switch!$D$64,$F$2:$G$43,2,FALSE)+ROW()-2)),\"\")","v":{"$error":"#N/A"}},{"$f":"IF(INDIRECT(\"c\" & (VLOOKUP(Switch!$D$65,$F$2:$G$43,2,FALSE)+ROW()-2))=Switch!$D$65,INDIRECT(\"a\" & (VLOOKUP(Switch!$D$65,$F$2:$G$43,2,FALSE)+ROW()-2)),\"\")","v":{"$error":"#N/A"}},{"$f":"IF(INDIRECT(\"c\" & (VLOOKUP(Switch!$D$66,$F$2:$G$43,2,FALSE)+ROW()-2))=Switch!$D$66,INDIRECT(\"a\" & (VLOOKUP(Switch!$D$66,$F$2:$G$43,2,FALSE)+ROW()-2)),\"\")","v":{"$error":"#N/A"}}]
[null,null,null,{"$f":"ROW()","v":590},null,null,{"$f":"VLOOKUP(F590,$C$2:$D$637,2,FALSE)","v":{"$error":"#N/A"}},{"$f":"IF(INDIRECT(\"c\" & (VLOOKUP(Switch!$D$26,$F$2:$G$43,2,FALSE)+ROW()-2))=Switch!$D$26,INDIRECT(\"a\" & (VLOOKUP(Switch!$D$26,$F$2:$G$43,2,FALSE)+ROW()-2)),\"\")","v":{"$error":"#N/A"}},{"$f":"IF(INDIRECT(\"c\" & (VLOOKUP(Switch!$D$27,$F$2:$G$43,2,FALSE)+ROW()-2))=Switch!$D$27,INDIRECT(\"a\" & (VLOOKUP(Switch!$D$27,$F$2:$G$43,2,FALSE)+ROW()-2)),\"\")","v":{"$error":"#N/A"}},{"$f":"IF(INDIRECT(\"c\" & (VLOOKUP(Switch!$D$28,$F$2:$G$43,2,FALSE)+ROW()-2))=Switch!$D$28,INDIRECT(\"a\" & (VLOOKUP(Switch!$D$28,$F$2:$G$43,2,FALSE)+ROW()-2)),\"\")","v":{"$error":"#N/A"}},{"$f":"IF(INDIRECT(\"c\" & (VLOOKUP(Switch!$D$29,$F$2:$G$43,2,FALSE)+ROW()-2))=Switch!$D$29,INDIRECT(\"a\" & (VLOOKUP(Switch!$D$29,$F$2:$G$43,2,FALSE)+ROW()-2)),\"\")","v":{"$error":"#N/A"}},{"$f":"IF(INDIRECT(\"c\" & (VLOOKUP(Switch!$D$30,$F$2:$G$43,2,FALSE)+ROW()-2))=Switch!$D$30,INDIRECT(\"a\" & (VLOOKUP(Switch!$D$30,$F$2:$G$43,2,FALSE)+ROW()-2)),\"\")","v":{"$error":"#N/A"}},{"$f":"IF(INDIRECT(\"c\" & (VLOOKUP(Switch!$D$31,$F$2:$G$43,2,FALSE)+ROW()-2))=Switch!$D$31,INDIRECT(\"a\" & (VLOOKUP(Switch!$D$31,$F$2:$G$43,2,FALSE)+ROW()-2)),\"\")","v":{"$error":"#N/A"}},{"$f":"IF(INDIRECT(\"c\" & (VLOOKUP(Switch!$D$32,$F$2:$G$43,2,FALSE)+ROW()-2))=Switch!$D$32,INDIRECT(\"a\" & (VLOOKUP(Switch!$D$32,$F$2:$G$43,2,FALSE)+ROW()-2)),\"\")","v":{"$error":"#N/A"}},{"$f":"IF(INDIRECT(\"c\" & (VLOOKUP(Switch!$D$33,$F$2:$G$43,2,FALSE)+ROW()-2))=Switch!$D$33,INDIRECT(\"a\" & (VLOOKUP(Switch!$D$33,$F$2:$G$43,2,FALSE)+ROW()-2)),\"\")","v":{"$error":"#N/A"}},{"$f":"IF(INDIRECT(\"c\" & (VLOOKUP(Switch!$D$34,$F$2:$G$43,2,FALSE)+ROW()-2))=Switch!$D$34,INDIRECT(\"a\" & (VLOOKUP(Switch!$D$34,$F$2:$G$43,2,FALSE)+ROW()-2)),\"\")","v":{"$error":"#N/A"}},{"$f":"IF(INDIRECT(\"c\" & (VLOOKUP(Switch!$D$35,$F$2:$G$43,2,FALSE)+ROW()-2))=Switch!$D$35,INDIRECT(\"a\" & (VLOOKUP(Switch!$D$35,$F$2:$G$43,2,FALSE)+ROW()-2)),\"\")","v":{"$error":"#N/A"}},{"$f":"IF(INDIRECT(\"c\" & (VLOOKUP(Switch!$D$36,$F$2:$G$43,2,FALSE)+ROW()-2))=Switch!$D$36,INDIRECT(\"a\" & (VLOOKUP(Switch!$D$36,$F$2:$G$43,2,FALSE)+ROW()-2)),\"\")","v":{"$error":"#N/A"}},{"$f":"IF(INDIRECT(\"c\" & (VLOOKUP(Switch!$D$37,$F$2:$G$43,2,FALSE)+ROW()-2))=Switch!$D$37,INDIRECT(\"a\" & (VLOOKUP(Switch!$D$37,$F$2:$G$43,2,FALSE)+ROW()-2)),\"\")","v":{"$error":"#N/A"}},{"$f":"IF(INDIRECT(\"c\" & (VLOOKUP(Switch!$D$38,$F$2:$G$43,2,FALSE)+ROW()-2))=Switch!$D$38,INDIRECT(\"a\" & (VLOOKUP(Switch!$D$38,$F$2:$G$43,2,FALSE)+ROW()-2)),\"\")","v":{"$error":"#N/A"}},{"$f":"IF(INDIRECT(\"c\" & (VLOOKUP(Switch!$D$39,$F$2:$G$43,2,FALSE)+ROW()-2))=Switch!$D$39,INDIRECT(\"a\" & (VLOOKUP(Switch!$D$39,$F$2:$G$43,2,FALSE)+ROW()-2)),\"\")","v":{"$error":"#N/A"}},{"$f":"IF(INDIRECT(\"c\" & (VLOOKUP(Switch!$D$40,$F$2:$G$43,2,FALSE)+ROW()-2))=Switch!$D$40,INDIRECT(\"a\" & (VLOOKUP(Switch!$D$40,$F$2:$G$43,2,FALSE)+ROW()-2)),\"\")","v":{"$error":"#N/A"}},{"$f":"IF(INDIRECT(\"c\" & (VLOOKUP(Switch!$D$52,$F$2:$G$43,2,FALSE)+ROW()-2))=Switch!$D$52,INDIRECT(\"a\" & (VLOOKUP(Switch!$D$52,$F$2:$G$43,2,FALSE)+ROW()-2)),\"\")","v":{"$error":"#N/A"}},{"$f":"IF(INDIRECT(\"c\" & (VLOOKUP(Switch!$D$53,$F$2:$G$43,2,FALSE)+ROW()-2))=Switch!$D$53,INDIRECT(\"a\" & (VLOOKUP(Switch!$D$53,$F$2:$G$43,2,FALSE)+ROW()-2)),\"\")","v":{"$error":"#N/A"}},{"$f":"IF(INDIRECT(\"c\" & (VLOOKUP(Switch!$D$54,$F$2:$G$43,2,FALSE)+ROW()-2))=Switch!$D$54,INDIRECT(\"a\" & (VLOOKUP(Switch!$D$54,$F$2:$G$43,2,FALSE)+ROW()-2)),\"\")","v":{"$error":"#N/A"}},{"$f":"IF(INDIRECT(\"c\" & (VLOOKUP(Switch!$D$55,$F$2:$G$43,2,FALSE)+ROW()-2))=Switch!$D$55,INDIRECT(\"a\" & (VLOOKUP(Switch!$D$55,$F$2:$G$43,2,FALSE)+ROW()-2)),\"\")","v":{"$error":"#N/A"}},{"$f":"IF(INDIRECT(\"c\" & (VLOOKUP(Switch!$D$56,$F$2:$G$43,2,FALSE)+ROW()-2))=Switch!$D$56,INDIRECT(\"a\" & (VLOOKUP(Switch!$D$56,$F$2:$G$43,2,FALSE)+ROW()-2)),\"\")","v":{"$error":"#N/A"}},{"$f":"IF(INDIRECT(\"c\" & (VLOOKUP(Switch!$D$57,$F$2:$G$43,2,FALSE)+ROW()-2))=Switch!$D$57,INDIRECT(\"a\" & (VLOOKUP(Switch!$D$57,$F$2:$G$43,2,FALSE)+ROW()-2)),\"\")","v":{"$error":"#N/A"}},{"$f":"IF(INDIRECT(\"c\" & (VLOOKUP(Switch!$D$58,$F$2:$G$43,2,FALSE)+ROW()-2))=Switch!$D$58,INDIRECT(\"a\" & (VLOOKUP(Switch!$D$58,$F$2:$G$43,2,FALSE)+ROW()-2)),\"\")","v":{"$error":"#N/A"}},{"$f":"IF(INDIRECT(\"c\" & (VLOOKUP(Switch!$D$59,$F$2:$G$43,2,FALSE)+ROW()-2))=Switch!$D$59,INDIRECT(\"a\" & (VLOOKUP(Switch!$D$59,$F$2:$G$43,2,FALSE)+ROW()-2)),\"\")","v":{"$error":"#N/A"}},{"$f":"IF(INDIRECT(\"c\" & (VLOOKUP(Switch!$D$60,$F$2:$G$43,2,FALSE)+ROW()-2))=Switch!$D$60,INDIRECT(\"a\" & (VLOOKUP(Switch!$D$60,$F$2:$G$43,2,FALSE)+ROW()-2)),\"\")","v":{"$error":"#N/A"}},{"$f":"IF(INDIRECT(\"c\" & (VLOOKUP(Switch!$D$61,$F$2:$G$43,2,FALSE)+ROW()-2))=Switch!$D$61,INDIRECT(\"a\" & (VLOOKUP(Switch!$D$61,$F$2:$G$43,2,FALSE)+ROW()-2)),\"\")","v":{"$error":"#N/A"}},{"$f":"IF(INDIRECT(\"c\" & (VLOOKUP(Switch!$D$62,$F$2:$G$43,2,FALSE)+ROW()-2))=Switch!$D$62,INDIRECT(\"a\" & (VLOOKUP(Switch!$D$62,$F$2:$G$43,2,FALSE)+ROW()-2)),\"\")","v":{"$error":"#N/A"}},{"$f":"IF(INDIRECT(\"c\" & (VLOOKUP(Switch!$D$63,$F$2:$G$43,2,FALSE)+ROW()-2))=Switch!$D$63,INDIRECT(\"a\" & (VLOOKUP(Switch!$D$63,$F$2:$G$43,2,FALSE)+ROW()-2)),\"\")","v":{"$error":"#N/A"}},{"$f":"IF(INDIRECT(\"c\" & (VLOOKUP(Switch!$D$64,$F$2:$G$43,2,FALSE)+ROW()-2))=Switch!$D$64,INDIRECT(\"a\" & (VLOOKUP(Switch!$D$64,$F$2:$G$43,2,FALSE)+ROW()-2)),\"\")","v":{"$error":"#N/A"}},{"$f":"IF(INDIRECT(\"c\" & (VLOOKUP(Switch!$D$65,$F$2:$G$43,2,FALSE)+ROW()-2))=Switch!$D$65,INDIRECT(\"a\" & (VLOOKUP(Switch!$D$65,$F$2:$G$43,2,FALSE)+ROW()-2)),\"\")","v":{"$error":"#N/A"}},{"$f":"IF(INDIRECT(\"c\" & (VLOOKUP(Switch!$D$66,$F$2:$G$43,2,FALSE)+ROW()-2))=Switch!$D$66,INDIRECT(\"a\" & (VLOOKUP(Switch!$D$66,$F$2:$G$43,2,FALSE)+ROW()-2)),\"\")","v":{"$error":"#N/A"}}]
[null,null,null,{"$f":"ROW()","v":591},null,null,{"$f":"VLOOKUP(F591,$C$2:$D$637,2,FALSE)","v":{"$error":"#N/A"}},{"$f":"IF(INDIRECT(\"c\" & (VLOOKUP(Switch!$D$26,$F$2:$G$43,2,FALSE)+ROW()-2))=Switch!$D$26,INDIRECT(\"a\" & (VLOOKUP(Switch!$D$26,$F$2:$G$43,2,FALSE)+ROW()-2)),\"\")","v":{"$error":"#N/A"}},{"$f":"IF(INDIRECT(\"c\" & (VLOOKUP(Switch!$D$27,$F$2:$G$43,2,FALSE)+ROW()-2))=Switch!$D$27,INDIRECT(\"a\" & (VLOOKUP(Switch!$D$27,$F$2:$G$43,2,FALSE)+ROW()-2)),\"\")","v":{"$error":"#N/A"}},{"$f":"IF(INDIRECT(\"c\" & (VLOOKUP(Switch!$D$28,$F$2:$G$43,2,FALSE)+ROW()-2))=Switch!$D$28,INDIRECT(\"a\" & (VLOOKUP(Switch!$D$28,$F$2:$G$43,2,FALSE)+ROW()-2)),\"\")","v":{"$error":"#N/A"}},{"$f":"IF(INDIRECT(\"c\" & (VLOOKUP(Switch!$D$29,$F$2:$G$43,2,FALSE)+ROW()-2))=Switch!$D$29,INDIRECT(\"a\" & (VLOOKUP(Switch!$D$29,$F$2:$G$43,2,FALSE)+ROW()-2)),\"\")","v":{"$error":"#N/A"}},{"$f":"IF(INDIRECT(\"c\" & (VLOOKUP(Switch!$D$30,$F$2:$G$43,2,FALSE)+ROW()-2))=Switch!$D$30,INDIRECT(\"a\" & (VLOOKUP(Switch!$D$30,$F$2:$G$43,2,FALSE)+ROW()-2)),\"\")","v":{"$error":"#N/A"}},{"$f":"IF(INDIRECT(\"c\" & (VLOOKUP(Switch!$D$31,$F$2:$G$43,2,FALSE)+ROW()-2))=Switch!$D$31,INDIRECT(\"a\" & (VLOOKUP(Switch!$D$31,$F$2:$G$43,2,FALSE)+ROW()-2)),\"\")","v":{"$error":"#N/A"}},{"$f":"IF(INDIRECT(\"c\" & (VLOOKUP(Switch!$D$32,$F$2:$G$43,2,FALSE)+ROW()-2))=Switch!$D$32,INDIRECT(\"a\" & (VLOOKUP(Switch!$D$32,$F$2:$G$43,2,FALSE)+ROW()-2)),\"\")","v":{"$error":"#N/A"}},{"$f":"IF(INDIRECT(\"c\" & (VLOOKUP(Switch!$D$33,$F$2:$G$43,2,FALSE)+ROW()-2))=Switch!$D$33,INDIRECT(\"a\" & (VLOOKUP(Switch!$D$33,$F$2:$G$43,2,FALSE)+ROW()-2)),\"\")","v":{"$error":"#N/A"}},{"$f":"IF(INDIRECT(\"c\" & (VLOOKUP(Switch!$D$34,$F$2:$G$43,2,FALSE)+ROW()-2))=Switch!$D$34,INDIRECT(\"a\" & (VLOOKUP(Switch!$D$34,$F$2:$G$43,2,FALSE)+ROW()-2)),\"\")","v":{"$error":"#N/A"}},{"$f":"IF(INDIRECT(\"c\" & (VLOOKUP(Switch!$D$35,$F$2:$G$43,2,FALSE)+ROW()-2))=Switch!$D$35,INDIRECT(\"a\" & (VLOOKUP(Switch!$D$35,$F$2:$G$43,2,FALSE)+ROW()-2)),\"\")","v":{"$error":"#N/A"}},{"$f":"IF(INDIRECT(\"c\" & (VLOOKUP(Switch!$D$36,$F$2:$G$43,2,FALSE)+ROW()-2))=Switch!$D$36,INDIRECT(\"a\" & (VLOOKUP(Switch!$D$36,$F$2:$G$43,2,FALSE)+ROW()-2)),\"\")","v":{"$error":"#N/A"}},{"$f":"IF(INDIRECT(\"c\" & (VLOOKUP(Switch!$D$37,$F$2:$G$43,2,FALSE)+ROW()-2))=Switch!$D$37,INDIRECT(\"a\" & (VLOOKUP(Switch!$D$37,$F$2:$G$43,2,FALSE)+ROW()-2)),\"\")","v":{"$error":"#N/A"}},{"$f":"IF(INDIRECT(\"c\" & (VLOOKUP(Switch!$D$38,$F$2:$G$43,2,FALSE)+ROW()-2))=Switch!$D$38,INDIRECT(\"a\" & (VLOOKUP(Switch!$D$38,$F$2:$G$43,2,FALSE)+ROW()-2)),\"\")","v":{"$error":"#N/A"}},{"$f":"IF(INDIRECT(\"c\" & (VLOOKUP(Switch!$D$39,$F$2:$G$43,2,FALSE)+ROW()-2))=Switch!$D$39,INDIRECT(\"a\" & (VLOOKUP(Switch!$D$39,$F$2:$G$43,2,FALSE)+ROW()-2)),\"\")","v":{"$error":"#N/A"}},{"$f":"IF(INDIRECT(\"c\" & (VLOOKUP(Switch!$D$40,$F$2:$G$43,2,FALSE)+ROW()-2))=Switch!$D$40,INDIRECT(\"a\" & (VLOOKUP(Switch!$D$40,$F$2:$G$43,2,FALSE)+ROW()-2)),\"\")","v":{"$error":"#N/A"}},{"$f":"IF(INDIRECT(\"c\" & (VLOOKUP(Switch!$D$52,$F$2:$G$43,2,FALSE)+ROW()-2))=Switch!$D$52,INDIRECT(\"a\" & (VLOOKUP(Switch!$D$52,$F$2:$G$43,2,FALSE)+ROW()-2)),\"\")","v":{"$error":"#N/A"}},{"$f":"IF(INDIRECT(\"c\" & (VLOOKUP(Switch!$D$53,$F$2:$G$43,2,FALSE)+ROW()-2))=Switch!$D$53,INDIRECT(\"a\" & (VLOOKUP(Switch!$D$53,$F$2:$G$43,2,FALSE)+ROW()-2)),\"\")","v":{"$error":"#N/A"}},{"$f":"IF(INDIRECT(\"c\" & (VLOOKUP(Switch!$D$54,$F$2:$G$43,2,FALSE)+ROW()-2))=Switch!$D$54,INDIRECT(\"a\" & (VLOOKUP(Switch!$D$54,$F$2:$G$43,2,FALSE)+ROW()-2)),\"\")","v":{"$error":"#N/A"}},{"$f":"IF(INDIRECT(\"c\" & (VLOOKUP(Switch!$D$55,$F$2:$G$43,2,FALSE)+ROW()-2))=Switch!$D$55,INDIRECT(\"a\" & (VLOOKUP(Switch!$D$55,$F$2:$G$43,2,FALSE)+ROW()-2)),\"\")","v":{"$error":"#N/A"}},{"$f":"IF(INDIRECT(\"c\" & (VLOOKUP(Switch!$D$56,$F$2:$G$43,2,FALSE)+ROW()-2))=Switch!$D$56,INDIRECT(\"a\" & (VLOOKUP(Switch!$D$56,$F$2:$G$43,2,FALSE)+ROW()-2)),\"\")","v":{"$error":"#N/A"}},{"$f":"IF(INDIRECT(\"c\" & (VLOOKUP(Switch!$D$57,$F$2:$G$43,2,FALSE)+ROW()-2))=Switch!$D$57,INDIRECT(\"a\" & (VLOOKUP(Switch!$D$57,$F$2:$G$43,2,FALSE)+ROW()-2)),\"\")","v":{"$error":"#N/A"}},{"$f":"IF(INDIRECT(\"c\" & (VLOOKUP(Switch!$D$58,$F$2:$G$43,2,FALSE)+ROW()-2))=Switch!$D$58,INDIRECT(\"a\" & (VLOOKUP(Switch!$D$58,$F$2:$G$43,2,FALSE)+ROW()-2)),\"\")","v":{"$error":"#N/A"}},{"$f":"IF(INDIRECT(\"c\" & (VLOOKUP(Switch!$D$59,$F$2:$G$43,2,FALSE)+ROW()-2))=Switch!$D$59,INDIRECT(\"a\" & (VLOOKUP(Switch!$D$59,$F$2:$G$43,2,FALSE)+ROW()-2)),\"\")","v":{"$error":"#N/A"}},{"$f":"IF(INDIRECT(\"c\" & (VLOOKUP(Switch!$D$60,$F$2:$G$43,2,FALSE)+ROW()-2))=Switch!$D$60,INDIRECT(\"a\" & (VLOOKUP(Switch!$D$60,$F$2:$G$43,2,FALSE)+ROW()-2)),\"\")","v":{"$error":"#N/A"}},{"$f":"IF(INDIRECT(\"c\" & (VLOOKUP(Switch!$D$61,$F$2:$G$43,2,FALSE)+ROW()-2))=Switch!$D$61,INDIRECT(\"a\" & (VLOOKUP(Switch!$D$61,$F$2:$G$43,2,FALSE)+ROW()-2)),\"\")","v":{"$error":"#N/A"}},{"$f":"IF(INDIRECT(\"c\" & (VLOOKUP(Switch!$D$62,$F$2:$G$43,2,FALSE)+ROW()-2))=Switch!$D$62,INDIRECT(\"a\" & (VLOOKUP(Switch!$D$62,$F$2:$G$43,2,FALSE)+ROW()-2)),\"\")","v":{"$error":"#N/A"}},{"$f":"IF(INDIRECT(\"c\" & (VLOOKUP(Switch!$D$63,$F$2:$G$43,2,FALSE)+ROW()-2))=Switch!$D$63,INDIRECT(\"a\" & (VLOOKUP(Switch!$D$63,$F$2:$G$43,2,FALSE)+ROW()-2)),\"\")","v":{"$error":"#N/A"}},{"$f":"IF(INDIRECT(\"c\" & (VLOOKUP(Switch!$D$64,$F$2:$G$43,2,FALSE)+ROW()-2))=Switch!$D$64,INDIRECT(\"a\" & (VLOOKUP(Switch!$D$64,$F$2:$G$43,2,FALSE)+ROW()-2)),\"\")","v":{"$error":"#N/A"}},{"$f":"IF(INDIRECT(\"c\" & (VLOOKUP(Switch!$D$65,$F$2:$G$43,2,FALSE)+ROW()-2))=Switch!$D$65,INDIRECT(\"a\" & (VLOOKUP(Switch!$D$65,$F$2:$G$43,2,FALSE)+ROW()-2)),\"\")","v":{"$error":"#N/A"}},{"$f":"IF(INDIRECT(\"c\" & (VLOOKUP(Switch!$D$66,$F$2:$G$43,2,FALSE)+ROW()-2))=Switch!$D$66,INDIRECT(\"a\" & (VLOOKUP(Switch!$D$66,$F$2:$G$43,2,FALSE)+ROW()-2)),\"\")","v":{"$error":"#N/A"}}]
[null,null,null,{"$f":"ROW()","v":592},null,null,{"$f":"VLOOKUP(F592,$C$2:$D$637,2,FALSE)","v":{"$error":"#N/A"}},{"$f":"IF(INDIRECT(\"c\" & (VLOOKUP(Switch!$D$26,$F$2:$G$43,2,FALSE)+ROW()-2))=Switch!$D$26,INDIRECT(\"a\" & (VLOOKUP(Switch!$D$26,$F$2:$G$43,2,FALSE)+ROW()-2)),\"\")","v":{"$error":"#N/A"}},{"$f":"IF(INDIRECT(\"c\" & (VLOOKUP(Switch!$D$27,$F$2:$G$43,2,FALSE)+ROW()-2))=Switch!$D$27,INDIRECT(\"a\" & (VLOOKUP(Switch!$D$27,$F$2:$G$43,2,FALSE)+ROW()-2)),\"\")","v":{"$error":"#N/A"}},{"$f":"IF(INDIRECT(\"c\" & (VLOOKUP(Switch!$D$28,$F$2:$G$43,2,FALSE)+ROW()-2))=Switch!$D$28,INDIRECT(\"a\" & (VLOOKUP(Switch!$D$28,$F$2:$G$43,2,FALSE)+ROW()-2)),\"\")","v":{"$error":"#N/A"}},{"$f":"IF(INDIRECT(\"c\" & (VLOOKUP(Switch!$D$29,$F$2:$G$43,2,FALSE)+ROW()-2))=Switch!$D$29,INDIRECT(\"a\" & (VLOOKUP(Switch!$D$29,$F$2:$G$43,2,FALSE)+ROW()-2)),\"\")","v":{"$error":"#N/A"}},{"$f":"IF(INDIRECT(\"c\" & (VLOOKUP(Switch!$D$30,$F$2:$G$43,2,FALSE)+ROW()-2))=Switch!$D$30,INDIRECT(\"a\" & (VLOOKUP(Switch!$D$30,$F$2:$G$43,2,FALSE)+ROW()-2)),\"\")","v":{"$error":"#N/A"}},{"$f":"IF(INDIRECT(\"c\" & (VLOOKUP(Switch!$D$31,$F$2:$G$43,2,FALSE)+ROW()-2))=Switch!$D$31,INDIRECT(\"a\" & (VLOOKUP(Switch!$D$31,$F$2:$G$43,2,FALSE)+ROW()-2)),\"\")","v":{"$error":"#N/A"}},{"$f":"IF(INDIRECT(\"c\" & (VLOOKUP(Switch!$D$32,$F$2:$G$43,2,FALSE)+ROW()-2))=Switch!$D$32,INDIRECT(\"a\" & (VLOOKUP(Switch!$D$32,$F$2:$G$43,2,FALSE)+ROW()-2)),\"\")","v":{"$error":"#N/A"}},{"$f":"IF(INDIRECT(\"c\" & (VLOOKUP(Switch!$D$33,$F$2:$G$43,2,FALSE)+ROW()-2))=Switch!$D$33,INDIRECT(\"a\" & (VLOOKUP(Switch!$D$33,$F$2:$G$43,2,FALSE)+ROW()-2)),\"\")","v":{"$error":"#N/A"}},{"$f":"IF(INDIRECT(\"c\" & (VLOOKUP(Switch!$D$34,$F$2:$G$43,2,FALSE)+ROW()-2))=Switch!$D$34,INDIRECT(\"a\" & (VLOOKUP(Switch!$D$34,$F$2:$G$43,2,FALSE)+ROW()-2)),\"\")","v":{"$error":"#N/A"}},{"$f":"IF(INDIRECT(\"c\" & (VLOOKUP(Switch!$D$35,$F$2:$G$43,2,FALSE)+ROW()-2))=Switch!$D$35,INDIRECT(\"a\" & (VLOOKUP(Switch!$D$35,$F$2:$G$43,2,FALSE)+ROW()-2)),\"\")","v":{"$error":"#N/A"}},{"$f":"IF(INDIRECT(\"c\" & (VLOOKUP(Switch!$D$36,$F$2:$G$43,2,FALSE)+ROW()-2))=Switch!$D$36,INDIRECT(\"a\" & (VLOOKUP(Switch!$D$36,$F$2:$G$43,2,FALSE)+ROW()-2)),\"\")","v":{"$error":"#N/A"}},{"$f":"IF(INDIRECT(\"c\" & (VLOOKUP(Switch!$D$37,$F$2:$G$43,2,FALSE)+ROW()-2))=Switch!$D$37,INDIRECT(\"a\" & (VLOOKUP(Switch!$D$37,$F$2:$G$43,2,FALSE)+ROW()-2)),\"\")","v":{"$error":"#N/A"}},{"$f":"IF(INDIRECT(\"c\" & (VLOOKUP(Switch!$D$38,$F$2:$G$43,2,FALSE)+ROW()-2))=Switch!$D$38,INDIRECT(\"a\" & (VLOOKUP(Switch!$D$38,$F$2:$G$43,2,FALSE)+ROW()-2)),\"\")","v":{"$error":"#N/A"}},{"$f":"IF(INDIRECT(\"c\" & (VLOOKUP(Switch!$D$39,$F$2:$G$43,2,FALSE)+ROW()-2))=Switch!$D$39,INDIRECT(\"a\" & (VLOOKUP(Switch!$D$39,$F$2:$G$43,2,FALSE)+ROW()-2)),\"\")","v":{"$error":"#N/A"}},{"$f":"IF(INDIRECT(\"c\" & (VLOOKUP(Switch!$D$40,$F$2:$G$43,2,FALSE)+ROW()-2))=Switch!$D$40,INDIRECT(\"a\" & (VLOOKUP(Switch!$D$40,$F$2:$G$43,2,FALSE)+ROW()-2)),\"\")","v":{"$error":"#N/A"}},{"$f":"IF(INDIRECT(\"c\" & (VLOOKUP(Switch!$D$52,$F$2:$G$43,2,FALSE)+ROW()-2))=Switch!$D$52,INDIRECT(\"a\" & (VLOOKUP(Switch!$D$52,$F$2:$G$43,2,FALSE)+ROW()-2)),\"\")","v":{"$error":"#N/A"}},{"$f":"IF(INDIRECT(\"c\" & (VLOOKUP(Switch!$D$53,$F$2:$G$43,2,FALSE)+ROW()-2))=Switch!$D$53,INDIRECT(\"a\" & (VLOOKUP(Switch!$D$53,$F$2:$G$43,2,FALSE)+ROW()-2)),\"\")","v":{"$error":"#N/A"}},{"$f":"IF(INDIRECT(\"c\" & (VLOOKUP(Switch!$D$54,$F$2:$G$43,2,FALSE)+ROW()-2))=Switch!$D$54,INDIRECT(\"a\" & (VLOOKUP(Switch!$D$54,$F$2:$G$43,2,FALSE)+ROW()-2)),\"\")","v":{"$error":"#N/A"}},{"$f":"IF(INDIRECT(\"c\" & (VLOOKUP(Switch!$D$55,$F$2:$G$43,2,FALSE)+ROW()-2))=Switch!$D$55,INDIRECT(\"a\" & (VLOOKUP(Switch!$D$55,$F$2:$G$43,2,FALSE)+ROW()-2)),\"\")","v":{"$error":"#N/A"}},{"$f":"IF(INDIRECT(\"c\" & (VLOOKUP(Switch!$D$56,$F$2:$G$43,2,FALSE)+ROW()-2))=Switch!$D$56,INDIRECT(\"a\" & (VLOOKUP(Switch!$D$56,$F$2:$G$43,2,FALSE)+ROW()-2)),\"\")","v":{"$error":"#N/A"}},{"$f":"IF(INDIRECT(\"c\" & (VLOOKUP(Switch!$D$57,$F$2:$G$43,2,FALSE)+ROW()-2))=Switch!$D$57,INDIRECT(\"a\" & (VLOOKUP(Switch!$D$57,$F$2:$G$43,2,FALSE)+ROW()-2)),\"\")","v":{"$error":"#N/A"}},{"$f":"IF(INDIRECT(\"c\" & (VLOOKUP(Switch!$D$58,$F$2:$G$43,2,FALSE)+ROW()-2))=Switch!$D$58,INDIRECT(\"a\" & (VLOOKUP(Switch!$D$58,$F$2:$G$43,2,FALSE)+ROW()-2)),\"\")","v":{"$error":"#N/A"}},{"$f":"IF(INDIRECT(\"c\" & (VLOOKUP(Switch!$D$59,$F$2:$G$43,2,FALSE)+ROW()-2))=Switch!$D$59,INDIRECT(\"a\" & (VLOOKUP(Switch!$D$59,$F$2:$G$43,2,FALSE)+ROW()-2)),\"\")","v":{"$error":"#N/A"}},{"$f":"IF(INDIRECT(\"c\" & (VLOOKUP(Switch!$D$60,$F$2:$G$43,2,FALSE)+ROW()-2))=Switch!$D$60,INDIRECT(\"a\" & (VLOOKUP(Switch!$D$60,$F$2:$G$43,2,FALSE)+ROW()-2)),\"\")","v":{"$error":"#N/A"}},{"$f":"IF(INDIRECT(\"c\" & (VLOOKUP(Switch!$D$61,$F$2:$G$43,2,FALSE)+ROW()-2))=Switch!$D$61,INDIRECT(\"a\" & (VLOOKUP(Switch!$D$61,$F$2:$G$43,2,FALSE)+ROW()-2)),\"\")","v":{"$error":"#N/A"}},{"$f":"IF(INDIRECT(\"c\" & (VLOOKUP(Switch!$D$62,$F$2:$G$43,2,FALSE)+ROW()-2))=Switch!$D$62,INDIRECT(\"a\" & (VLOOKUP(Switch!$D$62,$F$2:$G$43,2,FALSE)+ROW()-2)),\"\")","v":{"$error":"#N/A"}},{"$f":"IF(INDIRECT(\"c\" & (VLOOKUP(Switch!$D$63,$F$2:$G$43,2,FALSE)+ROW()-2))=Switch!$D$63,INDIRECT(\"a\" & (VLOOKUP(Switch!$D$63,$F$2:$G$43,2,FALSE)+ROW()-2)),\"\")","v":{"$error":"#N/A"}},{"$f":"IF(INDIRECT(\"c\" & (VLOOKUP(Switch!$D$64,$F$2:$G$43,2,FALSE)+ROW()-2))=Switch!$D$64,INDIRECT(\"a\" & (VLOOKUP(Switch!$D$64,$F$2:$G$43,2,FALSE)+ROW()-2)),\"\")","v":{"$error":"#N/A"}},{"$f":"IF(INDIRECT(\"c\" & (VLOOKUP(Switch!$D$65,$F$2:$G$43,2,FALSE)+ROW()-2))=Switch!$D$65,INDIRECT(\"a\" & (VLOOKUP(Switch!$D$65,$F$2:$G$43,2,FALSE)+ROW()-2)),\"\")","v":{"$error":"#N/A"}},{"$f":"IF(INDIRECT(\"c\" & (VLOOKUP(Switch!$D$66,$F$2:$G$43,2,FALSE)+ROW()-2))=Switch!$D$66,INDIRECT(\"a\" & (VLOOKUP(Switch!$D$66,$F$2:$G$43,2,FALSE)+ROW()-2)),\"\")","v":{"$error":"#N/A"}}]
[null,null,null,{"$f":"ROW()","v":593},null,null,{"$f":"VLOOKUP(F593,$C$2:$D$637,2,FALSE)","v":{"$error":"#N/A"}},{"$f":"IF(INDIRECT(\"c\" & (VLOOKUP(Switch!$D$26,$F$2:$G$43,2,FALSE)+ROW()-2))=Switch!$D$26,INDIRECT(\"a\" & (VLOOKUP(Switch!$D$26,$F$2:$G$43,2,FALSE)+ROW()-2)),\"\")","v":{"$error":"#N/A"}},{"$f":"IF(INDIRECT(\"c\" & (VLOOKUP(Switch!$D$27,$F$2:$G$43,2,FALSE)+ROW()-2))=Switch!$D$27,INDIRECT(\"a\" & (VLOOKUP(Switch!$D$27,$F$2:$G$43,2,FALSE)+ROW()-2)),\"\")","v":{"$error":"#N/A"}},{"$f":"IF(INDIRECT(\"c\" & (VLOOKUP(Switch!$D$28,$F$2:$G$43,2,FALSE)+ROW()-2))=Switch!$D$28,INDIRECT(\"a\" & (VLOOKUP(Switch!$D$28,$F$2:$G$43,2,FALSE)+ROW()-2)),\"\")","v":{"$error":"#N/A"}},{"$f":"IF(INDIRECT(\"c\" & (VLOOKUP(Switch!$D$29,$F$2:$G$43,2,FALSE)+ROW()-2))=Switch!$D$29,INDIRECT(\"a\" & (VLOOKUP(Switch!$D$29,$F$2:$G$43,2,FALSE)+ROW()-2)),\"\")","v":{"$error":"#N/A"}},{"$f":"IF(INDIRECT(\"c\" & (VLOOKUP(Switch!$D$30,$F$2:$G$43,2,FALSE)+ROW()-2))=Switch!$D$30,INDIRECT(\"a\" & (VLOOKUP(Switch!$D$30,$F$2:$G$43,2,FALSE)+ROW()-2)),\"\")","v":{"$error":"#N/A"}},{"$f":"IF(INDIRECT(\"c\" & (VLOOKUP(Switch!$D$31,$F$2:$G$43,2,FALSE)+ROW()-2))=Switch!$D$31,INDIRECT(\"a\" & (VLOOKUP(Switch!$D$31,$F$2:$G$43,2,FALSE)+ROW()-2)),\"\")","v":{"$error":"#N/A"}},{"$f":"IF(INDIRECT(\"c\" & (VLOOKUP(Switch!$D$32,$F$2:$G$43,2,FALSE)+ROW()-2))=Switch!$D$32,INDIRECT(\"a\" & (VLOOKUP(Switch!$D$32,$F$2:$G$43,2,FALSE)+ROW()-2)),\"\")","v":{"$error":"#N/A"}},{"$f":"IF(INDIRECT(\"c\" & (VLOOKUP(Switch!$D$33,$F$2:$G$43,2,FALSE)+ROW()-2))=Switch!$D$33,INDIRECT(\"a\" & (VLOOKUP(Switch!$D$33,$F$2:$G$43,2,FALSE)+ROW()-2)),\"\")","v":{"$error":"#N/A"}},{"$f":"IF(INDIRECT(\"c\" & (VLOOKUP(Switch!$D$34,$F$2:$G$43,2,FALSE)+ROW()-2))=Switch!$D$34,INDIRECT(\"a\" & (VLOOKUP(Switch!$D$34,$F$2:$G$43,2,FALSE)+ROW()-2)),\"\")","v":{"$error":"#N/A"}},{"$f":"IF(INDIRECT(\"c\" & (VLOOKUP(Switch!$D$35,$F$2:$G$43,2,FALSE)+ROW()-2))=Switch!$D$35,INDIRECT(\"a\" & (VLOOKUP(Switch!$D$35,$F$2:$G$43,2,FALSE)+ROW()-2)),\"\")","v":{"$error":"#N/A"}},{"$f":"IF(INDIRECT(\"c\" & (VLOOKUP(Switch!$D$36,$F$2:$G$43,2,FALSE)+ROW()-2))=Switch!$D$36,INDIRECT(\"a\" & (VLOOKUP(Switch!$D$36,$F$2:$G$43,2,FALSE)+ROW()-2)),\"\")","v":{"$error":"#N/A"}},{"$f":"IF(INDIRECT(\"c\" & (VLOOKUP(Switch!$D$37,$F$2:$G$43,2,FALSE)+ROW()-2))=Switch!$D$37,INDIRECT(\"a\" & (VLOOKUP(Switch!$D$37,$F$2:$G$43,2,FALSE)+ROW()-2)),\"\")","v":{"$error":"#N/A"}},{"$f":"IF(INDIRECT(\"c\" & (VLOOKUP(Switch!$D$38,$F$2:$G$43,2,FALSE)+ROW()-2))=Switch!$D$38,INDIRECT(\"a\" & (VLOOKUP(Switch!$D$38,$F$2:$G$43,2,FALSE)+ROW()-2)),\"\")","v":{"$error":"#N/A"}},{"$f":"IF(INDIRECT(\"c\" & (VLOOKUP(Switch!$D$39,$F$2:$G$43,2,FALSE)+ROW()-2))=Switch!$D$39,INDIRECT(\"a\" & (VLOOKUP(Switch!$D$39,$F$2:$G$43,2,FALSE)+ROW()-2)),\"\")","v":{"$error":"#N/A"}},{"$f":"IF(INDIRECT(\"c\" & (VLOOKUP(Switch!$D$40,$F$2:$G$43,2,FALSE)+ROW()-2))=Switch!$D$40,INDIRECT(\"a\" & (VLOOKUP(Switch!$D$40,$F$2:$G$43,2,FALSE)+ROW()-2)),\"\")","v":{"$error":"#N/A"}},{"$f":"IF(INDIRECT(\"c\" & (VLOOKUP(Switch!$D$52,$F$2:$G$43,2,FALSE)+ROW()-2))=Switch!$D$52,INDIRECT(\"a\" & (VLOOKUP(Switch!$D$52,$F$2:$G$43,2,FALSE)+ROW()-2)),\"\")","v":{"$error":"#N/A"}},{"$f":"IF(INDIRECT(\"c\" & (VLOOKUP(Switch!$D$53,$F$2:$G$43,2,FALSE)+ROW()-2))=Switch!$D$53,INDIRECT(\"a\" & (VLOOKUP(Switch!$D$53,$F$2:$G$43,2,FALSE)+ROW()-2)),\"\")","v":{"$error":"#N/A"}},{"$f":"IF(INDIRECT(\"c\" & (VLOOKUP(Switch!$D$54,$F$2:$G$43,2,FALSE)+ROW()-2))=Switch!$D$54,INDIRECT(\"a\" & (VLOOKUP(Switch!$D$54,$F$2:$G$43,2,FALSE)+ROW()-2)),\"\")","v":{"$error":"#N/A"}},{"$f":"IF(INDIRECT(\"c\" & (VLOOKUP(Switch!$D$55,$F$2:$G$43,2,FALSE)+ROW()-2))=Switch!$D$55,INDIRECT(\"a\" & (VLOOKUP(Switch!$D$55,$F$2:$G$43,2,FALSE)+ROW()-2)),\"\")","v":{"$error":"#N/A"}},{"$f":"IF(INDIRECT(\"c\" & (VLOOKUP(Switch!$D$56,$F$2:$G$43,2,FALSE)+ROW()-2))=Switch!$D$56,INDIRECT(\"a\" & (VLOOKUP(Switch!$D$56,$F$2:$G$43,2,FALSE)+ROW()-2)),\"\")","v":{"$error":"#N/A"}},{"$f":"IF(INDIRECT(\"c\" & (VLOOKUP(Switch!$D$57,$F$2:$G$43,2,FALSE)+ROW()-2))=Switch!$D$57,INDIRECT(\"a\" & (VLOOKUP(Switch!$D$57,$F$2:$G$43,2,FALSE)+ROW()-2)),\"\")","v":{"$error":"#N/A"}},{"$f":"IF(INDIRECT(\"c\" & (VLOOKUP(Switch!$D$58,$F$2:$G$43,2,FALSE)+ROW()-2))=Switch!$D$58,INDIRECT(\"a\" & (VLOOKUP(Switch!$D$58,$F$2:$G$43,2,FALSE)+ROW()-2)),\"\")","v":{"$error":"#N/A"}},{"$f":"IF(INDIRECT(\"c\" & (VLOOKUP(Switch!$D$59,$F$2:$G$43,2,FALSE)+ROW()-2))=Switch!$D$59,INDIRECT(\"a\" & (VLOOKUP(Switch!$D$59,$F$2:$G$43,2,FALSE)+ROW()-2)),\"\")","v":{"$error":"#N/A"}},{"$f":"IF(INDIRECT(\"c\" & (VLOOKUP(Switch!$D$60,$F$2:$G$43,2,FALSE)+ROW()-2))=Switch!$D$60,INDIRECT(\"a\" & (VLOOKUP(Switch!$D$60,$F$2:$G$43,2,FALSE)+ROW()-2)),\"\")","v":{"$error":"#N/A"}},{"$f":"IF(INDIRECT(\"c\" & (VLOOKUP(Switch!$D$61,$F$2:$G$43,2,FALSE)+ROW()-2))=Switch!$D$61,INDIRECT(\"a\" & (VLOOKUP(Switch!$D$61,$F$2:$G$43,2,FALSE)+ROW()-2)),\"\")","v":{"$error":"#N/A"}},{"$f":"IF(INDIRECT(\"c\" & (VLOOKUP(Switch!$D$62,$F$2:$G$43,2,FALSE)+ROW()-2))=Switch!$D$62,INDIRECT(\"a\" & (VLOOKUP(Switch!$D$62,$F$2:$G$43,2,FALSE)+ROW()-2)),\"\")","v":{"$error":"#N/A"}},{"$f":"IF(INDIRECT(\"c\" & (VLOOKUP(Switch!$D$63,$F$2:$G$43,2,FALSE)+ROW()-2))=Switch!$D$63,INDIRECT(\"a\" & (VLOOKUP(Switch!$D$63,$F$2:$G$43,2,FALSE)+ROW()-2)),\"\")","v":{"$error":"#N/A"}},{"$f":"IF(INDIRECT(\"c\" & (VLOOKUP(Switch!$D$64,$F$2:$G$43,2,FALSE)+ROW()-2))=Switch!$D$64,INDIRECT(\"a\" & (VLOOKUP(Switch!$D$64,$F$2:$G$43,2,FALSE)+ROW()-2)),\"\")","v":{"$error":"#N/A"}},{"$f":"IF(INDIRECT(\"c\" & (VLOOKUP(Switch!$D$65,$F$2:$G$43,2,FALSE)+ROW()-2))=Switch!$D$65,INDIRECT(\"a\" & (VLOOKUP(Switch!$D$65,$F$2:$G$43,2,FALSE)+ROW()-2)),\"\")","v":{"$error":"#N/A"}},{"$f":"IF(INDIRECT(\"c\" & (VLOOKUP(Switch!$D$66,$F$2:$G$43,2,FALSE)+ROW()-2))=Switch!$D$66,INDIRECT(\"a\" & (VLOOKUP(Switch!$D$66,$F$2:$G$43,2,FALSE)+ROW()-2)),\"\")","v":{"$error":"#N/A"}}]
[null,null,null,{"$f":"ROW()","v":594},null,null,{"$f":"VLOOKUP(F594,$C$2:$D$637,2,FALSE)","v":{"$error":"#N/A"}},{"$f":"IF(INDIRECT(\"c\" & (VLOOKUP(Switch!$D$26,$F$2:$G$43,2,FALSE)+ROW()-2))=Switch!$D$26,INDIRECT(\"a\" & (VLOOKUP(Switch!$D$26,$F$2:$G$43,2,FALSE)+ROW()-2)),\"\")","v":{"$error":"#N/A"}},{"$f":"IF(INDIRECT(\"c\" & (VLOOKUP(Switch!$D$27,$F$2:$G$43,2,FALSE)+ROW()-2))=Switch!$D$27,INDIRECT(\"a\" & (VLOOKUP(Switch!$D$27,$F$2:$G$43,2,FALSE)+ROW()-2)),\"\")","v":{"$error":"#N/A"}},{"$f":"IF(INDIRECT(\"c\" & (VLOOKUP(Switch!$D$28,$F$2:$G$43,2,FALSE)+ROW()-2))=Switch!$D$28,INDIRECT(\"a\" & (VLOOKUP(Switch!$D$28,$F$2:$G$43,2,FALSE)+ROW()-2)),\"\")","v":{"$error":"#N/A"}},{"$f":"IF(INDIRECT(\"c\" & (VLOOKUP(Switch!$D$29,$F$2:$G$43,2,FALSE)+ROW()-2))=Switch!$D$29,INDIRECT(\"a\" & (VLOOKUP(Switch!$D$29,$F$2:$G$43,2,FALSE)+ROW()-2)),\"\")","v":{"$error":"#N/A"}},{"$f":"IF(INDIRECT(\"c\" & (VLOOKUP(Switch!$D$30,$F$2:$G$43,2,FALSE)+ROW()-2))=Switch!$D$30,INDIRECT(\"a\" & (VLOOKUP(Switch!$D$30,$F$2:$G$43,2,FALSE)+ROW()-2)),\"\")","v":{"$error":"#N/A"}},{"$f":"IF(INDIRECT(\"c\" & (VLOOKUP(Switch!$D$31,$F$2:$G$43,2,FALSE)+ROW()-2))=Switch!$D$31,INDIRECT(\"a\" & (VLOOKUP(Switch!$D$31,$F$2:$G$43,2,FALSE)+ROW()-2)),\"\")","v":{"$error":"#N/A"}},{"$f":"IF(INDIRECT(\"c\" & (VLOOKUP(Switch!$D$32,$F$2:$G$43,2,FALSE)+ROW()-2))=Switch!$D$32,INDIRECT(\"a\" & (VLOOKUP(Switch!$D$32,$F$2:$G$43,2,FALSE)+ROW()-2)),\"\")","v":{"$error":"#N/A"}},{"$f":"IF(INDIRECT(\"c\" & (VLOOKUP(Switch!$D$33,$F$2:$G$43,2,FALSE)+ROW()-2))=Switch!$D$33,INDIRECT(\"a\" & (VLOOKUP(Switch!$D$33,$F$2:$G$43,2,FALSE)+ROW()-2)),\"\")","v":{"$error":"#N/A"}},{"$f":"IF(INDIRECT(\"c\" & (VLOOKUP(Switch!$D$34,$F$2:$G$43,2,FALSE)+ROW()-2))=Switch!$D$34,INDIRECT(\"a\" & (VLOOKUP(Switch!$D$34,$F$2:$G$43,2,FALSE)+ROW()-2)),\"\")","v":{"$error":"#N/A"}},{"$f":"IF(INDIRECT(\"c\" & (VLOOKUP(Switch!$D$35,$F$2:$G$43,2,FALSE)+ROW()-2))=Switch!$D$35,INDIRECT(\"a\" & (VLOOKUP(Switch!$D$35,$F$2:$G$43,2,FALSE)+ROW()-2)),\"\")","v":{"$error":"#N/A"}},{"$f":"IF(INDIRECT(\"c\" & (VLOOKUP(Switch!$D$36,$F$2:$G$43,2,FALSE)+ROW()-2))=Switch!$D$36,INDIRECT(\"a\" & (VLOOKUP(Switch!$D$36,$F$2:$G$43,2,FALSE)+ROW()-2)),\"\")","v":{"$error":"#N/A"}},{"$f":"IF(INDIRECT(\"c\" & (VLOOKUP(Switch!$D$37,$F$2:$G$43,2,FALSE)+ROW()-2))=Switch!$D$37,INDIRECT(\"a\" & (VLOOKUP(Switch!$D$37,$F$2:$G$43,2,FALSE)+ROW()-2)),\"\")","v":{"$error":"#N/A"}},{"$f":"IF(INDIRECT(\"c\" & (VLOOKUP(Switch!$D$38,$F$2:$G$43,2,FALSE)+ROW()-2))=Switch!$D$38,INDIRECT(\"a\" & (VLOOKUP(Switch!$D$38,$F$2:$G$43,2,FALSE)+ROW()-2)),\"\")","v":{"$error":"#N/A"}},{"$f":"IF(INDIRECT(\"c\" & (VLOOKUP(Switch!$D$39,$F$2:$G$43,2,FALSE)+ROW()-2))=Switch!$D$39,INDIRECT(\"a\" & (VLOOKUP(Switch!$D$39,$F$2:$G$43,2,FALSE)+ROW()-2)),\"\")","v":{"$error":"#N/A"}},{"$f":"IF(INDIRECT(\"c\" & (VLOOKUP(Switch!$D$40,$F$2:$G$43,2,FALSE)+ROW()-2))=Switch!$D$40,INDIRECT(\"a\" & (VLOOKUP(Switch!$D$40,$F$2:$G$43,2,FALSE)+ROW()-2)),\"\")","v":{"$error":"#N/A"}},{"$f":"IF(INDIRECT(\"c\" & (VLOOKUP(Switch!$D$52,$F$2:$G$43,2,FALSE)+ROW()-2))=Switch!$D$52,INDIRECT(\"a\" & (VLOOKUP(Switch!$D$52,$F$2:$G$43,2,FALSE)+ROW()-2)),\"\")","v":{"$error":"#N/A"}},{"$f":"IF(INDIRECT(\"c\" & (VLOOKUP(Switch!$D$53,$F$2:$G$43,2,FALSE)+ROW()-2))=Switch!$D$53,INDIRECT(\"a\" & (VLOOKUP(Switch!$D$53,$F$2:$G$43,2,FALSE)+ROW()-2)),\"\")","v":{"$error":"#N/A"}},{"$f":"IF(INDIRECT(\"c\" & (VLOOKUP(Switch!$D$54,$F$2:$G$43,2,FALSE)+ROW()-2))=Switch!$D$54,INDIRECT(\"a\" & (VLOOKUP(Switch!$D$54,$F$2:$G$43,2,FALSE)+ROW()-2)),\"\")","v":{"$error":"#N/A"}},{"$f":"IF(INDIRECT(\"c\" & (VLOOKUP(Switch!$D$55,$F$2:$G$43,2,FALSE)+ROW()-2))=Switch!$D$55,INDIRECT(\"a\" & (VLOOKUP(Switch!$D$55,$F$2:$G$43,2,FALSE)+ROW()-2)),\"\")","v":{"$error":"#N/A"}},{"$f":"IF(INDIRECT(\"c\" & (VLOOKUP(Switch!$D$56,$F$2:$G$43,2,FALSE)+ROW()-2))=Switch!$D$56,INDIRECT(\"a\" & (VLOOKUP(Switch!$D$56,$F$2:$G$43,2,FALSE)+ROW()-2)),\"\")","v":{"$error":"#N/A"}},{"$f":"IF(INDIRECT(\"c\" & (VLOOKUP(Switch!$D$57,$F$2:$G$43,2,FALSE)+ROW()-2))=Switch!$D$57,INDIRECT(\"a\" & (VLOOKUP(Switch!$D$57,$F$2:$G$43,2,FALSE)+ROW()-2)),\"\")","v":{"$error":"#N/A"}},{"$f":"IF(INDIRECT(\"c\" & (VLOOKUP(Switch!$D$58,$F$2:$G$43,2,FALSE)+ROW()-2))=Switch!$D$58,INDIRECT(\"a\" & (VLOOKUP(Switch!$D$58,$F$2:$G$43,2,FALSE)+ROW()-2)),\"\")","v":{"$error":"#N/A"}},{"$f":"IF(INDIRECT(\"c\" & (VLOOKUP(Switch!$D$59,$F$2:$G$43,2,FALSE)+ROW()-2))=Switch!$D$59,INDIRECT(\"a\" & (VLOOKUP(Switch!$D$59,$F$2:$G$43,2,FALSE)+ROW()-2)),\"\")","v":{"$error":"#N/A"}},{"$f":"IF(INDIRECT(\"c\" & (VLOOKUP(Switch!$D$60,$F$2:$G$43,2,FALSE)+ROW()-2))=Switch!$D$60,INDIRECT(\"a\" & (VLOOKUP(Switch!$D$60,$F$2:$G$43,2,FALSE)+ROW()-2)),\"\")","v":{"$error":"#N/A"}},{"$f":"IF(INDIRECT(\"c\" & (VLOOKUP(Switch!$D$61,$F$2:$G$43,2,FALSE)+ROW()-2))=Switch!$D$61,INDIRECT(\"a\" & (VLOOKUP(Switch!$D$61,$F$2:$G$43,2,FALSE)+ROW()-2)),\"\")","v":{"$error":"#N/A"}},{"$f":"IF(INDIRECT(\"c\" & (VLOOKUP(Switch!$D$62,$F$2:$G$43,2,FALSE)+ROW()-2))=Switch!$D$62,INDIRECT(\"a\" & (VLOOKUP(Switch!$D$62,$F$2:$G$43,2,FALSE)+ROW()-2)),\"\")","v":{"$error":"#N/A"}},{"$f":"IF(INDIRECT(\"c\" & (VLOOKUP(Switch!$D$63,$F$2:$G$43,2,FALSE)+ROW()-2))=Switch!$D$63,INDIRECT(\"a\" & (VLOOKUP(Switch!$D$63,$F$2:$G$43,2,FALSE)+ROW()-2)),\"\")","v":{"$error":"#N/A"}},{"$f":"IF(INDIRECT(\"c\" & (VLOOKUP(Switch!$D$64,$F$2:$G$43,2,FALSE)+ROW()-2))=Switch!$D$64,INDIRECT(\"a\" & (VLOOKUP(Switch!$D$64,$F$2:$G$43,2,FALSE)+ROW()-2)),\"\")","v":{"$error":"#N/A"}},{"$f":"IF(INDIRECT(\"c\" & (VLOOKUP(Switch!$D$65,$F$2:$G$43,2,FALSE)+ROW()-2))=Switch!$D$65,INDIRECT(\"a\" & (VLOOKUP(Switch!$D$65,$F$2:$G$43,2,FALSE)+ROW()-2)),\"\")","v":{"$error":"#N/A"}},{"$f":"IF(INDIRECT(\"c\" & (VLOOKUP(Switch!$D$66,$F$2:$G$43,2,FALSE)+ROW()-2))=Switch!$D$66,INDIRECT(\"a\" & (VLOOKUP(Switch!$D$66,$F$2:$G$43,2,FALSE)+ROW()-2)),\"\")","v":{"$error":"#N/A"}}]
[null,null,null,{"$f":"ROW()","v":595},null,null,{"$f":"VLOOKUP(F595,$C$2:$D$637,2,FALSE)","v":{"$error":"#N/A"}},{"$f":"IF(INDIRECT(\"c\" & (VLOOKUP(Switch!$D$26,$F$2:$G$43,2,FALSE)+ROW()-2))=Switch!$D$26,INDIRECT(\"a\" & (VLOOKUP(Switch!$D$26,$F$2:$G$43,2,FALSE)+ROW()-2)),\"\")","v":{"$error":"#N/A"}},{"$f":"IF(INDIRECT(\"c\" & (VLOOKUP(Switch!$D$27,$F$2:$G$43,2,FALSE)+ROW()-2))=Switch!$D$27,INDIRECT(\"a\" & (VLOOKUP(Switch!$D$27,$F$2:$G$43,2,FALSE)+ROW()-2)),\"\")","v":{"$error":"#N/A"}},{"$f":"IF(INDIRECT(\"c\" & (VLOOKUP(Switch!$D$28,$F$2:$G$43,2,FALSE)+ROW()-2))=Switch!$D$28,INDIRECT(\"a\" & (VLOOKUP(Switch!$D$28,$F$2:$G$43,2,FALSE)+ROW()-2)),\"\")","v":{"$error":"#N/A"}},{"$f":"IF(INDIRECT(\"c\" & (VLOOKUP(Switch!$D$29,$F$2:$G$43,2,FALSE)+ROW()-2))=Switch!$D$29,INDIRECT(\"a\" & (VLOOKUP(Switch!$D$29,$F$2:$G$43,2,FALSE)+ROW()-2)),\"\")","v":{"$error":"#N/A"}},{"$f":"IF(INDIRECT(\"c\" & (VLOOKUP(Switch!$D$30,$F$2:$G$43,2,FALSE)+ROW()-2))=Switch!$D$30,INDIRECT(\"a\" & (VLOOKUP(Switch!$D$30,$F$2:$G$43,2,FALSE)+ROW()-2)),\"\")","v":{"$error":"#N/A"}},{"$f":"IF(INDIRECT(\"c\" & (VLOOKUP(Switch!$D$31,$F$2:$G$43,2,FALSE)+ROW()-2))=Switch!$D$31,INDIRECT(\"a\" & (VLOOKUP(Switch!$D$31,$F$2:$G$43,2,FALSE)+ROW()-2)),\"\")","v":{"$error":"#N/A"}},{"$f":"IF(INDIRECT(\"c\" & (VLOOKUP(Switch!$D$32,$F$2:$G$43,2,FALSE)+ROW()-2))=Switch!$D$32,INDIRECT(\"a\" & (VLOOKUP(Switch!$D$32,$F$2:$G$43,2,FALSE)+ROW()-2)),\"\")","v":{"$error":"#N/A"}},{"$f":"IF(INDIRECT(\"c\" & (VLOOKUP(Switch!$D$33,$F$2:$G$43,2,FALSE)+ROW()-2))=Switch!$D$33,INDIRECT(\"a\" & (VLOOKUP(Switch!$D$33,$F$2:$G$43,2,FALSE)+ROW()-2)),\"\")","v":{"$error":"#N/A"}},{"$f":"IF(INDIRECT(\"c\" & (VLOOKUP(Switch!$D$34,$F$2:$G$43,2,FALSE)+ROW()-2))=Switch!$D$34,INDIRECT(\"a\" & (VLOOKUP(Switch!$D$34,$F$2:$G$43,2,FALSE)+ROW()-2)),\"\")","v":{"$error":"#N/A"}},{"$f":"IF(INDIRECT(\"c\" & (VLOOKUP(Switch!$D$35,$F$2:$G$43,2,FALSE)+ROW()-2))=Switch!$D$35,INDIRECT(\"a\" & (VLOOKUP(Switch!$D$35,$F$2:$G$43,2,FALSE)+ROW()-2)),\"\")","v":{"$error":"#N/A"}},{"$f":"IF(INDIRECT(\"c\" & (VLOOKUP(Switch!$D$36,$F$2:$G$43,2,FALSE)+ROW()-2))=Switch!$D$36,INDIRECT(\"a\" & (VLOOKUP(Switch!$D$36,$F$2:$G$43,2,FALSE)+ROW()-2)),\"\")","v":{"$error":"#N/A"}},{"$f":"IF(INDIRECT(\"c\" & (VLOOKUP(Switch!$D$37,$F$2:$G$43,2,FALSE)+ROW()-2))=Switch!$D$37,INDIRECT(\"a\" & (VLOOKUP(Switch!$D$37,$F$2:$G$43,2,FALSE)+ROW()-2)),\"\")","v":{"$error":"#N/A"}},{"$f":"IF(INDIRECT(\"c\" & (VLOOKUP(Switch!$D$38,$F$2:$G$43,2,FALSE)+ROW()-2))=Switch!$D$38,INDIRECT(\"a\" & (VLOOKUP(Switch!$D$38,$F$2:$G$43,2,FALSE)+ROW()-2)),\"\")","v":{"$error":"#N/A"}},{"$f":"IF(INDIRECT(\"c\" & (VLOOKUP(Switch!$D$39,$F$2:$G$43,2,FALSE)+ROW()-2))=Switch!$D$39,INDIRECT(\"a\" & (VLOOKUP(Switch!$D$39,$F$2:$G$43,2,FALSE)+ROW()-2)),\"\")","v":{"$error":"#N/A"}},{"$f":"IF(INDIRECT(\"c\" & (VLOOKUP(Switch!$D$40,$F$2:$G$43,2,FALSE)+ROW()-2))=Switch!$D$40,INDIRECT(\"a\" & (VLOOKUP(Switch!$D$40,$F$2:$G$43,2,FALSE)+ROW()-2)),\"\")","v":{"$error":"#N/A"}},{"$f":"IF(INDIRECT(\"c\" & (VLOOKUP(Switch!$D$52,$F$2:$G$43,2,FALSE)+ROW()-2))=Switch!$D$52,INDIRECT(\"a\" & (VLOOKUP(Switch!$D$52,$F$2:$G$43,2,FALSE)+ROW()-2)),\"\")","v":{"$error":"#N/A"}},{"$f":"IF(INDIRECT(\"c\" & (VLOOKUP(Switch!$D$53,$F$2:$G$43,2,FALSE)+ROW()-2))=Switch!$D$53,INDIRECT(\"a\" & (VLOOKUP(Switch!$D$53,$F$2:$G$43,2,FALSE)+ROW()-2)),\"\")","v":{"$error":"#N/A"}},{"$f":"IF(INDIRECT(\"c\" & (VLOOKUP(Switch!$D$54,$F$2:$G$43,2,FALSE)+ROW()-2))=Switch!$D$54,INDIRECT(\"a\" & (VLOOKUP(Switch!$D$54,$F$2:$G$43,2,FALSE)+ROW()-2)),\"\")","v":{"$error":"#N/A"}},{"$f":"IF(INDIRECT(\"c\" & (VLOOKUP(Switch!$D$55,$F$2:$G$43,2,FALSE)+ROW()-2))=Switch!$D$55,INDIRECT(\"a\" & (VLOOKUP(Switch!$D$55,$F$2:$G$43,2,FALSE)+ROW()-2)),\"\")","v":{"$error":"#N/A"}},{"$f":"IF(INDIRECT(\"c\" & (VLOOKUP(Switch!$D$56,$F$2:$G$43,2,FALSE)+ROW()-2))=Switch!$D$56,INDIRECT(\"a\" & (VLOOKUP(Switch!$D$56,$F$2:$G$43,2,FALSE)+ROW()-2)),\"\")","v":{"$error":"#N/A"}},{"$f":"IF(INDIRECT(\"c\" & (VLOOKUP(Switch!$D$57,$F$2:$G$43,2,FALSE)+ROW()-2))=Switch!$D$57,INDIRECT(\"a\" & (VLOOKUP(Switch!$D$57,$F$2:$G$43,2,FALSE)+ROW()-2)),\"\")","v":{"$error":"#N/A"}},{"$f":"IF(INDIRECT(\"c\" & (VLOOKUP(Switch!$D$58,$F$2:$G$43,2,FALSE)+ROW()-2))=Switch!$D$58,INDIRECT(\"a\" & (VLOOKUP(Switch!$D$58,$F$2:$G$43,2,FALSE)+ROW()-2)),\"\")","v":{"$error":"#N/A"}},{"$f":"IF(INDIRECT(\"c\" & (VLOOKUP(Switch!$D$59,$F$2:$G$43,2,FALSE)+ROW()-2))=Switch!$D$59,INDIRECT(\"a\" & (VLOOKUP(Switch!$D$59,$F$2:$G$43,2,FALSE)+ROW()-2)),\"\")","v":{"$error":"#N/A"}},{"$f":"IF(INDIRECT(\"c\" & (VLOOKUP(Switch!$D$60,$F$2:$G$43,2,FALSE)+ROW()-2))=Switch!$D$60,INDIRECT(\"a\" & (VLOOKUP(Switch!$D$60,$F$2:$G$43,2,FALSE)+ROW()-2)),\"\")","v":{"$error":"#N/A"}},{"$f":"IF(INDIRECT(\"c\" & (VLOOKUP(Switch!$D$61,$F$2:$G$43,2,FALSE)+ROW()-2))=Switch!$D$61,INDIRECT(\"a\" & (VLOOKUP(Switch!$D$61,$F$2:$G$43,2,FALSE)+ROW()-2)),\"\")","v":{"$error":"#N/A"}},{"$f":"IF(INDIRECT(\"c\" & (VLOOKUP(Switch!$D$62,$F$2:$G$43,2,FALSE)+ROW()-2))=Switch!$D$62,INDIRECT(\"a\" & (VLOOKUP(Switch!$D$62,$F$2:$G$43,2,FALSE)+ROW()-2)),\"\")","v":{"$error":"#N/A"}},{"$f":"IF(INDIRECT(\"c\" & (VLOOKUP(Switch!$D$63,$F$2:$G$43,2,FALSE)+ROW()-2))=Switch!$D$63,INDIRECT(\"a\" & (VLOOKUP(Switch!$D$63,$F$2:$G$43,2,FALSE)+ROW()-2)),\"\")","v":{"$error":"#N/A"}},{"$f":"IF(INDIRECT(\"c\" & (VLOOKUP(Switch!$D$64,$F$2:$G$43,2,FALSE)+ROW()-2))=Switch!$D$64,INDIRECT(\"a\" & (VLOOKUP(Switch!$D$64,$F$2:$G$43,2,FALSE)+ROW()-2)),\"\")","v":{"$error":"#N/A"}},{"$f":"IF(INDIRECT(\"c\" & (VLOOKUP(Switch!$D$65,$F$2:$G$43,2,FALSE)+ROW()-2))=Switch!$D$65,INDIRECT(\"a\" & (VLOOKUP(Switch!$D$65,$F$2:$G$43,2,FALSE)+ROW()-2)),\"\")","v":{"$error":"#N/A"}},{"$f":"IF(INDIRECT(\"c\" & (VLOOKUP(Switch!$D$66,$F$2:$G$43,2,FALSE)+ROW()-2))=Switch!$D$66,INDIRECT(\"a\" & (VLOOKUP(Switch!$D$66,$F$2:$G$43,2,FALSE)+ROW()-2)),\"\")","v":{"$error":"#N/A"}}]
[null,null,null,{"$f":"ROW()","v":596},null,null,{"$f":"VLOOKUP(F596,$C$2:$D$637,2,FALSE)","v":{"$error":"#N/A"}},{"$f":"IF(INDIRECT(\"c\" & (VLOOKUP(Switch!$D$26,$F$2:$G$43,2,FALSE)+ROW()-2))=Switch!$D$26,INDIRECT(\"a\" & (VLOOKUP(Switch!$D$26,$F$2:$G$43,2,FALSE)+ROW()-2)),\"\")","v":{"$error":"#N/A"}},{"$f":"IF(INDIRECT(\"c\" & (VLOOKUP(Switch!$D$27,$F$2:$G$43,2,FALSE)+ROW()-2))=Switch!$D$27,INDIRECT(\"a\" & (VLOOKUP(Switch!$D$27,$F$2:$G$43,2,FALSE)+ROW()-2)),\"\")","v":{"$error":"#N/A"}},{"$f":"IF(INDIRECT(\"c\" & (VLOOKUP(Switch!$D$28,$F$2:$G$43,2,FALSE)+ROW()-2))=Switch!$D$28,INDIRECT(\"a\" & (VLOOKUP(Switch!$D$28,$F$2:$G$43,2,FALSE)+ROW()-2)),\"\")","v":{"$error":"#N/A"}},{"$f":"IF(INDIRECT(\"c\" & (VLOOKUP(Switch!$D$29,$F$2:$G$43,2,FALSE)+ROW()-2))=Switch!$D$29,INDIRECT(\"a\" & (VLOOKUP(Switch!$D$29,$F$2:$G$43,2,FALSE)+ROW()-2)),\"\")","v":{"$error":"#N/A"}},{"$f":"IF(INDIRECT(\"c\" & (VLOOKUP(Switch!$D$30,$F$2:$G$43,2,FALSE)+ROW()-2))=Switch!$D$30,INDIRECT(\"a\" & (VLOOKUP(Switch!$D$30,$F$2:$G$43,2,FALSE)+ROW()-2)),\"\")","v":{"$error":"#N/A"}},{"$f":"IF(INDIRECT(\"c\" & (VLOOKUP(Switch!$D$31,$F$2:$G$43,2,FALSE)+ROW()-2))=Switch!$D$31,INDIRECT(\"a\" & (VLOOKUP(Switch!$D$31,$F$2:$G$43,2,FALSE)+ROW()-2)),\"\")","v":{"$error":"#N/A"}},{"$f":"IF(INDIRECT(\"c\" & (VLOOKUP(Switch!$D$32,$F$2:$G$43,2,FALSE)+ROW()-2))=Switch!$D$32,INDIRECT(\"a\" & (VLOOKUP(Switch!$D$32,$F$2:$G$43,2,FALSE)+ROW()-2)),\"\")","v":{"$error":"#N/A"}},{"$f":"IF(INDIRECT(\"c\" & (VLOOKUP(Switch!$D$33,$F$2:$G$43,2,FALSE)+ROW()-2))=Switch!$D$33,INDIRECT(\"a\" & (VLOOKUP(Switch!$D$33,$F$2:$G$43,2,FALSE)+ROW()-2)),\"\")","v":{"$error":"#N/A"}},{"$f":"IF(INDIRECT(\"c\" & (VLOOKUP(Switch!$D$34,$F$2:$G$43,2,FALSE)+ROW()-2))=Switch!$D$34,INDIRECT(\"a\" & (VLOOKUP(Switch!$D$34,$F$2:$G$43,2,FALSE)+ROW()-2)),\"\")","v":{"$error":"#N/A"}},{"$f":"IF(INDIRECT(\"c\" & (VLOOKUP(Switch!$D$35,$F$2:$G$43,2,FALSE)+ROW()-2))=Switch!$D$35,INDIRECT(\"a\" & (VLOOKUP(Switch!$D$35,$F$2:$G$43,2,FALSE)+ROW()-2)),\"\")","v":{"$error":"#N/A"}},{"$f":"IF(INDIRECT(\"c\" & (VLOOKUP(Switch!$D$36,$F$2:$G$43,2,FALSE)+ROW()-2))=Switch!$D$36,INDIRECT(\"a\" & (VLOOKUP(Switch!$D$36,$F$2:$G$43,2,FALSE)+ROW()-2)),\"\")","v":{"$error":"#N/A"}},{"$f":"IF(INDIRECT(\"c\" & (VLOOKUP(Switch!$D$37,$F$2:$G$43,2,FALSE)+ROW()-2))=Switch!$D$37,INDIRECT(\"a\" & (VLOOKUP(Switch!$D$37,$F$2:$G$43,2,FALSE)+ROW()-2)),\"\")","v":{"$error":"#N/A"}},{"$f":"IF(INDIRECT(\"c\" & (VLOOKUP(Switch!$D$38,$F$2:$G$43,2,FALSE)+ROW()-2))=Switch!$D$38,INDIRECT(\"a\" & (VLOOKUP(Switch!$D$38,$F$2:$G$43,2,FALSE)+ROW()-2)),\"\")","v":{"$error":"#N/A"}},{"$f":"IF(INDIRECT(\"c\" & (VLOOKUP(Switch!$D$39,$F$2:$G$43,2,FALSE)+ROW()-2))=Switch!$D$39,INDIRECT(\"a\" & (VLOOKUP(Switch!$D$39,$F$2:$G$43,2,FALSE)+ROW()-2)),\"\")","v":{"$error":"#N/A"}},{"$f":"IF(INDIRECT(\"c\" & (VLOOKUP(Switch!$D$40,$F$2:$G$43,2,FALSE)+ROW()-2))=Switch!$D$40,INDIRECT(\"a\" & (VLOOKUP(Switch!$D$40,$F$2:$G$43,2,FALSE)+ROW()-2)),\"\")","v":{"$error":"#N/A"}},{"$f":"IF(INDIRECT(\"c\" & (VLOOKUP(Switch!$D$52,$F$2:$G$43,2,FALSE)+ROW()-2))=Switch!$D$52,INDIRECT(\"a\" & (VLOOKUP(Switch!$D$52,$F$2:$G$43,2,FALSE)+ROW()-2)),\"\")","v":{"$error":"#N/A"}},{"$f":"IF(INDIRECT(\"c\" & (VLOOKUP(Switch!$D$53,$F$2:$G$43,2,FALSE)+ROW()-2))=Switch!$D$53,INDIRECT(\"a\" & (VLOOKUP(Switch!$D$53,$F$2:$G$43,2,FALSE)+ROW()-2)),\"\")","v":{"$error":"#N/A"}},{"$f":"IF(INDIRECT(\"c\" & (VLOOKUP(Switch!$D$54,$F$2:$G$43,2,FALSE)+ROW()-2))=Switch!$D$54,INDIRECT(\"a\" & (VLOOKUP(Switch!$D$54,$F$2:$G$43,2,FALSE)+ROW()-2)),\"\")","v":{"$error":"#N/A"}},{"$f":"IF(INDIRECT(\"c\" & (VLOOKUP(Switch!$D$55,$F$2:$G$43,2,FALSE)+ROW()-2))=Switch!$D$55,INDIRECT(\"a\" & (VLOOKUP(Switch!$D$55,$F$2:$G$43,2,FALSE)+ROW()-2)),\"\")","v":{"$error":"#N/A"}},{"$f":"IF(INDIRECT(\"c\" & (VLOOKUP(Switch!$D$56,$F$2:$G$43,2,FALSE)+ROW()-2))=Switch!$D$56,INDIRECT(\"a\" & (VLOOKUP(Switch!$D$56,$F$2:$G$43,2,FALSE)+ROW()-2)),\"\")","v":{"$error":"#N/A"}},{"$f":"IF(INDIRECT(\"c\" & (VLOOKUP(Switch!$D$57,$F$2:$G$43,2,FALSE)+ROW()-2))=Switch!$D$57,INDIRECT(\"a\" & (VLOOKUP(Switch!$D$57,$F$2:$G$43,2,FALSE)+ROW()-2)),\"\")","v":{"$error":"#N/A"}},{"$f":"IF(INDIRECT(\"c\" & (VLOOKUP(Switch!$D$58,$F$2:$G$43,2,FALSE)+ROW()-2))=Switch!$D$58,INDIRECT(\"a\" & (VLOOKUP(Switch!$D$58,$F$2:$G$43,2,FALSE)+ROW()-2)),\"\")","v":{"$error":"#N/A"}},{"$f":"IF(INDIRECT(\"c\" & (VLOOKUP(Switch!$D$59,$F$2:$G$43,2,FALSE)+ROW()-2))=Switch!$D$59,INDIRECT(\"a\" & (VLOOKUP(Switch!$D$59,$F$2:$G$43,2,FALSE)+ROW()-2)),\"\")","v":{"$error":"#N/A"}},{"$f":"IF(INDIRECT(\"c\" & (VLOOKUP(Switch!$D$60,$F$2:$G$43,2,FALSE)+ROW()-2))=Switch!$D$60,INDIRECT(\"a\" & (VLOOKUP(Switch!$D$60,$F$2:$G$43,2,FALSE)+ROW()-2)),\"\")","v":{"$error":"#N/A"}},{"$f":"IF(INDIRECT(\"c\" & (VLOOKUP(Switch!$D$61,$F$2:$G$43,2,FALSE)+ROW()-2))=Switch!$D$61,INDIRECT(\"a\" & (VLOOKUP(Switch!$D$61,$F$2:$G$43,2,FALSE)+ROW()-2)),\"\")","v":{"$error":"#N/A"}},{"$f":"IF(INDIRECT(\"c\" & (VLOOKUP(Switch!$D$62,$F$2:$G$43,2,FALSE)+ROW()-2))=Switch!$D$62,INDIRECT(\"a\" & (VLOOKUP(Switch!$D$62,$F$2:$G$43,2,FALSE)+ROW()-2)),\"\")","v":{"$error":"#N/A"}},{"$f":"IF(INDIRECT(\"c\" & (VLOOKUP(Switch!$D$63,$F$2:$G$43,2,FALSE)+ROW()-2))=Switch!$D$63,INDIRECT(\"a\" & (VLOOKUP(Switch!$D$63,$F$2:$G$43,2,FALSE)+ROW()-2)),\"\")","v":{"$error":"#N/A"}},{"$f":"IF(INDIRECT(\"c\" & (VLOOKUP(Switch!$D$64,$F$2:$G$43,2,FALSE)+ROW()-2))=Switch!$D$64,INDIRECT(\"a\" & (VLOOKUP(Switch!$D$64,$F$2:$G$43,2,FALSE)+ROW()-2)),\"\")","v":{"$error":"#N/A"}},{"$f":"IF(INDIRECT(\"c\" & (VLOOKUP(Switch!$D$65,$F$2:$G$43,2,FALSE)+ROW()-2))=Switch!$D$65,INDIRECT(\"a\" & (VLOOKUP(Switch!$D$65,$F$2:$G$43,2,FALSE)+ROW()-2)),\"\")","v":{"$error":"#N/A"}},{"$f":"IF(INDIRECT(\"c\" & (VLOOKUP(Switch!$D$66,$F$2:$G$43,2,FALSE)+ROW()-2))=Switch!$D$66,INDIRECT(\"a\" & (VLOOKUP(Switch!$D$66,$F$2:$G$43,2,FALSE)+ROW()-2)),\"\")","v":{"$error":"#N/A"}}]
[null,null,null,{"$f":"ROW()","v":597},null,null,{"$f":"VLOOKUP(F597,$C$2:$D$637,2,FALSE)","v":{"$error":"#N/A"}},{"$f":"IF(INDIRECT(\"c\" & (VLOOKUP(Switch!$D$26,$F$2:$G$43,2,FALSE)+ROW()-2))=Switch!$D$26,INDIRECT(\"a\" & (VLOOKUP(Switch!$D$26,$F$2:$G$43,2,FALSE)+ROW()-2)),\"\")","v":{"$error":"#N/A"}},{"$f":"IF(INDIRECT(\"c\" & (VLOOKUP(Switch!$D$27,$F$2:$G$43,2,FALSE)+ROW()-2))=Switch!$D$27,INDIRECT(\"a\" & (VLOOKUP(Switch!$D$27,$F$2:$G$43,2,FALSE)+ROW()-2)),\"\")","v":{"$error":"#N/A"}},{"$f":"IF(INDIRECT(\"c\" & (VLOOKUP(Switch!$D$28,$F$2:$G$43,2,FALSE)+ROW()-2))=Switch!$D$28,INDIRECT(\"a\" & (VLOOKUP(Switch!$D$28,$F$2:$G$43,2,FALSE)+ROW()-2)),\"\")","v":{"$error":"#N/A"}},{"$f":"IF(INDIRECT(\"c\" & (VLOOKUP(Switch!$D$29,$F$2:$G$43,2,FALSE)+ROW()-2))=Switch!$D$29,INDIRECT(\"a\" & (VLOOKUP(Switch!$D$29,$F$2:$G$43,2,FALSE)+ROW()-2)),\"\")","v":{"$error":"#N/A"}},{"$f":"IF(INDIRECT(\"c\" & (VLOOKUP(Switch!$D$30,$F$2:$G$43,2,FALSE)+ROW()-2))=Switch!$D$30,INDIRECT(\"a\" & (VLOOKUP(Switch!$D$30,$F$2:$G$43,2,FALSE)+ROW()-2)),\"\")","v":{"$error":"#N/A"}},{"$f":"IF(INDIRECT(\"c\" & (VLOOKUP(Switch!$D$31,$F$2:$G$43,2,FALSE)+ROW()-2))=Switch!$D$31,INDIRECT(\"a\" & (VLOOKUP(Switch!$D$31,$F$2:$G$43,2,FALSE)+ROW()-2)),\"\")","v":{"$error":"#N/A"}},{"$f":"IF(INDIRECT(\"c\" & (VLOOKUP(Switch!$D$32,$F$2:$G$43,2,FALSE)+ROW()-2))=Switch!$D$32,INDIRECT(\"a\" & (VLOOKUP(Switch!$D$32,$F$2:$G$43,2,FALSE)+ROW()-2)),\"\")","v":{"$error":"#N/A"}},{"$f":"IF(INDIRECT(\"c\" & (VLOOKUP(Switch!$D$33,$F$2:$G$43,2,FALSE)+ROW()-2))=Switch!$D$33,INDIRECT(\"a\" & (VLOOKUP(Switch!$D$33,$F$2:$G$43,2,FALSE)+ROW()-2)),\"\")","v":{"$error":"#N/A"}},{"$f":"IF(INDIRECT(\"c\" & (VLOOKUP(Switch!$D$34,$F$2:$G$43,2,FALSE)+ROW()-2))=Switch!$D$34,INDIRECT(\"a\" & (VLOOKUP(Switch!$D$34,$F$2:$G$43,2,FALSE)+ROW()-2)),\"\")","v":{"$error":"#N/A"}},{"$f":"IF(INDIRECT(\"c\" & (VLOOKUP(Switch!$D$35,$F$2:$G$43,2,FALSE)+ROW()-2))=Switch!$D$35,INDIRECT(\"a\" & (VLOOKUP(Switch!$D$35,$F$2:$G$43,2,FALSE)+ROW()-2)),\"\")","v":{"$error":"#N/A"}},{"$f":"IF(INDIRECT(\"c\" & (VLOOKUP(Switch!$D$36,$F$2:$G$43,2,FALSE)+ROW()-2))=Switch!$D$36,INDIRECT(\"a\" & (VLOOKUP(Switch!$D$36,$F$2:$G$43,2,FALSE)+ROW()-2)),\"\")","v":{"$error":"#N/A"}},{"$f":"IF(INDIRECT(\"c\" & (VLOOKUP(Switch!$D$37,$F$2:$G$43,2,FALSE)+ROW()-2))=Switch!$D$37,INDIRECT(\"a\" & (VLOOKUP(Switch!$D$37,$F$2:$G$43,2,FALSE)+ROW()-2)),\"\")","v":{"$error":"#N/A"}},{"$f":"IF(INDIRECT(\"c\" & (VLOOKUP(Switch!$D$38,$F$2:$G$43,2,FALSE)+ROW()-2))=Switch!$D$38,INDIRECT(\"a\" & (VLOOKUP(Switch!$D$38,$F$2:$G$43,2,FALSE)+ROW()-2)),\"\")","v":{"$error":"#N/A"}},{"$f":"IF(INDIRECT(\"c\" & (VLOOKUP(Switch!$D$39,$F$2:$G$43,2,FALSE)+ROW()-2))=Switch!$D$39,INDIRECT(\"a\" & (VLOOKUP(Switch!$D$39,$F$2:$G$43,2,FALSE)+ROW()-2)),\"\")","v":{"$error":"#N/A"}},{"$f":"IF(INDIRECT(\"c\" & (VLOOKUP(Switch!$D$40,$F$2:$G$43,2,FALSE)+ROW()-2))=Switch!$D$40,INDIRECT(\"a\" & (VLOOKUP(Switch!$D$40,$F$2:$G$43,2,FALSE)+ROW()-2)),\"\")","v":{"$error":"#N/A"}},{"$f":"IF(INDIRECT(\"c\" & (VLOOKUP(Switch!$D$52,$F$2:$G$43,2,FALSE)+ROW()-2))=Switch!$D$52,INDIRECT(\"a\" & (VLOOKUP(Switch!$D$52,$F$2:$G$43,2,FALSE)+ROW()-2)),\"\")","v":{"$error":"#N/A"}},{"$f":"IF(INDIRECT(\"c\" & (VLOOKUP(Switch!$D$53,$F$2:$G$43,2,FALSE)+ROW()-2))=Switch!$D$53,INDIRECT(\"a\" & (VLOOKUP(Switch!$D$53,$F$2:$G$43,2,FALSE)+ROW()-2)),\"\")","v":{"$error":"#N/A"}},{"$f":"IF(INDIRECT(\"c\" & (VLOOKUP(Switch!$D$54,$F$2:$G$43,2,FALSE)+ROW()-2))=Switch!$D$54,INDIRECT(\"a\" & (VLOOKUP(Switch!$D$54,$F$2:$G$43,2,FALSE)+ROW()-2)),\"\")","v":{"$error":"#N/A"}},{"$f":"IF(INDIRECT(\"c\" & (VLOOKUP(Switch!$D$55,$F$2:$G$43,2,FALSE)+ROW()-2))=Switch!$D$55,INDIRECT(\"a\" & (VLOOKUP(Switch!$D$55,$F$2:$G$43,2,FALSE)+ROW()-2)),\"\")","v":{"$error":"#N/A"}},{"$f":"IF(INDIRECT(\"c\" & (VLOOKUP(Switch!$D$56,$F$2:$G$43,2,FALSE)+ROW()-2))=Switch!$D$56,INDIRECT(\"a\" & (VLOOKUP(Switch!$D$56,$F$2:$G$43,2,FALSE)+ROW()-2)),\"\")","v":{"$error":"#N/A"}},{"$f":"IF(INDIRECT(\"c\" & (VLOOKUP(Switch!$D$57,$F$2:$G$43,2,FALSE)+ROW()-2))=Switch!$D$57,INDIRECT(\"a\" & (VLOOKUP(Switch!$D$57,$F$2:$G$43,2,FALSE)+ROW()-2)),\"\")","v":{"$error":"#N/A"}},{"$f":"IF(INDIRECT(\"c\" & (VLOOKUP(Switch!$D$58,$F$2:$G$43,2,FALSE)+ROW()-2))=Switch!$D$58,INDIRECT(\"a\" & (VLOOKUP(Switch!$D$58,$F$2:$G$43,2,FALSE)+ROW()-2)),\"\")","v":{"$error":"#N/A"}},{"$f":"IF(INDIRECT(\"c\" & (VLOOKUP(Switch!$D$59,$F$2:$G$43,2,FALSE)+ROW()-2))=Switch!$D$59,INDIRECT(\"a\" & (VLOOKUP(Switch!$D$59,$F$2:$G$43,2,FALSE)+ROW()-2)),\"\")","v":{"$error":"#N/A"}},{"$f":"IF(INDIRECT(\"c\" & (VLOOKUP(Switch!$D$60,$F$2:$G$43,2,FALSE)+ROW()-2))=Switch!$D$60,INDIRECT(\"a\" & (VLOOKUP(Switch!$D$60,$F$2:$G$43,2,FALSE)+ROW()-2)),\"\")","v":{"$error":"#N/A"}},{"$f":"IF(INDIRECT(\"c\" & (VLOOKUP(Switch!$D$61,$F$2:$G$43,2,FALSE)+ROW()-2))=Switch!$D$61,INDIRECT(\"a\" & (VLOOKUP(Switch!$D$61,$F$2:$G$43,2,FALSE)+ROW()-2)),\"\")","v":{"$error":"#N/A"}},{"$f":"IF(INDIRECT(\"c\" & (VLOOKUP(Switch!$D$62,$F$2:$G$43,2,FALSE)+ROW()-2))=Switch!$D$62,INDIRECT(\"a\" & (VLOOKUP(Switch!$D$62,$F$2:$G$43,2,FALSE)+ROW()-2)),\"\")","v":{"$error":"#N/A"}},{"$f":"IF(INDIRECT(\"c\" & (VLOOKUP(Switch!$D$63,$F$2:$G$43,2,FALSE)+ROW()-2))=Switch!$D$63,INDIRECT(\"a\" & (VLOOKUP(Switch!$D$63,$F$2:$G$43,2,FALSE)+ROW()-2)),\"\")","v":{"$error":"#N/A"}},{"$f":"IF(INDIRECT(\"c\" & (VLOOKUP(Switch!$D$64,$F$2:$G$43,2,FALSE)+ROW()-2))=Switch!$D$64,INDIRECT(\"a\" & (VLOOKUP(Switch!$D$64,$F$2:$G$43,2,FALSE)+ROW()-2)),\"\")","v":{"$error":"#N/A"}},{"$f":"IF(INDIRECT(\"c\" & (VLOOKUP(Switch!$D$65,$F$2:$G$43,2,FALSE)+ROW()-2))=Switch!$D$65,INDIRECT(\"a\" & (VLOOKUP(Switch!$D$65,$F$2:$G$43,2,FALSE)+ROW()-2)),\"\")","v":{"$error":"#N/A"}},{"$f":"IF(INDIRECT(\"c\" & (VLOOKUP(Switch!$D$66,$F$2:$G$43,2,FALSE)+ROW()-2))=Switch!$D$66,INDIRECT(\"a\" & (VLOOKUP(Switch!$D$66,$F$2:$G$43,2,FALSE)+ROW()-2)),\"\")","v":{"$error":"#N/A"}}]
[null,null,null,{"$f":"ROW()","v":598},null,null,{"$f":"VLOOKUP(F598,$C$2:$D$637,2,FALSE)","v":{"$error":"#N/A"}},{"$f":"IF(INDIRECT(\"c\" & (VLOOKUP(Switch!$D$26,$F$2:$G$43,2,FALSE)+ROW()-2))=Switch!$D$26,INDIRECT(\"a\" & (VLOOKUP(Switch!$D$26,$F$2:$G$43,2,FALSE)+ROW()-2)),\"\")","v":{"$error":"#N/A"}},{"$f":"IF(INDIRECT(\"c\" & (VLOOKUP(Switch!$D$27,$F$2:$G$43,2,FALSE)+ROW()-2))=Switch!$D$27,INDIRECT(\"a\" & (VLOOKUP(Switch!$D$27,$F$2:$G$43,2,FALSE)+ROW()-2)),\"\")","v":{"$error":"#N/A"}},{"$f":"IF(INDIRECT(\"c\" & (VLOOKUP(Switch!$D$28,$F$2:$G$43,2,FALSE)+ROW()-2))=Switch!$D$28,INDIRECT(\"a\" & (VLOOKUP(Switch!$D$28,$F$2:$G$43,2,FALSE)+ROW()-2)),\"\")","v":{"$error":"#N/A"}},{"$f":"IF(INDIRECT(\"c\" & (VLOOKUP(Switch!$D$29,$F$2:$G$43,2,FALSE)+ROW()-2))=Switch!$D$29,INDIRECT(\"a\" & (VLOOKUP(Switch!$D$29,$F$2:$G$43,2,FALSE)+ROW()-2)),\"\")","v":{"$error":"#N/A"}},{"$f":"IF(INDIRECT(\"c\" & (VLOOKUP(Switch!$D$30,$F$2:$G$43,2,FALSE)+ROW()-2))=Switch!$D$30,INDIRECT(\"a\" & (VLOOKUP(Switch!$D$30,$F$2:$G$43,2,FALSE)+ROW()-2)),\"\")","v":{"$error":"#N/A"}},{"$f":"IF(INDIRECT(\"c\" & (VLOOKUP(Switch!$D$31,$F$2:$G$43,2,FALSE)+ROW()-2))=Switch!$D$31,INDIRECT(\"a\" & (VLOOKUP(Switch!$D$31,$F$2:$G$43,2,FALSE)+ROW()-2)),\"\")","v":{"$error":"#N/A"}},{"$f":"IF(INDIRECT(\"c\" & (VLOOKUP(Switch!$D$32,$F$2:$G$43,2,FALSE)+ROW()-2))=Switch!$D$32,INDIRECT(\"a\" & (VLOOKUP(Switch!$D$32,$F$2:$G$43,2,FALSE)+ROW()-2)),\"\")","v":{"$error":"#N/A"}},{"$f":"IF(INDIRECT(\"c\" & (VLOOKUP(Switch!$D$33,$F$2:$G$43,2,FALSE)+ROW()-2))=Switch!$D$33,INDIRECT(\"a\" & (VLOOKUP(Switch!$D$33,$F$2:$G$43,2,FALSE)+ROW()-2)),\"\")","v":{"$error":"#N/A"}},{"$f":"IF(INDIRECT(\"c\" & (VLOOKUP(Switch!$D$34,$F$2:$G$43,2,FALSE)+ROW()-2))=Switch!$D$34,INDIRECT(\"a\" & (VLOOKUP(Switch!$D$34,$F$2:$G$43,2,FALSE)+ROW()-2)),\"\")","v":{"$error":"#N/A"}},{"$f":"IF(INDIRECT(\"c\" & (VLOOKUP(Switch!$D$35,$F$2:$G$43,2,FALSE)+ROW()-2))=Switch!$D$35,INDIRECT(\"a\" & (VLOOKUP(Switch!$D$35,$F$2:$G$43,2,FALSE)+ROW()-2)),\"\")","v":{"$error":"#N/A"}},{"$f":"IF(INDIRECT(\"c\" & (VLOOKUP(Switch!$D$36,$F$2:$G$43,2,FALSE)+ROW()-2))=Switch!$D$36,INDIRECT(\"a\" & (VLOOKUP(Switch!$D$36,$F$2:$G$43,2,FALSE)+ROW()-2)),\"\")","v":{"$error":"#N/A"}},{"$f":"IF(INDIRECT(\"c\" & (VLOOKUP(Switch!$D$37,$F$2:$G$43,2,FALSE)+ROW()-2))=Switch!$D$37,INDIRECT(\"a\" & (VLOOKUP(Switch!$D$37,$F$2:$G$43,2,FALSE)+ROW()-2)),\"\")","v":{"$error":"#N/A"}},{"$f":"IF(INDIRECT(\"c\" & (VLOOKUP(Switch!$D$38,$F$2:$G$43,2,FALSE)+ROW()-2))=Switch!$D$38,INDIRECT(\"a\" & (VLOOKUP(Switch!$D$38,$F$2:$G$43,2,FALSE)+ROW()-2)),\"\")","v":{"$error":"#N/A"}},{"$f":"IF(INDIRECT(\"c\" & (VLOOKUP(Switch!$D$39,$F$2:$G$43,2,FALSE)+ROW()-2))=Switch!$D$39,INDIRECT(\"a\" & (VLOOKUP(Switch!$D$39,$F$2:$G$43,2,FALSE)+ROW()-2)),\"\")","v":{"$error":"#N/A"}},{"$f":"IF(INDIRECT(\"c\" & (VLOOKUP(Switch!$D$40,$F$2:$G$43,2,FALSE)+ROW()-2))=Switch!$D$40,INDIRECT(\"a\" & (VLOOKUP(Switch!$D$40,$F$2:$G$43,2,FALSE)+ROW()-2)),\"\")","v":{"$error":"#N/A"}},{"$f":"IF(INDIRECT(\"c\" & (VLOOKUP(Switch!$D$52,$F$2:$G$43,2,FALSE)+ROW()-2))=Switch!$D$52,INDIRECT(\"a\" & (VLOOKUP(Switch!$D$52,$F$2:$G$43,2,FALSE)+ROW()-2)),\"\")","v":{"$error":"#N/A"}},{"$f":"IF(INDIRECT(\"c\" & (VLOOKUP(Switch!$D$53,$F$2:$G$43,2,FALSE)+ROW()-2))=Switch!$D$53,INDIRECT(\"a\" & (VLOOKUP(Switch!$D$53,$F$2:$G$43,2,FALSE)+ROW()-2)),\"\")","v":{"$error":"#N/A"}},{"$f":"IF(INDIRECT(\"c\" & (VLOOKUP(Switch!$D$54,$F$2:$G$43,2,FALSE)+ROW()-2))=Switch!$D$54,INDIRECT(\"a\" & (VLOOKUP(Switch!$D$54,$F$2:$G$43,2,FALSE)+ROW()-2)),\"\")","v":{"$error":"#N/A"}},{"$f":"IF(INDIRECT(\"c\" & (VLOOKUP(Switch!$D$55,$F$2:$G$43,2,FALSE)+ROW()-2))=Switch!$D$55,INDIRECT(\"a\" & (VLOOKUP(Switch!$D$55,$F$2:$G$43,2,FALSE)+ROW()-2)),\"\")","v":{"$error":"#N/A"}},{"$f":"IF(INDIRECT(\"c\" & (VLOOKUP(Switch!$D$56,$F$2:$G$43,2,FALSE)+ROW()-2))=Switch!$D$56,INDIRECT(\"a\" & (VLOOKUP(Switch!$D$56,$F$2:$G$43,2,FALSE)+ROW()-2)),\"\")","v":{"$error":"#N/A"}},{"$f":"IF(INDIRECT(\"c\" & (VLOOKUP(Switch!$D$57,$F$2:$G$43,2,FALSE)+ROW()-2))=Switch!$D$57,INDIRECT(\"a\" & (VLOOKUP(Switch!$D$57,$F$2:$G$43,2,FALSE)+ROW()-2)),\"\")","v":{"$error":"#N/A"}},{"$f":"IF(INDIRECT(\"c\" & (VLOOKUP(Switch!$D$58,$F$2:$G$43,2,FALSE)+ROW()-2))=Switch!$D$58,INDIRECT(\"a\" & (VLOOKUP(Switch!$D$58,$F$2:$G$43,2,FALSE)+ROW()-2)),\"\")","v":{"$error":"#N/A"}},{"$f":"IF(INDIRECT(\"c\" & (VLOOKUP(Switch!$D$59,$F$2:$G$43,2,FALSE)+ROW()-2))=Switch!$D$59,INDIRECT(\"a\" & (VLOOKUP(Switch!$D$59,$F$2:$G$43,2,FALSE)+ROW()-2)),\"\")","v":{"$error":"#N/A"}},{"$f":"IF(INDIRECT(\"c\" & (VLOOKUP(Switch!$D$60,$F$2:$G$43,2,FALSE)+ROW()-2))=Switch!$D$60,INDIRECT(\"a\" & (VLOOKUP(Switch!$D$60,$F$2:$G$43,2,FALSE)+ROW()-2)),\"\")","v":{"$error":"#N/A"}},{"$f":"IF(INDIRECT(\"c\" & (VLOOKUP(Switch!$D$61,$F$2:$G$43,2,FALSE)+ROW()-2))=Switch!$D$61,INDIRECT(\"a\" & (VLOOKUP(Switch!$D$61,$F$2:$G$43,2,FALSE)+ROW()-2)),\"\")","v":{"$error":"#N/A"}},{"$f":"IF(INDIRECT(\"c\" & (VLOOKUP(Switch!$D$62,$F$2:$G$43,2,FALSE)+ROW()-2))=Switch!$D$62,INDIRECT(\"a\" & (VLOOKUP(Switch!$D$62,$F$2:$G$43,2,FALSE)+ROW()-2)),\"\")","v":{"$error":"#N/A"}},{"$f":"IF(INDIRECT(\"c\" & (VLOOKUP(Switch!$D$63,$F$2:$G$43,2,FALSE)+ROW()-2))=Switch!$D$63,INDIRECT(\"a\" & (VLOOKUP(Switch!$D$63,$F$2:$G$43,2,FALSE)+ROW()-2)),\"\")","v":{"$error":"#N/A"}},{"$f":"IF(INDIRECT(\"c\" & (VLOOKUP(Switch!$D$64,$F$2:$G$43,2,FALSE)+ROW()-2))=Switch!$D$64,INDIRECT(\"a\" & (VLOOKUP(Switch!$D$64,$F$2:$G$43,2,FALSE)+ROW()-2)),\"\")","v":{"$error":"#N/A"}},{"$f":"IF(INDIRECT(\"c\" & (VLOOKUP(Switch!$D$65,$F$2:$G$43,2,FALSE)+ROW()-2))=Switch!$D$65,INDIRECT(\"a\" & (VLOOKUP(Switch!$D$65,$F$2:$G$43,2,FALSE)+ROW()-2)),\"\")","v":{"$error":"#N/A"}},{"$f":"IF(INDIRECT(\"c\" & (VLOOKUP(Switch!$D$66,$F$2:$G$43,2,FALSE)+ROW()-2))=Switch!$D$66,INDIRECT(\"a\" & (VLOOKUP(Switch!$D$66,$F$2:$G$43,2,FALSE)+ROW()-2)),\"\")","v":{"$error":"#N/A"}}]
[null,null,null,{"$f":"ROW()","v":599},null,null,{"$f":"VLOOKUP(F599,$C$2:$D$637,2,FALSE)","v":{"$error":"#N/A"}},{"$f":"IF(INDIRECT(\"c\" & (VLOOKUP(Switch!$D$26,$F$2:$G$43,2,FALSE)+ROW()-2))=Switch!$D$26,INDIRECT(\"a\" & (VLOOKUP(Switch!$D$26,$F$2:$G$43,2,FALSE)+ROW()-2)),\"\")","v":{"$error":"#N/A"}},{"$f":"IF(INDIRECT(\"c\" & (VLOOKUP(Switch!$D$27,$F$2:$G$43,2,FALSE)+ROW()-2))=Switch!$D$27,INDIRECT(\"a\" & (VLOOKUP(Switch!$D$27,$F$2:$G$43,2,FALSE)+ROW()-2)),\"\")","v":{"$error":"#N/A"}},{"$f":"IF(INDIRECT(\"c\" & (VLOOKUP(Switch!$D$28,$F$2:$G$43,2,FALSE)+ROW()-2))=Switch!$D$28,INDIRECT(\"a\" & (VLOOKUP(Switch!$D$28,$F$2:$G$43,2,FALSE)+ROW()-2)),\"\")","v":{"$error":"#N/A"}},{"$f":"IF(INDIRECT(\"c\" & (VLOOKUP(Switch!$D$29,$F$2:$G$43,2,FALSE)+ROW()-2))=Switch!$D$29,INDIRECT(\"a\" & (VLOOKUP(Switch!$D$29,$F$2:$G$43,2,FALSE)+ROW()-2)),\"\")","v":{"$error":"#N/A"}},{"$f":"IF(INDIRECT(\"c\" & (VLOOKUP(Switch!$D$30,$F$2:$G$43,2,FALSE)+ROW()-2))=Switch!$D$30,INDIRECT(\"a\" & (VLOOKUP(Switch!$D$30,$F$2:$G$43,2,FALSE)+ROW()-2)),\"\")","v":{"$error":"#N/A"}},{"$f":"IF(INDIRECT(\"c\" & (VLOOKUP(Switch!$D$31,$F$2:$G$43,2,FALSE)+ROW()-2))=Switch!$D$31,INDIRECT(\"a\" & (VLOOKUP(Switch!$D$31,$F$2:$G$43,2,FALSE)+ROW()-2)),\"\")","v":{"$error":"#N/A"}},{"$f":"IF(INDIRECT(\"c\" & (VLOOKUP(Switch!$D$32,$F$2:$G$43,2,FALSE)+ROW()-2))=Switch!$D$32,INDIRECT(\"a\" & (VLOOKUP(Switch!$D$32,$F$2:$G$43,2,FALSE)+ROW()-2)),\"\")","v":{"$error":"#N/A"}},{"$f":"IF(INDIRECT(\"c\" & (VLOOKUP(Switch!$D$33,$F$2:$G$43,2,FALSE)+ROW()-2))=Switch!$D$33,INDIRECT(\"a\" & (VLOOKUP(Switch!$D$33,$F$2:$G$43,2,FALSE)+ROW()-2)),\"\")","v":{"$error":"#N/A"}},{"$f":"IF(INDIRECT(\"c\" & (VLOOKUP(Switch!$D$34,$F$2:$G$43,2,FALSE)+ROW()-2))=Switch!$D$34,INDIRECT(\"a\" & (VLOOKUP(Switch!$D$34,$F$2:$G$43,2,FALSE)+ROW()-2)),\"\")","v":{"$error":"#N/A"}},{"$f":"IF(INDIRECT(\"c\" & (VLOOKUP(Switch!$D$35,$F$2:$G$43,2,FALSE)+ROW()-2))=Switch!$D$35,INDIRECT(\"a\" & (VLOOKUP(Switch!$D$35,$F$2:$G$43,2,FALSE)+ROW()-2)),\"\")","v":{"$error":"#N/A"}},{"$f":"IF(INDIRECT(\"c\" & (VLOOKUP(Switch!$D$36,$F$2:$G$43,2,FALSE)+ROW()-2))=Switch!$D$36,INDIRECT(\"a\" & (VLOOKUP(Switch!$D$36,$F$2:$G$43,2,FALSE)+ROW()-2)),\"\")","v":{"$error":"#N/A"}},{"$f":"IF(INDIRECT(\"c\" & (VLOOKUP(Switch!$D$37,$F$2:$G$43,2,FALSE)+ROW()-2))=Switch!$D$37,INDIRECT(\"a\" & (VLOOKUP(Switch!$D$37,$F$2:$G$43,2,FALSE)+ROW()-2)),\"\")","v":{"$error":"#N/A"}},{"$f":"IF(INDIRECT(\"c\" & (VLOOKUP(Switch!$D$38,$F$2:$G$43,2,FALSE)+ROW()-2))=Switch!$D$38,INDIRECT(\"a\" & (VLOOKUP(Switch!$D$38,$F$2:$G$43,2,FALSE)+ROW()-2)),\"\")","v":{"$error":"#N/A"}},{"$f":"IF(INDIRECT(\"c\" & (VLOOKUP(Switch!$D$39,$F$2:$G$43,2,FALSE)+ROW()-2))=Switch!$D$39,INDIRECT(\"a\" & (VLOOKUP(Switch!$D$39,$F$2:$G$43,2,FALSE)+ROW()-2)),\"\")","v":{"$error":"#N/A"}},{"$f":"IF(INDIRECT(\"c\" & (VLOOKUP(Switch!$D$40,$F$2:$G$43,2,FALSE)+ROW()-2))=Switch!$D$40,INDIRECT(\"a\" & (VLOOKUP(Switch!$D$40,$F$2:$G$43,2,FALSE)+ROW()-2)),\"\")","v":{"$error":"#N/A"}},{"$f":"IF(INDIRECT(\"c\" & (VLOOKUP(Switch!$D$52,$F$2:$G$43,2,FALSE)+ROW()-2))=Switch!$D$52,INDIRECT(\"a\" & (VLOOKUP(Switch!$D$52,$F$2:$G$43,2,FALSE)+ROW()-2)),\"\")","v":{"$error":"#N/A"}},{"$f":"IF(INDIRECT(\"c\" & (VLOOKUP(Switch!$D$53,$F$2:$G$43,2,FALSE)+ROW()-2))=Switch!$D$53,INDIRECT(\"a\" & (VLOOKUP(Switch!$D$53,$F$2:$G$43,2,FALSE)+ROW()-2)),\"\")","v":{"$error":"#N/A"}},{"$f":"IF(INDIRECT(\"c\" & (VLOOKUP(Switch!$D$54,$F$2:$G$43,2,FALSE)+ROW()-2))=Switch!$D$54,INDIRECT(\"a\" & (VLOOKUP(Switch!$D$54,$F$2:$G$43,2,FALSE)+ROW()-2)),\"\")","v":{"$error":"#N/A"}},{"$f":"IF(INDIRECT(\"c\" & (VLOOKUP(Switch!$D$55,$F$2:$G$43,2,FALSE)+ROW()-2))=Switch!$D$55,INDIRECT(\"a\" & (VLOOKUP(Switch!$D$55,$F$2:$G$43,2,FALSE)+ROW()-2)),\"\")","v":{"$error":"#N/A"}},{"$f":"IF(INDIRECT(\"c\" & (VLOOKUP(Switch!$D$56,$F$2:$G$43,2,FALSE)+ROW()-2))=Switch!$D$56,INDIRECT(\"a\" & (VLOOKUP(Switch!$D$56,$F$2:$G$43,2,FALSE)+ROW()-2)),\"\")","v":{"$error":"#N/A"}},{"$f":"IF(INDIRECT(\"c\" & (VLOOKUP(Switch!$D$57,$F$2:$G$43,2,FALSE)+ROW()-2))=Switch!$D$57,INDIRECT(\"a\" & (VLOOKUP(Switch!$D$57,$F$2:$G$43,2,FALSE)+ROW()-2)),\"\")","v":{"$error":"#N/A"}},{"$f":"IF(INDIRECT(\"c\" & (VLOOKUP(Switch!$D$58,$F$2:$G$43,2,FALSE)+ROW()-2))=Switch!$D$58,INDIRECT(\"a\" & (VLOOKUP(Switch!$D$58,$F$2:$G$43,2,FALSE)+ROW()-2)),\"\")","v":{"$error":"#N/A"}},{"$f":"IF(INDIRECT(\"c\" & (VLOOKUP(Switch!$D$59,$F$2:$G$43,2,FALSE)+ROW()-2))=Switch!$D$59,INDIRECT(\"a\" & (VLOOKUP(Switch!$D$59,$F$2:$G$43,2,FALSE)+ROW()-2)),\"\")","v":{"$error":"#N/A"}},{"$f":"IF(INDIRECT(\"c\" & (VLOOKUP(Switch!$D$60,$F$2:$G$43,2,FALSE)+ROW()-2))=Switch!$D$60,INDIRECT(\"a\" & (VLOOKUP(Switch!$D$60,$F$2:$G$43,2,FALSE)+ROW()-2)),\"\")","v":{"$error":"#N/A"}},{"$f":"IF(INDIRECT(\"c\" & (VLOOKUP(Switch!$D$61,$F$2:$G$43,2,FALSE)+ROW()-2))=Switch!$D$61,INDIRECT(\"a\" & (VLOOKUP(Switch!$D$61,$F$2:$G$43,2,FALSE)+ROW()-2)),\"\")","v":{"$error":"#N/A"}},{"$f":"IF(INDIRECT(\"c\" & (VLOOKUP(Switch!$D$62,$F$2:$G$43,2,FALSE)+ROW()-2))=Switch!$D$62,INDIRECT(\"a\" & (VLOOKUP(Switch!$D$62,$F$2:$G$43,2,FALSE)+ROW()-2)),\"\")","v":{"$error":"#N/A"}},{"$f":"IF(INDIRECT(\"c\" & (VLOOKUP(Switch!$D$63,$F$2:$G$43,2,FALSE)+ROW()-2))=Switch!$D$63,INDIRECT(\"a\" & (VLOOKUP(Switch!$D$63,$F$2:$G$43,2,FALSE)+ROW()-2)),\"\")","v":{"$error":"#N/A"}},{"$f":"IF(INDIRECT(\"c\" & (VLOOKUP(Switch!$D$64,$F$2:$G$43,2,FALSE)+ROW()-2))=Switch!$D$64,INDIRECT(\"a\" & (VLOOKUP(Switch!$D$64,$F$2:$G$43,2,FALSE)+ROW()-2)),\"\")","v":{"$error":"#N/A"}},{"$f":"IF(INDIRECT(\"c\" & (VLOOKUP(Switch!$D$65,$F$2:$G$43,2,FALSE)+ROW()-2))=Switch!$D$65,INDIRECT(\"a\" & (VLOOKUP(Switch!$D$65,$F$2:$G$43,2,FALSE)+ROW()-2)),\"\")","v":{"$error":"#N/A"}},{"$f":"IF(INDIRECT(\"c\" & (VLOOKUP(Switch!$D$66,$F$2:$G$43,2,FALSE)+ROW()-2))=Switch!$D$66,INDIRECT(\"a\" & (VLOOKUP(Switch!$D$66,$F$2:$G$43,2,FALSE)+ROW()-2)),\"\")","v":{"$error":"#N/A"}}]
[null,null,null,{"$f":"ROW()","v":600},null,null,{"$f":"VLOOKUP(F600,$C$2:$D$637,2,FALSE)","v":{"$error":"#N/A"}},{"$f":"IF(INDIRECT(\"c\" & (VLOOKUP(Switch!$D$26,$F$2:$G$43,2,FALSE)+ROW()-2))=Switch!$D$26,INDIRECT(\"a\" & (VLOOKUP(Switch!$D$26,$F$2:$G$43,2,FALSE)+ROW()-2)),\"\")","v":{"$error":"#N/A"}},{"$f":"IF(INDIRECT(\"c\" & (VLOOKUP(Switch!$D$27,$F$2:$G$43,2,FALSE)+ROW()-2))=Switch!$D$27,INDIRECT(\"a\" & (VLOOKUP(Switch!$D$27,$F$2:$G$43,2,FALSE)+ROW()-2)),\"\")","v":{"$error":"#N/A"}},{"$f":"IF(INDIRECT(\"c\" & (VLOOKUP(Switch!$D$28,$F$2:$G$43,2,FALSE)+ROW()-2))=Switch!$D$28,INDIRECT(\"a\" & (VLOOKUP(Switch!$D$28,$F$2:$G$43,2,FALSE)+ROW()-2)),\"\")","v":{"$error":"#N/A"}},{"$f":"IF(INDIRECT(\"c\" & (VLOOKUP(Switch!$D$29,$F$2:$G$43,2,FALSE)+ROW()-2))=Switch!$D$29,INDIRECT(\"a\" & (VLOOKUP(Switch!$D$29,$F$2:$G$43,2,FALSE)+ROW()-2)),\"\")","v":{"$error":"#N/A"}},{"$f":"IF(INDIRECT(\"c\" & (VLOOKUP(Switch!$D$30,$F$2:$G$43,2,FALSE)+ROW()-2))=Switch!$D$30,INDIRECT(\"a\" & (VLOOKUP(Switch!$D$30,$F$2:$G$43,2,FALSE)+ROW()-2)),\"\")","v":{"$error":"#N/A"}},{"$f":"IF(INDIRECT(\"c\" & (VLOOKUP(Switch!$D$31,$F$2:$G$43,2,FALSE)+ROW()-2))=Switch!$D$31,INDIRECT(\"a\" & (VLOOKUP(Switch!$D$31,$F$2:$G$43,2,FALSE)+ROW()-2)),\"\")","v":{"$error":"#N/A"}},{"$f":"IF(INDIRECT(\"c\" & (VLOOKUP(Switch!$D$32,$F$2:$G$43,2,FALSE)+ROW()-2))=Switch!$D$32,INDIRECT(\"a\" & (VLOOKUP(Switch!$D$32,$F$2:$G$43,2,FALSE)+ROW()-2)),\"\")","v":{"$error":"#N/A"}},{"$f":"IF(INDIRECT(\"c\" & (VLOOKUP(Switch!$D$33,$F$2:$G$43,2,FALSE)+ROW()-2))=Switch!$D$33,INDIRECT(\"a\" & (VLOOKUP(Switch!$D$33,$F$2:$G$43,2,FALSE)+ROW()-2)),\"\")","v":{"$error":"#N/A"}},{"$f":"IF(INDIRECT(\"c\" & (VLOOKUP(Switch!$D$34,$F$2:$G$43,2,FALSE)+ROW()-2))=Switch!$D$34,INDIRECT(\"a\" & (VLOOKUP(Switch!$D$34,$F$2:$G$43,2,FALSE)+ROW()-2)),\"\")","v":{"$error":"#N/A"}},{"$f":"IF(INDIRECT(\"c\" & (VLOOKUP(Switch!$D$35,$F$2:$G$43,2,FALSE)+ROW()-2))=Switch!$D$35,INDIRECT(\"a\" & (VLOOKUP(Switch!$D$35,$F$2:$G$43,2,FALSE)+ROW()-2)),\"\")","v":{"$error":"#N/A"}},{"$f":"IF(INDIRECT(\"c\" & (VLOOKUP(Switch!$D$36,$F$2:$G$43,2,FALSE)+ROW()-2))=Switch!$D$36,INDIRECT(\"a\" & (VLOOKUP(Switch!$D$36,$F$2:$G$43,2,FALSE)+ROW()-2)),\"\")","v":{"$error":"#N/A"}},{"$f":"IF(INDIRECT(\"c\" & (VLOOKUP(Switch!$D$37,$F$2:$G$43,2,FALSE)+ROW()-2))=Switch!$D$37,INDIRECT(\"a\" & (VLOOKUP(Switch!$D$37,$F$2:$G$43,2,FALSE)+ROW()-2)),\"\")","v":{"$error":"#N/A"}},{"$f":"IF(INDIRECT(\"c\" & (VLOOKUP(Switch!$D$38,$F$2:$G$43,2,FALSE)+ROW()-2))=Switch!$D$38,INDIRECT(\"a\" & (VLOOKUP(Switch!$D$38,$F$2:$G$43,2,FALSE)+ROW()-2)),\"\")","v":{"$error":"#N/A"}},{"$f":"IF(INDIRECT(\"c\" & (VLOOKUP(Switch!$D$39,$F$2:$G$43,2,FALSE)+ROW()-2))=Switch!$D$39,INDIRECT(\"a\" & (VLOOKUP(Switch!$D$39,$F$2:$G$43,2,FALSE)+ROW()-2)),\"\")","v":{"$error":"#N/A"}},{"$f":"IF(INDIRECT(\"c\" & (VLOOKUP(Switch!$D$40,$F$2:$G$43,2,FALSE)+ROW()-2))=Switch!$D$40,INDIRECT(\"a\" & (VLOOKUP(Switch!$D$40,$F$2:$G$43,2,FALSE)+ROW()-2)),\"\")","v":{"$error":"#N/A"}},{"$f":"IF(INDIRECT(\"c\" & (VLOOKUP(Switch!$D$52,$F$2:$G$43,2,FALSE)+ROW()-2))=Switch!$D$52,INDIRECT(\"a\" & (VLOOKUP(Switch!$D$52,$F$2:$G$43,2,FALSE)+ROW()-2)),\"\")","v":{"$error":"#N/A"}},{"$f":"IF(INDIRECT(\"c\" & (VLOOKUP(Switch!$D$53,$F$2:$G$43,2,FALSE)+ROW()-2))=Switch!$D$53,INDIRECT(\"a\" & (VLOOKUP(Switch!$D$53,$F$2:$G$43,2,FALSE)+ROW()-2)),\"\")","v":{"$error":"#N/A"}},{"$f":"IF(INDIRECT(\"c\" & (VLOOKUP(Switch!$D$54,$F$2:$G$43,2,FALSE)+ROW()-2))=Switch!$D$54,INDIRECT(\"a\" & (VLOOKUP(Switch!$D$54,$F$2:$G$43,2,FALSE)+ROW()-2)),\"\")","v":{"$error":"#N/A"}},{"$f":"IF(INDIRECT(\"c\" & (VLOOKUP(Switch!$D$55,$F$2:$G$43,2,FALSE)+ROW()-2))=Switch!$D$55,INDIRECT(\"a\" & (VLOOKUP(Switch!$D$55,$F$2:$G$43,2,FALSE)+ROW()-2)),\"\")","v":{"$error":"#N/A"}},{"$f":"IF(INDIRECT(\"c\" & (VLOOKUP(Switch!$D$56,$F$2:$G$43,2,FALSE)+ROW()-2))=Switch!$D$56,INDIRECT(\"a\" & (VLOOKUP(Switch!$D$56,$F$2:$G$43,2,FALSE)+ROW()-2)),\"\")","v":{"$error":"#N/A"}},{"$f":"IF(INDIRECT(\"c\" & (VLOOKUP(Switch!$D$57,$F$2:$G$43,2,FALSE)+ROW()-2))=Switch!$D$57,INDIRECT(\"a\" & (VLOOKUP(Switch!$D$57,$F$2:$G$43,2,FALSE)+ROW()-2)),\"\")","v":{"$error":"#N/A"}},{"$f":"IF(INDIRECT(\"c\" & (VLOOKUP(Switch!$D$58,$F$2:$G$43,2,FALSE)+ROW()-2))=Switch!$D$58,INDIRECT(\"a\" & (VLOOKUP(Switch!$D$58,$F$2:$G$43,2,FALSE)+ROW()-2)),\"\")","v":{"$error":"#N/A"}},{"$f":"IF(INDIRECT(\"c\" & (VLOOKUP(Switch!$D$59,$F$2:$G$43,2,FALSE)+ROW()-2))=Switch!$D$59,INDIRECT(\"a\" & (VLOOKUP(Switch!$D$59,$F$2:$G$43,2,FALSE)+ROW()-2)),\"\")","v":{"$error":"#N/A"}},{"$f":"IF(INDIRECT(\"c\" & (VLOOKUP(Switch!$D$60,$F$2:$G$43,2,FALSE)+ROW()-2))=Switch!$D$60,INDIRECT(\"a\" & (VLOOKUP(Switch!$D$60,$F$2:$G$43,2,FALSE)+ROW()-2)),\"\")","v":{"$error":"#N/A"}},{"$f":"IF(INDIRECT(\"c\" & (VLOOKUP(Switch!$D$61,$F$2:$G$43,2,FALSE)+ROW()-2))=Switch!$D$61,INDIRECT(\"a\" & (VLOOKUP(Switch!$D$61,$F$2:$G$43,2,FALSE)+ROW()-2)),\"\")","v":{"$error":"#N/A"}},{"$f":"IF(INDIRECT(\"c\" & (VLOOKUP(Switch!$D$62,$F$2:$G$43,2,FALSE)+ROW()-2))=Switch!$D$62,INDIRECT(\"a\" & (VLOOKUP(Switch!$D$62,$F$2:$G$43,2,FALSE)+ROW()-2)),\"\")","v":{"$error":"#N/A"}},{"$f":"IF(INDIRECT(\"c\" & (VLOOKUP(Switch!$D$63,$F$2:$G$43,2,FALSE)+ROW()-2))=Switch!$D$63,INDIRECT(\"a\" & (VLOOKUP(Switch!$D$63,$F$2:$G$43,2,FALSE)+ROW()-2)),\"\")","v":{"$error":"#N/A"}},{"$f":"IF(INDIRECT(\"c\" & (VLOOKUP(Switch!$D$64,$F$2:$G$43,2,FALSE)+ROW()-2))=Switch!$D$64,INDIRECT(\"a\" & (VLOOKUP(Switch!$D$64,$F$2:$G$43,2,FALSE)+ROW()-2)),\"\")","v":{"$error":"#N/A"}},{"$f":"IF(INDIRECT(\"c\" & (VLOOKUP(Switch!$D$65,$F$2:$G$43,2,FALSE)+ROW()-2))=Switch!$D$65,INDIRECT(\"a\" & (VLOOKUP(Switch!$D$65,$F$2:$G$43,2,FALSE)+ROW()-2)),\"\")","v":{"$error":"#N/A"}},{"$f":"IF(INDIRECT(\"c\" & (VLOOKUP(Switch!$D$66,$F$2:$G$43,2,FALSE)+ROW()-2))=Switch!$D$66,INDIRECT(\"a\" & (VLOOKUP(Switch!$D$66,$F$2:$G$43,2,FALSE)+ROW()-2)),\"\")","v":{"$error":"#N/A"}}]
[null,null,null,{"$f":"ROW()","v":601},null,null,{"$f":"VLOOKUP(F601,$C$2:$D$637,2,FALSE)","v":{"$error":"#N/A"}},{"$f":"IF(INDIRECT(\"c\" & (VLOOKUP(Switch!$D$26,$F$2:$G$43,2,FALSE)+ROW()-2))=Switch!$D$26,INDIRECT(\"a\" & (VLOOKUP(Switch!$D$26,$F$2:$G$43,2,FALSE)+ROW()-2)),\"\")","v":{"$error":"#N/A"}},{"$f":"IF(INDIRECT(\"c\" & (VLOOKUP(Switch!$D$27,$F$2:$G$43,2,FALSE)+ROW()-2))=Switch!$D$27,INDIRECT(\"a\" & (VLOOKUP(Switch!$D$27,$F$2:$G$43,2,FALSE)+ROW()-2)),\"\")","v":{"$error":"#N/A"}},{"$f":"IF(INDIRECT(\"c\" & (VLOOKUP(Switch!$D$28,$F$2:$G$43,2,FALSE)+ROW()-2))=Switch!$D$28,INDIRECT(\"a\" & (VLOOKUP(Switch!$D$28,$F$2:$G$43,2,FALSE)+ROW()-2)),\"\")","v":{"$error":"#N/A"}},{"$f":"IF(INDIRECT(\"c\" & (VLOOKUP(Switch!$D$29,$F$2:$G$43,2,FALSE)+ROW()-2))=Switch!$D$29,INDIRECT(\"a\" & (VLOOKUP(Switch!$D$29,$F$2:$G$43,2,FALSE)+ROW()-2)),\"\")","v":{"$error":"#N/A"}},{"$f":"IF(INDIRECT(\"c\" & (VLOOKUP(Switch!$D$30,$F$2:$G$43,2,FALSE)+ROW()-2))=Switch!$D$30,INDIRECT(\"a\" & (VLOOKUP(Switch!$D$30,$F$2:$G$43,2,FALSE)+ROW()-2)),\"\")","v":{"$error":"#N/A"}},{"$f":"IF(INDIRECT(\"c\" & (VLOOKUP(Switch!$D$31,$F$2:$G$43,2,FALSE)+ROW()-2))=Switch!$D$31,INDIRECT(\"a\" & (VLOOKUP(Switch!$D$31,$F$2:$G$43,2,FALSE)+ROW()-2)),\"\")","v":{"$error":"#N/A"}},{"$f":"IF(INDIRECT(\"c\" & (VLOOKUP(Switch!$D$32,$F$2:$G$43,2,FALSE)+ROW()-2))=Switch!$D$32,INDIRECT(\"a\" & (VLOOKUP(Switch!$D$32,$F$2:$G$43,2,FALSE)+ROW()-2)),\"\")","v":{"$error":"#N/A"}},{"$f":"IF(INDIRECT(\"c\" & (VLOOKUP(Switch!$D$33,$F$2:$G$43,2,FALSE)+ROW()-2))=Switch!$D$33,INDIRECT(\"a\" & (VLOOKUP(Switch!$D$33,$F$2:$G$43,2,FALSE)+ROW()-2)),\"\")","v":{"$error":"#N/A"}},{"$f":"IF(INDIRECT(\"c\" & (VLOOKUP(Switch!$D$34,$F$2:$G$43,2,FALSE)+ROW()-2))=Switch!$D$34,INDIRECT(\"a\" & (VLOOKUP(Switch!$D$34,$F$2:$G$43,2,FALSE)+ROW()-2)),\"\")","v":{"$error":"#N/A"}},{"$f":"IF(INDIRECT(\"c\" & (VLOOKUP(Switch!$D$35,$F$2:$G$43,2,FALSE)+ROW()-2))=Switch!$D$35,INDIRECT(\"a\" & (VLOOKUP(Switch!$D$35,$F$2:$G$43,2,FALSE)+ROW()-2)),\"\")","v":{"$error":"#N/A"}},{"$f":"IF(INDIRECT(\"c\" & (VLOOKUP(Switch!$D$36,$F$2:$G$43,2,FALSE)+ROW()-2))=Switch!$D$36,INDIRECT(\"a\" & (VLOOKUP(Switch!$D$36,$F$2:$G$43,2,FALSE)+ROW()-2)),\"\")","v":{"$error":"#N/A"}},{"$f":"IF(INDIRECT(\"c\" & (VLOOKUP(Switch!$D$37,$F$2:$G$43,2,FALSE)+ROW()-2))=Switch!$D$37,INDIRECT(\"a\" & (VLOOKUP(Switch!$D$37,$F$2:$G$43,2,FALSE)+ROW()-2)),\"\")","v":{"$error":"#N/A"}},{"$f":"IF(INDIRECT(\"c\" & (VLOOKUP(Switch!$D$38,$F$2:$G$43,2,FALSE)+ROW()-2))=Switch!$D$38,INDIRECT(\"a\" & (VLOOKUP(Switch!$D$38,$F$2:$G$43,2,FALSE)+ROW()-2)),\"\")","v":{"$error":"#N/A"}},{"$f":"IF(INDIRECT(\"c\" & (VLOOKUP(Switch!$D$39,$F$2:$G$43,2,FALSE)+ROW()-2))=Switch!$D$39,INDIRECT(\"a\" & (VLOOKUP(Switch!$D$39,$F$2:$G$43,2,FALSE)+ROW()-2)),\"\")","v":{"$error":"#N/A"}},{"$f":"IF(INDIRECT(\"c\" & (VLOOKUP(Switch!$D$40,$F$2:$G$43,2,FALSE)+ROW()-2))=Switch!$D$40,INDIRECT(\"a\" & (VLOOKUP(Switch!$D$40,$F$2:$G$43,2,FALSE)+ROW()-2)),\"\")","v":{"$error":"#N/A"}},{"$f":"IF(INDIRECT(\"c\" & (VLOOKUP(Switch!$D$52,$F$2:$G$43,2,FALSE)+ROW()-2))=Switch!$D$52,INDIRECT(\"a\" & (VLOOKUP(Switch!$D$52,$F$2:$G$43,2,FALSE)+ROW()-2)),\"\")","v":{"$error":"#N/A"}},{"$f":"IF(INDIRECT(\"c\" & (VLOOKUP(Switch!$D$53,$F$2:$G$43,2,FALSE)+ROW()-2))=Switch!$D$53,INDIRECT(\"a\" & (VLOOKUP(Switch!$D$53,$F$2:$G$43,2,FALSE)+ROW()-2)),\"\")","v":{"$error":"#N/A"}},{"$f":"IF(INDIRECT(\"c\" & (VLOOKUP(Switch!$D$54,$F$2:$G$43,2,FALSE)+ROW()-2))=Switch!$D$54,INDIRECT(\"a\" & (VLOOKUP(Switch!$D$54,$F$2:$G$43,2,FALSE)+ROW()-2)),\"\")","v":{"$error":"#N/A"}},{"$f":"IF(INDIRECT(\"c\" & (VLOOKUP(Switch!$D$55,$F$2:$G$43,2,FALSE)+ROW()-2))=Switch!$D$55,INDIRECT(\"a\" & (VLOOKUP(Switch!$D$55,$F$2:$G$43,2,FALSE)+ROW()-2)),\"\")","v":{"$error":"#N/A"}},{"$f":"IF(INDIRECT(\"c\" & (VLOOKUP(Switch!$D$56,$F$2:$G$43,2,FALSE)+ROW()-2))=Switch!$D$56,INDIRECT(\"a\" & (VLOOKUP(Switch!$D$56,$F$2:$G$43,2,FALSE)+ROW()-2)),\"\")","v":{"$error":"#N/A"}},{"$f":"IF(INDIRECT(\"c\" & (VLOOKUP(Switch!$D$57,$F$2:$G$43,2,FALSE)+ROW()-2))=Switch!$D$57,INDIRECT(\"a\" & (VLOOKUP(Switch!$D$57,$F$2:$G$43,2,FALSE)+ROW()-2)),\"\")","v":{"$error":"#N/A"}},{"$f":"IF(INDIRECT(\"c\" & (VLOOKUP(Switch!$D$58,$F$2:$G$43,2,FALSE)+ROW()-2))=Switch!$D$58,INDIRECT(\"a\" & (VLOOKUP(Switch!$D$58,$F$2:$G$43,2,FALSE)+ROW()-2)),\"\")","v":{"$error":"#N/A"}},{"$f":"IF(INDIRECT(\"c\" & (VLOOKUP(Switch!$D$59,$F$2:$G$43,2,FALSE)+ROW()-2))=Switch!$D$59,INDIRECT(\"a\" & (VLOOKUP(Switch!$D$59,$F$2:$G$43,2,FALSE)+ROW()-2)),\"\")","v":{"$error":"#N/A"}},{"$f":"IF(INDIRECT(\"c\" & (VLOOKUP(Switch!$D$60,$F$2:$G$43,2,FALSE)+ROW()-2))=Switch!$D$60,INDIRECT(\"a\" & (VLOOKUP(Switch!$D$60,$F$2:$G$43,2,FALSE)+ROW()-2)),\"\")","v":{"$error":"#N/A"}},{"$f":"IF(INDIRECT(\"c\" & (VLOOKUP(Switch!$D$61,$F$2:$G$43,2,FALSE)+ROW()-2))=Switch!$D$61,INDIRECT(\"a\" & (VLOOKUP(Switch!$D$61,$F$2:$G$43,2,FALSE)+ROW()-2)),\"\")","v":{"$error":"#N/A"}},{"$f":"IF(INDIRECT(\"c\" & (VLOOKUP(Switch!$D$62,$F$2:$G$43,2,FALSE)+ROW()-2))=Switch!$D$62,INDIRECT(\"a\" & (VLOOKUP(Switch!$D$62,$F$2:$G$43,2,FALSE)+ROW()-2)),\"\")","v":{"$error":"#N/A"}},{"$f":"IF(INDIRECT(\"c\" & (VLOOKUP(Switch!$D$63,$F$2:$G$43,2,FALSE)+ROW()-2))=Switch!$D$63,INDIRECT(\"a\" & (VLOOKUP(Switch!$D$63,$F$2:$G$43,2,FALSE)+ROW()-2)),\"\")","v":{"$error":"#N/A"}},{"$f":"IF(INDIRECT(\"c\" & (VLOOKUP(Switch!$D$64,$F$2:$G$43,2,FALSE)+ROW()-2))=Switch!$D$64,INDIRECT(\"a\" & (VLOOKUP(Switch!$D$64,$F$2:$G$43,2,FALSE)+ROW()-2)),\"\")","v":{"$error":"#N/A"}},{"$f":"IF(INDIRECT(\"c\" & (VLOOKUP(Switch!$D$65,$F$2:$G$43,2,FALSE)+ROW()-2))=Switch!$D$65,INDIRECT(\"a\" & (VLOOKUP(Switch!$D$65,$F$2:$G$43,2,FALSE)+ROW()-2)),\"\")","v":{"$error":"#N/A"}},{"$f":"IF(INDIRECT(\"c\" & (VLOOKUP(Switch!$D$66,$F$2:$G$43,2,FALSE)+ROW()-2))=Switch!$D$66,INDIRECT(\"a\" & (VLOOKUP(Switch!$D$66,$F$2:$G$43,2,FALSE)+ROW()-2)),\"\")","v":{"$error":"#N/A"}}]
[null,null,null,{"$f":"ROW()","v":602},null,null,{"$f":"VLOOKUP(F602,$C$2:$D$637,2,FALSE)","v":{"$error":"#N/A"}},{"$f":"IF(INDIRECT(\"c\" & (VLOOKUP(Switch!$D$26,$F$2:$G$43,2,FALSE)+ROW()-2))=Switch!$D$26,INDIRECT(\"a\" & (VLOOKUP(Switch!$D$26,$F$2:$G$43,2,FALSE)+ROW()-2)),\"\")","v":{"$error":"#N/A"}},{"$f":"IF(INDIRECT(\"c\" & (VLOOKUP(Switch!$D$27,$F$2:$G$43,2,FALSE)+ROW()-2))=Switch!$D$27,INDIRECT(\"a\" & (VLOOKUP(Switch!$D$27,$F$2:$G$43,2,FALSE)+ROW()-2)),\"\")","v":{"$error":"#N/A"}},{"$f":"IF(INDIRECT(\"c\" & (VLOOKUP(Switch!$D$28,$F$2:$G$43,2,FALSE)+ROW()-2))=Switch!$D$28,INDIRECT(\"a\" & (VLOOKUP(Switch!$D$28,$F$2:$G$43,2,FALSE)+ROW()-2)),\"\")","v":{"$error":"#N/A"}},{"$f":"IF(INDIRECT(\"c\" & (VLOOKUP(Switch!$D$29,$F$2:$G$43,2,FALSE)+ROW()-2))=Switch!$D$29,INDIRECT(\"a\" & (VLOOKUP(Switch!$D$29,$F$2:$G$43,2,FALSE)+ROW()-2)),\"\")","v":{"$error":"#N/A"}},{"$f":"IF(INDIRECT(\"c\" & (VLOOKUP(Switch!$D$30,$F$2:$G$43,2,FALSE)+ROW()-2))=Switch!$D$30,INDIRECT(\"a\" & (VLOOKUP(Switch!$D$30,$F$2:$G$43,2,FALSE)+ROW()-2)),\"\")","v":{"$error":"#N/A"}},{"$f":"IF(INDIRECT(\"c\" & (VLOOKUP(Switch!$D$31,$F$2:$G$43,2,FALSE)+ROW()-2))=Switch!$D$31,INDIRECT(\"a\" & (VLOOKUP(Switch!$D$31,$F$2:$G$43,2,FALSE)+ROW()-2)),\"\")","v":{"$error":"#N/A"}},{"$f":"IF(INDIRECT(\"c\" & (VLOOKUP(Switch!$D$32,$F$2:$G$43,2,FALSE)+ROW()-2))=Switch!$D$32,INDIRECT(\"a\" & (VLOOKUP(Switch!$D$32,$F$2:$G$43,2,FALSE)+ROW()-2)),\"\")","v":{"$error":"#N/A"}},{"$f":"IF(INDIRECT(\"c\" & (VLOOKUP(Switch!$D$33,$F$2:$G$43,2,FALSE)+ROW()-2))=Switch!$D$33,INDIRECT(\"a\" & (VLOOKUP(Switch!$D$33,$F$2:$G$43,2,FALSE)+ROW()-2)),\"\")","v":{"$error":"#N/A"}},{"$f":"IF(INDIRECT(\"c\" & (VLOOKUP(Switch!$D$34,$F$2:$G$43,2,FALSE)+ROW()-2))=Switch!$D$34,INDIRECT(\"a\" & (VLOOKUP(Switch!$D$34,$F$2:$G$43,2,FALSE)+ROW()-2)),\"\")","v":{"$error":"#N/A"}},{"$f":"IF(INDIRECT(\"c\" & (VLOOKUP(Switch!$D$35,$F$2:$G$43,2,FALSE)+ROW()-2))=Switch!$D$35,INDIRECT(\"a\" & (VLOOKUP(Switch!$D$35,$F$2:$G$43,2,FALSE)+ROW()-2)),\"\")","v":{"$error":"#N/A"}},{"$f":"IF(INDIRECT(\"c\" & (VLOOKUP(Switch!$D$36,$F$2:$G$43,2,FALSE)+ROW()-2))=Switch!$D$36,INDIRECT(\"a\" & (VLOOKUP(Switch!$D$36,$F$2:$G$43,2,FALSE)+ROW()-2)),\"\")","v":{"$error":"#N/A"}},{"$f":"IF(INDIRECT(\"c\" & (VLOOKUP(Switch!$D$37,$F$2:$G$43,2,FALSE)+ROW()-2))=Switch!$D$37,INDIRECT(\"a\" & (VLOOKUP(Switch!$D$37,$F$2:$G$43,2,FALSE)+ROW()-2)),\"\")","v":{"$error":"#N/A"}},{"$f":"IF(INDIRECT(\"c\" & (VLOOKUP(Switch!$D$38,$F$2:$G$43,2,FALSE)+ROW()-2))=Switch!$D$38,INDIRECT(\"a\" & (VLOOKUP(Switch!$D$38,$F$2:$G$43,2,FALSE)+ROW()-2)),\"\")","v":{"$error":"#N/A"}},{"$f":"IF(INDIRECT(\"c\" & (VLOOKUP(Switch!$D$39,$F$2:$G$43,2,FALSE)+ROW()-2))=Switch!$D$39,INDIRECT(\"a\" & (VLOOKUP(Switch!$D$39,$F$2:$G$43,2,FALSE)+ROW()-2)),\"\")","v":{"$error":"#N/A"}},{"$f":"IF(INDIRECT(\"c\" & (VLOOKUP(Switch!$D$40,$F$2:$G$43,2,FALSE)+ROW()-2))=Switch!$D$40,INDIRECT(\"a\" & (VLOOKUP(Switch!$D$40,$F$2:$G$43,2,FALSE)+ROW()-2)),\"\")","v":{"$error":"#N/A"}},{"$f":"IF(INDIRECT(\"c\" & (VLOOKUP(Switch!$D$52,$F$2:$G$43,2,FALSE)+ROW()-2))=Switch!$D$52,INDIRECT(\"a\" & (VLOOKUP(Switch!$D$52,$F$2:$G$43,2,FALSE)+ROW()-2)),\"\")","v":{"$error":"#N/A"}},{"$f":"IF(INDIRECT(\"c\" & (VLOOKUP(Switch!$D$53,$F$2:$G$43,2,FALSE)+ROW()-2))=Switch!$D$53,INDIRECT(\"a\" & (VLOOKUP(Switch!$D$53,$F$2:$G$43,2,FALSE)+ROW()-2)),\"\")","v":{"$error":"#N/A"}},{"$f":"IF(INDIRECT(\"c\" & (VLOOKUP(Switch!$D$54,$F$2:$G$43,2,FALSE)+ROW()-2))=Switch!$D$54,INDIRECT(\"a\" & (VLOOKUP(Switch!$D$54,$F$2:$G$43,2,FALSE)+ROW()-2)),\"\")","v":{"$error":"#N/A"}},{"$f":"IF(INDIRECT(\"c\" & (VLOOKUP(Switch!$D$55,$F$2:$G$43,2,FALSE)+ROW()-2))=Switch!$D$55,INDIRECT(\"a\" & (VLOOKUP(Switch!$D$55,$F$2:$G$43,2,FALSE)+ROW()-2)),\"\")","v":{"$error":"#N/A"}},{"$f":"IF(INDIRECT(\"c\" & (VLOOKUP(Switch!$D$56,$F$2:$G$43,2,FALSE)+ROW()-2))=Switch!$D$56,INDIRECT(\"a\" & (VLOOKUP(Switch!$D$56,$F$2:$G$43,2,FALSE)+ROW()-2)),\"\")","v":{"$error":"#N/A"}},{"$f":"IF(INDIRECT(\"c\" & (VLOOKUP(Switch!$D$57,$F$2:$G$43,2,FALSE)+ROW()-2))=Switch!$D$57,INDIRECT(\"a\" & (VLOOKUP(Switch!$D$57,$F$2:$G$43,2,FALSE)+ROW()-2)),\"\")","v":{"$error":"#N/A"}},{"$f":"IF(INDIRECT(\"c\" & (VLOOKUP(Switch!$D$58,$F$2:$G$43,2,FALSE)+ROW()-2))=Switch!$D$58,INDIRECT(\"a\" & (VLOOKUP(Switch!$D$58,$F$2:$G$43,2,FALSE)+ROW()-2)),\"\")","v":{"$error":"#N/A"}},{"$f":"IF(INDIRECT(\"c\" & (VLOOKUP(Switch!$D$59,$F$2:$G$43,2,FALSE)+ROW()-2))=Switch!$D$59,INDIRECT(\"a\" & (VLOOKUP(Switch!$D$59,$F$2:$G$43,2,FALSE)+ROW()-2)),\"\")","v":{"$error":"#N/A"}},{"$f":"IF(INDIRECT(\"c\" & (VLOOKUP(Switch!$D$60,$F$2:$G$43,2,FALSE)+ROW()-2))=Switch!$D$60,INDIRECT(\"a\" & (VLOOKUP(Switch!$D$60,$F$2:$G$43,2,FALSE)+ROW()-2)),\"\")","v":{"$error":"#N/A"}},{"$f":"IF(INDIRECT(\"c\" & (VLOOKUP(Switch!$D$61,$F$2:$G$43,2,FALSE)+ROW()-2))=Switch!$D$61,INDIRECT(\"a\" & (VLOOKUP(Switch!$D$61,$F$2:$G$43,2,FALSE)+ROW()-2)),\"\")","v":{"$error":"#N/A"}},{"$f":"IF(INDIRECT(\"c\" & (VLOOKUP(Switch!$D$62,$F$2:$G$43,2,FALSE)+ROW()-2))=Switch!$D$62,INDIRECT(\"a\" & (VLOOKUP(Switch!$D$62,$F$2:$G$43,2,FALSE)+ROW()-2)),\"\")","v":{"$error":"#N/A"}},{"$f":"IF(INDIRECT(\"c\" & (VLOOKUP(Switch!$D$63,$F$2:$G$43,2,FALSE)+ROW()-2))=Switch!$D$63,INDIRECT(\"a\" & (VLOOKUP(Switch!$D$63,$F$2:$G$43,2,FALSE)+ROW()-2)),\"\")","v":{"$error":"#N/A"}},{"$f":"IF(INDIRECT(\"c\" & (VLOOKUP(Switch!$D$64,$F$2:$G$43,2,FALSE)+ROW()-2))=Switch!$D$64,INDIRECT(\"a\" & (VLOOKUP(Switch!$D$64,$F$2:$G$43,2,FALSE)+ROW()-2)),\"\")","v":{"$error":"#N/A"}},{"$f":"IF(INDIRECT(\"c\" & (VLOOKUP(Switch!$D$65,$F$2:$G$43,2,FALSE)+ROW()-2))=Switch!$D$65,INDIRECT(\"a\" & (VLOOKUP(Switch!$D$65,$F$2:$G$43,2,FALSE)+ROW()-2)),\"\")","v":{"$error":"#N/A"}},{"$f":"IF(INDIRECT(\"c\" & (VLOOKUP(Switch!$D$66,$F$2:$G$43,2,FALSE)+ROW()-2))=Switch!$D$66,INDIRECT(\"a\" & (VLOOKUP(Switch!$D$66,$F$2:$G$43,2,FALSE)+ROW()-2)),\"\")","v":{"$error":"#N/A"}}]
[null,null,null,{"$f":"ROW()","v":603},null,null,{"$f":"VLOOKUP(F603,$C$2:$D$637,2,FALSE)","v":{"$error":"#N/A"}},{"$f":"IF(INDIRECT(\"c\" & (VLOOKUP(Switch!$D$26,$F$2:$G$43,2,FALSE)+ROW()-2))=Switch!$D$26,INDIRECT(\"a\" & (VLOOKUP(Switch!$D$26,$F$2:$G$43,2,FALSE)+ROW()-2)),\"\")","v":{"$error":"#N/A"}},{"$f":"IF(INDIRECT(\"c\" & (VLOOKUP(Switch!$D$27,$F$2:$G$43,2,FALSE)+ROW()-2))=Switch!$D$27,INDIRECT(\"a\" & (VLOOKUP(Switch!$D$27,$F$2:$G$43,2,FALSE)+ROW()-2)),\"\")","v":{"$error":"#N/A"}},{"$f":"IF(INDIRECT(\"c\" & (VLOOKUP(Switch!$D$28,$F$2:$G$43,2,FALSE)+ROW()-2))=Switch!$D$28,INDIRECT(\"a\" & (VLOOKUP(Switch!$D$28,$F$2:$G$43,2,FALSE)+ROW()-2)),\"\")","v":{"$error":"#N/A"}},{"$f":"IF(INDIRECT(\"c\" & (VLOOKUP(Switch!$D$29,$F$2:$G$43,2,FALSE)+ROW()-2))=Switch!$D$29,INDIRECT(\"a\" & (VLOOKUP(Switch!$D$29,$F$2:$G$43,2,FALSE)+ROW()-2)),\"\")","v":{"$error":"#N/A"}},{"$f":"IF(INDIRECT(\"c\" & (VLOOKUP(Switch!$D$30,$F$2:$G$43,2,FALSE)+ROW()-2))=Switch!$D$30,INDIRECT(\"a\" & (VLOOKUP(Switch!$D$30,$F$2:$G$43,2,FALSE)+ROW()-2)),\"\")","v":{"$error":"#N/A"}},{"$f":"IF(INDIRECT(\"c\" & (VLOOKUP(Switch!$D$31,$F$2:$G$43,2,FALSE)+ROW()-2))=Switch!$D$31,INDIRECT(\"a\" & (VLOOKUP(Switch!$D$31,$F$2:$G$43,2,FALSE)+ROW()-2)),\"\")","v":{"$error":"#N/A"}},{"$f":"IF(INDIRECT(\"c\" & (VLOOKUP(Switch!$D$32,$F$2:$G$43,2,FALSE)+ROW()-2))=Switch!$D$32,INDIRECT(\"a\" & (VLOOKUP(Switch!$D$32,$F$2:$G$43,2,FALSE)+ROW()-2)),\"\")","v":{"$error":"#N/A"}},{"$f":"IF(INDIRECT(\"c\" & (VLOOKUP(Switch!$D$33,$F$2:$G$43,2,FALSE)+ROW()-2))=Switch!$D$33,INDIRECT(\"a\" & (VLOOKUP(Switch!$D$33,$F$2:$G$43,2,FALSE)+ROW()-2)),\"\")","v":{"$error":"#N/A"}},{"$f":"IF(INDIRECT(\"c\" & (VLOOKUP(Switch!$D$34,$F$2:$G$43,2,FALSE)+ROW()-2))=Switch!$D$34,INDIRECT(\"a\" & (VLOOKUP(Switch!$D$34,$F$2:$G$43,2,FALSE)+ROW()-2)),\"\")","v":{"$error":"#N/A"}},{"$f":"IF(INDIRECT(\"c\" & (VLOOKUP(Switch!$D$35,$F$2:$G$43,2,FALSE)+ROW()-2))=Switch!$D$35,INDIRECT(\"a\" & (VLOOKUP(Switch!$D$35,$F$2:$G$43,2,FALSE)+ROW()-2)),\"\")","v":{"$error":"#N/A"}},{"$f":"IF(INDIRECT(\"c\" & (VLOOKUP(Switch!$D$36,$F$2:$G$43,2,FALSE)+ROW()-2))=Switch!$D$36,INDIRECT(\"a\" & (VLOOKUP(Switch!$D$36,$F$2:$G$43,2,FALSE)+ROW()-2)),\"\")","v":{"$error":"#N/A"}},{"$f":"IF(INDIRECT(\"c\" & (VLOOKUP(Switch!$D$37,$F$2:$G$43,2,FALSE)+ROW()-2))=Switch!$D$37,INDIRECT(\"a\" & (VLOOKUP(Switch!$D$37,$F$2:$G$43,2,FALSE)+ROW()-2)),\"\")","v":{"$error":"#N/A"}},{"$f":"IF(INDIRECT(\"c\" & (VLOOKUP(Switch!$D$38,$F$2:$G$43,2,FALSE)+ROW()-2))=Switch!$D$38,INDIRECT(\"a\" & (VLOOKUP(Switch!$D$38,$F$2:$G$43,2,FALSE)+ROW()-2)),\"\")","v":{"$error":"#N/A"}},{"$f":"IF(INDIRECT(\"c\" & (VLOOKUP(Switch!$D$39,$F$2:$G$43,2,FALSE)+ROW()-2))=Switch!$D$39,INDIRECT(\"a\" & (VLOOKUP(Switch!$D$39,$F$2:$G$43,2,FALSE)+ROW()-2)),\"\")","v":{"$error":"#N/A"}},{"$f":"IF(INDIRECT(\"c\" & (VLOOKUP(Switch!$D$40,$F$2:$G$43,2,FALSE)+ROW()-2))=Switch!$D$40,INDIRECT(\"a\" & (VLOOKUP(Switch!$D$40,$F$2:$G$43,2,FALSE)+ROW()-2)),\"\")","v":{"$error":"#N/A"}},{"$f":"IF(INDIRECT(\"c\" & (VLOOKUP(Switch!$D$52,$F$2:$G$43,2,FALSE)+ROW()-2))=Switch!$D$52,INDIRECT(\"a\" & (VLOOKUP(Switch!$D$52,$F$2:$G$43,2,FALSE)+ROW()-2)),\"\")","v":{"$error":"#N/A"}},{"$f":"IF(INDIRECT(\"c\" & (VLOOKUP(Switch!$D$53,$F$2:$G$43,2,FALSE)+ROW()-2))=Switch!$D$53,INDIRECT(\"a\" & (VLOOKUP(Switch!$D$53,$F$2:$G$43,2,FALSE)+ROW()-2)),\"\")","v":{"$error":"#N/A"}},{"$f":"IF(INDIRECT(\"c\" & (VLOOKUP(Switch!$D$54,$F$2:$G$43,2,FALSE)+ROW()-2))=Switch!$D$54,INDIRECT(\"a\" & (VLOOKUP(Switch!$D$54,$F$2:$G$43,2,FALSE)+ROW()-2)),\"\")","v":{"$error":"#N/A"}},{"$f":"IF(INDIRECT(\"c\" & (VLOOKUP(Switch!$D$55,$F$2:$G$43,2,FALSE)+ROW()-2))=Switch!$D$55,INDIRECT(\"a\" & (VLOOKUP(Switch!$D$55,$F$2:$G$43,2,FALSE)+ROW()-2)),\"\")","v":{"$error":"#N/A"}},{"$f":"IF(INDIRECT(\"c\" & (VLOOKUP(Switch!$D$56,$F$2:$G$43,2,FALSE)+ROW()-2))=Switch!$D$56,INDIRECT(\"a\" & (VLOOKUP(Switch!$D$56,$F$2:$G$43,2,FALSE)+ROW()-2)),\"\")","v":{"$error":"#N/A"}},{"$f":"IF(INDIRECT(\"c\" & (VLOOKUP(Switch!$D$57,$F$2:$G$43,2,FALSE)+ROW()-2))=Switch!$D$57,INDIRECT(\"a\" & (VLOOKUP(Switch!$D$57,$F$2:$G$43,2,FALSE)+ROW()-2)),\"\")","v":{"$error":"#N/A"}},{"$f":"IF(INDIRECT(\"c\" & (VLOOKUP(Switch!$D$58,$F$2:$G$43,2,FALSE)+ROW()-2))=Switch!$D$58,INDIRECT(\"a\" & (VLOOKUP(Switch!$D$58,$F$2:$G$43,2,FALSE)+ROW()-2)),\"\")","v":{"$error":"#N/A"}},{"$f":"IF(INDIRECT(\"c\" & (VLOOKUP(Switch!$D$59,$F$2:$G$43,2,FALSE)+ROW()-2))=Switch!$D$59,INDIRECT(\"a\" & (VLOOKUP(Switch!$D$59,$F$2:$G$43,2,FALSE)+ROW()-2)),\"\")","v":{"$error":"#N/A"}},{"$f":"IF(INDIRECT(\"c\" & (VLOOKUP(Switch!$D$60,$F$2:$G$43,2,FALSE)+ROW()-2))=Switch!$D$60,INDIRECT(\"a\" & (VLOOKUP(Switch!$D$60,$F$2:$G$43,2,FALSE)+ROW()-2)),\"\")","v":{"$error":"#N/A"}},{"$f":"IF(INDIRECT(\"c\" & (VLOOKUP(Switch!$D$61,$F$2:$G$43,2,FALSE)+ROW()-2))=Switch!$D$61,INDIRECT(\"a\" & (VLOOKUP(Switch!$D$61,$F$2:$G$43,2,FALSE)+ROW()-2)),\"\")","v":{"$error":"#N/A"}},{"$f":"IF(INDIRECT(\"c\" & (VLOOKUP(Switch!$D$62,$F$2:$G$43,2,FALSE)+ROW()-2))=Switch!$D$62,INDIRECT(\"a\" & (VLOOKUP(Switch!$D$62,$F$2:$G$43,2,FALSE)+ROW()-2)),\"\")","v":{"$error":"#N/A"}},{"$f":"IF(INDIRECT(\"c\" & (VLOOKUP(Switch!$D$63,$F$2:$G$43,2,FALSE)+ROW()-2))=Switch!$D$63,INDIRECT(\"a\" & (VLOOKUP(Switch!$D$63,$F$2:$G$43,2,FALSE)+ROW()-2)),\"\")","v":{"$error":"#N/A"}},{"$f":"IF(INDIRECT(\"c\" & (VLOOKUP(Switch!$D$64,$F$2:$G$43,2,FALSE)+ROW()-2))=Switch!$D$64,INDIRECT(\"a\" & (VLOOKUP(Switch!$D$64,$F$2:$G$43,2,FALSE)+ROW()-2)),\"\")","v":{"$error":"#N/A"}},{"$f":"IF(INDIRECT(\"c\" & (VLOOKUP(Switch!$D$65,$F$2:$G$43,2,FALSE)+ROW()-2))=Switch!$D$65,INDIRECT(\"a\" & (VLOOKUP(Switch!$D$65,$F$2:$G$43,2,FALSE)+ROW()-2)),\"\")","v":{"$error":"#N/A"}},{"$f":"IF(INDIRECT(\"c\" & (VLOOKUP(Switch!$D$66,$F$2:$G$43,2,FALSE)+ROW()-2))=Switch!$D$66,INDIRECT(\"a\" & (VLOOKUP(Switch!$D$66,$F$2:$G$43,2,FALSE)+ROW()-2)),\"\")","v":{"$error":"#N/A"}}]
[null,null,null,{"$f":"ROW()","v":604},null,null,{"$f":"VLOOKUP(F604,$C$2:$D$637,2,FALSE)","v":{"$error":"#N/A"}},{"$f":"IF(INDIRECT(\"c\" & (VLOOKUP(Switch!$D$26,$F$2:$G$43,2,FALSE)+ROW()-2))=Switch!$D$26,INDIRECT(\"a\" & (VLOOKUP(Switch!$D$26,$F$2:$G$43,2,FALSE)+ROW()-2)),\"\")","v":{"$error":"#N/A"}},{"$f":"IF(INDIRECT(\"c\" & (VLOOKUP(Switch!$D$27,$F$2:$G$43,2,FALSE)+ROW()-2))=Switch!$D$27,INDIRECT(\"a\" & (VLOOKUP(Switch!$D$27,$F$2:$G$43,2,FALSE)+ROW()-2)),\"\")","v":{"$error":"#N/A"}},{"$f":"IF(INDIRECT(\"c\" & (VLOOKUP(Switch!$D$28,$F$2:$G$43,2,FALSE)+ROW()-2))=Switch!$D$28,INDIRECT(\"a\" & (VLOOKUP(Switch!$D$28,$F$2:$G$43,2,FALSE)+ROW()-2)),\"\")","v":{"$error":"#N/A"}},{"$f":"IF(INDIRECT(\"c\" & (VLOOKUP(Switch!$D$29,$F$2:$G$43,2,FALSE)+ROW()-2))=Switch!$D$29,INDIRECT(\"a\" & (VLOOKUP(Switch!$D$29,$F$2:$G$43,2,FALSE)+ROW()-2)),\"\")","v":{"$error":"#N/A"}},{"$f":"IF(INDIRECT(\"c\" & (VLOOKUP(Switch!$D$30,$F$2:$G$43,2,FALSE)+ROW()-2))=Switch!$D$30,INDIRECT(\"a\" & (VLOOKUP(Switch!$D$30,$F$2:$G$43,2,FALSE)+ROW()-2)),\"\")","v":{"$error":"#N/A"}},{"$f":"IF(INDIRECT(\"c\" & (VLOOKUP(Switch!$D$31,$F$2:$G$43,2,FALSE)+ROW()-2))=Switch!$D$31,INDIRECT(\"a\" & (VLOOKUP(Switch!$D$31,$F$2:$G$43,2,FALSE)+ROW()-2)),\"\")","v":{"$error":"#N/A"}},{"$f":"IF(INDIRECT(\"c\" & (VLOOKUP(Switch!$D$32,$F$2:$G$43,2,FALSE)+ROW()-2))=Switch!$D$32,INDIRECT(\"a\" & (VLOOKUP(Switch!$D$32,$F$2:$G$43,2,FALSE)+ROW()-2)),\"\")","v":{"$error":"#N/A"}},{"$f":"IF(INDIRECT(\"c\" & (VLOOKUP(Switch!$D$33,$F$2:$G$43,2,FALSE)+ROW()-2))=Switch!$D$33,INDIRECT(\"a\" & (VLOOKUP(Switch!$D$33,$F$2:$G$43,2,FALSE)+ROW()-2)),\"\")","v":{"$error":"#N/A"}},{"$f":"IF(INDIRECT(\"c\" & (VLOOKUP(Switch!$D$34,$F$2:$G$43,2,FALSE)+ROW()-2))=Switch!$D$34,INDIRECT(\"a\" & (VLOOKUP(Switch!$D$34,$F$2:$G$43,2,FALSE)+ROW()-2)),\"\")","v":{"$error":"#N/A"}},{"$f":"IF(INDIRECT(\"c\" & (VLOOKUP(Switch!$D$35,$F$2:$G$43,2,FALSE)+ROW()-2))=Switch!$D$35,INDIRECT(\"a\" & (VLOOKUP(Switch!$D$35,$F$2:$G$43,2,FALSE)+ROW()-2)),\"\")","v":{"$error":"#N/A"}},{"$f":"IF(INDIRECT(\"c\" & (VLOOKUP(Switch!$D$36,$F$2:$G$43,2,FALSE)+ROW()-2))=Switch!$D$36,INDIRECT(\"a\" & (VLOOKUP(Switch!$D$36,$F$2:$G$43,2,FALSE)+ROW()-2)),\"\")","v":{"$error":"#N/A"}},{"$f":"IF(INDIRECT(\"c\" & (VLOOKUP(Switch!$D$37,$F$2:$G$43,2,FALSE)+ROW()-2))=Switch!$D$37,INDIRECT(\"a\" & (VLOOKUP(Switch!$D$37,$F$2:$G$43,2,FALSE)+ROW()-2)),\"\")","v":{"$error":"#N/A"}},{"$f":"IF(INDIRECT(\"c\" & (VLOOKUP(Switch!$D$38,$F$2:$G$43,2,FALSE)+ROW()-2))=Switch!$D$38,INDIRECT(\"a\" & (VLOOKUP(Switch!$D$38,$F$2:$G$43,2,FALSE)+ROW()-2)),\"\")","v":{"$error":"#N/A"}},{"$f":"IF(INDIRECT(\"c\" & (VLOOKUP(Switch!$D$39,$F$2:$G$43,2,FALSE)+ROW()-2))=Switch!$D$39,INDIRECT(\"a\" & (VLOOKUP(Switch!$D$39,$F$2:$G$43,2,FALSE)+ROW()-2)),\"\")","v":{"$error":"#N/A"}},{"$f":"IF(INDIRECT(\"c\" & (VLOOKUP(Switch!$D$40,$F$2:$G$43,2,FALSE)+ROW()-2))=Switch!$D$40,INDIRECT(\"a\" & (VLOOKUP(Switch!$D$40,$F$2:$G$43,2,FALSE)+ROW()-2)),\"\")","v":{"$error":"#N/A"}},{"$f":"IF(INDIRECT(\"c\" & (VLOOKUP(Switch!$D$52,$F$2:$G$43,2,FALSE)+ROW()-2))=Switch!$D$52,INDIRECT(\"a\" & (VLOOKUP(Switch!$D$52,$F$2:$G$43,2,FALSE)+ROW()-2)),\"\")","v":{"$error":"#N/A"}},{"$f":"IF(INDIRECT(\"c\" & (VLOOKUP(Switch!$D$53,$F$2:$G$43,2,FALSE)+ROW()-2))=Switch!$D$53,INDIRECT(\"a\" & (VLOOKUP(Switch!$D$53,$F$2:$G$43,2,FALSE)+ROW()-2)),\"\")","v":{"$error":"#N/A"}},{"$f":"IF(INDIRECT(\"c\" & (VLOOKUP(Switch!$D$54,$F$2:$G$43,2,FALSE)+ROW()-2))=Switch!$D$54,INDIRECT(\"a\" & (VLOOKUP(Switch!$D$54,$F$2:$G$43,2,FALSE)+ROW()-2)),\"\")","v":{"$error":"#N/A"}},{"$f":"IF(INDIRECT(\"c\" & (VLOOKUP(Switch!$D$55,$F$2:$G$43,2,FALSE)+ROW()-2))=Switch!$D$55,INDIRECT(\"a\" & (VLOOKUP(Switch!$D$55,$F$2:$G$43,2,FALSE)+ROW()-2)),\"\")","v":{"$error":"#N/A"}},{"$f":"IF(INDIRECT(\"c\" & (VLOOKUP(Switch!$D$56,$F$2:$G$43,2,FALSE)+ROW()-2))=Switch!$D$56,INDIRECT(\"a\" & (VLOOKUP(Switch!$D$56,$F$2:$G$43,2,FALSE)+ROW()-2)),\"\")","v":{"$error":"#N/A"}},{"$f":"IF(INDIRECT(\"c\" & (VLOOKUP(Switch!$D$57,$F$2:$G$43,2,FALSE)+ROW()-2))=Switch!$D$57,INDIRECT(\"a\" & (VLOOKUP(Switch!$D$57,$F$2:$G$43,2,FALSE)+ROW()-2)),\"\")","v":{"$error":"#N/A"}},{"$f":"IF(INDIRECT(\"c\" & (VLOOKUP(Switch!$D$58,$F$2:$G$43,2,FALSE)+ROW()-2))=Switch!$D$58,INDIRECT(\"a\" & (VLOOKUP(Switch!$D$58,$F$2:$G$43,2,FALSE)+ROW()-2)),\"\")","v":{"$error":"#N/A"}},{"$f":"IF(INDIRECT(\"c\" & (VLOOKUP(Switch!$D$59,$F$2:$G$43,2,FALSE)+ROW()-2))=Switch!$D$59,INDIRECT(\"a\" & (VLOOKUP(Switch!$D$59,$F$2:$G$43,2,FALSE)+ROW()-2)),\"\")","v":{"$error":"#N/A"}},{"$f":"IF(INDIRECT(\"c\" & (VLOOKUP(Switch!$D$60,$F$2:$G$43,2,FALSE)+ROW()-2))=Switch!$D$60,INDIRECT(\"a\" & (VLOOKUP(Switch!$D$60,$F$2:$G$43,2,FALSE)+ROW()-2)),\"\")","v":{"$error":"#N/A"}},{"$f":"IF(INDIRECT(\"c\" & (VLOOKUP(Switch!$D$61,$F$2:$G$43,2,FALSE)+ROW()-2))=Switch!$D$61,INDIRECT(\"a\" & (VLOOKUP(Switch!$D$61,$F$2:$G$43,2,FALSE)+ROW()-2)),\"\")","v":{"$error":"#N/A"}},{"$f":"IF(INDIRECT(\"c\" & (VLOOKUP(Switch!$D$62,$F$2:$G$43,2,FALSE)+ROW()-2))=Switch!$D$62,INDIRECT(\"a\" & (VLOOKUP(Switch!$D$62,$F$2:$G$43,2,FALSE)+ROW()-2)),\"\")","v":{"$error":"#N/A"}},{"$f":"IF(INDIRECT(\"c\" & (VLOOKUP(Switch!$D$63,$F$2:$G$43,2,FALSE)+ROW()-2))=Switch!$D$63,INDIRECT(\"a\" & (VLOOKUP(Switch!$D$63,$F$2:$G$43,2,FALSE)+ROW()-2)),\"\")","v":{"$error":"#N/A"}},{"$f":"IF(INDIRECT(\"c\" & (VLOOKUP(Switch!$D$64,$F$2:$G$43,2,FALSE)+ROW()-2))=Switch!$D$64,INDIRECT(\"a\" & (VLOOKUP(Switch!$D$64,$F$2:$G$43,2,FALSE)+ROW()-2)),\"\")","v":{"$error":"#N/A"}},{"$f":"IF(INDIRECT(\"c\" & (VLOOKUP(Switch!$D$65,$F$2:$G$43,2,FALSE)+ROW()-2))=Switch!$D$65,INDIRECT(\"a\" & (VLOOKUP(Switch!$D$65,$F$2:$G$43,2,FALSE)+ROW()-2)),\"\")","v":{"$error":"#N/A"}},{"$f":"IF(INDIRECT(\"c\" & (VLOOKUP(Switch!$D$66,$F$2:$G$43,2,FALSE)+ROW()-2))=Switch!$D$66,INDIRECT(\"a\" & (VLOOKUP(Switch!$D$66,$F$2:$G$43,2,FALSE)+ROW()-2)),\"\")","v":{"$error":"#N/A"}}]
[null,null,null,{"$f":"ROW()","v":605},null,null,{"$f":"VLOOKUP(F605,$C$2:$D$637,2,FALSE)","v":{"$error":"#N/A"}},{"$f":"IF(INDIRECT(\"c\" & (VLOOKUP(Switch!$D$26,$F$2:$G$43,2,FALSE)+ROW()-2))=Switch!$D$26,INDIRECT(\"a\" & (VLOOKUP(Switch!$D$26,$F$2:$G$43,2,FALSE)+ROW()-2)),\"\")","v":{"$error":"#N/A"}},{"$f":"IF(INDIRECT(\"c\" & (VLOOKUP(Switch!$D$27,$F$2:$G$43,2,FALSE)+ROW()-2))=Switch!$D$27,INDIRECT(\"a\" & (VLOOKUP(Switch!$D$27,$F$2:$G$43,2,FALSE)+ROW()-2)),\"\")","v":{"$error":"#N/A"}},{"$f":"IF(INDIRECT(\"c\" & (VLOOKUP(Switch!$D$28,$F$2:$G$43,2,FALSE)+ROW()-2))=Switch!$D$28,INDIRECT(\"a\" & (VLOOKUP(Switch!$D$28,$F$2:$G$43,2,FALSE)+ROW()-2)),\"\")","v":{"$error":"#N/A"}},{"$f":"IF(INDIRECT(\"c\" & (VLOOKUP(Switch!$D$29,$F$2:$G$43,2,FALSE)+ROW()-2))=Switch!$D$29,INDIRECT(\"a\" & (VLOOKUP(Switch!$D$29,$F$2:$G$43,2,FALSE)+ROW()-2)),\"\")","v":{"$error":"#N/A"}},{"$f":"IF(INDIRECT(\"c\" & (VLOOKUP(Switch!$D$30,$F$2:$G$43,2,FALSE)+ROW()-2))=Switch!$D$30,INDIRECT(\"a\" & (VLOOKUP(Switch!$D$30,$F$2:$G$43,2,FALSE)+ROW()-2)),\"\")","v":{"$error":"#N/A"}},{"$f":"IF(INDIRECT(\"c\" & (VLOOKUP(Switch!$D$31,$F$2:$G$43,2,FALSE)+ROW()-2))=Switch!$D$31,INDIRECT(\"a\" & (VLOOKUP(Switch!$D$31,$F$2:$G$43,2,FALSE)+ROW()-2)),\"\")","v":{"$error":"#N/A"}},{"$f":"IF(INDIRECT(\"c\" & (VLOOKUP(Switch!$D$32,$F$2:$G$43,2,FALSE)+ROW()-2))=Switch!$D$32,INDIRECT(\"a\" & (VLOOKUP(Switch!$D$32,$F$2:$G$43,2,FALSE)+ROW()-2)),\"\")","v":{"$error":"#N/A"}},{"$f":"IF(INDIRECT(\"c\" & (VLOOKUP(Switch!$D$33,$F$2:$G$43,2,FALSE)+ROW()-2))=Switch!$D$33,INDIRECT(\"a\" & (VLOOKUP(Switch!$D$33,$F$2:$G$43,2,FALSE)+ROW()-2)),\"\")","v":{"$error":"#N/A"}},{"$f":"IF(INDIRECT(\"c\" & (VLOOKUP(Switch!$D$34,$F$2:$G$43,2,FALSE)+ROW()-2))=Switch!$D$34,INDIRECT(\"a\" & (VLOOKUP(Switch!$D$34,$F$2:$G$43,2,FALSE)+ROW()-2)),\"\")","v":{"$error":"#N/A"}},{"$f":"IF(INDIRECT(\"c\" & (VLOOKUP(Switch!$D$35,$F$2:$G$43,2,FALSE)+ROW()-2))=Switch!$D$35,INDIRECT(\"a\" & (VLOOKUP(Switch!$D$35,$F$2:$G$43,2,FALSE)+ROW()-2)),\"\")","v":{"$error":"#N/A"}},{"$f":"IF(INDIRECT(\"c\" & (VLOOKUP(Switch!$D$36,$F$2:$G$43,2,FALSE)+ROW()-2))=Switch!$D$36,INDIRECT(\"a\" & (VLOOKUP(Switch!$D$36,$F$2:$G$43,2,FALSE)+ROW()-2)),\"\")","v":{"$error":"#N/A"}},{"$f":"IF(INDIRECT(\"c\" & (VLOOKUP(Switch!$D$37,$F$2:$G$43,2,FALSE)+ROW()-2))=Switch!$D$37,INDIRECT(\"a\" & (VLOOKUP(Switch!$D$37,$F$2:$G$43,2,FALSE)+ROW()-2)),\"\")","v":{"$error":"#N/A"}},{"$f":"IF(INDIRECT(\"c\" & (VLOOKUP(Switch!$D$38,$F$2:$G$43,2,FALSE)+ROW()-2))=Switch!$D$38,INDIRECT(\"a\" & (VLOOKUP(Switch!$D$38,$F$2:$G$43,2,FALSE)+ROW()-2)),\"\")","v":{"$error":"#N/A"}},{"$f":"IF(INDIRECT(\"c\" & (VLOOKUP(Switch!$D$39,$F$2:$G$43,2,FALSE)+ROW()-2))=Switch!$D$39,INDIRECT(\"a\" & (VLOOKUP(Switch!$D$39,$F$2:$G$43,2,FALSE)+ROW()-2)),\"\")","v":{"$error":"#N/A"}},{"$f":"IF(INDIRECT(\"c\" & (VLOOKUP(Switch!$D$40,$F$2:$G$43,2,FALSE)+ROW()-2))=Switch!$D$40,INDIRECT(\"a\" & (VLOOKUP(Switch!$D$40,$F$2:$G$43,2,FALSE)+ROW()-2)),\"\")","v":{"$error":"#N/A"}},{"$f":"IF(INDIRECT(\"c\" & (VLOOKUP(Switch!$D$52,$F$2:$G$43,2,FALSE)+ROW()-2))=Switch!$D$52,INDIRECT(\"a\" & (VLOOKUP(Switch!$D$52,$F$2:$G$43,2,FALSE)+ROW()-2)),\"\")","v":{"$error":"#N/A"}},{"$f":"IF(INDIRECT(\"c\" & (VLOOKUP(Switch!$D$53,$F$2:$G$43,2,FALSE)+ROW()-2))=Switch!$D$53,INDIRECT(\"a\" & (VLOOKUP(Switch!$D$53,$F$2:$G$43,2,FALSE)+ROW()-2)),\"\")","v":{"$error":"#N/A"}},{"$f":"IF(INDIRECT(\"c\" & (VLOOKUP(Switch!$D$54,$F$2:$G$43,2,FALSE)+ROW()-2))=Switch!$D$54,INDIRECT(\"a\" & (VLOOKUP(Switch!$D$54,$F$2:$G$43,2,FALSE)+ROW()-2)),\"\")","v":{"$error":"#N/A"}},{"$f":"IF(INDIRECT(\"c\" & (VLOOKUP(Switch!$D$55,$F$2:$G$43,2,FALSE)+ROW()-2))=Switch!$D$55,INDIRECT(\"a\" & (VLOOKUP(Switch!$D$55,$F$2:$G$43,2,FALSE)+ROW()-2)),\"\")","v":{"$error":"#N/A"}},{"$f":"IF(INDIRECT(\"c\" & (VLOOKUP(Switch!$D$56,$F$2:$G$43,2,FALSE)+ROW()-2))=Switch!$D$56,INDIRECT(\"a\" & (VLOOKUP(Switch!$D$56,$F$2:$G$43,2,FALSE)+ROW()-2)),\"\")","v":{"$error":"#N/A"}},{"$f":"IF(INDIRECT(\"c\" & (VLOOKUP(Switch!$D$57,$F$2:$G$43,2,FALSE)+ROW()-2))=Switch!$D$57,INDIRECT(\"a\" & (VLOOKUP(Switch!$D$57,$F$2:$G$43,2,FALSE)+ROW()-2)),\"\")","v":{"$error":"#N/A"}},{"$f":"IF(INDIRECT(\"c\" & (VLOOKUP(Switch!$D$58,$F$2:$G$43,2,FALSE)+ROW()-2))=Switch!$D$58,INDIRECT(\"a\" & (VLOOKUP(Switch!$D$58,$F$2:$G$43,2,FALSE)+ROW()-2)),\"\")","v":{"$error":"#N/A"}},{"$f":"IF(INDIRECT(\"c\" & (VLOOKUP(Switch!$D$59,$F$2:$G$43,2,FALSE)+ROW()-2))=Switch!$D$59,INDIRECT(\"a\" & (VLOOKUP(Switch!$D$59,$F$2:$G$43,2,FALSE)+ROW()-2)),\"\")","v":{"$error":"#N/A"}},{"$f":"IF(INDIRECT(\"c\" & (VLOOKUP(Switch!$D$60,$F$2:$G$43,2,FALSE)+ROW()-2))=Switch!$D$60,INDIRECT(\"a\" & (VLOOKUP(Switch!$D$60,$F$2:$G$43,2,FALSE)+ROW()-2)),\"\")","v":{"$error":"#N/A"}},{"$f":"IF(INDIRECT(\"c\" & (VLOOKUP(Switch!$D$61,$F$2:$G$43,2,FALSE)+ROW()-2))=Switch!$D$61,INDIRECT(\"a\" & (VLOOKUP(Switch!$D$61,$F$2:$G$43,2,FALSE)+ROW()-2)),\"\")","v":{"$error":"#N/A"}},{"$f":"IF(INDIRECT(\"c\" & (VLOOKUP(Switch!$D$62,$F$2:$G$43,2,FALSE)+ROW()-2))=Switch!$D$62,INDIRECT(\"a\" & (VLOOKUP(Switch!$D$62,$F$2:$G$43,2,FALSE)+ROW()-2)),\"\")","v":{"$error":"#N/A"}},{"$f":"IF(INDIRECT(\"c\" & (VLOOKUP(Switch!$D$63,$F$2:$G$43,2,FALSE)+ROW()-2))=Switch!$D$63,INDIRECT(\"a\" & (VLOOKUP(Switch!$D$63,$F$2:$G$43,2,FALSE)+ROW()-2)),\"\")","v":{"$error":"#N/A"}},{"$f":"IF(INDIRECT(\"c\" & (VLOOKUP(Switch!$D$64,$F$2:$G$43,2,FALSE)+ROW()-2))=Switch!$D$64,INDIRECT(\"a\" & (VLOOKUP(Switch!$D$64,$F$2:$G$43,2,FALSE)+ROW()-2)),\"\")","v":{"$error":"#N/A"}},{"$f":"IF(INDIRECT(\"c\" & (VLOOKUP(Switch!$D$65,$F$2:$G$43,2,FALSE)+ROW()-2))=Switch!$D$65,INDIRECT(\"a\" & (VLOOKUP(Switch!$D$65,$F$2:$G$43,2,FALSE)+ROW()-2)),\"\")","v":{"$error":"#N/A"}},{"$f":"IF(INDIRECT(\"c\" & (VLOOKUP(Switch!$D$66,$F$2:$G$43,2,FALSE)+ROW()-2))=Switch!$D$66,INDIRECT(\"a\" & (VLOOKUP(Switch!$D$66,$F$2:$G$43,2,FALSE)+ROW()-2)),\"\")","v":{"$error":"#N/A"}}]
[null,null,null,{"$f":"ROW()","v":606},null,null,{"$f":"VLOOKUP(F606,$C$2:$D$637,2,FALSE)","v":{"$error":"#N/A"}},{"$f":"IF(INDIRECT(\"c\" & (VLOOKUP(Switch!$D$26,$F$2:$G$43,2,FALSE)+ROW()-2))=Switch!$D$26,INDIRECT(\"a\" & (VLOOKUP(Switch!$D$26,$F$2:$G$43,2,FALSE)+ROW()-2)),\"\")","v":{"$error":"#N/A"}},{"$f":"IF(INDIRECT(\"c\" & (VLOOKUP(Switch!$D$27,$F$2:$G$43,2,FALSE)+ROW()-2))=Switch!$D$27,INDIRECT(\"a\" & (VLOOKUP(Switch!$D$27,$F$2:$G$43,2,FALSE)+ROW()-2)),\"\")","v":{"$error":"#N/A"}},{"$f":"IF(INDIRECT(\"c\" & (VLOOKUP(Switch!$D$28,$F$2:$G$43,2,FALSE)+ROW()-2))=Switch!$D$28,INDIRECT(\"a\" & (VLOOKUP(Switch!$D$28,$F$2:$G$43,2,FALSE)+ROW()-2)),\"\")","v":{"$error":"#N/A"}},{"$f":"IF(INDIRECT(\"c\" & (VLOOKUP(Switch!$D$29,$F$2:$G$43,2,FALSE)+ROW()-2))=Switch!$D$29,INDIRECT(\"a\" & (VLOOKUP(Switch!$D$29,$F$2:$G$43,2,FALSE)+ROW()-2)),\"\")","v":{"$error":"#N/A"}},{"$f":"IF(INDIRECT(\"c\" & (VLOOKUP(Switch!$D$30,$F$2:$G$43,2,FALSE)+ROW()-2))=Switch!$D$30,INDIRECT(\"a\" & (VLOOKUP(Switch!$D$30,$F$2:$G$43,2,FALSE)+ROW()-2)),\"\")","v":{"$error":"#N/A"}},{"$f":"IF(INDIRECT(\"c\" & (VLOOKUP(Switch!$D$31,$F$2:$G$43,2,FALSE)+ROW()-2))=Switch!$D$31,INDIRECT(\"a\" & (VLOOKUP(Switch!$D$31,$F$2:$G$43,2,FALSE)+ROW()-2)),\"\")","v":{"$error":"#N/A"}},{"$f":"IF(INDIRECT(\"c\" & (VLOOKUP(Switch!$D$32,$F$2:$G$43,2,FALSE)+ROW()-2))=Switch!$D$32,INDIRECT(\"a\" & (VLOOKUP(Switch!$D$32,$F$2:$G$43,2,FALSE)+ROW()-2)),\"\")","v":{"$error":"#N/A"}},{"$f":"IF(INDIRECT(\"c\" & (VLOOKUP(Switch!$D$33,$F$2:$G$43,2,FALSE)+ROW()-2))=Switch!$D$33,INDIRECT(\"a\" & (VLOOKUP(Switch!$D$33,$F$2:$G$43,2,FALSE)+ROW()-2)),\"\")","v":{"$error":"#N/A"}},{"$f":"IF(INDIRECT(\"c\" & (VLOOKUP(Switch!$D$34,$F$2:$G$43,2,FALSE)+ROW()-2))=Switch!$D$34,INDIRECT(\"a\" & (VLOOKUP(Switch!$D$34,$F$2:$G$43,2,FALSE)+ROW()-2)),\"\")","v":{"$error":"#N/A"}},{"$f":"IF(INDIRECT(\"c\" & (VLOOKUP(Switch!$D$35,$F$2:$G$43,2,FALSE)+ROW()-2))=Switch!$D$35,INDIRECT(\"a\" & (VLOOKUP(Switch!$D$35,$F$2:$G$43,2,FALSE)+ROW()-2)),\"\")","v":{"$error":"#N/A"}},{"$f":"IF(INDIRECT(\"c\" & (VLOOKUP(Switch!$D$36,$F$2:$G$43,2,FALSE)+ROW()-2))=Switch!$D$36,INDIRECT(\"a\" & (VLOOKUP(Switch!$D$36,$F$2:$G$43,2,FALSE)+ROW()-2)),\"\")","v":{"$error":"#N/A"}},{"$f":"IF(INDIRECT(\"c\" & (VLOOKUP(Switch!$D$37,$F$2:$G$43,2,FALSE)+ROW()-2))=Switch!$D$37,INDIRECT(\"a\" & (VLOOKUP(Switch!$D$37,$F$2:$G$43,2,FALSE)+ROW()-2)),\"\")","v":{"$error":"#N/A"}},{"$f":"IF(INDIRECT(\"c\" & (VLOOKUP(Switch!$D$38,$F$2:$G$43,2,FALSE)+ROW()-2))=Switch!$D$38,INDIRECT(\"a\" & (VLOOKUP(Switch!$D$38,$F$2:$G$43,2,FALSE)+ROW()-2)),\"\")","v":{"$error":"#N/A"}},{"$f":"IF(INDIRECT(\"c\" & (VLOOKUP(Switch!$D$39,$F$2:$G$43,2,FALSE)+ROW()-2))=Switch!$D$39,INDIRECT(\"a\" & (VLOOKUP(Switch!$D$39,$F$2:$G$43,2,FALSE)+ROW()-2)),\"\")","v":{"$error":"#N/A"}},{"$f":"IF(INDIRECT(\"c\" & (VLOOKUP(Switch!$D$40,$F$2:$G$43,2,FALSE)+ROW()-2))=Switch!$D$40,INDIRECT(\"a\" & (VLOOKUP(Switch!$D$40,$F$2:$G$43,2,FALSE)+ROW()-2)),\"\")","v":{"$error":"#N/A"}},{"$f":"IF(INDIRECT(\"c\" & (VLOOKUP(Switch!$D$52,$F$2:$G$43,2,FALSE)+ROW()-2))=Switch!$D$52,INDIRECT(\"a\" & (VLOOKUP(Switch!$D$52,$F$2:$G$43,2,FALSE)+ROW()-2)),\"\")","v":{"$error":"#N/A"}},{"$f":"IF(INDIRECT(\"c\" & (VLOOKUP(Switch!$D$53,$F$2:$G$43,2,FALSE)+ROW()-2))=Switch!$D$53,INDIRECT(\"a\" & (VLOOKUP(Switch!$D$53,$F$2:$G$43,2,FALSE)+ROW()-2)),\"\")","v":{"$error":"#N/A"}},{"$f":"IF(INDIRECT(\"c\" & (VLOOKUP(Switch!$D$54,$F$2:$G$43,2,FALSE)+ROW()-2))=Switch!$D$54,INDIRECT(\"a\" & (VLOOKUP(Switch!$D$54,$F$2:$G$43,2,FALSE)+ROW()-2)),\"\")","v":{"$error":"#N/A"}},{"$f":"IF(INDIRECT(\"c\" & (VLOOKUP(Switch!$D$55,$F$2:$G$43,2,FALSE)+ROW()-2))=Switch!$D$55,INDIRECT(\"a\" & (VLOOKUP(Switch!$D$55,$F$2:$G$43,2,FALSE)+ROW()-2)),\"\")","v":{"$error":"#N/A"}},{"$f":"IF(INDIRECT(\"c\" & (VLOOKUP(Switch!$D$56,$F$2:$G$43,2,FALSE)+ROW()-2))=Switch!$D$56,INDIRECT(\"a\" & (VLOOKUP(Switch!$D$56,$F$2:$G$43,2,FALSE)+ROW()-2)),\"\")","v":{"$error":"#N/A"}},{"$f":"IF(INDIRECT(\"c\" & (VLOOKUP(Switch!$D$57,$F$2:$G$43,2,FALSE)+ROW()-2))=Switch!$D$57,INDIRECT(\"a\" & (VLOOKUP(Switch!$D$57,$F$2:$G$43,2,FALSE)+ROW()-2)),\"\")","v":{"$error":"#N/A"}},{"$f":"IF(INDIRECT(\"c\" & (VLOOKUP(Switch!$D$58,$F$2:$G$43,2,FALSE)+ROW()-2))=Switch!$D$58,INDIRECT(\"a\" & (VLOOKUP(Switch!$D$58,$F$2:$G$43,2,FALSE)+ROW()-2)),\"\")","v":{"$error":"#N/A"}},{"$f":"IF(INDIRECT(\"c\" & (VLOOKUP(Switch!$D$59,$F$2:$G$43,2,FALSE)+ROW()-2))=Switch!$D$59,INDIRECT(\"a\" & (VLOOKUP(Switch!$D$59,$F$2:$G$43,2,FALSE)+ROW()-2)),\"\")","v":{"$error":"#N/A"}},{"$f":"IF(INDIRECT(\"c\" & (VLOOKUP(Switch!$D$60,$F$2:$G$43,2,FALSE)+ROW()-2))=Switch!$D$60,INDIRECT(\"a\" & (VLOOKUP(Switch!$D$60,$F$2:$G$43,2,FALSE)+ROW()-2)),\"\")","v":{"$error":"#N/A"}},{"$f":"IF(INDIRECT(\"c\" & (VLOOKUP(Switch!$D$61,$F$2:$G$43,2,FALSE)+ROW()-2))=Switch!$D$61,INDIRECT(\"a\" & (VLOOKUP(Switch!$D$61,$F$2:$G$43,2,FALSE)+ROW()-2)),\"\")","v":{"$error":"#N/A"}},{"$f":"IF(INDIRECT(\"c\" & (VLOOKUP(Switch!$D$62,$F$2:$G$43,2,FALSE)+ROW()-2))=Switch!$D$62,INDIRECT(\"a\" & (VLOOKUP(Switch!$D$62,$F$2:$G$43,2,FALSE)+ROW()-2)),\"\")","v":{"$error":"#N/A"}},{"$f":"IF(INDIRECT(\"c\" & (VLOOKUP(Switch!$D$63,$F$2:$G$43,2,FALSE)+ROW()-2))=Switch!$D$63,INDIRECT(\"a\" & (VLOOKUP(Switch!$D$63,$F$2:$G$43,2,FALSE)+ROW()-2)),\"\")","v":{"$error":"#N/A"}},{"$f":"IF(INDIRECT(\"c\" & (VLOOKUP(Switch!$D$64,$F$2:$G$43,2,FALSE)+ROW()-2))=Switch!$D$64,INDIRECT(\"a\" & (VLOOKUP(Switch!$D$64,$F$2:$G$43,2,FALSE)+ROW()-2)),\"\")","v":{"$error":"#N/A"}},{"$f":"IF(INDIRECT(\"c\" & (VLOOKUP(Switch!$D$65,$F$2:$G$43,2,FALSE)+ROW()-2))=Switch!$D$65,INDIRECT(\"a\" & (VLOOKUP(Switch!$D$65,$F$2:$G$43,2,FALSE)+ROW()-2)),\"\")","v":{"$error":"#N/A"}},{"$f":"IF(INDIRECT(\"c\" & (VLOOKUP(Switch!$D$66,$F$2:$G$43,2,FALSE)+ROW()-2))=Switch!$D$66,INDIRECT(\"a\" & (VLOOKUP(Switch!$D$66,$F$2:$G$43,2,FALSE)+ROW()-2)),\"\")","v":{"$error":"#N/A"}}]
[null,null,null,{"$f":"ROW()","v":607},null,null,{"$f":"VLOOKUP(F607,$C$2:$D$637,2,FALSE)","v":{"$error":"#N/A"}},{"$f":"IF(INDIRECT(\"c\" & (VLOOKUP(Switch!$D$26,$F$2:$G$43,2,FALSE)+ROW()-2))=Switch!$D$26,INDIRECT(\"a\" & (VLOOKUP(Switch!$D$26,$F$2:$G$43,2,FALSE)+ROW()-2)),\"\")","v":{"$error":"#N/A"}},{"$f":"IF(INDIRECT(\"c\" & (VLOOKUP(Switch!$D$27,$F$2:$G$43,2,FALSE)+ROW()-2))=Switch!$D$27,INDIRECT(\"a\" & (VLOOKUP(Switch!$D$27,$F$2:$G$43,2,FALSE)+ROW()-2)),\"\")","v":{"$error":"#N/A"}},{"$f":"IF(INDIRECT(\"c\" & (VLOOKUP(Switch!$D$28,$F$2:$G$43,2,FALSE)+ROW()-2))=Switch!$D$28,INDIRECT(\"a\" & (VLOOKUP(Switch!$D$28,$F$2:$G$43,2,FALSE)+ROW()-2)),\"\")","v":{"$error":"#N/A"}},{"$f":"IF(INDIRECT(\"c\" & (VLOOKUP(Switch!$D$29,$F$2:$G$43,2,FALSE)+ROW()-2))=Switch!$D$29,INDIRECT(\"a\" & (VLOOKUP(Switch!$D$29,$F$2:$G$43,2,FALSE)+ROW()-2)),\"\")","v":{"$error":"#N/A"}},{"$f":"IF(INDIRECT(\"c\" & (VLOOKUP(Switch!$D$30,$F$2:$G$43,2,FALSE)+ROW()-2))=Switch!$D$30,INDIRECT(\"a\" & (VLOOKUP(Switch!$D$30,$F$2:$G$43,2,FALSE)+ROW()-2)),\"\")","v":{"$error":"#N/A"}},{"$f":"IF(INDIRECT(\"c\" & (VLOOKUP(Switch!$D$31,$F$2:$G$43,2,FALSE)+ROW()-2))=Switch!$D$31,INDIRECT(\"a\" & (VLOOKUP(Switch!$D$31,$F$2:$G$43,2,FALSE)+ROW()-2)),\"\")","v":{"$error":"#N/A"}},{"$f":"IF(INDIRECT(\"c\" & (VLOOKUP(Switch!$D$32,$F$2:$G$43,2,FALSE)+ROW()-2))=Switch!$D$32,INDIRECT(\"a\" & (VLOOKUP(Switch!$D$32,$F$2:$G$43,2,FALSE)+ROW()-2)),\"\")","v":{"$error":"#N/A"}},{"$f":"IF(INDIRECT(\"c\" & (VLOOKUP(Switch!$D$33,$F$2:$G$43,2,FALSE)+ROW()-2))=Switch!$D$33,INDIRECT(\"a\" & (VLOOKUP(Switch!$D$33,$F$2:$G$43,2,FALSE)+ROW()-2)),\"\")","v":{"$error":"#N/A"}},{"$f":"IF(INDIRECT(\"c\" & (VLOOKUP(Switch!$D$34,$F$2:$G$43,2,FALSE)+ROW()-2))=Switch!$D$34,INDIRECT(\"a\" & (VLOOKUP(Switch!$D$34,$F$2:$G$43,2,FALSE)+ROW()-2)),\"\")","v":{"$error":"#N/A"}},{"$f":"IF(INDIRECT(\"c\" & (VLOOKUP(Switch!$D$35,$F$2:$G$43,2,FALSE)+ROW()-2))=Switch!$D$35,INDIRECT(\"a\" & (VLOOKUP(Switch!$D$35,$F$2:$G$43,2,FALSE)+ROW()-2)),\"\")","v":{"$error":"#N/A"}},{"$f":"IF(INDIRECT(\"c\" & (VLOOKUP(Switch!$D$36,$F$2:$G$43,2,FALSE)+ROW()-2))=Switch!$D$36,INDIRECT(\"a\" & (VLOOKUP(Switch!$D$36,$F$2:$G$43,2,FALSE)+ROW()-2)),\"\")","v":{"$error":"#N/A"}},{"$f":"IF(INDIRECT(\"c\" & (VLOOKUP(Switch!$D$37,$F$2:$G$43,2,FALSE)+ROW()-2))=Switch!$D$37,INDIRECT(\"a\" & (VLOOKUP(Switch!$D$37,$F$2:$G$43,2,FALSE)+ROW()-2)),\"\")","v":{"$error":"#N/A"}},{"$f":"IF(INDIRECT(\"c\" & (VLOOKUP(Switch!$D$38,$F$2:$G$43,2,FALSE)+ROW()-2))=Switch!$D$38,INDIRECT(\"a\" & (VLOOKUP(Switch!$D$38,$F$2:$G$43,2,FALSE)+ROW()-2)),\"\")","v":{"$error":"#N/A"}},{"$f":"IF(INDIRECT(\"c\" & (VLOOKUP(Switch!$D$39,$F$2:$G$43,2,FALSE)+ROW()-2))=Switch!$D$39,INDIRECT(\"a\" & (VLOOKUP(Switch!$D$39,$F$2:$G$43,2,FALSE)+ROW()-2)),\"\")","v":{"$error":"#N/A"}},{"$f":"IF(INDIRECT(\"c\" & (VLOOKUP(Switch!$D$40,$F$2:$G$43,2,FALSE)+ROW()-2))=Switch!$D$40,INDIRECT(\"a\" & (VLOOKUP(Switch!$D$40,$F$2:$G$43,2,FALSE)+ROW()-2)),\"\")","v":{"$error":"#N/A"}},{"$f":"IF(INDIRECT(\"c\" & (VLOOKUP(Switch!$D$52,$F$2:$G$43,2,FALSE)+ROW()-2))=Switch!$D$52,INDIRECT(\"a\" & (VLOOKUP(Switch!$D$52,$F$2:$G$43,2,FALSE)+ROW()-2)),\"\")","v":{"$error":"#N/A"}},{"$f":"IF(INDIRECT(\"c\" & (VLOOKUP(Switch!$D$53,$F$2:$G$43,2,FALSE)+ROW()-2))=Switch!$D$53,INDIRECT(\"a\" & (VLOOKUP(Switch!$D$53,$F$2:$G$43,2,FALSE)+ROW()-2)),\"\")","v":{"$error":"#N/A"}},{"$f":"IF(INDIRECT(\"c\" & (VLOOKUP(Switch!$D$54,$F$2:$G$43,2,FALSE)+ROW()-2))=Switch!$D$54,INDIRECT(\"a\" & (VLOOKUP(Switch!$D$54,$F$2:$G$43,2,FALSE)+ROW()-2)),\"\")","v":{"$error":"#N/A"}},{"$f":"IF(INDIRECT(\"c\" & (VLOOKUP(Switch!$D$55,$F$2:$G$43,2,FALSE)+ROW()-2))=Switch!$D$55,INDIRECT(\"a\" & (VLOOKUP(Switch!$D$55,$F$2:$G$43,2,FALSE)+ROW()-2)),\"\")","v":{"$error":"#N/A"}},{"$f":"IF(INDIRECT(\"c\" & (VLOOKUP(Switch!$D$56,$F$2:$G$43,2,FALSE)+ROW()-2))=Switch!$D$56,INDIRECT(\"a\" & (VLOOKUP(Switch!$D$56,$F$2:$G$43,2,FALSE)+ROW()-2)),\"\")","v":{"$error":"#N/A"}},{"$f":"IF(INDIRECT(\"c\" & (VLOOKUP(Switch!$D$57,$F$2:$G$43,2,FALSE)+ROW()-2))=Switch!$D$57,INDIRECT(\"a\" & (VLOOKUP(Switch!$D$57,$F$2:$G$43,2,FALSE)+ROW()-2)),\"\")","v":{"$error":"#N/A"}},{"$f":"IF(INDIRECT(\"c\" & (VLOOKUP(Switch!$D$58,$F$2:$G$43,2,FALSE)+ROW()-2))=Switch!$D$58,INDIRECT(\"a\" & (VLOOKUP(Switch!$D$58,$F$2:$G$43,2,FALSE)+ROW()-2)),\"\")","v":{"$error":"#N/A"}},{"$f":"IF(INDIRECT(\"c\" & (VLOOKUP(Switch!$D$59,$F$2:$G$43,2,FALSE)+ROW()-2))=Switch!$D$59,INDIRECT(\"a\" & (VLOOKUP(Switch!$D$59,$F$2:$G$43,2,FALSE)+ROW()-2)),\"\")","v":{"$error":"#N/A"}},{"$f":"IF(INDIRECT(\"c\" & (VLOOKUP(Switch!$D$60,$F$2:$G$43,2,FALSE)+ROW()-2))=Switch!$D$60,INDIRECT(\"a\" & (VLOOKUP(Switch!$D$60,$F$2:$G$43,2,FALSE)+ROW()-2)),\"\")","v":{"$error":"#N/A"}},{"$f":"IF(INDIRECT(\"c\" & (VLOOKUP(Switch!$D$61,$F$2:$G$43,2,FALSE)+ROW()-2))=Switch!$D$61,INDIRECT(\"a\" & (VLOOKUP(Switch!$D$61,$F$2:$G$43,2,FALSE)+ROW()-2)),\"\")","v":{"$error":"#N/A"}},{"$f":"IF(INDIRECT(\"c\" & (VLOOKUP(Switch!$D$62,$F$2:$G$43,2,FALSE)+ROW()-2))=Switch!$D$62,INDIRECT(\"a\" & (VLOOKUP(Switch!$D$62,$F$2:$G$43,2,FALSE)+ROW()-2)),\"\")","v":{"$error":"#N/A"}},{"$f":"IF(INDIRECT(\"c\" & (VLOOKUP(Switch!$D$63,$F$2:$G$43,2,FALSE)+ROW()-2))=Switch!$D$63,INDIRECT(\"a\" & (VLOOKUP(Switch!$D$63,$F$2:$G$43,2,FALSE)+ROW()-2)),\"\")","v":{"$error":"#N/A"}},{"$f":"IF(INDIRECT(\"c\" & (VLOOKUP(Switch!$D$64,$F$2:$G$43,2,FALSE)+ROW()-2))=Switch!$D$64,INDIRECT(\"a\" & (VLOOKUP(Switch!$D$64,$F$2:$G$43,2,FALSE)+ROW()-2)),\"\")","v":{"$error":"#N/A"}},{"$f":"IF(INDIRECT(\"c\" & (VLOOKUP(Switch!$D$65,$F$2:$G$43,2,FALSE)+ROW()-2))=Switch!$D$65,INDIRECT(\"a\" & (VLOOKUP(Switch!$D$65,$F$2:$G$43,2,FALSE)+ROW()-2)),\"\")","v":{"$error":"#N/A"}},{"$f":"IF(INDIRECT(\"c\" & (VLOOKUP(Switch!$D$66,$F$2:$G$43,2,FALSE)+ROW()-2))=Switch!$D$66,INDIRECT(\"a\" & (VLOOKUP(Switch!$D$66,$F$2:$G$43,2,FALSE)+ROW()-2)),\"\")","v":{"$error":"#N/A"}}]
[null,null,null,{"$f":"ROW()","v":608},null,null,{"$f":"VLOOKUP(F608,$C$2:$D$637,2,FALSE)","v":{"$error":"#N/A"}},{"$f":"IF(INDIRECT(\"c\" & (VLOOKUP(Switch!$D$26,$F$2:$G$43,2,FALSE)+ROW()-2))=Switch!$D$26,INDIRECT(\"a\" & (VLOOKUP(Switch!$D$26,$F$2:$G$43,2,FALSE)+ROW()-2)),\"\")","v":{"$error":"#N/A"}},{"$f":"IF(INDIRECT(\"c\" & (VLOOKUP(Switch!$D$27,$F$2:$G$43,2,FALSE)+ROW()-2))=Switch!$D$27,INDIRECT(\"a\" & (VLOOKUP(Switch!$D$27,$F$2:$G$43,2,FALSE)+ROW()-2)),\"\")","v":{"$error":"#N/A"}},{"$f":"IF(INDIRECT(\"c\" & (VLOOKUP(Switch!$D$28,$F$2:$G$43,2,FALSE)+ROW()-2))=Switch!$D$28,INDIRECT(\"a\" & (VLOOKUP(Switch!$D$28,$F$2:$G$43,2,FALSE)+ROW()-2)),\"\")","v":{"$error":"#N/A"}},{"$f":"IF(INDIRECT(\"c\" & (VLOOKUP(Switch!$D$29,$F$2:$G$43,2,FALSE)+ROW()-2))=Switch!$D$29,INDIRECT(\"a\" & (VLOOKUP(Switch!$D$29,$F$2:$G$43,2,FALSE)+ROW()-2)),\"\")","v":{"$error":"#N/A"}},{"$f":"IF(INDIRECT(\"c\" & (VLOOKUP(Switch!$D$30,$F$2:$G$43,2,FALSE)+ROW()-2))=Switch!$D$30,INDIRECT(\"a\" & (VLOOKUP(Switch!$D$30,$F$2:$G$43,2,FALSE)+ROW()-2)),\"\")","v":{"$error":"#N/A"}},{"$f":"IF(INDIRECT(\"c\" & (VLOOKUP(Switch!$D$31,$F$2:$G$43,2,FALSE)+ROW()-2))=Switch!$D$31,INDIRECT(\"a\" & (VLOOKUP(Switch!$D$31,$F$2:$G$43,2,FALSE)+ROW()-2)),\"\")","v":{"$error":"#N/A"}},{"$f":"IF(INDIRECT(\"c\" & (VLOOKUP(Switch!$D$32,$F$2:$G$43,2,FALSE)+ROW()-2))=Switch!$D$32,INDIRECT(\"a\" & (VLOOKUP(Switch!$D$32,$F$2:$G$43,2,FALSE)+ROW()-2)),\"\")","v":{"$error":"#N/A"}},{"$f":"IF(INDIRECT(\"c\" & (VLOOKUP(Switch!$D$33,$F$2:$G$43,2,FALSE)+ROW()-2))=Switch!$D$33,INDIRECT(\"a\" & (VLOOKUP(Switch!$D$33,$F$2:$G$43,2,FALSE)+ROW()-2)),\"\")","v":{"$error":"#N/A"}},{"$f":"IF(INDIRECT(\"c\" & (VLOOKUP(Switch!$D$34,$F$2:$G$43,2,FALSE)+ROW()-2))=Switch!$D$34,INDIRECT(\"a\" & (VLOOKUP(Switch!$D$34,$F$2:$G$43,2,FALSE)+ROW()-2)),\"\")","v":{"$error":"#N/A"}},{"$f":"IF(INDIRECT(\"c\" & (VLOOKUP(Switch!$D$35,$F$2:$G$43,2,FALSE)+ROW()-2))=Switch!$D$35,INDIRECT(\"a\" & (VLOOKUP(Switch!$D$35,$F$2:$G$43,2,FALSE)+ROW()-2)),\"\")","v":{"$error":"#N/A"}},{"$f":"IF(INDIRECT(\"c\" & (VLOOKUP(Switch!$D$36,$F$2:$G$43,2,FALSE)+ROW()-2))=Switch!$D$36,INDIRECT(\"a\" & (VLOOKUP(Switch!$D$36,$F$2:$G$43,2,FALSE)+ROW()-2)),\"\")","v":{"$error":"#N/A"}},{"$f":"IF(INDIRECT(\"c\" & (VLOOKUP(Switch!$D$37,$F$2:$G$43,2,FALSE)+ROW()-2))=Switch!$D$37,INDIRECT(\"a\" & (VLOOKUP(Switch!$D$37,$F$2:$G$43,2,FALSE)+ROW()-2)),\"\")","v":{"$error":"#N/A"}},{"$f":"IF(INDIRECT(\"c\" & (VLOOKUP(Switch!$D$38,$F$2:$G$43,2,FALSE)+ROW()-2))=Switch!$D$38,INDIRECT(\"a\" & (VLOOKUP(Switch!$D$38,$F$2:$G$43,2,FALSE)+ROW()-2)),\"\")","v":{"$error":"#N/A"}},{"$f":"IF(INDIRECT(\"c\" & (VLOOKUP(Switch!$D$39,$F$2:$G$43,2,FALSE)+ROW()-2))=Switch!$D$39,INDIRECT(\"a\" & (VLOOKUP(Switch!$D$39,$F$2:$G$43,2,FALSE)+ROW()-2)),\"\")","v":{"$error":"#N/A"}},{"$f":"IF(INDIRECT(\"c\" & (VLOOKUP(Switch!$D$40,$F$2:$G$43,2,FALSE)+ROW()-2))=Switch!$D$40,INDIRECT(\"a\" & (VLOOKUP(Switch!$D$40,$F$2:$G$43,2,FALSE)+ROW()-2)),\"\")","v":{"$error":"#N/A"}},{"$f":"IF(INDIRECT(\"c\" & (VLOOKUP(Switch!$D$52,$F$2:$G$43,2,FALSE)+ROW()-2))=Switch!$D$52,INDIRECT(\"a\" & (VLOOKUP(Switch!$D$52,$F$2:$G$43,2,FALSE)+ROW()-2)),\"\")","v":{"$error":"#N/A"}},{"$f":"IF(INDIRECT(\"c\" & (VLOOKUP(Switch!$D$53,$F$2:$G$43,2,FALSE)+ROW()-2))=Switch!$D$53,INDIRECT(\"a\" & (VLOOKUP(Switch!$D$53,$F$2:$G$43,2,FALSE)+ROW()-2)),\"\")","v":{"$error":"#N/A"}},{"$f":"IF(INDIRECT(\"c\" & (VLOOKUP(Switch!$D$54,$F$2:$G$43,2,FALSE)+ROW()-2))=Switch!$D$54,INDIRECT(\"a\" & (VLOOKUP(Switch!$D$54,$F$2:$G$43,2,FALSE)+ROW()-2)),\"\")","v":{"$error":"#N/A"}},{"$f":"IF(INDIRECT(\"c\" & (VLOOKUP(Switch!$D$55,$F$2:$G$43,2,FALSE)+ROW()-2))=Switch!$D$55,INDIRECT(\"a\" & (VLOOKUP(Switch!$D$55,$F$2:$G$43,2,FALSE)+ROW()-2)),\"\")","v":{"$error":"#N/A"}},{"$f":"IF(INDIRECT(\"c\" & (VLOOKUP(Switch!$D$56,$F$2:$G$43,2,FALSE)+ROW()-2))=Switch!$D$56,INDIRECT(\"a\" & (VLOOKUP(Switch!$D$56,$F$2:$G$43,2,FALSE)+ROW()-2)),\"\")","v":{"$error":"#N/A"}},{"$f":"IF(INDIRECT(\"c\" & (VLOOKUP(Switch!$D$57,$F$2:$G$43,2,FALSE)+ROW()-2))=Switch!$D$57,INDIRECT(\"a\" & (VLOOKUP(Switch!$D$57,$F$2:$G$43,2,FALSE)+ROW()-2)),\"\")","v":{"$error":"#N/A"}},{"$f":"IF(INDIRECT(\"c\" & (VLOOKUP(Switch!$D$58,$F$2:$G$43,2,FALSE)+ROW()-2))=Switch!$D$58,INDIRECT(\"a\" & (VLOOKUP(Switch!$D$58,$F$2:$G$43,2,FALSE)+ROW()-2)),\"\")","v":{"$error":"#N/A"}},{"$f":"IF(INDIRECT(\"c\" & (VLOOKUP(Switch!$D$59,$F$2:$G$43,2,FALSE)+ROW()-2))=Switch!$D$59,INDIRECT(\"a\" & (VLOOKUP(Switch!$D$59,$F$2:$G$43,2,FALSE)+ROW()-2)),\"\")","v":{"$error":"#N/A"}},{"$f":"IF(INDIRECT(\"c\" & (VLOOKUP(Switch!$D$60,$F$2:$G$43,2,FALSE)+ROW()-2))=Switch!$D$60,INDIRECT(\"a\" & (VLOOKUP(Switch!$D$60,$F$2:$G$43,2,FALSE)+ROW()-2)),\"\")","v":{"$error":"#N/A"}},{"$f":"IF(INDIRECT(\"c\" & (VLOOKUP(Switch!$D$61,$F$2:$G$43,2,FALSE)+ROW()-2))=Switch!$D$61,INDIRECT(\"a\" & (VLOOKUP(Switch!$D$61,$F$2:$G$43,2,FALSE)+ROW()-2)),\"\")","v":{"$error":"#N/A"}},{"$f":"IF(INDIRECT(\"c\" & (VLOOKUP(Switch!$D$62,$F$2:$G$43,2,FALSE)+ROW()-2))=Switch!$D$62,INDIRECT(\"a\" & (VLOOKUP(Switch!$D$62,$F$2:$G$43,2,FALSE)+ROW()-2)),\"\")","v":{"$error":"#N/A"}},{"$f":"IF(INDIRECT(\"c\" & (VLOOKUP(Switch!$D$63,$F$2:$G$43,2,FALSE)+ROW()-2))=Switch!$D$63,INDIRECT(\"a\" & (VLOOKUP(Switch!$D$63,$F$2:$G$43,2,FALSE)+ROW()-2)),\"\")","v":{"$error":"#N/A"}},{"$f":"IF(INDIRECT(\"c\" & (VLOOKUP(Switch!$D$64,$F$2:$G$43,2,FALSE)+ROW()-2))=Switch!$D$64,INDIRECT(\"a\" & (VLOOKUP(Switch!$D$64,$F$2:$G$43,2,FALSE)+ROW()-2)),\"\")","v":{"$error":"#N/A"}},{"$f":"IF(INDIRECT(\"c\" & (VLOOKUP(Switch!$D$65,$F$2:$G$43,2,FALSE)+ROW()-2))=Switch!$D$65,INDIRECT(\"a\" & (VLOOKUP(Switch!$D$65,$F$2:$G$43,2,FALSE)+ROW()-2)),\"\")","v":{"$error":"#N/A"}},{"$f":"IF(INDIRECT(\"c\" & (VLOOKUP(Switch!$D$66,$F$2:$G$43,2,FALSE)+ROW()-2))=Switch!$D$66,INDIRECT(\"a\" & (VLOOKUP(Switch!$D$66,$F$2:$G$43,2,FALSE)+ROW()-2)),\"\")","v":{"$error":"#N/A"}}]
[null,null,null,{"$f":"ROW()","v":609},null,null,{"$f":"VLOOKUP(F609,$C$2:$D$637,2,FALSE)","v":{"$error":"#N/A"}},{"$f":"IF(INDIRECT(\"c\" & (VLOOKUP(Switch!$D$26,$F$2:$G$43,2,FALSE)+ROW()-2))=Switch!$D$26,INDIRECT(\"a\" & (VLOOKUP(Switch!$D$26,$F$2:$G$43,2,FALSE)+ROW()-2)),\"\")","v":{"$error":"#N/A"}},{"$f":"IF(INDIRECT(\"c\" & (VLOOKUP(Switch!$D$27,$F$2:$G$43,2,FALSE)+ROW()-2))=Switch!$D$27,INDIRECT(\"a\" & (VLOOKUP(Switch!$D$27,$F$2:$G$43,2,FALSE)+ROW()-2)),\"\")","v":{"$error":"#N/A"}},{"$f":"IF(INDIRECT(\"c\" & (VLOOKUP(Switch!$D$28,$F$2:$G$43,2,FALSE)+ROW()-2))=Switch!$D$28,INDIRECT(\"a\" & (VLOOKUP(Switch!$D$28,$F$2:$G$43,2,FALSE)+ROW()-2)),\"\")","v":{"$error":"#N/A"}},{"$f":"IF(INDIRECT(\"c\" & (VLOOKUP(Switch!$D$29,$F$2:$G$43,2,FALSE)+ROW()-2))=Switch!$D$29,INDIRECT(\"a\" & (VLOOKUP(Switch!$D$29,$F$2:$G$43,2,FALSE)+ROW()-2)),\"\")","v":{"$error":"#N/A"}},{"$f":"IF(INDIRECT(\"c\" & (VLOOKUP(Switch!$D$30,$F$2:$G$43,2,FALSE)+ROW()-2))=Switch!$D$30,INDIRECT(\"a\" & (VLOOKUP(Switch!$D$30,$F$2:$G$43,2,FALSE)+ROW()-2)),\"\")","v":{"$error":"#N/A"}},{"$f":"IF(INDIRECT(\"c\" & (VLOOKUP(Switch!$D$31,$F$2:$G$43,2,FALSE)+ROW()-2))=Switch!$D$31,INDIRECT(\"a\" & (VLOOKUP(Switch!$D$31,$F$2:$G$43,2,FALSE)+ROW()-2)),\"\")","v":{"$error":"#N/A"}},{"$f":"IF(INDIRECT(\"c\" & (VLOOKUP(Switch!$D$32,$F$2:$G$43,2,FALSE)+ROW()-2))=Switch!$D$32,INDIRECT(\"a\" & (VLOOKUP(Switch!$D$32,$F$2:$G$43,2,FALSE)+ROW()-2)),\"\")","v":{"$error":"#N/A"}},{"$f":"IF(INDIRECT(\"c\" & (VLOOKUP(Switch!$D$33,$F$2:$G$43,2,FALSE)+ROW()-2))=Switch!$D$33,INDIRECT(\"a\" & (VLOOKUP(Switch!$D$33,$F$2:$G$43,2,FALSE)+ROW()-2)),\"\")","v":{"$error":"#N/A"}},{"$f":"IF(INDIRECT(\"c\" & (VLOOKUP(Switch!$D$34,$F$2:$G$43,2,FALSE)+ROW()-2))=Switch!$D$34,INDIRECT(\"a\" & (VLOOKUP(Switch!$D$34,$F$2:$G$43,2,FALSE)+ROW()-2)),\"\")","v":{"$error":"#N/A"}},{"$f":"IF(INDIRECT(\"c\" & (VLOOKUP(Switch!$D$35,$F$2:$G$43,2,FALSE)+ROW()-2))=Switch!$D$35,INDIRECT(\"a\" & (VLOOKUP(Switch!$D$35,$F$2:$G$43,2,FALSE)+ROW()-2)),\"\")","v":{"$error":"#N/A"}},{"$f":"IF(INDIRECT(\"c\" & (VLOOKUP(Switch!$D$36,$F$2:$G$43,2,FALSE)+ROW()-2))=Switch!$D$36,INDIRECT(\"a\" & (VLOOKUP(Switch!$D$36,$F$2:$G$43,2,FALSE)+ROW()-2)),\"\")","v":{"$error":"#N/A"}},{"$f":"IF(INDIRECT(\"c\" & (VLOOKUP(Switch!$D$37,$F$2:$G$43,2,FALSE)+ROW()-2))=Switch!$D$37,INDIRECT(\"a\" & (VLOOKUP(Switch!$D$37,$F$2:$G$43,2,FALSE)+ROW()-2)),\"\")","v":{"$error":"#N/A"}},{"$f":"IF(INDIRECT(\"c\" & (VLOOKUP(Switch!$D$38,$F$2:$G$43,2,FALSE)+ROW()-2))=Switch!$D$38,INDIRECT(\"a\" & (VLOOKUP(Switch!$D$38,$F$2:$G$43,2,FALSE)+ROW()-2)),\"\")","v":{"$error":"#N/A"}},{"$f":"IF(INDIRECT(\"c\" & (VLOOKUP(Switch!$D$39,$F$2:$G$43,2,FALSE)+ROW()-2))=Switch!$D$39,INDIRECT(\"a\" & (VLOOKUP(Switch!$D$39,$F$2:$G$43,2,FALSE)+ROW()-2)),\"\")","v":{"$error":"#N/A"}},{"$f":"IF(INDIRECT(\"c\" & (VLOOKUP(Switch!$D$40,$F$2:$G$43,2,FALSE)+ROW()-2))=Switch!$D$40,INDIRECT(\"a\" & (VLOOKUP(Switch!$D$40,$F$2:$G$43,2,FALSE)+ROW()-2)),\"\")","v":{"$error":"#N/A"}},{"$f":"IF(INDIRECT(\"c\" & (VLOOKUP(Switch!$D$52,$F$2:$G$43,2,FALSE)+ROW()-2))=Switch!$D$52,INDIRECT(\"a\" & (VLOOKUP(Switch!$D$52,$F$2:$G$43,2,FALSE)+ROW()-2)),\"\")","v":{"$error":"#N/A"}},{"$f":"IF(INDIRECT(\"c\" & (VLOOKUP(Switch!$D$53,$F$2:$G$43,2,FALSE)+ROW()-2))=Switch!$D$53,INDIRECT(\"a\" & (VLOOKUP(Switch!$D$53,$F$2:$G$43,2,FALSE)+ROW()-2)),\"\")","v":{"$error":"#N/A"}},{"$f":"IF(INDIRECT(\"c\" & (VLOOKUP(Switch!$D$54,$F$2:$G$43,2,FALSE)+ROW()-2))=Switch!$D$54,INDIRECT(\"a\" & (VLOOKUP(Switch!$D$54,$F$2:$G$43,2,FALSE)+ROW()-2)),\"\")","v":{"$error":"#N/A"}},{"$f":"IF(INDIRECT(\"c\" & (VLOOKUP(Switch!$D$55,$F$2:$G$43,2,FALSE)+ROW()-2))=Switch!$D$55,INDIRECT(\"a\" & (VLOOKUP(Switch!$D$55,$F$2:$G$43,2,FALSE)+ROW()-2)),\"\")","v":{"$error":"#N/A"}},{"$f":"IF(INDIRECT(\"c\" & (VLOOKUP(Switch!$D$56,$F$2:$G$43,2,FALSE)+ROW()-2))=Switch!$D$56,INDIRECT(\"a\" & (VLOOKUP(Switch!$D$56,$F$2:$G$43,2,FALSE)+ROW()-2)),\"\")","v":{"$error":"#N/A"}},{"$f":"IF(INDIRECT(\"c\" & (VLOOKUP(Switch!$D$57,$F$2:$G$43,2,FALSE)+ROW()-2))=Switch!$D$57,INDIRECT(\"a\" & (VLOOKUP(Switch!$D$57,$F$2:$G$43,2,FALSE)+ROW()-2)),\"\")","v":{"$error":"#N/A"}},{"$f":"IF(INDIRECT(\"c\" & (VLOOKUP(Switch!$D$58,$F$2:$G$43,2,FALSE)+ROW()-2))=Switch!$D$58,INDIRECT(\"a\" & (VLOOKUP(Switch!$D$58,$F$2:$G$43,2,FALSE)+ROW()-2)),\"\")","v":{"$error":"#N/A"}},{"$f":"IF(INDIRECT(\"c\" & (VLOOKUP(Switch!$D$59,$F$2:$G$43,2,FALSE)+ROW()-2))=Switch!$D$59,INDIRECT(\"a\" & (VLOOKUP(Switch!$D$59,$F$2:$G$43,2,FALSE)+ROW()-2)),\"\")","v":{"$error":"#N/A"}},{"$f":"IF(INDIRECT(\"c\" & (VLOOKUP(Switch!$D$60,$F$2:$G$43,2,FALSE)+ROW()-2))=Switch!$D$60,INDIRECT(\"a\" & (VLOOKUP(Switch!$D$60,$F$2:$G$43,2,FALSE)+ROW()-2)),\"\")","v":{"$error":"#N/A"}},{"$f":"IF(INDIRECT(\"c\" & (VLOOKUP(Switch!$D$61,$F$2:$G$43,2,FALSE)+ROW()-2))=Switch!$D$61,INDIRECT(\"a\" & (VLOOKUP(Switch!$D$61,$F$2:$G$43,2,FALSE)+ROW()-2)),\"\")","v":{"$error":"#N/A"}},{"$f":"IF(INDIRECT(\"c\" & (VLOOKUP(Switch!$D$62,$F$2:$G$43,2,FALSE)+ROW()-2))=Switch!$D$62,INDIRECT(\"a\" & (VLOOKUP(Switch!$D$62,$F$2:$G$43,2,FALSE)+ROW()-2)),\"\")","v":{"$error":"#N/A"}},{"$f":"IF(INDIRECT(\"c\" & (VLOOKUP(Switch!$D$63,$F$2:$G$43,2,FALSE)+ROW()-2))=Switch!$D$63,INDIRECT(\"a\" & (VLOOKUP(Switch!$D$63,$F$2:$G$43,2,FALSE)+ROW()-2)),\"\")","v":{"$error":"#N/A"}},{"$f":"IF(INDIRECT(\"c\" & (VLOOKUP(Switch!$D$64,$F$2:$G$43,2,FALSE)+ROW()-2))=Switch!$D$64,INDIRECT(\"a\" & (VLOOKUP(Switch!$D$64,$F$2:$G$43,2,FALSE)+ROW()-2)),\"\")","v":{"$error":"#N/A"}},{"$f":"IF(INDIRECT(\"c\" & (VLOOKUP(Switch!$D$65,$F$2:$G$43,2,FALSE)+ROW()-2))=Switch!$D$65,INDIRECT(\"a\" & (VLOOKUP(Switch!$D$65,$F$2:$G$43,2,FALSE)+ROW()-2)),\"\")","v":{"$error":"#N/A"}},{"$f":"IF(INDIRECT(\"c\" & (VLOOKUP(Switch!$D$66,$F$2:$G$43,2,FALSE)+ROW()-2))=Switch!$D$66,INDIRECT(\"a\" & (VLOOKUP(Switch!$D$66,$F$2:$G$43,2,FALSE)+ROW()-2)),\"\")","v":{"$error":"#N/A"}}]
[null,null,null,{"$f":"ROW()","v":610},null,null,{"$f":"VLOOKUP(F610,$C$2:$D$637,2,FALSE)","v":{"$error":"#N/A"}},{"$f":"IF(INDIRECT(\"c\" & (VLOOKUP(Switch!$D$26,$F$2:$G$43,2,FALSE)+ROW()-2))=Switch!$D$26,INDIRECT(\"a\" & (VLOOKUP(Switch!$D$26,$F$2:$G$43,2,FALSE)+ROW()-2)),\"\")","v":{"$error":"#N/A"}},{"$f":"IF(INDIRECT(\"c\" & (VLOOKUP(Switch!$D$27,$F$2:$G$43,2,FALSE)+ROW()-2))=Switch!$D$27,INDIRECT(\"a\" & (VLOOKUP(Switch!$D$27,$F$2:$G$43,2,FALSE)+ROW()-2)),\"\")","v":{"$error":"#N/A"}},{"$f":"IF(INDIRECT(\"c\" & (VLOOKUP(Switch!$D$28,$F$2:$G$43,2,FALSE)+ROW()-2))=Switch!$D$28,INDIRECT(\"a\" & (VLOOKUP(Switch!$D$28,$F$2:$G$43,2,FALSE)+ROW()-2)),\"\")","v":{"$error":"#N/A"}},{"$f":"IF(INDIRECT(\"c\" & (VLOOKUP(Switch!$D$29,$F$2:$G$43,2,FALSE)+ROW()-2))=Switch!$D$29,INDIRECT(\"a\" & (VLOOKUP(Switch!$D$29,$F$2:$G$43,2,FALSE)+ROW()-2)),\"\")","v":{"$error":"#N/A"}},{"$f":"IF(INDIRECT(\"c\" & (VLOOKUP(Switch!$D$30,$F$2:$G$43,2,FALSE)+ROW()-2))=Switch!$D$30,INDIRECT(\"a\" & (VLOOKUP(Switch!$D$30,$F$2:$G$43,2,FALSE)+ROW()-2)),\"\")","v":{"$error":"#N/A"}},{"$f":"IF(INDIRECT(\"c\" & (VLOOKUP(Switch!$D$31,$F$2:$G$43,2,FALSE)+ROW()-2))=Switch!$D$31,INDIRECT(\"a\" & (VLOOKUP(Switch!$D$31,$F$2:$G$43,2,FALSE)+ROW()-2)),\"\")","v":{"$error":"#N/A"}},{"$f":"IF(INDIRECT(\"c\" & (VLOOKUP(Switch!$D$32,$F$2:$G$43,2,FALSE)+ROW()-2))=Switch!$D$32,INDIRECT(\"a\" & (VLOOKUP(Switch!$D$32,$F$2:$G$43,2,FALSE)+ROW()-2)),\"\")","v":{"$error":"#N/A"}},{"$f":"IF(INDIRECT(\"c\" & (VLOOKUP(Switch!$D$33,$F$2:$G$43,2,FALSE)+ROW()-2))=Switch!$D$33,INDIRECT(\"a\" & (VLOOKUP(Switch!$D$33,$F$2:$G$43,2,FALSE)+ROW()-2)),\"\")","v":{"$error":"#N/A"}},{"$f":"IF(INDIRECT(\"c\" & (VLOOKUP(Switch!$D$34,$F$2:$G$43,2,FALSE)+ROW()-2))=Switch!$D$34,INDIRECT(\"a\" & (VLOOKUP(Switch!$D$34,$F$2:$G$43,2,FALSE)+ROW()-2)),\"\")","v":{"$error":"#N/A"}},{"$f":"IF(INDIRECT(\"c\" & (VLOOKUP(Switch!$D$35,$F$2:$G$43,2,FALSE)+ROW()-2))=Switch!$D$35,INDIRECT(\"a\" & (VLOOKUP(Switch!$D$35,$F$2:$G$43,2,FALSE)+ROW()-2)),\"\")","v":{"$error":"#N/A"}},{"$f":"IF(INDIRECT(\"c\" & (VLOOKUP(Switch!$D$36,$F$2:$G$43,2,FALSE)+ROW()-2))=Switch!$D$36,INDIRECT(\"a\" & (VLOOKUP(Switch!$D$36,$F$2:$G$43,2,FALSE)+ROW()-2)),\"\")","v":{"$error":"#N/A"}},{"$f":"IF(INDIRECT(\"c\" & (VLOOKUP(Switch!$D$37,$F$2:$G$43,2,FALSE)+ROW()-2))=Switch!$D$37,INDIRECT(\"a\" & (VLOOKUP(Switch!$D$37,$F$2:$G$43,2,FALSE)+ROW()-2)),\"\")","v":{"$error":"#N/A"}},{"$f":"IF(INDIRECT(\"c\" & (VLOOKUP(Switch!$D$38,$F$2:$G$43,2,FALSE)+ROW()-2))=Switch!$D$38,INDIRECT(\"a\" & (VLOOKUP(Switch!$D$38,$F$2:$G$43,2,FALSE)+ROW()-2)),\"\")","v":{"$error":"#N/A"}},{"$f":"IF(INDIRECT(\"c\" & (VLOOKUP(Switch!$D$39,$F$2:$G$43,2,FALSE)+ROW()-2))=Switch!$D$39,INDIRECT(\"a\" & (VLOOKUP(Switch!$D$39,$F$2:$G$43,2,FALSE)+ROW()-2)),\"\")","v":{"$error":"#N/A"}},{"$f":"IF(INDIRECT(\"c\" & (VLOOKUP(Switch!$D$40,$F$2:$G$43,2,FALSE)+ROW()-2))=Switch!$D$40,INDIRECT(\"a\" & (VLOOKUP(Switch!$D$40,$F$2:$G$43,2,FALSE)+ROW()-2)),\"\")","v":{"$error":"#N/A"}},{"$f":"IF(INDIRECT(\"c\" & (VLOOKUP(Switch!$D$52,$F$2:$G$43,2,FALSE)+ROW()-2))=Switch!$D$52,INDIRECT(\"a\" & (VLOOKUP(Switch!$D$52,$F$2:$G$43,2,FALSE)+ROW()-2)),\"\")","v":{"$error":"#N/A"}},{"$f":"IF(INDIRECT(\"c\" & (VLOOKUP(Switch!$D$53,$F$2:$G$43,2,FALSE)+ROW()-2))=Switch!$D$53,INDIRECT(\"a\" & (VLOOKUP(Switch!$D$53,$F$2:$G$43,2,FALSE)+ROW()-2)),\"\")","v":{"$error":"#N/A"}},{"$f":"IF(INDIRECT(\"c\" & (VLOOKUP(Switch!$D$54,$F$2:$G$43,2,FALSE)+ROW()-2))=Switch!$D$54,INDIRECT(\"a\" & (VLOOKUP(Switch!$D$54,$F$2:$G$43,2,FALSE)+ROW()-2)),\"\")","v":{"$error":"#N/A"}},{"$f":"IF(INDIRECT(\"c\" & (VLOOKUP(Switch!$D$55,$F$2:$G$43,2,FALSE)+ROW()-2))=Switch!$D$55,INDIRECT(\"a\" & (VLOOKUP(Switch!$D$55,$F$2:$G$43,2,FALSE)+ROW()-2)),\"\")","v":{"$error":"#N/A"}},{"$f":"IF(INDIRECT(\"c\" & (VLOOKUP(Switch!$D$56,$F$2:$G$43,2,FALSE)+ROW()-2))=Switch!$D$56,INDIRECT(\"a\" & (VLOOKUP(Switch!$D$56,$F$2:$G$43,2,FALSE)+ROW()-2)),\"\")","v":{"$error":"#N/A"}},{"$f":"IF(INDIRECT(\"c\" & (VLOOKUP(Switch!$D$57,$F$2:$G$43,2,FALSE)+ROW()-2))=Switch!$D$57,INDIRECT(\"a\" & (VLOOKUP(Switch!$D$57,$F$2:$G$43,2,FALSE)+ROW()-2)),\"\")","v":{"$error":"#N/A"}},{"$f":"IF(INDIRECT(\"c\" & (VLOOKUP(Switch!$D$58,$F$2:$G$43,2,FALSE)+ROW()-2))=Switch!$D$58,INDIRECT(\"a\" & (VLOOKUP(Switch!$D$58,$F$2:$G$43,2,FALSE)+ROW()-2)),\"\")","v":{"$error":"#N/A"}},{"$f":"IF(INDIRECT(\"c\" & (VLOOKUP(Switch!$D$59,$F$2:$G$43,2,FALSE)+ROW()-2))=Switch!$D$59,INDIRECT(\"a\" & (VLOOKUP(Switch!$D$59,$F$2:$G$43,2,FALSE)+ROW()-2)),\"\")","v":{"$error":"#N/A"}},{"$f":"IF(INDIRECT(\"c\" & (VLOOKUP(Switch!$D$60,$F$2:$G$43,2,FALSE)+ROW()-2))=Switch!$D$60,INDIRECT(\"a\" & (VLOOKUP(Switch!$D$60,$F$2:$G$43,2,FALSE)+ROW()-2)),\"\")","v":{"$error":"#N/A"}},{"$f":"IF(INDIRECT(\"c\" & (VLOOKUP(Switch!$D$61,$F$2:$G$43,2,FALSE)+ROW()-2))=Switch!$D$61,INDIRECT(\"a\" & (VLOOKUP(Switch!$D$61,$F$2:$G$43,2,FALSE)+ROW()-2)),\"\")","v":{"$error":"#N/A"}},{"$f":"IF(INDIRECT(\"c\" & (VLOOKUP(Switch!$D$62,$F$2:$G$43,2,FALSE)+ROW()-2))=Switch!$D$62,INDIRECT(\"a\" & (VLOOKUP(Switch!$D$62,$F$2:$G$43,2,FALSE)+ROW()-2)),\"\")","v":{"$error":"#N/A"}},{"$f":"IF(INDIRECT(\"c\" & (VLOOKUP(Switch!$D$63,$F$2:$G$43,2,FALSE)+ROW()-2))=Switch!$D$63,INDIRECT(\"a\" & (VLOOKUP(Switch!$D$63,$F$2:$G$43,2,FALSE)+ROW()-2)),\"\")","v":{"$error":"#N/A"}},{"$f":"IF(INDIRECT(\"c\" & (VLOOKUP(Switch!$D$64,$F$2:$G$43,2,FALSE)+ROW()-2))=Switch!$D$64,INDIRECT(\"a\" & (VLOOKUP(Switch!$D$64,$F$2:$G$43,2,FALSE)+ROW()-2)),\"\")","v":{"$error":"#N/A"}},{"$f":"IF(INDIRECT(\"c\" & (VLOOKUP(Switch!$D$65,$F$2:$G$43,2,FALSE)+ROW()-2))=Switch!$D$65,INDIRECT(\"a\" & (VLOOKUP(Switch!$D$65,$F$2:$G$43,2,FALSE)+ROW()-2)),\"\")","v":{"$error":"#N/A"}},{"$f":"IF(INDIRECT(\"c\" & (VLOOKUP(Switch!$D$66,$F$2:$G$43,2,FALSE)+ROW()-2))=Switch!$D$66,INDIRECT(\"a\" & (VLOOKUP(Switch!$D$66,$F$2:$G$43,2,FALSE)+ROW()-2)),\"\")","v":{"$error":"#N/A"}}]
[null,null,null,{"$f":"ROW()","v":611},null,null,{"$f":"VLOOKUP(F611,$C$2:$D$637,2,FALSE)","v":{"$error":"#N/A"}},{"$f":"IF(INDIRECT(\"c\" & (VLOOKUP(Switch!$D$26,$F$2:$G$43,2,FALSE)+ROW()-2))=Switch!$D$26,INDIRECT(\"a\" & (VLOOKUP(Switch!$D$26,$F$2:$G$43,2,FALSE)+ROW()-2)),\"\")","v":{"$error":"#N/A"}},{"$f":"IF(INDIRECT(\"c\" & (VLOOKUP(Switch!$D$27,$F$2:$G$43,2,FALSE)+ROW()-2))=Switch!$D$27,INDIRECT(\"a\" & (VLOOKUP(Switch!$D$27,$F$2:$G$43,2,FALSE)+ROW()-2)),\"\")","v":{"$error":"#N/A"}},{"$f":"IF(INDIRECT(\"c\" & (VLOOKUP(Switch!$D$28,$F$2:$G$43,2,FALSE)+ROW()-2))=Switch!$D$28,INDIRECT(\"a\" & (VLOOKUP(Switch!$D$28,$F$2:$G$43,2,FALSE)+ROW()-2)),\"\")","v":{"$error":"#N/A"}},{"$f":"IF(INDIRECT(\"c\" & (VLOOKUP(Switch!$D$29,$F$2:$G$43,2,FALSE)+ROW()-2))=Switch!$D$29,INDIRECT(\"a\" & (VLOOKUP(Switch!$D$29,$F$2:$G$43,2,FALSE)+ROW()-2)),\"\")","v":{"$error":"#N/A"}},{"$f":"IF(INDIRECT(\"c\" & (VLOOKUP(Switch!$D$30,$F$2:$G$43,2,FALSE)+ROW()-2))=Switch!$D$30,INDIRECT(\"a\" & (VLOOKUP(Switch!$D$30,$F$2:$G$43,2,FALSE)+ROW()-2)),\"\")","v":{"$error":"#N/A"}},{"$f":"IF(INDIRECT(\"c\" & (VLOOKUP(Switch!$D$31,$F$2:$G$43,2,FALSE)+ROW()-2))=Switch!$D$31,INDIRECT(\"a\" & (VLOOKUP(Switch!$D$31,$F$2:$G$43,2,FALSE)+ROW()-2)),\"\")","v":{"$error":"#N/A"}},{"$f":"IF(INDIRECT(\"c\" & (VLOOKUP(Switch!$D$32,$F$2:$G$43,2,FALSE)+ROW()-2))=Switch!$D$32,INDIRECT(\"a\" & (VLOOKUP(Switch!$D$32,$F$2:$G$43,2,FALSE)+ROW()-2)),\"\")","v":{"$error":"#N/A"}},{"$f":"IF(INDIRECT(\"c\" & (VLOOKUP(Switch!$D$33,$F$2:$G$43,2,FALSE)+ROW()-2))=Switch!$D$33,INDIRECT(\"a\" & (VLOOKUP(Switch!$D$33,$F$2:$G$43,2,FALSE)+ROW()-2)),\"\")","v":{"$error":"#N/A"}},{"$f":"IF(INDIRECT(\"c\" & (VLOOKUP(Switch!$D$34,$F$2:$G$43,2,FALSE)+ROW()-2))=Switch!$D$34,INDIRECT(\"a\" & (VLOOKUP(Switch!$D$34,$F$2:$G$43,2,FALSE)+ROW()-2)),\"\")","v":{"$error":"#N/A"}},{"$f":"IF(INDIRECT(\"c\" & (VLOOKUP(Switch!$D$35,$F$2:$G$43,2,FALSE)+ROW()-2))=Switch!$D$35,INDIRECT(\"a\" & (VLOOKUP(Switch!$D$35,$F$2:$G$43,2,FALSE)+ROW()-2)),\"\")","v":{"$error":"#N/A"}},{"$f":"IF(INDIRECT(\"c\" & (VLOOKUP(Switch!$D$36,$F$2:$G$43,2,FALSE)+ROW()-2))=Switch!$D$36,INDIRECT(\"a\" & (VLOOKUP(Switch!$D$36,$F$2:$G$43,2,FALSE)+ROW()-2)),\"\")","v":{"$error":"#N/A"}},{"$f":"IF(INDIRECT(\"c\" & (VLOOKUP(Switch!$D$37,$F$2:$G$43,2,FALSE)+ROW()-2))=Switch!$D$37,INDIRECT(\"a\" & (VLOOKUP(Switch!$D$37,$F$2:$G$43,2,FALSE)+ROW()-2)),\"\")","v":{"$error":"#N/A"}},{"$f":"IF(INDIRECT(\"c\" & (VLOOKUP(Switch!$D$38,$F$2:$G$43,2,FALSE)+ROW()-2))=Switch!$D$38,INDIRECT(\"a\" & (VLOOKUP(Switch!$D$38,$F$2:$G$43,2,FALSE)+ROW()-2)),\"\")","v":{"$error":"#N/A"}},{"$f":"IF(INDIRECT(\"c\" & (VLOOKUP(Switch!$D$39,$F$2:$G$43,2,FALSE)+ROW()-2))=Switch!$D$39,INDIRECT(\"a\" & (VLOOKUP(Switch!$D$39,$F$2:$G$43,2,FALSE)+ROW()-2)),\"\")","v":{"$error":"#N/A"}},{"$f":"IF(INDIRECT(\"c\" & (VLOOKUP(Switch!$D$40,$F$2:$G$43,2,FALSE)+ROW()-2))=Switch!$D$40,INDIRECT(\"a\" & (VLOOKUP(Switch!$D$40,$F$2:$G$43,2,FALSE)+ROW()-2)),\"\")","v":{"$error":"#N/A"}},{"$f":"IF(INDIRECT(\"c\" & (VLOOKUP(Switch!$D$52,$F$2:$G$43,2,FALSE)+ROW()-2))=Switch!$D$52,INDIRECT(\"a\" & (VLOOKUP(Switch!$D$52,$F$2:$G$43,2,FALSE)+ROW()-2)),\"\")","v":{"$error":"#N/A"}},{"$f":"IF(INDIRECT(\"c\" & (VLOOKUP(Switch!$D$53,$F$2:$G$43,2,FALSE)+ROW()-2))=Switch!$D$53,INDIRECT(\"a\" & (VLOOKUP(Switch!$D$53,$F$2:$G$43,2,FALSE)+ROW()-2)),\"\")","v":{"$error":"#N/A"}},{"$f":"IF(INDIRECT(\"c\" & (VLOOKUP(Switch!$D$54,$F$2:$G$43,2,FALSE)+ROW()-2))=Switch!$D$54,INDIRECT(\"a\" & (VLOOKUP(Switch!$D$54,$F$2:$G$43,2,FALSE)+ROW()-2)),\"\")","v":{"$error":"#N/A"}},{"$f":"IF(INDIRECT(\"c\" & (VLOOKUP(Switch!$D$55,$F$2:$G$43,2,FALSE)+ROW()-2))=Switch!$D$55,INDIRECT(\"a\" & (VLOOKUP(Switch!$D$55,$F$2:$G$43,2,FALSE)+ROW()-2)),\"\")","v":{"$error":"#N/A"}},{"$f":"IF(INDIRECT(\"c\" & (VLOOKUP(Switch!$D$56,$F$2:$G$43,2,FALSE)+ROW()-2))=Switch!$D$56,INDIRECT(\"a\" & (VLOOKUP(Switch!$D$56,$F$2:$G$43,2,FALSE)+ROW()-2)),\"\")","v":{"$error":"#N/A"}},{"$f":"IF(INDIRECT(\"c\" & (VLOOKUP(Switch!$D$57,$F$2:$G$43,2,FALSE)+ROW()-2))=Switch!$D$57,INDIRECT(\"a\" & (VLOOKUP(Switch!$D$57,$F$2:$G$43,2,FALSE)+ROW()-2)),\"\")","v":{"$error":"#N/A"}},{"$f":"IF(INDIRECT(\"c\" & (VLOOKUP(Switch!$D$58,$F$2:$G$43,2,FALSE)+ROW()-2))=Switch!$D$58,INDIRECT(\"a\" & (VLOOKUP(Switch!$D$58,$F$2:$G$43,2,FALSE)+ROW()-2)),\"\")","v":{"$error":"#N/A"}},{"$f":"IF(INDIRECT(\"c\" & (VLOOKUP(Switch!$D$59,$F$2:$G$43,2,FALSE)+ROW()-2))=Switch!$D$59,INDIRECT(\"a\" & (VLOOKUP(Switch!$D$59,$F$2:$G$43,2,FALSE)+ROW()-2)),\"\")","v":{"$error":"#N/A"}},{"$f":"IF(INDIRECT(\"c\" & (VLOOKUP(Switch!$D$60,$F$2:$G$43,2,FALSE)+ROW()-2))=Switch!$D$60,INDIRECT(\"a\" & (VLOOKUP(Switch!$D$60,$F$2:$G$43,2,FALSE)+ROW()-2)),\"\")","v":{"$error":"#N/A"}},{"$f":"IF(INDIRECT(\"c\" & (VLOOKUP(Switch!$D$61,$F$2:$G$43,2,FALSE)+ROW()-2))=Switch!$D$61,INDIRECT(\"a\" & (VLOOKUP(Switch!$D$61,$F$2:$G$43,2,FALSE)+ROW()-2)),\"\")","v":{"$error":"#N/A"}},{"$f":"IF(INDIRECT(\"c\" & (VLOOKUP(Switch!$D$62,$F$2:$G$43,2,FALSE)+ROW()-2))=Switch!$D$62,INDIRECT(\"a\" & (VLOOKUP(Switch!$D$62,$F$2:$G$43,2,FALSE)+ROW()-2)),\"\")","v":{"$error":"#N/A"}},{"$f":"IF(INDIRECT(\"c\" & (VLOOKUP(Switch!$D$63,$F$2:$G$43,2,FALSE)+ROW()-2))=Switch!$D$63,INDIRECT(\"a\" & (VLOOKUP(Switch!$D$63,$F$2:$G$43,2,FALSE)+ROW()-2)),\"\")","v":{"$error":"#N/A"}},{"$f":"IF(INDIRECT(\"c\" & (VLOOKUP(Switch!$D$64,$F$2:$G$43,2,FALSE)+ROW()-2))=Switch!$D$64,INDIRECT(\"a\" & (VLOOKUP(Switch!$D$64,$F$2:$G$43,2,FALSE)+ROW()-2)),\"\")","v":{"$error":"#N/A"}},{"$f":"IF(INDIRECT(\"c\" & (VLOOKUP(Switch!$D$65,$F$2:$G$43,2,FALSE)+ROW()-2))=Switch!$D$65,INDIRECT(\"a\" & (VLOOKUP(Switch!$D$65,$F$2:$G$43,2,FALSE)+ROW()-2)),\"\")","v":{"$error":"#N/A"}},{"$f":"IF(INDIRECT(\"c\" & (VLOOKUP(Switch!$D$66,$F$2:$G$43,2,FALSE)+ROW()-2))=Switch!$D$66,INDIRECT(\"a\" & (VLOOKUP(Switch!$D$66,$F$2:$G$43,2,FALSE)+ROW()-2)),\"\")","v":{"$error":"#N/A"}}]
[null,null,null,{"$f":"ROW()","v":612},null,null,{"$f":"VLOOKUP(F612,$C$2:$D$637,2,FALSE)","v":{"$error":"#N/A"}},{"$f":"IF(INDIRECT(\"c\" & (VLOOKUP(Switch!$D$26,$F$2:$G$43,2,FALSE)+ROW()-2))=Switch!$D$26,INDIRECT(\"a\" & (VLOOKUP(Switch!$D$26,$F$2:$G$43,2,FALSE)+ROW()-2)),\"\")","v":{"$error":"#N/A"}},{"$f":"IF(INDIRECT(\"c\" & (VLOOKUP(Switch!$D$27,$F$2:$G$43,2,FALSE)+ROW()-2))=Switch!$D$27,INDIRECT(\"a\" & (VLOOKUP(Switch!$D$27,$F$2:$G$43,2,FALSE)+ROW()-2)),\"\")","v":{"$error":"#N/A"}},{"$f":"IF(INDIRECT(\"c\" & (VLOOKUP(Switch!$D$28,$F$2:$G$43,2,FALSE)+ROW()-2))=Switch!$D$28,INDIRECT(\"a\" & (VLOOKUP(Switch!$D$28,$F$2:$G$43,2,FALSE)+ROW()-2)),\"\")","v":{"$error":"#N/A"}},{"$f":"IF(INDIRECT(\"c\" & (VLOOKUP(Switch!$D$29,$F$2:$G$43,2,FALSE)+ROW()-2))=Switch!$D$29,INDIRECT(\"a\" & (VLOOKUP(Switch!$D$29,$F$2:$G$43,2,FALSE)+ROW()-2)),\"\")","v":{"$error":"#N/A"}},{"$f":"IF(INDIRECT(\"c\" & (VLOOKUP(Switch!$D$30,$F$2:$G$43,2,FALSE)+ROW()-2))=Switch!$D$30,INDIRECT(\"a\" & (VLOOKUP(Switch!$D$30,$F$2:$G$43,2,FALSE)+ROW()-2)),\"\")","v":{"$error":"#N/A"}},{"$f":"IF(INDIRECT(\"c\" & (VLOOKUP(Switch!$D$31,$F$2:$G$43,2,FALSE)+ROW()-2))=Switch!$D$31,INDIRECT(\"a\" & (VLOOKUP(Switch!$D$31,$F$2:$G$43,2,FALSE)+ROW()-2)),\"\")","v":{"$error":"#N/A"}},{"$f":"IF(INDIRECT(\"c\" & (VLOOKUP(Switch!$D$32,$F$2:$G$43,2,FALSE)+ROW()-2))=Switch!$D$32,INDIRECT(\"a\" & (VLOOKUP(Switch!$D$32,$F$2:$G$43,2,FALSE)+ROW()-2)),\"\")","v":{"$error":"#N/A"}},{"$f":"IF(INDIRECT(\"c\" & (VLOOKUP(Switch!$D$33,$F$2:$G$43,2,FALSE)+ROW()-2))=Switch!$D$33,INDIRECT(\"a\" & (VLOOKUP(Switch!$D$33,$F$2:$G$43,2,FALSE)+ROW()-2)),\"\")","v":{"$error":"#N/A"}},{"$f":"IF(INDIRECT(\"c\" & (VLOOKUP(Switch!$D$34,$F$2:$G$43,2,FALSE)+ROW()-2))=Switch!$D$34,INDIRECT(\"a\" & (VLOOKUP(Switch!$D$34,$F$2:$G$43,2,FALSE)+ROW()-2)),\"\")","v":{"$error":"#N/A"}},{"$f":"IF(INDIRECT(\"c\" & (VLOOKUP(Switch!$D$35,$F$2:$G$43,2,FALSE)+ROW()-2))=Switch!$D$35,INDIRECT(\"a\" & (VLOOKUP(Switch!$D$35,$F$2:$G$43,2,FALSE)+ROW()-2)),\"\")","v":{"$error":"#N/A"}},{"$f":"IF(INDIRECT(\"c\" & (VLOOKUP(Switch!$D$36,$F$2:$G$43,2,FALSE)+ROW()-2))=Switch!$D$36,INDIRECT(\"a\" & (VLOOKUP(Switch!$D$36,$F$2:$G$43,2,FALSE)+ROW()-2)),\"\")","v":{"$error":"#N/A"}},{"$f":"IF(INDIRECT(\"c\" & (VLOOKUP(Switch!$D$37,$F$2:$G$43,2,FALSE)+ROW()-2))=Switch!$D$37,INDIRECT(\"a\" & (VLOOKUP(Switch!$D$37,$F$2:$G$43,2,FALSE)+ROW()-2)),\"\")","v":{"$error":"#N/A"}},{"$f":"IF(INDIRECT(\"c\" & (VLOOKUP(Switch!$D$38,$F$2:$G$43,2,FALSE)+ROW()-2))=Switch!$D$38,INDIRECT(\"a\" & (VLOOKUP(Switch!$D$38,$F$2:$G$43,2,FALSE)+ROW()-2)),\"\")","v":{"$error":"#N/A"}},{"$f":"IF(INDIRECT(\"c\" & (VLOOKUP(Switch!$D$39,$F$2:$G$43,2,FALSE)+ROW()-2))=Switch!$D$39,INDIRECT(\"a\" & (VLOOKUP(Switch!$D$39,$F$2:$G$43,2,FALSE)+ROW()-2)),\"\")","v":{"$error":"#N/A"}},{"$f":"IF(INDIRECT(\"c\" & (VLOOKUP(Switch!$D$40,$F$2:$G$43,2,FALSE)+ROW()-2))=Switch!$D$40,INDIRECT(\"a\" & (VLOOKUP(Switch!$D$40,$F$2:$G$43,2,FALSE)+ROW()-2)),\"\")","v":{"$error":"#N/A"}},{"$f":"IF(INDIRECT(\"c\" & (VLOOKUP(Switch!$D$52,$F$2:$G$43,2,FALSE)+ROW()-2))=Switch!$D$52,INDIRECT(\"a\" & (VLOOKUP(Switch!$D$52,$F$2:$G$43,2,FALSE)+ROW()-2)),\"\")","v":{"$error":"#N/A"}},{"$f":"IF(INDIRECT(\"c\" & (VLOOKUP(Switch!$D$53,$F$2:$G$43,2,FALSE)+ROW()-2))=Switch!$D$53,INDIRECT(\"a\" & (VLOOKUP(Switch!$D$53,$F$2:$G$43,2,FALSE)+ROW()-2)),\"\")","v":{"$error":"#N/A"}},{"$f":"IF(INDIRECT(\"c\" & (VLOOKUP(Switch!$D$54,$F$2:$G$43,2,FALSE)+ROW()-2))=Switch!$D$54,INDIRECT(\"a\" & (VLOOKUP(Switch!$D$54,$F$2:$G$43,2,FALSE)+ROW()-2)),\"\")","v":{"$error":"#N/A"}},{"$f":"IF(INDIRECT(\"c\" & (VLOOKUP(Switch!$D$55,$F$2:$G$43,2,FALSE)+ROW()-2))=Switch!$D$55,INDIRECT(\"a\" & (VLOOKUP(Switch!$D$55,$F$2:$G$43,2,FALSE)+ROW()-2)),\"\")","v":{"$error":"#N/A"}},{"$f":"IF(INDIRECT(\"c\" & (VLOOKUP(Switch!$D$56,$F$2:$G$43,2,FALSE)+ROW()-2))=Switch!$D$56,INDIRECT(\"a\" & (VLOOKUP(Switch!$D$56,$F$2:$G$43,2,FALSE)+ROW()-2)),\"\")","v":{"$error":"#N/A"}},{"$f":"IF(INDIRECT(\"c\" & (VLOOKUP(Switch!$D$57,$F$2:$G$43,2,FALSE)+ROW()-2))=Switch!$D$57,INDIRECT(\"a\" & (VLOOKUP(Switch!$D$57,$F$2:$G$43,2,FALSE)+ROW()-2)),\"\")","v":{"$error":"#N/A"}},{"$f":"IF(INDIRECT(\"c\" & (VLOOKUP(Switch!$D$58,$F$2:$G$43,2,FALSE)+ROW()-2))=Switch!$D$58,INDIRECT(\"a\" & (VLOOKUP(Switch!$D$58,$F$2:$G$43,2,FALSE)+ROW()-2)),\"\")","v":{"$error":"#N/A"}},{"$f":"IF(INDIRECT(\"c\" & (VLOOKUP(Switch!$D$59,$F$2:$G$43,2,FALSE)+ROW()-2))=Switch!$D$59,INDIRECT(\"a\" & (VLOOKUP(Switch!$D$59,$F$2:$G$43,2,FALSE)+ROW()-2)),\"\")","v":{"$error":"#N/A"}},{"$f":"IF(INDIRECT(\"c\" & (VLOOKUP(Switch!$D$60,$F$2:$G$43,2,FALSE)+ROW()-2))=Switch!$D$60,INDIRECT(\"a\" & (VLOOKUP(Switch!$D$60,$F$2:$G$43,2,FALSE)+ROW()-2)),\"\")","v":{"$error":"#N/A"}},{"$f":"IF(INDIRECT(\"c\" & (VLOOKUP(Switch!$D$61,$F$2:$G$43,2,FALSE)+ROW()-2))=Switch!$D$61,INDIRECT(\"a\" & (VLOOKUP(Switch!$D$61,$F$2:$G$43,2,FALSE)+ROW()-2)),\"\")","v":{"$error":"#N/A"}},{"$f":"IF(INDIRECT(\"c\" & (VLOOKUP(Switch!$D$62,$F$2:$G$43,2,FALSE)+ROW()-2))=Switch!$D$62,INDIRECT(\"a\" & (VLOOKUP(Switch!$D$62,$F$2:$G$43,2,FALSE)+ROW()-2)),\"\")","v":{"$error":"#N/A"}},{"$f":"IF(INDIRECT(\"c\" & (VLOOKUP(Switch!$D$63,$F$2:$G$43,2,FALSE)+ROW()-2))=Switch!$D$63,INDIRECT(\"a\" & (VLOOKUP(Switch!$D$63,$F$2:$G$43,2,FALSE)+ROW()-2)),\"\")","v":{"$error":"#N/A"}},{"$f":"IF(INDIRECT(\"c\" & (VLOOKUP(Switch!$D$64,$F$2:$G$43,2,FALSE)+ROW()-2))=Switch!$D$64,INDIRECT(\"a\" & (VLOOKUP(Switch!$D$64,$F$2:$G$43,2,FALSE)+ROW()-2)),\"\")","v":{"$error":"#N/A"}},{"$f":"IF(INDIRECT(\"c\" & (VLOOKUP(Switch!$D$65,$F$2:$G$43,2,FALSE)+ROW()-2))=Switch!$D$65,INDIRECT(\"a\" & (VLOOKUP(Switch!$D$65,$F$2:$G$43,2,FALSE)+ROW()-2)),\"\")","v":{"$error":"#N/A"}},{"$f":"IF(INDIRECT(\"c\" & (VLOOKUP(Switch!$D$66,$F$2:$G$43,2,FALSE)+ROW()-2))=Switch!$D$66,INDIRECT(\"a\" & (VLOOKUP(Switch!$D$66,$F$2:$G$43,2,FALSE)+ROW()-2)),\"\")","v":{"$error":"#N/A"}}]
[null,null,null,{"$f":"ROW()","v":613},null,null,{"$f":"VLOOKUP(F613,$C$2:$D$637,2,FALSE)","v":{"$error":"#N/A"}},{"$f":"IF(INDIRECT(\"c\" & (VLOOKUP(Switch!$D$26,$F$2:$G$43,2,FALSE)+ROW()-2))=Switch!$D$26,INDIRECT(\"a\" & (VLOOKUP(Switch!$D$26,$F$2:$G$43,2,FALSE)+ROW()-2)),\"\")","v":{"$error":"#N/A"}},{"$f":"IF(INDIRECT(\"c\" & (VLOOKUP(Switch!$D$27,$F$2:$G$43,2,FALSE)+ROW()-2))=Switch!$D$27,INDIRECT(\"a\" & (VLOOKUP(Switch!$D$27,$F$2:$G$43,2,FALSE)+ROW()-2)),\"\")","v":{"$error":"#N/A"}},{"$f":"IF(INDIRECT(\"c\" & (VLOOKUP(Switch!$D$28,$F$2:$G$43,2,FALSE)+ROW()-2))=Switch!$D$28,INDIRECT(\"a\" & (VLOOKUP(Switch!$D$28,$F$2:$G$43,2,FALSE)+ROW()-2)),\"\")","v":{"$error":"#N/A"}},{"$f":"IF(INDIRECT(\"c\" & (VLOOKUP(Switch!$D$29,$F$2:$G$43,2,FALSE)+ROW()-2))=Switch!$D$29,INDIRECT(\"a\" & (VLOOKUP(Switch!$D$29,$F$2:$G$43,2,FALSE)+ROW()-2)),\"\")","v":{"$error":"#N/A"}},{"$f":"IF(INDIRECT(\"c\" & (VLOOKUP(Switch!$D$30,$F$2:$G$43,2,FALSE)+ROW()-2))=Switch!$D$30,INDIRECT(\"a\" & (VLOOKUP(Switch!$D$30,$F$2:$G$43,2,FALSE)+ROW()-2)),\"\")","v":{"$error":"#N/A"}},{"$f":"IF(INDIRECT(\"c\" & (VLOOKUP(Switch!$D$31,$F$2:$G$43,2,FALSE)+ROW()-2))=Switch!$D$31,INDIRECT(\"a\" & (VLOOKUP(Switch!$D$31,$F$2:$G$43,2,FALSE)+ROW()-2)),\"\")","v":{"$error":"#N/A"}},{"$f":"IF(INDIRECT(\"c\" & (VLOOKUP(Switch!$D$32,$F$2:$G$43,2,FALSE)+ROW()-2))=Switch!$D$32,INDIRECT(\"a\" & (VLOOKUP(Switch!$D$32,$F$2:$G$43,2,FALSE)+ROW()-2)),\"\")","v":{"$error":"#N/A"}},{"$f":"IF(INDIRECT(\"c\" & (VLOOKUP(Switch!$D$33,$F$2:$G$43,2,FALSE)+ROW()-2))=Switch!$D$33,INDIRECT(\"a\" & (VLOOKUP(Switch!$D$33,$F$2:$G$43,2,FALSE)+ROW()-2)),\"\")","v":{"$error":"#N/A"}},{"$f":"IF(INDIRECT(\"c\" & (VLOOKUP(Switch!$D$34,$F$2:$G$43,2,FALSE)+ROW()-2))=Switch!$D$34,INDIRECT(\"a\" & (VLOOKUP(Switch!$D$34,$F$2:$G$43,2,FALSE)+ROW()-2)),\"\")","v":{"$error":"#N/A"}},{"$f":"IF(INDIRECT(\"c\" & (VLOOKUP(Switch!$D$35,$F$2:$G$43,2,FALSE)+ROW()-2))=Switch!$D$35,INDIRECT(\"a\" & (VLOOKUP(Switch!$D$35,$F$2:$G$43,2,FALSE)+ROW()-2)),\"\")","v":{"$error":"#N/A"}},{"$f":"IF(INDIRECT(\"c\" & (VLOOKUP(Switch!$D$36,$F$2:$G$43,2,FALSE)+ROW()-2))=Switch!$D$36,INDIRECT(\"a\" & (VLOOKUP(Switch!$D$36,$F$2:$G$43,2,FALSE)+ROW()-2)),\"\")","v":{"$error":"#N/A"}},{"$f":"IF(INDIRECT(\"c\" & (VLOOKUP(Switch!$D$37,$F$2:$G$43,2,FALSE)+ROW()-2))=Switch!$D$37,INDIRECT(\"a\" & (VLOOKUP(Switch!$D$37,$F$2:$G$43,2,FALSE)+ROW()-2)),\"\")","v":{"$error":"#N/A"}},{"$f":"IF(INDIRECT(\"c\" & (VLOOKUP(Switch!$D$38,$F$2:$G$43,2,FALSE)+ROW()-2))=Switch!$D$38,INDIRECT(\"a\" & (VLOOKUP(Switch!$D$38,$F$2:$G$43,2,FALSE)+ROW()-2)),\"\")","v":{"$error":"#N/A"}},{"$f":"IF(INDIRECT(\"c\" & (VLOOKUP(Switch!$D$39,$F$2:$G$43,2,FALSE)+ROW()-2))=Switch!$D$39,INDIRECT(\"a\" & (VLOOKUP(Switch!$D$39,$F$2:$G$43,2,FALSE)+ROW()-2)),\"\")","v":{"$error":"#N/A"}},{"$f":"IF(INDIRECT(\"c\" & (VLOOKUP(Switch!$D$40,$F$2:$G$43,2,FALSE)+ROW()-2))=Switch!$D$40,INDIRECT(\"a\" & (VLOOKUP(Switch!$D$40,$F$2:$G$43,2,FALSE)+ROW()-2)),\"\")","v":{"$error":"#N/A"}},{"$f":"IF(INDIRECT(\"c\" & (VLOOKUP(Switch!$D$52,$F$2:$G$43,2,FALSE)+ROW()-2))=Switch!$D$52,INDIRECT(\"a\" & (VLOOKUP(Switch!$D$52,$F$2:$G$43,2,FALSE)+ROW()-2)),\"\")","v":{"$error":"#N/A"}},{"$f":"IF(INDIRECT(\"c\" & (VLOOKUP(Switch!$D$53,$F$2:$G$43,2,FALSE)+ROW()-2))=Switch!$D$53,INDIRECT(\"a\" & (VLOOKUP(Switch!$D$53,$F$2:$G$43,2,FALSE)+ROW()-2)),\"\")","v":{"$error":"#N/A"}},{"$f":"IF(INDIRECT(\"c\" & (VLOOKUP(Switch!$D$54,$F$2:$G$43,2,FALSE)+ROW()-2))=Switch!$D$54,INDIRECT(\"a\" & (VLOOKUP(Switch!$D$54,$F$2:$G$43,2,FALSE)+ROW()-2)),\"\")","v":{"$error":"#N/A"}},{"$f":"IF(INDIRECT(\"c\" & (VLOOKUP(Switch!$D$55,$F$2:$G$43,2,FALSE)+ROW()-2))=Switch!$D$55,INDIRECT(\"a\" & (VLOOKUP(Switch!$D$55,$F$2:$G$43,2,FALSE)+ROW()-2)),\"\")","v":{"$error":"#N/A"}},{"$f":"IF(INDIRECT(\"c\" & (VLOOKUP(Switch!$D$56,$F$2:$G$43,2,FALSE)+ROW()-2))=Switch!$D$56,INDIRECT(\"a\" & (VLOOKUP(Switch!$D$56,$F$2:$G$43,2,FALSE)+ROW()-2)),\"\")","v":{"$error":"#N/A"}},{"$f":"IF(INDIRECT(\"c\" & (VLOOKUP(Switch!$D$57,$F$2:$G$43,2,FALSE)+ROW()-2))=Switch!$D$57,INDIRECT(\"a\" & (VLOOKUP(Switch!$D$57,$F$2:$G$43,2,FALSE)+ROW()-2)),\"\")","v":{"$error":"#N/A"}},{"$f":"IF(INDIRECT(\"c\" & (VLOOKUP(Switch!$D$58,$F$2:$G$43,2,FALSE)+ROW()-2))=Switch!$D$58,INDIRECT(\"a\" & (VLOOKUP(Switch!$D$58,$F$2:$G$43,2,FALSE)+ROW()-2)),\"\")","v":{"$error":"#N/A"}},{"$f":"IF(INDIRECT(\"c\" & (VLOOKUP(Switch!$D$59,$F$2:$G$43,2,FALSE)+ROW()-2))=Switch!$D$59,INDIRECT(\"a\" & (VLOOKUP(Switch!$D$59,$F$2:$G$43,2,FALSE)+ROW()-2)),\"\")","v":{"$error":"#N/A"}},{"$f":"IF(INDIRECT(\"c\" & (VLOOKUP(Switch!$D$60,$F$2:$G$43,2,FALSE)+ROW()-2))=Switch!$D$60,INDIRECT(\"a\" & (VLOOKUP(Switch!$D$60,$F$2:$G$43,2,FALSE)+ROW()-2)),\"\")","v":{"$error":"#N/A"}},{"$f":"IF(INDIRECT(\"c\" & (VLOOKUP(Switch!$D$61,$F$2:$G$43,2,FALSE)+ROW()-2))=Switch!$D$61,INDIRECT(\"a\" & (VLOOKUP(Switch!$D$61,$F$2:$G$43,2,FALSE)+ROW()-2)),\"\")","v":{"$error":"#N/A"}},{"$f":"IF(INDIRECT(\"c\" & (VLOOKUP(Switch!$D$62,$F$2:$G$43,2,FALSE)+ROW()-2))=Switch!$D$62,INDIRECT(\"a\" & (VLOOKUP(Switch!$D$62,$F$2:$G$43,2,FALSE)+ROW()-2)),\"\")","v":{"$error":"#N/A"}},{"$f":"IF(INDIRECT(\"c\" & (VLOOKUP(Switch!$D$63,$F$2:$G$43,2,FALSE)+ROW()-2))=Switch!$D$63,INDIRECT(\"a\" & (VLOOKUP(Switch!$D$63,$F$2:$G$43,2,FALSE)+ROW()-2)),\"\")","v":{"$error":"#N/A"}},{"$f":"IF(INDIRECT(\"c\" & (VLOOKUP(Switch!$D$64,$F$2:$G$43,2,FALSE)+ROW()-2))=Switch!$D$64,INDIRECT(\"a\" & (VLOOKUP(Switch!$D$64,$F$2:$G$43,2,FALSE)+ROW()-2)),\"\")","v":{"$error":"#N/A"}},{"$f":"IF(INDIRECT(\"c\" & (VLOOKUP(Switch!$D$65,$F$2:$G$43,2,FALSE)+ROW()-2))=Switch!$D$65,INDIRECT(\"a\" & (VLOOKUP(Switch!$D$65,$F$2:$G$43,2,FALSE)+ROW()-2)),\"\")","v":{"$error":"#N/A"}},{"$f":"IF(INDIRECT(\"c\" & (VLOOKUP(Switch!$D$66,$F$2:$G$43,2,FALSE)+ROW()-2))=Switch!$D$66,INDIRECT(\"a\" & (VLOOKUP(Switch!$D$66,$F$2:$G$43,2,FALSE)+ROW()-2)),\"\")","v":{"$error":"#N/A"}}]
[null,null,null,{"$f":"ROW()","v":614},null,null,{"$f":"VLOOKUP(F614,$C$2:$D$637,2,FALSE)","v":{"$error":"#N/A"}},{"$f":"IF(INDIRECT(\"c\" & (VLOOKUP(Switch!$D$26,$F$2:$G$43,2,FALSE)+ROW()-2))=Switch!$D$26,INDIRECT(\"a\" & (VLOOKUP(Switch!$D$26,$F$2:$G$43,2,FALSE)+ROW()-2)),\"\")","v":{"$error":"#N/A"}},{"$f":"IF(INDIRECT(\"c\" & (VLOOKUP(Switch!$D$27,$F$2:$G$43,2,FALSE)+ROW()-2))=Switch!$D$27,INDIRECT(\"a\" & (VLOOKUP(Switch!$D$27,$F$2:$G$43,2,FALSE)+ROW()-2)),\"\")","v":{"$error":"#N/A"}},{"$f":"IF(INDIRECT(\"c\" & (VLOOKUP(Switch!$D$28,$F$2:$G$43,2,FALSE)+ROW()-2))=Switch!$D$28,INDIRECT(\"a\" & (VLOOKUP(Switch!$D$28,$F$2:$G$43,2,FALSE)+ROW()-2)),\"\")","v":{"$error":"#N/A"}},{"$f":"IF(INDIRECT(\"c\" & (VLOOKUP(Switch!$D$29,$F$2:$G$43,2,FALSE)+ROW()-2))=Switch!$D$29,INDIRECT(\"a\" & (VLOOKUP(Switch!$D$29,$F$2:$G$43,2,FALSE)+ROW()-2)),\"\")","v":{"$error":"#N/A"}},{"$f":"IF(INDIRECT(\"c\" & (VLOOKUP(Switch!$D$30,$F$2:$G$43,2,FALSE)+ROW()-2))=Switch!$D$30,INDIRECT(\"a\" & (VLOOKUP(Switch!$D$30,$F$2:$G$43,2,FALSE)+ROW()-2)),\"\")","v":{"$error":"#N/A"}},{"$f":"IF(INDIRECT(\"c\" & (VLOOKUP(Switch!$D$31,$F$2:$G$43,2,FALSE)+ROW()-2))=Switch!$D$31,INDIRECT(\"a\" & (VLOOKUP(Switch!$D$31,$F$2:$G$43,2,FALSE)+ROW()-2)),\"\")","v":{"$error":"#N/A"}},{"$f":"IF(INDIRECT(\"c\" & (VLOOKUP(Switch!$D$32,$F$2:$G$43,2,FALSE)+ROW()-2))=Switch!$D$32,INDIRECT(\"a\" & (VLOOKUP(Switch!$D$32,$F$2:$G$43,2,FALSE)+ROW()-2)),\"\")","v":{"$error":"#N/A"}},{"$f":"IF(INDIRECT(\"c\" & (VLOOKUP(Switch!$D$33,$F$2:$G$43,2,FALSE)+ROW()-2))=Switch!$D$33,INDIRECT(\"a\" & (VLOOKUP(Switch!$D$33,$F$2:$G$43,2,FALSE)+ROW()-2)),\"\")","v":{"$error":"#N/A"}},{"$f":"IF(INDIRECT(\"c\" & (VLOOKUP(Switch!$D$34,$F$2:$G$43,2,FALSE)+ROW()-2))=Switch!$D$34,INDIRECT(\"a\" & (VLOOKUP(Switch!$D$34,$F$2:$G$43,2,FALSE)+ROW()-2)),\"\")","v":{"$error":"#N/A"}},{"$f":"IF(INDIRECT(\"c\" & (VLOOKUP(Switch!$D$35,$F$2:$G$43,2,FALSE)+ROW()-2))=Switch!$D$35,INDIRECT(\"a\" & (VLOOKUP(Switch!$D$35,$F$2:$G$43,2,FALSE)+ROW()-2)),\"\")","v":{"$error":"#N/A"}},{"$f":"IF(INDIRECT(\"c\" & (VLOOKUP(Switch!$D$36,$F$2:$G$43,2,FALSE)+ROW()-2))=Switch!$D$36,INDIRECT(\"a\" & (VLOOKUP(Switch!$D$36,$F$2:$G$43,2,FALSE)+ROW()-2)),\"\")","v":{"$error":"#N/A"}},{"$f":"IF(INDIRECT(\"c\" & (VLOOKUP(Switch!$D$37,$F$2:$G$43,2,FALSE)+ROW()-2))=Switch!$D$37,INDIRECT(\"a\" & (VLOOKUP(Switch!$D$37,$F$2:$G$43,2,FALSE)+ROW()-2)),\"\")","v":{"$error":"#N/A"}},{"$f":"IF(INDIRECT(\"c\" & (VLOOKUP(Switch!$D$38,$F$2:$G$43,2,FALSE)+ROW()-2))=Switch!$D$38,INDIRECT(\"a\" & (VLOOKUP(Switch!$D$38,$F$2:$G$43,2,FALSE)+ROW()-2)),\"\")","v":{"$error":"#N/A"}},{"$f":"IF(INDIRECT(\"c\" & (VLOOKUP(Switch!$D$39,$F$2:$G$43,2,FALSE)+ROW()-2))=Switch!$D$39,INDIRECT(\"a\" & (VLOOKUP(Switch!$D$39,$F$2:$G$43,2,FALSE)+ROW()-2)),\"\")","v":{"$error":"#N/A"}},{"$f":"IF(INDIRECT(\"c\" & (VLOOKUP(Switch!$D$40,$F$2:$G$43,2,FALSE)+ROW()-2))=Switch!$D$40,INDIRECT(\"a\" & (VLOOKUP(Switch!$D$40,$F$2:$G$43,2,FALSE)+ROW()-2)),\"\")","v":{"$error":"#N/A"}},{"$f":"IF(INDIRECT(\"c\" & (VLOOKUP(Switch!$D$52,$F$2:$G$43,2,FALSE)+ROW()-2))=Switch!$D$52,INDIRECT(\"a\" & (VLOOKUP(Switch!$D$52,$F$2:$G$43,2,FALSE)+ROW()-2)),\"\")","v":{"$error":"#N/A"}},{"$f":"IF(INDIRECT(\"c\" & (VLOOKUP(Switch!$D$53,$F$2:$G$43,2,FALSE)+ROW()-2))=Switch!$D$53,INDIRECT(\"a\" & (VLOOKUP(Switch!$D$53,$F$2:$G$43,2,FALSE)+ROW()-2)),\"\")","v":{"$error":"#N/A"}},{"$f":"IF(INDIRECT(\"c\" & (VLOOKUP(Switch!$D$54,$F$2:$G$43,2,FALSE)+ROW()-2))=Switch!$D$54,INDIRECT(\"a\" & (VLOOKUP(Switch!$D$54,$F$2:$G$43,2,FALSE)+ROW()-2)),\"\")","v":{"$error":"#N/A"}},{"$f":"IF(INDIRECT(\"c\" & (VLOOKUP(Switch!$D$55,$F$2:$G$43,2,FALSE)+ROW()-2))=Switch!$D$55,INDIRECT(\"a\" & (VLOOKUP(Switch!$D$55,$F$2:$G$43,2,FALSE)+ROW()-2)),\"\")","v":{"$error":"#N/A"}},{"$f":"IF(INDIRECT(\"c\" & (VLOOKUP(Switch!$D$56,$F$2:$G$43,2,FALSE)+ROW()-2))=Switch!$D$56,INDIRECT(\"a\" & (VLOOKUP(Switch!$D$56,$F$2:$G$43,2,FALSE)+ROW()-2)),\"\")","v":{"$error":"#N/A"}},{"$f":"IF(INDIRECT(\"c\" & (VLOOKUP(Switch!$D$57,$F$2:$G$43,2,FALSE)+ROW()-2))=Switch!$D$57,INDIRECT(\"a\" & (VLOOKUP(Switch!$D$57,$F$2:$G$43,2,FALSE)+ROW()-2)),\"\")","v":{"$error":"#N/A"}},{"$f":"IF(INDIRECT(\"c\" & (VLOOKUP(Switch!$D$58,$F$2:$G$43,2,FALSE)+ROW()-2))=Switch!$D$58,INDIRECT(\"a\" & (VLOOKUP(Switch!$D$58,$F$2:$G$43,2,FALSE)+ROW()-2)),\"\")","v":{"$error":"#N/A"}},{"$f":"IF(INDIRECT(\"c\" & (VLOOKUP(Switch!$D$59,$F$2:$G$43,2,FALSE)+ROW()-2))=Switch!$D$59,INDIRECT(\"a\" & (VLOOKUP(Switch!$D$59,$F$2:$G$43,2,FALSE)+ROW()-2)),\"\")","v":{"$error":"#N/A"}},{"$f":"IF(INDIRECT(\"c\" & (VLOOKUP(Switch!$D$60,$F$2:$G$43,2,FALSE)+ROW()-2))=Switch!$D$60,INDIRECT(\"a\" & (VLOOKUP(Switch!$D$60,$F$2:$G$43,2,FALSE)+ROW()-2)),\"\")","v":{"$error":"#N/A"}},{"$f":"IF(INDIRECT(\"c\" & (VLOOKUP(Switch!$D$61,$F$2:$G$43,2,FALSE)+ROW()-2))=Switch!$D$61,INDIRECT(\"a\" & (VLOOKUP(Switch!$D$61,$F$2:$G$43,2,FALSE)+ROW()-2)),\"\")","v":{"$error":"#N/A"}},{"$f":"IF(INDIRECT(\"c\" & (VLOOKUP(Switch!$D$62,$F$2:$G$43,2,FALSE)+ROW()-2))=Switch!$D$62,INDIRECT(\"a\" & (VLOOKUP(Switch!$D$62,$F$2:$G$43,2,FALSE)+ROW()-2)),\"\")","v":{"$error":"#N/A"}},{"$f":"IF(INDIRECT(\"c\" & (VLOOKUP(Switch!$D$63,$F$2:$G$43,2,FALSE)+ROW()-2))=Switch!$D$63,INDIRECT(\"a\" & (VLOOKUP(Switch!$D$63,$F$2:$G$43,2,FALSE)+ROW()-2)),\"\")","v":{"$error":"#N/A"}},{"$f":"IF(INDIRECT(\"c\" & (VLOOKUP(Switch!$D$64,$F$2:$G$43,2,FALSE)+ROW()-2))=Switch!$D$64,INDIRECT(\"a\" & (VLOOKUP(Switch!$D$64,$F$2:$G$43,2,FALSE)+ROW()-2)),\"\")","v":{"$error":"#N/A"}},{"$f":"IF(INDIRECT(\"c\" & (VLOOKUP(Switch!$D$65,$F$2:$G$43,2,FALSE)+ROW()-2))=Switch!$D$65,INDIRECT(\"a\" & (VLOOKUP(Switch!$D$65,$F$2:$G$43,2,FALSE)+ROW()-2)),\"\")","v":{"$error":"#N/A"}},{"$f":"IF(INDIRECT(\"c\" & (VLOOKUP(Switch!$D$66,$F$2:$G$43,2,FALSE)+ROW()-2))=Switch!$D$66,INDIRECT(\"a\" & (VLOOKUP(Switch!$D$66,$F$2:$G$43,2,FALSE)+ROW()-2)),\"\")","v":{"$error":"#N/A"}}]
[null,null,null,{"$f":"ROW()","v":615},null,null,{"$f":"VLOOKUP(F615,$C$2:$D$637,2,FALSE)","v":{"$error":"#N/A"}},{"$f":"IF(INDIRECT(\"c\" & (VLOOKUP(Switch!$D$26,$F$2:$G$43,2,FALSE)+ROW()-2))=Switch!$D$26,INDIRECT(\"a\" & (VLOOKUP(Switch!$D$26,$F$2:$G$43,2,FALSE)+ROW()-2)),\"\")","v":{"$error":"#N/A"}},{"$f":"IF(INDIRECT(\"c\" & (VLOOKUP(Switch!$D$27,$F$2:$G$43,2,FALSE)+ROW()-2))=Switch!$D$27,INDIRECT(\"a\" & (VLOOKUP(Switch!$D$27,$F$2:$G$43,2,FALSE)+ROW()-2)),\"\")","v":{"$error":"#N/A"}},{"$f":"IF(INDIRECT(\"c\" & (VLOOKUP(Switch!$D$28,$F$2:$G$43,2,FALSE)+ROW()-2))=Switch!$D$28,INDIRECT(\"a\" & (VLOOKUP(Switch!$D$28,$F$2:$G$43,2,FALSE)+ROW()-2)),\"\")","v":{"$error":"#N/A"}},{"$f":"IF(INDIRECT(\"c\" & (VLOOKUP(Switch!$D$29,$F$2:$G$43,2,FALSE)+ROW()-2))=Switch!$D$29,INDIRECT(\"a\" & (VLOOKUP(Switch!$D$29,$F$2:$G$43,2,FALSE)+ROW()-2)),\"\")","v":{"$error":"#N/A"}},{"$f":"IF(INDIRECT(\"c\" & (VLOOKUP(Switch!$D$30,$F$2:$G$43,2,FALSE)+ROW()-2))=Switch!$D$30,INDIRECT(\"a\" & (VLOOKUP(Switch!$D$30,$F$2:$G$43,2,FALSE)+ROW()-2)),\"\")","v":{"$error":"#N/A"}},{"$f":"IF(INDIRECT(\"c\" & (VLOOKUP(Switch!$D$31,$F$2:$G$43,2,FALSE)+ROW()-2))=Switch!$D$31,INDIRECT(\"a\" & (VLOOKUP(Switch!$D$31,$F$2:$G$43,2,FALSE)+ROW()-2)),\"\")","v":{"$error":"#N/A"}},{"$f":"IF(INDIRECT(\"c\" & (VLOOKUP(Switch!$D$32,$F$2:$G$43,2,FALSE)+ROW()-2))=Switch!$D$32,INDIRECT(\"a\" & (VLOOKUP(Switch!$D$32,$F$2:$G$43,2,FALSE)+ROW()-2)),\"\")","v":{"$error":"#N/A"}},{"$f":"IF(INDIRECT(\"c\" & (VLOOKUP(Switch!$D$33,$F$2:$G$43,2,FALSE)+ROW()-2))=Switch!$D$33,INDIRECT(\"a\" & (VLOOKUP(Switch!$D$33,$F$2:$G$43,2,FALSE)+ROW()-2)),\"\")","v":{"$error":"#N/A"}},{"$f":"IF(INDIRECT(\"c\" & (VLOOKUP(Switch!$D$34,$F$2:$G$43,2,FALSE)+ROW()-2))=Switch!$D$34,INDIRECT(\"a\" & (VLOOKUP(Switch!$D$34,$F$2:$G$43,2,FALSE)+ROW()-2)),\"\")","v":{"$error":"#N/A"}},{"$f":"IF(INDIRECT(\"c\" & (VLOOKUP(Switch!$D$35,$F$2:$G$43,2,FALSE)+ROW()-2))=Switch!$D$35,INDIRECT(\"a\" & (VLOOKUP(Switch!$D$35,$F$2:$G$43,2,FALSE)+ROW()-2)),\"\")","v":{"$error":"#N/A"}},{"$f":"IF(INDIRECT(\"c\" & (VLOOKUP(Switch!$D$36,$F$2:$G$43,2,FALSE)+ROW()-2))=Switch!$D$36,INDIRECT(\"a\" & (VLOOKUP(Switch!$D$36,$F$2:$G$43,2,FALSE)+ROW()-2)),\"\")","v":{"$error":"#N/A"}},{"$f":"IF(INDIRECT(\"c\" & (VLOOKUP(Switch!$D$37,$F$2:$G$43,2,FALSE)+ROW()-2))=Switch!$D$37,INDIRECT(\"a\" & (VLOOKUP(Switch!$D$37,$F$2:$G$43,2,FALSE)+ROW()-2)),\"\")","v":{"$error":"#N/A"}},{"$f":"IF(INDIRECT(\"c\" & (VLOOKUP(Switch!$D$38,$F$2:$G$43,2,FALSE)+ROW()-2))=Switch!$D$38,INDIRECT(\"a\" & (VLOOKUP(Switch!$D$38,$F$2:$G$43,2,FALSE)+ROW()-2)),\"\")","v":{"$error":"#N/A"}},{"$f":"IF(INDIRECT(\"c\" & (VLOOKUP(Switch!$D$39,$F$2:$G$43,2,FALSE)+ROW()-2))=Switch!$D$39,INDIRECT(\"a\" & (VLOOKUP(Switch!$D$39,$F$2:$G$43,2,FALSE)+ROW()-2)),\"\")","v":{"$error":"#N/A"}},{"$f":"IF(INDIRECT(\"c\" & (VLOOKUP(Switch!$D$40,$F$2:$G$43,2,FALSE)+ROW()-2))=Switch!$D$40,INDIRECT(\"a\" & (VLOOKUP(Switch!$D$40,$F$2:$G$43,2,FALSE)+ROW()-2)),\"\")","v":{"$error":"#N/A"}},{"$f":"IF(INDIRECT(\"c\" & (VLOOKUP(Switch!$D$52,$F$2:$G$43,2,FALSE)+ROW()-2))=Switch!$D$52,INDIRECT(\"a\" & (VLOOKUP(Switch!$D$52,$F$2:$G$43,2,FALSE)+ROW()-2)),\"\")","v":{"$error":"#N/A"}},{"$f":"IF(INDIRECT(\"c\" & (VLOOKUP(Switch!$D$53,$F$2:$G$43,2,FALSE)+ROW()-2))=Switch!$D$53,INDIRECT(\"a\" & (VLOOKUP(Switch!$D$53,$F$2:$G$43,2,FALSE)+ROW()-2)),\"\")","v":{"$error":"#N/A"}},{"$f":"IF(INDIRECT(\"c\" & (VLOOKUP(Switch!$D$54,$F$2:$G$43,2,FALSE)+ROW()-2))=Switch!$D$54,INDIRECT(\"a\" & (VLOOKUP(Switch!$D$54,$F$2:$G$43,2,FALSE)+ROW()-2)),\"\")","v":{"$error":"#N/A"}},{"$f":"IF(INDIRECT(\"c\" & (VLOOKUP(Switch!$D$55,$F$2:$G$43,2,FALSE)+ROW()-2))=Switch!$D$55,INDIRECT(\"a\" & (VLOOKUP(Switch!$D$55,$F$2:$G$43,2,FALSE)+ROW()-2)),\"\")","v":{"$error":"#N/A"}},{"$f":"IF(INDIRECT(\"c\" & (VLOOKUP(Switch!$D$56,$F$2:$G$43,2,FALSE)+ROW()-2))=Switch!$D$56,INDIRECT(\"a\" & (VLOOKUP(Switch!$D$56,$F$2:$G$43,2,FALSE)+ROW()-2)),\"\")","v":{"$error":"#N/A"}},{"$f":"IF(INDIRECT(\"c\" & (VLOOKUP(Switch!$D$57,$F$2:$G$43,2,FALSE)+ROW()-2))=Switch!$D$57,INDIRECT(\"a\" & (VLOOKUP(Switch!$D$57,$F$2:$G$43,2,FALSE)+ROW()-2)),\"\")","v":{"$error":"#N/A"}},{"$f":"IF(INDIRECT(\"c\" & (VLOOKUP(Switch!$D$58,$F$2:$G$43,2,FALSE)+ROW()-2))=Switch!$D$58,INDIRECT(\"a\" & (VLOOKUP(Switch!$D$58,$F$2:$G$43,2,FALSE)+ROW()-2)),\"\")","v":{"$error":"#N/A"}},{"$f":"IF(INDIRECT(\"c\" & (VLOOKUP(Switch!$D$59,$F$2:$G$43,2,FALSE)+ROW()-2))=Switch!$D$59,INDIRECT(\"a\" & (VLOOKUP(Switch!$D$59,$F$2:$G$43,2,FALSE)+ROW()-2)),\"\")","v":{"$error":"#N/A"}},{"$f":"IF(INDIRECT(\"c\" & (VLOOKUP(Switch!$D$60,$F$2:$G$43,2,FALSE)+ROW()-2))=Switch!$D$60,INDIRECT(\"a\" & (VLOOKUP(Switch!$D$60,$F$2:$G$43,2,FALSE)+ROW()-2)),\"\")","v":{"$error":"#N/A"}},{"$f":"IF(INDIRECT(\"c\" & (VLOOKUP(Switch!$D$61,$F$2:$G$43,2,FALSE)+ROW()-2))=Switch!$D$61,INDIRECT(\"a\" & (VLOOKUP(Switch!$D$61,$F$2:$G$43,2,FALSE)+ROW()-2)),\"\")","v":{"$error":"#N/A"}},{"$f":"IF(INDIRECT(\"c\" & (VLOOKUP(Switch!$D$62,$F$2:$G$43,2,FALSE)+ROW()-2))=Switch!$D$62,INDIRECT(\"a\" & (VLOOKUP(Switch!$D$62,$F$2:$G$43,2,FALSE)+ROW()-2)),\"\")","v":{"$error":"#N/A"}},{"$f":"IF(INDIRECT(\"c\" & (VLOOKUP(Switch!$D$63,$F$2:$G$43,2,FALSE)+ROW()-2))=Switch!$D$63,INDIRECT(\"a\" & (VLOOKUP(Switch!$D$63,$F$2:$G$43,2,FALSE)+ROW()-2)),\"\")","v":{"$error":"#N/A"}},{"$f":"IF(INDIRECT(\"c\" & (VLOOKUP(Switch!$D$64,$F$2:$G$43,2,FALSE)+ROW()-2))=Switch!$D$64,INDIRECT(\"a\" & (VLOOKUP(Switch!$D$64,$F$2:$G$43,2,FALSE)+ROW()-2)),\"\")","v":{"$error":"#N/A"}},{"$f":"IF(INDIRECT(\"c\" & (VLOOKUP(Switch!$D$65,$F$2:$G$43,2,FALSE)+ROW()-2))=Switch!$D$65,INDIRECT(\"a\" & (VLOOKUP(Switch!$D$65,$F$2:$G$43,2,FALSE)+ROW()-2)),\"\")","v":{"$error":"#N/A"}},{"$f":"IF(INDIRECT(\"c\" & (VLOOKUP(Switch!$D$66,$F$2:$G$43,2,FALSE)+ROW()-2))=Switch!$D$66,INDIRECT(\"a\" & (VLOOKUP(Switch!$D$66,$F$2:$G$43,2,FALSE)+ROW()-2)),\"\")","v":{"$error":"#N/A"}}]
[null,null,null,{"$f":"ROW()","v":616},null,null,{"$f":"VLOOKUP(F616,$C$2:$D$637,2,FALSE)","v":{"$error":"#N/A"}},{"$f":"IF(INDIRECT(\"c\" & (VLOOKUP(Switch!$D$26,$F$2:$G$43,2,FALSE)+ROW()-2))=Switch!$D$26,INDIRECT(\"a\" & (VLOOKUP(Switch!$D$26,$F$2:$G$43,2,FALSE)+ROW()-2)),\"\")","v":{"$error":"#N/A"}},{"$f":"IF(INDIRECT(\"c\" & (VLOOKUP(Switch!$D$27,$F$2:$G$43,2,FALSE)+ROW()-2))=Switch!$D$27,INDIRECT(\"a\" & (VLOOKUP(Switch!$D$27,$F$2:$G$43,2,FALSE)+ROW()-2)),\"\")","v":{"$error":"#N/A"}},{"$f":"IF(INDIRECT(\"c\" & (VLOOKUP(Switch!$D$28,$F$2:$G$43,2,FALSE)+ROW()-2))=Switch!$D$28,INDIRECT(\"a\" & (VLOOKUP(Switch!$D$28,$F$2:$G$43,2,FALSE)+ROW()-2)),\"\")","v":{"$error":"#N/A"}},{"$f":"IF(INDIRECT(\"c\" & (VLOOKUP(Switch!$D$29,$F$2:$G$43,2,FALSE)+ROW()-2))=Switch!$D$29,INDIRECT(\"a\" & (VLOOKUP(Switch!$D$29,$F$2:$G$43,2,FALSE)+ROW()-2)),\"\")","v":{"$error":"#N/A"}},{"$f":"IF(INDIRECT(\"c\" & (VLOOKUP(Switch!$D$30,$F$2:$G$43,2,FALSE)+ROW()-2))=Switch!$D$30,INDIRECT(\"a\" & (VLOOKUP(Switch!$D$30,$F$2:$G$43,2,FALSE)+ROW()-2)),\"\")","v":{"$error":"#N/A"}},{"$f":"IF(INDIRECT(\"c\" & (VLOOKUP(Switch!$D$31,$F$2:$G$43,2,FALSE)+ROW()-2))=Switch!$D$31,INDIRECT(\"a\" & (VLOOKUP(Switch!$D$31,$F$2:$G$43,2,FALSE)+ROW()-2)),\"\")","v":{"$error":"#N/A"}},{"$f":"IF(INDIRECT(\"c\" & (VLOOKUP(Switch!$D$32,$F$2:$G$43,2,FALSE)+ROW()-2))=Switch!$D$32,INDIRECT(\"a\" & (VLOOKUP(Switch!$D$32,$F$2:$G$43,2,FALSE)+ROW()-2)),\"\")","v":{"$error":"#N/A"}},{"$f":"IF(INDIRECT(\"c\" & (VLOOKUP(Switch!$D$33,$F$2:$G$43,2,FALSE)+ROW()-2))=Switch!$D$33,INDIRECT(\"a\" & (VLOOKUP(Switch!$D$33,$F$2:$G$43,2,FALSE)+ROW()-2)),\"\")","v":{"$error":"#N/A"}},{"$f":"IF(INDIRECT(\"c\" & (VLOOKUP(Switch!$D$34,$F$2:$G$43,2,FALSE)+ROW()-2))=Switch!$D$34,INDIRECT(\"a\" & (VLOOKUP(Switch!$D$34,$F$2:$G$43,2,FALSE)+ROW()-2)),\"\")","v":{"$error":"#N/A"}},{"$f":"IF(INDIRECT(\"c\" & (VLOOKUP(Switch!$D$35,$F$2:$G$43,2,FALSE)+ROW()-2))=Switch!$D$35,INDIRECT(\"a\" & (VLOOKUP(Switch!$D$35,$F$2:$G$43,2,FALSE)+ROW()-2)),\"\")","v":{"$error":"#N/A"}},{"$f":"IF(INDIRECT(\"c\" & (VLOOKUP(Switch!$D$36,$F$2:$G$43,2,FALSE)+ROW()-2))=Switch!$D$36,INDIRECT(\"a\" & (VLOOKUP(Switch!$D$36,$F$2:$G$43,2,FALSE)+ROW()-2)),\"\")","v":{"$error":"#N/A"}},{"$f":"IF(INDIRECT(\"c\" & (VLOOKUP(Switch!$D$37,$F$2:$G$43,2,FALSE)+ROW()-2))=Switch!$D$37,INDIRECT(\"a\" & (VLOOKUP(Switch!$D$37,$F$2:$G$43,2,FALSE)+ROW()-2)),\"\")","v":{"$error":"#N/A"}},{"$f":"IF(INDIRECT(\"c\" & (VLOOKUP(Switch!$D$38,$F$2:$G$43,2,FALSE)+ROW()-2))=Switch!$D$38,INDIRECT(\"a\" & (VLOOKUP(Switch!$D$38,$F$2:$G$43,2,FALSE)+ROW()-2)),\"\")","v":{"$error":"#N/A"}},{"$f":"IF(INDIRECT(\"c\" & (VLOOKUP(Switch!$D$39,$F$2:$G$43,2,FALSE)+ROW()-2))=Switch!$D$39,INDIRECT(\"a\" & (VLOOKUP(Switch!$D$39,$F$2:$G$43,2,FALSE)+ROW()-2)),\"\")","v":{"$error":"#N/A"}},{"$f":"IF(INDIRECT(\"c\" & (VLOOKUP(Switch!$D$40,$F$2:$G$43,2,FALSE)+ROW()-2))=Switch!$D$40,INDIRECT(\"a\" & (VLOOKUP(Switch!$D$40,$F$2:$G$43,2,FALSE)+ROW()-2)),\"\")","v":{"$error":"#N/A"}},{"$f":"IF(INDIRECT(\"c\" & (VLOOKUP(Switch!$D$52,$F$2:$G$43,2,FALSE)+ROW()-2))=Switch!$D$52,INDIRECT(\"a\" & (VLOOKUP(Switch!$D$52,$F$2:$G$43,2,FALSE)+ROW()-2)),\"\")","v":{"$error":"#N/A"}},{"$f":"IF(INDIRECT(\"c\" & (VLOOKUP(Switch!$D$53,$F$2:$G$43,2,FALSE)+ROW()-2))=Switch!$D$53,INDIRECT(\"a\" & (VLOOKUP(Switch!$D$53,$F$2:$G$43,2,FALSE)+ROW()-2)),\"\")","v":{"$error":"#N/A"}},{"$f":"IF(INDIRECT(\"c\" & (VLOOKUP(Switch!$D$54,$F$2:$G$43,2,FALSE)+ROW()-2))=Switch!$D$54,INDIRECT(\"a\" & (VLOOKUP(Switch!$D$54,$F$2:$G$43,2,FALSE)+ROW()-2)),\"\")","v":{"$error":"#N/A"}},{"$f":"IF(INDIRECT(\"c\" & (VLOOKUP(Switch!$D$55,$F$2:$G$43,2,FALSE)+ROW()-2))=Switch!$D$55,INDIRECT(\"a\" & (VLOOKUP(Switch!$D$55,$F$2:$G$43,2,FALSE)+ROW()-2)),\"\")","v":{"$error":"#N/A"}},{"$f":"IF(INDIRECT(\"c\" & (VLOOKUP(Switch!$D$56,$F$2:$G$43,2,FALSE)+ROW()-2))=Switch!$D$56,INDIRECT(\"a\" & (VLOOKUP(Switch!$D$56,$F$2:$G$43,2,FALSE)+ROW()-2)),\"\")","v":{"$error":"#N/A"}},{"$f":"IF(INDIRECT(\"c\" & (VLOOKUP(Switch!$D$57,$F$2:$G$43,2,FALSE)+ROW()-2))=Switch!$D$57,INDIRECT(\"a\" & (VLOOKUP(Switch!$D$57,$F$2:$G$43,2,FALSE)+ROW()-2)),\"\")","v":{"$error":"#N/A"}},{"$f":"IF(INDIRECT(\"c\" & (VLOOKUP(Switch!$D$58,$F$2:$G$43,2,FALSE)+ROW()-2))=Switch!$D$58,INDIRECT(\"a\" & (VLOOKUP(Switch!$D$58,$F$2:$G$43,2,FALSE)+ROW()-2)),\"\")","v":{"$error":"#N/A"}},{"$f":"IF(INDIRECT(\"c\" & (VLOOKUP(Switch!$D$59,$F$2:$G$43,2,FALSE)+ROW()-2))=Switch!$D$59,INDIRECT(\"a\" & (VLOOKUP(Switch!$D$59,$F$2:$G$43,2,FALSE)+ROW()-2)),\"\")","v":{"$error":"#N/A"}},{"$f":"IF(INDIRECT(\"c\" & (VLOOKUP(Switch!$D$60,$F$2:$G$43,2,FALSE)+ROW()-2))=Switch!$D$60,INDIRECT(\"a\" & (VLOOKUP(Switch!$D$60,$F$2:$G$43,2,FALSE)+ROW()-2)),\"\")","v":{"$error":"#N/A"}},{"$f":"IF(INDIRECT(\"c\" & (VLOOKUP(Switch!$D$61,$F$2:$G$43,2,FALSE)+ROW()-2))=Switch!$D$61,INDIRECT(\"a\" & (VLOOKUP(Switch!$D$61,$F$2:$G$43,2,FALSE)+ROW()-2)),\"\")","v":{"$error":"#N/A"}},{"$f":"IF(INDIRECT(\"c\" & (VLOOKUP(Switch!$D$62,$F$2:$G$43,2,FALSE)+ROW()-2))=Switch!$D$62,INDIRECT(\"a\" & (VLOOKUP(Switch!$D$62,$F$2:$G$43,2,FALSE)+ROW()-2)),\"\")","v":{"$error":"#N/A"}},{"$f":"IF(INDIRECT(\"c\" & (VLOOKUP(Switch!$D$63,$F$2:$G$43,2,FALSE)+ROW()-2))=Switch!$D$63,INDIRECT(\"a\" & (VLOOKUP(Switch!$D$63,$F$2:$G$43,2,FALSE)+ROW()-2)),\"\")","v":{"$error":"#N/A"}},{"$f":"IF(INDIRECT(\"c\" & (VLOOKUP(Switch!$D$64,$F$2:$G$43,2,FALSE)+ROW()-2))=Switch!$D$64,INDIRECT(\"a\" & (VLOOKUP(Switch!$D$64,$F$2:$G$43,2,FALSE)+ROW()-2)),\"\")","v":{"$error":"#N/A"}},{"$f":"IF(INDIRECT(\"c\" & (VLOOKUP(Switch!$D$65,$F$2:$G$43,2,FALSE)+ROW()-2))=Switch!$D$65,INDIRECT(\"a\" & (VLOOKUP(Switch!$D$65,$F$2:$G$43,2,FALSE)+ROW()-2)),\"\")","v":{"$error":"#N/A"}},{"$f":"IF(INDIRECT(\"c\" & (VLOOKUP(Switch!$D$66,$F$2:$G$43,2,FALSE)+ROW()-2))=Switch!$D$66,INDIRECT(\"a\" & (VLOOKUP(Switch!$D$66,$F$2:$G$43,2,FALSE)+ROW()-2)),\"\")","v":{"$error":"#N/A"}}]
[null,null,null,{"$f":"ROW()","v":617},null,null,{"$f":"VLOOKUP(F617,$C$2:$D$637,2,FALSE)","v":{"$error":"#N/A"}},{"$f":"IF(INDIRECT(\"c\" & (VLOOKUP(Switch!$D$26,$F$2:$G$43,2,FALSE)+ROW()-2))=Switch!$D$26,INDIRECT(\"a\" & (VLOOKUP(Switch!$D$26,$F$2:$G$43,2,FALSE)+ROW()-2)),\"\")","v":{"$error":"#N/A"}},{"$f":"IF(INDIRECT(\"c\" & (VLOOKUP(Switch!$D$27,$F$2:$G$43,2,FALSE)+ROW()-2))=Switch!$D$27,INDIRECT(\"a\" & (VLOOKUP(Switch!$D$27,$F$2:$G$43,2,FALSE)+ROW()-2)),\"\")","v":{"$error":"#N/A"}},{"$f":"IF(INDIRECT(\"c\" & (VLOOKUP(Switch!$D$28,$F$2:$G$43,2,FALSE)+ROW()-2))=Switch!$D$28,INDIRECT(\"a\" & (VLOOKUP(Switch!$D$28,$F$2:$G$43,2,FALSE)+ROW()-2)),\"\")","v":{"$error":"#N/A"}},{"$f":"IF(INDIRECT(\"c\" & (VLOOKUP(Switch!$D$29,$F$2:$G$43,2,FALSE)+ROW()-2))=Switch!$D$29,INDIRECT(\"a\" & (VLOOKUP(Switch!$D$29,$F$2:$G$43,2,FALSE)+ROW()-2)),\"\")","v":{"$error":"#N/A"}},{"$f":"IF(INDIRECT(\"c\" & (VLOOKUP(Switch!$D$30,$F$2:$G$43,2,FALSE)+ROW()-2))=Switch!$D$30,INDIRECT(\"a\" & (VLOOKUP(Switch!$D$30,$F$2:$G$43,2,FALSE)+ROW()-2)),\"\")","v":{"$error":"#N/A"}},{"$f":"IF(INDIRECT(\"c\" & (VLOOKUP(Switch!$D$31,$F$2:$G$43,2,FALSE)+ROW()-2))=Switch!$D$31,INDIRECT(\"a\" & (VLOOKUP(Switch!$D$31,$F$2:$G$43,2,FALSE)+ROW()-2)),\"\")","v":{"$error":"#N/A"}},{"$f":"IF(INDIRECT(\"c\" & (VLOOKUP(Switch!$D$32,$F$2:$G$43,2,FALSE)+ROW()-2))=Switch!$D$32,INDIRECT(\"a\" & (VLOOKUP(Switch!$D$32,$F$2:$G$43,2,FALSE)+ROW()-2)),\"\")","v":{"$error":"#N/A"}},{"$f":"IF(INDIRECT(\"c\" & (VLOOKUP(Switch!$D$33,$F$2:$G$43,2,FALSE)+ROW()-2))=Switch!$D$33,INDIRECT(\"a\" & (VLOOKUP(Switch!$D$33,$F$2:$G$43,2,FALSE)+ROW()-2)),\"\")","v":{"$error":"#N/A"}},{"$f":"IF(INDIRECT(\"c\" & (VLOOKUP(Switch!$D$34,$F$2:$G$43,2,FALSE)+ROW()-2))=Switch!$D$34,INDIRECT(\"a\" & (VLOOKUP(Switch!$D$34,$F$2:$G$43,2,FALSE)+ROW()-2)),\"\")","v":{"$error":"#N/A"}},{"$f":"IF(INDIRECT(\"c\" & (VLOOKUP(Switch!$D$35,$F$2:$G$43,2,FALSE)+ROW()-2))=Switch!$D$35,INDIRECT(\"a\" & (VLOOKUP(Switch!$D$35,$F$2:$G$43,2,FALSE)+ROW()-2)),\"\")","v":{"$error":"#N/A"}},{"$f":"IF(INDIRECT(\"c\" & (VLOOKUP(Switch!$D$36,$F$2:$G$43,2,FALSE)+ROW()-2))=Switch!$D$36,INDIRECT(\"a\" & (VLOOKUP(Switch!$D$36,$F$2:$G$43,2,FALSE)+ROW()-2)),\"\")","v":{"$error":"#N/A"}},{"$f":"IF(INDIRECT(\"c\" & (VLOOKUP(Switch!$D$37,$F$2:$G$43,2,FALSE)+ROW()-2))=Switch!$D$37,INDIRECT(\"a\" & (VLOOKUP(Switch!$D$37,$F$2:$G$43,2,FALSE)+ROW()-2)),\"\")","v":{"$error":"#N/A"}},{"$f":"IF(INDIRECT(\"c\" & (VLOOKUP(Switch!$D$38,$F$2:$G$43,2,FALSE)+ROW()-2))=Switch!$D$38,INDIRECT(\"a\" & (VLOOKUP(Switch!$D$38,$F$2:$G$43,2,FALSE)+ROW()-2)),\"\")","v":{"$error":"#N/A"}},{"$f":"IF(INDIRECT(\"c\" & (VLOOKUP(Switch!$D$39,$F$2:$G$43,2,FALSE)+ROW()-2))=Switch!$D$39,INDIRECT(\"a\" & (VLOOKUP(Switch!$D$39,$F$2:$G$43,2,FALSE)+ROW()-2)),\"\")","v":{"$error":"#N/A"}},{"$f":"IF(INDIRECT(\"c\" & (VLOOKUP(Switch!$D$40,$F$2:$G$43,2,FALSE)+ROW()-2))=Switch!$D$40,INDIRECT(\"a\" & (VLOOKUP(Switch!$D$40,$F$2:$G$43,2,FALSE)+ROW()-2)),\"\")","v":{"$error":"#N/A"}},{"$f":"IF(INDIRECT(\"c\" & (VLOOKUP(Switch!$D$52,$F$2:$G$43,2,FALSE)+ROW()-2))=Switch!$D$52,INDIRECT(\"a\" & (VLOOKUP(Switch!$D$52,$F$2:$G$43,2,FALSE)+ROW()-2)),\"\")","v":{"$error":"#N/A"}},{"$f":"IF(INDIRECT(\"c\" & (VLOOKUP(Switch!$D$53,$F$2:$G$43,2,FALSE)+ROW()-2))=Switch!$D$53,INDIRECT(\"a\" & (VLOOKUP(Switch!$D$53,$F$2:$G$43,2,FALSE)+ROW()-2)),\"\")","v":{"$error":"#N/A"}},{"$f":"IF(INDIRECT(\"c\" & (VLOOKUP(Switch!$D$54,$F$2:$G$43,2,FALSE)+ROW()-2))=Switch!$D$54,INDIRECT(\"a\" & (VLOOKUP(Switch!$D$54,$F$2:$G$43,2,FALSE)+ROW()-2)),\"\")","v":{"$error":"#N/A"}},{"$f":"IF(INDIRECT(\"c\" & (VLOOKUP(Switch!$D$55,$F$2:$G$43,2,FALSE)+ROW()-2))=Switch!$D$55,INDIRECT(\"a\" & (VLOOKUP(Switch!$D$55,$F$2:$G$43,2,FALSE)+ROW()-2)),\"\")","v":{"$error":"#N/A"}},{"$f":"IF(INDIRECT(\"c\" & (VLOOKUP(Switch!$D$56,$F$2:$G$43,2,FALSE)+ROW()-2))=Switch!$D$56,INDIRECT(\"a\" & (VLOOKUP(Switch!$D$56,$F$2:$G$43,2,FALSE)+ROW()-2)),\"\")","v":{"$error":"#N/A"}},{"$f":"IF(INDIRECT(\"c\" & (VLOOKUP(Switch!$D$57,$F$2:$G$43,2,FALSE)+ROW()-2))=Switch!$D$57,INDIRECT(\"a\" & (VLOOKUP(Switch!$D$57,$F$2:$G$43,2,FALSE)+ROW()-2)),\"\")","v":{"$error":"#N/A"}},{"$f":"IF(INDIRECT(\"c\" & (VLOOKUP(Switch!$D$58,$F$2:$G$43,2,FALSE)+ROW()-2))=Switch!$D$58,INDIRECT(\"a\" & (VLOOKUP(Switch!$D$58,$F$2:$G$43,2,FALSE)+ROW()-2)),\"\")","v":{"$error":"#N/A"}},{"$f":"IF(INDIRECT(\"c\" & (VLOOKUP(Switch!$D$59,$F$2:$G$43,2,FALSE)+ROW()-2))=Switch!$D$59,INDIRECT(\"a\" & (VLOOKUP(Switch!$D$59,$F$2:$G$43,2,FALSE)+ROW()-2)),\"\")","v":{"$error":"#N/A"}},{"$f":"IF(INDIRECT(\"c\" & (VLOOKUP(Switch!$D$60,$F$2:$G$43,2,FALSE)+ROW()-2))=Switch!$D$60,INDIRECT(\"a\" & (VLOOKUP(Switch!$D$60,$F$2:$G$43,2,FALSE)+ROW()-2)),\"\")","v":{"$error":"#N/A"}},{"$f":"IF(INDIRECT(\"c\" & (VLOOKUP(Switch!$D$61,$F$2:$G$43,2,FALSE)+ROW()-2))=Switch!$D$61,INDIRECT(\"a\" & (VLOOKUP(Switch!$D$61,$F$2:$G$43,2,FALSE)+ROW()-2)),\"\")","v":{"$error":"#N/A"}},{"$f":"IF(INDIRECT(\"c\" & (VLOOKUP(Switch!$D$62,$F$2:$G$43,2,FALSE)+ROW()-2))=Switch!$D$62,INDIRECT(\"a\" & (VLOOKUP(Switch!$D$62,$F$2:$G$43,2,FALSE)+ROW()-2)),\"\")","v":{"$error":"#N/A"}},{"$f":"IF(INDIRECT(\"c\" & (VLOOKUP(Switch!$D$63,$F$2:$G$43,2,FALSE)+ROW()-2))=Switch!$D$63,INDIRECT(\"a\" & (VLOOKUP(Switch!$D$63,$F$2:$G$43,2,FALSE)+ROW()-2)),\"\")","v":{"$error":"#N/A"}},{"$f":"IF(INDIRECT(\"c\" & (VLOOKUP(Switch!$D$64,$F$2:$G$43,2,FALSE)+ROW()-2))=Switch!$D$64,INDIRECT(\"a\" & (VLOOKUP(Switch!$D$64,$F$2:$G$43,2,FALSE)+ROW()-2)),\"\")","v":{"$error":"#N/A"}},{"$f":"IF(INDIRECT(\"c\" & (VLOOKUP(Switch!$D$65,$F$2:$G$43,2,FALSE)+ROW()-2))=Switch!$D$65,INDIRECT(\"a\" & (VLOOKUP(Switch!$D$65,$F$2:$G$43,2,FALSE)+ROW()-2)),\"\")","v":{"$error":"#N/A"}},{"$f":"IF(INDIRECT(\"c\" & (VLOOKUP(Switch!$D$66,$F$2:$G$43,2,FALSE)+ROW()-2))=Switch!$D$66,INDIRECT(\"a\" & (VLOOKUP(Switch!$D$66,$F$2:$G$43,2,FALSE)+ROW()-2)),\"\")","v":{"$error":"#N/A"}}]
[null,null,null,{"$f":"ROW()","v":618},null,null,{"$f":"VLOOKUP(F618,$C$2:$D$637,2,FALSE)","v":{"$error":"#N/A"}},{"$f":"IF(INDIRECT(\"c\" & (VLOOKUP(Switch!$D$26,$F$2:$G$43,2,FALSE)+ROW()-2))=Switch!$D$26,INDIRECT(\"a\" & (VLOOKUP(Switch!$D$26,$F$2:$G$43,2,FALSE)+ROW()-2)),\"\")","v":{"$error":"#N/A"}},{"$f":"IF(INDIRECT(\"c\" & (VLOOKUP(Switch!$D$27,$F$2:$G$43,2,FALSE)+ROW()-2))=Switch!$D$27,INDIRECT(\"a\" & (VLOOKUP(Switch!$D$27,$F$2:$G$43,2,FALSE)+ROW()-2)),\"\")","v":{"$error":"#N/A"}},{"$f":"IF(INDIRECT(\"c\" & (VLOOKUP(Switch!$D$28,$F$2:$G$43,2,FALSE)+ROW()-2))=Switch!$D$28,INDIRECT(\"a\" & (VLOOKUP(Switch!$D$28,$F$2:$G$43,2,FALSE)+ROW()-2)),\"\")","v":{"$error":"#N/A"}},{"$f":"IF(INDIRECT(\"c\" & (VLOOKUP(Switch!$D$29,$F$2:$G$43,2,FALSE)+ROW()-2))=Switch!$D$29,INDIRECT(\"a\" & (VLOOKUP(Switch!$D$29,$F$2:$G$43,2,FALSE)+ROW()-2)),\"\")","v":{"$error":"#N/A"}},{"$f":"IF(INDIRECT(\"c\" & (VLOOKUP(Switch!$D$30,$F$2:$G$43,2,FALSE)+ROW()-2))=Switch!$D$30,INDIRECT(\"a\" & (VLOOKUP(Switch!$D$30,$F$2:$G$43,2,FALSE)+ROW()-2)),\"\")","v":{"$error":"#N/A"}},{"$f":"IF(INDIRECT(\"c\" & (VLOOKUP(Switch!$D$31,$F$2:$G$43,2,FALSE)+ROW()-2))=Switch!$D$31,INDIRECT(\"a\" & (VLOOKUP(Switch!$D$31,$F$2:$G$43,2,FALSE)+ROW()-2)),\"\")","v":{"$error":"#N/A"}},{"$f":"IF(INDIRECT(\"c\" & (VLOOKUP(Switch!$D$32,$F$2:$G$43,2,FALSE)+ROW()-2))=Switch!$D$32,INDIRECT(\"a\" & (VLOOKUP(Switch!$D$32,$F$2:$G$43,2,FALSE)+ROW()-2)),\"\")","v":{"$error":"#N/A"}},{"$f":"IF(INDIRECT(\"c\" & (VLOOKUP(Switch!$D$33,$F$2:$G$43,2,FALSE)+ROW()-2))=Switch!$D$33,INDIRECT(\"a\" & (VLOOKUP(Switch!$D$33,$F$2:$G$43,2,FALSE)+ROW()-2)),\"\")","v":{"$error":"#N/A"}},{"$f":"IF(INDIRECT(\"c\" & (VLOOKUP(Switch!$D$34,$F$2:$G$43,2,FALSE)+ROW()-2))=Switch!$D$34,INDIRECT(\"a\" & (VLOOKUP(Switch!$D$34,$F$2:$G$43,2,FALSE)+ROW()-2)),\"\")","v":{"$error":"#N/A"}},{"$f":"IF(INDIRECT(\"c\" & (VLOOKUP(Switch!$D$35,$F$2:$G$43,2,FALSE)+ROW()-2))=Switch!$D$35,INDIRECT(\"a\" & (VLOOKUP(Switch!$D$35,$F$2:$G$43,2,FALSE)+ROW()-2)),\"\")","v":{"$error":"#N/A"}},{"$f":"IF(INDIRECT(\"c\" & (VLOOKUP(Switch!$D$36,$F$2:$G$43,2,FALSE)+ROW()-2))=Switch!$D$36,INDIRECT(\"a\" & (VLOOKUP(Switch!$D$36,$F$2:$G$43,2,FALSE)+ROW()-2)),\"\")","v":{"$error":"#N/A"}},{"$f":"IF(INDIRECT(\"c\" & (VLOOKUP(Switch!$D$37,$F$2:$G$43,2,FALSE)+ROW()-2))=Switch!$D$37,INDIRECT(\"a\" & (VLOOKUP(Switch!$D$37,$F$2:$G$43,2,FALSE)+ROW()-2)),\"\")","v":{"$error":"#N/A"}},{"$f":"IF(INDIRECT(\"c\" & (VLOOKUP(Switch!$D$38,$F$2:$G$43,2,FALSE)+ROW()-2))=Switch!$D$38,INDIRECT(\"a\" & (VLOOKUP(Switch!$D$38,$F$2:$G$43,2,FALSE)+ROW()-2)),\"\")","v":{"$error":"#N/A"}},{"$f":"IF(INDIRECT(\"c\" & (VLOOKUP(Switch!$D$39,$F$2:$G$43,2,FALSE)+ROW()-2))=Switch!$D$39,INDIRECT(\"a\" & (VLOOKUP(Switch!$D$39,$F$2:$G$43,2,FALSE)+ROW()-2)),\"\")","v":{"$error":"#N/A"}},{"$f":"IF(INDIRECT(\"c\" & (VLOOKUP(Switch!$D$40,$F$2:$G$43,2,FALSE)+ROW()-2))=Switch!$D$40,INDIRECT(\"a\" & (VLOOKUP(Switch!$D$40,$F$2:$G$43,2,FALSE)+ROW()-2)),\"\")","v":{"$error":"#N/A"}},{"$f":"IF(INDIRECT(\"c\" & (VLOOKUP(Switch!$D$52,$F$2:$G$43,2,FALSE)+ROW()-2))=Switch!$D$52,INDIRECT(\"a\" & (VLOOKUP(Switch!$D$52,$F$2:$G$43,2,FALSE)+ROW()-2)),\"\")","v":{"$error":"#N/A"}},{"$f":"IF(INDIRECT(\"c\" & (VLOOKUP(Switch!$D$53,$F$2:$G$43,2,FALSE)+ROW()-2))=Switch!$D$53,INDIRECT(\"a\" & (VLOOKUP(Switch!$D$53,$F$2:$G$43,2,FALSE)+ROW()-2)),\"\")","v":{"$error":"#N/A"}},{"$f":"IF(INDIRECT(\"c\" & (VLOOKUP(Switch!$D$54,$F$2:$G$43,2,FALSE)+ROW()-2))=Switch!$D$54,INDIRECT(\"a\" & (VLOOKUP(Switch!$D$54,$F$2:$G$43,2,FALSE)+ROW()-2)),\"\")","v":{"$error":"#N/A"}},{"$f":"IF(INDIRECT(\"c\" & (VLOOKUP(Switch!$D$55,$F$2:$G$43,2,FALSE)+ROW()-2))=Switch!$D$55,INDIRECT(\"a\" & (VLOOKUP(Switch!$D$55,$F$2:$G$43,2,FALSE)+ROW()-2)),\"\")","v":{"$error":"#N/A"}},{"$f":"IF(INDIRECT(\"c\" & (VLOOKUP(Switch!$D$56,$F$2:$G$43,2,FALSE)+ROW()-2))=Switch!$D$56,INDIRECT(\"a\" & (VLOOKUP(Switch!$D$56,$F$2:$G$43,2,FALSE)+ROW()-2)),\"\")","v":{"$error":"#N/A"}},{"$f":"IF(INDIRECT(\"c\" & (VLOOKUP(Switch!$D$57,$F$2:$G$43,2,FALSE)+ROW()-2))=Switch!$D$57,INDIRECT(\"a\" & (VLOOKUP(Switch!$D$57,$F$2:$G$43,2,FALSE)+ROW()-2)),\"\")","v":{"$error":"#N/A"}},{"$f":"IF(INDIRECT(\"c\" & (VLOOKUP(Switch!$D$58,$F$2:$G$43,2,FALSE)+ROW()-2))=Switch!$D$58,INDIRECT(\"a\" & (VLOOKUP(Switch!$D$58,$F$2:$G$43,2,FALSE)+ROW()-2)),\"\")","v":{"$error":"#N/A"}},{"$f":"IF(INDIRECT(\"c\" & (VLOOKUP(Switch!$D$59,$F$2:$G$43,2,FALSE)+ROW()-2))=Switch!$D$59,INDIRECT(\"a\" & (VLOOKUP(Switch!$D$59,$F$2:$G$43,2,FALSE)+ROW()-2)),\"\")","v":{"$error":"#N/A"}},{"$f":"IF(INDIRECT(\"c\" & (VLOOKUP(Switch!$D$60,$F$2:$G$43,2,FALSE)+ROW()-2))=Switch!$D$60,INDIRECT(\"a\" & (VLOOKUP(Switch!$D$60,$F$2:$G$43,2,FALSE)+ROW()-2)),\"\")","v":{"$error":"#N/A"}},{"$f":"IF(INDIRECT(\"c\" & (VLOOKUP(Switch!$D$61,$F$2:$G$43,2,FALSE)+ROW()-2))=Switch!$D$61,INDIRECT(\"a\" & (VLOOKUP(Switch!$D$61,$F$2:$G$43,2,FALSE)+ROW()-2)),\"\")","v":{"$error":"#N/A"}},{"$f":"IF(INDIRECT(\"c\" & (VLOOKUP(Switch!$D$62,$F$2:$G$43,2,FALSE)+ROW()-2))=Switch!$D$62,INDIRECT(\"a\" & (VLOOKUP(Switch!$D$62,$F$2:$G$43,2,FALSE)+ROW()-2)),\"\")","v":{"$error":"#N/A"}},{"$f":"IF(INDIRECT(\"c\" & (VLOOKUP(Switch!$D$63,$F$2:$G$43,2,FALSE)+ROW()-2))=Switch!$D$63,INDIRECT(\"a\" & (VLOOKUP(Switch!$D$63,$F$2:$G$43,2,FALSE)+ROW()-2)),\"\")","v":{"$error":"#N/A"}},{"$f":"IF(INDIRECT(\"c\" & (VLOOKUP(Switch!$D$64,$F$2:$G$43,2,FALSE)+ROW()-2))=Switch!$D$64,INDIRECT(\"a\" & (VLOOKUP(Switch!$D$64,$F$2:$G$43,2,FALSE)+ROW()-2)),\"\")","v":{"$error":"#N/A"}},{"$f":"IF(INDIRECT(\"c\" & (VLOOKUP(Switch!$D$65,$F$2:$G$43,2,FALSE)+ROW()-2))=Switch!$D$65,INDIRECT(\"a\" & (VLOOKUP(Switch!$D$65,$F$2:$G$43,2,FALSE)+ROW()-2)),\"\")","v":{"$error":"#N/A"}},{"$f":"IF(INDIRECT(\"c\" & (VLOOKUP(Switch!$D$66,$F$2:$G$43,2,FALSE)+ROW()-2))=Switch!$D$66,INDIRECT(\"a\" & (VLOOKUP(Switch!$D$66,$F$2:$G$43,2,FALSE)+ROW()-2)),\"\")","v":{"$error":"#N/A"}}]
[null,null,null,{"$f":"ROW()","v":619},null,null,{"$f":"VLOOKUP(F619,$C$2:$D$637,2,FALSE)","v":{"$error":"#N/A"}},{"$f":"IF(INDIRECT(\"c\" & (VLOOKUP(Switch!$D$26,$F$2:$G$43,2,FALSE)+ROW()-2))=Switch!$D$26,INDIRECT(\"a\" & (VLOOKUP(Switch!$D$26,$F$2:$G$43,2,FALSE)+ROW()-2)),\"\")","v":{"$error":"#N/A"}},{"$f":"IF(INDIRECT(\"c\" & (VLOOKUP(Switch!$D$27,$F$2:$G$43,2,FALSE)+ROW()-2))=Switch!$D$27,INDIRECT(\"a\" & (VLOOKUP(Switch!$D$27,$F$2:$G$43,2,FALSE)+ROW()-2)),\"\")","v":{"$error":"#N/A"}},{"$f":"IF(INDIRECT(\"c\" & (VLOOKUP(Switch!$D$28,$F$2:$G$43,2,FALSE)+ROW()-2))=Switch!$D$28,INDIRECT(\"a\" & (VLOOKUP(Switch!$D$28,$F$2:$G$43,2,FALSE)+ROW()-2)),\"\")","v":{"$error":"#N/A"}},{"$f":"IF(INDIRECT(\"c\" & (VLOOKUP(Switch!$D$29,$F$2:$G$43,2,FALSE)+ROW()-2))=Switch!$D$29,INDIRECT(\"a\" & (VLOOKUP(Switch!$D$29,$F$2:$G$43,2,FALSE)+ROW()-2)),\"\")","v":{"$error":"#N/A"}},{"$f":"IF(INDIRECT(\"c\" & (VLOOKUP(Switch!$D$30,$F$2:$G$43,2,FALSE)+ROW()-2))=Switch!$D$30,INDIRECT(\"a\" & (VLOOKUP(Switch!$D$30,$F$2:$G$43,2,FALSE)+ROW()-2)),\"\")","v":{"$error":"#N/A"}},{"$f":"IF(INDIRECT(\"c\" & (VLOOKUP(Switch!$D$31,$F$2:$G$43,2,FALSE)+ROW()-2))=Switch!$D$31,INDIRECT(\"a\" & (VLOOKUP(Switch!$D$31,$F$2:$G$43,2,FALSE)+ROW()-2)),\"\")","v":{"$error":"#N/A"}},{"$f":"IF(INDIRECT(\"c\" & (VLOOKUP(Switch!$D$32,$F$2:$G$43,2,FALSE)+ROW()-2))=Switch!$D$32,INDIRECT(\"a\" & (VLOOKUP(Switch!$D$32,$F$2:$G$43,2,FALSE)+ROW()-2)),\"\")","v":{"$error":"#N/A"}},{"$f":"IF(INDIRECT(\"c\" & (VLOOKUP(Switch!$D$33,$F$2:$G$43,2,FALSE)+ROW()-2))=Switch!$D$33,INDIRECT(\"a\" & (VLOOKUP(Switch!$D$33,$F$2:$G$43,2,FALSE)+ROW()-2)),\"\")","v":{"$error":"#N/A"}},{"$f":"IF(INDIRECT(\"c\" & (VLOOKUP(Switch!$D$34,$F$2:$G$43,2,FALSE)+ROW()-2))=Switch!$D$34,INDIRECT(\"a\" & (VLOOKUP(Switch!$D$34,$F$2:$G$43,2,FALSE)+ROW()-2)),\"\")","v":{"$error":"#N/A"}},{"$f":"IF(INDIRECT(\"c\" & (VLOOKUP(Switch!$D$35,$F$2:$G$43,2,FALSE)+ROW()-2))=Switch!$D$35,INDIRECT(\"a\" & (VLOOKUP(Switch!$D$35,$F$2:$G$43,2,FALSE)+ROW()-2)),\"\")","v":{"$error":"#N/A"}},{"$f":"IF(INDIRECT(\"c\" & (VLOOKUP(Switch!$D$36,$F$2:$G$43,2,FALSE)+ROW()-2))=Switch!$D$36,INDIRECT(\"a\" & (VLOOKUP(Switch!$D$36,$F$2:$G$43,2,FALSE)+ROW()-2)),\"\")","v":{"$error":"#N/A"}},{"$f":"IF(INDIRECT(\"c\" & (VLOOKUP(Switch!$D$37,$F$2:$G$43,2,FALSE)+ROW()-2))=Switch!$D$37,INDIRECT(\"a\" & (VLOOKUP(Switch!$D$37,$F$2:$G$43,2,FALSE)+ROW()-2)),\"\")","v":{"$error":"#N/A"}},{"$f":"IF(INDIRECT(\"c\" & (VLOOKUP(Switch!$D$38,$F$2:$G$43,2,FALSE)+ROW()-2))=Switch!$D$38,INDIRECT(\"a\" & (VLOOKUP(Switch!$D$38,$F$2:$G$43,2,FALSE)+ROW()-2)),\"\")","v":{"$error":"#N/A"}},{"$f":"IF(INDIRECT(\"c\" & (VLOOKUP(Switch!$D$39,$F$2:$G$43,2,FALSE)+ROW()-2))=Switch!$D$39,INDIRECT(\"a\" & (VLOOKUP(Switch!$D$39,$F$2:$G$43,2,FALSE)+ROW()-2)),\"\")","v":{"$error":"#N/A"}},{"$f":"IF(INDIRECT(\"c\" & (VLOOKUP(Switch!$D$40,$F$2:$G$43,2,FALSE)+ROW()-2))=Switch!$D$40,INDIRECT(\"a\" & (VLOOKUP(Switch!$D$40,$F$2:$G$43,2,FALSE)+ROW()-2)),\"\")","v":{"$error":"#N/A"}},{"$f":"IF(INDIRECT(\"c\" & (VLOOKUP(Switch!$D$52,$F$2:$G$43,2,FALSE)+ROW()-2))=Switch!$D$52,INDIRECT(\"a\" & (VLOOKUP(Switch!$D$52,$F$2:$G$43,2,FALSE)+ROW()-2)),\"\")","v":{"$error":"#N/A"}},{"$f":"IF(INDIRECT(\"c\" & (VLOOKUP(Switch!$D$53,$F$2:$G$43,2,FALSE)+ROW()-2))=Switch!$D$53,INDIRECT(\"a\" & (VLOOKUP(Switch!$D$53,$F$2:$G$43,2,FALSE)+ROW()-2)),\"\")","v":{"$error":"#N/A"}},{"$f":"IF(INDIRECT(\"c\" & (VLOOKUP(Switch!$D$54,$F$2:$G$43,2,FALSE)+ROW()-2))=Switch!$D$54,INDIRECT(\"a\" & (VLOOKUP(Switch!$D$54,$F$2:$G$43,2,FALSE)+ROW()-2)),\"\")","v":{"$error":"#N/A"}},{"$f":"IF(INDIRECT(\"c\" & (VLOOKUP(Switch!$D$55,$F$2:$G$43,2,FALSE)+ROW()-2))=Switch!$D$55,INDIRECT(\"a\" & (VLOOKUP(Switch!$D$55,$F$2:$G$43,2,FALSE)+ROW()-2)),\"\")","v":{"$error":"#N/A"}},{"$f":"IF(INDIRECT(\"c\" & (VLOOKUP(Switch!$D$56,$F$2:$G$43,2,FALSE)+ROW()-2))=Switch!$D$56,INDIRECT(\"a\" & (VLOOKUP(Switch!$D$56,$F$2:$G$43,2,FALSE)+ROW()-2)),\"\")","v":{"$error":"#N/A"}},{"$f":"IF(INDIRECT(\"c\" & (VLOOKUP(Switch!$D$57,$F$2:$G$43,2,FALSE)+ROW()-2))=Switch!$D$57,INDIRECT(\"a\" & (VLOOKUP(Switch!$D$57,$F$2:$G$43,2,FALSE)+ROW()-2)),\"\")","v":{"$error":"#N/A"}},{"$f":"IF(INDIRECT(\"c\" & (VLOOKUP(Switch!$D$58,$F$2:$G$43,2,FALSE)+ROW()-2))=Switch!$D$58,INDIRECT(\"a\" & (VLOOKUP(Switch!$D$58,$F$2:$G$43,2,FALSE)+ROW()-2)),\"\")","v":{"$error":"#N/A"}},{"$f":"IF(INDIRECT(\"c\" & (VLOOKUP(Switch!$D$59,$F$2:$G$43,2,FALSE)+ROW()-2))=Switch!$D$59,INDIRECT(\"a\" & (VLOOKUP(Switch!$D$59,$F$2:$G$43,2,FALSE)+ROW()-2)),\"\")","v":{"$error":"#N/A"}},{"$f":"IF(INDIRECT(\"c\" & (VLOOKUP(Switch!$D$60,$F$2:$G$43,2,FALSE)+ROW()-2))=Switch!$D$60,INDIRECT(\"a\" & (VLOOKUP(Switch!$D$60,$F$2:$G$43,2,FALSE)+ROW()-2)),\"\")","v":{"$error":"#N/A"}},{"$f":"IF(INDIRECT(\"c\" & (VLOOKUP(Switch!$D$61,$F$2:$G$43,2,FALSE)+ROW()-2))=Switch!$D$61,INDIRECT(\"a\" & (VLOOKUP(Switch!$D$61,$F$2:$G$43,2,FALSE)+ROW()-2)),\"\")","v":{"$error":"#N/A"}},{"$f":"IF(INDIRECT(\"c\" & (VLOOKUP(Switch!$D$62,$F$2:$G$43,2,FALSE)+ROW()-2))=Switch!$D$62,INDIRECT(\"a\" & (VLOOKUP(Switch!$D$62,$F$2:$G$43,2,FALSE)+ROW()-2)),\"\")","v":{"$error":"#N/A"}},{"$f":"IF(INDIRECT(\"c\" & (VLOOKUP(Switch!$D$63,$F$2:$G$43,2,FALSE)+ROW()-2))=Switch!$D$63,INDIRECT(\"a\" & (VLOOKUP(Switch!$D$63,$F$2:$G$43,2,FALSE)+ROW()-2)),\"\")","v":{"$error":"#N/A"}},{"$f":"IF(INDIRECT(\"c\" & (VLOOKUP(Switch!$D$64,$F$2:$G$43,2,FALSE)+ROW()-2))=Switch!$D$64,INDIRECT(\"a\" & (VLOOKUP(Switch!$D$64,$F$2:$G$43,2,FALSE)+ROW()-2)),\"\")","v":{"$error":"#N/A"}},{"$f":"IF(INDIRECT(\"c\" & (VLOOKUP(Switch!$D$65,$F$2:$G$43,2,FALSE)+ROW()-2))=Switch!$D$65,INDIRECT(\"a\" & (VLOOKUP(Switch!$D$65,$F$2:$G$43,2,FALSE)+ROW()-2)),\"\")","v":{"$error":"#N/A"}},{"$f":"IF(INDIRECT(\"c\" & (VLOOKUP(Switch!$D$66,$F$2:$G$43,2,FALSE)+ROW()-2))=Switch!$D$66,INDIRECT(\"a\" & (VLOOKUP(Switch!$D$66,$F$2:$G$43,2,FALSE)+ROW()-2)),\"\")","v":{"$error":"#N/A"}}]
[null,null,null,{"$f":"ROW()","v":620},null,null,{"$f":"VLOOKUP(F620,$C$2:$D$637,2,FALSE)","v":{"$error":"#N/A"}},{"$f":"IF(INDIRECT(\"c\" & (VLOOKUP(Switch!$D$26,$F$2:$G$43,2,FALSE)+ROW()-2))=Switch!$D$26,INDIRECT(\"a\" & (VLOOKUP(Switch!$D$26,$F$2:$G$43,2,FALSE)+ROW()-2)),\"\")","v":{"$error":"#N/A"}},{"$f":"IF(INDIRECT(\"c\" & (VLOOKUP(Switch!$D$27,$F$2:$G$43,2,FALSE)+ROW()-2))=Switch!$D$27,INDIRECT(\"a\" & (VLOOKUP(Switch!$D$27,$F$2:$G$43,2,FALSE)+ROW()-2)),\"\")","v":{"$error":"#N/A"}},{"$f":"IF(INDIRECT(\"c\" & (VLOOKUP(Switch!$D$28,$F$2:$G$43,2,FALSE)+ROW()-2))=Switch!$D$28,INDIRECT(\"a\" & (VLOOKUP(Switch!$D$28,$F$2:$G$43,2,FALSE)+ROW()-2)),\"\")","v":{"$error":"#N/A"}},{"$f":"IF(INDIRECT(\"c\" & (VLOOKUP(Switch!$D$29,$F$2:$G$43,2,FALSE)+ROW()-2))=Switch!$D$29,INDIRECT(\"a\" & (VLOOKUP(Switch!$D$29,$F$2:$G$43,2,FALSE)+ROW()-2)),\"\")","v":{"$error":"#N/A"}},{"$f":"IF(INDIRECT(\"c\" & (VLOOKUP(Switch!$D$30,$F$2:$G$43,2,FALSE)+ROW()-2))=Switch!$D$30,INDIRECT(\"a\" & (VLOOKUP(Switch!$D$30,$F$2:$G$43,2,FALSE)+ROW()-2)),\"\")","v":{"$error":"#N/A"}},{"$f":"IF(INDIRECT(\"c\" & (VLOOKUP(Switch!$D$31,$F$2:$G$43,2,FALSE)+ROW()-2))=Switch!$D$31,INDIRECT(\"a\" & (VLOOKUP(Switch!$D$31,$F$2:$G$43,2,FALSE)+ROW()-2)),\"\")","v":{"$error":"#N/A"}},{"$f":"IF(INDIRECT(\"c\" & (VLOOKUP(Switch!$D$32,$F$2:$G$43,2,FALSE)+ROW()-2))=Switch!$D$32,INDIRECT(\"a\" & (VLOOKUP(Switch!$D$32,$F$2:$G$43,2,FALSE)+ROW()-2)),\"\")","v":{"$error":"#N/A"}},{"$f":"IF(INDIRECT(\"c\" & (VLOOKUP(Switch!$D$33,$F$2:$G$43,2,FALSE)+ROW()-2))=Switch!$D$33,INDIRECT(\"a\" & (VLOOKUP(Switch!$D$33,$F$2:$G$43,2,FALSE)+ROW()-2)),\"\")","v":{"$error":"#N/A"}},{"$f":"IF(INDIRECT(\"c\" & (VLOOKUP(Switch!$D$34,$F$2:$G$43,2,FALSE)+ROW()-2))=Switch!$D$34,INDIRECT(\"a\" & (VLOOKUP(Switch!$D$34,$F$2:$G$43,2,FALSE)+ROW()-2)),\"\")","v":{"$error":"#N/A"}},{"$f":"IF(INDIRECT(\"c\" & (VLOOKUP(Switch!$D$35,$F$2:$G$43,2,FALSE)+ROW()-2))=Switch!$D$35,INDIRECT(\"a\" & (VLOOKUP(Switch!$D$35,$F$2:$G$43,2,FALSE)+ROW()-2)),\"\")","v":{"$error":"#N/A"}},{"$f":"IF(INDIRECT(\"c\" & (VLOOKUP(Switch!$D$36,$F$2:$G$43,2,FALSE)+ROW()-2))=Switch!$D$36,INDIRECT(\"a\" & (VLOOKUP(Switch!$D$36,$F$2:$G$43,2,FALSE)+ROW()-2)),\"\")","v":{"$error":"#N/A"}},{"$f":"IF(INDIRECT(\"c\" & (VLOOKUP(Switch!$D$37,$F$2:$G$43,2,FALSE)+ROW()-2))=Switch!$D$37,INDIRECT(\"a\" & (VLOOKUP(Switch!$D$37,$F$2:$G$43,2,FALSE)+ROW()-2)),\"\")","v":{"$error":"#N/A"}},{"$f":"IF(INDIRECT(\"c\" & (VLOOKUP(Switch!$D$38,$F$2:$G$43,2,FALSE)+ROW()-2))=Switch!$D$38,INDIRECT(\"a\" & (VLOOKUP(Switch!$D$38,$F$2:$G$43,2,FALSE)+ROW()-2)),\"\")","v":{"$error":"#N/A"}},{"$f":"IF(INDIRECT(\"c\" & (VLOOKUP(Switch!$D$39,$F$2:$G$43,2,FALSE)+ROW()-2))=Switch!$D$39,INDIRECT(\"a\" & (VLOOKUP(Switch!$D$39,$F$2:$G$43,2,FALSE)+ROW()-2)),\"\")","v":{"$error":"#N/A"}},{"$f":"IF(INDIRECT(\"c\" & (VLOOKUP(Switch!$D$40,$F$2:$G$43,2,FALSE)+ROW()-2))=Switch!$D$40,INDIRECT(\"a\" & (VLOOKUP(Switch!$D$40,$F$2:$G$43,2,FALSE)+ROW()-2)),\"\")","v":{"$error":"#N/A"}},{"$f":"IF(INDIRECT(\"c\" & (VLOOKUP(Switch!$D$52,$F$2:$G$43,2,FALSE)+ROW()-2))=Switch!$D$52,INDIRECT(\"a\" & (VLOOKUP(Switch!$D$52,$F$2:$G$43,2,FALSE)+ROW()-2)),\"\")","v":{"$error":"#N/A"}},{"$f":"IF(INDIRECT(\"c\" & (VLOOKUP(Switch!$D$53,$F$2:$G$43,2,FALSE)+ROW()-2))=Switch!$D$53,INDIRECT(\"a\" & (VLOOKUP(Switch!$D$53,$F$2:$G$43,2,FALSE)+ROW()-2)),\"\")","v":{"$error":"#N/A"}},{"$f":"IF(INDIRECT(\"c\" & (VLOOKUP(Switch!$D$54,$F$2:$G$43,2,FALSE)+ROW()-2))=Switch!$D$54,INDIRECT(\"a\" & (VLOOKUP(Switch!$D$54,$F$2:$G$43,2,FALSE)+ROW()-2)),\"\")","v":{"$error":"#N/A"}},{"$f":"IF(INDIRECT(\"c\" & (VLOOKUP(Switch!$D$55,$F$2:$G$43,2,FALSE)+ROW()-2))=Switch!$D$55,INDIRECT(\"a\" & (VLOOKUP(Switch!$D$55,$F$2:$G$43,2,FALSE)+ROW()-2)),\"\")","v":{"$error":"#N/A"}},{"$f":"IF(INDIRECT(\"c\" & (VLOOKUP(Switch!$D$56,$F$2:$G$43,2,FALSE)+ROW()-2))=Switch!$D$56,INDIRECT(\"a\" & (VLOOKUP(Switch!$D$56,$F$2:$G$43,2,FALSE)+ROW()-2)),\"\")","v":{"$error":"#N/A"}},{"$f":"IF(INDIRECT(\"c\" & (VLOOKUP(Switch!$D$57,$F$2:$G$43,2,FALSE)+ROW()-2))=Switch!$D$57,INDIRECT(\"a\" & (VLOOKUP(Switch!$D$57,$F$2:$G$43,2,FALSE)+ROW()-2)),\"\")","v":{"$error":"#N/A"}},{"$f":"IF(INDIRECT(\"c\" & (VLOOKUP(Switch!$D$58,$F$2:$G$43,2,FALSE)+ROW()-2))=Switch!$D$58,INDIRECT(\"a\" & (VLOOKUP(Switch!$D$58,$F$2:$G$43,2,FALSE)+ROW()-2)),\"\")","v":{"$error":"#N/A"}},{"$f":"IF(INDIRECT(\"c\" & (VLOOKUP(Switch!$D$59,$F$2:$G$43,2,FALSE)+ROW()-2))=Switch!$D$59,INDIRECT(\"a\" & (VLOOKUP(Switch!$D$59,$F$2:$G$43,2,FALSE)+ROW()-2)),\"\")","v":{"$error":"#N/A"}},{"$f":"IF(INDIRECT(\"c\" & (VLOOKUP(Switch!$D$60,$F$2:$G$43,2,FALSE)+ROW()-2))=Switch!$D$60,INDIRECT(\"a\" & (VLOOKUP(Switch!$D$60,$F$2:$G$43,2,FALSE)+ROW()-2)),\"\")","v":{"$error":"#N/A"}},{"$f":"IF(INDIRECT(\"c\" & (VLOOKUP(Switch!$D$61,$F$2:$G$43,2,FALSE)+ROW()-2))=Switch!$D$61,INDIRECT(\"a\" & (VLOOKUP(Switch!$D$61,$F$2:$G$43,2,FALSE)+ROW()-2)),\"\")","v":{"$error":"#N/A"}},{"$f":"IF(INDIRECT(\"c\" & (VLOOKUP(Switch!$D$62,$F$2:$G$43,2,FALSE)+ROW()-2))=Switch!$D$62,INDIRECT(\"a\" & (VLOOKUP(Switch!$D$62,$F$2:$G$43,2,FALSE)+ROW()-2)),\"\")","v":{"$error":"#N/A"}},{"$f":"IF(INDIRECT(\"c\" & (VLOOKUP(Switch!$D$63,$F$2:$G$43,2,FALSE)+ROW()-2))=Switch!$D$63,INDIRECT(\"a\" & (VLOOKUP(Switch!$D$63,$F$2:$G$43,2,FALSE)+ROW()-2)),\"\")","v":{"$error":"#N/A"}},{"$f":"IF(INDIRECT(\"c\" & (VLOOKUP(Switch!$D$64,$F$2:$G$43,2,FALSE)+ROW()-2))=Switch!$D$64,INDIRECT(\"a\" & (VLOOKUP(Switch!$D$64,$F$2:$G$43,2,FALSE)+ROW()-2)),\"\")","v":{"$error":"#N/A"}},{"$f":"IF(INDIRECT(\"c\" & (VLOOKUP(Switch!$D$65,$F$2:$G$43,2,FALSE)+ROW()-2))=Switch!$D$65,INDIRECT(\"a\" & (VLOOKUP(Switch!$D$65,$F$2:$G$43,2,FALSE)+ROW()-2)),\"\")","v":{"$error":"#N/A"}},{"$f":"IF(INDIRECT(\"c\" & (VLOOKUP(Switch!$D$66,$F$2:$G$43,2,FALSE)+ROW()-2))=Switch!$D$66,INDIRECT(\"a\" & (VLOOKUP(Switch!$D$66,$F$2:$G$43,2,FALSE)+ROW()-2)),\"\")","v":{"$error":"#N/A"}}]
[null,null,null,{"$f":"ROW()","v":621},null,null,{"$f":"VLOOKUP(F621,$C$2:$D$637,2,FALSE)","v":{"$error":"#N/A"}},{"$f":"IF(INDIRECT(\"c\" & (VLOOKUP(Switch!$D$26,$F$2:$G$43,2,FALSE)+ROW()-2))=Switch!$D$26,INDIRECT(\"a\" & (VLOOKUP(Switch!$D$26,$F$2:$G$43,2,FALSE)+ROW()-2)),\"\")","v":{"$error":"#N/A"}},{"$f":"IF(INDIRECT(\"c\" & (VLOOKUP(Switch!$D$27,$F$2:$G$43,2,FALSE)+ROW()-2))=Switch!$D$27,INDIRECT(\"a\" & (VLOOKUP(Switch!$D$27,$F$2:$G$43,2,FALSE)+ROW()-2)),\"\")","v":{"$error":"#N/A"}},{"$f":"IF(INDIRECT(\"c\" & (VLOOKUP(Switch!$D$28,$F$2:$G$43,2,FALSE)+ROW()-2))=Switch!$D$28,INDIRECT(\"a\" & (VLOOKUP(Switch!$D$28,$F$2:$G$43,2,FALSE)+ROW()-2)),\"\")","v":{"$error":"#N/A"}},{"$f":"IF(INDIRECT(\"c\" & (VLOOKUP(Switch!$D$29,$F$2:$G$43,2,FALSE)+ROW()-2))=Switch!$D$29,INDIRECT(\"a\" & (VLOOKUP(Switch!$D$29,$F$2:$G$43,2,FALSE)+ROW()-2)),\"\")","v":{"$error":"#N/A"}},{"$f":"IF(INDIRECT(\"c\" & (VLOOKUP(Switch!$D$30,$F$2:$G$43,2,FALSE)+ROW()-2))=Switch!$D$30,INDIRECT(\"a\" & (VLOOKUP(Switch!$D$30,$F$2:$G$43,2,FALSE)+ROW()-2)),\"\")","v":{"$error":"#N/A"}},{"$f":"IF(INDIRECT(\"c\" & (VLOOKUP(Switch!$D$31,$F$2:$G$43,2,FALSE)+ROW()-2))=Switch!$D$31,INDIRECT(\"a\" & (VLOOKUP(Switch!$D$31,$F$2:$G$43,2,FALSE)+ROW()-2)),\"\")","v":{"$error":"#N/A"}},{"$f":"IF(INDIRECT(\"c\" & (VLOOKUP(Switch!$D$32,$F$2:$G$43,2,FALSE)+ROW()-2))=Switch!$D$32,INDIRECT(\"a\" & (VLOOKUP(Switch!$D$32,$F$2:$G$43,2,FALSE)+ROW()-2)),\"\")","v":{"$error":"#N/A"}},{"$f":"IF(INDIRECT(\"c\" & (VLOOKUP(Switch!$D$33,$F$2:$G$43,2,FALSE)+ROW()-2))=Switch!$D$33,INDIRECT(\"a\" & (VLOOKUP(Switch!$D$33,$F$2:$G$43,2,FALSE)+ROW()-2)),\"\")","v":{"$error":"#N/A"}},{"$f":"IF(INDIRECT(\"c\" & (VLOOKUP(Switch!$D$34,$F$2:$G$43,2,FALSE)+ROW()-2))=Switch!$D$34,INDIRECT(\"a\" & (VLOOKUP(Switch!$D$34,$F$2:$G$43,2,FALSE)+ROW()-2)),\"\")","v":{"$error":"#N/A"}},{"$f":"IF(INDIRECT(\"c\" & (VLOOKUP(Switch!$D$35,$F$2:$G$43,2,FALSE)+ROW()-2))=Switch!$D$35,INDIRECT(\"a\" & (VLOOKUP(Switch!$D$35,$F$2:$G$43,2,FALSE)+ROW()-2)),\"\")","v":{"$error":"#N/A"}},{"$f":"IF(INDIRECT(\"c\" & (VLOOKUP(Switch!$D$36,$F$2:$G$43,2,FALSE)+ROW()-2))=Switch!$D$36,INDIRECT(\"a\" & (VLOOKUP(Switch!$D$36,$F$2:$G$43,2,FALSE)+ROW()-2)),\"\")","v":{"$error":"#N/A"}},{"$f":"IF(INDIRECT(\"c\" & (VLOOKUP(Switch!$D$37,$F$2:$G$43,2,FALSE)+ROW()-2))=Switch!$D$37,INDIRECT(\"a\" & (VLOOKUP(Switch!$D$37,$F$2:$G$43,2,FALSE)+ROW()-2)),\"\")","v":{"$error":"#N/A"}},{"$f":"IF(INDIRECT(\"c\" & (VLOOKUP(Switch!$D$38,$F$2:$G$43,2,FALSE)+ROW()-2))=Switch!$D$38,INDIRECT(\"a\" & (VLOOKUP(Switch!$D$38,$F$2:$G$43,2,FALSE)+ROW()-2)),\"\")","v":{"$error":"#N/A"}},{"$f":"IF(INDIRECT(\"c\" & (VLOOKUP(Switch!$D$39,$F$2:$G$43,2,FALSE)+ROW()-2))=Switch!$D$39,INDIRECT(\"a\" & (VLOOKUP(Switch!$D$39,$F$2:$G$43,2,FALSE)+ROW()-2)),\"\")","v":{"$error":"#N/A"}},{"$f":"IF(INDIRECT(\"c\" & (VLOOKUP(Switch!$D$40,$F$2:$G$43,2,FALSE)+ROW()-2))=Switch!$D$40,INDIRECT(\"a\" & (VLOOKUP(Switch!$D$40,$F$2:$G$43,2,FALSE)+ROW()-2)),\"\")","v":{"$error":"#N/A"}},{"$f":"IF(INDIRECT(\"c\" & (VLOOKUP(Switch!$D$52,$F$2:$G$43,2,FALSE)+ROW()-2))=Switch!$D$52,INDIRECT(\"a\" & (VLOOKUP(Switch!$D$52,$F$2:$G$43,2,FALSE)+ROW()-2)),\"\")","v":{"$error":"#N/A"}},{"$f":"IF(INDIRECT(\"c\" & (VLOOKUP(Switch!$D$53,$F$2:$G$43,2,FALSE)+ROW()-2))=Switch!$D$53,INDIRECT(\"a\" & (VLOOKUP(Switch!$D$53,$F$2:$G$43,2,FALSE)+ROW()-2)),\"\")","v":{"$error":"#N/A"}},{"$f":"IF(INDIRECT(\"c\" & (VLOOKUP(Switch!$D$54,$F$2:$G$43,2,FALSE)+ROW()-2))=Switch!$D$54,INDIRECT(\"a\" & (VLOOKUP(Switch!$D$54,$F$2:$G$43,2,FALSE)+ROW()-2)),\"\")","v":{"$error":"#N/A"}},{"$f":"IF(INDIRECT(\"c\" & (VLOOKUP(Switch!$D$55,$F$2:$G$43,2,FALSE)+ROW()-2))=Switch!$D$55,INDIRECT(\"a\" & (VLOOKUP(Switch!$D$55,$F$2:$G$43,2,FALSE)+ROW()-2)),\"\")","v":{"$error":"#N/A"}},{"$f":"IF(INDIRECT(\"c\" & (VLOOKUP(Switch!$D$56,$F$2:$G$43,2,FALSE)+ROW()-2))=Switch!$D$56,INDIRECT(\"a\" & (VLOOKUP(Switch!$D$56,$F$2:$G$43,2,FALSE)+ROW()-2)),\"\")","v":{"$error":"#N/A"}},{"$f":"IF(INDIRECT(\"c\" & (VLOOKUP(Switch!$D$57,$F$2:$G$43,2,FALSE)+ROW()-2))=Switch!$D$57,INDIRECT(\"a\" & (VLOOKUP(Switch!$D$57,$F$2:$G$43,2,FALSE)+ROW()-2)),\"\")","v":{"$error":"#N/A"}},{"$f":"IF(INDIRECT(\"c\" & (VLOOKUP(Switch!$D$58,$F$2:$G$43,2,FALSE)+ROW()-2))=Switch!$D$58,INDIRECT(\"a\" & (VLOOKUP(Switch!$D$58,$F$2:$G$43,2,FALSE)+ROW()-2)),\"\")","v":{"$error":"#N/A"}},{"$f":"IF(INDIRECT(\"c\" & (VLOOKUP(Switch!$D$59,$F$2:$G$43,2,FALSE)+ROW()-2))=Switch!$D$59,INDIRECT(\"a\" & (VLOOKUP(Switch!$D$59,$F$2:$G$43,2,FALSE)+ROW()-2)),\"\")","v":{"$error":"#N/A"}},{"$f":"IF(INDIRECT(\"c\" & (VLOOKUP(Switch!$D$60,$F$2:$G$43,2,FALSE)+ROW()-2))=Switch!$D$60,INDIRECT(\"a\" & (VLOOKUP(Switch!$D$60,$F$2:$G$43,2,FALSE)+ROW()-2)),\"\")","v":{"$error":"#N/A"}},{"$f":"IF(INDIRECT(\"c\" & (VLOOKUP(Switch!$D$61,$F$2:$G$43,2,FALSE)+ROW()-2))=Switch!$D$61,INDIRECT(\"a\" & (VLOOKUP(Switch!$D$61,$F$2:$G$43,2,FALSE)+ROW()-2)),\"\")","v":{"$error":"#N/A"}},{"$f":"IF(INDIRECT(\"c\" & (VLOOKUP(Switch!$D$62,$F$2:$G$43,2,FALSE)+ROW()-2))=Switch!$D$62,INDIRECT(\"a\" & (VLOOKUP(Switch!$D$62,$F$2:$G$43,2,FALSE)+ROW()-2)),\"\")","v":{"$error":"#N/A"}},{"$f":"IF(INDIRECT(\"c\" & (VLOOKUP(Switch!$D$63,$F$2:$G$43,2,FALSE)+ROW()-2))=Switch!$D$63,INDIRECT(\"a\" & (VLOOKUP(Switch!$D$63,$F$2:$G$43,2,FALSE)+ROW()-2)),\"\")","v":{"$error":"#N/A"}},{"$f":"IF(INDIRECT(\"c\" & (VLOOKUP(Switch!$D$64,$F$2:$G$43,2,FALSE)+ROW()-2))=Switch!$D$64,INDIRECT(\"a\" & (VLOOKUP(Switch!$D$64,$F$2:$G$43,2,FALSE)+ROW()-2)),\"\")","v":{"$error":"#N/A"}},{"$f":"IF(INDIRECT(\"c\" & (VLOOKUP(Switch!$D$65,$F$2:$G$43,2,FALSE)+ROW()-2))=Switch!$D$65,INDIRECT(\"a\" & (VLOOKUP(Switch!$D$65,$F$2:$G$43,2,FALSE)+ROW()-2)),\"\")","v":{"$error":"#N/A"}},{"$f":"IF(INDIRECT(\"c\" & (VLOOKUP(Switch!$D$66,$F$2:$G$43,2,FALSE)+ROW()-2))=Switch!$D$66,INDIRECT(\"a\" & (VLOOKUP(Switch!$D$66,$F$2:$G$43,2,FALSE)+ROW()-2)),\"\")","v":{"$error":"#N/A"}}]
[null,null,null,{"$f":"ROW()","v":622},null,null,{"$f":"VLOOKUP(F622,$C$2:$D$637,2,FALSE)","v":{"$error":"#N/A"}},{"$f":"IF(INDIRECT(\"c\" & (VLOOKUP(Switch!$D$26,$F$2:$G$43,2,FALSE)+ROW()-2))=Switch!$D$26,INDIRECT(\"a\" & (VLOOKUP(Switch!$D$26,$F$2:$G$43,2,FALSE)+ROW()-2)),\"\")","v":{"$error":"#N/A"}},{"$f":"IF(INDIRECT(\"c\" & (VLOOKUP(Switch!$D$27,$F$2:$G$43,2,FALSE)+ROW()-2))=Switch!$D$27,INDIRECT(\"a\" & (VLOOKUP(Switch!$D$27,$F$2:$G$43,2,FALSE)+ROW()-2)),\"\")","v":{"$error":"#N/A"}},{"$f":"IF(INDIRECT(\"c\" & (VLOOKUP(Switch!$D$28,$F$2:$G$43,2,FALSE)+ROW()-2))=Switch!$D$28,INDIRECT(\"a\" & (VLOOKUP(Switch!$D$28,$F$2:$G$43,2,FALSE)+ROW()-2)),\"\")","v":{"$error":"#N/A"}},{"$f":"IF(INDIRECT(\"c\" & (VLOOKUP(Switch!$D$29,$F$2:$G$43,2,FALSE)+ROW()-2))=Switch!$D$29,INDIRECT(\"a\" & (VLOOKUP(Switch!$D$29,$F$2:$G$43,2,FALSE)+ROW()-2)),\"\")","v":{"$error":"#N/A"}},{"$f":"IF(INDIRECT(\"c\" & (VLOOKUP(Switch!$D$30,$F$2:$G$43,2,FALSE)+ROW()-2))=Switch!$D$30,INDIRECT(\"a\" & (VLOOKUP(Switch!$D$30,$F$2:$G$43,2,FALSE)+ROW()-2)),\"\")","v":{"$error":"#N/A"}},{"$f":"IF(INDIRECT(\"c\" & (VLOOKUP(Switch!$D$31,$F$2:$G$43,2,FALSE)+ROW()-2))=Switch!$D$31,INDIRECT(\"a\" & (VLOOKUP(Switch!$D$31,$F$2:$G$43,2,FALSE)+ROW()-2)),\"\")","v":{"$error":"#N/A"}},{"$f":"IF(INDIRECT(\"c\" & (VLOOKUP(Switch!$D$32,$F$2:$G$43,2,FALSE)+ROW()-2))=Switch!$D$32,INDIRECT(\"a\" & (VLOOKUP(Switch!$D$32,$F$2:$G$43,2,FALSE)+ROW()-2)),\"\")","v":{"$error":"#N/A"}},{"$f":"IF(INDIRECT(\"c\" & (VLOOKUP(Switch!$D$33,$F$2:$G$43,2,FALSE)+ROW()-2))=Switch!$D$33,INDIRECT(\"a\" & (VLOOKUP(Switch!$D$33,$F$2:$G$43,2,FALSE)+ROW()-2)),\"\")","v":{"$error":"#N/A"}},{"$f":"IF(INDIRECT(\"c\" & (VLOOKUP(Switch!$D$34,$F$2:$G$43,2,FALSE)+ROW()-2))=Switch!$D$34,INDIRECT(\"a\" & (VLOOKUP(Switch!$D$34,$F$2:$G$43,2,FALSE)+ROW()-2)),\"\")","v":{"$error":"#N/A"}},{"$f":"IF(INDIRECT(\"c\" & (VLOOKUP(Switch!$D$35,$F$2:$G$43,2,FALSE)+ROW()-2))=Switch!$D$35,INDIRECT(\"a\" & (VLOOKUP(Switch!$D$35,$F$2:$G$43,2,FALSE)+ROW()-2)),\"\")","v":{"$error":"#N/A"}},{"$f":"IF(INDIRECT(\"c\" & (VLOOKUP(Switch!$D$36,$F$2:$G$43,2,FALSE)+ROW()-2))=Switch!$D$36,INDIRECT(\"a\" & (VLOOKUP(Switch!$D$36,$F$2:$G$43,2,FALSE)+ROW()-2)),\"\")","v":{"$error":"#N/A"}},{"$f":"IF(INDIRECT(\"c\" & (VLOOKUP(Switch!$D$37,$F$2:$G$43,2,FALSE)+ROW()-2))=Switch!$D$37,INDIRECT(\"a\" & (VLOOKUP(Switch!$D$37,$F$2:$G$43,2,FALSE)+ROW()-2)),\"\")","v":{"$error":"#N/A"}},{"$f":"IF(INDIRECT(\"c\" & (VLOOKUP(Switch!$D$38,$F$2:$G$43,2,FALSE)+ROW()-2))=Switch!$D$38,INDIRECT(\"a\" & (VLOOKUP(Switch!$D$38,$F$2:$G$43,2,FALSE)+ROW()-2)),\"\")","v":{"$error":"#N/A"}},{"$f":"IF(INDIRECT(\"c\" & (VLOOKUP(Switch!$D$39,$F$2:$G$43,2,FALSE)+ROW()-2))=Switch!$D$39,INDIRECT(\"a\" & (VLOOKUP(Switch!$D$39,$F$2:$G$43,2,FALSE)+ROW()-2)),\"\")","v":{"$error":"#N/A"}},{"$f":"IF(INDIRECT(\"c\" & (VLOOKUP(Switch!$D$40,$F$2:$G$43,2,FALSE)+ROW()-2))=Switch!$D$40,INDIRECT(\"a\" & (VLOOKUP(Switch!$D$40,$F$2:$G$43,2,FALSE)+ROW()-2)),\"\")","v":{"$error":"#N/A"}},{"$f":"IF(INDIRECT(\"c\" & (VLOOKUP(Switch!$D$52,$F$2:$G$43,2,FALSE)+ROW()-2))=Switch!$D$52,INDIRECT(\"a\" & (VLOOKUP(Switch!$D$52,$F$2:$G$43,2,FALSE)+ROW()-2)),\"\")","v":{"$error":"#N/A"}},{"$f":"IF(INDIRECT(\"c\" & (VLOOKUP(Switch!$D$53,$F$2:$G$43,2,FALSE)+ROW()-2))=Switch!$D$53,INDIRECT(\"a\" & (VLOOKUP(Switch!$D$53,$F$2:$G$43,2,FALSE)+ROW()-2)),\"\")","v":{"$error":"#N/A"}},{"$f":"IF(INDIRECT(\"c\" & (VLOOKUP(Switch!$D$54,$F$2:$G$43,2,FALSE)+ROW()-2))=Switch!$D$54,INDIRECT(\"a\" & (VLOOKUP(Switch!$D$54,$F$2:$G$43,2,FALSE)+ROW()-2)),\"\")","v":{"$error":"#N/A"}},{"$f":"IF(INDIRECT(\"c\" & (VLOOKUP(Switch!$D$55,$F$2:$G$43,2,FALSE)+ROW()-2))=Switch!$D$55,INDIRECT(\"a\" & (VLOOKUP(Switch!$D$55,$F$2:$G$43,2,FALSE)+ROW()-2)),\"\")","v":{"$error":"#N/A"}},{"$f":"IF(INDIRECT(\"c\" & (VLOOKUP(Switch!$D$56,$F$2:$G$43,2,FALSE)+ROW()-2))=Switch!$D$56,INDIRECT(\"a\" & (VLOOKUP(Switch!$D$56,$F$2:$G$43,2,FALSE)+ROW()-2)),\"\")","v":{"$error":"#N/A"}},{"$f":"IF(INDIRECT(\"c\" & (VLOOKUP(Switch!$D$57,$F$2:$G$43,2,FALSE)+ROW()-2))=Switch!$D$57,INDIRECT(\"a\" & (VLOOKUP(Switch!$D$57,$F$2:$G$43,2,FALSE)+ROW()-2)),\"\")","v":{"$error":"#N/A"}},{"$f":"IF(INDIRECT(\"c\" & (VLOOKUP(Switch!$D$58,$F$2:$G$43,2,FALSE)+ROW()-2))=Switch!$D$58,INDIRECT(\"a\" & (VLOOKUP(Switch!$D$58,$F$2:$G$43,2,FALSE)+ROW()-2)),\"\")","v":{"$error":"#N/A"}},{"$f":"IF(INDIRECT(\"c\" & (VLOOKUP(Switch!$D$59,$F$2:$G$43,2,FALSE)+ROW()-2))=Switch!$D$59,INDIRECT(\"a\" & (VLOOKUP(Switch!$D$59,$F$2:$G$43,2,FALSE)+ROW()-2)),\"\")","v":{"$error":"#N/A"}},{"$f":"IF(INDIRECT(\"c\" & (VLOOKUP(Switch!$D$60,$F$2:$G$43,2,FALSE)+ROW()-2))=Switch!$D$60,INDIRECT(\"a\" & (VLOOKUP(Switch!$D$60,$F$2:$G$43,2,FALSE)+ROW()-2)),\"\")","v":{"$error":"#N/A"}},{"$f":"IF(INDIRECT(\"c\" & (VLOOKUP(Switch!$D$61,$F$2:$G$43,2,FALSE)+ROW()-2))=Switch!$D$61,INDIRECT(\"a\" & (VLOOKUP(Switch!$D$61,$F$2:$G$43,2,FALSE)+ROW()-2)),\"\")","v":{"$error":"#N/A"}},{"$f":"IF(INDIRECT(\"c\" & (VLOOKUP(Switch!$D$62,$F$2:$G$43,2,FALSE)+ROW()-2))=Switch!$D$62,INDIRECT(\"a\" & (VLOOKUP(Switch!$D$62,$F$2:$G$43,2,FALSE)+ROW()-2)),\"\")","v":{"$error":"#N/A"}},{"$f":"IF(INDIRECT(\"c\" & (VLOOKUP(Switch!$D$63,$F$2:$G$43,2,FALSE)+ROW()-2))=Switch!$D$63,INDIRECT(\"a\" & (VLOOKUP(Switch!$D$63,$F$2:$G$43,2,FALSE)+ROW()-2)),\"\")","v":{"$error":"#N/A"}},{"$f":"IF(INDIRECT(\"c\" & (VLOOKUP(Switch!$D$64,$F$2:$G$43,2,FALSE)+ROW()-2))=Switch!$D$64,INDIRECT(\"a\" & (VLOOKUP(Switch!$D$64,$F$2:$G$43,2,FALSE)+ROW()-2)),\"\")","v":{"$error":"#N/A"}},{"$f":"IF(INDIRECT(\"c\" & (VLOOKUP(Switch!$D$65,$F$2:$G$43,2,FALSE)+ROW()-2))=Switch!$D$65,INDIRECT(\"a\" & (VLOOKUP(Switch!$D$65,$F$2:$G$43,2,FALSE)+ROW()-2)),\"\")","v":{"$error":"#N/A"}},{"$f":"IF(INDIRECT(\"c\" & (VLOOKUP(Switch!$D$66,$F$2:$G$43,2,FALSE)+ROW()-2))=Switch!$D$66,INDIRECT(\"a\" & (VLOOKUP(Switch!$D$66,$F$2:$G$43,2,FALSE)+ROW()-2)),\"\")","v":{"$error":"#N/A"}}]
[null,null,null,{"$f":"ROW()","v":623},null,null,{"$f":"VLOOKUP(F623,$C$2:$D$637,2,FALSE)","v":{"$error":"#N/A"}},{"$f":"IF(INDIRECT(\"c\" & (VLOOKUP(Switch!$D$26,$F$2:$G$43,2,FALSE)+ROW()-2))=Switch!$D$26,INDIRECT(\"a\" & (VLOOKUP(Switch!$D$26,$F$2:$G$43,2,FALSE)+ROW()-2)),\"\")","v":{"$error":"#N/A"}},{"$f":"IF(INDIRECT(\"c\" & (VLOOKUP(Switch!$D$27,$F$2:$G$43,2,FALSE)+ROW()-2))=Switch!$D$27,INDIRECT(\"a\" & (VLOOKUP(Switch!$D$27,$F$2:$G$43,2,FALSE)+ROW()-2)),\"\")","v":{"$error":"#N/A"}},{"$f":"IF(INDIRECT(\"c\" & (VLOOKUP(Switch!$D$28,$F$2:$G$43,2,FALSE)+ROW()-2))=Switch!$D$28,INDIRECT(\"a\" & (VLOOKUP(Switch!$D$28,$F$2:$G$43,2,FALSE)+ROW()-2)),\"\")","v":{"$error":"#N/A"}},{"$f":"IF(INDIRECT(\"c\" & (VLOOKUP(Switch!$D$29,$F$2:$G$43,2,FALSE)+ROW()-2))=Switch!$D$29,INDIRECT(\"a\" & (VLOOKUP(Switch!$D$29,$F$2:$G$43,2,FALSE)+ROW()-2)),\"\")","v":{"$error":"#N/A"}},{"$f":"IF(INDIRECT(\"c\" & (VLOOKUP(Switch!$D$30,$F$2:$G$43,2,FALSE)+ROW()-2))=Switch!$D$30,INDIRECT(\"a\" & (VLOOKUP(Switch!$D$30,$F$2:$G$43,2,FALSE)+ROW()-2)),\"\")","v":{"$error":"#N/A"}},{"$f":"IF(INDIRECT(\"c\" & (VLOOKUP(Switch!$D$31,$F$2:$G$43,2,FALSE)+ROW()-2))=Switch!$D$31,INDIRECT(\"a\" & (VLOOKUP(Switch!$D$31,$F$2:$G$43,2,FALSE)+ROW()-2)),\"\")","v":{"$error":"#N/A"}},{"$f":"IF(INDIRECT(\"c\" & (VLOOKUP(Switch!$D$32,$F$2:$G$43,2,FALSE)+ROW()-2))=Switch!$D$32,INDIRECT(\"a\" & (VLOOKUP(Switch!$D$32,$F$2:$G$43,2,FALSE)+ROW()-2)),\"\")","v":{"$error":"#N/A"}},{"$f":"IF(INDIRECT(\"c\" & (VLOOKUP(Switch!$D$33,$F$2:$G$43,2,FALSE)+ROW()-2))=Switch!$D$33,INDIRECT(\"a\" & (VLOOKUP(Switch!$D$33,$F$2:$G$43,2,FALSE)+ROW()-2)),\"\")","v":{"$error":"#N/A"}},{"$f":"IF(INDIRECT(\"c\" & (VLOOKUP(Switch!$D$34,$F$2:$G$43,2,FALSE)+ROW()-2))=Switch!$D$34,INDIRECT(\"a\" & (VLOOKUP(Switch!$D$34,$F$2:$G$43,2,FALSE)+ROW()-2)),\"\")","v":{"$error":"#N/A"}},{"$f":"IF(INDIRECT(\"c\" & (VLOOKUP(Switch!$D$35,$F$2:$G$43,2,FALSE)+ROW()-2))=Switch!$D$35,INDIRECT(\"a\" & (VLOOKUP(Switch!$D$35,$F$2:$G$43,2,FALSE)+ROW()-2)),\"\")","v":{"$error":"#N/A"}},{"$f":"IF(INDIRECT(\"c\" & (VLOOKUP(Switch!$D$36,$F$2:$G$43,2,FALSE)+ROW()-2))=Switch!$D$36,INDIRECT(\"a\" & (VLOOKUP(Switch!$D$36,$F$2:$G$43,2,FALSE)+ROW()-2)),\"\")","v":{"$error":"#N/A"}},{"$f":"IF(INDIRECT(\"c\" & (VLOOKUP(Switch!$D$37,$F$2:$G$43,2,FALSE)+ROW()-2))=Switch!$D$37,INDIRECT(\"a\" & (VLOOKUP(Switch!$D$37,$F$2:$G$43,2,FALSE)+ROW()-2)),\"\")","v":{"$error":"#N/A"}},{"$f":"IF(INDIRECT(\"c\" & (VLOOKUP(Switch!$D$38,$F$2:$G$43,2,FALSE)+ROW()-2))=Switch!$D$38,INDIRECT(\"a\" & (VLOOKUP(Switch!$D$38,$F$2:$G$43,2,FALSE)+ROW()-2)),\"\")","v":{"$error":"#N/A"}},{"$f":"IF(INDIRECT(\"c\" & (VLOOKUP(Switch!$D$39,$F$2:$G$43,2,FALSE)+ROW()-2))=Switch!$D$39,INDIRECT(\"a\" & (VLOOKUP(Switch!$D$39,$F$2:$G$43,2,FALSE)+ROW()-2)),\"\")","v":{"$error":"#N/A"}},{"$f":"IF(INDIRECT(\"c\" & (VLOOKUP(Switch!$D$40,$F$2:$G$43,2,FALSE)+ROW()-2))=Switch!$D$40,INDIRECT(\"a\" & (VLOOKUP(Switch!$D$40,$F$2:$G$43,2,FALSE)+ROW()-2)),\"\")","v":{"$error":"#N/A"}},{"$f":"IF(INDIRECT(\"c\" & (VLOOKUP(Switch!$D$52,$F$2:$G$43,2,FALSE)+ROW()-2))=Switch!$D$52,INDIRECT(\"a\" & (VLOOKUP(Switch!$D$52,$F$2:$G$43,2,FALSE)+ROW()-2)),\"\")","v":{"$error":"#N/A"}},{"$f":"IF(INDIRECT(\"c\" & (VLOOKUP(Switch!$D$53,$F$2:$G$43,2,FALSE)+ROW()-2))=Switch!$D$53,INDIRECT(\"a\" & (VLOOKUP(Switch!$D$53,$F$2:$G$43,2,FALSE)+ROW()-2)),\"\")","v":{"$error":"#N/A"}},{"$f":"IF(INDIRECT(\"c\" & (VLOOKUP(Switch!$D$54,$F$2:$G$43,2,FALSE)+ROW()-2))=Switch!$D$54,INDIRECT(\"a\" & (VLOOKUP(Switch!$D$54,$F$2:$G$43,2,FALSE)+ROW()-2)),\"\")","v":{"$error":"#N/A"}},{"$f":"IF(INDIRECT(\"c\" & (VLOOKUP(Switch!$D$55,$F$2:$G$43,2,FALSE)+ROW()-2))=Switch!$D$55,INDIRECT(\"a\" & (VLOOKUP(Switch!$D$55,$F$2:$G$43,2,FALSE)+ROW()-2)),\"\")","v":{"$error":"#N/A"}},{"$f":"IF(INDIRECT(\"c\" & (VLOOKUP(Switch!$D$56,$F$2:$G$43,2,FALSE)+ROW()-2))=Switch!$D$56,INDIRECT(\"a\" & (VLOOKUP(Switch!$D$56,$F$2:$G$43,2,FALSE)+ROW()-2)),\"\")","v":{"$error":"#N/A"}},{"$f":"IF(INDIRECT(\"c\" & (VLOOKUP(Switch!$D$57,$F$2:$G$43,2,FALSE)+ROW()-2))=Switch!$D$57,INDIRECT(\"a\" & (VLOOKUP(Switch!$D$57,$F$2:$G$43,2,FALSE)+ROW()-2)),\"\")","v":{"$error":"#N/A"}},{"$f":"IF(INDIRECT(\"c\" & (VLOOKUP(Switch!$D$58,$F$2:$G$43,2,FALSE)+ROW()-2))=Switch!$D$58,INDIRECT(\"a\" & (VLOOKUP(Switch!$D$58,$F$2:$G$43,2,FALSE)+ROW()-2)),\"\")","v":{"$error":"#N/A"}},{"$f":"IF(INDIRECT(\"c\" & (VLOOKUP(Switch!$D$59,$F$2:$G$43,2,FALSE)+ROW()-2))=Switch!$D$59,INDIRECT(\"a\" & (VLOOKUP(Switch!$D$59,$F$2:$G$43,2,FALSE)+ROW()-2)),\"\")","v":{"$error":"#N/A"}},{"$f":"IF(INDIRECT(\"c\" & (VLOOKUP(Switch!$D$60,$F$2:$G$43,2,FALSE)+ROW()-2))=Switch!$D$60,INDIRECT(\"a\" & (VLOOKUP(Switch!$D$60,$F$2:$G$43,2,FALSE)+ROW()-2)),\"\")","v":{"$error":"#N/A"}},{"$f":"IF(INDIRECT(\"c\" & (VLOOKUP(Switch!$D$61,$F$2:$G$43,2,FALSE)+ROW()-2))=Switch!$D$61,INDIRECT(\"a\" & (VLOOKUP(Switch!$D$61,$F$2:$G$43,2,FALSE)+ROW()-2)),\"\")","v":{"$error":"#N/A"}},{"$f":"IF(INDIRECT(\"c\" & (VLOOKUP(Switch!$D$62,$F$2:$G$43,2,FALSE)+ROW()-2))=Switch!$D$62,INDIRECT(\"a\" & (VLOOKUP(Switch!$D$62,$F$2:$G$43,2,FALSE)+ROW()-2)),\"\")","v":{"$error":"#N/A"}},{"$f":"IF(INDIRECT(\"c\" & (VLOOKUP(Switch!$D$63,$F$2:$G$43,2,FALSE)+ROW()-2))=Switch!$D$63,INDIRECT(\"a\" & (VLOOKUP(Switch!$D$63,$F$2:$G$43,2,FALSE)+ROW()-2)),\"\")","v":{"$error":"#N/A"}},{"$f":"IF(INDIRECT(\"c\" & (VLOOKUP(Switch!$D$64,$F$2:$G$43,2,FALSE)+ROW()-2))=Switch!$D$64,INDIRECT(\"a\" & (VLOOKUP(Switch!$D$64,$F$2:$G$43,2,FALSE)+ROW()-2)),\"\")","v":{"$error":"#N/A"}},{"$f":"IF(INDIRECT(\"c\" & (VLOOKUP(Switch!$D$65,$F$2:$G$43,2,FALSE)+ROW()-2))=Switch!$D$65,INDIRECT(\"a\" & (VLOOKUP(Switch!$D$65,$F$2:$G$43,2,FALSE)+ROW()-2)),\"\")","v":{"$error":"#N/A"}},{"$f":"IF(INDIRECT(\"c\" & (VLOOKUP(Switch!$D$66,$F$2:$G$43,2,FALSE)+ROW()-2))=Switch!$D$66,INDIRECT(\"a\" & (VLOOKUP(Switch!$D$66,$F$2:$G$43,2,FALSE)+ROW()-2)),\"\")","v":{"$error":"#N/A"}}]
[null,null,null,{"$f":"ROW()","v":624},null,null,{"$f":"VLOOKUP(F624,$C$2:$D$637,2,FALSE)","v":{"$error":"#N/A"}},{"$f":"IF(INDIRECT(\"c\" & (VLOOKUP(Switch!$D$26,$F$2:$G$43,2,FALSE)+ROW()-2))=Switch!$D$26,INDIRECT(\"a\" & (VLOOKUP(Switch!$D$26,$F$2:$G$43,2,FALSE)+ROW()-2)),\"\")","v":{"$error":"#N/A"}},{"$f":"IF(INDIRECT(\"c\" & (VLOOKUP(Switch!$D$27,$F$2:$G$43,2,FALSE)+ROW()-2))=Switch!$D$27,INDIRECT(\"a\" & (VLOOKUP(Switch!$D$27,$F$2:$G$43,2,FALSE)+ROW()-2)),\"\")","v":{"$error":"#N/A"}},{"$f":"IF(INDIRECT(\"c\" & (VLOOKUP(Switch!$D$28,$F$2:$G$43,2,FALSE)+ROW()-2))=Switch!$D$28,INDIRECT(\"a\" & (VLOOKUP(Switch!$D$28,$F$2:$G$43,2,FALSE)+ROW()-2)),\"\")","v":{"$error":"#N/A"}},{"$f":"IF(INDIRECT(\"c\" & (VLOOKUP(Switch!$D$29,$F$2:$G$43,2,FALSE)+ROW()-2))=Switch!$D$29,INDIRECT(\"a\" & (VLOOKUP(Switch!$D$29,$F$2:$G$43,2,FALSE)+ROW()-2)),\"\")","v":{"$error":"#N/A"}},{"$f":"IF(INDIRECT(\"c\" & (VLOOKUP(Switch!$D$30,$F$2:$G$43,2,FALSE)+ROW()-2))=Switch!$D$30,INDIRECT(\"a\" & (VLOOKUP(Switch!$D$30,$F$2:$G$43,2,FALSE)+ROW()-2)),\"\")","v":{"$error":"#N/A"}},{"$f":"IF(INDIRECT(\"c\" & (VLOOKUP(Switch!$D$31,$F$2:$G$43,2,FALSE)+ROW()-2))=Switch!$D$31,INDIRECT(\"a\" & (VLOOKUP(Switch!$D$31,$F$2:$G$43,2,FALSE)+ROW()-2)),\"\")","v":{"$error":"#N/A"}},{"$f":"IF(INDIRECT(\"c\" & (VLOOKUP(Switch!$D$32,$F$2:$G$43,2,FALSE)+ROW()-2))=Switch!$D$32,INDIRECT(\"a\" & (VLOOKUP(Switch!$D$32,$F$2:$G$43,2,FALSE)+ROW()-2)),\"\")","v":{"$error":"#N/A"}},{"$f":"IF(INDIRECT(\"c\" & (VLOOKUP(Switch!$D$33,$F$2:$G$43,2,FALSE)+ROW()-2))=Switch!$D$33,INDIRECT(\"a\" & (VLOOKUP(Switch!$D$33,$F$2:$G$43,2,FALSE)+ROW()-2)),\"\")","v":{"$error":"#N/A"}},{"$f":"IF(INDIRECT(\"c\" & (VLOOKUP(Switch!$D$34,$F$2:$G$43,2,FALSE)+ROW()-2))=Switch!$D$34,INDIRECT(\"a\" & (VLOOKUP(Switch!$D$34,$F$2:$G$43,2,FALSE)+ROW()-2)),\"\")","v":{"$error":"#N/A"}},{"$f":"IF(INDIRECT(\"c\" & (VLOOKUP(Switch!$D$35,$F$2:$G$43,2,FALSE)+ROW()-2))=Switch!$D$35,INDIRECT(\"a\" & (VLOOKUP(Switch!$D$35,$F$2:$G$43,2,FALSE)+ROW()-2)),\"\")","v":{"$error":"#N/A"}},{"$f":"IF(INDIRECT(\"c\" & (VLOOKUP(Switch!$D$36,$F$2:$G$43,2,FALSE)+ROW()-2))=Switch!$D$36,INDIRECT(\"a\" & (VLOOKUP(Switch!$D$36,$F$2:$G$43,2,FALSE)+ROW()-2)),\"\")","v":{"$error":"#N/A"}},{"$f":"IF(INDIRECT(\"c\" & (VLOOKUP(Switch!$D$37,$F$2:$G$43,2,FALSE)+ROW()-2))=Switch!$D$37,INDIRECT(\"a\" & (VLOOKUP(Switch!$D$37,$F$2:$G$43,2,FALSE)+ROW()-2)),\"\")","v":{"$error":"#N/A"}},{"$f":"IF(INDIRECT(\"c\" & (VLOOKUP(Switch!$D$38,$F$2:$G$43,2,FALSE)+ROW()-2))=Switch!$D$38,INDIRECT(\"a\" & (VLOOKUP(Switch!$D$38,$F$2:$G$43,2,FALSE)+ROW()-2)),\"\")","v":{"$error":"#N/A"}},{"$f":"IF(INDIRECT(\"c\" & (VLOOKUP(Switch!$D$39,$F$2:$G$43,2,FALSE)+ROW()-2))=Switch!$D$39,INDIRECT(\"a\" & (VLOOKUP(Switch!$D$39,$F$2:$G$43,2,FALSE)+ROW()-2)),\"\")","v":{"$error":"#N/A"}},{"$f":"IF(INDIRECT(\"c\" & (VLOOKUP(Switch!$D$40,$F$2:$G$43,2,FALSE)+ROW()-2))=Switch!$D$40,INDIRECT(\"a\" & (VLOOKUP(Switch!$D$40,$F$2:$G$43,2,FALSE)+ROW()-2)),\"\")","v":{"$error":"#N/A"}},{"$f":"IF(INDIRECT(\"c\" & (VLOOKUP(Switch!$D$52,$F$2:$G$43,2,FALSE)+ROW()-2))=Switch!$D$52,INDIRECT(\"a\" & (VLOOKUP(Switch!$D$52,$F$2:$G$43,2,FALSE)+ROW()-2)),\"\")","v":{"$error":"#N/A"}},{"$f":"IF(INDIRECT(\"c\" & (VLOOKUP(Switch!$D$53,$F$2:$G$43,2,FALSE)+ROW()-2))=Switch!$D$53,INDIRECT(\"a\" & (VLOOKUP(Switch!$D$53,$F$2:$G$43,2,FALSE)+ROW()-2)),\"\")","v":{"$error":"#N/A"}},{"$f":"IF(INDIRECT(\"c\" & (VLOOKUP(Switch!$D$54,$F$2:$G$43,2,FALSE)+ROW()-2))=Switch!$D$54,INDIRECT(\"a\" & (VLOOKUP(Switch!$D$54,$F$2:$G$43,2,FALSE)+ROW()-2)),\"\")","v":{"$error":"#N/A"}},{"$f":"IF(INDIRECT(\"c\" & (VLOOKUP(Switch!$D$55,$F$2:$G$43,2,FALSE)+ROW()-2))=Switch!$D$55,INDIRECT(\"a\" & (VLOOKUP(Switch!$D$55,$F$2:$G$43,2,FALSE)+ROW()-2)),\"\")","v":{"$error":"#N/A"}},{"$f":"IF(INDIRECT(\"c\" & (VLOOKUP(Switch!$D$56,$F$2:$G$43,2,FALSE)+ROW()-2))=Switch!$D$56,INDIRECT(\"a\" & (VLOOKUP(Switch!$D$56,$F$2:$G$43,2,FALSE)+ROW()-2)),\"\")","v":{"$error":"#N/A"}},{"$f":"IF(INDIRECT(\"c\" & (VLOOKUP(Switch!$D$57,$F$2:$G$43,2,FALSE)+ROW()-2))=Switch!$D$57,INDIRECT(\"a\" & (VLOOKUP(Switch!$D$57,$F$2:$G$43,2,FALSE)+ROW()-2)),\"\")","v":{"$error":"#N/A"}},{"$f":"IF(INDIRECT(\"c\" & (VLOOKUP(Switch!$D$58,$F$2:$G$43,2,FALSE)+ROW()-2))=Switch!$D$58,INDIRECT(\"a\" & (VLOOKUP(Switch!$D$58,$F$2:$G$43,2,FALSE)+ROW()-2)),\"\")","v":{"$error":"#N/A"}},{"$f":"IF(INDIRECT(\"c\" & (VLOOKUP(Switch!$D$59,$F$2:$G$43,2,FALSE)+ROW()-2))=Switch!$D$59,INDIRECT(\"a\" & (VLOOKUP(Switch!$D$59,$F$2:$G$43,2,FALSE)+ROW()-2)),\"\")","v":{"$error":"#N/A"}},{"$f":"IF(INDIRECT(\"c\" & (VLOOKUP(Switch!$D$60,$F$2:$G$43,2,FALSE)+ROW()-2))=Switch!$D$60,INDIRECT(\"a\" & (VLOOKUP(Switch!$D$60,$F$2:$G$43,2,FALSE)+ROW()-2)),\"\")","v":{"$error":"#N/A"}},{"$f":"IF(INDIRECT(\"c\" & (VLOOKUP(Switch!$D$61,$F$2:$G$43,2,FALSE)+ROW()-2))=Switch!$D$61,INDIRECT(\"a\" & (VLOOKUP(Switch!$D$61,$F$2:$G$43,2,FALSE)+ROW()-2)),\"\")","v":{"$error":"#N/A"}},{"$f":"IF(INDIRECT(\"c\" & (VLOOKUP(Switch!$D$62,$F$2:$G$43,2,FALSE)+ROW()-2))=Switch!$D$62,INDIRECT(\"a\" & (VLOOKUP(Switch!$D$62,$F$2:$G$43,2,FALSE)+ROW()-2)),\"\")","v":{"$error":"#N/A"}},{"$f":"IF(INDIRECT(\"c\" & (VLOOKUP(Switch!$D$63,$F$2:$G$43,2,FALSE)+ROW()-2))=Switch!$D$63,INDIRECT(\"a\" & (VLOOKUP(Switch!$D$63,$F$2:$G$43,2,FALSE)+ROW()-2)),\"\")","v":{"$error":"#N/A"}},{"$f":"IF(INDIRECT(\"c\" & (VLOOKUP(Switch!$D$64,$F$2:$G$43,2,FALSE)+ROW()-2))=Switch!$D$64,INDIRECT(\"a\" & (VLOOKUP(Switch!$D$64,$F$2:$G$43,2,FALSE)+ROW()-2)),\"\")","v":{"$error":"#N/A"}},{"$f":"IF(INDIRECT(\"c\" & (VLOOKUP(Switch!$D$65,$F$2:$G$43,2,FALSE)+ROW()-2))=Switch!$D$65,INDIRECT(\"a\" & (VLOOKUP(Switch!$D$65,$F$2:$G$43,2,FALSE)+ROW()-2)),\"\")","v":{"$error":"#N/A"}},{"$f":"IF(INDIRECT(\"c\" & (VLOOKUP(Switch!$D$66,$F$2:$G$43,2,FALSE)+ROW()-2))=Switch!$D$66,INDIRECT(\"a\" & (VLOOKUP(Switch!$D$66,$F$2:$G$43,2,FALSE)+ROW()-2)),\"\")","v":{"$error":"#N/A"}}]
[null,null,null,{"$f":"ROW()","v":625},null,null,{"$f":"VLOOKUP(F625,$C$2:$D$637,2,FALSE)","v":{"$error":"#N/A"}},{"$f":"IF(INDIRECT(\"c\" & (VLOOKUP(Switch!$D$26,$F$2:$G$43,2,FALSE)+ROW()-2))=Switch!$D$26,INDIRECT(\"a\" & (VLOOKUP(Switch!$D$26,$F$2:$G$43,2,FALSE)+ROW()-2)),\"\")","v":{"$error":"#N/A"}},{"$f":"IF(INDIRECT(\"c\" & (VLOOKUP(Switch!$D$27,$F$2:$G$43,2,FALSE)+ROW()-2))=Switch!$D$27,INDIRECT(\"a\" & (VLOOKUP(Switch!$D$27,$F$2:$G$43,2,FALSE)+ROW()-2)),\"\")","v":{"$error":"#N/A"}},{"$f":"IF(INDIRECT(\"c\" & (VLOOKUP(Switch!$D$28,$F$2:$G$43,2,FALSE)+ROW()-2))=Switch!$D$28,INDIRECT(\"a\" & (VLOOKUP(Switch!$D$28,$F$2:$G$43,2,FALSE)+ROW()-2)),\"\")","v":{"$error":"#N/A"}},{"$f":"IF(INDIRECT(\"c\" & (VLOOKUP(Switch!$D$29,$F$2:$G$43,2,FALSE)+ROW()-2))=Switch!$D$29,INDIRECT(\"a\" & (VLOOKUP(Switch!$D$29,$F$2:$G$43,2,FALSE)+ROW()-2)),\"\")","v":{"$error":"#N/A"}},{"$f":"IF(INDIRECT(\"c\" & (VLOOKUP(Switch!$D$30,$F$2:$G$43,2,FALSE)+ROW()-2))=Switch!$D$30,INDIRECT(\"a\" & (VLOOKUP(Switch!$D$30,$F$2:$G$43,2,FALSE)+ROW()-2)),\"\")","v":{"$error":"#N/A"}},{"$f":"IF(INDIRECT(\"c\" & (VLOOKUP(Switch!$D$31,$F$2:$G$43,2,FALSE)+ROW()-2))=Switch!$D$31,INDIRECT(\"a\" & (VLOOKUP(Switch!$D$31,$F$2:$G$43,2,FALSE)+ROW()-2)),\"\")","v":{"$error":"#N/A"}},{"$f":"IF(INDIRECT(\"c\" & (VLOOKUP(Switch!$D$32,$F$2:$G$43,2,FALSE)+ROW()-2))=Switch!$D$32,INDIRECT(\"a\" & (VLOOKUP(Switch!$D$32,$F$2:$G$43,2,FALSE)+ROW()-2)),\"\")","v":{"$error":"#N/A"}},{"$f":"IF(INDIRECT(\"c\" & (VLOOKUP(Switch!$D$33,$F$2:$G$43,2,FALSE)+ROW()-2))=Switch!$D$33,INDIRECT(\"a\" & (VLOOKUP(Switch!$D$33,$F$2:$G$43,2,FALSE)+ROW()-2)),\"\")","v":{"$error":"#N/A"}},{"$f":"IF(INDIRECT(\"c\" & (VLOOKUP(Switch!$D$34,$F$2:$G$43,2,FALSE)+ROW()-2))=Switch!$D$34,INDIRECT(\"a\" & (VLOOKUP(Switch!$D$34,$F$2:$G$43,2,FALSE)+ROW()-2)),\"\")","v":{"$error":"#N/A"}},{"$f":"IF(INDIRECT(\"c\" & (VLOOKUP(Switch!$D$35,$F$2:$G$43,2,FALSE)+ROW()-2))=Switch!$D$35,INDIRECT(\"a\" & (VLOOKUP(Switch!$D$35,$F$2:$G$43,2,FALSE)+ROW()-2)),\"\")","v":{"$error":"#N/A"}},{"$f":"IF(INDIRECT(\"c\" & (VLOOKUP(Switch!$D$36,$F$2:$G$43,2,FALSE)+ROW()-2))=Switch!$D$36,INDIRECT(\"a\" & (VLOOKUP(Switch!$D$36,$F$2:$G$43,2,FALSE)+ROW()-2)),\"\")","v":{"$error":"#N/A"}},{"$f":"IF(INDIRECT(\"c\" & (VLOOKUP(Switch!$D$37,$F$2:$G$43,2,FALSE)+ROW()-2))=Switch!$D$37,INDIRECT(\"a\" & (VLOOKUP(Switch!$D$37,$F$2:$G$43,2,FALSE)+ROW()-2)),\"\")","v":{"$error":"#N/A"}},{"$f":"IF(INDIRECT(\"c\" & (VLOOKUP(Switch!$D$38,$F$2:$G$43,2,FALSE)+ROW()-2))=Switch!$D$38,INDIRECT(\"a\" & (VLOOKUP(Switch!$D$38,$F$2:$G$43,2,FALSE)+ROW()-2)),\"\")","v":{"$error":"#N/A"}},{"$f":"IF(INDIRECT(\"c\" & (VLOOKUP(Switch!$D$39,$F$2:$G$43,2,FALSE)+ROW()-2))=Switch!$D$39,INDIRECT(\"a\" & (VLOOKUP(Switch!$D$39,$F$2:$G$43,2,FALSE)+ROW()-2)),\"\")","v":{"$error":"#N/A"}},{"$f":"IF(INDIRECT(\"c\" & (VLOOKUP(Switch!$D$40,$F$2:$G$43,2,FALSE)+ROW()-2))=Switch!$D$40,INDIRECT(\"a\" & (VLOOKUP(Switch!$D$40,$F$2:$G$43,2,FALSE)+ROW()-2)),\"\")","v":{"$error":"#N/A"}},{"$f":"IF(INDIRECT(\"c\" & (VLOOKUP(Switch!$D$52,$F$2:$G$43,2,FALSE)+ROW()-2))=Switch!$D$52,INDIRECT(\"a\" & (VLOOKUP(Switch!$D$52,$F$2:$G$43,2,FALSE)+ROW()-2)),\"\")","v":{"$error":"#N/A"}},{"$f":"IF(INDIRECT(\"c\" & (VLOOKUP(Switch!$D$53,$F$2:$G$43,2,FALSE)+ROW()-2))=Switch!$D$53,INDIRECT(\"a\" & (VLOOKUP(Switch!$D$53,$F$2:$G$43,2,FALSE)+ROW()-2)),\"\")","v":{"$error":"#N/A"}},{"$f":"IF(INDIRECT(\"c\" & (VLOOKUP(Switch!$D$54,$F$2:$G$43,2,FALSE)+ROW()-2))=Switch!$D$54,INDIRECT(\"a\" & (VLOOKUP(Switch!$D$54,$F$2:$G$43,2,FALSE)+ROW()-2)),\"\")","v":{"$error":"#N/A"}},{"$f":"IF(INDIRECT(\"c\" & (VLOOKUP(Switch!$D$55,$F$2:$G$43,2,FALSE)+ROW()-2))=Switch!$D$55,INDIRECT(\"a\" & (VLOOKUP(Switch!$D$55,$F$2:$G$43,2,FALSE)+ROW()-2)),\"\")","v":{"$error":"#N/A"}},{"$f":"IF(INDIRECT(\"c\" & (VLOOKUP(Switch!$D$56,$F$2:$G$43,2,FALSE)+ROW()-2))=Switch!$D$56,INDIRECT(\"a\" & (VLOOKUP(Switch!$D$56,$F$2:$G$43,2,FALSE)+ROW()-2)),\"\")","v":{"$error":"#N/A"}},{"$f":"IF(INDIRECT(\"c\" & (VLOOKUP(Switch!$D$57,$F$2:$G$43,2,FALSE)+ROW()-2))=Switch!$D$57,INDIRECT(\"a\" & (VLOOKUP(Switch!$D$57,$F$2:$G$43,2,FALSE)+ROW()-2)),\"\")","v":{"$error":"#N/A"}},{"$f":"IF(INDIRECT(\"c\" & (VLOOKUP(Switch!$D$58,$F$2:$G$43,2,FALSE)+ROW()-2))=Switch!$D$58,INDIRECT(\"a\" & (VLOOKUP(Switch!$D$58,$F$2:$G$43,2,FALSE)+ROW()-2)),\"\")","v":{"$error":"#N/A"}},{"$f":"IF(INDIRECT(\"c\" & (VLOOKUP(Switch!$D$59,$F$2:$G$43,2,FALSE)+ROW()-2))=Switch!$D$59,INDIRECT(\"a\" & (VLOOKUP(Switch!$D$59,$F$2:$G$43,2,FALSE)+ROW()-2)),\"\")","v":{"$error":"#N/A"}},{"$f":"IF(INDIRECT(\"c\" & (VLOOKUP(Switch!$D$60,$F$2:$G$43,2,FALSE)+ROW()-2))=Switch!$D$60,INDIRECT(\"a\" & (VLOOKUP(Switch!$D$60,$F$2:$G$43,2,FALSE)+ROW()-2)),\"\")","v":{"$error":"#N/A"}},{"$f":"IF(INDIRECT(\"c\" & (VLOOKUP(Switch!$D$61,$F$2:$G$43,2,FALSE)+ROW()-2))=Switch!$D$61,INDIRECT(\"a\" & (VLOOKUP(Switch!$D$61,$F$2:$G$43,2,FALSE)+ROW()-2)),\"\")","v":{"$error":"#N/A"}},{"$f":"IF(INDIRECT(\"c\" & (VLOOKUP(Switch!$D$62,$F$2:$G$43,2,FALSE)+ROW()-2))=Switch!$D$62,INDIRECT(\"a\" & (VLOOKUP(Switch!$D$62,$F$2:$G$43,2,FALSE)+ROW()-2)),\"\")","v":{"$error":"#N/A"}},{"$f":"IF(INDIRECT(\"c\" & (VLOOKUP(Switch!$D$63,$F$2:$G$43,2,FALSE)+ROW()-2))=Switch!$D$63,INDIRECT(\"a\" & (VLOOKUP(Switch!$D$63,$F$2:$G$43,2,FALSE)+ROW()-2)),\"\")","v":{"$error":"#N/A"}},{"$f":"IF(INDIRECT(\"c\" & (VLOOKUP(Switch!$D$64,$F$2:$G$43,2,FALSE)+ROW()-2))=Switch!$D$64,INDIRECT(\"a\" & (VLOOKUP(Switch!$D$64,$F$2:$G$43,2,FALSE)+ROW()-2)),\"\")","v":{"$error":"#N/A"}},{"$f":"IF(INDIRECT(\"c\" & (VLOOKUP(Switch!$D$65,$F$2:$G$43,2,FALSE)+ROW()-2))=Switch!$D$65,INDIRECT(\"a\" & (VLOOKUP(Switch!$D$65,$F$2:$G$43,2,FALSE)+ROW()-2)),\"\")","v":{"$error":"#N/A"}},{"$f":"IF(INDIRECT(\"c\" & (VLOOKUP(Switch!$D$66,$F$2:$G$43,2,FALSE)+ROW()-2))=Switch!$D$66,INDIRECT(\"a\" & (VLOOKUP(Switch!$D$66,$F$2:$G$43,2,FALSE)+ROW()-2)),\"\")","v":{"$error":"#N/A"}}]
[null,null,null,{"$f":"ROW()","v":626},null,null,{"$f":"VLOOKUP(F626,$C$2:$D$637,2,FALSE)","v":{"$error":"#N/A"}},{"$f":"IF(INDIRECT(\"c\" & (VLOOKUP(Switch!$D$26,$F$2:$G$43,2,FALSE)+ROW()-2))=Switch!$D$26,INDIRECT(\"a\" & (VLOOKUP(Switch!$D$26,$F$2:$G$43,2,FALSE)+ROW()-2)),\"\")","v":{"$error":"#N/A"}},{"$f":"IF(INDIRECT(\"c\" & (VLOOKUP(Switch!$D$27,$F$2:$G$43,2,FALSE)+ROW()-2))=Switch!$D$27,INDIRECT(\"a\" & (VLOOKUP(Switch!$D$27,$F$2:$G$43,2,FALSE)+ROW()-2)),\"\")","v":{"$error":"#N/A"}},{"$f":"IF(INDIRECT(\"c\" & (VLOOKUP(Switch!$D$28,$F$2:$G$43,2,FALSE)+ROW()-2))=Switch!$D$28,INDIRECT(\"a\" & (VLOOKUP(Switch!$D$28,$F$2:$G$43,2,FALSE)+ROW()-2)),\"\")","v":{"$error":"#N/A"}},{"$f":"IF(INDIRECT(\"c\" & (VLOOKUP(Switch!$D$29,$F$2:$G$43,2,FALSE)+ROW()-2))=Switch!$D$29,INDIRECT(\"a\" & (VLOOKUP(Switch!$D$29,$F$2:$G$43,2,FALSE)+ROW()-2)),\"\")","v":{"$error":"#N/A"}},{"$f":"IF(INDIRECT(\"c\" & (VLOOKUP(Switch!$D$30,$F$2:$G$43,2,FALSE)+ROW()-2))=Switch!$D$30,INDIRECT(\"a\" & (VLOOKUP(Switch!$D$30,$F$2:$G$43,2,FALSE)+ROW()-2)),\"\")","v":{"$error":"#N/A"}},{"$f":"IF(INDIRECT(\"c\" & (VLOOKUP(Switch!$D$31,$F$2:$G$43,2,FALSE)+ROW()-2))=Switch!$D$31,INDIRECT(\"a\" & (VLOOKUP(Switch!$D$31,$F$2:$G$43,2,FALSE)+ROW()-2)),\"\")","v":{"$error":"#N/A"}},{"$f":"IF(INDIRECT(\"c\" & (VLOOKUP(Switch!$D$32,$F$2:$G$43,2,FALSE)+ROW()-2))=Switch!$D$32,INDIRECT(\"a\" & (VLOOKUP(Switch!$D$32,$F$2:$G$43,2,FALSE)+ROW()-2)),\"\")","v":{"$error":"#N/A"}},{"$f":"IF(INDIRECT(\"c\" & (VLOOKUP(Switch!$D$33,$F$2:$G$43,2,FALSE)+ROW()-2))=Switch!$D$33,INDIRECT(\"a\" & (VLOOKUP(Switch!$D$33,$F$2:$G$43,2,FALSE)+ROW()-2)),\"\")","v":{"$error":"#N/A"}},{"$f":"IF(INDIRECT(\"c\" & (VLOOKUP(Switch!$D$34,$F$2:$G$43,2,FALSE)+ROW()-2))=Switch!$D$34,INDIRECT(\"a\" & (VLOOKUP(Switch!$D$34,$F$2:$G$43,2,FALSE)+ROW()-2)),\"\")","v":{"$error":"#N/A"}},{"$f":"IF(INDIRECT(\"c\" & (VLOOKUP(Switch!$D$35,$F$2:$G$43,2,FALSE)+ROW()-2))=Switch!$D$35,INDIRECT(\"a\" & (VLOOKUP(Switch!$D$35,$F$2:$G$43,2,FALSE)+ROW()-2)),\"\")","v":{"$error":"#N/A"}},{"$f":"IF(INDIRECT(\"c\" & (VLOOKUP(Switch!$D$36,$F$2:$G$43,2,FALSE)+ROW()-2))=Switch!$D$36,INDIRECT(\"a\" & (VLOOKUP(Switch!$D$36,$F$2:$G$43,2,FALSE)+ROW()-2)),\"\")","v":{"$error":"#N/A"}},{"$f":"IF(INDIRECT(\"c\" & (VLOOKUP(Switch!$D$37,$F$2:$G$43,2,FALSE)+ROW()-2))=Switch!$D$37,INDIRECT(\"a\" & (VLOOKUP(Switch!$D$37,$F$2:$G$43,2,FALSE)+ROW()-2)),\"\")","v":{"$error":"#N/A"}},{"$f":"IF(INDIRECT(\"c\" & (VLOOKUP(Switch!$D$38,$F$2:$G$43,2,FALSE)+ROW()-2))=Switch!$D$38,INDIRECT(\"a\" & (VLOOKUP(Switch!$D$38,$F$2:$G$43,2,FALSE)+ROW()-2)),\"\")","v":{"$error":"#N/A"}},{"$f":"IF(INDIRECT(\"c\" & (VLOOKUP(Switch!$D$39,$F$2:$G$43,2,FALSE)+ROW()-2))=Switch!$D$39,INDIRECT(\"a\" & (VLOOKUP(Switch!$D$39,$F$2:$G$43,2,FALSE)+ROW()-2)),\"\")","v":{"$error":"#N/A"}},{"$f":"IF(INDIRECT(\"c\" & (VLOOKUP(Switch!$D$40,$F$2:$G$43,2,FALSE)+ROW()-2))=Switch!$D$40,INDIRECT(\"a\" & (VLOOKUP(Switch!$D$40,$F$2:$G$43,2,FALSE)+ROW()-2)),\"\")","v":{"$error":"#N/A"}},{"$f":"IF(INDIRECT(\"c\" & (VLOOKUP(Switch!$D$52,$F$2:$G$43,2,FALSE)+ROW()-2))=Switch!$D$52,INDIRECT(\"a\" & (VLOOKUP(Switch!$D$52,$F$2:$G$43,2,FALSE)+ROW()-2)),\"\")","v":{"$error":"#N/A"}},{"$f":"IF(INDIRECT(\"c\" & (VLOOKUP(Switch!$D$53,$F$2:$G$43,2,FALSE)+ROW()-2))=Switch!$D$53,INDIRECT(\"a\" & (VLOOKUP(Switch!$D$53,$F$2:$G$43,2,FALSE)+ROW()-2)),\"\")","v":{"$error":"#N/A"}},{"$f":"IF(INDIRECT(\"c\" & (VLOOKUP(Switch!$D$54,$F$2:$G$43,2,FALSE)+ROW()-2))=Switch!$D$54,INDIRECT(\"a\" & (VLOOKUP(Switch!$D$54,$F$2:$G$43,2,FALSE)+ROW()-2)),\"\")","v":{"$error":"#N/A"}},{"$f":"IF(INDIRECT(\"c\" & (VLOOKUP(Switch!$D$55,$F$2:$G$43,2,FALSE)+ROW()-2))=Switch!$D$55,INDIRECT(\"a\" & (VLOOKUP(Switch!$D$55,$F$2:$G$43,2,FALSE)+ROW()-2)),\"\")","v":{"$error":"#N/A"}},{"$f":"IF(INDIRECT(\"c\" & (VLOOKUP(Switch!$D$56,$F$2:$G$43,2,FALSE)+ROW()-2))=Switch!$D$56,INDIRECT(\"a\" & (VLOOKUP(Switch!$D$56,$F$2:$G$43,2,FALSE)+ROW()-2)),\"\")","v":{"$error":"#N/A"}},{"$f":"IF(INDIRECT(\"c\" & (VLOOKUP(Switch!$D$57,$F$2:$G$43,2,FALSE)+ROW()-2))=Switch!$D$57,INDIRECT(\"a\" & (VLOOKUP(Switch!$D$57,$F$2:$G$43,2,FALSE)+ROW()-2)),\"\")","v":{"$error":"#N/A"}},{"$f":"IF(INDIRECT(\"c\" & (VLOOKUP(Switch!$D$58,$F$2:$G$43,2,FALSE)+ROW()-2))=Switch!$D$58,INDIRECT(\"a\" & (VLOOKUP(Switch!$D$58,$F$2:$G$43,2,FALSE)+ROW()-2)),\"\")","v":{"$error":"#N/A"}},{"$f":"IF(INDIRECT(\"c\" & (VLOOKUP(Switch!$D$59,$F$2:$G$43,2,FALSE)+ROW()-2))=Switch!$D$59,INDIRECT(\"a\" & (VLOOKUP(Switch!$D$59,$F$2:$G$43,2,FALSE)+ROW()-2)),\"\")","v":{"$error":"#N/A"}},{"$f":"IF(INDIRECT(\"c\" & (VLOOKUP(Switch!$D$60,$F$2:$G$43,2,FALSE)+ROW()-2))=Switch!$D$60,INDIRECT(\"a\" & (VLOOKUP(Switch!$D$60,$F$2:$G$43,2,FALSE)+ROW()-2)),\"\")","v":{"$error":"#N/A"}},{"$f":"IF(INDIRECT(\"c\" & (VLOOKUP(Switch!$D$61,$F$2:$G$43,2,FALSE)+ROW()-2))=Switch!$D$61,INDIRECT(\"a\" & (VLOOKUP(Switch!$D$61,$F$2:$G$43,2,FALSE)+ROW()-2)),\"\")","v":{"$error":"#N/A"}},{"$f":"IF(INDIRECT(\"c\" & (VLOOKUP(Switch!$D$62,$F$2:$G$43,2,FALSE)+ROW()-2))=Switch!$D$62,INDIRECT(\"a\" & (VLOOKUP(Switch!$D$62,$F$2:$G$43,2,FALSE)+ROW()-2)),\"\")","v":{"$error":"#N/A"}},{"$f":"IF(INDIRECT(\"c\" & (VLOOKUP(Switch!$D$63,$F$2:$G$43,2,FALSE)+ROW()-2))=Switch!$D$63,INDIRECT(\"a\" & (VLOOKUP(Switch!$D$63,$F$2:$G$43,2,FALSE)+ROW()-2)),\"\")","v":{"$error":"#N/A"}},{"$f":"IF(INDIRECT(\"c\" & (VLOOKUP(Switch!$D$64,$F$2:$G$43,2,FALSE)+ROW()-2))=Switch!$D$64,INDIRECT(\"a\" & (VLOOKUP(Switch!$D$64,$F$2:$G$43,2,FALSE)+ROW()-2)),\"\")","v":{"$error":"#N/A"}},{"$f":"IF(INDIRECT(\"c\" & (VLOOKUP(Switch!$D$65,$F$2:$G$43,2,FALSE)+ROW()-2))=Switch!$D$65,INDIRECT(\"a\" & (VLOOKUP(Switch!$D$65,$F$2:$G$43,2,FALSE)+ROW()-2)),\"\")","v":{"$error":"#N/A"}},{"$f":"IF(INDIRECT(\"c\" & (VLOOKUP(Switch!$D$66,$F$2:$G$43,2,FALSE)+ROW()-2))=Switch!$D$66,INDIRECT(\"a\" & (VLOOKUP(Switch!$D$66,$F$2:$G$43,2,FALSE)+ROW()-2)),\"\")","v":{"$error":"#N/A"}}]
[null,null,null,{"$f":"ROW()","v":627},null,null,{"$f":"VLOOKUP(F627,$C$2:$D$637,2,FALSE)","v":{"$error":"#N/A"}},{"$f":"IF(INDIRECT(\"c\" & (VLOOKUP(Switch!$D$26,$F$2:$G$43,2,FALSE)+ROW()-2))=Switch!$D$26,INDIRECT(\"a\" & (VLOOKUP(Switch!$D$26,$F$2:$G$43,2,FALSE)+ROW()-2)),\"\")","v":{"$error":"#N/A"}},{"$f":"IF(INDIRECT(\"c\" & (VLOOKUP(Switch!$D$27,$F$2:$G$43,2,FALSE)+ROW()-2))=Switch!$D$27,INDIRECT(\"a\" & (VLOOKUP(Switch!$D$27,$F$2:$G$43,2,FALSE)+ROW()-2)),\"\")","v":{"$error":"#N/A"}},{"$f":"IF(INDIRECT(\"c\" & (VLOOKUP(Switch!$D$28,$F$2:$G$43,2,FALSE)+ROW()-2))=Switch!$D$28,INDIRECT(\"a\" & (VLOOKUP(Switch!$D$28,$F$2:$G$43,2,FALSE)+ROW()-2)),\"\")","v":{"$error":"#N/A"}},{"$f":"IF(INDIRECT(\"c\" & (VLOOKUP(Switch!$D$29,$F$2:$G$43,2,FALSE)+ROW()-2))=Switch!$D$29,INDIRECT(\"a\" & (VLOOKUP(Switch!$D$29,$F$2:$G$43,2,FALSE)+ROW()-2)),\"\")","v":{"$error":"#N/A"}},{"$f":"IF(INDIRECT(\"c\" & (VLOOKUP(Switch!$D$30,$F$2:$G$43,2,FALSE)+ROW()-2))=Switch!$D$30,INDIRECT(\"a\" & (VLOOKUP(Switch!$D$30,$F$2:$G$43,2,FALSE)+ROW()-2)),\"\")","v":{"$error":"#N/A"}},{"$f":"IF(INDIRECT(\"c\" & (VLOOKUP(Switch!$D$31,$F$2:$G$43,2,FALSE)+ROW()-2))=Switch!$D$31,INDIRECT(\"a\" & (VLOOKUP(Switch!$D$31,$F$2:$G$43,2,FALSE)+ROW()-2)),\"\")","v":{"$error":"#N/A"}},{"$f":"IF(INDIRECT(\"c\" & (VLOOKUP(Switch!$D$32,$F$2:$G$43,2,FALSE)+ROW()-2))=Switch!$D$32,INDIRECT(\"a\" & (VLOOKUP(Switch!$D$32,$F$2:$G$43,2,FALSE)+ROW()-2)),\"\")","v":{"$error":"#N/A"}},{"$f":"IF(INDIRECT(\"c\" & (VLOOKUP(Switch!$D$33,$F$2:$G$43,2,FALSE)+ROW()-2))=Switch!$D$33,INDIRECT(\"a\" & (VLOOKUP(Switch!$D$33,$F$2:$G$43,2,FALSE)+ROW()-2)),\"\")","v":{"$error":"#N/A"}},{"$f":"IF(INDIRECT(\"c\" & (VLOOKUP(Switch!$D$34,$F$2:$G$43,2,FALSE)+ROW()-2))=Switch!$D$34,INDIRECT(\"a\" & (VLOOKUP(Switch!$D$34,$F$2:$G$43,2,FALSE)+ROW()-2)),\"\")","v":{"$error":"#N/A"}},{"$f":"IF(INDIRECT(\"c\" & (VLOOKUP(Switch!$D$35,$F$2:$G$43,2,FALSE)+ROW()-2))=Switch!$D$35,INDIRECT(\"a\" & (VLOOKUP(Switch!$D$35,$F$2:$G$43,2,FALSE)+ROW()-2)),\"\")","v":{"$error":"#N/A"}},{"$f":"IF(INDIRECT(\"c\" & (VLOOKUP(Switch!$D$36,$F$2:$G$43,2,FALSE)+ROW()-2))=Switch!$D$36,INDIRECT(\"a\" & (VLOOKUP(Switch!$D$36,$F$2:$G$43,2,FALSE)+ROW()-2)),\"\")","v":{"$error":"#N/A"}},{"$f":"IF(INDIRECT(\"c\" & (VLOOKUP(Switch!$D$37,$F$2:$G$43,2,FALSE)+ROW()-2))=Switch!$D$37,INDIRECT(\"a\" & (VLOOKUP(Switch!$D$37,$F$2:$G$43,2,FALSE)+ROW()-2)),\"\")","v":{"$error":"#N/A"}},{"$f":"IF(INDIRECT(\"c\" & (VLOOKUP(Switch!$D$38,$F$2:$G$43,2,FALSE)+ROW()-2))=Switch!$D$38,INDIRECT(\"a\" & (VLOOKUP(Switch!$D$38,$F$2:$G$43,2,FALSE)+ROW()-2)),\"\")","v":{"$error":"#N/A"}},{"$f":"IF(INDIRECT(\"c\" & (VLOOKUP(Switch!$D$39,$F$2:$G$43,2,FALSE)+ROW()-2))=Switch!$D$39,INDIRECT(\"a\" & (VLOOKUP(Switch!$D$39,$F$2:$G$43,2,FALSE)+ROW()-2)),\"\")","v":{"$error":"#N/A"}},{"$f":"IF(INDIRECT(\"c\" & (VLOOKUP(Switch!$D$40,$F$2:$G$43,2,FALSE)+ROW()-2))=Switch!$D$40,INDIRECT(\"a\" & (VLOOKUP(Switch!$D$40,$F$2:$G$43,2,FALSE)+ROW()-2)),\"\")","v":{"$error":"#N/A"}},{"$f":"IF(INDIRECT(\"c\" & (VLOOKUP(Switch!$D$52,$F$2:$G$43,2,FALSE)+ROW()-2))=Switch!$D$52,INDIRECT(\"a\" & (VLOOKUP(Switch!$D$52,$F$2:$G$43,2,FALSE)+ROW()-2)),\"\")","v":{"$error":"#N/A"}},{"$f":"IF(INDIRECT(\"c\" & (VLOOKUP(Switch!$D$53,$F$2:$G$43,2,FALSE)+ROW()-2))=Switch!$D$53,INDIRECT(\"a\" & (VLOOKUP(Switch!$D$53,$F$2:$G$43,2,FALSE)+ROW()-2)),\"\")","v":{"$error":"#N/A"}},{"$f":"IF(INDIRECT(\"c\" & (VLOOKUP(Switch!$D$54,$F$2:$G$43,2,FALSE)+ROW()-2))=Switch!$D$54,INDIRECT(\"a\" & (VLOOKUP(Switch!$D$54,$F$2:$G$43,2,FALSE)+ROW()-2)),\"\")","v":{"$error":"#N/A"}},{"$f":"IF(INDIRECT(\"c\" & (VLOOKUP(Switch!$D$55,$F$2:$G$43,2,FALSE)+ROW()-2))=Switch!$D$55,INDIRECT(\"a\" & (VLOOKUP(Switch!$D$55,$F$2:$G$43,2,FALSE)+ROW()-2)),\"\")","v":{"$error":"#N/A"}},{"$f":"IF(INDIRECT(\"c\" & (VLOOKUP(Switch!$D$56,$F$2:$G$43,2,FALSE)+ROW()-2))=Switch!$D$56,INDIRECT(\"a\" & (VLOOKUP(Switch!$D$56,$F$2:$G$43,2,FALSE)+ROW()-2)),\"\")","v":{"$error":"#N/A"}},{"$f":"IF(INDIRECT(\"c\" & (VLOOKUP(Switch!$D$57,$F$2:$G$43,2,FALSE)+ROW()-2))=Switch!$D$57,INDIRECT(\"a\" & (VLOOKUP(Switch!$D$57,$F$2:$G$43,2,FALSE)+ROW()-2)),\"\")","v":{"$error":"#N/A"}},{"$f":"IF(INDIRECT(\"c\" & (VLOOKUP(Switch!$D$58,$F$2:$G$43,2,FALSE)+ROW()-2))=Switch!$D$58,INDIRECT(\"a\" & (VLOOKUP(Switch!$D$58,$F$2:$G$43,2,FALSE)+ROW()-2)),\"\")","v":{"$error":"#N/A"}},{"$f":"IF(INDIRECT(\"c\" & (VLOOKUP(Switch!$D$59,$F$2:$G$43,2,FALSE)+ROW()-2))=Switch!$D$59,INDIRECT(\"a\" & (VLOOKUP(Switch!$D$59,$F$2:$G$43,2,FALSE)+ROW()-2)),\"\")","v":{"$error":"#N/A"}},{"$f":"IF(INDIRECT(\"c\" & (VLOOKUP(Switch!$D$60,$F$2:$G$43,2,FALSE)+ROW()-2))=Switch!$D$60,INDIRECT(\"a\" & (VLOOKUP(Switch!$D$60,$F$2:$G$43,2,FALSE)+ROW()-2)),\"\")","v":{"$error":"#N/A"}},{"$f":"IF(INDIRECT(\"c\" & (VLOOKUP(Switch!$D$61,$F$2:$G$43,2,FALSE)+ROW()-2))=Switch!$D$61,INDIRECT(\"a\" & (VLOOKUP(Switch!$D$61,$F$2:$G$43,2,FALSE)+ROW()-2)),\"\")","v":{"$error":"#N/A"}},{"$f":"IF(INDIRECT(\"c\" & (VLOOKUP(Switch!$D$62,$F$2:$G$43,2,FALSE)+ROW()-2))=Switch!$D$62,INDIRECT(\"a\" & (VLOOKUP(Switch!$D$62,$F$2:$G$43,2,FALSE)+ROW()-2)),\"\")","v":{"$error":"#N/A"}},{"$f":"IF(INDIRECT(\"c\" & (VLOOKUP(Switch!$D$63,$F$2:$G$43,2,FALSE)+ROW()-2))=Switch!$D$63,INDIRECT(\"a\" & (VLOOKUP(Switch!$D$63,$F$2:$G$43,2,FALSE)+ROW()-2)),\"\")","v":{"$error":"#N/A"}},{"$f":"IF(INDIRECT(\"c\" & (VLOOKUP(Switch!$D$64,$F$2:$G$43,2,FALSE)+ROW()-2))=Switch!$D$64,INDIRECT(\"a\" & (VLOOKUP(Switch!$D$64,$F$2:$G$43,2,FALSE)+ROW()-2)),\"\")","v":{"$error":"#N/A"}},{"$f":"IF(INDIRECT(\"c\" & (VLOOKUP(Switch!$D$65,$F$2:$G$43,2,FALSE)+ROW()-2))=Switch!$D$65,INDIRECT(\"a\" & (VLOOKUP(Switch!$D$65,$F$2:$G$43,2,FALSE)+ROW()-2)),\"\")","v":{"$error":"#N/A"}},{"$f":"IF(INDIRECT(\"c\" & (VLOOKUP(Switch!$D$66,$F$2:$G$43,2,FALSE)+ROW()-2))=Switch!$D$66,INDIRECT(\"a\" & (VLOOKUP(Switch!$D$66,$F$2:$G$43,2,FALSE)+ROW()-2)),\"\")","v":{"$error":"#N/A"}}]
[null,null,null,{"$f":"ROW()","v":628},null,null,{"$f":"VLOOKUP(F628,$C$2:$D$637,2,FALSE)","v":{"$error":"#N/A"}},{"$f":"IF(INDIRECT(\"c\" & (VLOOKUP(Switch!$D$26,$F$2:$G$43,2,FALSE)+ROW()-2))=Switch!$D$26,INDIRECT(\"a\" & (VLOOKUP(Switch!$D$26,$F$2:$G$43,2,FALSE)+ROW()-2)),\"\")","v":{"$error":"#N/A"}},{"$f":"IF(INDIRECT(\"c\" & (VLOOKUP(Switch!$D$27,$F$2:$G$43,2,FALSE)+ROW()-2))=Switch!$D$27,INDIRECT(\"a\" & (VLOOKUP(Switch!$D$27,$F$2:$G$43,2,FALSE)+ROW()-2)),\"\")","v":{"$error":"#N/A"}},{"$f":"IF(INDIRECT(\"c\" & (VLOOKUP(Switch!$D$28,$F$2:$G$43,2,FALSE)+ROW()-2))=Switch!$D$28,INDIRECT(\"a\" & (VLOOKUP(Switch!$D$28,$F$2:$G$43,2,FALSE)+ROW()-2)),\"\")","v":{"$error":"#N/A"}},{"$f":"IF(INDIRECT(\"c\" & (VLOOKUP(Switch!$D$29,$F$2:$G$43,2,FALSE)+ROW()-2))=Switch!$D$29,INDIRECT(\"a\" & (VLOOKUP(Switch!$D$29,$F$2:$G$43,2,FALSE)+ROW()-2)),\"\")","v":{"$error":"#N/A"}},{"$f":"IF(INDIRECT(\"c\" & (VLOOKUP(Switch!$D$30,$F$2:$G$43,2,FALSE)+ROW()-2))=Switch!$D$30,INDIRECT(\"a\" & (VLOOKUP(Switch!$D$30,$F$2:$G$43,2,FALSE)+ROW()-2)),\"\")","v":{"$error":"#N/A"}},{"$f":"IF(INDIRECT(\"c\" & (VLOOKUP(Switch!$D$31,$F$2:$G$43,2,FALSE)+ROW()-2))=Switch!$D$31,INDIRECT(\"a\" & (VLOOKUP(Switch!$D$31,$F$2:$G$43,2,FALSE)+ROW()-2)),\"\")","v":{"$error":"#N/A"}},{"$f":"IF(INDIRECT(\"c\" & (VLOOKUP(Switch!$D$32,$F$2:$G$43,2,FALSE)+ROW()-2))=Switch!$D$32,INDIRECT(\"a\" & (VLOOKUP(Switch!$D$32,$F$2:$G$43,2,FALSE)+ROW()-2)),\"\")","v":{"$error":"#N/A"}},{"$f":"IF(INDIRECT(\"c\" & (VLOOKUP(Switch!$D$33,$F$2:$G$43,2,FALSE)+ROW()-2))=Switch!$D$33,INDIRECT(\"a\" & (VLOOKUP(Switch!$D$33,$F$2:$G$43,2,FALSE)+ROW()-2)),\"\")","v":{"$error":"#N/A"}},{"$f":"IF(INDIRECT(\"c\" & (VLOOKUP(Switch!$D$34,$F$2:$G$43,2,FALSE)+ROW()-2))=Switch!$D$34,INDIRECT(\"a\" & (VLOOKUP(Switch!$D$34,$F$2:$G$43,2,FALSE)+ROW()-2)),\"\")","v":{"$error":"#N/A"}},{"$f":"IF(INDIRECT(\"c\" & (VLOOKUP(Switch!$D$35,$F$2:$G$43,2,FALSE)+ROW()-2))=Switch!$D$35,INDIRECT(\"a\" & (VLOOKUP(Switch!$D$35,$F$2:$G$43,2,FALSE)+ROW()-2)),\"\")","v":{"$error":"#N/A"}},{"$f":"IF(INDIRECT(\"c\" & (VLOOKUP(Switch!$D$36,$F$2:$G$43,2,FALSE)+ROW()-2))=Switch!$D$36,INDIRECT(\"a\" & (VLOOKUP(Switch!$D$36,$F$2:$G$43,2,FALSE)+ROW()-2)),\"\")","v":{"$error":"#N/A"}},{"$f":"IF(INDIRECT(\"c\" & (VLOOKUP(Switch!$D$37,$F$2:$G$43,2,FALSE)+ROW()-2))=Switch!$D$37,INDIRECT(\"a\" & (VLOOKUP(Switch!$D$37,$F$2:$G$43,2,FALSE)+ROW()-2)),\"\")","v":{"$error":"#N/A"}},{"$f":"IF(INDIRECT(\"c\" & (VLOOKUP(Switch!$D$38,$F$2:$G$43,2,FALSE)+ROW()-2))=Switch!$D$38,INDIRECT(\"a\" & (VLOOKUP(Switch!$D$38,$F$2:$G$43,2,FALSE)+ROW()-2)),\"\")","v":{"$error":"#N/A"}},{"$f":"IF(INDIRECT(\"c\" & (VLOOKUP(Switch!$D$39,$F$2:$G$43,2,FALSE)+ROW()-2))=Switch!$D$39,INDIRECT(\"a\" & (VLOOKUP(Switch!$D$39,$F$2:$G$43,2,FALSE)+ROW()-2)),\"\")","v":{"$error":"#N/A"}},{"$f":"IF(INDIRECT(\"c\" & (VLOOKUP(Switch!$D$40,$F$2:$G$43,2,FALSE)+ROW()-2))=Switch!$D$40,INDIRECT(\"a\" & (VLOOKUP(Switch!$D$40,$F$2:$G$43,2,FALSE)+ROW()-2)),\"\")","v":{"$error":"#N/A"}},{"$f":"IF(INDIRECT(\"c\" & (VLOOKUP(Switch!$D$52,$F$2:$G$43,2,FALSE)+ROW()-2))=Switch!$D$52,INDIRECT(\"a\" & (VLOOKUP(Switch!$D$52,$F$2:$G$43,2,FALSE)+ROW()-2)),\"\")","v":{"$error":"#N/A"}},{"$f":"IF(INDIRECT(\"c\" & (VLOOKUP(Switch!$D$53,$F$2:$G$43,2,FALSE)+ROW()-2))=Switch!$D$53,INDIRECT(\"a\" & (VLOOKUP(Switch!$D$53,$F$2:$G$43,2,FALSE)+ROW()-2)),\"\")","v":{"$error":"#N/A"}},{"$f":"IF(INDIRECT(\"c\" & (VLOOKUP(Switch!$D$54,$F$2:$G$43,2,FALSE)+ROW()-2))=Switch!$D$54,INDIRECT(\"a\" & (VLOOKUP(Switch!$D$54,$F$2:$G$43,2,FALSE)+ROW()-2)),\"\")","v":{"$error":"#N/A"}},{"$f":"IF(INDIRECT(\"c\" & (VLOOKUP(Switch!$D$55,$F$2:$G$43,2,FALSE)+ROW()-2))=Switch!$D$55,INDIRECT(\"a\" & (VLOOKUP(Switch!$D$55,$F$2:$G$43,2,FALSE)+ROW()-2)),\"\")","v":{"$error":"#N/A"}},{"$f":"IF(INDIRECT(\"c\" & (VLOOKUP(Switch!$D$56,$F$2:$G$43,2,FALSE)+ROW()-2))=Switch!$D$56,INDIRECT(\"a\" & (VLOOKUP(Switch!$D$56,$F$2:$G$43,2,FALSE)+ROW()-2)),\"\")","v":{"$error":"#N/A"}},{"$f":"IF(INDIRECT(\"c\" & (VLOOKUP(Switch!$D$57,$F$2:$G$43,2,FALSE)+ROW()-2))=Switch!$D$57,INDIRECT(\"a\" & (VLOOKUP(Switch!$D$57,$F$2:$G$43,2,FALSE)+ROW()-2)),\"\")","v":{"$error":"#N/A"}},{"$f":"IF(INDIRECT(\"c\" & (VLOOKUP(Switch!$D$58,$F$2:$G$43,2,FALSE)+ROW()-2))=Switch!$D$58,INDIRECT(\"a\" & (VLOOKUP(Switch!$D$58,$F$2:$G$43,2,FALSE)+ROW()-2)),\"\")","v":{"$error":"#N/A"}},{"$f":"IF(INDIRECT(\"c\" & (VLOOKUP(Switch!$D$59,$F$2:$G$43,2,FALSE)+ROW()-2))=Switch!$D$59,INDIRECT(\"a\" & (VLOOKUP(Switch!$D$59,$F$2:$G$43,2,FALSE)+ROW()-2)),\"\")","v":{"$error":"#N/A"}},{"$f":"IF(INDIRECT(\"c\" & (VLOOKUP(Switch!$D$60,$F$2:$G$43,2,FALSE)+ROW()-2))=Switch!$D$60,INDIRECT(\"a\" & (VLOOKUP(Switch!$D$60,$F$2:$G$43,2,FALSE)+ROW()-2)),\"\")","v":{"$error":"#N/A"}},{"$f":"IF(INDIRECT(\"c\" & (VLOOKUP(Switch!$D$61,$F$2:$G$43,2,FALSE)+ROW()-2))=Switch!$D$61,INDIRECT(\"a\" & (VLOOKUP(Switch!$D$61,$F$2:$G$43,2,FALSE)+ROW()-2)),\"\")","v":{"$error":"#N/A"}},{"$f":"IF(INDIRECT(\"c\" & (VLOOKUP(Switch!$D$62,$F$2:$G$43,2,FALSE)+ROW()-2))=Switch!$D$62,INDIRECT(\"a\" & (VLOOKUP(Switch!$D$62,$F$2:$G$43,2,FALSE)+ROW()-2)),\"\")","v":{"$error":"#N/A"}},{"$f":"IF(INDIRECT(\"c\" & (VLOOKUP(Switch!$D$63,$F$2:$G$43,2,FALSE)+ROW()-2))=Switch!$D$63,INDIRECT(\"a\" & (VLOOKUP(Switch!$D$63,$F$2:$G$43,2,FALSE)+ROW()-2)),\"\")","v":{"$error":"#N/A"}},{"$f":"IF(INDIRECT(\"c\" & (VLOOKUP(Switch!$D$64,$F$2:$G$43,2,FALSE)+ROW()-2))=Switch!$D$64,INDIRECT(\"a\" & (VLOOKUP(Switch!$D$64,$F$2:$G$43,2,FALSE)+ROW()-2)),\"\")","v":{"$error":"#N/A"}},{"$f":"IF(INDIRECT(\"c\" & (VLOOKUP(Switch!$D$65,$F$2:$G$43,2,FALSE)+ROW()-2))=Switch!$D$65,INDIRECT(\"a\" & (VLOOKUP(Switch!$D$65,$F$2:$G$43,2,FALSE)+ROW()-2)),\"\")","v":{"$error":"#N/A"}},{"$f":"IF(INDIRECT(\"c\" & (VLOOKUP(Switch!$D$66,$F$2:$G$43,2,FALSE)+ROW()-2))=Switch!$D$66,INDIRECT(\"a\" & (VLOOKUP(Switch!$D$66,$F$2:$G$43,2,FALSE)+ROW()-2)),\"\")","v":{"$error":"#N/A"}}]
[null,null,null,{"$f":"ROW()","v":629},null,null,{"$f":"VLOOKUP(F629,$C$2:$D$637,2,FALSE)","v":{"$error":"#N/A"}},{"$f":"IF(INDIRECT(\"c\" & (VLOOKUP(Switch!$D$26,$F$2:$G$43,2,FALSE)+ROW()-2))=Switch!$D$26,INDIRECT(\"a\" & (VLOOKUP(Switch!$D$26,$F$2:$G$43,2,FALSE)+ROW()-2)),\"\")","v":{"$error":"#N/A"}},{"$f":"IF(INDIRECT(\"c\" & (VLOOKUP(Switch!$D$27,$F$2:$G$43,2,FALSE)+ROW()-2))=Switch!$D$27,INDIRECT(\"a\" & (VLOOKUP(Switch!$D$27,$F$2:$G$43,2,FALSE)+ROW()-2)),\"\")","v":{"$error":"#N/A"}},{"$f":"IF(INDIRECT(\"c\" & (VLOOKUP(Switch!$D$28,$F$2:$G$43,2,FALSE)+ROW()-2))=Switch!$D$28,INDIRECT(\"a\" & (VLOOKUP(Switch!$D$28,$F$2:$G$43,2,FALSE)+ROW()-2)),\"\")","v":{"$error":"#N/A"}},{"$f":"IF(INDIRECT(\"c\" & (VLOOKUP(Switch!$D$29,$F$2:$G$43,2,FALSE)+ROW()-2))=Switch!$D$29,INDIRECT(\"a\" & (VLOOKUP(Switch!$D$29,$F$2:$G$43,2,FALSE)+ROW()-2)),\"\")","v":{"$error":"#N/A"}},{"$f":"IF(INDIRECT(\"c\" & (VLOOKUP(Switch!$D$30,$F$2:$G$43,2,FALSE)+ROW()-2))=Switch!$D$30,INDIRECT(\"a\" & (VLOOKUP(Switch!$D$30,$F$2:$G$43,2,FALSE)+ROW()-2)),\"\")","v":{"$error":"#N/A"}},{"$f":"IF(INDIRECT(\"c\" & (VLOOKUP(Switch!$D$31,$F$2:$G$43,2,FALSE)+ROW()-2))=Switch!$D$31,INDIRECT(\"a\" & (VLOOKUP(Switch!$D$31,$F$2:$G$43,2,FALSE)+ROW()-2)),\"\")","v":{"$error":"#N/A"}},{"$f":"IF(INDIRECT(\"c\" & (VLOOKUP(Switch!$D$32,$F$2:$G$43,2,FALSE)+ROW()-2))=Switch!$D$32,INDIRECT(\"a\" & (VLOOKUP(Switch!$D$32,$F$2:$G$43,2,FALSE)+ROW()-2)),\"\")","v":{"$error":"#N/A"}},{"$f":"IF(INDIRECT(\"c\" & (VLOOKUP(Switch!$D$33,$F$2:$G$43,2,FALSE)+ROW()-2))=Switch!$D$33,INDIRECT(\"a\" & (VLOOKUP(Switch!$D$33,$F$2:$G$43,2,FALSE)+ROW()-2)),\"\")","v":{"$error":"#N/A"}},{"$f":"IF(INDIRECT(\"c\" & (VLOOKUP(Switch!$D$34,$F$2:$G$43,2,FALSE)+ROW()-2))=Switch!$D$34,INDIRECT(\"a\" & (VLOOKUP(Switch!$D$34,$F$2:$G$43,2,FALSE)+ROW()-2)),\"\")","v":{"$error":"#N/A"}},{"$f":"IF(INDIRECT(\"c\" & (VLOOKUP(Switch!$D$35,$F$2:$G$43,2,FALSE)+ROW()-2))=Switch!$D$35,INDIRECT(\"a\" & (VLOOKUP(Switch!$D$35,$F$2:$G$43,2,FALSE)+ROW()-2)),\"\")","v":{"$error":"#N/A"}},{"$f":"IF(INDIRECT(\"c\" & (VLOOKUP(Switch!$D$36,$F$2:$G$43,2,FALSE)+ROW()-2))=Switch!$D$36,INDIRECT(\"a\" & (VLOOKUP(Switch!$D$36,$F$2:$G$43,2,FALSE)+ROW()-2)),\"\")","v":{"$error":"#N/A"}},{"$f":"IF(INDIRECT(\"c\" & (VLOOKUP(Switch!$D$37,$F$2:$G$43,2,FALSE)+ROW()-2))=Switch!$D$37,INDIRECT(\"a\" & (VLOOKUP(Switch!$D$37,$F$2:$G$43,2,FALSE)+ROW()-2)),\"\")","v":{"$error":"#N/A"}},{"$f":"IF(INDIRECT(\"c\" & (VLOOKUP(Switch!$D$38,$F$2:$G$43,2,FALSE)+ROW()-2))=Switch!$D$38,INDIRECT(\"a\" & (VLOOKUP(Switch!$D$38,$F$2:$G$43,2,FALSE)+ROW()-2)),\"\")","v":{"$error":"#N/A"}},{"$f":"IF(INDIRECT(\"c\" & (VLOOKUP(Switch!$D$39,$F$2:$G$43,2,FALSE)+ROW()-2))=Switch!$D$39,INDIRECT(\"a\" & (VLOOKUP(Switch!$D$39,$F$2:$G$43,2,FALSE)+ROW()-2)),\"\")","v":{"$error":"#N/A"}},{"$f":"IF(INDIRECT(\"c\" & (VLOOKUP(Switch!$D$40,$F$2:$G$43,2,FALSE)+ROW()-2))=Switch!$D$40,INDIRECT(\"a\" & (VLOOKUP(Switch!$D$40,$F$2:$G$43,2,FALSE)+ROW()-2)),\"\")","v":{"$error":"#N/A"}},{"$f":"IF(INDIRECT(\"c\" & (VLOOKUP(Switch!$D$52,$F$2:$G$43,2,FALSE)+ROW()-2))=Switch!$D$52,INDIRECT(\"a\" & (VLOOKUP(Switch!$D$52,$F$2:$G$43,2,FALSE)+ROW()-2)),\"\")","v":{"$error":"#N/A"}},{"$f":"IF(INDIRECT(\"c\" & (VLOOKUP(Switch!$D$53,$F$2:$G$43,2,FALSE)+ROW()-2))=Switch!$D$53,INDIRECT(\"a\" & (VLOOKUP(Switch!$D$53,$F$2:$G$43,2,FALSE)+ROW()-2)),\"\")","v":{"$error":"#N/A"}},{"$f":"IF(INDIRECT(\"c\" & (VLOOKUP(Switch!$D$54,$F$2:$G$43,2,FALSE)+ROW()-2))=Switch!$D$54,INDIRECT(\"a\" & (VLOOKUP(Switch!$D$54,$F$2:$G$43,2,FALSE)+ROW()-2)),\"\")","v":{"$error":"#N/A"}},{"$f":"IF(INDIRECT(\"c\" & (VLOOKUP(Switch!$D$55,$F$2:$G$43,2,FALSE)+ROW()-2))=Switch!$D$55,INDIRECT(\"a\" & (VLOOKUP(Switch!$D$55,$F$2:$G$43,2,FALSE)+ROW()-2)),\"\")","v":{"$error":"#N/A"}},{"$f":"IF(INDIRECT(\"c\" & (VLOOKUP(Switch!$D$56,$F$2:$G$43,2,FALSE)+ROW()-2))=Switch!$D$56,INDIRECT(\"a\" & (VLOOKUP(Switch!$D$56,$F$2:$G$43,2,FALSE)+ROW()-2)),\"\")","v":{"$error":"#N/A"}},{"$f":"IF(INDIRECT(\"c\" & (VLOOKUP(Switch!$D$57,$F$2:$G$43,2,FALSE)+ROW()-2))=Switch!$D$57,INDIRECT(\"a\" & (VLOOKUP(Switch!$D$57,$F$2:$G$43,2,FALSE)+ROW()-2)),\"\")","v":{"$error":"#N/A"}},{"$f":"IF(INDIRECT(\"c\" & (VLOOKUP(Switch!$D$58,$F$2:$G$43,2,FALSE)+ROW()-2))=Switch!$D$58,INDIRECT(\"a\" & (VLOOKUP(Switch!$D$58,$F$2:$G$43,2,FALSE)+ROW()-2)),\"\")","v":{"$error":"#N/A"}},{"$f":"IF(INDIRECT(\"c\" & (VLOOKUP(Switch!$D$59,$F$2:$G$43,2,FALSE)+ROW()-2))=Switch!$D$59,INDIRECT(\"a\" & (VLOOKUP(Switch!$D$59,$F$2:$G$43,2,FALSE)+ROW()-2)),\"\")","v":{"$error":"#N/A"}},{"$f":"IF(INDIRECT(\"c\" & (VLOOKUP(Switch!$D$60,$F$2:$G$43,2,FALSE)+ROW()-2))=Switch!$D$60,INDIRECT(\"a\" & (VLOOKUP(Switch!$D$60,$F$2:$G$43,2,FALSE)+ROW()-2)),\"\")","v":{"$error":"#N/A"}},{"$f":"IF(INDIRECT(\"c\" & (VLOOKUP(Switch!$D$61,$F$2:$G$43,2,FALSE)+ROW()-2))=Switch!$D$61,INDIRECT(\"a\" & (VLOOKUP(Switch!$D$61,$F$2:$G$43,2,FALSE)+ROW()-2)),\"\")","v":{"$error":"#N/A"}},{"$f":"IF(INDIRECT(\"c\" & (VLOOKUP(Switch!$D$62,$F$2:$G$43,2,FALSE)+ROW()-2))=Switch!$D$62,INDIRECT(\"a\" & (VLOOKUP(Switch!$D$62,$F$2:$G$43,2,FALSE)+ROW()-2)),\"\")","v":{"$error":"#N/A"}},{"$f":"IF(INDIRECT(\"c\" & (VLOOKUP(Switch!$D$63,$F$2:$G$43,2,FALSE)+ROW()-2))=Switch!$D$63,INDIRECT(\"a\" & (VLOOKUP(Switch!$D$63,$F$2:$G$43,2,FALSE)+ROW()-2)),\"\")","v":{"$error":"#N/A"}},{"$f":"IF(INDIRECT(\"c\" & (VLOOKUP(Switch!$D$64,$F$2:$G$43,2,FALSE)+ROW()-2))=Switch!$D$64,INDIRECT(\"a\" & (VLOOKUP(Switch!$D$64,$F$2:$G$43,2,FALSE)+ROW()-2)),\"\")","v":{"$error":"#N/A"}},{"$f":"IF(INDIRECT(\"c\" & (VLOOKUP(Switch!$D$65,$F$2:$G$43,2,FALSE)+ROW()-2))=Switch!$D$65,INDIRECT(\"a\" & (VLOOKUP(Switch!$D$65,$F$2:$G$43,2,FALSE)+ROW()-2)),\"\")","v":{"$error":"#N/A"}},{"$f":"IF(INDIRECT(\"c\" & (VLOOKUP(Switch!$D$66,$F$2:$G$43,2,FALSE)+ROW()-2))=Switch!$D$66,INDIRECT(\"a\" & (VLOOKUP(Switch!$D$66,$F$2:$G$43,2,FALSE)+ROW()-2)),\"\")","v":{"$error":"#N/A"}}]
[null,null,null,{"$f":"ROW()","v":630},null,null,{"$f":"VLOOKUP(F630,$C$2:$D$637,2,FALSE)","v":{"$error":"#N/A"}},{"$f":"IF(INDIRECT(\"c\" & (VLOOKUP(Switch!$D$26,$F$2:$G$43,2,FALSE)+ROW()-2))=Switch!$D$26,INDIRECT(\"a\" & (VLOOKUP(Switch!$D$26,$F$2:$G$43,2,FALSE)+ROW()-2)),\"\")","v":{"$error":"#N/A"}},{"$f":"IF(INDIRECT(\"c\" & (VLOOKUP(Switch!$D$27,$F$2:$G$43,2,FALSE)+ROW()-2))=Switch!$D$27,INDIRECT(\"a\" & (VLOOKUP(Switch!$D$27,$F$2:$G$43,2,FALSE)+ROW()-2)),\"\")","v":{"$error":"#N/A"}},{"$f":"IF(INDIRECT(\"c\" & (VLOOKUP(Switch!$D$28,$F$2:$G$43,2,FALSE)+ROW()-2))=Switch!$D$28,INDIRECT(\"a\" & (VLOOKUP(Switch!$D$28,$F$2:$G$43,2,FALSE)+ROW()-2)),\"\")","v":{"$error":"#N/A"}},{"$f":"IF(INDIRECT(\"c\" & (VLOOKUP(Switch!$D$29,$F$2:$G$43,2,FALSE)+ROW()-2))=Switch!$D$29,INDIRECT(\"a\" & (VLOOKUP(Switch!$D$29,$F$2:$G$43,2,FALSE)+ROW()-2)),\"\")","v":{"$error":"#N/A"}},{"$f":"IF(INDIRECT(\"c\" & (VLOOKUP(Switch!$D$30,$F$2:$G$43,2,FALSE)+ROW()-2))=Switch!$D$30,INDIRECT(\"a\" & (VLOOKUP(Switch!$D$30,$F$2:$G$43,2,FALSE)+ROW()-2)),\"\")","v":{"$error":"#N/A"}},{"$f":"IF(INDIRECT(\"c\" & (VLOOKUP(Switch!$D$31,$F$2:$G$43,2,FALSE)+ROW()-2))=Switch!$D$31,INDIRECT(\"a\" & (VLOOKUP(Switch!$D$31,$F$2:$G$43,2,FALSE)+ROW()-2)),\"\")","v":{"$error":"#N/A"}},{"$f":"IF(INDIRECT(\"c\" & (VLOOKUP(Switch!$D$32,$F$2:$G$43,2,FALSE)+ROW()-2))=Switch!$D$32,INDIRECT(\"a\" & (VLOOKUP(Switch!$D$32,$F$2:$G$43,2,FALSE)+ROW()-2)),\"\")","v":{"$error":"#N/A"}},{"$f":"IF(INDIRECT(\"c\" & (VLOOKUP(Switch!$D$33,$F$2:$G$43,2,FALSE)+ROW()-2))=Switch!$D$33,INDIRECT(\"a\" & (VLOOKUP(Switch!$D$33,$F$2:$G$43,2,FALSE)+ROW()-2)),\"\")","v":{"$error":"#N/A"}},{"$f":"IF(INDIRECT(\"c\" & (VLOOKUP(Switch!$D$34,$F$2:$G$43,2,FALSE)+ROW()-2))=Switch!$D$34,INDIRECT(\"a\" & (VLOOKUP(Switch!$D$34,$F$2:$G$43,2,FALSE)+ROW()-2)),\"\")","v":{"$error":"#N/A"}},{"$f":"IF(INDIRECT(\"c\" & (VLOOKUP(Switch!$D$35,$F$2:$G$43,2,FALSE)+ROW()-2))=Switch!$D$35,INDIRECT(\"a\" & (VLOOKUP(Switch!$D$35,$F$2:$G$43,2,FALSE)+ROW()-2)),\"\")","v":{"$error":"#N/A"}},{"$f":"IF(INDIRECT(\"c\" & (VLOOKUP(Switch!$D$36,$F$2:$G$43,2,FALSE)+ROW()-2))=Switch!$D$36,INDIRECT(\"a\" & (VLOOKUP(Switch!$D$36,$F$2:$G$43,2,FALSE)+ROW()-2)),\"\")","v":{"$error":"#N/A"}},{"$f":"IF(INDIRECT(\"c\" & (VLOOKUP(Switch!$D$37,$F$2:$G$43,2,FALSE)+ROW()-2))=Switch!$D$37,INDIRECT(\"a\" & (VLOOKUP(Switch!$D$37,$F$2:$G$43,2,FALSE)+ROW()-2)),\"\")","v":{"$error":"#N/A"}},{"$f":"IF(INDIRECT(\"c\" & (VLOOKUP(Switch!$D$38,$F$2:$G$43,2,FALSE)+ROW()-2))=Switch!$D$38,INDIRECT(\"a\" & (VLOOKUP(Switch!$D$38,$F$2:$G$43,2,FALSE)+ROW()-2)),\"\")","v":{"$error":"#N/A"}},{"$f":"IF(INDIRECT(\"c\" & (VLOOKUP(Switch!$D$39,$F$2:$G$43,2,FALSE)+ROW()-2))=Switch!$D$39,INDIRECT(\"a\" & (VLOOKUP(Switch!$D$39,$F$2:$G$43,2,FALSE)+ROW()-2)),\"\")","v":{"$error":"#N/A"}},{"$f":"IF(INDIRECT(\"c\" & (VLOOKUP(Switch!$D$40,$F$2:$G$43,2,FALSE)+ROW()-2))=Switch!$D$40,INDIRECT(\"a\" & (VLOOKUP(Switch!$D$40,$F$2:$G$43,2,FALSE)+ROW()-2)),\"\")","v":{"$error":"#N/A"}},{"$f":"IF(INDIRECT(\"c\" & (VLOOKUP(Switch!$D$52,$F$2:$G$43,2,FALSE)+ROW()-2))=Switch!$D$52,INDIRECT(\"a\" & (VLOOKUP(Switch!$D$52,$F$2:$G$43,2,FALSE)+ROW()-2)),\"\")","v":{"$error":"#N/A"}},{"$f":"IF(INDIRECT(\"c\" & (VLOOKUP(Switch!$D$53,$F$2:$G$43,2,FALSE)+ROW()-2))=Switch!$D$53,INDIRECT(\"a\" & (VLOOKUP(Switch!$D$53,$F$2:$G$43,2,FALSE)+ROW()-2)),\"\")","v":{"$error":"#N/A"}},{"$f":"IF(INDIRECT(\"c\" & (VLOOKUP(Switch!$D$54,$F$2:$G$43,2,FALSE)+ROW()-2))=Switch!$D$54,INDIRECT(\"a\" & (VLOOKUP(Switch!$D$54,$F$2:$G$43,2,FALSE)+ROW()-2)),\"\")","v":{"$error":"#N/A"}},{"$f":"IF(INDIRECT(\"c\" & (VLOOKUP(Switch!$D$55,$F$2:$G$43,2,FALSE)+ROW()-2))=Switch!$D$55,INDIRECT(\"a\" & (VLOOKUP(Switch!$D$55,$F$2:$G$43,2,FALSE)+ROW()-2)),\"\")","v":{"$error":"#N/A"}},{"$f":"IF(INDIRECT(\"c\" & (VLOOKUP(Switch!$D$56,$F$2:$G$43,2,FALSE)+ROW()-2))=Switch!$D$56,INDIRECT(\"a\" & (VLOOKUP(Switch!$D$56,$F$2:$G$43,2,FALSE)+ROW()-2)),\"\")","v":{"$error":"#N/A"}},{"$f":"IF(INDIRECT(\"c\" & (VLOOKUP(Switch!$D$57,$F$2:$G$43,2,FALSE)+ROW()-2))=Switch!$D$57,INDIRECT(\"a\" & (VLOOKUP(Switch!$D$57,$F$2:$G$43,2,FALSE)+ROW()-2)),\"\")","v":{"$error":"#N/A"}},{"$f":"IF(INDIRECT(\"c\" & (VLOOKUP(Switch!$D$58,$F$2:$G$43,2,FALSE)+ROW()-2))=Switch!$D$58,INDIRECT(\"a\" & (VLOOKUP(Switch!$D$58,$F$2:$G$43,2,FALSE)+ROW()-2)),\"\")","v":{"$error":"#N/A"}},{"$f":"IF(INDIRECT(\"c\" & (VLOOKUP(Switch!$D$59,$F$2:$G$43,2,FALSE)+ROW()-2))=Switch!$D$59,INDIRECT(\"a\" & (VLOOKUP(Switch!$D$59,$F$2:$G$43,2,FALSE)+ROW()-2)),\"\")","v":{"$error":"#N/A"}},{"$f":"IF(INDIRECT(\"c\" & (VLOOKUP(Switch!$D$60,$F$2:$G$43,2,FALSE)+ROW()-2))=Switch!$D$60,INDIRECT(\"a\" & (VLOOKUP(Switch!$D$60,$F$2:$G$43,2,FALSE)+ROW()-2)),\"\")","v":{"$error":"#N/A"}},{"$f":"IF(INDIRECT(\"c\" & (VLOOKUP(Switch!$D$61,$F$2:$G$43,2,FALSE)+ROW()-2))=Switch!$D$61,INDIRECT(\"a\" & (VLOOKUP(Switch!$D$61,$F$2:$G$43,2,FALSE)+ROW()-2)),\"\")","v":{"$error":"#N/A"}},{"$f":"IF(INDIRECT(\"c\" & (VLOOKUP(Switch!$D$62,$F$2:$G$43,2,FALSE)+ROW()-2))=Switch!$D$62,INDIRECT(\"a\" & (VLOOKUP(Switch!$D$62,$F$2:$G$43,2,FALSE)+ROW()-2)),\"\")","v":{"$error":"#N/A"}},{"$f":"IF(INDIRECT(\"c\" & (VLOOKUP(Switch!$D$63,$F$2:$G$43,2,FALSE)+ROW()-2))=Switch!$D$63,INDIRECT(\"a\" & (VLOOKUP(Switch!$D$63,$F$2:$G$43,2,FALSE)+ROW()-2)),\"\")","v":{"$error":"#N/A"}},{"$f":"IF(INDIRECT(\"c\" & (VLOOKUP(Switch!$D$64,$F$2:$G$43,2,FALSE)+ROW()-2))=Switch!$D$64,INDIRECT(\"a\" & (VLOOKUP(Switch!$D$64,$F$2:$G$43,2,FALSE)+ROW()-2)),\"\")","v":{"$error":"#N/A"}},{"$f":"IF(INDIRECT(\"c\" & (VLOOKUP(Switch!$D$65,$F$2:$G$43,2,FALSE)+ROW()-2))=Switch!$D$65,INDIRECT(\"a\" & (VLOOKUP(Switch!$D$65,$F$2:$G$43,2,FALSE)+ROW()-2)),\"\")","v":{"$error":"#N/A"}},{"$f":"IF(INDIRECT(\"c\" & (VLOOKUP(Switch!$D$66,$F$2:$G$43,2,FALSE)+ROW()-2))=Switch!$D$66,INDIRECT(\"a\" & (VLOOKUP(Switch!$D$66,$F$2:$G$43,2,FALSE)+ROW()-2)),\"\")","v":{"$error":"#N/A"}}]
[null,null,null,{"$f":"ROW()","v":631},null,null,{"$f":"VLOOKUP(F631,$C$2:$D$637,2,FALSE)","v":{"$error":"#N/A"}},{"$f":"IF(INDIRECT(\"c\" & (VLOOKUP(Switch!$D$26,$F$2:$G$43,2,FALSE)+ROW()-2))=Switch!$D$26,INDIRECT(\"a\" & (VLOOKUP(Switch!$D$26,$F$2:$G$43,2,FALSE)+ROW()-2)),\"\")","v":{"$error":"#N/A"}},{"$f":"IF(INDIRECT(\"c\" & (VLOOKUP(Switch!$D$27,$F$2:$G$43,2,FALSE)+ROW()-2))=Switch!$D$27,INDIRECT(\"a\" & (VLOOKUP(Switch!$D$27,$F$2:$G$43,2,FALSE)+ROW()-2)),\"\")","v":{"$error":"#N/A"}},{"$f":"IF(INDIRECT(\"c\" & (VLOOKUP(Switch!$D$28,$F$2:$G$43,2,FALSE)+ROW()-2))=Switch!$D$28,INDIRECT(\"a\" & (VLOOKUP(Switch!$D$28,$F$2:$G$43,2,FALSE)+ROW()-2)),\"\")","v":{"$error":"#N/A"}},{"$f":"IF(INDIRECT(\"c\" & (VLOOKUP(Switch!$D$29,$F$2:$G$43,2,FALSE)+ROW()-2))=Switch!$D$29,INDIRECT(\"a\" & (VLOOKUP(Switch!$D$29,$F$2:$G$43,2,FALSE)+ROW()-2)),\"\")","v":{"$error":"#N/A"}},{"$f":"IF(INDIRECT(\"c\" & (VLOOKUP(Switch!$D$30,$F$2:$G$43,2,FALSE)+ROW()-2))=Switch!$D$30,INDIRECT(\"a\" & (VLOOKUP(Switch!$D$30,$F$2:$G$43,2,FALSE)+ROW()-2)),\"\")","v":{"$error":"#N/A"}},{"$f":"IF(INDIRECT(\"c\" & (VLOOKUP(Switch!$D$31,$F$2:$G$43,2,FALSE)+ROW()-2))=Switch!$D$31,INDIRECT(\"a\" & (VLOOKUP(Switch!$D$31,$F$2:$G$43,2,FALSE)+ROW()-2)),\"\")","v":{"$error":"#N/A"}},{"$f":"IF(INDIRECT(\"c\" & (VLOOKUP(Switch!$D$32,$F$2:$G$43,2,FALSE)+ROW()-2))=Switch!$D$32,INDIRECT(\"a\" & (VLOOKUP(Switch!$D$32,$F$2:$G$43,2,FALSE)+ROW()-2)),\"\")","v":{"$error":"#N/A"}},{"$f":"IF(INDIRECT(\"c\" & (VLOOKUP(Switch!$D$33,$F$2:$G$43,2,FALSE)+ROW()-2))=Switch!$D$33,INDIRECT(\"a\" & (VLOOKUP(Switch!$D$33,$F$2:$G$43,2,FALSE)+ROW()-2)),\"\")","v":{"$error":"#N/A"}},{"$f":"IF(INDIRECT(\"c\" & (VLOOKUP(Switch!$D$34,$F$2:$G$43,2,FALSE)+ROW()-2))=Switch!$D$34,INDIRECT(\"a\" & (VLOOKUP(Switch!$D$34,$F$2:$G$43,2,FALSE)+ROW()-2)),\"\")","v":{"$error":"#N/A"}},{"$f":"IF(INDIRECT(\"c\" & (VLOOKUP(Switch!$D$35,$F$2:$G$43,2,FALSE)+ROW()-2))=Switch!$D$35,INDIRECT(\"a\" & (VLOOKUP(Switch!$D$35,$F$2:$G$43,2,FALSE)+ROW()-2)),\"\")","v":{"$error":"#N/A"}},{"$f":"IF(INDIRECT(\"c\" & (VLOOKUP(Switch!$D$36,$F$2:$G$43,2,FALSE)+ROW()-2))=Switch!$D$36,INDIRECT(\"a\" & (VLOOKUP(Switch!$D$36,$F$2:$G$43,2,FALSE)+ROW()-2)),\"\")","v":{"$error":"#N/A"}},{"$f":"IF(INDIRECT(\"c\" & (VLOOKUP(Switch!$D$37,$F$2:$G$43,2,FALSE)+ROW()-2))=Switch!$D$37,INDIRECT(\"a\" & (VLOOKUP(Switch!$D$37,$F$2:$G$43,2,FALSE)+ROW()-2)),\"\")","v":{"$error":"#N/A"}},{"$f":"IF(INDIRECT(\"c\" & (VLOOKUP(Switch!$D$38,$F$2:$G$43,2,FALSE)+ROW()-2))=Switch!$D$38,INDIRECT(\"a\" & (VLOOKUP(Switch!$D$38,$F$2:$G$43,2,FALSE)+ROW()-2)),\"\")","v":{"$error":"#N/A"}},{"$f":"IF(INDIRECT(\"c\" & (VLOOKUP(Switch!$D$39,$F$2:$G$43,2,FALSE)+ROW()-2))=Switch!$D$39,INDIRECT(\"a\" & (VLOOKUP(Switch!$D$39,$F$2:$G$43,2,FALSE)+ROW()-2)),\"\")","v":{"$error":"#N/A"}},{"$f":"IF(INDIRECT(\"c\" & (VLOOKUP(Switch!$D$40,$F$2:$G$43,2,FALSE)+ROW()-2))=Switch!$D$40,INDIRECT(\"a\" & (VLOOKUP(Switch!$D$40,$F$2:$G$43,2,FALSE)+ROW()-2)),\"\")","v":{"$error":"#N/A"}},{"$f":"IF(INDIRECT(\"c\" & (VLOOKUP(Switch!$D$52,$F$2:$G$43,2,FALSE)+ROW()-2))=Switch!$D$52,INDIRECT(\"a\" & (VLOOKUP(Switch!$D$52,$F$2:$G$43,2,FALSE)+ROW()-2)),\"\")","v":{"$error":"#N/A"}},{"$f":"IF(INDIRECT(\"c\" & (VLOOKUP(Switch!$D$53,$F$2:$G$43,2,FALSE)+ROW()-2))=Switch!$D$53,INDIRECT(\"a\" & (VLOOKUP(Switch!$D$53,$F$2:$G$43,2,FALSE)+ROW()-2)),\"\")","v":{"$error":"#N/A"}},{"$f":"IF(INDIRECT(\"c\" & (VLOOKUP(Switch!$D$54,$F$2:$G$43,2,FALSE)+ROW()-2))=Switch!$D$54,INDIRECT(\"a\" & (VLOOKUP(Switch!$D$54,$F$2:$G$43,2,FALSE)+ROW()-2)),\"\")","v":{"$error":"#N/A"}},{"$f":"IF(INDIRECT(\"c\" & (VLOOKUP(Switch!$D$55,$F$2:$G$43,2,FALSE)+ROW()-2))=Switch!$D$55,INDIRECT(\"a\" & (VLOOKUP(Switch!$D$55,$F$2:$G$43,2,FALSE)+ROW()-2)),\"\")","v":{"$error":"#N/A"}},{"$f":"IF(INDIRECT(\"c\" & (VLOOKUP(Switch!$D$56,$F$2:$G$43,2,FALSE)+ROW()-2))=Switch!$D$56,INDIRECT(\"a\" & (VLOOKUP(Switch!$D$56,$F$2:$G$43,2,FALSE)+ROW()-2)),\"\")","v":{"$error":"#N/A"}},{"$f":"IF(INDIRECT(\"c\" & (VLOOKUP(Switch!$D$57,$F$2:$G$43,2,FALSE)+ROW()-2))=Switch!$D$57,INDIRECT(\"a\" & (VLOOKUP(Switch!$D$57,$F$2:$G$43,2,FALSE)+ROW()-2)),\"\")","v":{"$error":"#N/A"}},{"$f":"IF(INDIRECT(\"c\" & (VLOOKUP(Switch!$D$58,$F$2:$G$43,2,FALSE)+ROW()-2))=Switch!$D$58,INDIRECT(\"a\" & (VLOOKUP(Switch!$D$58,$F$2:$G$43,2,FALSE)+ROW()-2)),\"\")","v":{"$error":"#N/A"}},{"$f":"IF(INDIRECT(\"c\" & (VLOOKUP(Switch!$D$59,$F$2:$G$43,2,FALSE)+ROW()-2))=Switch!$D$59,INDIRECT(\"a\" & (VLOOKUP(Switch!$D$59,$F$2:$G$43,2,FALSE)+ROW()-2)),\"\")","v":{"$error":"#N/A"}},{"$f":"IF(INDIRECT(\"c\" & (VLOOKUP(Switch!$D$60,$F$2:$G$43,2,FALSE)+ROW()-2))=Switch!$D$60,INDIRECT(\"a\" & (VLOOKUP(Switch!$D$60,$F$2:$G$43,2,FALSE)+ROW()-2)),\"\")","v":{"$error":"#N/A"}},{"$f":"IF(INDIRECT(\"c\" & (VLOOKUP(Switch!$D$61,$F$2:$G$43,2,FALSE)+ROW()-2))=Switch!$D$61,INDIRECT(\"a\" & (VLOOKUP(Switch!$D$61,$F$2:$G$43,2,FALSE)+ROW()-2)),\"\")","v":{"$error":"#N/A"}},{"$f":"IF(INDIRECT(\"c\" & (VLOOKUP(Switch!$D$62,$F$2:$G$43,2,FALSE)+ROW()-2))=Switch!$D$62,INDIRECT(\"a\" & (VLOOKUP(Switch!$D$62,$F$2:$G$43,2,FALSE)+ROW()-2)),\"\")","v":{"$error":"#N/A"}},{"$f":"IF(INDIRECT(\"c\" & (VLOOKUP(Switch!$D$63,$F$2:$G$43,2,FALSE)+ROW()-2))=Switch!$D$63,INDIRECT(\"a\" & (VLOOKUP(Switch!$D$63,$F$2:$G$43,2,FALSE)+ROW()-2)),\"\")","v":{"$error":"#N/A"}},{"$f":"IF(INDIRECT(\"c\" & (VLOOKUP(Switch!$D$64,$F$2:$G$43,2,FALSE)+ROW()-2))=Switch!$D$64,INDIRECT(\"a\" & (VLOOKUP(Switch!$D$64,$F$2:$G$43,2,FALSE)+ROW()-2)),\"\")","v":{"$error":"#N/A"}},{"$f":"IF(INDIRECT(\"c\" & (VLOOKUP(Switch!$D$65,$F$2:$G$43,2,FALSE)+ROW()-2))=Switch!$D$65,INDIRECT(\"a\" & (VLOOKUP(Switch!$D$65,$F$2:$G$43,2,FALSE)+ROW()-2)),\"\")","v":{"$error":"#N/A"}},{"$f":"IF(INDIRECT(\"c\" & (VLOOKUP(Switch!$D$66,$F$2:$G$43,2,FALSE)+ROW()-2))=Switch!$D$66,INDIRECT(\"a\" & (VLOOKUP(Switch!$D$66,$F$2:$G$43,2,FALSE)+ROW()-2)),\"\")","v":{"$error":"#N/A"}}]
[null,null,null,{"$f":"ROW()","v":632},null,null,{"$f":"VLOOKUP(F632,$C$2:$D$637,2,FALSE)","v":{"$error":"#N/A"}},{"$f":"IF(INDIRECT(\"c\" & (VLOOKUP(Switch!$D$26,$F$2:$G$43,2,FALSE)+ROW()-2))=Switch!$D$26,INDIRECT(\"a\" & (VLOOKUP(Switch!$D$26,$F$2:$G$43,2,FALSE)+ROW()-2)),\"\")","v":{"$error":"#N/A"}},{"$f":"IF(INDIRECT(\"c\" & (VLOOKUP(Switch!$D$27,$F$2:$G$43,2,FALSE)+ROW()-2))=Switch!$D$27,INDIRECT(\"a\" & (VLOOKUP(Switch!$D$27,$F$2:$G$43,2,FALSE)+ROW()-2)),\"\")","v":{"$error":"#N/A"}},{"$f":"IF(INDIRECT(\"c\" & (VLOOKUP(Switch!$D$28,$F$2:$G$43,2,FALSE)+ROW()-2))=Switch!$D$28,INDIRECT(\"a\" & (VLOOKUP(Switch!$D$28,$F$2:$G$43,2,FALSE)+ROW()-2)),\"\")","v":{"$error":"#N/A"}},{"$f":"IF(INDIRECT(\"c\" & (VLOOKUP(Switch!$D$29,$F$2:$G$43,2,FALSE)+ROW()-2))=Switch!$D$29,INDIRECT(\"a\" & (VLOOKUP(Switch!$D$29,$F$2:$G$43,2,FALSE)+ROW()-2)),\"\")","v":{"$error":"#N/A"}},{"$f":"IF(INDIRECT(\"c\" & (VLOOKUP(Switch!$D$30,$F$2:$G$43,2,FALSE)+ROW()-2))=Switch!$D$30,INDIRECT(\"a\" & (VLOOKUP(Switch!$D$30,$F$2:$G$43,2,FALSE)+ROW()-2)),\"\")","v":{"$error":"#N/A"}},{"$f":"IF(INDIRECT(\"c\" & (VLOOKUP(Switch!$D$31,$F$2:$G$43,2,FALSE)+ROW()-2))=Switch!$D$31,INDIRECT(\"a\" & (VLOOKUP(Switch!$D$31,$F$2:$G$43,2,FALSE)+ROW()-2)),\"\")","v":{"$error":"#N/A"}},{"$f":"IF(INDIRECT(\"c\" & (VLOOKUP(Switch!$D$32,$F$2:$G$43,2,FALSE)+ROW()-2))=Switch!$D$32,INDIRECT(\"a\" & (VLOOKUP(Switch!$D$32,$F$2:$G$43,2,FALSE)+ROW()-2)),\"\")","v":{"$error":"#N/A"}},{"$f":"IF(INDIRECT(\"c\" & (VLOOKUP(Switch!$D$33,$F$2:$G$43,2,FALSE)+ROW()-2))=Switch!$D$33,INDIRECT(\"a\" & (VLOOKUP(Switch!$D$33,$F$2:$G$43,2,FALSE)+ROW()-2)),\"\")","v":{"$error":"#N/A"}},{"$f":"IF(INDIRECT(\"c\" & (VLOOKUP(Switch!$D$34,$F$2:$G$43,2,FALSE)+ROW()-2))=Switch!$D$34,INDIRECT(\"a\" & (VLOOKUP(Switch!$D$34,$F$2:$G$43,2,FALSE)+ROW()-2)),\"\")","v":{"$error":"#N/A"}},{"$f":"IF(INDIRECT(\"c\" & (VLOOKUP(Switch!$D$35,$F$2:$G$43,2,FALSE)+ROW()-2))=Switch!$D$35,INDIRECT(\"a\" & (VLOOKUP(Switch!$D$35,$F$2:$G$43,2,FALSE)+ROW()-2)),\"\")","v":{"$error":"#N/A"}},{"$f":"IF(INDIRECT(\"c\" & (VLOOKUP(Switch!$D$36,$F$2:$G$43,2,FALSE)+ROW()-2))=Switch!$D$36,INDIRECT(\"a\" & (VLOOKUP(Switch!$D$36,$F$2:$G$43,2,FALSE)+ROW()-2)),\"\")","v":{"$error":"#N/A"}},{"$f":"IF(INDIRECT(\"c\" & (VLOOKUP(Switch!$D$37,$F$2:$G$43,2,FALSE)+ROW()-2))=Switch!$D$37,INDIRECT(\"a\" & (VLOOKUP(Switch!$D$37,$F$2:$G$43,2,FALSE)+ROW()-2)),\"\")","v":{"$error":"#N/A"}},{"$f":"IF(INDIRECT(\"c\" & (VLOOKUP(Switch!$D$38,$F$2:$G$43,2,FALSE)+ROW()-2))=Switch!$D$38,INDIRECT(\"a\" & (VLOOKUP(Switch!$D$38,$F$2:$G$43,2,FALSE)+ROW()-2)),\"\")","v":{"$error":"#N/A"}},{"$f":"IF(INDIRECT(\"c\" & (VLOOKUP(Switch!$D$39,$F$2:$G$43,2,FALSE)+ROW()-2))=Switch!$D$39,INDIRECT(\"a\" & (VLOOKUP(Switch!$D$39,$F$2:$G$43,2,FALSE)+ROW()-2)),\"\")","v":{"$error":"#N/A"}},{"$f":"IF(INDIRECT(\"c\" & (VLOOKUP(Switch!$D$40,$F$2:$G$43,2,FALSE)+ROW()-2))=Switch!$D$40,INDIRECT(\"a\" & (VLOOKUP(Switch!$D$40,$F$2:$G$43,2,FALSE)+ROW()-2)),\"\")","v":{"$error":"#N/A"}},{"$f":"IF(INDIRECT(\"c\" & (VLOOKUP(Switch!$D$52,$F$2:$G$43,2,FALSE)+ROW()-2))=Switch!$D$52,INDIRECT(\"a\" & (VLOOKUP(Switch!$D$52,$F$2:$G$43,2,FALSE)+ROW()-2)),\"\")","v":{"$error":"#N/A"}},{"$f":"IF(INDIRECT(\"c\" & (VLOOKUP(Switch!$D$53,$F$2:$G$43,2,FALSE)+ROW()-2))=Switch!$D$53,INDIRECT(\"a\" & (VLOOKUP(Switch!$D$53,$F$2:$G$43,2,FALSE)+ROW()-2)),\"\")","v":{"$error":"#N/A"}},{"$f":"IF(INDIRECT(\"c\" & (VLOOKUP(Switch!$D$54,$F$2:$G$43,2,FALSE)+ROW()-2))=Switch!$D$54,INDIRECT(\"a\" & (VLOOKUP(Switch!$D$54,$F$2:$G$43,2,FALSE)+ROW()-2)),\"\")","v":{"$error":"#N/A"}},{"$f":"IF(INDIRECT(\"c\" & (VLOOKUP(Switch!$D$55,$F$2:$G$43,2,FALSE)+ROW()-2))=Switch!$D$55,INDIRECT(\"a\" & (VLOOKUP(Switch!$D$55,$F$2:$G$43,2,FALSE)+ROW()-2)),\"\")","v":{"$error":"#N/A"}},{"$f":"IF(INDIRECT(\"c\" & (VLOOKUP(Switch!$D$56,$F$2:$G$43,2,FALSE)+ROW()-2))=Switch!$D$56,INDIRECT(\"a\" & (VLOOKUP(Switch!$D$56,$F$2:$G$43,2,FALSE)+ROW()-2)),\"\")","v":{"$error":"#N/A"}},{"$f":"IF(INDIRECT(\"c\" & (VLOOKUP(Switch!$D$57,$F$2:$G$43,2,FALSE)+ROW()-2))=Switch!$D$57,INDIRECT(\"a\" & (VLOOKUP(Switch!$D$57,$F$2:$G$43,2,FALSE)+ROW()-2)),\"\")","v":{"$error":"#N/A"}},{"$f":"IF(INDIRECT(\"c\" & (VLOOKUP(Switch!$D$58,$F$2:$G$43,2,FALSE)+ROW()-2))=Switch!$D$58,INDIRECT(\"a\" & (VLOOKUP(Switch!$D$58,$F$2:$G$43,2,FALSE)+ROW()-2)),\"\")","v":{"$error":"#N/A"}},{"$f":"IF(INDIRECT(\"c\" & (VLOOKUP(Switch!$D$59,$F$2:$G$43,2,FALSE)+ROW()-2))=Switch!$D$59,INDIRECT(\"a\" & (VLOOKUP(Switch!$D$59,$F$2:$G$43,2,FALSE)+ROW()-2)),\"\")","v":{"$error":"#N/A"}},{"$f":"IF(INDIRECT(\"c\" & (VLOOKUP(Switch!$D$60,$F$2:$G$43,2,FALSE)+ROW()-2))=Switch!$D$60,INDIRECT(\"a\" & (VLOOKUP(Switch!$D$60,$F$2:$G$43,2,FALSE)+ROW()-2)),\"\")","v":{"$error":"#N/A"}},{"$f":"IF(INDIRECT(\"c\" & (VLOOKUP(Switch!$D$61,$F$2:$G$43,2,FALSE)+ROW()-2))=Switch!$D$61,INDIRECT(\"a\" & (VLOOKUP(Switch!$D$61,$F$2:$G$43,2,FALSE)+ROW()-2)),\"\")","v":{"$error":"#N/A"}},{"$f":"IF(INDIRECT(\"c\" & (VLOOKUP(Switch!$D$62,$F$2:$G$43,2,FALSE)+ROW()-2))=Switch!$D$62,INDIRECT(\"a\" & (VLOOKUP(Switch!$D$62,$F$2:$G$43,2,FALSE)+ROW()-2)),\"\")","v":{"$error":"#N/A"}},{"$f":"IF(INDIRECT(\"c\" & (VLOOKUP(Switch!$D$63,$F$2:$G$43,2,FALSE)+ROW()-2))=Switch!$D$63,INDIRECT(\"a\" & (VLOOKUP(Switch!$D$63,$F$2:$G$43,2,FALSE)+ROW()-2)),\"\")","v":{"$error":"#N/A"}},{"$f":"IF(INDIRECT(\"c\" & (VLOOKUP(Switch!$D$64,$F$2:$G$43,2,FALSE)+ROW()-2))=Switch!$D$64,INDIRECT(\"a\" & (VLOOKUP(Switch!$D$64,$F$2:$G$43,2,FALSE)+ROW()-2)),\"\")","v":{"$error":"#N/A"}},{"$f":"IF(INDIRECT(\"c\" & (VLOOKUP(Switch!$D$65,$F$2:$G$43,2,FALSE)+ROW()-2))=Switch!$D$65,INDIRECT(\"a\" & (VLOOKUP(Switch!$D$65,$F$2:$G$43,2,FALSE)+ROW()-2)),\"\")","v":{"$error":"#N/A"}},{"$f":"IF(INDIRECT(\"c\" & (VLOOKUP(Switch!$D$66,$F$2:$G$43,2,FALSE)+ROW()-2))=Switch!$D$66,INDIRECT(\"a\" & (VLOOKUP(Switch!$D$66,$F$2:$G$43,2,FALSE)+ROW()-2)),\"\")","v":{"$error":"#N/A"}}]
[null,null,null,{"$f":"ROW()","v":633},null,null,{"$f":"VLOOKUP(F633,$C$2:$D$637,2,FALSE)","v":{"$error":"#N/A"}},{"$f":"IF(INDIRECT(\"c\" & (VLOOKUP(Switch!$D$26,$F$2:$G$43,2,FALSE)+ROW()-2))=Switch!$D$26,INDIRECT(\"a\" & (VLOOKUP(Switch!$D$26,$F$2:$G$43,2,FALSE)+ROW()-2)),\"\")","v":{"$error":"#N/A"}},{"$f":"IF(INDIRECT(\"c\" & (VLOOKUP(Switch!$D$27,$F$2:$G$43,2,FALSE)+ROW()-2))=Switch!$D$27,INDIRECT(\"a\" & (VLOOKUP(Switch!$D$27,$F$2:$G$43,2,FALSE)+ROW()-2)),\"\")","v":{"$error":"#N/A"}},{"$f":"IF(INDIRECT(\"c\" & (VLOOKUP(Switch!$D$28,$F$2:$G$43,2,FALSE)+ROW()-2))=Switch!$D$28,INDIRECT(\"a\" & (VLOOKUP(Switch!$D$28,$F$2:$G$43,2,FALSE)+ROW()-2)),\"\")","v":{"$error":"#N/A"}},{"$f":"IF(INDIRECT(\"c\" & (VLOOKUP(Switch!$D$29,$F$2:$G$43,2,FALSE)+ROW()-2))=Switch!$D$29,INDIRECT(\"a\" & (VLOOKUP(Switch!$D$29,$F$2:$G$43,2,FALSE)+ROW()-2)),\"\")","v":{"$error":"#N/A"}},{"$f":"IF(INDIRECT(\"c\" & (VLOOKUP(Switch!$D$30,$F$2:$G$43,2,FALSE)+ROW()-2))=Switch!$D$30,INDIRECT(\"a\" & (VLOOKUP(Switch!$D$30,$F$2:$G$43,2,FALSE)+ROW()-2)),\"\")","v":{"$error":"#N/A"}},{"$f":"IF(INDIRECT(\"c\" & (VLOOKUP(Switch!$D$31,$F$2:$G$43,2,FALSE)+ROW()-2))=Switch!$D$31,INDIRECT(\"a\" & (VLOOKUP(Switch!$D$31,$F$2:$G$43,2,FALSE)+ROW()-2)),\"\")","v":{"$error":"#N/A"}},{"$f":"IF(INDIRECT(\"c\" & (VLOOKUP(Switch!$D$32,$F$2:$G$43,2,FALSE)+ROW()-2))=Switch!$D$32,INDIRECT(\"a\" & (VLOOKUP(Switch!$D$32,$F$2:$G$43,2,FALSE)+ROW()-2)),\"\")","v":{"$error":"#N/A"}},{"$f":"IF(INDIRECT(\"c\" & (VLOOKUP(Switch!$D$33,$F$2:$G$43,2,FALSE)+ROW()-2))=Switch!$D$33,INDIRECT(\"a\" & (VLOOKUP(Switch!$D$33,$F$2:$G$43,2,FALSE)+ROW()-2)),\"\")","v":{"$error":"#N/A"}},{"$f":"IF(INDIRECT(\"c\" & (VLOOKUP(Switch!$D$34,$F$2:$G$43,2,FALSE)+ROW()-2))=Switch!$D$34,INDIRECT(\"a\" & (VLOOKUP(Switch!$D$34,$F$2:$G$43,2,FALSE)+ROW()-2)),\"\")","v":{"$error":"#N/A"}},{"$f":"IF(INDIRECT(\"c\" & (VLOOKUP(Switch!$D$35,$F$2:$G$43,2,FALSE)+ROW()-2))=Switch!$D$35,INDIRECT(\"a\" & (VLOOKUP(Switch!$D$35,$F$2:$G$43,2,FALSE)+ROW()-2)),\"\")","v":{"$error":"#N/A"}},{"$f":"IF(INDIRECT(\"c\" & (VLOOKUP(Switch!$D$36,$F$2:$G$43,2,FALSE)+ROW()-2))=Switch!$D$36,INDIRECT(\"a\" & (VLOOKUP(Switch!$D$36,$F$2:$G$43,2,FALSE)+ROW()-2)),\"\")","v":{"$error":"#N/A"}},{"$f":"IF(INDIRECT(\"c\" & (VLOOKUP(Switch!$D$37,$F$2:$G$43,2,FALSE)+ROW()-2))=Switch!$D$37,INDIRECT(\"a\" & (VLOOKUP(Switch!$D$37,$F$2:$G$43,2,FALSE)+ROW()-2)),\"\")","v":{"$error":"#N/A"}},{"$f":"IF(INDIRECT(\"c\" & (VLOOKUP(Switch!$D$38,$F$2:$G$43,2,FALSE)+ROW()-2))=Switch!$D$38,INDIRECT(\"a\" & (VLOOKUP(Switch!$D$38,$F$2:$G$43,2,FALSE)+ROW()-2)),\"\")","v":{"$error":"#N/A"}},{"$f":"IF(INDIRECT(\"c\" & (VLOOKUP(Switch!$D$39,$F$2:$G$43,2,FALSE)+ROW()-2))=Switch!$D$39,INDIRECT(\"a\" & (VLOOKUP(Switch!$D$39,$F$2:$G$43,2,FALSE)+ROW()-2)),\"\")","v":{"$error":"#N/A"}},{"$f":"IF(INDIRECT(\"c\" & (VLOOKUP(Switch!$D$40,$F$2:$G$43,2,FALSE)+ROW()-2))=Switch!$D$40,INDIRECT(\"a\" & (VLOOKUP(Switch!$D$40,$F$2:$G$43,2,FALSE)+ROW()-2)),\"\")","v":{"$error":"#N/A"}},{"$f":"IF(INDIRECT(\"c\" & (VLOOKUP(Switch!$D$52,$F$2:$G$43,2,FALSE)+ROW()-2))=Switch!$D$52,INDIRECT(\"a\" & (VLOOKUP(Switch!$D$52,$F$2:$G$43,2,FALSE)+ROW()-2)),\"\")","v":{"$error":"#N/A"}},{"$f":"IF(INDIRECT(\"c\" & (VLOOKUP(Switch!$D$53,$F$2:$G$43,2,FALSE)+ROW()-2))=Switch!$D$53,INDIRECT(\"a\" & (VLOOKUP(Switch!$D$53,$F$2:$G$43,2,FALSE)+ROW()-2)),\"\")","v":{"$error":"#N/A"}},{"$f":"IF(INDIRECT(\"c\" & (VLOOKUP(Switch!$D$54,$F$2:$G$43,2,FALSE)+ROW()-2))=Switch!$D$54,INDIRECT(\"a\" & (VLOOKUP(Switch!$D$54,$F$2:$G$43,2,FALSE)+ROW()-2)),\"\")","v":{"$error":"#N/A"}},{"$f":"IF(INDIRECT(\"c\" & (VLOOKUP(Switch!$D$55,$F$2:$G$43,2,FALSE)+ROW()-2))=Switch!$D$55,INDIRECT(\"a\" & (VLOOKUP(Switch!$D$55,$F$2:$G$43,2,FALSE)+ROW()-2)),\"\")","v":{"$error":"#N/A"}},{"$f":"IF(INDIRECT(\"c\" & (VLOOKUP(Switch!$D$56,$F$2:$G$43,2,FALSE)+ROW()-2))=Switch!$D$56,INDIRECT(\"a\" & (VLOOKUP(Switch!$D$56,$F$2:$G$43,2,FALSE)+ROW()-2)),\"\")","v":{"$error":"#N/A"}},{"$f":"IF(INDIRECT(\"c\" & (VLOOKUP(Switch!$D$57,$F$2:$G$43,2,FALSE)+ROW()-2))=Switch!$D$57,INDIRECT(\"a\" & (VLOOKUP(Switch!$D$57,$F$2:$G$43,2,FALSE)+ROW()-2)),\"\")","v":{"$error":"#N/A"}},{"$f":"IF(INDIRECT(\"c\" & (VLOOKUP(Switch!$D$58,$F$2:$G$43,2,FALSE)+ROW()-2))=Switch!$D$58,INDIRECT(\"a\" & (VLOOKUP(Switch!$D$58,$F$2:$G$43,2,FALSE)+ROW()-2)),\"\")","v":{"$error":"#N/A"}},{"$f":"IF(INDIRECT(\"c\" & (VLOOKUP(Switch!$D$59,$F$2:$G$43,2,FALSE)+ROW()-2))=Switch!$D$59,INDIRECT(\"a\" & (VLOOKUP(Switch!$D$59,$F$2:$G$43,2,FALSE)+ROW()-2)),\"\")","v":{"$error":"#N/A"}},{"$f":"IF(INDIRECT(\"c\" & (VLOOKUP(Switch!$D$60,$F$2:$G$43,2,FALSE)+ROW()-2))=Switch!$D$60,INDIRECT(\"a\" & (VLOOKUP(Switch!$D$60,$F$2:$G$43,2,FALSE)+ROW()-2)),\"\")","v":{"$error":"#N/A"}},{"$f":"IF(INDIRECT(\"c\" & (VLOOKUP(Switch!$D$61,$F$2:$G$43,2,FALSE)+ROW()-2))=Switch!$D$61,INDIRECT(\"a\" & (VLOOKUP(Switch!$D$61,$F$2:$G$43,2,FALSE)+ROW()-2)),\"\")","v":{"$error":"#N/A"}},{"$f":"IF(INDIRECT(\"c\" & (VLOOKUP(Switch!$D$62,$F$2:$G$43,2,FALSE)+ROW()-2))=Switch!$D$62,INDIRECT(\"a\" & (VLOOKUP(Switch!$D$62,$F$2:$G$43,2,FALSE)+ROW()-2)),\"\")","v":{"$error":"#N/A"}},{"$f":"IF(INDIRECT(\"c\" & (VLOOKUP(Switch!$D$63,$F$2:$G$43,2,FALSE)+ROW()-2))=Switch!$D$63,INDIRECT(\"a\" & (VLOOKUP(Switch!$D$63,$F$2:$G$43,2,FALSE)+ROW()-2)),\"\")","v":{"$error":"#N/A"}},{"$f":"IF(INDIRECT(\"c\" & (VLOOKUP(Switch!$D$64,$F$2:$G$43,2,FALSE)+ROW()-2))=Switch!$D$64,INDIRECT(\"a\" & (VLOOKUP(Switch!$D$64,$F$2:$G$43,2,FALSE)+ROW()-2)),\"\")","v":{"$error":"#N/A"}},{"$f":"IF(INDIRECT(\"c\" & (VLOOKUP(Switch!$D$65,$F$2:$G$43,2,FALSE)+ROW()-2))=Switch!$D$65,INDIRECT(\"a\" & (VLOOKUP(Switch!$D$65,$F$2:$G$43,2,FALSE)+ROW()-2)),\"\")","v":{"$error":"#N/A"}},{"$f":"IF(INDIRECT(\"c\" & (VLOOKUP(Switch!$D$66,$F$2:$G$43,2,FALSE)+ROW()-2))=Switch!$D$66,INDIRECT(\"a\" & (VLOOKUP(Switch!$D$66,$F$2:$G$43,2,FALSE)+ROW()-2)),\"\")","v":{"$error":"#N/A"}}]
[null,null,null,{"$f":"ROW()","v":634},null,null,{"$f":"VLOOKUP(F634,$C$2:$D$637,2,FALSE)","v":{"$error":"#N/A"}},{"$f":"IF(INDIRECT(\"c\" & (VLOOKUP(Switch!$D$26,$F$2:$G$43,2,FALSE)+ROW()-2))=Switch!$D$26,INDIRECT(\"a\" & (VLOOKUP(Switch!$D$26,$F$2:$G$43,2,FALSE)+ROW()-2)),\"\")","v":{"$error":"#N/A"}},{"$f":"IF(INDIRECT(\"c\" & (VLOOKUP(Switch!$D$27,$F$2:$G$43,2,FALSE)+ROW()-2))=Switch!$D$27,INDIRECT(\"a\" & (VLOOKUP(Switch!$D$27,$F$2:$G$43,2,FALSE)+ROW()-2)),\"\")","v":{"$error":"#N/A"}},{"$f":"IF(INDIRECT(\"c\" & (VLOOKUP(Switch!$D$28,$F$2:$G$43,2,FALSE)+ROW()-2))=Switch!$D$28,INDIRECT(\"a\" & (VLOOKUP(Switch!$D$28,$F$2:$G$43,2,FALSE)+ROW()-2)),\"\")","v":{"$error":"#N/A"}},{"$f":"IF(INDIRECT(\"c\" & (VLOOKUP(Switch!$D$29,$F$2:$G$43,2,FALSE)+ROW()-2))=Switch!$D$29,INDIRECT(\"a\" & (VLOOKUP(Switch!$D$29,$F$2:$G$43,2,FALSE)+ROW()-2)),\"\")","v":{"$error":"#N/A"}},{"$f":"IF(INDIRECT(\"c\" & (VLOOKUP(Switch!$D$30,$F$2:$G$43,2,FALSE)+ROW()-2))=Switch!$D$30,INDIRECT(\"a\" & (VLOOKUP(Switch!$D$30,$F$2:$G$43,2,FALSE)+ROW()-2)),\"\")","v":{"$error":"#N/A"}},{"$f":"IF(INDIRECT(\"c\" & (VLOOKUP(Switch!$D$31,$F$2:$G$43,2,FALSE)+ROW()-2))=Switch!$D$31,INDIRECT(\"a\" & (VLOOKUP(Switch!$D$31,$F$2:$G$43,2,FALSE)+ROW()-2)),\"\")","v":{"$error":"#N/A"}},{"$f":"IF(INDIRECT(\"c\" & (VLOOKUP(Switch!$D$32,$F$2:$G$43,2,FALSE)+ROW()-2))=Switch!$D$32,INDIRECT(\"a\" & (VLOOKUP(Switch!$D$32,$F$2:$G$43,2,FALSE)+ROW()-2)),\"\")","v":{"$error":"#N/A"}},{"$f":"IF(INDIRECT(\"c\" & (VLOOKUP(Switch!$D$33,$F$2:$G$43,2,FALSE)+ROW()-2))=Switch!$D$33,INDIRECT(\"a\" & (VLOOKUP(Switch!$D$33,$F$2:$G$43,2,FALSE)+ROW()-2)),\"\")","v":{"$error":"#N/A"}},{"$f":"IF(INDIRECT(\"c\" & (VLOOKUP(Switch!$D$34,$F$2:$G$43,2,FALSE)+ROW()-2))=Switch!$D$34,INDIRECT(\"a\" & (VLOOKUP(Switch!$D$34,$F$2:$G$43,2,FALSE)+ROW()-2)),\"\")","v":{"$error":"#N/A"}},{"$f":"IF(INDIRECT(\"c\" & (VLOOKUP(Switch!$D$35,$F$2:$G$43,2,FALSE)+ROW()-2))=Switch!$D$35,INDIRECT(\"a\" & (VLOOKUP(Switch!$D$35,$F$2:$G$43,2,FALSE)+ROW()-2)),\"\")","v":{"$error":"#N/A"}},{"$f":"IF(INDIRECT(\"c\" & (VLOOKUP(Switch!$D$36,$F$2:$G$43,2,FALSE)+ROW()-2))=Switch!$D$36,INDIRECT(\"a\" & (VLOOKUP(Switch!$D$36,$F$2:$G$43,2,FALSE)+ROW()-2)),\"\")","v":{"$error":"#N/A"}},{"$f":"IF(INDIRECT(\"c\" & (VLOOKUP(Switch!$D$37,$F$2:$G$43,2,FALSE)+ROW()-2))=Switch!$D$37,INDIRECT(\"a\" & (VLOOKUP(Switch!$D$37,$F$2:$G$43,2,FALSE)+ROW()-2)),\"\")","v":{"$error":"#N/A"}},{"$f":"IF(INDIRECT(\"c\" & (VLOOKUP(Switch!$D$38,$F$2:$G$43,2,FALSE)+ROW()-2))=Switch!$D$38,INDIRECT(\"a\" & (VLOOKUP(Switch!$D$38,$F$2:$G$43,2,FALSE)+ROW()-2)),\"\")","v":{"$error":"#N/A"}},{"$f":"IF(INDIRECT(\"c\" & (VLOOKUP(Switch!$D$39,$F$2:$G$43,2,FALSE)+ROW()-2))=Switch!$D$39,INDIRECT(\"a\" & (VLOOKUP(Switch!$D$39,$F$2:$G$43,2,FALSE)+ROW()-2)),\"\")","v":{"$error":"#N/A"}},{"$f":"IF(INDIRECT(\"c\" & (VLOOKUP(Switch!$D$40,$F$2:$G$43,2,FALSE)+ROW()-2))=Switch!$D$40,INDIRECT(\"a\" & (VLOOKUP(Switch!$D$40,$F$2:$G$43,2,FALSE)+ROW()-2)),\"\")","v":{"$error":"#N/A"}},{"$f":"IF(INDIRECT(\"c\" & (VLOOKUP(Switch!$D$52,$F$2:$G$43,2,FALSE)+ROW()-2))=Switch!$D$52,INDIRECT(\"a\" & (VLOOKUP(Switch!$D$52,$F$2:$G$43,2,FALSE)+ROW()-2)),\"\")","v":{"$error":"#N/A"}},{"$f":"IF(INDIRECT(\"c\" & (VLOOKUP(Switch!$D$53,$F$2:$G$43,2,FALSE)+ROW()-2))=Switch!$D$53,INDIRECT(\"a\" & (VLOOKUP(Switch!$D$53,$F$2:$G$43,2,FALSE)+ROW()-2)),\"\")","v":{"$error":"#N/A"}},{"$f":"IF(INDIRECT(\"c\" & (VLOOKUP(Switch!$D$54,$F$2:$G$43,2,FALSE)+ROW()-2))=Switch!$D$54,INDIRECT(\"a\" & (VLOOKUP(Switch!$D$54,$F$2:$G$43,2,FALSE)+ROW()-2)),\"\")","v":{"$error":"#N/A"}},{"$f":"IF(INDIRECT(\"c\" & (VLOOKUP(Switch!$D$55,$F$2:$G$43,2,FALSE)+ROW()-2))=Switch!$D$55,INDIRECT(\"a\" & (VLOOKUP(Switch!$D$55,$F$2:$G$43,2,FALSE)+ROW()-2)),\"\")","v":{"$error":"#N/A"}},{"$f":"IF(INDIRECT(\"c\" & (VLOOKUP(Switch!$D$56,$F$2:$G$43,2,FALSE)+ROW()-2))=Switch!$D$56,INDIRECT(\"a\" & (VLOOKUP(Switch!$D$56,$F$2:$G$43,2,FALSE)+ROW()-2)),\"\")","v":{"$error":"#N/A"}},{"$f":"IF(INDIRECT(\"c\" & (VLOOKUP(Switch!$D$57,$F$2:$G$43,2,FALSE)+ROW()-2))=Switch!$D$57,INDIRECT(\"a\" & (VLOOKUP(Switch!$D$57,$F$2:$G$43,2,FALSE)+ROW()-2)),\"\")","v":{"$error":"#N/A"}},{"$f":"IF(INDIRECT(\"c\" & (VLOOKUP(Switch!$D$58,$F$2:$G$43,2,FALSE)+ROW()-2))=Switch!$D$58,INDIRECT(\"a\" & (VLOOKUP(Switch!$D$58,$F$2:$G$43,2,FALSE)+ROW()-2)),\"\")","v":{"$error":"#N/A"}},{"$f":"IF(INDIRECT(\"c\" & (VLOOKUP(Switch!$D$59,$F$2:$G$43,2,FALSE)+ROW()-2))=Switch!$D$59,INDIRECT(\"a\" & (VLOOKUP(Switch!$D$59,$F$2:$G$43,2,FALSE)+ROW()-2)),\"\")","v":{"$error":"#N/A"}},{"$f":"IF(INDIRECT(\"c\" & (VLOOKUP(Switch!$D$60,$F$2:$G$43,2,FALSE)+ROW()-2))=Switch!$D$60,INDIRECT(\"a\" & (VLOOKUP(Switch!$D$60,$F$2:$G$43,2,FALSE)+ROW()-2)),\"\")","v":{"$error":"#N/A"}},{"$f":"IF(INDIRECT(\"c\" & (VLOOKUP(Switch!$D$61,$F$2:$G$43,2,FALSE)+ROW()-2))=Switch!$D$61,INDIRECT(\"a\" & (VLOOKUP(Switch!$D$61,$F$2:$G$43,2,FALSE)+ROW()-2)),\"\")","v":{"$error":"#N/A"}},{"$f":"IF(INDIRECT(\"c\" & (VLOOKUP(Switch!$D$62,$F$2:$G$43,2,FALSE)+ROW()-2))=Switch!$D$62,INDIRECT(\"a\" & (VLOOKUP(Switch!$D$62,$F$2:$G$43,2,FALSE)+ROW()-2)),\"\")","v":{"$error":"#N/A"}},{"$f":"IF(INDIRECT(\"c\" & (VLOOKUP(Switch!$D$63,$F$2:$G$43,2,FALSE)+ROW()-2))=Switch!$D$63,INDIRECT(\"a\" & (VLOOKUP(Switch!$D$63,$F$2:$G$43,2,FALSE)+ROW()-2)),\"\")","v":{"$error":"#N/A"}},{"$f":"IF(INDIRECT(\"c\" & (VLOOKUP(Switch!$D$64,$F$2:$G$43,2,FALSE)+ROW()-2))=Switch!$D$64,INDIRECT(\"a\" & (VLOOKUP(Switch!$D$64,$F$2:$G$43,2,FALSE)+ROW()-2)),\"\")","v":{"$error":"#N/A"}},{"$f":"IF(INDIRECT(\"c\" & (VLOOKUP(Switch!$D$65,$F$2:$G$43,2,FALSE)+ROW()-2))=Switch!$D$65,INDIRECT(\"a\" & (VLOOKUP(Switch!$D$65,$F$2:$G$43,2,FALSE)+ROW()-2)),\"\")","v":{"$error":"#N/A"}},{"$f":"IF(INDIRECT(\"c\" & (VLOOKUP(Switch!$D$66,$F$2:$G$43,2,FALSE)+ROW()-2))=Switch!$D$66,INDIRECT(\"a\" & (VLOOKUP(Switch!$D$66,$F$2:$G$43,2,FALSE)+ROW()-2)),\"\")","v":{"$error":"#N/A"}}]
[null,null,null,{"$f":"ROW()","v":635},null,null,{"$f":"VLOOKUP(F635,$C$2:$D$637,2,FALSE)","v":{"$error":"#N/A"}},{"$f":"IF(INDIRECT(\"c\" & (VLOOKUP(Switch!$D$26,$F$2:$G$43,2,FALSE)+ROW()-2))=Switch!$D$26,INDIRECT(\"a\" & (VLOOKUP(Switch!$D$26,$F$2:$G$43,2,FALSE)+ROW()-2)),\"\")","v":{"$error":"#N/A"}},{"$f":"IF(INDIRECT(\"c\" & (VLOOKUP(Switch!$D$27,$F$2:$G$43,2,FALSE)+ROW()-2))=Switch!$D$27,INDIRECT(\"a\" & (VLOOKUP(Switch!$D$27,$F$2:$G$43,2,FALSE)+ROW()-2)),\"\")","v":{"$error":"#N/A"}},{"$f":"IF(INDIRECT(\"c\" & (VLOOKUP(Switch!$D$28,$F$2:$G$43,2,FALSE)+ROW()-2))=Switch!$D$28,INDIRECT(\"a\" & (VLOOKUP(Switch!$D$28,$F$2:$G$43,2,FALSE)+ROW()-2)),\"\")","v":{"$error":"#N/A"}},{"$f":"IF(INDIRECT(\"c\" & (VLOOKUP(Switch!$D$29,$F$2:$G$43,2,FALSE)+ROW()-2))=Switch!$D$29,INDIRECT(\"a\" & (VLOOKUP(Switch!$D$29,$F$2:$G$43,2,FALSE)+ROW()-2)),\"\")","v":{"$error":"#N/A"}},{"$f":"IF(INDIRECT(\"c\" & (VLOOKUP(Switch!$D$30,$F$2:$G$43,2,FALSE)+ROW()-2))=Switch!$D$30,INDIRECT(\"a\" & (VLOOKUP(Switch!$D$30,$F$2:$G$43,2,FALSE)+ROW()-2)),\"\")","v":{"$error":"#N/A"}},{"$f":"IF(INDIRECT(\"c\" & (VLOOKUP(Switch!$D$31,$F$2:$G$43,2,FALSE)+ROW()-2))=Switch!$D$31,INDIRECT(\"a\" & (VLOOKUP(Switch!$D$31,$F$2:$G$43,2,FALSE)+ROW()-2)),\"\")","v":{"$error":"#N/A"}},{"$f":"IF(INDIRECT(\"c\" & (VLOOKUP(Switch!$D$32,$F$2:$G$43,2,FALSE)+ROW()-2))=Switch!$D$32,INDIRECT(\"a\" & (VLOOKUP(Switch!$D$32,$F$2:$G$43,2,FALSE)+ROW()-2)),\"\")","v":{"$error":"#N/A"}},{"$f":"IF(INDIRECT(\"c\" & (VLOOKUP(Switch!$D$33,$F$2:$G$43,2,FALSE)+ROW()-2))=Switch!$D$33,INDIRECT(\"a\" & (VLOOKUP(Switch!$D$33,$F$2:$G$43,2,FALSE)+ROW()-2)),\"\")","v":{"$error":"#N/A"}},{"$f":"IF(INDIRECT(\"c\" & (VLOOKUP(Switch!$D$34,$F$2:$G$43,2,FALSE)+ROW()-2))=Switch!$D$34,INDIRECT(\"a\" & (VLOOKUP(Switch!$D$34,$F$2:$G$43,2,FALSE)+ROW()-2)),\"\")","v":{"$error":"#N/A"}},{"$f":"IF(INDIRECT(\"c\" & (VLOOKUP(Switch!$D$35,$F$2:$G$43,2,FALSE)+ROW()-2))=Switch!$D$35,INDIRECT(\"a\" & (VLOOKUP(Switch!$D$35,$F$2:$G$43,2,FALSE)+ROW()-2)),\"\")","v":{"$error":"#N/A"}},{"$f":"IF(INDIRECT(\"c\" & (VLOOKUP(Switch!$D$36,$F$2:$G$43,2,FALSE)+ROW()-2))=Switch!$D$36,INDIRECT(\"a\" & (VLOOKUP(Switch!$D$36,$F$2:$G$43,2,FALSE)+ROW()-2)),\"\")","v":{"$error":"#N/A"}},{"$f":"IF(INDIRECT(\"c\" & (VLOOKUP(Switch!$D$37,$F$2:$G$43,2,FALSE)+ROW()-2))=Switch!$D$37,INDIRECT(\"a\" & (VLOOKUP(Switch!$D$37,$F$2:$G$43,2,FALSE)+ROW()-2)),\"\")","v":{"$error":"#N/A"}},{"$f":"IF(INDIRECT(\"c\" & (VLOOKUP(Switch!$D$38,$F$2:$G$43,2,FALSE)+ROW()-2))=Switch!$D$38,INDIRECT(\"a\" & (VLOOKUP(Switch!$D$38,$F$2:$G$43,2,FALSE)+ROW()-2)),\"\")","v":{"$error":"#N/A"}},{"$f":"IF(INDIRECT(\"c\" & (VLOOKUP(Switch!$D$39,$F$2:$G$43,2,FALSE)+ROW()-2))=Switch!$D$39,INDIRECT(\"a\" & (VLOOKUP(Switch!$D$39,$F$2:$G$43,2,FALSE)+ROW()-2)),\"\")","v":{"$error":"#N/A"}},{"$f":"IF(INDIRECT(\"c\" & (VLOOKUP(Switch!$D$40,$F$2:$G$43,2,FALSE)+ROW()-2))=Switch!$D$40,INDIRECT(\"a\" & (VLOOKUP(Switch!$D$40,$F$2:$G$43,2,FALSE)+ROW()-2)),\"\")","v":{"$error":"#N/A"}},{"$f":"IF(INDIRECT(\"c\" & (VLOOKUP(Switch!$D$52,$F$2:$G$43,2,FALSE)+ROW()-2))=Switch!$D$52,INDIRECT(\"a\" & (VLOOKUP(Switch!$D$52,$F$2:$G$43,2,FALSE)+ROW()-2)),\"\")","v":{"$error":"#N/A"}},{"$f":"IF(INDIRECT(\"c\" & (VLOOKUP(Switch!$D$53,$F$2:$G$43,2,FALSE)+ROW()-2))=Switch!$D$53,INDIRECT(\"a\" & (VLOOKUP(Switch!$D$53,$F$2:$G$43,2,FALSE)+ROW()-2)),\"\")","v":{"$error":"#N/A"}},{"$f":"IF(INDIRECT(\"c\" & (VLOOKUP(Switch!$D$54,$F$2:$G$43,2,FALSE)+ROW()-2))=Switch!$D$54,INDIRECT(\"a\" & (VLOOKUP(Switch!$D$54,$F$2:$G$43,2,FALSE)+ROW()-2)),\"\")","v":{"$error":"#N/A"}},{"$f":"IF(INDIRECT(\"c\" & (VLOOKUP(Switch!$D$55,$F$2:$G$43,2,FALSE)+ROW()-2))=Switch!$D$55,INDIRECT(\"a\" & (VLOOKUP(Switch!$D$55,$F$2:$G$43,2,FALSE)+ROW()-2)),\"\")","v":{"$error":"#N/A"}},{"$f":"IF(INDIRECT(\"c\" & (VLOOKUP(Switch!$D$56,$F$2:$G$43,2,FALSE)+ROW()-2))=Switch!$D$56,INDIRECT(\"a\" & (VLOOKUP(Switch!$D$56,$F$2:$G$43,2,FALSE)+ROW()-2)),\"\")","v":{"$error":"#N/A"}},{"$f":"IF(INDIRECT(\"c\" & (VLOOKUP(Switch!$D$57,$F$2:$G$43,2,FALSE)+ROW()-2))=Switch!$D$57,INDIRECT(\"a\" & (VLOOKUP(Switch!$D$57,$F$2:$G$43,2,FALSE)+ROW()-2)),\"\")","v":{"$error":"#N/A"}},{"$f":"IF(INDIRECT(\"c\" & (VLOOKUP(Switch!$D$58,$F$2:$G$43,2,FALSE)+ROW()-2))=Switch!$D$58,INDIRECT(\"a\" & (VLOOKUP(Switch!$D$58,$F$2:$G$43,2,FALSE)+ROW()-2)),\"\")","v":{"$error":"#N/A"}},{"$f":"IF(INDIRECT(\"c\" & (VLOOKUP(Switch!$D$59,$F$2:$G$43,2,FALSE)+ROW()-2))=Switch!$D$59,INDIRECT(\"a\" & (VLOOKUP(Switch!$D$59,$F$2:$G$43,2,FALSE)+ROW()-2)),\"\")","v":{"$error":"#N/A"}},{"$f":"IF(INDIRECT(\"c\" & (VLOOKUP(Switch!$D$60,$F$2:$G$43,2,FALSE)+ROW()-2))=Switch!$D$60,INDIRECT(\"a\" & (VLOOKUP(Switch!$D$60,$F$2:$G$43,2,FALSE)+ROW()-2)),\"\")","v":{"$error":"#N/A"}},{"$f":"IF(INDIRECT(\"c\" & (VLOOKUP(Switch!$D$61,$F$2:$G$43,2,FALSE)+ROW()-2))=Switch!$D$61,INDIRECT(\"a\" & (VLOOKUP(Switch!$D$61,$F$2:$G$43,2,FALSE)+ROW()-2)),\"\")","v":{"$error":"#N/A"}},{"$f":"IF(INDIRECT(\"c\" & (VLOOKUP(Switch!$D$62,$F$2:$G$43,2,FALSE)+ROW()-2))=Switch!$D$62,INDIRECT(\"a\" & (VLOOKUP(Switch!$D$62,$F$2:$G$43,2,FALSE)+ROW()-2)),\"\")","v":{"$error":"#N/A"}},{"$f":"IF(INDIRECT(\"c\" & (VLOOKUP(Switch!$D$63,$F$2:$G$43,2,FALSE)+ROW()-2))=Switch!$D$63,INDIRECT(\"a\" & (VLOOKUP(Switch!$D$63,$F$2:$G$43,2,FALSE)+ROW()-2)),\"\")","v":{"$error":"#N/A"}},{"$f":"IF(INDIRECT(\"c\" & (VLOOKUP(Switch!$D$64,$F$2:$G$43,2,FALSE)+ROW()-2))=Switch!$D$64,INDIRECT(\"a\" & (VLOOKUP(Switch!$D$64,$F$2:$G$43,2,FALSE)+ROW()-2)),\"\")","v":{"$error":"#N/A"}},{"$f":"IF(INDIRECT(\"c\" & (VLOOKUP(Switch!$D$65,$F$2:$G$43,2,FALSE)+ROW()-2))=Switch!$D$65,INDIRECT(\"a\" & (VLOOKUP(Switch!$D$65,$F$2:$G$43,2,FALSE)+ROW()-2)),\"\")","v":{"$error":"#N/A"}},{"$f":"IF(INDIRECT(\"c\" & (VLOOKUP(Switch!$D$66,$F$2:$G$43,2,FALSE)+ROW()-2))=Switch!$D$66,INDIRECT(\"a\" & (VLOOKUP(Switch!$D$66,$F$2:$G$43,2,FALSE)+ROW()-2)),\"\")","v":{"$error":"#N/A"}}]
[null,null,null,{"$f":"ROW()","v":636},null,null,{"$f":"VLOOKUP(F636,$C$2:$D$637,2,FALSE)","v":{"$error":"#N/A"}},{"$f":"IF(INDIRECT(\"c\" & (VLOOKUP(Switch!$D$26,$F$2:$G$43,2,FALSE)+ROW()-2))=Switch!$D$26,INDIRECT(\"a\" & (VLOOKUP(Switch!$D$26,$F$2:$G$43,2,FALSE)+ROW()-2)),\"\")","v":{"$error":"#N/A"}},{"$f":"IF(INDIRECT(\"c\" & (VLOOKUP(Switch!$D$27,$F$2:$G$43,2,FALSE)+ROW()-2))=Switch!$D$27,INDIRECT(\"a\" & (VLOOKUP(Switch!$D$27,$F$2:$G$43,2,FALSE)+ROW()-2)),\"\")","v":{"$error":"#N/A"}},{"$f":"IF(INDIRECT(\"c\" & (VLOOKUP(Switch!$D$28,$F$2:$G$43,2,FALSE)+ROW()-2))=Switch!$D$28,INDIRECT(\"a\" & (VLOOKUP(Switch!$D$28,$F$2:$G$43,2,FALSE)+ROW()-2)),\"\")","v":{"$error":"#N/A"}},{"$f":"IF(INDIRECT(\"c\" & (VLOOKUP(Switch!$D$29,$F$2:$G$43,2,FALSE)+ROW()-2))=Switch!$D$29,INDIRECT(\"a\" & (VLOOKUP(Switch!$D$29,$F$2:$G$43,2,FALSE)+ROW()-2)),\"\")","v":{"$error":"#N/A"}},{"$f":"IF(INDIRECT(\"c\" & (VLOOKUP(Switch!$D$30,$F$2:$G$43,2,FALSE)+ROW()-2))=Switch!$D$30,INDIRECT(\"a\" & (VLOOKUP(Switch!$D$30,$F$2:$G$43,2,FALSE)+ROW()-2)),\"\")","v":{"$error":"#N/A"}},{"$f":"IF(INDIRECT(\"c\" & (VLOOKUP(Switch!$D$31,$F$2:$G$43,2,FALSE)+ROW()-2))=Switch!$D$31,INDIRECT(\"a\" & (VLOOKUP(Switch!$D$31,$F$2:$G$43,2,FALSE)+ROW()-2)),\"\")","v":{"$error":"#N/A"}},{"$f":"IF(INDIRECT(\"c\" & (VLOOKUP(Switch!$D$32,$F$2:$G$43,2,FALSE)+ROW()-2))=Switch!$D$32,INDIRECT(\"a\" & (VLOOKUP(Switch!$D$32,$F$2:$G$43,2,FALSE)+ROW()-2)),\"\")","v":{"$error":"#N/A"}},{"$f":"IF(INDIRECT(\"c\" & (VLOOKUP(Switch!$D$33,$F$2:$G$43,2,FALSE)+ROW()-2))=Switch!$D$33,INDIRECT(\"a\" & (VLOOKUP(Switch!$D$33,$F$2:$G$43,2,FALSE)+ROW()-2)),\"\")","v":{"$error":"#N/A"}},{"$f":"IF(INDIRECT(\"c\" & (VLOOKUP(Switch!$D$34,$F$2:$G$43,2,FALSE)+ROW()-2))=Switch!$D$34,INDIRECT(\"a\" & (VLOOKUP(Switch!$D$34,$F$2:$G$43,2,FALSE)+ROW()-2)),\"\")","v":{"$error":"#N/A"}},{"$f":"IF(INDIRECT(\"c\" & (VLOOKUP(Switch!$D$35,$F$2:$G$43,2,FALSE)+ROW()-2))=Switch!$D$35,INDIRECT(\"a\" & (VLOOKUP(Switch!$D$35,$F$2:$G$43,2,FALSE)+ROW()-2)),\"\")","v":{"$error":"#N/A"}},{"$f":"IF(INDIRECT(\"c\" & (VLOOKUP(Switch!$D$36,$F$2:$G$43,2,FALSE)+ROW()-2))=Switch!$D$36,INDIRECT(\"a\" & (VLOOKUP(Switch!$D$36,$F$2:$G$43,2,FALSE)+ROW()-2)),\"\")","v":{"$error":"#N/A"}},{"$f":"IF(INDIRECT(\"c\" & (VLOOKUP(Switch!$D$37,$F$2:$G$43,2,FALSE)+ROW()-2))=Switch!$D$37,INDIRECT(\"a\" & (VLOOKUP(Switch!$D$37,$F$2:$G$43,2,FALSE)+ROW()-2)),\"\")","v":{"$error":"#N/A"}},{"$f":"IF(INDIRECT(\"c\" & (VLOOKUP(Switch!$D$38,$F$2:$G$43,2,FALSE)+ROW()-2))=Switch!$D$38,INDIRECT(\"a\" & (VLOOKUP(Switch!$D$38,$F$2:$G$43,2,FALSE)+ROW()-2)),\"\")","v":{"$error":"#N/A"}},{"$f":"IF(INDIRECT(\"c\" & (VLOOKUP(Switch!$D$39,$F$2:$G$43,2,FALSE)+ROW()-2))=Switch!$D$39,INDIRECT(\"a\" & (VLOOKUP(Switch!$D$39,$F$2:$G$43,2,FALSE)+ROW()-2)),\"\")","v":{"$error":"#N/A"}},{"$f":"IF(INDIRECT(\"c\" & (VLOOKUP(Switch!$D$40,$F$2:$G$43,2,FALSE)+ROW()-2))=Switch!$D$40,INDIRECT(\"a\" & (VLOOKUP(Switch!$D$40,$F$2:$G$43,2,FALSE)+ROW()-2)),\"\")","v":{"$error":"#N/A"}},{"$f":"IF(INDIRECT(\"c\" & (VLOOKUP(Switch!$D$52,$F$2:$G$43,2,FALSE)+ROW()-2))=Switch!$D$52,INDIRECT(\"a\" & (VLOOKUP(Switch!$D$52,$F$2:$G$43,2,FALSE)+ROW()-2)),\"\")","v":{"$error":"#N/A"}},{"$f":"IF(INDIRECT(\"c\" & (VLOOKUP(Switch!$D$53,$F$2:$G$43,2,FALSE)+ROW()-2))=Switch!$D$53,INDIRECT(\"a\" & (VLOOKUP(Switch!$D$53,$F$2:$G$43,2,FALSE)+ROW()-2)),\"\")","v":{"$error":"#N/A"}},{"$f":"IF(INDIRECT(\"c\" & (VLOOKUP(Switch!$D$54,$F$2:$G$43,2,FALSE)+ROW()-2))=Switch!$D$54,INDIRECT(\"a\" & (VLOOKUP(Switch!$D$54,$F$2:$G$43,2,FALSE)+ROW()-2)),\"\")","v":{"$error":"#N/A"}},{"$f":"IF(INDIRECT(\"c\" & (VLOOKUP(Switch!$D$55,$F$2:$G$43,2,FALSE)+ROW()-2))=Switch!$D$55,INDIRECT(\"a\" & (VLOOKUP(Switch!$D$55,$F$2:$G$43,2,FALSE)+ROW()-2)),\"\")","v":{"$error":"#N/A"}},{"$f":"IF(INDIRECT(\"c\" & (VLOOKUP(Switch!$D$56,$F$2:$G$43,2,FALSE)+ROW()-2))=Switch!$D$56,INDIRECT(\"a\" & (VLOOKUP(Switch!$D$56,$F$2:$G$43,2,FALSE)+ROW()-2)),\"\")","v":{"$error":"#N/A"}},{"$f":"IF(INDIRECT(\"c\" & (VLOOKUP(Switch!$D$57,$F$2:$G$43,2,FALSE)+ROW()-2))=Switch!$D$57,INDIRECT(\"a\" & (VLOOKUP(Switch!$D$57,$F$2:$G$43,2,FALSE)+ROW()-2)),\"\")","v":{"$error":"#N/A"}},{"$f":"IF(INDIRECT(\"c\" & (VLOOKUP(Switch!$D$58,$F$2:$G$43,2,FALSE)+ROW()-2))=Switch!$D$58,INDIRECT(\"a\" & (VLOOKUP(Switch!$D$58,$F$2:$G$43,2,FALSE)+ROW()-2)),\"\")","v":{"$error":"#N/A"}},{"$f":"IF(INDIRECT(\"c\" & (VLOOKUP(Switch!$D$59,$F$2:$G$43,2,FALSE)+ROW()-2))=Switch!$D$59,INDIRECT(\"a\" & (VLOOKUP(Switch!$D$59,$F$2:$G$43,2,FALSE)+ROW()-2)),\"\")","v":{"$error":"#N/A"}},{"$f":"IF(INDIRECT(\"c\" & (VLOOKUP(Switch!$D$60,$F$2:$G$43,2,FALSE)+ROW()-2))=Switch!$D$60,INDIRECT(\"a\" & (VLOOKUP(Switch!$D$60,$F$2:$G$43,2,FALSE)+ROW()-2)),\"\")","v":{"$error":"#N/A"}},{"$f":"IF(INDIRECT(\"c\" & (VLOOKUP(Switch!$D$61,$F$2:$G$43,2,FALSE)+ROW()-2))=Switch!$D$61,INDIRECT(\"a\" & (VLOOKUP(Switch!$D$61,$F$2:$G$43,2,FALSE)+ROW()-2)),\"\")","v":{"$error":"#N/A"}},{"$f":"IF(INDIRECT(\"c\" & (VLOOKUP(Switch!$D$62,$F$2:$G$43,2,FALSE)+ROW()-2))=Switch!$D$62,INDIRECT(\"a\" & (VLOOKUP(Switch!$D$62,$F$2:$G$43,2,FALSE)+ROW()-2)),\"\")","v":{"$error":"#N/A"}},{"$f":"IF(INDIRECT(\"c\" & (VLOOKUP(Switch!$D$63,$F$2:$G$43,2,FALSE)+ROW()-2))=Switch!$D$63,INDIRECT(\"a\" & (VLOOKUP(Switch!$D$63,$F$2:$G$43,2,FALSE)+ROW()-2)),\"\")","v":{"$error":"#N/A"}},{"$f":"IF(INDIRECT(\"c\" & (VLOOKUP(Switch!$D$64,$F$2:$G$43,2,FALSE)+ROW()-2))=Switch!$D$64,INDIRECT(\"a\" & (VLOOKUP(Switch!$D$64,$F$2:$G$43,2,FALSE)+ROW()-2)),\"\")","v":{"$error":"#N/A"}},{"$f":"IF(INDIRECT(\"c\" & (VLOOKUP(Switch!$D$65,$F$2:$G$43,2,FALSE)+ROW()-2))=Switch!$D$65,INDIRECT(\"a\" & (VLOOKUP(Switch!$D$65,$F$2:$G$43,2,FALSE)+ROW()-2)),\"\")","v":{"$error":"#N/A"}},{"$f":"IF(INDIRECT(\"c\" & (VLOOKUP(Switch!$D$66,$F$2:$G$43,2,FALSE)+ROW()-2))=Switch!$D$66,INDIRECT(\"a\" & (VLOOKUP(Switch!$D$66,$F$2:$G$43,2,FALSE)+ROW()-2)),\"\")","v":{"$error":"#N/A"}}]
[null,null,null,null,null,null,{"$f":"VLOOKUP(F637,$C$2:$D$637,2,FALSE)","v":{"$error":"#N/A"}}]

{"sheet":"Sheet1","index":15,"n_rows":31,"n_cols":1,"rows_kept":31,"cut":false,"hidden":true,"merged":[]}
["Notes"]
["CGT"]
["switch form button on Transactions"]
["Test with 15 funds"]
[]
[]
["Switch to table - if value is 0 clear row"]
["rebalance + switch to table - number format to 2 decimal places"]
["1)      When selecting Manco or Fund, the drop down list should default to the first on the list"]
["1)      Can you add an option to Email from here"]
[]
["Do we want this on the proposal - instructions"]
["1)      I don’t understand the instructions part. How will this assist the client with completing the switch form?"]
["2)      What is the purpose of this table?"]
[]
["Printing:"]
["1)      The printed version is too small"]
[]
[]
["1)      Suggestion: Validation of email address"]
["2)      Make the Heading size a bit smaller so if I make the page size smaller to view everything on the same page, I can see all the info clearly"]
[]
["1)      Option to clear all info in the tool"]
[]
["1)      If I change my mind and realize I want to rebalance, how do I go back to the first page of the tool?"]
[]
["All red changes"]
["Sizing of Forms"]
[]
["Printing"]
["100% in switch/rebalance"]

{"sheet":"Money Market","index":16,"n_rows":62,"n_cols":7,"rows_kept":62,"cut":false,"hidden":true,"merged":[]}
[]
[null,"STANLIB Bank  Money Market R",null,null,null,null,{"$f":"CONCATENATE(\"FC \",B2)","v":"FC STANLIB Bank  Money Market R"}]
[null,"STANLIB Bank Institutional Money Market Fund B13",null,null,null,null,{"$f":"CONCATENATE(\"FC \",B3)","v":"FC STANLIB Bank Institutional Money Market Fund B13"}]
[null,"STANLIB Bank Money Market Fund B13",null,null,null,null,"FC STANLIB Bank Money Market Fund B13"]
[null,"STANLIB Bank Money Market Fund B14",null,null,null,null,"FC STANLIB Bank Money Market Fund B14"]
[null,"STANLIB Bank Money Market Fund B4",null,null,null,null,"FC STANLIB Bank Money Market Fund B4"]
[null,"STANLIB Bank Money Market Fund B5",null,null,null,null,"FC STANLIB Bank Money Market Fund B5"]
[null,"STANLIB Bank Money Market Fund B6",null,null,null,null,"FC STANLIB Bank Money Market Fund B6"]
[null,"STANLIB Bank Money Market R",null,null,null,null,"FC STANLIB Bank Money Market R"]
[null,"Momentum Money Market Fund",null,null,null,null,"FC Momentum Money Market Fund"]
[null,"Old Mutual Money Market Fund A2",null,null,null,null,"FC Old Mutual Money Market Fund A2"]
[null,"Old Mutual Uk Money Market Feeder Fund",null,null,null,null,"FC Old Mutual Uk Money Market Feeder Fund"]
[null,"Sanlam Money Market Fund R",null,null,null,null,"FC Sanlam Money Market Fund R"]
[]
[null,"LR STANLIB Bank  Money Market R","No CGT"]
[null,"LR STANLIB Bank Institutional Money Market Fund B13","No CGT"]
[null,"LR STANLIB Bank Money Market Fund B13","No CGT"]
[null,"LR STANLIB Bank Money Market Fund B14","No CGT"]
[null,"LR STANLIB Bank Money Market Fund B4","No CGT"]
[null,"LR STANLIB Bank Money Market Fund B5","No CGT"]
[null,"LR STANLIB Bank Money Market Fund B6","No CGT"]
[null,"LR STANLIB Bank Money Market R","No CGT"]
[null,"LR Momentum Money Market Fund","No CGT"]
[null,"LR Old Mutual Money Market Fund A2","No CGT"]
[null,"LR Old Mutual Uk Money Market Feeder Fund","No CGT"]
[null,"LR Sanlam Money Market Fund R","No CGT"]
[null,"S STANLIB Bank  Money Market R","No CGT"]
[null,"S STANLIB Bank Institutional Money Market Fund B13","No CGT"]
[null,"S STANLIB Bank Money Market Fund B13","No CGT"]
[null,"S STANLIB Bank Money Market Fund B14","No CGT"]
[null,"S STANLIB Bank Money Market Fund B4","No CGT"]
[null,"S STANLIB Bank Money Market Fund B5","No CGT"]
[null,"S STANLIB Bank Money Market Fund B6","No CGT"]
[null,"S STANLIB Bank Money Market R","No CGT"]
[null,"S Momentum Money Market Fund","No CGT"]
[null,"S Old Mutual Money Market Fund A2","No CGT"]
[null,"S Old Mutual Uk Money Market Feeder Fund","No CGT"]
[null,"S Sanlam Money Market Fund R","No CGT"]
[null,"C STANLIB Bank  Money Market R","No CGT"]
[null,"C STANLIB Bank Institutional Money Market Fund B13","No CGT"]
[null,"C STANLIB Bank Money Market Fund B13","No CGT"]
[null,"C STANLIB Bank Money Market Fund B14","No CGT"]
[null,"C STANLIB Bank Money Market Fund B4","No CGT"]
[null,"C STANLIB Bank Money Market Fund B5","No CGT"]
[null,"C STANLIB Bank Money Market Fund B6","No CGT"]
[null,"C STANLIB Bank Money Market R","No CGT"]
[null,"C Momentum Money Market Fund","No CGT"]
[null,"C Old Mutual Money Market Fund A2","No CGT"]
[null,"C Old Mutual Uk Money Market Feeder Fund","No CGT"]
[null,"C Sanlam Money Market Fund R","No CGT"]
[null,"FC STANLIB Bank  Money Market R","No CGT"]
[null,"FC STANLIB Bank Institutional Money Market Fund B13","No CGT"]
[null,"FC STANLIB Bank Money Market Fund B13","No CGT"]
[null,"FC STANLIB Bank Money Market Fund B14","No CGT"]
[null,"FC STANLIB Bank Money Market Fund B4","No CGT"]
[null,"FC STANLIB Bank Money Market Fund B5","No CGT"]
[null,"FC STANLIB Bank Money Market Fund B6","No CGT"]
[null,"FC STANLIB Bank Money Market R","No CGT"]
[null,"FC Momentum Money Market Fund","No CGT"]
[null,"FC Old Mutual Money Market Fund A2","No CGT"]
[null,"FC Old Mutual Uk Money Market Feeder Fund","No CGT"]
[null,"FC Sanlam Money Market Fund R","No CGT"]